{"text_format":"1","workbook":"xlsx","n_sheets":23,"sheets":["Cover","GSR Alterations","Control","Summary","Scenarios","Volumes","Customers","Volume per connection","Weather","Census","Households","GSP","Prices","Appliance costs","Res-Appliance class","CustomersRes","RES S curve-disconnect","RES S curve-connect","COM-Appliance class","CustomersCOM","COM S curve-disconnect","COM S curve-connect","Forecasts"],"not_rendered":{"charts":14,"images":3,"macros":1,"external_links":17,"defined_names":364,"comments":0,"pivot_tables":0},"unopened":[],"bounds":{"document_bytes":16777216,"sheet_cells":100000,"rows_first":2000,"rows_last":500,"rows_between":2000,"halvings":0,"cell_chars":16384,"cell_head_chars":4096},"cells_cut":0,"cells_raw":0,"read":"whole","date_system":"1900"}

{"sheet":"Cover","index":0,"n_rows":0,"n_cols":0,"rows_kept":0,"cut":false,"hidden":false,"merged":[]}

{"sheet":"GSR Alterations","index":1,"n_rows":9,"n_cols":9,"rows_kept":9,"cut":false,"hidden":false,"merged":[]}
[null,null,"Sheet","Cells","Values"]
[null,"Subsidies","Control","Rows 69,73,76,81 / Col's D:H","From Subsidies Working Sheet"]
[null,null,"Appliance Costs","Rows 1,3,7,11,15 / Col's D:J","Links to control sheet, note in Col J appliance costs 'bounce back up' to their normal trajectory"]
[null,"Growth Related Policy","Control","K17","0, 1 and 2 per cent test cases",null,0,0.01,0.02]
[null,"Wholesale Gas Prices","Scenarios","J48","Max cumulative percentage escalation per year, before gas volumes go to zero in 2040 under each Growth Related Policy test case",null,2.3050000000000001E-2,2.6460000000000001E-2,2.9420000000000002E-2]
[null,"S-Curve","Scenarios","J:M28","Same values as 'Dual Fuel' and 'Muddling Through'",null,"NOTE - We had to reshape the S-Curves to calibrate the model back to meeting the KPMG scenario narrative outcomes, ie ending before 2050 for Dual Fuel. This has resulted in a much steeper S-Curve than previously. Since we are using Dual Fuel as the 'middle S-Curve' case to match the GSR narrative the recalibrated Dual Fuel S-Curve supplants Electric dream's S-Curve. "]
[]
[null,"100% Electrification","RES S curve-disconnect","C113:CD132","Make a copy of original model and hardcode to 1"]
[null,null,"RES S curve-connect","C113:CD133","Make a copy of original model and hardcode to 0"]

{"sheet":"Control","index":2,"n_rows":90,"n_cols":81,"rows_kept":90,"cut":false,"hidden":false,"merged":[]}
["Customer discount rates","%",null,null,null,null,null,null,null,null,"Cumulative DF assuming 15 years"]
["High income",{"$f":"Scenarios!G4","v":6.6461183918555475E-2},null,"Recoonections as share of gross connections",0.25,null,"Asset lives","Years",null,"High income",{"$f":"((1+$B2)^-1+(1+$B2)^-2+(1+$B2)^-3+(1+$B2)^-4+(1+$B2)^-5+(1+$B2)^-6+(1+$B2)^-7+(1+$B2)^-8+(1+$B2)^-9+(1+$B2)^-10+(1+$B2)^-11+(1+$B2)^-12+(1+$B2)^-13+(1+$B2)^-14+(1+$B2)^-15)","v":9.3150371101261236}]
["Medium income",{"$f":"Scenarios!G5","v":9.7045657485977668E-2},null,null,null,null,"Cooking",15,null,"Medium income",{"$f":"((1+$B3)^-1+(1+$B3)^-2+(1+$B3)^-3+(1+$B3)^-4+(1+$B3)^-5+(1+$B3)^-6+(1+$B3)^-7+(1+$B3)^-8+(1+$B3)^-9+(1+$B3)^-10+(1+$B3)^-11+(1+$B3)^-12+(1+$B3)^-13+(1+$B3)^-14+(1+$B3)^-15)","v":7.7360831470493929}]
["Low income",{"$f":"Scenarios!G6","v":0.1735068414045331},null,"Appliance capital costs",null,null,"Hot water",12,null,"Low income",5.2405851355985389]
["Commercial",{"$f":"Scenarios!G7","v":4.7199999999999999E-2},null,"Cooking","$ real 2021",null,"Room heating",15,null,"Commercial",10.578929496668849]
[null,null,null,"Electric cooktop (induction)",2286.666666666667,null,"Ducted heating",15]
[null,null,null,"Gas stove",1386.1111111111113,null,"Service charge",15]
[]
[null,null,null,"Hot water",null,null,"Decision point",15]
[null,null,null,"Heat pump hot water",4622.2222222222226]
[null,null,null,"Gas instant hot water",2230,null,"Elasticities","Residential","Commercial"]
[null,null,null,null,null,null,"Weather",{"$f":"Scenarios!G46","v":0.35555229999999999},{"$f":"Scenarios!G50","v":0.15518709999999999}]
[null,null,null,"Room heating",null,null,"Gas price",{"$f":"Scenarios!G47","v":-0.8},{"$f":"Scenarios!G51","v":-0.9}]
[null,null,null,"RCAC split system",3324.4216872134907,null,"Elecricity price",{"$f":"Scenarios!G48","v":8.0000000000000002E-3},{"$f":"Scenarios!G52","v":8.0000000000000002E-3}]
[null,null,null,"Gas wall furnace",2322.1999999999998]
[null,null,null,null,null,null,null,null,null,null,"Residential","Commercial"]
[null,null,null,"Ducted heating",null,null,"Distribution share of retail fixed charge","%",null,"Non-Appliance Cost Related Growth",0.02,0.02]
[null,null,null,"Ducted RCAC",6388.552083333333,null,"Residential",0.3,null,"Non-Appliance Cost Related Disconnections",5.0000000000000001E-3,5.0000000000000001E-3]
[null,null,null,"Ducted gas heating",4578.3333333333339,null,"Commercial",0.28999999999999998]
[]
[null,null,null,"Gas disconnection charge",100]
[null,null,null,"Electricity connection upgrade",2225]
[]
[]
[]
[]
["Appliance consumption",null,null,"Appliance efficiency",null,null,null,"Maintenance costs (p/a)",null,"Maintenance costs"]
["Cooking","Average consumption",null,"Cooking"," % change (p.a.)",null,"Cooking","$",null,"Cooking","real % change (p.a.)"]
["Electric cooktop (induction) kWh",133.30000000000001,null,"Electric cooktop (induction)",{"$f":"Scenarios!G11","v":6.4000000000000003E-3},null,"Electric cooktop (induction)",0,null,"Electric cooktop (induction)",{"$f":"Scenarios!G29","v":-6.4000000000000003E-3}]
["Gas stove (GJ)",1.2,null,"Gas stove",{"$f":"Scenarios!G12","v":0},null,"Gas stove",2.1605288007554297,null,"Gas stove",{"$f":"Scenarios!G30","v":0}]
[null,0]
["Hot water",0,null,"Hot water",null,null,"Hot water",null,null,"Hot water"]
["Heat pump hot water (kWh)",2200,null,"Heat pump hot water",{"$f":"Scenarios!G15","v":6.4000000000000003E-3},null,"Heat pump hot water",43.210576015108593,null,"Heat pump hot water",{"$f":"Scenarios!G33","v":-6.4000000000000003E-3}]
["Gas instant hot water (GJ)",20.6,null,"Gas instant hot water",{"$f":"Scenarios!G16","v":0},null,"Gas instant hot water",32.407932011331447,null,"Gas instant hot water",{"$f":"Scenarios!G34","v":0}]
[null,0]
["Room heating",0,null,"Room heating",null,null,"Room heating",null,null,"Room heating"]
["RCAC split system (kWh)",1170,null,"RCAC split system",{"$f":"Scenarios!G19","v":0},null,"RCAC split system",29.167138810198303,null,"RCAC split system",{"$f":"Scenarios!G37","v":0}]
["Gas wall furnace (GJ)",19.365517241379312,null,"Gas wall furnace",{"$f":"Scenarios!G20","v":0},null,"Gas wall furnace",25.926345609065159,null,"Gas wall furnace",{"$f":"Scenarios!G38","v":0}]
[null,0]
["Ducted heating",0,null,"Ducted heating",null,null,"Ducted heating",null,null,"Ducted heating"]
["Ducted RCAC (kWh)",4735.7142857142862,null,"Ducted RCAC ",{"$f":"Scenarios!G23","v":2.8999999999999998E-3},null,"Ducted RCAC",29.167138810198303,null,"Ducted RCAC",{"$f":"Scenarios!G41","v":-2.8999999999999998E-3}]
["Ducted gas heating (GJ)",68.58620689655173,null,"Ducted gas heating",{"$f":"Scenarios!G24","v":0},null,"Ducted gas heating",29.167138810198303,null,"Ducted gas heating",{"$f":"Scenarios!G42","v":0}]
[]
[]
["LGA","Income class"]
["Bass Coast (S)","L","Bass Coast (S)","M-L (Low)"]
["Bayside (C)","H","Bayside (C)","M (Medium)"]
["Boroondara (C)","H","Boroondara (C)","M-H (High)"]
["Cardinia (S)","L","Cardinia (S)"]
["Casey (C)","M","Casey (C)"]
["Frankston (C)","L","Frankston (C)"]
["Glen Eira (C)","H","Glen Eira (C)"]
["Greater Dandenong (C)","L","Greater Dandenong (C)"]
["Kingston (C)","M","Kingston (C)"]
["Knox (C)","M","Knox (C)"]
["Manningham (C)","M","Manningham (C)"]
["Maroondah (C)","M","Maroondah (C)"]
["Melbourne (C)","L","Melbourne (C)"]
["Monash (C)","M","Monash (C)"]
["Nillumbik (S)","H","Nillumbik (S)"]
["Port Phillip (C)","H","Port Phillip (C)"]
["South Gippsland (S)","L","South Gippsland (S)"]
["Stonnington (C)","H","Stonnington (C)"]
["Whitehorse (C)","M","Whitehorse (C)"]
["Yarra Ranges (S)","M","Yarra Ranges (S)"]
[]
["Appliance costs"]
["Cooking","real % change (p.a.)",2022,2023,2024,2025,2026,2027,2028,2029,2030,2031,2032,2033,2034,2035,2036,2037,2038,2039,2040,2041,2042,2043,2044,2045,2046,2047,2048,2049,2050,2051,2052,2053,2054,2055,2056,2057,2058,2059,2060,2061,2062,2063,2064,2065,2066,2067,2068,2069,2070,2071,2072,2073,2074,2075,2076,2077,2078,2079,2080,2081,2082,2083,2084,2085,2086,2087,2088,2089,2090,2091,2092,2093,2094,2095,2096,2097,2098,2099,2100]
["Electric cooktop (induction)",{"$f":"Scenarios!K11","v":-5.0000000000000001E-3},0,0,0,0,0,0,{"$f":"$B69","v":-5.0000000000000001E-3},-5.0000000000000001E-3,-5.0000000000000001E-3,-5.0000000000000001E-3,-5.0000000000000001E-3,-5.0000000000000001E-3,-5.0000000000000001E-3,-5.0000000000000001E-3,-5.0000000000000001E-3,-5.0000000000000001E-3,-5.0000000000000001E-3,-5.0000000000000001E-3,-5.0000000000000001E-3,-5.0000000000000001E-3,-5.0000000000000001E-3,-5.0000000000000001E-3,-5.0000000000000001E-3,-5.0000000000000001E-3,-5.0000000000000001E-3,-5.0000000000000001E-3,-5.0000000000000001E-3,-5.0000000000000001E-3,-5.0000000000000001E-3,0,0,0,0,0,0,0,0,0,0,0,0,0,0,0,0,0,0,0,0,0,0,0,0,0,0,0,0,0,0,0,0,0,0,0,0,0,0,0,0,0,0,0,0,0,0,0,0,0,0]
["Gas stove",{"$f":"Scenarios!K12","v":0}]
[]
["Hot water"]
["Heat pump hot water",{"$f":"Scenarios!K15","v":-5.0000000000000001E-3},0,-0.110888569522963,-0.110888569522963,-0.110888569522963,-0.110888569522963,-0.110888569522963,{"$f":"$B73","v":-5.0000000000000001E-3},-5.0000000000000001E-3,-5.0000000000000001E-3,-5.0000000000000001E-3,-5.0000000000000001E-3,-5.0000000000000001E-3,-5.0000000000000001E-3,-5.0000000000000001E-3,-5.0000000000000001E-3,-5.0000000000000001E-3,-5.0000000000000001E-3,-5.0000000000000001E-3,-5.0000000000000001E-3,-5.0000000000000001E-3,-5.0000000000000001E-3,-5.0000000000000001E-3,-5.0000000000000001E-3,-5.0000000000000001E-3,-5.0000000000000001E-3,-5.0000000000000001E-3,-5.0000000000000001E-3,-5.0000000000000001E-3,-5.0000000000000001E-3,0,0,0,0,0,0,0,0,0,0,0,0,0,0,0,0,0,0,0,0,0,0,0,0,0,0,0,0,0,0,0,0,0,0,0,0,0,0,0,0,0,0,0,0,0,0,0,0,0,0]
["Gas instant hot water",{"$f":"Scenarios!K16","v":0}]
[]
["Room heating"]
["RCAC split system",{"$f":"Scenarios!K19","v":-5.0000000000000001E-3},0,-7.2193007560712494E-2,-7.2193007560712494E-2,-7.2193007560712494E-2,0,0,{"$f":"$B77","v":-5.0000000000000001E-3},-5.0000000000000001E-3,-5.0000000000000001E-3,-5.0000000000000001E-3,-5.0000000000000001E-3,-5.0000000000000001E-3,-5.0000000000000001E-3,-5.0000000000000001E-3,-5.0000000000000001E-3,-5.0000000000000001E-3,-5.0000000000000001E-3,-5.0000000000000001E-3,-5.0000000000000001E-3,-5.0000000000000001E-3,-5.0000000000000001E-3,-5.0000000000000001E-3,-5.0000000000000001E-3,-5.0000000000000001E-3,-5.0000000000000001E-3,-5.0000000000000001E-3,-5.0000000000000001E-3,-5.0000000000000001E-3,-5.0000000000000001E-3,0,0,0,0,0,0,0,0,0,0,0,0,0,0,0,0,0,0,0,0,0,0,0,0,0,0,0,0,0,0,0,0,0,0,0,0,0,0,0,0,0,0,0,0,0,0,0,0,0,0]
["Gas wall furnace",{"$f":"Scenarios!K20","v":0}]
[]
["Ducted heating"]
["Ducted RCAC",{"$f":"Scenarios!K23","v":-5.0000000000000001E-3},0,-0.20975018791751501,-0.20975018791751501,0,0,0,{"$f":"$B81","v":-5.0000000000000001E-3},-5.0000000000000001E-3,-5.0000000000000001E-3,-5.0000000000000001E-3,-5.0000000000000001E-3,-5.0000000000000001E-3,-5.0000000000000001E-3,-5.0000000000000001E-3,-5.0000000000000001E-3,-5.0000000000000001E-3,-5.0000000000000001E-3,-5.0000000000000001E-3,-5.0000000000000001E-3,-5.0000000000000001E-3,-5.0000000000000001E-3,-5.0000000000000001E-3,-5.0000000000000001E-3,-5.0000000000000001E-3,-5.0000000000000001E-3,-5.0000000000000001E-3,-5.0000000000000001E-3,-5.0000000000000001E-3,-5.0000000000000001E-3,0,0,0,0,0,0,0,0,0,0,0,0,0,0,0,0,0,0,0,0,0,0,0,0,0,0,0,0,0,0,0,0,0,0,0,0,0,0,0,0,0,0,0,0,0,0,0,0,0,0]
["Ducted gas heating",{"$f":"Scenarios!K24","v":0}]
[]
["Gas disconnection charge",0]
["Electricity connection upgrade",0]
[null,null,null,{"$f":"(1+$D$67)^(D68-$C$68)-1","v":0},{"$f":"(1+$D$67)^(E68-$C$68)-1","v":0},0,0,0]
[null,"Average Appliance Cost",{"$f":"AVERAGE(E6,E10,E14,E18)","v":4155.465664858928},{"$f":"D86*$C$87","v":0},{"$f":"E86*$C$87","v":0},0,0,0]
[null,"Annual Replacement max",{"$f":"700000/15","v":46666.666666666664},{"$f":"$C$88*D87","v":0},{"$f":"$C$88*E87","v":0},0,0,0,{"$f":"SUM(D88:H88)","v":0}]
[null,"5 Year Replacement",{"$f":"C88*5","v":233333.33333333331}]
[null,null,{"$f":"C87*C89","v":969608655.13374984}]

{"sheet":"Summary","index":3,"n_rows":54,"n_cols":82,"rows_kept":54,"cut":false,"hidden":false,"merged":[]}
[]
["Customers",2020,{"$f":"B2+1","v":2021},{"$f":"C2+1","v":2022},2023,2024,2025,2026,2027,2028,2029,2030,2031,2032,2033,2034,2035,2036,2037,2038,2039,2040,2041,2042,2043,2044,2045,2046,2047,2048,2049,2050,2051,2052,2053,2054,2055,2056,2057,2058,2059,2060,2061,2062,2063,2064,2065,2066,2067,2068,2069,2070,2071,2072,2073,2074,2075,2076,2077,2078,2079,2080,2081,2082,2083,2084,2085,{"$f":"BO2+1","v":2086},2087,2088,2089,2090,2091,2092,2093,2094,2095,2096,2097,2098,2099,2100]
["Residential",{"$f":"Forecasts!J47","v":690940},{"$f":"Forecasts!K47","v":701280.29999999993},{"$f":"Forecasts!L47","v":711784.89850000001},{"$f":"Forecasts!M47","v":722438.9740075001},{"$f":"Forecasts!N47","v":733247.77913746238},{"$f":"Forecasts!O47","v":744234.5402417751},{"$f":"Forecasts!P47","v":755386.36754056637},{"$f":"Forecasts!Q47","v":766701.43570286362},{"$f":"Forecasts!R47","v":778191.928524349},{"$f":"Forecasts!S47","v":789839.96888172755},{"$f":"Forecasts!T47","v":801671.76903731877},{"$f":"Forecasts!U47","v":797663.41019213223},{"$f":"Forecasts!V47","v":793675.09314117162},{"$f":"Forecasts!W47","v":789706.71767546562},{"$f":"Forecasts!X47","v":785758.18408708833},{"$f":"Forecasts!Y47","v":781825.393166653},{"$f":"Forecasts!Z47","v":777905.26620081952},{"$f":"Forecasts!AA47","v":773968.73986981565},{"$f":"Forecasts!AB47","v":769999.89617046644},{"$f":"Forecasts!AC47","v":765914.89668961405},{"$f":"Forecasts!AD47","v":761663.32220616587},{"$f":"Forecasts!AE47","v":757189.00559513515},{"$f":"Forecasts!AF47","v":751552.06056715944},{"$f":"Forecasts!AG47","v":742945.30026432371},{"$f":"Forecasts!AH47","v":730842.57376300218},{"$f":"Forecasts!AI47","v":714177.36089418724},{"$f":"Forecasts!AJ47","v":693588.4740897161},{"$f":"Forecasts!AK47","v":669171.5317192676},{"$f":"Forecasts!AL47","v":641548.67406067112},{"$f":"Forecasts!AM47","v":611152.93069036782},{"$f":"Forecasts!AN47","v":578212.16603691597},{"$f":"Forecasts!AO47","v":545267.10520673147},{"$f":"Forecasts!AP47","v":512623.76968069788},{"$f":"Forecasts!AQ47","v":481201.65083229431},{"$f":"Forecasts!AR47","v":451366.64257813292},{"$f":"Forecasts!AS47","v":423138.8093652422},{"$f":"Forecasts!AT47","v":399034.11531841604},{"$f":"Forecasts!AU47","v":377014.94474182383},{"$f":"Forecasts!AV47","v":355462.8700181148},{"$f":"Forecasts!AW47","v":334621.55566802423},{"$f":"Forecasts!AX47","v":314745.44788968406},{"$f":"Forecasts!AY47","v":295834.72065023566},{"$f":"Forecasts!AZ47","v":277794.54704698443},{"$f":"Forecasts!BA47","v":260467.57431174957},{"$f":"Forecasts!BB47","v":243713.23644019078},{"$f":"Forecasts!BC47","v":227467.67025798984},{"$f":"Forecasts!BD47","v":211825.33190669992},{"$f":"Forecasts!BE47","v":196949.20524716639},{"$f":"Forecasts!BF47","v":182964.45922093058},{"$f":"Forecasts!BG47","v":169911.63692482596},{"$f":"Forecasts!BH47","v":157768.0787402018},{"$f":"Forecasts!BI47","v":146489.23834650079},{"$f":"Forecasts!BJ47","v":136019.79215476828},{"$f":"Forecasts!BK47","v":126299.69319399443},{"$f":"Forecasts!BL47","v":117276.19472802449},{"$f":"Forecasts!BM47","v":108897.81375438435},{"$f":"Forecasts!BN47","v":101110.32468561245},{"$f":"Forecasts!BO47","v":93877.773062184395},{"$f":"Forecasts!BP47","v":87167.384196873478},{"$f":"Forecasts!BQ47","v":80934.547275889083},{"$f":"Forecasts!BR47","v":75149.874539509619},{"$f":"Forecasts!BS47","v":69774.125166812082},{"$f":"Forecasts!BT47","v":69394.254540978029},{"$f":"Forecasts!BU47","v":69015.283268273139},{"$f":"Forecasts!BV47","v":68637.206851931769},{"$f":"Forecasts!BW47","v":68261.020817672106},{"$f":"Forecasts!BX47","v":67886.715713583748},{"$f":"Forecasts!BY47","v":67514.282135015819},{"$f":"Forecasts!BZ47","v":67143.710724340752},{"$f":"Forecasts!CA47","v":66774.992170719052},{"$f":"Forecasts!CB47","v":66408.117209865464},{"$f":"Forecasts!CC47","v":66041.07662381613},{"$f":"Forecasts!CD47","v":65675.871240697044},{"$f":"Forecasts!CE47","v":65312.49188449356},{"$f":"Forecasts!CF47","v":64950.929425071081},{"$f":"Forecasts!CG47","v":64591.174777945744},{"$f":"Forecasts!CH47","v":64233.218904056019},{"$f":"Forecasts!CI47","v":63876.052809535737},{"$f":"Forecasts!CJ47","v":63519.672545488058},{"$f":"Forecasts!CK47","v":63165.074182760611},{"$f":"Forecasts!CL47","v":62822.248811846803}]
["Gross new connections",{"$f":"CustomersRes!J47","v":11908},{"$f":"CustomersRes!K47","v":13795},{"$f":"CustomersRes!L47","v":14011},{"$f":"CustomersRes!M47","v":14213},{"$f":"CustomersRes!N47","v":14421},{"$f":"CustomersRes!O47","v":14653},{"$f":"CustomersRes!P47","v":14873},{"$f":"CustomersRes!Q47","v":15092},{"$f":"CustomersRes!R47","v":15324},{"$f":"CustomersRes!S47","v":15539},{"$f":"CustomersRes!T47","v":15781},{"$f":"CustomersRes!U47","v":0},{"$f":"CustomersRes!V47","v":0},{"$f":"CustomersRes!W47","v":0},{"$f":"CustomersRes!X47","v":0},{"$f":"CustomersRes!Y47","v":0},{"$f":"CustomersRes!Z47","v":0},{"$f":"CustomersRes!AA47","v":0},{"$f":"CustomersRes!AB47","v":0},{"$f":"CustomersRes!AC47","v":0},{"$f":"CustomersRes!AD47","v":0},{"$f":"CustomersRes!AE47","v":0},{"$f":"CustomersRes!AF47","v":0},{"$f":"CustomersRes!AG47","v":0},{"$f":"CustomersRes!AH47","v":0},{"$f":"CustomersRes!AI47","v":0},{"$f":"CustomersRes!AJ47","v":0},{"$f":"CustomersRes!AK47","v":0},{"$f":"CustomersRes!AL47","v":0},{"$f":"CustomersRes!AM47","v":0},{"$f":"CustomersRes!AN47","v":0},{"$f":"CustomersRes!AO47","v":0},{"$f":"CustomersRes!AP47","v":0},{"$f":"CustomersRes!AQ47","v":0},{"$f":"CustomersRes!AR47","v":0},{"$f":"CustomersRes!AS47","v":0},{"$f":"CustomersRes!AT47","v":0},{"$f":"CustomersRes!AU47","v":0},{"$f":"CustomersRes!AV47","v":0},{"$f":"CustomersRes!AW47","v":0},{"$f":"CustomersRes!AX47","v":0},{"$f":"CustomersRes!AY47","v":0},{"$f":"CustomersRes!AZ47","v":0},{"$f":"CustomersRes!BA47","v":0},{"$f":"CustomersRes!BB47","v":0},{"$f":"CustomersRes!BC47","v":0},{"$f":"CustomersRes!BD47","v":0},{"$f":"CustomersRes!BE47","v":0},{"$f":"CustomersRes!BF47","v":0},{"$f":"CustomersRes!BG47","v":0},{"$f":"CustomersRes!BH47","v":0},{"$f":"CustomersRes!BI47","v":0},{"$f":"CustomersRes!BJ47","v":0},{"$f":"CustomersRes!BK47","v":0},{"$f":"CustomersRes!BL47","v":0},{"$f":"CustomersRes!BM47","v":0},{"$f":"CustomersRes!BN47","v":0},{"$f":"CustomersRes!BO47","v":0},{"$f":"CustomersRes!BP47","v":0},{"$f":"CustomersRes!BQ47","v":0},{"$f":"CustomersRes!BR47","v":0},{"$f":"CustomersRes!BS47","v":0},{"$f":"CustomersRes!BT47","v":0},{"$f":"CustomersRes!BU47","v":0},{"$f":"CustomersRes!BV47","v":0},{"$f":"CustomersRes!BW47","v":0},{"$f":"CustomersRes!BX47","v":0},{"$f":"CustomersRes!BY47","v":0},{"$f":"CustomersRes!BZ47","v":0},{"$f":"CustomersRes!CA47","v":0},{"$f":"CustomersRes!CB47","v":0},{"$f":"CustomersRes!CC47","v":0},{"$f":"CustomersRes!CD47","v":0},{"$f":"CustomersRes!CE47","v":0},{"$f":"CustomersRes!CF47","v":0},{"$f":"CustomersRes!CG47","v":0},{"$f":"CustomersRes!CH47","v":0},{"$f":"CustomersRes!CI47","v":0},{"$f":"CustomersRes!CJ47","v":0},{"$f":"CustomersRes!CK47","v":0},{"$f":"CustomersRes!CL47","v":0}]
["Disconnections",{"$f":"CustomersRes!J71","v":6499},{"$f":"-((C3-B3)-C4)","v":3454.7000000000698},{"$f":"-((D3-C3)-D4)","v":3506.4014999999199},3558.9244924999075,3612.1948700377252,3666.2388956872746,3721.1727012087358,3776.9318377027521,3833.5071785146138,3890.9596426214557,3949.1998444087803,4008.3588451865362,3988.3170509606134,3968.3754657059908,3948.5335883772932,3932.7909204353346,3920.1269658334786,3936.5263310038717,3968.8436993492069,4084.9994808523916,4251.5744834481739,4474.3166110307211,{"$f":"-((X3-W3)-X4)","v":5636.9450279757148},{"$f":"-((Y3-X3)-Y4)","v":8606.7603028357262},12102.726501321536,{"$f":"-((AA3-Z3)-AA4)","v":16665.212868814939},{"$f":"-((AB3-AA3)-AB4)","v":20588.886804471142},{"$f":"-((AC3-AB3)-AC4)","v":24416.942370448494},{"$f":"-((AD3-AC3)-AD4)","v":27622.857658596477},{"$f":"-((AE3-AD3)-AE4)","v":30395.743370303302},{"$f":"-((AF3-AE3)-AF4)","v":32940.764653451857},{"$f":"-((AG3-AF3)-AG4)","v":32945.060830184491},{"$f":"-((AH3-AG3)-AH4)","v":32643.335526033596},{"$f":"-((AI3-AH3)-AI4)","v":31422.118848403567},{"$f":"-((AJ3-AI3)-AJ4)","v":29835.008254161396},{"$f":"-((AK3-AJ3)-AK4)","v":28227.83321289072},{"$f":"-((AL3-AK3)-AL4)","v":24104.69404682616},{"$f":"-((AM3-AL3)-AM4)","v":22019.170576592209},{"$f":"-((AN3-AM3)-AN4)","v":21552.074723709025},{"$f":"-((AO3-AN3)-AO4)","v":20841.314350090572},{"$f":"-((AP3-AO3)-AP4)","v":19876.107778340171},{"$f":"-((AQ3-AP3)-AQ4)","v":18910.727239448403},{"$f":"-((AR3-AQ3)-AR4)","v":18040.173603251227},{"$f":"-((AS3-AR3)-AS4)","v":17326.972735234856},{"$f":"-((AT3-AS3)-AT4)","v":16754.33787155879},16245.566182200942,{"$f":"-((AV3-AU3)-AV4)","v":15642.338351289916},14876.126659533533,{"$f":"-((AX3-AW3)-AX4)","v":13984.746026235807},{"$f":"-((AY3-AX3)-AY4)","v":13052.822296104627},{"$f":"-((AZ3-AY3)-AZ4)","v":12143.558184624155},{"$f":"-((BA3-AZ3)-BA4)","v":11278.840393701015},{"$f":"-((BB3-BA3)-BB4)","v":10469.44619173251},{"$f":"-((BC3-BB3)-BC4)","v":9720.0989607738447},{"$f":"-((BD3-BC3)-BD4)","v":9023.4984659699403},{"$f":"-((BE3-BD3)-BE4)","v":8378.3809736401454},{"$f":"-((BF3-BE3)-BF4)","v":7787.4890687719017},{"$f":"-((BG3-BF3)-BG4)","v":7232.5516234280512},{"$f":"-((BH3-BG3)-BH4)","v":6710.388865310917},{"$f":"-((BI3-BH3)-BI4)","v":6232.836920984395},{"$f":"-((BJ3-BI3)-BJ4)","v":5784.6727363794635},{"$f":"-((BK3-BJ3)-BK4)","v":5375.7493726975372},{"$f":"-((BL3-BK3)-BL4)","v":379.8706258340535},{"$f":"-((BM3-BL3)-BM4)","v":378.97127270489},{"$f":"-((BN3-BM3)-BN4)","v":378.07641634136962},{"$f":"-((BO3-BN3)-BO4)","v":376.18603425966285},{"$f":"-((BP3-BO3)-BP4)","v":374.30510408835835},{"$f":"-((BQ3-BP3)-BQ4)","v":372.43357856792863},370.57141067506745,{"$f":"-((BS3-BR3)-BS4)","v":368.71855362170027},366.87496085358725,{"$f":"-((BU3-BT3)-BU4)","v":367.0405860493338},{"$f":"-((BV3-BU3)-BV4)","v":365.20538311908604},{"$f":"-((BW3-BV3)-BW4)","v":363.37935620348435},{"$f":"-((BX3-BW3)-BX4)","v":361.56245942247915},{"$f":"-((BY3-BX3)-BY4)","v":359.75464712533721},{"$f":"-((BZ3-BY3)-BZ4)","v":357.9558738897249},{"$f":"-((CA3-BZ3)-CA4)","v":357.16609452028206},{"$f":"-((CB3-CA3)-CB4)","v":356.38026404767879},{"$f":"-((CC3-CB3)-CC4)","v":354.59836272744724},{"$f":"-((CD3-CC3)-CD4)","v":342.825370913808}]
["Commercial",{"$f":"Forecasts!J118","v":14439},{"$f":"Forecasts!K118","v":14156.66666666667},{"$f":"Forecasts!L118","v":14051.881666666666},{"$f":"Forecasts!M118","v":13111.620591666666},{"$f":"Forecasts!N118","v":12204.060822041667},{"$f":"Forecasts!O118","v":12155.03885126479},{"$f":"Forecasts!P118","v":12042.2619903418},{"$f":"Forecasts!Q118","v":11448.049013723425},{"$f":"Forecasts!R118","v":10865.807101988141},{"$f":"Forecasts!S118","v":10115.476399811536},{"$f":"Forecasts!T118","v":9417.897351145808},{"$f":"Forecasts!U118","v":8835.8061977234156},{"$f":"Forecasts!V118","v":8285.6255000681285},{"$f":"Forecasts!W118","v":7718.195705901122},{"$f":"Forecasts!X118","v":7191.6030607049488},{"$f":"Forecasts!Y118","v":6924.6433787347578},{"$f":"Forecasts!Z118","v":6556.0184951744177},{"$f":"Forecasts!AA118","v":6134.2367360318804},{"$f":"Forecasts!AB118","v":5723.5638856850537},{"$f":"Forecasts!AC118","v":5340.944399589961},{"$f":"Forecasts!AD118","v":4984.2380109253445},{"$f":"Forecasts!AE118","v":4653.3151542040514},{"$f":"Forecasts!AF118","v":4347.0469117663642},{"$f":"Forecasts!AG118","v":4061.3100105408657},{"$f":"Forecasts!AH118","v":3799.0017938214946},{"$f":"Forecasts!AI118","v":3553.0051181857207},{"$f":"Forecasts!AJ118","v":3324.2384259281248},{"$f":"Forecasts!AK118","v":3109.615567131817},{"$f":"Forecasts!AL118","v":2910.0658226294918},{"$f":"Forecasts!AM118","v":2727.5138268496776},{"$f":"Forecasts!AN118","v":2556.8745910487623},{"$f":"Forecasts!AO118","v":2399.0885514268521},{"$f":"Forecasts!AP118","v":2251.0914420030517},{"$f":"Forecasts!AQ118","v":2114.8343181263695},{"$f":"Forecasts!AR118","v":1989.2584798690709},{"$f":"Forecasts!AS118","v":1872.3105208030588},{"$f":"Forecasts!AT118","v":1762.9473015323767},{"$f":"Forecasts!AU118","v":1661.1308983580482},{"$f":"Forecasts!AV118","v":1568.8235771995912},{"$f":"Forecasts!AW118","v":1481.9777926469267},{"$f":"Forecasts!AX118","v":1403.5662370170253},{"$f":"Forecasts!AY118","v":1328.5467391652735},{"$f":"Forecasts!AZ118","v":1260.9023388027808},{"$f":"Forecasts!BA118","v":1197.5961604421002},{"$f":"Forecasts!BB118","v":1137.6065129732228},{"$f":"Forecasts!BC118","v":1081.9168137416902},{"$f":"Forecasts!BD118","v":1029.505563006315},{"$f":"Forecasts!BE118","v":981.35636852461676},{"$f":"Forecasts!BF118","v":939.44792001532699},{"$f":"Forecasts!BG118","v":899.74901374858382},{"$f":"Forecasts!BH118","v":862.24860201317415},{"$f":"Forecasts!BI118","v":826.93569233644143},{"$f":"Forecasts!BJ118","v":794.79934720809263},{"$f":"Forecasts!BK118","v":764.8236838053856},{"$f":"Forecasts!BL118","v":736.99789871969199},{"$f":"Forecasts!BM118","v":710.31124255942689},{"$f":"Forecasts!BN118","v":684.75801967996301},{"$f":"Forecasts!BO118","v":661.33256291489647},{"$f":"Forecasts!BP118","v":640.02423343365535},{"$f":"Forecasts!BQ118","v":620.82244559982053},{"$f":"Forecasts!BR118","v":603.71666670515492},{"$f":"Forecasts!BS118","v":588.6964167049623},{"$f":"Forecasts!BT118","v":574.75126795477081},{"$f":"Forecasts!BU118","v":560.87584494833027},{"$f":"Forecasts!BV118","v":548.06979905692185},{"$f":"Forecasts!BW118","v":536.32778339497065},{"$f":"Forecasts!BX118","v":524.64447781132924},{"$f":"Forecasts!BY118","v":513.01958875560592},{"$f":"Forecasts!BZ118","v":501.452824145161},{"$f":"Forecasts!CA118","v":491.94389335776867},{"$f":"Forecasts!CB118","v":482.48250722431317},{"$f":"Forecasts!CC118","v":477.06842802152494},{"$f":"Forecasts!CD118","v":471.68141921475063},{"$f":"Forecasts!CE118","v":467.32134545201012},{"$f":"Forecasts!CF118","v":464.98307205808351},{"$f":"Forecasts!CG118","v":462.65649003112645},{"$f":"Forecasts!CH118","v":460.34154091430418},{"$f":"Forecasts!CI118","v":458.03816654306593},{"$f":"Forecasts!CJ118","v":455.74630904368394},{"$f":"Forecasts!CK118","v":453.46591083179879},{"$f":"Forecasts!CL118","v":451.19691461097324}]
["Gross new connections",{"$f":"CustomersCOM!J45","v":314},{"$f":"CustomersCOM!K45","v":261},{"$f":"CustomersCOM!L45","v":139},{"$f":"CustomersCOM!M45","v":0},{"$f":"CustomersCOM!N45","v":0},{"$f":"CustomersCOM!O45","v":133},{"$f":"CustomersCOM!P45","v":109},{"$f":"CustomersCOM!Q45","v":15},{"$f":"CustomersCOM!R45","v":13},{"$f":"CustomersCOM!S45","v":0},{"$f":"CustomersCOM!T45","v":0},{"$f":"CustomersCOM!U45","v":0},{"$f":"CustomersCOM!V45","v":0},{"$f":"CustomersCOM!W45","v":0},{"$f":"CustomersCOM!X45","v":0},{"$f":"CustomersCOM!Y45","v":0},{"$f":"CustomersCOM!Z45","v":0},{"$f":"CustomersCOM!AA45","v":0},{"$f":"CustomersCOM!AB45","v":0},{"$f":"CustomersCOM!AC45","v":0},{"$f":"CustomersCOM!AD45","v":0},{"$f":"CustomersCOM!AE45","v":0},{"$f":"CustomersCOM!AF45","v":0},{"$f":"CustomersCOM!AG45","v":0},{"$f":"CustomersCOM!AH45","v":0},{"$f":"CustomersCOM!AI45","v":0},{"$f":"CustomersCOM!AJ45","v":0},{"$f":"CustomersCOM!AK45","v":0},{"$f":"CustomersCOM!AL45","v":0},{"$f":"CustomersCOM!AM45","v":0},{"$f":"CustomersCOM!AN45","v":0},{"$f":"CustomersCOM!AO45","v":0},{"$f":"CustomersCOM!AP45","v":0},{"$f":"CustomersCOM!AQ45","v":0},{"$f":"CustomersCOM!AR45","v":0},{"$f":"CustomersCOM!AS45","v":0},{"$f":"CustomersCOM!AT45","v":0},{"$f":"CustomersCOM!AU45","v":0},{"$f":"CustomersCOM!AV45","v":0},{"$f":"CustomersCOM!AW45","v":0},{"$f":"CustomersCOM!AX45","v":0},{"$f":"CustomersCOM!AY45","v":0},{"$f":"CustomersCOM!AZ45","v":0},{"$f":"CustomersCOM!BA45","v":0},{"$f":"CustomersCOM!BB45","v":0},{"$f":"CustomersCOM!BC45","v":0},{"$f":"CustomersCOM!BD45","v":0},{"$f":"CustomersCOM!BE45","v":0},{"$f":"CustomersCOM!BF45","v":0},{"$f":"CustomersCOM!BG45","v":0},{"$f":"CustomersCOM!BH45","v":0},{"$f":"CustomersCOM!BI45","v":0},{"$f":"CustomersCOM!BJ45","v":0},{"$f":"CustomersCOM!BK45","v":0},{"$f":"CustomersCOM!BL45","v":0},{"$f":"CustomersCOM!BM45","v":0},{"$f":"CustomersCOM!BN45","v":0},{"$f":"CustomersCOM!BO45","v":0},{"$f":"CustomersCOM!BP45","v":0},{"$f":"CustomersCOM!BQ45","v":0},{"$f":"CustomersCOM!BR45","v":0},{"$f":"CustomersCOM!BS45","v":0},{"$f":"CustomersCOM!BT45","v":0},{"$f":"CustomersCOM!BU45","v":0},{"$f":"CustomersCOM!BV45","v":0},{"$f":"CustomersCOM!BW45","v":0},{"$f":"CustomersCOM!BX45","v":0},{"$f":"CustomersCOM!BY45","v":0},{"$f":"CustomersCOM!BZ45","v":0},{"$f":"CustomersCOM!CA45","v":0},{"$f":"CustomersCOM!CB45","v":0},{"$f":"CustomersCOM!CC45","v":0},{"$f":"CustomersCOM!CD45","v":0},{"$f":"CustomersCOM!CE45","v":0},{"$f":"CustomersCOM!CF45","v":0},{"$f":"CustomersCOM!CG45","v":0},{"$f":"CustomersCOM!CH45","v":0},{"$f":"CustomersCOM!CI45","v":0},{"$f":"CustomersCOM!CJ45","v":0},{"$f":"CustomersCOM!CK45","v":0},{"$f":"CustomersCOM!CL45","v":0}]
["Disconnections",{"$f":"CustomersCOM!J68","v":435},{"$f":"-((C6-B6)-C7)","v":543.3333333333303},{"$f":"-((D6-C6)-D7)","v":243.78500000000349},940.26107500000035,907.55976962499881,182.02197077687742,221.77686092298973,609.21297661837525,595.24191173528379,750.33070217660497,697.5790486657279,582.09115342239238,550.18069765528708,567.42979416700655,526.59264519617318,266.95968197019101,368.62488356034009,421.78175914253734,410.67285034682664,382.61948609509273,{"$f":"-((V6-U6)-V7)","v":356.7063886646165},{"$f":"-((W6-V6)-W7)","v":330.9228567212931},{"$f":"-((X6-W6)-X7)","v":306.26824243768715},{"$f":"-((Y6-X6)-Y7)","v":285.73690122549851},{"$f":"-((Z6-Y6)-Z7)","v":262.3082167193711},{"$f":"-((AA6-Z6)-AA7)","v":245.99667563577395},{"$f":"-((AB6-AA6)-AB7)","v":228.76669225759588},{"$f":"-((AC6-AB6)-AC7)","v":214.62285879630781},{"$f":"-((AD6-AC6)-AD7)","v":199.54974450232521},{"$f":"-((AE6-AD6)-AE7)","v":182.55199577981421},{"$f":"-((AF6-AE6)-AF7)","v":170.63923580091523},{"$f":"-((AG6-AF6)-AG7)","v":157.78603962191028},{"$f":"-((AH6-AG6)-AH7)","v":147.99710942380034},{"$f":"-((AI6-AH6)-AI7)","v":136.25712387668227},{"$f":"-((AJ6-AI6)-AJ7)","v":125.57583825729853},{"$f":"-((AK6-AJ6)-AK7)","v":116.94795906601212},{"$f":"-((AL6-AK6)-AL7)","v":109.36321927068207},{"$f":"-((AM6-AL6)-AM7)","v":101.81640317432857},{"$f":"-((AN6-AM6)-AN7)","v":92.307321158456944},{"$f":"-((AO6-AN6)-AO7)","v":86.845784552664554},{"$f":"-((AP6-AO6)-AP7)","v":78.411555629901386},{"$f":"-((AQ6-AP6)-AQ7)","v":75.019497851751794},{"$f":"-((AR6-AQ6)-AR7)","v":67.644400362492661},{"$f":"-((AS6-AR6)-AS7)","v":63.306178360680633},{"$f":"-((AT6-AS6)-AT7)","v":59.989647468877365},{"$f":"-((AU6-AT6)-AU7)","v":55.689699231532586},{"$f":"-((AV6-AU6)-AV7)","v":52.411250735375233},{"$f":"-((AW6-AV6)-AW7)","v":48.14919448169826},{"$f":"-((AX6-AW6)-AX7)","v":41.908448509289769},{"$f":"-((AY6-AX6)-AY7)","v":39.698906266743165},{"$f":"-((AZ6-AY6)-AZ7)","v":37.500411735409671},{"$f":"-((BA6-AZ6)-BA7)","v":35.312909676732716},{"$f":"-((BB6-BA6)-BB7)","v":32.136345128348808},{"$f":"-((BC6-BB6)-BC7)","v":29.975663402707028},{"$f":"-((BD6-BC6)-BD7)","v":27.82578508569361},{"$f":"-((BE6-BD6)-BE7)","v":26.686656160265102},{"$f":"-((BF6-BE6)-BF7)","v":25.553222879463874},{"$f":"-((BG6-BF6)-BG7)","v":23.425456765066542},{"$f":"-((BH6-BG6)-BH7)","v":21.308329481241117},{"$f":"-((BI6-BH6)-BI7)","v":19.201787833834828},{"$f":"-((BJ6-BI6)-BJ7)","v":17.105778894665605},{"$f":"-((BK6-BJ6)-BK7)","v":15.020250000192618},{"$f":"-((BL6-BK6)-BL7)","v":13.945148750191493},{"$f":"-((BM6-BL6)-BM7)","v":13.875423006440542},{"$f":"-((BN6-BM6)-BN7)","v":12.806045891408417},{"$f":"-((BO6-BN6)-BO7)","v":11.7420156619512},{"$f":"-((BP6-BO6)-BP7)","v":11.683305583641413},{"$f":"-((BQ6-BP6)-BQ7)","v":11.624889055723315},{"$f":"-((BR6-BQ6)-BR7)","v":11.56676461044492},{"$f":"-((BS6-BR6)-BS7)","v":9.5089307873923303},{"$f":"-((BT6-BS6)-BT7)","v":9.4613861334555054},{"$f":"-((BU6-BT6)-BU7)","v":5.4140792027882298},{"$f":"-((BV6-BU6)-BV7)","v":5.387008806774304},{"$f":"-((BW6-BV6)-BW7)","v":4.3600737627405124},{"$f":"-((BX6-BW6)-BX7)","v":2.3382733939266132},{"$f":"-((BY6-BX6)-BY7)","v":2.3265820269570554},{"$f":"-((BZ6-BY6)-BZ7)","v":2.3149491168222767},{"$f":"-((CA6-BZ6)-CA7)","v":2.3033743712382488},{"$f":"-((CB6-CA6)-CB7)","v":2.2918574993819902},{"$f":"-((CC6-CB6)-CC7)","v":2.2803982118851422},{"$f":"-((CD6-CC6)-CD7)","v":2.2689962208255565}]
["Multinet",{"$f":"SUM(B3:B6)","v":723786},{"$f":"SUM(C3:C6)","v":732686.66666666663},743354.18166666664,753322.51909166668,763485.03482954181,774708.81798872713,786022.80223211693,797018.41655428975,808215.24280485173,819385.40492416057,830819.86623287341,810507.57523504214,805949.03569220041,801393.28884707275,796898.32073617063,792682.82746582304,788381.41166182747,784039.50293685135,779692.3037555007,775340.84057005635,770899.13470053941,766316.6373603699,761536.05250690156,755613.37057770032,746744.30205814517,734395.57888118795,717501.59932011541,696698.08965684788,672081.59754189709,644276.18788752076,613709.80528141663,580611.25458834285,547518.19664873451,514738.60399882426,483190.90931216336,453238.95309893595,424901.75666677457,400695.2462167741,378583.76831902342,356944.84781076171,336025.12190504128,316073.99462884932,297095.62298903841,278992.14320742653,261605.1808247228,244795.15325393248,228497.17582099617,212806.68827522453,197888.65316718171,183864.20823467916,170773.88552683912,158595.01443253824,147284.03769370887,136784.61583857366,127036.69109271413,117986.50597058392,109582.57177406432,101771.65724852734,94517.797295618046,87788.206642473291,81538.263942594233,75738.570956214578,70348.876434766848,69955.130385926357,69563.353067330056,{"$f":"SUM(BO3:BO6)","v":69173.534635326738},68785.665295483443,68399.735302339352,68015.734959160982,67635.654617698514,67257.474677943363,66885.185637886985,66512.758043030888,66143.19258614906,65777.474956551639,65413.585915102209,65051.516318860049,64691.257070599087,64331.799118579424,63973.138456319859,{"$f":"SUM(CD3:CD6)","v":63616.271097371588}]
[]
["Volumes (TJ)",2020,{"$f":"B11+1","v":2021},{"$f":"C11+1","v":2022},{"$f":"D11+1","v":2023},{"$f":"E11+1","v":2024},{"$f":"F11+1","v":2025},{"$f":"G11+1","v":2026},{"$f":"H11+1","v":2027},{"$f":"I11+1","v":2028},{"$f":"J11+1","v":2029},{"$f":"K11+1","v":2030},{"$f":"L11+1","v":2031},{"$f":"M11+1","v":2032},{"$f":"N11+1","v":2033},{"$f":"O11+1","v":2034},{"$f":"P11+1","v":2035},{"$f":"Q11+1","v":2036},{"$f":"R11+1","v":2037},{"$f":"S11+1","v":2038},{"$f":"T11+1","v":2039},{"$f":"U11+1","v":2040},{"$f":"V11+1","v":2041},{"$f":"W11+1","v":2042},{"$f":"X11+1","v":2043},{"$f":"Y11+1","v":2044},{"$f":"Z11+1","v":2045},{"$f":"AA11+1","v":2046},{"$f":"AB11+1","v":2047},{"$f":"AC11+1","v":2048},{"$f":"AD11+1","v":2049},{"$f":"AE11+1","v":2050},{"$f":"AF11+1","v":2051},{"$f":"AG11+1","v":2052},{"$f":"AH11+1","v":2053},{"$f":"AI11+1","v":2054},{"$f":"AJ11+1","v":2055},{"$f":"AK11+1","v":2056},{"$f":"AL11+1","v":2057},{"$f":"AM11+1","v":2058},{"$f":"AN11+1","v":2059},{"$f":"AO11+1","v":2060},{"$f":"AP11+1","v":2061},{"$f":"AQ11+1","v":2062},{"$f":"AR11+1","v":2063},{"$f":"AS11+1","v":2064},{"$f":"AT11+1","v":2065},{"$f":"AU11+1","v":2066},{"$f":"AV11+1","v":2067},{"$f":"AW11+1","v":2068},{"$f":"AX11+1","v":2069},{"$f":"AY11+1","v":2070},{"$f":"AZ11+1","v":2071},{"$f":"BA11+1","v":2072},{"$f":"BB11+1","v":2073},{"$f":"BC11+1","v":2074},{"$f":"BD11+1","v":2075},{"$f":"BE11+1","v":2076},{"$f":"BF11+1","v":2077},{"$f":"BG11+1","v":2078},{"$f":"BH11+1","v":2079},{"$f":"BI11+1","v":2080},{"$f":"BJ11+1","v":2081},{"$f":"BK11+1","v":2082},{"$f":"BL11+1","v":2083},{"$f":"BM11+1","v":2084},{"$f":"BN11+1","v":2085},{"$f":"BO11+1","v":2086},{"$f":"BP11+1","v":2087},{"$f":"BQ11+1","v":2088},{"$f":"BR11+1","v":2089},{"$f":"BS11+1","v":2090},{"$f":"BT11+1","v":2091},{"$f":"BU11+1","v":2092},{"$f":"BV11+1","v":2093},{"$f":"BW11+1","v":2094},{"$f":"BX11+1","v":2095},{"$f":"BY11+1","v":2096},{"$f":"BZ11+1","v":2097},{"$f":"CA11+1","v":2098},{"$f":"CB11+1","v":2099},{"$f":"CC11+1","v":2100}]
["Residential",{"$f":"Forecasts!J71","v":41525.205793000008},{"$f":"Forecasts!K71","v":40861.151790450545},{"$f":"Forecasts!L71","v":39462.582933506055},{"$f":"Forecasts!M71","v":41815.634517538259},{"$f":"Forecasts!N71","v":42889.971549463342},{"$f":"Forecasts!O71","v":44575.141238457341},{"$f":"Forecasts!P71","v":45396.250416773313},{"$f":"Forecasts!Q71","v":45176.299715702276},{"$f":"Forecasts!R71","v":43596.344034039175},{"$f":"Forecasts!S71","v":42417.253906792401},{"$f":"Forecasts!T71","v":42068.36814170146},{"$f":"Forecasts!U71","v":44688.952870835761},{"$f":"Forecasts!V71","v":44943.684368165261},{"$f":"Forecasts!W71","v":44231.377898706138},{"$f":"Forecasts!X71","v":43197.845695149292},{"$f":"Forecasts!Y71","v":41721.459121492546},{"$f":"Forecasts!Z71","v":40876.392630019189},{"$f":"Forecasts!AA71","v":39571.2216413719},{"$f":"Forecasts!AB71","v":38973.490081891709},{"$f":"Forecasts!AC71","v":38396.358831376972},{"$f":"Forecasts!AD71","v":38213.33669041143},{"$f":"Forecasts!AE71","v":37829.535025086094},{"$f":"Forecasts!AF71","v":36731.093093764932},{"$f":"Forecasts!AG71","v":35548.258174638089},{"$f":"Forecasts!AH71","v":34595.028413548862},{"$f":"Forecasts!AI71","v":33464.147872418325},{"$f":"Forecasts!AJ71","v":32103.706151682127},{"$f":"Forecasts!AK71","v":30616.356127521321},{"$f":"Forecasts!AL71","v":29042.599633917762},{"$f":"Forecasts!AM71","v":27366.225545267775},{"$f":"Forecasts!AN71","v":25494.147580254688},{"$f":"Forecasts!AO71","v":23713.38122334193},{"$f":"Forecasts!AP71","v":21870.397860056306},{"$f":"Forecasts!AQ71","v":20196.754575722374},{"$f":"Forecasts!AR71","v":18662.721828427064},{"$f":"Forecasts!AS71","v":17225.816508330347},{"$f":"Forecasts!AT71","v":16875.750531241705},{"$f":"Forecasts!AU71","v":16012.854852149907},{"$f":"Forecasts!AV71","v":14873.293321274112},{"$f":"Forecasts!AW71","v":13749.60972198098},{"$f":"Forecasts!AX71","v":12713.804760956969},{"$f":"Forecasts!AY71","v":11742.044769445016},{"$f":"Forecasts!AZ71","v":10819.804701170386},{"$f":"Forecasts!BA71","v":9939.469334590045},{"$f":"Forecasts!BB71","v":9095.6370976456928},{"$f":"Forecasts!BC71","v":8285.3224262341173},{"$f":"Forecasts!BD71","v":7511.1382651831364},{"$f":"Forecasts!BE71","v":6778.969692463209},{"$f":"Forecasts!BF71","v":6093.9141210199468},{"$f":"Forecasts!BG71","v":5457.5546617319033},{"$f":"Forecasts!BH71","v":4868.4710708604016},{"$f":"Forecasts!BI71","v":4323.6418057215515},{"$f":"Forecasts!BJ71","v":3819.7509146087878},{"$f":"Forecasts!BK71","v":3353.3292616787098},{"$f":"Forecasts!BL71","v":2956.4210682272374},{"$f":"Forecasts!BM71","v":2624.0792563821092},{"$f":"Forecasts!BN71","v":2331.8984963649827},{"$f":"Forecasts!BO71","v":2066.0692843091192},{"$f":"Forecasts!BP71","v":1819.7952737964097},{"$f":"Forecasts!BQ71","v":1572.6647285620256},{"$f":"Forecasts!BR71","v":1323.5231235611602},{"$f":"Forecasts!BS71","v":1076.0252845662524},{"$f":"Forecasts!BT71","v":1700.7775252351039},{"$f":"Forecasts!BU71","v":1687.1371681089256},{"$f":"Forecasts!BV71","v":1673.550190298336},{"$f":"Forecasts!BW71","v":1660.045768270712},{"$f":"Forecasts!BX71","v":1646.6233584270851},{"$f":"Forecasts!BY71","v":1633.2824195917788},{"$f":"Forecasts!BZ71","v":1620.0224129782425},{"$f":"Forecasts!CA71","v":1606.8428021544764},{"$f":"Forecasts!CB71","v":1593.7430530080364},{"$f":"Forecasts!CC71","v":1580.6797884944808},{"$f":"Forecasts!CD71","v":1567.6957713747793},{"$f":"Forecasts!CE71","v":1554.7904724429354},{"$f":"Forecasts!CF71","v":1541.9633646918649},{"$f":"Forecasts!CG71","v":1529.2139232760937},{"$f":"Forecasts!CH71","v":1516.5416254739075},{"$f":"Forecasts!CI71","v":1503.9203819493005},{"$f":"Forecasts!CJ71","v":1491.3532562193027},{"$f":"Forecasts!CK71","v":1478.8622260129591},{"$f":"Forecasts!CL71","v":1479.004921505066}]
["Commercial",{"$f":"Forecasts!J141","v":5036.2170700000006},{"$f":"Forecasts!K141","v":4810.3086861822776},{"$f":"Forecasts!L141","v":4376.6485881976432},{"$f":"Forecasts!M141","v":4209.9910047808053},{"$f":"Forecasts!N141","v":3908.8226360114772},{"$f":"Forecasts!O141","v":4009.3166490614799},{"$f":"Forecasts!P141","v":3984.3146062124943},{"$f":"Forecasts!Q141","v":3693.6489490109011},{"$f":"Forecasts!R141","v":3283.922552149862},{"$f":"Forecasts!S141","v":2894.5520157667429},{"$f":"Forecasts!T141","v":2593.0223003646147},{"$f":"Forecasts!U141","v":2600.6718282706097},{"$f":"Forecasts!V141","v":2444.8520367128472},{"$f":"Forecasts!W141","v":2234.8103307906181},{"$f":"Forecasts!X141","v":2020.2635210633348},{"$f":"Forecasts!Y141","v":2159.302863917133},{"$f":"Forecasts!Z141","v":2021.956341922202},{"$f":"Forecasts!AA141","v":1862.5278362469794},{"$f":"Forecasts!AB141","v":1696.3185648550045},{"$f":"Forecasts!AC141","v":1561.8217987692044},{"$f":"Forecasts!AD141","v":1462.4974143266677},{"$f":"Forecasts!AE141","v":1356.693118843521},{"$f":"Forecasts!AF141","v":1231.6343427249208},{"$f":"Forecasts!AG141","v":1126.043270531721},{"$f":"Forecasts!AH141","v":1045.1272516664462},{"$f":"Forecasts!AI141","v":967.93656793042533},{"$f":"Forecasts!AJ141","v":896.98177942292932},{"$f":"Forecasts!AK141","v":833.49796172456092},{"$f":"Forecasts!AL141","v":776.20930309561072},{"$f":"Forecasts!AM141","v":725.13161842333523},{"$f":"Forecasts!AN141","v":674.53867293025337},{"$f":"Forecasts!AO141","v":631.83393716823741},{"$f":"Forecasts!AP141","v":586.70678254570453},{"$f":"Forecasts!AQ141","v":549.99019625632309},{"$f":"Forecasts!AR141","v":516.07412516250781},{"$f":"Forecasts!AS141","v":485.02160542000212},{"$f":"Forecasts!AT141","v":455.87757952234927},{"$f":"Forecasts!AU141","v":428.86162243796622},{"$f":"Forecasts!AV141","v":404.27822060534089},{"$f":"Forecasts!AW141","v":381.33472544208672},{"$f":"Forecasts!AX141","v":360.49071957436621},{"$f":"Forecasts!AY141","v":340.58973159863808},{"$f":"Forecasts!AZ141","v":322.58862864035638},{"$f":"Forecasts!BA141","v":305.70844683088137},{"$f":"Forecasts!BB141","v":289.66575108964503},{"$f":"Forecasts!BC141","v":274.90511762378355},{"$f":"Forecasts!BD141","v":260.81404947335443},{"$f":"Forecasts!BE141","v":247.74107766240897},{"$f":"Forecasts!BF141","v":236.43513023232464},{"$f":"Forecasts!BG141","v":226.33030523567044},{"$f":"Forecasts!BH141","v":216.64657930538979},{"$f":"Forecasts!BI141","v":207.62945867220097},{"$f":"Forecasts!BJ141","v":199.31446034801905},{"$f":"Forecasts!BK141","v":191.64456146832646},{"$f":"Forecasts!BL141","v":184.51840957699821},{"$f":"Forecasts!BM141","v":177.65147465454129},{"$f":"Forecasts!BN141","v":171.19360554512954},{"$f":"Forecasts!BO141","v":165.15291138220542},{"$f":"Forecasts!BP141","v":159.61462413811057},{"$f":"Forecasts!BQ141","v":154.69632688034605},{"$f":"Forecasts!BR141","v":150.31116186799841},{"$f":"Forecasts!BS141","v":146.37885045034824},{"$f":"Forecasts!BT141","v":142.83078645986507},{"$f":"Forecasts!BU141","v":139.30811179373276},{"$f":"Forecasts!BV141","v":135.98206069138052},{"$f":"Forecasts!BW141","v":132.92001569843455},{"$f":"Forecasts!BX141","v":129.87980109652989},{"$f":"Forecasts!BY141","v":126.86131238207507},{"$f":"Forecasts!BZ141","v":123.8644459679069},{"$f":"Forecasts!CA141","v":121.25299166783864},{"$f":"Forecasts!CB141","v":118.66010323598076},{"$f":"Forecasts!CC141","v":117.10574230866561},{"$f":"Forecasts!CD141","v":115.56174998737932},{"$f":"Forecasts!CE141","v":114.26562337865327},{"$f":"Forecasts!CF141","v":113.52963903276685},{"$f":"Forecasts!CG141","v":112.79763807695944},{"$f":"Forecasts!CH141","v":112.06959425513152},{"$f":"Forecasts!CI141","v":111.34548139313428},{"$f":"Forecasts!CJ141","v":110.62527339651979},{"$f":"Forecasts!CK141","v":109.90894424824397},{"$f":"Forecasts!CL141","v":109.19646800632147}]
["Multinet",{"$f":"SUM(B12:B13)","v":46561.422863000007},45671.460476632827,43839.231521703696,46025.625522319067,46798.794185474821,48584.457887518824,49380.565022985807,48869.948664713178,46880.266586189035,45311.805922559142,44661.390442066077,47289.624699106367,47388.536404878105,46466.188229496758,45218.10921621263,43880.761985409677,42898.348971941392,41433.749477618876,40669.808646746715,39958.180630146177,39675.834104738096,39186.228143929613,37962.727436489855,36674.301445169811,35640.155665215309,34432.08444034875,33000.687931105058,31449.854089245884,29818.808937013371,28091.357163691111,26168.68625318494,24345.215160510168,{"$f":"SUM(AH12:AH13)","v":22457.104642602011},20746.744771978698,19178.795953589572,17710.838113750349,17331.628110764053,16441.716474587873,15277.571541879453,14130.944447423066,13074.295480531335,12082.634501043654,11142.393329810742,10245.177781420927,9385.3028487353386,8560.2275438579018,7771.9523146564907,7026.7107701256182,6330.3492512522716,5683.8849669675737,5085.117650165791,4531.2712643937521,4019.0653749568069,3544.9738231470365,3140.9394778042356,2801.7307310366505,2503.0921019101124,2231.2221956913245,1979.4098979345204,1727.3610554423717,1473.8342854291586,1222.4041350166005,1843.608311694969,1826.4452799026583,{"$f":"SUM(BN12:BN13)","v":1809.5322509897164},1792.9657839691465,1776.5031595236151,1760.1437319738538,1743.8868589461495,1728.095793822315,1712.4031562440173,1697.7855308031465,1683.2575213621585,1669.0560958215888,1655.4930037246318,1642.0115613530531,1628.611219729039,1615.2658633424348,1601.9785296158225,1588.771170261203,1588.2013895113876]
[]
[]
[]
[]
[]
[]
[]
[]
[]
[]
[]
[]
[]
[]
[]
[]
[]
[]
[]
[]
[]
[]
[]
[]
[]
[]
[]
[]
[]
[]
[]
[]
[]
[]
["Residential",null,null,2022,{"$f":"D49+1","v":2023},{"$f":"E49+1","v":2024},{"$f":"F49+1","v":2025},{"$f":"G49+1","v":2026},{"$f":"H49+1","v":2027},{"$f":"I49+1","v":2028},{"$f":"J49+1","v":2029},{"$f":"K49+1","v":2030},{"$f":"L49+1","v":2031},{"$f":"M49+1","v":2032},{"$f":"N49+1","v":2033},{"$f":"O49+1","v":2034},{"$f":"P49+1","v":2035},{"$f":"Q49+1","v":2036},{"$f":"R49+1","v":2037},{"$f":"S49+1","v":2038},{"$f":"T49+1","v":2039},{"$f":"U49+1","v":2040},{"$f":"V49+1","v":2041},{"$f":"W49+1","v":2042},{"$f":"X49+1","v":2043},{"$f":"Y49+1","v":2044},{"$f":"Z49+1","v":2045},{"$f":"AA49+1","v":2046},{"$f":"AB49+1","v":2047},{"$f":"AC49+1","v":2048},{"$f":"AD49+1","v":2049},{"$f":"AE49+1","v":2050},{"$f":"AF49+1","v":2051},{"$f":"AG49+1","v":2052},{"$f":"AH49+1","v":2053},{"$f":"AI49+1","v":2054},{"$f":"AJ49+1","v":2055},{"$f":"AK49+1","v":2056},{"$f":"AL49+1","v":2057},{"$f":"AM49+1","v":2058},{"$f":"AN49+1","v":2059},{"$f":"AO49+1","v":2060},{"$f":"AP49+1","v":2061},{"$f":"AQ49+1","v":2062},{"$f":"AR49+1","v":2063},{"$f":"AS49+1","v":2064},{"$f":"AT49+1","v":2065},{"$f":"AU49+1","v":2066},{"$f":"AV49+1","v":2067},{"$f":"AW49+1","v":2068},{"$f":"AX49+1","v":2069},{"$f":"AY49+1","v":2070},{"$f":"AZ49+1","v":2071},{"$f":"BA49+1","v":2072},{"$f":"BB49+1","v":2073},{"$f":"BC49+1","v":2074},{"$f":"BD49+1","v":2075},{"$f":"BE49+1","v":2076},{"$f":"BF49+1","v":2077},{"$f":"BG49+1","v":2078},{"$f":"BH49+1","v":2079},{"$f":"BI49+1","v":2080},{"$f":"BJ49+1","v":2081},{"$f":"BK49+1","v":2082},{"$f":"BL49+1","v":2083},{"$f":"BM49+1","v":2084},{"$f":"BN49+1","v":2085},{"$f":"BO49+1","v":2086},{"$f":"BP49+1","v":2087},{"$f":"BQ49+1","v":2088},{"$f":"BR49+1","v":2089},{"$f":"BS49+1","v":2090},{"$f":"BT49+1","v":2091},{"$f":"BU49+1","v":2092},{"$f":"BV49+1","v":2093},{"$f":"BW49+1","v":2094},{"$f":"BX49+1","v":2095},{"$f":"BY49+1","v":2096},{"$f":"BZ49+1","v":2097},{"$f":"CA49+1","v":2098},{"$f":"CB49+1","v":2099},{"$f":"CC49+1","v":2100}]
["Daily supply charge",null,null,{"$f":"'[15]ACIL Input-Output Interface'!D$87/365","v":0.18799999999999997},{"$f":"'[15]ACIL Input-Output Interface'!E$87/365","v":0.14969662216521476},{"$f":"'[15]ACIL Input-Output Interface'!F$87/365","v":0.14112679724034202},{"$f":"'[15]ACIL Input-Output Interface'!G$87/365","v":0.14790866489616505},{"$f":"'[15]ACIL Input-Output Interface'!H$87/365","v":0.14616270648668381},{"$f":"'[15]ACIL Input-Output Interface'!I$87/365","v":0.14819215091916932},{"$f":"'[15]ACIL Input-Output Interface'!J$87/365","v":0.15243251254719412},{"$f":"'[15]ACIL Input-Output Interface'!K$87/365","v":0.15444247547054657},{"$f":"'[15]ACIL Input-Output Interface'!L$87/365","v":0.14863014834611968},{"$f":"'[15]ACIL Input-Output Interface'!M$87/365","v":0.14010723835726216},{"$f":"'[15]ACIL Input-Output Interface'!N$87/365","v":0.1341040972359476},{"$f":"'[15]ACIL Input-Output Interface'!O$87/365","v":0.13933118256934668},{"$f":"'[15]ACIL Input-Output Interface'!P$87/365","v":0.14233000470774845},{"$f":"'[15]ACIL Input-Output Interface'!Q$87/365","v":0.1496118622457345},{"$f":"'[15]ACIL Input-Output Interface'!R$87/365","v":0.15207735915350964},{"$f":"'[15]ACIL Input-Output Interface'!S$87/365","v":0.16480354240905715},{"$f":"'[15]ACIL Input-Output Interface'!T$87/365","v":0.15149005389175302},{"$f":"'[15]ACIL Input-Output Interface'!U$87/365","v":0.14835778640726463},{"$f":"'[15]ACIL Input-Output Interface'!V$87/365","v":0.14730998567095629},{"$f":"'[15]ACIL Input-Output Interface'!W$87/365","v":0.14537404951615004},{"$f":"'[15]ACIL Input-Output Interface'!X$87/365","v":0.14518742807044915},{"$f":"'[15]ACIL Input-Output Interface'!Y$87/365","v":0.14669412602995785},{"$f":"'[15]ACIL Input-Output Interface'!Z$87/365","v":0.14735078168933},{"$f":"'[15]ACIL Input-Output Interface'!AA$87/365","v":0.14752959699794413},{"$f":"'[15]ACIL Input-Output Interface'!AB$87/365","v":0.15042122563910829},{"$f":"'[15]ACIL Input-Output Interface'!AC$87/365","v":0.15433287975148785},{"$f":"'[15]ACIL Input-Output Interface'!AD$87/365","v":0.15880970237397996},{"$f":"'[15]ACIL Input-Output Interface'!AE$87/365","v":0.16410673616008489},{"$f":"'[15]ACIL Input-Output Interface'!AF$87/365","v":0.17057822375507442},{"$f":"'[15]ACIL Input-Output Interface'!AG$87/365","v":0.17918565087017704},{"$f":"'[15]ACIL Input-Output Interface'!AH$87/365","v":0.1871004458501361},{"$f":"'[15]ACIL Input-Output Interface'!AI$87/365","v":0.19694534277251358},{"$f":"'[15]ACIL Input-Output Interface'!AJ$87/365","v":0.20583390337334462},{"$f":"'[15]ACIL Input-Output Interface'!AK$87/365","v":0.21546536280818732},{"$f":"'[15]ACIL Input-Output Interface'!AL$87/365","v":0.16876555267365514},{"$f":"'[15]ACIL Input-Output Interface'!AM$87/365","v":0.16863622672777329},{"$f":"'[15]ACIL Input-Output Interface'!AN$87/365","v":0.18161708836962343},{"$f":"'[15]ACIL Input-Output Interface'!AO$87/365","v":0.19389582423842655},{"$f":"'[15]ACIL Input-Output Interface'!AP$87/365","v":0.20423863217629681},{"$f":"'[15]ACIL Input-Output Interface'!AQ$87/365","v":0.21513942257330823},{"$f":"'[15]ACIL Input-Output Interface'!AR$87/365","v":0.22715091485446398},{"$f":"'[15]ACIL Input-Output Interface'!AS$87/365","v":0.24033045846113762},{"$f":"'[15]ACIL Input-Output Interface'!AT$87/365","v":0.25480729314634448},{"$f":"'[15]ACIL Input-Output Interface'!AU$87/365","v":0.27083500649350423},{"$f":"'[15]ACIL Input-Output Interface'!AV$87/365","v":0.28866963731187928},{"$f":"'[15]ACIL Input-Output Interface'!AW$87/365","v":0.30834289285969035},{"$f":"'[15]ACIL Input-Output Interface'!AX$87/365","v":0.32975712707273647},{"$f":"'[15]ACIL Input-Output Interface'!AY$87/365","v":0.35284844922988085},{"$f":"'[15]ACIL Input-Output Interface'!AZ$87/365","v":0.37770125240917152},{"$f":"'[15]ACIL Input-Output Interface'!BA$87/365","v":0.40451482807767658},{"$f":"'[15]ACIL Input-Output Interface'!BB$87/365","v":0.43351306524757066},{"$f":"'[15]ACIL Input-Output Interface'!BC$87/365","v":0.46490545290008384},{"$f":"'[15]ACIL Input-Output Interface'!BD$87/365","v":0.48715884188254538},{"$f":"'[15]ACIL Input-Output Interface'!BE$87/365","v":0.50441737677693488},{"$f":"'[15]ACIL Input-Output Interface'!BF$87/365","v":0.5241721623081449},{"$f":"'[15]ACIL Input-Output Interface'!BG$87/365","v":0.54749672841498298},{"$f":"'[15]ACIL Input-Output Interface'!BH$87/365","v":0.57456590355837611},{"$f":"'[15]ACIL Input-Output Interface'!BI$87/365","v":0.61604098888771208},{"$f":"'[15]ACIL Input-Output Interface'!BJ$87/365","v":0.66747925074252668},{"$f":"'[15]ACIL Input-Output Interface'!BK$87/365","v":0.72495997300237758},{"$f":"'[15]ACIL Input-Output Interface'!BL$87/365","v":0},{"$f":"'[15]ACIL Input-Output Interface'!BM$87/365","v":0},{"$f":"'[15]ACIL Input-Output Interface'!BN$87/365","v":0},{"$f":"'[15]ACIL Input-Output Interface'!BO$87/365","v":0},{"$f":"'[15]ACIL Input-Output Interface'!BP$87/365","v":0},{"$f":"'[15]ACIL Input-Output Interface'!BQ$87/365","v":0},{"$f":"'[15]ACIL Input-Output Interface'!BR$87/365","v":0},{"$f":"'[15]ACIL Input-Output Interface'!BS$87/365","v":0},{"$f":"'[15]ACIL Input-Output Interface'!BT$87/365","v":0},{"$f":"'[15]ACIL Input-Output Interface'!BU$87/365","v":0},{"$f":"'[15]ACIL Input-Output Interface'!BV$87/365","v":0},{"$f":"'[15]ACIL Input-Output Interface'!BW$87/365","v":0},{"$f":"'[15]ACIL Input-Output Interface'!BX$87/365","v":0},{"$f":"'[15]ACIL Input-Output Interface'!BY$87/365","v":0},{"$f":"'[15]ACIL Input-Output Interface'!BZ$87/365","v":0},{"$f":"'[15]ACIL Input-Output Interface'!CA$87/365","v":0},{"$f":"'[15]ACIL Input-Output Interface'!CB$87/365","v":0},{"$f":"'[15]ACIL Input-Output Interface'!CC$87/365","v":0},{"$f":"'[15]ACIL Input-Output Interface'!CD$87/365","v":0}]
["Average volumetric charge $/GJ",null,null,{"$f":"'[15]ACIL Input-Output Interface'!D$88","v":4.3425592630777743},{"$f":"'[15]ACIL Input-Output Interface'!E$88","v":3.4563576559013458},{"$f":"'[15]ACIL Input-Output Interface'!F$88","v":3.1310644805430212},{"$f":"'[15]ACIL Input-Output Interface'!G$88","v":3.2492200590867371},{"$f":"'[15]ACIL Input-Output Interface'!H$88","v":3.140231660511533},{"$f":"'[15]ACIL Input-Output Interface'!I$88","v":3.174091754771915},{"$f":"'[15]ACIL Input-Output Interface'!J$88","v":3.3299853442934988},{"$f":"'[15]ACIL Input-Output Interface'!K$88","v":3.5531666323680842},{"$f":"'[15]ACIL Input-Output Interface'!L$88","v":3.5697884937097495},{"$f":"'[15]ACIL Input-Output Interface'!M$88","v":3.4439763449674605},{"$f":"'[15]ACIL Input-Output Interface'!N$88","v":3.097959721244965},{"$f":"'[15]ACIL Input-Output Interface'!O$88","v":3.184270907301205},{"$f":"'[15]ACIL Input-Output Interface'!P$88","v":3.2892081289734731},{"$f":"'[15]ACIL Input-Output Interface'!Q$88","v":3.5241970256814503},{"$f":"'[15]ACIL Input-Output Interface'!R$88","v":3.6947517655638364},{"$f":"'[15]ACIL Input-Output Interface'!S$88","v":4.0675737892482635},{"$f":"'[15]ACIL Input-Output Interface'!T$88","v":3.8465693443940152},{"$f":"'[15]ACIL Input-Output Interface'!U$88","v":3.805717144622355},{"$f":"'[15]ACIL Input-Output Interface'!V$88","v":3.8157564234568491},{"$f":"'[15]ACIL Input-Output Interface'!W$88","v":3.7623143114858224},{"$f":"'[15]ACIL Input-Output Interface'!X$88","v":3.7732484693161981},{"$f":"'[15]ACIL Input-Output Interface'!Y$88","v":3.9000336324313243},{"$f":"'[15]ACIL Input-Output Interface'!Z$88","v":4.0047067004451868},{"$f":"'[15]ACIL Input-Output Interface'!AA$88","v":4.053894715361567},{"$f":"'[15]ACIL Input-Output Interface'!AB$88","v":4.1765953595850656},{"$f":"'[15]ACIL Input-Output Interface'!AC$88","v":4.3399447809017175},{"$f":"'[15]ACIL Input-Output Interface'!AD$88","v":4.5198452102344691},{"$f":"'[15]ACIL Input-Output Interface'!AE$88","v":4.7220097987243905},{"$f":"'[15]ACIL Input-Output Interface'!AF$88","v":4.9638865524202709},{"$f":"'[15]ACIL Input-Output Interface'!AG$88","v":5.3010355804005975},{"$f":"'[15]ACIL Input-Output Interface'!AH$88","v":5.6158656475932904},{"$f":"'[15]ACIL Input-Output Interface'!AI$88","v":6.035620362804444},{"$f":"'[15]ACIL Input-Output Interface'!AJ$88","v":6.4187638387125014},{"$f":"'[15]ACIL Input-Output Interface'!AK$88","v":6.8253640606798935},{"$f":"'[15]ACIL Input-Output Interface'!AL$88","v":5.4335054318419722},{"$f":"'[15]ACIL Input-Output Interface'!AM$88","v":5.2003182397755205},{"$f":"'[15]ACIL Input-Output Interface'!AN$88","v":5.5639084884234364},{"$f":"'[15]ACIL Input-Output Interface'!AO$88","v":6.0309621794339341},{"$f":"'[15]ACIL Input-Output Interface'!AP$88","v":6.4731092678958859},{"$f":"'[15]ACIL Input-Output Interface'!AQ$88","v":6.9383120443701278},{"$f":"'[15]ACIL Input-Output Interface'!AR$88","v":7.4572040764800338},{"$f":"'[15]ACIL Input-Output Interface'!AS$88","v":8.0427746374562599},{"$f":"'[15]ACIL Input-Output Interface'!AT$88","v":8.7071945789525245},{"$f":"'[15]ACIL Input-Output Interface'!AU$88","v":9.4682026550716536},{"$f":"'[15]ACIL Input-Output Interface'!AV$88","v":10.347858334523504},{"$f":"'[15]ACIL Input-Output Interface'!AW$88","v":11.365446053595754},{"$f":"'[15]ACIL Input-Output Interface'!AX$88","v":12.538894110356022},{"$f":"'[15]ACIL Input-Output Interface'!AY$88","v":13.890008110301313},{"$f":"'[15]ACIL Input-Output Interface'!AZ$88","v":15.4521164222429},{"$f":"'[15]ACIL Input-Output Interface'!BA$88","v":17.273963489497937},{"$f":"'[15]ACIL Input-Output Interface'!BB$88","v":19.423703438603027},{"$f":"'[15]ACIL Input-Output Interface'!BC$88","v":21.993130620091794},{"$f":"'[15]ACIL Input-Output Interface'!BD$88","v":24.520918677531643},{"$f":"'[15]ACIL Input-Output Interface'!BE$88","v":26.846842671581335},{"$f":"'[15]ACIL Input-Output Interface'!BF$88","v":29.22209341141166},{"$f":"'[15]ACIL Input-Output Interface'!BG$88","v":31.893293755811815},{"$f":"'[15]ACIL Input-Output Interface'!BH$88","v":35.077604212423978},{"$f":"'[15]ACIL Input-Output Interface'!BI$88","v":39.685523129513243},{"$f":"'[15]ACIL Input-Output Interface'!BJ$88","v":46.496953306631355},{"$f":"'[15]ACIL Input-Output Interface'!BK$88","v":56.639387085102236},{"$f":"'[15]ACIL Input-Output Interface'!BL$88","v":0},{"$f":"'[15]ACIL Input-Output Interface'!BM$88","v":0},{"$f":"'[15]ACIL Input-Output Interface'!BN$88","v":0},{"$f":"'[15]ACIL Input-Output Interface'!BO$88","v":0},{"$f":"'[15]ACIL Input-Output Interface'!BP$88","v":0},{"$f":"'[15]ACIL Input-Output Interface'!BQ$88","v":0},{"$f":"'[15]ACIL Input-Output Interface'!BR$88","v":0},{"$f":"'[15]ACIL Input-Output Interface'!BS$88","v":0},{"$f":"'[15]ACIL Input-Output Interface'!BT$88","v":0},{"$f":"'[15]ACIL Input-Output Interface'!BU$88","v":0},{"$f":"'[15]ACIL Input-Output Interface'!BV$88","v":0},{"$f":"'[15]ACIL Input-Output Interface'!BW$88","v":0},{"$f":"'[15]ACIL Input-Output Interface'!BX$88","v":0},{"$f":"'[15]ACIL Input-Output Interface'!BY$88","v":0},{"$f":"'[15]ACIL Input-Output Interface'!BZ$88","v":0},{"$f":"'[15]ACIL Input-Output Interface'!CA$88","v":0},{"$f":"'[15]ACIL Input-Output Interface'!CB$88","v":0},{"$f":"'[15]ACIL Input-Output Interface'!CC$88","v":0},{"$f":"'[15]ACIL Input-Output Interface'!CD$88","v":0}]
["Commercial"]
["Daily supply charge",null,null,{"$f":"'[15]ACIL Input-Output Interface'!D$89/365","v":0.30999175451584787},{"$f":"'[15]ACIL Input-Output Interface'!E$89/365","v":0.25399575292685461},{"$f":"'[15]ACIL Input-Output Interface'!F$89/365","v":0.25960113875330304},{"$f":"'[15]ACIL Input-Output Interface'!G$89/365","v":0.29553933803206722},{"$f":"'[15]ACIL Input-Output Interface'!H$89/365","v":0.29748240597024728},{"$f":"'[15]ACIL Input-Output Interface'!I$89/365","v":0.30867567172961302},{"$f":"'[15]ACIL Input-Output Interface'!J$89/365","v":0.33760320225333212},{"$f":"'[15]ACIL Input-Output Interface'!K$89/365","v":0.36414764165720664},{"$f":"'[15]ACIL Input-Output Interface'!L$89/365","v":0.37996225155803448},{"$f":"'[15]ACIL Input-Output Interface'!M$89/365","v":0.38804080832042048},{"$f":"'[15]ACIL Input-Output Interface'!N$89/365","v":0.39129412270507757},{"$f":"'[15]ACIL Input-Output Interface'!O$89/365","v":0.42824630879764747},{"$f":"'[15]ACIL Input-Output Interface'!P$89/365","v":0.46337326365632825},{"$f":"'[15]ACIL Input-Output Interface'!Q$89/365","v":0},{"$f":"'[15]ACIL Input-Output Interface'!R$89/365","v":0},{"$f":"'[15]ACIL Input-Output Interface'!S$89/365","v":0},{"$f":"'[15]ACIL Input-Output Interface'!T$89/365","v":0},{"$f":"'[15]ACIL Input-Output Interface'!U$89/365","v":0},{"$f":"'[15]ACIL Input-Output Interface'!V$89/365","v":0},{"$f":"'[15]ACIL Input-Output Interface'!W$89/365","v":0},{"$f":"'[15]ACIL Input-Output Interface'!X$89/365","v":0},{"$f":"'[15]ACIL Input-Output Interface'!Y$89/365","v":0},{"$f":"'[15]ACIL Input-Output Interface'!Z$89/365","v":0},{"$f":"'[15]ACIL Input-Output Interface'!AA$89/365","v":0},{"$f":"'[15]ACIL Input-Output Interface'!AB$89/365","v":0},{"$f":"'[15]ACIL Input-Output Interface'!AC$89/365","v":0},{"$f":"'[15]ACIL Input-Output Interface'!AD$89/365","v":0},{"$f":"'[15]ACIL Input-Output Interface'!AE$89/365","v":0},{"$f":"'[15]ACIL Input-Output Interface'!AF$89/365","v":0},{"$f":"'[15]ACIL Input-Output Interface'!AG$89/365","v":0},{"$f":"'[15]ACIL Input-Output Interface'!AH$89/365","v":0},{"$f":"'[15]ACIL Input-Output Interface'!AI$89/365","v":0},{"$f":"'[15]ACIL Input-Output Interface'!AJ$89/365","v":0},{"$f":"'[15]ACIL Input-Output Interface'!AK$89/365","v":0},{"$f":"'[15]ACIL Input-Output Interface'!AL$89/365","v":0},{"$f":"'[15]ACIL Input-Output Interface'!AM$89/365","v":0},{"$f":"'[15]ACIL Input-Output Interface'!AN$89/365","v":0},{"$f":"'[15]ACIL Input-Output Interface'!AO$89/365","v":0},{"$f":"'[15]ACIL Input-Output Interface'!AP$89/365","v":0},{"$f":"'[15]ACIL Input-Output Interface'!AQ$89/365","v":0},{"$f":"'[15]ACIL Input-Output Interface'!AR$89/365","v":0},{"$f":"'[15]ACIL Input-Output Interface'!AS$89/365","v":0},{"$f":"'[15]ACIL Input-Output Interface'!AT$89/365","v":0},{"$f":"'[15]ACIL Input-Output Interface'!AU$89/365","v":0},{"$f":"'[15]ACIL Input-Output Interface'!AV$89/365","v":0},{"$f":"'[15]ACIL Input-Output Interface'!AW$89/365","v":0},{"$f":"'[15]ACIL Input-Output Interface'!AX$89/365","v":0},{"$f":"'[15]ACIL Input-Output Interface'!AY$89/365","v":0},{"$f":"'[15]ACIL Input-Output Interface'!AZ$89/365","v":0},{"$f":"'[15]ACIL Input-Output Interface'!BA$89/365","v":0},{"$f":"'[15]ACIL Input-Output Interface'!BB$89/365","v":0},{"$f":"'[15]ACIL Input-Output Interface'!BC$89/365","v":0},{"$f":"'[15]ACIL Input-Output Interface'!BD$89/365","v":0},{"$f":"'[15]ACIL Input-Output Interface'!BE$89/365","v":0},{"$f":"'[15]ACIL Input-Output Interface'!BF$89/365","v":0},{"$f":"'[15]ACIL Input-Output Interface'!BG$89/365","v":0},{"$f":"'[15]ACIL Input-Output Interface'!BH$89/365","v":0},{"$f":"'[15]ACIL Input-Output Interface'!BI$89/365","v":0},{"$f":"'[15]ACIL Input-Output Interface'!BJ$89/365","v":0},{"$f":"'[15]ACIL Input-Output Interface'!BK$89/365","v":0},{"$f":"'[15]ACIL Input-Output Interface'!BL$89/365","v":0},{"$f":"'[15]ACIL Input-Output Interface'!BM$89/365","v":0},{"$f":"'[15]ACIL Input-Output Interface'!BN$89/365","v":0},{"$f":"'[15]ACIL Input-Output Interface'!BO$89/365","v":0},{"$f":"'[15]ACIL Input-Output Interface'!BP$89/365","v":0},{"$f":"'[15]ACIL Input-Output Interface'!BQ$89/365","v":0},{"$f":"'[15]ACIL Input-Output Interface'!BR$89/365","v":0},{"$f":"'[15]ACIL Input-Output Interface'!BS$89/365","v":0},{"$f":"'[15]ACIL Input-Output Interface'!BT$89/365","v":0},{"$f":"'[15]ACIL Input-Output Interface'!BU$89/365","v":0},{"$f":"'[15]ACIL Input-Output Interface'!BV$89/365","v":0},{"$f":"'[15]ACIL Input-Output Interface'!BW$89/365","v":0},{"$f":"'[15]ACIL Input-Output Interface'!BX$89/365","v":0},{"$f":"'[15]ACIL Input-Output Interface'!BY$89/365","v":0},{"$f":"'[15]ACIL Input-Output Interface'!BZ$89/365","v":0},{"$f":"'[15]ACIL Input-Output Interface'!CA$89/365","v":0},{"$f":"'[15]ACIL Input-Output Interface'!CB$89/365","v":0},{"$f":"'[15]ACIL Input-Output Interface'!CC$89/365","v":0},{"$f":"'[15]ACIL Input-Output Interface'!CD$89/365","v":0}]
["Average volumetric charge $/GJ",null,null,{"$f":"'[15]ACIL Input-Output Interface'!D$90","v":1.5824249809321553},{"$f":"'[15]ACIL Input-Output Interface'!E$90","v":1.2310811410498672},{"$f":"'[15]ACIL Input-Output Interface'!F$90","v":1.2265278542388272},{"$f":"'[15]ACIL Input-Output Interface'!G$90","v":1.4136115095127204},{"$f":"'[15]ACIL Input-Output Interface'!H$90","v":1.383174574719445},{"$f":"'[15]ACIL Input-Output Interface'!I$90","v":1.4323652269781255},{"$f":"'[15]ACIL Input-Output Interface'!J$90","v":1.6231280863518174},{"$f":"'[15]ACIL Input-Output Interface'!K$90","v":1.9070900277727196},{"$f":"'[15]ACIL Input-Output Interface'!L$90","v":2.1522714354205501},{"$f":"'[15]ACIL Input-Output Interface'!M$90","v":2.330160078518281},{"$f":"'[15]ACIL Input-Output Interface'!N$90","v":2.2124544852884869},{"$f":"'[15]ACIL Input-Output Interface'!O$90","v":2.4426643785806861},{"$f":"'[15]ACIL Input-Output Interface'!P$90","v":2.7400567915325826},{"$f":"'[15]ACIL Input-Output Interface'!Q$90","v":0},{"$f":"'[15]ACIL Input-Output Interface'!R$90","v":0},{"$f":"'[15]ACIL Input-Output Interface'!S$90","v":0},{"$f":"'[15]ACIL Input-Output Interface'!T$90","v":0},{"$f":"'[15]ACIL Input-Output Interface'!U$90","v":0},{"$f":"'[15]ACIL Input-Output Interface'!V$90","v":0},{"$f":"'[15]ACIL Input-Output Interface'!W$90","v":0},{"$f":"'[15]ACIL Input-Output Interface'!X$90","v":0},{"$f":"'[15]ACIL Input-Output Interface'!Y$90","v":0},{"$f":"'[15]ACIL Input-Output Interface'!Z$90","v":0},{"$f":"'[15]ACIL Input-Output Interface'!AA$90","v":0},{"$f":"'[15]ACIL Input-Output Interface'!AB$90","v":0},{"$f":"'[15]ACIL Input-Output Interface'!AC$90","v":0},{"$f":"'[15]ACIL Input-Output Interface'!AD$90","v":0},{"$f":"'[15]ACIL Input-Output Interface'!AE$90","v":0},{"$f":"'[15]ACIL Input-Output Interface'!AF$90","v":0},{"$f":"'[15]ACIL Input-Output Interface'!AG$90","v":0},{"$f":"'[15]ACIL Input-Output Interface'!AH$90","v":0},{"$f":"'[15]ACIL Input-Output Interface'!AI$90","v":0},{"$f":"'[15]ACIL Input-Output Interface'!AJ$90","v":0},{"$f":"'[15]ACIL Input-Output Interface'!AK$90","v":0},{"$f":"'[15]ACIL Input-Output Interface'!AL$90","v":0},{"$f":"'[15]ACIL Input-Output Interface'!AM$90","v":0},{"$f":"'[15]ACIL Input-Output Interface'!AN$90","v":0},{"$f":"'[15]ACIL Input-Output Interface'!AO$90","v":0},{"$f":"'[15]ACIL Input-Output Interface'!AP$90","v":0},{"$f":"'[15]ACIL Input-Output Interface'!AQ$90","v":0},{"$f":"'[15]ACIL Input-Output Interface'!AR$90","v":0},{"$f":"'[15]ACIL Input-Output Interface'!AS$90","v":0},{"$f":"'[15]ACIL Input-Output Interface'!AT$90","v":0},{"$f":"'[15]ACIL Input-Output Interface'!AU$90","v":0},{"$f":"'[15]ACIL Input-Output Interface'!AV$90","v":0},{"$f":"'[15]ACIL Input-Output Interface'!AW$90","v":0},{"$f":"'[15]ACIL Input-Output Interface'!AX$90","v":0},{"$f":"'[15]ACIL Input-Output Interface'!AY$90","v":0},{"$f":"'[15]ACIL Input-Output Interface'!AZ$90","v":0},{"$f":"'[15]ACIL Input-Output Interface'!BA$90","v":0},{"$f":"'[15]ACIL Input-Output Interface'!BB$90","v":0},{"$f":"'[15]ACIL Input-Output Interface'!BC$90","v":0},{"$f":"'[15]ACIL Input-Output Interface'!BD$90","v":0},{"$f":"'[15]ACIL Input-Output Interface'!BE$90","v":0},{"$f":"'[15]ACIL Input-Output Interface'!BF$90","v":0},{"$f":"'[15]ACIL Input-Output Interface'!BG$90","v":0},{"$f":"'[15]ACIL Input-Output Interface'!BH$90","v":0},{"$f":"'[15]ACIL Input-Output Interface'!BI$90","v":0},{"$f":"'[15]ACIL Input-Output Interface'!BJ$90","v":0},{"$f":"'[15]ACIL Input-Output Interface'!BK$90","v":0},{"$f":"'[15]ACIL Input-Output Interface'!BL$90","v":0},{"$f":"'[15]ACIL Input-Output Interface'!BM$90","v":0},{"$f":"'[15]ACIL Input-Output Interface'!BN$90","v":0},{"$f":"'[15]ACIL Input-Output Interface'!BO$90","v":0},{"$f":"'[15]ACIL Input-Output Interface'!BP$90","v":0},{"$f":"'[15]ACIL Input-Output Interface'!BQ$90","v":0},{"$f":"'[15]ACIL Input-Output Interface'!BR$90","v":0},{"$f":"'[15]ACIL Input-Output Interface'!BS$90","v":0},{"$f":"'[15]ACIL Input-Output Interface'!BT$90","v":0},{"$f":"'[15]ACIL Input-Output Interface'!BU$90","v":0},{"$f":"'[15]ACIL Input-Output Interface'!BV$90","v":0},{"$f":"'[15]ACIL Input-Output Interface'!BW$90","v":0},{"$f":"'[15]ACIL Input-Output Interface'!BX$90","v":0},{"$f":"'[15]ACIL Input-Output Interface'!BY$90","v":0},{"$f":"'[15]ACIL Input-Output Interface'!BZ$90","v":0},{"$f":"'[15]ACIL Input-Output Interface'!CA$90","v":0},{"$f":"'[15]ACIL Input-Output Interface'!CB$90","v":0},{"$f":"'[15]ACIL Input-Output Interface'!CC$90","v":0},{"$f":"'[15]ACIL Input-Output Interface'!CD$90","v":0}]

{"sheet":"Scenarios","index":4,"n_rows":223,"n_cols":102,"rows_kept":223,"cut":false,"hidden":false,"merged":[[26,9,26,10],[26,11,26,12]]}
["Scenario",{"$f":"'[15]ACIL Input-Output Interface'!$C$31","v":1},null,null,null,"5 is not a Scenario, it’s a baseline for model calibration"]
[]
["Discount Factor",1,2,3,4,5,"Selected Input"]
["High income",6.6461183918555475E-2,6.6461183918555475E-2,7.646118391855547E-2,7.1461183918555465E-2,0.05,{"$f":"IF($B$1=$B$3,B4,IF($B$1=$C$3,C4,IF($B$1=$D$3,D4,IF($B$1=E4,$E$3,F4))))","v":6.6461183918555475E-2}]
["Medium income",9.7045657485977668E-2,9.7045657485977668E-2,0.10704565748597766,0.10204565748597766,0.1,{"$f":"IF($B$1=$B$3,B5,IF($B$1=$C$3,C5,IF($B$1=$D$3,D5,IF($B$1=E5,$E$3,F5))))","v":9.7045657485977668E-2}]
["Low income",0.1735068414045331,0.1735068414045331,0.18350684140453311,0.1785068414045331,0.15,0.1735068414045331]
["Commercial",4.7199999999999999E-2,4.7199999999999999E-2,5.7200000000000001E-2,5.2200000000000003E-2,0.03,4.7199999999999999E-2]
[null,null,null,null,null,"*In original ACIL model"]
["Appliance efficiency",1,2,3,4,5,"Selected Input",null,"Appliance costs",-5.0000000000000001E-3]
["Cooking",null,null,null,null,null,null,null,"Cooking","real % change (p.a.)"]
["Electric cooktop (induction)",6.4000000000000003E-3,6.0000000000000001E-3,5.7000000000000002E-3,0,0,{"$f":"IF($B$1=$B$9,B11,IF($B$1=$C$9,C11,IF($B$1=$D$9,D11,IF($B$1=$E$9,E11,F11))))","v":6.4000000000000003E-3},null,"Electric cooktop (induction)",{"$f":"J9","v":-5.0000000000000001E-3},{"$f":"IF(AND($B$1=5,$J$9=0),0,J11)","v":-5.0000000000000001E-3}]
["Gas stove",0,0,5.7000000000000002E-3,6.4000000000000003E-3,0,{"$f":"IF($B$1=$B$9,B12,IF($B$1=$C$9,C12,IF($B$1=$D$9,D12,IF($B$1=$E$9,E12,F12))))","v":0},null,"Gas stove",0,{"$f":"IF(AND($B$1=5,$J$9=0),0,J12)","v":0}]
[]
["Hot water",null,null,null,null,null,null,null,"Hot water"]
["Heat pump hot water",6.4000000000000003E-3,6.4000000000000003E-3,0,0,0,{"$f":"IF($B$1=$B$9,B15,IF($B$1=$C$9,C15,IF($B$1=$D$9,D15,IF($B$1=$E$9,E15,F15))))","v":6.4000000000000003E-3},null,"Heat pump hot water",{"$f":"J9","v":-5.0000000000000001E-3},{"$f":"IF(AND($B$1=5,$J$9=0),0,J15)","v":-5.0000000000000001E-3}]
["Gas instant hot water",0,0,0,8.2000000000000007E-3,0,0,null,"Gas instant hot water",0,0]
[]
["Room heating",null,null,null,null,null,null,null,"Room heating"]
["RCAC split system",0,0,0,2E-3,0,0,null,"RCAC split system",{"$f":"J9","v":-5.0000000000000001E-3},-5.0000000000000001E-3]
["Gas wall furnace",0,0,0,0,0,0,null,"Gas wall furnace",0,0]
[]
["Ducted heating",null,null,null,null,null,null,null,"Ducted heating"]
["Ducted RCAC ",2.8999999999999998E-3,2.8999999999999998E-3,2E-3,0,0,2.8999999999999998E-3,null,"Ducted RCAC",{"$f":"J9","v":-5.0000000000000001E-3},-5.0000000000000001E-3]
["Ducted gas heating",0,0,2E-3,2E-3,0,0,null,"Ducted gas heating",0,0]
[]
[]
["Maintenance costs",1,2,3,4,5,"Selected Input",null,"Connection/Disconnection Sensitity","Residential",null,"Commercial"]
["Cooking",null,null,null,null,null,null,null,1,0.86,-2.3999999999999998E-3,0.86,-5.942857142857143E-4]
["Electric cooktop (induction)",-6.4000000000000003E-3,-6.0000000000000001E-3,-5.7000000000000002E-3,0,0,{"$f":"IF($B$1=$B$27,B29,IF($B$1=$C$27,C29,IF($B$1=$D$27,D29,IF($B$1=$E$27,E29,F29))))","v":-6.4000000000000003E-3},null,2,0.86,-2.3999999999999998E-3,0.86,-5.942857142857143E-4]
["Gas stove",0,0,-5.7000000000000002E-3,-6.4000000000000003E-3,0,{"$f":"IF($B$1=$B$27,B30,IF($B$1=$C$27,C30,IF($B$1=$D$27,D30,IF($B$1=$E$27,E30,F30))))","v":0},null,3,"Not used for GSR"]
[null,null,null,null,null,null,null,null,4,"Not used for GSR"]
["Hot water",null,null,null,null,null,null,null,"Selected Input",{"$f":"IF($B$1=1,J28,IF($B$1=2,J29,IF($B$1=3,J30,IF($B$1=4,J31,J30))))","v":0.86},{"$f":"IF($B$1=1,K28,IF($B$1=2,K29,IF($B$1=3,K30,IF($B$1=4,K31,K30))))","v":-2.3999999999999998E-3},{"$f":"IF($B$1=1,L28,IF($B$1=2,L29,IF($B$1=3,L30,IF($B$1=4,L31,L30))))","v":0.86},{"$f":"IF($B$1=1,M28,IF($B$1=2,M29,IF($B$1=3,M30,IF($B$1=4,M31,M30))))","v":-5.942857142857143E-4}]
["Heat pump hot water",-6.4000000000000003E-3,-6.4000000000000003E-3,0,0,0,-6.4000000000000003E-3]
["Gas instant hot water",0,0,0,-8.2000000000000007E-3,0,0]
[]
["Room heating"]
["RCAC split system",0,0,0,-2E-3,0,0]
["Gas wall furnace",0,0,0,0,0,0]
[]
["Ducted heating"]
["Ducted RCAC",-2.8999999999999998E-3,-2.8999999999999998E-3,-2E-3,0,0,-2.8999999999999998E-3]
["Ducted gas heating",0,0,-2E-3,-2E-3,0,0]
[]
["Elasticities",1,2,3,4,5,"Selected Input"]
["Residential"]
["Weather",0.35555229999999999,0.35555229999999999,0.35555229999999999,0.35555229999999999,0.35555229999999999,{"$f":"IF($B$1=$B$44,B46,IF($B$1=$C$44,C46,IF($B$1=$D$44,D46,IF($B$1=$E$44,E46,F46))))","v":0.35555229999999999}]
["Gas price",-0.8,-0.7,-0.6,-0.4,-0.1,{"$f":"IF($B$1=$B$44,B47,IF($B$1=$C$44,C47,IF($B$1=$D$44,D47,IF($B$1=$E$44,E47,F47))))","v":-0.8}]
["Electricity price",8.0000000000000002E-3,8.0000000000000002E-3,8.0000000000000002E-3,8.0000000000000002E-3,0.08,8.0000000000000002E-3,null,"Gas Price",0]
["Commercial"]
["Weather",0.15518709999999999,0.15518709999999999,0.15518709999999999,0.15518709999999999,0.15518709999999999,0.15518709999999999]
["Gas price",-0.9,-0.8,-0.7,-0.5,-0.35,-0.9,null,"Percent of status quo in prices",0]
["Electricity price",8.0000000000000002E-3,8.0000000000000002E-3,8.0000000000000002E-3,8.0000000000000002E-3,0.3,8.0000000000000002E-3,null,"Upper NPV electrification threshold",1]
[null,null,null,null,null,"*In original ACIL model",null,null,"Electric Variable Charge Growth",0]
[null,null,null,null,{"$f":"(1+J48)","v":1},{"$f":"(1+$J$48)*E54","v":1},{"$f":"(1+$J$48)*F54","v":1},1,1,1,1,1,1,1,1,1,1,1,1,1,1,1,1,1,1,1,1,1,1,1,1,1,1,1,1,1,1,1,1,1,1,1,1,1,1,1,1,1,1,1,1,1,1,1,1,1,1,1,1,1,1,1,1,1,1,1,1,1,1,1,{"$f":"(1+$J$48)*BR54","v":1},1,1,1,1,1,1,1,1,1,1,1]
["Gas (Energy only) Prices","Selected Input",2021,{"$f":"C55+1","v":2022},2023,2024,2025,2026,2027,2028,2029,2030,2031,2032,2033,2034,2035,2036,2037,2038,2039,2040,2041,2042,2043,2044,2045,2046,2047,2048,2049,2050,2051,2052,2053,2054,2055,2056,2057,2058,2059,2060,2061,2062,2063,2064,2065,2066,2067,2068,2069,2070,2071,2072,2073,2074,2075,2076,2077,2078,2079,2080,2081,2082,2083,2084,2085,{"$f":"BO55+1","v":2086},2087,2088,2089,2090,2091,2092,2093,2094,2095,2096,2097,2098,2099,2100]
[null,{"$f":"B1","v":1},{"$f":"AVERAGE(C57:C60)","v":10.161976079612581},{"$f":"AVERAGE(D57:D60)","v":11.629700012968726},{"$f":"IF($B$56=$A57,E57,IF($B$56=$A58,E58,IF($B$56=$A59,E59,IF($B$56=$A60,E60,E61))))*E54","v":11.389819717851116},{"$f":"IF($B$56=$A57,F57,IF($B$56=$A58,F58,IF($B$56=$A59,F59,IF($B$56=$A60,F60,F61))))*F54","v":11.379817762999998},10.590305944089806,10.485469229354225,10.72866273558742,11.452282942814172,11.881908588593626,11.992942149009698,12.063198454550994,12.086235498502335,12.193207618766369,12.464167730461451,12.883986483326076,13.027570823144309,13.281335402611642,13.679796326945015,13.903556774781583,13.838619147363364,13.946771571223326,14.454289973422695,14.837324636027441,14.982260333601763,15.167313847809018,15.340801027764273,15.427525724840899,15.50171046620896,15.565671805927307,15.721494759103264,15.757028678496848,15.950114342934661,15.960114342934661,15.970114342934661,15.980114342934661,15.99011434293466,16.000114342934662,16.010114342934664,16.020114342934665,16.030114342934667,16.040114342934668,16.05011434293467,16.060114342934671,16.070114342934673,16.080114342934674,16.090114342934676,16.100114342934678,16.110114342934679,16.120114342934681,16.130114342934682,16.140114342934684,16.150114342934685,16.160114342934687,16.170114342934689,16.18011434293469,16.190114342934692,16.200114342934693,16.210114342934695,16.220114342934696,16.230114342934698,16.240114342934699,16.250114342934701,16.260114342934703,16.270114342934704,16.280114342934706,16.290114342934707,16.300114342934709,{"$f":"IF($B$56=$A57,BR57,IF($B$56=$A58,BR58,IF($B$56=$A59,BR59,IF($B$56=$A60,BR60,BR61))))*BR54","v":16.31011434293471},16.320114342934712,16.330114342934714,16.340114342934715,16.350114342934717,16.360114342934718,16.37011434293472,16.380114342934721,16.390114342934723,16.400114342934724,16.410114342934726,16.420114342934728,16.430114342934729]
[1,null,9.9431057252832815,11.212950632764256,11.389819717851116,11.379817762999998,10.590305944089806,10.485469229354225,10.72866273558742,11.452282942814172,11.881908588593626,11.992942149009698,12.063198454550994,12.086235498502335,12.193207618766369,12.464167730461451,12.883986483326076,13.027570823144309,13.281335402611642,13.679796326945015,13.903556774781583,13.838619147363364,13.946771571223326,14.454289973422695,14.837324636027441,14.982260333601763,15.167313847809018,15.340801027764273,15.427525724840899,15.50171046620896,15.565671805927307,15.721494759103264,15.757028678496848,15.950114342934661,15.960114342934661,15.970114342934661,15.980114342934661,15.99011434293466,16.000114342934662,16.010114342934664,16.020114342934665,16.030114342934667,16.040114342934668,16.05011434293467,16.060114342934671,16.070114342934673,16.080114342934674,16.090114342934676,16.100114342934678,16.110114342934679,16.120114342934681,16.130114342934682,16.140114342934684,16.150114342934685,16.160114342934687,16.170114342934689,16.18011434293469,16.190114342934692,16.200114342934693,16.210114342934695,16.220114342934696,16.230114342934698,16.240114342934699,16.250114342934701,16.260114342934703,16.270114342934704,16.280114342934706,16.290114342934707,16.300114342934709,16.31011434293471,16.320114342934712,16.330114342934714,16.340114342934715,16.350114342934717,16.360114342934718,16.37011434293472,16.380114342934721,16.390114342934723,16.400114342934724,16.410114342934726,16.420114342934728,16.430114342934729]
[2,null,10.215139344461811,11.683614656109064,12.015219310496112,12.118071330995441,11.427114545330271,11.408311863213685,11.68606805738836,12.362997930779603,12.736369806164733,12.689985094710186,12.703812787945147,12.679943145749148,12.734615072234572,12.93987619100794,13.281510086833899,13.376333010918101,13.571518150686495,13.898730000834325,14.070511422135031,15.27707343079401,15.036227084562785,14.793193475314457,14.564347129083231,14.341500782852009,14.122467173603678,13.911620827372452,13.674841877347134,13.362875744739538,13.050909612131941,12.738943479524348,12.631769746521087,12.53289069109414,12.441610504070288,12.357298962204055,12.279384308423321,12.207347022136265,12.140714353964844,12.079055518834656,12.021977457610841,11.969121091023723,11.920158000959884,11.874787483695529,11.832733927637259,11.793744474869507,11.757586931499835,11.724047896616277,11.692931083767901,11.664055812368247,11.637255649398753,11.612377184336234,11.589278922412241,11.567830283188457,11.547910693047953,11.529408761596386,11.512221533172728,11.496253805713776,11.481417510123601,11.467631144088044,11.454819254962167,11.442911966959123,11.431844548394462,11.421557015200694,11.411993767331545,11.403103255031514,11.394837672260248,11.387152674838557,11.380007121128209,11.373362833275134,11.367184377238733,11.361438860001744,11.356095742508218,11.351126667013663,11.346505297653636,11.342207173146335,11.338209570642917,11.33449137982733,11.331032986446798,11.327816164525501,11.324823976578497,11.322040681201235]
[3,null,10.294022557446379,11.97577401076189,13.096892721841334,13.545058370502607,12.798430767806416,12.447339375113827,12.378090832728605,12.821967992882744,13.174729649837149,13.317683844672331,13.410094109780673,13.526404547367878,13.661172115474844,13.694654422923961,13.723153218105685,13.741181732809935,13.831361869769124,14.02614982949448,14.238952894101125,14.307235217952369,14.237105900541826,14.154859325901034,14.16155764565686,14.242749856673743,14.299461273115902,14.282917867240526,14.37135777474461,14.789627003497364,15.347839569339889,15.644085989164546,15.577203653034696,15.7170456998614,15.714808270968431,15.713428746260282,15.712836737193161,15.71296828601348,15.713765192933383,15.715174424355995,15.71714759109388,15.719640487192919,15.722612681368762,15.726027154232822,15.729849975468083,15.734050015944128,15.738598690461469,15.743469727409014,15.748638962122914,15.754084151164497,15.759784805101468,15.765722037690253,15.77187842962606,15.778237905258321,15.784785620868035,15.791507863275193,15.798391957692882,15.805426183873255,15.812599699702201,15.819902471496739,15.827325210343682,15.834859313892272,15.842496813077979,15.850230323311488,15.858052999716751,15.865958496045682,15.873940926935894,15.881994833211897,15.890115149960373,15.898297177137051,15.906536552486282,15.914829226575709,15.923171439767225,15.931559700962186,15.939990767973939,15.94846162939416,15.956969487831579,15.965511744412522,15.974085984442427,15.982689964136375,15.991321598334496,15.999978949125397]
[4,null,10.195636691258853,11.646460752239696,11.963495893944007,12.052809580665729,11.352216422838039,11.319184116223006,11.582960685899234,12.249441829317691,12.609744192020084,12.526733659484641,12.539212470876677,12.515193946837757,12.570466991480258,12.777079228410702,13.120664242393737,13.217888284635018,13.41577454256049,13.746137510865395,13.921520050323178,13.823170894246257,13.60889192785174,13.393245922071536,13.19396695567702,13.002187989282504,12.816541983502297,12.639763017107782,12.419631980885109,12.105516966434591,11.791401951984071,11.477286937533554,11.380727620206954,11.291641481072146,11.209401623436511,11.133440240948239,11.063242202977708,10.998339441909124,10.938306029150359,10.88275384429604,10.831328756528222,10.783707249550748,10.739593431563074,10.698716380339455,10.660827780676522,10.625699817539536,10.593123293365686,10.562905942328273,10.534870918056724,10.508855434450437,10.484709541906998,10.462295023580035,10.441484398249443,10.422160018077204,10.404213250977712,10.387543738587651,10.372058721906608,10.357672427620802,10.344305508939343,10.331884535483397,10.320341527388111,10.309613529318376,10.299642220572988,10.290373557866848,10.281757447745518,10.273747445907208,10.266300480990202,10.259376600633502,10.252938737839541,10.246952495863676,10.241385950029267,10.236209465021743,10.231395526353065,10.226918584811019,10.222754912817763,10.218882471720679,10.215280789126854,10.211930845471983,10.208814969085921,10.205916739081445,10.203220895450928,10.20071325580812]
[5,null,{"$f":"C56","v":10.161976079612581},{"$f":"D56","v":11.629700012968726},{"$f":"D61","v":11.629700012968726},{"$f":"E61","v":11.629700012968726},11.629700012968726,11.629700012968726,11.629700012968726,11.629700012968726,11.629700012968726,11.629700012968726,11.629700012968726,11.629700012968726,11.629700012968726,11.629700012968726,11.629700012968726,11.629700012968726,11.629700012968726,11.629700012968726,11.629700012968726,11.629700012968726,11.629700012968726,11.629700012968726,11.629700012968726,11.629700012968726,11.629700012968726,11.629700012968726,11.629700012968726,11.629700012968726,11.629700012968726,11.629700012968726,11.629700012968726,11.629700012968726,11.629700012968726,11.629700012968726,11.629700012968726,11.629700012968726,11.629700012968726,11.629700012968726,11.629700012968726,11.629700012968726,11.629700012968726,11.629700012968726,11.629700012968726,11.629700012968726,11.629700012968726,11.629700012968726,11.629700012968726,11.629700012968726,11.629700012968726,11.629700012968726,11.629700012968726,11.629700012968726,11.629700012968726,11.629700012968726,11.629700012968726,11.629700012968726,11.629700012968726,11.629700012968726,11.629700012968726,11.629700012968726,11.629700012968726,11.629700012968726,11.629700012968726,11.629700012968726,11.629700012968726,11.629700012968726,11.629700012968726,{"$f":"BQ61","v":11.629700012968726},11.629700012968726,11.629700012968726,11.629700012968726,11.629700012968726,11.629700012968726,11.629700012968726,11.629700012968726,11.629700012968726,11.629700012968726,11.629700012968726,11.629700012968726,11.629700012968726]
[null,null,null,{"$f":"Prices!AB3/Prices!$AB$3","v":1},{"$f":"Prices!AC3/Prices!$AB$3*'[16]ACIL Input-Output Interface'!E$120","v":0.94297480079636731},{"$f":"Prices!AD3/Prices!$AB$3*'[16]ACIL Input-Output Interface'!F$120","v":0.92833762852626478},{"$f":"Prices!AE3/Prices!$AB$3*'[16]ACIL Input-Output Interface'!G$120","v":0.89869622350043721},{"$f":"Prices!AF3/Prices!$AB$3*'[16]ACIL Input-Output Interface'!H$120","v":0.89301430132035153},{"$f":"Prices!AG3/Prices!$AB$3*'[16]ACIL Input-Output Interface'!I$120","v":0.91281537518032441},{"$f":"Prices!AH3/Prices!$AB$3*'[16]ACIL Input-Output Interface'!J$120","v":0.96753740066875804},{"$f":"Prices!AI3/Prices!$AB$3*'[16]ACIL Input-Output Interface'!K$120","v":1.0155926699119548},{"$f":"Prices!AJ3/Prices!$AB$3*'[16]ACIL Input-Output Interface'!L$120","v":1.0431355556907704},{"$f":"Prices!AK3/Prices!$AB$3*'[16]ACIL Input-Output Interface'!M$120","v":0.95252160209619452},{"$f":"Prices!AL3/Prices!$AB$3*'[16]ACIL Input-Output Interface'!N$120","v":0.93767636166283497},{"$f":"Prices!AM3/Prices!$AB$3*'[16]ACIL Input-Output Interface'!O$120","v":0.9481806575559637},{"$f":"Prices!AN3/Prices!$AB$3*'[16]ACIL Input-Output Interface'!P$120","v":0.96791034647546803},{"$f":"Prices!AO3/Prices!$AB$3*'[16]ACIL Input-Output Interface'!Q$120","v":1.0011144444202817},{"$f":"Prices!AP3/Prices!$AB$3*'[16]ACIL Input-Output Interface'!R$120","v":1.018018870103421},{"$f":"Prices!AQ3/Prices!$AB$3*'[16]ACIL Input-Output Interface'!S$120","v":1.050048436722159},{"$f":"Prices!AR3/Prices!$AB$3*'[16]ACIL Input-Output Interface'!T$120","v":1.0607703650600817},{"$f":"Prices!AS3/Prices!$AB$3*'[16]ACIL Input-Output Interface'!U$120","v":1.0709495289113422},{"$f":"Prices!AT3/Prices!$AB$3*'[16]ACIL Input-Output Interface'!V$120","v":1.06735856458622},{"$f":"Prices!AU3/Prices!$AB$3*'[16]ACIL Input-Output Interface'!W$120","v":1.070576749918231},{"$f":"Prices!AV3/Prices!$AB$3*'[16]ACIL Input-Output Interface'!X$120","v":1.0973483375294397},{"$f":"Prices!AW3/Prices!$AB$3*'[16]ACIL Input-Output Interface'!Y$120","v":1.1237921507977717},{"$f":"Prices!AX3/Prices!$AB$3*'[16]ACIL Input-Output Interface'!Z$120","v":1.1364101807179565},{"$f":"Prices!AY3/Prices!$AB$3*'[16]ACIL Input-Output Interface'!AA$120","v":1.14826507178255},{"$f":"Prices!AZ3/Prices!$AB$3*'[16]ACIL Input-Output Interface'!AB$120","v":1.1631872748819638},{"$f":"Prices!BA3/Prices!$AB$3*'[16]ACIL Input-Output Interface'!AC$120","v":1.1771478306632053},{"$f":"Prices!BB3/Prices!$AB$3*'[16]ACIL Input-Output Interface'!AD$120","v":1.1895761731936823},{"$f":"Prices!BC3/Prices!$AB$3*'[16]ACIL Input-Output Interface'!AE$120","v":1.2023031832754292},{"$f":"Prices!BD3/Prices!$AB$3*'[16]ACIL Input-Output Interface'!AF$120","v":1.2216327998679677},{"$f":"Prices!BE3/Prices!$AB$3*'[16]ACIL Input-Output Interface'!AG$120","v":0},{"$f":"Prices!BF3/Prices!$AB$3*'[16]ACIL Input-Output Interface'!AH$120","v":0},{"$f":"Prices!BG3/Prices!$AB$3*'[16]ACIL Input-Output Interface'!AI$120","v":0},{"$f":"Prices!BH3/Prices!$AB$3*'[16]ACIL Input-Output Interface'!AJ$120","v":0},{"$f":"Prices!BI3/Prices!$AB$3*'[16]ACIL Input-Output Interface'!AK$120","v":0},{"$f":"Prices!BJ3/Prices!$AB$3*'[16]ACIL Input-Output Interface'!AL$120","v":0},{"$f":"Prices!BK3/Prices!$AB$3*'[16]ACIL Input-Output Interface'!AM$120","v":0},{"$f":"Prices!BL3/Prices!$AB$3*'[16]ACIL Input-Output Interface'!AN$120","v":0},{"$f":"Prices!BM3/Prices!$AB$3*'[16]ACIL Input-Output Interface'!AO$120","v":0},{"$f":"Prices!BN3/Prices!$AB$3*'[16]ACIL Input-Output Interface'!AP$120","v":0},{"$f":"Prices!BO3/Prices!$AB$3*'[16]ACIL Input-Output Interface'!AQ$120","v":0},{"$f":"Prices!BP3/Prices!$AB$3*'[16]ACIL Input-Output Interface'!AR$120","v":0},{"$f":"Prices!BQ3/Prices!$AB$3*'[16]ACIL Input-Output Interface'!AS$120","v":0},{"$f":"Prices!BR3/Prices!$AB$3*'[16]ACIL Input-Output Interface'!AT$120","v":0},{"$f":"Prices!BS3/Prices!$AB$3*'[16]ACIL Input-Output Interface'!AU$120","v":0},{"$f":"Prices!BT3/Prices!$AB$3*'[16]ACIL Input-Output Interface'!AV$120","v":0},{"$f":"Prices!BU3/Prices!$AB$3*'[16]ACIL Input-Output Interface'!AW$120","v":0},{"$f":"Prices!BV3/Prices!$AB$3*'[16]ACIL Input-Output Interface'!AX$120","v":0},{"$f":"Prices!BW3/Prices!$AB$3*'[16]ACIL Input-Output Interface'!AY$120","v":0},{"$f":"Prices!BX3/Prices!$AB$3*'[16]ACIL Input-Output Interface'!AZ$120","v":0},{"$f":"Prices!BY3/Prices!$AB$3*'[16]ACIL Input-Output Interface'!BA$120","v":0},{"$f":"Prices!BZ3/Prices!$AB$3*'[16]ACIL Input-Output Interface'!BB$120","v":0},{"$f":"Prices!CA3/Prices!$AB$3*'[16]ACIL Input-Output Interface'!BC$120","v":0},{"$f":"Prices!CB3/Prices!$AB$3*'[16]ACIL Input-Output Interface'!BD$120","v":0},{"$f":"Prices!CC3/Prices!$AB$3*'[16]ACIL Input-Output Interface'!BE$120","v":0},{"$f":"Prices!CD3/Prices!$AB$3*'[16]ACIL Input-Output Interface'!BF$120","v":0},{"$f":"Prices!CE3/Prices!$AB$3*'[16]ACIL Input-Output Interface'!BG$120","v":0},{"$f":"Prices!CF3/Prices!$AB$3*'[16]ACIL Input-Output Interface'!BH$120","v":0},{"$f":"Prices!CG3/Prices!$AB$3*'[16]ACIL Input-Output Interface'!BI$120","v":0},{"$f":"Prices!CH3/Prices!$AB$3*'[16]ACIL Input-Output Interface'!BJ$120","v":0},{"$f":"Prices!CI3/Prices!$AB$3*'[16]ACIL Input-Output Interface'!BK$120","v":0},{"$f":"Prices!CJ3/Prices!$AB$3*'[16]ACIL Input-Output Interface'!BL$120","v":0},{"$f":"Prices!CK3/Prices!$AB$3*'[16]ACIL Input-Output Interface'!BM$120","v":0},{"$f":"Prices!CL3/Prices!$AB$3*'[16]ACIL Input-Output Interface'!BN$120","v":0},{"$f":"Prices!CM3/Prices!$AB$3*'[16]ACIL Input-Output Interface'!BO$120","v":0},{"$f":"Prices!CN3/Prices!$AB$3*'[16]ACIL Input-Output Interface'!BP$120","v":0},{"$f":"Prices!CO3/Prices!$AB$3*'[16]ACIL Input-Output Interface'!BQ$120","v":0},{"$f":"Prices!CP3/Prices!$AB$3*'[16]ACIL Input-Output Interface'!BR$120","v":0},{"$f":"Prices!CQ3/Prices!$AB$3*'[16]ACIL Input-Output Interface'!BS$120","v":0},{"$f":"Prices!CR3/Prices!$AB$3*'[16]ACIL Input-Output Interface'!BT$120","v":0},{"$f":"Prices!CS3/Prices!$AB$3*'[16]ACIL Input-Output Interface'!BU$120","v":0},{"$f":"Prices!CT3/Prices!$AB$3*'[16]ACIL Input-Output Interface'!BV$120","v":0},{"$f":"Prices!CU3/Prices!$AB$3*'[16]ACIL Input-Output Interface'!BW$120","v":0},{"$f":"Prices!CV3/Prices!$AB$3*'[16]ACIL Input-Output Interface'!BX$120","v":0},{"$f":"Prices!CW3/Prices!$AB$3*'[16]ACIL Input-Output Interface'!BY$120","v":0},{"$f":"Prices!CX3/Prices!$AB$3*'[16]ACIL Input-Output Interface'!BZ$120","v":0},{"$f":"Prices!CY3/Prices!$AB$3*'[16]ACIL Input-Output Interface'!CA$120","v":0},{"$f":"Prices!CZ3/Prices!$AB$3*'[16]ACIL Input-Output Interface'!CB$120","v":0},{"$f":"Prices!DA3/Prices!$AB$3*'[16]ACIL Input-Output Interface'!CC$120","v":0},{"$f":"Prices!DB3/Prices!$AB$3*'[16]ACIL Input-Output Interface'!CD$120","v":0}]
["Electricity Prices","Selected Input",2021,2022,2023,2024,2025,2026,2027,2028,2029,2030,2031,2032,2033,2034,2035,2036,2037,2038,2039,2040,2041,2042,2043,2044,2045,2046,2047,2048,2049,2050,2051,2052,2053,2054,2055,2056,2057,2058,2059,2060,2061,2062,2063,2064,2065,2066,2067,2068,2069,2070,2071,2072,2073,2074,2075,2076,2077,2078,2079,2080,2081,2082,2083,2084,2085,2086,2087,2088,2089,2090,2091,2092,2093,2094,2095,2096,2097,2098,2099,2100]
[]
["Residential - Fixed component",{"$f":"$B$1","v":1},null,{"$f":"IF($B$1=$B72,D72,IF($B$1=$B79,D79,IF($B$1=$B86,D86,IF($B$1=$B93,D93,D101))))","v":3.4608187444376797},{"$f":"IF($B$1=$B72,E72,IF($B$1=$B79,E79,IF($B$1=$B86,E86,IF($B$1=$B93,E93,E100))))","v":3.4209212935214319},3.3201795633668305,3.329404466535407,3.3105816587301198,3.2452301283125298,3.3964307452394054,3.3906764928182267,3.5964223111405653,4.467623866822839,5.6173597642699526,6.5742912115132102,7.677224037824903,8.7733322286161073,10.006766526446832,11.281756844750188,12.600621372945708,13.962399311754035,15.365635507750193,15.181647936889801,14.992316661181633,14.796147446697649,14.594162795049607,14.387333986459016,14.337335689861479,14.289737920700638,14.244686197581808,14.200612787183246,14.159247526324393,{"$f":"AF65","v":14.159247526324393},{"$f":"AG65","v":14.159247526324393},14.159247526324393,14.159247526324393,14.159247526324393,14.159247526324393,14.159247526324393,14.159247526324393,14.159247526324393,14.159247526324393,14.159247526324393,14.159247526324393,14.159247526324393,14.159247526324393,14.159247526324393,14.159247526324393,14.159247526324393,14.159247526324393,14.159247526324393,14.159247526324393,14.159247526324393,14.159247526324393,14.159247526324393,14.159247526324393,14.159247526324393,14.159247526324393,14.159247526324393,14.159247526324393,14.159247526324393,14.159247526324393,14.159247526324393,14.159247526324393,14.159247526324393,14.159247526324393,14.159247526324393,14.159247526324393,14.159247526324393,14.159247526324393,14.159247526324393,14.159247526324393,14.159247526324393,14.159247526324393,14.159247526324393,14.159247526324393,14.159247526324393,14.159247526324393,14.159247526324393,14.159247526324393,14.159247526324393,14.159247526324393]
["Residential - Variable Component",{"$f":"B1","v":1},{"$f":"(AVERAGE(C73,C80,C87,C94)-$F$70)/100","v":0.24},{"$f":"(AVERAGE(D73,D80,D87,D94)-$F$70)/100","v":0.26630479191499279},{"$f":"(IF($B$66=$B73,E73,IF($B$66=$B80,E80,IF($B$66=$B87,E87,IF($B$66=$B94,E94,E101))))*(1-$J$51)+E101*$J$51)/100-$F$70/100","v":0.26579453609630688},{"$f":"(IF($B$66=$B73,F73,IF($B$66=$B80,F80,IF($B$66=$B87,F87,IF($B$66=$B94,F94,F101))))*(1-$J$51)+F101*$J$51)/100-$F$70/100","v":0.25790896548606684},{"$f":"(IF($B$66=$B73,G73,IF($B$66=$B80,G80,IF($B$66=$B87,G87,IF($B$66=$B94,G94,G101))))*(1-$J$51)+G101*$J$51)/100-$F$70/100","v":0.25863104585134156},0.25715768838761938,0.25204228976577414,0.26387753558951549,0.26342712081396308,0.27953189860220029,0.27256619412964128,0.2710689998541983,0.26215177851183608,0.25801494635144401,0.25214038869683159,0.24868343163205717,0.2445131269065024,0.2397486981870548,0.23440987182857856,0.22850605775931657,0.22574624419641065,0.22290627506078817,0.21996373684352838,0.21693396706880777,0.21383153493994889,0.21308156049098584,0.21236759395357321,0.2116918181067908,0.21103071695081235,0.21041023803792955,{"$f":"AF66","v":0.21041023803792955},0.21041023803792955,0.21041023803792955,0.21041023803792955,0.21041023803792955,0.21041023803792955,0.21041023803792955,0.21041023803792955,0.21041023803792955,0.21041023803792955,0.21041023803792955,0.21041023803792955,0.21041023803792955,0.21041023803792955,0.21041023803792955,0.21041023803792955,0.21041023803792955,0.21041023803792955,0.21041023803792955,0.21041023803792955,0.21041023803792955,0.21041023803792955,0.21041023803792955,0.21041023803792955,0.21041023803792955,0.21041023803792955,0.21041023803792955,0.21041023803792955,0.21041023803792955,0.21041023803792955,0.21041023803792955,0.21041023803792955,0.21041023803792955,0.21041023803792955,0.21041023803792955,0.21041023803792955,0.21041023803792955,0.21041023803792955,0.21041023803792955,0.21041023803792955,0.21041023803792955,0.21041023803792955,0.21041023803792955,0.21041023803792955,0.21041023803792955,0.21041023803792955,0.21041023803792955,0.21041023803792955,0.21041023803792955,0.21041023803792955]
["Commercial - Fixed component",{"$f":"$B$1","v":1},null,{"$f":"IF($B$1=$B75,D75,IF($B$1=$B82,D82,IF($B$1=$B89,D89,IF($B$1=$B96,D96,D103))))","v":2.0238379989343405},1.9891512684768315,1.9159378080111953,1.9231500316016643,1.8998038588956325,1.8559281578450815,1.9601588028178312,1.9521041170259907,2.0895669732787594,2.6003433702284773,3.2766371843861046,3.8477766980654673,4.523050950828825,5.1615366926695225,5.9075754321337168,6.6807177604346037,7.482966583982166,8.3130578262088601,9.1699958193581796,9.0351247658764446,8.8966381969063359,8.7534093727729498,8.6061129531951241,8.4554847675174756,8.4121247456415738,8.3712526186425045,8.3329508173729891,8.296043251638471,8.2617811404299815,8.2617811404299815,8.2617811404299815,8.2617811404299815,8.2617811404299815,8.2617811404299815,8.2617811404299815,8.2617811404299815,8.2617811404299815,8.2617811404299815,8.2617811404299815,8.2617811404299815,8.2617811404299815,8.2617811404299815,8.2617811404299815,8.2617811404299815,8.2617811404299815,8.2617811404299815,8.2617811404299815,8.2617811404299815,8.2617811404299815,8.2617811404299815,8.2617811404299815,8.2617811404299815,8.2617811404299815,8.2617811404299815,8.2617811404299815,8.2617811404299815,8.2617811404299815,8.2617811404299815,8.2617811404299815,8.2617811404299815,8.2617811404299815,8.2617811404299815,8.2617811404299815,8.2617811404299815,8.2617811404299815,8.2617811404299815,8.2617811404299815,8.2617811404299815,8.2617811404299815,8.2617811404299815,8.2617811404299815,8.2617811404299815,8.2617811404299815,8.2617811404299815,8.2617811404299815,8.2617811404299815,8.2617811404299815,8.2617811404299815,8.2617811404299815]
["Commericial - Variable Component",{"$f":"B66","v":1},{"$f":"AVERAGE(C76,C83,C90,C97)/100","v":0.14915444015028181},{"$f":"AVERAGE(D76,D83,D90,D97)/100","v":0.15660813080882138},{"$f":"(IF($B$66=$B76,E76,IF($B$66=$B83,E83,IF($B$66=$B90,E90,IF($B$66=$B97,E97,E104))))*(1-$J$51)+E104*$J$51)/100","v":0.15570104620945943},{"$f":"(IF($B$66=$B76,F76,IF($B$66=$B83,F83,IF($B$66=$B90,F90,IF($B$66=$B97,F97,F104))))*(1-$J$51)+F104*$J$51)/100","v":0.14997025410140449},{"$f":"(IF($B$66=$B76,G76,IF($B$66=$B83,G83,IF($B$66=$B90,G90,IF($B$66=$B97,G97,G104))))*(1-$J$51)+G104*$J$51)/100","v":0.15053479173930495},0.14870736736343063,0.14527299177570804,0.15343165759792621,0.15280117613351835,0.16356109714741177,0.15979644462292611,0.15927011020941848,0.15458917189227525,0.15317561207175287,0.14950349586147493,0.14798028080624925,0.1459649276579886,0.14355136185683198,0.14074300208448373,0.13754993729037268,0.13552687148814666,0.13344957295359502,0.13130114059159426,0.12909169429792686,0.12683227151276213,0.1261818711846236,0.12556878927963755,0.12499426226059483,0.12444064877457707,0.12392671710644972,0.12392671710644972,0.12392671710644972,0.12392671710644972,0.12392671710644972,0.12392671710644972,0.12392671710644972,0.12392671710644972,0.12392671710644972,0.12392671710644972,0.12392671710644972,0.12392671710644972,0.12392671710644972,0.12392671710644972,0.12392671710644972,0.12392671710644972,0.12392671710644972,0.12392671710644972,0.12392671710644972,0.12392671710644972,0.12392671710644972,0.12392671710644972,0.12392671710644972,0.12392671710644972,0.12392671710644972,0.12392671710644972,0.12392671710644972,0.12392671710644972,0.12392671710644972,0.12392671710644972,0.12392671710644972,0.12392671710644972,0.12392671710644972,0.12392671710644972,0.12392671710644972,0.12392671710644972,0.12392671710644972,0.12392671710644972,0.12392671710644972,0.12392671710644972,0.12392671710644972,0.12392671710644972,0.12392671710644972,0.12392671710644972,0.12392671710644972,0.12392671710644972,0.12392671710644972,0.12392671710644972,0.12392671710644972,0.12392671710644972,0.12392671710644972]
[null,null,null,{"$f":"D66/$D$66","v":1},{"$f":"E66/$D$66","v":0.9980839405291333},0.96847286761701989,0.97118434854863311,0.96565175015591431,0.94644293838403259,0.99088542001808178,0.98919406939568588,1.0496690524871581,1.0235121650257319,1.0178900571219398,0.98440503690041603,0.96887083591723355,0.94681130926595336,0.9338301043844508,0.91817021071311955,0.90027932454022475,0.88023152021764817,0.85806213292721389,0.84769876866681082,0.83703441255365063,0.82598489971499667,0.81460782402314158,0.80295789423198249,0.80014166834445721,0.79746065561359902,0.79492305258391671,0.79244055442372785,0.7901105966771137,0.7901105966771137,0.7901105966771137,0.7901105966771137,0.7901105966771137,0.7901105966771137,0.7901105966771137,0.7901105966771137,0.7901105966771137,0.7901105966771137,0.7901105966771137,0.7901105966771137,0.7901105966771137,0.7901105966771137,0.7901105966771137,0.7901105966771137,0.7901105966771137,0.7901105966771137,0.7901105966771137,0.7901105966771137,0.7901105966771137,0.7901105966771137,0.7901105966771137,0.7901105966771137,0.7901105966771137,0.7901105966771137,0.7901105966771137,0.7901105966771137,0.7901105966771137,0.7901105966771137,0.7901105966771137,0.7901105966771137,0.7901105966771137,0.7901105966771137,0.7901105966771137,0.7901105966771137,0.7901105966771137,{"$f":"BQ66/$D$66","v":0.7901105966771137},0.7901105966771137,0.7901105966771137,0.7901105966771137,0.7901105966771137,0.7901105966771137,0.7901105966771137,0.7901105966771137,0.7901105966771137,0.7901105966771137,0.7901105966771137,0.7901105966771137,0.7901105966771137,0.7901105966771137]
["Electric Dreams","OLD",24.197847485693632,"Updated",24,{"$f":"C70-E70","v":0.19784748569363231}]
["Residential (cents/kWh real 2021)"]
["Fixed component",1,3.0913844314073802,3.4608187444376797,3.4209212935214319,3.3201795633668305,3.329404466535407,3.3105816587301198,3.2452301283125298,3.3964307452394054,3.3906764928182267,3.5964223111405653,4.467623866822839,5.6173597642699526,6.5742912115132102,7.677224037824903,8.7733322286161073,10.006766526446832,11.281756844750188,12.600621372945708,13.962399311754035,15.365635507750193,15.181647936889801,14.992316661181633,14.796147446697649,14.594162795049607,14.387333986459016,14.337335689861479,14.289737920700638,14.244686197581808,14.200612787183246,14.159247526324393]
["Variable Component",1,24.197847485693632,27.089598855037039,26.777301095324319,25.988744034300318,26.060952070827788,25.913616324455571,25.402076462271047,26.58560104464518,26.540559567089939,28.151037345913657,27.45446689865776,27.304747471113462,26.413025336877237,25.99934212083803,25.411886355376787,25.066190648899351,24.649160176343873,24.172717304399114,23.638834668551489,23.048453261625291,22.772471905334697,22.488474991772449,22.194221170046472,21.891244192574412,21.581000979688522,21.506003534792217,21.434606881050954,21.367029296372714,21.300919180774869,21.238871289486589]
["Commercial (cents/kWh real 2021)"]
["Fixed component",1,1.9055154159000098,2.0238379989343405,1.9891512684768315,1.9159378080111953,1.9231500316016643,1.8998038588956325,1.8559281578450815,1.9601588028178312,1.9521041170259907,2.0895669732787594,2.6003433702284773,3.2766371843861046,3.8477766980654673,4.523050950828825,5.1615366926695225,5.9075754321337168,6.6807177604346037,7.482966583982166,8.3130578262088601,9.1699958193581796,9.0351247658764446,8.8966381969063359,8.7534093727729498,8.6061129531951241,8.4554847675174756,8.4121247456415738,8.3712526186425045,8.3329508173729891,8.296043251638471,8.2617811404299815]
["Variable Component",1,14.915444015028182,15.841615405842418,15.570104620945944,14.99702541014045,15.053479173930494,14.870736736343064,14.527299177570804,15.343165759792621,15.280117613351836,16.356109714741176,15.97964446229261,15.927011020941848,15.458917189227524,15.317561207175288,14.950349586147492,14.798028080624924,14.59649276579886,14.355136185683198,14.074300208448374,13.754993729037269,13.552687148814664,13.344957295359501,13.130114059159425,12.909169429792685,12.683227151276213,12.618187118462359,12.556878927963755,12.499426226059484,12.444064877457707,12.392671710644972]
["Dual Fuel"]
["Residential (cents/kWh real 2021)"]
["Fixed component",{"$f":"B72+1","v":2},3.0913844314073802,3.4048813951048027,3.3076919495106201,3.1502300980756219,3.1041174614302323,3.0299489702885274,2.931532071075365,3.0216625335896112,2.951221934179729,3.111421520414428,3.8720002622134428,4.8704845155782985,5.6659863403867803,6.6263826803642178,7.571252650084233,8.7452165888000941,9.9796702064919849,11.276259836093951,12.634415052541948,14.053179749428987,13.982398700837578,13.905809952466834,13.822098640693866,13.731773531822444,13.635332081008563,13.709363727997706,13.782343514323555,13.854447312369821,13.924452470045351,13.99379719087181]
["Variable Component",{"$f":"B73+1","v":2},24.197847485693632,26.651748604463481,25.890997092029785,24.658462623935698,24.297515425854495,23.716960701357184,22.946601281486906,23.65209852200379,23.100723913267352,24.354688032253893,23.794237428973908,23.674351535345757,22.763798552907417,22.440609975893775,21.930072508166568,21.906103805003681,21.804271516574659,21.632095211914709,21.390510462587372,21.079769624143481,20.973598051256367,20.858714928700252,20.7331479610408,20.597660297733665,20.452998121512842,20.56404559199656,20.673515271485329,20.781670968554728,20.886678705068022,20.990695786307711]
["Commercial (cents/kWh real 2021)"]
["Fixed component",{"$f":"B75+1","v":2},1.9055154159000098,1.9849774241567373,1.9103017001186136,1.797399216713361,1.7658544926055175,1.7036803780225644,1.6354539353069939,1.6954310467730092,1.6404385946477398,1.7454051133000665,2.1773011924828478,2.745596618869345,3.2001005821817721,3.7729268795730482,4.3023728395306078,5.0062554525151857,5.7509892085021086,6.5380039024136547,7.366508826582745,8.2358598351053853,8.1823134003734985,8.1249247812222176,8.0626969025268131,7.9959361207605442,7.925013874217794,7.9717416443200086,8.0185113091948388,8.0654201376189558,8.1115386905898941,8.1578968463429238]
["Variable Component",{"$f":"B76+1","v":2},14.915444015028182,15.537433806128943,14.952908710252848,14.069163212138728,13.822246518380139,13.335577915487741,12.801534643952214,13.271006179469511,12.840552122745882,13.662178764728056,13.37996333159056,13.345739899483446,12.856798556428366,12.777224717635992,12.461788384122016,12.540289940630332,12.565157725302178,12.542343380575479,12.471759355100327,12.353789752658079,12.273470100560246,12.187387171833327,12.094045353790218,11.993904181140817,11.887520811326691,11.957612466480011,12.027766963792256,12.098130206428435,12.167308035884838,12.236845269514385]
["Muddling Through"]
["Residential (cents/kWh real 2021)"]
["Fixed component",{"$f":"B79+1","v":3},3.0913844314073802,3.4518357644383615,3.3998598802716349,3.2836781667244179,3.280913155686803,3.2471726501551057,3.1802842805674292,3.3229822226567318,3.2918417808373444,3.5103527888421739,4.3724335550095423,5.5037552479786669,6.4142403823714371,7.5040538088472175,8.5704445328853325,9.8556373378898847,11.19929192129065,12.603390544264407,14.067167594639468,15.589417442499849,15.458510790289999,15.322028435766596,15.17856583015417,15.028888607410488,14.873731135224302,14.905275477204444,14.93749415257129,14.97054785681935,15.003041397242175,15.036558794010316]
["Variable Component",{"$f":"B80+1","v":3},24.197847485693632,27.019284474922376,26.612442638875493,25.703028928797963,25.681385772836926,25.417281574520018,24.893712085909883,26.01068188239271,25.766929712935223,27.477327162028562,26.869502867966073,26.752540961457107,25.770001401778863,25.412891600942785,24.824223773764061,24.687623502062262,24.468985126016491,24.178029613488736,23.81621106800397,23.384126163749769,23.187766185434995,22.983042653649889,22.767848745231255,22.543332911115733,22.310596702836449,22.357913215806665,22.406241228856935,22.45582178522902,22.50456209586326,22.55483819101547]
["Commercial (cents/kWh real 2021)"]
["Fixed component",{"$f":"B82+1","v":3},1.9055154159000098,2.0186822478336017,1.9764574673438557,1.8931135519519733,1.8927355664147174,1.8595654729763935,1.8147891392910187,1.9134582437315144,1.8871653352084639,2.0350997631604231,2.5411647618112259,3.206474363906322,3.7450611287577145,4.4128310458493889,5.0313083903411071,5.817540703389402,6.6433433964203257,7.5104328201000055,8.4177815823111288,9.364569776223453,9.2677127326212734,9.1671268390652099,9.0617501881554485,8.9520732879880356,8.8386497723824693,8.8550156685665389,8.872646459575332,8.8916319952235465,8.9109195109126702,8.9316495552558557]
["Variable Component",{"$f":"B83+1","v":3},14.915444015028182,15.801258704313366,15.470743745375501,14.818368281158264,14.815409594982132,14.555770303940816,14.205283032775402,14.977616591987292,14.771808545620695,15.929766995917719,15.61597975050579,15.585965017933971,15.046244728070608,14.944295427256938,14.573144354111573,14.572497918632795,14.514834678520936,14.407826727001892,14.251601222485929,14.046854664335177,13.901569098931908,13.750690258597816,13.592625282233174,13.428109931982053,13.257974658573703,13.282523502849807,13.308969689362996,13.337447992835317,13.366379266369005,13.397474332883782]
["Hydrogen Hero"]
["Residential (cents/kWh real 2021)"]
["Fixed component",{"$f":"B86+1","v":4},3.0913844314073802,3.3922242653267225,3.2839897770068802,3.1179145407401609,3.0613493336275766,2.9547803075125469,2.8252672624880391,2.8761650083067702,2.7770179606519521,2.8892766638174594,3.5615501649676293,4.4396351937380949,5.1165193679754566,5.9287060505692963,6.7188121980386626,7.7665719889734444,8.8696879853044894,10.029477377772654,11.245483729512834,12.516942056358124,12.459350447779812,12.396897943536906,12.3285422750298,12.254699761333139,12.175777364607693,12.252897162923752,12.328787355245726,12.403604672439959,12.476386476211793,12.548298274869607]
["Variable Component",{"$f":"B87+1","v":4},24.197847485693632,26.552674774348741,25.705468061897484,24.405512224149064,23.962747409523971,23.128577121794212,22.114812259983069,22.513214955608525,21.737140290344112,22.615846591166115,21.886457774152255,21.58008796231001,20.556247259976928,20.077889636044141,19.460985583422925,19.454673360220333,19.379105831881127,19.240298885918207,19.039000727192679,18.775413084537185,18.689025671669718,18.595346915305356,18.492813412544699,18.382049641999707,18.263666046911538,18.379345744385624,18.493181032868588,18.605407008659938,18.714579714317686,18.822447412304406]
["Commercial (cents/kWh real 2021)"]
["Fixed component",{"$f":"B89+1","v":4},1.9055154159000098,1.9754610666313617,1.8924810447545242,1.7731025236535642,1.7336989563981002,1.6482350633713432,1.5574037860419039,1.5886673723162235,1.5128355368473305,1.5824817654075194,1.9498346193139642,2.4302002260469164,2.7982564351009866,3.2627586821330405,3.6793105823167362,4.2901149366683455,4.9378560092730535,5.6236777604623001,6.3469475272885605,7.107149893987323,7.0629103716739596,7.0155406688041468,6.9642456312584819,6.9092727868945465,6.8509216658904126,6.8993737449923209,6.947757307050316,6.9961543828235611,7.0438254935294768,7.0915984697633307]
["Variable Component",{"$f":"B90+1","v":4},14.915444015028182,15.462944407243818,14.813417323735441,13.878980565459608,13.570548685828932,12.90157907209066,12.190596195480943,12.435312279587443,11.8417377080803,12.386894369778945,11.982134487942325,11.812667562886228,11.242340161319095,11.049512013270007,10.657093558933465,10.746412302516596,10.788568250071052,10.788322947831917,10.745606102329541,10.660724840980983,10.594365557510939,10.523311003206221,10.446368446887721,10.363909180341818,10.276382498835618,10.34906061748848,10.421635960575472,10.494231574235339,10.565738240294214,10.637397704644997]
["Baseline",null,null,1,{"$f":"D98*(1+$J$53)","v":1},{"$f":"E98*(1+$J$53)","v":1},{"$f":"F98*(1+$J$53)","v":1},1,1,1,1,1,1,1,1,1,1,1,1,1,1,1,1,1,1,1,1,1,1,1,1,1,1,1,1,1,1,1,1,1,1,1,1,1,1,1,1,1,1,1,1,1,1,1,1,1,1,1,1,1,1,1,1,1,1,1,1,1,1,1,{"$f":"BR98*(1+$J$53)","v":1},1,1,1,1,1,1,1,1,1,1,1,1,1,1,1,1,1,1,1,1,1,1,1,1,1,1,1,1,1,1,1]
["Residential (cents/kWh real 2021)"]
["Fixed component",5]
["Variable Component",5,{"$f":"AVERAGE(C73,C80,C87,C94)","v":24.197847485693632},{"$f":"AVERAGE($D$73,$D$80,$D$87,$D$94)*D98","v":26.828326677192909},{"$f":"AVERAGE($D$73,$D$80,$D$87,$D$94)*E98","v":26.828326677192909},26.828326677192909,26.828326677192909,26.828326677192909,26.828326677192909,26.828326677192909,26.828326677192909,26.828326677192909,26.828326677192909,26.828326677192909,26.828326677192909,26.828326677192909,26.828326677192909,26.828326677192909,26.828326677192909,26.828326677192909,26.828326677192909,26.828326677192909,26.828326677192909,26.828326677192909,26.828326677192909,26.828326677192909,26.828326677192909,26.828326677192909,26.828326677192909,26.828326677192909,26.828326677192909,26.828326677192909,26.828326677192909,26.828326677192909,26.828326677192909,26.828326677192909,26.828326677192909,26.828326677192909,26.828326677192909,26.828326677192909,26.828326677192909,26.828326677192909,26.828326677192909,26.828326677192909,26.828326677192909,26.828326677192909,26.828326677192909,26.828326677192909,26.828326677192909,26.828326677192909,26.828326677192909,26.828326677192909,26.828326677192909,26.828326677192909,26.828326677192909,26.828326677192909,26.828326677192909,26.828326677192909,26.828326677192909,26.828326677192909,26.828326677192909,26.828326677192909,26.828326677192909,26.828326677192909,26.828326677192909,26.828326677192909,26.828326677192909,26.828326677192909,{"$f":"AVERAGE($D$73,$D$80,$D$87,$D$94)*BQ98","v":26.828326677192909},26.828326677192909,26.828326677192909,26.828326677192909,26.828326677192909,26.828326677192909,26.828326677192909,26.828326677192909,26.828326677192909,26.828326677192909,26.828326677192909,26.828326677192909,26.828326677192909,26.828326677192909,26.828326677192909,26.828326677192909,26.828326677192909,26.828326677192909,26.828326677192909,26.828326677192909,26.828326677192909,26.828326677192909,26.828326677192909,26.828326677192909,26.828326677192909,26.828326677192909,26.828326677192909,26.828326677192909,26.828326677192909,26.828326677192909,26.828326677192909,26.828326677192909,26.828326677192909,26.828326677192909]
["Commercial (cents/kWh real 2021)"]
["Fixed component",5]
["Variable Component",5,{"$f":"AVERAGE(C76,C83,C90,C97)","v":14.915444015028182},{"$f":"AVERAGE($D$76,$D$83,$D$90,$D$97)*D98","v":15.660813080882138},{"$f":"AVERAGE($D$76,$D$83,$D$90,$D$97)*E98","v":15.660813080882138},15.660813080882138,15.660813080882138,15.660813080882138,15.660813080882138,15.660813080882138,15.660813080882138,15.660813080882138,15.660813080882138,15.660813080882138,15.660813080882138,15.660813080882138,15.660813080882138,15.660813080882138,15.660813080882138,15.660813080882138,15.660813080882138,15.660813080882138,15.660813080882138,15.660813080882138,15.660813080882138,15.660813080882138,15.660813080882138,15.660813080882138,15.660813080882138,15.660813080882138,15.660813080882138,15.660813080882138,15.660813080882138,15.660813080882138,15.660813080882138,15.660813080882138,15.660813080882138,15.660813080882138,15.660813080882138,15.660813080882138,15.660813080882138,15.660813080882138,15.660813080882138,15.660813080882138,15.660813080882138,15.660813080882138,15.660813080882138,15.660813080882138,15.660813080882138,15.660813080882138,15.660813080882138,15.660813080882138,15.660813080882138,15.660813080882138,15.660813080882138,15.660813080882138,15.660813080882138,15.660813080882138,15.660813080882138,15.660813080882138,15.660813080882138,15.660813080882138,15.660813080882138,15.660813080882138,15.660813080882138,15.660813080882138,15.660813080882138,15.660813080882138,{"$f":"AVERAGE($D$76,$D$83,$D$90,$D$97)*BQ98","v":15.660813080882138},15.660813080882138,15.660813080882138,15.660813080882138,15.660813080882138,15.660813080882138,15.660813080882138,15.660813080882138,15.660813080882138,15.660813080882138,15.660813080882138,15.660813080882138,15.660813080882138,15.660813080882138,15.660813080882138,15.660813080882138,15.660813080882138,15.660813080882138,15.660813080882138,15.660813080882138,15.660813080882138,15.660813080882138,15.660813080882138,15.660813080882138,15.660813080882138,15.660813080882138,15.660813080882138,15.660813080882138,15.660813080882138,15.660813080882138,15.660813080882138,15.660813080882138,15.660813080882138,15.660813080882138]
[]
["Residential Network ON/OFF (0 is OFF/Disconnect)",null,null,null,null,null,null,null,null,null,null,null,null,null,null,null,null,null,null,null,0.9,{"$f":"U106-0.1","v":0.8},{"$f":"V106-0.1","v":0.70000000000000007},0.60000000000000009,0.50000000000000011,0.40000000000000013,0.30000000000000016,0.20000000000000015,0.10000000000000014,0]
["LGA",2021,{"$f":"B107+1","v":2022},{"$f":"C107+1","v":2023},2024,2025,2026,2027,2028,2029,2030,2031,2032,2033,2034,2035,2036,2037,2038,2039,2040,2041,2042,2043,2044,2045,2046,2047,2048,2049,2050,2051,2052,2053,2054,2055,2056,2057,2058,2059,2060,2061,2062,2063,2064,2065,2066,2067,2068,2069,2070,2071,2072,2073,2074,2075,2076,2077,2078,2079,2080,2081,2082,2083,2084,2085,2086,{"$f":"BO107+1","v":2087},2088,2089,2090,2091,2092,2093,2094,2095,2096,2097,2098,2099,2100]
["Bass Coast (S)",1,1,1,1,1,1,1,1,1,1,1,1,1,1,1,1,1,1,1,{"$f":"IF($B$1=2,IF($D204=0,U$106,1),1)","v":1},{"$f":"IF($B$1=2,IF($D204=0,V$106,1),1)","v":1},1,1,1,1,1,1,1,1,{"$f":"IF($B$1=2,$D204,1)","v":1},1,1,1,1,1,1,1,1,1,1,1,1,1,1,1,1,1,1,1,1,1,1,1,1,1,1,1,1,1,1,1,1,1,1,1,1,1,1,1,1,1,1,1,1,1,1,1,1,1,1]
["Bayside (C)",1,1,1,1,1,1,1,1,1,1,1,1,1,1,1,1,1,1,1,{"$f":"IF($B$1=2,IF($D205=0,U$106,1),1)","v":1},1,1,1,1,1,1,1,1,1,1,1,1,1,1,1,1,1,1,1,1,1,1,1,1,1,1,1,1,1,1,1,1,1,1,1,1,1,1,1,1,1,1,1,1,1,1,1,1,1,1,1,1,1,1,1,1,1,1,1,1]
["Boroondara (C)",1,1,1,1,1,1,1,1,1,1,1,1,1,1,1,1,1,1,1,1,1,1,1,1,1,1,1,1,1,1,1,1,1,1,1,1,1,1,1,1,1,1,1,1,1,1,1,1,1,1,1,1,1,1,1,1,1,1,1,1,1,1,1,1,1,1,1,1,1,1,1,1,1,1,1,1,1,1,1,1]
["Cardinia (S)",1,1,1,1,1,1,1,1,1,1,1,1,1,1,1,1,1,1,1,1,1,1,1,1,1,1,1,1,1,1,1,1,1,1,1,1,1,1,1,1,1,1,1,1,1,1,1,1,1,1,1,1,1,1,1,1,1,1,1,1,1,1,1,1,1,1,1,1,1,1,1,1,1,1,1,1,1,1,1,1]
["Casey (C)",1,1,1,1,1,1,1,1,1,1,1,1,1,1,1,1,1,1,1,1,1,1,1,1,1,1,1,1,1,1,{"$f":"IF($B$1=2,$D208,1)","v":1},1,1,1,1,1,1,1,1,1,1,1,1,1,1,1,1,1,1,1,1,1,1,1,1,1,1,1,1,1,1,1,1,1,1,1,1,1,1,1,1,1,1,1,1,1,1,1,1,1]
["Frankston (C)",1,1,1,1,1,1,1,1,1,1,1,1,1,1,1,1,1,1,1,1,1,1,1,1,1,1,1,1,1,{"$f":"IF($B$1=2,$D209,1)","v":1},1,1,1,1,1,1,1,1,1,1,1,1,1,1,1,1,1,1,1,1,1,1,1,1,1,1,1,1,1,1,1,1,1,1,1,1,1,1,1,1,1,1,1,1,1,1,1,1,1,1]
["Glen Eira (C)",1,1,1,1,1,1,1,1,1,1,1,1,1,1,1,1,1,1,1,1,1,1,1,1,1,1,1,1,1,1,1,1,1,1,1,1,1,1,1,1,1,1,1,1,1,1,1,1,1,1,1,1,1,1,1,1,1,1,1,1,1,1,1,1,1,1,1,1,1,1,1,1,1,1,1,1,1,1,1,1]
["Greater Dandenong (C)",1,1,1,1,1,1,1,1,1,1,1,1,1,1,1,1,1,1,1,1,1,1,1,1,1,1,1,1,1,1,1,1,1,1,1,1,1,1,1,1,1,1,1,1,1,1,1,1,1,1,1,1,1,1,1,1,1,1,1,1,1,1,1,1,1,1,1,1,1,1,1,1,1,1,1,1,1,1,1,1]
["Kingston ©",1,1,1,1,1,1,1,1,1,1,1,1,1,1,1,1,1,1,1,1,1,1,1,1,1,1,1,1,1,1,1,1,1,1,1,1,1,1,1,1,1,1,1,1,1,1,1,1,1,1,1,1,1,1,1,1,1,1,1,1,1,1,1,1,1,1,1,1,1,1,1,1,1,1,1,1,1,1,1,1]
["Knox (C)",1,1,1,1,1,1,1,1,1,1,1,1,1,1,1,1,1,1,1,1,1,1,1,1,1,1,1,1,1,1,1,1,1,1,1,1,1,1,1,1,1,1,1,1,1,1,1,1,1,1,1,1,1,1,1,1,1,1,1,1,1,1,1,1,1,1,1,1,1,1,1,1,1,1,1,1,1,1,1,1]
["Manningham (C)",1,1,1,1,1,1,1,1,1,1,1,1,1,1,1,1,1,1,1,1,1,1,1,1,1,1,1,1,1,1,1,1,1,1,1,1,1,1,1,1,1,1,1,1,1,1,1,1,1,1,1,1,1,1,1,1,1,1,1,1,1,1,1,1,1,1,1,1,1,1,1,1,1,1,1,1,1,1,1,1]
["Maroondah (C)",1,1,1,1,1,1,1,1,1,1,1,1,1,1,1,1,1,1,1,1,1,1,1,1,1,1,1,1,1,1,1,1,1,1,1,1,1,1,1,1,1,1,1,1,1,1,1,1,1,1,1,1,1,1,1,1,1,1,1,1,1,1,1,1,1,1,1,1,1,1,1,1,1,1,1,1,1,1,1,1]
["Melbourne (C)",1,1,1,1,1,1,1,1,1,1,1,1,1,1,1,1,1,1,1,1,1,1,1,1,1,1,1,1,1,1,1,1,1,1,1,1,1,1,1,1,1,1,1,1,1,1,1,1,1,1,{"$f":"IF($B$1=2,$D216,1)","v":1},1,1,{"$f":"IF($B$1=2,$D216,1)","v":1},1,1,1,1,1,1,1,1,1,1,1,1,1,1,1,1,1,1,1,1,1,1,1,1,1,1]
["Monash (C)",1,1,1,1,1,1,1,1,1,1,1,1,1,1,1,1,1,1,1,1,1,1,1,1,1,1,1,1,1,{"$f":"IF($B$1=2,$D217,1)","v":1},1,1,1,1,1,1,1,1,1,1,1,1,1,1,1,1,1,1,1,1,1,1,1,1,1,1,1,1,1,1,1,1,1,1,1,1,1,1,1,1,1,1,1,1,1,1,1,1,1,1]
["Nillumbik (S)",1,1,1,1,1,1,1,1,1,1,1,1,1,1,1,1,1,1,1,1,1,1,1,1,1,1,1,1,1,1,1,1,1,1,1,1,1,1,1,1,1,1,1,1,1,1,1,1,1,1,1,1,1,1,1,1,1,1,1,1,1,1,1,1,1,1,1,1,1,1,1,1,1,1,1,1,1,1,1,1]
["Port Phillip (C)",1,1,1,1,1,1,1,1,1,1,1,1,1,1,1,1,1,1,1,1,1,1,1,1,1,1,1,1,1,1,1,1,1,1,1,1,1,1,1,1,1,1,1,1,1,1,1,1,1,1,1,1,1,1,1,1,1,1,1,1,1,1,1,1,1,1,1,1,1,1,1,1,1,1,1,1,1,1,1,1]
["South Gippsland (S)",1,1,1,1,1,1,1,1,1,1,1,1,1,1,1,1,1,1,1,1,1,1,1,1,1,1,1,1,1,1,1,1,1,1,1,1,1,1,1,1,1,1,1,1,1,1,1,1,1,1,1,1,1,1,1,1,1,1,1,1,1,1,1,1,1,1,1,1,1,1,1,1,1,1,1,1,1,1,1,1]
["Stonnington (C)",1,1,1,1,1,1,1,1,1,1,1,1,1,1,1,1,1,1,1,1,1,1,1,1,1,1,1,1,1,1,{"$f":"IF($B$1=2,$D221,1)","v":1},1,1,1,1,1,1,1,1,1,1,1,1,1,1,1,1,1,1,1,1,1,1,1,1,1,1,1,1,1,1,1,1,1,1,1,1,1,1,1,1,1,1,1,1,1,1,1,1,1]
["Whitehorse (C)",1,1,1,1,1,1,1,1,1,1,1,1,1,1,1,1,1,1,1,1,1,1,1,1,1,1,1,1,1,{"$f":"IF($B$1=2,$D222,1)","v":1},1,1,1,1,1,1,1,1,1,1,1,1,1,1,1,1,1,1,1,1,1,1,1,1,1,1,1,1,1,1,1,1,1,1,1,1,1,1,1,1,1,1,1,1,1,1,1,1,1,1]
["Yarra Ranges (S)",1,1,1,1,1,1,1,1,1,1,1,1,1,1,1,1,1,1,1,1,1,1,1,1,1,1,1,1,1,1,1,1,1,1,1,1,1,1,1,1,1,1,1,1,1,1,1,1,1,1,1,1,1,1,1,1,1,1,1,1,1,1,1,1,1,1,1,1,1,1,1,1,1,1,1,1,1,1,1,1]
[]
["Commercial Network ON/OFF (0 is OFF/Disconnect)"]
["LGA",2021,{"$f":"B130+1","v":2022},{"$f":"C130+1","v":2023},2024,2025,2026,2027,2028,2029,2030,2031,2032,2033,2034,2035,2036,2037,2038,2039,2040,2041,2042,2043,2044,2045,2046,2047,2048,2049,2050,2051,2052,2053,2054,2055,2056,2057,2058,2059,2060,2061,2062,2063,2064,2065,2066,2067,2068,2069,2070,2071,2072,2073,2074,2075,2076,2077,2078,2079,2080,2081,2082,2083,2084,2085,2086,{"$f":"BO130+1","v":2087},2088,2089,2090,2091,2092,2093,2094,2095,2096,2097,2098,2099,2100]
["Bass Coast (S)",1,1,1,1,1,1,1,1,1,1,1,1,1,1,1,1,1,1,1,{"$f":"IF($B$1=2,IF($D204=0,U$106,1),1)","v":1},{"$f":"IF($B$1=2,IF($D204=0,V$106,1),1)","v":1},1,1,1,1,1,1,1,1,{"$f":"IF($B$1=2,$D204,1)","v":1},1,1,1,1,1,1,1,1,1,1,1,1,1,1,1,1,1,1,1,1,1,1,1,1,1,1,1,1,1,1,1,1,1,1,1,1,1,1,1,1,1,1,1,1,1,1,1,1,1,1]
["Bayside (C)",1,1,1,1,1,1,1,1,1,1,1,1,1,1,1,1,1,1,1,{"$f":"IF($B$1=2,IF($D205=0,U$106,1),1)","v":1},{"$f":"IF($B$1=2,IF($D205=0,V$106,1),1)","v":1},1,1,1,1,1,1,1,1,1,1,1,1,1,1,1,1,1,1,1,1,1,1,1,1,1,1,1,1,1,1,1,1,1,1,1,1,1,1,1,1,1,1,1,1,1,1,1,1,1,1,1,1,1,1,1,1,1,1,1]
["Boroondara (C)",1,1,1,1,1,1,1,1,1,1,1,1,1,1,1,1,1,1,1,1,{"$f":"IF($B$1=2,IF($D206=0,V$106,1),1)","v":1},1,1,1,1,1,1,1,1,1,1,1,1,1,1,1,1,1,1,1,1,1,1,1,1,1,1,1,1,1,1,1,1,1,1,1,1,1,1,1,1,1,1,1,1,1,1,1,1,1,1,1,1,1,1,1,1,1,1,1]
["Cardinia (S)",1,1,1,1,1,1,1,1,1,1,1,1,1,1,1,1,1,1,1,1,{"$f":"IF($B$1=2,IF($D207=0,V$106,1),1)","v":1},1,1,1,1,1,1,1,1,1,1,1,1,1,1,1,1,1,1,1,1,1,1,1,1,1,1,1,1,1,1,1,1,1,1,1,1,1,1,1,1,1,1,1,1,1,1,1,1,1,1,1,1,1,1,1,1,1,1,1]
["Casey (C)",1,1,1,1,1,1,1,1,1,1,1,1,1,1,1,1,1,1,1,1,{"$f":"IF($B$1=2,IF($D208=0,V$106,1),1)","v":1},1,1,1,1,1,1,1,1,1,{"$f":"IF($B$1=2,$D208,1)","v":1},1,1,1,1,1,1,1,1,1,1,1,1,1,1,1,1,1,1,1,1,1,1,1,1,1,1,1,1,1,1,1,1,1,1,1,1,1,1,1,1,1,1,1,1,1,1,1,1,1]
["Frankston (C)",1,1,1,1,1,1,1,1,1,1,1,1,1,1,1,1,1,1,1,1,{"$f":"IF($B$1=2,IF($D209=0,V$106,1),1)","v":1},1,1,1,1,1,1,1,1,{"$f":"IF($B$1=2,$D209,1)","v":1},1,1,1,1,1,1,1,1,1,1,1,1,1,1,1,1,1,1,1,1,1,1,1,1,1,1,1,1,1,1,1,1,1,1,1,1,1,1,1,1,1,1,1,1,1,1,1,1,1,1]
["Glen Eira (C)",1,1,1,1,1,1,1,1,1,1,1,1,1,1,1,1,1,1,1,1,{"$f":"IF($B$1=2,IF($D210=0,V$106,1),1)","v":1},1,1,1,1,1,1,1,1,1,1,1,1,1,1,1,1,1,1,1,1,1,1,1,1,1,1,1,1,1,1,1,1,1,1,1,1,1,1,1,1,1,1,1,1,1,1,1,1,1,1,1,1,1,1,1,1,1,1,1]
["Greater Dandenong (C)",1,1,1,1,1,1,1,1,1,1,1,1,1,1,1,1,1,1,1,1,{"$f":"IF($B$1=2,IF($D211=0,V$106,1),1)","v":1},1,1,1,1,1,1,1,1,1,1,1,1,1,1,1,1,1,1,1,1,1,1,1,1,1,1,1,1,1,1,1,1,1,1,1,1,1,1,1,1,1,1,1,1,1,1,1,1,1,1,1,1,1,1,1,1,1,1,1]
["Kingston (C)",1,1,1,1,1,1,1,1,1,1,1,1,1,1,1,1,1,1,1,1,{"$f":"IF($B$1=2,IF($D212=0,V$106,1),1)","v":1},1,1,1,1,1,1,1,1,1,1,1,1,1,1,1,1,1,1,1,1,1,1,1,1,1,1,1,1,1,1,1,1,1,1,1,1,1,1,1,1,1,1,1,1,1,1,1,1,1,1,1,1,1,1,1,1,1,1,1]
["Knox (C)",1,1,1,1,1,1,1,1,1,1,1,1,1,1,1,1,1,1,1,1,{"$f":"IF($B$1=2,IF($D213=0,V$106,1),1)","v":1},1,1,1,1,1,1,1,1,1,1,1,1,1,1,1,1,1,1,1,1,1,1,1,1,1,1,1,1,1,1,1,1,1,1,1,1,1,1,1,1,1,1,1,1,1,1,1,1,1,1,1,1,1,1,1,1,1,1,1]
["Manningham (C)",1,1,1,1,1,1,1,1,1,1,1,1,1,1,1,1,1,1,1,1,{"$f":"IF($B$1=2,IF($D214=0,V$106,1),1)","v":1},1,1,1,1,1,1,1,1,1,1,1,1,1,1,1,1,1,1,1,1,1,1,1,1,1,1,1,1,1,1,1,1,1,1,1,1,1,1,1,1,1,1,1,1,1,1,1,1,1,1,1,1,1,1,1,1,1,1,1]
["Maroondah (C)",1,1,1,1,1,1,1,1,1,1,1,1,1,1,1,1,1,1,1,1,{"$f":"IF($B$1=2,IF($D215=0,V$106,1),1)","v":1},1,1,1,1,1,1,1,1,1,1,1,1,1,1,1,1,1,1,1,1,1,1,1,1,1,1,1,1,1,1,1,1,1,1,1,1,1,1,1,1,1,1,1,1,1,1,1,1,1,1,1,1,1,1,1,1,1,1,1]
["Melbourne (C)",1,1,1,1,1,1,1,1,1,1,1,1,1,1,1,1,1,1,1,1,{"$f":"IF($B$1=2,IF($D216=0,V$106,1),1)","v":1},1,1,1,1,1,1,1,1,1,1,1,1,1,1,1,1,1,1,1,1,1,1,1,1,1,1,1,1,1,{"$f":"IF($B$1=2,$D216,1)","v":1},1,1,{"$f":"IF($B$1=2,$D216,1)","v":1},1,1,1,1,1,1,1,1,1,1,1,1,1,1,1,1,1,1,1,1,1,1,1,1,1,1]
["Monash (C)",1,1,1,1,1,1,1,1,1,1,1,1,1,1,1,1,1,1,1,1,{"$f":"IF($B$1=2,IF($D217=0,V$106,1),1)","v":1},1,1,1,1,1,1,1,1,{"$f":"IF($B$1=2,$D217,1)","v":1},1,1,1,1,1,1,1,1,1,1,1,1,1,1,1,1,1,1,1,1,1,1,1,1,1,1,1,1,1,1,1,1,1,1,1,1,1,1,1,1,1,1,1,1,1,1,1,1,1,1]
["Port Phillip (C)",1,1,1,1,1,1,1,1,1,1,1,1,1,1,1,1,1,1,1,1,{"$f":"IF($B$1=2,IF($D218=0,V$106,1),1)","v":1},1,1,1,1,1,1,1,1,1,1,1,1,1,1,1,1,1,1,1,1,1,1,1,1,1,1,1,1,1,1,1,1,1,1,1,1,1,1,1,1,1,1,1,1,1,1,1,1,1,1,1,1,1,1,1,1,1,1,1]
["South Gippsland (S)",1,1,1,1,1,1,1,1,1,1,1,1,1,1,1,1,1,1,1,1,{"$f":"IF($B$1=2,IF($D219=0,V$106,1),1)","v":1},1,1,1,1,1,1,1,1,1,1,1,1,1,1,1,1,1,1,1,1,1,1,1,1,1,1,1,1,1,1,1,1,1,1,1,1,1,1,1,1,1,1,1,1,1,1,1,1,1,1,1,1,1,1,1,1,1,1,1]
["Stonnington (C)",1,1,1,1,1,1,1,1,1,1,1,1,1,1,1,1,1,1,1,1,{"$f":"IF($B$1=2,IF($D220=0,V$106,1),1)","v":1},1,1,1,1,1,1,1,1,1,1,1,1,1,1,1,1,1,1,1,1,1,1,1,1,1,1,1,1,1,1,1,1,1,1,1,1,1,1,1,1,1,1,1,1,1,1,1,1,1,1,1,1,1,1,1,1,1,1,1]
["Whitehorse (C)",1,1,1,1,1,1,1,1,1,1,1,1,1,1,1,1,1,1,1,1,{"$f":"IF($B$1=2,IF($D221=0,V$106,1),1)","v":1},1,1,1,1,1,1,1,1,1,{"$f":"IF($B$1=2,$D221,1)","v":1},1,1,1,1,1,1,1,1,1,1,1,1,1,1,1,1,1,1,1,1,1,1,1,1,1,1,1,1,1,1,1,1,1,1,1,1,1,1,1,1,1,1,1,1,1,1,1,1,1]
["Yarra Ranges (S)",1,1,1,1,1,1,1,1,1,1,1,1,1,1,1,1,1,1,1,1,{"$f":"IF($B$1=2,IF($D222=0,V$106,1),1)","v":1},1,1,1,1,1,1,1,1,{"$f":"IF($B$1=2,$D222,1)","v":1},1,1,1,1,1,1,1,1,1,1,1,1,1,1,1,1,1,1,1,1,1,1,1,1,1,1,1,1,1,1,1,1,1,1,1,1,1,1,1,1,1,1,1,1,1,1,1,1,1,1]
[]
["Scenario 1",null,null,null,null,null,null,null,null,null,null,{"$f":"IF($B$1=1,1,0)","v":1},{"$f":"IF($B$1=1,1,0)","v":1},{"$f":"IF($B$1=1,1,0)","v":1},1,1,1,1,1,1,1,1,1,1,1,1,1,1,1,1,1,1,1,1,1,1,1,1,1,1,1,1,1,1,1,1,1,1,1,1,1,1,1,1,1,1,1,1,1,1,1,1,1,1,1,1,1,1,1,1,1,1,1,1,1,1,1,{"$f":"IF($B$1=1,1,0)","v":1},1,1,1]
["Scenario 2"]
["Scenario 3"]
["Scenario 4"]
["Baseline 5",null,null,null,null,null,null,null,null,null,null,0,0,0,0,0,0,0,0,0,0,0,0,0,0,0,0,0,0,0,0,0,0,0,0,0,0,0,0,0,0,0,0,0,0,0,0,0,0,0,0,0,0,0,0,0,0,0,0,0,0,0,0,0,0,0,0,0,0,0,0,0,0,0,0,0,0,0,0,0,0]
[]
["Residential Network No new connections",null,null,null,null,null,null,null,null,null,null,null,null,null,null,null,null,null,null,null,0.1,{"$f":"U157+0.1","v":0.2},{"$f":"V157+0.1","v":0.30000000000000004},0.4,0.5,0.6,0.7,0.79999999999999993,0.89999999999999991,0.99999999999999989,{"$f":"AD157","v":0.99999999999999989},{"$f":"AE157","v":0.99999999999999989},0.99999999999999989,0.99999999999999989,0.99999999999999989,0.99999999999999989,0.99999999999999989,0.99999999999999989,0.99999999999999989,0.99999999999999989,0.99999999999999989,0.99999999999999989,0.99999999999999989,0.99999999999999989,0.99999999999999989,0.99999999999999989,0.99999999999999989,0.99999999999999989,0.99999999999999989,0.99999999999999989,0.99999999999999989,0.99999999999999989,0.99999999999999989,0.99999999999999989,0.99999999999999989,0.99999999999999989,0.99999999999999989,0.99999999999999989,0.99999999999999989,0.99999999999999989,0.99999999999999989,0.99999999999999989,0.99999999999999989,0.99999999999999989,0.99999999999999989,0.99999999999999989,0.99999999999999989,0.99999999999999989,0.99999999999999989,0.99999999999999989,0.99999999999999989,0.99999999999999989,0.99999999999999989,0.99999999999999989,0.99999999999999989,0.99999999999999989,0.99999999999999989,0.99999999999999989,0.99999999999999989,0.99999999999999989,0.99999999999999989]
["LGA",2021,{"$f":"B158+1","v":2022},{"$f":"C158+1","v":2023},2024,2025,2026,2027,2028,2029,2030,2031,2032,2033,2034,2035,2036,2037,2038,2039,2040,2041,2042,2043,2044,2045,2046,2047,2048,2049,2050,2051,2052,2053,2054,2055,2056,2057,2058,2059,2060,2061,2062,2063,2064,2065,2066,2067,2068,2069,2070,2071,2072,2073,2074,2075,2076,2077,2078,2079,2080,2081,2082,2083,2084,2085,2086,{"$f":"BO158+1","v":2087},2088,2089,2090,2091,2092,2093,2094,2095,2096,2097,2098,2099,2100]
["Bass Coast (S)",0,0,0,0,0,0,0,0,0,0,{"$f":"L$151","v":1},{"$f":"M$151","v":1},{"$f":"N$151","v":1},1,1,1,1,1,1,{"$f":"IF($B$1=2,$C204*U$157,U$151)","v":1},{"$f":"IF($B$1=2,$C204*V$157,V$151)","v":1},1,1,1,1,1,1,1,1,{"$f":"IF($B$1=2,$C204*AE$157,AE$151)","v":1},1,{"$f":"IF($B$1=2,$C204*AG$157,AG$151)","v":1},1,1,1,1,1,1,1,1,1,1,1,1,1,1,1,1,1,1,1,1,1,1,1,1,1,1,1,1,1,1,1,1,1,1,1,1,1,1,1,1,1,1,1,1,1,1,1,1]
["Bayside (C)",0,0,0,0,0,0,0,0,0,0,{"$f":"L$151","v":1},1,1,1,1,1,1,1,1,{"$f":"IF($B$1=2,$C205*U$157,U$151)","v":1},1,1,1,1,1,1,1,1,1,{"$f":"IF($B$1=2,$C205*AE$157,AE$151)","v":1},1,{"$f":"IF($B$1=2,$C205*AG$157,AG$151)","v":1},1,1,1,1,1,1,1,1,1,1,1,1,1,1,1,1,1,1,1,1,1,1,1,1,1,1,1,1,1,1,1,1,1,1,1,1,1,1,1,1,1,1,1,1,1,1,1,1]
["Boroondara (C)",0,0,0,0,0,0,0,0,0,0,1,1,1,1,1,{"$f":"Q$151","v":1},1,1,1,1,1,1,1,1,1,1,1,1,1,{"$f":"IF($B$1=2,$C206*AE$157,AE$151)","v":1},1,{"$f":"IF($B$1=2,$C206*AG$157,AG$151)","v":1},1,1,1,1,1,1,1,1,1,1,1,1,1,1,1,1,1,1,1,1,1,1,1,1,1,1,1,1,1,1,1,1,1,1,1,1,1,1,1,1,1,1,1,1,1,1,1,1]
["Cardinia (S)",0,0,0,0,0,0,0,0,0,0,1,1,1,1,1,1,1,1,1,1,1,1,1,1,1,1,1,1,1,{"$f":"IF($B$1=2,$C207*AE$157,AE$151)","v":1},1,{"$f":"IF($B$1=2,$C207*AG$157,AG$151)","v":1},1,1,1,1,1,1,1,1,1,1,1,1,1,1,1,1,1,1,1,1,1,1,1,1,1,1,1,1,1,1,1,1,1,1,1,1,1,1,1,1,1,1,1,1,1,1,1,1]
["Casey (C)",0,0,0,0,0,0,0,0,0,0,1,1,1,1,1,1,1,1,1,1,1,1,1,1,1,1,1,1,1,{"$f":"IF($B$1=2,$C208*AE$157,AE$151)","v":1},1,{"$f":"IF($B$1=2,$C208*AG$157,AG$151)","v":1},1,1,1,1,1,1,1,1,1,1,1,1,1,1,1,1,1,1,1,1,1,1,1,1,1,1,1,1,1,1,1,1,1,1,1,1,1,1,1,1,1,1,1,1,1,1,1,1]
["Frankston (C)",0,0,0,0,0,0,0,0,0,0,1,1,1,1,1,1,1,1,1,1,1,1,1,1,1,1,1,1,1,{"$f":"IF($B$1=2,$C209*AE$157,AE$151)","v":1},1,{"$f":"IF($B$1=2,$C209*AG$157,AG$151)","v":1},1,1,1,1,1,1,1,1,1,1,1,1,1,1,1,1,1,1,1,1,1,1,1,1,1,1,1,1,1,1,1,1,1,1,1,1,1,1,1,1,1,1,1,1,1,1,1,1]
["Glen Eira (C)",0,0,0,0,0,0,0,0,0,0,1,1,1,1,1,1,1,1,1,1,1,1,1,1,1,1,1,1,1,{"$f":"IF($B$1=2,$C210*AE$157,AE$151)","v":1},1,{"$f":"IF($B$1=2,$C210*AG$157,AG$151)","v":1},1,1,1,1,1,1,1,1,1,1,1,1,1,1,1,1,1,1,1,1,1,1,1,1,1,1,1,1,1,1,1,1,1,1,1,1,1,1,1,1,1,1,1,1,1,1,1,1]
["Greater Dandenong (C)",0,0,0,0,0,0,0,0,0,0,1,1,1,1,1,1,1,1,1,1,1,1,1,1,1,1,1,1,1,{"$f":"IF($B$1=2,$C211*AE$157,AE$151)","v":1},1,{"$f":"IF($B$1=2,$C211*AG$157,AG$151)","v":1},1,1,1,1,1,1,1,1,1,1,1,1,1,1,1,1,1,1,1,1,1,1,1,1,1,1,1,1,1,1,1,1,1,1,1,1,1,1,1,1,1,1,1,1,1,1,1,1]
["Kingston ©",0,0,0,0,0,0,0,0,0,0,1,1,1,1,1,1,1,1,1,1,1,1,1,1,1,1,1,1,1,{"$f":"IF($B$1=2,$C212*AE$157,AE$151)","v":1},1,{"$f":"IF($B$1=2,$C212*AG$157,AG$151)","v":1},1,1,1,1,1,1,1,1,1,1,1,1,1,1,1,1,1,1,1,1,1,1,1,1,1,1,1,1,1,1,1,1,1,1,1,1,1,1,1,1,1,1,1,1,1,1,1,1]
["Knox (C)",0,0,0,0,0,0,0,0,0,0,1,1,1,1,1,1,1,1,1,1,1,1,1,1,1,1,1,1,1,{"$f":"IF($B$1=2,$C213*AE$157,AE$151)","v":1},1,{"$f":"IF($B$1=2,$C213*AG$157,AG$151)","v":1},1,1,1,1,1,1,1,1,1,1,1,1,1,1,1,1,1,1,1,1,1,1,1,1,1,1,1,1,1,1,1,1,1,1,1,1,1,1,1,1,1,1,1,1,1,1,1,1]
["Manningham (C)",0,0,0,0,0,0,0,0,0,0,1,1,1,1,1,1,1,1,1,1,1,1,1,1,1,1,1,1,1,{"$f":"IF($B$1=2,$C214*AE$157,AE$151)","v":1},1,{"$f":"IF($B$1=2,$C214*AG$157,AG$151)","v":1},1,1,1,1,1,1,1,1,1,1,1,1,1,1,1,1,1,1,1,1,1,1,1,1,1,1,1,1,1,1,1,1,1,1,1,1,1,1,1,1,1,1,1,1,1,1,1,1]
["Maroondah (C)",0,0,0,0,0,0,0,0,0,0,1,1,1,1,1,1,1,1,1,1,1,1,1,1,1,1,1,1,1,{"$f":"IF($B$1=2,$C215*AE$157,AE$151)","v":1},1,{"$f":"IF($B$1=2,$C215*AG$157,AG$151)","v":1},1,1,1,1,1,1,1,1,1,1,1,1,1,1,1,1,1,1,1,1,1,1,1,1,1,1,1,1,1,1,1,1,1,1,1,1,1,1,1,1,1,1,1,1,1,1,1,1]
["Melbourne (C)",0,0,0,0,0,0,0,0,0,0,1,1,1,1,1,1,1,1,1,1,1,1,1,1,1,1,1,1,1,{"$f":"IF($B$1=2,$C216*AE$157,AE$151)","v":1},1,{"$f":"IF($B$1=2,$C216*AG$157,AG$151)","v":1},1,1,1,1,1,1,1,1,1,1,1,1,1,1,1,1,1,1,1,1,1,1,1,1,1,1,1,1,1,1,1,1,1,1,1,1,1,1,1,1,1,1,1,1,1,1,1,1]
["Monash (C)",0,0,0,0,0,0,0,0,0,0,1,1,1,1,1,1,1,1,1,1,1,1,1,1,1,1,1,1,1,{"$f":"IF($B$1=2,$C217*AE$157,AE$151)","v":1},1,{"$f":"IF($B$1=2,$C217*AG$157,AG$151)","v":1},1,1,1,1,1,1,1,1,1,1,1,1,1,1,1,1,1,1,1,1,1,1,1,1,1,1,1,1,1,1,1,1,1,1,1,1,1,1,1,1,1,1,1,1,1,1,1,1]
["Nillumbik (S)",0,0,0,0,0,0,0,0,0,0,1,1,1,1,1,1,1,1,1,1,1,1,1,1,1,1,1,1,1,{"$f":"IF($B$1=2,$C218*AE$157,AE$151)","v":1},1,{"$f":"IF($B$1=2,$C218*AG$157,AG$151)","v":1},1,1,1,1,1,1,1,1,1,1,1,1,1,1,1,1,1,1,1,1,1,1,1,1,1,1,1,1,1,1,1,1,1,1,1,1,1,1,1,1,1,1,1,1,1,1,1,1]
["Port Phillip (C)",0,0,0,0,0,0,0,0,0,0,1,1,1,1,1,1,1,1,1,1,1,1,1,1,1,1,1,1,1,{"$f":"IF($B$1=2,$C219*AE$157,AE$151)","v":1},1,{"$f":"IF($B$1=2,$C219*AG$157,AG$151)","v":1},1,1,1,1,1,1,1,1,1,1,1,1,1,1,1,1,1,1,1,1,1,1,1,1,1,1,1,1,1,1,1,1,1,1,1,1,1,1,1,1,1,1,1,1,1,1,1,1]
["South Gippsland (S)",0,0,0,0,0,0,0,0,0,0,1,1,1,1,1,1,1,1,1,1,1,1,1,1,1,1,1,1,1,{"$f":"IF($B$1=2,$C220*AE$157,AE$151)","v":1},1,{"$f":"IF($B$1=2,$C220*AG$157,AG$151)","v":1},1,1,1,1,1,1,1,1,1,1,1,1,1,1,1,1,1,1,1,1,1,1,1,1,1,1,1,1,1,1,1,1,1,1,1,1,1,1,1,1,1,1,1,1,1,1,1,1]
["Stonnington (C)",0,0,0,0,0,0,0,0,0,0,1,1,1,1,1,1,1,1,1,1,1,1,1,1,1,1,1,1,1,{"$f":"IF($B$1=2,$C221*AE$157,AE$151)","v":1},1,{"$f":"IF($B$1=2,$C221*AG$157,AG$151)","v":1},1,1,1,1,1,1,1,1,1,1,1,1,1,1,1,1,1,1,1,1,1,1,1,1,1,1,1,1,1,1,1,1,1,1,1,1,1,1,1,1,1,1,1,1,1,1,1,1]
["Whitehorse (C)",0,0,0,0,0,0,0,0,0,0,1,1,1,1,1,1,1,1,1,1,1,1,1,1,1,1,1,1,1,{"$f":"IF($B$1=2,$C222*AE$157,AE$151)","v":1},1,{"$f":"IF($B$1=2,$C222*AG$157,AG$151)","v":1},1,1,1,1,1,1,1,1,1,1,1,1,1,1,1,1,1,1,1,1,1,1,1,1,1,1,1,1,1,1,1,1,1,1,1,1,1,1,1,1,1,1,1,1,1,1,1,1]
["Yarra Ranges (S)",0,0,0,0,0,0,0,0,0,0,1,1,1,1,1,1,1,1,1,1,1,1,1,1,1,1,1,1,1,{"$f":"IF($B$1=2,$C223*AE$157,AE$151)","v":1},1,{"$f":"IF($B$1=2,$C223*AG$157,AG$151)","v":1},1,1,1,1,1,1,1,1,1,1,1,1,1,1,1,1,1,1,1,1,1,1,1,1,1,1,1,1,1,1,1,1,1,1,1,1,1,1,1,1,1,1,1,1,1,1,1,1]
[]
["Commercial No new connections"]
["LGA",2021,{"$f":"B181+1","v":2022},{"$f":"C181+1","v":2023},2024,2025,2026,2027,2028,2029,2030,2031,2032,2033,2034,2035,2036,2037,2038,2039,2040,2041,2042,2043,2044,2045,2046,2047,2048,2049,2050,2051,2052,2053,2054,2055,2056,2057,2058,2059,2060,2061,2062,2063,2064,2065,2066,2067,2068,2069,2070,2071,2072,2073,2074,2075,2076,2077,2078,2079,2080,2081,2082,2083,2084,2085,2086,{"$f":"BO181+1","v":2087},2088,2089,2090,2091,2092,2093,2094,2095,2096,2097,2098,2099,2100]
["Bass Coast (S)",0,0,0,0,0,0,0,0,0,0,{"$f":"L$151","v":1},{"$f":"M$151","v":1},1,1,1,1,1,1,1,{"$f":"IF($B$1=2,$C204*U$157,U$151)","v":1},{"$f":"IF($B$1=2,$C204*V$157,V$151)","v":1},1,1,1,1,1,1,1,1,{"$f":"IF($B$1=2,$C204*AE$157,AE$151)","v":1},1,1,1,{"$f":"IF($B$1=2,$C204*AI$157,AI$151)","v":1},1,1,1,1,1,1,1,1,1,1,1,1,1,1,1,1,1,1,1,1,1,1,1,1,1,1,1,1,1,1,1,1,1,1,1,1,1,1,1,1,1,1,1,1,1,1]
["Bayside (C)",0,0,0,0,0,0,0,0,0,0,{"$f":"L$151","v":1},1,1,1,1,1,1,1,1,{"$f":"IF($B$1=2,$C205*U$157,U$151)","v":1},1,1,1,1,1,1,1,1,1,{"$f":"IF($B$1=2,$C205*AE$157,AE$151)","v":1},1,1,1,{"$f":"IF($B$1=2,$C205*AI$157,AI$151)","v":1},1,1,1,1,1,1,1,1,1,1,1,1,1,1,1,1,1,1,1,1,1,1,1,1,1,1,1,1,1,1,1,1,1,1,1,1,1,1,1,1,1,1,1,1,1,1]
["Boroondara (C)",0,0,0,0,0,0,0,0,0,0,1,1,1,1,1,1,1,1,1,1,1,1,1,1,1,1,1,1,1,{"$f":"IF($B$1=2,$C206*AE$157,AE$151)","v":1},1,1,1,{"$f":"IF($B$1=2,$C206*AI$157,AI$151)","v":1},1,1,1,1,1,1,1,1,1,1,1,1,1,1,1,1,1,1,1,1,1,1,1,1,1,1,1,1,1,1,1,1,1,1,1,1,1,1,1,1,1,1,1,1,1,1]
["Cardinia (S)",0,0,0,0,0,0,0,0,0,0,1,1,1,1,1,1,1,1,1,1,1,1,1,1,1,1,1,1,1,{"$f":"IF($B$1=2,$C207*AE$157,AE$151)","v":1},1,1,1,{"$f":"IF($B$1=2,$C207*AI$157,AI$151)","v":1},1,1,1,1,1,1,1,1,1,1,1,1,1,1,1,1,1,1,1,1,1,1,1,1,1,1,1,1,1,1,1,1,1,1,1,1,1,1,1,1,1,1,1,1,1,1]
["Casey (C)",0,0,0,0,0,0,0,0,0,0,1,1,1,1,1,1,1,1,1,1,1,1,1,1,1,1,1,1,1,{"$f":"IF($B$1=2,$C208*AE$157,AE$151)","v":1},1,1,1,{"$f":"IF($B$1=2,$C208*AI$157,AI$151)","v":1},1,1,1,1,1,1,1,1,1,1,1,1,1,1,1,1,1,1,1,1,1,1,1,1,1,1,1,1,1,1,1,1,1,1,1,1,1,1,1,1,1,1,1,1,1,1]
["Frankston (C)",0,0,0,0,0,0,0,0,0,0,1,1,1,1,1,1,1,1,1,1,1,1,1,1,1,1,1,1,1,{"$f":"IF($B$1=2,$C209*AE$157,AE$151)","v":1},1,1,1,{"$f":"IF($B$1=2,$C209*AI$157,AI$151)","v":1},1,1,1,1,1,1,1,1,1,1,1,1,1,1,1,1,1,1,1,1,1,1,1,1,1,1,1,1,1,1,1,1,1,1,1,1,1,1,1,1,1,1,1,1,1,1]
["Glen Eira (C)",0,0,0,0,0,0,0,0,0,0,1,1,1,1,1,1,1,1,1,1,1,1,1,1,1,1,1,1,1,{"$f":"IF($B$1=2,$C210*AE$157,AE$151)","v":1},1,1,1,{"$f":"IF($B$1=2,$C210*AI$157,AI$151)","v":1},1,1,1,1,1,1,1,1,1,1,1,1,1,1,1,1,1,1,1,1,1,1,1,1,1,1,1,1,1,1,1,1,1,1,1,1,1,1,1,1,1,1,1,1,1,1]
["Greater Dandenong (C)",0,0,0,0,0,0,0,0,0,0,1,1,1,1,1,1,1,1,1,1,1,1,1,1,1,1,1,1,1,{"$f":"IF($B$1=2,$C211*AE$157,AE$151)","v":1},1,1,1,{"$f":"IF($B$1=2,$C211*AI$157,AI$151)","v":1},1,1,1,1,1,1,1,1,1,1,1,1,1,1,1,1,1,1,1,1,1,1,1,1,1,1,1,1,1,1,1,1,1,1,1,1,1,1,1,1,1,1,1,1,1,1]
["Kingston (C)",0,0,0,0,0,0,0,0,0,0,1,1,1,1,1,1,1,1,1,1,1,1,1,1,1,1,1,1,1,{"$f":"IF($B$1=2,$C212*AE$157,AE$151)","v":1},1,1,1,{"$f":"IF($B$1=2,$C212*AI$157,AI$151)","v":1},1,1,1,1,1,1,1,1,1,1,1,1,1,1,1,1,1,1,1,1,1,1,1,1,1,1,1,1,1,1,1,1,1,1,1,1,1,1,1,1,1,1,1,1,1,1]
["Knox (C)",0,0,0,0,0,0,0,0,0,0,1,1,1,1,1,1,1,1,1,1,1,1,1,1,1,1,1,1,1,{"$f":"IF($B$1=2,$C213*AE$157,AE$151)","v":1},1,1,1,{"$f":"IF($B$1=2,$C213*AI$157,AI$151)","v":1},1,1,1,1,1,1,1,1,1,1,1,1,1,1,1,1,1,1,1,1,1,1,1,1,1,1,1,1,1,1,1,1,1,1,1,1,1,1,1,1,1,1,1,1,1,1]
["Manningham (C)",0,0,0,0,0,0,0,0,0,0,1,1,1,1,1,1,1,1,1,1,1,1,1,1,1,1,1,1,1,{"$f":"IF($B$1=2,$C214*AE$157,AE$151)","v":1},1,1,1,{"$f":"IF($B$1=2,$C214*AI$157,AI$151)","v":1},1,1,1,1,1,1,1,1,1,1,1,1,1,1,1,1,1,1,1,1,1,1,1,1,1,1,1,1,1,1,1,1,1,1,1,1,1,1,1,1,1,1,1,1,1,1]
["Maroondah (C)",0,0,0,0,0,0,0,0,0,0,1,1,1,1,1,1,1,1,1,1,1,1,1,1,1,1,1,1,1,{"$f":"IF($B$1=2,$C215*AE$157,AE$151)","v":1},1,1,1,{"$f":"IF($B$1=2,$C215*AI$157,AI$151)","v":1},1,1,1,1,1,1,1,1,1,1,1,1,1,1,1,1,1,1,1,1,1,1,1,1,1,1,1,1,1,1,1,1,1,1,1,1,1,1,1,1,1,1,1,1,1,1]
["Melbourne (C)",0,0,0,0,0,0,0,0,0,0,1,1,1,1,1,1,1,1,1,1,1,1,1,1,1,1,1,1,1,{"$f":"IF($B$1=2,$C216*AE$157,AE$151)","v":1},1,1,1,{"$f":"IF($B$1=2,$C216*AI$157,AI$151)","v":1},1,1,1,1,1,1,1,1,1,1,1,1,1,1,1,1,1,1,1,1,1,1,1,1,1,1,1,1,1,1,1,1,1,1,1,1,1,1,1,1,1,1,1,1,1,1]
["Monash (C)",0,0,0,0,0,0,0,0,0,0,1,1,1,1,1,1,1,1,1,1,1,1,1,1,1,1,1,1,1,{"$f":"IF($B$1=2,$C217*AE$157,AE$151)","v":1},1,1,1,{"$f":"IF($B$1=2,$C217*AI$157,AI$151)","v":1},1,1,1,1,1,1,1,1,1,1,1,1,1,1,1,1,1,1,1,1,1,1,1,1,1,1,1,1,1,1,1,1,1,1,1,1,1,1,1,1,1,1,1,1,1,1]
["Port Phillip (C)",0,0,0,0,0,0,0,0,0,0,1,1,1,1,1,1,1,1,1,1,1,1,1,1,1,1,1,1,1,{"$f":"IF($B$1=2,$C218*AE$157,AE$151)","v":1},1,1,1,{"$f":"IF($B$1=2,$C218*AI$157,AI$151)","v":1},1,1,1,1,1,1,1,1,1,1,1,1,1,1,1,1,1,1,1,1,1,1,1,1,1,1,1,1,1,1,1,1,1,1,1,1,1,1,1,1,1,1,1,1,1,1]
["South Gippsland (S)",0,0,0,0,0,0,0,0,0,0,1,1,1,1,1,1,1,1,1,1,1,1,1,1,1,1,1,1,1,{"$f":"IF($B$1=2,$C219*AE$157,AE$151)","v":1},1,1,1,{"$f":"IF($B$1=2,$C219*AI$157,AI$151)","v":1},1,1,1,1,1,1,1,1,1,1,1,1,1,1,1,1,1,1,1,1,1,1,1,1,1,1,1,1,1,1,1,1,1,1,1,1,1,1,1,1,1,1,1,1,1,1]
["Stonnington (C)",0,0,0,0,0,0,0,0,0,0,1,1,1,1,1,1,1,1,1,1,1,1,1,1,1,1,1,1,1,{"$f":"IF($B$1=2,$C220*AE$157,AE$151)","v":1},1,1,1,{"$f":"IF($B$1=2,$C220*AI$157,AI$151)","v":1},1,1,1,1,1,1,1,1,1,1,1,1,1,1,1,1,1,1,1,1,1,1,1,1,1,1,1,1,1,1,1,1,1,1,1,1,1,1,1,1,1,1,1,1,1,1]
["Whitehorse (C)",0,0,0,0,0,0,0,0,0,0,1,1,1,1,1,1,1,1,1,1,1,1,1,1,1,1,1,1,1,{"$f":"IF($B$1=2,$C221*AE$157,AE$151)","v":1},1,1,1,{"$f":"IF($B$1=2,$C221*AI$157,AI$151)","v":1},1,1,1,1,1,1,1,1,1,1,1,1,1,1,1,1,1,1,1,1,1,1,1,1,1,1,1,1,1,1,1,1,1,1,1,1,1,1,1,1,1,1,1,1,1,1]
["Yarra Ranges (S)",0,0,0,0,0,0,0,0,0,0,1,1,1,1,1,1,1,1,1,1,1,1,1,1,1,1,1,1,1,{"$f":"IF($B$1=2,$C222*AE$157,AE$151)","v":1},1,1,1,{"$f":"IF($B$1=2,$C222*AI$157,AI$151)","v":1},1,1,1,1,1,1,1,1,1,1,1,1,1,1,1,1,1,1,1,1,1,1,1,1,1,1,1,1,1,1,1,1,1,1,1,1,1,1,1,1,1,1,1,1,1,1]
["Yarra Ranges (S)",0,0,0,0,0,0,0,0,0,0,1,1,1,1,1,1,1,1,1,1,1,1,1,1,1,1,1,1,1,{"$f":"IF($B$1=2,$C223*AE$157,AE$151)","v":1},1,1,1,{"$f":"IF($B$1=2,$C223*AI$157,AI$151)","v":1},1,1,1,1,1,1,1,1,1,1,1,1,1,1,1,1,1,1,1,1,1,1,1,1,1,1,1,1,1,1,1,1,1,1,1,1,1,1,1,1,1,1,1,1,1,1]
[]
[null,null,"Disconnect","Connect"]
["Bass Coast (S)","Residential (one or two large industrial)",0,1]
["Bayside (C)","Residential",1,0]
["Boroondara (C)","Residential",1,0]
["Cardinia (S)","Residential ",1,0]
["Casey (C)","Residential Growth. Industrial Area",0,1]
["Frankston (C)","Residential & Industrial Areas",0,1]
["Glen Eira (C)","Residential",1,0]
["Greater Dandenong (C)","Industrial",0,1]
["Kingston (C)","Residential (near water) & Industrial Areas more inland. ",0,1]
["Knox (C)","Residential & Industrial Areas",0,1]
["Manningham (C)","Residentia (mainly) but some  Industrial Areas",0,1]
["Maroondah (C)","Residential & Industrial Areas (outer east)",0,1]
["Melbourne (C)","Industry",0,1]
["Monash (C)","Industrial with mixed residential ",0,1]
["Nillumbik (S)","Residential ",1,0]
["Port Phillip (C)","Residential – very dense development. ",1,0]
["South Gippsland (S)","Residential (one or two large industrial)",0,1]
["Stonnington (C)","Inner residential – does include some smaller industry",0,1]
["Whitehorse (C)","Residential & Industrial Areas ",0,1]
["Yarra Ranges (S)","Regional Area – Residential with some Industry",0,1]

{"sheet":"Volumes","index":5,"n_rows":89,"n_cols":37,"rows_kept":89,"cut":false,"hidden":false,"merged":[]}
["Residential volume GJ","2012Q1","2012Q2","2012Q3","2012Q4","2013Q1","2013Q2","2013Q3","2013Q4","2014Q1","2014Q2","2014Q3","2014Q4","2015Q1","2015Q2","2015Q3","2015Q4","2016Q1","2016Q2","2016Q3","2016Q4","2017Q1","2017Q2","2017Q3","2017Q4","2018Q1","2018Q2","2018Q3","2018Q4","2019Q1","2019Q2","2019Q3","2019Q4","2020Q1","2020Q2","2020Q3","2020Q4"]
["Bass Coast (S)",3842.9067275171865,14872.793787829201,20782.968961357561,8258.4533075131167,3256.2559999999999,13170.67,16673.760999999999,22717.288,4984.067,15722.856,20634.828000000001,21483.516,4731.0290000000005,22624.120999999999,24097.085999999999,24607.434000000001,4594.1289999999999,18436.886999999999,26527.276000000002,30446.116000000002,5702.7520000000004,23392.376,30554.797999999999,31156.725999999999,5186.6570000000002,26552.257000000001,31856.544000000002,31324.165000000001,5914.5159999999996,28397.022000000001,35506.980000000003,37714.159,6196.9409999999998,35571.796000000002,39622.184000000001,35112.940999999999]
["Bayside (C)",224137.5956329178,799051.26191087742,984618.65605379583,361089.37794629822,186947.97899999999,354636.99099999998,1125385.3230000001,523048.89199999999,221303.11900000001,380543.34600000002,1100298.9480000001,419983.46100000001,195381.18100000001,517634.587,1229325.7339999999,417817.93,172761.13699999999,368358.74099999998,1128051.3640000001,539571.73100000003,217193.18,466189.05300000001,1185131.6910000001,464710.03200000001,185368.47399999999,418878.91800000001,1132787.5279999999,468919.96,192195.83900000001,416818.19500000001,1106087.757,516151.67499999999,228359.04399999999,542281.71799999999,1177207.54,482698.86599999998]
["Boroondara (C)",386562.72701213794,1442556.3646066389,1780368.0770430055,641547.11615225673,299560.20899999997,735453.05299999996,1894856.9609999999,1041024.378,370326.31199999998,797519.51500000001,1816038.344,842161.10400000005,307808.201,1022462.425,2035286.298,832241.76599999995,261554.64300000001,793617.06900000002,1823547.057,1052680.568,330549.11200000002,933097.01100000006,1956753.6580000001,926510.9,283212.53999999998,813502.04799999995,1868500.625,917772.92700000003,284548.74699999997,800763.30599999998,1791240.199,1004730.727,338572.32500000001,1053628.4509999999,1883787.8910000001,916484.973]
["Cardinia (S)",32043.064433571602,102339.82792488929,126796.21818955525,51637.638132899199,21292.243999999999,32249.651000000002,159515.63800000001,74282.828999999998,25395.098999999998,63231.036,126873.121,65573.678,23270.242999999999,79218.573000000004,146250.299,63564.521999999997,19413.544999999998,72450.679000000004,123462.304,84659.13,26061.897000000001,82490.214000000007,133997.65,77140.603000000003,20548.406999999999,69610.873000000007,136532.13,71143.900999999998,21511.953000000001,70089.983999999997,129563.658,81743.491999999998,27966.442999999999,86254.365000000005,129337.906,74406.273000000001]
["Casey (C)",79190.855979880536,262503.90608820901,325162.04223561572,120853.35276293028,66038.702000000005,129369.63400000001,362147.446,173228.432,80663.294999999998,125704.099,359112,140762.07500000001,70482.085000000006,167358.87400000001,404241.28100000002,135298.94699999999,62107.483999999997,126055.534,382429.05699999997,171366.492,72761.192999999999,150081.16200000001,404880.08199999999,150844.856,65726.963000000003,135304.992,372134.62199999997,154648.378,66686.176999999996,133570.59700000001,368406.44199999998,167390.66200000001,81332.95,173891.78200000001,379004.03899999999,146751.36199999999]
["Frankston (C)",6.8621439393939401,7.5585166666666703,8.0593784946236493,7.7232564780539397,9.61,5.6870000000000003,9.8369999999999997,5.0919999999999996,9.9030000000000005,5.8520000000000003,10.545999999999999,9.8670000000000009,7.5190000000000001,6.4320000000000004,13.648999999999999,6.9870000000000001,13.29,7.2,15.135,6.8090000000000002,12.888,6.5030000000000001,14.393000000000001,5.5119999999999996,10.705,5.5259999999999998,14.906000000000001,5.9560000000000004,7.39,5.15,12.189,5.33,9.0869999999999997,5.9249999999999998,15.952,7.7169999999999996]
["Glen Eira (C)",276246.62080149888,986995.00541037694,1222911.1176043304,463654.03609206376,212071.79300000001,493848.15399999998,1309010.5190000001,682020.81799999997,252062.883,536890.277,1236159.2549999999,564295.18000000005,233115.93150310559,756366.34033816424,1378194.1370000001,572005.68200000003,242706.87584126982,574589.08784126979,1279272.835,710101.97699999996,239148.81400000001,652270.70499999996,1330713.6040000001,637305.84400000004,207276.21799999999,572384.20499999996,1299647.5789999999,634206.20200000005,211115.42199999999,560328.35699999996,1258088.54,693289.62100000004,255393.76500000001,727649.79200000002,1315168.575,641500.23800000001]
["Greater Dandenong (C)",293952.91426141775,894121.60141955107,1110355.1823218488,441246.50830404967,249209.367,462636.79100000003,1228446.5179999999,639212.505,294710.31800000003,493532.636,1177807.129,547846.26,276808.58299999998,658050.62,1322357.156,557484.44799999997,246287.459,515069.326,1258656.254,697724.12199999997,291305.62199999997,609470.17299999995,1327053.6159999999,630388.73800000001,267067.40600000002,563297.01300000004,1293316.5090000001,626471.82799999998,276300.72600000002,571405.08100000001,1255564.155,723875.48699999996,304861.34299999999,701359.78200000001,1273047.558,620675.19200000004]
["Kingston (C)",265355.60611159017,880631.38647863583,1085040.8821974529,404816.8929508382,216206.88099999999,437234.321,1184295.2690000001,619654.70600000001,255567.32500000001,460141.75099999999,1151962.4879999999,523309.81400000001,230821.37899999999,619301.18299999996,1286483.0959999999,519549.86099999998,214459.73499999999,472200.1,1200012.8289999999,635868.45700000005,243986.288,559901.022,1246004.2849999999,576313.10499999998,217796.10399999999,524982.89099999995,1200330.6680000001,569413.53099999996,222164.236,509764.68199999997,1158540.1640000001,626468.02099999995,260455.63099999999,644320.44999999995,1210826.014,571145.69200000004]
["Knox (C)",367461.0709968257,1336706.2559501007,1668357.9498725224,591164.53366286529,288090.092,683208.77800000005,1776667.838,922788.39399999997,350358.82,700534.23199999996,1727788.223,752552.02,314966.180375,919675.90080952377,1932562.1259999999,746137.16,284316.50218452379,682854.79818452382,1806475.89,947299.21100000001,319946.37300000002,847545.78700000001,1920881.98,840079.46799999999,284142.891,745491.29,1836398.513,822876.44700000004,290015.11800000002,730630.08400000003,1770045.2579999999,934564.31200000003,352843.82699999999,946892.80200000003,1822612.811,810162.37100000004]
["Manningham (C)",282314.60669660434,1091789.8203549592,1333586.4900955369,464259.58299216535,231270.24900000001,492954.62599999999,1529222.648,688762.97199999995,276165.18800000002,546711.41599999997,1423743.36,569850.79599999997,236451.519,698530.82700000005,1612623.1089999999,551019.46400000004,204515.973,516349.66499999998,1463741.784,733174.26699999999,245954.848,664184.94900000002,1567885.9839999999,637048.32999999996,212930.01699999999,574814.19400000002,1485890.976,618748.39099999995,217383.853,566896.46100000001,1428168.23,685574.17599999998,264413.71899999998,748081.59199999995,1481878.9609999999,633853.06999999995]
["Maroondah (C)",217371.51593906691,829395.6928806894,1023392.7252538159,361742.65157599479,165645.65900000001,409683.13500000001,1114353.095,564362.31599999999,206138.541,446601.35600000003,1079867.0759999999,463525.25400000002,180131.071,577805.41700000002,1219210.2709999999,450426.80300000001,160705.967,448938.46,1129833.4099999999,603774.76500000001,193418.367,554721.01399999997,1206037.7509999999,525952.16399999999,167603.94500000001,476143.01299999998,1155939.7120000001,507564.88500000001,168840.44099999999,467201.908,1112570.3959999999,580945.01899999997,210448.247,602908.924,1146831.8910000001,513383.07699999999]
["Melbourne (C)",20628.542218663988,33266.251026464881,36576.208475380554,27222.826412345898,10319.633,16329.97,35787.387999999999,48021.836000000003,18866.719000000001,70030.135999999999,32798.339999999997,45677.161999999997,20642.758000000002,48908.303999999996,44742.705000000002,46393.413999999997,23486.238000000001,44069.741999999998,31094.643,75496.459000000003,22130.929,53534.506999999998,41978.245999999999,54362.572,21083.378000000001,58304.811000000002,45010.41,64007.09,25066.768,61709.45,48141.718000000001,68143.813999999998,25831.760999999999,59780.976999999999,42975.625,55668.474000000002]
["Monash (C)",388867.52510202775,1350523.2361363107,1677513.8641328942,617893.72026315227,305335.77600000001,612920.02500000002,1847165.382,943013.41599999997,376657.31599999999,695460.58499999996,1765711.78,769419.27899999998,336328.04461259081,934050.967133953,1988340.432,793972.74899999995,273518.05774654378,701942.43174654373,1836769.443,967027.43599999999,339225.07500000001,857231.46400000004,1932793.693,843876.32,304894.95400000003,780198.36399999994,1832561.189,832453.61,310205.989,761151.076,1775729.916,915214.49699999997,375343.27399999998,966588.30700000003,1819231.3970000001,811514.91700000002]
["Nillumbik (S)",78.671190985485069,350.04853366338051,318.86387372714614,158.50010402536032,68.974999999999994,217.49700000000001,422.49099999999999,152.441,101.48,129.423,480.41399999999999,89.822999999999993,122.694,171.322,479.23399999999998,68.596000000000004,48.655000000000001,167.12799999999999,434.07900000000001,139.33600000000001,97.885999999999996,168.161,502.9,82.082999999999998,81.338999999999999,130.554,508.28199999999998,74.724000000000004,102.1,119.285,492.94,119.07899999999999,108.9,159.97,471.166,89.35]
["Port Phillip (C)",189642.61649808745,476645.84207781649,570734.31914087688,268399.42466247297,160727.807,250312.73499999999,619072.06099999999,384748.88900000002,196729.01300000001,292023.57500000001,597834.95799999998,316425.891,175762.33600000001,378133.67599999998,660269.03200000001,325028.04200000002,145387.64199999999,291774.34499999997,612828.62,377247.43699999998,176843.571,342738.32199999999,642640.95900000003,350483.554,168657.16899999999,320066.57900000003,624697.46,355128.67300000001,173308.149,314241.549,604693.90800000005,381094.61700000003,181859.304,374571.87,617080.44900000002,340132.163]
["South Gippsland (S)",3149.6810064855331,15727.382745012068,21135.48348528687,7339.4336329125226,2220.3780000000002,10410.498,16839.358,20592.638999999999,3369.116,10838.269,18806.605,20081.545999999998,3324.366,17176.697,29776.007000000001,14664.040999999999,3812.82,13702.656000000001,30206.521000000001,20206.260999999999,5579.8360000000002,14797.709000000001,35605.004000000001,16194.798000000001,4943.2690000000002,13394.733,34437.086000000003,19932.041000000001,6679.1549999999997,12788.129000000001,38644.94,19936.39,8973.1970000000001,17937.384999999998,44394.968000000001,13963.999]
["Stonnington (C)",222533.51589019931,697577.96467689052,849334.36872378853,342684.53896735999,199268.56899999999,349588.68800000002,956141.85900000005,492090.31699999998,247691.34899999999,370953.93300000002,946931.54299999995,374019.50400000002,216902.76300000001,472396.315,1058699.4010000001,374113.755,196146.628,350783.75699999998,980654.10199999996,477875.20299999998,220290.04,421118.62199999997,1027652.871,417393.81099999999,200392.677,372720.61599999998,988162.60400000005,426560.01400000002,207810.77299999999,367260.31400000001,952741.62300000002,454600.641,233216.003,481013.24,978623.23800000001,427778.663]
["Whitehorse (C)",383772.79824253637,1391297.4213419398,1721049.822139974,625449.60619636707,307345.38799999998,651940.69900000002,1922948.4029999999,927180.67299999995,395167.45600000001,711045.78599999996,1836226.254,759476.39399999997,327146.77878892043,935044.08185170463,2068524.683,747856.16299999994,283252.31364062498,698018.22764062497,1898754.0789999999,984999,342167.75300000003,884392.72100000002,1999022.8,838986.67799999996,294880.65100000001,770100.71499999997,1921752.71,822313.77899999998,302345.00099999999,762431.76199999999,1854718.93,919082.76800000004,368725.14500000002,979147.02099999995,1887376.483,835819.01899999997]
["Yarra Ranges (S)",300407.75877987244,1096301.4149058214,1348491.0917666596,497422.43256977171,214348.12899999999,629351.13899999997,1311412.091,828902.27899999998,265546.10600000003,631589.75899999996,1332641.8589999999,684032.01100000006,236706.38399999999,806072.88899999997,1490148.0049999999,678160.34499999997,203414.927,627068.05099999998,1416425.3330000001,868442.89,251732.54800000001,756014.103,1507629.7450000001,781840.36,210779.77799999999,637869.24199999997,1465569.4269999999,762682.84199999995,219787.33499999999,616701.83200000005,1433426.3759999999,846493.44200000004,282750.81,795975.68000000005,1473593.3629999999,722985.46100000001]
["Multinet",3937567.4556658268,13702661.036773343,16906534.390945923,6296848.3499447601,3139233.696,6765522.7419999996,18410373.886,9595811.1119999997,3841813.4249999998,7349209.8380000005,17751727.070999999,7880574.6349999998,3390911.0462796167,9630989.552133346,19931623.741,7850418.1090000002,3002504.0214129626,7316453.8854129631,18429192.015000001,9978107.6669999994,3544108.9720000001,8873345.5779999997,19497735.710000001,8800676.4539999999,3122583.5419999999,7873752.8339999998,18726049.48,8706249.3440000005,3201989.6880000001,7752274.2240000004,18122384.318999998,9657137.9289999995,3807661.716,9938021.8289999999,18723088.011,8654133.818]
[]
["Small business volume GJ","2012Q1","2012Q2","2012Q3","2012Q4","2013Q1","2013Q2","2013Q3","2013Q4","2014Q1","2014Q2","2014Q3","2014Q4","2015Q1","2015Q2","2015Q3","2015Q4","2016Q1","2016Q2","2016Q3","2016Q4","2017Q1","2017Q2","2017Q3","2017Q4","2018Q1","2018Q2","2018Q3","2018Q4","2019Q1","2019Q2","2019Q3","2019Q4","2020Q1","2020Q2","2020Q3","2020Q4"]
["Bass Coast (S)",6174.7714612614091,8864.9988013479815,10436.82957705761,7138.5639975137656,2455.6019999999999,12207.781000000001,1317.9459999999999,16405.573,5168.2060000000001,10384.210999999999,8548.6039999999994,12378.855,5313.0280000000002,13419.177,9190.4110000000001,13621.708000000001,5109.1459999999997,11615.494000000001,9090.4709999999995,13924.437,5350.7929999999997,13191.222,9085.0249999999996,14901.035,4848.7929999999997,14189.351000000001,8999.8459999999995,14749.709000000001,5498.1970000000001,13556.495000000001,9726.9779999999992,15465.665000000001,6163.3760000000002,11803.026,8900.9760000000006,12729.932000000001]
["Bayside (C)",35293.117119880757,58894.557562094844,63748.287771761512,40979.127421417565,34895.531999999999,39849.453000000001,85884.717999999993,54497.911999999997,45606.99,47278.697999999997,82815.525999999998,48634.214,44495.940999999999,56541.974999999999,106302.19100000001,33303.449999999997,42585.239000000001,52444.911,90235.025999999998,50104.358999999997,43870.673000000003,50498.55,85906.98,42706.586000000003,37924.18,51381.482000000004,73310.400999999998,41836.997000000003,39557.122000000003,42149.565000000002,71193.77,44525.822,31190.379000000001,34485.595999999998,58324.002,36329.163999999997]
["Boroondara (C)",68061.125679289515,126365.29375320177,141737.35689331184,82214.779438580837,97209.384000000005,121549.78,249035.97899999999,159881.64000000001,91614.508000000002,123845.38400000001,208366.03700000001,140611.03200000001,84286.191000000006,141294.78700000001,209849.72,135312.24400000001,78991.707999999999,117306.197,220241.93,154442.64499999999,93786.372000000003,121224.065,172576.79300000001,114030.507,66112.495999999999,106031.827,150176.68900000001,116750.99400000001,66587.967999999993,103140.77099999999,149434.217,123506.15399999999,57971.040000000001,91723.551999999996,118357.84699999999,87138.226999999999]
["Cardinia (S)",1881.8632804003948,4294.431748008974,5518.5362316616402,2790.3056652833302,1771.8019999999999,1611.3320000000001,6286.759,4430.2640000000001,2066.5,5117.0280000000002,6089.9989999999998,3861.9259999999999,3482.5,5364.7960000000003,6922.6629999999996,4552.7749999999996,3127.7979999999998,4931.2489999999998,6407.9380000000001,5299.3559999999998,3941.4630000000002,5204.1040000000003,7735.0119999999997,4965.9480000000003,2504.1559999999999,4619.53,6643.9480000000003,3690.6979999999999,1704.5239999999999,3788.7179999999998,5215.1450000000004,3960.7420000000002,1824.124,3314.152,3954.3339999999998,2900.7429999999999]
["Casey (C)",5732.7446386561614,9481.4292582009857,10622.336828647496,5764.2699520847154,5275.77,6775.1750000000002,14891.58,10147.962,8366.3240000000005,9063.9120000000003,13757.174999999999,10878.616,10191.421,10161.477000000001,14549.869000000001,9083.1049999999996,5990.7650000000003,8144.1769999999997,14789.611999999999,10064.757,6758.2929999999997,8631.4699999999993,12280.089,5921.1229999999996,4824.8069999999998,4451.8370000000004,10584.487999999999,5985.3149999999996,6867.4250000000002,4950.4579999999996,10279.791999999999,8030.3919999999998,4126.2659999999996,4685.3159999999998,9068.9159999999993,4802.5240000000003]
["Frankston (C)",0,0,0,0,2432.44,2058.6,4941.88,3450.29,3041.59,3027.31,3621.68,3508.89,3176.93,3343.59,2796.76,2442.33,2310.71,2363.0300000000002,2415.7399999999998,1580.17,2451.7399999999998,2095.31,720.24,0,0,0,0,0,0,0,0,0,0,0,0,0]
["Glen Eira (C)",38274.568961431076,61101.520194679273,68161.988498760315,41850.645293519381,33759.389000000003,63546.955999999998,100042.52,116491.508,48891.845000000001,68619.622000000003,99826.516000000003,73979.017000000007,43767.815999999999,75493.41,102420.79300000001,70855.12,42593.044999999998,66597.584000000003,98923.402000000002,82535.641000000003,48385.572999999997,69327.612999999998,73288.888000000006,55163.775999999998,36864.644999999997,54439.523000000001,65975.225999999995,56400.09,33600.798000000003,51224.406999999999,65562.380999999994,54027.987999999998,31570.147000000001,44782.144,50174.881999999998,42779.838000000003]
["Greater Dandenong (C)",142308.76321479306,193490.38129414266,231783.00235412607,154719.97093384044,982950.37899999996,752170.679,1477332.4620000001,1106777.0179999999,945994.23100000003,1015176.7389999999,1196089.18,1053441.1939999999,980064.50663295493,1079602.6524587064,1324668.07,1072721.027,1061571.9520916613,1138063.2430916613,1316115.335,1028588.062,979658.51300000004,741027.53099999996,568524.74600000004,142244.03700000001,737477.24300000002,140806.74100000001,212791.62899999999,140291.34700000001,148032.02600000001,152379.48800000001,214400.992,142035.997,81493.69,125570.746,158870.16399999999,116760.753]
["Kingston (C)",87975.920165525269,123805.32833262392,140298.8659875218,95991.207536367947,186446.39199999999,218293.04300000001,402614.48499999999,283422.38099999999,233821.74900000001,277485.663,343782.95,306443.21000000002,209529.53343103448,300282.06991224911,335348.48599999998,270308.15399999998,215785.8273432836,274957.75234328362,316943.93599999999,287490.821,207093.43400000001,211559.00899999999,180393.86799999999,107424.17,64824.764000000003,105983.039,133348.41800000001,109232.109,70711.794999999998,99690.043000000005,131512.63099999999,116623.391,59714.196000000004,99466.667000000001,111292.167,98582.436000000002]
["Knox (C)",76163.419907914242,133146.92156051009,147964.59811021178,86971.270210474526,186229.432,331797.64,483237.81300000002,358908.625,283261.984,341500.054,417161.01500000001,350500.81199999998,276898.33600000001,364213.62099999998,401499.435,299531.74099999998,288066.17800000001,352188.033,420063.49400000001,374438.946,295550.27799999999,260499.829,238856.976,99585.475999999995,60354.595000000001,92926.847999999998,140311.92600000001,99105.540999999997,62505.703999999998,86408.597999999998,132095.40299999999,98895.115000000005,48036.845999999998,82452.373999999996,107654.961,79077.137000000002]
["Manningham (C)",36375.667988405701,63898.426395966555,77629.562609047338,43514.241633969126,37806.487999999998,44086.578000000001,89061.659,63041.419000000002,44759.673000000003,57801.750999999997,85077.764999999999,56091.55,41743.339999999997,58605.974999999999,92857.812000000005,54100.561999999998,42376.404999999999,44712.959999999999,86807.5,60088.04,42192.991999999998,80054.142999999996,87449.2,53065.478000000003,35213.89,45392.95,81652.127999999997,51071.468000000001,37415.747000000003,46637.072999999997,76803.145000000004,53679.614999999998,32666.785,40239.745999999999,58075.394,40228.983]
["Maroondah (C)",33450.42667809828,64406.021708310218,77169.15348980228,42764.256530292558,61615.59,90509.019,161696.084,97316.192999999999,65492.036,81233.334000000003,131991.783,90284.993000000002,70822.069544642844,95276.028260504201,129124.329,74731.633000000002,72523.321805147047,100148.54980514705,129243.708,86378.554000000004,62788.044999999998,64557.106,93173.884999999995,43037.531000000003,31798.856,40943.417999999998,73765.251000000004,42947.451000000001,28941.487000000001,40039.508000000002,68592.759999999995,46720.597999999998,26185.119999999999,36317.978999999999,51491.103999999999,34504.118000000002]
["Melbourne (C)",27006.384671713844,49173.229596093115,59667.685969677703,35741.693606003209,213777.7,161900.614,400505.81800000003,282086.94,218410.34899999999,252878.538,261997.75200000001,226250.97399999999,148632.54699999999,221746.98699999999,302638.76,228646.12400000001,142620.23300000001,194040.64499999999,254576.6,217740.83300000001,141416.946,140844.674,120989.417,68176.016000000003,26781.487000000001,70804.180999999997,65601.100999999995,69937.599000000002,25743.028999999999,65348.292000000001,63567.353000000003,76334.864000000001,28384.307000000001,62425.792999999998,47548.87,52807.631000000001]
["Monash (C)",105624.08356232323,170806.95341628609,191732.14092234697,115991.77694486183,287730.56800000003,314462.49300000002,641351.28,413643.859,273189.91899999999,327916.12599999999,502066.19099999999,420973.67300000001,281121.8213190143,410932.81995874015,562761.12100000004,384147.08600000001,287376.72127775452,373596.82927775453,543989.94700000004,426192.75,279983.95600000001,286871.03100000002,307579.00199999998,137780.01500000001,81840.600999999995,131000.807,172952.39199999999,133742.49900000001,81945.232000000004,122618.182,161857.88099999999,141604.88,68006.088000000003,111102.378,133462.07500000001,105645.136]
["Port Phillip (C)",121432.84418645789,193412.87520969956,215046.3262994338,139081.07364042837,277331.245,272969.50599999999,603276.99,433118.20600000001,300254.875,387107.114,531214.01,403971.36300000001,271695.47921875003,417849.35706711066,525210.64599999995,386703.29800000001,310254.22628586064,362482.50828586065,517137.43800000002,417417.45400000003,299787.96799999999,256434.63099999999,322630.57199999999,150535.41899999999,104294.155,161033.48499999999,225454.24799999999,160284.63099999999,109896.916,155389.405,219370.91899999999,162448.302,89480.930999999997,133829.01,170595.71599999999,119735.216]
["South Gippsland (S)",3684.6367427711039,7274.2644369928867,8316.5182042123306,4999.9525963407332,69276.7,39954.273999999998,66388.981,95889.547999999995,68928.111000000004,66109.111999999994,72477.067999999999,96440.561000000002,79692.019,81033.354000000007,92173.74,102589.126,75838.535999999993,61285.661999999997,76396.596000000005,68257.232000000004,3460.1849999999999,6328.02,7604.0630000000001,7596.7830000000004,3012.06,5725.9049999999997,7949.4319999999998,7176.7659999999996,4296.3710000000001,5052.6379999999999,9766.0840000000007,6623.37,3905.3290000000002,4928.6570000000002,9138.1190000000006,5942.7489999999998]
["Stonnington (C)",82011.195509351921,128413.3494324794,164805.87670037843,98474.259247536946,190823.329,156740.78599999999,379986.69,263079.32199999999,197773.682,215704.1,310673.85200000001,218544.239,169015.95300000001,230560.40100000001,303569.53100000002,196512.43,158546.63099999999,212828.85500000001,352844.08,199770.88699999999,185046.39499999999,181392.51,215205.59400000001,98837.319000000003,78701.729000000007,98581.77,156555.77600000001,104545.895,82923.445000000007,97047.941999999995,158102.34,107711.942,68645.502999999997,81948.512000000002,120794.212,79743.873000000007]
["Whitehorse (C)",68263.496176848945,122276.16093917786,141264.13236190993,81845.047919223929,321657.37199999997,301032.68400000001,624946.50699999998,439049.94,332760.43400000001,394087.89500000002,472529.11,380567.087,321393.68319458124,375959.79569827585,265820.83500000002,460157.37900000002,76374.94089285715,803751.42889285716,473684.94799999997,426383.54800000001,251034.58799999999,291608.27799999999,234834.81,104612.231,65844.116999999998,100092.321,139614.06400000001,108883.875,66336.414999999994,102994.321,147649.68400000001,117924.63,58983.696000000004,82956.869000000006,103717.857,76242.254000000001]
["Yarra Ranges (S)",47998.309059743166,102969.59738218113,118598.5121909281,61252.241825036021,95634.724000000002,127090.325,251675.533,187464.55300000001,117526.565,143030.894,217106.92600000001,114410.486,72681.28369827586,291397.17233297415,213490.984,143943.59700000001,95964.883031249992,119360.73303125,181934.91699999999,141699.26500000001,70603.880999999994,92079.676999999996,143700.90299999999,77992.948000000004,42774.938000000002,66410.129000000001,104252.795,79795.289999999994,42448.983999999997,64289.364999999998,106448.56,79118.869000000006,30146.387999999999,54871.970999999998,80637.466,53057.534]
["Multinet",987713.33900486608,1622075.7410219973,1874501.7110007969,1142084.6843927749,3089079.838,3058606.7179999999,6044475.6840000004,4389103.1529999999,3286929.571,3827367.4849999999,4965193.1390000004,4011772.6919999998,3118004.3990392536,4233079.4456885606,5001196.1560000004,3943262.889,3008008.2667278145,4300819.8417278137,5111842.6179999998,4052397.7570000002,3023162.088,2883428.773,2882536.0630000001,1328576.398,1485997.5120000001,1294815.1440000001,1829939.7579999999,1346428.274,915013.18500000006,1256705.2690000001,1801580.0349999999,1399238.3359999999,728494.21100000001,1106904.4879999999,1402059.0619999999,1049008.2479999999]
[]
["Residential volume GJ (FY)",2012,{"$f":"B46+1","v":2013},{"$f":"C46+1","v":2014},2015,2016,2017,2018,2019,2020,2021]
["Bass Coast (S)",18715.700515346329,45468.348268870745,60097.972000000002,69473.494000000006,71735.535999999993,86068.52,93450.437999999995,97492.247000000003,114989.876,74735.125]
["Bayside (C)",1023188.8575437894,1887293.0040000889,2250280.6800000002,2233298.1770000001,2188263.5419999999,2351005.3280000002,2254089.1150000002,2210721.5219999999,2392880.1940000001,1659906.406]
["Boroondara (C)",1829119.0916187987,3456928.455195284,4103727.1660000002,3988470.074,3922699.7760000001,4139873.7480000001,3979979.1460000002,3871585.605,4188171.702,2800272.8640000001]
["Cardinia (S)",134382.89235846049,231975.75132245437,322424.60200000001,294935.61499999999,301679.04499999998,316673.54499999998,301297.533,299277.96799999999,325527.95799999998,203744.179]
["Casey (C)",341694.76206808951,641423.73099854682,741743.272,737715.03399999999,727703.24600000004,776637.90399999998,756756.89300000004,727039.77399999998,791021.83600000001,525755.40099999995]
["Frankston (C)",14.42066060606061,31.079634972677589,30.684000000000001,34.363999999999997,41.125999999999998,41.335000000000001,36.136000000000003,33.402000000000001,32.530999999999999,23.669]
["Glen Eira (C)",1263241.6262118891,2392485.1006964003,2779984.497,2789936.70684127,2767495.7826825394,2880794.3309999998,2747679.8709999998,2705297.56,2934421.7179999999,1956668.8130000001]
["Greater Dandenong (C)",1188074.5156809611,2263447.8486258942,2655901.977,2660512.5920000002,2641198.389,2857156.1710000001,2787806.773,2767494.1439999999,2985660.767,1893722.75]
["Kingston (C)",1145986.9925902248,2143298.9771483094,2519659.051,2525394.8640000001,2492692.7919999999,2639768.5959999999,2565096.3849999998,2501673.1170000001,2689784.2659999998,1781971.706]
["Knox (C)",1704167.3269469133,3230821.3535353695,3750349.284,3714982.3241845234,3645870.5863690479,3921267.2609999999,3790595.6290000002,3679920.162,4004346.199,2632775.182]
["Manningham (C)",1374104.4270515738,2522070.9480876857,3040862.2239999999,2928576.5019999999,2884508.2110000001,3107055.8480000002,2992678.5249999999,2888919.6809999999,3126237.7170000002,2115732.031]
["Maroondah (C)",1046767.2088197636,1960464.1708298014,2331455.3080000002,2301328.818,2279281.5010000002,2481747.5559999999,2375736.8730000001,2299546.946,2506872.5860000001,1660214.9680000001]
["Melbourne (C)",53894.793245128902,90448.637887726465,172706.079,148026.56400000001,158692.09899999999,182256.538,175729.00700000001,195793.71799999999,201898.27,98644.099000000002]
["Monash (C)",1739390.7612383363,3213663.3853959893,3862296.699,3805510.0707465438,3757773.6704930877,4000253.4180000001,3861763.3309999998,3736371.8640000001,4032875.9939999999,2630746.3139999998]
["Nillumbik (S)",428.71972464886551,763.83597775250655,805.83500000000004,864.25300000000004,763.61300000000006,839.46199999999999,796.87599999999998,804.39099999999996,880.88900000000001,560.51599999999996]
["Port Phillip (C)",666288.45857590716,1250174.2858033357,1492573.5379999999,1468156.861,1422459.061,1509657.95,1481848.2609999999,1467375.831,1542219.699,957212.61199999996]
["South Gippsland (S)",18877.063751497586,41105.793118199319,51639.381999999998,59389.214,61955.523999999998,70790.327000000005,70137.804000000004,73836.410999999993,85491.911999999997,58358.966999999997]
["Stonnington (C)",920111.48056708719,1740876.1646911374,2066877.4580000001,2010250.125,1979743.541,2099937.9670000002,2018159.9750000001,1989793.7050000001,2121571.5070000002,1406401.9010000001]
["Whitehorse (C)",1775070.2195844995,3305785.5153363114,3956342.318,3857893.508640625,3797651.3872812502,4110313.5529999998,3902990.844,3808843.2519999999,4121673.8640000001,2723195.5019999999]
["Yarra Ranges (S)",1396709.1736856934,2689612.7923364257,3037450.2349999999,3059453.1430000002,2998791.3280000002,3292614.8739999998,3138119.125,3064741.4360000002,3358646.3080000002,2196578.824]
["Multinet",17640228.492439214,33108139.178890556,39197208.261,38654202.304412961,38100999.756825931,40824754.232000001,39294748.539999999,38386562.736000001,41525205.792999998,27377221.829]
[]
["Small business volume GJ",2012,{"$f":"B69+1","v":2013},{"$f":"C69+1","v":2014},2015,2016,2017,2018,2019,2020,2021]
["Bass Coast (S)",15039.770262609391,32238.776574571366,33275.936000000002,39659.663999999997,39536.758999999998,41556.923000000003,43024.203999999998,42804.247000000003,43159.044999999998,21630.907999999999]
["Bayside (C)",94187.674681975521,179472.40019317914,233268.318,232487.65599999999,234635.791,234708.60800000001,217919.228,196854.08499999999,181395.56700000001,94653.165999999997]
["Boroondara (C)",194426.41943249086,442711.30033189245,624377.51100000006,574558.04700000002,541459.86899999995,589695.01199999999,458751.62300000002,436656.42200000002,422634.96299999999,205496.07399999999]
["Cardinia (S)",6176.2950284093668,11691.975896944967,17900.550999999999,18799.221000000001,19534.485000000001,20852.861000000001,19824.646000000001,15827.888000000001,14314.163,6855.0770000000002]
["Casey (C)",15214.17389685715,28437.551780732229,42469.777999999998,44988.688999999998,37767.915999999997,40244.131999999998,27477.856,28387.686000000002,27121.766,13871.44]
["Frankston (C)",0,4491.04,14461.07,13651.09,9912.83,8542.9599999999991,720.24,0,0,0]
["Glen Eira (C)",99376.089156110407,207318.97879227917,334045.495,293066.75900000002,282466.54200000002,299172.22899999999,219756.83199999999,207200.52100000001,195942.66,92954.72]
["Greater Dandenong (C)",335799.14450893592,2121624.0312879682,4545280.45,4309197.5330916615,4597024.2921833228,4065389.4410000001,1589052.767,653494.49,563501.42500000005,275630.91700000002]
["Kingston (C)",211781.24849814907,641029.50852388865,1197344.2779999999,1160037.7633432837,1096400.2196865673,1023087.2,458625.84100000001,412982.36499999999,407316.88500000001,209874.603]
["Knox (C)",209310.34146842419,752962.94032068632,1466908.476,1408773.784,1341285.3870000001,1350552.547,491723.89500000002,388331.76899999997,361479.73800000001,186732.098]
["Manningham (C)",100274.09438437234,203036.87024301683,254664.50200000001,241518.63,234047.739,269142.67499999999,221121.51800000001,216776.416,203389.291,98304.376999999993]
["Maroondah (C)",97856.448386408505,272058.01902009489,405737.647,388374.87380514707,376527.8336102941,342967.413,208953.69,185693.69699999999,177816.45699999999,85995.221999999994]
["Melbourne (C)",76179.614267806959,471087.69357568113,1153881.645,858628.26,867945.76199999999,754579.05299999996,286751.10100000002,226630.02100000001,230712.31700000001,100356.501]
["Monash (C)",276431.03697860951,909916.97886720893,1656101.1839999999,1615094.5052777545,1607881.757555509,1537037.6839999999,658200.42500000005,511258.30499999999,482571.22700000001,239107.21100000001]
["Port Phillip (C)",314845.71939615748,904428.15093986236,1723757.1850000001,1624730.2092858606,1584650.6785717213,1490777.4909999999,738493.63100000005,651025.19999999995,605129.16200000001,290330.93199999997]
["South Gippsland (S)",10958.901179763989,122547.44480055304,297315.75199999998,329643.00199999998,331887.06400000001,154442.033,23938.811000000002,24475.206999999999,25223.439999999999,15080.868]
["Stonnington (C)",210424.54494183109,610844.2509479156,1056543.794,928794.44499999995,871457.44700000004,919053.87199999997,491326.41200000001,441073.05800000002,416408.29700000002,200538.08499999999]
["Whitehorse (C)",190539.65711602691,845799.23628113396,1790844.7760000001,1550449.6758928571,1606104.5837857143,1442711.362,505383.47899999999,417828.67499999999,407514.87900000002,179960.111]
["Yarra Ranges (S)",150967.90644192448,402575.80301596405,699697.54500000004,695595.86803124996,572760.19706250005,486317.74,330878.91800000001,290786.43400000001,270585.788,133695]
["Multinet",2609789.0800268631,9164272.9513935745,17547875.892999999,16328049.675727813,16253287.153455632,15070831.236,6991925.1169999996,5348086.4859999996,5036217.07,2451067.31]

{"sheet":"Customers","index":6,"n_rows":277,"n_cols":37,"rows_kept":277,"cut":false,"hidden":false,"merged":[]}
["Residential Customers",2012,2012,2012,2012,{"$f":"B1+1","v":2013},{"$f":"C1+1","v":2013},2013,2013,{"$f":"F1+1","v":2014},{"$f":"G1+1","v":2014},{"$f":"H1+1","v":2014},{"$f":"I1+1","v":2014},{"$f":"J1+1","v":2015},{"$f":"K1+1","v":2015},{"$f":"L1+1","v":2015},{"$f":"M1+1","v":2015},{"$f":"N1+1","v":2016},{"$f":"O1+1","v":2016},{"$f":"P1+1","v":2016},{"$f":"Q1+1","v":2016},{"$f":"R1+1","v":2017},{"$f":"S1+1","v":2017},{"$f":"T1+1","v":2017},{"$f":"U1+1","v":2017},{"$f":"V1+1","v":2018},{"$f":"W1+1","v":2018},{"$f":"X1+1","v":2018},{"$f":"Y1+1","v":2018},{"$f":"Z1+1","v":2019},{"$f":"AA1+1","v":2019},{"$f":"AB1+1","v":2019},{"$f":"AC1+1","v":2019},{"$f":"AD1+1","v":2020},{"$f":"AE1+1","v":2020},{"$f":"AF1+1","v":2020},{"$f":"AG1+1","v":2020}]
["LGA","2012Q1","2012Q2","2012Q3","2012Q4","2013Q1","2013Q2","2013Q3","2013Q4","2014Q1","2014Q2","2014Q3","2014Q4","2015Q1","2015Q2","2015Q3","2015Q4","2016Q1","2016Q2","2016Q3","2016Q4","2017Q1","2017Q2","2017Q3","2017Q4","2018Q1","2018Q2","2018Q3","2018Q4","2019Q1","2019Q2","2019Q3","2019Q4","2020Q1","2020Q2","2020Q3","2020Q4"]
["Bass Coast (S)",1349,1488,1568,1659,1515,1698,1751,1841,1848,2010,2012,2139,2068,2245,2235,2344,2238,2469,2474,2567,2522,2709,2728,2823,2668,2948,2947,3087,2976,3256,3242,3378,3354,3503,3489,3624]
["Bayside (C)",35486,35638,35701,35741,34474,34804,34924,35025,35035,35604,35802,35456,35076,35850,35759,35449,34925,35796,36034,35792,36027,36177,36295,36275,36107,36341,36478,36428,36282,36435,36592,36639,36627,36671,36807,36792]
["Boroondara (C)",61104,61429,61537,61680,59479,60204,59776,60497,60278,61359,61506,60980,59826,61626,61226,60976,59942,61318,61500,61186,61326,61804,61840,61756,61249,61837,61942,61918,61410,61943,62169,62194,61861,62105,62024,61819]
["Cardinia (S)",3920,3957,3965,3965,3853,3894,3946,3935,3904,3975,3994,3979,3907,4003,4022,4006,3922,4024,4029,4031,4033,4073,4079,4097,4031,4091,4101,4102,4061,4115,4123,4124,4107,4132,4146,4145]
["Casey (C)",12420,12451,12451,12464,12238,12313,12236,12365,12362,12458,12494,12481,12455,12572,12510,12516,12387,12582,12607,12591,12622,12720,12759,12758,12718,12761,12792,12816,12779,12883,12897,12914,12897,12949,12986,12992]
["Frankston (C)",1,1,1,1,1,1,1,1,1,1,1,1,1,1,1,1,1,1,1,1,1,1,1,1,1,1,1,1,1,1,1,1,1,1,1,1]
["Glen Eira (C)",48986,49246,49427,49502,47782,48387,48395,48805,48687,49350,49548,49416,48761,49935,49593,49569,48754,49830,50031,49827,50056,50320,50368,50361,50052,50463,50657,50695,50404,50880,51056,51124,51035,51220,51306,51207]
["Greater Dandenong (C)",50366,50637,50833,51002,49925,50313,50318,50787,50937,51469,51669,51683,51411,52362,52238,52634,52117,53005,53334,53459,53701,54075,54244,54374,54228,54696,54978,55110,55019,55474,55735,55866,55855,56050,56253,56313]
["Kingston (C)",49448,49713,49818,49908,48677,49130,49153,49599,49581,50080,50382,50194,49696,50666,50617,50649,50077,50919,51202,51084,51210,51565,51778,51794,51541,52017,52233,52300,52258,52643,52930,53037,53022,53163,53344,53369]
["Knox (C)",58692,59000,59165,59242,58187,58512,58381,59002,59015,59441,59679,59719,59270,60058,59899,60064,59523,60391,60684,60598,60703,61005,61234,61326,61073,61335,61589,61696,61576,62024,62261,62352,62339,62519,62695,62773]
["Manningham (C)",40910,41050,41138,41181,40180,40478,40473,40811,40855,41187,41314,41080,40694,41390,41305,41122,40689,41392,41553,41478,41548,41722,41861,41846,41692,42015,42196,42213,42105,42440,42695,42834,42854,43056,43163,43186]
["Maroondah (C)",35545,35727,35874,35977,35189,35502,35521,35905,35869,36354,36575,36530,36233,36955,36934,37023,36586,37311,37462,37491,37521,37799,37858,37892,37632,37920,38096,38094,37859,38178,38307,38388,38317,38514,38596,38594]
["Melbourne (C)",726,765,755,771,710,718,746,767,743,772,762,781,761,780,762,768,756,790,788,785,781,807,788,800,797,831,825,837,808,831,822,838,816,848,811,822]
["Monash (C)",61240,61652,61800,61919,60498,60940,60884,61460,61334,61951,62197,62136,61498,62459,62265,62359,61457,62579,62723,62682,62761,63216,63361,63301,62881,63398,63560,63642,63362,63977,64220,64379,64314,64492,64620,64685]
["Nillumbik (S)",8,8,8,8,8,7,7,8,8,8,8,8,8,8,8,8,8,8,8,8,8,8,8,8,8,8,8,8,8,8,8,8,8,8,8,8]
["Port Phillip (C)",37339,37481,37446,37411,35785,35975,36222,36521,36326,36965,37001,36704,35920,37109,36822,36638,35631,36907,36912,36821,36856,37184,37191,37160,36974,37368,37327,37330,37053,37304,37362,37376,37183,37313,37200,36885]
["South Gippsland (S)",1132,1226,1298,1355,1248,1356,1382,1448,1428,1513,1547,1593,1541,1660,1679,1707,1665,1769,1789,1819,1792,1864,1896,1908,1851,1945,1972,2009,1972,2040,2067,2084,2109,2129,2169,2160]
["Stonnington (C)",37880,38036,38039,37996,36348,36703,36912,36909,36878,37505,37643,37168,36437,37734,37527,37002,36531,37524,37698,37322,37423,37646,37800,37597,37215,37576,37751,37639,37283,37578,37832,37680,37507,37528,37592,37066]
["Whitehorse (C)",63007,63313,63490,63579,62022,62624,62415,62645,62918,63597,63951,63758,63034,64198,64023,64013,63140,64220,64430,64259,64391,64789,64922,64946,64713,65153,65242,65279,65040,65435,65689,65812,65692,65843,65980,65932]
["Yarra Ranges (S)",43563,43843,43979,44067,43075,43638,43319,44119,43983,44488,44684,44646,44200,45174,44940,45246,44573,45540,45846,45929,45927,46331,46526,46576,46252,46734,46977,47088,46865,47269,47477,47581,47458,47733,47900,47964]
["Total",643122,646661,648293,649428,631194,637197,636762,642450,641990,650087,652769,650452,642797,656785,654365,654094,644922,658375,661105,659730,661209,665815,667537,667599,663683,669438,671672,672292,669121,674714,677485,678609,677356,679777,681090,680337]
[]
["Residential New customers",null,"2012Q2","2012Q3","2012Q4","2013Q1","2013Q2","2013Q3","2013Q4","2014Q1","2014Q2","2014Q3","2014Q4","2015Q1","2015Q2","2015Q3","2015Q4","2016Q1","2016Q2","2016Q3","2016Q4","2017Q1","2017Q2","2017Q3","2017Q4","2018Q1","2018Q2","2018Q3","2018Q4","2019Q1","2019Q2","2019Q3","2019Q4","2020Q1","2020Q2","2020Q3","2020Q4"]
["Bass Coast (S)",null,146,89,101,17,225,111,122,81,173,55,142,56,198,51,129,60,244,57,119,67,198,63,110,42,288,65,166,79,287,56,158,73,171,51,164]
["Bayside (C)",null,249,202,219,94,995,974,953,867,979,566,409,654,1162,493,588,858,1387,617,395,674,466,395,297,341,522,411,299,376,514,432,355,363,395,375,321]
["Boroondara (C)",null,537,377,448,151,1816,1568,2245,1476,1904,916,812,1120,2516,811,1155,1333,2323,996,818,1149,1027,652,618,625,1179,707,666,615,1145,741,642,606,939,596,636]
["Cardinia (S)",null,42,17,10,5,81,86,48,50,96,46,28,36,119,52,33,49,132,39,42,50,54,32,31,15,76,28,21,25,69,21,23,21,42,25,18]
["Casey (C)",null,54,27,40,12,185,178,269,114,156,119,100,106,167,74,153,132,271,101,91,132,133,90,54,47,115,87,86,68,146,68,76,66,104,81,67]
["Frankston (C)",null,0,0,0,0,0,0,0,0,0,0,0,0,0,0,0,0,0,0,0,0,0,0,0,0,0,0,0,0,0,0,0,0,0,0,0]
["Glen Eira (C)",null,455,350,300,113,1426,1287,1445,1027,1276,751,661,701,1630,567,918,954,1788,818,645,927,711,503,475,460,843,595,475,476,862,550,528,512,649,533,488]
["Greater Dandenong (C)",null,396,328,330,141,977,1057,1220,767,899,514,503,494,1197,533,871,604,1301,675,616,706,647,463,426,378,715,566,473,411,706,490,399,413,523,448,366]
["Kingston (C)",null,395,260,302,141,1024,1046,1195,804,935,660,450,582,1340,587,724,672,1296,695,462,705,643,511,394,442,810,565,477,593,753,574,465,438,524,465,408]
["Knox (C)",null,379,260,223,106,854,959,1240,645,790,511,405,373,1024,461,671,556,1189,573,336,552,529,469,404,332,586,495,415,400,729,447,336,363,469,371,325]
["Manningham (C)",null,234,179,185,90,805,821,977,604,631,395,282,464,954,339,455,596,1051,471,360,499,443,375,297,347,616,457,343,347,625,476,411,391,511,377,356]
["Maroondah (C)",null,254,220,204,104,685,705,854,532,732,438,342,411,894,367,480,420,937,372,345,396,444,234,215,195,485,307,199,192,483,268,249,220,370,227,199]
["Melbourne (C)",null,44,4,23,4,36,45,32,12,43,17,26,10,28,15,33,24,49,31,34,28,33,14,25,27,42,21,27,10,35,14,27,9,39,9,30]
["Monash (C)",null,530,294,302,119,1148,1277,1451,811,1082,692,539,509,1368,558,816,733,1694,695,605,809,835,549,436,462,918,618,551,525,1036,629,583,590,759,603,631]
["Nillumbik (S)",null,0,0,0,0,0,0,1,0,0,0,0,0,0,0,0,0,0,0,0,0,0,0,0,0,0,0,0,0,0,0,0,0,0,0,0]
["Port Phillip (C)",null,363,268,311,149,1202,1510,1378,1031,1356,776,749,852,1837,734,932,999,2001,772,725,899,817,570,593,648,893,548,597,573,850,609,570,571,744,576,568]
["South Gippsland (S)",null,99,78,64,7,121,61,75,41,101,58,61,31,126,44,56,36,123,51,43,30,86,50,30,33,104,48,54,36,81,43,36,48,43,55,25]
["Stonnington (C)",null,404,288,342,178,1403,1425,1307,1254,1414,880,723,985,1976,737,884,1271,1729,814,585,993,850,708,531,685,973,728,572,616,952,762,533,653,796,686,510]
["Whitehorse (C)",null,437,328,315,151,1399,1239,1637,1435,1378,864,583,704,1617,639,869,831,1690,736,534,813,778,545,491,522,857,550,464,483,834,594,515,519,679,521,472]
["Yarra Ranges (S)",null,375,236,238,87,942,802,1247,469,816,487,436,520,1212,417,750,486,1258,528,382,439,585,385,263,268,698,408,312,311,614,393,310,239,477,322,299]
["Total",null,5393,3805,3957,1669,15324,15151,17696,12020,14761,8745,7251,8608,19365,7479,10517,10614,20463,9041,7137,9868,9279,6608,5690,5869,10720,7204,6197,6136,10721,7167,6216,6095,8234,6321,5883]
[]
["Residential Disconnections",null,"2012Q2","2012Q3","2012Q4","2013Q1","2013Q2","2013Q3","2013Q4","2014Q1","2014Q2","2014Q3","2014Q4","2015Q1","2015Q2","2015Q3","2015Q4","2016Q1","2016Q2","2016Q3","2016Q4","2017Q1","2017Q2","2017Q3","2017Q4","2018Q1","2018Q2","2018Q3","2018Q4","2019Q1","2019Q2","2019Q3","2019Q4","2020Q1","2020Q2","2020Q3","2020Q4"]
["Bass Coast (S)",null,7,9,10,161,42,58,32,74,11,53,15,127,21,61,20,166,13,52,26,112,11,44,15,197,8,66,26,190,7,70,22,97,22,65,29]
["Bayside (C)",null,97,139,179,1361,665,854,852,857,410,368,755,1034,388,584,898,1382,516,379,637,439,316,277,317,509,288,274,349,522,361,275,308,375,351,239,336]
["Boroondara (C)",null,212,269,305,2352,1091,1996,1524,1695,823,769,1338,2274,716,1211,1405,2367,947,814,1132,1009,549,616,702,1132,591,602,690,1123,612,515,617,939,695,677,841]
["Cardinia (S)",null,5,9,10,117,40,34,59,81,25,27,43,108,23,33,49,133,30,34,40,48,14,26,13,81,16,18,20,66,15,13,22,38,17,11,19]
["Casey (C)",null,23,27,27,238,110,255,140,117,60,83,113,132,50,136,147,261,76,76,107,101,35,51,55,87,72,56,62,105,42,54,59,83,52,44,61]
["Frankston (C)",null,0,0,0,0,0,0,0,0,0,0,0,0,0,0,0,0,0,0,0,0,0,0,0,0,0,0,0,0,0,0,0,0,0,0,0]
["Glen Eira (C)",null,195,169,225,1833,821,1279,1035,1145,613,553,793,1356,456,909,942,1769,712,617,849,698,447,455,482,769,432,401,437,767,386,374,460,601,464,447,587]
["Greater Dandenong (C)",null,125,132,161,1218,589,1052,751,617,367,314,489,766,246,657,475,1121,413,346,491,464,273,294,296,524,247,284,341,502,251,229,268,424,328,245,306]
["Kingston (C)",null,130,155,212,1372,571,1023,749,822,436,358,638,1080,370,636,692,1244,454,412,580,579,288,298,378,695,334,349,410,635,368,287,358,453,383,284,383]
["Knox (C)",null,71,95,146,1161,529,1090,619,632,364,273,365,822,236,620,506,1097,321,280,422,447,227,240,312,585,324,241,308,520,281,210,245,376,289,195,247]
["Manningham (C)",null,94,91,142,1091,507,826,639,560,299,268,516,850,258,424,638,1029,348,310,435,429,269,236,312,501,293,276,326,455,290,221,272,371,309,270,333]
["Maroondah (C)",null,72,73,101,892,372,686,470,568,247,217,387,708,172,388,391,857,212,221,316,366,166,175,181,455,197,131,201,427,164,139,168,291,173,145,201]
["Melbourne (C)",null,5,14,7,65,28,17,11,36,14,27,7,30,9,33,27,36,15,33,37,32,7,33,13,30,8,27,15,39,12,23,11,31,7,46,19]
["Monash (C)",null,118,146,183,1540,706,1333,875,937,465,446,600,1147,407,752,722,1635,572,551,646,730,380,404,496,882,401,456,469,805,421,386,424,655,581,475,566]
["Nillumbik (S)",null,0,0,0,0,1,0,0,0,0,0,0,0,0,0,0,0,0,0,0,0,0,0,0,0,0,0,0,0,0,0,0,0,0,0,0]
["Port Phillip (C)",null,221,303,346,1775,1012,1263,1079,1226,717,740,1046,1636,648,1021,1116,2006,725,767,816,864,489,563,624,834,499,589,594,850,599,551,556,764,614,689,883]
["South Gippsland (S)",null,5,6,7,114,13,35,9,61,16,24,15,83,7,25,28,78,19,31,13,57,14,18,18,90,10,21,17,73,13,16,19,23,23,15,34]
["Stonnington (C)",null,248,285,385,1826,1048,1216,1310,1285,787,742,1198,1716,679,944,1409,1742,736,640,961,892,627,554,734,1067,612,553,684,972,657,508,685,826,775,622,1036]
["Whitehorse (C)",null,131,151,226,1708,797,1448,1407,1162,699,510,776,1428,453,814,879,1704,610,526,705,681,380,412,467,755,417,461,427,722,439,340,392,639,528,384,520]
["Yarra Ranges (S)",null,95,100,150,1079,379,1121,447,605,311,291,474,966,238,651,444,1159,291,222,299,441,181,190,213,592,216,165,201,534,210,185,206,362,202,155,235]
["Total",null,1854,2173,2822,19903,9321,15586,12008,12480,6664,6063,9568,16263,5377,9899,10788,19786,7010,6311,8512,8389,4673,4886,5628,9785,4965,4970,5577,9307,5128,4396,5092,7348,5813,5008,6636]
[]
["Commercial Customers"]
["LGA","2012Q1","2012Q2","2012Q3","2012Q4","2013Q1","2013Q2","2013Q3","2013Q4","2014Q1","2014Q2","2014Q3","2014Q4","2015Q1","2015Q2","2015Q3","2015Q4","2016Q1","2016Q2","2016Q3","2016Q4","2017Q1","2017Q2","2017Q3","2017Q4","2018Q1","2018Q2","2018Q3","2018Q4","2019Q1","2019Q2","2019Q3","2019Q4","2020Q1","2020Q2","2020Q3","2020Q4"]
["Bass Coast (S)",43,44,45,46,42,44,35,45,46,49,47,46,46,46,47,47,46,48,47,47,48,51,52,54,50,54,54,55,55,56,56,57,55,56,55,56]
["Bayside (C)",738,748,745,744,682,696,716,693,699,720,724,714,682,721,719,710,686,724,733,720,714,728,736,727,696,709,720,710,697,705,714,711,697,678,687,681]
["Boroondara (C)",1349,1345,1345,1345,1252,1299,1315,1308,1283,1327,1329,1329,1272,1351,1342,1338,1288,1346,1367,1355,1353,1380,1390,1380,1338,1372,1374,1384,1357,1393,1393,1384,1359,1362,1341,1330]
["Cardinia (S)",95,97,97,95,93,93,95,95,95,97,100,100,93,100,99,97,95,95,95,96,91,95,94,92,87,90,89,88,85,87,88,87,86,86,85,84]
["Casey (C)",139,139,139,138,120,134,138,135,134,139,141,138,132,137,134,130,124,135,136,135,134,136,137,135,132,134,141,142,137,137,143,144,140,138,139,137]
["Frankston (C)",0,0,0,0,1,1,1,1,1,1,1,1,1,1,1,1,1,1,1,1,1,1,1,0,0,0,0,0,0,0,0,0,0,0,0,0]
["Glen Eira (C)",951,951,950,946,871,906,925,933,899,939,938,928,875,949,933,942,899,952,959,946,942,975,988,986,945,977,984,982,940,967,961,960,926,930,937,935]
["Greater Dandenong (C)",1253,1269,1264,1242,1224,1267,1267,1256,1239,1265,1265,1260,1207,1279,1281,1280,1247,1268,1276,1251,1243,1262,1280,1214,1161,1196,1208,1211,1184,1206,1216,1203,1171,1181,1175,1170]
["Kingston (C)",1168,1206,1196,1188,1095,1159,1187,1172,1141,1187,1203,1197,1119,1205,1193,1191,1148,1202,1201,1197,1159,1197,1207,1171,1107,1146,1155,1157,1102,1141,1149,1155,1114,1139,1134,1121]
["Knox (C)",1079,1101,1106,1089,1012,1064,1102,1067,1063,1083,1098,1090,1038,1105,1108,1088,1020,1082,1098,1097,1052,1098,1097,1073,1015,1063,1078,1056,1012,1045,1059,1050,1013,1027,1013,1005]
["Manningham (C)",533,534,530,522,486,495,502,502,505,518,518,514,503,528,532,518,509,518,530,526,525,536,534,533,523,530,538,536,531,533,539,537,530,531,528,522]
["Maroondah (C)",578,581,577,573,536,557,560,552,538,553,557,551,527,558,559,556,529,559,561,558,536,561,563,564,534,558,560,557,540,548,557,547,533,532,537,522]
["Melbourne (C)",150,152,153,155,150,158,159,159,162,170,167,172,169,171,170,173,171,181,175,186,187,183,187,172,166,175,178,181,174,178,179,182,178,180,176,177]
["Monash (C)",1258,1274,1281,1267,1178,1239,1262,1251,1205,1249,1259,1246,1196,1256,1250,1253,1189,1237,1267,1258,1228,1269,1263,1236,1156,1206,1221,1217,1160,1202,1210,1211,1156,1181,1176,1164]
["Port Phillip (C)",1495,1503,1511,1499,1407,1417,1472,1467,1448,1499,1491,1476,1433,1506,1487,1493,1439,1500,1480,1476,1471,1500,1495,1477,1428,1465,1459,1462,1435,1454,1453,1442,1416,1418,1408,1395]
["South Gippsland (S)",36,39,40,39,38,39,29,42,43,45,46,46,43,45,44,44,42,44,44,44,43,44,44,45,42,44,46,47,44,45,46,47,48,48,48,48]
["Stonnington (C)",1236,1257,1252,1238,1140,1186,1228,1213,1206,1224,1229,1214,1172,1252,1245,1251,1207,1266,1282,1281,1264,1287,1318,1287,1234,1277,1309,1305,1264,1292,1294,1293,1267,1281,1263,1256]
["Whitehorse (C)",1105,1112,1111,1103,1000,1064,1088,1086,1067,1106,1123,1114,1070,1118,1118,1108,1053,1124,1131,1122,1098,1138,1143,1133,1072,1123,1127,1113,1091,1116,1125,1126,1109,1102,1100,1088]
["Yarra Ranges (S)",859,871,864,861,806,846,848,849,823,855,861,848,812,862,857,849,801,851,850,850,819,851,855,844,813,846,856,850,811,834,838,837,814,811,798,799]
["Total",14065,14223,14206,14090,13133,13664,13929,13826,13597,14026,14097,13984,13390,14190,14119,14069,13494,14133,14233,14146,13908,14292,14384,14123,13499,13965,14097,14053,13619,13939,14020,13973,13612,13681,13600,13490]
[]
["Commercial New customers","2012Q1","2012Q2","2012Q3","2012Q4","2013Q1","2013Q2","2013Q3","2013Q4","2014Q1","2014Q2","2014Q3","2014Q4","2015Q1","2015Q2","2015Q3","2015Q4","2016Q1","2016Q2","2016Q3","2016Q4","2017Q1","2017Q2","2017Q3","2017Q4","2018Q1","2018Q2","2018Q3","2018Q4","2019Q1","2019Q2","2019Q3","2019Q4","2020Q1","2020Q2","2020Q3","2020Q4"]
["Bass Coast (S)",null,1,1,1,0,2,0,10,3,3,0,0,2,2,1,1,0,2,0,0,2,4,1,2,0,4,2,1,2,2,0,1,0,3,1,2]
["Bayside (C)",null,14,7,8,9,42,42,22,42,39,19,15,16,52,18,20,31,54,24,14,24,26,14,7,8,29,16,5,11,19,15,6,7,13,26,20]
["Boroondara (C)",null,17,14,13,15,74,59,48,45,79,29,34,29,102,38,53,45,86,50,32,49,48,28,17,14,52,22,32,29,52,18,12,16,33,21,27]
["Cardinia (S)",null,2,1,0,1,3,3,1,3,5,4,0,0,7,0,1,2,3,1,3,0,4,2,0,1,5,1,0,0,3,1,0,0,1,0,2]
["Casey (C)",null,3,2,1,2,16,9,5,5,7,4,0,1,8,1,2,2,12,4,2,4,6,2,1,1,4,8,3,1,6,6,2,1,3,4,1]
["Frankston (C)",null,0,0,0,1,0,0,0,0,0,0,0,0,0,0,0,0,0,0,0,0,0,0,0,0,0,0,0,0,0,0,0,0,0,0,0]
["Glen Eira (C)",null,14,13,10,12,67,46,34,26,63,30,21,18,93,24,42,29,75,34,24,37,44,23,15,13,48,20,12,8,43,7,16,10,33,27,17]
["Greater Dandenong (C)",null,34,14,13,71,72,39,37,47,65,42,38,32,96,39,42,39,62,44,26,42,37,30,17,18,58,30,24,21,47,23,11,24,34,23,25]
["Kingston (C)",null,52,10,13,31,87,53,36,42,70,42,30,28,117,34,38,47,98,33,32,34,64,30,16,21,64,30,24,17,58,26,26,9,50,24,19]
["Knox (C)",null,33,19,15,22,86,49,20,45,56,33,21,27,83,24,17,20,83,35,21,12,54,22,18,14,62,25,6,9,52,22,11,6,38,19,27]
["Manningham (C)",null,6,3,2,5,25,22,16,20,24,9,8,11,28,13,9,12,22,20,6,12,19,6,10,11,20,10,5,10,13,9,4,8,13,11,8]
["Maroondah (C)",null,8,3,8,8,31,14,14,17,28,18,12,10,37,12,17,14,38,22,13,12,30,12,10,0,27,9,10,8,23,16,5,8,19,15,4]
["Melbourne (C)",null,2,1,2,19,11,3,5,7,13,4,7,5,6,3,8,4,10,2,13,5,1,4,2,1,9,4,4,1,7,3,3,1,4,1,5]
["Monash (C)",null,34,23,16,37,89,58,32,34,74,40,27,28,83,40,42,31,89,61,30,34,57,23,26,9,76,31,18,12,60,28,17,9,58,27,30]
["Port Phillip (C)",null,26,24,11,29,77,97,65,57,83,44,49,46,112,47,68,53,99,45,42,51,55,34,32,21,60,33,26,21,48,27,17,27,39,30,23]
["South Gippsland (S)",null,3,1,0,1,3,0,13,3,3,1,0,0,2,0,0,0,2,0,0,1,1,0,2,0,3,2,1,0,2,2,1,1,1,2,2]
["Stonnington (C)",null,26,11,6,20,71,72,36,47,63,51,42,57,114,53,59,53,89,47,35,36,47,52,15,20,60,50,25,22,64,21,19,23,41,25,26]
["Whitehorse (C)",null,24,15,9,17,90,56,46,37,69,38,26,26,66,32,32,21,88,36,24,37,56,26,21,11,67,17,16,29,40,27,19,18,24,24,26]
["Yarra Ranges (S)",null,17,3,10,17,56,22,22,19,47,27,17,26,71,15,19,23,64,16,18,11,41,15,14,9,44,21,8,10,37,13,8,7,18,14,22]
["Total",null,316,165,138,317,902,644,462,499,791,435,347,362,1079,394,470,426,976,474,335,403,594,324,225,172,692,331,220,211,576,264,178,175,425,294,286]
[]
["Commercial disconnections","2012Q1","2012Q2","2012Q3","2012Q4","2013Q1","2013Q2","2013Q3","2013Q4","2014Q1","2014Q2","2014Q3","2014Q4","2015Q1","2015Q2","2015Q3","2015Q4","2016Q1","2016Q2","2016Q3","2016Q4","2017Q1","2017Q2","2017Q3","2017Q4","2018Q1","2018Q2","2018Q3","2018Q4","2019Q1","2019Q2","2019Q3","2019Q4","2020Q1","2020Q2","2020Q3","2020Q4"]
["Bass Coast (S)",null,0,0,0,4,0,9,0,2,0,2,1,2,2,0,1,1,0,1,0,1,1,0,0,4,0,2,0,2,1,0,0,2,2,2,1]
["Bayside (C)",null,4,10,9,71,28,22,45,36,18,15,25,48,13,20,29,55,16,15,27,30,12,6,16,39,16,5,15,24,11,6,9,21,32,17,26]
["Boroondara (C)",null,21,14,13,108,27,43,55,70,35,27,34,86,23,47,57,95,28,29,44,51,21,18,27,56,18,20,22,56,16,18,21,41,30,42,38]
["Cardinia (S)",null,0,1,2,3,3,1,1,3,3,1,0,7,0,1,3,4,3,1,2,5,0,3,2,6,2,2,1,3,1,0,1,1,1,1,3]
["Casey (C)",null,3,2,2,20,2,5,8,6,2,2,3,7,3,4,6,8,1,3,3,5,4,1,3,4,2,1,2,6,6,0,1,5,5,3,3]
["Frankston (C)",null,0,0,0,0,0,0,0,0,0,0,0,0,0,0,0,0,0,0,0,0,0,0,1,0,0,0,0,0,0,0,0,0,0,0,0]
["Glen Eira (C)",null,14,14,14,87,32,27,26,60,23,31,31,71,19,40,33,72,22,27,37,41,11,10,17,54,16,13,14,50,16,13,17,44,29,20,19]
["Greater Dandenong (C)",null,18,19,35,89,29,39,48,64,39,42,43,85,24,37,43,72,41,36,51,50,18,12,83,71,23,18,21,48,25,13,24,56,24,29,30]
["Kingston (C)",null,14,20,21,124,23,25,51,73,24,26,36,106,31,46,40,90,44,34,36,72,26,20,52,85,25,21,22,72,19,18,20,50,25,29,32]
["Knox (C)",null,11,14,32,99,34,11,55,49,36,18,29,79,16,21,37,88,21,19,22,57,8,23,42,72,14,10,28,53,19,8,20,43,24,33,35]
["Manningham (C)",null,5,7,10,41,16,15,16,17,11,9,12,22,3,9,23,21,13,8,10,13,8,8,11,21,13,2,7,15,11,3,6,15,12,14,14]
["Maroondah (C)",null,5,7,12,45,10,11,22,31,13,14,18,34,6,11,20,41,8,20,16,34,5,10,9,30,3,7,13,25,15,7,15,22,20,10,19]
["Melbourne (C)",null,0,0,0,24,3,2,5,4,5,7,2,8,4,4,5,6,0,8,2,4,5,0,17,7,0,1,1,8,3,2,0,5,2,5,4]
["Monash (C)",null,18,16,30,126,28,35,43,80,30,30,40,78,23,46,39,95,41,31,39,64,16,29,53,89,26,16,22,69,18,20,16,64,33,32,42]
["Port Phillip (C)",null,18,16,23,121,67,42,70,76,32,52,64,89,39,66,62,107,38,65,46,56,26,39,50,70,23,39,23,48,29,28,28,53,37,40,36]
["South Gippsland (S)",null,0,0,1,2,2,10,0,2,1,0,0,3,0,1,0,2,0,0,0,2,0,0,1,3,1,0,0,3,1,1,0,0,1,2,2]
["Stonnington (C)",null,5,16,20,118,25,30,51,54,45,46,57,99,34,60,53,97,30,31,36,53,24,21,46,73,17,18,29,63,36,19,20,49,27,43,33]
["Whitehorse (C)",null,17,16,17,120,26,32,48,56,30,21,35,70,18,32,42,76,17,29,33,61,16,21,31,72,16,13,30,51,15,18,18,35,31,26,38]
["Yarra Ranges (S)",null,5,10,13,72,16,20,21,45,15,21,30,62,21,20,27,71,14,17,18,42,9,11,25,40,11,11,14,49,14,9,9,30,21,27,21]
["Total",null,158,182,254,1274,371,379,565,728,362,364,460,956,279,465,520,1001,337,374,422,641,210,232,486,796,226,199,264,645,256,183,225,536,356,375,396]
[]
["Residential customers"]
["LGA",2012,{"$f":"B139+1","v":2013},{"$f":"C139+1","v":2014},2015,2016,2017,2018,2019,2020,2021]
["Bass Coast (S)",1494,1780,2033,2266,2498,2726,2971,3298,3548,3653]
["Bayside (C)",35716,36018,36281,36467,36592,36824,36986,37219,37381,37128]
["Boroondara (C)",61613,62206,62719,62777,62774,62906,63129,63266,63469,62660]
["Cardinia (S)",3962,3985,4035,4038,4066,4099,4130,4148,4170,4164]
["Casey (C)",12472,12525,12571,12658,12709,12814,12891,12987,13073,13053]
["Frankston (C)",1,1,1,1,1,1,1,1,1,1]
["Glen Eira (C)",49416,49898,50368,50700,50877,51223,51419,51752,52150,51794]
["Greater Dandenong (C)",50749,51473,52131,52827,53696,54616,55283,56060,56719,56619]
["Kingston (C)",49828,50358,50852,51309,51721,52207,52801,53445,53913,53752]
["Knox (C)",59059,59590,60045,60488,61002,61526,62077,62627,63097,63020]
["Manningham (C)",41135,41440,41743,41856,42047,42291,42667,43069,43667,43519]
["Maroondah (C)",35790,36268,36792,37230,37754,38144,38338,38563,38893,38795]
["Melbourne (C)",770,783,796,797,802,827,850,858,867,841]
["Monash (C)",61763,62351,62909,63304,63709,64060,64465,64948,65614,65251]
["Nillumbik (S)",8,8,8,8,8,8,8,8,8,8]
["Port Phillip (C)",37683,37903,38003,38000,37904,38009,38268,38370,38324,37768]
["South Gippsland (S)",1231,1414,1546,1681,1798,1894,1976,2080,2162,2194]
["Stonnington (C)",38271,38537,38672,38664,38669,38675,38802,38770,38844,38102]
["Whitehorse (C)",63430,64094,64709,65022,65400,65664,66100,66325,66865,66452]
["Yarra Ranges (S)",43932,44501,45017,45533,46021,46690,47195,47737,48175,48199]
["Multinet",648323,655133,661231,665626,670048,675204,680357,685531,690940,686973]
[]
["Residential New customers"]
["LGA",2012,{"$f":"B163+1","v":2013},{"$f":"C163+1","v":2014},2015,2016,2017,2018,2019,2020,2021]
["Bass Coast (S)",null,290,264,240,246,244,262,340,280,150]
["Bayside (C)",null,436,635,664,690,772,704,705,715,351]
["Boroondara (C)",null,799,1043,965,1141,1178,1042,1014,945,476]
["Cardinia (S)",null,35,67,36,51,59,52,42,42,24]
["Casey (C)",null,76,89,147,121,176,144,148,162,86]
["Frankston (C)",null,0,0,0,0,0,0,0,0,0]
["Glen Eira (C)",null,663,873,999,890,1005,930,1014,964,474]
["Greater Dandenong (C)",null,836,946,1100,1270,1285,1063,1147,1029,464]
["Kingston (C)",null,676,820,896,950,1038,1085,1215,969,488]
["Knox (C)",null,623,699,748,849,890,1000,1106,887,439]
["Manningham (C)",null,401,538,495,626,720,845,889,991,434]
["Maroondah (C)",null,539,723,705,748,663,491,496,586,268]
["Melbourne (C)",null,19,21,11,16,32,38,18,14,5]
["Monash (C)",null,717,989,1111,1225,1266,1186,1378,1398,744]
["Nillumbik (S)",null,0,0,0,0,0,0,0,0,0]
["Port Phillip (C)",null,417,454,461,483,571,619,482,382,259]
["South Gippsland (S)",null,189,148,151,125,112,93,115,102,54]
["Stonnington (C)",null,488,567,579,642,619,609,512,550,252]
["Whitehorse (C)",null,824,1076,1070,1208,1150,1174,1006,1171,510]
["Yarra Ranges (S)",null,665,715,776,727,914,752,800,721,394]
["Multinet",null,8693,10667,11154,12008,12694,12089,12427,11908,5872]
[]
["Residential disconnections"]
["LGA",2012,{"$f":"B187+1","v":2013},{"$f":"C187+1","v":2014},2015,2016,2017,2018,2019,2020,2021]
["Bass Coast (S)",null,4,11,7,14,16,17,13,30,45]
["Bayside (C)",null,134,372,478,565,540,542,472,553,604]
["Boroondara (C)",null,206,530,907,1144,1046,819,877,742,1285]
["Cardinia (S)",null,12,17,33,23,26,21,24,20,30]
["Casey (C)",null,23,43,60,70,71,67,52,76,106]
["Frankston (C)",null,0,0,0,0,0,0,0,0,0]
["Glen Eira (C)",null,181,403,667,713,659,734,681,566,830]
["Greater Dandenong (C)",null,112,288,404,401,365,396,370,370,564]
["Kingston (C)",null,146,326,439,538,552,491,571,501,649]
["Knox (C)",null,92,244,305,335,366,449,556,417,516]
["Manningham (C)",null,96,235,382,435,476,469,487,393,582]
["Maroondah (C)",null,61,199,267,224,273,297,271,256,366]
["Melbourne (C)",null,6,8,10,11,7,15,10,5,31]
["Monash (C)",null,129,431,716,820,915,781,895,732,1107]
["Nillumbik (S)",null,0,0,0,0,0,0,0,0,0]
["Port Phillip (C)",null,197,354,464,579,466,360,380,428,815]
["South Gippsland (S)",null,6,16,16,8,16,11,11,20,22]
["Stonnington (C)",null,222,432,587,637,613,482,544,476,994]
["Whitehorse (C)",null,160,461,757,830,886,738,781,631,923]
["Yarra Ranges (S)",null,96,199,260,239,245,247,258,283,370]
["Multinet",null,1883,4569,6759,7586,7538,6936,7253,6499,9839]
[]
["Commercial customers"]
["LGA",2012,{"$f":"B211+1","v":2013},{"$f":"C211+1","v":2014},2015,2016,2017,2018,2019,2020,2021]
["Bass Coast (S)",44,46,49,47,48,51,54,57,58,57]
["Bayside (C)",751,758,753,743,749,754,755,735,730,707]
["Boroondara (C)",1363,1374,1380,1395,1404,1420,1428,1440,1424,1368]
["Cardinia (S)",97,99,100,100,101,97,95,89,89,87]
["Casey (C)",142,145,142,141,134,141,141,145,145,140]
["Frankston (C)",0,1,1,1,1,1,1,0,0,0]
["Glen Eira (C)",965,974,977,972,979,997,1018,1011,993,954]
["Greater Dandenong (C)",1287,1350,1324,1324,1337,1322,1320,1258,1255,1200]
["Kingston (C)",1219,1254,1241,1256,1259,1248,1243,1199,1190,1153]
["Knox (C)",1112,1149,1140,1141,1141,1130,1130,1093,1082,1040]
["Manningham (C)",539,531,534,539,542,552,555,551,552,536]
["Maroondah (C)",585,592,584,576,577,579,576,579,571,541]
["Melbourne (C)",152,173,176,175,181,190,196,187,186,181]
["Monash (C)",1290,1339,1312,1299,1306,1317,1313,1255,1251,1206]
["Port Phillip (C)",1517,1552,1556,1560,1555,1557,1554,1506,1501,1431]
["South Gippsland (S)",39,42,46,46,44,45,46,47,49,50]
["Stonnington (C)",1261,1275,1295,1285,1316,1333,1356,1363,1341,1289]
["Whitehorse (C)",1128,1142,1161,1154,1161,1175,1183,1170,1168,1126]
["Yarra Ranges (S)",876,889,885,886,880,878,886,875,854,820]
["Multinet",14367,14685,14656,14640,14715,14787,14850,14560,14439,13886]
[]
["Commercial New customers"]
["LGA",2012,{"$f":"B234+1","v":2013},{"$f":"C234+1","v":2014},2015,2016,2017,2018,2019,2020,2021]
["Bass Coast (S)",null,2,3,0,2,4,4,3,2,0]
["Bayside (C)",null,18,24,27,34,26,18,11,12,9]
["Boroondara (C)",null,34,42,59,62,64,49,59,20,6]
["Cardinia (S)",null,2,4,1,1,0,3,0,2,1]
["Casey (C)",null,5,5,2,2,7,3,11,3,2]
["Frankston (C)",null,1,0,0,0,0,0,0,0,0]
["Glen Eira (C)",null,29,38,41,48,49,45,23,14,12]
["Greater Dandenong (C)",null,91,35,54,59,39,43,50,37,13]
["Kingston (C)",null,57,36,62,67,42,37,33,31,17]
["Knox (C)",null,56,27,40,34,25,33,22,20,12]
["Manningham (C)",null,6,15,18,17,25,12,11,9,6]
["Maroondah (C)",null,14,11,18,20,23,13,18,13,3]
["Melbourne (C)",null,21,8,5,10,15,11,11,7,2]
["Monash (C)",null,71,32,36,49,52,33,37,34,20]
["Port Phillip (C)",null,56,51,58,55,66,50,34,27,15]
["South Gippsland (S)",null,3,4,1,0,1,2,1,3,2]
["Stonnington (C)",null,37,48,61,89,63,60,67,31,13]
["Whitehorse (C)",null,42,53,34,49,55,43,36,39,15]
["Yarra Ranges (S)",null,25,21,33,19,21,25,21,10,8]
["Multinet",null,570,457,550,617,577,484,448,314,156,null,null,{"$f":"H254/H231","v":3.259259259259259E-2},{"$f":"I254/I231","v":3.0769230769230771E-2},{"$f":"J254/J231","v":2.1746658355841816E-2}]
[]
["Commercial disconnections"]
["LGA",2012,{"$f":"B257+1","v":2013},{"$f":"C257+1","v":2014},2015,2016,2017,2018,2019,2020,2021]
["Bass Coast (S)",null,0,0,2,1,1,1,0,1,1]
["Bayside (C)",null,11,29,37,28,21,17,31,17,32]
["Boroondara (C)",null,23,36,44,53,48,41,47,36,62]
["Cardinia (S)",null,0,3,1,0,4,5,6,2,3]
["Casey (C)",null,2,8,3,9,0,3,7,3,7]
["Frankston (C)",null,0,0,0,0,0,0,1,0,0]
["Glen Eira (C)",null,20,35,46,41,31,24,30,32,51]
["Greater Dandenong (C)",null,28,61,54,46,54,45,112,40,68]
["Kingston (C)",null,22,49,47,64,53,42,77,40,54]
["Knox (C)",null,19,36,39,34,36,33,59,31,54]
["Manningham (C)",null,14,12,13,14,15,9,15,8,22]
["Maroondah (C)",null,7,19,26,19,21,16,15,21,33]
["Melbourne (C)",null,0,5,6,4,6,5,20,8,7]
["Monash (C)",null,22,59,49,42,41,37,95,38,65]
["Port Phillip (C)",null,21,47,54,60,64,53,82,32,85]
["South Gippsland (S)",null,0,0,1,2,0,1,0,1,1]
["Stonnington (C)",null,23,28,71,58,46,37,60,53,65]
["Whitehorse (C)",null,28,34,41,42,41,35,49,41,57]
["Yarra Ranges (S)",null,12,25,32,25,23,17,32,31,42]
["Multinet",null,252,486,566,542,505,421,738,435,709,null,null,{"$f":"H277/H231","v":2.8350168350168351E-2},5.0686813186813187E-2,{"$f":"J277/J231","v":3.0126740078952836E-2}]

{"sheet":"Volume per connection","index":7,"n_rows":92,"n_cols":37,"rows_kept":92,"cut":false,"hidden":false,"merged":[]}
[null,2012,2012,2012,2012,{"$f":"B1+1","v":2013},{"$f":"C1+1","v":2013},2013,2013,2014,2014,2014,2014,2015,2015,2015,2015,2016,2016,2016,2016,2017,2017,2017,2017,2018,2018,2018,2018,2019,2019,2019,2019,2020,2020,2020,2020]
["Residential volumes per connection (GJ)","2012Q1","2012Q2","2012Q3","2012Q4","2013Q1","2013Q2","2013Q3","2013Q4","2014Q1","2014Q2","2014Q3","2014Q4","2015Q1","2015Q2","2015Q3","2015Q4","2016Q1","2016Q2","2016Q3","2016Q4","2017Q1","2017Q2","2017Q3","2017Q4","2018Q1","2018Q2","2018Q3","2018Q4","2019Q1","2019Q2","2019Q3","2019Q4","2020Q1","2020Q2","2020Q3","2020Q4"]
["Bass Coast (S)",{"$f":"IFERROR(Volumes!B2/Customers!B3,0)","v":2.8487077298125918},{"$f":"IFERROR(Volumes!C2/Customers!C3,0)","v":9.9951571154766139},{"$f":"IFERROR(Volumes!D2/Customers!D3,0)","v":13.25444449066171},{"$f":"IFERROR(Volumes!E2/Customers!E3,0)","v":4.9779706494955498},{"$f":"IFERROR(Volumes!F2/Customers!F3,0)","v":2.149343894389439},{"$f":"IFERROR(Volumes!G2/Customers!G3,0)","v":7.7565783274440516},{"$f":"IFERROR(Volumes!H2/Customers!H3,0)","v":9.5224220445459729},{"$f":"IFERROR(Volumes!I2/Customers!I3,0)","v":12.339645844649647},{"$f":"IFERROR(Volumes!J2/Customers!J3,0)","v":2.6970059523809522},{"$f":"IFERROR(Volumes!K2/Customers!K3,0)","v":7.8223164179104474},{"$f":"IFERROR(Volumes!L2/Customers!L3,0)","v":10.255878727634196},{"$f":"IFERROR(Volumes!M2/Customers!M3,0)","v":10.043719495091164},{"$f":"IFERROR(Volumes!N2/Customers!N3,0)","v":2.2877316247582207},{"$f":"IFERROR(Volumes!O2/Customers!O3,0)","v":10.077559465478842},{"$f":"IFERROR(Volumes!P2/Customers!P3,0)","v":10.781693959731543},{"$f":"IFERROR(Volumes!Q2/Customers!Q3,0)","v":10.49805204778157},{"$f":"IFERROR(Volumes!R2/Customers!R3,0)","v":2.052783288650581},{"$f":"IFERROR(Volumes!S2/Customers!S3,0)","v":7.4673499392466578},{"$f":"IFERROR(Volumes!T2/Customers!T3,0)","v":10.722423605497172},{"$f":"IFERROR(Volumes!U2/Customers!U3,0)","v":11.860582781456955},{"$f":"IFERROR(Volumes!V2/Customers!V3,0)","v":2.2612022204599524},{"$f":"IFERROR(Volumes!W2/Customers!W3,0)","v":8.6350594315245477},{"$f":"IFERROR(Volumes!X2/Customers!X3,0)","v":11.200439149560117},{"$f":"IFERROR(Volumes!Y2/Customers!Y3,0)","v":11.036743181013106},{"$f":"IFERROR(Volumes!Z2/Customers!Z3,0)","v":1.9440243628185907},{"$f":"IFERROR(Volumes!AA2/Customers!AA3,0)","v":9.0068714382632304},{"$f":"IFERROR(Volumes!AB2/Customers!AB3,0)","v":10.809821513403461},{"$f":"IFERROR(Volumes!AC2/Customers!AC3,0)","v":10.147121801101394},{"$f":"IFERROR(Volumes!AD2/Customers!AD3,0)","v":1.9874045698924729},{"$f":"IFERROR(Volumes!AE2/Customers!AE3,0)","v":8.7214441031941039},{"$f":"IFERROR(Volumes!AF2/Customers!AF3,0)","v":10.95218383713757},{"$f":"IFERROR(Volumes!AG2/Customers!AG3,0)","v":11.164641503848431},{"$f":"IFERROR(Volumes!AH2/Customers!AH3,0)","v":1.8476270125223613},{"$f":"IFERROR(Volumes!AI2/Customers!AI3,0)","v":10.154666286040538},{"$f":"IFERROR(Volumes!AJ2/Customers!AJ3,0)","v":11.356315276583549},{"$f":"IFERROR(Volumes!AK2/Customers!AK3,0)","v":9.6890013796909482}]
["Bayside (C)",{"$f":"IFERROR(Volumes!B3/Customers!B4,0)","v":6.3162259942771177},{"$f":"IFERROR(Volumes!C3/Customers!C4,0)","v":22.421327288593002},{"$f":"IFERROR(Volumes!D3/Customers!D4,0)","v":27.579581974000611},{"$f":"IFERROR(Volumes!E3/Customers!E4,0)","v":10.102945579203107},{"$f":"IFERROR(Volumes!F3/Customers!F4,0)","v":5.4228687996751175},{"$f":"IFERROR(Volumes!G3/Customers!G4,0)","v":10.189546919894264},{"$f":"IFERROR(Volumes!H3/Customers!H4,0)","v":32.223838134234342},{"$f":"IFERROR(Volumes!I3/Customers!I4,0)","v":14.933587209136331},{"$f":"IFERROR(Volumes!J3/Customers!J4,0)","v":6.3166296275153417},{"$f":"IFERROR(Volumes!K3/Customers!K4,0)","v":10.688218907987867},{"$f":"IFERROR(Volumes!L3/Customers!L4,0)","v":30.732890564772919},{"$f":"IFERROR(Volumes!M3/Customers!M4,0)","v":11.845201404557763},{"$f":"IFERROR(Volumes!N3/Customers!N4,0)","v":5.5702241133538601},{"$f":"IFERROR(Volumes!O3/Customers!O4,0)","v":14.438900613668061},{"$f":"IFERROR(Volumes!P3/Customers!P4,0)","v":34.378079196845547},{"$f":"IFERROR(Volumes!Q3/Customers!Q4,0)","v":11.786451804000112},{"$f":"IFERROR(Volumes!R3/Customers!R4,0)","v":4.9466324123120966},{"$f":"IFERROR(Volumes!S3/Customers!S4,0)","v":10.290500083808245},{"$f":"IFERROR(Volumes!T3/Customers!T4,0)","v":31.305194094466341},{"$f":"IFERROR(Volumes!U3/Customers!U4,0)","v":15.075204822306661},{"$f":"IFERROR(Volumes!V3/Customers!V4,0)","v":6.0286224220723348},{"$f":"IFERROR(Volumes!W3/Customers!W4,0)","v":12.886338087735302},{"$f":"IFERROR(Volumes!X3/Customers!X4,0)","v":32.652753574872577},{"$f":"IFERROR(Volumes!Y3/Customers!Y4,0)","v":12.810752088215024},{"$f":"IFERROR(Volumes!Z3/Customers!Z4,0)","v":5.133865289279087},{"$f":"IFERROR(Volumes!AA3/Customers!AA4,0)","v":11.526345395008393},{"$f":"IFERROR(Volumes!AB3/Customers!AB4,0)","v":31.05399221448544},{"$f":"IFERROR(Volumes!AC3/Customers!AC4,0)","v":12.872514549247832},{"$f":"IFERROR(Volumes!AD3/Customers!AD4,0)","v":5.297277961523621},{"$f":"IFERROR(Volumes!AE3/Customers!AE4,0)","v":11.440049265815837},{"$f":"IFERROR(Volumes!AF3/Customers!AF4,0)","v":30.227584089418453},{"$f":"IFERROR(Volumes!AG3/Customers!AG4,0)","v":14.087493517836185},{"$f":"IFERROR(Volumes!AH3/Customers!AH4,0)","v":6.234718759385153},{"$f":"IFERROR(Volumes!AI3/Customers!AI4,0)","v":14.787753756374247},{"$f":"IFERROR(Volumes!AJ3/Customers!AJ4,0)","v":31.983251555410657},{"$f":"IFERROR(Volumes!AK3/Customers!AK4,0)","v":13.11966911285062}]
["Boroondara (C)",{"$f":"IFERROR(Volumes!B4/Customers!B5,0)","v":6.326308048771569},{"$f":"IFERROR(Volumes!C4/Customers!C5,0)","v":23.483311865839244},{"$f":"IFERROR(Volumes!D4/Customers!D5,0)","v":28.931668379072843},{"$f":"IFERROR(Volumes!E4/Customers!E5,0)","v":10.401217836450336},{"$f":"IFERROR(Volumes!F4/Customers!F5,0)","v":5.0364029153146488},{"$f":"IFERROR(Volumes!G4/Customers!G5,0)","v":12.2160164274799},{"$f":"IFERROR(Volumes!H4/Customers!H5,0)","v":31.69929337861349},{"$f":"IFERROR(Volumes!I4/Customers!I5,0)","v":17.207867795097279},{"$f":"IFERROR(Volumes!J4/Customers!J5,0)","v":6.1436396695311721},{"$f":"IFERROR(Volumes!K4/Customers!K5,0)","v":12.99759635913232},{"$f":"IFERROR(Volumes!L4/Customers!L5,0)","v":29.526198159529152},{"$f":"IFERROR(Volumes!M4/Customers!M5,0)","v":13.810447753361759},{"$f":"IFERROR(Volumes!N4/Customers!N5,0)","v":5.1450573496473107},{"$f":"IFERROR(Volumes!O4/Customers!O5,0)","v":16.591413121085257},{"$f":"IFERROR(Volumes!P4/Customers!P5,0)","v":33.242189559990855},{"$f":"IFERROR(Volumes!Q4/Customers!Q5,0)","v":13.64867761086329},{"$f":"IFERROR(Volumes!R4/Customers!R5,0)","v":4.3634620633278836},{"$f":"IFERROR(Volumes!S4/Customers!S5,0)","v":12.942644394794351},{"$f":"IFERROR(Volumes!T4/Customers!T5,0)","v":29.651171658536587},{"$f":"IFERROR(Volumes!U4/Customers!U5,0)","v":17.204598568299936},{"$f":"IFERROR(Volumes!V4/Customers!V5,0)","v":5.3900321560186546},{"$f":"IFERROR(Volumes!W4/Customers!W5,0)","v":15.097679939809723},{"$f":"IFERROR(Volumes!X4/Customers!X5,0)","v":31.642200161707635},{"$f":"IFERROR(Volumes!Y4/Customers!Y5,0)","v":15.002767342444459},{"$f":"IFERROR(Volumes!Z4/Customers!Z5,0)","v":4.6239536972032189},{"$f":"IFERROR(Volumes!AA4/Customers!AA5,0)","v":13.155587237414492},{"$f":"IFERROR(Volumes!AB4/Customers!AB5,0)","v":30.165326030803008},{"$f":"IFERROR(Volumes!AC4/Customers!AC5,0)","v":14.822392955198811},{"$f":"IFERROR(Volumes!AD4/Customers!AD5,0)","v":4.6335897573685063},{"$f":"IFERROR(Volumes!AE4/Customers!AE5,0)","v":12.927422081591139},{"$f":"IFERROR(Volumes!AF4/Customers!AF5,0)","v":28.812433833582656},{"$f":"IFERROR(Volumes!AG4/Customers!AG5,0)","v":16.15478546162009},{"$f":"IFERROR(Volumes!AH4/Customers!AH5,0)","v":5.4731143208160233},{"$f":"IFERROR(Volumes!AI4/Customers!AI5,0)","v":16.965275758795585},{"$f":"IFERROR(Volumes!AJ4/Customers!AJ5,0)","v":30.371918789500839},{"$f":"IFERROR(Volumes!AK4/Customers!AK5,0)","v":14.825295993141268}]
["Cardinia (S)",{"$f":"IFERROR(Volumes!B5/Customers!B6,0)","v":8.1742511310131647},{"$f":"IFERROR(Volumes!C5/Customers!C6,0)","v":25.86298405986588},{"$f":"IFERROR(Volumes!D5/Customers!D6,0)","v":31.97886965688657},{"$f":"IFERROR(Volumes!E5/Customers!E6,0)","v":13.023363967944313},{"$f":"IFERROR(Volumes!F5/Customers!F6,0)","v":5.5261468985206328},{"$f":"IFERROR(Volumes!G5/Customers!G6,0)","v":8.2818826399589121},{"$f":"IFERROR(Volumes!H5/Customers!H6,0)","v":40.424642169285356},{"$f":"IFERROR(Volumes!I5/Customers!I6,0)","v":18.877466073697587},{"$f":"IFERROR(Volumes!J5/Customers!J6,0)","v":6.5048921618852455},{"$f":"IFERROR(Volumes!K5/Customers!K6,0)","v":15.907178867924529},{"$f":"IFERROR(Volumes!L5/Customers!L6,0)","v":31.765929143715574},{"$f":"IFERROR(Volumes!M5/Customers!M6,0)","v":16.479939180698668},{"$f":"IFERROR(Volumes!N5/Customers!N6,0)","v":5.9560386485794723},{"$f":"IFERROR(Volumes!O5/Customers!O6,0)","v":19.789800899325506},{"$f":"IFERROR(Volumes!P5/Customers!P6,0)","v":36.362580556936848},{"$f":"IFERROR(Volumes!Q5/Customers!Q6,0)","v":15.867329505741386},{"$f":"IFERROR(Volumes!R5/Customers!R6,0)","v":4.9499094849566543},{"$f":"IFERROR(Volumes!S5/Customers!S6,0)","v":18.004641898608352},{"$f":"IFERROR(Volumes!T5/Customers!T6,0)","v":30.643411268304792},{"$f":"IFERROR(Volumes!U5/Customers!U6,0)","v":21.002016869263212},{"$f":"IFERROR(Volumes!V5/Customers!V6,0)","v":6.4621614182990328},{"$f":"IFERROR(Volumes!W5/Customers!W6,0)","v":20.25293739258532},{"$f":"IFERROR(Volumes!X5/Customers!X6,0)","v":32.850612895317475},{"$f":"IFERROR(Volumes!Y5/Customers!Y6,0)","v":18.828558213326826},{"$f":"IFERROR(Volumes!Z5/Customers!Z6,0)","v":5.0975953857603571},{"$f":"IFERROR(Volumes!AA5/Customers!AA6,0)","v":17.015613053043268},{"$f":"IFERROR(Volumes!AB5/Customers!AB6,0)","v":33.292399414776888},{"$f":"IFERROR(Volumes!AC5/Customers!AC6,0)","v":17.343710628961482},{"$f":"IFERROR(Volumes!AD5/Customers!AD6,0)","v":5.2972058606254624},{"$f":"IFERROR(Volumes!AE5/Customers!AE6,0)","v":17.032802916160389},{"$f":"IFERROR(Volumes!AF5/Customers!AF6,0)","v":31.424607809847199},{"$f":"IFERROR(Volumes!AG5/Customers!AG6,0)","v":19.821409311348205},{"$f":"IFERROR(Volumes!AH5/Customers!AH6,0)","v":6.8094577550523496},{"$f":"IFERROR(Volumes!AI5/Customers!AI6,0)","v":20.874725314617621},{"$f":"IFERROR(Volumes!AJ5/Customers!AJ6,0)","v":31.195828750602992},{"$f":"IFERROR(Volumes!AK5/Customers!AK6,0)","v":17.950849939686368}]
["Casey (C)",{"$f":"IFERROR(Volumes!B6/Customers!B7,0)","v":6.3760753606989162},{"$f":"IFERROR(Volumes!C6/Customers!C7,0)","v":21.082957681166896},{"$f":"IFERROR(Volumes!D6/Customers!D7,0)","v":26.115335493985683},{"$f":"IFERROR(Volumes!E6/Customers!E7,0)","v":9.6961932576163576},{"$f":"IFERROR(Volumes!F6/Customers!F7,0)","v":5.3962005229612684},{"$f":"IFERROR(Volumes!G6/Customers!G7,0)","v":10.506751725818241},{"$f":"IFERROR(Volumes!H6/Customers!H7,0)","v":29.596881824125532},{"$f":"IFERROR(Volumes!I6/Customers!I7,0)","v":14.009578002426203},{"$f":"IFERROR(Volumes!J6/Customers!J7,0)","v":6.5251007118589222},{"$f":"IFERROR(Volumes!K6/Customers!K7,0)","v":10.090231096484187},{"$f":"IFERROR(Volumes!L6/Customers!L7,0)","v":28.742756523131103},{"$f":"IFERROR(Volumes!M6/Customers!M7,0)","v":11.278108725262399},{"$f":"IFERROR(Volumes!N6/Customers!N7,0)","v":5.6589389803291859},{"$f":"IFERROR(Volumes!O6/Customers!O7,0)","v":13.312032612153994},{"$f":"IFERROR(Volumes!P6/Customers!P7,0)","v":32.313451718625103},{"$f":"IFERROR(Volumes!Q6/Customers!Q7,0)","v":10.810078859060402},{"$f":"IFERROR(Volumes!R6/Customers!R7,0)","v":5.0139245983692575},{"$f":"IFERROR(Volumes!S6/Customers!S7,0)","v":10.018719917342235},{"$f":"IFERROR(Volumes!T6/Customers!T7,0)","v":30.334659871499959},{"$f":"IFERROR(Volumes!U6/Customers!U7,0)","v":13.610236835835121},{"$f":"IFERROR(Volumes!V6/Customers!V7,0)","v":5.7646326255743938},{"$f":"IFERROR(Volumes!W6/Customers!W7,0)","v":11.798833490566039},{"$f":"IFERROR(Volumes!X6/Customers!X7,0)","v":31.732900854298926},{"$f":"IFERROR(Volumes!Y6/Customers!Y7,0)","v":11.823550399749177},{"$f":"IFERROR(Volumes!Z6/Customers!Z7,0)","v":5.1680266551344554},{"$f":"IFERROR(Volumes!AA6/Customers!AA7,0)","v":10.603008541650341},{"$f":"IFERROR(Volumes!AB6/Customers!AB7,0)","v":29.091199343339586},{"$f":"IFERROR(Volumes!AC6/Customers!AC7,0)","v":12.066821004993757},{"$f":"IFERROR(Volumes!AD6/Customers!AD7,0)","v":5.2184190468737768},{"$f":"IFERROR(Volumes!AE6/Customers!AE7,0)","v":10.367973065279827},{"$f":"IFERROR(Volumes!AF6/Customers!AF7,0)","v":28.565282003566718},{"$f":"IFERROR(Volumes!AG6/Customers!AG7,0)","v":12.961953074183057},{"$f":"IFERROR(Volumes!AH6/Customers!AH7,0)","v":6.3063464371559279},{"$f":"IFERROR(Volumes!AI6/Customers!AI7,0)","v":13.42897382037223},{"$f":"IFERROR(Volumes!AJ6/Customers!AJ7,0)","v":29.185587478823347},{"$f":"IFERROR(Volumes!AK6/Customers!AK7,0)","v":11.295517395320196}]
["Frankston (C)",{"$f":"IFERROR(Volumes!B7/Customers!B8,0)","v":6.8621439393939401},{"$f":"IFERROR(Volumes!C7/Customers!C8,0)","v":7.5585166666666703},{"$f":"IFERROR(Volumes!D7/Customers!D8,0)","v":8.0593784946236493},{"$f":"IFERROR(Volumes!E7/Customers!E8,0)","v":7.7232564780539397},{"$f":"IFERROR(Volumes!F7/Customers!F8,0)","v":9.61},{"$f":"IFERROR(Volumes!G7/Customers!G8,0)","v":5.6870000000000003},{"$f":"IFERROR(Volumes!H7/Customers!H8,0)","v":9.8369999999999997},{"$f":"IFERROR(Volumes!I7/Customers!I8,0)","v":5.0919999999999996},{"$f":"IFERROR(Volumes!J7/Customers!J8,0)","v":9.9030000000000005},{"$f":"IFERROR(Volumes!K7/Customers!K8,0)","v":5.8520000000000003},{"$f":"IFERROR(Volumes!L7/Customers!L8,0)","v":10.545999999999999},{"$f":"IFERROR(Volumes!M7/Customers!M8,0)","v":9.8670000000000009},{"$f":"IFERROR(Volumes!N7/Customers!N8,0)","v":7.5190000000000001},{"$f":"IFERROR(Volumes!O7/Customers!O8,0)","v":6.4320000000000004},{"$f":"IFERROR(Volumes!P7/Customers!P8,0)","v":13.648999999999999},{"$f":"IFERROR(Volumes!Q7/Customers!Q8,0)","v":6.9870000000000001},{"$f":"IFERROR(Volumes!R7/Customers!R8,0)","v":13.29},{"$f":"IFERROR(Volumes!S7/Customers!S8,0)","v":7.2},{"$f":"IFERROR(Volumes!T7/Customers!T8,0)","v":15.135},{"$f":"IFERROR(Volumes!U7/Customers!U8,0)","v":6.8090000000000002},{"$f":"IFERROR(Volumes!V7/Customers!V8,0)","v":12.888},{"$f":"IFERROR(Volumes!W7/Customers!W8,0)","v":6.5030000000000001},{"$f":"IFERROR(Volumes!X7/Customers!X8,0)","v":14.393000000000001},{"$f":"IFERROR(Volumes!Y7/Customers!Y8,0)","v":5.5119999999999996},{"$f":"IFERROR(Volumes!Z7/Customers!Z8,0)","v":10.705},{"$f":"IFERROR(Volumes!AA7/Customers!AA8,0)","v":5.5259999999999998},{"$f":"IFERROR(Volumes!AB7/Customers!AB8,0)","v":14.906000000000001},{"$f":"IFERROR(Volumes!AC7/Customers!AC8,0)","v":5.9560000000000004},{"$f":"IFERROR(Volumes!AD7/Customers!AD8,0)","v":7.39},{"$f":"IFERROR(Volumes!AE7/Customers!AE8,0)","v":5.15},{"$f":"IFERROR(Volumes!AF7/Customers!AF8,0)","v":12.189},{"$f":"IFERROR(Volumes!AG7/Customers!AG8,0)","v":5.33},{"$f":"IFERROR(Volumes!AH7/Customers!AH8,0)","v":9.0869999999999997},{"$f":"IFERROR(Volumes!AI7/Customers!AI8,0)","v":5.9249999999999998},{"$f":"IFERROR(Volumes!AJ7/Customers!AJ8,0)","v":15.952},{"$f":"IFERROR(Volumes!AK7/Customers!AK8,0)","v":7.7169999999999996}]
["Glen Eira (C)",{"$f":"IFERROR(Volumes!B8/Customers!B9,0)","v":5.6392973666251356},{"$f":"IFERROR(Volumes!C8/Customers!C9,0)","v":20.042135511724343},{"$f":"IFERROR(Volumes!D8/Customers!D9,0)","v":24.741762955557295},{"$f":"IFERROR(Volumes!E8/Customers!E9,0)","v":9.366369764697664},{"$f":"IFERROR(Volumes!F8/Customers!F9,0)","v":4.4383197229082079},{"$f":"IFERROR(Volumes!G8/Customers!G9,0)","v":10.206215595097856},{"$f":"IFERROR(Volumes!H8/Customers!H9,0)","v":27.048466143196613},{"$f":"IFERROR(Volumes!I8/Customers!I9,0)","v":13.974404630673087},{"$f":"IFERROR(Volumes!J8/Customers!J9,0)","v":5.1772112268161932},{"$f":"IFERROR(Volumes!K8/Customers!K9,0)","v":10.879235602836879},{"$f":"IFERROR(Volumes!L8/Customers!L9,0)","v":24.948721542746426},{"$f":"IFERROR(Volumes!M8/Customers!M9,0)","v":11.419280799740976},{"$f":"IFERROR(Volumes!N8/Customers!N9,0)","v":4.7807865200284159},{"$f":"IFERROR(Volumes!O8/Customers!O9,0)","v":15.147017930072378},{"$f":"IFERROR(Volumes!P8/Customers!P9,0)","v":27.79009410602303},{"$f":"IFERROR(Volumes!Q8/Customers!Q9,0)","v":11.539584861506183},{"$f":"IFERROR(Volumes!R8/Customers!R9,0)","v":4.978194114150015},{"$f":"IFERROR(Volumes!S8/Customers!S9,0)","v":11.530987113009628},{"$f":"IFERROR(Volumes!T8/Customers!T9,0)","v":25.569603545801602},{"$f":"IFERROR(Volumes!U8/Customers!U9,0)","v":14.251349208260581},{"$f":"IFERROR(Volumes!V8/Customers!V9,0)","v":4.7776253396196262},{"$f":"IFERROR(Volumes!W8/Customers!W9,0)","v":12.962454391891891},{"$f":"IFERROR(Volumes!X8/Customers!X9,0)","v":26.419822188691235},{"$f":"IFERROR(Volumes!Y8/Customers!Y9,0)","v":12.654749587974823},{"$f":"IFERROR(Volumes!Z8/Customers!Z9,0)","v":4.1412174938064412},{"$f":"IFERROR(Volumes!AA8/Customers!AA9,0)","v":11.342651150347779},{"$f":"IFERROR(Volumes!AB8/Customers!AB9,0)","v":25.655833922261483},{"$f":"IFERROR(Volumes!AC8/Customers!AC9,0)","v":12.510231817733505},{"$f":"IFERROR(Volumes!AD8/Customers!AD9,0)","v":4.1884656376478056},{"$f":"IFERROR(Volumes!AE8/Customers!AE9,0)","v":11.012742865566038},{"$f":"IFERROR(Volumes!AF8/Customers!AF9,0)","v":24.641345581322469},{"$f":"IFERROR(Volumes!AG8/Customers!AG9,0)","v":13.560942434081841},{"$f":"IFERROR(Volumes!AH8/Customers!AH9,0)","v":5.0042865680415405},{"$f":"IFERROR(Volumes!AI8/Customers!AI9,0)","v":14.206360640374854},{"$f":"IFERROR(Volumes!AJ8/Customers!AJ9,0)","v":25.633816220325109},{"$f":"IFERROR(Volumes!AK8/Customers!AK9,0)","v":12.52758876716074}]
["Greater Dandenong (C)",{"$f":"IFERROR(Volumes!B9/Customers!B10,0)","v":5.8363363034868314},{"$f":"IFERROR(Volumes!C9/Customers!C10,0)","v":17.657475786866343},{"$f":"IFERROR(Volumes!D9/Customers!D10,0)","v":21.843196001059329},{"$f":"IFERROR(Volumes!E9/Customers!E10,0)","v":8.6515530430973229},{"$f":"IFERROR(Volumes!F9/Customers!F10,0)","v":4.9916748522784173},{"$f":"IFERROR(Volumes!G9/Customers!G10,0)","v":9.1951740305686407},{"$f":"IFERROR(Volumes!H9/Customers!H10,0)","v":24.413659485671129},{"$f":"IFERROR(Volumes!I9/Customers!I10,0)","v":12.586144190442436},{"$f":"IFERROR(Volumes!J9/Customers!J10,0)","v":5.785780827296465},{"$f":"IFERROR(Volumes!K9/Customers!K10,0)","v":9.5889299578386993},{"$f":"IFERROR(Volumes!L9/Customers!L10,0)","v":22.795237550562231},{"$f":"IFERROR(Volumes!M9/Customers!M10,0)","v":10.600124992744229},{"$f":"IFERROR(Volumes!N9/Customers!N10,0)","v":5.3842287253700567},{"$f":"IFERROR(Volumes!O9/Customers!O10,0)","v":12.567331652725258},{"$f":"IFERROR(Volumes!P9/Customers!P10,0)","v":25.314084689306632},{"$f":"IFERROR(Volumes!Q9/Customers!Q10,0)","v":10.591717293004521},{"$f":"IFERROR(Volumes!R9/Customers!R10,0)","v":4.7256645432392501},{"$f":"IFERROR(Volumes!S9/Customers!S10,0)","v":9.717372436562588},{"$f":"IFERROR(Volumes!T9/Customers!T10,0)","v":23.59950976862789},{"$f":"IFERROR(Volumes!U9/Customers!U10,0)","v":13.051574515048916},{"$f":"IFERROR(Volumes!V9/Customers!V10,0)","v":5.4245846818494998},{"$f":"IFERROR(Volumes!W9/Customers!W10,0)","v":11.270830753582986},{"$f":"IFERROR(Volumes!X9/Customers!X10,0)","v":24.464523560209422},{"$f":"IFERROR(Volumes!Y9/Customers!Y10,0)","v":11.593569316217311},{"$f":"IFERROR(Volumes!Z9/Customers!Z10,0)","v":4.924898687025153},{"$f":"IFERROR(Volumes!AA9/Customers!AA10,0)","v":10.29868752742431},{"$f":"IFERROR(Volumes!AB9/Customers!AB10,0)","v":23.524255320309944},{"$f":"IFERROR(Volumes!AC9/Customers!AC10,0)","v":11.367661549628016},{"$f":"IFERROR(Volumes!AD9/Customers!AD10,0)","v":5.0219147203693275},{"$f":"IFERROR(Volumes!AE9/Customers!AE10,0)","v":10.300412463496412},{"$f":"IFERROR(Volumes!AF9/Customers!AF10,0)","v":22.527391316049162},{"$f":"IFERROR(Volumes!AG9/Customers!AG10,0)","v":12.957353077005692},{"$f":"IFERROR(Volumes!AH9/Customers!AH10,0)","v":5.4580850953361377},{"$f":"IFERROR(Volumes!AI9/Customers!AI10,0)","v":12.513109402319358},{"$f":"IFERROR(Volumes!AJ9/Customers!AJ10,0)","v":22.630749613353952},{"$f":"IFERROR(Volumes!AK9/Customers!AK10,0)","v":11.021881128691422}]
["Kingston (C)",{"$f":"IFERROR(Volumes!B10/Customers!B11,0)","v":5.3663567002020338},{"$f":"IFERROR(Volumes!C10/Customers!C11,0)","v":17.714307856670004},{"$f":"IFERROR(Volumes!D10/Customers!D11,0)","v":21.780097197748866},{"$f":"IFERROR(Volumes!E10/Customers!E11,0)","v":8.1112625821679529},{"$f":"IFERROR(Volumes!F10/Customers!F11,0)","v":4.4416640507837375},{"$f":"IFERROR(Volumes!G10/Customers!G11,0)","v":8.8995383879503365},{"$f":"IFERROR(Volumes!H10/Customers!H11,0)","v":24.0940587349704},{"$f":"IFERROR(Volumes!I10/Customers!I11,0)","v":12.493290308272345},{"$f":"IFERROR(Volumes!J10/Customers!J11,0)","v":5.1545415582582041},{"$f":"IFERROR(Volumes!K10/Customers!K11,0)","v":9.1881340055910545},{"$f":"IFERROR(Volumes!L10/Customers!L11,0)","v":22.864564487316898},{"$f":"IFERROR(Volumes!M10/Customers!M11,0)","v":10.425744391759972},{"$f":"IFERROR(Volumes!N10/Customers!N11,0)","v":4.6446671563103665},{"$f":"IFERROR(Volumes!O10/Customers!O11,0)","v":12.223210496190738},{"$f":"IFERROR(Volumes!P10/Customers!P11,0)","v":25.416028132840744},{"$f":"IFERROR(Volumes!Q10/Customers!Q11,0)","v":10.257850322809926},{"$f":"IFERROR(Volumes!R10/Customers!R11,0)","v":4.2825994967749663},{"$f":"IFERROR(Volumes!S10/Customers!S11,0)","v":9.27355407608162},{"$f":"IFERROR(Volumes!T10/Customers!T11,0)","v":23.436835065036519},{"$f":"IFERROR(Volumes!U10/Customers!U11,0)","v":12.447507184245557},{"$f":"IFERROR(Volumes!V10/Customers!V11,0)","v":4.7644266354227689},{"$f":"IFERROR(Volumes!W10/Customers!W11,0)","v":10.858160031028799},{"$f":"IFERROR(Volumes!X10/Customers!X11,0)","v":24.06435715941133},{"$f":"IFERROR(Volumes!Y10/Customers!Y11,0)","v":11.12702446229293},{"$f":"IFERROR(Volumes!Z10/Customers!Z11,0)","v":4.2256864243999921},{"$f":"IFERROR(Volumes!AA10/Customers!AA11,0)","v":10.092525347482553},{"$f":"IFERROR(Volumes!AB10/Customers!AB11,0)","v":22.980312599314612},{"$f":"IFERROR(Volumes!AC10/Customers!AC11,0)","v":10.887448011472275},{"$f":"IFERROR(Volumes!AD10/Customers!AD11,0)","v":4.2512961843162769},{"$f":"IFERROR(Volumes!AE10/Customers!AE11,0)","v":9.6834276541990381},{"$f":"IFERROR(Volumes!AF10/Customers!AF11,0)","v":21.888157264311356},{"$f":"IFERROR(Volumes!AG10/Customers!AG11,0)","v":11.811905292531629},{"$f":"IFERROR(Volumes!AH10/Customers!AH11,0)","v":4.912218154728226},{"$f":"IFERROR(Volumes!AI10/Customers!AI11,0)","v":12.119715779771644},{"$f":"IFERROR(Volumes!AJ10/Customers!AJ11,0)","v":22.698448072885423},{"$f":"IFERROR(Volumes!AK10/Customers!AK11,0)","v":10.70182487961176}]
["Knox (C)",{"$f":"IFERROR(Volumes!B11/Customers!B12,0)","v":6.260837439460671},{"$f":"IFERROR(Volumes!C11/Customers!C12,0)","v":22.656038236442384},{"$f":"IFERROR(Volumes!D11/Customers!D12,0)","v":28.19839347371795},{"$f":"IFERROR(Volumes!E11/Customers!E12,0)","v":9.9788078333423123},{"$f":"IFERROR(Volumes!F11/Customers!F12,0)","v":4.9511074982384384},{"$f":"IFERROR(Volumes!G11/Customers!G12,0)","v":11.676387373530217},{"$f":"IFERROR(Volumes!H11/Customers!H12,0)","v":30.432295404326752},{"$f":"IFERROR(Volumes!I11/Customers!I12,0)","v":15.639951086403849},{"$f":"IFERROR(Volumes!J11/Customers!J12,0)","v":5.936775734982632},{"$f":"IFERROR(Volumes!K11/Customers!K12,0)","v":11.785370905603875},{"$f":"IFERROR(Volumes!L11/Customers!L12,0)","v":28.951360160190351},{"$f":"IFERROR(Volumes!M11/Customers!M12,0)","v":12.601550930189722},{"$f":"IFERROR(Volumes!N11/Customers!N12,0)","v":5.3140911148135652},{"$f":"IFERROR(Volumes!O11/Customers!O12,0)","v":15.313128988802887},{"$f":"IFERROR(Volumes!P11/Customers!P12,0)","v":32.263679293477352},{"$f":"IFERROR(Volumes!Q11/Customers!Q12,0)","v":12.422368806606286},{"$f":"IFERROR(Volumes!R11/Customers!R12,0)","v":4.7765821982178958},{"$f":"IFERROR(Volumes!S11/Customers!S12,0)","v":11.307227868134719},{"$f":"IFERROR(Volumes!T11/Customers!T12,0)","v":29.768569804231756},{"$f":"IFERROR(Volumes!U11/Customers!U12,0)","v":15.632516106142116},{"$f":"IFERROR(Volumes!V11/Customers!V12,0)","v":5.2706846943314174},{"$f":"IFERROR(Volumes!W11/Customers!W12,0)","v":13.893054454552905},{"$f":"IFERROR(Volumes!X11/Customers!X12,0)","v":31.369532939216775},{"$f":"IFERROR(Volumes!Y11/Customers!Y12,0)","v":13.698585722205916},{"$f":"IFERROR(Volumes!Z11/Customers!Z12,0)","v":4.6525124195634735},{"$f":"IFERROR(Volumes!AA11/Customers!AA12,0)","v":12.15441901035298},{"$f":"IFERROR(Volumes!AB11/Customers!AB12,0)","v":29.816988634334052},{"$f":"IFERROR(Volumes!AC11/Customers!AC12,0)","v":13.337598012837137},{"$f":"IFERROR(Volumes!AD11/Customers!AD12,0)","v":4.7098726451864366},{"$f":"IFERROR(Volumes!AE11/Customers!AE12,0)","v":11.77979627241068},{"$f":"IFERROR(Volumes!AF11/Customers!AF12,0)","v":28.429438300059427},{"$f":"IFERROR(Volumes!AG11/Customers!AG12,0)","v":14.988521811649989},{"$f":"IFERROR(Volumes!AH11/Customers!AH12,0)","v":5.6600816022072857},{"$f":"IFERROR(Volumes!AI11/Customers!AI12,0)","v":15.145680545114285},{"$f":"IFERROR(Volumes!AJ11/Customers!AJ12,0)","v":29.071103134221229},{"$f":"IFERROR(Volumes!AK11/Customers!AK12,0)","v":12.906223551526931}]
["Manningham (C)",{"$f":"IFERROR(Volumes!B12/Customers!B13,0)","v":6.900870366575516},{"$f":"IFERROR(Volumes!C12/Customers!C13,0)","v":26.596585148720077},{"$f":"IFERROR(Volumes!D12/Customers!D13,0)","v":32.417387575855336},{"$f":"IFERROR(Volumes!E12/Customers!E13,0)","v":11.273635487049011},{"$f":"IFERROR(Volumes!F12/Customers!F13,0)","v":5.7558548780487806},{"$f":"IFERROR(Volumes!G12/Customers!G13,0)","v":12.178334552102376},{"$f":"IFERROR(Volumes!H12/Customers!H13,0)","v":37.783773083290093},{"$f":"IFERROR(Volumes!I12/Customers!I13,0)","v":16.876895248829971},{"$f":"IFERROR(Volumes!J12/Customers!J13,0)","v":6.7596423448782286},{"$f":"IFERROR(Volumes!K12/Customers!K13,0)","v":13.273882924223662},{"$f":"IFERROR(Volumes!L12/Customers!L13,0)","v":34.461522970421655},{"$f":"IFERROR(Volumes!M12/Customers!M13,0)","v":13.871733106134371},{"$f":"IFERROR(Volumes!N12/Customers!N13,0)","v":5.8104762127094904},{"$f":"IFERROR(Volumes!O12/Customers!O13,0)","v":16.876801812031893},{"$f":"IFERROR(Volumes!P12/Customers!P13,0)","v":39.041837767824717},{"$f":"IFERROR(Volumes!Q12/Customers!Q13,0)","v":13.399627060940617},{"$f":"IFERROR(Volumes!R12/Customers!R13,0)","v":5.0263209466932093},{"$f":"IFERROR(Volumes!S12/Customers!S13,0)","v":12.474624685929648},{"$f":"IFERROR(Volumes!T12/Customers!T13,0)","v":35.225899068659302},{"$f":"IFERROR(Volumes!U12/Customers!U13,0)","v":17.676220333670862},{"$f":"IFERROR(Volumes!V12/Customers!V13,0)","v":5.9197758736882644},{"$f":"IFERROR(Volumes!W12/Customers!W13,0)","v":15.919297948324626},{"$f":"IFERROR(Volumes!X12/Customers!X13,0)","v":37.454575475980029},{"$f":"IFERROR(Volumes!Y12/Customers!Y13,0)","v":15.223637384696266},{"$f":"IFERROR(Volumes!Z12/Customers!Z13,0)","v":5.1072152211455437},{"$f":"IFERROR(Volumes!AA12/Customers!AA13,0)","v":13.681166107342616},{"$f":"IFERROR(Volumes!AB12/Customers!AB13,0)","v":35.214024457294528},{"$f":"IFERROR(Volumes!AC12/Customers!AC13,0)","v":14.657768720536327},{"$f":"IFERROR(Volumes!AD12/Customers!AD13,0)","v":5.1628987768673555},{"$f":"IFERROR(Volumes!AE12/Customers!AE13,0)","v":13.357598044297832},{"$f":"IFERROR(Volumes!AF12/Customers!AF13,0)","v":33.45047968146153},{"$f":"IFERROR(Volumes!AG12/Customers!AG13,0)","v":16.005373675117898},{"$f":"IFERROR(Volumes!AH12/Customers!AH13,0)","v":6.1701059177673026},{"$f":"IFERROR(Volumes!AI12/Customers!AI13,0)","v":17.374618914901522},{"$f":"IFERROR(Volumes!AJ12/Customers!AJ13,0)","v":34.332158584899098},{"$f":"IFERROR(Volumes!AK12/Customers!AK13,0)","v":14.677281294864075}]
["Maroondah (C)",{"$f":"IFERROR(Volumes!B13/Customers!B14,0)","v":6.1153893920120108},{"$f":"IFERROR(Volumes!C13/Customers!C14,0)","v":23.214814926545454},{"$f":"IFERROR(Volumes!D13/Customers!D14,0)","v":28.527421677365666},{"$f":"IFERROR(Volumes!E13/Customers!E14,0)","v":10.054830907968835},{"$f":"IFERROR(Volumes!F13/Customers!F14,0)","v":4.7073136207337525},{"$f":"IFERROR(Volumes!G13/Customers!G14,0)","v":11.539719874936624},{"$f":"IFERROR(Volumes!H13/Customers!H14,0)","v":31.371670138791139},{"$f":"IFERROR(Volumes!I13/Customers!I14,0)","v":15.718209608689598},{"$f":"IFERROR(Volumes!J13/Customers!J14,0)","v":5.7469832167052326},{"$f":"IFERROR(Volumes!K13/Customers!K14,0)","v":12.284792760081423},{"$f":"IFERROR(Volumes!L13/Customers!L14,0)","v":29.524732084757346},{"$f":"IFERROR(Volumes!M13/Customers!M14,0)","v":12.688892800437996},{"$f":"IFERROR(Volumes!N13/Customers!N14,0)","v":4.9714644384952944},{"$f":"IFERROR(Volumes!O13/Customers!O14,0)","v":15.635378622649169},{"$f":"IFERROR(Volumes!P13/Customers!P14,0)","v":33.010512562950126},{"$f":"IFERROR(Volumes!Q13/Customers!Q14,0)","v":12.166134646030846},{"$f":"IFERROR(Volumes!R13/Customers!R14,0)","v":4.3925536270704644},{"$f":"IFERROR(Volumes!S13/Customers!S14,0)","v":12.032335236257405},{"$f":"IFERROR(Volumes!T13/Customers!T14,0)","v":30.159452511878701},{"$f":"IFERROR(Volumes!U13/Customers!U14,0)","v":16.104525486116668},{"$f":"IFERROR(Volumes!V13/Customers!V14,0)","v":5.1549363556408414},{"$f":"IFERROR(Volumes!W13/Customers!W14,0)","v":14.675547342522288},{"$f":"IFERROR(Volumes!X13/Customers!X14,0)","v":31.856879681969463},{"$f":"IFERROR(Volumes!Y13/Customers!Y14,0)","v":13.880295682465956},{"$f":"IFERROR(Volumes!Z13/Customers!Z14,0)","v":4.453761293579932},{"$f":"IFERROR(Volumes!AA13/Customers!AA14,0)","v":12.556514055907172},{"$f":"IFERROR(Volumes!AB13/Customers!AB14,0)","v":30.342810583788324},{"$f":"IFERROR(Volumes!AC13/Customers!AC14,0)","v":13.324011261616002},{"$f":"IFERROR(Volumes!AD13/Customers!AD14,0)","v":4.4597173987691168},{"$f":"IFERROR(Volumes!AE13/Customers!AE14,0)","v":12.237464194038452},{"$f":"IFERROR(Volumes!AF13/Customers!AF14,0)","v":29.043527188242358},{"$f":"IFERROR(Volumes!AG13/Customers!AG14,0)","v":15.133505757007397},{"$f":"IFERROR(Volumes!AH13/Customers!AH14,0)","v":5.4922944645979594},{"$f":"IFERROR(Volumes!AI13/Customers!AI14,0)","v":15.654279586643819},{"$f":"IFERROR(Volumes!AJ13/Customers!AJ14,0)","v":29.713749896362319},{"$f":"IFERROR(Volumes!AK13/Customers!AK14,0)","v":13.30214740633259}]
["Melbourne (C)",{"$f":"IFERROR(Volumes!B14/Customers!B15,0)","v":28.413969998159764},{"$f":"IFERROR(Volumes!C14/Customers!C15,0)","v":43.485295459431214},{"$f":"IFERROR(Volumes!D14/Customers!D15,0)","v":48.445309238914639},{"$f":"IFERROR(Volumes!E14/Customers!E15,0)","v":35.3084648668559},{"$f":"IFERROR(Volumes!F14/Customers!F15,0)","v":14.534694366197183},{"$f":"IFERROR(Volumes!G14/Customers!G15,0)","v":22.743690807799442},{"$f":"IFERROR(Volumes!H14/Customers!H15,0)","v":47.972369973190347},{"$f":"IFERROR(Volumes!I14/Customers!I15,0)","v":62.609955671447203},{"$f":"IFERROR(Volumes!J14/Customers!J15,0)","v":25.39262314939435},{"$f":"IFERROR(Volumes!K14/Customers!K15,0)","v":90.71261139896373},{"$f":"IFERROR(Volumes!L14/Customers!L15,0)","v":43.042440944881882},{"$f":"IFERROR(Volumes!M14/Customers!M15,0)","v":58.485482714468624},{"$f":"IFERROR(Volumes!N14/Customers!N15,0)","v":27.125831800262816},{"$f":"IFERROR(Volumes!O14/Customers!O15,0)","v":62.702953846153839},{"$f":"IFERROR(Volumes!P14/Customers!P15,0)","v":58.717460629921263},{"$f":"IFERROR(Volumes!Q14/Customers!Q15,0)","v":60.408091145833332},{"$f":"IFERROR(Volumes!R14/Customers!R15,0)","v":31.066452380952384},{"$f":"IFERROR(Volumes!S14/Customers!S15,0)","v":55.784483544303797},{"$f":"IFERROR(Volumes!T14/Customers!T15,0)","v":39.460206852791877},{"$f":"IFERROR(Volumes!U14/Customers!U15,0)","v":96.173833121019115},{"$f":"IFERROR(Volumes!V14/Customers!V15,0)","v":28.33665685019206},{"$f":"IFERROR(Volumes!W14/Customers!W15,0)","v":66.337679058240397},{"$f":"IFERROR(Volumes!X14/Customers!X15,0)","v":53.271885786802031},{"$f":"IFERROR(Volumes!Y14/Customers!Y15,0)","v":67.953215},{"$f":"IFERROR(Volumes!Z14/Customers!Z15,0)","v":26.453422835633628},{"$f":"IFERROR(Volumes!AA14/Customers!AA15,0)","v":70.162227436823102},{"$f":"IFERROR(Volumes!AB14/Customers!AB15,0)","v":54.55807272727273},{"$f":"IFERROR(Volumes!AC14/Customers!AC15,0)","v":76.472031063321381},{"$f":"IFERROR(Volumes!AD14/Customers!AD15,0)","v":31.023227722772276},{"$f":"IFERROR(Volumes!AE14/Customers!AE15,0)","v":74.259265944645009},{"$f":"IFERROR(Volumes!AF14/Customers!AF15,0)","v":58.56656690997567},{"$f":"IFERROR(Volumes!AG14/Customers!AG15,0)","v":81.317200477326963},{"$f":"IFERROR(Volumes!AH14/Customers!AH15,0)","v":31.656569852941175},{"$f":"IFERROR(Volumes!AI14/Customers!AI15,0)","v":70.496435141509437},{"$f":"IFERROR(Volumes!AJ14/Customers!AJ15,0)","v":52.990906288532678},{"$f":"IFERROR(Volumes!AK14/Customers!AK15,0)","v":67.723204379562048}]
["Monash (C)",{"$f":"IFERROR(Volumes!B15/Customers!B16,0)","v":6.349894270118023},{"$f":"IFERROR(Volumes!C15/Customers!C16,0)","v":21.905586779606676},{"$f":"IFERROR(Volumes!D15/Customers!D16,0)","v":27.144237283703788},{"$f":"IFERROR(Volumes!E15/Customers!E16,0)","v":9.9790649116289387},{"$f":"IFERROR(Volumes!F15/Customers!F16,0)","v":5.0470391748487557},{"$f":"IFERROR(Volumes!G15/Customers!G16,0)","v":10.057762143091566},{"$f":"IFERROR(Volumes!H15/Customers!H16,0)","v":30.339093719203731},{"$f":"IFERROR(Volumes!I15/Customers!I16,0)","v":15.343531012040351},{"$f":"IFERROR(Volumes!J15/Customers!J16,0)","v":6.1410851403789088},{"$f":"IFERROR(Volumes!K15/Customers!K16,0)","v":11.225978353860308},{"$f":"IFERROR(Volumes!L15/Customers!L16,0)","v":28.389018441403927},{"$f":"IFERROR(Volumes!M15/Customers!M16,0)","v":12.382826042873695},{"$f":"IFERROR(Volumes!N15/Customers!N16,0)","v":5.4689265441573838},{"$f":"IFERROR(Volumes!O15/Customers!O16,0)","v":14.954625708608095},{"$f":"IFERROR(Volumes!P15/Customers!P16,0)","v":31.933516935678149},{"$f":"IFERROR(Volumes!Q15/Customers!Q16,0)","v":12.732288025786174},{"$f":"IFERROR(Volumes!R15/Customers!R16,0)","v":4.4505598670052846},{"$f":"IFERROR(Volumes!S15/Customers!S16,0)","v":11.21690074540251},{"$f":"IFERROR(Volumes!T15/Customers!T16,0)","v":29.283826395421137},{"$f":"IFERROR(Volumes!U15/Customers!U16,0)","v":15.427514055071631},{"$f":"IFERROR(Volumes!V15/Customers!V16,0)","v":5.4050297955736841},{"$f":"IFERROR(Volumes!W15/Customers!W16,0)","v":13.560355985826373},{"$f":"IFERROR(Volumes!X15/Customers!X16,0)","v":30.504469515948294},{"$f":"IFERROR(Volumes!Y15/Customers!Y16,0)","v":13.331168859891628},{"$f":"IFERROR(Volumes!Z15/Customers!Z16,0)","v":4.8487612156295228},{"$f":"IFERROR(Volumes!AA15/Customers!AA16,0)","v":12.3063560995615},{"$f":"IFERROR(Volumes!AB15/Customers!AB16,0)","v":28.83198849905601},{"$f":"IFERROR(Volumes!AC15/Customers!AC16,0)","v":13.080255334527513},{"$f":"IFERROR(Volumes!AD15/Customers!AD16,0)","v":4.8957733183927274},{"$f":"IFERROR(Volumes!AE15/Customers!AE16,0)","v":11.897261140722447},{"$f":"IFERROR(Volumes!AF15/Customers!AF16,0)","v":27.650730551230147},{"$f":"IFERROR(Volumes!AG15/Customers!AG16,0)","v":14.216040898429611},{"$f":"IFERROR(Volumes!AH15/Customers!AH16,0)","v":5.8361052647946012},{"$f":"IFERROR(Volumes!AI15/Customers!AI16,0)","v":14.987724167338586},{"$f":"IFERROR(Volumes!AJ15/Customers!AJ16,0)","v":28.152760708758901},{"$f":"IFERROR(Volumes!AK15/Customers!AK16,0)","v":12.545642992965911}]
["Nillumbik (S)",{"$f":"IFERROR(Volumes!B16/Customers!B17,0)","v":9.8338988731856336},{"$f":"IFERROR(Volumes!C16/Customers!C17,0)","v":43.756066707922564},{"$f":"IFERROR(Volumes!D16/Customers!D17,0)","v":39.857984215893268},{"$f":"IFERROR(Volumes!E16/Customers!E17,0)","v":19.812513003170039},{"$f":"IFERROR(Volumes!F16/Customers!F17,0)","v":8.6218749999999993},{"$f":"IFERROR(Volumes!G16/Customers!G17,0)","v":31.071000000000002},{"$f":"IFERROR(Volumes!H16/Customers!H17,0)","v":60.35585714285714},{"$f":"IFERROR(Volumes!I16/Customers!I17,0)","v":19.055125},{"$f":"IFERROR(Volumes!J16/Customers!J17,0)","v":12.685},{"$f":"IFERROR(Volumes!K16/Customers!K17,0)","v":16.177875},{"$f":"IFERROR(Volumes!L16/Customers!L17,0)","v":60.051749999999998},{"$f":"IFERROR(Volumes!M16/Customers!M17,0)","v":11.227874999999999},{"$f":"IFERROR(Volumes!N16/Customers!N17,0)","v":15.33675},{"$f":"IFERROR(Volumes!O16/Customers!O17,0)","v":21.41525},{"$f":"IFERROR(Volumes!P16/Customers!P17,0)","v":59.904249999999998},{"$f":"IFERROR(Volumes!Q16/Customers!Q17,0)","v":8.5745000000000005},{"$f":"IFERROR(Volumes!R16/Customers!R17,0)","v":6.0818750000000001},{"$f":"IFERROR(Volumes!S16/Customers!S17,0)","v":20.890999999999998},{"$f":"IFERROR(Volumes!T16/Customers!T17,0)","v":54.259875000000001},{"$f":"IFERROR(Volumes!U16/Customers!U17,0)","v":17.417000000000002},{"$f":"IFERROR(Volumes!V16/Customers!V17,0)","v":12.235749999999999},{"$f":"IFERROR(Volumes!W16/Customers!W17,0)","v":21.020125},{"$f":"IFERROR(Volumes!X16/Customers!X17,0)","v":62.862499999999997},{"$f":"IFERROR(Volumes!Y16/Customers!Y17,0)","v":10.260375},{"$f":"IFERROR(Volumes!Z16/Customers!Z17,0)","v":10.167375},{"$f":"IFERROR(Volumes!AA16/Customers!AA17,0)","v":16.31925},{"$f":"IFERROR(Volumes!AB16/Customers!AB17,0)","v":63.535249999999998},{"$f":"IFERROR(Volumes!AC16/Customers!AC17,0)","v":9.3405000000000005},{"$f":"IFERROR(Volumes!AD16/Customers!AD17,0)","v":12.762499999999999},{"$f":"IFERROR(Volumes!AE16/Customers!AE17,0)","v":14.910625},{"$f":"IFERROR(Volumes!AF16/Customers!AF17,0)","v":61.6175},{"$f":"IFERROR(Volumes!AG16/Customers!AG17,0)","v":14.884874999999999},{"$f":"IFERROR(Volumes!AH16/Customers!AH17,0)","v":13.612500000000001},{"$f":"IFERROR(Volumes!AI16/Customers!AI17,0)","v":19.99625},{"$f":"IFERROR(Volumes!AJ16/Customers!AJ17,0)","v":58.89575},{"$f":"IFERROR(Volumes!AK16/Customers!AK17,0)","v":11.168749999999999}]
["Port Phillip (C)",{"$f":"IFERROR(Volumes!B17/Customers!B18,0)","v":5.0789420310690554},{"$f":"IFERROR(Volumes!C17/Customers!C18,0)","v":12.716999068269697},{"$f":"IFERROR(Volumes!D17/Customers!D18,0)","v":15.241529646447601},{"$f":"IFERROR(Volumes!E17/Customers!E18,0)","v":7.1743451033779628},{"$f":"IFERROR(Volumes!F17/Customers!F18,0)","v":4.4914854547994967},{"$f":"IFERROR(Volumes!G17/Customers!G18,0)","v":6.9579634468380815},{"$f":"IFERROR(Volumes!H17/Customers!H18,0)","v":17.091051322400752},{"$f":"IFERROR(Volumes!I17/Customers!I18,0)","v":10.535004216752005},{"$f":"IFERROR(Volumes!J17/Customers!J18,0)","v":5.4156530584154599},{"$f":"IFERROR(Volumes!K17/Customers!K18,0)","v":7.9000020289463011},{"$f":"IFERROR(Volumes!L17/Customers!L18,0)","v":16.157264884732843},{"$f":"IFERROR(Volumes!M17/Customers!M18,0)","v":8.6210192622057544},{"$f":"IFERROR(Volumes!N17/Customers!N18,0)","v":4.8931608017817378},{"$f":"IFERROR(Volumes!O17/Customers!O18,0)","v":10.189810450295075},{"$f":"IFERROR(Volumes!P17/Customers!P18,0)","v":17.931373418065288},{"$f":"IFERROR(Volumes!Q17/Customers!Q18,0)","v":8.8713369179540376},{"$f":"IFERROR(Volumes!R17/Customers!R18,0)","v":4.0803693974348176},{"$f":"IFERROR(Volumes!S17/Customers!S18,0)","v":7.905664101660931},{"$f":"IFERROR(Volumes!T17/Customers!T18,0)","v":16.602422518422195},{"$f":"IFERROR(Volumes!U17/Customers!U18,0)","v":10.245442464897748},{"$f":"IFERROR(Volumes!V17/Customers!V18,0)","v":4.7982301660516606},{"$f":"IFERROR(Volumes!W17/Customers!W18,0)","v":9.2173602086919093},{"$f":"IFERROR(Volumes!X17/Customers!X18,0)","v":17.279475114947164},{"$f":"IFERROR(Volumes!Y17/Customers!Y18,0)","v":9.4317425726587736},{"$f":"IFERROR(Volumes!Z17/Customers!Z18,0)","v":4.5615072483366692},{"$f":"IFERROR(Volumes!AA17/Customers!AA18,0)","v":8.565258483194178},{"$f":"IFERROR(Volumes!AB17/Customers!AB18,0)","v":16.735806788651644},{"$f":"IFERROR(Volumes!AC17/Customers!AC18,0)","v":9.5132245646932763},{"$f":"IFERROR(Volumes!AD17/Customers!AD18,0)","v":4.6773041049307746},{"$f":"IFERROR(Volumes!AE17/Customers!AE18,0)","v":8.4238030506111947},{"$f":"IFERROR(Volumes!AF17/Customers!AF18,0)","v":16.184730688935282},{"$f":"IFERROR(Volumes!AG17/Customers!AG18,0)","v":10.196238682577055},{"$f":"IFERROR(Volumes!AH17/Customers!AH18,0)","v":4.8909260683645757},{"$f":"IFERROR(Volumes!AI17/Customers!AI18,0)","v":10.038642564253745},{"$f":"IFERROR(Volumes!AJ17/Customers!AJ18,0)","v":16.588184112903228},{"$f":"IFERROR(Volumes!AK17/Customers!AK18,0)","v":9.2214223397044872}]
["South Gippsland (S)",{"$f":"IFERROR(Volumes!B18/Customers!B19,0)","v":2.7824037159766193},{"$f":"IFERROR(Volumes!C18/Customers!C19,0)","v":12.828207785491083},{"$f":"IFERROR(Volumes!D18/Customers!D19,0)","v":16.283115165860455},{"$f":"IFERROR(Volumes!E18/Customers!E19,0)","v":5.4165561866513086},{"$f":"IFERROR(Volumes!F18/Customers!F19,0)","v":1.7791490384615385},{"$f":"IFERROR(Volumes!G18/Customers!G19,0)","v":7.6773584070796455},{"$f":"IFERROR(Volumes!H18/Customers!H19,0)","v":12.184774240231549},{"$f":"IFERROR(Volumes!I18/Customers!I19,0)","v":14.221435773480662},{"$f":"IFERROR(Volumes!J18/Customers!J19,0)","v":2.3593249299719887},{"$f":"IFERROR(Volumes!K18/Customers!K19,0)","v":7.1634296100462658},{"$f":"IFERROR(Volumes!L18/Customers!L19,0)","v":12.156822882999354},{"$f":"IFERROR(Volumes!M18/Customers!M19,0)","v":12.606118016321405},{"$f":"IFERROR(Volumes!N18/Customers!N19,0)","v":2.1572783906554185},{"$f":"IFERROR(Volumes!O18/Customers!O19,0)","v":10.347407831325301},{"$f":"IFERROR(Volumes!P18/Customers!P19,0)","v":17.734369863013701},{"$f":"IFERROR(Volumes!Q18/Customers!Q19,0)","v":8.5905336848271823},{"$f":"IFERROR(Volumes!R18/Customers!R19,0)","v":2.289981981981982},{"$f":"IFERROR(Volumes!S18/Customers!S19,0)","v":7.7459898247597518},{"$f":"IFERROR(Volumes!T18/Customers!T19,0)","v":16.884584125209614},{"$f":"IFERROR(Volumes!U18/Customers!U19,0)","v":11.108444749862562},{"$f":"IFERROR(Volumes!V18/Customers!V19,0)","v":3.1137477678571428},{"$f":"IFERROR(Volumes!W18/Customers!W19,0)","v":7.9386850858369105},{"$f":"IFERROR(Volumes!X18/Customers!X19,0)","v":18.779010548523207},{"$f":"IFERROR(Volumes!Y18/Customers!Y19,0)","v":8.4878396226415092},{"$f":"IFERROR(Volumes!Z18/Customers!Z19,0)","v":2.6705937331172342},{"$f":"IFERROR(Volumes!AA18/Customers!AA19,0)","v":6.886752185089974},{"$f":"IFERROR(Volumes!AB18/Customers!AB19,0)","v":17.463025354969577},{"$f":"IFERROR(Volumes!AC18/Customers!AC19,0)","v":9.9213743155798912},{"$f":"IFERROR(Volumes!AD18/Customers!AD19,0)","v":3.3869954361054764},{"$f":"IFERROR(Volumes!AE18/Customers!AE19,0)","v":6.2686906862745104},{"$f":"IFERROR(Volumes!AF18/Customers!AF19,0)","v":18.696149008224481},{"$f":"IFERROR(Volumes!AG18/Customers!AG19,0)","v":9.5664059500959695},{"$f":"IFERROR(Volumes!AH18/Customers!AH19,0)","v":4.2547164532954005},{"$f":"IFERROR(Volumes!AI18/Customers!AI19,0)","v":8.4252630342883972},{"$f":"IFERROR(Volumes!AJ18/Customers!AJ19,0)","v":20.467942830797604},{"$f":"IFERROR(Volumes!AK18/Customers!AK19,0)","v":6.4648143518518522}]
["Stonnington (C)",{"$f":"IFERROR(Volumes!B19/Customers!B20,0)","v":5.8746968292027271},{"$f":"IFERROR(Volumes!C19/Customers!C20,0)","v":18.339940179747884},{"$f":"IFERROR(Volumes!D19/Customers!D20,0)","v":22.327988872572583},{"$f":"IFERROR(Volumes!E19/Customers!E20,0)","v":9.0189635479355719},{"$f":"IFERROR(Volumes!F19/Customers!F20,0)","v":5.4822430119951573},{"$f":"IFERROR(Volumes!G19/Customers!G20,0)","v":9.5247987357981643},{"$f":"IFERROR(Volumes!H19/Customers!H20,0)","v":25.903279665149547},{"$f":"IFERROR(Volumes!I19/Customers!I20,0)","v":13.332529112140669},{"$f":"IFERROR(Volumes!J19/Customers!J20,0)","v":6.7165071045067517},{"$f":"IFERROR(Volumes!K19/Customers!K20,0)","v":9.8907861085188653},{"$f":"IFERROR(Volumes!L19/Customers!L20,0)","v":25.155581197035303},{"$f":"IFERROR(Volumes!M19/Customers!M20,0)","v":10.062944037882049},{"$f":"IFERROR(Volumes!N19/Customers!N20,0)","v":5.9528161758651921},{"$f":"IFERROR(Volumes!O19/Customers!O20,0)","v":12.519115784173424},{"$f":"IFERROR(Volumes!P19/Customers!P20,0)","v":28.211671623098038},{"$f":"IFERROR(Volumes!Q19/Customers!Q20,0)","v":10.110636046700179},{"$f":"IFERROR(Volumes!R19/Customers!R20,0)","v":5.3693199748159097},{"$f":"IFERROR(Volumes!S19/Customers!S20,0)","v":9.3482506395906615},{"$f":"IFERROR(Volumes!T19/Customers!T20,0)","v":26.013425168443948},{"$f":"IFERROR(Volumes!U19/Customers!U20,0)","v":12.804115615454691},{"$f":"IFERROR(Volumes!V19/Customers!V20,0)","v":5.8864879886700692},{"$f":"IFERROR(Volumes!W19/Customers!W20,0)","v":11.186278010944058},{"$f":"IFERROR(Volumes!X19/Customers!X20,0)","v":27.18658388888889},{"$f":"IFERROR(Volumes!Y19/Customers!Y20,0)","v":11.101785009442242},{"$f":"IFERROR(Volumes!Z19/Customers!Z20,0)","v":5.3847286577992746},{"$f":"IFERROR(Volumes!AA19/Customers!AA20,0)","v":9.9191136895890981},{"$f":"IFERROR(Volumes!AB19/Customers!AB20,0)","v":26.175799422531856},{"$f":"IFERROR(Volumes!AC19/Customers!AC20,0)","v":11.33292632641675},{"$f":"IFERROR(Volumes!AD19/Customers!AD20,0)","v":5.5738747686613195},{"$f":"IFERROR(Volumes!AE19/Customers!AE20,0)","v":9.77327995103518},{"$f":"IFERROR(Volumes!AF19/Customers!AF20,0)","v":25.183485488475366},{"$f":"IFERROR(Volumes!AG19/Customers!AG20,0)","v":12.064772850318471},{"$f":"IFERROR(Volumes!AH19/Customers!AH20,0)","v":6.217932732556589},{"$f":"IFERROR(Volumes!AI19/Customers!AI20,0)","v":12.817449371136219},{"$f":"IFERROR(Volumes!AJ19/Customers!AJ20,0)","v":26.032752660140456},{"$f":"IFERROR(Volumes!AK19/Customers!AK20,0)","v":11.540998839907193}]
["Whitehorse (C)",{"$f":"IFERROR(Volumes!B20/Customers!B21,0)","v":6.0909549453637908},{"$f":"IFERROR(Volumes!C20/Customers!C21,0)","v":21.97490912359136},{"$f":"IFERROR(Volumes!D20/Customers!D21,0)","v":27.107415689714507},{"$f":"IFERROR(Volumes!E20/Customers!E21,0)","v":9.8373614903720892},{"$f":"IFERROR(Volumes!F20/Customers!F21,0)","v":4.9554253006997513},{"$f":"IFERROR(Volumes!G20/Customers!G21,0)","v":10.410396956438426},{"$f":"IFERROR(Volumes!H20/Customers!H21,0)","v":30.80907478971401},{"$f":"IFERROR(Volumes!I20/Customers!I21,0)","v":14.800553483917311},{"$f":"IFERROR(Volumes!J20/Customers!J21,0)","v":6.2806741473028387},{"$f":"IFERROR(Volumes!K20/Customers!K21,0)","v":11.180492570404263},{"$f":"IFERROR(Volumes!L20/Customers!L21,0)","v":28.713018623633719},{"$f":"IFERROR(Volumes!M20/Customers!M21,0)","v":11.911860378305468},{"$f":"IFERROR(Volumes!N20/Customers!N21,0)","v":5.190005057412197},{"$f":"IFERROR(Volumes!O20/Customers!O21,0)","v":14.565003299973592},{"$f":"IFERROR(Volumes!P20/Customers!P21,0)","v":32.309087093700704},{"$f":"IFERROR(Volumes!Q20/Customers!Q21,0)","v":11.682879461984284},{"$f":"IFERROR(Volumes!R20/Customers!R21,0)","v":4.4860993607954542},{"$f":"IFERROR(Volumes!S20/Customers!S21,0)","v":10.869172028038383},{"$f":"IFERROR(Volumes!T20/Customers!T21,0)","v":29.470030715505199},{"$f":"IFERROR(Volumes!U20/Customers!U21,0)","v":15.328576541807374},{"$f":"IFERROR(Volumes!V20/Customers!V21,0)","v":5.3139064931434525},{"$f":"IFERROR(Volumes!W20/Customers!W21,0)","v":13.650353007454969},{"$f":"IFERROR(Volumes!X20/Customers!X21,0)","v":30.791146298635287},{"$f":"IFERROR(Volumes!Y20/Customers!Y21,0)","v":12.918219413050842},{"$f":"IFERROR(Volumes!Z20/Customers!Z21,0)","v":4.5567451825753711},{"$f":"IFERROR(Volumes!AA20/Customers!AA21,0)","v":11.819881125965036},{"$f":"IFERROR(Volumes!AB20/Customers!AB21,0)","v":29.455760246466998},{"$f":"IFERROR(Volumes!AC20/Customers!AC21,0)","v":12.596911395701527},{"$f":"IFERROR(Volumes!AD20/Customers!AD21,0)","v":4.6486008763837638},{"$f":"IFERROR(Volumes!AE20/Customers!AE21,0)","v":11.651742370291128},{"$f":"IFERROR(Volumes!AF20/Customers!AF21,0)","v":28.234847995859276},{"$f":"IFERROR(Volumes!AG20/Customers!AG21,0)","v":13.965276362973318},{"$f":"IFERROR(Volumes!AH20/Customers!AH21,0)","v":5.6129383334348173},{"$f":"IFERROR(Volumes!AI20/Customers!AI21,0)","v":14.870935725893412},{"$f":"IFERROR(Volumes!AJ20/Customers!AJ21,0)","v":28.605281645953319},{"$f":"IFERROR(Volumes!AK20/Customers!AK21,0)","v":12.6769856670509}]
["Yarra Ranges (S)",{"$f":"IFERROR(Volumes!B21/Customers!B22,0)","v":6.8959382682522428},{"$f":"IFERROR(Volumes!C21/Customers!C22,0)","v":25.005164220190714},{"$f":"IFERROR(Volumes!D21/Customers!D22,0)","v":30.662159025140628},{"$f":"IFERROR(Volumes!E21/Customers!E22,0)","v":11.287866942831863},{"$f":"IFERROR(Volumes!F21/Customers!F22,0)","v":4.9761608589669182},{"$f":"IFERROR(Volumes!G21/Customers!G22,0)","v":14.422089440395984},{"$f":"IFERROR(Volumes!H21/Customers!H22,0)","v":30.273369445278053},{"$f":"IFERROR(Volumes!I21/Customers!I22,0)","v":18.787875495818128},{"$f":"IFERROR(Volumes!J21/Customers!J22,0)","v":6.0374714321442378},{"$f":"IFERROR(Volumes!K21/Customers!K22,0)","v":14.196856657975184},{"$f":"IFERROR(Volumes!L21/Customers!L22,0)","v":29.823692126935814},{"$f":"IFERROR(Volumes!M21/Customers!M22,0)","v":15.321238431214443},{"$f":"IFERROR(Volumes!N21/Customers!N22,0)","v":5.3553480542986422},{"$f":"IFERROR(Volumes!O21/Customers!O22,0)","v":17.843735090981536},{"$f":"IFERROR(Volumes!P21/Customers!P22,0)","v":33.15861159323542},{"$f":"IFERROR(Volumes!Q21/Customers!Q22,0)","v":14.988293882332139},{"$f":"IFERROR(Volumes!R21/Customers!R22,0)","v":4.5636355416956453},{"$f":"IFERROR(Volumes!S21/Customers!S22,0)","v":13.769610254721124},{"$f":"IFERROR(Volumes!T21/Customers!T22,0)","v":30.895287113379577},{"$f":"IFERROR(Volumes!U21/Customers!U22,0)","v":18.908377931154607},{"$f":"IFERROR(Volumes!V21/Customers!V22,0)","v":5.4811450345112895},{"$f":"IFERROR(Volumes!W21/Customers!W22,0)","v":16.31767289719626},{"$f":"IFERROR(Volumes!X21/Customers!X22,0)","v":32.404026673257967},{"$f":"IFERROR(Volumes!Y21/Customers!Y22,0)","v":16.7863354517348},{"$f":"IFERROR(Volumes!Z21/Customers!Z22,0)","v":4.5572035371443391},{"$f":"IFERROR(Volumes!AA21/Customers!AA22,0)","v":13.648933153592672},{"$f":"IFERROR(Volumes!AB21/Customers!AB22,0)","v":31.19759514230368},{"$f":"IFERROR(Volumes!AC21/Customers!AC22,0)","v":16.196968272171251},{"$f":"IFERROR(Volumes!AD21/Customers!AD22,0)","v":4.6897969700202706},{"$f":"IFERROR(Volumes!AE21/Customers!AE22,0)","v":13.046644354651042},{"$f":"IFERROR(Volumes!AF21/Customers!AF22,0)","v":30.192016681761693},{"$f":"IFERROR(Volumes!AG21/Customers!AG22,0)","v":17.790576952985436},{"$f":"IFERROR(Volumes!AH21/Customers!AH22,0)","v":5.9579166842260527},{"$f":"IFERROR(Volumes!AI21/Customers!AI22,0)","v":16.675584606037752},{"$f":"IFERROR(Volumes!AJ21/Customers!AJ22,0)","v":30.76395329853862},{"$f":"IFERROR(Volumes!AK21/Customers!AK22,0)","v":15.073502230839797}]
["Multinet",{"$f":"IFERROR(Volumes!B22/Customers!B23,0)","v":6.1225824270757752},{"$f":"IFERROR(Volumes!C22/Customers!C23,0)","v":21.189867700036562},{"$f":"IFERROR(Volumes!D22/Customers!D23,0)","v":26.078539165078016},{"$f":"IFERROR(Volumes!E22/Customers!E23,0)","v":9.6959914724107374},{"$f":"IFERROR(Volumes!F22/Customers!F23,0)","v":4.9734846909191148},{"$f":"IFERROR(Volumes!G22/Customers!G23,0)","v":10.617631190981752},{"$f":"IFERROR(Volumes!H22/Customers!H23,0)","v":28.91248831745613},{"$f":"IFERROR(Volumes!I22/Customers!I23,0)","v":14.936276927387345},{"$f":"IFERROR(Volumes!J22/Customers!J23,0)","v":5.9842262729949063},{"$f":"IFERROR(Volumes!K22/Customers!K23,0)","v":11.304963547955889},{"$f":"IFERROR(Volumes!L22/Customers!L23,0)","v":27.194500766733711},{"$f":"IFERROR(Volumes!M22/Customers!M23,0)","v":12.11553601956793},{"$f":"IFERROR(Volumes!N22/Customers!N23,0)","v":5.2752440448222639},{"$f":"IFERROR(Volumes!O22/Customers!O23,0)","v":14.663839083007904},{"$f":"IFERROR(Volumes!P22/Customers!P23,0)","v":30.459489338519024},{"$f":"IFERROR(Volumes!Q22/Customers!Q23,0)","v":12.001972360241801},{"$f":"IFERROR(Volumes!R22/Customers!R23,0)","v":4.655607998196623},{"$f":"IFERROR(Volumes!S22/Customers!S23,0)","v":11.112897490659522},{"$f":"IFERROR(Volumes!T22/Customers!T23,0)","v":27.87634644269821},{"$f":"IFERROR(Volumes!U22/Customers!U23,0)","v":15.124532258651266},{"$f":"IFERROR(Volumes!V22/Customers!V23,0)","v":5.3600434537339936},{"$f":"IFERROR(Volumes!W22/Customers!W23,0)","v":13.327043665282398},{"$f":"IFERROR(Volumes!X22/Customers!X23,0)","v":29.208471904928118},{"$f":"IFERROR(Volumes!Y22/Customers!Y23,0)","v":13.182578844485986},{"$f":"IFERROR(Volumes!Z22/Customers!Z23,0)","v":4.7049322372277125},{"$f":"IFERROR(Volumes!AA22/Customers!AA23,0)","v":11.761735715630126},{"$f":"IFERROR(Volumes!AB22/Customers!AB23,0)","v":27.879753034219085},{"$f":"IFERROR(Volumes!AC22/Customers!AC23,0)","v":12.950101063228479},{"$f":"IFERROR(Volumes!AD22/Customers!AD23,0)","v":4.7853672026434682},{"$f":"IFERROR(Volumes!AE22/Customers!AE23,0)","v":11.489718938691061},{"$f":"IFERROR(Volumes!AF22/Customers!AF23,0)","v":26.749498983741336},{"$f":"IFERROR(Volumes!AG22/Customers!AG23,0)","v":14.230783748815591},{"$f":"IFERROR(Volumes!AH22/Customers!AH23,0)","v":5.6213596926874496},{"$f":"IFERROR(Volumes!AI22/Customers!AI23,0)","v":14.619532330455428},{"$f":"IFERROR(Volumes!AJ22/Customers!AJ23,0)","v":27.489888283486763},{"$f":"IFERROR(Volumes!AK22/Customers!AK23,0)","v":12.720363317003191}]
[]
["Small business volumes per connection (GJ)","2012Q1","2012Q2","2012Q3","2012Q4","2013Q1","2013Q2","2013Q3","2013Q4","2014Q1","2014Q2","2014Q3","2014Q4","2015Q1","2015Q2","2015Q3","2015Q4","2016Q1","2016Q2","2016Q3","2016Q4","2017Q1","2017Q2","2017Q3","2017Q4","2018Q1","2018Q2","2018Q3","2018Q4","2019Q1","2019Q2","2019Q3","2019Q4","2020Q1","2020Q2","2020Q3","2020Q4"]
["Bass Coast (S)",{"$f":"IFERROR(Volumes!B25/Customers!B73,0)","v":143.59933630840487},{"$f":"IFERROR(Volumes!C25/Customers!C73,0)","v":201.47724548518138},{"$f":"IFERROR(Volumes!D25/Customers!D73,0)","v":231.92954615683578},{"$f":"IFERROR(Volumes!E25/Customers!E73,0)","v":155.18617385899489},{"$f":"IFERROR(Volumes!F25/Customers!F73,0)","v":58.466714285714282},{"$f":"IFERROR(Volumes!G25/Customers!G73,0)","v":277.44956818181822},{"$f":"IFERROR(Volumes!H25/Customers!H73,0)","v":37.6556},{"$f":"IFERROR(Volumes!I25/Customers!I73,0)","v":364.5682888888889},{"$f":"IFERROR(Volumes!J25/Customers!J73,0)","v":112.35230434782609},{"$f":"IFERROR(Volumes!K25/Customers!K73,0)","v":211.92267346938775},{"$f":"IFERROR(Volumes!L25/Customers!L73,0)","v":181.88519148936169},{"$f":"IFERROR(Volumes!M25/Customers!M73,0)","v":269.10554347826087},{"$f":"IFERROR(Volumes!N25/Customers!N73,0)","v":115.50060869565218},{"$f":"IFERROR(Volumes!O25/Customers!O73,0)","v":291.72123913043475},{"$f":"IFERROR(Volumes!P25/Customers!P73,0)","v":195.54065957446809},{"$f":"IFERROR(Volumes!Q25/Customers!Q73,0)","v":289.8235744680851},{"$f":"IFERROR(Volumes!R25/Customers!R73,0)","v":111.06839130434783},{"$f":"IFERROR(Volumes!S25/Customers!S73,0)","v":241.98945833333335},{"$f":"IFERROR(Volumes!T25/Customers!T73,0)","v":193.41427659574467},{"$f":"IFERROR(Volumes!U25/Customers!U73,0)","v":296.26461702127659},{"$f":"IFERROR(Volumes!V25/Customers!V73,0)","v":111.47485416666666},{"$f":"IFERROR(Volumes!W25/Customers!W73,0)","v":258.65141176470587},{"$f":"IFERROR(Volumes!X25/Customers!X73,0)","v":174.71201923076922},{"$f":"IFERROR(Volumes!Y25/Customers!Y73,0)","v":275.94509259259257},{"$f":"IFERROR(Volumes!Z25/Customers!Z73,0)","v":96.975859999999997},{"$f":"IFERROR(Volumes!AA25/Customers!AA73,0)","v":262.76575925925926},{"$f":"IFERROR(Volumes!AB25/Customers!AB73,0)","v":166.6638148148148},{"$f":"IFERROR(Volumes!AC25/Customers!AC73,0)","v":268.1765272727273},{"$f":"IFERROR(Volumes!AD25/Customers!AD73,0)","v":99.967218181818183},{"$f":"IFERROR(Volumes!AE25/Customers!AE73,0)","v":242.08026785714287},{"$f":"IFERROR(Volumes!AF25/Customers!AF73,0)","v":173.6960357142857},{"$f":"IFERROR(Volumes!AG25/Customers!AG73,0)","v":271.32745614035088},{"$f":"IFERROR(Volumes!AH25/Customers!AH73,0)","v":112.06138181818183},{"$f":"IFERROR(Volumes!AI25/Customers!AI73,0)","v":210.76832142857143},{"$f":"IFERROR(Volumes!AJ25/Customers!AJ73,0)","v":161.83592727272728},{"$f":"IFERROR(Volumes!AK25/Customers!AK73,0)","v":227.32021428571429}]
["Bayside (C)",{"$f":"IFERROR(Volumes!B26/Customers!B74,0)","v":47.822651923957665},{"$f":"IFERROR(Volumes!C26/Customers!C74,0)","v":78.736039521517171},{"$f":"IFERROR(Volumes!D26/Customers!D74,0)","v":85.568171505720144},{"$f":"IFERROR(Volumes!E26/Customers!E74,0)","v":55.079472340615006},{"$f":"IFERROR(Volumes!F26/Customers!F74,0)","v":51.16646920821114},{"$f":"IFERROR(Volumes!G26/Customers!G74,0)","v":57.254961206896553},{"$f":"IFERROR(Volumes!H26/Customers!H74,0)","v":119.95072346368714},{"$f":"IFERROR(Volumes!I26/Customers!I74,0)","v":78.640565656565656},{"$f":"IFERROR(Volumes!J26/Customers!J74,0)","v":65.246051502145917},{"$f":"IFERROR(Volumes!K26/Customers!K74,0)","v":65.664858333333328},{"$f":"IFERROR(Volumes!L26/Customers!L74,0)","v":114.38608563535911},{"$f":"IFERROR(Volumes!M26/Customers!M74,0)","v":68.115145658263302},{"$f":"IFERROR(Volumes!N26/Customers!N74,0)","v":65.243315249266857},{"$f":"IFERROR(Volumes!O26/Customers!O74,0)","v":78.421601941747568},{"$f":"IFERROR(Volumes!P26/Customers!P74,0)","v":147.84727538247566},{"$f":"IFERROR(Volumes!Q26/Customers!Q74,0)","v":46.906267605633801},{"$f":"IFERROR(Volumes!R26/Customers!R74,0)","v":62.077607871720119},{"$f":"IFERROR(Volumes!S26/Customers!S74,0)","v":72.437722375690612},{"$f":"IFERROR(Volumes!T26/Customers!T74,0)","v":123.10371896316508},{"$f":"IFERROR(Volumes!U26/Customers!U74,0)","v":69.589387500000001},{"$f":"IFERROR(Volumes!V26/Customers!V74,0)","v":61.443519607843143},{"$f":"IFERROR(Volumes!W26/Customers!W74,0)","v":69.366140109890111},{"$f":"IFERROR(Volumes!X26/Customers!X74,0)","v":116.7214402173913},{"$f":"IFERROR(Volumes!Y26/Customers!Y74,0)","v":58.743584594222838},{"$f":"IFERROR(Volumes!Z26/Customers!Z74,0)","v":54.488764367816096},{"$f":"IFERROR(Volumes!AA26/Customers!AA74,0)","v":72.470355430183361},{"$f":"IFERROR(Volumes!AB26/Customers!AB74,0)","v":101.82000138888888},{"$f":"IFERROR(Volumes!AC26/Customers!AC74,0)","v":58.925347887323944},{"$f":"IFERROR(Volumes!AD26/Customers!AD74,0)","v":56.753403156384508},{"$f":"IFERROR(Volumes!AE26/Customers!AE74,0)","v":59.786617021276598},{"$f":"IFERROR(Volumes!AF26/Customers!AF74,0)","v":99.711162464986003},{"$f":"IFERROR(Volumes!AG26/Customers!AG74,0)","v":62.624222222222222},{"$f":"IFERROR(Volumes!AH26/Customers!AH74,0)","v":44.749467718794833},{"$f":"IFERROR(Volumes!AI26/Customers!AI74,0)","v":50.863710914454273},{"$f":"IFERROR(Volumes!AJ26/Customers!AJ74,0)","v":84.896655021834064},{"$f":"IFERROR(Volumes!AK26/Customers!AK74,0)","v":53.346790014684281}]
["Boroondara (C)",{"$f":"IFERROR(Volumes!B27/Customers!B75,0)","v":50.453021259666059},{"$f":"IFERROR(Volumes!C27/Customers!C75,0)","v":93.951891266321013},{"$f":"IFERROR(Volumes!D27/Customers!D75,0)","v":105.38093449316865},{"$f":"IFERROR(Volumes!E27/Customers!E75,0)","v":61.12623006585936},{"$f":"IFERROR(Volumes!F27/Customers!F75,0)","v":77.643277955271571},{"$f":"IFERROR(Volumes!G27/Customers!G75,0)","v":93.571809083910694},{"$f":"IFERROR(Volumes!H27/Customers!H75,0)","v":189.38097262357414},{"$f":"IFERROR(Volumes!I27/Customers!I75,0)","v":122.23366972477065},{"$f":"IFERROR(Volumes!J27/Customers!J75,0)","v":71.406475448168351},{"$f":"IFERROR(Volumes!K27/Customers!K75,0)","v":93.327342878673704},{"$f":"IFERROR(Volumes!L27/Customers!L75,0)","v":156.78407599699023},{"$f":"IFERROR(Volumes!M27/Customers!M75,0)","v":105.80213092550791},{"$f":"IFERROR(Volumes!N27/Customers!N75,0)","v":66.262728773584911},{"$f":"IFERROR(Volumes!O27/Customers!O75,0)","v":104.58533456698743},{"$f":"IFERROR(Volumes!P27/Customers!P75,0)","v":156.37087928464979},{"$f":"IFERROR(Volumes!Q27/Customers!Q75,0)","v":101.13022720478327},{"$f":"IFERROR(Volumes!R27/Customers!R75,0)","v":61.328965838509319},{"$f":"IFERROR(Volumes!S27/Customers!S75,0)","v":87.15170653789005},{"$f":"IFERROR(Volumes!T27/Customers!T75,0)","v":161.11333577176299},{"$f":"IFERROR(Volumes!U27/Customers!U75,0)","v":113.97981180811807},{"$f":"IFERROR(Volumes!V27/Customers!V75,0)","v":69.317348115299339},{"$f":"IFERROR(Volumes!W27/Customers!W75,0)","v":87.843525362318843},{"$f":"IFERROR(Volumes!X27/Customers!X75,0)","v":124.15596618705037},{"$f":"IFERROR(Volumes!Y27/Customers!Y75,0)","v":82.63080217391304},{"$f":"IFERROR(Volumes!Z27/Customers!Z75,0)","v":49.411431988041855},{"$f":"IFERROR(Volumes!AA27/Customers!AA75,0)","v":77.282672740524788},{"$f":"IFERROR(Volumes!AB27/Customers!AB75,0)","v":109.29890029112083},{"$f":"IFERROR(Volumes!AC27/Customers!AC75,0)","v":84.357654624277458},{"$f":"IFERROR(Volumes!AD27/Customers!AD75,0)","v":49.069983787767129},{"$f":"IFERROR(Volumes!AE27/Customers!AE75,0)","v":74.042190236898776},{"$f":"IFERROR(Volumes!AF27/Customers!AF75,0)","v":107.27510193826275},{"$f":"IFERROR(Volumes!AG27/Customers!AG75,0)","v":89.238550578034676},{"$f":"IFERROR(Volumes!AH27/Customers!AH75,0)","v":42.657130242825609},{"$f":"IFERROR(Volumes!AI27/Customers!AI75,0)","v":67.344751835535973},{"$f":"IFERROR(Volumes!AJ27/Customers!AJ75,0)","v":88.260885160328115},{"$f":"IFERROR(Volumes!AK27/Customers!AK75,0)","v":65.517463909774435}]
["Cardinia (S)",{"$f":"IFERROR(Volumes!B28/Customers!B76,0)","v":19.809087162109421},{"$f":"IFERROR(Volumes!C28/Customers!C76,0)","v":44.272492247515196},{"$f":"IFERROR(Volumes!D28/Customers!D76,0)","v":56.892126099604539},{"$f":"IFERROR(Volumes!E28/Customers!E76,0)","v":29.37163858192979},{"$f":"IFERROR(Volumes!F28/Customers!F76,0)","v":19.051634408602151},{"$f":"IFERROR(Volumes!G28/Customers!G76,0)","v":17.326150537634408},{"$f":"IFERROR(Volumes!H28/Customers!H76,0)","v":66.176410526315792},{"$f":"IFERROR(Volumes!I28/Customers!I76,0)","v":46.634357894736844},{"$f":"IFERROR(Volumes!J28/Customers!J76,0)","v":21.752631578947369},{"$f":"IFERROR(Volumes!K28/Customers!K76,0)","v":52.752865979381447},{"$f":"IFERROR(Volumes!L28/Customers!L76,0)","v":60.899989999999995},{"$f":"IFERROR(Volumes!M28/Customers!M76,0)","v":38.619259999999997},{"$f":"IFERROR(Volumes!N28/Customers!N76,0)","v":37.446236559139784},{"$f":"IFERROR(Volumes!O28/Customers!O76,0)","v":53.647960000000005},{"$f":"IFERROR(Volumes!P28/Customers!P76,0)","v":69.925888888888878},{"$f":"IFERROR(Volumes!Q28/Customers!Q76,0)","v":46.935824742268039},{"$f":"IFERROR(Volumes!R28/Customers!R76,0)","v":32.924189473684208},{"$f":"IFERROR(Volumes!S28/Customers!S76,0)","v":51.907884210526312},{"$f":"IFERROR(Volumes!T28/Customers!T76,0)","v":67.451978947368417},{"$f":"IFERROR(Volumes!U28/Customers!U76,0)","v":55.201625},{"$f":"IFERROR(Volumes!V28/Customers!V76,0)","v":43.312780219780223},{"$f":"IFERROR(Volumes!W28/Customers!W76,0)","v":54.780042105263163},{"$f":"IFERROR(Volumes!X28/Customers!X76,0)","v":82.287361702127654},{"$f":"IFERROR(Volumes!Y28/Customers!Y76,0)","v":53.977695652173914},{"$f":"IFERROR(Volumes!Z28/Customers!Z76,0)","v":28.783402298850575},{"$f":"IFERROR(Volumes!AA28/Customers!AA76,0)","v":51.328111111111106},{"$f":"IFERROR(Volumes!AB28/Customers!AB76,0)","v":74.65110112359551},{"$f":"IFERROR(Volumes!AC28/Customers!AC76,0)","v":41.939749999999997},{"$f":"IFERROR(Volumes!AD28/Customers!AD76,0)","v":20.053223529411763},{"$f":"IFERROR(Volumes!AE28/Customers!AE76,0)","v":43.548482758620686},{"$f":"IFERROR(Volumes!AF28/Customers!AF76,0)","v":59.263011363636366},{"$f":"IFERROR(Volumes!AG28/Customers!AG76,0)","v":45.525770114942532},{"$f":"IFERROR(Volumes!AH28/Customers!AH76,0)","v":21.210744186046512},{"$f":"IFERROR(Volumes!AI28/Customers!AI76,0)","v":38.536651162790697},{"$f":"IFERROR(Volumes!AJ28/Customers!AJ76,0)","v":46.521576470588236},{"$f":"IFERROR(Volumes!AK28/Customers!AK76,0)","v":34.532654761904759}]
["Casey (C)",{"$f":"IFERROR(Volumes!B29/Customers!B77,0)","v":41.242767184576699},{"$f":"IFERROR(Volumes!C29/Customers!C77,0)","v":68.211721282021486},{"$f":"IFERROR(Volumes!D29/Customers!D77,0)","v":76.419689414730186},{"$f":"IFERROR(Volumes!E29/Customers!E77,0)","v":41.770072116555909},{"$f":"IFERROR(Volumes!F29/Customers!F77,0)","v":43.964750000000002},{"$f":"IFERROR(Volumes!G29/Customers!G77,0)","v":50.561007462686568},{"$f":"IFERROR(Volumes!H29/Customers!H77,0)","v":107.91},{"$f":"IFERROR(Volumes!I29/Customers!I77,0)","v":75.170088888888884},{"$f":"IFERROR(Volumes!J29/Customers!J77,0)","v":62.435253731343288},{"$f":"IFERROR(Volumes!K29/Customers!K77,0)","v":65.207999999999998},{"$f":"IFERROR(Volumes!L29/Customers!L77,0)","v":97.568617021276594},{"$f":"IFERROR(Volumes!M29/Customers!M77,0)","v":78.830550724637675},{"$f":"IFERROR(Volumes!N29/Customers!N77,0)","v":77.207734848484847},{"$f":"IFERROR(Volumes!O29/Customers!O77,0)","v":74.171364963503649},{"$f":"IFERROR(Volumes!P29/Customers!P77,0)","v":108.58111194029851},{"$f":"IFERROR(Volumes!Q29/Customers!Q77,0)","v":69.870038461538456},{"$f":"IFERROR(Volumes!R29/Customers!R77,0)","v":48.312620967741935},{"$f":"IFERROR(Volumes!S29/Customers!S77,0)","v":60.327237037037037},{"$f":"IFERROR(Volumes!T29/Customers!T77,0)","v":108.74714705882353},{"$f":"IFERROR(Volumes!U29/Customers!U77,0)","v":74.553755555555554},{"$f":"IFERROR(Volumes!V29/Customers!V77,0)","v":50.4350223880597},{"$f":"IFERROR(Volumes!W29/Customers!W77,0)","v":63.466691176470583},{"$f":"IFERROR(Volumes!X29/Customers!X77,0)","v":89.635686131386862},{"$f":"IFERROR(Volumes!Y29/Customers!Y77,0)","v":43.860170370370369},{"$f":"IFERROR(Volumes!Z29/Customers!Z77,0)","v":36.551568181818183},{"$f":"IFERROR(Volumes!AA29/Customers!AA77,0)","v":33.222664179104484},{"$f":"IFERROR(Volumes!AB29/Customers!AB77,0)","v":75.067290780141846},{"$f":"IFERROR(Volumes!AC29/Customers!AC77,0)","v":42.150105633802816},{"$f":"IFERROR(Volumes!AD29/Customers!AD77,0)","v":50.127189781021897},{"$f":"IFERROR(Volumes!AE29/Customers!AE77,0)","v":36.134729927007299},{"$f":"IFERROR(Volumes!AF29/Customers!AF77,0)","v":71.886657342657344},{"$f":"IFERROR(Volumes!AG29/Customers!AG77,0)","v":55.766611111111111},{"$f":"IFERROR(Volumes!AH29/Customers!AH77,0)","v":29.473328571428567},{"$f":"IFERROR(Volumes!AI29/Customers!AI77,0)","v":33.951565217391305},{"$f":"IFERROR(Volumes!AJ29/Customers!AJ77,0)","v":65.244},{"$f":"IFERROR(Volumes!AK29/Customers!AK77,0)","v":35.054919708029196}]
["Frankston (C)",{"$f":"IFERROR(Volumes!B30/Customers!B78,0)","v":0},{"$f":"IFERROR(Volumes!C30/Customers!C78,0)","v":0},{"$f":"IFERROR(Volumes!D30/Customers!D78,0)","v":0},{"$f":"IFERROR(Volumes!E30/Customers!E78,0)","v":0},{"$f":"IFERROR(Volumes!F30/Customers!F78,0)","v":2432.44},{"$f":"IFERROR(Volumes!G30/Customers!G78,0)","v":2058.6},{"$f":"IFERROR(Volumes!H30/Customers!H78,0)","v":4941.88},{"$f":"IFERROR(Volumes!I30/Customers!I78,0)","v":3450.29},{"$f":"IFERROR(Volumes!J30/Customers!J78,0)","v":3041.59},{"$f":"IFERROR(Volumes!K30/Customers!K78,0)","v":3027.31},{"$f":"IFERROR(Volumes!L30/Customers!L78,0)","v":3621.68},{"$f":"IFERROR(Volumes!M30/Customers!M78,0)","v":3508.89},{"$f":"IFERROR(Volumes!N30/Customers!N78,0)","v":3176.93},{"$f":"IFERROR(Volumes!O30/Customers!O78,0)","v":3343.59},{"$f":"IFERROR(Volumes!P30/Customers!P78,0)","v":2796.76},{"$f":"IFERROR(Volumes!Q30/Customers!Q78,0)","v":2442.33},{"$f":"IFERROR(Volumes!R30/Customers!R78,0)","v":2310.71},{"$f":"IFERROR(Volumes!S30/Customers!S78,0)","v":2363.0300000000002},{"$f":"IFERROR(Volumes!T30/Customers!T78,0)","v":2415.7399999999998},{"$f":"IFERROR(Volumes!U30/Customers!U78,0)","v":1580.17},{"$f":"IFERROR(Volumes!V30/Customers!V78,0)","v":2451.7399999999998},{"$f":"IFERROR(Volumes!W30/Customers!W78,0)","v":2095.31},{"$f":"IFERROR(Volumes!X30/Customers!X78,0)","v":720.24},{"$f":"IFERROR(Volumes!Y30/Customers!Y78,0)","v":0},{"$f":"IFERROR(Volumes!Z30/Customers!Z78,0)","v":0},{"$f":"IFERROR(Volumes!AA30/Customers!AA78,0)","v":0},{"$f":"IFERROR(Volumes!AB30/Customers!AB78,0)","v":0},{"$f":"IFERROR(Volumes!AC30/Customers!AC78,0)","v":0},{"$f":"IFERROR(Volumes!AD30/Customers!AD78,0)","v":0},{"$f":"IFERROR(Volumes!AE30/Customers!AE78,0)","v":0},{"$f":"IFERROR(Volumes!AF30/Customers!AF78,0)","v":0},{"$f":"IFERROR(Volumes!AG30/Customers!AG78,0)","v":0},{"$f":"IFERROR(Volumes!AH30/Customers!AH78,0)","v":0},{"$f":"IFERROR(Volumes!AI30/Customers!AI78,0)","v":0},{"$f":"IFERROR(Volumes!AJ30/Customers!AJ78,0)","v":0},{"$f":"IFERROR(Volumes!AK30/Customers!AK78,0)","v":0}]
["Glen Eira (C)",{"$f":"IFERROR(Volumes!B31/Customers!B79,0)","v":40.246655059338671},{"$f":"IFERROR(Volumes!C31/Customers!C79,0)","v":64.249758354026582},{"$f":"IFERROR(Volumes!D31/Customers!D79,0)","v":71.749461577642435},{"$f":"IFERROR(Volumes!E31/Customers!E79,0)","v":44.239582762705474},{"$f":"IFERROR(Volumes!F31/Customers!F79,0)","v":38.759344431687715},{"$f":"IFERROR(Volumes!G31/Customers!G79,0)","v":70.140128035320089},{"$f":"IFERROR(Volumes!H31/Customers!H79,0)","v":108.15407567567568},{"$f":"IFERROR(Volumes!I31/Customers!I79,0)","v":124.85692175777064},{"$f":"IFERROR(Volumes!J31/Customers!J79,0)","v":54.384699666295887},{"$f":"IFERROR(Volumes!K31/Customers!K79,0)","v":73.077339723109688},{"$f":"IFERROR(Volumes!L31/Customers!L79,0)","v":106.42485714285715},{"$f":"IFERROR(Volumes!M31/Customers!M79,0)","v":79.71876831896553},{"$f":"IFERROR(Volumes!N31/Customers!N79,0)","v":50.020361142857141},{"$f":"IFERROR(Volumes!O31/Customers!O79,0)","v":79.550484720758703},{"$f":"IFERROR(Volumes!P31/Customers!P79,0)","v":109.77576956055735},{"$f":"IFERROR(Volumes!Q31/Customers!Q79,0)","v":75.217749469214439},{"$f":"IFERROR(Volumes!R31/Customers!R79,0)","v":47.378248053392653},{"$f":"IFERROR(Volumes!S31/Customers!S79,0)","v":69.955445378151268},{"$f":"IFERROR(Volumes!T31/Customers!T79,0)","v":103.15266110531805},{"$f":"IFERROR(Volumes!U31/Customers!U79,0)","v":87.2469778012685},{"$f":"IFERROR(Volumes!V31/Customers!V79,0)","v":51.364727176220804},{"$f":"IFERROR(Volumes!W31/Customers!W79,0)","v":71.1052441025641},{"$f":"IFERROR(Volumes!X31/Customers!X79,0)","v":74.179036437246964},{"$f":"IFERROR(Volumes!Y31/Customers!Y79,0)","v":55.947034482758617},{"$f":"IFERROR(Volumes!Z31/Customers!Z79,0)","v":39.010206349206349},{"$f":"IFERROR(Volumes!AA31/Customers!AA79,0)","v":55.721108495394063},{"$f":"IFERROR(Volumes!AB31/Customers!AB79,0)","v":67.047993902439018},{"$f":"IFERROR(Volumes!AC31/Customers!AC79,0)","v":57.433900203665985},{"$f":"IFERROR(Volumes!AD31/Customers!AD79,0)","v":35.745529787234048},{"$f":"IFERROR(Volumes!AE31/Customers!AE79,0)","v":52.972499482936918},{"$f":"IFERROR(Volumes!AF31/Customers!AF79,0)","v":68.223081165452641},{"$f":"IFERROR(Volumes!AG31/Customers!AG79,0)","v":56.279154166666665},{"$f":"IFERROR(Volumes!AH31/Customers!AH79,0)","v":34.093031317494599},{"$f":"IFERROR(Volumes!AI31/Customers!AI79,0)","v":48.15284301075269},{"$f":"IFERROR(Volumes!AJ31/Customers!AJ79,0)","v":53.548433297758805},{"$f":"IFERROR(Volumes!AK31/Customers!AK79,0)","v":45.753837433155084}]
["Greater Dandenong (C)",{"$f":"IFERROR(Volumes!B32/Customers!B80,0)","v":113.57443193518999},{"$f":"IFERROR(Volumes!C32/Customers!C80,0)","v":152.47468975109746},{"$f":"IFERROR(Volumes!D32/Customers!D80,0)","v":183.37262844471999},{"$f":"IFERROR(Volumes!E32/Customers!E80,0)","v":124.57324551839004},{"$f":"IFERROR(Volumes!F32/Customers!F80,0)","v":803.06403513071893},{"$f":"IFERROR(Volumes!G32/Customers!G80,0)","v":593.66273007103393},{"$f":"IFERROR(Volumes!H32/Customers!H80,0)","v":1166.0082573007103},{"$f":"IFERROR(Volumes!I32/Customers!I80,0)","v":881.1918933121018},{"$f":"IFERROR(Volumes!J32/Customers!J80,0)","v":763.51431073446327},{"$f":"IFERROR(Volumes!K32/Customers!K80,0)","v":802.51125612648218},{"$f":"IFERROR(Volumes!L32/Customers!L80,0)","v":945.52504347826084},{"$f":"IFERROR(Volumes!M32/Customers!M80,0)","v":836.06443968253961},{"$f":"IFERROR(Volumes!N32/Customers!N80,0)","v":811.983849737328},{"$f":"IFERROR(Volumes!O32/Customers!O80,0)","v":844.09902459633031},{"$f":"IFERROR(Volumes!P32/Customers!P80,0)","v":1034.0890476190477},{"$f":"IFERROR(Volumes!Q32/Customers!Q80,0)","v":838.06330234375002},{"$f":"IFERROR(Volumes!R32/Customers!R80,0)","v":851.30068331328096},{"$f":"IFERROR(Volumes!S32/Customers!S80,0)","v":897.52621694925961},{"$f":"IFERROR(Volumes!T32/Customers!T80,0)","v":1031.4383503134795},{"$f":"IFERROR(Volumes!U32/Customers!U80,0)","v":822.2126794564349},{"$f":"IFERROR(Volumes!V32/Customers!V80,0)","v":788.14039662107803},{"$f":"IFERROR(Volumes!W32/Customers!W80,0)","v":587.18504833597456},{"$f":"IFERROR(Volumes!X32/Customers!X80,0)","v":444.15995781250001},{"$f":"IFERROR(Volumes!Y32/Customers!Y80,0)","v":117.16971746293247},{"$f":"IFERROR(Volumes!Z32/Customers!Z80,0)","v":635.20865030146422},{"$f":"IFERROR(Volumes!AA32/Customers!AA80,0)","v":117.73138879598663},{"$f":"IFERROR(Volumes!AB32/Customers!AB80,0)","v":176.15201076158939},{"$f":"IFERROR(Volumes!AC32/Customers!AC80,0)","v":115.84752023121388},{"$f":"IFERROR(Volumes!AD32/Customers!AD80,0)","v":125.02704898648649},{"$f":"IFERROR(Volumes!AE32/Customers!AE80,0)","v":126.35115091210615},{"$f":"IFERROR(Volumes!AF32/Customers!AF80,0)","v":176.3166052631579},{"$f":"IFERROR(Volumes!AG32/Customers!AG80,0)","v":118.06816043225271},{"$f":"IFERROR(Volumes!AH32/Customers!AH80,0)","v":69.593245089666951},{"$f":"IFERROR(Volumes!AI32/Customers!AI80,0)","v":106.32577984758679},{"$f":"IFERROR(Volumes!AJ32/Customers!AJ80,0)","v":135.20865021276595},{"$f":"IFERROR(Volumes!AK32/Customers!AK80,0)","v":99.795515384615385}]
["Kingston (C)",{"$f":"IFERROR(Volumes!B33/Customers!B81,0)","v":75.32184945678533},{"$f":"IFERROR(Volumes!C33/Customers!C81,0)","v":102.65781785458036},{"$f":"IFERROR(Volumes!D33/Customers!D81,0)","v":117.30674413672391},{"$f":"IFERROR(Volumes!E33/Customers!E81,0)","v":80.800679744417465},{"$f":"IFERROR(Volumes!F33/Customers!F81,0)","v":170.27067762557076},{"$f":"IFERROR(Volumes!G33/Customers!G81,0)","v":188.34602502157031},{"$f":"IFERROR(Volumes!H33/Customers!H81,0)","v":339.18659224936812},{"$f":"IFERROR(Volumes!I33/Customers!I81,0)","v":241.82797013651876},{"$f":"IFERROR(Volumes!J33/Customers!J81,0)","v":204.92703680981597},{"$f":"IFERROR(Volumes!K33/Customers!K81,0)","v":233.77056697556867},{"$f":"IFERROR(Volumes!L33/Customers!L81,0)","v":285.77136325852035},{"$f":"IFERROR(Volumes!M33/Customers!M81,0)","v":256.00936507936512},{"$f":"IFERROR(Volumes!N33/Customers!N81,0)","v":187.24712549690301},{"$f":"IFERROR(Volumes!O33/Customers!O81,0)","v":249.1967385163893},{"$f":"IFERROR(Volumes!P33/Customers!P81,0)","v":281.09680301760267},{"$f":"IFERROR(Volumes!Q33/Customers!Q81,0)","v":226.95898740554154},{"$f":"IFERROR(Volumes!R33/Customers!R81,0)","v":187.96674855686726},{"$f":"IFERROR(Volumes!S33/Customers!S81,0)","v":228.75020993617605},{"$f":"IFERROR(Volumes!T33/Customers!T81,0)","v":263.9000299750208},{"$f":"IFERROR(Volumes!U33/Customers!U81,0)","v":240.17612447786132},{"$f":"IFERROR(Volumes!V33/Customers!V81,0)","v":178.68285936151855},{"$f":"IFERROR(Volumes!W33/Customers!W81,0)","v":176.74102673350041},{"$f":"IFERROR(Volumes!X33/Customers!X81,0)","v":149.45639436619717},{"$f":"IFERROR(Volumes!Y33/Customers!Y81,0)","v":91.737122117847989},{"$f":"IFERROR(Volumes!Z33/Customers!Z81,0)","v":58.558955736224028},{"$f":"IFERROR(Volumes!AA33/Customers!AA81,0)","v":92.480836823734734},{"$f":"IFERROR(Volumes!AB33/Customers!AB81,0)","v":115.45317575757576},{"$f":"IFERROR(Volumes!AC33/Customers!AC81,0)","v":94.409774416594644},{"$f":"IFERROR(Volumes!AD33/Customers!AD81,0)","v":64.166783121597092},{"$f":"IFERROR(Volumes!AE33/Customers!AE81,0)","v":87.370765118317266},{"$f":"IFERROR(Volumes!AF33/Customers!AF81,0)","v":114.45833855526544},{"$f":"IFERROR(Volumes!AG33/Customers!AG81,0)","v":100.9726329004329},{"$f":"IFERROR(Volumes!AH33/Customers!AH81,0)","v":53.603407540394976},{"$f":"IFERROR(Volumes!AI33/Customers!AI81,0)","v":87.328065847234413},{"$f":"IFERROR(Volumes!AJ33/Customers!AJ81,0)","v":98.141240740740741},{"$f":"IFERROR(Volumes!AK33/Customers!AK81,0)","v":87.941512934879569}]
["Knox (C)",{"$f":"IFERROR(Volumes!B34/Customers!B82,0)","v":70.58704347350718},{"$f":"IFERROR(Volumes!C34/Customers!C82,0)","v":120.93271713034522},{"$f":"IFERROR(Volumes!D34/Customers!D82,0)","v":133.78354259512818},{"$f":"IFERROR(Volumes!E34/Customers!E82,0)","v":79.863425353971095},{"$f":"IFERROR(Volumes!F34/Customers!F82,0)","v":184.02117786561266},{"$f":"IFERROR(Volumes!G34/Customers!G82,0)","v":311.83988721804513},{"$f":"IFERROR(Volumes!H34/Customers!H82,0)","v":438.50981215970967},{"$f":"IFERROR(Volumes!I34/Customers!I82,0)","v":336.37171977507029},{"$f":"IFERROR(Volumes!J34/Customers!J82,0)","v":266.47411476952021},{"$f":"IFERROR(Volumes!K34/Customers!K82,0)","v":315.32784302862422},{"$f":"IFERROR(Volumes!L34/Customers!L82,0)","v":379.92806466302369},{"$f":"IFERROR(Volumes!M34/Customers!M82,0)","v":321.56037798165136},{"$f":"IFERROR(Volumes!N34/Customers!N82,0)","v":266.76140269749521},{"$f":"IFERROR(Volumes!O34/Customers!O82,0)","v":329.60508687782806},{"$f":"IFERROR(Volumes!P34/Customers!P82,0)","v":362.3641110108303},{"$f":"IFERROR(Volumes!Q34/Customers!Q82,0)","v":275.30490900735293},{"$f":"IFERROR(Volumes!R34/Customers!R82,0)","v":282.41782156862746},{"$f":"IFERROR(Volumes!S34/Customers!S82,0)","v":325.49725785582257},{"$f":"IFERROR(Volumes!T34/Customers!T82,0)","v":382.57148816029144},{"$f":"IFERROR(Volumes!U34/Customers!U82,0)","v":341.32994165907019},{"$f":"IFERROR(Volumes!V34/Customers!V82,0)","v":280.94132889733839},{"$f":"IFERROR(Volumes!W34/Customers!W82,0)","v":237.24938888888889},{"$f":"IFERROR(Volumes!X34/Customers!X82,0)","v":217.73653236098451},{"$f":"IFERROR(Volumes!Y34/Customers!Y82,0)","v":92.810322460391419},{"$f":"IFERROR(Volumes!Z34/Customers!Z82,0)","v":59.462655172413797},{"$f":"IFERROR(Volumes!AA34/Customers!AA82,0)","v":87.41942427093133},{"$f":"IFERROR(Volumes!AB34/Customers!AB82,0)","v":130.15948608534325},{"$f":"IFERROR(Volumes!AC34/Customers!AC82,0)","v":93.849944128787882},{"$f":"IFERROR(Volumes!AD34/Customers!AD82,0)","v":61.764529644268769},{"$f":"IFERROR(Volumes!AE34/Customers!AE82,0)","v":82.687653588516739},{"$f":"IFERROR(Volumes!AF34/Customers!AF82,0)","v":124.73598016997167},{"$f":"IFERROR(Volumes!AG34/Customers!AG82,0)","v":94.185823809523811},{"$f":"IFERROR(Volumes!AH34/Customers!AH82,0)","v":47.420381046396841},{"$f":"IFERROR(Volumes!AI34/Customers!AI82,0)","v":80.284687439143127},{"$f":"IFERROR(Volumes!AJ34/Customers!AJ82,0)","v":106.27340671273444},{"$f":"IFERROR(Volumes!AK34/Customers!AK82,0)","v":78.6837184079602}]
["Manningham (C)",{"$f":"IFERROR(Volumes!B35/Customers!B83,0)","v":68.247031873181427},{"$f":"IFERROR(Volumes!C35/Customers!C83,0)","v":119.65997452428194},{"$f":"IFERROR(Volumes!D35/Customers!D83,0)","v":146.47087284725913},{"$f":"IFERROR(Volumes!E35/Customers!E83,0)","v":83.360616157028971},{"$f":"IFERROR(Volumes!F35/Customers!F83,0)","v":77.79112757201645},{"$f":"IFERROR(Volumes!G35/Customers!G83,0)","v":89.063793939393946},{"$f":"IFERROR(Volumes!H35/Customers!H83,0)","v":177.41366334661353},{"$f":"IFERROR(Volumes!I35/Customers!I83,0)","v":125.58051593625498},{"$f":"IFERROR(Volumes!J35/Customers!J83,0)","v":88.633015841584168},{"$f":"IFERROR(Volumes!K35/Customers!K83,0)","v":111.58639189189188},{"$f":"IFERROR(Volumes!L35/Customers!L83,0)","v":164.24278957528958},{"$f":"IFERROR(Volumes!M35/Customers!M83,0)","v":109.12752918287939},{"$f":"IFERROR(Volumes!N35/Customers!N83,0)","v":82.988747514910528},{"$f":"IFERROR(Volumes!O35/Customers!O83,0)","v":110.99616477272727},{"$f":"IFERROR(Volumes!P35/Customers!P83,0)","v":174.54475939849624},{"$f":"IFERROR(Volumes!Q35/Customers!Q83,0)","v":104.44123938223937},{"$f":"IFERROR(Volumes!R35/Customers!R83,0)","v":83.254233791748518},{"$f":"IFERROR(Volumes!S35/Customers!S83,0)","v":86.3184555984556},{"$f":"IFERROR(Volumes!T35/Customers!T83,0)","v":163.78773584905662},{"$f":"IFERROR(Volumes!U35/Customers!U83,0)","v":114.2358174904943},{"$f":"IFERROR(Volumes!V35/Customers!V83,0)","v":80.3676038095238},{"$f":"IFERROR(Volumes!W35/Customers!W83,0)","v":149.35474440298506},{"$f":"IFERROR(Volumes!X35/Customers!X83,0)","v":163.76254681647939},{"$f":"IFERROR(Volumes!Y35/Customers!Y83,0)","v":99.559996247654794},{"$f":"IFERROR(Volumes!Z35/Customers!Z83,0)","v":67.330573613766731},{"$f":"IFERROR(Volumes!AA35/Customers!AA83,0)","v":85.647075471698102},{"$f":"IFERROR(Volumes!AB35/Customers!AB83,0)","v":151.76975464684014},{"$f":"IFERROR(Volumes!AC35/Customers!AC83,0)","v":95.282589552238804},{"$f":"IFERROR(Volumes!AD35/Customers!AD83,0)","v":70.462800376647834},{"$f":"IFERROR(Volumes!AE35/Customers!AE83,0)","v":87.499198874296425},{"$f":"IFERROR(Volumes!AF35/Customers!AF83,0)","v":142.49192022263452},{"$f":"IFERROR(Volumes!AG35/Customers!AG83,0)","v":99.962039106145241},{"$f":"IFERROR(Volumes!AH35/Customers!AH83,0)","v":61.635443396226414},{"$f":"IFERROR(Volumes!AI35/Customers!AI83,0)","v":75.781065913370995},{"$f":"IFERROR(Volumes!AJ35/Customers!AJ83,0)","v":109.99127651515151},{"$f":"IFERROR(Volumes!AK35/Customers!AK83,0)","v":77.067017241379304}]
["Maroondah (C)",{"$f":"IFERROR(Volumes!B36/Customers!B84,0)","v":57.87271051574097},{"$f":"IFERROR(Volumes!C36/Customers!C84,0)","v":110.85373788005201},{"$f":"IFERROR(Volumes!D36/Customers!D84,0)","v":133.74203377782024},{"$f":"IFERROR(Volumes!E36/Customers!E84,0)","v":74.632210349550718},{"$f":"IFERROR(Volumes!F36/Customers!F84,0)","v":114.95445895522387},{"$f":"IFERROR(Volumes!G36/Customers!G84,0)","v":162.49375044883303},{"$f":"IFERROR(Volumes!H36/Customers!H84,0)","v":288.74300714285715},{"$f":"IFERROR(Volumes!I36/Customers!I84,0)","v":176.29745108695653},{"$f":"IFERROR(Volumes!J36/Customers!J84,0)","v":121.73240892193309},{"$f":"IFERROR(Volumes!K36/Customers!K84,0)","v":146.89572151898736},{"$f":"IFERROR(Volumes!L36/Customers!L84,0)","v":236.96908976660683},{"$f":"IFERROR(Volumes!M36/Customers!M84,0)","v":163.85661161524501},{"$f":"IFERROR(Volumes!N36/Customers!N84,0)","v":134.38722873746269},{"$f":"IFERROR(Volumes!O36/Customers!O84,0)","v":170.74557035932654},{"$f":"IFERROR(Volumes!P36/Customers!P84,0)","v":230.99164400715563},{"$f":"IFERROR(Volumes!Q36/Customers!Q84,0)","v":134.40941187050359},{"$f":"IFERROR(Volumes!R36/Customers!R84,0)","v":137.09512628572222},{"$f":"IFERROR(Volumes!S36/Customers!S84,0)","v":179.15661861385877},{"$f":"IFERROR(Volumes!T36/Customers!T84,0)","v":230.3809411764706},{"$f":"IFERROR(Volumes!U36/Customers!U84,0)","v":154.80027598566309},{"$f":"IFERROR(Volumes!V36/Customers!V84,0)","v":117.141875},{"$f":"IFERROR(Volumes!W36/Customers!W84,0)","v":115.07505525846702},{"$f":"IFERROR(Volumes!X36/Customers!X84,0)","v":165.49535523978685},{"$f":"IFERROR(Volumes!Y36/Customers!Y84,0)","v":76.307679078014189},{"$f":"IFERROR(Volumes!Z36/Customers!Z84,0)","v":59.548419475655429},{"$f":"IFERROR(Volumes!AA36/Customers!AA84,0)","v":73.375301075268808},{"$f":"IFERROR(Volumes!AB36/Customers!AB84,0)","v":131.72366250000002},{"$f":"IFERROR(Volumes!AC36/Customers!AC84,0)","v":77.104938958707365},{"$f":"IFERROR(Volumes!AD36/Customers!AD84,0)","v":53.595346296296299},{"$f":"IFERROR(Volumes!AE36/Customers!AE84,0)","v":73.064795620437962},{"$f":"IFERROR(Volumes!AF36/Customers!AF84,0)","v":123.14678635547575},{"$f":"IFERROR(Volumes!AG36/Customers!AG84,0)","v":85.412427787934178},{"$f":"IFERROR(Volumes!AH36/Customers!AH84,0)","v":49.127804878048778},{"$f":"IFERROR(Volumes!AI36/Customers!AI84,0)","v":68.266877819548867},{"$f":"IFERROR(Volumes!AJ36/Customers!AJ84,0)","v":95.886599627560514},{"$f":"IFERROR(Volumes!AK36/Customers!AK84,0)","v":66.099842911877403}]
["Melbourne (C)",{"$f":"IFERROR(Volumes!B37/Customers!B85,0)","v":180.04256447809229},{"$f":"IFERROR(Volumes!C37/Customers!C85,0)","v":323.50808944798104},{"$f":"IFERROR(Volumes!D37/Customers!D85,0)","v":389.98487561880853},{"$f":"IFERROR(Volumes!E37/Customers!E85,0)","v":230.59157165163361},{"$f":"IFERROR(Volumes!F37/Customers!F85,0)","v":1425.1846666666668},{"$f":"IFERROR(Volumes!G37/Customers!G85,0)","v":1024.687430379747},{"$f":"IFERROR(Volumes!H37/Customers!H85,0)","v":2518.9045157232708},{"$f":"IFERROR(Volumes!I37/Customers!I85,0)","v":1774.1316981132074},{"$f":"IFERROR(Volumes!J37/Customers!J85,0)","v":1348.2120308641975},{"$f":"IFERROR(Volumes!K37/Customers!K85,0)","v":1487.520811764706},{"$f":"IFERROR(Volumes!L37/Customers!L85,0)","v":1568.8488143712575},{"$f":"IFERROR(Volumes!M37/Customers!M85,0)","v":1315.4126395348837},{"$f":"IFERROR(Volumes!N37/Customers!N85,0)","v":879.48252662721893},{"$f":"IFERROR(Volumes!O37/Customers!O85,0)","v":1296.7660058479532},{"$f":"IFERROR(Volumes!P37/Customers!P85,0)","v":1780.2280000000001},{"$f":"IFERROR(Volumes!Q37/Customers!Q85,0)","v":1321.6538959537572},{"$f":"IFERROR(Volumes!R37/Customers!R85,0)","v":834.03645029239772},{"$f":"IFERROR(Volumes!S37/Customers!S85,0)","v":1072.0477624309392},{"$f":"IFERROR(Volumes!T37/Customers!T85,0)","v":1454.7234285714287},{"$f":"IFERROR(Volumes!U37/Customers!U85,0)","v":1170.6496397849462},{"$f":"IFERROR(Volumes!V37/Customers!V85,0)","v":756.24035294117641},{"$f":"IFERROR(Volumes!W37/Customers!W85,0)","v":769.64302732240435},{"$f":"IFERROR(Volumes!X37/Customers!X85,0)","v":647.00222994652404},{"$f":"IFERROR(Volumes!Y37/Customers!Y85,0)","v":396.37218604651167},{"$f":"IFERROR(Volumes!Z37/Customers!Z85,0)","v":161.33425903614457},{"$f":"IFERROR(Volumes!AA37/Customers!AA85,0)","v":404.59531999999996},{"$f":"IFERROR(Volumes!AB37/Customers!AB85,0)","v":368.54551123595502},{"$f":"IFERROR(Volumes!AC37/Customers!AC85,0)","v":386.39557458563536},{"$f":"IFERROR(Volumes!AD37/Customers!AD85,0)","v":147.94844252873563},{"$f":"IFERROR(Volumes!AE37/Customers!AE85,0)","v":367.12523595505621},{"$f":"IFERROR(Volumes!AF37/Customers!AF85,0)","v":355.12487709497208},{"$f":"IFERROR(Volumes!AG37/Customers!AG85,0)","v":419.4223296703297},{"$f":"IFERROR(Volumes!AH37/Customers!AH85,0)","v":159.46239887640451},{"$f":"IFERROR(Volumes!AI37/Customers!AI85,0)","v":346.80996111111108},{"$f":"IFERROR(Volumes!AJ37/Customers!AJ85,0)","v":270.16403409090913},{"$f":"IFERROR(Volumes!AK37/Customers!AK85,0)","v":298.34819774011299}]
["Monash (C)",{"$f":"IFERROR(Volumes!B38/Customers!B86,0)","v":83.961910621878559},{"$f":"IFERROR(Volumes!C38/Customers!C86,0)","v":134.071392006504},{"$f":"IFERROR(Volumes!D38/Customers!D86,0)","v":149.67380243742932},{"$f":"IFERROR(Volumes!E38/Customers!E86,0)","v":91.54836380809931},{"$f":"IFERROR(Volumes!F38/Customers!F86,0)","v":244.25345331069613},{"$f":"IFERROR(Volumes!G38/Customers!G86,0)","v":253.80346489104119},{"$f":"IFERROR(Volumes!H38/Customers!H86,0)","v":508.2022820919176},{"$f":"IFERROR(Volumes!I38/Customers!I86,0)","v":330.65056674660269},{"$f":"IFERROR(Volumes!J38/Customers!J86,0)","v":226.71362572614106},{"$f":"IFERROR(Volumes!K38/Customers!K86,0)","v":262.54293514811849},{"$f":"IFERROR(Volumes!L38/Customers!L86,0)","v":398.7817243844321},{"$f":"IFERROR(Volumes!M38/Customers!M86,0)","v":337.86009069020866},{"$f":"IFERROR(Volumes!N38/Customers!N86,0)","v":235.05169006606548},{"$f":"IFERROR(Volumes!O38/Customers!O86,0)","v":327.17581206906061},{"$f":"IFERROR(Volumes!P38/Customers!P86,0)","v":450.20889680000005},{"$f":"IFERROR(Volumes!Q38/Customers!Q86,0)","v":306.5818723064645},{"$f":"IFERROR(Volumes!R38/Customers!R86,0)","v":241.69614909819555},{"$f":"IFERROR(Volumes!S38/Customers!S86,0)","v":302.01845535792603},{"$f":"IFERROR(Volumes!T38/Customers!T86,0)","v":429.35276006314132},{"$f":"IFERROR(Volumes!U38/Customers!U86,0)","v":338.78596979332275},{"$f":"IFERROR(Volumes!V38/Customers!V86,0)","v":227.99996416938112},{"$f":"IFERROR(Volumes!W38/Customers!W86,0)","v":226.0607021276596},{"$f":"IFERROR(Volumes!X38/Customers!X86,0)","v":243.53048456057005},{"$f":"IFERROR(Volumes!Y38/Customers!Y86,0)","v":111.47250404530746},{"$f":"IFERROR(Volumes!Z38/Customers!Z86,0)","v":70.796367647058815},{"$f":"IFERROR(Volumes!AA38/Customers!AA86,0)","v":108.62421807628525},{"$f":"IFERROR(Volumes!AB38/Customers!AB86,0)","v":141.64815069615068},{"$f":"IFERROR(Volumes!AC38/Customers!AC86,0)","v":109.8952333607231},{"$f":"IFERROR(Volumes!AD38/Customers!AD86,0)","v":70.642441379310341},{"$f":"IFERROR(Volumes!AE38/Customers!AE86,0)","v":102.01179866888519},{"$f":"IFERROR(Volumes!AF38/Customers!AF86,0)","v":133.7668438016529},{"$f":"IFERROR(Volumes!AG38/Customers!AG86,0)","v":116.9321882741536},{"$f":"IFERROR(Volumes!AH38/Customers!AH86,0)","v":58.828795847750868},{"$f":"IFERROR(Volumes!AI38/Customers!AI86,0)","v":94.074833192209994},{"$f":"IFERROR(Volumes!AJ38/Customers!AJ86,0)","v":113.48815901360545},{"$f":"IFERROR(Volumes!AK38/Customers!AK86,0)","v":90.760426116838488}]
["Port Phillip (C)",{"$f":"IFERROR(Volumes!B39/Customers!B87,0)","v":81.225982733416657},{"$f":"IFERROR(Volumes!C39/Customers!C87,0)","v":128.68454771104427},{"$f":"IFERROR(Volumes!D39/Customers!D87,0)","v":142.3205336197444},{"$f":"IFERROR(Volumes!E39/Customers!E87,0)","v":92.782570807490572},{"$f":"IFERROR(Volumes!F39/Customers!F87,0)","v":197.10820540156359},{"$f":"IFERROR(Volumes!G39/Customers!G87,0)","v":192.63903034580099},{"$f":"IFERROR(Volumes!H39/Customers!H87,0)","v":409.83491168478258},{"$f":"IFERROR(Volumes!I39/Customers!I87,0)","v":295.24076755282891},{"$f":"IFERROR(Volumes!J39/Customers!J87,0)","v":207.3583390883978},{"$f":"IFERROR(Volumes!K39/Customers!K87,0)","v":258.24357171447633},{"$f":"IFERROR(Volumes!L39/Customers!L87,0)","v":356.28035546613012},{"$f":"IFERROR(Volumes!M39/Customers!M87,0)","v":273.69333536585367},{"$f":"IFERROR(Volumes!N39/Customers!N87,0)","v":189.5990783103629},{"$f":"IFERROR(Volumes!O39/Customers!O87,0)","v":277.45641239515982},{"$f":"IFERROR(Volumes!P39/Customers!P87,0)","v":353.20151042367178},{"$f":"IFERROR(Volumes!Q39/Customers!Q87,0)","v":259.01091627595446},{"$f":"IFERROR(Volumes!R39/Customers!R87,0)","v":215.60404884354458},{"$f":"IFERROR(Volumes!S39/Customers!S87,0)","v":241.65500552390711},{"$f":"IFERROR(Volumes!T39/Customers!T87,0)","v":349.41718783783784},{"$f":"IFERROR(Volumes!U39/Customers!U87,0)","v":282.80315311653118},{"$f":"IFERROR(Volumes!V39/Customers!V87,0)","v":203.79875458871516},{"$f":"IFERROR(Volumes!W39/Customers!W87,0)","v":170.95642066666667},{"$f":"IFERROR(Volumes!X39/Customers!X87,0)","v":215.80640267558528},{"$f":"IFERROR(Volumes!Y39/Customers!Y87,0)","v":101.91971496276236},{"$f":"IFERROR(Volumes!Z39/Customers!Z87,0)","v":73.035122549019604},{"$f":"IFERROR(Volumes!AA39/Customers!AA87,0)","v":109.92046757679179},{"$f":"IFERROR(Volumes!AB39/Customers!AB87,0)","v":154.52655791638108},{"$f":"IFERROR(Volumes!AC39/Customers!AC87,0)","v":109.63381053351573},{"$f":"IFERROR(Volumes!AD39/Customers!AD87,0)","v":76.583216724738676},{"$f":"IFERROR(Volumes!AE39/Customers!AE87,0)","v":106.87029229711142},{"$f":"IFERROR(Volumes!AF39/Customers!AF87,0)","v":150.97792085340674},{"$f":"IFERROR(Volumes!AG39/Customers!AG87,0)","v":112.65485575589459},{"$f":"IFERROR(Volumes!AH39/Customers!AH87,0)","v":63.192747881355928},{"$f":"IFERROR(Volumes!AI39/Customers!AI87,0)","v":94.378709449929488},{"$f":"IFERROR(Volumes!AJ39/Customers!AJ87,0)","v":121.16173011363635},{"$f":"IFERROR(Volumes!AK39/Customers!AK87,0)","v":85.831696057347671}]
["South Gippsland (S)",{"$f":"IFERROR(Volumes!B40/Customers!B88,0)","v":102.35102063253066},{"$f":"IFERROR(Volumes!C40/Customers!C88,0)","v":186.51960094853555},{"$f":"IFERROR(Volumes!D40/Customers!D88,0)","v":207.91295510530827},{"$f":"IFERROR(Volumes!E40/Customers!E88,0)","v":128.20391272668547},{"$f":"IFERROR(Volumes!F40/Customers!F88,0)","v":1823.0710526315788},{"$f":"IFERROR(Volumes!G40/Customers!G88,0)","v":1024.468564102564},{"$f":"IFERROR(Volumes!H40/Customers!H88,0)","v":2289.2752068965519},{"$f":"IFERROR(Volumes!I40/Customers!I88,0)","v":2283.0844761904759},{"$f":"IFERROR(Volumes!J40/Customers!J88,0)","v":1602.9793255813954},{"$f":"IFERROR(Volumes!K40/Customers!K88,0)","v":1469.0913777777776},{"$f":"IFERROR(Volumes!L40/Customers!L88,0)","v":1575.5884347826086},{"$f":"IFERROR(Volumes!M40/Customers!M88,0)","v":2096.5339347826089},{"$f":"IFERROR(Volumes!N40/Customers!N88,0)","v":1853.3027674418604},{"$f":"IFERROR(Volumes!O40/Customers!O88,0)","v":1800.7412000000002},{"$f":"IFERROR(Volumes!P40/Customers!P88,0)","v":2094.8577272727275},{"$f":"IFERROR(Volumes!Q40/Customers!Q88,0)","v":2331.5710454545456},{"$f":"IFERROR(Volumes!R40/Customers!R88,0)","v":1805.6794285714284},{"$f":"IFERROR(Volumes!S40/Customers!S88,0)","v":1392.8559545454546},{"$f":"IFERROR(Volumes!T40/Customers!T88,0)","v":1736.2862727272729},{"$f":"IFERROR(Volumes!U40/Customers!U88,0)","v":1551.3007272727273},{"$f":"IFERROR(Volumes!V40/Customers!V88,0)","v":80.469418604651167},{"$f":"IFERROR(Volumes!W40/Customers!W88,0)","v":143.81863636363639},{"$f":"IFERROR(Volumes!X40/Customers!X88,0)","v":172.81961363636364},{"$f":"IFERROR(Volumes!Y40/Customers!Y88,0)","v":168.81740000000002},{"$f":"IFERROR(Volumes!Z40/Customers!Z88,0)","v":71.715714285714284},{"$f":"IFERROR(Volumes!AA40/Customers!AA88,0)","v":130.13420454545454},{"$f":"IFERROR(Volumes!AB40/Customers!AB88,0)","v":172.81373913043478},{"$f":"IFERROR(Volumes!AC40/Customers!AC88,0)","v":152.69714893617021},{"$f":"IFERROR(Volumes!AD40/Customers!AD88,0)","v":97.644795454545459},{"$f":"IFERROR(Volumes!AE40/Customers!AE88,0)","v":112.28084444444444},{"$f":"IFERROR(Volumes!AF40/Customers!AF88,0)","v":212.30617391304349},{"$f":"IFERROR(Volumes!AG40/Customers!AG88,0)","v":140.92276595744681},{"$f":"IFERROR(Volumes!AH40/Customers!AH88,0)","v":81.361020833333342},{"$f":"IFERROR(Volumes!AI40/Customers!AI88,0)","v":102.68035416666667},{"$f":"IFERROR(Volumes!AJ40/Customers!AJ88,0)","v":190.37747916666669},{"$f":"IFERROR(Volumes!AK40/Customers!AK88,0)","v":123.80727083333333}]
["Stonnington (C)",{"$f":"IFERROR(Volumes!B41/Customers!B89,0)","v":66.352099926660131},{"$f":"IFERROR(Volumes!C41/Customers!C89,0)","v":102.15859143395338},{"$f":"IFERROR(Volumes!D41/Customers!D89,0)","v":131.63408682138854},{"$f":"IFERROR(Volumes!E41/Customers!E89,0)","v":79.543020393810139},{"$f":"IFERROR(Volumes!F41/Customers!F89,0)","v":167.3888850877193},{"$f":"IFERROR(Volumes!G41/Customers!G89,0)","v":132.15917875210792},{"$f":"IFERROR(Volumes!H41/Customers!H89,0)","v":309.43541530944623},{"$f":"IFERROR(Volumes!I41/Customers!I89,0)","v":216.88320032976091},{"$f":"IFERROR(Volumes!J41/Customers!J89,0)","v":163.99144444444445},{"$f":"IFERROR(Volumes!K41/Customers!K89,0)","v":176.22883986928105},{"$f":"IFERROR(Volumes!L41/Customers!L89,0)","v":252.78588445890969},{"$f":"IFERROR(Volumes!M41/Customers!M89,0)","v":180.01996622734762},{"$f":"IFERROR(Volumes!N41/Customers!N89,0)","v":144.21156399317408},{"$f":"IFERROR(Volumes!O41/Customers!O89,0)","v":184.1536749201278},{"$f":"IFERROR(Volumes!P41/Customers!P89,0)","v":243.83094859437753},{"$f":"IFERROR(Volumes!Q41/Customers!Q89,0)","v":157.08427657873702},{"$f":"IFERROR(Volumes!R41/Customers!R89,0)","v":131.35594946147472},{"$f":"IFERROR(Volumes!S41/Customers!S89,0)","v":168.11125987361771},{"$f":"IFERROR(Volumes!T41/Customers!T89,0)","v":275.22939157566304},{"$f":"IFERROR(Volumes!U41/Customers!U89,0)","v":155.94917017954722},{"$f":"IFERROR(Volumes!V41/Customers!V89,0)","v":146.39746439873417},{"$f":"IFERROR(Volumes!W41/Customers!W89,0)","v":140.94212121212121},{"$f":"IFERROR(Volumes!X41/Customers!X89,0)","v":163.281937784522},{"$f":"IFERROR(Volumes!Y41/Customers!Y89,0)","v":76.796673659673658},{"$f":"IFERROR(Volumes!Z41/Customers!Z89,0)","v":63.777738249594819},{"$f":"IFERROR(Volumes!AA41/Customers!AA89,0)","v":77.19794048551293},{"$f":"IFERROR(Volumes!AB41/Customers!AB89,0)","v":119.59952330022919},{"$f":"IFERROR(Volumes!AC41/Customers!AC89,0)","v":80.111796934865907},{"$f":"IFERROR(Volumes!AD41/Customers!AD89,0)","v":65.603991297468355},{"$f":"IFERROR(Volumes!AE41/Customers!AE89,0)","v":75.114506191950454},{"$f":"IFERROR(Volumes!AF41/Customers!AF89,0)","v":122.18109737248841},{"$f":"IFERROR(Volumes!AG41/Customers!AG89,0)","v":83.303899458623349},{"$f":"IFERROR(Volumes!AH41/Customers!AH89,0)","v":54.179560378847668},{"$f":"IFERROR(Volumes!AI41/Customers!AI89,0)","v":63.972296643247468},{"$f":"IFERROR(Volumes!AJ41/Customers!AJ89,0)","v":95.64070625494854},{"$f":"IFERROR(Volumes!AK41/Customers!AK89,0)","v":63.490344745222934}]
["Whitehorse (C)",{"$f":"IFERROR(Volumes!B42/Customers!B90,0)","v":61.776919617057871},{"$f":"IFERROR(Volumes!C42/Customers!C90,0)","v":109.96057638415276},{"$f":"IFERROR(Volumes!D42/Customers!D90,0)","v":127.15043416913585},{"$f":"IFERROR(Volumes!E42/Customers!E90,0)","v":74.202219328398854},{"$f":"IFERROR(Volumes!F42/Customers!F90,0)","v":321.65737199999995},{"$f":"IFERROR(Volumes!G42/Customers!G90,0)","v":282.92545488721805},{"$f":"IFERROR(Volumes!H42/Customers!H90,0)","v":574.39936305147057},{"$f":"IFERROR(Volumes!I42/Customers!I90,0)","v":404.28171270718235},{"$f":"IFERROR(Volumes!J42/Customers!J90,0)","v":311.86544892221184},{"$f":"IFERROR(Volumes!K42/Customers!K90,0)","v":356.31816907775772},{"$f":"IFERROR(Volumes!L42/Customers!L90,0)","v":420.77391807658057},{"$f":"IFERROR(Volumes!M42/Customers!M90,0)","v":341.62216068222619},{"$f":"IFERROR(Volumes!N42/Customers!N90,0)","v":300.36792821923478},{"$f":"IFERROR(Volumes!O42/Customers!O90,0)","v":336.27888702886929},{"$f":"IFERROR(Volumes!P42/Customers!P90,0)","v":237.7646109123435},{"$f":"IFERROR(Volumes!Q42/Customers!Q90,0)","v":415.30449368231046},{"$f":"IFERROR(Volumes!R42/Customers!R90,0)","v":72.530808065391412},{"$f":"IFERROR(Volumes!S42/Customers!S90,0)","v":715.0813424313676},{"$f":"IFERROR(Volumes!T42/Customers!T90,0)","v":418.81958267020332},{"$f":"IFERROR(Volumes!U42/Customers!U90,0)","v":380.02098752228164},{"$f":"IFERROR(Volumes!V42/Customers!V90,0)","v":228.62895081967213},{"$f":"IFERROR(Volumes!W42/Customers!W90,0)","v":256.24628998242531},{"$f":"IFERROR(Volumes!X42/Customers!X90,0)","v":205.45477690288715},{"$f":"IFERROR(Volumes!Y42/Customers!Y90,0)","v":92.332066195939987},{"$f":"IFERROR(Volumes!Z42/Customers!Z90,0)","v":61.42175093283582},{"$f":"IFERROR(Volumes!AA42/Customers!AA90,0)","v":89.129404274265355},{"$f":"IFERROR(Volumes!AB42/Customers!AB90,0)","v":123.88115705412601},{"$f":"IFERROR(Volumes!AC42/Customers!AC90,0)","v":97.829177897574127},{"$f":"IFERROR(Volumes!AD42/Customers!AD90,0)","v":60.803313473877168},{"$f":"IFERROR(Volumes!AE42/Customers!AE90,0)","v":92.288818100358426},{"$f":"IFERROR(Volumes!AF42/Customers!AF90,0)","v":131.24416355555556},{"$f":"IFERROR(Volumes!AG42/Customers!AG90,0)","v":104.72880106571937},{"$f":"IFERROR(Volumes!AH42/Customers!AH90,0)","v":53.186380522993694},{"$f":"IFERROR(Volumes!AI42/Customers!AI90,0)","v":75.278465517241386},{"$f":"IFERROR(Volumes!AJ42/Customers!AJ90,0)","v":94.288960909090918},{"$f":"IFERROR(Volumes!AK42/Customers!AK90,0)","v":70.075601102941178}]
["Yarra Ranges (S)",{"$f":"IFERROR(Volumes!B43/Customers!B91,0)","v":55.876960488641636},{"$f":"IFERROR(Volumes!C43/Customers!C91,0)","v":118.21997403235493},{"$f":"IFERROR(Volumes!D43/Customers!D91,0)","v":137.2667965172779},{"$f":"IFERROR(Volumes!E43/Customers!E91,0)","v":71.140815127800252},{"$f":"IFERROR(Volumes!F43/Customers!F91,0)","v":118.65350372208437},{"$f":"IFERROR(Volumes!G43/Customers!G91,0)","v":150.22497044917256},{"$f":"IFERROR(Volumes!H43/Customers!H91,0)","v":296.78718514150944},{"$f":"IFERROR(Volumes!I43/Customers!I91,0)","v":220.80630506478212},{"$f":"IFERROR(Volumes!J43/Customers!J91,0)","v":142.80263061968409},{"$f":"IFERROR(Volumes!K43/Customers!K91,0)","v":167.28759532163744},{"$f":"IFERROR(Volumes!L43/Customers!L91,0)","v":252.15670847851337},{"$f":"IFERROR(Volumes!M43/Customers!M91,0)","v":134.91802594339623},{"$f":"IFERROR(Volumes!N43/Customers!N91,0)","v":89.508970071768303},{"$f":"IFERROR(Volumes!O43/Customers!O91,0)","v":338.04776372734818},{"$f":"IFERROR(Volumes!P43/Customers!P91,0)","v":249.11433372228706},{"$f":"IFERROR(Volumes!Q43/Customers!Q91,0)","v":169.54487279151945},{"$f":"IFERROR(Volumes!R43/Customers!R91,0)","v":119.80634585674156},{"$f":"IFERROR(Volumes!S43/Customers!S91,0)","v":140.25938076527615},{"$f":"IFERROR(Volumes!T43/Customers!T91,0)","v":214.0410788235294},{"$f":"IFERROR(Volumes!U43/Customers!U91,0)","v":166.70501764705884},{"$f":"IFERROR(Volumes!V43/Customers!V91,0)","v":86.207424908424898},{"$f":"IFERROR(Volumes!W43/Customers!W91,0)","v":108.20173560517038},{"$f":"IFERROR(Volumes!X43/Customers!X91,0)","v":168.07123157894736},{"$f":"IFERROR(Volumes!Y43/Customers!Y91,0)","v":92.408706161137445},{"$f":"IFERROR(Volumes!Z43/Customers!Z91,0)","v":52.613699876998773},{"$f":"IFERROR(Volumes!AA43/Customers!AA91,0)","v":78.498970449172575},{"$f":"IFERROR(Volumes!AB43/Customers!AB91,0)","v":121.79064836448597},{"$f":"IFERROR(Volumes!AC43/Customers!AC91,0)","v":93.876811764705877},{"$f":"IFERROR(Volumes!AD43/Customers!AD91,0)","v":52.34153390875462},{"$f":"IFERROR(Volumes!AE43/Customers!AE91,0)","v":77.085569544364503},{"$f":"IFERROR(Volumes!AF43/Customers!AF91,0)","v":127.02692124105012},{"$f":"IFERROR(Volumes!AG43/Customers!AG91,0)","v":94.526725209080055},{"$f":"IFERROR(Volumes!AH43/Customers!AH91,0)","v":37.034874692874695},{"$f":"IFERROR(Volumes!AI43/Customers!AI91,0)","v":67.659643649815038},{"$f":"IFERROR(Volumes!AJ43/Customers!AJ91,0)","v":101.04945614035088},{"$f":"IFERROR(Volumes!AK43/Customers!AK91,0)","v":66.404923654568208}]
["Multinet",{"$f":"IFERROR(Volumes!B44/Customers!B92,0)","v":70.224908567711779},{"$f":"IFERROR(Volumes!C44/Customers!C92,0)","v":114.04596365197197},{"$f":"IFERROR(Volumes!D44/Customers!D92,0)","v":131.95140863021237},{"$f":"IFERROR(Volumes!E44/Customers!E92,0)","v":81.056400595654722},{"$f":"IFERROR(Volumes!F44/Customers!F92,0)","v":235.21509464707225},{"$f":"IFERROR(Volumes!G44/Customers!G92,0)","v":223.84416847189695},{"$f":"IFERROR(Volumes!H44/Customers!H92,0)","v":433.9490045229378},{"$f":"IFERROR(Volumes!I44/Customers!I92,0)","v":317.4528535368147},{"$f":"IFERROR(Volumes!J44/Customers!J92,0)","v":241.73932271824668},{"$f":"IFERROR(Volumes!K44/Customers!K92,0)","v":272.87662091829458},{"$f":"IFERROR(Volumes!L44/Customers!L92,0)","v":352.21629701354902},{"$f":"IFERROR(Volumes!M44/Customers!M92,0)","v":286.88305863844391},{"$f":"IFERROR(Volumes!N44/Customers!N92,0)","v":232.86067207163956},{"$f":"IFERROR(Volumes!O44/Customers!O92,0)","v":298.31426678566316},{"$f":"IFERROR(Volumes!P44/Customers!P92,0)","v":354.21744854451453},{"$f":"IFERROR(Volumes!Q44/Customers!Q92,0)","v":280.2802536782998},{"$f":"IFERROR(Volumes!R44/Customers!R92,0)","v":222.91450027625717},{"$f":"IFERROR(Volumes!S44/Customers!S92,0)","v":304.31046782196375},{"$f":"IFERROR(Volumes!T44/Customers!T92,0)","v":359.15426248858284},{"$f":"IFERROR(Volumes!U44/Customers!U92,0)","v":286.46951484518593},{"$f":"IFERROR(Volumes!V44/Customers!V92,0)","v":217.3685711820535},{"$f":"IFERROR(Volumes!W44/Customers!W92,0)","v":201.75124356283234},{"$f":"IFERROR(Volumes!X44/Customers!X92,0)","v":200.39878079810902},{"$f":"IFERROR(Volumes!Y44/Customers!Y92,0)","v":94.071825957657722},{"$f":"IFERROR(Volumes!Z44/Customers!Z92,0)","v":110.08204400325951},{"$f":"IFERROR(Volumes!AA44/Customers!AA92,0)","v":92.718592481203018},{"$f":"IFERROR(Volumes!AB44/Customers!AB92,0)","v":129.81058083280129},{"$f":"IFERROR(Volumes!AC44/Customers!AC92,0)","v":95.810736070589911},{"$f":"IFERROR(Volumes!AD44/Customers!AD92,0)","v":67.186517732579489},{"$f":"IFERROR(Volumes!AE44/Customers!AE92,0)","v":90.157491139967007},{"$f":"IFERROR(Volumes!AF44/Customers!AF92,0)","v":128.50071576319542},{"$f":"IFERROR(Volumes!AG44/Customers!AG92,0)","v":100.13872010305589},{"$f":"IFERROR(Volumes!AH44/Customers!AH92,0)","v":53.51852857772554},{"$f":"IFERROR(Volumes!AI44/Customers!AI92,0)","v":80.908156421314217},{"$f":"IFERROR(Volumes!AJ44/Customers!AJ92,0)","v":103.09257808823529},{"$f":"IFERROR(Volumes!AK44/Customers!AK92,0)","v":77.761916085989611}]
[]
["Residential customers"]
["LGA",2012,{"$f":"B48+1","v":2013},{"$f":"C48+1","v":2014},2015,2016,2017,2018,2019,2020,2021]
["Bass Coast (S)",{"$f":"IFERROR(Volumes!B47/Customers!B140,0)","v":12.527242647487503},{"$f":"IFERROR(Volumes!C47/Customers!C140,0)","v":25.544015881388059},{"$f":"IFERROR(Volumes!D47/Customers!D140,0)","v":29.561225774717169},{"$f":"IFERROR(Volumes!E47/Customers!E140,0)","v":30.659088261253313},{"$f":"IFERROR(Volumes!F47/Customers!F140,0)","v":28.717188150520414},{"$f":"IFERROR(Volumes!G47/Customers!G140,0)","v":31.573191489361704},{"$f":"IFERROR(Volumes!H47/Customers!H140,0)","v":31.454203298552674},{"$f":"IFERROR(Volumes!I47/Customers!I140,0)","v":29.561020921770773},{"$f":"IFERROR(Volumes!J47/Customers!J140,0)","v":32.409773393461109},{"$f":"IFERROR(Volumes!K47/Customers!K140,0)","v":20.458561456337257},null,{"$f":"J49*Prices!$I$11","v":616.35842244372054}]
["Bayside (C)",{"$f":"IFERROR(Volumes!B48/Customers!B141,0)","v":28.647912911406358},{"$f":"IFERROR(Volumes!C48/Customers!C141,0)","v":52.398606363487396},{"$f":"IFERROR(Volumes!D48/Customers!D141,0)","v":62.023667484358207},{"$f":"IFERROR(Volumes!E48/Customers!E141,0)","v":61.241620561055207},{"$f":"IFERROR(Volumes!F48/Customers!F141,0)","v":59.80169277437691},{"$f":"IFERROR(Volumes!G48/Customers!G141,0)","v":63.844376710840763},{"$f":"IFERROR(Volumes!H48/Customers!H141,0)","v":60.944387470934956},{"$f":"IFERROR(Volumes!I48/Customers!I141,0)","v":59.397660388511241},{"$f":"IFERROR(Volumes!J48/Customers!J141,0)","v":64.013273962708325},{"$f":"IFERROR(Volumes!K48/Customers!K141,0)","v":44.707670922215037},null,{"$f":"J50*Prices!$I$11","v":1217.3834132105637}]
["Boroondara (C)",{"$f":"IFERROR(Volumes!B49/Customers!B142,0)","v":29.687226585603668},{"$f":"IFERROR(Volumes!C49/Customers!C142,0)","v":55.572267228165835},{"$f":"IFERROR(Volumes!D49/Customers!D142,0)","v":65.430366651254005},{"$f":"IFERROR(Volumes!E49/Customers!E142,0)","v":63.533938767382956},{"$f":"IFERROR(Volumes!F49/Customers!F142,0)","v":62.489243572179568},{"$f":"IFERROR(Volumes!G49/Customers!G142,0)","v":65.810475121610025},{"$f":"IFERROR(Volumes!H49/Customers!H142,0)","v":63.045179648022305},{"$f":"IFERROR(Volumes!I49/Customers!I142,0)","v":61.195359355736095},{"$f":"IFERROR(Volumes!J49/Customers!J142,0)","v":65.98767432920009},{"$f":"IFERROR(Volumes!K49/Customers!K142,0)","v":44.689959527609318},null,{"$f":"J51*Prices!$I$11","v":1254.9319107081949}]
["Cardinia (S)",{"$f":"IFERROR(Volumes!B50/Customers!B143,0)","v":33.917943553372162},{"$f":"IFERROR(Volumes!C50/Customers!C143,0)","v":58.212233707014896},{"$f":"IFERROR(Volumes!D50/Customers!D143,0)","v":79.906964560099141},{"$f":"IFERROR(Volumes!E50/Customers!E143,0)","v":73.04002352649826},{"$f":"IFERROR(Volumes!F50/Customers!F143,0)","v":74.19553492375799},{"$f":"IFERROR(Volumes!G50/Customers!G143,0)","v":77.256292998292267},{"$f":"IFERROR(Volumes!H50/Customers!H143,0)","v":72.953397820823241},{"$f":"IFERROR(Volumes!I50/Customers!I143,0)","v":72.149944069431044},{"$f":"IFERROR(Volumes!J50/Customers!J143,0)","v":78.064258513189444},{"$f":"IFERROR(Volumes!K50/Customers!K143,0)","v":48.929918107588861},null,{"$f":"J52*Prices!$I$11","v":1484.6004210611318}]
["Casey (C)",{"$f":"IFERROR(Volumes!B51/Customers!B144,0)","v":27.396950133746753},{"$f":"IFERROR(Volumes!C51/Customers!C144,0)","v":51.211475528826092},{"$f":"IFERROR(Volumes!D51/Customers!D144,0)","v":59.004317238087658},{"$f":"IFERROR(Volumes!E51/Customers!E144,0)","v":58.280536735661244},{"$f":"IFERROR(Volumes!F51/Customers!F144,0)","v":57.258891022110319},{"$f":"IFERROR(Volumes!G51/Customers!G144,0)","v":60.608545653191818},{"$f":"IFERROR(Volumes!H51/Customers!H144,0)","v":58.704281514234744},{"$f":"IFERROR(Volumes!I51/Customers!I144,0)","v":55.982118580118581},{"$f":"IFERROR(Volumes!J51/Customers!J144,0)","v":60.508057523139293},{"$f":"IFERROR(Volumes!K51/Customers!K144,0)","v":40.278510763809081},null,{"$f":"J53*Prices!$I$11","v":1150.7223585716424}]
["Frankston (C)",{"$f":"IFERROR(Volumes!B52/Customers!B145,0)","v":14.42066060606061},{"$f":"IFERROR(Volumes!C52/Customers!C145,0)","v":31.079634972677589},{"$f":"IFERROR(Volumes!D52/Customers!D145,0)","v":30.684000000000001},{"$f":"IFERROR(Volumes!E52/Customers!E145,0)","v":34.363999999999997},{"$f":"IFERROR(Volumes!F52/Customers!F145,0)","v":41.125999999999998},{"$f":"IFERROR(Volumes!G52/Customers!G145,0)","v":41.335000000000001},{"$f":"IFERROR(Volumes!H52/Customers!H145,0)","v":36.136000000000003},{"$f":"IFERROR(Volumes!I52/Customers!I145,0)","v":33.402000000000001},{"$f":"IFERROR(Volumes!J52/Customers!J145,0)","v":32.530999999999999},{"$f":"IFERROR(Volumes!K52/Customers!K145,0)","v":23.669},null,{"$f":"J54*Prices!$I$11","v":618.66387021891512}]
["Glen Eira (C)",{"$f":"IFERROR(Volumes!B53/Customers!B146,0)","v":25.563413190300491},{"$f":"IFERROR(Volumes!C53/Customers!C146,0)","v":47.947514944414614},{"$f":"IFERROR(Volumes!D53/Customers!D146,0)","v":55.19346603001906},{"$f":"IFERROR(Volumes!E53/Customers!E146,0)","v":55.028337413042799},{"$f":"IFERROR(Volumes!F53/Customers!F146,0)","v":54.395813092016816},{"$f":"IFERROR(Volumes!G53/Customers!G146,0)","v":56.240250102493015},{"$f":"IFERROR(Volumes!H53/Customers!H146,0)","v":53.437053832240998},{"$f":"IFERROR(Volumes!I53/Customers!I146,0)","v":52.274261091358788},{"$f":"IFERROR(Volumes!J53/Customers!J146,0)","v":56.268872828379671},{"$f":"IFERROR(Volumes!K53/Customers!K146,0)","v":37.777905027609378},null,{"$f":"J55*Prices!$I$11","v":1070.102936794483}]
["Greater Dandenong (C)",{"$f":"IFERROR(Volumes!B54/Customers!B147,0)","v":23.410796580838266},{"$f":"IFERROR(Volumes!C54/Customers!C147,0)","v":43.97349772940948},{"$f":"IFERROR(Volumes!D54/Customers!D147,0)","v":50.946691546296826},{"$f":"IFERROR(Volumes!E54/Customers!E147,0)","v":50.362742385522559},{"$f":"IFERROR(Volumes!F54/Customers!F147,0)","v":49.187991451877231},{"$f":"IFERROR(Volumes!G54/Customers!G147,0)","v":52.313537626336604},{"$f":"IFERROR(Volumes!H54/Customers!H147,0)","v":50.427921295877574},{"$f":"IFERROR(Volumes!I54/Customers!I147,0)","v":49.366645451302176},{"$f":"IFERROR(Volumes!J54/Customers!J147,0)","v":52.639517040145279},{"$f":"IFERROR(Volumes!K54/Customers!K147,0)","v":33.44677140182624},null,{"$f":"J56*Prices!$I$11","v":1001.0810408075624}]
["Kingston (C)",{"$f":"IFERROR(Volumes!B55/Customers!B148,0)","v":22.998855916156074},{"$f":"IFERROR(Volumes!C55/Customers!C148,0)","v":42.561241056998078},{"$f":"IFERROR(Volumes!D55/Customers!D148,0)","v":49.548868304098164},{"$f":"IFERROR(Volumes!E55/Customers!E148,0)","v":49.219335087411565},{"$f":"IFERROR(Volumes!F55/Customers!F148,0)","v":48.194984474391447},{"$f":"IFERROR(Volumes!G55/Customers!G148,0)","v":50.563499071005801},{"$f":"IFERROR(Volumes!H55/Customers!H148,0)","v":48.580450843734013},{"$f":"IFERROR(Volumes!I55/Customers!I148,0)","v":46.808365927589115},{"$f":"IFERROR(Volumes!J55/Customers!J148,0)","v":49.891200007419357},{"$f":"IFERROR(Volumes!K55/Customers!K148,0)","v":33.151728419407647},null,{"$f":"J57*Prices!$I$11","v":948.81445041517406}]
["Knox (C)",{"$f":"IFERROR(Volumes!B56/Customers!B149,0)","v":28.855336645505567},{"$f":"IFERROR(Volumes!C56/Customers!C149,0)","v":54.217508869531287},{"$f":"IFERROR(Volumes!D56/Customers!D149,0)","v":62.458977167124658},{"$f":"IFERROR(Volumes!E56/Customers!E149,0)","v":61.416848369668749},{"$f":"IFERROR(Volumes!F56/Customers!F149,0)","v":59.766410713895411},{"$f":"IFERROR(Volumes!G56/Customers!G149,0)","v":63.733499024802519},{"$f":"IFERROR(Volumes!H56/Customers!H149,0)","v":61.062803115485607},{"$f":"IFERROR(Volumes!I56/Customers!I149,0)","v":58.759323646350616},{"$f":"IFERROR(Volumes!J56/Customers!J149,0)","v":63.463337385295659},{"$f":"IFERROR(Volumes!K56/Customers!K149,0)","v":41.77681977150111},null,{"$f":"J58*Prices!$I$11","v":1206.9249000582761}]
["Manningham (C)",{"$f":"IFERROR(Volumes!B57/Customers!B150,0)","v":33.404750870343349},{"$f":"IFERROR(Volumes!C57/Customers!C150,0)","v":60.860785426826396},{"$f":"IFERROR(Volumes!D57/Customers!D150,0)","v":72.847237237381123},{"$f":"IFERROR(Volumes!E57/Customers!E150,0)","v":69.96790190175841},{"$f":"IFERROR(Volumes!F57/Customers!F150,0)","v":68.601998026018506},{"$f":"IFERROR(Volumes!G57/Customers!G150,0)","v":73.468488520016081},{"$f":"IFERROR(Volumes!H57/Customers!H150,0)","v":70.14035495816438},{"$f":"IFERROR(Volumes!I57/Customers!I150,0)","v":67.076544173303304},{"$f":"IFERROR(Volumes!J57/Customers!J150,0)","v":71.592683651269837},{"$f":"IFERROR(Volumes!K57/Customers!K150,0)","v":48.616283255589515},null,{"$f":"J59*Prices!$I$11","v":1361.5261365175695}]
["Maroondah (C)",{"$f":"IFERROR(Volumes!B58/Customers!B151,0)","v":29.247477195299346},{"$f":"IFERROR(Volumes!C58/Customers!C151,0)","v":54.054929161514323},{"$f":"IFERROR(Volumes!D58/Customers!D151,0)","v":63.368539573820399},{"$f":"IFERROR(Volumes!E58/Customers!E151,0)","v":61.813828041901694},{"$f":"IFERROR(Volumes!F58/Customers!F151,0)","v":60.371920882555493},{"$f":"IFERROR(Volumes!G58/Customers!G151,0)","v":65.062593225671137},{"$f":"IFERROR(Volumes!H58/Customers!H151,0)","v":61.968200558192919},{"$f":"IFERROR(Volumes!I58/Customers!I151,0)","v":59.630914244223739},{"$f":"IFERROR(Volumes!J58/Customers!J151,0)","v":64.455624045458052},{"$f":"IFERROR(Volumes!K58/Customers!K151,0)","v":42.794560329939429},null,{"$f":"J60*Prices!$I$11","v":1225.7958817539716}]
["Melbourne (C)",{"$f":"IFERROR(Volumes!B59/Customers!B152,0)","v":69.993237980686885},{"$f":"IFERROR(Volumes!C59/Customers!C152,0)","v":115.51550177231988},{"$f":"IFERROR(Volumes!D59/Customers!D152,0)","v":216.96743592964825},{"$f":"IFERROR(Volumes!E59/Customers!E152,0)","v":185.72969134253452},{"$f":"IFERROR(Volumes!F59/Customers!F152,0)","v":197.87044763092268},{"$f":"IFERROR(Volumes!G59/Customers!G152,0)","v":220.38275453446192},{"$f":"IFERROR(Volumes!H59/Customers!H152,0)","v":206.74000823529414},{"$f":"IFERROR(Volumes!I59/Customers!I152,0)","v":228.19780652680652},{"$f":"IFERROR(Volumes!J59/Customers!J152,0)","v":232.86997693194922},{"$f":"IFERROR(Volumes!K59/Customers!K152,0)","v":117.29381569560047},null,{"$f":"J61*Prices!$I$11","v":4428.6447138578342}]
["Monash (C)",{"$f":"IFERROR(Volumes!B60/Customers!B153,0)","v":28.162342522842742},{"$f":"IFERROR(Volumes!C60/Customers!C153,0)","v":51.541489076293715},{"$f":"IFERROR(Volumes!D60/Customers!D153,0)","v":61.394978445055557},{"$f":"IFERROR(Volumes!E60/Customers!E153,0)","v":60.114843781538987},{"$f":"IFERROR(Volumes!F60/Customers!F153,0)","v":58.983403765450525},{"$f":"IFERROR(Volumes!G60/Customers!G153,0)","v":62.44541707773962},{"$f":"IFERROR(Volumes!H60/Customers!H153,0)","v":59.9048061894051},{"$f":"IFERROR(Volumes!I60/Customers!I153,0)","v":57.528666995134571},{"$f":"IFERROR(Volumes!J60/Customers!J153,0)","v":61.463650958636876},{"$f":"IFERROR(Volumes!K60/Customers!K153,0)","v":40.317333282248548},null,{"$f":"J62*Prices!$I$11","v":1168.8955205759069}]
["Nillumbik (S)",{"$f":"IFERROR(Volumes!B61/Customers!B154,0)","v":53.589965581108189},{"$f":"IFERROR(Volumes!C61/Customers!C154,0)","v":95.479497219063319},{"$f":"IFERROR(Volumes!D61/Customers!D154,0)","v":100.729375},{"$f":"IFERROR(Volumes!E61/Customers!E154,0)","v":108.03162500000001},{"$f":"IFERROR(Volumes!F61/Customers!F154,0)","v":95.451625000000007},{"$f":"IFERROR(Volumes!G61/Customers!G154,0)","v":104.93275},{"$f":"IFERROR(Volumes!H61/Customers!H154,0)","v":99.609499999999997},{"$f":"IFERROR(Volumes!I61/Customers!I154,0)","v":100.548875},{"$f":"IFERROR(Volumes!J61/Customers!J154,0)","v":110.111125},{"$f":"IFERROR(Volumes!K61/Customers!K154,0)","v":70.064499999999995},null,{"$f":"J63*Prices!$I$11","v":2094.0571991841243}]
["Port Phillip (C)",{"$f":"IFERROR(Volumes!B62/Customers!B155,0)","v":17.681406962712821},{"$f":"IFERROR(Volumes!C62/Customers!C155,0)","v":32.983518080451041},{"$f":"IFERROR(Volumes!D62/Customers!D155,0)","v":39.275150330237082},{"$f":"IFERROR(Volumes!E62/Customers!E155,0)","v":38.635706868421053},{"$f":"IFERROR(Volumes!F62/Customers!F155,0)","v":37.527940613127903},{"$f":"IFERROR(Volumes!G62/Customers!G155,0)","v":39.718433791996631},{"$f":"IFERROR(Volumes!H62/Customers!H155,0)","v":38.722908461377649},{"$f":"IFERROR(Volumes!I62/Customers!I155,0)","v":38.242789444878809},{"$f":"IFERROR(Volumes!J62/Customers!J155,0)","v":40.241616193507987},{"$f":"IFERROR(Volumes!K62/Customers!K155,0)","v":25.344540669349712},null,{"$f":"J64*Prices!$I$11","v":765.301835730221}]
["South Gippsland (S)",{"$f":"IFERROR(Volumes!B63/Customers!B156,0)","v":15.334739034522816},{"$f":"IFERROR(Volumes!C63/Customers!C156,0)","v":29.070575048231486},{"$f":"IFERROR(Volumes!D63/Customers!D156,0)","v":33.401928848641653},{"$f":"IFERROR(Volumes!E63/Customers!E156,0)","v":35.329693039857226},{"$f":"IFERROR(Volumes!F63/Customers!F156,0)","v":34.458022246941042},{"$f":"IFERROR(Volumes!G63/Customers!G156,0)","v":37.376096620908136},{"$f":"IFERROR(Volumes!H63/Customers!H156,0)","v":35.494840080971663},{"$f":"IFERROR(Volumes!I63/Customers!I156,0)","v":35.498274519230769},{"$f":"IFERROR(Volumes!J63/Customers!J156,0)","v":39.542975023126736},{"$f":"IFERROR(Volumes!K63/Customers!K156,0)","v":26.599346855059252},null,{"$f":"J65*Prices!$I$11","v":752.01530748447578}]
["Stonnington (C)",{"$f":"IFERROR(Volumes!B64/Customers!B157,0)","v":24.042002575503311},{"$f":"IFERROR(Volumes!C64/Customers!C157,0)","v":45.174148602411641},{"$f":"IFERROR(Volumes!D64/Customers!D157,0)","v":53.446355450972284},{"$f":"IFERROR(Volumes!E64/Customers!E157,0)","v":51.992813081936688},{"$f":"IFERROR(Volumes!F64/Customers!F157,0)","v":51.197174506710802},{"$f":"IFERROR(Volumes!G64/Customers!G157,0)","v":54.2970385778927},{"$f":"IFERROR(Volumes!H64/Customers!H157,0)","v":52.011751327251176},{"$f":"IFERROR(Volumes!I64/Customers!I157,0)","v":51.323025664173329},{"$f":"IFERROR(Volumes!J64/Customers!J157,0)","v":54.617740371743388},{"$f":"IFERROR(Volumes!K64/Customers!K157,0)","v":36.911498110335415},null,{"$f":"J66*Prices!$I$11","v":1038.7022421995837}]
["Whitehorse (C)",{"$f":"IFERROR(Volumes!B65/Customers!B158,0)","v":27.984711013471536},{"$f":"IFERROR(Volumes!C65/Customers!C158,0)","v":51.577144745784494},{"$f":"IFERROR(Volumes!D65/Customers!D158,0)","v":61.140526325549772},{"$f":"IFERROR(Volumes!E65/Customers!E158,0)","v":59.332126182532448},{"$f":"IFERROR(Volumes!F65/Customers!F158,0)","v":58.068064025707187},{"$f":"IFERROR(Volumes!G65/Customers!G158,0)","v":62.596149381700776},{"$f":"IFERROR(Volumes!H65/Customers!H158,0)","v":59.046760121028747},{"$f":"IFERROR(Volumes!I65/Customers!I158,0)","v":57.426961960045233},{"$f":"IFERROR(Volumes!J65/Customers!J158,0)","v":61.641723831600991},{"$f":"IFERROR(Volumes!K65/Customers!K158,0)","v":40.979887768614937},null,{"$f":"J67*Prices!$I$11","v":1172.2820519696231}]
["Yarra Ranges (S)",{"$f":"IFERROR(Volumes!B66/Customers!B159,0)","v":31.792524212093539},{"$f":"IFERROR(Volumes!C66/Customers!C159,0)","v":60.439378718150735},{"$f":"IFERROR(Volumes!D66/Customers!D159,0)","v":67.473404158429034},{"$f":"IFERROR(Volumes!E66/Customers!E159,0)","v":67.191995761315965},{"$f":"IFERROR(Volumes!F66/Customers!F159,0)","v":65.161368244931666},{"$f":"IFERROR(Volumes!G66/Customers!G159,0)","v":70.520772627971724},{"$f":"IFERROR(Volumes!H66/Customers!H159,0)","v":66.492618391778791},{"$f":"IFERROR(Volumes!I66/Customers!I159,0)","v":64.200545405031747},{"$f":"IFERROR(Volumes!J66/Customers!J159,0)","v":69.717619263103273},{"$f":"IFERROR(Volumes!K66/Customers!K159,0)","v":45.573120272204818},null,{"$f":"J68*Prices!$I$11","v":1325.8667780197432}]
["Multinet",{"$f":"IFERROR(Volumes!B67/Customers!B160,0)","v":27.209012317069138},{"$f":"IFERROR(Volumes!C67/Customers!C160,0)","v":50.536515759228365},{"$f":"IFERROR(Volumes!D67/Customers!D160,0)","v":59.279144899437561},{"$f":"IFERROR(Volumes!E67/Customers!E160,0)","v":58.071953776464504},{"$f":"IFERROR(Volumes!F67/Customers!F160,0)","v":56.863090042543121},{"$f":"IFERROR(Volumes!G67/Customers!G160,0)","v":60.462844165615131},{"$f":"IFERROR(Volumes!H67/Customers!H160,0)","v":57.756072973453641},{"$f":"IFERROR(Volumes!I67/Customers!I160,0)","v":55.995371086063216},{"$f":"IFERROR(Volumes!J67/Customers!J160,0)","v":60.099582876950237},{"$f":"IFERROR(Volumes!K67/Customers!K160,0)","v":39.85196190971115},null,{"$f":"J69*Prices!$I$11","v":1142.9541219512612}]
[]
["Commercial customers"]
["LGA",2012,{"$f":"B72+1","v":2013},{"$f":"C72+1","v":2014},2015,2016,2017,2018,2019,2020,2021]
["Bass Coast (S)",{"$f":"IFERROR(Volumes!B70/Customers!B212,0)","v":341.81296051384976},{"$f":"IFERROR(Volumes!C70/Customers!C212,0)","v":700.84296901242101},{"$f":"IFERROR(Volumes!D70/Customers!D212,0)","v":679.1007346938776},{"$f":"IFERROR(Volumes!E70/Customers!E212,0)","v":843.82263829787223},{"$f":"IFERROR(Volumes!F70/Customers!F212,0)","v":823.68247916666667},{"$f":"IFERROR(Volumes!G70/Customers!G212,0)","v":814.84162745098047},{"$f":"IFERROR(Volumes!H70/Customers!H212,0)","v":796.74451851851848},{"$f":"IFERROR(Volumes!I70/Customers!I212,0)","v":750.95170175438602},{"$f":"IFERROR(Volumes!J70/Customers!J212,0)","v":744.1214655172414},{"$f":"IFERROR(Volumes!K70/Customers!K212,0)","v":379.4896140350877}]
["Bayside (C)",{"$f":"IFERROR(Volumes!B71/Customers!B213,0)","v":125.41634445003399},{"$f":"IFERROR(Volumes!C71/Customers!C213,0)","v":236.7709765081519},{"$f":"IFERROR(Volumes!D71/Customers!D213,0)","v":309.78528286852588},{"$f":"IFERROR(Volumes!E71/Customers!E213,0)","v":312.90397846567964},{"$f":"IFERROR(Volumes!F71/Customers!F213,0)","v":313.26540854472631},{"$f":"IFERROR(Volumes!G71/Customers!G213,0)","v":311.28462599469498},{"$f":"IFERROR(Volumes!H71/Customers!H213,0)","v":288.63473907284771},{"$f":"IFERROR(Volumes!I71/Customers!I213,0)","v":267.82868707482993},{"$f":"IFERROR(Volumes!J71/Customers!J213,0)","v":248.4870780821918},{"$f":"IFERROR(Volumes!K71/Customers!K213,0)","v":133.88000848656293}]
["Boroondara (C)",{"$f":"IFERROR(Volumes!B72/Customers!B214,0)","v":142.64594235692653},{"$f":"IFERROR(Volumes!C72/Customers!C214,0)","v":322.2061865588737},{"$f":"IFERROR(Volumes!D72/Customers!D214,0)","v":452.44747173913049},{"$f":"IFERROR(Volumes!E72/Customers!E214,0)","v":411.8695677419355},{"$f":"IFERROR(Volumes!F72/Customers!F214,0)","v":385.65517735042732},{"$f":"IFERROR(Volumes!G72/Customers!G214,0)","v":415.27817746478871},{"$f":"IFERROR(Volumes!H72/Customers!H214,0)","v":321.25463795518209},{"$f":"IFERROR(Volumes!I72/Customers!I214,0)","v":303.23362638888892},{"$f":"IFERROR(Volumes!J72/Customers!J214,0)","v":296.79421558988764},{"$f":"IFERROR(Volumes!K72/Customers!K214,0)","v":150.21642836257308}]
["Cardinia (S)",{"$f":"IFERROR(Volumes!B73/Customers!B215,0)","v":63.673144622776974},{"$f":"IFERROR(Volumes!C73/Customers!C215,0)","v":118.10076663580774},{"$f":"IFERROR(Volumes!D73/Customers!D215,0)","v":179.00550999999999},{"$f":"IFERROR(Volumes!E73/Customers!E215,0)","v":187.99221},{"$f":"IFERROR(Volumes!F73/Customers!F215,0)","v":193.41074257425743},{"$f":"IFERROR(Volumes!G73/Customers!G215,0)","v":214.97794845360826},{"$f":"IFERROR(Volumes!H73/Customers!H215,0)","v":208.68048421052632},{"$f":"IFERROR(Volumes!I73/Customers!I215,0)","v":177.84143820224719},{"$f":"IFERROR(Volumes!J73/Customers!J215,0)","v":160.83329213483145},{"$f":"IFERROR(Volumes!K73/Customers!K215,0)","v":78.793988505747123}]
["Casey (C)",{"$f":"IFERROR(Volumes!B74/Customers!B216,0)","v":107.14206969617712},{"$f":"IFERROR(Volumes!C74/Customers!C216,0)","v":196.12104676367053},{"$f":"IFERROR(Volumes!D74/Customers!D216,0)","v":299.0829436619718},{"$f":"IFERROR(Volumes!E74/Customers!E216,0)","v":319.06871631205672},{"$f":"IFERROR(Volumes!F74/Customers!F216,0)","v":281.85011940298506},{"$f":"IFERROR(Volumes!G74/Customers!G216,0)","v":285.41937588652479},{"$f":"IFERROR(Volumes!H74/Customers!H216,0)","v":194.87841134751773},{"$f":"IFERROR(Volumes!I74/Customers!I216,0)","v":195.77714482758623},{"$f":"IFERROR(Volumes!J74/Customers!J216,0)","v":187.0466620689655},{"$f":"IFERROR(Volumes!K74/Customers!K216,0)","v":99.081714285714284}]
["Frankston (C)",{"$f":"IFERROR(Volumes!B75/Customers!B217,0)","v":0},{"$f":"IFERROR(Volumes!C75/Customers!C217,0)","v":4491.04},{"$f":"IFERROR(Volumes!D75/Customers!D217,0)","v":14461.07},{"$f":"IFERROR(Volumes!E75/Customers!E217,0)","v":13651.09},{"$f":"IFERROR(Volumes!F75/Customers!F217,0)","v":9912.83},{"$f":"IFERROR(Volumes!G75/Customers!G217,0)","v":8542.9599999999991},{"$f":"IFERROR(Volumes!H75/Customers!H217,0)","v":720.24},{"$f":"IFERROR(Volumes!I75/Customers!I217,0)","v":0},{"$f":"IFERROR(Volumes!J75/Customers!J217,0)","v":0},{"$f":"IFERROR(Volumes!K75/Customers!K217,0)","v":0}]
["Glen Eira (C)",{"$f":"IFERROR(Volumes!B76/Customers!B218,0)","v":102.98040327058074},{"$f":"IFERROR(Volumes!C76/Customers!C218,0)","v":212.85316097769936},{"$f":"IFERROR(Volumes!D76/Customers!D218,0)","v":341.9094114636643},{"$f":"IFERROR(Volumes!E76/Customers!E218,0)","v":301.50901131687243},{"$f":"IFERROR(Volumes!F76/Customers!F218,0)","v":288.52557916241062},{"$f":"IFERROR(Volumes!G76/Customers!G218,0)","v":300.07244633901706},{"$f":"IFERROR(Volumes!H76/Customers!H218,0)","v":215.87115127701375},{"$f":"IFERROR(Volumes!I76/Customers!I218,0)","v":204.94611374876362},{"$f":"IFERROR(Volumes!J76/Customers!J218,0)","v":197.32392749244713},{"$f":"IFERROR(Volumes!K76/Customers!K218,0)","v":97.436813417190777}]
["Greater Dandenong (C)",{"$f":"IFERROR(Volumes!B77/Customers!B219,0)","v":260.91619619963939},{"$f":"IFERROR(Volumes!C77/Customers!C219,0)","v":1571.5733565096061},{"$f":"IFERROR(Volumes!D77/Customers!D219,0)","v":3432.9912764350456},{"$f":"IFERROR(Volumes!E77/Customers!E219,0)","v":3254.680916232373},{"$f":"IFERROR(Volumes!F77/Customers!F219,0)","v":3438.3128587758583},{"$f":"IFERROR(Volumes!G77/Customers!G219,0)","v":3075.1811202723147},{"$f":"IFERROR(Volumes!H77/Customers!H219,0)","v":1203.8278537878789},{"$f":"IFERROR(Volumes!I77/Customers!I219,0)","v":519.47097774244833},{"$f":"IFERROR(Volumes!J77/Customers!J219,0)","v":449.00511952191238},{"$f":"IFERROR(Volumes!K77/Customers!K219,0)","v":229.69243083333333}]
["Kingston (C)",{"$f":"IFERROR(Volumes!B78/Customers!B220,0)","v":173.73359187707061},{"$f":"IFERROR(Volumes!C78/Customers!C220,0)","v":511.18780584042156},{"$f":"IFERROR(Volumes!D78/Customers!D220,0)","v":964.82214182111193},{"$f":"IFERROR(Volumes!E78/Customers!E220,0)","v":923.59694533700929},{"$f":"IFERROR(Volumes!F78/Customers!F220,0)","v":870.85005535072855},{"$f":"IFERROR(Volumes!G78/Customers!G220,0)","v":819.78141025641025},{"$f":"IFERROR(Volumes!H78/Customers!H220,0)","v":368.96688736926791},{"$f":"IFERROR(Volumes!I78/Customers!I220,0)","v":344.43900333611344},{"$f":"IFERROR(Volumes!J78/Customers!J220,0)","v":342.28309663865548},{"$f":"IFERROR(Volumes!K78/Customers!K220,0)","v":182.02480745880314}]
["Knox (C)",{"$f":"IFERROR(Volumes!B79/Customers!B221,0)","v":188.22872434210808},{"$f":"IFERROR(Volumes!C79/Customers!C221,0)","v":655.32022656282538},{"$f":"IFERROR(Volumes!D79/Customers!D221,0)","v":1286.7618210526316},{"$f":"IFERROR(Volumes!E79/Customers!E221,0)","v":1234.683421560035},{"$f":"IFERROR(Volumes!F79/Customers!F221,0)","v":1175.5349579316389},{"$f":"IFERROR(Volumes!G79/Customers!G221,0)","v":1195.1792451327433},{"$f":"IFERROR(Volumes!H79/Customers!H221,0)","v":435.15388938053098},{"$f":"IFERROR(Volumes!I79/Customers!I221,0)","v":355.28981610247024},{"$f":"IFERROR(Volumes!J79/Customers!J221,0)","v":334.08478558225511},{"$f":"IFERROR(Volumes!K79/Customers!K221,0)","v":179.55009423076922}]
["Manningham (C)",{"$f":"IFERROR(Volumes!B80/Customers!B222,0)","v":186.03728086154422},{"$f":"IFERROR(Volumes!C80/Customers!C222,0)","v":382.36698727498464},{"$f":"IFERROR(Volumes!D80/Customers!D222,0)","v":476.89981647940078},{"$f":"IFERROR(Volumes!E80/Customers!E222,0)","v":448.08651205936923},{"$f":"IFERROR(Volumes!F80/Customers!F222,0)","v":431.82239667896681},{"$f":"IFERROR(Volumes!G80/Customers!G222,0)","v":487.57730978260867},{"$f":"IFERROR(Volumes!H80/Customers!H222,0)","v":398.41714954954955},{"$f":"IFERROR(Volumes!I80/Customers!I222,0)","v":393.42362250453721},{"$f":"IFERROR(Volumes!J80/Customers!J222,0)","v":368.45886050724636},{"$f":"IFERROR(Volumes!K80/Customers!K222,0)","v":183.40368843283582}]
["Maroondah (C)",{"$f":"IFERROR(Volumes!B81/Customers!B223,0)","v":167.27598014770683},{"$f":"IFERROR(Volumes!C81/Customers!C223,0)","v":459.55746456097108},{"$f":"IFERROR(Volumes!D81/Customers!D223,0)","v":694.75624486301365},{"$f":"IFERROR(Volumes!E81/Customers!E223,0)","v":674.26193368949146},{"$f":"IFERROR(Volumes!F81/Customers!F223,0)","v":652.56123675960851},{"$f":"IFERROR(Volumes!G81/Customers!G223,0)","v":592.34440932642485},{"$f":"IFERROR(Volumes!H81/Customers!H223,0)","v":362.76682291666668},{"$f":"IFERROR(Volumes!I81/Customers!I223,0)","v":320.71450259067353},{"$f":"IFERROR(Volumes!J81/Customers!J223,0)","v":311.41235901926444},{"$f":"IFERROR(Volumes!K81/Customers!K223,0)","v":158.95604805914971}]
["Melbourne (C)",{"$f":"IFERROR(Volumes!B82/Customers!B224,0)","v":501.18167281451946},{"$f":"IFERROR(Volumes!C82/Customers!C224,0)","v":2723.0502518825497},{"$f":"IFERROR(Volumes!D82/Customers!D224,0)","v":6556.1457102272725},{"$f":"IFERROR(Volumes!E82/Customers!E224,0)","v":4906.4471999999996},{"$f":"IFERROR(Volumes!F82/Customers!F224,0)","v":4795.2804530386738},{"$f":"IFERROR(Volumes!G82/Customers!G224,0)","v":3971.4686999999999},{"$f":"IFERROR(Volumes!H82/Customers!H224,0)","v":1463.0158214285716},{"$f":"IFERROR(Volumes!I82/Customers!I224,0)","v":1211.9252459893048},{"$f":"IFERROR(Volumes!J82/Customers!J224,0)","v":1240.3888010752689},{"$f":"IFERROR(Volumes!K82/Customers!K224,0)","v":554.45580662983423}]
["Monash (C)",{"$f":"IFERROR(Volumes!B83/Customers!B225,0)","v":214.28762556481357},{"$f":"IFERROR(Volumes!C83/Customers!C225,0)","v":679.54964814578716},{"$f":"IFERROR(Volumes!D83/Customers!D225,0)","v":1262.272243902439},{"$f":"IFERROR(Volumes!E83/Customers!E225,0)","v":1243.3368015995031},{"$f":"IFERROR(Volumes!F83/Customers!F225,0)","v":1231.1498909307113},{"$f":"IFERROR(Volumes!G83/Customers!G225,0)","v":1167.0749309035687},{"$f":"IFERROR(Volumes!H83/Customers!H225,0)","v":501.2950685453161},{"$f":"IFERROR(Volumes!I83/Customers!I225,0)","v":407.37713545816734},{"$f":"IFERROR(Volumes!J83/Customers!J225,0)","v":385.74838289368506},{"$f":"IFERROR(Volumes!K83/Customers!K225,0)","v":198.26468573797681}]
["Port Phillip (C)",{"$f":"IFERROR(Volumes!B84/Customers!B226,0)","v":207.54496993813942},{"$f":"IFERROR(Volumes!C84/Customers!C226,0)","v":582.75009725506595},{"$f":"IFERROR(Volumes!D84/Customers!D226,0)","v":1107.8131008997429},{"$f":"IFERROR(Volumes!E84/Customers!E226,0)","v":1041.4937239011927},{"$f":"IFERROR(Volumes!F84/Customers!F226,0)","v":1019.0679604962838},{"$f":"IFERROR(Volumes!G84/Customers!G226,0)","v":957.46788118175971},{"$f":"IFERROR(Volumes!H84/Customers!H226,0)","v":475.22112676962678},{"$f":"IFERROR(Volumes!I84/Customers!I226,0)","v":432.2876494023904},{"$f":"IFERROR(Volumes!J84/Customers!J226,0)","v":403.15067421718857},{"$f":"IFERROR(Volumes!K84/Customers!K226,0)","v":202.88674493361285}]
["South Gippsland (S)",{"$f":"IFERROR(Volumes!B85/Customers!B227,0)","v":280.99746614779457},{"$f":"IFERROR(Volumes!C85/Customers!C227,0)","v":2917.7963047750723},{"$f":"IFERROR(Volumes!D85/Customers!D227,0)","v":6463.3859130434776},{"$f":"IFERROR(Volumes!E85/Customers!E227,0)","v":7166.1522173913036},{"$f":"IFERROR(Volumes!F85/Customers!F227,0)","v":7542.8878181818181},{"$f":"IFERROR(Volumes!G85/Customers!G227,0)","v":3432.0451777777776},{"$f":"IFERROR(Volumes!H85/Customers!H227,0)","v":520.40893478260875},{"$f":"IFERROR(Volumes!I85/Customers!I227,0)","v":520.74908510638295},{"$f":"IFERROR(Volumes!J85/Customers!J227,0)","v":514.76408163265307},{"$f":"IFERROR(Volumes!K85/Customers!K227,0)","v":301.61736000000002}]
["Stonnington (C)",{"$f":"IFERROR(Volumes!B86/Customers!B228,0)","v":166.87116966045289},{"$f":"IFERROR(Volumes!C86/Customers!C228,0)","v":479.09353015522794},{"$f":"IFERROR(Volumes!D86/Customers!D228,0)","v":815.86393359073361},{"$f":"IFERROR(Volumes!E86/Customers!E228,0)","v":722.79723346303501},{"$f":"IFERROR(Volumes!F86/Customers!F228,0)","v":662.20170744680854},{"$f":"IFERROR(Volumes!G86/Customers!G228,0)","v":689.46276969242308},{"$f":"IFERROR(Volumes!H86/Customers!H228,0)","v":362.3351120943953},{"$f":"IFERROR(Volumes!I86/Customers!I228,0)","v":323.60459134262658},{"$f":"IFERROR(Volumes!J86/Customers!J228,0)","v":310.52072856077558},{"$f":"IFERROR(Volumes!K86/Customers!K228,0)","v":155.57648176881304}]
["Whitehorse (C)",{"$f":"IFERROR(Volumes!B87/Customers!B229,0)","v":168.91813574115861},{"$f":"IFERROR(Volumes!C87/Customers!C229,0)","v":740.62980409906652},{"$f":"IFERROR(Volumes!D87/Customers!D229,0)","v":1542.5019603789838},{"$f":"IFERROR(Volumes!E87/Customers!E229,0)","v":1343.5439132520426},{"$f":"IFERROR(Volumes!F87/Customers!F229,0)","v":1383.3803477913129},{"$f":"IFERROR(Volumes!G87/Customers!G229,0)","v":1227.8394570212765},{"$f":"IFERROR(Volumes!H87/Customers!H229,0)","v":427.20496956889264},{"$f":"IFERROR(Volumes!I87/Customers!I229,0)","v":357.11852564102566},{"$f":"IFERROR(Volumes!J87/Customers!J229,0)","v":348.89972517123289},{"$f":"IFERROR(Volumes!K87/Customers!K229,0)","v":159.82247868561279}]
["Yarra Ranges (S)",{"$f":"IFERROR(Volumes!B88/Customers!B230,0)","v":172.33779274192293},{"$f":"IFERROR(Volumes!C88/Customers!C230,0)","v":452.84117324630375},{"$f":"IFERROR(Volumes!D88/Customers!D230,0)","v":790.61869491525431},{"$f":"IFERROR(Volumes!E88/Customers!E230,0)","v":785.09691651382616},{"$f":"IFERROR(Volumes!F88/Customers!F230,0)","v":650.86386029829555},{"$f":"IFERROR(Volumes!G88/Customers!G230,0)","v":553.89264236902045},{"$f":"IFERROR(Volumes!H88/Customers!H230,0)","v":373.45250338600454},{"$f":"IFERROR(Volumes!I88/Customers!I230,0)","v":332.32735314285713},{"$f":"IFERROR(Volumes!J88/Customers!J230,0)","v":316.84518501170959},{"$f":"IFERROR(Volumes!K88/Customers!K230,0)","v":163.04268292682926}]
["Multinet",{"$f":"IFERROR(Volumes!B89/Customers!B231,0)","v":181.65163778289573},{"$f":"IFERROR(Volumes!C89/Customers!C231,0)","v":624.05672123892236},{"$f":"IFERROR(Volumes!D89/Customers!D231,0)","v":1197.3168595114628},{"$f":"IFERROR(Volumes!E89/Customers!E231,0)","v":1115.3039395988942},{"$f":"IFERROR(Volumes!F89/Customers!F231,0)","v":1104.5387124332744},{"$f":"IFERROR(Volumes!G89/Customers!G231,0)","v":1019.1946463785757},{"$f":"IFERROR(Volumes!H89/Customers!H231,0)","v":470.83670821548822},{"$f":"IFERROR(Volumes!I89/Customers!I231,0)","v":367.31363228021974},{"$f":"IFERROR(Volumes!J89/Customers!J231,0)","v":348.79264976798947},{"$f":"IFERROR(Volumes!K89/Customers!K231,0)","v":176.51356114071729}]

{"sheet":"Weather","index":8,"n_rows":486,"n_cols":118,"rows_kept":486,"cut":false,"hidden":false,"merged":[]}
[null,null,null,null,null,null,null,null,null,null,null,null,null,null,null,null,null,null,null,null,null,"WEATHER PROJECTION CALCULATIONS >>>>>>>>>>",null,null,null,null,null,null,"Trend component","Trend component","Difference from trend","Difference from trend"]
[null,"Year","Quarter","HDD18","HDD21",null,null,null,null,null,null,null,null,null,null,null,null,null,"Quarter","Long term average",null,null,null,null,null,null,null,null,"MA_HDD18","MA_HDD21","MA_HDD18 Change","MA_HDD21 Change",null,null,"Annuals"]
[1,1980,1,112.35,296.45000000000005,null,null,null,null,null,null,null,null,null,null,null,null,null,"Q1",{"$f":"AVERAGEIF($C$3:$C$164,1,$D$3:$D$164)","v":73.828048780487805},null,"MA_HDD18",null,null,"MA_HDD21",null,null,null,{"$f":"$W$5+$V$5*A3","v":406.27082859956067},{"$f":"$Z$5+$Y$5*A3","v":640.7505832007879},{"$f":"D3/AC3","v":0.27653966785475842},{"$f":"E3/AD3","v":0.46266052309952155},null,null,"Year","HDD18","HDD21"]
[{"$f":"A3+1","v":2},1980,2,462.79999999999995,713.44999999999982,null,null,null,null,null,null,null,null,null,null,null,null,null,"Q2",{"$f":"AVERAGEIF($C$3:$C$164,2,$D$3:$D$164)","v":500.73170731707307},null,"Slope","Intercept",null,"Slope","Intercept",null,null,{"$f":"$W$5+$V$5*A4","v":405.886531058488},{"$f":"$Z$5+$Y$5*A4","v":640.24577571067766},{"$f":"D4/AC4","v":1.1402201467318727},{"$f":"E4/AD4","v":1.1143376919715946},null,null,1980,{"$f":"SUMIFS(D:D,$B:$B,$AI4)","v":1455.9000000000003},{"$f":"SUMIFS(E:E,$B:$B,$AI4)","v":2358.6999999999998}]
[{"$f":"A4+1","v":3},1980,3,640.3000000000003,910.1,null,null,null,null,null,null,null,null,null,null,null,null,null,"Q3",{"$f":"AVERAGEIF($C$3:$C$164,3,$D$3:$D$164)","v":685.01250000000005},null,{"$f":"LINEST($D$3:$D$164,$A$3:$A$164,TRUE,TRUE)","v":-0.38429754107268105},406.65512614063334,null,{"$f":"LINEST($E$3:$E$164,$A$3:$A$164,TRUE,TRUE)","v":-0.50480749011023784},641.25539069089814,null,null,405.50223351741528,639.74096822056742,1.5790295270284893,1.4226070319233006,null,null,{"$f":"AI4+1","v":1981},{"$f":"SUMIFS(D:D,$B:$B,$AI5)","v":1492.5999999999995},{"$f":"SUMIFS(E:E,$B:$B,$AI5)","v":2382.9999999999995}]
[4,1980,4,240.44999999999996,438.70000000000005,null,null,null,null,null,null,null,null,null,null,null,null,null,"Q4",{"$f":"AVERAGEIF($C$3:$C$164,4,$D$3:$D$164)","v":246.17000000000007},null,null,null,null,null,null,null,null,405.11793597634261,639.23616073045719,0.59353086754974327,0.68628783374628899,null,null,{"$f":"AI5+1","v":1982},1571.9,2451.5499999999997]
[5,1981,1,59.100000000000009,184.15000000000003,null,null,null,null,null,null,null,null,null,null,null,null,null,null,null,null,null,null,null,null,null,null,null,404.73363843526994,638.73135324034695,0.14602196206988122,0.28830587236056127,null,null,1983,1673.4000000000005,2604.5500000000002]
[6,1981,2,503.54999999999995,757.79999999999984,null,null,null,null,null,null,null,null,null,null,null,null,null,null,null,null,"Average Quarterly difference from trend",null,null,null,null,null,null,404.34934089419727,638.22654575023671,1.2453340442856309,1.1873526807149712,null,null,1984,1677.8999999999994,2645.6500000000005]
[7,1981,3,672.34999999999968,948.34999999999968,null,null,null,null,null,null,null,null,null,null,null,null,null,null,null,null,null,null,"MA_HDD18","MA_HDD21",null,null,null,403.9650433531246,637.72173826012647,1.664376685713044,1.4870905962643663,null,null,1985,1582.75,2522.9]
[8,1981,4,257.60000000000002,492.7,null,null,null,null,null,null,null,null,null,null,null,null,null,null,null,null,null,1,{"$f":"AVERAGEIFS(AE:AE,$C:$C,$W10)","v":0.19504915644358056},{"$f":"AVERAGEIFS(AF:AF,$C:$C,$W10)","v":0.36517691248423578},null,null,null,403.58074581205187,637.21693077001623,0.63828614886391211,0.77320607191748458,null,null,1986,1739.65,2716.2]
[9,1982,1,62.1,203.94999999999996,null,null,null,null,null,null,null,null,null,null,null,null,null,null,null,null,null,2,{"$f":"AVERAGEIFS(AE:AE,$C:$C,$W11)","v":1.3364310388226264},{"$f":"AVERAGEIFS(AF:AF,$C:$C,$W11)","v":1.2729747097486328},null,null,null,403.1964482709792,636.712123279906,0.15401921387527698,0.32031744416831404,null,null,1987,1673.4499999999998,2616.0499999999993]
[10,1982,2,544.94999999999993,802.95,null,null,null,null,null,null,null,null,null,null,null,null,null,null,null,null,null,3,1.828107319532158,1.6009047623679749,null,null,null,402.81215072990653,636.20731578979576,1.3528638572906397,1.2620885992221071,null,null,1988,1354.2,2250.25]
[11,1982,3,719.35,994.05,null,null,null,null,null,null,null,null,null,null,null,null,null,null,null,null,null,4,0.65407762076650411,0.77182177089119808,null,null,null,402.42785318883386,635.70250829968552,1.7875253770331219,1.5637031268899457,null,null,1989,1643.5500000000002,2544.65]
[12,1982,4,245.49999999999994,450.60000000000008,null,null,null,null,null,null,null,null,null,null,null,null,null,null,null,null,null,null,null,null,null,null,null,402.0435556477612,635.19770080957528,0.61063035721206205,0.70938543925095943,null,null,1990,1512.6499999999999,2404.25]
[13,1983,1,85.400000000000048,237.34999999999994,null,null,null,null,null,null,null,null,null,null,null,null,null,null,null,null,null,null,null,null,null,null,null,401.65925810668847,634.69289331946504,0.2126180295271973,0.37396038698125561,null,null,1991,1520.6499999999999,2464.6000000000004]
[14,1983,2,589.60000000000014,861.15000000000032,null,null,null,null,null,null,null,null,null,null,null,null,null,null,null,null,null,null,null,null,null,null,null,401.2749605656158,634.1880858293548,1.4693166978795074,1.3578779217743231,null,null,1992,1663.0000000000002,2596.65]
[15,1983,3,716.30000000000018,992.30000000000018,null,null,null,null,null,null,null,null,null,null,null,null,null,null,null,null,null,null,null,null,null,null,null,400.89066302454313,633.68327833924457,1.7867714717919165,1.5659242304777512,null,null,1993,1502.4,2423.1999999999998]
[16,1983,4,282.10000000000008,513.75,null,null,null,null,null,null,null,null,null,null,null,null,null,null,null,null,null,null,null,null,null,null,null,400.50636548347046,633.17847084913433,0.70435834311762713,0.8113826095682426,null,null,1994,1592.75,2500.3000000000002]
[17,1984,1,108.39999999999995,294.60000000000019,null,null,null,null,null,null,null,null,null,null,null,null,null,null,null,null,null,null,null,null,null,null,null,400.12206794239779,632.67366335902409,0.27091732419918757,0.46564290101139105,null,null,1995,1738.8,2689.3]
[18,1984,2,538.24999999999989,811.25000000000057,null,null,null,null,null,null,null,null,null,null,null,null,null,null,null,null,null,null,null,null,null,null,null,399.73777040132506,632.16885586891385,1.3465077354577042,1.2832805546627892,null,null,1996,1714.9,2679.3,null,2021,{"$f":"AM20+1","v":2022},{"$f":"AN20+1","v":2023},2024,2025,2026,2027,2028,2029,2030,2031,2032,2033,2034,2035,2036,2037,2038,2039,2040,2041,2042,2043,2044,2045,2046,2047,2048,2049,2050,2051,2052,2053,2054,2055,2056,2057,2058,2059,2060,2061,2062,2063,2064,2065,2066,2067,2068,2069,2070,2071,2072,2073,2074,2075,2076,2077,2078,2079,2080,{"$f":"CT20+1","v":2081},{"$f":"CU20+1","v":2082},{"$f":"CV20+1","v":2083},{"$f":"CW20+1","v":2084},{"$f":"CX20+1","v":2085},{"$f":"CY20+1","v":2086},{"$f":"CZ20+1","v":2087},{"$f":"DA20+1","v":2088},{"$f":"DB20+1","v":2089},{"$f":"DC20+1","v":2090},{"$f":"DD20+1","v":2091},{"$f":"DE20+1","v":2092},{"$f":"DF20+1","v":2093},{"$f":"DG20+1","v":2094},{"$f":"DH20+1","v":2095},{"$f":"DI20+1","v":2096},{"$f":"DJ20+1","v":2097},2098,2099,2100]
[19,1984,3,762.99999999999955,1038.9999999999993,null,null,null,null,null,null,null,null,null,null,null,null,null,null,null,null,null,null,null,null,null,null,null,399.3534728602524,631.66404837880361,1.9105881176773931,1.6448616992951288,null,null,1997,1572.6499999999996,2462.9999999999995,null,{"$f":"TRANSPOSE(AM45:AM124)","v":-0.1025963397137245},-4.4870967972395759E-3,-4.5073215854896098E-3,-4.5277295184814603E-3,-4.5483230952196863E-3,-4.569104860380313E-3,-4.5900774053627691E-3,-4.6112433693631383E-3,-4.6326054404832728E-3,-4.654166356869327E-3,-4.6759289078790456E-3,-4.6978959352895755E-3,-4.720070334528037E-3,-4.7424550559505008E-3,-4.7650531061458334E-3,-4.7878675492832867E-3,-4.8109015084986106E-3,-4.8341581673181366E-3,-4.8576407711256042E-3,-4.8813526286730635E-3,-4.9052971136330781E-3,-4.9294776662006656E-3,-4.953897794740425E-3,-4.9785610774835121E-3,-5.0034711642739094E-3,-5.0286317783729828E-3,-5.0540467183098903E-3,-5.0797198597973825E-3,-5.1056551576992293E-3,-5.1318566480630379E-3,-5.1583284502129123E-3,-5.1850747689100585E-3,-5.2120998965768939E-3,-5.2394082155954314E-3,-5.2670042006760509E-3,-5.2948924213009896E-3,-5.3230775442479894E-3,-5.3515643361927712E-3,-5.3803576663962183E-3,-5.4094625094802673E-3,-5.4388839482917284E-3,-5.468627176863361E-3,-5.4986975034679864E-3,-5.5291003537799588E-3,-5.5598412741356684E-3,-5.5909259349090634E-3,-5.6223601339980833E-3,-5.6541498004269997E-3,-5.6863009980810952E-3,-5.7188199295539199E-3,-5.7517129401450928E-3,-5.7849865219825602E-3,-5.818647318294623E-3,-5.8527021278357294E-3,-5.8871579094591509E-3,-5.922021786861853E-3,-5.9573010534915705E-3,-5.9930031776351811E-3,-6.0291358076890456E-3,-6.0657067776210827E-3,-6.1027241126329068E-3,-6.1401960350321305E-3,-6.1781309703201615E-3,-6.216537553507484E-3,-6.2554246356683052E-3,-6.294801290739116E-3,-6.3346768225782668E-3,-6.3750607722948827E-3,-6.4159629258602191E-3,-6.4573933220118951E-3,-6.4993622604699874E-3,-6.5418803104724255E-3,-6.5849583196488926E-3,-6.6286074232483339E-3,-6.6728390537341697E-3,-6.7176649507674213E-3,-6.7630971715958443E-3,-6.8091481018643929E-3,-6.8558304668747683E-3,-6.9031573433065985E-3]
[20,1984,4,268.24999999999994,500.8,null,null,null,null,null,null,null,null,null,null,null,null,null,null,null,null,null,null,null,null,null,null,null,398.96917531917973,631.15924088869338,0.67235770729755495,0.79346061588967121,null,null,1998,1619.1499999999992,2542.8999999999992]
[21,1985,1,74.45,242.65000000000003,null,null,null,null,null,null,null,null,null,null,null,null,null,null,null,null,null,null,null,null,null,null,null,398.58487777810706,630.65443339858314,0.18678581188282425,0.38475904893328733,null,null,1999,1399.2,2288.0000000000005]
[22,1985,2,500.9500000000001,751.94999999999982,null,null,null,null,null,null,null,null,null,null,null,null,null,null,null,null,null,null,null,null,null,null,null,398.20058023703439,630.1496259084729,1.2580343295878742,1.193288020945708,null,null,2000,1442.3,2326.6499999999996]
[23,1985,3,762.09999999999991,1038.1000000000001,null,null,null,null,null,null,null,null,null,null,null,null,null,null,null,null,null,null,null,null,null,null,null,397.81628269596166,629.64481841836266,1.9157084140330392,1.6487072864470753,null,null,2001,1496.85,2396.65]
[24,1985,4,245.25000000000006,490.2000000000001,null,null,null,null,null,null,null,null,null,null,null,null,null,null,null,null,null,null,null,null,null,null,null,397.43198515488899,629.14001092825242,0.61708671964190331,0.77915883823180154,null,null,2002,1400.4000000000003,2323.3500000000004]
[25,1986,1,102.60000000000007,285.34999999999997,null,null,null,null,null,null,null,null,null,null,null,null,null,null,null,null,null,null,null,null,null,null,null,397.04768761381632,628.63520343814218,0.25840724729215075,0.45391985437557264,null,null,2003,1515,2406.8000000000002]
[26,1986,2,557.39999999999986,822.54999999999984,null,null,null,null,null,null,null,null,null,null,null,null,null,null,null,null,null,null,null,null,null,null,null,396.66339007274365,628.13039594803195,1.4052216916156011,1.3095210887836943,null,null,2004,1507.0499999999997,2430.8999999999996]
[27,1986,3,742.94999999999993,1018.95,null,null,null,null,null,null,null,null,null,null,null,null,null,null,null,null,null,null,null,null,null,null,null,396.27909253167093,627.62558845792171,1.8748150331464253,1.6234997723779296,null,null,2005,1332.2500000000002,2245.4]
[28,1986,4,336.70000000000016,589.34999999999991,null,null,null,null,null,null,null,null,null,null,null,null,null,null,null,null,null,null,null,null,null,null,null,395.89479499059826,627.12078096781147,0.85047847120090614,0.9397711220643632,null,null,2006,1557.1,2464.6000000000004]
[29,1987,1,161.70000000000002,354.45000000000005,null,null,null,null,null,null,null,null,null,null,null,null,null,null,null,null,null,null,null,null,null,null,null,395.51049744952559,626.61597347770123,0.40883870603367717,0.56565746007528728,null,null,2007,1299.8499999999999,2132.400000000001]
[30,1987,2,502.05,759.6999999999997,null,null,null,null,null,null,null,null,null,null,null,null,null,null,null,null,null,null,null,null,null,null,null,395.12619990845292,626.11116598759099,1.2706067077210277,1.2133628040344777,null,null,2008,1492.3499999999997,2393.5499999999997]
[31,1987,3,708.35,973.79999999999984,null,null,null,null,null,null,null,null,null,null,null,null,null,null,null,null,null,null,null,null,null,null,null,394.74190236738025,625.60635849748076,1.7944636628435497,1.5565698570244331,null,null,2009,1390.8999999999999,2249.0500000000006]
[32,1987,4,301.34999999999991,528.1,null,null,null,null,null,null,null,null,null,null,null,null,null,null,null,null,null,null,null,null,null,null,null,394.35760482630752,625.10155100737052,0.76415414920862945,0.84482273184085133,null,null,2010,1512.9500000000003,2368.0500000000002]
[33,1988,1,63.599999999999994,199.54999999999995,null,null,null,null,null,null,null,null,null,null,null,null,null,null,null,null,null,null,null,null,null,null,null,393.97330728523485,624.59674351726028,0.16143225651060134,0.31948613576863061,null,null,2011,1447.7499999999998,2354.6499999999996]
[34,1988,2,407.55,670.44999999999993,null,null,null,null,null,null,null,null,null,null,null,null,null,null,null,null,null,null,null,null,null,null,null,393.58900974416218,624.09193602715004,1.035470986003681,1.0742808251424565,null,null,2012,1499.6499999999999,2391.7999999999993]
[35,1988,3,646.35000000000014,922.35,null,null,null,null,null,null,null,null,null,null,null,null,null,null,null,null,null,null,null,null,null,null,null,393.20471220308951,623.5871285370398,1.6438002392661091,1.4791036533481212,null,null,2013,1339.35,2210.8500000000004]
[36,1988,4,236.70000000000005,457.89999999999992,null,null,null,null,null,null,null,null,null,null,null,null,null,null,null,null,null,null,null,null,null,null,null,392.82041466201684,623.08232104692956,0.60256542472126096,0.73489486787334413,null,null,2014,1269.1500000000001,2124.9]
[37,1989,1,83.95,231.9,null,null,null,null,null,null,null,null,null,null,null,null,null,null,null,null,null,null,null,null,null,null,null,392.43611712094412,622.57751355681933,0.21392016773554923,0.37248373889243547,null,null,2015,1439.6499999999999,2292.6999999999998]
[38,1989,2,505.55,771.09999999999991,null,null,null,null,null,null,null,null,null,null,null,null,null,null,null,null,null,null,null,null,null,null,null,392.05181957987145,622.07270606670909,1.2894979050008106,1.2395657171258525,null,null,2016,1357.8499999999997,2225.3999999999996]
[39,1989,3,772.9000000000002,1048.9000000000001,null,null,null,null,null,null,null,null,null,null,null,null,null,null,null,null,null,null,null,null,null,null,null,391.66752203879878,621.56789857659885,1.9733573924555234,1.6875067106940354,null,null,2017,1414.5500000000002,2226.5499999999997]
[40,1989,4,281.15000000000015,492.75000000000011,null,null,null,null,null,null,null,null,null,null,null,null,null,null,null,null,null,null,null,null,null,null,null,391.28322449772611,621.06309108648861,0.7185332321898048,0.79339765487912439,null,null,2018,1357.0500000000004,2214.4499999999998]
[41,1990,1,61.79999999999999,208.35,null,null,null,null,null,null,null,null,null,null,null,null,null,null,null,null,null,null,null,null,null,null,null,390.89892695665344,620.55828359637837,0.15809713390912675,0.33574606206612878,null,null,2019,1380.8,2219.4499999999998]
[42,1990,2,520.40000000000009,783.1,null,null,null,null,null,null,null,null,null,null,null,null,null,null,null,null,null,null,null,null,null,null,null,390.51462941558071,620.05347610626814,1.3326005245406491,1.2629555839564202,null,null,2020,1532.2,2443.8500000000004]
[43,1990,3,700.64999999999975,976.64999999999975,null,null,null,null,null,null,null,null,null,null,null,null,null,null,null,null,null,null,null,null,null,null,null,390.13033187450804,619.5486686161579,1.7959382871705949,1.5763894742627305,null,null,2021,{"$f":"SUMIFS(D:D,$B:$B,$AI45)","v":1375.0018882906313},{"$f":"SUMIFS(E:E,$B:$B,$AI45)","v":2234.4904495385481},null,{"$f":"AJ45/AJ44-1","v":-0.1025963397137245}]
[44,1990,4,229.79999999999995,436.14999999999992,null,null,null,null,null,null,null,null,null,null,null,null,null,null,null,null,null,null,null,null,null,null,null,389.74603433343538,619.04386112604766,0.58961472281049954,0.70455427698877138,null,null,2022,1368.8321217214841,2226.3915641993008,null,{"$f":"AJ46/AJ45-1","v":-4.4870967972395759E-3}]
[45,1991,1,89.1,262.05000000000013,null,null,null,null,null,null,null,null,null,null,null,null,null,null,null,null,null,null,null,null,null,null,null,389.36173679236271,618.53905363593742,0.22883604520059683,0.42365958698905165,null,null,2023,1362.6623551523373,2218.292678860053,null,-4.5073215854896098E-3]
[46,1991,2,481.04999999999995,750.45000000000016,null,null,null,null,null,null,null,null,null,null,null,null,null,null,null,null,null,null,null,null,null,null,null,388.97743925129004,618.03424614582718,1.23670411560612,1.2142531011508528,null,null,2024,1356.4925885831906,2210.1937935208052,null,-4.5277295184814603E-3]
[47,1991,3,695.69999999999993,971.69999999999993,null,null,null,null,null,null,null,null,null,null,null,null,null,null,null,null,null,null,null,null,null,null,null,388.59314171021731,617.52943865571694,1.7903043706283399,1.5735282225820153,null,null,2025,1350.3228220140434,2202.0949081815575,null,-4.5483230952196863E-3]
[48,1991,4,254.79999999999995,480.39999999999986,null,null,null,null,null,null,null,null,null,null,null,null,null,null,null,null,null,null,null,null,null,null,null,388.20884416914464,617.02463116560671,0.65634774639235749,0.7785750774527227,null,null,2026,1344.1530554448966,2193.9960228423101,null,-4.569104860380313E-3]
[49,1992,1,114.40000000000002,298.49999999999994,null,null,null,null,null,null,null,null,null,null,null,null,null,null,null,null,null,null,null,null,null,null,null,387.82454662807197,616.51982367549647,0.2949787500421186,0.48416934628385055,null,null,2027,1337.9832888757496,2185.8971375030624,null,-4.5900774053627691E-3]
[50,1992,2,506.75000000000011,756.94999999999982,null,null,null,null,null,null,null,null,null,null,null,null,null,null,null,null,null,null,null,null,null,null,null,387.4402490869993,616.01501618538623,1.3079436150326498,1.2287849810664355,null,null,2028,1331.8135223066026,2177.7982521638151,null,-4.6112433693631383E-3]
[51,1992,3,771.95000000000027,1047.9500000000003,null,null,null,null,null,null,null,null,null,null,null,null,null,null,null,null,null,null,null,null,null,null,null,387.05595154592663,615.51020869527599,1.9944144946403273,1.7025712737102865,null,null,2029,1325.6437557374559,2169.6993668245673,null,-4.6326054404832728E-3]
[52,1992,4,269.89999999999986,493.25,null,null,null,null,null,null,null,null,null,null,null,null,null,null,null,null,null,null,null,null,null,null,null,386.67165400485391,615.00540120516575,0.69800823826773661,0.80202547657862255,null,null,2030,1319.4739891683087,2161.6004814853195,null,-4.654166356869327E-3]
[53,1993,1,83.499999999999972,236.29999999999998,null,null,null,null,null,null,null,null,null,null,null,null,null,null,null,null,null,null,null,null,null,null,null,386.28735646378124,614.50059371505552,0.21616032366264887,0.38453990511451402,null,null,2031,1313.3042225991621,2153.5015961460717,null,-4.6759289078790456E-3]
[54,1993,2,465.75,717.69999999999993,null,null,null,null,null,null,null,null,null,null,null,null,null,null,null,null,null,null,null,null,null,null,null,385.90305892270857,613.99578622494528,1.2069093240675342,1.1689005301040638,null,null,2032,1307.1344560300149,2145.4027108068244,null,-4.6978959352895755E-3]
[55,1993,3,634.65000000000009,907.94999999999993,null,null,null,null,null,null,null,null,null,null,null,null,null,null,null,null,null,null,null,null,null,null,null,385.5187613816359,613.49097873483504,1.6462233841111098,1.479972862636725,null,null,2033,1300.9646894608682,2137.3038254675766,null,-4.720070334528037E-3]
[56,1993,4,318.49999999999994,561.24999999999989,null,null,null,null,null,null,null,null,null,null,null,null,null,null,null,null,null,null,null,null,null,null,null,385.13446384056323,612.9861712447248,0.82698389758194057,0.91559977423361794,null,null,2034,1294.7949228917214,2129.2049401283289,null,-4.7424550559505008E-3]
[57,1994,1,115.64999999999996,291.15000000000003,null,null,null,null,null,null,null,null,null,null,null,null,null,null,null,null,null,null,null,null,null,null,null,384.7501662994905,612.48136375461456,0.30058466540071022,0.47536140237018998,null,null,2035,1288.6251563225744,2121.1060547890811,null,-4.7650531061458334E-3]
[58,1994,2,499.6,762.85,null,null,null,null,null,null,null,null,null,null,null,null,null,null,null,null,null,null,null,null,null,null,null,384.36586875841783,611.97655626450432,1.2998032359475948,1.2465346788060394,null,null,2036,1282.4553897534274,2113.0071694498333,null,-4.7878675492832867E-3]
[59,1994,3,721.9,997.90000000000009,null,null,null,null,null,null,null,null,null,null,null,null,null,null,null,null,null,null,null,null,null,null,null,383.98157121734516,611.47174877439409,1.8800381427456132,1.6319641945848604,null,null,2037,1276.2856231842804,2104.908284110586,null,-4.8109015084986106E-3]
[60,1994,4,255.60000000000002,448.39999999999986,null,null,null,null,null,null,null,null,null,null,null,null,null,null,null,null,null,null,null,null,null,null,null,383.59727367627249,610.96694128428385,0.66632381807725616,0.73391859640955381,null,null,2038,1270.1158566151335,2096.8093987713382,null,-4.8341581673181366E-3]
[61,1995,1,89.499999999999986,230.60000000000002,null,null,null,null,null,null,null,null,null,null,null,null,null,null,null,null,null,null,null,null,null,null,null,383.21297613519982,610.46213379417361,0.23355159030007339,0.37774660742143629,null,null,2039,1263.9460900459867,2088.7105134320905,null,-4.8576407711256042E-3]
[62,1995,2,588.70000000000016,860.55000000000018,null,null,null,null,null,null,null,null,null,null,null,null,null,null,null,null,null,null,null,null,null,null,null,382.8286785941271,609.95732630406337,1.5377635817721398,1.4108364026289546,null,null,2040,1257.7763234768397,2080.6116280928427,null,-4.8813526286730635E-3]
[63,1995,3,725.89999999999964,1001.9,null,null,null,null,null,null,null,null,null,null,null,null,null,null,null,null,null,null,null,null,null,null,null,382.44438105305443,609.45251881395313,1.8980537719007551,1.6439344642463425,null,null,2041,1251.6065569076927,2072.5127427535954,null,-4.9052971136330781E-3]
[64,1995,4,334.70000000000005,596.25000000000011,null,null,null,null,null,null,null,null,null,null,null,null,null,null,null,null,null,null,null,null,null,null,null,382.06008351198176,608.9477113238429,0.87604022101278622,0.97914810896285631,null,null,2042,1245.436790338546,2064.4138574143476,null,-4.9294776662006656E-3]
[65,1996,1,113.75000000000003,290.44999999999993,null,null,null,null,null,null,null,null,null,null,null,null,null,null,null,null,null,null,null,null,null,null,null,381.67578597090909,608.44290383373266,0.29802781360793457,0.47736607357881244,null,null,2043,1239.2670237693992,2056.3149720750998,null,-4.953897794740425E-3]
[66,1996,2,565.84999999999991,838.85000000000014,null,null,null,null,null,null,null,null,null,null,null,null,null,null,null,null,null,null,null,null,null,null,null,{"$f":"$W$5+$V$5*A68","v":381.29148842983636},{"$f":"$Z$5+$Y$5*A68","v":607.93809634362242},{"$f":"D68/AC68","v":1.484035225465373},{"$f":"E68/AD68","v":1.3798279874960497},null,null,2044,1233.097257200252,2048.2160867358525,null,-4.9785610774835121E-3]
[{"$f":"A68+1","v":67},1996,3,714.60000000000014,989.39999999999986,null,null,null,null,null,null,null,null,null,null,null,null,null,null,null,null,null,null,null,null,null,null,null,380.90719088876369,607.43328885351218,1.8760475441081519,1.6288208403385713,null,null,2045,1226.9274906311052,2040.1172013966045,null,-5.0034711642739094E-3]
[68,1996,4,320.7,560.60000000000014,null,null,null,null,null,null,null,null,null,null,null,null,null,null,null,null,null,null,null,null,null,null,null,380.52289334769102,606.92848136340194,0.84278766299343333,0.9236673137182001,null,null,{"$f":"AI69+1","v":2046},1220.7577240619582,2032.0183160573567,null,-5.0286317783729828E-3]
[69,1997,1,73.049999999999983,210.15000000000006,null,null,null,null,null,null,null,null,null,null,null,null,null,null,null,null,null,null,null,null,null,null,null,380.13859580661835,606.4236738732917,0.19216675393087818,0.3465399011515331,null,null,2047,1214.5879574928115,2023.9194307181092,null,-5.0540467183098903E-3]
[70,1997,2,525.19999999999993,785.24999999999966,null,null,null,null,null,null,null,null,null,null,null,null,null,null,null,null,null,null,null,null,null,null,null,379.75429826554569,605.91886638318147,1.3829994878234411,1.2959655880782719,null,null,2048,1208.4181909236645,2015.8205453788614,null,-5.0797198597973825E-3]
[71,1997,3,757.3,1033.3,null,null,null,null,null,null,null,null,null,null,null,null,null,null,null,null,null,null,null,null,null,null,null,379.37000072447302,605.41405889307123,1.9962042295221125,1.7067657825608942,null,null,2049,1202.2484243545175,2007.7216600396137,null,-5.1056551576992293E-3]
[72,1997,4,217.09999999999997,434.2999999999999,null,null,null,null,null,null,null,null,null,null,null,null,null,null,null,null,null,null,null,null,null,null,null,378.98570318340029,604.90925140296099,0.57284482811991477,0.7179589318442916,null,null,2050,1196.0786577853705,1999.6227747003663,null,-5.1318566480630379E-3]
[73,1998,1,75.250000000000028,223.04999999999995,null,null,null,null,null,null,null,null,null,null,null,null,null,null,null,null,null,null,null,null,null,null,null,378.60140564232762,604.40444391285075,0.19875784632212967,0.36904096627085953,null,null,2051,1189.9088912162238,1991.5238893611181,null,-5.1583284502129123E-3]
[74,1998,2,559.64999999999975,828.59999999999991,null,null,null,null,null,null,null,null,null,null,null,null,null,null,null,null,null,null,null,null,null,null,null,378.21710810125495,603.89963642274051,1.4797056717227404,1.3720822965026016,null,null,2052,1183.7391246470768,1983.4250040218708,null,-5.1850747689100585E-3]
[75,1998,3,686.79999999999961,958.64999999999952,null,null,null,null,null,null,null,null,null,null,null,null,null,null,null,null,null,null,null,null,null,null,null,377.83281056018228,603.39482893263028,1.8177352014022725,1.5887607152613399,null,null,2053,1177.5693580779298,1975.326118682623,null,-5.2120998965768939E-3]
[76,1998,4,297.44999999999987,532.5999999999998,null,null,null,null,null,null,null,null,null,null,null,null,null,null,null,null,null,null,null,null,null,null,null,377.44851301910955,602.89002144252004,0.78805450211149863,0.88341153619637114,null,null,2054,1171.3995915087828,1967.2272333433752,null,-5.2394082155954314E-3]
[77,1999,1,63.749999999999993,185,null,null,null,null,null,null,null,null,null,null,null,null,null,null,null,null,null,null,null,null,null,null,null,377.06421547803689,602.3852139524098,0.1690693451755389,0.30711245182491403,null,null,2055,1165.2298249396358,1959.1283480041277,null,-5.2670042006760509E-3]
[78,1999,2,506.39999999999992,778.55,null,null,null,null,null,null,null,null,null,null,null,null,null,null,null,null,null,null,null,null,null,null,null,376.67991793696422,601.88040646229956,1.3443774830723623,1.2935293982672065,null,null,2056,1159.0600583704891,1951.0294626648802,null,-5.2948924213009896E-3]
[79,1999,3,588.25000000000011,861.60000000000025,null,null,null,null,null,null,null,null,null,null,null,null,null,null,null,null,null,null,null,null,null,null,null,376.29562039589155,601.37559897218932,1.5632656032007932,1.4327152639258398,null,null,2057,1152.8902918013423,1942.9305773256324,null,-5.3230775442479894E-3]
[80,1999,4,240.80000000000004,462.85000000000019,null,null,null,null,null,null,null,null,null,null,null,null,null,null,null,null,null,null,null,null,null,null,null,375.91132285481888,600.87079148207908,0.64057660772564617,0.77029871739705735,null,null,2058,1146.7205252321953,1934.8316919863846,null,-5.3515643361927712E-3]
[81,2000,1,56.900000000000006,190.59999999999991,null,null,null,null,null,null,null,null,null,null,null,null,null,null,null,null,null,null,null,null,null,null,null,375.52702531374615,600.36598399196885,0.15152038645543836,0.31747301659673904,null,null,2059,1140.5507586630483,1926.7328066471373,null,-5.3803576663962183E-3]
[82,2000,2,500,765.14999999999975,null,null,null,null,null,null,null,null,null,null,null,null,null,null,null,null,null,null,null,null,null,null,null,375.14272777267348,599.86117650185861,1.3328260498841036,1.2755451260607278,null,null,2060,1134.3809920939013,1918.6339213078895,null,-5.4094625094802673E-3]
[83,2000,3,675.15,951.15000000000009,null,null,null,null,null,null,null,null,null,null,null,null,null,null,null,null,null,null,null,null,null,null,null,374.75843023160081,599.35636901174837,1.8015605401665202,1.5869523528519573,null,null,2061,1128.2112255247546,1910.5350359686415,null,-5.4388839482917284E-3]
[84,2000,4,210.24999999999997,419.74999999999994,null,null,null,null,null,null,null,null,null,null,null,null,null,null,null,null,null,null,null,null,null,null,null,374.37413269052814,598.85156152163813,0.56160397217881664,0.70092494863576182,null,null,2062,1122.0414589556076,1902.4361506293938,null,-5.468627176863361E-3]
[85,2001,1,45,150.60000000000002,null,null,null,null,null,null,null,null,null,null,null,null,null,null,null,null,null,null,null,null,null,null,null,373.98983514945547,598.34675403152789,0.12032412587368023,0.25169351882548135,null,null,2063,1115.8716923864608,1894.3372652901462,null,-5.4986975034679864E-3]
[86,2001,2,488.39999999999986,750.45,null,null,null,null,null,null,null,null,null,null,null,null,null,null,null,null,null,null,null,null,null,null,null,373.60553760838275,597.84194654141766,1.3072611373120113,1.2552648811971743,null,null,2064,1109.7019258173138,1886.2383799508987,null,-5.5291003537799588E-3]
[87,2001,3,634.49999999999977,903.09999999999991,null,null,null,null,null,null,null,null,null,null,null,null,null,null,null,null,null,null,null,null,null,null,null,373.22124006731008,597.33713905130742,1.7000640153426647,1.5118765282773241,null,null,2065,1103.5321592481669,1878.1394946116509,null,-5.5598412741356684E-3]
[88,2001,4,328.95000000000016,592.5,null,null,null,null,null,null,null,null,null,null,null,null,null,null,null,null,null,null,null,null,null,null,null,372.83694252623741,596.83233156119718,0.88228917920828398,0.99274112454688135,null,null,2066,1097.3623926790201,1870.0406092724031,null,-5.5909259349090634E-3]
[89,2002,1,95.300000000000011,280.49999999999994,null,null,null,null,null,null,null,null,null,null,null,null,null,null,null,null,null,null,null,null,null,null,null,372.45264498516474,596.32752407108694,0.25587145448731052,0.47037909316183457,null,null,2067,1091.1926261098729,1861.9417239331558,null,-5.6223601339980833E-3]
[90,2002,2,444.65000000000003,698.45000000000016,null,null,null,null,null,null,null,null,null,null,null,null,null,null,null,null,null,null,null,null,null,null,null,372.06834744409207,595.8227165809767,1.1950761279601034,1.1722446636609158,null,null,2068,1085.0228595407264,1853.842838593908,null,-5.6541498004269997E-3]
[91,2002,3,647.70000000000027,920.65000000000043,null,null,null,null,null,null,null,null,null,null,null,null,null,null,null,null,null,null,null,null,null,null,null,371.68404990301934,595.31790909086646,1.7426090793215356,1.5464846360929432,null,null,2069,1078.8530929715791,1845.74395325466,null,-5.6863009980810952E-3]
[92,2002,4,212.74999999999994,423.75,null,null,null,null,null,null,null,null,null,null,null,null,null,null,null,null,null,null,null,null,null,null,null,371.29975236194667,594.81310160075623,0.57298718527721815,0.71240865216251525,null,null,2070,1072.6833264024324,1837.6450679154127,null,-5.7188199295539199E-3]
[93,2003,1,56.149999999999991,201.85000000000002,null,null,null,null,null,null,null,null,null,null,null,null,null,null,null,null,null,null,null,null,null,null,null,370.915454820874,594.30829411064599,0.15138220656541929,0.33963853777618724,null,null,2071,1066.5135598332856,1829.5461825761647,null,-5.7517129401450928E-3]
[94,2003,2,445.70000000000022,713.30000000000018,null,null,null,null,null,null,null,null,null,null,null,null,null,null,null,null,null,null,null,null,null,null,null,370.53115727980133,593.80348662053575,1.2028678054284008,1.2012391575191734,null,null,2072,1060.3437932641384,1821.4472972369172,null,-5.7849865219825602E-3]
[95,2003,3,722.89999999999975,998.89999999999986,null,null,null,null,null,null,null,null,null,null,null,null,null,null,null,null,null,null,null,null,null,null,null,370.14685973872866,593.29867913042551,1.9530085991010835,1.6836376603164669,null,null,2073,1054.1740266949917,1813.3484118976694,null,-5.818647318294623E-3]
[96,2003,4,290.25,492.75000000000011,null,null,null,null,null,null,null,null,null,null,null,null,null,null,null,null,null,null,null,null,null,null,null,369.76256219765594,592.79387164031527,0.78496318901221629,0.83123328963660748,null,null,2074,1048.0042601258447,1805.2495265584218,null,-5.8527021278357294E-3]
[97,2004,1,80.500000000000028,259.7,null,null,null,null,null,null,null,null,null,null,null,null,null,null,null,null,null,null,null,null,null,null,null,369.37826465658327,592.28906415020504,0.21793377602995168,0.43846833534333135,null,null,2075,1041.8344935566979,1797.1506412191743,null,-5.8871579094591509E-3]
[98,2004,2,499.39999999999992,756.79999999999961,null,null,null,null,null,null,null,null,null,null,null,null,null,null,null,null,null,null,null,null,null,null,null,368.9939671155106,591.7842566600948,1.3534096611494646,1.2788444293385208,null,null,2076,1035.6647269875509,1789.0517558799265,null,-5.922021786861853E-3]
[99,2004,3,678.39999999999975,954,null,null,null,null,null,null,null,null,null,null,null,null,null,null,null,null,null,null,null,null,null,null,null,368.60966957443793,591.27944916998456,1.8404292019338955,1.6134502921405245,null,null,2077,1029.4949604184039,1780.9528705406788,null,-5.9573010534915705E-3]
[100,2004,4,248.75000000000003,460.40000000000003,null,null,null,null,null,null,null,null,null,null,null,null,null,null,null,null,null,null,null,null,null,null,null,368.22537203336526,590.77464167987432,0.67553737165471739,0.77931577884055325,null,null,2078,1023.3251938492571,1772.8539852014314,null,-5.9930031776351811E-3]
[101,2005,1,112.94999999999999,292.85000000000008,null,null,null,null,null,null,null,null,null,null,null,null,null,null,null,null,null,null,null,null,null,null,null,367.84107449229253,590.26983418976408,0.30706195646013063,0.49612902953440208,null,null,2079,{"$f":"SUMIFS(D:D,$B:$B,$AI103)","v":1017.1554272801102},{"$f":"SUMIFS(E:E,$B:$B,$AI103)","v":1764.7550998621832},null,-6.0291358076890456E-3]
[102,2005,2,421.45,671.0500000000003,null,null,null,null,null,null,null,null,null,null,null,null,null,null,null,null,null,null,null,null,null,null,null,367.45677695121987,589.76502669965384,1.1469376167089926,1.1378260317591569,null,null,2080,1010.9856607109632,1756.6562145229359,null,-6.0657067776210827E-3]
[103,2005,3,639.75,915.14999999999986,null,null,null,null,null,null,null,null,null,null,null,null,null,null,null,null,null,null,null,null,null,null,null,367.0724794101472,589.26021920954361,1.7428438139193145,1.5530490098714238,null,null,2081,{"$f":"SUMIFS(D:D,$B:$B,$AI105)","v":1004.8158941418163},{"$f":"SUMIFS(E:E,$B:$B,$AI105)","v":1748.5573291836881},null,-6.1027241126329068E-3]
[104,2005,4,158.10000000000005,366.34999999999997,null,null,null,null,null,null,null,null,null,null,null,null,null,null,null,null,null,null,null,null,null,null,null,366.68818186907453,588.75541171943337,0.43115651885516565,0.62224481118583941,null,null,2082,998.64612757266946,1740.4584438444404,null,-6.1401960350321305E-3]
[105,2006,1,40.25,181.85000000000002,null,null,null,null,null,null,null,null,null,null,null,null,null,null,null,null,null,null,null,null,null,null,null,366.30388432800186,588.25060422932313,0.10988144467493192,0.30913695403380798,null,null,2083,992.47636100352247,1732.3595585051928,null,-6.1781309703201615E-3]
[106,2006,2,618.34999999999991,889.24999999999977,null,null,null,null,null,null,null,null,null,null,null,null,null,null,null,null,null,null,null,null,null,null,null,365.91958678692913,587.74579673921289,1.6898521487456155,1.5129840229118074,null,null,2084,986.3065944343756,1724.260673165945,null,-6.216537553507484E-3]
[107,2006,3,646.65000000000009,918.60000000000014,null,null,null,null,null,null,null,null,null,null,null,null,null,null,null,null,null,null,null,null,null,null,null,365.53528924585646,587.24098924910265,1.7690494434453026,1.5642641042046501,null,null,2085,980.13682786522872,1716.1617878266973,null,-6.2554246356683052E-3]
[108,2006,4,251.85000000000002,474.90000000000015,null,null,null,null,null,null,null,null,null,null,null,null,null,null,null,null,null,null,null,null,null,null,null,365.15099170478379,586.73618175899242,0.689714681655897,0.80939273009597679,null,null,2086,973.96706129608174,1708.0629024874497,null,{"$f":"AJ110/AJ109-1","v":-6.294801290739116E-3}]
[109,2007,1,38.20000000000001,141.75,null,null,null,null,null,null,null,null,null,null,null,null,null,null,null,null,null,null,null,null,null,null,null,364.76669416371112,586.23137426888218,0.10472447350923834,0.24179872695620114,null,null,2087,967.79729472693475,1699.9640171482022,null,-6.3346768225782668E-3]
[110,2007,2,428.05000000000007,693.85000000000025,null,null,null,null,null,null,null,null,null,null,null,null,null,null,null,null,null,null,null,null,null,null,null,364.38239662263845,585.72656677877194,1.1747274400944705,1.1845971129768924,null,null,2088,961.62752815778799,1691.8651318089544,null,-6.3750607722948827E-3]
[111,2007,3,657.2,933.20000000000073,null,null,null,null,null,null,null,null,null,null,null,null,null,null,null,null,null,null,null,null,null,null,null,363.99809908156573,585.2217592886617,1.8055039343838244,1.594609197604524,null,null,2089,955.45776158864101,1683.7662464697069,null,-6.4159629258602191E-3]
[112,2007,4,176.39999999999992,363.6,null,null,null,null,null,null,null,null,null,null,null,null,null,null,null,null,null,null,null,null,null,null,null,363.61380154049306,584.71695179855146,0.48513010026753761,0.62183933419681092,null,null,2090,949.28799501949413,1675.6673611304591,null,-6.4573933220118951E-3]
[113,2008,1,74.25,207.29999999999995,null,null,null,null,null,null,null,null,null,null,null,null,null,null,null,null,null,null,null,null,null,null,null,363.22950399942039,584.21214430844122,0.20441621394312309,0.35483685510404872,null,null,2091,943.11822845034726,1667.5684757912113,null,-6.4993622604699874E-3]
[114,2008,2,487.40000000000009,754.4,null,null,null,null,null,null,null,null,null,null,null,null,null,null,null,null,null,null,null,null,null,null,null,362.84520645834772,583.70733681833099,1.3432725341955163,1.292428503832211,null,null,2092,936.94846188120027,1659.4695904519635,null,-6.5418803104724255E-3]
[115,2008,3,710.64999999999975,982.54999999999984,null,null,null,null,null,null,null,null,null,null,null,null,null,null,null,null,null,null,null,null,null,null,null,362.46090891727499,583.20252932822075,1.9606252219661913,1.6847492090471203,null,null,2093,930.7786953120534,1651.370705112716,null,-6.5849583196488926E-3]
[116,2008,4,220.04999999999995,449.2999999999999,null,null,null,null,null,null,null,null,null,null,null,null,null,null,null,null,null,null,null,null,null,null,null,362.07661137620232,582.69772183811051,0.60774430903896504,0.77106874312583606,null,null,2094,924.60892874290653,1643.2718197734682,null,-6.6286074232483339E-3]
[117,2009,1,68.000000000000014,204.55000000000004,null,null,null,null,null,null,null,null,null,null,null,null,null,null,null,null,null,null,null,null,null,null,null,361.69231383512965,582.19291434800027,0.18800510101797874,0.35134402181633601,null,null,2095,918.43916217375954,1635.1729344342207,null,-6.6728390537341697E-3]
[118,2009,2,512.9,774.35000000000025,null,null,null,null,null,null,null,null,null,null,null,null,null,null,null,null,null,null,null,null,null,null,null,361.30801629405698,581.68810685789003,1.4195644072911107,1.3312116766196471,null,null,2096,912.26939560461267,1627.0740490949729,null,-6.7176649507674213E-3]
[119,2009,3,608.95000000000005,881.94999999999993,null,null,null,null,null,null,null,null,null,null,null,null,null,null,null,null,null,null,null,null,null,null,null,360.92371875298431,581.1832993677798,1.6871986194311728,1.5175074730457652,null,null,2097,906.09962903546568,1618.9751637557256,null,-6.7630971715958443E-3]
[120,2009,4,201.04999999999995,388.2000000000001,null,null,null,null,null,null,null,null,null,null,null,null,null,null,null,null,null,null,null,null,null,null,null,360.53942121191164,580.67849187766956,0.55763666376396115,0.66852829135228498,null,null,2098,899.92986246631881,1610.8762784164778,null,-6.8091481018643929E-3]
[121,2010,1,39.249999999999986,160.25000000000003,null,null,null,null,null,null,null,null,null,null,null,null,null,null,null,null,null,null,null,null,null,null,null,360.15512367083892,580.17368438755932,0.10898081804292817,0.2762103906335609,null,null,2099,893.76009589717182,1602.7773930772303,null,-6.8558304668747683E-3]
[122,2010,2,469.55000000000013,715.94999999999993,null,null,null,null,null,null,null,null,null,null,null,null,null,null,null,null,null,null,null,null,null,null,null,359.77082612976625,579.66887689744908,1.3051363976650998,1.2351016736174725,null,null,2100,887.59032932802484,1594.6785077379825,null,-6.9031573433065985E-3]
[123,2010,3,747.35000000000025,1023.3500000000004,null,null,null,null,null,null,null,null,null,null,null,null,null,null,null,null,null,null,null,null,null,null,null,359.38652858869358,579.16406940733884,2.0795158987590168,1.7669431756137755]
[124,2010,4,256.8,468.49999999999994,null,null,null,null,null,null,null,null,null,null,null,null,null,null,null,null,null,null,null,null,null,null,null,359.00223104762091,578.6592619172286,0.71531588884732034,0.80963017587889941]
[125,2011,1,82.449999999999974,237.35000000000002,null,null,null,null,null,null,null,null,null,null,null,null,null,null,null,null,null,null,null,null,null,null,null,358.61793350654818,578.15445442711837,0.2299104208030201,0.41053043556532892]
[126,2011,2,530.99999999999989,800.29999999999984,null,null,null,null,null,null,null,null,null,null,null,null,null,null,null,null,null,null,null,null,null,null,null,358.23363596547551,577.64964693700813,1.4822728708009278,1.3854418577828223]
[127,2011,3,623.1,899.0999999999998,null,null,null,null,null,null,null,null,null,null,null,null,null,null,null,null,null,null,null,null,null,null,null,357.84933842440284,577.14483944689789,1.741235579038614,1.5578411839593767]
[128,2011,4,211.2,417.90000000000003,null,null,null,null,null,null,null,null,null,null,null,null,null,null,null,null,null,null,null,null,null,null,null,357.46504088333018,576.64003195678765,0.59082700640628982,0.72471555362170326]
[129,2012,1,67.500000000000014,217.89999999999998,null,null,null,null,null,null,null,null,null,null,null,null,null,null,null,null,null,null,null,null,null,null,null,357.08074334225751,576.13522446667741,0.18903287634108595,0.37820982079633791]
[130,2012,2,532,794.29999999999973,null,null,null,null,null,null,null,null,null,null,null,null,null,null,null,null,null,null,null,null,null,null,null,{"$f":"$W$5+$V$5*A132","v":356.69644580118484},{"$f":"$Z$5+$Y$5*A132","v":575.63041697656718},{"$f":"D132/AC132","v":1.4914642583697784},{"$f":"E132/AD132","v":1.3798784368831125}]
[{"$f":"A132+1","v":131},2012,3,670.19999999999982,944.04999999999973,null,null,null,null,null,null,null,null,null,null,null,null,null,null,null,null,null,null,null,null,null,null,null,356.31214826011211,575.12560948645694,1.8809350264160678,1.641467506277392]
[132,2012,4,229.94999999999996,435.54999999999995,null,null,null,null,null,null,null,null,null,null,null,null,null,null,null,null,null,null,null,null,null,null,null,355.92785071903944,574.6208019963467,0.64605790059827817,0.75797812833578737]
[133,2013,1,37.699999999999996,146.1,null,null,null,null,null,null,null,null,null,null,null,null,null,null,null,null,null,null,null,null,null,null,null,355.54355317796677,574.11599450623646,0.10603482938454327,0.25447819151189482]
[134,2013,2,491.64999999999986,754.75,null,null,null,null,null,null,null,null,null,null,null,null,null,null,null,null,null,null,null,null,null,null,null,355.1592556368941,573.61118701612622,1.3843085663594545,1.3157867508235701]
[135,2013,3,545.50000000000011,819.35000000000025,null,null,null,null,null,null,null,null,null,null,null,null,null,null,null,null,null,null,null,null,null,null,null,354.77495809582138,573.10637952601598,1.5375944314893435,1.4296647695278466]
[136,2013,4,264.49999999999989,490.65,null,null,null,null,null,null,null,null,null,null,null,null,null,null,null,null,null,null,null,null,null,null,null,354.39066055474871,572.60157203590575,0.74635149692139846,0.85687854166288091]
[137,2014,1,42.550000000000004,160.89999999999998,null,null,null,null,null,null,null,null,null,null,null,null,null,null,null,null,null,null,null,null,null,null,null,354.00636301367604,572.09676454579551,0.1201955796437371,0.28124612822752676]
[138,2014,2,405.79999999999995,669.3,null,null,null,null,null,null,null,null,null,null,null,null,null,null,null,null,null,null,null,null,null,null,null,353.62206547260337,571.59195705568527,1.1475528243908157,1.1709401991021995]
[139,2014,3,644.85,917.65000000000009,null,null,null,null,null,null,null,null,null,null,null,null,null,null,null,null,null,null,null,null,null,null,null,353.2377679315307,571.08714956557503,1.8255409204289659,1.6068475725606062]
[140,2014,4,175.95000000000005,377.05,null,null,null,null,null,null,null,null,null,null,null,null,null,null,null,null,null,null,null,null,null,null,null,352.85347039045797,570.58234207546479,0.49864891453468946,0.66081610347158559]
[141,2015,1,57.75,204.9500000000001,null,null,null,null,null,null,null,null,null,null,null,null,null,null,null,null,null,null,null,null,null,null,null,352.4691728493853,570.07753458535456,0.16384411587868802,0.35951250060936069]
[142,2015,2,539.09999999999991,806.0999999999998,null,null,null,null,null,null,null,null,null,null,null,null,null,null,null,null,null,null,null,null,null,null,null,352.08487530831263,569.57272709524432,1.5311648917833305,1.4152714160156816]
[143,2015,3,716.19999999999993,988.65000000000009,null,null,null,null,null,null,null,null,null,null,null,null,null,null,null,null,null,null,null,null,null,null,null,351.70057776723996,569.06791960513408,2.036391309183434,1.7373145909999748]
[144,2015,4,126.60000000000004,293,null,null,null,null,null,null,null,null,null,null,null,null,null,null,null,null,null,null,null,null,null,null,null,351.31628022616729,568.56311211502384,0.36035904717680206,0.51533417092441325]
[145,2016,1,35.250000000000007,146.49999999999997,null,null,null,null,null,null,null,null,null,null,null,null,null,null,null,null,null,null,null,null,null,null,null,350.93198268509457,568.0583046249136,0.10044681516426861,0.25789606244157154]
[146,2016,2,411.84999999999991,664.24999999999989,null,null,null,null,null,null,null,null,null,null,null,null,null,null,null,null,null,null,null,null,null,null,null,350.5476851440219,567.55349713480337,1.1748758227594402,1.1703742525653569]
[147,2016,3,635.19999999999993,911.19999999999982,null,null,null,null,null,null,null,null,null,null,null,null,null,null,null,null,null,null,null,null,null,null,null,350.16338760294923,567.04868964469313,1.8140103234329401,1.6069166839463969]
[148,2016,4,275.55,503.44999999999993,null,null,null,null,null,null,null,null,null,null,null,null,null,null,null,null,null,null,null,null,null,null,null,349.77909006187656,566.54388215458289,0.78778294023023132,0.88863372433811294]
[149,2017,1,38.799999999999997,143.95000000000002,null,null,null,null,null,null,null,null,null,null,null,null,null,null,null,null,null,null,null,null,null,null,null,349.39479252080389,566.03907466447265,0.1110491651007928,0.25431106515981838]
[150,2017,2,507.75,770.79999999999984,null,null,null,null,null,null,null,null,null,null,null,null,null,null,null,null,null,null,null,null,null,null,null,349.01049497973116,565.53426717436241,1.4548273112230841,1.3629589659548447]
[151,2017,3,695.30000000000018,968.3,null,null,null,null,null,null,null,null,null,null,null,null,null,null,null,null,null,null,null,null,null,null,null,348.62619743865849,565.02945968425229,1.994399747088254,1.7137159548125187]
[152,2017,4,172.70000000000005,343.5,null,null,null,null,null,null,null,null,null,null,null,null,null,null,null,null,null,null,null,null,null,null,null,348.24189989758582,564.52465219414194,0.49591964680525019,0.60847652740215352]
[153,2018,1,28.1,146.04999999999995,null,null,null,null,null,null,null,null,null,null,null,null,null,null,null,null,null,null,null,null,null,null,null,347.85760235651315,564.01984470403181,8.0780180768338664E-2,0.25894478956966377]
[154,2018,2,466.25000000000006,722.79999999999973,null,null,null,null,null,null,null,null,null,null,null,null,null,null,null,null,null,null,null,null,null,null,null,347.47330481544049,563.51503721392146,1.3418296989682343,1.2826631984367269]
[155,2018,3,691.00000000000023,967.00000000000023,null,null,null,null,null,null,null,null,null,null,null,null,null,null,null,null,null,null,null,null,null,null,null,347.08900727436776,563.01022972381134,1.9908438052426618,1.7175531614663004]
[156,2018,4,171.7,378.59999999999997,null,null,null,null,null,null,null,null,null,null,null,null,null,null,null,null,null,null,null,null,null,null,null,346.70470973329509,562.50542223370098,0.49523411473723955,0.67306017868518453]
[157,2019,1,45.999999999999993,139.19999999999999,null,null,null,null,null,null,null,null,null,null,null,null,null,null,null,null,null,null,null,null,null,null,null,346.32041219222242,562.00061474359086,0.13282497473602006,0.24768656180831597]
[158,2019,2,437.44999999999993,693.5,null,null,null,null,null,null,null,null,null,null,null,null,null,null,null,null,null,null,null,null,null,null,null,345.93611465114975,561.49580725348051,1.2645398426849275,1.2350938173380301]
[159,2019,3,668.3,941.9,null,null,null,null,null,null,null,null,null,null,null,null,null,null,null,null,null,null,null,null,null,null,null,345.55181711007708,560.99099976337038,1.9340080616248359,1.6789930683331808]
[160,2019,4,229.0499999999999,444.85000000000014,null,null,null,null,null,null,null,null,null,null,null,null,null,null,null,null,null,null,null,null,null,null,null,345.16751956900436,560.48619227326003,0.66359082768275723,0.7936859214956673]
[161,2020,1,90.699999999999989,242.95000000000002,null,null,null,null,null,null,null,null,null,null,null,null,null,null,null,null,null,null,null,null,null,null,null,344.78322202793169,559.98138478314991,0.26306384477331723,0.43385370764437325]
[162,2020,2,559.29999999999995,832.30000000000018,null,null,null,null,null,null,null,null,null,null,null,null,null,null,null,null,null,null,null,null,null,null,null,344.39892448685902,559.47657729303955,1.6239888113278378,1.4876404728630179]
[163,2020,3,662.7,938.10000000000014,null,null,null,null,null,null,null,null,null,null,null,null,null,null,null,null,null,null,null,null,null,null,null,344.01462694578635,558.97176980292943,1.9263715786841693,1.678260067285215]
[164,2020,4,219.49999999999997,430.50000000000006,null,null,null,null,null,null,null,null,null,null,null,null,null,null,null,null,null,null,null,null,null,null,null,343.63032940471362,558.46696231281908,0.63876783047715768,0.77086028189946942]
[165,2021,1,{"$f":"AC167*INDEX(X$10:X$13,MATCH($C167,$W$10:$W$13,0))","v":66.94984896760954},{"$f":"AD167*INDEX(Y$10:Y$13,MATCH($C167,$W$10:$W$13,0))","v":203.75489698120799},null,null,null,null,null,null,null,null,null,null,null,null,null,null,null,null,null,null,null,null,null,null,null,343.24603186364095,557.96215482270895]
[166,2021,2,{"$f":"AC168*INDEX(X$10:X$13,MATCH($C168,$W$10:$W$13,0))","v":458.21106377323724},{"$f":"AD168*INDEX(Y$10:Y$13,MATCH($C168,$W$10:$W$13,0))","v":709.62910491795753},null,null,null,null,null,null,null,null,null,null,null,null,null,null,null,null,null,null,null,null,null,null,null,342.86173432256828,557.4573473325986]
[167,2021,3,626.08550895486405,891.62797344677904,null,null,null,null,null,null,null,null,null,null,null,null,null,null,null,null,null,null,null,null,null,null,null,{"$f":"$W$5+$V$5*A169","v":342.47743678149561},{"$f":"$Z$5+$Y$5*A169","v":556.95253984248848}]
[168,2021,4,{"$f":"AC170*INDEX(X$10:X$13,MATCH($C170,$W$10:$W$13,0))","v":223.75546659492025},{"$f":"AD170*INDEX(Y$10:Y$13,MATCH($C170,$W$10:$W$13,0))","v":429.47847419260393},null,null,null,null,null,null,null,null,null,null,null,null,null,null,null,null,null,null,null,null,null,null,null,342.09313924042294,556.44773235237813]
[169,{"$f":"B167+1","v":2022},{"$f":"C167","v":1},66.650021322771281,203.01752081865851,null,null,null,null,null,null,null,null,null,null,null,null,null,null,null,null,null,null,null,null,null,null,null,341.70884169935027,555.942924862268]
[170,{"$f":"B168+1","v":2022},{"$f":"C168","v":2},456.15671512510625,707.0586762451494,null,null,null,null,null,null,null,null,null,null,null,null,null,null,null,null,null,null,null,null,null,null,null,341.32454415827755,555.43811737215765]
[171,2022,3,623.27536036401125,888.39537858679307,null,null,null,null,null,null,null,null,null,null,null,null,null,null,null,null,null,null,null,null,null,null,null,340.94024661720488,554.93330988204752]
[172,2022,4,222.75002490959528,427.91998854869979,null,null,null,null,null,null,null,null,null,null,null,null,null,null,null,null,null,null,null,null,null,null,null,340.55594907613221,554.42850239193717]
[173,2023,1,66.350193677933007,202.28014465610903,null,null,null,null,null,null,null,null,null,null,null,null,null,null,null,null,null,null,null,null,null,null,null,340.17165153505954,553.92369490182705]
[174,2023,2,454.10236647697531,704.48824757234138,null,null,null,null,null,null,null,null,null,null,null,null,null,null,null,null,null,null,null,null,null,null,null,339.78735399398681,553.4188874117167]
[175,2023,3,620.46521177315856,885.16278372680699,null,null,null,null,null,null,null,null,null,null,null,null,null,null,null,null,null,null,null,null,null,null,null,339.40305645291414,552.91407992160657]
[176,2023,4,221.74458322427034,426.36150290479571,null,null,null,null,null,null,null,null,null,null,null,null,null,null,null,null,null,null,null,null,null,null,null,339.01875891184147,552.40927243149622]
[177,2024,1,66.050366033094718,201.54276849355952,null,null,null,null,null,null,null,null,null,null,null,null,null,null,null,null,null,null,null,null,null,null,null,338.6344613707688,551.9044649413861]
[178,2024,2,452.04801782884437,701.91781889953324,null,null,null,null,null,null,null,null,null,null,null,null,null,null,null,null,null,null,null,null,null,null,null,338.25016382969613,551.39965745127574]
[179,2024,3,617.65506318230598,881.93018886682103,null,null,null,null,null,null,null,null,null,null,null,null,null,null,null,null,null,null,null,null,null,null,null,337.86586628862347,550.89484996116562]
[180,2024,4,220.73914153894538,424.80301726089158,null,null,null,null,null,null,null,null,null,null,null,null,null,null,null,null,null,null,null,null,null,null,null,337.48156874755074,550.39004247105527]
[181,2025,1,65.750538388256444,200.80539233101004,null,null,null,null,null,null,null,null,null,null,null,null,null,null,null,null,null,null,null,null,null,null,null,337.09727120647807,549.88523498094514]
[182,2025,2,449.99366918071337,699.34739022672522,null,null,null,null,null,null,null,null,null,null,null,null,null,null,null,null,null,null,null,null,null,null,null,336.7129736654054,549.38042749083479]
[183,2025,3,614.84491459145318,878.69759400683495,null,null,null,null,null,null,null,null,null,null,null,null,null,null,null,null,null,null,null,null,null,null,null,336.32867612433273,548.87562000072467]
[184,2025,4,219.73369985362041,423.2445316169875,null,null,null,null,null,null,null,null,null,null,null,null,null,null,null,null,null,null,null,null,null,null,null,335.94437858326,548.37081251061431]
[185,2026,1,65.450710743418171,200.06801616846053,null,null,null,null,null,null,null,null,null,null,null,null,null,null,null,null,null,null,null,null,null,null,null,335.56008104218733,547.86600502050419]
[186,2026,2,447.93932053258237,696.7769615539172,null,null,null,null,null,null,null,null,null,null,null,null,null,null,null,null,null,null,null,null,null,null,null,335.17578350111467,547.36119753039384]
[187,2026,3,612.03476600060048,875.46499914684898,null,null,null,null,null,null,null,null,null,null,null,null,null,null,null,null,null,null,null,null,null,null,null,334.791485960042,546.85639004028371]
[188,2026,4,218.7282581682955,421.68604597308342,null,null,null,null,null,null,null,null,null,null,null,null,null,null,null,null,null,null,null,null,null,null,null,334.40718841896933,546.35158255017336]
[189,2027,1,65.150883098579911,199.33064000591105,null,null,null,null,null,null,null,null,null,null,null,null,null,null,null,null,null,null,null,null,null,null,null,334.02289087789666,545.84677506006324]
[190,2027,2,445.88497188445137,694.20653288110907,null,null,null,null,null,null,null,null,null,null,null,null,null,null,null,null,null,null,null,null,null,null,null,333.63859333682393,545.34196756995289]
[191,2027,3,609.22461740974779,872.2324042868629,null,null,null,null,null,null,null,null,null,null,null,null,null,null,null,null,null,null,null,null,null,null,null,333.25429579575126,544.83716007984276]
[192,2027,4,217.72281648297056,420.12756032917929,null,null,null,null,null,null,null,null,null,null,null,null,null,null,null,null,null,null,null,null,null,null,null,332.86999825467859,544.33235258973241]
[193,2028,1,64.851055453741623,198.59326384336157,null,null,null,null,null,null,null,null,null,null,null,null,null,null,null,null,null,null,null,null,null,null,null,332.48570071360587,543.82754509962228]
[194,2028,2,443.83062323632038,691.63610420830116,null,null,null,null,null,null,null,null,null,null,null,null,null,null,null,null,null,null,null,null,null,null,null,332.1014031725332,543.32273760951205]
[{"$f":"A196+1","v":195},2028,3,606.41446881889499,868.99980942687694,null,null,null,null,null,null,null,null,null,null,null,null,null,null,null,null,null,null,null,null,null,null,null,331.71710563146053,542.81793011940181]
[196,2028,4,216.71737479764559,418.56907468527527,null,null,null,null,null,null,null,null,null,null,null,null,null,null,null,null,null,null,null,null,null,null,null,331.33280809038786,542.31312262929157]
[197,2029,1,64.551227808903349,197.85588768081206,null,null,null,null,null,null,null,null,null,null,null,null,null,null,null,null,null,null,null,null,null,null,null,330.94851054931519,541.80831513918133]
[198,2029,2,441.77627458818949,689.06567553549314,null,null,null,null,null,null,null,null,null,null,null,null,null,null,null,null,null,null,null,null,null,null,null,330.56421300824252,541.30350764907109]
[199,2029,3,603.60432022804241,865.76721456689086,null,null,null,null,null,null,null,null,null,null,null,null,null,null,null,null,null,null,null,null,null,null,null,330.17991546716985,540.79870015896086]
[200,2029,4,215.71193311232065,417.01058904137119,null,null,null,null,null,null,null,null,null,null,null,null,null,null,null,null,null,null,null,null,null,null,null,329.79561792609712,540.29389266885062]
[201,2030,1,64.251400164065075,197.11851151826258,null,null,null,null,null,null,null,null,null,null,null,null,null,null,null,null,null,null,null,null,null,null,null,329.41132038502445,539.78908517874038]
[202,2030,2,439.7219259400585,686.49524686268501,null,null,null,null,null,null,null,null,null,null,null,null,null,null,null,null,null,null,null,null,null,null,null,329.02702284395178,539.28427768863014]
[203,2030,3,600.79417163718961,862.53461970690489,null,null,null,null,null,null,null,null,null,null,null,null,null,null,null,null,null,null,null,null,null,null,null,328.64272530287906,538.7794701985199]
[204,2030,4,214.70649142699568,415.45210339746711,null,null,null,null,null,null,null,null,null,null,null,null,null,null,null,null,null,null,null,null,null,null,null,328.25842776180639,538.27466270840966]
[205,2031,1,63.951572519226794,196.38113535571307,null,null,null,null,null,null,null,null,null,null,null,null,null,null,null,null,null,null,null,null,null,null,null,327.87413022073372,537.76985521829943]
[206,2031,2,437.6675772919275,683.92481818987699,null,null,null,null,null,null,null,null,null,null,null,null,null,null,null,null,null,null,null,null,null,null,null,327.48983267966105,537.26504772818919]
[207,2031,3,597.98402304633692,859.30202484691893,null,null,null,null,null,null,null,null,null,null,null,null,null,null,null,null,null,null,null,null,null,null,null,327.10553513858838,536.76024023807895]
[208,2031,4,213.70104974167077,413.89361775356298,null,null,null,null,null,null,null,null,null,null,null,null,null,null,null,null,null,null,null,null,null,null,null,326.72123759751571,536.25543274796871]
[209,2032,1,63.65174487438852,195.64375919316359,null,null,null,null,null,null,null,null,null,null,null,null,null,null,null,null,null,null,null,null,null,null,null,326.33694005644298,535.75062525785847]
[210,2032,2,435.6132286437965,681.35438951706897,null,null,null,null,null,null,null,null,null,null,null,null,null,null,null,null,null,null,null,null,null,null,null,325.95264251537031,535.24581776774824]
[211,2032,3,595.17387445548422,856.06942998693285,null,null,null,null,null,null,null,null,null,null,null,null,null,null,null,null,null,null,null,null,null,null,null,325.56834497429764,534.741010277638]
[212,2032,4,212.6956080563458,412.3351321096589,null,null,null,null,null,null,null,null,null,null,null,null,null,null,null,null,null,null,null,null,null,null,null,325.18404743322498,534.23620278752776]
[213,2033,1,63.351917229550246,194.90638303061408,null,null,null,null,null,null,null,null,null,null,null,null,null,null,null,null,null,null,null,null,null,null,null,324.79974989215225,533.73139529741752]
[214,2033,2,433.55887999566551,678.78396084426083,null,null,null,null,null,null,null,null,null,null,null,null,null,null,null,null,null,null,null,null,null,null,null,324.41545235107958,533.22658780730728]
[215,2033,3,592.36372586463142,852.83683512694688,null,null,null,null,null,null,null,null,null,null,null,null,null,null,null,null,null,null,null,null,null,null,null,324.03115481000691,532.72178031719704]
[216,2033,4,211.69016637102087,410.77664646575477,null,null,null,null,null,null,null,null,null,null,null,null,null,null,null,null,null,null,null,null,null,null,null,323.64685726893424,532.21697282708681]
[217,2034,1,63.052089584711979,194.1690068680646,null,null,null,null,null,null,null,null,null,null,null,null,null,null,null,null,null,null,null,null,null,null,null,323.26255972786157,531.71216533697657]
[218,2034,2,431.50453134753462,676.21353217145281,null,null,null,null,null,null,null,null,null,null,null,null,null,null,null,null,null,null,null,null,null,null,null,322.8782621867889,531.20735784686633]
[219,2034,3,589.55357727377873,849.6042402669608,null,null,null,null,null,null,null,null,null,null,null,null,null,null,null,null,null,null,null,null,null,null,null,322.49396464571618,530.70255035675609]
[220,2034,4,210.6847246856959,409.21816082185069,null,null,null,null,null,null,null,null,null,null,null,null,null,null,null,null,null,null,null,null,null,null,null,322.10966710464351,530.19774286664585]
[221,2035,1,62.752261939873698,193.43163070551512,null,null,null,null,null,null,null,null,null,null,null,null,null,null,null,null,null,null,null,null,null,null,null,321.72536956357084,529.69293537653562]
[222,2035,2,429.45018269940363,673.64310349864468,null,null,null,null,null,null,null,null,null,null,null,null,null,null,null,null,null,null,null,null,null,null,null,321.34107202249817,529.18812788642538]
[223,2035,3,586.74342868292604,846.37164540697484,null,null,null,null,null,null,null,null,null,null,null,null,null,null,null,null,null,null,null,null,null,null,null,320.95677448142544,528.68332039631514]
[224,2035,4,209.67928300037093,407.65967517794661,null,null,null,null,null,null,null,null,null,null,null,null,null,null,null,null,null,null,null,null,null,null,null,320.57247694035277,528.1785129062049]
[225,2036,1,62.452434295035424,192.69425454296561,null,null,null,null,null,null,null,null,null,null,null,null,null,null,null,null,null,null,null,null,null,null,null,320.1881793992801,527.67370541609466]
[226,2036,2,427.39583405127263,671.07267482583666,null,null,null,null,null,null,null,null,null,null,null,null,null,null,null,null,null,null,null,null,null,null,null,319.80388185820743,527.16889792598442]
[227,2036,3,583.93328009207335,843.13905054698876,null,null,null,null,null,null,null,null,null,null,null,null,null,null,null,null,null,null,null,null,null,null,null,319.41958431713476,526.66409043587419]
[228,2036,4,208.67384131504602,406.10118953404248,null,null,null,null,null,null,null,null,null,null,null,null,null,null,null,null,null,null,null,null,null,null,null,319.03528677606209,526.15928294576395]
[229,2037,1,62.15260665019715,191.95687838041613,null,null,null,null,null,null,null,null,null,null,null,null,null,null,null,null,null,null,null,null,null,null,null,{"$f":"$W$5+$V$5*A231","v":318.65098923498937},{"$f":"$Z$5+$Y$5*A231","v":525.65447545565371}]
[230,2037,2,425.34148540314163,668.50224615302864,null,null,null,null,null,null,null,null,null,null,null,null,null,null,null,null,null,null,null,null,null,null,null,318.2666916939167,525.14966796554347]
[231,2037,3,581.12313150122066,839.90645568700279,null,null,null,null,null,null,null,null,null,null,null,null,null,null,null,null,null,null,null,null,null,null,null,317.88239415284403,524.64486047543323]
[232,2037,4,{"$f":"AC234*INDEX(X$10:X$13,MATCH($C234,$W$10:$W$13,0))","v":207.66839962972108},{"$f":"AD234*INDEX(Y$10:Y$13,MATCH($C234,$W$10:$W$13,0))","v":404.5427038901384},null,null,null,null,null,null,null,null,null,null,null,null,null,null,null,null,null,null,null,null,null,null,null,317.49809661177136,524.140052985323]
[233,2038,1,61.852779005358869,191.21950221786662,null,null,null,null,null,null,null,null,null,null,null,null,null,null,null,null,null,null,null,null,null,null,null,317.11379907069863,523.63524549521276]
[234,{"$f":"B232+1","v":2038},{"$f":"C232","v":2},423.28713675501064,665.9318174802205,null,null,null,null,null,null,null,null,null,null,null,null,null,null,null,null,null,null,null,null,null,null,null,316.72950152962596,523.13043800510252]
[235,2038,3,578.31298291036785,836.67386082701671,null,null,null,null,null,null,null,null,null,null,null,null,null,null,null,null,null,null,null,null,null,null,null,316.34520398855329,522.62563051499228]
[236,2038,4,206.66295794439611,402.98421824623426,null,null,null,null,null,null,null,null,null,null,null,null,null,null,null,null,null,null,null,null,null,null,null,315.96090644748062,522.12082302488204]
[237,2039,1,61.552951360520602,190.48212605531714,null,null,null,null,null,null,null,null,null,null,null,null,null,null,null,null,null,null,null,null,null,null,null,315.57660890640796,521.6160155347718]
[238,2039,2,421.23278810687975,663.36138880741248,null,null,null,null,null,null,null,null,null,null,null,null,null,null,null,null,null,null,null,null,null,null,null,315.19231136533529,521.11120804466157]
[239,2039,3,575.50283431951516,833.44126596703074,null,null,null,null,null,null,null,null,null,null,null,null,null,null,null,null,null,null,null,null,null,null,null,314.80801382426256,520.60640055455133]
[240,2039,4,205.65751625907117,401.42573260233019,null,null,null,null,null,null,null,null,null,null,null,null,null,null,null,null,null,null,null,null,null,null,null,314.42371628318989,520.10159306444109]
[241,2040,1,61.253123715682328,189.74474989276763,null,null,null,null,null,null,null,null,null,null,null,null,null,null,null,null,null,null,null,null,null,null,null,314.03941874211722,519.59678557433085]
[242,2040,2,419.1784394587487,660.79096013460435,null,null,null,null,null,null,null,null,null,null,null,null,null,null,null,null,null,null,null,null,null,null,null,313.65512120104449,519.09197808422061]
[243,2040,3,572.69268572866247,830.20867110704467,null,null,null,null,null,null,null,null,null,null,null,null,null,null,null,null,null,null,null,null,null,null,null,313.27082365997182,518.58717059411038]
[244,2040,4,204.65207457374621,399.86724695842611,null,null,null,null,null,null,null,null,null,null,null,null,null,null,null,null,null,null,null,null,null,null,null,312.88652611889916,518.08236310400014]
[245,2041,1,60.953296070844054,189.00737373021815,null,null,null,null,null,null,null,null,null,null,null,null,null,null,null,null,null,null,null,null,null,null,null,312.50222857782649,517.5775556138899]
[246,2041,2,417.12409081061776,658.22053146179633,null,null,null,null,null,null,null,null,null,null,null,null,null,null,null,null,null,null,null,null,null,null,null,312.11793103675382,517.07274812377966]
[247,2041,3,569.88253713780978,826.9760762470587,null,null,null,null,null,null,null,null,null,null,null,null,null,null,null,null,null,null,null,null,null,null,null,311.73363349568115,516.56794063366942]
[248,2041,4,203.64663288842129,398.30876131452197,null,null,null,null,null,null,null,null,null,null,null,null,null,null,null,null,null,null,null,null,null,null,null,311.34933595460848,516.06313314355918]
[249,2042,1,60.653468426005773,188.26999756766867,null,null,null,null,null,null,null,null,null,null,null,null,null,null,null,null,null,null,null,null,null,null,null,310.96503841353575,515.55832565344895]
[250,2042,2,415.06974216248676,655.65010278898831,null,null,null,null,null,null,null,null,null,null,null,null,null,null,null,null,null,null,null,null,null,null,null,310.58074087246308,515.05351816333871]
[251,2042,3,567.07238854695709,823.74348138707262,null,null,null,null,null,null,null,null,null,null,null,null,null,null,null,null,null,null,null,null,null,null,null,310.19644333139041,514.54871067322847]
[252,2042,4,202.6411912030963,396.7502756706179,null,null,null,null,null,null,null,null,null,null,null,null,null,null,null,null,null,null,null,null,null,null,null,309.81214579031769,514.04390318311823]
[253,2043,1,60.353640781167499,187.53262140511916,null,null,null,null,null,null,null,null,null,null,null,null,null,null,null,null,null,null,null,null,null,null,null,309.42784824924502,513.53909569300799]
[254,2043,2,413.01539351435576,653.07967411618017,null,null,null,null,null,null,null,null,null,null,null,null,null,null,null,null,null,null,null,null,null,null,null,309.04355070817235,513.03428820289776]
[255,2043,3,564.26223995610439,820.51088652708665,null,null,null,null,null,null,null,null,null,null,null,null,null,null,null,null,null,null,null,null,null,null,null,308.65925316709968,512.52948071278752]
[256,2043,4,201.63574951777139,395.19179002671376,null,null,null,null,null,null,null,null,null,null,null,null,null,null,null,null,null,null,null,null,null,null,null,308.27495562602701,512.02467322267728]
[257,2044,1,60.053813136329232,186.79524524256968,null,null,null,null,null,null,null,null,null,null,null,null,null,null,null,null,null,null,null,null,null,null,null,307.89065808495434,511.51986573256704]
[258,2044,2,410.96104486622477,650.50924544337215,null,null,null,null,null,null,null,null,null,null,null,null,null,null,null,null,null,null,null,null,null,null,null,307.50636054388161,511.0150582424568]
[{"$f":"A260+1","v":259},2044,3,561.45209136525159,817.27829166710069,null,null,null,null,null,null,null,null,null,null,null,null,null,null,null,null,null,null,null,null,null,null,null,307.12206300280894,510.51025075234656]
[260,2044,4,200.63030783244642,393.63330438280968,null,null,null,null,null,null,null,null,null,null,null,null,null,null,null,null,null,null,null,null,null,null,null,306.73776546173627,510.00544326223633]
[261,2045,1,59.753985491490951,186.05786908002017,null,null,null,null,null,null,null,null,null,null,null,null,null,null,null,null,null,null,null,null,null,null,null,306.3534679206636,509.50063577212609]
[262,2045,2,408.90669621809383,647.93881677056402,null,null,null,null,null,null,null,null,null,null,null,null,null,null,null,null,null,null,null,null,null,null,null,305.96917037959088,508.99582828201585]
[263,2045,3,558.6419427743989,814.04569680711461,null,null,null,null,null,null,null,null,null,null,null,null,null,null,null,null,null,null,null,null,null,null,null,305.58487283851821,508.49102079190561]
[264,2045,4,199.62486614712145,392.07481873890561,null,null,null,null,null,null,null,null,null,null,null,null,null,null,null,null,null,null,null,null,null,null,null,305.20057529744554,507.98621330179537]
[265,2046,1,59.454157846652677,185.32049291747069,null,null,null,null,null,null,null,null,null,null,null,null,null,null,null,null,null,null,null,null,null,null,null,304.81627775637287,507.48140581168514]
[266,2046,2,406.85234756996289,645.368388097756,null,null,null,null,null,null,null,null,null,null,null,null,null,null,null,null,null,null,null,null,null,null,null,304.4319802153002,506.9765983215749]
[267,2046,3,555.83179418354621,810.81310194712864,null,null,null,null,null,null,null,null,null,null,null,null,null,null,null,null,null,null,null,null,null,null,null,304.04768267422753,506.47179083146466]
[268,2046,4,198.61942446179651,390.51633309500147,null,null,null,null,null,null,null,null,null,null,null,null,null,null,null,null,null,null,null,null,null,null,null,303.6633851331548,505.96698334135442]
[269,2047,1,59.154330201814403,184.58311675492121,null,null,null,null,null,null,null,null,null,null,null,null,null,null,null,null,null,null,null,null,null,null,null,303.27908759208213,505.46217585124418]
[270,2047,2,404.79799892183189,642.79795942494798,null,null,null,null,null,null,null,null,null,null,null,null,null,null,null,null,null,null,null,null,null,null,null,302.89479005100947,504.95736836113394]
[271,2047,3,553.02164559269352,807.58050708714256,null,null,null,null,null,null,null,null,null,null,null,null,null,null,null,null,null,null,null,null,null,null,null,302.5104925099368,504.45256087102371]
[272,2047,4,197.61398277647154,388.95784745109739,null,null,null,null,null,null,null,null,null,null,null,null,null,null,null,null,null,null,null,null,null,null,null,302.12619496886407,503.94775338091347]
[273,2048,1,58.854502556976122,183.8457405923717,null,null,null,null,null,null,null,null,null,null,null,null,null,null,null,null,null,null,null,null,null,null,null,301.7418974277914,503.44294589080323]
[274,2048,2,402.74365027370089,640.22753075213984,null,null,null,null,null,null,null,null,null,null,null,null,null,null,null,null,null,null,null,null,null,null,null,301.35759988671873,502.93813840069299]
[275,2048,3,550.21149700184083,804.3479122271566,null,null,null,null,null,null,null,null,null,null,null,null,null,null,null,null,null,null,null,null,null,null,null,300.97330234564606,502.43333091058275]
[276,2048,4,196.60854109114663,387.39936180719326,null,null,null,null,null,null,null,null,null,null,null,null,null,null,null,null,null,null,null,null,null,null,null,300.58900480457339,501.92852342047252]
[277,2049,1,58.554674912137855,183.10836442982222,null,null,null,null,null,null,null,null,null,null,null,null,null,null,null,null,null,null,null,null,null,null,null,300.20470726350072,501.42371593036228]
[278,2049,2,400.6893016255699,637.65710207933182,null,null,null,null,null,null,null,null,null,null,null,null,null,null,null,null,null,null,null,null,null,null,null,299.820409722428,500.91890844025204]
[279,2049,3,547.40134841098802,801.11531736717052,null,null,null,null,null,null,null,null,null,null,null,null,null,null,null,null,null,null,null,null,null,null,null,299.43611218135533,500.4141009501418]
[280,2049,4,195.60309940582169,385.84087616328918,null,null,null,null,null,null,null,null,null,null,null,null,null,null,null,null,null,null,null,null,null,null,null,299.05181464028266,499.90929346003156]
[281,2050,1,58.254847267299581,182.37098826727271,null,null,null,null,null,null,null,null,null,null,null,null,null,null,null,null,null,null,null,null,null,null,null,298.66751709920999,499.40448596992132]
[282,2050,2,398.6349529774389,635.0866734065238,null,null,null,null,null,null,null,null,null,null,null,null,null,null,null,null,null,null,null,null,null,null,null,298.28321955813726,498.89967847981109]
[283,2050,3,544.59119982013533,797.88272250718455,null,null,null,null,null,null,null,null,null,null,null,null,null,null,null,null,null,null,null,null,null,null,null,297.89892201706459,498.39487098970085]
[284,2050,4,194.59765772049673,384.2823905193851,null,null,null,null,null,null,null,null,null,null,null,null,null,null,null,null,null,null,null,null,null,null,null,297.51462447599192,497.89006349959061]
[285,2051,1,57.955019622461307,181.63361210472323,null,null,null,null,null,null,null,null,null,null,null,null,null,null,null,null,null,null,null,null,null,null,null,297.13032693491925,497.38525600948037]
[286,2051,2,396.58060432930802,632.51624473371567,null,null,null,null,null,null,null,null,null,null,null,null,null,null,null,null,null,null,null,null,null,null,null,296.74602939384658,496.88044851937013]
[287,2051,3,541.78105122928264,794.65012764719847,null,null,null,null,null,null,null,null,null,null,null,null,null,null,null,null,null,null,null,null,null,null,null,296.36173185277391,496.3756410292599]
[288,2051,4,193.59221603517176,382.72390487548097,null,null,null,null,null,null,null,null,null,null,null,null,null,null,null,null,null,null,null,null,null,null,null,295.97743431170119,495.87083353914966]
[289,2052,1,57.655191977623026,180.89623594217372,null,null,null,null,null,null,null,null,null,null,null,null,null,null,null,null,null,null,null,null,null,null,null,295.59313677062852,495.36602604903942]
[290,2052,2,394.52625568117702,629.94581606090765,null,null,null,null,null,null,null,null,null,null,null,null,null,null,null,null,null,null,null,null,null,null,null,295.20883922955585,494.86121855892918]
[291,2052,3,538.97090263842983,791.41753278721251,null,null,null,null,null,null,null,null,null,null,null,null,null,null,null,null,null,null,null,null,null,null,null,294.82454168848312,494.35641106881894]
[292,2052,4,192.58677434984682,381.16541923157689,null,null,null,null,null,null,null,null,null,null,null,null,null,null,null,null,null,null,null,null,null,null,null,294.44024414741045,493.8516035787087]
[293,2053,1,57.355364332784752,180.15885977962424,null,null,null,null,null,null,null,null,null,null,null,null,null,null,null,null,null,null,null,null,null,null,null,{"$f":"$W$5+$V$5*A295","v":294.05594660633778},{"$f":"$Z$5+$Y$5*A295","v":493.34679608859847}]
[294,2053,2,392.47190703304602,627.37538738809951,null,null,null,null,null,null,null,null,null,null,null,null,null,null,null,null,null,null,null,null,null,null,null,293.67164906526511,492.84198859848823]
[295,2053,3,536.16075404757726,788.18493792722643,null,null,null,null,null,null,null,null,null,null,null,null,null,null,null,null,null,null,null,null,null,null,null,293.28735152419245,492.33718110837799]
[296,2053,4,{"$f":"AC298*INDEX(X$10:X$13,MATCH($C298,$W$10:$W$13,0))","v":191.58133266452191},{"$f":"AD298*INDEX(Y$10:Y$13,MATCH($C298,$W$10:$W$13,0))","v":379.60693358767281},null,null,null,null,null,null,null,null,null,null,null,null,null,null,null,null,null,null,null,null,null,null,null,292.90305398311978,491.83237361826775]
[297,2054,1,57.055536687946486,179.42148361707476,null,null,null,null,null,null,null,null,null,null,null,null,null,null,null,null,null,null,null,null,null,null,null,292.51875644204711,491.32756612815751]
[298,{"$f":"B296+1","v":2054},{"$f":"C296","v":2},390.41755838491503,624.80495871529149,null,null,null,null,null,null,null,null,null,null,null,null,null,null,null,null,null,null,null,null,null,null,null,292.13445890097438,490.82275863804728]
[299,2054,3,533.35060545672445,784.95234306724046,null,null,null,null,null,null,null,null,null,null,null,null,null,null,null,null,null,null,null,null,null,null,null,291.75016135990171,490.31795114793704]
[300,2054,4,190.57589097919694,378.04844794376868,null,null,null,null,null,null,null,null,null,null,null,null,null,null,null,null,null,null,null,null,null,null,null,291.36586381882904,489.8131436578268]
[301,2055,1,56.755709043108197,178.68410745452525,null,null,null,null,null,null,null,null,null,null,null,null,null,null,null,null,null,null,null,null,null,null,null,290.98156627775631,489.30833616771656]
[302,2055,2,388.36320973678403,622.23453004248347,null,null,null,null,null,null,null,null,null,null,null,null,null,null,null,null,null,null,null,null,null,null,null,290.59726873668365,488.80352867760632]
[303,2055,3,530.54045686587176,781.71974820725438,null,null,null,null,null,null,null,null,null,null,null,null,null,null,null,null,null,null,null,null,null,null,null,290.21297119561098,488.29872118749608]
[304,2055,4,189.57044929387197,376.4899622998646,null,null,null,null,null,null,null,null,null,null,null,null,null,null,null,null,null,null,null,null,null,null,null,289.82867365453831,487.79391369738585]
[305,2056,1,56.455881398269931,177.94673129197577,null,null,null,null,null,null,null,null,null,null,null,null,null,null,null,null,null,null,null,null,null,null,null,289.44437611346564,487.28910620727561]
[306,2056,2,386.30886108865315,619.66410136967534,null,null,null,null,null,null,null,null,null,null,null,null,null,null,null,null,null,null,null,null,null,null,null,289.06007857239297,486.78429871716537]
[307,2056,3,527.73030827501907,778.48715334726842,null,null,null,null,null,null,null,null,null,null,null,null,null,null,null,null,null,null,null,null,null,null,null,288.67578103132024,486.27949122705513]
[308,2056,4,188.56500760854703,374.93147665596047,null,null,null,null,null,null,null,null,null,null,null,null,null,null,null,null,null,null,null,null,null,null,null,288.29148349024757,485.77468373694489]
[309,2057,1,56.156053753431657,177.20935512942626,null,null,null,null,null,null,null,null,null,null,null,null,null,null,null,null,null,null,null,null,null,null,null,287.9071859491749,485.26987624683466]
[310,2057,2,384.25451244052215,617.09367269686732,null,null,null,null,null,null,null,null,null,null,null,null,null,null,null,null,null,null,null,null,null,null,null,287.52288840810223,484.76506875672442]
[311,2057,3,524.92015968416626,775.25455848728234,null,null,null,null,null,null,null,null,null,null,null,null,null,null,null,null,null,null,null,null,null,null,null,287.13859086702951,484.26026126661418]
[312,2057,4,187.55956592322207,373.37299101205639,null,null,null,null,null,null,null,null,null,null,null,null,null,null,null,null,null,null,null,null,null,null,null,286.75429332595684,483.75545377650394]
[313,2058,1,55.856226108593376,176.47197896687678,null,null,null,null,null,null,null,null,null,null,null,null,null,null,null,null,null,null,null,null,null,null,null,286.36999578488417,483.2506462863937]
[314,2058,2,382.20016379239115,614.52324402405918,null,null,null,null,null,null,null,null,null,null,null,null,null,null,null,null,null,null,null,null,null,null,null,285.9856982438115,482.74583879628346]
[315,2058,3,522.11001109331369,772.02196362729637,null,null,null,null,null,null,null,null,null,null,null,null,null,null,null,null,null,null,null,null,null,null,null,285.60140070273883,482.24103130617323]
[316,2058,4,186.55412423789716,371.81450536815231,null,null,null,null,null,null,null,null,null,null,null,null,null,null,null,null,null,null,null,null,null,null,null,285.21710316166616,481.73622381606299]
[317,2059,1,55.556398463755102,175.7346028043273,null,null,null,null,null,null,null,null,null,null,null,null,null,null,null,null,null,null,null,null,null,null,null,284.83280562059343,481.23141632595275]
[318,2059,2,380.14581514426015,611.95281535125116,null,null,null,null,null,null,null,null,null,null,null,null,null,null,null,null,null,null,null,null,null,null,null,284.44850807952076,480.72660883584251]
[319,2059,3,519.29986250246088,768.78936876731041,null,null,null,null,null,null,null,null,null,null,null,null,null,null,null,null,null,null,null,null,null,null,null,284.06421053844809,480.22180134573227]
[320,2059,4,185.54868255257222,370.25601972424818,null,null,null,null,null,null,null,null,null,null,null,null,null,null,null,null,null,null,null,null,null,null,null,283.67991299737542,479.71699385562204]
[321,2060,1,55.256570818916828,174.99722664177779,null,null,null,null,null,null,null,null,null,null,null,null,null,null,null,null,null,null,null,null,null,null,null,283.2956154563027,479.2121863655118]
[322,2060,2,378.09146649612916,609.38238667844314,null,null,null,null,null,null,null,null,null,null,null,null,null,null,null,null,null,null,null,null,null,null,null,282.91131791523003,478.70737887540156]
[{"$f":"A324+1","v":323},2060,3,516.48971391160819,765.55677390732433,null,null,null,null,null,null,null,null,null,null,null,null,null,null,null,null,null,null,null,null,null,null,null,282.52702037415736,478.20257138529132]
[324,2060,4,184.54324086724725,368.6975340803441,null,null,null,null,null,null,null,null,null,null,null,null,null,null,null,null,null,null,null,null,null,null,null,282.14272283308469,477.69776389518108]
[325,2061,1,54.956743174078561,174.25985047922831,null,null,null,null,null,null,null,null,null,null,null,null,null,null,null,null,null,null,null,null,null,null,null,281.75842529201202,477.19295640507084]
[326,2061,2,376.03711784799827,606.81195800563501,null,null,null,null,null,null,null,null,null,null,null,null,null,null,null,null,null,null,null,null,null,null,null,281.37412775093935,476.68814891496061]
[327,2061,3,513.6795653207555,762.32417904733836,null,null,null,null,null,null,null,null,null,null,null,null,null,null,null,null,null,null,null,null,null,null,null,280.98983020986662,476.18334142485037]
[328,2061,4,183.53779918192228,367.13904843643996,null,null,null,null,null,null,null,null,null,null,null,null,null,null,null,null,null,null,null,null,null,null,null,280.60553266879396,475.67853393474013]
[329,2062,1,54.65691552924028,173.5224743166788,null,null,null,null,null,null,null,null,null,null,null,null,null,null,null,null,null,null,null,null,null,null,null,280.22123512772129,475.17372644462989]
[330,2062,2,373.98276919986728,604.24152933282699,null,null,null,null,null,null,null,null,null,null,null,null,null,null,null,null,null,null,null,null,null,null,null,279.83693758664862,474.66891895451965]
[331,2062,3,510.86941672990275,759.09158418735228,null,null,null,null,null,null,null,null,null,null,null,null,null,null,null,null,null,null,null,null,null,null,null,279.45264004557589,474.16411146440942]
[332,2062,4,182.53235749659734,365.58056279253589,null,null,null,null,null,null,null,null,null,null,null,null,null,null,null,null,null,null,null,null,null,null,null,279.06834250450322,473.65930397429918]
[333,2063,1,54.357087884402006,172.78509815412932,null,null,null,null,null,null,null,null,null,null,null,null,null,null,null,null,null,null,null,null,null,null,null,278.68404496343055,473.15449648418894]
[334,2063,2,371.92842055173628,601.67110066001885,null,null,null,null,null,null,null,null,null,null,null,null,null,null,null,null,null,null,null,null,null,null,null,278.29974742235788,472.6496889940787]
[335,2063,3,508.05926813905012,755.85898932736632,null,null,null,null,null,null,null,null,null,null,null,null,null,null,null,null,null,null,null,null,null,null,null,277.91544988128521,472.14488150396846]
[336,2063,4,181.52691581127243,364.02207714863181,null,null,null,null,null,null,null,null,null,null,null,null,null,null,null,null,null,null,null,null,null,null,null,277.53115234021254,471.64007401385823]
[337,2064,1,54.057260239563732,172.04772199157981,null,null,null,null,null,null,null,null,null,null,null,null,null,null,null,null,null,null,null,null,null,null,null,277.14685479913982,471.13526652374799]
[338,2064,2,369.87407190360528,599.10067198721083,null,null,null,null,null,null,null,null,null,null,null,null,null,null,null,null,null,null,null,null,null,null,null,276.76255725806715,470.63045903363775]
[339,2064,3,505.24911954819737,752.62639446738024,null,null,null,null,null,null,null,null,null,null,null,null,null,null,null,null,null,null,null,null,null,null,null,276.37825971699448,470.12565154352751]
[340,2064,4,180.52147412594744,362.46359150472767,null,null,null,null,null,null,null,null,null,null,null,null,null,null,null,null,null,null,null,null,null,null,null,275.99396217592175,469.62084405341727]
[341,2065,1,53.757432594725451,171.31034582903033,null,null,null,null,null,null,null,null,null,null,null,null,null,null,null,null,null,null,null,null,null,null,null,275.60966463484908,469.11603656330703]
[{"$f":"A343+1","v":342},2065,2,367.81972325547429,596.53024331440281,null,null,null,null,null,null,null,null,null,null,null,null,null,null,null,null,null,null,null,null,null,null,null,275.22536709377641,468.6112290731968]
[{"$f":"A344+1","v":343},2065,3,502.43897095734462,749.39379960739427,null,null,null,null,null,null,null,null,null,null,null,null,null,null,null,null,null,null,null,null,null,null,null,274.84106955270374,468.10642158308656]
[344,2065,4,179.5160324406225,360.9051058608236,null,null,null,null,null,null,null,null,null,null,null,null,null,null,null,null,null,null,null,null,null,null,null,274.45677201163107,467.60161409297632]
[345,2066,1,53.457604949887184,170.57296966648084,null,null,null,null,null,null,null,null,null,null,null,null,null,null,null,null,null,null,null,null,null,null,null,274.0724744705584,467.09680660286608]
[346,2066,2,365.7653746073434,593.95981464159468,null,null,null,null,null,null,null,null,null,null,null,null,null,null,null,null,null,null,null,null,null,null,null,273.68817692948573,466.59199911275584]
[347,2066,3,499.62882236649193,746.16120474740819,null,null,null,null,null,null,null,null,null,null,null,null,null,null,null,null,null,null,null,null,null,null,null,273.30387938841301,466.08719162264561]
[348,2066,4,178.51059075529756,359.34662021691946,null,null,null,null,null,null,null,null,null,null,null,null,null,null,null,null,null,null,null,null,null,null,null,272.91958184734034,465.58238413253537]
[349,2067,1,53.15777730504891,169.83559350393134,null,null,null,null,null,null,null,null,null,null,null,null,null,null,null,null,null,null,null,null,null,null,null,272.53528430626767,465.07757664242513]
[350,2067,2,363.71102595921229,591.38938596878666,null,null,null,null,null,null,null,null,null,null,null,null,null,null,null,null,null,null,null,null,null,null,null,272.15098676519494,464.57276915231489]
[351,2067,3,496.81867377563918,742.92860988742223,null,null,null,null,null,null,null,null,null,null,null,null,null,null,null,null,null,null,null,null,null,null,null,271.76668922412227,464.06796166220465]
[352,2067,4,177.50514906997259,357.78813457301538,null,null,null,null,null,null,null,null,null,null,null,null,null,null,null,null,null,null,null,null,null,null,null,271.3823916830496,463.56315417209441]
[353,2068,1,52.857949660210629,169.09821734138185,null,null,null,null,null,null,null,null,null,null,null,null,null,null,null,null,null,null,null,null,null,null,null,270.99809414197694,463.05834668198418]
[354,2068,2,361.65667731108141,588.81895729597852,null,null,null,null,null,null,null,null,null,null,null,null,null,null,null,null,null,null,null,null,null,null,null,270.61379660090427,462.55353919187394]
[355,2068,3,494.00852518478655,739.69601502743615,null,null,null,null,null,null,null,null,null,null,null,null,null,null,null,null,null,null,null,null,null,null,null,270.2294990598316,462.0487317017637]
[356,2068,4,176.49970738464768,356.22964892911131,null,null,null,null,null,null,null,null,null,null,null,null,null,null,null,null,null,null,null,null,null,null,null,269.84520151875893,461.54392421165346]
[357,2069,1,52.558122015372355,168.36084117883235,null,null,null,null,null,null,null,null,null,null,null,null,null,null,null,null,null,null,null,null,null,null,null,{"$f":"$W$5+$V$5*A359","v":269.4609039776862},{"$f":"$Z$5+$Y$5*A359","v":461.03911672154322}]
[358,2069,2,359.60232866295041,586.2485286231705,null,null,null,null,null,null,null,null,null,null,null,null,null,null,null,null,null,null,null,null,null,null,null,269.07660643661353,460.53430923143299]
[359,2069,3,491.19837659393369,736.46342016745018,null,null,null,null,null,null,null,null,null,null,null,null,null,null,null,null,null,null,null,null,null,null,null,268.6923088955408,460.02950174132275]
[360,2069,4,{"$f":"AC362*INDEX(X$10:X$13,MATCH($C362,$W$10:$W$13,0))","v":175.49426569932268},{"$f":"AD362*INDEX(Y$10:Y$13,MATCH($C362,$W$10:$W$13,0))","v":354.67116328520717},null,null,null,null,null,null,null,null,null,null,null,null,null,null,null,null,null,null,null,null,null,null,null,268.30801135446814,459.52469425121251]
[361,2070,1,52.258294370534081,167.62346501628286,null,null,null,null,null,null,null,null,null,null,null,null,null,null,null,null,null,null,null,null,null,null,null,267.92371381339547,459.01988676110227]
[362,{"$f":"B360+1","v":2070},{"$f":"C360","v":2},357.54798001481942,583.67809995036248,null,null,null,null,null,null,null,null,null,null,null,null,null,null,null,null,null,null,null,null,null,null,null,267.5394162723228,458.51507927099203]
[363,2070,3,488.38822800308111,733.2308253074641,null,null,null,null,null,null,null,null,null,null,null,null,null,null,null,null,null,null,null,null,null,null,null,267.15511873125013,458.01027178088179]
[364,2070,4,174.48882401399777,353.11267764130309,null,null,null,null,null,null,null,null,null,null,null,null,null,null,null,null,null,null,null,null,null,null,null,266.77082119017746,457.50546429077156]
[365,2071,1,51.958466725695814,166.88608885373338,null,null,null,null,null,null,null,null,null,null,null,null,null,null,null,null,null,null,null,null,null,null,null,266.38652364910479,457.00065680066132]
[366,2071,2,355.49363136668853,581.10767127755435,null,null,null,null,null,null,null,null,null,null,null,null,null,null,null,null,null,null,null,null,null,null,null,266.00222610803212,456.49584931055108]
[367,2071,3,485.57807941222836,729.99823044747814,null,null,null,null,null,null,null,null,null,null,null,null,null,null,null,null,null,null,null,null,null,null,null,265.61792856695939,455.99104182044084]
[368,2071,4,173.4833823286728,351.55419199739896,null,null,null,null,null,null,null,null,null,null,null,null,null,null,null,null,null,null,null,null,null,null,null,265.23363102588672,455.4862343303306]
[369,2072,1,51.658639080857526,166.14871269118387,null,null,null,null,null,null,null,null,null,null,null,null,null,null,null,null,null,null,null,null,null,null,null,264.849333484814,454.98142684022037]
[370,2072,2,353.43928271855742,578.53724260474633,null,null,null,null,null,null,null,null,null,null,null,null,null,null,null,null,null,null,null,null,null,null,null,264.46503594374133,454.47661935011013]
[371,2072,3,482.76793082137561,726.76563558749206,null,null,null,null,null,null,null,null,null,null,null,null,null,null,null,null,null,null,null,null,null,null,null,264.08073840266866,453.97181185999989]
[372,2072,4,172.47794064334786,349.99570635349488,null,null,null,null,null,null,null,null,null,null,null,null,null,null,null,null,null,null,null,null,null,null,null,263.69644086159599,453.46700436988965]
[373,2073,1,51.358811436019259,165.41133652863439,null,null,null,null,null,null,null,null,null,null,null,null,null,null,null,null,null,null,null,null,null,null,null,263.31214332052332,452.96219687977941]
[374,2073,2,351.38493407042654,575.9668139319383,null,null,null,null,null,null,null,null,null,null,null,null,null,null,null,null,null,null,null,null,null,null,null,262.92784577945065,452.45738938966917]
[375,2073,3,479.95778223052298,723.53304072750609,null,null,null,null,null,null,null,null,null,null,null,null,null,null,null,null,null,null,null,null,null,null,null,262.54354823837798,451.95258189955894]
[376,2073,4,171.47249895802295,348.4372207095908,null,null,null,null,null,null,null,null,null,null,null,null,null,null,null,null,null,null,null,null,null,null,null,262.15925069730531,451.4477744094487]
[377,2074,1,51.058983791180985,164.67396036608488,null,null,null,null,null,null,null,null,null,null,null,null,null,null,null,null,null,null,null,null,null,null,null,261.77495315623258,450.94296691933846]
[378,2074,2,349.33058542229554,573.39638525913017,null,null,null,null,null,null,null,null,null,null,null,null,null,null,null,null,null,null,null,null,null,null,null,261.39065561515991,450.43815942922822]
[379,2074,3,477.14763363967018,720.30044586752012,null,null,null,null,null,null,null,null,null,null,null,null,null,null,null,null,null,null,null,null,null,null,null,261.00635807408719,449.93335193911798]
[380,2074,4,170.46705727269796,346.87873506568667,null,null,null,null,null,null,null,null,null,null,null,null,null,null,null,null,null,null,null,null,null,null,null,260.62206053301452,449.42854444900775]
[381,2075,1,50.759156146342704,163.9365842035354,null,null,null,null,null,null,null,null,null,null,null,null,null,null,null,null,null,null,null,null,null,null,null,260.23776299194185,448.92373695889751]
[382,2075,2,347.27623677416454,570.82595658632215,null,null,null,null,null,null,null,null,null,null,null,null,null,null,null,null,null,null,null,null,null,null,null,259.85346545086918,448.41892946878727]
[383,2075,3,474.33748504881754,717.06785100753405,null,null,null,null,null,null,null,null,null,null,null,null,null,null,null,null,null,null,null,null,null,null,null,259.46916790979651,447.91412197867703]
[384,2075,4,169.46161558737302,345.32024942178259,null,null,null,null,null,null,null,null,null,null,null,null,null,null,null,null,null,null,null,null,null,null,null,259.08487036872384,447.40931448856679]
[385,2076,1,50.459328501504437,163.19920804098589,null,null,null,null,null,null,null,null,null,null,null,null,null,null,null,null,null,null,null,null,null,null,null,258.70057282765117,446.90450699845655]
[386,2076,2,345.22188812603355,568.25552791351402,null,null,null,null,null,null,null,null,null,null,null,null,null,null,null,null,null,null,null,null,null,null,null,258.31627528657845,446.39969950834632]
[387,2076,3,471.52733645796479,713.83525614754808,null,null,null,null,null,null,null,null,null,null,null,null,null,null,null,null,null,null,null,null,null,null,null,257.93197774550578,445.89489201823608]
[388,2076,4,168.45617390204808,343.76176377787851,null,null,null,null,null,null,null,null,null,null,null,null,null,null,null,null,null,null,null,null,null,null,null,257.54768020443311,445.39008452812584]
[389,2077,1,50.159500856666149,162.46183187843641,null,null,null,null,null,null,null,null,null,null,null,null,null,null,null,null,null,null,null,null,null,null,null,257.16338266336038,444.8852770380156]
[390,2077,2,343.16753947790255,565.68509924070599,null,null,null,null,null,null,null,null,null,null,null,null,null,null,null,null,null,null,null,null,null,null,null,256.77908512228771,444.38046954790536]
[391,2077,3,468.71718786711205,710.602661287562,null,null,null,null,null,null,null,null,null,null,null,null,null,null,null,null,null,null,null,null,null,null,null,256.39478758121504,443.87566205779513]
[392,2077,4,167.45073221672311,342.20327813397438,null,null,null,null,null,null,null,null,null,null,null,null,null,null,null,null,null,null,null,null,null,null,null,256.01049004014237,443.37085456768489]
[393,2078,1,49.859673211827889,161.72445571588693,null,null,null,null,null,null,null,null,null,null,null,null,null,null,null,null,null,null,null,null,null,null,null,255.6261924990697,442.86604707757465]
[394,2078,2,341.11319082977161,563.11467056789797,null,null,null,null,null,null,null,null,null,null,null,null,null,null,null,null,null,null,null,null,null,null,null,255.241894957997,442.36123958746441]
[395,2078,3,465.90703927625935,707.37006642757603,null,null,null,null,null,null,null,null,null,null,null,null,null,null,null,null,null,null,null,null,null,null,null,254.85759741692434,441.85643209735417]
[396,2078,4,166.44529053139817,340.6447924900703,null,null,null,null,null,null,null,null,null,null,null,null,null,null,null,null,null,null,null,null,null,null,null,254.47329987585164,441.35162460724393]
[397,2079,1,49.559845566989608,160.98707955333742,null,null,null,null,null,null,null,null,null,null,null,null,null,null,null,null,null,null,null,null,null,null,null,254.08900233477897,440.8468171171337]
[398,2079,2,339.05884218164067,560.54424189508984,null,null,null,null,null,null,null,null,null,null,null,null,null,null,null,null,null,null,null,null,null,null,null,253.7047047937063,440.34200962702346]
[399,2079,3,463.09689068540666,704.13747156758996,null,null,null,null,null,null,null,null,null,null,null,null,null,null,null,null,null,null,null,null,null,null,null,253.3204072526336,439.83720213691322]
[400,2079,4,165.43984884607323,339.08630684616617,null,null,null,null,null,null,null,null,null,null,null,null,null,null,null,null,null,null,null,null,null,null,null,252.93610971156093,439.33239464680298]
[401,2080,1,49.260017922151334,160.24970339078794,null,null,null,null,null,null,null,null,null,null,null,null,null,null,null,null,null,null,null,null,null,null,null,252.55181217048823,438.82758715669274]
[402,2080,2,337.00449353350967,557.97381322228182,null,null,null,null,null,null,null,null,null,null,null,null,null,null,null,null,null,null,null,null,null,null,null,252.16751462941556,438.32277966658251]
[403,2080,3,460.28674209455392,700.90487670760399,null,null,null,null,null,null,null,null,null,null,null,null,null,null,null,null,null,null,null,null,null,null,null,251.78321708834287,437.81797217647227]
[404,2080,4,164.43440716074826,337.52782120226209,null,null,null,null,null,null,null,null,null,null,null,null,null,null,null,null,null,null,null,null,null,null,null,251.3989195472702,437.31316468636203]
[405,2081,1,48.96019027731306,159.51232722823843,null,null,null,null,null,null,null,null,null,null,null,null,null,null,null,null,null,null,null,null,null,null,null,251.01462200619753,436.80835719625179]
[406,2081,2,334.95014488537868,555.40338454947369,null,null,null,null,null,null,null,null,null,null,null,null,null,null,null,null,null,null,null,null,null,null,null,250.63032446512483,436.30354970614155]
[{"$f":"A408+1","v":407},2081,3,457.47659350370122,697.67228184761791,null,null,null,null,null,null,null,null,null,null,null,null,null,null,null,null,null,null,null,null,null,null,null,250.24602692405216,435.79874221603131]
[408,2081,4,163.42896547542333,335.96933555835801,null,null,null,null,null,null,null,null,null,null,null,null,null,null,null,null,null,null,null,null,null,null,null,249.86172938297946,435.29393472592108]
[409,2082,1,48.660362632474786,158.77495106568895,null,null,null,null,null,null,null,null,null,null,null,null,null,null,null,null,null,null,null,null,null,null,null,249.47743184190679,434.78912723581084]
[410,2082,2,332.89579623724774,552.83295587666566,null,null,null,null,null,null,null,null,null,null,null,null,null,null,null,null,null,null,null,null,null,null,null,249.09313430083412,434.2843197457006]
[411,2082,3,454.66644491284848,694.43968698763194,null,null,null,null,null,null,null,null,null,null,null,null,null,null,null,null,null,null,null,null,null,null,null,248.70883675976143,433.77951225559036]
[412,2082,4,162.42352379009839,334.41084991445388,null,null,null,null,null,null,null,null,null,null,null,null,null,null,null,null,null,null,null,null,null,null,null,248.32453921868876,433.27470476548012]
[413,2083,1,48.360534987636505,158.03757490313947,null,null,null,null,null,null,null,null,null,null,null,null,null,null,null,null,null,null,null,null,null,null,null,247.94024167761606,432.76989727536989]
[414,2083,2,330.84144758911674,550.26252720385764,null,null,null,null,null,null,null,null,null,null,null,null,null,null,null,null,null,null,null,null,null,null,null,247.55594413654339,432.26508978525965]
[415,2083,3,451.85629632199584,691.20709212764586,null,null,null,null,null,null,null,null,null,null,null,null,null,null,null,null,null,null,null,null,null,null,null,247.17164659547072,431.76028229514941]
[416,2083,4,161.41808210477342,332.8523642705498,null,null,null,null,null,null,null,null,null,null,null,null,null,null,null,null,null,null,null,null,null,null,null,246.78734905439802,431.25547480503917]
[417,2084,1,48.060707342798239,157.30019874058996,null,null,null,null,null,null,null,null,null,null,null,null,null,null,null,null,null,null,null,null,null,null,null,246.40305151332535,430.75066731492893]
[418,2084,2,328.78709894098574,547.69209853104951,null,null,null,null,null,null,null,null,null,null,null,null,null,null,null,null,null,null,null,null,null,null,null,246.01875397225265,430.24585982481869]
[419,2084,3,449.04614773114309,687.9744972676599,null,null,null,null,null,null,null,null,null,null,null,null,null,null,null,null,null,null,null,null,null,null,null,245.63445643117998,429.74105233470846]
[420,2084,4,160.41264041944848,331.29387862664566,null,null,null,null,null,null,null,null,null,null,null,null,null,null,null,null,null,null,null,null,null,null,null,245.25015889010731,429.23624484459822]
[421,2085,1,47.760879697959957,156.56282257804048,null,null,null,null,null,null,null,null,null,null,null,null,null,null,null,null,null,null,null,null,null,null,null,{"$f":"$W$5+$V$5*A423","v":244.86586134903462},{"$f":"$Z$5+$Y$5*A423","v":428.73143735448798}]
[422,2085,2,326.7327502928548,545.12166985824149,null,null,null,null,null,null,null,null,null,null,null,null,null,null,null,null,null,null,null,null,null,null,null,244.48156380796195,428.22662986437774]
[423,2085,3,446.23599914029035,684.74190240767382,null,null,null,null,null,null,null,null,null,null,null,null,null,null,null,null,null,null,null,null,null,null,null,244.09726626688925,427.7218223742675]
[424,2085,4,{"$f":"AC426*INDEX(X$10:X$13,MATCH($C426,$W$10:$W$13,0))","v":159.40719873412354},{"$f":"AD426*INDEX(Y$10:Y$13,MATCH($C426,$W$10:$W$13,0))","v":329.73539298274159},null,null,null,null,null,null,null,null,null,null,null,null,null,null,null,null,null,null,null,null,null,null,null,243.71296872581658,427.21701488415727]
[425,2086,1,47.461052053121691,155.82544641549097,null,null,null,null,null,null,null,null,null,null,null,null,null,null,null,null,null,null,null,null,null,null,null,243.32867118474391,426.71220739404703]
[426,{"$f":"B424+1","v":2086},{"$f":"C424","v":2},324.67840164472381,542.55124118543335,null,null,null,null,null,null,null,null,null,null,null,null,null,null,null,null,null,null,null,null,null,null,null,242.94437364367121,426.20739990393679]
[427,2086,3,443.42585054943765,681.50930754768785,null,null,null,null,null,null,null,null,null,null,null,null,null,null,null,null,null,null,null,null,null,null,null,242.56007610259854,425.70259241382655]
[428,2086,4,158.40175704879857,328.17690733883751,null,null,null,null,null,null,null,null,null,null,null,null,null,null,null,null,null,null,null,null,null,null,null,242.17577856152585,425.19778492371631]
[429,2087,1,47.16122440828341,155.08807025294149,null,null,null,null,null,null,null,null,null,null,null,null,null,null,null,null,null,null,null,null,null,null,null,241.79148102045318,424.69297743360607]
[430,2087,2,322.62405299659281,539.98081251262533,null,null,null,null,null,null,null,null,null,null,null,null,null,null,null,null,null,null,null,null,null,null,null,241.40718347938048,424.18816994349584]
[431,2087,3,440.61570195858496,678.27671268770177,null,null,null,null,null,null,null,null,null,null,null,null,null,null,null,null,null,null,null,null,null,null,null,241.02288593830781,423.6833624533856]
[432,2087,4,157.39631536347363,326.61842169493337,null,null,null,null,null,null,null,null,null,null,null,null,null,null,null,null,null,null,null,null,null,null,null,240.63858839723514,423.17855496327536]
[433,2088,1,46.861396763445136,154.35069409039198,null,null,null,null,null,null,null,null,null,null,null,null,null,null,null,null,null,null,null,null,null,null,null,240.25429085616244,422.67374747316512]
[434,2088,2,320.56970434846187,537.41038383981731,null,null,null,null,null,null,null,null,null,null,null,null,null,null,null,null,null,null,null,null,null,null,null,239.86999331508977,422.16893998305488]
[435,2088,3,437.80555336773222,675.04411782771581,null,null,null,null,null,null,null,null,null,null,null,null,null,null,null,null,null,null,null,null,null,null,null,239.48569577401707,421.66413249294465]
[436,2088,4,156.39087367814869,325.0599360510293,null,null,null,null,null,null,null,null,null,null,null,null,null,null,null,null,null,null,null,null,null,null,null,239.1013982329444,421.15932500283441]
[437,2089,1,46.561569118606862,153.6133179278425,null,null,null,null,null,null,null,null,null,null,null,null,null,null,null,null,null,null,null,null,null,null,null,238.71710069187174,420.65451751272417]
[438,2089,2,318.51535570033087,534.83995516700918,null,null,null,null,null,null,null,null,null,null,null,null,null,null,null,null,null,null,null,null,null,null,null,238.33280315079904,420.14971002261393]
[439,2089,3,434.99540477687952,671.81152296772984,null,null,null,null,null,null,null,null,null,null,null,null,null,null,null,null,null,null,null,null,null,null,null,237.94850560972637,419.64490253250369]
[440,2089,4,155.38543199282373,323.50145040712516,null,null,null,null,null,null,null,null,null,null,null,null,null,null,null,null,null,null,null,null,null,null,null,237.56420806865367,419.14009504239345]
[441,2090,1,46.261741473768588,152.87594176529302,null,null,null,null,null,null,null,null,null,null,null,null,null,null,null,null,null,null,null,null,null,null,null,237.179910527581,418.63528755228322]
[442,2090,2,316.46100705219993,532.26952649420116,null,null,null,null,null,null,null,null,null,null,null,null,null,null,null,null,null,null,null,null,null,null,null,236.79561298650833,418.13048006217298]
[443,2090,3,432.18525618602678,668.57892810774376,null,null,null,null,null,null,null,null,null,null,null,null,null,null,null,null,null,null,null,null,null,null,null,236.41131544543563,417.62567257206274]
[444,2090,4,154.37999030749879,321.94296476322108,null,null,null,null,null,null,null,null,null,null,null,null,null,null,null,null,null,null,null,null,null,null,null,236.02701790436296,417.1208650819525]
[445,2091,1,45.961913828930314,152.13856560274351,null,null,null,null,null,null,null,null,null,null,null,null,null,null,null,null,null,null,null,null,null,null,null,235.64272036329027,416.61605759184226]
[446,2091,2,314.40665840406893,529.69909782139302,null,null,null,null,null,null,null,null,null,null,null,null,null,null,null,null,null,null,null,null,null,null,null,235.2584228222176,416.11125010173203]
[447,2091,3,429.37510759517414,665.3463332477578,null,null,null,null,null,null,null,null,null,null,null,null,null,null,null,null,null,null,null,null,null,null,null,234.87412528114493,415.60644261162179]
[448,2091,4,153.37454862217385,320.38447911931701,null,null,null,null,null,null,null,null,null,null,null,null,null,null,null,null,null,null,null,null,null,null,null,234.48982774007223,415.10163512151155]
[449,2092,1,45.66208618409204,151.40118944019403,null,null,null,null,null,null,null,null,null,null,null,null,null,null,null,null,null,null,null,null,null,null,null,234.10553019899956,414.59682763140131]
[450,2092,2,312.35230975593794,527.128669148585,null,null,null,null,null,null,null,null,null,null,null,null,null,null,null,null,null,null,null,null,null,null,null,233.72123265792686,414.09202014129107]
[451,2092,3,426.56495900432139,662.11373838777172,null,null,null,null,null,null,null,null,null,null,null,null,null,null,null,null,null,null,null,null,null,null,null,233.33693511685419,413.58721265118083]
[452,2092,4,152.36910693684888,318.82599347541287,null,null,null,null,null,null,null,null,null,null,null,null,null,null,null,null,null,null,null,null,null,null,null,232.95263757578149,413.0824051610706]
[453,2093,1,45.362258539253759,150.66381327764452,null,null,null,null,null,null,null,null,null,null,null,null,null,null,null,null,null,null,null,null,null,null,null,232.56834003470883,412.57759767096036]
[454,2093,2,310.297961107807,524.55824047577698,null,null,null,null,null,null,null,null,null,null,null,null,null,null,null,null,null,null,null,null,null,null,null,232.18404249363616,412.07279018085012]
[455,2093,3,423.75481041346865,658.88114352778575,null,null,null,null,null,null,null,null,null,null,null,null,null,null,null,null,null,null,null,null,null,null,null,231.79974495256346,411.56798269073988]
[456,2093,4,151.36366525152394,317.26750783150879,null,null,null,null,null,null,null,null,null,null,null,null,null,null,null,null,null,null,null,null,null,null,null,231.41544741149079,411.06317520062964]
[457,2094,1,45.062430894415485,149.92643711509504,null,null,null,null,null,null,null,null,null,null,null,null,null,null,null,null,null,null,null,null,null,null,null,231.03114987041809,410.55836771051941]
[458,2094,2,308.243612459676,521.98781180296885,null,null,null,null,null,null,null,null,null,null,null,null,null,null,null,null,null,null,null,null,null,null,null,230.64685232934542,410.05356022040917]
[459,2094,3,420.94466182261596,655.64854866779967,null,null,null,null,null,null,null,null,null,null,null,null,null,null,null,null,null,null,null,null,null,null,null,230.26255478827275,409.54875273029893]
[460,2094,4,150.358223566199,315.70902218760472,null,null,null,null,null,null,null,null,null,null,null,null,null,null,null,null,null,null,null,null,null,null,null,229.87825724720005,409.04394524018869]
[461,2095,1,44.762603249577211,149.18906095254556,null,null,null,null,null,null,null,null,null,null,null,null,null,null,null,null,null,null,null,null,null,null,null,229.49395970612738,408.53913775007845]
[462,2095,2,306.189263811545,519.41738313016083,null,null,null,null,null,null,null,null,null,null,null,null,null,null,null,null,null,null,null,null,null,null,null,229.10966216505469,408.03433025996821]
[463,2095,3,418.13451323176326,652.41595380781371,null,null,null,null,null,null,null,null,null,null,null,null,null,null,null,null,null,null,null,null,null,null,null,228.72536462398202,407.52952276985798]
[464,2095,4,149.35278188087406,314.15053654370058,null,null,null,null,null,null,null,null,null,null,null,null,null,null,null,null,null,null,null,null,null,null,null,228.34106708290935,407.02471527974774]
[465,2096,1,44.462775604738937,148.45168478999605,null,null,null,null,null,null,null,null,null,null,null,null,null,null,null,null,null,null,null,null,null,null,null,227.95676954183665,406.5199077896375]
[466,2096,2,304.13491516341406,516.84695445735281,null,null,null,null,null,null,null,null,null,null,null,null,null,null,null,null,null,null,null,null,null,null,null,227.57247200076398,406.01510029952726]
[467,2096,3,415.32436464091052,649.18335894782763,null,null,null,null,null,null,null,null,null,null,null,null,null,null,null,null,null,null,null,null,null,null,null,227.18817445969128,405.51029280941702]
[468,2096,4,148.34734019554909,312.5920508997965,null,null,null,null,null,null,null,null,null,null,null,null,null,null,null,null,null,null,null,null,null,null,null,226.80387691861861,405.00548531930679]
[469,2097,1,44.162947959900663,147.71430862744657,null,null,null,null,null,null,null,null,null,null,null,null,null,null,null,null,null,null,null,null,null,null,null,226.41957937754594,404.50067782919655]
[470,2097,2,302.08056651528307,514.27652578454479,null,null,null,null,null,null,null,null,null,null,null,null,null,null,null,null,null,null,null,null,null,null,null,226.03528183647325,403.99587033908637]
[{"$f":"A472+1","v":471},2097,3,412.51421605005783,645.95076408784178,null,null,null,null,null,null,null,null,null,null,null,null,null,null,null,null,null,null,null,null,null,null,null,225.65098429540058,403.49106284897613]
[472,2097,4,147.34189851022415,311.03356525589243,null,null,null,null,null,null,null,null,null,null,null,null,null,null,null,null,null,null,null,null,null,null,null,225.26668675432788,402.98625535886589]
[473,2098,1,43.863120315062389,146.97693246489709,null,null,null,null,null,null,null,null,null,null,null,null,null,null,null,null,null,null,null,null,null,null,null,224.88238921325521,402.48144786875565]
[474,2098,2,300.02621786715213,511.70609711173671,null,null,null,null,null,null,null,null,null,null,null,null,null,null,null,null,null,null,null,null,null,null,null,224.49809167218254,401.97664037864541]
[475,2098,3,409.70406745920508,642.7181692278557,null,null,null,null,null,null,null,null,null,null,null,null,null,null,null,null,null,null,null,null,null,null,null,224.11379413110984,401.47183288853518]
[476,2098,4,146.33645682489922,309.47507961198835,null,null,null,null,null,null,null,null,null,null,null,null,null,null,null,null,null,null,null,null,null,null,null,223.72949659003717,400.96702539842494]
[477,2099,1,43.563292670224115,146.23955630234761,null,null,null,null,null,null,null,null,null,null,null,null,null,null,null,null,null,null,null,null,null,null,null,223.34519904896447,400.4622179083147]
[478,2099,2,297.97186921902113,509.13566843892863,null,null,null,null,null,null,null,null,null,null,null,null,null,null,null,null,null,null,null,null,null,null,null,222.9609015078918,399.95741041820446]
[479,2099,3,406.89391886835239,639.48557436786973,null,null,null,null,null,null,null,null,null,null,null,null,null,null,null,null,null,null,null,null,null,null,null,222.57660396681911,399.45260292809422]
[{"$f":"A481+1","v":480},2099,4,145.33101513957425,307.91659396808421,null,null,null,null,null,null,null,null,null,null,null,null,null,null,null,null,null,null,null,null,null,null,null,222.19230642574644,398.94779543798398]
[481,2100,1,43.263465025385841,145.5021801397981,null,null,null,null,null,null,null,null,null,null,null,null,null,null,null,null,null,null,null,null,null,null,null,221.80800888467377,398.44298794787375]
[482,2100,2,295.91752057089013,506.56523976612056,null,null,null,null,null,null,null,null,null,null,null,null,null,null,null,null,null,null,null,null,null,null,null,221.42371134360107,397.93818045776351]
[483,2100,3,404.0837702774997,636.25297950788365,null,null,null,null,null,null,null,null,null,null,null,null,null,null,null,null,null,null,null,null,null,null,null,221.0394138025284,397.43337296765327]
[484,2100,4,{"$f":"AC486*INDEX(X$10:X$13,MATCH($C486,$W$10:$W$13,0))","v":144.32557345424931},{"$f":"AD486*INDEX(Y$10:Y$13,MATCH($C486,$W$10:$W$13,0))","v":306.35810832418014},null,null,null,null,null,null,null,null,null,null,null,null,null,null,null,null,null,null,null,null,null,null,null,220.6551162614557,396.92856547754303]

{"sheet":"Census","index":9,"n_rows":22,"n_cols":14,"rows_kept":22,"cut":false,"hidden":false,"merged":[]}
[null,2,{"$f":"B1+1","v":3},{"$f":"C1+1","v":4},5,6,7,8,9,10,11,12,13,14]
["LGA","English speakers","Median_age_persons","Median_mortgage_repay_monthly","Median_tot_prsnl_inc_weekly","Median_rent_weekly","Median_tot_fam_inc_weekly","Average_num_psns_per_bedroom","Median_tot_hhd_inc_weekly","Average_household_size","Sharehouses","Sharesemidetached","Shareflats","sharerenting"]
["Bass Coast (S)",0.87943543470308494,50,1315,507,250,1192,0.7,922,2.2000000000000002,0.48863682562914179,2.9027930235394562E-2,7.8058299792657642E-3,0.13505712078708787]
["Bayside (C)",0.80208472813043974,44,2500,897,450,2765,0.8,2145,2.6,0.56123695596843981,0.21216594553321455,0.10934079918554339,0.20565029269534232]
["Boroondara (C)",0.68101009980207017,38,2500,869,406,2652,0.9,2083,2.6,0.50601465223552111,0.18499201061231874,0.20534233772498417,0.27423196358045165]
["Cardinia (S)",0.8321222165561788,34,1733,680,320,1700,0.8,1497,2.8,0.84744241699072687,6.96978761591385E-2,4.098115465151062E-3,0.21181573437032605]
["Casey (C)",0.59229003578337525,34,1733,640,340,1655,0.9,1554,3.1,0.84233912155260471,8.4872318692543414E-2,9.8161389172625128E-3,0.20007150153217568]
["Frankston (C)",0.82464235927331275,38,1621,660,306,1649,0.8,1331,2.5,0.72969660960303018,0.15875078911210963,2.4935942664042483E-2,0.2646960525827175]
["Glen Eira (C)",0.63843123336291041,37,2143,780,390,2248,0.9,1741,2.5,0.46161630260311259,0.22089817851908716,0.22375950868867331,0.30808151301556286]
["Greater Dandenong (C)",0.29829003617231176,35,1600,475,300,1260,1,1168,2.9,0.6669738686327592,0.15548259508860857,0.10001344008601655,0.32540368258356855]
["Kingston (C)",0.68966041125841371,40,1993,704,351,1938,0.9,1537,2.5,0.54917630105132154,0.23567942881472506,0.12388235679428815,0.23253528968656864]
["Knox (C)",0.7104665498669781,39,1733,664,351,1820,0.8,1561,2.7,0.79322862129144855,0.11371727748691099,2.307155322862129E-2,0.18455497382198952]
["Manningham (C)",0.53614898283944779,43,2050,629,415,1895,0.8,1642,2.8,0.70344293298698934,0.14464419987695673,6.0792489803358628E-2,0.16966299815435096]
["Maroondah (C)",0.78839602812205556,38,1800,696,341,1895,0.8,1544,2.6,0.82562517430510363,7.8390815283071485E-2,2.1892721018871433E-2,0.22166961048619505]
["Melbourne (C)",0.40460727130973306,28,2000,642,450,2062,1.1000000000000001,1354,2,2.4830293857611676E-2,0.10868685657770519,0.71260096204276746,0.56331949710038509]
["Monash (C)",0.45418852467993298,37,2000,569,391,1809,0.9,1512,2.7,0.65761847188228006,0.14157647960838665,0.11453510660257733,0.27020730736339243]
["Nillumbik (S)",0.86759257748110918,41,2000,784,369,2307,0.8,2098,3,0.87845408793087076,3.2380590637166459E-2,2.4024309182413824E-2,8.9830025638590827E-2]
["Port Phillip (C)",0.6936041957903295,36,2167,1087,400,2559,1,1842,2,7.6053049585669719E-2,0.20599774175645416,0.5684266932042179,0.46716934912827973]
["South Gippsland (S)",0.88875727275894501,47,1300,537,214,1320,0.7,1039,2.4,0.6795824131700462,1.6663320618349728E-2,1.69979254500435E-2,0.13538111490329921]
["Stonnington (C)",0.69548886663071119,35,2200,1042,400,2680,1,1944,2.2000000000000002,0.2360339628630376,0.17983256625932392,0.44332248849388983,0.40888351055388034]
["Whitehorse (C)",0.5938005158010341,38,2000,619,376,1916,0.9,1507,2.6,0.62230181921010463,0.21839947214629088,7.2171426776007797E-2,0.25324410092060201]
["Yarra Ranges (S)",0.87972207547295989,40,1733,667,325,1770,0.8,1501,2.7,0.85704449152542372,4.6733757062146893E-2,4.2902542372881356E-3,0.13292725988700566]

{"sheet":"Households","index":10,"n_rows":97,"n_cols":92,"rows_kept":97,"cut":false,"hidden":false,"merged":[]}
[null,"Population estimates by Local Government Area, 2019 to 2020, ABS_ERP_LGA2020_110820211310519"]
[null,"Victoria in Future 2019 (VIF2019)"]
[null,"As at June 30",null,null,null,null,null,null,null,null,null,"Actual","Forecast"]
[null,null,2011,2012,{"$f":"D4+1","v":2013},{"$f":"E4+1","v":2014},2015,2016,2017,2018,2019,2020,2021,2022,2023,2024,2025,2026,2027,2028,2029,2030,2031,2032,2033,2034,2035,2036,2037,2038,2039,2040,2041,2042,2043,2044,2045,2046,2047,2048,2049,2050,2051,2052,2053,2054,2055,2056,2057,2058,2059,2060,2061,2062,2063,2064,2065,2066,2067,2068,2069,2070,2071,2072,2073,2074,2075,2076,2077,2078,2079,2080,2081,2082,2083,2084,2085,2086,2087,2088,2089,2090,2091,2092,2093,2094,2095,2096,2097,2098,2099,2100]
[null,"Bass Coast (S)",30233,30811,31331,31917,32576,33464,34386,35326,36315,37445,38339.808216192607,39037.393958018656,39747.672143804128,40470.87371022677,41207.233795814602,41956.991817397837,42665.327132814018,43385.620858433904,44118.074881091998,44862.894495959976,45620.288464087658,46279.922434163738,46949.094199574472,47627.941669439118,48316.60474693578,49015.225358133946,49723.947481243966,50442.917176289353,51172.282615208213,51912.194112389931,52662.804155653299,53424.267437672621,54196.740887858265,54980.383704698084,55775.35738856651,56581.825775008088,57399.955068502204,58229.913876716011,59071.87324525274,59926.006692902258,61671.502481711977,62563.224550821476,63467.840229078451,64385.535948065801,65316.500835022445,66260.9267518204,67219.008334505503,68190.943033409727,69176.931153843674,70177.175897377267,71191.883403717438,72221.262793191388,73265.526209843883,74324.88886515802,75399.569082407892,76489.788341652747,77595.771325381618,78717.745964817979,79855.943486893899,81010.598461903472,82181.948851845227,83370.236059463539,84575.704977999092,85798.604041658851,87039.185276815595,88297.704353947905,89574.420640331067,90869.597253489905,92183.501115424486,93516.403007619825,94868.577626851154,96240.30364179585,97631.863750464167,99043.544738460158,100475.63753808523,101928.43728829605,103402.24339552961,104897.35959540764,106414.09401533325,107952.75923799269,109513.67236577532,111097.15508612491,112703.53373783614,114333.13937830935,115986.30785177801,117663.3798585226,119364.70102508528,121090.62197549976,122841.49840355126,124617.69114608107]
[null,"Bayside (C)",96119,96971,98252,99797,101268,102912,104282,105745,106856,107541,108799.29272695845,109697.40369037828,110602.92833528812,111515.92785977536,112436.46396710232,113364.59886987627,114226.38231863099,115094.71693697438,115969.6525260752,116851.23926568449,117739.52771701345,118656.74216460509,119581.10189602098,120512.66257444985,121451.48029670786,122397.61159661658,123351.1134484072,124312.04327015171,125280.45892722033,126256.41873576601,127239.98146623626,128231.20634691208,129230.1530674746,130236.88178259954,131251.4531155795,132273.92816197473,133304.36849329202,134342.83616069253,135389.39369872841,136444.10412910837,138578.2382123188,139657.79037865356,140745.75247207985,141842.19000761019,142947.16901063212,144060.75602088415,145183.01809646262,146314.02281785992,147453.83829203396,148602.53315650937,149760.17658351088,150926.83828412869,152102.58851251629,153287.4980701211,154481.63830994791,155685.08114085571,156897.89903188782,158120.16501663599,159351.95269763816,160593.3362508108,161844.39042991551,163105.1905710607,164375.81259723811,165656.33302289475,166946.82895854046,168247.37811539133,169558.05881004941,170878.94996921867,172210.13113445794,173551.68246697064,174903.68475243196,176266.21940585374,177639.36847648691,179023.21465276254,180417.84126727105,181823.33230178049,183239.77239229353,184667.24683414426,186105.84158713455,187555.64328071018,189016.73921917766,190489.21738696157,191973.16645390264,193468.67578059743,194975.83542377938,196494.73614174189,198025.46939980361,199568.12737581629,201122.80296571553,202689.58978911489]
[null,"Boroondara (C)",167062,168483,170485,172660,174753,177276,179677,181376,183197,183023,184978.66019199163,186644.16705892596,188324.66978063039,190020.30337645832,191731.20408144753,193457.50935726581,195211.83843995517,196982.07629010768,198768.36717306374,200570.85666240382,202389.6916518122,204195.46034695153,206017.34053746265,207855.47597391772,209710.01168946549,211581.09401127489,213468.87057208014,215373.49032182994,217295.10353943953,219233.86184464823,221189.91820998251,223163.42697282584,225154.54384759645,227163.42593803332,229190.23174959223,231235.12120195202,233298.25564163283,235379.79785472658,237479.91207974116,239598.76402055938,243893.3512705747,246069.42543266545,248264.91504308334,250479.99333105012,252714.83507137978,254969.61659826845,257244.51581920765,259539.71222902162,261855.38692402997,264191.72261633631,266548.90364824509,268927.1160068062,271326.54733849008,273747.38696399331,276189.82589317649,278654.05684013542,281140.27423840674,283648.67425630882,286179.45481242036,288732.81559119641,291308.95805872389,293908.08547861781,296530.40292805928,299176.11731397646,301845.43738937011,304538.57376978459,307255.73894992599,309997.1473204284,312763.01518476987,315553.5607763392,318369.0042756552,321209.56782773923,324075.47555964306,326966.95359813317,329884.23008753237,332827.53520772111,335797.10119229928,338793.1623469097,341815.95506772579,344865.71786010329,347942.69135739922,351047.11833995843,354179.24375426921,357339.31473229057,360527.58061095112,363744.29295182269,366989.70556096884,370264.07450897089,373567.6581511324,376900.71714786411]
[null,"Cardinia (S)",75831,80422,84591,88070,92298,97573,102403,107117,112179,116193,121641.92993650051,125696.28049529405,129885.76339260089,134214.88261707401,138688.29227623515,143310.80159996753,146853.67604263665,150484.1360627806,154204.34691731323,158016.52739179571,161922.95112375144,164707.69490137923,167540.33057977349,170421.68180173312,173352.58637502944,176333.89651601497,179366.47909742154,182451.21590041995,185589.00387101475,188780.75538084836,192027.39849249047,195329.87722928997,198689.15184986769,202106.19912732989,205582.01263328371,209117.60302673696,212713.99834796652,216372.24431744072,220093.4046398823,223878.56131356105,231645.28506852419,235629.11047273377,239681.44953068136,243803.48053716461,247996.40205124315,252261.43324474254,256599.81425675165,261012.80655421675,265501.69329873705,270067.7797196685,274712.39349364379,279436.88513061992,284242.62836656469,289131.02056289645,294103.48311279371,299161.46185449214,304306.4274916898,309539.87602118193,314863.3291678509,320278.33482713648,325786.46751511609,331389.32882632513,337088.54789945122,342885.78189103759,348782.71645733231,354781.06624442566,360882.57538681547,367089.01801454817,373402.19876908028,379823.95332801261,386356.14893884852,393000.68496193161,399759.49342272099,406634.53957356449,413627.82246513304,420741.37552768312,427977.26716231508,435337.60134240024,442824.51822535123,450440.19477491343,458186.84539415909,466066.72256936657,474082.11752497422,482235.36088979716,490528.82337470225,498964.9164619373,507546.09310631559,516274.84844845923,525153.72054030874,534185.29108311003]
[null,"Casey (C)",261282,269240,278023,287937,299528,312789,326771,340443,353962,364600,378577.82962059224,389003.3141615708,399715.90143126197,410723.49782255432,422034.22745893331,433656.4381904662,443042.34818865964,452631.40357738791,462428.00116524019,472436.6329238101,482661.88804737118,490605.67955595104,498680.21232480952,506887.6381321146,515230.14417063317,523709.95363059454,532329.32629214833,541090.55912757071,549995.98691338429,559047.98285255139,568248.95920690766,577601.36794000433,587107.70137053111,596770.49283649272,606592.31737031683,616575.79238507326,626723.57837198698,637038.37960943126,647522.94488358893,658180.06822097593,680023.39587288979,691215.4212047935,702591.6481859202,714155.1084612644,725908.88357152697,737856.10577431298,749999.95887884579,762343.67909441888,774890.55589281116,787643.93288489687,800607.20871168305,813783.83795001137,827177.33203316608,840791.26018663542,854629.25037927146,868694.99029010639,882992.22829107975,897524.77444594062,912296.50152558926,927311.34604013024,942573.30928791082,958086.45842182462,973854.92753316578,989882.91875332047,1006174.7033735909,1022734.6229834494,1039567.0906275265,1056676.591981641,1074067.6865481858,1091745.0088711865,1109713.2697713596,1127977.2576014965,1146541.8395225091,1165411.9628004767,1184592.656125041,1204089.030949499,1223906.2828529514,1244049.6929248702,1264524.6291724534,1285336.5479511414,1306490.9954186811,1327993.6090131158,1349850.1189551051,1372066.3497749674,1394648.2218648575,1417601.7530564866,1440933.0602248139,1464648.3609181272,1488753.9750149562,1513256.3264082519]
[null,"Frankston (C)",130350,132194,134351,136181,137790,139502,140718,141847,142645,143338,144615.15627720428,145796.49757416529,146987.489085501,148188.20964248371,149398.73872034755,150619.15644354885,151903.64933155067,153199.09648339439,154505.59131796731,155823.22805084081,157152.1017010647,158576.8806486938,160014.57698672134,161465.30782733162,162929.19134447633,164406.34678350078,165896.89447085734,167400.95582390716,168918.65336081054,170450.110710507,171995.45262278599,173554.80497844861,175128.29479956179,176716.05025980526,178318.20069491226,179934.87661320507,181566.20970622599,183212.33285946469,184873.38016318277,186549.4869233366,189947.42618148122,191669.53546955498,193407.25781677716,195160.73477491675,196930.10917908512,198715.52515937146,200517.12815258311,202335.06491409263,204169.48352979234,206020.53342815707,207888.36539241625,209773.13157283657,211674.98549911584,213594.08209288921,215530.5776803488,217484.63000497781,219456.39824040004,221446.04300334575,223453.72636673533,225479.61187288153,227523.86454681118,229586.65090970791,231668.13899247663,233768.49834943115,235887.90007210558,238026.51680319125,240184.52275059995,242362.09370165446,244559.40703740792,246776.64174709297,249013.97844270198,251271.59937369925,253549.68844186675,255848.43121628455,258168.01494844683,260508.62858751504,262870.46279570949,265253.7099638402,267658.56422697881,270085.22148027248,272533.87939490116,275004.73743417935,277497.9968698044,280013.86079825141,282552.53415731725,285114.22374281433,287699.13822541601,290307.48816765443,292939.48604107235,295595.34624353115]
[null,"Glen Eira (C)",137152,139116,141260,143694,145924,148583,151457,153920,156535,158216,160350.35605115019,162296.35166743168,164265.96368863952,166259.47872106251,168277.18684921428,170319.38167804453,172307.52323011326,174318.87239832125,176353.70008563632,178412.28035728203,180494.89047765092,182348.2283826253,184220.596529292,186112.19032189858,188023.20717112118,189953.84651466674,191904.30983808645,193874.80069580363,195865.5247323568,197876.68970386122,199908.5054996908,201961.1841643826,204034.93991976624,206129.98918732043,208246.5506107593,210384.84507885051,212545.09574846755,214727.52806787894,216932.3698002765,219159.85104754512,223683.66433203086,225980.46848384399,228300.85642899101,230645.07032800085,233013.35482792856,235405.95708788736,237823.12680484273,240265.11623967122,242732.18024348683,245224.57628423811,247742.56447357766,250286.40759400823,252856.37112630712,255452.72327723232,258075.73500751311,260725.68006012819,263402.83498887392,266107.47918722616,268839.89491749823,271600.3673402986,274389.18454429065,277206.63757625839,280053.0204714805,282928.63028441666,285833.76711970853,288768.73416349955,291733.83771507605,294729.38721883303,297755.69529656868,300813.07778011035,303901.85374427494,307022.3455401687,310174.87882882816,313359.78261520702,316577.38928251161,319828.0346268891,323112.05789247219,326429.8018067829,329781.61261650047,333167.84012359672,336588.83772184153,340044.96243368433,343536.57494751317,347064.03965529747,350627.72469061619,354228.00196707738,357865.24721713184,361539.84003128496,365252.16389771225,369002.60624228028]
[null,"Greater Dandenong (C)",142167,145116,148502,152135,156061,160222,163518,166140,168261,168362,171306.29723534227,174043.56812841582,176824.5773548898,179650.02380131336,182520.61752161154,185437.07991552673,188162.10956358889,190927.18398902894,193732.89165670861,196579.82967908168,199468.60394327177,202346.03433398649,205264.973039743,208226.01883791669,211229.77914353437,214276.8701338761,217367.91687487505,220503.55344934069,223684.42308703152,226911.17829660411,230184.48099946574,233505.00266555778,236873.42445109799,240290.43733830962,243756.74227716619,247273.05032918134,250840.08281327231,254458.57145372816,258129.25853031216,261852.8970305296,269462.09471960994,273349.21482354554,277292.40850145876,281292.4846415791,285350.2638007371,289466.5783726896,293642.27275887318,297878.20354162046,302175.23965987569,306534.26258744439,310956.16651381517,315441.85852758936,319992.25880255678,324608.30078645621,329290.93139245803,334041.11119341006,338859.81461888447,343748.03015506809,348706.76054753538,353737.02300694748,358839.84941771749,364016.28654968692,369267.39627285465,374594.25577520422,379997.95778367313,385479.61078830966,391040.33926966321,396681.28392945509,402403.60192457668,408208.46710446314,414097.07025189145,420070.61932725174,426130.33971634298,432277.47448174254,438513.28461780254,444839.04930932395,451256.06619396282,457765.65162842133,464369.14095847937,471067.88879292074,477863.26928141149,484756.67639638629,491749.5242190017,498843.24722921388,506039.30060004111,513339.16049607121,520744.32437627501,528256.31130118808,535876.66224452353,543606.94040928024]
[null,"Kingston (C)",148304,150435,152336,154210,156244,158941,161051,163452,165804,167293,169333.39934647619,171363.40209793334,173417.74092949534,175496.70758697117,177600.59731367696,179729.70889236507,181952.60413348133,184202.99212069632,186481.21288401869,188787.61065894482,191122.53393847236,193181.09797803115,195261.83463019415,197364.98271422589,199490.78362169207,201639.48134416583,203811.32250123215,206006.55636879386,208225.43490768271,210468.21279257844,212735.14744123939,215026.49904404802,217342.53059387454,219683.50791626232,222049.69969993824,224441.37752765199,226858.81590734716,229302.29230366831,231772.08716980732,234268.48397969286,239342.23262566852,241920.16680788025,244525.86769292125,247159.63435351083,249821.76908365428,252512.57743333912,255232.3682436049,257981.453681991,260760.14927836586,263568.77396114258,266407.65009388403,269277.10351230286,272177.46356165962,275109.06313456356,278072.2387091812,281067.33038785582,284094.68193614308,287154.64082226739,290247.55825700291,293373.78923398413,296533.69257045095,299727.63094843214,302955.97095637285,306219.08313121024,309517.34200090216,312851.12612741435,316220.81815017021,319626.80482996884,323069.47709337581,326549.23007759266,330066.46317580878,333621.58008304273,337214.98884247668,340847.10189229011,344518.33611299784,348229.11287529813,351979.85808843613,355771.00224908814,359602.98049077223,363476.23263379146,367391.20323571481,371348.34164240176,375348.10203957674,379390.94350495859,383477.33006095205,387607.7307279064,391782.61957794806,396002.47578939266,400267.78370174335,404579.03287128161]
[null,"Knox (C)",154625,155406,156347,157434,158700,160353,161827,163212,164553,165147,166391.63159934181,167918.06030682917,169458.49202983268,171013.05522796695,172581.87953929804,174165.09579115396,175781.77578911142,177413.46254949694,179060.29537193617,180722.41484909758,182399.96287869502,184169.54326849026,185956.29150583618,187760.37414716114,189581.95936476561,191421.21696249867,193278.31839158642,195153.4367666149,197046.74688166694,198958.42522661615,200888.65000357901,202837.60114352632,204805.46032305589,206792.41098132817,208798.63833716596,210824.32940631997,212869.6730189021,214934.85983698766,217020.08237238845,219125.53500459829,223397.91752472377,225565.24567399404,227753.60047990762,229963.18593570366,232194.2080136922,234446.8746844542,236721.39593622828,239017.9837944851,241336.85234169205,243678.21773726938,246042.29823774024,248429.31421707576,250839.48818723817,253273.04481892244,255730.21096249981,258211.21566916414,260716.29021228352,263245.6681089591,265799.58514179295,268378.27938086708,270981.99120593595,273610.96332883381,276265.44081609999,278945.67111182347,281651.90406070859,284384.39193136554,287143.3894398259,289929.15377328679,292741.94461408508,295582.02416390448,298449.65716821759,301345.11094096437,304268.65538947092,307220.56303960929,310201.10906120192,313210.57129367231,316249.23027194443,319317.36925259355,322415.27424025076,325543.23401426361,328701.54015561566,331890.48707410658,335110.37203579658,338361.49519071693,341644.15960084897,344958.67126837489,348305.3391642028,351684.47525676806,355096.39454111399,358541.41506825545]
[null,"Manningham (C)",116750,117440,118357,119437,120785,122570,124270,125535,127585,128929,130532.44459712661,131789.9844399826,133059.63932796207,134341.52597650679,135635.76222548643,136942.46705003121,138110.16346612727,139287.81672723664,140475.51173450431,141673.33411301972,142881.37021799004,144003.20760382683,145133.85312971956,146273.37595304538,147421.84577417278,148579.33284072462,149745.90795187533,150921.64246268099,152106.60828844414,153300.87790911249,154504.52437371219,155717.6213048161,156940.24290304686,158172.46395161556,159414.35982089597,160666.00647303456,161927.4804665969,163198.85896125049,164480.21972248418,165771.64112636505,168384.98244802799,169707.06221416878,171039.52232945128,172382.44429549979,173735.91025385098,175100.00299097828,176474.80594335566,177860.40320256099,179256.87952041981,180664.3203141891,182082.81167178199,183512.44035703357,184953.29381500767,186405.46017734573,187869.02826765741,189344.08760695363,190830.72841912226,192329.04163644669,193839.11890516794,195361.05259109018,196894.93578523048,198440.86230951292,199998.92672250717,201569.22432521236,203151.85116688636,204746.9040509206,206354.48054076129,207974.67896587696,209607.59842777299,211253.33880605319,212912.00076452899,214583.68575737692,216268.49603534394,217966.53465200192,219677.90547005081,221402.71316767181,223141.06324492997,224893.06203022733,226658.81668680647,228438.43521930551,230232.02648036421,232039.70017728207,233861.5668787288,235697.73802150736,237548.32591737009,239413.44375988853,241293.20563137683,243187.72650986991,245097.12227615633,247021.50972086596]
[null,"Maroondah (C)",107323,108434,109781,111421,113023,114800,116321,117505,118569,119401,120853.62237581515,122181.04647896143,123523.05065604324,124879.79505072183,126251.441565634,127638.15388171199,129033.12698730246,130443.3459257896,131868.97732075906,133310.18961684615,134767.15309963838,136278.60508200107,137807.0084285682,139352.55325371437,140915.43180400107,142495.83848208966,144093.96987092262,145710.02475817612,147344.20416098682,148996.71135095559,150667.7518794323,152357.53360308369,154066.26670974813,155794.16374458052,157541.43963649007,159308.31172487498,161094.99978665658,162901.72606361695,164728.71529004307,166576.19472068085,170333.54598579317,172243.88518805229,174175.64938822691,176129.07887376711,178104.4166270151,180101.90835542927,182121.80252214702,184164.35037689059,186229.80598721936,188318.42627013277,190430.47102402747,192566.20296101307,194725.88773959031,196909.79399769564,199118.19338611639,201351.36060228077,203609.57342442696,205893.11274615501,208202.26261136675,210537.31024959715,212898.54611174224,215286.26390618741,217700.76063534134,220142.33663257913,222611.2955996003,225107.94464420527,227632.59431849586,230185.55865750418,232767.15521825457,235377.70511926376,238017.53308048411,240686.96746369466,243386.34031334522,246115.98739785867,248876.24825139629,251667.46621609162,254489.98848475807,257344.16614407508,260230.35421825931,263148.91171322489,266100.20166123979,269084.59116608172,272102.45144870214,275154.15789340105,278240.09009452007,281360.63190365967,284516.17147742503,287707.10132570833,290933.81836051174,294196.72394531866]
[null,"Melbourne (C)",100240,107578,118711,127975,136872,146096,159141,170317,178994,183756,196332.66828688327,203306.56565266545,210528.1815713142,218006.31520895084,225750.07828529237,233768.90617581154,238998.40261638089,244344.88481638808,249810.96979031371,255399.33309621518,261112.71014536789,265243.85976084834,269440.36964598391,273703.27388698485,278033.62293067743,282432.48384335102,286900.94057369977,291440.09421992471,296051.06330106198,300734.9840326031,305493.01060647669,310326.31547545956,315236.08964208741,320223.54295213678,325289.90439275006,330436.42239527724,335664.36514290917,340975.02088317793,346369.6982454012,351849.72656314936,363071.25889135944,368815.52806433843,374650.67919925629,380578.15016936668,386599.40159698646,392715.91721341596,398929.20422455401,405240.79368229699,411652.24086181424,418165.1256447924,424781.05290874327,431501.65292247065,438328.58174779452,445263.52164763084,452308.18150052743,459464.29722175875,466733.6321910827,474117.97768726543,481619.15332948021,489239.00752569089,496979.41792812821,504842.29189597332,512829.56696536089,520943.21132681891,529185.22431026131,537557.63687765494,546062.51212348032,554701.94578311068,563478.06674923457,572393.03759644774,581449.05511414667,590648.35084785114,599993.19164909294,609485.88023400377,619128.75575074041,628924.19435588759,638874.60979998158,648982.45402229496,659250.21775503387,669680.43113709381,680275.66433752514,691038.528188864,701971.67483048211,713077.79836211598,724359.63550773519,735819.96628991503,747461.61471487721,759287.44946837006,771300.38462255744,783503.38035409234]
[null,"Monash (C)",177345,180312,183255,186150,189174,192625,196922,200212,202896,204936,208012.84200618995,210690.30624725966,213402.23381613675,216149.06831200936,218931.25904391005,221749.26110421072,224395.46763640447,227073.2522174998,229782.99167869263,232525.06734802909,235299.86510406752,238076.12595681811,240885.14341280394,243727.30396130405,246602.99865171514,249512.62314735568,252456.57777990401,255435.26760448061,258449.10245537845,261498.49700245162,264583.87080816948,267705.64838534349,270864.25925553561,274060.13800815557,277293.72436025552,280565.4632170301,283875.80473303044,287225.20437410049,290614.1229800437,294043.02682802983,301022.68293132359,304574.39550898521,308168.01410552708,311804.03316254052,315482.95295544417,319205.27966231667,322971.52543354075,326782.20846226969,330637.8530557247,334538.98970733362,338486.15516972111,342479.89252855961,346520.7512772918,350609.2873927349,354746.06341157685,358931.64850777469,363166.61857086694,367451.55628520937,371787.05121014582,376173.69986112486,380612.10579177382,385102.87967694091,389646.63939671702,394244.01012144948,398895.62439775816,403602.12223556702,408364.15119616198,413182.36648128857,418057.43102329975,422990.01557636843,427980.79880877561,433030.46739628725,438139.7161166335,443309.24794510222,448539.77415126032,453832.01439681678,459186.69683463959,464604.55820894189,470086.34395664942,475632.80830996425,481244.71440013888,486922.83436247433,492667.94944255747,498480.85010375147,504362.33613595471,510313.21676564316,516334.31076721044,522426.44657562237,528590.46240039996,534827.206340948]
[null,"Nillumbik (S)",62716,62935,63174,63433,63675,64174,64618,64941,65099,65219,65460.217046525526,65736.381987297747,66013.71201853182,66292.2120555359,66571.887034354935,66852.74191185816,67179.865082576711,67508.588929135323,67838.921283945092,68170.870017742564,68504.443039777252,68881.74744137931,69261.129936096957,69642.601969518888,70026.175050273116,70411.860750374137,70799.67070557196,71189.616615703315,71581.710245044567,71975.96342266658,72372.388042791616,72770.996065152183,73171.799515351828,73574.810485227965,73980.04113321667,74387.503684719428,74797.210432472071,75209.17373691556,75623.40602656889,76039.919798404037,76879.842121037087,77303.276011447597,77729.042064029651,78157.153123717289,78587.622106191047,79020.461998267652,79455.685858291778,79893.306816530006,80333.338075566993,80775.792910703705,81220.684670358023,81668.026776467334,82117.832724893538,82570.116085830188,83024.890504211886,83482.169700125931,83941.96746922622,84404.297683149518,84869.174289933842,85336.611314439404,85806.622858771589,86279.22310270647,86754.426304118606,87232.246799411136,87712.699003948335,88195.79741249053,88681.556599631338,89169.991220237382,89661.116009890466,90154.945785332049,90651.495444910324,91150.779969029623,91652.814420602444,92157.613945503777,92665.193773028121,93175.569216348929,93688.755672980551,94204.768625242781,94723.62364072795,95245.336372770631,95769.922560919731,96297.398031413555,96827.77869765705,97361.080560702103,97897.319709730073,98436.512322537354,98978.674666023348,99523.82309668127,100071.97406109153,100623.14409641804]
[null,"Port Phillip (C)",97276,99893,102156,104451,106381,108627,110656,113265,115620,116476,119047.91065632326,121084.6525913173,123156.24030971814,125263.26997375936,127406.34794517006,129586.09095967359,131678.19243259562,133804.06981881656,135964.26841326311,138159.34231437085,140389.85456621263,143503.71754694206,146686.64636360898,149940.17290432897,153265.86303467068,156665.31735127958,160140.17195221729,163692.09922438691,167322.80864842376,171034.04762143854,174827.60229800909,178705.29844982544,182669.0023444019,186720.62164327901,190862.10632014772,195095.44959933785,199422.68891512207,203845.90689229756,208367.2323485169,212988.84131885096,222541.85633619304,227477.86008268353,232523.34495504622,237680.73925713531,242952.52515286143,248341.23986081374,253849.47687537895,259479.88721494499,265235.18069778988,271118.12724627007,277131.55821993557,283278.36777821404,289561.51427331934,295984.02167405467,302548.98102119594,309259.55191515607,316118.96403664525,323130.51870106015,330297.59044734918,337623.62866211962,345112.15923976677,352766.78627942567,360591.19381956122,368589.14761103125,376764.4969294772,385121.17642791296,393663.20803040499,402394.70286775409,411319.86325611081,420442.98471947724,429768.45805706742,439300.77145652263,449044.51265399781,459004.37114215881,469185.1404271535,479591.72033564263,490229.11937300098,501102.45713382354,512216.96676589712,523577.99748882308,535191.0171685036,547061.61494872952,559195.50394113886,571598.52397483669,584276.64440700354,597235.96699584299,610482.72883725096,624023.30536662159,637864.21342723293,652012.11440669012]
[null,"South Gippsland (S)",27512,27926,28273,28521,28781,29122,29321,29575,29910,30248,30481.589331995205,30722.581980773881,30965.47995857372,31210.298329251214,31457.052275760299,31705.757101093914,31953.501625847159,32203.181993020109,32454.813329025259,32708.410878470851,32963.990005084452,33202.042268399149,33441.813646422364,33683.316553887489,33926.563495181959,34171.567064994699,34418.339948968314,34666.89492435578,34917.244860682142,35169.402720410799,35423.381559614689,35679.194528652282,35936.854872848511,36196.375933180519,36457.771146968487,36721.054048571306,36986.23827008743,37253.337542060668,37522.365694191096,37793.336656051179,38341.163230944527,38618.047209001692,38896.930728304993,39177.828228711936,39460.754254358741,39745.723454413288,40032.750583833717,40321.85050413233,40613.038184145131,40906.328700806815,41201.737239931477,41499.279096998849,41798.969677946276,42100.82449996638,42404.859192310541,42711.089497098081,43019.531270131403,43330.200481716907,43643.113217491955,43958.285679257693,44275.73418581795,44595.475173824198,44917.525198626594,45241.90093513114,45568.619178663124,45897.696845836697,46229.150975430784,46562.998729271276,46899.257393119697,47237.944377568143,47579.077218940787,47922.673580201859,48268.751251870221,48617.328152940427,48968.422331810638,49322.051967217012,49678.235369175032,50036.990979927505,50398.337374899464,50762.293263659951,51128.87749089078,51498.109037362221,51870.0070209158,52244.59069745415,52621.879461938079,53001.89284939073,53384.650535909095,53770.172339682758,54158.47822202008,54549.588288381688]
[null,"Stonnington (C)",98853,101410,103487,105894,108028,111003,113772,116281,117776,118614,120769.29769271269,122302.89270448826,123855.96214979187,125428.75332569887,127021.51666959905,128634.50579907396,130269.52292506289,131925.32204096712,133602.16729760071,135300.32620328362,137020.06966651726,138780.91433241047,140564.38760990018,142370.78029923278,144200.38693772815,146053.50584780477,147930.43918562189,149831.49299034709,151756.97723405669,153707.20587227761,155682.49689517869,157683.17237941982,159709.55854066749,161761.98578678511,163840.78877170695,165946.3064500044,168078.88213215338,170238.86354051213,172426.60286601828,174642.45682561464,179159.95849460381,181462.34279512765,183794.31503210694,186156.25544005923,188548.54913989513,190971.58620171339,193425.76170840289,195911.47582006201,198429.13383924577,200979.14627705168,203561.92892005452,206177.90289810163,208827.49475297928,211511.13650796143,214229.26573825235,216982.32564233441,219770.76511423301,222595.03881670971,225455.60725539646,228352.93685388225,231287.50002976472,234259.77527167922,237270.24721731772,240319.40673245024,243407.75099096194,246535.78355591864,249704.01446167423,252912.96029703319,256163.14428948172,259455.09639050151,262789.35336197977,266166.45886372984,269586.96354213619,273051.42511993903,276560.40848717251,280114.48579327163,283714.23654036259,287360.24767775252,291053.11369763291,294793.43673201342,298581.82665090088,302418.90116174071,306305.28591013548,310241.61458185822,314228.52900617674,318266.67926050554,322356.72377640294,326499.32944692974,330695.17173538846,334944.93478545925]
[null,"Whitehorse (C)",157538,159661,162081,164320,166679,169641,173263,176273,178779,180735,183522.69988042698,185930.13815729757,188369.15704550789,190840.17081736648,193343.59917957772,195879.86734453007,198298.82136618544,200747.64746524318,203226.71453710203,205736.39603271315,208277.07001483743,210706.73533058006,213164.74401386722,215651.42670549886,218167.11790337987,220712.15600751498,223286.88336552915,225891.64631871865,228526.79524863922,231192.68462423823,233889.67304953592,236618.12331186372,239378.40243066443,242170.88170686242,244995.93677280925,247853.94764281221,250745.29876425219,253670.37906929795,256629.58202722343,259623.30569733583,265715.93068341154,268815.65155319223,271951.53235303744,275123.99490820098,278333.46596475749,281580.37724700681,284865.16551554756,288188.27262602834,291550.14558858424,294951.23662796675,298392.003244375,301872.90827499685,305394.41995626769,308957.01198685577,312561.16359138174,316207.35958488233,319896.09043802531,323627.85234308557,327403.14728069084,331222.4830873459,335086.37352374464,338995.33834387886,342949.90336495335,346950.60053811676,350997.9680200172,355092.55024519272,359234.89799930644,363425.56849323586,367665.12543802662,371954.13912072009,376293.18648106634,380682.85118913138,385123.72372381011,389616.40145225491,394161.48871023086,398759.59688340861,403411.34448960511,408117.35726198409,412878.26823322708,417694.71782068617,422567.35391253023,427496.83195489604,432483.81504005601,437528.97399561474,442632.98747474561,447796.54204748047,453020.33229306416,458305.06089338608,463651.43872750225,469060.18496725941]
[null,"Yarra Ranges (S)",148901,149864,150902,151968,153391,155226,156869,158171,159474,159955,161226.75661219249,162597.58937548095,163980.07766359908,165374.32057781055,166780.41806198884,168198.47090978158,169679.94306756734,171174.46385619036,172682.14820644152,174203.11206140841,175737.47238539156,177265.84896147734,178807.51772235797,180362.59426924025,181931.1952087066,183513.43816145873,185109.44177113767,186719.32571321967,188343.21070399033,189981.21850959648,191633.47195517659,193300.0949340708,194981.21241711106,196676.95046199198,198387.43622272307,200112.79795916355,201853.16504663962,203608.66798564573,205379.43841163002,207165.60910486506,210784.68819812429,212617.86797285703,214466.99078460646,216332.19528885675,218213.62134696922,220111.41003666975,222025.70366262738,223956.64576712486,225904.38114082234,227869.0558336142,229850.81716558055,231849.81373803408,233866.19544466271,235900.11348276937,237951.72036460938,240021.16992882657,242108.61735198874,244214.21916022353,246338.13324095542,248480.51885474479,250641.5366472301,252821.34866117375,255020.11834861277,257238.01058311516,259475.19167214292,261731.82936952246,264008.09288802347,266304.15291204758,268620.18161042646,270956.35264933237,273312.84120530012,275689.82397836266,278087.47920530086,280505.98667300842,282945.52773197315,285406.28530987562,287888.44392530544,290392.18970159785,292917.71038078947,295465.19533769658,298034.83559411508,300626.8238331441,303241.35441363417,305878.62338476139,308538.82850072783,311222.16923559009,313928.84679821681,316659.06414737622,319413.02600695466,322190.93888130807]
[null,"Multinet",{"$f":"SUM(C5:C24)","v":2437579},{"$f":"SUM(D5:D24)","v":2483647},2535655,2587605,2641931,2705499,2771243,2830653,2885009,2919427,2980574.4096879405,3027838.5787544874,3076084.9326891224,3125338.6899934979,3175625.8038104544,3226972.9847933901,3271704.2413765923,3317152.1350569096,3363329.6175706983,3410249.896017001,3457926.4381880751,3501010.0882995604,3544678.9661387568,3588941.6737569435,3633806.9487148672,3679283.6663482911,3725380.8420733861,3772107.6337327156,3819473.3439825247,3867487.4227221226,3916159.4695661287,3965499.2363603562,4015516.6297421474,4066221.7137459945,4117624.7124552447,4169736.0127007794,4222566.1668075165,4276125.8953896109,4330426.0901952814,4385477.8170021558,4497881.0176103516,4555255.519898341,4613427.6173204929,4672409.291066722,4732212.7148432331,4792850.258148795,4854334.4896095851,4916678.1803736286,4979894.307566002,5043996.0578059014,5108996.8307867432,5174910.2429204611,5241750.1310472116,5309530.5562117137,5378265.8075074395,5447970.4059899682,5518659.108660779,5590346.9125227723,5663049.058708936,5736781.0366854491,5811558.5885306895,5887397.7132915147,5964314.6714183148,6042325.989280289,6121448.4637624631,{"$f":"SUM(BP5:BP24)","v":6201699.1669460014},6283095.4508733535,6365654.9523998834,6449395.59813355,6534335.6094643576,6620493.5076852413,6707888.1192061324,6796538.5808629431,6886464.3453233037,6977685.186590841,7070221.2056099111,7164092.8359726518,7259320.8497303249,7355926.3633109042,7453930.8435449442,7553356.1138018053,7654224.3602382727,7756558.1381617878,7860380.3785104034,7965714.3944517458,8072583.8881032076,8181012.9573757192,8291026.1029434092,8402648.2353416421,8515904.682195792]
[]
[null,"Households"]
[null,null,2011,2012,{"$f":"D28+1","v":2013},{"$f":"E28+1","v":2014},{"$f":"F28+1","v":2015},{"$f":"G28+1","v":2016},{"$f":"H28+1","v":2017},{"$f":"I28+1","v":2018},{"$f":"J28+1","v":2019},{"$f":"K28+1","v":2020},2021,2022,2023,2024,2025,2026,2027,2028,2029,2030,2031,2032,2033,2034,2035,2036,2037,2038,2039,2040,2041,2042,2043,2044,2045,2046,2047,2048,2049,2050,2051,2052,2053,2054,2055,2056,2057,2058,2059,2060,2061,2062,2063,2064,2065,2066,2067,2068,2069,2070,2071,2072,2073,2074,2075,2076,2077,2078,2079,2080,2081,2082,2083,2084,2085,2086,2087,2088,2089,2090,2091,2092,2093,2094,2095,2096,2097,2098,2099,2100]
[null,"Bass Coast (S)",{"$f":"C5/Census!$J3","v":13742.272727272726},{"$f":"D5/Census!$J3","v":14004.999999999998},{"$f":"E5/Census!$J3","v":14241.363636363636},{"$f":"F5/Census!$J3","v":14507.727272727272},{"$f":"G5/Census!$J3","v":14807.272727272726},{"$f":"H5/Census!$J3","v":15210.90909090909},{"$f":"I5/Census!$J3","v":15629.999999999998},{"$f":"J5/Census!$J3","v":16057.272727272726},{"$f":"K5/Census!$J3","v":16506.81818181818},{"$f":"L5/Census!$J3","v":17020.454545454544},{"$f":"M5/Census!$J3","v":17427.185552814819},{"$f":"N5/Census!$J3","v":17744.269980917568},{"$f":"O5/Census!$J3","v":18067.123701729146},{"$f":"P5/Census!$J3","v":18395.851686466711},{"$f":"Q5/Census!$J3","v":18730.560816279361},{"$f":"R5/Census!$J3","v":19071.359916999016},{"$f":"S5/Census!$J3","v":19393.330514915462},{"$f":"T5/Census!$J3","v":19720.736753833589},{"$f":"U5/Census!$J3","v":20053.670400496361},{"$f":"V5/Census!$J3","v":20392.224770890898},{"$f":"W5/Census!$J3","v":20736.494756403481},{"$f":"X5/Census!$J3","v":21036.328379165334},{"$f":"Y5/Census!$J3","v":21340.497363442941},{"$f":"Z5/Census!$J3","v":21649.064395199599},{"$f":"AA5/Census!$J3","v":21962.093066788988},{"$f":"AB5/Census!$J3","v":22279.647890060882},{"$f":"AC5/Census!$J3","v":22601.794309656347},{"$f":"AD5/Census!$J3","v":22928.598716495158},{"$f":"AE5/Census!$J3","v":23260.128461458276},{"$f":"AF5/Census!$J3","v":23596.451869268149},{"$f":"AG5/Census!$J3","v":23937.638252569679},{"$f":"AH5/Census!$J3","v":24283.757926214825},{"$f":"AI5/Census!$J3","v":24634.882221753756},{"$f":"AJ5/Census!$J3","v":24991.083502135491},{"$f":"AK5/Census!$J3","v":25352.43517662114},{"$f":"AL5/Census!$J3","v":25719.011715912766},{"$f":"AM5/Census!$J3","v":26090.888667501},{"$f":"AN5/Census!$J3","v":26468.142671234549},{"$f":"AO5/Census!$J3","v":26850.85147511488},{"$f":"AP5/Census!$J3","v":27239.093951319206},{"$f":"AQ5/Census!$J3","v":28032.501128050895},{"$f":"AR5/Census!$J3","v":28437.829341282486},{"$f":"AS5/Census!$J3","v":28849.018285944749},{"$f":"AT5/Census!$J3","v":29266.15270366627},{"$f":"AU5/Census!$J3","v":29689.318561373835},{"$f":"AV5/Census!$J3","v":30118.60306900927},{"$f":"AW5/Census!$J3","v":30554.0946975025},{"$f":"AX5/Census!$J3","v":30995.883197004419},{"$f":"AY5/Census!$J3","v":31444.059615383485},{"$f":"AZ5/Census!$J3","v":31898.716316989663},{"$f":"BA5/Census!$J3","v":32359.947001689743},{"$f":"BB5/Census!$J3","v":32827.8467241779},{"$f":"BC5/Census!$J3","v":33302.511913565402},{"$f":"BD5/Census!$J3","v":33784.040393253643},{"$f":"BE5/Census!$J3","v":34272.531401094493},{"$f":"BF5/Census!$J3","v":34768.085609842157},{"$f":"BG5/Census!$J3","v":35270.805147900734},{"$f":"BH5/Census!$J3","v":35780.793620371805},{"$f":"BI5/Census!$J3","v":36298.156130406314},{"$f":"BJ5/Census!$J3","v":36822.999300865209},{"$f":"BK5/Census!$J3","v":37355.431296293282},{"$f":"BL5/Census!$J3","v":37895.561845210694},{"$f":"BM5/Census!$J3","v":38443.502262726855},{"$f":"BN5/Census!$J3","v":38999.365473481295},{"$f":"BO5/Census!$J3","v":39563.266034916174},{"$f":"BP5/Census!$J3","v":40135.320160885407},{"$f":"BQ5/Census!$J3","v":40715.645745605027},{"$f":"BR5/Census!$J3","v":41304.36238794995},{"$f":"BS5/Census!$J3","v":41901.591416102034},{"$f":"BT5/Census!$J3","v":42507.455912554462},{"$f":"BU5/Census!$J3","v":43122.080739477795},{"$f":"BV5/Census!$J3","v":43745.592564452658},{"$f":"BW5/Census!$J3","v":44378.119886574619},{"$f":"BX5/Census!$J3","v":45019.793062936435},{"$f":"BY5/Census!$J3","v":45670.744335493284},{"$f":"BZ5/Census!$J3","v":46331.107858316383},{"$f":"CA5/Census!$J3","v":47001.019725240731},{"$f":"CB5/Census!$J3","v":47680.617997912559},{"$f":"CC5/Census!$J3","v":48370.042734242379},{"$f":"CD5/Census!$J3","v":49069.4360172694},{"$f":"CE5/Census!$J3","v":49778.941984443321},{"$f":"CF5/Census!$J3","v":50498.706857329504},{"$f":"CG5/Census!$J3","v":51228.878971743696},{"$f":"CH5/Census!$J3","v":51969.608808322431},{"$f":"CI5/Census!$J3","v":52721.049023535452},{"$f":"CJ5/Census!$J3","v":53483.354481146634},{"$f":"CK5/Census!$J3","v":54256.682284129667},{"$f":"CL5/Census!$J3","v":55041.191807045339},{"$f":"CM5/Census!$J3","v":55837.044728886933},{"$f":"CN5/Census!$J3","v":56644.405066400483}]
[null,"Bayside (C)",{"$f":"C6/Census!$J4","v":36968.846153846156},{"$f":"D6/Census!$J4","v":37296.538461538461},{"$f":"E6/Census!$J4","v":37789.230769230766},{"$f":"F6/Census!$J4","v":38383.461538461539},{"$f":"G6/Census!$J4","v":38949.230769230766},{"$f":"H6/Census!$J4","v":39581.538461538461},{"$f":"I6/Census!$J4","v":40108.461538461539},{"$f":"J6/Census!$J4","v":40671.153846153844},{"$f":"K6/Census!$J4","v":41098.461538461539},{"$f":"L6/Census!$J4","v":41361.923076923078},{"$f":"M6/Census!$J4","v":41845.881818060938},{"$f":"N6/Census!$J4","v":42191.309111683957},{"$f":"O6/Census!$J4","v":42539.587821264657},{"$f":"P6/Census!$J4","v":42890.741484528982},{"$f":"Q6/Census!$J4","v":43244.793833500888},{"$f":"R6/Census!$J4","v":43601.768796106255},{"$f":"S6/Census!$J4","v":43933.223968704224},{"$f":"T6/Census!$J4","v":44267.198821913218},{"$f":"U6/Census!$J4","v":44603.712510028919},{"$f":"V6/Census!$J4","v":44942.784332955569},{"$f":"W6/Census!$J4","v":45284.433737312866},{"$f":"X6/Census!$J4","v":45637.208524848109},{"$f":"Y6/Census!$J4","v":45992.731498469606},{"$f":"Z6/Census!$J4","v":46351.024067096092},{"$f":"AA6/Census!$J4","v":46712.107806426095},{"$f":"AB6/Census!$J4","v":47076.004460237142},{"$f":"AC6/Census!$J4","v":47442.735941695071},{"$f":"AD6/Census!$J4","v":47812.324334673736},{"$f":"AE6/Census!$J4","v":48184.791895084738},{"$f":"AF6/Census!$J4","v":48560.161052217692},{"$f":"AG6/Census!$J4","v":48938.454410090868},{"$f":"AH6/Census!$J4","v":49319.694748812333},{"$f":"AI6/Census!$J4","v":49703.905025951768},{"$f":"AJ6/Census!$J4","v":50091.108377922894},{"$f":"AK6/Census!$J4","v":50481.328121376726},{"$f":"AL6/Census!$J4","v":50874.587754605665},{"$f":"AM6/Census!$J4","v":51270.910958958462},{"$f":"AN6/Census!$J4","v":51670.321600266354},{"$f":"AO6/Census!$J4","v":52072.843730280154},{"$f":"AP6/Census!$J4","v":52478.501588118605},{"$f":"AQ6/Census!$J4","v":53299.32238935338},{"$f":"AR6/Census!$J4","v":53714.534761020601},{"$f":"AS6/Census!$J4","v":54132.981720030708},{"$f":"AT6/Census!$J4","v":54554.688464465456},{"$f":"AU6/Census!$J4","v":54979.680388704663},{"$f":"AV6/Census!$J4","v":55407.983084955442},{"$f":"AW6/Census!$J4","v":55839.622344793315},{"$f":"AX6/Census!$J4","v":56274.62416071535},{"$f":"AY6/Census!$J4","v":56713.014727705369},{"$f":"AZ6/Census!$J4","v":57154.820444811296},{"$f":"BA6/Census!$J4","v":57600.067916734952},{"$f":"BB6/Census!$J4","v":58048.783955434112},{"$f":"BC6/Census!$J4","v":58500.995581737036},{"$f":"BD6/Census!$J4","v":58956.73002696965},{"$f":"BE6/Census!$J4","v":59416.014734595352},{"$f":"BF6/Census!$J4","v":59878.877361867577},{"$f":"BG6/Census!$J4","v":60345.345781495314},{"$f":"BH6/Census!$J4","v":60815.448083321535},{"$f":"BI6/Census!$J4","v":61289.212576014674},{"$f":"BJ6/Census!$J4","v":61766.667788773382},{"$f":"BK6/Census!$J4","v":62247.842473044424},{"$f":"BL6/Census!$J4","v":62732.765604254113},{"$f":"BM6/Census!$J4","v":63221.466383553117},{"$f":"BN6/Census!$J4","v":63713.974239574898},{"$f":"BO6/Census!$J4","v":64210.318830207863},{"$f":"BP6/Census!$J4","v":64710.530044381281},{"$f":"BQ6/Census!$J4","v":65214.638003865155},{"$f":"BR6/Census!$J4","v":65722.673065084105},{"$f":"BS6/Census!$J4","v":66234.66582094536},{"$f":"BT6/Census!$J4","v":66750.647102681018},{"$f":"BU6/Census!$J4","v":67270.647981704591},{"$f":"BV6/Census!$J4","v":67794.699771482206},{"$f":"BW6/Census!$J4","v":68322.834029418038},{"$f":"BX6/Census!$J4","v":68855.082558754817},{"$f":"BY6/Census!$J4","v":69391.477410488864},{"$f":"BZ6/Census!$J4","v":69932.050885300181},{"$f":"CA6/Census!$J4","v":70476.835535497506},{"$f":"CB6/Census!$J4","v":71025.864166978557},{"$f":"CC6/Census!$J4","v":71579.169841205599},{"$f":"CD6/Census!$J4","v":72136.78587719622},{"$f":"CE6/Census!$J4","v":72698.745853529865},{"$f":"CF6/Census!$J4","v":73265.083610369824},{"$f":"CG6/Census!$J4","v":73835.833251501012},{"$f":"CH6/Census!$J4","v":74411.029146383633},{"$f":"CI6/Census!$J4","v":74990.705932222831},{"$f":"CJ6/Census!$J4","v":75574.898516054571},{"$f":"CK6/Census!$J4","v":76163.642076847536},{"$f":"CL6/Census!$J4","v":76756.972067621653},{"$f":"CM6/Census!$J4","v":77354.924217582899},{"$f":"CN6/Census!$J4","v":77957.53453427495}]
[null,"Boroondara (C)",{"$f":"C7/Census!$J5","v":64254.615384615383},{"$f":"D7/Census!$J5","v":64801.153846153844},{"$f":"E7/Census!$J5","v":65571.153846153844},{"$f":"F7/Census!$J5","v":66407.692307692312},{"$f":"G7/Census!$J5","v":67212.692307692312},{"$f":"H7/Census!$J5","v":68183.076923076922},{"$f":"I7/Census!$J5","v":69106.538461538454},{"$f":"J7/Census!$J5","v":69760},{"$f":"K7/Census!$J5","v":70460.38461538461},{"$f":"L7/Census!$J5","v":70393.461538461532},{"$f":"M7/Census!$J5","v":71145.638535381397},{"$f":"N7/Census!$J5","v":71786.218099586898},{"$f":"O7/Census!$J5","v":72432.565300242451},{"$f":"P7/Census!$J5","v":73084.732067868579},{"$f":"Q7/Census!$J5","v":73742.77080055674},{"$f":"R7/Census!$J5","v":74406.734368179154},{"$f":"S7/Census!$J5","v":75081.476323059673},{"$f":"T7/Census!$J5","v":75762.337034656797},{"$f":"U7/Census!$J5","v":76449.371989639898},{"$f":"V7/Census!$J5","v":77142.637177847617},{"$f":"W7/Census!$J5","v":77842.189096850838},{"$f":"X7/Census!$J5","v":78536.715518058278},{"$f":"Y7/Census!$J5","v":79237.438668254865},{"$f":"Z7/Census!$J5","v":79944.413836122199},{"$f":"AA7/Census!$J5","v":80657.696803640574},{"$f":"AB7/Census!$J5","v":81377.343850490346},{"$f":"AC7/Census!$J5","v":82103.411758492352},{"$f":"AD7/Census!$J5","v":82835.957816088441},{"$f":"AE7/Census!$J5","v":83575.039822861349},{"$f":"AF7/Census!$J5","v":84320.716094095464},{"$f":"AG7/Census!$J5","v":85073.045465377887},{"$f":"AH7/Census!$J5","v":85832.087297240709},{"$f":"AI7/Census!$J5","v":86597.90147984479},{"$f":"AJ7/Census!$J5","v":87370.548437705118},{"$f":"AK7/Census!$J5","v":88150.089134458554},{"$f":"AL7/Census!$J5","v":88936.585077673852},{"$f":"AM7/Census!$J5","v":89730.098323704937},{"$f":"AN7/Census!$J5","v":90530.69148258715},{"$f":"AO7/Census!$J5","v":91338.427722977372},{"$f":"AP7/Census!$J5","v":92153.370777138218},{"$f":"AQ7/Census!$J5","v":93805.135104067187},{"$f":"AR7/Census!$J5","v":94642.086704871326},{"$f":"AS7/Census!$J5","v":95486.505785801288},{"$f":"AT7/Census!$J5","v":96338.458973480811},{"$f":"AU7/Census!$J5","v":97198.013488992219},{"$f":"AV7/Census!$J5","v":98065.237153180162},{"$f":"AW7/Census!$J5","v":98940.198392002945},{"$f":"AX7/Census!$J5","v":99822.966241931383},{"$f":"AY7/Census!$J5","v":100713.61035539614},{"$f":"AZ7/Census!$J5","v":101612.2010062832},{"$f":"BA7/Census!$J5","v":102518.80909547888},{"$f":"BB7/Census!$J5","v":103433.50615646392},{"$f":"BC7/Census!$J5","v":104356.36436095773},{"$f":"BD7/Census!$J5","v":105287.4565246128},{"$f":"BE7/Census!$J5","v":106226.85611276019},{"$f":"BF7/Census!$J5","v":107174.63724620592},{"$f":"BG7/Census!$J5","v":108130.87470707951},{"$f":"BH7/Census!$J5","v":109095.64394473415},{"$f":"BI7/Census!$J5","v":110069.02108170014},{"$f":"BJ7/Census!$J5","v":111051.08291969092},{"$f":"BK7/Census!$J5","v":112041.90694566302},{"$f":"BL7/Census!$J5","v":113041.57133792993},{"$f":"BM7/Census!$J5","v":114050.15497233049},{"$f":"BN7/Census!$J5","v":115067.73742845248},{"$f":"BO7/Census!$J5","v":116094.39899591157},{"$f":"BP7/Census!$J5","v":117130.22068068638},{"$f":"BQ7/Census!$J5","v":118175.28421150999},{"$f":"BR7/Census!$J5","v":119229.67204631861},{"$f":"BS7/Census!$J5","v":120293.46737875763},{"$f":"BT7/Census!$J5","v":121366.75414474585},{"$f":"BU7/Census!$J5","v":122449.61702909815},{"$f":"BV7/Census!$J5","v":123542.1414722074},{"$f":"BW7/Census!$J5","v":124644.41367678579},{"$f":"BX7/Census!$J5","v":125756.5206146666},{"$f":"BY7/Census!$J5","v":126878.5500336663},{"$f":"BZ7/Census!$J5","v":128010.59046450812},{"$f":"CA7/Census!$J5","v":129152.73122780741},{"$f":"CB7/Census!$J5","v":130305.06244111911},{"$f":"CC7/Census!$J5","v":131467.67502604838},{"$f":"CD7/Census!$J5","v":132640.66071542434},{"$f":"CE7/Census!$J5","v":133824.11206053814},{"$f":"CF7/Census!$J5","v":135018.12243844554},{"$f":"CG7/Census!$J5","v":136222.78605933429},{"$f":"CH7/Census!$J5","v":137438.1979739579},{"$f":"CI7/Census!$J5","v":138664.45408113505},{"$f":"CJ7/Census!$J5","v":139901.65113531641},{"$f":"CK7/Census!$J5","v":141149.88675421878},{"$f":"CL7/Census!$J5","v":142409.25942652725},{"$f":"CM7/Census!$J5","v":143679.86851966631},{"$f":"CN7/Census!$J5","v":144961.81428764004}]
[null,"Cardinia (S)",{"$f":"C8/Census!$J6","v":27082.5},{"$f":"D8/Census!$J6","v":28722.142857142859},{"$f":"E8/Census!$J6","v":30211.071428571431},{"$f":"F8/Census!$J6","v":31453.571428571431},{"$f":"G8/Census!$J6","v":32963.571428571428},{"$f":"H8/Census!$J6","v":34847.5},{"$f":"I8/Census!$J6","v":36572.5},{"$f":"J8/Census!$J6","v":38256.071428571428},{"$f":"K8/Census!$J6","v":40063.928571428572},{"$f":"L8/Census!$J6","v":41497.5},{"$f":"M8/Census!$J6","v":43443.546405893045},{"$f":"N8/Census!$J6","v":44891.52874831931},{"$f":"O8/Census!$J6","v":46387.772640214607},{"$f":"P8/Census!$J6","v":47933.886648955006},{"$f":"Q8/Census!$J6","v":49531.53295579827},{"$f":"R8/Census!$J6","v":51182.429142845547},{"$f":"S8/Census!$J6","v":52447.741443798805},{"$f":"T8/Census!$J6","v":53744.334308135934},{"$f":"U8/Census!$J6","v":55072.981041897583},{"$f":"V8/Census!$J6","v":56434.474068498472},{"$f":"W8/Census!$J6","v":57829.625401339807},{"$f":"X8/Census!$J6","v":58824.176750492588},{"$f":"Y8/Census!$J6","v":59835.83234991911},{"$f":"Z8/Census!$J6","v":60864.886357761832},{"$f":"AA8/Census!$J6","v":61911.637991081945},{"$f":"AB8/Census!$J6","v":62976.391612862491},{"$f":"AC8/Census!$J6","v":64059.456820507701},{"$f":"AD8/Census!$J6","v":65161.148535864275},{"$f":"AE8/Census!$J6","v":66281.787096790984},{"$f":"AF8/Census!$J6","v":67421.698350302991},{"$f":"AG8/Census!$J6","v":68581.213747318034},{"$f":"AH8/Census!$J6","v":69760.670439032139},{"$f":"AI8/Census!$J6","v":70960.411374952746},{"$f":"AJ8/Census!$J6","v":72180.785402617825},{"$f":"AK8/Census!$J6","v":73422.147369029903},{"$f":"AL8/Census!$J6","v":74684.858223834628},{"$f":"AM8/Census!$J6","v":75969.285124273767},{"$f":"AN8/Census!$J6","v":77275.801541943118},{"$f":"AO8/Census!$J6","v":78604.787371386541},{"$f":"AP8/Census!$J6","v":79956.629040557527},{"$f":"AQ8/Census!$J6","v":82730.458953044363},{"$f":"AR8/Census!$J6","v":84153.253740262066},{"$f":"AS8/Census!$J6","v":85600.517689529064},{"$f":"AT8/Census!$J6","v":87072.671620415931},{"$f":"AU8/Census!$J6","v":88570.143589729705},{"$f":"AV8/Census!$J6","v":90093.369015979479},{"$f":"AW8/Census!$J6","v":91642.790805982731},{"$f":"AX8/Census!$J6","v":93218.859483648848},{"$f":"AY8/Census!$J6","v":94822.033320977527},{"$f":"AZ8/Census!$J6","v":96452.778471310186},{"$f":"BA8/Census!$J6","v":98111.569104872789},{"$f":"BB8/Census!$J6","v":99798.887546649974},{"$f":"BC8/Census!$J6","v":101515.22441663026},{"$f":"BD8/Census!$J6","v":103261.07877246302},{"$f":"BE8/Census!$J6","v":105036.95825456918},{"$f":"BF8/Census!$J6","v":106843.3792337472},{"$f":"BG8/Census!$J6","v":108680.86696131779},{"$f":"BH8/Census!$J6","v":110549.9557218507},{"$f":"BI8/Census!$J6","v":112451.18898851819},{"$f":"BJ8/Census!$J6","v":114385.11958112018},{"$f":"BK8/Census!$J6","v":116352.30982682719},{"$f":"BL8/Census!$J6","v":118353.33172368756},{"$f":"BM8/Census!$J6","v":120388.76710694688},{"$f":"BN8/Census!$J6","v":122459.20781822772},{"$f":"BO8/Census!$J6","v":124565.25587761869},{"$f":"BP8/Census!$J6","v":126707.52365872345},{"$f":"BQ8/Census!$J6","v":128886.63406671982},{"$f":"BR8/Census!$J6","v":131103.2207194815},{"$f":"BS8/Census!$J6","v":133357.92813181441},{"$f":"BT8/Census!$J6","v":135651.41190286164},{"$f":"BU8/Census!$J6","v":137984.33890673163},{"$f":"BV8/Census!$J6","v":140357.38748640416},{"$f":"BW8/Census!$J6","v":142771.24765097178},{"$f":"BX8/Census!$J6","v":145226.62127627304},{"$f":"BY8/Census!$J6","v":147724.22230897608},{"$f":"BZ8/Census!$J6","v":150264.77697417256},{"$f":"CA8/Census!$J6","v":152849.02398654111},{"$f":"CB8/Census!$J6","v":155477.71476514294},{"$f":"CC8/Census!$J6","v":158151.61365191118},{"$f":"CD8/Census!$J6","v":160871.49813389766},{"$f":"CE8/Census!$J6","v":163638.15906934254},{"$f":"CF8/Census!$J6","v":166452.40091763093},{"$f":"CG8/Census!$J6","v":169315.04197320508},{"$f":"CH8/Census!$J6","v":172226.914603499},{"$f":"CI8/Census!$J6","v":175188.86549096511},{"$f":"CJ8/Census!$J6","v":178201.75587926334},{"$f":"CK8/Census!$J6","v":181266.46182368416},{"$f":"CL8/Census!$J6","v":184383.87444587832},{"$f":"CM8/Census!$J6","v":187554.90019296741},{"$f":"CN8/Census!$J6","v":190780.46110111073}]
[null,"Casey (C)",{"$f":"C9/Census!$J7","v":84284.516129032258},{"$f":"D9/Census!$J7","v":86851.612903225803},{"$f":"E9/Census!$J7","v":89684.838709677424},{"$f":"F9/Census!$J7","v":92882.903225806454},{"$f":"G9/Census!$J7","v":96621.93548387097},{"$f":"H9/Census!$J7","v":100899.67741935483},{"$f":"I9/Census!$J7","v":105410},{"$f":"J9/Census!$J7","v":109820.32258064515},{"$f":"K9/Census!$J7","v":114181.29032258064},{"$f":"L9/Census!$J7","v":117612.90322580645},{"$f":"M9/Census!$J7","v":122121.88052277168},{"$f":"N9/Census!$J7","v":125484.94005211961},{"$f":"O9/Census!$J7","v":128940.61336492321},{"$f":"P9/Census!$J7","v":132491.45091050139},{"$f":"Q9/Census!$J7","v":136140.07337384945},{"$f":"R9/Census!$J7","v":139889.17360982779},{"$f":"S9/Census!$J7","v":142916.88651247084},{"$f":"T9/Census!$J7","v":146010.13018625416},{"$f":"U9/Census!$J7","v":149170.3229565291},{"$f":"V9/Census!$J7","v":152398.91384639035},{"$f":"W9/Census!$J7","v":155697.38324108746},{"$f":"X9/Census!$J7","v":158259.89663095193},{"$f":"Y9/Census!$J7","v":160864.5846209063},{"$f":"Z9/Census!$J7","v":163512.1413329402},{"$f":"AA9/Census!$J7","v":166203.27231310747},{"$f":"AB9/Census!$J7","v":168938.69471954662},{"$f":"AC9/Census!$J7","v":171719.13751359622},{"$f":"AD9/Census!$J7","v":174545.34165405505},{"$f":"AE9/Census!$J7","v":177418.06029464008},{"$f":"AF9/Census!$J7","v":180338.05898469398},{"$f":"AG9/Census!$J7","v":183306.11587319602},{"$f":"AH9/Census!$J7","v":186323.02191613041},{"$f":"AI9/Census!$J7","v":189389.5810872681},{"$f":"AJ9/Census!$J7","v":192506.61059241701},{"$f":"AK9/Census!$J7","v":195674.94108719897},{"$f":"AL9/Census!$J7","v":198895.41689841074},{"$f":"AM9/Census!$J7","v":202168.89624902804},{"$f":"AN9/Census!$J7","v":205496.2514869133},{"$f":"AO9/Census!$J7","v":208878.36931728674},{"$f":"AP9/Census!$J7","v":212316.15103902449},{"$f":"AQ9/Census!$J7","v":219362.3857654483},{"$f":"AR9/Census!$J7","v":222972.71651767532},{"$f":"AS9/Census!$J7","v":226642.46715674843},{"$f":"AT9/Census!$J7","v":230372.61563266593},{"$f":"AU9/Census!$J7","v":234164.15599081514},{"$f":"AV9/Census!$J7","v":238018.09863687516},{"$f":"AW9/Census!$J7","v":241935.47060607927},{"$f":"AX9/Census!$J7","v":245917.31583690931},{"$f":"AY9/Census!$J7","v":249964.69544929391},{"$f":"AZ9/Census!$J7","v":254078.68802738609},{"$f":"BA9/Census!$J7","v":258260.38990699453},{"$f":"BB9/Census!$J7","v":262510.91546774557},{"$f":"BC9/Census!$J7","v":266831.39743005356},{"$f":"BD9/Census!$J7","v":271222.98715697916},{"$f":"BE9/Census!$J7","v":275686.85496105527},{"$f":"BF9/Census!$J7","v":280224.19041616336},{"$f":"BG9/Census!$J7","v":284836.20267454186},{"$f":"BH9/Census!$J7","v":289524.1207890131},{"$f":"BI9/Census!$J7","v":294289.19404051267},{"$f":"BJ9/Census!$J7","v":299132.69227100973},{"$f":"BK9/Census!$J7","v":304055.90622190671},{"$f":"BL9/Census!$J7","v":309060.14787800791},{"$f":"BM9/Census!$J7","v":314146.75081715023},{"$f":"BN9/Census!$J7","v":319317.07056558726},{"$f":"BO9/Census!$J7","v":324572.4849592229},{"$f":"BP9/Census!$J7","v":329914.39451079012},{"$f":"BQ9/Census!$J7","v":335344.22278307308},{"$f":"BR9/Census!$J7","v":340863.4167682713},{"$f":"BS9/Census!$J7","v":346473.4472736083},{"$f":"BT9/Census!$J7","v":352175.80931328598},{"$f":"BU9/Census!$J7","v":357972.02250689018},{"$f":"BV9/Census!$J7","v":363863.63148435368},{"$f":"BW9/Census!$J7","v":369852.20629758359},{"$f":"BX9/Census!$J7","v":375939.34283886343},{"$f":"BY9/Census!$J7","v":382126.66326614225},{"$f":"BZ9/Census!$J7","v":388415.81643532222},{"$f":"CA9/Census!$J7","v":394808.47833966173},{"$f":"CB9/Census!$J7","v":401306.35255640972},{"$f":"CC9/Census!$J7","v":407911.17070079141},{"$f":"CD9/Census!$J7","v":414624.69288746495},{"$f":"CE9/Census!$J7","v":421448.70819957455},{"$f":"CF9/Census!$J7","v":428385.0351655212},{"$f":"CG9/Census!$J7","v":435435.52224358229},{"$f":"CH9/Census!$J7","v":442602.04831450561},{"$f":"CI9/Census!$J7","v":449886.52318221208},{"$f":"CJ9/Census!$J7","v":457290.88808273763},{"$f":"CK9/Census!$J7","v":464817.11620155285},{"$f":"CL9/Census!$J7","v":472467.21319939586},{"$f":"CM9/Census!$J7","v":480243.21774676006},{"$f":"CN9/Census!$J7","v":488147.20206717803}]
[null,"Frankston (C)",{"$f":"C10/Census!$J8","v":52140},{"$f":"D10/Census!$J8","v":52877.599999999999},{"$f":"E10/Census!$J8","v":53740.4},{"$f":"F10/Census!$J8","v":54472.4},{"$f":"G10/Census!$J8","v":55116},{"$f":"H10/Census!$J8","v":55800.800000000003},{"$f":"I10/Census!$J8","v":56287.199999999997},{"$f":"J10/Census!$J8","v":56738.8},{"$f":"K10/Census!$J8","v":57058},{"$f":"L10/Census!$J8","v":57335.199999999997},{"$f":"M10/Census!$J8","v":57846.062510881711},{"$f":"N10/Census!$J8","v":58318.599029666118},{"$f":"O10/Census!$J8","v":58794.995634200401},{"$f":"P10/Census!$J8","v":59275.283856993483},{"$f":"Q10/Census!$J8","v":59759.495488139022},{"$f":"R10/Census!$J8","v":60247.662577419542},{"$f":"S10/Census!$J8","v":60761.459732620264},{"$f":"T10/Census!$J8","v":61279.638593357755},{"$f":"U10/Census!$J8","v":61802.23652718692},{"$f":"V10/Census!$J8","v":62329.291220336323},{"$f":"W10/Census!$J8","v":62860.840680425885},{"$f":"X10/Census!$J8","v":63430.752259477522},{"$f":"Y10/Census!$J8","v":64005.830794688532},{"$f":"Z10/Census!$J8","v":64586.123130932647},{"$f":"AA10/Census!$J8","v":65171.676537790532},{"$f":"AB10/Census!$J8","v":65762.53871340031},{"$f":"AC10/Census!$J8","v":66358.757788342933},{"$f":"AD10/Census!$J8","v":66960.382329562868},{"$f":"AE10/Census!$J8","v":67567.461344324212},{"$f":"AF10/Census!$J8","v":68180.044284202799},{"$f":"AG10/Census!$J8","v":68798.181049114399},{"$f":"AH10/Census!$J8","v":69421.921991379437},{"$f":"AI10/Census!$J8","v":70051.317919824709},{"$f":"AJ10/Census!$J8","v":70686.420103922108},{"$f":"AK10/Census!$J8","v":71327.280277964906},{"$f":"AL10/Census!$J8","v":71973.950645282021},{"$f":"AM10/Census!$J8","v":72626.4838824904},{"$f":"AN10/Census!$J8","v":73284.933143785878},{"$f":"AO10/Census!$J8","v":73949.352065273109},{"$f":"AP10/Census!$J8","v":74619.794769334636},{"$f":"AQ10/Census!$J8","v":75978.970472592482},{"$f":"AR10/Census!$J8","v":76667.81418782199},{"$f":"AS10/Census!$J8","v":77362.903126710866},{"$f":"AT10/Census!$J8","v":78064.293909966698},{"$f":"AU10/Census!$J8","v":78772.043671634048},{"$f":"AV10/Census!$J8","v":79486.210063748586},{"$f":"AW10/Census!$J8","v":80206.85126103324},{"$f":"AX10/Census!$J8","v":80934.025965637047},{"$f":"AY10/Census!$J8","v":81667.793411916937},{"$f":"AZ10/Census!$J8","v":82408.213371262827},{"$f":"BA10/Census!$J8","v":83155.346156966494},{"$f":"BB10/Census!$J8","v":83909.252629134629},{"$f":"BC10/Census!$J8","v":84669.994199646331},{"$f":"BD10/Census!$J8","v":85437.632837155688},{"$f":"BE10/Census!$J8","v":86212.231072139519},{"$f":"BF10/Census!$J8","v":86993.852001991123},{"$f":"BG10/Census!$J8","v":87782.55929616002},{"$f":"BH10/Census!$J8","v":88578.417201338307},{"$f":"BI10/Census!$J8","v":89381.490546694127},{"$f":"BJ10/Census!$J8","v":90191.844749152617},{"$f":"BK10/Census!$J8","v":91009.545818724466},{"$f":"BL10/Census!$J8","v":91834.660363883158},{"$f":"BM10/Census!$J8","v":92667.255596990653},{"$f":"BN10/Census!$J8","v":93507.399339772455},{"$f":"BO10/Census!$J8","v":94355.160028842234},{"$f":"BP10/Census!$J8","v":95210.606721276505},{"$f":"BQ10/Census!$J8","v":96073.809100239974},{"$f":"BR10/Census!$J8","v":96944.837480661779},{"$f":"BS10/Census!$J8","v":97823.762814963164},{"$f":"BT10/Census!$J8","v":98710.656698837192},{"$f":"BU10/Census!$J8","v":99605.591377080797},{"$f":"BV10/Census!$J8","v":100508.6397494797},{"$f":"BW10/Census!$J8","v":101419.8753767467},{"$f":"BX10/Census!$J8","v":102339.37248651382},{"$f":"BY10/Census!$J8","v":103267.20597937873},{"$f":"BZ10/Census!$J8","v":104203.45143500602},{"$f":"CA10/Census!$J8","v":105148.1851182838},{"$f":"CB10/Census!$J8","v":106101.48398553608},{"$f":"CC10/Census!$J8","v":107063.42569079153},{"$f":"CD10/Census!$J8","v":108034.08859210899},{"$f":"CE10/Census!$J8","v":109013.55175796046},{"$f":"CF10/Census!$J8","v":110001.89497367173},{"$f":"CG10/Census!$J8","v":110999.19874792176},{"$f":"CH10/Census!$J8","v":112005.54431930056},{"$f":"CI10/Census!$J8","v":113021.0136629269},{"$f":"CJ10/Census!$J8","v":114045.68949712573},{"$f":"CK10/Census!$J8","v":115079.65529016641},{"$f":"CL10/Census!$J8","v":116122.99526706178},{"$f":"CM10/Census!$J8","v":117175.79441642894},{"$f":"CN10/Census!$J8","v":118238.13849741247}]
[null,"Glen Eira (C)",{"$f":"C11/Census!$J9","v":54860.800000000003},{"$f":"D11/Census!$J9","v":55646.400000000001},{"$f":"E11/Census!$J9","v":56504},{"$f":"F11/Census!$J9","v":57477.599999999999},{"$f":"G11/Census!$J9","v":58369.599999999999},{"$f":"H11/Census!$J9","v":59433.2},{"$f":"I11/Census!$J9","v":60582.8},{"$f":"J11/Census!$J9","v":61568},{"$f":"K11/Census!$J9","v":62614},{"$f":"L11/Census!$J9","v":63286.400000000001},{"$f":"M11/Census!$J9","v":64140.142420460077},{"$f":"N11/Census!$J9","v":64918.540666972673},{"$f":"O11/Census!$J9","v":65706.385475455812},{"$f":"P11/Census!$J9","v":66503.791488425006},{"$f":"Q11/Census!$J9","v":67310.874739685707},{"$f":"R11/Census!$J9","v":68127.752671217808},{"$f":"S11/Census!$J9","v":68923.009292045303},{"$f":"T11/Census!$J9","v":69727.548959328502},{"$f":"U11/Census!$J9","v":70541.48003425452},{"$f":"V11/Census!$J9","v":71364.912142912814},{"$f":"W11/Census!$J9","v":72197.956191060366},{"$f":"X11/Census!$J9","v":72939.291353050125},{"$f":"Y11/Census!$J9","v":73688.238611716806},{"$f":"Z11/Census!$J9","v":74444.876128759439},{"$f":"AA11/Census!$J9","v":75209.28286844847},{"$f":"AB11/Census!$J9","v":75981.538605866692},{"$f":"AC11/Census!$J9","v":76761.723935234579},{"$f":"AD11/Census!$J9","v":77549.920278321457},{"$f":"AE11/Census!$J9","v":78346.209892942716},{"$f":"AF11/Census!$J9","v":79150.675881544492},{"$f":"AG11/Census!$J9","v":79963.40219987632},{"$f":"AH11/Census!$J9","v":80784.473665753045},{"$f":"AI11/Census!$J9","v":81613.975967906503},{"$f":"AJ11/Census!$J9","v":82451.99567492817},{"$f":"AK11/Census!$J9","v":83298.620244303718},{"$f":"AL11/Census!$J9","v":84153.938031540209},{"$f":"AM11/Census!$J9","v":85018.038299387015},{"$f":"AN11/Census!$J9","v":85891.011227151583},{"$f":"AO11/Census!$J9","v":86772.947920110601},{"$f":"AP11/Census!$J9","v":87663.94041901805},{"$f":"AQ11/Census!$J9","v":89473.465732812343},{"$f":"AR11/Census!$J9","v":90392.187393537592},{"$f":"AS11/Census!$J9","v":91320.342571596411},{"$f":"AT11/Census!$J9","v":92258.028131200335},{"$f":"AU11/Census!$J9","v":93205.341931171424},{"$f":"AV11/Census!$J9","v":94162.382835154945},{"$f":"AW11/Census!$J9","v":95129.250721937089},{"$f":"AX11/Census!$J9","v":96106.04649586849},{"$f":"AY11/Census!$J9","v":97092.872097394735},{"$f":"AZ11/Census!$J9","v":98089.83051369524},{"$f":"BA11/Census!$J9","v":99097.025789431063},{"$f":"BB11/Census!$J9","v":100114.56303760329},{"$f":"BC11/Census!$J9","v":101142.54845052285},{"$f":"BD11/Census!$J9","v":102181.08931089293},{"$f":"BE11/Census!$J9","v":103230.29400300524},{"$f":"BF11/Census!$J9","v":104290.27202405127},{"$f":"BG11/Census!$J9","v":105361.13399554956},{"$f":"BH11/Census!$J9","v":106442.99167489047},{"$f":"BI11/Census!$J9","v":107535.9579669993},{"$f":"BJ11/Census!$J9","v":108640.14693611945},{"$f":"BK11/Census!$J9","v":109755.67381771626},{"$f":"BL11/Census!$J9","v":110882.65503050336},{"$f":"BM11/Census!$J9","v":112021.20818859219},{"$f":"BN11/Census!$J9","v":113171.45211376666},{"$f":"BO11/Census!$J9","v":114333.50684788341},{"$f":"BP11/Census!$J9","v":115507.49366539982},{"$f":"BQ11/Census!$J9","v":116693.53508603042},{"$f":"BR11/Census!$J9","v":117891.75488753321},{"$f":"BS11/Census!$J9","v":119102.27811862747},{"$f":"BT11/Census!$J9","v":120325.23111204414},{"$f":"BU11/Census!$J9","v":121560.74149770997},{"$f":"BV11/Census!$J9","v":122808.93821606747},{"$f":"BW11/Census!$J9","v":124069.95153153126},{"$f":"BX11/Census!$J9","v":125343.9130460828},{"$f":"BY11/Census!$J9","v":126630.95571300465},{"$f":"BZ11/Census!$J9","v":127931.21385075564},{"$f":"CA11/Census!$J9","v":129244.82315698887},{"$f":"CB11/Census!$J9","v":130571.92072271316},{"$f":"CC11/Census!$J9","v":131912.6450466002},{"$f":"CD11/Census!$J9","v":133267.13604943868},{"$f":"CE11/Census!$J9","v":134635.53508873662},{"$f":"CF11/Census!$J9","v":136017.98497347374},{"$f":"CG11/Census!$J9","v":137414.62997900526},{"$f":"CH11/Census!$J9","v":138825.61586211898},{"$f":"CI11/Census!$J9","v":140251.08987624646},{"$f":"CJ11/Census!$J9","v":141691.20078683094},{"$f":"CK11/Census!$J9","v":143146.09888685273},{"$f":"CL11/Census!$J9","v":144615.93601251399},{"$f":"CM11/Census!$J9","v":146100.86555908489},{"$f":"CN11/Census!$J9","v":147601.04249691212}]
[null,"Greater Dandenong (C)",{"$f":"C12/Census!$J10","v":49023.103448275862},{"$f":"D12/Census!$J10","v":50040},{"$f":"E12/Census!$J10","v":51207.586206896551},{"$f":"F12/Census!$J10","v":52460.34482758621},{"$f":"G12/Census!$J10","v":53814.137931034486},{"$f":"H12/Census!$J10","v":55248.965517241384},{"$f":"I12/Census!$J10","v":56385.517241379312},{"$f":"J12/Census!$J10","v":57289.655172413797},{"$f":"K12/Census!$J10","v":58021.034482758623},{"$f":"L12/Census!$J10","v":58055.862068965522},{"$f":"M12/Census!$J10","v":59071.136977704235},{"$f":"N12/Census!$J10","v":60015.023492557179},{"$f":"O12/Census!$J10","v":60973.992191341313},{"$f":"P12/Census!$J10","v":61948.284069418405},{"$f":"Q12/Census!$J10","v":62938.143972969498},{"$f":"R12/Census!$J10","v":63943.820660526464},{"$f":"S12/Census!$J10","v":64883.486056409965},{"$f":"T12/Census!$J10","v":65836.959996216872},{"$f":"U12/Census!$J10","v":66804.445398865035},{"$f":"V12/Census!$J10","v":67786.148165200575},{"$f":"W12/Census!$J10","v":68782.277221817858},{"$f":"X12/Census!$J10","v":69774.494597926372},{"$f":"Y12/Census!$J10","v":70781.025186118277},{"$f":"Z12/Census!$J10","v":71802.075461350585},{"$f":"AA12/Census!$J10","v":72837.854877080812},{"$f":"AB12/Census!$J10","v":73888.575908233135},{"$f":"AC12/Census!$J10","v":74954.454094784509},{"$f":"AD12/Census!$J10","v":76035.708085979553},{"$f":"AE12/Census!$J10","v":77132.559685183282},{"$f":"AF12/Census!$J10","v":78245.233895380734},{"$f":"AG12/Census!$J10","v":79373.958965333019},{"$f":"AH12/Census!$J10","v":80518.966436399234},{"$f":"AI12/Census!$J10","v":81680.49119003379},{"$f":"AJ12/Census!$J10","v":82858.771495968846},{"$f":"AK12/Census!$J10","v":84054.049061091791},{"$f":"AL12/Census!$J10","v":85266.56907902805},{"$f":"AM12/Census!$J10","v":86496.580280438735},{"$f":"AN12/Census!$J10","v":87744.334984044195},{"$f":"AO12/Census!$J10","v":89010.0891483835},{"$f":"AP12/Census!$J10","v":90294.102424320547},{"$f":"AQ12/Census!$J10","v":92917.963696417224},{"$f":"AR12/Census!$J10","v":94258.349939153632},{"$f":"AS12/Census!$J10","v":95618.071897054746},{"$f":"AT12/Census!$J10","v":96997.408497096243},{"$f":"AU12/Census!$J10","v":98396.642689909349},{"$f":"AV12/Census!$J10","v":99816.061507824008},{"$f":"AW12/Census!$J10","v":101255.95612374938},{"$f":"AX12/Census!$J10","v":102716.6219109036},{"$f":"AY12/Census!$J10","v":104198.35850340541},{"$f":"AZ12/Census!$J10","v":105701.46985773944},{"$f":"BA12/Census!$J10","v":107226.26431510868},{"$f":"BB12/Census!$J10","v":108773.05466468599},{"$f":"BC12/Census!$J10","v":110342.15820777821},{"$f":"BD12/Census!$J10","v":111933.89682291594},{"$f":"BE12/Census!$J10","v":113548.59703188209},{"$f":"BF12/Census!$J10","v":115186.59006669313},{"$f":"BG12/Census!$J10","v":116848.21193754637},{"$f":"BH12/Census!$J10","v":118533.80350174762},{"$f":"BI12/Census!$J10","v":120243.7105336329},{"$f":"BJ12/Census!$J10","v":121978.28379549914},{"$f":"BK12/Census!$J10","v":123737.87910955776},{"$f":"BL12/Census!$J10","v":125522.85743092652},{"$f":"BM12/Census!$J10","v":127333.58492167402},{"$f":"BN12/Census!$J10","v":129170.43302593249},{"$f":"BO12/Census!$J10","v":131033.77854609418},{"$f":"BP12/Census!$J10","v":132924.00372010679},{"$f":"BQ12/Census!$J10","v":134841.49629988387},{"$f":"BR12/Census!$J10","v":136786.6496308466},{"$f":"BS12/Census!$J10","v":138759.86273261264},{"$f":"BT12/Census!$J10","v":140761.54038084936},{"$f":"BU12/Census!$J10","v":142792.09319030741},{"$f":"BV12/Census!$J10","v":144851.93769905233},{"$f":"BW12/Census!$J10","v":146941.49645391139},{"$f":"BX12/Census!$J10","v":149061.19809715261},{"$f":"BY12/Census!$J10","v":151211.47745441468},{"$f":"BZ12/Census!$J10","v":153392.7756239048},{"$f":"CA12/Census!$J10","v":155605.54006688372},{"$f":"CB12/Census!$J10","v":157850.22469945563},{"$f":"CC12/Census!$J10","v":160127.28998568255},{"$f":"CD12/Census!$J10","v":162437.20303204164},{"$f":"CE12/Census!$J10","v":164780.43768324534},{"$f":"CF12/Census!$J10","v":167157.47461944356},{"$f":"CG12/Census!$J10","v":169568.80145482818},{"$f":"CH12/Census!$J10","v":172014.91283765997},{"$f":"CI12/Census!$J10","v":174496.31055173831},{"$f":"CJ12/Census!$J10","v":177013.50361933489},{"$f":"CK12/Census!$J10","v":179567.00840561208},{"$f":"CL12/Census!$J10","v":182157.34872454763},{"$f":"CM12/Census!$J10","v":184785.05594638744},{"$f":"CN12/Census!$J10","v":187450.66910664836}]
[null,"Kingston ©",{"$f":"C13/Census!$J11","v":59321.599999999999},{"$f":"D13/Census!$J11","v":60174},{"$f":"E13/Census!$J11","v":60934.400000000001},{"$f":"F13/Census!$J11","v":61684},{"$f":"G13/Census!$J11","v":62497.599999999999},{"$f":"H13/Census!$J11","v":63576.4},{"$f":"I13/Census!$J11","v":64420.4},{"$f":"J13/Census!$J11","v":65380.800000000003},{"$f":"K13/Census!$J11","v":66321.600000000006},{"$f":"L13/Census!$J11","v":66917.2},{"$f":"M13/Census!$J11","v":67733.359738590472},{"$f":"N13/Census!$J11","v":68545.360839173343},{"$f":"O13/Census!$J11","v":69367.096371798136},{"$f":"P13/Census!$J11","v":70198.683034788468},{"$f":"Q13/Census!$J11","v":71040.238925470781},{"$f":"R13/Census!$J11","v":71891.883556946035},{"$f":"S13/Census!$J11","v":72781.041653392531},{"$f":"T13/Census!$J11","v":73681.196848278531},{"$f":"U13/Census!$J11","v":74592.485153607471},{"$f":"V13/Census!$J11","v":75515.044263577933},{"$f":"W13/Census!$J11","v":76449.013575388948},{"$f":"X13/Census!$J11","v":77272.439191212456},{"$f":"Y13/Census!$J11","v":78104.733852077654},{"$f":"Z13/Census!$J11","v":78945.993085690352},{"$f":"AA13/Census!$J11","v":79796.313448676825},{"$f":"AB13/Census!$J11","v":80655.792537666333},{"$f":"AC13/Census!$J11","v":81524.529000492854},{"$f":"AD13/Census!$J11","v":82402.622547517545},{"$f":"AE13/Census!$J11","v":83290.173963073088},{"$f":"AF13/Census!$J11","v":84187.285117031381},{"$f":"AG13/Census!$J11","v":85094.058976495755},{"$f":"AH13/Census!$J11","v":86010.599617619213},{"$f":"AI13/Census!$J11","v":86937.012237549818},{"$f":"AJ13/Census!$J11","v":87873.403166504926},{"$f":"AK13/Census!$J11","v":88819.879879975299},{"$f":"AL13/Census!$J11","v":89776.551011060801},{"$f":"AM13/Census!$J11","v":90743.526362938865},{"$f":"AN13/Census!$J11","v":91720.916921467317},{"$f":"AO13/Census!$J11","v":92708.834867922924},{"$f":"AP13/Census!$J11","v":93707.393591877146},{"$f":"AQ13/Census!$J11","v":95736.893050267405},{"$f":"AR13/Census!$J11","v":96768.066723152093},{"$f":"AS13/Census!$J11","v":97810.347077168495},{"$f":"AT13/Census!$J11","v":98863.853741404339},{"$f":"AU13/Census!$J11","v":99928.707633461716},{"$f":"AV13/Census!$J11","v":101005.03097333564},{"$f":"AW13/Census!$J11","v":102092.94729744196},{"$f":"AX13/Census!$J11","v":103192.5814727964},{"$f":"AY13/Census!$J11","v":104304.05971134634},{"$f":"AZ13/Census!$J11","v":105427.50958445703},{"$f":"BA13/Census!$J11","v":106563.06003755362},{"$f":"BB13/Census!$J11","v":107710.84140492114},{"$f":"BC13/Census!$J11","v":108870.98542466384},{"$f":"BD13/Census!$J11","v":110043.62525382542},{"$f":"BE13/Census!$J11","v":111228.89548367247},{"$f":"BF13/Census!$J11","v":112426.93215514233},{"$f":"BG13/Census!$J11","v":113637.87277445724},{"$f":"BH13/Census!$J11","v":114861.85632890696},{"$f":"BI13/Census!$J11","v":116099.02330280116},{"$f":"BJ13/Census!$J11","v":117349.51569359365},{"$f":"BK13/Census!$J11","v":118613.47702818038},{"$f":"BL13/Census!$J11","v":119891.05237937285},{"$f":"BM13/Census!$J11","v":121182.38838254914},{"$f":"BN13/Census!$J11","v":122487.6332524841},{"$f":"BO13/Census!$J11","v":123806.93680036087},{"$f":"BP13/Census!$J11","v":125140.45045096574},{"$f":"BQ13/Census!$J11","v":126488.32726006808},{"$f":"BR13/Census!$J11","v":127850.72193198753},{"$f":"BS13/Census!$J11","v":129227.79083735033},{"$f":"BT13/Census!$J11","v":130619.69203103706},{"$f":"BU13/Census!$J11","v":132026.5852703235},{"$f":"BV13/Census!$J11","v":133448.63203321709},{"$f":"BW13/Census!$J11","v":134885.99553699067},{"$f":"BX13/Census!$J11","v":136338.84075691603},{"$f":"BY13/Census!$J11","v":137807.33444519914},{"$f":"BZ13/Census!$J11","v":139291.64515011926},{"$f":"CA13/Census!$J11","v":140791.94323537446},{"$f":"CB13/Census!$J11","v":142308.40089963525},{"$f":"CC13/Census!$J11","v":143841.1921963089},{"$f":"CD13/Census!$J11","v":145390.49305351658},{"$f":"CE13/Census!$J11","v":146956.48129428591},{"$f":"CF13/Census!$J11","v":148539.33665696072},{"$f":"CG13/Census!$J11","v":150139.24081583071},{"$f":"CH13/Census!$J11","v":151756.37740198342},{"$f":"CI13/Census!$J11","v":153390.93202438083},{"$f":"CJ13/Census!$J11","v":155043.09229116255},{"$f":"CK13/Census!$J11","v":156713.04783117922},{"$f":"CL13/Census!$J11","v":158400.99031575705},{"$f":"CM13/Census!$J11","v":160107.11348069733},{"$f":"CN13/Census!$J11","v":161831.61314851264}]
[null,"Knox (C)",{"$f":"C14/Census!$J12","v":57268.518518518518},{"$f":"D14/Census!$J12","v":57557.777777777774},{"$f":"E14/Census!$J12","v":57906.296296296292},{"$f":"F14/Census!$J12","v":58308.888888888883},{"$f":"G14/Census!$J12","v":58777.777777777774},{"$f":"H14/Census!$J12","v":59389.999999999993},{"$f":"I14/Census!$J12","v":59935.92592592592},{"$f":"J14/Census!$J12","v":60448.888888888883},{"$f":"K14/Census!$J12","v":60945.555555555555},{"$f":"L14/Census!$J12","v":61165.555555555555},{"$f":"M14/Census!$J12","v":61626.530221978443},{"$f":"N14/Census!$J12","v":62191.8741877145},{"$f":"O14/Census!$J12","v":62762.404455493583},{"$f":"P14/Census!$J12","v":63338.168602950718},{"$f":"Q14/Census!$J12","v":63919.214644184452},{"$f":"R14/Census!$J12","v":64505.59103376072},{"$f":"S14/Census!$J12","v":65104.361403374591},{"$f":"T14/Census!$J12","v":65708.689833147015},{"$f":"U14/Census!$J12","v":66318.627915531906},{"$f":"V14/Census!$J12","v":66934.22772188799},{"$f":"W14/Census!$J12","v":67555.541806924084},{"$f":"X14/Census!$J12","v":68210.941951292683},{"$f":"Y14/Census!$J12","v":68872.700557717108},{"$f":"Z14/Census!$J12","v":69540.879313763377},{"$f":"AA14/Census!$J12","v":70215.540505468744},{"$f":"AB14/Census!$J12","v":70896.747023147647},{"$f":"AC14/Census!$J12","v":71584.562367254228},{"$f":"AD14/Census!$J12","v":72279.050654301813},{"$f":"AE14/Census!$J12","v":72980.276622839607},{"$f":"AF14/Census!$J12","v":73688.305639487458},{"$f":"AG14/Census!$J12","v":74403.203705029257},{"$f":"AH14/Census!$J12","v":75125.037460565305},{"$f":"AI14/Census!$J12","v":75853.87419372439},{"$f":"AJ14/Census!$J12","v":76589.781844936355},{"$f":"AK14/Census!$J12","v":77332.829013765164},{"$f":"AL14/Census!$J12","v":78083.084965303686},{"$f":"AM14/Census!$J12","v":78840.619636630407},{"$f":"AN14/Census!$J12","v":79605.503643328761},{"$f":"AO14/Census!$J12","v":80377.80828606979},{"$f":"AP14/Census!$J12","v":81157.605557258619},{"$f":"AQ14/Census!$J12","v":82739.969453601385},{"$f":"AR14/Census!$J12","v":83542.683582960744},{"$f":"AS14/Census!$J12","v":84353.185362928736},{"$f":"AT14/Census!$J12","v":85171.550346556905},{"$f":"AU14/Census!$J12","v":85997.854819885993},{"$f":"AV14/Census!$J12","v":86832.175809057109},{"$f":"AW14/Census!$J12","v":87674.59108749195},{"$f":"AX14/Census!$J12","v":88525.179183142624},{"$f":"AY14/Census!$J12","v":89384.019385811858},{"$f":"AZ14/Census!$J12","v":90251.191754544212},{"$f":"BA14/Census!$J12","v":91126.777125088964},{"$f":"BB14/Census!$J12","v":92010.857117435458},{"$f":"BC14/Census!$J12","v":92903.514143421533},{"$f":"BD14/Census!$J12","v":93804.831414415719},{"$f":"BE14/Census!$J12","v":94714.892949073997},{"$f":"BF14/Census!$J12","v":95633.783581171898},{"$f":"BG14/Census!$J12","v":96561.588967512405},{"$f":"BH14/Census!$J12","v":97498.39559591077},{"$f":"BI14/Census!$J12","v":98444.290793256645},{"$f":"BJ14/Census!$J12","v":99399.362733654474},{"$f":"BK14/Census!$J12","v":100363.70044664294},{"$f":"BL14/Census!$J12","v":101337.393825494},{"$f":"BM14/Census!$J12","v":102320.53363559258},{"$f":"BN14/Census!$J12","v":103313.21152289757},{"$f":"BO14/Census!$J12","v":104315.52002248466},{"$f":"BP14/Census!$J12","v":105327.55256717242},{"$f":"BQ14/Census!$J12","v":106349.40349623181},{"$f":"BR14/Census!$J12","v":107381.16806418028},{"$f":"BS14/Census!$J12","v":108422.94244966113},{"$f":"BT14/Census!$J12","v":109474.82376440906},{"$f":"BU14/Census!$J12","v":110536.91006230281},{"$f":"BV14/Census!$J12","v":111609.30034850532},{"$f":"BW14/Census!$J12","v":112692.09458869293},{"$f":"BX14/Census!$J12","v":113785.3937183738},{"$f":"BY14/Census!$J12","v":114889.29965229701},{"$f":"BZ14/Census!$J12","v":116003.9152939527},{"$f":"CA14/Census!$J12","v":117129.3445451646},{"$f":"CB14/Census!$J12","v":118265.69231577538},{"$f":"CC14/Census!$J12","v":119413.06453342619},{"$f":"CD14/Census!$J12","v":120571.56815343096},{"$f":"CE14/Census!$J12","v":121741.31116874653},{"$f":"CF14/Census!$J12","v":122922.40262003947},{"$f":"CG14/Census!$J12","v":124114.95260585057},{"$f":"CH14/Census!$J12","v":125319.07229285811},{"$f":"CI14/Census!$J12","v":126534.87392624035},{"$f":"CJ14/Census!$J12","v":127762.47084013883},{"$f":"CK14/Census!$J12","v":129001.97746822325},{"$f":"CL14/Census!$J12","v":130253.50935435852},{"$f":"CM14/Census!$J12","v":131517.18316337554},{"$f":"CN14/Census!$J12","v":132793.11669194646}]
[null,"Manningham (C)",{"$f":"C15/Census!$J13","v":41696.428571428572},{"$f":"D15/Census!$J13","v":41942.857142857145},{"$f":"E15/Census!$J13","v":42270.357142857145},{"$f":"F15/Census!$J13","v":42656.071428571435},{"$f":"G15/Census!$J13","v":43137.5},{"$f":"H15/Census!$J13","v":43775},{"$f":"I15/Census!$J13","v":44382.142857142862},{"$f":"J15/Census!$J13","v":44833.928571428572},{"$f":"K15/Census!$J13","v":45566.071428571435},{"$f":"L15/Census!$J13","v":46046.071428571435},{"$f":"M15/Census!$J13","v":46618.730213259507},{"$f":"N15/Census!$J13","v":47067.851585708071},{"$f":"O15/Census!$J13","v":47521.299759986454},{"$f":"P15/Census!$J13","v":47979.116420181002},{"$f":"Q15/Census!$J13","v":48441.34365195944},{"$f":"R15/Census!$J13","v":48908.023946439716},{"$f":"S15/Census!$J13","v":49325.058380759743},{"$f":"T15/Census!$J13","v":49745.648831155944},{"$f":"U15/Census!$J13","v":50169.825619465832},{"$f":"V15/Census!$J13","v":50597.619326078478},{"$f":"W15/Census!$J13","v":51029.060792139302},{"$f":"X15/Census!$J13","v":51429.717001366727},{"$f":"Y15/Census!$J13","v":51833.518974899845},{"$f":"Z15/Census!$J13","v":52240.491411801922},{"$f":"AA15/Census!$J13","v":52650.659205061711},{"$f":"AB15/Census!$J13","v":53064.047443115938},{"$f":"AC15/Census!$J13","v":53480.681411384052},{"$f":"AD15/Census!$J13","v":53900.586593814645},{"$f":"AE15/Census!$J13","v":54323.788674444339},{"$f":"AF15/Census!$J13","v":54750.313538968752},{"$f":"AG15/Census!$J13","v":55180.187276325785},{"$f":"AH15/Census!$J13","v":55613.436180291465},{"$f":"AI15/Census!$J13","v":56050.086751088165},{"$f":"AJ15/Census!$J13","v":56490.165697005563},{"$f":"AK15/Census!$J13","v":56933.699936034282},{"$f":"AL15/Census!$J13","v":57380.71659751235},{"$f":"AM15/Census!$J13","v":57831.243023784613},{"$f":"AN15/Census!$J13","v":58285.306771875177},{"$f":"AO15/Census!$J13","v":58742.935615172923},{"$f":"AP15/Census!$J13","v":59204.15754513038},{"$f":"AQ15/Census!$J13","v":60137.493731438575},{"$f":"AR15/Census!$J13","v":60609.665076488855},{"$f":"AS15/Census!$J13","v":61085.543689089747},{"$f":"AT15/Census!$J13","v":61565.158676964216},{"$f":"AU15/Census!$J13","v":62048.539376375353},{"$f":"AV15/Census!$J13","v":62535.715353920816},{"$f":"AW15/Census!$J13","v":63026.716408341315},{"$f":"AX15/Census!$J13","v":63521.572572343219},{"$f":"AY15/Census!$J13","v":64020.314114435649},{"$f":"AZ15/Census!$J13","v":64522.971540781822},{"$f":"BA15/Census!$J13","v":65029.575597064999},{"$f":"BB15/Census!$J13","v":65540.157270369134},{"$f":"BC15/Census!$J13","v":66054.747791074173},{"$f":"BD15/Census!$J13","v":66573.378634766341},{"$f":"BE15/Census!$J13","v":67096.081524163368},{"$f":"BF15/Census!$J13","v":67622.888431054875},{"$f":"BG15/Census!$J13","v":68153.831578257959},{"$f":"BH15/Census!$J13","v":68688.943441588111},{"$f":"BI15/Census!$J13","v":69228.256751845693},{"$f":"BJ15/Census!$J13","v":69771.804496817931},{"$f":"BK15/Census!$J13","v":70319.619923296603},{"$f":"BL15/Census!$J13","v":70871.736539111764},{"$f":"BM15/Census!$J13","v":71428.188115181139},{"$f":"BN15/Census!$J13","v":71989.008687575842},{"$f":"BO15/Census!$J13","v":72554.232559602271},{"$f":"BP15/Census!$J13","v":73123.894303900219},{"$f":"BQ15/Census!$J13","v":73698.028764557603},{"$f":"BR15/Census!$J13","v":74276.67105924178},{"$f":"BS15/Census!$J13","v":74859.8565813475},{"$f":"BT15/Census!$J13","v":75447.621002161861},{"$f":"BU15/Census!$J13","v":76040.000273046069},{"$f":"BV15/Census!$J13","v":76637.030627634624},{"$f":"BW15/Census!$J13","v":77238.748584051413},{"$f":"BX15/Census!$J13","v":77845.19094714355},{"$f":"BY15/Census!$J13","v":78456.39481073244},{"$f":"BZ15/Census!$J13","v":79072.397559882796},{"$f":"CA15/Census!$J13","v":79693.236873189278},{"$f":"CB15/Census!$J13","v":80318.950725081188},{"$f":"CC15/Census!$J13","v":80949.577388145175},{"$f":"CD15/Census!$J13","v":81585.155435466251},{"$f":"CE15/Census!$J13","v":82225.723742987218},{"$f":"CF15/Census!$J13","v":82871.321491886454},{"$f":"CG15/Census!$J13","v":83521.988170974582},{"$f":"CH15/Census!$J13","v":84177.763579109785},{"$f":"CI15/Census!$J13","v":84838.68782763218},{"$f":"CJ15/Census!$J13","v":85504.801342817344},{"$f":"CK15/Census!$J13","v":86176.144868348871},{"$f":"CL15/Census!$J13","v":86852.759467810683},{"$f":"CM15/Census!$J13","v":87534.68652719869},{"$f":"CN15/Census!$J13","v":88221.967757452134}]
[null,"Maroondah (C)",{"$f":"C16/Census!$J14","v":41278.076923076922},{"$f":"D16/Census!$J14","v":41705.384615384617},{"$f":"E16/Census!$J14","v":42223.461538461539},{"$f":"F16/Census!$J14","v":42854.230769230766},{"$f":"G16/Census!$J14","v":43470.384615384617},{"$f":"H16/Census!$J14","v":44153.846153846149},{"$f":"I16/Census!$J14","v":44738.846153846149},{"$f":"J16/Census!$J14","v":45194.230769230766},{"$f":"K16/Census!$J14","v":45603.461538461539},{"$f":"L16/Census!$J14","v":45923.461538461539},{"$f":"M16/Census!$J14","v":46482.162452236596},{"$f":"N16/Census!$J14","v":46992.710184215932},{"$f":"O16/Census!$J14","v":47508.865636939707},{"$f":"P16/Census!$J14","v":48030.690404123779},{"$f":"Q16/Census!$J14","v":48558.246756013075},{"$f":"R16/Census!$J14","v":49091.597646812304},{"$f":"S16/Census!$J14","v":49628.125764347096},{"$f":"T16/Census!$J14","v":50170.517663765233},{"$f":"U16/Census!$J14","v":50718.837431061176},{"$f":"V16/Census!$J14","v":51273.149852633134},{"$f":"W16/Census!$J14","v":51833.520422937836},{"$f":"X16/Census!$J14","v":52414.848108461949},{"$f":"Y16/Census!$J14","v":53002.695549449301},{"$f":"Z16/Census!$J14","v":53597.135866813216},{"$f":"AA16/Census!$J14","v":54198.243001538875},{"$f":"AB16/Census!$J14","v":54806.091723880636},{"$f":"AC16/Census!$J14","v":55420.757642662546},{"$f":"AD16/Census!$J14","v":56042.31721468312},{"$f":"AE16/Census!$J14","v":56670.847754225695},{"$f":"AF16/Census!$J14","v":57306.427442675224},{"$f":"AG16/Census!$J14","v":57949.135338243192},{"$f":"AH16/Census!$J14","v":58599.051385801416},{"$f":"AI16/Census!$J14","v":59256.256426826199},{"$f":"AJ16/Census!$J14","v":59920.832209454049},{"$f":"AK16/Census!$J14","v":60592.861398650028},{"$f":"AL16/Census!$J14","v":61272.427586490376},{"$f":"AM16/Census!$J14","v":61959.615302560225},{"$f":"AN16/Census!$J14","v":62654.510024468058},{"$f":"AO16/Census!$J14","v":63357.198188478098},{"$f":"AP16/Census!$J14","v":64067.767200261864},{"$f":"AQ16/Census!$J14","v":65512.90230222814},{"$f":"AR16/Census!$J14","v":66247.648149250876},{"$f":"AS16/Census!$J14","v":66990.634380087271},{"$f":"AT16/Census!$J14","v":67741.95341298735},{"$f":"AU16/Census!$J14","v":68501.698702698108},{"$f":"AV16/Census!$J14","v":69269.964752088184},{"$f":"AW16/Census!$J14","v":70046.847123902699},{"$f":"AX16/Census!$J14","v":70832.442452650226},{"$f":"AY16/Census!$J14","v":71626.848456622829},{"$f":"AZ16/Census!$J14","v":72430.163950051065},{"$f":"BA16/Census!$J14","v":73242.488855395175},{"$f":"BB16/Census!$J14","v":74063.924215774256},{"$f":"BC16/Census!$J14","v":74894.572207534729},{"$f":"BD16/Census!$J14","v":75734.536152959859},{"$f":"BE16/Census!$J14","v":76583.92053312168},{"$f":"BF16/Census!$J14","v":77442.83100087721},{"$f":"BG16/Census!$J14","v":78311.37439401036},{"$f":"BH16/Census!$J14","v":79189.658748521149},{"$f":"BI16/Census!$J14","v":80077.793312064139},{"$f":"BJ16/Census!$J14","v":80975.888557537372},{"$f":"BK16/Census!$J14","v":81884.056196823934},{"$f":"BL16/Census!$J14","v":82802.409194687454},{"$f":"BM16/Census!$J14","v":83731.061782823585},{"$f":"BN16/Census!$J14","v":84670.12947406889},{"$f":"BO16/Census!$J14","v":85619.729076769348},{"$f":"BP16/Census!$J14","v":86579.978709309711},{"$f":"BQ16/Census!$J14","v":87550.997814806091},{"$f":"BR16/Census!$J14","v":88532.907175963148},{"$f":"BS16/Census!$J14","v":89525.828930097909},{"$f":"BT16/Census!$J14","v":90529.886584332213},{"$f":"BU16/Census!$J14","v":91545.205030955418},{"$f":"BV16/Census!$J14","v":92571.910562959485},{"$f":"BW16/Census!$J14","v":93610.130889748165},{"$f":"BX16/Census!$J14","v":94659.995153022566},{"$f":"BY16/Census!$J14","v":95721.633942844725},{"$f":"BZ16/Census!$J14","v":96795.179313881396},{"$f":"CA16/Census!$J14","v":97880.764801830024},{"$f":"CB16/Census!$J14","v":98978.525440028869},{"$f":"CC16/Census!$J14","v":100088.59777625358},{"$f":"CD16/Census!$J14","v":101211.11988970188},{"$f":"CE16/Census!$J14","v":102346.23140816914},{"$f":"CF16/Census!$J14","v":103494.07352541604},{"$f":"CG16/Census!$J14","v":104654.78901873159},{"$f":"CH16/Census!$J14","v":105828.5222666927},{"$f":"CI16/Census!$J14","v":107015.4192671231},{"$f":"CJ16/Census!$J14","v":108215.62765525372},{"$f":"CK16/Census!$J14","v":109429.29672208654},{"$f":"CL16/Census!$J14","v":110656.57743296474},{"$f":"CM16/Census!$J14","v":111897.62244635067},{"$f":"CN16/Census!$J14","v":113152.58613281486}]
[null,"Melbourne (C)",{"$f":"C17/Census!$J15","v":50120},{"$f":"D17/Census!$J15","v":53789},{"$f":"E17/Census!$J15","v":59355.5},{"$f":"F17/Census!$J15","v":63987.5},{"$f":"G17/Census!$J15","v":68436},{"$f":"H17/Census!$J15","v":73048},{"$f":"I17/Census!$J15","v":79570.5},{"$f":"J17/Census!$J15","v":85158.5},{"$f":"K17/Census!$J15","v":89497},{"$f":"L17/Census!$J15","v":91878},{"$f":"M17/Census!$J15","v":98166.334143441636},{"$f":"N17/Census!$J15","v":101653.28282633272},{"$f":"O17/Census!$J15","v":105264.0907856571},{"$f":"P17/Census!$J15","v":109003.15760447542},{"$f":"Q17/Census!$J15","v":112875.03914264619},{"$f":"R17/Census!$J15","v":116884.45308790577},{"$f":"S17/Census!$J15","v":119499.20130819044},{"$f":"T17/Census!$J15","v":122172.44240819404},{"$f":"U17/Census!$J15","v":124905.48489515686},{"$f":"V17/Census!$J15","v":127699.66654810759},{"$f":"W17/Census!$J15","v":130556.35507268395},{"$f":"X17/Census!$J15","v":132621.92988042417},{"$f":"Y17/Census!$J15","v":134720.18482299196},{"$f":"Z17/Census!$J15","v":136851.63694349243},{"$f":"AA17/Census!$J15","v":139016.81146533872},{"$f":"AB17/Census!$J15","v":141216.24192167551},{"$f":"AC17/Census!$J15","v":143450.47028684989},{"$f":"AD17/Census!$J15","v":145720.04710996235},{"$f":"AE17/Census!$J15","v":148025.53165053099},{"$f":"AF17/Census!$J15","v":150367.49201630155},{"$f":"AG17/Census!$J15","v":152746.50530323834},{"$f":"AH17/Census!$J15","v":155163.15773772978},{"$f":"AI17/Census!$J15","v":157618.0448210437},{"$f":"AJ17/Census!$J15","v":160111.77147606839},{"$f":"AK17/Census!$J15","v":162644.95219637503},{"$f":"AL17/Census!$J15","v":165218.21119763862},{"$f":"AM17/Census!$J15","v":167832.18257145458},{"$f":"AN17/Census!$J15","v":170487.51044158897},{"$f":"AO17/Census!$J15","v":173184.8491227006},{"$f":"AP17/Census!$J15","v":175924.86328157468},{"$f":"AQ17/Census!$J15","v":181535.62944567972},{"$f":"AR17/Census!$J15","v":184407.76403216922},{"$f":"AS17/Census!$J15","v":187325.33959962815},{"$f":"AT17/Census!$J15","v":190289.07508468334},{"$f":"AU17/Census!$J15","v":193299.70079849323},{"$f":"AV17/Census!$J15","v":196357.95860670798},{"$f":"AW17/Census!$J15","v":199464.602112277},{"$f":"AX17/Census!$J15","v":202620.3968411485},{"$f":"AY17/Census!$J15","v":205826.12043090712},{"$f":"AZ17/Census!$J15","v":209082.5628223962},{"$f":"BA17/Census!$J15","v":212390.52645437163},{"$f":"BB17/Census!$J15","v":215750.82646123532},{"$f":"BC17/Census!$J15","v":219164.29087389726},{"$f":"BD17/Census!$J15","v":222631.76082381542},{"$f":"BE17/Census!$J15","v":226154.09075026371},{"$f":"BF17/Census!$J15","v":229732.14861087938},{"$f":"BG17/Census!$J15","v":233366.81609554135},{"$f":"BH17/Census!$J15","v":237058.98884363272},{"$f":"BI17/Census!$J15","v":240809.5766647401},{"$f":"BJ17/Census!$J15","v":244619.50376284544},{"$f":"BK17/Census!$J15","v":248489.70896406411},{"$f":"BL17/Census!$J15","v":252421.14594798666},{"$f":"BM17/Census!$J15","v":256414.78348268045},{"$f":"BN17/Census!$J15","v":260471.60566340946},{"$f":"BO17/Census!$J15","v":264592.61215513066},{"$f":"BP17/Census!$J15","v":268778.81843882747},{"$f":"BQ17/Census!$J15","v":273031.25606174016},{"$f":"BR17/Census!$J15","v":277350.97289155534},{"$f":"BS17/Census!$J15","v":281739.03337461728},{"$f":"BT17/Census!$J15","v":286196.51879822387},{"$f":"BU17/Census!$J15","v":290724.52755707334},{"$f":"BV17/Census!$J15","v":295324.17542392557},{"$f":"BW17/Census!$J15","v":299996.59582454647},{"$f":"BX17/Census!$J15","v":304742.94011700188},{"$f":"BY17/Census!$J15","v":309564.37787537021},{"$f":"BZ17/Census!$J15","v":314462.0971779438},{"$f":"CA17/Census!$J15","v":319437.30489999079},{"$f":"CB17/Census!$J15","v":324491.22701114748},{"$f":"CC17/Census!$J15","v":329625.10887751693},{"$f":"CD17/Census!$J15","v":334840.2155685469},{"$f":"CE17/Census!$J15","v":340137.83216876257},{"$f":"CF17/Census!$J15","v":345519.264094432},{"$f":"CG17/Census!$J15","v":350985.83741524105},{"$f":"CH17/Census!$J15","v":356538.89918105799},{"$f":"CI17/Census!$J15","v":362179.8177538676},{"$f":"CJ17/Census!$J15","v":367909.98314495751},{"$f":"CK17/Census!$J15","v":373730.80735743861},{"$f":"CL17/Census!$J15","v":379643.72473418503},{"$f":"CM17/Census!$J15","v":385650.19231127872},{"$f":"CN17/Census!$J15","v":391751.69017704617}]
[null,"Monash (C)",{"$f":"C18/Census!$J16","v":65683.333333333328},{"$f":"D18/Census!$J16","v":66782.222222222219},{"$f":"E18/Census!$J16","v":67872.222222222219},{"$f":"F18/Census!$J16","v":68944.444444444438},{"$f":"G18/Census!$J16","v":70064.444444444438},{"$f":"H18/Census!$J16","v":71342.592592592584},{"$f":"I18/Census!$J16","v":72934.074074074073},{"$f":"J18/Census!$J16","v":74152.592592592584},{"$f":"K18/Census!$J16","v":75146.666666666657},{"$f":"L18/Census!$J16","v":75902.222222222219},{"$f":"M18/Census!$J16","v":77041.793335625902},{"$f":"N18/Census!$J16","v":78033.446758244318},{"$f":"O18/Census!$J16","v":79037.864376346944},{"$f":"P18/Census!$J16","v":80055.21048592939},{"$f":"Q18/Census!$J16","v":81085.65149774446},{"$f":"R18/Census!$J16","v":82129.355964522489},{"$f":"S18/Census!$J16","v":83109.432457927571},{"$f":"T18/Census!$J16","v":84101.204524999921},{"$f":"U18/Census!$J16","v":85104.811732849121},{"$f":"V18/Census!$J16","v":86120.395314084846},{"$f":"W18/Census!$J16","v":87148.09818669167},{"$f":"X18/Census!$J16","v":88176.342946969671},{"$f":"Y18/Census!$J16","v":89216.719782519969},{"$f":"Z18/Census!$J16","v":90269.371837520011},{"$f":"AA18/Census!$J16","v":91334.443945079678},{"$f":"AB18/Census!$J16","v":92412.082647168761},{"$f":"AC18/Census!$J16","v":93502.436214779256},{"$f":"AD18/Census!$J16","v":94605.65466832614},{"$f":"AE18/Census!$J16","v":95721.889798288306},{"$f":"AF18/Census!$J16","v":96851.295186093193},{"$f":"AG18/Census!$J16","v":97994.026225247944},{"$f":"AH18/Census!$J16","v":99150.240142719806},{"$f":"AI18/Census!$J16","v":100320.09602056874},{"$f":"AJ18/Census!$J16","v":101503.75481783539},{"$f":"AK18/Census!$J16","v":102701.37939268723},{"$f":"AL18/Census!$J16","v":103913.13452482596},{"$f":"AM18/Census!$J16","v":105139.18693815942},{"$f":"AN18/Census!$J16","v":106379.70532374091},{"$f":"AO18/Census!$J16","v":107634.86036297915},{"$f":"AP18/Census!$J16","v":108904.82475112216},{"$f":"AQ18/Census!$J16","v":111489.88256715688},{"$f":"AR18/Census!$J16","v":112805.33166999451},{"$f":"AS18/Census!$J16","v":114136.30152056558},{"$f":"AT18/Census!$J16","v":115482.97524538537},{"$f":"AU18/Census!$J16","v":116845.53813164598},{"$f":"AV18/Census!$J16","v":118224.17765270987},{"$f":"AW18/Census!$J16","v":119619.08349390398},{"$f":"AX18/Census!$J16","v":121030.44757861839},{"$f":"AY18/Census!$J16","v":122458.46409471285},{"$f":"AZ18/Census!$J16","v":123903.32952123467},{"$f":"BA18/Census!$J16","v":125365.24265545225},{"$f":"BB18/Census!$J16","v":126844.40464020726},{"$f":"BC18/Census!$J16","v":128341.01899158955},{"$f":"BD18/Census!$J16","v":129855.29162693884},{"$f":"BE18/Census!$J16","v":131387.43089317661},{"$f":"BF18/Census!$J16","v":132937.64759547211},{"$f":"BG18/Census!$J16","v":134506.155026247},{"$f":"BH18/Census!$J16","v":136093.16899452198},{"$f":"BI18/Census!$J16","v":137698.90785560955},{"$f":"BJ18/Census!$J16","v":139323.59254115736},{"$f":"BK18/Census!$J16","v":140967.44658954584},{"$f":"BL18/Census!$J16","v":142630.69617664476},{"$f":"BM18/Census!$J16","v":144313.57014693221},{"$f":"BN18/Census!$J16","v":146016.30004498127},{"$f":"BO18/Census!$J16","v":147739.12014731782},{"$f":"BP18/Census!$J16","v":149482.26749465443},{"$f":"BQ18/Census!$J16","v":151245.98192450442},{"$f":"BR18/Census!$J16","v":153030.50610418094},{"$f":"BS18/Census!$J16","v":154836.08556418508},{"$f":"BT18/Census!$J16","v":156662.96873198831},{"$f":"BU18/Census!$J16","v":158511.40696621317},{"$f":"BV18/Census!$J16","v":160381.65459121749},{"$f":"BW18/Census!$J16","v":162273.96893208646},{"$f":"BX18/Census!$J16","v":164188.61035003784},{"$f":"BY18/Census!$J16","v":166125.84227824456},{"$f":"BZ18/Census!$J16","v":168085.93125808027},{"$f":"CA18/Census!$J16","v":170069.14697579242},{"$f":"CB18/Census!$J16","v":172075.76229960809},{"$f":"CC18/Census!$J16","v":174106.05331727755},{"$f":"CD18/Census!$J16","v":176160.29937406082},{"$f":"CE18/Census!$J16","v":178238.78311116254},{"$f":"CF18/Census!$J16","v":180341.79050462012},{"$f":"CG18/Census!$J16","v":182469.61090465091},{"$f":"CH18/Census!$J16","v":184622.53707546351},{"$f":"CI18/Census!$J16","v":186800.86523553877},{"$f":"CJ18/Census!$J16","v":189004.89509838633},{"$f":"CK18/Census!$J16","v":191234.92991378164},{"$f":"CL18/Census!$J16","v":193491.27650948975},{"$f":"CM18/Census!$J16","v":195774.24533348146},{"$f":"CN18/Census!$J16","v":198084.1504966474}]
[null,"Nillumbik (S)",{"$f":"C19/Census!$J17","v":20905.333333333332},{"$f":"D19/Census!$J17","v":20978.333333333332},{"$f":"E19/Census!$J17","v":21058},{"$f":"F19/Census!$J17","v":21144.333333333332},{"$f":"G19/Census!$J17","v":21225},{"$f":"H19/Census!$J17","v":21391.333333333332},{"$f":"I19/Census!$J17","v":21539.333333333332},{"$f":"J19/Census!$J17","v":21647},{"$f":"K19/Census!$J17","v":21699.666666666668},{"$f":"L19/Census!$J17","v":21739.666666666668},{"$f":"M19/Census!$J17","v":21820.072348841841},{"$f":"N19/Census!$J17","v":21912.12732909925},{"$f":"O19/Census!$J17","v":22004.57067284394},{"$f":"P19/Census!$J17","v":22097.404018511967},{"$f":"Q19/Census!$J17","v":22190.629011451645},{"$f":"R19/Census!$J17","v":22284.247303952721},{"$f":"S19/Census!$J17","v":22393.288360858904},{"$f":"T19/Census!$J17","v":22502.862976378441},{"$f":"U19/Census!$J17","v":22612.973761315032},{"$f":"V19/Census!$J17","v":22723.623339247522},{"$f":"W19/Census!$J17","v":22834.814346592419},{"$f":"X19/Census!$J17","v":22960.582480459769},{"$f":"Y19/Census!$J17","v":23087.043312032318},{"$f":"Z19/Census!$J17","v":23214.200656506295},{"$f":"AA19/Census!$J17","v":23342.05835009104},{"$f":"AB19/Census!$J17","v":23470.620250124713},{"$f":"AC19/Census!$J17","v":23599.890235190654},{"$f":"AD19/Census!$J17","v":23729.872205234438},{"$f":"AE19/Census!$J17","v":23860.570081681522},{"$f":"AF19/Census!$J17","v":23991.987807555528},{"$f":"AG19/Census!$J17","v":24124.129347597205},{"$f":"AH19/Census!$J17","v":24256.998688384061},{"$f":"AI19/Census!$J17","v":24390.599838450609},{"$f":"AJ19/Census!$J17","v":24524.936828409322},{"$f":"AK19/Census!$J17","v":24660.013711072224},{"$f":"AL19/Census!$J17","v":24795.834561573141},{"$f":"AM19/Census!$J17","v":24932.40347749069},{"$f":"AN19/Census!$J17","v":25069.724578971854},{"$f":"AO19/Census!$J17","v":25207.802008856295},{"$f":"AP19/Census!$J17","v":25346.639932801347},{"$f":"AQ19/Census!$J17","v":25626.614040345696},{"$f":"AR19/Census!$J17","v":25767.758670482533},{"$f":"AS19/Census!$J17","v":25909.680688009885},{"$f":"AT19/Census!$J17","v":26052.38437457243},{"$f":"AU19/Census!$J17","v":26195.874035397017},{"$f":"AV19/Census!$J17","v":26340.15399942255},{"$f":"AW19/Census!$J17","v":26485.228619430593},{"$f":"AX19/Census!$J17","v":26631.102272176668},{"$f":"AY19/Census!$J17","v":26777.77935852233},{"$f":"AZ19/Census!$J17","v":26925.264303567903},{"$f":"BA19/Census!$J17","v":27073.561556786008},{"$f":"BB19/Census!$J17","v":27222.675592155778},{"$f":"BC19/Census!$J17","v":27372.610908297847},{"$f":"BD19/Census!$J17","v":27523.372028610062},{"$f":"BE19/Census!$J17","v":27674.963501403963},{"$f":"BF19/Census!$J17","v":27827.389900041977},{"$f":"BG19/Census!$J17","v":27980.655823075405},{"$f":"BH19/Census!$J17","v":28134.765894383174},{"$f":"BI19/Census!$J17","v":28289.724763311282},{"$f":"BJ19/Census!$J17","v":28445.537104813135},{"$f":"BK19/Census!$J17","v":28602.207619590528},{"$f":"BL19/Census!$J17","v":28759.741034235489},{"$f":"BM19/Census!$J17","v":28918.142101372869},{"$f":"BN19/Census!$J17","v":29077.415599803713},{"$f":"BO19/Census!$J17","v":29237.566334649444},{"$f":"BP19/Census!$J17","v":29398.599137496843},{"$f":"BQ19/Census!$J17","v":29560.518866543778},{"$f":"BR19/Census!$J17","v":29723.330406745794},{"$f":"BS19/Census!$J17","v":29887.038669963487},{"$f":"BT19/Census!$J17","v":30051.648595110684},{"$f":"BU19/Census!$J17","v":30217.16514830344},{"$f":"BV19/Census!$J17","v":30383.593323009874},{"$f":"BW19/Census!$J17","v":30550.938140200815},{"$f":"BX19/Census!$J17","v":30719.204648501258},{"$f":"BY19/Census!$J17","v":30888.397924342706},{"$f":"BZ19/Census!$J17","v":31058.52307211631},{"$f":"CA19/Census!$J17","v":31229.585224326849},{"$f":"CB19/Census!$J17","v":31401.589541747595},{"$f":"CC19/Census!$J17","v":31574.541213575983},{"$f":"CD19/Census!$J17","v":31748.445457590209},{"$f":"CE19/Census!$J17","v":31923.307520306578},{"$f":"CF19/Census!$J17","v":32099.132677137852},{"$f":"CG19/Census!$J17","v":32275.926232552349},{"$f":"CH19/Census!$J17","v":32453.693520234036},{"$f":"CI19/Census!$J17","v":32632.439903243358},{"$f":"CJ19/Census!$J17","v":32812.170774179118},{"$f":"CK19/Census!$J17","v":32992.891555341113},{"$f":"CL19/Census!$J17","v":33174.607698893757},{"$f":"CM19/Census!$J17","v":33357.324687030508},{"$f":"CN19/Census!$J17","v":33541.048032139348}]
[null,"Port Phillip (C)",{"$f":"C20/Census!$J18","v":48638},{"$f":"D20/Census!$J18","v":49946.5},{"$f":"E20/Census!$J18","v":51078},{"$f":"F20/Census!$J18","v":52225.5},{"$f":"G20/Census!$J18","v":53190.5},{"$f":"H20/Census!$J18","v":54313.5},{"$f":"I20/Census!$J18","v":55328},{"$f":"J20/Census!$J18","v":56632.5},{"$f":"K20/Census!$J18","v":57810},{"$f":"L20/Census!$J18","v":58238},{"$f":"M20/Census!$J18","v":59523.955328161632},{"$f":"N20/Census!$J18","v":60542.326295658648},{"$f":"O20/Census!$J18","v":61578.120154859069},{"$f":"P20/Census!$J18","v":62631.634986879682},{"$f":"Q20/Census!$J18","v":63703.173972585028},{"$f":"R20/Census!$J18","v":64793.045479836794},{"$f":"S20/Census!$J18","v":65839.09621629781},{"$f":"T20/Census!$J18","v":66902.034909408278},{"$f":"U20/Census!$J18","v":67982.134206631556},{"$f":"V20/Census!$J18","v":69079.671157185425},{"$f":"W20/Census!$J18","v":70194.927283106314},{"$f":"X20/Census!$J18","v":71751.858773471031},{"$f":"Y20/Census!$J18","v":73343.323181804488},{"$f":"Z20/Census!$J18","v":74970.086452164483},{"$f":"AA20/Census!$J18","v":76632.931517335339},{"$f":"AB20/Census!$J18","v":78332.658675639788},{"$f":"AC20/Census!$J18","v":80070.085976108647},{"$f":"AD20/Census!$J18","v":81846.049612193456},{"$f":"AE20/Census!$J18","v":83661.404324211879},{"$f":"AF20/Census!$J18","v":85517.023810719271},{"$f":"AG20/Census!$J18","v":87413.801149004546},{"$f":"AH20/Census!$J18","v":89352.649224912719},{"$f":"AI20/Census!$J18","v":91334.501172200951},{"$f":"AJ20/Census!$J18","v":93360.310821639505},{"$f":"AK20/Census!$J18","v":95431.053160073861},{"$f":"AL20/Census!$J18","v":97547.724799668926},{"$f":"AM20/Census!$J18","v":99711.344457561034},{"$f":"AN20/Census!$J18","v":101922.95344614878},{"$f":"AO20/Census!$J18","v":104183.61617425845},{"$f":"AP20/Census!$J18","v":106494.42065942548},{"$f":"AQ20/Census!$J18","v":111270.92816809652},{"$f":"AR20/Census!$J18","v":113738.93004134177},{"$f":"AS20/Census!$J18","v":116261.67247752311},{"$f":"AT20/Census!$J18","v":118840.36962856766},{"$f":"AU20/Census!$J18","v":121476.26257643072},{"$f":"AV20/Census!$J18","v":124170.61993040687},{"$f":"AW20/Census!$J18","v":126924.73843768948},{"$f":"AX20/Census!$J18","v":129739.94360747249},{"$f":"AY20/Census!$J18","v":132617.59034889494},{"$f":"AZ20/Census!$J18","v":135559.06362313504},{"$f":"BA20/Census!$J18","v":138565.77910996779},{"$f":"BB20/Census!$J18","v":141639.18388910702},{"$f":"BC20/Census!$J18","v":144780.75713665967},{"$f":"BD20/Census!$J18","v":147992.01083702734},{"$f":"BE20/Census!$J18","v":151274.49051059797},{"$f":"BF20/Census!$J18","v":154629.77595757804},{"$f":"BG20/Census!$J18","v":158059.48201832263},{"$f":"BH20/Census!$J18","v":161565.25935053008},{"$f":"BI20/Census!$J18","v":165148.79522367459},{"$f":"BJ20/Census!$J18","v":168811.81433105981},{"$f":"BK20/Census!$J18","v":172556.07961988339},{"$f":"BL20/Census!$J18","v":176383.39313971283},{"$f":"BM20/Census!$J18","v":180295.59690978061},{"$f":"BN20/Census!$J18","v":184294.57380551563},{"$f":"BO20/Census!$J18","v":188382.2484647386},{"$f":"BP20/Census!$J18","v":192560.58821395648},{"$f":"BQ20/Census!$J18","v":196831.60401520249},{"$f":"BR20/Census!$J18","v":201197.35143387705},{"$f":"BS20/Census!$J18","v":205659.9316280554},{"$f":"BT20/Census!$J18","v":210221.49235973862},{"$f":"BU20/Census!$J18","v":214884.22902853371},{"$f":"BV20/Census!$J18","v":219650.38572826132},{"$f":"BW20/Census!$J18","v":224522.2563269989},{"$f":"BX20/Census!$J18","v":229502.1855710794},{"$f":"BY20/Census!$J18","v":234592.57021357675},{"$f":"BZ20/Census!$J18","v":239795.86016782132},{"$f":"CA20/Census!$J18","v":245114.55968650049},{"$f":"CB20/Census!$J18","v":250551.22856691177},{"$f":"CC20/Census!$J18","v":256108.48338294856},{"$f":"CD20/Census!$J18","v":261788.99874441154},{"$f":"CE20/Census!$J18","v":267595.5085842518},{"$f":"CF20/Census!$J18","v":273530.80747436476},{"$f":"CG20/Census!$J18","v":279597.75197056943},{"$f":"CH20/Census!$J18","v":285799.26198741834},{"$f":"CI20/Census!$J18","v":292138.32220350177},{"$f":"CJ20/Census!$J18","v":298617.98349792149},{"$f":"CK20/Census!$J18","v":305241.36441862548},{"$f":"CL20/Census!$J18","v":312011.65268331079},{"$f":"CM20/Census!$J18","v":318932.10671361646},{"$f":"CN20/Census!$J18","v":326006.05720334506}]
[null,"South Gippsland (S)",{"$f":"C21/Census!$J19","v":11463.333333333334},{"$f":"D21/Census!$J19","v":11635.833333333334},{"$f":"E21/Census!$J19","v":11780.416666666668},{"$f":"F21/Census!$J19","v":11883.75},{"$f":"G21/Census!$J19","v":11992.083333333334},{"$f":"H21/Census!$J19","v":12134.166666666668},{"$f":"I21/Census!$J19","v":12217.083333333334},{"$f":"J21/Census!$J19","v":12322.916666666668},{"$f":"K21/Census!$J19","v":12462.5},{"$f":"L21/Census!$J19","v":12603.333333333334},{"$f":"M21/Census!$J19","v":12700.662221664668},{"$f":"N21/Census!$J19","v":12801.07582532245},{"$f":"O21/Census!$J19","v":12902.283316072384},{"$f":"P21/Census!$J19","v":13004.290970521341},{"$f":"Q21/Census!$J19","v":13107.105114900125},{"$f":"R21/Census!$J19","v":13210.732125455797},{"$f":"S21/Census!$J19","v":13313.959010769649},{"$f":"T21/Census!$J19","v":13417.992497091713},{"$f":"U21/Census!$J19","v":13522.838887093858},{"$f":"V21/Census!$J19","v":13628.504532696188},{"$f":"W21/Census!$J19","v":13734.995835451855},{"$f":"X21/Census!$J19","v":13834.184278499646},{"$f":"Y21/Census!$J19","v":13934.089019342653},{"$f":"Z21/Census!$J19","v":14034.715230786454},{"$f":"AA21/Census!$J19","v":14136.068122992483},{"$f":"AB21/Census!$J19","v":14238.152943747791},{"$f":"AC21/Census!$J19","v":14340.974978736798},{"$f":"AD21/Census!$J19","v":14444.539551814909},{"$f":"AE21/Census!$J19","v":14548.852025284226},{"$f":"AF21/Census!$J19","v":14653.917800171166},{"$f":"AG21/Census!$J19","v":14759.742316506121},{"$f":"AH21/Census!$J19","v":14866.331053605118},{"$f":"AI21/Census!$J19","v":14973.689530353548},{"$f":"AJ21/Census!$J19","v":15081.823305491884},{"$f":"AK21/Census!$J19","v":15190.737977903536},{"$f":"AL21/Census!$J19","v":15300.439186904712},{"$f":"AM21/Census!$J19","v":15410.93261253643},{"$f":"AN21/Census!$J19","v":15522.223975858613},{"$f":"AO21/Census!$J19","v":15634.319039246291},{"$f":"AP21/Census!$J19","v":15747.223606687992},{"$f":"AQ21/Census!$J19","v":15975.484679560221},{"$f":"AR21/Census!$J19","v":16090.853003750706},{"$f":"AS21/Census!$J19","v":16207.054470127081},{"$f":"AT21/Census!$J19","v":16324.095095296641},{"$f":"AU21/Census!$J19","v":16441.980939316141},{"$f":"AV21/Census!$J19","v":16560.718106005537},{"$f":"AW21/Census!$J19","v":16680.31274326405},{"$f":"AX21/Census!$J19","v":16800.771043388471},{"$f":"AY21/Census!$J19","v":16922.099243393804},{"$f":"AZ21/Census!$J19","v":17044.303625336175},{"$f":"BA21/Census!$J19","v":17167.390516638116},{"$f":"BB21/Census!$J19","v":17291.366290416187},{"$f":"BC21/Census!$J19","v":17416.23736581095},{"$f":"BD21/Census!$J19","v":17542.010208319327},{"$f":"BE21/Census!$J19","v":17668.691330129393},{"$f":"BF21/Census!$J19","v":17796.287290457534},{"$f":"BG21/Census!$J19","v":17924.804695888084},{"$f":"BH21/Census!$J19","v":18054.250200715378},{"$f":"BI21/Census!$J19","v":18184.630507288315},{"$f":"BJ21/Census!$J19","v":18315.952366357375},{"$f":"BK21/Census!$J19","v":18448.222577424145},{"$f":"BL21/Census!$J19","v":18581.447989093416},{"$f":"BM21/Census!$J19","v":18715.63549942775},{"$f":"BN21/Census!$J19","v":18850.792056304643},{"$f":"BO21/Census!$J19","v":18986.924657776304},{"$f":"BP21/Census!$J19","v":19124.040352431959},{"$f":"BQ21/Census!$J19","v":19262.146239762827},{"$f":"BR21/Census!$J19","v":19401.249470529699},{"$f":"BS21/Census!$J19","v":19541.357247133208},{"$f":"BT21/Census!$J19","v":19682.476823986726},{"$f":"BU21/Census!$J19","v":19824.615507891995},{"$f":"BV21/Census!$J19","v":19967.780658417443},{"$f":"BW21/Census!$J19","v":20111.979688279258},{"$f":"BX21/Census!$J19","v":20257.220063725177},{"$f":"BY21/Census!$J19","v":20403.509304921099},{"$f":"BZ21/Census!$J19","v":20550.854986340422},{"$f":"CA21/Census!$J19","v":20699.264737156263},{"$f":"CB21/Census!$J19","v":20848.746241636461},{"$f":"CC21/Census!$J19","v":20999.307239541446},{"$f":"CD21/Census!$J19","v":21150.95552652498},{"$f":"CE21/Census!$J19","v":21303.698954537827},{"$f":"CF21/Census!$J19","v":21457.545432234259},{"$f":"CG21/Census!$J19","v":21612.502925381585},{"$f":"CH21/Census!$J19","v":21768.579457272564},{"$f":"CI21/Census!$J19","v":21925.783109140866},{"$f":"CJ21/Census!$J19","v":22084.122020579471},{"$f":"CK21/Census!$J19","v":22243.604389962125},{"$f":"CL21/Census!$J19","v":22404.238474867816},{"$f":"CM21/Census!$J19","v":22566.032592508367},{"$f":"CN21/Census!$J19","v":22728.995120159037}]
[null,"Stonnington (C)",{"$f":"C22/Census!$J20","v":44933.181818181816},{"$f":"D22/Census!$J20","v":46095.454545454544},{"$f":"E22/Census!$J20","v":47039.545454545449},{"$f":"F22/Census!$J20","v":48133.63636363636},{"$f":"G22/Census!$J20","v":49103.63636363636},{"$f":"H22/Census!$J20","v":50455.909090909088},{"$f":"I22/Census!$J20","v":51714.545454545449},{"$f":"J22/Census!$J20","v":52854.999999999993},{"$f":"K22/Census!$J20","v":53534.545454545449},{"$f":"L22/Census!$J20","v":53915.454545454544},{"$f":"M22/Census!$J20","v":54895.135314869396},{"$f":"N22/Census!$J20","v":55592.223956585571},{"$f":"O22/Census!$J20","v":56298.164613541754},{"$f":"P22/Census!$J20","v":57013.069693499478},{"$f":"Q22/Census!$J20","v":57737.053031635929},{"$f":"R22/Census!$J20","v":58470.229908669979},{"$f":"S22/Census!$J20","v":59213.419511392218},{"$f":"T22/Census!$J20","v":59966.055473166867},{"$f":"U22/Census!$J20","v":60728.257862545775},{"$f":"V22/Census!$J20","v":61500.14827421982},{"$f":"W22/Census!$J20","v":62281.849848416932},{"$f":"X22/Census!$J20","v":63082.233787459299},{"$f":"Y22/Census!$J20","v":63892.903459045534},{"$f":"Z22/Census!$J20","v":64713.991045105802},{"$f":"AA22/Census!$J20","v":65545.630426240066},{"$f":"AB22/Census!$J20","v":66387.957203547616},{"$f":"AC22/Census!$J20","v":67241.108720737218},{"$f":"AD22/Census!$J20","v":68105.224086521397},{"$f":"AE22/Census!$J20","v":68980.444197298493},{"$f":"AF22/Census!$J20","v":69866.911760126182},{"$f":"AG22/Census!$J20","v":70764.771315990307},{"$f":"AH22/Census!$J20","v":71674.169263372634},{"$f":"AI22/Census!$J20","v":72595.253882121586},{"$f":"AJ22/Census!$J20","v":73528.175357629589},{"$f":"AK22/Census!$J20","v":74473.085805321331},{"$f":"AL22/Census!$J20","v":75430.139295456538},{"$f":"AM22/Census!$J20","v":76399.491878251531},{"$f":"AN22/Census!$J20","v":77381.301609323695},{"$f":"AO22/Census!$J20","v":78375.728575462854},{"$f":"AP22/Census!$J20","v":79382.934920733926},{"$f":"AQ22/Census!$J20","v":81436.344770274445},{"$f":"AR22/Census!$J20","v":82482.883088694376},{"$f":"AS22/Census!$J20","v":83542.870469139511},{"$f":"AT22/Census!$J20","v":84616.479745481469},{"$f":"AU22/Census!$J20","v":85703.885972679593},{"$f":"AV22/Census!$J20","v":86805.266455324265},{"$f":"AW22/Census!$J20","v":87920.800776546763},{"$f":"AX22/Census!$J20","v":89050.670827300914},{"$f":"AY22/Census!$J20","v":90195.060836020799},{"$f":"AZ22/Census!$J20","v":91354.157398659852},{"$f":"BA22/Census!$J20","v":92528.149509115683},{"$f":"BB22/Census!$J20","v":93717.228590046187},{"$f":"BC22/Census!$J20","v":94921.588524081482},{"$f":"BD22/Census!$J20","v":96141.425685437003},{"$f":"BE22/Census!$J20","v":97376.938971932876},{"$f":"BF22/Census!$J20","v":98628.329837424724},{"$f":"BG22/Census!$J20","v":99895.802324651362},{"$f":"BH22/Census!$J20","v":101179.56309850441},{"$f":"BI22/Census!$J20","v":102479.82147972565},{"$f":"BJ22/Census!$J20","v":103796.78947903738},{"$f":"BK22/Census!$J20","v":105130.68183171123},{"$f":"BL22/Census!$J20","v":106481.71603258145},{"$f":"BM22/Census!$J20","v":107850.11237150805},{"$f":"BN22/Census!$J20","v":109236.09396929556},{"$f":"BO22/Census!$J20","v":110639.8868140736},{"$f":"BP22/Census!$J20","v":112061.71979814483},{"$f":"BQ22/Census!$J20","v":113501.82475530646},{"$f":"BR22/Census!$J20","v":114960.43649865144},{"$f":"BS22/Census!$J20","v":116437.79285885532},{"$f":"BT22/Census!$J20","v":117934.13472295522},{"$f":"BU22/Census!$J20","v":119449.70607362715},{"$f":"BV22/Census!$J20","v":120984.75402896811},{"$f":"BW22/Census!$J20","v":122539.52888278916},{"$f":"BX22/Census!$J20","v":124114.28414542682},{"$f":"BY22/Census!$J20","v":125709.27658507841},{"$f":"BZ22/Census!$J20","v":127324.76626966891},{"$f":"CA22/Census!$J20","v":128961.0166092557},{"$f":"CB22/Census!$J20","v":130618.29439897841},{"$f":"CC22/Census!$J20","v":132296.86986256042},{"$f":"CD22/Census!$J20","v":133997.01669636971},{"$f":"CE22/Census!$J20","v":135719.01211404585},{"$f":"CF22/Census!$J20","v":137463.1368917003},{"$f":"CG22/Census!$J20","v":139229.67541369793},{"$f":"CH22/Census!$J20","v":141018.91571902644},{"$f":"CI22/Census!$J20","v":142831.14954826215},{"$f":"CJ22/Census!$J20","v":144666.67239113888},{"$f":"CK22/Census!$J20","v":146525.7835347286},{"$f":"CL22/Census!$J20","v":148408.78611224078},{"$f":"CM22/Census!$J20","v":150315.98715244929},{"$f":"CN22/Census!$J20","v":152247.6976297542}]
[null,"Whitehorse (C)",{"$f":"C23/Census!$J21","v":60591.538461538461},{"$f":"D23/Census!$J21","v":61408.076923076922},{"$f":"E23/Census!$J21","v":62338.846153846149},{"$f":"F23/Census!$J21","v":63200},{"$f":"G23/Census!$J21","v":64107.307692307688},{"$f":"H23/Census!$J21","v":65246.538461538461},{"$f":"I23/Census!$J21","v":66639.615384615376},{"$f":"J23/Census!$J21","v":67797.307692307688},{"$f":"K23/Census!$J21","v":68761.153846153844},{"$f":"L23/Census!$J21","v":69513.461538461532},{"$f":"M23/Census!$J21","v":70585.653800164218},{"$f":"N23/Census!$J21","v":71511.5915989606},{"$f":"O23/Census!$J21","v":72449.675786733802},{"$f":"P23/Census!$J21","v":73400.065698987106},{"$f":"Q23/Census!$J21","v":74362.922761376045},{"$f":"R23/Census!$J21","v":75338.410517126948},{"$f":"S23/Census!$J21","v":76268.777448532855},{"$f":"T23/Census!$J21","v":77210.633640478147},{"$f":"U23/Census!$J21","v":78164.120975808473},{"$f":"V23/Census!$J21","v":79129.383089505049},{"$f":"W23/Census!$J21","v":80106.565390322081},{"$f":"X23/Census!$J21","v":81041.052050223094},{"$f":"Y23/Census!$J21","v":81986.440005333541},{"$f":"Z23/Census!$J21","v":82942.856425191872},{"$f":"AA23/Census!$J21","v":83910.429962838403},{"$f":"AB23/Census!$J21","v":84889.290772121138},{"$f":"AC23/Census!$J21","v":85879.570525203511},{"$f":"AD23/Census!$J21","v":86881.402430276401},{"$f":"AE23/Census!$J21","v":87894.921249476625},{"$f":"AF23/Census!$J21","v":88920.263317014702},{"$f":"AG23/Census!$J21","v":89957.566557513812},{"$f":"AH23/Census!$J21","v":91006.970504562967},{"$f":"AI23/Census!$J21","v":92068.616319486318},{"$f":"AJ23/Census!$J21","v":93142.646810331702},{"$f":"AK23/Census!$J21","v":94229.206451080478},{"$f":"AL23/Census!$J21","v":95328.441401081611},{"$f":"AM23/Census!$J21","v":96440.499524712373},{"$f":"AN23/Census!$J21","v":97565.530411268439},{"$f":"AO23/Census!$J21","v":98703.685395085937},{"$f":"AP23/Census!$J21","v":99855.117575898388},{"$f":"AQ23/Census!$J21","v":102198.4348782352},{"$f":"AR23/Census!$J21","v":103390.63521276624},{"$f":"AS23/Census!$J21","v":104596.7432127067},{"$f":"AT23/Census!$J21","v":105816.92111853884},{"$f":"AU23/Census!$J21","v":107051.33306336826},{"$f":"AV23/Census!$J21","v":108300.14509500262},{"$f":"AW23/Census!$J21","v":109563.52519828752},{"$f":"AX23/Census!$J21","v":110841.6433177032},{"$f":"AY23/Census!$J21","v":112134.67138022471},{"$f":"AZ23/Census!$J21","v":113442.78331844874},{"$f":"BA23/Census!$J21","v":114766.15509399038},{"$f":"BB23/Census!$J21","v":116104.96472115263},{"$f":"BC23/Census!$J21","v":117459.39229087219},{"$f":"BD23/Census!$J21","v":118829.61999494451},{"$f":"BE23/Census!$J21","v":120215.83215053144},{"$f":"BF23/Census!$J21","v":121618.21522495474},{"$f":"BG23/Census!$J21","v":123036.95786077896},{"$f":"BH23/Census!$J21","v":124472.25090118675},{"$f":"BI23/Census!$J21","v":125924.28741565032},{"$f":"BJ23/Census!$J21","v":127393.26272590227},{"$f":"BK23/Census!$J21","v":128879.37443220947},{"$f":"BL23/Census!$J21","v":130382.82243995341},{"$f":"BM23/Census!$J21","v":131903.80898652051},{"$f":"BN23/Census!$J21","v":133442.53866850643},{"$f":"BO23/Census!$J21","v":134999.21846923738},{"$f":"BP23/Census!$J21","v":136574.05778661257},{"$f":"BQ23/Census!$J21","v":138167.26846127171},{"$f":"BR23/Census!$J21","v":139779.06480509072},{"$f":"BS23/Census!$J21","v":141409.66363001024},{"$f":"BT23/Census!$J21","v":143059.28427720003},{"$f":"BU23/Census!$J21","v":144728.14864656396},{"$f":"BV23/Census!$J21","v":146416.48122658898},{"$f":"BW23/Census!$J21","v":148124.50912454235},{"$f":"BX23/Census!$J21","v":149852.46209702111},{"$f":"BY23/Census!$J21","v":151600.57258085802},{"$f":"BZ23/Census!$J21","v":153369.07572438792},{"$f":"CA23/Census!$J21","v":155158.20941907889},{"$f":"CB23/Census!$J21","v":156968.21433153233},{"$f":"CC23/Census!$J21","v":158799.33393585656},{"$f":"CD23/Census!$J21","v":160651.81454641777},{"$f":"CE23/Census!$J21","v":162525.90535097316},{"$f":"CF23/Census!$J21","v":164421.85844419079},{"$f":"CG23/Census!$J21","v":166339.92886156001},{"$f":"CH23/Census!$J21","v":168280.37461369796},{"$f":"CI23/Census!$J21","v":170243.45672105599},{"$f":"CJ23/Census!$J21","v":172229.43924903095},{"$f":"CK23/Census!$J21","v":174238.58934348621},{"$f":"CL23/Census!$J21","v":176271.17726668695},{"$f":"CM23/Census!$J21","v":178327.47643365469},{"$f":"CN23/Census!$J21","v":180407.76344894592}]
[null,"Yarra Ranges (S)",{"$f":"C24/Census!$J22","v":55148.518518518518},{"$f":"D24/Census!$J22","v":55505.185185185182},{"$f":"E24/Census!$J22","v":55889.629629629628},{"$f":"F24/Census!$J22","v":56284.444444444438},{"$f":"G24/Census!$J22","v":56811.481481481474},{"$f":"H24/Census!$J22","v":57491.111111111109},{"$f":"I24/Census!$J22","v":58099.629629629628},{"$f":"J24/Census!$J22","v":58581.851851851847},{"$f":"K24/Census!$J22","v":59064.444444444438},{"$f":"L24/Census!$J22","v":59242.592592592591},{"$f":"M24/Census!$J22","v":59713.613560071288},{"$f":"N24/Census!$J22","v":60221.329398326277},{"$f":"O24/Census!$J22","v":60733.36209762928},{"$f":"P24/Census!$J22","v":61249.748362152051},{"$f":"Q24/Census!$J22","v":61770.525208144012},{"$f":"R24/Census!$J22","v":62295.729966585764},{"$f":"S24/Census!$J22","v":62844.423358358268},{"$f":"T24/Census!$J22","v":63397.949576366795},{"$f":"U24/Census!$J22","v":63956.35118757093},{"$f":"V24/Census!$J22","v":64519.671133854958},{"$f":"W24/Census!$J22","v":65087.952735330204},{"$f":"X24/Census!$J22","v":65654.018133880498},{"$f":"Y24/Census!$J22","v":66225.006563836287},{"$f":"Z24/Census!$J22","v":66800.960840459345},{"$f":"AA24/Census!$J22","v":67381.924151372805},{"$f":"AB24/Census!$J22","v":67967.940059799526},{"$f":"AC24/Census!$J22","v":68559.052507828761},{"$f":"AD24/Census!$J22","v":69155.305819710993},{"$f":"AE24/Census!$J22","v":69756.744705181598},{"$f":"AF24/Census!$J22","v":70363.414262813501},{"$f":"AG24/Census!$J22","v":70975.359983398725},{"$f":"AH24/Census!$J22","v":71592.627753359557},{"$f":"AI24/Census!$J22","v":72215.263858189282},{"$f":"AJ24/Census!$J22","v":72843.314985922945},{"$f":"AK24/Census!$J22","v":73476.828230638173},{"$f":"AL24/Census!$J22","v":74115.851095986494},{"$f":"AM24/Census!$J22","v":74760.43149875541},{"$f":"AN24/Census!$J22","v":75410.617772461381},{"$f":"AO24/Census!$J22","v":76066.458670974083},{"$f":"AP24/Census!$J22","v":76728.003372172243},{"$f":"AQ24/Census!$J22","v":78068.403036342323},{"$f":"AR24/Census!$J22","v":78747.358508465564},{"$f":"AS24/Census!$J22","v":79432.218809113503},{"$f":"AT24/Census!$J22","v":80123.035292169166},{"$f":"AU24/Census!$J22","v":80819.859758136736},{"$f":"AV24/Census!$J22","v":81522.744458025831},{"$f":"AW24/Census!$J22","v":82231.742097269394},{"$f":"AX24/Census!$J22","v":82946.905839675877},{"$f":"AY24/Census!$J22","v":83668.289311415676},{"$f":"AZ24/Census!$J22","v":84395.946605042293},{"$f":"BA24/Census!$J22","v":85129.932283548347},{"$f":"BB24/Census!$J22","v":85870.301384457067},{"$f":"BC24/Census!$J22","v":86617.10942394915},{"$f":"BD24/Census!$J22","v":87370.412401025693},{"$f":"BE24/Census!$J22","v":88130.26680170717},{"$f":"BF24/Census!$J22","v":88896.729603269094},{"$f":"BG24/Census!$J22","v":89669.858278514337},{"$f":"BH24/Census!$J22","v":90449.710800082787},{"$f":"BI24/Census!$J22","v":91236.34564479829},{"$f":"BJ24/Census!$J22","v":92029.821798053614},{"$f":"BK24/Census!$J22","v":92830.198758233368},{"$f":"BL24/Census!$J22","v":93637.536541175461},{"$f":"BM24/Census!$J22","v":94451.895684671385},{"$f":"BN24/Census!$J22","v":95273.337253005608},{"$f":"BO24/Census!$J22","v":96101.922841534411},{"$f":"BP24/Census!$J22","v":96937.714581304608},{"$f":"BQ24/Census!$J22","v":97780.775143712395},{"$f":"BR24/Census!$J22","v":98631.167745202794},{"$f":"BS24/Census!$J22","v":99488.956152009792},{"$f":"BT24/Census!$J22","v":100354.20468493791},{"$f":"BU24/Census!$J22","v":101226.97822418522},{"$f":"BV24/Census!$J22","v":102107.34221420839},{"$f":"BW24/Census!$J22","v":102995.36266862994},{"$f":"BX24/Census!$J22","v":103891.1061751883},{"$f":"BY24/Census!$J22","v":104794.63990073079},{"$f":"BZ24/Census!$J22","v":105706.03159625022},{"$f":"CA24/Census!$J22","v":106625.34960196498},{"$f":"CB24/Census!$J22","v":107552.66285244364},{"$f":"CC24/Census!$J22","v":108488.04088177388},{"$f":"CD24/Census!$J22","v":109431.55382877651},{"$f":"CE24/Census!$J22","v":110383.27244226483},{"$f":"CF24/Census!$J22","v":111343.26808634966},{"$f":"CG24/Census!$J22","v":112311.61274579042},{"$f":"CH24/Census!$J22","v":113288.37903139309},{"$f":"CI24/Census!$J22","v":114273.64018545474},{"$f":"CJ24/Census!$J22","v":115267.47008725558},{"$f":"CK24/Census!$J22","v":116269.94325859881},{"$f":"CL24/Census!$J22","v":117281.13486939859},{"$f":"CM24/Census!$J22","v":118301.12074331654},{"$f":"CN24/Census!$J22","v":119329.97736344743}]
[null,"Multinet",{"$f":"SUM(C29:C48)","v":939404.51665430528},{"$f":"SUM(D29:D48)","v":957761.07314668607},978696.31970141875,999352.5002733951,1020668.1563560384,1045524.064822118,1071603.1133878254,1095166.7927880238,1116416.5833134977,1129648.7238769305,1153949.4774228733,1172415.6299671649,1191270.8341572739,1210525.262496158,1230189.38969889,1250274.0022811366,1267660.7987182264,1285326.1138361276,1303274.9704875362,1321512.4902781115,1340043.8956222842,1356889.0125976913,1373965.538174567,1391276.9238194581,1408826.6763663997,1426618.3589623333,1444655.5920295385,1462942.0542453977,1481481.483539822,1500277.6781106645,1519334.4974574673,1538655.8634338861,1558245.7613191395,1578108.240908847,1598247.4176256224,1618667.4736497912,1639372.659070618,1660367.293058428,1681655.7650580204,1703242.5360037754,1747329.1833650125,1769838.3503451429,1792664.3999895039,1815812.1696955652,1839286.5761202194,1863092.6165587341,1887235.3703489271,1911720.0003010351,1936551.7541537825,1961735.9660571327,1987278.0580822502,2013183.5417591727,2039458.0196427437,2066107.1869073282,2093136.832970876,{"$f":"SUM(BF29:BF48)","v":2120552.8431488858},2148361.2003388479,2176567.9867357523,2205179.3855792438,2234201.6829330605,2263641.2694973387,2293504.6424544528,2323798.4073490049,2354529.2800026438,2385704.0884643723,2417329.7749970276,2449413.3981006355,2481962.1345733535,2514983.281610718,2548484.258943941,{"$f":"SUM(BU29:BU48)","v":2582472.6110180202},2616956.0092104133,2651942.2540910793,2687439.2777246814,2723455.146015761,2759998.0610977313,2797076.3637665291,2834698.5359597947,2872873.2032824587,2911609.1375796562,2950915.2595578651,2990800.6414552173,3031274.5097619519,3072346.2479919563,3114025.3995064241,3156321.6703906311,3199244.9323848649,3242805.2258705562,3287012.7629127237,3331877.9303597873]
[]
[null,"New households"]
[null,null,2011,2012,{"$f":"D52+1","v":2013},{"$f":"E52+1","v":2014},{"$f":"F52+1","v":2015},{"$f":"G52+1","v":2016},{"$f":"H52+1","v":2017},{"$f":"I52+1","v":2018},{"$f":"J52+1","v":2019},{"$f":"K52+1","v":2020},2021,2022,2023,2024,2025,2026,2027,2028,2029,2030,2031,2032,2033,2034,2035,2036,2037,2038,2039,2040,2041,2042,2043,2044,2045,2046,2047,2048,2049,2050,2051,2052,2053,2054,2055,2056,2057,2058,2059,2060,2061,2062,2063,2064,2065,2066,2067,2068,2069,2070,2071,2072,2073,2074,2075,2076,2077,2078,2079,2080,2081,2082,2083,2084,2085,2086,2087,2088,2089,2090,2091,2092,2093,2094,2095,2096,2097,2098,2099,2100]
[null,"Bass Coast (S)",null,{"$f":"D29-C29","v":262.72727272727207},{"$f":"E29-D29","v":236.36363636363785},266.36363636363603,299.54545454545405,403.63636363636397,419.0909090909081,427.27272727272793,449.54545454545405,513.63636363636397,406.73100736027482,{"$f":"N29-M29","v":317.08442810274937},322.85372081157766,328.72798473756484,334.70912981265064,340.79910071965423,321.97059791644642,327.4062389181272,332.93364666277193,338.55437039453682,344.26998551258293,299.83362276185289,304.1689842776068,308.56703175665825,313.02867158938898,317.55482327189384,322.14641959546498,326.8044068388117,331.52974496311799,336.32340780987215,341.18638330153044,346.11967364514567,351.12429553893162,356.20128038173425,361.35167448564971,366.57653929162552,371.87695158823408,377.25400373354933,382.70880388033038,388.24247620432652,793.40717673168911,405.32821323159078,411.18894466226266,417.13441772152146,423.16585770756501,429.28450763543515,435.49162849322965,441.78849950191943,448.17641837906558,454.6567016061781,461.23068470008002,467.89972248815684,474.66518938750232,481.52847968824062,488.49100784085022,{"$f":"BF29-BE29","v":495.55420874766423},{"$f":"BG29-BF29","v":502.71953805857629},{"$f":"BH29-BG29","v":509.98847247107187},{"$f":"BI29-BH29","v":517.36251003450889},{"$f":"BJ29-BI29","v":524.84317045889475},{"$f":"BK29-BJ29","v":532.4319954280727},{"$f":"BL29-BK29","v":540.13054891741194},{"$f":"BM29-BL29","v":547.94041751616169},{"$f":"BN29-BM29","v":555.86321075443993},{"$f":"BO29-BN29","v":563.90056143487891},{"$f":"BP29-BO29","v":572.0541259692327},{"$f":"BQ29-BP29","v":580.32558471961966},{"$f":"BR29-BQ29","v":588.71664234492346},{"$f":"BS29-BR29","v":597.22902815208363},{"$f":"BT29-BS29","v":605.86449645242828},{"$f":"BU29-BT29","v":614.62482692333288},{"$f":"BV29-BU29","v":623.51182497486298},{"$f":"BW29-BV29","v":632.52732212196133},{"$f":"BX29-BW29","v":641.67317636181542},{"$f":"BY29-BX29","v":650.95127255684929},{"$f":"BZ29-BY29","v":660.36352282309963},{"$f":"CA29-BZ29","v":669.91186692434712},{"$f":"CB29-CA29","v":679.59827267182845},{"$f":"CC29-CB29","v":689.42473632982001},{"$f":"CD29-CC29","v":699.39328302702052},{"$f":"CE29-CD29","v":709.50596717392182},{"$f":"CF29-CE29","v":719.76487288618227},{"$f":"CG29-CF29","v":730.17211441419204},{"$f":"CH29-CG29","v":740.72983657873556},{"$f":"CI29-CH29","v":751.44021521302056},{"$f":"CJ29-CI29","v":762.30545761118265},{"$f":"CK29-CJ29","v":773.3278029830326},{"$f":"CL29-CK29","v":784.50952291567228},{"$f":"CM29-CL29","v":795.85292184159334},{"$f":"CN29-CM29","v":807.36033751354989}]
[null,"Bayside (C)",null,{"$f":"D30-C30","v":327.69230769230489},492.69230769230489,594.23076923077315,565.76923076922685,632.30769230769511,526.92307692307804,562.69230769230489,427.30769230769511,263.46153846153902,483.95874113785976,{"$f":"N30-M30","v":345.42729362301907},348.2787095806998,351.15366326432559,354.0523489719053,356.97496260536718,331.45517259796907,333.97485320899432,336.51368811570137,339.07182292664947,341.64940435729659,352.77478753524338,355.52297362149693,358.29256862648617,361.08373933000257,363.89665381104714,366.73148145792948,369.58839297866507,372.46756041100161,375.36915713295457,378.29335787317541,381.24033872146538,384.21027713943477,387.20335197112581,390.21974345383205,393.25963322893949,396.32320435279689,399.41064130789164,402.52213001380005,405.65785783845058,820.82080123477499,415.2123716672213,418.44695901010709,421.70674443474854,424.99192423920613,428.30269625077926,431.6392598378734,435.00181592203444,438.39056699001958,441.80571710592631,445.24747192365612,448.71603869915998,452.21162630292383,455.73444523261423,459.28470762570214,462.86262727222493,466.4684196277376,470.10230182622035,473.76449269313889,477.45521275870851,481.17468427104177,484.92313120968902,488.70077929900435,492.50785602178075,496.34459063296526,500.21121417341783,504.10795948387386,508.03506121895043,511.99275586125441,515.98128173565783,520.00087902357336,524.05178977761534,528.13425793583156,532.24852933677903,536.39485173404682,540.57347481131728,544.78465019732539,549.02863148105098,553.30567422704189,557.61603599062073,561.95997633364459,566.33775683995918,570.74964113118767,575.19589488262136,579.67678583919769,584.19258383174019,588.74356079296558,593.3299907741166,597.9521499612456,602.61031669205113]
[null,"Boroondara (C)",null,546.53846153846098,770,836.53846153846825,805,970.38461538460979,923.46153846153175,653.4615384615463,700.38461538460979,-66.923076923078042,752.17699691986491,{"$f":"N31-M31","v":640.57956420550181},646.34720065555302,652.16676762612769,658.03873268816096,663.96356762241339,674.74195488051919,680.86071159712446,687.03495498310076,693.26518820771889,699.55191900322097,694.52642120743985,700.72315019658708,706.97516786733468,713.28296751837479,719.64704684977187,726.06790800200542,732.54605759608967,739.08200677290733,745.67627123411512,752.32937128242338,759.04183186282171,765.814182604081,772.64695786032826,779.54069675343635,786.4959432152973,793.51324603108515,800.59315888221317,807.73624039022252,814.94305416084535,1651.7643269289692,836.95160080413916,844.41908092996164,851.95318767952267,859.55451551140868,867.22366418794263,874.96123882278334,882.7678499284375,890.64411346476118,898.59065088705393,906.6080891956808,914.69706098503957,922.85820449380844,931.09216365507746,939.39958814738202,947.78113344573649,956.2374608735845,964.76923765464744,973.37713696598075,982.06183799078281,990.82402597210603,999.66439226690272,1008.5836344005656,1017.5824561219924,1026.6615674590867,1035.8216847748117,1045.0635308236087,1054.3878348086146,1063.7953324390255,1073.2867659882177,1082.8628843523038,1092.5244431092433,1102.2722045783885,1112.106937880817,1122.029418999693,1132.0404308418219,1142.1407632992923,1152.3312133116997,1162.612584929273,1172.985689375957,1183.4513451138046,1194.0103779073979,1204.6636208887503,1215.4119146236044,1226.2561071771488,1237.1970541813644,1248.2356189023703,1259.3726723084692,1270.6090931390645,1281.9457679737243]
[null,"Cardinia (S)",null,1639.6428571428587,1488.9285714285725,1242.5,1509.9999999999964,1883.9285714285725,1725,1683.5714285714275,1807.8571428571449,1433.5714285714275,1946.0464058930447,{"$f":"N32-M32","v":1447.9823424262649},1496.2438918952976,1546.1140087403983,1597.646306843264,1650.8961870472776,1265.3123009532574,1296.5928643371299,1328.6467337616486,1361.4930266008887,1395.1513328413348,994.55134915278177,1011.6555994265218,1029.0540078427221,1046.7516333201129,1064.7536217805464,1083.0652076452097,1101.6917153565737,1120.638560926709,1139.9112535120075,1159.5153970150423,1179.4566917141055,1199.7409359206067,1220.3740276650788,1241.3619664120779,1262.7108548047254,1284.426900439139,1306.5164176693506,1328.9858294434234,1351.8416691709863,2773.8299124868354,1422.7947872177028,1447.2639492669987,1472.1539308868669,1497.471969313774,1523.2254262497736,1549.4217900032527,1576.0686776661169,1603.1738373286789,1630.7451503326593,1658.790633562603,1687.3184417771845,1716.3368699802813,1745.8543558327656,1775.8794821061601,1806.4209791780158,1837.4877275705949,1869.0887605329044,1901.233266667492,1933.9305926019879,1967.19024570701,2001.0218968603731,2035.4353832593188,2070.4407112808403,2106.0480593909742,2142.2677811047615,2179.1104079963698,2216.5866527616745,2254.7074123329076,2293.4837710472348,2332.9270038699906,2373.0485796725261,2413.8601645676245,2455.3736253012612,2497.6010327030381,2540.5546651964833,2584.2470123685489,2628.6907786018273,2673.8988867682347,2719.8844819864898,2766.6609354448738,2814.241848288395,2862.6410555741459,2911.8726302939176,2961.9508874661115,3012.8903882982268,3064.705944420828,3117.4126221941551,3171.0257470890938,3225.5609081433213]
[null,"Casey (C)",null,2567.0967741935456,2833.2258064516209,3198.0645161290304,3739.0322580645152,4277.7419354838639,4510.3225806451665,4410.3225806451519,4360.9677419354848,3431.6129032258177,4508.9772969652258,{"$f":"N33-M33","v":3363.0595293479273},3455.6733128035994,3550.8375455781788,3648.6224633480597,3749.1002359783452,3027.7129026430484,3093.2436737833195,3160.1927702749381,3228.5908898612543,3298.4693946971092,2562.5133898644708,2604.687989954371,2647.5567120338965,2691.130980167276,2735.4224064391456,2780.4427940495952,2826.2041404588381,2872.7186405850225,2919.9986900539079,2968.056888502033,3016.9060429343954,3066.559171137691,3117.0295051489084,3168.3304947819561,3220.4758112117706,3273.479350617301,3327.3552378852619,3382.1178303734341,3437.7817217377597,7046.2347264238051,3610.3307522270188,3669.7506390731141,3730.1484759174928,3791.5403581492137,3853.9426460600225,3917.371969204105,3981.8452308300475,4047.3796123845968,4113.9925780921767,4181.7018796084449,4250.5255607510335,4320.4819623079966,4391.5897269255947,4463.8678040761151,4537.3354551080847,4612.0122583784978,4687.9181144712493,4765.0732514995616,4843.4982304970617,4923.2139508969849,5004.2416561011923,5086.6029391423217,5170.3197484370321,5255.4143936356413,5341.9095515672234,5429.8282722829608,5519.193985198217,5610.0305053369957,5702.3620396776823,5796.2131936041988,5891.6089774635038,5988.574813229905,6087.1365412798477,6187.3204272788134,6289.1531691799755,6392.661904339504,6497.8742167479941,6604.8181443816866,6713.5221866735374,6824.0153121096082,6936.3269659466459,7050.4870780610945,7166.5260709233116,7284.4748677064781,7404.3649005255429,7526.2281188152265,7650.0969978430076,7776.0045473641949,7903.9843204179779]
[null,"Frankston (C)",null,737.59999999999854,862.80000000000291,732,643.59999999999854,684.80000000000291,486.39999999999418,451.60000000000582,319.19999999999709,277.19999999999709,510.86251088171412,{"$f":"N34-M34","v":472.53651878440724},476.39660453428223,480.28822279308224,484.21163114553929,488.16708928051958,513.79715520072205,518.17886073749105,522.59793382916541,527.05469314940274,531.54946008956176,569.91157905163709,575.0785352110106,580.29233624411427,585.55340685788542,590.86217560977821,596.21907494262268,601.62454121993505,607.0790147613443,612.58293987858633,618.13676491160004,623.74094226503803,629.39592844527215,635.102184097399,640.86017404279846,646.67036731711414,652.53323720837943,658.44926129547821,664.41892148723127,670.44270406152646,1359.1757032578462,688.84371522950823,695.08893888887542,701.3907832558325,707.74976166734996,714.1663921145373,720.64119728465448,727.17470460380719,733.76744627988955,740.41995934589067,747.13278570366674,753.90647216813522,760.74157051170187,767.63863750935707,774.59823498383048,781.62092985160416,788.70729416889662,795.85790517828718,803.07334535582049,810.35420245848945,817.70106957184908,825.11454515869264,832.59523310749501,840.14374278180185,847.76068906977889,855.44669243427052,863.20237896346953,871.0283804218052,878.92533430138428,886.89388387402869,894.93467824360414,903.04837239890185,911.23562726700038,919.49710976712231,927.83349286491284,936.24545562728599,944.73368327778007,953.29886725227698,961.94170525544905,970.66290131746791,979.46316585146997,988.34321571126929,997.30377425003098,1006.3455713787989,1015.4693436263333,1024.6758341988316,1033.9657930406829,1043.3399768953677,1052.799149367158,1062.3440809835301]
[null,"Glen Eira (C)",null,785.59999999999854,857.59999999999854,973.59999999999854,892,1063.5999999999985,1149.6000000000058,985.19999999999709,1046,672.40000000000146,853.74242046007566,{"$f":"N35-M35","v":778.39824651259551},787.84480848313979,797.4060129691934,807.08325126070122,816.87793153210077,795.25662082749477,804.53966728319938,813.93107492601848,823.43210865829315,833.04404814755253,741.33516198975849,748.94725866668159,756.63751704263268,764.40673968903138,772.25573741822154,780.18532936788688,788.19634308687819,796.28961462125881,804.46598860177619,812.72631833182822,821.07146587672469,829.502302153458,838.01970702166727,846.62456937554816,855.3177872364904,864.10026784680667,872.97292776456743,881.93669295901782,890.99249890744977,1809.5253137942927,918.72166072524851,928.15517805881973,937.68555960392405,947.31379997108888,957.04090398352128,966.86788678214361,976.79577393140062,986.82560152624501,996.95841630050563,1007.1952757358231,1017.5372481722297,1027.9854129195592,1038.540860370078,1049.204692112311,1059.9780210460303,1070.8619714982924,1081.8576793409011,1092.9662921088311,1104.1889691201504,1115.5268815968157,1126.9812127870973,1138.5531580888346,1150.2439251744654,1162.0547341167548,1173.9868175164011,1186.0414206306014,1198.2198015027971,1210.523231094252,1222.9529934166785,1235.5103856658243,1248.1967183575034,1261.0133154637879,1273.9615145515418,1287.0426669218432,1300.2581377509923,1313.6093062332366,1327.0975657242816,1340.7243238870433,1354.4910028384766,1368.3990392979467,1382.4498847371142,1396.6450055315217,1410.9858831137244,1425.4740141274815,1440.1109105844807,1454.89810002179,1469.8371256612591,1484.9295465709001,1500.1769378272293]
[null,"Greater Dandenong (C)",null,1016.8965517241377,1167.5862068965507,1252.7586206896594,1353.7931034482754,1434.8275862068986,1136.5517241379275,904.13793103448552,731.37931034482608,34.827586206898559,1015.2749087387128,{"$f":"N36-M36","v":943.88651485294395},958.96869878413418,974.29187807709241,989.85990355109243,1005.6766875569665,939.66539588350133,953.47393980690686,967.48540264816256,981.70276633554022,996.12905661728291,992.21737610851415,1006.5305881919048,1021.0502752323082,1035.7794157302269,1050.7210311523231,1065.8781865513738,1081.2539911950444,1096.8515992037283,1112.6742101974523,1128.7250699522847,1145.0074710662157,1161.524753634556,1178.2803059350554,1195.2775651229458,1212.5200179362582,1230.0112014106853,1247.7547036054602,1265.7541643393051,1284.0132759370463,2623.8612720966776,1340.3862427364074,1359.7219579011144,1379.3366000414971,1399.2341928131063,1419.4188179146586,1439.8946159253683,1460.6657871542266,1481.7365925018094,1503.1113543340325,1524.7944573692366,1546.7903495773062,1569.1035430922202,1591.7386151377286,1614.7002089661546,1637.9930348110356,1661.6218708532397,1685.5915642012551,1709.9070318852755,1734.5732618662441,1759.5953140586207,1784.9783213687624,1810.727490747493,1836.8481042584754,1863.3455201616889,1890.2251740126085,1917.4925797770848,1945.1533309627266,1973.2131017660431,2001.6776482367131,2030.5528094580513,2059.8445087449218,2089.5587548590556,2119.7016432412202,2150.2793572620722,2181.2981694901246,2212.7644429789216,2244.6846325719089,2277.0652862269199,2309.9130463590845,2343.2346512037038,2377.0369361982157,2411.3268353846215,2446.1113828317903,2481.397714078339,2517.193067596585,2553.5047862771899,2590.3403189355449,2627.7072218398098,2665.6131602609239]
[null,"Kingston ©",null,852.40000000000146,760.40000000000146,749.59999999999854,813.59999999999854,1078.8000000000029,844,960.40000000000146,940.80000000000291,595.59999999999127,816.15973859047517,{"$f":"N37-M37","v":812.001100582871},821.73553262479254,831.58666299033212,841.55589068231347,851.64463147525385,889.15809644649562,900.15519488599966,911.28830532894062,922.55910997046158,933.96931181101536,823.42561582350754,832.29466086519824,841.25923361269815,850.3203629864729,859.47908898950845,868.73646282652044,878.09354702469136,887.55141555554292,897.11115395829256,906.77385946437425,916.54064112345804,926.41261993060471,936.39092895510839,946.47671347037249,956.67113108550257,966.97535187806352,977.39055852845195,987.91794645560731,998.55872395422193,2029.499458390259,1031.1736728846881,1042.2803540164023,1053.5066642358433,1064.8538920573774,1076.3233398739249,1087.9163241063216,1099.6341753544402,1111.478238549942,1123.4498731106869,1135.5504530965845,1147.7813673675264,1160.1440197427,1172.6398291615769,1185.270229847054,1198.0366714698612,1210.9406193149043,1223.9835544497182,1237.1669738942001,1250.4923907924967,1263.9613345867256,1277.5753511924704,1291.3360031762859,1305.2448699349625,1319.3035478767706,1333.513650604873,1347.8768091023376,1362.39467191945,1377.0689053628012,1391.9011936867319,1406.8932392864372,1422.0467628935876,1437.3635037735803,1452.8452199253661,1468.4936882831098,1484.3107049201208,1500.2980852551991,1516.4576642607863,1532.7912966736476,1549.3008572076797,1565.9882407693367,1582.8553626748035,1599.9041588699911,1617.1365861527156,1634.5546223974088,1652.1602667817206,1669.9555400166719,1687.9424845778267,1706.1231649402762,1724.4996678153111]
[null,"Knox (C)",null,289.25925925925549,348.51851851851825,402.59259259259125,468.88888888889051,612.22222222221899,545.925925925927,512.9629629629635,496.66666666667152,220,460.97466642288782,{"$f":"N38-M38","v":565.34396573605773},570.53026777908235,575.76414745713555,581.04604123373429,586.37638957626768,598.77036961387057,604.32842977242399,609.93808238489146,615.59980635608372,621.31408503609418,655.40014436859929,661.75860642442422,668.17875604626897,674.66119170536695,681.20651767890377,687.8153441065806,694.48828704758489,701.22596853779396,708.02901664785168,714.89806554179813,721.83375553604856,728.83673315908527,735.90765121196455,743.04716882880894,750.25595153852191,757.53467132672085,764.88400669835391,772.30464274102997,779.79727118882874,1582.3638963427657,802.7141293593595,810.50177996799175,818.36498362816928,826.30447332908807,834.3209891711158,842.41527843484073,850.58809565067349,858.84020266923471,867.17236873235379,875.58537054475164,884.07999234649469,892.65702598607459,901.3172709941864,910.06153465827811,918.89063209790038,927.80538634050754,936.80662839836441,945.8951973458752,955.07194039782917,964.33771298846113,973.69337885106506,983.13981009858253,992.6778873049916,1002.3084995870886,1012.0325446877541,1021.8509290593938,1031.7645679484704,1041.7743854808505,1051.8813147479232,1062.0862978937512,1072.3902862025134,1082.7942401876062,1093.2991296808759,1103.9059339232044,1114.6156416556914,1125.4292512118991,1136.3477706107806,1147.3722176508163,1158.5036200047616,1169.7430153155728,1181.0914512929448,1192.5499858110998,1204.1196870075364,1215.8016333822452,1227.5969138984801,1239.5066280844185,1251.5318861352716,1263.6738090170111,1275.933528570924]
[null,"Manningham (C)",null,246.42857142857247,327.5,385.71428571428987,481.42857142856519,637.5,607.14285714286234,451.78571428571013,732.14285714286234,480,572.65878468807205,{"$f":"N39-M39","v":449.12137244856422},453.44817427838279,457.8166601945486,462.22723177843727,466.68029448027664,417.03443432002678,420.59045039620105,424.17678830988734,427.79370661264693,431.44146606082359,400.65620922742528,403.80197353311814,406.97243690207688,410.1677932597886,413.38823805422726,416.63396826811368,419.90518243059341,423.20208062969323,426.52486452441372,429.87373735703295,433.24890396567935,436.65057079670078,440.0789459173975,443.53423902871873,447.01666147806827,450.52642627226305,454.06374809056433,457.62884329774533,461.22192995745718,933.33618630819547,472.17134505027934,475.87861260089267,479.61498787446908,483.38069941113645,487.17597754546296,491.00105442049971,494.85616400190338,498.74154209242988,502.65742634617345,506.60405628317676,510.58167330413562,514.59052070503822,518.63084369216813,522.70288939702732,526.80690689150651,530.94314720308466,535.11186333015212,539.31331025758118,543.54774497223843,547.81542647867172,552.11661581516091,556.45157606937573,560.82057239470305,565.22387202642858,569.66174429794773,574.1344606573839,578.64229468417761,583.18552210571943,587.76442081436107,592.37927088420838,597.03035458855447,601.71795641678909,606.44236309213738,611.20386358888936,616.00274915035698,620.83931330648193,625.71385189190914,630.62666306398751,635.57804732107616,640.56830752096721,645.59774889923574,650.66667908812815,655.77540813520318,660.92424852239492,666.11351518516312,671.34352553152712,676.61459946181276,681.92705938800646,687.28123025344394]
[null,"Maroondah (C)",null,427.30769230769511,518.07692307692196,630.76923076922685,616.15384615385119,683.46153846153175,585,455.38461538461706,409.23076923077315,320,558.70091377505742,{"$f":"N40-M40","v":510.54773197933537},516.15545272377494,521.8247671840727,527.55635188929591,533.35089079922909,536.52811753479182,542.39189941813675,548.31976729594317,554.31242157195811,560.37057030470169,581.32768552411289,587.84744098735246,594.4403173639148,601.1071347256584,607.84872234176146,614.66591878190957,621.55957202057471,628.53053954257484,635.57968844952848,642.70789556796808,649.91604755822482,657.20504102478299,664.57578262784955,672.02918919597869,679.56618784034799,687.18771606984956,694.89472190783272,702.68816401004005,710.56901178376575,1445.1351019662761,734.74584702273569,742.98623083639541,751.31903290007904,759.74528971075779,768.26604939007666,776.88237181451404,785.59532874752767,794.40600397260278,803.31549342823564,812.32490534411045,821.43536037908052,830.64799176047381,839.96394542513008,849.38438016182045,858.91046775552968,868.54339313314995,878.28435451078985,888.13456354298978,898.09524547323235,908.16763928656292,918.3529978635197,928.65258813613036,939.06769124530547,949.59960270045849,960.24963254036265,971.01910549637978,981.90936115705699,992.9217541347607,1004.0576542343042,1015.3184466232051,1026.7055320040672,1038.2203267886798,1049.8642632744013,1061.6387898221583,1073.545371036671,1085.5854879486287,1097.7606381988444,1110.0723362247081,1122.5221134482999,1135.1115184672672,1147.8421172468952,1160.7154933155543,1173.7332479611068,1186.8970004303992,1200.2083881306171,1213.6690668328229,1227.2807108781999,1241.0450133859267,1254.9636864641943]
[null,"Melbourne (C)",null,3669,5566.5,4632,4448.5,4612,6522.5,5588,4338.5,2381,6288.3341434416361,{"$f":"N41-M41","v":3486.9486828910885},3610.8079593243747,3739.066818818319,3871.8815381707682,4009.4139452595846,2614.7482202846732,2673.2411000035936,2733.0424869628187,2794.1816529507341,2856.6885245763551,2065.5748077402241,2098.2549425677862,2131.4521205004712,2165.1745218462893,2199.4304563367914,2234.2283651743783,2269.5768231124675,2305.4845405686356,2341.9603657705593,2379.0132869367953,2416.652434491436,2454.8870833139226,2493.7266550246859,2533.1807203066419,2573.2590012635919,2613.9713738159626,2655.3278701343806,2697.3386811116361,2740.0141588740807,5610.7661641050363,2872.1345864894975,2917.5755674589309,2963.7354850551928,3010.6257138098881,3058.257808214752,3106.6435055690235,3155.7947288714931,3205.7235897586215,3256.4423914890795,3307.9636319754354,3360.3000068636902,3413.4644126619387,3467.4699499181588,3522.3299264482921,3578.0578606156632,3634.6674846619717,3692.1727480913687,3750.5878211073868,3809.9270981053414,3870.2052012186614,3931.4369839225546,3993.6375346937857,4056.8221807290101,4121.0064917212003,4186.2062836968107,4252.4376229126938,4319.716829815181,4388.0604830619413,4457.4854236065876,4528.0087588494644,4599.6478668522323,4672.4204006209038,4746.3442924554111,4821.4377583683236,4897.7193025735905,4975.2077220469946,5053.9221111566876,5133.8818663694547,5215.1066910299705,5297.6166002156679,5381.4319256694289,5466.5733208090533,5553.0617658169358,5640.9185728096054,5730.1653910899186,5820.8242124810931,5912.9173767464235,6006.4675770936883,6101.497865767451]
[null,"Monash (C)",null,1098.8888888888905,1090,1072.222222222219,1120,1278.148148148146,1591.481481481489,1218.518518518511,994.074074074073,755.55555555556202,1139.5711134036828,{"$f":"N42-M42","v":991.65342261841579},1004.4176181026269,1017.3461095824459,1030.4410118150699,1043.7044667780283,980.07649340508215,991.77206707235018,1003.6072078491998,1015.5835812357254,1027.7028726068238,1028.2447602780012,1040.376835550298,1052.6520550000423,1065.0721075596666,1077.6387020890834,1090.3535676104948,1103.2184535468841,1116.235129962166,1129.4053878048871,1142.7310391547508,1156.2139174718614,1169.8558778489387,1183.6587972666457,1197.6245748518413,1211.7551321387291,1226.0524133334548,1240.5183855814976,1255.1550392382342,1269.9643881430093,2585.0578160347213,1315.449102837636,1330.9698505710694,1346.6737248197896,1362.56288626061,1378.6395210638875,1394.9058411941078,1411.3640847144125,1428.0165160944598,1444.8654265218211,1461.9131342175824,1479.1619847550028,1496.6143513822899,1514.2726353492908,1532.1392662377766,1550.2167022954964,1568.5074307748873,1587.0139682749868,1605.7388610875641,1624.684685547807,1643.8540483884863,1663.2495870989223,1682.8739702874445,1702.7298980490596,1722.8201023365546,1743.1473473366059,1763.7144298499916,1784.5241796765185,1805.5794600041409,1826.8831678032293,1848.4382342248573,1870.2476250043255,1892.3143408689648,1914.6414179513813,1937.2319282067183,1960.0889798357093,1983.2157177121553,2006.6153238156694,2030.2910176694568,2054.246056783275,2078.4837371017202,2103.0073934575776,2127.8204000307887,2152.9261708125996,2178.3281600752671,2204.0298628475575,2230.0348153953091,2256.3465957081062,2282.9688239917159,2309.9051631659386]
[null,"Nillumbik (S)",null,73,79.666666666667879,86.333333333332121,80.666666666667879,166.33333333333212,148,107.66666666666788,52.666666666667879,40,80.405682175172842,{"$f":"N43-M43","v":92.054980257409625},92.443343744689628,92.833345668026595,93.224992939678486,93.618292501076212,109.04105690618235,109.57461551953747,110.11078493659079,110.6495779324905,111.19100734489621,125.76813386735012,126.46083157254907,127.15734447397699,127.85769358474499,128.56190003367374,129.269985065941,129.9819700437838,130.69787644708413,131.41772587400555,132.14154004167722,132.8693407868559,133.60115006654814,134.33698995871237,135.07688266290279,135.820850500917,136.56891591754902,137.32110148116408,138.07742988444079,138.83792394505144,279.97410754434895,141.1446301368378,141.92201752735127,142.70368656254504,143.48966082458719,144.27996402553254,145.07462000804298,145.87365274607509,146.67708634566225,147.48494504557311,148.29725321810474,149.11403536977014,149.9353161420695,150.76112031221419,151.59147279390163,152.42639863801378,153.26592303342841,154.11007130776852,154.95886892810813,155.81234150185264,156.67051477739369,157.53341464496043,158.40106713737987,159.27349843084448,160.15073484573077,161.03280284739958,161.91972904693466,162.81154020201575,163.70826321769346,164.60992514719692,165.51655319275596,166.42817470643422,167.34481719094038,168.26650830044309,169.19327584144776,170.12514777360411,171.06215221053935,172.00431742074579,172.9516718283885,173.9042440142257,174.86206271636911,175.82515683127349,176.79355541449695,177.76728768168687,178.74638300932202,179.73087093576032,180.72078116199555,181.71614355264319,182.71698813675175,183.72334510883957]
[null,"Port Phillip (C)",null,1308.5,1131.5,1147.5,965,1123,1014.5,1304.5,1177.5,428,1285.9553281616318,{"$f":"N44-M44","v":1018.370967497016},1035.7938592004211,1053.5148320206135,1071.5389857053451,1089.8715072517662,1046.0507364610166,1062.9386931104673,1080.099297223278,1097.5369505538692,1115.2561259208887,1556.9314903647173,1591.464408333457,1626.7632703599957,1662.8450651708554,1699.7271583044494,1737.4273004688584,1775.963636084809,1815.354712018423,1855.6194865073921,1896.7773382852756,1938.8480759081722,1981.8519472882326,2025.8096494385536,2070.7423384343565,2116.6716395950643,2163.6196578921081,2211.6089885877445,2260.6627281096735,2310.8044851670275,4776.5075086710422,2468.0018732452445,2522.7424361813464,2578.6971510445437,2635.8929478630598,2694.3573539761564,2754.1185072826047,2815.2051697830175,2877.6467414224462,2941.4732742400956,3006.7154868327489,3073.4047791392368,3141.5732475526456,3211.2537003676698,3282.4796735706332,3355.2854469800659,3429.7060607445892,3505.7773322074499,3583.5358731445158,3663.0191073852184,3744.2652888235752,3827.3135198294476,3912.2037700677756,3998.976895735017,4087.6746592229756,4178.3397492178774,4271.0158012460161,4365.747418674553,4462.5801941783575,4561.5607316832175,4662.7366687950853,4766.1566997276095,4871.870598737587,4979.9292440805002,5090.3846424973453,5203.2899542445666,5318.6995186791755,5436.6688804112782,5557.2548160367878,5680.5153614629817,5806.5098398402624,5935.2988901129575,6066.9444962046691,6201.5100168489153,6339.0602160834242,6479.6612944197259,6623.3809207039885,6770.2882646853104,6920.454030305671,7073.9504897285951]
[null,"South Gippsland (S)",null,172.5,144.58333333333394,103.33333333333212,108.33333333333394,142.08333333333394,82.91666666666606,105.83333333333394,139.58333333333212,140.83333333333394,97.328888331334383,{"$f":"N45-M45","v":100.41360365778201},101.20749074993364,102.0076544489566,102.81414437878448,103.62701055567231,103.22688531385211,104.03348632206325,104.8463900021452,105.66564560233019,106.49130275566677,99.188443047791225,99.904740843006948,100.62621144380137,101.35289220602863,102.0848207553081,102.82203498900708,103.5645730781107,104.31247346931741,105.06577488693983,105.82451633495475,106.58873709899672,107.35847674842989,108.1337751383362,108.91467241165265,109.70120900117581,110.4934256317174,111.29136332218332,112.09506338767824,112.90456744170115,228.2610728722284,115.36832419048551,116.20146637637481,117.04062516956037,117.88584401949993,118.73716668939596,119.5946372585131,120.45830012442093,121.3282000053332,122.20438194237067,123.08689130194034,123.97577377807102,124.87107539476347,125.77284250837693,126.68112181006654,127.59596032814079,128.51740543054984,129.44550482729392,130.38030657293712,131.32185906905943,132.27021106677057,133.22541166927112,134.18751033433364,135.15655687689286,136.13260147166147,137.11569465565481,138.10588733086843,139.103230766872,140.10777660350868,141.11957685351808,142.13868390526841,143.16515052544855,144.19902986181478,145.2403754459192,146.28924119592193,147.34568141932323,148.40975081584111,149.48150448019805,150.56099790498411,151.64828698353449,152.74342801284729,153.84647769643198,154.95749314732529,156.07653189097982,157.20365186830168,158.33891143860455,159.48236938265472,160.63408490569054,161.79411764055112,162.96252765067038]
[null,"Stonnington (C)",null,1162.2727272727279,944.09090909090446,1094.0909090909117,970,1352.2727272727279,1258.6363636363603,1140.4545454545441,679.54545454545587,380.90909090909554,979.68076941485197,{"$f":"N46-M46","v":697.08864171617461},705.94065695618337,714.9050799577235,723.98333813645149,733.17687703404954,743.18960272223921,752.63596177464933,762.20238937890826,771.89041167404503,781.70157419711177,800.38393904236727,810.66967158623447,821.08758606026822,831.63938113426411,842.32677730754949,853.1515171896026,864.11536578417872,875.22011077709612,886.46756282768911,897.85955586412456,909.3979473823274,921.08461874895147,932.92147550800291,944.91044769174187,957.05349013520754,969.35258279499249,981.80973107216414,994.42696613915905,1007.2063452710718,2053.4098495405196,1046.5383184199309,1059.9873804451345,1073.6092763419583,1087.4062271981238,1101.3804826446722,1115.534321222498,1129.8700507541507,1144.3900087198854,1159.0965626390534,1173.9921104558307,1189.0790809305036,1204.3599340352957,1219.8371613555209,1235.5132864958723,1251.3908654918487,1267.4724872266379,1283.7607738530496,1300.2583812212397,1316.9679993117315,1333.8923526738508,1351.0342008702137,1368.3963389265991,1385.9815977875114,1403.7928447780432,1421.8329840712249,1440.1049571616313,1458.6117433449836,1477.3563602038776,1496.3418640999007,1515.571350671933,1535.0479553409532,1554.7748538210581,1574.7552626376564,1594.9924396515853,1615.4896845905023,1636.2503395867971,1657.2777897227061,1678.5754635820049,1700.1468338092964,1721.9954176761385,1744.1247776544478,1766.5385219976306,1789.2403053285088,1812.2338292357163,1835.5228428767296,1859.1111435897183,1883.0025775121758,1907.2010402085143,1931.7104773049068]
[null,"Whitehorse (C)",null,816.53846153846098,930.76923076922685,861.15384615385119,907.30769230768783,1139.2307692307731,1393.0769230769147,1157.6923076923122,963.84615384615608,752.30769230768783,1072.1922617026867,{"$f":"N47-M47","v":925.93779879638168},938.08418777320185,950.38991225330392,962.85706238893908,975.48775575090258,930.36693140590796,941.85619194529136,953.48733533032646,965.2621136965754,977.18230081703223,934.4866599010129,945.38795511044736,956.41641985833121,967.57353764653089,978.86080928273441,990.27975308237365,1001.8319050728896,1013.5188192002242,1025.3420675380767,1037.30324049911,1049.4039470491552,1061.6458149233513,1074.0304908453836,1086.5596407487756,1099.2349500011333,1112.0581236307626,1125.0308865560655,1138.1549838174979,1151.4321808124514,2343.3173023368145,1192.2003345310368,1206.107999940461,1220.1779058321408,1234.4119448294223,1248.8120316343557,1263.3801032849005,1278.1181194156816,1293.0280625215091,1308.1119382240286,1323.3717755416437,1338.8096271622489,1354.4275697195553,1370.2277040723275,1386.2121555869235,1402.3830744232982,1418.7426358242228,1435.2930404077924,1452.0365144635725,1468.9753102519462,1486.1117063072015,1503.4480077439366,1520.9865465671028,1538.7296819859184,1556.6798007309553,1574.8393173751829,1593.2106746591453,1611.7963438190054,1630.5988249195216,1649.6206471897895,1668.8643693639315,1688.3325800250168,1708.0278979533759,1727.9529724787571,1748.1104838369065,1768.5031435299024,1789.1336946909723,1810.0049124534416,1831.1196043242235,1852.4806105612079,1874.0908045553952,1895.9530932176276,1918.0704173692211,1940.4457521379518,1963.08210735803,1985.9825279749639,2009.1500944552536,2032.5879232007428,2056.2991669677431,2080.2870152912219]
[null,"Yarra Ranges (S)",null,356.66666666666424,384.44444444444525,394.81481481481023,527.0370370370365,679.62962962963502,608.51851851851825,482.22222222221899,482.59259259259125,178.14814814815327,471.02096747869655,{"$f":"N48-M48","v":507.71583825498965},512.03269930300303,516.38626452277094,520.77684599196073,525.20475844175235,548.69339177250367,553.52621800852648,558.40161120413541,563.31994628402754,568.28160147524613,566.06539855029405,570.98842995578889,575.95427662305883,580.96331091345928,586.01590842672158,591.11244802923466,596.25331188223208,601.43888547060487,606.66955763190344,611.94572058522317,617.26776996083208,622.63610482972581,628.05112773366272,633.51324471522821,639.02286534832092,644.58040276891552,650.18627370597096,655.84089851270255,661.5447011981596,1340.3996641700796,678.95547212324163,684.86030064793886,690.81648305566341,696.82446596756927,702.88469988909492,708.99763924356375,715.16374240648292,721.38347173979855,727.65729362661659,733.98567850605468,740.3691009087197,746.80803949208348,753.30297707654245,759.85440068147727,766.4628015619237,773.12867524524336,779.85252156844945,786.63484471550328,793.47615325532388,800.37696017975395,807.33778294209333,814.35914349592349,821.44156833422312,828.58558852880378,835.79173977019673,843.06056240778707,850.3926014903991,857.78840680699795,865.24853292811895,872.77353924731142,880.36399002316466,888.02045442155213,895.74350655835588,903.53372554249654,911.39169551942905,919.31800571475469,927.31325047866267,935.37802933024068,943.51294700262952,951.71861348832317,959.99564408483275,968.34465944075782,976.76628560267272,985.26115406164899,993.82990180084016,1002.4731713432266,1011.1916107997822,1019.9858739179472,1028.8566201308859]
[null,"Multinet",null,{"$f":"D49-C49","v":18356.556492380798},{"$f":"E49-D49","v":20935.246554732672},{"$f":"F49-E49","v":20656.180571976351},{"$f":"G49-F49","v":21315.656082643312},{"$f":"H49-G49","v":24855.908466079622},{"$f":"I49-H49","v":26079.048565707402},{"$f":"J49-I49","v":23563.679400198394},{"$f":"K49-J49","v":21249.790525473887},{"$f":"L49-K49","v":13232.140563432826},24300.753545942716,18466.15254429169,18855.204190108925,19254.428338884143,19664.127202732023,20084.61258224654,17386.796437089797,17665.315117901191,17948.856651408598,18237.519790575374,18531.405344172614,16845.116975407116,17076.525576875778,17311.385644891066,17549.752546941629,17791.682595933555,18037.233067205176,18286.46221585921,18539.429294424364,18796.194570842432,19056.819346802775,19321.365976418834,19589.89788525342,19862.479589707451,20139.176716775401,20420.056024168851,20705.185420826776,20994.633987809997,21288.471999592381,21586.770945755066,44086.64736123709,22509.166980130365,22826.049644361017,23147.769706061343,23474.406424654182,23806.040438514668,24142.753790193005,24484.629952108022,24831.753852747381,25184.211903350195,25542.092025117483,25905.483676922508,26274.47788357106,26649.167264584452,27029.646063547814,27416.010178009747,27808.357189962175,28206.786396904383,28611.39884349145,29022.297353816684,29439.58656427823,29863.37295711413,30293.764894552063,30730.872653638944,31174.808461728506,31625.686532655265,32083.623103607912,32548.736472717952,33021.147037364542,33500.977333222982,33988.352074079216,34483.398192393128,34986.244880666025,35497.023633602075,36015.868291079532,36542.915081970394,37078.302668797784,37622.17219326552,38174.667322664056,38735.934297197498,39306.121978208888,39885.38189735217,40473.868306734599,41071.738230004441,41679.151514467783,42296.270884206984,42923.261994233821,43560.293485691305,44207.537042167503,44865.167447063606]
[]
[null,"New households plus reconnections"]
[null,null,2011,2012,{"$f":"D76+1","v":2013},{"$f":"E76+1","v":2014},{"$f":"F76+1","v":2015},{"$f":"G76+1","v":2016},{"$f":"H76+1","v":2017},{"$f":"I76+1","v":2018},{"$f":"J76+1","v":2019},{"$f":"K76+1","v":2020},2021,2022,2023,2024,2025,2026,2027,2028,2029,2030,2031,2032,2033,2034,2035,2036,2037,2038,2039,2040,2041,2042,2043,2044,2045,2046,2047,2048,2049,2050,2051,2052,2053,2054,2055,2056,2057,2058,2059,2060,2061,2062,2063,2064,2065,2066,2067,2068,2069,2070,2071,2072,2073,2074,2075,2076,2077,2078,2079,2080,2081,2082,2083,2084,2085,2086,2087,2088,2089,2090,2091,2092,2093,2094,2095,2096,2097,2098,2099,2100]
[null,"Bass Coast (S)",null,{"$f":"D53*(1+Control!$E$2)","v":328.40909090909008},{"$f":"E53*(1+Control!$E$2)","v":295.45454545454731},{"$f":"F53*(1+Control!$E$2)","v":332.95454545454504},{"$f":"G53*(1+Control!$E$2)","v":374.43181818181756},{"$f":"H53*(1+Control!$E$2)","v":504.54545454545496},{"$f":"I53*(1+Control!$E$2)","v":523.86363636363512},{"$f":"J53*(1+Control!$E$2)","v":534.09090909090992},{"$f":"K53*(1+Control!$E$2)","v":561.93181818181756},{"$f":"L53*(1+Control!$E$2)","v":642.04545454545496},{"$f":"M53*(1+Control!$E$2)","v":508.41375920034352},{"$f":"N53*(1+Control!$E$2)","v":396.35553512843671},{"$f":"O53*(1+Control!$E$2)","v":403.56715101447207},{"$f":"P53*(1+Control!$E$2)","v":410.90998092195605},{"$f":"Q53*(1+Control!$E$2)","v":418.38641226581331},{"$f":"R53*(1+Control!$E$2)","v":425.99887589956779},{"$f":"S53*(1+Control!$E$2)","v":402.46324739555803},{"$f":"T53*(1+Control!$E$2)","v":409.257798647659},{"$f":"U53*(1+Control!$E$2)","v":416.16705832846492},{"$f":"V53*(1+Control!$E$2)","v":423.19296299317102},{"$f":"W53*(1+Control!$E$2)","v":430.33748189072867},{"$f":"X53*(1+Control!$E$2)","v":374.79202845231612},{"$f":"Y53*(1+Control!$E$2)","v":380.2112303470085},{"$f":"Z53*(1+Control!$E$2)","v":385.70878969582282},{"$f":"AA53*(1+Control!$E$2)","v":391.28583948673622},{"$f":"AB53*(1+Control!$E$2)","v":396.9435290898673},{"$f":"AC53*(1+Control!$E$2)","v":402.68302449433122},{"$f":"AD53*(1+Control!$E$2)","v":408.50550854851463},{"$f":"AE53*(1+Control!$E$2)","v":414.41218120389749},{"$f":"AF53*(1+Control!$E$2)","v":420.40425976234019},{"$f":"AG53*(1+Control!$E$2)","v":426.48297912691305},{"$f":"AH53*(1+Control!$E$2)","v":432.64959205643208},{"$f":"AI53*(1+Control!$E$2)","v":438.90536942366452},{"$f":"AJ53*(1+Control!$E$2)","v":445.25160047716781},{"$f":"AK53*(1+Control!$E$2)","v":451.68959310706214},{"$f":"AL53*(1+Control!$E$2)","v":458.2206741145319},{"$f":"AM53*(1+Control!$E$2)","v":464.8461894852926},{"$f":"AN53*(1+Control!$E$2)","v":471.56750466693666},{"$f":"AO53*(1+Control!$E$2)","v":478.38600485041297},{"$f":"AP53*(1+Control!$E$2)","v":485.30309525540815},{"$f":"AQ53*(1+Control!$E$2)","v":991.75897091461138},{"$f":"AR53*(1+Control!$E$2)","v":506.66026653948848},{"$f":"AS53*(1+Control!$E$2)","v":513.98618082782832},{"$f":"AT53*(1+Control!$E$2)","v":521.41802215190182},{"$f":"AU53*(1+Control!$E$2)","v":528.95732213445626},{"$f":"AV53*(1+Control!$E$2)","v":536.60563454429393},{"$f":"AW53*(1+Control!$E$2)","v":544.36453561653707},{"$f":"AX53*(1+Control!$E$2)","v":552.23562437739929},{"$f":"AY53*(1+Control!$E$2)","v":560.22052297383198},{"$f":"AZ53*(1+Control!$E$2)","v":568.32087700772263},{"$f":"BA53*(1+Control!$E$2)","v":576.53835587510002},{"$f":"BB53*(1+Control!$E$2)","v":584.87465311019605},{"$f":"BC53*(1+Control!$E$2)","v":593.3314867343779},{"$f":"BD53*(1+Control!$E$2)","v":601.91059961030078},{"$f":"BE53*(1+Control!$E$2)","v":610.61375980106277},{"$f":"BF53*(1+Control!$E$2)","v":619.44276093458029},{"$f":"BG53*(1+Control!$E$2)","v":628.39942257322036},{"$f":"BH53*(1+Control!$E$2)","v":637.48559058883984},{"$f":"BI53*(1+Control!$E$2)","v":646.70313754313611},{"$f":"BJ53*(1+Control!$E$2)","v":656.05396307361843},{"$f":"BK53*(1+Control!$E$2)","v":665.53999428509087},{"$f":"BL53*(1+Control!$E$2)","v":675.16318614676493},{"$f":"BM53*(1+Control!$E$2)","v":684.92552189520211},{"$f":"BN53*(1+Control!$E$2)","v":694.82901344304992},{"$f":"BO53*(1+Control!$E$2)","v":704.87570179359864},{"$f":"BP53*(1+Control!$E$2)","v":715.06765746154088},{"$f":"BQ53*(1+Control!$E$2)","v":725.40698089952457},{"$f":"BR53*(1+Control!$E$2)","v":735.89580293115432},{"$f":"BS53*(1+Control!$E$2)","v":746.53628519010454},{"$f":"BT53*(1+Control!$E$2)","v":757.33062056553536},{"$f":"BU53*(1+Control!$E$2)","v":768.28103365416609},{"$f":"BV53*(1+Control!$E$2)","v":779.38978121857872},{"$f":"BW53*(1+Control!$E$2)","v":790.65915265245167},{"$f":"BX53*(1+Control!$E$2)","v":802.09147045226928},{"$f":"BY53*(1+Control!$E$2)","v":813.68909069606161},{"$f":"BZ53*(1+Control!$E$2)","v":825.45440352887454},{"$f":"CA53*(1+Control!$E$2)","v":837.3898336554339},{"$f":"CB53*(1+Control!$E$2)","v":849.49784083978557},{"$f":"CC53*(1+Control!$E$2)","v":861.78092041227501},{"$f":"CD53*(1+Control!$E$2)","v":874.24160378377564},{"$f":"CE53*(1+Control!$E$2)","v":886.88245896740227},{"$f":"CF53*(1+Control!$E$2)","v":899.70609110772784},{"$f":"CG53*(1+Control!$E$2)","v":912.71514301774005},{"$f":"CH53*(1+Control!$E$2)","v":925.91229572341945},{"$f":"CI53*(1+Control!$E$2)","v":939.30026901627571},{"$f":"CJ53*(1+Control!$E$2)","v":952.88182201397831},{"$f":"CK53*(1+Control!$E$2)","v":966.65975372879075},{"$f":"CL53*(1+Control!$E$2)","v":980.63690364459035},{"$f":"CM53*(1+Control!$E$2)","v":994.81615230199168},{"$f":"CN53*(1+Control!$E$2)","v":1009.2004218919374}]
[null,"Bayside (C)",null,{"$f":"D54*(1+Control!$E$2)","v":409.61538461538112},{"$f":"E54*(1+Control!$E$2)","v":615.86538461538112},{"$f":"F54*(1+Control!$E$2)","v":742.78846153846644},{"$f":"G54*(1+Control!$E$2)","v":707.21153846153356},{"$f":"H54*(1+Control!$E$2)","v":790.38461538461888},{"$f":"I54*(1+Control!$E$2)","v":658.65384615384755},{"$f":"J54*(1+Control!$E$2)","v":703.36538461538112},{"$f":"K54*(1+Control!$E$2)","v":534.13461538461888},{"$f":"L54*(1+Control!$E$2)","v":329.32692307692378},{"$f":"M54*(1+Control!$E$2)","v":604.9484264223247},{"$f":"N54*(1+Control!$E$2)","v":431.78411702877384},{"$f":"O54*(1+Control!$E$2)","v":435.34838697587475},{"$f":"P54*(1+Control!$E$2)","v":438.94207908040698},{"$f":"Q54*(1+Control!$E$2)","v":442.56543621488163},{"$f":"R54*(1+Control!$E$2)","v":446.21870325670898},{"$f":"S54*(1+Control!$E$2)","v":414.31896574746133},{"$f":"T54*(1+Control!$E$2)","v":417.4685665112429},{"$f":"U54*(1+Control!$E$2)","v":420.64211014462671},{"$f":"V54*(1+Control!$E$2)","v":423.83977865831184},{"$f":"W54*(1+Control!$E$2)","v":427.06175544662074},{"$f":"X54*(1+Control!$E$2)","v":440.96848441905422},{"$f":"Y54*(1+Control!$E$2)","v":444.40371702687116},{"$f":"Z54*(1+Control!$E$2)","v":447.86571078310772},{"$f":"AA54*(1+Control!$E$2)","v":451.35467416250322},{"$f":"AB54*(1+Control!$E$2)","v":454.87081726380893},{"$f":"AC54*(1+Control!$E$2)","v":458.41435182241185},{"$f":"AD54*(1+Control!$E$2)","v":461.98549122333134},{"$f":"AE54*(1+Control!$E$2)","v":465.58445051375202},{"$f":"AF54*(1+Control!$E$2)","v":469.21144641619321},{"$f":"AG54*(1+Control!$E$2)","v":472.86669734146926},{"$f":"AH54*(1+Control!$E$2)","v":476.55042340183172},{"$f":"AI54*(1+Control!$E$2)","v":480.26284642429346},{"$f":"AJ54*(1+Control!$E$2)","v":484.00418996390727},{"$f":"AK54*(1+Control!$E$2)","v":487.77467931729007},{"$f":"AL54*(1+Control!$E$2)","v":491.57454153617437},{"$f":"AM54*(1+Control!$E$2)","v":495.40400544099612},{"$f":"AN54*(1+Control!$E$2)","v":499.26330163486455},{"$f":"AO54*(1+Control!$E$2)","v":503.15266251725006},{"$f":"AP54*(1+Control!$E$2)","v":507.07232229806323},{"$f":"AQ54*(1+Control!$E$2)","v":1026.0260015434687},{"$f":"AR54*(1+Control!$E$2)","v":519.01546458402663},{"$f":"AS54*(1+Control!$E$2)","v":523.05869876263387},{"$f":"AT54*(1+Control!$E$2)","v":527.13343054343568},{"$f":"AU54*(1+Control!$E$2)","v":531.23990529900766},{"$f":"AV54*(1+Control!$E$2)","v":535.37837031347408},{"$f":"AW54*(1+Control!$E$2)","v":539.54907479734175},{"$f":"AX54*(1+Control!$E$2)","v":543.75226990254305},{"$f":"AY54*(1+Control!$E$2)","v":547.98820873752447},{"$f":"AZ54*(1+Control!$E$2)","v":552.25714638240788},{"$f":"BA54*(1+Control!$E$2)","v":556.55933990457015},{"$f":"BB54*(1+Control!$E$2)","v":560.89504837394998},{"$f":"BC54*(1+Control!$E$2)","v":565.26453287865479},{"$f":"BD54*(1+Control!$E$2)","v":569.66805654076779},{"$f":"BE54*(1+Control!$E$2)","v":574.10588453212767},{"$f":"BF54*(1+Control!$E$2)","v":578.57828409028116},{"$f":"BG54*(1+Control!$E$2)","v":583.085524534672},{"$f":"BH54*(1+Control!$E$2)","v":587.62787728277544},{"$f":"BI54*(1+Control!$E$2)","v":592.20561586642361},{"$f":"BJ54*(1+Control!$E$2)","v":596.81901594838564},{"$f":"BK54*(1+Control!$E$2)","v":601.46835533880221},{"$f":"BL54*(1+Control!$E$2)","v":606.15391401211127},{"$f":"BM54*(1+Control!$E$2)","v":610.87597412375544},{"$f":"BN54*(1+Control!$E$2)","v":615.63482002722594},{"$f":"BO54*(1+Control!$E$2)","v":620.43073829120658},{"$f":"BP54*(1+Control!$E$2)","v":625.26401771677229},{"$f":"BQ54*(1+Control!$E$2)","v":630.13494935484232},{"$f":"BR54*(1+Control!$E$2)","v":635.04382652368804},{"$f":"BS54*(1+Control!$E$2)","v":639.99094482656801},{"$f":"BT54*(1+Control!$E$2)","v":644.97660216957229},{"$f":"BU54*(1+Control!$E$2)","v":650.0010987794667},{"$f":"BV54*(1+Control!$E$2)","v":655.06473722201918},{"$f":"BW54*(1+Control!$E$2)","v":660.16782241978945},{"$f":"BX54*(1+Control!$E$2)","v":665.31066167097379},{"$f":"BY54*(1+Control!$E$2)","v":670.49356466755853},{"$f":"BZ54*(1+Control!$E$2)","v":675.7168435141466},{"$f":"CA54*(1+Control!$E$2)","v":680.98081274665674},{"$f":"CB54*(1+Control!$E$2)","v":686.28578935131372},{"$f":"CC54*(1+Control!$E$2)","v":691.63209278380236},{"$f":"CD54*(1+Control!$E$2)","v":697.02004498827591},{"$f":"CE54*(1+Control!$E$2)","v":702.44997041705574},{"$f":"CF54*(1+Control!$E$2)","v":707.92219604994898},{"$f":"CG54*(1+Control!$E$2)","v":713.43705141398459},{"$f":"CH54*(1+Control!$E$2)","v":718.9948686032767},{"$f":"CI54*(1+Control!$E$2)","v":724.59598229899711},{"$f":"CJ54*(1+Control!$E$2)","v":730.24072978967524},{"$f":"CK54*(1+Control!$E$2)","v":735.92945099120698},{"$f":"CL54*(1+Control!$E$2)","v":741.66248846764574},{"$f":"CM54*(1+Control!$E$2)","v":747.44018745155699},{"$f":"CN54*(1+Control!$E$2)","v":753.26289586506391}]
[null,"Boroondara (C)",null,{"$f":"D55*(1+Control!$E$2)","v":683.17307692307622},{"$f":"E55*(1+Control!$E$2)","v":962.5},{"$f":"F55*(1+Control!$E$2)","v":1045.6730769230853},{"$f":"G55*(1+Control!$E$2)","v":1006.25},{"$f":"H55*(1+Control!$E$2)","v":1212.9807692307622},{"$f":"I55*(1+Control!$E$2)","v":1154.3269230769147},{"$f":"J55*(1+Control!$E$2)","v":816.82692307693287},{"$f":"K55*(1+Control!$E$2)","v":875.48076923076223},{"$f":"L55*(1+Control!$E$2)","v":-83.653846153847553},{"$f":"M55*(1+Control!$E$2)","v":940.22124614983113},{"$f":"N55*(1+Control!$E$2)","v":800.72445525687726},{"$f":"O55*(1+Control!$E$2)","v":807.93400081944128},{"$f":"P55*(1+Control!$E$2)","v":815.20845953265962},{"$f":"Q55*(1+Control!$E$2)","v":822.5484158602012},{"$f":"R55*(1+Control!$E$2)","v":829.95445952801674},{"$f":"S55*(1+Control!$E$2)","v":843.42744360064899},{"$f":"T55*(1+Control!$E$2)","v":851.07588949640558},{"$f":"U55*(1+Control!$E$2)","v":858.79369372887595},{"$f":"V55*(1+Control!$E$2)","v":866.58148525964862},{"$f":"W55*(1+Control!$E$2)","v":874.43989875402622},{"$f":"X55*(1+Control!$E$2)","v":868.15802650929982},{"$f":"Y55*(1+Control!$E$2)","v":875.90393774573386},{"$f":"Z55*(1+Control!$E$2)","v":883.71895983416834},{"$f":"AA55*(1+Control!$E$2)","v":891.60370939796849},{"$f":"AB55*(1+Control!$E$2)","v":899.55880856221484},{"$f":"AC55*(1+Control!$E$2)","v":907.58488500250678},{"$f":"AD55*(1+Control!$E$2)","v":915.68257199511208},{"$f":"AE55*(1+Control!$E$2)","v":923.85250846613417},{"$f":"AF55*(1+Control!$E$2)","v":932.0953390426439},{"$f":"AG55*(1+Control!$E$2)","v":940.41171410302923},{"$f":"AH55*(1+Control!$E$2)","v":948.80228982852714},{"$f":"AI55*(1+Control!$E$2)","v":957.26772825510125},{"$f":"AJ55*(1+Control!$E$2)","v":965.80869732541032},{"$f":"AK55*(1+Control!$E$2)","v":974.42587094179544},{"$f":"AL55*(1+Control!$E$2)","v":983.11992901912163},{"$f":"AM55*(1+Control!$E$2)","v":991.89155753885643},{"$f":"AN55*(1+Control!$E$2)","v":1000.7414486027665},{"$f":"AO55*(1+Control!$E$2)","v":1009.6703004877781},{"$f":"AP55*(1+Control!$E$2)","v":1018.6788177010567},{"$f":"AQ55*(1+Control!$E$2)","v":2064.7054086612115},{"$f":"AR55*(1+Control!$E$2)","v":1046.189501005174},{"$f":"AS55*(1+Control!$E$2)","v":1055.523851162452},{"$f":"AT55*(1+Control!$E$2)","v":1064.9414845994033},{"$f":"AU55*(1+Control!$E$2)","v":1074.4431443892609},{"$f":"AV55*(1+Control!$E$2)","v":1084.0295802349283},{"$f":"AW55*(1+Control!$E$2)","v":1093.7015485284792},{"$f":"AX55*(1+Control!$E$2)","v":1103.4598124105469},{"$f":"AY55*(1+Control!$E$2)","v":1113.3051418309515},{"$f":"AZ55*(1+Control!$E$2)","v":1123.2383136088174},{"$f":"BA55*(1+Control!$E$2)","v":1133.260111494601},{"$f":"BB55*(1+Control!$E$2)","v":1143.3713262312995},{"$f":"BC55*(1+Control!$E$2)","v":1153.5727556172606},{"$f":"BD55*(1+Control!$E$2)","v":1163.8652045688468},{"$f":"BE55*(1+Control!$E$2)","v":1174.2494851842275},{"$f":"BF55*(1+Control!$E$2)","v":1184.7264168071706},{"$f":"BG55*(1+Control!$E$2)","v":1195.2968260919806},{"$f":"BH55*(1+Control!$E$2)","v":1205.9615470683093},{"$f":"BI55*(1+Control!$E$2)","v":1216.7214212074759},{"$f":"BJ55*(1+Control!$E$2)","v":1227.5772974884785},{"$f":"BK55*(1+Control!$E$2)","v":1238.5300324651325},{"$f":"BL55*(1+Control!$E$2)","v":1249.5804903336284},{"$f":"BM55*(1+Control!$E$2)","v":1260.7295430007071},{"$f":"BN55*(1+Control!$E$2)","v":1271.9780701524905},{"$f":"BO55*(1+Control!$E$2)","v":1283.3269593238583},{"$f":"BP55*(1+Control!$E$2)","v":1294.7771059685147},{"$f":"BQ55*(1+Control!$E$2)","v":1306.3294135295109},{"$f":"BR55*(1+Control!$E$2)","v":1317.9847935107682},{"$f":"BS55*(1+Control!$E$2)","v":1329.7441655487819},{"$f":"BT55*(1+Control!$E$2)","v":1341.6084574852721},{"$f":"BU55*(1+Control!$E$2)","v":1353.5786054403798},{"$f":"BV55*(1+Control!$E$2)","v":1365.6555538865541},{"$f":"BW55*(1+Control!$E$2)","v":1377.8402557229856},{"$f":"BX55*(1+Control!$E$2)","v":1390.1336723510212},{"$f":"BY55*(1+Control!$E$2)","v":1402.5367737496163},{"$f":"BZ55*(1+Control!$E$2)","v":1415.0505385522774},{"$f":"CA55*(1+Control!$E$2)","v":1427.6759541241154},{"$f":"CB55*(1+Control!$E$2)","v":1440.4140166396246},{"$f":"CC55*(1+Control!$E$2)","v":1453.2657311615912},{"$f":"CD55*(1+Control!$E$2)","v":1466.2321117199463},{"$f":"CE55*(1+Control!$E$2)","v":1479.3141813922557},{"$f":"CF55*(1+Control!$E$2)","v":1492.5129723842474},{"$f":"CG55*(1+Control!$E$2)","v":1505.8295261109379},{"$f":"CH55*(1+Control!$E$2)","v":1519.2648932795055},{"$f":"CI55*(1+Control!$E$2)","v":1532.820133971436},{"$f":"CJ55*(1+Control!$E$2)","v":1546.4963177267055},{"$f":"CK55*(1+Control!$E$2)","v":1560.2945236279629},{"$f":"CL55*(1+Control!$E$2)","v":1574.2158403855865},{"$f":"CM55*(1+Control!$E$2)","v":1588.2613664238306},{"$f":"CN55*(1+Control!$E$2)","v":1602.4322099671554}]
[null,"Cardinia (S)",null,{"$f":"D56*(1+Control!$E$2)","v":2049.5535714285734},{"$f":"E56*(1+Control!$E$2)","v":1861.1607142857156},{"$f":"F56*(1+Control!$E$2)","v":1553.125},{"$f":"G56*(1+Control!$E$2)","v":1887.4999999999955},{"$f":"H56*(1+Control!$E$2)","v":2354.9107142857156},{"$f":"I56*(1+Control!$E$2)","v":2156.25},{"$f":"J56*(1+Control!$E$2)","v":2104.4642857142844},{"$f":"K56*(1+Control!$E$2)","v":2259.8214285714312},{"$f":"L56*(1+Control!$E$2)","v":1791.9642857142844},{"$f":"M56*(1+Control!$E$2)","v":2432.5580073663059},{"$f":"N56*(1+Control!$E$2)","v":1809.9779280328312},{"$f":"O56*(1+Control!$E$2)","v":1870.304864869122},{"$f":"P56*(1+Control!$E$2)","v":1932.6425109254978},{"$f":"Q56*(1+Control!$E$2)","v":1997.05788355408},{"$f":"R56*(1+Control!$E$2)","v":2063.620233809097},{"$f":"S56*(1+Control!$E$2)","v":1581.6403761915717},{"$f":"T56*(1+Control!$E$2)","v":1620.7410804214123},{"$f":"U56*(1+Control!$E$2)","v":1660.8084172020608},{"$f":"V56*(1+Control!$E$2)","v":1701.8662832511109},{"$f":"W56*(1+Control!$E$2)","v":1743.9391660516685},{"$f":"X56*(1+Control!$E$2)","v":1243.1891864409772},{"$f":"Y56*(1+Control!$E$2)","v":1264.5694992831523},{"$f":"Z56*(1+Control!$E$2)","v":1286.3175098034026},{"$f":"AA56*(1+Control!$E$2)","v":1308.4395416501411},{"$f":"AB56*(1+Control!$E$2)","v":1330.942027225683},{"$f":"AC56*(1+Control!$E$2)","v":1353.8315095565122},{"$f":"AD56*(1+Control!$E$2)","v":1377.1146441957171},{"$f":"AE56*(1+Control!$E$2)","v":1400.7982011583863},{"$f":"AF56*(1+Control!$E$2)","v":1424.8890668900094},{"$f":"AG56*(1+Control!$E$2)","v":1449.3942462688028},{"$f":"AH56*(1+Control!$E$2)","v":1474.3208646426319},{"$f":"AI56*(1+Control!$E$2)","v":1499.6761699007584},{"$f":"AJ56*(1+Control!$E$2)","v":1525.4675345813484},{"$f":"AK56*(1+Control!$E$2)","v":1551.7024580150974},{"$f":"AL56*(1+Control!$E$2)","v":1578.3885685059067},{"$f":"AM56*(1+Control!$E$2)","v":1605.5336255489237},{"$f":"AN56*(1+Control!$E$2)","v":1633.1455220866883},{"$f":"AO56*(1+Control!$E$2)","v":1661.2322868042793},{"$f":"AP56*(1+Control!$E$2)","v":1689.8020864637328},{"$f":"AQ56*(1+Control!$E$2)","v":3467.2873906085442},{"$f":"AR56*(1+Control!$E$2)","v":1778.4934840221285},{"$f":"AS56*(1+Control!$E$2)","v":1809.0799365837483},{"$f":"AT56*(1+Control!$E$2)","v":1840.1924136085836},{"$f":"AU56*(1+Control!$E$2)","v":1871.8399616422175},{"$f":"AV56*(1+Control!$E$2)","v":1904.031782812217},{"$f":"AW56*(1+Control!$E$2)","v":1936.7772375040659},{"$f":"AX56*(1+Control!$E$2)","v":1970.0858470826461},{"$f":"AY56*(1+Control!$E$2)","v":2003.9672966608487},{"$f":"AZ56*(1+Control!$E$2)","v":2038.4314379158241},{"$f":"BA56*(1+Control!$E$2)","v":2073.4882919532538},{"$f":"BB56*(1+Control!$E$2)","v":2109.1480522214806},{"$f":"BC56*(1+Control!$E$2)","v":2145.4210874753517},{"$f":"BD56*(1+Control!$E$2)","v":2182.317944790957},{"$f":"BE56*(1+Control!$E$2)","v":2219.8493526327002},{"$f":"BF56*(1+Control!$E$2)","v":2258.0262239725198},{"$f":"BG56*(1+Control!$E$2)","v":2296.8596594632436},{"$f":"BH56*(1+Control!$E$2)","v":2336.3609506661305},{"$f":"BI56*(1+Control!$E$2)","v":2376.541583334365},{"$f":"BJ56*(1+Control!$E$2)","v":2417.4132407524849},{"$f":"BK56*(1+Control!$E$2)","v":2458.9878071337625},{"$f":"BL56*(1+Control!$E$2)","v":2501.2773710754664},{"$f":"BM56*(1+Control!$E$2)","v":2544.2942290741485},{"$f":"BN56*(1+Control!$E$2)","v":2588.0508891010504},{"$f":"BO56*(1+Control!$E$2)","v":2632.5600742387178},{"$f":"BP56*(1+Control!$E$2)","v":2677.8347263809519},{"$f":"BQ56*(1+Control!$E$2)","v":2723.8880099954622},{"$f":"BR56*(1+Control!$E$2)","v":2770.7333159520931},{"$f":"BS56*(1+Control!$E$2)","v":2818.3842654161344},{"$f":"BT56*(1+Control!$E$2)","v":2866.8547138090435},{"$f":"BU56*(1+Control!$E$2)","v":2916.1587548374882},{"$f":"BV56*(1+Control!$E$2)","v":2966.3107245906576},{"$f":"BW56*(1+Control!$E$2)","v":3017.3252057095306},{"$f":"BX56*(1+Control!$E$2)","v":3069.2170316265765},{"$f":"BY56*(1+Control!$E$2)","v":3122.0012908787976},{"$f":"BZ56*(1+Control!$E$2)","v":3175.6933314956041},{"$f":"CA56*(1+Control!$E$2)","v":3230.3087654606861},{"$f":"CB56*(1+Control!$E$2)","v":3285.8634732522842},{"$f":"CC56*(1+Control!$E$2)","v":3342.3736084602933},{"$f":"CD56*(1+Control!$E$2)","v":3399.8556024831123},{"$f":"CE56*(1+Control!$E$2)","v":3458.3261693060922},{"$f":"CF56*(1+Control!$E$2)","v":3517.8023103604937},{"$f":"CG56*(1+Control!$E$2)","v":3578.3013194676823},{"$f":"CH56*(1+Control!$E$2)","v":3639.840787867397},{"$f":"CI56*(1+Control!$E$2)","v":3702.4386093326393},{"$f":"CJ56*(1+Control!$E$2)","v":3766.1129853727834},{"$f":"CK56*(1+Control!$E$2)","v":3830.882430526035},{"$f":"CL56*(1+Control!$E$2)","v":3896.7657777426939},{"$f":"CM56*(1+Control!$E$2)","v":3963.7821838613672},{"$f":"CN56*(1+Control!$E$2)","v":4031.9511351791516}]
[null,"Casey (C)",null,{"$f":"D57*(1+Control!$E$2)","v":3208.870967741932},{"$f":"E57*(1+Control!$E$2)","v":3541.5322580645261},{"$f":"F57*(1+Control!$E$2)","v":3997.580645161288},{"$f":"G57*(1+Control!$E$2)","v":4673.790322580644},{"$f":"H57*(1+Control!$E$2)","v":5347.1774193548299},{"$f":"I57*(1+Control!$E$2)","v":5637.9032258064581},{"$f":"J57*(1+Control!$E$2)","v":5512.9032258064399},{"$f":"K57*(1+Control!$E$2)","v":5451.209677419356},{"$f":"L57*(1+Control!$E$2)","v":4289.5161290322721},{"$f":"M57*(1+Control!$E$2)","v":5636.2216212065323},{"$f":"N57*(1+Control!$E$2)","v":4203.8244116849091},{"$f":"O57*(1+Control!$E$2)","v":4319.5916410044993},{"$f":"P57*(1+Control!$E$2)","v":4438.5469319727235},{"$f":"Q57*(1+Control!$E$2)","v":4560.7780791850746},{"$f":"R57*(1+Control!$E$2)","v":4686.3752949729314},{"$f":"S57*(1+Control!$E$2)","v":3784.6411283038105},{"$f":"T57*(1+Control!$E$2)","v":3866.5545922291494},{"$f":"U57*(1+Control!$E$2)","v":3950.2409628436726},{"$f":"V57*(1+Control!$E$2)","v":4035.7386123265678},{"$f":"W57*(1+Control!$E$2)","v":4123.0867433713865},{"$f":"X57*(1+Control!$E$2)","v":3203.1417373305885},{"$f":"Y57*(1+Control!$E$2)","v":3255.8599874429638},{"$f":"Z57*(1+Control!$E$2)","v":3309.4458900423706},{"$f":"AA57*(1+Control!$E$2)","v":3363.913725209095},{"$f":"AB57*(1+Control!$E$2)","v":3419.278008048932},{"$f":"AC57*(1+Control!$E$2)","v":3475.5534925619941},{"$f":"AD57*(1+Control!$E$2)","v":3532.7551755735476},{"$f":"AE57*(1+Control!$E$2)","v":3590.8983007312781},{"$f":"AF57*(1+Control!$E$2)","v":3649.9983625673849},{"$f":"AG57*(1+Control!$E$2)","v":3710.0711106275412},{"$f":"AH57*(1+Control!$E$2)","v":3771.1325536679942},{"$f":"AI57*(1+Control!$E$2)","v":3833.1989639221138},{"$f":"AJ57*(1+Control!$E$2)","v":3896.2868814361354},{"$f":"AK57*(1+Control!$E$2)","v":3960.4131184774451},{"$f":"AL57*(1+Control!$E$2)","v":4025.5947640147133},{"$f":"AM57*(1+Control!$E$2)","v":4091.8491882716262},{"$f":"AN57*(1+Control!$E$2)","v":4159.1940473565774},{"$f":"AO57*(1+Control!$E$2)","v":4227.6472879667926},{"$f":"AP57*(1+Control!$E$2)","v":4297.2271521721996},{"$f":"AQ57*(1+Control!$E$2)","v":8807.7934080297564},{"$f":"AR57*(1+Control!$E$2)","v":4512.9134402837735},{"$f":"AS57*(1+Control!$E$2)","v":4587.1882988413927},{"$f":"AT57*(1+Control!$E$2)","v":4662.685594896866},{"$f":"AU57*(1+Control!$E$2)","v":4739.4254476865171},{"$f":"AV57*(1+Control!$E$2)","v":4817.4283075750282},{"$f":"AW57*(1+Control!$E$2)","v":4896.7149615051312},{"$f":"AX57*(1+Control!$E$2)","v":4977.3065385375594},{"$f":"AY57*(1+Control!$E$2)","v":5059.224515480746},{"$f":"AZ57*(1+Control!$E$2)","v":5142.4907226152209},{"$f":"BA57*(1+Control!$E$2)","v":5227.1273495105561},{"$f":"BB57*(1+Control!$E$2)","v":5313.1569509387919},{"$f":"BC57*(1+Control!$E$2)","v":5400.6024528849957},{"$f":"BD57*(1+Control!$E$2)","v":5489.4871586569934},{"$f":"BE57*(1+Control!$E$2)","v":5579.8347550951439},{"$f":"BF57*(1+Control!$E$2)","v":5671.6693188851059},{"$f":"BG57*(1+Control!$E$2)","v":5765.0153229731222},{"$f":"BH57*(1+Control!$E$2)","v":5859.8976430890616},{"$f":"BI57*(1+Control!$E$2)","v":5956.341564374452},{"$f":"BJ57*(1+Control!$E$2)","v":6054.3727881213272},{"$f":"BK57*(1+Control!$E$2)","v":6154.0174386212311},{"$f":"BL57*(1+Control!$E$2)","v":6255.3020701264904},{"$f":"BM57*(1+Control!$E$2)","v":6358.2536739279021},{"$f":"BN57*(1+Control!$E$2)","v":6462.8996855462901},{"$f":"BO57*(1+Control!$E$2)","v":6569.2679920445516},{"$f":"BP57*(1+Control!$E$2)","v":6677.3869394590292},{"$f":"BQ57*(1+Control!$E$2)","v":6787.285340353701},{"$f":"BR57*(1+Control!$E$2)","v":6898.9924814977712},{"$f":"BS57*(1+Control!$E$2)","v":7012.5381316712446},{"$f":"BT57*(1+Control!$E$2)","v":7127.9525495971029},{"$f":"BU57*(1+Control!$E$2)","v":7245.2664920052484},{"$f":"BV57*(1+Control!$E$2)","v":7364.5112218293798},{"$f":"BW57*(1+Control!$E$2)","v":7485.7185165373812},{"$f":"BX57*(1+Control!$E$2)","v":7608.9206765998097},{"$f":"BY57*(1+Control!$E$2)","v":7734.1505340985168},{"$f":"BZ57*(1+Control!$E$2)","v":7861.4414614749694},{"$f":"CA57*(1+Control!$E$2)","v":7990.82738042438},{"$f":"CB57*(1+Control!$E$2)","v":8122.3427709349926},{"$f":"CC57*(1+Control!$E$2)","v":8256.0226804771082},{"$f":"CD57*(1+Control!$E$2)","v":8391.9027333419217},{"$f":"CE57*(1+Control!$E$2)","v":8530.0191401370103},{"$f":"CF57*(1+Control!$E$2)","v":8670.4087074333074},{"$f":"CG57*(1+Control!$E$2)","v":8813.1088475763681},{"$f":"CH57*(1+Control!$E$2)","v":8958.1575886541395},{"$f":"CI57*(1+Control!$E$2)","v":9105.5935846330976},{"$f":"CJ57*(1+Control!$E$2)","v":9255.4561256569286},{"$f":"CK57*(1+Control!$E$2)","v":9407.7851485190331},{"$f":"CL57*(1+Control!$E$2)","v":9562.6212473037594},{"$f":"CM57*(1+Control!$E$2)","v":9720.0056842052436},{"$f":"CN57*(1+Control!$E$2)","v":9879.9804005224723}]
[null,"Frankston (C)",null,{"$f":"D58*(1+Control!$E$2)","v":921.99999999999818},{"$f":"E58*(1+Control!$E$2)","v":1078.5000000000036},{"$f":"F58*(1+Control!$E$2)","v":915},{"$f":"G58*(1+Control!$E$2)","v":804.49999999999818},{"$f":"H58*(1+Control!$E$2)","v":856.00000000000364},{"$f":"I58*(1+Control!$E$2)","v":607.99999999999272},{"$f":"J58*(1+Control!$E$2)","v":564.50000000000728},{"$f":"K58*(1+Control!$E$2)","v":398.99999999999636},{"$f":"L58*(1+Control!$E$2)","v":346.49999999999636},{"$f":"M58*(1+Control!$E$2)","v":638.57813860214264},{"$f":"N58*(1+Control!$E$2)","v":590.67064848050904},{"$f":"O58*(1+Control!$E$2)","v":595.49575566785279},{"$f":"P58*(1+Control!$E$2)","v":600.3602784913528},{"$f":"Q58*(1+Control!$E$2)","v":605.26453893192411},{"$f":"R58*(1+Control!$E$2)","v":610.20886160064947},{"$f":"S58*(1+Control!$E$2)","v":642.24644400090256},{"$f":"T58*(1+Control!$E$2)","v":647.72357592186381},{"$f":"U58*(1+Control!$E$2)","v":653.24741728645677},{"$f":"V58*(1+Control!$E$2)","v":658.81836643675342},{"$f":"W58*(1+Control!$E$2)","v":664.4368251119522},{"$f":"X58*(1+Control!$E$2)","v":712.38947381454636},{"$f":"Y58*(1+Control!$E$2)","v":718.84816901376325},{"$f":"Z58*(1+Control!$E$2)","v":725.36542030514283},{"$f":"AA58*(1+Control!$E$2)","v":731.94175857235678},{"$f":"AB58*(1+Control!$E$2)","v":738.57771951222276},{"$f":"AC58*(1+Control!$E$2)","v":745.27384367827835},{"$f":"AD58*(1+Control!$E$2)","v":752.03067652491882},{"$f":"AE58*(1+Control!$E$2)","v":758.84876845168037},{"$f":"AF58*(1+Control!$E$2)","v":765.72867484823291},{"$f":"AG58*(1+Control!$E$2)","v":772.67095613950005},{"$f":"AH58*(1+Control!$E$2)","v":779.67617783129754},{"$f":"AI58*(1+Control!$E$2)","v":786.74491055659018},{"$f":"AJ58*(1+Control!$E$2)","v":793.87773012174875},{"$f":"AK58*(1+Control!$E$2)","v":801.07521755349808},{"$f":"AL58*(1+Control!$E$2)","v":808.33795914639268},{"$f":"AM58*(1+Control!$E$2)","v":815.66654651047429},{"$f":"AN58*(1+Control!$E$2)","v":823.06157661934776},{"$f":"AO58*(1+Control!$E$2)","v":830.52365185903909},{"$f":"AP58*(1+Control!$E$2)","v":838.05338007690807},{"$f":"AQ58*(1+Control!$E$2)","v":1698.9696290723077},{"$f":"AR58*(1+Control!$E$2)","v":861.05464403688529},{"$f":"AS58*(1+Control!$E$2)","v":868.86117361109427},{"$f":"AT58*(1+Control!$E$2)","v":876.73847906979063},{"$f":"AU58*(1+Control!$E$2)","v":884.68720208418745},{"$f":"AV58*(1+Control!$E$2)","v":892.70799014317163},{"$f":"AW58*(1+Control!$E$2)","v":900.8014966058181},{"$f":"AX58*(1+Control!$E$2)","v":908.96838075475898},{"$f":"AY58*(1+Control!$E$2)","v":917.20930784986194},{"$f":"AZ58*(1+Control!$E$2)","v":925.52494918236334},{"$f":"BA58*(1+Control!$E$2)","v":933.91598212958343},{"$f":"BB58*(1+Control!$E$2)","v":942.38309021016903},{"$f":"BC58*(1+Control!$E$2)","v":950.92696313962733},{"$f":"BD58*(1+Control!$E$2)","v":959.54829688669633},{"$f":"BE58*(1+Control!$E$2)","v":968.2477937297881},{"$f":"BF58*(1+Control!$E$2)","v":977.0261623145052},{"$f":"BG58*(1+Control!$E$2)","v":985.88411771112078},{"$f":"BH58*(1+Control!$E$2)","v":994.82238147285898},{"$f":"BI58*(1+Control!$E$2)","v":1003.8416816947756},{"$f":"BJ58*(1+Control!$E$2)","v":1012.9427530731118},{"$f":"BK58*(1+Control!$E$2)","v":1022.1263369648113},{"$f":"BL58*(1+Control!$E$2)","v":1031.3931814483658},{"$f":"BM58*(1+Control!$E$2)","v":1040.7440413843688},{"$f":"BN58*(1+Control!$E$2)","v":1050.1796784772523},{"$f":"BO58*(1+Control!$E$2)","v":1059.7008613372236},{"$f":"BP58*(1+Control!$E$2)","v":1069.3083655428381},{"$f":"BQ58*(1+Control!$E$2)","v":1079.0029737043369},{"$f":"BR58*(1+Control!$E$2)","v":1088.7854755272565},{"$f":"BS58*(1+Control!$E$2)","v":1098.6566678767304},{"$f":"BT58*(1+Control!$E$2)","v":1108.6173548425359},{"$f":"BU58*(1+Control!$E$2)","v":1118.6683478045052},{"$f":"BV58*(1+Control!$E$2)","v":1128.8104654986273},{"$f":"BW58*(1+Control!$E$2)","v":1139.0445340837505},{"$f":"BX58*(1+Control!$E$2)","v":1149.3713872089029},{"$f":"BY58*(1+Control!$E$2)","v":1159.7918660811411},{"$f":"BZ58*(1+Control!$E$2)","v":1170.3068195341075},{"$f":"CA58*(1+Control!$E$2)","v":1180.9171040972251},{"$f":"CB58*(1+Control!$E$2)","v":1191.6235840653462},{"$f":"CC58*(1+Control!$E$2)","v":1202.4271315693113},{"$f":"CD58*(1+Control!$E$2)","v":1213.3286266468349},{"$f":"CE58*(1+Control!$E$2)","v":1224.3289573143375},{"$f":"CF58*(1+Control!$E$2)","v":1235.4290196390866},{"$f":"CG58*(1+Control!$E$2)","v":1246.6297178125387},{"$f":"CH58*(1+Control!$E$2)","v":1257.9319642234987},{"$f":"CI58*(1+Control!$E$2)","v":1269.3366795329166},{"$f":"CJ58*(1+Control!$E$2)","v":1280.8447927485395},{"$f":"CK58*(1+Control!$E$2)","v":1292.4572413008536},{"$f":"CL58*(1+Control!$E$2)","v":1304.1749711192097},{"$f":"CM58*(1+Control!$E$2)","v":1315.9989367089474},{"$f":"CN58*(1+Control!$E$2)","v":1327.9301012294127}]
[null,"Glen Eira (C)",null,{"$f":"D59*(1+Control!$E$2)","v":981.99999999999818},{"$f":"E59*(1+Control!$E$2)","v":1071.9999999999982},{"$f":"F59*(1+Control!$E$2)","v":1216.9999999999982},{"$f":"G59*(1+Control!$E$2)","v":1115},{"$f":"H59*(1+Control!$E$2)","v":1329.4999999999982},{"$f":"I59*(1+Control!$E$2)","v":1437.0000000000073},{"$f":"J59*(1+Control!$E$2)","v":1231.4999999999964},{"$f":"K59*(1+Control!$E$2)","v":1307.5},{"$f":"L59*(1+Control!$E$2)","v":840.50000000000182},{"$f":"M59*(1+Control!$E$2)","v":1067.1780255750946},{"$f":"N59*(1+Control!$E$2)","v":972.99780814074438},{"$f":"O59*(1+Control!$E$2)","v":984.80601060392473},{"$f":"P59*(1+Control!$E$2)","v":996.75751621149175},{"$f":"Q59*(1+Control!$E$2)","v":1008.8540640758765},{"$f":"R59*(1+Control!$E$2)","v":1021.097414415126},{"$f":"S59*(1+Control!$E$2)","v":994.07077603436846},{"$f":"T59*(1+Control!$E$2)","v":1005.6745841039992},{"$f":"U59*(1+Control!$E$2)","v":1017.4138436575231},{"$f":"V59*(1+Control!$E$2)","v":1029.2901358228664},{"$f":"W59*(1+Control!$E$2)","v":1041.3050601844407},{"$f":"X59*(1+Control!$E$2)","v":926.66895248719811},{"$f":"Y59*(1+Control!$E$2)","v":936.18407333335199},{"$f":"Z59*(1+Control!$E$2)","v":945.79689630329085},{"$f":"AA59*(1+Control!$E$2)","v":955.50842461128923},{"$f":"AB59*(1+Control!$E$2)","v":965.31967177277693},{"$f":"AC59*(1+Control!$E$2)","v":975.2316617098586},{"$f":"AD59*(1+Control!$E$2)","v":985.24542885859773},{"$f":"AE59*(1+Control!$E$2)","v":995.36201827657351},{"$f":"AF59*(1+Control!$E$2)","v":1005.5824857522202},{"$f":"AG59*(1+Control!$E$2)","v":1015.9078979147853},{"$f":"AH59*(1+Control!$E$2)","v":1026.3393323459059},{"$f":"AI59*(1+Control!$E$2)","v":1036.8778776918225},{"$f":"AJ59*(1+Control!$E$2)","v":1047.5246337770841},{"$f":"AK59*(1+Control!$E$2)","v":1058.2807117194352},{"$f":"AL59*(1+Control!$E$2)","v":1069.147234045613},{"$f":"AM59*(1+Control!$E$2)","v":1080.1253348085083},{"$f":"AN59*(1+Control!$E$2)","v":1091.2161597057093},{"$f":"AO59*(1+Control!$E$2)","v":1102.4208661987723},{"$f":"AP59*(1+Control!$E$2)","v":1113.7406236343122},{"$f":"AQ59*(1+Control!$E$2)","v":2261.9066422428659},{"$f":"AR59*(1+Control!$E$2)","v":1148.4020759065606},{"$f":"AS59*(1+Control!$E$2)","v":1160.1939725735247},{"$f":"AT59*(1+Control!$E$2)","v":1172.1069495049051},{"$f":"AU59*(1+Control!$E$2)","v":1184.1422499638611},{"$f":"AV59*(1+Control!$E$2)","v":1196.3011299794016},{"$f":"AW59*(1+Control!$E$2)","v":1208.5848584776795},{"$f":"AX59*(1+Control!$E$2)","v":1220.9947174142508},{"$f":"AY59*(1+Control!$E$2)","v":1233.5320019078063},{"$f":"AZ59*(1+Control!$E$2)","v":1246.198020375632},{"$f":"BA59*(1+Control!$E$2)","v":1258.9940946697789},{"$f":"BB59*(1+Control!$E$2)","v":1271.9215602152872},{"$f":"BC59*(1+Control!$E$2)","v":1284.981766149449},{"$f":"BD59*(1+Control!$E$2)","v":1298.1760754625975},{"$f":"BE59*(1+Control!$E$2)","v":1311.5058651403888},{"$f":"BF59*(1+Control!$E$2)","v":1324.9725263075379},{"$f":"BG59*(1+Control!$E$2)","v":1338.5774643728655},{"$f":"BH59*(1+Control!$E$2)","v":1352.3220991761264},{"$f":"BI59*(1+Control!$E$2)","v":1366.2078651360389},{"$f":"BJ59*(1+Control!$E$2)","v":1380.236211400188},{"$f":"BK59*(1+Control!$E$2)","v":1394.4086019960196},{"$f":"BL59*(1+Control!$E$2)","v":1408.7265159838716},{"$f":"BM59*(1+Control!$E$2)","v":1423.1914476110433},{"$f":"BN59*(1+Control!$E$2)","v":1437.8049064680818},{"$f":"BO59*(1+Control!$E$2)","v":1452.5684176459436},{"$f":"BP59*(1+Control!$E$2)","v":1467.4835218955013},{"$f":"BQ59*(1+Control!$E$2)","v":1482.5517757882517},{"$f":"BR59*(1+Control!$E$2)","v":1497.7747518784963},{"$f":"BS59*(1+Control!$E$2)","v":1513.154038867815},{"$f":"BT59*(1+Control!$E$2)","v":1528.6912417708481},{"$f":"BU59*(1+Control!$E$2)","v":1544.3879820822804},{"$f":"BV59*(1+Control!$E$2)","v":1560.2458979468793},{"$f":"BW59*(1+Control!$E$2)","v":1576.2666443297348},{"$f":"BX59*(1+Control!$E$2)","v":1592.4518931894272},{"$f":"BY59*(1+Control!$E$2)","v":1608.803333652304},{"$f":"BZ59*(1+Control!$E$2)","v":1625.3226721887404},{"$f":"CA59*(1+Control!$E$2)","v":1642.0116327915457},{"$f":"CB59*(1+Control!$E$2)","v":1658.871957155352},{"$f":"CC59*(1+Control!$E$2)","v":1675.9054048588041},{"$f":"CD59*(1+Control!$E$2)","v":1693.1137535480957},{"$f":"CE59*(1+Control!$E$2)","v":1710.4987991224334},{"$f":"CF59*(1+Control!$E$2)","v":1728.0623559213927},{"$f":"CG59*(1+Control!$E$2)","v":1745.8062569144022},{"$f":"CH59*(1+Control!$E$2)","v":1763.7323538921555},{"$f":"CI59*(1+Control!$E$2)","v":1781.8425176593519},{"$f":"CJ59*(1+Control!$E$2)","v":1800.1386382306009},{"$f":"CK59*(1+Control!$E$2)","v":1818.6226250272375},{"$f":"CL59*(1+Control!$E$2)","v":1837.2964070765738},{"$f":"CM59*(1+Control!$E$2)","v":1856.1619332136252},{"$f":"CN59*(1+Control!$E$2)","v":1875.2211722840366}]
[null,"Greater Dandenong (C)",null,{"$f":"D60*(1+Control!$E$2)","v":1271.1206896551721},{"$f":"E60*(1+Control!$E$2)","v":1459.4827586206884},{"$f":"F60*(1+Control!$E$2)","v":1565.9482758620743},{"$f":"G60*(1+Control!$E$2)","v":1692.2413793103442},{"$f":"H60*(1+Control!$E$2)","v":1793.5344827586232},{"$f":"I60*(1+Control!$E$2)","v":1420.6896551724094},{"$f":"J60*(1+Control!$E$2)","v":1130.1724137931069},{"$f":"K60*(1+Control!$E$2)","v":914.2241379310326},{"$f":"L60*(1+Control!$E$2)","v":43.534482758623199},{"$f":"M60*(1+Control!$E$2)","v":1269.093635923391},{"$f":"N60*(1+Control!$E$2)","v":1179.8581435661799},{"$f":"O60*(1+Control!$E$2)","v":1198.7108734801677},{"$f":"P60*(1+Control!$E$2)","v":1217.8648475963655},{"$f":"Q60*(1+Control!$E$2)","v":1237.3248794388655},{"$f":"R60*(1+Control!$E$2)","v":1257.0958594462081},{"$f":"S60*(1+Control!$E$2)","v":1174.5817448543767},{"$f":"T60*(1+Control!$E$2)","v":1191.8424247586336},{"$f":"U60*(1+Control!$E$2)","v":1209.3567533102032},{"$f":"V60*(1+Control!$E$2)","v":1227.1284579194253},{"$f":"W60*(1+Control!$E$2)","v":1245.1613207716036},{"$f":"X60*(1+Control!$E$2)","v":1240.2717201356427},{"$f":"Y60*(1+Control!$E$2)","v":1258.163235239881},{"$f":"Z60*(1+Control!$E$2)","v":1276.3128440403852},{"$f":"AA60*(1+Control!$E$2)","v":1294.7242696627836},{"$f":"AB60*(1+Control!$E$2)","v":1313.4012889404039},{"$f":"AC60*(1+Control!$E$2)","v":1332.3477331892173},{"$f":"AD60*(1+Control!$E$2)","v":1351.5674889938055},{"$f":"AE60*(1+Control!$E$2)","v":1371.0644990046603},{"$f":"AF60*(1+Control!$E$2)","v":1390.8427627468154},{"$f":"AG60*(1+Control!$E$2)","v":1410.9063374403559},{"$f":"AH60*(1+Control!$E$2)","v":1431.2593388327696},{"$f":"AI60*(1+Control!$E$2)","v":1451.905942043195},{"$f":"AJ60*(1+Control!$E$2)","v":1472.8503824188192},{"$f":"AK60*(1+Control!$E$2)","v":1494.0969564036823},{"$f":"AL60*(1+Control!$E$2)","v":1515.6500224203228},{"$f":"AM60*(1+Control!$E$2)","v":1537.5140017633566},{"$f":"AN60*(1+Control!$E$2)","v":1559.6933795068253},{"$f":"AO60*(1+Control!$E$2)","v":1582.1927054241314},{"$f":"AP60*(1+Control!$E$2)","v":1605.0165949213078},{"$f":"AQ60*(1+Control!$E$2)","v":3279.826590120847},{"$f":"AR60*(1+Control!$E$2)","v":1675.4828034205093},{"$f":"AS60*(1+Control!$E$2)","v":1699.652447376393},{"$f":"AT60*(1+Control!$E$2)","v":1724.1707500518714},{"$f":"AU60*(1+Control!$E$2)","v":1749.0427410163829},{"$f":"AV60*(1+Control!$E$2)","v":1774.2735223933232},{"$f":"AW60*(1+Control!$E$2)","v":1799.8682699067103},{"$f":"AX60*(1+Control!$E$2)","v":1825.8322339427832},{"$f":"AY60*(1+Control!$E$2)","v":1852.1707406272617},{"$f":"AZ60*(1+Control!$E$2)","v":1878.8891929175406},{"$f":"BA60*(1+Control!$E$2)","v":1905.9930717115458},{"$f":"BB60*(1+Control!$E$2)","v":1933.4879369716327},{"$f":"BC60*(1+Control!$E$2)","v":1961.3794288652753},{"$f":"BD60*(1+Control!$E$2)","v":1989.6732689221608},{"$f":"BE60*(1+Control!$E$2)","v":2018.3752612076933},{"$f":"BF60*(1+Control!$E$2)","v":2047.4912935137945},{"$f":"BG60*(1+Control!$E$2)","v":2077.0273385665496},{"$f":"BH60*(1+Control!$E$2)","v":2106.9894552515689},{"$f":"BI60*(1+Control!$E$2)","v":2137.3837898565944},{"$f":"BJ60*(1+Control!$E$2)","v":2168.2165773328052},{"$f":"BK60*(1+Control!$E$2)","v":2199.4941425732759},{"$f":"BL60*(1+Control!$E$2)","v":2231.222901710953},{"$f":"BM60*(1+Control!$E$2)","v":2263.4093634343662},{"$f":"BN60*(1+Control!$E$2)","v":2296.0601303230942},{"$f":"BO60*(1+Control!$E$2)","v":2329.1819002021111},{"$f":"BP60*(1+Control!$E$2)","v":2362.7814675157606},{"$f":"BQ60*(1+Control!$E$2)","v":2396.8657247213559},{"$f":"BR60*(1+Control!$E$2)","v":2431.4416637034083},{"$f":"BS60*(1+Control!$E$2)","v":2466.5163772075539},{"$f":"BT60*(1+Control!$E$2)","v":2502.0970602958914},{"$f":"BU60*(1+Control!$E$2)","v":2538.1910118225642},{"$f":"BV60*(1+Control!$E$2)","v":2574.8056359311522},{"$f":"BW60*(1+Control!$E$2)","v":2611.9484435738195},{"$f":"BX60*(1+Control!$E$2)","v":2649.6270540515252},{"$f":"BY60*(1+Control!$E$2)","v":2687.8491965775902},{"$f":"BZ60*(1+Control!$E$2)","v":2726.6227118626557},{"$f":"CA60*(1+Control!$E$2)","v":2765.955553723652},{"$f":"CB60*(1+Control!$E$2)","v":2805.8557907148861},{"$f":"CC60*(1+Control!$E$2)","v":2846.3316077836498},{"$f":"CD60*(1+Control!$E$2)","v":2887.3913079488557},{"$f":"CE60*(1+Control!$E$2)","v":2929.0433140046298},{"$f":"CF60*(1+Control!$E$2)","v":2971.2961702477696},{"$f":"CG60*(1+Control!$E$2)","v":3014.1585442307769},{"$f":"CH60*(1+Control!$E$2)","v":3057.6392285397378},{"$f":"CI60*(1+Control!$E$2)","v":3101.7471425979238},{"$f":"CJ60*(1+Control!$E$2)","v":3146.4913344957313},{"$f":"CK60*(1+Control!$E$2)","v":3191.8809828464873},{"$f":"CL60*(1+Control!$E$2)","v":3237.9253986694312},{"$f":"CM60*(1+Control!$E$2)","v":3284.6340272997622},{"$f":"CN60*(1+Control!$E$2)","v":3332.0164503261549}]
[null,"Kingston ©",null,{"$f":"D61*(1+Control!$E$2)","v":1065.5000000000018},{"$f":"E61*(1+Control!$E$2)","v":950.50000000000182},{"$f":"F61*(1+Control!$E$2)","v":936.99999999999818},{"$f":"G61*(1+Control!$E$2)","v":1016.9999999999982},{"$f":"H61*(1+Control!$E$2)","v":1348.5000000000036},{"$f":"I61*(1+Control!$E$2)","v":1055},{"$f":"J61*(1+Control!$E$2)","v":1200.5000000000018},{"$f":"K61*(1+Control!$E$2)","v":1176.0000000000036},{"$f":"L61*(1+Control!$E$2)","v":744.49999999998909},{"$f":"M61*(1+Control!$E$2)","v":1020.199673238094},{"$f":"N61*(1+Control!$E$2)","v":1015.0013757285888},{"$f":"O61*(1+Control!$E$2)","v":1027.1694157809907},{"$f":"P61*(1+Control!$E$2)","v":1039.4833287379151},{"$f":"Q61*(1+Control!$E$2)","v":1051.9448633528918},{"$f":"R61*(1+Control!$E$2)","v":1064.5557893440673},{"$f":"S61*(1+Control!$E$2)","v":1111.4476205581195},{"$f":"T61*(1+Control!$E$2)","v":1125.1939936074996},{"$f":"U61*(1+Control!$E$2)","v":1139.1103816611758},{"$f":"V61*(1+Control!$E$2)","v":1153.198887463077},{"$f":"W61*(1+Control!$E$2)","v":1167.4616397637692},{"$f":"X61*(1+Control!$E$2)","v":1029.2820197793844},{"$f":"Y61*(1+Control!$E$2)","v":1040.3683260814978},{"$f":"Z61*(1+Control!$E$2)","v":1051.5740420158727},{"$f":"AA61*(1+Control!$E$2)","v":1062.9004537330911},{"$f":"AB61*(1+Control!$E$2)","v":1074.3488612368856},{"$f":"AC61*(1+Control!$E$2)","v":1085.9205785331505},{"$f":"AD61*(1+Control!$E$2)","v":1097.6169337808642},{"$f":"AE61*(1+Control!$E$2)","v":1109.4392694444286},{"$f":"AF61*(1+Control!$E$2)","v":1121.3889424478657},{"$f":"AG61*(1+Control!$E$2)","v":1133.4673243304678},{"$f":"AH61*(1+Control!$E$2)","v":1145.6758014043226},{"$f":"AI61*(1+Control!$E$2)","v":1158.0157749132559},{"$f":"AJ61*(1+Control!$E$2)","v":1170.4886611938855},{"$f":"AK61*(1+Control!$E$2)","v":1183.0958918379656},{"$f":"AL61*(1+Control!$E$2)","v":1195.8389138568782},{"$f":"AM61*(1+Control!$E$2)","v":1208.7191898475794},{"$f":"AN61*(1+Control!$E$2)","v":1221.7381981605649},{"$f":"AO61*(1+Control!$E$2)","v":1234.8974330695091},{"$f":"AP61*(1+Control!$E$2)","v":1248.1984049427774},{"$f":"AQ61*(1+Control!$E$2)","v":2536.8743229878237},{"$f":"AR61*(1+Control!$E$2)","v":1288.9670911058602},{"$f":"AS61*(1+Control!$E$2)","v":1302.8504425205028},{"$f":"AT61*(1+Control!$E$2)","v":1316.8833302948042},{"$f":"AU61*(1+Control!$E$2)","v":1331.0673650717217},{"$f":"AV61*(1+Control!$E$2)","v":1345.4041748424061},{"$f":"AW61*(1+Control!$E$2)","v":1359.8954051329019},{"$f":"AX61*(1+Control!$E$2)","v":1374.5427191930503},{"$f":"AY61*(1+Control!$E$2)","v":1389.3477981874275},{"$f":"AZ61*(1+Control!$E$2)","v":1404.3123413883586},{"$f":"BA61*(1+Control!$E$2)","v":1419.4380663707307},{"$f":"BB61*(1+Control!$E$2)","v":1434.726709209408},{"$f":"BC61*(1+Control!$E$2)","v":1450.180024678375},{"$f":"BD61*(1+Control!$E$2)","v":1465.7997864519712},{"$f":"BE61*(1+Control!$E$2)","v":1481.5877873088175},{"$f":"BF61*(1+Control!$E$2)","v":1497.5458393373265},{"$f":"BG61*(1+Control!$E$2)","v":1513.6757741436304},{"$f":"BH61*(1+Control!$E$2)","v":1529.9794430621478},{"$f":"BI61*(1+Control!$E$2)","v":1546.4587173677501},{"$f":"BJ61*(1+Control!$E$2)","v":1563.1154884906209},{"$f":"BK61*(1+Control!$E$2)","v":1579.951668233407},{"$f":"BL61*(1+Control!$E$2)","v":1596.969188990588},{"$f":"BM61*(1+Control!$E$2)","v":1614.1700039703574},{"$f":"BN61*(1+Control!$E$2)","v":1631.5560874187031},{"$f":"BO61*(1+Control!$E$2)","v":1649.1294348459633},{"$f":"BP61*(1+Control!$E$2)","v":1666.8920632560912},{"$f":"BQ61*(1+Control!$E$2)","v":1684.846011377922},{"$f":"BR61*(1+Control!$E$2)","v":1702.9933398993126},{"$f":"BS61*(1+Control!$E$2)","v":1721.3361317035015},{"$f":"BT61*(1+Control!$E$2)","v":1739.8764921084148},{"$f":"BU61*(1+Control!$E$2)","v":1758.6165491080465},{"$f":"BV61*(1+Control!$E$2)","v":1777.5584536169845},{"$f":"BW61*(1+Control!$E$2)","v":1796.7043797169754},{"$f":"BX61*(1+Control!$E$2)","v":1816.0565249067076},{"$f":"BY61*(1+Control!$E$2)","v":1835.6171103538873},{"$f":"BZ61*(1+Control!$E$2)","v":1855.388381150151},{"$f":"CA61*(1+Control!$E$2)","v":1875.3726065689989},{"$f":"CB61*(1+Control!$E$2)","v":1895.5720803259828},{"$f":"CC61*(1+Control!$E$2)","v":1915.9891208420595},{"$f":"CD61*(1+Control!$E$2)","v":1936.6260715095996},{"$f":"CE61*(1+Control!$E$2)","v":1957.4853009616709},{"$f":"CF61*(1+Control!$E$2)","v":1978.5692033435043},{"$f":"CG61*(1+Control!$E$2)","v":1999.8801985874888},{"$f":"CH61*(1+Control!$E$2)","v":2021.4207326908945},{"$f":"CI61*(1+Control!$E$2)","v":2043.193277996761},{"$f":"CJ61*(1+Control!$E$2)","v":2065.2003334771507},{"$f":"CK61*(1+Control!$E$2)","v":2087.4444250208398},{"$f":"CL61*(1+Control!$E$2)","v":2109.9281057222834},{"$f":"CM61*(1+Control!$E$2)","v":2132.6539561753452},{"$f":"CN61*(1+Control!$E$2)","v":2155.6245847691389}]
[null,"Knox (C)",null,{"$f":"D62*(1+Control!$E$2)","v":361.57407407406936},{"$f":"E62*(1+Control!$E$2)","v":435.64814814814781},{"$f":"F62*(1+Control!$E$2)","v":503.24074074073906},{"$f":"G62*(1+Control!$E$2)","v":586.11111111111313},{"$f":"H62*(1+Control!$E$2)","v":765.27777777777374},{"$f":"I62*(1+Control!$E$2)","v":682.40740740740875},{"$f":"J62*(1+Control!$E$2)","v":641.20370370370438},{"$f":"K62*(1+Control!$E$2)","v":620.8333333333394},{"$f":"L62*(1+Control!$E$2)","v":275},{"$f":"M62*(1+Control!$E$2)","v":576.21833302860978},{"$f":"N62*(1+Control!$E$2)","v":706.67995717007216},{"$f":"O62*(1+Control!$E$2)","v":713.16283472385294},{"$f":"P62*(1+Control!$E$2)","v":719.70518432141944},{"$f":"Q62*(1+Control!$E$2)","v":726.30755154216786},{"$f":"R62*(1+Control!$E$2)","v":732.9704869703346},{"$f":"S62*(1+Control!$E$2)","v":748.46296201733821},{"$f":"T62*(1+Control!$E$2)","v":755.41053721552998},{"$f":"U62*(1+Control!$E$2)","v":762.42260298111432},{"$f":"V62*(1+Control!$E$2)","v":769.49975794510465},{"$f":"W62*(1+Control!$E$2)","v":776.64260629511773},{"$f":"X62*(1+Control!$E$2)","v":819.25018046074911},{"$f":"Y62*(1+Control!$E$2)","v":827.19825803053027},{"$f":"Z62*(1+Control!$E$2)","v":835.22344505783622},{"$f":"AA62*(1+Control!$E$2)","v":843.32648963170868},{"$f":"AB62*(1+Control!$E$2)","v":851.50814709862971},{"$f":"AC62*(1+Control!$E$2)","v":859.76918013322575},{"$f":"AD62*(1+Control!$E$2)","v":868.11035880948111},{"$f":"AE62*(1+Control!$E$2)","v":876.53246067224245},{"$f":"AF62*(1+Control!$E$2)","v":885.0362708098146},{"$f":"AG62*(1+Control!$E$2)","v":893.62258192724767},{"$f":"AH62*(1+Control!$E$2)","v":902.2921944200607},{"$f":"AI62*(1+Control!$E$2)","v":911.04591644885659},{"$f":"AJ62*(1+Control!$E$2)","v":919.88456401495569},{"$f":"AK62*(1+Control!$E$2)","v":928.80896103601117},{"$f":"AL62*(1+Control!$E$2)","v":937.81993942315239},{"$f":"AM62*(1+Control!$E$2)","v":946.91833915840107},{"$f":"AN62*(1+Control!$E$2)","v":956.10500837294239},{"$f":"AO62*(1+Control!$E$2)","v":965.38080342628746},{"$f":"AP62*(1+Control!$E$2)","v":974.74658898603593},{"$f":"AQ62*(1+Control!$E$2)","v":1977.9548704284571},{"$f":"AR62*(1+Control!$E$2)","v":1003.3926616991994},{"$f":"AS62*(1+Control!$E$2)","v":1013.1272249599897},{"$f":"AT62*(1+Control!$E$2)","v":1022.9562295352116},{"$f":"AU62*(1+Control!$E$2)","v":1032.8805916613601},{"$f":"AV62*(1+Control!$E$2)","v":1042.9012364638947},{"$f":"AW62*(1+Control!$E$2)","v":1053.0190980435509},{"$f":"AX62*(1+Control!$E$2)","v":1063.2351195633419},{"$f":"AY62*(1+Control!$E$2)","v":1073.5502533365434},{"$f":"AZ62*(1+Control!$E$2)","v":1083.9654609154422},{"$f":"BA62*(1+Control!$E$2)","v":1094.4817131809396},{"$f":"BB62*(1+Control!$E$2)","v":1105.0999904331184},{"$f":"BC62*(1+Control!$E$2)","v":1115.8212824825932},{"$f":"BD62*(1+Control!$E$2)","v":1126.646588742733},{"$f":"BE62*(1+Control!$E$2)","v":1137.5769183228476},{"$f":"BF62*(1+Control!$E$2)","v":1148.6132901223755},{"$f":"BG62*(1+Control!$E$2)","v":1159.7567329256344},{"$f":"BH62*(1+Control!$E$2)","v":1171.0082854979555},{"$f":"BI62*(1+Control!$E$2)","v":1182.368996682344},{"$f":"BJ62*(1+Control!$E$2)","v":1193.8399254972865},{"$f":"BK62*(1+Control!$E$2)","v":1205.4221412355764},{"$f":"BL62*(1+Control!$E$2)","v":1217.1167235638313},{"$f":"BM62*(1+Control!$E$2)","v":1228.9247626232282},{"$f":"BN62*(1+Control!$E$2)","v":1240.8473591312395},{"$f":"BO62*(1+Control!$E$2)","v":1252.8856244838607},{"$f":"BP62*(1+Control!$E$2)","v":1265.0406808596927},{"$f":"BQ62*(1+Control!$E$2)","v":1277.3136613242423},{"$f":"BR62*(1+Control!$E$2)","v":1289.7057099355879},{"$f":"BS62*(1+Control!$E$2)","v":1302.2179818510631},{"$f":"BT62*(1+Control!$E$2)","v":1314.851643434904},{"$f":"BU62*(1+Control!$E$2)","v":1327.607872367189},{"$f":"BV62*(1+Control!$E$2)","v":1340.4878577531417},{"$f":"BW62*(1+Control!$E$2)","v":1353.4928002345077},{"$f":"BX62*(1+Control!$E$2)","v":1366.6239121010949},{"$f":"BY62*(1+Control!$E$2)","v":1379.8824174040055},{"$f":"BZ62*(1+Control!$E$2)","v":1393.2695520696143},{"$f":"CA62*(1+Control!$E$2)","v":1406.7865640148739},{"$f":"CB62*(1+Control!$E$2)","v":1420.4347132634757},{"$f":"CC62*(1+Control!$E$2)","v":1434.2152720635204},{"$f":"CD62*(1+Control!$E$2)","v":1448.129525005952},{"$f":"CE62*(1+Control!$E$2)","v":1462.1787691444661},{"$f":"CF62*(1+Control!$E$2)","v":1476.364314116181},{"$f":"CG62*(1+Control!$E$2)","v":1490.6874822638747},{"$f":"CH62*(1+Control!$E$2)","v":1505.1496087594205},{"$f":"CI62*(1+Control!$E$2)","v":1519.7520417278065},{"$f":"CJ62*(1+Control!$E$2)","v":1534.4961423731002},{"$f":"CK62*(1+Control!$E$2)","v":1549.3832851055231},{"$f":"CL62*(1+Control!$E$2)","v":1564.4148576690895},{"$f":"CM62*(1+Control!$E$2)","v":1579.5922612712639},{"$f":"CN62*(1+Control!$E$2)","v":1594.9169107136549}]
[null,"Manningham (C)",null,{"$f":"D63*(1+Control!$E$2)","v":308.03571428571558},{"$f":"E63*(1+Control!$E$2)","v":409.375},{"$f":"F63*(1+Control!$E$2)","v":482.14285714286234},{"$f":"G63*(1+Control!$E$2)","v":601.78571428570649},{"$f":"H63*(1+Control!$E$2)","v":796.875},{"$f":"I63*(1+Control!$E$2)","v":758.92857142857792},{"$f":"J63*(1+Control!$E$2)","v":564.73214285713766},{"$f":"K63*(1+Control!$E$2)","v":915.17857142857792},{"$f":"L63*(1+Control!$E$2)","v":600},{"$f":"M63*(1+Control!$E$2)","v":715.82348086009006},{"$f":"N63*(1+Control!$E$2)","v":561.40171556070527},{"$f":"O63*(1+Control!$E$2)","v":566.81021784797849},{"$f":"P63*(1+Control!$E$2)","v":572.27082524318575},{"$f":"Q63*(1+Control!$E$2)","v":577.78403972304659},{"$f":"R63*(1+Control!$E$2)","v":583.3503681003458},{"$f":"S63*(1+Control!$E$2)","v":521.29304290003347},{"$f":"T63*(1+Control!$E$2)","v":525.73806299525131},{"$f":"U63*(1+Control!$E$2)","v":530.22098538735918},{"$f":"V63*(1+Control!$E$2)","v":534.74213326580866},{"$f":"W63*(1+Control!$E$2)","v":539.30183257602948},{"$f":"X63*(1+Control!$E$2)","v":500.8202615342816},{"$f":"Y63*(1+Control!$E$2)","v":504.75246691639768},{"$f":"Z63*(1+Control!$E$2)","v":508.7155461275961},{"$f":"AA63*(1+Control!$E$2)","v":512.70974157473574},{"$f":"AB63*(1+Control!$E$2)","v":516.73529756778407},{"$f":"AC63*(1+Control!$E$2)","v":520.7924603351421},{"$f":"AD63*(1+Control!$E$2)","v":524.88147803824177},{"$f":"AE63*(1+Control!$E$2)","v":529.00260078711653},{"$f":"AF63*(1+Control!$E$2)","v":533.15608065551714},{"$f":"AG63*(1+Control!$E$2)","v":537.34217169629119},{"$f":"AH63*(1+Control!$E$2)","v":541.56112995709918},{"$f":"AI63*(1+Control!$E$2)","v":545.81321349587597},{"$f":"AJ63*(1+Control!$E$2)","v":550.09868239674688},{"$f":"AK63*(1+Control!$E$2)","v":554.41779878589841},{"$f":"AL63*(1+Control!$E$2)","v":558.77082684758534},{"$f":"AM63*(1+Control!$E$2)","v":563.15803284032881},{"$f":"AN63*(1+Control!$E$2)","v":567.57968511320541},{"$f":"AO63*(1+Control!$E$2)","v":572.03605412218167},{"$f":"AP63*(1+Control!$E$2)","v":576.52741244682147},{"$f":"AQ63*(1+Control!$E$2)","v":1166.6702328852443},{"$f":"AR63*(1+Control!$E$2)","v":590.21418131284918},{"$f":"AS63*(1+Control!$E$2)","v":594.84826575111583},{"$f":"AT63*(1+Control!$E$2)","v":599.51873484308635},{"$f":"AU63*(1+Control!$E$2)","v":604.22587426392056},{"$f":"AV63*(1+Control!$E$2)","v":608.9699719318287},{"$f":"AW63*(1+Control!$E$2)","v":613.75131802562464},{"$f":"AX63*(1+Control!$E$2)","v":618.57020500237923},{"$f":"AY63*(1+Control!$E$2)","v":623.42692761553735},{"$f":"AZ63*(1+Control!$E$2)","v":628.32178293271681},{"$f":"BA63*(1+Control!$E$2)","v":633.25507035397095},{"$f":"BB63*(1+Control!$E$2)","v":638.22709163016953},{"$f":"BC63*(1+Control!$E$2)","v":643.23815088129777},{"$f":"BD63*(1+Control!$E$2)","v":648.28855461521016},{"$f":"BE63*(1+Control!$E$2)","v":653.37861174628415},{"$f":"BF63*(1+Control!$E$2)","v":658.50863361438314},{"$f":"BG63*(1+Control!$E$2)","v":663.67893400385583},{"$f":"BH63*(1+Control!$E$2)","v":668.88982916269015},{"$f":"BI63*(1+Control!$E$2)","v":674.14163782197647},{"$f":"BJ63*(1+Control!$E$2)","v":679.43468121529804},{"$f":"BK63*(1+Control!$E$2)","v":684.76928309833966},{"$f":"BL63*(1+Control!$E$2)","v":690.14576976895114},{"$f":"BM63*(1+Control!$E$2)","v":695.56447008671967},{"$f":"BN63*(1+Control!$E$2)","v":701.02571549337881},{"$f":"BO63*(1+Control!$E$2)","v":706.52984003303573},{"$f":"BP63*(1+Control!$E$2)","v":712.07718037243467},{"$f":"BQ63*(1+Control!$E$2)","v":717.66807582172987},{"$f":"BR63*(1+Control!$E$2)","v":723.30286835522202},{"$f":"BS63*(1+Control!$E$2)","v":728.98190263214929},{"$f":"BT63*(1+Control!$E$2)","v":734.70552601795134},{"$f":"BU63*(1+Control!$E$2)","v":740.47408860526048},{"$f":"BV63*(1+Control!$E$2)","v":746.28794323569309},{"$f":"BW63*(1+Control!$E$2)","v":752.14744552098637},{"$f":"BX63*(1+Control!$E$2)","v":758.05295386517173},{"$f":"BY63*(1+Control!$E$2)","v":764.0048294861117},{"$f":"BZ63*(1+Control!$E$2)","v":770.00343643794622},{"$f":"CA63*(1+Control!$E$2)","v":776.04914163310241},{"$f":"CB63*(1+Control!$E$2)","v":782.14231486488643},{"$f":"CC63*(1+Control!$E$2)","v":788.28332882998438},{"$f":"CD63*(1+Control!$E$2)","v":794.47255915134519},{"$f":"CE63*(1+Control!$E$2)","v":800.71038440120901},{"$f":"CF63*(1+Control!$E$2)","v":806.99718612404467},{"$f":"CG63*(1+Control!$E$2)","v":813.33334886016019},{"$f":"CH63*(1+Control!$E$2)","v":819.71926016900397},{"$f":"CI63*(1+Control!$E$2)","v":826.15531065299365},{"$f":"CJ63*(1+Control!$E$2)","v":832.6418939814539},{"$f":"CK63*(1+Control!$E$2)","v":839.1794069144089},{"$f":"CL63*(1+Control!$E$2)","v":845.76824932726595},{"$f":"CM63*(1+Control!$E$2)","v":852.40882423500807},{"$f":"CN63*(1+Control!$E$2)","v":859.10153781680492}]
[null,"Maroondah (C)",null,{"$f":"D64*(1+Control!$E$2)","v":534.13461538461888},{"$f":"E64*(1+Control!$E$2)","v":647.59615384615245},{"$f":"F64*(1+Control!$E$2)","v":788.46153846153356},{"$f":"G64*(1+Control!$E$2)","v":770.19230769231399},{"$f":"H64*(1+Control!$E$2)","v":854.32692307691468},{"$f":"I64*(1+Control!$E$2)","v":731.25},{"$f":"J64*(1+Control!$E$2)","v":569.23076923077133},{"$f":"K64*(1+Control!$E$2)","v":511.53846153846644},{"$f":"L64*(1+Control!$E$2)","v":400},{"$f":"M64*(1+Control!$E$2)","v":698.37614221882177},{"$f":"N64*(1+Control!$E$2)","v":638.18466497416921},{"$f":"O64*(1+Control!$E$2)","v":645.19431590471868},{"$f":"P64*(1+Control!$E$2)","v":652.28095898009087},{"$f":"Q64*(1+Control!$E$2)","v":659.44543986161989},{"$f":"R64*(1+Control!$E$2)","v":666.68861349903636},{"$f":"S64*(1+Control!$E$2)","v":670.66014691848977},{"$f":"T64*(1+Control!$E$2)","v":677.98987427267093},{"$f":"U64*(1+Control!$E$2)","v":685.39970911992896},{"$f":"V64*(1+Control!$E$2)","v":692.89052696494764},{"$f":"W64*(1+Control!$E$2)","v":700.46321288087711},{"$f":"X64*(1+Control!$E$2)","v":726.65960690514112},{"$f":"Y64*(1+Control!$E$2)","v":734.80930123419057},{"$f":"Z64*(1+Control!$E$2)","v":743.0503967048935},{"$f":"AA64*(1+Control!$E$2)","v":751.383918407073},{"$f":"AB64*(1+Control!$E$2)","v":759.81090292720182},{"$f":"AC64*(1+Control!$E$2)","v":768.33239847738696},{"$f":"AD64*(1+Control!$E$2)","v":776.94946502571838},{"$f":"AE64*(1+Control!$E$2)","v":785.66317442821855},{"$f":"AF64*(1+Control!$E$2)","v":794.47461056191059},{"$f":"AG64*(1+Control!$E$2)","v":803.3848694599601},{"$f":"AH64*(1+Control!$E$2)","v":812.39505944778102},{"$f":"AI64*(1+Control!$E$2)","v":821.50630128097873},{"$f":"AJ64*(1+Control!$E$2)","v":830.71972828481194},{"$f":"AK64*(1+Control!$E$2)","v":840.03648649497336},{"$f":"AL64*(1+Control!$E$2)","v":849.45773480043499},{"$f":"AM64*(1+Control!$E$2)","v":858.98464508731195},{"$f":"AN64*(1+Control!$E$2)","v":868.6184023847909},{"$f":"AO64*(1+Control!$E$2)","v":878.36020501255007},{"$f":"AP64*(1+Control!$E$2)","v":888.21126472970718},{"$f":"AQ64*(1+Control!$E$2)","v":1806.4188774578452},{"$f":"AR64*(1+Control!$E$2)","v":918.43230877841961},{"$f":"AS64*(1+Control!$E$2)","v":928.73278854549426},{"$f":"AT64*(1+Control!$E$2)","v":939.1487911250988},{"$f":"AU64*(1+Control!$E$2)","v":949.68161213844724},{"$f":"AV64*(1+Control!$E$2)","v":960.33256173759582},{"$f":"AW64*(1+Control!$E$2)","v":971.10296476814256},{"$f":"AX64*(1+Control!$E$2)","v":981.99416093440959},{"$f":"AY64*(1+Control!$E$2)","v":993.00750496575347},{"$f":"AZ64*(1+Control!$E$2)","v":1004.1443667852946},{"$f":"BA64*(1+Control!$E$2)","v":1015.4061316801381},{"$f":"BB64*(1+Control!$E$2)","v":1026.7942004738507},{"$f":"BC64*(1+Control!$E$2)","v":1038.3099897005923},{"$f":"BD64*(1+Control!$E$2)","v":1049.9549317814126},{"$f":"BE64*(1+Control!$E$2)","v":1061.7304752022756},{"$f":"BF64*(1+Control!$E$2)","v":1073.6380846944121},{"$f":"BG64*(1+Control!$E$2)","v":1085.6792414164374},{"$f":"BH64*(1+Control!$E$2)","v":1097.8554431384873},{"$f":"BI64*(1+Control!$E$2)","v":1110.1682044287372},{"$f":"BJ64*(1+Control!$E$2)","v":1122.6190568415404},{"$f":"BK64*(1+Control!$E$2)","v":1135.2095491082036},{"$f":"BL64*(1+Control!$E$2)","v":1147.9412473293996},{"$f":"BM64*(1+Control!$E$2)","v":1160.815735170163},{"$f":"BN64*(1+Control!$E$2)","v":1173.8346140566318},{"$f":"BO64*(1+Control!$E$2)","v":1186.9995033755731},{"$f":"BP64*(1+Control!$E$2)","v":1200.3120406754533},{"$f":"BQ64*(1+Control!$E$2)","v":1213.7738818704747},{"$f":"BR64*(1+Control!$E$2)","v":1227.3867014463212},{"$f":"BS64*(1+Control!$E$2)","v":1241.1521926684509},{"$f":"BT64*(1+Control!$E$2)","v":1255.0720677928803},{"$f":"BU64*(1+Control!$E$2)","v":1269.1480582790064},{"$f":"BV64*(1+Control!$E$2)","v":1283.381915005084},{"$f":"BW64*(1+Control!$E$2)","v":1297.7754084858498},{"$f":"BX64*(1+Control!$E$2)","v":1312.3303290930016},{"$f":"BY64*(1+Control!$E$2)","v":1327.0484872776979},{"$f":"BZ64*(1+Control!$E$2)","v":1341.9317137958387},{"$f":"CA64*(1+Control!$E$2)","v":1356.9818599357859},{"$f":"CB64*(1+Control!$E$2)","v":1372.2007977485555},{"$f":"CC64*(1+Control!$E$2)","v":1387.5904202808852},{"$f":"CD64*(1+Control!$E$2)","v":1403.1526418103749},{"$f":"CE64*(1+Control!$E$2)","v":1418.889398084084},{"$f":"CF64*(1+Control!$E$2)","v":1434.802646558619},{"$f":"CG64*(1+Control!$E$2)","v":1450.8943666444429},{"$f":"CH64*(1+Control!$E$2)","v":1467.1665599513835},{"$f":"CI64*(1+Control!$E$2)","v":1483.621250537999},{"$f":"CJ64*(1+Control!$E$2)","v":1500.2604851632714},{"$f":"CK64*(1+Control!$E$2)","v":1517.0863335410286},{"$f":"CL64*(1+Control!$E$2)","v":1534.1008885977499},{"$f":"CM64*(1+Control!$E$2)","v":1551.3062667324084},{"$f":"CN64*(1+Control!$E$2)","v":1568.7046080802429}]
[null,"Melbourne (C)",null,{"$f":"D65*(1+Control!$E$2)","v":4586.25},{"$f":"E65*(1+Control!$E$2)","v":6958.125},{"$f":"F65*(1+Control!$E$2)","v":5790},{"$f":"G65*(1+Control!$E$2)","v":5560.625},{"$f":"H65*(1+Control!$E$2)","v":5765},{"$f":"I65*(1+Control!$E$2)","v":8153.125},{"$f":"J65*(1+Control!$E$2)","v":6985},{"$f":"K65*(1+Control!$E$2)","v":5423.125},{"$f":"L65*(1+Control!$E$2)","v":2976.25},{"$f":"M65*(1+Control!$E$2)","v":7860.4176793020451},{"$f":"N65*(1+Control!$E$2)","v":4358.6858536138607},{"$f":"O65*(1+Control!$E$2)","v":4513.5099491554683},{"$f":"P65*(1+Control!$E$2)","v":4673.8335235228988},{"$f":"Q65*(1+Control!$E$2)","v":4839.8519227134602},{"$f":"R65*(1+Control!$E$2)","v":5011.7674315744807},{"$f":"S65*(1+Control!$E$2)","v":3268.4352753558414},{"$f":"T65*(1+Control!$E$2)","v":3341.551375004492},{"$f":"U65*(1+Control!$E$2)","v":3416.3031087035233},{"$f":"V65*(1+Control!$E$2)","v":3492.7270661884177},{"$f":"W65*(1+Control!$E$2)","v":3570.8606557204439},{"$f":"X65*(1+Control!$E$2)","v":2581.9685096752801},{"$f":"Y65*(1+Control!$E$2)","v":2622.8186782097328},{"$f":"Z65*(1+Control!$E$2)","v":2664.315150625589},{"$f":"AA65*(1+Control!$E$2)","v":2706.4681523078616},{"$f":"AB65*(1+Control!$E$2)","v":2749.2880704209892},{"$f":"AC65*(1+Control!$E$2)","v":2792.7854564679728},{"$f":"AD65*(1+Control!$E$2)","v":2836.9710288905844},{"$f":"AE65*(1+Control!$E$2)","v":2881.8556757107945},{"$f":"AF65*(1+Control!$E$2)","v":2927.4504572131991},{"$f":"AG65*(1+Control!$E$2)","v":2973.7666086709942},{"$f":"AH65*(1+Control!$E$2)","v":3020.815543114295},{"$f":"AI65*(1+Control!$E$2)","v":3068.6088541424033},{"$f":"AJ65*(1+Control!$E$2)","v":3117.1583187808574},{"$f":"AK65*(1+Control!$E$2)","v":3166.4759003833024},{"$f":"AL65*(1+Control!$E$2)","v":3216.5737515794899},{"$f":"AM65*(1+Control!$E$2)","v":3267.4642172699532},{"$f":"AN65*(1+Control!$E$2)","v":3319.1598376679758},{"$f":"AO65*(1+Control!$E$2)","v":3371.6733513895451},{"$f":"AP65*(1+Control!$E$2)","v":3425.0176985926009},{"$f":"AQ65*(1+Control!$E$2)","v":7013.4577051312954},{"$f":"AR65*(1+Control!$E$2)","v":3590.1682331118718},{"$f":"AS65*(1+Control!$E$2)","v":3646.9694593236636},{"$f":"AT65*(1+Control!$E$2)","v":3704.669356318991},{"$f":"AU65*(1+Control!$E$2)","v":3763.2821422623601},{"$f":"AV65*(1+Control!$E$2)","v":3822.82226026844},{"$f":"AW65*(1+Control!$E$2)","v":3883.3043819612794},{"$f":"AX65*(1+Control!$E$2)","v":3944.7434110893664},{"$f":"AY65*(1+Control!$E$2)","v":4007.1544871982769},{"$f":"AZ65*(1+Control!$E$2)","v":4070.5529893613493},{"$f":"BA65*(1+Control!$E$2)","v":4134.9545399692943},{"$f":"BB65*(1+Control!$E$2)","v":4200.3750085796128},{"$f":"BC65*(1+Control!$E$2)","v":4266.8305158274234},{"$f":"BD65*(1+Control!$E$2)","v":4334.3374373976985},{"$f":"BE65*(1+Control!$E$2)","v":4402.9124080603651},{"$f":"BF65*(1+Control!$E$2)","v":4472.572325769579},{"$f":"BG65*(1+Control!$E$2)","v":4543.3343558274646},{"$f":"BH65*(1+Control!$E$2)","v":4615.2159351142109},{"$f":"BI65*(1+Control!$E$2)","v":4688.2347763842336},{"$f":"BJ65*(1+Control!$E$2)","v":4762.4088726316768},{"$f":"BK65*(1+Control!$E$2)","v":4837.7565015233267},{"$f":"BL65*(1+Control!$E$2)","v":4914.2962299031933},{"$f":"BM65*(1+Control!$E$2)","v":4992.0469183672321},{"$f":"BN65*(1+Control!$E$2)","v":5071.0277259112627},{"$f":"BO65*(1+Control!$E$2)","v":5151.2581146515004},{"$f":"BP65*(1+Control!$E$2)","v":5232.7578546210134},{"$f":"BQ65*(1+Control!$E$2)","v":5315.5470286408672},{"$f":"BR65*(1+Control!$E$2)","v":5399.6460372689762},{"$f":"BS65*(1+Control!$E$2)","v":5485.0756038274267},{"$f":"BT65*(1+Control!$E$2)","v":5571.8567795082345},{"$f":"BU65*(1+Control!$E$2)","v":5660.0109485618304},{"$f":"BV65*(1+Control!$E$2)","v":5749.5598335652903},{"$f":"BW65*(1+Control!$E$2)","v":5840.5255007761298},{"$f":"BX65*(1+Control!$E$2)","v":5932.9303655692638},{"$f":"BY65*(1+Control!$E$2)","v":6026.7971979604044},{"$f":"BZ65*(1+Control!$E$2)","v":6122.1491282169882},{"$f":"CA65*(1+Control!$E$2)","v":6219.0096525587433},{"$f":"CB65*(1+Control!$E$2)","v":6317.4026389458595},{"$f":"CC65*(1+Control!$E$2)","v":6417.3523329618183},{"$f":"CD65*(1+Control!$E$2)","v":6518.8833637874632},{"$f":"CE65*(1+Control!$E$2)","v":6622.0207502695848},{"$f":"CF65*(1+Control!$E$2)","v":6726.7899070867861},{"$f":"CG65*(1+Control!$E$2)","v":6833.2166510113166},{"$f":"CH65*(1+Control!$E$2)","v":6941.3272072711698},{"$f":"CI65*(1+Control!$E$2)","v":7051.1482160120067},{"$f":"CJ65*(1+Control!$E$2)","v":7162.7067388623982},{"$f":"CK65*(1+Control!$E$2)","v":7276.0302656013664},{"$f":"CL65*(1+Control!$E$2)","v":7391.1467209330294},{"$f":"CM65*(1+Control!$E$2)","v":7508.0844713671104},{"$f":"CN65*(1+Control!$E$2)","v":7626.8723322093138}]
[null,"Monash (C)",null,{"$f":"D66*(1+Control!$E$2)","v":1373.6111111111131},{"$f":"E66*(1+Control!$E$2)","v":1362.5},{"$f":"F66*(1+Control!$E$2)","v":1340.2777777777737},{"$f":"G66*(1+Control!$E$2)","v":1400},{"$f":"H66*(1+Control!$E$2)","v":1597.6851851851825},{"$f":"I66*(1+Control!$E$2)","v":1989.3518518518613},{"$f":"J66*(1+Control!$E$2)","v":1523.1481481481387},{"$f":"K66*(1+Control!$E$2)","v":1242.5925925925912},{"$f":"L66*(1+Control!$E$2)","v":944.44444444445253},{"$f":"M66*(1+Control!$E$2)","v":1424.4638917546035},{"$f":"N66*(1+Control!$E$2)","v":1239.5667782730197},{"$f":"O66*(1+Control!$E$2)","v":1255.5220226282836},{"$f":"P66*(1+Control!$E$2)","v":1271.6826369780574},{"$f":"Q66*(1+Control!$E$2)","v":1288.0512647688374},{"$f":"R66*(1+Control!$E$2)","v":1304.6305834725354},{"$f":"S66*(1+Control!$E$2)","v":1225.0956167563527},{"$f":"T66*(1+Control!$E$2)","v":1239.7150838404377},{"$f":"U66*(1+Control!$E$2)","v":1254.5090098114997},{"$f":"V66*(1+Control!$E$2)","v":1269.4794765446568},{"$f":"W66*(1+Control!$E$2)","v":1284.6285907585298},{"$f":"X66*(1+Control!$E$2)","v":1285.3059503475015},{"$f":"Y66*(1+Control!$E$2)","v":1300.4710444378725},{"$f":"Z66*(1+Control!$E$2)","v":1315.8150687500529},{"$f":"AA66*(1+Control!$E$2)","v":1331.3401344495833},{"$f":"AB66*(1+Control!$E$2)","v":1347.0483776113542},{"$f":"AC66*(1+Control!$E$2)","v":1362.9419595131185},{"$f":"AD66*(1+Control!$E$2)","v":1379.0230669336052},{"$f":"AE66*(1+Control!$E$2)","v":1395.2939124527074},{"$f":"AF66*(1+Control!$E$2)","v":1411.7567347561089},{"$f":"AG66*(1+Control!$E$2)","v":1428.4137989434385},{"$f":"AH66*(1+Control!$E$2)","v":1445.2673968398267},{"$f":"AI66*(1+Control!$E$2)","v":1462.3198473111734},{"$f":"AJ66*(1+Control!$E$2)","v":1479.5734965833071},{"$f":"AK66*(1+Control!$E$2)","v":1497.0307185648016},{"$f":"AL66*(1+Control!$E$2)","v":1514.6939151734114},{"$f":"AM66*(1+Control!$E$2)","v":1532.5655166668184},{"$f":"AN66*(1+Control!$E$2)","v":1550.647981976872},{"$f":"AO66*(1+Control!$E$2)","v":1568.9437990477927},{"$f":"AP66*(1+Control!$E$2)","v":1587.4554851787616},{"$f":"AQ66*(1+Control!$E$2)","v":3231.3222700434017},{"$f":"AR66*(1+Control!$E$2)","v":1644.311378547045},{"$f":"AS66*(1+Control!$E$2)","v":1663.7123132138368},{"$f":"AT66*(1+Control!$E$2)","v":1683.3421560247371},{"$f":"AU66*(1+Control!$E$2)","v":1703.2036078257624},{"$f":"AV66*(1+Control!$E$2)","v":1723.2994013298594},{"$f":"AW66*(1+Control!$E$2)","v":1743.6323014926347},{"$f":"AX66*(1+Control!$E$2)","v":1764.2051058930156},{"$f":"AY66*(1+Control!$E$2)","v":1785.0206451180748},{"$f":"AZ66*(1+Control!$E$2)","v":1806.0817831522763},{"$f":"BA66*(1+Control!$E$2)","v":1827.391417771978},{"$f":"BB66*(1+Control!$E$2)","v":1848.9524809437535},{"$f":"BC66*(1+Control!$E$2)","v":1870.7679392278624},{"$f":"BD66*(1+Control!$E$2)","v":1892.8407941866135},{"$f":"BE66*(1+Control!$E$2)","v":1915.1740827972208},{"$f":"BF66*(1+Control!$E$2)","v":1937.7708778693705},{"$f":"BG66*(1+Control!$E$2)","v":1960.6342884686092},{"$f":"BH66*(1+Control!$E$2)","v":1983.7674603437335},{"$f":"BI66*(1+Control!$E$2)","v":2007.1735763594552},{"$f":"BJ66*(1+Control!$E$2)","v":2030.8558569347588},{"$f":"BK66*(1+Control!$E$2)","v":2054.8175604856078},{"$f":"BL66*(1+Control!$E$2)","v":2079.0619838736529},{"$f":"BM66*(1+Control!$E$2)","v":2103.5924628593057},{"$f":"BN66*(1+Control!$E$2)","v":2128.4123725613244},{"$f":"BO66*(1+Control!$E$2)","v":2153.5251279206932},{"$f":"BP66*(1+Control!$E$2)","v":2178.9341841707574},{"$f":"BQ66*(1+Control!$E$2)","v":2204.6430373124895},{"$f":"BR66*(1+Control!$E$2)","v":2230.6552245956482},{"$f":"BS66*(1+Control!$E$2)","v":2256.9743250051761},{"$f":"BT66*(1+Control!$E$2)","v":2283.6039597540366},{"$f":"BU66*(1+Control!$E$2)","v":2310.5477927810716},{"$f":"BV66*(1+Control!$E$2)","v":2337.8095312554069},{"$f":"BW66*(1+Control!$E$2)","v":2365.392926086206},{"$f":"BX66*(1+Control!$E$2)","v":2393.3017724392266},{"$f":"BY66*(1+Control!$E$2)","v":2421.5399102583979},{"$f":"BZ66*(1+Control!$E$2)","v":2450.1112247946367},{"$f":"CA66*(1+Control!$E$2)","v":2479.0196471401941},{"$f":"CB66*(1+Control!$E$2)","v":2508.2691547695867},{"$f":"CC66*(1+Control!$E$2)","v":2537.863772086821},{"$f":"CD66*(1+Control!$E$2)","v":2567.8075709790937},{"$f":"CE66*(1+Control!$E$2)","v":2598.1046713771502},{"$f":"CF66*(1+Control!$E$2)","v":2628.759241821972},{"$f":"CG66*(1+Control!$E$2)","v":2659.7755000384859},{"$f":"CH66*(1+Control!$E$2)","v":2691.1577135157495},{"$f":"CI66*(1+Control!$E$2)","v":2722.9102000940838},{"$f":"CJ66*(1+Control!$E$2)","v":2755.0373285594469},{"$f":"CK66*(1+Control!$E$2)","v":2787.5435192441364},{"$f":"CL66*(1+Control!$E$2)","v":2820.4332446351327},{"$f":"CM66*(1+Control!$E$2)","v":2853.7110299896449},{"$f":"CN66*(1+Control!$E$2)","v":2887.3814539574232}]
[null,"Nillumbik (S)",null,{"$f":"D67*(1+Control!$E$2)","v":91.25},{"$f":"E67*(1+Control!$E$2)","v":99.583333333334849},{"$f":"F67*(1+Control!$E$2)","v":107.91666666666515},{"$f":"G67*(1+Control!$E$2)","v":100.83333333333485},{"$f":"H67*(1+Control!$E$2)","v":207.91666666666515},{"$f":"I67*(1+Control!$E$2)","v":185},{"$f":"J67*(1+Control!$E$2)","v":134.58333333333485},{"$f":"K67*(1+Control!$E$2)","v":65.833333333334849},{"$f":"L67*(1+Control!$E$2)","v":50},{"$f":"M67*(1+Control!$E$2)","v":100.50710271896605},{"$f":"N67*(1+Control!$E$2)","v":115.06872532176203},{"$f":"O67*(1+Control!$E$2)","v":115.55417968086203},{"$f":"P67*(1+Control!$E$2)","v":116.04168208503324},{"$f":"Q67*(1+Control!$E$2)","v":116.53124117459811},{"$f":"R67*(1+Control!$E$2)","v":117.02286562634526},{"$f":"S67*(1+Control!$E$2)","v":136.30132113272794},{"$f":"T67*(1+Control!$E$2)","v":136.96826939942184},{"$f":"U67*(1+Control!$E$2)","v":137.63848117073849},{"$f":"V67*(1+Control!$E$2)","v":138.31197241561313},{"$f":"W67*(1+Control!$E$2)","v":138.98875918112026},{"$f":"X67*(1+Control!$E$2)","v":157.21016733418764},{"$f":"Y67*(1+Control!$E$2)","v":158.07603946568634},{"$f":"Z67*(1+Control!$E$2)","v":158.94668059247124},{"$f":"AA67*(1+Control!$E$2)","v":159.82211698093124},{"$f":"AB67*(1+Control!$E$2)","v":160.70237504209217},{"$f":"AC67*(1+Control!$E$2)","v":161.58748133242625},{"$f":"AD67*(1+Control!$E$2)","v":162.47746255472975},{"$f":"AE67*(1+Control!$E$2)","v":163.37234555885516},{"$f":"AF67*(1+Control!$E$2)","v":164.27215734250694},{"$f":"AG67*(1+Control!$E$2)","v":165.17692505209652},{"$f":"AH67*(1+Control!$E$2)","v":166.08667598356988},{"$f":"AI67*(1+Control!$E$2)","v":167.00143758318518},{"$f":"AJ67*(1+Control!$E$2)","v":167.92123744839046},{"$f":"AK67*(1+Control!$E$2)","v":168.84610332862849},{"$f":"AL67*(1+Control!$E$2)","v":169.77606312614625},{"$f":"AM67*(1+Control!$E$2)","v":170.71114489693628},{"$f":"AN67*(1+Control!$E$2)","v":171.6513768514551},{"$f":"AO67*(1+Control!$E$2)","v":172.59678735555099},{"$f":"AP67*(1+Control!$E$2)","v":173.5474049313143},{"$f":"AQ67*(1+Control!$E$2)","v":349.96763443043619},{"$f":"AR67*(1+Control!$E$2)","v":176.43078767104726},{"$f":"AS67*(1+Control!$E$2)","v":177.40252190918909},{"$f":"AT67*(1+Control!$E$2)","v":178.37960820318131},{"$f":"AU67*(1+Control!$E$2)","v":179.36207603073399},{"$f":"AV67*(1+Control!$E$2)","v":180.34995503191567},{"$f":"AW67*(1+Control!$E$2)","v":181.34327501005373},{"$f":"AX67*(1+Control!$E$2)","v":182.34206593259387},{"$f":"AY67*(1+Control!$E$2)","v":183.34635793207781},{"$f":"AZ67*(1+Control!$E$2)","v":184.35618130696639},{"$f":"BA67*(1+Control!$E$2)","v":185.37156652263093},{"$f":"BB67*(1+Control!$E$2)","v":186.39254421221267},{"$f":"BC67*(1+Control!$E$2)","v":187.41914517758687},{"$f":"BD67*(1+Control!$E$2)","v":188.45140039026774},{"$f":"BE67*(1+Control!$E$2)","v":189.48934099237704},{"$f":"BF67*(1+Control!$E$2)","v":190.53299829751722},{"$f":"BG67*(1+Control!$E$2)","v":191.58240379178551},{"$f":"BH67*(1+Control!$E$2)","v":192.63758913471065},{"$f":"BI67*(1+Control!$E$2)","v":193.69858616013516},{"$f":"BJ67*(1+Control!$E$2)","v":194.7654268773158},{"$f":"BK67*(1+Control!$E$2)","v":195.83814347174211},{"$f":"BL67*(1+Control!$E$2)","v":196.91676830620054},{"$f":"BM67*(1+Control!$E$2)","v":198.00133392172484},{"$f":"BN67*(1+Control!$E$2)","v":199.0918730385556},{"$f":"BO67*(1+Control!$E$2)","v":200.18841855716346},{"$f":"BP67*(1+Control!$E$2)","v":201.29100355924948},{"$f":"BQ67*(1+Control!$E$2)","v":202.39966130866833},{"$f":"BR67*(1+Control!$E$2)","v":203.51442525251969},{"$f":"BS67*(1+Control!$E$2)","v":204.63532902211682},{"$f":"BT67*(1+Control!$E$2)","v":205.76240643399615},{"$f":"BU67*(1+Control!$E$2)","v":206.89569149094496},{"$f":"BV67*(1+Control!$E$2)","v":208.03521838304277},{"$f":"BW67*(1+Control!$E$2)","v":209.18102148867547},{"$f":"BX67*(1+Control!$E$2)","v":210.33313537555387},{"$f":"BY67*(1+Control!$E$2)","v":211.4915948018097},{"$f":"BZ67*(1+Control!$E$2)","v":212.65643471700514},{"$f":"CA67*(1+Control!$E$2)","v":213.82769026317419},{"$f":"CB67*(1+Control!$E$2)","v":215.00539677593224},{"$f":"CC67*(1+Control!$E$2)","v":216.18958978548562},{"$f":"CD67*(1+Control!$E$2)","v":217.38030501778212},{"$f":"CE67*(1+Control!$E$2)","v":218.57757839546139},{"$f":"CF67*(1+Control!$E$2)","v":219.78144603909186},{"$f":"CG67*(1+Control!$E$2)","v":220.99194426812119},{"$f":"CH67*(1+Control!$E$2)","v":222.20910960210858},{"$f":"CI67*(1+Control!$E$2)","v":223.43297876165252},{"$f":"CJ67*(1+Control!$E$2)","v":224.6635886697004},{"$f":"CK67*(1+Control!$E$2)","v":225.90097645249443},{"$f":"CL67*(1+Control!$E$2)","v":227.14517944080399},{"$f":"CM67*(1+Control!$E$2)","v":228.39623517093969},{"$f":"CN67*(1+Control!$E$2)","v":229.65418138604946}]
[null,"Port Phillip (C)",null,{"$f":"D68*(1+Control!$E$2)","v":1635.625},{"$f":"E68*(1+Control!$E$2)","v":1414.375},{"$f":"F68*(1+Control!$E$2)","v":1434.375},{"$f":"G68*(1+Control!$E$2)","v":1206.25},{"$f":"H68*(1+Control!$E$2)","v":1403.75},{"$f":"I68*(1+Control!$E$2)","v":1268.125},{"$f":"J68*(1+Control!$E$2)","v":1630.625},{"$f":"K68*(1+Control!$E$2)","v":1471.875},{"$f":"L68*(1+Control!$E$2)","v":535},{"$f":"M68*(1+Control!$E$2)","v":1607.4441602020397},{"$f":"N68*(1+Control!$E$2)","v":1272.9637093712699},{"$f":"O68*(1+Control!$E$2)","v":1294.7423240005264},{"$f":"P68*(1+Control!$E$2)","v":1316.8935400257669},{"$f":"Q68*(1+Control!$E$2)","v":1339.4237321316814},{"$f":"R68*(1+Control!$E$2)","v":1362.3393840647077},{"$f":"S68*(1+Control!$E$2)","v":1307.5634205762708},{"$f":"T68*(1+Control!$E$2)","v":1328.6733663880841},{"$f":"U68*(1+Control!$E$2)","v":1350.1241215290975},{"$f":"V68*(1+Control!$E$2)","v":1371.9211881923366},{"$f":"W68*(1+Control!$E$2)","v":1394.0701574011109},{"$f":"X68*(1+Control!$E$2)","v":1946.1643629558966},{"$f":"Y68*(1+Control!$E$2)","v":1989.3305104168212},{"$f":"Z68*(1+Control!$E$2)","v":2033.4540879499946},{"$f":"AA68*(1+Control!$E$2)","v":2078.5563314635692},{"$f":"AB68*(1+Control!$E$2)","v":2124.6589478805618},{"$f":"AC68*(1+Control!$E$2)","v":2171.7841255860731},{"$f":"AD68*(1+Control!$E$2)","v":2219.9545451060112},{"$f":"AE68*(1+Control!$E$2)","v":2269.1933900230288},{"$f":"AF68*(1+Control!$E$2)","v":2319.5243581342402},{"$f":"AG68*(1+Control!$E$2)","v":2370.9716728565945},{"$f":"AH68*(1+Control!$E$2)","v":2423.5600948852152},{"$f":"AI68*(1+Control!$E$2)","v":2477.3149341102908},{"$f":"AJ68*(1+Control!$E$2)","v":2532.262061798192},{"$f":"AK68*(1+Control!$E$2)","v":2588.4279230429456},{"$f":"AL68*(1+Control!$E$2)","v":2645.8395494938304},{"$f":"AM68*(1+Control!$E$2)","v":2704.5245723651351},{"$f":"AN68*(1+Control!$E$2)","v":2764.5112357346807},{"$f":"AO68*(1+Control!$E$2)","v":2825.8284101370919},{"$f":"AP68*(1+Control!$E$2)","v":2888.5056064587843},{"$f":"AQ68*(1+Control!$E$2)","v":5970.6343858388027},{"$f":"AR68*(1+Control!$E$2)","v":3085.0023415565556},{"$f":"AS68*(1+Control!$E$2)","v":3153.428045226683},{"$f":"AT68*(1+Control!$E$2)","v":3223.3714388056796},{"$f":"AU68*(1+Control!$E$2)","v":3294.8661848288248},{"$f":"AV68*(1+Control!$E$2)","v":3367.9466924701956},{"$f":"AW68*(1+Control!$E$2)","v":3442.6481341032559},{"$f":"AX68*(1+Control!$E$2)","v":3519.0064622287719},{"$f":"AY68*(1+Control!$E$2)","v":3597.0584267780578},{"$f":"AZ68*(1+Control!$E$2)","v":3676.8415928001195},{"$f":"BA68*(1+Control!$E$2)","v":3758.3943585409361},{"$f":"BB68*(1+Control!$E$2)","v":3841.755973924046},{"$f":"BC68*(1+Control!$E$2)","v":3926.966559440807},{"$f":"BD68*(1+Control!$E$2)","v":4014.0671254595873},{"$f":"BE68*(1+Control!$E$2)","v":4103.0995919632915},{"$f":"BF68*(1+Control!$E$2)","v":4194.1068087250824},{"$f":"BG68*(1+Control!$E$2)","v":4287.1325759307365},{"$f":"BH68*(1+Control!$E$2)","v":4382.2216652593124},{"$f":"BI68*(1+Control!$E$2)","v":4479.4198414306447},{"$f":"BJ68*(1+Control!$E$2)","v":4578.773884231523},{"$f":"BK68*(1+Control!$E$2)","v":4680.3316110294691},{"$f":"BL68*(1+Control!$E$2)","v":4784.1418997868095},{"$f":"BM68*(1+Control!$E$2)","v":4890.2547125847195},{"$f":"BN68*(1+Control!$E$2)","v":4998.7211196687713},{"$f":"BO68*(1+Control!$E$2)","v":5109.5933240287195},{"$f":"BP68*(1+Control!$E$2)","v":5222.9246865223467},{"$f":"BQ68*(1+Control!$E$2)","v":5338.7697515575201},{"$f":"BR68*(1+Control!$E$2)","v":5457.1842733431913},{"$f":"BS68*(1+Control!$E$2)","v":5578.2252427229469},{"$f":"BT68*(1+Control!$E$2)","v":5701.9509146040218},{"$f":"BU68*(1+Control!$E$2)","v":5828.4208359938566},{"$f":"BV68*(1+Control!$E$2)","v":5957.6958746595119},{"$f":"BW68*(1+Control!$E$2)","v":6089.8382484219837},{"$f":"BX68*(1+Control!$E$2)","v":6224.9115551006253},{"$f":"BY68*(1+Control!$E$2)","v":6362.9808031216817},{"$f":"BZ68*(1+Control!$E$2)","v":6504.1124428057083},{"$f":"CA68*(1+Control!$E$2)","v":6648.3743983489694},{"$f":"CB68*(1+Control!$E$2)","v":6795.8361005140978},{"$f":"CC68*(1+Control!$E$2)","v":6946.5685200459848},{"$f":"CD68*(1+Control!$E$2)","v":7100.6442018287271},{"$f":"CE68*(1+Control!$E$2)","v":7258.137299800328},{"$f":"CF68*(1+Control!$E$2)","v":7419.1236126411968},{"$f":"CG68*(1+Control!$E$2)","v":7583.6806202558364},{"$f":"CH68*(1+Control!$E$2)","v":7751.8875210611441},{"$f":"CI68*(1+Control!$E$2)","v":7923.8252701042802},{"$f":"CJ68*(1+Control!$E$2)","v":8099.5766180246574},{"$f":"CK68*(1+Control!$E$2)","v":8279.2261508799857},{"$f":"CL68*(1+Control!$E$2)","v":8462.860330856638},{"$f":"CM68*(1+Control!$E$2)","v":8650.5675378820888},{"$f":"CN68*(1+Control!$E$2)","v":8842.4381121607439}]
[null,"South Gippsland (S)",null,{"$f":"D69*(1+Control!$E$2)","v":215.625},{"$f":"E69*(1+Control!$E$2)","v":180.72916666666742},{"$f":"F69*(1+Control!$E$2)","v":129.16666666666515},{"$f":"G69*(1+Control!$E$2)","v":135.41666666666742},{"$f":"H69*(1+Control!$E$2)","v":177.60416666666742},{"$f":"I69*(1+Control!$E$2)","v":103.64583333333258},{"$f":"J69*(1+Control!$E$2)","v":132.29166666666742},{"$f":"K69*(1+Control!$E$2)","v":174.47916666666515},{"$f":"L69*(1+Control!$E$2)","v":176.04166666666742},{"$f":"M69*(1+Control!$E$2)","v":121.66111041416798},{"$f":"N69*(1+Control!$E$2)","v":125.51700457222751},{"$f":"O69*(1+Control!$E$2)","v":126.50936343741705},{"$f":"P69*(1+Control!$E$2)","v":127.50956806119575},{"$f":"Q69*(1+Control!$E$2)","v":128.5176804734806},{"$f":"R69*(1+Control!$E$2)","v":129.53376319459039},{"$f":"S69*(1+Control!$E$2)","v":129.03360664231514},{"$f":"T69*(1+Control!$E$2)","v":130.04185790257907},{"$f":"U69*(1+Control!$E$2)","v":131.0579875026815},{"$f":"V69*(1+Control!$E$2)","v":132.08205700291273},{"$f":"W69*(1+Control!$E$2)","v":133.11412844458346},{"$f":"X69*(1+Control!$E$2)","v":123.98555380973903},{"$f":"Y69*(1+Control!$E$2)","v":124.88092605375869},{"$f":"Z69*(1+Control!$E$2)","v":125.78276430475171},{"$f":"AA69*(1+Control!$E$2)","v":126.69111525753578},{"$f":"AB69*(1+Control!$E$2)","v":127.60602594413513},{"$f":"AC69*(1+Control!$E$2)","v":128.52754373625885},{"$f":"AD69*(1+Control!$E$2)","v":129.45571634763837},{"$f":"AE69*(1+Control!$E$2)","v":130.39059183664676},{"$f":"AF69*(1+Control!$E$2)","v":131.33221860867479},{"$f":"AG69*(1+Control!$E$2)","v":132.28064541869344},{"$f":"AH69*(1+Control!$E$2)","v":133.2359213737459},{"$f":"AI69*(1+Control!$E$2)","v":134.19809593553737},{"$f":"AJ69*(1+Control!$E$2)","v":135.16721892292026},{"$f":"AK69*(1+Control!$E$2)","v":136.14334051456581},{"$f":"AL69*(1+Control!$E$2)","v":137.12651125146976},{"$f":"AM69*(1+Control!$E$2)","v":138.11678203964675},{"$f":"AN69*(1+Control!$E$2)","v":139.11420415272914},{"$f":"AO69*(1+Control!$E$2)","v":140.1188292345978},{"$f":"AP69*(1+Control!$E$2)","v":141.13070930212643},{"$f":"AQ69*(1+Control!$E$2)","v":285.3263410902855},{"$f":"AR69*(1+Control!$E$2)","v":144.21040523810689},{"$f":"AS69*(1+Control!$E$2)","v":145.25183297046851},{"$f":"AT69*(1+Control!$E$2)","v":146.30078146195046},{"$f":"AU69*(1+Control!$E$2)","v":147.35730502437491},{"$f":"AV69*(1+Control!$E$2)","v":148.42145836174495},{"$f":"AW69*(1+Control!$E$2)","v":149.49329657314138},{"$f":"AX69*(1+Control!$E$2)","v":150.57287515552616},{"$f":"AY69*(1+Control!$E$2)","v":151.6602500066665},{"$f":"AZ69*(1+Control!$E$2)","v":152.75547742796334},{"$f":"BA69*(1+Control!$E$2)","v":153.85861412742543},{"$f":"BB69*(1+Control!$E$2)","v":154.96971722258877},{"$f":"BC69*(1+Control!$E$2)","v":156.08884424345433},{"$f":"BD69*(1+Control!$E$2)","v":157.21605313547116},{"$f":"BE69*(1+Control!$E$2)","v":158.35140226258318},{"$f":"BF69*(1+Control!$E$2)","v":159.49495041017599},{"$f":"BG69*(1+Control!$E$2)","v":160.6467567881873},{"$f":"BH69*(1+Control!$E$2)","v":161.8068810341174},{"$f":"BI69*(1+Control!$E$2)","v":162.97538321617139},{"$f":"BJ69*(1+Control!$E$2)","v":164.15232383632429},{"$f":"BK69*(1+Control!$E$2)","v":165.33776383346321},{"$f":"BL69*(1+Control!$E$2)","v":166.53176458658891},{"$f":"BM69*(1+Control!$E$2)","v":167.73438791791705},{"$f":"BN69*(1+Control!$E$2)","v":168.94569609611608},{"$f":"BO69*(1+Control!$E$2)","v":170.16575183957684},{"$f":"BP69*(1+Control!$E$2)","v":171.39461831956851},{"$f":"BQ69*(1+Control!$E$2)","v":172.63235916358553},{"$f":"BR69*(1+Control!$E$2)","v":173.87903845859},{"$f":"BS69*(1+Control!$E$2)","v":175.13472075438585},{"$f":"BT69*(1+Control!$E$2)","v":176.3994710668976},{"$f":"BU69*(1+Control!$E$2)","v":177.67335488158551},{"$f":"BV69*(1+Control!$E$2)","v":178.95643815681069},{"$f":"BW69*(1+Control!$E$2)","v":180.24878732726847},{"$f":"BX69*(1+Control!$E$2)","v":181.550469307399},{"$f":"BY69*(1+Control!$E$2)","v":182.86155149490241},{"$f":"BZ69*(1+Control!$E$2)","v":184.18210177415403},{"$f":"CA69*(1+Control!$E$2)","v":185.51218851980138},{"$f":"CB69*(1+Control!$E$2)","v":186.85188060024757},{"$f":"CC69*(1+Control!$E$2)","v":188.20124738123013},{"$f":"CD69*(1+Control!$E$2)","v":189.56035872941811},{"$f":"CE69*(1+Control!$E$2)","v":190.92928501605911},{"$f":"CF69*(1+Control!$E$2)","v":192.30809712053997},{"$f":"CG69*(1+Control!$E$2)","v":193.69686643415662},{"$f":"CH69*(1+Control!$E$2)","v":195.09566486372478},{"$f":"CI69*(1+Control!$E$2)","v":196.5045648353771},{"$f":"CJ69*(1+Control!$E$2)","v":197.92363929825569},{"$f":"CK69*(1+Control!$E$2)","v":199.35296172831841},{"$f":"CL69*(1+Control!$E$2)","v":200.79260613211318},{"$f":"CM69*(1+Control!$E$2)","v":202.2426470506889},{"$f":"CN69*(1+Control!$E$2)","v":203.70315956333798}]
[null,"Stonnington (C)",null,{"$f":"D70*(1+Control!$E$2)","v":1452.8409090909099},{"$f":"E70*(1+Control!$E$2)","v":1180.1136363636306},{"$f":"F70*(1+Control!$E$2)","v":1367.6136363636397},{"$f":"G70*(1+Control!$E$2)","v":1212.5},{"$f":"H70*(1+Control!$E$2)","v":1690.3409090909099},{"$f":"I70*(1+Control!$E$2)","v":1573.2954545454504},{"$f":"J70*(1+Control!$E$2)","v":1425.5681818181802},{"$f":"K70*(1+Control!$E$2)","v":849.43181818181984},{"$f":"L70*(1+Control!$E$2)","v":476.13636363636942},{"$f":"M70*(1+Control!$E$2)","v":1224.600961768565},{"$f":"N70*(1+Control!$E$2)","v":871.36080214521826},{"$f":"O70*(1+Control!$E$2)","v":882.42582119522922},{"$f":"P70*(1+Control!$E$2)","v":893.63134994715438},{"$f":"Q70*(1+Control!$E$2)","v":904.97917267056437},{"$f":"R70*(1+Control!$E$2)","v":916.47109629256192},{"$f":"S70*(1+Control!$E$2)","v":928.98700340279902},{"$f":"T70*(1+Control!$E$2)","v":940.79495221831166},{"$f":"U70*(1+Control!$E$2)","v":952.75298672363533},{"$f":"V70*(1+Control!$E$2)","v":964.86301459255628},{"$f":"W70*(1+Control!$E$2)","v":977.12696774638971},{"$f":"X70*(1+Control!$E$2)","v":1000.4799238029591},{"$f":"Y70*(1+Control!$E$2)","v":1013.3370894827931},{"$f":"Z70*(1+Control!$E$2)","v":1026.3594825753353},{"$f":"AA70*(1+Control!$E$2)","v":1039.5492264178301},{"$f":"AB70*(1+Control!$E$2)","v":1052.9084716344369},{"$f":"AC70*(1+Control!$E$2)","v":1066.4393964870033},{"$f":"AD70*(1+Control!$E$2)","v":1080.1442072302234},{"$f":"AE70*(1+Control!$E$2)","v":1094.0251384713702},{"$f":"AF70*(1+Control!$E$2)","v":1108.0844535346114},{"$f":"AG70*(1+Control!$E$2)","v":1122.3244448301557},{"$f":"AH70*(1+Control!$E$2)","v":1136.7474342279093},{"$f":"AI70*(1+Control!$E$2)","v":1151.3557734361893},{"$f":"AJ70*(1+Control!$E$2)","v":1166.1518443850036},{"$f":"AK70*(1+Control!$E$2)","v":1181.1380596146773},{"$f":"AL70*(1+Control!$E$2)","v":1196.3168626690094},{"$f":"AM70*(1+Control!$E$2)","v":1211.6907284937406},{"$f":"AN70*(1+Control!$E$2)","v":1227.2621638402052},{"$f":"AO70*(1+Control!$E$2)","v":1243.0337076739488},{"$f":"AP70*(1+Control!$E$2)","v":1259.0079315888397},{"$f":"AQ70*(1+Control!$E$2)","v":2566.7623119256496},{"$f":"AR70*(1+Control!$E$2)","v":1308.1728980249136},{"$f":"AS70*(1+Control!$E$2)","v":1324.9842255564181},{"$f":"AT70*(1+Control!$E$2)","v":1342.0115954274479},{"$f":"AU70*(1+Control!$E$2)","v":1359.2577839976548},{"$f":"AV70*(1+Control!$E$2)","v":1376.7256033058402},{"$f":"AW70*(1+Control!$E$2)","v":1394.4179015281225},{"$f":"AX70*(1+Control!$E$2)","v":1412.3375634426884},{"$f":"AY70*(1+Control!$E$2)","v":1430.4875108998567},{"$f":"AZ70*(1+Control!$E$2)","v":1448.8707032988168},{"$f":"BA70*(1+Control!$E$2)","v":1467.4901380697884},{"$f":"BB70*(1+Control!$E$2)","v":1486.3488511631294},{"$f":"BC70*(1+Control!$E$2)","v":1505.4499175441197},{"$f":"BD70*(1+Control!$E$2)","v":1524.7964516944012},{"$f":"BE70*(1+Control!$E$2)","v":1544.3916081198404},{"$f":"BF70*(1+Control!$E$2)","v":1564.2385818648108},{"$f":"BG70*(1+Control!$E$2)","v":1584.3406090332974},{"$f":"BH70*(1+Control!$E$2)","v":1604.700967316312},{"$f":"BI70*(1+Control!$E$2)","v":1625.3229765265496},{"$f":"BJ70*(1+Control!$E$2)","v":1646.2099991396644},{"$f":"BK70*(1+Control!$E$2)","v":1667.3654408423135},{"$f":"BL70*(1+Control!$E$2)","v":1688.7927510877671},{"$f":"BM70*(1+Control!$E$2)","v":1710.4954236582489},{"$f":"BN70*(1+Control!$E$2)","v":1732.4769972343893},{"$f":"BO70*(1+Control!$E$2)","v":1754.741055972554},{"$f":"BP70*(1+Control!$E$2)","v":1777.2912300890312},{"$f":"BQ70*(1+Control!$E$2)","v":1800.1311964520391},{"$f":"BR70*(1+Control!$E$2)","v":1823.2646791812294},{"$f":"BS70*(1+Control!$E$2)","v":1846.6954502548469},{"$f":"BT70*(1+Control!$E$2)","v":1870.4273301248759},{"$f":"BU70*(1+Control!$E$2)","v":1894.4641883399163},{"$f":"BV70*(1+Control!$E$2)","v":1918.8099441761915},{"$f":"BW70*(1+Control!$E$2)","v":1943.4685672763226},{"$f":"BX70*(1+Control!$E$2)","v":1968.4440782970705},{"$f":"BY70*(1+Control!$E$2)","v":1993.7405495644816},{"$f":"BZ70*(1+Control!$E$2)","v":2019.3621057381279},{"$f":"CA70*(1+Control!$E$2)","v":2045.3129244834963},{"$f":"CB70*(1+Control!$E$2)","v":2071.5972371533826},{"$f":"CC70*(1+Control!$E$2)","v":2098.2193294775061},{"$f":"CD70*(1+Control!$E$2)","v":2125.1835422616205},{"$f":"CE70*(1+Control!$E$2)","v":2152.4942720951731},{"$f":"CF70*(1+Control!$E$2)","v":2180.1559720680598},{"$f":"CG70*(1+Control!$E$2)","v":2208.1731524970382},{"$f":"CH70*(1+Control!$E$2)","v":2236.550381660636},{"$f":"CI70*(1+Control!$E$2)","v":2265.2922865446453},{"$f":"CJ70*(1+Control!$E$2)","v":2294.4035535959119},{"$f":"CK70*(1+Control!$E$2)","v":2323.8889294871478},{"$f":"CL70*(1+Control!$E$2)","v":2353.7532218902197},{"$f":"CM70*(1+Control!$E$2)","v":2384.0013002606429},{"$f":"CN70*(1+Control!$E$2)","v":2414.6380966311335}]
[null,"Whitehorse (C)",null,{"$f":"D71*(1+Control!$E$2)","v":1020.6730769230762},{"$f":"E71*(1+Control!$E$2)","v":1163.4615384615336},{"$f":"F71*(1+Control!$E$2)","v":1076.442307692314},{"$f":"G71*(1+Control!$E$2)","v":1134.1346153846098},{"$f":"H71*(1+Control!$E$2)","v":1424.0384615384664},{"$f":"I71*(1+Control!$E$2)","v":1741.3461538461434},{"$f":"J71*(1+Control!$E$2)","v":1447.1153846153902},{"$f":"K71*(1+Control!$E$2)","v":1204.8076923076951},{"$f":"L71*(1+Control!$E$2)","v":940.38461538460979},{"$f":"M71*(1+Control!$E$2)","v":1340.2403271283583},{"$f":"N71*(1+Control!$E$2)","v":1157.4222484954771},{"$f":"O71*(1+Control!$E$2)","v":1172.6052347165023},{"$f":"P71*(1+Control!$E$2)","v":1187.9873903166299},{"$f":"Q71*(1+Control!$E$2)","v":1203.5713279861739},{"$f":"R71*(1+Control!$E$2)","v":1219.3596946886282},{"$f":"S71*(1+Control!$E$2)","v":1162.958664257385},{"$f":"T71*(1+Control!$E$2)","v":1177.3202399316142},{"$f":"U71*(1+Control!$E$2)","v":1191.8591691629081},{"$f":"V71*(1+Control!$E$2)","v":1206.5776421207192},{"$f":"W71*(1+Control!$E$2)","v":1221.4778760212903},{"$f":"X71*(1+Control!$E$2)","v":1168.1083248762661},{"$f":"Y71*(1+Control!$E$2)","v":1181.7349438880592},{"$f":"Z71*(1+Control!$E$2)","v":1195.520524822914},{"$f":"AA71*(1+Control!$E$2)","v":1209.4669220581636},{"$f":"AB71*(1+Control!$E$2)","v":1223.576011603418},{"$f":"AC71*(1+Control!$E$2)","v":1237.8496913529671},{"$f":"AD71*(1+Control!$E$2)","v":1252.289881341112},{"$f":"AE71*(1+Control!$E$2)","v":1266.8985240002803},{"$f":"AF71*(1+Control!$E$2)","v":1281.6775844225958},{"$f":"AG71*(1+Control!$E$2)","v":1296.6290506238875},{"$f":"AH71*(1+Control!$E$2)","v":1311.7549338114441},{"$f":"AI71*(1+Control!$E$2)","v":1327.0572686541891},{"$f":"AJ71*(1+Control!$E$2)","v":1342.5381135567295},{"$f":"AK71*(1+Control!$E$2)","v":1358.1995509359695},{"$f":"AL71*(1+Control!$E$2)","v":1374.0436875014166},{"$f":"AM71*(1+Control!$E$2)","v":1390.0726545384532},{"$f":"AN71*(1+Control!$E$2)","v":1406.2886081950819},{"$f":"AO71*(1+Control!$E$2)","v":1422.6937297718723},{"$f":"AP71*(1+Control!$E$2)","v":1439.2902260155643},{"$f":"AQ71*(1+Control!$E$2)","v":2929.1466279210181},{"$f":"AR71*(1+Control!$E$2)","v":1490.250418163796},{"$f":"AS71*(1+Control!$E$2)","v":1507.6349999255763},{"$f":"AT71*(1+Control!$E$2)","v":1525.222382290176},{"$f":"AU71*(1+Control!$E$2)","v":1543.0149310367779},{"$f":"AV71*(1+Control!$E$2)","v":1561.0150395429446},{"$f":"AW71*(1+Control!$E$2)","v":1579.2251291061257},{"$f":"AX71*(1+Control!$E$2)","v":1597.647649269602},{"$f":"AY71*(1+Control!$E$2)","v":1616.2850781518864},{"$f":"AZ71*(1+Control!$E$2)","v":1635.1399227800357},{"$f":"BA71*(1+Control!$E$2)","v":1654.2147194270547},{"$f":"BB71*(1+Control!$E$2)","v":1673.5120339528112},{"$f":"BC71*(1+Control!$E$2)","v":1693.0344621494442},{"$f":"BD71*(1+Control!$E$2)","v":1712.7846300904093},{"$f":"BE71*(1+Control!$E$2)","v":1732.7651944836543},{"$f":"BF71*(1+Control!$E$2)","v":1752.9788430291228},{"$f":"BG71*(1+Control!$E$2)","v":1773.4282947802785},{"$f":"BH71*(1+Control!$E$2)","v":1794.1163005097405},{"$f":"BI71*(1+Control!$E$2)","v":1815.0456430794657},{"$f":"BJ71*(1+Control!$E$2)","v":1836.2191378149328},{"$f":"BK71*(1+Control!$E$2)","v":1857.6396328840019},{"$f":"BL71*(1+Control!$E$2)","v":1879.3100096799208},{"$f":"BM71*(1+Control!$E$2)","v":1901.2331832088785},{"$f":"BN71*(1+Control!$E$2)","v":1923.412102482398},{"$f":"BO71*(1+Control!$E$2)","v":1945.8497509136942},{"$f":"BP71*(1+Control!$E$2)","v":1968.5491467189786},{"$f":"BQ71*(1+Control!$E$2)","v":1991.5133433239316},{"$f":"BR71*(1+Control!$E$2)","v":2014.7454297737568},{"$f":"BS71*(1+Control!$E$2)","v":2038.248531149402},{"$f":"BT71*(1+Control!$E$2)","v":2062.0258089872368},{"$f":"BU71*(1+Control!$E$2)","v":2086.0804617049143},{"$f":"BV71*(1+Control!$E$2)","v":2110.415725031271},{"$f":"BW71*(1+Control!$E$2)","v":2135.0348724417199},{"$f":"BX71*(1+Control!$E$2)","v":2159.9412155984464},{"$f":"BY71*(1+Control!$E$2)","v":2185.1381047961331},{"$f":"BZ71*(1+Control!$E$2)","v":2210.6289294123781},{"$f":"CA71*(1+Control!$E$2)","v":2236.4171183637154},{"$f":"CB71*(1+Control!$E$2)","v":2262.5061405668021},{"$f":"CC71*(1+Control!$E$2)","v":2288.8995054052793},{"$f":"CD71*(1+Control!$E$2)","v":2315.6007632015098},{"$f":"CE71*(1+Control!$E$2)","v":2342.6135056942439},{"$f":"CF71*(1+Control!$E$2)","v":2369.9413665220345},{"$f":"CG71*(1+Control!$E$2)","v":2397.5880217115264},{"$f":"CH71*(1+Control!$E$2)","v":2425.5571901724397},{"$f":"CI71*(1+Control!$E$2)","v":2453.8526341975376},{"$f":"CJ71*(1+Control!$E$2)","v":2482.4781599687049},{"$f":"CK71*(1+Control!$E$2)","v":2511.437618069067},{"$f":"CL71*(1+Control!$E$2)","v":2540.7349040009285},{"$f":"CM71*(1+Control!$E$2)","v":2570.3739587096788},{"$f":"CN71*(1+Control!$E$2)","v":2600.3587691140274}]
[null,"Yarra Ranges (S)",null,{"$f":"D72*(1+Control!$E$2)","v":445.8333333333303},{"$f":"E72*(1+Control!$E$2)","v":480.55555555555657},{"$f":"F72*(1+Control!$E$2)","v":493.51851851851279},{"$f":"G72*(1+Control!$E$2)","v":658.79629629629562},{"$f":"H72*(1+Control!$E$2)","v":849.53703703704377},{"$f":"I72*(1+Control!$E$2)","v":760.64814814814781},{"$f":"J72*(1+Control!$E$2)","v":602.77777777777374},{"$f":"K72*(1+Control!$E$2)","v":603.24074074073906},{"$f":"L72*(1+Control!$E$2)","v":222.68518518519159},{"$f":"M72*(1+Control!$E$2)","v":588.77620934837068},{"$f":"N72*(1+Control!$E$2)","v":634.64479781873706},{"$f":"O72*(1+Control!$E$2)","v":640.04087412875379},{"$f":"P72*(1+Control!$E$2)","v":645.48283065346368},{"$f":"Q72*(1+Control!$E$2)","v":650.97105748995091},{"$f":"R72*(1+Control!$E$2)","v":656.50594805219043},{"$f":"S72*(1+Control!$E$2)","v":685.86673971562959},{"$f":"T72*(1+Control!$E$2)","v":691.90777251065811},{"$f":"U72*(1+Control!$E$2)","v":698.00201400516926},{"$f":"V72*(1+Control!$E$2)","v":704.14993285503442},{"$f":"W72*(1+Control!$E$2)","v":710.35200184405767},{"$f":"X72*(1+Control!$E$2)","v":707.58174818786756},{"$f":"Y72*(1+Control!$E$2)","v":713.73553744473611},{"$f":"Z72*(1+Control!$E$2)","v":719.94284577882354},{"$f":"AA72*(1+Control!$E$2)","v":726.2041386418241},{"$f":"AB72*(1+Control!$E$2)","v":732.51988553340198},{"$f":"AC72*(1+Control!$E$2)","v":738.89056003654332},{"$f":"AD72*(1+Control!$E$2)","v":745.3166398527901},{"$f":"AE72*(1+Control!$E$2)","v":751.79860683825609},{"$f":"AF72*(1+Control!$E$2)","v":758.33694703987931},{"$f":"AG72*(1+Control!$E$2)","v":764.93215073152896},{"$f":"AH72*(1+Control!$E$2)","v":771.5847124510401},{"$f":"AI72*(1+Control!$E$2)","v":778.29513103715726},{"$f":"AJ72*(1+Control!$E$2)","v":785.06390966707841},{"$f":"AK72*(1+Control!$E$2)","v":791.89155589403526},{"$f":"AL72*(1+Control!$E$2)","v":798.77858168540115},{"$f":"AM72*(1+Control!$E$2)","v":805.7255034611444},{"$f":"AN72*(1+Control!$E$2)","v":812.7328421324637},{"$f":"AO72*(1+Control!$E$2)","v":819.80112314087819},{"$f":"AP72*(1+Control!$E$2)","v":826.9308764976995},{"$f":"AQ72*(1+Control!$E$2)","v":1675.4995802125995},{"$f":"AR72*(1+Control!$E$2)","v":848.69434015405204},{"$f":"AS72*(1+Control!$E$2)","v":856.07537580992357},{"$f":"AT72*(1+Control!$E$2)","v":863.52060381957926},{"$f":"AU72*(1+Control!$E$2)","v":871.03058245946158},{"$f":"AV72*(1+Control!$E$2)","v":878.60587486136865},{"$f":"AW72*(1+Control!$E$2)","v":886.24704905445469},{"$f":"AX72*(1+Control!$E$2)","v":893.95467800810366},{"$f":"AY72*(1+Control!$E$2)","v":901.72933967474819},{"$f":"AZ72*(1+Control!$E$2)","v":909.57161703327074},{"$f":"BA72*(1+Control!$E$2)","v":917.48209813256835},{"$f":"BB72*(1+Control!$E$2)","v":925.46137613589963},{"$f":"BC72*(1+Control!$E$2)","v":933.51004936510435},{"$f":"BD72*(1+Control!$E$2)","v":941.62872134567806},{"$f":"BE72*(1+Control!$E$2)","v":949.81800085184659},{"$f":"BF72*(1+Control!$E$2)","v":958.07850195240462},{"$f":"BG72*(1+Control!$E$2)","v":966.4108440565542},{"$f":"BH72*(1+Control!$E$2)","v":974.81565196056181},{"$f":"BI72*(1+Control!$E$2)","v":983.2935558943791},{"$f":"BJ72*(1+Control!$E$2)","v":991.84519156915485},{"$f":"BK72*(1+Control!$E$2)","v":1000.4712002246924},{"$f":"BL72*(1+Control!$E$2)","v":1009.1722286776167},{"$f":"BM72*(1+Control!$E$2)","v":1017.9489293699044},{"$f":"BN72*(1+Control!$E$2)","v":1026.8019604177789},{"$f":"BO72*(1+Control!$E$2)","v":1035.7319856610047},{"$f":"BP72*(1+Control!$E$2)","v":1044.7396747127459},{"$f":"BQ72*(1+Control!$E$2)","v":1053.8257030097338},{"$f":"BR72*(1+Control!$E$2)","v":1062.9907518629989},{"$f":"BS72*(1+Control!$E$2)","v":1072.2355085087474},{"$f":"BT72*(1+Control!$E$2)","v":1081.5606661601487},{"$f":"BU72*(1+Control!$E$2)","v":1090.9669240591393},{"$f":"BV72*(1+Control!$E$2)","v":1100.4549875289558},{"$f":"BW72*(1+Control!$E$2)","v":1110.0255680269402},{"$f":"BX72*(1+Control!$E$2)","v":1119.6793831979448},{"$f":"BY72*(1+Control!$E$2)","v":1129.4171569281207},{"$f":"BZ72*(1+Control!$E$2)","v":1139.2396193992863},{"$f":"CA72*(1+Control!$E$2)","v":1149.1475071434434},{"$f":"CB72*(1+Control!$E$2)","v":1159.1415630983283},{"$f":"CC72*(1+Control!$E$2)","v":1169.2225366628008},{"$f":"CD72*(1+Control!$E$2)","v":1179.3911837532869},{"$f":"CE72*(1+Control!$E$2)","v":1189.648266860404},{"$f":"CF72*(1+Control!$E$2)","v":1199.9945551060409},{"$f":"CG72*(1+Control!$E$2)","v":1210.4308243009473},{"$f":"CH72*(1+Control!$E$2)","v":1220.9578570033409},{"$f":"CI72*(1+Control!$E$2)","v":1231.5764425770612},{"$f":"CJ72*(1+Control!$E$2)","v":1242.2873772510502},{"$f":"CK72*(1+Control!$E$2)","v":1253.0914641790332},{"$f":"CL72*(1+Control!$E$2)","v":1263.9895134997278},{"$f":"CM72*(1+Control!$E$2)","v":1274.982342397434},{"$f":"CN72*(1+Control!$E$2)","v":1286.0707751636073}]
[null,"Multinet",null,{"$f":"D73*(1+Control!$E$2)","v":22945.695615475997},{"$f":"E73*(1+Control!$E$2)","v":26169.05819341584},{"$f":"F73*(1+Control!$E$2)","v":25820.225714970438},{"$f":"G73*(1+Control!$E$2)","v":26644.570103304141},{"$f":"H73*(1+Control!$E$2)","v":31069.885582599527},{"$f":"I73*(1+Control!$E$2)","v":32598.810707134253},{"$f":"J73*(1+Control!$E$2)","v":29454.599250247993},{"$f":"K73*(1+Control!$E$2)","v":26562.238156842359},{"$f":"L73*(1+Control!$E$2)","v":16540.175704291032},{"$f":"M73*(1+Control!$E$2)","v":30375.941932428395},{"$f":"N73*(1+Control!$E$2)","v":23082.690680364612},{"$f":"O73*(1+Control!$E$2)","v":23569.005237636156},{"$f":"P73*(1+Control!$E$2)","v":24068.035423605179},{"$f":"Q73*(1+Control!$E$2)","v":24580.159003415029},{"$f":"R73*(1+Control!$E$2)","v":25105.765727808175},{"$f":"S73*(1+Control!$E$2)","v":21733.495546362246},{"$f":"T73*(1+Control!$E$2)","v":22081.643897376489},{"$f":"U73*(1+Control!$E$2)","v":22436.070814260747},{"$f":"V73*(1+Control!$E$2)","v":22796.899738219217},{"$f":"W73*(1+Control!$E$2)","v":23164.256680215767},{"$f":"X73*(1+Control!$E$2)","v":21056.396219258895},{"$f":"Y73*(1+Control!$E$2)","v":21345.656971094722},{"$f":"Z73*(1+Control!$E$2)","v":21639.232056113833},{"$f":"AA73*(1+Control!$E$2)","v":21937.190683677036},{"$f":"AB73*(1+Control!$E$2)","v":22239.603244916943},{"$f":"AC73*(1+Control!$E$2)","v":22546.54133400647},{"$f":"AD73*(1+Control!$E$2)","v":22858.077769824013},{"$f":"AE73*(1+Control!$E$2)","v":23174.286618030455},{"$f":"AF73*(1+Control!$E$2)","v":23495.24321355304},{"$f":"AG73*(1+Control!$E$2)","v":23821.024183503469},{"$f":"AH73*(1+Control!$E$2)","v":24151.707470523543},{"$f":"AI73*(1+Control!$E$2)","v":24487.372356566775},{"$f":"AJ73*(1+Control!$E$2)","v":24828.099487134314},{"$f":"AK73*(1+Control!$E$2)","v":25173.970895969251},{"$f":"AL73*(1+Control!$E$2)","v":25525.070030211064},{"$f":"AM73*(1+Control!$E$2)","v":25881.48177603347},{"$f":"AN73*(1+Control!$E$2)","v":26243.292484762496},{"$f":"AO73*(1+Control!$E$2)","v":26610.589999490476},{"$f":"AP73*(1+Control!$E$2)","v":26983.463682193833},{"$f":"AQ73*(1+Control!$E$2)","v":55108.309201546363},{"$f":"AR73*(1+Control!$E$2)","v":28136.458725162956},{"$f":"AS73*(1+Control!$E$2)","v":28532.562055451272},{"$f":"AT73*(1+Control!$E$2)","v":28934.712132576678},{"$f":"AU73*(1+Control!$E$2)","v":29343.008030817728},{"$f":"AV73*(1+Control!$E$2)","v":29757.550548143336},{"$f":"AW73*(1+Control!$E$2)","v":30178.442237741256},{"$f":"AX73*(1+Control!$E$2)","v":30605.787440135027},{"$f":"AY73*(1+Control!$E$2)","v":31039.692315934226},{"$f":"AZ73*(1+Control!$E$2)","v":31480.264879187744},{"$f":"BA73*(1+Control!$E$2)","v":31927.615031396854},{"$f":"BB73*(1+Control!$E$2)","v":32381.854596153134},{"$f":"BC73*(1+Control!$E$2)","v":32843.097354463825},{"$f":"BD73*(1+Control!$E$2)","v":33311.459080730565},{"$f":"BE73*(1+Control!$E$2)","v":33787.057579434768},{"$f":"BF73*(1+Control!$E$2)","v":34270.012722512183},{"$f":"BG73*(1+Control!$E$2)","v":34760.446487452718},{"$f":"BH73*(1+Control!$E$2)","v":35258.482996130479},{"$f":"BI73*(1+Control!$E$2)","v":35764.248554364312},{"$f":"BJ73*(1+Control!$E$2)","v":36277.871692270855},{"$f":"BK73*(1+Control!$E$2)","v":36799.483205347788},{"$f":"BL73*(1+Control!$E$2)","v":37329.216196392663},{"$f":"BM73*(1+Control!$E$2)","v":37867.206118190079},{"$f":"BN73*(1+Control!$E$2)","v":38413.59081704868},{"$f":"BO73*(1+Control!$E$2)","v":38968.510577160632},{"$f":"BP73*(1+Control!$E$2)","v":39532.108165819081},{"$f":"BQ73*(1+Control!$E$2)","v":40104.52887950989},{"$f":"BR73*(1+Control!$E$2)","v":40685.92059089744},{"$f":"BS73*(1+Control!$E$2)","v":41276.433796705678},{"$f":"BT73*(1+Control!$E$2)","v":41876.221666528727},{"$f":"BU73*(1+Control!$E$2)","v":42485.440092599019},{"$f":"BV73*(1+Control!$E$2)","v":43104.24774049141},{"$f":"BW73*(1+Control!$E$2)","v":43732.806100832531},{"$f":"BX73*(1+Control!$E$2)","v":44371.279542002594},{"$f":"BY73*(1+Control!$E$2)","v":45019.835363849415},{"$f":"BZ73*(1+Control!$E$2)","v":45678.643852462992},{"$f":"CA73*(1+Control!$E$2)","v":46347.878335997229},{"$f":"CB73*(1+Control!$E$2)","v":47027.7152415819},{"$f":"CC73*(1+Control!$E$2)","v":47718.33415333007},{"$f":"CD73*(1+Control!$E$2)","v":48419.917871496873},{"$f":"CE73*(1+Control!$E$2)","v":49132.65247276111},{"$f":"CF73*(1+Control!$E$2)","v":49856.727371690213},{"$f":"CG73*(1+Control!$E$2)","v":50592.335383418249},{"$f":"CH73*(1+Control!$E$2)","v":51339.672787505551},{"$f":"CI73*(1+Control!$E$2)","v":52098.939393084729},{"$f":"CJ73*(1+Control!$E$2)","v":52870.33860525873},{"$f":"CK73*(1+Control!$E$2)","v":53654.077492792276},{"$f":"CL73*(1+Control!$E$2)","v":54450.366857114132},{"$f":"CM73*(1+Control!$E$2)","v":55259.421302709379},{"$f":"CN73*(1+Control!$E$2)","v":56081.459308829508}]

{"sheet":"GSP","index":11,"n_rows":278,"n_cols":12,"rows_kept":278,"cut":false,"hidden":false,"merged":[]}
["Qtr","Year","Qtr No:","GSP",null,null,null,null,null,"Victoria ;  Gross state product: Chain volume measures ;",null,"5220.0 Australian National Accounts: State Accounts"]
[3,2011,4,{"$f":"FORECAST($A2,OFFSET(J$32:J$121,MATCH($A2,$H$32:$H$121,1)-1,0,2),OFFSET($H$32:$H$121,MATCH($A2,$H$32:$H$121,1)-1,0,2))","v":376014.5},null,null,null,null,"Unit","$ Millions",null,"Table 1. Gross State Product, Chain volume measures and current prices"]
[4,2012,1,{"$f":"FORECAST($A3,OFFSET(J$32:J$121,MATCH($A3,$H$32:$H$121,1)-1,0,2),OFFSET($H$32:$H$121,MATCH($A3,$H$32:$H$121,1)-1,0,2))","v":378218.25},null,null,null,null,"Series Type","Original"]
[5,2012,2,380422,null,null,null,null,"Data Type","DERIVED"]
[{"$f":"A4+1","v":6},2012,3,381261,null,null,null,null,"Frequency","Annual"]
[7,2012,4,382100,null,null,null,null,"Collection Month",6]
[8,{"$f":"B3+1","v":2013},{"$f":"C3","v":1},382939,null,null,null,null,"Series Start","1990-06-01"]
[9,{"$f":"B4+1","v":2013},2,383778,null,null,null,null,"Series End","2020-06-01"]
[10,2013,3,385708.75,null,null,null,null,"No. Obs",31]
[11,2013,4,387639.5,null,null,null,null,"Series ID","A2336347R","Growth"]
[12,2014,1,389570.25,null,null,null,null,"1990-06-01",203699]
[13,2014,2,391501,null,null,null,null,"1991-06-01",198395,{"$f":"J12/J11-1","v":-2.6038419432594218E-2}]
[14,2014,3,394254.25,null,null,null,null,"1992-06-01",195546,{"$f":"J13/J12-1","v":-1.4360240933491308E-2}]
[15,2014,4,397007.5,null,null,null,null,"1993-06-01",205230,4.9522874413181484E-2]
[16,2015,1,399760.75,null,null,null,null,"1994-06-01",212112,3.3533109194562094E-2]
[17,2015,2,402514,null,null,null,null,"1995-06-01",218533,3.027174322999171E-2]
[18,2015,3,406039,null,null,null,null,"1996-06-01",226098,3.4617197402680544E-2]
[19,2015,4,409564,null,null,null,null,"1997-06-01",236171,4.4551477677821083E-2]
[20,2016,1,413089,null,null,null,null,"1998-06-01",249909,5.816971601085652E-2]
[21,2016,2,416614,null,null,null,null,"1999-06-01",265445,6.2166628652829736E-2]
[22,2016,3,420592,null,null,null,null,"2000-06-01",274479,3.4033415585149385E-2]
[23,2016,4,424570,null,null,null,null,"2001-06-01",279467,1.8172610655095678E-2]
[24,2017,1,428548,null,null,null,null,"2002-06-01",290262,3.86271008741641E-2]
[25,2017,2,432526,null,null,null,null,"2003-06-01",297993,2.6634557744382725E-2]
[26,2017,3,436218,null,null,null,null,"2004-06-01",308438,3.5051158919840342E-2]
[27,2017,4,439910,null,null,null,null,"2005-06-01",321695,4.2981085339679259E-2]
[28,2018,1,443602,null,null,null,null,"2006-06-01",329216,2.3379287834750295E-2]
[29,2018,2,447294,null,null,null,null,"2007-06-01",338689,2.8774421656298621E-2]
[30,2018,3,450782.5,null,null,null,null,"2008-06-01",351024,3.6419842392283241E-2]
[31,2018,4,454271,null,null,null,null,"2009-06-01",357970,1.9787820775787335E-2]
[32,2019,1,457759.5,null,null,null,null,"2010-06-01",360958,8.3470681900716936E-3]
[33,2019,2,461248,null,null,null,1,"2011-06-01",371607,2.9502047329606151E-2]
[34,2019,3,460659.75,null,null,null,5,"2012-06-01",380422,2.3721296961574989E-2]
[35,2019,4,460071.5,null,null,null,{"$f":"H33+4","v":9},"2013-06-01",383778,8.8217821261651341E-3]
[36,2020,1,459483.25,null,null,null,{"$f":"H34+4","v":13},"2014-06-01",391501,2.0123613130507811E-2]
[37,2020,2,458895,null,null,null,17,"2015-06-01",402514,2.8130196346880298E-2]
[38,2020,3,456600.52499999997,null,null,null,21,"2016-06-01",416614,3.5029837471491687E-2]
[39,2020,4,454306.04999999993,null,null,null,25,"2017-06-01",432526,3.8193627674538044E-2]
[40,2021,1,452011.57499999995,null,null,null,29,"2018-06-01",447294,3.4143612175915328E-2]
[41,2021,2,449717.10000000003,null,null,null,33,"2019-06-01",461248,3.1196483744472259E-2]
[42,2021,3,457025.00287500001,null,null,null,37,"2020-06-01",458895,-5.1013771333425773E-3]
[43,2021,4,464332.90574999998,null,null,null,41,"2021-06-01",{"$f":"J41*(1+K42)","v":449717.1},-0.02]
[44,2022,1,471640.80862500001,null,null,null,45,"2022-06-01",{"$f":"J42*(1+K43)","v":478948.71149999998},6.5000000000000002E-2]
[45,2022,2,478948.71150000003,null,null,null,49,"2023-06-01",494514.54462374997,3.2500000000000001E-2]
[46,2022,3,482840.16978093749,null,null,null,53,"2024-06-01",508113.69460090314,2.75E-2]
[47,2022,4,486731.628061875,null,null,null,57,"2025-06-01",522086.82120242802,2.75E-2]
[48,2023,1,490623.08634281252,null,null,null,61,"2026-06-01",535661.07855369116,2.6000000000000002E-2]
[49,2023,2,494514.54462374997,null,null,null,65,"2027-06-01",549588.26659608714,2.6000000000000002E-2]
[50,2023,3,497914.33211803826,null,null,null,69,"2028-06-01",563877.56152758538,2.6000000000000002E-2]
[51,2023,4,501314.11961232655,null,null,null,73,"2029-06-01",578538.37812730263,2.6000000000000002E-2]
[52,2024,1,504713.90710661485,null,null,null,77,"2030-06-01",593580.37595861254,2.6000000000000002E-2]
[53,2024,2,508113.69460090314,null,null,null,81,"2031-06-01",609013.46573353652,2.6000000000000002E-2]
[54,2024,3,511606.97625128436,null,null,null,85,"2032-06-01",624847.81584260846,2.6000000000000002E-2]
[55,2024,4,515100.25790166558,null,null,null,89,"2033-06-01",641093.8590545163,2.6000000000000002E-2]
[56,2025,1,518593.5395520468,null,null,null,93,"2034-06-01",657762.2993899337,2.6000000000000002E-2]
[57,2025,2,522086.82120242802,null,null,null,97,"2035-06-01",674864.11917407194,2.6000000000000002E-2]
[58,2025,3,525480.38554024382,null,null,null,101,"2036-06-01",692410.58627259778,2.6000000000000002E-2]
[59,2025,4,528873.94987805956,null,null,null,105,"2037-06-01",710413.26151568536,2.6000000000000002E-2]
[60,2026,1,532267.51421587542,null,null,null,109,"2038-06-01",728884.00631509314,2.6000000000000002E-2]
[61,2026,2,535661.07855369116,null,null,null,113,"2039-06-01",747834.9904792856,2.6000000000000002E-2]
[62,2026,3,539142.87556429021,null,null,null,117,"2040-06-01",767278.700231747,2.6000000000000002E-2]
[63,2026,4,542624.67257488915,null,null,null,121,"2041-06-01",787227.94643777248,2.6000000000000002E-2]
[64,2027,1,546106.46958548808,null,null,null,125,"2042-06-01",807695.87304515461,2.6000000000000002E-2]
[65,2027,2,549588.26659608714,null,null,null,129,"2043-06-01",828695.96574432869,2.6000000000000002E-2]
[66,2027,3,553160.59032896161,null,null,null,133,"2044-06-01",850242.06085368129,2.6000000000000002E-2]
[67,2027,4,556732.9140618362,null,null,null,137,"2045-06-01",872348.35443587706,2.6000000000000002E-2]
[68,2028,1,{"$f":"FORECAST($A67,OFFSET(J$32:J$121,MATCH($A67,$H$32:$H$121,1)-1,0,2),OFFSET($H$32:$H$121,MATCH($A67,$H$32:$H$121,1)-1,0,2))","v":560305.23779471079},null,null,null,141,"2046-06-01",895029.41165120993,2.6000000000000002E-2]
[69,2028,2,563877.56152758549,null,null,null,145,"2047-06-01",918300.17635414144,2.6000000000000002E-2]
[{"$f":"A68+1","v":70},2028,3,567542.76567751472,null,null,null,149,"2048-06-01",942175.98093934916,2.6000000000000002E-2]
[71,2028,4,571207.96982744406,null,null,null,153,"2049-06-01",966672.55644377228,2.6000000000000002E-2]
[72,2029,{"$f":"C67","v":1},574873.1739773734,null,null,null,157,"2050-06-01",991806.04291131033,2.6000000000000002E-2]
[73,{"$f":"B68+1","v":2029},2,578538.37812730263,null,null,null,161,"2051-06-01",1017593.0000270044,2.6000000000000002E-2]
[74,2029,3,582298.87758513005,null,null,null,165,"2052-06-01",1044050.4180277066,2.6000000000000002E-2]
[75,2029,4,586059.37704295758,null,null,null,169,"2053-06-01",1071195.728896427,2.6000000000000002E-2]
[76,2030,1,589819.87650078512,null,null,null,173,"2054-06-01",1099046.8178477341,2.6000000000000002E-2]
[77,2030,2,593580.37595861254,null,null,null,177,"2055-06-01",1127622.0351117752,2.6000000000000002E-2]
[78,2030,3,597438.6484023435,null,null,null,181,"2056-06-01",1156940.2080246813,2.6000000000000002E-2]
[79,2030,4,601296.92084607459,null,null,null,185,"2057-06-01",1187020.6534333231,2.6000000000000002E-2]
[80,2031,1,605155.19328980555,null,null,null,189,"2058-06-01",1217883.1904225897,2.6000000000000002E-2]
[81,2031,2,609013.46573353652,null,null,null,193,"2059-06-01",1249548.1533735769,2.6000000000000002E-2]
[82,2031,3,612972.0532608045,null,null,null,197,"2060-06-01",1282036.4053612899,2.6000000000000002E-2]
[83,2031,4,616930.64078807249,null,null,null,201,"2061-06-01",1315369.3519006835,2.6000000000000002E-2]
[84,2032,1,620889.22831534047,null,null,null,205,"2062-06-01",1349568.9550501013,2.6000000000000002E-2]
[85,2032,2,624847.81584260846,null,null,null,209,"2063-06-01",1384657.7478814039,2.6000000000000002E-2]
[86,2032,3,628909.32664558548,null,null,null,213,"2064-06-01",1420658.8493263205,2.6000000000000002E-2]
[87,2032,4,632970.83744856238,null,null,null,217,"2065-06-01",1457595.9794088048,2.6000000000000002E-2]
[88,2033,1,637032.34825153928,null,null,null,221,"2066-06-01",{"$f":"J86*(1+K87)","v":1495493.4748734338},2.6000000000000002E-2]
[89,2033,2,641093.8590545163,null,null,null,225,"2067-06-01",1534376.3052201432,2.6000000000000002E-2]
[90,2033,3,645260.96913837059,null,null,null,229,"2068-06-01",1574270.089155867,2.6000000000000002E-2]
[91,2033,4,649428.079222225,null,null,null,233,"2069-06-01",1615201.1114739196,2.6000000000000002E-2]
[92,2034,1,653595.18930607941,null,null,null,237,"2070-06-01",1657196.3403722416,2.6000000000000002E-2]
[93,2034,2,657762.29938993382,null,null,null,241,"2071-06-01",1700283.4452219198,2.6000000000000002E-2]
[94,2034,3,662037.75433596829,null,null,null,245,"2072-06-01",1744490.8147976897,2.6000000000000002E-2]
[95,2034,4,666313.20928200288,null,null,null,249,"2073-06-01",1789847.5759824296,2.6000000000000002E-2]
[96,2035,1,670588.66422803747,null,null,null,253,"2074-06-01",1836383.6129579728,2.6000000000000002E-2]
[97,2035,2,674864.11917407194,null,null,null,257,"2075-06-01",1884129.58689488,2.6000000000000002E-2]
[98,2035,3,679250.73594870348,null,null,null,261,"2076-06-01",1933116.9561541469,2.6000000000000002E-2]
[99,2035,4,683637.35272333492,null,null,null,265,"2077-06-01",1983377.9970141547,2.6000000000000002E-2]
[100,2036,1,688023.96949796635,null,null,null,{"$f":"H98+4","v":269},"2078-06-01",2034945.8249365226,2.6000000000000002E-2]
[101,2036,2,692410.58627259778,null,null,null,273,"2079-06-01",2087854.4163848723,2.6000000000000002E-2]
[102,2036,3,696911.25508336967,null,null,null,277,"2080-06-01",2142138.631210879,2.6000000000000002E-2]
[103,2036,4,701411.92389414157,null,null,null,281,"2081-06-01",2197834.2356223618,2.6000000000000002E-2]
[104,2037,1,705912.59270491346,null,null,null,285,"2082-06-01",2254977.9257485433,2.6000000000000002E-2]
[105,2037,2,710413.26151568524,null,null,null,289,"2083-06-01",2313607.3518180056,2.6000000000000002E-2]
[106,2037,3,715030.94771553716,null,null,null,293,"2084-06-01",2373761.1429652739,2.6000000000000002E-2]
[107,2037,4,719648.63391538919,null,null,null,297,"2085-06-01",2435478.9326823712,2.6000000000000002E-2]
[108,2038,1,724266.32011524111,null,null,null,301,"2086-06-01",2498801.3849321129,2.6000000000000002E-2]
[109,2038,2,728884.00631509314,null,null,null,305,"2087-06-01",2563770.2209403478,2.6000000000000002E-2]
[110,2038,3,733621.75235614134,null,null,null,309,"2088-06-01",2630428.2466847966,2.6000000000000002E-2]
[111,2038,4,738359.49839718943,null,null,null,313,"2089-06-01",2698819.3810986015,2.6000000000000002E-2]
[112,2039,1,743097.24443823751,null,null,null,317,"2090-06-01",2768988.6850071652,2.6000000000000002E-2]
[113,2039,2,747834.9904792856,null,null,null,321,"2091-06-01",2840982.3908173516,2.6000000000000002E-2]
[114,2039,3,752695.91791740095,null,null,null,325,"2092-06-01",2914847.9329786031,2.6000000000000002E-2]
[115,2039,4,757556.8453555163,null,null,null,329,"2093-06-01",2990633.9792360468,2.6000000000000002E-2]
[116,2040,1,762417.77279363165,null,null,null,333,"2094-06-01",3068390.4626961839,2.6000000000000002E-2]
[117,2040,2,767278.70023174712,null,null,null,337,"2095-06-01",3148168.614726285,2.6000000000000002E-2]
[118,2040,3,772266.0117832534,null,null,null,341,"2096-06-01",3230020.9987091683,2.6000000000000002E-2]
[119,2040,4,777253.3233347598,null,null,null,345,"2097-06-01",3314001.5446756068,2.6000000000000002E-2]
[120,2041,1,782240.6348862662,null,null,null,349,"2098-06-01",3400165.5848371726,2.6000000000000002E-2]
[121,2041,2,787227.94643777248,null,null,null,353,"2099-06-01",{"$f":"J119*(1+K120)","v":3488569.8900429392},2.5999999999999999E-2]
[122,2041,3,792344.92808961798,null,null,null,357,"2100-06-01",3579272.7071840558,2.5999999999999999E-2]
[123,2041,4,797461.90974146361]
[124,2042,1,802578.89139330911]
[125,2042,2,807695.8730451545]
[126,2042,3,812945.89621994807]
[127,2042,4,818195.91939474165]
[128,2043,1,823445.94256953511]
[129,2043,2,828695.9657443288]
[130,2043,3,834082.4895216669]
[131,2043,4,839469.01329900499]
[132,2044,1,{"$f":"FORECAST($A131,OFFSET(J$32:J$121,MATCH($A131,$H$32:$H$121,1)-1,0,2),OFFSET($H$32:$H$121,MATCH($A131,$H$32:$H$121,1)-1,0,2))","v":844855.5370763432}]
[133,2044,2,850242.06085368141]
[{"$f":"A132+1","v":134},2044,3,855768.63424923026]
[135,2044,4,861295.20764477924]
[136,2045,{"$f":"C131","v":1},866821.78104032821]
[137,{"$f":"B132+1","v":2045},2,872348.35443587706]
[138,2045,3,878018.61873971031]
[139,2045,4,883688.88304354344]
[140,2046,1,889359.14734737668]
[141,2046,2,895029.41165120993]
[142,2046,3,900847.10282694281]
[143,2046,4,906664.79400267568]
[144,2047,1,912482.48517840856]
[145,2047,2,918300.17635414144]
[146,2047,3,924269.12750044337]
[147,2047,4,930238.0786467453]
[148,2048,1,936207.02979304723]
[149,2048,2,942175.98093934916]
[150,2048,3,948300.12481545494]
[151,2048,4,954424.26869156072]
[152,2049,1,960548.4125676665]
[153,2049,2,966672.55644377216]
[154,2049,3,972955.92806065665]
[155,2049,4,979239.29967754125]
[156,2050,1,985522.67129442573]
[157,2050,2,991806.04291131033]
[158,2050,3,998252.78219023393]
[159,2050,4,1004699.5214691574]
[160,2051,1,1011146.2607480809]
[161,2051,2,1017593.0000270044]
[162,2051,3,1024207.3545271801]
[163,2051,4,1030821.7090273555]
[164,2052,1,1037436.0635275312]
[165,2052,2,1044050.4180277064]
[166,2052,3,1050836.7457448866]
[167,2052,4,1057623.0734620667]
[168,2053,1,1064409.4011792468]
[169,2053,2,1071195.7288964272]
[170,2053,3,1078158.501134254]
[171,2053,4,1085121.2733720806]
[172,2054,1,1092084.0456099075]
[173,2054,2,1099046.8178477341]
[174,2054,3,1106190.6221637442]
[175,2054,4,1113334.4264797545]
[176,2055,1,1120478.2307957648]
[177,2055,2,1127622.0351117749]
[178,2055,3,1134951.5783400014]
[179,2055,4,1142281.1215682281]
[180,2056,1,1149610.6647964546]
[181,2056,2,1156940.2080246815]
[182,2056,3,1164460.3193768419]
[183,2056,4,1171980.4307290022]
[184,2057,1,1179500.5420811628]
[185,2057,2,1187020.6534333229]
[186,2057,3,1194736.2876806397]
[187,2057,4,1202451.9219279564]
[188,2058,1,1210167.5561752729]
[189,2058,2,1217883.1904225899]
[190,2058,3,1225799.4311603366]
[191,2058,4,1233715.6718980833]
[192,2059,1,1241631.9126358302]
[193,2059,2,1249548.1533735767]
[194,2059,3,1257670.216370505]
[195,2059,4,1265792.2793674334]
[196,2060,1,{"$f":"FORECAST($A195,OFFSET(J$32:J$121,MATCH($A195,$H$32:$H$121,1)-1,0,2),OFFSET($H$32:$H$121,MATCH($A195,$H$32:$H$121,1)-1,0,2))","v":1273914.3423643615}]
[197,2060,2,1282036.4053612899]
[{"$f":"A196+1","v":198},2060,3,1290369.6419961383]
[199,2060,4,1298702.8786309867]
[200,2061,{"$f":"C195","v":1},1307036.1152658351]
[201,{"$f":"B196+1","v":2061},2,1315369.3519006835]
[202,2061,3,1323919.2526880379]
[203,2061,4,1332469.1534753924]
[204,2062,1,1341019.0542627468]
[205,2062,2,1349568.9550501013]
[206,2062,3,1358341.1532579269]
[207,2062,4,1367113.3514657526]
[208,2063,1,1375885.5496735782]
[209,2063,2,1384657.7478814039]
[210,2063,3,1393658.0232426331]
[211,2063,4,1402658.2986038621]
[212,2064,1,1411658.5739650913]
[213,2064,2,1420658.8493263205]
[214,2064,3,1429893.1318469415]
[215,2064,4,1439127.4143675626]
[216,2065,1,1448361.6968881837]
[217,2065,2,1457595.9794088046]
[218,2065,3,1467070.3532749619]
[219,2065,4,1476544.7271411193]
[220,2066,1,1486019.1010072764]
[221,2066,2,1495493.4748734338]
[222,2066,3,1505214.1824601111]
[223,2066,4,1514934.8900467884]
[224,2067,1,1524655.5976334657]
[225,2067,2,1534376.3052201432]
[226,2067,3,1544349.7512040741]
[227,2067,4,1554323.1971880051]
[228,2068,1,1564296.643171936]
[229,2068,2,1574270.0891558668]
[230,2068,3,1584502.8447353803]
[231,2068,4,1594735.6003148933]
[232,2069,1,1604968.3558944063]
[233,2069,2,1615201.1114739194]
[234,2069,3,1625699.9186984999]
[235,2069,4,1636198.7259230805]
[236,2070,1,1646697.5331476605]
[237,2070,2,1657196.3403722416]
[238,2070,3,1667968.116584661]
[239,2070,4,1678739.8927970808]
[240,2071,1,1689511.6690095002]
[241,2071,2,1700283.44522192]
[242,2071,3,1711335.2876158622]
[243,2071,4,1722387.1300098049]
[244,2072,1,1733438.972403747]
[245,2072,2,1744490.8147976901]
[246,2072,3,1755830.0050938749]
[247,2072,4,1767169.1953900596]
[248,2073,1,1778508.3856862448]
[249,2073,2,1789847.5759824296]
[250,2073,3,1801481.5852263151]
[251,2073,4,1813115.5944702011]
[252,2074,1,1824749.603714087]
[253,2074,2,1836383.612957973]
[254,2074,3,1848320.1064422]
[255,2074,4,1860256.5999264265]
[256,2075,1,1872193.0934106535]
[257,2075,2,1884129.58689488]
[258,2075,3,1896376.4292096971]
[259,2075,4,1908623.2715245136]
[260,2076,1,{"$f":"FORECAST($A259,OFFSET(J$32:J$121,MATCH($A259,$H$32:$H$121,1)-1,0,2),OFFSET($H$32:$H$121,MATCH($A259,$H$32:$H$121,1)-1,0,2))","v":1920870.1138393306}]
[261,2076,2,1933116.9561541472]
[{"$f":"A260+1","v":262},2076,3,1945682.2163691493]
[263,2076,4,1958247.4765841509]
[264,2077,{"$f":"C259","v":1},1970812.736799153]
[265,{"$f":"B260+1","v":2077},2,1983377.9970141549]
[266,2077,3,1996269.953994747]
[267,2077,4,2009161.9109753387]
[268,2078,1,2022053.8679559308]
[269,2078,2,2034945.8249365226]
[270,2078,3,2048172.9727986101]
[271,2078,4,2061400.1206606976]
[272,2079,1,2074627.268522785]
[273,2079,2,2087854.4163848725]
[274,2079,3,2101425.4700913741]
[275,2079,4,2114996.5237978757]
[276,2080,1,2128567.5775043773]
[277,2080,2,2142138.631210879]
[278,2080,3,2156062.5323137497]
[{"$f":"A277+1","v":279},2080,{"$f":"C274","v":4},{"$f":"FORECAST($A278,OFFSET(J$32:J$121,MATCH($A278,$H$32:$H$121,1)-1,0,2),OFFSET($H$32:$H$121,MATCH($A278,$H$32:$H$121,1)-1,0,2))","v":2169986.4334166204}]

{"sheet":"Prices","index":12,"n_rows":357,"n_cols":126,"rows_kept":357,"cut":false,"hidden":false,"merged":[]}
["Quarter","Year","Gas price-residential","Gas price-commercial","Electricity price-residential","Electricity price-commercial",null,"Year","Gas retail price ($/GJ)-residential","Gas retail price ($/GJ)-commercial","Electricity tariff ($/kWh)-residential","Electricity tariff ($/kWh)-commercial"]
[1,2012,{"$f":"SUMIF($H$2:$H$91,B2,$I$2:$I$91)","v":10.989513870764174},{"$f":"SUMIF($H$2:$H$91,B2,$J$2:$J$91)","v":8.4973906983594585},{"$f":"SUMIF($H$2:$H$91,B2,$K$2:$K$91)","v":0.1851247015248054},{"$f":"SUMIF($H$2:$H$91,B2,$L$2:$L$91)","v":0.18263259576419313},null,2011,8.9581900126358995,6.9267159023309617,0.14226493220321476,0.14034979470856099,null,null,null,"Year",2011,{"$f":"Q2+1","v":2012},{"$f":"R2+1","v":2013},2014,2015,2016,2017,2018,2019,2020,2021,2022,2023,2024,2025,2026,2027,2028,2029,2030,2031,2032,2033,2034,2035,2036,2037,2038,2039,2040,2041,2042,2043,2044,2045,2046,2047,2048,2049,2050,2051,2052,2053,2054,2055,2056,2057,2058,2059,2060,2061,2062,2063,2064,2065,2066,2067,2068,2069,2070,2071,2072,2073,2074,2075,2076,{"$f":"CD2+1","v":2077},2078,2079,2080,2081,2082,2083,2084,2085,2086,2087,2088,2089,2090,2091,2092,2093,2094,2095,2096,2097,2098,2099,2100,{"$f":"DB2+1","v":2101},{"$f":"DC2+1","v":2102},{"$f":"DD2+1","v":2103},{"$f":"DE2+1","v":2104},{"$f":"DF2+1","v":2105},{"$f":"DG2+1","v":2106},{"$f":"DH2+1","v":2107},{"$f":"DI2+1","v":2108},{"$f":"DJ2+1","v":2109},{"$f":"DK2+1","v":2110},{"$f":"DL2+1","v":2111},{"$f":"DM2+1","v":2112},{"$f":"DN2+1","v":2113},{"$f":"DO2+1","v":2114},{"$f":"DP2+1","v":2115},{"$f":"DQ2+1","v":2116},{"$f":"DR2+1","v":2117},{"$f":"DS2+1","v":2118},{"$f":"DT2+1","v":2119},{"$f":"DU2+1","v":2120}]
[{"$f":"A2+1","v":2},2012,{"$f":"SUMIF($H$2:$H$91,B3,$I$2:$I$91)","v":10.989513870764174},{"$f":"SUMIF($H$2:$H$91,B3,$J$2:$J$91)","v":8.4973906983594585},{"$f":"SUMIF($H$2:$H$91,B3,$K$2:$K$91)","v":0.1851247015248054},{"$f":"SUMIF($H$2:$H$91,B3,$L$2:$L$91)","v":0.18263259576419313},null,2012,10.989513870764174,8.4973906983594585,0.1851247015248054,0.18263259576419313,null,null,null,"Gas retail price ($/GJ)-residential",{"$f":"TRANSPOSE(I2:I91)","v":8.9581900126358995},10.989513870764174,11.291357936274832,12.093189598676762,11.773674725982724,12.731197267912588,15.145328480564155,18.156138930013505,18.395988989773709,19.017671458575364,18.88016075768245,20.007319968710846,18.866398561964292,18.573547972919208,17.980502898245323,17.866822863151032,18.262989283591587,19.357830356874629,20.319287504805818,20.870346833444238,19.05740447024764,18.760390994884972,18.970553803864814,19.365292002960466,20.029617014814768,20.367829268344625,21.008655056144857,21.223172107083265,21.426829895269371,21.354984323020425,21.419371586676583,21.954999306084407,22.484069139336768,22.73652210132467,22.973706700048204,23.272259992096267,23.551573298552601,23.80023112424059,24.054864487191111,24.441598311230528,24.781082110409425,25.28899784203993,25.718752557251083,26.111896033159141,26.528496255126534,25.146637626288612,24.923450434222161,25.29704068287008,25.77409437388058,26.226241462342532,26.701444238816777,27.230336270926681,27.825906831902909,28.500326773399177,29.271334849518308,30.16099052897016,31.188578248042411,32.372026304802681,33.733140304747977,35.305248616689568,37.137095683944608,39.296835633049696,41.876262814538464,44.414050871978318,46.749974866028012,49.135225605858338,51.816425950258491,55.010736406870656,59.628655323959919,66.450085501078036,76.602519279548915,19.973132194446681,19.983132194446682,19.993132194446684,20.003132194446685,20.013132194446687,20.023132194446688,20.03313219444669,20.043132194446692,20.053132194446693,20.063132194446695,20.073132194446696,20.083132194446698,20.093132194446699,20.103132194446701,20.113132194446703,20.123132194446704,20.133132194446706,20.143132194446707,19.942260017229415,{"$f":"DB3","v":19.942260017229415},{"$f":"DC3","v":19.942260017229415},19.942260017229415,19.942260017229415,19.942260017229415,19.942260017229415,19.942260017229415,19.942260017229415,19.942260017229415,19.942260017229415,19.942260017229415,19.942260017229415,19.942260017229415,19.942260017229415,19.942260017229415,19.942260017229415,19.942260017229415,19.942260017229415,19.942260017229415,19.942260017229415]
[{"$f":"A3+1","v":3},2012,10.989513870764174,8.4973906983594585,0.1851247015248054,0.18263259576419313,null,2013,11.291357936274832,8.7307847305967456,0.20359073343136702,0.20085004223558078,null,null,null,"Gas retail price ($/GJ)-commercial",{"$f":"TRANSPOSE(J2:J91)","v":6.9267159023309617},8.4973906983594585,8.7307847305967456,9.3507827568852804,9.1037251764366367,9.8441076207329221,11.710779463750324,14.038819903804416,14.224278486483797,14.704980261817285,15.602766502359113,17.070490435715261,16.463430961823253,16.490515750020133,15.965581326746433,15.929677490995289,16.340297838816532,17.469361636967804,18.490823485655664,19.269684196119226,17.759903910691044,17.690585848882712,18.044222261379417,18.629181503162229,16.319189076981001,16.48513687507322,16.752245115653096,17.186782340934545,17.430370047352362,17.349025990921501,17.466420515734672,17.991208327766117,18.393740861273397,18.541854788660171,18.730229777167999,18.906888588623339,19.022730925400715,19.094147372572127,19.147837609214577,19.290939541469374,19.296502033725545,19.488818055630411,19.498049182740001,19.507281078722482,19.516513742808979,19.525747174231388,19.534981372222383,19.544216336015378,19.553452064844588,19.562688557944959,19.571925814552241,19.581163833902906,19.590402615234229,19.599642157784213,19.608882460791651,19.618123523496081,19.627365345137807,19.63660792495789,19.645851262198157,19.655095356101175,19.6643402059103,19.673585810869607,19.682832170223964,19.692079283218956,19.701327149100962,19.710575767117081,19.719825136515187,19.72907525654389,19.738326126452574,19.747577745491338,19.756830112911071,19.766083227963378,19.775337089900642,19.784591697975959,19.793847051443208,19.803103149556982,19.812359991572649,19.821617576746295,19.830875904334775,19.840134973595656,19.849394783787286,19.858655334168716,19.867916623999776,19.877178652540994,19.886441419053678,19.89570492279984,19.904969163042267,19.914234139044442,19.923499850070623,19.932766295385772,{"$f":"DB4","v":19.932766295385772},{"$f":"DC4","v":19.932766295385772},19.932766295385772,19.932766295385772,19.932766295385772,19.932766295385772,19.932766295385772,19.932766295385772,19.932766295385772,19.932766295385772,19.932766295385772,19.932766295385772,19.932766295385772,19.932766295385772,19.932766295385772,19.932766295385772,19.932766295385772,19.932766295385772,19.932766295385772,19.932766295385772]
[4,2012,10.989513870764174,8.4973906983594585,0.1851247015248054,0.18263259576419313,null,2014,12.093189598676762,9.3507827568852804,0.20973014270799389,0.20690680420961097]
[{"$f":"A2","v":1},{"$f":"B2+1","v":2013},11.291357936274832,8.7307847305967456,0.20359073343136702,0.20085004223558078,null,2015,11.773674725982724,9.1037251764366367,0.19307725113841154,0.19047809000085397,null,null,null,"Electricity tariff ($/kWh)-residential",{"$f":"TRANSPOSE(K2:K91)","v":0.14226493220321476},0.1851247015248054,0.20359073343136702,0.20973014270799389,0.19307725113841154,0.18170329546519468,0.22112629313109847,0.24694220182739277,0.26263559728644553,0.23437655881405198,0.24,0.26630479191499279,0.26579453609630688,0.25790896548606684,0.25863104585134156,0.25715768838761938,0.25204228976577414,0.26387753558951549,0.26342712081396308,0.27953189860220029,0.27256619412964128,0.2710689998541983,0.26215177851183608,0.25801494635144401,0.25214038869683159,0.24868343163205717,0.2445131269065024,0.2397486981870548,0.23440987182857856,0.22850605775931657,0.22574624419641065,0.22290627506078817,0.21996373684352838,0.21693396706880777,0.21383153493994889,0.21308156049098584,0.21236759395357321,0.2116918181067908,0.21103071695081235,0.21041023803792955,0.21041023803792955,0.21041023803792955,0.21041023803792955,0.21041023803792955,0.21041023803792955,0.21041023803792955,0.21041023803792955,0.21041023803792955,0.21041023803792955,0.21041023803792955,0.21041023803792955,0.21041023803792955,0.21041023803792955,0.21041023803792955,0.21041023803792955,0.21041023803792955,0.21041023803792955,0.21041023803792955,0.21041023803792955,0.21041023803792955,0.21041023803792955,0.21041023803792955,0.21041023803792955,0.21041023803792955,0.21041023803792955,0.21041023803792955,0.21041023803792955,0.21041023803792955,0.21041023803792955,0.21041023803792955,0.21041023803792955,0.21041023803792955,0.21041023803792955,0.21041023803792955,0.21041023803792955,0.21041023803792955,0.21041023803792955,0.21041023803792955,0.21041023803792955,0.21041023803792955,0.21041023803792955,0.21041023803792955,0.21041023803792955,0.21041023803792955,0.21041023803792955,0.21041023803792955,0.21041023803792955,0.21041023803792955,0.21041023803792955,0.21041023803792955,{"$f":"DB6","v":0.21041023803792955},{"$f":"DC6","v":0.21041023803792955},0.21041023803792955,0.21041023803792955,0.21041023803792955,0.21041023803792955,0.21041023803792955,0.21041023803792955,0.21041023803792955,0.21041023803792955,0.21041023803792955,0.21041023803792955,0.21041023803792955,0.21041023803792955,0.21041023803792955,0.21041023803792955,0.21041023803792955,0.21041023803792955,0.21041023803792955,0.21041023803792955]
[{"$f":"A3","v":2},{"$f":"B3+1","v":2013},11.291357936274832,8.7307847305967456,0.20359073343136702,0.20085004223558078,null,2016,12.731197267912588,9.8441076207329221,0.18170329546519468,0.17925724787877695,null,null,null,"Electricity tariff ($/kWh)-commercial",{"$f":"TRANSPOSE(L2:L91)","v":0.14034979470856099},0.18263259576419313,0.20085004223558078,0.20690680420961097,0.19047809000085397,0.17925724787877695,0.21814954230100456,0.24361792322684162,0.25910005783898987,0.23122143598299791,0.14915444015028181,0.15660813080882138,0.15570104620945943,0.14997025410140449,0.15053479173930495,0.14870736736343063,0.14527299177570804,0.15343165759792621,0.15280117613351835,0.16356109714741177,0.15979644462292611,0.15927011020941848,0.15458917189227525,0.15317561207175287,0.14950349586147493,0.14798028080624925,0.1459649276579886,0.14355136185683198,0.14074300208448373,0.13754993729037268,0.13552687148814666,0.13344957295359502,0.13130114059159426,0.12909169429792686,0.12683227151276213,0.1261818711846236,0.12556878927963755,0.12499426226059483,0.12444064877457707,0.12392671710644972,0.12392671710644972,0.12392671710644972,0.12392671710644972,0.12392671710644972,0.12392671710644972,0.12392671710644972,0.12392671710644972,0.12392671710644972,0.12392671710644972,0.12392671710644972,0.12392671710644972,0.12392671710644972,0.12392671710644972,0.12392671710644972,0.12392671710644972,0.12392671710644972,0.12392671710644972,0.12392671710644972,0.12392671710644972,0.12392671710644972,0.12392671710644972,0.12392671710644972,0.12392671710644972,0.12392671710644972,0.12392671710644972,0.12392671710644972,0.12392671710644972,0.12392671710644972,0.12392671710644972,0.12392671710644972,0.12392671710644972,0.12392671710644972,0.12392671710644972,0.12392671710644972,0.12392671710644972,0.12392671710644972,0.12392671710644972,0.12392671710644972,0.12392671710644972,0.12392671710644972,0.12392671710644972,0.12392671710644972,0.12392671710644972,0.12392671710644972,0.12392671710644972,0.12392671710644972,0.12392671710644972,0.12392671710644972,0.12392671710644972,0.12392671710644972,{"$f":"DB7","v":0.12392671710644972},{"$f":"DC7","v":0.12392671710644972},0.12392671710644972,0.12392671710644972,0.12392671710644972,0.12392671710644972,0.12392671710644972,0.12392671710644972,0.12392671710644972,0.12392671710644972,0.12392671710644972,0.12392671710644972,0.12392671710644972,0.12392671710644972,0.12392671710644972,0.12392671710644972,0.12392671710644972,0.12392671710644972,0.12392671710644972,0.12392671710644972]
[3,2013,11.291357936274832,8.7307847305967456,0.20359073343136702,0.20085004223558078,null,2017,15.145328480564155,11.710779463750324,0.22112629313109847,0.21814954230100456]
[4,2013,11.291357936274832,8.7307847305967456,0.20359073343136702,0.20085004223558078,null,2018,18.156138930013505,14.038819903804416,0.24694220182739277,0.24361792322684162,null,null,null,"Gas service charge ($/day)-residential",null,null,null,null,null,null,null,null,null,null,{"$f":"TRANSPOSE(R22:R101)","v":0.62068395197808213},0.62068395197808213,0.58238057414329691,0.57262855262832013,0.58059261687424724,0.57884665846476602,0.58087610289725156,0.58393426793517222,0.58712642744862875,0.58131410032420183,0.57279119033534431,0.56560585262392571,0.57201513454742892,0.57501395668583066,0.58229581422381671,0.58357911454148781,0.59748749438713933,0.58417400586983526,0.58104173838534678,0.5788117410589344,0.57805800149423225,0.57787138004853134,0.57937807800803998,0.5788525370773081,0.58021354897602628,0.5831051776171905,0.58701683172957009,0.59031145776195815,0.59679068813816705,0.60326217573315666,0.6118696028482592,0.61860220123811427,0.6296292947505957,0.6385178553514268,0.64814931478626947,0.60026730806163331,0.60132017870585552,0.61430104034770561,0.62657977621650873,0.63574038756427498,0.64782337455139039,0.65983486683254622,0.67301441043921983,0.68630904853432262,0.70351895847158641,0.72135358928996141,0.74102684483777259,0.7612588824607146,0.78553240120796297,0.8103852043872537,0.83719878005575876,0.8650148206355488,0.89758940487816608,0.91984279386062751,0.93710132875501706,0.95567391769612309,0.98018068039306516,1.0072498555364584,1.0487249408657942,1.0989810061305048,1.1576439249804598,0.43268395197808218,0.43268395197808218,0.43150175538797814,0.43268395197808218,0.43268395197808218,0.43268395197808218,0.43150175538797814,0.43268395197808218,0.43268395197808218,0.43268395197808218,0.43150175538797814,0.43268395197808218,0.43268395197808218,0.43268395197808218,0.43150175538797814,0.43268395197808218,0.43268395197808218,0.43268395197808218,0.43268395197808218,{"$f":"DB9","v":0.43268395197808218},{"$f":"DC9","v":0.43268395197808218},0.43268395197808218,0.43268395197808218,0.43268395197808218,0.43268395197808218,0.43268395197808218,0.43268395197808218,0.43268395197808218,0.43268395197808218,0.43268395197808218,0.43268395197808218,0.43268395197808218,0.43268395197808218,0.43268395197808218,0.43268395197808218,0.43268395197808218,0.43268395197808218,0.43268395197808218,0.43268395197808218]
[1,2014,12.093189598676762,9.3507827568852804,0.20973014270799389,0.20690680420961097,null,2019,18.395988989773709,14.224278486483797,0.26263559728644553,0.25910005783898987,null,null,null,"Gas service charge ($/day)-commercial",null,null,null,null,null,null,null,null,null,null,{"$f":"TRANSPOSE(AC22:AC101)","v":0.74885690580790265},0.74885690580790265,0.69286090421890933,0.69726720493253802,0.73440448932412195,0.73634755726230205,0.7475408230216678,0.77526926843256705,0.80301279294926142,0.81882740285008926,0.82690595961247526,0.82896018888431255,0.8671114600897023,0.90223841494838308,0.43886515129205478,0.43766606617923498,0.43886515129205478,0.43886515129205478,0.43886515129205478,0.43766606617923498,0.43886515129205478,0.43886515129205478,0.43886515129205478,0.43766606617923498,0.43886515129205478,0.43886515129205478,0.43886515129205478,0.43766606617923498,0.43886515129205478,0.43886515129205478,0.43886515129205478,0.43766606617923498,0.43886515129205478,0.43886515129205478,0.43886515129205478,0.43766606617923498,0.43886515129205478,0.43886515129205478,0.43886515129205478,0.43766606617923498,0.43886515129205478,0.43886515129205478,0.43886515129205478,0.43766606617923498,0.43886515129205478,0.43886515129205478,0.43886515129205478,0.43766606617923498,0.43886515129205478,0.43886515129205478,0.43886515129205478,0.43766606617923498,0.43886515129205478,0.43886515129205478,0.43886515129205478,0.43766606617923498,0.43886515129205478,0.43886515129205478,0.43886515129205478,0.43766606617923498,0.43886515129205478,0.43886515129205478,0.43886515129205478,0.43766606617923498,0.43886515129205478,0.43886515129205478,0.43886515129205478,0.43766606617923498,0.43886515129205478,0.43886515129205478,0.43886515129205478,0.43766606617923498,0.43886515129205478,0.43886515129205478,0.43886515129205478,0.43766606617923498,0.43886515129205478,0.43886515129205478,0.43886515129205478,0.43886515129205478,{"$f":"DB10","v":0.43886515129205478},{"$f":"DC10","v":0.43886515129205478},0.43886515129205478,0.43886515129205478,0.43886515129205478,0.43886515129205478,0.43886515129205478,0.43886515129205478,0.43886515129205478,0.43886515129205478,0.43886515129205478,0.43886515129205478,0.43886515129205478,0.43886515129205478,0.43886515129205478,0.43886515129205478,0.43886515129205478,0.43886515129205478,0.43886515129205478,0.43886515129205478]
[2,2014,12.093189598676762,9.3507827568852804,0.20973014270799389,0.20690680420961097,null,2020,19.017671458575364,14.704980261817285,0.23437655881405198,0.23122143598299791,null,null,null,"Electricity service charge ($/day)-residential"]
[3,2014,12.093189598676762,9.3507827568852804,0.20973014270799389,0.20690680420961097,null,2021,18.88016075768245,{"$f":"AI22","v":15.602766502359113},{"$f":"TRANSPOSE(ElecResVarPrice)","v":0.24},{"$f":"TRANSPOSE(ElecComVarPrice)","v":0.14915444015028181},null,null,null,"Electricity service charge ($/day)-commercial"]
[4,2014,12.093189598676762,9.3507827568852804,0.20973014270799389,0.20690680420961097,null,{"$f":"H12+1","v":2022},{"$f":"X23","v":20.007319968710846},17.070490435715261,0.26630479191499279,0.15660813080882138]
[1,2015,11.773674725982724,9.1037251764366367,0.19307725113841154,0.19047809000085397,null,{"$f":"H13+1","v":2023},18.866398561964292,16.463430961823253,0.26579453609630688,0.15570104620945943,null,null,null,"Year",2011,{"$f":"Q14+1","v":2012},{"$f":"R14+1","v":2013},2014,2015,2016,2017,2018,2019,2020,2021,2022,2023,2024,2025,2026,2027,2028,2029,2030,2031,2032,2033,2034,2035,2036,2037,2038,2039,2040,2041,2042,2043,2044,2045,2046,2047,2048,2049,2050,2051,2052,2053,2054,2055,2056,2057,2058,2059,2060,2061,2062,2063,2064,2065,2066,2067,2068,2069,2070,2071,2072,2073,2074,2075,2076,{"$f":"CD14+1","v":2077},2078,2079,2080,2081,2082,2083,2084,2085,2086,2087,2088,2089,2090,2091,2092,2093,2094,2095,2096,2097,2098,2099,2100,{"$f":"DB14+1","v":2101},{"$f":"DC14+1","v":2102},{"$f":"DD14+1","v":2103},{"$f":"DE14+1","v":2104},{"$f":"DF14+1","v":2105},{"$f":"DG14+1","v":2106},{"$f":"DH14+1","v":2107},{"$f":"DI14+1","v":2108},{"$f":"DJ14+1","v":2109},{"$f":"DK14+1","v":2110},{"$f":"DL14+1","v":2111},{"$f":"DM14+1","v":2112},{"$f":"DN14+1","v":2113},{"$f":"DO14+1","v":2114},{"$f":"DP14+1","v":2115},{"$f":"DQ14+1","v":2116},{"$f":"DR14+1","v":2117},{"$f":"DS14+1","v":2118},{"$f":"DT14+1","v":2119},{"$f":"DU14+1","v":2120}]
[2,2015,11.773674725982724,9.1037251764366367,0.19307725113841154,0.19047809000085397,null,2024,18.573547972919208,16.490515750020133,0.25790896548606684,0.14997025410140449,null,null,null,"Gas price % change-residential",null,{"$f":"R3/Q3-1","v":0.22675605845187574},{"$f":"S3/R3-1","v":2.7466553030490726E-2},7.1012863725270048E-2,-2.6421058736150083E-2,8.1327415969523642E-2,0.18962326651995931,0.19879466155607606,1.3210411127869914E-2,3.3794457538936618E-2,-7.2306802224679778E-3,5.9700721063497664E-2,-5.7025199203632693E-2,-1.552233660723612E-2,-3.1929552476379963E-2,-6.3224057601517503E-3,2.2173299834836291E-2,5.9948623759348285E-2,4.966760893168698E-2,2.7120012377800373E-2,-8.6866901526111651E-2,-1.5585200798270527E-2,1.120247488643189E-2,2.0807942834817794E-2,3.4304931304559805E-2,1.6885607611952791E-2,3.1462645299968006E-2,1.0210889291347724E-2,9.5960107734383016E-3,-3.3530658804925562E-3,3.0150929957251105E-3,2.5006696262788619E-2,2.4097920745811185E-2,1.1228081555141101E-2,1.0431876857266431E-2,1.299543412589288E-2,1.2001984618219108E-2,1.0558013366489982E-2,1.069877689932075E-2,1.6077156628562461E-2,1.3889590805643337E-2,2.0496107852253642E-2,1.6993742413024204E-2,1.5286257567621364E-2,1.5954422514487643E-2,-5.2089595111177167E-2,-8.8754288101375867E-3,1.4989507557707338E-2,1.8858082927207365E-2,1.7542695464022096E-2,1.8119362515462756E-2,1.9807618920516523E-2,2.1871583040717235E-2,2.423712353996077E-2,2.7052604773596833E-2,3.0393409935881133E-2,3.4070091898514843E-2,3.7944918404049011E-2,4.2045993263738479E-2,4.660426802067752E-2,5.1885969906159568E-2,5.8155865700580511E-2,6.5639564609609513E-2,6.0602066346732153E-2,5.2594256731566702E-2,5.1021433629981017E-2,{"$f":"CE3/CD3-1","v":5.4567783323263619E-2},6.1646676667328704E-2,8.3945775292557201E-2,0.11439852433461017,0.15278285500936151,-0.73926272422506289,5.0067259870156811E-4,5.00422051092686E-4,5.0017175411753989E-4,4.9992170740020825E-4,4.9967191056565774E-4,4.9942236323929912E-4,4.9917306504743131E-4,4.9892401561724142E-4,4.9867521457680475E-4,4.9842666155441862E-4,4.9817835617949058E-4,4.9793029808209432E-4,4.9768248689296968E-4,4.9743492224374464E-4,4.9718760376671334E-4,4.9694053109483605E-4,4.9669370386196121E-4,-9.9722414209578725E-3,{"$f":"DB15","v":-9.9722414209578725E-3},{"$f":"DC15","v":-9.9722414209578725E-3},-9.9722414209578725E-3,-9.9722414209578725E-3,-9.9722414209578725E-3,-9.9722414209578725E-3,-9.9722414209578725E-3,-9.9722414209578725E-3,-9.9722414209578725E-3,-9.9722414209578725E-3,-9.9722414209578725E-3,-9.9722414209578725E-3,-9.9722414209578725E-3,-9.9722414209578725E-3,-9.9722414209578725E-3,-9.9722414209578725E-3,-9.9722414209578725E-3,-9.9722414209578725E-3,-9.9722414209578725E-3,-9.9722414209578725E-3]
[3,2015,11.773674725982724,9.1037251764366367,0.19307725113841154,0.19047809000085397,null,2025,17.980502898245323,15.965581326746433,0.25863104585134156,0.15053479173930495,null,null,null,"Gas price % change-commercial",null,{"$f":"R4/Q4-1","v":0.22675605845187574},{"$f":"S4/R4-1","v":2.7466553030490504E-2},7.1012863725270048E-2,-2.6421058736149861E-2,8.132741596952342E-2,0.18962326651995931,0.19879466155607606,1.3210411127869914E-2,3.379445753893684E-2,4.7802563396739162E-2,9.4068185480711275E-2,-3.5561923436124854E-2,1.6451484663000393E-3,-3.1832504891368241E-2,-2.2488273377804235E-3,2.5777065986009928E-2,6.9096892191840675E-2,5.8471618477820675E-2,4.2121472365347357E-2,-7.8350027434919811E-2,-3.9030651380159709E-3,1.9990090521453174E-2,3.2418091137949245E-2,-0.12399860003452734,1.0168875261473476E-2,1.6202973782023289E-2,2.5939044127012201E-2,1.4172967434262107E-2,-4.6668003151899562E-3,6.7666349035733209E-3,3.0045527162173125E-2,2.2373846501796413E-2,8.0524091593905389E-3,1.0159446865209754E-2,9.4317482250370066E-3,6.1269910294536878E-3,3.7542689034228971E-3,2.8118687676819132E-3,7.4735296577788102E-3,2.8834739978389479E-4,9.9663670425211848E-3,4.7366274769666816E-4,4.7347793084107082E-4,4.7329323083200592E-4,4.7310864758376425E-4,4.729241810106366E-4,4.7273983102580353E-4,4.7255559754488807E-4,4.7237148048018263E-4,4.721874797486425E-4,4.720035952616719E-4,4.7181982693622615E-4,4.7163617468481966E-4,4.7145263842329754E-4,4.7126921806528443E-4,4.7108591352573725E-4,4.7090272471916883E-4,4.7071965156053608E-4,4.7053669396368569E-4,4.703538518451289E-4,4.7017112511760217E-4,4.6998851369783878E-4,4.6980601749879725E-4,4.6962363643787697E-4,4.6944137042781442E-4,{"$f":"CE4/CD4-1","v":4.6925921938489878E-4},4.6907718322386494E-4,4.6889526186055797E-4,4.6871345520860253E-4,4.6853176318539802E-4,4.6835018570412501E-4,4.681687226821829E-4,4.6798737403275226E-4,4.6780613967367657E-4,4.6762501951835844E-4,4.6744401348397524E-4,4.6726312148503979E-4,4.6708234343806332E-4,4.6690167925755865E-4,4.6672112886092521E-4,4.6654069216223171E-4,4.6636036907909961E-4,4.6618015952559766E-4,4.6600006341956934E-4,4.658200806750834E-4,4.6564021121020538E-4,4.6546045493900401E-4,4.6528081177954483E-4,4.6510128164634068E-4,{"$f":"DB16","v":4.6510128164634068E-4},{"$f":"DC16","v":4.6510128164634068E-4},4.6510128164634068E-4,4.6510128164634068E-4,4.6510128164634068E-4,4.6510128164634068E-4,4.6510128164634068E-4,4.6510128164634068E-4,4.6510128164634068E-4,4.6510128164634068E-4,4.6510128164634068E-4,4.6510128164634068E-4,4.6510128164634068E-4,4.6510128164634068E-4,4.6510128164634068E-4,4.6510128164634068E-4,4.6510128164634068E-4,4.6510128164634068E-4,4.6510128164634068E-4,4.6510128164634068E-4]
[4,2015,11.773674725982724,9.1037251764366367,0.19307725113841154,0.19047809000085397,null,2026,17.866822863151032,15.929677490995289,0.25715768838761938,0.14870736736343063,null,null,null,"Electricity price % change-residential",null,{"$f":"R6/Q6-1","v":0.30126728110599088},9.9749151541979941E-2,3.015564202334664E-2,-7.9401517371625929E-2,-5.8908833672296268E-2,0.21696358101251545,0.11674734980968049,6.3550884955752229E-2,-0.10759789900670857,2.3993189482782284E-2,0.1096032996458034,-1.9160594708667045E-3,-2.9667918408160188E-2,2.7997489886164573E-3,-5.6967540724752741E-3,-1.9892069546583735E-2,4.6957380980548802E-2,-1.7069083753042946E-3,6.1135610253322037E-2,-2.4919175619637746E-2,-5.4929566016937992E-3,-3.2896499958160463E-2,-1.5780294087172408E-2,-2.2768284309431563E-2,-1.3710445528546389E-2,-1.6769531842897312E-2,-1.9485369884740145E-2,-2.2268426893858773E-2,-2.5185859380441933E-2,-1.207763850975363E-2,-1.2580360509349409E-2,-1.3200786817048282E-2,{"$f":"AX6/AW6-1","v":-1.377395118939917E-2},-1.4301274119395302E-2,-3.5073145276428574E-3,-3.3506725582800323E-3,-3.1821043606593546E-3,-3.1229414622200302E-3,-2.9402303221450765E-3,0,0,0,0,0,0,0,0,0,0,0,0,0,0,0,0,0,0,0,0,0,0,0,0,0,{"$f":"CD6/CC6-1","v":0},0,0,0,0,0,0,0,0,0,0,0,0,0,0,0,0,0,0,0,0,0,0,0,0,{"$f":"DB17","v":0},{"$f":"DC17","v":0},0,0,0,0,0,0,0,0,0,0,0,0,0,0,0,0,0,0]
[1,2016,12.731197267912588,9.8441076207329221,0.18170329546519468,0.17925724787877695,null,2027,18.262989283591587,16.340297838816532,0.25204228976577414,0.14527299177570804,null,null,null,"Electricity price % change-commercial",null,{"$f":"R7/Q7-1","v":0.30126728110599088},{"$f":"S7/R7-1","v":9.9749151541979941E-2},3.0155642023346418E-2,-7.9401517371625707E-2,-5.890883367229649E-2,0.21696358101251567,0.11674734980968049,6.3550884955752007E-2,-0.10759789900670846,-0.35492814705445652,4.9972971981454561E-2,-5.7920658057611929E-3,-3.6806381508480701E-2,3.7643307420065497E-3,-1.2139548304813452E-2,-2.3094858369250848E-2,5.6160926559663649E-2,-4.1092006322454022E-3,7.0417789222324778E-2,-2.3016796720877419E-2,-3.2937805014976451E-3,-2.9389935820276825E-2,-9.1439769242532831E-3,-2.3973243263802235E-2,-1.0188491221884477E-2,-1.3619065576036871E-2,-1.6535244732295284E-2,-1.9563449179598291E-2,-2.2687201117071121E-2,-1.4707864227922252E-2,-1.532757682474295E-2,-1.6099207471783061E-2,-1.6827319882465996E-2,-1.7502464410686813E-2,-5.1280350054527801E-3,-4.8587162262716532E-3,-4.5753966597803508E-3,-4.4291111928286275E-3,-4.1299340142330054E-3,0,0,0,0,0,0,0,0,0,0,0,0,0,0,0,0,0,0,0,0,0,0,0,0,0,0,{"$f":"CE7/CD7-1","v":0},0,0,0,0,0,0,0,0,0,0,0,0,0,0,0,0,0,0,0,0,0,0,0,{"$f":"DB18","v":0},{"$f":"DC18","v":0},0,0,0,0,0,0,0,0,0,0,0,0,0,0,0,0,0,0]
[2,2016,12.731197267912588,9.8441076207329221,0.18170329546519468,0.17925724787877695,null,2028,19.357830356874629,17.469361636967804,0.26387753558951549,0.15343165759792621]
[3,2016,12.731197267912588,9.8441076207329221,0.18170329546519468,0.17925724787877695,null,2029,20.319287504805818,18.490823485655664,0.26342712081396308,0.15280117613351835,null,null,"Residential","Real $2021",null,null,null,null,null,null,null,null,null,"Commercial","Real $2021",null,null,null,null,null,null,null,null,null,null,"Starting point","Retail fixed charge $/day"]
[4,2016,12.731197267912588,9.8441076207329221,0.18170329546519468,0.17925724787877695,null,2030,20.870346833444238,19.269684196119226,0.27953189860220029,0.16356109714741177,null,null,"Year","Distribution fixed charge $/day","Distribution $/GJ","Retail fixed charge $/day","Wholesale $/GJ","Transmission $/GJ","AEMO costs $/GJ","Environmental $/GJ","Retail margin $/GJ","Retail gas price $/GJ",null,"Year","Distribution fixed charge $/day","Distribution $/GJ","Retail fixed charge $/day","Wholesale $/GJ","Transmission $/GJ","AEMO costs $/GJ","Environmental $/GJ","Retail margin $/GJ","Retail gas price $/GJ",null,null,"Residential","Commercial"]
[1,2017,15.145328480564155,11.710779463750324,0.22112629313109847,0.21814954230100456,null,2031,19.05740447024764,17.759903910691044,0.27256619412964128,0.15979644462292611,null,null,{"$f":"H12","v":2021},{"$f":"P23","v":0.18799999999999997},{"$f":"Q23","v":4.3425592630777743},{"$f":"P22+(1-Control!$H$18)*Prices!AL22","v":0.62068395197808213},{"$f":"TRANSPOSE(GasPrice)","v":10.161976079612581},2.3235000000000001,0.23176161283687388,0.46163626349089804,1.0178366015590317,{"$f":"SUM(Q22,S22:W22)","v":18.539269820577161},null,{"$f":"O22","v":2021},{"$f":"AA23","v":0.30999175451584787},{"$f":"AB23","v":1.5824249809321553},{"$f":"AA22+(1-Control!$H$19)*AM22","v":0.74885690580790265},{"$f":"TRANSPOSE(GasPrice)","v":10.161976079612581},2.3235000000000001,0.23176161283687388,0.46163626349089809,0.84146756548660695,{"$f":"SUM(AB22,AD22:AH22)","v":15.602766502359113},null,null,0.61811993139726029,0.61811993139726029]
[2,2017,15.145328480564155,11.710779463750324,0.22112629313109847,0.21814954230100456,null,2032,18.760390994884972,17.690585848882712,0.2710689998541983,0.15927011020941848,null,null,2022,{"$f":"TRANSPOSE(Summary!D50:CD50)","v":0.18799999999999997},{"$f":"TRANSPOSE(Summary!D51:CD51)","v":4.3425592630777743},{"$f":"P23+(1-Control!$H$18)*Prices!AL23","v":0.62068395197808213},11.629700012968726,2.3235000000000001,0.23208782761441421,0.46163626349089804,1.0178366015590317,{"$f":"SUM(Q23,S23:W23)","v":20.007319968710846},null,{"$f":"O23","v":2022},{"$f":"TRANSPOSE(Summary!D53:CD53)","v":0.30999175451584787},{"$f":"TRANSPOSE(Summary!D54:CD54)","v":1.5824249809321553},{"$f":"AA23+(1-Control!$H$19)*AM23","v":0.74885690580790265},11.629700012968726,2.3235000000000001,0.23176161283687388,0.46163626349089809,0.84146756548660695,{"$f":"SUM(AB23,AD23:AH23)","v":17.070490435715261},null,null,0.61811993139726029,0.61811993139726029]
[3,2017,15.145328480564155,11.710779463750324,0.22112629313109847,0.21814954230100456,null,2033,18.970553803864814,18.044222261379417,0.26215177851183608,0.15458917189227525,null,null,2023,0.14969662216521476,3.4563576559013458,{"$f":"P24+(1-Control!$H$18)*Prices!AL24","v":0.58238057414329691},11.389819717851116,2.2378022280574261,0.23252947326307438,0.49169252520746459,1.0581969616838616,{"$f":"IF(AND(Scenarios!$B$1=5,Scenarios!$J$53=0),Prices!$X$23,SUM(Q24,S24:W24))","v":18.866398561964292},null,2023,0.25399575292685461,1.2310811410498672,{"$f":"AA24+(1-Control!$H$19)*AM24","v":0.69286090421890933},11.389819717851116,2.2378022280574266,0.23208782761441421,0.49169252520746459,0.88094752204296534,{"$f":"IF(AND(Scenarios!$B$1=5,Scenarios!$J$53=0),Prices!$AI$23,SUM(AB24,AD24:AH24))","v":16.463430961823253},null,null,0.61811993139726029,0.61811993139726029]
[4,2017,15.145328480564155,11.710779463750324,0.22112629313109847,0.21814954230100456,null,2034,19.365292002960466,18.629181503162229,0.25801494635144401,0.15317561207175287,null,null,2024,0.14112679724034202,3.1310644805430212,{"$f":"P25+(1-Control!$H$18)*Prices!AL25","v":0.57262855262832013},11.379817762999998,2.2179193243037627,0.23281653689193613,0.5399110269246179,1.0720188412558769,{"$f":"IF(AND(Scenarios!$B$1=5,Scenarios!$J$53=0),Prices!$X$23,SUM(Q25,S25:W25))","v":18.573547972919208},null,2024,0.25960113875330304,1.2265278542388272,{"$f":"AA25+(1-Control!$H$19)*AM25","v":0.69726720493253802},11.379817762999998,2.2179193243037632,0.23252947326307435,0.5399110269246179,0.89381030828985419,{"$f":"IF(AND(Scenarios!$B$1=5,Scenarios!$J$53=0),Prices!$AI$23,SUM(AB25,AD25:AH25))","v":16.490515750020133},null,null,0.61643107912568307,0.61643107912568307]
[1,2018,18.156138930013505,14.038819903804416,0.24694220182739277,0.24361792322684162,null,2035,20.029617014814768,16.319189076981001,0.25214038869683159,0.14950349586147493,null,null,2025,0.14790866489616505,3.2492200590867371,{"$f":"P26+(1-Control!$H$18)*Prices!AL26","v":0.58059261687424724},10.590305944089806,2.1943000564756918,0.23298996960678786,0.6103108870107824,1.1033759819755187,{"$f":"IF(AND(Scenarios!$B$1=5,Scenarios!$J$53=0),Prices!$X$23,SUM(Q26,S26:W26))","v":17.980502898245323},null,2025,0.29553933803206722,1.4136115095127204,{"$f":"AA26+(1-Control!$H$19)*AM26","v":0.73440448932412195},10.590305944089806,2.1943000564756923,0.23281653689193613,0.61031088701078251,0.92423639276549496,{"$f":"IF(AND(Scenarios!$B$1=5,Scenarios!$J$53=0),Prices!$AI$23,SUM(AB26,AD26:AH26))","v":15.965581326746433},null,null,0.61811993139726029,0.61811993139726029]
[2,2018,18.156138930013505,14.038819903804416,0.24694220182739277,0.24361792322684162,null,2036,20.367829268344625,16.48513687507322,0.24868343163205717,0.14798028080624925,null,null,2026,0.14616270648668381,3.140231660511533,{"$f":"P27+(1-Control!$H$18)*Prices!AL27","v":0.57884665846476602},10.485469229354225,2.1624359016422252,0.23303508486856278,0.7093194032749951,1.1363315834994903,{"$f":"IF(AND(Scenarios!$B$1=5,Scenarios!$J$53=0),Prices!$X$23,SUM(Q27,S27:W27))","v":17.866822863151032},null,2026,0.29748240597024728,1.383174574719445,{"$f":"AA27+(1-Control!$H$19)*AM27","v":0.73634755726230205},10.485469229354225,2.1624359016422257,0.23298996960678786,0.70931940327499521,0.95628841239760931,{"$f":"IF(AND(Scenarios!$B$1=5,Scenarios!$J$53=0),Prices!$AI$23,SUM(AB27,AD27:AH27))","v":15.929677490995289},null,null,0.61811993139726029,0.61811993139726029]
[3,2018,18.156138930013505,14.038819903804416,0.24694220182739277,0.24361792322684162,null,2037,21.008655056144857,16.752245115653096,0.2445131269065024,0.1459649276579886,null,null,2027,0.14819215091916932,3.174091754771915,{"$f":"P28+(1-Control!$H$18)*Prices!AL28","v":0.58087610289725156},10.72866273558742,2.1377762973902046,0.23317054875731319,0.84653732521891867,1.1427506218658141,{"$f":"IF(AND(Scenarios!$B$1=5,Scenarios!$J$53=0),Prices!$X$23,SUM(Q28,S28:W28))","v":18.262989283591587},null,2027,0.30867567172961302,1.4323652269781255,{"$f":"AA28+(1-Control!$H$19)*AM28","v":0.7475408230216678},10.72866273558742,2.137776297390205,0.23303508486856278,0.84653732521891867,0.9619211687732997,{"$f":"IF(AND(Scenarios!$B$1=5,Scenarios!$J$53=0),Prices!$AI$23,SUM(AB28,AD28:AH28))","v":16.340297838816532},null,null,0.61811993139726029,0.61811993139726029]
[4,2018,18.156138930013505,14.038819903804416,0.24694220182739277,0.24361792322684162,null,2038,21.223172107083265,17.186782340934545,0.2397486981870548,0.14355136185683198,null,null,2028,0.15243251254719412,3.3299853442934988,{"$f":"P29+(1-Control!$H$18)*Prices!AL29","v":0.58393426793517222},11.452282942814172,2.1396300817430691,0.23318074276771414,1.0371441748517722,1.1656070704044001,{"$f":"IF(AND(Scenarios!$B$1=5,Scenarios!$J$53=0),Prices!$X$23,SUM(Q29,S29:W29))","v":19.357830356874629},null,2028,0.33760320225333212,1.6231280863518174,{"$f":"AA29+(1-Control!$H$19)*AM29","v":0.77526926843256705},11.452282942814172,2.13963008174307,0.23317054875731319,1.0371441748517722,0.98400580244965841,{"$f":"IF(AND(Scenarios!$B$1=5,Scenarios!$J$53=0),Prices!$AI$23,SUM(AB29,AD29:AH29))","v":17.469361636967804},null,null,0.61643107912568307,0.61643107912568307]
[1,2019,18.395988989773709,14.224278486483797,0.26263559728644553,0.25910005783898987,null,2039,21.426829895269371,17.430370047352362,0.23440987182857856,0.14074300208448373,null,null,2029,0.15444247547054657,3.5531666323680842,{"$f":"P30+(1-Control!$H$18)*Prices!AL30","v":0.58712642744862875},11.881908588593626,2.1502473959258452,0.23306660088107412,1.3028939500424459,1.1980043369947411,{"$f":"IF(AND(Scenarios!$B$1=5,Scenarios!$J$53=0),Prices!$X$23,SUM(Q30,S30:W30))","v":20.319287504805818},null,2029,0.36414764165720664,1.9070900277727196,{"$f":"AA30+(1-Control!$H$19)*AM30","v":0.80301279294926142},11.881908588593626,2.1502473959258461,0.23318074276771414,1.3028939500424461,1.0155027805533114,{"$f":"IF(AND(Scenarios!$B$1=5,Scenarios!$J$53=0),Prices!$AI$23,SUM(AB30,AD30:AH30))","v":18.490823485655664},null,null,0.61811993139726029,0.61811993139726029]
[2,2019,18.395988989773709,14.224278486483797,0.26263559728644553,0.25910005783898987,null,2040,21.354984323020425,17.349025990921501,0.22850605775931657,0.13754993729037268,null,null,2030,0.14863014834611968,3.5697884937097495,{"$f":"P31+(1-Control!$H$18)*Prices!AL31","v":0.58131410032420183},11.992942149009698,2.1574329933323093,0.23282997195403704,1.6763296895825741,1.2410235358558692,{"$f":"IF(AND(Scenarios!$B$1=5,Scenarios!$J$53=0),Prices!$X$23,SUM(Q31,S31:W31))","v":20.870346833444238},null,2030,0.37996225155803448,2.1522714354205501,{"$f":"AA31+(1-Control!$H$19)*AM31","v":0.81882740285008926},11.992942149009698,2.1574329933323102,0.23306660088107412,1.6763296895825743,1.0576413278930186,{"$f":"IF(AND(Scenarios!$B$1=5,Scenarios!$J$53=0),Prices!$AI$23,SUM(AB31,AD31:AH31))","v":19.269684196119226},null,null,0.61811993139726029,0.61811993139726029]
[3,2019,18.395988989773709,14.224278486483797,0.26263559728644553,0.25910005783898987,null,2041,21.419371586676583,17.466420515734672,0.22574624419641065,0.13552687148814666,null,null,2031,0.14010723835726216,3.4439763449674605,{"$f":"P32+(1-Control!$H$18)*Prices!AL32","v":0.57279119033534431},12.063198454550994,2.1676083462627505,0.23247408513691722,0,1.150147239329518,{"$f":"IF(AND(Scenarios!$B$1=5,Scenarios!$J$53=0),Prices!$X$23,SUM(Q32,S32:W32))","v":19.05740447024764},null,2031,0.38804080832042048,2.330160078518281,{"$f":"AA32+(1-Control!$H$19)*AM32","v":0.82690595961247526},12.063198454550994,2.1676083462627513,0.23282997195403704,0,0.96610705940498098,{"$f":"IF(AND(Scenarios!$B$1=5,Scenarios!$J$53=0),Prices!$AI$23,SUM(AB32,AD32:AH32))","v":17.759903910691044},null,null,0.61811993139726029,0.61811993139726029]
[4,2019,18.395988989773709,14.224278486483797,0.26263559728644553,0.25910005783898987,null,2042,21.954999306084407,17.991208327766117,0.22290627506078817,0.13344957295359502,null,null,2032,0.1341040972359476,3.097959721244965,{"$f":"P33+(1-Control!$H$18)*Prices!AL33","v":0.56560585262392571},12.086235498502335,2.1752781849687839,0.23200350292956295,0,1.1689140872393271,{"$f":"IF(AND(Scenarios!$B$1=5,Scenarios!$J$53=0),Prices!$X$23,SUM(Q33,S33:W33))","v":18.760390994884972},null,2032,0.39129412270507757,2.2124544852884869,{"$f":"AA33+(1-Control!$H$19)*AM33","v":0.82896018888431255},12.086235498502335,2.1752781849687848,0.2324740851369172,0,0.98414359498618587,{"$f":"IF(AND(Scenarios!$B$1=5,Scenarios!$J$53=0),Prices!$AI$23,SUM(AB33,AD33:AH33))","v":17.690585848882712},null,null,0.61643107912568307,0.61643107912568307]
[1,2020,19.017671458575364,14.704980261817285,0.23437655881405198,0.23122143598299791,null,2043,22.484069139336768,18.393740861273397,0.21996373684352838,0.13130114059159426,null,null,2033,0.13933118256934668,3.184270907301205,{"$f":"P34+(1-Control!$H$18)*Prices!AL34","v":0.57201513454742892},12.193207618766369,2.1850609684573428,0.23141381751758114,0,1.1766004918223179,{"$f":"IF(AND(Scenarios!$B$1=5,Scenarios!$J$53=0),Prices!$X$23,SUM(Q34,S34:W34))","v":18.970553803864814},null,2033,0.42824630879764747,2.4426643785806861,{"$f":"AA34+(1-Control!$H$19)*AM34","v":0.8671114600897023},12.193207618766369,2.1850609684573432,0.23200350292956295,0,0.9912857926454578,{"$f":"IF(AND(Scenarios!$B$1=5,Scenarios!$J$53=0),Prices!$AI$23,SUM(AB34,AD34:AH34))","v":18.044222261379417},null,null,0.61811993139726029,0.61811993139726029]
[2,2020,19.017671458575364,14.704980261817285,0.23437655881405198,0.23122143598299791,null,2044,22.73652210132467,18.541854788660171,0.21693396706880777,0.12909169429792686,null,null,2034,0.14233000470774845,3.2892081289734731,{"$f":"P35+(1-Control!$H$18)*Prices!AL35","v":0.57501395668583066},12.464167730461451,2.1934282330847434,0.23256261380021442,0,1.1859252966405813,{"$f":"IF(AND(Scenarios!$B$1=5,Scenarios!$J$53=0),Prices!$X$23,SUM(Q35,S35:W35))","v":19.365292002960466},null,2034,0.46337326365632825,2.7400567915325826,{"$f":"AA35+(1-Control!$H$19)*AM35","v":0.90223841494838308},12.464167730461451,2.1934282330847443,0.23141381751758114,0,1.0001149305658703,{"$f":"IF(AND(Scenarios!$B$1=5,Scenarios!$J$53=0),Prices!$AI$23,SUM(AB35,AD35:AH35))","v":18.629181503162229},null,null,0.61811993139726029,0.61811993139726029]
[3,2020,19.017671458575364,14.704980261817285,0.23437655881405198,0.23122143598299791,null,2045,22.973706700048204,18.730229777167999,0.21383153493994889,0.12683227151276213,null,null,2035,0.1496118622457345,3.5241970256814503,{"$f":"P36+(1-Control!$H$18)*Prices!AL36","v":0.58229581422381671},12.883986483326076,2.2025972138368113,0.23268637114504556,0,1.1861499208253878,{"$f":"IF(AND(Scenarios!$B$1=5,Scenarios!$J$53=0),Prices!$X$23,SUM(Q36,S36:W36))","v":20.029617014814768},null,2035,0,0,{"$f":"AA36+(1-Control!$H$19)*AM36","v":0.43886515129205478},12.883986483326076,2.2025972138368131,0.23256261380021442,0,1.0000427660178952,{"$f":"IF(AND(Scenarios!$B$1=5,Scenarios!$J$53=0),Prices!$AI$23,SUM(AB36,AD36:AH36))","v":16.319189076981001},null,null,0.61811993139726029,0.61811993139726029]
[4,2020,19.017671458575364,14.704980261817285,0.23437655881405198,0.23122143598299791,null,2046,23.272259992096267,18.906888588623339,0.21308156049098584,0.1261818711846236,null,null,2036,0.15207735915350964,3.6947517655638364,{"$f":"P37+(1-Control!$H$18)*Prices!AL37","v":0.58357911454148781},13.027570823144309,2.2107720377084115,0.23270158918459341,0,1.2020330527434722,{"$f":"IF(AND(Scenarios!$B$1=5,Scenarios!$J$53=0),Prices!$X$23,SUM(Q37,S37:W37))","v":20.367829268344625},null,2036,0,0,{"$f":"AA37+(1-Control!$H$19)*AM37","v":0.43766606617923498},13.027570823144309,2.2107720377084128,0.23268637114504556,0,1.0141076430754501,{"$f":"IF(AND(Scenarios!$B$1=5,Scenarios!$J$53=0),Prices!$AI$23,SUM(AB37,AD37:AH37))","v":16.48513687507322},null,null,0.61643107912568307,0.61643107912568307]
[1,2021,18.88016075768245,15.602766502359113,0.24,0.14915444015028181,null,2047,23.551573298552601,19.022730925400715,0.21236759395357321,0.12556878927963755,null,null,2037,0.16480354240905715,4.0675737892482635,{"$f":"P38+(1-Control!$H$18)*Prices!AL38","v":0.59748749438713933},13.281335402611642,2.2193283573292146,0.23268658788417312,0,1.2077309190715602,{"$f":"IF(AND(Scenarios!$B$1=5,Scenarios!$J$53=0),Prices!$X$23,SUM(Q38,S38:W38))","v":21.008655056144857},null,2037,0,0,{"$f":"AA38+(1-Control!$H$19)*AM38","v":0.43886515129205478},13.281335402611642,2.219328357329216,0.23270158918459341,0,1.0188797665276432,{"$f":"IF(AND(Scenarios!$B$1=5,Scenarios!$J$53=0),Prices!$AI$23,SUM(AB38,AD38:AH38))","v":16.752245115653096},null,null,0.61811993139726029,0.61811993139726029]
[2,2021,18.88016075768245,15.602766502359113,0.24,0.14915444015028181,null,2048,23.80023112424059,19.094147372572127,0.2116918181067908,0.12499426226059483,null,null,2038,0.15149005389175302,3.8465693443940152,{"$f":"P39+(1-Control!$H$18)*Prices!AL39","v":0.58417400586983526},13.679796326945015,2.2272094739506185,0.23239943951086528,0,1.2371975222827511,{"$f":"IF(AND(Scenarios!$B$1=5,Scenarios!$J$53=0),Prices!$X$23,SUM(Q39,S39:W39))","v":21.223172107083265},null,2038,0,0,{"$f":"AA39+(1-Control!$H$19)*AM39","v":0.43886515129205478},13.679796326945015,2.2272094739506203,0.23268658788417312,0,1.0470899521547357,{"$f":"IF(AND(Scenarios!$B$1=5,Scenarios!$J$53=0),Prices!$AI$23,SUM(AB39,AD39:AH39))","v":17.186782340934545},null,null,0.61811993139726029,0.61811993139726029]
[3,2021,18.88016075768245,15.602766502359113,0.24,0.14915444015028181,null,2049,24.054864487191111,19.147837609214577,0.21103071695081235,0.12444064877457707,null,null,2039,0.14835778640726463,3.805717144622355,{"$f":"P40+(1-Control!$H$18)*Prices!AL40","v":0.58104173838534678},13.903556774781583,2.2351418024273775,0.2320345570346217,0,1.2503796164034304,{"$f":"IF(AND(Scenarios!$B$1=5,Scenarios!$J$53=0),Prices!$X$23,SUM(Q40,S40:W40))","v":21.426829895269371},null,2039,0,0,{"$f":"AA40+(1-Control!$H$19)*AM40","v":0.43886515129205478},13.903556774781583,2.2351418024273788,0.23239943951086528,0,1.0592720306325349,{"$f":"IF(AND(Scenarios!$B$1=5,Scenarios!$J$53=0),Prices!$AI$23,SUM(AB40,AD40:AH40))","v":17.430370047352362},null,null,0.61811993139726029,0.61811993139726029]
[4,2021,18.88016075768245,15.602766502359113,0.24,0.14915444015028181,null,2050,24.441598311230528,19.290939541469374,0.21041023803792955,0.12392671710644972,null,null,2040,0.14730998567095629,3.8157564234568491,{"$f":"P41+(1-Control!$H$18)*Prices!AL41","v":0.5788117410589344},13.838619147363364,2.2425623479236134,0.23099136597619982,0,1.2270550383004004,{"$f":"IF(AND(Scenarios!$B$1=5,Scenarios!$J$53=0),Prices!$X$23,SUM(Q41,S41:W41))","v":21.354984323020425},null,2040,0,0,{"$f":"AA41+(1-Control!$H$19)*AM41","v":0.43766606617923498},13.838619147363364,2.2425623479236152,0.2320345570346217,0,1.0358099385998962,{"$f":"IF(AND(Scenarios!$B$1=5,Scenarios!$J$53=0),Prices!$AI$23,SUM(AB41,AD41:AH41))","v":17.349025990921501},null,null,0.61643107912568307,0.61643107912568307]
[1,2022,20.007319968710846,17.070490435715261,0.26630479191499279,0.15660813080882138,null,2051,24.781082110409425,19.296502033725545,0.21041023803792955,0.12392671710644972,null,null,2041,0.14537404951615004,3.7623143114858224,{"$f":"P42+(1-Control!$H$18)*Prices!AL42","v":0.57805800149423225},13.946771571223326,2.2498987385222904,0.2298165805740742,0,1.230570384871069,{"$f":"IF(AND(Scenarios!$B$1=5,Scenarios!$J$53=0),Prices!$X$23,SUM(Q42,S42:W42))","v":21.419371586676583},null,2041,0,0,{"$f":"AA42+(1-Control!$H$19)*AM42","v":0.43886515129205478},13.946771571223326,2.2498987385222922,0.23099136597619979,0,1.0387588400128538,{"$f":"IF(AND(Scenarios!$B$1=5,Scenarios!$J$53=0),Prices!$AI$23,SUM(AB42,AD42:AH42))","v":17.466420515734672},null,null,0.61811993139726029,0.61811993139726029]
[2,2022,20.007319968710846,17.070490435715261,0.26630479191499279,0.15660813080882138,null,2052,25.28899784203993,19.488818055630411,0.21041023803792955,0.12392671710644972,null,null,2042,0.14518742807044915,3.7732484693161981,{"$f":"P43+(1-Control!$H$18)*Prices!AL43","v":0.57787138004853134},14.454289973422695,2.2568339575291692,0.22829956508020313,0,1.2423273407361397,{"$f":"IF(AND(Scenarios!$B$1=5,Scenarios!$J$53=0),Prices!$X$23,SUM(Q43,S43:W43))","v":21.954999306084407},null,2042,0,0,{"$f":"AA43+(1-Control!$H$19)*AM43","v":0.43886515129205478},14.454289973422695,2.2568339575291709,0.2298165805740742,0,1.050267816240178,{"$f":"IF(AND(Scenarios!$B$1=5,Scenarios!$J$53=0),Prices!$AI$23,SUM(AB43,AD43:AH43))","v":17.991208327766117},null,null,0.61811993139726029,0.61811993139726029]
[3,2022,20.007319968710846,17.070490435715261,0.26630479191499279,0.15660813080882138,null,2053,25.718752557251083,{"$f":"AI54","v":19.498049182740001},0.21041023803792955,0.12392671710644972,null,null,2043,0.14669412602995785,3.9000336324313243,{"$f":"P44+(1-Control!$H$18)*Prices!AL44","v":0.57937807800803998},14.837324636027441,2.2636054548549609,0.22629878366860162,0,1.2568066323544385,{"$f":"IF(AND(Scenarios!$B$1=5,Scenarios!$J$53=0),Prices!$X$23,SUM(Q44,S44:W44))","v":22.484069139336768},null,2043,0,0,{"$f":"AA44+(1-Control!$H$19)*AM44","v":0.43886515129205478},14.837324636027441,2.2636054548549627,0.22829956508020313,0,1.0645112053107897,{"$f":"IF(AND(Scenarios!$B$1=5,Scenarios!$J$53=0),Prices!$AI$23,SUM(AB44,AD44:AH44))","v":18.393740861273397},null,null,0.61811993139726029,0.61811993139726029]
[4,2022,20.007319968710846,17.070490435715261,0.26630479191499279,0.15660813080882138,null,2054,{"$f":"X55","v":26.111896033159141},19.507281078722482,0.21041023803792955,0.12392671710644972,null,null,2044,0.14735078168933,4.0047067004451868,{"$f":"P45+(1-Control!$H$18)*Prices!AL45","v":0.5788525370773081},14.982260333601763,2.2700436002001485,0.22431283776933106,0,1.2551986293082424,{"$f":"IF(AND(Scenarios!$B$1=5,Scenarios!$J$53=0),Prices!$X$23,SUM(Q45,S45:W45))","v":22.73652210132467},null,2044,0,0,{"$f":"AA45+(1-Control!$H$19)*AM45","v":0.43766606617923498},14.982260333601763,2.2700436002001503,0.22629878366860162,0,1.0632520711896596,{"$f":"IF(AND(Scenarios!$B$1=5,Scenarios!$J$53=0),Prices!$AI$23,SUM(AB45,AD45:AH45))","v":18.541854788660171},null,null,0.61643107912568307,0.61643107912568307]
[1,2023,18.866398561964292,16.463430961823253,0.26579453609630688,0.15570104620945943,null,2055,26.528496255126534,19.516513742808979,0.21041023803792955,0.12392671710644972,null,null,2045,0.14752959699794413,4.053894715361567,{"$f":"P46+(1-Control!$H$18)*Prices!AL46","v":0.58021354897602628},15.167313847809018,2.2762875227745476,0.22265094098740976,0,1.2535596731156606,{"$f":"IF(AND(Scenarios!$B$1=5,Scenarios!$J$53=0),Prices!$X$23,SUM(Q46,S46:W46))","v":22.973706700048204},null,2045,0,0,{"$f":"AA46+(1-Control!$H$19)*AM46","v":0.43886515129205478},15.167313847809018,2.2762875227745494,0.22431283776933103,0,1.0623155688150963,{"$f":"IF(AND(Scenarios!$B$1=5,Scenarios!$J$53=0),Prices!$AI$23,SUM(AB46,AD46:AH46))","v":18.730229777167999},null,null,0.61811993139726029,0.61811993139726029]
[2,2023,18.866398561964292,16.463430961823253,0.26579453609630688,0.15570104620945943,null,2056,25.146637626288612,19.525747174231388,0.21041023803792955,0.12392671710644972,null,null,2046,0.15042122563910829,4.1765953595850656,{"$f":"P47+(1-Control!$H$18)*Prices!AL47","v":0.5831051776171905},15.340801027764273,2.2822457588734291,0.22087851641180187,0,1.251739329461697,{"$f":"IF(AND(Scenarios!$B$1=5,Scenarios!$J$53=0),Prices!$X$23,SUM(Q47,S47:W47))","v":23.272259992096267},null,2046,0,0,{"$f":"AA47+(1-Control!$H$19)*AM47","v":0.43886515129205478},15.340801027764273,2.2822457588734308,0.22265094098740976,0,1.0611908609982252,{"$f":"IF(AND(Scenarios!$B$1=5,Scenarios!$J$53=0),Prices!$AI$23,SUM(AB47,AD47:AH47))","v":18.906888588623339},null,null,0.61811993139726029,0.61811993139726029]
[3,2023,18.866398561964292,16.463430961823253,0.26579453609630688,0.15570104620945943,null,2057,24.923450434222161,19.534981372222383,0.21041023803792955,0.12392671710644972,null,null,2047,0.15433287975148785,4.3399447809017175,{"$f":"P48+(1-Control!$H$18)*Prices!AL48","v":0.58701683172957009},15.427525724840899,2.2879992521513066,0.21898904345648454,0,1.2771144972021959,{"$f":"IF(AND(Scenarios!$B$1=5,Scenarios!$J$53=0),Prices!$X$23,SUM(Q48,S48:W48))","v":23.551573298552601},null,2047,0,0,{"$f":"AA48+(1-Control!$H$19)*AM48","v":0.43886515129205478},15.427525724840899,2.2879992521513079,0.22087851641180187,0,1.0863274319967062,{"$f":"IF(AND(Scenarios!$B$1=5,Scenarios!$J$53=0),Prices!$AI$23,SUM(AB48,AD48:AH48))","v":19.022730925400715},null,null,0.61811993139726029,0.61811993139726029]
[4,2023,18.866398561964292,16.463430961823253,0.26579453609630688,0.15570104620945943,null,2058,25.29704068287008,19.544216336015378,0.21041023803792955,0.12392671710644972,null,null,2048,0.15880970237397996,4.5198452102344691,{"$f":"P49+(1-Control!$H$18)*Prices!AL49","v":0.59031145776195815},15.50171046620896,2.2935011834198855,0.21509283915944405,0,1.2700814252178301,{"$f":"IF(AND(Scenarios!$B$1=5,Scenarios!$J$53=0),Prices!$X$23,SUM(Q49,S49:W49))","v":23.80023112424059},null,2048,0,0,{"$f":"AA49+(1-Control!$H$19)*AM49","v":0.43766606617923498},15.50171046620896,2.2935011834198873,0.21898904345648454,0,1.0799466794867962,{"$f":"IF(AND(Scenarios!$B$1=5,Scenarios!$J$53=0),Prices!$AI$23,SUM(AB49,AD49:AH49))","v":19.094147372572127},null,null,0.61643107912568307,0.61643107912568307]
[1,2024,18.573547972919208,16.490515750020133,0.25790896548606684,0.14997025410140449,null,2059,25.77409437388058,19.553452064844588,0.21041023803792955,0.12392671710644972,null,null,2049,0.16410673616008489,4.7220097987243905,{"$f":"P50+(1-Control!$H$18)*Prices!AL50","v":0.59679068813816705},15.565671805927307,2.2988007479013541,0.21087217721729412,0,1.2575099574207651,{"$f":"IF(AND(Scenarios!$B$1=5,Scenarios!$J$53=0),Prices!$X$23,SUM(Q50,S50:W50))","v":24.054864487191111},null,2049,0,0,{"$f":"AA50+(1-Control!$H$19)*AM50","v":0.43886515129205478},15.565671805927307,2.2988007479013559,0.21509283915944405,0,1.0682722162264704,{"$f":"IF(AND(Scenarios!$B$1=5,Scenarios!$J$53=0),Prices!$AI$23,SUM(AB50,AD50:AH50))","v":19.147837609214577},null,null,0.61811993139726029,0.61811993139726029]
[2,2024,18.573547972919208,16.490515750020133,0.25790896548606684,0.14997025410140449,null,2060,26.226241462342532,19.562688557944959,0.21041023803792955,0.12392671710644972,null,null,2050,0.17057822375507442,4.9638865524202709,{"$f":"P51+(1-Control!$H$18)*Prices!AL51","v":0.60326217573315666},15.721494759103264,2.3038752595825116,0.21087217721729412,0,1.2414695629071866,{"$f":"IF(AND(Scenarios!$B$1=5,Scenarios!$J$53=0),Prices!$X$23,SUM(Q51,S51:W51))","v":24.441598311230528},null,2050,0,0,{"$f":"AA51+(1-Control!$H$19)*AM51","v":0.43886515129205478},15.721494759103264,2.3038752595825134,0.21087217721729412,0,1.0546973455663025,{"$f":"IF(AND(Scenarios!$B$1=5,Scenarios!$J$53=0),Prices!$AI$23,SUM(AB51,AD51:AH51))","v":19.290939541469374},null,null,0.61811993139726029,0.61811993139726029]
[3,2024,18.573547972919208,16.490515750020133,0.25790896548606684,0.14997025410140449,null,2061,26.701444238816777,19.571925814552241,0.21041023803792955,0.12392671710644972,null,null,2051,0.17918565087017704,5.3010355804005975,{"$f":"P52+(1-Control!$H$18)*Prices!AL52","v":0.6118696028482592},15.757028678496848,2.3038752595825116,0.21087217721729412,0,1.2082704147121737,{"$f":"IF(AND(Scenarios!$B$1=5,Scenarios!$J$53=0),Prices!$X$23,SUM(Q52,S52:W52))","v":24.781082110409425},null,2051,0,0,{"$f":"AA52+(1-Control!$H$19)*AM52","v":0.43886515129205478},15.757028678496848,2.3038752595825134,0.21087217721729412,0,1.0247259184288873,{"$f":"IF(AND(Scenarios!$B$1=5,Scenarios!$J$53=0),Prices!$AI$23,SUM(AB52,AD52:AH52))","v":19.296502033725545},null,null,0.61811993139726029,0.61811993139726029]
[4,2024,18.573547972919208,16.490515750020133,0.25790896548606684,0.14997025410140449,null,2062,27.230336270926681,19.581163833902906,0.21041023803792955,0.12392671710644972,null,null,2052,0.1871004458501361,5.6158656475932904,{"$f":"P53+(1-Control!$H$18)*Prices!AL53","v":0.61860220123811427},15.950114342934661,2.3038752595825116,0.21087217721729412,0,1.2082704147121737,{"$f":"IF(AND(Scenarios!$B$1=5,Scenarios!$J$53=0),Prices!$X$23,SUM(Q53,S53:W53))","v":25.28899784203993},null,2052,0,0,{"$f":"AA53+(1-Control!$H$19)*AM53","v":0.43766606617923498},15.950114342934661,2.3038752595825134,0.21087217721729412,0,1.023956275895944,{"$f":"IF(AND(Scenarios!$B$1=5,Scenarios!$J$53=0),Prices!$AI$23,SUM(AB53,AD53:AH53))","v":19.488818055630411},null,null,0.61643107912568307,0.61643107912568307]
[1,2025,17.980502898245323,15.965581326746433,0.25863104585134156,0.15053479173930495,null,2063,27.825906831902909,19.590402615234229,0.21041023803792955,0.12392671710644972,null,null,{"$f":"H44","v":2053},0.19694534277251358,6.035620362804444,{"$f":"P54+(1-Control!$H$18)*Prices!AL54","v":0.6296292947505957},15.960114342934661,2.3038752595825116,0.21087217721729412,0,1.2082704147121737,{"$f":"IF(AND(Scenarios!$B$1=5,Scenarios!$J$53=0),Prices!$X$23,SUM(Q54,S54:W54))","v":25.718752557251083},null,2053,0,0,{"$f":"AA54+(1-Control!$H$19)*AM54","v":0.43886515129205478},15.960114342934661,2.3038752595825134,0.21087217721729412,0,1.0231874030055337,{"$f":"IF(AND(Scenarios!$B$1=5,Scenarios!$J$53=0),Prices!$AI$23,SUM(AB54,AD54:AH54))","v":19.498049182740001},null,null,0.61811993139726029,0.61811993139726029]
[2,2025,17.980502898245323,15.965581326746433,0.25863104585134156,0.15053479173930495,null,2064,28.500326773399177,19.599642157784213,0.21041023803792955,0.12392671710644972,null,null,2054,0.20583390337334462,6.4187638387125014,{"$f":"P55+(1-Control!$H$18)*Prices!AL55","v":0.6385178553514268},15.970114342934661,2.3038752595825116,0.21087217721729412,0,1.2082704147121737,{"$f":"IF(AND(Scenarios!$B$1=5,Scenarios!$J$53=0),Prices!$X$23,SUM(Q55,S55:W55))","v":26.111896033159141},null,2054,0,0,{"$f":"AA55+(1-Control!$H$19)*AM55","v":0.43886515129205478},15.970114342934661,2.3038752595825134,0.21087217721729412,0,1.0224192989880136,{"$f":"IF(AND(Scenarios!$B$1=5,Scenarios!$J$53=0),Prices!$AI$23,SUM(AB55,AD55:AH55))","v":19.507281078722482},null,null,0.61811993139726029,0.61811993139726029]
[3,2025,17.980502898245323,15.965581326746433,0.25863104585134156,0.15053479173930495,null,2065,29.271334849518308,19.608882460791651,0.21041023803792955,0.12392671710644972,null,null,2055,0.21546536280818732,6.8253640606798935,{"$f":"P56+(1-Control!$H$18)*Prices!AL56","v":0.64814931478626947},15.980114342934661,2.3038752595825116,0.21087217721729412,0,1.2082704147121737,{"$f":"IF(AND(Scenarios!$B$1=5,Scenarios!$J$53=0),Prices!$X$23,SUM(Q56,S56:W56))","v":26.528496255126534},null,2055,0,0,{"$f":"AA56+(1-Control!$H$19)*AM56","v":0.43886515129205478},15.980114342934661,2.3038752595825134,0.21087217721729412,0,1.0216519630745111,{"$f":"IF(AND(Scenarios!$B$1=5,Scenarios!$J$53=0),Prices!$AI$23,SUM(AB56,AD56:AH56))","v":19.516513742808979},null,null,0.61811993139726029,0.61811993139726029]
[4,2025,17.980502898245323,15.965581326746433,0.25863104585134156,0.15053479173930495,null,2066,30.16099052897016,19.618123523496081,0.21041023803792955,0.12392671710644972,null,null,2056,0.16876555267365514,5.4335054318419722,{"$f":"P57+(1-Control!$H$18)*Prices!AL57","v":0.60026730806163331},15.99011434293466,2.3038752595825116,0.21087217721729412,0,1.2082704147121737,{"$f":"IF(AND(Scenarios!$B$1=5,Scenarios!$J$53=0),Prices!$X$23,SUM(Q57,S57:W57))","v":25.146637626288612},null,2056,0,0,{"$f":"AA57+(1-Control!$H$19)*AM57","v":0.43766606617923498},15.99011434293466,2.3038752595825134,0.21087217721729412,0,1.0208853944969221,{"$f":"IF(AND(Scenarios!$B$1=5,Scenarios!$J$53=0),Prices!$AI$23,SUM(AB57,AD57:AH57))","v":19.525747174231388},null,null,0.61643107912568307,0.61643107912568307]
[1,2026,17.866822863151032,15.929677490995289,0.25715768838761938,0.14870736736343063,null,2067,31.188578248042411,19.627365345137807,0.21041023803792955,0.12392671710644972,null,null,2057,0.16863622672777329,5.2003182397755205,{"$f":"P58+(1-Control!$H$18)*Prices!AL58","v":0.60132017870585552},16.000114342934662,2.3038752595825116,0.21087217721729412,0,1.2082704147121737,{"$f":"IF(AND(Scenarios!$B$1=5,Scenarios!$J$53=0),Prices!$X$23,SUM(Q58,S58:W58))","v":24.923450434222161},null,2057,0,0,{"$f":"AA58+(1-Control!$H$19)*AM58","v":0.43886515129205478},16.000114342934662,2.3038752595825134,0.21087217721729412,0,1.0201195924879107,{"$f":"IF(AND(Scenarios!$B$1=5,Scenarios!$J$53=0),Prices!$AI$23,SUM(AB58,AD58:AH58))","v":19.534981372222383},null,null,0.61811993139726029,0.61811993139726029]
[2,2026,17.866822863151032,15.929677490995289,0.25715768838761938,0.14870736736343063,null,2068,32.372026304802681,19.63660792495789,0.21041023803792955,0.12392671710644972,null,null,2058,0.18161708836962343,5.5639084884234364,{"$f":"P59+(1-Control!$H$18)*Prices!AL59","v":0.61430104034770561},16.010114342934664,2.3038752595825116,0.21087217721729412,0,1.2082704147121737,{"$f":"IF(AND(Scenarios!$B$1=5,Scenarios!$J$53=0),Prices!$X$23,SUM(Q59,S59:W59))","v":25.29704068287008},null,2058,0,0,{"$f":"AA59+(1-Control!$H$19)*AM59","v":0.43886515129205478},16.010114342934664,2.3038752595825134,0.21087217721729412,0,1.0193545562809083,{"$f":"IF(AND(Scenarios!$B$1=5,Scenarios!$J$53=0),Prices!$AI$23,SUM(AB59,AD59:AH59))","v":19.544216336015378},null,null,0.61811993139726029,0.61811993139726029]
[3,2026,17.866822863151032,15.929677490995289,0.25715768838761938,0.14870736736343063,null,2069,33.733140304747977,19.645851262198157,0.21041023803792955,0.12392671710644972,null,null,2059,0.19389582423842655,6.0309621794339341,{"$f":"P60+(1-Control!$H$18)*Prices!AL60","v":0.62657977621650873},16.020114342934665,2.3038752595825116,0.21087217721729412,0,1.2082704147121737,{"$f":"IF(AND(Scenarios!$B$1=5,Scenarios!$J$53=0),Prices!$X$23,SUM(Q60,S60:W60))","v":25.77409437388058},null,2059,0,0,{"$f":"AA60+(1-Control!$H$19)*AM60","v":0.43886515129205478},16.020114342934665,2.3038752595825134,0.21087217721729412,0,1.0185902851101132,{"$f":"IF(AND(Scenarios!$B$1=5,Scenarios!$J$53=0),Prices!$AI$23,SUM(AB60,AD60:AH60))","v":19.553452064844588},null,null,0.61811993139726029,0.61811993139726029]
[4,2026,17.866822863151032,15.929677490995289,0.25715768838761938,0.14870736736343063,null,2070,35.305248616689568,19.655095356101175,0.21041023803792955,0.12392671710644972,null,null,2060,0.20423863217629681,6.4731092678958859,{"$f":"P61+(1-Control!$H$18)*Prices!AL61","v":0.63574038756427498},16.030114342934667,2.3038752595825116,0.21087217721729412,0,1.2082704147121737,{"$f":"IF(AND(Scenarios!$B$1=5,Scenarios!$J$53=0),Prices!$X$23,SUM(Q61,S61:W61))","v":26.226241462342532},null,2060,0,0,{"$f":"AA61+(1-Control!$H$19)*AM61","v":0.43766606617923498},16.030114342934667,2.3038752595825134,0.21087217721729412,0,1.0178267782104884,{"$f":"IF(AND(Scenarios!$B$1=5,Scenarios!$J$53=0),Prices!$AI$23,SUM(AB61,AD61:AH61))","v":19.562688557944959},null,null,0.61643107912568307,0.61643107912568307]
[1,2027,18.262989283591587,16.340297838816532,0.25204228976577414,0.14527299177570804,null,2071,37.137095683944608,19.6643402059103,0.21041023803792955,0.12392671710644972,null,null,2061,0.21513942257330823,6.9383120443701278,{"$f":"P62+(1-Control!$H$18)*Prices!AL62","v":0.64782337455139039},16.040114342934668,2.3038752595825116,0.21087217721729412,0,1.2082704147121737,{"$f":"IF(AND(Scenarios!$B$1=5,Scenarios!$J$53=0),Prices!$X$23,SUM(Q62,S62:W62))","v":26.701444238816777},null,2061,0,0,{"$f":"AA62+(1-Control!$H$19)*AM62","v":0.43886515129205478},16.040114342934668,2.3038752595825134,0.21087217721729412,0,1.0170640348177633,{"$f":"IF(AND(Scenarios!$B$1=5,Scenarios!$J$53=0),Prices!$AI$23,SUM(AB62,AD62:AH62))","v":19.571925814552241},null,null,0.61811993139726029,0.61811993139726029]
[2,2027,18.262989283591587,16.340297838816532,0.25204228976577414,0.14527299177570804,null,2072,39.296835633049696,19.673585810869607,0.21041023803792955,0.12392671710644972,null,null,2062,0.22715091485446398,7.4572040764800338,{"$f":"P63+(1-Control!$H$18)*Prices!AL63","v":0.65983486683254622},16.05011434293467,2.3038752595825116,0.21087217721729412,0,1.2082704147121737,{"$f":"IF(AND(Scenarios!$B$1=5,Scenarios!$J$53=0),Prices!$X$23,SUM(Q63,S63:W63))","v":27.230336270926681},null,2062,0,0,{"$f":"AA63+(1-Control!$H$19)*AM63","v":0.43886515129205478},16.05011434293467,2.3038752595825134,0.21087217721729412,0,1.0163020541684313,{"$f":"IF(AND(Scenarios!$B$1=5,Scenarios!$J$53=0),Prices!$AI$23,SUM(AB63,AD63:AH63))","v":19.581163833902906},null,null,0.61811993139726029,0.61811993139726029]
[3,2027,18.262989283591587,16.340297838816532,0.25204228976577414,0.14527299177570804,null,2073,41.876262814538464,19.682832170223964,0.21041023803792955,0.12392671710644972,null,null,2063,0.24033045846113762,8.0427746374562599,{"$f":"P64+(1-Control!$H$18)*Prices!AL64","v":0.67301441043921983},16.060114342934671,2.3038752595825116,0.21087217721729412,0,1.2082704147121737,{"$f":"IF(AND(Scenarios!$B$1=5,Scenarios!$J$53=0),Prices!$X$23,SUM(Q64,S64:W64))","v":27.825906831902909},null,2063,0,0,{"$f":"AA64+(1-Control!$H$19)*AM64","v":0.43886515129205478},16.060114342934671,2.3038752595825134,0.21087217721729412,0,1.0155408354997482,{"$f":"IF(AND(Scenarios!$B$1=5,Scenarios!$J$53=0),Prices!$AI$23,SUM(AB64,AD64:AH64))","v":19.590402615234229},null,null,0.61811993139726029,0.61811993139726029]
[4,2027,18.262989283591587,16.340297838816532,0.25204228976577414,0.14527299177570804,null,2074,44.414050871978318,19.692079283218956,0.21041023803792955,0.12392671710644972,null,null,2064,0.25480729314634448,8.7071945789525245,{"$f":"P65+(1-Control!$H$18)*Prices!AL65","v":0.68630904853432262},16.070114342934673,2.3038752595825116,0.21087217721729412,0,1.2082704147121737,{"$f":"IF(AND(Scenarios!$B$1=5,Scenarios!$J$53=0),Prices!$X$23,SUM(Q65,S65:W65))","v":28.500326773399177},null,2064,0,0,{"$f":"AA65+(1-Control!$H$19)*AM65","v":0.43766606617923498},16.070114342934673,2.3038752595825134,0.21087217721729412,0,1.014780378049734,{"$f":"IF(AND(Scenarios!$B$1=5,Scenarios!$J$53=0),Prices!$AI$23,SUM(AB65,AD65:AH65))","v":19.599642157784213},null,null,0.61643107912568307,0.61643107912568307]
[1,2028,19.357830356874629,17.469361636967804,0.26387753558951549,0.15343165759792621,null,2075,46.749974866028012,19.701327149100962,0.21041023803792955,0.12392671710644972,null,null,2065,0.27083500649350423,9.4682026550716536,{"$f":"P66+(1-Control!$H$18)*Prices!AL66","v":0.70351895847158641},16.080114342934674,2.3038752595825116,0.21087217721729412,0,1.2082704147121737,{"$f":"IF(AND(Scenarios!$B$1=5,Scenarios!$J$53=0),Prices!$X$23,SUM(Q66,S66:W66))","v":29.271334849518308},null,2065,0,0,{"$f":"AA66+(1-Control!$H$19)*AM66","v":0.43886515129205478},16.080114342934674,2.3038752595825134,0.21087217721729412,0,1.0140206810571697,{"$f":"IF(AND(Scenarios!$B$1=5,Scenarios!$J$53=0),Prices!$AI$23,SUM(AB66,AD66:AH66))","v":19.608882460791651},null,null,0.61811993139726029,0.61811993139726029]
[2,2028,{"$f":"SUMIF($H$2:$H$91,B67,$I$2:$I$91)","v":19.357830356874629},{"$f":"SUMIF($H$2:$H$91,B67,$J$2:$J$91)","v":17.469361636967804},{"$f":"SUMIF($H$2:$H$91,B67,$K$2:$K$91)","v":0.26387753558951549},{"$f":"SUMIF($H$2:$H$91,B67,$L$2:$L$91)","v":0.15343165759792621},null,2076,49.135225605858338,19.710575767117081,0.21041023803792955,0.12392671710644972,null,null,2066,0.28866963731187928,10.347858334523504,{"$f":"P67+(1-Control!$H$18)*Prices!AL67","v":0.72135358928996141},16.090114342934676,2.3038752595825116,0.21087217721729412,0,1.2082704147121737,{"$f":"IF(AND(Scenarios!$B$1=5,Scenarios!$J$53=0),Prices!$X$23,SUM(Q67,S67:W67))","v":30.16099052897016},null,2066,0,0,{"$f":"AA67+(1-Control!$H$19)*AM67","v":0.43886515129205478},16.090114342934676,2.3038752595825134,0.21087217721729412,0,1.0132617437615983,{"$f":"IF(AND(Scenarios!$B$1=5,Scenarios!$J$53=0),Prices!$AI$23,SUM(AB67,AD67:AH67))","v":19.618123523496081},null,null,0.61811993139726029,0.61811993139726029]
[3,2028,19.357830356874629,17.469361636967804,0.26387753558951549,0.15343165759792621,null,2077,51.816425950258491,19.719825136515187,0.21041023803792955,0.12392671710644972,null,null,2067,0.30834289285969035,11.365446053595754,{"$f":"P68+(1-Control!$H$18)*Prices!AL68","v":0.74102684483777259},16.100114342934678,2.3038752595825116,0.21087217721729412,0,1.2082704147121737,{"$f":"IF(AND(Scenarios!$B$1=5,Scenarios!$J$53=0),Prices!$X$23,SUM(Q68,S68:W68))","v":31.188578248042411},null,2067,0,0,{"$f":"AA68+(1-Control!$H$19)*AM68","v":0.43886515129205478},16.100114342934678,2.3038752595825134,0.21087217721729412,0,1.0125035654033221,{"$f":"IF(AND(Scenarios!$B$1=5,Scenarios!$J$53=0),Prices!$AI$23,SUM(AB68,AD68:AH68))","v":19.627365345137807},null,null,0.61811993139726029,0.61811993139726029]
[4,2028,19.357830356874629,17.469361636967804,0.26387753558951549,0.15343165759792621,null,2078,55.010736406870656,19.72907525654389,0.21041023803792955,0.12392671710644972,null,null,2068,0.32975712707273647,12.538894110356022,{"$f":"P69+(1-Control!$H$18)*Prices!AL69","v":0.7612588824607146},16.110114342934679,2.3038752595825116,0.21087217721729412,0,1.2082704147121737,{"$f":"IF(AND(Scenarios!$B$1=5,Scenarios!$J$53=0),Prices!$X$23,SUM(Q69,S69:W69))","v":32.372026304802681},null,2068,0,0,{"$f":"AA69+(1-Control!$H$19)*AM69","v":0.43766606617923498},16.110114342934679,2.3038752595825134,0.21087217721729412,0,1.0117461452234044,{"$f":"IF(AND(Scenarios!$B$1=5,Scenarios!$J$53=0),Prices!$AI$23,SUM(AB69,AD69:AH69))","v":19.63660792495789},null,null,0.61643107912568307,0.61643107912568307]
[1,2029,20.319287504805818,18.490823485655664,0.26342712081396308,0.15280117613351835,null,2079,59.628655323959919,19.738326126452574,0.21041023803792955,0.12392671710644972,null,null,2069,0.35284844922988085,13.890008110301313,{"$f":"P70+(1-Control!$H$18)*Prices!AL70","v":0.78553240120796297},16.120114342934681,2.3038752595825116,0.21087217721729412,0,1.2082704147121737,{"$f":"IF(AND(Scenarios!$B$1=5,Scenarios!$J$53=0),Prices!$X$23,SUM(Q70,S70:W70))","v":33.733140304747977},null,2069,0,0,{"$f":"AA70+(1-Control!$H$19)*AM70","v":0.43886515129205478},16.120114342934681,2.3038752595825134,0.21087217721729412,0,1.0109894824636665,{"$f":"IF(AND(Scenarios!$B$1=5,Scenarios!$J$53=0),Prices!$AI$23,SUM(AB70,AD70:AH70))","v":19.645851262198157},null,null,0.61811993139726029,0.61811993139726029]
[2,2029,20.319287504805818,18.490823485655664,0.26342712081396308,0.15280117613351835,null,2080,66.450085501078036,19.747577745491338,0.21041023803792955,0.12392671710644972,null,null,2070,0.37770125240917152,15.4521164222429,{"$f":"P71+(1-Control!$H$18)*Prices!AL71","v":0.8103852043872537},16.130114342934682,2.3038752595825116,0.21087217721729412,0,1.2082704147121737,{"$f":"IF(AND(Scenarios!$B$1=5,Scenarios!$J$53=0),Prices!$X$23,SUM(Q71,S71:W71))","v":35.305248616689568},null,2070,0,0,{"$f":"AA71+(1-Control!$H$19)*AM71","v":0.43886515129205478},16.130114342934682,2.3038752595825134,0.21087217721729412,0,1.0102335763666883,{"$f":"IF(AND(Scenarios!$B$1=5,Scenarios!$J$53=0),Prices!$AI$23,SUM(AB71,AD71:AH71))","v":19.655095356101175},null,null,0.61811993139726029,0.61811993139726029]
[{"$f":"A68","v":3},{"$f":"B68+1","v":2029},20.319287504805818,18.490823485655664,0.26342712081396308,0.15280117613351835,null,2081,76.602519279548915,19.756830112911071,0.21041023803792955,0.12392671710644972,null,null,2071,0.40451482807767658,17.273963489497937,{"$f":"P72+(1-Control!$H$18)*Prices!AL72","v":0.83719878005575876},16.140114342934684,2.3038752595825116,0.21087217721729412,0,1.2082704147121737,{"$f":"IF(AND(Scenarios!$B$1=5,Scenarios!$J$53=0),Prices!$X$23,SUM(Q72,S72:W72))","v":37.137095683944608},null,2071,0,0,{"$f":"AA72+(1-Control!$H$19)*AM72","v":0.43886515129205478},16.140114342934684,2.3038752595825134,0.21087217721729412,0,1.0094784261758072,{"$f":"IF(AND(Scenarios!$B$1=5,Scenarios!$J$53=0),Prices!$AI$23,SUM(AB72,AD72:AH72))","v":19.6643402059103},null,null,0.61811993139726029,0.61811993139726029]
[4,2029,20.319287504805818,18.490823485655664,0.26342712081396308,0.15280117613351835,null,2082,19.973132194446681,19.766083227963378,0.21041023803792955,0.12392671710644972,null,null,2072,0.43351306524757066,19.423703438603027,{"$f":"P73+(1-Control!$H$18)*Prices!AL73","v":0.8650148206355488},16.150114342934685,2.3038752595825116,0.21087217721729412,0,1.2082704147121737,{"$f":"IF(AND(Scenarios!$B$1=5,Scenarios!$J$53=0),Prices!$X$23,SUM(Q73,S73:W73))","v":39.296835633049696},null,2072,0,0,{"$f":"AA73+(1-Control!$H$19)*AM73","v":0.43766606617923498},16.150114342934685,2.3038752595825134,0.21087217721729412,0,1.0087240311351169,{"$f":"IF(AND(Scenarios!$B$1=5,Scenarios!$J$53=0),Prices!$AI$23,SUM(AB73,AD73:AH73))","v":19.673585810869607},null,null,0.61643107912568307,0.61643107912568307]
[1,2030,20.870346833444238,19.269684196119226,0.27953189860220029,0.16356109714741177,null,2083,19.983132194446682,19.775337089900642,0.21041023803792955,0.12392671710644972,null,null,2073,0.46490545290008384,21.993130620091794,{"$f":"P74+(1-Control!$H$18)*Prices!AL74","v":0.89758940487816608},16.160114342934687,2.3038752595825116,0.21087217721729412,0,1.2082704147121737,{"$f":"IF(AND(Scenarios!$B$1=5,Scenarios!$J$53=0),Prices!$X$23,SUM(Q74,S74:W74))","v":41.876262814538464},null,2073,0,0,{"$f":"AA74+(1-Control!$H$19)*AM74","v":0.43886515129205478},16.160114342934687,2.3038752595825134,0.21087217721729412,0,1.0079703904894672,{"$f":"IF(AND(Scenarios!$B$1=5,Scenarios!$J$53=0),Prices!$AI$23,SUM(AB74,AD74:AH74))","v":19.682832170223964},null,null,0.61811993139726029,0.61811993139726029]
[2,2030,20.870346833444238,19.269684196119226,0.27953189860220029,0.16356109714741177,null,2084,19.993132194446684,19.784591697975959,0.21041023803792955,0.12392671710644972,null,null,2074,0.48715884188254538,24.520918677531643,{"$f":"P75+(1-Control!$H$18)*Prices!AL75","v":0.91984279386062751},16.170114342934689,2.3038752595825116,0.21087217721729412,0,1.2082704147121737,{"$f":"IF(AND(Scenarios!$B$1=5,Scenarios!$J$53=0),Prices!$X$23,SUM(Q75,S75:W75))","v":44.414050871978318},null,2074,0,0,{"$f":"AA75+(1-Control!$H$19)*AM75","v":0.43886515129205478},16.170114342934689,2.3038752595825134,0.21087217721729412,0,1.0072175034844635,{"$f":"IF(AND(Scenarios!$B$1=5,Scenarios!$J$53=0),Prices!$AI$23,SUM(AB75,AD75:AH75))","v":19.692079283218956},null,null,0.61811993139726029,0.61811993139726029]
[3,2030,20.870346833444238,19.269684196119226,0.27953189860220029,0.16356109714741177,null,2085,20.003132194446685,{"$f":"AI86","v":19.793847051443208},0.21041023803792955,0.12392671710644972,null,null,2075,0.50441737677693488,26.846842671581335,{"$f":"P76+(1-Control!$H$18)*Prices!AL76","v":0.93710132875501706},16.18011434293469,2.3038752595825116,0.21087217721729412,0,1.2082704147121737,{"$f":"IF(AND(Scenarios!$B$1=5,Scenarios!$J$53=0),Prices!$X$23,SUM(Q76,S76:W76))","v":46.749974866028012},null,2075,0,0,{"$f":"AA76+(1-Control!$H$19)*AM76","v":0.43886515129205478},16.18011434293469,2.3038752595825134,0.21087217721729412,0,1.0064653693664645,{"$f":"IF(AND(Scenarios!$B$1=5,Scenarios!$J$53=0),Prices!$AI$23,SUM(AB76,AD76:AH76))","v":19.701327149100962},null,null,0.61811993139726029,0.61811993139726029]
[4,2030,20.870346833444238,19.269684196119226,0.27953189860220029,0.16356109714741177,null,2086,{"$f":"X87","v":20.013132194446687},19.803103149556982,0.21041023803792955,0.12392671710644972,null,null,2076,0.5241721623081449,29.22209341141166,{"$f":"P77+(1-Control!$H$18)*Prices!AL77","v":0.95567391769612309},16.190114342934692,2.3038752595825116,0.21087217721729412,0,1.2082704147121737,{"$f":"IF(AND(Scenarios!$B$1=5,Scenarios!$J$53=0),Prices!$X$23,SUM(Q77,S77:W77))","v":49.135225605858338},null,2076,0,0,{"$f":"AA77+(1-Control!$H$19)*AM77","v":0.43766606617923498},16.190114342934692,2.3038752595825134,0.21087217721729412,0,1.0057139873825836,{"$f":"IF(AND(Scenarios!$B$1=5,Scenarios!$J$53=0),Prices!$AI$23,SUM(AB77,AD77:AH77))","v":19.710575767117081},null,null,0.61643107912568307,0.61643107912568307]
[1,2031,19.05740447024764,17.759903910691044,0.27256619412964128,0.15979644462292611,null,{"$f":"H77+1","v":2087},20.023132194446688,19.812359991572649,0.21041023803792955,0.12392671710644972,null,null,2077,0.54749672841498298,31.893293755811815,{"$f":"P78+(1-Control!$H$18)*Prices!AL78","v":0.98018068039306516},16.200114342934693,2.3038752595825116,0.21087217721729412,0,1.2082704147121737,{"$f":"IF(AND(Scenarios!$B$1=5,Scenarios!$J$53=0),Prices!$X$23,SUM(Q78,S78:W78))","v":51.816425950258491},null,2077,0,0,{"$f":"AA78+(1-Control!$H$19)*AM78","v":0.43886515129205478},16.200114342934693,2.3038752595825134,0.21087217721729412,0,1.0049633567806866,{"$f":"IF(AND(Scenarios!$B$1=5,Scenarios!$J$53=0),Prices!$AI$23,SUM(AB78,AD78:AH78))","v":19.719825136515187},null,null,0.61811993139726029,0.61811993139726029]
[2,2031,19.05740447024764,17.759903910691044,0.27256619412964128,0.15979644462292611,null,2088,20.03313219444669,19.821617576746295,0.21041023803792955,0.12392671710644972,null,null,2078,0.57456590355837611,35.077604212423978,{"$f":"P79+(1-Control!$H$18)*Prices!AL79","v":1.0072498555364584},16.210114342934695,2.3038752595825116,0.21087217721729412,0,1.2082704147121737,{"$f":"IF(AND(Scenarios!$B$1=5,Scenarios!$J$53=0),Prices!$X$23,SUM(Q79,S79:W79))","v":55.010736406870656},null,2078,0,0,{"$f":"AA79+(1-Control!$H$19)*AM79","v":0.43886515129205478},16.210114342934695,2.3038752595825134,0.21087217721729412,0,1.0042134768093915,{"$f":"IF(AND(Scenarios!$B$1=5,Scenarios!$J$53=0),Prices!$AI$23,SUM(AB79,AD79:AH79))","v":19.72907525654389},null,null,0.61811993139726029,0.61811993139726029]
[3,2031,19.05740447024764,17.759903910691044,0.27256619412964128,0.15979644462292611,null,2089,20.043132194446692,19.830875904334775,0.21041023803792955,0.12392671710644972,null,null,2079,0.61604098888771208,39.685523129513243,{"$f":"P80+(1-Control!$H$18)*Prices!AL80","v":1.0487249408657942},16.220114342934696,2.3038752595825116,0.21087217721729412,0,1.2082704147121737,{"$f":"IF(AND(Scenarios!$B$1=5,Scenarios!$J$53=0),Prices!$X$23,SUM(Q80,S80:W80))","v":59.628655323959919},null,2079,0,0,{"$f":"AA80+(1-Control!$H$19)*AM80","v":0.43886515129205478},16.220114342934696,2.3038752595825134,0.21087217721729412,0,1.0034643467180677,{"$f":"IF(AND(Scenarios!$B$1=5,Scenarios!$J$53=0),Prices!$AI$23,SUM(AB80,AD80:AH80))","v":19.738326126452574},null,null,0.61811993139726029,0.61811993139726029]
[4,2031,19.05740447024764,17.759903910691044,0.27256619412964128,0.15979644462292611,null,2090,20.053132194446693,19.840134973595656,0.21041023803792955,0.12392671710644972,null,null,2080,0.66747925074252668,46.496953306631355,{"$f":"P81+(1-Control!$H$18)*Prices!AL81","v":1.0989810061305048},16.230114342934698,2.3038752595825116,0.21087217721729412,0,1.2082704147121737,{"$f":"IF(AND(Scenarios!$B$1=5,Scenarios!$J$53=0),Prices!$X$23,SUM(Q81,S81:W81))","v":66.450085501078036},null,2080,0,0,{"$f":"AA81+(1-Control!$H$19)*AM81","v":0.43766606617923498},16.230114342934698,2.3038752595825134,0.21087217721729412,0,1.002715965756835,{"$f":"IF(AND(Scenarios!$B$1=5,Scenarios!$J$53=0),Prices!$AI$23,SUM(AB81,AD81:AH81))","v":19.747577745491338},null,null,0.61643107912568307,0.61643107912568307]
[1,2032,18.760390994884972,17.690585848882712,0.2710689998541983,0.15927011020941848,null,2091,20.063132194446695,19.849394783787286,0.21041023803792955,0.12392671710644972,null,null,2081,0.72495997300237758,56.639387085102236,{"$f":"P82+(1-Control!$H$18)*Prices!AL82","v":1.1576439249804598},16.240114342934699,2.3038752595825116,0.21087217721729412,0,1.2082704147121737,{"$f":"IF(AND(Scenarios!$B$1=5,Scenarios!$J$53=0),Prices!$X$23,SUM(Q82,S82:W82))","v":76.602519279548915},null,2081,0,0,{"$f":"AA82+(1-Control!$H$19)*AM82","v":0.43886515129205478},16.240114342934699,2.3038752595825134,0.21087217721729412,0,1.0019683331765639,{"$f":"IF(AND(Scenarios!$B$1=5,Scenarios!$J$53=0),Prices!$AI$23,SUM(AB82,AD82:AH82))","v":19.756830112911071},null,null,0.61811993139726029,0.61811993139726029]
[2,2032,18.760390994884972,17.690585848882712,0.2710689998541983,0.15927011020941848,null,2092,20.073132194446696,19.858655334168716,0.21041023803792955,0.12392671710644972,null,null,2082,0,0,{"$f":"P83+(1-Control!$H$18)*Prices!AL83","v":0.43268395197808218},16.250114342934701,2.3038752595825116,0.21087217721729412,0,1.2082704147121737,{"$f":"IF(AND(Scenarios!$B$1=5,Scenarios!$J$53=0),Prices!$X$23,SUM(Q83,S83:W83))","v":19.973132194446681},null,2082,0,0,{"$f":"AA83+(1-Control!$H$19)*AM83","v":0.43886515129205478},16.250114342934701,2.3038752595825134,0.21087217721729412,0,1.0012214482288728,{"$f":"IF(AND(Scenarios!$B$1=5,Scenarios!$J$53=0),Prices!$AI$23,SUM(AB83,AD83:AH83))","v":19.766083227963378},null,null,0.61811993139726029,0.61811993139726029]
[3,2032,18.760390994884972,17.690585848882712,0.2710689998541983,0.15927011020941848,null,2093,20.083132194446698,19.867916623999776,0.21041023803792955,0.12392671710644972,null,null,2083,0,0,{"$f":"P84+(1-Control!$H$18)*Prices!AL84","v":0.43268395197808218},16.260114342934703,2.3038752595825116,0.21087217721729412,0,1.2082704147121737,{"$f":"IF(AND(Scenarios!$B$1=5,Scenarios!$J$53=0),Prices!$X$23,SUM(Q84,S84:W84))","v":19.983132194446682},null,2083,0,0,{"$f":"AA84+(1-Control!$H$19)*AM84","v":0.43886515129205478},16.260114342934703,2.3038752595825134,0.21087217721729412,0,1.0004753101661292,{"$f":"IF(AND(Scenarios!$B$1=5,Scenarios!$J$53=0),Prices!$AI$23,SUM(AB84,AD84:AH84))","v":19.775337089900642},null,null,0.61811993139726029,0.61811993139726029]
[4,2032,18.760390994884972,17.690585848882712,0.2710689998541983,0.15927011020941848,null,2094,20.093132194446699,19.877178652540994,0.21041023803792955,0.12392671710644972,null,null,2084,0,0,{"$f":"P85+(1-Control!$H$18)*Prices!AL85","v":0.43150175538797814},16.270114342934704,2.3038752595825116,0.21087217721729412,0,1.2082704147121737,{"$f":"IF(AND(Scenarios!$B$1=5,Scenarios!$J$53=0),Prices!$X$23,SUM(Q85,S85:W85))","v":19.993132194446684},null,2084,0,0,{"$f":"AA85+(1-Control!$H$19)*AM85","v":0.43766606617923498},16.270114342934704,2.3038752595825134,0.21087217721729412,0,0.99972991824144875,{"$f":"IF(AND(Scenarios!$B$1=5,Scenarios!$J$53=0),Prices!$AI$23,SUM(AB85,AD85:AH85))","v":19.784591697975959},null,null,0.61643107912568307,0.61643107912568307]
[1,2033,18.970553803864814,18.044222261379417,0.26215177851183608,0.15458917189227525,null,2095,20.103132194446701,19.886441419053678,0.21041023803792955,0.12392671710644972,null,null,{"$f":"H76","v":2085},0,0,{"$f":"P86+(1-Control!$H$18)*Prices!AL86","v":0.43268395197808218},16.280114342934706,2.3038752595825116,0.21087217721729412,0,1.2082704147121737,{"$f":"IF(AND(Scenarios!$B$1=5,Scenarios!$J$53=0),Prices!$X$23,SUM(Q86,S86:W86))","v":20.003132194446685},null,2085,0,0,{"$f":"AA86+(1-Control!$H$19)*AM86","v":0.43886515129205478},16.280114342934706,2.3038752595825134,0.21087217721729412,0,0.99898527170869289,{"$f":"IF(AND(Scenarios!$B$1=5,Scenarios!$J$53=0),Prices!$AI$23,SUM(AB86,AD86:AH86))","v":19.793847051443208},null,null,0.61811993139726029,0.61811993139726029]
[2,2033,18.970553803864814,18.044222261379417,0.26215177851183608,0.15458917189227525,null,2096,20.113132194446703,19.89570492279984,0.21041023803792955,0.12392671710644972,null,null,2086,0,0,{"$f":"P87+(1-Control!$H$18)*Prices!AL87","v":0.43268395197808218},16.290114342934707,2.3038752595825116,0.21087217721729412,0,1.2082704147121737,{"$f":"IF(AND(Scenarios!$B$1=5,Scenarios!$J$53=0),Prices!$X$23,SUM(Q87,S87:W87))","v":20.013132194446687},null,{"$f":"O87","v":2086},0,0,{"$f":"AA87+(1-Control!$H$19)*AM87","v":0.43886515129205478},16.290114342934707,2.3038752595825134,0.21087217721729412,0,0.9982413698224698,{"$f":"IF(AND(Scenarios!$B$1=5,Scenarios!$J$53=0),Prices!$AI$23,SUM(AB87,AD87:AH87))","v":19.803103149556982},null,null,0.61811993139726029,0.61811993139726029]
[3,2033,18.970553803864814,18.044222261379417,0.26215177851183608,0.15458917189227525,null,2097,20.123132194446704,19.904969163042267,0.21041023803792955,0.12392671710644972,null,null,2087,0,0,{"$f":"P88+(1-Control!$H$18)*Prices!AL88","v":0.43268395197808218},16.300114342934709,2.3038752595825116,0.21087217721729412,0,1.2082704147121737,{"$f":"IF(AND(Scenarios!$B$1=5,Scenarios!$J$53=0),Prices!$X$23,SUM(Q88,S88:W88))","v":20.023132194446688},null,2087,0,0,{"$f":"AA88+(1-Control!$H$19)*AM88","v":0.43886515129205478},16.300114342934709,2.3038752595825134,0.21087217721729412,0,0.99749821183813281,{"$f":"IF(AND(Scenarios!$B$1=5,Scenarios!$J$53=0),Prices!$AI$23,SUM(AB88,AD88:AH88))","v":19.812359991572649},null,null,0.61811993139726029,0.61811993139726029]
[4,2033,18.970553803864814,18.044222261379417,0.26215177851183608,0.15458917189227525,null,2098,20.133132194446706,19.914234139044442,0.21041023803792955,0.12392671710644972,null,null,2088,0,0,{"$f":"P89+(1-Control!$H$18)*Prices!AL89","v":0.43150175538797814},16.31011434293471,2.3038752595825116,0.21087217721729412,0,1.2082704147121737,{"$f":"IF(AND(Scenarios!$B$1=5,Scenarios!$J$53=0),Prices!$X$23,SUM(Q89,S89:W89))","v":20.03313219444669},null,2088,0,0,{"$f":"AA89+(1-Control!$H$19)*AM89","v":0.43766606617923498},16.31011434293471,2.3038752595825134,0.21087217721729412,0,0.99675579701178041,{"$f":"IF(AND(Scenarios!$B$1=5,Scenarios!$J$53=0),Prices!$AI$23,SUM(AB89,AD89:AH89))","v":19.821617576746295},null,null,0.61643107912568307,0.61643107912568307]
[1,2034,19.365292002960466,18.629181503162229,0.25801494635144401,0.15317561207175287,null,2099,20.143132194446707,19.923499850070623,0.21041023803792955,0.12392671710644972,null,null,2089,0,0,{"$f":"P90+(1-Control!$H$18)*Prices!AL90","v":0.43268395197808218},16.320114342934712,2.3038752595825116,0.21087217721729412,0,1.2082704147121737,{"$f":"IF(AND(Scenarios!$B$1=5,Scenarios!$J$53=0),Prices!$X$23,SUM(Q90,S90:W90))","v":20.043132194446692},null,2089,0,0,{"$f":"AA90+(1-Control!$H$19)*AM90","v":0.43886515129205478},16.320114342934712,2.3038752595825134,0.21087217721729412,0,0.99601412460025396,{"$f":"IF(AND(Scenarios!$B$1=5,Scenarios!$J$53=0),Prices!$AI$23,SUM(AB90,AD90:AH90))","v":19.830875904334775},null,null,0.61811993139726029,0.61811993139726029]
[2,2034,19.365292002960466,18.629181503162229,0.25801494635144401,0.15317561207175287,null,2100,19.942260017229415,19.932766295385772,0.21041023803792955,0.12392671710644972,null,null,2090,0,0,{"$f":"P91+(1-Control!$H$18)*Prices!AL91","v":0.43268395197808218},16.330114342934714,2.3038752595825116,0.21087217721729412,0,1.2082704147121737,{"$f":"IF(AND(Scenarios!$B$1=5,Scenarios!$J$53=0),Prices!$X$23,SUM(Q91,S91:W91))","v":20.053132194446693},null,2090,0,0,{"$f":"AA91+(1-Control!$H$19)*AM91","v":0.43886515129205478},16.330114342934714,2.3038752595825134,0.21087217721729412,0,0.99527319386113922,{"$f":"IF(AND(Scenarios!$B$1=5,Scenarios!$J$53=0),Prices!$AI$23,SUM(AB91,AD91:AH91))","v":19.840134973595656},null,null,0.61811993139726029,0.61811993139726029]
[3,2034,19.365292002960466,18.629181503162229,0.25801494635144401,0.15317561207175287,null,null,null,null,null,null,null,null,2091,0,0,{"$f":"P92+(1-Control!$H$18)*Prices!AL92","v":0.43268395197808218},16.340114342934715,2.3038752595825116,0.21087217721729412,0,1.2082704147121737,{"$f":"IF(AND(Scenarios!$B$1=5,Scenarios!$J$53=0),Prices!$X$23,SUM(Q92,S92:W92))","v":20.063132194446695},null,2091,0,0,{"$f":"AA92+(1-Control!$H$19)*AM92","v":0.43886515129205478},16.340114342934715,2.3038752595825134,0.21087217721729412,0,0.99453300405276368,{"$f":"IF(AND(Scenarios!$B$1=5,Scenarios!$J$53=0),Prices!$AI$23,SUM(AB92,AD92:AH92))","v":19.849394783787286},null,null,0.61811993139726029,0.61811993139726029]
[4,2034,19.365292002960466,18.629181503162229,0.25801494635144401,0.15317561207175287,null,null,null,null,null,null,null,null,2092,0,0,{"$f":"P93+(1-Control!$H$18)*Prices!AL93","v":0.43150175538797814},16.350114342934717,2.3038752595825116,0.21087217721729412,0,1.2082704147121737,{"$f":"IF(AND(Scenarios!$B$1=5,Scenarios!$J$53=0),Prices!$X$23,SUM(Q93,S93:W93))","v":20.073132194446696},null,2092,0,0,{"$f":"AA93+(1-Control!$H$19)*AM93","v":0.43766606617923498},16.350114342934717,2.3038752595825134,0.21087217721729412,0,0.99379355443419648,{"$f":"IF(AND(Scenarios!$B$1=5,Scenarios!$J$53=0),Prices!$AI$23,SUM(AB93,AD93:AH93))","v":19.858655334168716},null,null,0.61643107912568307,0.61643107912568307]
[1,2035,20.029617014814768,16.319189076981001,0.25214038869683159,0.14950349586147493,null,null,null,null,null,null,null,null,2093,0,0,{"$f":"P94+(1-Control!$H$18)*Prices!AL94","v":0.43268395197808218},16.360114342934718,2.3038752595825116,0.21087217721729412,0,1.2082704147121737,{"$f":"IF(AND(Scenarios!$B$1=5,Scenarios!$J$53=0),Prices!$X$23,SUM(Q94,S94:W94))","v":20.083132194446698},null,2093,0,0,{"$f":"AA94+(1-Control!$H$19)*AM94","v":0.43886515129205478},16.360114342934718,2.3038752595825134,0.21087217721729412,0,0.99305484426524793,{"$f":"IF(AND(Scenarios!$B$1=5,Scenarios!$J$53=0),Prices!$AI$23,SUM(AB94,AD94:AH94))","v":19.867916623999776},null,null,0.61811993139726029,0.61811993139726029]
[2,2035,20.029617014814768,16.319189076981001,0.25214038869683159,0.14950349586147493,null,null,null,null,null,null,null,null,2094,0,0,{"$f":"P95+(1-Control!$H$18)*Prices!AL95","v":0.43268395197808218},16.37011434293472,2.3038752595825116,0.21087217721729412,0,1.2082704147121737,{"$f":"IF(AND(Scenarios!$B$1=5,Scenarios!$J$53=0),Prices!$X$23,SUM(Q95,S95:W95))","v":20.093132194446699},null,2094,0,0,{"$f":"AA95+(1-Control!$H$19)*AM95","v":0.43886515129205478},16.37011434293472,2.3038752595825134,0.21087217721729412,0,0.99231687280646819,{"$f":"IF(AND(Scenarios!$B$1=5,Scenarios!$J$53=0),Prices!$AI$23,SUM(AB95,AD95:AH95))","v":19.877178652540994},null,null,0.61811993139726029,0.61811993139726029]
[3,2035,20.029617014814768,16.319189076981001,0.25214038869683159,0.14950349586147493,null,null,null,null,null,null,null,null,2095,0,0,{"$f":"P96+(1-Control!$H$18)*Prices!AL96","v":0.43268395197808218},16.380114342934721,2.3038752595825116,0.21087217721729412,0,1.2082704147121737,{"$f":"IF(AND(Scenarios!$B$1=5,Scenarios!$J$53=0),Prices!$X$23,SUM(Q96,S96:W96))","v":20.103132194446701},null,2095,0,0,{"$f":"AA96+(1-Control!$H$19)*AM96","v":0.43886515129205478},16.380114342934721,2.3038752595825134,0.21087217721729412,0,0.99157963931914705,{"$f":"IF(AND(Scenarios!$B$1=5,Scenarios!$J$53=0),Prices!$AI$23,SUM(AB96,AD96:AH96))","v":19.886441419053678},null,null,0.61811993139726029,0.61811993139726029]
[4,2035,20.029617014814768,16.319189076981001,0.25214038869683159,0.14950349586147493,null,null,null,null,null,null,null,null,2096,0,0,{"$f":"P97+(1-Control!$H$18)*Prices!AL97","v":0.43150175538797814},16.390114342934723,2.3038752595825116,0.21087217721729412,0,1.2082704147121737,{"$f":"IF(AND(Scenarios!$B$1=5,Scenarios!$J$53=0),Prices!$X$23,SUM(Q97,S97:W97))","v":20.113132194446703},null,2096,0,0,{"$f":"AA97+(1-Control!$H$19)*AM97","v":0.43766606617923498},16.390114342934723,2.3038752595825134,0.21087217721729412,0,0.99084314306531351,{"$f":"IF(AND(Scenarios!$B$1=5,Scenarios!$J$53=0),Prices!$AI$23,SUM(AB97,AD97:AH97))","v":19.89570492279984},null,null,0.61643107912568307,0.61643107912568307]
[1,2036,20.367829268344625,16.48513687507322,0.24868343163205717,0.14798028080624925,null,null,null,null,null,null,null,null,2097,0,0,{"$f":"P98+(1-Control!$H$18)*Prices!AL98","v":0.43268395197808218},16.400114342934724,2.3038752595825116,0.21087217721729412,0,1.2082704147121737,{"$f":"IF(AND(Scenarios!$B$1=5,Scenarios!$J$53=0),Prices!$X$23,SUM(Q98,S98:W98))","v":20.123132194446704},null,2097,0,0,{"$f":"AA98+(1-Control!$H$19)*AM98","v":0.43886515129205478},16.400114342934724,2.3038752595825134,0.21087217721729412,0,0.99010738330773373,{"$f":"IF(AND(Scenarios!$B$1=5,Scenarios!$J$53=0),Prices!$AI$23,SUM(AB98,AD98:AH98))","v":19.904969163042267},null,null,0.61811993139726029,0.61811993139726029]
[2,2036,20.367829268344625,16.48513687507322,0.24868343163205717,0.14798028080624925,null,null,null,null,null,null,null,null,2098,0,0,{"$f":"P99+(1-Control!$H$18)*Prices!AL99","v":0.43268395197808218},16.410114342934726,2.3038752595825116,0.21087217721729412,0,1.2082704147121737,{"$f":"IF(AND(Scenarios!$B$1=5,Scenarios!$J$53=0),Prices!$X$23,SUM(Q99,S99:W99))","v":20.133132194446706},null,2098,0,0,{"$f":"AA99+(1-Control!$H$19)*AM99","v":0.43886515129205478},16.410114342934726,2.3038752595825134,0.21087217721729412,0,0.98937235930991163,{"$f":"IF(AND(Scenarios!$B$1=5,Scenarios!$J$53=0),Prices!$AI$23,SUM(AB99,AD99:AH99))","v":19.914234139044442},null,null,0.61811993139726029,0.61811993139726029]
[3,2036,20.367829268344625,16.48513687507322,0.24868343163205717,0.14798028080624925,null,null,null,null,null,null,null,null,2099,0,0,{"$f":"P100+(1-Control!$H$18)*Prices!AL100","v":0.43268395197808218},16.420114342934728,2.3038752595825116,0.21087217721729412,0,1.2082704147121737,{"$f":"IF(AND(Scenarios!$B$1=5,Scenarios!$J$53=0),Prices!$X$23,SUM(Q100,S100:W100))","v":20.143132194446707},null,2099,0,0,{"$f":"AA100+(1-Control!$H$19)*AM100","v":0.43886515129205478},16.420114342934728,2.3038752595825134,0.21087217721729412,0,0.9886380703360873,{"$f":"IF(AND(Scenarios!$B$1=5,Scenarios!$J$53=0),Prices!$AI$23,SUM(AB100,AD100:AH100))","v":19.923499850070623},null,null,0.61811993139726029,0.61811993139726029]
[4,2036,20.367829268344625,16.48513687507322,0.24868343163205717,0.14798028080624925,null,null,null,null,null,null,null,null,2100,0,0,{"$f":"P101+(1-Control!$H$18)*Prices!AL101","v":0.43268395197808218},16.430114342934729,2.3038752595825116,0,0,1.2082704147121737,{"$f":"IF(AND(Scenarios!$B$1=5,Scenarios!$J$53=0),Prices!$X$23,SUM(Q101,S101:W101))","v":19.942260017229415},null,2100,0,0,{"$f":"AA101+(1-Control!$H$19)*AM101","v":0.43886515129205478},16.430114342934729,2.3038752595825134,0.21087217721729412,0,0.98790451565123671,{"$f":"IF(AND(Scenarios!$B$1=5,Scenarios!$J$53=0),Prices!$AI$23,SUM(AB101,AD101:AH101))","v":19.932766295385772},null,null,0.61811993139726029,0.61811993139726029]
[1,2037,21.008655056144857,16.752245115653096,0.2445131269065024,0.1459649276579886]
[2,2037,21.008655056144857,16.752245115653096,0.2445131269065024,0.1459649276579886]
[3,2037,21.008655056144857,16.752245115653096,0.2445131269065024,0.1459649276579886]
[4,2037,21.008655056144857,16.752245115653096,0.2445131269065024,0.1459649276579886]
[1,2038,21.223172107083265,17.186782340934545,0.2397486981870548,0.14355136185683198]
[2,2038,21.223172107083265,17.186782340934545,0.2397486981870548,0.14355136185683198]
[3,2038,21.223172107083265,17.186782340934545,0.2397486981870548,0.14355136185683198]
[4,2038,21.223172107083265,17.186782340934545,0.2397486981870548,0.14355136185683198]
[1,2039,21.426829895269371,17.430370047352362,0.23440987182857856,0.14074300208448373]
[2,2039,21.426829895269371,17.430370047352362,0.23440987182857856,0.14074300208448373]
[3,2039,21.426829895269371,17.430370047352362,0.23440987182857856,0.14074300208448373]
[4,2039,21.426829895269371,17.430370047352362,0.23440987182857856,0.14074300208448373]
[1,2040,21.354984323020425,17.349025990921501,0.22850605775931657,0.13754993729037268]
[2,2040,21.354984323020425,17.349025990921501,0.22850605775931657,0.13754993729037268]
[3,2040,21.354984323020425,17.349025990921501,0.22850605775931657,0.13754993729037268]
[4,2040,21.354984323020425,17.349025990921501,0.22850605775931657,0.13754993729037268]
[1,2041,21.419371586676583,17.466420515734672,0.22574624419641065,0.13552687148814666]
[2,2041,21.419371586676583,17.466420515734672,0.22574624419641065,0.13552687148814666]
[3,2041,21.419371586676583,17.466420515734672,0.22574624419641065,0.13552687148814666]
[4,2041,21.419371586676583,17.466420515734672,0.22574624419641065,0.13552687148814666]
[1,2042,21.954999306084407,17.991208327766117,0.22290627506078817,0.13344957295359502]
[2,2042,21.954999306084407,17.991208327766117,0.22290627506078817,0.13344957295359502]
[3,2042,21.954999306084407,17.991208327766117,0.22290627506078817,0.13344957295359502]
[4,2042,21.954999306084407,17.991208327766117,0.22290627506078817,0.13344957295359502]
[1,2043,22.484069139336768,18.393740861273397,0.21996373684352838,0.13130114059159426]
[2,2043,22.484069139336768,18.393740861273397,0.21996373684352838,0.13130114059159426]
[3,2043,22.484069139336768,18.393740861273397,0.21996373684352838,0.13130114059159426]
[4,2043,22.484069139336768,18.393740861273397,0.21996373684352838,0.13130114059159426]
[1,2044,22.73652210132467,18.541854788660171,0.21693396706880777,0.12909169429792686]
[2,2044,{"$f":"SUMIF($H$2:$H$91,B131,$I$2:$I$91)","v":22.73652210132467},{"$f":"SUMIF($H$2:$H$91,B131,$J$2:$J$91)","v":18.541854788660171},{"$f":"SUMIF($H$2:$H$91,B131,$K$2:$K$91)","v":0.21693396706880777},{"$f":"SUMIF($H$2:$H$91,B131,$L$2:$L$91)","v":0.12909169429792686}]
[3,2044,22.73652210132467,18.541854788660171,0.21693396706880777,0.12909169429792686]
[4,2044,22.73652210132467,18.541854788660171,0.21693396706880777,0.12909169429792686]
[1,2045,22.973706700048204,18.730229777167999,0.21383153493994889,0.12683227151276213]
[2,2045,22.973706700048204,18.730229777167999,0.21383153493994889,0.12683227151276213]
[{"$f":"A132","v":3},{"$f":"B132+1","v":2045},22.973706700048204,18.730229777167999,0.21383153493994889,0.12683227151276213]
[4,2045,22.973706700048204,18.730229777167999,0.21383153493994889,0.12683227151276213]
[1,2046,23.272259992096267,18.906888588623339,0.21308156049098584,0.1261818711846236]
[2,2046,23.272259992096267,18.906888588623339,0.21308156049098584,0.1261818711846236]
[3,2046,23.272259992096267,18.906888588623339,0.21308156049098584,0.1261818711846236]
[4,2046,23.272259992096267,18.906888588623339,0.21308156049098584,0.1261818711846236]
[1,2047,23.551573298552601,19.022730925400715,0.21236759395357321,0.12556878927963755]
[2,2047,23.551573298552601,19.022730925400715,0.21236759395357321,0.12556878927963755]
[3,2047,23.551573298552601,19.022730925400715,0.21236759395357321,0.12556878927963755]
[4,2047,23.551573298552601,19.022730925400715,0.21236759395357321,0.12556878927963755]
[1,2048,23.80023112424059,19.094147372572127,0.2116918181067908,0.12499426226059483]
[2,2048,23.80023112424059,19.094147372572127,0.2116918181067908,0.12499426226059483]
[3,2048,23.80023112424059,19.094147372572127,0.2116918181067908,0.12499426226059483]
[4,2048,23.80023112424059,19.094147372572127,0.2116918181067908,0.12499426226059483]
[1,2049,24.054864487191111,19.147837609214577,0.21103071695081235,0.12444064877457707]
[2,2049,24.054864487191111,19.147837609214577,0.21103071695081235,0.12444064877457707]
[3,2049,24.054864487191111,19.147837609214577,0.21103071695081235,0.12444064877457707]
[4,2049,24.054864487191111,19.147837609214577,0.21103071695081235,0.12444064877457707]
[1,2050,24.441598311230528,19.290939541469374,0.21041023803792955,0.12392671710644972]
[2,2050,24.441598311230528,19.290939541469374,0.21041023803792955,0.12392671710644972]
[3,2050,24.441598311230528,19.290939541469374,0.21041023803792955,0.12392671710644972]
[4,2050,24.441598311230528,19.290939541469374,0.21041023803792955,0.12392671710644972]
[1,2051,24.781082110409425,19.296502033725545,0.21041023803792955,0.12392671710644972]
[2,2051,24.781082110409425,19.296502033725545,0.21041023803792955,0.12392671710644972]
[3,2051,24.781082110409425,19.296502033725545,0.21041023803792955,0.12392671710644972]
[4,2051,24.781082110409425,19.296502033725545,0.21041023803792955,0.12392671710644972]
[1,2052,25.28899784203993,19.488818055630411,0.21041023803792955,0.12392671710644972]
[2,2052,25.28899784203993,19.488818055630411,0.21041023803792955,0.12392671710644972]
[3,2052,25.28899784203993,19.488818055630411,0.21041023803792955,0.12392671710644972]
[4,2052,25.28899784203993,19.488818055630411,0.21041023803792955,0.12392671710644972]
[1,2053,25.718752557251083,19.498049182740001,0.21041023803792955,0.12392671710644972]
[2,2053,25.718752557251083,19.498049182740001,0.21041023803792955,0.12392671710644972]
[3,2053,25.718752557251083,19.498049182740001,0.21041023803792955,0.12392671710644972]
[4,2053,25.718752557251083,19.498049182740001,0.21041023803792955,0.12392671710644972]
[1,2054,26.111896033159141,19.507281078722482,0.21041023803792955,0.12392671710644972]
[2,2054,26.111896033159141,19.507281078722482,0.21041023803792955,0.12392671710644972]
[3,2054,26.111896033159141,19.507281078722482,0.21041023803792955,0.12392671710644972]
[4,2054,26.111896033159141,19.507281078722482,0.21041023803792955,0.12392671710644972]
[1,2055,26.528496255126534,19.516513742808979,0.21041023803792955,0.12392671710644972]
[2,2055,26.528496255126534,19.516513742808979,0.21041023803792955,0.12392671710644972]
[3,2055,26.528496255126534,19.516513742808979,0.21041023803792955,0.12392671710644972]
[4,2055,26.528496255126534,19.516513742808979,0.21041023803792955,0.12392671710644972]
[1,2056,25.146637626288612,19.525747174231388,0.21041023803792955,0.12392671710644972]
[2,2056,25.146637626288612,19.525747174231388,0.21041023803792955,0.12392671710644972]
[3,2056,25.146637626288612,19.525747174231388,0.21041023803792955,0.12392671710644972]
[4,2056,25.146637626288612,19.525747174231388,0.21041023803792955,0.12392671710644972]
[1,2057,24.923450434222161,19.534981372222383,0.21041023803792955,0.12392671710644972]
[2,2057,24.923450434222161,19.534981372222383,0.21041023803792955,0.12392671710644972]
[3,2057,24.923450434222161,19.534981372222383,0.21041023803792955,0.12392671710644972]
[4,2057,24.923450434222161,19.534981372222383,0.21041023803792955,0.12392671710644972]
[1,2058,25.29704068287008,19.544216336015378,0.21041023803792955,0.12392671710644972]
[2,2058,25.29704068287008,19.544216336015378,0.21041023803792955,0.12392671710644972]
[3,2058,25.29704068287008,19.544216336015378,0.21041023803792955,0.12392671710644972]
[4,2058,25.29704068287008,19.544216336015378,0.21041023803792955,0.12392671710644972]
[1,2059,25.77409437388058,19.553452064844588,0.21041023803792955,0.12392671710644972]
[2,2059,25.77409437388058,19.553452064844588,0.21041023803792955,0.12392671710644972]
[3,2059,25.77409437388058,19.553452064844588,0.21041023803792955,0.12392671710644972]
[4,2059,25.77409437388058,19.553452064844588,0.21041023803792955,0.12392671710644972]
[1,2060,26.226241462342532,19.562688557944959,0.21041023803792955,0.12392671710644972]
[2,2060,{"$f":"SUMIF($H$2:$H$91,B195,$I$2:$I$91)","v":26.226241462342532},{"$f":"SUMIF($H$2:$H$91,B195,$J$2:$J$91)","v":19.562688557944959},{"$f":"SUMIF($H$2:$H$91,B195,$K$2:$K$91)","v":0.21041023803792955},{"$f":"SUMIF($H$2:$H$91,B195,$L$2:$L$91)","v":0.12392671710644972}]
[3,2060,26.226241462342532,19.562688557944959,0.21041023803792955,0.12392671710644972]
[4,2060,26.226241462342532,19.562688557944959,0.21041023803792955,0.12392671710644972]
[1,2061,26.701444238816777,19.571925814552241,0.21041023803792955,0.12392671710644972]
[2,2061,26.701444238816777,19.571925814552241,0.21041023803792955,0.12392671710644972]
[{"$f":"A196","v":3},{"$f":"B196+1","v":2061},26.701444238816777,19.571925814552241,0.21041023803792955,0.12392671710644972]
[4,2061,26.701444238816777,19.571925814552241,0.21041023803792955,0.12392671710644972]
[1,2062,27.230336270926681,19.581163833902906,0.21041023803792955,0.12392671710644972]
[2,2062,27.230336270926681,19.581163833902906,0.21041023803792955,0.12392671710644972]
[3,2062,27.230336270926681,19.581163833902906,0.21041023803792955,0.12392671710644972]
[4,2062,27.230336270926681,19.581163833902906,0.21041023803792955,0.12392671710644972]
[1,2063,27.825906831902909,19.590402615234229,0.21041023803792955,0.12392671710644972]
[2,2063,27.825906831902909,19.590402615234229,0.21041023803792955,0.12392671710644972]
[3,2063,27.825906831902909,19.590402615234229,0.21041023803792955,0.12392671710644972]
[4,2063,27.825906831902909,19.590402615234229,0.21041023803792955,0.12392671710644972]
[1,2064,28.500326773399177,19.599642157784213,0.21041023803792955,0.12392671710644972]
[2,2064,28.500326773399177,19.599642157784213,0.21041023803792955,0.12392671710644972]
[3,2064,28.500326773399177,19.599642157784213,0.21041023803792955,0.12392671710644972]
[4,2064,28.500326773399177,19.599642157784213,0.21041023803792955,0.12392671710644972]
[1,2065,29.271334849518308,19.608882460791651,0.21041023803792955,0.12392671710644972]
[2,2065,29.271334849518308,19.608882460791651,0.21041023803792955,0.12392671710644972]
[3,2065,29.271334849518308,19.608882460791651,0.21041023803792955,0.12392671710644972]
[4,2065,29.271334849518308,19.608882460791651,0.21041023803792955,0.12392671710644972]
[1,2066,30.16099052897016,19.618123523496081,0.21041023803792955,0.12392671710644972]
[2,2066,30.16099052897016,19.618123523496081,0.21041023803792955,0.12392671710644972]
[3,2066,30.16099052897016,19.618123523496081,0.21041023803792955,0.12392671710644972]
[4,2066,30.16099052897016,19.618123523496081,0.21041023803792955,0.12392671710644972]
[1,2067,31.188578248042411,19.627365345137807,0.21041023803792955,0.12392671710644972]
[2,2067,31.188578248042411,19.627365345137807,0.21041023803792955,0.12392671710644972]
[3,2067,31.188578248042411,19.627365345137807,0.21041023803792955,0.12392671710644972]
[4,2067,31.188578248042411,19.627365345137807,0.21041023803792955,0.12392671710644972]
[1,2068,32.372026304802681,19.63660792495789,0.21041023803792955,0.12392671710644972]
[2,2068,32.372026304802681,19.63660792495789,0.21041023803792955,0.12392671710644972]
[3,2068,32.372026304802681,19.63660792495789,0.21041023803792955,0.12392671710644972]
[4,2068,32.372026304802681,19.63660792495789,0.21041023803792955,0.12392671710644972]
[1,2069,33.733140304747977,19.645851262198157,0.21041023803792955,0.12392671710644972]
[2,2069,33.733140304747977,19.645851262198157,0.21041023803792955,0.12392671710644972]
[3,2069,33.733140304747977,19.645851262198157,0.21041023803792955,0.12392671710644972]
[4,2069,33.733140304747977,19.645851262198157,0.21041023803792955,0.12392671710644972]
[1,2070,35.305248616689568,19.655095356101175,0.21041023803792955,0.12392671710644972]
[2,2070,35.305248616689568,19.655095356101175,0.21041023803792955,0.12392671710644972]
[3,2070,35.305248616689568,19.655095356101175,0.21041023803792955,0.12392671710644972]
[4,2070,35.305248616689568,19.655095356101175,0.21041023803792955,0.12392671710644972]
[1,2071,37.137095683944608,19.6643402059103,0.21041023803792955,0.12392671710644972]
[2,2071,37.137095683944608,19.6643402059103,0.21041023803792955,0.12392671710644972]
[3,2071,37.137095683944608,19.6643402059103,0.21041023803792955,0.12392671710644972]
[4,2071,37.137095683944608,19.6643402059103,0.21041023803792955,0.12392671710644972]
[1,2072,39.296835633049696,19.673585810869607,0.21041023803792955,0.12392671710644972]
[2,2072,39.296835633049696,19.673585810869607,0.21041023803792955,0.12392671710644972]
[3,2072,39.296835633049696,19.673585810869607,0.21041023803792955,0.12392671710644972]
[4,2072,39.296835633049696,19.673585810869607,0.21041023803792955,0.12392671710644972]
[1,2073,41.876262814538464,19.682832170223964,0.21041023803792955,0.12392671710644972]
[2,2073,41.876262814538464,19.682832170223964,0.21041023803792955,0.12392671710644972]
[3,2073,41.876262814538464,19.682832170223964,0.21041023803792955,0.12392671710644972]
[4,2073,41.876262814538464,19.682832170223964,0.21041023803792955,0.12392671710644972]
[1,2074,44.414050871978318,19.692079283218956,0.21041023803792955,0.12392671710644972]
[2,2074,44.414050871978318,19.692079283218956,0.21041023803792955,0.12392671710644972]
[3,2074,44.414050871978318,19.692079283218956,0.21041023803792955,0.12392671710644972]
[4,2074,44.414050871978318,19.692079283218956,0.21041023803792955,0.12392671710644972]
[1,2075,46.749974866028012,19.701327149100962,0.21041023803792955,0.12392671710644972]
[2,2075,46.749974866028012,19.701327149100962,0.21041023803792955,0.12392671710644972]
[3,2075,46.749974866028012,19.701327149100962,0.21041023803792955,0.12392671710644972]
[4,2075,46.749974866028012,19.701327149100962,0.21041023803792955,0.12392671710644972]
[1,2076,49.135225605858338,19.710575767117081,0.21041023803792955,0.12392671710644972]
[2,2076,{"$f":"SUMIF($H$2:$H$91,B259,$I$2:$I$91)","v":49.135225605858338},{"$f":"SUMIF($H$2:$H$91,B259,$J$2:$J$91)","v":19.710575767117081},{"$f":"SUMIF($H$2:$H$91,B259,$K$2:$K$91)","v":0.21041023803792955},{"$f":"SUMIF($H$2:$H$91,B259,$L$2:$L$91)","v":0.12392671710644972}]
[3,2076,49.135225605858338,19.710575767117081,0.21041023803792955,0.12392671710644972]
[4,2076,49.135225605858338,19.710575767117081,0.21041023803792955,0.12392671710644972]
[1,2077,51.816425950258491,19.719825136515187,0.21041023803792955,0.12392671710644972]
[2,2077,51.816425950258491,19.719825136515187,0.21041023803792955,0.12392671710644972]
[{"$f":"A260","v":3},{"$f":"B260+1","v":2077},51.816425950258491,19.719825136515187,0.21041023803792955,0.12392671710644972]
[4,2077,51.816425950258491,19.719825136515187,0.21041023803792955,0.12392671710644972]
[1,2078,55.010736406870656,19.72907525654389,0.21041023803792955,0.12392671710644972]
[2,2078,55.010736406870656,19.72907525654389,0.21041023803792955,0.12392671710644972]
[3,2078,55.010736406870656,19.72907525654389,0.21041023803792955,0.12392671710644972]
[4,2078,55.010736406870656,19.72907525654389,0.21041023803792955,0.12392671710644972]
[1,2079,59.628655323959919,19.738326126452574,0.21041023803792955,0.12392671710644972]
[2,2079,59.628655323959919,19.738326126452574,0.21041023803792955,0.12392671710644972]
[3,2079,59.628655323959919,19.738326126452574,0.21041023803792955,0.12392671710644972]
[4,2079,59.628655323959919,19.738326126452574,0.21041023803792955,0.12392671710644972]
[1,2080,66.450085501078036,19.747577745491338,0.21041023803792955,0.12392671710644972]
[2,2080,66.450085501078036,19.747577745491338,0.21041023803792955,0.12392671710644972]
[3,2080,66.450085501078036,19.747577745491338,0.21041023803792955,0.12392671710644972]
[4,2080,66.450085501078036,19.747577745491338,0.21041023803792955,0.12392671710644972]
[1,2081,76.602519279548915,19.756830112911071,0.21041023803792955,0.12392671710644972]
[2,2081,76.602519279548915,19.756830112911071,0.21041023803792955,0.12392671710644972]
[3,2081,76.602519279548915,19.756830112911071,0.21041023803792955,0.12392671710644972]
[4,2081,76.602519279548915,19.756830112911071,0.21041023803792955,0.12392671710644972]
[1,2082,19.973132194446681,19.766083227963378,0.21041023803792955,0.12392671710644972]
[2,2082,19.973132194446681,19.766083227963378,0.21041023803792955,0.12392671710644972]
[3,2082,19.973132194446681,19.766083227963378,0.21041023803792955,0.12392671710644972]
[4,2082,19.973132194446681,19.766083227963378,0.21041023803792955,0.12392671710644972]
[1,2083,19.983132194446682,19.775337089900642,0.21041023803792955,0.12392671710644972]
[2,2083,19.983132194446682,19.775337089900642,0.21041023803792955,0.12392671710644972]
[3,2083,19.983132194446682,19.775337089900642,0.21041023803792955,0.12392671710644972]
[4,2083,19.983132194446682,19.775337089900642,0.21041023803792955,0.12392671710644972]
[1,2084,19.993132194446684,19.784591697975959,0.21041023803792955,0.12392671710644972]
[2,2084,19.993132194446684,19.784591697975959,0.21041023803792955,0.12392671710644972]
[3,2084,19.993132194446684,19.784591697975959,0.21041023803792955,0.12392671710644972]
[4,2084,19.993132194446684,19.784591697975959,0.21041023803792955,0.12392671710644972]
[1,2085,20.003132194446685,19.793847051443208,0.21041023803792955,0.12392671710644972]
[2,2085,20.003132194446685,19.793847051443208,0.21041023803792955,0.12392671710644972]
[3,2085,20.003132194446685,19.793847051443208,0.21041023803792955,0.12392671710644972]
[4,2085,20.003132194446685,19.793847051443208,0.21041023803792955,0.12392671710644972]
[1,2086,20.013132194446687,19.803103149556982,0.21041023803792955,0.12392671710644972]
[2,2086,20.013132194446687,19.803103149556982,0.21041023803792955,0.12392671710644972]
[3,2086,20.013132194446687,19.803103149556982,0.21041023803792955,0.12392671710644972]
[4,2086,20.013132194446687,19.803103149556982,0.21041023803792955,0.12392671710644972]
[1,2087,20.023132194446688,19.812359991572649,0.21041023803792955,0.12392671710644972]
[2,2087,20.023132194446688,19.812359991572649,0.21041023803792955,0.12392671710644972]
[3,2087,20.023132194446688,19.812359991572649,0.21041023803792955,0.12392671710644972]
[4,2087,20.023132194446688,19.812359991572649,0.21041023803792955,0.12392671710644972]
[1,2088,20.03313219444669,19.821617576746295,0.21041023803792955,0.12392671710644972]
[2,2088,20.03313219444669,19.821617576746295,0.21041023803792955,0.12392671710644972]
[3,2088,20.03313219444669,19.821617576746295,0.21041023803792955,0.12392671710644972]
[4,2088,20.03313219444669,19.821617576746295,0.21041023803792955,0.12392671710644972]
[1,2089,20.043132194446692,19.830875904334775,0.21041023803792955,0.12392671710644972]
[2,2089,20.043132194446692,19.830875904334775,0.21041023803792955,0.12392671710644972]
[3,2089,20.043132194446692,19.830875904334775,0.21041023803792955,0.12392671710644972]
[4,2089,20.043132194446692,19.830875904334775,0.21041023803792955,0.12392671710644972]
[1,2090,20.053132194446693,19.840134973595656,0.21041023803792955,0.12392671710644972]
[2,2090,20.053132194446693,19.840134973595656,0.21041023803792955,0.12392671710644972]
[3,2090,20.053132194446693,19.840134973595656,0.21041023803792955,0.12392671710644972]
[4,2090,20.053132194446693,19.840134973595656,0.21041023803792955,0.12392671710644972]
[1,2091,20.063132194446695,19.849394783787286,0.21041023803792955,0.12392671710644972]
[2,2091,20.063132194446695,19.849394783787286,0.21041023803792955,0.12392671710644972]
[3,2091,20.063132194446695,19.849394783787286,0.21041023803792955,0.12392671710644972]
[4,2091,20.063132194446695,19.849394783787286,0.21041023803792955,0.12392671710644972]
[1,2092,20.073132194446696,19.858655334168716,0.21041023803792955,0.12392671710644972]
[2,2092,{"$f":"SUMIF($H$2:$H$91,B323,$I$2:$I$91)","v":20.073132194446696},{"$f":"SUMIF($H$2:$H$91,B323,$J$2:$J$91)","v":19.858655334168716},{"$f":"SUMIF($H$2:$H$91,B323,$K$2:$K$91)","v":0.21041023803792955},{"$f":"SUMIF($H$2:$H$91,B323,$L$2:$L$91)","v":0.12392671710644972}]
[3,2092,20.073132194446696,19.858655334168716,0.21041023803792955,0.12392671710644972]
[4,2092,20.073132194446696,19.858655334168716,0.21041023803792955,0.12392671710644972]
[1,2093,20.083132194446698,19.867916623999776,0.21041023803792955,0.12392671710644972]
[2,2093,20.083132194446698,19.867916623999776,0.21041023803792955,0.12392671710644972]
[{"$f":"A324","v":3},{"$f":"B324+1","v":2093},20.083132194446698,19.867916623999776,0.21041023803792955,0.12392671710644972]
[4,2093,20.083132194446698,19.867916623999776,0.21041023803792955,0.12392671710644972]
[1,2094,20.093132194446699,19.877178652540994,0.21041023803792955,0.12392671710644972]
[2,2094,20.093132194446699,19.877178652540994,0.21041023803792955,0.12392671710644972]
[3,2094,20.093132194446699,19.877178652540994,0.21041023803792955,0.12392671710644972]
[4,2094,20.093132194446699,19.877178652540994,0.21041023803792955,0.12392671710644972]
[1,2095,20.103132194446701,19.886441419053678,0.21041023803792955,0.12392671710644972]
[2,2095,20.103132194446701,19.886441419053678,0.21041023803792955,0.12392671710644972]
[3,2095,20.103132194446701,19.886441419053678,0.21041023803792955,0.12392671710644972]
[4,2095,20.103132194446701,19.886441419053678,0.21041023803792955,0.12392671710644972]
[1,2096,20.113132194446703,19.89570492279984,0.21041023803792955,0.12392671710644972]
[2,2096,20.113132194446703,19.89570492279984,0.21041023803792955,0.12392671710644972]
[3,2096,20.113132194446703,19.89570492279984,0.21041023803792955,0.12392671710644972]
[4,2096,20.113132194446703,19.89570492279984,0.21041023803792955,0.12392671710644972]
[1,2097,20.123132194446704,19.904969163042267,0.21041023803792955,0.12392671710644972]
[2,2097,20.123132194446704,19.904969163042267,0.21041023803792955,0.12392671710644972]
[3,2097,20.123132194446704,19.904969163042267,0.21041023803792955,0.12392671710644972]
[4,2097,20.123132194446704,19.904969163042267,0.21041023803792955,0.12392671710644972]
[1,2098,20.133132194446706,19.914234139044442,0.21041023803792955,0.12392671710644972]
[2,2098,20.133132194446706,19.914234139044442,0.21041023803792955,0.12392671710644972]
[3,2098,20.133132194446706,19.914234139044442,0.21041023803792955,0.12392671710644972]
[4,2098,20.133132194446706,19.914234139044442,0.21041023803792955,0.12392671710644972]
[1,2099,20.143132194446707,19.923499850070623,0.21041023803792955,0.12392671710644972]
[2,2099,20.143132194446707,19.923499850070623,0.21041023803792955,0.12392671710644972]
[3,2099,20.143132194446707,19.923499850070623,0.21041023803792955,0.12392671710644972]
[4,2099,20.143132194446707,19.923499850070623,0.21041023803792955,0.12392671710644972]
[1,2100,19.942260017229415,19.932766295385772,0.21041023803792955,0.12392671710644972]
[2,2100,19.942260017229415,19.932766295385772,0.21041023803792955,0.12392671710644972]
[3,2100,19.942260017229415,19.932766295385772,0.21041023803792955,0.12392671710644972]
[4,2100,19.942260017229415,19.932766295385772,0.21041023803792955,0.12392671710644972]

{"sheet":"Appliance costs","index":13,"n_rows":127,"n_cols":101,"rows_kept":127,"cut":false,"hidden":false,"merged":[]}
["Appliance and installation costs",null,null,null,null,null,null,null,null,{"$f":"(1+Scenarios!J9)^6","v":0.97037250935626573}]
["Cooking",2021,{"$f":"B2+1","v":2022},2023,2024,2025,2026,2027,2028,2029,2030,2031,2032,2033,2034,2035,2036,2037,2038,2039,2040,2041,2042,2043,2044,2045,2046,2047,2048,2049,2050,2051,2052,2053,2054,2055,2056,2057,2058,2059,2060,2061,2062,2063,2064,2065,2066,{"$f":"AU2+1","v":2067},{"$f":"AV2+1","v":2068},{"$f":"AW2+1","v":2069},{"$f":"AX2+1","v":2070},{"$f":"AY2+1","v":2071},{"$f":"AZ2+1","v":2072},{"$f":"BA2+1","v":2073},{"$f":"BB2+1","v":2074},{"$f":"BC2+1","v":2075},{"$f":"BD2+1","v":2076},{"$f":"BE2+1","v":2077},{"$f":"BF2+1","v":2078},{"$f":"BG2+1","v":2079},{"$f":"BH2+1","v":2080},{"$f":"BI2+1","v":2081},{"$f":"BJ2+1","v":2082},{"$f":"BK2+1","v":2083},{"$f":"BL2+1","v":2084},{"$f":"BM2+1","v":2085},{"$f":"BN2+1","v":2086},{"$f":"BO2+1","v":2087},{"$f":"BP2+1","v":2088},{"$f":"BQ2+1","v":2089},{"$f":"BR2+1","v":2090},{"$f":"BS2+1","v":2091},{"$f":"BT2+1","v":2092},{"$f":"BU2+1","v":2093},{"$f":"BV2+1","v":2094},{"$f":"BW2+1","v":2095},{"$f":"BX2+1","v":2096},{"$f":"BY2+1","v":2097},{"$f":"BZ2+1","v":2098},{"$f":"CA2+1","v":2099},{"$f":"CB2+1","v":2100},{"$f":"CC2+1","v":2101},{"$f":"CD2+1","v":2102},{"$f":"CE2+1","v":2103},{"$f":"CF2+1","v":2104},{"$f":"CG2+1","v":2105},{"$f":"CH2+1","v":2106},{"$f":"CI2+1","v":2107},{"$f":"CJ2+1","v":2108},{"$f":"CK2+1","v":2109},{"$f":"CL2+1","v":2110},{"$f":"CM2+1","v":2111},{"$f":"CN2+1","v":2112},{"$f":"CO2+1","v":2113},{"$f":"CP2+1","v":2114},{"$f":"CQ2+1","v":2115},{"$f":"CR2+1","v":2116},{"$f":"CS2+1","v":2117},{"$f":"CT2+1","v":2118},{"$f":"CU2+1","v":2119},{"$f":"CV2+1","v":2120}]
["Electric cooktop (induction)",{"$f":"Control!E6","v":2286.666666666667},{"$f":"B3*(1+Control!C69)","v":2286.666666666667},{"$f":"$C3*(1+Control!D69)","v":2286.666666666667},{"$f":"$C3*(1+Control!E69)","v":2286.666666666667},{"$f":"$C3*(1+Control!F69)","v":2286.666666666667},{"$f":"$C3*(1+Control!G69)","v":2286.666666666667},{"$f":"$C3*(1+Control!H69)","v":2286.666666666667},{"$f":"$C3*(1+Control!I69)","v":2275.2333333333336},{"$f":"C3*$J$1","v":2218.9184713946611},{"$f":"J3*(1+Control!K69)","v":2207.8238790376877},{"$f":"K3*(1+Control!L69)","v":2196.784759642499},{"$f":"L3*(1+Control!M69)","v":2185.8008358442867},{"$f":"M3*(1+Control!N69)","v":2174.8718316650652},{"$f":"N3*(1+Control!O69)","v":2163.99747250674},{"$f":"O3*(1+Control!P69)","v":2153.1774851442065},{"$f":"P3*(1+Control!Q69)","v":2142.4115977184856},{"$f":"Q3*(1+Control!R69)","v":2131.6995397298933},{"$f":"R3*(1+Control!S69)","v":2121.0410420312437},{"$f":"S3*(1+Control!T69)","v":2110.4358368210874},{"$f":"T3*(1+Control!U69)","v":2099.8836576369818},{"$f":"U3*(1+Control!V69)","v":2089.3842393487967},{"$f":"V3*(1+Control!W69)","v":2078.9373181520527},{"$f":"W3*(1+Control!X69)","v":2068.5426315612926},{"$f":"X3*(1+Control!Y69)","v":2058.1999184034862},{"$f":"Y3*(1+Control!Z69)","v":2047.9089188114688},{"$f":"Z3*(1+Control!AA69)","v":2037.6693742174114},{"$f":"AA3*(1+Control!AB69)","v":2027.4810273463243},{"$f":"AB3*(1+Control!AC69)","v":2017.3436222095927},{"$f":"AC3*(1+Control!AD69)","v":2007.2569040985447},{"$f":"AD3*(1+Control!AE69)","v":1997.220619578052},{"$f":"AE3*(1+Control!AF69)","v":1997.220619578052},{"$f":"AF3*(1+Control!AG69)","v":1997.220619578052},{"$f":"AG3*(1+Control!AH69)","v":1997.220619578052},{"$f":"AH3*(1+Control!AI69)","v":1997.220619578052},{"$f":"AI3*(1+Control!AJ69)","v":1997.220619578052},{"$f":"AJ3*(1+Control!AK69)","v":1997.220619578052},{"$f":"AK3*(1+Control!AL69)","v":1997.220619578052},{"$f":"AL3*(1+Control!AM69)","v":1997.220619578052},{"$f":"AM3*(1+Control!AN69)","v":1997.220619578052},{"$f":"AN3*(1+Control!AO69)","v":1997.220619578052},{"$f":"AO3*(1+Control!AP69)","v":1997.220619578052},{"$f":"AP3*(1+Control!AQ69)","v":1997.220619578052},{"$f":"AQ3*(1+Control!AR69)","v":1997.220619578052},{"$f":"AR3*(1+Control!AS69)","v":1997.220619578052},{"$f":"AS3*(1+Control!AT69)","v":1997.220619578052},{"$f":"AT3*(1+Control!AU69)","v":1997.220619578052},{"$f":"AU3*(1+Control!AV69)","v":1997.220619578052},{"$f":"AV3*(1+Control!AW69)","v":1997.220619578052},{"$f":"AW3*(1+Control!AX69)","v":1997.220619578052},{"$f":"AX3*(1+Control!AY69)","v":1997.220619578052},{"$f":"AY3*(1+Control!AZ69)","v":1997.220619578052},{"$f":"AZ3*(1+Control!BA69)","v":1997.220619578052},{"$f":"BA3*(1+Control!BB69)","v":1997.220619578052},{"$f":"BB3*(1+Control!BC69)","v":1997.220619578052},{"$f":"BC3*(1+Control!BD69)","v":1997.220619578052},{"$f":"BD3*(1+Control!BE69)","v":1997.220619578052},{"$f":"BE3*(1+Control!BF69)","v":1997.220619578052},{"$f":"BF3*(1+Control!BG69)","v":1997.220619578052},{"$f":"BG3*(1+Control!BH69)","v":1997.220619578052},{"$f":"BH3*(1+Control!BI69)","v":1997.220619578052},{"$f":"BI3*(1+Control!BJ69)","v":1997.220619578052},{"$f":"BJ3*(1+Control!BK69)","v":1997.220619578052},{"$f":"BK3*(1+Control!BL69)","v":1997.220619578052},{"$f":"BL3*(1+Control!BM69)","v":1997.220619578052},{"$f":"BM3*(1+Control!BN69)","v":1997.220619578052},{"$f":"BN3*(1+Control!BO69)","v":1997.220619578052},{"$f":"BO3*(1+Control!BP69)","v":1997.220619578052},{"$f":"BP3*(1+Control!BQ69)","v":1997.220619578052},{"$f":"BQ3*(1+Control!BR69)","v":1997.220619578052},{"$f":"BR3*(1+Control!BS69)","v":1997.220619578052},{"$f":"BS3*(1+Control!BT69)","v":1997.220619578052},{"$f":"BT3*(1+Control!BU69)","v":1997.220619578052},{"$f":"BU3*(1+Control!BV69)","v":1997.220619578052},{"$f":"BV3*(1+Control!BW69)","v":1997.220619578052},{"$f":"BW3*(1+Control!BX69)","v":1997.220619578052},{"$f":"BX3*(1+Control!BY69)","v":1997.220619578052},{"$f":"BY3*(1+Control!BZ69)","v":1997.220619578052},{"$f":"BZ3*(1+Control!CA69)","v":1997.220619578052},{"$f":"CA3*(1+Control!CB69)","v":1997.220619578052},{"$f":"CB3*(1+Control!CC69)","v":1997.220619578052},{"$f":"CC3*(1+Control!CD69)","v":1997.220619578052},{"$f":"CD3*(1+Control!CE69)","v":1997.220619578052},{"$f":"CE3*(1+Control!CF69)","v":1997.220619578052},{"$f":"CF3*(1+Control!CG69)","v":1997.220619578052},{"$f":"CG3*(1+Control!CH69)","v":1997.220619578052},{"$f":"CH3*(1+Control!CI69)","v":1997.220619578052},{"$f":"CI3*(1+Control!CJ69)","v":1997.220619578052},{"$f":"CJ3*(1+Control!CK69)","v":1997.220619578052},{"$f":"CK3*(1+Control!CL69)","v":1997.220619578052},{"$f":"CL3*(1+Control!CM69)","v":1997.220619578052},{"$f":"CM3*(1+Control!CN69)","v":1997.220619578052},{"$f":"CN3*(1+Control!CO69)","v":1997.220619578052},{"$f":"CO3*(1+Control!CP69)","v":1997.220619578052},{"$f":"CP3*(1+Control!CQ69)","v":1997.220619578052},{"$f":"CQ3*(1+Control!CR69)","v":1997.220619578052},{"$f":"CR3*(1+Control!CS69)","v":1997.220619578052},{"$f":"CS3*(1+Control!CT69)","v":1997.220619578052},{"$f":"CT3*(1+Control!CU69)","v":1997.220619578052},{"$f":"CU3*(1+Control!CV69)","v":1997.220619578052},{"$f":"CV3*(1+Control!CW69)","v":1997.220619578052}]
["Gas stove",{"$f":"Control!E7","v":1386.1111111111113},{"$f":"B4*(1+Control!$B70)","v":1386.1111111111113},{"$f":"C4*(1+Control!$B70)","v":1386.1111111111113},{"$f":"D4*(1+Control!$B70)","v":1386.1111111111113},{"$f":"E4*(1+Control!$B70)","v":1386.1111111111113},{"$f":"F4*(1+Control!$B70)","v":1386.1111111111113},{"$f":"G4*(1+Control!$B70)","v":1386.1111111111113},{"$f":"H4*(1+Control!$B70)","v":1386.1111111111113},{"$f":"I4*(1+Control!$B70)","v":1386.1111111111113},{"$f":"J4*(1+Control!$B70)","v":1386.1111111111113},{"$f":"K4*(1+Control!$B70)","v":1386.1111111111113},{"$f":"L4*(1+Control!$B70)","v":1386.1111111111113},{"$f":"M4*(1+Control!$B70)","v":1386.1111111111113},{"$f":"N4*(1+Control!$B70)","v":1386.1111111111113},{"$f":"O4*(1+Control!$B70)","v":1386.1111111111113},{"$f":"P4*(1+Control!$B70)","v":1386.1111111111113},{"$f":"Q4*(1+Control!$B70)","v":1386.1111111111113},{"$f":"R4*(1+Control!$B70)","v":1386.1111111111113},{"$f":"S4*(1+Control!$B70)","v":1386.1111111111113},{"$f":"T4*(1+Control!$B70)","v":1386.1111111111113},{"$f":"U4*(1+Control!$B70)","v":1386.1111111111113},{"$f":"V4*(1+Control!$B70)","v":1386.1111111111113},{"$f":"W4*(1+Control!$B70)","v":1386.1111111111113},{"$f":"X4*(1+Control!$B70)","v":1386.1111111111113},{"$f":"Y4*(1+Control!$B70)","v":1386.1111111111113},{"$f":"Z4*(1+Control!$B70)","v":1386.1111111111113},{"$f":"AA4*(1+Control!$B70)","v":1386.1111111111113},{"$f":"AB4*(1+Control!$B70)","v":1386.1111111111113},{"$f":"AC4*(1+Control!$B70)","v":1386.1111111111113},{"$f":"AD4*(1+Control!$B70)","v":1386.1111111111113},{"$f":"AE4*(1+Control!$B70)","v":1386.1111111111113},{"$f":"AF4*(1+Control!$B70)","v":1386.1111111111113},{"$f":"AG4*(1+Control!$B70)","v":1386.1111111111113},{"$f":"AH4*(1+Control!$B70)","v":1386.1111111111113},{"$f":"AI4*(1+Control!$B70)","v":1386.1111111111113},{"$f":"AJ4*(1+Control!$B70)","v":1386.1111111111113},{"$f":"AK4*(1+Control!$B70)","v":1386.1111111111113},{"$f":"AL4*(1+Control!$B70)","v":1386.1111111111113},{"$f":"AM4*(1+Control!$B70)","v":1386.1111111111113},{"$f":"AN4*(1+Control!$B70)","v":1386.1111111111113},{"$f":"AO4*(1+Control!$B70)","v":1386.1111111111113},{"$f":"AP4*(1+Control!$B70)","v":1386.1111111111113},{"$f":"AQ4*(1+Control!$B70)","v":1386.1111111111113},{"$f":"AR4*(1+Control!$B70)","v":1386.1111111111113},{"$f":"AS4*(1+Control!$B70)","v":1386.1111111111113},{"$f":"AT4*(1+Control!$B70)","v":1386.1111111111113},{"$f":"AU4*(1+Control!$B70)","v":1386.1111111111113},{"$f":"AV4*(1+Control!$B70)","v":1386.1111111111113},{"$f":"AW4*(1+Control!$B70)","v":1386.1111111111113},{"$f":"AX4*(1+Control!$B70)","v":1386.1111111111113},{"$f":"AY4*(1+Control!$B70)","v":1386.1111111111113},{"$f":"AZ4*(1+Control!$B70)","v":1386.1111111111113},{"$f":"BA4*(1+Control!$B70)","v":1386.1111111111113},{"$f":"BB4*(1+Control!$B70)","v":1386.1111111111113},{"$f":"BC4*(1+Control!$B70)","v":1386.1111111111113},{"$f":"BD4*(1+Control!$B70)","v":1386.1111111111113},{"$f":"BE4*(1+Control!$B70)","v":1386.1111111111113},{"$f":"BF4*(1+Control!$B70)","v":1386.1111111111113},{"$f":"BG4*(1+Control!$B70)","v":1386.1111111111113},{"$f":"BH4*(1+Control!$B70)","v":1386.1111111111113},{"$f":"BI4*(1+Control!$B70)","v":1386.1111111111113},{"$f":"BJ4*(1+Control!$B70)","v":1386.1111111111113},{"$f":"BK4*(1+Control!$B70)","v":1386.1111111111113},{"$f":"BL4*(1+Control!$B70)","v":1386.1111111111113},{"$f":"BM4*(1+Control!$B70)","v":1386.1111111111113},{"$f":"BN4*(1+Control!$B70)","v":1386.1111111111113},{"$f":"BO4*(1+Control!$B70)","v":1386.1111111111113},{"$f":"BP4*(1+Control!$B70)","v":1386.1111111111113},{"$f":"BQ4*(1+Control!$B70)","v":1386.1111111111113},{"$f":"BR4*(1+Control!$B70)","v":1386.1111111111113},{"$f":"BS4*(1+Control!$B70)","v":1386.1111111111113},{"$f":"BT4*(1+Control!$B70)","v":1386.1111111111113},{"$f":"BU4*(1+Control!$B70)","v":1386.1111111111113},{"$f":"BV4*(1+Control!$B70)","v":1386.1111111111113},{"$f":"BW4*(1+Control!$B70)","v":1386.1111111111113},{"$f":"BX4*(1+Control!$B70)","v":1386.1111111111113},{"$f":"BY4*(1+Control!$B70)","v":1386.1111111111113},{"$f":"BZ4*(1+Control!$B70)","v":1386.1111111111113},{"$f":"CA4*(1+Control!$B70)","v":1386.1111111111113},{"$f":"CB4*(1+Control!$B70)","v":1386.1111111111113},{"$f":"CC4*(1+Control!$B70)","v":1386.1111111111113},{"$f":"CD4*(1+Control!$B70)","v":1386.1111111111113},{"$f":"CE4*(1+Control!$B70)","v":1386.1111111111113},{"$f":"CF4*(1+Control!$B70)","v":1386.1111111111113},{"$f":"CG4*(1+Control!$B70)","v":1386.1111111111113},{"$f":"CH4*(1+Control!$B70)","v":1386.1111111111113},{"$f":"CI4*(1+Control!$B70)","v":1386.1111111111113},{"$f":"CJ4*(1+Control!$B70)","v":1386.1111111111113},{"$f":"CK4*(1+Control!$B70)","v":1386.1111111111113},{"$f":"CL4*(1+Control!$B70)","v":1386.1111111111113},{"$f":"CM4*(1+Control!$B70)","v":1386.1111111111113},{"$f":"CN4*(1+Control!$B70)","v":1386.1111111111113},{"$f":"CO4*(1+Control!$B70)","v":1386.1111111111113},{"$f":"CP4*(1+Control!$B70)","v":1386.1111111111113},{"$f":"CQ4*(1+Control!$B70)","v":1386.1111111111113},{"$f":"CR4*(1+Control!$B70)","v":1386.1111111111113},{"$f":"CS4*(1+Control!$B70)","v":1386.1111111111113},{"$f":"CT4*(1+Control!$B70)","v":1386.1111111111113},{"$f":"CU4*(1+Control!$B70)","v":1386.1111111111113},{"$f":"CV4*(1+Control!$B70)","v":1386.1111111111113}]
["Difference",{"$f":"B4-B3","v":-900.55555555555566},{"$f":"C4-C3","v":-900.55555555555566},-900.55555555555566,-900.55555555555566,-900.55555555555566,-900.55555555555566,-900.55555555555566,-889.12222222222226,-832.80736028354977,-821.71276792657636,-810.6736485313877,-799.68972473317535,-788.76072055395389,-777.88636139562868,-767.06637403309514,-756.3004866073743,-745.58842861878202,-734.92993092013239,-724.32472570997606,-713.77254652587044,-703.27312823768534,-692.82620704094143,-682.43152045018132,-672.0888072923749,-661.79780770035745,-651.55826310630005,-641.36991623521294,-631.23251109848138,-621.14579298743342,-611.10950846694072,-611.10950846694072,-611.10950846694072,-611.10950846694072,-611.10950846694072,-611.10950846694072,-611.10950846694072,-611.10950846694072,-611.10950846694072,-611.10950846694072,-611.10950846694072,-611.10950846694072,-611.10950846694072,-611.10950846694072,-611.10950846694072,-611.10950846694072,-611.10950846694072,-611.10950846694072,-611.10950846694072,-611.10950846694072,-611.10950846694072,-611.10950846694072,-611.10950846694072,-611.10950846694072,-611.10950846694072,-611.10950846694072,-611.10950846694072,-611.10950846694072,-611.10950846694072,-611.10950846694072,-611.10950846694072,-611.10950846694072,-611.10950846694072,-611.10950846694072,-611.10950846694072,-611.10950846694072,{"$f":"BO4-BO3","v":-611.10950846694072},-611.10950846694072,-611.10950846694072,-611.10950846694072,-611.10950846694072,-611.10950846694072,-611.10950846694072,-611.10950846694072,-611.10950846694072,-611.10950846694072,-611.10950846694072,-611.10950846694072,-611.10950846694072,-611.10950846694072,-611.10950846694072,{"$f":"CD4-CD3","v":-611.10950846694072},-611.10950846694072,-611.10950846694072,-611.10950846694072,-611.10950846694072,-611.10950846694072,-611.10950846694072,-611.10950846694072,-611.10950846694072,-611.10950846694072,-611.10950846694072,-611.10950846694072,-611.10950846694072,-611.10950846694072,-611.10950846694072,-611.10950846694072,-611.10950846694072,-611.10950846694072,-611.10950846694072,-611.10950846694072]
["Hot water"]
["Heat pump hot water",{"$f":"Control!E10","v":4622.2222222222226},{"$f":"B7*(1+Control!C73)","v":4622.2222222222226},{"$f":"$C7*(1+Control!D73)","v":4109.6706119827495},{"$f":"$C7*(1+Control!E73)","v":4109.6706119827495},{"$f":"$C7*(1+Control!F73)","v":4109.6706119827495},{"$f":"$C7*(1+Control!G73)","v":4109.6706119827495},{"$f":"$C7*(1+Control!H73)","v":4109.6706119827495},{"$f":"$C7*(1+Control!I73)","v":4599.1111111111113},{"$f":"C7*$J$1","v":4485.277376580073},{"$f":"J7*(1+Control!K73)","v":4462.8509896971727},{"$f":"K7*(1+Control!L73)","v":4440.5367347486872},{"$f":"L7*(1+Control!M73)","v":4418.334051074944},{"$f":"M7*(1+Control!N73)","v":4396.242380819569},{"$f":"N7*(1+Control!O73)","v":4374.261168915471},{"$f":"O7*(1+Control!P73)","v":4352.3898630708936},{"$f":"P7*(1+Control!Q73)","v":4330.6279137555393},{"$f":"Q7*(1+Control!R73)","v":4308.9747741867614},{"$f":"R7*(1+Control!S73)","v":4287.4299003158276},{"$f":"S7*(1+Control!T73)","v":4265.9927508142482},{"$f":"T7*(1+Control!U73)","v":4244.6627870601769},{"$f":"U7*(1+Control!V73)","v":4223.4394731248758},{"$f":"V7*(1+Control!W73)","v":4202.3222757592512},{"$f":"W7*(1+Control!X73)","v":4181.3106643804549},{"$f":"X7*(1+Control!Y73)","v":4160.4041110585522},{"$f":"Y7*(1+Control!Z73)","v":4139.6020905032592},{"$f":"Z7*(1+Control!AA73)","v":4118.9040800507428},{"$f":"AA7*(1+Control!AB73)","v":4098.3095596504891},{"$f":"AB7*(1+Control!AC73)","v":4077.8180118522364},{"$f":"AC7*(1+Control!AD73)","v":4057.4289217929754},{"$f":"AD7*(1+Control!AE73)","v":4037.1417771840106},{"$f":"AE7*(1+Control!AF73)","v":4037.1417771840106},{"$f":"AF7*(1+Control!AG73)","v":4037.1417771840106},{"$f":"AG7*(1+Control!AH73)","v":4037.1417771840106},{"$f":"AH7*(1+Control!AI73)","v":4037.1417771840106},{"$f":"AI7*(1+Control!AJ73)","v":4037.1417771840106},{"$f":"AJ7*(1+Control!AK73)","v":4037.1417771840106},{"$f":"AK7*(1+Control!AL73)","v":4037.1417771840106},{"$f":"AL7*(1+Control!AM73)","v":4037.1417771840106},{"$f":"AM7*(1+Control!AN73)","v":4037.1417771840106},{"$f":"AN7*(1+Control!AO73)","v":4037.1417771840106},{"$f":"AO7*(1+Control!AP73)","v":4037.1417771840106},{"$f":"AP7*(1+Control!AQ73)","v":4037.1417771840106},{"$f":"AQ7*(1+Control!AR73)","v":4037.1417771840106},{"$f":"AR7*(1+Control!AS73)","v":4037.1417771840106},{"$f":"AS7*(1+Control!AT73)","v":4037.1417771840106},{"$f":"AT7*(1+Control!AU73)","v":4037.1417771840106},{"$f":"AU7*(1+Control!AV73)","v":4037.1417771840106},{"$f":"AV7*(1+Control!AW73)","v":4037.1417771840106},{"$f":"AW7*(1+Control!AX73)","v":4037.1417771840106},{"$f":"AX7*(1+Control!AY73)","v":4037.1417771840106},{"$f":"AY7*(1+Control!AZ73)","v":4037.1417771840106},{"$f":"AZ7*(1+Control!BA73)","v":4037.1417771840106},{"$f":"BA7*(1+Control!BB73)","v":4037.1417771840106},{"$f":"BB7*(1+Control!BC73)","v":4037.1417771840106},{"$f":"BC7*(1+Control!BD73)","v":4037.1417771840106},{"$f":"BD7*(1+Control!BE73)","v":4037.1417771840106},{"$f":"BE7*(1+Control!BF73)","v":4037.1417771840106},{"$f":"BF7*(1+Control!BG73)","v":4037.1417771840106},{"$f":"BG7*(1+Control!BH73)","v":4037.1417771840106},{"$f":"BH7*(1+Control!BI73)","v":4037.1417771840106},{"$f":"BI7*(1+Control!BJ73)","v":4037.1417771840106},{"$f":"BJ7*(1+Control!BK73)","v":4037.1417771840106},{"$f":"BK7*(1+Control!BL73)","v":4037.1417771840106},{"$f":"BL7*(1+Control!BM73)","v":4037.1417771840106},{"$f":"BM7*(1+Control!BN73)","v":4037.1417771840106},{"$f":"BN7*(1+Control!BO73)","v":4037.1417771840106},{"$f":"BO7*(1+Control!BP73)","v":4037.1417771840106},{"$f":"BP7*(1+Control!BQ73)","v":4037.1417771840106},{"$f":"BQ7*(1+Control!BR73)","v":4037.1417771840106},{"$f":"BR7*(1+Control!BS73)","v":4037.1417771840106},{"$f":"BS7*(1+Control!BT73)","v":4037.1417771840106},{"$f":"BT7*(1+Control!BU73)","v":4037.1417771840106},{"$f":"BU7*(1+Control!BV73)","v":4037.1417771840106},{"$f":"BV7*(1+Control!BW73)","v":4037.1417771840106},{"$f":"BW7*(1+Control!BX73)","v":4037.1417771840106},{"$f":"BX7*(1+Control!BY73)","v":4037.1417771840106},{"$f":"BY7*(1+Control!BZ73)","v":4037.1417771840106},{"$f":"BZ7*(1+Control!CA73)","v":4037.1417771840106},{"$f":"CA7*(1+Control!CB73)","v":4037.1417771840106},{"$f":"CB7*(1+Control!CC73)","v":4037.1417771840106},{"$f":"CC7*(1+Control!CD73)","v":4037.1417771840106},{"$f":"CD7*(1+Control!CE73)","v":4037.1417771840106},{"$f":"CE7*(1+Control!CF73)","v":4037.1417771840106},{"$f":"CF7*(1+Control!CG73)","v":4037.1417771840106},{"$f":"CG7*(1+Control!CH73)","v":4037.1417771840106},{"$f":"CH7*(1+Control!CI73)","v":4037.1417771840106},{"$f":"CI7*(1+Control!CJ73)","v":4037.1417771840106},{"$f":"CJ7*(1+Control!CK73)","v":4037.1417771840106},{"$f":"CK7*(1+Control!CL73)","v":4037.1417771840106},{"$f":"CL7*(1+Control!CM73)","v":4037.1417771840106},{"$f":"CM7*(1+Control!CN73)","v":4037.1417771840106},{"$f":"CN7*(1+Control!CO73)","v":4037.1417771840106},{"$f":"CO7*(1+Control!CP73)","v":4037.1417771840106},{"$f":"CP7*(1+Control!CQ73)","v":4037.1417771840106},{"$f":"CQ7*(1+Control!CR73)","v":4037.1417771840106},{"$f":"CR7*(1+Control!CS73)","v":4037.1417771840106},{"$f":"CS7*(1+Control!CT73)","v":4037.1417771840106},{"$f":"CT7*(1+Control!CU73)","v":4037.1417771840106},{"$f":"CU7*(1+Control!CV73)","v":4037.1417771840106},{"$f":"CV7*(1+Control!CW73)","v":4037.1417771840106}]
["Gas instant hot water",{"$f":"Control!E11","v":2230},{"$f":"B8*(1+Control!$B74)","v":2230},{"$f":"C8*(1+Control!$B74)","v":2230},{"$f":"D8*(1+Control!$B74)","v":2230},{"$f":"E8*(1+Control!$B74)","v":2230},{"$f":"F8*(1+Control!$B74)","v":2230},{"$f":"G8*(1+Control!$B74)","v":2230},{"$f":"H8*(1+Control!$B74)","v":2230},{"$f":"I8*(1+Control!$B74)","v":2230},{"$f":"J8*(1+Control!$B74)","v":2230},{"$f":"K8*(1+Control!$B74)","v":2230},{"$f":"L8*(1+Control!$B74)","v":2230},{"$f":"M8*(1+Control!$B74)","v":2230},{"$f":"N8*(1+Control!$B74)","v":2230},{"$f":"O8*(1+Control!$B74)","v":2230},{"$f":"P8*(1+Control!$B74)","v":2230},{"$f":"Q8*(1+Control!$B74)","v":2230},{"$f":"R8*(1+Control!$B74)","v":2230},{"$f":"S8*(1+Control!$B74)","v":2230},{"$f":"T8*(1+Control!$B74)","v":2230},{"$f":"U8*(1+Control!$B74)","v":2230},{"$f":"V8*(1+Control!$B74)","v":2230},{"$f":"W8*(1+Control!$B74)","v":2230},{"$f":"X8*(1+Control!$B74)","v":2230},{"$f":"Y8*(1+Control!$B74)","v":2230},{"$f":"Z8*(1+Control!$B74)","v":2230},{"$f":"AA8*(1+Control!$B74)","v":2230},{"$f":"AB8*(1+Control!$B74)","v":2230},{"$f":"AC8*(1+Control!$B74)","v":2230},{"$f":"AD8*(1+Control!$B74)","v":2230},{"$f":"AE8*(1+Control!$B74)","v":2230},{"$f":"AF8*(1+Control!$B74)","v":2230},{"$f":"AG8*(1+Control!$B74)","v":2230},{"$f":"AH8*(1+Control!$B74)","v":2230},{"$f":"AI8*(1+Control!$B74)","v":2230},{"$f":"AJ8*(1+Control!$B74)","v":2230},{"$f":"AK8*(1+Control!$B74)","v":2230},{"$f":"AL8*(1+Control!$B74)","v":2230},{"$f":"AM8*(1+Control!$B74)","v":2230},{"$f":"AN8*(1+Control!$B74)","v":2230},{"$f":"AO8*(1+Control!$B74)","v":2230},{"$f":"AP8*(1+Control!$B74)","v":2230},{"$f":"AQ8*(1+Control!$B74)","v":2230},{"$f":"AR8*(1+Control!$B74)","v":2230},{"$f":"AS8*(1+Control!$B74)","v":2230},{"$f":"AT8*(1+Control!$B74)","v":2230},{"$f":"AU8*(1+Control!$B74)","v":2230},{"$f":"AV8*(1+Control!$B74)","v":2230},{"$f":"AW8*(1+Control!$B74)","v":2230},{"$f":"AX8*(1+Control!$B74)","v":2230},{"$f":"AY8*(1+Control!$B74)","v":2230},{"$f":"AZ8*(1+Control!$B74)","v":2230},{"$f":"BA8*(1+Control!$B74)","v":2230},{"$f":"BB8*(1+Control!$B74)","v":2230},{"$f":"BC8*(1+Control!$B74)","v":2230},{"$f":"BD8*(1+Control!$B74)","v":2230},{"$f":"BE8*(1+Control!$B74)","v":2230},{"$f":"BF8*(1+Control!$B74)","v":2230},{"$f":"BG8*(1+Control!$B74)","v":2230},{"$f":"BH8*(1+Control!$B74)","v":2230},{"$f":"BI8*(1+Control!$B74)","v":2230},{"$f":"BJ8*(1+Control!$B74)","v":2230},{"$f":"BK8*(1+Control!$B74)","v":2230},{"$f":"BL8*(1+Control!$B74)","v":2230},{"$f":"BM8*(1+Control!$B74)","v":2230},{"$f":"BN8*(1+Control!$B74)","v":2230},{"$f":"BO8*(1+Control!$B74)","v":2230},{"$f":"BP8*(1+Control!$B74)","v":2230},{"$f":"BQ8*(1+Control!$B74)","v":2230},{"$f":"BR8*(1+Control!$B74)","v":2230},{"$f":"BS8*(1+Control!$B74)","v":2230},{"$f":"BT8*(1+Control!$B74)","v":2230},{"$f":"BU8*(1+Control!$B74)","v":2230},{"$f":"BV8*(1+Control!$B74)","v":2230},{"$f":"BW8*(1+Control!$B74)","v":2230},{"$f":"BX8*(1+Control!$B74)","v":2230},{"$f":"BY8*(1+Control!$B74)","v":2230},{"$f":"BZ8*(1+Control!$B74)","v":2230},{"$f":"CA8*(1+Control!$B74)","v":2230},{"$f":"CB8*(1+Control!$B74)","v":2230},{"$f":"CC8*(1+Control!$B74)","v":2230},{"$f":"CD8*(1+Control!$B74)","v":2230},{"$f":"CE8*(1+Control!$B74)","v":2230},{"$f":"CF8*(1+Control!$B74)","v":2230},{"$f":"CG8*(1+Control!$B74)","v":2230},{"$f":"CH8*(1+Control!$B74)","v":2230},{"$f":"CI8*(1+Control!$B74)","v":2230},{"$f":"CJ8*(1+Control!$B74)","v":2230},{"$f":"CK8*(1+Control!$B74)","v":2230},{"$f":"CL8*(1+Control!$B74)","v":2230},{"$f":"CM8*(1+Control!$B74)","v":2230},{"$f":"CN8*(1+Control!$B74)","v":2230},{"$f":"CO8*(1+Control!$B74)","v":2230},{"$f":"CP8*(1+Control!$B74)","v":2230},{"$f":"CQ8*(1+Control!$B74)","v":2230},{"$f":"CR8*(1+Control!$B74)","v":2230},{"$f":"CS8*(1+Control!$B74)","v":2230},{"$f":"CT8*(1+Control!$B74)","v":2230},{"$f":"CU8*(1+Control!$B74)","v":2230},{"$f":"CV8*(1+Control!$B74)","v":2230}]
["Difference",{"$f":"B8-B7","v":-2392.2222222222226},{"$f":"C8-C7","v":-2392.2222222222226},-1879.6706119827495,-1879.6706119827495,-1879.6706119827495,-1879.6706119827495,-1879.6706119827495,-2369.1111111111113,-2255.277376580073,-2232.8509896971727,-2210.5367347486872,-2188.334051074944,-2166.242380819569,-2144.261168915471,-2122.3898630708936,-2100.6279137555393,-2078.9747741867614,-2057.4299003158276,-2035.9927508142482,-2014.6627870601769,-1993.4394731248758,-1972.3222757592512,-1951.3106643804549,-1930.4041110585522,-1909.6020905032592,-1888.9040800507428,-1868.3095596504891,-1847.8180118522364,-1827.4289217929754,-1807.1417771840106,-1807.1417771840106,-1807.1417771840106,-1807.1417771840106,-1807.1417771840106,-1807.1417771840106,-1807.1417771840106,-1807.1417771840106,-1807.1417771840106,-1807.1417771840106,-1807.1417771840106,-1807.1417771840106,-1807.1417771840106,-1807.1417771840106,-1807.1417771840106,-1807.1417771840106,-1807.1417771840106,-1807.1417771840106,-1807.1417771840106,-1807.1417771840106,-1807.1417771840106,-1807.1417771840106,-1807.1417771840106,-1807.1417771840106,-1807.1417771840106,-1807.1417771840106,-1807.1417771840106,-1807.1417771840106,-1807.1417771840106,-1807.1417771840106,-1807.1417771840106,-1807.1417771840106,-1807.1417771840106,-1807.1417771840106,-1807.1417771840106,-1807.1417771840106,{"$f":"BO8-BO7","v":-1807.1417771840106},-1807.1417771840106,-1807.1417771840106,-1807.1417771840106,-1807.1417771840106,-1807.1417771840106,-1807.1417771840106,-1807.1417771840106,-1807.1417771840106,-1807.1417771840106,-1807.1417771840106,-1807.1417771840106,-1807.1417771840106,-1807.1417771840106,-1807.1417771840106,{"$f":"CD8-CD7","v":-1807.1417771840106},-1807.1417771840106,-1807.1417771840106,-1807.1417771840106,-1807.1417771840106,-1807.1417771840106,-1807.1417771840106,-1807.1417771840106,-1807.1417771840106,-1807.1417771840106,-1807.1417771840106,-1807.1417771840106,-1807.1417771840106,-1807.1417771840106,-1807.1417771840106,-1807.1417771840106,-1807.1417771840106,-1807.1417771840106,-1807.1417771840106,-1807.1417771840106]
["Room heating"]
["RCAC split system",{"$f":"Control!E14","v":3324.4216872134907},{"$f":"B11*(1+Control!C77)","v":3324.4216872134907},{"$f":"$C11*(1+Control!D77)","v":3084.4216872134907},{"$f":"$C11*(1+Control!E77)","v":3084.4216872134907},{"$f":"$C11*(1+Control!F77)","v":3084.4216872134907},{"$f":"$C11*(1+Control!G77)","v":3324.4216872134907},{"$f":"$C11*(1+Control!H77)","v":3324.4216872134907},{"$f":"$C11*(1+Control!I77)","v":3307.7995787774234},{"$f":"C11*$J$1","v":3225.927414779746},{"$f":"J11*(1+Control!K77)","v":3209.7977777058472},{"$f":"K11*(1+Control!L77)","v":3193.7487888173182},{"$f":"L11*(1+Control!M77)","v":3177.7800448732314},{"$f":"M11*(1+Control!N77)","v":3161.8911446488651},{"$f":"N11*(1+Control!O77)","v":3146.0816889256207},{"$f":"O11*(1+Control!P77)","v":3130.3512804809925},{"$f":"P11*(1+Control!Q77)","v":3114.6995240785877},{"$f":"Q11*(1+Control!R77)","v":3099.1260264581947},{"$f":"R11*(1+Control!S77)","v":3083.6303963259038},{"$f":"S11*(1+Control!T77)","v":3068.2122443442745},{"$f":"T11*(1+Control!U77)","v":3052.8711831225532},{"$f":"U11*(1+Control!V77)","v":3037.6068272069406},{"$f":"V11*(1+Control!W77)","v":3022.4187930709058},{"$f":"W11*(1+Control!X77)","v":3007.3066991055512},{"$f":"X11*(1+Control!Y77)","v":2992.2701656100235},{"$f":"Y11*(1+Control!Z77)","v":2977.3088147819735},{"$f":"Z11*(1+Control!AA77)","v":2962.4222707080635},{"$f":"AA11*(1+Control!AB77)","v":2947.6101593545231},{"$f":"AB11*(1+Control!AC77)","v":2932.8721085577504},{"$f":"AC11*(1+Control!AD77)","v":2918.2077480149615},{"$f":"AD11*(1+Control!AE77)","v":2903.6167092748865},{"$f":"AE11*(1+Control!AF77)","v":2903.6167092748865},{"$f":"AF11*(1+Control!AG77)","v":2903.6167092748865},{"$f":"AG11*(1+Control!AH77)","v":2903.6167092748865},{"$f":"AH11*(1+Control!AI77)","v":2903.6167092748865},{"$f":"AI11*(1+Control!AJ77)","v":2903.6167092748865},{"$f":"AJ11*(1+Control!AK77)","v":2903.6167092748865},{"$f":"AK11*(1+Control!AL77)","v":2903.6167092748865},{"$f":"AL11*(1+Control!AM77)","v":2903.6167092748865},{"$f":"AM11*(1+Control!AN77)","v":2903.6167092748865},{"$f":"AN11*(1+Control!AO77)","v":2903.6167092748865},{"$f":"AO11*(1+Control!AP77)","v":2903.6167092748865},{"$f":"AP11*(1+Control!AQ77)","v":2903.6167092748865},{"$f":"AQ11*(1+Control!AR77)","v":2903.6167092748865},{"$f":"AR11*(1+Control!AS77)","v":2903.6167092748865},{"$f":"AS11*(1+Control!AT77)","v":2903.6167092748865},{"$f":"AT11*(1+Control!AU77)","v":2903.6167092748865},{"$f":"AU11*(1+Control!AV77)","v":2903.6167092748865},{"$f":"AV11*(1+Control!AW77)","v":2903.6167092748865},{"$f":"AW11*(1+Control!AX77)","v":2903.6167092748865},{"$f":"AX11*(1+Control!AY77)","v":2903.6167092748865},{"$f":"AY11*(1+Control!AZ77)","v":2903.6167092748865},{"$f":"AZ11*(1+Control!BA77)","v":2903.6167092748865},{"$f":"BA11*(1+Control!BB77)","v":2903.6167092748865},{"$f":"BB11*(1+Control!BC77)","v":2903.6167092748865},{"$f":"BC11*(1+Control!BD77)","v":2903.6167092748865},{"$f":"BD11*(1+Control!BE77)","v":2903.6167092748865},{"$f":"BE11*(1+Control!BF77)","v":2903.6167092748865},{"$f":"BF11*(1+Control!BG77)","v":2903.6167092748865},{"$f":"BG11*(1+Control!BH77)","v":2903.6167092748865},{"$f":"BH11*(1+Control!BI77)","v":2903.6167092748865},{"$f":"BI11*(1+Control!BJ77)","v":2903.6167092748865},{"$f":"BJ11*(1+Control!BK77)","v":2903.6167092748865},{"$f":"BK11*(1+Control!BL77)","v":2903.6167092748865},{"$f":"BL11*(1+Control!BM77)","v":2903.6167092748865},{"$f":"BM11*(1+Control!BN77)","v":2903.6167092748865},{"$f":"BN11*(1+Control!BO77)","v":2903.6167092748865},{"$f":"BO11*(1+Control!BP77)","v":2903.6167092748865},{"$f":"BP11*(1+Control!BQ77)","v":2903.6167092748865},{"$f":"BQ11*(1+Control!BR77)","v":2903.6167092748865},{"$f":"BR11*(1+Control!BS77)","v":2903.6167092748865},{"$f":"BS11*(1+Control!BT77)","v":2903.6167092748865},{"$f":"BT11*(1+Control!BU77)","v":2903.6167092748865},{"$f":"BU11*(1+Control!BV77)","v":2903.6167092748865},{"$f":"BV11*(1+Control!BW77)","v":2903.6167092748865},{"$f":"BW11*(1+Control!BX77)","v":2903.6167092748865},{"$f":"BX11*(1+Control!BY77)","v":2903.6167092748865},{"$f":"BY11*(1+Control!BZ77)","v":2903.6167092748865},{"$f":"BZ11*(1+Control!CA77)","v":2903.6167092748865},{"$f":"CA11*(1+Control!CB77)","v":2903.6167092748865},{"$f":"CB11*(1+Control!CC77)","v":2903.6167092748865},{"$f":"CC11*(1+Control!CD77)","v":2903.6167092748865},{"$f":"CD11*(1+Control!CE77)","v":2903.6167092748865},{"$f":"CE11*(1+Control!CF77)","v":2903.6167092748865},{"$f":"CF11*(1+Control!CG77)","v":2903.6167092748865},{"$f":"CG11*(1+Control!CH77)","v":2903.6167092748865},{"$f":"CH11*(1+Control!CI77)","v":2903.6167092748865},{"$f":"CI11*(1+Control!CJ77)","v":2903.6167092748865},{"$f":"CJ11*(1+Control!CK77)","v":2903.6167092748865},{"$f":"CK11*(1+Control!CL77)","v":2903.6167092748865},{"$f":"CL11*(1+Control!CM77)","v":2903.6167092748865},{"$f":"CM11*(1+Control!CN77)","v":2903.6167092748865},{"$f":"CN11*(1+Control!CO77)","v":2903.6167092748865},{"$f":"CO11*(1+Control!CP77)","v":2903.6167092748865},{"$f":"CP11*(1+Control!CQ77)","v":2903.6167092748865},{"$f":"CQ11*(1+Control!CR77)","v":2903.6167092748865},{"$f":"CR11*(1+Control!CS77)","v":2903.6167092748865},{"$f":"CS11*(1+Control!CT77)","v":2903.6167092748865},{"$f":"CT11*(1+Control!CU77)","v":2903.6167092748865},{"$f":"CU11*(1+Control!CV77)","v":2903.6167092748865},{"$f":"CV11*(1+Control!CW77)","v":2903.6167092748865}]
["Gas wall furnace",{"$f":"Control!E15","v":2322.1999999999998},{"$f":"B12*(1+Control!$B78)","v":2322.1999999999998},{"$f":"C12*(1+Control!$B78)","v":2322.1999999999998},{"$f":"D12*(1+Control!$B78)","v":2322.1999999999998},{"$f":"E12*(1+Control!$B78)","v":2322.1999999999998},{"$f":"F12*(1+Control!$B78)","v":2322.1999999999998},{"$f":"G12*(1+Control!$B78)","v":2322.1999999999998},{"$f":"H12*(1+Control!$B78)","v":2322.1999999999998},{"$f":"I12*(1+Control!$B78)","v":2322.1999999999998},{"$f":"J12*(1+Control!$B78)","v":2322.1999999999998},{"$f":"K12*(1+Control!$B78)","v":2322.1999999999998},{"$f":"L12*(1+Control!$B78)","v":2322.1999999999998},{"$f":"M12*(1+Control!$B78)","v":2322.1999999999998},{"$f":"N12*(1+Control!$B78)","v":2322.1999999999998},{"$f":"O12*(1+Control!$B78)","v":2322.1999999999998},{"$f":"P12*(1+Control!$B78)","v":2322.1999999999998},{"$f":"Q12*(1+Control!$B78)","v":2322.1999999999998},{"$f":"R12*(1+Control!$B78)","v":2322.1999999999998},{"$f":"S12*(1+Control!$B78)","v":2322.1999999999998},{"$f":"T12*(1+Control!$B78)","v":2322.1999999999998},{"$f":"U12*(1+Control!$B78)","v":2322.1999999999998},{"$f":"V12*(1+Control!$B78)","v":2322.1999999999998},{"$f":"W12*(1+Control!$B78)","v":2322.1999999999998},{"$f":"X12*(1+Control!$B78)","v":2322.1999999999998},{"$f":"Y12*(1+Control!$B78)","v":2322.1999999999998},{"$f":"Z12*(1+Control!$B78)","v":2322.1999999999998},{"$f":"AA12*(1+Control!$B78)","v":2322.1999999999998},{"$f":"AB12*(1+Control!$B78)","v":2322.1999999999998},{"$f":"AC12*(1+Control!$B78)","v":2322.1999999999998},{"$f":"AD12*(1+Control!$B78)","v":2322.1999999999998},{"$f":"AE12*(1+Control!$B78)","v":2322.1999999999998},{"$f":"AF12*(1+Control!$B78)","v":2322.1999999999998},{"$f":"AG12*(1+Control!$B78)","v":2322.1999999999998},{"$f":"AH12*(1+Control!$B78)","v":2322.1999999999998},{"$f":"AI12*(1+Control!$B78)","v":2322.1999999999998},{"$f":"AJ12*(1+Control!$B78)","v":2322.1999999999998},{"$f":"AK12*(1+Control!$B78)","v":2322.1999999999998},{"$f":"AL12*(1+Control!$B78)","v":2322.1999999999998},{"$f":"AM12*(1+Control!$B78)","v":2322.1999999999998},{"$f":"AN12*(1+Control!$B78)","v":2322.1999999999998},{"$f":"AO12*(1+Control!$B78)","v":2322.1999999999998},{"$f":"AP12*(1+Control!$B78)","v":2322.1999999999998},{"$f":"AQ12*(1+Control!$B78)","v":2322.1999999999998},{"$f":"AR12*(1+Control!$B78)","v":2322.1999999999998},{"$f":"AS12*(1+Control!$B78)","v":2322.1999999999998},{"$f":"AT12*(1+Control!$B78)","v":2322.1999999999998},{"$f":"AU12*(1+Control!$B78)","v":2322.1999999999998},{"$f":"AV12*(1+Control!$B78)","v":2322.1999999999998},{"$f":"AW12*(1+Control!$B78)","v":2322.1999999999998},{"$f":"AX12*(1+Control!$B78)","v":2322.1999999999998},{"$f":"AY12*(1+Control!$B78)","v":2322.1999999999998},{"$f":"AZ12*(1+Control!$B78)","v":2322.1999999999998},{"$f":"BA12*(1+Control!$B78)","v":2322.1999999999998},{"$f":"BB12*(1+Control!$B78)","v":2322.1999999999998},{"$f":"BC12*(1+Control!$B78)","v":2322.1999999999998},{"$f":"BD12*(1+Control!$B78)","v":2322.1999999999998},{"$f":"BE12*(1+Control!$B78)","v":2322.1999999999998},{"$f":"BF12*(1+Control!$B78)","v":2322.1999999999998},{"$f":"BG12*(1+Control!$B78)","v":2322.1999999999998},{"$f":"BH12*(1+Control!$B78)","v":2322.1999999999998},{"$f":"BI12*(1+Control!$B78)","v":2322.1999999999998},{"$f":"BJ12*(1+Control!$B78)","v":2322.1999999999998},{"$f":"BK12*(1+Control!$B78)","v":2322.1999999999998},{"$f":"BL12*(1+Control!$B78)","v":2322.1999999999998},{"$f":"BM12*(1+Control!$B78)","v":2322.1999999999998},{"$f":"BN12*(1+Control!$B78)","v":2322.1999999999998},{"$f":"BO12*(1+Control!$B78)","v":2322.1999999999998},{"$f":"BP12*(1+Control!$B78)","v":2322.1999999999998},{"$f":"BQ12*(1+Control!$B78)","v":2322.1999999999998},{"$f":"BR12*(1+Control!$B78)","v":2322.1999999999998},{"$f":"BS12*(1+Control!$B78)","v":2322.1999999999998},{"$f":"BT12*(1+Control!$B78)","v":2322.1999999999998},{"$f":"BU12*(1+Control!$B78)","v":2322.1999999999998},{"$f":"BV12*(1+Control!$B78)","v":2322.1999999999998},{"$f":"BW12*(1+Control!$B78)","v":2322.1999999999998},{"$f":"BX12*(1+Control!$B78)","v":2322.1999999999998},{"$f":"BY12*(1+Control!$B78)","v":2322.1999999999998},{"$f":"BZ12*(1+Control!$B78)","v":2322.1999999999998},{"$f":"CA12*(1+Control!$B78)","v":2322.1999999999998},{"$f":"CB12*(1+Control!$B78)","v":2322.1999999999998},{"$f":"CC12*(1+Control!$B78)","v":2322.1999999999998},{"$f":"CD12*(1+Control!$B78)","v":2322.1999999999998},{"$f":"CE12*(1+Control!$B78)","v":2322.1999999999998},{"$f":"CF12*(1+Control!$B78)","v":2322.1999999999998},{"$f":"CG12*(1+Control!$B78)","v":2322.1999999999998},{"$f":"CH12*(1+Control!$B78)","v":2322.1999999999998},{"$f":"CI12*(1+Control!$B78)","v":2322.1999999999998},{"$f":"CJ12*(1+Control!$B78)","v":2322.1999999999998},{"$f":"CK12*(1+Control!$B78)","v":2322.1999999999998},{"$f":"CL12*(1+Control!$B78)","v":2322.1999999999998},{"$f":"CM12*(1+Control!$B78)","v":2322.1999999999998},{"$f":"CN12*(1+Control!$B78)","v":2322.1999999999998},{"$f":"CO12*(1+Control!$B78)","v":2322.1999999999998},{"$f":"CP12*(1+Control!$B78)","v":2322.1999999999998},{"$f":"CQ12*(1+Control!$B78)","v":2322.1999999999998},{"$f":"CR12*(1+Control!$B78)","v":2322.1999999999998},{"$f":"CS12*(1+Control!$B78)","v":2322.1999999999998},{"$f":"CT12*(1+Control!$B78)","v":2322.1999999999998},{"$f":"CU12*(1+Control!$B78)","v":2322.1999999999998},{"$f":"CV12*(1+Control!$B78)","v":2322.1999999999998}]
["Difference",{"$f":"B12-B11","v":-1002.2216872134909},{"$f":"C12-C11","v":-1002.2216872134909},-762.2216872134909,-762.2216872134909,-762.2216872134909,-1002.2216872134909,-1002.2216872134909,-985.59957877742363,-903.72741477974614,-887.59777770584742,-871.54878881731838,-855.5800448732316,-839.69114464886525,-823.88168892562089,-808.15128048099268,-792.49952407858791,-776.92602645819488,-761.43039632590398,-746.01224434427468,-730.67118312255343,-715.40682720694076,-700.21879307090603,-685.10669910555134,-670.07016561002365,-655.10881478197371,-640.22227070806366,-625.41015935452333,-610.67210855775056,-596.00774801496163,-581.41670927488667,-581.41670927488667,-581.41670927488667,-581.41670927488667,-581.41670927488667,-581.41670927488667,-581.41670927488667,-581.41670927488667,-581.41670927488667,-581.41670927488667,-581.41670927488667,-581.41670927488667,-581.41670927488667,-581.41670927488667,-581.41670927488667,-581.41670927488667,-581.41670927488667,-581.41670927488667,-581.41670927488667,-581.41670927488667,-581.41670927488667,-581.41670927488667,-581.41670927488667,-581.41670927488667,-581.41670927488667,-581.41670927488667,-581.41670927488667,-581.41670927488667,-581.41670927488667,-581.41670927488667,-581.41670927488667,-581.41670927488667,-581.41670927488667,-581.41670927488667,-581.41670927488667,-581.41670927488667,{"$f":"BO12-BO11","v":-581.41670927488667},-581.41670927488667,-581.41670927488667,-581.41670927488667,-581.41670927488667,-581.41670927488667,-581.41670927488667,-581.41670927488667,-581.41670927488667,-581.41670927488667,-581.41670927488667,-581.41670927488667,-581.41670927488667,-581.41670927488667,-581.41670927488667,{"$f":"CD12-CD11","v":-581.41670927488667},-581.41670927488667,-581.41670927488667,-581.41670927488667,-581.41670927488667,-581.41670927488667,-581.41670927488667,-581.41670927488667,-581.41670927488667,-581.41670927488667,-581.41670927488667,-581.41670927488667,-581.41670927488667,-581.41670927488667,-581.41670927488667,-581.41670927488667,-581.41670927488667,-581.41670927488667,-581.41670927488667,-581.41670927488667]
["Ducted heating"]
["Ducted RCAC",{"$f":"Control!E18","v":6388.552083333333},{"$f":"B15*(1+Control!C81)","v":6388.552083333333},{"$f":"$C15*(1+Control!D81)","v":5048.5520833333348},{"$f":"$C15*(1+Control!E81)","v":5048.5520833333348},{"$f":"$C15*(1+Control!F81)","v":6388.552083333333},{"$f":"$C15*(1+Control!G81)","v":6388.552083333333},{"$f":"$C15*(1+Control!H81)","v":6388.552083333333},{"$f":"$C15*(1+Control!I81)","v":6356.6093229166663},{"$f":"C15*$J$1","v":6199.2753162573654},{"$f":"J15*(1+Control!K81)","v":6168.2789396760782},{"$f":"K15*(1+Control!L81)","v":6137.4375449776981},{"$f":"L15*(1+Control!M81)","v":6106.7503572528094},{"$f":"M15*(1+Control!N81)","v":6076.2166054665449},{"$f":"N15*(1+Control!O81)","v":6045.8355224392126},{"$f":"O15*(1+Control!P81)","v":6015.6063448270161},{"$f":"P15*(1+Control!Q81)","v":5985.5283131028809},{"$f":"Q15*(1+Control!R81)","v":5955.6006715373669},{"$f":"R15*(1+Control!S81)","v":5925.8226681796805},{"$f":"S15*(1+Control!T81)","v":5896.1935548387819},{"$f":"T15*(1+Control!U81)","v":5866.7125870645878},{"$f":"U15*(1+Control!V81)","v":5837.3790241292645},{"$f":"V15*(1+Control!W81)","v":5808.1921290086184},{"$f":"W15*(1+Control!X81)","v":5779.1511683635754},{"$f":"X15*(1+Control!Y81)","v":5750.2554125217575},{"$f":"Y15*(1+Control!Z81)","v":5721.5041354591485},{"$f":"Z15*(1+Control!AA81)","v":5692.8966147818528},{"$f":"AA15*(1+Control!AB81)","v":5664.4321317079439},{"$f":"AB15*(1+Control!AC81)","v":5636.1099710494045},{"$f":"AC15*(1+Control!AD81)","v":5607.9294211941578},{"$f":"AD15*(1+Control!AE81)","v":5579.8897740881866},{"$f":"AE15*(1+Control!AF81)","v":5579.8897740881866},{"$f":"AF15*(1+Control!AG81)","v":5579.8897740881866},{"$f":"AG15*(1+Control!AH81)","v":5579.8897740881866},{"$f":"AH15*(1+Control!AI81)","v":5579.8897740881866},{"$f":"AI15*(1+Control!AJ81)","v":5579.8897740881866},{"$f":"AJ15*(1+Control!AK81)","v":5579.8897740881866},{"$f":"AK15*(1+Control!AL81)","v":5579.8897740881866},{"$f":"AL15*(1+Control!AM81)","v":5579.8897740881866},{"$f":"AM15*(1+Control!AN81)","v":5579.8897740881866},{"$f":"AN15*(1+Control!AO81)","v":5579.8897740881866},{"$f":"AO15*(1+Control!AP81)","v":5579.8897740881866},{"$f":"AP15*(1+Control!AQ81)","v":5579.8897740881866},{"$f":"AQ15*(1+Control!AR81)","v":5579.8897740881866},{"$f":"AR15*(1+Control!AS81)","v":5579.8897740881866},{"$f":"AS15*(1+Control!AT81)","v":5579.8897740881866},{"$f":"AT15*(1+Control!AU81)","v":5579.8897740881866},{"$f":"AU15*(1+Control!AV81)","v":5579.8897740881866},{"$f":"AV15*(1+Control!AW81)","v":5579.8897740881866},{"$f":"AW15*(1+Control!AX81)","v":5579.8897740881866},{"$f":"AX15*(1+Control!AY81)","v":5579.8897740881866},{"$f":"AY15*(1+Control!AZ81)","v":5579.8897740881866},{"$f":"AZ15*(1+Control!BA81)","v":5579.8897740881866},{"$f":"BA15*(1+Control!BB81)","v":5579.8897740881866},{"$f":"BB15*(1+Control!BC81)","v":5579.8897740881866},{"$f":"BC15*(1+Control!BD81)","v":5579.8897740881866},{"$f":"BD15*(1+Control!BE81)","v":5579.8897740881866},{"$f":"BE15*(1+Control!BF81)","v":5579.8897740881866},{"$f":"BF15*(1+Control!BG81)","v":5579.8897740881866},{"$f":"BG15*(1+Control!BH81)","v":5579.8897740881866},{"$f":"BH15*(1+Control!BI81)","v":5579.8897740881866},{"$f":"BI15*(1+Control!BJ81)","v":5579.8897740881866},{"$f":"BJ15*(1+Control!BK81)","v":5579.8897740881866},{"$f":"BK15*(1+Control!BL81)","v":5579.8897740881866},{"$f":"BL15*(1+Control!BM81)","v":5579.8897740881866},{"$f":"BM15*(1+Control!BN81)","v":5579.8897740881866},{"$f":"BN15*(1+Control!BO81)","v":5579.8897740881866},{"$f":"BO15*(1+Control!BP81)","v":5579.8897740881866},{"$f":"BP15*(1+Control!BQ81)","v":5579.8897740881866},{"$f":"BQ15*(1+Control!BR81)","v":5579.8897740881866},{"$f":"BR15*(1+Control!BS81)","v":5579.8897740881866},{"$f":"BS15*(1+Control!BT81)","v":5579.8897740881866},{"$f":"BT15*(1+Control!BU81)","v":5579.8897740881866},{"$f":"BU15*(1+Control!BV81)","v":5579.8897740881866},{"$f":"BV15*(1+Control!BW81)","v":5579.8897740881866},{"$f":"BW15*(1+Control!BX81)","v":5579.8897740881866},{"$f":"BX15*(1+Control!BY81)","v":5579.8897740881866},{"$f":"BY15*(1+Control!BZ81)","v":5579.8897740881866},{"$f":"BZ15*(1+Control!CA81)","v":5579.8897740881866},{"$f":"CA15*(1+Control!CB81)","v":5579.8897740881866},{"$f":"CB15*(1+Control!CC81)","v":5579.8897740881866},{"$f":"CC15*(1+Control!CD81)","v":5579.8897740881866},{"$f":"CD15*(1+Control!CE81)","v":5579.8897740881866},{"$f":"CE15*(1+Control!CF81)","v":5579.8897740881866},{"$f":"CF15*(1+Control!CG81)","v":5579.8897740881866},{"$f":"CG15*(1+Control!CH81)","v":5579.8897740881866},{"$f":"CH15*(1+Control!CI81)","v":5579.8897740881866},{"$f":"CI15*(1+Control!CJ81)","v":5579.8897740881866},{"$f":"CJ15*(1+Control!CK81)","v":5579.8897740881866},{"$f":"CK15*(1+Control!CL81)","v":5579.8897740881866},{"$f":"CL15*(1+Control!CM81)","v":5579.8897740881866},{"$f":"CM15*(1+Control!CN81)","v":5579.8897740881866},{"$f":"CN15*(1+Control!CO81)","v":5579.8897740881866},{"$f":"CO15*(1+Control!CP81)","v":5579.8897740881866},{"$f":"CP15*(1+Control!CQ81)","v":5579.8897740881866},{"$f":"CQ15*(1+Control!CR81)","v":5579.8897740881866},{"$f":"CR15*(1+Control!CS81)","v":5579.8897740881866},{"$f":"CS15*(1+Control!CT81)","v":5579.8897740881866},{"$f":"CT15*(1+Control!CU81)","v":5579.8897740881866},{"$f":"CU15*(1+Control!CV81)","v":5579.8897740881866},{"$f":"CV15*(1+Control!CW81)","v":5579.8897740881866}]
["Ducted gas heating",{"$f":"Control!E19","v":4578.3333333333339},{"$f":"B16*(1+Control!$B82)","v":4578.3333333333339},{"$f":"C16*(1+Control!$B82)","v":4578.3333333333339},{"$f":"D16*(1+Control!$B82)","v":4578.3333333333339},{"$f":"E16*(1+Control!$B82)","v":4578.3333333333339},{"$f":"F16*(1+Control!$B82)","v":4578.3333333333339},{"$f":"G16*(1+Control!$B82)","v":4578.3333333333339},{"$f":"H16*(1+Control!$B82)","v":4578.3333333333339},{"$f":"I16*(1+Control!$B82)","v":4578.3333333333339},{"$f":"J16*(1+Control!$B82)","v":4578.3333333333339},{"$f":"K16*(1+Control!$B82)","v":4578.3333333333339},{"$f":"L16*(1+Control!$B82)","v":4578.3333333333339},{"$f":"M16*(1+Control!$B82)","v":4578.3333333333339},{"$f":"N16*(1+Control!$B82)","v":4578.3333333333339},{"$f":"O16*(1+Control!$B82)","v":4578.3333333333339},{"$f":"P16*(1+Control!$B82)","v":4578.3333333333339},{"$f":"Q16*(1+Control!$B82)","v":4578.3333333333339},{"$f":"R16*(1+Control!$B82)","v":4578.3333333333339},{"$f":"S16*(1+Control!$B82)","v":4578.3333333333339},{"$f":"T16*(1+Control!$B82)","v":4578.3333333333339},{"$f":"U16*(1+Control!$B82)","v":4578.3333333333339},{"$f":"V16*(1+Control!$B82)","v":4578.3333333333339},{"$f":"W16*(1+Control!$B82)","v":4578.3333333333339},{"$f":"X16*(1+Control!$B82)","v":4578.3333333333339},{"$f":"Y16*(1+Control!$B82)","v":4578.3333333333339},{"$f":"Z16*(1+Control!$B82)","v":4578.3333333333339},{"$f":"AA16*(1+Control!$B82)","v":4578.3333333333339},{"$f":"AB16*(1+Control!$B82)","v":4578.3333333333339},{"$f":"AC16*(1+Control!$B82)","v":4578.3333333333339},{"$f":"AD16*(1+Control!$B82)","v":4578.3333333333339},{"$f":"AE16*(1+Control!$B82)","v":4578.3333333333339},{"$f":"AF16*(1+Control!$B82)","v":4578.3333333333339},{"$f":"AG16*(1+Control!$B82)","v":4578.3333333333339},{"$f":"AH16*(1+Control!$B82)","v":4578.3333333333339},{"$f":"AI16*(1+Control!$B82)","v":4578.3333333333339},{"$f":"AJ16*(1+Control!$B82)","v":4578.3333333333339},{"$f":"AK16*(1+Control!$B82)","v":4578.3333333333339},{"$f":"AL16*(1+Control!$B82)","v":4578.3333333333339},{"$f":"AM16*(1+Control!$B82)","v":4578.3333333333339},{"$f":"AN16*(1+Control!$B82)","v":4578.3333333333339},{"$f":"AO16*(1+Control!$B82)","v":4578.3333333333339},{"$f":"AP16*(1+Control!$B82)","v":4578.3333333333339},{"$f":"AQ16*(1+Control!$B82)","v":4578.3333333333339},{"$f":"AR16*(1+Control!$B82)","v":4578.3333333333339},{"$f":"AS16*(1+Control!$B82)","v":4578.3333333333339},{"$f":"AT16*(1+Control!$B82)","v":4578.3333333333339},{"$f":"AU16*(1+Control!$B82)","v":4578.3333333333339},{"$f":"AV16*(1+Control!$B82)","v":4578.3333333333339},{"$f":"AW16*(1+Control!$B82)","v":4578.3333333333339},{"$f":"AX16*(1+Control!$B82)","v":4578.3333333333339},{"$f":"AY16*(1+Control!$B82)","v":4578.3333333333339},{"$f":"AZ16*(1+Control!$B82)","v":4578.3333333333339},{"$f":"BA16*(1+Control!$B82)","v":4578.3333333333339},{"$f":"BB16*(1+Control!$B82)","v":4578.3333333333339},{"$f":"BC16*(1+Control!$B82)","v":4578.3333333333339},{"$f":"BD16*(1+Control!$B82)","v":4578.3333333333339},{"$f":"BE16*(1+Control!$B82)","v":4578.3333333333339},{"$f":"BF16*(1+Control!$B82)","v":4578.3333333333339},{"$f":"BG16*(1+Control!$B82)","v":4578.3333333333339},{"$f":"BH16*(1+Control!$B82)","v":4578.3333333333339},{"$f":"BI16*(1+Control!$B82)","v":4578.3333333333339},{"$f":"BJ16*(1+Control!$B82)","v":4578.3333333333339},{"$f":"BK16*(1+Control!$B82)","v":4578.3333333333339},{"$f":"BL16*(1+Control!$B82)","v":4578.3333333333339},{"$f":"BM16*(1+Control!$B82)","v":4578.3333333333339},{"$f":"BN16*(1+Control!$B82)","v":4578.3333333333339},{"$f":"BO16*(1+Control!$B82)","v":4578.3333333333339},{"$f":"BP16*(1+Control!$B82)","v":4578.3333333333339},{"$f":"BQ16*(1+Control!$B82)","v":4578.3333333333339},{"$f":"BR16*(1+Control!$B82)","v":4578.3333333333339},{"$f":"BS16*(1+Control!$B82)","v":4578.3333333333339},{"$f":"BT16*(1+Control!$B82)","v":4578.3333333333339},{"$f":"BU16*(1+Control!$B82)","v":4578.3333333333339},{"$f":"BV16*(1+Control!$B82)","v":4578.3333333333339},{"$f":"BW16*(1+Control!$B82)","v":4578.3333333333339},{"$f":"BX16*(1+Control!$B82)","v":4578.3333333333339},{"$f":"BY16*(1+Control!$B82)","v":4578.3333333333339},{"$f":"BZ16*(1+Control!$B82)","v":4578.3333333333339},{"$f":"CA16*(1+Control!$B82)","v":4578.3333333333339},{"$f":"CB16*(1+Control!$B82)","v":4578.3333333333339},{"$f":"CC16*(1+Control!$B82)","v":4578.3333333333339},{"$f":"CD16*(1+Control!$B82)","v":4578.3333333333339},{"$f":"CE16*(1+Control!$B82)","v":4578.3333333333339},{"$f":"CF16*(1+Control!$B82)","v":4578.3333333333339},{"$f":"CG16*(1+Control!$B82)","v":4578.3333333333339},{"$f":"CH16*(1+Control!$B82)","v":4578.3333333333339},{"$f":"CI16*(1+Control!$B82)","v":4578.3333333333339},{"$f":"CJ16*(1+Control!$B82)","v":4578.3333333333339},{"$f":"CK16*(1+Control!$B82)","v":4578.3333333333339},{"$f":"CL16*(1+Control!$B82)","v":4578.3333333333339},{"$f":"CM16*(1+Control!$B82)","v":4578.3333333333339},{"$f":"CN16*(1+Control!$B82)","v":4578.3333333333339},{"$f":"CO16*(1+Control!$B82)","v":4578.3333333333339},{"$f":"CP16*(1+Control!$B82)","v":4578.3333333333339},{"$f":"CQ16*(1+Control!$B82)","v":4578.3333333333339},{"$f":"CR16*(1+Control!$B82)","v":4578.3333333333339},{"$f":"CS16*(1+Control!$B82)","v":4578.3333333333339},{"$f":"CT16*(1+Control!$B82)","v":4578.3333333333339},{"$f":"CU16*(1+Control!$B82)","v":4578.3333333333339},{"$f":"CV16*(1+Control!$B82)","v":4578.3333333333339}]
["Difference",{"$f":"B16-B15","v":-1810.2187499999991},{"$f":"C16-C15","v":-1810.2187499999991},-470.21875000000091,-470.21875000000091,-1810.2187499999991,-1810.2187499999991,-1810.2187499999991,-1778.2759895833324,-1620.9419829240314,-1589.9456063427442,-1559.1042116443641,-1528.4170239194755,-1497.883272133211,-1467.5021891058786,-1437.2730114936821,-1407.194979769547,-1377.267338204033,-1347.4893348463465,-1317.860221505448,-1288.3792537312538,-1259.0456907959306,-1229.8587956752845,-1200.8178350302414,-1171.9220791884236,-1143.1708021258146,-1114.5632814485189,-1086.0987983746099,-1057.7766377160706,-1029.5960878608239,-1001.5564407548527,-1001.5564407548527,-1001.5564407548527,-1001.5564407548527,-1001.5564407548527,-1001.5564407548527,-1001.5564407548527,-1001.5564407548527,-1001.5564407548527,-1001.5564407548527,-1001.5564407548527,-1001.5564407548527,-1001.5564407548527,-1001.5564407548527,-1001.5564407548527,-1001.5564407548527,-1001.5564407548527,-1001.5564407548527,-1001.5564407548527,-1001.5564407548527,-1001.5564407548527,-1001.5564407548527,-1001.5564407548527,-1001.5564407548527,-1001.5564407548527,-1001.5564407548527,-1001.5564407548527,-1001.5564407548527,-1001.5564407548527,-1001.5564407548527,-1001.5564407548527,-1001.5564407548527,-1001.5564407548527,-1001.5564407548527,-1001.5564407548527,-1001.5564407548527,{"$f":"BO16-BO15","v":-1001.5564407548527},-1001.5564407548527,-1001.5564407548527,-1001.5564407548527,-1001.5564407548527,-1001.5564407548527,-1001.5564407548527,-1001.5564407548527,-1001.5564407548527,-1001.5564407548527,-1001.5564407548527,-1001.5564407548527,-1001.5564407548527,-1001.5564407548527,-1001.5564407548527,{"$f":"CD16-CD15","v":-1001.5564407548527},-1001.5564407548527,-1001.5564407548527,-1001.5564407548527,-1001.5564407548527,-1001.5564407548527,-1001.5564407548527,-1001.5564407548527,-1001.5564407548527,-1001.5564407548527,-1001.5564407548527,-1001.5564407548527,-1001.5564407548527,-1001.5564407548527,-1001.5564407548527,-1001.5564407548527,-1001.5564407548527,-1001.5564407548527,-1001.5564407548527,-1001.5564407548527]
["Gas disconnection charge",{"$f":"Control!E21","v":100},{"$f":"B18*(1+Control!$B84)","v":100},{"$f":"C18*(1+Control!$B84)","v":100},{"$f":"D18*(1+Control!$B84)","v":100},{"$f":"E18*(1+Control!$B84)","v":100},{"$f":"F18*(1+Control!$B84)","v":100},{"$f":"G18*(1+Control!$B84)","v":100},{"$f":"H18*(1+Control!$B84)","v":100},{"$f":"I18*(1+Control!$B84)","v":100},{"$f":"J18*(1+Control!$B84)","v":100},{"$f":"K18*(1+Control!$B84)","v":100},{"$f":"L18*(1+Control!$B84)","v":100},{"$f":"M18*(1+Control!$B84)","v":100},{"$f":"N18*(1+Control!$B84)","v":100},{"$f":"O18*(1+Control!$B84)","v":100},{"$f":"P18*(1+Control!$B84)","v":100},{"$f":"Q18*(1+Control!$B84)","v":100},{"$f":"R18*(1+Control!$B84)","v":100},{"$f":"S18*(1+Control!$B84)","v":100},{"$f":"T18*(1+Control!$B84)","v":100},{"$f":"U18*(1+Control!$B84)","v":100},{"$f":"V18*(1+Control!$B84)","v":100},{"$f":"W18*(1+Control!$B84)","v":100},{"$f":"X18*(1+Control!$B84)","v":100},{"$f":"Y18*(1+Control!$B84)","v":100},{"$f":"Z18*(1+Control!$B84)","v":100},{"$f":"AA18*(1+Control!$B84)","v":100},{"$f":"AB18*(1+Control!$B84)","v":100},{"$f":"AC18*(1+Control!$B84)","v":100},{"$f":"AD18*(1+Control!$B84)","v":100},{"$f":"AE18*(1+Control!$B84)","v":100},{"$f":"AF18*(1+Control!$B84)","v":100},{"$f":"AG18*(1+Control!$B84)","v":100},{"$f":"AH18*(1+Control!$B84)","v":100},{"$f":"AI18*(1+Control!$B84)","v":100},{"$f":"AJ18*(1+Control!$B84)","v":100},{"$f":"AK18*(1+Control!$B84)","v":100},{"$f":"AL18*(1+Control!$B84)","v":100},{"$f":"AM18*(1+Control!$B84)","v":100},{"$f":"AN18*(1+Control!$B84)","v":100},{"$f":"AO18*(1+Control!$B84)","v":100},{"$f":"AP18*(1+Control!$B84)","v":100},{"$f":"AQ18*(1+Control!$B84)","v":100},{"$f":"AR18*(1+Control!$B84)","v":100},{"$f":"AS18*(1+Control!$B84)","v":100},{"$f":"AT18*(1+Control!$B84)","v":100},{"$f":"AU18*(1+Control!$B84)","v":100},{"$f":"AV18*(1+Control!$B84)","v":100},{"$f":"AW18*(1+Control!$B84)","v":100},{"$f":"AX18*(1+Control!$B84)","v":100},{"$f":"AY18*(1+Control!$B84)","v":100},{"$f":"AZ18*(1+Control!$B84)","v":100},{"$f":"BA18*(1+Control!$B84)","v":100},{"$f":"BB18*(1+Control!$B84)","v":100},{"$f":"BC18*(1+Control!$B84)","v":100},{"$f":"BD18*(1+Control!$B84)","v":100},{"$f":"BE18*(1+Control!$B84)","v":100},{"$f":"BF18*(1+Control!$B84)","v":100},{"$f":"BG18*(1+Control!$B84)","v":100},{"$f":"BH18*(1+Control!$B84)","v":100},{"$f":"BI18*(1+Control!$B84)","v":100},{"$f":"BJ18*(1+Control!$B84)","v":100},{"$f":"BK18*(1+Control!$B84)","v":100},{"$f":"BL18*(1+Control!$B84)","v":100},{"$f":"BM18*(1+Control!$B84)","v":100},{"$f":"BN18*(1+Control!$B84)","v":100},{"$f":"BO18*(1+Control!$B84)","v":100},{"$f":"BP18*(1+Control!$B84)","v":100},{"$f":"BQ18*(1+Control!$B84)","v":100},{"$f":"BR18*(1+Control!$B84)","v":100},{"$f":"BS18*(1+Control!$B84)","v":100},{"$f":"BT18*(1+Control!$B84)","v":100},{"$f":"BU18*(1+Control!$B84)","v":100},{"$f":"BV18*(1+Control!$B84)","v":100},{"$f":"BW18*(1+Control!$B84)","v":100},{"$f":"BX18*(1+Control!$B84)","v":100},{"$f":"BY18*(1+Control!$B84)","v":100},{"$f":"BZ18*(1+Control!$B84)","v":100},{"$f":"CA18*(1+Control!$B84)","v":100},{"$f":"CB18*(1+Control!$B84)","v":100},{"$f":"CC18*(1+Control!$B84)","v":100},{"$f":"CD18*(1+Control!$B84)","v":100},{"$f":"CE18*(1+Control!$B84)","v":100},{"$f":"CF18*(1+Control!$B84)","v":100},{"$f":"CG18*(1+Control!$B84)","v":100},{"$f":"CH18*(1+Control!$B84)","v":100},{"$f":"CI18*(1+Control!$B84)","v":100},{"$f":"CJ18*(1+Control!$B84)","v":100},{"$f":"CK18*(1+Control!$B84)","v":100},{"$f":"CL18*(1+Control!$B84)","v":100},{"$f":"CM18*(1+Control!$B84)","v":100},{"$f":"CN18*(1+Control!$B84)","v":100},{"$f":"CO18*(1+Control!$B84)","v":100},{"$f":"CP18*(1+Control!$B84)","v":100},{"$f":"CQ18*(1+Control!$B84)","v":100},{"$f":"CR18*(1+Control!$B84)","v":100},{"$f":"CS18*(1+Control!$B84)","v":100},{"$f":"CT18*(1+Control!$B84)","v":100},{"$f":"CU18*(1+Control!$B84)","v":100},{"$f":"CV18*(1+Control!$B84)","v":100}]
["Electricity connection upgrade",{"$f":"Control!E22","v":2225},{"$f":"B19*(1+Control!$B85)","v":2225},{"$f":"C19*(1+Control!$B85)","v":2225},{"$f":"D19*(1+Control!$B85)","v":2225},{"$f":"E19*(1+Control!$B85)","v":2225},{"$f":"F19*(1+Control!$B85)","v":2225},{"$f":"G19*(1+Control!$B85)","v":2225},{"$f":"H19*(1+Control!$B85)","v":2225},{"$f":"I19*(1+Control!$B85)","v":2225},{"$f":"J19*(1+Control!$B85)","v":2225},{"$f":"K19*(1+Control!$B85)","v":2225},{"$f":"L19*(1+Control!$B85)","v":2225},{"$f":"M19*(1+Control!$B85)","v":2225},{"$f":"N19*(1+Control!$B85)","v":2225},{"$f":"O19*(1+Control!$B85)","v":2225},{"$f":"P19*(1+Control!$B85)","v":2225},{"$f":"Q19*(1+Control!$B85)","v":2225},{"$f":"R19*(1+Control!$B85)","v":2225},{"$f":"S19*(1+Control!$B85)","v":2225},{"$f":"T19*(1+Control!$B85)","v":2225},{"$f":"U19*(1+Control!$B85)","v":2225},{"$f":"V19*(1+Control!$B85)","v":2225},{"$f":"W19*(1+Control!$B85)","v":2225},{"$f":"X19*(1+Control!$B85)","v":2225},{"$f":"Y19*(1+Control!$B85)","v":2225},{"$f":"Z19*(1+Control!$B85)","v":2225},{"$f":"AA19*(1+Control!$B85)","v":2225},{"$f":"AB19*(1+Control!$B85)","v":2225},{"$f":"AC19*(1+Control!$B85)","v":2225},{"$f":"AD19*(1+Control!$B85)","v":2225},{"$f":"AE19*(1+Control!$B85)","v":2225},{"$f":"AF19*(1+Control!$B85)","v":2225},{"$f":"AG19*(1+Control!$B85)","v":2225},{"$f":"AH19*(1+Control!$B85)","v":2225},{"$f":"AI19*(1+Control!$B85)","v":2225},{"$f":"AJ19*(1+Control!$B85)","v":2225},{"$f":"AK19*(1+Control!$B85)","v":2225},{"$f":"AL19*(1+Control!$B85)","v":2225},{"$f":"AM19*(1+Control!$B85)","v":2225},{"$f":"AN19*(1+Control!$B85)","v":2225},{"$f":"AO19*(1+Control!$B85)","v":2225},{"$f":"AP19*(1+Control!$B85)","v":2225},{"$f":"AQ19*(1+Control!$B85)","v":2225},{"$f":"AR19*(1+Control!$B85)","v":2225},{"$f":"AS19*(1+Control!$B85)","v":2225},{"$f":"AT19*(1+Control!$B85)","v":2225},{"$f":"AU19*(1+Control!$B85)","v":2225},{"$f":"AV19*(1+Control!$B85)","v":2225},{"$f":"AW19*(1+Control!$B85)","v":2225},{"$f":"AX19*(1+Control!$B85)","v":2225},{"$f":"AY19*(1+Control!$B85)","v":2225},{"$f":"AZ19*(1+Control!$B85)","v":2225},{"$f":"BA19*(1+Control!$B85)","v":2225},{"$f":"BB19*(1+Control!$B85)","v":2225},{"$f":"BC19*(1+Control!$B85)","v":2225},{"$f":"BD19*(1+Control!$B85)","v":2225},{"$f":"BE19*(1+Control!$B85)","v":2225},{"$f":"BF19*(1+Control!$B85)","v":2225},{"$f":"BG19*(1+Control!$B85)","v":2225},{"$f":"BH19*(1+Control!$B85)","v":2225},{"$f":"BI19*(1+Control!$B85)","v":2225},{"$f":"BJ19*(1+Control!$B85)","v":2225},{"$f":"BK19*(1+Control!$B85)","v":2225},{"$f":"BL19*(1+Control!$B85)","v":2225},{"$f":"BM19*(1+Control!$B85)","v":2225},{"$f":"BN19*(1+Control!$B85)","v":2225},{"$f":"BO19*(1+Control!$B85)","v":2225},{"$f":"BP19*(1+Control!$B85)","v":2225},{"$f":"BQ19*(1+Control!$B85)","v":2225},{"$f":"BR19*(1+Control!$B85)","v":2225},{"$f":"BS19*(1+Control!$B85)","v":2225},{"$f":"BT19*(1+Control!$B85)","v":2225},{"$f":"BU19*(1+Control!$B85)","v":2225},{"$f":"BV19*(1+Control!$B85)","v":2225},{"$f":"BW19*(1+Control!$B85)","v":2225},{"$f":"BX19*(1+Control!$B85)","v":2225},{"$f":"BY19*(1+Control!$B85)","v":2225},{"$f":"BZ19*(1+Control!$B85)","v":2225},{"$f":"CA19*(1+Control!$B85)","v":2225},{"$f":"CB19*(1+Control!$B85)","v":2225},{"$f":"CC19*(1+Control!$B85)","v":2225},{"$f":"CD19*(1+Control!$B85)","v":2225},{"$f":"CE19*(1+Control!$B85)","v":2225},{"$f":"CF19*(1+Control!$B85)","v":2225},{"$f":"CG19*(1+Control!$B85)","v":2225},{"$f":"CH19*(1+Control!$B85)","v":2225},{"$f":"CI19*(1+Control!$B85)","v":2225},{"$f":"CJ19*(1+Control!$B85)","v":2225},{"$f":"CK19*(1+Control!$B85)","v":2225},{"$f":"CL19*(1+Control!$B85)","v":2225},{"$f":"CM19*(1+Control!$B85)","v":2225},{"$f":"CN19*(1+Control!$B85)","v":2225},{"$f":"CO19*(1+Control!$B85)","v":2225},{"$f":"CP19*(1+Control!$B85)","v":2225},{"$f":"CQ19*(1+Control!$B85)","v":2225},{"$f":"CR19*(1+Control!$B85)","v":2225},{"$f":"CS19*(1+Control!$B85)","v":2225},{"$f":"CT19*(1+Control!$B85)","v":2225},{"$f":"CU19*(1+Control!$B85)","v":2225},{"$f":"CV19*(1+Control!$B85)","v":2225}]
[]
["Residential","Running costs"]
["Cooking",2021,{"$f":"B22+1","v":2022},2023,2024,2025,2026,2027,2028,2029,2030,2031,2032,2033,2034,2035,2036,2037,2038,2039,2040,2041,2042,2043,2044,2045,2046,2047,2048,2049,2050,2051,2052,2053,2054,2055,2056,2057,2058,2059,2060,2061,2062,2063,2064,2065,2066,{"$f":"AU22+1","v":2067},{"$f":"AV22+1","v":2068},{"$f":"AW22+1","v":2069},{"$f":"AX22+1","v":2070},{"$f":"AY22+1","v":2071},{"$f":"AZ22+1","v":2072},{"$f":"BA22+1","v":2073},{"$f":"BB22+1","v":2074},{"$f":"BC22+1","v":2075},{"$f":"BD22+1","v":2076},{"$f":"BE22+1","v":2077},{"$f":"BF22+1","v":2078},{"$f":"BG22+1","v":2079},{"$f":"BH22+1","v":2080},{"$f":"BI22+1","v":2081},{"$f":"BJ22+1","v":2082},{"$f":"BK22+1","v":2083},{"$f":"BL22+1","v":2084},{"$f":"BM22+1","v":2085},{"$f":"BN22+1","v":2086},{"$f":"BO22+1","v":2087},{"$f":"BP22+1","v":2088},{"$f":"BQ22+1","v":2089},{"$f":"BR22+1","v":2090},{"$f":"BS22+1","v":2091},{"$f":"BT22+1","v":2092},{"$f":"BU22+1","v":2093},{"$f":"BV22+1","v":2094},{"$f":"BW22+1","v":2095},{"$f":"BX22+1","v":2096},{"$f":"BY22+1","v":2097},{"$f":"BZ22+1","v":2098},{"$f":"CA22+1","v":2099},{"$f":"CB22+1","v":2100},{"$f":"CC22+1","v":2101},{"$f":"CD22+1","v":2102},{"$f":"CE22+1","v":2103},{"$f":"CF22+1","v":2104},{"$f":"CG22+1","v":2105},{"$f":"CH22+1","v":2106},{"$f":"CI22+1","v":2107},{"$f":"CJ22+1","v":2108},{"$f":"CK22+1","v":2109},{"$f":"CL22+1","v":2110},{"$f":"CM22+1","v":2111},{"$f":"CN22+1","v":2112},{"$f":"CO22+1","v":2113},{"$f":"CP22+1","v":2114},{"$f":"CQ22+1","v":2115},{"$f":"CR22+1","v":2116},{"$f":"CS22+1","v":2117},{"$f":"CT22+1","v":2118},{"$f":"CU22+1","v":2119},{"$f":"CV22+1","v":2120}]
["Electric cooktop (induction)",{"$f":"Control!$B29*(1-Control!$E29)*Prices!AA6","v":31.787251200000004},{"$f":"Control!$B29*(1-Control!$E29)*Prices!AB6","v":35.271238818190028},{"$f":"Control!$B29*(1-Control!$E29)*Prices!AC6","v":35.203657027003231},{"$f":"Control!$B29*(1-Control!$E29)*Prices!AD6","v":34.159237802657245},{"$f":"Control!$B29*(1-Control!$E29)*Prices!AE6","v":34.254875094147138},{"$f":"Control!$B29*(1-Control!$E29)*Prices!AF6","v":34.059733494952425},{"$f":"Control!$B29*(1-Control!$E29)*Prices!AG6","v":33.38221490753272},{"$f":"Control!$B29*(1-Control!$E29)*Prices!AH6","v":34.949756290920291},{"$f":"Control!$B29*(1-Control!$E29)*Prices!AI6","v":34.890100259192472},{"$f":"Control!$B29*(1-Control!$E29)*Prices!AJ6","v":37.023127830337799},{"$f":"Control!$B29*(1-Control!$E29)*Prices!AK6","v":36.100542005945307},{"$f":"Control!$B29*(1-Control!$E29)*Prices!AL6","v":35.902243295409029},{"$f":"Control!$B29*(1-Control!$E29)*Prices!AM6","v":34.721185150343736},{"$f":"Control!$B29*(1-Control!$E29)*Prices!AN6","v":34.173274637616146},{"$f":"Control!$B29*(1-Control!$E29)*Prices!AO6","v":33.395207804882617},{"$f":"Control!$B29*(1-Control!$E29)*Prices!AP6","v":32.937344627359288},{"$f":"Control!$B29*(1-Control!$E29)*Prices!AQ6","v":32.385000777810298},{"$f":"Control!$B29*(1-Control!$E29)*Prices!AR6","v":31.753967058937068},{"$f":"Control!$B29*(1-Control!$E29)*Prices!AS6","v":31.046856164895129},{"$f":"Control!$B29*(1-Control!$E29)*Prices!AT6","v":30.264914411321275},{"$f":"Control!$B29*(1-Control!$E29)*Prices!AU6","v":29.899385715532702},{"$f":"Control!$B29*(1-Control!$E29)*Prices!AV6","v":29.523240664223209},{"$f":"Control!$B29*(1-Control!$E29)*Prices!AW6","v":29.133510658066388},{"$f":"Control!$B29*(1-Control!$E29)*Prices!AX6","v":28.732227104286338},{"$f":"Control!$B29*(1-Control!$E29)*Prices!AY6","v":28.321319648407222},{"$f":"Control!$B29*(1-Control!$E29)*Prices!AZ6","v":28.221987872562348},{"$f":"Control!$B29*(1-Control!$E29)*Prices!BA6","v":28.127425232257643},{"$f":"Control!$B29*(1-Control!$E29)*Prices!BB6","v":28.037920829771952},{"$f":"Control!$B29*(1-Control!$E29)*Prices!BC6","v":27.950360044298215},{"$f":"Control!$B29*(1-Control!$E29)*Prices!BD6","v":27.868179548181097},{"$f":"Control!$B29*(1-Control!$E29)*Prices!BE6","v":27.868179548181097},{"$f":"Control!$B29*(1-Control!$E29)*Prices!BF6","v":27.868179548181097},{"$f":"Control!$B29*(1-Control!$E29)*Prices!BG6","v":27.868179548181097},{"$f":"Control!$B29*(1-Control!$E29)*Prices!BH6","v":27.868179548181097},{"$f":"Control!$B29*(1-Control!$E29)*Prices!BI6","v":27.868179548181097},{"$f":"Control!$B29*(1-Control!$E29)*Prices!BJ6","v":27.868179548181097},{"$f":"Control!$B29*(1-Control!$E29)*Prices!BK6","v":27.868179548181097},{"$f":"Control!$B29*(1-Control!$E29)*Prices!BL6","v":27.868179548181097},{"$f":"Control!$B29*(1-Control!$E29)*Prices!BM6","v":27.868179548181097},{"$f":"Control!$B29*(1-Control!$E29)*Prices!BN6","v":27.868179548181097},{"$f":"Control!$B29*(1-Control!$E29)*Prices!BO6","v":27.868179548181097},{"$f":"Control!$B29*(1-Control!$E29)*Prices!BP6","v":27.868179548181097},{"$f":"Control!$B29*(1-Control!$E29)*Prices!BQ6","v":27.868179548181097},{"$f":"Control!$B29*(1-Control!$E29)*Prices!BR6","v":27.868179548181097},{"$f":"Control!$B29*(1-Control!$E29)*Prices!BS6","v":27.868179548181097},{"$f":"Control!$B29*(1-Control!$E29)*Prices!BT6","v":27.868179548181097},{"$f":"Control!$B29*(1-Control!$E29)*Prices!BU6","v":27.868179548181097},{"$f":"Control!$B29*(1-Control!$E29)*Prices!BV6","v":27.868179548181097},{"$f":"Control!$B29*(1-Control!$E29)*Prices!BW6","v":27.868179548181097},{"$f":"Control!$B29*(1-Control!$E29)*Prices!BX6","v":27.868179548181097},{"$f":"Control!$B29*(1-Control!$E29)*Prices!BY6","v":27.868179548181097},{"$f":"Control!$B29*(1-Control!$E29)*Prices!BZ6","v":27.868179548181097},{"$f":"Control!$B29*(1-Control!$E29)*Prices!CA6","v":27.868179548181097},{"$f":"Control!$B29*(1-Control!$E29)*Prices!CB6","v":27.868179548181097},{"$f":"Control!$B29*(1-Control!$E29)*Prices!CC6","v":27.868179548181097},{"$f":"Control!$B29*(1-Control!$E29)*Prices!CD6","v":27.868179548181097},{"$f":"Control!$B29*(1-Control!$E29)*Prices!CE6","v":27.868179548181097},{"$f":"Control!$B29*(1-Control!$E29)*Prices!CF6","v":27.868179548181097},{"$f":"Control!$B29*(1-Control!$E29)*Prices!CG6","v":27.868179548181097},{"$f":"Control!$B29*(1-Control!$E29)*Prices!CH6","v":27.868179548181097},{"$f":"Control!$B29*(1-Control!$E29)*Prices!CI6","v":27.868179548181097},{"$f":"Control!$B29*(1-Control!$E29)*Prices!CJ6","v":27.868179548181097},{"$f":"Control!$B29*(1-Control!$E29)*Prices!CK6","v":27.868179548181097},{"$f":"Control!$B29*(1-Control!$E29)*Prices!CL6","v":27.868179548181097},{"$f":"Control!$B29*(1-Control!$E29)*Prices!CM6","v":27.868179548181097},{"$f":"Control!$B29*(1-Control!$E29)*Prices!CN6","v":27.868179548181097},{"$f":"Control!$B29*(1-Control!$E29)*Prices!CO6","v":27.868179548181097},{"$f":"Control!$B29*(1-Control!$E29)*Prices!CP6","v":27.868179548181097},{"$f":"Control!$B29*(1-Control!$E29)*Prices!CQ6","v":27.868179548181097},{"$f":"Control!$B29*(1-Control!$E29)*Prices!CR6","v":27.868179548181097},{"$f":"Control!$B29*(1-Control!$E29)*Prices!CS6","v":27.868179548181097},{"$f":"Control!$B29*(1-Control!$E29)*Prices!CT6","v":27.868179548181097},{"$f":"Control!$B29*(1-Control!$E29)*Prices!CU6","v":27.868179548181097},{"$f":"Control!$B29*(1-Control!$E29)*Prices!CV6","v":27.868179548181097},{"$f":"Control!$B29*(1-Control!$E29)*Prices!CW6","v":27.868179548181097},{"$f":"Control!$B29*(1-Control!$E29)*Prices!CX6","v":27.868179548181097},{"$f":"Control!$B29*(1-Control!$E29)*Prices!CY6","v":27.868179548181097},{"$f":"Control!$B29*(1-Control!$E29)*Prices!CZ6","v":27.868179548181097},{"$f":"Control!$B29*(1-Control!$E29)*Prices!DA6","v":27.868179548181097},{"$f":"Control!$B29*(1-Control!$E29)*Prices!DB6","v":27.868179548181097},{"$f":"Control!$B29*(1-Control!$E29)*Prices!DC6","v":27.868179548181097},{"$f":"Control!$B29*(1-Control!$E29)*Prices!DD6","v":27.868179548181097},{"$f":"Control!$B29*(1-Control!$E29)*Prices!DE6","v":27.868179548181097},{"$f":"Control!$B29*(1-Control!$E29)*Prices!DF6","v":27.868179548181097},{"$f":"Control!$B29*(1-Control!$E29)*Prices!DG6","v":27.868179548181097},{"$f":"Control!$B29*(1-Control!$E29)*Prices!DH6","v":27.868179548181097},{"$f":"Control!$B29*(1-Control!$E29)*Prices!DI6","v":27.868179548181097},{"$f":"Control!$B29*(1-Control!$E29)*Prices!DJ6","v":27.868179548181097},{"$f":"Control!$B29*(1-Control!$E29)*Prices!DK6","v":27.868179548181097},{"$f":"Control!$B29*(1-Control!$E29)*Prices!DL6","v":27.868179548181097},{"$f":"Control!$B29*(1-Control!$E29)*Prices!DM6","v":27.868179548181097},{"$f":"Control!$B29*(1-Control!$E29)*Prices!DN6","v":27.868179548181097},{"$f":"Control!$B29*(1-Control!$E29)*Prices!DO6","v":27.868179548181097},{"$f":"Control!$B29*(1-Control!$E29)*Prices!DP6","v":27.868179548181097},{"$f":"Control!$B29*(1-Control!$E29)*Prices!DQ6","v":27.868179548181097},{"$f":"Control!$B29*(1-Control!$E29)*Prices!DR6","v":27.868179548181097},{"$f":"Control!$B29*(1-Control!$E29)*Prices!DS6","v":27.868179548181097},{"$f":"Control!$B29*(1-Control!$E29)*Prices!DT6","v":27.868179548181097},{"$f":"Control!$B29*(1-Control!$E29)*Prices!DU6","v":27.868179548181097},{"$f":"Control!$B29*(1-Control!$E29)*Prices!DV6","v":27.868179548181097}]
["Gas stove",{"$f":"Control!$B30*(1-Control!$E30)*Prices!AA3","v":22.656192909218941},{"$f":"Control!$B30*(1-Control!$E30)*Prices!AB3","v":24.008783962453013},{"$f":"Control!$B30*(1-Control!$E30)*Prices!AC3","v":22.639678274357149},{"$f":"Control!$B30*(1-Control!$E30)*Prices!AD3","v":22.288257567503049},{"$f":"Control!$B30*(1-Control!$E30)*Prices!AE3","v":21.576603477894388},{"$f":"Control!$B30*(1-Control!$E30)*Prices!AF3","v":21.440187435781237},{"$f":"Control!$B30*(1-Control!$E30)*Prices!AG3","v":21.915587140309903},{"$f":"Control!$B30*(1-Control!$E30)*Prices!AH3","v":23.229396428249554},{"$f":"Control!$B30*(1-Control!$E30)*Prices!AI3","v":24.383145005766981},{"$f":"Control!$B30*(1-Control!$E30)*Prices!AJ3","v":25.044416200133085},{"$f":"Control!$B30*(1-Control!$E30)*Prices!AK3","v":22.868885364297167},{"$f":"Control!$B30*(1-Control!$E30)*Prices!AL3","v":22.512469193861964},{"$f":"Control!$B30*(1-Control!$E30)*Prices!AM3","v":22.764664564637776},{"$f":"Control!$B30*(1-Control!$E30)*Prices!AN3","v":23.238350403552559},{"$f":"Control!$B30*(1-Control!$E30)*Prices!AO3","v":24.035540417777721},{"$f":"Control!$B30*(1-Control!$E30)*Prices!AP3","v":24.441395122013549},{"$f":"Control!$B30*(1-Control!$E30)*Prices!AQ3","v":25.210386067373829},{"$f":"Control!$B30*(1-Control!$E30)*Prices!AR3","v":25.467806528499917},{"$f":"Control!$B30*(1-Control!$E30)*Prices!AS3","v":25.712195874323246},{"$f":"Control!$B30*(1-Control!$E30)*Prices!AT3","v":25.625981187624507},{"$f":"Control!$B30*(1-Control!$E30)*Prices!AU3","v":25.703245904011897},{"$f":"Control!$B30*(1-Control!$E30)*Prices!AV3","v":26.345999167301287},{"$f":"Control!$B30*(1-Control!$E30)*Prices!AW3","v":26.980882967204121},{"$f":"Control!$B30*(1-Control!$E30)*Prices!AX3","v":27.283826521589603},{"$f":"Control!$B30*(1-Control!$E30)*Prices!AY3","v":27.568448040057845},{"$f":"Control!$B30*(1-Control!$E30)*Prices!AZ3","v":27.926711990515518},{"$f":"Control!$B30*(1-Control!$E30)*Prices!BA3","v":28.26188795826312},{"$f":"Control!$B30*(1-Control!$E30)*Prices!BB3","v":28.560277349088707},{"$f":"Control!$B30*(1-Control!$E30)*Prices!BC3","v":28.86583738462933},{"$f":"Control!$B30*(1-Control!$E30)*Prices!BD3","v":29.329917973476633},{"$f":"Control!$B30*(1-Control!$E30)*Prices!BE3","v":29.737298532491309},{"$f":"Control!$B30*(1-Control!$E30)*Prices!BF3","v":30.346797410447913},{"$f":"Control!$B30*(1-Control!$E30)*Prices!BG3","v":30.862503068701297},{"$f":"Control!$B30*(1-Control!$E30)*Prices!BH3","v":31.334275239790969},{"$f":"Control!$B30*(1-Control!$E30)*Prices!BI3","v":31.83419550615184},{"$f":"Control!$B30*(1-Control!$E30)*Prices!BJ3","v":30.175965151546333},{"$f":"Control!$B30*(1-Control!$E30)*Prices!BK3","v":29.908140521066592},{"$f":"Control!$B30*(1-Control!$E30)*Prices!BL3","v":30.356448819444093},{"$f":"Control!$B30*(1-Control!$E30)*Prices!BM3","v":30.928913248656695},{"$f":"Control!$B30*(1-Control!$E30)*Prices!BN3","v":31.471489754811039},{"$f":"Control!$B30*(1-Control!$E30)*Prices!BO3","v":32.04173308658013},{"$f":"Control!$B30*(1-Control!$E30)*Prices!BP3","v":32.676403525112015},{"$f":"Control!$B30*(1-Control!$E30)*Prices!BQ3","v":33.391088198283491},{"$f":"Control!$B30*(1-Control!$E30)*Prices!BR3","v":34.20039212807901},{"$f":"Control!$B30*(1-Control!$E30)*Prices!BS3","v":35.125601819421966},{"$f":"Control!$B30*(1-Control!$E30)*Prices!BT3","v":36.193188634764191},{"$f":"Control!$B30*(1-Control!$E30)*Prices!BU3","v":37.426293897650893},{"$f":"Control!$B30*(1-Control!$E30)*Prices!BV3","v":38.846431565763218},{"$f":"Control!$B30*(1-Control!$E30)*Prices!BW3","v":40.479768365697574},{"$f":"Control!$B30*(1-Control!$E30)*Prices!BX3","v":42.366298340027477},{"$f":"Control!$B30*(1-Control!$E30)*Prices!BY3","v":44.564514820733528},{"$f":"Control!$B30*(1-Control!$E30)*Prices!BZ3","v":47.156202759659635},{"$f":"Control!$B30*(1-Control!$E30)*Prices!CA3","v":50.251515377446154},{"$f":"Control!$B30*(1-Control!$E30)*Prices!CB3","v":53.296861046373984},{"$f":"Control!$B30*(1-Control!$E30)*Prices!CC3","v":56.099969839233616},{"$f":"Control!$B30*(1-Control!$E30)*Prices!CD3","v":58.962270727030003},{"$f":"Control!$B30*(1-Control!$E30)*Prices!CE3","v":62.179711140310189},{"$f":"Control!$B30*(1-Control!$E30)*Prices!CF3","v":66.012883688244784},{"$f":"Control!$B30*(1-Control!$E30)*Prices!CG3","v":71.554386388751894},{"$f":"Control!$B30*(1-Control!$E30)*Prices!CH3","v":79.740102601293643},{"$f":"Control!$B30*(1-Control!$E30)*Prices!CI3","v":91.923023135458692},{"$f":"Control!$B30*(1-Control!$E30)*Prices!CJ3","v":23.967758633336015},{"$f":"Control!$B30*(1-Control!$E30)*Prices!CK3","v":23.979758633336019},{"$f":"Control!$B30*(1-Control!$E30)*Prices!CL3","v":23.991758633336019},{"$f":"Control!$B30*(1-Control!$E30)*Prices!CM3","v":24.003758633336023},{"$f":"Control!$B30*(1-Control!$E30)*Prices!CN3","v":24.015758633336024},{"$f":"Control!$B30*(1-Control!$E30)*Prices!CO3","v":24.027758633336024},{"$f":"Control!$B30*(1-Control!$E30)*Prices!CP3","v":24.039758633336028},{"$f":"Control!$B30*(1-Control!$E30)*Prices!CQ3","v":24.051758633336028},{"$f":"Control!$B30*(1-Control!$E30)*Prices!CR3","v":24.063758633336032},{"$f":"Control!$B30*(1-Control!$E30)*Prices!CS3","v":24.075758633336033},{"$f":"Control!$B30*(1-Control!$E30)*Prices!CT3","v":24.087758633336033},{"$f":"Control!$B30*(1-Control!$E30)*Prices!CU3","v":24.099758633336037},{"$f":"Control!$B30*(1-Control!$E30)*Prices!CV3","v":24.111758633336038},{"$f":"Control!$B30*(1-Control!$E30)*Prices!CW3","v":24.123758633336042},{"$f":"Control!$B30*(1-Control!$E30)*Prices!CX3","v":24.135758633336042},{"$f":"Control!$B30*(1-Control!$E30)*Prices!CY3","v":24.147758633336043},{"$f":"Control!$B30*(1-Control!$E30)*Prices!CZ3","v":24.159758633336047},{"$f":"Control!$B30*(1-Control!$E30)*Prices!DA3","v":24.171758633336047},{"$f":"Control!$B30*(1-Control!$E30)*Prices!DB3","v":23.930712020675298},{"$f":"Control!$B30*(1-Control!$E30)*Prices!DC3","v":23.930712020675298},{"$f":"Control!$B30*(1-Control!$E30)*Prices!DD3","v":23.930712020675298},{"$f":"Control!$B30*(1-Control!$E30)*Prices!DE3","v":23.930712020675298},{"$f":"Control!$B30*(1-Control!$E30)*Prices!DF3","v":23.930712020675298},{"$f":"Control!$B30*(1-Control!$E30)*Prices!DG3","v":23.930712020675298},{"$f":"Control!$B30*(1-Control!$E30)*Prices!DH3","v":23.930712020675298},{"$f":"Control!$B30*(1-Control!$E30)*Prices!DI3","v":23.930712020675298},{"$f":"Control!$B30*(1-Control!$E30)*Prices!DJ3","v":23.930712020675298},{"$f":"Control!$B30*(1-Control!$E30)*Prices!DK3","v":23.930712020675298},{"$f":"Control!$B30*(1-Control!$E30)*Prices!DL3","v":23.930712020675298},{"$f":"Control!$B30*(1-Control!$E30)*Prices!DM3","v":23.930712020675298},{"$f":"Control!$B30*(1-Control!$E30)*Prices!DN3","v":23.930712020675298},{"$f":"Control!$B30*(1-Control!$E30)*Prices!DO3","v":23.930712020675298},{"$f":"Control!$B30*(1-Control!$E30)*Prices!DP3","v":23.930712020675298},{"$f":"Control!$B30*(1-Control!$E30)*Prices!DQ3","v":23.930712020675298},{"$f":"Control!$B30*(1-Control!$E30)*Prices!DR3","v":23.930712020675298},{"$f":"Control!$B30*(1-Control!$E30)*Prices!DS3","v":23.930712020675298},{"$f":"Control!$B30*(1-Control!$E30)*Prices!DT3","v":23.930712020675298},{"$f":"Control!$B30*(1-Control!$E30)*Prices!DU3","v":23.930712020675298},{"$f":"Control!$B30*(1-Control!$E30)*Prices!DV3","v":23.930712020675298}]
["Difference",{"$f":"B24-B23","v":-9.1310582907810627},{"$f":"C24-C23","v":-11.262454855737015},-12.563978752646083,-11.870980235154196,-12.678271616252751,-12.619546059171189,-11.466627767222818,-11.720359862670737,-10.506955253425492,-11.978711630204714,-13.23165664164814,-13.389774101547065,-11.95652058570596,-10.934924234063587,-9.3596673871048957,-8.4959495053457381,-7.1746147104364688,-6.2861605304371508,-5.3346602905718825,-4.6389332236967675,-4.1961398115208048,-3.1772414969219227,-2.1526276908622677,-1.4484005826967348,-0.75287160834937694,-0.29527588204683042,0.13446272600547715,0.5223565193167552,0.91547734033111539,1.4617384252955361,1.8691189843102123,2.478617862266816,2.9943235205202008,3.4660956916098726,3.9660159579707432,2.307785603365236,2.0399609728854955,2.4882692712629968,3.0607337004755983,3.6033102066299421,4.1735535383990339,4.8082239769309183,5.5229086501023943,6.332212579897913,7.2574222712408698,8.3250090865830941,9.5581143494697969,10.978252017582122,12.611588817516477,14.49811879184638,16.696335272552432,19.288023211478539,22.383335829265057,25.428681498192887,28.231790291052519,31.094091178848906,34.311531592129093,38.144704140063688,43.686206840570797,51.871923053112546,64.054843587277588,-3.9004209148450819,-3.8884209148450779,-3.8764209148450774,-3.8644209148450734,{"$f":"BO24-BO23","v":-3.852420914845073},-3.8404209148450725,-3.8284209148450685,-3.8164209148450681,-3.8044209148450641,-3.7924209148450636,-3.7804209148450632,-3.7684209148450591,-3.7564209148450587,-3.7444209148450547,-3.7324209148450542,-3.7204209148450538,-3.7084209148450498,-3.6964209148450493,-3.9374675275057989,{"$f":"CD24-CD23","v":-3.9374675275057989},-3.9374675275057989,-3.9374675275057989,-3.9374675275057989,-3.9374675275057989,-3.9374675275057989,-3.9374675275057989,-3.9374675275057989,-3.9374675275057989,-3.9374675275057989,-3.9374675275057989,-3.9374675275057989,-3.9374675275057989,-3.9374675275057989,-3.9374675275057989,-3.9374675275057989,-3.9374675275057989,-3.9374675275057989,-3.9374675275057989,-3.9374675275057989]
["Hot water"]
["Heat pump hot water",{"$f":"Control!$B33*(1-Control!$E33)*Prices!AA6","v":524.62080000000003},{"$f":"Control!$B33*(1-Control!$E33)*Prices!AB6","v":582.1209707428211},{"$f":"Control!$B33*(1-Control!$E33)*Prices!AC6","v":581.00559234363914},{"$f":"Control!$B33*(1-Control!$E33)*Prices!AD6","v":563.76836583530326},{"$f":"Control!$B33*(1-Control!$E33)*Prices!AE6","v":565.34677574736452},{"$f":"Control!$B33*(1-Control!$E33)*Prices!AF6","v":562.12613420026491},{"$f":"Control!$B33*(1-Control!$E33)*Prices!AG6","v":550.94428204480107},{"$f":"Control!$B33*(1-Control!$E33)*Prices!AH6","v":576.81518259583368},{"$f":"Control!$B33*(1-Control!$E33)*Prices!AI6","v":575.83061192965818},{"$f":"Control!$B33*(1-Control!$E33)*Prices!AJ6","v":611.03436779252172},{"$f":"Control!$B33*(1-Control!$E33)*Prices!AK6","v":595.80789507186546},{"$f":"Control!$B33*(1-Control!$E33)*Prices!AL6","v":592.53514816128916},{"$f":"Control!$B33*(1-Control!$E33)*Prices!AM6","v":573.04281568459271},{"$f":"Control!$B33*(1-Control!$E33)*Prices!AN6","v":564.00003152854845},{"$f":"Control!$B33*(1-Control!$E33)*Prices!AO6","v":551.15871846017808},{"$f":"Control!$B33*(1-Control!$E33)*Prices!AP6","v":543.60208687314639},{"$f":"Control!$B33*(1-Control!$E33)*Prices!AQ6","v":534.48613436746177},{"$f":"Control!$B33*(1-Control!$E33)*Prices!AR6","v":524.07147434104684},{"$f":"Control!$B33*(1-Control!$E33)*Prices!AS6","v":512.40122702752649},{"$f":"Control!$B33*(1-Control!$E33)*Prices!AT6","v":499.49596177724527},{"$f":"Control!$B33*(1-Control!$E33)*Prices!AU6","v":493.46323011381799},{"$f":"Control!$B33*(1-Control!$E33)*Prices!AV6","v":487.25528478087807},{"$f":"Control!$B33*(1-Control!$E33)*Prices!AW6","v":480.82313164100555},{"$f":"Control!$B33*(1-Control!$E33)*Prices!AX6","v":474.2002972950483},{"$f":"Control!$B33*(1-Control!$E33)*Prices!AY6","v":467.41862885593309},{"$f":"Control!$B33*(1-Control!$E33)*Prices!AZ6","v":465.77924470845579},{"$f":"Control!$B33*(1-Control!$E33)*Prices!BA6","v":464.21857097499475},{"$f":"Control!$B33*(1-Control!$E33)*Prices!BB6","v":462.74137903599615},{"$f":"Control!$B33*(1-Control!$E33)*Prices!BC6","v":461.29626479711976},{"$f":"Control!$B33*(1-Control!$E33)*Prices!BD6","v":459.93994753187098},{"$f":"Control!$B33*(1-Control!$E33)*Prices!BE6","v":459.93994753187098},{"$f":"Control!$B33*(1-Control!$E33)*Prices!BF6","v":459.93994753187098},{"$f":"Control!$B33*(1-Control!$E33)*Prices!BG6","v":459.93994753187098},{"$f":"Control!$B33*(1-Control!$E33)*Prices!BH6","v":459.93994753187098},{"$f":"Control!$B33*(1-Control!$E33)*Prices!BI6","v":459.93994753187098},{"$f":"Control!$B33*(1-Control!$E33)*Prices!BJ6","v":459.93994753187098},{"$f":"Control!$B33*(1-Control!$E33)*Prices!BK6","v":459.93994753187098},{"$f":"Control!$B33*(1-Control!$E33)*Prices!BL6","v":459.93994753187098},{"$f":"Control!$B33*(1-Control!$E33)*Prices!BM6","v":459.93994753187098},{"$f":"Control!$B33*(1-Control!$E33)*Prices!BN6","v":459.93994753187098},{"$f":"Control!$B33*(1-Control!$E33)*Prices!BO6","v":459.93994753187098},{"$f":"Control!$B33*(1-Control!$E33)*Prices!BP6","v":459.93994753187098},{"$f":"Control!$B33*(1-Control!$E33)*Prices!BQ6","v":459.93994753187098},{"$f":"Control!$B33*(1-Control!$E33)*Prices!BR6","v":459.93994753187098},{"$f":"Control!$B33*(1-Control!$E33)*Prices!BS6","v":459.93994753187098},{"$f":"Control!$B33*(1-Control!$E33)*Prices!BT6","v":459.93994753187098},{"$f":"Control!$B33*(1-Control!$E33)*Prices!BU6","v":459.93994753187098},{"$f":"Control!$B33*(1-Control!$E33)*Prices!BV6","v":459.93994753187098},{"$f":"Control!$B33*(1-Control!$E33)*Prices!BW6","v":459.93994753187098},{"$f":"Control!$B33*(1-Control!$E33)*Prices!BX6","v":459.93994753187098},{"$f":"Control!$B33*(1-Control!$E33)*Prices!BY6","v":459.93994753187098},{"$f":"Control!$B33*(1-Control!$E33)*Prices!BZ6","v":459.93994753187098},{"$f":"Control!$B33*(1-Control!$E33)*Prices!CA6","v":459.93994753187098},{"$f":"Control!$B33*(1-Control!$E33)*Prices!CB6","v":459.93994753187098},{"$f":"Control!$B33*(1-Control!$E33)*Prices!CC6","v":459.93994753187098},{"$f":"Control!$B33*(1-Control!$E33)*Prices!CD6","v":459.93994753187098},{"$f":"Control!$B33*(1-Control!$E33)*Prices!CE6","v":459.93994753187098},{"$f":"Control!$B33*(1-Control!$E33)*Prices!CF6","v":459.93994753187098},{"$f":"Control!$B33*(1-Control!$E33)*Prices!CG6","v":459.93994753187098},{"$f":"Control!$B33*(1-Control!$E33)*Prices!CH6","v":459.93994753187098},{"$f":"Control!$B33*(1-Control!$E33)*Prices!CI6","v":459.93994753187098},{"$f":"Control!$B33*(1-Control!$E33)*Prices!CJ6","v":459.93994753187098},{"$f":"Control!$B33*(1-Control!$E33)*Prices!CK6","v":459.93994753187098},{"$f":"Control!$B33*(1-Control!$E33)*Prices!CL6","v":459.93994753187098},{"$f":"Control!$B33*(1-Control!$E33)*Prices!CM6","v":459.93994753187098},{"$f":"Control!$B33*(1-Control!$E33)*Prices!CN6","v":459.93994753187098},{"$f":"Control!$B33*(1-Control!$E33)*Prices!CO6","v":459.93994753187098},{"$f":"Control!$B33*(1-Control!$E33)*Prices!CP6","v":459.93994753187098},{"$f":"Control!$B33*(1-Control!$E33)*Prices!CQ6","v":459.93994753187098},{"$f":"Control!$B33*(1-Control!$E33)*Prices!CR6","v":459.93994753187098},{"$f":"Control!$B33*(1-Control!$E33)*Prices!CS6","v":459.93994753187098},{"$f":"Control!$B33*(1-Control!$E33)*Prices!CT6","v":459.93994753187098},{"$f":"Control!$B33*(1-Control!$E33)*Prices!CU6","v":459.93994753187098},{"$f":"Control!$B33*(1-Control!$E33)*Prices!CV6","v":459.93994753187098},{"$f":"Control!$B33*(1-Control!$E33)*Prices!CW6","v":459.93994753187098},{"$f":"Control!$B33*(1-Control!$E33)*Prices!CX6","v":459.93994753187098},{"$f":"Control!$B33*(1-Control!$E33)*Prices!CY6","v":459.93994753187098},{"$f":"Control!$B33*(1-Control!$E33)*Prices!CZ6","v":459.93994753187098},{"$f":"Control!$B33*(1-Control!$E33)*Prices!DA6","v":459.93994753187098},{"$f":"Control!$B33*(1-Control!$E33)*Prices!DB6","v":459.93994753187098},{"$f":"Control!$B33*(1-Control!$E33)*Prices!DC6","v":459.93994753187098},{"$f":"Control!$B33*(1-Control!$E33)*Prices!DD6","v":459.93994753187098},{"$f":"Control!$B33*(1-Control!$E33)*Prices!DE6","v":459.93994753187098},{"$f":"Control!$B33*(1-Control!$E33)*Prices!DF6","v":459.93994753187098},{"$f":"Control!$B33*(1-Control!$E33)*Prices!DG6","v":459.93994753187098},{"$f":"Control!$B33*(1-Control!$E33)*Prices!DH6","v":459.93994753187098},{"$f":"Control!$B33*(1-Control!$E33)*Prices!DI6","v":459.93994753187098},{"$f":"Control!$B33*(1-Control!$E33)*Prices!DJ6","v":459.93994753187098},{"$f":"Control!$B33*(1-Control!$E33)*Prices!DK6","v":459.93994753187098},{"$f":"Control!$B33*(1-Control!$E33)*Prices!DL6","v":459.93994753187098},{"$f":"Control!$B33*(1-Control!$E33)*Prices!DM6","v":459.93994753187098},{"$f":"Control!$B33*(1-Control!$E33)*Prices!DN6","v":459.93994753187098},{"$f":"Control!$B33*(1-Control!$E33)*Prices!DO6","v":459.93994753187098},{"$f":"Control!$B33*(1-Control!$E33)*Prices!DP6","v":459.93994753187098},{"$f":"Control!$B33*(1-Control!$E33)*Prices!DQ6","v":459.93994753187098},{"$f":"Control!$B33*(1-Control!$E33)*Prices!DR6","v":459.93994753187098},{"$f":"Control!$B33*(1-Control!$E33)*Prices!DS6","v":459.93994753187098},{"$f":"Control!$B33*(1-Control!$E33)*Prices!DT6","v":459.93994753187098},{"$f":"Control!$B33*(1-Control!$E33)*Prices!DU6","v":459.93994753187098},{"$f":"Control!$B33*(1-Control!$E33)*Prices!DV6","v":459.93994753187098}]
["Gas instant hot water",{"$f":"Control!$B34*(1-Control!$E34)*Prices!AA3","v":388.93131160825851},{"$f":"Control!$B34*(1-Control!$E34)*Prices!AB3","v":412.15079135544346},{"$f":"Control!$B34*(1-Control!$E34)*Prices!AC3","v":388.64781037646446},{"$f":"Control!$B34*(1-Control!$E34)*Prices!AD3","v":382.6150882421357},{"$f":"Control!$B34*(1-Control!$E34)*Prices!AE3","v":370.39835970385366},{"$f":"Control!$B34*(1-Control!$E34)*Prices!AF3","v":368.05655098091131},{"$f":"Control!$B34*(1-Control!$E34)*Prices!AG3","v":376.2175792419867},{"$f":"Control!$B34*(1-Control!$E34)*Prices!AH3","v":398.7713053516174},{"$f":"Control!$B34*(1-Control!$E34)*Prices!AI3","v":418.5773225989999},{"$f":"Control!$B34*(1-Control!$E34)*Prices!AJ3","v":429.92914476895135},{"$f":"Control!$B34*(1-Control!$E34)*Prices!AK3","v":392.58253208710141},{"$f":"Control!$B34*(1-Control!$E34)*Prices!AL3","v":386.46405449463043},{"$f":"Control!$B34*(1-Control!$E34)*Prices!AM3","v":390.79340835961517},{"$f":"Control!$B34*(1-Control!$E34)*Prices!AN3","v":398.92501526098562},{"$f":"Control!$B34*(1-Control!$E34)*Prices!AO3","v":412.61011050518425},{"$f":"Control!$B34*(1-Control!$E34)*Prices!AP3","v":419.57728292789932},{"$f":"Control!$B34*(1-Control!$E34)*Prices!AQ3","v":432.77829415658408},{"$f":"Control!$B34*(1-Control!$E34)*Prices!AR3","v":437.19734540591531},{"$f":"Control!$B34*(1-Control!$E34)*Prices!AS3","v":441.39269584254907},{"$f":"Control!$B34*(1-Control!$E34)*Prices!AT3","v":439.91267705422075},{"$f":"Control!$B34*(1-Control!$E34)*Prices!AU3","v":441.23905468553761},{"$f":"Control!$B34*(1-Control!$E34)*Prices!AV3","v":452.27298570533878},{"$f":"Control!$B34*(1-Control!$E34)*Prices!AW3","v":463.17182427033742},{"$f":"Control!$B34*(1-Control!$E34)*Prices!AX3","v":468.37235528728826},{"$f":"Control!$B34*(1-Control!$E34)*Prices!AY3","v":473.25835802099306},{"$f":"Control!$B34*(1-Control!$E34)*Prices!AZ3","v":479.40855583718314},{"$f":"Control!$B34*(1-Control!$E34)*Prices!BA3","v":485.16240995018359},{"$f":"Control!$B34*(1-Control!$E34)*Prices!BB3","v":490.28476115935615},{"$f":"Control!$B34*(1-Control!$E34)*Prices!BC3","v":495.53020843613695},{"$f":"Control!$B34*(1-Control!$E34)*Prices!BD3","v":503.49692521134892},{"$f":"Control!$B34*(1-Control!$E34)*Prices!BE3","v":510.49029147443417},{"$f":"Control!$B34*(1-Control!$E34)*Prices!BF3","v":520.95335554602264},{"$f":"Control!$B34*(1-Control!$E34)*Prices!BG3","v":529.80630267937238},{"$f":"Control!$B34*(1-Control!$E34)*Prices!BH3","v":537.90505828307835},{"$f":"Control!$B34*(1-Control!$E34)*Prices!BI3","v":546.4870228556066},{"$f":"Control!$B34*(1-Control!$E34)*Prices!BJ3","v":518.02073510154548},{"$f":"Control!$B34*(1-Control!$E34)*Prices!BK3","v":513.42307894497651},{"$f":"Control!$B34*(1-Control!$E34)*Prices!BL3","v":521.11903806712371},{"$f":"Control!$B34*(1-Control!$E34)*Prices!BM3","v":530.94634410193999},{"$f":"Control!$B34*(1-Control!$E34)*Prices!BN3","v":540.26057412425621},{"$f":"Control!$B34*(1-Control!$E34)*Prices!BO3","v":550.04975131962567},{"$f":"Control!$B34*(1-Control!$E34)*Prices!BP3","v":560.94492718108972},{"$f":"Control!$B34*(1-Control!$E34)*Prices!BQ3","v":573.21368073719998},{"$f":"Control!$B34*(1-Control!$E34)*Prices!BR3","v":587.1067315320231},{"$f":"Control!$B34*(1-Control!$E34)*Prices!BS3","v":602.98949790007714},{"$f":"Control!$B34*(1-Control!$E34)*Prices!BT3","v":621.31640489678534},{"$f":"Control!$B34*(1-Control!$E34)*Prices!BU3","v":642.48471190967371},{"$f":"Control!$B34*(1-Control!$E34)*Prices!BV3","v":666.86374187893523},{"$f":"Control!$B34*(1-Control!$E34)*Prices!BW3","v":694.90269027780835},{"$f":"Control!$B34*(1-Control!$E34)*Prices!BX3","v":727.28812150380509},{"$f":"Control!$B34*(1-Control!$E34)*Prices!BY3","v":765.02417108925897},{"$f":"Control!$B34*(1-Control!$E34)*Prices!BZ3","v":809.51481404082381},{"$f":"Control!$B34*(1-Control!$E34)*Prices!CA3","v":862.6510139794924},{"$f":"Control!$B34*(1-Control!$E34)*Prices!CB3","v":914.92944796275344},{"$f":"Control!$B34*(1-Control!$E34)*Prices!CC3","v":963.0494822401771},{"$f":"Control!$B34*(1-Control!$E34)*Prices!CD3","v":1012.1856474806818},{"$f":"Control!$B34*(1-Control!$E34)*Prices!CE3","v":1067.4183745753251},{"$f":"Control!$B34*(1-Control!$E34)*Prices!CF3","v":1133.2211699815357},{"$f":"Control!$B34*(1-Control!$E34)*Prices!CG3","v":1228.3502996735745},{"$f":"Control!$B34*(1-Control!$E34)*Prices!CH3","v":1368.8717613222077},{"$f":"Control!$B34*(1-Control!$E34)*Prices!CI3","v":1578.0118971587078},{"$f":"Control!$B34*(1-Control!$E34)*Prices!CJ3","v":411.44652320560164},{"$f":"Control!$B34*(1-Control!$E34)*Prices!CK3","v":411.65252320560165},{"$f":"Control!$B34*(1-Control!$E34)*Prices!CL3","v":411.85852320560173},{"$f":"Control!$B34*(1-Control!$E34)*Prices!CM3","v":412.06452320560174},{"$f":"Control!$B34*(1-Control!$E34)*Prices!CN3","v":412.27052320560176},{"$f":"Control!$B34*(1-Control!$E34)*Prices!CO3","v":412.47652320560184},{"$f":"Control!$B34*(1-Control!$E34)*Prices!CP3","v":412.68252320560185},{"$f":"Control!$B34*(1-Control!$E34)*Prices!CQ3","v":412.88852320560187},{"$f":"Control!$B34*(1-Control!$E34)*Prices!CR3","v":413.09452320560189},{"$f":"Control!$B34*(1-Control!$E34)*Prices!CS3","v":413.30052320560196},{"$f":"Control!$B34*(1-Control!$E34)*Prices!CT3","v":413.50652320560198},{"$f":"Control!$B34*(1-Control!$E34)*Prices!CU3","v":413.712523205602},{"$f":"Control!$B34*(1-Control!$E34)*Prices!CV3","v":413.91852320560201},{"$f":"Control!$B34*(1-Control!$E34)*Prices!CW3","v":414.12452320560209},{"$f":"Control!$B34*(1-Control!$E34)*Prices!CX3","v":414.33052320560211},{"$f":"Control!$B34*(1-Control!$E34)*Prices!CY3","v":414.53652320560212},{"$f":"Control!$B34*(1-Control!$E34)*Prices!CZ3","v":414.74252320560214},{"$f":"Control!$B34*(1-Control!$E34)*Prices!DA3","v":414.94852320560221},{"$f":"Control!$B34*(1-Control!$E34)*Prices!DB3","v":410.81055635492601},{"$f":"Control!$B34*(1-Control!$E34)*Prices!DC3","v":410.81055635492601},{"$f":"Control!$B34*(1-Control!$E34)*Prices!DD3","v":410.81055635492601},{"$f":"Control!$B34*(1-Control!$E34)*Prices!DE3","v":410.81055635492601},{"$f":"Control!$B34*(1-Control!$E34)*Prices!DF3","v":410.81055635492601},{"$f":"Control!$B34*(1-Control!$E34)*Prices!DG3","v":410.81055635492601},{"$f":"Control!$B34*(1-Control!$E34)*Prices!DH3","v":410.81055635492601},{"$f":"Control!$B34*(1-Control!$E34)*Prices!DI3","v":410.81055635492601},{"$f":"Control!$B34*(1-Control!$E34)*Prices!DJ3","v":410.81055635492601},{"$f":"Control!$B34*(1-Control!$E34)*Prices!DK3","v":410.81055635492601},{"$f":"Control!$B34*(1-Control!$E34)*Prices!DL3","v":410.81055635492601},{"$f":"Control!$B34*(1-Control!$E34)*Prices!DM3","v":410.81055635492601},{"$f":"Control!$B34*(1-Control!$E34)*Prices!DN3","v":410.81055635492601},{"$f":"Control!$B34*(1-Control!$E34)*Prices!DO3","v":410.81055635492601},{"$f":"Control!$B34*(1-Control!$E34)*Prices!DP3","v":410.81055635492601},{"$f":"Control!$B34*(1-Control!$E34)*Prices!DQ3","v":410.81055635492601},{"$f":"Control!$B34*(1-Control!$E34)*Prices!DR3","v":410.81055635492601},{"$f":"Control!$B34*(1-Control!$E34)*Prices!DS3","v":410.81055635492601},{"$f":"Control!$B34*(1-Control!$E34)*Prices!DT3","v":410.81055635492601},{"$f":"Control!$B34*(1-Control!$E34)*Prices!DU3","v":410.81055635492601},{"$f":"Control!$B34*(1-Control!$E34)*Prices!DV3","v":410.81055635492601}]
["Difference",{"$f":"B28-B27","v":-135.68948839174152},{"$f":"C28-C27","v":-169.97017938737764},-192.35778196717467,-181.15327759316756,-194.94841604351086,-194.0695832193536,-174.72670280281437,-178.04387724421628,-157.25328933065828,-181.10522302357037,-203.22536298476405,-206.07109366665873,-182.24940732497754,-165.07501626756283,-138.54860795499383,-124.02480394524707,-101.70784021087769,-86.874128935131523,-71.008531184977414,-59.583284723024519,-52.224175428280375,-34.982299075539288,-17.651307370668121,-5.8279420077600435,5.8397291650599641,13.629311128727352,20.943838975188839,27.543382123360004,34.233943639017184,43.556977679477939,50.550343942563188,61.013408014151651,69.866355147501395,77.965110751207362,86.547075323735612,58.080787569674499,53.483131413105525,61.179090535252726,71.006396570069001,80.320626592385224,90.109803787754686,101.00497964921874,113.27373320532899,127.16678400015212,143.04955036820616,161.37645736491436,182.54476437780272,206.92379434706424,234.96274274593736,267.3481739719341,305.08422355738799,349.57486650895282,402.71106644762142,454.98950043088246,503.10953470830611,552.24569994881085,607.47842704345408,673.28122244966471,768.41035214170347,908.93181379033672,1118.0719496268368,-48.493424326269349,-48.287424326269331,-48.081424326269257,-47.87542432626924,{"$f":"BO28-BO27","v":-47.669424326269223},-47.463424326269148,-47.257424326269131,-47.051424326269114,-46.845424326269097,-46.639424326269022,-46.433424326269005,-46.227424326268988,-46.021424326268971,-45.815424326268896,-45.609424326268879,-45.403424326268862,-45.197424326268845,-44.991424326268771,-49.129391176944978,{"$f":"CD28-CD27","v":-49.129391176944978},-49.129391176944978,-49.129391176944978,-49.129391176944978,-49.129391176944978,-49.129391176944978,-49.129391176944978,-49.129391176944978,-49.129391176944978,-49.129391176944978,-49.129391176944978,-49.129391176944978,-49.129391176944978,-49.129391176944978,-49.129391176944978,-49.129391176944978,-49.129391176944978,-49.129391176944978,-49.129391176944978,-49.129391176944978]
["Room heating"]
["RCAC split system",{"$f":"Control!$B37*(1-Control!$E37)*Prices!AA6","v":280.8},{"$f":"Control!$B37*(1-Control!$E37)*Prices!AB6","v":311.57660654054155},{"$f":"Control!$B37*(1-Control!$E37)*Prices!AC6","v":310.97960723267903},{"$f":"Control!$B37*(1-Control!$E37)*Prices!AD6","v":301.75348961869821},{"$f":"Control!$B37*(1-Control!$E37)*Prices!AE6","v":302.59832364606962},{"$f":"Control!$B37*(1-Control!$E37)*Prices!AF6","v":300.87449541351469},{"$f":"Control!$B37*(1-Control!$E37)*Prices!AG6","v":294.88947902595572},{"$f":"Control!$B37*(1-Control!$E37)*Prices!AH6","v":308.73671663973312},{"$f":"Control!$B37*(1-Control!$E37)*Prices!AI6","v":308.2097313523368},{"$f":"Control!$B37*(1-Control!$E37)*Prices!AJ6","v":327.05232136457437},{"$f":"Control!$B37*(1-Control!$E37)*Prices!AK6","v":318.90244713168028},{"$f":"Control!$B37*(1-Control!$E37)*Prices!AL6","v":317.150729829412},{"$f":"Control!$B37*(1-Control!$E37)*Prices!AM6","v":306.71758085884818},{"$f":"Control!$B37*(1-Control!$E37)*Prices!AN6","v":301.87748723118949},{"$f":"Control!$B37*(1-Control!$E37)*Prices!AO6","v":295.00425477529296},{"$f":"Control!$B37*(1-Control!$E37)*Prices!AP6","v":290.95961500950688},{"$f":"Control!$B37*(1-Control!$E37)*Prices!AQ6","v":286.0803584806078},{"$f":"Control!$B37*(1-Control!$E37)*Prices!AR6","v":280.50597687885414},{"$f":"Control!$B37*(1-Control!$E37)*Prices!AS6","v":274.25955003943693},{"$f":"Control!$B37*(1-Control!$E37)*Prices!AT6","v":267.35208757840036},{"$f":"Control!$B37*(1-Control!$E37)*Prices!AU6","v":264.12310570980048},{"$f":"Control!$B37*(1-Control!$E37)*Prices!AV6","v":260.80034182112217},{"$f":"Control!$B37*(1-Control!$E37)*Prices!AW6","v":257.35757210692822},{"$f":"Control!$B37*(1-Control!$E37)*Prices!AX6","v":253.8127414705051},{"$f":"Control!$B37*(1-Control!$E37)*Prices!AY6","v":250.18289587974019},{"$f":"Control!$B37*(1-Control!$E37)*Prices!AZ6","v":249.30542577445343},{"$f":"Control!$B37*(1-Control!$E37)*Prices!BA6","v":248.47008492568065},{"$f":"Control!$B37*(1-Control!$E37)*Prices!BB6","v":247.67942718494524},{"$f":"Control!$B37*(1-Control!$E37)*Prices!BC6","v":246.90593883245046},{"$f":"Control!$B37*(1-Control!$E37)*Prices!BD6","v":246.17997850437757},{"$f":"Control!$B37*(1-Control!$E37)*Prices!BE6","v":246.17997850437757},{"$f":"Control!$B37*(1-Control!$E37)*Prices!BF6","v":246.17997850437757},{"$f":"Control!$B37*(1-Control!$E37)*Prices!BG6","v":246.17997850437757},{"$f":"Control!$B37*(1-Control!$E37)*Prices!BH6","v":246.17997850437757},{"$f":"Control!$B37*(1-Control!$E37)*Prices!BI6","v":246.17997850437757},{"$f":"Control!$B37*(1-Control!$E37)*Prices!BJ6","v":246.17997850437757},{"$f":"Control!$B37*(1-Control!$E37)*Prices!BK6","v":246.17997850437757},{"$f":"Control!$B37*(1-Control!$E37)*Prices!BL6","v":246.17997850437757},{"$f":"Control!$B37*(1-Control!$E37)*Prices!BM6","v":246.17997850437757},{"$f":"Control!$B37*(1-Control!$E37)*Prices!BN6","v":246.17997850437757},{"$f":"Control!$B37*(1-Control!$E37)*Prices!BO6","v":246.17997850437757},{"$f":"Control!$B37*(1-Control!$E37)*Prices!BP6","v":246.17997850437757},{"$f":"Control!$B37*(1-Control!$E37)*Prices!BQ6","v":246.17997850437757},{"$f":"Control!$B37*(1-Control!$E37)*Prices!BR6","v":246.17997850437757},{"$f":"Control!$B37*(1-Control!$E37)*Prices!BS6","v":246.17997850437757},{"$f":"Control!$B37*(1-Control!$E37)*Prices!BT6","v":246.17997850437757},{"$f":"Control!$B37*(1-Control!$E37)*Prices!BU6","v":246.17997850437757},{"$f":"Control!$B37*(1-Control!$E37)*Prices!BV6","v":246.17997850437757},{"$f":"Control!$B37*(1-Control!$E37)*Prices!BW6","v":246.17997850437757},{"$f":"Control!$B37*(1-Control!$E37)*Prices!BX6","v":246.17997850437757},{"$f":"Control!$B37*(1-Control!$E37)*Prices!BY6","v":246.17997850437757},{"$f":"Control!$B37*(1-Control!$E37)*Prices!BZ6","v":246.17997850437757},{"$f":"Control!$B37*(1-Control!$E37)*Prices!CA6","v":246.17997850437757},{"$f":"Control!$B37*(1-Control!$E37)*Prices!CB6","v":246.17997850437757},{"$f":"Control!$B37*(1-Control!$E37)*Prices!CC6","v":246.17997850437757},{"$f":"Control!$B37*(1-Control!$E37)*Prices!CD6","v":246.17997850437757},{"$f":"Control!$B37*(1-Control!$E37)*Prices!CE6","v":246.17997850437757},{"$f":"Control!$B37*(1-Control!$E37)*Prices!CF6","v":246.17997850437757},{"$f":"Control!$B37*(1-Control!$E37)*Prices!CG6","v":246.17997850437757},{"$f":"Control!$B37*(1-Control!$E37)*Prices!CH6","v":246.17997850437757},{"$f":"Control!$B37*(1-Control!$E37)*Prices!CI6","v":246.17997850437757},{"$f":"Control!$B37*(1-Control!$E37)*Prices!CJ6","v":246.17997850437757},{"$f":"Control!$B37*(1-Control!$E37)*Prices!CK6","v":246.17997850437757},{"$f":"Control!$B37*(1-Control!$E37)*Prices!CL6","v":246.17997850437757},{"$f":"Control!$B37*(1-Control!$E37)*Prices!CM6","v":246.17997850437757},{"$f":"Control!$B37*(1-Control!$E37)*Prices!CN6","v":246.17997850437757},{"$f":"Control!$B37*(1-Control!$E37)*Prices!CO6","v":246.17997850437757},{"$f":"Control!$B37*(1-Control!$E37)*Prices!CP6","v":246.17997850437757},{"$f":"Control!$B37*(1-Control!$E37)*Prices!CQ6","v":246.17997850437757},{"$f":"Control!$B37*(1-Control!$E37)*Prices!CR6","v":246.17997850437757},{"$f":"Control!$B37*(1-Control!$E37)*Prices!CS6","v":246.17997850437757},{"$f":"Control!$B37*(1-Control!$E37)*Prices!CT6","v":246.17997850437757},{"$f":"Control!$B37*(1-Control!$E37)*Prices!CU6","v":246.17997850437757},{"$f":"Control!$B37*(1-Control!$E37)*Prices!CV6","v":246.17997850437757},{"$f":"Control!$B37*(1-Control!$E37)*Prices!CW6","v":246.17997850437757},{"$f":"Control!$B37*(1-Control!$E37)*Prices!CX6","v":246.17997850437757},{"$f":"Control!$B37*(1-Control!$E37)*Prices!CY6","v":246.17997850437757},{"$f":"Control!$B37*(1-Control!$E37)*Prices!CZ6","v":246.17997850437757},{"$f":"Control!$B37*(1-Control!$E37)*Prices!DA6","v":246.17997850437757},{"$f":"Control!$B37*(1-Control!$E37)*Prices!DB6","v":246.17997850437757},{"$f":"Control!$B37*(1-Control!$E37)*Prices!DC6","v":246.17997850437757},{"$f":"Control!$B37*(1-Control!$E37)*Prices!DD6","v":246.17997850437757},{"$f":"Control!$B37*(1-Control!$E37)*Prices!DE6","v":246.17997850437757},{"$f":"Control!$B37*(1-Control!$E37)*Prices!DF6","v":246.17997850437757},{"$f":"Control!$B37*(1-Control!$E37)*Prices!DG6","v":246.17997850437757},{"$f":"Control!$B37*(1-Control!$E37)*Prices!DH6","v":246.17997850437757},{"$f":"Control!$B37*(1-Control!$E37)*Prices!DI6","v":246.17997850437757},{"$f":"Control!$B37*(1-Control!$E37)*Prices!DJ6","v":246.17997850437757},{"$f":"Control!$B37*(1-Control!$E37)*Prices!DK6","v":246.17997850437757},{"$f":"Control!$B37*(1-Control!$E37)*Prices!DL6","v":246.17997850437757},{"$f":"Control!$B37*(1-Control!$E37)*Prices!DM6","v":246.17997850437757},{"$f":"Control!$B37*(1-Control!$E37)*Prices!DN6","v":246.17997850437757},{"$f":"Control!$B37*(1-Control!$E37)*Prices!DO6","v":246.17997850437757},{"$f":"Control!$B37*(1-Control!$E37)*Prices!DP6","v":246.17997850437757},{"$f":"Control!$B37*(1-Control!$E37)*Prices!DQ6","v":246.17997850437757},{"$f":"Control!$B37*(1-Control!$E37)*Prices!DR6","v":246.17997850437757},{"$f":"Control!$B37*(1-Control!$E37)*Prices!DS6","v":246.17997850437757},{"$f":"Control!$B37*(1-Control!$E37)*Prices!DT6","v":246.17997850437757},{"$f":"Control!$B37*(1-Control!$E37)*Prices!DU6","v":246.17997850437757},{"$f":"Control!$B37*(1-Control!$E37)*Prices!DV6","v":246.17997850437757}]
["Gas wall furnace",{"$f":"Control!$B38*(1-Control!$E38)*Prices!AA3","v":365.62407867291256},{"$f":"Control!$B38*(1-Control!$E38)*Prices!AB3","v":387.45209980786245},{"$f":"Control!$B38*(1-Control!$E38)*Prices!AC3","v":365.35756663445335},{"$f":"Control!$B38*(1-Control!$E38)*Prices!AD3","v":359.68636350315268},{"$f":"Control!$B38*(1-Control!$E38)*Prices!AE3","v":348.20173888464046},{"$f":"Control!$B38*(1-Control!$E38)*Prices!AF3","v":346.00026620502138},{"$f":"Control!$B38*(1-Control!$E38)*Prices!AG3","v":353.67223385051847},{"$f":"Control!$B38*(1-Control!$E38)*Prices!AH3","v":374.87439753175147},{"$f":"Control!$B38*(1-Control!$E38)*Prices!AI3","v":393.49351250686027},{"$f":"Control!$B38*(1-Control!$E38)*Prices!AJ3","v":404.16506143663048},{"$f":"Control!$B38*(1-Control!$E38)*Prices!AK3","v":369.05649484451982},{"$f":"Control!$B38*(1-Control!$E38)*Prices!AL3","v":363.30467526646208},{"$f":"Control!$B38*(1-Control!$E38)*Prices!AM3","v":367.37458676725794},{"$f":"Control!$B38*(1-Control!$E38)*Prices!AN3","v":375.01889616767579},{"$f":"Control!$B38*(1-Control!$E38)*Prices!AO3","v":387.88389363861984},{"$f":"Control!$B38*(1-Control!$E38)*Prices!AP3","v":394.43354886559803},{"$f":"Control!$B38*(1-Control!$E38)*Prices!AQ3","v":406.84347170796389},{"$f":"Control!$B38*(1-Control!$E38)*Prices!AR3","v":410.99770535648145},{"$f":"Control!$B38*(1-Control!$E38)*Prices!AS3","v":414.94164376494069},{"$f":"Control!$B38*(1-Control!$E38)*Prices!AT3","v":413.55031709683692},{"$f":"Control!$B38*(1-Control!$E38)*Prices!AU3","v":414.79720976129551},{"$f":"Control!$B38*(1-Control!$E38)*Prices!AV3","v":425.16991759644839},{"$f":"Control!$B38*(1-Control!$E38)*Prices!AW3","v":435.41562857419069},{"$f":"Control!$B38*(1-Control!$E38)*Prices!AX3","v":440.3045107622047},{"$f":"Control!$B38*(1-Control!$E38)*Prices!AY3","v":444.89771319817493},{"$f":"Control!$B38*(1-Control!$E38)*Prices!AZ3","v":450.67935212280219},{"$f":"Control!$B38*(1-Control!$E38)*Prices!BA3","v":456.088398774729},{"$f":"Control!$B38*(1-Control!$E38)*Prices!BB3","v":460.90378618529365},{"$f":"Control!$B38*(1-Control!$E38)*Prices!BC3","v":465.83489296574237},{"$f":"Control!$B38*(1-Control!$E38)*Prices!BD3","v":473.32419350300228},{"$f":"Control!$B38*(1-Control!$E38)*Prices!BE3","v":479.89847286917012},{"$f":"Control!$B38*(1-Control!$E38)*Prices!BF3","v":489.73452372722846},{"$f":"Control!$B38*(1-Control!$E38)*Prices!BG3","v":498.05694607421412},{"$f":"Control!$B38*(1-Control!$E38)*Prices!BH3","v":505.67037283524741},{"$f":"Control!$B38*(1-Control!$E38)*Prices!BI3","v":513.73805161651944},{"$f":"Control!$B38*(1-Control!$E38)*Prices!BJ3","v":486.97764451460984},{"$f":"Control!$B38*(1-Control!$E38)*Prices!BK3","v":482.65550909859195},{"$f":"Control!$B38*(1-Control!$E38)*Prices!BL3","v":489.8902774999944},{"$f":"Control!$B38*(1-Control!$E38)*Prices!BM3","v":499.12866897832185},{"$f":"Control!$B38*(1-Control!$E38)*Prices!BN3","v":507.88473121557126},{"$f":"Control!$B38*(1-Control!$E38)*Prices!BO3","v":517.08727877653462},{"$f":"Control!$B38*(1-Control!$E38)*Prices!BP3","v":527.32954654318712},{"$f":"Control!$B38*(1-Control!$E38)*Prices!BQ3","v":538.86307851023014},{"$f":"Control!$B38*(1-Control!$E38)*Prices!BR3","v":551.92356951520617},{"$f":"Control!$B38*(1-Control!$E38)*Prices!BS3","v":566.85453970653384},{"$f":"Control!$B38*(1-Control!$E38)*Prices!BT3","v":584.0831821058498},{"$f":"Control!$B38*(1-Control!$E38)*Prices!BU3","v":603.98294979657305},{"$f":"Control!$B38*(1-Control!$E38)*Prices!BV3","v":626.90103354404096},{"$f":"Control!$B38*(1-Control!$E38)*Prices!BW3","v":653.25971017746429},{"$f":"Control!$B38*(1-Control!$E38)*Prices!BX3","v":683.70440079768491},{"$f":"Control!$B38*(1-Control!$E38)*Prices!BY3","v":719.17906676218252},{"$f":"Control!$B38*(1-Control!$E38)*Prices!BZ3","v":761.0035479834728},{"$f":"Control!$B38*(1-Control!$E38)*Prices!CA3","v":810.95548953947593},{"$f":"Control!$B38*(1-Control!$E38)*Prices!CB3","v":860.10106792079398},{"$f":"Control!$B38*(1-Control!$E38)*Prices!CC3","v":905.33744430211493},{"$f":"Control!$B38*(1-Control!$E38)*Prices!CD3","v":951.52905862931186},{"$f":"Control!$B38*(1-Control!$E38)*Prices!CE3","v":1003.4518901263853},{"$f":"Control!$B38*(1-Control!$E38)*Prices!CF3","v":1065.3113643482263},{"$f":"Control!$B38*(1-Control!$E38)*Prices!CG3","v":1154.7397527564101},{"$f":"Control!$B38*(1-Control!$E38)*Prices!CH3","v":1286.840276462256},{"$f":"Control!$B38*(1-Control!$E38)*Prices!CI3","v":1483.4474078411956},{"$f":"Control!$B38*(1-Control!$E38)*Prices!CJ3","v":386.7900358759054},{"$f":"Control!$B38*(1-Control!$E38)*Prices!CK3","v":386.9836910483192},{"$f":"Control!$B38*(1-Control!$E38)*Prices!CL3","v":387.17734622073306},{"$f":"Control!$B38*(1-Control!$E38)*Prices!CM3","v":387.37100139314686},{"$f":"Control!$B38*(1-Control!$E38)*Prices!CN3","v":387.56465656556071},{"$f":"Control!$B38*(1-Control!$E38)*Prices!CO3","v":387.75831173797451},{"$f":"Control!$B38*(1-Control!$E38)*Prices!CP3","v":387.95196691038836},{"$f":"Control!$B38*(1-Control!$E38)*Prices!CQ3","v":388.14562208280216},{"$f":"Control!$B38*(1-Control!$E38)*Prices!CR3","v":388.33927725521596},{"$f":"Control!$B38*(1-Control!$E38)*Prices!CS3","v":388.53293242762982},{"$f":"Control!$B38*(1-Control!$E38)*Prices!CT3","v":388.72658760004362},{"$f":"Control!$B38*(1-Control!$E38)*Prices!CU3","v":388.92024277245747},{"$f":"Control!$B38*(1-Control!$E38)*Prices!CV3","v":389.11389794487127},{"$f":"Control!$B38*(1-Control!$E38)*Prices!CW3","v":389.30755311728512},{"$f":"Control!$B38*(1-Control!$E38)*Prices!CX3","v":389.50120828969892},{"$f":"Control!$B38*(1-Control!$E38)*Prices!CY3","v":389.69486346211278},{"$f":"Control!$B38*(1-Control!$E38)*Prices!CZ3","v":389.88851863452658},{"$f":"Control!$B38*(1-Control!$E38)*Prices!DA3","v":390.08217380694038},{"$f":"Control!$B38*(1-Control!$E38)*Prices!DB3","v":386.19218019572554},{"$f":"Control!$B38*(1-Control!$E38)*Prices!DC3","v":386.19218019572554},{"$f":"Control!$B38*(1-Control!$E38)*Prices!DD3","v":386.19218019572554},{"$f":"Control!$B38*(1-Control!$E38)*Prices!DE3","v":386.19218019572554},{"$f":"Control!$B38*(1-Control!$E38)*Prices!DF3","v":386.19218019572554},{"$f":"Control!$B38*(1-Control!$E38)*Prices!DG3","v":386.19218019572554},{"$f":"Control!$B38*(1-Control!$E38)*Prices!DH3","v":386.19218019572554},{"$f":"Control!$B38*(1-Control!$E38)*Prices!DI3","v":386.19218019572554},{"$f":"Control!$B38*(1-Control!$E38)*Prices!DJ3","v":386.19218019572554},{"$f":"Control!$B38*(1-Control!$E38)*Prices!DK3","v":386.19218019572554},{"$f":"Control!$B38*(1-Control!$E38)*Prices!DL3","v":386.19218019572554},{"$f":"Control!$B38*(1-Control!$E38)*Prices!DM3","v":386.19218019572554},{"$f":"Control!$B38*(1-Control!$E38)*Prices!DN3","v":386.19218019572554},{"$f":"Control!$B38*(1-Control!$E38)*Prices!DO3","v":386.19218019572554},{"$f":"Control!$B38*(1-Control!$E38)*Prices!DP3","v":386.19218019572554},{"$f":"Control!$B38*(1-Control!$E38)*Prices!DQ3","v":386.19218019572554},{"$f":"Control!$B38*(1-Control!$E38)*Prices!DR3","v":386.19218019572554},{"$f":"Control!$B38*(1-Control!$E38)*Prices!DS3","v":386.19218019572554},{"$f":"Control!$B38*(1-Control!$E38)*Prices!DT3","v":386.19218019572554},{"$f":"Control!$B38*(1-Control!$E38)*Prices!DU3","v":386.19218019572554},{"$f":"Control!$B38*(1-Control!$E38)*Prices!DV3","v":386.19218019572554}]
["Difference",{"$f":"B32-B31","v":84.824078672912549},{"$f":"C32-C31","v":75.875493267320905},54.377959401774319,57.932873884454466,45.603415238570847,45.125770791506682,58.782754824562744,66.137680892018352,85.283781154523467,77.112740072056113,50.154047712839542,46.153945437050083,60.657005908409758,73.1414089364863,92.879638863326875,103.47393385609115,120.76311322735609,130.4917284776273,140.68209372550376,146.19822951843656,150.67410405149502,164.36957577532621,178.05805646726247,186.4917692916996,194.71481731843474,201.37392634834876,207.61831384904835,213.22435900034841,218.92895413329191,227.1442149986247,233.71849436479255,243.55454522285089,251.87696756983655,259.49039433086983,267.55807311214187,240.79766601023226,236.47553059421438,243.71029899561682,252.94869047394428,261.70475271119369,270.90730027215704,281.14956803880955,292.68310000585257,305.7435910108286,320.67456120215627,337.90320360147223,357.80297129219548,380.72105503966338,407.07973167308671,437.52442229330734,472.99908825780494,514.82356947909523,564.77551103509836,613.92108941641641,659.15746579773736,705.34908012493429,757.27191162200768,819.13138584384876,908.55977425203253,1040.6602979578784,1237.2674293368182,140.61005737152783,140.80371254394163,140.99736771635548,141.19102288876928,{"$f":"BO32-BO31","v":141.38467806118314},141.57833323359694,141.77198840601079,141.96564357842459,142.15929875083839,142.35295392325224,142.54660909566604,142.7402642680799,142.9339194404937,143.12757461290755,143.32122978532135,143.51488495773521,143.708540130149,143.9021953025628,140.01220169134797,{"$f":"CD32-CD31","v":140.01220169134797},140.01220169134797,140.01220169134797,140.01220169134797,140.01220169134797,140.01220169134797,140.01220169134797,140.01220169134797,140.01220169134797,140.01220169134797,140.01220169134797,140.01220169134797,140.01220169134797,140.01220169134797,140.01220169134797,140.01220169134797,140.01220169134797,140.01220169134797,140.01220169134797,140.01220169134797]
["Ducted heating"]
["Ducted RCAC",{"$f":"Control!$B41*(1-Control!$E41)*Prices!AA6","v":1133.2753714285714},{"$f":"Control!$B41*(1-Control!$E41)*Prices!AB6","v":1257.4860915444663},{"$f":"Control!$B41*(1-Control!$E41)*Prices!AC6","v":1255.0766734092792},{"$f":"Control!$B41*(1-Control!$E41)*Prices!AD6","v":1217.8411610665876},{"$f":"Control!$B41*(1-Control!$E41)*Prices!AE6","v":1221.2508106255791},{"$f":"Control!$B41*(1-Control!$E41)*Prices!AF6","v":1214.293645096634},{"$f":"Control!$B41*(1-Control!$E41)*Prices!AG6","v":1190.1388314583971},{"$f":"Control!$B41*(1-Control!$E41)*Prices!AH6","v":1246.0246339869343},{"$f":"Control!$B41*(1-Control!$E41)*Prices!AI6","v":1243.8977841033466},{"$f":"Control!$B41*(1-Control!$E41)*Prices!AJ6","v":1319.9442342272596},{"$f":"Control!$B41*(1-Control!$E41)*Prices!AK6","v":1287.0523120464222},{"$f":"Control!$B41*(1-Control!$E41)*Prices!AL6","v":1279.9825895522415},{"$f":"Control!$B41*(1-Control!$E41)*Prices!AM6","v":1237.8756423485902},{"$f":"Control!$B41*(1-Control!$E41)*Prices!AN6","v":1218.3416006689818},{"$f":"Control!$B41*(1-Control!$E41)*Prices!AO6","v":1190.6020527189426},{"$f":"Control!$B41*(1-Control!$E41)*Prices!AP6","v":1174.2783681289638},{"$f":"Control!$B41*(1-Control!$E41)*Prices!AQ6","v":1154.5862696421998},{"$f":"Control!$B41*(1-Control!$E41)*Prices!AR6","v":1132.0887291143792},{"$f":"Control!$B41*(1-Control!$E41)*Prices!AS6","v":1106.8788940127342},{"$f":"Control!$B41*(1-Control!$E41)*Prices!AT6","v":1079.0011978369503},{"$f":"Control!$B41*(1-Control!$E41)*Prices!AU6","v":1065.9694114178844},{"$f":"Control!$B41*(1-Control!$E41)*Prices!AV6","v":1052.5591319303085},{"$f":"Control!$B41*(1-Control!$E41)*Prices!AW6","v":1038.6645232173591},{"$f":"Control!$B41*(1-Control!$E41)*Prices!AX6","v":1024.3580087724026},{"$f":"Control!$B41*(1-Control!$E41)*Prices!AY6","v":1009.7083840925505},{"$f":"Control!$B41*(1-Control!$E41)*Prices!AZ6","v":1006.16701920834},{"$f":"Control!$B41*(1-Control!$E41)*Prices!BA6","v":1002.7956829880322},{"$f":"Control!$B41*(1-Control!$E41)*Prices!BB6","v":999.60468247234553},{"$f":"Control!$B41*(1-Control!$E41)*Prices!BC6","v":996.48297556362331},{"$f":"Control!$B41*(1-Control!$E41)*Prices!BD6","v":993.55308610336976},{"$f":"Control!$B41*(1-Control!$E41)*Prices!BE6","v":993.55308610336976},{"$f":"Control!$B41*(1-Control!$E41)*Prices!BF6","v":993.55308610336976},{"$f":"Control!$B41*(1-Control!$E41)*Prices!BG6","v":993.55308610336976},{"$f":"Control!$B41*(1-Control!$E41)*Prices!BH6","v":993.55308610336976},{"$f":"Control!$B41*(1-Control!$E41)*Prices!BI6","v":993.55308610336976},{"$f":"Control!$B41*(1-Control!$E41)*Prices!BJ6","v":993.55308610336976},{"$f":"Control!$B41*(1-Control!$E41)*Prices!BK6","v":993.55308610336976},{"$f":"Control!$B41*(1-Control!$E41)*Prices!BL6","v":993.55308610336976},{"$f":"Control!$B41*(1-Control!$E41)*Prices!BM6","v":993.55308610336976},{"$f":"Control!$B41*(1-Control!$E41)*Prices!BN6","v":993.55308610336976},{"$f":"Control!$B41*(1-Control!$E41)*Prices!BO6","v":993.55308610336976},{"$f":"Control!$B41*(1-Control!$E41)*Prices!BP6","v":993.55308610336976},{"$f":"Control!$B41*(1-Control!$E41)*Prices!BQ6","v":993.55308610336976},{"$f":"Control!$B41*(1-Control!$E41)*Prices!BR6","v":993.55308610336976},{"$f":"Control!$B41*(1-Control!$E41)*Prices!BS6","v":993.55308610336976},{"$f":"Control!$B41*(1-Control!$E41)*Prices!BT6","v":993.55308610336976},{"$f":"Control!$B41*(1-Control!$E41)*Prices!BU6","v":993.55308610336976},{"$f":"Control!$B41*(1-Control!$E41)*Prices!BV6","v":993.55308610336976},{"$f":"Control!$B41*(1-Control!$E41)*Prices!BW6","v":993.55308610336976},{"$f":"Control!$B41*(1-Control!$E41)*Prices!BX6","v":993.55308610336976},{"$f":"Control!$B41*(1-Control!$E41)*Prices!BY6","v":993.55308610336976},{"$f":"Control!$B41*(1-Control!$E41)*Prices!BZ6","v":993.55308610336976},{"$f":"Control!$B41*(1-Control!$E41)*Prices!CA6","v":993.55308610336976},{"$f":"Control!$B41*(1-Control!$E41)*Prices!CB6","v":993.55308610336976},{"$f":"Control!$B41*(1-Control!$E41)*Prices!CC6","v":993.55308610336976},{"$f":"Control!$B41*(1-Control!$E41)*Prices!CD6","v":993.55308610336976},{"$f":"Control!$B41*(1-Control!$E41)*Prices!CE6","v":993.55308610336976},{"$f":"Control!$B41*(1-Control!$E41)*Prices!CF6","v":993.55308610336976},{"$f":"Control!$B41*(1-Control!$E41)*Prices!CG6","v":993.55308610336976},{"$f":"Control!$B41*(1-Control!$E41)*Prices!CH6","v":993.55308610336976},{"$f":"Control!$B41*(1-Control!$E41)*Prices!CI6","v":993.55308610336976},{"$f":"Control!$B41*(1-Control!$E41)*Prices!CJ6","v":993.55308610336976},{"$f":"Control!$B41*(1-Control!$E41)*Prices!CK6","v":993.55308610336976},{"$f":"Control!$B41*(1-Control!$E41)*Prices!CL6","v":993.55308610336976},{"$f":"Control!$B41*(1-Control!$E41)*Prices!CM6","v":993.55308610336976},{"$f":"Control!$B41*(1-Control!$E41)*Prices!CN6","v":993.55308610336976},{"$f":"Control!$B41*(1-Control!$E41)*Prices!CO6","v":993.55308610336976},{"$f":"Control!$B41*(1-Control!$E41)*Prices!CP6","v":993.55308610336976},{"$f":"Control!$B41*(1-Control!$E41)*Prices!CQ6","v":993.55308610336976},{"$f":"Control!$B41*(1-Control!$E41)*Prices!CR6","v":993.55308610336976},{"$f":"Control!$B41*(1-Control!$E41)*Prices!CS6","v":993.55308610336976},{"$f":"Control!$B41*(1-Control!$E41)*Prices!CT6","v":993.55308610336976},{"$f":"Control!$B41*(1-Control!$E41)*Prices!CU6","v":993.55308610336976},{"$f":"Control!$B41*(1-Control!$E41)*Prices!CV6","v":993.55308610336976},{"$f":"Control!$B41*(1-Control!$E41)*Prices!CW6","v":993.55308610336976},{"$f":"Control!$B41*(1-Control!$E41)*Prices!CX6","v":993.55308610336976},{"$f":"Control!$B41*(1-Control!$E41)*Prices!CY6","v":993.55308610336976},{"$f":"Control!$B41*(1-Control!$E41)*Prices!CZ6","v":993.55308610336976},{"$f":"Control!$B41*(1-Control!$E41)*Prices!DA6","v":993.55308610336976},{"$f":"Control!$B41*(1-Control!$E41)*Prices!DB6","v":993.55308610336976},{"$f":"Control!$B41*(1-Control!$E41)*Prices!DC6","v":993.55308610336976},{"$f":"Control!$B41*(1-Control!$E41)*Prices!DD6","v":993.55308610336976},{"$f":"Control!$B41*(1-Control!$E41)*Prices!DE6","v":993.55308610336976},{"$f":"Control!$B41*(1-Control!$E41)*Prices!DF6","v":993.55308610336976},{"$f":"Control!$B41*(1-Control!$E41)*Prices!DG6","v":993.55308610336976},{"$f":"Control!$B41*(1-Control!$E41)*Prices!DH6","v":993.55308610336976},{"$f":"Control!$B41*(1-Control!$E41)*Prices!DI6","v":993.55308610336976},{"$f":"Control!$B41*(1-Control!$E41)*Prices!DJ6","v":993.55308610336976},{"$f":"Control!$B41*(1-Control!$E41)*Prices!DK6","v":993.55308610336976},{"$f":"Control!$B41*(1-Control!$E41)*Prices!DL6","v":993.55308610336976},{"$f":"Control!$B41*(1-Control!$E41)*Prices!DM6","v":993.55308610336976},{"$f":"Control!$B41*(1-Control!$E41)*Prices!DN6","v":993.55308610336976},{"$f":"Control!$B41*(1-Control!$E41)*Prices!DO6","v":993.55308610336976},{"$f":"Control!$B41*(1-Control!$E41)*Prices!DP6","v":993.55308610336976},{"$f":"Control!$B41*(1-Control!$E41)*Prices!DQ6","v":993.55308610336976},{"$f":"Control!$B41*(1-Control!$E41)*Prices!DR6","v":993.55308610336976},{"$f":"Control!$B41*(1-Control!$E41)*Prices!DS6","v":993.55308610336976},{"$f":"Control!$B41*(1-Control!$E41)*Prices!DT6","v":993.55308610336976},{"$f":"Control!$B41*(1-Control!$E41)*Prices!DU6","v":993.55308610336976},{"$f":"Control!$B41*(1-Control!$E41)*Prices!DV6","v":993.55308610336976}]
["Ducted gas heating",{"$f":"Control!$B42*(1-Control!$E42)*Prices!AA3","v":1294.9186119665653},{"$f":"Control!$B42*(1-Control!$E42)*Prices!AB3","v":1372.226186819513},{"$f":"Control!$B42*(1-Control!$E42)*Prices!AC3","v":1293.9747151636889},{"$f":"Control!$B42*(1-Control!$E42)*Prices!AD3","v":1273.8892040736657},{"$f":"Control!$B42*(1-Control!$E42)*Prices!AE3","v":1233.2144918831018},{"$f":"Control!$B42*(1-Control!$E42)*Prices!AF3","v":1225.4176094761174},{"$f":"Control!$B42*(1-Control!$E42)*Prices!AG3","v":1252.5891615539197},{"$f":"Control!$B42*(1-Control!$E42)*Prices!AH3","v":1327.6801579249532},{"$f":"Control!$B42*(1-Control!$E42)*Prices!AI3","v":1393.6228567951302},{"$f":"Control!$B42*(1-Control!$E42)*Prices!AJ3","v":1431.4179259213997},{"$f":"Control!$B42*(1-Control!$E42)*Prices!AK3","v":1307.0750859076745},{"$f":"Control!$B42*(1-Control!$E42)*Prices!AL3","v":1286.7040582353866},{"$f":"Control!$B42*(1-Control!$E42)*Prices!AM3","v":1301.1183281340386},{"$f":"Control!$B42*(1-Control!$E42)*Prices!AN3","v":1328.1919239271851},{"$f":"Control!$B42*(1-Control!$E42)*Prices!AO3","v":1373.7554566367785},{"$f":"Control!$B42*(1-Control!$E42)*Prices!AP3","v":1396.9521522323264},{"$f":"Control!$B42*(1-Control!$E42)*Prices!AQ3","v":1440.9039622990388},{"$f":"Control!$B42*(1-Control!$E42)*Prices!AR3","v":1455.6168731375385},{"$f":"Control!$B42*(1-Control!$E42)*Prices!AS3","v":1469.584988334165},{"$f":"Control!$B42*(1-Control!$E42)*Prices!AT3","v":1464.6573730512976},{"$f":"Control!$B42*(1-Control!$E42)*Prices!AU3","v":1469.0734512379215},{"$f":"Control!$B42*(1-Control!$E42)*Prices!AV3","v":1505.8101248207547},{"$f":"Control!$B42*(1-Control!$E42)*Prices!AW3","v":1542.0970178669254},{"$f":"Control!$B42*(1-Control!$E42)*Prices!AX3","v":1559.411808949475},{"$f":"Control!$B42*(1-Control!$E42)*Prices!AY3","v":1575.6794009102027},{"$f":"Control!$B42*(1-Control!$E42)*Prices!AZ3","v":1596.1560387682578},{"$f":"Control!$B42*(1-Control!$E42)*Prices!BA3","v":1615.3130789938321},{"$f":"Control!$B42*(1-Control!$E42)*Prices!BB3","v":1632.367576072915},{"$f":"Control!$B42*(1-Control!$E42)*Prices!BC3","v":1649.8319125870044},{"$f":"Control!$B42*(1-Control!$E42)*Prices!BD3","v":1676.3565186564663},{"$f":"Control!$B42*(1-Control!$E42)*Prices!BE3","v":1699.6404247449775},{"$f":"Control!$B42*(1-Control!$E42)*Prices!BF3","v":1734.4764382006008},{"$f":"Control!$B42*(1-Control!$E42)*Prices!BG3","v":1763.9516840128417},{"$f":"Control!$B42*(1-Control!$E42)*Prices!BH3","v":1790.9159037915013},{"$f":"Control!$B42*(1-Control!$E42)*Prices!BI3","v":1819.4889328085062},{"$f":"Control!$B42*(1-Control!$E42)*Prices!BJ3","v":1724.7124909892432},{"$f":"Control!$B42*(1-Control!$E42)*Prices!BK3","v":1709.4049280575132},{"$f":"Control!$B42*(1-Control!$E42)*Prices!BL3","v":1735.0280661458135},{"$f":"Control!$B42*(1-Control!$E42)*Prices!BM3","v":1767.7473692982232},{"$f":"Control!$B42*(1-Control!$E42)*Prices!BN3","v":1798.7584230551483},{"$f":"Control!$B42*(1-Control!$E42)*Prices!BO3","v":1831.3507790002266},{"$f":"Control!$B42*(1-Control!$E42)*Prices!BP3","v":1867.6254773404542},{"$f":"Control!$B42*(1-Control!$E42)*Prices!BQ3","v":1908.4734030570653},{"$f":"Control!$B42*(1-Control!$E42)*Prices!BR3","v":1954.7293086996885},{"$f":"Control!$B42*(1-Control!$E42)*Prices!BS3","v":2007.6098281273075},{"$f":"Control!$B42*(1-Control!$E42)*Prices!BT3","v":2068.6279366248846},{"$f":"Control!$B42*(1-Control!$E42)*Prices!BU3","v":2139.1062805295296},{"$f":"Control!$B42*(1-Control!$E42)*Prices!BV3","v":2220.2744938018118},{"$f":"Control!$B42*(1-Control!$E42)*Prices!BW3","v":2313.628140211853},{"$f":"Control!$B42*(1-Control!$E42)*Prices!BX3","v":2421.4530861584676},{"$f":"Control!$B42*(1-Control!$E42)*Prices!BY3","v":2547.092528116063},{"$f":"Control!$B42*(1-Control!$E42)*Prices!BZ3","v":2695.2208991081329},{"$f":"Control!$B42*(1-Control!$E42)*Prices!CA3","v":2872.1340254523107},{"$f":"Control!$B42*(1-Control!$E42)*Prices!CB3","v":3046.1912822194786},{"$f":"Control!$B42*(1-Control!$E42)*Prices!CC3","v":3206.4034485699904},{"$f":"Control!$B42*(1-Control!$E42)*Prices!CD3","v":3369.9987493121462},{"$f":"Control!$B42*(1-Control!$E42)*Prices!CE3","v":3553.8921108642808},{"$f":"Control!$B42*(1-Control!$E42)*Prices!CF3","v":3772.9777487333013},{"$f":"Control!$B42*(1-Control!$E42)*Prices!CG3","v":4089.7032910122857},{"$f":"Control!$B42*(1-Control!$E42)*Prices!CH3","v":4557.5593124704901},{"$f":"Control!$B42*(1-Control!$E42)*Prices!CI3","v":5253.8762361042345},{"$f":"Control!$B42*(1-Control!$E42)*Prices!CJ3","v":1369.8813770604984},{"$f":"Control!$B42*(1-Control!$E42)*Prices!CK3","v":1370.567239129464},{"$f":"Control!$B42*(1-Control!$E42)*Prices!CL3","v":1371.2531011984295},{"$f":"Control!$B42*(1-Control!$E42)*Prices!CM3","v":1371.9389632673951},{"$f":"Control!$B42*(1-Control!$E42)*Prices!CN3","v":1372.6248253363608},{"$f":"Control!$B42*(1-Control!$E42)*Prices!CO3","v":1373.3106874053265},{"$f":"Control!$B42*(1-Control!$E42)*Prices!CP3","v":1373.9965494742921},{"$f":"Control!$B42*(1-Control!$E42)*Prices!CQ3","v":1374.6824115432578},{"$f":"Control!$B42*(1-Control!$E42)*Prices!CR3","v":1375.3682736122232},{"$f":"Control!$B42*(1-Control!$E42)*Prices!CS3","v":1376.0541356811889},{"$f":"Control!$B42*(1-Control!$E42)*Prices!CT3","v":1376.7399977501545},{"$f":"Control!$B42*(1-Control!$E42)*Prices!CU3","v":1377.4258598191202},{"$f":"Control!$B42*(1-Control!$E42)*Prices!CV3","v":1378.1117218880859},{"$f":"Control!$B42*(1-Control!$E42)*Prices!CW3","v":1378.7975839570515},{"$f":"Control!$B42*(1-Control!$E42)*Prices!CX3","v":1379.483446026017},{"$f":"Control!$B42*(1-Control!$E42)*Prices!CY3","v":1380.1693080949826},{"$f":"Control!$B42*(1-Control!$E42)*Prices!CZ3","v":1380.8551701639483},{"$f":"Control!$B42*(1-Control!$E42)*Prices!DA3","v":1381.5410322329139},{"$f":"Control!$B42*(1-Control!$E42)*Prices!DB3","v":1367.7639715265279},{"$f":"Control!$B42*(1-Control!$E42)*Prices!DC3","v":1367.7639715265279},{"$f":"Control!$B42*(1-Control!$E42)*Prices!DD3","v":1367.7639715265279},{"$f":"Control!$B42*(1-Control!$E42)*Prices!DE3","v":1367.7639715265279},{"$f":"Control!$B42*(1-Control!$E42)*Prices!DF3","v":1367.7639715265279},{"$f":"Control!$B42*(1-Control!$E42)*Prices!DG3","v":1367.7639715265279},{"$f":"Control!$B42*(1-Control!$E42)*Prices!DH3","v":1367.7639715265279},{"$f":"Control!$B42*(1-Control!$E42)*Prices!DI3","v":1367.7639715265279},{"$f":"Control!$B42*(1-Control!$E42)*Prices!DJ3","v":1367.7639715265279},{"$f":"Control!$B42*(1-Control!$E42)*Prices!DK3","v":1367.7639715265279},{"$f":"Control!$B42*(1-Control!$E42)*Prices!DL3","v":1367.7639715265279},{"$f":"Control!$B42*(1-Control!$E42)*Prices!DM3","v":1367.7639715265279},{"$f":"Control!$B42*(1-Control!$E42)*Prices!DN3","v":1367.7639715265279},{"$f":"Control!$B42*(1-Control!$E42)*Prices!DO3","v":1367.7639715265279},{"$f":"Control!$B42*(1-Control!$E42)*Prices!DP3","v":1367.7639715265279},{"$f":"Control!$B42*(1-Control!$E42)*Prices!DQ3","v":1367.7639715265279},{"$f":"Control!$B42*(1-Control!$E42)*Prices!DR3","v":1367.7639715265279},{"$f":"Control!$B42*(1-Control!$E42)*Prices!DS3","v":1367.7639715265279},{"$f":"Control!$B42*(1-Control!$E42)*Prices!DT3","v":1367.7639715265279},{"$f":"Control!$B42*(1-Control!$E42)*Prices!DU3","v":1367.7639715265279},{"$f":"Control!$B42*(1-Control!$E42)*Prices!DV3","v":1367.7639715265279}]
["Difference",{"$f":"B36-B35","v":161.64324053799396},{"$f":"C36-C35","v":114.74009527504677},38.898041754409633,56.048043007078149,11.963681257522694,11.123964379483368,62.450330095522531,81.65552393801886,149.72507269178368,111.47369169414014,20.02277386125229,6.7214686831450763,63.24268578544843,109.85032325820339,183.15340391783593,222.67378410336255,286.31769265683897,323.52814402315926,362.70609432143078,385.65617521434729,403.10403982003709,453.25099289044624,503.43249464956625,535.05380017707239,565.97101681765218,589.98901955991778,612.51739600579981,632.76289360056944,653.34893702338104,682.80343255309651,706.08733864160774,740.92335209723103,770.39859790947196,797.36281768813149,825.93584670513644,731.15940488587341,715.85184195414342,741.47498004244369,774.19428319485348,805.20533695177858,837.7976928968568,874.07239123708439,914.92031695369553,961.17622259631878,1014.0567420239378,1075.0748505215147,1145.5531944261597,1226.7214076984419,1320.0750541084831,1427.9000000550977,1553.5394420126931,1701.667813004763,1878.5809393489408,2052.6381961161087,2212.8503624666205,2376.4456632087763,2560.3390247609109,2779.4246626299314,3096.1502049089158,3564.0062263671202,4260.3231500008651,376.32829095712862,377.01415302609428,377.70001509505971,378.38587716402537,{"$f":"BO36-BO35","v":379.07173923299104},379.7576013019567,380.44346337092236,381.12932543988802,381.81518750885346,382.50104957781912,383.18691164678478,383.87277371575044,384.5586357847161,385.24449785368176,385.9303599226472,386.61622199161286,387.30208406057852,387.98794612954418,374.21088542315817,{"$f":"CD36-CD35","v":374.21088542315817},374.21088542315817,374.21088542315817,374.21088542315817,374.21088542315817,374.21088542315817,374.21088542315817,374.21088542315817,374.21088542315817,374.21088542315817,374.21088542315817,374.21088542315817,374.21088542315817,374.21088542315817,374.21088542315817,374.21088542315817,374.21088542315817,374.21088542315817,374.21088542315817,374.21088542315817]
["Gas service charge $",{"$f":"Prices!AA9*365.25","v":226.70481345999448},{"$f":"Prices!AB9*365.25","v":226.70481345999448},{"$f":"Prices!AC9*365.25","v":212.7145047058392},{"$f":"Prices!AD9*365.25","v":209.15257884749394},{"$f":"Prices!AE9*365.25","v":212.06145331331879},{"$f":"Prices!AF9*365.25","v":211.42374200425579},{"$f":"Prices!AG9*365.25","v":212.16499658322113},{"$f":"Prices!AH9*365.25","v":213.28199136332165},{"$f":"Prices!AI9*365.25","v":214.44792762561164},{"$f":"Prices!AJ9*365.25","v":212.32497514341472},{"$f":"Prices!AK9*365.25","v":209.2119822699845},{"$f":"Prices!AL9*365.25","v":206.58753767088888},{"$f":"Prices!AM9*365.25","v":208.9285278934484},{"$f":"Prices!AN9*365.25","v":210.02384767949965},{"$f":"Prices!AO9*365.25","v":212.68354614524904},{"$f":"Prices!AP9*365.25","v":213.15227158627843},{"$f":"Prices!AQ9*365.25","v":218.23230732490265},{"$f":"Prices!AR9*365.25","v":213.36955564395734},{"$f":"Prices!AS9*365.25","v":212.2254949452479},{"$f":"Prices!AT9*365.25","v":211.41098842177578},{"$f":"Prices!AU9*365.25","v":211.13568504576833},{"$f":"Prices!AV9*365.25","v":211.06752156272606},{"$f":"Prices!AW9*365.25","v":211.61784299243661},{"$f":"Prices!AX9*365.25","v":211.42588916748679},{"$f":"Prices!AY9*365.25","v":211.92299876349361},{"$f":"Prices!AZ9*365.25","v":212.97916612467884},{"$f":"Prices!BA9*365.25","v":214.40789778922547},{"$f":"Prices!BB9*365.25","v":215.61125994755523},{"$f":"Prices!BC9*365.25","v":217.97779884246552},{"$f":"Prices!BD9*365.25","v":220.34150968653546},{"$f":"Prices!BE9*365.25","v":223.48537244032667},{"$f":"Prices!BF9*365.25","v":225.94445400222125},{"$f":"Prices!BG9*365.25","v":229.97209990765509},{"$f":"Prices!BH9*365.25","v":233.21864666710863},{"$f":"Prices!BI9*365.25","v":236.73653722568491},{"$f":"Prices!BJ9*365.25","v":219.24763426951156},{"$f":"Prices!BK9*365.25","v":219.63219527231374},{"$f":"Prices!BL9*365.25","v":224.37345498699946},{"$f":"Prices!BM9*365.25","v":228.85826326307981},{"$f":"Prices!BN9*365.25","v":232.20417655785144},{"$f":"Prices!BO9*365.25","v":236.61748755489535},{"$f":"Prices!BP9*365.25","v":241.0046851105875},{"$f":"Prices!BQ9*365.25","v":245.81851341292506},{"$f":"Prices!BR9*365.25","v":250.67437997716132},{"$f":"Prices!BS9*365.25","v":256.96029958174694},{"$f":"Prices!BT9*365.25","v":263.47439848815839},{"$f":"Prices!BU9*365.25","v":270.66005507699646},{"$f":"Prices!BV9*365.25","v":278.04980681877601},{"$f":"Prices!BW9*365.25","v":286.91570954120846},{"$f":"Prices!BX9*365.25","v":295.99319590244443},{"$f":"Prices!BY9*365.25","v":305.78685441536589},{"$f":"Prices!BZ9*365.25","v":315.9466632371342},{"$f":"Prices!CA9*365.25","v":327.84453013175016},{"$f":"Prices!CB9*365.25","v":335.97258045759418},{"$f":"Prices!CC9*365.25","v":342.27626032776999},{"$f":"Prices!CD9*365.25","v":349.05989843850898},{"$f":"Prices!CE9*365.25","v":358.01099351356703},{"$f":"Prices!CF9*365.25","v":367.89800973469141},{"$f":"Prices!CG9*365.25","v":383.04678465123129},{"$f":"Prices!CH9*365.25","v":401.40281248916688},{"$f":"Prices!CI9*365.25","v":422.82944359911295},{"$f":"Prices!CJ9*365.25","v":158.03781345999451},{"$f":"Prices!CK9*365.25","v":158.03781345999451},{"$f":"Prices!CL9*365.25","v":157.606016155459},{"$f":"Prices!CM9*365.25","v":158.03781345999451},{"$f":"Prices!CN9*365.25","v":158.03781345999451},{"$f":"Prices!CO9*365.25","v":158.03781345999451},{"$f":"Prices!CP9*365.25","v":157.606016155459},{"$f":"Prices!CQ9*365.25","v":158.03781345999451},{"$f":"Prices!CR9*365.25","v":158.03781345999451},{"$f":"Prices!CS9*365.25","v":158.03781345999451},{"$f":"Prices!CT9*365.25","v":157.606016155459},{"$f":"Prices!CU9*365.25","v":158.03781345999451},{"$f":"Prices!CV9*365.25","v":158.03781345999451},{"$f":"Prices!CW9*365.25","v":158.03781345999451},{"$f":"Prices!CX9*365.25","v":157.606016155459},{"$f":"Prices!CY9*365.25","v":158.03781345999451},{"$f":"Prices!CZ9*365.25","v":158.03781345999451},{"$f":"Prices!DA9*365.25","v":158.03781345999451},{"$f":"Prices!DB9*365.25","v":158.03781345999451},{"$f":"Prices!DC9*365.25","v":158.03781345999451},{"$f":"Prices!DD9*365.25","v":158.03781345999451},{"$f":"Prices!DE9*365.25","v":158.03781345999451},{"$f":"Prices!DF9*365.25","v":158.03781345999451},{"$f":"Prices!DG9*365.25","v":158.03781345999451},{"$f":"Prices!DH9*365.25","v":158.03781345999451},{"$f":"Prices!DI9*365.25","v":158.03781345999451},{"$f":"Prices!DJ9*365.25","v":158.03781345999451},{"$f":"Prices!DK9*365.25","v":158.03781345999451},{"$f":"Prices!DL9*365.25","v":158.03781345999451},{"$f":"Prices!DM9*365.25","v":158.03781345999451},{"$f":"Prices!DN9*365.25","v":158.03781345999451},{"$f":"Prices!DO9*365.25","v":158.03781345999451},{"$f":"Prices!DP9*365.25","v":158.03781345999451},{"$f":"Prices!DQ9*365.25","v":158.03781345999451},{"$f":"Prices!DR9*365.25","v":158.03781345999451},{"$f":"Prices!DS9*365.25","v":158.03781345999451},{"$f":"Prices!DT9*365.25","v":158.03781345999451},{"$f":"Prices!DU9*365.25","v":158.03781345999451},{"$f":"Prices!DV9*365.25","v":158.03781345999451}]
["Electricity service charge $",{"$f":"Prices!AA11*365.25","v":0},{"$f":"Prices!AB11*365.25","v":0},{"$f":"Prices!AC11*365.25","v":0},{"$f":"Prices!AD11*365.25","v":0},{"$f":"Prices!AE11*365.25","v":0},{"$f":"Prices!AF11*365.25","v":0},{"$f":"Prices!AG11*365.25","v":0},{"$f":"Prices!AH11*365.25","v":0},{"$f":"Prices!AI11*365.25","v":0},{"$f":"Prices!AJ11*365.25","v":0},{"$f":"Prices!AK11*365.25","v":0},{"$f":"Prices!AL11*365.25","v":0},{"$f":"Prices!AM11*365.25","v":0},{"$f":"Prices!AN11*365.25","v":0},{"$f":"Prices!AO11*365.25","v":0},{"$f":"Prices!AP11*365.25","v":0},{"$f":"Prices!AQ11*365.25","v":0},{"$f":"Prices!AR11*365.25","v":0},{"$f":"Prices!AS11*365.25","v":0},{"$f":"Prices!AT11*365.25","v":0},{"$f":"Prices!AU11*365.25","v":0},{"$f":"Prices!AV11*365.25","v":0},{"$f":"Prices!AW11*365.25","v":0},{"$f":"Prices!AX11*365.25","v":0},{"$f":"Prices!AY11*365.25","v":0},{"$f":"Prices!AZ11*365.25","v":0},{"$f":"Prices!BA11*365.25","v":0},{"$f":"Prices!BB11*365.25","v":0},{"$f":"Prices!BC11*365.25","v":0},{"$f":"Prices!BD11*365.25","v":0},{"$f":"Prices!BE11*365.25","v":0},{"$f":"Prices!BF11*365.25","v":0},{"$f":"Prices!BG11*365.25","v":0},{"$f":"Prices!BH11*365.25","v":0},{"$f":"Prices!BI11*365.25","v":0},{"$f":"Prices!BJ11*365.25","v":0},{"$f":"Prices!BK11*365.25","v":0},{"$f":"Prices!BL11*365.25","v":0},{"$f":"Prices!BM11*365.25","v":0},{"$f":"Prices!BN11*365.25","v":0},{"$f":"Prices!BO11*365.25","v":0},{"$f":"Prices!BP11*365.25","v":0},{"$f":"Prices!BQ11*365.25","v":0},{"$f":"Prices!BR11*365.25","v":0},{"$f":"Prices!BS11*365.25","v":0},{"$f":"Prices!BT11*365.25","v":0},{"$f":"Prices!BU11*365.25","v":0},{"$f":"Prices!BV11*365.25","v":0},{"$f":"Prices!BW11*365.25","v":0},{"$f":"Prices!BX11*365.25","v":0},{"$f":"Prices!BY11*365.25","v":0},{"$f":"Prices!BZ11*365.25","v":0},{"$f":"Prices!CA11*365.25","v":0},{"$f":"Prices!CB11*365.25","v":0},{"$f":"Prices!CC11*365.25","v":0},{"$f":"Prices!CD11*365.25","v":0},{"$f":"Prices!CE11*365.25","v":0},{"$f":"Prices!CF11*365.25","v":0},{"$f":"Prices!CG11*365.25","v":0},{"$f":"Prices!CH11*365.25","v":0},{"$f":"Prices!CI11*365.25","v":0},{"$f":"Prices!CJ11*365.25","v":0},{"$f":"Prices!CK11*365.25","v":0},{"$f":"Prices!CL11*365.25","v":0},{"$f":"Prices!CM11*365.25","v":0},{"$f":"Prices!CN11*365.25","v":0},{"$f":"Prices!CO11*365.25","v":0},{"$f":"Prices!CP11*365.25","v":0},{"$f":"Prices!CQ11*365.25","v":0},{"$f":"Prices!CR11*365.25","v":0},{"$f":"Prices!CS11*365.25","v":0},{"$f":"Prices!CT11*365.25","v":0},{"$f":"Prices!CU11*365.25","v":0},{"$f":"Prices!CV11*365.25","v":0},{"$f":"Prices!CW11*365.25","v":0},{"$f":"Prices!CX11*365.25","v":0},{"$f":"Prices!CY11*365.25","v":0},{"$f":"Prices!CZ11*365.25","v":0},{"$f":"Prices!DA11*365.25","v":0},{"$f":"Prices!DB11*365.25","v":0},{"$f":"Prices!DC11*365.25","v":0},{"$f":"Prices!DD11*365.25","v":0},{"$f":"Prices!DE11*365.25","v":0},{"$f":"Prices!DF11*365.25","v":0},{"$f":"Prices!DG11*365.25","v":0},{"$f":"Prices!DH11*365.25","v":0},{"$f":"Prices!DI11*365.25","v":0},{"$f":"Prices!DJ11*365.25","v":0},{"$f":"Prices!DK11*365.25","v":0},{"$f":"Prices!DL11*365.25","v":0},{"$f":"Prices!DM11*365.25","v":0},{"$f":"Prices!DN11*365.25","v":0},{"$f":"Prices!DO11*365.25","v":0},{"$f":"Prices!DP11*365.25","v":0},{"$f":"Prices!DQ11*365.25","v":0},{"$f":"Prices!DR11*365.25","v":0},{"$f":"Prices!DS11*365.25","v":0},{"$f":"Prices!DT11*365.25","v":0},{"$f":"Prices!DU11*365.25","v":0},{"$f":"Prices!DV11*365.25","v":0}]
[]
["Commercial","Running costs"]
["Cooking",2021,{"$f":"B42+1","v":2022},{"$f":"C42+1","v":2023},{"$f":"D42+1","v":2024},{"$f":"E42+1","v":2025},{"$f":"F42+1","v":2026},{"$f":"G42+1","v":2027},{"$f":"H42+1","v":2028},{"$f":"I42+1","v":2029},{"$f":"J42+1","v":2030},{"$f":"K42+1","v":2031},{"$f":"L42+1","v":2032},{"$f":"M42+1","v":2033},{"$f":"N42+1","v":2034},{"$f":"O42+1","v":2035},{"$f":"P42+1","v":2036},{"$f":"Q42+1","v":2037},{"$f":"R42+1","v":2038},{"$f":"S42+1","v":2039},{"$f":"T42+1","v":2040},{"$f":"U42+1","v":2041},{"$f":"V42+1","v":2042},{"$f":"W42+1","v":2043},{"$f":"X42+1","v":2044},{"$f":"Y42+1","v":2045},{"$f":"Z42+1","v":2046},{"$f":"AA42+1","v":2047},{"$f":"AB42+1","v":2048},{"$f":"AC42+1","v":2049},{"$f":"AD42+1","v":2050},{"$f":"AE42+1","v":2051},{"$f":"AF42+1","v":2052},{"$f":"AG42+1","v":2053},{"$f":"AH42+1","v":2054},{"$f":"AI42+1","v":2055},{"$f":"AJ42+1","v":2056},{"$f":"AK42+1","v":2057},{"$f":"AL42+1","v":2058},{"$f":"AM42+1","v":2059},{"$f":"AN42+1","v":2060},{"$f":"AO42+1","v":2061},{"$f":"AP42+1","v":2062},{"$f":"AQ42+1","v":2063},{"$f":"AR42+1","v":2064},{"$f":"AS42+1","v":2065},{"$f":"AT42+1","v":2066},{"$f":"AU42+1","v":2067},{"$f":"AV42+1","v":2068},{"$f":"AW42+1","v":2069},{"$f":"AX42+1","v":2070},{"$f":"AY42+1","v":2071},{"$f":"AZ42+1","v":2072},{"$f":"BA42+1","v":2073},{"$f":"BB42+1","v":2074},{"$f":"BC42+1","v":2075},{"$f":"BD42+1","v":2076},{"$f":"BE42+1","v":2077},{"$f":"BF42+1","v":2078},{"$f":"BG42+1","v":2079},{"$f":"BH42+1","v":2080},{"$f":"BI42+1","v":2081},{"$f":"BJ42+1","v":2082},{"$f":"BK42+1","v":2083},{"$f":"BL42+1","v":2084},{"$f":"BM42+1","v":2085},{"$f":"BN42+1","v":2086},{"$f":"BO42+1","v":2087},{"$f":"BP42+1","v":2088},{"$f":"BQ42+1","v":2089},{"$f":"BR42+1","v":2090},{"$f":"BS42+1","v":2091},{"$f":"BT42+1","v":2092},{"$f":"BU42+1","v":2093},{"$f":"BV42+1","v":2094},{"$f":"BW42+1","v":2095},{"$f":"BX42+1","v":2096},{"$f":"BY42+1","v":2097},{"$f":"BZ42+1","v":2098},{"$f":"CA42+1","v":2099},{"$f":"CB42+1","v":2100},{"$f":"CC42+1","v":2101},{"$f":"CD42+1","v":2102},{"$f":"CE42+1","v":2103},{"$f":"CF42+1","v":2104},{"$f":"CG42+1","v":2105},{"$f":"CH42+1","v":2106},{"$f":"CI42+1","v":2107},{"$f":"CJ42+1","v":2108},{"$f":"CK42+1","v":2109},{"$f":"CL42+1","v":2110},{"$f":"CM42+1","v":2111},{"$f":"CN42+1","v":2112},{"$f":"CO42+1","v":2113},{"$f":"CP42+1","v":2114},{"$f":"CQ42+1","v":2115},{"$f":"CR42+1","v":2116},{"$f":"CS42+1","v":2117},{"$f":"CT42+1","v":2118},{"$f":"CU42+1","v":2119},{"$f":"CV42+1","v":2120}]
["Electric cooktop (induction)",{"$f":"Control!$B29*(1-Control!$E29)*Prices!AA7","v":19.75504023605156},{"$f":"Control!$B29*(1-Control!$E29)*Prices!AB7","v":20.742258308260272},{"$f":"Control!$B29*(1-Control!$E29)*Prices!AC7","v":20.62211778317873},{"$f":"Control!$B29*(1-Control!$E29)*Prices!AD7","v":19.863092248538234},{"$f":"Control!$B29*(1-Control!$E29)*Prices!AE7","v":19.937863497320716},{"$f":"Control!$B29*(1-Control!$E29)*Prices!AF7","v":19.695826840300217},{"$f":"Control!$B29*(1-Control!$E29)*Prices!AG7","v":19.240954508958193},{"$f":"Control!$B29*(1-Control!$E29)*Prices!AH7","v":20.321544342073626},{"$f":"Control!$B29*(1-Control!$E29)*Prices!AI7","v":20.238039039214971},{"$f":"Control!$B29*(1-Control!$E29)*Prices!AJ7","v":21.663157006551593},{"$f":"Control!$B29*(1-Control!$E29)*Prices!AK7","v":21.164540525399342},{"$f":"Control!$B29*(1-Control!$E29)*Prices!AL7","v":21.094829174493626},{"$f":"Control!$B29*(1-Control!$E29)*Prices!AM7","v":20.474853498915557},{"$f":"Control!$B29*(1-Control!$E29)*Prices!AN7","v":20.287631910994008},{"$f":"Control!$B29*(1-Control!$E29)*Prices!AO7","v":19.801271575945272},{"$f":"Control!$B29*(1-Control!$E29)*Prices!AP7","v":19.599526494311601},{"$f":"Control!$B29*(1-Control!$E29)*Prices!AQ7","v":19.332599257726301},{"$f":"Control!$B29*(1-Control!$E29)*Prices!AR7","v":19.012929997688406},{"$f":"Control!$B29*(1-Control!$E29)*Prices!AS7","v":18.640971507923371},{"$f":"Control!$B29*(1-Control!$E29)*Prices!AT7","v":18.21806003830552},{"$f":"Control!$B29*(1-Control!$E29)*Prices!AU7","v":17.950111284765985},{"$f":"Control!$B29*(1-Control!$E29)*Prices!AV7","v":17.674979575036048},{"$f":"Control!$B29*(1-Control!$E29)*Prices!AW7","v":17.390426411798018},{"$f":"Control!$B29*(1-Control!$E29)*Prices!AX7","v":17.097792143674205},{"$f":"Control!$B29*(1-Control!$E29)*Prices!AY7","v":16.798538645178226},{"$f":"Control!$B29*(1-Control!$E29)*Prices!AZ7","v":16.712395150965303},{"$f":"Control!$B29*(1-Control!$E29)*Prices!BA7","v":16.631194365465443},{"$f":"Control!$B29*(1-Control!$E29)*Prices!BB7","v":16.555100054317535},{"$f":"Control!$B29*(1-Control!$E29)*Prices!BC7","v":16.48177567536856},{"$f":"Control!$B29*(1-Control!$E29)*Prices!BD7","v":16.413707029391894},{"$f":"Control!$B29*(1-Control!$E29)*Prices!BE7","v":16.413707029391894},{"$f":"Control!$B29*(1-Control!$E29)*Prices!BF7","v":16.413707029391894},{"$f":"Control!$B29*(1-Control!$E29)*Prices!BG7","v":16.413707029391894},{"$f":"Control!$B29*(1-Control!$E29)*Prices!BH7","v":16.413707029391894},{"$f":"Control!$B29*(1-Control!$E29)*Prices!BI7","v":16.413707029391894},{"$f":"Control!$B29*(1-Control!$E29)*Prices!BJ7","v":16.413707029391894},{"$f":"Control!$B29*(1-Control!$E29)*Prices!BK7","v":16.413707029391894},{"$f":"Control!$B29*(1-Control!$E29)*Prices!BL7","v":16.413707029391894},{"$f":"Control!$B29*(1-Control!$E29)*Prices!BM7","v":16.413707029391894},{"$f":"Control!$B29*(1-Control!$E29)*Prices!BN7","v":16.413707029391894},{"$f":"Control!$B29*(1-Control!$E29)*Prices!BO7","v":16.413707029391894},{"$f":"Control!$B29*(1-Control!$E29)*Prices!BP7","v":16.413707029391894},{"$f":"Control!$B29*(1-Control!$E29)*Prices!BQ7","v":16.413707029391894},{"$f":"Control!$B29*(1-Control!$E29)*Prices!BR7","v":16.413707029391894},{"$f":"Control!$B29*(1-Control!$E29)*Prices!BS7","v":16.413707029391894},{"$f":"Control!$B29*(1-Control!$E29)*Prices!BT7","v":16.413707029391894},{"$f":"Control!$B29*(1-Control!$E29)*Prices!BU7","v":16.413707029391894},{"$f":"Control!$B29*(1-Control!$E29)*Prices!BV7","v":16.413707029391894},{"$f":"Control!$B29*(1-Control!$E29)*Prices!BW7","v":16.413707029391894},{"$f":"Control!$B29*(1-Control!$E29)*Prices!BX7","v":16.413707029391894},{"$f":"Control!$B29*(1-Control!$E29)*Prices!BY7","v":16.413707029391894},{"$f":"Control!$B29*(1-Control!$E29)*Prices!BZ7","v":16.413707029391894},{"$f":"Control!$B29*(1-Control!$E29)*Prices!CA7","v":16.413707029391894},{"$f":"Control!$B29*(1-Control!$E29)*Prices!CB7","v":16.413707029391894},{"$f":"Control!$B29*(1-Control!$E29)*Prices!CC7","v":16.413707029391894},{"$f":"Control!$B29*(1-Control!$E29)*Prices!CD7","v":16.413707029391894},{"$f":"Control!$B29*(1-Control!$E29)*Prices!CE7","v":16.413707029391894},{"$f":"Control!$B29*(1-Control!$E29)*Prices!CF7","v":16.413707029391894},{"$f":"Control!$B29*(1-Control!$E29)*Prices!CG7","v":16.413707029391894},{"$f":"Control!$B29*(1-Control!$E29)*Prices!CH7","v":16.413707029391894},{"$f":"Control!$B29*(1-Control!$E29)*Prices!CI7","v":16.413707029391894},{"$f":"Control!$B29*(1-Control!$E29)*Prices!CJ7","v":16.413707029391894},{"$f":"Control!$B29*(1-Control!$E29)*Prices!CK7","v":16.413707029391894},{"$f":"Control!$B29*(1-Control!$E29)*Prices!CL7","v":16.413707029391894},{"$f":"Control!$B29*(1-Control!$E29)*Prices!CM7","v":16.413707029391894},{"$f":"Control!$B29*(1-Control!$E29)*Prices!CN7","v":16.413707029391894},{"$f":"Control!$B29*(1-Control!$E29)*Prices!CO7","v":16.413707029391894},{"$f":"Control!$B29*(1-Control!$E29)*Prices!CP7","v":16.413707029391894},{"$f":"Control!$B29*(1-Control!$E29)*Prices!CQ7","v":16.413707029391894},{"$f":"Control!$B29*(1-Control!$E29)*Prices!CR7","v":16.413707029391894},{"$f":"Control!$B29*(1-Control!$E29)*Prices!CS7","v":16.413707029391894},{"$f":"Control!$B29*(1-Control!$E29)*Prices!CT7","v":16.413707029391894},{"$f":"Control!$B29*(1-Control!$E29)*Prices!CU7","v":16.413707029391894},{"$f":"Control!$B29*(1-Control!$E29)*Prices!CV7","v":16.413707029391894},{"$f":"Control!$B29*(1-Control!$E29)*Prices!CW7","v":16.413707029391894},{"$f":"Control!$B29*(1-Control!$E29)*Prices!CX7","v":16.413707029391894},{"$f":"Control!$B29*(1-Control!$E29)*Prices!CY7","v":16.413707029391894},{"$f":"Control!$B29*(1-Control!$E29)*Prices!CZ7","v":16.413707029391894},{"$f":"Control!$B29*(1-Control!$E29)*Prices!DA7","v":16.413707029391894},{"$f":"Control!$B29*(1-Control!$E29)*Prices!DB7","v":16.413707029391894},{"$f":"Control!$B29*(1-Control!$E29)*Prices!DC7","v":16.413707029391894},{"$f":"Control!$B29*(1-Control!$E29)*Prices!DD7","v":16.413707029391894},{"$f":"Control!$B29*(1-Control!$E29)*Prices!DE7","v":16.413707029391894},{"$f":"Control!$B29*(1-Control!$E29)*Prices!DF7","v":16.413707029391894},{"$f":"Control!$B29*(1-Control!$E29)*Prices!DG7","v":16.413707029391894},{"$f":"Control!$B29*(1-Control!$E29)*Prices!DH7","v":16.413707029391894},{"$f":"Control!$B29*(1-Control!$E29)*Prices!DI7","v":16.413707029391894},{"$f":"Control!$B29*(1-Control!$E29)*Prices!DJ7","v":16.413707029391894},{"$f":"Control!$B29*(1-Control!$E29)*Prices!DK7","v":16.413707029391894},{"$f":"Control!$B29*(1-Control!$E29)*Prices!DL7","v":16.413707029391894},{"$f":"Control!$B29*(1-Control!$E29)*Prices!DM7","v":16.413707029391894},{"$f":"Control!$B29*(1-Control!$E29)*Prices!DN7","v":16.413707029391894},{"$f":"Control!$B29*(1-Control!$E29)*Prices!DO7","v":16.413707029391894},{"$f":"Control!$B29*(1-Control!$E29)*Prices!DP7","v":16.413707029391894},{"$f":"Control!$B29*(1-Control!$E29)*Prices!DQ7","v":16.413707029391894},{"$f":"Control!$B29*(1-Control!$E29)*Prices!DR7","v":16.413707029391894},{"$f":"Control!$B29*(1-Control!$E29)*Prices!DS7","v":16.413707029391894},{"$f":"Control!$B29*(1-Control!$E29)*Prices!DT7","v":16.413707029391894},{"$f":"Control!$B29*(1-Control!$E29)*Prices!DU7","v":16.413707029391894},{"$f":"Control!$B29*(1-Control!$E29)*Prices!DV7","v":16.413707029391894}]
["Gas stove",{"$f":"Control!$B30*(1-Control!$E30)*Prices!AA4","v":18.723319802830936},{"$f":"Control!$B30*(1-Control!$E30)*Prices!AB4","v":20.484588522858314},{"$f":"Control!$B30*(1-Control!$E30)*Prices!AC4","v":19.756117154187901},{"$f":"Control!$B30*(1-Control!$E30)*Prices!AD4","v":19.788618900024158},{"$f":"Control!$B30*(1-Control!$E30)*Prices!AE4","v":19.15869759209572},{"$f":"Control!$B30*(1-Control!$E30)*Prices!AF4","v":19.115612989194346},{"$f":"Control!$B30*(1-Control!$E30)*Prices!AG4","v":19.608357406579838},{"$f":"Control!$B30*(1-Control!$E30)*Prices!AH4","v":20.963233964361365},{"$f":"Control!$B30*(1-Control!$E30)*Prices!AI4","v":22.188988182786797},{"$f":"Control!$B30*(1-Control!$E30)*Prices!AJ4","v":23.123621035343071},{"$f":"Control!$B30*(1-Control!$E30)*Prices!AK4","v":21.311884692829253},{"$f":"Control!$B30*(1-Control!$E30)*Prices!AL4","v":21.228703018659253},{"$f":"Control!$B30*(1-Control!$E30)*Prices!AM4","v":21.653066713655299},{"$f":"Control!$B30*(1-Control!$E30)*Prices!AN4","v":22.355017803794674},{"$f":"Control!$B30*(1-Control!$E30)*Prices!AO4","v":19.583026892377202},{"$f":"Control!$B30*(1-Control!$E30)*Prices!AP4","v":19.782164250087863},{"$f":"Control!$B30*(1-Control!$E30)*Prices!AQ4","v":20.102694138783715},{"$f":"Control!$B30*(1-Control!$E30)*Prices!AR4","v":20.624138809121455},{"$f":"Control!$B30*(1-Control!$E30)*Prices!AS4","v":20.916444056822833},{"$f":"Control!$B30*(1-Control!$E30)*Prices!AT4","v":20.818831189105801},{"$f":"Control!$B30*(1-Control!$E30)*Prices!AU4","v":20.959704618881606},{"$f":"Control!$B30*(1-Control!$E30)*Prices!AV4","v":21.589449993319338},{"$f":"Control!$B30*(1-Control!$E30)*Prices!AW4","v":22.072489033528075},{"$f":"Control!$B30*(1-Control!$E30)*Prices!AX4","v":22.250225746392204},{"$f":"Control!$B30*(1-Control!$E30)*Prices!AY4","v":22.476275732601597},{"$f":"Control!$B30*(1-Control!$E30)*Prices!AZ4","v":22.688266306348005},{"$f":"Control!$B30*(1-Control!$E30)*Prices!BA4","v":22.827277110480857},{"$f":"Control!$B30*(1-Control!$E30)*Prices!BB4","v":22.912976847086551},{"$f":"Control!$B30*(1-Control!$E30)*Prices!BC4","v":22.977405131057491},{"$f":"Control!$B30*(1-Control!$E30)*Prices!BD4","v":23.149127449763249},{"$f":"Control!$B30*(1-Control!$E30)*Prices!BE4","v":23.155802440470655},{"$f":"Control!$B30*(1-Control!$E30)*Prices!BF4","v":23.386581666756491},{"$f":"Control!$B30*(1-Control!$E30)*Prices!BG4","v":23.397659019288},{"$f":"Control!$B30*(1-Control!$E30)*Prices!BH4","v":23.408737294466977},{"$f":"Control!$B30*(1-Control!$E30)*Prices!BI4","v":23.419816491370774},{"$f":"Control!$B30*(1-Control!$E30)*Prices!BJ4","v":23.430896609077664},{"$f":"Control!$B30*(1-Control!$E30)*Prices!BK4","v":23.44197764666686},{"$f":"Control!$B30*(1-Control!$E30)*Prices!BL4","v":23.453059603218453},{"$f":"Control!$B30*(1-Control!$E30)*Prices!BM4","v":23.464142477813507},{"$f":"Control!$B30*(1-Control!$E30)*Prices!BN4","v":23.475226269533952},{"$f":"Control!$B30*(1-Control!$E30)*Prices!BO4","v":23.48631097746269},{"$f":"Control!$B30*(1-Control!$E30)*Prices!BP4","v":23.497396600683487},{"$f":"Control!$B30*(1-Control!$E30)*Prices!BQ4","v":23.508483138281075},{"$f":"Control!$B30*(1-Control!$E30)*Prices!BR4","v":23.519570589341054},{"$f":"Control!$B30*(1-Control!$E30)*Prices!BS4","v":23.530658952949981},{"$f":"Control!$B30*(1-Control!$E30)*Prices!BT4","v":23.541748228195296},{"$f":"Control!$B30*(1-Control!$E30)*Prices!BU4","v":23.552838414165368},{"$f":"Control!$B30*(1-Control!$E30)*Prices!BV4","v":23.563929509949467},{"$f":"Control!$B30*(1-Control!$E30)*Prices!BW4","v":23.575021514637786},{"$f":"Control!$B30*(1-Control!$E30)*Prices!BX4","v":23.586114427321409},{"$f":"Control!$B30*(1-Control!$E30)*Prices!BY4","v":23.597208247092357},{"$f":"Control!$B30*(1-Control!$E30)*Prices!BZ4","v":23.608302973043529},{"$f":"Control!$B30*(1-Control!$E30)*Prices!CA4","v":23.619398604268756},{"$f":"Control!$B30*(1-Control!$E30)*Prices!CB4","v":23.630495139862745},{"$f":"Control!$B30*(1-Control!$E30)*Prices!CC4","v":23.641592578921152},{"$f":"Control!$B30*(1-Control!$E30)*Prices!CD4","v":23.652690920540497},{"$f":"Control!$B30*(1-Control!$E30)*Prices!CE4","v":23.663790163818224},{"$f":"Control!$B30*(1-Control!$E30)*Prices!CF4","v":23.674890307852667},{"$f":"Control!$B30*(1-Control!$E30)*Prices!CG4","v":23.685991351743088},{"$f":"Control!$B30*(1-Control!$E30)*Prices!CH4","v":23.697093294589603},{"$f":"Control!$B30*(1-Control!$E30)*Prices!CI4","v":23.708196135493285},{"$f":"Control!$B30*(1-Control!$E30)*Prices!CJ4","v":23.719299873556054},{"$f":"Control!$B30*(1-Control!$E30)*Prices!CK4","v":23.73040450788077},{"$f":"Control!$B30*(1-Control!$E30)*Prices!CL4","v":23.74151003757115},{"$f":"Control!$B30*(1-Control!$E30)*Prices!CM4","v":23.752616461731851},{"$f":"Control!$B30*(1-Control!$E30)*Prices!CN4","v":23.763723779468378},{"$f":"Control!$B30*(1-Control!$E30)*Prices!CO4","v":23.774831989887179},{"$f":"Control!$B30*(1-Control!$E30)*Prices!CP4","v":23.785941092095552},{"$f":"Control!$B30*(1-Control!$E30)*Prices!CQ4","v":23.79705108520173},{"$f":"Control!$B30*(1-Control!$E30)*Prices!CR4","v":23.808161968314788},{"$f":"Control!$B30*(1-Control!$E30)*Prices!CS4","v":23.819273740544741},{"$f":"Control!$B30*(1-Control!$E30)*Prices!CT4","v":23.83038640100246},{"$f":"Control!$B30*(1-Control!$E30)*Prices!CU4","v":23.841499948799729},{"$f":"Control!$B30*(1-Control!$E30)*Prices!CV4","v":23.852614383049193},{"$f":"Control!$B30*(1-Control!$E30)*Prices!CW4","v":23.863729702864415},{"$f":"Control!$B30*(1-Control!$E30)*Prices!CX4","v":23.874845907359809},{"$f":"Control!$B30*(1-Control!$E30)*Prices!CY4","v":23.885962995650718},{"$f":"Control!$B30*(1-Control!$E30)*Prices!CZ4","v":23.897080966853331},{"$f":"Control!$B30*(1-Control!$E30)*Prices!DA4","v":23.908199820084747},{"$f":"Control!$B30*(1-Control!$E30)*Prices!DB4","v":23.919319554462927},{"$f":"Control!$B30*(1-Control!$E30)*Prices!DC4","v":23.919319554462927},{"$f":"Control!$B30*(1-Control!$E30)*Prices!DD4","v":23.919319554462927},{"$f":"Control!$B30*(1-Control!$E30)*Prices!DE4","v":23.919319554462927},{"$f":"Control!$B30*(1-Control!$E30)*Prices!DF4","v":23.919319554462927},{"$f":"Control!$B30*(1-Control!$E30)*Prices!DG4","v":23.919319554462927},{"$f":"Control!$B30*(1-Control!$E30)*Prices!DH4","v":23.919319554462927},{"$f":"Control!$B30*(1-Control!$E30)*Prices!DI4","v":23.919319554462927},{"$f":"Control!$B30*(1-Control!$E30)*Prices!DJ4","v":23.919319554462927},{"$f":"Control!$B30*(1-Control!$E30)*Prices!DK4","v":23.919319554462927},{"$f":"Control!$B30*(1-Control!$E30)*Prices!DL4","v":23.919319554462927},{"$f":"Control!$B30*(1-Control!$E30)*Prices!DM4","v":23.919319554462927},{"$f":"Control!$B30*(1-Control!$E30)*Prices!DN4","v":23.919319554462927},{"$f":"Control!$B30*(1-Control!$E30)*Prices!DO4","v":23.919319554462927},{"$f":"Control!$B30*(1-Control!$E30)*Prices!DP4","v":23.919319554462927},{"$f":"Control!$B30*(1-Control!$E30)*Prices!DQ4","v":23.919319554462927},{"$f":"Control!$B30*(1-Control!$E30)*Prices!DR4","v":23.919319554462927},{"$f":"Control!$B30*(1-Control!$E30)*Prices!DS4","v":23.919319554462927},{"$f":"Control!$B30*(1-Control!$E30)*Prices!DT4","v":23.919319554462927},{"$f":"Control!$B30*(1-Control!$E30)*Prices!DU4","v":23.919319554462927},{"$f":"Control!$B30*(1-Control!$E30)*Prices!DV4","v":23.919319554462927}]
["Difference",{"$f":"B44-B43","v":-1.0317204332206238},{"$f":"C44-C43","v":-0.25766978540195851},-0.86600062899082886,-7.447334851407561E-2,-0.77916590522499618,-0.58021385110587076,0.3674028976216448,0.64168962228773907,1.950949143571826,1.4604640287914776,0.1473441674299103,0.13387384416562753,1.1782132147397419,2.0673858928006652,-0.21824468356807003,0.18263775577626262,0.77009488105741397,1.6112088114330483,2.2754725488994616,2.6007711508002807,3.0095933341156211,3.9144704182832903,4.6820626217300578,5.1524336027179984,5.6777370874233704,5.975871155382702,6.1960827450154135,6.3578767927690159,6.4956294556889311,6.735420420371355,6.7420954110787612,6.9728746373645976,6.9839519898961058,6.9950302650750835,7.0061094619788804,7.0171895796857697,7.0282706172749663,7.0393525738265588,7.050435448421613,7.0615192401420579,7.0726039480707961,7.0836895712915933,7.0947761088891816,7.1058635599491602,7.1169519235580871,7.1280411988034018,7.1391313847734743,7.1502224805575736,7.1613144852458923,7.1724073979295149,7.1835012177004636,7.1945959436516347,7.2056915748768624,7.2167881104708513,7.2278855495292582,7.2389838911486031,7.2500831344263297,7.2611832784607735,7.2722843223511937,7.2833862651977093,7.2944891061013912,7.3055928441641598,7.3166974784888765,7.3278030081792558,7.3389094323399569,{"$f":"BO44-BO43","v":7.3500167500764846},7.3611249604952853,7.372234062703658,7.383344055809836,7.3944549389228946,7.4055667111528471,7.4166793716105666,7.4277929194078354,7.4389073536572994,7.450022673472521,7.4611388779679153,7.4722559662588246,7.4833739374614368,7.4944927906928527,7.505612525071033,{"$f":"CD44-CD43","v":7.505612525071033},7.505612525071033,7.505612525071033,7.505612525071033,7.505612525071033,7.505612525071033,7.505612525071033,7.505612525071033,7.505612525071033,7.505612525071033,7.505612525071033,7.505612525071033,7.505612525071033,7.505612525071033,7.505612525071033,7.505612525071033,7.505612525071033,7.505612525071033,7.505612525071033,7.505612525071033]
["Hot water"]
["Heat pump hot water",{"$f":"Control!$B33*(1-Control!$E33)*Prices!AA7","v":326.03967381330403},{"$f":"Control!$B33*(1-Control!$E33)*Prices!AB7","v":342.33284529761886},{"$f":"Control!$B33*(1-Control!$E33)*Prices!AC7","v":340.35003093018156},{"$f":"Control!$B33*(1-Control!$E33)*Prices!AD7","v":327.82297784534211},{"$f":"Control!$B33*(1-Control!$E33)*Prices!AE7","v":329.05701195878152},{"$f":"Control!$B33*(1-Control!$E33)*Prices!AF7","v":325.06240846707027},{"$f":"Control!$B33*(1-Control!$E33)*Prices!AG7","v":317.55513818235573},{"$f":"Control!$B33*(1-Control!$E33)*Prices!AH7","v":335.38932897645884},{"$f":"Control!$B33*(1-Control!$E33)*Prices!AI7","v":334.01114693378042},{"$f":"Control!$B33*(1-Control!$E33)*Prices!AJ7","v":357.53147347647035},{"$f":"Control!$B33*(1-Control!$E33)*Prices!AK7","v":349.30224423014664},{"$f":"Control!$B33*(1-Control!$E33)*Prices!AL7","v":348.15171930897202},{"$f":"Control!$B33*(1-Control!$E33)*Prices!AM7","v":337.91956262276233},{"$f":"Control!$B33*(1-Control!$E33)*Prices!AN7","v":334.82963393988604},{"$f":"Control!$B33*(1-Control!$E33)*Prices!AO7","v":326.80268167351528},{"$f":"Control!$B33*(1-Control!$E33)*Prices!AP7","v":323.4730554199964},{"$f":"Control!$B33*(1-Control!$E33)*Prices!AQ7","v":319.06765466615047},{"$f":"Control!$B33*(1-Control!$E33)*Prices!AR7","v":313.7917929100862},{"$f":"Control!$B33*(1-Control!$E33)*Prices!AS7","v":307.65294311651468},{"$f":"Control!$B33*(1-Control!$E33)*Prices!AT7","v":300.67315892177146},{"$f":"Control!$B33*(1-Control!$E33)*Prices!AU7","v":296.25089892336956},{"$f":"Control!$B33*(1-Control!$E33)*Prices!AV7","v":291.71009051072247},{"$f":"Control!$B33*(1-Control!$E33)*Prices!AW7","v":287.01378924197775},{"$f":"Control!$B33*(1-Control!$E33)*Prices!AX7","v":282.1841163997243},{"$f":"Control!$B33*(1-Control!$E33)*Prices!AY7","v":277.24519894517704},{"$f":"Control!$B33*(1-Control!$E33)*Prices!AZ7","v":275.82347585989243},{"$f":"Control!$B33*(1-Control!$E33)*Prices!BA7","v":274.4833278621453},{"$f":"Control!$B33*(1-Control!$E33)*Prices!BB7","v":273.22745776067944},{"$f":"Control!$B33*(1-Control!$E33)*Prices!BC7","v":272.01730296932351},{"$f":"Control!$B33*(1-Control!$E33)*Prices!BD7","v":270.89388945733054},{"$f":"Control!$B33*(1-Control!$E33)*Prices!BE7","v":270.89388945733054},{"$f":"Control!$B33*(1-Control!$E33)*Prices!BF7","v":270.89388945733054},{"$f":"Control!$B33*(1-Control!$E33)*Prices!BG7","v":270.89388945733054},{"$f":"Control!$B33*(1-Control!$E33)*Prices!BH7","v":270.89388945733054},{"$f":"Control!$B33*(1-Control!$E33)*Prices!BI7","v":270.89388945733054},{"$f":"Control!$B33*(1-Control!$E33)*Prices!BJ7","v":270.89388945733054},{"$f":"Control!$B33*(1-Control!$E33)*Prices!BK7","v":270.89388945733054},{"$f":"Control!$B33*(1-Control!$E33)*Prices!BL7","v":270.89388945733054},{"$f":"Control!$B33*(1-Control!$E33)*Prices!BM7","v":270.89388945733054},{"$f":"Control!$B33*(1-Control!$E33)*Prices!BN7","v":270.89388945733054},{"$f":"Control!$B33*(1-Control!$E33)*Prices!BO7","v":270.89388945733054},{"$f":"Control!$B33*(1-Control!$E33)*Prices!BP7","v":270.89388945733054},{"$f":"Control!$B33*(1-Control!$E33)*Prices!BQ7","v":270.89388945733054},{"$f":"Control!$B33*(1-Control!$E33)*Prices!BR7","v":270.89388945733054},{"$f":"Control!$B33*(1-Control!$E33)*Prices!BS7","v":270.89388945733054},{"$f":"Control!$B33*(1-Control!$E33)*Prices!BT7","v":270.89388945733054},{"$f":"Control!$B33*(1-Control!$E33)*Prices!BU7","v":270.89388945733054},{"$f":"Control!$B33*(1-Control!$E33)*Prices!BV7","v":270.89388945733054},{"$f":"Control!$B33*(1-Control!$E33)*Prices!BW7","v":270.89388945733054},{"$f":"Control!$B33*(1-Control!$E33)*Prices!BX7","v":270.89388945733054},{"$f":"Control!$B33*(1-Control!$E33)*Prices!BY7","v":270.89388945733054},{"$f":"Control!$B33*(1-Control!$E33)*Prices!BZ7","v":270.89388945733054},{"$f":"Control!$B33*(1-Control!$E33)*Prices!CA7","v":270.89388945733054},{"$f":"Control!$B33*(1-Control!$E33)*Prices!CB7","v":270.89388945733054},{"$f":"Control!$B33*(1-Control!$E33)*Prices!CC7","v":270.89388945733054},{"$f":"Control!$B33*(1-Control!$E33)*Prices!CD7","v":270.89388945733054},{"$f":"Control!$B33*(1-Control!$E33)*Prices!CE7","v":270.89388945733054},{"$f":"Control!$B33*(1-Control!$E33)*Prices!CF7","v":270.89388945733054},{"$f":"Control!$B33*(1-Control!$E33)*Prices!CG7","v":270.89388945733054},{"$f":"Control!$B33*(1-Control!$E33)*Prices!CH7","v":270.89388945733054},{"$f":"Control!$B33*(1-Control!$E33)*Prices!CI7","v":270.89388945733054},{"$f":"Control!$B33*(1-Control!$E33)*Prices!CJ7","v":270.89388945733054},{"$f":"Control!$B33*(1-Control!$E33)*Prices!CK7","v":270.89388945733054},{"$f":"Control!$B33*(1-Control!$E33)*Prices!CL7","v":270.89388945733054},{"$f":"Control!$B33*(1-Control!$E33)*Prices!CM7","v":270.89388945733054},{"$f":"Control!$B33*(1-Control!$E33)*Prices!CN7","v":270.89388945733054},{"$f":"Control!$B33*(1-Control!$E33)*Prices!CO7","v":270.89388945733054},{"$f":"Control!$B33*(1-Control!$E33)*Prices!CP7","v":270.89388945733054},{"$f":"Control!$B33*(1-Control!$E33)*Prices!CQ7","v":270.89388945733054},{"$f":"Control!$B33*(1-Control!$E33)*Prices!CR7","v":270.89388945733054},{"$f":"Control!$B33*(1-Control!$E33)*Prices!CS7","v":270.89388945733054},{"$f":"Control!$B33*(1-Control!$E33)*Prices!CT7","v":270.89388945733054},{"$f":"Control!$B33*(1-Control!$E33)*Prices!CU7","v":270.89388945733054},{"$f":"Control!$B33*(1-Control!$E33)*Prices!CV7","v":270.89388945733054},{"$f":"Control!$B33*(1-Control!$E33)*Prices!CW7","v":270.89388945733054},{"$f":"Control!$B33*(1-Control!$E33)*Prices!CX7","v":270.89388945733054},{"$f":"Control!$B33*(1-Control!$E33)*Prices!CY7","v":270.89388945733054},{"$f":"Control!$B33*(1-Control!$E33)*Prices!CZ7","v":270.89388945733054},{"$f":"Control!$B33*(1-Control!$E33)*Prices!DA7","v":270.89388945733054},{"$f":"Control!$B33*(1-Control!$E33)*Prices!DB7","v":270.89388945733054},{"$f":"Control!$B33*(1-Control!$E33)*Prices!DC7","v":270.89388945733054},{"$f":"Control!$B33*(1-Control!$E33)*Prices!DD7","v":270.89388945733054},{"$f":"Control!$B33*(1-Control!$E33)*Prices!DE7","v":270.89388945733054},{"$f":"Control!$B33*(1-Control!$E33)*Prices!DF7","v":270.89388945733054},{"$f":"Control!$B33*(1-Control!$E33)*Prices!DG7","v":270.89388945733054},{"$f":"Control!$B33*(1-Control!$E33)*Prices!DH7","v":270.89388945733054},{"$f":"Control!$B33*(1-Control!$E33)*Prices!DI7","v":270.89388945733054},{"$f":"Control!$B33*(1-Control!$E33)*Prices!DJ7","v":270.89388945733054},{"$f":"Control!$B33*(1-Control!$E33)*Prices!DK7","v":270.89388945733054},{"$f":"Control!$B33*(1-Control!$E33)*Prices!DL7","v":270.89388945733054},{"$f":"Control!$B33*(1-Control!$E33)*Prices!DM7","v":270.89388945733054},{"$f":"Control!$B33*(1-Control!$E33)*Prices!DN7","v":270.89388945733054},{"$f":"Control!$B33*(1-Control!$E33)*Prices!DO7","v":270.89388945733054},{"$f":"Control!$B33*(1-Control!$E33)*Prices!DP7","v":270.89388945733054},{"$f":"Control!$B33*(1-Control!$E33)*Prices!DQ7","v":270.89388945733054},{"$f":"Control!$B33*(1-Control!$E33)*Prices!DR7","v":270.89388945733054},{"$f":"Control!$B33*(1-Control!$E33)*Prices!DS7","v":270.89388945733054},{"$f":"Control!$B33*(1-Control!$E33)*Prices!DT7","v":270.89388945733054},{"$f":"Control!$B33*(1-Control!$E33)*Prices!DU7","v":270.89388945733054},{"$f":"Control!$B33*(1-Control!$E33)*Prices!DV7","v":270.89388945733054}]
["Gas instant hot water",{"$f":"Control!$B34*(1-Control!$E34)*Prices!AA4","v":321.41698994859775},{"$f":"Control!$B34*(1-Control!$E34)*Prices!AB4","v":351.65210297573441},{"$f":"Control!$B34*(1-Control!$E34)*Prices!AC4","v":339.14667781355905},{"$f":"Control!$B34*(1-Control!$E34)*Prices!AD4","v":339.70462445041477},{"$f":"Control!$B34*(1-Control!$E34)*Prices!AE4","v":328.89097533097652},{"$f":"Control!$B34*(1-Control!$E34)*Prices!AF4","v":328.15135631450295},{"$f":"Control!$B34*(1-Control!$E34)*Prices!AG4","v":336.61013547962057},{"$f":"Control!$B34*(1-Control!$E34)*Prices!AH4","v":359.86884972153678},{"$f":"Control!$B34*(1-Control!$E34)*Prices!AI4","v":380.91096380450671},{"$f":"Control!$B34*(1-Control!$E34)*Prices!AJ4","v":396.9554944400561},{"$f":"Control!$B34*(1-Control!$E34)*Prices!AK4","v":365.85402056023554},{"$f":"Control!$B34*(1-Control!$E34)*Prices!AL4","v":364.42606848698392},{"$f":"Control!$B34*(1-Control!$E34)*Prices!AM4","v":371.71097858441601},{"$f":"Control!$B34*(1-Control!$E34)*Prices!AN4","v":383.76113896514192},{"$f":"Control!$B34*(1-Control!$E34)*Prices!AO4","v":336.17529498580865},{"$f":"Control!$B34*(1-Control!$E34)*Prices!AP4","v":339.59381962650838},{"$f":"Control!$B34*(1-Control!$E34)*Prices!AQ4","v":345.09624938245383},{"$f":"Control!$B34*(1-Control!$E34)*Prices!AR4","v":354.04771622325165},{"$f":"Control!$B34*(1-Control!$E34)*Prices!AS4","v":359.06562297545867},{"$f":"Control!$B34*(1-Control!$E34)*Prices!AT4","v":357.38993541298294},{"$f":"Control!$B34*(1-Control!$E34)*Prices!AU4","v":359.80826262413427},{"$f":"Control!$B34*(1-Control!$E34)*Prices!AV4","v":370.61889155198202},{"$f":"Control!$B34*(1-Control!$E34)*Prices!AW4","v":378.91106174223199},{"$f":"Control!$B34*(1-Control!$E34)*Prices!AX4","v":381.96220864639952},{"$f":"Control!$B34*(1-Control!$E34)*Prices!AY4","v":385.84273340966081},{"$f":"Control!$B34*(1-Control!$E34)*Prices!AZ4","v":389.48190492564083},{"$f":"Control!$B34*(1-Control!$E34)*Prices!BA4","v":391.86825706325476},{"$f":"Control!$B34*(1-Control!$E34)*Prices!BB4","v":393.33943587498584},{"$f":"Control!$B34*(1-Control!$E34)*Prices!BC4","v":394.44545474982033},{"$f":"Control!$B34*(1-Control!$E34)*Prices!BD4","v":397.39335455426914},{"$f":"Control!$B34*(1-Control!$E34)*Prices!BE4","v":397.50794189474624},{"$f":"Control!$B34*(1-Control!$E34)*Prices!BF4","v":401.46965194598647},{"$f":"Control!$B34*(1-Control!$E34)*Prices!BG4","v":401.65981316444402},{"$f":"Control!$B34*(1-Control!$E34)*Prices!BH4","v":401.84999022168313},{"$f":"Control!$B34*(1-Control!$E34)*Prices!BI4","v":402.04018310186501},{"$f":"Control!$B34*(1-Control!$E34)*Prices!BJ4","v":402.23039178916662},{"$f":"Control!$B34*(1-Control!$E34)*Prices!BK4","v":402.4206162677811},{"$f":"Control!$B34*(1-Control!$E34)*Prices!BL4","v":402.61085652191679},{"$f":"Control!$B34*(1-Control!$E34)*Prices!BM4","v":402.80111253579855},{"$f":"Control!$B34*(1-Control!$E34)*Prices!BN4","v":402.99138429366621},{"$f":"Control!$B34*(1-Control!$E34)*Prices!BO4","v":403.1816717797762},{"$f":"Control!$B34*(1-Control!$E34)*Prices!BP4","v":403.37197497839986},{"$f":"Control!$B34*(1-Control!$E34)*Prices!BQ4","v":403.56229387382513},{"$f":"Control!$B34*(1-Control!$E34)*Prices!BR4","v":403.75262845035485},{"$f":"Control!$B34*(1-Control!$E34)*Prices!BS4","v":403.94297869230803},{"$f":"Control!$B34*(1-Control!$E34)*Prices!BT4","v":404.13334458401931},{"$f":"Control!$B34*(1-Control!$E34)*Prices!BU4","v":404.32372610983884},{"$f":"Control!$B34*(1-Control!$E34)*Prices!BV4","v":404.51412325413253},{"$f":"Control!$B34*(1-Control!$E34)*Prices!BW4","v":404.70453600128207},{"$f":"Control!$B34*(1-Control!$E34)*Prices!BX4","v":404.89496433568422},{"$f":"Control!$B34*(1-Control!$E34)*Prices!BY4","v":405.08540824175219},{"$f":"Control!$B34*(1-Control!$E34)*Prices!BZ4","v":405.27586770391395},{"$f":"Control!$B34*(1-Control!$E34)*Prices!CA4","v":405.46634270661372},{"$f":"Control!$B34*(1-Control!$E34)*Prices!CB4","v":405.65683323431051},{"$f":"Control!$B34*(1-Control!$E34)*Prices!CC4","v":405.84733927147983},{"$f":"Control!$B34*(1-Control!$E34)*Prices!CD4","v":406.03786080261193},{"$f":"Control!$B34*(1-Control!$E34)*Prices!CE4","v":406.2283978122129},{"$f":"Control!$B34*(1-Control!$E34)*Prices!CF4","v":406.41895028480417},{"$f":"Control!$B34*(1-Control!$E34)*Prices!CG4","v":406.60951820492306},{"$f":"Control!$B34*(1-Control!$E34)*Prices!CH4","v":406.80010155712159},{"$f":"Control!$B34*(1-Control!$E34)*Prices!CI4","v":406.99070032596808},{"$f":"Control!$B34*(1-Control!$E34)*Prices!CJ4","v":407.18131449604562},{"$f":"Control!$B34*(1-Control!$E34)*Prices!CK4","v":407.37194405195328},{"$f":"Control!$B34*(1-Control!$E34)*Prices!CL4","v":407.5625889783048},{"$f":"Control!$B34*(1-Control!$E34)*Prices!CM4","v":407.75324925973013},{"$f":"Control!$B34*(1-Control!$E34)*Prices!CN4","v":407.94392488087385},{"$f":"Control!$B34*(1-Control!$E34)*Prices!CO4","v":408.13461582639661},{"$f":"Control!$B34*(1-Control!$E34)*Prices!CP4","v":408.32532208097371},{"$f":"Control!$B34*(1-Control!$E34)*Prices!CQ4","v":408.51604362929641},{"$f":"Control!$B34*(1-Control!$E34)*Prices!CR4","v":408.70678045607053},{"$f":"Control!$B34*(1-Control!$E34)*Prices!CS4","v":408.89753254601811},{"$f":"Control!$B34*(1-Control!$E34)*Prices!CT4","v":409.08829988387561},{"$f":"Control!$B34*(1-Control!$E34)*Prices!CU4","v":409.27908245439539},{"$f":"Control!$B34*(1-Control!$E34)*Prices!CV4","v":409.46988024234452},{"$f":"Control!$B34*(1-Control!$E34)*Prices!CW4","v":409.66069323250582},{"$f":"Control!$B34*(1-Control!$E34)*Prices!CX4","v":409.85152140967676},{"$f":"Control!$B34*(1-Control!$E34)*Prices!CY4","v":410.04236475867071},{"$f":"Control!$B34*(1-Control!$E34)*Prices!CZ4","v":410.23322326431554},{"$f":"Control!$B34*(1-Control!$E34)*Prices!DA4","v":410.42409691145485},{"$f":"Control!$B34*(1-Control!$E34)*Prices!DB4","v":410.61498568494693},{"$f":"Control!$B34*(1-Control!$E34)*Prices!DC4","v":410.61498568494693},{"$f":"Control!$B34*(1-Control!$E34)*Prices!DD4","v":410.61498568494693},{"$f":"Control!$B34*(1-Control!$E34)*Prices!DE4","v":410.61498568494693},{"$f":"Control!$B34*(1-Control!$E34)*Prices!DF4","v":410.61498568494693},{"$f":"Control!$B34*(1-Control!$E34)*Prices!DG4","v":410.61498568494693},{"$f":"Control!$B34*(1-Control!$E34)*Prices!DH4","v":410.61498568494693},{"$f":"Control!$B34*(1-Control!$E34)*Prices!DI4","v":410.61498568494693},{"$f":"Control!$B34*(1-Control!$E34)*Prices!DJ4","v":410.61498568494693},{"$f":"Control!$B34*(1-Control!$E34)*Prices!DK4","v":410.61498568494693},{"$f":"Control!$B34*(1-Control!$E34)*Prices!DL4","v":410.61498568494693},{"$f":"Control!$B34*(1-Control!$E34)*Prices!DM4","v":410.61498568494693},{"$f":"Control!$B34*(1-Control!$E34)*Prices!DN4","v":410.61498568494693},{"$f":"Control!$B34*(1-Control!$E34)*Prices!DO4","v":410.61498568494693},{"$f":"Control!$B34*(1-Control!$E34)*Prices!DP4","v":410.61498568494693},{"$f":"Control!$B34*(1-Control!$E34)*Prices!DQ4","v":410.61498568494693},{"$f":"Control!$B34*(1-Control!$E34)*Prices!DR4","v":410.61498568494693},{"$f":"Control!$B34*(1-Control!$E34)*Prices!DS4","v":410.61498568494693},{"$f":"Control!$B34*(1-Control!$E34)*Prices!DT4","v":410.61498568494693},{"$f":"Control!$B34*(1-Control!$E34)*Prices!DU4","v":410.61498568494693},{"$f":"Control!$B34*(1-Control!$E34)*Prices!DV4","v":410.61498568494693}]
["Difference",{"$f":"B48-B47","v":-4.6226838647062891},{"$f":"C48-C47","v":9.3192576781155481},-1.2033531166225089,11.88164660507266,-0.16603662780499917,3.0889478474326779,19.054997297264833,24.479520745077934,46.899816870726283,39.424020963585747,16.551776330088899,16.274349178011903,33.791415961653684,48.931505025255888,9.3726133122933675,16.120764206511979,26.02859471630336,40.255923313165454,51.412679858943989,56.716776491211476,63.557363700764711,78.908801041259551,91.897272500254246,99.778092246675214,108.59753446448377,113.65842906574841,117.38492920110946,120.1119781143064,122.42815178049682,126.49946509693859,126.61405243741569,130.57576248865593,130.76592370711347,130.95610076435258,131.14629364453447,131.33650233183607,131.52672681045055,131.71696706458624,131.90722307846801,132.09749483633567,132.28778232244565,132.47808552106932,132.66840441649458,132.8587389930243,133.04908923497749,133.23945512668877,133.4298366525083,133.62023379680198,133.81064654395152,134.00107487835368,134.19151878442165,134.3819782465834,134.57245324928317,134.76294377697997,134.95344981414928,135.14397134528139,135.33450835488236,135.52506082747362,135.71562874759252,135.90621209979105,136.09681086863753,136.28742503871507,136.47805459462273,136.66869952097426,136.85935980239958,{"$f":"BO48-BO47","v":137.05003542354331},137.24072636906607,137.43143262364316,137.62215417196586,137.81289099873999,138.00364308868757,138.19441042654506,138.38519299706485,138.57599078501397,138.76680377517528,138.95763195234622,139.14847530134017,139.339333806985,139.53020745412431,139.72109622761639,{"$f":"CD48-CD47","v":139.72109622761639},139.72109622761639,139.72109622761639,139.72109622761639,139.72109622761639,139.72109622761639,139.72109622761639,139.72109622761639,139.72109622761639,139.72109622761639,139.72109622761639,139.72109622761639,139.72109622761639,139.72109622761639,139.72109622761639,139.72109622761639,139.72109622761639,139.72109622761639,139.72109622761639,139.72109622761639]
["Room heating"]
["RCAC split system",{"$f":"Control!$B37*(1-Control!$E37)*Prices!AA7","v":174.51069497582972},{"$f":"Control!$B37*(1-Control!$E37)*Prices!AB7","v":183.23151304632103},{"$f":"Control!$B37*(1-Control!$E37)*Prices!AC7","v":182.17022406506754},{"$f":"Control!$B37*(1-Control!$E37)*Prices!AD7","v":175.46519729864326},{"$f":"Control!$B37*(1-Control!$E37)*Prices!AE7","v":176.1257063349868},{"$f":"Control!$B37*(1-Control!$E37)*Prices!AF7","v":173.98761981521383},{"$f":"Control!$B37*(1-Control!$E37)*Prices!AG7","v":169.96940037757841},{"$f":"Control!$B37*(1-Control!$E37)*Prices!AH7","v":179.51503938957367},{"$f":"Control!$B37*(1-Control!$E37)*Prices!AI7","v":178.77737607621646},{"$f":"Control!$B37*(1-Control!$E37)*Prices!AJ7","v":191.36648366247178},{"$f":"Control!$B37*(1-Control!$E37)*Prices!AK7","v":186.96184020882356},{"$f":"Control!$B37*(1-Control!$E37)*Prices!AL7","v":186.34602894501961},{"$f":"Control!$B37*(1-Control!$E37)*Prices!AM7","v":180.86933111396203},{"$f":"Control!$B37*(1-Control!$E37)*Prices!AN7","v":179.21546612395085},{"$f":"Control!$B37*(1-Control!$E37)*Prices!AO7","v":174.91909015792567},{"$f":"Control!$B37*(1-Control!$E37)*Prices!AP7","v":173.13692854331163},{"$f":"Control!$B37*(1-Control!$E37)*Prices!AQ7","v":170.77896535984667},{"$f":"Control!$B37*(1-Control!$E37)*Prices!AR7","v":167.95509337249342},{"$f":"Control!$B37*(1-Control!$E37)*Prices!AS7","v":164.66931243884596},{"$f":"Control!$B37*(1-Control!$E37)*Prices!AT7","v":160.93342662973603},{"$f":"Control!$B37*(1-Control!$E37)*Prices!AU7","v":158.56643964113158},{"$f":"Control!$B37*(1-Control!$E37)*Prices!AV7","v":156.13600035570619},{"$f":"Control!$B37*(1-Control!$E37)*Prices!AW7","v":153.62233449216529},{"$f":"Control!$B37*(1-Control!$E37)*Prices!AX7","v":151.03728232857443},{"$f":"Control!$B37*(1-Control!$E37)*Prices!AY7","v":148.39375766993169},{"$f":"Control!$B37*(1-Control!$E37)*Prices!AZ7","v":147.6327892860096},{"$f":"Control!$B37*(1-Control!$E37)*Prices!BA7","v":146.91548345717592},{"$f":"Control!$B37*(1-Control!$E37)*Prices!BB7","v":146.24328684489595},{"$f":"Control!$B37*(1-Control!$E37)*Prices!BC7","v":145.59555906625516},{"$f":"Control!$B37*(1-Control!$E37)*Prices!BD7","v":144.99425901454617},{"$f":"Control!$B37*(1-Control!$E37)*Prices!BE7","v":144.99425901454617},{"$f":"Control!$B37*(1-Control!$E37)*Prices!BF7","v":144.99425901454617},{"$f":"Control!$B37*(1-Control!$E37)*Prices!BG7","v":144.99425901454617},{"$f":"Control!$B37*(1-Control!$E37)*Prices!BH7","v":144.99425901454617},{"$f":"Control!$B37*(1-Control!$E37)*Prices!BI7","v":144.99425901454617},{"$f":"Control!$B37*(1-Control!$E37)*Prices!BJ7","v":144.99425901454617},{"$f":"Control!$B37*(1-Control!$E37)*Prices!BK7","v":144.99425901454617},{"$f":"Control!$B37*(1-Control!$E37)*Prices!BL7","v":144.99425901454617},{"$f":"Control!$B37*(1-Control!$E37)*Prices!BM7","v":144.99425901454617},{"$f":"Control!$B37*(1-Control!$E37)*Prices!BN7","v":144.99425901454617},{"$f":"Control!$B37*(1-Control!$E37)*Prices!BO7","v":144.99425901454617},{"$f":"Control!$B37*(1-Control!$E37)*Prices!BP7","v":144.99425901454617},{"$f":"Control!$B37*(1-Control!$E37)*Prices!BQ7","v":144.99425901454617},{"$f":"Control!$B37*(1-Control!$E37)*Prices!BR7","v":144.99425901454617},{"$f":"Control!$B37*(1-Control!$E37)*Prices!BS7","v":144.99425901454617},{"$f":"Control!$B37*(1-Control!$E37)*Prices!BT7","v":144.99425901454617},{"$f":"Control!$B37*(1-Control!$E37)*Prices!BU7","v":144.99425901454617},{"$f":"Control!$B37*(1-Control!$E37)*Prices!BV7","v":144.99425901454617},{"$f":"Control!$B37*(1-Control!$E37)*Prices!BW7","v":144.99425901454617},{"$f":"Control!$B37*(1-Control!$E37)*Prices!BX7","v":144.99425901454617},{"$f":"Control!$B37*(1-Control!$E37)*Prices!BY7","v":144.99425901454617},{"$f":"Control!$B37*(1-Control!$E37)*Prices!BZ7","v":144.99425901454617},{"$f":"Control!$B37*(1-Control!$E37)*Prices!CA7","v":144.99425901454617},{"$f":"Control!$B37*(1-Control!$E37)*Prices!CB7","v":144.99425901454617},{"$f":"Control!$B37*(1-Control!$E37)*Prices!CC7","v":144.99425901454617},{"$f":"Control!$B37*(1-Control!$E37)*Prices!CD7","v":144.99425901454617},{"$f":"Control!$B37*(1-Control!$E37)*Prices!CE7","v":144.99425901454617},{"$f":"Control!$B37*(1-Control!$E37)*Prices!CF7","v":144.99425901454617},{"$f":"Control!$B37*(1-Control!$E37)*Prices!CG7","v":144.99425901454617},{"$f":"Control!$B37*(1-Control!$E37)*Prices!CH7","v":144.99425901454617},{"$f":"Control!$B37*(1-Control!$E37)*Prices!CI7","v":144.99425901454617},{"$f":"Control!$B37*(1-Control!$E37)*Prices!CJ7","v":144.99425901454617},{"$f":"Control!$B37*(1-Control!$E37)*Prices!CK7","v":144.99425901454617},{"$f":"Control!$B37*(1-Control!$E37)*Prices!CL7","v":144.99425901454617},{"$f":"Control!$B37*(1-Control!$E37)*Prices!CM7","v":144.99425901454617},{"$f":"Control!$B37*(1-Control!$E37)*Prices!CN7","v":144.99425901454617},{"$f":"Control!$B37*(1-Control!$E37)*Prices!CO7","v":144.99425901454617},{"$f":"Control!$B37*(1-Control!$E37)*Prices!CP7","v":144.99425901454617},{"$f":"Control!$B37*(1-Control!$E37)*Prices!CQ7","v":144.99425901454617},{"$f":"Control!$B37*(1-Control!$E37)*Prices!CR7","v":144.99425901454617},{"$f":"Control!$B37*(1-Control!$E37)*Prices!CS7","v":144.99425901454617},{"$f":"Control!$B37*(1-Control!$E37)*Prices!CT7","v":144.99425901454617},{"$f":"Control!$B37*(1-Control!$E37)*Prices!CU7","v":144.99425901454617},{"$f":"Control!$B37*(1-Control!$E37)*Prices!CV7","v":144.99425901454617},{"$f":"Control!$B37*(1-Control!$E37)*Prices!CW7","v":144.99425901454617},{"$f":"Control!$B37*(1-Control!$E37)*Prices!CX7","v":144.99425901454617},{"$f":"Control!$B37*(1-Control!$E37)*Prices!CY7","v":144.99425901454617},{"$f":"Control!$B37*(1-Control!$E37)*Prices!CZ7","v":144.99425901454617},{"$f":"Control!$B37*(1-Control!$E37)*Prices!DA7","v":144.99425901454617},{"$f":"Control!$B37*(1-Control!$E37)*Prices!DB7","v":144.99425901454617},{"$f":"Control!$B37*(1-Control!$E37)*Prices!DC7","v":144.99425901454617},{"$f":"Control!$B37*(1-Control!$E37)*Prices!DD7","v":144.99425901454617},{"$f":"Control!$B37*(1-Control!$E37)*Prices!DE7","v":144.99425901454617},{"$f":"Control!$B37*(1-Control!$E37)*Prices!DF7","v":144.99425901454617},{"$f":"Control!$B37*(1-Control!$E37)*Prices!DG7","v":144.99425901454617},{"$f":"Control!$B37*(1-Control!$E37)*Prices!DH7","v":144.99425901454617},{"$f":"Control!$B37*(1-Control!$E37)*Prices!DI7","v":144.99425901454617},{"$f":"Control!$B37*(1-Control!$E37)*Prices!DJ7","v":144.99425901454617},{"$f":"Control!$B37*(1-Control!$E37)*Prices!DK7","v":144.99425901454617},{"$f":"Control!$B37*(1-Control!$E37)*Prices!DL7","v":144.99425901454617},{"$f":"Control!$B37*(1-Control!$E37)*Prices!DM7","v":144.99425901454617},{"$f":"Control!$B37*(1-Control!$E37)*Prices!DN7","v":144.99425901454617},{"$f":"Control!$B37*(1-Control!$E37)*Prices!DO7","v":144.99425901454617},{"$f":"Control!$B37*(1-Control!$E37)*Prices!DP7","v":144.99425901454617},{"$f":"Control!$B37*(1-Control!$E37)*Prices!DQ7","v":144.99425901454617},{"$f":"Control!$B37*(1-Control!$E37)*Prices!DR7","v":144.99425901454617},{"$f":"Control!$B37*(1-Control!$E37)*Prices!DS7","v":144.99425901454617},{"$f":"Control!$B37*(1-Control!$E37)*Prices!DT7","v":144.99425901454617},{"$f":"Control!$B37*(1-Control!$E37)*Prices!DU7","v":144.99425901454617},{"$f":"Control!$B37*(1-Control!$E37)*Prices!DV7","v":144.99425901454617}]
["Gas wall furnace",{"$f":"Control!$B38*(1-Control!$E38)*Prices!AA4","v":302.15564371465098},{"$f":"Control!$B38*(1-Control!$E38)*Prices!AB4","v":330.57887685164451},{"$f":"Control!$B38*(1-Control!$E38)*Prices!AC4","v":318.82285614344619},{"$f":"Control!$B38*(1-Control!$E38)*Prices!AD4","v":319.347367076252},{"$f":"Control!$B38*(1-Control!$E38)*Prices!AE4","v":309.18174045175164},{"$f":"Control!$B38*(1-Control!$E38)*Prices!AF4","v":308.4864441014812},{"$f":"Control!$B38*(1-Control!$E38)*Prices!AG4","v":316.43831952687464},{"$f":"Control!$B38*(1-Control!$E38)*Prices!AH4","v":338.30322397659035},{"$f":"Control!$B38*(1-Control!$E38)*Prices!AI4","v":358.08436101876629},{"$f":"Control!$B38*(1-Control!$E38)*Prices!AJ4","v":373.16740153588131},{"$f":"Control!$B38*(1-Control!$E38)*Prices!AK4","v":343.92972538772727},{"$f":"Control!$B38*(1-Control!$E38)*Prices!AL4","v":342.58734526663903},{"$f":"Control!$B38*(1-Control!$E38)*Prices!AM4","v":349.4356973100235},{"$f":"Control!$B38*(1-Control!$E38)*Prices!AN4","v":360.76373559227272},{"$f":"Control!$B38*(1-Control!$E38)*Prices!AO4","v":316.02953743560448},{"$f":"Control!$B38*(1-Control!$E38)*Prices!AP4","v":319.24320238072829},{"$f":"Control!$B38*(1-Control!$E38)*Prices!AQ4","v":324.41589161899242},{"$f":"Control!$B38*(1-Control!$E38)*Prices!AR4","v":332.83092974720142},{"$f":"Control!$B38*(1-Control!$E38)*Prices!AS4","v":337.54813167562372},{"$f":"Control!$B38*(1-Control!$E38)*Prices!AT4","v":335.9728619483281},{"$f":"Control!$B38*(1-Control!$E38)*Prices!AU4","v":338.2462676426411},{"$f":"Control!$B38*(1-Control!$E38)*Prices!AV4","v":348.40905506460177},{"$f":"Control!$B38*(1-Control!$E38)*Prices!AW4","v":356.2043057824531},{"$f":"Control!$B38*(1-Control!$E38)*Prices!AX4","v":359.07260859695009},{"$f":"Control!$B38*(1-Control!$E38)*Prices!AY4","v":362.72058768474307},{"$f":"Control!$B38*(1-Control!$E38)*Prices!AZ4","v":366.14167694382303},{"$f":"Control!$B38*(1-Control!$E38)*Prices!BA4","v":368.38502371396697},{"$f":"Control!$B38*(1-Control!$E38)*Prices!BB4","v":369.76804015298302},{"$f":"Control!$B38*(1-Control!$E38)*Prices!BC4","v":370.8077793563761},{"$f":"Control!$B38*(1-Control!$E38)*Prices!BD4","v":373.57902229273105},{"$f":"Control!$B38*(1-Control!$E38)*Prices!BE4","v":373.68674283242302},{"$f":"Control!$B38*(1-Control!$E38)*Prices!BF4","v":377.41104207041514},{"$f":"Control!$B38*(1-Control!$E38)*Prices!BG4","v":377.58980762161326},{"$f":"Control!$B38*(1-Control!$E38)*Prices!BH4","v":377.76858806243263},{"$f":"Control!$B38*(1-Control!$E38)*Prices!BI4","v":377.94738337798356},{"$f":"Control!$B38*(1-Control!$E38)*Prices!BJ4","v":378.12619355339132},{"$f":"Control!$B38*(1-Control!$E38)*Prices!BK4","v":378.30501857379625},{"$f":"Control!$B38*(1-Control!$E38)*Prices!BL4","v":378.483858424353},{"$f":"Control!$B38*(1-Control!$E38)*Prices!BM4","v":378.66271309023176},{"$f":"Control!$B38*(1-Control!$E38)*Prices!BN4","v":378.84158255661691},{"$f":"Control!$B38*(1-Control!$E38)*Prices!BO4","v":379.02046680870825},{"$f":"Control!$B38*(1-Control!$E38)*Prices!BP4","v":379.19936583171977},{"$f":"Control!$B38*(1-Control!$E38)*Prices!BQ4","v":379.37827961088084},{"$f":"Control!$B38*(1-Control!$E38)*Prices!BR4","v":379.557208131435},{"$f":"Control!$B38*(1-Control!$E38)*Prices!BS4","v":379.73615137864113},{"$f":"Control!$B38*(1-Control!$E38)*Prices!BT4","v":379.91510933777244},{"$f":"Control!$B38*(1-Control!$E38)*Prices!BU4","v":380.094081994117},{"$f":"Control!$B38*(1-Control!$E38)*Prices!BV4","v":380.27306933297763},{"$f":"Control!$B38*(1-Control!$E38)*Prices!BW4","v":380.45207133967193},{"$f":"Control!$B38*(1-Control!$E38)*Prices!BX4","v":380.63108799953176},{"$f":"Control!$B38*(1-Control!$E38)*Prices!BY4","v":380.81011929790429},{"$f":"Control!$B38*(1-Control!$E38)*Prices!BZ4","v":380.98916522015077},{"$f":"Control!$B38*(1-Control!$E38)*Prices!CA4","v":381.16822575164753},{"$f":"Control!$B38*(1-Control!$E38)*Prices!CB4","v":381.34730087778502},{"$f":"Control!$B38*(1-Control!$E38)*Prices!CC4","v":381.52639058396898},{"$f":"Control!$B38*(1-Control!$E38)*Prices!CD4","v":381.70549485561907},{"$f":"Control!$B38*(1-Control!$E38)*Prices!CE4","v":381.88461367817001},{"$f":"Control!$B38*(1-Control!$E38)*Prices!CF4","v":382.0637470370707},{"$f":"Control!$B38*(1-Control!$E38)*Prices!CG4","v":382.24289491778507},{"$f":"Control!$B38*(1-Control!$E38)*Prices!CH4","v":382.42205730579087},{"$f":"Control!$B38*(1-Control!$E38)*Prices!CI4","v":382.60123418658134},{"$f":"Control!$B38*(1-Control!$E38)*Prices!CJ4","v":382.78042554566326},{"$f":"Control!$B38*(1-Control!$E38)*Prices!CK4","v":382.95963136855869},{"$f":"Control!$B38*(1-Control!$E38)*Prices!CL4","v":383.13885164080341},{"$f":"Control!$B38*(1-Control!$E38)*Prices!CM4","v":383.31808634794851},{"$f":"Control!$B38*(1-Control!$E38)*Prices!CN4","v":383.49733547555871},{"$f":"Control!$B38*(1-Control!$E38)*Prices!CO4","v":383.67659900921382},{"$f":"Control!$B38*(1-Control!$E38)*Prices!CP4","v":383.85587693450759},{"$f":"Control!$B38*(1-Control!$E38)*Prices!CQ4","v":384.03516923704865},{"$f":"Control!$B38*(1-Control!$E38)*Prices!CR4","v":384.21447590245936},{"$f":"Control!$B38*(1-Control!$E38)*Prices!CS4","v":384.39379691637726},{"$f":"Control!$B38*(1-Control!$E38)*Prices!CT4","v":384.57313226445353},{"$f":"Control!$B38*(1-Control!$E38)*Prices!CU4","v":384.75248193235433},{"$f":"Control!$B38*(1-Control!$E38)*Prices!CV4","v":384.93184590575942},{"$f":"Control!$B38*(1-Control!$E38)*Prices!CW4","v":385.1112241703637},{"$f":"Control!$B38*(1-Control!$E38)*Prices!CX4","v":385.29061671187554},{"$f":"Control!$B38*(1-Control!$E38)*Prices!CY4","v":385.47002351601856},{"$f":"Control!$B38*(1-Control!$E38)*Prices!CZ4","v":385.64944456852965},{"$f":"Control!$B38*(1-Control!$E38)*Prices!DA4","v":385.82887985516078},{"$f":"Control!$B38*(1-Control!$E38)*Prices!DB4","v":386.00832936167757},{"$f":"Control!$B38*(1-Control!$E38)*Prices!DC4","v":386.00832936167757},{"$f":"Control!$B38*(1-Control!$E38)*Prices!DD4","v":386.00832936167757},{"$f":"Control!$B38*(1-Control!$E38)*Prices!DE4","v":386.00832936167757},{"$f":"Control!$B38*(1-Control!$E38)*Prices!DF4","v":386.00832936167757},{"$f":"Control!$B38*(1-Control!$E38)*Prices!DG4","v":386.00832936167757},{"$f":"Control!$B38*(1-Control!$E38)*Prices!DH4","v":386.00832936167757},{"$f":"Control!$B38*(1-Control!$E38)*Prices!DI4","v":386.00832936167757},{"$f":"Control!$B38*(1-Control!$E38)*Prices!DJ4","v":386.00832936167757},{"$f":"Control!$B38*(1-Control!$E38)*Prices!DK4","v":386.00832936167757},{"$f":"Control!$B38*(1-Control!$E38)*Prices!DL4","v":386.00832936167757},{"$f":"Control!$B38*(1-Control!$E38)*Prices!DM4","v":386.00832936167757},{"$f":"Control!$B38*(1-Control!$E38)*Prices!DN4","v":386.00832936167757},{"$f":"Control!$B38*(1-Control!$E38)*Prices!DO4","v":386.00832936167757},{"$f":"Control!$B38*(1-Control!$E38)*Prices!DP4","v":386.00832936167757},{"$f":"Control!$B38*(1-Control!$E38)*Prices!DQ4","v":386.00832936167757},{"$f":"Control!$B38*(1-Control!$E38)*Prices!DR4","v":386.00832936167757},{"$f":"Control!$B38*(1-Control!$E38)*Prices!DS4","v":386.00832936167757},{"$f":"Control!$B38*(1-Control!$E38)*Prices!DT4","v":386.00832936167757},{"$f":"Control!$B38*(1-Control!$E38)*Prices!DU4","v":386.00832936167757},{"$f":"Control!$B38*(1-Control!$E38)*Prices!DV4","v":386.00832936167757}]
["Difference",{"$f":"B52-B51","v":127.64494873882126},{"$f":"C52-C51","v":147.34736380532348},136.65263207837864,143.88216977760874,133.05603411676483,134.49882428626736,146.46891914929623,158.78818458701667,179.30698494254983,181.80091787340953,156.96788517890371,156.24131632161942,168.56636619606147,181.54826946832188,141.11044727767882,146.10627383741667,153.63692625914575,164.875836374708,172.87881923677776,175.03943531859207,179.67982800150952,192.27305470889559,202.58197129028781,208.03532626837566,214.32683001481138,218.50888765781343,221.46954025679105,223.52475330808707,225.21222029012094,228.58476327818488,228.69248381787685,232.41678305586896,232.59554860706709,232.77432904788645,232.95312436343738,233.13193453884514,233.31075955925007,233.48959940980683,233.66845407568559,233.84732354207074,234.02620779416208,234.2051068171736,234.38402059633466,234.56294911688883,234.74189236409495,234.92085032322626,235.09982297957083,235.27881031843145,235.45781232512576,235.63682898498558,235.81586028335812,235.99490620560459,236.17396673710135,236.35304186323884,236.5321315694228,236.71123584107289,236.89035466362384,237.06948802252452,237.24863590323889,237.4277982912447,237.60697517203516,237.78616653111709,237.96537235401252,238.14459262625724,238.32382733340233,{"$f":"BO52-BO51","v":238.50307646101254},238.68233999466764,238.86161791996142,239.04091022250248,239.22021688791318,239.39953790183108,239.57887324990736,239.75822291780815,239.93758689121324,240.11696515581752,240.29635769732937,240.47576450147238,240.65518555398347,240.8346208406146,241.01407034713139,{"$f":"CD52-CD51","v":241.01407034713139},241.01407034713139,241.01407034713139,241.01407034713139,241.01407034713139,241.01407034713139,241.01407034713139,241.01407034713139,241.01407034713139,241.01407034713139,241.01407034713139,241.01407034713139,241.01407034713139,241.01407034713139,241.01407034713139,241.01407034713139,241.01407034713139,241.01407034713139,241.01407034713139,241.01407034713139]
["Ducted heating"]
["Ducted RCAC",{"$f":"Control!$B41*(1-Control!$E41)*Prices!AA7","v":704.30438983971351},{"$f":"Control!$B41*(1-Control!$E41)*Prices!AB7","v":739.50057337958901},{"$f":"Control!$B41*(1-Control!$E41)*Prices!AC7","v":735.21733739517629},{"$f":"Control!$B41*(1-Control!$E41)*Prices!AD7","v":708.15664758336004},{"$f":"Control!$B41*(1-Control!$E41)*Prices!AE7","v":710.82238342201447},{"$f":"Control!$B41*(1-Control!$E41)*Prices!AF7","v":702.19332076232024},{"$f":"Control!$B41*(1-Control!$E41)*Prices!AG7","v":685.97626547148059},{"$f":"Control!$B41*(1-Control!$E41)*Prices!AH7","v":724.5013281382968},{"$f":"Control!$B41*(1-Control!$E41)*Prices!AI7","v":721.52420682264824},{"$f":"Control!$B41*(1-Control!$E41)*Prices!AJ7","v":772.33234633749055},{"$f":"Control!$B41*(1-Control!$E41)*Prices!AK7","v":754.55572972088225},{"$f":"Control!$B41*(1-Control!$E41)*Prices!AL7","v":752.07038877103435},{"$f":"Control!$B41*(1-Control!$E41)*Prices!AM7","v":729.96708831272292},{"$f":"Control!$B41*(1-Control!$E41)*Prices!AN7","v":723.29228610172709},{"$f":"Control!$B41*(1-Control!$E41)*Prices!AO7","v":705.9526241761788},{"$f":"Control!$B41*(1-Control!$E41)*Prices!AP7","v":698.76003206169344},{"$f":"Control!$B41*(1-Control!$E41)*Prices!AQ7","v":689.24357336313165},{"$f":"Control!$B41*(1-Control!$E41)*Prices!AR7","v":677.8467621974105},{"$f":"Control!$B41*(1-Control!$E41)*Prices!AS7","v":664.58574151360631},{"$f":"Control!$B41*(1-Control!$E41)*Prices!AT7","v":649.50815113634917},{"$f":"Control!$B41*(1-Control!$E41)*Prices!AU7","v":639.95527343450692},{"$f":"Control!$B41*(1-Control!$E41)*Prices!AV7","v":630.14630981654022},{"$f":"Control!$B41*(1-Control!$E41)*Prices!AW7","v":620.00145363722527},{"$f":"Control!$B41*(1-Control!$E41)*Prices!AX7","v":609.56849084927774},{"$f":"Control!$B41*(1-Control!$E41)*Prices!AY7","v":598.89954003231219},{"$f":"Control!$B41*(1-Control!$E41)*Prices!AZ7","v":595.82836222627691},{"$f":"Control!$B41*(1-Control!$E41)*Prices!BA7","v":592.93340129465525},{"$f":"Control!$B41*(1-Control!$E41)*Prices!BB7","v":590.22049579089946},{"$f":"Control!$B41*(1-Control!$E41)*Prices!BC7","v":587.60634358675509},{"$f":"Control!$B41*(1-Control!$E41)*Prices!BD7","v":585.17956816139713},{"$f":"Control!$B41*(1-Control!$E41)*Prices!BE7","v":585.17956816139713},{"$f":"Control!$B41*(1-Control!$E41)*Prices!BF7","v":585.17956816139713},{"$f":"Control!$B41*(1-Control!$E41)*Prices!BG7","v":585.17956816139713},{"$f":"Control!$B41*(1-Control!$E41)*Prices!BH7","v":585.17956816139713},{"$f":"Control!$B41*(1-Control!$E41)*Prices!BI7","v":585.17956816139713},{"$f":"Control!$B41*(1-Control!$E41)*Prices!BJ7","v":585.17956816139713},{"$f":"Control!$B41*(1-Control!$E41)*Prices!BK7","v":585.17956816139713},{"$f":"Control!$B41*(1-Control!$E41)*Prices!BL7","v":585.17956816139713},{"$f":"Control!$B41*(1-Control!$E41)*Prices!BM7","v":585.17956816139713},{"$f":"Control!$B41*(1-Control!$E41)*Prices!BN7","v":585.17956816139713},{"$f":"Control!$B41*(1-Control!$E41)*Prices!BO7","v":585.17956816139713},{"$f":"Control!$B41*(1-Control!$E41)*Prices!BP7","v":585.17956816139713},{"$f":"Control!$B41*(1-Control!$E41)*Prices!BQ7","v":585.17956816139713},{"$f":"Control!$B41*(1-Control!$E41)*Prices!BR7","v":585.17956816139713},{"$f":"Control!$B41*(1-Control!$E41)*Prices!BS7","v":585.17956816139713},{"$f":"Control!$B41*(1-Control!$E41)*Prices!BT7","v":585.17956816139713},{"$f":"Control!$B41*(1-Control!$E41)*Prices!BU7","v":585.17956816139713},{"$f":"Control!$B41*(1-Control!$E41)*Prices!BV7","v":585.17956816139713},{"$f":"Control!$B41*(1-Control!$E41)*Prices!BW7","v":585.17956816139713},{"$f":"Control!$B41*(1-Control!$E41)*Prices!BX7","v":585.17956816139713},{"$f":"Control!$B41*(1-Control!$E41)*Prices!BY7","v":585.17956816139713},{"$f":"Control!$B41*(1-Control!$E41)*Prices!BZ7","v":585.17956816139713},{"$f":"Control!$B41*(1-Control!$E41)*Prices!CA7","v":585.17956816139713},{"$f":"Control!$B41*(1-Control!$E41)*Prices!CB7","v":585.17956816139713},{"$f":"Control!$B41*(1-Control!$E41)*Prices!CC7","v":585.17956816139713},{"$f":"Control!$B41*(1-Control!$E41)*Prices!CD7","v":585.17956816139713},{"$f":"Control!$B41*(1-Control!$E41)*Prices!CE7","v":585.17956816139713},{"$f":"Control!$B41*(1-Control!$E41)*Prices!CF7","v":585.17956816139713},{"$f":"Control!$B41*(1-Control!$E41)*Prices!CG7","v":585.17956816139713},{"$f":"Control!$B41*(1-Control!$E41)*Prices!CH7","v":585.17956816139713},{"$f":"Control!$B41*(1-Control!$E41)*Prices!CI7","v":585.17956816139713},{"$f":"Control!$B41*(1-Control!$E41)*Prices!CJ7","v":585.17956816139713},{"$f":"Control!$B41*(1-Control!$E41)*Prices!CK7","v":585.17956816139713},{"$f":"Control!$B41*(1-Control!$E41)*Prices!CL7","v":585.17956816139713},{"$f":"Control!$B41*(1-Control!$E41)*Prices!CM7","v":585.17956816139713},{"$f":"Control!$B41*(1-Control!$E41)*Prices!CN7","v":585.17956816139713},{"$f":"Control!$B41*(1-Control!$E41)*Prices!CO7","v":585.17956816139713},{"$f":"Control!$B41*(1-Control!$E41)*Prices!CP7","v":585.17956816139713},{"$f":"Control!$B41*(1-Control!$E41)*Prices!CQ7","v":585.17956816139713},{"$f":"Control!$B41*(1-Control!$E41)*Prices!CR7","v":585.17956816139713},{"$f":"Control!$B41*(1-Control!$E41)*Prices!CS7","v":585.17956816139713},{"$f":"Control!$B41*(1-Control!$E41)*Prices!CT7","v":585.17956816139713},{"$f":"Control!$B41*(1-Control!$E41)*Prices!CU7","v":585.17956816139713},{"$f":"Control!$B41*(1-Control!$E41)*Prices!CV7","v":585.17956816139713},{"$f":"Control!$B41*(1-Control!$E41)*Prices!CW7","v":585.17956816139713},{"$f":"Control!$B41*(1-Control!$E41)*Prices!CX7","v":585.17956816139713},{"$f":"Control!$B41*(1-Control!$E41)*Prices!CY7","v":585.17956816139713},{"$f":"Control!$B41*(1-Control!$E41)*Prices!CZ7","v":585.17956816139713},{"$f":"Control!$B41*(1-Control!$E41)*Prices!DA7","v":585.17956816139713},{"$f":"Control!$B41*(1-Control!$E41)*Prices!DB7","v":585.17956816139713},{"$f":"Control!$B41*(1-Control!$E41)*Prices!DC7","v":585.17956816139713},{"$f":"Control!$B41*(1-Control!$E41)*Prices!DD7","v":585.17956816139713},{"$f":"Control!$B41*(1-Control!$E41)*Prices!DE7","v":585.17956816139713},{"$f":"Control!$B41*(1-Control!$E41)*Prices!DF7","v":585.17956816139713},{"$f":"Control!$B41*(1-Control!$E41)*Prices!DG7","v":585.17956816139713},{"$f":"Control!$B41*(1-Control!$E41)*Prices!DH7","v":585.17956816139713},{"$f":"Control!$B41*(1-Control!$E41)*Prices!DI7","v":585.17956816139713},{"$f":"Control!$B41*(1-Control!$E41)*Prices!DJ7","v":585.17956816139713},{"$f":"Control!$B41*(1-Control!$E41)*Prices!DK7","v":585.17956816139713},{"$f":"Control!$B41*(1-Control!$E41)*Prices!DL7","v":585.17956816139713},{"$f":"Control!$B41*(1-Control!$E41)*Prices!DM7","v":585.17956816139713},{"$f":"Control!$B41*(1-Control!$E41)*Prices!DN7","v":585.17956816139713},{"$f":"Control!$B41*(1-Control!$E41)*Prices!DO7","v":585.17956816139713},{"$f":"Control!$B41*(1-Control!$E41)*Prices!DP7","v":585.17956816139713},{"$f":"Control!$B41*(1-Control!$E41)*Prices!DQ7","v":585.17956816139713},{"$f":"Control!$B41*(1-Control!$E41)*Prices!DR7","v":585.17956816139713},{"$f":"Control!$B41*(1-Control!$E41)*Prices!DS7","v":585.17956816139713},{"$f":"Control!$B41*(1-Control!$E41)*Prices!DT7","v":585.17956816139713},{"$f":"Control!$B41*(1-Control!$E41)*Prices!DU7","v":585.17956816139713},{"$f":"Control!$B41*(1-Control!$E41)*Prices!DV7","v":585.17956816139713}]
["Ducted gas heating",{"$f":"Control!$B42*(1-Control!$E42)*Prices!AA4","v":1070.1345714893889},{"$f":"Control!$B42*(1-Control!$E42)*Prices!AB4","v":1170.8001888495744},{"$f":"Control!$B42*(1-Control!$E42)*Prices!AC4","v":1129.1642821747052},{"$f":"Control!$B42*(1-Control!$E42)*Prices!AD4","v":1131.0219250617258},{"$f":"Control!$B42*(1-Control!$E42)*Prices!AE4","v":1095.0186640999536},{"$f":"Control!$B42*(1-Control!$E42)*Prices!AF4","v":1092.5561561927459},{"$f":"Control!$B42*(1-Control!$E42)*Prices!AG4","v":1120.7190483243478},{"$f":"Control!$B42*(1-Control!$E42)*Prices!AH4","v":1198.1572515837574},{"$f":"Control!$B42*(1-Control!$E42)*Prices!AI4","v":1268.2154452747973},{"$f":"Control!$B42*(1-Control!$E42)*Prices!AJ4","v":1321.6345471062464},{"$f":"Control!$B42*(1-Control!$E42)*Prices!AK4","v":1218.084444081534},{"$f":"Control!$B42*(1-Control!$E42)*Prices!AL4","v":1213.3301811526799},{"$f":"Control!$B42*(1-Control!$E42)*Prices!AM4","v":1237.5847613063331},{"$f":"Control!$B42*(1-Control!$E42)*Prices!AN4","v":1277.7048968892991},{"$f":"Control!$B42*(1-Control!$E42)*Prices!AO4","v":1119.2712784177659},{"$f":"Control!$B42*(1-Control!$E42)*Prices!AP4","v":1130.653008431746},{"$f":"Control!$B42*(1-Control!$E42)*Prices!AQ4","v":1148.9729494839314},{"$f":"Control!$B42*(1-Control!$E42)*Prices!AR4","v":1178.7762095213384},{"$f":"Control!$B42*(1-Control!$E42)*Prices!AS4","v":1195.4829663511673},{"$f":"Control!$B42*(1-Control!$E42)*Prices!AT4","v":1189.9038860669955},{"$f":"Control!$B42*(1-Control!$E42)*Prices!AU4","v":1197.9555312343539},{"$f":"Control!$B42*(1-Control!$E42)*Prices!AV4","v":1233.9487366871313},{"$f":"Control!$B42*(1-Control!$E42)*Prices!AW4","v":1261.5569163128548},{"$f":"Control!$B42*(1-Control!$E42)*Prices!AX4","v":1271.7154887808649},{"$f":"Control!$B42*(1-Control!$E42)*Prices!AY4","v":1284.6354147167983},{"$f":"Control!$B42*(1-Control!$E42)*Prices!AZ4","v":1296.7517725093733},{"$f":"Control!$B42*(1-Control!$E42)*Prices!BA4","v":1304.6969589869664},{"$f":"Control!$B42*(1-Control!$E42)*Prices!BB4","v":1309.5951422084815},{"$f":"Control!$B42*(1-Control!$E42)*Prices!BC4","v":1313.2775518871654},{"$f":"Control!$B42*(1-Control!$E42)*Prices!BD4","v":1323.0923706200892},{"$f":"Control!$B42*(1-Control!$E42)*Prices!BE4","v":1323.4738808648315},{"$f":"Control!$B42*(1-Control!$E42)*Prices!BF4","v":1336.6641073327203},{"$f":"Control!$B42*(1-Control!$E42)*Prices!BG4","v":1337.297235326547},{"$f":"Control!$B42*(1-Control!$E42)*Prices!BH4","v":1337.9304160544489},{"$f":"Control!$B42*(1-Control!$E42)*Prices!BI4","v":1338.5636494636917},{"$f":"Control!$B42*(1-Control!$E42)*Prices!BJ4","v":1339.1969355015942},{"$f":"Control!$B42*(1-Control!$E42)*Prices!BK4","v":1339.8302741155283},{"$f":"Control!$B42*(1-Control!$E42)*Prices!BL4","v":1340.4636652529168},{"$f":"Control!$B42*(1-Control!$E42)*Prices!BM4","v":1341.0971088612375},{"$f":"Control!$B42*(1-Control!$E42)*Prices!BN4","v":1341.7306048880182},{"$f":"Control!$B42*(1-Control!$E42)*Prices!BO4","v":1342.3641532808417},{"$f":"Control!$B42*(1-Control!$E42)*Prices!BP4","v":1342.9977539873407},{"$f":"Control!$B42*(1-Control!$E42)*Prices!BQ4","v":1343.6314069552029},{"$f":"Control!$B42*(1-Control!$E42)*Prices!BR4","v":1344.2651121321655},{"$f":"Control!$B42*(1-Control!$E42)*Prices!BS4","v":1344.8988694660206},{"$f":"Control!$B42*(1-Control!$E42)*Prices!BT4","v":1345.5326789046105},{"$f":"Control!$B42*(1-Control!$E42)*Prices!BU4","v":1346.1665403958311},{"$f":"Control!$B42*(1-Control!$E42)*Prices!BV4","v":1346.8004538876291},{"$f":"Control!$B42*(1-Control!$E42)*Prices!BW4","v":1347.4344193280047},{"$f":"Control!$B42*(1-Control!$E42)*Prices!BX4","v":1348.0684366650082},{"$f":"Control!$B42*(1-Control!$E42)*Prices!BY4","v":1348.7025058467445},{"$f":"Control!$B42*(1-Control!$E42)*Prices!BZ4","v":1349.3366268213672},{"$f":"Control!$B42*(1-Control!$E42)*Prices!CA4","v":1349.970799537085},{"$f":"Control!$B42*(1-Control!$E42)*Prices!CB4","v":1350.6050239421554},{"$f":"Control!$B42*(1-Control!$E42)*Prices!CC4","v":1351.2392999848903},{"$f":"Control!$B42*(1-Control!$E42)*Prices!CD4","v":1351.873627613651},{"$f":"Control!$B42*(1-Control!$E42)*Prices!CE4","v":1352.508006776852},{"$f":"Control!$B42*(1-Control!$E42)*Prices!CF4","v":1353.1424374229587},{"$f":"Control!$B42*(1-Control!$E42)*Prices!CG4","v":1353.7769195004887},{"$f":"Control!$B42*(1-Control!$E42)*Prices!CH4","v":1354.4114529580095},{"$f":"Control!$B42*(1-Control!$E42)*Prices!CI4","v":1355.0460377441423},{"$f":"Control!$B42*(1-Control!$E42)*Prices!CJ4","v":1355.6806738075572},{"$f":"Control!$B42*(1-Control!$E42)*Prices!CK4","v":1356.3153610969787},{"$f":"Control!$B42*(1-Control!$E42)*Prices!CL4","v":1356.9500995611788},{"$f":"Control!$B42*(1-Control!$E42)*Prices!CM4","v":1357.5848891489843},{"$f":"Control!$B42*(1-Control!$E42)*Prices!CN4","v":1358.2197298092703},{"$f":"Control!$B42*(1-Control!$E42)*Prices!CO4","v":1358.8546214909657},{"$f":"Control!$B42*(1-Control!$E42)*Prices!CP4","v":1359.4895641430478},{"$f":"Control!$B42*(1-Control!$E42)*Prices!CQ4","v":1360.1245577145473},{"$f":"Control!$B42*(1-Control!$E42)*Prices!CR4","v":1360.7596021545435},{"$f":"Control!$B42*(1-Control!$E42)*Prices!CS4","v":1361.3946974121695},{"$f":"Control!$B42*(1-Control!$E42)*Prices!CT4","v":1362.0298434366061},{"$f":"Control!$B42*(1-Control!$E42)*Prices!CU4","v":1362.6650401770883},{"$f":"Control!$B42*(1-Control!$E42)*Prices!CV4","v":1363.3002875828979},{"$f":"Control!$B42*(1-Control!$E42)*Prices!CW4","v":1363.9355856033715},{"$f":"Control!$B42*(1-Control!$E42)*Prices!CX4","v":1364.5709341878926},{"$f":"Control!$B42*(1-Control!$E42)*Prices!CY4","v":1365.2063332858991},{"$f":"Control!$B42*(1-Control!$E42)*Prices!CZ4","v":1365.8417828468757},{"$f":"Control!$B42*(1-Control!$E42)*Prices!DA4","v":1366.4772828203611},{"$f":"Control!$B42*(1-Control!$E42)*Prices!DB4","v":1367.1128331559414},{"$f":"Control!$B42*(1-Control!$E42)*Prices!DC4","v":1367.1128331559414},{"$f":"Control!$B42*(1-Control!$E42)*Prices!DD4","v":1367.1128331559414},{"$f":"Control!$B42*(1-Control!$E42)*Prices!DE4","v":1367.1128331559414},{"$f":"Control!$B42*(1-Control!$E42)*Prices!DF4","v":1367.1128331559414},{"$f":"Control!$B42*(1-Control!$E42)*Prices!DG4","v":1367.1128331559414},{"$f":"Control!$B42*(1-Control!$E42)*Prices!DH4","v":1367.1128331559414},{"$f":"Control!$B42*(1-Control!$E42)*Prices!DI4","v":1367.1128331559414},{"$f":"Control!$B42*(1-Control!$E42)*Prices!DJ4","v":1367.1128331559414},{"$f":"Control!$B42*(1-Control!$E42)*Prices!DK4","v":1367.1128331559414},{"$f":"Control!$B42*(1-Control!$E42)*Prices!DL4","v":1367.1128331559414},{"$f":"Control!$B42*(1-Control!$E42)*Prices!DM4","v":1367.1128331559414},{"$f":"Control!$B42*(1-Control!$E42)*Prices!DN4","v":1367.1128331559414},{"$f":"Control!$B42*(1-Control!$E42)*Prices!DO4","v":1367.1128331559414},{"$f":"Control!$B42*(1-Control!$E42)*Prices!DP4","v":1367.1128331559414},{"$f":"Control!$B42*(1-Control!$E42)*Prices!DQ4","v":1367.1128331559414},{"$f":"Control!$B42*(1-Control!$E42)*Prices!DR4","v":1367.1128331559414},{"$f":"Control!$B42*(1-Control!$E42)*Prices!DS4","v":1367.1128331559414},{"$f":"Control!$B42*(1-Control!$E42)*Prices!DT4","v":1367.1128331559414},{"$f":"Control!$B42*(1-Control!$E42)*Prices!DU4","v":1367.1128331559414},{"$f":"Control!$B42*(1-Control!$E42)*Prices!DV4","v":1367.1128331559414}]
["Difference",{"$f":"B56-B55","v":365.83018164967541},{"$f":"C56-C55","v":431.29961546998538},393.94694477952896,422.86527747836578,384.19628067793917,390.36283543042566,434.74278285286721,473.65592344546064,546.69123845214904,549.30220076875582,463.52871436065175,461.25979238164552,507.6176729936102,554.41261078757202,413.31865424158707,431.89297637005257,459.72937612079977,500.92944732392789,530.897224837561,540.39573493064631,558.00025779984696,603.80242687059103,641.55546267562954,662.14699793158718,685.73587468448613,700.92341028309636,711.76355769231111,719.37464641758208,725.67120830041029,737.91280245869211,738.29431270343434,751.48453917132315,752.1176671651499,752.75084789305174,753.38408130229459,754.0173673401971,754.65070595413113,755.2840970915197,755.9175406998404,756.55103672662108,757.18458511944459,757.8181858259436,758.45183879380579,759.08554397076841,759.71930130462351,760.35311074321339,760.98697223443401,761.62088572623202,762.25485116660752,762.88886850361109,763.52293768534742,764.15705865997006,764.79123137568786,765.42545578075828,766.05973182349317,766.6940594522539,767.32843861545484,767.96286926156154,768.59735133909157,769.23188479661235,769.86646958274514,770.50110564616011,771.13579293558155,771.7705313997817,772.40532098758717,{"$f":"BO56-BO55","v":773.04016164787322},773.67505332956853,774.30999598165067,774.94498955315021,775.58003399314634,776.21512925077241,776.85027527520901,777.48547201569113,778.12071942150078,778.75601744197434,779.39136602649546,780.02676512450194,780.6622146854786,781.29771465896397,781.93326499454429,{"$f":"CD56-CD55","v":781.93326499454429},781.93326499454429,781.93326499454429,781.93326499454429,781.93326499454429,781.93326499454429,781.93326499454429,781.93326499454429,781.93326499454429,781.93326499454429,781.93326499454429,781.93326499454429,781.93326499454429,781.93326499454429,781.93326499454429,781.93326499454429,781.93326499454429,781.93326499454429,781.93326499454429,781.93326499454429]
["Gas service charge $",{"$f":"Prices!AA10*365.25","v":273.51998484633646},{"$f":"Prices!AB10*365.25","v":273.51998484633646},{"$f":"Prices!AC10*365.25","v":253.06744526595662},{"$f":"Prices!AD10*365.25","v":254.67684660160953},{"$f":"Prices!AE10*365.25","v":268.24123972563552},{"$f":"Prices!AF10*365.25","v":268.95094529005581},{"$f":"Prices!AG10*365.25","v":273.03928560866416},{"$f":"Prices!AH10*365.25","v":283.16710029499512},{"$f":"Prices!AI10*365.25","v":293.30042262471773},{"$f":"Prices!AJ10*365.25","v":299.07670889099512},{"$f":"Prices!AK10*365.25","v":302.02740174845661},{"$f":"Prices!AL10*365.25","v":302.77770898999518},{"$f":"Prices!AM10*365.25","v":316.71246079776375},{"$f":"Prices!AN10*365.25","v":329.54258105989692},{"$f":"Prices!AO10*365.25","v":160.295496509423},{"$f":"Prices!AP10*365.25","v":159.85753067196558},{"$f":"Prices!AQ10*365.25","v":160.295496509423},{"$f":"Prices!AR10*365.25","v":160.295496509423},{"$f":"Prices!AS10*365.25","v":160.295496509423},{"$f":"Prices!AT10*365.25","v":159.85753067196558},{"$f":"Prices!AU10*365.25","v":160.295496509423},{"$f":"Prices!AV10*365.25","v":160.295496509423},{"$f":"Prices!AW10*365.25","v":160.295496509423},{"$f":"Prices!AX10*365.25","v":159.85753067196558},{"$f":"Prices!AY10*365.25","v":160.295496509423},{"$f":"Prices!AZ10*365.25","v":160.295496509423},{"$f":"Prices!BA10*365.25","v":160.295496509423},{"$f":"Prices!BB10*365.25","v":159.85753067196558},{"$f":"Prices!BC10*365.25","v":160.295496509423},{"$f":"Prices!BD10*365.25","v":160.295496509423},{"$f":"Prices!BE10*365.25","v":160.295496509423},{"$f":"Prices!BF10*365.25","v":159.85753067196558},{"$f":"Prices!BG10*365.25","v":160.295496509423},{"$f":"Prices!BH10*365.25","v":160.295496509423},{"$f":"Prices!BI10*365.25","v":160.295496509423},{"$f":"Prices!BJ10*365.25","v":159.85753067196558},{"$f":"Prices!BK10*365.25","v":160.295496509423},{"$f":"Prices!BL10*365.25","v":160.295496509423},{"$f":"Prices!BM10*365.25","v":160.295496509423},{"$f":"Prices!BN10*365.25","v":159.85753067196558},{"$f":"Prices!BO10*365.25","v":160.295496509423},{"$f":"Prices!BP10*365.25","v":160.295496509423},{"$f":"Prices!BQ10*365.25","v":160.295496509423},{"$f":"Prices!BR10*365.25","v":159.85753067196558},{"$f":"Prices!BS10*365.25","v":160.295496509423},{"$f":"Prices!BT10*365.25","v":160.295496509423},{"$f":"Prices!BU10*365.25","v":160.295496509423},{"$f":"Prices!BV10*365.25","v":159.85753067196558},{"$f":"Prices!BW10*365.25","v":160.295496509423},{"$f":"Prices!BX10*365.25","v":160.295496509423},{"$f":"Prices!BY10*365.25","v":160.295496509423},{"$f":"Prices!BZ10*365.25","v":159.85753067196558},{"$f":"Prices!CA10*365.25","v":160.295496509423},{"$f":"Prices!CB10*365.25","v":160.295496509423},{"$f":"Prices!CC10*365.25","v":160.295496509423},{"$f":"Prices!CD10*365.25","v":159.85753067196558},{"$f":"Prices!CE10*365.25","v":160.295496509423},{"$f":"Prices!CF10*365.25","v":160.295496509423},{"$f":"Prices!CG10*365.25","v":160.295496509423},{"$f":"Prices!CH10*365.25","v":159.85753067196558},{"$f":"Prices!CI10*365.25","v":160.295496509423},{"$f":"Prices!CJ10*365.25","v":160.295496509423},{"$f":"Prices!CK10*365.25","v":160.295496509423},{"$f":"Prices!CL10*365.25","v":159.85753067196558},{"$f":"Prices!CM10*365.25","v":160.295496509423},{"$f":"Prices!CN10*365.25","v":160.295496509423},{"$f":"Prices!CO10*365.25","v":160.295496509423},{"$f":"Prices!CP10*365.25","v":159.85753067196558},{"$f":"Prices!CQ10*365.25","v":160.295496509423},{"$f":"Prices!CR10*365.25","v":160.295496509423},{"$f":"Prices!CS10*365.25","v":160.295496509423},{"$f":"Prices!CT10*365.25","v":159.85753067196558},{"$f":"Prices!CU10*365.25","v":160.295496509423},{"$f":"Prices!CV10*365.25","v":160.295496509423},{"$f":"Prices!CW10*365.25","v":160.295496509423},{"$f":"Prices!CX10*365.25","v":159.85753067196558},{"$f":"Prices!CY10*365.25","v":160.295496509423},{"$f":"Prices!CZ10*365.25","v":160.295496509423},{"$f":"Prices!DA10*365.25","v":160.295496509423},{"$f":"Prices!DB10*365.25","v":160.295496509423},{"$f":"Prices!DC10*365.25","v":160.295496509423},{"$f":"Prices!DD10*365.25","v":160.295496509423},{"$f":"Prices!DE10*365.25","v":160.295496509423},{"$f":"Prices!DF10*365.25","v":160.295496509423},{"$f":"Prices!DG10*365.25","v":160.295496509423},{"$f":"Prices!DH10*365.25","v":160.295496509423},{"$f":"Prices!DI10*365.25","v":160.295496509423},{"$f":"Prices!DJ10*365.25","v":160.295496509423},{"$f":"Prices!DK10*365.25","v":160.295496509423},{"$f":"Prices!DL10*365.25","v":160.295496509423},{"$f":"Prices!DM10*365.25","v":160.295496509423},{"$f":"Prices!DN10*365.25","v":160.295496509423},{"$f":"Prices!DO10*365.25","v":160.295496509423},{"$f":"Prices!DP10*365.25","v":160.295496509423},{"$f":"Prices!DQ10*365.25","v":160.295496509423},{"$f":"Prices!DR10*365.25","v":160.295496509423},{"$f":"Prices!DS10*365.25","v":160.295496509423},{"$f":"Prices!DT10*365.25","v":160.295496509423},{"$f":"Prices!DU10*365.25","v":160.295496509423},{"$f":"Prices!DV10*365.25","v":160.295496509423}]
["Electricity service charge $",{"$f":"Prices!AA12*365.25","v":0},{"$f":"Prices!AB12*365.25","v":0},{"$f":"Prices!AC12*365.25","v":0},{"$f":"Prices!AD12*365.25","v":0},{"$f":"Prices!AE12*365.25","v":0},{"$f":"Prices!AF12*365.25","v":0},{"$f":"Prices!AG12*365.25","v":0},{"$f":"Prices!AH12*365.25","v":0},{"$f":"Prices!AI12*365.25","v":0},{"$f":"Prices!AJ12*365.25","v":0},{"$f":"Prices!AK12*365.25","v":0},{"$f":"Prices!AL12*365.25","v":0},{"$f":"Prices!AM12*365.25","v":0},{"$f":"Prices!AN12*365.25","v":0},{"$f":"Prices!AO12*365.25","v":0},{"$f":"Prices!AP12*365.25","v":0},{"$f":"Prices!AQ12*365.25","v":0},{"$f":"Prices!AR12*365.25","v":0},{"$f":"Prices!AS12*365.25","v":0},{"$f":"Prices!AT12*365.25","v":0},{"$f":"Prices!AU12*365.25","v":0},{"$f":"Prices!AV12*365.25","v":0},{"$f":"Prices!AW12*365.25","v":0},{"$f":"Prices!AX12*365.25","v":0},{"$f":"Prices!AY12*365.25","v":0},{"$f":"Prices!AZ12*365.25","v":0},{"$f":"Prices!BA12*365.25","v":0},{"$f":"Prices!BB12*365.25","v":0},{"$f":"Prices!BC12*365.25","v":0},{"$f":"Prices!BD12*365.25","v":0},{"$f":"Prices!BE12*365.25","v":0},{"$f":"Prices!BF12*365.25","v":0},{"$f":"Prices!BG12*365.25","v":0},{"$f":"Prices!BH12*365.25","v":0},{"$f":"Prices!BI12*365.25","v":0},{"$f":"Prices!BJ12*365.25","v":0},{"$f":"Prices!BK12*365.25","v":0},{"$f":"Prices!BL12*365.25","v":0},{"$f":"Prices!BM12*365.25","v":0},{"$f":"Prices!BN12*365.25","v":0},{"$f":"Prices!BO12*365.25","v":0},{"$f":"Prices!BP12*365.25","v":0},{"$f":"Prices!BQ12*365.25","v":0},{"$f":"Prices!BR12*365.25","v":0},{"$f":"Prices!BS12*365.25","v":0},{"$f":"Prices!BT12*365.25","v":0},{"$f":"Prices!BU12*365.25","v":0},{"$f":"Prices!BV12*365.25","v":0},{"$f":"Prices!BW12*365.25","v":0},{"$f":"Prices!BX12*365.25","v":0},{"$f":"Prices!BY12*365.25","v":0},{"$f":"Prices!BZ12*365.25","v":0},{"$f":"Prices!CA12*365.25","v":0},{"$f":"Prices!CB12*365.25","v":0},{"$f":"Prices!CC12*365.25","v":0},{"$f":"Prices!CD12*365.25","v":0},{"$f":"Prices!CE12*365.25","v":0},{"$f":"Prices!CF12*365.25","v":0},{"$f":"Prices!CG12*365.25","v":0},{"$f":"Prices!CH12*365.25","v":0},{"$f":"Prices!CI12*365.25","v":0},{"$f":"Prices!CJ12*365.25","v":0},{"$f":"Prices!CK12*365.25","v":0},{"$f":"Prices!CL12*365.25","v":0},{"$f":"Prices!CM12*365.25","v":0},{"$f":"Prices!CN12*365.25","v":0},{"$f":"Prices!CO12*365.25","v":0},{"$f":"Prices!CP12*365.25","v":0},{"$f":"Prices!CQ12*365.25","v":0},{"$f":"Prices!CR12*365.25","v":0},{"$f":"Prices!CS12*365.25","v":0},{"$f":"Prices!CT12*365.25","v":0},{"$f":"Prices!CU12*365.25","v":0},{"$f":"Prices!CV12*365.25","v":0},{"$f":"Prices!CW12*365.25","v":0},{"$f":"Prices!CX12*365.25","v":0},{"$f":"Prices!CY12*365.25","v":0},{"$f":"Prices!CZ12*365.25","v":0},{"$f":"Prices!DA12*365.25","v":0},{"$f":"Prices!DB12*365.25","v":0},{"$f":"Prices!DC12*365.25","v":0},{"$f":"Prices!DD12*365.25","v":0},{"$f":"Prices!DE12*365.25","v":0},{"$f":"Prices!DF12*365.25","v":0},{"$f":"Prices!DG12*365.25","v":0},{"$f":"Prices!DH12*365.25","v":0},{"$f":"Prices!DI12*365.25","v":0},{"$f":"Prices!DJ12*365.25","v":0},{"$f":"Prices!DK12*365.25","v":0},{"$f":"Prices!DL12*365.25","v":0},{"$f":"Prices!DM12*365.25","v":0},{"$f":"Prices!DN12*365.25","v":0},{"$f":"Prices!DO12*365.25","v":0},{"$f":"Prices!DP12*365.25","v":0},{"$f":"Prices!DQ12*365.25","v":0},{"$f":"Prices!DR12*365.25","v":0},{"$f":"Prices!DS12*365.25","v":0},{"$f":"Prices!DT12*365.25","v":0},{"$f":"Prices!DU12*365.25","v":0},{"$f":"Prices!DV12*365.25","v":0}]
[]
["Residential","Maintenance costs (p/a)"]
["Cooking",2021,{"$f":"B62+1","v":2022},{"$f":"C62+1","v":2023},{"$f":"D62+1","v":2024},{"$f":"E62+1","v":2025},{"$f":"F62+1","v":2026},{"$f":"G62+1","v":2027},{"$f":"H62+1","v":2028},{"$f":"I62+1","v":2029},{"$f":"J62+1","v":2030},{"$f":"K62+1","v":2031},{"$f":"L62+1","v":2032},{"$f":"M62+1","v":2033},{"$f":"N62+1","v":2034},{"$f":"O62+1","v":2035},{"$f":"P62+1","v":2036},{"$f":"Q62+1","v":2037},{"$f":"R62+1","v":2038},{"$f":"S62+1","v":2039},{"$f":"T62+1","v":2040},{"$f":"U62+1","v":2041},{"$f":"V62+1","v":2042},{"$f":"W62+1","v":2043},{"$f":"X62+1","v":2044},{"$f":"Y62+1","v":2045},{"$f":"Z62+1","v":2046},{"$f":"AA62+1","v":2047},{"$f":"AB62+1","v":2048},{"$f":"AC62+1","v":2049},{"$f":"AD62+1","v":2050},{"$f":"AE62+1","v":2051},{"$f":"AF62+1","v":2052},{"$f":"AG62+1","v":2053},{"$f":"AH62+1","v":2054},{"$f":"AI62+1","v":2055},{"$f":"AJ62+1","v":2056},{"$f":"AK62+1","v":2057},{"$f":"AL62+1","v":2058},{"$f":"AM62+1","v":2059},{"$f":"AN62+1","v":2060},{"$f":"AO62+1","v":2061},{"$f":"AP62+1","v":2062},{"$f":"AQ62+1","v":2063},{"$f":"AR62+1","v":2064},{"$f":"AS62+1","v":2065},{"$f":"AT62+1","v":2066},{"$f":"AU62+1","v":2067},{"$f":"AV62+1","v":2068},{"$f":"AW62+1","v":2069},{"$f":"AX62+1","v":2070},{"$f":"AY62+1","v":2071},{"$f":"AZ62+1","v":2072},{"$f":"BA62+1","v":2073},{"$f":"BB62+1","v":2074},{"$f":"BC62+1","v":2075},{"$f":"BD62+1","v":2076},{"$f":"BE62+1","v":2077},{"$f":"BF62+1","v":2078},{"$f":"BG62+1","v":2079},{"$f":"BH62+1","v":2080},{"$f":"BI62+1","v":2081},{"$f":"BJ62+1","v":2082},{"$f":"BK62+1","v":2083},{"$f":"BL62+1","v":2084},{"$f":"BM62+1","v":2085},{"$f":"BN62+1","v":2086},{"$f":"BO62+1","v":2087},{"$f":"BP62+1","v":2088},{"$f":"BQ62+1","v":2089},{"$f":"BR62+1","v":2090},{"$f":"BS62+1","v":2091},{"$f":"BT62+1","v":2092},{"$f":"BU62+1","v":2093},{"$f":"BV62+1","v":2094},{"$f":"BW62+1","v":2095},{"$f":"BX62+1","v":2096},{"$f":"BY62+1","v":2097},{"$f":"BZ62+1","v":2098},{"$f":"CA62+1","v":2099},{"$f":"CB62+1","v":2100},{"$f":"CC62+1","v":2101},{"$f":"CD62+1","v":2102},{"$f":"CE62+1","v":2103},{"$f":"CF62+1","v":2104},{"$f":"CG62+1","v":2105},{"$f":"CH62+1","v":2106},{"$f":"CI62+1","v":2107},{"$f":"CJ62+1","v":2108},{"$f":"CK62+1","v":2109},{"$f":"CL62+1","v":2110},{"$f":"CM62+1","v":2111},{"$f":"CN62+1","v":2112},{"$f":"CO62+1","v":2113},{"$f":"CP62+1","v":2114},{"$f":"CQ62+1","v":2115},{"$f":"CR62+1","v":2116},{"$f":"CS62+1","v":2117},{"$f":"CT62+1","v":2118},{"$f":"CU62+1","v":2119},{"$f":"CV62+1","v":2120}]
["Electric cooktop (induction)",{"$f":"Control!H29","v":0},{"$f":"B63*(1+Control!$K29)","v":0},{"$f":"C63*(1+Control!$K29)","v":0},{"$f":"D63*(1+Control!$K29)","v":0},{"$f":"E63*(1+Control!$K29)","v":0},{"$f":"F63*(1+Control!$K29)","v":0},{"$f":"G63*(1+Control!$K29)","v":0},{"$f":"H63*(1+Control!$K29)","v":0},{"$f":"I63*(1+Control!$K29)","v":0},{"$f":"J63*(1+Control!$K29)","v":0},{"$f":"K63*(1+Control!$K29)","v":0},{"$f":"L63*(1+Control!$K29)","v":0},{"$f":"M63*(1+Control!$K29)","v":0},{"$f":"N63*(1+Control!$K29)","v":0},{"$f":"O63*(1+Control!$K29)","v":0},{"$f":"P63*(1+Control!$K29)","v":0},{"$f":"Q63*(1+Control!$K29)","v":0},{"$f":"R63*(1+Control!$K29)","v":0},{"$f":"S63*(1+Control!$K29)","v":0},{"$f":"T63*(1+Control!$K29)","v":0},{"$f":"U63*(1+Control!$K29)","v":0},{"$f":"V63*(1+Control!$K29)","v":0},{"$f":"W63*(1+Control!$K29)","v":0},{"$f":"X63*(1+Control!$K29)","v":0},{"$f":"Y63*(1+Control!$K29)","v":0},{"$f":"Z63*(1+Control!$K29)","v":0},{"$f":"AA63*(1+Control!$K29)","v":0},{"$f":"AB63*(1+Control!$K29)","v":0},{"$f":"AC63*(1+Control!$K29)","v":0},{"$f":"AD63*(1+Control!$K29)","v":0},{"$f":"AE63*(1+Control!$K29)","v":0},{"$f":"AF63*(1+Control!$K29)","v":0},{"$f":"AG63*(1+Control!$K29)","v":0},{"$f":"AH63*(1+Control!$K29)","v":0},{"$f":"AI63*(1+Control!$K29)","v":0},{"$f":"AJ63*(1+Control!$K29)","v":0},{"$f":"AK63*(1+Control!$K29)","v":0},{"$f":"AL63*(1+Control!$K29)","v":0},{"$f":"AM63*(1+Control!$K29)","v":0},{"$f":"AN63*(1+Control!$K29)","v":0},{"$f":"AO63*(1+Control!$K29)","v":0},{"$f":"AP63*(1+Control!$K29)","v":0},{"$f":"AQ63*(1+Control!$K29)","v":0},{"$f":"AR63*(1+Control!$K29)","v":0},{"$f":"AS63*(1+Control!$K29)","v":0},{"$f":"AT63*(1+Control!$K29)","v":0},{"$f":"AU63*(1+Control!$K29)","v":0},{"$f":"AV63*(1+Control!$K29)","v":0},{"$f":"AW63*(1+Control!$K29)","v":0},{"$f":"AX63*(1+Control!$K29)","v":0},{"$f":"AY63*(1+Control!$K29)","v":0},{"$f":"AZ63*(1+Control!$K29)","v":0},{"$f":"BA63*(1+Control!$K29)","v":0},{"$f":"BB63*(1+Control!$K29)","v":0},{"$f":"BC63*(1+Control!$K29)","v":0},{"$f":"BD63*(1+Control!$K29)","v":0},{"$f":"BE63*(1+Control!$K29)","v":0},{"$f":"BF63*(1+Control!$K29)","v":0},{"$f":"BG63*(1+Control!$K29)","v":0},{"$f":"BH63*(1+Control!$K29)","v":0},{"$f":"BI63*(1+Control!$K29)","v":0},{"$f":"BJ63*(1+Control!$K29)","v":0},{"$f":"BK63*(1+Control!$K29)","v":0},{"$f":"BL63*(1+Control!$K29)","v":0},{"$f":"BM63*(1+Control!$K29)","v":0},{"$f":"BN63*(1+Control!$K29)","v":0},{"$f":"BO63*(1+Control!$K29)","v":0},{"$f":"BP63*(1+Control!$K29)","v":0},{"$f":"BQ63*(1+Control!$K29)","v":0},{"$f":"BR63*(1+Control!$K29)","v":0},{"$f":"BS63*(1+Control!$K29)","v":0},{"$f":"BT63*(1+Control!$K29)","v":0},{"$f":"BU63*(1+Control!$K29)","v":0},{"$f":"BV63*(1+Control!$K29)","v":0},{"$f":"BW63*(1+Control!$K29)","v":0},{"$f":"BX63*(1+Control!$K29)","v":0},{"$f":"BY63*(1+Control!$K29)","v":0},{"$f":"BZ63*(1+Control!$K29)","v":0},{"$f":"CA63*(1+Control!$K29)","v":0},{"$f":"CB63*(1+Control!$K29)","v":0},{"$f":"CC63*(1+Control!$K29)","v":0},{"$f":"CD63*(1+Control!$K29)","v":0},{"$f":"CE63*(1+Control!$K29)","v":0},{"$f":"CF63*(1+Control!$K29)","v":0},{"$f":"CG63*(1+Control!$K29)","v":0},{"$f":"CH63*(1+Control!$K29)","v":0},{"$f":"CI63*(1+Control!$K29)","v":0},{"$f":"CJ63*(1+Control!$K29)","v":0},{"$f":"CK63*(1+Control!$K29)","v":0},{"$f":"CL63*(1+Control!$K29)","v":0},{"$f":"CM63*(1+Control!$K29)","v":0},{"$f":"CN63*(1+Control!$K29)","v":0},{"$f":"CO63*(1+Control!$K29)","v":0},{"$f":"CP63*(1+Control!$K29)","v":0},{"$f":"CQ63*(1+Control!$K29)","v":0},{"$f":"CR63*(1+Control!$K29)","v":0},{"$f":"CS63*(1+Control!$K29)","v":0},{"$f":"CT63*(1+Control!$K29)","v":0},{"$f":"CU63*(1+Control!$K29)","v":0},{"$f":"CV63*(1+Control!$K29)","v":0}]
["Gas stove",{"$f":"Control!H30","v":2.1605288007554297},{"$f":"B64*(1+Control!$K30)","v":2.1605288007554297},{"$f":"C64*(1+Control!$K30)","v":2.1605288007554297},{"$f":"D64*(1+Control!$K30)","v":2.1605288007554297},{"$f":"E64*(1+Control!$K30)","v":2.1605288007554297},{"$f":"F64*(1+Control!$K30)","v":2.1605288007554297},{"$f":"G64*(1+Control!$K30)","v":2.1605288007554297},{"$f":"H64*(1+Control!$K30)","v":2.1605288007554297},{"$f":"I64*(1+Control!$K30)","v":2.1605288007554297},{"$f":"J64*(1+Control!$K30)","v":2.1605288007554297},{"$f":"K64*(1+Control!$K30)","v":2.1605288007554297},{"$f":"L64*(1+Control!$K30)","v":2.1605288007554297},{"$f":"M64*(1+Control!$K30)","v":2.1605288007554297},{"$f":"N64*(1+Control!$K30)","v":2.1605288007554297},{"$f":"O64*(1+Control!$K30)","v":2.1605288007554297},{"$f":"P64*(1+Control!$K30)","v":2.1605288007554297},{"$f":"Q64*(1+Control!$K30)","v":2.1605288007554297},{"$f":"R64*(1+Control!$K30)","v":2.1605288007554297},{"$f":"S64*(1+Control!$K30)","v":2.1605288007554297},{"$f":"T64*(1+Control!$K30)","v":2.1605288007554297},{"$f":"U64*(1+Control!$K30)","v":2.1605288007554297},{"$f":"V64*(1+Control!$K30)","v":2.1605288007554297},{"$f":"W64*(1+Control!$K30)","v":2.1605288007554297},{"$f":"X64*(1+Control!$K30)","v":2.1605288007554297},{"$f":"Y64*(1+Control!$K30)","v":2.1605288007554297},{"$f":"Z64*(1+Control!$K30)","v":2.1605288007554297},{"$f":"AA64*(1+Control!$K30)","v":2.1605288007554297},{"$f":"AB64*(1+Control!$K30)","v":2.1605288007554297},{"$f":"AC64*(1+Control!$K30)","v":2.1605288007554297},{"$f":"AD64*(1+Control!$K30)","v":2.1605288007554297},{"$f":"AE64*(1+Control!$K30)","v":2.1605288007554297},{"$f":"AF64*(1+Control!$K30)","v":2.1605288007554297},{"$f":"AG64*(1+Control!$K30)","v":2.1605288007554297},{"$f":"AH64*(1+Control!$K30)","v":2.1605288007554297},{"$f":"AI64*(1+Control!$K30)","v":2.1605288007554297},{"$f":"AJ64*(1+Control!$K30)","v":2.1605288007554297},{"$f":"AK64*(1+Control!$K30)","v":2.1605288007554297},{"$f":"AL64*(1+Control!$K30)","v":2.1605288007554297},{"$f":"AM64*(1+Control!$K30)","v":2.1605288007554297},{"$f":"AN64*(1+Control!$K30)","v":2.1605288007554297},{"$f":"AO64*(1+Control!$K30)","v":2.1605288007554297},{"$f":"AP64*(1+Control!$K30)","v":2.1605288007554297},{"$f":"AQ64*(1+Control!$K30)","v":2.1605288007554297},{"$f":"AR64*(1+Control!$K30)","v":2.1605288007554297},{"$f":"AS64*(1+Control!$K30)","v":2.1605288007554297},{"$f":"AT64*(1+Control!$K30)","v":2.1605288007554297},{"$f":"AU64*(1+Control!$K30)","v":2.1605288007554297},{"$f":"AV64*(1+Control!$K30)","v":2.1605288007554297},{"$f":"AW64*(1+Control!$K30)","v":2.1605288007554297},{"$f":"AX64*(1+Control!$K30)","v":2.1605288007554297},{"$f":"AY64*(1+Control!$K30)","v":2.1605288007554297},{"$f":"AZ64*(1+Control!$K30)","v":2.1605288007554297},{"$f":"BA64*(1+Control!$K30)","v":2.1605288007554297},{"$f":"BB64*(1+Control!$K30)","v":2.1605288007554297},{"$f":"BC64*(1+Control!$K30)","v":2.1605288007554297},{"$f":"BD64*(1+Control!$K30)","v":2.1605288007554297},{"$f":"BE64*(1+Control!$K30)","v":2.1605288007554297},{"$f":"BF64*(1+Control!$K30)","v":2.1605288007554297},{"$f":"BG64*(1+Control!$K30)","v":2.1605288007554297},{"$f":"BH64*(1+Control!$K30)","v":2.1605288007554297},{"$f":"BI64*(1+Control!$K30)","v":2.1605288007554297},{"$f":"BJ64*(1+Control!$K30)","v":2.1605288007554297},{"$f":"BK64*(1+Control!$K30)","v":2.1605288007554297},{"$f":"BL64*(1+Control!$K30)","v":2.1605288007554297},{"$f":"BM64*(1+Control!$K30)","v":2.1605288007554297},{"$f":"BN64*(1+Control!$K30)","v":2.1605288007554297},{"$f":"BO64*(1+Control!$K30)","v":2.1605288007554297},{"$f":"BP64*(1+Control!$K30)","v":2.1605288007554297},{"$f":"BQ64*(1+Control!$K30)","v":2.1605288007554297},{"$f":"BR64*(1+Control!$K30)","v":2.1605288007554297},{"$f":"BS64*(1+Control!$K30)","v":2.1605288007554297},{"$f":"BT64*(1+Control!$K30)","v":2.1605288007554297},{"$f":"BU64*(1+Control!$K30)","v":2.1605288007554297},{"$f":"BV64*(1+Control!$K30)","v":2.1605288007554297},{"$f":"BW64*(1+Control!$K30)","v":2.1605288007554297},{"$f":"BX64*(1+Control!$K30)","v":2.1605288007554297},{"$f":"BY64*(1+Control!$K30)","v":2.1605288007554297},{"$f":"BZ64*(1+Control!$K30)","v":2.1605288007554297},{"$f":"CA64*(1+Control!$K30)","v":2.1605288007554297},{"$f":"CB64*(1+Control!$K30)","v":2.1605288007554297},{"$f":"CC64*(1+Control!$K30)","v":2.1605288007554297},{"$f":"CD64*(1+Control!$K30)","v":2.1605288007554297},{"$f":"CE64*(1+Control!$K30)","v":2.1605288007554297},{"$f":"CF64*(1+Control!$K30)","v":2.1605288007554297},{"$f":"CG64*(1+Control!$K30)","v":2.1605288007554297},{"$f":"CH64*(1+Control!$K30)","v":2.1605288007554297},{"$f":"CI64*(1+Control!$K30)","v":2.1605288007554297},{"$f":"CJ64*(1+Control!$K30)","v":2.1605288007554297},{"$f":"CK64*(1+Control!$K30)","v":2.1605288007554297},{"$f":"CL64*(1+Control!$K30)","v":2.1605288007554297},{"$f":"CM64*(1+Control!$K30)","v":2.1605288007554297},{"$f":"CN64*(1+Control!$K30)","v":2.1605288007554297},{"$f":"CO64*(1+Control!$K30)","v":2.1605288007554297},{"$f":"CP64*(1+Control!$K30)","v":2.1605288007554297},{"$f":"CQ64*(1+Control!$K30)","v":2.1605288007554297},{"$f":"CR64*(1+Control!$K30)","v":2.1605288007554297},{"$f":"CS64*(1+Control!$K30)","v":2.1605288007554297},{"$f":"CT64*(1+Control!$K30)","v":2.1605288007554297},{"$f":"CU64*(1+Control!$K30)","v":2.1605288007554297},{"$f":"CV64*(1+Control!$K30)","v":2.1605288007554297}]
["Difference",{"$f":"B64-B63","v":2.1605288007554297},{"$f":"C64-C63","v":2.1605288007554297},2.1605288007554297,2.1605288007554297,2.1605288007554297,2.1605288007554297,2.1605288007554297,2.1605288007554297,2.1605288007554297,2.1605288007554297,2.1605288007554297,2.1605288007554297,2.1605288007554297,2.1605288007554297,2.1605288007554297,2.1605288007554297,2.1605288007554297,2.1605288007554297,2.1605288007554297,2.1605288007554297,2.1605288007554297,2.1605288007554297,2.1605288007554297,2.1605288007554297,2.1605288007554297,2.1605288007554297,2.1605288007554297,2.1605288007554297,2.1605288007554297,2.1605288007554297,2.1605288007554297,2.1605288007554297,2.1605288007554297,2.1605288007554297,2.1605288007554297,2.1605288007554297,2.1605288007554297,2.1605288007554297,2.1605288007554297,2.1605288007554297,2.1605288007554297,2.1605288007554297,2.1605288007554297,2.1605288007554297,2.1605288007554297,2.1605288007554297,2.1605288007554297,2.1605288007554297,2.1605288007554297,2.1605288007554297,2.1605288007554297,2.1605288007554297,2.1605288007554297,2.1605288007554297,2.1605288007554297,2.1605288007554297,2.1605288007554297,2.1605288007554297,2.1605288007554297,2.1605288007554297,2.1605288007554297,2.1605288007554297,2.1605288007554297,2.1605288007554297,2.1605288007554297,{"$f":"BO64-BO63","v":2.1605288007554297},2.1605288007554297,2.1605288007554297,2.1605288007554297,2.1605288007554297,2.1605288007554297,2.1605288007554297,2.1605288007554297,2.1605288007554297,2.1605288007554297,2.1605288007554297,2.1605288007554297,2.1605288007554297,2.1605288007554297,2.1605288007554297,{"$f":"CD64-CD63","v":2.1605288007554297},2.1605288007554297,2.1605288007554297,2.1605288007554297,2.1605288007554297,2.1605288007554297,2.1605288007554297,2.1605288007554297,2.1605288007554297,2.1605288007554297,2.1605288007554297,2.1605288007554297,2.1605288007554297,2.1605288007554297,2.1605288007554297,2.1605288007554297,2.1605288007554297,2.1605288007554297,2.1605288007554297,2.1605288007554297]
["Hot water"]
["Heat pump hot water",{"$f":"Control!H33","v":43.210576015108593},{"$f":"B67*(1+Control!$K33)","v":42.934028328611902},{"$f":"C67*(1+Control!$K33)","v":42.659250547308787},{"$f":"D67*(1+Control!$K33)","v":42.38623134380601},{"$f":"E67*(1+Control!$K33)","v":42.114959463205651},{"$f":"F67*(1+Control!$K33)","v":41.845423722641137},{"$f":"G67*(1+Control!$K33)","v":41.577613010816236},{"$f":"H67*(1+Control!$K33)","v":41.311516287547015},{"$f":"I67*(1+Control!$K33)","v":41.047122583306717},{"$f":"J67*(1+Control!$K33)","v":40.784420998773555},{"$f":"K67*(1+Control!$K33)","v":40.523400704381409},{"$f":"L67*(1+Control!$K33)","v":40.264050939873371},{"$f":"M67*(1+Control!$K33)","v":40.006361013858182},{"$f":"N67*(1+Control!$K33)","v":39.750320303369492},{"$f":"O67*(1+Control!$K33)","v":39.495918253427931},{"$f":"P67*(1+Control!$K33)","v":39.24314437660599},{"$f":"Q67*(1+Control!$K33)","v":38.991988252595711},{"$f":"R67*(1+Control!$K33)","v":38.742439527779098},{"$f":"S67*(1+Control!$K33)","v":38.494487914801311},{"$f":"T67*(1+Control!$K33)","v":38.248123192146586},{"$f":"U67*(1+Control!$K33)","v":38.003335203716851},{"$f":"V67*(1+Control!$K33)","v":37.760113858413064},{"$f":"W67*(1+Control!$K33)","v":37.518449129719222},{"$f":"X67*(1+Control!$K33)","v":37.278331055289023},{"$f":"Y67*(1+Control!$K33)","v":37.039749736535171},{"$f":"Z67*(1+Control!$K33)","v":36.802695338221348},{"$f":"AA67*(1+Control!$K33)","v":36.567158088056729},{"$f":"AB67*(1+Control!$K33)","v":36.333128276293166},{"$f":"AC67*(1+Control!$K33)","v":36.100596255324895},{"$f":"AD67*(1+Control!$K33)","v":35.869552439290814},{"$f":"AE67*(1+Control!$K33)","v":35.639987303679355},{"$f":"AF67*(1+Control!$K33)","v":35.411891384935807},{"$f":"AG67*(1+Control!$K33)","v":35.185255280072219},{"$f":"AH67*(1+Control!$K33)","v":34.960069646279756},{"$f":"AI67*(1+Control!$K33)","v":34.736325200543568},{"$f":"AJ67*(1+Control!$K33)","v":34.514012719260094},{"$f":"AK67*(1+Control!$K33)","v":34.29312303785683},{"$f":"AL67*(1+Control!$K33)","v":34.07364705041455},{"$f":"AM67*(1+Control!$K33)","v":33.855575709291898},{"$f":"AN67*(1+Control!$K33)","v":33.638900024752431},{"$f":"AO67*(1+Control!$K33)","v":33.423611064594013},{"$f":"AP67*(1+Control!$K33)","v":33.209699953780614},{"$f":"AQ67*(1+Control!$K33)","v":32.997157874076422},{"$f":"AR67*(1+Control!$K33)","v":32.785976063682334},{"$f":"AS67*(1+Control!$K33)","v":32.576145816874771},{"$f":"AT67*(1+Control!$K33)","v":32.367658483646771},{"$f":"AU67*(1+Control!$K33)","v":32.160505469351435},{"$f":"AV67*(1+Control!$K33)","v":31.954678234347586},{"$f":"AW67*(1+Control!$K33)","v":31.750168293647764},{"$f":"AX67*(1+Control!$K33)","v":31.546967216568419},{"$f":"AY67*(1+Control!$K33)","v":31.345066626382383},{"$f":"AZ67*(1+Control!$K33)","v":31.144458199973538},{"$f":"BA67*(1+Control!$K33)","v":30.94513366749371},{"$f":"BB67*(1+Control!$K33)","v":30.74708481202175},{"$f":"BC67*(1+Control!$K33)","v":30.550303469224811},{"$f":"BD67*(1+Control!$K33)","v":30.354781527021775},{"$f":"BE67*(1+Control!$K33)","v":30.160510925248836},{"$f":"BF67*(1+Control!$K33)","v":29.967483655327246},{"$f":"BG67*(1+Control!$K33)","v":29.775691759933153},{"$f":"BH67*(1+Control!$K33)","v":29.585127332669583},{"$f":"BI67*(1+Control!$K33)","v":29.3957825177405},{"$f":"BJ67*(1+Control!$K33)","v":29.207649509626961},{"$f":"BK67*(1+Control!$K33)","v":29.020720552765351},{"$f":"BL67*(1+Control!$K33)","v":28.834987941227652},{"$f":"BM67*(1+Control!$K33)","v":28.650444018403796},{"$f":"BN67*(1+Control!$K33)","v":28.467081176686012},{"$f":"BO67*(1+Control!$K33)","v":28.284891857155223},{"$f":"BP67*(1+Control!$K33)","v":28.103868549269432},{"$f":"BQ67*(1+Control!$K33)","v":27.92400379055411},{"$f":"BR67*(1+Control!$K33)","v":27.745290166294566},{"$f":"BS67*(1+Control!$K33)","v":27.567720309230282},{"$f":"BT67*(1+Control!$K33)","v":27.39128689925121},{"$f":"BU67*(1+Control!$K33)","v":27.215982663096003},{"$f":"BV67*(1+Control!$K33)","v":27.04180037405219},{"$f":"BW67*(1+Control!$K33)","v":26.868732851658258},{"$f":"BX67*(1+Control!$K33)","v":26.696772961407646},{"$f":"BY67*(1+Control!$K33)","v":26.525913614454637},{"$f":"BZ67*(1+Control!$K33)","v":26.356147767322128},{"$f":"CA67*(1+Control!$K33)","v":26.187468421611268},{"$f":"CB67*(1+Control!$K33)","v":26.019868623712956},{"$f":"CC67*(1+Control!$K33)","v":25.853341464521193},{"$f":"CD67*(1+Control!$K33)","v":25.687880079148258},{"$f":"CE67*(1+Control!$K33)","v":25.523477646641709},{"$f":"CF67*(1+Control!$K33)","v":25.360127389703202},{"$f":"CG67*(1+Control!$K33)","v":25.197822574409102},{"$f":"CH67*(1+Control!$K33)","v":25.036556509932886},{"$f":"CI67*(1+Control!$K33)","v":24.876322548269318},{"$f":"CJ67*(1+Control!$K33)","v":24.717114083960396},{"$f":"CK67*(1+Control!$K33)","v":24.558924553823051},{"$f":"CL67*(1+Control!$K33)","v":24.401747436678583},{"$f":"CM67*(1+Control!$K33)","v":24.24557625308384},{"$f":"CN67*(1+Control!$K33)","v":24.090404565064105},{"$f":"CO67*(1+Control!$K33)","v":23.936225975847695},{"$f":"CP67*(1+Control!$K33)","v":23.783034129602271},{"$f":"CQ67*(1+Control!$K33)","v":23.630822711172819},{"$f":"CR67*(1+Control!$K33)","v":23.479585445821314},{"$f":"CS67*(1+Control!$K33)","v":23.329316098968057},{"$f":"CT67*(1+Control!$K33)","v":23.180008475934663},{"$f":"CU67*(1+Control!$K33)","v":23.031656421688684},{"$f":"CV67*(1+Control!$K33)","v":22.884253820589876}]
["Gas instant hot water",{"$f":"Control!H34","v":32.407932011331447},{"$f":"B68*(1+Control!$K34)","v":32.407932011331447},{"$f":"C68*(1+Control!$K34)","v":32.407932011331447},{"$f":"D68*(1+Control!$K34)","v":32.407932011331447},{"$f":"E68*(1+Control!$K34)","v":32.407932011331447},{"$f":"F68*(1+Control!$K34)","v":32.407932011331447},{"$f":"G68*(1+Control!$K34)","v":32.407932011331447},{"$f":"H68*(1+Control!$K34)","v":32.407932011331447},{"$f":"I68*(1+Control!$K34)","v":32.407932011331447},{"$f":"J68*(1+Control!$K34)","v":32.407932011331447},{"$f":"K68*(1+Control!$K34)","v":32.407932011331447},{"$f":"L68*(1+Control!$K34)","v":32.407932011331447},{"$f":"M68*(1+Control!$K34)","v":32.407932011331447},{"$f":"N68*(1+Control!$K34)","v":32.407932011331447},{"$f":"O68*(1+Control!$K34)","v":32.407932011331447},{"$f":"P68*(1+Control!$K34)","v":32.407932011331447},{"$f":"Q68*(1+Control!$K34)","v":32.407932011331447},{"$f":"R68*(1+Control!$K34)","v":32.407932011331447},{"$f":"S68*(1+Control!$K34)","v":32.407932011331447},{"$f":"T68*(1+Control!$K34)","v":32.407932011331447},{"$f":"U68*(1+Control!$K34)","v":32.407932011331447},{"$f":"V68*(1+Control!$K34)","v":32.407932011331447},{"$f":"W68*(1+Control!$K34)","v":32.407932011331447},{"$f":"X68*(1+Control!$K34)","v":32.407932011331447},{"$f":"Y68*(1+Control!$K34)","v":32.407932011331447},{"$f":"Z68*(1+Control!$K34)","v":32.407932011331447},{"$f":"AA68*(1+Control!$K34)","v":32.407932011331447},{"$f":"AB68*(1+Control!$K34)","v":32.407932011331447},{"$f":"AC68*(1+Control!$K34)","v":32.407932011331447},{"$f":"AD68*(1+Control!$K34)","v":32.407932011331447},{"$f":"AE68*(1+Control!$K34)","v":32.407932011331447},{"$f":"AF68*(1+Control!$K34)","v":32.407932011331447},{"$f":"AG68*(1+Control!$K34)","v":32.407932011331447},{"$f":"AH68*(1+Control!$K34)","v":32.407932011331447},{"$f":"AI68*(1+Control!$K34)","v":32.407932011331447},{"$f":"AJ68*(1+Control!$K34)","v":32.407932011331447},{"$f":"AK68*(1+Control!$K34)","v":32.407932011331447},{"$f":"AL68*(1+Control!$K34)","v":32.407932011331447},{"$f":"AM68*(1+Control!$K34)","v":32.407932011331447},{"$f":"AN68*(1+Control!$K34)","v":32.407932011331447},{"$f":"AO68*(1+Control!$K34)","v":32.407932011331447},{"$f":"AP68*(1+Control!$K34)","v":32.407932011331447},{"$f":"AQ68*(1+Control!$K34)","v":32.407932011331447},{"$f":"AR68*(1+Control!$K34)","v":32.407932011331447},{"$f":"AS68*(1+Control!$K34)","v":32.407932011331447},{"$f":"AT68*(1+Control!$K34)","v":32.407932011331447},{"$f":"AU68*(1+Control!$K34)","v":32.407932011331447},{"$f":"AV68*(1+Control!$K34)","v":32.407932011331447},{"$f":"AW68*(1+Control!$K34)","v":32.407932011331447},{"$f":"AX68*(1+Control!$K34)","v":32.407932011331447},{"$f":"AY68*(1+Control!$K34)","v":32.407932011331447},{"$f":"AZ68*(1+Control!$K34)","v":32.407932011331447},{"$f":"BA68*(1+Control!$K34)","v":32.407932011331447},{"$f":"BB68*(1+Control!$K34)","v":32.407932011331447},{"$f":"BC68*(1+Control!$K34)","v":32.407932011331447},{"$f":"BD68*(1+Control!$K34)","v":32.407932011331447},{"$f":"BE68*(1+Control!$K34)","v":32.407932011331447},{"$f":"BF68*(1+Control!$K34)","v":32.407932011331447},{"$f":"BG68*(1+Control!$K34)","v":32.407932011331447},{"$f":"BH68*(1+Control!$K34)","v":32.407932011331447},{"$f":"BI68*(1+Control!$K34)","v":32.407932011331447},{"$f":"BJ68*(1+Control!$K34)","v":32.407932011331447},{"$f":"BK68*(1+Control!$K34)","v":32.407932011331447},{"$f":"BL68*(1+Control!$K34)","v":32.407932011331447},{"$f":"BM68*(1+Control!$K34)","v":32.407932011331447},{"$f":"BN68*(1+Control!$K34)","v":32.407932011331447},{"$f":"BO68*(1+Control!$K34)","v":32.407932011331447},{"$f":"BP68*(1+Control!$K34)","v":32.407932011331447},{"$f":"BQ68*(1+Control!$K34)","v":32.407932011331447},{"$f":"BR68*(1+Control!$K34)","v":32.407932011331447},{"$f":"BS68*(1+Control!$K34)","v":32.407932011331447},{"$f":"BT68*(1+Control!$K34)","v":32.407932011331447},{"$f":"BU68*(1+Control!$K34)","v":32.407932011331447},{"$f":"BV68*(1+Control!$K34)","v":32.407932011331447},{"$f":"BW68*(1+Control!$K34)","v":32.407932011331447},{"$f":"BX68*(1+Control!$K34)","v":32.407932011331447},{"$f":"BY68*(1+Control!$K34)","v":32.407932011331447},{"$f":"BZ68*(1+Control!$K34)","v":32.407932011331447},{"$f":"CA68*(1+Control!$K34)","v":32.407932011331447},{"$f":"CB68*(1+Control!$K34)","v":32.407932011331447},{"$f":"CC68*(1+Control!$K34)","v":32.407932011331447},{"$f":"CD68*(1+Control!$K34)","v":32.407932011331447},{"$f":"CE68*(1+Control!$K34)","v":32.407932011331447},{"$f":"CF68*(1+Control!$K34)","v":32.407932011331447},{"$f":"CG68*(1+Control!$K34)","v":32.407932011331447},{"$f":"CH68*(1+Control!$K34)","v":32.407932011331447},{"$f":"CI68*(1+Control!$K34)","v":32.407932011331447},{"$f":"CJ68*(1+Control!$K34)","v":32.407932011331447},{"$f":"CK68*(1+Control!$K34)","v":32.407932011331447},{"$f":"CL68*(1+Control!$K34)","v":32.407932011331447},{"$f":"CM68*(1+Control!$K34)","v":32.407932011331447},{"$f":"CN68*(1+Control!$K34)","v":32.407932011331447},{"$f":"CO68*(1+Control!$K34)","v":32.407932011331447},{"$f":"CP68*(1+Control!$K34)","v":32.407932011331447},{"$f":"CQ68*(1+Control!$K34)","v":32.407932011331447},{"$f":"CR68*(1+Control!$K34)","v":32.407932011331447},{"$f":"CS68*(1+Control!$K34)","v":32.407932011331447},{"$f":"CT68*(1+Control!$K34)","v":32.407932011331447},{"$f":"CU68*(1+Control!$K34)","v":32.407932011331447},{"$f":"CV68*(1+Control!$K34)","v":32.407932011331447}]
["Difference",{"$f":"B68-B67","v":-10.802644003777147},{"$f":"C68-C67","v":-10.526096317280455},-10.25131853597734,-9.9782993324745632,-9.7070274518742039,-9.4374917113096899,-9.1696809994847897,-8.9035842762155681,-8.63919057197527,-8.3764889874421087,-8.1154686930499622,-7.8561189285419246,-7.5984290025267356,-7.342388292038045,-7.0879862420964841,-6.8352123652745433,-6.584056241264264,-6.3345075164476512,-6.0865559034698649,-5.8401911808151397,-5.5954031923854046,-5.3521818470816171,-5.1105171183877758,-4.8703990439575762,-4.6318177252037245,-4.3947633268899011,-4.1592260767252824,-3.9251962649617198,-3.6926642439934483,-3.4616204279593674,-3.2320552923479084,-3.0039593736043599,-2.7773232687407727,-2.5521376349483091,-2.3283931892121217,-2.1060807079286477,-1.8851910265253835,-1.6657150390831035,-1.4476436979604514,-1.2309680134209842,-1.0156790532625664,-0.80176794244916749,-0.5892258627449749,-0.37804405235088723,-0.16821380554332421,4.0273527684675514E-2,0.2474265419800119,0.45325377698386049,0.65776371768368236,0.8609647947630279,1.0628653849490632,1.2634738113579083,1.4627983438377363,1.6608471993096963,1.8576285421066352,2.053150484309672,2.2474210860826105,2.4404483560042003,2.6322402513982937,2.8228046786618641,3.0121494935909467,3.2002825017044856,3.387211458566096,3.5729440701037944,3.7574879929276506,{"$f":"BO68-BO67","v":3.9408508346454347},4.1230401541762234,4.3040634620620146,4.4839282207773365,4.6626418450368803,4.8402117021011648,5.0166451120802371,5.1919493482354433,5.3661316372792562,5.5391991596731884,5.7111590499238005,5.8820183968768092,6.051784244009319,6.220463589720179,6.3880633876184909,{"$f":"CD68-CD67","v":6.5545905468102532},6.7200519321831891,6.8844543646897378,7.0478046216282451,7.2101094369223446,7.3713755013985605,7.5316094630621286,7.6908179273710502,7.8490074575083959,8.0061845746528633,8.1623557582476067,8.3175274462673414,8.4717060354837521,8.6248978817291757,8.777109300158628,8.9283465655101324,9.0786159123633894,9.2279235353967834,9.3762755896427628,9.5236781907415704]
["Room heating"]
["RCAC split system",{"$f":"Control!H37","v":29.167138810198303},{"$f":"B71*(1+Control!$K37)","v":29.167138810198303},{"$f":"C71*(1+Control!$K37)","v":29.167138810198303},{"$f":"D71*(1+Control!$K37)","v":29.167138810198303},{"$f":"E71*(1+Control!$K37)","v":29.167138810198303},{"$f":"F71*(1+Control!$K37)","v":29.167138810198303},{"$f":"G71*(1+Control!$K37)","v":29.167138810198303},{"$f":"H71*(1+Control!$K37)","v":29.167138810198303},{"$f":"I71*(1+Control!$K37)","v":29.167138810198303},{"$f":"J71*(1+Control!$K37)","v":29.167138810198303},{"$f":"K71*(1+Control!$K37)","v":29.167138810198303},{"$f":"L71*(1+Control!$K37)","v":29.167138810198303},{"$f":"M71*(1+Control!$K37)","v":29.167138810198303},{"$f":"N71*(1+Control!$K37)","v":29.167138810198303},{"$f":"O71*(1+Control!$K37)","v":29.167138810198303},{"$f":"P71*(1+Control!$K37)","v":29.167138810198303},{"$f":"Q71*(1+Control!$K37)","v":29.167138810198303},{"$f":"R71*(1+Control!$K37)","v":29.167138810198303},{"$f":"S71*(1+Control!$K37)","v":29.167138810198303},{"$f":"T71*(1+Control!$K37)","v":29.167138810198303},{"$f":"U71*(1+Control!$K37)","v":29.167138810198303},{"$f":"V71*(1+Control!$K37)","v":29.167138810198303},{"$f":"W71*(1+Control!$K37)","v":29.167138810198303},{"$f":"X71*(1+Control!$K37)","v":29.167138810198303},{"$f":"Y71*(1+Control!$K37)","v":29.167138810198303},{"$f":"Z71*(1+Control!$K37)","v":29.167138810198303},{"$f":"AA71*(1+Control!$K37)","v":29.167138810198303},{"$f":"AB71*(1+Control!$K37)","v":29.167138810198303},{"$f":"AC71*(1+Control!$K37)","v":29.167138810198303},{"$f":"AD71*(1+Control!$K37)","v":29.167138810198303},{"$f":"AE71*(1+Control!$K37)","v":29.167138810198303},{"$f":"AF71*(1+Control!$K37)","v":29.167138810198303},{"$f":"AG71*(1+Control!$K37)","v":29.167138810198303},{"$f":"AH71*(1+Control!$K37)","v":29.167138810198303},{"$f":"AI71*(1+Control!$K37)","v":29.167138810198303},{"$f":"AJ71*(1+Control!$K37)","v":29.167138810198303},{"$f":"AK71*(1+Control!$K37)","v":29.167138810198303},{"$f":"AL71*(1+Control!$K37)","v":29.167138810198303},{"$f":"AM71*(1+Control!$K37)","v":29.167138810198303},{"$f":"AN71*(1+Control!$K37)","v":29.167138810198303},{"$f":"AO71*(1+Control!$K37)","v":29.167138810198303},{"$f":"AP71*(1+Control!$K37)","v":29.167138810198303},{"$f":"AQ71*(1+Control!$K37)","v":29.167138810198303},{"$f":"AR71*(1+Control!$K37)","v":29.167138810198303},{"$f":"AS71*(1+Control!$K37)","v":29.167138810198303},{"$f":"AT71*(1+Control!$K37)","v":29.167138810198303},{"$f":"AU71*(1+Control!$K37)","v":29.167138810198303},{"$f":"AV71*(1+Control!$K37)","v":29.167138810198303},{"$f":"AW71*(1+Control!$K37)","v":29.167138810198303},{"$f":"AX71*(1+Control!$K37)","v":29.167138810198303},{"$f":"AY71*(1+Control!$K37)","v":29.167138810198303},{"$f":"AZ71*(1+Control!$K37)","v":29.167138810198303},{"$f":"BA71*(1+Control!$K37)","v":29.167138810198303},{"$f":"BB71*(1+Control!$K37)","v":29.167138810198303},{"$f":"BC71*(1+Control!$K37)","v":29.167138810198303},{"$f":"BD71*(1+Control!$K37)","v":29.167138810198303},{"$f":"BE71*(1+Control!$K37)","v":29.167138810198303},{"$f":"BF71*(1+Control!$K37)","v":29.167138810198303},{"$f":"BG71*(1+Control!$K37)","v":29.167138810198303},{"$f":"BH71*(1+Control!$K37)","v":29.167138810198303},{"$f":"BI71*(1+Control!$K37)","v":29.167138810198303},{"$f":"BJ71*(1+Control!$K37)","v":29.167138810198303},{"$f":"BK71*(1+Control!$K37)","v":29.167138810198303},{"$f":"BL71*(1+Control!$K37)","v":29.167138810198303},{"$f":"BM71*(1+Control!$K37)","v":29.167138810198303},{"$f":"BN71*(1+Control!$K37)","v":29.167138810198303},{"$f":"BO71*(1+Control!$K37)","v":29.167138810198303},{"$f":"BP71*(1+Control!$K37)","v":29.167138810198303},{"$f":"BQ71*(1+Control!$K37)","v":29.167138810198303},{"$f":"BR71*(1+Control!$K37)","v":29.167138810198303},{"$f":"BS71*(1+Control!$K37)","v":29.167138810198303},{"$f":"BT71*(1+Control!$K37)","v":29.167138810198303},{"$f":"BU71*(1+Control!$K37)","v":29.167138810198303},{"$f":"BV71*(1+Control!$K37)","v":29.167138810198303},{"$f":"BW71*(1+Control!$K37)","v":29.167138810198303},{"$f":"BX71*(1+Control!$K37)","v":29.167138810198303},{"$f":"BY71*(1+Control!$K37)","v":29.167138810198303},{"$f":"BZ71*(1+Control!$K37)","v":29.167138810198303},{"$f":"CA71*(1+Control!$K37)","v":29.167138810198303},{"$f":"CB71*(1+Control!$K37)","v":29.167138810198303},{"$f":"CC71*(1+Control!$K37)","v":29.167138810198303},{"$f":"CD71*(1+Control!$K37)","v":29.167138810198303},{"$f":"CE71*(1+Control!$K37)","v":29.167138810198303},{"$f":"CF71*(1+Control!$K37)","v":29.167138810198303},{"$f":"CG71*(1+Control!$K37)","v":29.167138810198303},{"$f":"CH71*(1+Control!$K37)","v":29.167138810198303},{"$f":"CI71*(1+Control!$K37)","v":29.167138810198303},{"$f":"CJ71*(1+Control!$K37)","v":29.167138810198303},{"$f":"CK71*(1+Control!$K37)","v":29.167138810198303},{"$f":"CL71*(1+Control!$K37)","v":29.167138810198303},{"$f":"CM71*(1+Control!$K37)","v":29.167138810198303},{"$f":"CN71*(1+Control!$K37)","v":29.167138810198303},{"$f":"CO71*(1+Control!$K37)","v":29.167138810198303},{"$f":"CP71*(1+Control!$K37)","v":29.167138810198303},{"$f":"CQ71*(1+Control!$K37)","v":29.167138810198303},{"$f":"CR71*(1+Control!$K37)","v":29.167138810198303},{"$f":"CS71*(1+Control!$K37)","v":29.167138810198303},{"$f":"CT71*(1+Control!$K37)","v":29.167138810198303},{"$f":"CU71*(1+Control!$K37)","v":29.167138810198303},{"$f":"CV71*(1+Control!$K37)","v":29.167138810198303}]
["Gas wall furnace",{"$f":"Control!H38","v":25.926345609065159},{"$f":"B72*(1+Control!$K38)","v":25.926345609065159},{"$f":"C72*(1+Control!$K38)","v":25.926345609065159},{"$f":"D72*(1+Control!$K38)","v":25.926345609065159},{"$f":"E72*(1+Control!$K38)","v":25.926345609065159},{"$f":"F72*(1+Control!$K38)","v":25.926345609065159},{"$f":"G72*(1+Control!$K38)","v":25.926345609065159},{"$f":"H72*(1+Control!$K38)","v":25.926345609065159},{"$f":"I72*(1+Control!$K38)","v":25.926345609065159},{"$f":"J72*(1+Control!$K38)","v":25.926345609065159},{"$f":"K72*(1+Control!$K38)","v":25.926345609065159},{"$f":"L72*(1+Control!$K38)","v":25.926345609065159},{"$f":"M72*(1+Control!$K38)","v":25.926345609065159},{"$f":"N72*(1+Control!$K38)","v":25.926345609065159},{"$f":"O72*(1+Control!$K38)","v":25.926345609065159},{"$f":"P72*(1+Control!$K38)","v":25.926345609065159},{"$f":"Q72*(1+Control!$K38)","v":25.926345609065159},{"$f":"R72*(1+Control!$K38)","v":25.926345609065159},{"$f":"S72*(1+Control!$K38)","v":25.926345609065159},{"$f":"T72*(1+Control!$K38)","v":25.926345609065159},{"$f":"U72*(1+Control!$K38)","v":25.926345609065159},{"$f":"V72*(1+Control!$K38)","v":25.926345609065159},{"$f":"W72*(1+Control!$K38)","v":25.926345609065159},{"$f":"X72*(1+Control!$K38)","v":25.926345609065159},{"$f":"Y72*(1+Control!$K38)","v":25.926345609065159},{"$f":"Z72*(1+Control!$K38)","v":25.926345609065159},{"$f":"AA72*(1+Control!$K38)","v":25.926345609065159},{"$f":"AB72*(1+Control!$K38)","v":25.926345609065159},{"$f":"AC72*(1+Control!$K38)","v":25.926345609065159},{"$f":"AD72*(1+Control!$K38)","v":25.926345609065159},{"$f":"AE72*(1+Control!$K38)","v":25.926345609065159},{"$f":"AF72*(1+Control!$K38)","v":25.926345609065159},{"$f":"AG72*(1+Control!$K38)","v":25.926345609065159},{"$f":"AH72*(1+Control!$K38)","v":25.926345609065159},{"$f":"AI72*(1+Control!$K38)","v":25.926345609065159},{"$f":"AJ72*(1+Control!$K38)","v":25.926345609065159},{"$f":"AK72*(1+Control!$K38)","v":25.926345609065159},{"$f":"AL72*(1+Control!$K38)","v":25.926345609065159},{"$f":"AM72*(1+Control!$K38)","v":25.926345609065159},{"$f":"AN72*(1+Control!$K38)","v":25.926345609065159},{"$f":"AO72*(1+Control!$K38)","v":25.926345609065159},{"$f":"AP72*(1+Control!$K38)","v":25.926345609065159},{"$f":"AQ72*(1+Control!$K38)","v":25.926345609065159},{"$f":"AR72*(1+Control!$K38)","v":25.926345609065159},{"$f":"AS72*(1+Control!$K38)","v":25.926345609065159},{"$f":"AT72*(1+Control!$K38)","v":25.926345609065159},{"$f":"AU72*(1+Control!$K38)","v":25.926345609065159},{"$f":"AV72*(1+Control!$K38)","v":25.926345609065159},{"$f":"AW72*(1+Control!$K38)","v":25.926345609065159},{"$f":"AX72*(1+Control!$K38)","v":25.926345609065159},{"$f":"AY72*(1+Control!$K38)","v":25.926345609065159},{"$f":"AZ72*(1+Control!$K38)","v":25.926345609065159},{"$f":"BA72*(1+Control!$K38)","v":25.926345609065159},{"$f":"BB72*(1+Control!$K38)","v":25.926345609065159},{"$f":"BC72*(1+Control!$K38)","v":25.926345609065159},{"$f":"BD72*(1+Control!$K38)","v":25.926345609065159},{"$f":"BE72*(1+Control!$K38)","v":25.926345609065159},{"$f":"BF72*(1+Control!$K38)","v":25.926345609065159},{"$f":"BG72*(1+Control!$K38)","v":25.926345609065159},{"$f":"BH72*(1+Control!$K38)","v":25.926345609065159},{"$f":"BI72*(1+Control!$K38)","v":25.926345609065159},{"$f":"BJ72*(1+Control!$K38)","v":25.926345609065159},{"$f":"BK72*(1+Control!$K38)","v":25.926345609065159},{"$f":"BL72*(1+Control!$K38)","v":25.926345609065159},{"$f":"BM72*(1+Control!$K38)","v":25.926345609065159},{"$f":"BN72*(1+Control!$K38)","v":25.926345609065159},{"$f":"BO72*(1+Control!$K38)","v":25.926345609065159},{"$f":"BP72*(1+Control!$K38)","v":25.926345609065159},{"$f":"BQ72*(1+Control!$K38)","v":25.926345609065159},{"$f":"BR72*(1+Control!$K38)","v":25.926345609065159},{"$f":"BS72*(1+Control!$K38)","v":25.926345609065159},{"$f":"BT72*(1+Control!$K38)","v":25.926345609065159},{"$f":"BU72*(1+Control!$K38)","v":25.926345609065159},{"$f":"BV72*(1+Control!$K38)","v":25.926345609065159},{"$f":"BW72*(1+Control!$K38)","v":25.926345609065159},{"$f":"BX72*(1+Control!$K38)","v":25.926345609065159},{"$f":"BY72*(1+Control!$K38)","v":25.926345609065159},{"$f":"BZ72*(1+Control!$K38)","v":25.926345609065159},{"$f":"CA72*(1+Control!$K38)","v":25.926345609065159},{"$f":"CB72*(1+Control!$K38)","v":25.926345609065159},{"$f":"CC72*(1+Control!$K38)","v":25.926345609065159},{"$f":"CD72*(1+Control!$K38)","v":25.926345609065159},{"$f":"CE72*(1+Control!$K38)","v":25.926345609065159},{"$f":"CF72*(1+Control!$K38)","v":25.926345609065159},{"$f":"CG72*(1+Control!$K38)","v":25.926345609065159},{"$f":"CH72*(1+Control!$K38)","v":25.926345609065159},{"$f":"CI72*(1+Control!$K38)","v":25.926345609065159},{"$f":"CJ72*(1+Control!$K38)","v":25.926345609065159},{"$f":"CK72*(1+Control!$K38)","v":25.926345609065159},{"$f":"CL72*(1+Control!$K38)","v":25.926345609065159},{"$f":"CM72*(1+Control!$K38)","v":25.926345609065159},{"$f":"CN72*(1+Control!$K38)","v":25.926345609065159},{"$f":"CO72*(1+Control!$K38)","v":25.926345609065159},{"$f":"CP72*(1+Control!$K38)","v":25.926345609065159},{"$f":"CQ72*(1+Control!$K38)","v":25.926345609065159},{"$f":"CR72*(1+Control!$K38)","v":25.926345609065159},{"$f":"CS72*(1+Control!$K38)","v":25.926345609065159},{"$f":"CT72*(1+Control!$K38)","v":25.926345609065159},{"$f":"CU72*(1+Control!$K38)","v":25.926345609065159},{"$f":"CV72*(1+Control!$K38)","v":25.926345609065159}]
["Difference",{"$f":"B72-B71","v":-3.240793201133144},{"$f":"C72-C71","v":-3.240793201133144},-3.240793201133144,-3.240793201133144,-3.240793201133144,-3.240793201133144,-3.240793201133144,-3.240793201133144,-3.240793201133144,-3.240793201133144,-3.240793201133144,-3.240793201133144,-3.240793201133144,-3.240793201133144,-3.240793201133144,-3.240793201133144,-3.240793201133144,-3.240793201133144,-3.240793201133144,-3.240793201133144,-3.240793201133144,-3.240793201133144,-3.240793201133144,-3.240793201133144,-3.240793201133144,-3.240793201133144,-3.240793201133144,-3.240793201133144,-3.240793201133144,-3.240793201133144,-3.240793201133144,-3.240793201133144,-3.240793201133144,-3.240793201133144,-3.240793201133144,-3.240793201133144,-3.240793201133144,-3.240793201133144,-3.240793201133144,-3.240793201133144,-3.240793201133144,-3.240793201133144,-3.240793201133144,-3.240793201133144,-3.240793201133144,-3.240793201133144,-3.240793201133144,-3.240793201133144,-3.240793201133144,-3.240793201133144,-3.240793201133144,-3.240793201133144,-3.240793201133144,-3.240793201133144,-3.240793201133144,-3.240793201133144,-3.240793201133144,-3.240793201133144,-3.240793201133144,-3.240793201133144,-3.240793201133144,-3.240793201133144,-3.240793201133144,-3.240793201133144,-3.240793201133144,{"$f":"BO72-BO71","v":-3.240793201133144},-3.240793201133144,-3.240793201133144,-3.240793201133144,-3.240793201133144,-3.240793201133144,-3.240793201133144,-3.240793201133144,-3.240793201133144,-3.240793201133144,-3.240793201133144,-3.240793201133144,-3.240793201133144,-3.240793201133144,-3.240793201133144,{"$f":"CD72-CD71","v":-3.240793201133144},-3.240793201133144,-3.240793201133144,-3.240793201133144,-3.240793201133144,-3.240793201133144,-3.240793201133144,-3.240793201133144,-3.240793201133144,-3.240793201133144,-3.240793201133144,-3.240793201133144,-3.240793201133144,-3.240793201133144,-3.240793201133144,-3.240793201133144,-3.240793201133144,-3.240793201133144,-3.240793201133144,-3.240793201133144]
["Ducted heating"]
["Ducted RCAC",{"$f":"Control!H41","v":29.167138810198303},{"$f":"B75*(1+Control!$K41)","v":29.082554107648726},{"$f":"C75*(1+Control!$K41)","v":28.998214700736543},{"$f":"D75*(1+Control!$K41)","v":28.914119878104408},{"$f":"E75*(1+Control!$K41)","v":28.830268930457905},{"$f":"F75*(1+Control!$K41)","v":28.746661150559575},{"$f":"G75*(1+Control!$K41)","v":28.663295833222953},{"$f":"H75*(1+Control!$K41)","v":28.580172275306605},{"$f":"I75*(1+Control!$K41)","v":28.497289775708214},{"$f":"J75*(1+Control!$K41)","v":28.414647635358659},{"$f":"K75*(1+Control!$K41)","v":28.332245157216118},{"$f":"L75*(1+Control!$K41)","v":28.250081646260192},{"$f":"M75*(1+Control!$K41)","v":28.168156409486038},{"$f":"N75*(1+Control!$K41)","v":28.08646875589853},{"$f":"O75*(1+Control!$K41)","v":28.005017996506425},{"$f":"P75*(1+Control!$K41)","v":27.923803444316555},{"$f":"Q75*(1+Control!$K41)","v":27.842824414328035},{"$f":"R75*(1+Control!$K41)","v":27.762080223526482},{"$f":"S75*(1+Control!$K41)","v":27.681570190878254},{"$f":"T75*(1+Control!$K41)","v":27.601293637324709},{"$f":"U75*(1+Control!$K41)","v":27.521249885776466},{"$f":"V75*(1+Control!$K41)","v":27.441438261107713},{"$f":"W75*(1+Control!$K41)","v":27.361858090150502},{"$f":"X75*(1+Control!$K41)","v":27.282508701689064},{"$f":"Y75*(1+Control!$K41)","v":27.203389426454166},{"$f":"Z75*(1+Control!$K41)","v":27.124499597117449},{"$f":"AA75*(1+Control!$K41)","v":27.045838548285808},{"$f":"AB75*(1+Control!$K41)","v":26.967405616495778},{"$f":"AC75*(1+Control!$K41)","v":26.88920014020794},{"$f":"AD75*(1+Control!$K41)","v":26.811221459801338},{"$f":"AE75*(1+Control!$K41)","v":26.733468917567915},{"$f":"AF75*(1+Control!$K41)","v":26.655941857706967},{"$f":"AG75*(1+Control!$K41)","v":26.578639626319617},{"$f":"AH75*(1+Control!$K41)","v":26.50156157140329},{"$f":"AI75*(1+Control!$K41)","v":26.424707042846219},{"$f":"AJ75*(1+Control!$K41)","v":26.348075392421965},{"$f":"AK75*(1+Control!$K41)","v":26.271665973783939},{"$f":"AL75*(1+Control!$K41)","v":26.195478142459965},{"$f":"AM75*(1+Control!$K41)","v":26.119511255846831},{"$f":"AN75*(1+Control!$K41)","v":26.043764673204876},{"$f":"AO75*(1+Control!$K41)","v":25.968237755652581},{"$f":"AP75*(1+Control!$K41)","v":25.89292986616119},{"$f":"AQ75*(1+Control!$K41)","v":25.817840369549323},{"$f":"AR75*(1+Control!$K41)","v":25.742968632477631},{"$f":"AS75*(1+Control!$K41)","v":25.668314023443447},{"$f":"AT75*(1+Control!$K41)","v":25.593875912775459},{"$f":"AU75*(1+Control!$K41)","v":25.519653672628412},{"$f":"AV75*(1+Control!$K41)","v":25.445646676977788},{"$f":"AW75*(1+Control!$K41)","v":25.371854301614551},{"$f":"AX75*(1+Control!$K41)","v":25.298275924139869},{"$f":"AY75*(1+Control!$K41)","v":25.224910923959865},{"$f":"AZ75*(1+Control!$K41)","v":25.151758682280381},{"$f":"BA75*(1+Control!$K41)","v":25.078818582101768},{"$f":"BB75*(1+Control!$K41)","v":25.006090008213672},{"$f":"BC75*(1+Control!$K41)","v":24.933572347189852},{"$f":"BD75*(1+Control!$K41)","v":24.861264987383002},{"$f":"BE75*(1+Control!$K41)","v":24.789167318919592},{"$f":"BF75*(1+Control!$K41)","v":24.717278733694727},{"$f":"BG75*(1+Control!$K41)","v":24.645598625367011},{"$f":"BH75*(1+Control!$K41)","v":24.574126389353445},{"$f":"BI75*(1+Control!$K41)","v":24.502861422824321},{"$f":"BJ75*(1+Control!$K41)","v":24.431803124698131},{"$f":"BK75*(1+Control!$K41)","v":24.360950895636506},{"$f":"BL75*(1+Control!$K41)","v":24.290304138039161},{"$f":"BM75*(1+Control!$K41)","v":24.219862256038848},{"$f":"BN75*(1+Control!$K41)","v":24.149624655496336},{"$f":"BO75*(1+Control!$K41)","v":24.079590743995396},{"$f":"BP75*(1+Control!$K41)","v":24.009759930837809},{"$f":"BQ75*(1+Control!$K41)","v":23.940131627038379},{"$f":"BR75*(1+Control!$K41)","v":23.870705245319968},{"$f":"BS75*(1+Control!$K41)","v":23.801480200108539},{"$f":"BT75*(1+Control!$K41)","v":23.732455907528223},{"$f":"BU75*(1+Control!$K41)","v":23.66363178539639},{"$f":"BV75*(1+Control!$K41)","v":23.595007253218739},{"$f":"BW75*(1+Control!$K41)","v":23.526581732184404},{"$f":"BX75*(1+Control!$K41)","v":23.458354645161069},{"$f":"BY75*(1+Control!$K41)","v":23.390325416690104},{"$f":"BZ75*(1+Control!$K41)","v":23.322493472981702},{"$f":"CA75*(1+Control!$K41)","v":23.254858241910053},{"$f":"CB75*(1+Control!$K41)","v":23.187419153008513},{"$f":"CC75*(1+Control!$K41)","v":23.120175637464786},{"$f":"CD75*(1+Control!$K41)","v":23.053127128116138},{"$f":"CE75*(1+Control!$K41)","v":22.986273059444599},{"$f":"CF75*(1+Control!$K41)","v":22.919612867572209},{"$f":"CG75*(1+Control!$K41)","v":22.853145990256248},{"$f":"CH75*(1+Control!$K41)","v":22.786871866884503},{"$f":"CI75*(1+Control!$K41)","v":22.720789938470539},{"$f":"CJ75*(1+Control!$K41)","v":22.654899647648975},{"$f":"CK75*(1+Control!$K41)","v":22.589200438670794},{"$f":"CL75*(1+Control!$K41)","v":22.523691757398648},{"$f":"CM75*(1+Control!$K41)","v":22.458373051302193},{"$f":"CN75*(1+Control!$K41)","v":22.393243769453417},{"$f":"CO75*(1+Control!$K41)","v":22.328303362522},{"$f":"CP75*(1+Control!$K41)","v":22.263551282770685},{"$f":"CQ75*(1+Control!$K41)","v":22.198986984050649},{"$f":"CR75*(1+Control!$K41)","v":22.134609921796901},{"$f":"CS75*(1+Control!$K41)","v":22.07041955302369},{"$f":"CT75*(1+Control!$K41)","v":22.006415336319922},{"$f":"CU75*(1+Control!$K41)","v":21.942596731844592},{"$f":"CV75*(1+Control!$K41)","v":21.878963201322243}]
["Ducted gas heating",{"$f":"Control!H42","v":29.167138810198303},{"$f":"B76*(1+Control!$K42)","v":29.167138810198303},{"$f":"C76*(1+Control!$K42)","v":29.167138810198303},{"$f":"D76*(1+Control!$K42)","v":29.167138810198303},{"$f":"E76*(1+Control!$K42)","v":29.167138810198303},{"$f":"F76*(1+Control!$K42)","v":29.167138810198303},{"$f":"G76*(1+Control!$K42)","v":29.167138810198303},{"$f":"H76*(1+Control!$K42)","v":29.167138810198303},{"$f":"I76*(1+Control!$K42)","v":29.167138810198303},{"$f":"J76*(1+Control!$K42)","v":29.167138810198303},{"$f":"K76*(1+Control!$K42)","v":29.167138810198303},{"$f":"L76*(1+Control!$K42)","v":29.167138810198303},{"$f":"M76*(1+Control!$K42)","v":29.167138810198303},{"$f":"N76*(1+Control!$K42)","v":29.167138810198303},{"$f":"O76*(1+Control!$K42)","v":29.167138810198303},{"$f":"P76*(1+Control!$K42)","v":29.167138810198303},{"$f":"Q76*(1+Control!$K42)","v":29.167138810198303},{"$f":"R76*(1+Control!$K42)","v":29.167138810198303},{"$f":"S76*(1+Control!$K42)","v":29.167138810198303},{"$f":"T76*(1+Control!$K42)","v":29.167138810198303},{"$f":"U76*(1+Control!$K42)","v":29.167138810198303},{"$f":"V76*(1+Control!$K42)","v":29.167138810198303},{"$f":"W76*(1+Control!$K42)","v":29.167138810198303},{"$f":"X76*(1+Control!$K42)","v":29.167138810198303},{"$f":"Y76*(1+Control!$K42)","v":29.167138810198303},{"$f":"Z76*(1+Control!$K42)","v":29.167138810198303},{"$f":"AA76*(1+Control!$K42)","v":29.167138810198303},{"$f":"AB76*(1+Control!$K42)","v":29.167138810198303},{"$f":"AC76*(1+Control!$K42)","v":29.167138810198303},{"$f":"AD76*(1+Control!$K42)","v":29.167138810198303},{"$f":"AE76*(1+Control!$K42)","v":29.167138810198303},{"$f":"AF76*(1+Control!$K42)","v":29.167138810198303},{"$f":"AG76*(1+Control!$K42)","v":29.167138810198303},{"$f":"AH76*(1+Control!$K42)","v":29.167138810198303},{"$f":"AI76*(1+Control!$K42)","v":29.167138810198303},{"$f":"AJ76*(1+Control!$K42)","v":29.167138810198303},{"$f":"AK76*(1+Control!$K42)","v":29.167138810198303},{"$f":"AL76*(1+Control!$K42)","v":29.167138810198303},{"$f":"AM76*(1+Control!$K42)","v":29.167138810198303},{"$f":"AN76*(1+Control!$K42)","v":29.167138810198303},{"$f":"AO76*(1+Control!$K42)","v":29.167138810198303},{"$f":"AP76*(1+Control!$K42)","v":29.167138810198303},{"$f":"AQ76*(1+Control!$K42)","v":29.167138810198303},{"$f":"AR76*(1+Control!$K42)","v":29.167138810198303},{"$f":"AS76*(1+Control!$K42)","v":29.167138810198303},{"$f":"AT76*(1+Control!$K42)","v":29.167138810198303},{"$f":"AU76*(1+Control!$K42)","v":29.167138810198303},{"$f":"AV76*(1+Control!$K42)","v":29.167138810198303},{"$f":"AW76*(1+Control!$K42)","v":29.167138810198303},{"$f":"AX76*(1+Control!$K42)","v":29.167138810198303},{"$f":"AY76*(1+Control!$K42)","v":29.167138810198303},{"$f":"AZ76*(1+Control!$K42)","v":29.167138810198303},{"$f":"BA76*(1+Control!$K42)","v":29.167138810198303},{"$f":"BB76*(1+Control!$K42)","v":29.167138810198303},{"$f":"BC76*(1+Control!$K42)","v":29.167138810198303},{"$f":"BD76*(1+Control!$K42)","v":29.167138810198303},{"$f":"BE76*(1+Control!$K42)","v":29.167138810198303},{"$f":"BF76*(1+Control!$K42)","v":29.167138810198303},{"$f":"BG76*(1+Control!$K42)","v":29.167138810198303},{"$f":"BH76*(1+Control!$K42)","v":29.167138810198303},{"$f":"BI76*(1+Control!$K42)","v":29.167138810198303},{"$f":"BJ76*(1+Control!$K42)","v":29.167138810198303},{"$f":"BK76*(1+Control!$K42)","v":29.167138810198303},{"$f":"BL76*(1+Control!$K42)","v":29.167138810198303},{"$f":"BM76*(1+Control!$K42)","v":29.167138810198303},{"$f":"BN76*(1+Control!$K42)","v":29.167138810198303},{"$f":"BO76*(1+Control!$K42)","v":29.167138810198303},{"$f":"BP76*(1+Control!$K42)","v":29.167138810198303},{"$f":"BQ76*(1+Control!$K42)","v":29.167138810198303},{"$f":"BR76*(1+Control!$K42)","v":29.167138810198303},{"$f":"BS76*(1+Control!$K42)","v":29.167138810198303},{"$f":"BT76*(1+Control!$K42)","v":29.167138810198303},{"$f":"BU76*(1+Control!$K42)","v":29.167138810198303},{"$f":"BV76*(1+Control!$K42)","v":29.167138810198303},{"$f":"BW76*(1+Control!$K42)","v":29.167138810198303},{"$f":"BX76*(1+Control!$K42)","v":29.167138810198303},{"$f":"BY76*(1+Control!$K42)","v":29.167138810198303},{"$f":"BZ76*(1+Control!$K42)","v":29.167138810198303},{"$f":"CA76*(1+Control!$K42)","v":29.167138810198303},{"$f":"CB76*(1+Control!$K42)","v":29.167138810198303},{"$f":"CC76*(1+Control!$K42)","v":29.167138810198303},{"$f":"CD76*(1+Control!$K42)","v":29.167138810198303},{"$f":"CE76*(1+Control!$K42)","v":29.167138810198303},{"$f":"CF76*(1+Control!$K42)","v":29.167138810198303},{"$f":"CG76*(1+Control!$K42)","v":29.167138810198303},{"$f":"CH76*(1+Control!$K42)","v":29.167138810198303},{"$f":"CI76*(1+Control!$K42)","v":29.167138810198303},{"$f":"CJ76*(1+Control!$K42)","v":29.167138810198303},{"$f":"CK76*(1+Control!$K42)","v":29.167138810198303},{"$f":"CL76*(1+Control!$K42)","v":29.167138810198303},{"$f":"CM76*(1+Control!$K42)","v":29.167138810198303},{"$f":"CN76*(1+Control!$K42)","v":29.167138810198303},{"$f":"CO76*(1+Control!$K42)","v":29.167138810198303},{"$f":"CP76*(1+Control!$K42)","v":29.167138810198303},{"$f":"CQ76*(1+Control!$K42)","v":29.167138810198303},{"$f":"CR76*(1+Control!$K42)","v":29.167138810198303},{"$f":"CS76*(1+Control!$K42)","v":29.167138810198303},{"$f":"CT76*(1+Control!$K42)","v":29.167138810198303},{"$f":"CU76*(1+Control!$K42)","v":29.167138810198303},{"$f":"CV76*(1+Control!$K42)","v":29.167138810198303}]
["Difference",{"$f":"B76-B75","v":0},{"$f":"C76-C75","v":8.4584702549577173E-2},0.16892410946175929,0.25301893209389448,0.33686987974039795,0.42047765963872763,0.50384297697534919,0.58696653489169748,0.66984903449008826,0.75249117483964412,0.83489365298218488,0.91705716393811088,0.99898240071226496,1.0806700542997731,1.1621208136918781,1.2433353658817481,1.3243143958702674,1.4050585866718208,1.4855686193200484,1.565845172873594,1.6458889244218362,1.7257005490905897,1.8052807200478007,1.8846301085092385,1.9637493837441369,2.0426392130808537,2.121300261912495,2.1997331937025244,2.2779386699903625,2.3559173503969646,2.4336698926303875,2.5111969524913356,2.5884991838786853,2.665577238795013,2.7424317673520839,2.8190634177763378,2.8954728364143634,2.9716606677383375,3.0476275543514717,3.1233741369934265,3.1989010545457219,3.2742089440371132,3.3492984406489796,3.4241701777206721,3.4988247867548559,3.5732628974228433,3.6474851375698911,3.7214921332205151,3.7952845085837517,3.8688628860584338,3.9422278862384381,4.015380127917922,4.0883202280965349,4.1610488019846308,4.2335664630084509,4.3058738228153004,4.3779714912787107,4.4498600765035761,4.5215401848312915,4.5930124208448575,4.664277387373982,4.7353356855001714,4.8061879145617965,4.8768346721591413,4.9472765541594548,{"$f":"BO76-BO75","v":5.017514154701967},5.0875480662029062,5.1573788793604933,5.2270071831599232,5.2964335648783347,5.3656586100897634,5.4346829026700796,5.5035070248019125,5.5721315569795635,5.6405570780138987,5.7087841650372333,5.7768133935081991,5.8446453372166012,5.9122805682882493,5.9797196571897899,{"$f":"CD76-CD75","v":6.0469631727335162},6.1140116820821646,6.1808657507537035,6.2475259426260941,6.3139928199420545,6.3802669433137993,6.4463488717277642,6.5122391625493279,6.5779383715275088,6.6434470527996545,6.70876575889611,6.7738950407448861,6.8388354476763027,6.9035875274276179,6.968151826147654,7.0325288884014014,7.0967192571746125,7.1607234738783809,7.2245420783537107,7.2881756088760596]
[]
["Capital costs",2021,{"$f":"B79+1","v":2022},{"$f":"C79+1","v":2023},{"$f":"D79+1","v":2024},{"$f":"E79+1","v":2025},{"$f":"F79+1","v":2026},{"$f":"G79+1","v":2027},{"$f":"H79+1","v":2028},{"$f":"I79+1","v":2029},{"$f":"J79+1","v":2030},{"$f":"K79+1","v":2031},{"$f":"L79+1","v":2032},{"$f":"M79+1","v":2033},{"$f":"N79+1","v":2034},{"$f":"O79+1","v":2035},{"$f":"P79+1","v":2036},{"$f":"Q79+1","v":2037},{"$f":"R79+1","v":2038},{"$f":"S79+1","v":2039},{"$f":"T79+1","v":2040},{"$f":"U79+1","v":2041},{"$f":"V79+1","v":2042},{"$f":"W79+1","v":2043},{"$f":"X79+1","v":2044},{"$f":"Y79+1","v":2045},{"$f":"Z79+1","v":2046},{"$f":"AA79+1","v":2047},{"$f":"AB79+1","v":2048},{"$f":"AC79+1","v":2049},{"$f":"AD79+1","v":2050},{"$f":"AE79+1","v":2051},{"$f":"AF79+1","v":2052},{"$f":"AG79+1","v":2053},{"$f":"AH79+1","v":2054},{"$f":"AI79+1","v":2055},{"$f":"AJ79+1","v":2056},{"$f":"AK79+1","v":2057},{"$f":"AL79+1","v":2058},{"$f":"AM79+1","v":2059},{"$f":"AN79+1","v":2060},{"$f":"AO79+1","v":2061},{"$f":"AP79+1","v":2062},{"$f":"AQ79+1","v":2063},{"$f":"AR79+1","v":2064},{"$f":"AS79+1","v":2065},{"$f":"AT79+1","v":2066},{"$f":"AU79+1","v":2067},{"$f":"AV79+1","v":2068},{"$f":"AW79+1","v":2069},{"$f":"AX79+1","v":2070},{"$f":"AY79+1","v":2071},{"$f":"AZ79+1","v":2072},{"$f":"BA79+1","v":2073},{"$f":"BB79+1","v":2074},{"$f":"BC79+1","v":2075},{"$f":"BD79+1","v":2076},{"$f":"BE79+1","v":2077},{"$f":"BF79+1","v":2078},{"$f":"BG79+1","v":2079},{"$f":"BH79+1","v":2080},{"$f":"BI79+1","v":2081},{"$f":"BJ79+1","v":2082},{"$f":"BK79+1","v":2083},{"$f":"BL79+1","v":2084},{"$f":"BM79+1","v":2085},{"$f":"BN79+1","v":2086},{"$f":"BO79+1","v":2087},{"$f":"BP79+1","v":2088},{"$f":"BQ79+1","v":2089},{"$f":"BR79+1","v":2090},{"$f":"BS79+1","v":2091},{"$f":"BT79+1","v":2092},{"$f":"BU79+1","v":2093},{"$f":"BV79+1","v":2094},{"$f":"BW79+1","v":2095},{"$f":"BX79+1","v":2096},{"$f":"BY79+1","v":2097},{"$f":"BZ79+1","v":2098},{"$f":"CA79+1","v":2099},{"$f":"CB79+1","v":2100},{"$f":"CC79+1","v":2101},{"$f":"CD79+1","v":2102},{"$f":"CE79+1","v":2103},{"$f":"CF79+1","v":2104},{"$f":"CG79+1","v":2105},{"$f":"CH79+1","v":2106},{"$f":"CI79+1","v":2107},{"$f":"CJ79+1","v":2108},{"$f":"CK79+1","v":2109},{"$f":"CL79+1","v":2110},{"$f":"CM79+1","v":2111},{"$f":"CN79+1","v":2112},{"$f":"CO79+1","v":2113},{"$f":"CP79+1","v":2114},{"$f":"CQ79+1","v":2115},{"$f":"CR79+1","v":2116},{"$f":"CS79+1","v":2117},{"$f":"CT79+1","v":2118},{"$f":"CU79+1","v":2119},{"$f":"CV79+1","v":2120}]
["Cooking",{"$f":"B5","v":-900.55555555555566},-900.55555555555566,-900.55555555555566,-900.55555555555566,-900.55555555555566,-900.55555555555566,-900.55555555555566,-889.12222222222226,-832.80736028354977,-821.71276792657636,-810.6736485313877,-799.68972473317535,-788.76072055395389,-777.88636139562868,-767.06637403309514,-756.3004866073743,-745.58842861878202,-734.92993092013239,-724.32472570997606,-713.77254652587044,-703.27312823768534,-692.82620704094143,-682.43152045018132,-672.0888072923749,-661.79780770035745,-651.55826310630005,-641.36991623521294,-631.23251109848138,-621.14579298743342,-611.10950846694072,-611.10950846694072,-611.10950846694072,{"$f":"AH5","v":-611.10950846694072},-611.10950846694072,-611.10950846694072,-611.10950846694072,-611.10950846694072,-611.10950846694072,-611.10950846694072,-611.10950846694072,-611.10950846694072,-611.10950846694072,-611.10950846694072,-611.10950846694072,-611.10950846694072,-611.10950846694072,-611.10950846694072,-611.10950846694072,-611.10950846694072,-611.10950846694072,-611.10950846694072,-611.10950846694072,-611.10950846694072,-611.10950846694072,-611.10950846694072,-611.10950846694072,-611.10950846694072,-611.10950846694072,-611.10950846694072,-611.10950846694072,-611.10950846694072,-611.10950846694072,-611.10950846694072,-611.10950846694072,{"$f":"BN5","v":-611.10950846694072},-611.10950846694072,-611.10950846694072,-611.10950846694072,-611.10950846694072,-611.10950846694072,-611.10950846694072,-611.10950846694072,-611.10950846694072,-611.10950846694072,-611.10950846694072,-611.10950846694072,-611.10950846694072,-611.10950846694072,-611.10950846694072,-611.10950846694072,{"$f":"CD5","v":-611.10950846694072},-611.10950846694072,-611.10950846694072,-611.10950846694072,-611.10950846694072,-611.10950846694072,-611.10950846694072,-611.10950846694072,-611.10950846694072,-611.10950846694072,-611.10950846694072,-611.10950846694072,-611.10950846694072,-611.10950846694072,-611.10950846694072,-611.10950846694072,-611.10950846694072,-611.10950846694072,-611.10950846694072,-611.10950846694072]
["Hot water",{"$f":"B9","v":-2392.2222222222226},-2392.2222222222226,-1879.6706119827495,-1879.6706119827495,-1879.6706119827495,-1879.6706119827495,-1879.6706119827495,-2369.1111111111113,-2255.277376580073,-2232.8509896971727,-2210.5367347486872,-2188.334051074944,-2166.242380819569,-2144.261168915471,-2122.3898630708936,-2100.6279137555393,-2078.9747741867614,-2057.4299003158276,-2035.9927508142482,-2014.6627870601769,-1993.4394731248758,-1972.3222757592512,-1951.3106643804549,-1930.4041110585522,-1909.6020905032592,-1888.9040800507428,-1868.3095596504891,-1847.8180118522364,-1827.4289217929754,-1807.1417771840106,-1807.1417771840106,-1807.1417771840106,{"$f":"AH9","v":-1807.1417771840106},-1807.1417771840106,-1807.1417771840106,-1807.1417771840106,-1807.1417771840106,-1807.1417771840106,-1807.1417771840106,-1807.1417771840106,-1807.1417771840106,-1807.1417771840106,-1807.1417771840106,-1807.1417771840106,-1807.1417771840106,-1807.1417771840106,-1807.1417771840106,-1807.1417771840106,-1807.1417771840106,-1807.1417771840106,-1807.1417771840106,-1807.1417771840106,-1807.1417771840106,-1807.1417771840106,-1807.1417771840106,-1807.1417771840106,-1807.1417771840106,-1807.1417771840106,-1807.1417771840106,-1807.1417771840106,-1807.1417771840106,-1807.1417771840106,-1807.1417771840106,-1807.1417771840106,{"$f":"BN9","v":-1807.1417771840106},-1807.1417771840106,-1807.1417771840106,-1807.1417771840106,-1807.1417771840106,-1807.1417771840106,-1807.1417771840106,-1807.1417771840106,-1807.1417771840106,-1807.1417771840106,-1807.1417771840106,-1807.1417771840106,-1807.1417771840106,-1807.1417771840106,-1807.1417771840106,-1807.1417771840106,{"$f":"CD9","v":-1807.1417771840106},-1807.1417771840106,-1807.1417771840106,-1807.1417771840106,-1807.1417771840106,-1807.1417771840106,-1807.1417771840106,-1807.1417771840106,-1807.1417771840106,-1807.1417771840106,-1807.1417771840106,-1807.1417771840106,-1807.1417771840106,-1807.1417771840106,-1807.1417771840106,-1807.1417771840106,-1807.1417771840106,-1807.1417771840106,-1807.1417771840106,-1807.1417771840106]
["Room heating",{"$f":"B13","v":-1002.2216872134909},-1002.2216872134909,-762.2216872134909,-762.2216872134909,-762.2216872134909,-1002.2216872134909,-1002.2216872134909,-985.59957877742363,-903.72741477974614,-887.59777770584742,-871.54878881731838,-855.5800448732316,-839.69114464886525,-823.88168892562089,-808.15128048099268,-792.49952407858791,-776.92602645819488,-761.43039632590398,-746.01224434427468,-730.67118312255343,-715.40682720694076,-700.21879307090603,-685.10669910555134,-670.07016561002365,-655.10881478197371,-640.22227070806366,-625.41015935452333,-610.67210855775056,-596.00774801496163,-581.41670927488667,-581.41670927488667,-581.41670927488667,{"$f":"AH13","v":-581.41670927488667},-581.41670927488667,-581.41670927488667,-581.41670927488667,-581.41670927488667,-581.41670927488667,-581.41670927488667,-581.41670927488667,-581.41670927488667,-581.41670927488667,-581.41670927488667,-581.41670927488667,-581.41670927488667,-581.41670927488667,-581.41670927488667,-581.41670927488667,-581.41670927488667,-581.41670927488667,-581.41670927488667,-581.41670927488667,-581.41670927488667,-581.41670927488667,-581.41670927488667,-581.41670927488667,-581.41670927488667,-581.41670927488667,-581.41670927488667,-581.41670927488667,-581.41670927488667,-581.41670927488667,-581.41670927488667,-581.41670927488667,{"$f":"BN13","v":-581.41670927488667},-581.41670927488667,-581.41670927488667,-581.41670927488667,-581.41670927488667,-581.41670927488667,-581.41670927488667,-581.41670927488667,-581.41670927488667,-581.41670927488667,-581.41670927488667,-581.41670927488667,-581.41670927488667,-581.41670927488667,-581.41670927488667,-581.41670927488667,{"$f":"CD13","v":-581.41670927488667},-581.41670927488667,-581.41670927488667,-581.41670927488667,-581.41670927488667,-581.41670927488667,-581.41670927488667,-581.41670927488667,-581.41670927488667,-581.41670927488667,-581.41670927488667,-581.41670927488667,-581.41670927488667,-581.41670927488667,-581.41670927488667,-581.41670927488667,-581.41670927488667,-581.41670927488667,-581.41670927488667,-581.41670927488667]
["Space heating",{"$f":"B17","v":-1810.2187499999991},-1810.2187499999991,-470.21875000000091,-470.21875000000091,-1810.2187499999991,-1810.2187499999991,-1810.2187499999991,-1778.2759895833324,-1620.9419829240314,-1589.9456063427442,-1559.1042116443641,-1528.4170239194755,-1497.883272133211,-1467.5021891058786,-1437.2730114936821,-1407.194979769547,-1377.267338204033,-1347.4893348463465,-1317.860221505448,-1288.3792537312538,-1259.0456907959306,-1229.8587956752845,-1200.8178350302414,-1171.9220791884236,-1143.1708021258146,-1114.5632814485189,-1086.0987983746099,-1057.7766377160706,-1029.5960878608239,-1001.5564407548527,-1001.5564407548527,-1001.5564407548527,{"$f":"AH17","v":-1001.5564407548527},-1001.5564407548527,-1001.5564407548527,-1001.5564407548527,-1001.5564407548527,-1001.5564407548527,-1001.5564407548527,-1001.5564407548527,-1001.5564407548527,-1001.5564407548527,-1001.5564407548527,-1001.5564407548527,-1001.5564407548527,-1001.5564407548527,-1001.5564407548527,-1001.5564407548527,-1001.5564407548527,-1001.5564407548527,-1001.5564407548527,-1001.5564407548527,-1001.5564407548527,-1001.5564407548527,-1001.5564407548527,-1001.5564407548527,-1001.5564407548527,-1001.5564407548527,-1001.5564407548527,-1001.5564407548527,-1001.5564407548527,-1001.5564407548527,-1001.5564407548527,-1001.5564407548527,{"$f":"BN17","v":-1001.5564407548527},-1001.5564407548527,-1001.5564407548527,-1001.5564407548527,-1001.5564407548527,-1001.5564407548527,-1001.5564407548527,-1001.5564407548527,-1001.5564407548527,-1001.5564407548527,-1001.5564407548527,-1001.5564407548527,-1001.5564407548527,-1001.5564407548527,-1001.5564407548527,-1001.5564407548527,{"$f":"CD17","v":-1001.5564407548527},-1001.5564407548527,-1001.5564407548527,-1001.5564407548527,-1001.5564407548527,-1001.5564407548527,-1001.5564407548527,-1001.5564407548527,-1001.5564407548527,-1001.5564407548527,-1001.5564407548527,-1001.5564407548527,-1001.5564407548527,-1001.5564407548527,-1001.5564407548527,-1001.5564407548527,-1001.5564407548527,-1001.5564407548527,-1001.5564407548527,-1001.5564407548527]
["Gas disconnection charge",{"$f":"-B18","v":-100},-100,-100,-100,-100,-100,-100,-100,-100,-100,-100,-100,-100,-100,-100,-100,-100,-100,-100,-100,-100,-100,-100,-100,-100,-100,-100,-100,-100,-100,-100,-100,{"$f":"-AH18","v":-100},-100,-100,-100,-100,-100,-100,-100,-100,-100,-100,-100,-100,-100,-100,-100,-100,-100,-100,-100,-100,-100,-100,-100,-100,-100,-100,-100,-100,-100,-100,-100,{"$f":"-BN18","v":-100},-100,-100,-100,-100,-100,-100,-100,-100,-100,-100,-100,-100,-100,-100,-100,{"$f":"-CD18","v":-100},-100,-100,-100,-100,-100,-100,-100,-100,-100,-100,-100,-100,-100,-100,-100,-100,-100,-100,-100]
["Electricity connection upgrade",{"$f":"-B19","v":-2225},-2225,-2225,-2225,-2225,-2225,-2225,-2225,-2225,-2225,-2225,-2225,-2225,-2225,-2225,-2225,-2225,-2225,-2225,-2225,-2225,-2225,-2225,-2225,-2225,-2225,-2225,-2225,-2225,-2225,-2225,-2225,{"$f":"-AH19","v":-2225},-2225,-2225,-2225,-2225,-2225,-2225,-2225,-2225,-2225,-2225,-2225,-2225,-2225,-2225,-2225,-2225,-2225,-2225,-2225,-2225,-2225,-2225,-2225,-2225,-2225,-2225,-2225,-2225,-2225,-2225,-2225,{"$f":"-BN19","v":-2225},-2225,-2225,-2225,-2225,-2225,-2225,-2225,-2225,-2225,-2225,-2225,-2225,-2225,-2225,-2225,{"$f":"-CD19","v":-2225},-2225,-2225,-2225,-2225,-2225,-2225,-2225,-2225,-2225,-2225,-2225,-2225,-2225,-2225,-2225,-2225,-2225,-2225,-2225]
[]
["Realtive running costs-Residential",2021,{"$f":"B87+1","v":2022},{"$f":"C87+1","v":2023},{"$f":"D87+1","v":2024},{"$f":"E87+1","v":2025},{"$f":"F87+1","v":2026},{"$f":"G87+1","v":2027},{"$f":"H87+1","v":2028},{"$f":"I87+1","v":2029},{"$f":"J87+1","v":2030},{"$f":"K87+1","v":2031},{"$f":"L87+1","v":2032},{"$f":"M87+1","v":2033},{"$f":"N87+1","v":2034},{"$f":"O87+1","v":2035},{"$f":"P87+1","v":2036},{"$f":"Q87+1","v":2037},{"$f":"R87+1","v":2038},{"$f":"S87+1","v":2039},{"$f":"T87+1","v":2040},{"$f":"U87+1","v":2041},{"$f":"V87+1","v":2042},{"$f":"W87+1","v":2043},{"$f":"X87+1","v":2044},{"$f":"Y87+1","v":2045},{"$f":"Z87+1","v":2046},{"$f":"AA87+1","v":2047},{"$f":"AB87+1","v":2048},{"$f":"AC87+1","v":2049},{"$f":"AD87+1","v":2050},{"$f":"AE87+1","v":2051},{"$f":"AF87+1","v":2052},{"$f":"AG87+1","v":2053},{"$f":"AH87+1","v":2054},{"$f":"AI87+1","v":2055},{"$f":"AJ87+1","v":2056},{"$f":"AK87+1","v":2057},{"$f":"AL87+1","v":2058},{"$f":"AM87+1","v":2059},{"$f":"AN87+1","v":2060},{"$f":"AO87+1","v":2061},{"$f":"AP87+1","v":2062},{"$f":"AQ87+1","v":2063},{"$f":"AR87+1","v":2064},{"$f":"AS87+1","v":2065},{"$f":"AT87+1","v":2066},{"$f":"AU87+1","v":2067},{"$f":"AV87+1","v":2068},{"$f":"AW87+1","v":2069},{"$f":"AX87+1","v":2070},{"$f":"AY87+1","v":2071},{"$f":"AZ87+1","v":2072},{"$f":"BA87+1","v":2073},{"$f":"BB87+1","v":2074},{"$f":"BC87+1","v":2075},{"$f":"BD87+1","v":2076},{"$f":"BE87+1","v":2077},{"$f":"BF87+1","v":2078},{"$f":"BG87+1","v":2079},{"$f":"BH87+1","v":2080},{"$f":"BI87+1","v":2081},{"$f":"BJ87+1","v":2082},{"$f":"BK87+1","v":2083},{"$f":"BL87+1","v":2084},{"$f":"BM87+1","v":2085},{"$f":"BN87+1","v":2086},{"$f":"BO87+1","v":2087},{"$f":"BP87+1","v":2088},{"$f":"BQ87+1","v":2089},{"$f":"BR87+1","v":2090},{"$f":"BS87+1","v":2091},{"$f":"BT87+1","v":2092},{"$f":"BU87+1","v":2093},{"$f":"BV87+1","v":2094},{"$f":"BW87+1","v":2095},{"$f":"BX87+1","v":2096},{"$f":"BY87+1","v":2097},{"$f":"BZ87+1","v":2098},{"$f":"CA87+1","v":2099},{"$f":"CB87+1","v":2100},{"$f":"CC87+1","v":2101},{"$f":"CD87+1","v":2102},{"$f":"CE87+1","v":2103},{"$f":"CF87+1","v":2104},{"$f":"CG87+1","v":2105},{"$f":"CH87+1","v":2106},{"$f":"CI87+1","v":2107},{"$f":"CJ87+1","v":2108},{"$f":"CK87+1","v":2109},{"$f":"CL87+1","v":2110},{"$f":"CM87+1","v":2111},{"$f":"CN87+1","v":2112},{"$f":"CO87+1","v":2113},{"$f":"CP87+1","v":2114},{"$f":"CQ87+1","v":2115},{"$f":"CR87+1","v":2116},{"$f":"CS87+1","v":2117},{"$f":"CT87+1","v":2118},{"$f":"CU87+1","v":2119},{"$f":"CV87+1","v":2120}]
["Cooking",{"$f":"B25+B65","v":-6.9705294900256334},-9.1019260549815861,-10.403449951890654,-9.7104514343987667,-10.517742815497321,-10.459017258415759,-9.3060989664673883,-9.5598310619153075,-8.3464264526700624,-9.8181828294492846,-11.071127840892711,-11.229245300791636,-9.7959917849505302,-8.7743954333081575,-7.1991385863494664,-6.3354207045903088,-5.0140859096810395,-4.1256317296817215,-3.1741314898164528,-2.4784044229413378,-2.0356110107653751,-1.016712696166493,7.9011098931620616E-3,0.71212821805869497,1.4076571924060528,1.8652529187085993,2.2949915267609069,2.6828853200721849,3.0760061410865451,3.6222672260509658,4.0296477850656416,4.6391466630222453,{"$f":"AH25+AH65","v":5.1548523212756301},5.6266244923653019,6.1265447587261725,4.4683144041206653,4.2004897736409248,4.6487980720184261,5.2212625012310276,5.7638390073853714,6.3340823391544632,6.9687527776863476,7.6834374508578236,8.4927413806533423,9.4179510719962991,10.485537887338523,11.718643150225226,13.138780818337551,14.772117618271906,16.65864759260181,18.856864073307861,21.448552012233968,24.543864630020487,27.589210298948316,30.392319091807948,33.254619979604335,36.472060392884522,40.305232940819117,45.846735641326227,54.032451853867975,66.215372388033018,-1.7398921140896522,-1.7278921140896482,-1.7158921140896477,{"$f":"BN25+BN65","v":-1.7038921140896437},-1.6918921140896432,-1.6798921140896428,-1.6678921140896388,-1.6558921140896383,-1.6438921140896343,-1.6318921140896339,-1.6198921140896334,-1.6078921140896294,-1.5958921140896289,-1.5838921140896249,-1.5718921140896245,-1.559892114089624,-1.54789211408962,-1.5358921140896196,-1.7769387267503691,{"$f":"CD25+CD65","v":-1.7769387267503691},-1.7769387267503691,-1.7769387267503691,-1.7769387267503691,-1.7769387267503691,-1.7769387267503691,-1.7769387267503691,-1.7769387267503691,-1.7769387267503691,-1.7769387267503691,-1.7769387267503691,-1.7769387267503691,-1.7769387267503691,-1.7769387267503691,-1.7769387267503691,-1.7769387267503691,-1.7769387267503691,-1.7769387267503691,-1.7769387267503691,-1.7769387267503691]
["Hot water",{"$f":"B29+B69","v":-146.49213239551867},-180.4962757046581,-202.60910050315201,-191.13157692564212,-204.65544349538507,-203.50707493066329,-183.89638380229917,-186.94746152043183,-165.89247990263354,-189.48171201101249,-211.34083167781401,-213.92721259520064,-189.84783632750427,-172.41740455960087,-145.63659419709032,-130.86001631052162,-108.29189645214196,-93.208636451579167,-77.095087088447286,-65.423475903839659,-57.81957862066578,-40.334480922620905,-22.761824489055897,-10.69834105171762,1.2079114398562396,9.2345478018374507,16.784612898463557,23.618185858398284,30.541279395023736,40.095357251518571,47.31828865021528,58.009448640547291,{"$f":"AH29+AH69","v":67.089031878760622},75.412973116259053,84.21868213452349,55.974706861745851,51.597940386580142,59.513375496169623,69.558752872108556,79.089658578964247,89.094124734492112,100.20321170676957,112.68450734258403,126.78873994780123,142.88133656266282,161.41673089259905,182.79219091978274,207.37704812404812,235.62050646362104,268.20913876669715,306.14708894233706,350.83834032031075,404.17386479145915,456.65034763019213,504.96716325041274,554.29885043312049,609.72584812953664,675.72167080566896,771.04259239310181,911.75461846899861,1121.0840991204277,-45.293141824564863,-44.900212867703232,-44.508480256165463,{"$f":"BN29+BN69","v":-44.117936333341589},-43.728573491623791,-43.340384172092925,-42.953360864207113,-42.567496105491777,-42.182782481232216,-41.799212624167858,-41.416779214188765,-41.035474978033548,-40.655292688989718,-40.276225166595708,-39.898265276345079,-39.521405929392053,-39.145640082259526,-38.770960736548588,-42.74132778932649,{"$f":"CD29+CD69","v":-42.574800630134725},-42.409339244761789,-42.24493681225524,-42.081586555316733,-41.919281740022633,-41.758015675546417,-41.597781713882853,-41.438573249573928,-41.280383719436585,-41.123206602292115,-40.967035418697371,-40.811863730677636,-40.657685141461229,-40.504493295215802,-40.35228187678635,-40.201044611434845,-40.050775264581588,-39.901467641548194,-39.753115587302219,-39.605712986203407]
["Room heating",{"$f":"B33+B73","v":81.583285471779405},72.634700066187762,51.137166200641175,54.692080683321322,42.362622037437703,41.884977590373538,55.5419616234296,62.896887690885208,82.042987953390323,73.871946870922969,46.913254511706398,42.91315223591694,57.416212707276614,69.900615735353156,89.638845662193731,100.23314065495801,117.52232002622294,127.25093527649416,137.4413005243706,142.9574363173034,147.43331085036186,161.12878257419305,174.81726326612932,183.25097609056644,191.47402411730161,198.13313314721563,204.37752064791522,209.98356579921528,215.68816093215878,223.90342179749155,230.47770116365939,240.31375202171773,{"$f":"AH33+AH73","v":248.63617436870339},256.24960112973667,264.31727991100871,237.5568728090991,233.23473739308122,240.46950579448367,249.70789727281112,258.46395951006053,267.66650707102389,277.90877483767639,289.44230680471941,302.50279780969544,317.43376800102311,334.66241040033907,354.56217809106232,377.48026183853023,403.83893847195355,434.28362909217418,469.75829505667178,511.58277627796207,561.53471783396526,610.68029621528331,655.91667259660426,702.10828692380119,754.03111842087458,815.89059264271566,905.31898105089942,1037.4195047567453,1234.0266361356851,137.36926417039467,137.56291934280847,137.75657451522233,{"$f":"BN33+BN73","v":137.95022968763612},138.14388486004998,138.33754003246378,138.53119520487763,138.72485037729143,138.91850554970523,139.11216072211909,139.30581589453288,139.49947106694674,139.69312623936054,139.88678141177439,140.08043658418819,140.27409175660205,140.46774692901585,140.66140210142964,136.77140849021481,{"$f":"CD33+CD73","v":136.77140849021481},136.77140849021481,136.77140849021481,136.77140849021481,136.77140849021481,136.77140849021481,136.77140849021481,136.77140849021481,136.77140849021481,136.77140849021481,136.77140849021481,136.77140849021481,136.77140849021481,136.77140849021481,136.77140849021481,136.77140849021481,136.77140849021481,136.77140849021481,136.77140849021481,136.77140849021481]
["Space heating",{"$f":"B37+B77","v":161.64324053799396},114.82467997759635,39.066965863871388,56.301061939172044,12.300551137263092,11.544442039122096,62.954173072497881,82.242490472910561,150.39492172627376,112.22618286897979,20.857667514234475,7.6385258470831872,64.241668186160695,110.93099331250316,184.3155247315278,223.91711946924431,287.64200705270923,324.93320260983108,364.1916629407508,387.22202038722088,404.74992874445894,454.9766934395368,505.23777536961404,536.9384302855816,567.93476620139631,592.03165877299864,614.63869626771225,634.96262679427196,655.6268756933714,685.15934990349342,708.52100853423815,743.43454904972236,{"$f":"AH37+AH77","v":772.9870970933506},800.02839492692647,828.6782784724885,733.97846830364972,718.74731479055777,744.44664071018201,777.24191074920498,808.32871108877202,840.99659395140247,877.34660018112152,918.26961539434456,964.60039277403951,1017.5555668106927,1078.6481134189376,1149.2006795637296,1230.4428998316623,1323.8703386170669,1431.7688629411562,1557.4816698989316,1705.683193132681,1882.6692595770373,2056.7992449180933,2217.0839289296291,2380.7515370315914,2564.7169962521898,2783.8745227064351,3100.6717450937472,3568.5992387879651,4264.9874273882388,381.06362664262878,381.82034094065608,382.57684976721885,{"$f":"BN37+BN77","v":383.3331537181848},384.08925338769302,384.84514936815958,385.60084225028288,386.35633262304793,387.11162107373178,387.8667081879089,388.62159454945487,389.37628074055237,390.13076734169567,390.88505493169566,391.63914408768443,392.39303538512104,393.14672939779513,393.90022669783241,380.19060508034795,{"$f":"CD37+CD77","v":380.25784859589169},380.32489710524032,380.39175117391187,380.45841136578429,380.5248782431002,380.59115236647199,380.65723429488594,380.72312458570752,380.7888237946857,380.85433247595785,380.91965118205428,380.98478046390306,381.04972087083445,381.11447295058576,381.17903724930585,381.2434143115596,381.30760468033282,381.37160889703654,381.43542750151187,381.49906103203421]
["Service charge",{"$f":"B38-B39","v":226.70481345999448},{"$f":"C38-C39","v":226.70481345999448},{"$f":"D38-D39","v":212.7145047058392},209.15257884749394,212.06145331331879,211.42374200425579,212.16499658322113,213.28199136332165,214.44792762561164,212.32497514341472,209.2119822699845,206.58753767088888,208.9285278934484,210.02384767949965,212.68354614524904,213.15227158627843,218.23230732490265,213.36955564395734,212.2254949452479,211.41098842177578,211.13568504576833,211.06752156272606,211.61784299243661,211.42588916748679,211.92299876349361,212.97916612467884,214.40789778922547,215.61125994755523,217.97779884246552,220.34150968653546,223.48537244032667,225.94445400222125,229.97209990765509,233.21864666710863,236.73653722568491,219.24763426951156,219.63219527231374,224.37345498699946,228.85826326307981,232.20417655785144,236.61748755489535,241.0046851105875,245.81851341292506,250.67437997716132,256.96029958174694,263.47439848815839,270.66005507699646,278.04980681877601,286.91570954120846,295.99319590244443,305.78685441536589,315.9466632371342,327.84453013175016,335.97258045759418,342.27626032776999,349.05989843850898,358.01099351356703,367.89800973469141,383.04678465123129,401.40281248916688,422.82944359911295,158.03781345999451,158.03781345999451,157.606016155459,158.03781345999451,{"$f":"BO38-BO39","v":158.03781345999451},158.03781345999451,157.606016155459,158.03781345999451,158.03781345999451,158.03781345999451,157.606016155459,158.03781345999451,158.03781345999451,158.03781345999451,157.606016155459,158.03781345999451,158.03781345999451,158.03781345999451,158.03781345999451,{"$f":"CD38-CD39","v":158.03781345999451},158.03781345999451,158.03781345999451,158.03781345999451,158.03781345999451,158.03781345999451,158.03781345999451,158.03781345999451,158.03781345999451,158.03781345999451,158.03781345999451,158.03781345999451,158.03781345999451,158.03781345999451,158.03781345999451,158.03781345999451,158.03781345999451,158.03781345999451,158.03781345999451,158.03781345999451]
[]
["Relative running costs-Commercial",2021,{"$f":"B94+1","v":2022},{"$f":"C94+1","v":2023},{"$f":"D94+1","v":2024},{"$f":"E94+1","v":2025},{"$f":"F94+1","v":2026},{"$f":"G94+1","v":2027},{"$f":"H94+1","v":2028},{"$f":"I94+1","v":2029},{"$f":"J94+1","v":2030},{"$f":"K94+1","v":2031},{"$f":"L94+1","v":2032},{"$f":"M94+1","v":2033},{"$f":"N94+1","v":2034},{"$f":"O94+1","v":2035},{"$f":"P94+1","v":2036},{"$f":"Q94+1","v":2037},{"$f":"R94+1","v":2038},{"$f":"S94+1","v":2039},{"$f":"T94+1","v":2040},{"$f":"U94+1","v":2041},{"$f":"V94+1","v":2042},{"$f":"W94+1","v":2043},{"$f":"X94+1","v":2044},{"$f":"Y94+1","v":2045},{"$f":"Z94+1","v":2046},{"$f":"AA94+1","v":2047},{"$f":"AB94+1","v":2048},{"$f":"AC94+1","v":2049},{"$f":"AD94+1","v":2050},{"$f":"AE94+1","v":2051},{"$f":"AF94+1","v":2052},{"$f":"AG94+1","v":2053},{"$f":"AH94+1","v":2054},{"$f":"AI94+1","v":2055},{"$f":"AJ94+1","v":2056},{"$f":"AK94+1","v":2057},{"$f":"AL94+1","v":2058},{"$f":"AM94+1","v":2059},{"$f":"AN94+1","v":2060},{"$f":"AO94+1","v":2061},{"$f":"AP94+1","v":2062},{"$f":"AQ94+1","v":2063},{"$f":"AR94+1","v":2064},{"$f":"AS94+1","v":2065},{"$f":"AT94+1","v":2066},{"$f":"AU94+1","v":2067},{"$f":"AV94+1","v":2068},{"$f":"AW94+1","v":2069},{"$f":"AX94+1","v":2070},{"$f":"AY94+1","v":2071},{"$f":"AZ94+1","v":2072},{"$f":"BA94+1","v":2073},{"$f":"BB94+1","v":2074},{"$f":"BC94+1","v":2075},{"$f":"BD94+1","v":2076},{"$f":"BE94+1","v":2077},{"$f":"BF94+1","v":2078},{"$f":"BG94+1","v":2079},{"$f":"BH94+1","v":2080},{"$f":"BI94+1","v":2081},{"$f":"BJ94+1","v":2082},{"$f":"BK94+1","v":2083},{"$f":"BL94+1","v":2084},{"$f":"BM94+1","v":2085},{"$f":"BN94+1","v":2086},{"$f":"BO94+1","v":2087},{"$f":"BP94+1","v":2088},{"$f":"BQ94+1","v":2089},{"$f":"BR94+1","v":2090},{"$f":"BS94+1","v":2091},{"$f":"BT94+1","v":2092},{"$f":"BU94+1","v":2093},{"$f":"BV94+1","v":2094},{"$f":"BW94+1","v":2095},{"$f":"BX94+1","v":2096},{"$f":"BY94+1","v":2097},{"$f":"BZ94+1","v":2098},{"$f":"CA94+1","v":2099},{"$f":"CB94+1","v":2100},{"$f":"CC94+1","v":2101},{"$f":"CD94+1","v":2102},{"$f":"CE94+1","v":2103},{"$f":"CF94+1","v":2104},{"$f":"CG94+1","v":2105},{"$f":"CH94+1","v":2106},{"$f":"CI94+1","v":2107},{"$f":"CJ94+1","v":2108},{"$f":"CK94+1","v":2109},{"$f":"CL94+1","v":2110},{"$f":"CM94+1","v":2111},{"$f":"CN94+1","v":2112},{"$f":"CO94+1","v":2113},{"$f":"CP94+1","v":2114},{"$f":"CQ94+1","v":2115},{"$f":"CR94+1","v":2116},{"$f":"CS94+1","v":2117},{"$f":"CT94+1","v":2118},{"$f":"CU94+1","v":2119},{"$f":"CV94+1","v":2120}]
["Cooking",{"$f":"B45+B65","v":1.128808367534806},{"$f":"C45+C65","v":1.9028590153534712},1.2945281717646009,2.0860554522413541,1.3813628955304336,1.580314949649559,2.5279316983770745,2.8022184230431688,4.1114779443272553,3.6209928295469074,2.30787296818534,2.2944026449210573,3.3387420154951717,4.2279146935560945,1.9422841171873597,2.3431665565316924,2.9306236818128437,3.771737612188478,4.4360013496548909,4.76129995155571,5.1701221348710504,6.0749992190387196,6.8425914224854871,7.3129624034734277,7.8382658881787997,8.1363999561381313,8.3566115457708428,8.5184055935244452,8.6561582564443604,8.8959492211267843,8.9026242118341905,9.1334034381200269,9.1444807906515351,9.1555590658305128,9.1666382627343097,9.177718380441199,9.1887994180303956,9.1998813745819881,9.2109642491770423,9.2220480408974872,9.2331327488262254,9.2442183720470226,9.2553049096446109,9.2663923607045895,9.2774807243135164,9.2885699995588311,9.2996601855289036,9.3107512813130029,9.3218432860013216,9.3329361986849442,9.3440300184558929,9.355124744407064,9.3662203756322917,9.3773169112262806,9.3884143502846875,9.3995126919040324,9.410611935181759,9.4217120792162028,9.432813123106623,9.4439150659531386,9.4550179068568205,9.4661216449195891,9.4772262792443058,9.4883318089346851,9.4994382330953862,{"$f":"BO45+BO65","v":9.5105455508319139},9.5216537612507146,9.5327628634590873,9.5438728565652653,9.5549837396783239,9.5660955119082764,9.5772081723659959,9.5883217201632647,9.5994361544127287,9.6105514742279503,9.6216676787233446,9.6327847670142539,9.6439027382168661,9.655021591448282,9.6661413258264623,{"$f":"CD45+CD65","v":9.6661413258264623},9.6661413258264623,9.6661413258264623,9.6661413258264623,9.6661413258264623,9.6661413258264623,9.6661413258264623,9.6661413258264623,9.6661413258264623,9.6661413258264623,9.6661413258264623,9.6661413258264623,9.6661413258264623,9.6661413258264623,9.6661413258264623,9.6661413258264623,9.6661413258264623,9.6661413258264623,9.6661413258264623,9.6661413258264623]
["Hot water",{"$f":"B49+B69","v":-15.425327868483436},{"$f":"C49+C69","v":-1.2068386391649071},-11.454671652599849,1.9033472725980971,-9.8730640796792031,-6.348543863877012,9.8853162977800437,15.575936468862366,38.260626298751014,31.047531976143638,8.4363076370389365,8.4182302494699783,26.192986959126948,41.589116733217843,2.2846270701968834,9.2855518412374352,19.444538475039096,33.921415796717802,45.326123955474124,50.876585310396337,57.961960508379306,73.556619194177927,86.78675538186647,94.907693202717638,103.96571673928005,109.26366573885851,113.22570312438418,116.18678184934467,118.73548753650337,123.03784466897923,123.38199714506779,127.57180311505157,127.9886004383727,128.40396312940427,128.81790045532233,129.23042162390743,129.64153578392518,130.05125202550315,130.45957938050756,130.86652682291469,131.27210326918308,131.67631757862014,132.07917855374961,132.4806949406734,132.88087542943416,133.27972865437346,133.67726319448832,134.07348757378585,134.4684102616352,134.8620396731167,135.25438416937072,135.6454520579413,136.0352515931209,136.42379097628967,136.8110783562559,137.19712182959105,137.58192944096498,137.96550918347782,138.3478689989908,138.72901677845292,139.10896036222849,139.48770754041956,139.86526605318883,140.24164359107806,140.61684779532723,{"$f":"BO49+BO69","v":140.99088625818874},141.3637665232423,141.73549608570517,142.10608239274319,142.47553284377688,142.84385479078873,143.21105553862529,143.5771423453003,143.94212242229324,144.30600293484846,144.66879100227001,145.03049369821699,145.39111805099432,145.75067104384448,146.10915961523489,{"$f":"CD49+CD69","v":146.27568677442665},146.44114815979958,146.60555059230612,146.76890084924463,146.93120566453874,147.09247172901496,147.25270569067851,147.41191415498744,147.57010368512479,147.72728080226926,147.88345198586399,148.03862367388373,148.19280226310013,148.34599410934555,148.49820552777501,148.64944279312652,148.79971213997976,148.94901976301315,149.09737181725916,149.24477441835796]
["Room heating",{"$f":"B53+B73","v":124.40415553768811},{"$f":"C53+C73","v":144.10657060419032},133.41183887724549,140.64137657647558,129.8152409156317,131.25803108513423,143.2281259481631,155.54739138588354,176.06619174141667,178.5601246722764,153.72709197777056,153.00052312048626,165.32557299492834,178.30747626718875,137.86965407654566,142.86548063628351,150.39613305801259,161.63504317357484,169.6380260356446,171.79864211745894,176.43903480037636,189.03226150776243,199.34117808915465,204.79453306724253,211.08603681367822,215.26809445668027,218.22874705565789,220.28396010695394,221.97142708898781,225.34397007705172,225.45169061674369,229.1759898547358,229.35475540593393,229.5335358467533,229.71233116230422,229.89114133771199,230.06996635811691,230.24880620867367,230.42766087455243,230.60653034093758,230.78541459302892,230.96431361604044,231.14322739520151,231.32215591575567,231.50109916296179,231.6800571220931,231.85902977843767,232.0380171172983,232.2170191239926,232.39603578385243,232.57506708222496,232.75411300447144,232.93317353596819,233.11224866210569,233.29133836828964,233.47044263993973,233.64956146249068,233.82869482139137,234.00784270210573,234.18700509011154,234.36618197090201,234.54537332998393,234.72457915287936,234.90379942512408,235.08303413226918,{"$f":"BO53+BO73","v":235.26228325987938},235.44154679353449,235.62082471882826,235.80011702136932,235.97942368678002,236.15874470069792,236.3380800487742,236.517429716675,236.69679369008009,236.87617195468437,237.05556449619621,237.23497130033923,237.41439235285031,237.59382763948145,237.77327714599824,{"$f":"CD53+CD73","v":237.77327714599824},237.77327714599824,237.77327714599824,237.77327714599824,237.77327714599824,237.77327714599824,237.77327714599824,237.77327714599824,237.77327714599824,237.77327714599824,237.77327714599824,237.77327714599824,237.77327714599824,237.77327714599824,237.77327714599824,237.77327714599824,237.77327714599824,237.77327714599824,237.77327714599824,237.77327714599824]
["Space heating",{"$f":"B57+B77","v":365.83018164967541},{"$f":"C57+C77","v":431.38420017253497},394.11586888899075,423.11829641045966,384.53315055767956,390.78331309006438,435.24662582984257,474.24288998035234,547.36108748663912,550.05469194359546,464.36360801363395,462.17684954558365,508.61665539432249,555.49328084187175,414.48077505527897,433.13631173593433,461.05369051667003,502.33450591059972,532.38279345688102,541.96158010351996,559.64614672426876,605.5281274196816,643.36074339567733,664.03162804009639,687.69962406823026,702.96604949617722,713.88485795422366,721.5743796112846,727.94914697040065,740.26871980908913,740.72798259606475,753.99573612381448,754.70616634902854,755.41642513184672,756.12651306964665,756.8364307579734,757.54617879054547,758.25575775925802,758.96516825419189,759.67441086361453,760.38348617399026,761.09239476998073,761.80113723445481,762.50971414848914,763.21812609137839,763.92637364063626,764.63445737200391,765.34237785945254,766.05013567519131,766.75773138966952,767.46516557158589,768.17243878788804,768.87955160378442,769.58650458274292,770.29329828650157,770.99993327506922,771.70641010673353,772.41272933806511,773.11889152392291,773.82489721745719,774.53074697011914,775.23644133166033,775.9419808501433,776.64736607194084,777.3525975417466,{"$f":"BO57+BO77","v":778.0576758025752},778.76260139577141,779.46737486101119,780.17199673631012,780.87646755802473,781.58078786086219,782.28495817787905,782.98897904049306,783.69285097848035,784.39657451998823,785.10015019153275,785.80357851801011,786.50686002269515,787.20999522725219,787.91298465173406,{"$f":"CD57+CD77","v":787.9802281672778},788.04727667662644,788.11413074529798,788.1807909371704,788.24725781448637,788.3135319378581,788.37961386627205,788.44550415709364,788.51120336607175,788.5767120473439,788.64203075344039,788.70716003528912,788.77210044222056,788.83685252197188,788.90141682069191,788.96579388294572,789.02998425171893,789.09398846842271,789.15780707289798,789.22144060342032]
["Service charge",{"$f":"B58-B59","v":273.51998484633646},{"$f":"C58-C59","v":273.51998484633646},253.06744526595662,254.67684660160953,268.24123972563552,268.95094529005581,273.03928560866416,283.16710029499512,293.30042262471773,299.07670889099512,302.02740174845661,302.77770898999518,316.71246079776375,329.54258105989692,160.295496509423,159.85753067196558,160.295496509423,160.295496509423,160.295496509423,159.85753067196558,160.295496509423,160.295496509423,160.295496509423,159.85753067196558,160.295496509423,160.295496509423,160.295496509423,159.85753067196558,160.295496509423,160.295496509423,160.295496509423,159.85753067196558,160.295496509423,160.295496509423,160.295496509423,159.85753067196558,160.295496509423,160.295496509423,160.295496509423,159.85753067196558,160.295496509423,160.295496509423,160.295496509423,159.85753067196558,160.295496509423,160.295496509423,160.295496509423,159.85753067196558,160.295496509423,160.295496509423,160.295496509423,159.85753067196558,160.295496509423,160.295496509423,160.295496509423,159.85753067196558,160.295496509423,160.295496509423,160.295496509423,159.85753067196558,160.295496509423,160.295496509423,160.295496509423,159.85753067196558,160.295496509423,{"$f":"BO58-BO59","v":160.295496509423},160.295496509423,159.85753067196558,160.295496509423,160.295496509423,160.295496509423,159.85753067196558,160.295496509423,160.295496509423,160.295496509423,159.85753067196558,160.295496509423,160.295496509423,160.295496509423,160.295496509423,{"$f":"CD58-CD59","v":160.295496509423},160.295496509423,160.295496509423,160.295496509423,160.295496509423,160.295496509423,160.295496509423,160.295496509423,160.295496509423,160.295496509423,160.295496509423,160.295496509423,160.295496509423,160.295496509423,160.295496509423,160.295496509423,160.295496509423,160.295496509423,160.295496509423,160.295496509423]
[]
["Residential"]
["NPV (High income)",2021,{"$f":"B102+1","v":2022},{"$f":"C102+1","v":2023},{"$f":"D102+1","v":2024},{"$f":"E102+1","v":2025},{"$f":"F102+1","v":2026},{"$f":"G102+1","v":2027},{"$f":"H102+1","v":2028},{"$f":"I102+1","v":2029},{"$f":"J102+1","v":2030},{"$f":"K102+1","v":2031},{"$f":"L102+1","v":2032},{"$f":"M102+1","v":2033},{"$f":"N102+1","v":2034},{"$f":"O102+1","v":2035},{"$f":"P102+1","v":2036},{"$f":"Q102+1","v":2037},{"$f":"R102+1","v":2038},{"$f":"S102+1","v":2039},{"$f":"T102+1","v":2040},{"$f":"U102+1","v":2041},{"$f":"V102+1","v":2042},{"$f":"W102+1","v":2043},{"$f":"X102+1","v":2044},{"$f":"Y102+1","v":2045},{"$f":"Z102+1","v":2046},{"$f":"AA102+1","v":2047},{"$f":"AB102+1","v":2048},{"$f":"AC102+1","v":2049},{"$f":"AD102+1","v":2050},{"$f":"AE102+1","v":2051},{"$f":"AF102+1","v":2052},{"$f":"AG102+1","v":2053},{"$f":"AH102+1","v":2054},{"$f":"AI102+1","v":2055},{"$f":"AJ102+1","v":2056},{"$f":"AK102+1","v":2057},{"$f":"AL102+1","v":2058},{"$f":"AM102+1","v":2059},{"$f":"AN102+1","v":2060},{"$f":"AO102+1","v":2061},{"$f":"AP102+1","v":2062},{"$f":"AQ102+1","v":2063},{"$f":"AR102+1","v":2064},{"$f":"AS102+1","v":2065},{"$f":"AT102+1","v":2066},{"$f":"AU102+1","v":2067},{"$f":"AV102+1","v":2068},{"$f":"AW102+1","v":2069},{"$f":"AX102+1","v":2070},{"$f":"AY102+1","v":2071},{"$f":"AZ102+1","v":2072},{"$f":"BA102+1","v":2073},{"$f":"BB102+1","v":2074},{"$f":"BC102+1","v":2075},{"$f":"BD102+1","v":2076},{"$f":"BE102+1","v":2077},{"$f":"BF102+1","v":2078},{"$f":"BG102+1","v":2079},{"$f":"BH102+1","v":2080},{"$f":"BI102+1","v":2081},{"$f":"BJ102+1","v":2082},{"$f":"BK102+1","v":2083},{"$f":"BL102+1","v":2084},{"$f":"BM102+1","v":2085},{"$f":"BN102+1","v":2086},{"$f":"BO102+1","v":2087},{"$f":"BP102+1","v":2088},{"$f":"BQ102+1","v":2089},{"$f":"BR102+1","v":2090},{"$f":"BS102+1","v":2091},{"$f":"BT102+1","v":2092},{"$f":"BU102+1","v":2093},{"$f":"BV102+1","v":2094},{"$f":"BW102+1","v":2095},{"$f":"BX102+1","v":2096},{"$f":"BY102+1","v":2097},{"$f":"BZ102+1","v":2098},{"$f":"CA102+1","v":2099},{"$f":"CB102+1","v":2100},{"$f":"CC102+1","v":2101},{"$f":"CD102+1","v":2102},{"$f":"CE102+1","v":2103},{"$f":"CF102+1","v":2104},{"$f":"CG102+1","v":2105},{"$f":"CH102+1","v":2106},{"$f":"CI102+1","v":2107},{"$f":"CJ102+1","v":2108},{"$f":"CK102+1","v":2109},{"$f":"CL102+1","v":2110},{"$f":"CM102+1","v":2111},{"$f":"CN102+1","v":2112},{"$f":"CO102+1","v":2113},{"$f":"CP102+1","v":2114},{"$f":"CQ102+1","v":2115},{"$f":"CR102+1","v":2116},{"$f":"CS102+1","v":2117},{"$f":"CT102+1","v":2118},{"$f":"CU102+1","v":2119},{"$f":"CV102+1","v":2120}]
["Cooking",{"$f":"B80+B88*Control!$K$2","v":-965.48629643237291},{"$f":"C80+C88*Control!$K$2","v":-985.34033453133304},{"$f":"D80+D88*Control!$K$2","v":-997.46407793075696},{"$f":"E80+E88*Control!$K$2","v":-991.00877102305765},{"$f":"F80+F88*Control!$K$2","v":-998.52872019667564},{"$f":"G80+G88*Control!$K$2","v":-997.98168945314808},{"$f":"H80+H88*Control!$K$2","v":-987.24221277870572},{"$f":"I80+I88*Control!$K$2","v":-978.17240333049972},{"$f":"J80+J88*Control!$K$2","v":-910.55463242710971},{"$f":"K80+K88*Control!$K$2","v":-913.16950533689953},{"$f":"L80+L88*Control!$K$2","v":-913.80161522025378},{"$f":"M80+M88*Control!$K$2","v":-904.29056142875879},{"$f":"N80+N88*Control!$K$2","v":-880.01074756125877},{"$f":"O80+O88*Control!$K$2","v":-859.62018047581535},{"$f":"P80+P88*Control!$K$2","v":-834.12661712588135},{"$f":"Q80+Q88*Control!$K$2","v":-815.31516557889438},{"$f":"R80+R88*Control!$K$2","v":-792.2948249408214},{"$f":"S80+S88*Control!$K$2","v":-773.36034358483141},{"$f":"T80+T88*Control!$K$2","v":-753.89187833003621},{"$f":"U80+U88*Control!$K$2","v":-736.85897569946974},{"$f":"V80+V88*Control!$K$2","v":-722.23492034474612},{"$f":"W80+W88*Control!$K$2","v":-702.29692353606868},{"$f":"X80+X88*Control!$K$2","v":-682.35792131831533},{"$f":"Y80+Y88*Control!$K$2","v":-665.45530651399019},{"$f":"Z80+Z88*Control!$K$2","v":-648.68542871475915},{"$f":"AA80+AA88*Control!$K$2","v":-634.18336294875837},{"$f":"AB80+AB88*Control!$K$2","v":-619.99198499601005},{"$f":"AC80+AC88*Control!$K$2","v":-606.24133477979638},{"$f":"AD80+AD88*Control!$K$2","v":-592.49268163223644},{"$f":"AE80+AE88*Control!$K$2","v":-577.36795483348237},{"$f":"AF80+AF88*Control!$K$2","v":-573.57318980831678},{"$f":"AG80+AG88*Control!$K$2","v":-567.89568514157077},{"$f":"AH80+AH88*Control!$K$2","v":-563.09186779703839},{"$f":"AI80+AI88*Control!$K$2","v":-558.69729251581339},{"$f":"AJ80+AJ88*Control!$K$2","v":-554.04051668255772},{"$f":"AK80+AK88*Control!$K$2","v":-569.48699397284565},{"$f":"AL80+AL88*Control!$K$2","v":-571.98179034477027},{"$f":"AM80+AM88*Control!$K$2","v":-567.80578190860626},{"$f":"AN80+AN88*Control!$K$2","v":-562.47325450626374},{"$f":"AO80+AO88*Control!$K$2","v":-557.41913421635343},{"$f":"AP80+AP88*Control!$K$2","v":-552.10729641912246},{"$f":"AQ80+AQ88*Control!$K$2","v":-546.19531773149788},{"$f":"AR80+AR88*Control!$K$2","v":-539.53800347886727},{"$f":"AS80+AS88*Control!$K$2","v":-531.99930733945109},{"$f":"AT80+AT88*Control!$K$2","v":-523.38094472994305},{"$f":"AU80+AU88*Control!$K$2","v":-513.43633392674894},{"$f":"AV80+AV88*Control!$K$2","v":-501.94991264226746},{"$f":"AW80+AW88*Control!$K$2","v":-488.72127756231316},{"$f":"AX80+AX88*Control!$K$2","v":-473.50668465758997},{"$f":"AY80+AY88*Control!$K$2","v":-455.93358793734166},{"$f":"AZ80+AZ88*Control!$K$2","v":-435.45711984347395},{"$f":"BA80+BA88*Control!$K$2","v":-411.31545051451099},{"$f":"BB80+BB88*Control!$K$2","v":-382.48249861238787},{"$f":"BC80+BC88*Control!$K$2","v":-354.11499069316329},{"$f":"BD80+BD88*Control!$K$2","v":-328.003928263955},{"$f":"BE80+BE88*Control!$K$2","v":-301.3414892737847},{"$f":"BF80+BF88*Control!$K$2","v":-271.37091242446024},{"$f":"BG80+BG88*Control!$K$2","v":-235.66476789093275},{"$f":"BH80+BH88*Control!$K$2","v":-184.04546458984493},{"$f":"BI80+BI88*Control!$K$2","v":-107.7952142970575},{"$f":"BJ80+BJ88*Control!$K$2","v":5.6891425884074351},{"$f":"BK80+BK88*Control!$K$2","v":-627.31666807730164},{"$f":"BL80+BL88*Control!$K$2","v":-627.20488763198011},{"$f":"BM80+BM88*Control!$K$2","v":-627.09310718665859},{"$f":"BN80+BN88*Control!$K$2","v":-626.98132674133706},{"$f":"BO80+BO88*Control!$K$2","v":-626.86954629601553},{"$f":"BP80+BP88*Control!$K$2","v":-626.757765850694},{"$f":"BQ80+BQ88*Control!$K$2","v":-626.64598540537247},{"$f":"BR80+BR88*Control!$K$2","v":-626.53420496005094},{"$f":"BS80+BS88*Control!$K$2","v":-626.4224245147293},{"$f":"BT80+BT88*Control!$K$2","v":-626.31064406940789},{"$f":"BU80+BU88*Control!$K$2","v":-626.19886362408636},{"$f":"BV80+BV88*Control!$K$2","v":-626.08708317876471},{"$f":"BW80+BW88*Control!$K$2","v":-625.9753027334433},{"$f":"BX80+BX88*Control!$K$2","v":-625.86352228812166},{"$f":"BY80+BY88*Control!$K$2","v":-625.75174184280013},{"$f":"BZ80+BZ88*Control!$K$2","v":-625.63996139747871},{"$f":"CA80+CA88*Control!$K$2","v":-625.52818095215707},{"$f":"CB80+CB88*Control!$K$2","v":-625.41640050683554},{"$f":"CC80+CC88*Control!$K$2","v":-627.66175864904062},{"$f":"CD80+CD88*Control!$K$2","v":-627.66175864904062},{"$f":"CE80+CE88*Control!$K$2","v":-627.66175864904062},{"$f":"CF80+CF88*Control!$K$2","v":-627.66175864904062},{"$f":"CG80+CG88*Control!$K$2","v":-627.66175864904062},{"$f":"CH80+CH88*Control!$K$2","v":-627.66175864904062},{"$f":"CI80+CI88*Control!$K$2","v":-627.66175864904062},{"$f":"CJ80+CJ88*Control!$K$2","v":-627.66175864904062},{"$f":"CK80+CK88*Control!$K$2","v":-627.66175864904062},{"$f":"CL80+CL88*Control!$K$2","v":-627.66175864904062},{"$f":"CM80+CM88*Control!$K$2","v":-627.66175864904062},{"$f":"CN80+CN88*Control!$K$2","v":-627.66175864904062},{"$f":"CO80+CO88*Control!$K$2","v":-627.66175864904062},{"$f":"CP80+CP88*Control!$K$2","v":-627.66175864904062},{"$f":"CQ80+CQ88*Control!$K$2","v":-627.66175864904062},{"$f":"CR80+CR88*Control!$K$2","v":-627.66175864904062},{"$f":"CS80+CS88*Control!$K$2","v":-627.66175864904062},{"$f":"CT80+CT88*Control!$K$2","v":-627.66175864904062},{"$f":"CU80+CU88*Control!$K$2","v":-627.66175864904062},{"$f":"CV80+CV88*Control!$K$2","v":-627.66175864904062},{"$f":"CW80+CW88*Control!$K$2","v":-627.66175864904062}]
["Hot water",{"$f":"B81+B89*Control!$K$2","v":-3756.8018718279882},{"$f":"C81+C89*Control!$K$2","v":-4073.5517286506692},{"$f":"D81+D89*Control!$K$2","v":-3766.9819020188838},{"$f":"E81+E89*Control!$K$2","v":-3660.0683439620316},{"$f":"F81+F89*Control!$K$2","v":-3786.0436629315814},{"$f":"G81+G89*Control!$K$2","v":-3775.3465671350959},{"$f":"H81+H89*Control!$K$2","v":-3592.6722515191627},{"$f":"I81+I89*Control!$K$2","v":-4110.5336528178095},{"$f":"J81+J89*Control!$K$2","v":-3800.5719831639562},{"$f":"K81+K89*Control!$K$2","v":-3997.8801687699852},{"$f":"L81+L89*Control!$K$2","v":-4179.1844247124436},{"$f":"M81+M89*Control!$K$2","v":-4181.0739752650788},{"$f":"N81+N89*Control!$K$2","v":-3934.6820214874215},{"$f":"O81+O89*Control!$K$2","v":-3750.335690819782},{"$f":"P81+P89*Control!$K$2","v":-3479.0001426091685},{"$f":"Q81+Q89*Control!$K$2","v":-3319.5938219197578},{"$f":"R81+R89*Control!$K$2","v":-3087.7178083643994},{"$f":"S81+S89*Control!$K$2","v":-2925.6718078465419},{"$f":"T81+T89*Control!$K$2","v":-2754.1363480515402},{"$f":"U81+U89*Control!$K$2","v":-2624.0848929778858},{"$f":"V81+V89*Control!$K$2","v":-2532.0309936682324},{"$f":"W81+W89*Control!$K$2","v":-2348.0394623711391},{"$f":"X81+X89*Control!$K$2","v":-2163.3379041901881},{"$f":"Y81+Y89*Control!$K$2","v":-2030.0595549720877},{"$f":"Z81+Z89*Control!$K$2","v":-1898.3503506152524},{"$f":"AA81+AA89*Control!$K$2","v":-1802.8839245813933},{"$f":"AB81+AB89*Control!$K$2","v":-1711.9602676221994},{"$f":"AC81+AC89*Control!$K$2","v":-1627.8137341074003},{"$f":"AD81+AD89*Control!$K$2","v":-1542.935770837599},{"$f":"AE81+AE89*Control!$K$2","v":-1433.6520364423504},{"$f":"AF81+AF89*Control!$K$2","v":-1366.3701624195955},{"$f":"AG81+AG89*Control!$K$2","v":-1266.7816103593573},{"$f":"AH81+AH89*Control!$K$2","v":-1182.2049555509209},{"$f":"AI81+AI89*Control!$K$2","v":-1104.6671340211137},{"$f":"AJ81+AJ89*Control!$K$2","v":-1022.6416277350083},{"$f":"AK81+AK89*Control!$K$2","v":-1285.7353055384165},{"$f":"AL81+AL89*Control!$K$2","v":-1326.5050476769411},{"$f":"AM81+AM89*Control!$K$2","v":-1252.7724758883198},{"$f":"AN81+AN89*Control!$K$2","v":-1159.1994128462275},{"$f":"AO81+AO89*Control!$K$2","v":-1070.4186724937535},{"$f":"AP81+AP89*Control!$K$2","v":-977.22669898801087},{"$f":"AQ81+AQ89*Control!$K$2","v":-873.74514158162765},{"$f":"AR81+AR89*Control!$K$2","v":-757.48140955156077},{"$f":"AS81+AS89*Control!$K$2","v":-626.0999594241116},{"$f":"AT81+AT89*Control!$K$2","v":-476.1968247583859},{"$f":"AU81+AU89*Control!$K$2","v":-303.53893872420849},{"$f":"AV81+AV89*Control!$K$2","v":-104.42573532497499},{"$f":"AW81+AW89*Control!$K$2","v":124.5831218799085},{"$f":"AX81+AX89*Control!$K$2","v":387.67198443133157},{"$f":"AY81+AY89*Control!$K$2","v":691.23630370274032},{"$f":"AZ81+AZ89*Control!$K$2","v":1044.6297174709421},{"$f":"BA81+BA89*Control!$K$2","v":1460.9303825547422},{"$f":"BB81+BB89*Control!$K$2","v":1957.7527722915297},{"$f":"BC81+BC89*Control!$K$2","v":2446.573157343224},{"$f":"BD81+BD89*Control!$K$2","v":2896.6460878887001},{"$f":"BE81+BE89*Control!$K$2","v":3356.1725847007565},{"$f":"BF81+BF89*Control!$K$2","v":3872.4771251457478},{"$f":"BG81+BG89*Control!$K$2","v":4487.2306624872235},{"$f":"BH81+BH89*Control!$K$2","v":5375.1485844455829},{"$f":"BI81+BI89*Control!$K$2","v":6685.886329183596},{"$f":"BJ81+BJ89*Control!$K$2","v":8635.7982096950873},{"$f":"BK81+BK89*Control!$K$2","v":-2229.0490741140379},{"$f":"BL81+BL89*Control!$K$2","v":-2225.3889262992288},{"$f":"BM81+BM89*Control!$K$2","v":-2221.7399224855076},{"$f":"BN81+BN89*Control!$K$2","v":-2218.1019913512691},{"$f":"BO81+BO89*Control!$K$2","v":-2214.4750620313634},{"$f":"BP81+BP89*Control!$K$2","v":-2210.8590641141791},{"$f":"BQ81+BQ89*Control!$K$2","v":-2207.2539276387388},{"$f":"BR81+BR89*Control!$K$2","v":-2203.6595830918159},{"$f":"BS81+BS89*Control!$K$2","v":-2200.0759614050667},{"$f":"BT81+BT89*Control!$K$2","v":-2196.5029939521864},{"$f":"BU81+BU89*Control!$K$2","v":-2192.9406125460791},{"$f":"BV81+BV89*Control!$K$2","v":-2189.3887494360451},{"$f":"BW81+BW89*Control!$K$2","v":-2185.8473373049892},{"$f":"BX81+BX89*Control!$K$2","v":-2182.3163092666455},{"$f":"BY81+BY89*Control!$K$2","v":-2178.7955988628214},{"$f":"BZ81+BZ89*Control!$K$2","v":-2175.285140060656},{"$f":"CA81+CA89*Control!$K$2","v":-2171.7848672498985},{"$f":"CB81+CB89*Control!$K$2","v":-2168.2947152402035},{"$f":"CC81+CC89*Control!$K$2","v":-2205.2788316776519},{"$f":"CD81+CD89*Control!$K$2","v":-2203.7276250099367},{"$f":"CE81+CE89*Control!$K$2","v":-2202.1863460648947},{"$f":"CF81+CF89*Control!$K$2","v":-2200.6549313051014},{"$f":"CG81+CG89*Control!$K$2","v":-2199.1333175997706},{"$f":"CH81+CH89*Control!$K$2","v":-2197.6214422221537},{"$f":"CI81+CI89*Control!$K$2","v":-2196.119242846954},{"$f":"CJ81+CJ89*Control!$K$2","v":-2194.6266575477553},{"$f":"CK81+CK89*Control!$K$2","v":-2193.1436247944712},{"$f":"CL81+CL89*Control!$K$2","v":-2191.6700834508088},{"$f":"CM81+CM89*Control!$K$2","v":-2190.2059727717451},{"$f":"CN81+CN89*Control!$K$2","v":-2188.7512324010277},{"$f":"CO81+CO89*Control!$K$2","v":-2187.3058023686831},{"$f":"CP81+CP89*Control!$K$2","v":-2185.8696230885453},{"$f":"CQ81+CQ89*Control!$K$2","v":-2184.4426353558006},{"$f":"CR81+CR89*Control!$K$2","v":-2183.0247803445454},{"$f":"CS81+CS89*Control!$K$2","v":-2181.615999605362},{"$f":"CT81+CT89*Control!$K$2","v":-2180.2162350629096},{"$f":"CU81+CU89*Control!$K$2","v":-2178.8254290135287},{"$f":"CV81+CV89*Control!$K$2","v":-2177.4435241228639},{"$f":"CW81+CW89*Control!$K$2","v":-2176.0704634234994}]
["Room heating",{"$f":"B82+B90*Control!$K$2","v":-242.27035547785226},{"$f":"C82+C90*Control!$K$2","v":-325.62676061407149},{"$f":"D82+D90*Control!$K$2","v":-285.87708634783104},{"$f":"E82+E90*Control!$K$2","v":-252.76292601834064},{"$f":"F82+F90*Control!$K$2","v":-367.61229085251193},{"$f":"G82+G90*Control!$K$2","v":-612.06156660236036},{"$f":"H82+H90*Control!$K$2","v":-484.84625352204318},{"$f":"I82+I90*Control!$K$2","v":-399.71273582539288},{"$f":"J82+J90*Control!$K$2","v":-139.49393736828472},{"$f":"K82+K90*Control!$K$2","v":-199.4778512059346},{"$f":"L82+L90*Control!$K$2","v":-434.55008208398147},{"$f":"M82+M90*Control!$K$2","v":-455.84243928317346},{"$f":"N82+N90*Control!$K$2","v":-304.8569925576885},{"$f":"O82+O90*Control!$K$2","v":-172.75485933014022},{"$f":"P82+P90*Control!$K$2","v":26.837893371210043},{"$f":"Q82+Q90*Control!$K$2","v":141.17590078683736},{"$f":"R82+R90*Control!$K$2","v":317.79874585419043},{"$f":"S82+S90*Control!$K$2","v":423.91678807289668},{"$f":"T82+T90*Control!$K$2","v":534.25857050423451},{"$f":"U82+U90*Control!$K$2","v":600.98264134161991},{"$f":"V82+V90*Control!$K$2","v":657.93993463294055},{"$f":"W82+W90*Control!$K$2","v":800.7017961171457},{"$f":"X82+X90*Control!$K$2","v":943.32259570913152},{"$f":"Y82+Y90*Control!$K$2","v":1036.9194771404377},{"$f":"Z82+Z90*Control!$K$2","v":1128.4788254958751},{"$f":"AA82+AA90*Control!$K$2","v":1205.3952173038103},{"$f":"AB82+AB90*Control!$K$2","v":1278.3740299563749},{"$f":"AC82+AC90*Control!$K$2","v":1345.3325993785504},{"$f":"AD82+AD90*Control!$K$2","v":1413.1354752829529},{"$f":"AE82+AE90*Control!$K$2","v":1504.2519738529695},{"$f":"AF82+AF90*Control!$K$2","v":1565.4916301211592},{"$f":"AG82+AG90*Control!$K$2","v":1657.114808881061},{"$f":"AH82+AH90*Control!$K$2","v":1734.6384818893753},{"$f":"AI82+AI90*Control!$K$2","v":1805.5578347036276},{"$f":"AJ82+AJ90*Control!$K$2","v":1880.7085619437535},{"$f":"AK82+AK90*Control!$K$2","v":1631.4343767073829},{"$f":"AL82+AL90*Control!$K$2","v":1591.1735249121857},{"$f":"AM82+AM90*Control!$K$2","v":1658.5656610544174},{"$f":"AN82+AN90*Control!$K$2","v":1744.6216205129108},{"$f":"AO82+AO90*Control!$K$2","v":1826.184665191463},{"$f":"AP82+AP90*Control!$K$2","v":1911.9067372295372},{"$f":"AQ82+AQ90*Control!$K$2","v":2007.313841567754},{"$f":"AR82+AR90*Control!$K$2","v":2114.7491198515854},{"$f":"AS82+AS90*Control!$K$2","v":2236.4080782394058},{"$f":"AT82+AT90*Control!$K$2","v":2375.4906196618099},{"$f":"AU82+AU90*Control!$K$2","v":2535.9760629685306},{"$f":"AV82+AV90*Control!$K$2","v":2721.3431374905063},{"$f":"AW82+AW90*Control!$K$2","v":2934.8259380911481},{"$f":"AX82+AX90*Control!$K$2","v":3180.3579891053009},{"$f":"AY82+AY90*Control!$K$2","v":3463.9514120389649},{"$f":"AZ82+AZ90*Control!$K$2","v":3794.3992419675878},{"$f":"BA82+BA90*Control!$K$2","v":4183.9958366556803},{"$f":"BB82+BB90*Control!$K$2","v":4649.3000259727014},{"$f":"BC82+BC90*Control!$K$2","v":5107.092912393291},{"$f":"BD82+BD90*Control!$K$2","v":5528.4714371129285},{"$f":"BE82+BE90*Control!$K$2","v":5958.7480387474016},{"$f":"BF82+BF90*Control!$K$2","v":6442.4111410054657},{"$f":"BG82+BG90*Control!$K$2","v":7018.6344389948054},{"$f":"BH82+BH90*Control!$K$2","v":7851.6631957158097},{"$f":"BI82+BI90*Control!$K$2","v":9082.1844763028603},{"$f":"BJ82+BJ90*Control!$K$2","v":10913.587201213126},{"$f":"BK82+BK90*Control!$K$2","v":698.18308426305862},{"$f":"BL82+BL90*Control!$K$2","v":699.98698938066104},{"$f":"BM82+BM90*Control!$K$2","v":701.79089449826392},{"$f":"BN82+BN90*Control!$K$2","v":703.59479961586635},{"$f":"BO82+BO90*Control!$K$2","v":705.39870473346923},{"$f":"BP82+BP90*Control!$K$2","v":707.20260985107166},{"$f":"BQ82+BQ90*Control!$K$2","v":709.00651496867454},{"$f":"BR82+BR90*Control!$K$2","v":710.81042008627696},{"$f":"BS82+BS90*Control!$K$2","v":712.61432520387939},{"$f":"BT82+BT90*Control!$K$2","v":714.41823032148227},{"$f":"BU82+BU90*Control!$K$2","v":716.2221354390847},{"$f":"BV82+BV90*Control!$K$2","v":718.02604055668758},{"$f":"BW82+BW90*Control!$K$2","v":719.82994567429},{"$f":"BX82+BX90*Control!$K$2","v":721.63385079189311},{"$f":"BY82+BY90*Control!$K$2","v":723.43775590949531},{"$f":"BZ82+BZ90*Control!$K$2","v":725.24166102709842},{"$f":"CA82+CA90*Control!$K$2","v":727.04556614470084},{"$f":"CB82+CB90*Control!$K$2","v":728.84947126230327},{"$f":"CC82+CC90*Control!$K$2","v":692.61403641568336},{"$f":"CD82+CD90*Control!$K$2","v":692.61403641568336},{"$f":"CE82+CE90*Control!$K$2","v":692.61403641568336},{"$f":"CF82+CF90*Control!$K$2","v":692.61403641568336},{"$f":"CG82+CG90*Control!$K$2","v":692.61403641568336},{"$f":"CH82+CH90*Control!$K$2","v":692.61403641568336},{"$f":"CI82+CI90*Control!$K$2","v":692.61403641568336},{"$f":"CJ82+CJ90*Control!$K$2","v":692.61403641568336},{"$f":"CK82+CK90*Control!$K$2","v":692.61403641568336},{"$f":"CL82+CL90*Control!$K$2","v":692.61403641568336},{"$f":"CM82+CM90*Control!$K$2","v":692.61403641568336},{"$f":"CN82+CN90*Control!$K$2","v":692.61403641568336},{"$f":"CO82+CO90*Control!$K$2","v":692.61403641568336},{"$f":"CP82+CP90*Control!$K$2","v":692.61403641568336},{"$f":"CQ82+CQ90*Control!$K$2","v":692.61403641568336},{"$f":"CR82+CR90*Control!$K$2","v":692.61403641568336},{"$f":"CS82+CS90*Control!$K$2","v":692.61403641568336},{"$f":"CT82+CT90*Control!$K$2","v":692.61403641568336},{"$f":"CU82+CU90*Control!$K$2","v":692.61403641568336},{"$f":"CV82+CV90*Control!$K$2","v":692.61403641568336},{"$f":"CW82+CW90*Control!$K$2","v":692.61403641568336}]
["Ducted heating",{"$f":"B83+B91*Control!$K$2","v":-304.50596578754198},{"$f":"C83+C91*Control!$K$2","v":-740.62259485033314},{"$f":"D83+D91*Control!$K$2","v":-106.30851319800843},{"$f":"E83+E91*Control!$K$2","v":54.227731302896132},{"$f":"F83+F91*Control!$K$2","v":-1695.6386596813893},{"$f":"G83+G91*Control!$K$2","v":-1702.6818439898766},{"$f":"H83+H91*Control!$K$2","v":-1223.7982915923785},{"$f":"I83+I91*Control!$K$2","v":-1012.1841387989764},{"$f":"J83+J91*Control!$K$2","v":-220.00770586927774},{"$f":"K83+K91*Control!$K$2","v":-544.55454819039687},{"$f":"L83+L91*Control!$K$2","v":-1364.8142647185978},{"$f":"M83+M91*Control!$K$2","v":-1457.2638721872379},{"$f":"N83+N91*Control!$K$2","v":-899.46974896271536},{"$f":"O83+O91*Control!$K$2","v":-434.17586973675884},{"$f":"P83+P91*Control!$K$2","v":279.63294135286856},{"$f":"Q83+Q91*Control!$K$2","v":678.60129767900844},{"$f":"R83+R91*Control!$K$2","v":1302.1286319231135},{"$f":"S83+S91*Control!$K$2","v":1679.2755057763607},{"$f":"T83+T91*Control!$K$2","v":2074.5986339861906},{"$f":"U83+U91*Control!$K$2","v":2318.6082360337232},{"$f":"V83+V91*Control!$K$2","v":2511.2149157796089},{"$f":"W83+W91*Control!$K$2","v":3008.2659879564781},{"$f":"X83+X91*Control!$K$2","v":3505.4907919752795},{"$f":"Y83+Y91*Control!$K$2","v":3829.6793247746373},{"$f":"Z83+Z91*Control!$K$2","v":4147.1626211709954},{"$f":"AA83+AA91*Control!$K$2","v":4400.23359039149},{"$f":"AB83+AB91*Control!$K$2","v":4639.2834666786684},{"$f":"AC83+AC91*Control!$K$2","v":4856.9237944157367},{"$f":"AD83+AD91*Control!$K$2","v":5077.5925896189774},{"$f":"AE83+AE91*Control!$K$2","v":5380.7283299460778},{"$f":"AF83+AF91*Control!$K$2","v":5598.3430470455633},{"$f":"AG83+AG91*Control!$K$2","v":5923.5639725931906},{"$f":"AH83+AH91*Control!$K$2","v":6198.847054318373},{"$f":"AI83+AI91*Control!$K$2","v":6450.7377471441059},{"$f":"AJ83+AJ91*Control!$K$2","v":6717.6124755718074},{"$f":"AK83+AK91*Control!$K$2","v":5835.4802295271747},{"$f":"AL83+AL91*Control!$K$2","v":5693.6014693226962},{"$f":"AM83+AM91*Control!$K$2","v":5932.9916439692215},{"$f":"AN83+AN91*Control!$K$2","v":6238.4808014193277},{"$f":"AO83+AO91*Control!$K$2","v":6528.0555002174769},{"$f":"AP83+AP91*Control!$K$2","v":6832.3580413921327},{"$f":"AQ83+AQ91*Control!$K$2","v":7170.9596983752808},{"$f":"AR83+AR91*Control!$K$2","v":7552.1591037447097},{"$f":"AS83+AS91*Control!$K$2","v":7983.7320143775605},{"$f":"AT83+AT91*Control!$K$2","v":8477.0114257021705},{"$f":"AU83+AU91*Control!$K$2","v":9046.0907645100815},{"$f":"AV83+AV91*Control!$K$2","v":9703.2905363634491},{"$f":"AW83+AW91*Control!$K$2","v":10460.064833068282},{"$f":"AX83+AX91*Control!$K$2","v":11330.344892458361},{"$f":"AY83+AY91*Control!$K$2","v":12335.4236506651},{"$f":"AZ83+AZ91*Control!$K$2","v":13506.443112694902},{"$f":"BA83+BA91*Control!$K$2","v":14886.945801394497},{"$f":"BB83+BB91*Control!$K$2","v":16535.577578298922},{"$f":"BC83+BC91*Control!$K$2","v":18157.604853736579},{"$f":"BD83+BD91*Control!$K$2","v":19650.662633488872},{"$f":"BE83+BE91*Control!$K$2","v":21175.232476684228},{"$f":"BF83+BF91*Control!$K$2","v":22888.877556305499},{"$f":"BG83+BG91*Control!$K$2","v":24930.338048190242},{"$f":"BH83+BH91*Control!$K$2","v":27881.315931112931},{"$f":"BI83+BI91*Control!$K$2","v":32240.077899722877},{"$f":"BJ83+BJ91*Control!$K$2","v":38726.95971958794},{"$f":"BK83+BK91*Control!$K$2","v":2548.0653827404803},{"$f":"BL83+BL91*Control!$K$2","v":2555.1142045083675},{"$f":"BM83+BM91*Control!$K$2","v":2562.1611123019375},{"$f":"BN83+BN91*Control!$K$2","v":2569.2061116717205},{"$f":"BO83+BO91*Control!$K$2","v":2576.2492081521436},{"$f":"BP83+BP91*Control!$K$2","v":2583.2904072615847},{"$f":"BQ83+BQ91*Control!$K$2","v":2590.3297145024217},{"$f":"BR83+BR91*Control!$K$2","v":2597.3671353610712},{"$f":"BS83+BS91*Control!$K$2","v":2604.4026753080407},{"$f":"BT83+BT91*Control!$K$2","v":2611.4363397979787},{"$f":"BU83+BU91*Control!$K$2","v":2618.4681342697077},{"$f":"BV83+BV91*Control!$K$2","v":2625.4980641462803},{"$f":"BW83+BW91*Control!$K$2","v":2632.5261348350232},{"$f":"BX83+BX91*Control!$K$2","v":2639.5523517275806},{"$f":"BY83+BY91*Control!$K$2","v":2646.5767201999597},{"$f":"BZ83+BZ91*Control!$K$2","v":2653.5992456125828},{"$f":"CA83+CA91*Control!$K$2","v":2660.6199333103218},{"$f":"CB83+CB91*Control!$K$2","v":2667.6387886225489},{"$f":"CC83+CC91*Control!$K$2","v":2539.9331544898942},{"$f":"CD83+CD91*Control!$K$2","v":2540.559530332599},{"$f":"CE83+CE91*Control!$K$2","v":2541.1840896853605},{"$f":"CF83+CF91*Control!$K$2","v":2541.8068378159987},{"$f":"CG83+CG91*Control!$K$2","v":2542.4277799770584},{"$f":"CH83+CH91*Control!$K$2","v":2543.0469214058503},{"$f":"CI83+CI91*Control!$K$2","v":2543.6642673244996},{"$f":"CJ83+CJ91*Control!$K$2","v":2544.2798229399846},{"$f":"CK83+CK91*Control!$K$2","v":2544.8935934441843},{"$f":"CL83+CL91*Control!$K$2","v":2545.5055840139221},{"$f":"CM83+CM91*Control!$K$2","v":2546.1157998110075},{"$f":"CN83+CN91*Control!$K$2","v":2546.7242459822814},{"$f":"CO83+CO91*Control!$K$2","v":2547.3309276596583},{"$f":"CP83+CP91*Control!$K$2","v":2547.9358499601713},{"$f":"CQ83+CQ91*Control!$K$2","v":2548.5390179860124},{"$f":"CR83+CR91*Control!$K$2","v":2549.1404368245794},{"$f":"CS83+CS91*Control!$K$2","v":2549.7401115485141},{"$f":"CT83+CT91*Control!$K$2","v":2550.3380472157492},{"$f":"CU83+CU91*Control!$K$2","v":2550.9342488695488},{"$f":"CV83+CV91*Control!$K$2","v":2551.5287215385529},{"$f":"CW83+CW91*Control!$K$2","v":2552.121470236817}]
["Service charge",{"$f":"B92*Control!$K$2","v":2111.7637504240688},{"$f":"C92*Control!$K$2","v":2111.7637504240688},{"$f":"D92*Control!$K$2","v":1981.4435051969901},{"$f":"E92*Control!$K$2","v":1948.2640336429861},{"$f":"F92*Control!$K$2","v":1975.360307240843},{"$f":"G92*Control!$K$2","v":1969.4200027313739},{"$f":"H92*Control!$K$2","v":1976.3248166424869},{"$f":"I92*Control!$K$2","v":1986.7296644709406},{"$f":"J92*Control!$K$2","v":1997.5904040222135},{"$f":"K92*Control!$K$2","v":1977.8150228675149},{"$f":"L92*Control!$K$2","v":1948.8173787279543},{"$f":"M92*Control!$K$2","v":1924.3705798939084},{"$f":"N92*Control!$K$2","v":1946.1769906914928},{"$f":"O92*Control!$K$2","v":1956.3799351460157},{"$f":"P92*Control!$K$2","v":1981.1551250562165},{"$f":"Q92*Control!$K$2","v":1985.5213199338657},{"$f":"R92*Control!$K$2","v":2032.8420413599172},{"$f":"S92*Control!$K$2","v":1987.5453289945835},{"$f":"T92*Control!$K$2","v":1976.8883611298684},{"$f":"U92*Control!$K$2","v":1969.3012026372858},{"$f":"V92*Control!$K$2","v":1966.7367414732332},{"$f":"W92*Control!$K$2","v":1966.1017960991389},{"$f":"X92*Control!$K$2","v":1971.2280606393904},{"$f":"Y92*Control!$K$2","v":1969.4400036365523},{"$f":"Z92*Control!$K$2","v":1974.0705979711556},{"$f":"AA92*Control!$K$2","v":1983.9088361351},{"$f":"AB92*Control!$K$2","v":1997.217524610764},{"$f":"AC92*Control!$K$2","v":2008.4268877725272},{"$f":"AD92*Control!$K$2","v":2030.4712854011734},{"$f":"AE92*Control!$K$2","v":2052.4893396312928},{"$f":"AF92*Control!$K$2","v":2081.7745378520008},{"$f":"AG92*Control!$K$2","v":2104.6809738578759},{"$f":"AH92*Control!$K$2","v":2142.1986449334395},{"$f":"AI92*Control!$K$2","v":2172.4403484775089},{"$f":"AJ92*Control!$K$2","v":2205.2096295800093},{"$f":"AK92*Control!$K$2","v":2042.2998495278603},{"$f":"AL92*Control!$K$2","v":2045.8820495400698},{"$f":"AM92*Control!$K$2","v":2090.0470597311132},{"$f":"AN92*Control!$K$2","v":2131.8232152546025},{"$f":"AO92*Control!$K$2","v":2162.9905217626647},{"$f":"AP92*Control!$K$2","v":2204.1006774786565},{"$f":"AQ92*Control!$K$2","v":2244.9675855193832},{"$f":"AR92*Control!$K$2","v":2289.8085747974333},{"$f":"AS92*Control!$K$2","v":2335.0411520451148},{"$f":"AT92*Control!$K$2","v":2393.5947264330989},{"$f":"AU92*Control!$K$2","v":2454.2737994853537},{"$f":"AV92*Control!$K$2","v":2521.2084572710023},{"$f":"AW92*Control!$K$2","v":2590.0442689802981},{"$f":"AX92*Control!$K$2","v":2672.6304818545245},{"$f":"AY92*Control!$K$2","v":2757.1876041761016},{"$f":"AZ92*Control!$K$2","v":2848.4158966678674},{"$f":"BA92*Control!$K$2","v":2943.0548928744261},{"$f":"BB92*Control!$K$2","v":3053.883964529115},{"$f":"BC92*Control!$K$2","v":3129.5970549473245},{"$f":"BD92*Control!$K$2","v":3188.3160668683672},{"$f":"BE92*Control!$K$2","v":3251.5059076115667},{"$f":"BF92*Control!$K$2","v":3334.8856904119998},{"$f":"BG92*Control!$K$2","v":3426.9836134201923},{"$f":"BH92*Control!$K$2","v":3568.0950139407091},{"$f":"BI92*Control!$K$2","v":3739.0820944455872},{"$f":"BJ92*Control!$K$2","v":3938.671958379718},{"$f":"BK92*Control!$K$2","v":1472.1280971830386},{"$f":"BL92*Control!$K$2","v":1472.1280971830386},{"$f":"BM92*Control!$K$2","v":1468.1058892672379},{"$f":"BN92*Control!$K$2","v":1472.1280971830386},{"$f":"BO92*Control!$K$2","v":1472.1280971830386},{"$f":"BP92*Control!$K$2","v":1472.1280971830386},{"$f":"BQ92*Control!$K$2","v":1468.1058892672379},{"$f":"BR92*Control!$K$2","v":1472.1280971830386},{"$f":"BS92*Control!$K$2","v":1472.1280971830386},{"$f":"BT92*Control!$K$2","v":1472.1280971830386},{"$f":"BU92*Control!$K$2","v":1468.1058892672379},{"$f":"BV92*Control!$K$2","v":1472.1280971830386},{"$f":"BW92*Control!$K$2","v":1472.1280971830386},{"$f":"BX92*Control!$K$2","v":1472.1280971830386},{"$f":"BY92*Control!$K$2","v":1468.1058892672379},{"$f":"BZ92*Control!$K$2","v":1472.1280971830386},{"$f":"CA92*Control!$K$2","v":1472.1280971830386},{"$f":"CB92*Control!$K$2","v":1472.1280971830386},{"$f":"CC92*Control!$K$2","v":1472.1280971830386},{"$f":"CD92*Control!$K$2","v":1472.1280971830386},{"$f":"CE92*Control!$K$2","v":1472.1280971830386},{"$f":"CF92*Control!$K$2","v":1472.1280971830386},{"$f":"CG92*Control!$K$2","v":1472.1280971830386},{"$f":"CH92*Control!$K$2","v":1472.1280971830386},{"$f":"CI92*Control!$K$2","v":1472.1280971830386},{"$f":"CJ92*Control!$K$2","v":1472.1280971830386},{"$f":"CK92*Control!$K$2","v":1472.1280971830386},{"$f":"CL92*Control!$K$2","v":1472.1280971830386},{"$f":"CM92*Control!$K$2","v":1472.1280971830386},{"$f":"CN92*Control!$K$2","v":1472.1280971830386},{"$f":"CO92*Control!$K$2","v":1472.1280971830386},{"$f":"CP92*Control!$K$2","v":1472.1280971830386},{"$f":"CQ92*Control!$K$2","v":1472.1280971830386},{"$f":"CR92*Control!$K$2","v":1472.1280971830386},{"$f":"CS92*Control!$K$2","v":1472.1280971830386},{"$f":"CT92*Control!$K$2","v":1472.1280971830386},{"$f":"CU92*Control!$K$2","v":1472.1280971830386},{"$f":"CV92*Control!$K$2","v":1472.1280971830386},{"$f":"CW92*Control!$K$2","v":1472.1280971830386}]
[]
["NPV (Mid income)",2021,{"$f":"B109+1","v":2022},{"$f":"C109+1","v":2023},{"$f":"D109+1","v":2024},{"$f":"E109+1","v":2025},{"$f":"F109+1","v":2026},{"$f":"G109+1","v":2027},{"$f":"H109+1","v":2028},{"$f":"I109+1","v":2029},{"$f":"J109+1","v":2030},{"$f":"K109+1","v":2031},{"$f":"L109+1","v":2032},{"$f":"M109+1","v":2033},{"$f":"N109+1","v":2034},{"$f":"O109+1","v":2035},{"$f":"P109+1","v":2036},{"$f":"Q109+1","v":2037},{"$f":"R109+1","v":2038},{"$f":"S109+1","v":2039},{"$f":"T109+1","v":2040},{"$f":"U109+1","v":2041},{"$f":"V109+1","v":2042},{"$f":"W109+1","v":2043},{"$f":"X109+1","v":2044},{"$f":"Y109+1","v":2045},{"$f":"Z109+1","v":2046},{"$f":"AA109+1","v":2047},{"$f":"AB109+1","v":2048},{"$f":"AC109+1","v":2049},{"$f":"AD109+1","v":2050},{"$f":"AE109+1","v":2051},{"$f":"AF109+1","v":2052},{"$f":"AG109+1","v":2053},{"$f":"AH109+1","v":2054},{"$f":"AI109+1","v":2055},{"$f":"AJ109+1","v":2056},{"$f":"AK109+1","v":2057},{"$f":"AL109+1","v":2058},{"$f":"AM109+1","v":2059},{"$f":"AN109+1","v":2060},{"$f":"AO109+1","v":2061},{"$f":"AP109+1","v":2062},{"$f":"AQ109+1","v":2063},{"$f":"AR109+1","v":2064},{"$f":"AS109+1","v":2065},{"$f":"AT109+1","v":2066},{"$f":"AU109+1","v":2067},{"$f":"AV109+1","v":2068},{"$f":"AW109+1","v":2069},{"$f":"AX109+1","v":2070},{"$f":"AY109+1","v":2071},{"$f":"AZ109+1","v":2072},{"$f":"BA109+1","v":2073},{"$f":"BB109+1","v":2074},{"$f":"BC109+1","v":2075},{"$f":"BD109+1","v":2076},{"$f":"BE109+1","v":2077},{"$f":"BF109+1","v":2078},{"$f":"BG109+1","v":2079},{"$f":"BH109+1","v":2080},{"$f":"BI109+1","v":2081},{"$f":"BJ109+1","v":2082},{"$f":"BK109+1","v":2083},{"$f":"BL109+1","v":2084},{"$f":"BM109+1","v":2085},{"$f":"BN109+1","v":2086},{"$f":"BO109+1","v":2087},{"$f":"BP109+1","v":2088},{"$f":"BQ109+1","v":2089},{"$f":"BR109+1","v":2090},{"$f":"BS109+1","v":2091},{"$f":"BT109+1","v":2092},{"$f":"BU109+1","v":2093},{"$f":"BV109+1","v":2094},{"$f":"BW109+1","v":2095},{"$f":"BX109+1","v":2096},{"$f":"BY109+1","v":2097},{"$f":"BZ109+1","v":2098},{"$f":"CA109+1","v":2099},{"$f":"CB109+1","v":2100},{"$f":"CC109+1","v":2101},{"$f":"CD109+1","v":2102},{"$f":"CE109+1","v":2103},{"$f":"CF109+1","v":2104},{"$f":"CG109+1","v":2105},{"$f":"CH109+1","v":2106},{"$f":"CI109+1","v":2107},{"$f":"CJ109+1","v":2108},{"$f":"CK109+1","v":2109},{"$f":"CL109+1","v":2110},{"$f":"CM109+1","v":2111},{"$f":"CN109+1","v":2112},{"$f":"CO109+1","v":2113},{"$f":"CP109+1","v":2114},{"$f":"CQ109+1","v":2115},{"$f":"CR109+1","v":2116},{"$f":"CS109+1","v":2117},{"$f":"CT109+1","v":2118},{"$f":"CU109+1","v":2119},{"$f":"CV109+1","v":2120}]
["Cooking",{"$f":"B80+B88*Control!$K$3","v":-954.48015126935377},{"$f":"C80+C88*Control!$K$3","v":-970.96881231518842},{"$f":"D80+D88*Control!$K$3","v":-981.03750939954875},{"$f":"E80+E88*Control!$K$3","v":-975.67641524744954},{"$f":"F80+F88*Control!$K$3","v":-981.92168849552434},{"$f":"G80+G88*Control!$K$3","v":-981.46738270308458},{"$f":"H80+H88*Control!$K$3","v":-972.54831093481778},{"$f":"I80+I88*Control!$K$3","v":-963.07787018894453},{"$f":"J80+J88*Control!$K$3","v":-897.37600930213785},{"$f":"K80+K88*Control!$K$3","v":-897.66704664812869},{"$f":"L80+L88*Control!$K$3","v":-896.32081404014707},{"$f":"M80+M88*Control!$K$3","v":-886.56010005871315},{"$f":"N80+N88*Control!$K$3","v":-864.54332751014397},{"$f":"O80+O88*Control!$K$3","v":-845.76581403279101},{"$f":"P80+P88*Control!$K$3","v":-822.75950872422629},{"$f":"Q80+Q88*Control!$K$3","v":-805.31182794962319},{"$f":"R80+R88*Control!$K$3","v":-784.37781412252332},{"$f":"S80+S88*Control!$K$3","v":-766.84616101505537},{"$f":"T80+T88*Control!$K$3","v":-748.88007083486389},{"$f":"U80+U88*Control!$K$3","v":-732.94568921375958},{"$f":"V80+V88*Control!$K$3","v":-719.02078427201559},{"$f":"W80+W88*Control!$K$3","v":-700.69158099514618},{"$f":"X80+X88*Control!$K$3","v":-682.37039680709381},{"$f":"Y80+Y88*Control!$K$3","v":-666.57972418611268},{"$f":"Z80+Z88*Control!$K$3","v":-650.90805461736215},{"$f":"AA80+AA88*Control!$K$3","v":-637.12851143689375},{"$f":"AB80+AB88*Control!$K$3","v":-623.61567096241674},{"$f":"AC80+AC88*Control!$K$3","v":-610.47748718840478},{"$f":"AD80+AD88*Control!$K$3","v":-597.34955371915339},{"$f":"AE80+AE88*Control!$K$3","v":-583.08734802537845},{"$f":"AF80+AF88*Control!$K$3","v":-579.93581814834954},{"$f":"AG80+AG88*Control!$K$3","v":-575.22068415044396},{"$f":"AH80+AH88*Control!$K$3","v":-571.23114229879184},{"$f":"AI80+AI88*Control!$K$3","v":-567.58147355677818},{"$f":"AJ80+AJ88*Control!$K$3","v":-563.71404880931539},{"$f":"AK80+AK88*Control!$K$3","v":-576.54225670950484},{"$f":"AL80+AL88*Control!$K$3","v":-578.61417031972383},{"$f":"AM80+AM88*Control!$K$3","v":-575.14602004796325},{"$f":"AN80+AN88*Control!$K$3","v":-570.71738762484642},{"$f":"AO80+AO88*Control!$K$3","v":-566.51997065960086},{"$f":"AP80+AP88*Control!$K$3","v":-562.10852083098473},{"$f":"AQ80+AQ88*Control!$K$3","v":-557.19865754752777},{"$f":"AR80+AR88*Control!$K$3","v":-551.66979749195139},{"$f":"AS80+AS88*Control!$K$3","v":-545.40895499981946},{"$f":"AT80+AT88*Control!$K$3","v":-538.25145589913438},{"$f":"AU80+AU88*Control!$K$3","v":-529.99251552895328},{"$f":"AV80+AV88*Control!$K$3","v":-520.45311068619753},{"$f":"AW80+AW88*Control!$K$3","v":-509.46680760542375},{"$f":"AX80+AX88*Control!$K$3","v":-496.83117831399602},{"$f":"AY80+AY88*Control!$K$3","v":-482.23682557317892},{"$f":"AZ80+AZ88*Control!$K$3","v":-465.2312401032226},{"$f":"BA80+BA88*Control!$K$3","v":-445.18172671648517},{"$f":"BB80+BB88*Control!$K$3","v":-421.23613093917754},{"$f":"BC80+BC88*Control!$K$3","v":-397.6770836328451},{"$f":"BD80+BD88*Control!$K$3","v":-375.99200094105777},{"$f":"BE80+BE88*Control!$K$3","v":-353.84900328119159},{"$f":"BF80+BF88*Control!$K$3","v":-328.95861672337912},{"$f":"BG80+BG88*Control!$K$3","v":-299.30487517556992},{"$f":"BH80+BH88*Control!$K$3","v":-256.43534952484816},{"$f":"BI80+BI88*Control!$K$3","v":-193.10996828647495},{"$f":"BJ80+BJ88*Control!$K$3","v":-98.861882060278731},{"$f":"BK80+BK88*Control!$K$3","v":-624.56945852843387},{"$f":"BL80+BL88*Control!$K$3","v":-624.47662553066925},{"$f":"BM80+BM88*Control!$K$3","v":-624.38379253290464},{"$f":"BN80+BN88*Control!$K$3","v":-624.29095953514002},{"$f":"BO80+BO88*Control!$K$3","v":-624.1981265373754},{"$f":"BP80+BP88*Control!$K$3","v":-624.10529353961078},{"$f":"BQ80+BQ88*Control!$K$3","v":-624.01246054184617},{"$f":"BR80+BR88*Control!$K$3","v":-623.91962754408155},{"$f":"BS80+BS88*Control!$K$3","v":-623.82679454631693},{"$f":"BT80+BT88*Control!$K$3","v":-623.73396154855232},{"$f":"BU80+BU88*Control!$K$3","v":-623.6411285507877},{"$f":"BV80+BV88*Control!$K$3","v":-623.54829555302308},{"$f":"BW80+BW88*Control!$K$3","v":-623.45546255525858},{"$f":"BX80+BX88*Control!$K$3","v":-623.36262955749396},{"$f":"BY80+BY88*Control!$K$3","v":-623.26979655972934},{"$f":"BZ80+BZ88*Control!$K$3","v":-623.17696356196473},{"$f":"CA80+CA88*Control!$K$3","v":-623.08413056420011},{"$f":"CB80+CB88*Control!$K$3","v":-622.99129756643549},{"$f":"CC80+CC88*Control!$K$3","v":-624.85605420429363},{"$f":"CD80+CD88*Control!$K$3","v":-624.85605420429363},{"$f":"CE80+CE88*Control!$K$3","v":-624.85605420429363},{"$f":"CF80+CF88*Control!$K$3","v":-624.85605420429363},{"$f":"CG80+CG88*Control!$K$3","v":-624.85605420429363},{"$f":"CH80+CH88*Control!$K$3","v":-624.85605420429363},{"$f":"CI80+CI88*Control!$K$3","v":-624.85605420429363},{"$f":"CJ80+CJ88*Control!$K$3","v":-624.85605420429363},{"$f":"CK80+CK88*Control!$K$3","v":-624.85605420429363},{"$f":"CL80+CL88*Control!$K$3","v":-624.85605420429363},{"$f":"CM80+CM88*Control!$K$3","v":-624.85605420429363},{"$f":"CN80+CN88*Control!$K$3","v":-624.85605420429363},{"$f":"CO80+CO88*Control!$K$3","v":-624.85605420429363},{"$f":"CP80+CP88*Control!$K$3","v":-624.85605420429363},{"$f":"CQ80+CQ88*Control!$K$3","v":-624.85605420429363},{"$f":"CR80+CR88*Control!$K$3","v":-624.85605420429363},{"$f":"CS80+CS88*Control!$K$3","v":-624.85605420429363},{"$f":"CT80+CT88*Control!$K$3","v":-624.85605420429363},{"$f":"CU80+CU88*Control!$K$3","v":-624.85605420429363},{"$f":"CV80+CV88*Control!$K$3","v":-624.85605420429363},{"$f":"CW80+CW88*Control!$K$3","v":-624.85605420429363}]
["Hot water",{"$f":"B81+B89*Control!$K$3","v":-3525.497538822523},{"$f":"C81+C89*Control!$K$3","v":-3788.556418806209},{"$f":"D81+D89*Control!$K$3","v":-3447.0714598240202},{"$f":"E81+E89*Control!$K$3","v":-3358.2803831061842},{"$f":"F81+F89*Control!$K$3","v":-3462.9021393593175},{"$f":"G81+G89*Control!$K$3","v":-3454.018264659172},{"$f":"H81+H89*Control!$K$3","v":-3302.3083275190429},{"$f":"I81+I89*Control!$K$3","v":-3815.3522175629887},{"$f":"J81+J89*Control!$K$3","v":-3538.6353945770661},{"$f":"K81+K89*Control!$K$3","v":-3698.6972686596328},{"$f":"L81+L89*Control!$K$3","v":-3845.4869809748266},{"$f":"M81+M89*Control!$K$3","v":-3843.2927551279281},{"$f":"N81+N89*Control!$K$3","v":-3634.9210279365661},{"$f":"O81+O89*Control!$K$3","v":-3478.0965465869967},{"$f":"P81+P89*Control!$K$3","v":-3249.0466650326753},{"$f":"Q81+Q89*Control!$K$3","v":-3112.9718805579741},{"$f":"R81+R89*Control!$K$3","v":-2916.7298892921945},{"$f":"S81+S89*Control!$K$3","v":-2778.4996619283429},{"$f":"T81+T89*Control!$K$3","v":-2632.4067547594905},{"$f":"U81+U89*Control!$K$3","v":-2520.7842364212629},{"$f":"V81+V89*Control!$K$3","v":-2440.7365408617056},{"$f":"W81+W89*Control!$K$3","v":-2284.3531738697238},{"$f":"X81+X89*Control!$K$3","v":-2127.3980312063363},{"$f":"Y81+Y89*Control!$K$3","v":-2013.1673669701315},{"$f":"Z81+Z89*Control!$K$3","v":-1900.2575871702593},{"$f":"AA81+AA89*Control!$K$3","v":-1817.4648504303261},{"$f":"AB81+AB89*Control!$K$3","v":-1738.4623986769373},{"$f":"AC81+AC89*Control!$K$3","v":-1665.105762269201},{"$f":"AD81+AD89*Control!$K$3","v":-1591.1590449758055},{"$f":"AE81+AE89*Control!$K$3","v":-1496.9607596756132},{"$f":"AF81+AF89*Control!$K$3","v":-1441.0835618098617},{"$f":"AG81+AG89*Control!$K$3","v":-1358.3758591862454},{"$f":"AH81+AH89*Control!$K$3","v":-1288.1354483148712},{"$f":"AI81+AI89*Control!$K$3","v":-1223.74074679043},{"$f":"AJ81+AJ89*Control!$K$3","v":-1155.6190496564136},{"$f":"AK81+AK89*Control!$K$3","v":-1374.1167907698286},{"$f":"AL81+AL89*Control!$K$3","v":-1407.9758201369286},{"$f":"AM81+AM89*Control!$K$3","v":-1346.7413559840704},{"$f":"AN81+AN89*Control!$K$3","v":-1269.0294813603182},{"$f":"AO81+AO89*Control!$K$3","v":-1195.2976023453948},{"$f":"AP81+AP89*Control!$K$3","v":-1117.9022203243899},{"$f":"AQ81+AQ89*Control!$K$3","v":-1031.961399819048},{"$f":"AR81+AR89*Control!$K$3","v":-935.4050589974828},{"$f":"AS81+AS89*Control!$K$3","v":-826.29354283819737},{"$f":"AT81+AT89*Control!$K$3","v":-701.79987737370243},{"$f":"AU81+AU89*Control!$K$3","v":-558.40852567396792},{"$f":"AV81+AV89*Control!$K$3","v":-393.04618959724439},{"$f":"AW81+AW89*Control!$K$3","v":-202.85569010671111},{"$f":"AX81+AX89*Control!$K$3","v":15.638051968450782},{"$f":"AY81+AY89*Control!$K$3","v":267.74642111366711},{"$f":"AZ81+AZ89*Control!$K$3","v":561.23755810103467},{"$f":"BA81+BA89*Control!$K$3","v":906.97279470672493},{"$f":"BB81+BB89*Control!$K$3","v":1319.5808467070165},{"$f":"BC81+BC89*Control!$K$3","v":1725.5432812121653},{"$f":"BD81+BD89*Control!$K$3","v":2099.3261842508468},{"$f":"BE81+BE89*Control!$K$3","v":2480.960218080505},{"$f":"BF81+BF89*Control!$K$3","v":2909.7480808512955},{"$f":"BG81+BG89*Control!$K$3","v":3420.2972524317829},{"$f":"BH81+BH89*Control!$K$3","v":4157.7078274855385},{"$f":"BI81+BI89*Control!$K$3","v":5246.2677609984585},{"$f":"BJ81+BJ89*Control!$K$3","v":6865.6580284465808},{"$f":"BK81+BK89*Control!$K$3","v":-2157.5332883299448},{"$f":"BL81+BL89*Control!$K$3","v":-2154.4935572487798},{"$f":"BM81+BM89*Control!$K$3","v":-2151.4630811945131},{"$f":"BN81+BN89*Control!$K$3","v":-2148.4418009349724},{"$f":"BO81+BO89*Control!$K$3","v":-2145.4296576170723},{"$f":"BP81+BP89*Control!$K$3","v":-2142.4265927643851},{"$f":"BQ81+BQ89*Control!$K$3","v":-2139.432548274734},{"$f":"BR81+BR89*Control!$K$3","v":-2136.447466417796},{"$f":"BS81+BS89*Control!$K$3","v":-2133.4712898327216},{"$f":"BT81+BT89*Control!$K$3","v":-2130.5039615257697},{"$f":"BU81+BU89*Control!$K$3","v":-2127.5454248679621},{"$f":"BV81+BV89*Control!$K$3","v":-2124.5956235927429},{"$f":"BW81+BW89*Control!$K$3","v":-2121.6545017936642},{"$f":"BX81+BX89*Control!$K$3","v":-2118.7220039220783},{"$f":"BY81+BY89*Control!$K$3","v":-2115.7980747848496},{"$f":"BZ81+BZ89*Control!$K$3","v":-2112.8826595420783},{"$f":"CA81+CA89*Control!$K$3","v":-2109.9757037048398},{"$f":"CB81+CB89*Control!$K$3","v":-2107.0771531329378},{"$f":"CC81+CC89*Control!$K$3","v":-2137.7922427775329},{"$f":"CD81+CD89*Control!$K$3","v":-2136.5039748277836},{"$f":"CE81+CE89*Control!$K$3","v":-2135.2239517929129},{"$f":"CF81+CF89*Control!$K$3","v":-2133.9521209054647},{"$f":"CG81+CG89*Control!$K$3","v":-2132.6884297356964},{"$f":"CH81+CH89*Control!$K$3","v":-2131.4328261894152},{"$f":"CI81+CI89*Control!$K$3","v":-2130.1852585058296},{"$f":"CJ81+CJ89*Control!$K$3","v":-2128.9456752554192},{"$f":"CK81+CK89*Control!$K$3","v":-2127.7140253378111},{"$f":"CL81+CL89*Control!$K$3","v":-2126.4902579796762},{"$f":"CM81+CM89*Control!$K$3","v":-2125.2743227326328},{"$f":"CN81+CN89*Control!$K$3","v":-2124.0661694711707},{"$f":"CO81+CO89*Control!$K$3","v":-2122.8657483905822},{"$f":"CP81+CP89*Control!$K$3","v":-2121.6730100049094},{"$f":"CQ81+CQ89*Control!$K$3","v":-2120.4879051449047},{"$f":"CR81+CR89*Control!$K$3","v":-2119.3103849560043},{"$f":"CS81+CS89*Control!$K$3","v":-2118.1404008963127},{"$f":"CT81+CT89*Control!$K$3","v":-2116.9779047346028},{"$f":"CU81+CU89*Control!$K$3","v":-2115.8228485483282},{"$f":"CV81+CV89*Control!$K$3","v":-2114.675184721646},{"$f":"CW81+CW89*Control!$K$3","v":-2113.534865943454}]
["Room heating",{"$f":"B82+B90*Control!$K$3","v":-371.08660739433867},{"$f":"C82+C90*Control!$K$3","v":-440.31360814046832},{"$f":"D82+D90*Control!$K$3","v":-366.62031758084686},{"$f":"E82+E90*Control!$K$3","v":-339.11920356218315},{"$f":"F82+F90*Control!$K$3","v":-434.50092080484586},{"$f":"G82+G90*Control!$K$3","v":-678.19601796206075},{"$f":"H82+H90*Control!$K$3","v":-572.54445394441302},{"$f":"I82+I90*Control!$K$3","v":-499.02402591010815},{"$f":"J82+J90*Control!$K$3","v":-269.03603833994691},{"$f":"K82+K90*Control!$K$3","v":-316.11825447797207},{"$f":"L82+L90*Control!$K$3","v":-508.62395121606761},{"$f":"M82+M90*Control!$K$3","v":-523.60033107418963},{"$f":"N82+N90*Control!$K$3","v":-395.51454915669945},{"$f":"O82+O90*Control!$K$3","v":-283.12471356697972},{"$f":"P82+P90*Control!$K$3","v":-114.69771723273413},{"$f":"Q82+Q90*Control!$K$3","v":-17.087613881935908},{"$f":"R82+R90*Control!$K$3","v":132.2364128988138},{"$f":"S82+S90*Control!$K$3","v":222.99341951285555},{"$f":"T82+T90*Control!$K$3","v":317.24508435085954},{"$f":"U82+U90*Control!$K$3","v":375.25943071712436},{"$f":"V82+V90*Control!$K$3","v":425.14952417623795},{"$f":"W82+W90*Control!$K$3","v":546.28686630589482},{"$f":"X82+X90*Control!$K$3","v":667.29418506084858},{"$f":"Y82+Y90*Control!$K$3","v":747.57462220455864},{"$f":"Z82+Z90*Control!$K$3","v":826.15015628961237},{"$f":"AA82+AA90*Control!$K$3","v":892.55212150420471},{"$f":"AB82+AB90*Control!$K$3","v":955.67133376555284},{"$f":"AC82+AC90*Control!$K$3","v":1013.778215978896},{"$f":"AD82+AD90*Control!$K$3","v":1072.5737987903892},{"$f":"AE82+AE90*Control!$K$3","v":1150.7187786593793},{"$f":"AF82+AF90*Control!$K$3","v":1201.5779504679849},{"$f":"AG82+AG90*Control!$K$3","v":1277.6704577445309},{"$f":"AH82+AH90*Control!$K$3","v":1342.053409005674},{"$f":"AI82+AI90*Control!$K$3","v":1400.9515114629983},{"$f":"AJ82+AJ90*Control!$K$3","v":1463.363745318605},{"$f":"AK82+AK90*Control!$K$3","v":1256.3430109293411},{"$f":"AL82+AL90*Control!$K$3","v":1222.9066119782199},{"$f":"AM82+AM90*Control!$K$3","v":1278.8753818811147},{"$f":"AN82+AN90*Control!$K$3","v":1350.3443465024486},{"$f":"AO82+AO90*Control!$K$3","v":1418.0819720105492},{"$f":"AP82+AP90*Control!$K$3","v":1489.2736451068386},{"$f":"AQ82+AQ90*Control!$K$3","v":1568.5086801640059},{"$f":"AR82+AR90*Control!$K$3","v":1657.733042440203},{"$f":"AS82+AS90*Control!$K$3","v":1758.7700867959884},{"$f":"AT82+AT90*Control!$K$3","v":1874.277313662215},{"$f":"AU82+AU90*Control!$K$3","v":2007.559523774104},{"$f":"AV82+AV90*Control!$K$3","v":2161.5057812365062},{"$f":"AW82+AW90*Control!$K$3","v":2338.8019826779591},{"$f":"AX82+AX90*Control!$K$3","v":2542.7148967603098},{"$f":"AY82+AY90*Control!$K$3","v":2778.2375547845313},{"$f":"AZ82+AZ90*Control!$K$3","v":3052.6725202996881},{"$f":"BA82+BA90*Control!$K$3","v":3376.2301846097957},{"$f":"BB82+BB90*Control!$K$3","v":3762.6625578435878},{"$f":"BC82+BC90*Control!$K$3","v":4142.8568385112976},{"$f":"BD82+BD90*Control!$K$3","v":4492.8092074684182},{"$f":"BE82+BE90*Control!$K$3","v":4850.1513766000517},{"$f":"BF82+BF90*Control!$K$3","v":5251.830718291646},{"$f":"BG82+BG90*Control!$K$3","v":5730.3807543045677},{"$f":"BH82+BH90*Control!$K$3","v":6422.2062027369047},{"$f":"BI82+BI90*Control!$K$3","v":7444.1468378940981},{"$f":"BJ82+BJ90*Control!$K$3","v":8965.1159535444403},{"$f":"BK82+BK90*Control!$K$3","v":481.2833401962796},{"$f":"BL82+BL90*Control!$K$3","v":482.78147271192893},{"$f":"BM82+BM90*Control!$K$3","v":484.27960522757871},{"$f":"BN82+BN90*Control!$K$3","v":485.77773774322804},{"$f":"BO82+BO90*Control!$K$3","v":487.27587025887783},{"$f":"BP82+BP90*Control!$K$3","v":488.77400277452716},{"$f":"BQ82+BQ90*Control!$K$3","v":490.27213529017695},{"$f":"BR82+BR90*Control!$K$3","v":491.77026780582628},{"$f":"BS82+BS90*Control!$K$3","v":493.26840032147561},{"$f":"BT82+BT90*Control!$K$3","v":494.7665328371254},{"$f":"BU82+BU90*Control!$K$3","v":496.26466535277473},{"$f":"BV82+BV90*Control!$K$3","v":497.76279786842429},{"$f":"BW82+BW90*Control!$K$3","v":499.26093038407362},{"$f":"BX82+BX90*Control!$K$3","v":500.7590628997234},{"$f":"BY82+BY90*Control!$K$3","v":502.25719541537273},{"$f":"BZ82+BZ90*Control!$K$3","v":503.75532793102252},{"$f":"CA82+CA90*Control!$K$3","v":505.25346044667185},{"$f":"CB82+CB90*Control!$K$3","v":506.75159296232118},{"$f":"CC82+CC90*Control!$K$3","v":476.65827894447239},{"$f":"CD82+CD90*Control!$K$3","v":476.65827894447239},{"$f":"CE82+CE90*Control!$K$3","v":476.65827894447239},{"$f":"CF82+CF90*Control!$K$3","v":476.65827894447239},{"$f":"CG82+CG90*Control!$K$3","v":476.65827894447239},{"$f":"CH82+CH90*Control!$K$3","v":476.65827894447239},{"$f":"CI82+CI90*Control!$K$3","v":476.65827894447239},{"$f":"CJ82+CJ90*Control!$K$3","v":476.65827894447239},{"$f":"CK82+CK90*Control!$K$3","v":476.65827894447239},{"$f":"CL82+CL90*Control!$K$3","v":476.65827894447239},{"$f":"CM82+CM90*Control!$K$3","v":476.65827894447239},{"$f":"CN82+CN90*Control!$K$3","v":476.65827894447239},{"$f":"CO82+CO90*Control!$K$3","v":476.65827894447239},{"$f":"CP82+CP90*Control!$K$3","v":476.65827894447239},{"$f":"CQ82+CQ90*Control!$K$3","v":476.65827894447239},{"$f":"CR82+CR90*Control!$K$3","v":476.65827894447239},{"$f":"CS82+CS90*Control!$K$3","v":476.65827894447239},{"$f":"CT82+CT90*Control!$K$3","v":476.65827894447239},{"$f":"CU82+CU90*Control!$K$3","v":476.65827894447239},{"$f":"CV82+CV90*Control!$K$3","v":476.65827894447239},{"$f":"CW82+CW90*Control!$K$3","v":476.65827894447239}]
["Ducted heating",{"$f":"B83+B91*Control!$K$3","v":-559.7332010395728},{"$f":"C83+C91*Control!$K$3","v":-921.92547835997618},{"$f":"D83+D91*Control!$K$3","v":-167.99345377415153},{"$f":"E83+E91*Control!$K$3","v":-34.669053571388019},{"$f":"F83+F91*Control!$K$3","v":-1715.0606636475989},{"$f":"G83+G91*Control!$K$3","v":-1720.909986499058},{"$f":"H83+H91*Control!$K$3","v":-1323.2000326574175},{"$f":"I83+I91*Control!$K$3","v":-1142.0412450644787},{"$f":"J83+J91*Control!$K$3","v":-457.47436355559239},{"$f":"K83+K91*Control!$K$3","v":-721.75452439234641},{"$f":"L83+L91*Control!$K$3","v":-1397.7475615007352},{"$f":"M83+M91*Control!$K$3","v":-1469.324752845554},{"$f":"N83+N91*Control!$K$3","v":-1000.9043855399141},{"$f":"O83+O91*Control!$K$3","v":-609.33080125557399},{"$f":"P83+P91*Control!$K$3","v":-11.392786878544257},{"$f":"Q83+Q91*Control!$K$3","v":325.04647449231948},{"$f":"R83+R91*Control!$K$3","v":847.95514493989367},{"$f":"S83+S91*Control!$K$3","v":1166.2209377803533},{"$f":"T83+T91*Control!$K$3","v":1499.5567644663874},{"$f":"U83+U91*Control!$K$3","v":1707.202492352742},{"$f":"V83+V91*Control!$K$3","v":1872.1334117335209},{"$f":"W83+W91*Control!$K$3","v":2289.8787347425741},{"$f":"X83+X91*Control!$K$3","v":2707.7436042593567},{"$f":"Y83+Y91*Control!$K$3","v":2981.8782623470197},{"$f":"Z83+Z91*Control!$K$3","v":3250.4197713082449},{"$f":"AA83+AA91*Control!$K$3","v":3465.442856504973},{"$f":"AB83+AB91*Control!$K$3","v":3668.797261346449},{"$f":"AC83+AC91*Control!$K$3","v":3854.3470384333095},{"$f":"AD83+AD91*Control!$K$3","v":4042.387935943314},{"$f":"AE83+AE91*Control!$K$3","v":4298.8932590768809},{"$f":"AF83+AF91*Control!$K$3","v":4479.6209926973061},{"$f":"AG83+AG91*Control!$K$3","v":4749.7150450829695},{"$f":"AH83+AH91*Control!$K$3","v":4978.3360139556498},{"$f":"AI83+AI91*Control!$K$3","v":5187.5297424003193},{"$f":"AJ83+AJ91*Control!$K$3","v":5409.1676236620697},{"$f":"AK83+AK91*Control!$K$3","v":4676.5620181861386},{"$f":"AL83+AL91*Control!$K$3","v":4558.7325481833859},{"$f":"AM83+AM91*Control!$K$3","v":4757.5446703207208},{"$f":"AN83+AN91*Control!$K$3","v":5011.2516061725401},{"$f":"AO83+AO91*Control!$K$3","v":5251.7416783751542},{"$f":"AP83+AP91*Control!$K$3","v":5504.4631364385332},{"$f":"AQ83+AQ91*Control!$K$3","v":5785.6698070274033},{"$f":"AR83+AR91*Control!$K$3","v":6102.2536553448635},{"$f":"AS83+AS91*Control!$K$3","v":6460.6724014216197},{"$f":"AT83+AT91*Control!$K$3","v":6870.3380308356391},{"$f":"AU83+AU91*Control!$K$3","v":7342.9550510620129},{"$f":"AV83+AV91*Control!$K$3","v":7888.7555689958253},{"$f":"AW83+AW91*Control!$K$3","v":8517.2521400394544},{"$f":"AX83+AX91*Control!$K$3","v":9240.014574699213},{"$f":"AY83+AY91*Control!$K$3","v":10074.726530314296},{"$f":"AZ83+AZ91*Control!$K$3","v":11047.251257588618},{"$f":"BA83+BA91*Control!$K$3","v":12193.750563844274},{"$f":"BB83+BB91*Control!$K$3","v":13562.929489727027},{"$f":"BC83+BC91*Control!$K$3","v":14910.013534719925},{"$f":"BD83+BD91*Control!$K$3","v":16149.989177431708},{"$f":"BE83+BE91*Control!$K$3","v":17416.135402187181},{"$f":"BF83+BF91*Control!$K$3","v":18839.307490902855},{"$f":"BG83+BG91*Control!$K$3","v":20534.728337854573},{"$f":"BH83+BH91*Control!$K$3","v":22985.497990997115},{"$f":"BI83+BI91*Control!$K$3","v":26605.423989006016},{"$f":"BJ83+BJ91*Control!$K$3","v":31992.740918640848},{"$f":"BK83+BK91*Control!$K$3","v":1946.3834592687099},{"$f":"BL83+BL91*Control!$K$3","v":1952.2374639968102},{"$f":"BM83+BM91*Control!$K$3","v":1958.0898791805766},{"$f":"BN83+BN91*Control!$K$3","v":1963.9407094296912},{"$f":"BO83+BO91*Control!$K$3","v":1969.7899593404632},{"$f":"BP83+BP91*Control!$K$3","v":1975.6376334958732},{"$f":"BQ83+BQ91*Control!$K$3","v":1981.4837364656123},{"$f":"BR83+BR91*Control!$K$3","v":1987.3282728061181},{"$f":"BS83+BS91*Control!$K$3","v":1993.1712470606144},{"$f":"BT83+BT91*Control!$K$3","v":1999.0126637591543},{"$f":"BU83+BU91*Control!$K$3","v":2004.8525274186472},{"$f":"BV83+BV91*Control!$K$3","v":2010.6908425429078},{"$f":"BW83+BW91*Control!$K$3","v":2016.5276136226871},{"$f":"BX83+BX91*Control!$K$3","v":2022.3628451357145},{"$f":"BY83+BY91*Control!$K$3","v":2028.1965415467316},{"$f":"BZ83+BZ91*Control!$K$3","v":2034.0287073075383},{"$f":"CA83+CA91*Control!$K$3","v":2039.8593468570184},{"$f":"CB83+CB91*Control!$K$3","v":2045.6884646211838},{"$f":"CC83+CC91*Control!$K$3","v":1939.6296918737385},{"$f":"CD83+CD91*Control!$K$3","v":1940.1498933010848},{"$f":"CE83+CE91*Control!$K$3","v":1940.6685861442916},{"$f":"CF83+CF91*Control!$K$3","v":1941.1857747782528},{"$f":"CG83+CG91*Control!$K$3","v":1941.7014635651763},{"$f":"CH83+CH91*Control!$K$3","v":1942.215656854617},{"$f":"CI83+CI91*Control!$K$3","v":1942.7283589835188},{"$f":"CJ83+CJ91*Control!$K$3","v":1943.2395742762465},{"$f":"CK83+CK91*Control!$K$3","v":1943.7493070446258},{"$f":"CL83+CL91*Control!$K$3","v":1944.2575615879764},{"$f":"CM83+CM91*Control!$K$3","v":1944.7643421931512},{"$f":"CN83+CN91*Control!$K$3","v":1945.2696531345709},{"$f":"CO83+CO91*Control!$K$3","v":1945.7734986742607},{"$f":"CP83+CP91*Control!$K$3","v":1946.275883061885},{"$f":"CQ83+CQ91*Control!$K$3","v":1946.7768105347855},{"$f":"CR83+CR91*Control!$K$3","v":1947.2762853180152},{"$f":"CS83+CS91*Control!$K$3","v":1947.7743116243728},{"$f":"CT83+CT91*Control!$K$3","v":1948.2708936544423},{"$f":"CU83+CU91*Control!$K$3","v":1948.7660355966241},{"$f":"CV83+CV91*Control!$K$3","v":1949.2597416271738},{"$f":"CW83+CW91*Control!$K$3","v":1949.7520159102351}]
["Service charge",{"$f":"B92*Control!$K$3","v":1753.8072867628398},{"$f":"C92*Control!$K$3","v":1753.8072867628398},{"$f":"D92*Control!$K$3","v":1645.5770949878015},{"$f":"E92*Control!$K$3","v":1618.0217403840172},{"$f":"F92*Control!$K$3","v":1640.5250351159671},{"$f":"G92*Control!$K$3","v":1635.5916474052419},{"$f":"H92*Control!$K$3","v":1641.326054461249},{"$f":"I92*Control!$K$3","v":1649.9672189549267},{"$f":"J92*Control!$K$3","v":1658.9869988241621},{"$f":"K92*Control!$K$3","v":1642.5636619046518},{"$f":"L92*Control!$K$3","v":1618.4812901996236},{"$f":"M92*Control!$K$3","v":1598.1783685661951},{"$f":"N92*Control!$K$3","v":1616.2884635743453},{"$f":"O92*Control!$K$3","v":1624.761948511846},{"$f":"P92*Control!$K$3","v":1645.337596988963},{"$f":"Q92*Control!$K$3","v":1648.9636959739037},{"$f":"R92*Control!$K$3","v":1688.2632748378833},{"$f":"S92*Control!$K$3","v":1650.6446235106362},{"$f":"T92*Control!$K$3","v":1641.7940748201484},{"$f":"U92*Control!$K$3","v":1635.4929846307539},{"$f":"V92*Control!$K$3","v":1633.3632148232969},{"$f":"W92*Control!$K$3","v":1632.8358964508893},{"$f":"X92*Control!$K$3","v":1637.0932287887333},{"$f":"Y92*Control!$K$3","v":1635.6082580385273},{"$f":"Z92*Control!$K$3","v":1639.4539392064323},{"$f":"AA92*Control!$K$3","v":1647.624537729761},{"$f":"AB92*Control!$K$3","v":1658.677324681516},{"$f":"AC92*Control!$K$3","v":1667.9866343943677},{"$f":"AD92*Control!$K$3","v":1686.2943760561202},{"$f":"AE92*Control!$K$3","v":1704.5802396814274},{"$f":"AF92*Control!$K$3","v":1728.901423347668},{"$f":"AG92*Control!$K$3","v":1747.9250827758606},{"$f":"AH92*Control!$K$3","v":1779.0832863871699},{"$f":"AI92*Control!$K$3","v":1804.1988420590862},{"$f":"AJ92*Control!$K$3","v":1831.4135359224524},{"$f":"AK92*Control!$K$3","v":1696.1179285028174},{"$f":"AL92*Control!$K$3","v":1699.0929243956077},{"$f":"AM92*Control!$K$3","v":1735.7717037701721},{"$f":"AN92*Control!$K$3","v":1770.466553492505},{"$f":"AO92*Control!$K$3","v":1796.3508169436761},{"$f":"AP92*Control!$K$3","v":1830.4925577705953},{"$f":"AQ92*Control!$K$3","v":1864.4322828439617},{"$f":"AR92*Control!$K$3","v":1901.6724588464647},{"$f":"AS92*Control!$K$3","v":1939.2378463383734},{"$f":"AT92*Control!$K$3","v":1987.8662430551155},{"$f":"AU92*Control!$K$3","v":2038.2598538232182},{"$f":"AV92*Control!$K$3","v":2093.8486906606126},{"$f":"AW92*Control!$K$3","v":2151.0164245710725},{"$f":"AX92*Control!$K$3","v":2219.6037852054615},{"$f":"AY92*Control!$K$3","v":2289.8279744621896},{"$f":"AZ92*Control!$K$3","v":2365.5925310319585},{"$f":"BA92*Control!$K$3","v":2444.189656835284},{"$f":"BB92*Control!$K$3","v":2536.2325444045591},{"$f":"BC92*Control!$K$3","v":2599.1118175486904},{"$f":"BD92*Control!$K$3","v":2647.877609156752},{"$f":"BE92*Control!$K$3","v":2700.3563976209221},{"$f":"BF92*Control!$K$3","v":2769.6028133787154},{"$f":"BG92*Control!$K$3","v":2846.0895929415597},{"$f":"BH92*Control!$K$3","v":2963.2817752718483},{"$f":"BI92*Control!$K$3","v":3105.2855328756714},{"$f":"BJ92*Control!$K$3","v":3271.0437327033696},{"$f":"BK92*Control!$K$3","v":1222.5936653043993},{"$f":"BL92*Control!$K$3","v":1222.5936653043993},{"$f":"BM92*Control!$K$3","v":1219.2532454538407},{"$f":"BN92*Control!$K$3","v":1222.5936653043993},{"$f":"BO92*Control!$K$3","v":1222.5936653043993},{"$f":"BP92*Control!$K$3","v":1222.5936653043993},{"$f":"BQ92*Control!$K$3","v":1219.2532454538407},{"$f":"BR92*Control!$K$3","v":1222.5936653043993},{"$f":"BS92*Control!$K$3","v":1222.5936653043993},{"$f":"BT92*Control!$K$3","v":1222.5936653043993},{"$f":"BU92*Control!$K$3","v":1219.2532454538407},{"$f":"BV92*Control!$K$3","v":1222.5936653043993},{"$f":"BW92*Control!$K$3","v":1222.5936653043993},{"$f":"BX92*Control!$K$3","v":1222.5936653043993},{"$f":"BY92*Control!$K$3","v":1219.2532454538407},{"$f":"BZ92*Control!$K$3","v":1222.5936653043993},{"$f":"CA92*Control!$K$3","v":1222.5936653043993},{"$f":"CB92*Control!$K$3","v":1222.5936653043993},{"$f":"CC92*Control!$K$3","v":1222.5936653043993},{"$f":"CD92*Control!$K$3","v":1222.5936653043993},{"$f":"CE92*Control!$K$3","v":1222.5936653043993},{"$f":"CF92*Control!$K$3","v":1222.5936653043993},{"$f":"CG92*Control!$K$3","v":1222.5936653043993},{"$f":"CH92*Control!$K$3","v":1222.5936653043993},{"$f":"CI92*Control!$K$3","v":1222.5936653043993},{"$f":"CJ92*Control!$K$3","v":1222.5936653043993},{"$f":"CK92*Control!$K$3","v":1222.5936653043993},{"$f":"CL92*Control!$K$3","v":1222.5936653043993},{"$f":"CM92*Control!$K$3","v":1222.5936653043993},{"$f":"CN92*Control!$K$3","v":1222.5936653043993},{"$f":"CO92*Control!$K$3","v":1222.5936653043993},{"$f":"CP92*Control!$K$3","v":1222.5936653043993},{"$f":"CQ92*Control!$K$3","v":1222.5936653043993},{"$f":"CR92*Control!$K$3","v":1222.5936653043993},{"$f":"CS92*Control!$K$3","v":1222.5936653043993},{"$f":"CT92*Control!$K$3","v":1222.5936653043993},{"$f":"CU92*Control!$K$3","v":1222.5936653043993},{"$f":"CV92*Control!$K$3","v":1222.5936653043993},{"$f":"CW92*Control!$K$3","v":1222.5936653043993}]
[]
["NPV (Low income)",2021,{"$f":"B116+1","v":2022},{"$f":"C116+1","v":2023},{"$f":"D116+1","v":2024},{"$f":"E116+1","v":2025},{"$f":"F116+1","v":2026},{"$f":"G116+1","v":2027},{"$f":"H116+1","v":2028},{"$f":"I116+1","v":2029},{"$f":"J116+1","v":2030},{"$f":"K116+1","v":2031},{"$f":"L116+1","v":2032},{"$f":"M116+1","v":2033},{"$f":"N116+1","v":2034},{"$f":"O116+1","v":2035},{"$f":"P116+1","v":2036},{"$f":"Q116+1","v":2037},{"$f":"R116+1","v":2038},{"$f":"S116+1","v":2039},{"$f":"T116+1","v":2040},{"$f":"U116+1","v":2041},{"$f":"V116+1","v":2042},{"$f":"W116+1","v":2043},{"$f":"X116+1","v":2044},{"$f":"Y116+1","v":2045},{"$f":"Z116+1","v":2046},{"$f":"AA116+1","v":2047},{"$f":"AB116+1","v":2048},{"$f":"AC116+1","v":2049},{"$f":"AD116+1","v":2050},{"$f":"AE116+1","v":2051},{"$f":"AF116+1","v":2052},{"$f":"AG116+1","v":2053},{"$f":"AH116+1","v":2054},{"$f":"AI116+1","v":2055},{"$f":"AJ116+1","v":2056},{"$f":"AK116+1","v":2057},{"$f":"AL116+1","v":2058},{"$f":"AM116+1","v":2059},{"$f":"AN116+1","v":2060},{"$f":"AO116+1","v":2061},{"$f":"AP116+1","v":2062},{"$f":"AQ116+1","v":2063},{"$f":"AR116+1","v":2064},{"$f":"AS116+1","v":2065},{"$f":"AT116+1","v":2066},{"$f":"AU116+1","v":2067},{"$f":"AV116+1","v":2068},{"$f":"AW116+1","v":2069},{"$f":"AX116+1","v":2070},{"$f":"AY116+1","v":2071},{"$f":"AZ116+1","v":2072},{"$f":"BA116+1","v":2073},{"$f":"BB116+1","v":2074},{"$f":"BC116+1","v":2075},{"$f":"BD116+1","v":2076},{"$f":"BE116+1","v":2077},{"$f":"BF116+1","v":2078},{"$f":"BG116+1","v":2079},{"$f":"BH116+1","v":2080},{"$f":"BI116+1","v":2081},{"$f":"BJ116+1","v":2082},{"$f":"BK116+1","v":2083},{"$f":"BL116+1","v":2084},{"$f":"BM116+1","v":2085},{"$f":"BN116+1","v":2086},{"$f":"BO116+1","v":2087},{"$f":"BP116+1","v":2088},{"$f":"BQ116+1","v":2089},{"$f":"BR116+1","v":2090},{"$f":"BS116+1","v":2091},{"$f":"BT116+1","v":2092},{"$f":"BU116+1","v":2093},{"$f":"BV116+1","v":2094},{"$f":"BW116+1","v":2095},{"$f":"BX116+1","v":2096},{"$f":"BY116+1","v":2097},{"$f":"BZ116+1","v":2098},{"$f":"CA116+1","v":2099},{"$f":"CB116+1","v":2100},{"$f":"CC116+1","v":2101},{"$f":"CD116+1","v":2102},{"$f":"CE116+1","v":2103},{"$f":"CF116+1","v":2104},{"$f":"CG116+1","v":2105},{"$f":"CH116+1","v":2106},{"$f":"CI116+1","v":2107},{"$f":"CJ116+1","v":2108},{"$f":"CK116+1","v":2109},{"$f":"CL116+1","v":2110},{"$f":"CM116+1","v":2111},{"$f":"CN116+1","v":2112},{"$f":"CO116+1","v":2113},{"$f":"CP116+1","v":2114},{"$f":"CQ116+1","v":2115},{"$f":"CR116+1","v":2116},{"$f":"CS116+1","v":2117},{"$f":"CT116+1","v":2118},{"$f":"CU116+1","v":2119},{"$f":"CV116+1","v":2120}]
["Cooking",{"$f":"B80+B88*Control!$K$4","v":-937.08520878823526},{"$f":"C80+C88*Control!$K$4","v":-948.25497394460922},{"$f":"D80+D88*Control!$K$4","v":-955.07572073237714},{"$f":"E80+E88*Control!$K$4","v":-951.44400300261736},{"$f":"F80+F88*Control!$K$4","v":-955.67468221449928},{"$f":"G80+G88*Control!$K$4","v":-955.36692593297789},{"$f":"H80+H88*Control!$K$4","v":-949.32495946963354},{"$f":"I80+I88*Control!$K$4","v":-939.22133078412878},{"$f":"J80+J88*Control!$K$4","v":-876.54751868677897},{"$f":"K80+K88*Control!$K$4","v":-873.16579092117706},{"$f":"L80+L88*Control!$K$4","v":-868.69283652868114},{"$f":"M80+M88*Control!$K$4","v":-858.5375407404938},{"$f":"N80+N88*Control!$K$4","v":-840.09744949061098},{"$f":"O80+O88*Control!$K$4","v":-823.86932767728717},{"$f":"P80+P88*Control!$K$4","v":-804.79407269783201},{"$f":"Q80+Q88*Control!$K$4","v":-789.5017981796135},{"$f":"R80+R88*Control!$K$4","v":-771.8651727056706},{"$f":"S80+S88*Control!$K$4","v":-756.55065523765609},{"$f":"T80+T88*Control!$K$4","v":-740.95903201394344},{"$f":"U80+U88*Control!$K$4","v":-726.76083590473854},{"$f":"V80+V88*Control!$K$4","v":-713.9409210425631},{"$f":"W80+W88*Control!$K$4","v":-698.15437648364582},{"$f":"X80+X88*Control!$K$4","v":-682.39011401112055},{"$f":"Y80+Y88*Control!$K$4","v":-668.35683873817618},{"$f":"Z80+Z88*Control!$K$4","v":-654.42086034181591},{"$f":"AA80+AA88*Control!$K$4","v":-641.78324638638401},{"$f":"AB80+AB88*Control!$K$4","v":-629.34281775374518},{"$f":"AC80+AC88*Control!$K$4","v":-617.17262216959557},{"$f":"AD80+AD88*Control!$K$4","v":-605.02572092744549},{"$f":"AE80+AE88*Control!$K$4","v":-592.12670868493228},{"$f":"AF80+AF88*Control!$K$4","v":-589.99179618282812},{"$f":"AG80+AG88*Control!$K$4","v":-586.79766542284483},{"$f":"AH80+AH88*Control!$K$4","v":-584.09506601585804},{"$f":"AI80+AI88*Control!$K$4","v":-581.62270378865639},{"$f":"AJ80+AJ88*Control!$K$4","v":-579.00282907178121},{"$f":"AK80+AK88*Control!$K$4","v":-587.69292641952507},{"$f":"AL80+AL88*Control!$K$4","v":-589.09648419696441},{"$f":"AM80+AM88*Control!$K$4","v":-586.74708639232176},{"$f":"AN80+AN88*Control!$K$4","v":-583.74703781393134},{"$f":"AO80+AO88*Control!$K$4","v":-580.90361944085396},{"$f":"AP80+AP88*Control!$K$4","v":-577.91521071271063},{"$f":"AQ80+AQ88*Control!$K$4","v":-574.58916624653659},{"$f":"AR80+AR88*Control!$K$4","v":-570.84380037167409},{"$f":"AS80+AS88*Control!$K$4","v":-566.60257422700624},{"$f":"AT80+AT88*Control!$K$4","v":-561.75393407124261},{"$f":"AU80+AU88*Control!$K$4","v":-556.15915447579914},{"$f":"AV80+AV88*Control!$K$4","v":-549.69696136448681},{"$f":"AW80+AW88*Control!$K$4","v":-542.2546090104737},{"$f":"AX80+AX88*Control!$K$4","v":-533.69496845531171},{"$f":"AY80+AY88*Control!$K$4","v":-523.80844751397728},{"$f":"AZ80+AZ88*Control!$K$4","v":-512.28850690036143},{"$f":"BA80+BA88*Control!$K$4","v":-498.70654561151525},{"$f":"BB80+BB88*Control!$K$4","v":-482.48529631671261},{"$f":"BC80+BC88*Control!$K$4","v":-466.52590307137007},{"$f":"BD80+BD88*Control!$K$4","v":-451.83597279804428},{"$f":"BE80+BE88*Control!$K$4","v":-436.83584131184807},{"$f":"BF80+BF88*Control!$K$4","v":-419.97457090733792},{"$f":"BG80+BG88*Control!$K$4","v":-399.88650383044751},{"$f":"BH80+BH88*Control!$K$4","v":-370.84578714929074},{"$f":"BI80+BI88*Control!$K$4","v":-327.9478444416165},{"$f":"BJ80+BJ88*Control!$K$4","v":-264.10221218209296},{"$f":"BK80+BK88*Control!$K$4","v":-620.22756121758403},{"$f":"BL80+BL88*Control!$K$4","v":-620.16467419595688},{"$f":"BM80+BM88*Control!$K$4","v":-620.10178717432973},{"$f":"BN80+BN88*Control!$K$4","v":-620.03890015270247},{"$f":"BO80+BO88*Control!$K$4","v":-619.97601313107532},{"$f":"BP80+BP88*Control!$K$4","v":-619.91312610944806},{"$f":"BQ80+BQ88*Control!$K$4","v":-619.85023908782091},{"$f":"BR80+BR88*Control!$K$4","v":-619.78735206619376},{"$f":"BS80+BS88*Control!$K$4","v":-619.7244650445665},{"$f":"BT80+BT88*Control!$K$4","v":-619.66157802293935},{"$f":"BU80+BU88*Control!$K$4","v":-619.5986910013122},{"$f":"BV80+BV88*Control!$K$4","v":-619.53580397968494},{"$f":"BW80+BW88*Control!$K$4","v":-619.47291695805779},{"$f":"BX80+BX88*Control!$K$4","v":-619.41002993643053},{"$f":"BY80+BY88*Control!$K$4","v":-619.34714291480338},{"$f":"BZ80+BZ88*Control!$K$4","v":-619.28425589317624},{"$f":"CA80+CA88*Control!$K$4","v":-619.22136887154898},{"$f":"CB80+CB88*Control!$K$4","v":-619.15848184992183},{"$f":"CC80+CC88*Control!$K$4","v":-620.42170714521808},{"$f":"CD80+CD88*Control!$K$4","v":-620.42170714521808},{"$f":"CE80+CE88*Control!$K$4","v":-620.42170714521808},{"$f":"CF80+CF88*Control!$K$4","v":-620.42170714521808},{"$f":"CG80+CG88*Control!$K$4","v":-620.42170714521808},{"$f":"CH80+CH88*Control!$K$4","v":-620.42170714521808},{"$f":"CI80+CI88*Control!$K$4","v":-620.42170714521808},{"$f":"CJ80+CJ88*Control!$K$4","v":-620.42170714521808},{"$f":"CK80+CK88*Control!$K$4","v":-620.42170714521808},{"$f":"CL80+CL88*Control!$K$4","v":-620.42170714521808},{"$f":"CM80+CM88*Control!$K$4","v":-620.42170714521808},{"$f":"CN80+CN88*Control!$K$4","v":-620.42170714521808},{"$f":"CO80+CO88*Control!$K$4","v":-620.42170714521808},{"$f":"CP80+CP88*Control!$K$4","v":-620.42170714521808},{"$f":"CQ80+CQ88*Control!$K$4","v":-620.42170714521808},{"$f":"CR80+CR88*Control!$K$4","v":-620.42170714521808},{"$f":"CS80+CS88*Control!$K$4","v":-620.42170714521808},{"$f":"CT80+CT88*Control!$K$4","v":-620.42170714521808},{"$f":"CU80+CU88*Control!$K$4","v":-620.42170714521808},{"$f":"CV80+CV88*Control!$K$4","v":-620.42170714521808},{"$f":"CW80+CW88*Control!$K$4","v":-620.42170714521808}]
["Hot water",{"$f":"B81+B89*Control!$K$4","v":-3159.9267137363108},{"$f":"C81+C89*Control!$K$4","v":-3338.1283217109494},{"$f":"D81+D89*Control!$K$4","v":-2941.4608524165583},{"$f":"E81+E89*Control!$K$4","v":-2881.3119129627785},{"$f":"F81+F89*Control!$K$4","v":-2952.1848870839913},{"$f":"G81+G89*Control!$K$4","v":-2946.1667638535218},{"$f":"H81+H89*Control!$K$4","v":-2843.3952674274024},{"$f":"I81+I89*Control!$K$4","v":-3348.8251990929662},{"$f":"J81+J89*Control!$K$4","v":-3124.651040865394},{"$f":"K81+K89*Control!$K$4","v":-3225.8460331298479},{"$f":"L81+L89*Control!$K$4","v":-3318.0863557844723},{"$f":"M81+M89*Control!$K$4","v":-3309.4378215013812},{"$f":"N81+N89*Control!$K$4","v":-3161.1561299030323},{"$f":"O81+O89*Control!$K$4","v":-3047.8292563689952},{"$f":"P81+P89*Control!$K$4","v":-2885.6108338193617},{"$f":"Q81+Q89*Control!$K$4","v":-2786.4109700766412},{"$f":"R81+R89*Control!$K$4","v":-2646.4876770396327},{"$f":"S81+S89*Control!$K$4","v":-2545.8976950133815},{"$f":"T81+T89*Control!$K$4","v":-2440.0161182376401},{"$f":"U81+U89*Control!$K$4","v":-2357.520082401028},{"$f":"V81+V89*Control!$K$4","v":-2296.4478973909081},{"$f":"W81+W89*Control!$K$4","v":-2183.698556934421},{"$f":"X81+X89*Control!$K$4","v":-2070.595943456904},{"$f":"Y81+Y89*Control!$K$4","v":-1986.4696781497471},{"$f":"Z81+Z89*Control!$K$4","v":-1903.2719277664291},{"$f":"AA81+AA89*Control!$K$4","v":-1840.5096461064593},{"$f":"AB81+AB89*Control!$K$4","v":-1780.3483667880255},{"$f":"AC81+AC89*Control!$K$4","v":-1724.0448981129107},{"$f":"AD81+AD89*Control!$K$4","v":-1667.3747469732521},{"$f":"AE81+AE89*Control!$K$4","v":-1597.0186439651893},{"$f":"AF81+AF89*Control!$K$4","v":-1559.1662570417313},{"$f":"AG81+AG89*Control!$K$4","v":-1503.1383229140915},{"$f":"AH81+AH89*Control!$K$4","v":-1455.5559939584812},{"$f":"AI81+AI89*Control!$K$4","v":-1411.9336712396512},{"$f":"AJ81+AJ89*Control!$K$4","v":-1365.7866034501285},{"$f":"AK81+AK89*Control!$K$4","v":-1513.8015604348598},{"$f":"AL81+AL89*Control!$K$4","v":-1536.7383777665991},{"$f":"AM81+AM89*Control!$K$4","v":-1495.2568661894898},{"$f":"AN81+AN89*Control!$K$4","v":-1442.6132108316663},{"$f":"AO81+AO89*Control!$K$4","v":-1392.665688055527},{"$f":"AP81+AP89*Control!$K$4","v":-1340.236431431269},{"$f":"AQ81+AQ89*Control!$K$4","v":-1282.0183153742805},{"$f":"AR81+AR89*Control!$K$4","v":-1216.6090229922204},{"$f":"AS81+AS89*Control!$K$4","v":-1142.6945912522947},{"$f":"AT81+AT89*Control!$K$4","v":-1058.3599686392677},{"$f":"AU81+AU89*Control!$K$4","v":-961.22365663134656},{"$f":"AV81+AV89*Control!$K$4","v":-849.20373854630691},{"$f":"AW81+AW89*Control!$K$4","v":-720.36470132082127},{"$f":"AX81+AX89*Control!$K$4","v":-572.35245336855883},{"$f":"AY81+AY89*Control!$K$4","v":-401.56895133157172},{"$f":"AZ81+AZ89*Control!$K$4","v":-202.75189356603528},{"$f":"BA81+BA89*Control!$K$4","v":31.456414096671324},{"$f":"BB81+BB89*Control!$K$4","v":310.96577083952388},{"$f":"BC81+BC89*Control!$K$4","v":585.97324677267989},{"$f":"BD81+BD89*Control!$K$4","v":839.18163251146325},{"$f":"BE81+BE89*Control!$K$4","v":1097.7085390751586},{"$f":"BF81+BF89*Control!$K$4","v":1388.1784393138514},{"$f":"BG81+BG89*Control!$K$4","v":1734.0351666419874},{"$f":"BH81+BH89*Control!$K$4","v":2233.5725714246419},{"$f":"BI81+BI89*Control!$K$4","v":2970.9859236779403},{"$f":"BJ81+BJ89*Control!$K$4","v":4067.9948884223822},{"$f":"BK81+BK89*Control!$K$4","v":-2044.5043429743816},{"$f":"BL81+BL89*Control!$K$4","v":-2042.4451653237065},{"$f":"BM81+BM89*Control!$K$4","v":-2040.3922572225524},{"$f":"BN81+BN89*Control!$K$4","v":-2038.3455785458032},{"$f":"BO81+BO89*Control!$K$4","v":-2036.3050894251426},{"$f":"BP81+BP89*Control!$K$4","v":-2034.2707502474109},{"$f":"BQ81+BQ89*Control!$K$4","v":-2032.2425216529743},{"$f":"BR81+BR89*Control!$K$4","v":-2030.2203645340994},{"$f":"BS81+BS89*Control!$K$4","v":-2028.2042400333426},{"$f":"BT81+BT89*Control!$K$4","v":-2026.1941095419475},{"$f":"BU81+BU89*Control!$K$4","v":-2024.1899346982548},{"$f":"BV81+BV89*Control!$K$4","v":-2022.191677386119},{"$f":"BW81+BW89*Control!$K$4","v":-2020.1992997333382},{"$f":"BX81+BX89*Control!$K$4","v":-2018.2127641100919},{"$f":"BY81+BY89*Control!$K$4","v":-2016.232033127392},{"$f":"BZ81+BZ89*Control!$K$4","v":-2014.2570696355385},{"$f":"CA81+CA89*Control!$K$4","v":-2012.2878367225903},{"$f":"CB81+CB89*Control!$K$4","v":-2010.3242977128416},{"$f":"CC81+CC89*Control!$K$4","v":-2031.1313442724997},{"$f":"CD81+CD89*Control!$K$4","v":-2030.2586445173661},{"$f":"CE81+CE89*Control!$K$4","v":-2029.391530040665},{"$f":"CF81+CF89*Control!$K$4","v":-2028.5299650966149},{"$f":"CG81+CG89*Control!$K$4","v":-2027.6739141682069},{"$f":"CH81+CH89*Control!$K$4","v":-2026.8233419657404},{"$f":"CI81+CI89*Control!$K$4","v":-2025.9782134253699},{"$f":"CJ81+CJ89*Control!$K$4","v":-2025.1384937076577},{"$f":"CK81+CK89*Control!$K$4","v":-2024.3041481961391},{"$f":"CL81+CL89*Control!$K$4","v":-2023.4751424958938},{"$f":"CM81+CM89*Control!$K$4","v":-2022.6514424321304},{"$f":"CN81+CN89*Control!$K$4","v":-2021.8330140487749},{"$f":"CO81+CO89*Control!$K$4","v":-2021.019823607073},{"$f":"CP81+CP89*Control!$K$4","v":-2020.2118375841978},{"$f":"CQ81+CQ89*Control!$K$4","v":-2019.4090226718693},{"$f":"CR81+CR89*Control!$K$4","v":-2018.6113457749796},{"$f":"CS81+CS89*Control!$K$4","v":-2017.8187740102298},{"$f":"CT81+CT89*Control!$K$4","v":-2017.0312747047744},{"$f":"CU81+CU89*Control!$K$4","v":-2016.2488153948741},{"$f":"CV81+CV89*Control!$K$4","v":-2015.4713638245571},{"$f":"CW81+CW89*Control!$K$4","v":-2014.6988879442902}]
["Room heating",{"$f":"B82+B90*Control!$K$4","v":-574.6775340567915},{"$f":"C82+C90*Control!$K$4","v":-621.57335771796909},{"$f":"D82+D90*Control!$K$4","v":-494.23301414577872},{"$f":"E82+E90*Control!$K$4","v":-475.60318214952122},{"$f":"F82+F90*Control!$K$4","v":-540.21675985911577},{"$f":"G82+G90*Control!$K$4","v":-782.71989624850141},{"$f":"H82+H90*Control!$K$4","v":-711.14930872776131},{"$f":"I82+I90*Control!$K$4","v":-655.98308406915987},{"$f":"J82+J90*Control!$K$4","v":-473.7741516311188},{"$f":"K82+K90*Control!$K$4","v":-500.4655509963635},{"$f":"L82+L90*Control!$K$4","v":-625.6958845607187},{"$f":"M82+M90*Control!$K$4","v":-630.69001714400815},{"$f":"N82+N90*Control!$K$4","v":-538.79659379274744},{"$f":"O82+O90*Control!$K$4","v":-457.56156113374379},{"$f":"P82+P90*Control!$K$4","v":-338.39127833148865},{"$f":"Q82+Q90*Control!$K$4","v":-267.21921706785736},{"$f":"R82+R90*Control!$K$4","v":-161.04030302771639},{"$f":"S82+S90*Control!$K$4","v":-94.561036424896884},{"$f":"T82+T90*Control!$K$4","v":-25.739407798926436},{"$f":"U82+U90*Control!$K$4","v":18.509432665181521},{"$f":"V82+V90*Control!$K$4","v":57.229990127544397},{"$f":"W82+W90*Control!$K$4","v":144.19030980449895},{"$f":"X82+X90*Control!$K$4","v":231.03805221294249},{"$f":"Y82+Y90*Control!$K$4","v":290.27217577412205},{"$f":"Z82+Z90*Control!$K$4","v":348.32710986039331},{"$f":"AA82+AA90*Control!$K$4","v":398.11128173280076},{"$f":"AB82+AB90*Control!$K$4","v":445.6476374034246},{"$f":"AC82+AC90*Control!$K$4","v":489.76464508959475},{"$f":"AD82+AD90*Control!$K$4","v":534.32442209069518},{"$f":"AE82+AE90*Control!$K$4","v":591.96823480669741},{"$f":"AF82+AF90*Control!$K$4","v":626.4213055303087},{"$f":"AG82+AG90*Control!$K$4","v":677.96796745004053},{"$f":"AH82+AH90*Control!$K$4","v":721.58233029382677},{"$f":"AI82+AI90*Control!$K$4","v":761.48114140866596},{"$f":"AJ82+AJ90*Control!$K$4","v":803.76049890858394},{"$f":"AK82+AK90*Control!$K$4","v":663.52030722775089},{"$f":"AL82+AL90*Control!$K$4","v":640.86978861252351},{"$f":"AM82+AM90*Control!$K$4","v":678.78420835641123},{"$f":"AN82+AN90*Control!$K$4","v":727.19878541457433},{"$f":"AO82+AO90*Control!$K$4","v":773.08567502147912},{"$f":"AP82+AP90*Control!$K$4","v":821.3124089791022},{"$f":"AQ82+AQ90*Control!$K$4","v":874.98788519184154},{"$f":"AR82+AR90*Control!$K$4","v":935.43034137927771},{"$f":"AS82+AS90*Control!$K$4","v":1003.8749564035734},{"$f":"AT82+AT90*Control!$K$4","v":1082.1219768483102},{"$f":"AU82+AU90*Control!$K$4","v":1172.4101441127082},{"$f":"AV82+AV90*Control!$K$4","v":1276.6965708745765},{"$f":"AW82+AW90*Control!$K$4","v":1396.8007398979591},{"$f":"AX82+AX90*Control!$K$4","v":1534.9356288571262},{"$f":"AY82+AY90*Control!$K$4","v":1694.4836219793506},{"$f":"AZ82+AZ90*Control!$K$4","v":1880.3916291232199},{"$f":"BA82+BA90*Control!$K$4","v":2099.5763837156342},{"$f":"BB82+BB90*Control!$K$4","v":2361.3537861283116},{"$f":"BC82+BC90*Control!$K$4","v":2618.9053736738397},{"$f":"BD82+BD90*Control!$K$4","v":2855.9704553261313},{"$f":"BE82+BE90*Control!$K$4","v":3098.0415427585399},{"$f":"BF82+BF90*Control!$K$4","v":3370.1475617002902},{"$f":"BG82+BG90*Control!$K$4","v":3694.327402803212},{"$f":"BH82+BH90*Control!$K$4","v":4162.9844857956723},{"$f":"BI82+BI90*Control!$K$4","v":4855.26852673331},{"$f":"BJ82+BJ90*Control!$K$4","v":5885.6049369904513},{"$f":"BK82+BK90*Control!$K$4","v":138.47861462459264},{"$f":"BL82+BL90*Control!$K$4","v":139.49348104257615},{"$f":"BM82+BM90*Control!$K$4","v":140.50834746056},{"$f":"BN82+BN90*Control!$K$4","v":141.52321387854352},{"$f":"BO82+BO90*Control!$K$4","v":142.53808029652726},{"$f":"BP82+BP90*Control!$K$4","v":143.55294671451077},{"$f":"BQ82+BQ90*Control!$K$4","v":144.56781313249462},{"$f":"BR82+BR90*Control!$K$4","v":145.58267955047813},{"$f":"BS82+BS90*Control!$K$4","v":146.59754596846165},{"$f":"BT82+BT90*Control!$K$4","v":147.6124123864455},{"$f":"BU82+BU90*Control!$K$4","v":148.62727880442901},{"$f":"BV82+BV90*Control!$K$4","v":149.64214522241286},{"$f":"BW82+BW90*Control!$K$4","v":150.65701164039638},{"$f":"BX82+BX90*Control!$K$4","v":151.67187805838023},{"$f":"BY82+BY90*Control!$K$4","v":152.68674447636374},{"$f":"BZ82+BZ90*Control!$K$4","v":153.7016108943476},{"$f":"CA82+CA90*Control!$K$4","v":154.71647731233111},{"$f":"CB82+CB90*Control!$K$4","v":155.73134373031462},{"$f":"CC82+CC90*Control!$K$4","v":135.34550103380889},{"$f":"CD82+CD90*Control!$K$4","v":135.34550103380889},{"$f":"CE82+CE90*Control!$K$4","v":135.34550103380889},{"$f":"CF82+CF90*Control!$K$4","v":135.34550103380889},{"$f":"CG82+CG90*Control!$K$4","v":135.34550103380889},{"$f":"CH82+CH90*Control!$K$4","v":135.34550103380889},{"$f":"CI82+CI90*Control!$K$4","v":135.34550103380889},{"$f":"CJ82+CJ90*Control!$K$4","v":135.34550103380889},{"$f":"CK82+CK90*Control!$K$4","v":135.34550103380889},{"$f":"CL82+CL90*Control!$K$4","v":135.34550103380889},{"$f":"CM82+CM90*Control!$K$4","v":135.34550103380889},{"$f":"CN82+CN90*Control!$K$4","v":135.34550103380889},{"$f":"CO82+CO90*Control!$K$4","v":135.34550103380889},{"$f":"CP82+CP90*Control!$K$4","v":135.34550103380889},{"$f":"CQ82+CQ90*Control!$K$4","v":135.34550103380889},{"$f":"CR82+CR90*Control!$K$4","v":135.34550103380889},{"$f":"CS82+CS90*Control!$K$4","v":135.34550103380889},{"$f":"CT82+CT90*Control!$K$4","v":135.34550103380889},{"$f":"CU82+CU90*Control!$K$4","v":135.34550103380889},{"$f":"CV82+CV90*Control!$K$4","v":135.34550103380889},{"$f":"CW82+CW90*Control!$K$4","v":135.34550103380889}]
["Ducted heating",{"$f":"B83+B91*Control!$K$4","v":-963.11358636660873},{"$f":"C83+C91*Control!$K$4","v":-1208.4702389095485},{"$f":"D83+D91*Control!$K$4","v":-265.48498940086097},{"$f":"E83+E91*Control!$K$4","v":-175.16824168316327},{"$f":"F83+F91*Control!$K$4","v":-1745.7566645503885},{"$f":"G83+G91*Control!$K$4","v":-1749.719118650997},{"$f":"H83+H91*Control!$K$4","v":-1480.302046372369},{"$f":"I83+I91*Control!$K$4","v":-1347.2772164963928},{"$f":"J83+J91*Control!$K$4","v":-832.78459165581535},{"$f":"K83+K91*Control!$K$4","v":-1001.8147405746054},{"$f":"L83+L91*Control!$K$4","v":-1449.7978293060105},{"$f":"M83+M91*Control!$K$4","v":-1488.3866789073661},{"$f":"N83+N91*Control!$K$4","v":-1161.2193407507636},{"$f":"O83+O91*Control!$K$4","v":-886.15887447519367},{"$f":"P83+P91*Control!$K$4","v":-471.35181232559262},{"$f":"Q83+Q91*Control!$K$4","v":-233.73825187298303},{"$f":"R83+R91*Control!$K$4","v":130.14508833012519},{"$f":"S83+S91*Control!$K$4","v":355.35077681316261},{"$f":"T83+T91*Control!$K$4","v":590.717193810764},{"$f":"U83+U91*Control!$K$4","v":740.89071048645042},{"$f":"V83+V91*Control!$K$4","v":862.08076941684885},{"$f":"W83+W91*Control!$K$4","v":1154.4853010077254},{"$f":"X83+X91*Control!$K$4","v":1446.9237405146314},{"$f":"Y83+Y91*Control!$K$4","v":1641.9494772978078},{"$f":"Z83+Z91*Control!$K$4","v":1833.1396916188546},{"$f":"AA83+AA91*Control!$K$4","v":1988.0290293210041},{"$f":"AB83+AB91*Control!$K$4","v":2134.9676170496282},{"$f":"AC83+AC91*Control!$K$4","v":2269.7990659225934},{"$f":"AD83+AD91*Control!$K$4","v":2406.2723713967694},{"$f":"AE83+AE91*Control!$K$4","v":2589.079463865753},{"$f":"AF83+AF91*Control!$K$4","v":2711.5082248289614},{"$f":"AG83+AG91*Control!$K$4","v":2894.4756062855254},{"$f":"AH83+AH91*Control!$K$4","v":3049.3482502820252},{"$f":"AI83+AI91*Control!$K$4","v":3191.0604737559561},{"$f":"AJ83+AJ91*Control!$K$4","v":3341.2026276014576},{"$f":"AK83+AK91*Control!$K$4","v":2844.9202100866373},{"$f":"AL83+AL91*Control!$K$4","v":2765.1000533879082},{"$f":"AM83+AM91*Control!$K$4","v":2899.7795587971932},{"$f":"AN83+AN91*Control!$K$4","v":3071.645963481637},{"$f":"AO83+AO91*Control!$K$4","v":3234.5589872544915},{"$f":"AP83+AP91*Control!$K$4","v":3405.7578085958676},{"$f":"AQ83+AQ91*Control!$K$4","v":3596.2531109222473},{"$f":"AR83+AR91*Control!$K$4","v":3810.7136561525367},{"$f":"AS83+AS91*Control!$K$4","v":4053.5140394092914},{"$f":"AT83+AT91*Control!$K$4","v":4331.0301373188095},{"$f":"AU83+AU91*Control!$K$4","v":4651.1908289698385},{"$f":"AV83+AV91*Control!$K$4","v":5020.9275583865683},{"$f":"AW83+AW91*Control!$K$4","v":5446.6843303057185},{"$f":"AX83+AX91*Control!$K$4","v":5936.2987772615525},{"$f":"AY83+AY91*Control!$K$4","v":6501.7501799873917},{"$f":"AZ83+AZ91*Control!$K$4","v":7160.5588474846791},{"$f":"BA83+BA91*Control!$K$4","v":7937.2215472165271},{"$f":"BB83+BB91*Control!$K$4","v":8864.7320962328777},{"$f":"BC83+BC91*Control!$K$4","v":9777.2751090732054},{"$f":"BD83+BD91*Control!$K$4","v":10617.260641568169},{"$f":"BE83+BE91*Control!$K$4","v":11474.97467576628},{"$f":"BF83+BF91*Control!$K$4","v":12439.061326821306},{"$f":"BG83+BG91*Control!$K$4","v":13587.575002311969},{"$f":"BH83+BH91*Control!$K$4","v":15247.777816953821},{"$f":"BI83+BI91*Control!$K$4","v":17699.99168494562},{"$f":"BJ83+BJ91*Control!$K$4","v":21349.473274730604},{"$f":"BK83+BK91*Control!$K$4","v":995.43993674577905},{"$f":"BL83+BL91*Control!$K$4","v":999.40556244791583},{"$f":"BM83+BM91*Control!$K$4","v":1003.3701113593497},{"$f":"BN83+BN91*Control!$K$4","v":1007.3335866027764},{"$f":"BO83+BO91*Control!$K$4","v":1011.295991291832},{"$f":"BP83+BP91*Control!$K$4","v":1015.2573285311239},{"$f":"BQ83+BQ91*Control!$K$4","v":1019.2176014162569},{"$f":"BR83+BR91*Control!$K$4","v":1023.1768130338571},{"$f":"BS83+BS91*Control!$K$4","v":1027.1349664616002},{"$f":"BT83+BT91*Control!$K$4","v":1031.0920647682387},{"$f":"BU83+BU91*Control!$K$4","v":1035.0481110136227},{"$f":"BV83+BV91*Control!$K$4","v":1039.0031082487296},{"$f":"BW83+BW91*Control!$K$4","v":1042.9570595156895},{"$f":"BX83+BX91*Control!$K$4","v":1046.9099678478101},{"$f":"BY83+BY91*Control!$K$4","v":1050.8618362696006},{"$f":"BZ83+BZ91*Control!$K$4","v":1054.8126677968039},{"$f":"CA83+CA91*Control!$K$4","v":1058.7624654364135},{"$f":"CB83+CB91*Control!$K$4","v":1062.7112321867025},{"$f":"CC83+CC91*Control!$K$4","v":990.86479292343301},{"$f":"CD83+CD91*Control!$K$4","v":991.21718829145698},{"$f":"CE83+CE91*Control!$K$4","v":991.56856171291361},{"$f":"CF83+CF91*Control!$K$4","v":991.918916151448},{"$f":"CG83+CG91*Control!$K$4","v":992.26825456211054},{"$f":"CH83+CH91*Control!$K$4","v":992.61657989138212},{"$f":"CI83+CI91*Control!$K$4","v":992.96389507719914},{"$f":"CJ83+CJ91*Control!$K$4","v":993.31020304897697},{"$f":"CK83+CK91*Control!$K$4","v":993.65550672763675},{"$f":"CL83+CL91*Control!$K$4","v":993.99980902562834},{"$f":"CM83+CM91*Control!$K$4","v":994.34311284695582},{"$f":"CN83+CN91*Control!$K$4","v":994.68542108720135},{"$f":"CO83+CO91*Control!$K$4","v":995.0267366335504},{"$f":"CP83+CP91*Control!$K$4","v":995.36706236481473},{"$f":"CQ83+CQ91*Control!$K$4","v":995.70640115145852},{"$f":"CR83+CR91*Control!$K$4","v":996.04475585562136},{"$f":"CS83+CS91*Control!$K$4","v":996.38212933114187},{"$f":"CT83+CT91*Control!$K$4","v":996.7185244235834},{"$f":"CU83+CU91*Control!$K$4","v":997.05394397025657},{"$f":"CV83+CV91*Control!$K$4","v":997.38839080024445},{"$f":"CW83+CW91*Control!$K$4","v":997.72186773442559}]
["Service charge",{"$f":"B92*Control!$K$4","v":1188.0658755870866},{"$f":"C92*Control!$K$4","v":1188.0658755870866},{"$f":"D92*Control!$K$4","v":1114.7484714876264},{"$f":"E92*Control!$K$4","v":1096.081895780278},{"$f":"F92*Control!$K$4","v":1111.3261000672021},{"$f":"G92*Control!$K$4","v":1107.9841196601233},{"$f":"H92*Control!$K$4","v":1111.8687273883434},{"$f":"I92*Control!$K$4","v":1117.7224336294794},{"$f":"J92*Control!$K$4","v":1123.8326218746915},{"$f":"K92*Control!$K$4","v":1112.7071086529083},{"$f":"L92*Control!$K$4","v":1096.393204473186},{"$f":"M92*Control!$K$4","v":1082.6395791179634},{"$f":"N92*Control!$K$4","v":1094.9077376808905},{"$f":"O92*Control!$K$4","v":1100.6478542703976},{"$f":"P92*Control!$K$4","v":1114.5862305151779},{"$f":"Q92*Control!$K$4","v":1117.0426260941135},{"$f":"R92*Control!$K$4","v":1143.6649858742569},{"$f":"S92*Control!$K$4","v":1118.1813216969881},{"$f":"T92*Control!$K$4","v":1112.1857742051091},{"$f":"U92*Control!$K$4","v":1107.9172834253529},{"$f":"V92*Control!$K$4","v":1106.4745326452683},{"$f":"W92*Control!$K$4","v":1106.1173161092463},{"$f":"X92*Control!$K$4","v":1109.0013224135887},{"$f":"Y92*Control!$K$4","v":1107.9953720518354},{"$f":"Z92*Control!$K$4","v":1110.6005172114321},{"$f":"AA92*Control!$K$4","v":1116.1354521851638},{"$f":"AB92*Control!$K$4","v":1123.6228421091459},{"$f":"AC92*Control!$K$4","v":1129.9291639488306},{"$f":"AD92*Control!$K$4","v":1142.3312125043133},{"$f":"AE92*Control!$K$4","v":1154.7184404185991},{"$f":"AF92*Control!$K$4","v":1171.1941208344792},{"$f":"AG92*Control!$K$4","v":1184.0811471149684},{"$f":"AH92*Control!$K$4","v":1205.1883683784395},{"$f":"AI92*Control!$K$4","v":1222.2021730680572},{"$f":"AJ92*Control!$K$4","v":1240.6379780379946},{"$f":"AK92*Control!$K$4","v":1148.9858931679471},{"$f":"AL92*Control!$K$4","v":1151.0012178429631},{"$f":"AM92*Control!$K$4","v":1175.8481930277571},{"$f":"AN92*Control!$K$4","v":1199.3512126153933},{"$f":"AO92*Control!$K$4","v":1216.885756092975},{"$f":"AP92*Control!$K$4","v":1240.0140881028569},{"$f":"AQ92*Control!$K$4","v":1263.0055704001513},{"$f":"AR92*Control!$K$4","v":1288.2328474467051},{"$f":"AS92*Control!$K$4","v":1313.6804295836916},{"$f":"AT92*Control!$K$4","v":1346.6223264270504},{"$f":"AU92*Control!$K$4","v":1380.7600163278089},{"$f":"AV92*Control!$K$4","v":1418.4170614367895},{"$f":"AW92*Control!$K$4","v":1457.1436845705227},{"$f":"AX92*Control!$K$4","v":1503.606202591365},{"$f":"AY92*Control!$K$4","v":1551.1775426846566},{"$f":"AZ92*Control!$K$4","v":1602.5020439106011},{"$f":"BA92*Control!$K$4","v":1655.7453870024829},{"$f":"BB92*Control!$K$4","v":1718.0971713957372},{"$f":"BC92*Control!$K$4","v":1760.6929111147522},{"$f":"BD92*Control!$K$4","v":1793.7278821419673},{"$f":"BE92*Control!$K$4","v":1829.2781151903857},{"$f":"BF92*Control!$K$4","v":1876.1870909880643},{"$f":"BG92*Control!$K$4","v":1928.0008412319103},{"$f":"BH92*Control!$K$4","v":2007.3892858820573},{"$f":"BI92*Control!$K$4","v":2103.5856125181754},{"$f":"BJ92*Control!$K$4","v":2215.873697018912},{"$f":"BK92*Control!$K$4","v":828.21061608094192},{"$f":"BL92*Control!$K$4","v":828.21061608094192},{"$f":"BM92*Control!$K$4","v":825.94774554520166},{"$f":"BN92*Control!$K$4","v":828.21061608094192},{"$f":"BO92*Control!$K$4","v":828.21061608094192},{"$f":"BP92*Control!$K$4","v":828.21061608094192},{"$f":"BQ92*Control!$K$4","v":825.94774554520166},{"$f":"BR92*Control!$K$4","v":828.21061608094192},{"$f":"BS92*Control!$K$4","v":828.21061608094192},{"$f":"BT92*Control!$K$4","v":828.21061608094192},{"$f":"BU92*Control!$K$4","v":825.94774554520166},{"$f":"BV92*Control!$K$4","v":828.21061608094192},{"$f":"BW92*Control!$K$4","v":828.21061608094192},{"$f":"BX92*Control!$K$4","v":828.21061608094192},{"$f":"BY92*Control!$K$4","v":825.94774554520166},{"$f":"BZ92*Control!$K$4","v":828.21061608094192},{"$f":"CA92*Control!$K$4","v":828.21061608094192},{"$f":"CB92*Control!$K$4","v":828.21061608094192},{"$f":"CC92*Control!$K$4","v":828.21061608094192},{"$f":"CD92*Control!$K$4","v":828.21061608094192},{"$f":"CE92*Control!$K$4","v":828.21061608094192},{"$f":"CF92*Control!$K$4","v":828.21061608094192},{"$f":"CG92*Control!$K$4","v":828.21061608094192},{"$f":"CH92*Control!$K$4","v":828.21061608094192},{"$f":"CI92*Control!$K$4","v":828.21061608094192},{"$f":"CJ92*Control!$K$4","v":828.21061608094192},{"$f":"CK92*Control!$K$4","v":828.21061608094192},{"$f":"CL92*Control!$K$4","v":828.21061608094192},{"$f":"CM92*Control!$K$4","v":828.21061608094192},{"$f":"CN92*Control!$K$4","v":828.21061608094192},{"$f":"CO92*Control!$K$4","v":828.21061608094192},{"$f":"CP92*Control!$K$4","v":828.21061608094192},{"$f":"CQ92*Control!$K$4","v":828.21061608094192},{"$f":"CR92*Control!$K$4","v":828.21061608094192},{"$f":"CS92*Control!$K$4","v":828.21061608094192},{"$f":"CT92*Control!$K$4","v":828.21061608094192},{"$f":"CU92*Control!$K$4","v":828.21061608094192},{"$f":"CV92*Control!$K$4","v":828.21061608094192},{"$f":"CW92*Control!$K$4","v":828.21061608094192}]
[]
["NPV Commercial running costs",2021,{"$f":"B123+1","v":2022},{"$f":"C123+1","v":2023},{"$f":"D123+1","v":2024},{"$f":"E123+1","v":2025},{"$f":"F123+1","v":2026},{"$f":"G123+1","v":2027},{"$f":"H123+1","v":2028},{"$f":"I123+1","v":2029},{"$f":"J123+1","v":2030},{"$f":"K123+1","v":2031},{"$f":"L123+1","v":2032},{"$f":"M123+1","v":2033},{"$f":"N123+1","v":2034},{"$f":"O123+1","v":2035},{"$f":"P123+1","v":2036},{"$f":"Q123+1","v":2037},{"$f":"R123+1","v":2038},{"$f":"S123+1","v":2039},{"$f":"T123+1","v":2040},{"$f":"U123+1","v":2041},{"$f":"V123+1","v":2042},{"$f":"W123+1","v":2043},{"$f":"X123+1","v":2044},{"$f":"Y123+1","v":2045},{"$f":"Z123+1","v":2046},{"$f":"AA123+1","v":2047},{"$f":"AB123+1","v":2048},{"$f":"AC123+1","v":2049},{"$f":"AD123+1","v":2050},{"$f":"AE123+1","v":2051},{"$f":"AF123+1","v":2052},{"$f":"AG123+1","v":2053},{"$f":"AH123+1","v":2054},{"$f":"AI123+1","v":2055},{"$f":"AJ123+1","v":2056},{"$f":"AK123+1","v":2057},{"$f":"AL123+1","v":2058},{"$f":"AM123+1","v":2059},{"$f":"AN123+1","v":2060},{"$f":"AO123+1","v":2061},{"$f":"AP123+1","v":2062},{"$f":"AQ123+1","v":2063},{"$f":"AR123+1","v":2064},{"$f":"AS123+1","v":2065},{"$f":"AT123+1","v":2066},{"$f":"AU123+1","v":2067},{"$f":"AV123+1","v":2068},{"$f":"AW123+1","v":2069},{"$f":"AX123+1","v":2070},{"$f":"AY123+1","v":2071},{"$f":"AZ123+1","v":2072},{"$f":"BA123+1","v":2073},{"$f":"BB123+1","v":2074},{"$f":"BC123+1","v":2075},{"$f":"BD123+1","v":2076},{"$f":"BE123+1","v":2077},{"$f":"BF123+1","v":2078},{"$f":"BG123+1","v":2079},{"$f":"BH123+1","v":2080},{"$f":"BI123+1","v":2081},{"$f":"BJ123+1","v":2082},{"$f":"BK123+1","v":2083},{"$f":"BL123+1","v":2084},{"$f":"BM123+1","v":2085},{"$f":"BN123+1","v":2086},{"$f":"BO123+1","v":2087},{"$f":"BP123+1","v":2088},{"$f":"BQ123+1","v":2089},{"$f":"BR123+1","v":2090},{"$f":"BS123+1","v":2091},{"$f":"BT123+1","v":2092},{"$f":"BU123+1","v":2093},{"$f":"BV123+1","v":2094},{"$f":"BW123+1","v":2095},{"$f":"BX123+1","v":2096},{"$f":"BY123+1","v":2097},{"$f":"BZ123+1","v":2098},{"$f":"CA123+1","v":2099},{"$f":"CB123+1","v":2100},{"$f":"CC123+1","v":2101},{"$f":"CD123+1","v":2102},{"$f":"CE123+1","v":2103},{"$f":"CF123+1","v":2104},{"$f":"CG123+1","v":2105},{"$f":"CH123+1","v":2106},{"$f":"CI123+1","v":2107},{"$f":"CJ123+1","v":2108},{"$f":"CK123+1","v":2109},{"$f":"CL123+1","v":2110},{"$f":"CM123+1","v":2111},{"$f":"CN123+1","v":2112},{"$f":"CO123+1","v":2113},{"$f":"CP123+1","v":2114},{"$f":"CQ123+1","v":2115},{"$f":"CR123+1","v":2116},{"$f":"CS123+1","v":2117},{"$f":"CT123+1","v":2118},{"$f":"CU123+1","v":2119},{"$f":"CV123+1","v":2120}]
["Cooking",{"$f":"B95*Control!$K$5","v":11.94158413540057},{"$f":"C95*Control!$K$5","v":20.130211365525078},{"$f":"D95*Control!$K$5","v":13.694722260549334},{"$f":"E95*Control!$K$5","v":22.068233555402937},{"$f":"F95*Control!$K$5","v":14.613340681130794},{"$f":"G95*Control!$K$5","v":16.718040434874467},{"$f":"H95*Control!$K$5","v":26.742811209525414},{"$f":"I95*Control!$K$5","v":29.644471131640245},{"$f":"J95*Control!$K$5","v":43.495035300147002},{"$f":"K95*Control!$K$5","v":38.306227851720173},{"$f":"L95*Control!$K$5","v":24.41482541770058},{"$f":"M95*Control!$K$5","v":24.272323817590397},{"$f":"N95*Control!$K$5","v":35.320316389489477},{"$f":"O95*Control!$K$5","v":44.726811461060201},{"$f":"P95*Control!$K$5","v":20.547286738224773},{"$f":"Q95*Control!$K$5","v":24.788193800501094},{"$f":"R95*Control!$K$5","v":31.002861311166154},{"$f":"S95*Control!$K$5","v":39.90094627927602},{"$f":"T95*Control!$K$5","v":46.928145525126951},{"$f":"U95*Control!$K$5","v":50.369456500000659},{"$f":"V95*Control!$K$5","v":54.694357553967876},{"$f":"W95*Control!$K$5","v":64.266988430528926},{"$f":"X95*Control!$K$5","v":72.387292232984976},{"$f":"Y95*Control!$K$5","v":77.36331367813537},{"$f":"Z95*Control!$K$5","v":82.920462207187953},{"$f":"AA95*Control!$K$5","v":86.0744014926848},{"$f":"AB95*Control!$K$5","v":88.404004373758625},{"$f":"AC95*Control!$K$5","v":90.115612197924662},{"$f":"AD95*Control!$K$5","v":91.572887906932834},{"$f":"AE95*Control!$K$5","v":94.109619616246405},{"$f":"AF95*Control!$K$5","v":94.180233872330973},{"$f":"AG95*Control!$K$5","v":96.621631036504624},{"$f":"AH95*Control!$K$5","v":96.738817567945205},{"$f":"AI95*Control!$K$5","v":96.856013860008304},{"$f":"AJ95*Control!$K$5","v":96.97321990293328},{"$f":"AK95*Control!$K$5","v":97.090435686969258},{"$f":"AL95*Control!$K$5","v":97.207661202375306},{"$f":"AM95*Control!$K$5","v":97.324896439419746},{"$f":"AN95*Control!$K$5","v":97.442141388381245},{"$f":"AO95*Control!$K$5","v":97.559396039547593},{"$f":"AP95*Control!$K$5","v":97.676660383216884},{"$f":"AQ95*Control!$K$5","v":97.793934409696334},{"$f":"AR95*Control!$K$5","v":97.911218109303391},{"$f":"AS95*Control!$K$5","v":98.02851147236467},{"$f":"AT95*Control!$K$5","v":98.145814489216932},{"$f":"AU95*Control!$K$5","v":98.263127150206273},{"$f":"AV95*Control!$K$5","v":98.380449445688612},{"$f":"AW95*Control!$K$5","v":98.4977813660294},{"$f":"AX95*Control!$K$5","v":98.615122901603854},{"$f":"AY95*Control!$K$5","v":98.732474042796596},{"$f":"AZ95*Control!$K$5","v":98.849834780002212},{"$f":"BA95*Control!$K$5","v":98.967205103624508},{"$f":"BB95*Control!$K$5","v":99.08458500407724},{"$f":"BC95*Control!$K$5","v":99.201974471783316},{"$f":"BD95*Control!$K$5","v":99.319373497175789},{"$f":"BE95*Control!$K$5","v":99.436782070696779},{"$f":"BF95*Control!$K$5","v":99.554200182798226},{"$f":"BG95*Control!$K$5","v":99.671627823941478},{"$f":"BH95*Control!$K$5","v":99.789064984597658},{"$f":"BI95*Control!$K$5","v":99.906511655246987},{"$f":"BJ95*Control!$K$5","v":100.02396782637977},{"$f":"BK95*Control!$K$5","v":100.14143348849528},{"$f":"BL95*Control!$K$5","v":100.25890863210275},{"$f":"BM95*Control!$K$5","v":100.37639324772043},{"$f":"BN95*Control!$K$5","v":100.49388732587659},{"$f":"BO95*Control!$K$5","v":100.61139085710842},{"$f":"BP95*Control!$K$5","v":100.72890383196307},{"$f":"BQ95*Control!$K$5","v":100.84642624099673},{"$f":"BR95*Control!$K$5","v":100.96395807477548},{"$f":"BS95*Control!$K$5","v":101.08149932387424},{"$f":"BT95*Control!$K$5","v":101.19904997887795},{"$f":"BU95*Control!$K$5","v":101.31661003038059},{"$f":"BV95*Control!$K$5","v":101.43417946898576},{"$f":"BW95*Control!$K$5","v":101.55175828530619},{"$f":"BX95*Control!$K$5","v":101.66934646996435},{"$f":"BY95*Control!$K$5","v":101.78694401359168},{"$f":"BZ95*Control!$K$5","v":101.90455090682946},{"$f":"CA95*Control!$K$5","v":102.02216714032788},{"$f":"CB95*Control!$K$5","v":102.13979270474684},{"$f":"CC95*Control!$K$5","v":102.2574275907553},{"$f":"CD95*Control!$K$5","v":102.2574275907553},{"$f":"CE95*Control!$K$5","v":102.2574275907553},{"$f":"CF95*Control!$K$5","v":102.2574275907553},{"$f":"CG95*Control!$K$5","v":102.2574275907553},{"$f":"CH95*Control!$K$5","v":102.2574275907553},{"$f":"CI95*Control!$K$5","v":102.2574275907553},{"$f":"CJ95*Control!$K$5","v":102.2574275907553},{"$f":"CK95*Control!$K$5","v":102.2574275907553},{"$f":"CL95*Control!$K$5","v":102.2574275907553},{"$f":"CM95*Control!$K$5","v":102.2574275907553},{"$f":"CN95*Control!$K$5","v":102.2574275907553},{"$f":"CO95*Control!$K$5","v":102.2574275907553},{"$f":"CP95*Control!$K$5","v":102.2574275907553},{"$f":"CQ95*Control!$K$5","v":102.2574275907553},{"$f":"CR95*Control!$K$5","v":102.2574275907553},{"$f":"CS95*Control!$K$5","v":102.2574275907553},{"$f":"CT95*Control!$K$5","v":102.2574275907553},{"$f":"CU95*Control!$K$5","v":102.2574275907553},{"$f":"CV95*Control!$K$5","v":102.2574275907553},{"$f":"CW95*Control!$K$5","v":102.2574275907553}]
["Hot water",{"$f":"B96*Control!$K$5","v":-163.18345598368742},{"$f":"C96*Control!$K$5","v":-12.767060877581329},{"$f":"D96*Control!$K$5","v":-121.17816382034505},{"$f":"E96*Control!$K$5","v":20.135376604492212},{"$f":"F96*Control!$K$5","v":-104.44644881502001},{"$f":"G96*Control!$K$5","v":-67.160797942464541},{"$f":"H96*Control!$K$5","v":104.5760641664866},{"$f":"I96*Control!$K$5","v":164.77673374868812},{"$f":"J96*Control!$K$5","v":404.75646811288095},{"$f":"K96*Control!$K$5","v":328.44965182119523},{"$f":"L96*Control!$K$5","v":89.247103704443887},{"$f":"M96*Control!$K$5","v":89.05586429586792},{"$f":"N96*Control!$K$5","v":277.09376234777056},{"$f":"O96*Control!$K$5","v":439.96833374944225},{"$f":"P96*Control!$K$5","v":24.168908701793942},{"$f":"Q96*Control!$K$5","v":98.231198266114447},{"$f":"R96*Control!$K$5","v":205.70240162270341},{"$f":"S96*Control!$K$5","v":358.85226614066659},{"$f":"T96*Control!$K$5","v":479.50186968223375},{"$f":"U96*Control!$K$5","v":538.21980902994085},{"$f":"V96*Control!$K$5","v":613.17549370684878},{"$f":"W96*Control!$K$5","v":778.15028846852692},{"$f":"X96*Control!$K$5","v":918.11096642941118},{"$f":"Y96*Control!$K$5","v":1004.0217950830272},{"$f":"Z96*Control!$K$5","v":1099.8459874554881},{"$f":"AA96*Control!$K$5","v":1155.8926163989759},{"$f":"AB96*Control!$K$5","v":1197.806730563618},{"$f":"AC96*Control!$K$5","v":1229.1317736290612},{"$f":"AD96*Control!$K$5","v":1256.094351401272},{"$f":"AE96*Control!$K$5","v":1301.6086841752244},{"$f":"AF96*Control!$K$5","v":1305.2494489558692},{"$f":"AG96*Control!$K$5","v":1349.5731109170499},{"$f":"AH96*Control!$K$5","v":1353.9823804148646},{"$f":"AI96*Control!$K$5","v":1358.3764730388341},{"$f":"AJ96*Control!$K$5","v":1362.755486825761},{"$f":"AK96*Control!$K$5","v":1367.1195191841061},{"$f":"AL96*Control!$K$5","v":1371.4686668980162},{"$f":"AM96*Control!$K$5","v":1375.8030261313095},{"$f":"AN96*Control!$K$5","v":1380.1226924314626},{"$f":"AO96*Control!$K$5","v":1384.4277607335373},{"$f":"AP96*Control!$K$5","v":1388.7183253641201},{"$f":"AQ96*Control!$K$5","v":1392.9944800451995},{"$f":"AR96*Control!$K$5","v":1397.2563178980533},{"$f":"AS96*Control!$K$5","v":1401.5039314470773},{"$f":"AT96*Control!$K$5","v":1405.7374126236198},{"$f":"AU96*Control!$K$5","v":1409.9568527697718},{"$f":"AV96*Control!$K$5","v":1414.1623426421374},{"$f":"AW96*Control!$K$5","v":1418.3539724155876},{"$f":"AX96*Control!$K$5","v":1422.5318316869807},{"$f":"AY96*Control!$K$5","v":1426.6960094788587},{"$f":"AZ96*Control!$K$5","v":1430.8465942431362},{"$f":"BA96*Control!$K$5","v":1434.9836738647355},{"$f":"BB96*Control!$K$5","v":1439.1073356652348},{"$f":"BC96*Control!$K$5","v":1443.2176664064564},{"$f":"BD96*Control!$K$5","v":1447.3147522940687},{"$f":"BE96*Control!$K$5","v":1451.3986789811304},{"$f":"BF96*Control!$K$5","v":1455.4695315716367},{"$f":"BG96*Control!$K$5","v":1459.5273946240304},{"$f":"BH96*Control!$K$5","v":1463.5723521547015},{"$f":"BI96*Control!$K$5","v":1467.6044876414433},{"$f":"BJ96*Control!$K$5","v":1471.6238840269166},{"$f":"BK96*Control!$K$5","v":1475.6306237220624},{"$f":"BL96*Control!$K$5","v":1479.6247886095155},{"$f":"BM96*Control!$K$5","v":1483.6064600469756},{"$f":"BN96*Control!$K$5","v":1487.5757188705811},{"$f":"BO96*Control!$K$5","v":1491.5326453982354},{"$f":"BP96*Control!$K$5","v":1495.4773194329364},{"$f":"BQ96*Control!$K$5","v":1499.4098202660584},{"$f":"BR96*Control!$K$5","v":1503.3302266806447},{"$f":"BS96*Control!$K$5","v":1507.2386169546426},{"$f":"BT96*Control!$K$5","v":1511.1350688641567},{"$f":"BU96*Control!$K$5","v":1515.0196596866438},{"$f":"BV96*Control!$K$5","v":1518.8924662041193},{"$f":"BW96*Control!$K$5","v":1522.7535647063164},{"$f":"BX96*Control!$K$5","v":1526.6030309938499},{"$f":"BY96*Control!$K$5","v":1530.4409403813352},{"$f":"BZ96*Control!$K$5","v":1534.2673677005132},{"$f":"CA96*Control!$K$5","v":1538.0823873033266},{"$f":"CB96*Control!$K$5","v":1541.8860730650047},{"$f":"CC96*Control!$K$5","v":1545.6784983871053},{"$f":"CD96*Control!$K$5","v":1547.4401774634755},{"$f":"CE96*Control!$K$5","v":1549.1905817937568},{"$f":"CF96*Control!$K$5","v":1550.9297835363243},{"$f":"CG96*Control!$K$5","v":1552.6578543877397},{"$f":"CH96*Control!$K$5","v":1554.3748655857059},{"$f":"CI96*Control!$K$5","v":1556.080887912005},{"$f":"CJ96*Control!$K$5","v":1557.7759916954158},{"$f":"CK96*Control!$K$5","v":1559.4602468146129},{"$f":"CL96*Control!$K$5","v":1561.133722701047},{"$f":"CM96*Control!$K$5","v":1562.7964883418081},{"$f":"CN96*Control!$K$5","v":1564.448612282468},{"$f":"CO96*Control!$K$5","v":1566.090162629908},{"$f":"CP96*Control!$K$5","v":1567.7212070551241},{"$f":"CQ96*Control!$K$5","v":1569.341812796019},{"$f":"CR96*Control!$K$5","v":1570.9520466601721},{"$f":"CS96*Control!$K$5","v":1572.5519750275948},{"$f":"CT96*Control!$K$5","v":1574.1416638534656},{"$f":"CU96*Control!$K$5","v":1575.7211786708513},{"$f":"CV96*Control!$K$5","v":1577.2905845934056},{"$f":"CW96*Control!$K$5","v":1578.8499463180556}]
["Space heating",{"$f":"B98*Control!$K$5","v":3870.0916994254744},{"$f":"C98*Control!$K$5","v":4563.5830396021292},{"$f":"D98*Control!$K$5","v":4169.3239904950169},{"$f":"E98*Control!$K$5","v":4476.1386264768844},{"$f":"F98*Control!$K$5","v":4067.9490888816399},{"$f":"G98*Control!$K$5","v":4134.0691176544597},{"$f":"H98*Control!$K$5","v":4604.4433683169109},{"$f":"I98*Control!$K$5","v":5016.9820973986289},{"$f":"J98*Control!$K$5","v":5790.4943537411446},{"$f":"K98*Control!$K$5","v":5818.9898053831994},{"$f":"L98*Control!$K$5","v":4912.4698699950031},{"$f":"M98*Control!$K$5","v":4889.3363063352554},{"$f":"N98*Control!$K$5","v":5380.6197382480532},{"$f":"O98*Control!$K$5","v":5876.5242538994298},{"$f":"P98*Control!$K$5","v":4384.7628970344567},{"$f":"Q98*Control!$K$5","v":4582.1185043016294},{"$f":"R98*Control!$K$5","v":4877.4544861548311},{"$f":"S98*Control!$K$5","v":5314.1613217722152},{"$f":"T98*Control!$K$5","v":5632.0400372199583},{"$f":"U98*Control!$K$5","v":5733.3733458183842},{"$f":"V98*Control!$K$5","v":5920.4571292784294},{"$f":"W98*Control!$K$5","v":6405.8393682227224},{"$f":"X98*Control!$K$5","v":6806.067945307329},{"$f":"Y98*Control!$K$5","v":7024.7437765944132},{"$f":"Z98*Control!$K$5","v":7275.1258379034798},{"$f":"AA98*Control!$K$5","v":7436.628276171883},{"$f":"AB98*Control!$K$5","v":7552.1375810371883},{"$f":"AC98*Control!$K$5","v":7633.4844885103439},{"$f":"AD98*Control!$K$5","v":7700.9227029600979},{"$f":"AE98*Control!$K$5","v":7831.2505954496601},{"$f":"AF98*Control!$K$5","v":7836.1091040935189},{"$f":"AG98*Control!$K$5","v":7976.4677332427627},{"$f":"AH98*Control!$K$5","v":7983.9833245076052},{"$f":"AI98*Control!$K$5","v":7991.4971020954281},{"$f":"AJ98*Control!$K$5","v":7999.009072325849},{"$f":"AK98*Control!$K$5","v":8006.5192414990952},{"$f":"AL98*Control!$K$5","v":8014.0276158960751},{"$f":"AM98*Control!$K$5","v":8021.5342017784042},{"$f":"AN98*Control!$K$5","v":8029.0390053885067},{"$f":"AO98*Control!$K$5","v":8036.5420329496219},{"$f":"AP98*Control!$K$5","v":8044.0432906659153},{"$f":"AQ98*Control!$K$5","v":8051.542784722481},{"$f":"AR98*Control!$K$5","v":8059.0405212854475},{"$f":"AS98*Control!$K$5","v":8066.5365065019841},{"$f":"AT98*Control!$K$5","v":8074.030746500408},{"$f":"AU98*Control!$K$5","v":8081.5232473901951},{"$f":"AV98*Control!$K$5","v":8089.0140152620716},{"$f":"AW98*Control!$K$5","v":8096.5030561880385},{"$f":"AX98*Control!$K$5","v":8103.9903762214553},{"$f":"AY98*Control!$K$5","v":8111.475981397065},{"$f":"AZ98*Control!$K$5","v":8118.9598777310921},{"$f":"BA98*Control!$K$5","v":8126.4420712212341},{"$f":"BB98*Control!$K$5","v":8133.9225678467928},{"$f":"BC98*Control!$K$5","v":8141.4013735686549},{"$f":"BD98*Control!$K$5","v":8148.8784943294077},{"$f":"BE98*Control!$K$5","v":8156.3539360533441},{"$f":"BF98*Control!$K$5","v":8163.827704646551},{"$f":"BG98*Control!$K$5","v":8171.2998059969486},{"$f":"BH98*Control!$K$5","v":8178.7702459743523},{"$f":"BI98*Control!$K$5","v":8186.2390304304981},{"$f":"BJ98*Control!$K$5","v":8193.7061651991498},{"$f":"BK98*Control!$K$5","v":8201.1716560960904},{"$f":"BL98*Control!$K$5","v":8208.6355089192366},{"$f":"BM98*Control!$K$5","v":8216.0977294486238},{"$f":"BN98*Control!$K$5","v":8223.5583234465321},{"$f":"BO98*Control!$K$5","v":8231.0172966574719},{"$f":"BP98*Control!$K$5","v":8238.4746548082912},{"$f":"BQ98*Control!$K$5","v":8245.9304036081867},{"$f":"BR98*Control!$K$5","v":8253.3845487487833},{"$f":"BS98*Control!$K$5","v":8260.837095904164},{"$f":"BT98*Control!$K$5","v":8268.2880507309528},{"$f":"BU98*Control!$K$5","v":8275.7374188683207},{"$f":"BV98*Control!$K$5","v":8283.1852059380999},{"$f":"BW98*Control!$K$5","v":8290.6314175447496},{"$f":"BX98*Control!$K$5","v":8298.0760592755087},{"$f":"BY98*Control!$K$5","v":8305.5191367003499},{"$f":"BZ98*Control!$K$5","v":8312.9606553721133},{"$f":"CA98*Control!$K$5","v":8320.4006208264873},{"$f":"CB98*Control!$K$5","v":8327.8390385821222},{"$f":"CC98*Control!$K$5","v":8335.2759141406186},{"$f":"CD98*Control!$K$5","v":8335.987278550665},{"$f":"CE98*Control!$K$5","v":8336.6965800039216},{"$f":"CF98*Control!$K$5","v":8337.4038244829626},{"$f":"CG98*Control!$K$5","v":8338.1090179530147},{"$f":"CH98*Control!$K$5","v":8338.8121663620041},{"$f":"CI98*Control!$K$5","v":8339.5132756406074},{"$f":"CJ98*Control!$K$5","v":8340.2123517023028},{"$f":"CK98*Control!$K$5","v":8340.9094004434191},{"$f":"CL98*Control!$K$5","v":8341.6044277431865},{"$f":"CM98*Control!$K$5","v":8342.297439463784},{"$f":"CN98*Control!$K$5","v":8342.9884414503922},{"$f":"CO98*Control!$K$5","v":8343.6774395312386},{"$f":"CP98*Control!$K$5","v":8344.3644395176507},{"$f":"CQ98*Control!$K$5","v":8345.0494472041028},{"$f":"CR98*Control!$K$5","v":8345.7324683682637},{"$f":"CS98*Control!$K$5","v":8346.4135087710492},{"$f":"CT98*Control!$K$5","v":8347.0925741566662},{"$f":"CU98*Control!$K$5","v":8347.7696702526646},{"$f":"CV98*Control!$K$5","v":8348.4448027699855},{"$f":"CW98*Control!$K$5","v":8349.1179774030043}]
["Service charge",{"$f":"B99*Control!$K$5","v":2893.5486356193251},{"$f":"C99*Control!$K$5","v":2893.5486356193251},{"$f":"D99*Control!$K$5","v":2677.182661370658},{"$f":"E99*Control!$K$5","v":2694.2084046323748},{"$f":"F99*Control!$K$5","v":2837.7051631565455},{"$f":"G99*Control!$K$5","v":2845.213088285941},{"$f":"H99*Control!$K$5","v":2888.4633522748877},{"$f":"I99*Control!$K$5","v":2995.6047897969102},{"$f":"J99*Control!$K$5","v":3102.8044922900658},{"$f":"K99*Control!$K$5","v":3163.9114174535907},{"$f":"L99*Control!$K$5","v":3195.1265891590001},{"$f":"M99*Control!$K$5","v":3203.064036568077},{"$f":"N99*Control!$K$5","v":3350.4787934960395},{"$f":"O99*Control!$K$5","v":3486.2077311829285},{"$f":"P99*Control!$K$5","v":1695.7547562067134},{"$f":"Q99*Control!$K$5","v":1691.1215464903019},{"$f":"R99*Control!$K$5","v":1695.7547562067134},{"$f":"S99*Control!$K$5","v":1695.7547562067134},{"$f":"T99*Control!$K$5","v":1695.7547562067134},{"$f":"U99*Control!$K$5","v":1691.1215464903019},{"$f":"V99*Control!$K$5","v":1695.7547562067134},{"$f":"W99*Control!$K$5","v":1695.7547562067134},{"$f":"X99*Control!$K$5","v":1695.7547562067134},{"$f":"Y99*Control!$K$5","v":1691.1215464903019},{"$f":"Z99*Control!$K$5","v":1695.7547562067134},{"$f":"AA99*Control!$K$5","v":1695.7547562067134},{"$f":"AB99*Control!$K$5","v":1695.7547562067134},{"$f":"AC99*Control!$K$5","v":1691.1215464903019},{"$f":"AD99*Control!$K$5","v":1695.7547562067134},{"$f":"AE99*Control!$K$5","v":1695.7547562067134},{"$f":"AF99*Control!$K$5","v":1695.7547562067134},{"$f":"AG99*Control!$K$5","v":1691.1215464903019},{"$f":"AH99*Control!$K$5","v":1695.7547562067134},{"$f":"AI99*Control!$K$5","v":1695.7547562067134},{"$f":"AJ99*Control!$K$5","v":1695.7547562067134},{"$f":"AK99*Control!$K$5","v":1691.1215464903019},{"$f":"AL99*Control!$K$5","v":1695.7547562067134},{"$f":"AM99*Control!$K$5","v":1695.7547562067134},{"$f":"AN99*Control!$K$5","v":1695.7547562067134},{"$f":"AO99*Control!$K$5","v":1691.1215464903019},{"$f":"AP99*Control!$K$5","v":1695.7547562067134},{"$f":"AQ99*Control!$K$5","v":1695.7547562067134},{"$f":"AR99*Control!$K$5","v":1695.7547562067134},{"$f":"AS99*Control!$K$5","v":1691.1215464903019},{"$f":"AT99*Control!$K$5","v":1695.7547562067134},{"$f":"AU99*Control!$K$5","v":1695.7547562067134},{"$f":"AV99*Control!$K$5","v":1695.7547562067134},{"$f":"AW99*Control!$K$5","v":1691.1215464903019},{"$f":"AX99*Control!$K$5","v":1695.7547562067134},{"$f":"AY99*Control!$K$5","v":1695.7547562067134},{"$f":"AZ99*Control!$K$5","v":1695.7547562067134},{"$f":"BA99*Control!$K$5","v":1691.1215464903019},{"$f":"BB99*Control!$K$5","v":1695.7547562067134},{"$f":"BC99*Control!$K$5","v":1695.7547562067134},{"$f":"BD99*Control!$K$5","v":1695.7547562067134},{"$f":"BE99*Control!$K$5","v":1691.1215464903019},{"$f":"BF99*Control!$K$5","v":1695.7547562067134},{"$f":"BG99*Control!$K$5","v":1695.7547562067134},{"$f":"BH99*Control!$K$5","v":1695.7547562067134},{"$f":"BI99*Control!$K$5","v":1691.1215464903019},{"$f":"BJ99*Control!$K$5","v":1695.7547562067134},{"$f":"BK99*Control!$K$5","v":1695.7547562067134},{"$f":"BL99*Control!$K$5","v":1695.7547562067134},{"$f":"BM99*Control!$K$5","v":1691.1215464903019},{"$f":"BN99*Control!$K$5","v":1695.7547562067134},{"$f":"BO99*Control!$K$5","v":1695.7547562067134},{"$f":"BP99*Control!$K$5","v":1695.7547562067134},{"$f":"BQ99*Control!$K$5","v":1691.1215464903019},{"$f":"BR99*Control!$K$5","v":1695.7547562067134},{"$f":"BS99*Control!$K$5","v":1695.7547562067134},{"$f":"BT99*Control!$K$5","v":1695.7547562067134},{"$f":"BU99*Control!$K$5","v":1691.1215464903019},{"$f":"BV99*Control!$K$5","v":1695.7547562067134},{"$f":"BW99*Control!$K$5","v":1695.7547562067134},{"$f":"BX99*Control!$K$5","v":1695.7547562067134},{"$f":"BY99*Control!$K$5","v":1691.1215464903019},{"$f":"BZ99*Control!$K$5","v":1695.7547562067134},{"$f":"CA99*Control!$K$5","v":1695.7547562067134},{"$f":"CB99*Control!$K$5","v":1695.7547562067134},{"$f":"CC99*Control!$K$5","v":1695.7547562067134},{"$f":"CD99*Control!$K$5","v":1695.7547562067134},{"$f":"CE99*Control!$K$5","v":1695.7547562067134},{"$f":"CF99*Control!$K$5","v":1695.7547562067134},{"$f":"CG99*Control!$K$5","v":1695.7547562067134},{"$f":"CH99*Control!$K$5","v":1695.7547562067134},{"$f":"CI99*Control!$K$5","v":1695.7547562067134},{"$f":"CJ99*Control!$K$5","v":1695.7547562067134},{"$f":"CK99*Control!$K$5","v":1695.7547562067134},{"$f":"CL99*Control!$K$5","v":1695.7547562067134},{"$f":"CM99*Control!$K$5","v":1695.7547562067134},{"$f":"CN99*Control!$K$5","v":1695.7547562067134},{"$f":"CO99*Control!$K$5","v":1695.7547562067134},{"$f":"CP99*Control!$K$5","v":1695.7547562067134},{"$f":"CQ99*Control!$K$5","v":1695.7547562067134},{"$f":"CR99*Control!$K$5","v":1695.7547562067134},{"$f":"CS99*Control!$K$5","v":1695.7547562067134},{"$f":"CT99*Control!$K$5","v":1695.7547562067134},{"$f":"CU99*Control!$K$5","v":1695.7547562067134},{"$f":"CV99*Control!$K$5","v":1695.7547562067134},{"$f":"CW99*Control!$K$5","v":1695.7547562067134}]

{"sheet":"Res-Appliance class","index":14,"n_rows":46,"n_cols":54,"rows_kept":46,"cut":false,"hidden":false,"merged":[]}
["Cooktops","<6 GJ",null,null,null,null,null,null,null,null,null,"Cooktops plus hot water","6-20 GJ",null,null,null,null,null,null,null,null,null,"C+HW+Room heating","20-35 GJ",null,null,null,null,null,null,null,null,null,"C+HW+Space heating",">35GJ",null,null,null,null,null,null,null,null,null,"TOTAL"]
["LGA",2012,2013,2014,2015,2016,2017,2018,2019,2020,null,"LGA",2012,2013,2014,2015,2016,2017,2018,2019,2020,null,"LGA",2012,2013,2014,2015,2016,2017,2018,2019,2020,null,"LGA",2012,2013,2014,2015,2016,2017,2018,2019,2020,null,"LGA",2012,2013,2014,2015,2016,2017,2018,2019,2020]
["Bass Coast (S)",410,404,473,500,514,586,679,719,766,null,"Bass Coast (S)",441,583,672,693,785,805,880,939,926,null,"Bass Coast (S)",347,410,461,462,545,572,640,673,710,null,"Bass Coast (S)",476,498,556,718,757,891,923,1094,1284,null,"Bass Coast (S)",{"$f":"B3+M3+X3+AI3","v":1674},{"$f":"C3+N3+Y3+AJ3","v":1895},2162,2373,2601,2854,3122,3425,3686]
["Bayside (C)",1772,1928,1984,1951,2103,2199,2403,2630,2440,null,"Bayside (C)",4295,4695,5022,4827,5247,5313,5820,5979,5813,null,"Bayside (C)",4474,5107,5338,4554,5000,4706,4933,4926,4561,null,"Bayside (C)",25462,24403,24049,25217,24288,24710,23951,23767,24647,null,"Bayside (C)",{"$f":"B4+M4+X4+AI4","v":36003},{"$f":"C4+N4+Y4+AJ4","v":36133},{"$f":"D4+O4+Z4+AK4","v":36393},{"$f":"E4+P4+AA4+AL4","v":36549},{"$f":"F4+Q4+AB4+AM4","v":36638},{"$f":"G4+R4+AC4+AN4","v":36928},{"$f":"H4+S4+AD4+AO4","v":37107},{"$f":"I4+T4+AE4+AP4","v":37302},{"$f":"J4+U4+AF4+AQ4","v":37461}]
["Boroondara (C)",5223,5407,5531,5458,5781,5845,6275,6378,6441,null,"Boroondara (C)",7945,8753,9290,8799,9512,9537,10134,10592,10165,null,"Boroondara (C)",7212,7885,8390,7328,7738,7391,7700,7855,7491,null,"Boroondara (C)",41783,40441,39517,41144,39758,40276,39083,38509,39364,null,"Boroondara (C)",62163,62486,62728,62729,62789,63049,63192,63334,63461]
["Cardinia (S)",116,136,137,132,142,155,151,163,167,null,"Cardinia (S)",350,405,405,392,396,398,448,471,430,null,"Cardinia (S)",383,444,475,398,456,395,464,442,442,null,"Cardinia (S)",3134,3019,3014,3137,3077,3176,3073,3083,3139,null,"Cardinia (S)",3983,4004,4031,4059,4071,4124,4136,4159,4178]
["Casey (C)",235,215,257,254,287,297,330,375,377,null,"Casey (C)",1114,1226,1340,1249,1404,1423,1622,1719,1665,null,"Casey (C)",1594,1949,2051,1761,1882,1850,2070,2148,1992,null,"Casey (C)",9571,9151,8963,9426,9165,9292,8903,8788,9079,null,"Casey (C)",12514,12541,12611,12690,12738,12862,12925,13030,13113]
["Frankston (C)",0,0,0,0,0,0,0,0,0,null,"Frankston (C)",0,0,0,0,0,0,0,0,0,null,"Frankston (C)",1,1,0,1,0,0,0,1,0,null,"Frankston (C)",0,0,1,0,1,1,1,0,1,null,"Frankston (C)",1,1,1,1,1,1,1,1,1]
["Glen Eira (C)",4680,4730,4855,4775,5110,5175,5485,5717,5579,null,"Glen Eira (C)",6550,7277,7816,7396,7998,8299,8906,9443,9123,null,"Glen Eira (C)",6376,7107,7537,6411,7013,6591,7093,7043,6873,null,"Glen Eira (C)",32271,31036,30315,32220,30862,31258,30082,29750,30700,null,"Glen Eira (C)",49877,50150,50523,50802,50983,51323,51566,51953,52275]
["Greater Dandenong (C)",2169,2119,2299,2328,2593,2626,2825,2837,2829,null,"Greater Dandenong (C)",6410,7419,7801,7231,8081,8383,9481,9998,9569,null,"Greater Dandenong (C)",9505,10477,11159,9910,10816,10398,11197,11530,11093,null,"Greater Dandenong (C)",33190,31771,31120,33841,32674,33553,32210,32029,33456,null,"Greater Dandenong (C)",51274,51786,52379,53310,54164,54960,55713,56394,56947]
["Kingston (C)",2574,2663,2769,2861,3120,3310,3672,3969,3722,null,"Kingston (C)",7455,8304,8847,8306,9289,9603,10629,11353,11093,null,"Kingston (C)",8630,9784,10279,8804,9524,8918,9456,9388,8931,null,"Kingston (C)",31599,29832,29130,31580,30027,30646,29305,28998,30389,null,"Kingston (C)",50258,50583,51025,51551,51960,52477,53062,53708,54135]
["Knox (C)",1254,1351,1416,1465,1586,1873,2029,2147,2163,null,"Knox (C)",4686,5542,5936,5543,6371,6371,7275,7842,7748,null,"Knox (C)",7161,8380,9100,7632,8390,7694,8659,8782,8116,null,"Knox (C)",46374,44572,43790,46105,44871,45974,44338,44103,45291,null,"Knox (C)",59475,59845,60242,60745,61218,61912,62301,62874,63318]
["Manningham (C)",1045,1150,1142,1183,1388,1487,1796,1896,1955,null,"Manningham (C)",2894,3360,3592,3411,3921,4008,4725,5197,5224,null,"Manningham (C)",3995,4658,5192,4256,4719,4348,4997,5263,4996,null,"Manningham (C)",33468,32478,31840,33076,32093,32614,31349,30999,31702,null,"Manningham (C)",41402,41646,41766,41926,42121,42457,42867,43355,43877]
["Maroondah (C)",991,1053,1108,1142,1151,1202,1348,1455,1461,null,"Maroondah (C)",3001,3526,3800,3547,4108,4097,4729,4927,4933,null,"Maroondah (C)",4330,5065,5442,4681,5046,4566,5169,5159,4648,null,"Maroondah (C)",27820,26889,26691,28146,27630,28399,27227,27175,27956,null,"Maroondah (C)",36142,36533,37041,37516,37935,38264,38473,38716,38998]
["Melbourne (C)",262,258,245,244,264,261,268,264,275,null,"Melbourne (C)",191,178,203,186,200,213,228,233,236,null,"Melbourne (C)",149,166,152,159,153,153,162,139,123,null,"Melbourne (C)",182,180,195,211,205,203,204,223,234,null,"Melbourne (C)",784,782,795,800,822,830,862,859,868]
["Monash (C)",1855,1988,2088,2197,2395,2450,2714,2938,3315,null,"Monash (C)",5731,6759,7171,6663,7572,7844,8902,9595,9653,null,"Monash (C)",8448,9814,10443,8808,9683,9038,10044,10162,9564,null,"Monash (C)",46193,44127,43378,45814,44159,44938,42963,42542,43395,null,"Monash (C)",62227,62688,63080,63482,63809,64270,64623,65237,65927]
["Nillumbik (S)",0,0,0,0,0,0,0,1,1,null,"Nillumbik (S)",1,1,1,1,1,1,1,0,0,null,"Nillumbik (S)",0,1,0,0,1,0,1,1,1,null,"Nillumbik (S)",7,6,7,7,6,7,6,6,6,null,"Nillumbik (S)",8,8,8,8,8,8,8,8,8]
["Port Phillip (C)",8622,8974,9065,8896,9204,9300,9516,9660,9575,null,"Port Phillip (C)",10513,10845,11066,10632,10880,10881,11413,11586,11061,null,"Port Phillip (C)",5859,5991,6138,5605,5693,5487,5536,5385,5384,null,"Port Phillip (C)",12966,12126,11711,12855,12074,12467,11848,11688,12332,null,"Port Phillip (C)",37960,37936,37980,37988,37851,38135,38313,38319,38352]
["South Gippsland (S)",228,192,212,220,225,235,257,266,247,null,"South Gippsland (S)",313,378,460,417,465,483,516,526,532,null,"South Gippsland (S)",274,326,363,355,384,384,430,403,429,null,"South Gippsland (S)",554,577,585,749,770,835,833,917,1002,null,"South Gippsland (S)",1369,1473,1620,1741,1844,1937,2036,2112,2210]
["Stonnington (C)",8382,8541,8532,8482,8677,8874,9044,9265,9120,null,"Stonnington (C)",7110,7513,7806,7350,7694,7689,8089,8152,7845,null,"Stonnington (C)",4619,4845,4945,4701,4749,4596,4730,4663,4453,null,"Stonnington (C)",18498,17694,17372,18114,17432,17632,16896,16720,17325,null,"Stonnington (C)",38609,38593,38655,38647,38552,38791,38759,38800,38743]
["Whitehorse (C)",2148,2288,2465,2489,2680,2768,3106,3250,3332,null,"Whitehorse (C)",6467,7554,7911,7531,8262,8313,9376,9953,9854,null,"Whitehorse (C)",8413,9818,10428,8773,9538,8891,9643,9803,9249,null,"Whitehorse (C)",46929,44792,44046,46445,44934,45912,44113,43646,44563,null,"Whitehorse (C)",63957,64452,64850,65238,65414,65884,66238,66652,66998]
["Yarra Ranges (S)",1343,1408,1439,1378,1521,1593,1828,1934,1943,null,"Yarra Ranges (S)",3684,4318,4588,4260,4664,4726,5370,5791,5616,null,"Yarra Ranges (S)",4676,5453,5875,5175,5421,5019,5596,5595,5429,null,"Yarra Ranges (S)",34621,33557,33349,34957,34694,35640,34673,34664,35407,null,"Yarra Ranges (S)",44324,44736,45251,45770,46300,46978,47467,47984,48395]
["Multinet",43309,44805,46017,45955,48741,50236,53726,55864,55708,null,"Multinet",79151,88636,93727,88434,96850,98387,108544,114296,111486,null,"Multinet",86446,97681,103768,89774,96751,90997,98520,99361,94485,null,"Multinet",445098,427149,419629,443762,429477,438424,421981,418701,431272,null,"Multinet",654004,658271,663141,667925,671819,678044,682771,688222,692951]
[]
["Weights"]
["LGA","Cooktops","Cooktops plus hot water","C+HW+Room heating","C+HW+Space heating"]
["Bass Coast (S)",{"$f":"J3/$BB3","v":0.20781334780249594},{"$f":"U3/BB3","v":0.25122083559413999},{"$f":"AF3/BB3","v":0.19262072707542052},{"$f":"AQ3/BB3","v":0.34834508952794357}]
["Bayside (C)",{"$f":"J4/$BB4","v":6.5134406449374016E-2},{"$f":"U4/BB4","v":0.15517471503697178},{"$f":"AF4/BB4","v":0.12175329008835856},{"$f":"AQ4/BB4","v":0.65793758842529559}]
["Boroondara (C)",0.1014954066276926,0.16017711665432313,0.11804100156001324,0.62028647515797108]
["Cardinia (S)",3.9971278123504067E-2,0.10292005744375299,0.1057922450933461,0.75131641933939686]
["Casey (C)",2.8750095325249751E-2,0.1269732326698696,0.15191031800503318,0.69236635399984747]
["Frankston (C)",0,0,0,1]
["Glen Eira (C)",0.10672405547584887,0.17451936872309901,0.13147776183644189,0.58727881396461024]
["Greater Dandenong (C)",4.9677770558589567E-2,0.1680334345970815,0.19479516041231321,0.58749363443201574]
["Kingston (C)",6.8754040823866255E-2,0.20491364182137251,0.16497644776946521,0.56135586958529604]
["Knox (C)",3.4160902113143182E-2,0.12236646767112037,0.12817840108657885,0.71529422912915763]
["Manningham (C)",4.4556373498643935E-2,0.11906009982450942,0.11386375549832486,0.72251977117852173]
["Maroondah (C)",3.7463459664598187E-2,0.12649366634186368,0.11918559926150059,0.71685727473203753]
["Melbourne (C)",0.31682027649769584,0.27188940092165897,0.14170506912442396,0.2695852534562212]
["Monash (C)",5.0282888649566947E-2,0.14641952462572239,0.14506954661974608,0.65822804010496461]
["Nillumbik (S)",0.125,0,0.125,0.75]
["Port Phillip (C)",0.2496610346266166,0.28840738423028783,0.14038381309970796,0.32154776804338758]
["South Gippsland (S)",0.11176470588235295,0.24072398190045249,0.19411764705882353,0.45339366515837104]
["Stonnington (C)",0.23539736210412204,0.2024881914152234,0.11493689182562011,0.44717755465503445]
["Whitehorse (C)",4.9732827845607334E-2,0.14707901728409803,0.13804889698199946,0.6651392578882952]
["Yarra Ranges (S)",4.0148775699969004E-2,0.11604504597582395,0.11218101043496229,0.73162516788924481]

{"sheet":"CustomersRes","index":15,"n_rows":168,"n_cols":90,"rows_kept":168,"cut":false,"hidden":false,"merged":[]}
["Residential Customers",2012,{"$f":"B1+1","v":2013},{"$f":"C1+1","v":2014},2015,2016,2017,2018,2019,2020,{"$f":"J1+1","v":2021},{"$f":"K1+1","v":2022},2023,2024,2025,2026,2027,2028,2029,2030,2031,2032,2033,2034,2035,2036,2037,2038,2039,2040,2041,2042,2043,2044,2045,2046,2047,2048,2049,2050,2051,2052,2053,2054,2055,2056,2057,2058,2059,2060,2061,2062,2063,2064,2065,2066,2067,2068,2069,2070,2071,2072,2073,2074,2075,2076,2077,2078,2079,2080,{"$f":"BR1+1","v":2081},2082,2083,2084,2085,2086,{"$f":"BX1+1","v":2087},{"$f":"BY1+1","v":2088},{"$f":"BZ1+1","v":2089},{"$f":"CA1+1","v":2090},{"$f":"CB1+1","v":2091},{"$f":"CC1+1","v":2092},{"$f":"CD1+1","v":2093},{"$f":"CE1+1","v":2094},{"$f":"CF1+1","v":2095},{"$f":"CG1+1","v":2096},{"$f":"CH1+1","v":2097},{"$f":"CI1+1","v":2098},{"$f":"CJ1+1","v":2099},{"$f":"CK1+1","v":2100}]
["LGA"]
["Bass Coast (S)",{"$f":"Customers!B140","v":1494},{"$f":"Customers!C140","v":1780},{"$f":"Customers!D140","v":2033},{"$f":"Customers!E140","v":2266},{"$f":"Customers!F140","v":2498},{"$f":"Customers!G140","v":2726},{"$f":"Customers!H140","v":2971},{"$f":"Customers!I140","v":3298},{"$f":"Customers!J140","v":3548},{"$f":"(J3+K27-K51)","v":3600.26},{"$f":"(K3+L27-L51)","v":3653.2587000000003},3706.9924065000005,3762.4574444675004,3818.6451572451629,3875.5519314589369,3933.1741718016424,3991.5083009426344,4050.550759437921,4110.2980056407314,4089.7465156125277,4069.2977830344648,4048.9512941192925,4028.7065376486962,4008.5630049604529,3988.5201899356507,3968.5775889859724,3948.7347010410426,3928.9910275358375,3909.3460723981584,3889.7993420361677,3870.3503453259868,3850.9985935993568,3830.7436006313601,3809.5898826282032,3788.5419332150623,3766.5992235489871,3743.766227431242,3719.047396294086,3691.4521593126155,3661.9948985160527,3628.6849240234724,3590.5414994033549,3547.588791906338,3497.8508479468064,3468.3615937070722,3440.0197857385369,3408.8196868098444,3372.775588375795,3330.9117104339161,3281.2571518817467,3220.8508661223382,3145.7466117917265,3052.0178787327677,2935.757789339104,2796.0790003924085,2637.0986053904462,2469.9131123634938,2302.5635468016762,2141.0507290676678,1989.3454754223294,1848.3987480452179,1717.1567543049919,1595.5709705334668,1482.5931156807994,1378.1801501023954,1281.2892493518834,1190.8828031051239,1106.9283890895983,1029.3937471441504,957.24677840842969,952.46054451638759,947.69824179380566,942.95975058483668,938.24495183191254,{"$f":"(BW3+BX27-BX51)","v":933.55372707275296},928.88595843738915,924.24152864520215,919.62032100197609,915.02221939696619,910.44710829998132,905.89487275848137,901.36539839468901,896.8585714027156,892.37427854570205,887.91240715297351,883.47284511720864,879.05548089162255,874.66020348716449,870.28690246972872]
["Bayside (C)",{"$f":"Customers!B141","v":35716},{"$f":"Customers!C141","v":36018},{"$f":"Customers!D141","v":36281},{"$f":"Customers!E141","v":36467},{"$f":"Customers!F141","v":36592},{"$f":"Customers!G141","v":36824},{"$f":"Customers!H141","v":36986},{"$f":"Customers!I141","v":37219},{"$f":"Customers!J141","v":37381},{"$f":"(J4+K28-K52)","v":37940.095000000001},38508.394525000003,39084.852552375007,39669.428289613134,40264.081148165067,40867.760742424245,41480.421938712127,42102.019829018565,42732.509729873469,43372.847181224104,43155.982945317985,42940.203030591394,42725.50201543844,42511.874505361251,42299.315132834447,42087.818557170278,41875.379464384423,41660.002567062504,41434.702554227188,41193.529041456051,40927.56139624877,40518.923589267528,39698.328971321193,38398.837326464585,36592.843139832265,34522.878924133103,32349.264529512438,30193.518206864876,28113.550615830551,26132.9828627514,24278.317948437641,22546.926358695455,20935.191726901976,19437.515768267465,18046.328189426127,16761.096548478996,15570.291065736601,14459.439610407919,13426.142412355879,12465.011700294101,11572.68664179263,10744.823208583668,9976.0990925407496,9262.2185970780465,8599.9075040926564,7984.9079665721929,7413.9834267393317,6883.9135096056352,6392.4939420576075,5935.5314723473193,5511.8538149855831,5118.294545910655,4752.7030731811019,4412.9395578151962,4096.8748600261206,3803.3904857259899,3531.3735332973602,3278.7166656308732,3044.3230823027188,2827.1014668912053,2624.9659595567491,2608.8411297589655,2592.7969241101705,2576.8329394896195,2560.9487747921717,2545.1440309182108,2529.4183107636195,2513.7712192098015,2498.2023631137527,2482.7113512981837,2467.2977945416928,2451.9613055689842,2436.7014990411394,2421.5179915459339,2406.4104015882044,2391.3783495802636,2376.4214578323622,2361.5393505432003,2346.7316537904844,2332.9979955215322]
["Boroondara (C)",{"$f":"Customers!B142","v":61613},{"$f":"Customers!C142","v":62206},{"$f":"Customers!D142","v":62719},{"$f":"Customers!E142","v":62777},{"$f":"Customers!F142","v":62774},{"$f":"Customers!G142","v":62906},{"$f":"Customers!H142","v":63129},{"$f":"Customers!I142","v":63266},{"$f":"Customers!J142","v":63469},64418.654999999999,{"$f":"(K5+L29-L53)","v":65383.561725},66362.643916375004,67355.830696793128,68365.051543309164,69390.226285592624,70430.275154164658,71486.123778393841,72556.693159501869,73643.909693704365,73275.690145235843,72909.31169450967,72544.765136037124,72182.041310356944,71821.131103805164,71461.025448286135,71098.720321044704,70729.226719439481,70337.580585842283,69911.892682913065,69437.333219498498,68694.146553401006,67231.675820634002,64984.517441530828,61924.594854323172,58441.971880051555,54788.762020651295,51160.818210548037,47651.014119495296,44303.759048897817,41165.240253653326,38231.414052385058,35499.25698212313,32959.760697212514,30599.961893726453,28423.962084257822,26407.842273836533,24525.803062467352,22773.174047155015,21143.308176919239,19629.591636034642,18224.44367785447,16920.321459465198,15708.719852167873,14584.176252907033,13540.255371642497,12571.554094784286,11671.696324310364,10836.337842688812,10061.156153475367,9341.8503727079897,8674.1411208444497,8053.7704152402275,7477.5015631640263,6942.1140553482064,6445.4034850714652,5984.176467646108,5556.2555853078775,5158.4743073813379,4789.6819358444309,4446.7335261652088,4418.4998585343828,4390.4073592417108,4362.4553224455021,4334.6430458332743,4306.9698306041082,4279.4349814510879,4252.0378065438326,4224.777617511113,4197.6537294235577,4169.6654607764403,4141.8171334725585,4114.1080478051954,4086.5375075661696,4059.1048200283385,4031.8092959281967,4004.6502494485558,3977.6269982013132,3950.7388632103066,3925.9851688942549]
["Cardinia (S)",{"$f":"Customers!B143","v":3962},{"$f":"Customers!C143","v":3985},{"$f":"Customers!D143","v":4035},{"$f":"Customers!E143","v":4038},{"$f":"Customers!F143","v":4066},{"$f":"Customers!G143","v":4099},{"$f":"Customers!H143","v":4130},{"$f":"Customers!I143","v":4148},{"$f":"Customers!J143","v":4170},4232.1499999999996,4294.9892499999996,4358.5143037499993,4423.721732231249,4489.603123570093,4556.1551079522424,4624.3743324124807,4693.2524607504183,4762.7861984466663,4833.9722674544328,4809.8024061171609,4785.7533940865751,4761.8246271161424,4738.0155039805613,4714.3254264606585,4690.7537993283549,4667.3000303317131,4643.9635301800545,4620.7437125291544,4597.6399939665089,4574.6517939966761,4551.7785350266931,4529.0196423515599,4506.3745441398023,4482.8426714191037,4459.4284580620078,4435.1313157716977,4408.9556591928394,4380.9108808968749,4348.0063264923901,4310.2662948599282,4263.7149633856288,4204.3963885687008,4130.3744066258569,4036.7225345927277,3996.5389219197641,3960.5562273101655,3917.7534461736145,3861.1646789427464,3788.8588555480328,3693.9145612702928,3569.4449884639412,3412.5977635216213,3227.5347747040132,3026.3971008304929,2822.2651153263405,2624.1537897497087,2439.03302080096,2265.8378556969551,2104.5086664184705,1954.9861230863783,1816.2111924709463,1687.1301365085917,1567.6944858260488,1456.8560133969186,1353.571733329934,1257.8038746632842,1169.5148552899677,1087.6672810135178,1010.2289446084502,938.17779988540792,933.48691088598093,928.81947633155107,924.17537894989334,919.55450205514387,914.95672954486815,910.38194589714385,905.83003616765814,901.30088598681982,896.7943815568857,892.3104096491013,887.84885760085581,883.40961331285155,878.99256524628731,874.59760242005586,870.22461440795564,865.8734913359159,861.54412387923628,857.23640325984013,852.95022124354091]
["Casey (C)",{"$f":"Customers!B144","v":12472},{"$f":"Customers!C144","v":12525},{"$f":"Customers!D144","v":12571},{"$f":"Customers!E144","v":12658},{"$f":"Customers!F144","v":12709},{"$f":"Customers!G144","v":12814},{"$f":"Customers!H144","v":12891},{"$f":"Customers!I144","v":12987},{"$f":"Customers!J144","v":13073},13268.635,13467.291825,13668.955365875001,13873.610589045626,14081.242536100397,14291.836323419895,14505.377141802795,14722.850256093781,14943.236004813312,15166.519824789246,15090.687225665301,15015.233789536975,14940.157620589291,14865.456832486345,14791.129548323914,14717.173900582295,14643.588031079384,14570.370090923987,14497.518240469368,14424.030649267021,14349.910496020686,14270.160943540583,14172.810138822879,14045.946088128765,13860.716357688121,13599.41277589968,13237.415712020182,12770.228633460081,12196.377490292782,11517.395602841318,10814.80862482711,10100.734581702975,9408.2309087944595,8751.1897542504867,8133.4338054792343,7609.7666364518382,7135.7178032695792,6665.039214253231,6206.714018181965,5772.680448091055,5364.8170458506002,4982.9929606213473,4627.0779958182402,4296.9426058391491,3990.4578928099536,3705.5056033459036,3440.9780753291743,3195.7731849525285,2967.7943190277661,2756.9553474326271,2561.170570695464,2379.3647178419865,2210.4678942527767,2053.4155547815126,1908.1484770076049,1771.607734622567,1644.7496959494542,1527.525947469707,1418.8883177323585,1317.7938761436967,1224.2049067629782,1218.0838822291632,1211.9934628180174,1205.9334955039274,1199.9038280264078,1193.9043088862759,1187.9347873418444,1181.9951134051353,1176.0851378381096,1170.204712148919,1164.3536885881745,1158.5319201452337,1152.7392605445075,1146.9755642417849,1141.2406864205759,1135.534482988473,1129.8568105735305,1124.2075265206629,1118.5864888880596,1112.9935564436194]
["Frankston (C)",{"$f":"Customers!B145","v":1},{"$f":"Customers!C145","v":1},{"$f":"Customers!D145","v":1},{"$f":"Customers!E145","v":1},{"$f":"Customers!F145","v":1},{"$f":"Customers!G145","v":1},{"$f":"Customers!H145","v":1},{"$f":"Customers!I145","v":1},{"$f":"Customers!J145","v":1},0.995,0.99002500000000004,0.98507487500000002,0.98014950062500006,0.97524875312187509,0.97037250935626573,0.96552064680948435,0.96069304357543694,0.95588957835755972,0.95111013046577197,0.94635457981344306,0.94162280691437583,0.936914692879804,0.93223011941540501,0.92756896881832795,0.92293112397423627,0.91831646835436509,0.91372488601259327,0.90915626158253027,0.90461048027461766,0.90008742787324458,0.89558699073387837,0.89110905578020894,0.88665351050130792,0.88222024294880141,0.87780914173405744,0.87342009602538717,0.86905299554526028,0.86470773056753403,0.86038419191469639,0.8560822709551229,0.85180185960034727,0.84754285030234555,0.84330513605083379,0.83908861037057958,0.83489316731872665,0.830718701482133,0.82656510797472238,0.82243228243484878,0.81832012102267448,0.81422852041756111,0.81015737781547326,0.80610659092639592,0.80207605797176396,0.79806567768190517,0.79407534929349566,0.79010497254702816,0.78615444768429299,0.78222367544587157,0.77831255706864222,0.77442099428329902,0.77054888931188248,0.76669614486532311,0.76286266414099646,0.75904835082029143,0.75525310906618992,0.75147684352085897,0.74771945930325467,0.74398086200673841,0.74026095769670475,0.73655965290822123,0.73287685464368013,0.72921247037046177,0.7255664080186095,{"$f":"(BV8+BW32-BW56)","v":0.72193857597851641},0.71832888309862386,0.71473723868313077,0.71116355248971508,0.70760773472726646,0.70406969605363012,0.70054934757336196,0.69704660083549519,0.69356136783131772,0.69009356099216113,0.68664309318720029,0.68320987772126429,0.679793828332658,0.67639485919099473,0.67301288489503974,0.66964782047056459]
["Glen Eira (C)",{"$f":"Customers!B146","v":49416},{"$f":"Customers!C146","v":49898},{"$f":"Customers!D146","v":50368},{"$f":"Customers!E146","v":50700},{"$f":"Customers!F146","v":50877},{"$f":"Customers!G146","v":51223},{"$f":"Customers!H146","v":51419},{"$f":"Customers!I146","v":51752},{"$f":"Customers!J146","v":52150},52930.25,{"$f":"(K9+L33-L57)","v":53723.598749999997},54527.980756249999,55343.340852468747,56172.624148206407,57014.761027465378,57868.687222328052,58736.343786216414,59615.662067285331,60508.583756948901,60206.040838164154,59905.010633973332,59605.485580803463,59307.458152899446,59010.920862134946,58714.866257824273,58416.291926535152,58113.210466902477,57791.644414567963,57443.686192495123,57058.467761532644,56470.175422724984,55345.824545611358,53621.0954228833,51235.989945768881,48471.809996040036,45524.450946059835,42563.828691329538,39676.009547872891,36904.629500133524,34299.106352632858,31858.610820869693,29584.317766765344,27468.396177931518,25502.05419704186,23692.543926056649,22017.081206426366,20450.995800394234,18990.740821392261,17632.787117285301,16370.623181698875,15198.770065790381,14110.776215461428,13101.222334384121,12163.716222712201,11293.89764159864,10486.428153390647,9735.9960126236929,9039.316032560575,8393.119452397772,7793.1538551357835,7236.1880858601044,6719.0071454308036,6239.4121097036495,5793.2150491551311,5378.2489739093553,4993.3577290398089,4636.39094039461,4304.2089856926368,3996.6879407641736,3710.7045010603529,3687.1509785550511,3663.715223662276,3640.3966475439647,3617.1946643062447,3594.1086909847136,3571.1381475297899,3548.2824567921411,3525.5410445081802,3502.9133392856393,3480.3987725892111,3457.9967787262649,3435.7067948326335,3413.5282608584703,3391.4606195541778,3369.503316456407,3347.655799874125,3324.9175208747542,3302.2929332703807,3281.7814686040288]
["Greater Dandenong (C)",{"$f":"Customers!B147","v":50749},{"$f":"Customers!C147","v":51473},{"$f":"Customers!D147","v":52131},{"$f":"Customers!E147","v":52827},{"$f":"Customers!F147","v":53696},{"$f":"Customers!G147","v":54616},{"$f":"Customers!H147","v":55283},{"$f":"Customers!I147","v":56060},{"$f":"Customers!J147","v":56719},57569.404999999999,58432.557974999996,59308.395185124995,60196.853209199369,61098.868943153371,62014.374598437607,62944.302725445421,63887.581211818193,64845.143305759098,65816.917589230303,65487.833001284154,65160.393836277733,64834.591867096344,64510.418907760861,64187.866813222055,63866.927479155944,63547.592841760161,63229.854877551363,62913.705603163609,62599.137075147788,62285.141389772049,61971.715682823189,61657.857104409071,61342.567818887022,61023.854979792588,60699.735704893625,60368.237026369156,60024.39584123731,59662.273862031121,59262.962492720966,58829.64768025736,58326.499441856075,57731.866944646797,57026.207609923564,56163.076571873949,55715.261189014578,55296.684883069502,54822.201458654155,54250.090451360884,53549.839999104079,52662.090799108555,51502.780345113009,49966.266443387445,47973.435111170511,45524.567935614657,42766.945095936586,39910.110370456903,37121.559818604619,34481.952019511598,32016.54225941404,29723.459548116971,27594.842250376387,25618.868039124503,23784.773698928882,22081.849830434239,20500.44058128207,19032.93837837566,17670.773686483783,16405.419818051363,15231.392718961106,14140.235755366301,14069.534576589469,13999.186903706521,13929.190969187988,13859.545014342048,13790.247289270337,13721.296052823986,13652.689572559866,13584.426124697067,13516.503994073582,13448.921474103214,13381.676866732698,13314.768482399035,13248.194639987039,13181.953666787103,13116.043898453168,13050.463678960903,12985.211360566098,12920.285303763267,12855.68387724445]
["Kingston (C)",{"$f":"Customers!B148","v":49828},{"$f":"Customers!C148","v":50358},{"$f":"Customers!D148","v":50852},{"$f":"Customers!E148","v":51309},{"$f":"Customers!F148","v":51721},{"$f":"Customers!G148","v":52207},{"$f":"Customers!H148","v":52801},{"$f":"Customers!I148","v":53445},{"$f":"Customers!J148","v":53913},54720.434999999998,55540.832824999998,56373.128660874994,57217.263017570622,58075.176702482771,58945.800818970354,59829.071814875504,60725.926455801127,61635.29682352212,62559.120339404508,62246.324737707488,61935.09311401895,61625.417648448856,61317.290560206609,61010.704107405574,60705.650586868549,60401.122333934203,60097.116722264531,59791.631138653211,59483.672982959943,59171.254618045146,58834.39834495492,58429.226353230144,57922.080221463992,57229.469820356673,56299.322471254891,55051.825858898614,53449.566729604121,51446.318895956101,48964.08730147632,46290.266864968937,43447.815530644089,40603.57645299087,37850.558570725916,35224.305777872287,33152.184248982929,31292.423327738015,29368.961211099326,27436.116405043831,25561.935823018612,23777.126143903519,22095.240513184002,20521.764310618084,19055.155489064993,17691.879711619669,16425.420313061572,15249.293211496264,14158.046745438784,13145.25651171159,12204.530229153032,11331.507578007266,10520.85004011723,9768.2457899166438,9069.4045609670611,8421.0575381622257,7818.952250471415,7258.8574892190582,6739.5632017729631,6256.8653857640984,5808.5810588352779,5392.5381535411016,5364.5754627733959,5336.7525854595287,5309.068822532231,5281.52347841957,5254.1158610274724,5226.8452817223351,5199.7110553137236,5172.7125000371552,5145.8489375369691,5119.1196928492845,5092.5240943850386,5066.0614739131133,5039.7311665435482,5013.5325107108301,4987.4648481572758,4961.5275239164894,4935.7198862969071,4910.041286865423,4884.4910804310957]
["Knox (C)",{"$f":"Customers!B149","v":59059},{"$f":"Customers!C149","v":59590},{"$f":"Customers!D149","v":60045},{"$f":"Customers!E149","v":60488},{"$f":"Customers!F149","v":61002},{"$f":"Customers!G149","v":61526},{"$f":"Customers!H149","v":62077},{"$f":"Customers!I149","v":62627},{"$f":"Customers!J149","v":63097},64042.514999999999,65002.302425000002,65976.290912875003,66964.409458310634,67968.587411019078,68987.744473963976,70021.805751594162,71071.69672283619,72137.338239222008,73218.651548025897,72852.558290285771,72488.295498834341,72125.854021340172,71765.224751233472,71406.398627477305,71049.366634339924,70694.119801168228,70339.649202162385,69983.950956151573,69625.031201370817,69261.906045363969,68868.596515137149,68375.253532561459,67717.377264898649,66739.790378574151,65351.091426681283,63438.335969547879,61004.14428970014,58083.123568251642,54717.707950410382,51283.119410658328,47843.70381360504,44532.485294537015,41403.82286806433,38467.803753724009,35943.464734955385,33647.747411280609,31389.508674224206,29211.561130853086,27153.503325198821,25223.735808572826,23423.617129529961,21748.499043882312,20191.756548662899,18745.797765919586,17404.068777089989,16158.04843320454,15001.258191038518,13927.251900083325,12930.61564058291,12004.962562379995,11145.937749568095,10348.208060820254,9608.4670205161528,8921.4246854135727,8282.8175619865051,7689.4034741765727,7138.9564568056903,6628.2616745216619,6154.1203661490536,5713.3497643183082,5683.7830154967169,5654.3641004192332,5625.0922799171367,{"$f":"(BV12+BW36-BW60)","v":5595.9668185175506},5566.9869844249624,5538.1520495028381,5509.4612892553241,5480.9139828090474,5452.5094128950022,5424.246865830527,5396.1256315013743,5368.1450033438678,5340.3042783271485,5312.6027569355128,5285.0397431508354,5257.6145444350814,5230.3264717129059,5203.1748393543412,5176.1589651575696]
["Manningham (C)",{"$f":"Customers!B150","v":41135},{"$f":"Customers!C150","v":41440},{"$f":"Customers!D150","v":41743},{"$f":"Customers!E150","v":41856},{"$f":"Customers!F150","v":42047},{"$f":"Customers!G150","v":42291},{"$f":"Customers!H150","v":42667},{"$f":"Customers!I150","v":43069},{"$f":"Customers!J150","v":43667},44321.665000000001,{"$f":"(K13+L37-L61)","v":44986.056675},45660.126391625003,46343.825759666877,47038.10663086854,47742.916097714195,48458.201517225622,49184.910509639492,49921.985957091296,50670.376027305836,50417.024147169308,50164.939026433458,49914.114331301287,49664.543759644781,49416.221040846554,49169.139935642321,48923.294235964109,48677.67776478429,48431.289375960368,48182.132929080566,47930.222264435164,47654.571153112985,47301.298297347421,46821.791805860681,46101.682846831376,45078.174432597218,43679.783560434233,41923.38464263206,39846.767719418902,37491.533880821808,35108.076211417698,32737.535830360608,30463.848151208804,28319.528910452758,26309.931265900494,24568.381609570992,22982.539701523136,21429.627003015521,19938.478868000442,18530.786473660439,17213.132541292136,15984.066878585676,14841.146544192747,13778.940811471783,12793.046107414424,11878.080876877351,11028.690472492965,10239.5470201305,9507.349285029848,8827.8125386046995,8196.6734759116753,7610.6901085321169,7066.6366579894566,6561.303474699509,6092.4969573260114,5656.0344725393816,5250.7543001766844,4874.5005286758005,4526.128026032422,4202.4973859022602,3901.4848989727489,3881.9774744778852,3862.5675871054959,3842.2547491699684,3822.0434754241187,3801.9332580469982,3781.923591756763,3762.0139737979794,3742.2039039289893,3722.4928844093442,3702.8804199872975,3683.3660178873611,3663.9491877979244,3644.629441858935,3625.4062946496401,3606.2792631763919,3587.2478668605099,3568.3116275262073,3549.4700693885761,3531.7227190416334]
["Maroondah (C)",{"$f":"Customers!B151","v":35790},{"$f":"Customers!C151","v":36268},{"$f":"Customers!D151","v":36792},{"$f":"Customers!E151","v":37230},{"$f":"Customers!F151","v":37754},{"$f":"Customers!G151","v":38144},{"$f":"Customers!H151","v":38338},{"$f":"Customers!I151","v":38563},{"$f":"Customers!J151","v":38893},39475.535000000003,40067.157325,40666.821538374999,41275.487430683126,41894.10999352971,42521.63944356206,43159.031246344253,43806.236090112528,44462.204909661967,45128.893885113655,44903.249415688086,44678.733168609644,44455.339502766597,44233.062805252761,44011.897491226497,43791.838003770361,43572.878813751508,43354.014419682753,43134.244347584339,42913.573125846415,42690.005260217185,42445.5552339161,42137.32745774652,41722.640820457789,41104.027616355503,40225.507478273728,39019.379940882362,37493.283041177951,35672.81662597206,33589.452542842198,31470.505280127989,29354.152753727351,27321.381989958714,25400.77508000892,23598.771204608875,22044.777348585831,20631.553461842901,19243.395694533687,17907.178716061018,16645.642822480713,15463.41460836831,14360.097535326469,13333.297047649838,12379.630562411588,11493.73240959953,10671.263747551533,9907.9074288137745,9199.3678916697063,8541.3710522113579,7930.6641969503007,7364.0108759655495,6838.190821585722,6349.9998674777935,5896.2498681404049,5474.7686187997033,5083.3947757057049,4719.9778018271763,4382.3779128180404,4068.46602325395,3777.1236931376802,3507.2380746719919,3489.7018842986317,3472.2533748771384,3454.8921080027526,3437.6176474627387,3420.4295592254248,3403.3274114292976,3386.3107743721512,3369.3792205002906,3352.5323243977891,3335.7696627758,3319.0908144619211,3302.4953603896115,3285.9828835876633,3269.5529691697252,3253.2052043238764,3235.939178302257,3218.7594824107459,3201.6656849986921,3185.6573565736985]
["Melbourne (C)",{"$f":"Customers!B152","v":770},{"$f":"Customers!C152","v":783},{"$f":"Customers!D152","v":796},{"$f":"Customers!E152","v":797},{"$f":"Customers!F152","v":802},{"$f":"Customers!G152","v":827},{"$f":"Customers!H152","v":850},{"$f":"Customers!I152","v":858},{"$f":"Customers!J152","v":867},879.66499999999996,892.26667499999996,904.80534162499998,918.28131491687498,931.68990834229055,945.03145880057912,958.30630150657623,972.51476999904332,986.65219614904811,1000.7189351683029,995.71534049246134,990.73676378999903,985.78307997104901,980.85416457119379,975.94989374833779,971.07014427959609,966.21479355819815,961.38371959040717,956.57680099245511,951.79391698749282,947.0349474025553,942.29977266554249,937.58827380221476,932.90033243320363,927.23583077103763,921.59965161718242,915.99165335909652,909.41169509230099,902.86463661683945,895.35031343375522,886.87356186658644,877.43919405725353,866.05199808696727,853.72173809653248,839.45312940604981,831.25586375901958,823.09958444022448,813.98408651802333,803.91416608543318,791.89459525500604,777.935122278731,762.04544666733739,743.23521943400067,720.51904333683069,692.91644812014658,661.45186587954584,626.14460655014807,589.01388351739729,551.06881409981031,514.31347002931125,478.7419026791647,446.34819316576886,416.11645219994,388.03586993894032,362.09569058924563,337.28521213629938,314.59878607561791,294.02579214523985,274.55566318451366,256.18288486859109,238.90197044424812,237.70746059202688,236.51892328906675,235.33632867262142,234.15964702925831,232.98884879411202,231.82390455014146,230.66478502739076,229.5114611022538,228.36390379674253,227.22208427775882,226.08597385637003,224.95554398708819,223.83076626715274,222.71161243581699,221.59805437363789,220.49006410176969,219.38761378126085,218.29067571235456,217.19922233379279]
["Monash (C)",{"$f":"Customers!B153","v":61763},{"$f":"Customers!C153","v":62351},{"$f":"Customers!D153","v":62909},{"$f":"Customers!E153","v":63304},{"$f":"Customers!F153","v":63709},{"$f":"Customers!G153","v":64060},{"$f":"Customers!H153","v":64465},{"$f":"Customers!I153","v":64948},{"$f":"Customers!J153","v":65614},66596.929999999993,67594.945349999995,68607.970623249988,69635.930770133738,70679.751116283063,71739.352360701654,72814.655598898142,73906.582320903646,75014.049409299128,76138.979162252639,75758.284266441377,75379.492845109169,75002.59538088362,74627.582403979206,74254.444491959308,73883.172269499511,73512.75640815201,73143.192626111253,72772.476662980698,72398.614279665795,72020.621208267461,71610.518102226124,71104.465511714996,70445.943184156422,69496.713468235641,68174.229900894468,66365.358751389998,64047.531957633051,61217.294297844885,57864.207826355661,54377.886787223884,50818.997353287763,47353.902366521324,44057.132854688716,40949.847190415276,38345.097954463199,35986.372464690881,33629.440602367424,31328.293399355585,29138.651932358807,27076.958672697012,25148.573879333526,23351.831009936857,21681.071854887174,20128.666495612739,18688.023163134676,17350.583047319004,16108.830132082408,14956.285981421996,13885.504551514885,12892.07702875731,11969.616643613525,11113.768560395456,10319.199717593479,9581.6037190055122,8895.6957004104843,8258.2172219084314,7666.9261357988889,7117.5915051198945,6608.003547594295,6134.9635298563235,6103.2887122070415,6071.7722686460065,6040.4134073027762,{"$f":"(BV16+BW40-BW64)","v":6009.2113402662626},5978.1652835649311,5947.2744571471067,5916.5380848613713,5885.9553944370646,5855.5256174648794,5825.2479893775553,5795.1217494306675,5765.1461406835142,5735.3204099800969,5705.6438079301961,5676.115588890545,5646.7350109460922,5617.501335891362,5588.4138292119051,5559.471760065846]
["Nillumbik (S)",{"$f":"Customers!B154","v":8},{"$f":"Customers!C154","v":8},{"$f":"Customers!D154","v":8},{"$f":"Customers!E154","v":8},{"$f":"Customers!F154","v":8},{"$f":"Customers!G154","v":8},{"$f":"Customers!H154","v":8},{"$f":"Customers!I154","v":8},{"$f":"Customers!J154","v":8},7.96,{"$f":"(K17+L41-L65)","v":7.9202000000000004},7.8805990000000001,7.8411960050000005,7.8019900249750007,7.7629800748501259,7.7241651744758748,7.6855443486034956,7.6471166268604778,7.6088810437261758,7.5708366385075445,7.5329824553150067,7.495317543038432,7.4578409553232401,7.4205517505466236,7.3834489917938901,7.3465317468349207,7.3097990881007462,7.2732500926602421,7.2368838421969413,7.2006994229859567,7.164695925871027,7.1288724462416715,7.0932280840104633,7.0577619435904113,7.0224731338724595,6.9873607682030974,6.9524239643620822,6.9176618445402722,6.8830735353175712,6.8486581676409832,6.8144148768027781,6.7803428024187644,6.7464410884066703,6.7127088829646366,6.6791453385498132,6.645749611857064,6.612520863797779,6.5794582594787903,6.5465609681813959,6.5138281633404889,6.4812590225237861,6.4488527274111673,6.4166084637741116,6.3845254214552414,6.3526027943479653,6.3208397803762253,6.2892355814743439,6.2577894035669726,6.2265004565491378,6.1953679542663922,6.1643911144950598,6.1335691589225849,6.1029013131279717,6.0723868065623314,6.0420248725295194,6.0118147481668718,5.9817556744260374,5.9518468960539073,5.922087661573638,5.8924772232657698,5.863014837149441,5.8336997629636942,5.804531264148876,5.7755086078281312,5.7466310647889909,5.7178979094650462,5.6893084199177206,5.6608618778181317,5.632557568429041,5.6043947805868957,5.5763728066839615,5.5484909426505418,5.520748487937289,5.4931447454976023,5.4656790217701143,5.438350626661264,5.4111588735279579,5.3841030791603179,5.3571825637645167]
["Port Phillip (C)",{"$f":"Customers!B155","v":37683},{"$f":"Customers!C155","v":37903},{"$f":"Customers!D155","v":38003},{"$f":"Customers!E155","v":38000},{"$f":"Customers!F155","v":37904},{"$f":"Customers!G155","v":38009},{"$f":"Customers!H155","v":38268},{"$f":"Customers!I155","v":38370},{"$f":"Customers!J155","v":38324},38894.379999999997,39475.908100000001,40064.528559500002,40660.2059167025,41268.904887118988,41886.560362683391,42512.127560869973,43148.56692306562,43790.824088450296,44444.869968008046,44222.645618168004,44001.532390077162,43781.524728126773,43562.61710448614,43341.80401896371,43119.094998868895,42885.499523874554,42640.072026255184,42365.871666123909,42058.042307793286,41712.75209625432,41220.188335773048,40447.087394094182,39402.851957123712,38039.837697338095,36438.638508851407,34652.445316307152,32760.183089725615,30811.382174276987,28838.325263405601,26927.133637088573,25085.497968903132,23339.070479058617,21698.375126663323,20162.883251030005,18803.068834774855,17551.053490600982,16351.298223147976,15211.541732032236,14140.484023372075,13137.781603255215,12203.092695238938,11332.077231762743,10522.41684560393,9769.8047613759099,9070.955737569031,8422.6009588811867,7820.4879540867805,7261.3855143163464,6742.0785867447648,6260.3681938110412,5813.0663528419864,5398.0010210777764,5013.0110159723872,4654.9459608925254,4322.671231088063,4014.0578749326228,3727.9875855579598,3461.3476476301703,3214.0409093920193,2983.9707048450591,2963.0508513208338,2942.2355970642298,2921.5244190789085,2900.9167969835139,2880.4122129985963,2860.0101519336031,2839.7101011739351,2819.5115506680654,2799.413992914725,2778.4169229501513,2757.5248383354005,2736.7372141437236,2716.0535280730051,2695.47326043264,2674.9958941304767,2654.6209146598244,2634.3478100865254,2614.1760710360927,2595.1051906809121]
["South Gippsland (S)",{"$f":"Customers!B156","v":1231},{"$f":"Customers!C156","v":1414},{"$f":"Customers!D156","v":1546},{"$f":"Customers!E156","v":1681},{"$f":"Customers!F156","v":1798},{"$f":"Customers!G156","v":1894},{"$f":"Customers!H156","v":1976},{"$f":"Customers!I156","v":2080},{"$f":"Customers!J156","v":2162},2194.19,2226.2190500000002,2259.0879547500003,2292.7925149762505,2326.3285524013691,2360.6969096393623,2395.8934250911657,2430.9139579657099,2466.7593881758812,2503.4255912350018,2490.9084632788267,2478.4539209624327,2466.0616513576206,2453.7313431008324,2441.4626863853282,2429.2553729534015,2417.1090960886345,2405.0235506081913,2392.9984328551504,2381.0334406908746,2369.1282734874203,2357.2826321199832,2345.4962189593834,2333.7687378645865,2322.0998941752637,2309.4893947043875,2296.9419477308656,2283.4572379922115,2270.0399518022505,2254.6897520432394,2238.4163032830234,2219.224221766608,2198.1281006577751,2173.1374601544862,2143.2717728537136,2126.5554139894452,2110.922636919498,2093.3680237349004,2072.9011836162258,2048.5366776981446,2018.2939943096537,1980.2025243381054,1931.3015117164148,1868.6450041578328,1789.3017791370437,1694.3552702413585,1590.8834938901518,1483.929076420701,1381.5094310385975,1283.6018838834045,1193.1838744639874,1109.2179550916676,1031.6718653162093,959.51350598962824,892.71593845968005,830.25235876738168,772.10109697354483,718.24059148867707,668.64938853123363,622.30614158857747,578.19461088063463,575.30363782623147,572.4271196371003,569.56498403891476,566.71715911872013,563.88357332312648,561.06415545651089,558.25883467922836,555.46754050583218,552.69020280330301,549.92675178928653,547.17711803034013,544.4412324401884,541.7190262779875,539.01043114659751,536.31537899086447,533.63380209591014,530.96563308543057,528.31080492000342,525.66925089540337]
["Stonnington (C)",{"$f":"Customers!B157","v":38271},{"$f":"Customers!C157","v":38537},{"$f":"Customers!D157","v":38672},{"$f":"Customers!E157","v":38664},{"$f":"Customers!F157","v":38669},{"$f":"Customers!G157","v":38675},{"$f":"Customers!H157","v":38802},{"$f":"Customers!I157","v":38770},{"$f":"Customers!J157","v":38844},39422.78,40012.666100000002,40609.602769500001,41214.554755652498,41831.481981874233,42458.324571964862,43093.032949105036,43738.567784359511,44390.87494543771,45054.920570710521,44829.645967856966,44605.497738017679,44382.470249327591,44160.557898080951,43938.755108590543,43716.06133304759,43483.481026382353,43239.06362125044,42962.868303144191,42647.053961628473,42283.818691820328,41715.399598361226,40734.822600369422,39377.148487367573,37636.262744930733,35673.081431206083,33589.716024050053,31484.767443929803,29411.343606710154,27398.286888676605,25492.295454233223,23694.833976962058,22012.35980707725,20444.298008041864,18985.076518001653,17654.151135411645,16422.880379734586,15265.765977835914,14182.437147946734,13171.524962207,12230.667337395966,11356.514000708987,10543.731430705442,9790.0127735519145,9090.0627096841545,8439.6123961357334,7836.4143341550553,7276.23226248428,6755.8511011718583,6273.0718456659988,5824.7064864376689,5408.5829540054801,5022.5400392354532,4664.4273390392755,4332.1052023440789,4023.4446763323585,3735.3274529506966,3467.6508156859431,3219.3125616075135,2989.215998799476,2775.2699188054785,2755.393569211451,2734.6166013653938,2713.943518358567,{"$f":"(BV20+BW44-BW68)","v":2693.3738007667739},2672.9069317629401,2652.5423971041255,2632.2796851186049,2612.1182866930117,2592.0576952595466,2572.097406783249,2552.2369197493326,2532.4757351505859,2512.8133564748332,2493.2492896924591,2473.7830432439969,2454.4141280277768,2435.142057387638,2415.9663471006997,2397.8865153651964]
["Whitehorse (C)",{"$f":"Customers!B158","v":63430},{"$f":"Customers!C158","v":64094},{"$f":"Customers!D158","v":64709},{"$f":"Customers!E158","v":65022},{"$f":"Customers!F158","v":65400},{"$f":"Customers!G158","v":65664},{"$f":"Customers!H158","v":66100},{"$f":"Customers!I158","v":66325},{"$f":"Customers!J158","v":66865},67866.675000000003,{"$f":"(K21+L45-L69)","v":68884.341625000001},69915.919916875006,70963.340317290626,72027.523615704165,73107.38599762565,74202.849067637522,75314.834822299337,76443.260648187847,77589.044344946902,77201.099123222171,76815.093627606067,76431.018159468033,76048.863068670689,75668.618753327333,75290.275659560692,74912.824281262889,74536.260159856567,74158.578859057277,73777.785964761992,73391.897034938185,72972.93754976349,72452.072862014669,71770.812497704595,70782.958435216075,69404.04364304,67519.023424824802,65110.428307700677,62182.876166162176,58737.961785331368,55170.271976404714,51542.420616522693,48017.708513440077,44667.619970872875,41514.281871018509,38856.710461663417,36449.426909355097,34051.179774808319,31714.923875934277,29494.349256554604,27405.877510271832,25452.848122720472,23634.583882106868,21943.410962696333,20372.693907882851,18913.830438343437,17560.261286151719,16303.459979720961,15136.942679822356,14053.257966423243,13047.991676591128,12114.751718208172,11248.177959617131,10443.937069819045,9696.71738446995,9002.2337975476003,8357.2226285598626,7758.4365154170637,7202.6443328399782,6686.6311111757786,6208.1979556198994,6176.1569658418002,6144.2761810125912,6112.5548001075285,6080.992026106991,6049.587065976456,6018.3391306465737,5987.2474349933409,5956.3111978183742,5925.5296418292828,5894.9019936201366,5864.4274836520362,5834.1053462337759,5803.9348195026068,5773.9151454050934,5744.0455696780682,5714.3253418296781,5684.7537151205297,5655.3299465449272,5626.0532968122025]
["Yarra Ranges (S)",{"$f":"Customers!B159","v":43932},{"$f":"Customers!C159","v":44501},{"$f":"Customers!D159","v":45017},{"$f":"Customers!E159","v":45533},{"$f":"Customers!F159","v":46021},{"$f":"Customers!G159","v":46690},{"$f":"Customers!H159","v":47195},{"$f":"Customers!I159","v":47737},{"$f":"Customers!J159","v":48175},48897.125,49629.639374999999,50373.491178124998,51127.62372223437,51893.985603623201,52671.515675605086,53461.15809722706,54262.852306740926,55075.53804520722,55901.160354981184,55621.654553206281,55343.546280440249,55066.828549038044,54791.494406292855,54517.536934261392,54244.949249590085,53973.724503342135,53702.855880825424,53431.3416014213,53157.184893414196,52879.398968947127,52575.001974102393,52186.12696423188,51657.196329410719,50858.910347763667,49721.615796024846,48165.007717044718,46209.182678459496,43901.136765067196,41291.63108124186,38655.17292583565,36037.897061206473,33531.707575900444,31169.049038020941,28956.203792830835,27033.422773866681,25281.255659997347,23568.849381697361,21926.005134788873,20377.375109114928,18927.488233569355,17576.850792401507,16319.966538439499,15152.366705747301,14067.604872218564,13061.266847857471,12126.960513618184,11259.325711050093,10454.029082494842,9706.758937082368,9012.2251423969556,8368.1640166849702,7770.3231966015455,7214.4715806185377,6699.3992227154449,6219.9022266018674,5774.802715468858,5361.9287018915138,4978.1190583820562,4622.2284630901459,4291.1173207746951,4268.6617341708215,4246.3184254999678,4224.0868333724684,4201.9663992056057,4179.9565672095778,4158.0567843735298,4136.2665004516621,4114.5851679494035,4093.0122421096567,4071.5471808991083,4050.1894449946126,4028.9384977696395,4007.7938052807913,3986.7548362543871,3965.8210620731152,3944.9919567627494,3924.2669969789358,3903.6456619940413,3884.1274336840711]
["Total",{"$f":"Customers!B160","v":648323},{"$f":"Customers!C160","v":655133},{"$f":"Customers!D160","v":661231},{"$f":"Customers!E160","v":665626},{"$f":"Customers!F160","v":670048},{"$f":"Customers!G160","v":675204},{"$f":"Customers!H160","v":680357},{"$f":"Customers!I160","v":685531},{"$f":"Customers!J160","v":690940},{"$f":"SUM(K3:K22)","v":701280.29999999993},{"$f":"SUM(L3:L22)","v":711784.89850000001},722438.9740075001,733247.77913746238,744234.5402417751,755386.36754056637,766701.43570286362,778191.928524349,789839.96888172755,801671.76903731877,797663.41019213223,793675.09314117162,{"$f":"SUM(W3:W22)","v":789706.71767546562},{"$f":"SUM(X3:X22)","v":785758.18408708833},{"$f":"SUM(Y3:Y22)","v":781825.393166653},{"$f":"SUM(Z3:Z22)","v":777905.26620081952},{"$f":"SUM(AA3:AA22)","v":773968.73986981565},{"$f":"SUM(AB3:AB22)","v":769999.89617046644},{"$f":"SUM(AC3:AC22)","v":765914.89668961405},{"$f":"SUM(AD3:AD22)","v":761663.32220616587},{"$f":"SUM(AE3:AE22)","v":757189.00559513515},{"$f":"SUM(AF3:AF22)","v":751552.06056715944},{"$f":"SUM(AG3:AG22)","v":742945.30026432371},{"$f":"SUM(AH3:AH22)","v":730842.57376300218},{"$f":"SUM(AI3:AI22)","v":714177.36089418724},{"$f":"SUM(AJ3:AJ22)","v":693588.4740897161},{"$f":"SUM(AK3:AK22)","v":669171.5317192676},{"$f":"SUM(AL3:AL22)","v":641548.67406067112},{"$f":"SUM(AM3:AM22)","v":611152.93069036782},{"$f":"SUM(AN3:AN22)","v":578212.16603691597},{"$f":"SUM(AO3:AO22)","v":545267.10520673147},{"$f":"SUM(AP3:AP22)","v":512623.76968069788},{"$f":"SUM(AQ3:AQ22)","v":481201.65083229431},{"$f":"SUM(AR3:AR22)","v":451366.64257813292},{"$f":"SUM(AS3:AS22)","v":423138.8093652422},{"$f":"SUM(AT3:AT22)","v":399034.11531841604},{"$f":"SUM(AU3:AU22)","v":377014.94474182383},{"$f":"SUM(AV3:AV22)","v":355462.8700181148},{"$f":"SUM(AW3:AW22)","v":334621.55566802423},{"$f":"SUM(AX3:AX22)","v":314745.44788968406},{"$f":"SUM(AY3:AY22)","v":295834.72065023566},{"$f":"SUM(AZ3:AZ22)","v":277794.54704698443},{"$f":"SUM(BA3:BA22)","v":260467.57431174957},{"$f":"SUM(BB3:BB22)","v":243713.23644019078},{"$f":"SUM(BC3:BC22)","v":227467.67025798984},{"$f":"SUM(BD3:BD22)","v":211825.33190669992},{"$f":"SUM(BE3:BE22)","v":196949.20524716639},{"$f":"SUM(BF3:BF22)","v":182964.45922093058},{"$f":"SUM(BG3:BG22)","v":169911.63692482596},{"$f":"SUM(BH3:BH22)","v":157768.0787402018},{"$f":"SUM(BI3:BI22)","v":146489.23834650079},{"$f":"SUM(BJ3:BJ22)","v":136019.79215476828},{"$f":"SUM(BK3:BK22)","v":126299.69319399443},{"$f":"SUM(BL3:BL22)","v":117276.19472802449},{"$f":"SUM(BM3:BM22)","v":108897.81375438435},{"$f":"SUM(BN3:BN22)","v":101110.32468561245},{"$f":"SUM(BO3:BO22)","v":93877.773062184395},{"$f":"SUM(BP3:BP22)","v":87167.384196873478},{"$f":"SUM(BQ3:BQ22)","v":80934.547275889083},{"$f":"SUM(BR3:BR22)","v":75149.874539509619},{"$f":"SUM(BS3:BS22)","v":69774.125166812082},{"$f":"SUM(BT3:BT22)","v":69394.254540978029},{"$f":"SUM(BU3:BU22)","v":69015.283268273139},{"$f":"SUM(BV3:BV22)","v":68637.206851931769},{"$f":"SUM(BW3:BW22)","v":68261.020817672106},{"$f":"SUM(BX3:BX22)","v":67886.715713583748},67514.282135015819,67143.710724340752,66774.992170719052,66408.117209865464,66041.07662381613,65675.871240697044,65312.49188449356,64950.929425071081,64591.174777945744,64233.218904056019,63876.052809535737,63519.672545488058,63165.074182760611,62822.248811846803]
[]
["New Residential Customers",2012,{"$f":"B25+1","v":2013},{"$f":"C25+1","v":2014},2015,2016,2017,2018,2019,2020,{"$f":"J25+1","v":2021},{"$f":"K25+1","v":2022},2023,2024,2025,2026,2027,2028,2029,2030,2031,2032,2033,2034,2035,2036,2037,2038,2039,2040,2041,2042,2043,2044,2045,2046,2047,2048,2049,2050,2051,2052,2053,2054,2055,2056,2057,2058,2059,2060,2061,2062,2063,2064,2065,2066,2067,2068,2069,2070,2071,2072,2073,2074,2075,2076,2077,2078,2079,2080,{"$f":"BR25+1","v":2081},2082,2083,2084,2085,2086,{"$f":"BX25+1","v":2087},{"$f":"BY25+1","v":2088},{"$f":"BZ25+1","v":2089},{"$f":"CA25+1","v":2090},{"$f":"CB25+1","v":2091},{"$f":"CC25+1","v":2092},{"$f":"CD25+1","v":2093},{"$f":"CE25+1","v":2094},{"$f":"CF25+1","v":2095},{"$f":"CG25+1","v":2096},{"$f":"CH25+1","v":2097},{"$f":"CI25+1","v":2098},{"$f":"CJ25+1","v":2099},{"$f":"CK25+1","v":2100}]
["LGA"]
["Bass Coast (S)",null,{"$f":"Customers!C164","v":290},{"$f":"Customers!D164","v":264},{"$f":"Customers!E164","v":240},{"$f":"Customers!F164","v":246},{"$f":"Customers!G164","v":244},{"$f":"Customers!H164","v":262},{"$f":"Customers!I164","v":340},{"$f":"Customers!J164","v":280},{"$f":"'RES S curve-connect'!C135","v":70},{"$f":"'RES S curve-connect'!D135","v":71},{"$f":"'RES S curve-connect'!E135","v":72},{"$f":"'RES S curve-connect'!F135","v":74},{"$f":"'RES S curve-connect'!G135","v":75},{"$f":"'RES S curve-connect'!H135","v":76},{"$f":"'RES S curve-connect'!I135","v":77},{"$f":"'RES S curve-connect'!J135","v":78},{"$f":"'RES S curve-connect'!K135","v":79},{"$f":"'RES S curve-connect'!L135","v":80},{"$f":"'RES S curve-connect'!M135","v":0},{"$f":"'RES S curve-connect'!N135","v":0},{"$f":"'RES S curve-connect'!O135","v":0},{"$f":"'RES S curve-connect'!P135","v":0},{"$f":"'RES S curve-connect'!Q135","v":0},{"$f":"'RES S curve-connect'!R135","v":0},{"$f":"'RES S curve-connect'!S135","v":0},{"$f":"'RES S curve-connect'!T135","v":0},{"$f":"'RES S curve-connect'!U135","v":0},{"$f":"'RES S curve-connect'!V135","v":0},{"$f":"'RES S curve-connect'!W135","v":0},{"$f":"'RES S curve-connect'!X135","v":0},{"$f":"'RES S curve-connect'!Y135","v":0},{"$f":"'RES S curve-connect'!Z135","v":0},{"$f":"'RES S curve-connect'!AA135","v":0},{"$f":"'RES S curve-connect'!AB135","v":0},{"$f":"'RES S curve-connect'!AC135","v":0},{"$f":"'RES S curve-connect'!AD135","v":0},{"$f":"'RES S curve-connect'!AE135","v":0},{"$f":"'RES S curve-connect'!AF135","v":0},{"$f":"'RES S curve-connect'!AG135","v":0},{"$f":"'RES S curve-connect'!AH135","v":0},{"$f":"'RES S curve-connect'!AI135","v":0},{"$f":"'RES S curve-connect'!AJ135","v":0},{"$f":"'RES S curve-connect'!AK135","v":0},{"$f":"'RES S curve-connect'!AL135","v":0},{"$f":"'RES S curve-connect'!AM135","v":0},{"$f":"'RES S curve-connect'!AN135","v":0},{"$f":"'RES S curve-connect'!AO135","v":0},{"$f":"'RES S curve-connect'!AP135","v":0},{"$f":"'RES S curve-connect'!AQ135","v":0},{"$f":"'RES S curve-connect'!AR135","v":0},{"$f":"'RES S curve-connect'!AS135","v":0},{"$f":"'RES S curve-connect'!AT135","v":0},{"$f":"'RES S curve-connect'!AU135","v":0},{"$f":"'RES S curve-connect'!AV135","v":0},{"$f":"'RES S curve-connect'!AW135","v":0},{"$f":"'RES S curve-connect'!AX135","v":0},{"$f":"'RES S curve-connect'!AY135","v":0},{"$f":"'RES S curve-connect'!AZ135","v":0},{"$f":"'RES S curve-connect'!BA135","v":0},{"$f":"'RES S curve-connect'!BB135","v":0},{"$f":"'RES S curve-connect'!BC135","v":0},{"$f":"'RES S curve-connect'!BD135","v":0},{"$f":"'RES S curve-connect'!BE135","v":0},{"$f":"'RES S curve-connect'!BF135","v":0},{"$f":"'RES S curve-connect'!BG135","v":0},{"$f":"'RES S curve-connect'!BH135","v":0},{"$f":"'RES S curve-connect'!BI135","v":0},{"$f":"'RES S curve-connect'!BJ135","v":0},{"$f":"'RES S curve-connect'!BK135","v":0},{"$f":"'RES S curve-connect'!BL135","v":0},{"$f":"'RES S curve-connect'!BM135","v":0},{"$f":"'RES S curve-connect'!BN135","v":0},{"$f":"'RES S curve-connect'!BO135","v":0},{"$f":"'RES S curve-connect'!BP135","v":0},{"$f":"'RES S curve-connect'!BQ135","v":0},{"$f":"'RES S curve-connect'!BR135","v":0},{"$f":"'RES S curve-connect'!BS135","v":0},{"$f":"'RES S curve-connect'!BT135","v":0},{"$f":"'RES S curve-connect'!BU135","v":0},{"$f":"'RES S curve-connect'!BV135","v":0},{"$f":"'RES S curve-connect'!BW135","v":0},{"$f":"'RES S curve-connect'!BX135","v":0},{"$f":"'RES S curve-connect'!BY135","v":0},{"$f":"'RES S curve-connect'!BZ135","v":0},{"$f":"'RES S curve-connect'!CA135","v":0},{"$f":"'RES S curve-connect'!CB135","v":0},{"$f":"'RES S curve-connect'!CC135","v":0},{"$f":"'RES S curve-connect'!CD135","v":0}]
["Bayside (C)",null,{"$f":"Customers!C165","v":436},{"$f":"Customers!D165","v":635},{"$f":"Customers!E165","v":664},{"$f":"Customers!F165","v":690},{"$f":"Customers!G165","v":772},{"$f":"Customers!H165","v":704},{"$f":"Customers!I165","v":705},{"$f":"Customers!J165","v":715},{"$f":"'RES S curve-connect'!C136","v":746},{"$f":"'RES S curve-connect'!D136","v":758},{"$f":"'RES S curve-connect'!E136","v":769},{"$f":"'RES S curve-connect'!F136","v":780},{"$f":"'RES S curve-connect'!G136","v":793},{"$f":"'RES S curve-connect'!H136","v":805},{"$f":"'RES S curve-connect'!I136","v":817},{"$f":"'RES S curve-connect'!J136","v":829},{"$f":"'RES S curve-connect'!K136","v":841},{"$f":"'RES S curve-connect'!L136","v":854},{"$f":"'RES S curve-connect'!M136","v":0},{"$f":"'RES S curve-connect'!N136","v":0},{"$f":"'RES S curve-connect'!O136","v":0},{"$f":"'RES S curve-connect'!P136","v":0},{"$f":"'RES S curve-connect'!Q136","v":0},{"$f":"'RES S curve-connect'!R136","v":0},{"$f":"'RES S curve-connect'!S136","v":0},{"$f":"'RES S curve-connect'!T136","v":0},{"$f":"'RES S curve-connect'!U136","v":0},{"$f":"'RES S curve-connect'!V136","v":0},{"$f":"'RES S curve-connect'!W136","v":0},{"$f":"'RES S curve-connect'!X136","v":0},{"$f":"'RES S curve-connect'!Y136","v":0},{"$f":"'RES S curve-connect'!Z136","v":0},{"$f":"'RES S curve-connect'!AA136","v":0},{"$f":"'RES S curve-connect'!AB136","v":0},{"$f":"'RES S curve-connect'!AC136","v":0},{"$f":"'RES S curve-connect'!AD136","v":0},{"$f":"'RES S curve-connect'!AE136","v":0},{"$f":"'RES S curve-connect'!AF136","v":0},{"$f":"'RES S curve-connect'!AG136","v":0},{"$f":"'RES S curve-connect'!AH136","v":0},{"$f":"'RES S curve-connect'!AI136","v":0},{"$f":"'RES S curve-connect'!AJ136","v":0},{"$f":"'RES S curve-connect'!AK136","v":0},{"$f":"'RES S curve-connect'!AL136","v":0},{"$f":"'RES S curve-connect'!AM136","v":0},{"$f":"'RES S curve-connect'!AN136","v":0},{"$f":"'RES S curve-connect'!AO136","v":0},{"$f":"'RES S curve-connect'!AP136","v":0},{"$f":"'RES S curve-connect'!AQ136","v":0},{"$f":"'RES S curve-connect'!AR136","v":0},{"$f":"'RES S curve-connect'!AS136","v":0},{"$f":"'RES S curve-connect'!AT136","v":0},{"$f":"'RES S curve-connect'!AU136","v":0},{"$f":"'RES S curve-connect'!AV136","v":0},{"$f":"'RES S curve-connect'!AW136","v":0},{"$f":"'RES S curve-connect'!AX136","v":0},{"$f":"'RES S curve-connect'!AY136","v":0},{"$f":"'RES S curve-connect'!AZ136","v":0},{"$f":"'RES S curve-connect'!BA136","v":0},{"$f":"'RES S curve-connect'!BB136","v":0},{"$f":"'RES S curve-connect'!BC136","v":0},{"$f":"'RES S curve-connect'!BD136","v":0},{"$f":"'RES S curve-connect'!BE136","v":0},{"$f":"'RES S curve-connect'!BF136","v":0},{"$f":"'RES S curve-connect'!BG136","v":0},{"$f":"'RES S curve-connect'!BH136","v":0},{"$f":"'RES S curve-connect'!BI136","v":0},{"$f":"'RES S curve-connect'!BJ136","v":0},{"$f":"'RES S curve-connect'!BK136","v":0},{"$f":"'RES S curve-connect'!BL136","v":0},{"$f":"'RES S curve-connect'!BM136","v":0},{"$f":"'RES S curve-connect'!BN136","v":0},{"$f":"'RES S curve-connect'!BO136","v":0},{"$f":"'RES S curve-connect'!BP136","v":0},{"$f":"'RES S curve-connect'!BQ136","v":0},{"$f":"'RES S curve-connect'!BR136","v":0},{"$f":"'RES S curve-connect'!BS136","v":0},{"$f":"'RES S curve-connect'!BT136","v":0},{"$f":"'RES S curve-connect'!BU136","v":0},{"$f":"'RES S curve-connect'!BV136","v":0},{"$f":"'RES S curve-connect'!BW136","v":0},{"$f":"'RES S curve-connect'!BX136","v":0},{"$f":"'RES S curve-connect'!BY136","v":0},{"$f":"'RES S curve-connect'!BZ136","v":0},{"$f":"'RES S curve-connect'!CA136","v":0},{"$f":"'RES S curve-connect'!CB136","v":0},{"$f":"'RES S curve-connect'!CC136","v":0},{"$f":"'RES S curve-connect'!CD136","v":0}]
["Boroondara (C)",null,{"$f":"Customers!C166","v":799},{"$f":"Customers!D166","v":1043},{"$f":"Customers!E166","v":965},{"$f":"Customers!F166","v":1141},{"$f":"Customers!G166","v":1178},{"$f":"Customers!H166","v":1042},{"$f":"Customers!I166","v":1014},{"$f":"Customers!J166","v":945},{"$f":"'RES S curve-connect'!C137","v":1267},{"$f":"'RES S curve-connect'!D137","v":1287},{"$f":"'RES S curve-connect'!E137","v":1306},{"$f":"'RES S curve-connect'!F137","v":1325},{"$f":"'RES S curve-connect'!G137","v":1346},{"$f":"'RES S curve-connect'!H137","v":1367},{"$f":"'RES S curve-connect'!I137","v":1387},{"$f":"'RES S curve-connect'!J137","v":1408},{"$f":"'RES S curve-connect'!K137","v":1428},{"$f":"'RES S curve-connect'!L137","v":1450},{"$f":"'RES S curve-connect'!M137","v":0},{"$f":"'RES S curve-connect'!N137","v":0},{"$f":"'RES S curve-connect'!O137","v":0},{"$f":"'RES S curve-connect'!P137","v":0},{"$f":"'RES S curve-connect'!Q137","v":0},{"$f":"'RES S curve-connect'!R137","v":0},{"$f":"'RES S curve-connect'!S137","v":0},{"$f":"'RES S curve-connect'!T137","v":0},{"$f":"'RES S curve-connect'!U137","v":0},{"$f":"'RES S curve-connect'!V137","v":0},{"$f":"'RES S curve-connect'!W137","v":0},{"$f":"'RES S curve-connect'!X137","v":0},{"$f":"'RES S curve-connect'!Y137","v":0},{"$f":"'RES S curve-connect'!Z137","v":0},{"$f":"'RES S curve-connect'!AA137","v":0},{"$f":"'RES S curve-connect'!AB137","v":0},{"$f":"'RES S curve-connect'!AC137","v":0},{"$f":"'RES S curve-connect'!AD137","v":0},{"$f":"'RES S curve-connect'!AE137","v":0},{"$f":"'RES S curve-connect'!AF137","v":0},{"$f":"'RES S curve-connect'!AG137","v":0},{"$f":"'RES S curve-connect'!AH137","v":0},{"$f":"'RES S curve-connect'!AI137","v":0},{"$f":"'RES S curve-connect'!AJ137","v":0},{"$f":"'RES S curve-connect'!AK137","v":0},{"$f":"'RES S curve-connect'!AL137","v":0},{"$f":"'RES S curve-connect'!AM137","v":0},{"$f":"'RES S curve-connect'!AN137","v":0},{"$f":"'RES S curve-connect'!AO137","v":0},{"$f":"'RES S curve-connect'!AP137","v":0},{"$f":"'RES S curve-connect'!AQ137","v":0},{"$f":"'RES S curve-connect'!AR137","v":0},{"$f":"'RES S curve-connect'!AS137","v":0},{"$f":"'RES S curve-connect'!AT137","v":0},{"$f":"'RES S curve-connect'!AU137","v":0},{"$f":"'RES S curve-connect'!AV137","v":0},{"$f":"'RES S curve-connect'!AW137","v":0},{"$f":"'RES S curve-connect'!AX137","v":0},{"$f":"'RES S curve-connect'!AY137","v":0},{"$f":"'RES S curve-connect'!AZ137","v":0},{"$f":"'RES S curve-connect'!BA137","v":0},{"$f":"'RES S curve-connect'!BB137","v":0},{"$f":"'RES S curve-connect'!BC137","v":0},{"$f":"'RES S curve-connect'!BD137","v":0},{"$f":"'RES S curve-connect'!BE137","v":0},{"$f":"'RES S curve-connect'!BF137","v":0},{"$f":"'RES S curve-connect'!BG137","v":0},{"$f":"'RES S curve-connect'!BH137","v":0},{"$f":"'RES S curve-connect'!BI137","v":0},{"$f":"'RES S curve-connect'!BJ137","v":0},{"$f":"'RES S curve-connect'!BK137","v":0},{"$f":"'RES S curve-connect'!BL137","v":0},{"$f":"'RES S curve-connect'!BM137","v":0},{"$f":"'RES S curve-connect'!BN137","v":0},{"$f":"'RES S curve-connect'!BO137","v":0},{"$f":"'RES S curve-connect'!BP137","v":0},{"$f":"'RES S curve-connect'!BQ137","v":0},{"$f":"'RES S curve-connect'!BR137","v":0},{"$f":"'RES S curve-connect'!BS137","v":0},{"$f":"'RES S curve-connect'!BT137","v":0},{"$f":"'RES S curve-connect'!BU137","v":0},{"$f":"'RES S curve-connect'!BV137","v":0},{"$f":"'RES S curve-connect'!BW137","v":0},{"$f":"'RES S curve-connect'!BX137","v":0},{"$f":"'RES S curve-connect'!BY137","v":0},{"$f":"'RES S curve-connect'!BZ137","v":0},{"$f":"'RES S curve-connect'!CA137","v":0},{"$f":"'RES S curve-connect'!CB137","v":0},{"$f":"'RES S curve-connect'!CC137","v":0},{"$f":"'RES S curve-connect'!CD137","v":0}]
["Cardinia (S)",null,{"$f":"Customers!C167","v":35},{"$f":"Customers!D167","v":67},{"$f":"Customers!E167","v":36},{"$f":"Customers!F167","v":51},{"$f":"Customers!G167","v":59},{"$f":"Customers!H167","v":52},{"$f":"Customers!I167","v":42},{"$f":"Customers!J167","v":42},{"$f":"'RES S curve-connect'!C138","v":83},{"$f":"'RES S curve-connect'!D138","v":84},{"$f":"'RES S curve-connect'!E138","v":85},{"$f":"'RES S curve-connect'!F138","v":87},{"$f":"'RES S curve-connect'!G138","v":88},{"$f":"'RES S curve-connect'!H138","v":89},{"$f":"'RES S curve-connect'!I138","v":91},{"$f":"'RES S curve-connect'!J138","v":92},{"$f":"'RES S curve-connect'!K138","v":93},{"$f":"'RES S curve-connect'!L138","v":95},{"$f":"'RES S curve-connect'!M138","v":0},{"$f":"'RES S curve-connect'!N138","v":0},{"$f":"'RES S curve-connect'!O138","v":0},{"$f":"'RES S curve-connect'!P138","v":0},{"$f":"'RES S curve-connect'!Q138","v":0},{"$f":"'RES S curve-connect'!R138","v":0},{"$f":"'RES S curve-connect'!S138","v":0},{"$f":"'RES S curve-connect'!T138","v":0},{"$f":"'RES S curve-connect'!U138","v":0},{"$f":"'RES S curve-connect'!V138","v":0},{"$f":"'RES S curve-connect'!W138","v":0},{"$f":"'RES S curve-connect'!X138","v":0},{"$f":"'RES S curve-connect'!Y138","v":0},{"$f":"'RES S curve-connect'!Z138","v":0},{"$f":"'RES S curve-connect'!AA138","v":0},{"$f":"'RES S curve-connect'!AB138","v":0},{"$f":"'RES S curve-connect'!AC138","v":0},{"$f":"'RES S curve-connect'!AD138","v":0},{"$f":"'RES S curve-connect'!AE138","v":0},{"$f":"'RES S curve-connect'!AF138","v":0},{"$f":"'RES S curve-connect'!AG138","v":0},{"$f":"'RES S curve-connect'!AH138","v":0},{"$f":"'RES S curve-connect'!AI138","v":0},{"$f":"'RES S curve-connect'!AJ138","v":0},{"$f":"'RES S curve-connect'!AK138","v":0},{"$f":"'RES S curve-connect'!AL138","v":0},{"$f":"'RES S curve-connect'!AM138","v":0},{"$f":"'RES S curve-connect'!AN138","v":0},{"$f":"'RES S curve-connect'!AO138","v":0},{"$f":"'RES S curve-connect'!AP138","v":0},{"$f":"'RES S curve-connect'!AQ138","v":0},{"$f":"'RES S curve-connect'!AR138","v":0},{"$f":"'RES S curve-connect'!AS138","v":0},{"$f":"'RES S curve-connect'!AT138","v":0},{"$f":"'RES S curve-connect'!AU138","v":0},{"$f":"'RES S curve-connect'!AV138","v":0},{"$f":"'RES S curve-connect'!AW138","v":0},{"$f":"'RES S curve-connect'!AX138","v":0},{"$f":"'RES S curve-connect'!AY138","v":0},{"$f":"'RES S curve-connect'!AZ138","v":0},{"$f":"'RES S curve-connect'!BA138","v":0},{"$f":"'RES S curve-connect'!BB138","v":0},{"$f":"'RES S curve-connect'!BC138","v":0},{"$f":"'RES S curve-connect'!BD138","v":0},{"$f":"'RES S curve-connect'!BE138","v":0},{"$f":"'RES S curve-connect'!BF138","v":0},{"$f":"'RES S curve-connect'!BG138","v":0},{"$f":"'RES S curve-connect'!BH138","v":0},{"$f":"'RES S curve-connect'!BI138","v":0},{"$f":"'RES S curve-connect'!BJ138","v":0},{"$f":"'RES S curve-connect'!BK138","v":0},{"$f":"'RES S curve-connect'!BL138","v":0},{"$f":"'RES S curve-connect'!BM138","v":0},{"$f":"'RES S curve-connect'!BN138","v":0},{"$f":"'RES S curve-connect'!BO138","v":0},{"$f":"'RES S curve-connect'!BP138","v":0},{"$f":"'RES S curve-connect'!BQ138","v":0},{"$f":"'RES S curve-connect'!BR138","v":0},{"$f":"'RES S curve-connect'!BS138","v":0},{"$f":"'RES S curve-connect'!BT138","v":0},{"$f":"'RES S curve-connect'!BU138","v":0},{"$f":"'RES S curve-connect'!BV138","v":0},{"$f":"'RES S curve-connect'!BW138","v":0},{"$f":"'RES S curve-connect'!BX138","v":0},{"$f":"'RES S curve-connect'!BY138","v":0},{"$f":"'RES S curve-connect'!BZ138","v":0},{"$f":"'RES S curve-connect'!CA138","v":0},{"$f":"'RES S curve-connect'!CB138","v":0},{"$f":"'RES S curve-connect'!CC138","v":0},{"$f":"'RES S curve-connect'!CD138","v":0}]
["Casey (C)",null,{"$f":"Customers!C168","v":76},{"$f":"Customers!D168","v":89},{"$f":"Customers!E168","v":147},{"$f":"Customers!F168","v":121},{"$f":"Customers!G168","v":176},{"$f":"Customers!H168","v":144},{"$f":"Customers!I168","v":148},{"$f":"Customers!J168","v":162},{"$f":"'RES S curve-connect'!C139","v":261},{"$f":"'RES S curve-connect'!D139","v":265},{"$f":"'RES S curve-connect'!E139","v":269},{"$f":"'RES S curve-connect'!F139","v":273},{"$f":"'RES S curve-connect'!G139","v":277},{"$f":"'RES S curve-connect'!H139","v":281},{"$f":"'RES S curve-connect'!I139","v":285},{"$f":"'RES S curve-connect'!J139","v":290},{"$f":"'RES S curve-connect'!K139","v":294},{"$f":"'RES S curve-connect'!L139","v":298},{"$f":"'RES S curve-connect'!M139","v":0},{"$f":"'RES S curve-connect'!N139","v":0},{"$f":"'RES S curve-connect'!O139","v":0},{"$f":"'RES S curve-connect'!P139","v":0},{"$f":"'RES S curve-connect'!Q139","v":0},{"$f":"'RES S curve-connect'!R139","v":0},{"$f":"'RES S curve-connect'!S139","v":0},{"$f":"'RES S curve-connect'!T139","v":0},{"$f":"'RES S curve-connect'!U139","v":0},{"$f":"'RES S curve-connect'!V139","v":0},{"$f":"'RES S curve-connect'!W139","v":0},{"$f":"'RES S curve-connect'!X139","v":0},{"$f":"'RES S curve-connect'!Y139","v":0},{"$f":"'RES S curve-connect'!Z139","v":0},{"$f":"'RES S curve-connect'!AA139","v":0},{"$f":"'RES S curve-connect'!AB139","v":0},{"$f":"'RES S curve-connect'!AC139","v":0},{"$f":"'RES S curve-connect'!AD139","v":0},{"$f":"'RES S curve-connect'!AE139","v":0},{"$f":"'RES S curve-connect'!AF139","v":0},{"$f":"'RES S curve-connect'!AG139","v":0},{"$f":"'RES S curve-connect'!AH139","v":0},{"$f":"'RES S curve-connect'!AI139","v":0},{"$f":"'RES S curve-connect'!AJ139","v":0},{"$f":"'RES S curve-connect'!AK139","v":0},{"$f":"'RES S curve-connect'!AL139","v":0},{"$f":"'RES S curve-connect'!AM139","v":0},{"$f":"'RES S curve-connect'!AN139","v":0},{"$f":"'RES S curve-connect'!AO139","v":0},{"$f":"'RES S curve-connect'!AP139","v":0},{"$f":"'RES S curve-connect'!AQ139","v":0},{"$f":"'RES S curve-connect'!AR139","v":0},{"$f":"'RES S curve-connect'!AS139","v":0},{"$f":"'RES S curve-connect'!AT139","v":0},{"$f":"'RES S curve-connect'!AU139","v":0},{"$f":"'RES S curve-connect'!AV139","v":0},{"$f":"'RES S curve-connect'!AW139","v":0},{"$f":"'RES S curve-connect'!AX139","v":0},{"$f":"'RES S curve-connect'!AY139","v":0},{"$f":"'RES S curve-connect'!AZ139","v":0},{"$f":"'RES S curve-connect'!BA139","v":0},{"$f":"'RES S curve-connect'!BB139","v":0},{"$f":"'RES S curve-connect'!BC139","v":0},{"$f":"'RES S curve-connect'!BD139","v":0},{"$f":"'RES S curve-connect'!BE139","v":0},{"$f":"'RES S curve-connect'!BF139","v":0},{"$f":"'RES S curve-connect'!BG139","v":0},{"$f":"'RES S curve-connect'!BH139","v":0},{"$f":"'RES S curve-connect'!BI139","v":0},{"$f":"'RES S curve-connect'!BJ139","v":0},{"$f":"'RES S curve-connect'!BK139","v":0},{"$f":"'RES S curve-connect'!BL139","v":0},{"$f":"'RES S curve-connect'!BM139","v":0},{"$f":"'RES S curve-connect'!BN139","v":0},{"$f":"'RES S curve-connect'!BO139","v":0},{"$f":"'RES S curve-connect'!BP139","v":0},{"$f":"'RES S curve-connect'!BQ139","v":0},{"$f":"'RES S curve-connect'!BR139","v":0},{"$f":"'RES S curve-connect'!BS139","v":0},{"$f":"'RES S curve-connect'!BT139","v":0},{"$f":"'RES S curve-connect'!BU139","v":0},{"$f":"'RES S curve-connect'!BV139","v":0},{"$f":"'RES S curve-connect'!BW139","v":0},{"$f":"'RES S curve-connect'!BX139","v":0},{"$f":"'RES S curve-connect'!BY139","v":0},{"$f":"'RES S curve-connect'!BZ139","v":0},{"$f":"'RES S curve-connect'!CA139","v":0},{"$f":"'RES S curve-connect'!CB139","v":0},{"$f":"'RES S curve-connect'!CC139","v":0},{"$f":"'RES S curve-connect'!CD139","v":0}]
["Frankston (C)",null,{"$f":"Customers!C169","v":0},{"$f":"Customers!D169","v":0},{"$f":"Customers!E169","v":0},{"$f":"Customers!F169","v":0},{"$f":"Customers!G169","v":0},{"$f":"Customers!H169","v":0},{"$f":"Customers!I169","v":0},{"$f":"Customers!J169","v":0},{"$f":"'RES S curve-connect'!C140","v":0},{"$f":"'RES S curve-connect'!D140","v":0},{"$f":"'RES S curve-connect'!E140","v":0},{"$f":"'RES S curve-connect'!F140","v":0},{"$f":"'RES S curve-connect'!G140","v":0},{"$f":"'RES S curve-connect'!H140","v":0},{"$f":"'RES S curve-connect'!I140","v":0},{"$f":"'RES S curve-connect'!J140","v":0},{"$f":"'RES S curve-connect'!K140","v":0},{"$f":"'RES S curve-connect'!L140","v":0},{"$f":"'RES S curve-connect'!M140","v":0},{"$f":"'RES S curve-connect'!N140","v":0},{"$f":"'RES S curve-connect'!O140","v":0},{"$f":"'RES S curve-connect'!P140","v":0},{"$f":"'RES S curve-connect'!Q140","v":0},{"$f":"'RES S curve-connect'!R140","v":0},{"$f":"'RES S curve-connect'!S140","v":0},{"$f":"'RES S curve-connect'!T140","v":0},{"$f":"'RES S curve-connect'!U140","v":0},{"$f":"'RES S curve-connect'!V140","v":0},{"$f":"'RES S curve-connect'!W140","v":0},{"$f":"'RES S curve-connect'!X140","v":0},{"$f":"'RES S curve-connect'!Y140","v":0},{"$f":"'RES S curve-connect'!Z140","v":0},{"$f":"'RES S curve-connect'!AA140","v":0},{"$f":"'RES S curve-connect'!AB140","v":0},{"$f":"'RES S curve-connect'!AC140","v":0},{"$f":"'RES S curve-connect'!AD140","v":0},{"$f":"'RES S curve-connect'!AE140","v":0},{"$f":"'RES S curve-connect'!AF140","v":0},{"$f":"'RES S curve-connect'!AG140","v":0},{"$f":"'RES S curve-connect'!AH140","v":0},{"$f":"'RES S curve-connect'!AI140","v":0},{"$f":"'RES S curve-connect'!AJ140","v":0},{"$f":"'RES S curve-connect'!AK140","v":0},{"$f":"'RES S curve-connect'!AL140","v":0},{"$f":"'RES S curve-connect'!AM140","v":0},{"$f":"'RES S curve-connect'!AN140","v":0},{"$f":"'RES S curve-connect'!AO140","v":0},{"$f":"'RES S curve-connect'!AP140","v":0},{"$f":"'RES S curve-connect'!AQ140","v":0},{"$f":"'RES S curve-connect'!AR140","v":0},{"$f":"'RES S curve-connect'!AS140","v":0},{"$f":"'RES S curve-connect'!AT140","v":0},{"$f":"'RES S curve-connect'!AU140","v":0},{"$f":"'RES S curve-connect'!AV140","v":0},{"$f":"'RES S curve-connect'!AW140","v":0},{"$f":"'RES S curve-connect'!AX140","v":0},{"$f":"'RES S curve-connect'!AY140","v":0},{"$f":"'RES S curve-connect'!AZ140","v":0},{"$f":"'RES S curve-connect'!BA140","v":0},{"$f":"'RES S curve-connect'!BB140","v":0},{"$f":"'RES S curve-connect'!BC140","v":0},{"$f":"'RES S curve-connect'!BD140","v":0},{"$f":"'RES S curve-connect'!BE140","v":0},{"$f":"'RES S curve-connect'!BF140","v":0},{"$f":"'RES S curve-connect'!BG140","v":0},{"$f":"'RES S curve-connect'!BH140","v":0},{"$f":"'RES S curve-connect'!BI140","v":0},{"$f":"'RES S curve-connect'!BJ140","v":0},{"$f":"'RES S curve-connect'!BK140","v":0},{"$f":"'RES S curve-connect'!BL140","v":0},{"$f":"'RES S curve-connect'!BM140","v":0},{"$f":"'RES S curve-connect'!BN140","v":0},{"$f":"'RES S curve-connect'!BO140","v":0},{"$f":"'RES S curve-connect'!BP140","v":0},{"$f":"'RES S curve-connect'!BQ140","v":0},{"$f":"'RES S curve-connect'!BR140","v":0},{"$f":"'RES S curve-connect'!BS140","v":0},{"$f":"'RES S curve-connect'!BT140","v":0},{"$f":"'RES S curve-connect'!BU140","v":0},{"$f":"'RES S curve-connect'!BV140","v":0},{"$f":"'RES S curve-connect'!BW140","v":0},{"$f":"'RES S curve-connect'!BX140","v":0},{"$f":"'RES S curve-connect'!BY140","v":0},{"$f":"'RES S curve-connect'!BZ140","v":0},{"$f":"'RES S curve-connect'!CA140","v":0},{"$f":"'RES S curve-connect'!CB140","v":0},{"$f":"'RES S curve-connect'!CC140","v":0},{"$f":"'RES S curve-connect'!CD140","v":0}]
["Glen Eira (C)",null,{"$f":"Customers!C170","v":663},{"$f":"Customers!D170","v":873},{"$f":"Customers!E170","v":999},{"$f":"Customers!F170","v":890},{"$f":"Customers!G170","v":1005},{"$f":"Customers!H170","v":930},{"$f":"Customers!I170","v":1014},{"$f":"Customers!J170","v":964},{"$f":"'RES S curve-connect'!C141","v":1041},{"$f":"'RES S curve-connect'!D141","v":1058},{"$f":"'RES S curve-connect'!E141","v":1073},{"$f":"'RES S curve-connect'!F141","v":1088},{"$f":"'RES S curve-connect'!G141","v":1106},{"$f":"'RES S curve-connect'!H141","v":1123},{"$f":"'RES S curve-connect'!I141","v":1139},{"$f":"'RES S curve-connect'!J141","v":1157},{"$f":"'RES S curve-connect'!K141","v":1173},{"$f":"'RES S curve-connect'!L141","v":1191},{"$f":"'RES S curve-connect'!M141","v":0},{"$f":"'RES S curve-connect'!N141","v":0},{"$f":"'RES S curve-connect'!O141","v":0},{"$f":"'RES S curve-connect'!P141","v":0},{"$f":"'RES S curve-connect'!Q141","v":0},{"$f":"'RES S curve-connect'!R141","v":0},{"$f":"'RES S curve-connect'!S141","v":0},{"$f":"'RES S curve-connect'!T141","v":0},{"$f":"'RES S curve-connect'!U141","v":0},{"$f":"'RES S curve-connect'!V141","v":0},{"$f":"'RES S curve-connect'!W141","v":0},{"$f":"'RES S curve-connect'!X141","v":0},{"$f":"'RES S curve-connect'!Y141","v":0},{"$f":"'RES S curve-connect'!Z141","v":0},{"$f":"'RES S curve-connect'!AA141","v":0},{"$f":"'RES S curve-connect'!AB141","v":0},{"$f":"'RES S curve-connect'!AC141","v":0},{"$f":"'RES S curve-connect'!AD141","v":0},{"$f":"'RES S curve-connect'!AE141","v":0},{"$f":"'RES S curve-connect'!AF141","v":0},{"$f":"'RES S curve-connect'!AG141","v":0},{"$f":"'RES S curve-connect'!AH141","v":0},{"$f":"'RES S curve-connect'!AI141","v":0},{"$f":"'RES S curve-connect'!AJ141","v":0},{"$f":"'RES S curve-connect'!AK141","v":0},{"$f":"'RES S curve-connect'!AL141","v":0},{"$f":"'RES S curve-connect'!AM141","v":0},{"$f":"'RES S curve-connect'!AN141","v":0},{"$f":"'RES S curve-connect'!AO141","v":0},{"$f":"'RES S curve-connect'!AP141","v":0},{"$f":"'RES S curve-connect'!AQ141","v":0},{"$f":"'RES S curve-connect'!AR141","v":0},{"$f":"'RES S curve-connect'!AS141","v":0},{"$f":"'RES S curve-connect'!AT141","v":0},{"$f":"'RES S curve-connect'!AU141","v":0},{"$f":"'RES S curve-connect'!AV141","v":0},{"$f":"'RES S curve-connect'!AW141","v":0},{"$f":"'RES S curve-connect'!AX141","v":0},{"$f":"'RES S curve-connect'!AY141","v":0},{"$f":"'RES S curve-connect'!AZ141","v":0},{"$f":"'RES S curve-connect'!BA141","v":0},{"$f":"'RES S curve-connect'!BB141","v":0},{"$f":"'RES S curve-connect'!BC141","v":0},{"$f":"'RES S curve-connect'!BD141","v":0},{"$f":"'RES S curve-connect'!BE141","v":0},{"$f":"'RES S curve-connect'!BF141","v":0},{"$f":"'RES S curve-connect'!BG141","v":0},{"$f":"'RES S curve-connect'!BH141","v":0},{"$f":"'RES S curve-connect'!BI141","v":0},{"$f":"'RES S curve-connect'!BJ141","v":0},{"$f":"'RES S curve-connect'!BK141","v":0},{"$f":"'RES S curve-connect'!BL141","v":0},{"$f":"'RES S curve-connect'!BM141","v":0},{"$f":"'RES S curve-connect'!BN141","v":0},{"$f":"'RES S curve-connect'!BO141","v":0},{"$f":"'RES S curve-connect'!BP141","v":0},{"$f":"'RES S curve-connect'!BQ141","v":0},{"$f":"'RES S curve-connect'!BR141","v":0},{"$f":"'RES S curve-connect'!BS141","v":0},{"$f":"'RES S curve-connect'!BT141","v":0},{"$f":"'RES S curve-connect'!BU141","v":0},{"$f":"'RES S curve-connect'!BV141","v":0},{"$f":"'RES S curve-connect'!BW141","v":0},{"$f":"'RES S curve-connect'!BX141","v":0},{"$f":"'RES S curve-connect'!BY141","v":0},{"$f":"'RES S curve-connect'!BZ141","v":0},{"$f":"'RES S curve-connect'!CA141","v":0},{"$f":"'RES S curve-connect'!CB141","v":0},{"$f":"'RES S curve-connect'!CC141","v":0},{"$f":"'RES S curve-connect'!CD141","v":0}]
["Greater Dandenong (C)",null,{"$f":"Customers!C171","v":836},{"$f":"Customers!D171","v":946},{"$f":"Customers!E171","v":1100},{"$f":"Customers!F171","v":1270},{"$f":"Customers!G171","v":1285},{"$f":"Customers!H171","v":1063},{"$f":"Customers!I171","v":1147},{"$f":"Customers!J171","v":1029},{"$f":"'RES S curve-connect'!C142","v":1134},{"$f":"'RES S curve-connect'!D142","v":1151},{"$f":"'RES S curve-connect'!E142","v":1168},{"$f":"'RES S curve-connect'!F142","v":1185},{"$f":"'RES S curve-connect'!G142","v":1203},{"$f":"'RES S curve-connect'!H142","v":1221},{"$f":"'RES S curve-connect'!I142","v":1240},{"$f":"'RES S curve-connect'!J142","v":1258},{"$f":"'RES S curve-connect'!K142","v":1277},{"$f":"'RES S curve-connect'!L142","v":1296},{"$f":"'RES S curve-connect'!M142","v":0},{"$f":"'RES S curve-connect'!N142","v":0},{"$f":"'RES S curve-connect'!O142","v":0},{"$f":"'RES S curve-connect'!P142","v":0},{"$f":"'RES S curve-connect'!Q142","v":0},{"$f":"'RES S curve-connect'!R142","v":0},{"$f":"'RES S curve-connect'!S142","v":0},{"$f":"'RES S curve-connect'!T142","v":0},{"$f":"'RES S curve-connect'!U142","v":0},{"$f":"'RES S curve-connect'!V142","v":0},{"$f":"'RES S curve-connect'!W142","v":0},{"$f":"'RES S curve-connect'!X142","v":0},{"$f":"'RES S curve-connect'!Y142","v":0},{"$f":"'RES S curve-connect'!Z142","v":0},{"$f":"'RES S curve-connect'!AA142","v":0},{"$f":"'RES S curve-connect'!AB142","v":0},{"$f":"'RES S curve-connect'!AC142","v":0},{"$f":"'RES S curve-connect'!AD142","v":0},{"$f":"'RES S curve-connect'!AE142","v":0},{"$f":"'RES S curve-connect'!AF142","v":0},{"$f":"'RES S curve-connect'!AG142","v":0},{"$f":"'RES S curve-connect'!AH142","v":0},{"$f":"'RES S curve-connect'!AI142","v":0},{"$f":"'RES S curve-connect'!AJ142","v":0},{"$f":"'RES S curve-connect'!AK142","v":0},{"$f":"'RES S curve-connect'!AL142","v":0},{"$f":"'RES S curve-connect'!AM142","v":0},{"$f":"'RES S curve-connect'!AN142","v":0},{"$f":"'RES S curve-connect'!AO142","v":0},{"$f":"'RES S curve-connect'!AP142","v":0},{"$f":"'RES S curve-connect'!AQ142","v":0},{"$f":"'RES S curve-connect'!AR142","v":0},{"$f":"'RES S curve-connect'!AS142","v":0},{"$f":"'RES S curve-connect'!AT142","v":0},{"$f":"'RES S curve-connect'!AU142","v":0},{"$f":"'RES S curve-connect'!AV142","v":0},{"$f":"'RES S curve-connect'!AW142","v":0},{"$f":"'RES S curve-connect'!AX142","v":0},{"$f":"'RES S curve-connect'!AY142","v":0},{"$f":"'RES S curve-connect'!AZ142","v":0},{"$f":"'RES S curve-connect'!BA142","v":0},{"$f":"'RES S curve-connect'!BB142","v":0},{"$f":"'RES S curve-connect'!BC142","v":0},{"$f":"'RES S curve-connect'!BD142","v":0},{"$f":"'RES S curve-connect'!BE142","v":0},{"$f":"'RES S curve-connect'!BF142","v":0},{"$f":"'RES S curve-connect'!BG142","v":0},{"$f":"'RES S curve-connect'!BH142","v":0},{"$f":"'RES S curve-connect'!BI142","v":0},{"$f":"'RES S curve-connect'!BJ142","v":0},{"$f":"'RES S curve-connect'!BK142","v":0},{"$f":"'RES S curve-connect'!BL142","v":0},{"$f":"'RES S curve-connect'!BM142","v":0},{"$f":"'RES S curve-connect'!BN142","v":0},{"$f":"'RES S curve-connect'!BO142","v":0},{"$f":"'RES S curve-connect'!BP142","v":0},{"$f":"'RES S curve-connect'!BQ142","v":0},{"$f":"'RES S curve-connect'!BR142","v":0},{"$f":"'RES S curve-connect'!BS142","v":0},{"$f":"'RES S curve-connect'!BT142","v":0},{"$f":"'RES S curve-connect'!BU142","v":0},{"$f":"'RES S curve-connect'!BV142","v":0},{"$f":"'RES S curve-connect'!BW142","v":0},{"$f":"'RES S curve-connect'!BX142","v":0},{"$f":"'RES S curve-connect'!BY142","v":0},{"$f":"'RES S curve-connect'!BZ142","v":0},{"$f":"'RES S curve-connect'!CA142","v":0},{"$f":"'RES S curve-connect'!CB142","v":0},{"$f":"'RES S curve-connect'!CC142","v":0},{"$f":"'RES S curve-connect'!CD142","v":0}]
["Kingston (C)",null,{"$f":"Customers!C172","v":676},{"$f":"Customers!D172","v":820},{"$f":"Customers!E172","v":896},{"$f":"Customers!F172","v":950},{"$f":"Customers!G172","v":1038},{"$f":"Customers!H172","v":1085},{"$f":"Customers!I172","v":1215},{"$f":"Customers!J172","v":969},{"$f":"'RES S curve-connect'!C143","v":1077},{"$f":"'RES S curve-connect'!D143","v":1094},{"$f":"'RES S curve-connect'!E143","v":1110},{"$f":"'RES S curve-connect'!F143","v":1126},{"$f":"'RES S curve-connect'!G143","v":1144},{"$f":"'RES S curve-connect'!H143","v":1161},{"$f":"'RES S curve-connect'!I143","v":1178},{"$f":"'RES S curve-connect'!J143","v":1196},{"$f":"'RES S curve-connect'!K143","v":1213},{"$f":"'RES S curve-connect'!L143","v":1232},{"$f":"'RES S curve-connect'!M143","v":0},{"$f":"'RES S curve-connect'!N143","v":0},{"$f":"'RES S curve-connect'!O143","v":0},{"$f":"'RES S curve-connect'!P143","v":0},{"$f":"'RES S curve-connect'!Q143","v":0},{"$f":"'RES S curve-connect'!R143","v":0},{"$f":"'RES S curve-connect'!S143","v":0},{"$f":"'RES S curve-connect'!T143","v":0},{"$f":"'RES S curve-connect'!U143","v":0},{"$f":"'RES S curve-connect'!V143","v":0},{"$f":"'RES S curve-connect'!W143","v":0},{"$f":"'RES S curve-connect'!X143","v":0},{"$f":"'RES S curve-connect'!Y143","v":0},{"$f":"'RES S curve-connect'!Z143","v":0},{"$f":"'RES S curve-connect'!AA143","v":0},{"$f":"'RES S curve-connect'!AB143","v":0},{"$f":"'RES S curve-connect'!AC143","v":0},{"$f":"'RES S curve-connect'!AD143","v":0},{"$f":"'RES S curve-connect'!AE143","v":0},{"$f":"'RES S curve-connect'!AF143","v":0},{"$f":"'RES S curve-connect'!AG143","v":0},{"$f":"'RES S curve-connect'!AH143","v":0},{"$f":"'RES S curve-connect'!AI143","v":0},{"$f":"'RES S curve-connect'!AJ143","v":0},{"$f":"'RES S curve-connect'!AK143","v":0},{"$f":"'RES S curve-connect'!AL143","v":0},{"$f":"'RES S curve-connect'!AM143","v":0},{"$f":"'RES S curve-connect'!AN143","v":0},{"$f":"'RES S curve-connect'!AO143","v":0},{"$f":"'RES S curve-connect'!AP143","v":0},{"$f":"'RES S curve-connect'!AQ143","v":0},{"$f":"'RES S curve-connect'!AR143","v":0},{"$f":"'RES S curve-connect'!AS143","v":0},{"$f":"'RES S curve-connect'!AT143","v":0},{"$f":"'RES S curve-connect'!AU143","v":0},{"$f":"'RES S curve-connect'!AV143","v":0},{"$f":"'RES S curve-connect'!AW143","v":0},{"$f":"'RES S curve-connect'!AX143","v":0},{"$f":"'RES S curve-connect'!AY143","v":0},{"$f":"'RES S curve-connect'!AZ143","v":0},{"$f":"'RES S curve-connect'!BA143","v":0},{"$f":"'RES S curve-connect'!BB143","v":0},{"$f":"'RES S curve-connect'!BC143","v":0},{"$f":"'RES S curve-connect'!BD143","v":0},{"$f":"'RES S curve-connect'!BE143","v":0},{"$f":"'RES S curve-connect'!BF143","v":0},{"$f":"'RES S curve-connect'!BG143","v":0},{"$f":"'RES S curve-connect'!BH143","v":0},{"$f":"'RES S curve-connect'!BI143","v":0},{"$f":"'RES S curve-connect'!BJ143","v":0},{"$f":"'RES S curve-connect'!BK143","v":0},{"$f":"'RES S curve-connect'!BL143","v":0},{"$f":"'RES S curve-connect'!BM143","v":0},{"$f":"'RES S curve-connect'!BN143","v":0},{"$f":"'RES S curve-connect'!BO143","v":0},{"$f":"'RES S curve-connect'!BP143","v":0},{"$f":"'RES S curve-connect'!BQ143","v":0},{"$f":"'RES S curve-connect'!BR143","v":0},{"$f":"'RES S curve-connect'!BS143","v":0},{"$f":"'RES S curve-connect'!BT143","v":0},{"$f":"'RES S curve-connect'!BU143","v":0},{"$f":"'RES S curve-connect'!BV143","v":0},{"$f":"'RES S curve-connect'!BW143","v":0},{"$f":"'RES S curve-connect'!BX143","v":0},{"$f":"'RES S curve-connect'!BY143","v":0},{"$f":"'RES S curve-connect'!BZ143","v":0},{"$f":"'RES S curve-connect'!CA143","v":0},{"$f":"'RES S curve-connect'!CB143","v":0},{"$f":"'RES S curve-connect'!CC143","v":0},{"$f":"'RES S curve-connect'!CD143","v":0}]
["Knox (C)",null,{"$f":"Customers!C173","v":623},{"$f":"Customers!D173","v":699},{"$f":"Customers!E173","v":748},{"$f":"Customers!F173","v":849},{"$f":"Customers!G173","v":890},{"$f":"Customers!H173","v":1000},{"$f":"Customers!I173","v":1106},{"$f":"Customers!J173","v":887},{"$f":"'RES S curve-connect'!C144","v":1261},{"$f":"'RES S curve-connect'!D144","v":1280},{"$f":"'RES S curve-connect'!E144","v":1299},{"$f":"'RES S curve-connect'!F144","v":1318},{"$f":"'RES S curve-connect'!G144","v":1339},{"$f":"'RES S curve-connect'!H144","v":1359},{"$f":"'RES S curve-connect'!I144","v":1379},{"$f":"'RES S curve-connect'!J144","v":1400},{"$f":"'RES S curve-connect'!K144","v":1421},{"$f":"'RES S curve-connect'!L144","v":1442},{"$f":"'RES S curve-connect'!M144","v":0},{"$f":"'RES S curve-connect'!N144","v":0},{"$f":"'RES S curve-connect'!O144","v":0},{"$f":"'RES S curve-connect'!P144","v":0},{"$f":"'RES S curve-connect'!Q144","v":0},{"$f":"'RES S curve-connect'!R144","v":0},{"$f":"'RES S curve-connect'!S144","v":0},{"$f":"'RES S curve-connect'!T144","v":0},{"$f":"'RES S curve-connect'!U144","v":0},{"$f":"'RES S curve-connect'!V144","v":0},{"$f":"'RES S curve-connect'!W144","v":0},{"$f":"'RES S curve-connect'!X144","v":0},{"$f":"'RES S curve-connect'!Y144","v":0},{"$f":"'RES S curve-connect'!Z144","v":0},{"$f":"'RES S curve-connect'!AA144","v":0},{"$f":"'RES S curve-connect'!AB144","v":0},{"$f":"'RES S curve-connect'!AC144","v":0},{"$f":"'RES S curve-connect'!AD144","v":0},{"$f":"'RES S curve-connect'!AE144","v":0},{"$f":"'RES S curve-connect'!AF144","v":0},{"$f":"'RES S curve-connect'!AG144","v":0},{"$f":"'RES S curve-connect'!AH144","v":0},{"$f":"'RES S curve-connect'!AI144","v":0},{"$f":"'RES S curve-connect'!AJ144","v":0},{"$f":"'RES S curve-connect'!AK144","v":0},{"$f":"'RES S curve-connect'!AL144","v":0},{"$f":"'RES S curve-connect'!AM144","v":0},{"$f":"'RES S curve-connect'!AN144","v":0},{"$f":"'RES S curve-connect'!AO144","v":0},{"$f":"'RES S curve-connect'!AP144","v":0},{"$f":"'RES S curve-connect'!AQ144","v":0},{"$f":"'RES S curve-connect'!AR144","v":0},{"$f":"'RES S curve-connect'!AS144","v":0},{"$f":"'RES S curve-connect'!AT144","v":0},{"$f":"'RES S curve-connect'!AU144","v":0},{"$f":"'RES S curve-connect'!AV144","v":0},{"$f":"'RES S curve-connect'!AW144","v":0},{"$f":"'RES S curve-connect'!AX144","v":0},{"$f":"'RES S curve-connect'!AY144","v":0},{"$f":"'RES S curve-connect'!AZ144","v":0},{"$f":"'RES S curve-connect'!BA144","v":0},{"$f":"'RES S curve-connect'!BB144","v":0},{"$f":"'RES S curve-connect'!BC144","v":0},{"$f":"'RES S curve-connect'!BD144","v":0},{"$f":"'RES S curve-connect'!BE144","v":0},{"$f":"'RES S curve-connect'!BF144","v":0},{"$f":"'RES S curve-connect'!BG144","v":0},{"$f":"'RES S curve-connect'!BH144","v":0},{"$f":"'RES S curve-connect'!BI144","v":0},{"$f":"'RES S curve-connect'!BJ144","v":0},{"$f":"'RES S curve-connect'!BK144","v":0},{"$f":"'RES S curve-connect'!BL144","v":0},{"$f":"'RES S curve-connect'!BM144","v":0},{"$f":"'RES S curve-connect'!BN144","v":0},{"$f":"'RES S curve-connect'!BO144","v":0},{"$f":"'RES S curve-connect'!BP144","v":0},{"$f":"'RES S curve-connect'!BQ144","v":0},{"$f":"'RES S curve-connect'!BR144","v":0},{"$f":"'RES S curve-connect'!BS144","v":0},{"$f":"'RES S curve-connect'!BT144","v":0},{"$f":"'RES S curve-connect'!BU144","v":0},{"$f":"'RES S curve-connect'!BV144","v":0},{"$f":"'RES S curve-connect'!BW144","v":0},{"$f":"'RES S curve-connect'!BX144","v":0},{"$f":"'RES S curve-connect'!BY144","v":0},{"$f":"'RES S curve-connect'!BZ144","v":0},{"$f":"'RES S curve-connect'!CA144","v":0},{"$f":"'RES S curve-connect'!CB144","v":0},{"$f":"'RES S curve-connect'!CC144","v":0},{"$f":"'RES S curve-connect'!CD144","v":0}]
["Manningham (C)",null,{"$f":"Customers!C174","v":401},{"$f":"Customers!D174","v":538},{"$f":"Customers!E174","v":495},{"$f":"Customers!F174","v":626},{"$f":"Customers!G174","v":720},{"$f":"Customers!H174","v":845},{"$f":"Customers!I174","v":889},{"$f":"Customers!J174","v":991},{"$f":"'RES S curve-connect'!C145","v":873},{"$f":"'RES S curve-connect'!D145","v":886},{"$f":"'RES S curve-connect'!E145","v":899},{"$f":"'RES S curve-connect'!F145","v":912},{"$f":"'RES S curve-connect'!G145","v":926},{"$f":"'RES S curve-connect'!H145","v":940},{"$f":"'RES S curve-connect'!I145","v":954},{"$f":"'RES S curve-connect'!J145","v":969},{"$f":"'RES S curve-connect'!K145","v":983},{"$f":"'RES S curve-connect'!L145","v":998},{"$f":"'RES S curve-connect'!M145","v":0},{"$f":"'RES S curve-connect'!N145","v":0},{"$f":"'RES S curve-connect'!O145","v":0},{"$f":"'RES S curve-connect'!P145","v":0},{"$f":"'RES S curve-connect'!Q145","v":0},{"$f":"'RES S curve-connect'!R145","v":0},{"$f":"'RES S curve-connect'!S145","v":0},{"$f":"'RES S curve-connect'!T145","v":0},{"$f":"'RES S curve-connect'!U145","v":0},{"$f":"'RES S curve-connect'!V145","v":0},{"$f":"'RES S curve-connect'!W145","v":0},{"$f":"'RES S curve-connect'!X145","v":0},{"$f":"'RES S curve-connect'!Y145","v":0},{"$f":"'RES S curve-connect'!Z145","v":0},{"$f":"'RES S curve-connect'!AA145","v":0},{"$f":"'RES S curve-connect'!AB145","v":0},{"$f":"'RES S curve-connect'!AC145","v":0},{"$f":"'RES S curve-connect'!AD145","v":0},{"$f":"'RES S curve-connect'!AE145","v":0},{"$f":"'RES S curve-connect'!AF145","v":0},{"$f":"'RES S curve-connect'!AG145","v":0},{"$f":"'RES S curve-connect'!AH145","v":0},{"$f":"'RES S curve-connect'!AI145","v":0},{"$f":"'RES S curve-connect'!AJ145","v":0},{"$f":"'RES S curve-connect'!AK145","v":0},{"$f":"'RES S curve-connect'!AL145","v":0},{"$f":"'RES S curve-connect'!AM145","v":0},{"$f":"'RES S curve-connect'!AN145","v":0},{"$f":"'RES S curve-connect'!AO145","v":0},{"$f":"'RES S curve-connect'!AP145","v":0},{"$f":"'RES S curve-connect'!AQ145","v":0},{"$f":"'RES S curve-connect'!AR145","v":0},{"$f":"'RES S curve-connect'!AS145","v":0},{"$f":"'RES S curve-connect'!AT145","v":0},{"$f":"'RES S curve-connect'!AU145","v":0},{"$f":"'RES S curve-connect'!AV145","v":0},{"$f":"'RES S curve-connect'!AW145","v":0},{"$f":"'RES S curve-connect'!AX145","v":0},{"$f":"'RES S curve-connect'!AY145","v":0},{"$f":"'RES S curve-connect'!AZ145","v":0},{"$f":"'RES S curve-connect'!BA145","v":0},{"$f":"'RES S curve-connect'!BB145","v":0},{"$f":"'RES S curve-connect'!BC145","v":0},{"$f":"'RES S curve-connect'!BD145","v":0},{"$f":"'RES S curve-connect'!BE145","v":0},{"$f":"'RES S curve-connect'!BF145","v":0},{"$f":"'RES S curve-connect'!BG145","v":0},{"$f":"'RES S curve-connect'!BH145","v":0},{"$f":"'RES S curve-connect'!BI145","v":0},{"$f":"'RES S curve-connect'!BJ145","v":0},{"$f":"'RES S curve-connect'!BK145","v":0},{"$f":"'RES S curve-connect'!BL145","v":0},{"$f":"'RES S curve-connect'!BM145","v":0},{"$f":"'RES S curve-connect'!BN145","v":0},{"$f":"'RES S curve-connect'!BO145","v":0},{"$f":"'RES S curve-connect'!BP145","v":0},{"$f":"'RES S curve-connect'!BQ145","v":0},{"$f":"'RES S curve-connect'!BR145","v":0},{"$f":"'RES S curve-connect'!BS145","v":0},{"$f":"'RES S curve-connect'!BT145","v":0},{"$f":"'RES S curve-connect'!BU145","v":0},{"$f":"'RES S curve-connect'!BV145","v":0},{"$f":"'RES S curve-connect'!BW145","v":0},{"$f":"'RES S curve-connect'!BX145","v":0},{"$f":"'RES S curve-connect'!BY145","v":0},{"$f":"'RES S curve-connect'!BZ145","v":0},{"$f":"'RES S curve-connect'!CA145","v":0},{"$f":"'RES S curve-connect'!CB145","v":0},{"$f":"'RES S curve-connect'!CC145","v":0},{"$f":"'RES S curve-connect'!CD145","v":0}]
["Maroondah (C)",null,{"$f":"Customers!C175","v":539},{"$f":"Customers!D175","v":723},{"$f":"Customers!E175","v":705},{"$f":"Customers!F175","v":748},{"$f":"Customers!G175","v":663},{"$f":"Customers!H175","v":491},{"$f":"Customers!I175","v":496},{"$f":"Customers!J175","v":586},{"$f":"'RES S curve-connect'!C146","v":777},{"$f":"'RES S curve-connect'!D146","v":789},{"$f":"'RES S curve-connect'!E146","v":800},{"$f":"'RES S curve-connect'!F146","v":812},{"$f":"'RES S curve-connect'!G146","v":825},{"$f":"'RES S curve-connect'!H146","v":837},{"$f":"'RES S curve-connect'!I146","v":850},{"$f":"'RES S curve-connect'!J146","v":863},{"$f":"'RES S curve-connect'!K146","v":875},{"$f":"'RES S curve-connect'!L146","v":889},{"$f":"'RES S curve-connect'!M146","v":0},{"$f":"'RES S curve-connect'!N146","v":0},{"$f":"'RES S curve-connect'!O146","v":0},{"$f":"'RES S curve-connect'!P146","v":0},{"$f":"'RES S curve-connect'!Q146","v":0},{"$f":"'RES S curve-connect'!R146","v":0},{"$f":"'RES S curve-connect'!S146","v":0},{"$f":"'RES S curve-connect'!T146","v":0},{"$f":"'RES S curve-connect'!U146","v":0},{"$f":"'RES S curve-connect'!V146","v":0},{"$f":"'RES S curve-connect'!W146","v":0},{"$f":"'RES S curve-connect'!X146","v":0},{"$f":"'RES S curve-connect'!Y146","v":0},{"$f":"'RES S curve-connect'!Z146","v":0},{"$f":"'RES S curve-connect'!AA146","v":0},{"$f":"'RES S curve-connect'!AB146","v":0},{"$f":"'RES S curve-connect'!AC146","v":0},{"$f":"'RES S curve-connect'!AD146","v":0},{"$f":"'RES S curve-connect'!AE146","v":0},{"$f":"'RES S curve-connect'!AF146","v":0},{"$f":"'RES S curve-connect'!AG146","v":0},{"$f":"'RES S curve-connect'!AH146","v":0},{"$f":"'RES S curve-connect'!AI146","v":0},{"$f":"'RES S curve-connect'!AJ146","v":0},{"$f":"'RES S curve-connect'!AK146","v":0},{"$f":"'RES S curve-connect'!AL146","v":0},{"$f":"'RES S curve-connect'!AM146","v":0},{"$f":"'RES S curve-connect'!AN146","v":0},{"$f":"'RES S curve-connect'!AO146","v":0},{"$f":"'RES S curve-connect'!AP146","v":0},{"$f":"'RES S curve-connect'!AQ146","v":0},{"$f":"'RES S curve-connect'!AR146","v":0},{"$f":"'RES S curve-connect'!AS146","v":0},{"$f":"'RES S curve-connect'!AT146","v":0},{"$f":"'RES S curve-connect'!AU146","v":0},{"$f":"'RES S curve-connect'!AV146","v":0},{"$f":"'RES S curve-connect'!AW146","v":0},{"$f":"'RES S curve-connect'!AX146","v":0},{"$f":"'RES S curve-connect'!AY146","v":0},{"$f":"'RES S curve-connect'!AZ146","v":0},{"$f":"'RES S curve-connect'!BA146","v":0},{"$f":"'RES S curve-connect'!BB146","v":0},{"$f":"'RES S curve-connect'!BC146","v":0},{"$f":"'RES S curve-connect'!BD146","v":0},{"$f":"'RES S curve-connect'!BE146","v":0},{"$f":"'RES S curve-connect'!BF146","v":0},{"$f":"'RES S curve-connect'!BG146","v":0},{"$f":"'RES S curve-connect'!BH146","v":0},{"$f":"'RES S curve-connect'!BI146","v":0},{"$f":"'RES S curve-connect'!BJ146","v":0},{"$f":"'RES S curve-connect'!BK146","v":0},{"$f":"'RES S curve-connect'!BL146","v":0},{"$f":"'RES S curve-connect'!BM146","v":0},{"$f":"'RES S curve-connect'!BN146","v":0},{"$f":"'RES S curve-connect'!BO146","v":0},{"$f":"'RES S curve-connect'!BP146","v":0},{"$f":"'RES S curve-connect'!BQ146","v":0},{"$f":"'RES S curve-connect'!BR146","v":0},{"$f":"'RES S curve-connect'!BS146","v":0},{"$f":"'RES S curve-connect'!BT146","v":0},{"$f":"'RES S curve-connect'!BU146","v":0},{"$f":"'RES S curve-connect'!BV146","v":0},{"$f":"'RES S curve-connect'!BW146","v":0},{"$f":"'RES S curve-connect'!BX146","v":0},{"$f":"'RES S curve-connect'!BY146","v":0},{"$f":"'RES S curve-connect'!BZ146","v":0},{"$f":"'RES S curve-connect'!CA146","v":0},{"$f":"'RES S curve-connect'!CB146","v":0},{"$f":"'RES S curve-connect'!CC146","v":0},{"$f":"'RES S curve-connect'!CD146","v":0}]
["Melbourne (C)",null,{"$f":"Customers!C176","v":19},{"$f":"Customers!D176","v":21},{"$f":"Customers!E176","v":11},{"$f":"Customers!F176","v":16},{"$f":"Customers!G176","v":32},{"$f":"Customers!H176","v":38},{"$f":"Customers!I176","v":18},{"$f":"Customers!J176","v":14},{"$f":"'RES S curve-connect'!C147","v":17},{"$f":"'RES S curve-connect'!D147","v":17},{"$f":"'RES S curve-connect'!E147","v":17},{"$f":"'RES S curve-connect'!F147","v":18},{"$f":"'RES S curve-connect'!G147","v":18},{"$f":"'RES S curve-connect'!H147","v":18},{"$f":"'RES S curve-connect'!I147","v":18},{"$f":"'RES S curve-connect'!J147","v":19},{"$f":"'RES S curve-connect'!K147","v":19},{"$f":"'RES S curve-connect'!L147","v":19},{"$f":"'RES S curve-connect'!M147","v":0},{"$f":"'RES S curve-connect'!N147","v":0},{"$f":"'RES S curve-connect'!O147","v":0},{"$f":"'RES S curve-connect'!P147","v":0},{"$f":"'RES S curve-connect'!Q147","v":0},{"$f":"'RES S curve-connect'!R147","v":0},{"$f":"'RES S curve-connect'!S147","v":0},{"$f":"'RES S curve-connect'!T147","v":0},{"$f":"'RES S curve-connect'!U147","v":0},{"$f":"'RES S curve-connect'!V147","v":0},{"$f":"'RES S curve-connect'!W147","v":0},{"$f":"'RES S curve-connect'!X147","v":0},{"$f":"'RES S curve-connect'!Y147","v":0},{"$f":"'RES S curve-connect'!Z147","v":0},{"$f":"'RES S curve-connect'!AA147","v":0},{"$f":"'RES S curve-connect'!AB147","v":0},{"$f":"'RES S curve-connect'!AC147","v":0},{"$f":"'RES S curve-connect'!AD147","v":0},{"$f":"'RES S curve-connect'!AE147","v":0},{"$f":"'RES S curve-connect'!AF147","v":0},{"$f":"'RES S curve-connect'!AG147","v":0},{"$f":"'RES S curve-connect'!AH147","v":0},{"$f":"'RES S curve-connect'!AI147","v":0},{"$f":"'RES S curve-connect'!AJ147","v":0},{"$f":"'RES S curve-connect'!AK147","v":0},{"$f":"'RES S curve-connect'!AL147","v":0},{"$f":"'RES S curve-connect'!AM147","v":0},{"$f":"'RES S curve-connect'!AN147","v":0},{"$f":"'RES S curve-connect'!AO147","v":0},{"$f":"'RES S curve-connect'!AP147","v":0},{"$f":"'RES S curve-connect'!AQ147","v":0},{"$f":"'RES S curve-connect'!AR147","v":0},{"$f":"'RES S curve-connect'!AS147","v":0},{"$f":"'RES S curve-connect'!AT147","v":0},{"$f":"'RES S curve-connect'!AU147","v":0},{"$f":"'RES S curve-connect'!AV147","v":0},{"$f":"'RES S curve-connect'!AW147","v":0},{"$f":"'RES S curve-connect'!AX147","v":0},{"$f":"'RES S curve-connect'!AY147","v":0},{"$f":"'RES S curve-connect'!AZ147","v":0},{"$f":"'RES S curve-connect'!BA147","v":0},{"$f":"'RES S curve-connect'!BB147","v":0},{"$f":"'RES S curve-connect'!BC147","v":0},{"$f":"'RES S curve-connect'!BD147","v":0},{"$f":"'RES S curve-connect'!BE147","v":0},{"$f":"'RES S curve-connect'!BF147","v":0},{"$f":"'RES S curve-connect'!BG147","v":0},{"$f":"'RES S curve-connect'!BH147","v":0},{"$f":"'RES S curve-connect'!BI147","v":0},{"$f":"'RES S curve-connect'!BJ147","v":0},{"$f":"'RES S curve-connect'!BK147","v":0},{"$f":"'RES S curve-connect'!BL147","v":0},{"$f":"'RES S curve-connect'!BM147","v":0},{"$f":"'RES S curve-connect'!BN147","v":0},{"$f":"'RES S curve-connect'!BO147","v":0},{"$f":"'RES S curve-connect'!BP147","v":0},{"$f":"'RES S curve-connect'!BQ147","v":0},{"$f":"'RES S curve-connect'!BR147","v":0},{"$f":"'RES S curve-connect'!BS147","v":0},{"$f":"'RES S curve-connect'!BT147","v":0},{"$f":"'RES S curve-connect'!BU147","v":0},{"$f":"'RES S curve-connect'!BV147","v":0},{"$f":"'RES S curve-connect'!BW147","v":0},{"$f":"'RES S curve-connect'!BX147","v":0},{"$f":"'RES S curve-connect'!BY147","v":0},{"$f":"'RES S curve-connect'!BZ147","v":0},{"$f":"'RES S curve-connect'!CA147","v":0},{"$f":"'RES S curve-connect'!CB147","v":0},{"$f":"'RES S curve-connect'!CC147","v":0},{"$f":"'RES S curve-connect'!CD147","v":0}]
["Monash (C)",null,{"$f":"Customers!C177","v":717},{"$f":"Customers!D177","v":989},{"$f":"Customers!E177","v":1111},{"$f":"Customers!F177","v":1225},{"$f":"Customers!G177","v":1266},{"$f":"Customers!H177","v":1186},{"$f":"Customers!I177","v":1378},{"$f":"Customers!J177","v":1398},{"$f":"'RES S curve-connect'!C148","v":1311},{"$f":"'RES S curve-connect'!D148","v":1331},{"$f":"'RES S curve-connect'!E148","v":1351},{"$f":"'RES S curve-connect'!F148","v":1371},{"$f":"'RES S curve-connect'!G148","v":1392},{"$f":"'RES S curve-connect'!H148","v":1413},{"$f":"'RES S curve-connect'!I148","v":1434},{"$f":"'RES S curve-connect'!J148","v":1456},{"$f":"'RES S curve-connect'!K148","v":1477},{"$f":"'RES S curve-connect'!L148","v":1500},{"$f":"'RES S curve-connect'!M148","v":0},{"$f":"'RES S curve-connect'!N148","v":0},{"$f":"'RES S curve-connect'!O148","v":0},{"$f":"'RES S curve-connect'!P148","v":0},{"$f":"'RES S curve-connect'!Q148","v":0},{"$f":"'RES S curve-connect'!R148","v":0},{"$f":"'RES S curve-connect'!S148","v":0},{"$f":"'RES S curve-connect'!T148","v":0},{"$f":"'RES S curve-connect'!U148","v":0},{"$f":"'RES S curve-connect'!V148","v":0},{"$f":"'RES S curve-connect'!W148","v":0},{"$f":"'RES S curve-connect'!X148","v":0},{"$f":"'RES S curve-connect'!Y148","v":0},{"$f":"'RES S curve-connect'!Z148","v":0},{"$f":"'RES S curve-connect'!AA148","v":0},{"$f":"'RES S curve-connect'!AB148","v":0},{"$f":"'RES S curve-connect'!AC148","v":0},{"$f":"'RES S curve-connect'!AD148","v":0},{"$f":"'RES S curve-connect'!AE148","v":0},{"$f":"'RES S curve-connect'!AF148","v":0},{"$f":"'RES S curve-connect'!AG148","v":0},{"$f":"'RES S curve-connect'!AH148","v":0},{"$f":"'RES S curve-connect'!AI148","v":0},{"$f":"'RES S curve-connect'!AJ148","v":0},{"$f":"'RES S curve-connect'!AK148","v":0},{"$f":"'RES S curve-connect'!AL148","v":0},{"$f":"'RES S curve-connect'!AM148","v":0},{"$f":"'RES S curve-connect'!AN148","v":0},{"$f":"'RES S curve-connect'!AO148","v":0},{"$f":"'RES S curve-connect'!AP148","v":0},{"$f":"'RES S curve-connect'!AQ148","v":0},{"$f":"'RES S curve-connect'!AR148","v":0},{"$f":"'RES S curve-connect'!AS148","v":0},{"$f":"'RES S curve-connect'!AT148","v":0},{"$f":"'RES S curve-connect'!AU148","v":0},{"$f":"'RES S curve-connect'!AV148","v":0},{"$f":"'RES S curve-connect'!AW148","v":0},{"$f":"'RES S curve-connect'!AX148","v":0},{"$f":"'RES S curve-connect'!AY148","v":0},{"$f":"'RES S curve-connect'!AZ148","v":0},{"$f":"'RES S curve-connect'!BA148","v":0},{"$f":"'RES S curve-connect'!BB148","v":0},{"$f":"'RES S curve-connect'!BC148","v":0},{"$f":"'RES S curve-connect'!BD148","v":0},{"$f":"'RES S curve-connect'!BE148","v":0},{"$f":"'RES S curve-connect'!BF148","v":0},{"$f":"'RES S curve-connect'!BG148","v":0},{"$f":"'RES S curve-connect'!BH148","v":0},{"$f":"'RES S curve-connect'!BI148","v":0},{"$f":"'RES S curve-connect'!BJ148","v":0},{"$f":"'RES S curve-connect'!BK148","v":0},{"$f":"'RES S curve-connect'!BL148","v":0},{"$f":"'RES S curve-connect'!BM148","v":0},{"$f":"'RES S curve-connect'!BN148","v":0},{"$f":"'RES S curve-connect'!BO148","v":0},{"$f":"'RES S curve-connect'!BP148","v":0},{"$f":"'RES S curve-connect'!BQ148","v":0},{"$f":"'RES S curve-connect'!BR148","v":0},{"$f":"'RES S curve-connect'!BS148","v":0},{"$f":"'RES S curve-connect'!BT148","v":0},{"$f":"'RES S curve-connect'!BU148","v":0},{"$f":"'RES S curve-connect'!BV148","v":0},{"$f":"'RES S curve-connect'!BW148","v":0},{"$f":"'RES S curve-connect'!BX148","v":0},{"$f":"'RES S curve-connect'!BY148","v":0},{"$f":"'RES S curve-connect'!BZ148","v":0},{"$f":"'RES S curve-connect'!CA148","v":0},{"$f":"'RES S curve-connect'!CB148","v":0},{"$f":"'RES S curve-connect'!CC148","v":0},{"$f":"'RES S curve-connect'!CD148","v":0}]
["Nillumbik (S)",null,{"$f":"Customers!C178","v":0},{"$f":"Customers!D178","v":0},{"$f":"Customers!E178","v":0},{"$f":"Customers!F178","v":0},{"$f":"Customers!G178","v":0},{"$f":"Customers!H178","v":0},{"$f":"Customers!I178","v":0},{"$f":"Customers!J178","v":0},{"$f":"'RES S curve-connect'!C149","v":0},{"$f":"'RES S curve-connect'!D149","v":0},{"$f":"'RES S curve-connect'!E149","v":0},{"$f":"'RES S curve-connect'!F149","v":0},{"$f":"'RES S curve-connect'!G149","v":0},{"$f":"'RES S curve-connect'!H149","v":0},{"$f":"'RES S curve-connect'!I149","v":0},{"$f":"'RES S curve-connect'!J149","v":0},{"$f":"'RES S curve-connect'!K149","v":0},{"$f":"'RES S curve-connect'!L149","v":0},{"$f":"'RES S curve-connect'!M149","v":0},{"$f":"'RES S curve-connect'!N149","v":0},{"$f":"'RES S curve-connect'!O149","v":0},{"$f":"'RES S curve-connect'!P149","v":0},{"$f":"'RES S curve-connect'!Q149","v":0},{"$f":"'RES S curve-connect'!R149","v":0},{"$f":"'RES S curve-connect'!S149","v":0},{"$f":"'RES S curve-connect'!T149","v":0},{"$f":"'RES S curve-connect'!U149","v":0},{"$f":"'RES S curve-connect'!V149","v":0},{"$f":"'RES S curve-connect'!W149","v":0},{"$f":"'RES S curve-connect'!X149","v":0},{"$f":"'RES S curve-connect'!Y149","v":0},{"$f":"'RES S curve-connect'!Z149","v":0},{"$f":"'RES S curve-connect'!AA149","v":0},{"$f":"'RES S curve-connect'!AB149","v":0},{"$f":"'RES S curve-connect'!AC149","v":0},{"$f":"'RES S curve-connect'!AD149","v":0},{"$f":"'RES S curve-connect'!AE149","v":0},{"$f":"'RES S curve-connect'!AF149","v":0},{"$f":"'RES S curve-connect'!AG149","v":0},{"$f":"'RES S curve-connect'!AH149","v":0},{"$f":"'RES S curve-connect'!AI149","v":0},{"$f":"'RES S curve-connect'!AJ149","v":0},{"$f":"'RES S curve-connect'!AK149","v":0},{"$f":"'RES S curve-connect'!AL149","v":0},{"$f":"'RES S curve-connect'!AM149","v":0},{"$f":"'RES S curve-connect'!AN149","v":0},{"$f":"'RES S curve-connect'!AO149","v":0},{"$f":"'RES S curve-connect'!AP149","v":0},{"$f":"'RES S curve-connect'!AQ149","v":0},{"$f":"'RES S curve-connect'!AR149","v":0},{"$f":"'RES S curve-connect'!AS149","v":0},{"$f":"'RES S curve-connect'!AT149","v":0},{"$f":"'RES S curve-connect'!AU149","v":0},{"$f":"'RES S curve-connect'!AV149","v":0},{"$f":"'RES S curve-connect'!AW149","v":0},{"$f":"'RES S curve-connect'!AX149","v":0},{"$f":"'RES S curve-connect'!AY149","v":0},{"$f":"'RES S curve-connect'!AZ149","v":0},{"$f":"'RES S curve-connect'!BA149","v":0},{"$f":"'RES S curve-connect'!BB149","v":0},{"$f":"'RES S curve-connect'!BC149","v":0},{"$f":"'RES S curve-connect'!BD149","v":0},{"$f":"'RES S curve-connect'!BE149","v":0},{"$f":"'RES S curve-connect'!BF149","v":0},{"$f":"'RES S curve-connect'!BG149","v":0},{"$f":"'RES S curve-connect'!BH149","v":0},{"$f":"'RES S curve-connect'!BI149","v":0},{"$f":"'RES S curve-connect'!BJ149","v":0},{"$f":"'RES S curve-connect'!BK149","v":0},{"$f":"'RES S curve-connect'!BL149","v":0},{"$f":"'RES S curve-connect'!BM149","v":0},{"$f":"'RES S curve-connect'!BN149","v":0},{"$f":"'RES S curve-connect'!BO149","v":0},{"$f":"'RES S curve-connect'!BP149","v":0},{"$f":"'RES S curve-connect'!BQ149","v":0},{"$f":"'RES S curve-connect'!BR149","v":0},{"$f":"'RES S curve-connect'!BS149","v":0},{"$f":"'RES S curve-connect'!BT149","v":0},{"$f":"'RES S curve-connect'!BU149","v":0},{"$f":"'RES S curve-connect'!BV149","v":0},{"$f":"'RES S curve-connect'!BW149","v":0},{"$f":"'RES S curve-connect'!BX149","v":0},{"$f":"'RES S curve-connect'!BY149","v":0},{"$f":"'RES S curve-connect'!BZ149","v":0},{"$f":"'RES S curve-connect'!CA149","v":0},{"$f":"'RES S curve-connect'!CB149","v":0},{"$f":"'RES S curve-connect'!CC149","v":0},{"$f":"'RES S curve-connect'!CD149","v":0}]
["Port Phillip (C)",null,{"$f":"Customers!C179","v":417},{"$f":"Customers!D179","v":454},{"$f":"Customers!E179","v":461},{"$f":"Customers!F179","v":483},{"$f":"Customers!G179","v":571},{"$f":"Customers!H179","v":619},{"$f":"Customers!I179","v":482},{"$f":"Customers!J179","v":382},{"$f":"'RES S curve-connect'!C150","v":762},{"$f":"'RES S curve-connect'!D150","v":776},{"$f":"'RES S curve-connect'!E150","v":786},{"$f":"'RES S curve-connect'!F150","v":796},{"$f":"'RES S curve-connect'!G150","v":812},{"$f":"'RES S curve-connect'!H150","v":824},{"$f":"'RES S curve-connect'!I150","v":835},{"$f":"'RES S curve-connect'!J150","v":849},{"$f":"'RES S curve-connect'!K150","v":858},{"$f":"'RES S curve-connect'!L150","v":873},{"$f":"'RES S curve-connect'!M150","v":0},{"$f":"'RES S curve-connect'!N150","v":0},{"$f":"'RES S curve-connect'!O150","v":0},{"$f":"'RES S curve-connect'!P150","v":0},{"$f":"'RES S curve-connect'!Q150","v":0},{"$f":"'RES S curve-connect'!R150","v":0},{"$f":"'RES S curve-connect'!S150","v":0},{"$f":"'RES S curve-connect'!T150","v":0},{"$f":"'RES S curve-connect'!U150","v":0},{"$f":"'RES S curve-connect'!V150","v":0},{"$f":"'RES S curve-connect'!W150","v":0},{"$f":"'RES S curve-connect'!X150","v":0},{"$f":"'RES S curve-connect'!Y150","v":0},{"$f":"'RES S curve-connect'!Z150","v":0},{"$f":"'RES S curve-connect'!AA150","v":0},{"$f":"'RES S curve-connect'!AB150","v":0},{"$f":"'RES S curve-connect'!AC150","v":0},{"$f":"'RES S curve-connect'!AD150","v":0},{"$f":"'RES S curve-connect'!AE150","v":0},{"$f":"'RES S curve-connect'!AF150","v":0},{"$f":"'RES S curve-connect'!AG150","v":0},{"$f":"'RES S curve-connect'!AH150","v":0},{"$f":"'RES S curve-connect'!AI150","v":0},{"$f":"'RES S curve-connect'!AJ150","v":0},{"$f":"'RES S curve-connect'!AK150","v":0},{"$f":"'RES S curve-connect'!AL150","v":0},{"$f":"'RES S curve-connect'!AM150","v":0},{"$f":"'RES S curve-connect'!AN150","v":0},{"$f":"'RES S curve-connect'!AO150","v":0},{"$f":"'RES S curve-connect'!AP150","v":0},{"$f":"'RES S curve-connect'!AQ150","v":0},{"$f":"'RES S curve-connect'!AR150","v":0},{"$f":"'RES S curve-connect'!AS150","v":0},{"$f":"'RES S curve-connect'!AT150","v":0},{"$f":"'RES S curve-connect'!AU150","v":0},{"$f":"'RES S curve-connect'!AV150","v":0},{"$f":"'RES S curve-connect'!AW150","v":0},{"$f":"'RES S curve-connect'!AX150","v":0},{"$f":"'RES S curve-connect'!AY150","v":0},{"$f":"'RES S curve-connect'!AZ150","v":0},{"$f":"'RES S curve-connect'!BA150","v":0},{"$f":"'RES S curve-connect'!BB150","v":0},{"$f":"'RES S curve-connect'!BC150","v":0},{"$f":"'RES S curve-connect'!BD150","v":0},{"$f":"'RES S curve-connect'!BE150","v":0},{"$f":"'RES S curve-connect'!BF150","v":0},{"$f":"'RES S curve-connect'!BG150","v":0},{"$f":"'RES S curve-connect'!BH150","v":0},{"$f":"'RES S curve-connect'!BI150","v":0},{"$f":"'RES S curve-connect'!BJ150","v":0},{"$f":"'RES S curve-connect'!BK150","v":0},{"$f":"'RES S curve-connect'!BL150","v":0},{"$f":"'RES S curve-connect'!BM150","v":0},{"$f":"'RES S curve-connect'!BN150","v":0},{"$f":"'RES S curve-connect'!BO150","v":0},{"$f":"'RES S curve-connect'!BP150","v":0},{"$f":"'RES S curve-connect'!BQ150","v":0},{"$f":"'RES S curve-connect'!BR150","v":0},{"$f":"'RES S curve-connect'!BS150","v":0},{"$f":"'RES S curve-connect'!BT150","v":0},{"$f":"'RES S curve-connect'!BU150","v":0},{"$f":"'RES S curve-connect'!BV150","v":0},{"$f":"'RES S curve-connect'!BW150","v":0},{"$f":"'RES S curve-connect'!BX150","v":0},{"$f":"'RES S curve-connect'!BY150","v":0},{"$f":"'RES S curve-connect'!BZ150","v":0},{"$f":"'RES S curve-connect'!CA150","v":0},{"$f":"'RES S curve-connect'!CB150","v":0},{"$f":"'RES S curve-connect'!CC150","v":0},{"$f":"'RES S curve-connect'!CD150","v":0}]
["South Gippsland (S)",null,{"$f":"Customers!C180","v":189},{"$f":"Customers!D180","v":148},{"$f":"Customers!E180","v":151},{"$f":"Customers!F180","v":125},{"$f":"Customers!G180","v":112},{"$f":"Customers!H180","v":93},{"$f":"Customers!I180","v":115},{"$f":"Customers!J180","v":102},{"$f":"'RES S curve-connect'!C151","v":43},{"$f":"'RES S curve-connect'!D151","v":43},{"$f":"'RES S curve-connect'!E151","v":44},{"$f":"'RES S curve-connect'!F151","v":45},{"$f":"'RES S curve-connect'!G151","v":45},{"$f":"'RES S curve-connect'!H151","v":46},{"$f":"'RES S curve-connect'!I151","v":47},{"$f":"'RES S curve-connect'!J151","v":47},{"$f":"'RES S curve-connect'!K151","v":48},{"$f":"'RES S curve-connect'!L151","v":49},{"$f":"'RES S curve-connect'!M151","v":0},{"$f":"'RES S curve-connect'!N151","v":0},{"$f":"'RES S curve-connect'!O151","v":0},{"$f":"'RES S curve-connect'!P151","v":0},{"$f":"'RES S curve-connect'!Q151","v":0},{"$f":"'RES S curve-connect'!R151","v":0},{"$f":"'RES S curve-connect'!S151","v":0},{"$f":"'RES S curve-connect'!T151","v":0},{"$f":"'RES S curve-connect'!U151","v":0},{"$f":"'RES S curve-connect'!V151","v":0},{"$f":"'RES S curve-connect'!W151","v":0},{"$f":"'RES S curve-connect'!X151","v":0},{"$f":"'RES S curve-connect'!Y151","v":0},{"$f":"'RES S curve-connect'!Z151","v":0},{"$f":"'RES S curve-connect'!AA151","v":0},{"$f":"'RES S curve-connect'!AB151","v":0},{"$f":"'RES S curve-connect'!AC151","v":0},{"$f":"'RES S curve-connect'!AD151","v":0},{"$f":"'RES S curve-connect'!AE151","v":0},{"$f":"'RES S curve-connect'!AF151","v":0},{"$f":"'RES S curve-connect'!AG151","v":0},{"$f":"'RES S curve-connect'!AH151","v":0},{"$f":"'RES S curve-connect'!AI151","v":0},{"$f":"'RES S curve-connect'!AJ151","v":0},{"$f":"'RES S curve-connect'!AK151","v":0},{"$f":"'RES S curve-connect'!AL151","v":0},{"$f":"'RES S curve-connect'!AM151","v":0},{"$f":"'RES S curve-connect'!AN151","v":0},{"$f":"'RES S curve-connect'!AO151","v":0},{"$f":"'RES S curve-connect'!AP151","v":0},{"$f":"'RES S curve-connect'!AQ151","v":0},{"$f":"'RES S curve-connect'!AR151","v":0},{"$f":"'RES S curve-connect'!AS151","v":0},{"$f":"'RES S curve-connect'!AT151","v":0},{"$f":"'RES S curve-connect'!AU151","v":0},{"$f":"'RES S curve-connect'!AV151","v":0},{"$f":"'RES S curve-connect'!AW151","v":0},{"$f":"'RES S curve-connect'!AX151","v":0},{"$f":"'RES S curve-connect'!AY151","v":0},{"$f":"'RES S curve-connect'!AZ151","v":0},{"$f":"'RES S curve-connect'!BA151","v":0},{"$f":"'RES S curve-connect'!BB151","v":0},{"$f":"'RES S curve-connect'!BC151","v":0},{"$f":"'RES S curve-connect'!BD151","v":0},{"$f":"'RES S curve-connect'!BE151","v":0},{"$f":"'RES S curve-connect'!BF151","v":0},{"$f":"'RES S curve-connect'!BG151","v":0},{"$f":"'RES S curve-connect'!BH151","v":0},{"$f":"'RES S curve-connect'!BI151","v":0},{"$f":"'RES S curve-connect'!BJ151","v":0},{"$f":"'RES S curve-connect'!BK151","v":0},{"$f":"'RES S curve-connect'!BL151","v":0},{"$f":"'RES S curve-connect'!BM151","v":0},{"$f":"'RES S curve-connect'!BN151","v":0},{"$f":"'RES S curve-connect'!BO151","v":0},{"$f":"'RES S curve-connect'!BP151","v":0},{"$f":"'RES S curve-connect'!BQ151","v":0},{"$f":"'RES S curve-connect'!BR151","v":0},{"$f":"'RES S curve-connect'!BS151","v":0},{"$f":"'RES S curve-connect'!BT151","v":0},{"$f":"'RES S curve-connect'!BU151","v":0},{"$f":"'RES S curve-connect'!BV151","v":0},{"$f":"'RES S curve-connect'!BW151","v":0},{"$f":"'RES S curve-connect'!BX151","v":0},{"$f":"'RES S curve-connect'!BY151","v":0},{"$f":"'RES S curve-connect'!BZ151","v":0},{"$f":"'RES S curve-connect'!CA151","v":0},{"$f":"'RES S curve-connect'!CB151","v":0},{"$f":"'RES S curve-connect'!CC151","v":0},{"$f":"'RES S curve-connect'!CD151","v":0}]
["Stonnington (C)",null,{"$f":"Customers!C181","v":488},{"$f":"Customers!D181","v":567},{"$f":"Customers!E181","v":579},{"$f":"Customers!F181","v":642},{"$f":"Customers!G181","v":619},{"$f":"Customers!H181","v":609},{"$f":"Customers!I181","v":512},{"$f":"Customers!J181","v":550},{"$f":"'RES S curve-connect'!C152","v":773},{"$f":"'RES S curve-connect'!D152","v":787},{"$f":"'RES S curve-connect'!E152","v":797},{"$f":"'RES S curve-connect'!F152","v":808},{"$f":"'RES S curve-connect'!G152","v":823},{"$f":"'RES S curve-connect'!H152","v":836},{"$f":"'RES S curve-connect'!I152","v":847},{"$f":"'RES S curve-connect'!J152","v":861},{"$f":"'RES S curve-connect'!K152","v":871},{"$f":"'RES S curve-connect'!L152","v":886},{"$f":"'RES S curve-connect'!M152","v":0},{"$f":"'RES S curve-connect'!N152","v":0},{"$f":"'RES S curve-connect'!O152","v":0},{"$f":"'RES S curve-connect'!P152","v":0},{"$f":"'RES S curve-connect'!Q152","v":0},{"$f":"'RES S curve-connect'!R152","v":0},{"$f":"'RES S curve-connect'!S152","v":0},{"$f":"'RES S curve-connect'!T152","v":0},{"$f":"'RES S curve-connect'!U152","v":0},{"$f":"'RES S curve-connect'!V152","v":0},{"$f":"'RES S curve-connect'!W152","v":0},{"$f":"'RES S curve-connect'!X152","v":0},{"$f":"'RES S curve-connect'!Y152","v":0},{"$f":"'RES S curve-connect'!Z152","v":0},{"$f":"'RES S curve-connect'!AA152","v":0},{"$f":"'RES S curve-connect'!AB152","v":0},{"$f":"'RES S curve-connect'!AC152","v":0},{"$f":"'RES S curve-connect'!AD152","v":0},{"$f":"'RES S curve-connect'!AE152","v":0},{"$f":"'RES S curve-connect'!AF152","v":0},{"$f":"'RES S curve-connect'!AG152","v":0},{"$f":"'RES S curve-connect'!AH152","v":0},{"$f":"'RES S curve-connect'!AI152","v":0},{"$f":"'RES S curve-connect'!AJ152","v":0},{"$f":"'RES S curve-connect'!AK152","v":0},{"$f":"'RES S curve-connect'!AL152","v":0},{"$f":"'RES S curve-connect'!AM152","v":0},{"$f":"'RES S curve-connect'!AN152","v":0},{"$f":"'RES S curve-connect'!AO152","v":0},{"$f":"'RES S curve-connect'!AP152","v":0},{"$f":"'RES S curve-connect'!AQ152","v":0},{"$f":"'RES S curve-connect'!AR152","v":0},{"$f":"'RES S curve-connect'!AS152","v":0},{"$f":"'RES S curve-connect'!AT152","v":0},{"$f":"'RES S curve-connect'!AU152","v":0},{"$f":"'RES S curve-connect'!AV152","v":0},{"$f":"'RES S curve-connect'!AW152","v":0},{"$f":"'RES S curve-connect'!AX152","v":0},{"$f":"'RES S curve-connect'!AY152","v":0},{"$f":"'RES S curve-connect'!AZ152","v":0},{"$f":"'RES S curve-connect'!BA152","v":0},{"$f":"'RES S curve-connect'!BB152","v":0},{"$f":"'RES S curve-connect'!BC152","v":0},{"$f":"'RES S curve-connect'!BD152","v":0},{"$f":"'RES S curve-connect'!BE152","v":0},{"$f":"'RES S curve-connect'!BF152","v":0},{"$f":"'RES S curve-connect'!BG152","v":0},{"$f":"'RES S curve-connect'!BH152","v":0},{"$f":"'RES S curve-connect'!BI152","v":0},{"$f":"'RES S curve-connect'!BJ152","v":0},{"$f":"'RES S curve-connect'!BK152","v":0},{"$f":"'RES S curve-connect'!BL152","v":0},{"$f":"'RES S curve-connect'!BM152","v":0},{"$f":"'RES S curve-connect'!BN152","v":0},{"$f":"'RES S curve-connect'!BO152","v":0},{"$f":"'RES S curve-connect'!BP152","v":0},{"$f":"'RES S curve-connect'!BQ152","v":0},{"$f":"'RES S curve-connect'!BR152","v":0},{"$f":"'RES S curve-connect'!BS152","v":0},{"$f":"'RES S curve-connect'!BT152","v":0},{"$f":"'RES S curve-connect'!BU152","v":0},{"$f":"'RES S curve-connect'!BV152","v":0},{"$f":"'RES S curve-connect'!BW152","v":0},{"$f":"'RES S curve-connect'!BX152","v":0},{"$f":"'RES S curve-connect'!BY152","v":0},{"$f":"'RES S curve-connect'!BZ152","v":0},{"$f":"'RES S curve-connect'!CA152","v":0},{"$f":"'RES S curve-connect'!CB152","v":0},{"$f":"'RES S curve-connect'!CC152","v":0},{"$f":"'RES S curve-connect'!CD152","v":0}]
["Whitehorse (C)",null,{"$f":"Customers!C182","v":824},{"$f":"Customers!D182","v":1076},{"$f":"Customers!E182","v":1070},{"$f":"Customers!F182","v":1208},{"$f":"Customers!G182","v":1150},{"$f":"Customers!H182","v":1174},{"$f":"Customers!I182","v":1006},{"$f":"Customers!J182","v":1171},{"$f":"'RES S curve-connect'!C153","v":1336},{"$f":"'RES S curve-connect'!D153","v":1357},{"$f":"'RES S curve-connect'!E153","v":1376},{"$f":"'RES S curve-connect'!F153","v":1397},{"$f":"'RES S curve-connect'!G153","v":1419},{"$f":"'RES S curve-connect'!H153","v":1440},{"$f":"'RES S curve-connect'!I153","v":1461},{"$f":"'RES S curve-connect'!J153","v":1483},{"$f":"'RES S curve-connect'!K153","v":1505},{"$f":"'RES S curve-connect'!L153","v":1528},{"$f":"'RES S curve-connect'!M153","v":0},{"$f":"'RES S curve-connect'!N153","v":0},{"$f":"'RES S curve-connect'!O153","v":0},{"$f":"'RES S curve-connect'!P153","v":0},{"$f":"'RES S curve-connect'!Q153","v":0},{"$f":"'RES S curve-connect'!R153","v":0},{"$f":"'RES S curve-connect'!S153","v":0},{"$f":"'RES S curve-connect'!T153","v":0},{"$f":"'RES S curve-connect'!U153","v":0},{"$f":"'RES S curve-connect'!V153","v":0},{"$f":"'RES S curve-connect'!W153","v":0},{"$f":"'RES S curve-connect'!X153","v":0},{"$f":"'RES S curve-connect'!Y153","v":0},{"$f":"'RES S curve-connect'!Z153","v":0},{"$f":"'RES S curve-connect'!AA153","v":0},{"$f":"'RES S curve-connect'!AB153","v":0},{"$f":"'RES S curve-connect'!AC153","v":0},{"$f":"'RES S curve-connect'!AD153","v":0},{"$f":"'RES S curve-connect'!AE153","v":0},{"$f":"'RES S curve-connect'!AF153","v":0},{"$f":"'RES S curve-connect'!AG153","v":0},{"$f":"'RES S curve-connect'!AH153","v":0},{"$f":"'RES S curve-connect'!AI153","v":0},{"$f":"'RES S curve-connect'!AJ153","v":0},{"$f":"'RES S curve-connect'!AK153","v":0},{"$f":"'RES S curve-connect'!AL153","v":0},{"$f":"'RES S curve-connect'!AM153","v":0},{"$f":"'RES S curve-connect'!AN153","v":0},{"$f":"'RES S curve-connect'!AO153","v":0},{"$f":"'RES S curve-connect'!AP153","v":0},{"$f":"'RES S curve-connect'!AQ153","v":0},{"$f":"'RES S curve-connect'!AR153","v":0},{"$f":"'RES S curve-connect'!AS153","v":0},{"$f":"'RES S curve-connect'!AT153","v":0},{"$f":"'RES S curve-connect'!AU153","v":0},{"$f":"'RES S curve-connect'!AV153","v":0},{"$f":"'RES S curve-connect'!AW153","v":0},{"$f":"'RES S curve-connect'!AX153","v":0},{"$f":"'RES S curve-connect'!AY153","v":0},{"$f":"'RES S curve-connect'!AZ153","v":0},{"$f":"'RES S curve-connect'!BA153","v":0},{"$f":"'RES S curve-connect'!BB153","v":0},{"$f":"'RES S curve-connect'!BC153","v":0},{"$f":"'RES S curve-connect'!BD153","v":0},{"$f":"'RES S curve-connect'!BE153","v":0},{"$f":"'RES S curve-connect'!BF153","v":0},{"$f":"'RES S curve-connect'!BG153","v":0},{"$f":"'RES S curve-connect'!BH153","v":0},{"$f":"'RES S curve-connect'!BI153","v":0},{"$f":"'RES S curve-connect'!BJ153","v":0},{"$f":"'RES S curve-connect'!BK153","v":0},{"$f":"'RES S curve-connect'!BL153","v":0},{"$f":"'RES S curve-connect'!BM153","v":0},{"$f":"'RES S curve-connect'!BN153","v":0},{"$f":"'RES S curve-connect'!BO153","v":0},{"$f":"'RES S curve-connect'!BP153","v":0},{"$f":"'RES S curve-connect'!BQ153","v":0},{"$f":"'RES S curve-connect'!BR153","v":0},{"$f":"'RES S curve-connect'!BS153","v":0},{"$f":"'RES S curve-connect'!BT153","v":0},{"$f":"'RES S curve-connect'!BU153","v":0},{"$f":"'RES S curve-connect'!BV153","v":0},{"$f":"'RES S curve-connect'!BW153","v":0},{"$f":"'RES S curve-connect'!BX153","v":0},{"$f":"'RES S curve-connect'!BY153","v":0},{"$f":"'RES S curve-connect'!BZ153","v":0},{"$f":"'RES S curve-connect'!CA153","v":0},{"$f":"'RES S curve-connect'!CB153","v":0},{"$f":"'RES S curve-connect'!CC153","v":0},{"$f":"'RES S curve-connect'!CD153","v":0}]
["Yarra Ranges (S)",null,{"$f":"Customers!C183","v":665},{"$f":"Customers!D183","v":715},{"$f":"Customers!E183","v":776},{"$f":"Customers!F183","v":727},{"$f":"Customers!G183","v":914},{"$f":"Customers!H183","v":752},{"$f":"Customers!I183","v":800},{"$f":"Customers!J183","v":721},{"$f":"'RES S curve-connect'!C154","v":963},{"$f":"'RES S curve-connect'!D154","v":977},{"$f":"'RES S curve-connect'!E154","v":992},{"$f":"'RES S curve-connect'!F154","v":1006},{"$f":"'RES S curve-connect'!G154","v":1022},{"$f":"'RES S curve-connect'!H154","v":1037},{"$f":"'RES S curve-connect'!I154","v":1053},{"$f":"'RES S curve-connect'!J154","v":1069},{"$f":"'RES S curve-connect'!K154","v":1084},{"$f":"'RES S curve-connect'!L154","v":1101},{"$f":"'RES S curve-connect'!M154","v":0},{"$f":"'RES S curve-connect'!N154","v":0},{"$f":"'RES S curve-connect'!O154","v":0},{"$f":"'RES S curve-connect'!P154","v":0},{"$f":"'RES S curve-connect'!Q154","v":0},{"$f":"'RES S curve-connect'!R154","v":0},{"$f":"'RES S curve-connect'!S154","v":0},{"$f":"'RES S curve-connect'!T154","v":0},{"$f":"'RES S curve-connect'!U154","v":0},{"$f":"'RES S curve-connect'!V154","v":0},{"$f":"'RES S curve-connect'!W154","v":0},{"$f":"'RES S curve-connect'!X154","v":0},{"$f":"'RES S curve-connect'!Y154","v":0},{"$f":"'RES S curve-connect'!Z154","v":0},{"$f":"'RES S curve-connect'!AA154","v":0},{"$f":"'RES S curve-connect'!AB154","v":0},{"$f":"'RES S curve-connect'!AC154","v":0},{"$f":"'RES S curve-connect'!AD154","v":0},{"$f":"'RES S curve-connect'!AE154","v":0},{"$f":"'RES S curve-connect'!AF154","v":0},{"$f":"'RES S curve-connect'!AG154","v":0},{"$f":"'RES S curve-connect'!AH154","v":0},{"$f":"'RES S curve-connect'!AI154","v":0},{"$f":"'RES S curve-connect'!AJ154","v":0},{"$f":"'RES S curve-connect'!AK154","v":0},{"$f":"'RES S curve-connect'!AL154","v":0},{"$f":"'RES S curve-connect'!AM154","v":0},{"$f":"'RES S curve-connect'!AN154","v":0},{"$f":"'RES S curve-connect'!AO154","v":0},{"$f":"'RES S curve-connect'!AP154","v":0},{"$f":"'RES S curve-connect'!AQ154","v":0},{"$f":"'RES S curve-connect'!AR154","v":0},{"$f":"'RES S curve-connect'!AS154","v":0},{"$f":"'RES S curve-connect'!AT154","v":0},{"$f":"'RES S curve-connect'!AU154","v":0},{"$f":"'RES S curve-connect'!AV154","v":0},{"$f":"'RES S curve-connect'!AW154","v":0},{"$f":"'RES S curve-connect'!AX154","v":0},{"$f":"'RES S curve-connect'!AY154","v":0},{"$f":"'RES S curve-connect'!AZ154","v":0},{"$f":"'RES S curve-connect'!BA154","v":0},{"$f":"'RES S curve-connect'!BB154","v":0},{"$f":"'RES S curve-connect'!BC154","v":0},{"$f":"'RES S curve-connect'!BD154","v":0},{"$f":"'RES S curve-connect'!BE154","v":0},{"$f":"'RES S curve-connect'!BF154","v":0},{"$f":"'RES S curve-connect'!BG154","v":0},{"$f":"'RES S curve-connect'!BH154","v":0},{"$f":"'RES S curve-connect'!BI154","v":0},{"$f":"'RES S curve-connect'!BJ154","v":0},{"$f":"'RES S curve-connect'!BK154","v":0},{"$f":"'RES S curve-connect'!BL154","v":0},{"$f":"'RES S curve-connect'!BM154","v":0},{"$f":"'RES S curve-connect'!BN154","v":0},{"$f":"'RES S curve-connect'!BO154","v":0},{"$f":"'RES S curve-connect'!BP154","v":0},{"$f":"'RES S curve-connect'!BQ154","v":0},{"$f":"'RES S curve-connect'!BR154","v":0},{"$f":"'RES S curve-connect'!BS154","v":0},{"$f":"'RES S curve-connect'!BT154","v":0},{"$f":"'RES S curve-connect'!BU154","v":0},{"$f":"'RES S curve-connect'!BV154","v":0},{"$f":"'RES S curve-connect'!BW154","v":0},{"$f":"'RES S curve-connect'!BX154","v":0},{"$f":"'RES S curve-connect'!BY154","v":0},{"$f":"'RES S curve-connect'!BZ154","v":0},{"$f":"'RES S curve-connect'!CA154","v":0},{"$f":"'RES S curve-connect'!CB154","v":0},{"$f":"'RES S curve-connect'!CC154","v":0},{"$f":"'RES S curve-connect'!CD154","v":0}]
["Total",null,{"$f":"Customers!C184","v":8693},{"$f":"Customers!D184","v":10667},{"$f":"Customers!E184","v":11154},{"$f":"Customers!F184","v":12008},{"$f":"Customers!G184","v":12694},{"$f":"Customers!H184","v":12089},{"$f":"Customers!I184","v":12427},{"$f":"Customers!J184","v":11908},{"$f":"SUM(K27:K46)","v":13795},{"$f":"SUM(L27:L46)","v":14011},14213,14421,14653,14873,15092,15324,15539,15781,0,0,0,0,0,0,0,0,0,0,0,0,0,0,0,0,0,0,0,0,0,0,0,0,0,0,0,0,0,0,0,0,0,0,0,0,0,0,0,0,0,0,0,0,0,0,0,0,0,0,0,0,0,0,0,{"$f":"SUM(BX27:BX46)","v":0},0,0,0,0,0,0,0,0,0,0,0,0,0,0]
[]
["New Residential Disconnections",2012,{"$f":"B49+1","v":2013},{"$f":"C49+1","v":2014},2015,2016,2017,2018,2019,2020,2021,{"$f":"K49+1","v":2022},{"$f":"L49+1","v":2023},2024,2025,2026,2027,2028,2029,2030,2031,2032,2033,2034,2035,2036,2037,2038,2039,2040,2041,2042,2043,2044,2045,2046,2047,2048,2049,2050,2051,2052,2053,2054,2055,2056,2057,2058,2059,2060,2061,2062,2063,2064,2065,2066,2067,2068,2069,2070,2071,2072,2073,2074,2075,2076,2077,2078,2079,2080,{"$f":"BR49+1","v":2081},2082,2083,2084,2085,2086,{"$f":"BX49+1","v":2087},{"$f":"BY49+1","v":2088},{"$f":"BZ49+1","v":2089},{"$f":"CA49+1","v":2090},{"$f":"CB49+1","v":2091},{"$f":"CC49+1","v":2092},{"$f":"CD49+1","v":2093},{"$f":"CE49+1","v":2094},{"$f":"CF49+1","v":2095},{"$f":"CG49+1","v":2096},{"$f":"CH49+1","v":2097},{"$f":"CI49+1","v":2098},{"$f":"CJ49+1","v":2099},{"$f":"CK49+1","v":2100}]
["LGA"]
["Bass Coast (S)",null,{"$f":"Customers!C188","v":4},{"$f":"Customers!D188","v":11},{"$f":"Customers!E188","v":7},{"$f":"Customers!F188","v":14},{"$f":"Customers!G188","v":16},{"$f":"Customers!H188","v":17},{"$f":"Customers!I188","v":13},{"$f":"Customers!J188","v":30},{"$f":"'RES S curve-disconnect'!C135","v":17.740000000000002},{"$f":"'RES S curve-disconnect'!D135","v":18.001300000000001},{"$f":"'RES S curve-disconnect'!E135","v":18.266293500000003},{"$f":"'RES S curve-disconnect'!F135","v":18.534962032500001},{"$f":"'RES S curve-disconnect'!G135","v":18.812287222337503},{"$f":"'RES S curve-disconnect'!H135","v":19.093225786225815},{"$f":"'RES S curve-disconnect'!I135","v":19.377759657294686},{"$f":"'RES S curve-disconnect'!J135","v":19.665870859008212},{"$f":"'RES S curve-disconnect'!K135","v":19.957541504713173},{"$f":"'RES S curve-disconnect'!L135","v":20.252753797189605},{"$f":"'RES S curve-disconnect'!M135","v":20.551490028203656},{"$f":"'RES S curve-disconnect'!N135","v":20.448732578062639},{"$f":"'RES S curve-disconnect'!O135","v":20.346488915172326},{"$f":"'RES S curve-disconnect'!P135","v":20.244756470596464},{"$f":"'RES S curve-disconnect'!Q135","v":20.143532688243482},{"$f":"'RES S curve-disconnect'!R135","v":20.042815024802266},{"$f":"'RES S curve-disconnect'!S135","v":19.942600949678255},{"$f":"'RES S curve-disconnect'!T135","v":19.842887944929863},{"$f":"'RES S curve-disconnect'!U135","v":19.743673505205212},{"$f":"'RES S curve-disconnect'!V135","v":19.644955137679187},{"$f":"'RES S curve-disconnect'!W135","v":19.546730361990793},{"$f":"'RES S curve-disconnect'!X135","v":19.44899671018084},{"$f":"'RES S curve-disconnect'!Y135","v":19.351751726629935},{"$f":"'RES S curve-disconnect'!Z135","v":20.254992967996785},{"$f":"'RES S curve-disconnect'!AA135","v":21.153718003156801},{"$f":"'RES S curve-disconnect'!AB135","v":21.047949413141016},{"$f":"'RES S curve-disconnect'!AC135","v":21.942709666075313},{"$f":"'RES S curve-disconnect'!AD135","v":22.832996117744937},{"$f":"'RES S curve-disconnect'!AE135","v":24.718831137156211},{"$f":"'RES S curve-disconnect'!AF135","v":27.595236981470432},{"$f":"'RES S curve-disconnect'!AG135","v":29.457260796563077},{"$f":"'RES S curve-disconnect'!AH135","v":33.309974492580267},{"$f":"'RES S curve-disconnect'!AI135","v":38.143424620117358},{"$f":"'RES S curve-disconnect'!AJ135","v":42.952707497016775},{"$f":"'RES S curve-disconnect'!AK135","v":49.737943959531691},{"$f":"'RES S curve-disconnect'!AL135","v":29.489254239734034},{"$f":"'RES S curve-disconnect'!AM135","v":28.34180796853536},{"$f":"'RES S curve-disconnect'!AN135","v":31.200098928692686},{"$f":"'RES S curve-disconnect'!AO135","v":36.044098434049218},{"$f":"'RES S curve-disconnect'!AP135","v":41.863877941878975},{"$f":"'RES S curve-disconnect'!AQ135","v":49.654558552169583},{"$f":"'RES S curve-disconnect'!AR135","v":60.406285759408732},{"$f":"'RES S curve-disconnect'!AS135","v":75.104254330611695},{"$f":"'RES S curve-disconnect'!AT135","v":93.728733058958639},{"$f":"'RES S curve-disconnect'!AU135","v":116.26008939366383},{"$f":"'RES S curve-disconnect'!AV135","v":139.67878894669553},{"$f":"'RES S curve-disconnect'!AW135","v":158.98039500196205},{"$f":"'RES S curve-disconnect'!AX135","v":167.18549302695223},{"$f":"'RES S curve-disconnect'!AY135","v":167.34956556181746},{"$f":"'RES S curve-disconnect'!AZ135","v":161.51281773400839},{"$f":"'RES S curve-disconnect'!BA135","v":151.70525364533833},{"$f":"'RES S curve-disconnect'!BB135","v":140.94672737711164},{"$f":"'RES S curve-disconnect'!BC135","v":131.24199374022609},{"$f":"'RES S curve-disconnect'!BD135","v":121.58578377152496},{"$f":"'RES S curve-disconnect'!BE135","v":112.97785485266733},{"$f":"'RES S curve-disconnect'!BF135","v":104.412965578404},{"$f":"'RES S curve-disconnect'!BG135","v":96.890900750511975},{"$f":"'RES S curve-disconnect'!BH135","v":90.406446246759415},{"$f":"'RES S curve-disconnect'!BI135","v":83.954414015525614},{"$f":"'RES S curve-disconnect'!BJ135","v":77.534641945447987},{"$f":"'RES S curve-disconnect'!BK135","v":72.146968735720748},{"$f":"'RES S curve-disconnect'!BL135","v":4.7862338920421488},{"$f":"'RES S curve-disconnect'!BM135","v":4.7623027225819383},{"$f":"'RES S curve-disconnect'!BN135","v":4.7384912089690285},{"$f":"'RES S curve-disconnect'!BO135","v":4.7147987529241835},{"$f":"'RES S curve-disconnect'!BP135","v":4.6912247591595628},{"$f":"'RES S curve-disconnect'!BQ135","v":4.6677686353637649},{"$f":"'RES S curve-disconnect'!BR135","v":4.644429792186946},{"$f":"'RES S curve-disconnect'!BS135","v":4.6212076432260112},{"$f":"'RES S curve-disconnect'!BT135","v":4.5981016050098802},{"$f":"'RES S curve-disconnect'!BU135","v":4.5751110969848314},{"$f":"'RES S curve-disconnect'!BV135","v":4.5522355414999067},{"$f":"'RES S curve-disconnect'!BW135","v":4.5294743637924073},{"$f":"'RES S curve-disconnect'!BX135","v":4.5068269919734449},{"$f":"'RES S curve-disconnect'!BY135","v":4.4842928570135783},{"$f":"'RES S curve-disconnect'!BZ135","v":4.4618713927285105},{"$f":"'RES S curve-disconnect'!CA135","v":4.439562035764868},{"$f":"'RES S curve-disconnect'!CB135","v":4.4173642255860432},{"$f":"'RES S curve-disconnect'!CC135","v":4.3952774044581124},{"$f":"'RES S curve-disconnect'!CD135","v":4.3733010174358222}]
["Bayside (C)",null,{"$f":"Customers!C189","v":134},{"$f":"Customers!D189","v":372},{"$f":"Customers!E189","v":478},{"$f":"Customers!F189","v":565},{"$f":"Customers!G189","v":540},{"$f":"Customers!H189","v":542},{"$f":"Customers!I189","v":472},{"$f":"Customers!J189","v":553},{"$f":"'RES S curve-disconnect'!C136","v":186.905},{"$f":"'RES S curve-disconnect'!D136","v":189.70047500000001},{"$f":"'RES S curve-disconnect'!E136","v":192.54197262500003},{"$f":"'RES S curve-disconnect'!F136","v":195.42426276187504},{"$f":"'RES S curve-disconnect'!G136","v":198.34714144806568},{"$f":"'RES S curve-disconnect'!H136","v":201.32040574082535},{"$f":"'RES S curve-disconnect'!I136","v":204.33880371212123},{"$f":"'RES S curve-disconnect'!J136","v":207.40210969356065},{"$f":"'RES S curve-disconnect'!K136","v":210.51009914509282},{"$f":"'RES S curve-disconnect'!L136","v":213.66254864936735},{"$f":"'RES S curve-disconnect'!M136","v":216.86423590612051},{"$f":"'RES S curve-disconnect'!N136","v":215.77991472658994},{"$f":"'RES S curve-disconnect'!O136","v":214.70101515295698},{"$f":"'RES S curve-disconnect'!P136","v":213.6275100771922},{"$f":"'RES S curve-disconnect'!Q136","v":212.55937252680627},{"$f":"'RES S curve-disconnect'!R136","v":211.49657566417224},{"$f":"'RES S curve-disconnect'!S136","v":212.43909278585139},{"$f":"'RES S curve-disconnect'!T136","v":215.37689732192212},{"$f":"'RES S curve-disconnect'!U136","v":225.30001283531251},{"$f":"'RES S curve-disconnect'!V136","v":241.17351277113593},{"$f":"'RES S curve-disconnect'!W136","v":265.96764520728027},{"$f":"'RES S curve-disconnect'!X136","v":408.63780698124384},{"$f":"'RES S curve-disconnect'!Y136","v":820.59461794633762},{"$f":"'RES S curve-disconnect'!Z136","v":1299.4916448566059},{"$f":"'RES S curve-disconnect'!AA136","v":1805.9941866323229},{"$f":"'RES S curve-disconnect'!AB136","v":2069.9642156991613},{"$f":"'RES S curve-disconnect'!AC136","v":2173.6143946206657},{"$f":"'RES S curve-disconnect'!AD136","v":2155.746322647562},{"$f":"'RES S curve-disconnect'!AE136","v":2079.9675910343244},{"$f":"'RES S curve-disconnect'!AF136","v":1980.5677530791527},{"$f":"'RES S curve-disconnect'!AG136","v":1854.664914313757},{"$f":"'RES S curve-disconnect'!AH136","v":1731.3915897421882},{"$f":"'RES S curve-disconnect'!AI136","v":1611.7346317934773},{"$f":"'RES S curve-disconnect'!AJ136","v":1497.6759586345099},{"$f":"'RES S curve-disconnect'!AK136","v":1391.1875788413374},{"$f":"'RES S curve-disconnect'!AL136","v":1285.2316409471307},{"$f":"'RES S curve-disconnect'!AM136","v":1190.805482742395},{"$f":"'RES S curve-disconnect'!AN136","v":1110.851455328683},{"$f":"'RES S curve-disconnect'!AO136","v":1033.2971980520397},{"$f":"'RES S curve-disconnect'!AP136","v":961.13071206177938},{"$f":"'RES S curve-disconnect'!AQ136","v":892.32505850147049},{"$f":"'RES S curve-disconnect'!AR136","v":827.8634332089631},{"$f":"'RES S curve-disconnect'!AS136","v":768.72411604291835},{"$f":"'RES S curve-disconnect'!AT136","v":713.88049546270372},{"$f":"'RES S curve-disconnect'!AU136","v":662.31109298539025},{"$f":"'RES S curve-disconnect'!AV136","v":614.99953752046326},{"$f":"'RES S curve-disconnect'!AW136","v":570.924539832861},{"$f":"'RES S curve-disconnect'!AX136","v":530.06991713369666},{"$f":"'RES S curve-disconnect'!AY136","v":491.41956754802817},{"$f":"'RES S curve-disconnect'!AZ136","v":456.96246971028802},{"$f":"'RES S curve-disconnect'!BA136","v":423.67765736173658},{"$f":"'RES S curve-disconnect'!BB136","v":393.5592690749279},{"$f":"'RES S curve-disconnect'!BC136","v":365.59147272955329},{"$f":"'RES S curve-disconnect'!BD136","v":339.7635153659055},{"$f":"'RES S curve-disconnect'!BE136","v":316.06469778907598},{"$f":"'RES S curve-disconnect'!BF136","v":293.48437430013058},{"$f":"'RES S curve-disconnect'!BG136","v":272.01695242862996},{"$f":"'RES S curve-disconnect'!BH136","v":252.65686766648679},{"$f":"'RES S curve-disconnect'!BI136","v":234.39358332815436},{"$f":"'RES S curve-disconnect'!BJ136","v":217.2216154115136},{"$f":"'RES S curve-disconnect'!BK136","v":202.13550733445604},{"$f":"'RES S curve-disconnect'!BL136","v":16.124829797783747},{"$f":"'RES S curve-disconnect'!BM136","v":16.044205648794829},{"$f":"'RES S curve-disconnect'!BN136","v":15.963984620550853},{"$f":"'RES S curve-disconnect'!BO136","v":15.884164697448098},{"$f":"'RES S curve-disconnect'!BP136","v":15.804743873960859},{"$f":"'RES S curve-disconnect'!BQ136","v":15.725720154591054},{"$f":"'RES S curve-disconnect'!BR136","v":15.647091553818099},{"$f":"'RES S curve-disconnect'!BS136","v":15.568856096049007},{"$f":"'RES S curve-disconnect'!BT136","v":15.491011815568763},{"$f":"'RES S curve-disconnect'!BU136","v":15.413556756490919},{"$f":"'RES S curve-disconnect'!BV136","v":15.336488972708464},{"$f":"'RES S curve-disconnect'!BW136","v":15.259806527844921},{"$f":"'RES S curve-disconnect'!BX136","v":15.183507495205697},{"$f":"'RES S curve-disconnect'!BY136","v":15.107589957729671},{"$f":"'RES S curve-disconnect'!BZ136","v":15.032052007941022},{"$f":"'RES S curve-disconnect'!CA136","v":14.956891747901318},{"$f":"'RES S curve-disconnect'!CB136","v":14.88210728916181},{"$f":"'RES S curve-disconnect'!CC136","v":14.807696752716001},{"$f":"'RES S curve-disconnect'!CD136","v":13.733658268952423}]
["Boroondara (C)",null,{"$f":"Customers!C190","v":206},{"$f":"Customers!D190","v":530},{"$f":"Customers!E190","v":907},{"$f":"Customers!F190","v":1144},{"$f":"Customers!G190","v":1046},{"$f":"Customers!H190","v":819},{"$f":"Customers!I190","v":877},{"$f":"Customers!J190","v":742},{"$f":"'RES S curve-disconnect'!C137","v":317.34500000000003},{"$f":"'RES S curve-disconnect'!D137","v":322.09327500000001},{"$f":"'RES S curve-disconnect'!E137","v":326.91780862500002},{"$f":"'RES S curve-disconnect'!F137","v":331.81321958187505},{"$f":"'RES S curve-disconnect'!G137","v":336.77915348396567},{"$f":"'RES S curve-disconnect'!H137","v":341.82525771654582},{"$f":"'RES S curve-disconnect'!I137","v":346.95113142796311},{"$f":"'RES S curve-disconnect'!J137","v":352.15137577082328},{"$f":"'RES S curve-disconnect'!K137","v":357.43061889196923},{"$f":"'RES S curve-disconnect'!L137","v":362.78346579750934},{"$f":"'RES S curve-disconnect'!M137","v":368.21954846852185},{"$f":"'RES S curve-disconnect'!N137","v":366.37845072617921},{"$f":"'RES S curve-disconnect'!O137","v":364.54655847254838},{"$f":"'RES S curve-disconnect'!P137","v":362.7238256801856},{"$f":"'RES S curve-disconnect'!Q137","v":360.91020655178471},{"$f":"'RES S curve-disconnect'!R137","v":360.10565551902585},{"$f":"'RES S curve-disconnect'!S137","v":362.30512724143068},{"$f":"'RES S curve-disconnect'!T137","v":369.49360160522355},{"$f":"'RES S curve-disconnect'!U137","v":391.64613359719743},{"$f":"'RES S curve-disconnect'!V137","v":425.68790292921142},{"$f":"'RES S curve-disconnect'!W137","v":474.55946341456536},{"$f":"'RES S curve-disconnect'!X137","v":743.18666609749243},{"$f":"'RES S curve-disconnect'!Y137","v":1462.4707327670051},{"$f":"'RES S curve-disconnect'!Z137","v":2247.1583791031699},{"$f":"'RES S curve-disconnect'!AA137","v":3059.922587207654},{"$f":"'RES S curve-disconnect'!AB137","v":3482.6229742716159},{"$f":"'RES S curve-disconnect'!AC137","v":3653.2098594002578},{"$f":"'RES S curve-disconnect'!AD137","v":3627.9438101032565},{"$f":"'RES S curve-disconnect'!AE137","v":3509.8040910527402},{"$f":"'RES S curve-disconnect'!AF137","v":3347.2550705974763},{"$f":"'RES S curve-disconnect'!AG137","v":3138.518795244489},{"$f":"'RES S curve-disconnect'!AH137","v":2933.8262012682667},{"$f":"'RES S curve-disconnect'!AI137","v":2732.1570702619251},{"$f":"'RES S curve-disconnect'!AJ137","v":2539.4962849106155},{"$f":"'RES S curve-disconnect'!AK137","v":2359.7988034860628},{"$f":"'RES S curve-disconnect'!AL137","v":2175.9998094686321},{"$f":"'RES S curve-disconnect'!AM137","v":2016.119810421289},{"$f":"'RES S curve-disconnect'!AN137","v":1882.0392113691828},{"$f":"'RES S curve-disconnect'!AO137","v":1752.6290153123368},{"$f":"'RES S curve-disconnect'!AP137","v":1629.865870235775},{"$f":"'RES S curve-disconnect'!AQ137","v":1513.7165408845963},{"$f":"'RES S curve-disconnect'!AR137","v":1405.1479581801732},{"$f":"'RES S curve-disconnect'!AS137","v":1304.1222183892723},{"$f":"'RES S curve-disconnect'!AT137","v":1211.6016072973259},{"$f":"'RES S curve-disconnect'!AU137","v":1124.5435992608393},{"$f":"'RES S curve-disconnect'!AV137","v":1043.9208812645352},{"$f":"'RES S curve-disconnect'!AW137","v":968.70127685821251},{"$f":"'RES S curve-disconnect'!AX137","v":899.85777047392139},{"$f":"'RES S curve-disconnect'!AY137","v":835.35848162155185},{"$f":"'RES S curve-disconnect'!AZ137","v":775.18168921344409},{"$f":"'RES S curve-disconnect'!BA137","v":719.30578076737686},{"$f":"'RES S curve-disconnect'!BB137","v":667.70925186353998},{"$f":"'RES S curve-disconnect'!BC137","v":620.37070560422228},{"$f":"'RES S curve-disconnect'!BD137","v":576.26885207620114},{"$f":"'RES S curve-disconnect'!BE137","v":535.38750781582007},{"$f":"'RES S curve-disconnect'!BF137","v":496.71057027674101},{"$f":"'RES S curve-disconnect'!BG137","v":461.2270174253573},{"$f":"'RES S curve-disconnect'!BH137","v":427.92088233823051},{"$f":"'RES S curve-disconnect'!BI137","v":397.78127792653936},{"$f":"'RES S curve-disconnect'!BJ137","v":368.79237153690667},{"$f":"'RES S curve-disconnect'!BK137","v":342.94840967922215},{"$f":"'RES S curve-disconnect'!BL137","v":28.233667630826044},{"$f":"'RES S curve-disconnect'!BM137","v":28.092499292671913},{"$f":"'RES S curve-disconnect'!BN137","v":27.952036796208553},{"$f":"'RES S curve-disconnect'!BO137","v":27.81227661222751},{"$f":"'RES S curve-disconnect'!BP137","v":27.67321522916637},{"$f":"'RES S curve-disconnect'!BQ137","v":27.534849153020541},{"$f":"'RES S curve-disconnect'!BR137","v":27.39717490725544},{"$f":"'RES S curve-disconnect'!BS137","v":27.260189032719165},{"$f":"'RES S curve-disconnect'!BT137","v":27.123888087555567},{"$f":"'RES S curve-disconnect'!BU137","v":27.988268647117788},{"$f":"'RES S curve-disconnect'!BV137","v":27.848327303882201},{"$f":"'RES S curve-disconnect'!BW137","v":27.709085667362793},{"$f":"'RES S curve-disconnect'!BX137","v":27.570540239025977},{"$f":"'RES S curve-disconnect'!BY137","v":27.432687537830848},{"$f":"'RES S curve-disconnect'!BZ137","v":27.295524100141694},{"$f":"'RES S curve-disconnect'!CA137","v":27.159046479640985},{"$f":"'RES S curve-disconnect'!CB137","v":27.023251247242779},{"$f":"'RES S curve-disconnect'!CC137","v":26.888134991006567},{"$f":"'RES S curve-disconnect'!CD137","v":24.753694316051533}]
["Cardinia (S)",null,{"$f":"Customers!C191","v":12},{"$f":"Customers!D191","v":17},{"$f":"Customers!E191","v":33},{"$f":"Customers!F191","v":23},{"$f":"Customers!G191","v":26},{"$f":"Customers!H191","v":21},{"$f":"Customers!I191","v":24},{"$f":"Customers!J191","v":20},{"$f":"'RES S curve-disconnect'!C138","v":20.85},{"$f":"'RES S curve-disconnect'!D138","v":21.16075},{"$f":"'RES S curve-disconnect'!E138","v":21.474946249999999},{"$f":"'RES S curve-disconnect'!F138","v":21.792571518749998},{"$f":"'RES S curve-disconnect'!G138","v":22.118608661156244},{"$f":"'RES S curve-disconnect'!H138","v":22.448015617850466},{"$f":"'RES S curve-disconnect'!I138","v":22.780775539761212},{"$f":"'RES S curve-disconnect'!J138","v":23.121871662062404},{"$f":"'RES S curve-disconnect'!K138","v":23.466262303752092},{"$f":"'RES S curve-disconnect'!L138","v":23.813930992233331},{"$f":"'RES S curve-disconnect'!M138","v":24.169861337272163},{"$f":"'RES S curve-disconnect'!N138","v":24.049012030585804},{"$f":"'RES S curve-disconnect'!O138","v":23.928766970432875},{"$f":"'RES S curve-disconnect'!P138","v":23.809123135580712},{"$f":"'RES S curve-disconnect'!Q138","v":23.690077519902808},{"$f":"'RES S curve-disconnect'!R138","v":23.571627132303291},{"$f":"'RES S curve-disconnect'!S138","v":23.453768996641774},{"$f":"'RES S curve-disconnect'!T138","v":23.336500151658566},{"$f":"'RES S curve-disconnect'!U138","v":23.219817650900271},{"$f":"'RES S curve-disconnect'!V138","v":23.103718562645774},{"$f":"'RES S curve-disconnect'!W138","v":22.988199969832547},{"$f":"'RES S curve-disconnect'!X138","v":22.873258969983382},{"$f":"'RES S curve-disconnect'!Y138","v":22.758892675133467},{"$f":"'RES S curve-disconnect'!Z138","v":22.645098211757801},{"$f":"'RES S curve-disconnect'!AA138","v":23.531872720699013},{"$f":"'RES S curve-disconnect'!AB138","v":23.41421335709552},{"$f":"'RES S curve-disconnect'!AC138","v":24.297142290310038},{"$f":"'RES S curve-disconnect'!AD138","v":26.17565657885849},{"$f":"'RES S curve-disconnect'!AE138","v":28.044778295964196},{"$f":"'RES S curve-disconnect'!AF138","v":32.904554404484372},{"$f":"'RES S curve-disconnect'!AG138","v":37.74003163246195},{"$f":"'RES S curve-disconnect'!AH138","v":46.551331474299644},{"$f":"'RES S curve-disconnect'!AI138","v":59.318574816928148},{"$f":"'RES S curve-disconnect'!AJ138","v":74.021981942843496},{"$f":"'RES S curve-disconnect'!AK138","v":93.65187203312928},{"$f":"'RES S curve-disconnect'!AL138","v":40.18361267296364},{"$f":"'RES S curve-disconnect'!AM138","v":35.982694609598823},{"$f":"'RES S curve-disconnect'!AN138","v":42.802781136550827},{"$f":"'RES S curve-disconnect'!AO138","v":56.588767230868072},{"$f":"'RES S curve-disconnect'!AP138","v":72.305823394713741},{"$f":"'RES S curve-disconnect'!AQ138","v":94.94429427774017},{"$f":"'RES S curve-disconnect'!AR138","v":124.46957280635147},{"$f":"'RES S curve-disconnect'!AS138","v":156.84722494231971},{"$f":"'RES S curve-disconnect'!AT138","v":185.0629888176081},{"$f":"'RES S curve-disconnect'!AU138","v":201.13767387352007},{"$f":"'RES S curve-disconnect'!AV138","v":204.13198550415245},{"$f":"'RES S curve-disconnect'!AW138","v":198.11132557663171},{"$f":"'RES S curve-disconnect'!AX138","v":185.12076894874855},{"$f":"'RES S curve-disconnect'!AY138","v":173.19516510400479},{"$f":"'RES S curve-disconnect'!AZ138","v":161.32918927848476},{"$f":"'RES S curve-disconnect'!BA138","v":149.52254333209234},{"$f":"'RES S curve-disconnect'!BB138","v":138.77493061543188},{"$f":"'RES S curve-disconnect'!BC138","v":129.08105596235472},{"$f":"'RES S curve-disconnect'!BD138","v":119.43565068254296},{"$f":"'RES S curve-disconnect'!BE138","v":110.83847242913025},{"$f":"'RES S curve-disconnect'!BF138","v":103.28428006698459},{"$f":"'RES S curve-disconnect'!BG138","v":95.767858666649673},{"$f":"'RES S curve-disconnect'!BH138","v":88.289019373316421},{"$f":"'RES S curve-disconnect'!BI138","v":81.847574276449834},{"$f":"'RES S curve-disconnect'!BJ138","v":77.438336405067588},{"$f":"'RES S curve-disconnect'!BK138","v":72.051144723042256},{"$f":"'RES S curve-disconnect'!BL138","v":4.69088899942704},{"$f":"'RES S curve-disconnect'!BM138","v":4.6674345544299047},{"$f":"'RES S curve-disconnect'!BN138","v":4.6440973816577555},{"$f":"'RES S curve-disconnect'!BO138","v":4.6208768947494665},{"$f":"'RES S curve-disconnect'!BP138","v":4.5977725102757194},{"$f":"'RES S curve-disconnect'!BQ138","v":4.5747836477243409},{"$f":"'RES S curve-disconnect'!BR138","v":4.5519097294857191},{"$f":"'RES S curve-disconnect'!BS138","v":4.5291501808382906},{"$f":"'RES S curve-disconnect'!BT138","v":4.5065044299340995},{"$f":"'RES S curve-disconnect'!BU138","v":4.4839719077844284},{"$f":"'RES S curve-disconnect'!BV138","v":4.4615520482455064},{"$f":"'RES S curve-disconnect'!BW138","v":4.4392442880042795},{"$f":"'RES S curve-disconnect'!BX138","v":4.4170480665642575},{"$f":"'RES S curve-disconnect'!BY138","v":4.3949628262314366},{"$f":"'RES S curve-disconnect'!BZ138","v":4.3729880121002793},{"$f":"'RES S curve-disconnect'!CA138","v":4.351123072039778},{"$f":"'RES S curve-disconnect'!CB138","v":4.3293674566795799},{"$f":"'RES S curve-disconnect'!CC138","v":4.3077206193961812},{"$f":"'RES S curve-disconnect'!CD138","v":4.2861820162992004}]
["Casey (C)",null,{"$f":"Customers!C192","v":23},{"$f":"Customers!D192","v":43},{"$f":"Customers!E192","v":60},{"$f":"Customers!F192","v":70},{"$f":"Customers!G192","v":71},{"$f":"Customers!H192","v":67},{"$f":"Customers!I192","v":52},{"$f":"Customers!J192","v":76},{"$f":"'RES S curve-disconnect'!C139","v":65.364999999999995},{"$f":"'RES S curve-disconnect'!D139","v":66.343175000000002},{"$f":"'RES S curve-disconnect'!E139","v":67.336459125000005},{"$f":"'RES S curve-disconnect'!F139","v":68.344776829375007},{"$f":"'RES S curve-disconnect'!G139","v":69.368052945228129},{"$f":"'RES S curve-disconnect'!H139","v":70.40621268050198},{"$f":"'RES S curve-disconnect'!I139","v":71.459181617099475},{"$f":"'RES S curve-disconnect'!J139","v":72.526885709013982},{"$f":"'RES S curve-disconnect'!K139","v":73.614251280468906},{"$f":"'RES S curve-disconnect'!L139","v":74.71618002406656},{"$f":"'RES S curve-disconnect'!M139","v":75.832599123946224},{"$f":"'RES S curve-disconnect'!N139","v":75.453436128326501},{"$f":"'RES S curve-disconnect'!O139","v":75.076168947684877},{"$f":"'RES S curve-disconnect'!P139","v":74.700788102946461},{"$f":"'RES S curve-disconnect'!Q139","v":74.327284162431724},{"$f":"'RES S curve-disconnect'!R139","v":73.955647741619572},{"$f":"'RES S curve-disconnect'!S139","v":73.585869502911478},{"$f":"'RES S curve-disconnect'!T139","v":73.217940155396917},{"$f":"'RES S curve-disconnect'!U139","v":72.851850454619935},{"$f":"'RES S curve-disconnect'!V139","v":73.487591202346835},{"$f":"'RES S curve-disconnect'!W139","v":74.120153246335107},{"$f":"'RES S curve-disconnect'!X139","v":79.749552480103432},{"$f":"'RES S curve-disconnect'!Y139","v":97.350804717702914},{"$f":"'RES S curve-disconnect'!Z139","v":126.8640506941144},{"$f":"'RES S curve-disconnect'!AA139","v":185.22973044064383},{"$f":"'RES S curve-disconnect'!AB139","v":261.30358178844062},{"$f":"'RES S curve-disconnect'!AC139","v":361.9970638794984},{"$f":"'RES S curve-disconnect'!AD139","v":467.18707856010093},{"$f":"'RES S curve-disconnect'!AE139","v":573.85114316730039},{"$f":"'RES S curve-disconnect'!AF139","v":678.98188745146388},{"$f":"'RES S curve-disconnect'!AG139","v":702.58697801420658},{"$f":"'RES S curve-disconnect'!AH139","v":714.07404312413553},{"$f":"'RES S curve-disconnect'!AI139","v":692.50367290851489},{"$f":"'RES S curve-disconnect'!AJ139","v":657.04115454397231},{"$f":"'RES S curve-disconnect'!AK139","v":617.75594877125241},{"$f":"'RES S curve-disconnect'!AL139","v":523.6671690273962},{"$f":"'RES S curve-disconnect'!AM139","v":474.04883318225922},{"$f":"'RES S curve-disconnect'!AN139","v":470.67858901634793},{"$f":"'RES S curve-disconnect'!AO139","v":458.32519607126613},{"$f":"'RES S curve-disconnect'!AP139","v":434.03357009090985},{"$f":"'RES S curve-disconnect'!AQ139","v":407.86340224045529},{"$f":"'RES S curve-disconnect'!AR139","v":381.824085229253},{"$f":"'RES S curve-disconnect'!AS139","v":355.91496480310673},{"$f":"'RES S curve-disconnect'!AT139","v":330.1353899790912},{"$f":"'RES S curve-disconnect'!AU139","v":306.48471302919575},{"$f":"'RES S curve-disconnect'!AV139","v":284.95228946404978},{"$f":"'RES S curve-disconnect'!AW139","v":264.52752801672955},{"$f":"'RES S curve-disconnect'!AX139","v":245.20489037664586},{"$f":"'RES S curve-disconnect'!AY139","v":227.97886592476263},{"$f":"'RES S curve-disconnect'!AZ139","v":210.83897159513884},{"$f":"'RES S curve-disconnect'!BA139","v":195.78477673716313},{"$f":"'RES S curve-disconnect'!BB139","v":181.80585285347732},{"$f":"'RES S curve-disconnect'!BC139","v":168.89682358920993},{"$f":"'RES S curve-disconnect'!BD139","v":157.05233947126388},{"$f":"'RES S curve-disconnect'!BE139","v":145.26707777390757},{"$f":"'RES S curve-disconnect'!BF139","v":136.54074238503802},{"$f":"'RES S curve-disconnect'!BG139","v":126.85803867311283},{"$f":"'RES S curve-disconnect'!BH139","v":117.22374847974727},{"$f":"'RES S curve-disconnect'!BI139","v":108.63762973734853},{"$f":"'RES S curve-disconnect'!BJ139","v":101.09444158866179},{"$f":"'RES S curve-disconnect'!BK139","v":93.588969380718481},{"$f":"'RES S curve-disconnect'!BL139","v":6.1210245338148912},{"$f":"'RES S curve-disconnect'!BM139","v":6.0904194111458168},{"$f":"'RES S curve-disconnect'!BN139","v":6.0599673140900876},{"$f":"'RES S curve-disconnect'!BO139","v":6.0296674775196371},{"$f":"'RES S curve-disconnect'!BP139","v":5.9995191401320396},{"$f":"'RES S curve-disconnect'!BQ139","v":5.9695215444313794},{"$f":"'RES S curve-disconnect'!BR139","v":5.9396739367092222},{"$f":"'RES S curve-disconnect'!BS139","v":5.9099755670256764},{"$f":"'RES S curve-disconnect'!BT139","v":5.880425689190548},{"$f":"'RES S curve-disconnect'!BU139","v":5.8510235607445953},{"$f":"'RES S curve-disconnect'!BV139","v":5.821768442940872},{"$f":"'RES S curve-disconnect'!BW139","v":5.7926596007261688},{"$f":"'RES S curve-disconnect'!BX139","v":5.7636963027225372},{"$f":"'RES S curve-disconnect'!BY139","v":5.7348778212089249},{"$f":"'RES S curve-disconnect'!BZ139","v":5.7062034321028801},{"$f":"'RES S curve-disconnect'!CA139","v":5.6776724149423652},{"$f":"'RES S curve-disconnect'!CB139","v":5.6492840528676531},{"$f":"'RES S curve-disconnect'!CC139","v":5.6210376326033149},{"$f":"'RES S curve-disconnect'!CD139","v":5.5929324444402981}]
["Frankston (C)",null,{"$f":"Customers!C193","v":0},{"$f":"Customers!D193","v":0},{"$f":"Customers!E193","v":0},{"$f":"Customers!F193","v":0},{"$f":"Customers!G193","v":0},{"$f":"Customers!H193","v":0},{"$f":"Customers!I193","v":0},{"$f":"Customers!J193","v":0},{"$f":"'RES S curve-disconnect'!C140","v":5.0000000000000001E-3},{"$f":"'RES S curve-disconnect'!D140","v":4.9750000000000003E-3},{"$f":"'RES S curve-disconnect'!E140","v":4.9501250000000005E-3},{"$f":"'RES S curve-disconnect'!F140","v":4.9253743750000004E-3},{"$f":"'RES S curve-disconnect'!G140","v":4.9007475031250004E-3},{"$f":"'RES S curve-disconnect'!H140","v":4.876243765609376E-3},{"$f":"'RES S curve-disconnect'!I140","v":4.8518625467813287E-3},{"$f":"'RES S curve-disconnect'!J140","v":4.8276032340474218E-3},{"$f":"'RES S curve-disconnect'!K140","v":4.8034652178771849E-3},{"$f":"'RES S curve-disconnect'!L140","v":4.779447891787799E-3},{"$f":"'RES S curve-disconnect'!M140","v":4.7555506523288601E-3},{"$f":"'RES S curve-disconnect'!N140","v":4.7317728990672152E-3},{"$f":"'RES S curve-disconnect'!O140","v":4.7081140345718794E-3},{"$f":"'RES S curve-disconnect'!P140","v":4.6845734643990201E-3},{"$f":"'RES S curve-disconnect'!Q140","v":4.6611505970770252E-3},{"$f":"'RES S curve-disconnect'!R140","v":4.6378448440916398E-3},{"$f":"'RES S curve-disconnect'!S140","v":4.6146556198711818E-3},{"$f":"'RES S curve-disconnect'!T140","v":4.5915823417718256E-3},{"$f":"'RES S curve-disconnect'!U140","v":4.5686244300629664E-3},{"$f":"'RES S curve-disconnect'!V140","v":4.5457813079126516E-3},{"$f":"'RES S curve-disconnect'!W140","v":4.523052401373088E-3},{"$f":"'RES S curve-disconnect'!X140","v":4.5004371393662229E-3},{"$f":"'RES S curve-disconnect'!Y140","v":4.477934953669392E-3},{"$f":"'RES S curve-disconnect'!Z140","v":4.4555452789010446E-3},{"$f":"'RES S curve-disconnect'!AA140","v":4.4332675525065399E-3},{"$f":"'RES S curve-disconnect'!AB140","v":4.411101214744007E-3},{"$f":"'RES S curve-disconnect'!AC140","v":4.3890457086702877E-3},{"$f":"'RES S curve-disconnect'!AD140","v":4.3671004801269361E-3},{"$f":"'RES S curve-disconnect'!AE140","v":4.3452649777263016E-3},{"$f":"'RES S curve-disconnect'!AF140","v":4.3235386528376702E-3},{"$f":"'RES S curve-disconnect'!AG140","v":4.3019209595734822E-3},{"$f":"'RES S curve-disconnect'!AH140","v":4.2804113547756147E-3},{"$f":"'RES S curve-disconnect'!AI140","v":4.2590092980017364E-3},{"$f":"'RES S curve-disconnect'!AJ140","v":4.2377142515117282E-3},{"$f":"'RES S curve-disconnect'!AK140","v":4.2165256802541694E-3},{"$f":"'RES S curve-disconnect'!AL140","v":4.1954430518528979E-3},{"$f":"'RES S curve-disconnect'!AM140","v":4.1744658365936334E-3},{"$f":"'RES S curve-disconnect'!AN140","v":4.1535935074106653E-3},{"$f":"'RES S curve-disconnect'!AO140","v":4.1328255398736117E-3},{"$f":"'RES S curve-disconnect'!AP140","v":4.112161412174244E-3},{"$f":"'RES S curve-disconnect'!AQ140","v":4.0916006051133725E-3},{"$f":"'RES S curve-disconnect'!AR140","v":4.0711426020878056E-3},{"$f":"'RES S curve-disconnect'!AS140","v":4.0507868890773662E-3},{"$f":"'RES S curve-disconnect'!AT140","v":4.0305329546319792E-3},{"$f":"'RES S curve-disconnect'!AU140","v":4.0103802898588201E-3},{"$f":"'RES S curve-disconnect'!AV140","v":3.9903283884095263E-3},{"$f":"'RES S curve-disconnect'!AW140","v":3.9703767464674784E-3},{"$f":"'RES S curve-disconnect'!AX140","v":3.9505248627351407E-3},{"$f":"'RES S curve-disconnect'!AY140","v":3.9307722384214648E-3},{"$f":"'RES S curve-disconnect'!AZ140","v":3.9111183772293579E-3},{"$f":"'RES S curve-disconnect'!BA140","v":3.8915627853432114E-3},{"$f":"'RES S curve-disconnect'!BB140","v":3.8721049714164953E-3},{"$f":"'RES S curve-disconnect'!BC140","v":3.8527444465594127E-3},{"$f":"'RES S curve-disconnect'!BD140","v":3.8334807243266158E-3},{"$f":"'RES S curve-disconnect'!BE140","v":3.8143133207049823E-3},{"$f":"'RES S curve-disconnect'!BF140","v":3.795241754101457E-3},{"$f":"'RES S curve-disconnect'!BG140","v":3.7762655453309497E-3},{"$f":"'RES S curve-disconnect'!BH140","v":3.7573842176042952E-3},{"$f":"'RES S curve-disconnect'!BI140","v":3.7385972965162735E-3},{"$f":"'RES S curve-disconnect'!BJ140","v":3.7199043100336923E-3},{"$f":"'RES S curve-disconnect'!BK140","v":3.701304788483524E-3},{"$f":"'RES S curve-disconnect'!BL140","v":3.6827982645411062E-3},{"$f":"'RES S curve-disconnect'!BM140","v":3.6643842732184007E-3},{"$f":"'RES S curve-disconnect'!BN140","v":3.6460623518523088E-3},{"$f":"'RES S curve-disconnect'!BO140","v":3.6278320400930475E-3},{"$f":"'RES S curve-disconnect'!BP140","v":3.6096928798925823E-3},{"$f":"'RES S curve-disconnect'!BQ140","v":3.5916444154931193E-3},{"$f":"'RES S curve-disconnect'!BR140","v":3.5736861934156541E-3},{"$f":"'RES S curve-disconnect'!BS140","v":3.5558177624485754E-3},{"$f":"'RES S curve-disconnect'!BT140","v":3.5380386736363323E-3},{"$f":"'RES S curve-disconnect'!BU140","v":3.5203484802681507E-3},{"$f":"'RES S curve-disconnect'!BV140","v":3.5027467378668099E-3},{"$f":"'RES S curve-disconnect'!BW140","v":3.485233004177476E-3},{"$f":"'RES S curve-disconnect'!BX140","v":3.4678068391565888E-3},{"$f":"'RES S curve-disconnect'!BY140","v":3.4504678049608055E-3},{"$f":"'RES S curve-disconnect'!BZ140","v":3.4332154659360015E-3},{"$f":"'RES S curve-disconnect'!CA140","v":3.4160493886063216E-3},{"$f":"'RES S curve-disconnect'!CB140","v":3.39896914166329E-3},{"$f":"'RES S curve-disconnect'!CC140","v":3.3819742959549739E-3},{"$f":"'RES S curve-disconnect'!CD140","v":3.365064424475199E-3}]
["Glen Eira (C)",null,{"$f":"Customers!C194","v":181},{"$f":"Customers!D194","v":403},{"$f":"Customers!E194","v":667},{"$f":"Customers!F194","v":713},{"$f":"Customers!G194","v":659},{"$f":"Customers!H194","v":734},{"$f":"Customers!I194","v":681},{"$f":"Customers!J194","v":566},{"$f":"'RES S curve-disconnect'!C141","v":260.75},{"$f":"'RES S curve-disconnect'!D141","v":264.65125},{"$f":"'RES S curve-disconnect'!E141","v":268.61799374999998},{"$f":"'RES S curve-disconnect'!F141","v":272.63990378124998},{"$f":"'RES S curve-disconnect'!G141","v":276.71670426234374},{"$f":"'RES S curve-disconnect'!H141","v":280.86312074103205},{"$f":"'RES S curve-disconnect'!I141","v":285.07380513732687},{"$f":"'RES S curve-disconnect'!J141","v":289.34343611164024},{"$f":"'RES S curve-disconnect'!K141","v":293.68171893108206},{"$f":"'RES S curve-disconnect'!L141","v":298.07831033642668},{"$f":"'RES S curve-disconnect'!M141","v":302.54291878474453},{"$f":"'RES S curve-disconnect'!N141","v":301.03020419082077},{"$f":"'RES S curve-disconnect'!O141","v":299.52505316986668},{"$f":"'RES S curve-disconnect'!P141","v":298.02742790401732},{"$f":"'RES S curve-disconnect'!Q141","v":296.53729076449724},{"$f":"'RES S curve-disconnect'!R141","v":296.05460431067473},{"$f":"'RES S curve-disconnect'!S141","v":298.57433128912135},{"$f":"'RES S curve-disconnect'!T141","v":303.08145963267577},{"$f":"'RES S curve-disconnect'!U141","v":321.56605233451239},{"$f":"'RES S curve-disconnect'!V141","v":347.95822207283982},{"$f":"'RES S curve-disconnect'!W141","v":385.21843096247562},{"$f":"'RES S curve-disconnect'!X141","v":588.29233880766321},{"$f":"'RES S curve-disconnect'!Y141","v":1124.3508771136248},{"$f":"'RES S curve-disconnect'!Z141","v":1724.7291227280568},{"$f":"'RES S curve-disconnect'!AA141","v":2385.1054771144163},{"$f":"'RES S curve-disconnect'!AB141","v":2764.1799497288443},{"$f":"'RES S curve-disconnect'!AC141","v":2947.3590499802003},{"$f":"'RES S curve-disconnect'!AD141","v":2960.6222547302991},{"$f":"'RES S curve-disconnect'!AE141","v":2887.8191434566479},{"$f":"'RES S curve-disconnect'!AF141","v":2771.3800477393643},{"$f":"'RES S curve-disconnect'!AG141","v":2605.5231475006676},{"$f":"'RES S curve-disconnect'!AH141","v":2440.4955317631643},{"$f":"'RES S curve-disconnect'!AI141","v":2274.2930541043484},{"$f":"'RES S curve-disconnect'!AJ141","v":2115.9215888338267},{"$f":"'RES S curve-disconnect'!AK141","v":1966.3419808896576},{"$f":"'RES S curve-disconnect'!AL141","v":1809.5102709852092},{"$f":"'RES S curve-disconnect'!AM141","v":1675.4627196302833},{"$f":"'RES S curve-disconnect'!AN141","v":1566.0854060321319},{"$f":"'RES S curve-disconnect'!AO141","v":1460.2549790019712},{"$f":"'RES S curve-disconnect'!AP141","v":1357.9537041069614},{"$f":"'RES S curve-disconnect'!AQ141","v":1262.1639355864265},{"$f":"'RES S curve-disconnect'!AR141","v":1171.8531159084944},{"$f":"'RES S curve-disconnect'!AS141","v":1087.9938503289518},{"$f":"'RES S curve-disconnect'!AT141","v":1009.5538810773071},{"$f":"'RES S curve-disconnect'!AU141","v":937.50611167192062},{"$f":"'RES S curve-disconnect'!AV141","v":869.81858111356098},{"$f":"'RES S curve-disconnect'!AW141","v":807.46948820799321},{"$f":"'RES S curve-disconnect'!AX141","v":750.43214076695324},{"$f":"'RES S curve-disconnect'!AY141","v":696.67998006311848},{"$f":"'RES S curve-disconnect'!AZ141","v":646.19658016280289},{"$f":"'RES S curve-disconnect'!BA141","v":599.96559726198882},{"$f":"'RES S curve-disconnect'!BB141","v":556.96576927567889},{"$f":"'RES S curve-disconnect'!BC141","v":517.18094042930056},{"$f":"'RES S curve-disconnect'!BD141","v":479.59503572715403},{"$f":"'RES S curve-disconnect'!BE141","v":446.19706054851827},{"$f":"'RES S curve-disconnect'!BF141","v":414.96607524577564},{"$f":"'RES S curve-disconnect'!BG141","v":384.89124486954677},{"$f":"'RES S curve-disconnect'!BH141","v":356.96678864519902},{"$f":"'RES S curve-disconnect'!BI141","v":332.18195470197304},{"$f":"'RES S curve-disconnect'!BJ141","v":307.5210449284632},{"$f":"'RES S curve-disconnect'!BK141","v":285.98343970382086},{"$f":"'RES S curve-disconnect'!BL141","v":23.553522505301764},{"$f":"'RES S curve-disconnect'!BM141","v":23.435754892775257},{"$f":"'RES S curve-disconnect'!BN141","v":23.31857611831138},{"$f":"'RES S curve-disconnect'!BO141","v":23.201983237719823},{"$f":"'RES S curve-disconnect'!BP141","v":23.085973321531224},{"$f":"'RES S curve-disconnect'!BQ141","v":22.970543454923568},{"$f":"'RES S curve-disconnect'!BR141","v":22.855690737648949},{"$f":"'RES S curve-disconnect'!BS141","v":22.741412283960706},{"$f":"'RES S curve-disconnect'!BT141","v":22.6277052225409},{"$f":"'RES S curve-disconnect'!BU141","v":22.514566696428197},{"$f":"'RES S curve-disconnect'!BV141","v":22.401993862946057},{"$f":"'RES S curve-disconnect'!BW141","v":22.289983893631327},{"$f":"'RES S curve-disconnect'!BX141","v":22.17853397416317},{"$f":"'RES S curve-disconnect'!BY141","v":22.067641304292351},{"$f":"'RES S curve-disconnect'!BZ141","v":21.95730309777089},{"$f":"'RES S curve-disconnect'!CA141","v":21.847516582282037},{"$f":"'RES S curve-disconnect'!CB141","v":22.738278999370625},{"$f":"'RES S curve-disconnect'!CC141","v":22.624587604373772},{"$f":"'RES S curve-disconnect'!CD141","v":20.511464666351905}]
["Greater Dandenong (C)",null,{"$f":"Customers!C195","v":112},{"$f":"Customers!D195","v":288},{"$f":"Customers!E195","v":404},{"$f":"Customers!F195","v":401},{"$f":"Customers!G195","v":365},{"$f":"Customers!H195","v":396},{"$f":"Customers!I195","v":370},{"$f":"Customers!J195","v":370},{"$f":"'RES S curve-disconnect'!C142","v":283.59500000000003},{"$f":"'RES S curve-disconnect'!D142","v":287.84702499999997},{"$f":"'RES S curve-disconnect'!E142","v":292.16278987499999},{"$f":"'RES S curve-disconnect'!F142","v":296.54197592562497},{"$f":"'RES S curve-disconnect'!G142","v":300.98426604599683},{"$f":"'RES S curve-disconnect'!H142","v":305.49434471576689},{"$f":"'RES S curve-disconnect'!I142","v":310.07187299218805},{"$f":"'RES S curve-disconnect'!J142","v":314.72151362722713},{"$f":"'RES S curve-disconnect'!K142","v":319.43790605909095},{"$f":"'RES S curve-disconnect'!L142","v":324.22571652879549},{"$f":"'RES S curve-disconnect'!M142","v":329.08458794615154},{"$f":"'RES S curve-disconnect'!N142","v":327.43916500642075},{"$f":"'RES S curve-disconnect'!O142","v":325.8019691813887},{"$f":"'RES S curve-disconnect'!P142","v":324.17295933548172},{"$f":"'RES S curve-disconnect'!Q142","v":322.55209453880428},{"$f":"'RES S curve-disconnect'!R142","v":320.93933406611029},{"$f":"'RES S curve-disconnect'!S142","v":319.33463739577974},{"$f":"'RES S curve-disconnect'!T142","v":317.7379642088008},{"$f":"'RES S curve-disconnect'!U142","v":316.1492743877568},{"$f":"'RES S curve-disconnect'!V142","v":314.56852801581806},{"$f":"'RES S curve-disconnect'!W142","v":313.99568537573896},{"$f":"'RES S curve-disconnect'!X142","v":313.42570694886024},{"$f":"'RES S curve-disconnect'!Y142","v":313.85857841411593},{"$f":"'RES S curve-disconnect'!Z142","v":315.28928552204536},{"$f":"'RES S curve-disconnect'!AA142","v":318.71283909443514},{"$f":"'RES S curve-disconnect'!AB142","v":324.11927489896294},{"$f":"'RES S curve-disconnect'!AC142","v":331.49867852446812},{"$f":"'RES S curve-disconnect'!AD142","v":343.8411851318458},{"$f":"'RES S curve-disconnect'!AE142","v":362.12197920618655},{"$f":"'RES S curve-disconnect'!AF142","v":399.31136931015561},{"$f":"'RES S curve-disconnect'!AG142","v":433.31481246360482},{"$f":"'RES S curve-disconnect'!AH142","v":503.14823840128679},{"$f":"'RES S curve-disconnect'!AI142","v":594.63249720928036},{"$f":"'RES S curve-disconnect'!AJ142","v":705.659334723234},{"$f":"'RES S curve-disconnect'!AK142","v":863.13103804961781},{"$f":"'RES S curve-disconnect'!AL142","v":447.81538285936978},{"$f":"'RES S curve-disconnect'!AM142","v":418.57630594507287},{"$f":"'RES S curve-disconnect'!AN142","v":474.48342441534754},{"$f":"'RES S curve-disconnect'!AO142","v":572.11100729327086},{"$f":"'RES S curve-disconnect'!AP142","v":700.25045225680446},{"$f":"'RES S curve-disconnect'!AQ142","v":887.74919999552037},{"$f":"'RES S curve-disconnect'!AR142","v":1159.3104539955427},{"$f":"'RES S curve-disconnect'!AS142","v":1536.5139017255651},{"$f":"'RES S curve-disconnect'!AT142","v":1992.8313322169372},{"$f":"'RES S curve-disconnect'!AU142","v":2448.8671755558526},{"$f":"'RES S curve-disconnect'!AV142","v":2757.6228396780734},{"$f":"'RES S curve-disconnect'!AW142","v":2856.8347254796831},{"$f":"'RES S curve-disconnect'!AX142","v":2788.5505518522846},{"$f":"'RES S curve-disconnect'!AY142","v":2639.607799093023},{"$f":"'RES S curve-disconnect'!AZ142","v":2465.4097600975579},{"$f":"'RES S curve-disconnect'!BA142","v":2293.0827112970701},{"$f":"'RES S curve-disconnect'!BB142","v":2128.6172977405849},{"$f":"'RES S curve-disconnect'!BC142","v":1975.974211251882},{"$f":"'RES S curve-disconnect'!BD142","v":1834.0943401956224},{"$f":"'RES S curve-disconnect'!BE142","v":1702.9238684946445},{"$f":"'RES S curve-disconnect'!BF142","v":1581.4092491521712},{"$f":"'RES S curve-disconnect'!BG142","v":1467.5022029064103},{"$f":"'RES S curve-disconnect'!BH142","v":1362.1646918918782},{"$f":"'RES S curve-disconnect'!BI142","v":1265.3538684324189},{"$f":"'RES S curve-disconnect'!BJ142","v":1174.0270990902568},{"$f":"'RES S curve-disconnect'!BK142","v":1091.1569635948056},{"$f":"'RES S curve-disconnect'!BL142","v":70.701178776831497},{"$f":"'RES S curve-disconnect'!BM142","v":70.34767288294735},{"$f":"'RES S curve-disconnect'!BN142","v":69.995934518532607},{"$f":"'RES S curve-disconnect'!BO142","v":69.64595484593994},{"$f":"'RES S curve-disconnect'!BP142","v":69.297725071710246},{"$f":"'RES S curve-disconnect'!BQ142","v":68.951236446351686},{"$f":"'RES S curve-disconnect'!BR142","v":68.606480264119924},{"$f":"'RES S curve-disconnect'!BS142","v":68.263447862799325},{"$f":"'RES S curve-disconnect'!BT142","v":67.922130623485344},{"$f":"'RES S curve-disconnect'!BU142","v":67.582519970367912},{"$f":"'RES S curve-disconnect'!BV142","v":67.244607370516064},{"$f":"'RES S curve-disconnect'!BW142","v":66.908384333663491},{"$f":"'RES S curve-disconnect'!BX142","v":66.573842411995173},{"$f":"'RES S curve-disconnect'!BY142","v":66.240973199935198},{"$f":"'RES S curve-disconnect'!BZ142","v":65.909768333935517},{"$f":"'RES S curve-disconnect'!CA142","v":65.58021949226584},{"$f":"'RES S curve-disconnect'!CB142","v":65.252318394804519},{"$f":"'RES S curve-disconnect'!CC142","v":64.926056802830487},{"$f":"'RES S curve-disconnect'!CD142","v":64.601426518816339}]
["Kingston (C)",null,{"$f":"Customers!C196","v":146},{"$f":"Customers!D196","v":326},{"$f":"Customers!E196","v":439},{"$f":"Customers!F196","v":538},{"$f":"Customers!G196","v":552},{"$f":"Customers!H196","v":491},{"$f":"Customers!I196","v":571},{"$f":"Customers!J196","v":501},{"$f":"'RES S curve-disconnect'!C143","v":269.565},{"$f":"'RES S curve-disconnect'!D143","v":273.60217499999999},{"$f":"'RES S curve-disconnect'!E143","v":277.70416412499998},{"$f":"'RES S curve-disconnect'!F143","v":281.865643304375},{"$f":"'RES S curve-disconnect'!G143","v":286.08631508785311},{"$f":"'RES S curve-disconnect'!H143","v":290.37588351241385},{"$f":"'RES S curve-disconnect'!I143","v":294.7290040948518},{"$f":"'RES S curve-disconnect'!J143","v":299.14535907437755},{"$f":"'RES S curve-disconnect'!K143","v":303.62963227900565},{"$f":"'RES S curve-disconnect'!L143","v":308.17648411761058},{"$f":"'RES S curve-disconnect'!M143","v":312.79560169702256},{"$f":"'RES S curve-disconnect'!N143","v":311.23162368853747},{"$f":"'RES S curve-disconnect'!O143","v":309.67546557009473},{"$f":"'RES S curve-disconnect'!P143","v":308.12708824224427},{"$f":"'RES S curve-disconnect'!Q143","v":306.58645280103303},{"$f":"'RES S curve-disconnect'!R143","v":305.05352053702785},{"$f":"'RES S curve-disconnect'!S143","v":304.52825293434273},{"$f":"'RES S curve-disconnect'!T143","v":304.005611669671},{"$f":"'RES S curve-disconnect'!U143","v":305.48558361132268},{"$f":"'RES S curve-disconnect'!V143","v":307.95815569326606},{"$f":"'RES S curve-disconnect'!W143","v":312.41836491479972},{"$f":"'RES S curve-disconnect'!X143","v":336.85627309022573},{"$f":"'RES S curve-disconnect'!Y143","v":405.17199172477461},{"$f":"'RES S curve-disconnect'!Z143","v":507.14613176615075},{"$f":"'RES S curve-disconnect'!AA143","v":692.61040110731994},{"$f":"'RES S curve-disconnect'!AB143","v":930.14734910178345},{"$f":"'RES S curve-disconnect'!AC143","v":1247.4966123562745},{"$f":"'RES S curve-disconnect'!AD143","v":1602.2591292944931},{"$f":"'RES S curve-disconnect'!AE143","v":2003.2478336480206},{"$f":"'RES S curve-disconnect'!AF143","v":2482.2315944797806},{"$f":"'RES S curve-disconnect'!AG143","v":2673.8204365073816},{"$f":"'RES S curve-disconnect'!AH143","v":2842.4513343248445},{"$f":"'RES S curve-disconnect'!AI143","v":2844.2390776532206},{"$f":"'RES S curve-disconnect'!AJ143","v":2753.0178822649546},{"$f":"'RES S curve-disconnect'!AK143","v":2626.2527928536297},{"$f":"'RES S curve-disconnect'!AL143","v":2072.1215288893613},{"$f":"'RES S curve-disconnect'!AM143","v":1859.7609212449147},{"$f":"'RES S curve-disconnect'!AN143","v":1923.4621166386901},{"$f":"'RES S curve-disconnect'!AO143","v":1932.8448060554965},{"$f":"'RES S curve-disconnect'!AP143","v":1874.1805820252191},{"$f":"'RES S curve-disconnect'!AQ143","v":1784.8096791150931},{"$f":"'RES S curve-disconnect'!AR143","v":1681.8856307195176},{"$f":"'RES S curve-disconnect'!AS143","v":1573.4762025659199},{"$f":"'RES S curve-disconnect'!AT143","v":1466.6088215530904},{"$f":"'RES S curve-disconnect'!AU143","v":1363.275777445325},{"$f":"'RES S curve-disconnect'!AV143","v":1266.4593985580984},{"$f":"'RES S curve-disconnect'!AW143","v":1176.1271015653078},{"$f":"'RES S curve-disconnect'!AX143","v":1091.2464660574813},{"$f":"'RES S curve-disconnect'!AY143","v":1012.7902337271939},{"$f":"'RES S curve-disconnect'!AZ143","v":940.72628255855795},{"$f":"'RES S curve-disconnect'!BA143","v":873.02265114576517},{"$f":"'RES S curve-disconnect'!BB143","v":810.65753789003634},{"$f":"'RES S curve-disconnect'!BC143","v":752.60425020058619},{"$f":"'RES S curve-disconnect'!BD143","v":698.84122894958318},{"$f":"'RES S curve-disconnect'!BE143","v":648.34702280483532},{"$f":"'RES S curve-disconnect'!BF143","v":602.10528769081111},{"$f":"'RES S curve-disconnect'!BG143","v":560.0947612523571},{"$f":"'RES S curve-disconnect'!BH143","v":519.29428744609527},{"$f":"'RES S curve-disconnect'!BI143","v":482.69781600886483},{"$f":"'RES S curve-disconnect'!BJ143","v":448.28432692882052},{"$f":"'RES S curve-disconnect'!BK143","v":416.04290529417636},{"$f":"'RES S curve-disconnect'!BL143","v":27.96269076770551},{"$f":"'RES S curve-disconnect'!BM143","v":27.822877313866979},{"$f":"'RES S curve-disconnect'!BN143","v":27.683762927297643},{"$f":"'RES S curve-disconnect'!BO143","v":27.545344112661155},{"$f":"'RES S curve-disconnect'!BP143","v":27.407617392097851},{"$f":"'RES S curve-disconnect'!BQ143","v":27.270579305137364},{"$f":"'RES S curve-disconnect'!BR143","v":27.134226408611678},{"$f":"'RES S curve-disconnect'!BS143","v":26.99855527656862},{"$f":"'RES S curve-disconnect'!BT143","v":26.863562500185775},{"$f":"'RES S curve-disconnect'!BU143","v":26.729244687684847},{"$f":"'RES S curve-disconnect'!BV143","v":26.595598464246422},{"$f":"'RES S curve-disconnect'!BW143","v":26.462620471925192},{"$f":"'RES S curve-disconnect'!BX143","v":26.330307369565567},{"$f":"'RES S curve-disconnect'!BY143","v":26.198655832717741},{"$f":"'RES S curve-disconnect'!BZ143","v":26.06766255355415},{"$f":"'RES S curve-disconnect'!CA143","v":25.937324240786381},{"$f":"'RES S curve-disconnect'!CB143","v":25.807637619582447},{"$f":"'RES S curve-disconnect'!CC143","v":25.678599431484535},{"$f":"'RES S curve-disconnect'!CD143","v":25.550206434327116}]
["Knox (C)",null,{"$f":"Customers!C197","v":92},{"$f":"Customers!D197","v":244},{"$f":"Customers!E197","v":305},{"$f":"Customers!F197","v":335},{"$f":"Customers!G197","v":366},{"$f":"Customers!H197","v":449},{"$f":"Customers!I197","v":556},{"$f":"Customers!J197","v":417},{"$f":"'RES S curve-disconnect'!C144","v":315.48500000000001},{"$f":"'RES S curve-disconnect'!D144","v":320.21257500000002},{"$f":"'RES S curve-disconnect'!E144","v":325.01151212500002},{"$f":"'RES S curve-disconnect'!F144","v":329.88145456437502},{"$f":"'RES S curve-disconnect'!G144","v":334.82204729155319},{"$f":"'RES S curve-disconnect'!H144","v":339.84293705509538},{"$f":"'RES S curve-disconnect'!I144","v":344.93872236981991},{"$f":"'RES S curve-disconnect'!J144","v":350.1090287579708},{"$f":"'RES S curve-disconnect'!K144","v":355.35848361418095},{"$f":"'RES S curve-disconnect'!L144","v":360.68669119611008},{"$f":"'RES S curve-disconnect'!M144","v":366.0932577401295},{"$f":"'RES S curve-disconnect'!N144","v":364.26279145142888},{"$f":"'RES S curve-disconnect'!O144","v":362.44147749417169},{"$f":"'RES S curve-disconnect'!P144","v":360.62927010670086},{"$f":"'RES S curve-disconnect'!Q144","v":358.82612375616736},{"$f":"'RES S curve-disconnect'!R144","v":357.03199313738651},{"$f":"'RES S curve-disconnect'!S144","v":355.24683317169962},{"$f":"'RES S curve-disconnect'!T144","v":354.47059900584117},{"$f":"'RES S curve-disconnect'!U144","v":355.69824601081194},{"$f":"'RES S curve-disconnect'!V144","v":358.9197547807579},{"$f":"'RES S curve-disconnect'!W144","v":363.12515600685407},{"$f":"'RES S curve-disconnect'!X144","v":393.30953022681985},{"$f":"'RES S curve-disconnect'!Y144","v":493.34298257568577},{"$f":"'RES S curve-disconnect'!Z144","v":657.87626766280732},{"$f":"'RES S curve-disconnect'!AA144","v":977.58688632449321},{"$f":"'RES S curve-disconnect'!AB144","v":1388.6989518928708},{"$f":"'RES S curve-disconnect'!AC144","v":1912.7554571334065},{"$f":"'RES S curve-disconnect'!AD144","v":2434.1916798477396},{"$f":"'RES S curve-disconnect'!AE144","v":2921.0207214485008},{"$f":"'RES S curve-disconnect'!AF144","v":3365.4156178412582},{"$f":"'RES S curve-disconnect'!AG144","v":3434.5885397520519},{"$f":"'RES S curve-disconnect'!AH144","v":3439.4155970532915},{"$f":"'RES S curve-disconnect'!AI144","v":3311.2185190680252},{"$f":"'RES S curve-disconnect'!AJ144","v":3128.6624264726852},{"$f":"'RES S curve-disconnect'!AK144","v":2936.0191143403217},{"$f":"'RES S curve-disconnect'!AL144","v":2524.33901876862},{"$f":"'RES S curve-disconnect'!AM144","v":2295.7173236747767},{"$f":"'RES S curve-disconnect'!AN144","v":2258.2387370564029},{"$f":"'RES S curve-disconnect'!AO144","v":2177.9475433711209},{"$f":"'RES S curve-disconnect'!AP144","v":2058.0578056542654},{"$f":"'RES S curve-disconnect'!AQ144","v":1929.7675166259942},{"$f":"'RES S curve-disconnect'!AR144","v":1800.1186790428642},{"$f":"'RES S curve-disconnect'!AS144","v":1675.1180856476499},{"$f":"'RES S curve-disconnect'!AT144","v":1556.7424952194115},{"$f":"'RES S curve-disconnect'!AU144","v":1445.9587827433145},{"$f":"'RES S curve-disconnect'!AV144","v":1341.7289888295979},{"$f":"'RES S curve-disconnect'!AW144","v":1246.0203438854498},{"$f":"'RES S curve-disconnect'!AX144","v":1156.7902421660226},{"$f":"'RES S curve-disconnect'!AY144","v":1074.0062909551925},{"$f":"'RES S curve-disconnect'!AZ144","v":996.6362595004166},{"$f":"'RES S curve-disconnect'!BA144","v":925.65307820291457},{"$f":"'RES S curve-disconnect'!BB144","v":859.02481281190001},{"$f":"'RES S curve-disconnect'!BC144","v":797.72968874784044},{"$f":"'RES S curve-disconnect'!BD144","v":739.74104030410126},{"$f":"'RES S curve-disconnect'!BE144","v":687.04233510258075},{"$f":"'RES S curve-disconnect'!BF144","v":638.6071234270679},{"$f":"'RES S curve-disconnect'!BG144","v":593.41408780993254},{"$f":"'RES S curve-disconnect'!BH144","v":550.4470173708828},{"$f":"'RES S curve-disconnect'!BI144","v":510.69478228402846},{"$f":"'RES S curve-disconnect'!BJ144","v":474.14130837260831},{"$f":"'RES S curve-disconnect'!BK144","v":440.77060183074525},{"$f":"'RES S curve-disconnect'!BL144","v":29.566748821591542},{"$f":"'RES S curve-disconnect'!BM144","v":29.418915077483586},{"$f":"'RES S curve-disconnect'!BN144","v":29.271820502096165},{"$f":"'RES S curve-disconnect'!BO144","v":29.125461399585685},{"$f":"'RES S curve-disconnect'!BP144","v":28.979834092587755},{"$f":"'RES S curve-disconnect'!BQ144","v":28.834934922124813},{"$f":"'RES S curve-disconnect'!BR144","v":28.690760247514191},{"$f":"'RES S curve-disconnect'!BS144","v":28.547306446276622},{"$f":"'RES S curve-disconnect'!BT144","v":28.404569914045236},{"$f":"'RES S curve-disconnect'!BU144","v":28.262547064475012},{"$f":"'RES S curve-disconnect'!BV144","v":28.121234329152635},{"$f":"'RES S curve-disconnect'!BW144","v":27.980628157506871},{"$f":"'RES S curve-disconnect'!BX144","v":27.84072501671934},{"$f":"'RES S curve-disconnect'!BY144","v":27.701521391635744},{"$f":"'RES S curve-disconnect'!BZ144","v":27.563013784677565},{"$f":"'RES S curve-disconnect'!CA144","v":27.425198715754178},{"$f":"'RES S curve-disconnect'!CB144","v":27.288072722175407},{"$f":"'RES S curve-disconnect'!CC144","v":27.15163235856453},{"$f":"'RES S curve-disconnect'!CD144","v":27.015874196771705}]
["Manningham (C)",null,{"$f":"Customers!C198","v":96},{"$f":"Customers!D198","v":235},{"$f":"Customers!E198","v":382},{"$f":"Customers!F198","v":435},{"$f":"Customers!G198","v":476},{"$f":"Customers!H198","v":469},{"$f":"Customers!I198","v":487},{"$f":"Customers!J198","v":393},{"$f":"'RES S curve-disconnect'!C145","v":218.33500000000001},{"$f":"'RES S curve-disconnect'!D145","v":221.60832500000001},{"$f":"'RES S curve-disconnect'!E145","v":224.93028337500002},{"$f":"'RES S curve-disconnect'!F145","v":228.30063195812502},{"$f":"'RES S curve-disconnect'!G145","v":231.7191287983344},{"$f":"'RES S curve-disconnect'!H145","v":235.19053315434272},{"$f":"'RES S curve-disconnect'!I145","v":238.71458048857099},{"$f":"'RES S curve-disconnect'!J145","v":242.2910075861281},{"$f":"'RES S curve-disconnect'!K145","v":245.92455254819745},{"$f":"'RES S curve-disconnect'!L145","v":249.60992978545647},{"$f":"'RES S curve-disconnect'!M145","v":253.35188013652919},{"$f":"'RES S curve-disconnect'!N145","v":252.08512073584654},{"$f":"'RES S curve-disconnect'!O145","v":250.82469513216731},{"$f":"'RES S curve-disconnect'!P145","v":249.57057165650644},{"$f":"'RES S curve-disconnect'!Q145","v":248.32271879822392},{"$f":"'RES S curve-disconnect'!R145","v":247.08110520423278},{"$f":"'RES S curve-disconnect'!S145","v":245.84569967821162},{"$f":"'RES S curve-disconnect'!T145","v":245.61647117982056},{"$f":"'RES S curve-disconnect'!U145","v":246.38838882392145},{"$f":"'RES S curve-disconnect'!V145","v":249.15644687980185},{"$f":"'RES S curve-disconnect'!W145","v":251.91066464540285},{"$f":"'RES S curve-disconnect'!X145","v":275.65111132217584},{"$f":"'RES S curve-disconnect'!Y145","v":353.27285576556494},{"$f":"'RES S curve-disconnect'!Z145","v":479.5064914867371},{"$f":"'RES S curve-disconnect'!AA145","v":720.10895902930338},{"$f":"'RES S curve-disconnect'!AB145","v":1023.5084142341568},{"$f":"'RES S curve-disconnect'!AC145","v":1398.3908721629862},{"$f":"'RES S curve-disconnect'!AD145","v":1756.3989178021711},{"$f":"'RES S curve-disconnect'!AE145","v":2076.6169232131601},{"$f":"'RES S curve-disconnect'!AF145","v":2355.2338385970943},{"$f":"'RES S curve-disconnect'!AG145","v":2383.4576694041089},{"$f":"'RES S curve-disconnect'!AH145","v":2370.5403810570883},{"$f":"'RES S curve-disconnect'!AI145","v":2273.687679151803},{"$f":"'RES S curve-disconnect'!AJ145","v":2144.3192407560441},{"$f":"'RES S curve-disconnect'!AK145","v":2009.5976445522638},{"$f":"'RES S curve-disconnect'!AL145","v":1741.5496563295026},{"$f":"'RES S curve-disconnect'!AM145","v":1585.841908047855},{"$f":"'RES S curve-disconnect'!AN145","v":1552.9126985076157},{"$f":"'RES S curve-disconnect'!AO145","v":1491.1481350150775},{"$f":"'RES S curve-disconnect'!AP145","v":1407.6923943400022},{"$f":"'RES S curve-disconnect'!AQ145","v":1317.6539323683021},{"$f":"'RES S curve-disconnect'!AR145","v":1229.0656627064607},{"$f":"'RES S curve-disconnect'!AS145","v":1142.9203343929285},{"$f":"'RES S curve-disconnect'!AT145","v":1062.2057327209636},{"$f":"'RES S curve-disconnect'!AU145","v":985.89470405735892},{"$f":"'RES S curve-disconnect'!AV145","v":914.9652305370721},{"$f":"'RES S curve-disconnect'!AW145","v":849.39040438438678},{"$f":"'RES S curve-disconnect'!AX145","v":789.14345236246481},{"$f":"'RES S curve-disconnect'!AY145","v":732.19773510065249},{"$f":"'RES S curve-disconnect'!AZ145","v":679.5367464251492},{"$f":"'RES S curve-disconnect'!BA145","v":631.13906269302345},{"$f":"'RES S curve-disconnect'!BB145","v":585.98336737955833},{"$f":"'RES S curve-disconnect'!BC145","v":544.05345054266058},{"$f":"'RES S curve-disconnect'!BD145","v":505.33318328994727},{"$f":"'RES S curve-disconnect'!BE145","v":468.80651737349757},{"$f":"'RES S curve-disconnect'!BF145","v":436.46248478663006},{"$f":"'RES S curve-disconnect'!BG145","v":405.28017236269693},{"$f":"'RES S curve-disconnect'!BH145","v":376.25377150088343},{"$f":"'RES S curve-disconnect'!BI145","v":348.37250264337899},{"$f":"'RES S curve-disconnect'!BJ145","v":323.63064013016213},{"$f":"'RES S curve-disconnect'!BK145","v":301.01248692951128},{"$f":"'RES S curve-disconnect'!BL145","v":19.507424494863745},{"$f":"'RES S curve-disconnect'!BM145","v":19.409887372389427},{"$f":"'RES S curve-disconnect'!BN145","v":20.31283793552748},{"$f":"'RES S curve-disconnect'!BO145","v":20.211273745849841},{"$f":"'RES S curve-disconnect'!BP145","v":20.110217377120595},{"$f":"'RES S curve-disconnect'!BQ145","v":20.009666290234993},{"$f":"'RES S curve-disconnect'!BR145","v":19.909617958783816},{"$f":"'RES S curve-disconnect'!BS145","v":19.810069868989896},{"$f":"'RES S curve-disconnect'!BT145","v":19.711019519644946},{"$f":"'RES S curve-disconnect'!BU145","v":19.61246442204672},{"$f":"'RES S curve-disconnect'!BV145","v":19.514402099936486},{"$f":"'RES S curve-disconnect'!BW145","v":19.416830089436807},{"$f":"'RES S curve-disconnect'!BX145","v":19.319745938989623},{"$f":"'RES S curve-disconnect'!BY145","v":19.223147209294677},{"$f":"'RES S curve-disconnect'!BZ145","v":19.127031473248202},{"$f":"'RES S curve-disconnect'!CA145","v":19.03139631588196},{"$f":"'RES S curve-disconnect'!CB145","v":18.936239334302549},{"$f":"'RES S curve-disconnect'!CC145","v":18.841558137631036},{"$f":"'RES S curve-disconnect'!CD145","v":17.747350346942881}]
["Maroondah (C)",null,{"$f":"Customers!C199","v":61},{"$f":"Customers!D199","v":199},{"$f":"Customers!E199","v":267},{"$f":"Customers!F199","v":224},{"$f":"Customers!G199","v":273},{"$f":"Customers!H199","v":297},{"$f":"Customers!I199","v":271},{"$f":"Customers!J199","v":256},{"$f":"'RES S curve-disconnect'!C146","v":194.465},{"$f":"'RES S curve-disconnect'!D146","v":197.37767500000001},{"$f":"'RES S curve-disconnect'!E146","v":200.335786625},{"$f":"'RES S curve-disconnect'!F146","v":203.334107691875},{"$f":"'RES S curve-disconnect'!G146","v":206.37743715341563},{"$f":"'RES S curve-disconnect'!H146","v":209.47054996764857},{"$f":"'RES S curve-disconnect'!I146","v":212.6081972178103},{"$f":"'RES S curve-disconnect'!J146","v":215.79515623172128},{"$f":"'RES S curve-disconnect'!K146","v":219.03118045056266},{"$f":"'RES S curve-disconnect'!L146","v":222.31102454830983},{"$f":"'RES S curve-disconnect'!M146","v":225.64446942556827},{"$f":"'RES S curve-disconnect'!N146","v":224.51624707844044},{"$f":"'RES S curve-disconnect'!O146","v":223.39366584304821},{"$f":"'RES S curve-disconnect'!P146","v":222.276697513833},{"$f":"'RES S curve-disconnect'!Q146","v":221.16531402626381},{"$f":"'RES S curve-disconnect'!R146","v":220.0594874561325},{"$f":"'RES S curve-disconnect'!S146","v":218.95919001885181},{"$f":"'RES S curve-disconnect'!T146","v":218.86439406875755},{"$f":"'RES S curve-disconnect'!U146","v":219.77007209841378},{"$f":"'RES S curve-disconnect'!V146","v":220.67122173792171},{"$f":"'RES S curve-disconnect'!W146","v":223.56786562923207},{"$f":"'RES S curve-disconnect'!X146","v":244.45002630108593},{"$f":"'RES S curve-disconnect'!Y146","v":308.22777616958047},{"$f":"'RES S curve-disconnect'!Z146","v":414.68663728873264},{"$f":"'RES S curve-disconnect'!AA146","v":618.61320410228893},{"$f":"'RES S curve-disconnect'!AB146","v":878.52013808177753},{"$f":"'RES S curve-disconnect'!AC146","v":1206.1275373913686},{"$f":"'RES S curve-disconnect'!AD146","v":1526.0968997044117},{"$f":"'RES S curve-disconnect'!AE146","v":1820.4664152058897},{"$f":"'RES S curve-disconnect'!AF146","v":2083.3640831298603},{"$f":"'RES S curve-disconnect'!AG146","v":2118.9472627142109},{"$f":"'RES S curve-disconnect'!AH146","v":2116.3525264006398},{"$f":"'RES S curve-disconnect'!AI146","v":2032.7707637686367},{"$f":"'RES S curve-disconnect'!AJ146","v":1920.6069099497936},{"$f":"'RES S curve-disconnect'!AK146","v":1802.0038754000445},{"$f":"'RES S curve-disconnect'!AL146","v":1553.9938560230444},{"$f":"'RES S curve-disconnect'!AM146","v":1413.2238867429292},{"$f":"'RES S curve-disconnect'!AN146","v":1388.1577673092145},{"$f":"'RES S curve-disconnect'!AO146","v":1336.2169784726684},{"$f":"'RES S curve-disconnect'!AP146","v":1261.5358935803051},{"$f":"'RES S curve-disconnect'!AQ146","v":1182.2282141124035},{"$f":"'RES S curve-disconnect'!AR146","v":1103.3170730418415},{"$f":"'RES S curve-disconnect'!AS146","v":1026.8004876766324},{"$f":"'RES S curve-disconnect'!AT146","v":953.66648523824915},{"$f":"'RES S curve-disconnect'!AU146","v":885.8981528120579},{"$f":"'RES S curve-disconnect'!AV146","v":822.46866204799767},{"$f":"'RES S curve-disconnect'!AW146","v":763.35631873775765},{"$f":"'RES S curve-disconnect'!AX146","v":708.53953714406885},{"$f":"'RES S curve-disconnect'!AY146","v":657.99683945834852},{"$f":"'RES S curve-disconnect'!AZ146","v":610.70685526105683},{"$f":"'RES S curve-disconnect'!BA146","v":566.65332098475153},{"$f":"'RES S curve-disconnect'!BB146","v":525.82005437982775},{"$f":"'RES S curve-disconnect'!BC146","v":488.19095410792863},{"$f":"'RES S curve-disconnect'!BD146","v":453.74999933738894},{"$f":"'RES S curve-disconnect'!BE146","v":421.48124934070205},{"$f":"'RES S curve-disconnect'!BF146","v":391.37384309399852},{"$f":"'RES S curve-disconnect'!BG146","v":363.41697387852855},{"$f":"'RES S curve-disconnect'!BH146","v":337.59988900913589},{"$f":"'RES S curve-disconnect'!BI146","v":313.91188956409019},{"$f":"'RES S curve-disconnect'!BJ146","v":291.34233011626975},{"$f":"'RES S curve-disconnect'!BK146","v":269.88561846568842},{"$f":"'RES S curve-disconnect'!BL146","v":17.536190373359961},{"$f":"'RES S curve-disconnect'!BM146","v":17.44850942149316},{"$f":"'RES S curve-disconnect'!BN146","v":17.361266874385691},{"$f":"'RES S curve-disconnect'!BO146","v":17.274460540013763},{"$f":"'RES S curve-disconnect'!BP146","v":17.188088237313693},{"$f":"'RES S curve-disconnect'!BQ146","v":17.102147796127124},{"$f":"'RES S curve-disconnect'!BR146","v":17.01663705714649},{"$f":"'RES S curve-disconnect'!BS146","v":16.931553871860757},{"$f":"'RES S curve-disconnect'!BT146","v":16.846896102501454},{"$f":"'RES S curve-disconnect'!BU146","v":16.762661621988947},{"$f":"'RES S curve-disconnect'!BV146","v":16.678848313879001},{"$f":"'RES S curve-disconnect'!BW146","v":16.595454072309607},{"$f":"'RES S curve-disconnect'!BX146","v":16.512476801948058},{"$f":"'RES S curve-disconnect'!BY146","v":16.429914417938317},{"$f":"'RES S curve-disconnect'!BZ146","v":16.347764845848626},{"$f":"'RES S curve-disconnect'!CA146","v":17.266026021619382},{"$f":"'RES S curve-disconnect'!CB146","v":17.179695891511287},{"$f":"'RES S curve-disconnect'!CC146","v":17.093797412053728},{"$f":"'RES S curve-disconnect'!CD146","v":16.008328424993461}]
["Melbourne (C)",null,{"$f":"Customers!C200","v":6},{"$f":"Customers!D200","v":8},{"$f":"Customers!E200","v":10},{"$f":"Customers!F200","v":11},{"$f":"Customers!G200","v":7},{"$f":"Customers!H200","v":15},{"$f":"Customers!I200","v":10},{"$f":"Customers!J200","v":5},{"$f":"'RES S curve-disconnect'!C147","v":4.335},{"$f":"'RES S curve-disconnect'!D147","v":4.3983249999999998},{"$f":"'RES S curve-disconnect'!E147","v":4.4613333749999997},{"$f":"'RES S curve-disconnect'!F147","v":4.5240267081249996},{"$f":"'RES S curve-disconnect'!G147","v":4.5914065745843748},{"$f":"'RES S curve-disconnect'!H147","v":4.6584495417114526},{"$f":"'RES S curve-disconnect'!I147","v":4.7251572940028961},{"$f":"'RES S curve-disconnect'!J147","v":4.7915315075328815},{"$f":"'RES S curve-disconnect'!K147","v":4.8625738499952167},{"$f":"'RES S curve-disconnect'!L147","v":4.9332609807452403},{"$f":"'RES S curve-disconnect'!M147","v":5.0035946758415148},{"$f":"'RES S curve-disconnect'!N147","v":4.9785767024623064},{"$f":"'RES S curve-disconnect'!O147","v":4.9536838189499957},{"$f":"'RES S curve-disconnect'!P147","v":4.9289153998552448},{"$f":"'RES S curve-disconnect'!Q147","v":4.9042708228559695},{"$f":"'RES S curve-disconnect'!R147","v":4.8797494687416894},{"$f":"'RES S curve-disconnect'!S147","v":4.855350721397981},{"$f":"'RES S curve-disconnect'!T147","v":4.8310739677909913},{"$f":"'RES S curve-disconnect'!U147","v":4.8069185979520359},{"$f":"'RES S curve-disconnect'!V147","v":4.7828840049622761},{"$f":"'RES S curve-disconnect'!W147","v":4.7589695849374642},{"$f":"'RES S curve-disconnect'!X147","v":4.7351747370127768},{"$f":"'RES S curve-disconnect'!Y147","v":4.7114988633277122},{"$f":"'RES S curve-disconnect'!Z147","v":4.6879413690110736},{"$f":"'RES S curve-disconnect'!AA147","v":5.6645016621660185},{"$f":"'RES S curve-disconnect'!AB147","v":5.6361791538551884},{"$f":"'RES S curve-disconnect'!AC147","v":5.607998258085912},{"$f":"'RES S curve-disconnect'!AD147","v":6.579958266795483},{"$f":"'RES S curve-disconnect'!AE147","v":6.5470584754615047},{"$f":"'RES S curve-disconnect'!AF147","v":7.5143231830841977},{"$f":"'RES S curve-disconnect'!AG147","v":8.4767515671687761},{"$f":"'RES S curve-disconnect'!AH147","v":9.4343678093329331},{"$f":"'RES S curve-disconnect'!AI147","v":11.387195970286268},{"$f":"'RES S curve-disconnect'!AJ147","v":12.330259990434836},{"$f":"'RES S curve-disconnect'!AK147","v":14.268608690482662},{"$f":"'RES S curve-disconnect'!AL147","v":8.1972656470302496},{"$f":"'RES S curve-disconnect'!AM147","v":8.1562793187950984},{"$f":"'RES S curve-disconnect'!AN147","v":9.1154979222011221},{"$f":"'RES S curve-disconnect'!AO147","v":10.069920432590116},{"$f":"'RES S curve-disconnect'!AP147","v":12.019570830427167},{"$f":"'RES S curve-disconnect'!AQ147","v":13.95947297627503},{"$f":"'RES S curve-disconnect'!AR147","v":15.889675611393656},{"$f":"'RES S curve-disconnect'!AS147","v":18.810227233336686},{"$f":"'RES S curve-disconnect'!AT147","v":22.716176097170003},{"$f":"'RES S curve-disconnect'!AU147","v":27.602595216684154},{"$f":"'RES S curve-disconnect'!AV147","v":31.464582240600734},{"$f":"'RES S curve-disconnect'!AW147","v":35.307259329397731},{"$f":"'RES S curve-disconnect'!AX147","v":37.130723032750737},{"$f":"'RES S curve-disconnect'!AY147","v":37.945069417586986},{"$f":"'RES S curve-disconnect'!AZ147","v":36.755344070499049},{"$f":"'RES S curve-disconnect'!BA147","v":35.571567350146559},{"$f":"'RES S curve-disconnect'!BB147","v":32.393709513395827},{"$f":"'RES S curve-disconnect'!BC147","v":30.231740965828845},{"$f":"'RES S curve-disconnect'!BD147","v":28.080582260999702},{"$f":"'RES S curve-disconnect'!BE147","v":25.940179349694702},{"$f":"'RES S curve-disconnect'!BF147","v":24.810478452946228},{"$f":"'RES S curve-disconnect'!BG147","v":22.686426060681498},{"$f":"'RES S curve-disconnect'!BH147","v":20.57299393037809},{"$f":"'RES S curve-disconnect'!BI147","v":19.4701289607262},{"$f":"'RES S curve-disconnect'!BJ147","v":18.372778315922567},{"$f":"'RES S curve-disconnect'!BK147","v":17.280914424342956},{"$f":"'RES S curve-disconnect'!BL147","v":1.1945098522212407},{"$f":"'RES S curve-disconnect'!BM147","v":1.1885373029601345},{"$f":"'RES S curve-disconnect'!BN147","v":1.1825946164453338},{"$f":"'RES S curve-disconnect'!BO147","v":1.1766816433631071},{"$f":"'RES S curve-disconnect'!BP147","v":1.1707982351462916},{"$f":"'RES S curve-disconnect'!BQ147","v":1.1649442439705602},{"$f":"'RES S curve-disconnect'!BR147","v":1.1591195227507074},{"$f":"'RES S curve-disconnect'!BS147","v":1.1533239251369538},{"$f":"'RES S curve-disconnect'!BT147","v":1.1475573055112691},{"$f":"'RES S curve-disconnect'!BU147","v":1.1418195189837126},{"$f":"'RES S curve-disconnect'!BV147","v":1.1361104213887943},{"$f":"'RES S curve-disconnect'!BW147","v":1.1304298692818502},{"$f":"'RES S curve-disconnect'!BX147","v":1.124777719935441},{"$f":"'RES S curve-disconnect'!BY147","v":1.1191538313357636},{"$f":"'RES S curve-disconnect'!BZ147","v":1.113558062179085},{"$f":"'RES S curve-disconnect'!CA147","v":1.1079902718681895},{"$f":"'RES S curve-disconnect'!CB147","v":1.1024503205088485},{"$f":"'RES S curve-disconnect'!CC147","v":1.0969380689063042},{"$f":"'RES S curve-disconnect'!CD147","v":1.0914533785617728}]
["Monash (C)",null,{"$f":"Customers!C201","v":129},{"$f":"Customers!D201","v":431},{"$f":"Customers!E201","v":716},{"$f":"Customers!F201","v":820},{"$f":"Customers!G201","v":915},{"$f":"Customers!H201","v":781},{"$f":"Customers!I201","v":895},{"$f":"Customers!J201","v":732},{"$f":"'RES S curve-disconnect'!C148","v":328.07},{"$f":"'RES S curve-disconnect'!D148","v":332.98464999999999},{"$f":"'RES S curve-disconnect'!E148","v":337.97472675},{"$f":"'RES S curve-disconnect'!F148","v":343.03985311624996},{"$f":"'RES S curve-disconnect'!G148","v":348.17965385066867},{"$f":"'RES S curve-disconnect'!H148","v":353.39875558141534},{"$f":"'RES S curve-disconnect'!I148","v":358.69676180350825},{"$f":"'RES S curve-disconnect'!J148","v":364.0732779944907},{"$f":"'RES S curve-disconnect'!K148","v":369.53291160451823},{"$f":"'RES S curve-disconnect'!L148","v":375.07024704649564},{"$f":"'RES S curve-disconnect'!M148","v":380.69489581126322},{"$f":"'RES S curve-disconnect'!N148","v":378.79142133220688},{"$f":"'RES S curve-disconnect'!O148","v":376.89746422554583},{"$f":"'RES S curve-disconnect'!P148","v":375.01297690441811},{"$f":"'RES S curve-disconnect'!Q148","v":373.13791201989602},{"$f":"'RES S curve-disconnect'!R148","v":371.27222245979652},{"$f":"'RES S curve-disconnect'!S148","v":370.41586134749758},{"$f":"'RES S curve-disconnect'!T148","v":369.56378204076003},{"$f":"'RES S curve-disconnect'!U148","v":370.71596313055625},{"$f":"'RES S curve-disconnect'!V148","v":373.86238331490352},{"$f":"'RES S curve-disconnect'!W148","v":377.99307139832899},{"$f":"'RES S curve-disconnect'!X148","v":410.1031060413373},{"$f":"'RES S curve-disconnect'!Y148","v":506.05259051113063},{"$f":"'RES S curve-disconnect'!Z148","v":658.52232755857494},{"$f":"'RES S curve-disconnect'!AA148","v":949.22971592078216},{"$f":"'RES S curve-disconnect'!AB148","v":1322.4835673411783},{"$f":"'RES S curve-disconnect'!AC148","v":1808.8711495044722},{"$f":"'RES S curve-disconnect'!AD148","v":2317.8267937569499},{"$f":"'RES S curve-disconnect'!AE148","v":2830.2376597881653},{"$f":"'RES S curve-disconnect'!AF148","v":3353.0864714892246},{"$f":"'RES S curve-disconnect'!AG148","v":3486.3210391317784},{"$f":"'RES S curve-disconnect'!AH148","v":3558.8894339361195},{"$f":"'RES S curve-disconnect'!AI148","v":3465.094986766439},{"$f":"'RES S curve-disconnect'!AJ148","v":3296.7695118326064},{"$f":"'RES S curve-disconnect'!AK148","v":3107.2856642734437},{"$f":"'RES S curve-disconnect'!AL148","v":2604.7492359520766},{"$f":"'RES S curve-disconnect'!AM148","v":2358.725489772316},{"$f":"'RES S curve-disconnect'!AN148","v":2356.9318623234544},{"$f":"'RES S curve-disconnect'!AO148","v":2301.1472030118371},{"$f":"'RES S curve-disconnect'!AP148","v":2189.641466996778},{"$f":"'RES S curve-disconnect'!AQ148","v":2061.6932596617939},{"$f":"'RES S curve-disconnect'!AR148","v":1928.3847933634852},{"$f":"'RES S curve-disconnect'!AS148","v":1796.7428693966676},{"$f":"'RES S curve-disconnect'!AT148","v":1670.7591550496843},{"$f":"'RES S curve-disconnect'!AU148","v":1552.4053592744358},{"$f":"'RES S curve-disconnect'!AV148","v":1440.6433324780637},{"$f":"'RES S curve-disconnect'!AW148","v":1337.4401158156734},{"$f":"'RES S curve-disconnect'!AX148","v":1241.7529152365951},{"$f":"'RES S curve-disconnect'!AY148","v":1152.544150660412},{"$f":"'RES S curve-disconnect'!AZ148","v":1070.7814299071099},{"$f":"'RES S curve-disconnect'!BA148","v":993.42752275757448},{"$f":"'RES S curve-disconnect'!BB148","v":922.46038514378654},{"$f":"'RES S curve-disconnect'!BC148","v":855.84808321806759},{"$f":"'RES S curve-disconnect'!BD148","v":794.56884280197733},{"$f":"'RES S curve-disconnect'!BE148","v":737.59599858796742},{"$f":"'RES S curve-disconnect'!BF148","v":685.90801859502756},{"$f":"'RES S curve-disconnect'!BG148","v":637.47847850205244},{"$f":"'RES S curve-disconnect'!BH148","v":591.29108610954211},{"$f":"'RES S curve-disconnect'!BI148","v":549.33463067899447},{"$f":"'RES S curve-disconnect'!BJ148","v":509.58795752559945},{"$f":"'RES S curve-disconnect'!BK148","v":473.04001773797148},{"$f":"'RES S curve-disconnect'!BL148","v":31.674817649281618},{"$f":"'RES S curve-disconnect'!BM148","v":31.516443561035206},{"$f":"'RES S curve-disconnect'!BN148","v":31.358861343230032},{"$f":"'RES S curve-disconnect'!BO148","v":31.202067036513881},{"$f":"'RES S curve-disconnect'!BP148","v":31.046056701331313},{"$f":"'RES S curve-disconnect'!BQ148","v":30.890826417824655},{"$f":"'RES S curve-disconnect'!BR148","v":30.736372285735534},{"$f":"'RES S curve-disconnect'!BS148","v":30.582690424306858},{"$f":"'RES S curve-disconnect'!BT148","v":30.429776972185323},{"$f":"'RES S curve-disconnect'!BU148","v":30.277628087324398},{"$f":"'RES S curve-disconnect'!BV148","v":30.126239946887779},{"$f":"'RES S curve-disconnect'!BW148","v":29.975608747153338},{"$f":"'RES S curve-disconnect'!BX148","v":29.825730703417573},{"$f":"'RES S curve-disconnect'!BY148","v":29.676602049900485},{"$f":"'RES S curve-disconnect'!BZ148","v":29.528219039650981},{"$f":"'RES S curve-disconnect'!CA148","v":29.380577944452725},{"$f":"'RES S curve-disconnect'!CB148","v":29.233675054730462},{"$f":"'RES S curve-disconnect'!CC148","v":29.087506679456812},{"$f":"'RES S curve-disconnect'!CD148","v":28.942069146059527}]
["Nillumbik (S)",null,{"$f":"Customers!C202","v":0},{"$f":"Customers!D202","v":0},{"$f":"Customers!E202","v":0},{"$f":"Customers!F202","v":0},{"$f":"Customers!G202","v":0},{"$f":"Customers!H202","v":0},{"$f":"Customers!I202","v":0},{"$f":"Customers!J202","v":0},{"$f":"'RES S curve-disconnect'!C149","v":0.04},{"$f":"'RES S curve-disconnect'!D149","v":3.9800000000000002E-2},{"$f":"'RES S curve-disconnect'!E149","v":3.9601000000000004E-2},{"$f":"'RES S curve-disconnect'!F149","v":3.9402995000000003E-2},{"$f":"'RES S curve-disconnect'!G149","v":3.9205980025000003E-2},{"$f":"'RES S curve-disconnect'!H149","v":3.9009950124875008E-2},{"$f":"'RES S curve-disconnect'!I149","v":3.881490037425063E-2},{"$f":"'RES S curve-disconnect'!J149","v":3.8620825872379375E-2},{"$f":"'RES S curve-disconnect'!K149","v":3.8427721743017479E-2},{"$f":"'RES S curve-disconnect'!L149","v":3.8235583134302392E-2},{"$f":"'RES S curve-disconnect'!M149","v":3.8044405218630881E-2},{"$f":"'RES S curve-disconnect'!N149","v":3.7854183192537721E-2},{"$f":"'RES S curve-disconnect'!O149","v":3.7664912276575035E-2},{"$f":"'RES S curve-disconnect'!P149","v":3.7476587715192161E-2},{"$f":"'RES S curve-disconnect'!Q149","v":3.7289204776616201E-2},{"$f":"'RES S curve-disconnect'!R149","v":3.7102758752733118E-2},{"$f":"'RES S curve-disconnect'!S149","v":3.6917244958969454E-2},{"$f":"'RES S curve-disconnect'!T149","v":3.6732658734174604E-2},{"$f":"'RES S curve-disconnect'!U149","v":3.6548995440503732E-2},{"$f":"'RES S curve-disconnect'!V149","v":3.6366250463301213E-2},{"$f":"'RES S curve-disconnect'!W149","v":3.6184419210984704E-2},{"$f":"'RES S curve-disconnect'!X149","v":3.6003497114929783E-2},{"$f":"'RES S curve-disconnect'!Y149","v":3.5823479629355136E-2},{"$f":"'RES S curve-disconnect'!Z149","v":3.5644362231208357E-2},{"$f":"'RES S curve-disconnect'!AA149","v":3.5466140420052319E-2},{"$f":"'RES S curve-disconnect'!AB149","v":3.5288809717952056E-2},{"$f":"'RES S curve-disconnect'!AC149","v":3.5112365669362301E-2},{"$f":"'RES S curve-disconnect'!AD149","v":3.4936803841015489E-2},{"$f":"'RES S curve-disconnect'!AE149","v":3.4762119821810412E-2},{"$f":"'RES S curve-disconnect'!AF149","v":3.4588309222701362E-2},{"$f":"'RES S curve-disconnect'!AG149","v":3.4415367676587857E-2},{"$f":"'RES S curve-disconnect'!AH149","v":3.4243290838204918E-2},{"$f":"'RES S curve-disconnect'!AI149","v":3.4072074384013891E-2},{"$f":"'RES S curve-disconnect'!AJ149","v":3.3901714012093825E-2},{"$f":"'RES S curve-disconnect'!AK149","v":3.3732205442033356E-2},{"$f":"'RES S curve-disconnect'!AL149","v":3.3563544414823183E-2},{"$f":"'RES S curve-disconnect'!AM149","v":3.3395726692749067E-2},{"$f":"'RES S curve-disconnect'!AN149","v":3.3228748059285322E-2},{"$f":"'RES S curve-disconnect'!AO149","v":3.3062604318988893E-2},{"$f":"'RES S curve-disconnect'!AP149","v":3.2897291297393952E-2},{"$f":"'RES S curve-disconnect'!AQ149","v":3.273280484090698E-2},{"$f":"'RES S curve-disconnect'!AR149","v":3.2569140816702445E-2},{"$f":"'RES S curve-disconnect'!AS149","v":3.240629511261893E-2},{"$f":"'RES S curve-disconnect'!AT149","v":3.2244263637055834E-2},{"$f":"'RES S curve-disconnect'!AU149","v":3.2083042318870561E-2},{"$f":"'RES S curve-disconnect'!AV149","v":3.1922627107276211E-2},{"$f":"'RES S curve-disconnect'!AW149","v":3.1763013971739827E-2},{"$f":"'RES S curve-disconnect'!AX149","v":3.1604198901881125E-2},{"$f":"'RES S curve-disconnect'!AY149","v":3.1446177907371718E-2},{"$f":"'RES S curve-disconnect'!AZ149","v":3.1288947017834863E-2},{"$f":"'RES S curve-disconnect'!BA149","v":3.1132502282745691E-2},{"$f":"'RES S curve-disconnect'!BB149","v":3.0976839771331963E-2},{"$f":"'RES S curve-disconnect'!BC149","v":3.0821955572475301E-2},{"$f":"'RES S curve-disconnect'!BD149","v":3.0667845794612927E-2},{"$f":"'RES S curve-disconnect'!BE149","v":3.0514506565639858E-2},{"$f":"'RES S curve-disconnect'!BF149","v":3.0361934032811656E-2},{"$f":"'RES S curve-disconnect'!BG149","v":3.0210124362647597E-2},{"$f":"'RES S curve-disconnect'!BH149","v":3.0059073740834361E-2},{"$f":"'RES S curve-disconnect'!BI149","v":2.9908778372130188E-2},{"$f":"'RES S curve-disconnect'!BJ149","v":2.9759234480269538E-2},{"$f":"'RES S curve-disconnect'!BK149","v":2.9610438307868192E-2},{"$f":"'RES S curve-disconnect'!BL149","v":2.9462386116328849E-2},{"$f":"'RES S curve-disconnect'!BM149","v":2.9315074185747206E-2},{"$f":"'RES S curve-disconnect'!BN149","v":2.9168498814818471E-2},{"$f":"'RES S curve-disconnect'!BO149","v":2.902265632074438E-2},{"$f":"'RES S curve-disconnect'!BP149","v":2.8877543039140658E-2},{"$f":"'RES S curve-disconnect'!BQ149","v":2.8733155323944954E-2},{"$f":"'RES S curve-disconnect'!BR149","v":2.8589489547325233E-2},{"$f":"'RES S curve-disconnect'!BS149","v":2.8446542099588603E-2},{"$f":"'RES S curve-disconnect'!BT149","v":2.8304309389090659E-2},{"$f":"'RES S curve-disconnect'!BU149","v":2.8162787842145206E-2},{"$f":"'RES S curve-disconnect'!BV149","v":2.8021973902934479E-2},{"$f":"'RES S curve-disconnect'!BW149","v":2.7881864033419808E-2},{"$f":"'RES S curve-disconnect'!BX149","v":2.774245471325271E-2},{"$f":"'RES S curve-disconnect'!BY149","v":2.7603742439686444E-2},{"$f":"'RES S curve-disconnect'!BZ149","v":2.7465723727488012E-2},{"$f":"'RES S curve-disconnect'!CA149","v":2.7328395108850573E-2},{"$f":"'RES S curve-disconnect'!CB149","v":2.719175313330632E-2},{"$f":"'RES S curve-disconnect'!CC149","v":2.7055794367639791E-2},{"$f":"'RES S curve-disconnect'!CD149","v":2.6920515395801592E-2}]
["Port Phillip (C)",null,{"$f":"Customers!C203","v":197},{"$f":"Customers!D203","v":354},{"$f":"Customers!E203","v":464},{"$f":"Customers!F203","v":579},{"$f":"Customers!G203","v":466},{"$f":"Customers!H203","v":360},{"$f":"Customers!I203","v":380},{"$f":"Customers!J203","v":428},{"$f":"'RES S curve-disconnect'!C150","v":191.62},{"$f":"'RES S curve-disconnect'!D150","v":194.47190000000001},{"$f":"'RES S curve-disconnect'!E150","v":197.37954050000002},{"$f":"'RES S curve-disconnect'!F150","v":200.32264279750001},{"$f":"'RES S curve-disconnect'!G150","v":203.3010295835125},{"$f":"'RES S curve-disconnect'!H150","v":206.34452443559493},{"$f":"'RES S curve-disconnect'!I150","v":209.43280181341697},{"$f":"'RES S curve-disconnect'!J150","v":212.56063780434988},{"$f":"'RES S curve-disconnect'!K150","v":215.74283461532809},{"$f":"'RES S curve-disconnect'!L150","v":218.95412044225148},{"$f":"'RES S curve-disconnect'!M150","v":222.22434984004025},{"$f":"'RES S curve-disconnect'!N150","v":221.11322809084004},{"$f":"'RES S curve-disconnect'!O150","v":220.00766195038582},{"$f":"'RES S curve-disconnect'!P150","v":218.90762364063386},{"$f":"'RES S curve-disconnect'!Q150","v":220.8130855224307},{"$f":"'RES S curve-disconnect'!R150","v":222.70902009481856},{"$f":"'RES S curve-disconnect'!S150","v":233.59547499434447},{"$f":"'RES S curve-disconnect'!T150","v":245.42749761937279},{"$f":"'RES S curve-disconnect'!U150","v":274.20036013127594},{"$f":"'RES S curve-disconnect'!V150","v":307.82935833061958},{"$f":"'RES S curve-disconnect'!W150","v":345.29021153896645},{"$f":"'RES S curve-disconnect'!X150","v":492.56376048127163},{"$f":"'RES S curve-disconnect'!Y150","v":773.10094167886518},{"$f":"'RES S curve-disconnect'!Z150","v":1044.2354369704708},{"$f":"'RES S curve-disconnect'!AA150","v":1363.0142597856186},{"$f":"'RES S curve-disconnect'!AB150","v":1601.1991884866904},{"$f":"'RES S curve-disconnect'!AC150","v":1786.193192544257},{"$f":"'RES S curve-disconnect'!AD150","v":1892.2622265815357},{"$f":"'RES S curve-disconnect'!AE150","v":1948.8009154486281},{"$f":"'RES S curve-disconnect'!AF150","v":1973.0569108713848},{"$f":"'RES S curve-disconnect'!AG150","v":1911.1916263170281},{"$f":"'RES S curve-disconnect'!AH150","v":1841.6356681854429},{"$f":"'RES S curve-disconnect'!AI150","v":1746.4274898445155},{"$f":"'RES S curve-disconnect'!AJ150","v":1640.6953523952932},{"$f":"'RES S curve-disconnect'!AK150","v":1535.4918756333166},{"$f":"'RES S curve-disconnect'!AL150","v":1359.81441625515},{"$f":"'RES S curve-disconnect'!AM150","v":1252.0153441738744},{"$f":"'RES S curve-disconnect'!AN150","v":1199.755267453005},{"$f":"'RES S curve-disconnect'!AO150","v":1139.7564911157399},{"$f":"'RES S curve-disconnect'!AP150","v":1071.0577086601611},{"$f":"'RES S curve-disconnect'!AQ150","v":1002.7024201168604},{"$f":"'RES S curve-disconnect'!AR150","v":934.68890801627606},{"$f":"'RES S curve-disconnect'!AS150","v":871.01546347619467},{"$f":"'RES S curve-disconnect'!AT150","v":809.66038615881371},{"$f":"'RES S curve-disconnect'!AU150","v":752.61208422801963},{"$f":"'RES S curve-disconnect'!AV150","v":698.84902380687959},{"$f":"'RES S curve-disconnect'!AW150","v":648.35477868784517},{"$f":"'RES S curve-disconnect'!AX150","v":602.11300479440592},{"$f":"'RES S curve-disconnect'!AY150","v":559.10243977043388},{"$f":"'RES S curve-disconnect'!AZ150","v":519.3069275715817},{"$f":"'RES S curve-disconnect'!BA150","v":481.71039293372382},{"$f":"'RES S curve-disconnect'!BB150","v":447.30184096905521},{"$f":"'RES S curve-disconnect'!BC150","v":415.06533176420993},{"$f":"'RES S curve-disconnect'!BD150","v":384.99000510538889},{"$f":"'RES S curve-disconnect'!BE150","v":358.06505507986196},{"$f":"'RES S curve-disconnect'!BF150","v":332.27472980446265},{"$f":"'RES S curve-disconnect'!BG150","v":308.61335615544033},{"$f":"'RES S curve-disconnect'!BH150","v":286.0702893746631},{"$f":"'RES S curve-disconnect'!BI150","v":266.63993792778979},{"$f":"'RES S curve-disconnect'!BJ150","v":247.30673823815084},{"$f":"'RES S curve-disconnect'!BK150","v":230.0702045469601},{"$f":"'RES S curve-disconnect'!BL150","v":20.919853524225296},{"$f":"'RES S curve-disconnect'!BM150","v":20.81525425660417},{"$f":"'RES S curve-disconnect'!BN150","v":20.71117798532115},{"$f":"'RES S curve-disconnect'!BO150","v":20.607622095394543},{"$f":"'RES S curve-disconnect'!BP150","v":20.50458398491757},{"$f":"'RES S curve-disconnect'!BQ150","v":20.402061064992981},{"$f":"'RES S curve-disconnect'!BR150","v":20.300050759668018},{"$f":"'RES S curve-disconnect'!BS150","v":20.198550505869676},{"$f":"'RES S curve-disconnect'!BT150","v":20.097557753340325},{"$f":"'RES S curve-disconnect'!BU150","v":20.997069964573626},{"$f":"'RES S curve-disconnect'!BV150","v":20.892084614750758},{"$f":"'RES S curve-disconnect'!BW150","v":20.787624191677004},{"$f":"'RES S curve-disconnect'!BX150","v":20.683686070718618},{"$f":"'RES S curve-disconnect'!BY150","v":20.580267640365026},{"$f":"'RES S curve-disconnect'!BZ150","v":20.477366302163201},{"$f":"'RES S curve-disconnect'!CA150","v":20.374979470652384},{"$f":"'RES S curve-disconnect'!CB150","v":20.273104573299122},{"$f":"'RES S curve-disconnect'!CC150","v":20.171739050432627},{"$f":"'RES S curve-disconnect'!CD150","v":19.070880355180464}]
["South Gippsland (S)",null,{"$f":"Customers!C204","v":6},{"$f":"Customers!D204","v":16},{"$f":"Customers!E204","v":16},{"$f":"Customers!F204","v":8},{"$f":"Customers!G204","v":16},{"$f":"Customers!H204","v":11},{"$f":"Customers!I204","v":11},{"$f":"Customers!J204","v":20},{"$f":"'RES S curve-disconnect'!C151","v":10.81},{"$f":"'RES S curve-disconnect'!D151","v":10.97095},{"$f":"'RES S curve-disconnect'!E151","v":11.131095250000001},{"$f":"'RES S curve-disconnect'!F151","v":11.295439773750003},{"$f":"'RES S curve-disconnect'!G151","v":11.463962574881252},{"$f":"'RES S curve-disconnect'!H151","v":11.631642762006846},{"$f":"'RES S curve-disconnect'!I151","v":11.803484548196812},{"$f":"'RES S curve-disconnect'!J151","v":11.979467125455828},{"$f":"'RES S curve-disconnect'!K151","v":12.15456978982855},{"$f":"'RES S curve-disconnect'!L151","v":12.333796940879406},{"$f":"'RES S curve-disconnect'!M151","v":12.51712795617501},{"$f":"'RES S curve-disconnect'!N151","v":12.454542316394134},{"$f":"'RES S curve-disconnect'!O151","v":12.392269604812164},{"$f":"'RES S curve-disconnect'!P151","v":12.330308256788102},{"$f":"'RES S curve-disconnect'!Q151","v":12.268656715504163},{"$f":"'RES S curve-disconnect'!R151","v":12.207313431926641},{"$f":"'RES S curve-disconnect'!S151","v":12.146276864767009},{"$f":"'RES S curve-disconnect'!T151","v":12.085545480443173},{"$f":"'RES S curve-disconnect'!U151","v":12.025117753040957},{"$f":"'RES S curve-disconnect'!V151","v":11.964992164275753},{"$f":"'RES S curve-disconnect'!W151","v":11.905167203454374},{"$f":"'RES S curve-disconnect'!X151","v":11.845641367437102},{"$f":"'RES S curve-disconnect'!Y151","v":11.786413160599917},{"$f":"'RES S curve-disconnect'!Z151","v":11.727481094796918},{"$f":"'RES S curve-disconnect'!AA151","v":11.668843689322932},{"$f":"'RES S curve-disconnect'!AB151","v":12.610499470876318},{"$f":"'RES S curve-disconnect'!AC151","v":12.547446973521938},{"$f":"'RES S curve-disconnect'!AD151","v":13.484709738654329},{"$f":"'RES S curve-disconnect'!AE151","v":13.417286189961057},{"$f":"'RES S curve-disconnect'!AF151","v":15.350199759011252},{"$f":"'RES S curve-disconnect'!AG151","v":16.273448760216198},{"$f":"'RES S curve-disconnect'!AH151","v":19.192081516415115},{"$f":"'RES S curve-disconnect'!AI151","v":21.096121108833039},{"$f":"'RES S curve-disconnect'!AJ151","v":24.990640503288876},{"$f":"'RES S curve-disconnect'!AK151","v":29.865687300772432},{"$f":"'RES S curve-disconnect'!AL151","v":16.716358864268571},{"$f":"'RES S curve-disconnect'!AM151","v":15.632777069947226},{"$f":"'RES S curve-disconnect'!AN151","v":17.554613184597493},{"$f":"'RES S curve-disconnect'!AO151","v":20.466840118674504},{"$f":"'RES S curve-disconnect'!AP151","v":24.364505918081129},{"$f":"'RES S curve-disconnect'!AQ151","v":30.242683388490725},{"$f":"'RES S curve-disconnect'!AR151","v":38.091469971548271},{"$f":"'RES S curve-disconnect'!AS151","v":48.901012621690526},{"$f":"'RES S curve-disconnect'!AT151","v":62.656507558582078},{"$f":"'RES S curve-disconnect'!AU151","v":79.343225020789163},{"$f":"'RES S curve-disconnect'!AV151","v":94.946508895685213},{"$f":"'RES S curve-disconnect'!AW151","v":103.4717763512068},{"$f":"'RES S curve-disconnect'!AX151","v":106.95441746945076},{"$f":"'RES S curve-disconnect'!AY151","v":102.41964538210351},{"$f":"'RES S curve-disconnect'!AZ151","v":97.907547155192987},{"$f":"'RES S curve-disconnect'!BA151","v":90.418009419417018},{"$f":"'RES S curve-disconnect'!BB151","v":83.965919372319931},{"$f":"'RES S curve-disconnect'!BC151","v":77.546089775458341},{"$f":"'RES S curve-disconnect'!BD151","v":72.158359326581049},{"$f":"'RES S curve-disconnect'!BE151","v":66.79756752994814},{"$f":"'RES S curve-disconnect'!BF151","v":62.463579692298403},{"$f":"'RES S curve-disconnect'!BG151","v":58.151261793836909},{"$f":"'RES S curve-disconnect'!BH151","v":53.860505484867723},{"$f":"'RES S curve-disconnect'!BI151","v":49.591202957443386},{"$f":"'RES S curve-disconnect'!BJ151","v":46.343246942656165},{"$f":"'RES S curve-disconnect'!BK151","v":44.11153070794289},{"$f":"'RES S curve-disconnect'!BL151","v":2.8909730544031733},{"$f":"'RES S curve-disconnect'!BM151","v":2.8765181891311573},{"$f":"'RES S curve-disconnect'!BN151","v":2.8621355981855015},{"$f":"'RES S curve-disconnect'!BO151","v":2.847824920194574},{"$f":"'RES S curve-disconnect'!BP151","v":2.8335857955936006},{"$f":"'RES S curve-disconnect'!BQ151","v":2.8194178666156327},{"$f":"'RES S curve-disconnect'!BR151","v":2.8053207772825544},{"$f":"'RES S curve-disconnect'!BS151","v":2.7912941733961421},{"$f":"'RES S curve-disconnect'!BT151","v":2.7773377025291608},{"$f":"'RES S curve-disconnect'!BU151","v":2.7634510140165149},{"$f":"'RES S curve-disconnect'!BV151","v":2.7496337589464326},{"$f":"'RES S curve-disconnect'!BW151","v":2.7358855901517005},{"$f":"'RES S curve-disconnect'!BX151","v":2.7222061622009419},{"$f":"'RES S curve-disconnect'!BY151","v":2.7085951313899375},{"$f":"'RES S curve-disconnect'!BZ151","v":2.6950521557329874},{"$f":"'RES S curve-disconnect'!CA151","v":2.6815768949543224},{"$f":"'RES S curve-disconnect'!CB151","v":2.6681690104795508},{"$f":"'RES S curve-disconnect'!CC151","v":2.6548281654271531},{"$f":"'RES S curve-disconnect'!CD151","v":2.6415540246000173}]
["Stonnington (C)",null,{"$f":"Customers!C205","v":222},{"$f":"Customers!D205","v":432},{"$f":"Customers!E205","v":587},{"$f":"Customers!F205","v":637},{"$f":"Customers!G205","v":613},{"$f":"Customers!H205","v":482},{"$f":"Customers!I205","v":544},{"$f":"Customers!J205","v":476},{"$f":"'RES S curve-disconnect'!C152","v":194.22},{"$f":"'RES S curve-disconnect'!D152","v":197.1139},{"$f":"'RES S curve-disconnect'!E152","v":200.06333050000001},{"$f":"'RES S curve-disconnect'!F152","v":203.04801384750002},{"$f":"'RES S curve-disconnect'!G152","v":206.0727737782625},{"$f":"'RES S curve-disconnect'!H152","v":209.15740990937115},{"$f":"'RES S curve-disconnect'!I152","v":212.29162285982432},{"$f":"'RES S curve-disconnect'!J152","v":215.46516474552519},{"$f":"'RES S curve-disconnect'!K152","v":218.69283892179757},{"$f":"'RES S curve-disconnect'!L152","v":221.95437472718856},{"$f":"'RES S curve-disconnect'!M152","v":225.27460285355261},{"$f":"'RES S curve-disconnect'!N152","v":224.14822983928482},{"$f":"'RES S curve-disconnect'!O152","v":223.0274886900884},{"$f":"'RES S curve-disconnect'!P152","v":221.91235124663797},{"$f":"'RES S curve-disconnect'!Q152","v":221.80278949040476},{"$f":"'RES S curve-disconnect'!R152","v":222.69377554295272},{"$f":"'RES S curve-disconnect'!S152","v":232.58030666523794},{"$f":"'RES S curve-disconnect'!T152","v":244.41740513191178},{"$f":"'RES S curve-disconnect'!U152","v":276.19531810625222},{"$f":"'RES S curve-disconnect'!V152","v":315.81434151572097},{"$f":"'RES S curve-disconnect'!W152","v":363.23526980814233},{"$f":"'RES S curve-disconnect'!X152","v":568.41909345910165},{"$f":"'RES S curve-disconnect'!Y152","v":980.57699799180614},{"$f":"'RES S curve-disconnect'!Z152","v":1357.6741130018472},{"$f":"'RES S curve-disconnect'!AA152","v":1740.885742436838},{"$f":"'RES S curve-disconnect'!AB152","v":1963.1813137246536},{"$f":"'RES S curve-disconnect'!AC152","v":2083.3654071560304},{"$f":"'RES S curve-disconnect'!AD152","v":2104.9485801202504},{"$f":"'RES S curve-disconnect'!AE152","v":2073.4238372196492},{"$f":"'RES S curve-disconnect'!AF152","v":2013.0567180335509},{"$f":"'RES S curve-disconnect'!AG152","v":1905.991434443383},{"$f":"'RES S curve-disconnect'!AH152","v":1797.4614772711661},{"$f":"'RES S curve-disconnect'!AI152","v":1682.4741698848102},{"$f":"'RES S curve-disconnect'!AJ152","v":1568.0617990353862},{"$f":"'RES S curve-disconnect'!AK152","v":1459.2214900402093},{"$f":"'RES S curve-disconnect'!AL152","v":1330.9253825900082},{"$f":"'RES S curve-disconnect'!AM152","v":1231.2707556770583},{"$f":"'RES S curve-disconnect'!AN152","v":1157.1144018986729},{"$f":"'RES S curve-disconnect'!AO152","v":1083.3288298891796},{"$f":"'RES S curve-disconnect'!AP152","v":1010.9121857397337},{"$f":"'RES S curve-disconnect'!AQ152","v":940.85762481103507},{"$f":"'RES S curve-disconnect'!AR152","v":874.15333668697986},{"$f":"'RES S curve-disconnect'!AS152","v":812.78257000354495},{"$f":"'RES S curve-disconnect'!AT152","v":753.71865715352726},{"$f":"'RES S curve-disconnect'!AU152","v":699.95006386775958},{"$f":"'RES S curve-disconnect'!AV152","v":650.45031354842081},{"$f":"'RES S curve-disconnect'!AW152","v":603.19806198067863},{"$f":"'RES S curve-disconnect'!AX152","v":560.18207167077526},{"$f":"'RES S curve-disconnect'!AY152","v":520.38116131242145},{"$f":"'RES S curve-disconnect'!AZ152","v":482.77925550585928},{"$f":"'RES S curve-disconnect'!BA152","v":448.36535922833002},{"$f":"'RES S curve-disconnect'!BB152","v":416.12353243218837},{"$f":"'RES S curve-disconnect'!BC152","v":386.04291477002738},{"$f":"'RES S curve-disconnect'!BD152","v":358.11270019617729},{"$f":"'RES S curve-disconnect'!BE152","v":332.32213669519638},{"$f":"'RES S curve-disconnect'!BF152","v":308.66052601172038},{"$f":"'RES S curve-disconnect'!BG152","v":288.1172233816618},{"$f":"'RES S curve-disconnect'!BH152","v":267.67663726475348},{"$f":"'RES S curve-disconnect'!BI152","v":248.33825407842971},{"$f":"'RES S curve-disconnect'!BJ152","v":230.09656280803756},{"$f":"'RES S curve-disconnect'!BK152","v":213.94607999399739},{"$f":"'RES S curve-disconnect'!BL152","v":19.876349594027392},{"$f":"'RES S curve-disconnect'!BM152","v":20.776967846057254},{"$f":"'RES S curve-disconnect'!BN152","v":20.673083006826971},{"$f":"'RES S curve-disconnect'!BO152","v":20.569717591792838},{"$f":"'RES S curve-disconnect'!BP152","v":20.466869003833871},{"$f":"'RES S curve-disconnect'!BQ152","v":20.364534658814701},{"$f":"'RES S curve-disconnect'!BR152","v":20.262711985520628},{"$f":"'RES S curve-disconnect'!BS152","v":20.161398425593024},{"$f":"'RES S curve-disconnect'!BT152","v":20.060591433465056},{"$f":"'RES S curve-disconnect'!BU152","v":19.960288476297734},{"$f":"'RES S curve-disconnect'!BV152","v":19.860487033916243},{"$f":"'RES S curve-disconnect'!BW152","v":19.761184598746663},{"$f":"'RES S curve-disconnect'!BX152","v":19.66237867575293},{"$f":"'RES S curve-disconnect'!BY152","v":19.564066782374166},{"$f":"'RES S curve-disconnect'!BZ152","v":19.466246448462297},{"$f":"'RES S curve-disconnect'!CA152","v":19.368915216219985},{"$f":"'RES S curve-disconnect'!CB152","v":19.272070640138885},{"$f":"'RES S curve-disconnect'!CC152","v":19.175710286938191},{"$f":"'RES S curve-disconnect'!CD152","v":18.079831735503497}]
["Whitehorse (C)",null,{"$f":"Customers!C206","v":160},{"$f":"Customers!D206","v":461},{"$f":"Customers!E206","v":757},{"$f":"Customers!F206","v":830},{"$f":"Customers!G206","v":886},{"$f":"Customers!H206","v":738},{"$f":"Customers!I206","v":781},{"$f":"Customers!J206","v":631},{"$f":"'RES S curve-disconnect'!C153","v":334.32499999999999},{"$f":"'RES S curve-disconnect'!D153","v":339.33337500000005},{"$f":"'RES S curve-disconnect'!E153","v":344.42170812500001},{"$f":"'RES S curve-disconnect'!F153","v":349.57959958437505},{"$f":"'RES S curve-disconnect'!G153","v":354.81670158645312},{"$f":"'RES S curve-disconnect'!H153","v":360.13761807852086},{"$f":"'RES S curve-disconnect'!I153","v":365.53692998812824},{"$f":"'RES S curve-disconnect'!J153","v":371.01424533818761},{"$f":"'RES S curve-disconnect'!K153","v":376.57417411149669},{"$f":"'RES S curve-disconnect'!L153","v":382.21630324093923},{"$f":"'RES S curve-disconnect'!M153","v":387.94522172473449},{"$f":"'RES S curve-disconnect'!N153","v":386.00549561611086},{"$f":"'RES S curve-disconnect'!O153","v":384.07546813803037},{"$f":"'RES S curve-disconnect'!P153","v":382.15509079734016},{"$f":"'RES S curve-disconnect'!Q153","v":380.24431534335343},{"$f":"'RES S curve-disconnect'!R153","v":378.34309376663668},{"$f":"'RES S curve-disconnect'!S153","v":377.45137829780344},{"$f":"'RES S curve-disconnect'!T153","v":376.56412140631443},{"$f":"'RES S curve-disconnect'!U153","v":377.68130079928284},{"$f":"'RES S curve-disconnect'!V153","v":380.79289429528637},{"$f":"'RES S curve-disconnect'!W153","v":385.88892982380997},{"$f":"'RES S curve-disconnect'!X153","v":418.95948517469094},{"$f":"'RES S curve-disconnect'!Y153","v":520.86468774881746},{"$f":"'RES S curve-disconnect'!Z153","v":681.26036431007333},{"$f":"'RES S curve-disconnect'!AA153","v":987.85406248852291},{"$f":"'RES S curve-disconnect'!AB153","v":1378.9147921760805},{"$f":"'RES S curve-disconnect'!AC153","v":1885.0202182152},{"$f":"'RES S curve-disconnect'!AD153","v":2408.595117124124},{"$f":"'RES S curve-disconnect'!AE153","v":2927.5521415385033},{"$f":"'RES S curve-disconnect'!AF153","v":3444.9143808308108},{"$f":"'RES S curve-disconnect'!AG153","v":3567.689808926657},{"$f":"'RES S curve-disconnect'!AH153","v":3627.8513598820236},{"$f":"'RES S curve-disconnect'!AI153","v":3524.7121030826133},{"$f":"'RES S curve-disconnect'!AJ153","v":3350.0885425672004},{"$f":"'RES S curve-disconnect'!AK153","v":3153.3380998543644},{"$f":"'RES S curve-disconnect'!AL153","v":2657.5714093550923},{"$f":"'RES S curve-disconnect'!AM153","v":2407.2835523083172},{"$f":"'RES S curve-disconnect'!AN153","v":2398.2471345467757},{"$f":"'RES S curve-disconnect'!AO153","v":2336.2558988740416},{"$f":"'RES S curve-disconnect'!AP153","v":2220.5746193796713},{"$f":"'RES S curve-disconnect'!AQ153","v":2088.471746282773},{"$f":"'RES S curve-disconnect'!AR153","v":1953.0293875513592},{"$f":"'RES S curve-disconnect'!AS153","v":1818.2642406136024},{"$f":"'RES S curve-disconnect'!AT153","v":1691.1729194105344},{"$f":"'RES S curve-disconnect'!AU153","v":1570.7170548134816},{"$f":"'RES S curve-disconnect'!AV153","v":1458.8634695394142},{"$f":"'RES S curve-disconnect'!AW153","v":1353.5691521917172},{"$f":"'RES S curve-disconnect'!AX153","v":1256.8013064307586},{"$f":"'RES S curve-disconnect'!AY153","v":1166.5172998986047},{"$f":"'RES S curve-disconnect'!AZ153","v":1083.6847133991118},{"$f":"'RES S curve-disconnect'!BA153","v":1005.2662898321162},{"$f":"'RES S curve-disconnect'!BB153","v":933.23995838295559},{"$f":"'RES S curve-disconnect'!BC153","v":866.57375859104081},{"$f":"'RES S curve-disconnect'!BD153","v":804.24088979808562},{"$f":"'RES S curve-disconnect'!BE153","v":747.21968534909524},{"$f":"'RES S curve-disconnect'!BF153","v":694.48358692234979},{"$f":"'RES S curve-disconnect'!BG153","v":645.01116898773796},{"$f":"'RES S curve-disconnect'!BH153","v":598.78611314279931},{"$f":"'RES S curve-disconnect'!BI153","v":555.79218257708533},{"$f":"'RES S curve-disconnect'!BJ153","v":516.01322166419993},{"$f":"'RES S curve-disconnect'!BK153","v":478.4331555558789},{"$f":"'RES S curve-disconnect'!BL153","v":32.040989778099501},{"$f":"'RES S curve-disconnect'!BM153","v":31.880784829209002},{"$f":"'RES S curve-disconnect'!BN153","v":31.721380905062958},{"$f":"'RES S curve-disconnect'!BO153","v":31.562774000537644},{"$f":"'RES S curve-disconnect'!BP153","v":31.404960130534956},{"$f":"'RES S curve-disconnect'!BQ153","v":31.247935329882282},{"$f":"'RES S curve-disconnect'!BR153","v":31.091695653232868},{"$f":"'RES S curve-disconnect'!BS153","v":30.936237174966706},{"$f":"'RES S curve-disconnect'!BT153","v":30.781555989091871},{"$f":"'RES S curve-disconnect'!BU153","v":30.627648209146415},{"$f":"'RES S curve-disconnect'!BV153","v":30.474509968100683},{"$f":"'RES S curve-disconnect'!BW153","v":30.322137418260183},{"$f":"'RES S curve-disconnect'!BX153","v":30.170526731168881},{"$f":"'RES S curve-disconnect'!BY153","v":30.019674097513036},{"$f":"'RES S curve-disconnect'!BZ153","v":29.869575727025467},{"$f":"'RES S curve-disconnect'!CA153","v":29.720227848390341},{"$f":"'RES S curve-disconnect'!CB153","v":29.57162670914839},{"$f":"'RES S curve-disconnect'!CC153","v":29.423768575602651},{"$f":"'RES S curve-disconnect'!CD153","v":29.276649732724636}]
["Yarra Ranges (S)",null,{"$f":"Customers!C207","v":96},{"$f":"Customers!D207","v":199},{"$f":"Customers!E207","v":260},{"$f":"Customers!F207","v":239},{"$f":"Customers!G207","v":245},{"$f":"Customers!H207","v":247},{"$f":"Customers!I207","v":258},{"$f":"Customers!J207","v":283},{"$f":"'RES S curve-disconnect'!C154","v":240.875},{"$f":"'RES S curve-disconnect'!D154","v":244.485625},{"$f":"'RES S curve-disconnect'!E154","v":248.148196875},{"$f":"'RES S curve-disconnect'!F154","v":251.867455890625},{"$f":"'RES S curve-disconnect'!G154","v":255.63811861117185},{"$f":"'RES S curve-disconnect'!H154","v":259.46992801811604},{"$f":"'RES S curve-disconnect'!I154","v":263.35757837802544},{"$f":"'RES S curve-disconnect'!J154","v":267.30579048613532},{"$f":"'RES S curve-disconnect'!K154","v":271.31426153370461},{"$f":"'RES S curve-disconnect'!L154","v":275.37769022603612},{"$f":"'RES S curve-disconnect'!M154","v":279.50580177490593},{"$f":"'RES S curve-disconnect'!N154","v":278.1082727660314},{"$f":"'RES S curve-disconnect'!O154","v":276.71773140220125},{"$f":"'RES S curve-disconnect'!P154","v":275.33414274519021},{"$f":"'RES S curve-disconnect'!Q154","v":273.95747203146431},{"$f":"'RES S curve-disconnect'!R154","v":272.58768467130699},{"$f":"'RES S curve-disconnect'!S154","v":271.22474624795041},{"$f":"'RES S curve-disconnect'!T154","v":270.86862251671067},{"$f":"'RES S curve-disconnect'!U154","v":271.51427940412714},{"$f":"'RES S curve-disconnect'!V154","v":274.15670800710649},{"$f":"'RES S curve-disconnect'!W154","v":277.78592446707097},{"$f":"'RES S curve-disconnect'!X154","v":304.39699484473562},{"$f":"'RES S curve-disconnect'!Y154","v":388.87500987051197},{"$f":"'RES S curve-disconnect'!Z154","v":528.9306348211594},{"$f":"'RES S curve-disconnect'!AA154","v":798.28598164705363},{"$f":"'RES S curve-disconnect'!AB154","v":1137.2945517388184},{"$f":"'RES S curve-disconnect'!AC154","v":1556.6080789801242},{"$f":"'RES S curve-disconnect'!AD154","v":1955.8250385852236},{"$f":"'RES S curve-disconnect'!AE154","v":2308.0459133922973},{"$f":"'RES S curve-disconnect'!AF154","v":2609.5056838253358},{"$f":"'RES S curve-disconnect'!AG154","v":2636.4581554062092},{"$f":"'RES S curve-disconnect'!AH154","v":2617.2758646291782},{"$f":"'RES S curve-disconnect'!AI154","v":2506.1894853060326},{"$f":"'RES S curve-disconnect'!AJ154","v":2362.6585378795021},{"$f":"'RES S curve-disconnect'!AK154","v":2212.8452451901048},{"$f":"'RES S curve-disconnect'!AL154","v":1922.7810189641541},{"$f":"'RES S curve-disconnect'!AM154","v":1752.1671138693334},{"$f":"'RES S curve-disconnect'!AN154","v":1712.4062782999868},{"$f":"'RES S curve-disconnect'!AO154","v":1642.8442469084869},{"$f":"'RES S curve-disconnect'!AP154","v":1548.6300256739444},{"$f":"'RES S curve-disconnect'!AQ154","v":1449.8868755455746},{"$f":"'RES S curve-disconnect'!AR154","v":1350.6374411678469},{"$f":"'RES S curve-disconnect'!AS154","v":1256.8842539620075},{"$f":"'RES S curve-disconnect'!AT154","v":1167.5998326921974},{"$f":"'RES S curve-disconnect'!AU154","v":1084.7618335287366},{"$f":"'RES S curve-disconnect'!AV154","v":1006.3380243610928},{"$f":"'RES S curve-disconnect'!AW154","v":934.30633423928737},{"$f":"'RES S curve-disconnect'!AX154","v":867.63480256809089},{"$f":"'RES S curve-disconnect'!AY154","v":805.29662855525044},{"$f":"'RES S curve-disconnect'!AZ154","v":747.27014541247422},{"$f":"'RES S curve-disconnect'!BA154","v":694.53379468541186},{"$f":"'RES S curve-disconnect'!BB154","v":644.0611257119848},{"$f":"'RES S curve-disconnect'!BC154","v":597.84082008342489},{"$f":"'RES S curve-disconnect'!BD154","v":555.85161598300772},{"$f":"'RES S curve-disconnect'!BE154","v":515.07235790309267},{"$f":"'RES S curve-disconnect'!BF154","v":479.49699611357721},{"$f":"'RES S curve-disconnect'!BG154","v":445.09951113300934},{"$f":"'RES S curve-disconnect'!BH154","v":412.87401357734427},{"$f":"'RES S curve-disconnect'!BI154","v":383.80964350945754},{"$f":"'RES S curve-disconnect'!BJ154","v":355.8905952919103},{"$f":"'RES S curve-disconnect'!BK154","v":331.11114231545071},{"$f":"'RES S curve-disconnect'!BL154","v":22.455586603873478},{"$f":"'RES S curve-disconnect'!BM154","v":22.343308670854107},{"$f":"'RES S curve-disconnect'!BN154","v":22.231592127499841},{"$f":"'RES S curve-disconnect'!BO154","v":22.120434166862342},{"$f":"'RES S curve-disconnect'!BP154","v":22.00983199602803},{"$f":"'RES S curve-disconnect'!BQ154","v":21.899782836047891},{"$f":"'RES S curve-disconnect'!BR154","v":21.790283921867651},{"$f":"'RES S curve-disconnect'!BS154","v":21.681332502258311},{"$f":"'RES S curve-disconnect'!BT154","v":21.572925839747018},{"$f":"'RES S curve-disconnect'!BU154","v":21.465061210548285},{"$f":"'RES S curve-disconnect'!BV154","v":21.357735904495541},{"$f":"'RES S curve-disconnect'!BW154","v":21.250947224973064},{"$f":"'RES S curve-disconnect'!BX154","v":21.144692488848197},{"$f":"'RES S curve-disconnect'!BY154","v":21.038969026403958},{"$f":"'RES S curve-disconnect'!BZ154","v":20.933774181271936},{"$f":"'RES S curve-disconnect'!CA154","v":20.829105310365577},{"$f":"'RES S curve-disconnect'!CB154","v":20.724959783813748},{"$f":"'RES S curve-disconnect'!CC154","v":20.621334984894681},{"$f":"'RES S curve-disconnect'!CD154","v":19.518228309970208}]
["Total",null,{"$f":"Customers!C208","v":1883},{"$f":"Customers!D208","v":4569},{"$f":"Customers!E208","v":6759},{"$f":"Customers!F208","v":7586},{"$f":"Customers!G208","v":7538},{"$f":"Customers!H208","v":6936},{"$f":"Customers!I208","v":7253},{"$f":"Customers!J208","v":6499},{"$f":"SUM(K51:K70)","v":3454.7},{"$f":"SUM(L51:L70)","v":3506.4014999999995},3558.9244925000003,3612.1948700374996,3666.2388956873128,3721.1727012088763,3776.9318377028312,3833.5071785143177,3890.9596426217458,3949.199844408638,4008.358845186594,3988.3170509606607,3968.375465705858,{"$f":"SUM(X51:X70)","v":3948.5335883773278},{"$f":"SUM(Y51:Y70)","v":3932.7909204354414},{"$f":"SUM(Z51:Z70)","v":3920.126965833264},{"$f":"SUM(AA51:AA70)","v":3936.5263310040973},{"$f":"SUM(AB51:AB70)","v":3968.8436993490777},{"$f":"SUM(AC51:AC70)","v":4084.9994808523325},{"$f":"SUM(AD51:AD70)","v":4251.5744834480711},{"$f":"SUM(AE51:AE70)","v":4474.3166110308302},{"$f":"SUM(AF51:AF70)","v":5636.9450279756757},{"$f":"SUM(AG51:AG70)","v":8606.7603028357971},{"$f":"SUM(AH51:AH70)","v":12102.72650132162},{"$f":"SUM(AI51:AI70)","v":16665.212868815011},{"$f":"SUM(AJ51:AJ70)","v":20588.886804470938},{"$f":"SUM(AK51:AK70)","v":24416.942370448585},{"$f":"SUM(AL51:AL70)","v":27622.857658596342},{"$f":"SUM(AM51:AM70)","v":30395.74337030336},{"$f":"SUM(AN51:AN70)","v":32940.764653451835},{"$f":"SUM(AO51:AO70)","v":32945.060830184579},{"$f":"SUM(AP51:AP70)","v":32643.33552603365},{"$f":"SUM(AQ51:AQ70)","v":31422.118848403486},{"$f":"SUM(AR51:AR70)","v":29835.008254161472},{"$f":"SUM(AS51:AS70)","v":28227.83321289067},{"$f":"SUM(AT51:AT70)","v":24104.694046826207},{"$f":"SUM(AU51:AU70)","v":22019.170576592078},{"$f":"SUM(AV51:AV70)","v":21552.07472370912},{"$f":"SUM(AW51:AW70)","v":20841.314350090572},{"$f":"SUM(AX51:AX70)","v":19876.107778340123},{"$f":"SUM(AY51:AY70)","v":18910.727239448417},{"$f":"SUM(AZ51:AZ70)","v":18040.17360325118},{"$f":"SUM(BA51:BA70)","v":17326.972735234922},{"$f":"SUM(BB51:BB70)","v":16754.337871558746},{"$f":"SUM(BC51:BC70)","v":16245.566182200957},{"$f":"SUM(BD51:BD70)","v":15642.338351289949},{"$f":"SUM(BE51:BE70)","v":14876.1266595335},{"$f":"SUM(BF51:BF70)","v":13984.746026235833},{"$f":"SUM(BG51:BG70)","v":13052.822296104652},{"$f":"SUM(BH51:BH70)","v":12143.558184624129},{"$f":"SUM(BI51:BI70)","v":11278.840393701008},{"$f":"SUM(BJ51:BJ70)","v":10469.446191732504},{"$f":"SUM(BK51:BK70)","v":9720.0989607738429},{"$f":"SUM(BL51:BL70)","v":9023.498465969973},{"$f":"SUM(BM51:BM70)","v":8378.3809736401217},{"$f":"SUM(BN51:BN70)","v":7787.4890687719217},{"$f":"SUM(BO51:BO70)","v":7232.5516234280612},{"$f":"SUM(BP51:BP70)","v":6710.3888653109216},{"$f":"SUM(BQ51:BQ70)","v":6232.8369209843686},{"$f":"SUM(BR51:BR70)","v":5784.6727363794453},{"$f":"SUM(BS51:BS70)","v":5375.7493726975481},{"$f":"SUM(BT51:BT70)","v":379.87062583406049},{"$f":"SUM(BU51:BU70)","v":378.97127270489023},{"$f":"SUM(BV51:BV70)","v":378.07641634136576},{"$f":"SUM(BW51:BW70)","v":376.18603425965892},{"$f":"SUM(BX51:BX70)","v":374.30510408836057},372.43357856791886,370.57141067507911,368.71855362170373,366.87496085359527,367.04058604932726,365.20538311908064,363.37935620348526,361.56245942246784,359.7546471253554,357.95587388972865,357.16609452028001,356.38026404767874,354.5983627274403,342.82537091380311]
[]
["New Residential Customers",2012,{"$f":"B73+1","v":2013},{"$f":"C73+1","v":2014},2015,2016,2017,2018,2019,2020,"2 year average"]
["LGA"]
["Bass Coast (S)",null,{"$f":"C27/Households!E77","v":0.98153846153845536},{"$f":"D27/Households!F77","v":0.79290102389078598},{"$f":"E27/Households!G77","v":0.64097116843702684},{"$f":"F27/Households!H77","v":0.48756756756756719},{"$f":"G27/Households!I77","v":0.465770065075923},{"$f":"H27/Households!J77","v":0.49055319148936094},{"$f":"I27/Households!K77","v":0.60505561172901989},{"$f":"J27/Households!L77","v":0.43610619469026518},{"$f":"IF(AVERAGE(H75:I75)>=100%,MIN(C75:I75),AVERAGE(H75:I75))","v":0.54780440160919042}]
["Bayside (C)",null,{"$f":"C28/Households!E78","v":0.70794691647151065},{"$f":"D28/Households!F78","v":0.85488673139158011},{"$f":"E28/Households!G78","v":0.93889870836166522},{"$f":"F28/Households!H78","v":0.87299270072992319},{"$f":"G28/Households!I78","v":1.1720875912408735},{"$f":"H28/Households!J78","v":1.0009022556391027},{"$f":"I28/Households!K78","v":1.3198919891989112},{"$f":"J28/Households!L78","v":2.1710948905109442},{"$f":"IF(AVERAGE(H76:I76)>=100%,MIN(C76:I76),AVERAGE(H76:I76))","v":0.70794691647151065}]
["Boroondara (C)",null,{"$f":"C29/Households!E79","v":0.83012987012987016},{"$f":"D29/Households!F79","v":0.99744367816091151},{"$f":"E29/Households!G79","v":0.95900621118012419},{"$f":"F29/Households!H79","v":0.94065794688863003},{"$f":"G29/Households!I79","v":1.0205081216160008},{"$f":"H29/Households!J79","v":1.2756680400235281},{"$f":"I29/Households!K79","v":1.15822075782538},{"$f":"J29/Households!L79","v":-11.296551724137743},0.83012987012987016]
["Cardinia (S)",null,{"$f":"C30/Households!E80","v":1.8805468937395046E-2},{"$f":"D30/Households!F80","v":4.313883299798793E-2},{"$f":"E30/Households!G80","v":1.907284768211925E-2},{"$f":"F30/Households!H80","v":2.1656872037914679E-2},{"$f":"G30/Households!I80","v":2.736231884057971E-2},{"$f":"H30/Households!J80","v":2.4709376325837945E-2},{"$f":"I30/Households!K80","v":1.8585539312524671E-2},{"$f":"J30/Households!L80","v":2.3437967115097175E-2},2.1647457819181308E-2]
["Casey (C)",null,{"$f":"C31/Households!E81","v":2.1459637936923542E-2},{"$f":"D31/Households!F81","v":2.2263465805931019E-2},{"$f":"E31/Households!G81","v":3.1451988611854033E-2},{"$f":"F31/Households!H81","v":2.2628761028580083E-2},{"$f":"G31/Households!I81","v":3.1217279359176047E-2},{"$f":"H31/Households!J81","v":2.6120538326506786E-2},{"$f":"I31/Households!K81","v":2.7149937125527029E-2},{"$f":"J31/Households!L81","v":3.7766497461928811E-2},2.6635237726016905E-2]
["Frankston (C)",null,{"$f":"C32/Households!E82","v":0},{"$f":"D32/Households!F82","v":0},{"$f":"E32/Households!G82","v":0},{"$f":"F32/Households!H82","v":0},{"$f":"G32/Households!I82","v":0},{"$f":"H32/Households!J82","v":0},{"$f":"I32/Households!K82","v":0},{"$f":"J32/Households!L82","v":0},0]
["Glen Eira (C)",null,{"$f":"C33/Households!E83","v":0.61847014925373234},{"$f":"D33/Households!F83","v":0.71733771569433136},{"$f":"E33/Households!G83","v":0.89596412556053817},{"$f":"F33/Households!H83","v":0.66942459571267487},{"$f":"G33/Households!I83","v":0.69937369519832626},{"$f":"H33/Households!J83","v":0.75517661388550772},{"$f":"I33/Households!K83","v":0.77552581261950282},{"$f":"J33/Households!L83","v":1.146936347412252},0.76535121325250532]
["Greater Dandenong (C)",null,{"$f":"C34/Households!E84","v":0.57280567040756103},{"$f":"D34/Households!F84","v":0.60410679878887763},{"$f":"E34/Households!G84","v":0.65002547121752441},{"$f":"F34/Households!H84","v":0.70809901465993652},{"$f":"G34/Households!I84","v":0.90449029126213876},{"$f":"H34/Households!J84","v":0.94056445461479499},{"$f":"I34/Households!K84","v":1.2546157472890171},{"$f":"J34/Households!L84","v":23.636435643562994},0.57280567040756103]
["Kingston (C)",null,{"$f":"C35/Households!E85","v":0.71120462914255522},{"$f":"D35/Households!F85","v":0.8751334044823923},{"$f":"E35/Households!G85","v":0.88102261553589145},{"$f":"F35/Households!H85","v":0.70448646644419533},{"$f":"G35/Households!I85","v":0.98388625592417056},{"$f":"H35/Households!J85","v":0.90379008746355549},{"$f":"I35/Households!K85","v":1.0331632653061193},{"$f":"J35/Households!L85","v":1.3015446608462247},0.96847667638483736]
["Knox (C)",null,{"$f":"C36/Households!E86","v":1.4300531349628067},{"$f":"D36/Households!F86","v":1.3889972401104003},{"$f":"E36/Households!G86","v":1.2762085308056828},{"$f":"F36/Households!H86","v":1.1094010889292254},{"$f":"G36/Households!I86","v":1.3042062415196718},{"$f":"H36/Households!J86","v":1.5595667870036085},{"$f":"I36/Households!K86","v":1.7814765100670966},{"$f":"J36/Households!L86","v":3.2254545454545456},1.1094010889292254]
["Manningham (C)",null,{"$f":"C37/Households!E87","v":0.97954198473282439},{"$f":"D37/Households!F87","v":1.1158518518518399},{"$f":"E37/Households!G87","v":0.82255192878339345},{"$f":"F37/Households!H87","v":0.78556862745098044},{"$f":"G37/Households!I87","v":0.94870588235293307},{"$f":"H37/Households!J87","v":1.4962845849802509},{"$f":"I37/Households!K87","v":0.97139512195121258},{"$f":"J37/Households!L87","v":1.6516666666666666},0.78556862745098044]
["Maroondah (C)",null,{"$f":"C38/Households!E88","v":0.83230883444692083},{"$f":"D38/Households!F88","v":0.91697560975610326},{"$f":"E38/Households!G88","v":0.91535580524343818},{"$f":"F38/Households!H88","v":0.87554305008442057},{"$f":"G38/Households!I88","v":0.90666666666666662},{"$f":"H38/Households!J88","v":0.86256756756756436},{"$f":"I38/Households!K88","v":0.96962406015036662},{"$f":"J38/Households!L88","v":1.4650000000000001},0.91609581385896544]
["Melbourne (C)",null,{"$f":"C39/Households!E89","v":2.7306206772657864E-3},{"$f":"D39/Households!F89","v":3.6269430051813472E-3},{"$f":"E39/Households!G89","v":1.9781948971563448E-3},{"$f":"F39/Households!H89","v":2.7753686036426713E-3},{"$f":"G39/Households!I89","v":3.9248754311996936E-3},{"$f":"H39/Households!J89","v":5.4402290622763061E-3},{"$f":"I39/Households!K89","v":3.3191195113518499E-3},{"$f":"J39/Households!L89","v":4.703905921881562E-3},4.3796742868140778E-3]
["Monash (C)",null,{"$f":"C40/Households!E90","v":0.52623853211009175},{"$f":"D40/Households!F90","v":0.73790673575129762},{"$f":"E40/Households!G90","v":0.79357142857142859},{"$f":"F40/Households!H90","v":0.76673427991886534},{"$f":"G40/Households!I90","v":0.63638817779846102},{"$f":"H40/Households!J90","v":0.77865045592705651},{"$f":"I40/Households!K90","v":1.1089716840536525},{"$f":"J40/Households!L90","v":1.4802352941176344},0.94381106999035458]
["Nillumbik (S)",null,{"$f":"C41/Households!E91","v":0},{"$f":"D41/Households!F91","v":0},{"$f":"E41/Households!G91","v":0},{"$f":"F41/Households!H91","v":0},{"$f":"G41/Households!I91","v":0},{"$f":"H41/Households!J91","v":0},{"$f":"I41/Households!K91","v":0},{"$f":"J41/Households!L91","v":0},0]
["Port Phillip (C)",null,{"$f":"C42/Households!E92","v":0.29482987185152454},{"$f":"D42/Households!F92","v":0.31651416122004356},{"$f":"E42/Households!G92","v":0.38217616580310881},{"$f":"F42/Households!H92","v":0.34407836153161175},{"$f":"G42/Households!I92","v":0.45027106949236079},{"$f":"H42/Households!J92","v":0.37960904561134534},{"$f":"I42/Households!K92","v":0.32747346072186839},{"$f":"J42/Households!L92","v":0.71401869158878506},0.35354125316660689]
["South Gippsland (S)",null,{"$f":"C43/Households!E93","v":1.0457636887608026},{"$f":"D43/Households!F93","v":1.1458064516129167},{"$f":"E43/Households!G93","v":1.1150769230769169},{"$f":"F43/Households!H93","v":0.70381231671553957},{"$f":"G43/Households!I93","v":1.0806030150753847},{"$f":"H43/Households!J93","v":0.70299212598424798},{"$f":"I43/Households!K93","v":0.65910447761194602},{"$f":"J43/Households!L93","v":0.57940828402366618},0.68104830179809706]
["Stonnington (C)",null,{"$f":"C44/Households!E94","v":0.41351949927780657},{"$f":"D44/Households!F94","v":0.41459077690070528},{"$f":"E44/Households!G94","v":0.4775257731958763},{"$f":"F44/Households!H94","v":0.37980504201680654},{"$f":"G44/Households!I94","v":0.39344167569519783},{"$f":"H44/Households!J94","v":0.42719808688720656},{"$f":"I44/Households!K94","v":0.60275585284280819},{"$f":"J44/Households!L94","v":1.1551312649164538},0.51497696986500741]
["Whitehorse (C)",null,{"$f":"C45/Households!E95","v":0.70823140495868064},{"$f":"D45/Households!F95","v":0.99958910227779674},{"$f":"E45/Households!G95","v":0.94345061466723656},{"$f":"F45/Households!H95","v":0.84829169480080735},{"$f":"G45/Households!I95","v":0.66040861402540429},{"$f":"H45/Households!J95","v":0.81126910299003008},{"$f":"I45/Households!K95","v":0.8349880287310435},{"$f":"J45/Households!L95","v":1.2452351738241383},0.82312856586053673]
["Yarra Ranges (S)",null,{"$f":"C46/Households!E96","v":1.3838150289017312},{"$f":"D46/Households!F96","v":1.4487804878048949},{"$f":"E46/Households!G96","v":1.1779058327477172},{"$f":"F46/Households!H96","v":0.85576021798364443},{"$f":"G46/Households!I96","v":1.2016068167985399},{"$f":"H46/Households!J96","v":1.2475576036866443},{"$f":"I46/Households!K96","v":1.3261703760552608},{"$f":"J46/Households!L96","v":3.2377546777545847},0.85576021798364443]
["Total",null,{"$f":"C47/Households!E97","v":0.33218620004395755},{"$f":"D47/Households!F97","v":0.41312574559777482},{"$f":"E47/Households!G97","v":0.41862187893272912},{"$f":"F47/Households!H97","v":0.38648356036190223},{"$f":"G47/Households!I97","v":0.38940070894125955},{"$f":"H47/Households!J97","v":0.41042826274060468},{"$f":"I47/Households!K97","v":0.46784461183662868},{"$f":"J47/Households!L97","v":0.71994398444695462},0.43913643728861668]
[]
[]
["New Residential Disconnections",2012,{"$f":"B98+1","v":2013},{"$f":"C98+1","v":2014},2015,2016,2017,2018,2019,2020]
["LGA"]
["Bass Coast (S)",{"$f":"B51/B3","v":0},2.2471910112359553E-3,5.4107230693556324E-3,3.0891438658428951E-3,5.6044835868694952E-3,5.8694057226705799E-3,5.7219791316055202E-3,{"$f":"I51/H3","v":4.3756311006395154E-3},{"$f":"J51/I3","v":9.0964220739842335E-3}]
["Bayside (C)",0,3.7203620412016216E-3,1.0253300625671839E-2,1.310774124550964E-2,1.5440533449934412E-2,1.4664349337388659E-2,1.465419347861353E-2,{"$f":"I52/H4","v":1.2761585464770454E-2},{"$f":"J52/I4","v":1.4858002633063758E-2}]
["Boroondara (C)",0,3.3115776613188439E-3,8.4503898340215888E-3,1.4447966611975723E-2,1.8224105521394206E-2,1.6627984611960703E-2,1.2973435346671102E-2,1.3892189009805319E-2,1.1728258464262006E-2]
["Cardinia (S)",0,3.01129234629862E-3,4.2131350681536553E-3,8.1723625557206542E-3,5.6566650270536154E-3,6.3430104903635029E-3,5.084745762711864E-3,5.8111380145278446E-3,4.8216007714561235E-3]
["Casey (C)",0,1.8363273453093811E-3,3.4205711558348579E-3,4.7400853215357874E-3,5.5079077818868515E-3,5.5408147338848138E-3,5.1974245597703828E-3,4.0338220463889537E-3,5.8520058520058517E-3]
["Frankston (C)",0,0,0,0,0,0,0,0,0]
["Glen Eira (C)",0,3.6273998957874064E-3,8.0011118170266841E-3,1.3155818540433925E-2,1.4014191088311024E-2,1.2865314409542588E-2,1.4274878935801941E-2,1.3244131546704526E-2,1.0936775390323079E-2]
["Greater Dandenong (C)",0,2.1758980436345269E-3,5.5245439373885017E-3,7.6476044446968407E-3,7.4679678188319431E-3,6.683023289878424E-3,7.1631423764991044E-3,6.692835048749163E-3,6.6000713521227258E-3]
["Kingston (C)",0,2.899241431351523E-3,6.4107606387162749E-3,8.5560038199925942E-3,1.0401964385839407E-2,1.0573294768900721E-2,9.2990663055623948E-3,1.0814189125205962E-2,9.3741229301150721E-3]
["Knox (C)",0,1.5438832018795101E-3,4.0636189524523277E-3,5.042322444121148E-3,5.4916232254680177E-3,5.9487046126840684E-3,7.2329526233548659E-3,8.9566183932857577E-3,6.6584699889823875E-3]
["Manningham (C)",{"$f":"B61/B13","v":0},2.3166023166023165E-3,5.629686414488657E-3,9.1265290519877678E-3,1.0345565676504864E-2,1.1255349838027003E-2,1.0992101624206061E-2,1.1413973328333372E-2,9.1248926141772498E-3]
["Maroondah (C)",0,1.6819234586963713E-3,5.4087845183735592E-3,7.1716357775987111E-3,5.9331461566986283E-3,7.1570889261744963E-3,7.7468829881579635E-3,7.06870467943033E-3,6.6384876695277859E-3]
["Melbourne (C)",0,7.6628352490421452E-3,1.0050251256281407E-2,1.2547051442910916E-2,1.3715710723192019E-2,8.4643288996372433E-3,1.7647058823529412E-2,1.1764705882352941E-2,5.8275058275058279E-3]
["Monash (C)",0,2.0689323346858913E-3,6.8511659698930203E-3,1.1310501706053329E-2,1.2871022932395736E-2,1.4283484233531065E-2,1.2115101217715038E-2,1.3883502675870628E-2,1.1270554905462832E-2]
["Nillumbik (S)",0,0,0,0,0,0,0,0,0]
["Port Phillip (C)",0,5.1974777722080048E-3,9.3150540746783153E-3,1.2210526315789474E-2,1.5275432672013508E-2,1.2260254150332816E-2,9.4073377234242701E-3,9.9299675969478415E-3,1.1154547823820693E-2]
["South Gippsland (S)",0,4.2432814710042432E-3,1.034928848641656E-2,9.5181439619274246E-3,4.4493882091212458E-3,8.4477296726504746E-3,5.566801619433198E-3,5.566801619433198E-3,9.6153846153846159E-3]
["Stonnington (C)",0,5.7606975114824713E-3,1.1170872983036822E-2,1.5182081522863647E-2,1.6473143862008328E-2,1.5850032320620554E-2,1.242204010102572E-2,1.4019895881655585E-2,1.2277534175909209E-2]
["Whitehorse (C)",0,2.4963335101569569E-3,7.1242021975304829E-3,1.1642213404693796E-2,1.2691131498470948E-2,1.3492933723196881E-2,1.1164901664145235E-2,1.1815431164901665E-2,9.5137580098002255E-3]
["Yarra Ranges (S)",0,2.1572548931484688E-3,4.4205522358220228E-3,5.7101442909538135E-3,5.1932813280893509E-3,5.2473763118440781E-3,5.23360525479394E-3,5.4666807924568283E-3,5.9283155623520538E-3]
["Total",{"$f":"B71/B23","v":0},2.8742255389363688E-3,6.9098393753468908E-3,1.0154350941820182E-2,1.1321576961650509E-2,1.1164033388427794E-2,1.0194647809899803E-2,1.0660579666263447E-2,9.4802423231042793E-3]
[]
["Residential Customers decision points",2012,{"$f":"B122+1","v":2013},{"$f":"C122+1","v":2014},2015,2016,2017,2018,2019,2020,{"$f":"J122+1","v":2021},{"$f":"K122+1","v":2022},2023,2024,2025,2026,2027,2028,2029,2030,2031,2032,2033,2034,2035,2036,2037,2038,2039,2040,{"$f":"AD122+1","v":2041},{"$f":"AE122+1","v":2042},{"$f":"AF122+1","v":2043},{"$f":"AG122+1","v":2044},{"$f":"AH122+1","v":2045},{"$f":"AI122+1","v":2046},{"$f":"AJ122+1","v":2047},{"$f":"AK122+1","v":2048},{"$f":"AL122+1","v":2049},{"$f":"AM122+1","v":2050},{"$f":"AN122+1","v":2051},{"$f":"AO122+1","v":2052},{"$f":"AP122+1","v":2053},{"$f":"AQ122+1","v":2054},{"$f":"AR122+1","v":2055},{"$f":"AS122+1","v":2056},{"$f":"AT122+1","v":2057},{"$f":"AU122+1","v":2058},{"$f":"AV122+1","v":2059},{"$f":"AW122+1","v":2060},{"$f":"AX122+1","v":2061},{"$f":"AY122+1","v":2062},{"$f":"AZ122+1","v":2063},{"$f":"BA122+1","v":2064},{"$f":"BB122+1","v":2065},{"$f":"BC122+1","v":2066},{"$f":"BD122+1","v":2067},{"$f":"BE122+1","v":2068},{"$f":"BF122+1","v":2069},{"$f":"BG122+1","v":2070},{"$f":"BH122+1","v":2071},{"$f":"BI122+1","v":2072},{"$f":"BJ122+1","v":2073},{"$f":"BK122+1","v":2074},{"$f":"BL122+1","v":2075},{"$f":"BM122+1","v":2076},{"$f":"BN122+1","v":2077},{"$f":"BO122+1","v":2078},{"$f":"BP122+1","v":2079},{"$f":"BQ122+1","v":2080},{"$f":"BR122+1","v":2081},{"$f":"BS122+1","v":2082},{"$f":"BT122+1","v":2083},{"$f":"BU122+1","v":2084},{"$f":"BV122+1","v":2085},{"$f":"BW122+1","v":2086},{"$f":"BX122+1","v":2087},{"$f":"BY122+1","v":2088},{"$f":"BZ122+1","v":2089},{"$f":"CA122+1","v":2090},{"$f":"CB122+1","v":2091},{"$f":"CC122+1","v":2092},{"$f":"CD122+1","v":2093},{"$f":"CE122+1","v":2094},{"$f":"CF122+1","v":2095},{"$f":"CG122+1","v":2096},{"$f":"CH122+1","v":2097},{"$f":"CI122+1","v":2098},{"$f":"CJ122+1","v":2099},{"$f":"CK122+1","v":2100}]
["LGA"]
["Bass Coast (S)",null,null,null,null,null,null,null,null,null,{"$f":"INT((J3/Control!$H$9))","v":236},{"$f":"INT((K3/Control!$H$9))","v":240},{"$f":"INT((L3/Control!$H$9))","v":243},{"$f":"INT((M3/Control!$H$9))","v":247},{"$f":"INT((N3/Control!$H$9))","v":250},{"$f":"INT((O3/Control!$H$9))","v":254},{"$f":"INT((P3/Control!$H$9))","v":258},{"$f":"INT((Q3/Control!$H$9))","v":262},{"$f":"INT((R3/Control!$H$9))","v":266},{"$f":"INT((S3/Control!$H$9))","v":270},{"$f":"INT((T3/Control!$H$9))","v":274},{"$f":"INT((U3/Control!$H$9))","v":272},{"$f":"INT((V3/Control!$H$9))","v":271},{"$f":"INT((W3/Control!$H$9))","v":269},{"$f":"INT((X3/Control!$H$9))","v":268},{"$f":"INT((Y3/Control!$H$9))","v":267},{"$f":"INT((Z3/Control!$H$9))","v":265},{"$f":"INT((AA3/Control!$H$9))","v":264},{"$f":"INT((AB3/Control!$H$9))","v":263},{"$f":"INT((AC3/Control!$H$9))","v":261},{"$f":"INT((AD3/Control!$H$9))","v":260},{"$f":"INT((AE3/Control!$H$9))","v":259},{"$f":"INT((AF3/Control!$H$9))","v":258},{"$f":"INT((AG3/Control!$H$9))","v":256},{"$f":"INT((AH3/Control!$H$9))","v":255},{"$f":"INT((AI3/Control!$H$9))","v":253},{"$f":"INT((AJ3/Control!$H$9))","v":252},{"$f":"INT((AK3/Control!$H$9))","v":251},{"$f":"INT((AL3/Control!$H$9))","v":249},{"$f":"INT((AM3/Control!$H$9))","v":247},{"$f":"INT((AN3/Control!$H$9))","v":246},{"$f":"INT((AO3/Control!$H$9))","v":244},{"$f":"INT((AP3/Control!$H$9))","v":241},{"$f":"INT((AQ3/Control!$H$9))","v":239},{"$f":"INT((AR3/Control!$H$9))","v":236},{"$f":"INT((AS3/Control!$H$9))","v":233},{"$f":"INT((AT3/Control!$H$9))","v":231},{"$f":"INT((AU3/Control!$H$9))","v":229},{"$f":"INT((AV3/Control!$H$9))","v":227},{"$f":"INT((AW3/Control!$H$9))","v":224},{"$f":"INT((AX3/Control!$H$9))","v":222},{"$f":"INT((AY3/Control!$H$9))","v":218},{"$f":"INT((AZ3/Control!$H$9))","v":214},{"$f":"INT((BA3/Control!$H$9))","v":209},{"$f":"INT((BB3/Control!$H$9))","v":203},{"$f":"INT((BC3/Control!$H$9))","v":195},{"$f":"INT((BD3/Control!$H$9))","v":186},{"$f":"INT((BE3/Control!$H$9))","v":175},{"$f":"INT((BF3/Control!$H$9))","v":164},{"$f":"INT((BG3/Control!$H$9))","v":153},{"$f":"INT((BH3/Control!$H$9))","v":142},{"$f":"INT((BI3/Control!$H$9))","v":132},{"$f":"INT((BJ3/Control!$H$9))","v":123},{"$f":"INT((BK3/Control!$H$9))","v":114},{"$f":"INT((BL3/Control!$H$9))","v":106},{"$f":"INT((BM3/Control!$H$9))","v":98},{"$f":"INT((BN3/Control!$H$9))","v":91},{"$f":"INT((BO3/Control!$H$9))","v":85},{"$f":"INT((BP3/Control!$H$9))","v":79},{"$f":"INT((BQ3/Control!$H$9))","v":73},{"$f":"INT((BR3/Control!$H$9))","v":68},{"$f":"INT((BS3/Control!$H$9))","v":63},{"$f":"INT((BT3/Control!$H$9))","v":63},{"$f":"INT((BU3/Control!$H$9))","v":63},{"$f":"INT((BV3/Control!$H$9))","v":62},{"$f":"INT((BW3/Control!$H$9))","v":62},{"$f":"INT((BX3/Control!$H$9))","v":62},{"$f":"INT((BY3/Control!$H$9))","v":61},{"$f":"INT((BZ3/Control!$H$9))","v":61},{"$f":"INT((CA3/Control!$H$9))","v":61},{"$f":"INT((CB3/Control!$H$9))","v":61},{"$f":"INT((CC3/Control!$H$9))","v":60},{"$f":"INT((CD3/Control!$H$9))","v":60},{"$f":"INT((CE3/Control!$H$9))","v":60},{"$f":"INT((CF3/Control!$H$9))","v":59},{"$f":"INT((CG3/Control!$H$9))","v":59},{"$f":"INT((CH3/Control!$H$9))","v":59},{"$f":"INT((CI3/Control!$H$9))","v":58},{"$f":"INT((CJ3/Control!$H$9))","v":58},{"$f":"INT((CK3/Control!$H$9))","v":58}]
["Bayside (C)",null,null,null,null,null,null,null,null,null,{"$f":"INT((J4/Control!$H$9))","v":2492},{"$f":"INT((K4/Control!$H$9))","v":2529},{"$f":"INT((L4/Control!$H$9))","v":2567},{"$f":"INT((M4/Control!$H$9))","v":2605},{"$f":"INT((N4/Control!$H$9))","v":2644},{"$f":"INT((O4/Control!$H$9))","v":2684},{"$f":"INT((P4/Control!$H$9))","v":2724},{"$f":"INT((Q4/Control!$H$9))","v":2765},{"$f":"INT((R4/Control!$H$9))","v":2806},{"$f":"INT((S4/Control!$H$9))","v":2848},{"$f":"INT((T4/Control!$H$9))","v":2891},{"$f":"INT((U4/Control!$H$9))","v":2877},{"$f":"INT((V4/Control!$H$9))","v":2862},{"$f":"INT((W4/Control!$H$9))","v":2848},{"$f":"INT((X4/Control!$H$9))","v":2834},{"$f":"INT((Y4/Control!$H$9))","v":2819},{"$f":"INT((Z4/Control!$H$9))","v":2805},{"$f":"INT((AA4/Control!$H$9))","v":2791},{"$f":"INT((AB4/Control!$H$9))","v":2777},{"$f":"INT((AC4/Control!$H$9))","v":2762},{"$f":"INT((AD4/Control!$H$9))","v":2746},{"$f":"INT((AE4/Control!$H$9))","v":2728},{"$f":"INT((AF4/Control!$H$9))","v":2701},{"$f":"INT((AG4/Control!$H$9))","v":2646},{"$f":"INT((AH4/Control!$H$9))","v":2559},{"$f":"INT((AI4/Control!$H$9))","v":2439},{"$f":"INT((AJ4/Control!$H$9))","v":2301},{"$f":"INT((AK4/Control!$H$9))","v":2156},{"$f":"INT((AL4/Control!$H$9))","v":2012},{"$f":"INT((AM4/Control!$H$9))","v":1874},{"$f":"INT((AN4/Control!$H$9))","v":1742},{"$f":"INT((AO4/Control!$H$9))","v":1618},{"$f":"INT((AP4/Control!$H$9))","v":1503},{"$f":"INT((AQ4/Control!$H$9))","v":1395},{"$f":"INT((AR4/Control!$H$9))","v":1295},{"$f":"INT((AS4/Control!$H$9))","v":1203},{"$f":"INT((AT4/Control!$H$9))","v":1117},{"$f":"INT((AU4/Control!$H$9))","v":1038},{"$f":"INT((AV4/Control!$H$9))","v":963},{"$f":"INT((AW4/Control!$H$9))","v":895},{"$f":"INT((AX4/Control!$H$9))","v":831},{"$f":"INT((AY4/Control!$H$9))","v":771},{"$f":"INT((AZ4/Control!$H$9))","v":716},{"$f":"INT((BA4/Control!$H$9))","v":665},{"$f":"INT((BB4/Control!$H$9))","v":617},{"$f":"INT((BC4/Control!$H$9))","v":573},{"$f":"INT((BD4/Control!$H$9))","v":532},{"$f":"INT((BE4/Control!$H$9))","v":494},{"$f":"INT((BF4/Control!$H$9))","v":458},{"$f":"INT((BG4/Control!$H$9))","v":426},{"$f":"INT((BH4/Control!$H$9))","v":395},{"$f":"INT((BI4/Control!$H$9))","v":367},{"$f":"INT((BJ4/Control!$H$9))","v":341},{"$f":"INT((BK4/Control!$H$9))","v":316},{"$f":"INT((BL4/Control!$H$9))","v":294},{"$f":"INT((BM4/Control!$H$9))","v":273},{"$f":"INT((BN4/Control!$H$9))","v":253},{"$f":"INT((BO4/Control!$H$9))","v":235},{"$f":"INT((BP4/Control!$H$9))","v":218},{"$f":"INT((BQ4/Control!$H$9))","v":202},{"$f":"INT((BR4/Control!$H$9))","v":188},{"$f":"INT((BS4/Control!$H$9))","v":174},{"$f":"INT((BT4/Control!$H$9))","v":173},{"$f":"INT((BU4/Control!$H$9))","v":172},{"$f":"INT((BV4/Control!$H$9))","v":171},{"$f":"INT((BW4/Control!$H$9))","v":170},{"$f":"INT((BX4/Control!$H$9))","v":169},{"$f":"INT((BY4/Control!$H$9))","v":168},{"$f":"INT((BZ4/Control!$H$9))","v":167},{"$f":"INT((CA4/Control!$H$9))","v":166},{"$f":"INT((CB4/Control!$H$9))","v":165},{"$f":"INT((CC4/Control!$H$9))","v":164},{"$f":"INT((CD4/Control!$H$9))","v":163},{"$f":"INT((CE4/Control!$H$9))","v":162},{"$f":"INT((CF4/Control!$H$9))","v":161},{"$f":"INT((CG4/Control!$H$9))","v":160},{"$f":"INT((CH4/Control!$H$9))","v":159},{"$f":"INT((CI4/Control!$H$9))","v":158},{"$f":"INT((CJ4/Control!$H$9))","v":157},{"$f":"INT((CK4/Control!$H$9))","v":156}]
["Boroondara (C)",null,null,null,null,null,null,null,null,null,{"$f":"INT((J5/Control!$H$9))","v":4231},{"$f":"INT((K5/Control!$H$9))","v":4294},{"$f":"INT((L5/Control!$H$9))","v":4358},{"$f":"INT((M5/Control!$H$9))","v":4424},{"$f":"INT((N5/Control!$H$9))","v":4490},{"$f":"INT((O5/Control!$H$9))","v":4557},{"$f":"INT((P5/Control!$H$9))","v":4626},{"$f":"INT((Q5/Control!$H$9))","v":4695},{"$f":"INT((R5/Control!$H$9))","v":4765},{"$f":"INT((S5/Control!$H$9))","v":4837},{"$f":"INT((T5/Control!$H$9))","v":4909},{"$f":"INT((U5/Control!$H$9))","v":4885},{"$f":"INT((V5/Control!$H$9))","v":4860},{"$f":"INT((W5/Control!$H$9))","v":4836},{"$f":"INT((X5/Control!$H$9))","v":4812},{"$f":"INT((Y5/Control!$H$9))","v":4788},{"$f":"INT((Z5/Control!$H$9))","v":4764},{"$f":"INT((AA5/Control!$H$9))","v":4739},{"$f":"INT((AB5/Control!$H$9))","v":4715},{"$f":"INT((AC5/Control!$H$9))","v":4689},{"$f":"INT((AD5/Control!$H$9))","v":4660},{"$f":"INT((AE5/Control!$H$9))","v":4629},{"$f":"INT((AF5/Control!$H$9))","v":4579},{"$f":"INT((AG5/Control!$H$9))","v":4482},{"$f":"INT((AH5/Control!$H$9))","v":4332},{"$f":"INT((AI5/Control!$H$9))","v":4128},{"$f":"INT((AJ5/Control!$H$9))","v":3896},{"$f":"INT((AK5/Control!$H$9))","v":3652},{"$f":"INT((AL5/Control!$H$9))","v":3410},{"$f":"INT((AM5/Control!$H$9))","v":3176},{"$f":"INT((AN5/Control!$H$9))","v":2953},{"$f":"INT((AO5/Control!$H$9))","v":2744},{"$f":"INT((AP5/Control!$H$9))","v":2548},{"$f":"INT((AQ5/Control!$H$9))","v":2366},{"$f":"INT((AR5/Control!$H$9))","v":2197},{"$f":"INT((AS5/Control!$H$9))","v":2039},{"$f":"INT((AT5/Control!$H$9))","v":1894},{"$f":"INT((AU5/Control!$H$9))","v":1760},{"$f":"INT((AV5/Control!$H$9))","v":1635},{"$f":"INT((AW5/Control!$H$9))","v":1518},{"$f":"INT((AX5/Control!$H$9))","v":1409},{"$f":"INT((AY5/Control!$H$9))","v":1308},{"$f":"INT((AZ5/Control!$H$9))","v":1214},{"$f":"INT((BA5/Control!$H$9))","v":1128},{"$f":"INT((BB5/Control!$H$9))","v":1047},{"$f":"INT((BC5/Control!$H$9))","v":972},{"$f":"INT((BD5/Control!$H$9))","v":902},{"$f":"INT((BE5/Control!$H$9))","v":838},{"$f":"INT((BF5/Control!$H$9))","v":778},{"$f":"INT((BG5/Control!$H$9))","v":722},{"$f":"INT((BH5/Control!$H$9))","v":670},{"$f":"INT((BI5/Control!$H$9))","v":622},{"$f":"INT((BJ5/Control!$H$9))","v":578},{"$f":"INT((BK5/Control!$H$9))","v":536},{"$f":"INT((BL5/Control!$H$9))","v":498},{"$f":"INT((BM5/Control!$H$9))","v":462},{"$f":"INT((BN5/Control!$H$9))","v":429},{"$f":"INT((BO5/Control!$H$9))","v":398},{"$f":"INT((BP5/Control!$H$9))","v":370},{"$f":"INT((BQ5/Control!$H$9))","v":343},{"$f":"INT((BR5/Control!$H$9))","v":319},{"$f":"INT((BS5/Control!$H$9))","v":296},{"$f":"INT((BT5/Control!$H$9))","v":294},{"$f":"INT((BU5/Control!$H$9))","v":292},{"$f":"INT((BV5/Control!$H$9))","v":290},{"$f":"INT((BW5/Control!$H$9))","v":288},{"$f":"INT((BX5/Control!$H$9))","v":287},{"$f":"INT((BY5/Control!$H$9))","v":285},{"$f":"INT((BZ5/Control!$H$9))","v":283},{"$f":"INT((CA5/Control!$H$9))","v":281},{"$f":"INT((CB5/Control!$H$9))","v":279},{"$f":"INT((CC5/Control!$H$9))","v":277},{"$f":"INT((CD5/Control!$H$9))","v":276},{"$f":"INT((CE5/Control!$H$9))","v":274},{"$f":"INT((CF5/Control!$H$9))","v":272},{"$f":"INT((CG5/Control!$H$9))","v":270},{"$f":"INT((CH5/Control!$H$9))","v":268},{"$f":"INT((CI5/Control!$H$9))","v":266},{"$f":"INT((CJ5/Control!$H$9))","v":265},{"$f":"INT((CK5/Control!$H$9))","v":263}]
["Cardinia (S)",null,null,null,null,null,null,null,null,null,{"$f":"INT((J6/Control!$H$9))","v":278},{"$f":"INT((K6/Control!$H$9))","v":282},{"$f":"INT((L6/Control!$H$9))","v":286},{"$f":"INT((M6/Control!$H$9))","v":290},{"$f":"INT((N6/Control!$H$9))","v":294},{"$f":"INT((O6/Control!$H$9))","v":299},{"$f":"INT((P6/Control!$H$9))","v":303},{"$f":"INT((Q6/Control!$H$9))","v":308},{"$f":"INT((R6/Control!$H$9))","v":312},{"$f":"INT((S6/Control!$H$9))","v":317},{"$f":"INT((T6/Control!$H$9))","v":322},{"$f":"INT((U6/Control!$H$9))","v":320},{"$f":"INT((V6/Control!$H$9))","v":319},{"$f":"INT((W6/Control!$H$9))","v":317},{"$f":"INT((X6/Control!$H$9))","v":315},{"$f":"INT((Y6/Control!$H$9))","v":314},{"$f":"INT((Z6/Control!$H$9))","v":312},{"$f":"INT((AA6/Control!$H$9))","v":311},{"$f":"INT((AB6/Control!$H$9))","v":309},{"$f":"INT((AC6/Control!$H$9))","v":308},{"$f":"INT((AD6/Control!$H$9))","v":306},{"$f":"INT((AE6/Control!$H$9))","v":304},{"$f":"INT((AF6/Control!$H$9))","v":303},{"$f":"INT((AG6/Control!$H$9))","v":301},{"$f":"INT((AH6/Control!$H$9))","v":300},{"$f":"INT((AI6/Control!$H$9))","v":298},{"$f":"INT((AJ6/Control!$H$9))","v":297},{"$f":"INT((AK6/Control!$H$9))","v":295},{"$f":"INT((AL6/Control!$H$9))","v":293},{"$f":"INT((AM6/Control!$H$9))","v":292},{"$f":"INT((AN6/Control!$H$9))","v":289},{"$f":"INT((AO6/Control!$H$9))","v":287},{"$f":"INT((AP6/Control!$H$9))","v":284},{"$f":"INT((AQ6/Control!$H$9))","v":280},{"$f":"INT((AR6/Control!$H$9))","v":275},{"$f":"INT((AS6/Control!$H$9))","v":269},{"$f":"INT((AT6/Control!$H$9))","v":266},{"$f":"INT((AU6/Control!$H$9))","v":264},{"$f":"INT((AV6/Control!$H$9))","v":261},{"$f":"INT((AW6/Control!$H$9))","v":257},{"$f":"INT((AX6/Control!$H$9))","v":252},{"$f":"INT((AY6/Control!$H$9))","v":246},{"$f":"INT((AZ6/Control!$H$9))","v":237},{"$f":"INT((BA6/Control!$H$9))","v":227},{"$f":"INT((BB6/Control!$H$9))","v":215},{"$f":"INT((BC6/Control!$H$9))","v":201},{"$f":"INT((BD6/Control!$H$9))","v":188},{"$f":"INT((BE6/Control!$H$9))","v":174},{"$f":"INT((BF6/Control!$H$9))","v":162},{"$f":"INT((BG6/Control!$H$9))","v":151},{"$f":"INT((BH6/Control!$H$9))","v":140},{"$f":"INT((BI6/Control!$H$9))","v":130},{"$f":"INT((BJ6/Control!$H$9))","v":121},{"$f":"INT((BK6/Control!$H$9))","v":112},{"$f":"INT((BL6/Control!$H$9))","v":104},{"$f":"INT((BM6/Control!$H$9))","v":97},{"$f":"INT((BN6/Control!$H$9))","v":90},{"$f":"INT((BO6/Control!$H$9))","v":83},{"$f":"INT((BP6/Control!$H$9))","v":77},{"$f":"INT((BQ6/Control!$H$9))","v":72},{"$f":"INT((BR6/Control!$H$9))","v":67},{"$f":"INT((BS6/Control!$H$9))","v":62},{"$f":"INT((BT6/Control!$H$9))","v":62},{"$f":"INT((BU6/Control!$H$9))","v":61},{"$f":"INT((BV6/Control!$H$9))","v":61},{"$f":"INT((BW6/Control!$H$9))","v":61},{"$f":"INT((BX6/Control!$H$9))","v":60},{"$f":"INT((BY6/Control!$H$9))","v":60},{"$f":"INT((BZ6/Control!$H$9))","v":60},{"$f":"INT((CA6/Control!$H$9))","v":60},{"$f":"INT((CB6/Control!$H$9))","v":59},{"$f":"INT((CC6/Control!$H$9))","v":59},{"$f":"INT((CD6/Control!$H$9))","v":59},{"$f":"INT((CE6/Control!$H$9))","v":58},{"$f":"INT((CF6/Control!$H$9))","v":58},{"$f":"INT((CG6/Control!$H$9))","v":58},{"$f":"INT((CH6/Control!$H$9))","v":58},{"$f":"INT((CI6/Control!$H$9))","v":57},{"$f":"INT((CJ6/Control!$H$9))","v":57},{"$f":"INT((CK6/Control!$H$9))","v":57}]
["Casey (C)",null,null,null,null,null,null,null,null,null,{"$f":"INT((J7/Control!$H$9))","v":871},{"$f":"INT((K7/Control!$H$9))","v":884},{"$f":"INT((L7/Control!$H$9))","v":897},{"$f":"INT((M7/Control!$H$9))","v":911},{"$f":"INT((N7/Control!$H$9))","v":924},{"$f":"INT((O7/Control!$H$9))","v":938},{"$f":"INT((P7/Control!$H$9))","v":952},{"$f":"INT((Q7/Control!$H$9))","v":967},{"$f":"INT((R7/Control!$H$9))","v":981},{"$f":"INT((S7/Control!$H$9))","v":996},{"$f":"INT((T7/Control!$H$9))","v":1011},{"$f":"INT((U7/Control!$H$9))","v":1006},{"$f":"INT((V7/Control!$H$9))","v":1001},{"$f":"INT((W7/Control!$H$9))","v":996},{"$f":"INT((X7/Control!$H$9))","v":991},{"$f":"INT((Y7/Control!$H$9))","v":986},{"$f":"INT((Z7/Control!$H$9))","v":981},{"$f":"INT((AA7/Control!$H$9))","v":976},{"$f":"INT((AB7/Control!$H$9))","v":971},{"$f":"INT((AC7/Control!$H$9))","v":966},{"$f":"INT((AD7/Control!$H$9))","v":961},{"$f":"INT((AE7/Control!$H$9))","v":956},{"$f":"INT((AF7/Control!$H$9))","v":951},{"$f":"INT((AG7/Control!$H$9))","v":944},{"$f":"INT((AH7/Control!$H$9))","v":936},{"$f":"INT((AI7/Control!$H$9))","v":924},{"$f":"INT((AJ7/Control!$H$9))","v":906},{"$f":"INT((AK7/Control!$H$9))","v":882},{"$f":"INT((AL7/Control!$H$9))","v":851},{"$f":"INT((AM7/Control!$H$9))","v":813},{"$f":"INT((AN7/Control!$H$9))","v":767},{"$f":"INT((AO7/Control!$H$9))","v":720},{"$f":"INT((AP7/Control!$H$9))","v":673},{"$f":"INT((AQ7/Control!$H$9))","v":627},{"$f":"INT((AR7/Control!$H$9))","v":583},{"$f":"INT((AS7/Control!$H$9))","v":542},{"$f":"INT((AT7/Control!$H$9))","v":507},{"$f":"INT((AU7/Control!$H$9))","v":475},{"$f":"INT((AV7/Control!$H$9))","v":444},{"$f":"INT((AW7/Control!$H$9))","v":413},{"$f":"INT((AX7/Control!$H$9))","v":384},{"$f":"INT((AY7/Control!$H$9))","v":357},{"$f":"INT((AZ7/Control!$H$9))","v":332},{"$f":"INT((BA7/Control!$H$9))","v":308},{"$f":"INT((BB7/Control!$H$9))","v":286},{"$f":"INT((BC7/Control!$H$9))","v":266},{"$f":"INT((BD7/Control!$H$9))","v":247},{"$f":"INT((BE7/Control!$H$9))","v":229},{"$f":"INT((BF7/Control!$H$9))","v":213},{"$f":"INT((BG7/Control!$H$9))","v":197},{"$f":"INT((BH7/Control!$H$9))","v":183},{"$f":"INT((BI7/Control!$H$9))","v":170},{"$f":"INT((BJ7/Control!$H$9))","v":158},{"$f":"INT((BK7/Control!$H$9))","v":147},{"$f":"INT((BL7/Control!$H$9))","v":136},{"$f":"INT((BM7/Control!$H$9))","v":127},{"$f":"INT((BN7/Control!$H$9))","v":118},{"$f":"INT((BO7/Control!$H$9))","v":109},{"$f":"INT((BP7/Control!$H$9))","v":101},{"$f":"INT((BQ7/Control!$H$9))","v":94},{"$f":"INT((BR7/Control!$H$9))","v":87},{"$f":"INT((BS7/Control!$H$9))","v":81},{"$f":"INT((BT7/Control!$H$9))","v":81},{"$f":"INT((BU7/Control!$H$9))","v":80},{"$f":"INT((BV7/Control!$H$9))","v":80},{"$f":"INT((BW7/Control!$H$9))","v":79},{"$f":"INT((BX7/Control!$H$9))","v":79},{"$f":"INT((BY7/Control!$H$9))","v":79},{"$f":"INT((BZ7/Control!$H$9))","v":78},{"$f":"INT((CA7/Control!$H$9))","v":78},{"$f":"INT((CB7/Control!$H$9))","v":78},{"$f":"INT((CC7/Control!$H$9))","v":77},{"$f":"INT((CD7/Control!$H$9))","v":77},{"$f":"INT((CE7/Control!$H$9))","v":76},{"$f":"INT((CF7/Control!$H$9))","v":76},{"$f":"INT((CG7/Control!$H$9))","v":76},{"$f":"INT((CH7/Control!$H$9))","v":75},{"$f":"INT((CI7/Control!$H$9))","v":75},{"$f":"INT((CJ7/Control!$H$9))","v":74},{"$f":"INT((CK7/Control!$H$9))","v":74}]
["Frankston (C)",null,null,null,null,null,null,null,null,null,{"$f":"INT((J8/Control!$H$9))","v":0},{"$f":"INT((K8/Control!$H$9))","v":0},{"$f":"INT((L8/Control!$H$9))","v":0},{"$f":"INT((M8/Control!$H$9))","v":0},{"$f":"INT((N8/Control!$H$9))","v":0},{"$f":"INT((O8/Control!$H$9))","v":0},{"$f":"INT((P8/Control!$H$9))","v":0},{"$f":"INT((Q8/Control!$H$9))","v":0},{"$f":"INT((R8/Control!$H$9))","v":0},{"$f":"INT((S8/Control!$H$9))","v":0},{"$f":"INT((T8/Control!$H$9))","v":0},{"$f":"INT((U8/Control!$H$9))","v":0},{"$f":"INT((V8/Control!$H$9))","v":0},{"$f":"INT((W8/Control!$H$9))","v":0},{"$f":"INT((X8/Control!$H$9))","v":0},{"$f":"INT((Y8/Control!$H$9))","v":0},{"$f":"INT((Z8/Control!$H$9))","v":0},{"$f":"INT((AA8/Control!$H$9))","v":0},{"$f":"INT((AB8/Control!$H$9))","v":0},{"$f":"INT((AC8/Control!$H$9))","v":0},{"$f":"INT((AD8/Control!$H$9))","v":0},{"$f":"INT((AE8/Control!$H$9))","v":0},{"$f":"INT((AF8/Control!$H$9))","v":0},{"$f":"INT((AG8/Control!$H$9))","v":0},{"$f":"INT((AH8/Control!$H$9))","v":0},{"$f":"INT((AI8/Control!$H$9))","v":0},{"$f":"INT((AJ8/Control!$H$9))","v":0},{"$f":"INT((AK8/Control!$H$9))","v":0},{"$f":"INT((AL8/Control!$H$9))","v":0},{"$f":"INT((AM8/Control!$H$9))","v":0},{"$f":"INT((AN8/Control!$H$9))","v":0},{"$f":"INT((AO8/Control!$H$9))","v":0},{"$f":"INT((AP8/Control!$H$9))","v":0},{"$f":"INT((AQ8/Control!$H$9))","v":0},{"$f":"INT((AR8/Control!$H$9))","v":0},{"$f":"INT((AS8/Control!$H$9))","v":0},{"$f":"INT((AT8/Control!$H$9))","v":0},{"$f":"INT((AU8/Control!$H$9))","v":0},{"$f":"INT((AV8/Control!$H$9))","v":0},{"$f":"INT((AW8/Control!$H$9))","v":0},{"$f":"INT((AX8/Control!$H$9))","v":0},{"$f":"INT((AY8/Control!$H$9))","v":0},{"$f":"INT((AZ8/Control!$H$9))","v":0},{"$f":"INT((BA8/Control!$H$9))","v":0},{"$f":"INT((BB8/Control!$H$9))","v":0},{"$f":"INT((BC8/Control!$H$9))","v":0},{"$f":"INT((BD8/Control!$H$9))","v":0},{"$f":"INT((BE8/Control!$H$9))","v":0},{"$f":"INT((BF8/Control!$H$9))","v":0},{"$f":"INT((BG8/Control!$H$9))","v":0},{"$f":"INT((BH8/Control!$H$9))","v":0},{"$f":"INT((BI8/Control!$H$9))","v":0},{"$f":"INT((BJ8/Control!$H$9))","v":0},{"$f":"INT((BK8/Control!$H$9))","v":0},{"$f":"INT((BL8/Control!$H$9))","v":0},{"$f":"INT((BM8/Control!$H$9))","v":0},{"$f":"INT((BN8/Control!$H$9))","v":0},{"$f":"INT((BO8/Control!$H$9))","v":0},{"$f":"INT((BP8/Control!$H$9))","v":0},{"$f":"INT((BQ8/Control!$H$9))","v":0},{"$f":"INT((BR8/Control!$H$9))","v":0},{"$f":"INT((BS8/Control!$H$9))","v":0},{"$f":"INT((BT8/Control!$H$9))","v":0},{"$f":"INT((BU8/Control!$H$9))","v":0},{"$f":"INT((BV8/Control!$H$9))","v":0},{"$f":"INT((BW8/Control!$H$9))","v":0},{"$f":"INT((BX8/Control!$H$9))","v":0},{"$f":"INT((BY8/Control!$H$9))","v":0},{"$f":"INT((BZ8/Control!$H$9))","v":0},{"$f":"INT((CA8/Control!$H$9))","v":0},{"$f":"INT((CB8/Control!$H$9))","v":0},{"$f":"INT((CC8/Control!$H$9))","v":0},{"$f":"INT((CD8/Control!$H$9))","v":0},{"$f":"INT((CE8/Control!$H$9))","v":0},{"$f":"INT((CF8/Control!$H$9))","v":0},{"$f":"INT((CG8/Control!$H$9))","v":0},{"$f":"INT((CH8/Control!$H$9))","v":0},{"$f":"INT((CI8/Control!$H$9))","v":0},{"$f":"INT((CJ8/Control!$H$9))","v":0},{"$f":"INT((CK8/Control!$H$9))","v":0}]
["Glen Eira (C)",null,null,null,null,null,null,null,null,null,{"$f":"INT((J9/Control!$H$9))","v":3476},{"$f":"INT((K9/Control!$H$9))","v":3528},{"$f":"INT((L9/Control!$H$9))","v":3581},{"$f":"INT((M9/Control!$H$9))","v":3635},{"$f":"INT((N9/Control!$H$9))","v":3689},{"$f":"INT((O9/Control!$H$9))","v":3744},{"$f":"INT((P9/Control!$H$9))","v":3800},{"$f":"INT((Q9/Control!$H$9))","v":3857},{"$f":"INT((R9/Control!$H$9))","v":3915},{"$f":"INT((S9/Control!$H$9))","v":3974},{"$f":"INT((T9/Control!$H$9))","v":4033},{"$f":"INT((U9/Control!$H$9))","v":4013},{"$f":"INT((V9/Control!$H$9))","v":3993},{"$f":"INT((W9/Control!$H$9))","v":3973},{"$f":"INT((X9/Control!$H$9))","v":3953},{"$f":"INT((Y9/Control!$H$9))","v":3934},{"$f":"INT((Z9/Control!$H$9))","v":3914},{"$f":"INT((AA9/Control!$H$9))","v":3894},{"$f":"INT((AB9/Control!$H$9))","v":3874},{"$f":"INT((AC9/Control!$H$9))","v":3852},{"$f":"INT((AD9/Control!$H$9))","v":3829},{"$f":"INT((AE9/Control!$H$9))","v":3803},{"$f":"INT((AF9/Control!$H$9))","v":3764},{"$f":"INT((AG9/Control!$H$9))","v":3689},{"$f":"INT((AH9/Control!$H$9))","v":3574},{"$f":"INT((AI9/Control!$H$9))","v":3415},{"$f":"INT((AJ9/Control!$H$9))","v":3231},{"$f":"INT((AK9/Control!$H$9))","v":3034},{"$f":"INT((AL9/Control!$H$9))","v":2837},{"$f":"INT((AM9/Control!$H$9))","v":2645},{"$f":"INT((AN9/Control!$H$9))","v":2460},{"$f":"INT((AO9/Control!$H$9))","v":2286},{"$f":"INT((AP9/Control!$H$9))","v":2123},{"$f":"INT((AQ9/Control!$H$9))","v":1972},{"$f":"INT((AR9/Control!$H$9))","v":1831},{"$f":"INT((AS9/Control!$H$9))","v":1700},{"$f":"INT((AT9/Control!$H$9))","v":1579},{"$f":"INT((AU9/Control!$H$9))","v":1467},{"$f":"INT((AV9/Control!$H$9))","v":1363},{"$f":"INT((AW9/Control!$H$9))","v":1266},{"$f":"INT((AX9/Control!$H$9))","v":1175},{"$f":"INT((AY9/Control!$H$9))","v":1091},{"$f":"INT((AZ9/Control!$H$9))","v":1013},{"$f":"INT((BA9/Control!$H$9))","v":940},{"$f":"INT((BB9/Control!$H$9))","v":873},{"$f":"INT((BC9/Control!$H$9))","v":810},{"$f":"INT((BD9/Control!$H$9))","v":752},{"$f":"INT((BE9/Control!$H$9))","v":699},{"$f":"INT((BF9/Control!$H$9))","v":649},{"$f":"INT((BG9/Control!$H$9))","v":602},{"$f":"INT((BH9/Control!$H$9))","v":559},{"$f":"INT((BI9/Control!$H$9))","v":519},{"$f":"INT((BJ9/Control!$H$9))","v":482},{"$f":"INT((BK9/Control!$H$9))","v":447},{"$f":"INT((BL9/Control!$H$9))","v":415},{"$f":"INT((BM9/Control!$H$9))","v":386},{"$f":"INT((BN9/Control!$H$9))","v":358},{"$f":"INT((BO9/Control!$H$9))","v":332},{"$f":"INT((BP9/Control!$H$9))","v":309},{"$f":"INT((BQ9/Control!$H$9))","v":286},{"$f":"INT((BR9/Control!$H$9))","v":266},{"$f":"INT((BS9/Control!$H$9))","v":247},{"$f":"INT((BT9/Control!$H$9))","v":245},{"$f":"INT((BU9/Control!$H$9))","v":244},{"$f":"INT((BV9/Control!$H$9))","v":242},{"$f":"INT((BW9/Control!$H$9))","v":241},{"$f":"INT((BX9/Control!$H$9))","v":239},{"$f":"INT((BY9/Control!$H$9))","v":238},{"$f":"INT((BZ9/Control!$H$9))","v":236},{"$f":"INT((CA9/Control!$H$9))","v":235},{"$f":"INT((CB9/Control!$H$9))","v":233},{"$f":"INT((CC9/Control!$H$9))","v":232},{"$f":"INT((CD9/Control!$H$9))","v":230},{"$f":"INT((CE9/Control!$H$9))","v":229},{"$f":"INT((CF9/Control!$H$9))","v":227},{"$f":"INT((CG9/Control!$H$9))","v":226},{"$f":"INT((CH9/Control!$H$9))","v":224},{"$f":"INT((CI9/Control!$H$9))","v":223},{"$f":"INT((CJ9/Control!$H$9))","v":221},{"$f":"INT((CK9/Control!$H$9))","v":220}]
["Greater Dandenong (C)",null,null,null,null,null,null,null,null,null,{"$f":"INT((J10/Control!$H$9))","v":3781},{"$f":"INT((K10/Control!$H$9))","v":3837},{"$f":"INT((L10/Control!$H$9))","v":3895},{"$f":"INT((M10/Control!$H$9))","v":3953},{"$f":"INT((N10/Control!$H$9))","v":4013},{"$f":"INT((O10/Control!$H$9))","v":4073},{"$f":"INT((P10/Control!$H$9))","v":4134},{"$f":"INT((Q10/Control!$H$9))","v":4196},{"$f":"INT((R10/Control!$H$9))","v":4259},{"$f":"INT((S10/Control!$H$9))","v":4323},{"$f":"INT((T10/Control!$H$9))","v":4387},{"$f":"INT((U10/Control!$H$9))","v":4365},{"$f":"INT((V10/Control!$H$9))","v":4344},{"$f":"INT((W10/Control!$H$9))","v":4322},{"$f":"INT((X10/Control!$H$9))","v":4300},{"$f":"INT((Y10/Control!$H$9))","v":4279},{"$f":"INT((Z10/Control!$H$9))","v":4257},{"$f":"INT((AA10/Control!$H$9))","v":4236},{"$f":"INT((AB10/Control!$H$9))","v":4215},{"$f":"INT((AC10/Control!$H$9))","v":4194},{"$f":"INT((AD10/Control!$H$9))","v":4173},{"$f":"INT((AE10/Control!$H$9))","v":4152},{"$f":"INT((AF10/Control!$H$9))","v":4131},{"$f":"INT((AG10/Control!$H$9))","v":4110},{"$f":"INT((AH10/Control!$H$9))","v":4089},{"$f":"INT((AI10/Control!$H$9))","v":4068},{"$f":"INT((AJ10/Control!$H$9))","v":4046},{"$f":"INT((AK10/Control!$H$9))","v":4024},{"$f":"INT((AL10/Control!$H$9))","v":4001},{"$f":"INT((AM10/Control!$H$9))","v":3977},{"$f":"INT((AN10/Control!$H$9))","v":3950},{"$f":"INT((AO10/Control!$H$9))","v":3921},{"$f":"INT((AP10/Control!$H$9))","v":3888},{"$f":"INT((AQ10/Control!$H$9))","v":3848},{"$f":"INT((AR10/Control!$H$9))","v":3801},{"$f":"INT((AS10/Control!$H$9))","v":3744},{"$f":"INT((AT10/Control!$H$9))","v":3714},{"$f":"INT((AU10/Control!$H$9))","v":3686},{"$f":"INT((AV10/Control!$H$9))","v":3654},{"$f":"INT((AW10/Control!$H$9))","v":3616},{"$f":"INT((AX10/Control!$H$9))","v":3569},{"$f":"INT((AY10/Control!$H$9))","v":3510},{"$f":"INT((AZ10/Control!$H$9))","v":3433},{"$f":"INT((BA10/Control!$H$9))","v":3331},{"$f":"INT((BB10/Control!$H$9))","v":3198},{"$f":"INT((BC10/Control!$H$9))","v":3034},{"$f":"INT((BD10/Control!$H$9))","v":2851},{"$f":"INT((BE10/Control!$H$9))","v":2660},{"$f":"INT((BF10/Control!$H$9))","v":2474},{"$f":"INT((BG10/Control!$H$9))","v":2298},{"$f":"INT((BH10/Control!$H$9))","v":2134},{"$f":"INT((BI10/Control!$H$9))","v":1981},{"$f":"INT((BJ10/Control!$H$9))","v":1839},{"$f":"INT((BK10/Control!$H$9))","v":1707},{"$f":"INT((BL10/Control!$H$9))","v":1585},{"$f":"INT((BM10/Control!$H$9))","v":1472},{"$f":"INT((BN10/Control!$H$9))","v":1366},{"$f":"INT((BO10/Control!$H$9))","v":1268},{"$f":"INT((BP10/Control!$H$9))","v":1178},{"$f":"INT((BQ10/Control!$H$9))","v":1093},{"$f":"INT((BR10/Control!$H$9))","v":1015},{"$f":"INT((BS10/Control!$H$9))","v":942},{"$f":"INT((BT10/Control!$H$9))","v":937},{"$f":"INT((BU10/Control!$H$9))","v":933},{"$f":"INT((BV10/Control!$H$9))","v":928},{"$f":"INT((BW10/Control!$H$9))","v":923},{"$f":"INT((BX10/Control!$H$9))","v":919},{"$f":"INT((BY10/Control!$H$9))","v":914},{"$f":"INT((BZ10/Control!$H$9))","v":910},{"$f":"INT((CA10/Control!$H$9))","v":905},{"$f":"INT((CB10/Control!$H$9))","v":901},{"$f":"INT((CC10/Control!$H$9))","v":896},{"$f":"INT((CD10/Control!$H$9))","v":892},{"$f":"INT((CE10/Control!$H$9))","v":887},{"$f":"INT((CF10/Control!$H$9))","v":883},{"$f":"INT((CG10/Control!$H$9))","v":878},{"$f":"INT((CH10/Control!$H$9))","v":874},{"$f":"INT((CI10/Control!$H$9))","v":870},{"$f":"INT((CJ10/Control!$H$9))","v":865},{"$f":"INT((CK10/Control!$H$9))","v":861}]
["Kingston (C)",null,null,null,null,null,null,null,null,null,{"$f":"INT((J11/Control!$H$9))","v":3594},{"$f":"INT((K11/Control!$H$9))","v":3648},{"$f":"INT((L11/Control!$H$9))","v":3702},{"$f":"INT((M11/Control!$H$9))","v":3758},{"$f":"INT((N11/Control!$H$9))","v":3814},{"$f":"INT((O11/Control!$H$9))","v":3871},{"$f":"INT((P11/Control!$H$9))","v":3929},{"$f":"INT((Q11/Control!$H$9))","v":3988},{"$f":"INT((R11/Control!$H$9))","v":4048},{"$f":"INT((S11/Control!$H$9))","v":4109},{"$f":"INT((T11/Control!$H$9))","v":4170},{"$f":"INT((U11/Control!$H$9))","v":4149},{"$f":"INT((V11/Control!$H$9))","v":4129},{"$f":"INT((W11/Control!$H$9))","v":4108},{"$f":"INT((X11/Control!$H$9))","v":4087},{"$f":"INT((Y11/Control!$H$9))","v":4067},{"$f":"INT((Z11/Control!$H$9))","v":4047},{"$f":"INT((AA11/Control!$H$9))","v":4026},{"$f":"INT((AB11/Control!$H$9))","v":4006},{"$f":"INT((AC11/Control!$H$9))","v":3986},{"$f":"INT((AD11/Control!$H$9))","v":3965},{"$f":"INT((AE11/Control!$H$9))","v":3944},{"$f":"INT((AF11/Control!$H$9))","v":3922},{"$f":"INT((AG11/Control!$H$9))","v":3895},{"$f":"INT((AH11/Control!$H$9))","v":3861},{"$f":"INT((AI11/Control!$H$9))","v":3815},{"$f":"INT((AJ11/Control!$H$9))","v":3753},{"$f":"INT((AK11/Control!$H$9))","v":3670},{"$f":"INT((AL11/Control!$H$9))","v":3563},{"$f":"INT((AM11/Control!$H$9))","v":3429},{"$f":"INT((AN11/Control!$H$9))","v":3264},{"$f":"INT((AO11/Control!$H$9))","v":3086},{"$f":"INT((AP11/Control!$H$9))","v":2896},{"$f":"INT((AQ11/Control!$H$9))","v":2706},{"$f":"INT((AR11/Control!$H$9))","v":2523},{"$f":"INT((AS11/Control!$H$9))","v":2348},{"$f":"INT((AT11/Control!$H$9))","v":2210},{"$f":"INT((AU11/Control!$H$9))","v":2086},{"$f":"INT((AV11/Control!$H$9))","v":1957},{"$f":"INT((AW11/Control!$H$9))","v":1829},{"$f":"INT((AX11/Control!$H$9))","v":1704},{"$f":"INT((AY11/Control!$H$9))","v":1585},{"$f":"INT((AZ11/Control!$H$9))","v":1473},{"$f":"INT((BA11/Control!$H$9))","v":1368},{"$f":"INT((BB11/Control!$H$9))","v":1270},{"$f":"INT((BC11/Control!$H$9))","v":1179},{"$f":"INT((BD11/Control!$H$9))","v":1095},{"$f":"INT((BE11/Control!$H$9))","v":1016},{"$f":"INT((BF11/Control!$H$9))","v":943},{"$f":"INT((BG11/Control!$H$9))","v":876},{"$f":"INT((BH11/Control!$H$9))","v":813},{"$f":"INT((BI11/Control!$H$9))","v":755},{"$f":"INT((BJ11/Control!$H$9))","v":701},{"$f":"INT((BK11/Control!$H$9))","v":651},{"$f":"INT((BL11/Control!$H$9))","v":604},{"$f":"INT((BM11/Control!$H$9))","v":561},{"$f":"INT((BN11/Control!$H$9))","v":521},{"$f":"INT((BO11/Control!$H$9))","v":483},{"$f":"INT((BP11/Control!$H$9))","v":449},{"$f":"INT((BQ11/Control!$H$9))","v":417},{"$f":"INT((BR11/Control!$H$9))","v":387},{"$f":"INT((BS11/Control!$H$9))","v":359},{"$f":"INT((BT11/Control!$H$9))","v":357},{"$f":"INT((BU11/Control!$H$9))","v":355},{"$f":"INT((BV11/Control!$H$9))","v":353},{"$f":"INT((BW11/Control!$H$9))","v":352},{"$f":"INT((BX11/Control!$H$9))","v":350},{"$f":"INT((BY11/Control!$H$9))","v":348},{"$f":"INT((BZ11/Control!$H$9))","v":346},{"$f":"INT((CA11/Control!$H$9))","v":344},{"$f":"INT((CB11/Control!$H$9))","v":343},{"$f":"INT((CC11/Control!$H$9))","v":341},{"$f":"INT((CD11/Control!$H$9))","v":339},{"$f":"INT((CE11/Control!$H$9))","v":337},{"$f":"INT((CF11/Control!$H$9))","v":335},{"$f":"INT((CG11/Control!$H$9))","v":334},{"$f":"INT((CH11/Control!$H$9))","v":332},{"$f":"INT((CI11/Control!$H$9))","v":330},{"$f":"INT((CJ11/Control!$H$9))","v":329},{"$f":"INT((CK11/Control!$H$9))","v":327}]
["Knox (C)",null,null,null,null,null,null,null,null,null,{"$f":"INT((J12/Control!$H$9))","v":4206},{"$f":"INT((K12/Control!$H$9))","v":4269},{"$f":"INT((L12/Control!$H$9))","v":4333},{"$f":"INT((M12/Control!$H$9))","v":4398},{"$f":"INT((N12/Control!$H$9))","v":4464},{"$f":"INT((O12/Control!$H$9))","v":4531},{"$f":"INT((P12/Control!$H$9))","v":4599},{"$f":"INT((Q12/Control!$H$9))","v":4668},{"$f":"INT((R12/Control!$H$9))","v":4738},{"$f":"INT((S12/Control!$H$9))","v":4809},{"$f":"INT((T12/Control!$H$9))","v":4881},{"$f":"INT((U12/Control!$H$9))","v":4856},{"$f":"INT((V12/Control!$H$9))","v":4832},{"$f":"INT((W12/Control!$H$9))","v":4808},{"$f":"INT((X12/Control!$H$9))","v":4784},{"$f":"INT((Y12/Control!$H$9))","v":4760},{"$f":"INT((Z12/Control!$H$9))","v":4736},{"$f":"INT((AA12/Control!$H$9))","v":4712},{"$f":"INT((AB12/Control!$H$9))","v":4689},{"$f":"INT((AC12/Control!$H$9))","v":4665},{"$f":"INT((AD12/Control!$H$9))","v":4641},{"$f":"INT((AE12/Control!$H$9))","v":4617},{"$f":"INT((AF12/Control!$H$9))","v":4591},{"$f":"INT((AG12/Control!$H$9))","v":4558},{"$f":"INT((AH12/Control!$H$9))","v":4514},{"$f":"INT((AI12/Control!$H$9))","v":4449},{"$f":"INT((AJ12/Control!$H$9))","v":4356},{"$f":"INT((AK12/Control!$H$9))","v":4229},{"$f":"INT((AL12/Control!$H$9))","v":4066},{"$f":"INT((AM12/Control!$H$9))","v":3872},{"$f":"INT((AN12/Control!$H$9))","v":3647},{"$f":"INT((AO12/Control!$H$9))","v":3418},{"$f":"INT((AP12/Control!$H$9))","v":3189},{"$f":"INT((AQ12/Control!$H$9))","v":2968},{"$f":"INT((AR12/Control!$H$9))","v":2760},{"$f":"INT((AS12/Control!$H$9))","v":2564},{"$f":"INT((AT12/Control!$H$9))","v":2396},{"$f":"INT((AU12/Control!$H$9))","v":2243},{"$f":"INT((AV12/Control!$H$9))","v":2092},{"$f":"INT((AW12/Control!$H$9))","v":1947},{"$f":"INT((AX12/Control!$H$9))","v":1810},{"$f":"INT((AY12/Control!$H$9))","v":1681},{"$f":"INT((AZ12/Control!$H$9))","v":1561},{"$f":"INT((BA12/Control!$H$9))","v":1449},{"$f":"INT((BB12/Control!$H$9))","v":1346},{"$f":"INT((BC12/Control!$H$9))","v":1249},{"$f":"INT((BD12/Control!$H$9))","v":1160},{"$f":"INT((BE12/Control!$H$9))","v":1077},{"$f":"INT((BF12/Control!$H$9))","v":1000},{"$f":"INT((BG12/Control!$H$9))","v":928},{"$f":"INT((BH12/Control!$H$9))","v":862},{"$f":"INT((BI12/Control!$H$9))","v":800},{"$f":"INT((BJ12/Control!$H$9))","v":743},{"$f":"INT((BK12/Control!$H$9))","v":689},{"$f":"INT((BL12/Control!$H$9))","v":640},{"$f":"INT((BM12/Control!$H$9))","v":594},{"$f":"INT((BN12/Control!$H$9))","v":552},{"$f":"INT((BO12/Control!$H$9))","v":512},{"$f":"INT((BP12/Control!$H$9))","v":475},{"$f":"INT((BQ12/Control!$H$9))","v":441},{"$f":"INT((BR12/Control!$H$9))","v":410},{"$f":"INT((BS12/Control!$H$9))","v":380},{"$f":"INT((BT12/Control!$H$9))","v":378},{"$f":"INT((BU12/Control!$H$9))","v":376},{"$f":"INT((BV12/Control!$H$9))","v":375},{"$f":"INT((BW12/Control!$H$9))","v":373},{"$f":"INT((BX12/Control!$H$9))","v":371},{"$f":"INT((BY12/Control!$H$9))","v":369},{"$f":"INT((BZ12/Control!$H$9))","v":367},{"$f":"INT((CA12/Control!$H$9))","v":365},{"$f":"INT((CB12/Control!$H$9))","v":363},{"$f":"INT((CC12/Control!$H$9))","v":361},{"$f":"INT((CD12/Control!$H$9))","v":359},{"$f":"INT((CE12/Control!$H$9))","v":357},{"$f":"INT((CF12/Control!$H$9))","v":356},{"$f":"INT((CG12/Control!$H$9))","v":354},{"$f":"INT((CH12/Control!$H$9))","v":352},{"$f":"INT((CI12/Control!$H$9))","v":350},{"$f":"INT((CJ12/Control!$H$9))","v":348},{"$f":"INT((CK12/Control!$H$9))","v":346}]
["Manningham (C)",null,null,null,null,null,null,null,null,null,{"$f":"INT((J13/Control!$H$9))","v":2911},{"$f":"INT((K13/Control!$H$9))","v":2954},{"$f":"INT((L13/Control!$H$9))","v":2999},{"$f":"INT((M13/Control!$H$9))","v":3044},{"$f":"INT((N13/Control!$H$9))","v":3089},{"$f":"INT((O13/Control!$H$9))","v":3135},{"$f":"INT((P13/Control!$H$9))","v":3182},{"$f":"INT((Q13/Control!$H$9))","v":3230},{"$f":"INT((R13/Control!$H$9))","v":3278},{"$f":"INT((S13/Control!$H$9))","v":3328},{"$f":"INT((T13/Control!$H$9))","v":3378},{"$f":"INT((U13/Control!$H$9))","v":3361},{"$f":"INT((V13/Control!$H$9))","v":3344},{"$f":"INT((W13/Control!$H$9))","v":3327},{"$f":"INT((X13/Control!$H$9))","v":3310},{"$f":"INT((Y13/Control!$H$9))","v":3294},{"$f":"INT((Z13/Control!$H$9))","v":3277},{"$f":"INT((AA13/Control!$H$9))","v":3261},{"$f":"INT((AB13/Control!$H$9))","v":3245},{"$f":"INT((AC13/Control!$H$9))","v":3228},{"$f":"INT((AD13/Control!$H$9))","v":3212},{"$f":"INT((AE13/Control!$H$9))","v":3195},{"$f":"INT((AF13/Control!$H$9))","v":3176},{"$f":"INT((AG13/Control!$H$9))","v":3153},{"$f":"INT((AH13/Control!$H$9))","v":3121},{"$f":"INT((AI13/Control!$H$9))","v":3073},{"$f":"INT((AJ13/Control!$H$9))","v":3005},{"$f":"INT((AK13/Control!$H$9))","v":2911},{"$f":"INT((AL13/Control!$H$9))","v":2794},{"$f":"INT((AM13/Control!$H$9))","v":2656},{"$f":"INT((AN13/Control!$H$9))","v":2499},{"$f":"INT((AO13/Control!$H$9))","v":2340},{"$f":"INT((AP13/Control!$H$9))","v":2182},{"$f":"INT((AQ13/Control!$H$9))","v":2030},{"$f":"INT((AR13/Control!$H$9))","v":1887},{"$f":"INT((AS13/Control!$H$9))","v":1753},{"$f":"INT((AT13/Control!$H$9))","v":1637},{"$f":"INT((AU13/Control!$H$9))","v":1532},{"$f":"INT((AV13/Control!$H$9))","v":1428},{"$f":"INT((AW13/Control!$H$9))","v":1329},{"$f":"INT((AX13/Control!$H$9))","v":1235},{"$f":"INT((AY13/Control!$H$9))","v":1147},{"$f":"INT((AZ13/Control!$H$9))","v":1065},{"$f":"INT((BA13/Control!$H$9))","v":989},{"$f":"INT((BB13/Control!$H$9))","v":918},{"$f":"INT((BC13/Control!$H$9))","v":852},{"$f":"INT((BD13/Control!$H$9))","v":791},{"$f":"INT((BE13/Control!$H$9))","v":735},{"$f":"INT((BF13/Control!$H$9))","v":682},{"$f":"INT((BG13/Control!$H$9))","v":633},{"$f":"INT((BH13/Control!$H$9))","v":588},{"$f":"INT((BI13/Control!$H$9))","v":546},{"$f":"INT((BJ13/Control!$H$9))","v":507},{"$f":"INT((BK13/Control!$H$9))","v":471},{"$f":"INT((BL13/Control!$H$9))","v":437},{"$f":"INT((BM13/Control!$H$9))","v":406},{"$f":"INT((BN13/Control!$H$9))","v":377},{"$f":"INT((BO13/Control!$H$9))","v":350},{"$f":"INT((BP13/Control!$H$9))","v":324},{"$f":"INT((BQ13/Control!$H$9))","v":301},{"$f":"INT((BR13/Control!$H$9))","v":280},{"$f":"INT((BS13/Control!$H$9))","v":260},{"$f":"INT((BT13/Control!$H$9))","v":258},{"$f":"INT((BU13/Control!$H$9))","v":257},{"$f":"INT((BV13/Control!$H$9))","v":256},{"$f":"INT((BW13/Control!$H$9))","v":254},{"$f":"INT((BX13/Control!$H$9))","v":253},{"$f":"INT((BY13/Control!$H$9))","v":252},{"$f":"INT((BZ13/Control!$H$9))","v":250},{"$f":"INT((CA13/Control!$H$9))","v":249},{"$f":"INT((CB13/Control!$H$9))","v":248},{"$f":"INT((CC13/Control!$H$9))","v":246},{"$f":"INT((CD13/Control!$H$9))","v":245},{"$f":"INT((CE13/Control!$H$9))","v":244},{"$f":"INT((CF13/Control!$H$9))","v":242},{"$f":"INT((CG13/Control!$H$9))","v":241},{"$f":"INT((CH13/Control!$H$9))","v":240},{"$f":"INT((CI13/Control!$H$9))","v":239},{"$f":"INT((CJ13/Control!$H$9))","v":237},{"$f":"INT((CK13/Control!$H$9))","v":236}]
["Maroondah (C)",null,null,null,null,null,null,null,null,null,{"$f":"INT((J14/Control!$H$9))","v":2592},{"$f":"INT((K14/Control!$H$9))","v":2631},{"$f":"INT((L14/Control!$H$9))","v":2671},{"$f":"INT((M14/Control!$H$9))","v":2711},{"$f":"INT((N14/Control!$H$9))","v":2751},{"$f":"INT((O14/Control!$H$9))","v":2792},{"$f":"INT((P14/Control!$H$9))","v":2834},{"$f":"INT((Q14/Control!$H$9))","v":2877},{"$f":"INT((R14/Control!$H$9))","v":2920},{"$f":"INT((S14/Control!$H$9))","v":2964},{"$f":"INT((T14/Control!$H$9))","v":3008},{"$f":"INT((U14/Control!$H$9))","v":2993},{"$f":"INT((V14/Control!$H$9))","v":2978},{"$f":"INT((W14/Control!$H$9))","v":2963},{"$f":"INT((X14/Control!$H$9))","v":2948},{"$f":"INT((Y14/Control!$H$9))","v":2934},{"$f":"INT((Z14/Control!$H$9))","v":2919},{"$f":"INT((AA14/Control!$H$9))","v":2904},{"$f":"INT((AB14/Control!$H$9))","v":2890},{"$f":"INT((AC14/Control!$H$9))","v":2875},{"$f":"INT((AD14/Control!$H$9))","v":2860},{"$f":"INT((AE14/Control!$H$9))","v":2846},{"$f":"INT((AF14/Control!$H$9))","v":2829},{"$f":"INT((AG14/Control!$H$9))","v":2809},{"$f":"INT((AH14/Control!$H$9))","v":2781},{"$f":"INT((AI14/Control!$H$9))","v":2740},{"$f":"INT((AJ14/Control!$H$9))","v":2681},{"$f":"INT((AK14/Control!$H$9))","v":2601},{"$f":"INT((AL14/Control!$H$9))","v":2499},{"$f":"INT((AM14/Control!$H$9))","v":2378},{"$f":"INT((AN14/Control!$H$9))","v":2239},{"$f":"INT((AO14/Control!$H$9))","v":2098},{"$f":"INT((AP14/Control!$H$9))","v":1956},{"$f":"INT((AQ14/Control!$H$9))","v":1821},{"$f":"INT((AR14/Control!$H$9))","v":1693},{"$f":"INT((AS14/Control!$H$9))","v":1573},{"$f":"INT((AT14/Control!$H$9))","v":1469},{"$f":"INT((AU14/Control!$H$9))","v":1375},{"$f":"INT((AV14/Control!$H$9))","v":1282},{"$f":"INT((AW14/Control!$H$9))","v":1193},{"$f":"INT((AX14/Control!$H$9))","v":1109},{"$f":"INT((AY14/Control!$H$9))","v":1030},{"$f":"INT((AZ14/Control!$H$9))","v":957},{"$f":"INT((BA14/Control!$H$9))","v":888},{"$f":"INT((BB14/Control!$H$9))","v":825},{"$f":"INT((BC14/Control!$H$9))","v":766},{"$f":"INT((BD14/Control!$H$9))","v":711},{"$f":"INT((BE14/Control!$H$9))","v":660},{"$f":"INT((BF14/Control!$H$9))","v":613},{"$f":"INT((BG14/Control!$H$9))","v":569},{"$f":"INT((BH14/Control!$H$9))","v":528},{"$f":"INT((BI14/Control!$H$9))","v":490},{"$f":"INT((BJ14/Control!$H$9))","v":455},{"$f":"INT((BK14/Control!$H$9))","v":423},{"$f":"INT((BL14/Control!$H$9))","v":393},{"$f":"INT((BM14/Control!$H$9))","v":364},{"$f":"INT((BN14/Control!$H$9))","v":338},{"$f":"INT((BO14/Control!$H$9))","v":314},{"$f":"INT((BP14/Control!$H$9))","v":292},{"$f":"INT((BQ14/Control!$H$9))","v":271},{"$f":"INT((BR14/Control!$H$9))","v":251},{"$f":"INT((BS14/Control!$H$9))","v":233},{"$f":"INT((BT14/Control!$H$9))","v":232},{"$f":"INT((BU14/Control!$H$9))","v":231},{"$f":"INT((BV14/Control!$H$9))","v":230},{"$f":"INT((BW14/Control!$H$9))","v":229},{"$f":"INT((BX14/Control!$H$9))","v":228},{"$f":"INT((BY14/Control!$H$9))","v":226},{"$f":"INT((BZ14/Control!$H$9))","v":225},{"$f":"INT((CA14/Control!$H$9))","v":224},{"$f":"INT((CB14/Control!$H$9))","v":223},{"$f":"INT((CC14/Control!$H$9))","v":222},{"$f":"INT((CD14/Control!$H$9))","v":221},{"$f":"INT((CE14/Control!$H$9))","v":220},{"$f":"INT((CF14/Control!$H$9))","v":219},{"$f":"INT((CG14/Control!$H$9))","v":217},{"$f":"INT((CH14/Control!$H$9))","v":216},{"$f":"INT((CI14/Control!$H$9))","v":215},{"$f":"INT((CJ14/Control!$H$9))","v":214},{"$f":"INT((CK14/Control!$H$9))","v":213}]
["Melbourne (C)",null,null,null,null,null,null,null,null,null,{"$f":"INT((J15/Control!$H$9))","v":57},{"$f":"INT((K15/Control!$H$9))","v":58},{"$f":"INT((L15/Control!$H$9))","v":59},{"$f":"INT((M15/Control!$H$9))","v":60},{"$f":"INT((N15/Control!$H$9))","v":61},{"$f":"INT((O15/Control!$H$9))","v":62},{"$f":"INT((P15/Control!$H$9))","v":63},{"$f":"INT((Q15/Control!$H$9))","v":63},{"$f":"INT((R15/Control!$H$9))","v":64},{"$f":"INT((S15/Control!$H$9))","v":65},{"$f":"INT((T15/Control!$H$9))","v":66},{"$f":"INT((U15/Control!$H$9))","v":66},{"$f":"INT((V15/Control!$H$9))","v":66},{"$f":"INT((W15/Control!$H$9))","v":65},{"$f":"INT((X15/Control!$H$9))","v":65},{"$f":"INT((Y15/Control!$H$9))","v":65},{"$f":"INT((Z15/Control!$H$9))","v":64},{"$f":"INT((AA15/Control!$H$9))","v":64},{"$f":"INT((AB15/Control!$H$9))","v":64},{"$f":"INT((AC15/Control!$H$9))","v":63},{"$f":"INT((AD15/Control!$H$9))","v":63},{"$f":"INT((AE15/Control!$H$9))","v":63},{"$f":"INT((AF15/Control!$H$9))","v":62},{"$f":"INT((AG15/Control!$H$9))","v":62},{"$f":"INT((AH15/Control!$H$9))","v":62},{"$f":"INT((AI15/Control!$H$9))","v":61},{"$f":"INT((AJ15/Control!$H$9))","v":61},{"$f":"INT((AK15/Control!$H$9))","v":61},{"$f":"INT((AL15/Control!$H$9))","v":60},{"$f":"INT((AM15/Control!$H$9))","v":60},{"$f":"INT((AN15/Control!$H$9))","v":59},{"$f":"INT((AO15/Control!$H$9))","v":59},{"$f":"INT((AP15/Control!$H$9))","v":58},{"$f":"INT((AQ15/Control!$H$9))","v":57},{"$f":"INT((AR15/Control!$H$9))","v":56},{"$f":"INT((AS15/Control!$H$9))","v":55},{"$f":"INT((AT15/Control!$H$9))","v":55},{"$f":"INT((AU15/Control!$H$9))","v":54},{"$f":"INT((AV15/Control!$H$9))","v":54},{"$f":"INT((AW15/Control!$H$9))","v":53},{"$f":"INT((AX15/Control!$H$9))","v":52},{"$f":"INT((AY15/Control!$H$9))","v":51},{"$f":"INT((AZ15/Control!$H$9))","v":50},{"$f":"INT((BA15/Control!$H$9))","v":49},{"$f":"INT((BB15/Control!$H$9))","v":48},{"$f":"INT((BC15/Control!$H$9))","v":46},{"$f":"INT((BD15/Control!$H$9))","v":44},{"$f":"INT((BE15/Control!$H$9))","v":41},{"$f":"INT((BF15/Control!$H$9))","v":39},{"$f":"INT((BG15/Control!$H$9))","v":36},{"$f":"INT((BH15/Control!$H$9))","v":34},{"$f":"INT((BI15/Control!$H$9))","v":31},{"$f":"INT((BJ15/Control!$H$9))","v":29},{"$f":"INT((BK15/Control!$H$9))","v":27},{"$f":"INT((BL15/Control!$H$9))","v":25},{"$f":"INT((BM15/Control!$H$9))","v":24},{"$f":"INT((BN15/Control!$H$9))","v":22},{"$f":"INT((BO15/Control!$H$9))","v":20},{"$f":"INT((BP15/Control!$H$9))","v":19},{"$f":"INT((BQ15/Control!$H$9))","v":18},{"$f":"INT((BR15/Control!$H$9))","v":17},{"$f":"INT((BS15/Control!$H$9))","v":15},{"$f":"INT((BT15/Control!$H$9))","v":15},{"$f":"INT((BU15/Control!$H$9))","v":15},{"$f":"INT((BV15/Control!$H$9))","v":15},{"$f":"INT((BW15/Control!$H$9))","v":15},{"$f":"INT((BX15/Control!$H$9))","v":15},{"$f":"INT((BY15/Control!$H$9))","v":15},{"$f":"INT((BZ15/Control!$H$9))","v":15},{"$f":"INT((CA15/Control!$H$9))","v":15},{"$f":"INT((CB15/Control!$H$9))","v":15},{"$f":"INT((CC15/Control!$H$9))","v":15},{"$f":"INT((CD15/Control!$H$9))","v":15},{"$f":"INT((CE15/Control!$H$9))","v":14},{"$f":"INT((CF15/Control!$H$9))","v":14},{"$f":"INT((CG15/Control!$H$9))","v":14},{"$f":"INT((CH15/Control!$H$9))","v":14},{"$f":"INT((CI15/Control!$H$9))","v":14},{"$f":"INT((CJ15/Control!$H$9))","v":14},{"$f":"INT((CK15/Control!$H$9))","v":14}]
["Monash (C)",null,null,null,null,null,null,null,null,null,{"$f":"INT((J16/Control!$H$9))","v":4374},{"$f":"INT((K16/Control!$H$9))","v":4439},{"$f":"INT((L16/Control!$H$9))","v":4506},{"$f":"INT((M16/Control!$H$9))","v":4573},{"$f":"INT((N16/Control!$H$9))","v":4642},{"$f":"INT((O16/Control!$H$9))","v":4711},{"$f":"INT((P16/Control!$H$9))","v":4782},{"$f":"INT((Q16/Control!$H$9))","v":4854},{"$f":"INT((R16/Control!$H$9))","v":4927},{"$f":"INT((S16/Control!$H$9))","v":5000},{"$f":"INT((T16/Control!$H$9))","v":5075},{"$f":"INT((U16/Control!$H$9))","v":5050},{"$f":"INT((V16/Control!$H$9))","v":5025},{"$f":"INT((W16/Control!$H$9))","v":5000},{"$f":"INT((X16/Control!$H$9))","v":4975},{"$f":"INT((Y16/Control!$H$9))","v":4950},{"$f":"INT((Z16/Control!$H$9))","v":4925},{"$f":"INT((AA16/Control!$H$9))","v":4900},{"$f":"INT((AB16/Control!$H$9))","v":4876},{"$f":"INT((AC16/Control!$H$9))","v":4851},{"$f":"INT((AD16/Control!$H$9))","v":4826},{"$f":"INT((AE16/Control!$H$9))","v":4801},{"$f":"INT((AF16/Control!$H$9))","v":4774},{"$f":"INT((AG16/Control!$H$9))","v":4740},{"$f":"INT((AH16/Control!$H$9))","v":4696},{"$f":"INT((AI16/Control!$H$9))","v":4633},{"$f":"INT((AJ16/Control!$H$9))","v":4544},{"$f":"INT((AK16/Control!$H$9))","v":4424},{"$f":"INT((AL16/Control!$H$9))","v":4269},{"$f":"INT((AM16/Control!$H$9))","v":4081},{"$f":"INT((AN16/Control!$H$9))","v":3857},{"$f":"INT((AO16/Control!$H$9))","v":3625},{"$f":"INT((AP16/Control!$H$9))","v":3387},{"$f":"INT((AQ16/Control!$H$9))","v":3156},{"$f":"INT((AR16/Control!$H$9))","v":2937},{"$f":"INT((AS16/Control!$H$9))","v":2729},{"$f":"INT((AT16/Control!$H$9))","v":2556},{"$f":"INT((AU16/Control!$H$9))","v":2399},{"$f":"INT((AV16/Control!$H$9))","v":2241},{"$f":"INT((AW16/Control!$H$9))","v":2088},{"$f":"INT((AX16/Control!$H$9))","v":1942},{"$f":"INT((AY16/Control!$H$9))","v":1805},{"$f":"INT((AZ16/Control!$H$9))","v":1676},{"$f":"INT((BA16/Control!$H$9))","v":1556},{"$f":"INT((BB16/Control!$H$9))","v":1445},{"$f":"INT((BC16/Control!$H$9))","v":1341},{"$f":"INT((BD16/Control!$H$9))","v":1245},{"$f":"INT((BE16/Control!$H$9))","v":1156},{"$f":"INT((BF16/Control!$H$9))","v":1073},{"$f":"INT((BG16/Control!$H$9))","v":997},{"$f":"INT((BH16/Control!$H$9))","v":925},{"$f":"INT((BI16/Control!$H$9))","v":859},{"$f":"INT((BJ16/Control!$H$9))","v":797},{"$f":"INT((BK16/Control!$H$9))","v":740},{"$f":"INT((BL16/Control!$H$9))","v":687},{"$f":"INT((BM16/Control!$H$9))","v":638},{"$f":"INT((BN16/Control!$H$9))","v":593},{"$f":"INT((BO16/Control!$H$9))","v":550},{"$f":"INT((BP16/Control!$H$9))","v":511},{"$f":"INT((BQ16/Control!$H$9))","v":474},{"$f":"INT((BR16/Control!$H$9))","v":440},{"$f":"INT((BS16/Control!$H$9))","v":408},{"$f":"INT((BT16/Control!$H$9))","v":406},{"$f":"INT((BU16/Control!$H$9))","v":404},{"$f":"INT((BV16/Control!$H$9))","v":402},{"$f":"INT((BW16/Control!$H$9))","v":400},{"$f":"INT((BX16/Control!$H$9))","v":398},{"$f":"INT((BY16/Control!$H$9))","v":396},{"$f":"INT((BZ16/Control!$H$9))","v":394},{"$f":"INT((CA16/Control!$H$9))","v":392},{"$f":"INT((CB16/Control!$H$9))","v":390},{"$f":"INT((CC16/Control!$H$9))","v":388},{"$f":"INT((CD16/Control!$H$9))","v":386},{"$f":"INT((CE16/Control!$H$9))","v":384},{"$f":"INT((CF16/Control!$H$9))","v":382},{"$f":"INT((CG16/Control!$H$9))","v":380},{"$f":"INT((CH16/Control!$H$9))","v":378},{"$f":"INT((CI16/Control!$H$9))","v":376},{"$f":"INT((CJ16/Control!$H$9))","v":374},{"$f":"INT((CK16/Control!$H$9))","v":372}]
["Nillumbik (S)",null,null,null,null,null,null,null,null,null,{"$f":"INT((J17/Control!$H$9))","v":0},{"$f":"INT((K17/Control!$H$9))","v":0},{"$f":"INT((L17/Control!$H$9))","v":0},{"$f":"INT((M17/Control!$H$9))","v":0},{"$f":"INT((N17/Control!$H$9))","v":0},{"$f":"INT((O17/Control!$H$9))","v":0},{"$f":"INT((P17/Control!$H$9))","v":0},{"$f":"INT((Q17/Control!$H$9))","v":0},{"$f":"INT((R17/Control!$H$9))","v":0},{"$f":"INT((S17/Control!$H$9))","v":0},{"$f":"INT((T17/Control!$H$9))","v":0},{"$f":"INT((U17/Control!$H$9))","v":0},{"$f":"INT((V17/Control!$H$9))","v":0},{"$f":"INT((W17/Control!$H$9))","v":0},{"$f":"INT((X17/Control!$H$9))","v":0},{"$f":"INT((Y17/Control!$H$9))","v":0},{"$f":"INT((Z17/Control!$H$9))","v":0},{"$f":"INT((AA17/Control!$H$9))","v":0},{"$f":"INT((AB17/Control!$H$9))","v":0},{"$f":"INT((AC17/Control!$H$9))","v":0},{"$f":"INT((AD17/Control!$H$9))","v":0},{"$f":"INT((AE17/Control!$H$9))","v":0},{"$f":"INT((AF17/Control!$H$9))","v":0},{"$f":"INT((AG17/Control!$H$9))","v":0},{"$f":"INT((AH17/Control!$H$9))","v":0},{"$f":"INT((AI17/Control!$H$9))","v":0},{"$f":"INT((AJ17/Control!$H$9))","v":0},{"$f":"INT((AK17/Control!$H$9))","v":0},{"$f":"INT((AL17/Control!$H$9))","v":0},{"$f":"INT((AM17/Control!$H$9))","v":0},{"$f":"INT((AN17/Control!$H$9))","v":0},{"$f":"INT((AO17/Control!$H$9))","v":0},{"$f":"INT((AP17/Control!$H$9))","v":0},{"$f":"INT((AQ17/Control!$H$9))","v":0},{"$f":"INT((AR17/Control!$H$9))","v":0},{"$f":"INT((AS17/Control!$H$9))","v":0},{"$f":"INT((AT17/Control!$H$9))","v":0},{"$f":"INT((AU17/Control!$H$9))","v":0},{"$f":"INT((AV17/Control!$H$9))","v":0},{"$f":"INT((AW17/Control!$H$9))","v":0},{"$f":"INT((AX17/Control!$H$9))","v":0},{"$f":"INT((AY17/Control!$H$9))","v":0},{"$f":"INT((AZ17/Control!$H$9))","v":0},{"$f":"INT((BA17/Control!$H$9))","v":0},{"$f":"INT((BB17/Control!$H$9))","v":0},{"$f":"INT((BC17/Control!$H$9))","v":0},{"$f":"INT((BD17/Control!$H$9))","v":0},{"$f":"INT((BE17/Control!$H$9))","v":0},{"$f":"INT((BF17/Control!$H$9))","v":0},{"$f":"INT((BG17/Control!$H$9))","v":0},{"$f":"INT((BH17/Control!$H$9))","v":0},{"$f":"INT((BI17/Control!$H$9))","v":0},{"$f":"INT((BJ17/Control!$H$9))","v":0},{"$f":"INT((BK17/Control!$H$9))","v":0},{"$f":"INT((BL17/Control!$H$9))","v":0},{"$f":"INT((BM17/Control!$H$9))","v":0},{"$f":"INT((BN17/Control!$H$9))","v":0},{"$f":"INT((BO17/Control!$H$9))","v":0},{"$f":"INT((BP17/Control!$H$9))","v":0},{"$f":"INT((BQ17/Control!$H$9))","v":0},{"$f":"INT((BR17/Control!$H$9))","v":0},{"$f":"INT((BS17/Control!$H$9))","v":0},{"$f":"INT((BT17/Control!$H$9))","v":0},{"$f":"INT((BU17/Control!$H$9))","v":0},{"$f":"INT((BV17/Control!$H$9))","v":0},{"$f":"INT((BW17/Control!$H$9))","v":0},{"$f":"INT((BX17/Control!$H$9))","v":0},{"$f":"INT((BY17/Control!$H$9))","v":0},{"$f":"INT((BZ17/Control!$H$9))","v":0},{"$f":"INT((CA17/Control!$H$9))","v":0},{"$f":"INT((CB17/Control!$H$9))","v":0},{"$f":"INT((CC17/Control!$H$9))","v":0},{"$f":"INT((CD17/Control!$H$9))","v":0},{"$f":"INT((CE17/Control!$H$9))","v":0},{"$f":"INT((CF17/Control!$H$9))","v":0},{"$f":"INT((CG17/Control!$H$9))","v":0},{"$f":"INT((CH17/Control!$H$9))","v":0},{"$f":"INT((CI17/Control!$H$9))","v":0},{"$f":"INT((CJ17/Control!$H$9))","v":0},{"$f":"INT((CK17/Control!$H$9))","v":0}]
["Port Phillip (C)",null,null,null,null,null,null,null,null,null,{"$f":"INT((J18/Control!$H$9))","v":2554},{"$f":"INT((K18/Control!$H$9))","v":2592},{"$f":"INT((L18/Control!$H$9))","v":2631},{"$f":"INT((M18/Control!$H$9))","v":2670},{"$f":"INT((N18/Control!$H$9))","v":2710},{"$f":"INT((O18/Control!$H$9))","v":2751},{"$f":"INT((P18/Control!$H$9))","v":2792},{"$f":"INT((Q18/Control!$H$9))","v":2834},{"$f":"INT((R18/Control!$H$9))","v":2876},{"$f":"INT((S18/Control!$H$9))","v":2919},{"$f":"INT((T18/Control!$H$9))","v":2962},{"$f":"INT((U18/Control!$H$9))","v":2948},{"$f":"INT((V18/Control!$H$9))","v":2933},{"$f":"INT((W18/Control!$H$9))","v":2918},{"$f":"INT((X18/Control!$H$9))","v":2904},{"$f":"INT((Y18/Control!$H$9))","v":2889},{"$f":"INT((Z18/Control!$H$9))","v":2874},{"$f":"INT((AA18/Control!$H$9))","v":2859},{"$f":"INT((AB18/Control!$H$9))","v":2842},{"$f":"INT((AC18/Control!$H$9))","v":2824},{"$f":"INT((AD18/Control!$H$9))","v":2803},{"$f":"INT((AE18/Control!$H$9))","v":2780},{"$f":"INT((AF18/Control!$H$9))","v":2748},{"$f":"INT((AG18/Control!$H$9))","v":2696},{"$f":"INT((AH18/Control!$H$9))","v":2626},{"$f":"INT((AI18/Control!$H$9))","v":2535},{"$f":"INT((AJ18/Control!$H$9))","v":2429},{"$f":"INT((AK18/Control!$H$9))","v":2310},{"$f":"INT((AL18/Control!$H$9))","v":2184},{"$f":"INT((AM18/Control!$H$9))","v":2054},{"$f":"INT((AN18/Control!$H$9))","v":1922},{"$f":"INT((AO18/Control!$H$9))","v":1795},{"$f":"INT((AP18/Control!$H$9))","v":1672},{"$f":"INT((AQ18/Control!$H$9))","v":1555},{"$f":"INT((AR18/Control!$H$9))","v":1446},{"$f":"INT((AS18/Control!$H$9))","v":1344},{"$f":"INT((AT18/Control!$H$9))","v":1253},{"$f":"INT((AU18/Control!$H$9))","v":1170},{"$f":"INT((AV18/Control!$H$9))","v":1090},{"$f":"INT((AW18/Control!$H$9))","v":1014},{"$f":"INT((AX18/Control!$H$9))","v":942},{"$f":"INT((AY18/Control!$H$9))","v":875},{"$f":"INT((AZ18/Control!$H$9))","v":813},{"$f":"INT((BA18/Control!$H$9))","v":755},{"$f":"INT((BB18/Control!$H$9))","v":701},{"$f":"INT((BC18/Control!$H$9))","v":651},{"$f":"INT((BD18/Control!$H$9))","v":604},{"$f":"INT((BE18/Control!$H$9))","v":561},{"$f":"INT((BF18/Control!$H$9))","v":521},{"$f":"INT((BG18/Control!$H$9))","v":484},{"$f":"INT((BH18/Control!$H$9))","v":449},{"$f":"INT((BI18/Control!$H$9))","v":417},{"$f":"INT((BJ18/Control!$H$9))","v":387},{"$f":"INT((BK18/Control!$H$9))","v":359},{"$f":"INT((BL18/Control!$H$9))","v":334},{"$f":"INT((BM18/Control!$H$9))","v":310},{"$f":"INT((BN18/Control!$H$9))","v":288},{"$f":"INT((BO18/Control!$H$9))","v":267},{"$f":"INT((BP18/Control!$H$9))","v":248},{"$f":"INT((BQ18/Control!$H$9))","v":230},{"$f":"INT((BR18/Control!$H$9))","v":214},{"$f":"INT((BS18/Control!$H$9))","v":198},{"$f":"INT((BT18/Control!$H$9))","v":197},{"$f":"INT((BU18/Control!$H$9))","v":196},{"$f":"INT((BV18/Control!$H$9))","v":194},{"$f":"INT((BW18/Control!$H$9))","v":193},{"$f":"INT((BX18/Control!$H$9))","v":192},{"$f":"INT((BY18/Control!$H$9))","v":190},{"$f":"INT((BZ18/Control!$H$9))","v":189},{"$f":"INT((CA18/Control!$H$9))","v":187},{"$f":"INT((CB18/Control!$H$9))","v":186},{"$f":"INT((CC18/Control!$H$9))","v":185},{"$f":"INT((CD18/Control!$H$9))","v":183},{"$f":"INT((CE18/Control!$H$9))","v":182},{"$f":"INT((CF18/Control!$H$9))","v":181},{"$f":"INT((CG18/Control!$H$9))","v":179},{"$f":"INT((CH18/Control!$H$9))","v":178},{"$f":"INT((CI18/Control!$H$9))","v":176},{"$f":"INT((CJ18/Control!$H$9))","v":175},{"$f":"INT((CK18/Control!$H$9))","v":174}]
["South Gippsland (S)",null,null,null,null,null,null,null,null,null,{"$f":"INT((J19/Control!$H$9))","v":144},{"$f":"INT((K19/Control!$H$9))","v":146},{"$f":"INT((L19/Control!$H$9))","v":148},{"$f":"INT((M19/Control!$H$9))","v":150},{"$f":"INT((N19/Control!$H$9))","v":152},{"$f":"INT((O19/Control!$H$9))","v":155},{"$f":"INT((P19/Control!$H$9))","v":157},{"$f":"INT((Q19/Control!$H$9))","v":159},{"$f":"INT((R19/Control!$H$9))","v":162},{"$f":"INT((S19/Control!$H$9))","v":164},{"$f":"INT((T19/Control!$H$9))","v":166},{"$f":"INT((U19/Control!$H$9))","v":166},{"$f":"INT((V19/Control!$H$9))","v":165},{"$f":"INT((W19/Control!$H$9))","v":164},{"$f":"INT((X19/Control!$H$9))","v":163},{"$f":"INT((Y19/Control!$H$9))","v":162},{"$f":"INT((Z19/Control!$H$9))","v":161},{"$f":"INT((AA19/Control!$H$9))","v":161},{"$f":"INT((AB19/Control!$H$9))","v":160},{"$f":"INT((AC19/Control!$H$9))","v":159},{"$f":"INT((AD19/Control!$H$9))","v":158},{"$f":"INT((AE19/Control!$H$9))","v":157},{"$f":"INT((AF19/Control!$H$9))","v":157},{"$f":"INT((AG19/Control!$H$9))","v":156},{"$f":"INT((AH19/Control!$H$9))","v":155},{"$f":"INT((AI19/Control!$H$9))","v":154},{"$f":"INT((AJ19/Control!$H$9))","v":153},{"$f":"INT((AK19/Control!$H$9))","v":153},{"$f":"INT((AL19/Control!$H$9))","v":152},{"$f":"INT((AM19/Control!$H$9))","v":151},{"$f":"INT((AN19/Control!$H$9))","v":150},{"$f":"INT((AO19/Control!$H$9))","v":149},{"$f":"INT((AP19/Control!$H$9))","v":147},{"$f":"INT((AQ19/Control!$H$9))","v":146},{"$f":"INT((AR19/Control!$H$9))","v":144},{"$f":"INT((AS19/Control!$H$9))","v":142},{"$f":"INT((AT19/Control!$H$9))","v":141},{"$f":"INT((AU19/Control!$H$9))","v":140},{"$f":"INT((AV19/Control!$H$9))","v":139},{"$f":"INT((AW19/Control!$H$9))","v":138},{"$f":"INT((AX19/Control!$H$9))","v":136},{"$f":"INT((AY19/Control!$H$9))","v":134},{"$f":"INT((AZ19/Control!$H$9))","v":132},{"$f":"INT((BA19/Control!$H$9))","v":128},{"$f":"INT((BB19/Control!$H$9))","v":124},{"$f":"INT((BC19/Control!$H$9))","v":119},{"$f":"INT((BD19/Control!$H$9))","v":112},{"$f":"INT((BE19/Control!$H$9))","v":106},{"$f":"INT((BF19/Control!$H$9))","v":98},{"$f":"INT((BG19/Control!$H$9))","v":92},{"$f":"INT((BH19/Control!$H$9))","v":85},{"$f":"INT((BI19/Control!$H$9))","v":79},{"$f":"INT((BJ19/Control!$H$9))","v":73},{"$f":"INT((BK19/Control!$H$9))","v":68},{"$f":"INT((BL19/Control!$H$9))","v":63},{"$f":"INT((BM19/Control!$H$9))","v":59},{"$f":"INT((BN19/Control!$H$9))","v":55},{"$f":"INT((BO19/Control!$H$9))","v":51},{"$f":"INT((BP19/Control!$H$9))","v":47},{"$f":"INT((BQ19/Control!$H$9))","v":44},{"$f":"INT((BR19/Control!$H$9))","v":41},{"$f":"INT((BS19/Control!$H$9))","v":38},{"$f":"INT((BT19/Control!$H$9))","v":38},{"$f":"INT((BU19/Control!$H$9))","v":38},{"$f":"INT((BV19/Control!$H$9))","v":37},{"$f":"INT((BW19/Control!$H$9))","v":37},{"$f":"INT((BX19/Control!$H$9))","v":37},{"$f":"INT((BY19/Control!$H$9))","v":37},{"$f":"INT((BZ19/Control!$H$9))","v":37},{"$f":"INT((CA19/Control!$H$9))","v":37},{"$f":"INT((CB19/Control!$H$9))","v":36},{"$f":"INT((CC19/Control!$H$9))","v":36},{"$f":"INT((CD19/Control!$H$9))","v":36},{"$f":"INT((CE19/Control!$H$9))","v":36},{"$f":"INT((CF19/Control!$H$9))","v":36},{"$f":"INT((CG19/Control!$H$9))","v":35},{"$f":"INT((CH19/Control!$H$9))","v":35},{"$f":"INT((CI19/Control!$H$9))","v":35},{"$f":"INT((CJ19/Control!$H$9))","v":35},{"$f":"INT((CK19/Control!$H$9))","v":35}]
["Stonnington (C)",null,null,null,null,null,null,null,null,null,{"$f":"INT((J20/Control!$H$9))","v":2589},{"$f":"INT((K20/Control!$H$9))","v":2628},{"$f":"INT((L20/Control!$H$9))","v":2667},{"$f":"INT((M20/Control!$H$9))","v":2707},{"$f":"INT((N20/Control!$H$9))","v":2747},{"$f":"INT((O20/Control!$H$9))","v":2788},{"$f":"INT((P20/Control!$H$9))","v":2830},{"$f":"INT((Q20/Control!$H$9))","v":2872},{"$f":"INT((R20/Control!$H$9))","v":2915},{"$f":"INT((S20/Control!$H$9))","v":2959},{"$f":"INT((T20/Control!$H$9))","v":3003},{"$f":"INT((U20/Control!$H$9))","v":2988},{"$f":"INT((V20/Control!$H$9))","v":2973},{"$f":"INT((W20/Control!$H$9))","v":2958},{"$f":"INT((X20/Control!$H$9))","v":2944},{"$f":"INT((Y20/Control!$H$9))","v":2929},{"$f":"INT((Z20/Control!$H$9))","v":2914},{"$f":"INT((AA20/Control!$H$9))","v":2898},{"$f":"INT((AB20/Control!$H$9))","v":2882},{"$f":"INT((AC20/Control!$H$9))","v":2864},{"$f":"INT((AD20/Control!$H$9))","v":2843},{"$f":"INT((AE20/Control!$H$9))","v":2818},{"$f":"INT((AF20/Control!$H$9))","v":2781},{"$f":"INT((AG20/Control!$H$9))","v":2715},{"$f":"INT((AH20/Control!$H$9))","v":2625},{"$f":"INT((AI20/Control!$H$9))","v":2509},{"$f":"INT((AJ20/Control!$H$9))","v":2378},{"$f":"INT((AK20/Control!$H$9))","v":2239},{"$f":"INT((AL20/Control!$H$9))","v":2098},{"$f":"INT((AM20/Control!$H$9))","v":1960},{"$f":"INT((AN20/Control!$H$9))","v":1826},{"$f":"INT((AO20/Control!$H$9))","v":1699},{"$f":"INT((AP20/Control!$H$9))","v":1579},{"$f":"INT((AQ20/Control!$H$9))","v":1467},{"$f":"INT((AR20/Control!$H$9))","v":1362},{"$f":"INT((AS20/Control!$H$9))","v":1265},{"$f":"INT((AT20/Control!$H$9))","v":1176},{"$f":"INT((AU20/Control!$H$9))","v":1094},{"$f":"INT((AV20/Control!$H$9))","v":1017},{"$f":"INT((AW20/Control!$H$9))","v":945},{"$f":"INT((AX20/Control!$H$9))","v":878},{"$f":"INT((AY20/Control!$H$9))","v":815},{"$f":"INT((AZ20/Control!$H$9))","v":757},{"$f":"INT((BA20/Control!$H$9))","v":702},{"$f":"INT((BB20/Control!$H$9))","v":652},{"$f":"INT((BC20/Control!$H$9))","v":606},{"$f":"INT((BD20/Control!$H$9))","v":562},{"$f":"INT((BE20/Control!$H$9))","v":522},{"$f":"INT((BF20/Control!$H$9))","v":485},{"$f":"INT((BG20/Control!$H$9))","v":450},{"$f":"INT((BH20/Control!$H$9))","v":418},{"$f":"INT((BI20/Control!$H$9))","v":388},{"$f":"INT((BJ20/Control!$H$9))","v":360},{"$f":"INT((BK20/Control!$H$9))","v":334},{"$f":"INT((BL20/Control!$H$9))","v":310},{"$f":"INT((BM20/Control!$H$9))","v":288},{"$f":"INT((BN20/Control!$H$9))","v":268},{"$f":"INT((BO20/Control!$H$9))","v":249},{"$f":"INT((BP20/Control!$H$9))","v":231},{"$f":"INT((BQ20/Control!$H$9))","v":214},{"$f":"INT((BR20/Control!$H$9))","v":199},{"$f":"INT((BS20/Control!$H$9))","v":185},{"$f":"INT((BT20/Control!$H$9))","v":183},{"$f":"INT((BU20/Control!$H$9))","v":182},{"$f":"INT((BV20/Control!$H$9))","v":180},{"$f":"INT((BW20/Control!$H$9))","v":179},{"$f":"INT((BX20/Control!$H$9))","v":178},{"$f":"INT((BY20/Control!$H$9))","v":176},{"$f":"INT((BZ20/Control!$H$9))","v":175},{"$f":"INT((CA20/Control!$H$9))","v":174},{"$f":"INT((CB20/Control!$H$9))","v":172},{"$f":"INT((CC20/Control!$H$9))","v":171},{"$f":"INT((CD20/Control!$H$9))","v":170},{"$f":"INT((CE20/Control!$H$9))","v":168},{"$f":"INT((CF20/Control!$H$9))","v":167},{"$f":"INT((CG20/Control!$H$9))","v":166},{"$f":"INT((CH20/Control!$H$9))","v":164},{"$f":"INT((CI20/Control!$H$9))","v":163},{"$f":"INT((CJ20/Control!$H$9))","v":162},{"$f":"INT((CK20/Control!$H$9))","v":161}]
["Whitehorse (C)",null,null,null,null,null,null,null,null,null,{"$f":"INT((J21/Control!$H$9))","v":4457},{"$f":"INT((K21/Control!$H$9))","v":4524},{"$f":"INT((L21/Control!$H$9))","v":4592},{"$f":"INT((M21/Control!$H$9))","v":4661},{"$f":"INT((N21/Control!$H$9))","v":4730},{"$f":"INT((O21/Control!$H$9))","v":4801},{"$f":"INT((P21/Control!$H$9))","v":4873},{"$f":"INT((Q21/Control!$H$9))","v":4946},{"$f":"INT((R21/Control!$H$9))","v":5020},{"$f":"INT((S21/Control!$H$9))","v":5096},{"$f":"INT((T21/Control!$H$9))","v":5172},{"$f":"INT((U21/Control!$H$9))","v":5146},{"$f":"INT((V21/Control!$H$9))","v":5121},{"$f":"INT((W21/Control!$H$9))","v":5095},{"$f":"INT((X21/Control!$H$9))","v":5069},{"$f":"INT((Y21/Control!$H$9))","v":5044},{"$f":"INT((Z21/Control!$H$9))","v":5019},{"$f":"INT((AA21/Control!$H$9))","v":4994},{"$f":"INT((AB21/Control!$H$9))","v":4969},{"$f":"INT((AC21/Control!$H$9))","v":4943},{"$f":"INT((AD21/Control!$H$9))","v":4918},{"$f":"INT((AE21/Control!$H$9))","v":4892},{"$f":"INT((AF21/Control!$H$9))","v":4864},{"$f":"INT((AG21/Control!$H$9))","v":4830},{"$f":"INT((AH21/Control!$H$9))","v":4784},{"$f":"INT((AI21/Control!$H$9))","v":4718},{"$f":"INT((AJ21/Control!$H$9))","v":4626},{"$f":"INT((AK21/Control!$H$9))","v":4501},{"$f":"INT((AL21/Control!$H$9))","v":4340},{"$f":"INT((AM21/Control!$H$9))","v":4145},{"$f":"INT((AN21/Control!$H$9))","v":3915},{"$f":"INT((AO21/Control!$H$9))","v":3678},{"$f":"INT((AP21/Control!$H$9))","v":3436},{"$f":"INT((AQ21/Control!$H$9))","v":3201},{"$f":"INT((AR21/Control!$H$9))","v":2977},{"$f":"INT((AS21/Control!$H$9))","v":2767},{"$f":"INT((AT21/Control!$H$9))","v":2590},{"$f":"INT((AU21/Control!$H$9))","v":2429},{"$f":"INT((AV21/Control!$H$9))","v":2270},{"$f":"INT((AW21/Control!$H$9))","v":2114},{"$f":"INT((AX21/Control!$H$9))","v":1966},{"$f":"INT((AY21/Control!$H$9))","v":1827},{"$f":"INT((AZ21/Control!$H$9))","v":1696},{"$f":"INT((BA21/Control!$H$9))","v":1575},{"$f":"INT((BB21/Control!$H$9))","v":1462},{"$f":"INT((BC21/Control!$H$9))","v":1358},{"$f":"INT((BD21/Control!$H$9))","v":1260},{"$f":"INT((BE21/Control!$H$9))","v":1170},{"$f":"INT((BF21/Control!$H$9))","v":1086},{"$f":"INT((BG21/Control!$H$9))","v":1009},{"$f":"INT((BH21/Control!$H$9))","v":936},{"$f":"INT((BI21/Control!$H$9))","v":869},{"$f":"INT((BJ21/Control!$H$9))","v":807},{"$f":"INT((BK21/Control!$H$9))","v":749},{"$f":"INT((BL21/Control!$H$9))","v":696},{"$f":"INT((BM21/Control!$H$9))","v":646},{"$f":"INT((BN21/Control!$H$9))","v":600},{"$f":"INT((BO21/Control!$H$9))","v":557},{"$f":"INT((BP21/Control!$H$9))","v":517},{"$f":"INT((BQ21/Control!$H$9))","v":480},{"$f":"INT((BR21/Control!$H$9))","v":445},{"$f":"INT((BS21/Control!$H$9))","v":413},{"$f":"INT((BT21/Control!$H$9))","v":411},{"$f":"INT((BU21/Control!$H$9))","v":409},{"$f":"INT((BV21/Control!$H$9))","v":407},{"$f":"INT((BW21/Control!$H$9))","v":405},{"$f":"INT((BX21/Control!$H$9))","v":403},{"$f":"INT((BY21/Control!$H$9))","v":401},{"$f":"INT((BZ21/Control!$H$9))","v":399},{"$f":"INT((CA21/Control!$H$9))","v":397},{"$f":"INT((CB21/Control!$H$9))","v":395},{"$f":"INT((CC21/Control!$H$9))","v":392},{"$f":"INT((CD21/Control!$H$9))","v":390},{"$f":"INT((CE21/Control!$H$9))","v":388},{"$f":"INT((CF21/Control!$H$9))","v":386},{"$f":"INT((CG21/Control!$H$9))","v":384},{"$f":"INT((CH21/Control!$H$9))","v":382},{"$f":"INT((CI21/Control!$H$9))","v":380},{"$f":"INT((CJ21/Control!$H$9))","v":378},{"$f":"INT((CK21/Control!$H$9))","v":377}]
["Yarra Ranges (S)",null,null,null,null,null,null,null,null,null,{"$f":"INT((J22/Control!$H$9))","v":3211},{"$f":"INT((K22/Control!$H$9))","v":3259},{"$f":"INT((L22/Control!$H$9))","v":3308},{"$f":"INT((M22/Control!$H$9))","v":3358},{"$f":"INT((N22/Control!$H$9))","v":3408},{"$f":"INT((O22/Control!$H$9))","v":3459},{"$f":"INT((P22/Control!$H$9))","v":3511},{"$f":"INT((Q22/Control!$H$9))","v":3564},{"$f":"INT((R22/Control!$H$9))","v":3617},{"$f":"INT((S22/Control!$H$9))","v":3671},{"$f":"INT((T22/Control!$H$9))","v":3726},{"$f":"INT((U22/Control!$H$9))","v":3708},{"$f":"INT((V22/Control!$H$9))","v":3689},{"$f":"INT((W22/Control!$H$9))","v":3671},{"$f":"INT((X22/Control!$H$9))","v":3652},{"$f":"INT((Y22/Control!$H$9))","v":3634},{"$f":"INT((Z22/Control!$H$9))","v":3616},{"$f":"INT((AA22/Control!$H$9))","v":3598},{"$f":"INT((AB22/Control!$H$9))","v":3580},{"$f":"INT((AC22/Control!$H$9))","v":3562},{"$f":"INT((AD22/Control!$H$9))","v":3543},{"$f":"INT((AE22/Control!$H$9))","v":3525},{"$f":"INT((AF22/Control!$H$9))","v":3505},{"$f":"INT((AG22/Control!$H$9))","v":3479},{"$f":"INT((AH22/Control!$H$9))","v":3443},{"$f":"INT((AI22/Control!$H$9))","v":3390},{"$f":"INT((AJ22/Control!$H$9))","v":3314},{"$f":"INT((AK22/Control!$H$9))","v":3211},{"$f":"INT((AL22/Control!$H$9))","v":3080},{"$f":"INT((AM22/Control!$H$9))","v":2926},{"$f":"INT((AN22/Control!$H$9))","v":2752},{"$f":"INT((AO22/Control!$H$9))","v":2577},{"$f":"INT((AP22/Control!$H$9))","v":2402},{"$f":"INT((AQ22/Control!$H$9))","v":2235},{"$f":"INT((AR22/Control!$H$9))","v":2077},{"$f":"INT((AS22/Control!$H$9))","v":1930},{"$f":"INT((AT22/Control!$H$9))","v":1802},{"$f":"INT((AU22/Control!$H$9))","v":1685},{"$f":"INT((AV22/Control!$H$9))","v":1571},{"$f":"INT((AW22/Control!$H$9))","v":1461},{"$f":"INT((AX22/Control!$H$9))","v":1358},{"$f":"INT((AY22/Control!$H$9))","v":1261},{"$f":"INT((AZ22/Control!$H$9))","v":1171},{"$f":"INT((BA22/Control!$H$9))","v":1087},{"$f":"INT((BB22/Control!$H$9))","v":1010},{"$f":"INT((BC22/Control!$H$9))","v":937},{"$f":"INT((BD22/Control!$H$9))","v":870},{"$f":"INT((BE22/Control!$H$9))","v":808},{"$f":"INT((BF22/Control!$H$9))","v":750},{"$f":"INT((BG22/Control!$H$9))","v":696},{"$f":"INT((BH22/Control!$H$9))","v":647},{"$f":"INT((BI22/Control!$H$9))","v":600},{"$f":"INT((BJ22/Control!$H$9))","v":557},{"$f":"INT((BK22/Control!$H$9))","v":518},{"$f":"INT((BL22/Control!$H$9))","v":480},{"$f":"INT((BM22/Control!$H$9))","v":446},{"$f":"INT((BN22/Control!$H$9))","v":414},{"$f":"INT((BO22/Control!$H$9))","v":384},{"$f":"INT((BP22/Control!$H$9))","v":357},{"$f":"INT((BQ22/Control!$H$9))","v":331},{"$f":"INT((BR22/Control!$H$9))","v":308},{"$f":"INT((BS22/Control!$H$9))","v":286},{"$f":"INT((BT22/Control!$H$9))","v":284},{"$f":"INT((BU22/Control!$H$9))","v":283},{"$f":"INT((BV22/Control!$H$9))","v":281},{"$f":"INT((BW22/Control!$H$9))","v":280},{"$f":"INT((BX22/Control!$H$9))","v":278},{"$f":"INT((BY22/Control!$H$9))","v":277},{"$f":"INT((BZ22/Control!$H$9))","v":275},{"$f":"INT((CA22/Control!$H$9))","v":274},{"$f":"INT((CB22/Control!$H$9))","v":272},{"$f":"INT((CC22/Control!$H$9))","v":271},{"$f":"INT((CD22/Control!$H$9))","v":270},{"$f":"INT((CE22/Control!$H$9))","v":268},{"$f":"INT((CF22/Control!$H$9))","v":267},{"$f":"INT((CG22/Control!$H$9))","v":265},{"$f":"INT((CH22/Control!$H$9))","v":264},{"$f":"INT((CI22/Control!$H$9))","v":262},{"$f":"INT((CJ22/Control!$H$9))","v":261},{"$f":"INT((CK22/Control!$H$9))","v":260}]
[]
[]
[]
["Residential Customers decision points (departure rate)",2012,{"$f":"B147+1","v":2013},{"$f":"C147+1","v":2014},{"$f":"D147+1","v":2015},{"$f":"E147+1","v":2016},{"$f":"F147+1","v":2017},{"$f":"G147+1","v":2018},{"$f":"H147+1","v":2019},{"$f":"I147+1","v":2020},{"$f":"J147+1","v":2021}]
["LGA"]
["Bass Coast (S)",null,null,null,null,null,null,null,null,null,{"$f":"IFERROR(J51/K124,0)","v":0.1271186440677966}]
["Bayside (C)",null,null,null,null,null,null,null,null,null,{"$f":"IFERROR(J52/K125,0)","v":0.22191011235955055}]
["Boroondara (C)",null,null,null,null,null,null,null,null,null,0.17537225242259513]
["Cardinia (S)",null,null,null,null,null,null,null,null,null,7.1942446043165464E-2]
["Casey (C)",null,null,null,null,null,null,null,null,null,8.7256027554535015E-2]
["Frankston (C)",null,null,null,null,null,null,null,null,null,0]
["Glen Eira (C)",null,null,null,null,null,null,null,null,null,0.16283084004602991]
["Greater Dandenong (C)",null,null,null,null,null,null,null,null,null,9.7857709600634751E-2]
["Kingston (C)",null,null,null,null,null,null,null,null,null,0.13939899833055092]
["Knox (C)",null,null,null,null,null,null,null,null,null,9.9144079885877312E-2]
["Manningham (C)",null,null,null,null,null,null,null,null,null,0.13500515286843009]
["Maroondah (C)",null,null,null,null,null,null,null,null,null,9.8765432098765427E-2]
["Melbourne (C)",null,null,null,null,null,null,null,null,null,8.771929824561403E-2]
["Monash (C)",null,null,null,null,null,null,null,null,null,0.16735253772290809]
["Nillumbik (S)",null,null,null,null,null,null,null,null,null,0]
["Port Phillip (C)",null,null,null,null,null,null,null,null,null,0.16758026624902114]
["South Gippsland (S)",null,null,null,null,null,null,null,null,null,0.1388888888888889]
["Stonnington (C)",null,null,null,null,null,null,null,null,null,0.18385477018153729]
["Whitehorse (C)",null,null,null,null,null,null,null,null,null,0.14157505048238725]
["Yarra Ranges (S)",null,null,null,null,null,null,null,null,null,8.8134537527250076E-2]

{"sheet":"RES S curve-disconnect","index":16,"n_rows":246,"n_cols":82,"rows_kept":246,"cut":false,"hidden":false,"merged":[]}
["By customer class",2020,{"$f":"B1+1","v":2021},2022,2023,2024,2025,2026,2027,2028,2029,2030,2031,2032,2033,2034,2035,2036,2037,2038,2039,2040,2041,2042,2043,2044,2045,2046,2047,2048,2049,2050,2051,2052,2053,2054,2055,2056,2057,2058,2059,2060,2061,2062,2063,2064,2065,2066,2067,2068,2069,2070,2071,2072,2073,2074,2075,2076,2077,2078,2079,2080,2081,2082,2083,2084,{"$f":"BN1+1","v":2085},2086,{"$f":"BP1+1","v":2087},{"$f":"BQ1+1","v":2088},{"$f":"BR1+1","v":2089},{"$f":"BS1+1","v":2090},{"$f":"BT1+1","v":2091},{"$f":"BU1+1","v":2092},{"$f":"BV1+1","v":2093},{"$f":"BW1+1","v":2094},{"$f":"BX1+1","v":2095},{"$f":"BY1+1","v":2096},{"$f":"BZ1+1","v":2097},{"$f":"CA1+1","v":2098},{"$f":"CB1+1","v":2099},{"$f":"CC1+1","v":2100}]
["Cooking"]
["High income",null,{"$f":"'Appliance costs'!B103+'Appliance costs'!B84+'Appliance costs'!B107","v":1046.2774539916959},{"$f":"'Appliance costs'!C103+'Appliance costs'!C84+'Appliance costs'!C107","v":1026.4234158927356},{"$f":"'Appliance costs'!D103+'Appliance costs'!D84+'Appliance costs'!D107","v":883.97942726623319},{"$f":"'Appliance costs'!E103+'Appliance costs'!E84+'Appliance costs'!E107","v":857.25526261992832},{"$f":"'Appliance costs'!F103+'Appliance costs'!F84+'Appliance costs'!F107","v":876.83158704416724},{"$f":"'Appliance costs'!G103+'Appliance costs'!G84+'Appliance costs'!G107","v":871.43831327822568},{"$f":"'Appliance costs'!H103+'Appliance costs'!H84+'Appliance costs'!H107","v":889.08260386378106},{"$f":"'Appliance costs'!I103+'Appliance costs'!I84+'Appliance costs'!I107","v":908.55726114044091},{"$f":"'Appliance costs'!J103+'Appliance costs'!J84+'Appliance costs'!J107","v":987.03577159510382},{"$f":"'Appliance costs'!K103+'Appliance costs'!K84+'Appliance costs'!K107","v":964.64551753061539},{"$f":"'Appliance costs'!L103+'Appliance costs'!L84+'Appliance costs'!L107","v":935.01576350770051},{"$f":"'Appliance costs'!M103+'Appliance costs'!M84+'Appliance costs'!M107","v":920.08001846514958},{"$f":"'Appliance costs'!N103+'Appliance costs'!N84+'Appliance costs'!N107","v":966.16624313023408},{"$f":"'Appliance costs'!O103+'Appliance costs'!O84+'Appliance costs'!O107","v":996.75975467020032},{"$f":"'Appliance costs'!P103+'Appliance costs'!P84+'Appliance costs'!P107","v":1047.0285079303353},{"$f":"'Appliance costs'!Q103+'Appliance costs'!Q84+'Appliance costs'!Q107","v":1070.2061543549712},{"$f":"'Appliance costs'!R103+'Appliance costs'!R84+'Appliance costs'!R107","v":1140.5472164190958},{"$f":"'Appliance costs'!S103+'Appliance costs'!S84+'Appliance costs'!S107","v":1114.1849854097522},{"$f":"'Appliance costs'!T103+'Appliance costs'!T84+'Appliance costs'!T107","v":1122.9964827998322},{"$f":"'Appliance costs'!U103+'Appliance costs'!U84+'Appliance costs'!U107","v":1132.442226937816},{"$f":"'Appliance costs'!V103+'Appliance costs'!V84+'Appliance costs'!V107","v":1144.5018211284871},{"$f":"'Appliance costs'!W103+'Appliance costs'!W84+'Appliance costs'!W107","v":1163.8048725630701},{"$f":"'Appliance costs'!X103+'Appliance costs'!X84+'Appliance costs'!X107","v":1188.8701393210749},{"$f":"'Appliance costs'!Y103+'Appliance costs'!Y84+'Appliance costs'!Y107","v":1203.984697122562},{"$f":"'Appliance costs'!Z103+'Appliance costs'!Z84+'Appliance costs'!Z107","v":1225.3851692563965},{"$f":"'Appliance costs'!AA103+'Appliance costs'!AA84+'Appliance costs'!AA107","v":1249.7254731863418},{"$f":"'Appliance costs'!AB103+'Appliance costs'!AB84+'Appliance costs'!AB107","v":1277.2255396147539},{"$f":"'Appliance costs'!AC103+'Appliance costs'!AC84+'Appliance costs'!AC107","v":1302.1855529927307},{"$f":"'Appliance costs'!AD103+'Appliance costs'!AD84+'Appliance costs'!AD107","v":1337.9786037689369},{"$f":"'Appliance costs'!AE103+'Appliance costs'!AE84+'Appliance costs'!AE107","v":1375.1213847978104},{"$f":"'Appliance costs'!AF103+'Appliance costs'!AF84+'Appliance costs'!AF107","v":1408.201348043684},{"$f":"'Appliance costs'!AG103+'Appliance costs'!AG84+'Appliance costs'!AG107","v":1436.7852887163051},{"$f":"'Appliance costs'!AH103+'Appliance costs'!AH84+'Appliance costs'!AH107","v":1479.106777136401},{"$f":"'Appliance costs'!AI103+'Appliance costs'!AI84+'Appliance costs'!AI107","v":1513.7430559616955},{"$f":"'Appliance costs'!AJ103+'Appliance costs'!AJ84+'Appliance costs'!AJ107","v":1551.1691128974517},{"$f":"'Appliance costs'!AK103+'Appliance costs'!AK84+'Appliance costs'!AK107","v":1372.8128555550147},{"$f":"'Appliance costs'!AL103+'Appliance costs'!AL84+'Appliance costs'!AL107","v":1373.9002591952994},{"$f":"'Appliance costs'!AM103+'Appliance costs'!AM84+'Appliance costs'!AM107","v":1422.2412778225071},{"$f":"'Appliance costs'!AN103+'Appliance costs'!AN84+'Appliance costs'!AN107","v":1469.3499607483386},{"$f":"'Appliance costs'!AO103+'Appliance costs'!AO84+'Appliance costs'!AO107","v":1505.5713875463111},{"$f":"'Appliance costs'!AP103+'Appliance costs'!AP84+'Appliance costs'!AP107","v":1551.9933810595339},{"$f":"'Appliance costs'!AQ103+'Appliance costs'!AQ84+'Appliance costs'!AQ107","v":1598.7722677878853},{"$f":"'Appliance costs'!AR103+'Appliance costs'!AR84+'Appliance costs'!AR107","v":1650.270571318566},{"$f":"'Appliance costs'!AS103+'Appliance costs'!AS84+'Appliance costs'!AS107","v":1703.0418447056636},{"$f":"'Appliance costs'!AT103+'Appliance costs'!AT84+'Appliance costs'!AT107","v":1770.2137817031557},{"$f":"'Appliance costs'!AU103+'Appliance costs'!AU84+'Appliance costs'!AU107","v":1840.8374655586049},{"$f":"'Appliance costs'!AV103+'Appliance costs'!AV84+'Appliance costs'!AV107","v":1919.2585446287349},{"$f":"'Appliance costs'!AW103+'Appliance costs'!AW84+'Appliance costs'!AW107","v":2001.3229914179849},{"$f":"'Appliance costs'!AX103+'Appliance costs'!AX84+'Appliance costs'!AX107","v":2099.1237971969344},{"$f":"'Appliance costs'!AY103+'Appliance costs'!AY84+'Appliance costs'!AY107","v":2201.25401623876},{"$f":"'Appliance costs'!AZ103+'Appliance costs'!AZ84+'Appliance costs'!AZ107","v":2312.9587768243937},{"$f":"'Appliance costs'!BA103+'Appliance costs'!BA84+'Appliance costs'!BA107","v":2431.7394423599153},{"$f":"'Appliance costs'!BB103+'Appliance costs'!BB84+'Appliance costs'!BB107","v":2571.4014659167269},{"$f":"'Appliance costs'!BC103+'Appliance costs'!BC84+'Appliance costs'!BC107","v":2675.4820642541613},{"$f":"'Appliance costs'!BD103+'Appliance costs'!BD84+'Appliance costs'!BD107","v":2760.3121386044122},{"$f":"'Appliance costs'!BE103+'Appliance costs'!BE84+'Appliance costs'!BE107","v":2850.1644183377821},{"$f":"'Appliance costs'!BF103+'Appliance costs'!BF84+'Appliance costs'!BF107","v":2963.5147779875397},{"$f":"'Appliance costs'!BG103+'Appliance costs'!BG84+'Appliance costs'!BG107","v":3091.3188455292598},{"$f":"'Appliance costs'!BH103+'Appliance costs'!BH84+'Appliance costs'!BH107","v":3284.0495493508643},{"$f":"'Appliance costs'!BI103+'Appliance costs'!BI84+'Appliance costs'!BI107","v":3531.2868801485297},{"$f":"'Appliance costs'!BJ103+'Appliance costs'!BJ84+'Appliance costs'!BJ107","v":3844.3611009681254},{"$f":"'Appliance costs'!BK103+'Appliance costs'!BK84+'Appliance costs'!BK107","v":744.81142910573692},{"$f":"'Appliance costs'!BL103+'Appliance costs'!BL84+'Appliance costs'!BL107","v":744.92320955105845},{"$f":"'Appliance costs'!BM103+'Appliance costs'!BM84+'Appliance costs'!BM107","v":741.01278208057931},{"$f":"'Appliance costs'!BN103+'Appliance costs'!BN84+'Appliance costs'!BN107","v":745.14677044170151},{"$f":"'Appliance costs'!BO103+'Appliance costs'!BO84+'Appliance costs'!BO107","v":745.25855088702303},{"$f":"'Appliance costs'!BP103+'Appliance costs'!BP84+'Appliance costs'!BP107","v":745.37033133234456},{"$f":"'Appliance costs'!BQ103+'Appliance costs'!BQ84+'Appliance costs'!BQ107","v":741.45990386186543},{"$f":"'Appliance costs'!BR103+'Appliance costs'!BR84+'Appliance costs'!BR107","v":745.59389222298762},{"$f":"'Appliance costs'!BS103+'Appliance costs'!BS84+'Appliance costs'!BS107","v":745.70567266830926},{"$f":"'Appliance costs'!BT103+'Appliance costs'!BT84+'Appliance costs'!BT107","v":745.81745311363068},{"$f":"'Appliance costs'!BU103+'Appliance costs'!BU84+'Appliance costs'!BU107","v":741.90702564315154},{"$f":"'Appliance costs'!BV103+'Appliance costs'!BV84+'Appliance costs'!BV107","v":746.04101400427385},{"$f":"'Appliance costs'!BW103+'Appliance costs'!BW84+'Appliance costs'!BW107","v":746.15279444959526},{"$f":"'Appliance costs'!BX103+'Appliance costs'!BX84+'Appliance costs'!BX107","v":746.2645748949169},{"$f":"'Appliance costs'!BY103+'Appliance costs'!BY84+'Appliance costs'!BY107","v":742.35414742443777},{"$f":"'Appliance costs'!BZ103+'Appliance costs'!BZ84+'Appliance costs'!BZ107","v":746.48813578555985},{"$f":"'Appliance costs'!CA103+'Appliance costs'!CA84+'Appliance costs'!CA107","v":746.59991623088149},{"$f":"'Appliance costs'!CB103+'Appliance costs'!CB84+'Appliance costs'!CB107","v":746.71169667620302},{"$f":"'Appliance costs'!CC103+'Appliance costs'!CC84+'Appliance costs'!CC107","v":744.46633853399794}]
["Medium income",null,{"$f":"'Appliance costs'!B110+'Appliance costs'!B84+'Appliance costs'!B114","v":699.32713549348591},{"$f":"'Appliance costs'!C110+'Appliance costs'!C84+'Appliance costs'!C114","v":682.83847444765138},{"$f":"'Appliance costs'!D110+'Appliance costs'!D84+'Appliance costs'!D114","v":564.53958558825275},{"$f":"'Appliance costs'!E110+'Appliance costs'!E84+'Appliance costs'!E114","v":542.34532513656768},{"$f":"'Appliance costs'!F110+'Appliance costs'!F84+'Appliance costs'!F114","v":558.60334662044261},{"$f":"'Appliance costs'!G110+'Appliance costs'!G84+'Appliance costs'!G114","v":554.12426470215723},{"$f":"'Appliance costs'!H110+'Appliance costs'!H84+'Appliance costs'!H114","v":568.7777435264311},{"$f":"'Appliance costs'!I110+'Appliance costs'!I84+'Appliance costs'!I114","v":586.88934876598228},{"$f":"'Appliance costs'!J110+'Appliance costs'!J84+'Appliance costs'!J114","v":661.61098952202428},{"$f":"'Appliance costs'!K110+'Appliance costs'!K84+'Appliance costs'!K114","v":644.89661525652309},{"$f":"'Appliance costs'!L110+'Appliance costs'!L84+'Appliance costs'!L114","v":622.1604761594765},{"$f":"'Appliance costs'!M110+'Appliance costs'!M84+'Appliance costs'!M114","v":611.61826850748196},{"$f":"'Appliance costs'!N110+'Appliance costs'!N84+'Appliance costs'!N114","v":651.74513606420135},{"$f":"'Appliance costs'!O110+'Appliance costs'!O84+'Appliance costs'!O114","v":678.99613447905494},{"$f":"'Appliance costs'!P110+'Appliance costs'!P84+'Appliance costs'!P114","v":722.57808826473672},{"$f":"'Appliance costs'!Q110+'Appliance costs'!Q84+'Appliance costs'!Q114","v":743.65186802428047},{"$f":"'Appliance costs'!R110+'Appliance costs'!R84+'Appliance costs'!R114","v":803.88546071535995},{"$f":"'Appliance costs'!S110+'Appliance costs'!S84+'Appliance costs'!S114","v":783.79846249558079},{"$f":"'Appliance costs'!T110+'Appliance costs'!T84+'Appliance costs'!T114","v":792.91400398528447},{"$f":"'Appliance costs'!U110+'Appliance costs'!U84+'Appliance costs'!U114","v":802.5472954169943},{"$f":"'Appliance costs'!V110+'Appliance costs'!V84+'Appliance costs'!V114","v":814.34243055128127},{"$f":"'Appliance costs'!W110+'Appliance costs'!W84+'Appliance costs'!W114","v":832.14431545574314},{"$f":"'Appliance costs'!X110+'Appliance costs'!X84+'Appliance costs'!X114","v":854.7228319816395},{"$f":"'Appliance costs'!Y110+'Appliance costs'!Y84+'Appliance costs'!Y114","v":869.02853385241463},{"$f":"'Appliance costs'!Z110+'Appliance costs'!Z84+'Appliance costs'!Z114","v":888.54588458907017},{"$f":"'Appliance costs'!AA110+'Appliance costs'!AA84+'Appliance costs'!AA114","v":910.49602629286721},{"$f":"'Appliance costs'!AB110+'Appliance costs'!AB84+'Appliance costs'!AB114","v":935.06165371909924},{"$f":"'Appliance costs'!AC110+'Appliance costs'!AC84+'Appliance costs'!AC114","v":957.5091472059629},{"$f":"'Appliance costs'!AD110+'Appliance costs'!AD84+'Appliance costs'!AD114","v":988.94482233696681},{"$f":"'Appliance costs'!AE110+'Appliance costs'!AE84+'Appliance costs'!AE114","v":1021.492891656049},{"$f":"'Appliance costs'!AF110+'Appliance costs'!AF84+'Appliance costs'!AF114","v":1048.9656051993184},{"$f":"'Appliance costs'!AG110+'Appliance costs'!AG84+'Appliance costs'!AG114","v":1072.7043986254166},{"$f":"'Appliance costs'!AH110+'Appliance costs'!AH84+'Appliance costs'!AH114","v":1107.8521440883781},{"$f":"'Appliance costs'!AI110+'Appliance costs'!AI84+'Appliance costs'!AI114","v":1136.6173685023082},{"$f":"'Appliance costs'!AJ110+'Appliance costs'!AJ84+'Appliance costs'!AJ114","v":1167.6994871131369},{"$f":"'Appliance costs'!AK110+'Appliance costs'!AK84+'Appliance costs'!AK114","v":1019.5756717933126},{"$f":"'Appliance costs'!AL110+'Appliance costs'!AL84+'Appliance costs'!AL114","v":1020.4787540758839},{"$f":"'Appliance costs'!AM110+'Appliance costs'!AM84+'Appliance costs'!AM114","v":1060.6256837222088},{"$f":"'Appliance costs'!AN110+'Appliance costs'!AN84+'Appliance costs'!AN114","v":1099.7491658676586},{"$f":"'Appliance costs'!AO110+'Appliance costs'!AO84+'Appliance costs'!AO114","v":1129.8308462840753},{"$f":"'Appliance costs'!AP110+'Appliance costs'!AP84+'Appliance costs'!AP114","v":1168.3840369396107},{"$f":"'Appliance costs'!AQ110+'Appliance costs'!AQ84+'Appliance costs'!AQ114","v":1207.233625296434},{"$f":"'Appliance costs'!AR110+'Appliance costs'!AR84+'Appliance costs'!AR114","v":1250.0026613545133},{"$f":"'Appliance costs'!AS110+'Appliance costs'!AS84+'Appliance costs'!AS114","v":1293.8288913385541},{"$f":"'Appliance costs'!AT110+'Appliance costs'!AT84+'Appliance costs'!AT114","v":1349.614787155981},{"$f":"'Appliance costs'!AU110+'Appliance costs'!AU84+'Appliance costs'!AU114","v":1408.2673382942648},{"$f":"'Appliance costs'!AV110+'Appliance costs'!AV84+'Appliance costs'!AV114","v":1473.3955799744151},{"$f":"'Appliance costs'!AW110+'Appliance costs'!AW84+'Appliance costs'!AW114","v":1541.5496169656487},{"$f":"'Appliance costs'!AX110+'Appliance costs'!AX84+'Appliance costs'!AX114","v":1622.7726068914653},{"$f":"'Appliance costs'!AY110+'Appliance costs'!AY84+'Appliance costs'!AY114","v":1707.5911488890106},{"$f":"'Appliance costs'!AZ110+'Appliance costs'!AZ84+'Appliance costs'!AZ114","v":1800.3612909287358},{"$f":"'Appliance costs'!BA110+'Appliance costs'!BA84+'Appliance costs'!BA114","v":1899.0079301187989},{"$f":"'Appliance costs'!BB110+'Appliance costs'!BB84+'Appliance costs'!BB114","v":2014.9964134653815},{"$f":"'Appliance costs'!BC110+'Appliance costs'!BC84+'Appliance costs'!BC114","v":2101.4347339158453},{"$f":"'Appliance costs'!BD110+'Appliance costs'!BD84+'Appliance costs'!BD114","v":2171.8856082156944},{"$f":"'Appliance costs'!BE110+'Appliance costs'!BE84+'Appliance costs'!BE114","v":2246.5073943397306},{"$f":"'Appliance costs'!BF110+'Appliance costs'!BF84+'Appliance costs'!BF114","v":2340.6441966553361},{"$f":"'Appliance costs'!BG110+'Appliance costs'!BG84+'Appliance costs'!BG114","v":2446.7847177659896},{"$f":"'Appliance costs'!BH110+'Appliance costs'!BH84+'Appliance costs'!BH114","v":2606.846425747},{"$f":"'Appliance costs'!BI110+'Appliance costs'!BI84+'Appliance costs'!BI114","v":2812.1755645891963},{"$f":"'Appliance costs'!BJ110+'Appliance costs'!BJ84+'Appliance costs'!BJ114","v":3072.1818506430909},{"$f":"'Appliance costs'!BK110+'Appliance costs'!BK84+'Appliance costs'!BK114","v":498.02420677596547},{"$f":"'Appliance costs'!BL110+'Appliance costs'!BL84+'Appliance costs'!BL114","v":498.11703977373008},{"$f":"'Appliance costs'!BM110+'Appliance costs'!BM84+'Appliance costs'!BM114","v":494.86945292093606},{"$f":"'Appliance costs'!BN110+'Appliance costs'!BN84+'Appliance costs'!BN114","v":498.30270576925932},{"$f":"'Appliance costs'!BO110+'Appliance costs'!BO84+'Appliance costs'!BO114","v":498.39553876702394},{"$f":"'Appliance costs'!BP110+'Appliance costs'!BP84+'Appliance costs'!BP114","v":498.48837176478855},{"$f":"'Appliance costs'!BQ110+'Appliance costs'!BQ84+'Appliance costs'!BQ114","v":495.24078491199452},{"$f":"'Appliance costs'!BR110+'Appliance costs'!BR84+'Appliance costs'!BR114","v":498.67403776031779},{"$f":"'Appliance costs'!BS110+'Appliance costs'!BS84+'Appliance costs'!BS114","v":498.7668707580824},{"$f":"'Appliance costs'!BT110+'Appliance costs'!BT84+'Appliance costs'!BT114","v":498.85970375584702},{"$f":"'Appliance costs'!BU110+'Appliance costs'!BU84+'Appliance costs'!BU114","v":495.61211690305299},{"$f":"'Appliance costs'!BV110+'Appliance costs'!BV84+'Appliance costs'!BV114","v":499.04536975137626},{"$f":"'Appliance costs'!BW110+'Appliance costs'!BW84+'Appliance costs'!BW114","v":499.13820274914076},{"$f":"'Appliance costs'!BX110+'Appliance costs'!BX84+'Appliance costs'!BX114","v":499.23103574690538},{"$f":"'Appliance costs'!BY110+'Appliance costs'!BY84+'Appliance costs'!BY114","v":495.98344889411135},{"$f":"'Appliance costs'!BZ110+'Appliance costs'!BZ84+'Appliance costs'!BZ114","v":499.41670174243461},{"$f":"'Appliance costs'!CA110+'Appliance costs'!CA84+'Appliance costs'!CA114","v":499.50953474019923},{"$f":"'Appliance costs'!CB110+'Appliance costs'!CB84+'Appliance costs'!CB114","v":499.60236773796385},{"$f":"'Appliance costs'!CC110+'Appliance costs'!CC84+'Appliance costs'!CC114","v":497.73761110010571}]
["Low income",null,{"$f":"'Appliance costs'!B117+'Appliance costs'!B84+'Appliance costs'!B121","v":150.98066679885119},{"$f":"'Appliance costs'!C117+'Appliance costs'!C84+'Appliance costs'!C121","v":139.81090164247735},{"$f":"'Appliance costs'!D117+'Appliance costs'!D84+'Appliance costs'!D121","v":59.672750755249126},{"$f":"'Appliance costs'!E117+'Appliance costs'!E84+'Appliance costs'!E121","v":44.637892777660682},{"$f":"'Appliance costs'!F117+'Appliance costs'!F84+'Appliance costs'!F121","v":55.651417852702934},{"$f":"'Appliance costs'!G117+'Appliance costs'!G84+'Appliance costs'!G121","v":52.617193727145377},{"$f":"'Appliance costs'!H117+'Appliance costs'!H84+'Appliance costs'!H121","v":62.543767918709818},{"$f":"'Appliance costs'!I117+'Appliance costs'!I84+'Appliance costs'!I121","v":78.501102845350488},{"$f":"'Appliance costs'!J117+'Appliance costs'!J84+'Appliance costs'!J121","v":147.28510318791257},{"$f":"'Appliance costs'!K117+'Appliance costs'!K84+'Appliance costs'!K121","v":139.54131773173128},{"$f":"'Appliance costs'!L117+'Appliance costs'!L84+'Appliance costs'!L121","v":127.70036794450482},{"$f":"'Appliance costs'!M117+'Appliance costs'!M84+'Appliance costs'!M121","v":124.10203837746963},{"$f":"'Appliance costs'!N117+'Appliance costs'!N84+'Appliance costs'!N121","v":154.81028819027949},{"$f":"'Appliance costs'!O117+'Appliance costs'!O84+'Appliance costs'!O121","v":176.77852659311043},{"$f":"'Appliance costs'!P117+'Appliance costs'!P84+'Appliance costs'!P121","v":209.79215781734592},{"$f":"'Appliance costs'!Q117+'Appliance costs'!Q84+'Appliance costs'!Q121","v":227.54082791450003},{"$f":"'Appliance costs'!R117+'Appliance costs'!R84+'Appliance costs'!R121","v":271.7998131685863},{"$f":"'Appliance costs'!S117+'Appliance costs'!S84+'Appliance costs'!S121","v":261.63066645933202},{"$f":"'Appliance costs'!T117+'Appliance costs'!T84+'Appliance costs'!T121","v":271.22674219116561},{"$f":"'Appliance costs'!U117+'Appliance costs'!U84+'Appliance costs'!U121","v":281.15644752061439},{"$f":"'Appliance costs'!V117+'Appliance costs'!V84+'Appliance costs'!V121","v":292.53361160270515},{"$f":"'Appliance costs'!W117+'Appliance costs'!W84+'Appliance costs'!W121","v":307.96293962560048},{"$f":"'Appliance costs'!X117+'Appliance costs'!X84+'Appliance costs'!X121","v":326.61120840246815},{"$f":"'Appliance costs'!Y117+'Appliance costs'!Y84+'Appliance costs'!Y121","v":339.6385333136592},{"$f":"'Appliance costs'!Z117+'Appliance costs'!Z84+'Appliance costs'!Z121","v":356.17965686961622},{"$f":"'Appliance costs'!AA117+'Appliance costs'!AA84+'Appliance costs'!AA121","v":374.35220579877978},{"$f":"'Appliance costs'!AB117+'Appliance costs'!AB84+'Appliance costs'!AB121","v":394.28002435540077},{"$f":"'Appliance costs'!AC117+'Appliance costs'!AC84+'Appliance costs'!AC121","v":412.75654177923502},{"$f":"'Appliance costs'!AD117+'Appliance costs'!AD84+'Appliance costs'!AD121","v":437.30549157686778},{"$f":"'Appliance costs'!AE117+'Appliance costs'!AE84+'Appliance costs'!AE121","v":462.59173173366685},{"$f":"'Appliance costs'!AF117+'Appliance costs'!AF84+'Appliance costs'!AF121","v":481.20232465165111},{"$f":"'Appliance costs'!AG117+'Appliance costs'!AG84+'Appliance costs'!AG121","v":497.28348169212359},{"$f":"'Appliance costs'!AH117+'Appliance costs'!AH84+'Appliance costs'!AH121","v":521.09330236258143},{"$f":"'Appliance costs'!AI117+'Appliance costs'!AI84+'Appliance costs'!AI121","v":540.57946927940077},{"$f":"'Appliance costs'!AJ117+'Appliance costs'!AJ84+'Appliance costs'!AJ121","v":561.63514896621336},{"$f":"'Appliance costs'!AK117+'Appliance costs'!AK84+'Appliance costs'!AK121","v":461.29296674842203},{"$f":"'Appliance costs'!AL117+'Appliance costs'!AL84+'Appliance costs'!AL121","v":461.9047336459987},{"$f":"'Appliance costs'!AM117+'Appliance costs'!AM84+'Appliance costs'!AM121","v":489.10110663543537},{"$f":"'Appliance costs'!AN117+'Appliance costs'!AN84+'Appliance costs'!AN121","v":515.60417480146191},{"$f":"'Appliance costs'!AO117+'Appliance costs'!AO84+'Appliance costs'!AO121","v":535.98213665212108},{"$f":"'Appliance costs'!AP117+'Appliance costs'!AP84+'Appliance costs'!AP121","v":562.0988773901463},{"$f":"'Appliance costs'!AQ117+'Appliance costs'!AQ84+'Appliance costs'!AQ121","v":588.41640415361474},{"$f":"'Appliance costs'!AR117+'Appliance costs'!AR84+'Appliance costs'!AR121","v":617.38904707503104},{"$f":"'Appliance costs'!AS117+'Appliance costs'!AS84+'Appliance costs'!AS121","v":647.0778553566854},{"$f":"'Appliance costs'!AT117+'Appliance costs'!AT84+'Appliance costs'!AT121","v":684.86839235580783},{"$f":"'Appliance costs'!AU117+'Appliance costs'!AU84+'Appliance costs'!AU121","v":724.60086185200976},{"$f":"'Appliance costs'!AV117+'Appliance costs'!AV84+'Appliance costs'!AV121","v":768.72010007230267},{"$f":"'Appliance costs'!AW117+'Appliance costs'!AW84+'Appliance costs'!AW121","v":814.88907556004904},{"$f":"'Appliance costs'!AX117+'Appliance costs'!AX84+'Appliance costs'!AX121","v":869.91123413605328},{"$f":"'Appliance costs'!AY117+'Appliance costs'!AY84+'Appliance costs'!AY121","v":927.36909517067932},{"$f":"'Appliance costs'!AZ117+'Appliance costs'!AZ84+'Appliance costs'!AZ121","v":990.21353701023963},{"$f":"'Appliance costs'!BA117+'Appliance costs'!BA84+'Appliance costs'!BA121","v":1057.0388413909677},{"$f":"'Appliance costs'!BB117+'Appliance costs'!BB84+'Appliance costs'!BB121","v":1135.6118750790247},{"$f":"'Appliance costs'!BC117+'Appliance costs'!BC84+'Appliance costs'!BC121","v":1194.1670080433821},{"$f":"'Appliance costs'!BD117+'Appliance costs'!BD84+'Appliance costs'!BD121","v":1241.8919093439231},{"$f":"'Appliance costs'!BE117+'Appliance costs'!BE84+'Appliance costs'!BE121","v":1292.4422738785377},{"$f":"'Appliance costs'!BF117+'Appliance costs'!BF84+'Appliance costs'!BF121","v":1356.2125200807263},{"$f":"'Appliance costs'!BG117+'Appliance costs'!BG84+'Appliance costs'!BG121","v":1428.1143374014628},{"$f":"'Appliance costs'!BH117+'Appliance costs'!BH84+'Appliance costs'!BH121","v":1536.5434987327665},{"$f":"'Appliance costs'!BI117+'Appliance costs'!BI84+'Appliance costs'!BI121","v":1675.6377680765588},{"$f":"'Appliance costs'!BJ117+'Appliance costs'!BJ84+'Appliance costs'!BJ121","v":1851.7714848368191},{"$f":"'Appliance costs'!BK117+'Appliance costs'!BK84+'Appliance costs'!BK121","v":107.98305486335789},{"$f":"'Appliance costs'!BL117+'Appliance costs'!BL84+'Appliance costs'!BL121","v":108.04594188498504},{"$f":"'Appliance costs'!BM117+'Appliance costs'!BM84+'Appliance costs'!BM121","v":105.84595837087193},{"$f":"'Appliance costs'!BN117+'Appliance costs'!BN84+'Appliance costs'!BN121","v":108.17171592823945},{"$f":"'Appliance costs'!BO117+'Appliance costs'!BO84+'Appliance costs'!BO121","v":108.2346029498666},{"$f":"'Appliance costs'!BP117+'Appliance costs'!BP84+'Appliance costs'!BP121","v":108.29748997149386},{"$f":"'Appliance costs'!BQ117+'Appliance costs'!BQ84+'Appliance costs'!BQ121","v":106.09750645738075},{"$f":"'Appliance costs'!BR117+'Appliance costs'!BR84+'Appliance costs'!BR121","v":108.42326401474816},{"$f":"'Appliance costs'!BS117+'Appliance costs'!BS84+'Appliance costs'!BS121","v":108.48615103637542},{"$f":"'Appliance costs'!BT117+'Appliance costs'!BT84+'Appliance costs'!BT121","v":108.54903805800257},{"$f":"'Appliance costs'!BU117+'Appliance costs'!BU84+'Appliance costs'!BU121","v":106.34905454388945},{"$f":"'Appliance costs'!BV117+'Appliance costs'!BV84+'Appliance costs'!BV121","v":108.67481210125698},{"$f":"'Appliance costs'!BW117+'Appliance costs'!BW84+'Appliance costs'!BW121","v":108.73769912288412},{"$f":"'Appliance costs'!BX117+'Appliance costs'!BX84+'Appliance costs'!BX121","v":108.80058614451139},{"$f":"'Appliance costs'!BY117+'Appliance costs'!BY84+'Appliance costs'!BY121","v":106.60060263039827},{"$f":"'Appliance costs'!BZ117+'Appliance costs'!BZ84+'Appliance costs'!BZ121","v":108.92636018776568},{"$f":"'Appliance costs'!CA117+'Appliance costs'!CA84+'Appliance costs'!CA121","v":108.98924720939294},{"$f":"'Appliance costs'!CB117+'Appliance costs'!CB84+'Appliance costs'!CB121","v":109.05213423102009},{"$f":"'Appliance costs'!CC117+'Appliance costs'!CC84+'Appliance costs'!CC121","v":107.78890893572384}]
[]
["Cooking plus hot water"]
["High income",null,{"$f":"'Appliance costs'!B104+'Appliance costs'!B103+'Appliance costs'!B84+'Appliance costs'!B107","v":-2710.5244178362923},{"$f":"'Appliance costs'!C104+'Appliance costs'!C103+'Appliance costs'!C84+'Appliance costs'!C107","v":-3047.1283127579331},{"$f":"'Appliance costs'!D104+'Appliance costs'!D103+'Appliance costs'!D84+'Appliance costs'!D107","v":-2883.0024747526504},{"$f":"'Appliance costs'!E104+'Appliance costs'!E103+'Appliance costs'!E84+'Appliance costs'!E107","v":-2802.813081342103},{"$f":"'Appliance costs'!F104+'Appliance costs'!F103+'Appliance costs'!F84+'Appliance costs'!F107","v":-2909.2120758874134},{"$f":"'Appliance costs'!G104+'Appliance costs'!G103+'Appliance costs'!G84+'Appliance costs'!G107","v":-2903.90825385687},{"$f":"'Appliance costs'!H104+'Appliance costs'!H103+'Appliance costs'!H84+'Appliance costs'!H107","v":-2703.5896476553812},{"$f":"'Appliance costs'!I104+'Appliance costs'!I103+'Appliance costs'!I84+'Appliance costs'!I107","v":-3201.9763916773691},{"$f":"'Appliance costs'!J104+'Appliance costs'!J103+'Appliance costs'!J84+'Appliance costs'!J107","v":-2813.5362115688527},{"$f":"'Appliance costs'!K104+'Appliance costs'!K103+'Appliance costs'!K84+'Appliance costs'!K107","v":-3033.2346512393697},{"$f":"'Appliance costs'!L104+'Appliance costs'!L103+'Appliance costs'!L84+'Appliance costs'!L107","v":-3244.1686612047429},{"$f":"'Appliance costs'!M104+'Appliance costs'!M103+'Appliance costs'!M84+'Appliance costs'!M107","v":-3260.9939567999299},{"$f":"'Appliance costs'!N104+'Appliance costs'!N103+'Appliance costs'!N84+'Appliance costs'!N107","v":-2968.5157783571872},{"$f":"'Appliance costs'!O104+'Appliance costs'!O103+'Appliance costs'!O84+'Appliance costs'!O107","v":-2753.575936149582},{"$f":"'Appliance costs'!P104+'Appliance costs'!P103+'Appliance costs'!P84+'Appliance costs'!P107","v":-2431.9716346788332},{"$f":"'Appliance costs'!Q104+'Appliance costs'!Q103+'Appliance costs'!Q84+'Appliance costs'!Q107","v":-2249.3876675647862},{"$f":"'Appliance costs'!R104+'Appliance costs'!R103+'Appliance costs'!R84+'Appliance costs'!R107","v":-1947.1705919453036},{"$f":"'Appliance costs'!S104+'Appliance costs'!S103+'Appliance costs'!S84+'Appliance costs'!S107","v":-1811.4868224367897},{"$f":"'Appliance costs'!T104+'Appliance costs'!T103+'Appliance costs'!T84+'Appliance costs'!T107","v":-1631.1398652517078},{"$f":"'Appliance costs'!U104+'Appliance costs'!U103+'Appliance costs'!U84+'Appliance costs'!U107","v":-1491.6426660400698},{"$f":"'Appliance costs'!V104+'Appliance costs'!V103+'Appliance costs'!V84+'Appliance costs'!V107","v":-1387.5291725397453},{"$f":"'Appliance costs'!W104+'Appliance costs'!W103+'Appliance costs'!W84+'Appliance costs'!W107","v":-1184.2345898080689},{"$f":"'Appliance costs'!X104+'Appliance costs'!X103+'Appliance costs'!X84+'Appliance costs'!X107","v":-974.4677648691129},{"$f":"'Appliance costs'!Y104+'Appliance costs'!Y103+'Appliance costs'!Y84+'Appliance costs'!Y107","v":-826.07485784952542},{"$f":"'Appliance costs'!Z104+'Appliance costs'!Z103+'Appliance costs'!Z84+'Appliance costs'!Z107","v":-672.96518135885617},{"$f":"'Appliance costs'!AA104+'Appliance costs'!AA103+'Appliance costs'!AA84+'Appliance costs'!AA107","v":-553.15845139505154},{"$f":"'Appliance costs'!AB104+'Appliance costs'!AB103+'Appliance costs'!AB84+'Appliance costs'!AB107","v":-434.73472800744548},{"$f":"'Appliance costs'!AC104+'Appliance costs'!AC103+'Appliance costs'!AC84+'Appliance costs'!AC107","v":-325.62818111466959},{"$f":"'Appliance costs'!AD104+'Appliance costs'!AD103+'Appliance costs'!AD84+'Appliance costs'!AD107","v":-204.9571670686621},{"$f":"'Appliance costs'!AE104+'Appliance costs'!AE103+'Appliance costs'!AE84+'Appliance costs'!AE107","v":-58.53065164453983},{"$f":"'Appliance costs'!AF104+'Appliance costs'!AF103+'Appliance costs'!AF84+'Appliance costs'!AF107","v":41.831185624088448},{"$f":"'Appliance costs'!AG104+'Appliance costs'!AG103+'Appliance costs'!AG84+'Appliance costs'!AG107","v":170.00367835694783},{"$f":"'Appliance costs'!AH104+'Appliance costs'!AH103+'Appliance costs'!AH84+'Appliance costs'!AH107","v":296.90182158548032},{"$f":"'Appliance costs'!AI104+'Appliance costs'!AI103+'Appliance costs'!AI84+'Appliance costs'!AI107","v":409.07592194058179},{"$f":"'Appliance costs'!AJ104+'Appliance costs'!AJ103+'Appliance costs'!AJ84+'Appliance costs'!AJ107","v":528.5274851624431},{"$f":"'Appliance costs'!AK104+'Appliance costs'!AK103+'Appliance costs'!AK84+'Appliance costs'!AK107","v":87.077550016598252},{"$f":"'Appliance costs'!AL104+'Appliance costs'!AL103+'Appliance costs'!AL84+'Appliance costs'!AL107","v":47.395211518358565},{"$f":"'Appliance costs'!AM104+'Appliance costs'!AM103+'Appliance costs'!AM84+'Appliance costs'!AM107","v":169.46880193418701},{"$f":"'Appliance costs'!AN104+'Appliance costs'!AN103+'Appliance costs'!AN84+'Appliance costs'!AN107","v":310.15054790211116},{"$f":"'Appliance costs'!AO104+'Appliance costs'!AO103+'Appliance costs'!AO84+'Appliance costs'!AO107","v":435.1527150525576},{"$f":"'Appliance costs'!AP104+'Appliance costs'!AP103+'Appliance costs'!AP84+'Appliance costs'!AP107","v":574.76668207152306},{"$f":"'Appliance costs'!AQ104+'Appliance costs'!AQ103+'Appliance costs'!AQ84+'Appliance costs'!AQ107","v":725.02712620625766},{"$f":"'Appliance costs'!AR104+'Appliance costs'!AR103+'Appliance costs'!AR84+'Appliance costs'!AR107","v":892.78916176700523},{"$f":"'Appliance costs'!AS104+'Appliance costs'!AS103+'Appliance costs'!AS84+'Appliance costs'!AS107","v":1076.941885281552},{"$f":"'Appliance costs'!AT104+'Appliance costs'!AT103+'Appliance costs'!AT84+'Appliance costs'!AT107","v":1294.0169569447698},{"$f":"'Appliance costs'!AU104+'Appliance costs'!AU103+'Appliance costs'!AU84+'Appliance costs'!AU107","v":1537.2985268343964},{"$f":"'Appliance costs'!AV104+'Appliance costs'!AV103+'Appliance costs'!AV84+'Appliance costs'!AV107","v":1814.8328093037599},{"$f":"'Appliance costs'!AW104+'Appliance costs'!AW103+'Appliance costs'!AW84+'Appliance costs'!AW107","v":2125.9061132978932},{"$f":"'Appliance costs'!AX104+'Appliance costs'!AX103+'Appliance costs'!AX84+'Appliance costs'!AX107","v":2486.795781628266},{"$f":"'Appliance costs'!AY104+'Appliance costs'!AY103+'Appliance costs'!AY84+'Appliance costs'!AY107","v":2892.4903199415003},{"$f":"'Appliance costs'!AZ104+'Appliance costs'!AZ103+'Appliance costs'!AZ84+'Appliance costs'!AZ107","v":3357.5884942953353},{"$f":"'Appliance costs'!BA104+'Appliance costs'!BA103+'Appliance costs'!BA84+'Appliance costs'!BA107","v":3892.6698249146575},{"$f":"'Appliance costs'!BB104+'Appliance costs'!BB103+'Appliance costs'!BB84+'Appliance costs'!BB107","v":4529.1542382082571},{"$f":"'Appliance costs'!BC104+'Appliance costs'!BC103+'Appliance costs'!BC84+'Appliance costs'!BC107","v":5122.0552215973858},{"$f":"'Appliance costs'!BD104+'Appliance costs'!BD103+'Appliance costs'!BD84+'Appliance costs'!BD107","v":5656.9582264931123},{"$f":"'Appliance costs'!BE104+'Appliance costs'!BE103+'Appliance costs'!BE84+'Appliance costs'!BE107","v":6206.3370030385386},{"$f":"'Appliance costs'!BF104+'Appliance costs'!BF103+'Appliance costs'!BF84+'Appliance costs'!BF107","v":6835.9919031332875},{"$f":"'Appliance costs'!BG104+'Appliance costs'!BG103+'Appliance costs'!BG84+'Appliance costs'!BG107","v":7578.5495080164828},{"$f":"'Appliance costs'!BH104+'Appliance costs'!BH103+'Appliance costs'!BH84+'Appliance costs'!BH107","v":8659.1981337964462},{"$f":"'Appliance costs'!BI104+'Appliance costs'!BI103+'Appliance costs'!BI84+'Appliance costs'!BI107","v":10217.173209332126},{"$f":"'Appliance costs'!BJ104+'Appliance costs'!BJ103+'Appliance costs'!BJ84+'Appliance costs'!BJ107","v":12480.159310663214},{"$f":"'Appliance costs'!BK104+'Appliance costs'!BK103+'Appliance costs'!BK84+'Appliance costs'!BK107","v":-1484.2376450083009},{"$f":"'Appliance costs'!BL104+'Appliance costs'!BL103+'Appliance costs'!BL84+'Appliance costs'!BL107","v":-1480.4657167481703},{"$f":"'Appliance costs'!BM104+'Appliance costs'!BM103+'Appliance costs'!BM84+'Appliance costs'!BM107","v":-1480.7271404049282},{"$f":"'Appliance costs'!BN104+'Appliance costs'!BN103+'Appliance costs'!BN84+'Appliance costs'!BN107","v":-1472.9552209095675},{"$f":"'Appliance costs'!BO104+'Appliance costs'!BO103+'Appliance costs'!BO84+'Appliance costs'!BO107","v":-1469.2165111443403},{"$f":"'Appliance costs'!BP104+'Appliance costs'!BP103+'Appliance costs'!BP84+'Appliance costs'!BP107","v":-1465.4887327818344},{"$f":"'Appliance costs'!BQ104+'Appliance costs'!BQ103+'Appliance costs'!BQ84+'Appliance costs'!BQ107","v":-1465.7940237768732},{"$f":"'Appliance costs'!BR104+'Appliance costs'!BR103+'Appliance costs'!BR84+'Appliance costs'!BR107","v":-1458.0656908688281},{"$f":"'Appliance costs'!BS104+'Appliance costs'!BS103+'Appliance costs'!BS84+'Appliance costs'!BS107","v":-1454.3702887367574},{"$f":"'Appliance costs'!BT104+'Appliance costs'!BT103+'Appliance costs'!BT84+'Appliance costs'!BT107","v":-1450.6855408385557},{"$f":"'Appliance costs'!BU104+'Appliance costs'!BU103+'Appliance costs'!BU84+'Appliance costs'!BU107","v":-1451.0335869029275},{"$f":"'Appliance costs'!BV104+'Appliance costs'!BV103+'Appliance costs'!BV84+'Appliance costs'!BV107","v":-1443.3477354317713},{"$f":"'Appliance costs'!BW104+'Appliance costs'!BW103+'Appliance costs'!BW84+'Appliance costs'!BW107","v":-1439.6945428553938},{"$f":"'Appliance costs'!BX104+'Appliance costs'!BX103+'Appliance costs'!BX84+'Appliance costs'!BX107","v":-1436.0517343717286},{"$f":"'Appliance costs'!BY104+'Appliance costs'!BY103+'Appliance costs'!BY84+'Appliance costs'!BY107","v":-1436.4414514383836},{"$f":"'Appliance costs'!BZ104+'Appliance costs'!BZ103+'Appliance costs'!BZ84+'Appliance costs'!BZ107","v":-1428.797004275096},{"$f":"'Appliance costs'!CA104+'Appliance costs'!CA103+'Appliance costs'!CA84+'Appliance costs'!CA107","v":-1425.184951019017},{"$f":"'Appliance costs'!CB104+'Appliance costs'!CB103+'Appliance costs'!CB84+'Appliance costs'!CB107","v":-1421.5830185640004},{"$f":"'Appliance costs'!CC104+'Appliance costs'!CC103+'Appliance costs'!CC84+'Appliance costs'!CC107","v":-1460.8124931436539}]
["Medium income",null,{"$f":"'Appliance costs'!B111+'Appliance costs'!B110+'Appliance costs'!B84+'Appliance costs'!B114","v":-2826.1704033290371},{"$f":"'Appliance costs'!C111+'Appliance costs'!C110+'Appliance costs'!C84+'Appliance costs'!C114","v":-3105.7179443585574},{"$f":"'Appliance costs'!D111+'Appliance costs'!D110+'Appliance costs'!D84+'Appliance costs'!D114","v":-2882.5318742357676},{"$f":"'Appliance costs'!E111+'Appliance costs'!E110+'Appliance costs'!E84+'Appliance costs'!E114","v":-2815.9350579696165},{"$f":"'Appliance costs'!F111+'Appliance costs'!F110+'Appliance costs'!F84+'Appliance costs'!F114","v":-2904.2987927388745},{"$f":"'Appliance costs'!G111+'Appliance costs'!G110+'Appliance costs'!G84+'Appliance costs'!G114","v":-2899.8939999570148},{"$f":"'Appliance costs'!H111+'Appliance costs'!H110+'Appliance costs'!H84+'Appliance costs'!H114","v":-2733.5305839926118},{"$f":"'Appliance costs'!I111+'Appliance costs'!I110+'Appliance costs'!I84+'Appliance costs'!I114","v":-3228.4628687970071},{"$f":"'Appliance costs'!J111+'Appliance costs'!J110+'Appliance costs'!J84+'Appliance costs'!J114","v":-2877.0244050550414},{"$f":"'Appliance costs'!K111+'Appliance costs'!K110+'Appliance costs'!K84+'Appliance costs'!K114","v":-3053.8006534031092},{"$f":"'Appliance costs'!L111+'Appliance costs'!L110+'Appliance costs'!L84+'Appliance costs'!L114","v":-3223.3265048153498},{"$f":"'Appliance costs'!M111+'Appliance costs'!M110+'Appliance costs'!M84+'Appliance costs'!M114","v":-3231.6744866204463},{"$f":"'Appliance costs'!N111+'Appliance costs'!N110+'Appliance costs'!N84+'Appliance costs'!N114","v":-2983.1758918723649},{"$f":"'Appliance costs'!O111+'Appliance costs'!O110+'Appliance costs'!O84+'Appliance costs'!O114","v":-2799.1004121079422},{"$f":"'Appliance costs'!P111+'Appliance costs'!P110+'Appliance costs'!P84+'Appliance costs'!P114","v":-2526.4685767679384},{"$f":"'Appliance costs'!Q111+'Appliance costs'!Q110+'Appliance costs'!Q84+'Appliance costs'!Q114","v":-2369.3200125336934},{"$f":"'Appliance costs'!R111+'Appliance costs'!R110+'Appliance costs'!R84+'Appliance costs'!R114","v":-2112.8444285768346},{"$f":"'Appliance costs'!S111+'Appliance costs'!S110+'Appliance costs'!S84+'Appliance costs'!S114","v":-1994.701199432762},{"$f":"'Appliance costs'!T111+'Appliance costs'!T110+'Appliance costs'!T84+'Appliance costs'!T114","v":-1839.4927507742061},{"$f":"'Appliance costs'!U111+'Appliance costs'!U110+'Appliance costs'!U84+'Appliance costs'!U114","v":-1718.2369410042686},{"$f":"'Appliance costs'!V111+'Appliance costs'!V110+'Appliance costs'!V84+'Appliance costs'!V114","v":-1626.3941103104244},{"$f":"'Appliance costs'!W111+'Appliance costs'!W110+'Appliance costs'!W84+'Appliance costs'!W114","v":-1452.2088584139806},{"$f":"'Appliance costs'!X111+'Appliance costs'!X110+'Appliance costs'!X84+'Appliance costs'!X114","v":-1272.6751992246966},{"$f":"'Appliance costs'!Y111+'Appliance costs'!Y110+'Appliance costs'!Y84+'Appliance costs'!Y114","v":-1144.1388331177168},{"$f":"'Appliance costs'!Z111+'Appliance costs'!Z110+'Appliance costs'!Z84+'Appliance costs'!Z114","v":-1011.7117025811892},{"$f":"'Appliance costs'!AA111+'Appliance costs'!AA110+'Appliance costs'!AA84+'Appliance costs'!AA114","v":-906.9688241374588},{"$f":"'Appliance costs'!AB111+'Appliance costs'!AB110+'Appliance costs'!AB84+'Appliance costs'!AB114","v":-803.40074495783801},{"$f":"'Appliance costs'!AC111+'Appliance costs'!AC110+'Appliance costs'!AC84+'Appliance costs'!AC114","v":-707.596615063238},{"$f":"'Appliance costs'!AD111+'Appliance costs'!AD110+'Appliance costs'!AD84+'Appliance costs'!AD114","v":-602.21422263883869},{"$f":"'Appliance costs'!AE111+'Appliance costs'!AE110+'Appliance costs'!AE84+'Appliance costs'!AE114","v":-475.46786801956432},{"$f":"'Appliance costs'!AF111+'Appliance costs'!AF110+'Appliance costs'!AF84+'Appliance costs'!AF114","v":-392.11795661054316},{"$f":"'Appliance costs'!AG111+'Appliance costs'!AG110+'Appliance costs'!AG84+'Appliance costs'!AG114","v":-285.67146056082879},{"$f":"'Appliance costs'!AH111+'Appliance costs'!AH110+'Appliance costs'!AH84+'Appliance costs'!AH114","v":-180.2833042264931},{"$f":"'Appliance costs'!AI111+'Appliance costs'!AI110+'Appliance costs'!AI84+'Appliance costs'!AI114","v":-87.123378288122012},{"$f":"'Appliance costs'!AJ111+'Appliance costs'!AJ110+'Appliance costs'!AJ84+'Appliance costs'!AJ114","v":12.080437456723303},{"$f":"'Appliance costs'!AK111+'Appliance costs'!AK110+'Appliance costs'!AK84+'Appliance costs'!AK114","v":-354.54111897651592},{"$f":"'Appliance costs'!AL111+'Appliance costs'!AL110+'Appliance costs'!AL84+'Appliance costs'!AL114","v":-387.49706606104451},{"$f":"'Appliance costs'!AM111+'Appliance costs'!AM110+'Appliance costs'!AM84+'Appliance costs'!AM114","v":-286.11567226186162},{"$f":"'Appliance costs'!AN111+'Appliance costs'!AN110+'Appliance costs'!AN84+'Appliance costs'!AN114","v":-169.28031549265961},{"$f":"'Appliance costs'!AO111+'Appliance costs'!AO110+'Appliance costs'!AO84+'Appliance costs'!AO114","v":-65.466756061319529},{"$f":"'Appliance costs'!AP111+'Appliance costs'!AP110+'Appliance costs'!AP84+'Appliance costs'!AP114","v":50.481816615220851},{"$f":"'Appliance costs'!AQ111+'Appliance costs'!AQ110+'Appliance costs'!AQ84+'Appliance costs'!AQ114","v":175.27222547738597},{"$f":"'Appliance costs'!AR111+'Appliance costs'!AR110+'Appliance costs'!AR84+'Appliance costs'!AR114","v":314.59760235703038},{"$f":"'Appliance costs'!AS111+'Appliance costs'!AS110+'Appliance costs'!AS84+'Appliance costs'!AS114","v":467.53534850035658},{"$f":"'Appliance costs'!AT111+'Appliance costs'!AT110+'Appliance costs'!AT84+'Appliance costs'!AT114","v":647.81490978227862},{"$f":"'Appliance costs'!AU111+'Appliance costs'!AU110+'Appliance costs'!AU84+'Appliance costs'!AU114","v":849.85881262029716},{"$f":"'Appliance costs'!AV111+'Appliance costs'!AV110+'Appliance costs'!AV84+'Appliance costs'!AV114","v":1080.3493903771707},{"$f":"'Appliance costs'!AW111+'Appliance costs'!AW110+'Appliance costs'!AW84+'Appliance costs'!AW114","v":1338.6939268589376},{"$f":"'Appliance costs'!AX111+'Appliance costs'!AX110+'Appliance costs'!AX84+'Appliance costs'!AX114","v":1638.4106588599161},{"$f":"'Appliance costs'!AY111+'Appliance costs'!AY110+'Appliance costs'!AY84+'Appliance costs'!AY114","v":1975.3375700026777},{"$f":"'Appliance costs'!AZ111+'Appliance costs'!AZ110+'Appliance costs'!AZ84+'Appliance costs'!AZ114","v":2361.5988490297705},{"$f":"'Appliance costs'!BA111+'Appliance costs'!BA110+'Appliance costs'!BA84+'Appliance costs'!BA114","v":2805.9807248255238},{"$f":"'Appliance costs'!BB111+'Appliance costs'!BB110+'Appliance costs'!BB84+'Appliance costs'!BB114","v":3334.5772601723979},{"$f":"'Appliance costs'!BC111+'Appliance costs'!BC110+'Appliance costs'!BC84+'Appliance costs'!BC114","v":3826.9780151280106},{"$f":"'Appliance costs'!BD111+'Appliance costs'!BD110+'Appliance costs'!BD84+'Appliance costs'!BD114","v":4271.2117924665408},{"$f":"'Appliance costs'!BE111+'Appliance costs'!BE110+'Appliance costs'!BE84+'Appliance costs'!BE114","v":4727.467612420236},{"$f":"'Appliance costs'!BF111+'Appliance costs'!BF110+'Appliance costs'!BF84+'Appliance costs'!BF114","v":5250.3922775066312},{"$f":"'Appliance costs'!BG111+'Appliance costs'!BG110+'Appliance costs'!BG84+'Appliance costs'!BG114","v":5867.0819701977725},{"$f":"'Appliance costs'!BH111+'Appliance costs'!BH110+'Appliance costs'!BH84+'Appliance costs'!BH114","v":6764.554253232538},{"$f":"'Appliance costs'!BI111+'Appliance costs'!BI110+'Appliance costs'!BI84+'Appliance costs'!BI114","v":8058.4433255876547},{"$f":"'Appliance costs'!BJ111+'Appliance costs'!BJ110+'Appliance costs'!BJ84+'Appliance costs'!BJ114","v":9937.8398790896717},{"$f":"'Appliance costs'!BK111+'Appliance costs'!BK110+'Appliance costs'!BK84+'Appliance costs'!BK114","v":-1659.5090815539795},{"$f":"'Appliance costs'!BL111+'Appliance costs'!BL110+'Appliance costs'!BL84+'Appliance costs'!BL114","v":-1656.3765174750495},{"$f":"'Appliance costs'!BM111+'Appliance costs'!BM110+'Appliance costs'!BM84+'Appliance costs'!BM114","v":-1656.5936282735772},{"$f":"'Appliance costs'!BN111+'Appliance costs'!BN110+'Appliance costs'!BN84+'Appliance costs'!BN114","v":-1650.1390951657129},{"$f":"'Appliance costs'!BO111+'Appliance costs'!BO110+'Appliance costs'!BO84+'Appliance costs'!BO114","v":-1647.0341188500486},{"$f":"'Appliance costs'!BP111+'Appliance costs'!BP110+'Appliance costs'!BP84+'Appliance costs'!BP114","v":-1643.9382209995963},{"$f":"'Appliance costs'!BQ111+'Appliance costs'!BQ110+'Appliance costs'!BQ84+'Appliance costs'!BQ114","v":-1644.1917633627397},{"$f":"'Appliance costs'!BR111+'Appliance costs'!BR110+'Appliance costs'!BR84+'Appliance costs'!BR114","v":-1637.7734286574785},{"$f":"'Appliance costs'!BS111+'Appliance costs'!BS110+'Appliance costs'!BS84+'Appliance costs'!BS114","v":-1634.704419074639},{"$f":"'Appliance costs'!BT111+'Appliance costs'!BT110+'Appliance costs'!BT84+'Appliance costs'!BT114","v":-1631.6442577699224},{"$f":"'Appliance costs'!BU111+'Appliance costs'!BU110+'Appliance costs'!BU84+'Appliance costs'!BU114","v":-1631.9333079649093},{"$f":"'Appliance costs'!BV111+'Appliance costs'!BV110+'Appliance costs'!BV84+'Appliance costs'!BV114","v":-1625.5502538413664},{"$f":"'Appliance costs'!BW111+'Appliance costs'!BW110+'Appliance costs'!BW84+'Appliance costs'!BW114","v":-1622.5162990445235},{"$f":"'Appliance costs'!BX111+'Appliance costs'!BX110+'Appliance costs'!BX84+'Appliance costs'!BX114","v":-1619.4909681751731},{"$f":"'Appliance costs'!BY111+'Appliance costs'!BY110+'Appliance costs'!BY84+'Appliance costs'!BY114","v":-1619.8146258907384},{"$f":"'Appliance costs'!BZ111+'Appliance costs'!BZ110+'Appliance costs'!BZ84+'Appliance costs'!BZ114","v":-1613.4659577996438},{"$f":"'Appliance costs'!CA111+'Appliance costs'!CA110+'Appliance costs'!CA84+'Appliance costs'!CA114","v":-1610.4661689646407},{"$f":"'Appliance costs'!CB111+'Appliance costs'!CB110+'Appliance costs'!CB84+'Appliance costs'!CB114","v":-1607.4747853949741},{"$f":"'Appliance costs'!CC111+'Appliance costs'!CC110+'Appliance costs'!CC84+'Appliance costs'!CC114","v":-1640.0546316774273}]
["Low income",null,{"$f":"'Appliance costs'!B118+'Appliance costs'!B117+'Appliance costs'!B84+'Appliance costs'!B121","v":-3008.9460469374599},{"$f":"'Appliance costs'!C118+'Appliance costs'!C117+'Appliance costs'!C84+'Appliance costs'!C121","v":-3198.3174200684725},{"$f":"'Appliance costs'!D118+'Appliance costs'!D117+'Appliance costs'!D84+'Appliance costs'!D121","v":-2881.7881016613092},{"$f":"'Appliance costs'!E118+'Appliance costs'!E117+'Appliance costs'!E84+'Appliance costs'!E121","v":-2836.6740201851176},{"$f":"'Appliance costs'!F118+'Appliance costs'!F117+'Appliance costs'!F84+'Appliance costs'!F121","v":-2896.5334692312881},{"$f":"'Appliance costs'!G118+'Appliance costs'!G117+'Appliance costs'!G84+'Appliance costs'!G121","v":-2893.5495701263767},{"$f":"'Appliance costs'!H118+'Appliance costs'!H117+'Appliance costs'!H84+'Appliance costs'!H121","v":-2780.8514995086925},{"$f":"'Appliance costs'!I118+'Appliance costs'!I117+'Appliance costs'!I84+'Appliance costs'!I121","v":-3270.3240962476157},{"$f":"'Appliance costs'!J118+'Appliance costs'!J117+'Appliance costs'!J84+'Appliance costs'!J121","v":-2977.3659376774813},{"$f":"'Appliance costs'!K118+'Appliance costs'!K117+'Appliance costs'!K84+'Appliance costs'!K121","v":-3086.3047153981161},{"$f":"'Appliance costs'!L118+'Appliance costs'!L117+'Appliance costs'!L84+'Appliance costs'!L121","v":-3190.3859878399676},{"$f":"'Appliance costs'!M118+'Appliance costs'!M117+'Appliance costs'!M84+'Appliance costs'!M121","v":-3185.3357831239114},{"$f":"'Appliance costs'!N118+'Appliance costs'!N117+'Appliance costs'!N84+'Appliance costs'!N121","v":-3006.3458417127526},{"$f":"'Appliance costs'!O118+'Appliance costs'!O117+'Appliance costs'!O84+'Appliance costs'!O121","v":-2871.0507297758845},{"$f":"'Appliance costs'!P118+'Appliance costs'!P117+'Appliance costs'!P84+'Appliance costs'!P121","v":-2675.8186760020162},{"$f":"'Appliance costs'!Q118+'Appliance costs'!Q117+'Appliance costs'!Q84+'Appliance costs'!Q121","v":-2558.8701421621413},{"$f":"'Appliance costs'!R118+'Appliance costs'!R117+'Appliance costs'!R84+'Appliance costs'!R121","v":-2374.6878638710468},{"$f":"'Appliance costs'!S118+'Appliance costs'!S117+'Appliance costs'!S84+'Appliance costs'!S121","v":-2284.2670285540494},{"$f":"'Appliance costs'!T118+'Appliance costs'!T117+'Appliance costs'!T84+'Appliance costs'!T121","v":-2168.7893760464749},{"$f":"'Appliance costs'!U118+'Appliance costs'!U117+'Appliance costs'!U84+'Appliance costs'!U121","v":-2076.3636348804139},{"$f":"'Appliance costs'!V118+'Appliance costs'!V117+'Appliance costs'!V84+'Appliance costs'!V121","v":-2003.9142857882027},{"$f":"'Appliance costs'!W118+'Appliance costs'!W117+'Appliance costs'!W84+'Appliance costs'!W121","v":-1875.7356173088203},{"$f":"'Appliance costs'!X118+'Appliance costs'!X117+'Appliance costs'!X84+'Appliance costs'!X121","v":-1743.984735054436},{"$f":"'Appliance costs'!Y118+'Appliance costs'!Y117+'Appliance costs'!Y84+'Appliance costs'!Y121","v":-1646.831144836088},{"$f":"'Appliance costs'!Z118+'Appliance costs'!Z117+'Appliance costs'!Z84+'Appliance costs'!Z121","v":-1547.092270896813},{"$f":"'Appliance costs'!AA118+'Appliance costs'!AA117+'Appliance costs'!AA84+'Appliance costs'!AA121","v":-1466.1574403076795},{"$f":"'Appliance costs'!AB118+'Appliance costs'!AB117+'Appliance costs'!AB84+'Appliance costs'!AB121","v":-1386.0683424326248},{"$f":"'Appliance costs'!AC118+'Appliance costs'!AC117+'Appliance costs'!AC84+'Appliance costs'!AC121","v":-1311.2883563336759},{"$f":"'Appliance costs'!AD118+'Appliance costs'!AD117+'Appliance costs'!AD84+'Appliance costs'!AD121","v":-1230.0692553963843},{"$f":"'Appliance costs'!AE118+'Appliance costs'!AE117+'Appliance costs'!AE84+'Appliance costs'!AE121","v":-1134.4269122315227},{"$f":"'Appliance costs'!AF118+'Appliance costs'!AF117+'Appliance costs'!AF84+'Appliance costs'!AF121","v":-1077.9639323900801},{"$f":"'Appliance costs'!AG118+'Appliance costs'!AG117+'Appliance costs'!AG84+'Appliance costs'!AG121","v":-1005.8548412219677},{"$f":"'Appliance costs'!AH118+'Appliance costs'!AH117+'Appliance costs'!AH84+'Appliance costs'!AH121","v":-934.46269159589974},{"$f":"'Appliance costs'!AI118+'Appliance costs'!AI117+'Appliance costs'!AI84+'Appliance costs'!AI121","v":-871.35420196025052},{"$f":"'Appliance costs'!AJ118+'Appliance costs'!AJ117+'Appliance costs'!AJ84+'Appliance costs'!AJ121","v":-804.15145448391513},{"$f":"'Appliance costs'!AK118+'Appliance costs'!AK117+'Appliance costs'!AK84+'Appliance costs'!AK121","v":-1052.5085936864377},{"$f":"'Appliance costs'!AL118+'Appliance costs'!AL117+'Appliance costs'!AL84+'Appliance costs'!AL121","v":-1074.8336441206004},{"$f":"'Appliance costs'!AM118+'Appliance costs'!AM117+'Appliance costs'!AM84+'Appliance costs'!AM121","v":-1006.1557595540544},{"$f":"'Appliance costs'!AN118+'Appliance costs'!AN117+'Appliance costs'!AN84+'Appliance costs'!AN121","v":-927.00903603020424},{"$f":"'Appliance costs'!AO118+'Appliance costs'!AO117+'Appliance costs'!AO84+'Appliance costs'!AO121","v":-856.683551403406},{"$f":"'Appliance costs'!AP118+'Appliance costs'!AP117+'Appliance costs'!AP84+'Appliance costs'!AP121","v":-778.13755404112271},{"$f":"'Appliance costs'!AQ118+'Appliance costs'!AQ117+'Appliance costs'!AQ84+'Appliance costs'!AQ121","v":-693.60191122066567},{"$f":"'Appliance costs'!AR118+'Appliance costs'!AR117+'Appliance costs'!AR84+'Appliance costs'!AR121","v":-599.21997591718923},{"$f":"'Appliance costs'!AS118+'Appliance costs'!AS117+'Appliance costs'!AS84+'Appliance costs'!AS121","v":-495.61673589560928},{"$f":"'Appliance costs'!AT118+'Appliance costs'!AT117+'Appliance costs'!AT84+'Appliance costs'!AT121","v":-373.49157628345984},{"$f":"'Appliance costs'!AU118+'Appliance costs'!AU117+'Appliance costs'!AU84+'Appliance costs'!AU121","v":-236.6227947793368},{"$f":"'Appliance costs'!AV118+'Appliance costs'!AV117+'Appliance costs'!AV84+'Appliance costs'!AV121","v":-80.483638474004238},{"$f":"'Appliance costs'!AW118+'Appliance costs'!AW117+'Appliance costs'!AW84+'Appliance costs'!AW121","v":94.524374239227882},{"$f":"'Appliance costs'!AX118+'Appliance costs'!AX117+'Appliance costs'!AX84+'Appliance costs'!AX121","v":297.55878076749445},{"$f":"'Appliance costs'!AY118+'Appliance costs'!AY117+'Appliance costs'!AY84+'Appliance costs'!AY121","v":525.80014383910748},{"$f":"'Appliance costs'!AZ118+'Appliance costs'!AZ117+'Appliance costs'!AZ84+'Appliance costs'!AZ121","v":787.46164344420436},{"$f":"'Appliance costs'!BA118+'Appliance costs'!BA117+'Appliance costs'!BA84+'Appliance costs'!BA121","v":1088.495255487639},{"$f":"'Appliance costs'!BB118+'Appliance costs'!BB117+'Appliance costs'!BB84+'Appliance costs'!BB121","v":1446.5776459185486},{"$f":"'Appliance costs'!BC118+'Appliance costs'!BC117+'Appliance costs'!BC84+'Appliance costs'!BC121","v":1780.140254816062},{"$f":"'Appliance costs'!BD118+'Appliance costs'!BD117+'Appliance costs'!BD84+'Appliance costs'!BD121","v":2081.0735418553863},{"$f":"'Appliance costs'!BE118+'Appliance costs'!BE117+'Appliance costs'!BE84+'Appliance costs'!BE121","v":2390.150812953696},{"$f":"'Appliance costs'!BF118+'Appliance costs'!BF117+'Appliance costs'!BF84+'Appliance costs'!BF121","v":2744.3909593945777},{"$f":"'Appliance costs'!BG118+'Appliance costs'!BG117+'Appliance costs'!BG84+'Appliance costs'!BG121","v":3162.1495040434502},{"$f":"'Appliance costs'!BH118+'Appliance costs'!BH117+'Appliance costs'!BH84+'Appliance costs'!BH121","v":3770.1160701574081},{"$f":"'Appliance costs'!BI118+'Appliance costs'!BI117+'Appliance costs'!BI84+'Appliance costs'!BI121","v":4646.6236917544993},{"$f":"'Appliance costs'!BJ118+'Appliance costs'!BJ117+'Appliance costs'!BJ84+'Appliance costs'!BJ121","v":5919.7663732592009},{"$f":"'Appliance costs'!BK118+'Appliance costs'!BK117+'Appliance costs'!BK84+'Appliance costs'!BK121","v":-1936.5212881110235},{"$f":"'Appliance costs'!BL118+'Appliance costs'!BL117+'Appliance costs'!BL84+'Appliance costs'!BL121","v":-1934.3992234387213},{"$f":"'Appliance costs'!BM118+'Appliance costs'!BM117+'Appliance costs'!BM84+'Appliance costs'!BM121","v":-1934.5462988516806},{"$f":"'Appliance costs'!BN118+'Appliance costs'!BN117+'Appliance costs'!BN84+'Appliance costs'!BN121","v":-1930.1738626175636},{"$f":"'Appliance costs'!BO118+'Appliance costs'!BO117+'Appliance costs'!BO84+'Appliance costs'!BO121","v":-1928.0704864752759},{"$f":"'Appliance costs'!BP118+'Appliance costs'!BP117+'Appliance costs'!BP84+'Appliance costs'!BP121","v":-1925.973260275917},{"$f":"'Appliance costs'!BQ118+'Appliance costs'!BQ117+'Appliance costs'!BQ84+'Appliance costs'!BQ121","v":-1926.1450151955937},{"$f":"'Appliance costs'!BR118+'Appliance costs'!BR117+'Appliance costs'!BR84+'Appliance costs'!BR121","v":-1921.797100519351},{"$f":"'Appliance costs'!BS118+'Appliance costs'!BS117+'Appliance costs'!BS84+'Appliance costs'!BS121","v":-1919.718088996967},{"$f":"'Appliance costs'!BT118+'Appliance costs'!BT117+'Appliance costs'!BT84+'Appliance costs'!BT121","v":-1917.645071483945},{"$f":"'Appliance costs'!BU118+'Appliance costs'!BU117+'Appliance costs'!BU84+'Appliance costs'!BU121","v":-1917.8408801543655},{"$f":"'Appliance costs'!BV118+'Appliance costs'!BV117+'Appliance costs'!BV84+'Appliance costs'!BV121","v":-1913.5168652848622},{"$f":"'Appliance costs'!BW118+'Appliance costs'!BW117+'Appliance costs'!BW84+'Appliance costs'!BW121","v":-1911.4616006104541},{"$f":"'Appliance costs'!BX118+'Appliance costs'!BX117+'Appliance costs'!BX84+'Appliance costs'!BX121","v":-1909.4121779655804},{"$f":"'Appliance costs'!BY118+'Appliance costs'!BY117+'Appliance costs'!BY84+'Appliance costs'!BY121","v":-1909.6314304969937},{"$f":"'Appliance costs'!BZ118+'Appliance costs'!BZ117+'Appliance costs'!BZ84+'Appliance costs'!BZ121","v":-1905.330709447773},{"$f":"'Appliance costs'!CA118+'Appliance costs'!CA117+'Appliance costs'!CA84+'Appliance costs'!CA121","v":-1903.2985895131976},{"$f":"'Appliance costs'!CB118+'Appliance costs'!CB117+'Appliance costs'!CB84+'Appliance costs'!CB121","v":-1901.2721634818215},{"$f":"'Appliance costs'!CC118+'Appliance costs'!CC117+'Appliance costs'!CC84+'Appliance costs'!CC121","v":-1923.3424353367761}]
[]
["Cooking plus hot water and room heating"]
["High income",null,{"$f":"'Appliance costs'!B103+'Appliance costs'!B104+'Appliance costs'!B105+'Appliance costs'!B84+'Appliance costs'!B85+'Appliance costs'!B107","v":-5177.7947733141445},{"$f":"'Appliance costs'!C103+'Appliance costs'!C104+'Appliance costs'!C105+'Appliance costs'!C84+'Appliance costs'!C85+'Appliance costs'!C107","v":-5597.7550733720054},{"$f":"'Appliance costs'!D103+'Appliance costs'!D104+'Appliance costs'!D105+'Appliance costs'!D84+'Appliance costs'!D85+'Appliance costs'!D107","v":-5393.8795611004816},{"$f":"'Appliance costs'!E103+'Appliance costs'!E104+'Appliance costs'!E105+'Appliance costs'!E84+'Appliance costs'!E85+'Appliance costs'!E107","v":-5280.5760073604433},{"$f":"'Appliance costs'!F103+'Appliance costs'!F104+'Appliance costs'!F105+'Appliance costs'!F84+'Appliance costs'!F85+'Appliance costs'!F107","v":-5501.8243667399256},{"$f":"'Appliance costs'!G103+'Appliance costs'!G104+'Appliance costs'!G105+'Appliance costs'!G84+'Appliance costs'!G85+'Appliance costs'!G107","v":-5740.9698204592305},{"$f":"'Appliance costs'!H103+'Appliance costs'!H104+'Appliance costs'!H105+'Appliance costs'!H84+'Appliance costs'!H85+'Appliance costs'!H107","v":-5413.435901177425},{"$f":"'Appliance costs'!I103+'Appliance costs'!I104+'Appliance costs'!I105+'Appliance costs'!I84+'Appliance costs'!I85+'Appliance costs'!I107","v":-5826.6891275027619},{"$f":"'Appliance costs'!J103+'Appliance costs'!J104+'Appliance costs'!J105+'Appliance costs'!J84+'Appliance costs'!J85+'Appliance costs'!J107","v":-5178.0301489371377},{"$f":"'Appliance costs'!K103+'Appliance costs'!K104+'Appliance costs'!K105+'Appliance costs'!K84+'Appliance costs'!K85+'Appliance costs'!K107","v":-5457.7125024453044},{"$f":"'Appliance costs'!L103+'Appliance costs'!L104+'Appliance costs'!L105+'Appliance costs'!L84+'Appliance costs'!L85+'Appliance costs'!L107","v":-5903.718743288724},{"$f":"'Appliance costs'!M103+'Appliance costs'!M104+'Appliance costs'!M105+'Appliance costs'!M84+'Appliance costs'!M85+'Appliance costs'!M107","v":-5941.836396083103},{"$f":"'Appliance costs'!N103+'Appliance costs'!N104+'Appliance costs'!N105+'Appliance costs'!N84+'Appliance costs'!N85+'Appliance costs'!N107","v":-5498.3727709148752},{"$f":"'Appliance costs'!O103+'Appliance costs'!O104+'Appliance costs'!O105+'Appliance costs'!O84+'Appliance costs'!O85+'Appliance costs'!O107","v":-5151.3307954797219},{"$f":"'Appliance costs'!P103+'Appliance costs'!P104+'Appliance costs'!P105+'Appliance costs'!P84+'Appliance costs'!P85+'Appliance costs'!P107","v":-4630.1337413076235},{"$f":"'Appliance costs'!Q103+'Appliance costs'!Q104+'Appliance costs'!Q105+'Appliance costs'!Q84+'Appliance costs'!Q85+'Appliance costs'!Q107","v":-4333.2117667779485},{"$f":"'Appliance costs'!R103+'Appliance costs'!R104+'Appliance costs'!R105+'Appliance costs'!R84+'Appliance costs'!R85+'Appliance costs'!R107","v":-3854.3718460911132},{"$f":"'Appliance costs'!S103+'Appliance costs'!S104+'Appliance costs'!S105+'Appliance costs'!S84+'Appliance costs'!S85+'Appliance costs'!S107","v":-3612.5700343638928},{"$f":"'Appliance costs'!T103+'Appliance costs'!T104+'Appliance costs'!T105+'Appliance costs'!T84+'Appliance costs'!T85+'Appliance costs'!T107","v":-3321.881294747473},{"$f":"'Appliance costs'!U103+'Appliance costs'!U104+'Appliance costs'!U105+'Appliance costs'!U84+'Appliance costs'!U85+'Appliance costs'!U107","v":-3115.6600246984503},{"$f":"'Appliance costs'!V103+'Appliance costs'!V104+'Appliance costs'!V105+'Appliance costs'!V84+'Appliance costs'!V85+'Appliance costs'!V107","v":-2954.5892379068046},{"$f":"'Appliance costs'!W103+'Appliance costs'!W104+'Appliance costs'!W105+'Appliance costs'!W84+'Appliance costs'!W85+'Appliance costs'!W107","v":-2608.532793690923},{"$f":"'Appliance costs'!X103+'Appliance costs'!X104+'Appliance costs'!X105+'Appliance costs'!X84+'Appliance costs'!X85+'Appliance costs'!X107","v":-2256.1451691599814},{"$f":"'Appliance costs'!Y103+'Appliance costs'!Y104+'Appliance costs'!Y105+'Appliance costs'!Y84+'Appliance costs'!Y85+'Appliance costs'!Y107","v":-2014.1553807090877},{"$f":"'Appliance costs'!Z103+'Appliance costs'!Z104+'Appliance costs'!Z105+'Appliance costs'!Z84+'Appliance costs'!Z85+'Appliance costs'!Z107","v":-1769.4863558629813},{"$f":"'Appliance costs'!AA103+'Appliance costs'!AA104+'Appliance costs'!AA105+'Appliance costs'!AA84+'Appliance costs'!AA85+'Appliance costs'!AA107","v":-1572.763234091241},{"$f":"'Appliance costs'!AB103+'Appliance costs'!AB104+'Appliance costs'!AB105+'Appliance costs'!AB84+'Appliance costs'!AB85+'Appliance costs'!AB107","v":-1381.3606980510708},{"$f":"'Appliance costs'!AC103+'Appliance costs'!AC104+'Appliance costs'!AC105+'Appliance costs'!AC84+'Appliance costs'!AC85+'Appliance costs'!AC107","v":-1205.2955817361189},{"$f":"'Appliance costs'!AD103+'Appliance costs'!AD104+'Appliance costs'!AD105+'Appliance costs'!AD84+'Appliance costs'!AD85+'Appliance costs'!AD107","v":-1016.8216917857092},{"$f":"'Appliance costs'!AE103+'Appliance costs'!AE104+'Appliance costs'!AE105+'Appliance costs'!AE84+'Appliance costs'!AE85+'Appliance costs'!AE107","v":-779.27867779157077},{"$f":"'Appliance costs'!AF103+'Appliance costs'!AF104+'Appliance costs'!AF105+'Appliance costs'!AF84+'Appliance costs'!AF85+'Appliance costs'!AF107","v":-617.67718425475232},{"$f":"'Appliance costs'!AG103+'Appliance costs'!AG104+'Appliance costs'!AG105+'Appliance costs'!AG84+'Appliance costs'!AG85+'Appliance costs'!AG107","v":-397.88151276199096},{"$f":"'Appliance costs'!AH103+'Appliance costs'!AH104+'Appliance costs'!AH105+'Appliance costs'!AH84+'Appliance costs'!AH85+'Appliance costs'!AH107","v":-193.45969652514441},{"$f":"'Appliance costs'!AI103+'Appliance costs'!AI104+'Appliance costs'!AI105+'Appliance costs'!AI84+'Appliance costs'!AI85+'Appliance costs'!AI107","v":-10.36624335579063},{"$f":"'Appliance costs'!AJ103+'Appliance costs'!AJ104+'Appliance costs'!AJ105+'Appliance costs'!AJ84+'Appliance costs'!AJ85+'Appliance costs'!AJ107","v":184.23604710619657},{"$f":"'Appliance costs'!AK103+'Appliance costs'!AK104+'Appliance costs'!AK105+'Appliance costs'!AK84+'Appliance costs'!AK85+'Appliance costs'!AK107","v":-506.48807327601889},{"$f":"'Appliance costs'!AL103+'Appliance costs'!AL104+'Appliance costs'!AL105+'Appliance costs'!AL84+'Appliance costs'!AL85+'Appliance costs'!AL107","v":-586.43126356945572},{"$f":"'Appliance costs'!AM103+'Appliance costs'!AM104+'Appliance costs'!AM105+'Appliance costs'!AM84+'Appliance costs'!AM85+'Appliance costs'!AM107","v":-396.96553701139555},{"$f":"'Appliance costs'!AN103+'Appliance costs'!AN104+'Appliance costs'!AN105+'Appliance costs'!AN84+'Appliance costs'!AN85+'Appliance costs'!AN107","v":-170.22783158497805},{"$f":"'Appliance costs'!AO103+'Appliance costs'!AO104+'Appliance costs'!AO105+'Appliance costs'!AO84+'Appliance costs'!AO85+'Appliance costs'!AO107","v":36.337380244020551},{"$f":"'Appliance costs'!AP103+'Appliance costs'!AP104+'Appliance costs'!AP105+'Appliance costs'!AP84+'Appliance costs'!AP85+'Appliance costs'!AP107","v":261.67341930106022},{"$f":"'Appliance costs'!AQ103+'Appliance costs'!AQ104+'Appliance costs'!AQ105+'Appliance costs'!AQ84+'Appliance costs'!AQ85+'Appliance costs'!AQ107","v":507.34096777401169},{"$f":"'Appliance costs'!AR103+'Appliance costs'!AR104+'Appliance costs'!AR105+'Appliance costs'!AR84+'Appliance costs'!AR85+'Appliance costs'!AR107","v":782.53828161859064},{"$f":"'Appliance costs'!AS103+'Appliance costs'!AS104+'Appliance costs'!AS105+'Appliance costs'!AS84+'Appliance costs'!AS85+'Appliance costs'!AS107","v":1088.3499635209578},{"$f":"'Appliance costs'!AT103+'Appliance costs'!AT104+'Appliance costs'!AT105+'Appliance costs'!AT84+'Appliance costs'!AT85+'Appliance costs'!AT107","v":1444.5075766065797},{"$f":"'Appliance costs'!AU103+'Appliance costs'!AU104+'Appliance costs'!AU105+'Appliance costs'!AU84+'Appliance costs'!AU85+'Appliance costs'!AU107","v":1848.274589802927},{"$f":"'Appliance costs'!AV103+'Appliance costs'!AV104+'Appliance costs'!AV105+'Appliance costs'!AV84+'Appliance costs'!AV85+'Appliance costs'!AV107","v":2311.1759467942661},{"$f":"'Appliance costs'!AW103+'Appliance costs'!AW104+'Appliance costs'!AW105+'Appliance costs'!AW84+'Appliance costs'!AW85+'Appliance costs'!AW107","v":2835.7320513890413},{"$f":"'Appliance costs'!AX103+'Appliance costs'!AX104+'Appliance costs'!AX105+'Appliance costs'!AX84+'Appliance costs'!AX85+'Appliance costs'!AX107","v":3442.1537707335669},{"$f":"'Appliance costs'!AY103+'Appliance costs'!AY104+'Appliance costs'!AY105+'Appliance costs'!AY84+'Appliance costs'!AY85+'Appliance costs'!AY107","v":4131.4417319804652},{"$f":"'Appliance costs'!AZ103+'Appliance costs'!AZ104+'Appliance costs'!AZ105+'Appliance costs'!AZ84+'Appliance costs'!AZ85+'Appliance costs'!AZ107","v":4926.9877362629231},{"$f":"'Appliance costs'!BA103+'Appliance costs'!BA104+'Appliance costs'!BA105+'Appliance costs'!BA84+'Appliance costs'!BA85+'Appliance costs'!BA107","v":5851.6656615703378},{"$f":"'Appliance costs'!BB103+'Appliance costs'!BB104+'Appliance costs'!BB105+'Appliance costs'!BB84+'Appliance costs'!BB85+'Appliance costs'!BB107","v":6953.4542641809585},{"$f":"'Appliance costs'!BC103+'Appliance costs'!BC104+'Appliance costs'!BC105+'Appliance costs'!BC84+'Appliance costs'!BC85+'Appliance costs'!BC107","v":8004.1481339906768},{"$f":"'Appliance costs'!BD103+'Appliance costs'!BD104+'Appliance costs'!BD105+'Appliance costs'!BD84+'Appliance costs'!BD85+'Appliance costs'!BD107","v":8960.4296636060408},{"$f":"'Appliance costs'!BE103+'Appliance costs'!BE104+'Appliance costs'!BE105+'Appliance costs'!BE84+'Appliance costs'!BE85+'Appliance costs'!BE107","v":9940.0850417859401},{"$f":"'Appliance costs'!BF103+'Appliance costs'!BF104+'Appliance costs'!BF105+'Appliance costs'!BF84+'Appliance costs'!BF85+'Appliance costs'!BF107","v":11053.403044138753},{"$f":"'Appliance costs'!BG103+'Appliance costs'!BG104+'Appliance costs'!BG105+'Appliance costs'!BG84+'Appliance costs'!BG85+'Appliance costs'!BG107","v":12372.183947011288},{"$f":"'Appliance costs'!BH103+'Appliance costs'!BH104+'Appliance costs'!BH105+'Appliance costs'!BH84+'Appliance costs'!BH85+'Appliance costs'!BH107","v":14285.861329512256},{"$f":"'Appliance costs'!BI103+'Appliance costs'!BI104+'Appliance costs'!BI105+'Appliance costs'!BI84+'Appliance costs'!BI85+'Appliance costs'!BI107","v":17074.357685634986},{"$f":"'Appliance costs'!BJ103+'Appliance costs'!BJ104+'Appliance costs'!BJ105+'Appliance costs'!BJ84+'Appliance costs'!BJ85+'Appliance costs'!BJ107","v":21168.746511876336},{"$f":"'Appliance costs'!BK103+'Appliance costs'!BK104+'Appliance costs'!BK105+'Appliance costs'!BK84+'Appliance costs'!BK85+'Appliance costs'!BK107","v":-3011.0545607452423},{"$f":"'Appliance costs'!BL103+'Appliance costs'!BL104+'Appliance costs'!BL105+'Appliance costs'!BL84+'Appliance costs'!BL85+'Appliance costs'!BL107","v":-3005.4787273675092},{"$f":"'Appliance costs'!BM103+'Appliance costs'!BM104+'Appliance costs'!BM105+'Appliance costs'!BM84+'Appliance costs'!BM85+'Appliance costs'!BM107","v":-3003.9362459066642},{"$f":"'Appliance costs'!BN103+'Appliance costs'!BN104+'Appliance costs'!BN105+'Appliance costs'!BN84+'Appliance costs'!BN85+'Appliance costs'!BN107","v":-2994.3604212937016},{"$f":"'Appliance costs'!BO103+'Appliance costs'!BO104+'Appliance costs'!BO105+'Appliance costs'!BO84+'Appliance costs'!BO85+'Appliance costs'!BO107","v":-2988.8178064108715},{"$f":"'Appliance costs'!BP103+'Appliance costs'!BP104+'Appliance costs'!BP105+'Appliance costs'!BP84+'Appliance costs'!BP85+'Appliance costs'!BP107","v":-2983.2861229307628},{"$f":"'Appliance costs'!BQ103+'Appliance costs'!BQ104+'Appliance costs'!BQ105+'Appliance costs'!BQ84+'Appliance costs'!BQ85+'Appliance costs'!BQ107","v":-2981.7875088081983},{"$f":"'Appliance costs'!BR103+'Appliance costs'!BR104+'Appliance costs'!BR105+'Appliance costs'!BR84+'Appliance costs'!BR85+'Appliance costs'!BR107","v":-2972.2552707825516},{"$f":"'Appliance costs'!BS103+'Appliance costs'!BS104+'Appliance costs'!BS105+'Appliance costs'!BS84+'Appliance costs'!BS85+'Appliance costs'!BS107","v":-2966.755963532878},{"$f":"'Appliance costs'!BT103+'Appliance costs'!BT104+'Appliance costs'!BT105+'Appliance costs'!BT84+'Appliance costs'!BT85+'Appliance costs'!BT107","v":-2961.2673105170734},{"$f":"'Appliance costs'!BU103+'Appliance costs'!BU104+'Appliance costs'!BU105+'Appliance costs'!BU84+'Appliance costs'!BU85+'Appliance costs'!BU107","v":-2959.8114514638428},{"$f":"'Appliance costs'!BV103+'Appliance costs'!BV104+'Appliance costs'!BV105+'Appliance costs'!BV84+'Appliance costs'!BV85+'Appliance costs'!BV107","v":-2950.3216948750842},{"$f":"'Appliance costs'!BW103+'Appliance costs'!BW104+'Appliance costs'!BW105+'Appliance costs'!BW84+'Appliance costs'!BW85+'Appliance costs'!BW107","v":-2944.8645971811038},{"$f":"'Appliance costs'!BX103+'Appliance costs'!BX104+'Appliance costs'!BX105+'Appliance costs'!BX84+'Appliance costs'!BX85+'Appliance costs'!BX107","v":-2939.4178835798357},{"$f":"'Appliance costs'!BY103+'Appliance costs'!BY104+'Appliance costs'!BY105+'Appliance costs'!BY84+'Appliance costs'!BY85+'Appliance costs'!BY107","v":-2938.0036955288879},{"$f":"'Appliance costs'!BZ103+'Appliance costs'!BZ104+'Appliance costs'!BZ105+'Appliance costs'!BZ84+'Appliance costs'!BZ85+'Appliance costs'!BZ107","v":-2928.5553432479974},{"$f":"'Appliance costs'!CA103+'Appliance costs'!CA104+'Appliance costs'!CA105+'Appliance costs'!CA84+'Appliance costs'!CA85+'Appliance costs'!CA107","v":-2923.1393848743164},{"$f":"'Appliance costs'!CB103+'Appliance costs'!CB104+'Appliance costs'!CB105+'Appliance costs'!CB84+'Appliance costs'!CB85+'Appliance costs'!CB107","v":-2917.7335473016974},{"$f":"'Appliance costs'!CC103+'Appliance costs'!CC104+'Appliance costs'!CC105+'Appliance costs'!CC84+'Appliance costs'!CC85+'Appliance costs'!CC107","v":-2993.1984567279706}]
["Medium income",null,{"$f":"'Appliance costs'!B110+'Appliance costs'!B111+'Appliance costs'!B112+'Appliance costs'!B84+'Appliance costs'!B85+'Appliance costs'!B114","v":-5422.257010723376},{"$f":"'Appliance costs'!C110+'Appliance costs'!C111+'Appliance costs'!C112+'Appliance costs'!C84+'Appliance costs'!C85+'Appliance costs'!C114","v":-5771.0315524990256},{"$f":"'Appliance costs'!D110+'Appliance costs'!D111+'Appliance costs'!D112+'Appliance costs'!D84+'Appliance costs'!D85+'Appliance costs'!D114","v":-5474.1521918166145},{"$f":"'Appliance costs'!E110+'Appliance costs'!E111+'Appliance costs'!E112+'Appliance costs'!E84+'Appliance costs'!E85+'Appliance costs'!E114","v":-5380.0542615318},{"$f":"'Appliance costs'!F110+'Appliance costs'!F111+'Appliance costs'!F112+'Appliance costs'!F84+'Appliance costs'!F85+'Appliance costs'!F114","v":-5563.7997135437199},{"$f":"'Appliance costs'!G110+'Appliance costs'!G111+'Appliance costs'!G112+'Appliance costs'!G84+'Appliance costs'!G85+'Appliance costs'!G114","v":-5803.0900179190758},{"$f":"'Appliance costs'!H110+'Appliance costs'!H111+'Appliance costs'!H112+'Appliance costs'!H84+'Appliance costs'!H85+'Appliance costs'!H114","v":-5531.0750379370256},{"$f":"'Appliance costs'!I110+'Appliance costs'!I111+'Appliance costs'!I112+'Appliance costs'!I84+'Appliance costs'!I85+'Appliance costs'!I114","v":-5952.4868947071154},{"$f":"'Appliance costs'!J110+'Appliance costs'!J111+'Appliance costs'!J112+'Appliance costs'!J84+'Appliance costs'!J85+'Appliance costs'!J114","v":-5371.0604433949884},{"$f":"'Appliance costs'!K110+'Appliance costs'!K111+'Appliance costs'!K112+'Appliance costs'!K84+'Appliance costs'!K85+'Appliance costs'!K114","v":-5594.9189078810814},{"$f":"'Appliance costs'!L110+'Appliance costs'!L111+'Appliance costs'!L112+'Appliance costs'!L84+'Appliance costs'!L85+'Appliance costs'!L114","v":-5956.9504560314172},{"$f":"'Appliance costs'!M110+'Appliance costs'!M111+'Appliance costs'!M112+'Appliance costs'!M84+'Appliance costs'!M85+'Appliance costs'!M114","v":-5980.2748176946361},{"$f":"'Appliance costs'!N110+'Appliance costs'!N111+'Appliance costs'!N112+'Appliance costs'!N84+'Appliance costs'!N85+'Appliance costs'!N114","v":-5603.6904410290645},{"$f":"'Appliance costs'!O110+'Appliance costs'!O111+'Appliance costs'!O112+'Appliance costs'!O84+'Appliance costs'!O85+'Appliance costs'!O114","v":-5307.2251256749223},{"$f":"'Appliance costs'!P110+'Appliance costs'!P111+'Appliance costs'!P112+'Appliance costs'!P84+'Appliance costs'!P85+'Appliance costs'!P114","v":-4866.1662940006727},{"$f":"'Appliance costs'!Q110+'Appliance costs'!Q111+'Appliance costs'!Q112+'Appliance costs'!Q84+'Appliance costs'!Q85+'Appliance costs'!Q114","v":-4611.4076264156292},{"$f":"'Appliance costs'!R110+'Appliance costs'!R111+'Appliance costs'!R112+'Appliance costs'!R84+'Appliance costs'!R85+'Appliance costs'!R114","v":-4205.6080156780208},{"$f":"'Appliance costs'!S110+'Appliance costs'!S111+'Appliance costs'!S112+'Appliance costs'!S84+'Appliance costs'!S85+'Appliance costs'!S114","v":-3996.7077799199069},{"$f":"'Appliance costs'!T110+'Appliance costs'!T111+'Appliance costs'!T112+'Appliance costs'!T84+'Appliance costs'!T85+'Appliance costs'!T114","v":-3747.2476664233463},{"$f":"'Appliance costs'!U110+'Appliance costs'!U111+'Appliance costs'!U112+'Appliance costs'!U84+'Appliance costs'!U85+'Appliance costs'!U114","v":-3567.9775102871436},{"$f":"'Appliance costs'!V110+'Appliance costs'!V111+'Appliance costs'!V112+'Appliance costs'!V84+'Appliance costs'!V85+'Appliance costs'!V114","v":-3426.2445861341862},{"$f":"'Appliance costs'!W110+'Appliance costs'!W111+'Appliance costs'!W112+'Appliance costs'!W84+'Appliance costs'!W85+'Appliance costs'!W114","v":-3130.9219921080862},{"$f":"'Appliance costs'!X110+'Appliance costs'!X111+'Appliance costs'!X112+'Appliance costs'!X84+'Appliance costs'!X85+'Appliance costs'!X114","v":-2830.3810141638478},{"$f":"'Appliance costs'!Y110+'Appliance costs'!Y111+'Appliance costs'!Y112+'Appliance costs'!Y84+'Appliance costs'!Y85+'Appliance costs'!Y114","v":-2621.5642109131577},{"$f":"'Appliance costs'!Z110+'Appliance costs'!Z111+'Appliance costs'!Z112+'Appliance costs'!Z84+'Appliance costs'!Z85+'Appliance costs'!Z114","v":-2410.5615462915766},{"$f":"'Appliance costs'!AA110+'Appliance costs'!AA111+'Appliance costs'!AA112+'Appliance costs'!AA84+'Appliance costs'!AA85+'Appliance costs'!AA114","v":-2239.4167026332543},{"$f":"'Appliance costs'!AB110+'Appliance costs'!AB111+'Appliance costs'!AB112+'Appliance costs'!AB84+'Appliance costs'!AB85+'Appliance costs'!AB114","v":-2072.7294111922852},{"$f":"'Appliance costs'!AC110+'Appliance costs'!AC111+'Appliance costs'!AC112+'Appliance costs'!AC84+'Appliance costs'!AC85+'Appliance costs'!AC114","v":-1918.8183990843418},{"$f":"'Appliance costs'!AD110+'Appliance costs'!AD111+'Appliance costs'!AD112+'Appliance costs'!AD84+'Appliance costs'!AD85+'Appliance costs'!AD114","v":-1754.6404238484492},{"$f":"'Appliance costs'!AE110+'Appliance costs'!AE111+'Appliance costs'!AE112+'Appliance costs'!AE84+'Appliance costs'!AE85+'Appliance costs'!AE114","v":-1549.7490893601848},{"$f":"'Appliance costs'!AF110+'Appliance costs'!AF111+'Appliance costs'!AF112+'Appliance costs'!AF84+'Appliance costs'!AF85+'Appliance costs'!AF114","v":-1415.5400061425582},{"$f":"'Appliance costs'!AG110+'Appliance costs'!AG111+'Appliance costs'!AG112+'Appliance costs'!AG84+'Appliance costs'!AG85+'Appliance costs'!AG114","v":-1233.0010028162978},{"$f":"'Appliance costs'!AH110+'Appliance costs'!AH111+'Appliance costs'!AH112+'Appliance costs'!AH84+'Appliance costs'!AH85+'Appliance costs'!AH114","v":-1063.2298952208191},{"$f":"'Appliance costs'!AI110+'Appliance costs'!AI111+'Appliance costs'!AI112+'Appliance costs'!AI84+'Appliance costs'!AI85+'Appliance costs'!AI114","v":-911.17186682512397},{"$f":"'Appliance costs'!AJ110+'Appliance costs'!AJ111+'Appliance costs'!AJ112+'Appliance costs'!AJ84+'Appliance costs'!AJ85+'Appliance costs'!AJ114","v":-749.5558172246715},{"$f":"'Appliance costs'!AK110+'Appliance costs'!AK111+'Appliance costs'!AK112+'Appliance costs'!AK84+'Appliance costs'!AK85+'Appliance costs'!AK114","v":-1323.1981080471751},{"$f":"'Appliance costs'!AL110+'Appliance costs'!AL111+'Appliance costs'!AL112+'Appliance costs'!AL84+'Appliance costs'!AL85+'Appliance costs'!AL114","v":-1389.5904540828249},{"$f":"'Appliance costs'!AM110+'Appliance costs'!AM111+'Appliance costs'!AM112+'Appliance costs'!AM84+'Appliance costs'!AM85+'Appliance costs'!AM114","v":-1232.2402903807472},{"$f":"'Appliance costs'!AN110+'Appliance costs'!AN111+'Appliance costs'!AN112+'Appliance costs'!AN84+'Appliance costs'!AN85+'Appliance costs'!AN114","v":-1043.935968990211},{"$f":"'Appliance costs'!AO110+'Appliance costs'!AO111+'Appliance costs'!AO112+'Appliance costs'!AO84+'Appliance costs'!AO85+'Appliance costs'!AO114","v":-872.38478405077035},{"$f":"'Appliance costs'!AP110+'Appliance costs'!AP111+'Appliance costs'!AP112+'Appliance costs'!AP84+'Appliance costs'!AP85+'Appliance costs'!AP114","v":-685.24453827794059},{"$f":"'Appliance costs'!AQ110+'Appliance costs'!AQ111+'Appliance costs'!AQ112+'Appliance costs'!AQ84+'Appliance costs'!AQ85+'Appliance costs'!AQ114","v":-481.21909435860834},{"$f":"'Appliance costs'!AR110+'Appliance costs'!AR111+'Appliance costs'!AR112+'Appliance costs'!AR84+'Appliance costs'!AR85+'Appliance costs'!AR114","v":-252.66935520276661},{"$f":"'Appliance costs'!AS110+'Appliance costs'!AS111+'Appliance costs'!AS112+'Appliance costs'!AS84+'Appliance costs'!AS85+'Appliance costs'!AS114","v":1.3054352963449674},{"$f":"'Appliance costs'!AT110+'Appliance costs'!AT111+'Appliance costs'!AT112+'Appliance costs'!AT84+'Appliance costs'!AT85+'Appliance costs'!AT114","v":297.09222344449358},{"$f":"'Appliance costs'!AU110+'Appliance costs'!AU111+'Appliance costs'!AU112+'Appliance costs'!AU84+'Appliance costs'!AU85+'Appliance costs'!AU114","v":632.41833639440119},{"$f":"'Appliance costs'!AV110+'Appliance costs'!AV111+'Appliance costs'!AV112+'Appliance costs'!AV84+'Appliance costs'!AV85+'Appliance costs'!AV114","v":1016.8551716136769},{"$f":"'Appliance costs'!AW110+'Appliance costs'!AW111+'Appliance costs'!AW112+'Appliance costs'!AW84+'Appliance costs'!AW85+'Appliance costs'!AW114","v":1452.4959095368968},{"$f":"'Appliance costs'!AX110+'Appliance costs'!AX111+'Appliance costs'!AX112+'Appliance costs'!AX84+'Appliance costs'!AX85+'Appliance costs'!AX114","v":1956.1255556202259},{"$f":"'Appliance costs'!AY110+'Appliance costs'!AY111+'Appliance costs'!AY112+'Appliance costs'!AY84+'Appliance costs'!AY85+'Appliance costs'!AY114","v":2528.575124787209},{"$f":"'Appliance costs'!AZ110+'Appliance costs'!AZ111+'Appliance costs'!AZ112+'Appliance costs'!AZ84+'Appliance costs'!AZ85+'Appliance costs'!AZ114","v":3189.2713693294586},{"$f":"'Appliance costs'!BA110+'Appliance costs'!BA111+'Appliance costs'!BA112+'Appliance costs'!BA84+'Appliance costs'!BA85+'Appliance costs'!BA114","v":3957.2109094353195},{"$f":"'Appliance costs'!BB110+'Appliance costs'!BB111+'Appliance costs'!BB112+'Appliance costs'!BB84+'Appliance costs'!BB85+'Appliance costs'!BB114","v":4872.2398180159862},{"$f":"'Appliance costs'!BC110+'Appliance costs'!BC111+'Appliance costs'!BC112+'Appliance costs'!BC84+'Appliance costs'!BC85+'Appliance costs'!BC114","v":5744.8348536393078},{"$f":"'Appliance costs'!BD110+'Appliance costs'!BD111+'Appliance costs'!BD112+'Appliance costs'!BD84+'Appliance costs'!BD85+'Appliance costs'!BD114","v":6539.020999934959},{"$f":"'Appliance costs'!BE110+'Appliance costs'!BE111+'Appliance costs'!BE112+'Appliance costs'!BE84+'Appliance costs'!BE85+'Appliance costs'!BE114","v":7352.6189890202877},{"$f":"'Appliance costs'!BF110+'Appliance costs'!BF111+'Appliance costs'!BF112+'Appliance costs'!BF84+'Appliance costs'!BF85+'Appliance costs'!BF114","v":8277.2229957982781},{"$f":"'Appliance costs'!BG110+'Appliance costs'!BG111+'Appliance costs'!BG112+'Appliance costs'!BG84+'Appliance costs'!BG85+'Appliance costs'!BG114","v":9372.4627245023403},{"$f":"'Appliance costs'!BH110+'Appliance costs'!BH111+'Appliance costs'!BH112+'Appliance costs'!BH84+'Appliance costs'!BH85+'Appliance costs'!BH114","v":10961.760455969445},{"$f":"'Appliance costs'!BI110+'Appliance costs'!BI111+'Appliance costs'!BI112+'Appliance costs'!BI84+'Appliance costs'!BI85+'Appliance costs'!BI114","v":13277.590163481753},{"$f":"'Appliance costs'!BJ110+'Appliance costs'!BJ111+'Appliance costs'!BJ112+'Appliance costs'!BJ84+'Appliance costs'!BJ85+'Appliance costs'!BJ114","v":16677.95583263411},{"$f":"'Appliance costs'!BK110+'Appliance costs'!BK111+'Appliance costs'!BK112+'Appliance costs'!BK84+'Appliance costs'!BK85+'Appliance costs'!BK114","v":-3403.2257413576999},{"$f":"'Appliance costs'!BL110+'Appliance costs'!BL111+'Appliance costs'!BL112+'Appliance costs'!BL84+'Appliance costs'!BL85+'Appliance costs'!BL114","v":-3398.5950447631203},{"$f":"'Appliance costs'!BM110+'Appliance costs'!BM111+'Appliance costs'!BM112+'Appliance costs'!BM84+'Appliance costs'!BM85+'Appliance costs'!BM114","v":-3397.3140230459985},{"$f":"'Appliance costs'!BN110+'Appliance costs'!BN111+'Appliance costs'!BN112+'Appliance costs'!BN84+'Appliance costs'!BN85+'Appliance costs'!BN114","v":-3389.3613574224855},{"$f":"'Appliance costs'!BO110+'Appliance costs'!BO111+'Appliance costs'!BO112+'Appliance costs'!BO84+'Appliance costs'!BO85+'Appliance costs'!BO114","v":-3384.7582485911707},{"$f":"'Appliance costs'!BP110+'Appliance costs'!BP111+'Appliance costs'!BP112+'Appliance costs'!BP84+'Appliance costs'!BP85+'Appliance costs'!BP114","v":-3380.1642182250689},{"$f":"'Appliance costs'!BQ110+'Appliance costs'!BQ111+'Appliance costs'!BQ112+'Appliance costs'!BQ84+'Appliance costs'!BQ85+'Appliance costs'!BQ114","v":-3378.9196280725628},{"$f":"'Appliance costs'!BR110+'Appliance costs'!BR111+'Appliance costs'!BR112+'Appliance costs'!BR84+'Appliance costs'!BR85+'Appliance costs'!BR114","v":-3371.0031608516529},{"$f":"'Appliance costs'!BS110+'Appliance costs'!BS111+'Appliance costs'!BS112+'Appliance costs'!BS84+'Appliance costs'!BS85+'Appliance costs'!BS114","v":-3366.4360187531638},{"$f":"'Appliance costs'!BT110+'Appliance costs'!BT111+'Appliance costs'!BT112+'Appliance costs'!BT84+'Appliance costs'!BT85+'Appliance costs'!BT114","v":-3361.8777249327977},{"$f":"'Appliance costs'!BU110+'Appliance costs'!BU111+'Appliance costs'!BU112+'Appliance costs'!BU84+'Appliance costs'!BU85+'Appliance costs'!BU114","v":-3360.668642612135},{"$f":"'Appliance costs'!BV110+'Appliance costs'!BV111+'Appliance costs'!BV112+'Appliance costs'!BV84+'Appliance costs'!BV85+'Appliance costs'!BV114","v":-3352.7874559729426},{"$f":"'Appliance costs'!BW110+'Appliance costs'!BW111+'Appliance costs'!BW112+'Appliance costs'!BW84+'Appliance costs'!BW85+'Appliance costs'!BW114","v":-3348.2553686604497},{"$f":"'Appliance costs'!BX110+'Appliance costs'!BX111+'Appliance costs'!BX112+'Appliance costs'!BX84+'Appliance costs'!BX85+'Appliance costs'!BX114","v":-3343.7319052754501},{"$f":"'Appliance costs'!BY110+'Appliance costs'!BY111+'Appliance costs'!BY112+'Appliance costs'!BY84+'Appliance costs'!BY85+'Appliance costs'!BY114","v":-3342.5574304753654},{"$f":"'Appliance costs'!BZ110+'Appliance costs'!BZ111+'Appliance costs'!BZ112+'Appliance costs'!BZ84+'Appliance costs'!BZ85+'Appliance costs'!BZ114","v":-3334.7106298686213},{"$f":"'Appliance costs'!CA110+'Appliance costs'!CA111+'Appliance costs'!CA112+'Appliance costs'!CA84+'Appliance costs'!CA85+'Appliance costs'!CA114","v":-3330.2127085179691},{"$f":"'Appliance costs'!CB110+'Appliance costs'!CB111+'Appliance costs'!CB112+'Appliance costs'!CB84+'Appliance costs'!CB85+'Appliance costs'!CB114","v":-3325.7231924326534},{"$f":"'Appliance costs'!CC110+'Appliance costs'!CC111+'Appliance costs'!CC112+'Appliance costs'!CC84+'Appliance costs'!CC85+'Appliance costs'!CC114","v":-3388.3963527329552}]
["Low income",null,{"$f":"'Appliance costs'!B117+'Appliance costs'!B118+'Appliance costs'!B119+'Appliance costs'!B84+'Appliance costs'!B85+'Appliance costs'!B121","v":-5808.6235809942518},{"$f":"'Appliance costs'!C117+'Appliance costs'!C118+'Appliance costs'!C119+'Appliance costs'!C84+'Appliance costs'!C85+'Appliance costs'!C121","v":-6044.8907777864415},{"$f":"'Appliance costs'!D117+'Appliance costs'!D118+'Appliance costs'!D119+'Appliance costs'!D84+'Appliance costs'!D85+'Appliance costs'!D121","v":-5601.0211158070879},{"$f":"'Appliance costs'!E117+'Appliance costs'!E118+'Appliance costs'!E119+'Appliance costs'!E84+'Appliance costs'!E85+'Appliance costs'!E121","v":-5537.2772023346388},{"$f":"'Appliance costs'!F117+'Appliance costs'!F118+'Appliance costs'!F119+'Appliance costs'!F84+'Appliance costs'!F85+'Appliance costs'!F121","v":-5661.750229090404},{"$f":"'Appliance costs'!G117+'Appliance costs'!G118+'Appliance costs'!G119+'Appliance costs'!G84+'Appliance costs'!G85+'Appliance costs'!G121","v":-5901.2694663748789},{"$f":"'Appliance costs'!H117+'Appliance costs'!H118+'Appliance costs'!H119+'Appliance costs'!H84+'Appliance costs'!H85+'Appliance costs'!H121","v":-5717.0008082364538},{"$f":"'Appliance costs'!I117+'Appliance costs'!I118+'Appliance costs'!I119+'Appliance costs'!I84+'Appliance costs'!I85+'Appliance costs'!I121","v":-6151.3071803167759},{"$f":"'Appliance costs'!J117+'Appliance costs'!J118+'Appliance costs'!J119+'Appliance costs'!J84+'Appliance costs'!J85+'Appliance costs'!J121","v":-5676.1400893086002},{"$f":"'Appliance costs'!K117+'Appliance costs'!K118+'Appliance costs'!K119+'Appliance costs'!K84+'Appliance costs'!K85+'Appliance costs'!K121","v":-5811.7702663944792},{"$f":"'Appliance costs'!L117+'Appliance costs'!L118+'Appliance costs'!L119+'Appliance costs'!L84+'Appliance costs'!L85+'Appliance costs'!L121","v":-6041.0818724006858},{"$f":"'Appliance costs'!M117+'Appliance costs'!M118+'Appliance costs'!M119+'Appliance costs'!M84+'Appliance costs'!M85+'Appliance costs'!M121","v":-6041.0258002679202},{"$f":"'Appliance costs'!N117+'Appliance costs'!N118+'Appliance costs'!N119+'Appliance costs'!N84+'Appliance costs'!N85+'Appliance costs'!N121","v":-5770.1424355055005},{"$f":"'Appliance costs'!O117+'Appliance costs'!O118+'Appliance costs'!O119+'Appliance costs'!O84+'Appliance costs'!O85+'Appliance costs'!O121","v":-5553.6122909096284},{"$f":"'Appliance costs'!P117+'Appliance costs'!P118+'Appliance costs'!P119+'Appliance costs'!P84+'Appliance costs'!P85+'Appliance costs'!P121","v":-5239.2099543335053},{"$f":"'Appliance costs'!Q117+'Appliance costs'!Q118+'Appliance costs'!Q119+'Appliance costs'!Q84+'Appliance costs'!Q85+'Appliance costs'!Q121","v":-5051.0893592299981},{"$f":"'Appliance costs'!R117+'Appliance costs'!R118+'Appliance costs'!R119+'Appliance costs'!R84+'Appliance costs'!R85+'Appliance costs'!R121","v":-4760.7281668987634},{"$f":"'Appliance costs'!S117+'Appliance costs'!S118+'Appliance costs'!S119+'Appliance costs'!S84+'Appliance costs'!S85+'Appliance costs'!S121","v":-4603.8280649789467},{"$f":"'Appliance costs'!T117+'Appliance costs'!T118+'Appliance costs'!T119+'Appliance costs'!T84+'Appliance costs'!T85+'Appliance costs'!T121","v":-4419.5287838454014},{"$f":"'Appliance costs'!U117+'Appliance costs'!U118+'Appliance costs'!U119+'Appliance costs'!U84+'Appliance costs'!U85+'Appliance costs'!U121","v":-4282.8542022152324},{"$f":"'Appliance costs'!V117+'Appliance costs'!V118+'Appliance costs'!V119+'Appliance costs'!V84+'Appliance costs'!V85+'Appliance costs'!V121","v":-4171.6842956606579},{"$f":"'Appliance costs'!W117+'Appliance costs'!W118+'Appliance costs'!W119+'Appliance costs'!W84+'Appliance costs'!W85+'Appliance costs'!W121","v":-3956.5453075043206},{"$f":"'Appliance costs'!X117+'Appliance costs'!X118+'Appliance costs'!X119+'Appliance costs'!X84+'Appliance costs'!X85+'Appliance costs'!X121","v":-3737.9466828414938},{"$f":"'Appliance costs'!Y117+'Appliance costs'!Y118+'Appliance costs'!Y119+'Appliance costs'!Y84+'Appliance costs'!Y85+'Appliance costs'!Y121","v":-3581.5589690619663},{"$f":"'Appliance costs'!Z117+'Appliance costs'!Z118+'Appliance costs'!Z119+'Appliance costs'!Z84+'Appliance costs'!Z85+'Appliance costs'!Z121","v":-3423.7651610364201},{"$f":"'Appliance costs'!AA117+'Appliance costs'!AA118+'Appliance costs'!AA119+'Appliance costs'!AA84+'Appliance costs'!AA85+'Appliance costs'!AA121","v":-3293.046158574879},{"$f":"'Appliance costs'!AB117+'Appliance costs'!AB118+'Appliance costs'!AB119+'Appliance costs'!AB84+'Appliance costs'!AB85+'Appliance costs'!AB121","v":-3165.4207050292002},{"$f":"'Appliance costs'!AC117+'Appliance costs'!AC118+'Appliance costs'!AC119+'Appliance costs'!AC84+'Appliance costs'!AC85+'Appliance costs'!AC121","v":-3046.5237112440814},{"$f":"'Appliance costs'!AD117+'Appliance costs'!AD118+'Appliance costs'!AD119+'Appliance costs'!AD84+'Appliance costs'!AD85+'Appliance costs'!AD121","v":-2920.7448333056891},{"$f":"'Appliance costs'!AE117+'Appliance costs'!AE118+'Appliance costs'!AE119+'Appliance costs'!AE84+'Appliance costs'!AE85+'Appliance costs'!AE121","v":-2767.4586774248255},{"$f":"'Appliance costs'!AF117+'Appliance costs'!AF118+'Appliance costs'!AF119+'Appliance costs'!AF84+'Appliance costs'!AF85+'Appliance costs'!AF121","v":-2676.5426268597716},{"$f":"'Appliance costs'!AG117+'Appliance costs'!AG118+'Appliance costs'!AG119+'Appliance costs'!AG84+'Appliance costs'!AG85+'Appliance costs'!AG121","v":-2552.8868737719276},{"$f":"'Appliance costs'!AH117+'Appliance costs'!AH118+'Appliance costs'!AH119+'Appliance costs'!AH84+'Appliance costs'!AH85+'Appliance costs'!AH121","v":-2437.8803613020732},{"$f":"'Appliance costs'!AI117+'Appliance costs'!AI118+'Appliance costs'!AI119+'Appliance costs'!AI84+'Appliance costs'!AI85+'Appliance costs'!AI121","v":-2334.8730605515848},{"$f":"'Appliance costs'!AJ117+'Appliance costs'!AJ118+'Appliance costs'!AJ119+'Appliance costs'!AJ84+'Appliance costs'!AJ85+'Appliance costs'!AJ121","v":-2225.3909555753307},{"$f":"'Appliance costs'!AK117+'Appliance costs'!AK118+'Appliance costs'!AK119+'Appliance costs'!AK84+'Appliance costs'!AK85+'Appliance costs'!AK121","v":-2613.9882864586871},{"$f":"'Appliance costs'!AL117+'Appliance costs'!AL118+'Appliance costs'!AL119+'Appliance costs'!AL84+'Appliance costs'!AL85+'Appliance costs'!AL121","v":-2658.9638555080764},{"$f":"'Appliance costs'!AM117+'Appliance costs'!AM118+'Appliance costs'!AM119+'Appliance costs'!AM84+'Appliance costs'!AM85+'Appliance costs'!AM121","v":-2552.3715511976429},{"$f":"'Appliance costs'!AN117+'Appliance costs'!AN118+'Appliance costs'!AN119+'Appliance costs'!AN84+'Appliance costs'!AN85+'Appliance costs'!AN121","v":-2424.8102506156297},{"$f":"'Appliance costs'!AO117+'Appliance costs'!AO118+'Appliance costs'!AO119+'Appliance costs'!AO84+'Appliance costs'!AO85+'Appliance costs'!AO121","v":-2308.5978763819271},{"$f":"'Appliance costs'!AP117+'Appliance costs'!AP118+'Appliance costs'!AP119+'Appliance costs'!AP84+'Appliance costs'!AP85+'Appliance costs'!AP121","v":-2181.8251450620205},{"$f":"'Appliance costs'!AQ117+'Appliance costs'!AQ118+'Appliance costs'!AQ119+'Appliance costs'!AQ84+'Appliance costs'!AQ85+'Appliance costs'!AQ121","v":-2043.6140260288241},{"$f":"'Appliance costs'!AR117+'Appliance costs'!AR118+'Appliance costs'!AR119+'Appliance costs'!AR84+'Appliance costs'!AR85+'Appliance costs'!AR121","v":-1888.7896345379115},{"$f":"'Appliance costs'!AS117+'Appliance costs'!AS118+'Appliance costs'!AS119+'Appliance costs'!AS84+'Appliance costs'!AS85+'Appliance costs'!AS121","v":-1716.7417794920359},{"$f":"'Appliance costs'!AT117+'Appliance costs'!AT118+'Appliance costs'!AT119+'Appliance costs'!AT84+'Appliance costs'!AT85+'Appliance costs'!AT121","v":-1516.3695994351499},{"$f":"'Appliance costs'!AU117+'Appliance costs'!AU118+'Appliance costs'!AU119+'Appliance costs'!AU84+'Appliance costs'!AU85+'Appliance costs'!AU121","v":-1289.2126506666286},{"$f":"'Appliance costs'!AV117+'Appliance costs'!AV118+'Appliance costs'!AV119+'Appliance costs'!AV84+'Appliance costs'!AV85+'Appliance costs'!AV121","v":-1028.7870675994277},{"$f":"'Appliance costs'!AW117+'Appliance costs'!AW118+'Appliance costs'!AW119+'Appliance costs'!AW84+'Appliance costs'!AW85+'Appliance costs'!AW121","v":-733.67488586281274},{"$f":"'Appliance costs'!AX117+'Appliance costs'!AX118+'Appliance costs'!AX119+'Appliance costs'!AX84+'Appliance costs'!AX85+'Appliance costs'!AX121","v":-392.50559037537937},{"$f":"'Appliance costs'!AY117+'Appliance costs'!AY118+'Appliance costs'!AY119+'Appliance costs'!AY84+'Appliance costs'!AY85+'Appliance costs'!AY121","v":-4.7162341815419495},{"$f":"'Appliance costs'!AZ117+'Appliance costs'!AZ118+'Appliance costs'!AZ119+'Appliance costs'!AZ84+'Appliance costs'!AZ85+'Appliance costs'!AZ121","v":442.85327256742426},{"$f":"'Appliance costs'!BA117+'Appliance costs'!BA118+'Appliance costs'!BA119+'Appliance costs'!BA84+'Appliance costs'!BA85+'Appliance costs'!BA121","v":963.07163920327321},{"$f":"'Appliance costs'!BB117+'Appliance costs'!BB118+'Appliance costs'!BB119+'Appliance costs'!BB84+'Appliance costs'!BB85+'Appliance costs'!BB121","v":1582.93143204686},{"$f":"'Appliance costs'!BC117+'Appliance costs'!BC118+'Appliance costs'!BC119+'Appliance costs'!BC84+'Appliance costs'!BC85+'Appliance costs'!BC121","v":2174.0456284899019},{"$f":"'Appliance costs'!BD117+'Appliance costs'!BD118+'Appliance costs'!BD119+'Appliance costs'!BD84+'Appliance costs'!BD85+'Appliance costs'!BD121","v":2712.0439971815176},{"$f":"'Appliance costs'!BE117+'Appliance costs'!BE118+'Appliance costs'!BE119+'Appliance costs'!BE84+'Appliance costs'!BE85+'Appliance costs'!BE121","v":3263.1923557122363},{"$f":"'Appliance costs'!BF117+'Appliance costs'!BF118+'Appliance costs'!BF119+'Appliance costs'!BF84+'Appliance costs'!BF85+'Appliance costs'!BF121","v":3889.538521094868},{"$f":"'Appliance costs'!BG117+'Appliance costs'!BG118+'Appliance costs'!BG119+'Appliance costs'!BG84+'Appliance costs'!BG85+'Appliance costs'!BG121","v":4631.4769068466621},{"$f":"'Appliance costs'!BH117+'Appliance costs'!BH118+'Appliance costs'!BH119+'Appliance costs'!BH84+'Appliance costs'!BH85+'Appliance costs'!BH121","v":5708.1005559530804},{"$f":"'Appliance costs'!BI117+'Appliance costs'!BI118+'Appliance costs'!BI119+'Appliance costs'!BI84+'Appliance costs'!BI85+'Appliance costs'!BI121","v":7276.8922184878093},{"$f":"'Appliance costs'!BJ117+'Appliance costs'!BJ118+'Appliance costs'!BJ119+'Appliance costs'!BJ84+'Appliance costs'!BJ85+'Appliance costs'!BJ121","v":9580.3713102496513},{"$f":"'Appliance costs'!BK117+'Appliance costs'!BK118+'Appliance costs'!BK119+'Appliance costs'!BK84+'Appliance costs'!BK85+'Appliance costs'!BK121","v":-4023.0426734864313},{"$f":"'Appliance costs'!BL117+'Appliance costs'!BL118+'Appliance costs'!BL119+'Appliance costs'!BL84+'Appliance costs'!BL85+'Appliance costs'!BL121","v":-4019.9057423961458},{"$f":"'Appliance costs'!BM117+'Appliance costs'!BM118+'Appliance costs'!BM119+'Appliance costs'!BM84+'Appliance costs'!BM85+'Appliance costs'!BM121","v":-4019.0379513911212},{"$f":"'Appliance costs'!BN117+'Appliance costs'!BN118+'Appliance costs'!BN119+'Appliance costs'!BN84+'Appliance costs'!BN85+'Appliance costs'!BN121","v":-4013.6506487390197},{"$f":"'Appliance costs'!BO117+'Appliance costs'!BO118+'Appliance costs'!BO119+'Appliance costs'!BO84+'Appliance costs'!BO85+'Appliance costs'!BO121","v":-4010.5324061787487},{"$f":"'Appliance costs'!BP117+'Appliance costs'!BP118+'Appliance costs'!BP119+'Appliance costs'!BP84+'Appliance costs'!BP85+'Appliance costs'!BP121","v":-4007.4203135614061},{"$f":"'Appliance costs'!BQ117+'Appliance costs'!BQ118+'Appliance costs'!BQ119+'Appliance costs'!BQ84+'Appliance costs'!BQ85+'Appliance costs'!BQ121","v":-4006.5772020630993},{"$f":"'Appliance costs'!BR117+'Appliance costs'!BR118+'Appliance costs'!BR119+'Appliance costs'!BR84+'Appliance costs'!BR85+'Appliance costs'!BR121","v":-4001.2144209688731},{"$f":"'Appliance costs'!BS117+'Appliance costs'!BS118+'Appliance costs'!BS119+'Appliance costs'!BS84+'Appliance costs'!BS85+'Appliance costs'!BS121","v":-3998.1205430285054},{"$f":"'Appliance costs'!BT117+'Appliance costs'!BT118+'Appliance costs'!BT119+'Appliance costs'!BT84+'Appliance costs'!BT85+'Appliance costs'!BT121","v":-3995.0326590975001},{"$f":"'Appliance costs'!BU117+'Appliance costs'!BU118+'Appliance costs'!BU119+'Appliance costs'!BU84+'Appliance costs'!BU85+'Appliance costs'!BU121","v":-3994.2136013499367},{"$f":"'Appliance costs'!BV117+'Appliance costs'!BV118+'Appliance costs'!BV119+'Appliance costs'!BV84+'Appliance costs'!BV85+'Appliance costs'!BV121","v":-3988.8747200624493},{"$f":"'Appliance costs'!BW117+'Appliance costs'!BW118+'Appliance costs'!BW119+'Appliance costs'!BW84+'Appliance costs'!BW85+'Appliance costs'!BW121","v":-3985.8045889700579},{"$f":"'Appliance costs'!BX117+'Appliance costs'!BX118+'Appliance costs'!BX119+'Appliance costs'!BX84+'Appliance costs'!BX85+'Appliance costs'!BX121","v":-3982.7402999072001},{"$f":"'Appliance costs'!BY117+'Appliance costs'!BY118+'Appliance costs'!BY119+'Appliance costs'!BY84+'Appliance costs'!BY85+'Appliance costs'!BY121","v":-3981.9446860206299},{"$f":"'Appliance costs'!BZ117+'Appliance costs'!BZ118+'Appliance costs'!BZ119+'Appliance costs'!BZ84+'Appliance costs'!BZ85+'Appliance costs'!BZ121","v":-3976.6290985534251},{"$f":"'Appliance costs'!CA117+'Appliance costs'!CA118+'Appliance costs'!CA119+'Appliance costs'!CA84+'Appliance costs'!CA85+'Appliance costs'!CA121","v":-3973.5821122008665},{"$f":"'Appliance costs'!CB117+'Appliance costs'!CB118+'Appliance costs'!CB119+'Appliance costs'!CB84+'Appliance costs'!CB85+'Appliance costs'!CB121","v":-3970.5408197515071},{"$f":"'Appliance costs'!CC117+'Appliance costs'!CC118+'Appliance costs'!CC119+'Appliance costs'!CC84+'Appliance costs'!CC85+'Appliance costs'!CC121","v":-4012.9969343029679}]
[]
["Cooking plus hot water and space heating"]
["High income",null,{"$f":"'Appliance costs'!B103+'Appliance costs'!B104+'Appliance costs'!B106+'Appliance costs'!B84+'Appliance costs'!B85+'Appliance costs'!B107","v":-5240.0303836238345},{"$f":"'Appliance costs'!C103+'Appliance costs'!C104+'Appliance costs'!C106+'Appliance costs'!C84+'Appliance costs'!C85+'Appliance costs'!C107","v":-6012.7509076082661},{"$f":"'Appliance costs'!D103+'Appliance costs'!D104+'Appliance costs'!D106+'Appliance costs'!D84+'Appliance costs'!D85+'Appliance costs'!D107","v":-5214.3109879506592},{"$f":"'Appliance costs'!E103+'Appliance costs'!E104+'Appliance costs'!E106+'Appliance costs'!E84+'Appliance costs'!E85+'Appliance costs'!E107","v":-4973.5853500392068},{"$f":"'Appliance costs'!F103+'Appliance costs'!F104+'Appliance costs'!F106+'Appliance costs'!F84+'Appliance costs'!F85+'Appliance costs'!F107","v":-6829.8507355688025},{"$f":"'Appliance costs'!G103+'Appliance costs'!G104+'Appliance costs'!G106+'Appliance costs'!G84+'Appliance costs'!G85+'Appliance costs'!G107","v":-6831.5900978467462},{"$f":"'Appliance costs'!H103+'Appliance costs'!H104+'Appliance costs'!H106+'Appliance costs'!H84+'Appliance costs'!H85+'Appliance costs'!H107","v":-6152.3879392477593},{"$f":"'Appliance costs'!I103+'Appliance costs'!I104+'Appliance costs'!I106+'Appliance costs'!I84+'Appliance costs'!I85+'Appliance costs'!I107","v":-6439.1605304763452},{"$f":"'Appliance costs'!J103+'Appliance costs'!J104+'Appliance costs'!J106+'Appliance costs'!J84+'Appliance costs'!J85+'Appliance costs'!J107","v":-5258.5439174381299},{"$f":"'Appliance costs'!K103+'Appliance costs'!K104+'Appliance costs'!K106+'Appliance costs'!K84+'Appliance costs'!K85+'Appliance costs'!K107","v":-5802.7891994297661},{"$f":"'Appliance costs'!L103+'Appliance costs'!L104+'Appliance costs'!L106+'Appliance costs'!L84+'Appliance costs'!L85+'Appliance costs'!L107","v":-6833.9829259233411},{"$f":"'Appliance costs'!M103+'Appliance costs'!M104+'Appliance costs'!M106+'Appliance costs'!M84+'Appliance costs'!M85+'Appliance costs'!M107","v":-6943.2578289871672},{"$f":"'Appliance costs'!N103+'Appliance costs'!N104+'Appliance costs'!N106+'Appliance costs'!N84+'Appliance costs'!N85+'Appliance costs'!N107","v":-6092.9855273199028},{"$f":"'Appliance costs'!O103+'Appliance costs'!O104+'Appliance costs'!O106+'Appliance costs'!O84+'Appliance costs'!O85+'Appliance costs'!O107","v":-5412.7518058863407},{"$f":"'Appliance costs'!P103+'Appliance costs'!P104+'Appliance costs'!P106+'Appliance costs'!P84+'Appliance costs'!P85+'Appliance costs'!P107","v":-4377.3386933259644},{"$f":"'Appliance costs'!Q103+'Appliance costs'!Q104+'Appliance costs'!Q106+'Appliance costs'!Q84+'Appliance costs'!Q85+'Appliance costs'!Q107","v":-3795.7863698857773},{"$f":"'Appliance costs'!R103+'Appliance costs'!R104+'Appliance costs'!R106+'Appliance costs'!R84+'Appliance costs'!R85+'Appliance costs'!R107","v":-2870.0419600221903},{"$f":"'Appliance costs'!S103+'Appliance costs'!S104+'Appliance costs'!S106+'Appliance costs'!S84+'Appliance costs'!S85+'Appliance costs'!S107","v":-2357.2113166604286},{"$f":"'Appliance costs'!T103+'Appliance costs'!T104+'Appliance costs'!T106+'Appliance costs'!T84+'Appliance costs'!T85+'Appliance costs'!T107","v":-1781.5412312655171},{"$f":"'Appliance costs'!U103+'Appliance costs'!U104+'Appliance costs'!U106+'Appliance costs'!U84+'Appliance costs'!U85+'Appliance costs'!U107","v":-1398.0344300063466},{"$f":"'Appliance costs'!V103+'Appliance costs'!V104+'Appliance costs'!V106+'Appliance costs'!V84+'Appliance costs'!V85+'Appliance costs'!V107","v":-1101.3142567601365},{"$f":"'Appliance costs'!W103+'Appliance costs'!W104+'Appliance costs'!W106+'Appliance costs'!W84+'Appliance costs'!W85+'Appliance costs'!W107","v":-400.96860185159085},{"$f":"'Appliance costs'!X103+'Appliance costs'!X104+'Appliance costs'!X106+'Appliance costs'!X84+'Appliance costs'!X85+'Appliance costs'!X107","v":306.02302710616664},{"$f":"'Appliance costs'!Y103+'Appliance costs'!Y104+'Appliance costs'!Y106+'Appliance costs'!Y84+'Appliance costs'!Y85+'Appliance costs'!Y107","v":778.60446692511186},{"$f":"'Appliance costs'!Z103+'Appliance costs'!Z104+'Appliance costs'!Z106+'Appliance costs'!Z84+'Appliance costs'!Z85+'Appliance costs'!Z107","v":1249.1974398121392},{"$f":"'Appliance costs'!AA103+'Appliance costs'!AA104+'Appliance costs'!AA106+'Appliance costs'!AA84+'Appliance costs'!AA85+'Appliance costs'!AA107","v":1622.0751389964385},{"$f":"'Appliance costs'!AB103+'Appliance costs'!AB104+'Appliance costs'!AB106+'Appliance costs'!AB84+'Appliance costs'!AB85+'Appliance costs'!AB107","v":1979.548738671223},{"$f":"'Appliance costs'!AC103+'Appliance costs'!AC104+'Appliance costs'!AC106+'Appliance costs'!AC84+'Appliance costs'!AC85+'Appliance costs'!AC107","v":2306.2956133010671},{"$f":"'Appliance costs'!AD103+'Appliance costs'!AD104+'Appliance costs'!AD106+'Appliance costs'!AD84+'Appliance costs'!AD85+'Appliance costs'!AD107","v":2647.6354225503155},{"$f":"'Appliance costs'!AE103+'Appliance costs'!AE104+'Appliance costs'!AE106+'Appliance costs'!AE84+'Appliance costs'!AE85+'Appliance costs'!AE107","v":3097.197678301538},{"$f":"'Appliance costs'!AF103+'Appliance costs'!AF104+'Appliance costs'!AF106+'Appliance costs'!AF84+'Appliance costs'!AF85+'Appliance costs'!AF107","v":3415.1742326696517},{"$f":"'Appliance costs'!AG103+'Appliance costs'!AG104+'Appliance costs'!AG106+'Appliance costs'!AG84+'Appliance costs'!AG85+'Appliance costs'!AG107","v":3868.5676509501382},{"$f":"'Appliance costs'!AH103+'Appliance costs'!AH104+'Appliance costs'!AH106+'Appliance costs'!AH84+'Appliance costs'!AH85+'Appliance costs'!AH107","v":4270.7488759038533},{"$f":"'Appliance costs'!AI103+'Appliance costs'!AI104+'Appliance costs'!AI106+'Appliance costs'!AI84+'Appliance costs'!AI85+'Appliance costs'!AI107","v":4634.8136690846877},{"$f":"'Appliance costs'!AJ103+'Appliance costs'!AJ104+'Appliance costs'!AJ106+'Appliance costs'!AJ84+'Appliance costs'!AJ85+'Appliance costs'!AJ107","v":5021.1399607342501},{"$f":"'Appliance costs'!AK103+'Appliance costs'!AK104+'Appliance costs'!AK106+'Appliance costs'!AK84+'Appliance costs'!AK85+'Appliance costs'!AK107","v":3697.557779543773},{"$f":"'Appliance costs'!AL103+'Appliance costs'!AL104+'Appliance costs'!AL106+'Appliance costs'!AL84+'Appliance costs'!AL85+'Appliance costs'!AL107","v":3515.9966808410545},{"$f":"'Appliance costs'!AM103+'Appliance costs'!AM104+'Appliance costs'!AM106+'Appliance costs'!AM84+'Appliance costs'!AM85+'Appliance costs'!AM107","v":3877.4604459034081},{"$f":"'Appliance costs'!AN103+'Appliance costs'!AN104+'Appliance costs'!AN106+'Appliance costs'!AN84+'Appliance costs'!AN85+'Appliance costs'!AN107","v":4323.6313493214384},{"$f":"'Appliance costs'!AO103+'Appliance costs'!AO104+'Appliance costs'!AO106+'Appliance costs'!AO84+'Appliance costs'!AO85+'Appliance costs'!AO107","v":4738.2082152700341},{"$f":"'Appliance costs'!AP103+'Appliance costs'!AP104+'Appliance costs'!AP106+'Appliance costs'!AP84+'Appliance costs'!AP85+'Appliance costs'!AP107","v":5182.1247234636558},{"$f":"'Appliance costs'!AQ103+'Appliance costs'!AQ104+'Appliance costs'!AQ106+'Appliance costs'!AQ84+'Appliance costs'!AQ85+'Appliance costs'!AQ107","v":5670.9868245815378},{"$f":"'Appliance costs'!AR103+'Appliance costs'!AR104+'Appliance costs'!AR106+'Appliance costs'!AR84+'Appliance costs'!AR85+'Appliance costs'!AR107","v":6219.9482655117154},{"$f":"'Appliance costs'!AS103+'Appliance costs'!AS104+'Appliance costs'!AS106+'Appliance costs'!AS84+'Appliance costs'!AS85+'Appliance costs'!AS107","v":6835.6738996591121},{"$f":"'Appliance costs'!AT103+'Appliance costs'!AT104+'Appliance costs'!AT106+'Appliance costs'!AT84+'Appliance costs'!AT85+'Appliance costs'!AT107","v":7546.0283826469404},{"$f":"'Appliance costs'!AU103+'Appliance costs'!AU104+'Appliance costs'!AU106+'Appliance costs'!AU84+'Appliance costs'!AU85+'Appliance costs'!AU107","v":8358.3892913444779},{"$f":"'Appliance costs'!AV103+'Appliance costs'!AV104+'Appliance costs'!AV106+'Appliance costs'!AV84+'Appliance costs'!AV85+'Appliance costs'!AV107","v":9293.1233456672089},{"$f":"'Appliance costs'!AW103+'Appliance costs'!AW104+'Appliance costs'!AW106+'Appliance costs'!AW84+'Appliance costs'!AW85+'Appliance costs'!AW107","v":10360.970946366175},{"$f":"'Appliance costs'!AX103+'Appliance costs'!AX104+'Appliance costs'!AX106+'Appliance costs'!AX84+'Appliance costs'!AX85+'Appliance costs'!AX107","v":11592.140674086628},{"$f":"'Appliance costs'!AY103+'Appliance costs'!AY104+'Appliance costs'!AY106+'Appliance costs'!AY84+'Appliance costs'!AY85+'Appliance costs'!AY107","v":13002.913970606598},{"$f":"'Appliance costs'!AZ103+'Appliance costs'!AZ104+'Appliance costs'!AZ106+'Appliance costs'!AZ84+'Appliance costs'!AZ85+'Appliance costs'!AZ107","v":14639.031606990238},{"$f":"'Appliance costs'!BA103+'Appliance costs'!BA104+'Appliance costs'!BA106+'Appliance costs'!BA84+'Appliance costs'!BA85+'Appliance costs'!BA107","v":16554.615626309154},{"$f":"'Appliance costs'!BB103+'Appliance costs'!BB104+'Appliance costs'!BB106+'Appliance costs'!BB84+'Appliance costs'!BB85+'Appliance costs'!BB107","v":18839.731816507181},{"$f":"'Appliance costs'!BC103+'Appliance costs'!BC104+'Appliance costs'!BC106+'Appliance costs'!BC84+'Appliance costs'!BC85+'Appliance costs'!BC107","v":21054.660075333963},{"$f":"'Appliance costs'!BD103+'Appliance costs'!BD104+'Appliance costs'!BD106+'Appliance costs'!BD84+'Appliance costs'!BD85+'Appliance costs'!BD107","v":23082.620859981984},{"$f":"'Appliance costs'!BE103+'Appliance costs'!BE104+'Appliance costs'!BE106+'Appliance costs'!BE84+'Appliance costs'!BE85+'Appliance costs'!BE107","v":25156.56947972277},{"$f":"'Appliance costs'!BF103+'Appliance costs'!BF104+'Appliance costs'!BF106+'Appliance costs'!BF84+'Appliance costs'!BF85+'Appliance costs'!BF107","v":27499.869459438785},{"$f":"'Appliance costs'!BG103+'Appliance costs'!BG104+'Appliance costs'!BG106+'Appliance costs'!BG84+'Appliance costs'!BG85+'Appliance costs'!BG107","v":30283.887556206726},{"$f":"'Appliance costs'!BH103+'Appliance costs'!BH104+'Appliance costs'!BH106+'Appliance costs'!BH84+'Appliance costs'!BH85+'Appliance costs'!BH107","v":34315.514064909374},{"$f":"'Appliance costs'!BI103+'Appliance costs'!BI104+'Appliance costs'!BI106+'Appliance costs'!BI84+'Appliance costs'!BI85+'Appliance costs'!BI107","v":40232.251109055003},{"$f":"'Appliance costs'!BJ103+'Appliance costs'!BJ104+'Appliance costs'!BJ106+'Appliance costs'!BJ84+'Appliance costs'!BJ85+'Appliance costs'!BJ107","v":48982.119030251153},{"$f":"'Appliance costs'!BK103+'Appliance costs'!BK104+'Appliance costs'!BK106+'Appliance costs'!BK84+'Appliance costs'!BK85+'Appliance costs'!BK107","v":-1161.1722622678205},{"$f":"'Appliance costs'!BL103+'Appliance costs'!BL104+'Appliance costs'!BL106+'Appliance costs'!BL84+'Appliance costs'!BL85+'Appliance costs'!BL107","v":-1150.3515122398028},{"$f":"'Appliance costs'!BM103+'Appliance costs'!BM104+'Appliance costs'!BM106+'Appliance costs'!BM84+'Appliance costs'!BM85+'Appliance costs'!BM107","v":-1143.5660281029907},{"$f":"'Appliance costs'!BN103+'Appliance costs'!BN104+'Appliance costs'!BN106+'Appliance costs'!BN84+'Appliance costs'!BN85+'Appliance costs'!BN107","v":-1128.7491092378471},{"$f":"'Appliance costs'!BO103+'Appliance costs'!BO104+'Appliance costs'!BO106+'Appliance costs'!BO84+'Appliance costs'!BO85+'Appliance costs'!BO107","v":-1117.9673029921967},{"$f":"'Appliance costs'!BP103+'Appliance costs'!BP104+'Appliance costs'!BP106+'Appliance costs'!BP84+'Appliance costs'!BP85+'Appliance costs'!BP107","v":-1107.1983255202497},{"$f":"'Appliance costs'!BQ103+'Appliance costs'!BQ104+'Appliance costs'!BQ106+'Appliance costs'!BQ84+'Appliance costs'!BQ85+'Appliance costs'!BQ107","v":-1100.4643092744516},{"$f":"'Appliance costs'!BR103+'Appliance costs'!BR104+'Appliance costs'!BR106+'Appliance costs'!BR84+'Appliance costs'!BR85+'Appliance costs'!BR107","v":-1085.698555507757},{"$f":"'Appliance costs'!BS103+'Appliance costs'!BS104+'Appliance costs'!BS106+'Appliance costs'!BS84+'Appliance costs'!BS85+'Appliance costs'!BS107","v":-1074.9676134287167},{"$f":"'Appliance costs'!BT103+'Appliance costs'!BT104+'Appliance costs'!BT106+'Appliance costs'!BT84+'Appliance costs'!BT85+'Appliance costs'!BT107","v":-1064.249201040577},{"$f":"'Appliance costs'!BU103+'Appliance costs'!BU104+'Appliance costs'!BU106+'Appliance costs'!BU84+'Appliance costs'!BU85+'Appliance costs'!BU107","v":-1057.5654526332198},{"$f":"'Appliance costs'!BV103+'Appliance costs'!BV104+'Appliance costs'!BV106+'Appliance costs'!BV84+'Appliance costs'!BV85+'Appliance costs'!BV107","v":-1042.849671285491},{"$f":"'Appliance costs'!BW103+'Appliance costs'!BW104+'Appliance costs'!BW106+'Appliance costs'!BW84+'Appliance costs'!BW85+'Appliance costs'!BW107","v":-1032.1684080203706},{"$f":"'Appliance costs'!BX103+'Appliance costs'!BX104+'Appliance costs'!BX106+'Appliance costs'!BX84+'Appliance costs'!BX85+'Appliance costs'!BX107","v":-1021.499382644148},{"$f":"'Appliance costs'!BY103+'Appliance costs'!BY104+'Appliance costs'!BY106+'Appliance costs'!BY84+'Appliance costs'!BY85+'Appliance costs'!BY107","v":-1014.8647312384239},{"$f":"'Appliance costs'!BZ103+'Appliance costs'!BZ104+'Appliance costs'!BZ106+'Appliance costs'!BZ84+'Appliance costs'!BZ85+'Appliance costs'!BZ107","v":-1000.1977586625133},{"$f":"'Appliance costs'!CA103+'Appliance costs'!CA104+'Appliance costs'!CA106+'Appliance costs'!CA84+'Appliance costs'!CA85+'Appliance costs'!CA107","v":-989.56501770869522},{"$f":"'Appliance costs'!CB103+'Appliance costs'!CB104+'Appliance costs'!CB106+'Appliance costs'!CB84+'Appliance costs'!CB85+'Appliance costs'!CB107","v":-978.94422994145157},{"$f":"'Appliance costs'!CC103+'Appliance costs'!CC104+'Appliance costs'!CC106+'Appliance costs'!CC84+'Appliance costs'!CC85+'Appliance costs'!CC107","v":-1145.8793386537598}]
["Medium income",null,{"$f":"'Appliance costs'!B110+'Appliance costs'!B111+'Appliance costs'!B113+'Appliance costs'!B84+'Appliance costs'!B85+'Appliance costs'!B114","v":-5610.9036043686101},{"$f":"'Appliance costs'!C110+'Appliance costs'!C111+'Appliance costs'!C113+'Appliance costs'!C84+'Appliance costs'!C85+'Appliance costs'!C114","v":-6252.6434227185337},{"$f":"'Appliance costs'!D110+'Appliance costs'!D111+'Appliance costs'!D113+'Appliance costs'!D84+'Appliance costs'!D85+'Appliance costs'!D114","v":-5275.5253280099196},{"$f":"'Appliance costs'!E110+'Appliance costs'!E111+'Appliance costs'!E113+'Appliance costs'!E84+'Appliance costs'!E85+'Appliance costs'!E114","v":-5075.6041115410044},{"$f":"'Appliance costs'!F110+'Appliance costs'!F111+'Appliance costs'!F113+'Appliance costs'!F84+'Appliance costs'!F85+'Appliance costs'!F114","v":-6844.3594563864735},{"$f":"'Appliance costs'!G110+'Appliance costs'!G111+'Appliance costs'!G113+'Appliance costs'!G84+'Appliance costs'!G85+'Appliance costs'!G114","v":-6845.8039864560733},{"$f":"'Appliance costs'!H110+'Appliance costs'!H111+'Appliance costs'!H113+'Appliance costs'!H84+'Appliance costs'!H85+'Appliance costs'!H114","v":-6281.7306166500293},{"$f":"'Appliance costs'!I110+'Appliance costs'!I111+'Appliance costs'!I113+'Appliance costs'!I84+'Appliance costs'!I85+'Appliance costs'!I114","v":-6595.5041138614861},{"$f":"'Appliance costs'!J110+'Appliance costs'!J111+'Appliance costs'!J113+'Appliance costs'!J84+'Appliance costs'!J85+'Appliance costs'!J114","v":-5559.4987686106342},{"$f":"'Appliance costs'!K110+'Appliance costs'!K111+'Appliance costs'!K113+'Appliance costs'!K84+'Appliance costs'!K85+'Appliance costs'!K114","v":-6000.5551777954561},{"$f":"'Appliance costs'!L110+'Appliance costs'!L111+'Appliance costs'!L113+'Appliance costs'!L84+'Appliance costs'!L85+'Appliance costs'!L114","v":-6846.0740663160859},{"$f":"'Appliance costs'!M110+'Appliance costs'!M111+'Appliance costs'!M113+'Appliance costs'!M84+'Appliance costs'!M85+'Appliance costs'!M114","v":-6925.9992394659994},{"$f":"'Appliance costs'!N110+'Appliance costs'!N111+'Appliance costs'!N113+'Appliance costs'!N84+'Appliance costs'!N85+'Appliance costs'!N114","v":-6209.0802774122785},{"$f":"'Appliance costs'!O110+'Appliance costs'!O111+'Appliance costs'!O113+'Appliance costs'!O84+'Appliance costs'!O85+'Appliance costs'!O114","v":-5633.4312133635167},{"$f":"'Appliance costs'!P110+'Appliance costs'!P111+'Appliance costs'!P113+'Appliance costs'!P84+'Appliance costs'!P85+'Appliance costs'!P114","v":-4762.8613636464825},{"$f":"'Appliance costs'!Q110+'Appliance costs'!Q111+'Appliance costs'!Q113+'Appliance costs'!Q84+'Appliance costs'!Q85+'Appliance costs'!Q114","v":-4269.2735380413742},{"$f":"'Appliance costs'!R110+'Appliance costs'!R111+'Appliance costs'!R113+'Appliance costs'!R84+'Appliance costs'!R85+'Appliance costs'!R114","v":-3489.8892836369409},{"$f":"'Appliance costs'!S110+'Appliance costs'!S111+'Appliance costs'!S113+'Appliance costs'!S84+'Appliance costs'!S85+'Appliance costs'!S114","v":-3053.4802616524084},{"$f":"'Appliance costs'!T110+'Appliance costs'!T111+'Appliance costs'!T113+'Appliance costs'!T84+'Appliance costs'!T85+'Appliance costs'!T114","v":-2564.9359863078189},{"$f":"'Appliance costs'!U110+'Appliance costs'!U111+'Appliance costs'!U113+'Appliance costs'!U84+'Appliance costs'!U85+'Appliance costs'!U114","v":-2236.0344486515269},{"$f":"'Appliance costs'!V110+'Appliance costs'!V111+'Appliance costs'!V113+'Appliance costs'!V84+'Appliance costs'!V85+'Appliance costs'!V114","v":-1979.2606985769035},{"$f":"'Appliance costs'!W110+'Appliance costs'!W111+'Appliance costs'!W113+'Appliance costs'!W84+'Appliance costs'!W85+'Appliance costs'!W114","v":-1387.3301236714065},{"$f":"'Appliance costs'!X110+'Appliance costs'!X111+'Appliance costs'!X113+'Appliance costs'!X84+'Appliance costs'!X85+'Appliance costs'!X114","v":-789.93159496533985},{"$f":"'Appliance costs'!Y110+'Appliance costs'!Y111+'Appliance costs'!Y113+'Appliance costs'!Y84+'Appliance costs'!Y85+'Appliance costs'!Y114","v":-387.26057077069709},{"$f":"'Appliance costs'!Z110+'Appliance costs'!Z111+'Appliance costs'!Z113+'Appliance costs'!Z84+'Appliance costs'!Z85+'Appliance costs'!Z114","v":13.708068727055661},{"$f":"'Appliance costs'!AA110+'Appliance costs'!AA111+'Appliance costs'!AA113+'Appliance costs'!AA84+'Appliance costs'!AA85+'Appliance costs'!AA114","v":333.47403236751416},{"$f":"'Appliance costs'!AB110+'Appliance costs'!AB111+'Appliance costs'!AB113+'Appliance costs'!AB84+'Appliance costs'!AB85+'Appliance costs'!AB114","v":640.39651638861096},{"$f":"'Appliance costs'!AC110+'Appliance costs'!AC111+'Appliance costs'!AC113+'Appliance costs'!AC84+'Appliance costs'!AC85+'Appliance costs'!AC114","v":921.75042337007153},{"$f":"'Appliance costs'!AD110+'Appliance costs'!AD111+'Appliance costs'!AD113+'Appliance costs'!AD84+'Appliance costs'!AD85+'Appliance costs'!AD114","v":1215.1737133044753},{"$f":"'Appliance costs'!AE110+'Appliance costs'!AE111+'Appliance costs'!AE113+'Appliance costs'!AE84+'Appliance costs'!AE85+'Appliance costs'!AE114","v":1598.4253910573166},{"$f":"'Appliance costs'!AF110+'Appliance costs'!AF111+'Appliance costs'!AF113+'Appliance costs'!AF84+'Appliance costs'!AF85+'Appliance costs'!AF114","v":1862.5030360867629},{"$f":"'Appliance costs'!AG110+'Appliance costs'!AG111+'Appliance costs'!AG113+'Appliance costs'!AG84+'Appliance costs'!AG85+'Appliance costs'!AG114","v":2239.0435845221409},{"$f":"'Appliance costs'!AH110+'Appliance costs'!AH111+'Appliance costs'!AH113+'Appliance costs'!AH84+'Appliance costs'!AH85+'Appliance costs'!AH114","v":2573.052709729157},{"$f":"'Appliance costs'!AI110+'Appliance costs'!AI111+'Appliance costs'!AI113+'Appliance costs'!AI84+'Appliance costs'!AI85+'Appliance costs'!AI114","v":2875.4063641121975},{"$f":"'Appliance costs'!AJ110+'Appliance costs'!AJ111+'Appliance costs'!AJ113+'Appliance costs'!AJ84+'Appliance costs'!AJ85+'Appliance costs'!AJ114","v":3196.248061118793},{"$f":"'Appliance costs'!AK110+'Appliance costs'!AK111+'Appliance costs'!AK113+'Appliance costs'!AK84+'Appliance costs'!AK85+'Appliance costs'!AK114","v":2097.0208992096227},{"$f":"'Appliance costs'!AL110+'Appliance costs'!AL111+'Appliance costs'!AL113+'Appliance costs'!AL84+'Appliance costs'!AL85+'Appliance costs'!AL114","v":1946.2354821223414},{"$f":"'Appliance costs'!AM110+'Appliance costs'!AM111+'Appliance costs'!AM113+'Appliance costs'!AM84+'Appliance costs'!AM85+'Appliance costs'!AM114","v":2246.4289980588592},{"$f":"'Appliance costs'!AN110+'Appliance costs'!AN111+'Appliance costs'!AN113+'Appliance costs'!AN84+'Appliance costs'!AN85+'Appliance costs'!AN114","v":2616.9712906798804},{"$f":"'Appliance costs'!AO110+'Appliance costs'!AO111+'Appliance costs'!AO113+'Appliance costs'!AO84+'Appliance costs'!AO85+'Appliance costs'!AO114","v":2961.2749223138344},{"$f":"'Appliance costs'!AP110+'Appliance costs'!AP111+'Appliance costs'!AP113+'Appliance costs'!AP84+'Appliance costs'!AP85+'Appliance costs'!AP114","v":3329.944953053754},{"$f":"'Appliance costs'!AQ110+'Appliance costs'!AQ111+'Appliance costs'!AQ113+'Appliance costs'!AQ84+'Appliance costs'!AQ85+'Appliance costs'!AQ114","v":3735.9420325047895},{"$f":"'Appliance costs'!AR110+'Appliance costs'!AR111+'Appliance costs'!AR113+'Appliance costs'!AR84+'Appliance costs'!AR85+'Appliance costs'!AR114","v":4191.8512577018946},{"$f":"'Appliance costs'!AS110+'Appliance costs'!AS111+'Appliance costs'!AS113+'Appliance costs'!AS84+'Appliance costs'!AS85+'Appliance costs'!AS114","v":4703.2077499219758},{"$f":"'Appliance costs'!AT110+'Appliance costs'!AT111+'Appliance costs'!AT113+'Appliance costs'!AT84+'Appliance costs'!AT85+'Appliance costs'!AT114","v":5293.1529406179179},{"$f":"'Appliance costs'!AU110+'Appliance costs'!AU111+'Appliance costs'!AU113+'Appliance costs'!AU84+'Appliance costs'!AU85+'Appliance costs'!AU114","v":5967.8138636823096},{"$f":"'Appliance costs'!AV110+'Appliance costs'!AV111+'Appliance costs'!AV113+'Appliance costs'!AV84+'Appliance costs'!AV85+'Appliance costs'!AV114","v":6744.1049593729967},{"$f":"'Appliance costs'!AW110+'Appliance costs'!AW111+'Appliance costs'!AW113+'Appliance costs'!AW84+'Appliance costs'!AW85+'Appliance costs'!AW114","v":7630.946066898392},{"$f":"'Appliance costs'!AX110+'Appliance costs'!AX111+'Appliance costs'!AX113+'Appliance costs'!AX84+'Appliance costs'!AX85+'Appliance costs'!AX114","v":8653.42523355913},{"$f":"'Appliance costs'!AY110+'Appliance costs'!AY111+'Appliance costs'!AY113+'Appliance costs'!AY84+'Appliance costs'!AY85+'Appliance costs'!AY114","v":9825.0641003169731},{"$f":"'Appliance costs'!AZ110+'Appliance costs'!AZ111+'Appliance costs'!AZ113+'Appliance costs'!AZ84+'Appliance costs'!AZ85+'Appliance costs'!AZ114","v":11183.850106618387},{"$f":"'Appliance costs'!BA110+'Appliance costs'!BA111+'Appliance costs'!BA113+'Appliance costs'!BA84+'Appliance costs'!BA85+'Appliance costs'!BA114","v":12774.731288669798},{"$f":"'Appliance costs'!BB110+'Appliance costs'!BB111+'Appliance costs'!BB113+'Appliance costs'!BB84+'Appliance costs'!BB85+'Appliance costs'!BB114","v":14672.506749899425},{"$f":"'Appliance costs'!BC110+'Appliance costs'!BC111+'Appliance costs'!BC113+'Appliance costs'!BC84+'Appliance costs'!BC85+'Appliance costs'!BC114","v":16511.991549847935},{"$f":"'Appliance costs'!BD110+'Appliance costs'!BD111+'Appliance costs'!BD113+'Appliance costs'!BD84+'Appliance costs'!BD85+'Appliance costs'!BD114","v":18196.200969898247},{"$f":"'Appliance costs'!BE110+'Appliance costs'!BE111+'Appliance costs'!BE113+'Appliance costs'!BE84+'Appliance costs'!BE85+'Appliance costs'!BE114","v":19918.603014607415},{"$f":"'Appliance costs'!BF110+'Appliance costs'!BF111+'Appliance costs'!BF113+'Appliance costs'!BF84+'Appliance costs'!BF85+'Appliance costs'!BF114","v":21864.699768409486},{"$f":"'Appliance costs'!BG110+'Appliance costs'!BG111+'Appliance costs'!BG113+'Appliance costs'!BG84+'Appliance costs'!BG85+'Appliance costs'!BG114","v":24176.810308052347},{"$f":"'Appliance costs'!BH110+'Appliance costs'!BH111+'Appliance costs'!BH113+'Appliance costs'!BH84+'Appliance costs'!BH85+'Appliance costs'!BH114","v":27525.052244229653},{"$f":"'Appliance costs'!BI110+'Appliance costs'!BI111+'Appliance costs'!BI113+'Appliance costs'!BI84+'Appliance costs'!BI85+'Appliance costs'!BI114","v":32438.86731459367},{"$f":"'Appliance costs'!BJ110+'Appliance costs'!BJ111+'Appliance costs'!BJ113+'Appliance costs'!BJ84+'Appliance costs'!BJ85+'Appliance costs'!BJ114","v":39705.580797730523},{"$f":"'Appliance costs'!BK110+'Appliance costs'!BK111+'Appliance costs'!BK113+'Appliance costs'!BK84+'Appliance costs'!BK85+'Appliance costs'!BK114","v":-1938.1256222852696},{"$f":"'Appliance costs'!BL110+'Appliance costs'!BL111+'Appliance costs'!BL113+'Appliance costs'!BL84+'Appliance costs'!BL85+'Appliance costs'!BL114","v":-1929.1390534782392},{"$f":"'Appliance costs'!BM110+'Appliance costs'!BM111+'Appliance costs'!BM113+'Appliance costs'!BM84+'Appliance costs'!BM85+'Appliance costs'!BM114","v":-1923.5037490930006},{"$f":"'Appliance costs'!BN110+'Appliance costs'!BN111+'Appliance costs'!BN113+'Appliance costs'!BN84+'Appliance costs'!BN85+'Appliance costs'!BN114","v":-1911.1983857360217},{"$f":"'Appliance costs'!BO110+'Appliance costs'!BO111+'Appliance costs'!BO113+'Appliance costs'!BO84+'Appliance costs'!BO85+'Appliance costs'!BO114","v":-1902.2441595095854},{"$f":"'Appliance costs'!BP110+'Appliance costs'!BP111+'Appliance costs'!BP113+'Appliance costs'!BP84+'Appliance costs'!BP85+'Appliance costs'!BP114","v":-1893.3005875037231},{"$f":"'Appliance costs'!BQ110+'Appliance costs'!BQ111+'Appliance costs'!BQ113+'Appliance costs'!BQ84+'Appliance costs'!BQ85+'Appliance costs'!BQ114","v":-1887.7080268971274},{"$f":"'Appliance costs'!BR110+'Appliance costs'!BR111+'Appliance costs'!BR113+'Appliance costs'!BR84+'Appliance costs'!BR85+'Appliance costs'!BR114","v":-1875.4451558513604},{"$f":"'Appliance costs'!BS110+'Appliance costs'!BS111+'Appliance costs'!BS113+'Appliance costs'!BS84+'Appliance costs'!BS85+'Appliance costs'!BS114","v":-1866.5331720140246},{"$f":"'Appliance costs'!BT110+'Appliance costs'!BT111+'Appliance costs'!BT113+'Appliance costs'!BT84+'Appliance costs'!BT85+'Appliance costs'!BT114","v":-1857.6315940107681},{"$f":"'Appliance costs'!BU110+'Appliance costs'!BU111+'Appliance costs'!BU113+'Appliance costs'!BU84+'Appliance costs'!BU85+'Appliance costs'!BU114","v":-1852.0807805462621},{"$f":"'Appliance costs'!BV110+'Appliance costs'!BV111+'Appliance costs'!BV113+'Appliance costs'!BV84+'Appliance costs'!BV85+'Appliance costs'!BV114","v":-1839.8594112984586},{"$f":"'Appliance costs'!BW110+'Appliance costs'!BW111+'Appliance costs'!BW113+'Appliance costs'!BW84+'Appliance costs'!BW85+'Appliance costs'!BW114","v":-1830.9886854218364},{"$f":"'Appliance costs'!BX110+'Appliance costs'!BX111+'Appliance costs'!BX113+'Appliance costs'!BX84+'Appliance costs'!BX85+'Appliance costs'!BX114","v":-1822.1281230394586},{"$f":"'Appliance costs'!BY110+'Appliance costs'!BY111+'Appliance costs'!BY113+'Appliance costs'!BY84+'Appliance costs'!BY85+'Appliance costs'!BY114","v":-1816.6180843440068},{"$f":"'Appliance costs'!BZ110+'Appliance costs'!BZ111+'Appliance costs'!BZ113+'Appliance costs'!BZ84+'Appliance costs'!BZ85+'Appliance costs'!BZ114","v":-1804.4372504921055},{"$f":"'Appliance costs'!CA110+'Appliance costs'!CA111+'Appliance costs'!CA113+'Appliance costs'!CA84+'Appliance costs'!CA85+'Appliance costs'!CA114","v":-1795.6068221076223},{"$f":"'Appliance costs'!CB110+'Appliance costs'!CB111+'Appliance costs'!CB113+'Appliance costs'!CB84+'Appliance costs'!CB85+'Appliance costs'!CB114","v":-1786.7863207737903},{"$f":"'Appliance costs'!CC110+'Appliance costs'!CC111+'Appliance costs'!CC113+'Appliance costs'!CC84+'Appliance costs'!CC85+'Appliance costs'!CC114","v":-1925.4249398036889}]
["Low income",null,{"$f":"'Appliance costs'!B117+'Appliance costs'!B118+'Appliance costs'!B120+'Appliance costs'!B84+'Appliance costs'!B85+'Appliance costs'!B121","v":-6197.0596333040685},{"$f":"'Appliance costs'!C117+'Appliance costs'!C118+'Appliance costs'!C120+'Appliance costs'!C84+'Appliance costs'!C85+'Appliance costs'!C121","v":-6631.7876589780208},{"$f":"'Appliance costs'!D117+'Appliance costs'!D118+'Appliance costs'!D120+'Appliance costs'!D84+'Appliance costs'!D85+'Appliance costs'!D121","v":-5372.2730910621704},{"$f":"'Appliance costs'!E117+'Appliance costs'!E118+'Appliance costs'!E120+'Appliance costs'!E84+'Appliance costs'!E85+'Appliance costs'!E121","v":-5236.8422618682798},{"$f":"'Appliance costs'!F117+'Appliance costs'!F118+'Appliance costs'!F120+'Appliance costs'!F84+'Appliance costs'!F85+'Appliance costs'!F121","v":-6867.2901337816775},{"$f":"'Appliance costs'!G117+'Appliance costs'!G118+'Appliance costs'!G120+'Appliance costs'!G84+'Appliance costs'!G85+'Appliance costs'!G121","v":-6868.2686887773743},{"$f":"'Appliance costs'!H117+'Appliance costs'!H118+'Appliance costs'!H120+'Appliance costs'!H84+'Appliance costs'!H85+'Appliance costs'!H121","v":-6486.1535458810613},{"$f":"'Appliance costs'!I117+'Appliance costs'!I118+'Appliance costs'!I120+'Appliance costs'!I84+'Appliance costs'!I85+'Appliance costs'!I121","v":-6842.6013127440083},{"$f":"'Appliance costs'!J117+'Appliance costs'!J118+'Appliance costs'!J120+'Appliance costs'!J84+'Appliance costs'!J85+'Appliance costs'!J121","v":-6035.1505293332966},{"$f":"'Appliance costs'!K117+'Appliance costs'!K118+'Appliance costs'!K120+'Appliance costs'!K84+'Appliance costs'!K85+'Appliance costs'!K121","v":-6313.119455972721},{"$f":"'Appliance costs'!L117+'Appliance costs'!L118+'Appliance costs'!L120+'Appliance costs'!L84+'Appliance costs'!L85+'Appliance costs'!L121","v":-6865.1838171459785},{"$f":"'Appliance costs'!M117+'Appliance costs'!M118+'Appliance costs'!M120+'Appliance costs'!M84+'Appliance costs'!M85+'Appliance costs'!M121","v":-6898.7224620312772},{"$f":"'Appliance costs'!N117+'Appliance costs'!N118+'Appliance costs'!N120+'Appliance costs'!N84+'Appliance costs'!N85+'Appliance costs'!N121","v":-6392.565182463517},{"$f":"'Appliance costs'!O117+'Appliance costs'!O118+'Appliance costs'!O120+'Appliance costs'!O84+'Appliance costs'!O85+'Appliance costs'!O121","v":-5982.2096042510784},{"$f":"'Appliance costs'!P117+'Appliance costs'!P118+'Appliance costs'!P120+'Appliance costs'!P84+'Appliance costs'!P85+'Appliance costs'!P121","v":-5372.1704883276088},{"$f":"'Appliance costs'!Q117+'Appliance costs'!Q118+'Appliance costs'!Q120+'Appliance costs'!Q84+'Appliance costs'!Q85+'Appliance costs'!Q121","v":-5017.6083940351236},{"$f":"'Appliance costs'!R117+'Appliance costs'!R118+'Appliance costs'!R120+'Appliance costs'!R84+'Appliance costs'!R85+'Appliance costs'!R121","v":-4469.5427755409219},{"$f":"'Appliance costs'!S117+'Appliance costs'!S118+'Appliance costs'!S120+'Appliance costs'!S84+'Appliance costs'!S85+'Appliance costs'!S121","v":-4153.9162517408877},{"$f":"'Appliance costs'!T117+'Appliance costs'!T118+'Appliance costs'!T120+'Appliance costs'!T84+'Appliance costs'!T85+'Appliance costs'!T121","v":-3803.0721822357109},{"$f":"'Appliance costs'!U117+'Appliance costs'!U118+'Appliance costs'!U120+'Appliance costs'!U84+'Appliance costs'!U85+'Appliance costs'!U121","v":-3560.4729243939628},{"$f":"'Appliance costs'!V117+'Appliance costs'!V118+'Appliance costs'!V120+'Appliance costs'!V84+'Appliance costs'!V85+'Appliance costs'!V121","v":-3366.8335163713537},{"$f":"'Appliance costs'!W117+'Appliance costs'!W118+'Appliance costs'!W120+'Appliance costs'!W84+'Appliance costs'!W85+'Appliance costs'!W121","v":-2946.2503163010952},{"$f":"'Appliance costs'!X117+'Appliance costs'!X118+'Appliance costs'!X120+'Appliance costs'!X84+'Appliance costs'!X85+'Appliance costs'!X121","v":-2522.0609945398046},{"$f":"'Appliance costs'!Y117+'Appliance costs'!Y118+'Appliance costs'!Y120+'Appliance costs'!Y84+'Appliance costs'!Y85+'Appliance costs'!Y121","v":-2229.8816675382805},{"$f":"'Appliance costs'!Z117+'Appliance costs'!Z118+'Appliance costs'!Z120+'Appliance costs'!Z84+'Appliance costs'!Z85+'Appliance costs'!Z121","v":-1938.9525792779584},{"$f":"'Appliance costs'!AA117+'Appliance costs'!AA118+'Appliance costs'!AA120+'Appliance costs'!AA84+'Appliance costs'!AA85+'Appliance costs'!AA121","v":-1703.1284109866754},{"$f":"'Appliance costs'!AB117+'Appliance costs'!AB118+'Appliance costs'!AB120+'Appliance costs'!AB84+'Appliance costs'!AB85+'Appliance costs'!AB121","v":-1476.1007253829966},{"$f":"'Appliance costs'!AC117+'Appliance costs'!AC118+'Appliance costs'!AC120+'Appliance costs'!AC84+'Appliance costs'!AC85+'Appliance costs'!AC121","v":-1266.4892904110825},{"$f":"'Appliance costs'!AD117+'Appliance costs'!AD118+'Appliance costs'!AD120+'Appliance costs'!AD84+'Appliance costs'!AD85+'Appliance costs'!AD121","v":-1048.7968839996149},{"$f":"'Appliance costs'!AE117+'Appliance costs'!AE118+'Appliance costs'!AE120+'Appliance costs'!AE84+'Appliance costs'!AE85+'Appliance costs'!AE121","v":-770.34744836576965},{"$f":"'Appliance costs'!AF117+'Appliance costs'!AF118+'Appliance costs'!AF120+'Appliance costs'!AF84+'Appliance costs'!AF85+'Appliance costs'!AF121","v":-591.45570756111874},{"$f":"'Appliance costs'!AG117+'Appliance costs'!AG118+'Appliance costs'!AG120+'Appliance costs'!AG84+'Appliance costs'!AG85+'Appliance costs'!AG121","v":-336.37923493644234},{"$f":"'Appliance costs'!AH117+'Appliance costs'!AH118+'Appliance costs'!AH120+'Appliance costs'!AH84+'Appliance costs'!AH85+'Appliance costs'!AH121","v":-110.11444131387452},{"$f":"'Appliance costs'!AI117+'Appliance costs'!AI118+'Appliance costs'!AI120+'Appliance costs'!AI84+'Appliance costs'!AI85+'Appliance costs'!AI121","v":94.706271795705561},{"$f":"'Appliance costs'!AJ117+'Appliance costs'!AJ118+'Appliance costs'!AJ120+'Appliance costs'!AJ84+'Appliance costs'!AJ85+'Appliance costs'!AJ121","v":312.05117311754248},{"$f":"'Appliance costs'!AK117+'Appliance costs'!AK118+'Appliance costs'!AK120+'Appliance costs'!AK84+'Appliance costs'!AK85+'Appliance costs'!AK121","v":-432.58838359980041},{"$f":"'Appliance costs'!AL117+'Appliance costs'!AL118+'Appliance costs'!AL120+'Appliance costs'!AL84+'Appliance costs'!AL85+'Appliance costs'!AL121","v":-534.73359073269216},{"$f":"'Appliance costs'!AM117+'Appliance costs'!AM118+'Appliance costs'!AM120+'Appliance costs'!AM84+'Appliance costs'!AM85+'Appliance costs'!AM121","v":-331.37620075686118},{"$f":"'Appliance costs'!AN117+'Appliance costs'!AN118+'Appliance costs'!AN120+'Appliance costs'!AN84+'Appliance costs'!AN85+'Appliance costs'!AN121","v":-80.363072548567288},{"$f":"'Appliance costs'!AO117+'Appliance costs'!AO118+'Appliance costs'!AO120+'Appliance costs'!AO84+'Appliance costs'!AO85+'Appliance costs'!AO121","v":152.87543585108551},{"$f":"'Appliance costs'!AP117+'Appliance costs'!AP118+'Appliance costs'!AP120+'Appliance costs'!AP84+'Appliance costs'!AP85+'Appliance costs'!AP121","v":402.62025455474486},{"$f":"'Appliance costs'!AQ117+'Appliance costs'!AQ118+'Appliance costs'!AQ120+'Appliance costs'!AQ84+'Appliance costs'!AQ85+'Appliance costs'!AQ121","v":677.65119970158162},{"$f":"'Appliance costs'!AR117+'Appliance costs'!AR118+'Appliance costs'!AR120+'Appliance costs'!AR84+'Appliance costs'!AR85+'Appliance costs'!AR121","v":986.49368023534748},{"$f":"'Appliance costs'!AS117+'Appliance costs'!AS118+'Appliance costs'!AS120+'Appliance costs'!AS84+'Appliance costs'!AS85+'Appliance costs'!AS121","v":1332.8973035136821},{"$f":"'Appliance costs'!AT117+'Appliance costs'!AT118+'Appliance costs'!AT120+'Appliance costs'!AT84+'Appliance costs'!AT85+'Appliance costs'!AT121","v":1732.5385610353499},{"$f":"'Appliance costs'!AU117+'Appliance costs'!AU118+'Appliance costs'!AU120+'Appliance costs'!AU84+'Appliance costs'!AU85+'Appliance costs'!AU121","v":2189.5680341905017},{"$f":"'Appliance costs'!AV117+'Appliance costs'!AV118+'Appliance costs'!AV120+'Appliance costs'!AV84+'Appliance costs'!AV85+'Appliance costs'!AV121","v":2715.4439199125641},{"$f":"'Appliance costs'!AW117+'Appliance costs'!AW118+'Appliance costs'!AW120+'Appliance costs'!AW84+'Appliance costs'!AW85+'Appliance costs'!AW121","v":3316.2087045449462},{"$f":"'Appliance costs'!AX117+'Appliance costs'!AX118+'Appliance costs'!AX120+'Appliance costs'!AX84+'Appliance costs'!AX85+'Appliance costs'!AX121","v":4008.8575580290471},{"$f":"'Appliance costs'!AY117+'Appliance costs'!AY118+'Appliance costs'!AY120+'Appliance costs'!AY84+'Appliance costs'!AY85+'Appliance costs'!AY121","v":4802.5503238264992},{"$f":"'Appliance costs'!AZ117+'Appliance costs'!AZ118+'Appliance costs'!AZ120+'Appliance costs'!AZ84+'Appliance costs'!AZ85+'Appliance costs'!AZ121","v":5723.0204909288832},{"$f":"'Appliance costs'!BA117+'Appliance costs'!BA118+'Appliance costs'!BA120+'Appliance costs'!BA84+'Appliance costs'!BA85+'Appliance costs'!BA121","v":6800.7168027041662},{"$f":"'Appliance costs'!BB117+'Appliance costs'!BB118+'Appliance costs'!BB120+'Appliance costs'!BB84+'Appliance costs'!BB85+'Appliance costs'!BB121","v":8086.3097421514267},{"$f":"'Appliance costs'!BC117+'Appliance costs'!BC118+'Appliance costs'!BC120+'Appliance costs'!BC84+'Appliance costs'!BC85+'Appliance costs'!BC121","v":9332.4153638892676},{"$f":"'Appliance costs'!BD117+'Appliance costs'!BD118+'Appliance costs'!BD120+'Appliance costs'!BD84+'Appliance costs'!BD85+'Appliance costs'!BD121","v":10473.334183423556},{"$f":"'Appliance costs'!BE117+'Appliance costs'!BE118+'Appliance costs'!BE120+'Appliance costs'!BE84+'Appliance costs'!BE85+'Appliance costs'!BE121","v":11640.125488719976},{"$f":"'Appliance costs'!BF117+'Appliance costs'!BF118+'Appliance costs'!BF120+'Appliance costs'!BF84+'Appliance costs'!BF85+'Appliance costs'!BF121","v":12958.452286215883},{"$f":"'Appliance costs'!BG117+'Appliance costs'!BG118+'Appliance costs'!BG120+'Appliance costs'!BG84+'Appliance costs'!BG85+'Appliance costs'!BG121","v":14524.724506355418},{"$f":"'Appliance costs'!BH117+'Appliance costs'!BH118+'Appliance costs'!BH120+'Appliance costs'!BH84+'Appliance costs'!BH85+'Appliance costs'!BH121","v":16792.89388711123},{"$f":"'Appliance costs'!BI117+'Appliance costs'!BI118+'Appliance costs'!BI120+'Appliance costs'!BI84+'Appliance costs'!BI85+'Appliance costs'!BI121","v":20121.61537670012},{"$f":"'Appliance costs'!BJ117+'Appliance costs'!BJ118+'Appliance costs'!BJ120+'Appliance costs'!BJ84+'Appliance costs'!BJ85+'Appliance costs'!BJ121","v":25044.239647989805},{"$f":"'Appliance costs'!BK117+'Appliance costs'!BK118+'Appliance costs'!BK120+'Appliance costs'!BK84+'Appliance costs'!BK85+'Appliance costs'!BK121","v":-3166.0813513652447},{"$f":"'Appliance costs'!BL117+'Appliance costs'!BL118+'Appliance costs'!BL120+'Appliance costs'!BL84+'Appliance costs'!BL85+'Appliance costs'!BL121","v":-3159.9936609908054},{"$f":"'Appliance costs'!BM117+'Appliance costs'!BM118+'Appliance costs'!BM120+'Appliance costs'!BM84+'Appliance costs'!BM85+'Appliance costs'!BM121","v":-3156.1761874923309},{"$f":"'Appliance costs'!BN117+'Appliance costs'!BN118+'Appliance costs'!BN120+'Appliance costs'!BN84+'Appliance costs'!BN85+'Appliance costs'!BN121","v":-3147.8402760147874},{"$f":"'Appliance costs'!BO117+'Appliance costs'!BO118+'Appliance costs'!BO120+'Appliance costs'!BO84+'Appliance costs'!BO85+'Appliance costs'!BO121","v":-3141.7744951834438},{"$f":"'Appliance costs'!BP117+'Appliance costs'!BP118+'Appliance costs'!BP120+'Appliance costs'!BP84+'Appliance costs'!BP85+'Appliance costs'!BP121","v":-3135.7159317447931},{"$f":"'Appliance costs'!BQ117+'Appliance costs'!BQ118+'Appliance costs'!BQ120+'Appliance costs'!BQ84+'Appliance costs'!BQ85+'Appliance costs'!BQ121","v":-3131.9274137793368},{"$f":"'Appliance costs'!BR117+'Appliance costs'!BR118+'Appliance costs'!BR120+'Appliance costs'!BR84+'Appliance costs'!BR85+'Appliance costs'!BR121","v":-3123.6202874854944},{"$f":"'Appliance costs'!BS117+'Appliance costs'!BS118+'Appliance costs'!BS120+'Appliance costs'!BS84+'Appliance costs'!BS85+'Appliance costs'!BS121","v":-3117.5831225353668},{"$f":"'Appliance costs'!BT117+'Appliance costs'!BT118+'Appliance costs'!BT120+'Appliance costs'!BT84+'Appliance costs'!BT85+'Appliance costs'!BT121","v":-3111.553006715706},{"$f":"'Appliance costs'!BU117+'Appliance costs'!BU118+'Appliance costs'!BU120+'Appliance costs'!BU84+'Appliance costs'!BU85+'Appliance costs'!BU121","v":-3107.7927691407431},{"$f":"'Appliance costs'!BV117+'Appliance costs'!BV118+'Appliance costs'!BV120+'Appliance costs'!BV84+'Appliance costs'!BV85+'Appliance costs'!BV121","v":-3099.513757036133},{"$f":"'Appliance costs'!BW117+'Appliance costs'!BW118+'Appliance costs'!BW120+'Appliance costs'!BW84+'Appliance costs'!BW85+'Appliance costs'!BW121","v":-3093.504541094765},{"$f":"'Appliance costs'!BX117+'Appliance costs'!BX118+'Appliance costs'!BX120+'Appliance costs'!BX84+'Appliance costs'!BX85+'Appliance costs'!BX121","v":-3087.5022101177701},{"$f":"'Appliance costs'!BY117+'Appliance costs'!BY118+'Appliance costs'!BY120+'Appliance costs'!BY84+'Appliance costs'!BY85+'Appliance costs'!BY121","v":-3083.7695942273931},{"$f":"'Appliance costs'!BZ117+'Appliance costs'!BZ118+'Appliance costs'!BZ120+'Appliance costs'!BZ84+'Appliance costs'!BZ85+'Appliance costs'!BZ121","v":-3075.5180416509693},{"$f":"'Appliance costs'!CA117+'Appliance costs'!CA118+'Appliance costs'!CA120+'Appliance costs'!CA84+'Appliance costs'!CA85+'Appliance costs'!CA121","v":-3069.5361240767843},{"$f":"'Appliance costs'!CB117+'Appliance costs'!CB118+'Appliance costs'!CB120+'Appliance costs'!CB84+'Appliance costs'!CB85+'Appliance costs'!CB121","v":-3063.5609312951192},{"$f":"'Appliance costs'!CC117+'Appliance costs'!CC118+'Appliance costs'!CC120+'Appliance costs'!CC84+'Appliance costs'!CC85+'Appliance costs'!CC121","v":-3157.4776424133433}]
[]
[]
["LGA","2021 Weights",2021,{"$f":"C23+1","v":2022},{"$f":"D23+1","v":2023},{"$f":"E23+1","v":2024},{"$f":"F23+1","v":2025},{"$f":"G23+1","v":2026},{"$f":"H23+1","v":2027},{"$f":"I23+1","v":2028},{"$f":"J23+1","v":2029},{"$f":"K23+1","v":2030},{"$f":"L23+1","v":2031},{"$f":"M23+1","v":2032},{"$f":"N23+1","v":2033},{"$f":"O23+1","v":2034},{"$f":"P23+1","v":2035},{"$f":"Q23+1","v":2036},{"$f":"R23+1","v":2037},{"$f":"S23+1","v":2038},{"$f":"T23+1","v":2039},{"$f":"U23+1","v":2040},{"$f":"V23+1","v":2041},{"$f":"W23+1","v":2042},{"$f":"X23+1","v":2043},{"$f":"Y23+1","v":2044},{"$f":"Z23+1","v":2045},{"$f":"AA23+1","v":2046},{"$f":"AB23+1","v":2047},{"$f":"AC23+1","v":2048},{"$f":"AD23+1","v":2049},{"$f":"AE23+1","v":2050},{"$f":"AF23+1","v":2051},{"$f":"AG23+1","v":2052},{"$f":"AH23+1","v":2053},{"$f":"AI23+1","v":2054},{"$f":"AJ23+1","v":2055},{"$f":"AK23+1","v":2056},{"$f":"AL23+1","v":2057},{"$f":"AM23+1","v":2058},{"$f":"AN23+1","v":2059},{"$f":"AO23+1","v":2060},{"$f":"AP23+1","v":2061},{"$f":"AQ23+1","v":2062},{"$f":"AR23+1","v":2063},{"$f":"AS23+1","v":2064},{"$f":"AT23+1","v":2065},{"$f":"AU23+1","v":2066},{"$f":"AV23+1","v":2067},{"$f":"AW23+1","v":2068},{"$f":"AX23+1","v":2069},{"$f":"AY23+1","v":2070},{"$f":"AZ23+1","v":2071},{"$f":"BA23+1","v":2072},{"$f":"BB23+1","v":2073},{"$f":"BC23+1","v":2074},{"$f":"BD23+1","v":2075},{"$f":"BE23+1","v":2076},{"$f":"BF23+1","v":2077},{"$f":"BG23+1","v":2078},{"$f":"BH23+1","v":2079},{"$f":"BI23+1","v":2080},{"$f":"BJ23+1","v":2081},{"$f":"BK23+1","v":2082},{"$f":"BL23+1","v":2083},{"$f":"BM23+1","v":2084},{"$f":"BN23+1","v":2085},{"$f":"BO23+1","v":2086},{"$f":"BP23+1","v":2087},{"$f":"BQ23+1","v":2088},{"$f":"BR23+1","v":2089},{"$f":"BS23+1","v":2090},{"$f":"BT23+1","v":2091},{"$f":"BU23+1","v":2092},{"$f":"BV23+1","v":2093},{"$f":"BW23+1","v":2094},{"$f":"BX23+1","v":2095},{"$f":"BY23+1","v":2096},{"$f":"BZ23+1","v":2097},{"$f":"CA23+1","v":2098},{"$f":"CB23+1","v":2099},{"$f":"CC23+1","v":2100}]
["Bass Coast (S)",{"$f":"Customers!K140","v":3653},{"$f":"IF(Control!$B46=\"L\",'RES S curve-disconnect'!C227,IF(Control!$B46=\"M\",'RES S curve-disconnect'!C205,'RES S curve-disconnect'!C183))","v":-4002.110732600247},{"$f":"IF(Control!$B46=\"L\",'RES S curve-disconnect'!D227,IF(Control!$B46=\"M\",'RES S curve-disconnect'!D205,'RES S curve-disconnect'!D183))","v":-4248.9513257410254},{"$f":"IF(Control!$B46=\"L\",'RES S curve-disconnect'!E227,IF(Control!$B46=\"M\",'RES S curve-disconnect'!E205,'RES S curve-disconnect'!E183))","v":-3661.8421313637305},{"$f":"IF(Control!$B46=\"L\",'RES S curve-disconnect'!F227,IF(Control!$B46=\"M\",'RES S curve-disconnect'!F205,'RES S curve-disconnect'!F183))","v":-3594.177915008192},{"$f":"IF(Control!$B46=\"L\",'RES S curve-disconnect'!G227,IF(Control!$B46=\"M\",'RES S curve-disconnect'!G205,'RES S curve-disconnect'!G183))","v":-4198.8616931261158},{"$f":"IF(Control!$B46=\"L\",'RES S curve-disconnect'!H227,IF(Control!$B46=\"M\",'RES S curve-disconnect'!H205,'RES S curve-disconnect'!H183))","v":-4245.2198722350367},{"$f":"IF(Control!$B46=\"L\",'RES S curve-disconnect'!I227,IF(Control!$B46=\"M\",'RES S curve-disconnect'!I205,'RES S curve-disconnect'!I183))","v":-4046.2429975796213},{"$f":"IF(Control!$B46=\"L\",'RES S curve-disconnect'!J227,IF(Control!$B46=\"M\",'RES S curve-disconnect'!J205,'RES S curve-disconnect'!J183))","v":-4373.7158035632046},{"$f":"IF(Control!$B46=\"L\",'RES S curve-disconnect'!K227,IF(Control!$B46=\"M\",'RES S curve-disconnect'!K205,'RES S curve-disconnect'!K183))","v":-3913.0258307977388},{"$f":"IF(Control!$B46=\"L\",'RES S curve-disconnect'!L227,IF(Control!$B46=\"M\",'RES S curve-disconnect'!L205,'RES S curve-disconnect'!L183))","v":-4064.9570775054808},{"$f":"IF(Control!$B46=\"L\",'RES S curve-disconnect'!M227,IF(Control!$B46=\"M\",'RES S curve-disconnect'!M205,'RES S curve-disconnect'!M183))","v":-4330.0442467483026},{"$f":"IF(Control!$B46=\"L\",'RES S curve-disconnect'!N227,IF(Control!$B46=\"M\",'RES S curve-disconnect'!N205,'RES S curve-disconnect'!N183))","v":-4341.1955326136695},{"$f":"IF(Control!$B46=\"L\",'RES S curve-disconnect'!O227,IF(Control!$B46=\"M\",'RES S curve-disconnect'!O205,'RES S curve-disconnect'!O183))","v":-4061.3527922312305},{"$f":"IF(Control!$B46=\"L\",'RES S curve-disconnect'!P227,IF(Control!$B46=\"M\",'RES S curve-disconnect'!P205,'RES S curve-disconnect'!P183))","v":-3838.1450034743266},{"$f":"IF(Control!$B46=\"L\",'RES S curve-disconnect'!Q227,IF(Control!$B46=\"M\",'RES S curve-disconnect'!Q205,'RES S curve-disconnect'!Q183))","v":-3509.1734334452576},{"$f":"IF(Control!$B46=\"L\",'RES S curve-disconnect'!R227,IF(Control!$B46=\"M\",'RES S curve-disconnect'!R205,'RES S curve-disconnect'!R183))","v":-3316.3592242143336},{"$f":"IF(Control!$B46=\"L\",'RES S curve-disconnect'!S227,IF(Control!$B46=\"M\",'RES S curve-disconnect'!S205,'RES S curve-disconnect'!S183))","v":-3014.0456395415404},{"$f":"IF(Control!$B46=\"L\",'RES S curve-disconnect'!T227,IF(Control!$B46=\"M\",'RES S curve-disconnect'!T205,'RES S curve-disconnect'!T183))","v":-2853.2741647595099},{"$f":"IF(Control!$B46=\"L\",'RES S curve-disconnect'!U227,IF(Control!$B46=\"M\",'RES S curve-disconnect'!U205,'RES S curve-disconnect'!U183))","v":-2664.5549094469588},{"$f":"IF(Control!$B46=\"L\",'RES S curve-disconnect'!V227,IF(Control!$B46=\"M\",'RES S curve-disconnect'!V205,'RES S curve-disconnect'!V183))","v":-2528.4374947349797},{"$f":"IF(Control!$B46=\"L\",'RES S curve-disconnect'!W227,IF(Control!$B46=\"M\",'RES S curve-disconnect'!W205,'RES S curve-disconnect'!W183))","v":-2419.005417008163},{"$f":"IF(Control!$B46=\"L\",'RES S curve-disconnect'!X227,IF(Control!$B46=\"M\",'RES S curve-disconnect'!X205,'RES S curve-disconnect'!X183))","v":-2195.6495236932806},{"$f":"IF(Control!$B46=\"L\",'RES S curve-disconnect'!Y227,IF(Control!$B46=\"M\",'RES S curve-disconnect'!Y205,'RES S curve-disconnect'!Y183))","v":-1968.8047045118519},{"$f":"IF(Control!$B46=\"L\",'RES S curve-disconnect'!Z227,IF(Control!$B46=\"M\",'RES S curve-disconnect'!Z205,'RES S curve-disconnect'!Z183))","v":-1809.787697437087},{"$f":"IF(Control!$B46=\"L\",'RES S curve-disconnect'!AA227,IF(Control!$B46=\"M\",'RES S curve-disconnect'!AA205,'RES S curve-disconnect'!AA183))","v":-1649.5556705960607},{"$f":"IF(Control!$B46=\"L\",'RES S curve-disconnect'!AB227,IF(Control!$B46=\"M\",'RES S curve-disconnect'!AB205,'RES S curve-disconnect'!AB183))","v":-1518.1192762827186},{"$f":"IF(Control!$B46=\"L\",'RES S curve-disconnect'!AC227,IF(Control!$B46=\"M\",'RES S curve-disconnect'!AC205,'RES S curve-disconnect'!AC183))","v":-1390.1906723816803},{"$f":"IF(Control!$B46=\"L\",'RES S curve-disconnect'!AD227,IF(Control!$B46=\"M\",'RES S curve-disconnect'!AD205,'RES S curve-disconnect'!AD183))","v":-1271.6455753752625},{"$f":"IF(Control!$B46=\"L\",'RES S curve-disconnect'!AE227,IF(Control!$B46=\"M\",'RES S curve-disconnect'!AE205,'RES S curve-disconnect'!AE183))","v":-1146.0803458089299},{"$f":"IF(Control!$B46=\"L\",'RES S curve-disconnect'!AF227,IF(Control!$B46=\"M\",'RES S curve-disconnect'!AF205,'RES S curve-disconnect'!AF183))","v":-990.27559383930429},{"$f":"IF(Control!$B46=\"L\",'RES S curve-disconnect'!AG227,IF(Control!$B46=\"M\",'RES S curve-disconnect'!AG205,'RES S curve-disconnect'!AG183))","v":-892.3950120154542},{"$f":"IF(Control!$B46=\"L\",'RES S curve-disconnect'!AH227,IF(Control!$B46=\"M\",'RES S curve-disconnect'!AH205,'RES S curve-disconnect'!AH183))","v":-758.26452903739448},{"$f":"IF(Control!$B46=\"L\",'RES S curve-disconnect'!AI227,IF(Control!$B46=\"M\",'RES S curve-disconnect'!AI205,'RES S curve-disconnect'!AI183))","v":-634.41046716753999},{"$f":"IF(Control!$B46=\"L\",'RES S curve-disconnect'!AJ227,IF(Control!$B46=\"M\",'RES S curve-disconnect'!AJ205,'RES S curve-disconnect'!AJ183))","v":-523.31718327539625},{"$f":"IF(Control!$B46=\"L\",'RES S curve-disconnect'!AK227,IF(Control!$B46=\"M\",'RES S curve-disconnect'!AK205,'RES S curve-disconnect'!AK183))","v":-405.25924984252481},{"$f":"IF(Control!$B46=\"L\",'RES S curve-disconnect'!AL227,IF(Control!$B46=\"M\",'RES S curve-disconnect'!AL205,'RES S curve-disconnect'!AL183))","v":-822.74761615631087},{"$f":"IF(Control!$B46=\"L\",'RES S curve-disconnect'!AM227,IF(Control!$B46=\"M\",'RES S curve-disconnect'!AM205,'RES S curve-disconnect'!AM183))","v":-872.47400878848418},{"$f":"IF(Control!$B46=\"L\",'RES S curve-disconnect'!AN227,IF(Control!$B46=\"M\",'RES S curve-disconnect'!AN205,'RES S curve-disconnect'!AN183))","v":-758.19848854759823},{"$f":"IF(Control!$B46=\"L\",'RES S curve-disconnect'!AO227,IF(Control!$B46=\"M\",'RES S curve-disconnect'!AO205,'RES S curve-disconnect'!AO183))","v":-620.79735012357764},{"$f":"IF(Control!$B46=\"L\",'RES S curve-disconnect'!AP227,IF(Control!$B46=\"M\",'RES S curve-disconnect'!AP205,'RES S curve-disconnect'!AP183))","v":-495.26290952859574},{"$f":"IF(Control!$B46=\"L\",'RES S curve-disconnect'!AQ227,IF(Control!$B46=\"M\",'RES S curve-disconnect'!AQ205,'RES S curve-disconnect'!AQ183))","v":-358.68667420156532},{"$f":"IF(Control!$B46=\"L\",'RES S curve-disconnect'!AR227,IF(Control!$B46=\"M\",'RES S curve-disconnect'!AR205,'RES S curve-disconnect'!AR183))","v":-209.55242058391261},{"$f":"IF(Control!$B46=\"L\",'RES S curve-disconnect'!AS227,IF(Control!$B46=\"M\",'RES S curve-disconnect'!AS205,'RES S curve-disconnect'!AS183))","v":-42.41466162223935},{"$f":"IF(Control!$B46=\"L\",'RES S curve-disconnect'!AT227,IF(Control!$B46=\"M\",'RES S curve-disconnect'!AT205,'RES S curve-disconnect'!AT183))","v":143.59034564191791},{"$f":"IF(Control!$B46=\"L\",'RES S curve-disconnect'!AU227,IF(Control!$B46=\"M\",'RES S curve-disconnect'!AU205,'RES S curve-disconnect'!AU183))","v":359.93301293448121},{"$f":"IF(Control!$B46=\"L\",'RES S curve-disconnect'!AV227,IF(Control!$B46=\"M\",'RES S curve-disconnect'!AV205,'RES S curve-disconnect'!AV183))","v":605.53334946833195},{"$f":"IF(Control!$B46=\"L\",'RES S curve-disconnect'!AW227,IF(Control!$B46=\"M\",'RES S curve-disconnect'!AW205,'RES S curve-disconnect'!AW183))","v":887.27697303325954},{"$f":"IF(Control!$B46=\"L\",'RES S curve-disconnect'!AX227,IF(Control!$B46=\"M\",'RES S curve-disconnect'!AX205,'RES S curve-disconnect'!AX183))","v":1206.9553472863909},{"$f":"IF(Control!$B46=\"L\",'RES S curve-disconnect'!AY227,IF(Control!$B46=\"M\",'RES S curve-disconnect'!AY205,'RES S curve-disconnect'!AY183))","v":1576.3932641567267},{"$f":"IF(Control!$B46=\"L\",'RES S curve-disconnect'!AZ227,IF(Control!$B46=\"M\",'RES S curve-disconnect'!AZ205,'RES S curve-disconnect'!AZ183))","v":1996.8480058654595},{"$f":"IF(Control!$B46=\"L\",'RES S curve-disconnect'!BA227,IF(Control!$B46=\"M\",'RES S curve-disconnect'!BA205,'RES S curve-disconnect'!BA183))","v":2482.4951668623803},{"$f":"IF(Control!$B46=\"L\",'RES S curve-disconnect'!BB227,IF(Control!$B46=\"M\",'RES S curve-disconnect'!BB205,'RES S curve-disconnect'!BB183))","v":3047.6233308718147},{"$f":"IF(Control!$B46=\"L\",'RES S curve-disconnect'!BC227,IF(Control!$B46=\"M\",'RES S curve-disconnect'!BC205,'RES S curve-disconnect'!BC183))","v":3721.1374449557275},{"$f":"IF(Control!$B46=\"L\",'RES S curve-disconnect'!BD227,IF(Control!$B46=\"M\",'RES S curve-disconnect'!BD205,'RES S curve-disconnect'!BD183))","v":4365.0394811672695},{"$f":"IF(Control!$B46=\"L\",'RES S curve-disconnect'!BE227,IF(Control!$B46=\"M\",'RES S curve-disconnect'!BE205,'RES S curve-disconnect'!BE183))","v":4951.6211697857452},{"$f":"IF(Control!$B46=\"L\",'RES S curve-disconnect'!BF227,IF(Control!$B46=\"M\",'RES S curve-disconnect'!BF205,'RES S curve-disconnect'!BF183))","v":5552.3814798313124},{"$f":"IF(Control!$B46=\"L\",'RES S curve-disconnect'!BG227,IF(Control!$B46=\"M\",'RES S curve-disconnect'!BG205,'RES S curve-disconnect'!BG183))","v":6234.5062138523517},{"$f":"IF(Control!$B46=\"L\",'RES S curve-disconnect'!BH227,IF(Control!$B46=\"M\",'RES S curve-disconnect'!BH205,'RES S curve-disconnect'!BH183))","v":7042.9139699444504},{"$f":"IF(Control!$B46=\"L\",'RES S curve-disconnect'!BI227,IF(Control!$B46=\"M\",'RES S curve-disconnect'!BI205,'RES S curve-disconnect'!BI183))","v":8215.666561793967},{"$f":"IF(Control!$B46=\"L\",'RES S curve-disconnect'!BJ227,IF(Control!$B46=\"M\",'RES S curve-disconnect'!BJ205,'RES S curve-disconnect'!BJ183))","v":9926.4947606404257},{"$f":"IF(Control!$B46=\"L\",'RES S curve-disconnect'!BK227,IF(Control!$B46=\"M\",'RES S curve-disconnect'!BK205,'RES S curve-disconnect'!BK183))","v":12441.407476212476},{"$f":"IF(Control!$B46=\"L\",'RES S curve-disconnect'!BL227,IF(Control!$B46=\"M\",'RES S curve-disconnect'!BL205,'RES S curve-disconnect'!BL183))","v":-2341.8644726244756},{"$f":"IF(Control!$B46=\"L\",'RES S curve-disconnect'!BM227,IF(Control!$B46=\"M\",'RES S curve-disconnect'!BM205,'RES S curve-disconnect'!BM183))","v":-2338.5934420059184},{"$f":"IF(Control!$B46=\"L\",'RES S curve-disconnect'!BN227,IF(Control!$B46=\"M\",'RES S curve-disconnect'!BN205,'RES S curve-disconnect'!BN183))","v":-2337.5906236713017},{"$f":"IF(Control!$B46=\"L\",'RES S curve-disconnect'!BO227,IF(Control!$B46=\"M\",'RES S curve-disconnect'!BO205,'RES S curve-disconnect'!BO183))","v":-2332.0673731390461},{"$f":"IF(Control!$B46=\"L\",'RES S curve-disconnect'!BP227,IF(Control!$B46=\"M\",'RES S curve-disconnect'!BP205,'RES S curve-disconnect'!BP183))","v":-2328.8122693486057},{"$f":"IF(Control!$B46=\"L\",'RES S curve-disconnect'!BQ227,IF(Control!$B46=\"M\",'RES S curve-disconnect'!BQ205,'RES S curve-disconnect'!BQ183))","v":-2325.5624093017495},{"$f":"IF(Control!$B46=\"L\",'RES S curve-disconnect'!BR227,IF(Control!$B46=\"M\",'RES S curve-disconnect'!BR205,'RES S curve-disconnect'!BR183))","v":-2324.5806312757013},{"$f":"IF(Control!$B46=\"L\",'RES S curve-disconnect'!BS227,IF(Control!$B46=\"M\",'RES S curve-disconnect'!BS205,'RES S curve-disconnect'!BS183))","v":-2319.0782916074058},{"$f":"IF(Control!$B46=\"L\",'RES S curve-disconnect'!BT227,IF(Control!$B46=\"M\",'RES S curve-disconnect'!BT205,'RES S curve-disconnect'!BT183))","v":-2315.843970049641},{"$f":"IF(Control!$B46=\"L\",'RES S curve-disconnect'!BU227,IF(Control!$B46=\"M\",'RES S curve-disconnect'!BU205,'RES S curve-disconnect'!BU183))","v":-2312.6147644123425},{"$f":"IF(Control!$B46=\"L\",'RES S curve-disconnect'!BV227,IF(Control!$B46=\"M\",'RES S curve-disconnect'!BV205,'RES S curve-disconnect'!BV183))","v":-2311.653513775771},{"$f":"IF(Control!$B46=\"L\",'RES S curve-disconnect'!BW227,IF(Control!$B46=\"M\",'RES S curve-disconnect'!BW205,'RES S curve-disconnect'!BW183))","v":-2306.1715752748114},{"$f":"IF(Control!$B46=\"L\",'RES S curve-disconnect'!BX227,IF(Control!$B46=\"M\",'RES S curve-disconnect'!BX205,'RES S curve-disconnect'!BX183))","v":-2302.9575294551196},{"$f":"IF(Control!$B46=\"L\",'RES S curve-disconnect'!BY227,IF(Control!$B46=\"M\",'RES S curve-disconnect'!BY205,'RES S curve-disconnect'!BY183))","v":-2299.7484749144769},{"$f":"IF(Control!$B46=\"L\",'RES S curve-disconnect'!BZ227,IF(Control!$B46=\"M\",'RES S curve-disconnect'!BZ205,'RES S curve-disconnect'!BZ183))","v":-2298.8072515159934},{"$f":"IF(Control!$B46=\"L\",'RES S curve-disconnect'!CA227,IF(Control!$B46=\"M\",'RES S curve-disconnect'!CA205,'RES S curve-disconnect'!CA183))","v":-2293.3452171724325},{"$f":"IF(Control!$B46=\"L\",'RES S curve-disconnect'!CB227,IF(Control!$B46=\"M\",'RES S curve-disconnect'!CB205,'RES S curve-disconnect'!CB183))","v":-2290.1509532023961},{"$f":"IF(Control!$B46=\"L\",'RES S curve-disconnect'!CC227,IF(Control!$B46=\"M\",'RES S curve-disconnect'!CC205,'RES S curve-disconnect'!CC183))","v":-2286.9615589717059},{"$f":"IF(Control!$B46=\"L\",'RES S curve-disconnect'!CD227,IF(Control!$B46=\"M\",'RES S curve-disconnect'!CD205,'RES S curve-disconnect'!CD183))","v":-2333.6619389828893}]
["Bayside (C)",{"$f":"Customers!K141","v":37128},{"$f":"IF(Control!$B47=\"L\",'RES S curve-disconnect'!C228,IF(Control!$B47=\"M\",'RES S curve-disconnect'!C206,'RES S curve-disconnect'!C184))","v":-4430.4826961214349},{"$f":"IF(Control!$B47=\"L\",'RES S curve-disconnect'!D228,IF(Control!$B47=\"M\",'RES S curve-disconnect'!D206,'RES S curve-disconnect'!D184))","v":-5043.5417168990207},{"$f":"IF(Control!$B47=\"L\",'RES S curve-disconnect'!E228,IF(Control!$B47=\"M\",'RES S curve-disconnect'!E206,'RES S curve-disconnect'!E184))","v":-4477.205391778296},{"$f":"IF(Control!$B47=\"L\",'RES S curve-disconnect'!F228,IF(Control!$B47=\"M\",'RES S curve-disconnect'!F206,'RES S curve-disconnect'!F184))","v":-4294.3251619827643},{"$f":"IF(Control!$B47=\"L\",'RES S curve-disconnect'!G228,IF(Control!$B47=\"M\",'RES S curve-disconnect'!G206,'RES S curve-disconnect'!G184))","v":-5557.8049902835173},{"$f":"IF(Control!$B47=\"L\",'RES S curve-disconnect'!H228,IF(Control!$B47=\"M\",'RES S curve-disconnect'!H206,'RES S curve-disconnect'!H184))","v":-5587.594396519431},{"$f":"IF(Control!$B47=\"L\",'RES S curve-disconnect'!I228,IF(Control!$B47=\"M\",'RES S curve-disconnect'!I206,'RES S curve-disconnect'!I184))","v":-5068.6098009210345},{"$f":"IF(Control!$B47=\"L\",'RES S curve-disconnect'!J228,IF(Control!$B47=\"M\",'RES S curve-disconnect'!J206,'RES S curve-disconnect'!J184))","v":-5383.6717587044768},{"$f":"IF(Control!$B47=\"L\",'RES S curve-disconnect'!K228,IF(Control!$B47=\"M\",'RES S curve-disconnect'!K206,'RES S curve-disconnect'!K184))","v":-4462.5356012268103},{"$f":"IF(Control!$B47=\"L\",'RES S curve-disconnect'!L228,IF(Control!$B47=\"M\",'RES S curve-disconnect'!L206,'RES S curve-disconnect'!L184))","v":-4890.217294970188},{"$f":"IF(Control!$B47=\"L\",'RES S curve-disconnect'!M228,IF(Control!$B47=\"M\",'RES S curve-disconnect'!M206,'RES S curve-disconnect'!M184))","v":-5657.6426771307979},{"$f":"IF(Control!$B47=\"L\",'RES S curve-disconnect'!N228,IF(Control!$B47=\"M\",'RES S curve-disconnect'!N206,'RES S curve-disconnect'!N184))","v":-5737.7633843038029},{"$f":"IF(Control!$B47=\"L\",'RES S curve-disconnect'!O228,IF(Control!$B47=\"M\",'RES S curve-disconnect'!O206,'RES S curve-disconnect'!O184))","v":-5075.9571043578371},{"$f":"IF(Control!$B47=\"L\",'RES S curve-disconnect'!P228,IF(Control!$B47=\"M\",'RES S curve-disconnect'!P206,'RES S curve-disconnect'!P184))","v":-4550.8063488242678},{"$f":"IF(Control!$B47=\"L\",'RES S curve-disconnect'!Q228,IF(Control!$B47=\"M\",'RES S curve-disconnect'!Q206,'RES S curve-disconnect'!Q184))","v":-3752.9326051506137},{"$f":"IF(Control!$B47=\"L\",'RES S curve-disconnect'!R228,IF(Control!$B47=\"M\",'RES S curve-disconnect'!R206,'RES S curve-disconnect'!R184))","v":-3304.3141673147256},{"$f":"IF(Control!$B47=\"L\",'RES S curve-disconnect'!S228,IF(Control!$B47=\"M\",'RES S curve-disconnect'!S206,'RES S curve-disconnect'!S184))","v":-2585.4537151064824},{"$f":"IF(Control!$B47=\"L\",'RES S curve-disconnect'!T228,IF(Control!$B47=\"M\",'RES S curve-disconnect'!T206,'RES S curve-disconnect'!T184))","v":-2199.2653902161865},{"$f":"IF(Control!$B47=\"L\",'RES S curve-disconnect'!U228,IF(Control!$B47=\"M\",'RES S curve-disconnect'!U206,'RES S curve-disconnect'!U184))","v":-1756.5588727215238},{"$f":"IF(Control!$B47=\"L\",'RES S curve-disconnect'!V228,IF(Control!$B47=\"M\",'RES S curve-disconnect'!V206,'RES S curve-disconnect'!V184))","v":-1456.8655335676758},{"$f":"IF(Control!$B47=\"L\",'RES S curve-disconnect'!W228,IF(Control!$B47=\"M\",'RES S curve-disconnect'!W206,'RES S curve-disconnect'!W184))","v":-1225.0900039208791},{"$f":"IF(Control!$B47=\"L\",'RES S curve-disconnect'!X228,IF(Control!$B47=\"M\",'RES S curve-disconnect'!X206,'RES S curve-disconnect'!X184))","v":-689.36929028485281},{"$f":"IF(Control!$B47=\"L\",'RES S curve-disconnect'!Y228,IF(Control!$B47=\"M\",'RES S curve-disconnect'!Y206,'RES S curve-disconnect'!Y184))","v":-147.12545166156048},{"$f":"IF(Control!$B47=\"L\",'RES S curve-disconnect'!Z228,IF(Control!$B47=\"M\",'RES S curve-disconnect'!Z206,'RES S curve-disconnect'!Z184))","v":217.27799891056941},{"$f":"IF(Control!$B47=\"L\",'RES S curve-disconnect'!AA228,IF(Control!$B47=\"M\",'RES S curve-disconnect'!AA206,'RES S curve-disconnect'!AA184))","v":581.84072084849072},{"$f":"IF(Control!$B47=\"L\",'RES S curve-disconnect'!AB228,IF(Control!$B47=\"M\",'RES S curve-disconnect'!AB206,'RES S curve-disconnect'!AB184))","v":871.29902877046277},{"$f":"IF(Control!$B47=\"L\",'RES S curve-disconnect'!AC228,IF(Control!$B47=\"M\",'RES S curve-disconnect'!AC206,'RES S curve-disconnect'!AC184))","v":1149.9658033947683},{"$f":"IF(Control!$B47=\"L\",'RES S curve-disconnect'!AD228,IF(Control!$B47=\"M\",'RES S curve-disconnect'!AD206,'RES S curve-disconnect'!AD184))","v":1404.9376942744625},{"$f":"IF(Control!$B47=\"L\",'RES S curve-disconnect'!AE228,IF(Control!$B47=\"M\",'RES S curve-disconnect'!AE206,'RES S curve-disconnect'!AE184))","v":1673.5217507378093},{"$f":"IF(Control!$B47=\"L\",'RES S curve-disconnect'!AF228,IF(Control!$B47=\"M\",'RES S curve-disconnect'!AF206,'RES S curve-disconnect'!AF184))","v":2023.3682664260857},{"$f":"IF(Control!$B47=\"L\",'RES S curve-disconnect'!AG228,IF(Control!$B47=\"M\",'RES S curve-disconnect'!AG206,'RES S curve-disconnect'!AG184))","v":2269.980770574261},{"$f":"IF(Control!$B47=\"L\",'RES S curve-disconnect'!AH228,IF(Control!$B47=\"M\",'RES S curve-disconnect'!AH206,'RES S curve-disconnect'!AH184))","v":2616.7971170021447},{"$f":"IF(Control!$B47=\"L\",'RES S curve-disconnect'!AI228,IF(Control!$B47=\"M\",'RES S curve-disconnect'!AI206,'RES S curve-disconnect'!AI184))","v":2928.7442591933022},{"$f":"IF(Control!$B47=\"L\",'RES S curve-disconnect'!AJ228,IF(Control!$B47=\"M\",'RES S curve-disconnect'!AJ206,'RES S curve-disconnect'!AJ184))","v":3210.2309990862941},{"$f":"IF(Control!$B47=\"L\",'RES S curve-disconnect'!AK228,IF(Control!$B47=\"M\",'RES S curve-disconnect'!AK206,'RES S curve-disconnect'!AK184))","v":3509.0766431698962},{"$f":"IF(Control!$B47=\"L\",'RES S curve-disconnect'!AL228,IF(Control!$B47=\"M\",'RES S curve-disconnect'!AL206,'RES S curve-disconnect'!AL184))","v":2474.0252437469412},{"$f":"IF(Control!$B47=\"L\",'RES S curve-disconnect'!AM228,IF(Control!$B47=\"M\",'RES S curve-disconnect'!AM206,'RES S curve-disconnect'!AM184))","v":2338.7491576984576},{"$f":"IF(Control!$B47=\"L\",'RES S curve-disconnect'!AN228,IF(Control!$B47=\"M\",'RES S curve-disconnect'!AN206,'RES S curve-disconnect'!AN184))","v":2621.729229315893},{"$f":"IF(Control!$B47=\"L\",'RES S curve-disconnect'!AO228,IF(Control!$B47=\"M\",'RES S curve-disconnect'!AO206,'RES S curve-disconnect'!AO184))","v":2967.7865451015009},{"$f":"IF(Control!$B47=\"L\",'RES S curve-disconnect'!AP228,IF(Control!$B47=\"M\",'RES S curve-disconnect'!AP206,'RES S curve-disconnect'!AP184))","v":3287.4586794604256},{"$f":"IF(Control!$B47=\"L\",'RES S curve-disconnect'!AQ228,IF(Control!$B47=\"M\",'RES S curve-disconnect'!AQ206,'RES S curve-disconnect'!AQ184))","v":3631.6516669952184},{"$f":"IF(Control!$B47=\"L\",'RES S curve-disconnect'!AR228,IF(Control!$B47=\"M\",'RES S curve-disconnect'!AR206,'RES S curve-disconnect'!AR184))","v":4009.5667877931137},{"$f":"IF(Control!$B47=\"L\",'RES S curve-disconnect'!AS228,IF(Control!$B47=\"M\",'RES S curve-disconnect'!AS206,'RES S curve-disconnect'!AS184))","v":4433.6420702570285},{"$f":"IF(Control!$B47=\"L\",'RES S curve-disconnect'!AT228,IF(Control!$B47=\"M\",'RES S curve-disconnect'!AT206,'RES S curve-disconnect'!AT184))","v":4907.9977595029677},{"$f":"IF(Control!$B47=\"L\",'RES S curve-disconnect'!AU228,IF(Control!$B47=\"M\",'RES S curve-disconnect'!AU206,'RES S curve-disconnect'!AU184))","v":5456.7898027836254},{"$f":"IF(Control!$B47=\"L\",'RES S curve-disconnect'!AV228,IF(Control!$B47=\"M\",'RES S curve-disconnect'!AV206,'RES S curve-disconnect'!AV184))","v":6082.7837222794324},{"$f":"IF(Control!$B47=\"L\",'RES S curve-disconnect'!AW228,IF(Control!$B47=\"M\",'RES S curve-disconnect'!AW206,'RES S curve-disconnect'!AW184))","v":6802.3143686331168},{"$f":"IF(Control!$B47=\"L\",'RES S curve-disconnect'!AX228,IF(Control!$B47=\"M\",'RES S curve-disconnect'!AX206,'RES S curve-disconnect'!AX184))","v":7622.3738057481924},{"$f":"IF(Control!$B47=\"L\",'RES S curve-disconnect'!AY228,IF(Control!$B47=\"M\",'RES S curve-disconnect'!AY206,'RES S curve-disconnect'!AY184))","v":8568.6116357356859},{"$f":"IF(Control!$B47=\"L\",'RES S curve-disconnect'!AZ228,IF(Control!$B47=\"M\",'RES S curve-disconnect'!AZ206,'RES S curve-disconnect'!AZ184))","v":9650.3412189355913},{"$f":"IF(Control!$B47=\"L\",'RES S curve-disconnect'!BA228,IF(Control!$B47=\"M\",'RES S curve-disconnect'!BA206,'RES S curve-disconnect'!BA184))","v":10903.112154383862},{"$f":"IF(Control!$B47=\"L\",'RES S curve-disconnect'!BB228,IF(Control!$B47=\"M\",'RES S curve-disconnect'!BB206,'RES S curve-disconnect'!BB184))","v":12366.797265306615},{"$f":"IF(Control!$B47=\"L\",'RES S curve-disconnect'!BC228,IF(Control!$B47=\"M\",'RES S curve-disconnect'!BC206,'RES S curve-disconnect'!BC184))","v":14112.270578573001},{"$f":"IF(Control!$B47=\"L\",'RES S curve-disconnect'!BD228,IF(Control!$B47=\"M\",'RES S curve-disconnect'!BD206,'RES S curve-disconnect'!BD184))","v":15796.263040383688},{"$f":"IF(Control!$B47=\"L\",'RES S curve-disconnect'!BE228,IF(Control!$B47=\"M\",'RES S curve-disconnect'!BE206,'RES S curve-disconnect'!BE184))","v":17335.493868836449},{"$f":"IF(Control!$B47=\"L\",'RES S curve-disconnect'!BF228,IF(Control!$B47=\"M\",'RES S curve-disconnect'!BF206,'RES S curve-disconnect'!BF184))","v":18910.401057679184},{"$f":"IF(Control!$B47=\"L\",'RES S curve-disconnect'!BG228,IF(Control!$B47=\"M\",'RES S curve-disconnect'!BG206,'RES S curve-disconnect'!BG184))","v":20692.785853082085},{"$f":"IF(Control!$B47=\"L\",'RES S curve-disconnect'!BH228,IF(Control!$B47=\"M\",'RES S curve-disconnect'!BH206,'RES S curve-disconnect'!BH184))","v":22808.612526449822},{"$f":"IF(Control!$B47=\"L\",'RES S curve-disconnect'!BI228,IF(Control!$B47=\"M\",'RES S curve-disconnect'!BI206,'RES S curve-disconnect'!BI184))","v":25874.410409062799},{"$f":"IF(Control!$B47=\"L\",'RES S curve-disconnect'!BJ228,IF(Control!$B47=\"M\",'RES S curve-disconnect'!BJ206,'RES S curve-disconnect'!BJ184))","v":30364.624712166515},{"$f":"IF(Control!$B47=\"L\",'RES S curve-disconnect'!BK228,IF(Control!$B47=\"M\",'RES S curve-disconnect'!BK206,'RES S curve-disconnect'!BK184))","v":36991.547148728423},{"$f":"IF(Control!$B47=\"L\",'RES S curve-disconnect'!BL228,IF(Control!$B47=\"M\",'RES S curve-disconnect'!BL206,'RES S curve-disconnect'!BL184))","v":-1312.3879806489222},{"$f":"IF(Control!$B47=\"L\",'RES S curve-disconnect'!BM228,IF(Control!$B47=\"M\",'RES S curve-disconnect'!BM206,'RES S curve-disconnect'!BM184))","v":-1303.9971377659474},{"$f":"IF(Control!$B47=\"L\",'RES S curve-disconnect'!BN228,IF(Control!$B47=\"M\",'RES S curve-disconnect'!BN206,'RES S curve-disconnect'!BN184))","v":-1299.6401802176115},{"$f":"IF(Control!$B47=\"L\",'RES S curve-disconnect'!BO228,IF(Control!$B47=\"M\",'RES S curve-disconnect'!BO206,'RES S curve-disconnect'!BO184))","v":-1287.2504139284949},{"$f":"IF(Control!$B47=\"L\",'RES S curve-disconnect'!BP228,IF(Control!$B47=\"M\",'RES S curve-disconnect'!BP206,'RES S curve-disconnect'!BP184))","v":-1278.8943927553019},{"$f":"IF(Control!$B47=\"L\",'RES S curve-disconnect'!BQ228,IF(Control!$B47=\"M\",'RES S curve-disconnect'!BQ206,'RES S curve-disconnect'!BQ184))","v":-1270.5498393260907},{"$f":"IF(Control!$B47=\"L\",'RES S curve-disconnect'!BR228,IF(Control!$B47=\"M\",'RES S curve-disconnect'!BR206,'RES S curve-disconnect'!BR184))","v":-1266.2388925323298},{"$f":"IF(Control!$B47=\"L\",'RES S curve-disconnect'!BS228,IF(Control!$B47=\"M\",'RES S curve-disconnect'!BS206,'RES S curve-disconnect'!BS184))","v":-1253.8948600313743},{"$f":"IF(Control!$B47=\"L\",'RES S curve-disconnect'!BT228,IF(Control!$B47=\"M\",'RES S curve-disconnect'!BT206,'RES S curve-disconnect'!BT184))","v":-1245.5842974017546},{"$f":"IF(Control!$B47=\"L\",'RES S curve-disconnect'!BU228,IF(Control!$B47=\"M\",'RES S curve-disconnect'!BU206,'RES S curve-disconnect'!BU184))","v":-1237.2849289824812},{"$f":"IF(Control!$B47=\"L\",'RES S curve-disconnect'!BV228,IF(Control!$B47=\"M\",'RES S curve-disconnect'!BV206,'RES S curve-disconnect'!BV184))","v":-1233.0188953651791},{"$f":"IF(Control!$B47=\"L\",'RES S curve-disconnect'!BW228,IF(Control!$B47=\"M\",'RES S curve-disconnect'!BW206,'RES S curve-disconnect'!BW184))","v":-1220.7195058966181},{"$f":"IF(Control!$B47=\"L\",'RES S curve-disconnect'!BX228,IF(Control!$B47=\"M\",'RES S curve-disconnect'!BX206,'RES S curve-disconnect'!BX184))","v":-1212.4533178340803},{"$f":"IF(Control!$B47=\"L\",'RES S curve-disconnect'!BY228,IF(Control!$B47=\"M\",'RES S curve-disconnect'!BY206,'RES S curve-disconnect'!BY184))","v":-1204.1980571847307},{"$f":"IF(Control!$B47=\"L\",'RES S curve-disconnect'!BZ228,IF(Control!$B47=\"M\",'RES S curve-disconnect'!BZ206,'RES S curve-disconnect'!BZ184))","v":-1199.9758661978162},{"$f":"IF(Control!$B47=\"L\",'RES S curve-disconnect'!CA228,IF(Control!$B47=\"M\",'RES S curve-disconnect'!CA206,'RES S curve-disconnect'!CA184))","v":-1187.7200558672605},{"$f":"IF(Control!$B47=\"L\",'RES S curve-disconnect'!CB228,IF(Control!$B47=\"M\",'RES S curve-disconnect'!CB206,'RES S curve-disconnect'!CB184))","v":-1179.4971850871084},{"$f":"IF(Control!$B47=\"L\",'RES S curve-disconnect'!CC228,IF(Control!$B47=\"M\",'RES S curve-disconnect'!CC206,'RES S curve-disconnect'!CC184))","v":-1171.2849814909532},{"$f":"IF(Control!$B47=\"L\",'RES S curve-disconnect'!CD228,IF(Control!$B47=\"M\",'RES S curve-disconnect'!CD206,'RES S curve-disconnect'!CD184))","v":-1296.539637958319}]
["Boroondara (C)",{"$f":"Customers!K142","v":62660},{"$f":"IF(Control!$B48=\"L\",'RES S curve-disconnect'!C229,IF(Control!$B48=\"M\",'RES S curve-disconnect'!C207,'RES S curve-disconnect'!C185))","v":-4189.4836875247838},{"$f":"IF(Control!$B48=\"L\",'RES S curve-disconnect'!D229,IF(Control!$B48=\"M\",'RES S curve-disconnect'!D207,'RES S curve-disconnect'!D185))","v":-4774.2956470767995},{"$f":"IF(Control!$B48=\"L\",'RES S curve-disconnect'!E229,IF(Control!$B48=\"M\",'RES S curve-disconnect'!E207,'RES S curve-disconnect'!E185))","v":-4243.1367010720342},{"$f":"IF(Control!$B48=\"L\",'RES S curve-disconnect'!F229,IF(Control!$B48=\"M\",'RES S curve-disconnect'!F207,'RES S curve-disconnect'!F185))","v":-4070.3112528228039},{"$f":"IF(Control!$B48=\"L\",'RES S curve-disconnect'!G229,IF(Control!$B48=\"M\",'RES S curve-disconnect'!G207,'RES S curve-disconnect'!G185))","v":-5262.8997208588462},{"$f":"IF(Control!$B48=\"L\",'RES S curve-disconnect'!H229,IF(Control!$B48=\"M\",'RES S curve-disconnect'!H207,'RES S curve-disconnect'!H185))","v":-5291.9054342246327},{"$f":"IF(Control!$B48=\"L\",'RES S curve-disconnect'!I229,IF(Control!$B48=\"M\",'RES S curve-disconnect'!I207,'RES S curve-disconnect'!I185))","v":-4798.065818269476},{"$f":"IF(Control!$B48=\"L\",'RES S curve-disconnect'!J229,IF(Control!$B48=\"M\",'RES S curve-disconnect'!J207,'RES S curve-disconnect'!J185))","v":-5102.5813661648717},{"$f":"IF(Control!$B48=\"L\",'RES S curve-disconnect'!K229,IF(Control!$B48=\"M\",'RES S curve-disconnect'!K207,'RES S curve-disconnect'!K185))","v":-4223.5080568770736},{"$f":"IF(Control!$B48=\"L\",'RES S curve-disconnect'!L229,IF(Control!$B48=\"M\",'RES S curve-disconnect'!L207,'RES S curve-disconnect'!L185))","v":-4631.5732001324377},{"$f":"IF(Control!$B48=\"L\",'RES S curve-disconnect'!M229,IF(Control!$B48=\"M\",'RES S curve-disconnect'!M207,'RES S curve-disconnect'!M185))","v":-5360.6498307687452},{"$f":"IF(Control!$B48=\"L\",'RES S curve-disconnect'!N229,IF(Control!$B48=\"M\",'RES S curve-disconnect'!N207,'RES S curve-disconnect'!N185))","v":-5437.1419579780759},{"$f":"IF(Control!$B48=\"L\",'RES S curve-disconnect'!O229,IF(Control!$B48=\"M\",'RES S curve-disconnect'!O207,'RES S curve-disconnect'!O185))","v":-4805.8568071625559},{"$f":"IF(Control!$B48=\"L\",'RES S curve-disconnect'!P229,IF(Control!$B48=\"M\",'RES S curve-disconnect'!P207,'RES S curve-disconnect'!P185))","v":-4305.4183023743444},{"$f":"IF(Control!$B48=\"L\",'RES S curve-disconnect'!Q229,IF(Control!$B48=\"M\",'RES S curve-disconnect'!Q207,'RES S curve-disconnect'!Q185))","v":-3545.0272329013051},{"$f":"IF(Control!$B48=\"L\",'RES S curve-disconnect'!R229,IF(Control!$B48=\"M\",'RES S curve-disconnect'!R207,'RES S curve-disconnect'!R185))","v":-3117.6510267678268},{"$f":"IF(Control!$B48=\"L\",'RES S curve-disconnect'!S229,IF(Control!$B48=\"M\",'RES S curve-disconnect'!S207,'RES S curve-disconnect'!S185))","v":-2431.3539915783022},{"$f":"IF(Control!$B48=\"L\",'RES S curve-disconnect'!T229,IF(Control!$B48=\"M\",'RES S curve-disconnect'!T207,'RES S curve-disconnect'!T185))","v":-2065.6517617983768},{"$f":"IF(Control!$B48=\"L\",'RES S curve-disconnect'!U229,IF(Control!$B48=\"M\",'RES S curve-disconnect'!U207,'RES S curve-disconnect'!U185))","v":-1644.4764215984469},{"$f":"IF(Control!$B48=\"L\",'RES S curve-disconnect'!V229,IF(Control!$B48=\"M\",'RES S curve-disconnect'!V207,'RES S curve-disconnect'!V185))","v":-1358.946815593463},{"$f":"IF(Control!$B48=\"L\",'RES S curve-disconnect'!W229,IF(Control!$B48=\"M\",'RES S curve-disconnect'!W207,'RES S curve-disconnect'!W185))","v":-1137.981755617526},{"$f":"IF(Control!$B48=\"L\",'RES S curve-disconnect'!X229,IF(Control!$B48=\"M\",'RES S curve-disconnect'!X207,'RES S curve-disconnect'!X185))","v":-628.19565752265191},{"$f":"IF(Control!$B48=\"L\",'RES S curve-disconnect'!Y229,IF(Control!$B48=\"M\",'RES S curve-disconnect'!Y207,'RES S curve-disconnect'!Y185))","v":-111.91826926297668},{"$f":"IF(Control!$B48=\"L\",'RES S curve-disconnect'!Z229,IF(Control!$B48=\"M\",'RES S curve-disconnect'!Z207,'RES S curve-disconnect'!Z185))","v":235.0855294318452},{"$f":"IF(Control!$B48=\"L\",'RES S curve-disconnect'!AA229,IF(Control!$B48=\"M\",'RES S curve-disconnect'!AA207,'RES S curve-disconnect'!AA185))","v":582.565678694996},{"$f":"IF(Control!$B48=\"L\",'RES S curve-disconnect'!AB229,IF(Control!$B48=\"M\",'RES S curve-disconnect'!AB207,'RES S curve-disconnect'!AB185))","v":858.73879231718456},{"$f":"IF(Control!$B48=\"L\",'RES S curve-disconnect'!AC229,IF(Control!$B48=\"M\",'RES S curve-disconnect'!AC207,'RES S curve-disconnect'!AC185))","v":1124.8280794569328},{"$f":"IF(Control!$B48=\"L\",'RES S curve-disconnect'!AD229,IF(Control!$B48=\"M\",'RES S curve-disconnect'!AD207,'RES S curve-disconnect'!AD185))","v":1368.2973480561841},{"$f":"IF(Control!$B48=\"L\",'RES S curve-disconnect'!AE229,IF(Control!$B48=\"M\",'RES S curve-disconnect'!AE207,'RES S curve-disconnect'!AE185))","v":1625.2350272407723},{"$f":"IF(Control!$B48=\"L\",'RES S curve-disconnect'!AF229,IF(Control!$B48=\"M\",'RES S curve-disconnect'!AF207,'RES S curve-disconnect'!AF185))","v":1959.3562282164014},{"$f":"IF(Control!$B48=\"L\",'RES S curve-disconnect'!AG229,IF(Control!$B48=\"M\",'RES S curve-disconnect'!AG207,'RES S curve-disconnect'!AG185))","v":2195.1015204956439},{"$f":"IF(Control!$B48=\"L\",'RES S curve-disconnect'!AH229,IF(Control!$B48=\"M\",'RES S curve-disconnect'!AH207,'RES S curve-disconnect'!AH185))","v":2525.7116659841681},{"$f":"IF(Control!$B48=\"L\",'RES S curve-disconnect'!AI229,IF(Control!$B48=\"M\",'RES S curve-disconnect'!AI207,'RES S curve-disconnect'!AI185))","v":2823.9310116821575},{"$f":"IF(Control!$B48=\"L\",'RES S curve-disconnect'!AJ229,IF(Control!$B48=\"M\",'RES S curve-disconnect'!AJ207,'RES S curve-disconnect'!AJ185))","v":3092.8511607262212},{"$f":"IF(Control!$B48=\"L\",'RES S curve-disconnect'!AK229,IF(Control!$B48=\"M\",'RES S curve-disconnect'!AK207,'RES S curve-disconnect'!AK185))","v":3378.3871635502792},{"$f":"IF(Control!$B48=\"L\",'RES S curve-disconnect'!AL229,IF(Control!$B48=\"M\",'RES S curve-disconnect'!AL207,'RES S curve-disconnect'!AL185))","v":2387.0407522036999},{"$f":"IF(Control!$B48=\"L\",'RES S curve-disconnect'!AM229,IF(Control!$B48=\"M\",'RES S curve-disconnect'!AM207,'RES S curve-disconnect'!AM185))","v":2258.7384479253324},{"$f":"IF(Control!$B48=\"L\",'RES S curve-disconnect'!AN229,IF(Control!$B48=\"M\",'RES S curve-disconnect'!AN207,'RES S curve-disconnect'!AN185))","v":2529.7740438522114},{"$f":"IF(Control!$B48=\"L\",'RES S curve-disconnect'!AO229,IF(Control!$B48=\"M\",'RES S curve-disconnect'!AO207,'RES S curve-disconnect'!AO185))","v":2860.6074780556728},{"$f":"IF(Control!$B48=\"L\",'RES S curve-disconnect'!AP229,IF(Control!$B48=\"M\",'RES S curve-disconnect'!AP207,'RES S curve-disconnect'!AP185))","v":3165.8458605599126},{"$f":"IF(Control!$B48=\"L\",'RES S curve-disconnect'!AQ229,IF(Control!$B48=\"M\",'RES S curve-disconnect'!AQ207,'RES S curve-disconnect'!AQ185))","v":3494.8747402194908},{"$f":"IF(Control!$B48=\"L\",'RES S curve-disconnect'!AR229,IF(Control!$B48=\"M\",'RES S curve-disconnect'!AR207,'RES S curve-disconnect'!AR185))","v":3855.9242600515463},{"$f":"IF(Control!$B48=\"L\",'RES S curve-disconnect'!AS229,IF(Control!$B48=\"M\",'RES S curve-disconnect'!AS207,'RES S curve-disconnect'!AS185))","v":4261.0206641942696},{"$f":"IF(Control!$B48=\"L\",'RES S curve-disconnect'!AT229,IF(Control!$B48=\"M\",'RES S curve-disconnect'!AT207,'RES S curve-disconnect'!AT185))","v":4713.898358811758},{"$f":"IF(Control!$B48=\"L\",'RES S curve-disconnect'!AU229,IF(Control!$B48=\"M\",'RES S curve-disconnect'!AU207,'RES S curve-disconnect'!AU185))","v":5238.1509406748664},{"$f":"IF(Control!$B48=\"L\",'RES S curve-disconnect'!AV229,IF(Control!$B48=\"M\",'RES S curve-disconnect'!AV207,'RES S curve-disconnect'!AV185))","v":5835.8446078320922},{"$f":"IF(Control!$B48=\"L\",'RES S curve-disconnect'!AW229,IF(Control!$B48=\"M\",'RES S curve-disconnect'!AW207,'RES S curve-disconnect'!AW185))","v":6522.7028598478801},{"$f":"IF(Control!$B48=\"L\",'RES S curve-disconnect'!AX229,IF(Control!$B48=\"M\",'RES S curve-disconnect'!AX207,'RES S curve-disconnect'!AX185))","v":7305.1494013505899},{"$f":"IF(Control!$B48=\"L\",'RES S curve-disconnect'!AY229,IF(Control!$B48=\"M\",'RES S curve-disconnect'!AY207,'RES S curve-disconnect'!AY185))","v":8208.1425582532265},{"$f":"IF(Control!$B48=\"L\",'RES S curve-disconnect'!AZ229,IF(Control!$B48=\"M\",'RES S curve-disconnect'!AZ207,'RES S curve-disconnect'!AZ185))","v":9239.9391244074795},{"$f":"IF(Control!$B48=\"L\",'RES S curve-disconnect'!BA229,IF(Control!$B48=\"M\",'RES S curve-disconnect'!BA207,'RES S curve-disconnect'!BA185))","v":10434.543417783321},{"$f":"IF(Control!$B48=\"L\",'RES S curve-disconnect'!BB229,IF(Control!$B48=\"M\",'RES S curve-disconnect'!BB207,'RES S curve-disconnect'!BB185))","v":11829.667662081509},{"$f":"IF(Control!$B48=\"L\",'RES S curve-disconnect'!BC229,IF(Control!$B48=\"M\",'RES S curve-disconnect'!BC207,'RES S curve-disconnect'!BC185))","v":13493.275851173554},{"$f":"IF(Control!$B48=\"L\",'RES S curve-disconnect'!BD229,IF(Control!$B48=\"M\",'RES S curve-disconnect'!BD207,'RES S curve-disconnect'!BD185))","v":15096.723722925401},{"$f":"IF(Control!$B48=\"L\",'RES S curve-disconnect'!BE229,IF(Control!$B48=\"M\",'RES S curve-disconnect'!BE207,'RES S curve-disconnect'!BE185))","v":16561.809883226822},{"$f":"IF(Control!$B48=\"L\",'RES S curve-disconnect'!BF229,IF(Control!$B48=\"M\",'RES S curve-disconnect'!BF207,'RES S curve-disconnect'!BF185))","v":18061.009166294669},{"$f":"IF(Control!$B48=\"L\",'RES S curve-disconnect'!BG229,IF(Control!$B48=\"M\",'RES S curve-disconnect'!BG207,'RES S curve-disconnect'!BG185))","v":19758.304470231473},{"$f":"IF(Control!$B48=\"L\",'RES S curve-disconnect'!BH229,IF(Control!$B48=\"M\",'RES S curve-disconnect'!BH207,'RES S curve-disconnect'!BH185))","v":21772.775722768703},{"$f":"IF(Control!$B48=\"L\",'RES S curve-disconnect'!BI229,IF(Control!$B48=\"M\",'RES S curve-disconnect'!BI207,'RES S curve-disconnect'!BI185))","v":24692.087976046372},{"$f":"IF(Control!$B48=\"L\",'RES S curve-disconnect'!BJ229,IF(Control!$B48=\"M\",'RES S curve-disconnect'!BJ207,'RES S curve-disconnect'!BJ185))","v":28965.962253160691},{"$f":"IF(Control!$B48=\"L\",'RES S curve-disconnect'!BK229,IF(Control!$B48=\"M\",'RES S curve-disconnect'!BK207,'RES S curve-disconnect'!BK185))","v":35270.946926009667},{"$f":"IF(Control!$B48=\"L\",'RES S curve-disconnect'!BL229,IF(Control!$B48=\"M\",'RES S curve-disconnect'!BL207,'RES S curve-disconnect'!BL185))","v":-1237.8333132647206},{"$f":"IF(Control!$B48=\"L\",'RES S curve-disconnect'!BM229,IF(Control!$B48=\"M\",'RES S curve-disconnect'!BM207,'RES S curve-disconnect'!BM185))","v":-1229.8476496201508},{"$f":"IF(Control!$B48=\"L\",'RES S curve-disconnect'!BN229,IF(Control!$B48=\"M\",'RES S curve-disconnect'!BN207,'RES S curve-disconnect'!BN185))","v":-1225.8953940399306},{"$f":"IF(Control!$B48=\"L\",'RES S curve-disconnect'!BO229,IF(Control!$B48=\"M\",'RES S curve-disconnect'!BO207,'RES S curve-disconnect'!BO185))","v":-1213.9098552509492},{"$f":"IF(Control!$B48=\"L\",'RES S curve-disconnect'!BP229,IF(Control!$B48=\"M\",'RES S curve-disconnect'!BP207,'RES S curve-disconnect'!BP185))","v":-1205.9575898950154},{"$f":"IF(Control!$B48=\"L\",'RES S curve-disconnect'!BQ229,IF(Control!$B48=\"M\",'RES S curve-disconnect'!BQ207,'RES S curve-disconnect'!BQ185))","v":-1198.0163233681974},{"$f":"IF(Control!$B48=\"L\",'RES S curve-disconnect'!BR229,IF(Control!$B48=\"M\",'RES S curve-disconnect'!BR207,'RES S curve-disconnect'!BR185))","v":-1194.1081973129853},{"$f":"IF(Control!$B48=\"L\",'RES S curve-disconnect'!BS229,IF(Control!$B48=\"M\",'RES S curve-disconnect'!BS207,'RES S curve-disconnect'!BS185))","v":-1182.1665221208746},{"$f":"IF(Control!$B48=\"L\",'RES S curve-disconnect'!BT229,IF(Control!$B48=\"M\",'RES S curve-disconnect'!BT207,'RES S curve-disconnect'!BT185))","v":-1174.2578560877603},{"$f":"IF(Control!$B48=\"L\",'RES S curve-disconnect'!BU229,IF(Control!$B48=\"M\",'RES S curve-disconnect'!BU207,'RES S curve-disconnect'!BU185))","v":-1166.3599262533476},{"$f":"IF(Control!$B48=\"L\",'RES S curve-disconnect'!BV229,IF(Control!$B48=\"M\",'RES S curve-disconnect'!BV207,'RES S curve-disconnect'!BV185))","v":-1162.4948758933901},{"$f":"IF(Control!$B48=\"L\",'RES S curve-disconnect'!BW229,IF(Control!$B48=\"M\",'RES S curve-disconnect'!BW207,'RES S curve-disconnect'!BW185))","v":-1150.5960170223248},{"$f":"IF(Control!$B48=\"L\",'RES S curve-disconnect'!BX229,IF(Control!$B48=\"M\",'RES S curve-disconnect'!BX207,'RES S curve-disconnect'!BX185))","v":-1142.7299095487426},{"$f":"IF(Control!$B48=\"L\",'RES S curve-disconnect'!BY229,IF(Control!$B48=\"M\",'RES S curve-disconnect'!BY207,'RES S curve-disconnect'!BY185))","v":-1134.8742821148621},{"$f":"IF(Control!$B48=\"L\",'RES S curve-disconnect'!BZ229,IF(Control!$B48=\"M\",'RES S curve-disconnect'!BZ207,'RES S curve-disconnect'!BZ185))","v":-1131.0512795888276},{"$f":"IF(Control!$B48=\"L\",'RES S curve-disconnect'!CA229,IF(Control!$B48=\"M\",'RES S curve-disconnect'!CA207,'RES S curve-disconnect'!CA185))","v":-1119.1942155674112},{"$f":"IF(Control!$B48=\"L\",'RES S curve-disconnect'!CB229,IF(Control!$B48=\"M\",'RES S curve-disconnect'!CB207,'RES S curve-disconnect'!CB185))","v":-1111.3696515315514},{"$f":"IF(Control!$B48=\"L\",'RES S curve-disconnect'!CC229,IF(Control!$B48=\"M\",'RES S curve-disconnect'!CC207,'RES S curve-disconnect'!CC185))","v":-1103.5553176858853},{"$f":"IF(Control!$B48=\"L\",'RES S curve-disconnect'!CD229,IF(Control!$B48=\"M\",'RES S curve-disconnect'!CD207,'RES S curve-disconnect'!CD185))","v":-1222.5224190041695}]
["Cardinia (S)",{"$f":"Customers!K143","v":4164},{"$f":"IF(Control!$B49=\"L\",'RES S curve-disconnect'!C230,IF(Control!$B49=\"M\",'RES S curve-disconnect'!C208,'RES S curve-disconnect'!C186))","v":-5574.1059934343302},{"$f":"IF(Control!$B49=\"L\",'RES S curve-disconnect'!D230,IF(Control!$B49=\"M\",'RES S curve-disconnect'!D208,'RES S curve-disconnect'!D186))","v":-5945.656116651212},{"$f":"IF(Control!$B49=\"L\",'RES S curve-disconnect'!E230,IF(Control!$B49=\"M\",'RES S curve-disconnect'!E208,'RES S curve-disconnect'!E186))","v":-4923.0301819935667},{"$f":"IF(Control!$B49=\"L\",'RES S curve-disconnect'!F230,IF(Control!$B49=\"M\",'RES S curve-disconnect'!F208,'RES S curve-disconnect'!F186))","v":-4810.4929832508788},{"$f":"IF(Control!$B49=\"L\",'RES S curve-disconnect'!G230,IF(Control!$B49=\"M\",'RES S curve-disconnect'!G208,'RES S curve-disconnect'!G186))","v":-6054.3640345109379},{"$f":"IF(Control!$B49=\"L\",'RES S curve-disconnect'!H230,IF(Control!$B49=\"M\",'RES S curve-disconnect'!H208,'RES S curve-disconnect'!H186))","v":-6080.2526955509293},{"$f":"IF(Control!$B49=\"L\",'RES S curve-disconnect'!I230,IF(Control!$B49=\"M\",'RES S curve-disconnect'!I208,'RES S curve-disconnect'!I186))","v":-5761.6734498103106},{"$f":"IF(Control!$B49=\"L\",'RES S curve-disconnect'!J230,IF(Control!$B49=\"M\",'RES S curve-disconnect'!J208,'RES S curve-disconnect'!J186))","v":-6125.163468553078},{"$f":"IF(Control!$B49=\"L\",'RES S curve-disconnect'!K230,IF(Control!$B49=\"M\",'RES S curve-disconnect'!K208,'RES S curve-disconnect'!K186))","v":-5435.3427888991282},{"$f":"IF(Control!$B49=\"L\",'RES S curve-disconnect'!L230,IF(Control!$B49=\"M\",'RES S curve-disconnect'!L208,'RES S curve-disconnect'!L186))","v":-5670.0555427488562},{"$f":"IF(Control!$B49=\"L\",'RES S curve-disconnect'!M230,IF(Control!$B49=\"M\",'RES S curve-disconnect'!M208,'RES S curve-disconnect'!M186))","v":-6120.275299891523},{"$f":"IF(Control!$B49=\"L\",'RES S curve-disconnect'!N230,IF(Control!$B49=\"M\",'RES S curve-disconnect'!N208,'RES S curve-disconnect'!N186))","v":-6145.0915649518538},{"$f":"IF(Control!$B49=\"L\",'RES S curve-disconnect'!O230,IF(Control!$B49=\"M\",'RES S curve-disconnect'!O208,'RES S curve-disconnect'!O186))","v":-5716.5008276819335},{"$f":"IF(Control!$B49=\"L\",'RES S curve-disconnect'!P230,IF(Control!$B49=\"M\",'RES S curve-disconnect'!P208,'RES S curve-disconnect'!P186))","v":-5370.484054616747},{"$f":"IF(Control!$B49=\"L\",'RES S curve-disconnect'!Q230,IF(Control!$B49=\"M\",'RES S curve-disconnect'!Q208,'RES S curve-disconnect'!Q186))","v":-4857.4774301103744},{"$f":"IF(Control!$B49=\"L\",'RES S curve-disconnect'!R230,IF(Control!$B49=\"M\",'RES S curve-disconnect'!R208,'RES S curve-disconnect'!R186))","v":-4558.4416200392316},{"$f":"IF(Control!$B49=\"L\",'RES S curve-disconnect'!S230,IF(Control!$B49=\"M\",'RES S curve-disconnect'!S208,'RES S curve-disconnect'!S186))","v":-4095.2278206935384},{"$f":"IF(Control!$B49=\"L\",'RES S curve-disconnect'!T230,IF(Control!$B49=\"M\",'RES S curve-disconnect'!T208,'RES S curve-disconnect'!T186))","v":-3832.5939731725402},{"$f":"IF(Control!$B49=\"L\",'RES S curve-disconnect'!U230,IF(Control!$B49=\"M\",'RES S curve-disconnect'!U208,'RES S curve-disconnect'!U186))","v":-3537.2330943637207},{"$f":"IF(Control!$B49=\"L\",'RES S curve-disconnect'!V230,IF(Control!$B49=\"M\",'RES S curve-disconnect'!V208,'RES S curve-disconnect'!V186))","v":-3330.5958121863132},{"$f":"IF(Control!$B49=\"L\",'RES S curve-disconnect'!W230,IF(Control!$B49=\"M\",'RES S curve-disconnect'!W208,'RES S curve-disconnect'!W186))","v":-3165.4391805464256},{"$f":"IF(Control!$B49=\"L\",'RES S curve-disconnect'!X230,IF(Control!$B49=\"M\",'RES S curve-disconnect'!X208,'RES S curve-disconnect'!X186))","v":-2812.8791941865402},{"$f":"IF(Control!$B49=\"L\",'RES S curve-disconnect'!Y230,IF(Control!$B49=\"M\",'RES S curve-disconnect'!Y208,'RES S curve-disconnect'!Y186))","v":-2456.7475490537536},{"$f":"IF(Control!$B49=\"L\",'RES S curve-disconnect'!Z230,IF(Control!$B49=\"M\",'RES S curve-disconnect'!Z208,'RES S curve-disconnect'!Z186))","v":-2210.164044026852},{"$f":"IF(Control!$B49=\"L\",'RES S curve-disconnect'!AA230,IF(Control!$B49=\"M\",'RES S curve-disconnect'!AA208,'RES S curve-disconnect'!AA186))","v":-1963.964581455245},{"$f":"IF(Control!$B49=\"L\",'RES S curve-disconnect'!AB230,IF(Control!$B49=\"M\",'RES S curve-disconnect'!AB208,'RES S curve-disconnect'!AB186))","v":-1763.900757573283},{"$f":"IF(Control!$B49=\"L\",'RES S curve-disconnect'!AC230,IF(Control!$B49=\"M\",'RES S curve-disconnect'!AC208,'RES S curve-disconnect'!AC186))","v":-1570.7900315411225},{"$f":"IF(Control!$B49=\"L\",'RES S curve-disconnect'!AD230,IF(Control!$B49=\"M\",'RES S curve-disconnect'!AD208,'RES S curve-disconnect'!AD186))","v":-1392.292248376405},{"$f":"IF(Control!$B49=\"L\",'RES S curve-disconnect'!AE230,IF(Control!$B49=\"M\",'RES S curve-disconnect'!AE208,'RES S curve-disconnect'!AE186))","v":-1206.089611757543},{"$f":"IF(Control!$B49=\"L\",'RES S curve-disconnect'!AF230,IF(Control!$B49=\"M\",'RES S curve-disconnect'!AF208,'RES S curve-disconnect'!AF186))","v":-969.81525344709348},{"$f":"IF(Control!$B49=\"L\",'RES S curve-disconnect'!AG230,IF(Control!$B49=\"M\",'RES S curve-disconnect'!AG208,'RES S curve-disconnect'!AG186))","v":-819.23767587775956},{"$f":"IF(Control!$B49=\"L\",'RES S curve-disconnect'!AH230,IF(Control!$B49=\"M\",'RES S curve-disconnect'!AH208,'RES S curve-disconnect'!AH186))","v":-606.44845786394114},{"$f":"IF(Control!$B49=\"L\",'RES S curve-disconnect'!AI230,IF(Control!$B49=\"M\",'RES S curve-disconnect'!AI208,'RES S curve-disconnect'!AI186))","v":-415.98581303768651},{"$f":"IF(Control!$B49=\"L\",'RES S curve-disconnect'!AJ230,IF(Control!$B49=\"M\",'RES S curve-disconnect'!AJ208,'RES S curve-disconnect'!AJ186))","v":-243.9292582743725},{"$f":"IF(Control!$B49=\"L\",'RES S curve-disconnect'!AK230,IF(Control!$B49=\"M\",'RES S curve-disconnect'!AK208,'RES S curve-disconnect'!AK186))","v":-61.293974509108722},{"$f":"IF(Control!$B49=\"L\",'RES S curve-disconnect'!AL230,IF(Control!$B49=\"M\",'RES S curve-disconnect'!AL208,'RES S curve-disconnect'!AL186))","v":-691.4362203381271},{"$f":"IF(Control!$B49=\"L\",'RES S curve-disconnect'!AM230,IF(Control!$B49=\"M\",'RES S curve-disconnect'!AM208,'RES S curve-disconnect'!AM186))","v":-775.21090040628701},{"$f":"IF(Control!$B49=\"L\",'RES S curve-disconnect'!AN230,IF(Control!$B49=\"M\",'RES S curve-disconnect'!AN208,'RES S curve-disconnect'!AN186))","v":-602.99310952735073},{"$f":"IF(Control!$B49=\"L\",'RES S curve-disconnect'!AO230,IF(Control!$B49=\"M\",'RES S curve-disconnect'!AO208,'RES S curve-disconnect'!AO186))","v":-391.70268161876612},{"$f":"IF(Control!$B49=\"L\",'RES S curve-disconnect'!AP230,IF(Control!$B49=\"M\",'RES S curve-disconnect'!AP208,'RES S curve-disconnect'!AP186))","v":-196.11995655979288},{"$f":"IF(Control!$B49=\"L\",'RES S curve-disconnect'!AQ230,IF(Control!$B49=\"M\",'RES S curve-disconnect'!AQ208,'RES S curve-disconnect'!AQ186))","v":14.056876308377866},{"$f":"IF(Control!$B49=\"L\",'RES S curve-disconnect'!AR230,IF(Control!$B49=\"M\",'RES S curve-disconnect'!AR208,'RES S curve-disconnect'!AR186))","v":245.06616419992628},{"$f":"IF(Control!$B49=\"L\",'RES S curve-disconnect'!AS230,IF(Control!$B49=\"M\",'RES S curve-disconnect'!AS208,'RES S curve-disconnect'!AS186))","v":504.35567855675868},{"$f":"IF(Control!$B49=\"L\",'RES S curve-disconnect'!AT230,IF(Control!$B49=\"M\",'RES S curve-disconnect'!AT208,'RES S curve-disconnect'!AT186))","v":794.66528832058953},{"$f":"IF(Control!$B49=\"L\",'RES S curve-disconnect'!AU230,IF(Control!$B49=\"M\",'RES S curve-disconnect'!AU208,'RES S curve-disconnect'!AU186))","v":1130.1998142319671},{"$f":"IF(Control!$B49=\"L\",'RES S curve-disconnect'!AV230,IF(Control!$B49=\"M\",'RES S curve-disconnect'!AV208,'RES S curve-disconnect'!AV186))","v":1513.2797055776703},{"$f":"IF(Control!$B49=\"L\",'RES S curve-disconnect'!AW230,IF(Control!$B49=\"M\",'RES S curve-disconnect'!AW208,'RES S curve-disconnect'!AW186))","v":1953.7632534453912},{"$f":"IF(Control!$B49=\"L\",'RES S curve-disconnect'!AX230,IF(Control!$B49=\"M\",'RES S curve-disconnect'!AX208,'RES S curve-disconnect'!AX186))","v":2456.2055482423693},{"$f":"IF(Control!$B49=\"L\",'RES S curve-disconnect'!AY230,IF(Control!$B49=\"M\",'RES S curve-disconnect'!AY208,'RES S curve-disconnect'!AY186))","v":3035.7926892144578},{"$f":"IF(Control!$B49=\"L\",'RES S curve-disconnect'!AZ230,IF(Control!$B49=\"M\",'RES S curve-disconnect'!AZ208,'RES S curve-disconnect'!AZ186))","v":3698.9194810261988},{"$f":"IF(Control!$B49=\"L\",'RES S curve-disconnect'!BA230,IF(Control!$B49=\"M\",'RES S curve-disconnect'!BA208,'RES S curve-disconnect'!BA186))","v":4467.2754032700541},{"$f":"IF(Control!$B49=\"L\",'RES S curve-disconnect'!BB230,IF(Control!$B49=\"M\",'RES S curve-disconnect'!BB208,'RES S curve-disconnect'!BB186))","v":5365.6548957846335},{"$f":"IF(Control!$B49=\"L\",'RES S curve-disconnect'!BC230,IF(Control!$B49=\"M\",'RES S curve-disconnect'!BC208,'RES S curve-disconnect'!BC186))","v":6437.1128636814774},{"$f":"IF(Control!$B49=\"L\",'RES S curve-disconnect'!BD230,IF(Control!$B49=\"M\",'RES S curve-disconnect'!BD208,'RES S curve-disconnect'!BD186))","v":7472.5385818466011},{"$f":"IF(Control!$B49=\"L\",'RES S curve-disconnect'!BE230,IF(Control!$B49=\"M\",'RES S curve-disconnect'!BE208,'RES S curve-disconnect'!BE186))","v":8419.5253758686031},{"$f":"IF(Control!$B49=\"L\",'RES S curve-disconnect'!BF230,IF(Control!$B49=\"M\",'RES S curve-disconnect'!BF208,'RES S curve-disconnect'!BF186))","v":9388.2928768847814},{"$f":"IF(Control!$B49=\"L\",'RES S curve-disconnect'!BG230,IF(Control!$B49=\"M\",'RES S curve-disconnect'!BG208,'RES S curve-disconnect'!BG186))","v":10484.043407407549},{"$f":"IF(Control!$B49=\"L\",'RES S curve-disconnect'!BH230,IF(Control!$B49=\"M\",'RES S curve-disconnect'!BH208,'RES S curve-disconnect'!BH186))","v":11785.170512053759},{"$f":"IF(Control!$B49=\"L\",'RES S curve-disconnect'!BI230,IF(Control!$B49=\"M\",'RES S curve-disconnect'!BI208,'RES S curve-disconnect'!BI186))","v":13670.087848690635},{"$f":"IF(Control!$B49=\"L\",'RES S curve-disconnect'!BJ230,IF(Control!$B49=\"M\",'RES S curve-disconnect'!BJ208,'RES S curve-disconnect'!BJ186))","v":16432.746941779918},{"$f":"IF(Control!$B49=\"L\",'RES S curve-disconnect'!BK230,IF(Control!$B49=\"M\",'RES S curve-disconnect'!BK208,'RES S curve-disconnect'!BK186))","v":20512.95781537567},{"$f":"IF(Control!$B49=\"L\",'RES S curve-disconnect'!BL230,IF(Control!$B49=\"M\",'RES S curve-disconnect'!BL208,'RES S curve-disconnect'!BL186))","v":-2999.3262822743095},{"$f":"IF(Control!$B49=\"L\",'RES S curve-disconnect'!BM230,IF(Control!$B49=\"M\",'RES S curve-disconnect'!BM208,'RES S curve-disconnect'!BM186))","v":-2994.1997208647899},{"$f":"IF(Control!$B49=\"L\",'RES S curve-disconnect'!BN230,IF(Control!$B49=\"M\",'RES S curve-disconnect'!BN208,'RES S curve-disconnect'!BN186))","v":-2991.3428579491597},{"$f":"IF(Control!$B49=\"L\",'RES S curve-disconnect'!BO230,IF(Control!$B49=\"M\",'RES S curve-disconnect'!BO208,'RES S curve-disconnect'!BO186))","v":-2983.9670410528006},{"$f":"IF(Control!$B49=\"L\",'RES S curve-disconnect'!BP230,IF(Control!$B49=\"M\",'RES S curve-disconnect'!BP208,'RES S curve-disconnect'!BP186))","v":-2978.8608411688792},{"$f":"IF(Control!$B49=\"L\",'RES S curve-disconnect'!BQ230,IF(Control!$B49=\"M\",'RES S curve-disconnect'!BQ208,'RES S curve-disconnect'!BQ186))","v":-2973.7613473993424},{"$f":"IF(Control!$B49=\"L\",'RES S curve-disconnect'!BR230,IF(Control!$B49=\"M\",'RES S curve-disconnect'!BR208,'RES S curve-disconnect'!BR186))","v":-2970.931390167772},{"$f":"IF(Control!$B49=\"L\",'RES S curve-disconnect'!BS230,IF(Control!$B49=\"M\",'RES S curve-disconnect'!BS208,'RES S curve-disconnect'!BS186))","v":-2963.5823180033667},{"$f":"IF(Control!$B49=\"L\",'RES S curve-disconnect'!BT230,IF(Control!$B49=\"M\",'RES S curve-disconnect'!BT208,'RES S curve-disconnect'!BT186))","v":-2958.5027028967775},{"$f":"IF(Control!$B49=\"L\",'RES S curve-disconnect'!BU230,IF(Control!$B49=\"M\",'RES S curve-disconnect'!BU208,'RES S curve-disconnect'!BU186))","v":-2953.4296349411457},{"$f":"IF(Control!$B49=\"L\",'RES S curve-disconnect'!BV230,IF(Control!$B49=\"M\",'RES S curve-disconnect'!BV208,'RES S curve-disconnect'!BV186))","v":-2950.6259455450008},{"$f":"IF(Control!$B49=\"L\",'RES S curve-disconnect'!BW230,IF(Control!$B49=\"M\",'RES S curve-disconnect'!BW208,'RES S curve-disconnect'!BW186))","v":-2943.3029842162769},{"$f":"IF(Control!$B49=\"L\",'RES S curve-disconnect'!BX230,IF(Control!$B49=\"M\",'RES S curve-disconnect'!BX208,'RES S curve-disconnect'!BX186))","v":-2938.2493239181922},{"$f":"IF(Control!$B49=\"L\",'RES S curve-disconnect'!BY230,IF(Control!$B49=\"M\",'RES S curve-disconnect'!BY208,'RES S curve-disconnect'!BY186))","v":-2933.2020557103233},{"$f":"IF(Control!$B49=\"L\",'RES S curve-disconnect'!BZ230,IF(Control!$B49=\"M\",'RES S curve-disconnect'!BZ208,'RES S curve-disconnect'!BZ186))","v":-2930.4240119615451},{"$f":"IF(Control!$B49=\"L\",'RES S curve-disconnect'!CA230,IF(Control!$B49=\"M\",'RES S curve-disconnect'!CA208,'RES S curve-disconnect'!CA186))","v":-2923.1265431340817},{"$f":"IF(Control!$B49=\"L\",'RES S curve-disconnect'!CB230,IF(Control!$B49=\"M\",'RES S curve-disconnect'!CB208,'RES S curve-disconnect'!CB186))","v":-2918.0982231394246},{"$f":"IF(Control!$B49=\"L\",'RES S curve-disconnect'!CC230,IF(Control!$B49=\"M\",'RES S curve-disconnect'!CC208,'RES S curve-disconnect'!CC186))","v":-2913.0761439794514},{"$f":"IF(Control!$B49=\"L\",'RES S curve-disconnect'!CD230,IF(Control!$B49=\"M\",'RES S curve-disconnect'!CD208,'RES S curve-disconnect'!CD186))","v":-2990.4508051459898}]
["Casey (C)",{"$f":"Customers!K144","v":13053},{"$f":"IF(Control!$B50=\"L\",'RES S curve-disconnect'!C231,IF(Control!$B50=\"M\",'RES S curve-disconnect'!C209,'RES S curve-disconnect'!C187))","v":-5047.2399283829309},{"$f":"IF(Control!$B50=\"L\",'RES S curve-disconnect'!D231,IF(Control!$B50=\"M\",'RES S curve-disconnect'!D209,'RES S curve-disconnect'!D187))","v":-5580.5105437298753},{"$f":"IF(Control!$B50=\"L\",'RES S curve-disconnect'!E231,IF(Control!$B50=\"M\",'RES S curve-disconnect'!E209,'RES S curve-disconnect'!E187))","v":-4833.9502605000034},{"$f":"IF(Control!$B50=\"L\",'RES S curve-disconnect'!F231,IF(Control!$B50=\"M\",'RES S curve-disconnect'!F209,'RES S curve-disconnect'!F187))","v":-4673.4191643098493},{"$f":"IF(Control!$B50=\"L\",'RES S curve-disconnect'!G231,IF(Control!$B50=\"M\",'RES S curve-disconnect'!G209,'RES S curve-disconnect'!G187))","v":-5936.7110929723331},{"$f":"IF(Control!$B50=\"L\",'RES S curve-disconnect'!H231,IF(Control!$B50=\"M\",'RES S curve-disconnect'!H209,'RES S curve-disconnect'!H187))","v":-5973.6313864764124},{"$f":"IF(Control!$B50=\"L\",'RES S curve-disconnect'!I231,IF(Control!$B50=\"M\",'RES S curve-disconnect'!I209,'RES S curve-disconnect'!I187))","v":-5520.2190922881418},{"$f":"IF(Control!$B50=\"L\",'RES S curve-disconnect'!J231,IF(Control!$B50=\"M\",'RES S curve-disconnect'!J209,'RES S curve-disconnect'!J187))","v":-5863.8045554844239},{"$f":"IF(Control!$B50=\"L\",'RES S curve-disconnect'!K231,IF(Control!$B50=\"M\",'RES S curve-disconnect'!K209,'RES S curve-disconnect'!K187))","v":-5011.4131026329296},{"$f":"IF(Control!$B50=\"L\",'RES S curve-disconnect'!L231,IF(Control!$B50=\"M\",'RES S curve-disconnect'!L209,'RES S curve-disconnect'!L187))","v":-5373.7185226621314},{"$f":"IF(Control!$B50=\"L\",'RES S curve-disconnect'!M231,IF(Control!$B50=\"M\",'RES S curve-disconnect'!M209,'RES S curve-disconnect'!M187))","v":-6036.3025918938283},{"$f":"IF(Control!$B50=\"L\",'RES S curve-disconnect'!N231,IF(Control!$B50=\"M\",'RES S curve-disconnect'!N209,'RES S curve-disconnect'!N187))","v":-6096.5463635289589},{"$f":"IF(Control!$B50=\"L\",'RES S curve-disconnect'!O231,IF(Control!$B50=\"M\",'RES S curve-disconnect'!O209,'RES S curve-disconnect'!O187))","v":-5510.262422087033},{"$f":"IF(Control!$B50=\"L\",'RES S curve-disconnect'!P231,IF(Control!$B50=\"M\",'RES S curve-disconnect'!P209,'RES S curve-disconnect'!P187))","v":-5042.5101105721751},{"$f":"IF(Control!$B50=\"L\",'RES S curve-disconnect'!Q231,IF(Control!$B50=\"M\",'RES S curve-disconnect'!Q209,'RES S curve-disconnect'!Q187))","v":-4336.885519655194},{"$f":"IF(Control!$B50=\"L\",'RES S curve-disconnect'!R231,IF(Control!$B50=\"M\",'RES S curve-disconnect'!R209,'RES S curve-disconnect'!R187))","v":-3935.8819118676893},{"$f":"IF(Control!$B50=\"L\",'RES S curve-disconnect'!S231,IF(Control!$B50=\"M\",'RES S curve-disconnect'!S209,'RES S curve-disconnect'!S187))","v":-3300.3200738397886},{"$f":"IF(Control!$B50=\"L\",'RES S curve-disconnect'!T231,IF(Control!$B50=\"M\",'RES S curve-disconnect'!T209,'RES S curve-disconnect'!T187))","v":-2952.0075245815133},{"$f":"IF(Control!$B50=\"L\",'RES S curve-disconnect'!U231,IF(Control!$B50=\"M\",'RES S curve-disconnect'!U209,'RES S curve-disconnect'!U187))","v":-2555.8909495722255},{"$f":"IF(Control!$B50=\"L\",'RES S curve-disconnect'!V231,IF(Control!$B50=\"M\",'RES S curve-disconnect'!V209,'RES S curve-disconnect'!V187))","v":-2285.2644044992835},{"$f":"IF(Control!$B50=\"L\",'RES S curve-disconnect'!W231,IF(Control!$B50=\"M\",'RES S curve-disconnect'!W209,'RES S curve-disconnect'!W187))","v":-2073.9515134071553},{"$f":"IF(Control!$B50=\"L\",'RES S curve-disconnect'!X231,IF(Control!$B50=\"M\",'RES S curve-disconnect'!X209,'RES S curve-disconnect'!X187))","v":-1596.6274798615473},{"$f":"IF(Control!$B50=\"L\",'RES S curve-disconnect'!Y231,IF(Control!$B50=\"M\",'RES S curve-disconnect'!Y209,'RES S curve-disconnect'!Y187))","v":-1113.9084595406657},{"$f":"IF(Control!$B50=\"L\",'RES S curve-disconnect'!Z231,IF(Control!$B50=\"M\",'RES S curve-disconnect'!Z209,'RES S curve-disconnect'!Z187))","v":-786.65919545830911},{"$f":"IF(Control!$B50=\"L\",'RES S curve-disconnect'!AA231,IF(Control!$B50=\"M\",'RES S curve-disconnect'!AA209,'RES S curve-disconnect'!AA187))","v":-459.61269202680421},{"$f":"IF(Control!$B50=\"L\",'RES S curve-disconnect'!AB231,IF(Control!$B50=\"M\",'RES S curve-disconnect'!AB209,'RES S curve-disconnect'!AB187))","v":-198.28821948122018},{"$f":"IF(Control!$B50=\"L\",'RES S curve-disconnect'!AC231,IF(Control!$B50=\"M\",'RES S curve-disconnect'!AC209,'RES S curve-disconnect'!AC187))","v":53.392739136312514},{"$f":"IF(Control!$B50=\"L\",'RES S curve-disconnect'!AD231,IF(Control!$B50=\"M\",'RES S curve-disconnect'!AD209,'RES S curve-disconnect'!AD187))","v":284.38331634387447},{"$f":"IF(Control!$B50=\"L\",'RES S curve-disconnect'!AE231,IF(Control!$B50=\"M\",'RES S curve-disconnect'!AE209,'RES S curve-disconnect'!AE187))","v":526.76457989114544},{"$f":"IF(Control!$B50=\"L\",'RES S curve-disconnect'!AF231,IF(Control!$B50=\"M\",'RES S curve-disconnect'!AF209,'RES S curve-disconnect'!AF187))","v":840.26940893049982},{"$f":"IF(Control!$B50=\"L\",'RES S curve-disconnect'!AG231,IF(Control!$B50=\"M\",'RES S curve-disconnect'!AG209,'RES S curve-disconnect'!AG187))","v":1054.86868053072},{"$f":"IF(Control!$B50=\"L\",'RES S curve-disconnect'!AH231,IF(Control!$B50=\"M\",'RES S curve-disconnect'!AH209,'RES S curve-disconnect'!AH187))","v":1357.5005935113593},{"$f":"IF(Control!$B50=\"L\",'RES S curve-disconnect'!AI231,IF(Control!$B50=\"M\",'RES S curve-disconnect'!AI209,'RES S curve-disconnect'!AI187))","v":1628.9392326039313},{"$f":"IF(Control!$B50=\"L\",'RES S curve-disconnect'!AJ231,IF(Control!$B50=\"M\",'RES S curve-disconnect'!AJ209,'RES S curve-disconnect'!AJ187))","v":1874.033733252089},{"$f":"IF(Control!$B50=\"L\",'RES S curve-disconnect'!AK231,IF(Control!$B50=\"M\",'RES S curve-disconnect'!AK209,'RES S curve-disconnect'!AK187))","v":2134.2147177604725},{"$f":"IF(Control!$B50=\"L\",'RES S curve-disconnect'!AL231,IF(Control!$B50=\"M\",'RES S curve-disconnect'!AL209,'RES S curve-disconnect'!AL187))","v":1235.1949346346657},{"$f":"IF(Control!$B50=\"L\",'RES S curve-disconnect'!AM231,IF(Control!$B50=\"M\",'RES S curve-disconnect'!AM209,'RES S curve-disconnect'!AM187))","v":1116.5519433349134},{"$f":"IF(Control!$B50=\"L\",'RES S curve-disconnect'!AN231,IF(Control!$B50=\"M\",'RES S curve-disconnect'!AN209,'RES S curve-disconnect'!AN187))","v":1362.3258982220091},{"$f":"IF(Control!$B50=\"L\",'RES S curve-disconnect'!AO231,IF(Control!$B50=\"M\",'RES S curve-disconnect'!AO209,'RES S curve-disconnect'!AO187))","v":1663.4420504911891},{"$f":"IF(Control!$B50=\"L\",'RES S curve-disconnect'!AP231,IF(Control!$B50=\"M\",'RES S curve-disconnect'!AP209,'RES S curve-disconnect'!AP187))","v":1941.9330900682658},{"$f":"IF(Control!$B50=\"L\",'RES S curve-disconnect'!AQ231,IF(Control!$B50=\"M\",'RES S curve-disconnect'!AQ209,'RES S curve-disconnect'!AQ187))","v":2241.447122330203},{"$f":"IF(Control!$B50=\"L\",'RES S curve-disconnect'!AR231,IF(Control!$B50=\"M\",'RES S curve-disconnect'!AR209,'RES S curve-disconnect'!AR187))","v":2570.5013810192359},{"$f":"IF(Control!$B50=\"L\",'RES S curve-disconnect'!AS231,IF(Control!$B50=\"M\",'RES S curve-disconnect'!AS209,'RES S curve-disconnect'!AS187))","v":2939.7968599379774},{"$f":"IF(Control!$B50=\"L\",'RES S curve-disconnect'!AT231,IF(Control!$B50=\"M\",'RES S curve-disconnect'!AT209,'RES S curve-disconnect'!AT187))","v":3353.1032895553776},{"$f":"IF(Control!$B50=\"L\",'RES S curve-disconnect'!AU231,IF(Control!$B50=\"M\",'RES S curve-disconnect'!AU209,'RES S curve-disconnect'!AU187))","v":3830.9890838493716},{"$f":"IF(Control!$B50=\"L\",'RES S curve-disconnect'!AV231,IF(Control!$B50=\"M\",'RES S curve-disconnect'!AV209,'RES S curve-disconnect'!AV187))","v":4376.3815377121227},{"$f":"IF(Control!$B50=\"L\",'RES S curve-disconnect'!AW231,IF(Control!$B50=\"M\",'RES S curve-disconnect'!AW209,'RES S curve-disconnect'!AW187))","v":5003.3978720834457},{"$f":"IF(Control!$B50=\"L\",'RES S curve-disconnect'!AX231,IF(Control!$B50=\"M\",'RES S curve-disconnect'!AX209,'RES S curve-disconnect'!AX187))","v":5718.3574153118416},{"$f":"IF(Control!$B50=\"L\",'RES S curve-disconnect'!AY231,IF(Control!$B50=\"M\",'RES S curve-disconnect'!AY209,'RES S curve-disconnect'!AY187))","v":6543.1852987172024},{"$f":"IF(Control!$B50=\"L\",'RES S curve-disconnect'!AZ231,IF(Control!$B50=\"M\",'RES S curve-disconnect'!AZ209,'RES S curve-disconnect'!AZ187))","v":7486.5688654418927},{"$f":"IF(Control!$B50=\"L\",'RES S curve-disconnect'!BA231,IF(Control!$B50=\"M\",'RES S curve-disconnect'!BA209,'RES S curve-disconnect'!BA187))","v":8579.4251487842084},{"$f":"IF(Control!$B50=\"L\",'RES S curve-disconnect'!BB231,IF(Control!$B50=\"M\",'RES S curve-disconnect'!BB209,'RES S curve-disconnect'!BB187))","v":9856.816395784148},{"$f":"IF(Control!$B50=\"L\",'RES S curve-disconnect'!BC231,IF(Control!$B50=\"M\",'RES S curve-disconnect'!BC209,'RES S curve-disconnect'!BC187))","v":11380.226895896303},{"$f":"IF(Control!$B50=\"L\",'RES S curve-disconnect'!BD231,IF(Control!$B50=\"M\",'RES S curve-disconnect'!BD209,'RES S curve-disconnect'!BD187))","v":12851.387295004446},{"$f":"IF(Control!$B50=\"L\",'RES S curve-disconnect'!BE231,IF(Control!$B50=\"M\",'RES S curve-disconnect'!BE209,'RES S curve-disconnect'!BE187))","v":14196.553568697533},{"$f":"IF(Control!$B50=\"L\",'RES S curve-disconnect'!BF231,IF(Control!$B50=\"M\",'RES S curve-disconnect'!BF209,'RES S curve-disconnect'!BF187))","v":15572.758381613277},{"$f":"IF(Control!$B50=\"L\",'RES S curve-disconnect'!BG231,IF(Control!$B50=\"M\",'RES S curve-disconnect'!BG209,'RES S curve-disconnect'!BG187))","v":17129.731061481543},{"$f":"IF(Control!$B50=\"L\",'RES S curve-disconnect'!BH231,IF(Control!$B50=\"M\",'RES S curve-disconnect'!BH209,'RES S curve-disconnect'!BH187))","v":18978.291455272858},{"$f":"IF(Control!$B50=\"L\",'RES S curve-disconnect'!BI231,IF(Control!$B50=\"M\",'RES S curve-disconnect'!BI209,'RES S curve-disconnect'!BI187))","v":21656.488987096083},{"$f":"IF(Control!$B50=\"L\",'RES S curve-disconnect'!BJ231,IF(Control!$B50=\"M\",'RES S curve-disconnect'!BJ209,'RES S curve-disconnect'!BJ187))","v":25580.640149455132},{"$f":"IF(Control!$B50=\"L\",'RES S curve-disconnect'!BK231,IF(Control!$B50=\"M\",'RES S curve-disconnect'!BK209,'RES S curve-disconnect'!BK187))","v":31374.526960846437},{"$f":"IF(Control!$B50=\"L\",'RES S curve-disconnect'!BL231,IF(Control!$B50=\"M\",'RES S curve-disconnect'!BL209,'RES S curve-disconnect'!BL187))","v":-2055.2730646187247},{"$f":"IF(Control!$B50=\"L\",'RES S curve-disconnect'!BM231,IF(Control!$B50=\"M\",'RES S curve-disconnect'!BM209,'RES S curve-disconnect'!BM187))","v":-2047.9471954013827},{"$f":"IF(Control!$B50=\"L\",'RES S curve-disconnect'!BN231,IF(Control!$B50=\"M\",'RES S curve-disconnect'!BN209,'RES S curve-disconnect'!BN187))","v":-2043.9718355256077},{"$f":"IF(Control!$B50=\"L\",'RES S curve-disconnect'!BO231,IF(Control!$B50=\"M\",'RES S curve-disconnect'!BO209,'RES S curve-disconnect'!BO187))","v":-2033.3256647188923},{"$f":"IF(Control!$B50=\"L\",'RES S curve-disconnect'!BP231,IF(Control!$B50=\"M\",'RES S curve-disconnect'!BP209,'RES S curve-disconnect'!BP187))","v":-2026.0298821895294},{"$f":"IF(Control!$B50=\"L\",'RES S curve-disconnect'!BQ231,IF(Control!$B50=\"M\",'RES S curve-disconnect'!BQ209,'RES S curve-disconnect'!BQ187))","v":-2018.7440081186335},{"$f":"IF(Control!$B50=\"L\",'RES S curve-disconnect'!BR231,IF(Control!$B50=\"M\",'RES S curve-disconnect'!BR209,'RES S curve-disconnect'!BR187))","v":-2014.8084027611305},{"$f":"IF(Control!$B50=\"L\",'RES S curve-disconnect'!BS231,IF(Control!$B50=\"M\",'RES S curve-disconnect'!BS209,'RES S curve-disconnect'!BS187))","v":-2004.2017473400485},{"$f":"IF(Control!$B50=\"L\",'RES S curve-disconnect'!BT231,IF(Control!$B50=\"M\",'RES S curve-disconnect'!BT209,'RES S curve-disconnect'!BT187))","v":-1996.9452425497682},{"$f":"IF(Control!$B50=\"L\",'RES S curve-disconnect'!BU231,IF(Control!$B50=\"M\",'RES S curve-disconnect'!BU209,'RES S curve-disconnect'!BU187))","v":-1989.69841004811},{"$f":"IF(Control!$B50=\"L\",'RES S curve-disconnect'!BV231,IF(Control!$B50=\"M\",'RES S curve-disconnect'!BV209,'RES S curve-disconnect'!BV187))","v":-1985.8016115573864},{"$f":"IF(Control!$B50=\"L\",'RES S curve-disconnect'!BW231,IF(Control!$B50=\"M\",'RES S curve-disconnect'!BW209,'RES S curve-disconnect'!BW187))","v":-1975.2335297587442},{"$f":"IF(Control!$B50=\"L\",'RES S curve-disconnect'!BX231,IF(Control!$B50=\"M\",'RES S curve-disconnect'!BX209,'RES S curve-disconnect'!BX187))","v":-1968.0153667954833},{"$f":"IF(Control!$B50=\"L\",'RES S curve-disconnect'!BY231,IF(Control!$B50=\"M\",'RES S curve-disconnect'!BY209,'RES S curve-disconnect'!BY187))","v":-1960.8066457651964},{"$f":"IF(Control!$B50=\"L\",'RES S curve-disconnect'!BZ231,IF(Control!$B50=\"M\",'RES S curve-disconnect'!BZ209,'RES S curve-disconnect'!BZ187))","v":-1956.9477298208774},{"$f":"IF(Control!$B50=\"L\",'RES S curve-disconnect'!CA231,IF(Control!$B50=\"M\",'RES S curve-disconnect'!CA209,'RES S curve-disconnect'!CA187))","v":-1946.4173030653265},{"$f":"IF(Control!$B50=\"L\",'RES S curve-disconnect'!CB231,IF(Control!$B50=\"M\",'RES S curve-disconnect'!CB209,'RES S curve-disconnect'!CB187))","v":-1939.2365690545237},{"$f":"IF(Control!$B50=\"L\",'RES S curve-disconnect'!CC231,IF(Control!$B50=\"M\",'RES S curve-disconnect'!CC209,'RES S curve-disconnect'!CC187))","v":-1932.0650522898275},{"$f":"IF(Control!$B50=\"L\",'RES S curve-disconnect'!CD231,IF(Control!$B50=\"M\",'RES S curve-disconnect'!CD209,'RES S curve-disconnect'!CD187))","v":-2041.7648475161989}]
["Frankston (C)",{"$f":"Customers!K145","v":1},{"$f":"IF(Control!$B51=\"L\",'RES S curve-disconnect'!C232,IF(Control!$B51=\"M\",'RES S curve-disconnect'!C210,'RES S curve-disconnect'!C188))","v":-6197.0596333040685},{"$f":"IF(Control!$B51=\"L\",'RES S curve-disconnect'!D232,IF(Control!$B51=\"M\",'RES S curve-disconnect'!D210,'RES S curve-disconnect'!D188))","v":-6631.7876589780208},{"$f":"IF(Control!$B51=\"L\",'RES S curve-disconnect'!E232,IF(Control!$B51=\"M\",'RES S curve-disconnect'!E210,'RES S curve-disconnect'!E188))","v":-5372.2730910621704},{"$f":"IF(Control!$B51=\"L\",'RES S curve-disconnect'!F232,IF(Control!$B51=\"M\",'RES S curve-disconnect'!F210,'RES S curve-disconnect'!F188))","v":-5236.8422618682798},{"$f":"IF(Control!$B51=\"L\",'RES S curve-disconnect'!G232,IF(Control!$B51=\"M\",'RES S curve-disconnect'!G210,'RES S curve-disconnect'!G188))","v":-6867.2901337816775},{"$f":"IF(Control!$B51=\"L\",'RES S curve-disconnect'!H232,IF(Control!$B51=\"M\",'RES S curve-disconnect'!H210,'RES S curve-disconnect'!H188))","v":-6868.2686887773743},{"$f":"IF(Control!$B51=\"L\",'RES S curve-disconnect'!I232,IF(Control!$B51=\"M\",'RES S curve-disconnect'!I210,'RES S curve-disconnect'!I188))","v":-6486.1535458810613},{"$f":"IF(Control!$B51=\"L\",'RES S curve-disconnect'!J232,IF(Control!$B51=\"M\",'RES S curve-disconnect'!J210,'RES S curve-disconnect'!J188))","v":-6842.6013127440083},{"$f":"IF(Control!$B51=\"L\",'RES S curve-disconnect'!K232,IF(Control!$B51=\"M\",'RES S curve-disconnect'!K210,'RES S curve-disconnect'!K188))","v":-6035.1505293332966},{"$f":"IF(Control!$B51=\"L\",'RES S curve-disconnect'!L232,IF(Control!$B51=\"M\",'RES S curve-disconnect'!L210,'RES S curve-disconnect'!L188))","v":-6313.119455972721},{"$f":"IF(Control!$B51=\"L\",'RES S curve-disconnect'!M232,IF(Control!$B51=\"M\",'RES S curve-disconnect'!M210,'RES S curve-disconnect'!M188))","v":-6865.1838171459785},{"$f":"IF(Control!$B51=\"L\",'RES S curve-disconnect'!N232,IF(Control!$B51=\"M\",'RES S curve-disconnect'!N210,'RES S curve-disconnect'!N188))","v":-6898.7224620312772},{"$f":"IF(Control!$B51=\"L\",'RES S curve-disconnect'!O232,IF(Control!$B51=\"M\",'RES S curve-disconnect'!O210,'RES S curve-disconnect'!O188))","v":-6392.565182463517},{"$f":"IF(Control!$B51=\"L\",'RES S curve-disconnect'!P232,IF(Control!$B51=\"M\",'RES S curve-disconnect'!P210,'RES S curve-disconnect'!P188))","v":-5982.2096042510784},{"$f":"IF(Control!$B51=\"L\",'RES S curve-disconnect'!Q232,IF(Control!$B51=\"M\",'RES S curve-disconnect'!Q210,'RES S curve-disconnect'!Q188))","v":-5372.1704883276088},{"$f":"IF(Control!$B51=\"L\",'RES S curve-disconnect'!R232,IF(Control!$B51=\"M\",'RES S curve-disconnect'!R210,'RES S curve-disconnect'!R188))","v":-5017.6083940351236},{"$f":"IF(Control!$B51=\"L\",'RES S curve-disconnect'!S232,IF(Control!$B51=\"M\",'RES S curve-disconnect'!S210,'RES S curve-disconnect'!S188))","v":-4469.5427755409219},{"$f":"IF(Control!$B51=\"L\",'RES S curve-disconnect'!T232,IF(Control!$B51=\"M\",'RES S curve-disconnect'!T210,'RES S curve-disconnect'!T188))","v":-4153.9162517408877},{"$f":"IF(Control!$B51=\"L\",'RES S curve-disconnect'!U232,IF(Control!$B51=\"M\",'RES S curve-disconnect'!U210,'RES S curve-disconnect'!U188))","v":-3803.0721822357109},{"$f":"IF(Control!$B51=\"L\",'RES S curve-disconnect'!V232,IF(Control!$B51=\"M\",'RES S curve-disconnect'!V210,'RES S curve-disconnect'!V188))","v":-3560.4729243939628},{"$f":"IF(Control!$B51=\"L\",'RES S curve-disconnect'!W232,IF(Control!$B51=\"M\",'RES S curve-disconnect'!W210,'RES S curve-disconnect'!W188))","v":-3366.8335163713537},{"$f":"IF(Control!$B51=\"L\",'RES S curve-disconnect'!X232,IF(Control!$B51=\"M\",'RES S curve-disconnect'!X210,'RES S curve-disconnect'!X188))","v":-2946.2503163010952},{"$f":"IF(Control!$B51=\"L\",'RES S curve-disconnect'!Y232,IF(Control!$B51=\"M\",'RES S curve-disconnect'!Y210,'RES S curve-disconnect'!Y188))","v":-2522.0609945398046},{"$f":"IF(Control!$B51=\"L\",'RES S curve-disconnect'!Z232,IF(Control!$B51=\"M\",'RES S curve-disconnect'!Z210,'RES S curve-disconnect'!Z188))","v":-2229.8816675382805},{"$f":"IF(Control!$B51=\"L\",'RES S curve-disconnect'!AA232,IF(Control!$B51=\"M\",'RES S curve-disconnect'!AA210,'RES S curve-disconnect'!AA188))","v":-1938.9525792779584},{"$f":"IF(Control!$B51=\"L\",'RES S curve-disconnect'!AB232,IF(Control!$B51=\"M\",'RES S curve-disconnect'!AB210,'RES S curve-disconnect'!AB188))","v":-1703.1284109866754},{"$f":"IF(Control!$B51=\"L\",'RES S curve-disconnect'!AC232,IF(Control!$B51=\"M\",'RES S curve-disconnect'!AC210,'RES S curve-disconnect'!AC188))","v":-1476.1007253829966},{"$f":"IF(Control!$B51=\"L\",'RES S curve-disconnect'!AD232,IF(Control!$B51=\"M\",'RES S curve-disconnect'!AD210,'RES S curve-disconnect'!AD188))","v":-1266.4892904110825},{"$f":"IF(Control!$B51=\"L\",'RES S curve-disconnect'!AE232,IF(Control!$B51=\"M\",'RES S curve-disconnect'!AE210,'RES S curve-disconnect'!AE188))","v":-1048.7968839996149},{"$f":"IF(Control!$B51=\"L\",'RES S curve-disconnect'!AF232,IF(Control!$B51=\"M\",'RES S curve-disconnect'!AF210,'RES S curve-disconnect'!AF188))","v":-770.34744836576965},{"$f":"IF(Control!$B51=\"L\",'RES S curve-disconnect'!AG232,IF(Control!$B51=\"M\",'RES S curve-disconnect'!AG210,'RES S curve-disconnect'!AG188))","v":-591.45570756111874},{"$f":"IF(Control!$B51=\"L\",'RES S curve-disconnect'!AH232,IF(Control!$B51=\"M\",'RES S curve-disconnect'!AH210,'RES S curve-disconnect'!AH188))","v":-336.37923493644234},{"$f":"IF(Control!$B51=\"L\",'RES S curve-disconnect'!AI232,IF(Control!$B51=\"M\",'RES S curve-disconnect'!AI210,'RES S curve-disconnect'!AI188))","v":-110.11444131387452},{"$f":"IF(Control!$B51=\"L\",'RES S curve-disconnect'!AJ232,IF(Control!$B51=\"M\",'RES S curve-disconnect'!AJ210,'RES S curve-disconnect'!AJ188))","v":94.706271795705561},{"$f":"IF(Control!$B51=\"L\",'RES S curve-disconnect'!AK232,IF(Control!$B51=\"M\",'RES S curve-disconnect'!AK210,'RES S curve-disconnect'!AK188))","v":312.05117311754248},{"$f":"IF(Control!$B51=\"L\",'RES S curve-disconnect'!AL232,IF(Control!$B51=\"M\",'RES S curve-disconnect'!AL210,'RES S curve-disconnect'!AL188))","v":-432.58838359980041},{"$f":"IF(Control!$B51=\"L\",'RES S curve-disconnect'!AM232,IF(Control!$B51=\"M\",'RES S curve-disconnect'!AM210,'RES S curve-disconnect'!AM188))","v":-534.73359073269216},{"$f":"IF(Control!$B51=\"L\",'RES S curve-disconnect'!AN232,IF(Control!$B51=\"M\",'RES S curve-disconnect'!AN210,'RES S curve-disconnect'!AN188))","v":-331.37620075686118},{"$f":"IF(Control!$B51=\"L\",'RES S curve-disconnect'!AO232,IF(Control!$B51=\"M\",'RES S curve-disconnect'!AO210,'RES S curve-disconnect'!AO188))","v":-80.363072548567288},{"$f":"IF(Control!$B51=\"L\",'RES S curve-disconnect'!AP232,IF(Control!$B51=\"M\",'RES S curve-disconnect'!AP210,'RES S curve-disconnect'!AP188))","v":152.87543585108551},{"$f":"IF(Control!$B51=\"L\",'RES S curve-disconnect'!AQ232,IF(Control!$B51=\"M\",'RES S curve-disconnect'!AQ210,'RES S curve-disconnect'!AQ188))","v":402.62025455474486},{"$f":"IF(Control!$B51=\"L\",'RES S curve-disconnect'!AR232,IF(Control!$B51=\"M\",'RES S curve-disconnect'!AR210,'RES S curve-disconnect'!AR188))","v":677.65119970158162},{"$f":"IF(Control!$B51=\"L\",'RES S curve-disconnect'!AS232,IF(Control!$B51=\"M\",'RES S curve-disconnect'!AS210,'RES S curve-disconnect'!AS188))","v":986.49368023534748},{"$f":"IF(Control!$B51=\"L\",'RES S curve-disconnect'!AT232,IF(Control!$B51=\"M\",'RES S curve-disconnect'!AT210,'RES S curve-disconnect'!AT188))","v":1332.8973035136821},{"$f":"IF(Control!$B51=\"L\",'RES S curve-disconnect'!AU232,IF(Control!$B51=\"M\",'RES S curve-disconnect'!AU210,'RES S curve-disconnect'!AU188))","v":1732.5385610353499},{"$f":"IF(Control!$B51=\"L\",'RES S curve-disconnect'!AV232,IF(Control!$B51=\"M\",'RES S curve-disconnect'!AV210,'RES S curve-disconnect'!AV188))","v":2189.5680341905017},{"$f":"IF(Control!$B51=\"L\",'RES S curve-disconnect'!AW232,IF(Control!$B51=\"M\",'RES S curve-disconnect'!AW210,'RES S curve-disconnect'!AW188))","v":2715.4439199125641},{"$f":"IF(Control!$B51=\"L\",'RES S curve-disconnect'!AX232,IF(Control!$B51=\"M\",'RES S curve-disconnect'!AX210,'RES S curve-disconnect'!AX188))","v":3316.2087045449462},{"$f":"IF(Control!$B51=\"L\",'RES S curve-disconnect'!AY232,IF(Control!$B51=\"M\",'RES S curve-disconnect'!AY210,'RES S curve-disconnect'!AY188))","v":4008.8575580290471},{"$f":"IF(Control!$B51=\"L\",'RES S curve-disconnect'!AZ232,IF(Control!$B51=\"M\",'RES S curve-disconnect'!AZ210,'RES S curve-disconnect'!AZ188))","v":4802.5503238264992},{"$f":"IF(Control!$B51=\"L\",'RES S curve-disconnect'!BA232,IF(Control!$B51=\"M\",'RES S curve-disconnect'!BA210,'RES S curve-disconnect'!BA188))","v":5723.0204909288832},{"$f":"IF(Control!$B51=\"L\",'RES S curve-disconnect'!BB232,IF(Control!$B51=\"M\",'RES S curve-disconnect'!BB210,'RES S curve-disconnect'!BB188))","v":6800.7168027041662},{"$f":"IF(Control!$B51=\"L\",'RES S curve-disconnect'!BC232,IF(Control!$B51=\"M\",'RES S curve-disconnect'!BC210,'RES S curve-disconnect'!BC188))","v":8086.3097421514267},{"$f":"IF(Control!$B51=\"L\",'RES S curve-disconnect'!BD232,IF(Control!$B51=\"M\",'RES S curve-disconnect'!BD210,'RES S curve-disconnect'!BD188))","v":9332.4153638892676},{"$f":"IF(Control!$B51=\"L\",'RES S curve-disconnect'!BE232,IF(Control!$B51=\"M\",'RES S curve-disconnect'!BE210,'RES S curve-disconnect'!BE188))","v":10473.334183423556},{"$f":"IF(Control!$B51=\"L\",'RES S curve-disconnect'!BF232,IF(Control!$B51=\"M\",'RES S curve-disconnect'!BF210,'RES S curve-disconnect'!BF188))","v":11640.125488719976},{"$f":"IF(Control!$B51=\"L\",'RES S curve-disconnect'!BG232,IF(Control!$B51=\"M\",'RES S curve-disconnect'!BG210,'RES S curve-disconnect'!BG188))","v":12958.452286215883},{"$f":"IF(Control!$B51=\"L\",'RES S curve-disconnect'!BH232,IF(Control!$B51=\"M\",'RES S curve-disconnect'!BH210,'RES S curve-disconnect'!BH188))","v":14524.724506355418},{"$f":"IF(Control!$B51=\"L\",'RES S curve-disconnect'!BI232,IF(Control!$B51=\"M\",'RES S curve-disconnect'!BI210,'RES S curve-disconnect'!BI188))","v":16792.89388711123},{"$f":"IF(Control!$B51=\"L\",'RES S curve-disconnect'!BJ232,IF(Control!$B51=\"M\",'RES S curve-disconnect'!BJ210,'RES S curve-disconnect'!BJ188))","v":20121.61537670012},{"$f":"IF(Control!$B51=\"L\",'RES S curve-disconnect'!BK232,IF(Control!$B51=\"M\",'RES S curve-disconnect'!BK210,'RES S curve-disconnect'!BK188))","v":25044.239647989805},{"$f":"IF(Control!$B51=\"L\",'RES S curve-disconnect'!BL232,IF(Control!$B51=\"M\",'RES S curve-disconnect'!BL210,'RES S curve-disconnect'!BL188))","v":-3166.0813513652447},{"$f":"IF(Control!$B51=\"L\",'RES S curve-disconnect'!BM232,IF(Control!$B51=\"M\",'RES S curve-disconnect'!BM210,'RES S curve-disconnect'!BM188))","v":-3159.9936609908054},{"$f":"IF(Control!$B51=\"L\",'RES S curve-disconnect'!BN232,IF(Control!$B51=\"M\",'RES S curve-disconnect'!BN210,'RES S curve-disconnect'!BN188))","v":-3156.1761874923309},{"$f":"IF(Control!$B51=\"L\",'RES S curve-disconnect'!BO232,IF(Control!$B51=\"M\",'RES S curve-disconnect'!BO210,'RES S curve-disconnect'!BO188))","v":-3147.8402760147874},{"$f":"IF(Control!$B51=\"L\",'RES S curve-disconnect'!BP232,IF(Control!$B51=\"M\",'RES S curve-disconnect'!BP210,'RES S curve-disconnect'!BP188))","v":-3141.7744951834438},{"$f":"IF(Control!$B51=\"L\",'RES S curve-disconnect'!BQ232,IF(Control!$B51=\"M\",'RES S curve-disconnect'!BQ210,'RES S curve-disconnect'!BQ188))","v":-3135.7159317447931},{"$f":"IF(Control!$B51=\"L\",'RES S curve-disconnect'!BR232,IF(Control!$B51=\"M\",'RES S curve-disconnect'!BR210,'RES S curve-disconnect'!BR188))","v":-3131.9274137793368},{"$f":"IF(Control!$B51=\"L\",'RES S curve-disconnect'!BS232,IF(Control!$B51=\"M\",'RES S curve-disconnect'!BS210,'RES S curve-disconnect'!BS188))","v":-3123.6202874854944},{"$f":"IF(Control!$B51=\"L\",'RES S curve-disconnect'!BT232,IF(Control!$B51=\"M\",'RES S curve-disconnect'!BT210,'RES S curve-disconnect'!BT188))","v":-3117.5831225353668},{"$f":"IF(Control!$B51=\"L\",'RES S curve-disconnect'!BU232,IF(Control!$B51=\"M\",'RES S curve-disconnect'!BU210,'RES S curve-disconnect'!BU188))","v":-3111.553006715706},{"$f":"IF(Control!$B51=\"L\",'RES S curve-disconnect'!BV232,IF(Control!$B51=\"M\",'RES S curve-disconnect'!BV210,'RES S curve-disconnect'!BV188))","v":-3107.7927691407431},{"$f":"IF(Control!$B51=\"L\",'RES S curve-disconnect'!BW232,IF(Control!$B51=\"M\",'RES S curve-disconnect'!BW210,'RES S curve-disconnect'!BW188))","v":-3099.513757036133},{"$f":"IF(Control!$B51=\"L\",'RES S curve-disconnect'!BX232,IF(Control!$B51=\"M\",'RES S curve-disconnect'!BX210,'RES S curve-disconnect'!BX188))","v":-3093.504541094765},{"$f":"IF(Control!$B51=\"L\",'RES S curve-disconnect'!BY232,IF(Control!$B51=\"M\",'RES S curve-disconnect'!BY210,'RES S curve-disconnect'!BY188))","v":-3087.5022101177701},{"$f":"IF(Control!$B51=\"L\",'RES S curve-disconnect'!BZ232,IF(Control!$B51=\"M\",'RES S curve-disconnect'!BZ210,'RES S curve-disconnect'!BZ188))","v":-3083.7695942273931},{"$f":"IF(Control!$B51=\"L\",'RES S curve-disconnect'!CA232,IF(Control!$B51=\"M\",'RES S curve-disconnect'!CA210,'RES S curve-disconnect'!CA188))","v":-3075.5180416509693},{"$f":"IF(Control!$B51=\"L\",'RES S curve-disconnect'!CB232,IF(Control!$B51=\"M\",'RES S curve-disconnect'!CB210,'RES S curve-disconnect'!CB188))","v":-3069.5361240767843},{"$f":"IF(Control!$B51=\"L\",'RES S curve-disconnect'!CC232,IF(Control!$B51=\"M\",'RES S curve-disconnect'!CC210,'RES S curve-disconnect'!CC188))","v":-3063.5609312951192},{"$f":"IF(Control!$B51=\"L\",'RES S curve-disconnect'!CD232,IF(Control!$B51=\"M\",'RES S curve-disconnect'!CD210,'RES S curve-disconnect'!CD188))","v":-3157.4776424133433}]
["Glen Eira (C)",{"$f":"Customers!K146","v":51794},{"$f":"IF(Control!$B52=\"L\",'RES S curve-disconnect'!C233,IF(Control!$B52=\"M\",'RES S curve-disconnect'!C211,'RES S curve-disconnect'!C189))","v":-4119.4997341432936},{"$f":"IF(Control!$B52=\"L\",'RES S curve-disconnect'!D233,IF(Control!$B52=\"M\",'RES S curve-disconnect'!D211,'RES S curve-disconnect'!D189))","v":-4689.3803700217049},{"$f":"IF(Control!$B52=\"L\",'RES S curve-disconnect'!E233,IF(Control!$B52=\"M\",'RES S curve-disconnect'!E211,'RES S curve-disconnect'!E189))","v":-4180.2274874410132},{"$f":"IF(Control!$B52=\"L\",'RES S curve-disconnect'!F233,IF(Control!$B52=\"M\",'RES S curve-disconnect'!F211,'RES S curve-disconnect'!F189))","v":-4012.8150315776065},{"$f":"IF(Control!$B52=\"L\",'RES S curve-disconnect'!G233,IF(Control!$B52=\"M\",'RES S curve-disconnect'!G211,'RES S curve-disconnect'!G189))","v":-5148.5290253231415},{"$f":"IF(Control!$B52=\"L\",'RES S curve-disconnect'!H233,IF(Control!$B52=\"M\",'RES S curve-disconnect'!H211,'RES S curve-disconnect'!H189))","v":-5180.6427973231639},{"$f":"IF(Control!$B52=\"L\",'RES S curve-disconnect'!I233,IF(Control!$B52=\"M\",'RES S curve-disconnect'!I211,'RES S curve-disconnect'!I189))","v":-4701.8557856011994},{"$f":"IF(Control!$B52=\"L\",'RES S curve-disconnect'!J233,IF(Control!$B52=\"M\",'RES S curve-disconnect'!J211,'RES S curve-disconnect'!J189))","v":-5009.5045876675349},{"$f":"IF(Control!$B52=\"L\",'RES S curve-disconnect'!K233,IF(Control!$B52=\"M\",'RES S curve-disconnect'!K211,'RES S curve-disconnect'!K189))","v":-4154.7033527959657},{"$f":"IF(Control!$B52=\"L\",'RES S curve-disconnect'!L233,IF(Control!$B52=\"M\",'RES S curve-disconnect'!L211,'RES S curve-disconnect'!L189))","v":-4551.8302980918961},{"$f":"IF(Control!$B52=\"L\",'RES S curve-disconnect'!M233,IF(Control!$B52=\"M\",'RES S curve-disconnect'!M211,'RES S curve-disconnect'!M189))","v":-5256.0427068394329},{"$f":"IF(Control!$B52=\"L\",'RES S curve-disconnect'!N233,IF(Control!$B52=\"M\",'RES S curve-disconnect'!N211,'RES S curve-disconnect'!N189))","v":-5329.7595092310639},{"$f":"IF(Control!$B52=\"L\",'RES S curve-disconnect'!O233,IF(Control!$B52=\"M\",'RES S curve-disconnect'!O211,'RES S curve-disconnect'!O189))","v":-4716.1453796030219},{"$f":"IF(Control!$B52=\"L\",'RES S curve-disconnect'!P233,IF(Control!$B52=\"M\",'RES S curve-disconnect'!P211,'RES S curve-disconnect'!P189))","v":-4230.2539950689697},{"$f":"IF(Control!$B52=\"L\",'RES S curve-disconnect'!Q233,IF(Control!$B52=\"M\",'RES S curve-disconnect'!Q211,'RES S curve-disconnect'!Q189))","v":-3492.1609233198669},{"$f":"IF(Control!$B52=\"L\",'RES S curve-disconnect'!R233,IF(Control!$B52=\"M\",'RES S curve-disconnect'!R211,'RES S curve-disconnect'!R189))","v":-3077.250876797807},{"$f":"IF(Control!$B52=\"L\",'RES S curve-disconnect'!S233,IF(Control!$B52=\"M\",'RES S curve-disconnect'!S211,'RES S curve-disconnect'!S189))","v":-2410.3741800244925},{"$f":"IF(Control!$B52=\"L\",'RES S curve-disconnect'!T233,IF(Control!$B52=\"M\",'RES S curve-disconnect'!T211,'RES S curve-disconnect'!T189))","v":-2056.5420854165095},{"$f":"IF(Control!$B52=\"L\",'RES S curve-disconnect'!U233,IF(Control!$B52=\"M\",'RES S curve-disconnect'!U211,'RES S curve-disconnect'!U189))","v":-1647.8296996997001},{"$f":"IF(Control!$B52=\"L\",'RES S curve-disconnect'!V233,IF(Control!$B52=\"M\",'RES S curve-disconnect'!V211,'RES S curve-disconnect'!V189))","v":-1370.1377180132909},{"$f":"IF(Control!$B52=\"L\",'RES S curve-disconnect'!W233,IF(Control!$B52=\"M\",'RES S curve-disconnect'!W211,'RES S curve-disconnect'!W189))","v":-1155.246150084628},{"$f":"IF(Control!$B52=\"L\",'RES S curve-disconnect'!X233,IF(Control!$B52=\"M\",'RES S curve-disconnect'!X211,'RES S curve-disconnect'!X189))","v":-660.91031557477186},{"$f":"IF(Control!$B52=\"L\",'RES S curve-disconnect'!Y233,IF(Control!$B52=\"M\",'RES S curve-disconnect'!Y211,'RES S curve-disconnect'!Y189))","v":-160.09453327796984},{"$f":"IF(Control!$B52=\"L\",'RES S curve-disconnect'!Z233,IF(Control!$B52=\"M\",'RES S curve-disconnect'!Z211,'RES S curve-disconnect'!Z189))","v":176.7693333347284},{"$f":"IF(Control!$B52=\"L\",'RES S curve-disconnect'!AA233,IF(Control!$B52=\"M\",'RES S curve-disconnect'!AA211,'RES S curve-disconnect'!AA189))","v":514.31170135114291},{"$f":"IF(Control!$B52=\"L\",'RES S curve-disconnect'!AB233,IF(Control!$B52=\"M\",'RES S curve-disconnect'!AB211,'RES S curve-disconnect'!AB189))","v":782.66588086295758},{"$f":"IF(Control!$B52=\"L\",'RES S curve-disconnect'!AC233,IF(Control!$B52=\"M\",'RES S curve-disconnect'!AC211,'RES S curve-disconnect'!AC189))","v":1041.3698816145445},{"$f":"IF(Control!$B52=\"L\",'RES S curve-disconnect'!AD233,IF(Control!$B52=\"M\",'RES S curve-disconnect'!AD211,'RES S curve-disconnect'!AD189))","v":1278.115085584079},{"$f":"IF(Control!$B52=\"L\",'RES S curve-disconnect'!AE233,IF(Control!$B52=\"M\",'RES S curve-disconnect'!AE211,'RES S curve-disconnect'!AE189))","v":1528.2362578653469},{"$f":"IF(Control!$B52=\"L\",'RES S curve-disconnect'!AF233,IF(Control!$B52=\"M\",'RES S curve-disconnect'!AF211,'RES S curve-disconnect'!AF189))","v":1853.0045613052052},{"$f":"IF(Control!$B52=\"L\",'RES S curve-disconnect'!AG233,IF(Control!$B52=\"M\",'RES S curve-disconnect'!AG211,'RES S curve-disconnect'!AG189))","v":2082.0379700193148},{"$f":"IF(Control!$B52=\"L\",'RES S curve-disconnect'!AH233,IF(Control!$B52=\"M\",'RES S curve-disconnect'!AH211,'RES S curve-disconnect'!AH189))","v":2402.6237385051131},{"$f":"IF(Control!$B52=\"L\",'RES S curve-disconnect'!AI233,IF(Control!$B52=\"M\",'RES S curve-disconnect'!AI211,'RES S curve-disconnect'!AI189))","v":2692.3560788904697},{"$f":"IF(Control!$B52=\"L\",'RES S curve-disconnect'!AJ233,IF(Control!$B52=\"M\",'RES S curve-disconnect'!AJ211,'RES S curve-disconnect'!AJ189))","v":2953.5094135894747},{"$f":"IF(Control!$B52=\"L\",'RES S curve-disconnect'!AK233,IF(Control!$B52=\"M\",'RES S curve-disconnect'!AK211,'RES S curve-disconnect'!AK189))","v":3230.8174055340837},{"$f":"IF(Control!$B52=\"L\",'RES S curve-disconnect'!AL233,IF(Control!$B52=\"M\",'RES S curve-disconnect'!AL211,'RES S curve-disconnect'!AL189))","v":2266.6143034779648},{"$f":"IF(Control!$B52=\"L\",'RES S curve-disconnect'!AM233,IF(Control!$B52=\"M\",'RES S curve-disconnect'!AM211,'RES S curve-disconnect'!AM189))","v":2142.6672804981363},{"$f":"IF(Control!$B52=\"L\",'RES S curve-disconnect'!AN233,IF(Control!$B52=\"M\",'RES S curve-disconnect'!AN211,'RES S curve-disconnect'!AN189))","v":2406.3211768985684},{"$f":"IF(Control!$B52=\"L\",'RES S curve-disconnect'!AO233,IF(Control!$B52=\"M\",'RES S curve-disconnect'!AO211,'RES S curve-disconnect'!AO189))","v":2727.73818110398},{"$f":"IF(Control!$B52=\"L\",'RES S curve-disconnect'!AP233,IF(Control!$B52=\"M\",'RES S curve-disconnect'!AP211,'RES S curve-disconnect'!AP189))","v":3024.0501198231},{"$f":"IF(Control!$B52=\"L\",'RES S curve-disconnect'!AQ233,IF(Control!$B52=\"M\",'RES S curve-disconnect'!AQ211,'RES S curve-disconnect'!AQ189))","v":3343.6992431307522},{"$f":"IF(Control!$B52=\"L\",'RES S curve-disconnect'!AR233,IF(Control!$B52=\"M\",'RES S curve-disconnect'!AR211,'RES S curve-disconnect'!AR189))","v":3694.3132078533199},{"$f":"IF(Control!$B52=\"L\",'RES S curve-disconnect'!AS233,IF(Control!$B52=\"M\",'RES S curve-disconnect'!AS211,'RES S curve-disconnect'!AS189))","v":4087.6627910274683},{"$f":"IF(Control!$B52=\"L\",'RES S curve-disconnect'!AT233,IF(Control!$B52=\"M\",'RES S curve-disconnect'!AT211,'RES S curve-disconnect'!AT189))","v":4527.2430280220142},{"$f":"IF(Control!$B52=\"L\",'RES S curve-disconnect'!AU233,IF(Control!$B52=\"M\",'RES S curve-disconnect'!AU211,'RES S curve-disconnect'!AU189))","v":5036.2986381177834},{"$f":"IF(Control!$B52=\"L\",'RES S curve-disconnect'!AV233,IF(Control!$B52=\"M\",'RES S curve-disconnect'!AV211,'RES S curve-disconnect'!AV189))","v":5616.4619642401276},{"$f":"IF(Control!$B52=\"L\",'RES S curve-disconnect'!AW233,IF(Control!$B52=\"M\",'RES S curve-disconnect'!AW211,'RES S curve-disconnect'!AW189))","v":6283.0772287721129},{"$f":"IF(Control!$B52=\"L\",'RES S curve-disconnect'!AX233,IF(Control!$B52=\"M\",'RES S curve-disconnect'!AX211,'RES S curve-disconnect'!AX189))","v":7042.2155310067155},{"$f":"IF(Control!$B52=\"L\",'RES S curve-disconnect'!AY233,IF(Control!$B52=\"M\",'RES S curve-disconnect'!AY211,'RES S curve-disconnect'!AY189))","v":7918.4063345971808},{"$f":"IF(Control!$B52=\"L\",'RES S curve-disconnect'!AZ233,IF(Control!$B52=\"M\",'RES S curve-disconnect'!AZ211,'RES S curve-disconnect'!AZ189))","v":8919.2509472395341},{"$f":"IF(Control!$B52=\"L\",'RES S curve-disconnect'!BA233,IF(Control!$B52=\"M\",'RES S curve-disconnect'!BA211,'RES S curve-disconnect'!BA189))","v":10077.795005170638},{"$f":"IF(Control!$B52=\"L\",'RES S curve-disconnect'!BB233,IF(Control!$B52=\"M\",'RES S curve-disconnect'!BB211,'RES S curve-disconnect'!BB189))","v":11430.410310498066},{"$f":"IF(Control!$B52=\"L\",'RES S curve-disconnect'!BC233,IF(Control!$B52=\"M\",'RES S curve-disconnect'!BC211,'RES S curve-disconnect'!BC189))","v":13043.255491497073},{"$f":"IF(Control!$B52=\"L\",'RES S curve-disconnect'!BD233,IF(Control!$B52=\"M\",'RES S curve-disconnect'!BD211,'RES S curve-disconnect'!BD189))","v":14596.759419622715},{"$f":"IF(Control!$B52=\"L\",'RES S curve-disconnect'!BE233,IF(Control!$B52=\"M\",'RES S curve-disconnect'!BE211,'RES S curve-disconnect'!BE189))","v":16015.871923500372},{"$f":"IF(Control!$B52=\"L\",'RES S curve-disconnect'!BF233,IF(Control!$B52=\"M\",'RES S curve-disconnect'!BF211,'RES S curve-disconnect'!BF189))","v":17468.127542578877},{"$f":"IF(Control!$B52=\"L\",'RES S curve-disconnect'!BG233,IF(Control!$B52=\"M\",'RES S curve-disconnect'!BG211,'RES S curve-disconnect'!BG189))","v":19112.658720340773},{"$f":"IF(Control!$B52=\"L\",'RES S curve-disconnect'!BH233,IF(Control!$B52=\"M\",'RES S curve-disconnect'!BH211,'RES S curve-disconnect'!BH189))","v":21064.274380568095},{"$f":"IF(Control!$B52=\"L\",'RES S curve-disconnect'!BI233,IF(Control!$B52=\"M\",'RES S curve-disconnect'!BI211,'RES S curve-disconnect'!BI189))","v":23892.732352384675},{"$f":"IF(Control!$B52=\"L\",'RES S curve-disconnect'!BJ233,IF(Control!$B52=\"M\",'RES S curve-disconnect'!BJ211,'RES S curve-disconnect'!BJ189))","v":28032.414923279648},{"$f":"IF(Control!$B52=\"L\",'RES S curve-disconnect'!BK233,IF(Control!$B52=\"M\",'RES S curve-disconnect'!BK211,'RES S curve-disconnect'!BK189))","v":34137.695513693317},{"$f":"IF(Control!$B52=\"L\",'RES S curve-disconnect'!BL233,IF(Control!$B52=\"M\",'RES S curve-disconnect'!BL211,'RES S curve-disconnect'!BL189))","v":-1257.3575039704251},{"$f":"IF(Control!$B52=\"L\",'RES S curve-disconnect'!BM233,IF(Control!$B52=\"M\",'RES S curve-disconnect'!BM211,'RES S curve-disconnect'!BM189))","v":-1249.5994044336112},{"$f":"IF(Control!$B52=\"L\",'RES S curve-disconnect'!BN233,IF(Control!$B52=\"M\",'RES S curve-disconnect'!BN211,'RES S curve-disconnect'!BN189))","v":-1245.8745915172631},{"$f":"IF(Control!$B52=\"L\",'RES S curve-disconnect'!BO233,IF(Control!$B52=\"M\",'RES S curve-disconnect'!BO211,'RES S curve-disconnect'!BO189))","v":-1234.116374504395},{"$f":"IF(Control!$B52=\"L\",'RES S curve-disconnect'!BP233,IF(Control!$B52=\"M\",'RES S curve-disconnect'!BP211,'RES S curve-disconnect'!BP189))","v":-1226.3913105900233},{"$f":"IF(Control!$B52=\"L\",'RES S curve-disconnect'!BQ233,IF(Control!$B52=\"M\",'RES S curve-disconnect'!BQ211,'RES S curve-disconnect'!BQ189))","v":-1218.6771257205228},{"$f":"IF(Control!$B52=\"L\",'RES S curve-disconnect'!BR233,IF(Control!$B52=\"M\",'RES S curve-disconnect'!BR211,'RES S curve-disconnect'!BR189))","v":-1214.9959620858053},{"$f":"IF(Control!$B52=\"L\",'RES S curve-disconnect'!BS233,IF(Control!$B52=\"M\",'RES S curve-disconnect'!BS211,'RES S curve-disconnect'!BS189))","v":-1203.2811306219205},{"$f":"IF(Control!$B52=\"L\",'RES S curve-disconnect'!BT233,IF(Control!$B52=\"M\",'RES S curve-disconnect'!BT211,'RES S curve-disconnect'!BT189))","v":-1195.5991901664661},{"$f":"IF(Control!$B52=\"L\",'RES S curve-disconnect'!BU233,IF(Control!$B52=\"M\",'RES S curve-disconnect'!BU211,'RES S curve-disconnect'!BU189))","v":-1187.9278682980153},{"$f":"IF(Control!$B52=\"L\",'RES S curve-disconnect'!BV233,IF(Control!$B52=\"M\",'RES S curve-disconnect'!BV211,'RES S curve-disconnect'!BV189))","v":-1184.2893088283713},{"$f":"IF(Control!$B52=\"L\",'RES S curve-disconnect'!BW233,IF(Control!$B52=\"M\",'RES S curve-disconnect'!BW211,'RES S curve-disconnect'!BW189))","v":-1172.6168243052175},{"$f":"IF(Control!$B52=\"L\",'RES S curve-disconnect'!BX233,IF(Control!$B52=\"M\",'RES S curve-disconnect'!BX211,'RES S curve-disconnect'!BX189))","v":-1164.9769751676054},{"$f":"IF(Control!$B52=\"L\",'RES S curve-disconnect'!BY233,IF(Control!$B52=\"M\",'RES S curve-disconnect'!BY211,'RES S curve-disconnect'!BY189))","v":-1157.3474905854441},{"$f":"IF(Control!$B52=\"L\",'RES S curve-disconnect'!BZ233,IF(Control!$B52=\"M\",'RES S curve-disconnect'!BZ211,'RES S curve-disconnect'!BZ189))","v":-1153.7505159518146},{"$f":"IF(Control!$B52=\"L\",'RES S curve-disconnect'!CA233,IF(Control!$B52=\"M\",'RES S curve-disconnect'!CA211,'RES S curve-disconnect'!CA189))","v":-1142.1193653856853},{"$f":"IF(Control!$B52=\"L\",'RES S curve-disconnect'!CB233,IF(Control!$B52=\"M\",'RES S curve-disconnect'!CB211,'RES S curve-disconnect'!CB189))","v":-1134.5206008874707},{"$f":"IF(Control!$B52=\"L\",'RES S curve-disconnect'!CC233,IF(Control!$B52=\"M\",'RES S curve-disconnect'!CC211,'RES S curve-disconnect'!CC189))","v":-1126.9319531785741},{"$f":"IF(Control!$B52=\"L\",'RES S curve-disconnect'!CD233,IF(Control!$B52=\"M\",'RES S curve-disconnect'!CD211,'RES S curve-disconnect'!CD189))","v":-1241.9773000866599}]
["Greater Dandenong (C)",{"$f":"Customers!K147","v":56619},{"$f":"IF(Control!$B53=\"L\",'RES S curve-disconnect'!C234,IF(Control!$B53=\"M\",'RES S curve-disconnect'!C212,'RES S curve-disconnect'!C190))","v":-5270.3280048564593},{"$f":"IF(Control!$B53=\"L\",'RES S curve-disconnect'!D234,IF(Control!$B53=\"M\",'RES S curve-disconnect'!D212,'RES S curve-disconnect'!D190))","v":-5604.1272704206076},{"$f":"IF(Control!$B53=\"L\",'RES S curve-disconnect'!E234,IF(Control!$B53=\"M\",'RES S curve-disconnect'!E212,'RES S curve-disconnect'!E190))","v":-4728.5003934383631},{"$f":"IF(Control!$B53=\"L\",'RES S curve-disconnect'!F234,IF(Control!$B53=\"M\",'RES S curve-disconnect'!F212,'RES S curve-disconnect'!F190))","v":-4629.6848616967836},{"$f":"IF(Control!$B53=\"L\",'RES S curve-disconnect'!G234,IF(Control!$B53=\"M\",'RES S curve-disconnect'!G212,'RES S curve-disconnect'!G190))","v":-5621.3206123776245},{"$f":"IF(Control!$B53=\"L\",'RES S curve-disconnect'!H234,IF(Control!$B53=\"M\",'RES S curve-disconnect'!H212,'RES S curve-disconnect'!H190))","v":-5668.2020341320449},{"$f":"IF(Control!$B53=\"L\",'RES S curve-disconnect'!I234,IF(Control!$B53=\"M\",'RES S curve-disconnect'!I212,'RES S curve-disconnect'!I190))","v":-5388.3870032858695},{"$f":"IF(Control!$B53=\"L\",'RES S curve-disconnect'!J234,IF(Control!$B53=\"M\",'RES S curve-disconnect'!J212,'RES S curve-disconnect'!J190))","v":-5763.8536134908154},{"$f":"IF(Control!$B53=\"L\",'RES S curve-disconnect'!K234,IF(Control!$B53=\"M\",'RES S curve-disconnect'!K212,'RES S curve-disconnect'!K190))","v":-5144.2773670393926},{"$f":"IF(Control!$B53=\"L\",'RES S curve-disconnect'!L234,IF(Control!$B53=\"M\",'RES S curve-disconnect'!L212,'RES S curve-disconnect'!L190))","v":-5352.6924950905022},{"$f":"IF(Control!$B53=\"L\",'RES S curve-disconnect'!M234,IF(Control!$B53=\"M\",'RES S curve-disconnect'!M212,'RES S curve-disconnect'!M190))","v":-5739.7729498253175},{"$f":"IF(Control!$B53=\"L\",'RES S curve-disconnect'!N234,IF(Control!$B53=\"M\",'RES S curve-disconnect'!N212,'RES S curve-disconnect'!N190))","v":-5758.7959213695776},{"$f":"IF(Control!$B53=\"L\",'RES S curve-disconnect'!O234,IF(Control!$B53=\"M\",'RES S curve-disconnect'!O212,'RES S curve-disconnect'!O190))","v":-5377.0631611080653},{"$f":"IF(Control!$B53=\"L\",'RES S curve-disconnect'!P234,IF(Control!$B53=\"M\",'RES S curve-disconnect'!P212,'RES S curve-disconnect'!P190))","v":-5069.9774113540334},{"$f":"IF(Control!$B53=\"L\",'RES S curve-disconnect'!Q234,IF(Control!$B53=\"M\",'RES S curve-disconnect'!Q212,'RES S curve-disconnect'!Q190))","v":-4615.8937042707794},{"$f":"IF(Control!$B53=\"L\",'RES S curve-disconnect'!R234,IF(Control!$B53=\"M\",'RES S curve-disconnect'!R212,'RES S curve-disconnect'!R190))","v":-4350.4127711899991},{"$f":"IF(Control!$B53=\"L\",'RES S curve-disconnect'!S234,IF(Control!$B53=\"M\",'RES S curve-disconnect'!S212,'RES S curve-disconnect'!S190))","v":-3938.7192855081598},{"$f":"IF(Control!$B53=\"L\",'RES S curve-disconnect'!T234,IF(Control!$B53=\"M\",'RES S curve-disconnect'!T212,'RES S curve-disconnect'!T190))","v":-3708.0387884151023},{"$f":"IF(Control!$B53=\"L\",'RES S curve-disconnect'!U234,IF(Control!$B53=\"M\",'RES S curve-disconnect'!U212,'RES S curve-disconnect'!U190))","v":-3446.1387046517793},{"$f":"IF(Control!$B53=\"L\",'RES S curve-disconnect'!V234,IF(Control!$B53=\"M\",'RES S curve-disconnect'!V212,'RES S curve-disconnect'!V190))","v":-3260.9657375425018},{"$f":"IF(Control!$B53=\"L\",'RES S curve-disconnect'!W234,IF(Control!$B53=\"M\",'RES S curve-disconnect'!W212,'RES S curve-disconnect'!W190))","v":-3112.8093530645501},{"$f":"IF(Control!$B53=\"L\",'RES S curve-disconnect'!X234,IF(Control!$B53=\"M\",'RES S curve-disconnect'!X212,'RES S curve-disconnect'!X190))","v":-2801.5065700413043},{"$f":"IF(Control!$B53=\"L\",'RES S curve-disconnect'!Y234,IF(Control!$B53=\"M\",'RES S curve-disconnect'!Y212,'RES S curve-disconnect'!Y190))","v":-2486.6511318813937},{"$f":"IF(Control!$B53=\"L\",'RES S curve-disconnect'!Z234,IF(Control!$B53=\"M\",'RES S curve-disconnect'!Z212,'RES S curve-disconnect'!Z190))","v":-2267.561847457413},{"$f":"IF(Control!$B53=\"L\",'RES S curve-disconnect'!AA234,IF(Control!$B53=\"M\",'RES S curve-disconnect'!AA212,'RES S curve-disconnect'!AA190))","v":-2048.3241981953015},{"$f":"IF(Control!$B53=\"L\",'RES S curve-disconnect'!AB234,IF(Control!$B53=\"M\",'RES S curve-disconnect'!AB212,'RES S curve-disconnect'!AB190))","v":-1869.8130421469223},{"$f":"IF(Control!$B53=\"L\",'RES S curve-disconnect'!AC234,IF(Control!$B53=\"M\",'RES S curve-disconnect'!AC212,'RES S curve-disconnect'!AC190))","v":-1697.1272855310872},{"$f":"IF(Control!$B53=\"L\",'RES S curve-disconnect'!AD234,IF(Control!$B53=\"M\",'RES S curve-disconnect'!AD212,'RES S curve-disconnect'!AD190))","v":-1537.3379327073817},{"$f":"IF(Control!$B53=\"L\",'RES S curve-disconnect'!AE234,IF(Control!$B53=\"M\",'RES S curve-disconnect'!AE212,'RES S curve-disconnect'!AE190))","v":-1370.0768513910859},{"$f":"IF(Control!$B53=\"L\",'RES S curve-disconnect'!AF234,IF(Control!$B53=\"M\",'RES S curve-disconnect'!AF212,'RES S curve-disconnect'!AF190))","v":-1159.3029036695116},{"$f":"IF(Control!$B53=\"L\",'RES S curve-disconnect'!AG234,IF(Control!$B53=\"M\",'RES S curve-disconnect'!AG212,'RES S curve-disconnect'!AG190))","v":-1026.0829368451612},{"$f":"IF(Control!$B53=\"L\",'RES S curve-disconnect'!AH234,IF(Control!$B53=\"M\",'RES S curve-disconnect'!AH212,'RES S curve-disconnect'!AH190))","v":-839.22397634171421},{"$f":"IF(Control!$B53=\"L\",'RES S curve-disconnect'!AI234,IF(Control!$B53=\"M\",'RES S curve-disconnect'!AI212,'RES S curve-disconnect'!AI190))","v":-670.71305143411075},{"$f":"IF(Control!$B53=\"L\",'RES S curve-disconnect'!AJ234,IF(Control!$B53=\"M\",'RES S curve-disconnect'!AJ212,'RES S curve-disconnect'!AJ190))","v":-518.74449701420292},{"$f":"IF(Control!$B53=\"L\",'RES S curve-disconnect'!AK234,IF(Control!$B53=\"M\",'RES S curve-disconnect'!AK212,'RES S curve-disconnect'!AK190))","v":-357.3908591129964},{"$f":"IF(Control!$B53=\"L\",'RES S curve-disconnect'!AL234,IF(Control!$B53=\"M\",'RES S curve-disconnect'!AL212,'RES S curve-disconnect'!AL190))","v":-917.27581704840247},{"$f":"IF(Control!$B53=\"L\",'RES S curve-disconnect'!AM234,IF(Control!$B53=\"M\",'RES S curve-disconnect'!AM212,'RES S curve-disconnect'!AM190))","v":-989.76746290075926},{"$f":"IF(Control!$B53=\"L\",'RES S curve-disconnect'!AN234,IF(Control!$B53=\"M\",'RES S curve-disconnect'!AN212,'RES S curve-disconnect'!AN190))","v":-836.64138975640685},{"$f":"IF(Control!$B53=\"L\",'RES S curve-disconnect'!AO234,IF(Control!$B53=\"M\",'RES S curve-disconnect'!AO212,'RES S curve-disconnect'!AO190))","v":-649.70854163562149},{"$f":"IF(Control!$B53=\"L\",'RES S curve-disconnect'!AP234,IF(Control!$B53=\"M\",'RES S curve-disconnect'!AP212,'RES S curve-disconnect'!AP190))","v":-477.2154301308434},{"$f":"IF(Control!$B53=\"L\",'RES S curve-disconnect'!AQ234,IF(Control!$B53=\"M\",'RES S curve-disconnect'!AQ212,'RES S curve-disconnect'!AQ190))","v":-291.30144921193801},{"$f":"IF(Control!$B53=\"L\",'RES S curve-disconnect'!AR234,IF(Control!$B53=\"M\",'RES S curve-disconnect'!AR212,'RES S curve-disconnect'!AR190))","v":-87.287452098294978},{"$f":"IF(Control!$B53=\"L\",'RES S curve-disconnect'!AS234,IF(Control!$B53=\"M\",'RES S curve-disconnect'!AS212,'RES S curve-disconnect'!AS190))","v":141.61319849418601},{"$f":"IF(Control!$B53=\"L\",'RES S curve-disconnect'!AT234,IF(Control!$B53=\"M\",'RES S curve-disconnect'!AT212,'RES S curve-disconnect'!AT190))","v":397.52089369883527},{"$f":"IF(Control!$B53=\"L\",'RES S curve-disconnect'!AU234,IF(Control!$B53=\"M\",'RES S curve-disconnect'!AU212,'RES S curve-disconnect'!AU190))","v":693.73757915224155},{"$f":"IF(Control!$B53=\"L\",'RES S curve-disconnect'!AV234,IF(Control!$B53=\"M\",'RES S curve-disconnect'!AV212,'RES S curve-disconnect'!AV190))","v":1031.4609116014608},{"$f":"IF(Control!$B53=\"L\",'RES S curve-disconnect'!AW234,IF(Control!$B53=\"M\",'RES S curve-disconnect'!AW212,'RES S curve-disconnect'!AW190))","v":1419.5676342961192},{"$f":"IF(Control!$B53=\"L\",'RES S curve-disconnect'!AX234,IF(Control!$B53=\"M\",'RES S curve-disconnect'!AX212,'RES S curve-disconnect'!AX190))","v":1861.7003150689957},{"$f":"IF(Control!$B53=\"L\",'RES S curve-disconnect'!AY234,IF(Control!$B53=\"M\",'RES S curve-disconnect'!AY212,'RES S curve-disconnect'!AY190))","v":2371.9351818694713},{"$f":"IF(Control!$B53=\"L\",'RES S curve-disconnect'!AZ234,IF(Control!$B53=\"M\",'RES S curve-disconnect'!AZ212,'RES S curve-disconnect'!AZ190))","v":2954.9706779074891},{"$f":"IF(Control!$B53=\"L\",'RES S curve-disconnect'!BA234,IF(Control!$B53=\"M\",'RES S curve-disconnect'!BA212,'RES S curve-disconnect'!BA190))","v":3630.0152678705936},{"$f":"IF(Control!$B53=\"L\",'RES S curve-disconnect'!BB234,IF(Control!$B53=\"M\",'RES S curve-disconnect'!BB212,'RES S curve-disconnect'!BB190))","v":4418.3944549670532},{"$f":"IF(Control!$B53=\"L\",'RES S curve-disconnect'!BC234,IF(Control!$B53=\"M\",'RES S curve-disconnect'!BC212,'RES S curve-disconnect'!BC190))","v":5358.4909582156588},{"$f":"IF(Control!$B53=\"L\",'RES S curve-disconnect'!BD234,IF(Control!$B53=\"M\",'RES S curve-disconnect'!BD212,'RES S curve-disconnect'!BD190))","v":6264.674822821351},{"$f":"IF(Control!$B53=\"L\",'RES S curve-disconnect'!BE234,IF(Control!$B53=\"M\",'RES S curve-disconnect'!BE212,'RES S curve-disconnect'!BE190))","v":7092.6945657348269},{"$f":"IF(Control!$B53=\"L\",'RES S curve-disconnect'!BF234,IF(Control!$B53=\"M\",'RES S curve-disconnect'!BF212,'RES S curve-disconnect'!BF190))","v":7939.9846080476163},{"$f":"IF(Control!$B53=\"L\",'RES S curve-disconnect'!BG234,IF(Control!$B53=\"M\",'RES S curve-disconnect'!BG212,'RES S curve-disconnect'!BG190))","v":8899.1945635748871},{"$f":"IF(Control!$B53=\"L\",'RES S curve-disconnect'!BH234,IF(Control!$B53=\"M\",'RES S curve-disconnect'!BH212,'RES S curve-disconnect'!BH190))","v":10037.664854636372},{"$f":"IF(Control!$B53=\"L\",'RES S curve-disconnect'!BI234,IF(Control!$B53=\"M\",'RES S curve-disconnect'!BI212,'RES S curve-disconnect'!BI190))","v":11687.466233298192},{"$f":"IF(Control!$B53=\"L\",'RES S curve-disconnect'!BJ234,IF(Control!$B53=\"M\",'RES S curve-disconnect'!BJ212,'RES S curve-disconnect'!BJ190))","v":14102.854422091626},{"$f":"IF(Control!$B53=\"L\",'RES S curve-disconnect'!BK234,IF(Control!$B53=\"M\",'RES S curve-disconnect'!BK212,'RES S curve-disconnect'!BK190))","v":17666.251893235236},{"$f":"IF(Control!$B53=\"L\",'RES S curve-disconnect'!BL234,IF(Control!$B53=\"M\",'RES S curve-disconnect'!BL212,'RES S curve-disconnect'!BL190))","v":-2963.7578487363085},{"$f":"IF(Control!$B53=\"L\",'RES S curve-disconnect'!BM234,IF(Control!$B53=\"M\",'RES S curve-disconnect'!BM212,'RES S curve-disconnect'!BM190))","v":-2959.2106084956422},{"$f":"IF(Control!$B53=\"L\",'RES S curve-disconnect'!BN234,IF(Control!$B53=\"M\",'RES S curve-disconnect'!BN212,'RES S curve-disconnect'!BN190))","v":-2956.9328294906782},{"$f":"IF(Control!$B53=\"L\",'RES S curve-disconnect'!BO234,IF(Control!$B53=\"M\",'RES S curve-disconnect'!BO212,'RES S curve-disconnect'!BO190))","v":-2950.1358601478423},{"$f":"IF(Control!$B53=\"L\",'RES S curve-disconnect'!BP234,IF(Control!$B53=\"M\",'RES S curve-disconnect'!BP212,'RES S curve-disconnect'!BP190))","v":-2945.6082723573654},{"$f":"IF(Control!$B53=\"L\",'RES S curve-disconnect'!BQ234,IF(Control!$B53=\"M\",'RES S curve-disconnect'!BQ212,'RES S curve-disconnect'!BQ190))","v":-2941.0871561143058},{"$f":"IF(Control!$B53=\"L\",'RES S curve-disconnect'!BR234,IF(Control!$B53=\"M\",'RES S curve-disconnect'!BR212,'RES S curve-disconnect'!BR190))","v":-2938.8353427314196},{"$f":"IF(Control!$B53=\"L\",'RES S curve-disconnect'!BS234,IF(Control!$B53=\"M\",'RES S curve-disconnect'!BS212,'RES S curve-disconnect'!BS190))","v":-2932.0641816231646},{"$f":"IF(Control!$B53=\"L\",'RES S curve-disconnect'!BT234,IF(Control!$B53=\"M\",'RES S curve-disconnect'!BT212,'RES S curve-disconnect'!BT190))","v":-2927.5622456615538},{"$f":"IF(Control!$B53=\"L\",'RES S curve-disconnect'!BU234,IF(Control!$B53=\"M\",'RES S curve-disconnect'!BU212,'RES S curve-disconnect'!BU190))","v":-2923.0666258172159},{"$f":"IF(Control!$B53=\"L\",'RES S curve-disconnect'!BV234,IF(Control!$B53=\"M\",'RES S curve-disconnect'!BV212,'RES S curve-disconnect'!BV190))","v":-2920.8401543723112},{"$f":"IF(Control!$B53=\"L\",'RES S curve-disconnect'!BW234,IF(Control!$B53=\"M\",'RES S curve-disconnect'!BW212,'RES S curve-disconnect'!BW190))","v":-2914.0941817045677},{"$f":"IF(Control!$B53=\"L\",'RES S curve-disconnect'!BX234,IF(Control!$B53=\"M\",'RES S curve-disconnect'!BX212,'RES S curve-disconnect'!BX190))","v":-2909.617281643179},{"$f":"IF(Control!$B53=\"L\",'RES S curve-disconnect'!BY234,IF(Control!$B53=\"M\",'RES S curve-disconnect'!BY212,'RES S curve-disconnect'!BY190))","v":-2905.1465461099006},{"$f":"IF(Control!$B53=\"L\",'RES S curve-disconnect'!BZ234,IF(Control!$B53=\"M\",'RES S curve-disconnect'!BZ212,'RES S curve-disconnect'!BZ190))","v":-2902.9448083320076},{"$f":"IF(Control!$B53=\"L\",'RES S curve-disconnect'!CA234,IF(Control!$B53=\"M\",'RES S curve-disconnect'!CA212,'RES S curve-disconnect'!CA190))","v":-2896.2234196263635},{"$f":"IF(Control!$B53=\"L\",'RES S curve-disconnect'!CB234,IF(Control!$B53=\"M\",'RES S curve-disconnect'!CB212,'RES S curve-disconnect'!CB190))","v":-2891.7709547553604},{"$f":"IF(Control!$B53=\"L\",'RES S curve-disconnect'!CC234,IF(Control!$B53=\"M\",'RES S curve-disconnect'!CC212,'RES S curve-disconnect'!CC190))","v":-2887.3245065680539},{"$f":"IF(Control!$B53=\"L\",'RES S curve-disconnect'!CD234,IF(Control!$B53=\"M\",'RES S curve-disconnect'!CD212,'RES S curve-disconnect'!CD190))","v":-2954.5415199599993}]
["Kingston (C)",{"$f":"Customers!K148","v":53752},{"$f":"IF(Control!$B54=\"L\",'RES S curve-disconnect'!C235,IF(Control!$B54=\"M\",'RES S curve-disconnect'!C213,'RES S curve-disconnect'!C191))","v":-4575.2976758428085},{"$f":"IF(Control!$B54=\"L\",'RES S curve-disconnect'!D235,IF(Control!$B54=\"M\",'RES S curve-disconnect'!D213,'RES S curve-disconnect'!D191))","v":-5051.498441363954},{"$f":"IF(Control!$B54=\"L\",'RES S curve-disconnect'!E235,IF(Control!$B54=\"M\",'RES S curve-disconnect'!E213,'RES S curve-disconnect'!E191))","v":-4416.4090174812136},{"$f":"IF(Control!$B54=\"L\",'RES S curve-disconnect'!F235,IF(Control!$B54=\"M\",'RES S curve-disconnect'!F213,'RES S curve-disconnect'!F191))","v":-4276.5374758152529},{"$f":"IF(Control!$B54=\"L\",'RES S curve-disconnect'!G235,IF(Control!$B54=\"M\",'RES S curve-disconnect'!G213,'RES S curve-disconnect'!G191))","v":-5316.7414724950322},{"$f":"IF(Control!$B54=\"L\",'RES S curve-disconnect'!H235,IF(Control!$B54=\"M\",'RES S curve-disconnect'!H213,'RES S curve-disconnect'!H191))","v":-5356.4349851805782},{"$f":"IF(Control!$B54=\"L\",'RES S curve-disconnect'!I235,IF(Control!$B54=\"M\",'RES S curve-disconnect'!I213,'RES S curve-disconnect'!I191))","v":-4959.8154037132717},{"$f":"IF(Control!$B54=\"L\",'RES S curve-disconnect'!J235,IF(Control!$B54=\"M\",'RES S curve-disconnect'!J213,'RES S curve-disconnect'!J191))","v":-5305.6501601593091},{"$f":"IF(Control!$B54=\"L\",'RES S curve-disconnect'!K235,IF(Control!$B54=\"M\",'RES S curve-disconnect'!K213,'RES S curve-disconnect'!K191))","v":-4551.0088578838795},{"$f":"IF(Control!$B54=\"L\",'RES S curve-disconnect'!L235,IF(Control!$B54=\"M\",'RES S curve-disconnect'!L213,'RES S curve-disconnect'!L191))","v":-4872.902881879153},{"$f":"IF(Control!$B54=\"L\",'RES S curve-disconnect'!M235,IF(Control!$B54=\"M\",'RES S curve-disconnect'!M213,'RES S curve-disconnect'!M191))","v":-5443.5679126211735},{"$f":"IF(Control!$B54=\"L\",'RES S curve-disconnect'!N235,IF(Control!$B54=\"M\",'RES S curve-disconnect'!N213,'RES S curve-disconnect'!N191))","v":-5494.7177827590067},{"$f":"IF(Control!$B54=\"L\",'RES S curve-disconnect'!O235,IF(Control!$B54=\"M\",'RES S curve-disconnect'!O213,'RES S curve-disconnect'!O191))","v":-4976.4639263179361},{"$f":"IF(Control!$B54=\"L\",'RES S curve-disconnect'!P235,IF(Control!$B54=\"M\",'RES S curve-disconnect'!P213,'RES S curve-disconnect'!P191))","v":-4564.8169575928514},{"$f":"IF(Control!$B54=\"L\",'RES S curve-disconnect'!Q235,IF(Control!$B54=\"M\",'RES S curve-disconnect'!Q213,'RES S curve-disconnect'!Q191))","v":-3944.4907255775074},{"$f":"IF(Control!$B54=\"L\",'RES S curve-disconnect'!R235,IF(Control!$B54=\"M\",'RES S curve-disconnect'!R213,'RES S curve-disconnect'!R191))","v":-3591.7323303834337},{"$f":"IF(Control!$B54=\"L\",'RES S curve-disconnect'!S235,IF(Control!$B54=\"M\",'RES S curve-disconnect'!S213,'RES S curve-disconnect'!S191))","v":-3030.5763773877097},{"$f":"IF(Control!$B54=\"L\",'RES S curve-disconnect'!T235,IF(Control!$B54=\"M\",'RES S curve-disconnect'!T213,'RES S curve-disconnect'!T191))","v":-2728.3038954783192},{"$f":"IF(Control!$B54=\"L\",'RES S curve-disconnect'!U235,IF(Control!$B54=\"M\",'RES S curve-disconnect'!U213,'RES S curve-disconnect'!U191))","v":-2380.4705968087237},{"$f":"IF(Control!$B54=\"L\",'RES S curve-disconnect'!V235,IF(Control!$B54=\"M\",'RES S curve-disconnect'!V213,'RES S curve-disconnect'!V191))","v":-2140.7551372949856},{"$f":"IF(Control!$B54=\"L\",'RES S curve-disconnect'!W235,IF(Control!$B54=\"M\",'RES S curve-disconnect'!W213,'RES S curve-disconnect'!W191))","v":-1953.6002790612285},{"$f":"IF(Control!$B54=\"L\",'RES S curve-disconnect'!X235,IF(Control!$B54=\"M\",'RES S curve-disconnect'!X213,'RES S curve-disconnect'!X191))","v":-1535.6784181034027},{"$f":"IF(Control!$B54=\"L\",'RES S curve-disconnect'!Y235,IF(Control!$B54=\"M\",'RES S curve-disconnect'!Y213,'RES S curve-disconnect'!Y191))","v":-1112.4018044012735},{"$f":"IF(Control!$B54=\"L\",'RES S curve-disconnect'!Z235,IF(Control!$B54=\"M\",'RES S curve-disconnect'!Z213,'RES S curve-disconnect'!Z191))","v":-824.58777732690999},{"$f":"IF(Control!$B54=\"L\",'RES S curve-disconnect'!AA235,IF(Control!$B54=\"M\",'RES S curve-disconnect'!AA213,'RES S curve-disconnect'!AA191))","v":-536.21318562253975},{"$f":"IF(Control!$B54=\"L\",'RES S curve-disconnect'!AB235,IF(Control!$B54=\"M\",'RES S curve-disconnect'!AB213,'RES S curve-disconnect'!AB191))","v":-305.50341106300885},{"$f":"IF(Control!$B54=\"L\",'RES S curve-disconnect'!AC235,IF(Control!$B54=\"M\",'RES S curve-disconnect'!AC213,'RES S curve-disconnect'!AC191))","v":-82.799697487754827},{"$f":"IF(Control!$B54=\"L\",'RES S curve-disconnect'!AD235,IF(Control!$B54=\"M\",'RES S curve-disconnect'!AD213,'RES S curve-disconnect'!AD191))","v":121.70659071903469},{"$f":"IF(Control!$B54=\"L\",'RES S curve-disconnect'!AE235,IF(Control!$B54=\"M\",'RES S curve-disconnect'!AE213,'RES S curve-disconnect'!AE191))","v":337.26259545995663},{"$f":"IF(Control!$B54=\"L\",'RES S curve-disconnect'!AF235,IF(Control!$B54=\"M\",'RES S curve-disconnect'!AF213,'RES S curve-disconnect'!AF191))","v":614.41528723686656},{"$f":"IF(Control!$B54=\"L\",'RES S curve-disconnect'!AG235,IF(Control!$B54=\"M\",'RES S curve-disconnect'!AG213,'RES S curve-disconnect'!AG191))","v":803.76655506885686},{"$f":"IF(Control!$B54=\"L\",'RES S curve-disconnect'!AH235,IF(Control!$B54=\"M\",'RES S curve-disconnect'!AH213,'RES S curve-disconnect'!AH191))","v":1068.6989155550664},{"$f":"IF(Control!$B54=\"L\",'RES S curve-disconnect'!AI235,IF(Control!$B54=\"M\",'RES S curve-disconnect'!AI213,'RES S curve-disconnect'!AI191))","v":1308.2171531958008},{"$f":"IF(Control!$B54=\"L\",'RES S curve-disconnect'!AJ235,IF(Control!$B54=\"M\",'RES S curve-disconnect'!AJ213,'RES S curve-disconnect'!AJ191))","v":1524.0986102633387},{"$f":"IF(Control!$B54=\"L\",'RES S curve-disconnect'!AK235,IF(Control!$B54=\"M\",'RES S curve-disconnect'!AK213,'RES S curve-disconnect'!AK191))","v":1753.3330582700285},{"$f":"IF(Control!$B54=\"L\",'RES S curve-disconnect'!AL235,IF(Control!$B54=\"M\",'RES S curve-disconnect'!AL213,'RES S curve-disconnect'!AL191))","v":956.32810235005309},{"$f":"IF(Control!$B54=\"L\",'RES S curve-disconnect'!AM235,IF(Control!$B54=\"M\",'RES S curve-disconnect'!AM213,'RES S curve-disconnect'!AM191))","v":854.0396174315581},{"$f":"IF(Control!$B54=\"L\",'RES S curve-disconnect'!AN235,IF(Control!$B54=\"M\",'RES S curve-disconnect'!AN213,'RES S curve-disconnect'!AN191))","v":1072.0487749336557},{"$f":"IF(Control!$B54=\"L\",'RES S curve-disconnect'!AO235,IF(Control!$B54=\"M\",'RES S curve-disconnect'!AO213,'RES S curve-disconnect'!AO191))","v":1337.7516998063854},{"$f":"IF(Control!$B54=\"L\",'RES S curve-disconnect'!AP235,IF(Control!$B54=\"M\",'RES S curve-disconnect'!AP213,'RES S curve-disconnect'!AP191))","v":1582.6715210625068},{"$f":"IF(Control!$B54=\"L\",'RES S curve-disconnect'!AQ235,IF(Control!$B54=\"M\",'RES S curve-disconnect'!AQ213,'RES S curve-disconnect'!AQ191))","v":1846.910471676219},{"$f":"IF(Control!$B54=\"L\",'RES S curve-disconnect'!AR235,IF(Control!$B54=\"M\",'RES S curve-disconnect'!AR213,'RES S curve-disconnect'!AR191))","v":2136.7210315811453},{"$f":"IF(Control!$B54=\"L\",'RES S curve-disconnect'!AS235,IF(Control!$B54=\"M\",'RES S curve-disconnect'!AS213,'RES S curve-disconnect'!AS191))","v":2461.8438896738712},{"$f":"IF(Control!$B54=\"L\",'RES S curve-disconnect'!AT235,IF(Control!$B54=\"M\",'RES S curve-disconnect'!AT213,'RES S curve-disconnect'!AT191))","v":2825.1489777313595},{"$f":"IF(Control!$B54=\"L\",'RES S curve-disconnect'!AU235,IF(Control!$B54=\"M\",'RES S curve-disconnect'!AU213,'RES S curve-disconnect'!AU191))","v":3245.8932740746295},{"$f":"IF(Control!$B54=\"L\",'RES S curve-disconnect'!AV235,IF(Control!$B54=\"M\",'RES S curve-disconnect'!AV213,'RES S curve-disconnect'!AV191))","v":3725.3732060092052},{"$f":"IF(Control!$B54=\"L\",'RES S curve-disconnect'!AW235,IF(Control!$B54=\"M\",'RES S curve-disconnect'!AW213,'RES S curve-disconnect'!AW191))","v":4276.2802860291213},{"$f":"IF(Control!$B54=\"L\",'RES S curve-disconnect'!AX235,IF(Control!$B54=\"M\",'RES S curve-disconnect'!AX213,'RES S curve-disconnect'!AX191))","v":4903.6083938310076},{"$f":"IF(Control!$B54=\"L\",'RES S curve-disconnect'!AY235,IF(Control!$B54=\"M\",'RES S curve-disconnect'!AY213,'RES S curve-disconnect'!AY191))","v":5627.6705614012326},{"$f":"IF(Control!$B54=\"L\",'RES S curve-disconnect'!AZ235,IF(Control!$B54=\"M\",'RES S curve-disconnect'!AZ213,'RES S curve-disconnect'!AZ191))","v":6454.6901506273516},{"$f":"IF(Control!$B54=\"L\",'RES S curve-disconnect'!BA235,IF(Control!$B54=\"M\",'RES S curve-disconnect'!BA213,'RES S curve-disconnect'!BA191))","v":7411.9804977672775},{"$f":"IF(Control!$B54=\"L\",'RES S curve-disconnect'!BB235,IF(Control!$B54=\"M\",'RES S curve-disconnect'!BB213,'RES S curve-disconnect'!BB191))","v":8529.5651881397444},{"$f":"IF(Control!$B54=\"L\",'RES S curve-disconnect'!BC235,IF(Control!$B54=\"M\",'RES S curve-disconnect'!BC213,'RES S curve-disconnect'!BC191))","v":9862.1421194311442},{"$f":"IF(Control!$B54=\"L\",'RES S curve-disconnect'!BD235,IF(Control!$B54=\"M\",'RES S curve-disconnect'!BD213,'RES S curve-disconnect'!BD191))","v":11145.547953960126},{"$f":"IF(Control!$B54=\"L\",'RES S curve-disconnect'!BE235,IF(Control!$B54=\"M\",'RES S curve-disconnect'!BE213,'RES S curve-disconnect'!BE191))","v":12317.884150221984},{"$f":"IF(Control!$B54=\"L\",'RES S curve-disconnect'!BF235,IF(Control!$B54=\"M\",'RES S curve-disconnect'!BF213,'RES S curve-disconnect'!BF191))","v":13517.612744955299},{"$f":"IF(Control!$B54=\"L\",'RES S curve-disconnect'!BG235,IF(Control!$B54=\"M\",'RES S curve-disconnect'!BG213,'RES S curve-disconnect'!BG191))","v":14876.230148185139},{"$f":"IF(Control!$B54=\"L\",'RES S curve-disconnect'!BH235,IF(Control!$B54=\"M\",'RES S curve-disconnect'!BH213,'RES S curve-disconnect'!BH191))","v":16488.50145116583},{"$f":"IF(Control!$B54=\"L\",'RES S curve-disconnect'!BI235,IF(Control!$B54=\"M\",'RES S curve-disconnect'!BI213,'RES S curve-disconnect'!BI191))","v":18825.162612171367},{"$f":"IF(Control!$B54=\"L\",'RES S curve-disconnect'!BJ235,IF(Control!$B54=\"M\",'RES S curve-disconnect'!BJ213,'RES S curve-disconnect'!BJ191))","v":22244.871632684724},{"$f":"IF(Control!$B54=\"L\",'RES S curve-disconnect'!BK235,IF(Control!$B54=\"M\",'RES S curve-disconnect'!BK213,'RES S curve-disconnect'!BK191))","v":27288.054623262648},{"$f":"IF(Control!$B54=\"L\",'RES S curve-disconnect'!BL235,IF(Control!$B54=\"M\",'RES S curve-disconnect'!BL213,'RES S curve-disconnect'!BL191))","v":-1955.2451607232074},{"$f":"IF(Control!$B54=\"L\",'RES S curve-disconnect'!BM235,IF(Control!$B54=\"M\",'RES S curve-disconnect'!BM213,'RES S curve-disconnect'!BM191))","v":-1948.7882539437064},{"$f":"IF(Control!$B54=\"L\",'RES S curve-disconnect'!BN235,IF(Control!$B54=\"M\",'RES S curve-disconnect'!BN213,'RES S curve-disconnect'!BN191))","v":-1945.6812780212076},{"$f":"IF(Control!$B54=\"L\",'RES S curve-disconnect'!BO235,IF(Control!$B54=\"M\",'RES S curve-disconnect'!BO213,'RES S curve-disconnect'!BO191))","v":-1935.902915656641},{"$f":"IF(Control!$B54=\"L\",'RES S curve-disconnect'!BP235,IF(Control!$B54=\"M\",'RES S curve-disconnect'!BP213,'RES S curve-disconnect'!BP191))","v":-1929.4743690148196},{"$f":"IF(Control!$B54=\"L\",'RES S curve-disconnect'!BQ235,IF(Control!$B54=\"M\",'RES S curve-disconnect'!BQ213,'RES S curve-disconnect'!BQ191))","v":-1923.0551612165643},{"$f":"IF(Control!$B54=\"L\",'RES S curve-disconnect'!BR235,IF(Control!$B54=\"M\",'RES S curve-disconnect'!BR213,'RES S curve-disconnect'!BR191))","v":-1919.9856554397948},{"$f":"IF(Control!$B54=\"L\",'RES S curve-disconnect'!BS235,IF(Control!$B54=\"M\",'RES S curve-disconnect'!BS213,'RES S curve-disconnect'!BS191))","v":-1910.2445358139207},{"$f":"IF(Control!$B54=\"L\",'RES S curve-disconnect'!BT235,IF(Control!$B54=\"M\",'RES S curve-disconnect'!BT213,'RES S curve-disconnect'!BT191))","v":-1903.8530059231937},{"$f":"IF(Control!$B54=\"L\",'RES S curve-disconnect'!BU235,IF(Control!$B54=\"M\",'RES S curve-disconnect'!BU213,'RES S curve-disconnect'!BU191))","v":-1897.4705902988921},{"$f":"IF(Control!$B54=\"L\",'RES S curve-disconnect'!BV235,IF(Control!$B54=\"M\",'RES S curve-disconnect'!BV213,'RES S curve-disconnect'!BV191))","v":-1894.4376535204749},{"$f":"IF(Control!$B54=\"L\",'RES S curve-disconnect'!BW235,IF(Control!$B54=\"M\",'RES S curve-disconnect'!BW213,'RES S curve-disconnect'!BW191))","v":-1884.7328811100188},{"$f":"IF(Control!$B54=\"L\",'RES S curve-disconnect'!BX235,IF(Control!$B54=\"M\",'RES S curve-disconnect'!BX213,'RES S curve-disconnect'!BX191))","v":-1878.377478035638},{"$f":"IF(Control!$B54=\"L\",'RES S curve-disconnect'!BY235,IF(Control!$B54=\"M\",'RES S curve-disconnect'!BY213,'RES S curve-disconnect'!BY191))","v":-1872.0309702037198},{"$f":"IF(Control!$B54=\"L\",'RES S curve-disconnect'!BZ235,IF(Control!$B54=\"M\",'RES S curve-disconnect'!BZ213,'RES S curve-disconnect'!BZ191))","v":-1869.0337235601291},{"$f":"IF(Control!$B54=\"L\",'RES S curve-disconnect'!CA235,IF(Control!$B54=\"M\",'RES S curve-disconnect'!CA213,'RES S curve-disconnect'!CA191))","v":-1859.3644249847116},{"$f":"IF(Control!$B54=\"L\",'RES S curve-disconnect'!CB235,IF(Control!$B54=\"M\",'RES S curve-disconnect'!CB213,'RES S curve-disconnect'!CB191))","v":-1853.0442807947584},{"$f":"IF(Control!$B54=\"L\",'RES S curve-disconnect'!CC235,IF(Control!$B54=\"M\",'RES S curve-disconnect'!CC213,'RES S curve-disconnect'!CC191))","v":-1846.7328182373046},{"$f":"IF(Control!$B54=\"L\",'RES S curve-disconnect'!CD235,IF(Control!$B54=\"M\",'RES S curve-disconnect'!CD213,'RES S curve-disconnect'!CD191))","v":-1941.7022806434918}]
["Knox (C)",{"$f":"Customers!K149","v":63020},{"$f":"IF(Control!$B55=\"L\",'RES S curve-disconnect'!C236,IF(Control!$B55=\"M\",'RES S curve-disconnect'!C214,'RES S curve-disconnect'!C192))","v":-5030.4020457912538},{"$f":"IF(Control!$B55=\"L\",'RES S curve-disconnect'!D236,IF(Control!$B55=\"M\",'RES S curve-disconnect'!D214,'RES S curve-disconnect'!D192))","v":-5568.9107102417493},{"$f":"IF(Control!$B55=\"L\",'RES S curve-disconnect'!E236,IF(Control!$B55=\"M\",'RES S curve-disconnect'!E214,'RES S curve-disconnect'!E192))","v":-4808.6609598792165},{"$f":"IF(Control!$B55=\"L\",'RES S curve-disconnect'!F236,IF(Control!$B55=\"M\",'RES S curve-disconnect'!F214,'RES S curve-disconnect'!F192))","v":-4646.2061040031895},{"$f":"IF(Control!$B55=\"L\",'RES S curve-disconnect'!G236,IF(Control!$B55=\"M\",'RES S curve-disconnect'!G214,'RES S curve-disconnect'!G192))","v":-5945.1961625718031},{"$f":"IF(Control!$B55=\"L\",'RES S curve-disconnect'!H236,IF(Control!$B55=\"M\",'RES S curve-disconnect'!H214,'RES S curve-disconnect'!H192))","v":-5976.5152857501726},{"$f":"IF(Control!$B55=\"L\",'RES S curve-disconnect'!I236,IF(Control!$B55=\"M\",'RES S curve-disconnect'!I214,'RES S curve-disconnect'!I192))","v":-5517.3125346997767},{"$f":"IF(Control!$B55=\"L\",'RES S curve-disconnect'!J236,IF(Control!$B55=\"M\",'RES S curve-disconnect'!J214,'RES S curve-disconnect'!J192))","v":-5855.7132111627325},{"$f":"IF(Control!$B55=\"L\",'RES S curve-disconnect'!K236,IF(Control!$B55=\"M\",'RES S curve-disconnect'!K214,'RES S curve-disconnect'!K192))","v":-4994.5814114117366},{"$f":"IF(Control!$B55=\"L\",'RES S curve-disconnect'!L236,IF(Control!$B55=\"M\",'RES S curve-disconnect'!L214,'RES S curve-disconnect'!L192))","v":-5360.9627988512639},{"$f":"IF(Control!$B55=\"L\",'RES S curve-disconnect'!M236,IF(Control!$B55=\"M\",'RES S curve-disconnect'!M214,'RES S curve-disconnect'!M192))","v":-6033.683172052959},{"$f":"IF(Control!$B55=\"L\",'RES S curve-disconnect'!N236,IF(Control!$B55=\"M\",'RES S curve-disconnect'!N214,'RES S curve-disconnect'!N192))","v":-6095.2245109229252},{"$f":"IF(Control!$B55=\"L\",'RES S curve-disconnect'!O236,IF(Control!$B55=\"M\",'RES S curve-disconnect'!O214,'RES S curve-disconnect'!O192))","v":-5502.3678660821824},{"$f":"IF(Control!$B55=\"L\",'RES S curve-disconnect'!P236,IF(Control!$B55=\"M\",'RES S curve-disconnect'!P214,'RES S curve-disconnect'!P192))","v":-5029.1533775318057},{"$f":"IF(Control!$B55=\"L\",'RES S curve-disconnect'!Q236,IF(Control!$B55=\"M\",'RES S curve-disconnect'!Q214,'RES S curve-disconnect'!Q192))","v":-4315.0557786238296},{"$f":"IF(Control!$B55=\"L\",'RES S curve-disconnect'!R236,IF(Control!$B55=\"M\",'RES S curve-disconnect'!R214,'RES S curve-disconnect'!R192))","v":-3909.3910826936362},{"$f":"IF(Control!$B55=\"L\",'RES S curve-disconnect'!S236,IF(Control!$B55=\"M\",'RES S curve-disconnect'!S214,'RES S curve-disconnect'!S192))","v":-3266.4456328615797},{"$f":"IF(Control!$B55=\"L\",'RES S curve-disconnect'!T236,IF(Control!$B55=\"M\",'RES S curve-disconnect'!T214,'RES S curve-disconnect'!T192))","v":-2913.7377000403721},{"$f":"IF(Control!$B55=\"L\",'RES S curve-disconnect'!U236,IF(Control!$B55=\"M\",'RES S curve-disconnect'!U214,'RES S curve-disconnect'!U192))","v":-2513.0056959938356},{"$f":"IF(Control!$B55=\"L\",'RES S curve-disconnect'!V236,IF(Control!$B55=\"M\",'RES S curve-disconnect'!V214,'RES S curve-disconnect'!V192))","v":-2239.5990351287292},{"$f":"IF(Control!$B55=\"L\",'RES S curve-disconnect'!W236,IF(Control!$B55=\"M\",'RES S curve-disconnect'!W214,'RES S curve-disconnect'!W192))","v":-2026.1217386795911},{"$f":"IF(Control!$B55=\"L\",'RES S curve-disconnect'!X236,IF(Control!$B55=\"M\",'RES S curve-disconnect'!X214,'RES S curve-disconnect'!X192))","v":-1542.9406740549553},{"$f":"IF(Control!$B55=\"L\",'RES S curve-disconnect'!Y236,IF(Control!$B55=\"M\",'RES S curve-disconnect'!Y214,'RES S curve-disconnect'!Y192))","v":-1054.3618897714025},{"$f":"IF(Control!$B55=\"L\",'RES S curve-disconnect'!Z236,IF(Control!$B55=\"M\",'RES S curve-disconnect'!Z214,'RES S curve-disconnect'!Z192))","v":-723.35058919770245},{"$f":"IF(Control!$B55=\"L\",'RES S curve-disconnect'!AA236,IF(Control!$B55=\"M\",'RES S curve-disconnect'!AA214,'RES S curve-disconnect'!AA192))","v":-392.62268063138845},{"$f":"IF(Control!$B55=\"L\",'RES S curve-disconnect'!AB236,IF(Control!$B55=\"M\",'RES S curve-disconnect'!AB214,'RES S curve-disconnect'!AB192))","v":-128.39200706213029},{"$f":"IF(Control!$B55=\"L\",'RES S curve-disconnect'!AC236,IF(Control!$B55=\"M\",'RES S curve-disconnect'!AC214,'RES S curve-disconnect'!AC192))","v":126.02602905305093},{"$f":"IF(Control!$B55=\"L\",'RES S curve-disconnect'!AD236,IF(Control!$B55=\"M\",'RES S curve-disconnect'!AD214,'RES S curve-disconnect'!AD192))","v":359.49496209264237},{"$f":"IF(Control!$B55=\"L\",'RES S curve-disconnect'!AE236,IF(Control!$B55=\"M\",'RES S curve-disconnect'!AE214,'RES S curve-disconnect'!AE192))","v":604.392160570898},{"$f":"IF(Control!$B55=\"L\",'RES S curve-disconnect'!AF236,IF(Control!$B55=\"M\",'RES S curve-disconnect'!AF214,'RES S curve-disconnect'!AF192))","v":921.41389273770687},{"$f":"IF(Control!$B55=\"L\",'RES S curve-disconnect'!AG236,IF(Control!$B55=\"M\",'RES S curve-disconnect'!AG214,'RES S curve-disconnect'!AG192))","v":1138.6475408853757},{"$f":"IF(Control!$B55=\"L\",'RES S curve-disconnect'!AH236,IF(Control!$B55=\"M\",'RES S curve-disconnect'!AH214,'RES S curve-disconnect'!AH192))","v":1445.218800112712},{"$f":"IF(Control!$B55=\"L\",'RES S curve-disconnect'!AI236,IF(Control!$B55=\"M\",'RES S curve-disconnect'!AI214,'RES S curve-disconnect'!AI192))","v":1719.991244089317},{"$f":"IF(Control!$B55=\"L\",'RES S curve-disconnect'!AJ236,IF(Control!$B55=\"M\",'RES S curve-disconnect'!AJ214,'RES S curve-disconnect'!AJ192))","v":1968.1359202588039},{"$f":"IF(Control!$B55=\"L\",'RES S curve-disconnect'!AK236,IF(Control!$B55=\"M\",'RES S curve-disconnect'!AK214,'RES S curve-disconnect'!AK192))","v":2231.5488351428698},{"$f":"IF(Control!$B55=\"L\",'RES S curve-disconnect'!AL236,IF(Control!$B55=\"M\",'RES S curve-disconnect'!AL214,'RES S curve-disconnect'!AL192))","v":1321.8272101053576},{"$f":"IF(Control!$B55=\"L\",'RES S curve-disconnect'!AM236,IF(Control!$B55=\"M\",'RES S curve-disconnect'!AM214,'RES S curve-disconnect'!AM192))","v":1201.4593539387208},{"$f":"IF(Control!$B55=\"L\",'RES S curve-disconnect'!AN236,IF(Control!$B55=\"M\",'RES S curve-disconnect'!AN214,'RES S curve-disconnect'!AN192))","v":1450.1320742847197},{"$f":"IF(Control!$B55=\"L\",'RES S curve-disconnect'!AO236,IF(Control!$B55=\"M\",'RES S curve-disconnect'!AO214,'RES S curve-disconnect'!AO192))","v":1754.9486080291945},{"$f":"IF(Control!$B55=\"L\",'RES S curve-disconnect'!AP236,IF(Control!$B55=\"M\",'RES S curve-disconnect'!AP214,'RES S curve-disconnect'!AP192))","v":2036.9470812993015},{"$f":"IF(Control!$B55=\"L\",'RES S curve-disconnect'!AQ236,IF(Control!$B55=\"M\",'RES S curve-disconnect'!AQ214,'RES S curve-disconnect'!AQ192))","v":2340.1471932646155},{"$f":"IF(Control!$B55=\"L\",'RES S curve-disconnect'!AR236,IF(Control!$B55=\"M\",'RES S curve-disconnect'!AR214,'RES S curve-disconnect'!AR192))","v":2673.3035149384841},{"$f":"IF(Control!$B55=\"L\",'RES S curve-disconnect'!AS236,IF(Control!$B55=\"M\",'RES S curve-disconnect'!AS214,'RES S curve-disconnect'!AS192))","v":3047.2176759424328},{"$f":"IF(Control!$B55=\"L\",'RES S curve-disconnect'!AT236,IF(Control!$B55=\"M\",'RES S curve-disconnect'!AT214,'RES S curve-disconnect'!AT192))","v":3465.7537017392751},{"$f":"IF(Control!$B55=\"L\",'RES S curve-disconnect'!AU236,IF(Control!$B55=\"M\",'RES S curve-disconnect'!AU214,'RES S curve-disconnect'!AU192))","v":3949.6174393476285},{"$f":"IF(Control!$B55=\"L\",'RES S curve-disconnect'!AV236,IF(Control!$B55=\"M\",'RES S curve-disconnect'!AV214,'RES S curve-disconnect'!AV192))","v":4501.9070919979313},{"$f":"IF(Control!$B55=\"L\",'RES S curve-disconnect'!AW236,IF(Control!$B55=\"M\",'RES S curve-disconnect'!AW214,'RES S curve-disconnect'!AW192))","v":5136.8892890474426},{"$f":"IF(Control!$B55=\"L\",'RES S curve-disconnect'!AX236,IF(Control!$B55=\"M\",'RES S curve-disconnect'!AX214,'RES S curve-disconnect'!AX192))","v":5861.0222604077244},{"$f":"IF(Control!$B55=\"L\",'RES S curve-disconnect'!AY236,IF(Control!$B55=\"M\",'RES S curve-disconnect'!AY214,'RES S curve-disconnect'!AY192))","v":6696.400078904785},{"$f":"IF(Control!$B55=\"L\",'RES S curve-disconnect'!AZ236,IF(Control!$B55=\"M\",'RES S curve-disconnect'!AZ214,'RES S curve-disconnect'!AZ192))","v":7651.9683032890607},{"$f":"IF(Control!$B55=\"L\",'RES S curve-disconnect'!BA236,IF(Control!$B55=\"M\",'RES S curve-disconnect'!BA214,'RES S curve-disconnect'!BA192))","v":8759.0216205011657},{"$f":"IF(Control!$B55=\"L\",'RES S curve-disconnect'!BB236,IF(Control!$B55=\"M\",'RES S curve-disconnect'!BB214,'RES S curve-disconnect'!BB192))","v":10053.150310258001},{"$f":"IF(Control!$B55=\"L\",'RES S curve-disconnect'!BC236,IF(Control!$B55=\"M\",'RES S curve-disconnect'!BC214,'RES S curve-disconnect'!BC192))","v":11596.54985038779},{"$f":"IF(Control!$B55=\"L\",'RES S curve-disconnect'!BD236,IF(Control!$B55=\"M\",'RES S curve-disconnect'!BD214,'RES S curve-disconnect'!BD192))","v":13087.376700890289},{"$f":"IF(Control!$B55=\"L\",'RES S curve-disconnect'!BE236,IF(Control!$B55=\"M\",'RES S curve-disconnect'!BE214,'RES S curve-disconnect'!BE192))","v":14450.645473668388},{"$f":"IF(Control!$B55=\"L\",'RES S curve-disconnect'!BF236,IF(Control!$B55=\"M\",'RES S curve-disconnect'!BF214,'RES S curve-disconnect'!BF192))","v":15845.334966430746},{"$f":"IF(Control!$B55=\"L\",'RES S curve-disconnect'!BG236,IF(Control!$B55=\"M\",'RES S curve-disconnect'!BG214,'RES S curve-disconnect'!BG192))","v":17423.085249193275},{"$f":"IF(Control!$B55=\"L\",'RES S curve-disconnect'!BH236,IF(Control!$B55=\"M\",'RES S curve-disconnect'!BH214,'RES S curve-disconnect'!BH192))","v":19296.398647836002},{"$f":"IF(Control!$B55=\"L\",'RES S curve-disconnect'!BI236,IF(Control!$B55=\"M\",'RES S curve-disconnect'!BI214,'RES S curve-disconnect'!BI192))","v":22010.378790027949},{"$f":"IF(Control!$B55=\"L\",'RES S curve-disconnect'!BJ236,IF(Control!$B55=\"M\",'RES S curve-disconnect'!BJ214,'RES S curve-disconnect'!BJ192))","v":25987.384565920267},{"$f":"IF(Control!$B55=\"L\",'RES S curve-disconnect'!BK236,IF(Control!$B55=\"M\",'RES S curve-disconnect'!BK214,'RES S curve-disconnect'!BK192))","v":31859.933386616751},{"$f":"IF(Control!$B55=\"L\",'RES S curve-disconnect'!BL236,IF(Control!$B55=\"M\",'RES S curve-disconnect'!BL214,'RES S curve-disconnect'!BL192))","v":-2008.605415212184},{"$f":"IF(Control!$B55=\"L\",'RES S curve-disconnect'!BM236,IF(Control!$B55=\"M\",'RES S curve-disconnect'!BM214,'RES S curve-disconnect'!BM192))","v":-2001.1973270593912},{"$f":"IF(Control!$B55=\"L\",'RES S curve-disconnect'!BN236,IF(Control!$B55=\"M\",'RES S curve-disconnect'!BN214,'RES S curve-disconnect'!BN192))","v":-1997.1397346158772},{"$f":"IF(Control!$B55=\"L\",'RES S curve-disconnect'!BO236,IF(Control!$B55=\"M\",'RES S curve-disconnect'!BO214,'RES S curve-disconnect'!BO192))","v":-1986.4113178239377},{"$f":"IF(Control!$B55=\"L\",'RES S curve-disconnect'!BP236,IF(Control!$B55=\"M\",'RES S curve-disconnect'!BP214,'RES S curve-disconnect'!BP192))","v":-1979.0332761049258},{"$f":"IF(Control!$B55=\"L\",'RES S curve-disconnect'!BQ236,IF(Control!$B55=\"M\",'RES S curve-disconnect'!BQ214,'RES S curve-disconnect'!BQ192))","v":-1971.6651298512811},{"$f":"IF(Control!$B55=\"L\",'RES S curve-disconnect'!BR236,IF(Control!$B55=\"M\",'RES S curve-disconnect'!BR214,'RES S curve-disconnect'!BR192))","v":-1967.6472395275368},{"$f":"IF(Control!$B55=\"L\",'RES S curve-disconnect'!BS236,IF(Control!$B55=\"M\",'RES S curve-disconnect'!BS214,'RES S curve-disconnect'!BS192))","v":-1956.9582865646189},{"$f":"IF(Control!$B55=\"L\",'RES S curve-disconnect'!BT236,IF(Control!$B55=\"M\",'RES S curve-disconnect'!BT214,'RES S curve-disconnect'!BT192))","v":-1949.6194718631107},{"$f":"IF(Control!$B55=\"L\",'RES S curve-disconnect'!BU236,IF(Control!$B55=\"M\",'RES S curve-disconnect'!BU214,'RES S curve-disconnect'!BU192))","v":-1942.2903172853494},{"$f":"IF(Control!$B55=\"L\",'RES S curve-disconnect'!BV236,IF(Control!$B55=\"M\",'RES S curve-disconnect'!BV214,'RES S curve-disconnect'!BV192))","v":-1938.3111847564935},{"$f":"IF(Control!$B55=\"L\",'RES S curve-disconnect'!BW236,IF(Control!$B55=\"M\",'RES S curve-disconnect'!BW214,'RES S curve-disconnect'!BW192))","v":-1927.6607571588738},{"$f":"IF(Control!$B55=\"L\",'RES S curve-disconnect'!BX236,IF(Control!$B55=\"M\",'RES S curve-disconnect'!BX214,'RES S curve-disconnect'!BX192))","v":-1920.3602368353261},{"$f":"IF(Control!$B55=\"L\",'RES S curve-disconnect'!BY236,IF(Control!$B55=\"M\",'RES S curve-disconnect'!BY214,'RES S curve-disconnect'!BY192))","v":-1913.0691470813413},{"$f":"IF(Control!$B55=\"L\",'RES S curve-disconnect'!BZ236,IF(Control!$B55=\"M\",'RES S curve-disconnect'!BZ214,'RES S curve-disconnect'!BZ192))","v":-1909.1278512461852},{"$f":"IF(Control!$B55=\"L\",'RES S curve-disconnect'!CA236,IF(Control!$B55=\"M\",'RES S curve-disconnect'!CA214,'RES S curve-disconnect'!CA192))","v":-1898.5150336273168},{"$f":"IF(Control!$B55=\"L\",'RES S curve-disconnect'!CB236,IF(Control!$B55=\"M\",'RES S curve-disconnect'!CB214,'RES S curve-disconnect'!CB192))","v":-1891.2518979737697},{"$f":"IF(Control!$B55=\"L\",'RES S curve-disconnect'!CC236,IF(Control!$B55=\"M\",'RES S curve-disconnect'!CC214,'RES S curve-disconnect'!CC192))","v":-1883.9979689783663},{"$f":"IF(Control!$B55=\"L\",'RES S curve-disconnect'!CD236,IF(Control!$B55=\"M\",'RES S curve-disconnect'!CD214,'RES S curve-disconnect'!CD192))","v":-1995.2491010590468}]
["Manningham (C)",{"$f":"Customers!K150","v":43519},{"$f":"IF(Control!$B56=\"L\",'RES S curve-disconnect'!C237,IF(Control!$B56=\"M\",'RES S curve-disconnect'!C215,'RES S curve-disconnect'!C193))","v":-4976.7119841458807},{"$f":"IF(Control!$B56=\"L\",'RES S curve-disconnect'!D237,IF(Control!$B56=\"M\",'RES S curve-disconnect'!D215,'RES S curve-disconnect'!D193))","v":-5514.1121030857166},{"$f":"IF(Control!$B56=\"L\",'RES S curve-disconnect'!E237,IF(Control!$B56=\"M\",'RES S curve-disconnect'!E215,'RES S curve-disconnect'!E193))","v":-4753.0195756334497},{"$f":"IF(Control!$B56=\"L\",'RES S curve-disconnect'!F237,IF(Control!$B56=\"M\",'RES S curve-disconnect'!F215,'RES S curve-disconnect'!F193))","v":-4590.9180724953185},{"$f":"IF(Control!$B56=\"L\",'RES S curve-disconnect'!G237,IF(Control!$B56=\"M\",'RES S curve-disconnect'!G215,'RES S curve-disconnect'!G193))","v":-5899.5969233505775},{"$f":"IF(Control!$B56=\"L\",'RES S curve-disconnect'!H237,IF(Control!$B56=\"M\",'RES S curve-disconnect'!H215,'RES S curve-disconnect'!H193))","v":-5927.562254175009},{"$f":"IF(Control!$B56=\"L\",'RES S curve-disconnect'!I237,IF(Control!$B56=\"M\",'RES S curve-disconnect'!I215,'RES S curve-disconnect'!I193))","v":-5468.5752941348728},{"$f":"IF(Control!$B56=\"L\",'RES S curve-disconnect'!J237,IF(Control!$B56=\"M\",'RES S curve-disconnect'!J215,'RES S curve-disconnect'!J193))","v":-5801.386085952814},{"$f":"IF(Control!$B56=\"L\",'RES S curve-disconnect'!K237,IF(Control!$B56=\"M\",'RES S curve-disconnect'!K215,'RES S curve-disconnect'!K193))","v":-4941.4767177607328},{"$f":"IF(Control!$B56=\"L\",'RES S curve-disconnect'!L237,IF(Control!$B56=\"M\",'RES S curve-disconnect'!L215,'RES S curve-disconnect'!L193))","v":-5307.4297887457378},{"$f":"IF(Control!$B56=\"L\",'RES S curve-disconnect'!M237,IF(Control!$B56=\"M\",'RES S curve-disconnect'!M215,'RES S curve-disconnect'!M193))","v":-5980.7529789855535},{"$f":"IF(Control!$B56=\"L\",'RES S curve-disconnect'!N237,IF(Control!$B56=\"M\",'RES S curve-disconnect'!N215,'RES S curve-disconnect'!N193))","v":-6042.6199303034982},{"$f":"IF(Control!$B56=\"L\",'RES S curve-disconnect'!O237,IF(Control!$B56=\"M\",'RES S curve-disconnect'!O215,'RES S curve-disconnect'!O193))","v":-5450.3783193026175},{"$f":"IF(Control!$B56=\"L\",'RES S curve-disconnect'!P237,IF(Control!$B56=\"M\",'RES S curve-disconnect'!P215,'RES S curve-disconnect'!P193))","v":-4977.573584426179},{"$f":"IF(Control!$B56=\"L\",'RES S curve-disconnect'!Q237,IF(Control!$B56=\"M\",'RES S curve-disconnect'!Q215,'RES S curve-disconnect'!Q193))","v":-4263.9476135019777},{"$f":"IF(Control!$B56=\"L\",'RES S curve-disconnect'!R237,IF(Control!$B56=\"M\",'RES S curve-disconnect'!R215,'RES S curve-disconnect'!R193))","v":-3858.663777105287},{"$f":"IF(Control!$B56=\"L\",'RES S curve-disconnect'!S237,IF(Control!$B56=\"M\",'RES S curve-disconnect'!S215,'RES S curve-disconnect'!S193))","v":-3216.1175772129486},{"$f":"IF(Control!$B56=\"L\",'RES S curve-disconnect'!T237,IF(Control!$B56=\"M\",'RES S curve-disconnect'!T215,'RES S curve-disconnect'!T193))","v":-2863.8461242802014},{"$f":"IF(Control!$B56=\"L\",'RES S curve-disconnect'!U237,IF(Control!$B56=\"M\",'RES S curve-disconnect'!U215,'RES S curve-disconnect'!U193))","v":-2463.5734720157425},{"$f":"IF(Control!$B56=\"L\",'RES S curve-disconnect'!V237,IF(Control!$B56=\"M\",'RES S curve-disconnect'!V215,'RES S curve-disconnect'!V193))","v":-2190.6572817150522},{"$f":"IF(Control!$B56=\"L\",'RES S curve-disconnect'!W237,IF(Control!$B56=\"M\",'RES S curve-disconnect'!W215,'RES S curve-disconnect'!W193))","v":-1977.5345625075847},{"$f":"IF(Control!$B56=\"L\",'RES S curve-disconnect'!X237,IF(Control!$B56=\"M\",'RES S curve-disconnect'!X215,'RES S curve-disconnect'!X193))","v":-1494.694778422444},{"$f":"IF(Control!$B56=\"L\",'RES S curve-disconnect'!Y237,IF(Control!$B56=\"M\",'RES S curve-disconnect'!Y215,'RES S curve-disconnect'!Y193))","v":-1006.4604935291724},{"$f":"IF(Control!$B56=\"L\",'RES S curve-disconnect'!Z237,IF(Control!$B56=\"M\",'RES S curve-disconnect'!Z215,'RES S curve-disconnect'!Z193))","v":-675.80508906306852},{"$f":"IF(Control!$B56=\"L\",'RES S curve-disconnect'!AA237,IF(Control!$B56=\"M\",'RES S curve-disconnect'!AA215,'RES S curve-disconnect'!AA193))","v":-345.43535383914354},{"$f":"IF(Control!$B56=\"L\",'RES S curve-disconnect'!AB237,IF(Control!$B56=\"M\",'RES S curve-disconnect'!AB215,'RES S curve-disconnect'!AB193))","v":-81.462212050330152},{"$f":"IF(Control!$B56=\"L\",'RES S curve-disconnect'!AC237,IF(Control!$B56=\"M\",'RES S curve-disconnect'!AC215,'RES S curve-disconnect'!AC193))","v":172.70037298803885},{"$f":"IF(Control!$B56=\"L\",'RES S curve-disconnect'!AD237,IF(Control!$B56=\"M\",'RES S curve-disconnect'!AD215,'RES S curve-disconnect'!AD193))","v":405.91564750438584},{"$f":"IF(Control!$B56=\"L\",'RES S curve-disconnect'!AE237,IF(Control!$B56=\"M\",'RES S curve-disconnect'!AE215,'RES S curve-disconnect'!AE193))","v":650.56119448082359},{"$f":"IF(Control!$B56=\"L\",'RES S curve-disconnect'!AF237,IF(Control!$B56=\"M\",'RES S curve-disconnect'!AF215,'RES S curve-disconnect'!AF193))","v":967.33846337509249},{"$f":"IF(Control!$B56=\"L\",'RES S curve-disconnect'!AG237,IF(Control!$B56=\"M\",'RES S curve-disconnect'!AG215,'RES S curve-disconnect'!AG193))","v":1184.5690665306543},{"$f":"IF(Control!$B56=\"L\",'RES S curve-disconnect'!AH237,IF(Control!$B56=\"M\",'RES S curve-disconnect'!AH215,'RES S curve-disconnect'!AH193))","v":1491.1428788612166},{"$f":"IF(Control!$B56=\"L\",'RES S curve-disconnect'!AI237,IF(Control!$B56=\"M\",'RES S curve-disconnect'!AI215,'RES S curve-disconnect'!AI193))","v":1765.9154319512295},{"$f":"IF(Control!$B56=\"L\",'RES S curve-disconnect'!AJ237,IF(Control!$B56=\"M\",'RES S curve-disconnect'!AJ215,'RES S curve-disconnect'!AJ193))","v":2014.0591274624844},{"$f":"IF(Control!$B56=\"L\",'RES S curve-disconnect'!AK237,IF(Control!$B56=\"M\",'RES S curve-disconnect'!AK215,'RES S curve-disconnect'!AK193))","v":2277.4719300160359},{"$f":"IF(Control!$B56=\"L\",'RES S curve-disconnect'!AL237,IF(Control!$B56=\"M\",'RES S curve-disconnect'!AL215,'RES S curve-disconnect'!AL193))","v":1367.6916478283015},{"$f":"IF(Control!$B56=\"L\",'RES S curve-disconnect'!AM237,IF(Control!$B56=\"M\",'RES S curve-disconnect'!AM215,'RES S curve-disconnect'!AM193))","v":1247.3030206431642},{"$f":"IF(Control!$B56=\"L\",'RES S curve-disconnect'!AN237,IF(Control!$B56=\"M\",'RES S curve-disconnect'!AN215,'RES S curve-disconnect'!AN193))","v":1495.974532112512},{"$f":"IF(Control!$B56=\"L\",'RES S curve-disconnect'!AO237,IF(Control!$B56=\"M\",'RES S curve-disconnect'!AO215,'RES S curve-disconnect'!AO193))","v":1800.7933315221208},{"$f":"IF(Control!$B56=\"L\",'RES S curve-disconnect'!AP237,IF(Control!$B56=\"M\",'RES S curve-disconnect'!AP215,'RES S curve-disconnect'!AP193))","v":2082.7933581807451},{"$f":"IF(Control!$B56=\"L\",'RES S curve-disconnect'!AQ237,IF(Control!$B56=\"M\",'RES S curve-disconnect'!AQ215,'RES S curve-disconnect'!AQ193))","v":2385.9958746196953},{"$f":"IF(Control!$B56=\"L\",'RES S curve-disconnect'!AR237,IF(Control!$B56=\"M\",'RES S curve-disconnect'!AR215,'RES S curve-disconnect'!AR193))","v":2719.1564501310395},{"$f":"IF(Control!$B56=\"L\",'RES S curve-disconnect'!AS237,IF(Control!$B56=\"M\",'RES S curve-disconnect'!AS215,'RES S curve-disconnect'!AS193))","v":3093.0771372412341},{"$f":"IF(Control!$B56=\"L\",'RES S curve-disconnect'!AT237,IF(Control!$B56=\"M\",'RES S curve-disconnect'!AT215,'RES S curve-disconnect'!AT193))","v":3511.6223576338339},{"$f":"IF(Control!$B56=\"L\",'RES S curve-disconnect'!AU237,IF(Control!$B56=\"M\",'RES S curve-disconnect'!AU215,'RES S curve-disconnect'!AU193))","v":3995.4985361212134},{"$f":"IF(Control!$B56=\"L\",'RES S curve-disconnect'!AV237,IF(Control!$B56=\"M\",'RES S curve-disconnect'!AV215,'RES S curve-disconnect'!AV193))","v":4547.8045946299135},{"$f":"IF(Control!$B56=\"L\",'RES S curve-disconnect'!AW237,IF(Control!$B56=\"M\",'RES S curve-disconnect'!AW215,'RES S curve-disconnect'!AW193))","v":5182.8077907241832},{"$f":"IF(Control!$B56=\"L\",'RES S curve-disconnect'!AX237,IF(Control!$B56=\"M\",'RES S curve-disconnect'!AX215,'RES S curve-disconnect'!AX193))","v":5906.9669383033952},{"$f":"IF(Control!$B56=\"L\",'RES S curve-disconnect'!AY237,IF(Control!$B56=\"M\",'RES S curve-disconnect'!AY215,'RES S curve-disconnect'!AY193))","v":6742.3768206241812},{"$f":"IF(Control!$B56=\"L\",'RES S curve-disconnect'!AZ237,IF(Control!$B56=\"M\",'RES S curve-disconnect'!AZ215,'RES S curve-disconnect'!AZ193))","v":7697.984082627745},{"$f":"IF(Control!$B56=\"L\",'RES S curve-disconnect'!BA237,IF(Control!$B56=\"M\",'RES S curve-disconnect'!BA215,'RES S curve-disconnect'!BA193))","v":8805.0850001659928},{"$f":"IF(Control!$B56=\"L\",'RES S curve-disconnect'!BB237,IF(Control!$B56=\"M\",'RES S curve-disconnect'!BB215,'RES S curve-disconnect'!BB193))","v":10099.272074818688},{"$f":"IF(Control!$B56=\"L\",'RES S curve-disconnect'!BC237,IF(Control!$B56=\"M\",'RES S curve-disconnect'!BC215,'RES S curve-disconnect'!BC193))","v":11642.743777185879},{"$f":"IF(Control!$B56=\"L\",'RES S curve-disconnect'!BD237,IF(Control!$B56=\"M\",'RES S curve-disconnect'!BD215,'RES S curve-disconnect'!BD193))","v":13133.641522845577},{"$f":"IF(Control!$B56=\"L\",'RES S curve-disconnect'!BE237,IF(Control!$B56=\"M\",'RES S curve-disconnect'!BE215,'RES S curve-disconnect'!BE193))","v":14496.97469816296},{"$f":"IF(Control!$B56=\"L\",'RES S curve-disconnect'!BF237,IF(Control!$B56=\"M\",'RES S curve-disconnect'!BF215,'RES S curve-disconnect'!BF193))","v":15891.730291529664},{"$f":"IF(Control!$B56=\"L\",'RES S curve-disconnect'!BG237,IF(Control!$B56=\"M\",'RES S curve-disconnect'!BG215,'RES S curve-disconnect'!BG193))","v":17469.55641468837},{"$f":"IF(Control!$B56=\"L\",'RES S curve-disconnect'!BH237,IF(Control!$B56=\"M\",'RES S curve-disconnect'!BH215,'RES S curve-disconnect'!BH193))","v":19342.962474486289},{"$f":"IF(Control!$B56=\"L\",'RES S curve-disconnect'!BI237,IF(Control!$B56=\"M\",'RES S curve-disconnect'!BI215,'RES S curve-disconnect'!BI193))","v":22057.08178922474},{"$f":"IF(Control!$B56=\"L\",'RES S curve-disconnect'!BJ237,IF(Control!$B56=\"M\",'RES S curve-disconnect'!BJ215,'RES S curve-disconnect'!BJ193))","v":26034.298680986511},{"$f":"IF(Control!$B56=\"L\",'RES S curve-disconnect'!BK237,IF(Control!$B56=\"M\",'RES S curve-disconnect'!BK215,'RES S curve-disconnect'!BK193))","v":31907.167327662894},{"$f":"IF(Control!$B56=\"L\",'RES S curve-disconnect'!BL237,IF(Control!$B56=\"M\",'RES S curve-disconnect'!BL215,'RES S curve-disconnect'!BL193))","v":-1963.2293091893625},{"$f":"IF(Control!$B56=\"L\",'RES S curve-disconnect'!BM237,IF(Control!$B56=\"M\",'RES S curve-disconnect'!BM215,'RES S curve-disconnect'!BM193))","v":-1955.8319673527292},{"$f":"IF(Control!$B56=\"L\",'RES S curve-disconnect'!BN237,IF(Control!$B56=\"M\",'RES S curve-disconnect'!BN215,'RES S curve-disconnect'!BN193))","v":-1951.7850365003271},{"$f":"IF(Control!$B56=\"L\",'RES S curve-disconnect'!BO237,IF(Control!$B56=\"M\",'RES S curve-disconnect'!BO215,'RES S curve-disconnect'!BO193))","v":-1941.0671971568904},{"$f":"IF(Control!$B56=\"L\",'RES S curve-disconnect'!BP237,IF(Control!$B56=\"M\",'RES S curve-disconnect'!BP215,'RES S curve-disconnect'!BP193))","v":-1933.6996493223669},{"$f":"IF(Control!$B56=\"L\",'RES S curve-disconnect'!BQ237,IF(Control!$B56=\"M\",'RES S curve-disconnect'!BQ215,'RES S curve-disconnect'!BQ193))","v":-1926.341913963972},{"$f":"IF(Control!$B56=\"L\",'RES S curve-disconnect'!BR237,IF(Control!$B56=\"M\",'RES S curve-disconnect'!BR215,'RES S curve-disconnect'!BR193))","v":-1922.3343521172199},{"$f":"IF(Control!$B56=\"L\",'RES S curve-disconnect'!BS237,IF(Control!$B56=\"M\",'RES S curve-disconnect'!BS215,'RES S curve-disconnect'!BS193))","v":-1911.6556457802476},{"$f":"IF(Control!$B56=\"L\",'RES S curve-disconnect'!BT237,IF(Control!$B56=\"M\",'RES S curve-disconnect'!BT215,'RES S curve-disconnect'!BT193))","v":-1904.3269964171041},{"$f":"IF(Control!$B56=\"L\",'RES S curve-disconnect'!BU237,IF(Control!$B56=\"M\",'RES S curve-disconnect'!BU215,'RES S curve-disconnect'!BU193))","v":-1897.0079264498715},{"$f":"IF(Control!$B56=\"L\",'RES S curve-disconnect'!BV237,IF(Control!$B56=\"M\",'RES S curve-disconnect'!BV215,'RES S curve-disconnect'!BV193))","v":-1893.0387983597566},{"$f":"IF(Control!$B56=\"L\",'RES S curve-disconnect'!BW237,IF(Control!$B56=\"M\",'RES S curve-disconnect'!BW215,'RES S curve-disconnect'!BW193))","v":-1882.3982955814643},{"$f":"IF(Control!$B56=\"L\",'RES S curve-disconnect'!BX237,IF(Control!$B56=\"M\",'RES S curve-disconnect'!BX215,'RES S curve-disconnect'!BX193))","v":-1875.1076210065564},{"$f":"IF(Control!$B56=\"L\",'RES S curve-disconnect'!BY237,IF(Control!$B56=\"M\",'RES S curve-disconnect'!BY215,'RES S curve-disconnect'!BY193))","v":-1867.8262984756243},{"$f":"IF(Control!$B56=\"L\",'RES S curve-disconnect'!BZ237,IF(Control!$B56=\"M\",'RES S curve-disconnect'!BZ215,'RES S curve-disconnect'!BZ193))","v":-1863.8946918794325},{"$f":"IF(Control!$B56=\"L\",'RES S curve-disconnect'!CA237,IF(Control!$B56=\"M\",'RES S curve-disconnect'!CA215,'RES S curve-disconnect'!CA193))","v":-1853.291486053359},{"$f":"IF(Control!$B56=\"L\",'RES S curve-disconnect'!CB237,IF(Control!$B56=\"M\",'RES S curve-disconnect'!CB215,'RES S curve-disconnect'!CB193))","v":-1846.0378852808035},{"$f":"IF(Control!$B56=\"L\",'RES S curve-disconnect'!CC237,IF(Control!$B56=\"M\",'RES S curve-disconnect'!CC215,'RES S curve-disconnect'!CC193))","v":-1838.7934147854196},{"$f":"IF(Control!$B56=\"L\",'RES S curve-disconnect'!CD237,IF(Control!$B56=\"M\",'RES S curve-disconnect'!CD215,'RES S curve-disconnect'!CD193))","v":-1950.0608060280456}]
["Maroondah (C)",{"$f":"Customers!K151","v":38795},{"$f":"IF(Control!$B57=\"L\",'RES S curve-disconnect'!C238,IF(Control!$B57=\"M\",'RES S curve-disconnect'!C216,'RES S curve-disconnect'!C194))","v":-4999.7654598758209},{"$f":"IF(Control!$B57=\"L\",'RES S curve-disconnect'!D238,IF(Control!$B57=\"M\",'RES S curve-disconnect'!D216,'RES S curve-disconnect'!D194))","v":-5537.3489355835572},{"$f":"IF(Control!$B57=\"L\",'RES S curve-disconnect'!E238,IF(Control!$B57=\"M\",'RES S curve-disconnect'!E216,'RES S curve-disconnect'!E194))","v":-4777.7112379729615},{"$f":"IF(Control!$B57=\"L\",'RES S curve-disconnect'!F238,IF(Control!$B57=\"M\",'RES S curve-disconnect'!F216,'RES S curve-disconnect'!F194))","v":-4615.5885396886952},{"$f":"IF(Control!$B57=\"L\",'RES S curve-disconnect'!G238,IF(Control!$B57=\"M\",'RES S curve-disconnect'!G216,'RES S curve-disconnect'!G194))","v":-5916.0018587224949},{"$f":"IF(Control!$B57=\"L\",'RES S curve-disconnect'!H238,IF(Control!$B57=\"M\",'RES S curve-disconnect'!H216,'RES S curve-disconnect'!H194))","v":-5945.1679624522276},{"$f":"IF(Control!$B57=\"L\",'RES S curve-disconnect'!I238,IF(Control!$B57=\"M\",'RES S curve-disconnect'!I216,'RES S curve-disconnect'!I194))","v":-5486.7947069835109},{"$f":"IF(Control!$B57=\"L\",'RES S curve-disconnect'!J238,IF(Control!$B57=\"M\",'RES S curve-disconnect'!J216,'RES S curve-disconnect'!J194))","v":-5823.879021666211},{"$f":"IF(Control!$B57=\"L\",'RES S curve-disconnect'!K238,IF(Control!$B57=\"M\",'RES S curve-disconnect'!K216,'RES S curve-disconnect'!K194))","v":-4964.6593222889278},{"$f":"IF(Control!$B57=\"L\",'RES S curve-disconnect'!L238,IF(Control!$B57=\"M\",'RES S curve-disconnect'!L216,'RES S curve-disconnect'!L194))","v":-5330.5017770816139},{"$f":"IF(Control!$B57=\"L\",'RES S curve-disconnect'!M238,IF(Control!$B57=\"M\",'RES S curve-disconnect'!M216,'RES S curve-disconnect'!M194))","v":-6002.0628111736924},{"$f":"IF(Control!$B57=\"L\",'RES S curve-disconnect'!N238,IF(Control!$B57=\"M\",'RES S curve-disconnect'!N216,'RES S curve-disconnect'!N194))","v":-6063.5885953988764},{"$f":"IF(Control!$B57=\"L\",'RES S curve-disconnect'!O238,IF(Control!$B57=\"M\",'RES S curve-disconnect'!O216,'RES S curve-disconnect'!O194))","v":-5471.8397978372568},{"$f":"IF(Control!$B57=\"L\",'RES S curve-disconnect'!P238,IF(Control!$B57=\"M\",'RES S curve-disconnect'!P216,'RES S curve-disconnect'!P194))","v":-4999.5418833115054},{"$f":"IF(Control!$B57=\"L\",'RES S curve-disconnect'!Q238,IF(Control!$B57=\"M\",'RES S curve-disconnect'!Q216,'RES S curve-disconnect'!Q194))","v":-4286.7807610353775},{"$f":"IF(Control!$B57=\"L\",'RES S curve-disconnect'!R238,IF(Control!$B57=\"M\",'RES S curve-disconnect'!R216,'RES S curve-disconnect'!R194))","v":-3881.9173783196502},{"$f":"IF(Control!$B57=\"L\",'RES S curve-disconnect'!S238,IF(Control!$B57=\"M\",'RES S curve-disconnect'!S216,'RES S curve-disconnect'!S194))","v":-3240.1455402402726},{"$f":"IF(Control!$B57=\"L\",'RES S curve-disconnect'!T238,IF(Control!$B57=\"M\",'RES S curve-disconnect'!T216,'RES S curve-disconnect'!T194))","v":-2888.212816526956},{"$f":"IF(Control!$B57=\"L\",'RES S curve-disconnect'!U238,IF(Control!$B57=\"M\",'RES S curve-disconnect'!U216,'RES S curve-disconnect'!U194))","v":-2488.2898601595916},{"$f":"IF(Control!$B57=\"L\",'RES S curve-disconnect'!V238,IF(Control!$B57=\"M\",'RES S curve-disconnect'!V216,'RES S curve-disconnect'!V194))","v":-2215.4489908632891},{"$f":"IF(Control!$B57=\"L\",'RES S curve-disconnect'!W238,IF(Control!$B57=\"M\",'RES S curve-disconnect'!W216,'RES S curve-disconnect'!W194))","v":-2002.4269137107931},{"$f":"IF(Control!$B57=\"L\",'RES S curve-disconnect'!X238,IF(Control!$B57=\"M\",'RES S curve-disconnect'!X216,'RES S curve-disconnect'!X194))","v":-1520.1987232768745},{"$f":"IF(Control!$B57=\"L\",'RES S curve-disconnect'!Y238,IF(Control!$B57=\"M\",'RES S curve-disconnect'!Y216,'RES S curve-disconnect'!Y194))","v":-1032.5733453750156},{"$f":"IF(Control!$B57=\"L\",'RES S curve-disconnect'!Z238,IF(Control!$B57=\"M\",'RES S curve-disconnect'!Z216,'RES S curve-disconnect'!Z194))","v":-702.23275923383972},{"$f":"IF(Control!$B57=\"L\",'RES S curve-disconnect'!AA238,IF(Control!$B57=\"M\",'RES S curve-disconnect'!AA216,'RES S curve-disconnect'!AA194))","v":-372.16461329499089},{"$f":"IF(Control!$B57=\"L\",'RES S curve-disconnect'!AB238,IF(Control!$B57=\"M\",'RES S curve-disconnect'!AB216,'RES S curve-disconnect'!AB194))","v":-108.46841632979502},{"$f":"IF(Control!$B57=\"L\",'RES S curve-disconnect'!AC238,IF(Control!$B57=\"M\",'RES S curve-disconnect'!AC216,'RES S curve-disconnect'!AC194))","v":145.43894328285694},{"$f":"IF(Control!$B57=\"L\",'RES S curve-disconnect'!AD238,IF(Control!$B57=\"M\",'RES S curve-disconnect'!AD216,'RES S curve-disconnect'!AD194))","v":378.43309089570386},{"$f":"IF(Control!$B57=\"L\",'RES S curve-disconnect'!AE238,IF(Control!$B57=\"M\",'RES S curve-disconnect'!AE216,'RES S curve-disconnect'!AE194))","v":622.85125555795776},{"$f":"IF(Control!$B57=\"L\",'RES S curve-disconnect'!AF238,IF(Control!$B57=\"M\",'RES S curve-disconnect'!AF216,'RES S curve-disconnect'!AF194))","v":939.26007966616692},{"$f":"IF(Control!$B57=\"L\",'RES S curve-disconnect'!AG238,IF(Control!$B57=\"M\",'RES S curve-disconnect'!AG216,'RES S curve-disconnect'!AG194))","v":1156.1343093883615},{"$f":"IF(Control!$B57=\"L\",'RES S curve-disconnect'!AH238,IF(Control!$B57=\"M\",'RES S curve-disconnect'!AH216,'RES S curve-disconnect'!AH194))","v":1462.1703061504688},{"$f":"IF(Control!$B57=\"L\",'RES S curve-disconnect'!AI238,IF(Control!$B57=\"M\",'RES S curve-disconnect'!AI216,'RES S curve-disconnect'!AI194))","v":1736.489139006251},{"$f":"IF(Control!$B57=\"L\",'RES S curve-disconnect'!AJ238,IF(Control!$B57=\"M\",'RES S curve-disconnect'!AJ216,'RES S curve-disconnect'!AJ194))","v":1984.2184683420683},{"$f":"IF(Control!$B57=\"L\",'RES S curve-disconnect'!AK238,IF(Control!$B57=\"M\",'RES S curve-disconnect'!AK216,'RES S curve-disconnect'!AK194))","v":2247.1915766660604},{"$f":"IF(Control!$B57=\"L\",'RES S curve-disconnect'!AL238,IF(Control!$B57=\"M\",'RES S curve-disconnect'!AL216,'RES S curve-disconnect'!AL194))","v":1338.9081534611985},{"$f":"IF(Control!$B57=\"L\",'RES S curve-disconnect'!AM238,IF(Control!$B57=\"M\",'RES S curve-disconnect'!AM216,'RES S curve-disconnect'!AM194))","v":1218.7686327622171},{"$f":"IF(Control!$B57=\"L\",'RES S curve-disconnect'!AN238,IF(Control!$B57=\"M\",'RES S curve-disconnect'!AN216,'RES S curve-disconnect'!AN194))","v":1467.0465591233944},{"$f":"IF(Control!$B57=\"L\",'RES S curve-disconnect'!AO238,IF(Control!$B57=\"M\",'RES S curve-disconnect'!AO216,'RES S curve-disconnect'!AO194))","v":1771.3602942045131},{"$f":"IF(Control!$B57=\"L\",'RES S curve-disconnect'!AP238,IF(Control!$B57=\"M\",'RES S curve-disconnect'!AP216,'RES S curve-disconnect'!AP194))","v":2052.8820096083928},{"$f":"IF(Control!$B57=\"L\",'RES S curve-disconnect'!AQ238,IF(Control!$B57=\"M\",'RES S curve-disconnect'!AQ216,'RES S curve-disconnect'!AQ194))","v":2355.5813214263944},{"$f":"IF(Control!$B57=\"L\",'RES S curve-disconnect'!AR238,IF(Control!$B57=\"M\",'RES S curve-disconnect'!AR216,'RES S curve-disconnect'!AR194))","v":2688.1808124766171},{"$f":"IF(Control!$B57=\"L\",'RES S curve-disconnect'!AS238,IF(Control!$B57=\"M\",'RES S curve-disconnect'!AS216,'RES S curve-disconnect'!AS194))","v":3061.4685485921809},{"$f":"IF(Control!$B57=\"L\",'RES S curve-disconnect'!AT238,IF(Control!$B57=\"M\",'RES S curve-disconnect'!AT216,'RES S curve-disconnect'!AT194))","v":3479.2958460555428},{"$f":"IF(Control!$B57=\"L\",'RES S curve-disconnect'!AU238,IF(Control!$B57=\"M\",'RES S curve-disconnect'!AU216,'RES S curve-disconnect'!AU194))","v":3962.3500286290423},{"$f":"IF(Control!$B57=\"L\",'RES S curve-disconnect'!AV238,IF(Control!$B57=\"M\",'RES S curve-disconnect'!AV216,'RES S curve-disconnect'!AV194))","v":4513.7062645409414},{"$f":"IF(Control!$B57=\"L\",'RES S curve-disconnect'!AW238,IF(Control!$B57=\"M\",'RES S curve-disconnect'!AW216,'RES S curve-disconnect'!AW194))","v":5147.6110458732519},{"$f":"IF(Control!$B57=\"L\",'RES S curve-disconnect'!AX238,IF(Control!$B57=\"M\",'RES S curve-disconnect'!AX216,'RES S curve-disconnect'!AX194))","v":5870.5038813611181},{"$f":"IF(Control!$B57=\"L\",'RES S curve-disconnect'!AY238,IF(Control!$B57=\"M\",'RES S curve-disconnect'!AY216,'RES S curve-disconnect'!AY194))","v":6704.4560739198478},{"$f":"IF(Control!$B57=\"L\",'RES S curve-disconnect'!AZ238,IF(Control!$B57=\"M\",'RES S curve-disconnect'!AZ216,'RES S curve-disconnect'!AZ194))","v":7658.378380168786},{"$f":"IF(Control!$B57=\"L\",'RES S curve-disconnect'!BA238,IF(Control!$B57=\"M\",'RES S curve-disconnect'!BA216,'RES S curve-disconnect'!BA194))","v":8763.5145872500561},{"$f":"IF(Control!$B57=\"L\",'RES S curve-disconnect'!BB238,IF(Control!$B57=\"M\",'RES S curve-disconnect'!BB216,'RES S curve-disconnect'!BB194))","v":10055.383807235656},{"$f":"IF(Control!$B57=\"L\",'RES S curve-disconnect'!BC238,IF(Control!$B57=\"M\",'RES S curve-disconnect'!BC216,'RES S curve-disconnect'!BC194))","v":11596.085664875891},{"$f":"IF(Control!$B57=\"L\",'RES S curve-disconnect'!BD238,IF(Control!$B57=\"M\",'RES S curve-disconnect'!BD216,'RES S curve-disconnect'!BD194))","v":13084.258343046871},{"$f":"IF(Control!$B57=\"L\",'RES S curve-disconnect'!BE238,IF(Control!$B57=\"M\",'RES S curve-disconnect'!BE216,'RES S curve-disconnect'!BE194))","v":14445.083762449707},{"$f":"IF(Control!$B57=\"L\",'RES S curve-disconnect'!BF238,IF(Control!$B57=\"M\",'RES S curve-disconnect'!BF216,'RES S curve-disconnect'!BF194))","v":15837.27842383021},{"$f":"IF(Control!$B57=\"L\",'RES S curve-disconnect'!BG238,IF(Control!$B57=\"M\",'RES S curve-disconnect'!BG216,'RES S curve-disconnect'!BG194))","v":17412.224870156922},{"$f":"IF(Control!$B57=\"L\",'RES S curve-disconnect'!BH238,IF(Control!$B57=\"M\",'RES S curve-disconnect'!BH216,'RES S curve-disconnect'!BH194))","v":19282.198665240267},{"$f":"IF(Control!$B57=\"L\",'RES S curve-disconnect'!BI238,IF(Control!$B57=\"M\",'RES S curve-disconnect'!BI216,'RES S curve-disconnect'!BI194))","v":21991.352682143766},{"$f":"IF(Control!$B57=\"L\",'RES S curve-disconnect'!BJ238,IF(Control!$B57=\"M\",'RES S curve-disconnect'!BJ216,'RES S curve-disconnect'!BJ194))","v":25961.231426012422},{"$f":"IF(Control!$B57=\"L\",'RES S curve-disconnect'!BK238,IF(Control!$B57=\"M\",'RES S curve-disconnect'!BK216,'RES S curve-disconnect'!BK194))","v":31823.174965351474},{"$f":"IF(Control!$B57=\"L\",'RES S curve-disconnect'!BL238,IF(Control!$B57=\"M\",'RES S curve-disconnect'!BL216,'RES S curve-disconnect'!BL194))","v":-1986.2346293564717},{"$f":"IF(Control!$B57=\"L\",'RES S curve-disconnect'!BM238,IF(Control!$B57=\"M\",'RES S curve-disconnect'!BM216,'RES S curve-disconnect'!BM194))","v":-1978.8409024229868},{"$f":"IF(Control!$B57=\"L\",'RES S curve-disconnect'!BN238,IF(Control!$B57=\"M\",'RES S curve-disconnect'!BN216,'RES S curve-disconnect'!BN194))","v":-1974.7976431180521},{"$f":"IF(Control!$B57=\"L\",'RES S curve-disconnect'!BO238,IF(Control!$B57=\"M\",'RES S curve-disconnect'!BO216,'RES S curve-disconnect'!BO194))","v":-1964.0835315723757},{"$f":"IF(Control!$B57=\"L\",'RES S curve-disconnect'!BP238,IF(Control!$B57=\"M\",'RES S curve-disconnect'!BP216,'RES S curve-disconnect'!BP194))","v":-1956.719767394492},{"$f":"IF(Control!$B57=\"L\",'RES S curve-disconnect'!BQ238,IF(Control!$B57=\"M\",'RES S curve-disconnect'!BQ216,'RES S curve-disconnect'!BQ194))","v":-1949.3658711627995},{"$f":"IF(Control!$B57=\"L\",'RES S curve-disconnect'!BR238,IF(Control!$B57=\"M\",'RES S curve-disconnect'!BR216,'RES S curve-disconnect'!BR194))","v":-1945.3622035265739},{"$f":"IF(Control!$B57=\"L\",'RES S curve-disconnect'!BS238,IF(Control!$B57=\"M\",'RES S curve-disconnect'!BS216,'RES S curve-disconnect'!BS194))","v":-1934.6874461002776},{"$f":"IF(Control!$B57=\"L\",'RES S curve-disconnect'!BT238,IF(Control!$B57=\"M\",'RES S curve-disconnect'!BT216,'RES S curve-disconnect'!BT194))","v":-1927.3627999668292},{"$f":"IF(Control!$B57=\"L\",'RES S curve-disconnect'!BU238,IF(Control!$B57=\"M\",'RES S curve-disconnect'!BU216,'RES S curve-disconnect'!BU194))","v":-1920.0477871697117},{"$f":"IF(Control!$B57=\"L\",'RES S curve-disconnect'!BV238,IF(Control!$B57=\"M\",'RES S curve-disconnect'!BV216,'RES S curve-disconnect'!BV194))","v":-1916.0827698140426},{"$f":"IF(Control!$B57=\"L\",'RES S curve-disconnect'!BW238,IF(Control!$B57=\"M\",'RES S curve-disconnect'!BW216,'RES S curve-disconnect'!BW194))","v":-1905.4464309609375},{"$f":"IF(Control!$B57=\"L\",'RES S curve-disconnect'!BX238,IF(Control!$B57=\"M\",'RES S curve-disconnect'!BX216,'RES S curve-disconnect'!BX194))","v":-1898.159973130847},{"$f":"IF(Control!$B57=\"L\",'RES S curve-disconnect'!BY238,IF(Control!$B57=\"M\",'RES S curve-disconnect'!BY216,'RES S curve-disconnect'!BY194))","v":-1890.8829197957152},{"$f":"IF(Control!$B57=\"L\",'RES S curve-disconnect'!BZ238,IF(Control!$B57=\"M\",'RES S curve-disconnect'!BZ216,'RES S curve-disconnect'!BZ194))","v":-1886.9556344801085},{"$f":"IF(Control!$B57=\"L\",'RES S curve-disconnect'!CA238,IF(Control!$B57=\"M\",'RES S curve-disconnect'!CA216,'RES S curve-disconnect'!CA194))","v":-1876.3568016556387},{"$f":"IF(Control!$B57=\"L\",'RES S curve-disconnect'!CB238,IF(Control!$B57=\"M\",'RES S curve-disconnect'!CB216,'RES S curve-disconnect'!CB194))","v":-1869.1076252443549},{"$f":"IF(Control!$B57=\"L\",'RES S curve-disconnect'!CC238,IF(Control!$B57=\"M\",'RES S curve-disconnect'!CC216,'RES S curve-disconnect'!CC194))","v":-1861.867630110962},{"$f":"IF(Control!$B57=\"L\",'RES S curve-disconnect'!CD238,IF(Control!$B57=\"M\",'RES S curve-disconnect'!CD216,'RES S curve-disconnect'!CD194))","v":-1972.9124753295605}]
["Melbourne (C)",{"$f":"Customers!K152","v":841},{"$f":"IF(Control!$B58=\"L\",'RES S curve-disconnect'!C239,IF(Control!$B58=\"M\",'RES S curve-disconnect'!C217,'RES S curve-disconnect'!C195))","v":-3264.0140994965454},{"$f":"IF(Control!$B58=\"L\",'RES S curve-disconnect'!D239,IF(Control!$B58=\"M\",'RES S curve-disconnect'!D217,'RES S curve-disconnect'!D195))","v":-3469.7175012132111},{"$f":"IF(Control!$B58=\"L\",'RES S curve-disconnect'!E239,IF(Control!$B58=\"M\",'RES S curve-disconnect'!E217,'RES S curve-disconnect'!E195))","v":-3006.6007904230355},{"$f":"IF(Control!$B58=\"L\",'RES S curve-disconnect'!F239,IF(Control!$B58=\"M\",'RES S curve-disconnect'!F217,'RES S curve-disconnect'!F195))","v":-2953.5551076200109},{"$f":"IF(Control!$B58=\"L\",'RES S curve-disconnect'!G239,IF(Control!$B58=\"M\",'RES S curve-disconnect'!G217,'RES S curve-disconnect'!G195))","v":-3423.5241109586668},{"$f":"IF(Control!$B58=\"L\",'RES S curve-disconnect'!H239,IF(Control!$B58=\"M\",'RES S curve-disconnect'!H217,'RES S curve-disconnect'!H195))","v":-3457.8790182175985},{"$f":"IF(Control!$B58=\"L\",'RES S curve-disconnect'!I239,IF(Control!$B58=\"M\",'RES S curve-disconnect'!I217,'RES S curve-disconnect'!I195))","v":-3294.9682567461505},{"$f":"IF(Control!$B58=\"L\",'RES S curve-disconnect'!J239,IF(Control!$B58=\"M\",'RES S curve-disconnect'!J217,'RES S curve-disconnect'!J195))","v":-3580.6315366279114},{"$f":"IF(Control!$B58=\"L\",'RES S curve-disconnect'!K239,IF(Control!$B58=\"M\",'RES S curve-disconnect'!K217,'RES S curve-disconnect'!K195))","v":-3194.176742815851},{"$f":"IF(Control!$B58=\"L\",'RES S curve-disconnect'!L239,IF(Control!$B58=\"M\",'RES S curve-disconnect'!L217,'RES S curve-disconnect'!L195))","v":-3320.4052372371734},{"$f":"IF(Control!$B58=\"L\",'RES S curve-disconnect'!M239,IF(Control!$B58=\"M\",'RES S curve-disconnect'!M217,'RES S curve-disconnect'!M195))","v":-3533.778312745319},{"$f":"IF(Control!$B58=\"L\",'RES S curve-disconnect'!N239,IF(Control!$B58=\"M\",'RES S curve-disconnect'!N217,'RES S curve-disconnect'!N195))","v":-3542.5788177554286},{"$f":"IF(Control!$B58=\"L\",'RES S curve-disconnect'!O239,IF(Control!$B58=\"M\",'RES S curve-disconnect'!O217,'RES S curve-disconnect'!O195))","v":-3309.3462691883897},{"$f":"IF(Control!$B58=\"L\",'RES S curve-disconnect'!P239,IF(Control!$B58=\"M\",'RES S curve-disconnect'!P217,'RES S curve-disconnect'!P195))","v":-3124.2917472242398},{"$f":"IF(Control!$B58=\"L\",'RES S curve-disconnect'!Q239,IF(Control!$B58=\"M\",'RES S curve-disconnect'!Q217,'RES S curve-disconnect'!Q195))","v":-2851.7408787884642},{"$f":"IF(Control!$B58=\"L\",'RES S curve-disconnect'!R239,IF(Control!$B58=\"M\",'RES S curve-disconnect'!R217,'RES S curve-disconnect'!R195))","v":-2692.0783194277492},{"$f":"IF(Control!$B58=\"L\",'RES S curve-disconnect'!S239,IF(Control!$B58=\"M\",'RES S curve-disconnect'!S217,'RES S curve-disconnect'!S195))","v":-2439.0829046743429},{"$f":"IF(Control!$B58=\"L\",'RES S curve-disconnect'!T239,IF(Control!$B58=\"M\",'RES S curve-disconnect'!T217,'RES S curve-disconnect'!T195))","v":-2310.3984335970245},{"$f":"IF(Control!$B58=\"L\",'RES S curve-disconnect'!U239,IF(Control!$B58=\"M\",'RES S curve-disconnect'!U217,'RES S curve-disconnect'!U195))","v":-2155.2625226964728},{"$f":"IF(Control!$B58=\"L\",'RES S curve-disconnect'!V239,IF(Control!$B58=\"M\",'RES S curve-disconnect'!V217,'RES S curve-disconnect'!V195))","v":-2042.2183478620616},{"$f":"IF(Control!$B58=\"L\",'RES S curve-disconnect'!W239,IF(Control!$B58=\"M\",'RES S curve-disconnect'!W217,'RES S curve-disconnect'!W195))","v":-1950.9599532862092},{"$f":"IF(Control!$B58=\"L\",'RES S curve-disconnect'!X239,IF(Control!$B58=\"M\",'RES S curve-disconnect'!X217,'RES S curve-disconnect'!X195))","v":-1767.3518941536049},{"$f":"IF(Control!$B58=\"L\",'RES S curve-disconnect'!Y239,IF(Control!$B58=\"M\",'RES S curve-disconnect'!Y217,'RES S curve-disconnect'!Y195))","v":-1580.2903569976797},{"$f":"IF(Control!$B58=\"L\",'RES S curve-disconnect'!Z239,IF(Control!$B58=\"M\",'RES S curve-disconnect'!Z217,'RES S curve-disconnect'!Z195))","v":-1448.8198351597234},{"$f":"IF(Control!$B58=\"L\",'RES S curve-disconnect'!AA239,IF(Control!$B58=\"M\",'RES S curve-disconnect'!AA217,'RES S curve-disconnect'!AA195))","v":-1315.67095466708},{"$f":"IF(Control!$B58=\"L\",'RES S curve-disconnect'!AB239,IF(Control!$B58=\"M\",'RES S curve-disconnect'!AB217,'RES S curve-disconnect'!AB195))","v":-1205.8099366285023},{"$f":"IF(Control!$B58=\"L\",'RES S curve-disconnect'!AC239,IF(Control!$B58=\"M\",'RES S curve-disconnect'!AC217,'RES S curve-disconnect'!AC195))","v":-1098.4325329200196},{"$f":"IF(Control!$B58=\"L\",'RES S curve-disconnect'!AD239,IF(Control!$B58=\"M\",'RES S curve-disconnect'!AD217,'RES S curve-disconnect'!AD195))","v":-998.89045339248059},{"$f":"IF(Control!$B58=\"L\",'RES S curve-disconnect'!AE239,IF(Control!$B58=\"M\",'RES S curve-disconnect'!AE217,'RES S curve-disconnect'!AE195))","v":-892.52006848204803},{"$f":"IF(Control!$B58=\"L\",'RES S curve-disconnect'!AF239,IF(Control!$B58=\"M\",'RES S curve-disconnect'!AF217,'RES S curve-disconnect'!AF195))","v":-761.71744850313894},{"$f":"IF(Control!$B58=\"L\",'RES S curve-disconnect'!AG239,IF(Control!$B58=\"M\",'RES S curve-disconnect'!AG217,'RES S curve-disconnect'!AG195))","v":-679.35970902984855},{"$f":"IF(Control!$B58=\"L\",'RES S curve-disconnect'!AH239,IF(Control!$B58=\"M\",'RES S curve-disconnect'!AH217,'RES S curve-disconnect'!AH195))","v":-568.3716722489919},{"$f":"IF(Control!$B58=\"L\",'RES S curve-disconnect'!AI239,IF(Control!$B58=\"M\",'RES S curve-disconnect'!AI217,'RES S curve-disconnect'!AI195))","v":-464.12281195221669},{"$f":"IF(Control!$B58=\"L\",'RES S curve-disconnect'!AJ239,IF(Control!$B58=\"M\",'RES S curve-disconnect'!AJ217,'RES S curve-disconnect'!AJ195))","v":-370.97736919174395},{"$f":"IF(Control!$B58=\"L\",'RES S curve-disconnect'!AK239,IF(Control!$B58=\"M\",'RES S curve-disconnect'!AK217,'RES S curve-disconnect'!AK195))","v":-271.92763861607835},{"$f":"IF(Control!$B58=\"L\",'RES S curve-disconnect'!AL239,IF(Control!$B58=\"M\",'RES S curve-disconnect'!AL217,'RES S curve-disconnect'!AL195))","v":-627.05380558865784},{"$f":"IF(Control!$B58=\"L\",'RES S curve-disconnect'!AM239,IF(Control!$B58=\"M\",'RES S curve-disconnect'!AM217,'RES S curve-disconnect'!AM195))","v":-666.8400376944187},{"$f":"IF(Control!$B58=\"L\",'RES S curve-disconnect'!AN239,IF(Control!$B58=\"M\",'RES S curve-disconnect'!AN217,'RES S curve-disconnect'!AN195))","v":-569.62406302353418},{"$f":"IF(Control!$B58=\"L\",'RES S curve-disconnect'!AO239,IF(Control!$B58=\"M\",'RES S curve-disconnect'!AO217,'RES S curve-disconnect'!AO195))","v":-453.96267768987718},{"$f":"IF(Control!$B58=\"L\",'RES S curve-disconnect'!AP239,IF(Control!$B58=\"M\",'RES S curve-disconnect'!AP217,'RES S curve-disconnect'!AP195))","v":-349.04022737061467},{"$f":"IF(Control!$B58=\"L\",'RES S curve-disconnect'!AQ239,IF(Control!$B58=\"M\",'RES S curve-disconnect'!AQ217,'RES S curve-disconnect'!AQ195))","v":-234.11823127676604},{"$f":"IF(Control!$B58=\"L\",'RES S curve-disconnect'!AR239,IF(Control!$B58=\"M\",'RES S curve-disconnect'!AR217,'RES S curve-disconnect'!AR195))","v":-109.06645665576994},{"$f":"IF(Control!$B58=\"L\",'RES S curve-disconnect'!AS239,IF(Control!$B58=\"M\",'RES S curve-disconnect'!AS217,'RES S curve-disconnect'!AS195))","v":30.972891424061146},{"$f":"IF(Control!$B58=\"L\",'RES S curve-disconnect'!AT239,IF(Control!$B58=\"M\",'RES S curve-disconnect'!AT217,'RES S curve-disconnect'!AT195))","v":186.31289250738007},{"$f":"IF(Control!$B58=\"L\",'RES S curve-disconnect'!AU239,IF(Control!$B58=\"M\",'RES S curve-disconnect'!AU217,'RES S curve-disconnect'!AU195))","v":367.62138069896207},{"$f":"IF(Control!$B58=\"L\",'RES S curve-disconnect'!AV239,IF(Control!$B58=\"M\",'RES S curve-disconnect'!AV217,'RES S curve-disconnect'!AV195))","v":572.82030116354986},{"$f":"IF(Control!$B58=\"L\",'RES S curve-disconnect'!AW239,IF(Control!$B58=\"M\",'RES S curve-disconnect'!AW217,'RES S curve-disconnect'!AW195))","v":807.92276127284413},{"$f":"IF(Control!$B58=\"L\",'RES S curve-disconnect'!AX239,IF(Control!$B58=\"M\",'RES S curve-disconnect'!AX217,'RES S curve-disconnect'!AX195))","v":1073.9090714307174},{"$f":"IF(Control!$B58=\"L\",'RES S curve-disconnect'!AY239,IF(Control!$B58=\"M\",'RES S curve-disconnect'!AY217,'RES S curve-disconnect'!AY195))","v":1381.6174454045722},{"$f":"IF(Control!$B58=\"L\",'RES S curve-disconnect'!AZ239,IF(Control!$B58=\"M\",'RES S curve-disconnect'!AZ217,'RES S curve-disconnect'!AZ195))","v":1730.7972512546512},{"$f":"IF(Control!$B58=\"L\",'RES S curve-disconnect'!BA239,IF(Control!$B58=\"M\",'RES S curve-disconnect'!BA217,'RES S curve-disconnect'!BA195))","v":2133.41868425553},{"$f":"IF(Control!$B58=\"L\",'RES S curve-disconnect'!BB239,IF(Control!$B58=\"M\",'RES S curve-disconnect'!BB217,'RES S curve-disconnect'!BB195))","v":2600.6867570649501},{"$f":"IF(Control!$B58=\"L\",'RES S curve-disconnect'!BC239,IF(Control!$B58=\"M\",'RES S curve-disconnect'!BC217,'RES S curve-disconnect'!BC195))","v":3157.3532671528883},{"$f":"IF(Control!$B58=\"L\",'RES S curve-disconnect'!BD239,IF(Control!$B58=\"M\",'RES S curve-disconnect'!BD217,'RES S curve-disconnect'!BD195))","v":3686.2924364088331},{"$f":"IF(Control!$B58=\"L\",'RES S curve-disconnect'!BE239,IF(Control!$B58=\"M\",'RES S curve-disconnect'!BE217,'RES S curve-disconnect'!BE195))","v":4167.0452091265997},{"$f":"IF(Control!$B58=\"L\",'RES S curve-disconnect'!BF239,IF(Control!$B58=\"M\",'RES S curve-disconnect'!BF217,'RES S curve-disconnect'!BF195))","v":4659.745669685195},{"$f":"IF(Control!$B58=\"L\",'RES S curve-disconnect'!BG239,IF(Control!$B58=\"M\",'RES S curve-disconnect'!BG217,'RES S curve-disconnect'!BG195))","v":5220.4214084199375},{"$f":"IF(Control!$B58=\"L\",'RES S curve-disconnect'!BH239,IF(Control!$B58=\"M\",'RES S curve-disconnect'!BH217,'RES S curve-disconnect'!BH195))","v":5884.1658061854423},{"$f":"IF(Control!$B58=\"L\",'RES S curve-disconnect'!BI239,IF(Control!$B58=\"M\",'RES S curve-disconnect'!BI217,'RES S curve-disconnect'!BI195))","v":6847.8460745102711},{"$f":"IF(Control!$B58=\"L\",'RES S curve-disconnect'!BJ239,IF(Control!$B58=\"M\",'RES S curve-disconnect'!BJ217,'RES S curve-disconnect'!BJ195))","v":8249.9070489596124},{"$f":"IF(Control!$B58=\"L\",'RES S curve-disconnect'!BK239,IF(Control!$B58=\"M\",'RES S curve-disconnect'!BK217,'RES S curve-disconnect'!BK195))","v":10305.345358536426},{"$f":"IF(Control!$B58=\"L\",'RES S curve-disconnect'!BL239,IF(Control!$B58=\"M\",'RES S curve-disconnect'!BL217,'RES S curve-disconnect'!BL195))","v":-1915.9227753053876},{"$f":"IF(Control!$B58=\"L\",'RES S curve-disconnect'!BM239,IF(Control!$B58=\"M\",'RES S curve-disconnect'!BM217,'RES S curve-disconnect'!BM195))","v":-1913.2402139397946},{"$f":"IF(Control!$B58=\"L\",'RES S curve-disconnect'!BN239,IF(Control!$B58=\"M\",'RES S curve-disconnect'!BN217,'RES S curve-disconnect'!BN195))","v":-1912.8250966259448},{"$f":"IF(Control!$B58=\"L\",'RES S curve-disconnect'!BO239,IF(Control!$B58=\"M\",'RES S curve-disconnect'!BO217,'RES S curve-disconnect'!BO195))","v":-1907.8887835021185},{"$f":"IF(Control!$B58=\"L\",'RES S curve-disconnect'!BP239,IF(Control!$B58=\"M\",'RES S curve-disconnect'!BP217,'RES S curve-disconnect'!BP195))","v":-1905.2198580989213},{"$f":"IF(Control!$B58=\"L\",'RES S curve-disconnect'!BQ239,IF(Control!$B58=\"M\",'RES S curve-disconnect'!BQ217,'RES S curve-disconnect'!BQ195))","v":-1902.5554219807489},{"$f":"IF(Control!$B58=\"L\",'RES S curve-disconnect'!BR239,IF(Control!$B58=\"M\",'RES S curve-disconnect'!BR217,'RES S curve-disconnect'!BR195))","v":-1902.1583179591087},{"$f":"IF(Control!$B58=\"L\",'RES S curve-disconnect'!BS239,IF(Control!$B58=\"M\",'RES S curve-disconnect'!BS217,'RES S curve-disconnect'!BS195))","v":-1897.2399068770601},{"$f":"IF(Control!$B58=\"L\",'RES S curve-disconnect'!BT239,IF(Control!$B58=\"M\",'RES S curve-disconnect'!BT217,'RES S curve-disconnect'!BT195))","v":-1894.5887729655101},{"$f":"IF(Control!$B58=\"L\",'RES S curve-disconnect'!BU239,IF(Control!$B58=\"M\",'RES S curve-disconnect'!BU217,'RES S curve-disconnect'!BU195))","v":-1891.9420184847095},{"$f":"IF(Control!$B58=\"L\",'RES S curve-disconnect'!BV239,IF(Control!$B58=\"M\",'RES S curve-disconnect'!BV217,'RES S curve-disconnect'!BV195))","v":-1891.5624869375997},{"$f":"IF(Control!$B58=\"L\",'RES S curve-disconnect'!BW239,IF(Control!$B58=\"M\",'RES S curve-disconnect'!BW217,'RES S curve-disconnect'!BW195))","v":-1886.6615398542838},{"$f":"IF(Control!$B58=\"L\",'RES S curve-disconnect'!BX239,IF(Control!$B58=\"M\",'RES S curve-disconnect'!BX217,'RES S curve-disconnect'!BX195))","v":-1884.0277621483483},{"$f":"IF(Control!$B58=\"L\",'RES S curve-disconnect'!BY239,IF(Control!$B58=\"M\",'RES S curve-disconnect'!BY217,'RES S curve-disconnect'!BY195))","v":-1881.3982567583871},{"$f":"IF(Control!$B58=\"L\",'RES S curve-disconnect'!BZ239,IF(Control!$B58=\"M\",'RES S curve-disconnect'!BZ217,'RES S curve-disconnect'!BZ195))","v":-1881.0358678613807},{"$f":"IF(Control!$B58=\"L\",'RES S curve-disconnect'!CA239,IF(Control!$B58=\"M\",'RES S curve-disconnect'!CA217,'RES S curve-disconnect'!CA195))","v":-1876.1519576571854},{"$f":"IF(Control!$B58=\"L\",'RES S curve-disconnect'!CB239,IF(Control!$B58=\"M\",'RES S curve-disconnect'!CB217,'RES S curve-disconnect'!CB195))","v":-1873.5351117248913},{"$f":"IF(Control!$B58=\"L\",'RES S curve-disconnect'!CC239,IF(Control!$B58=\"M\",'RES S curve-disconnect'!CC217,'RES S curve-disconnect'!CC195))","v":-1870.9224336643692},{"$f":"IF(Control!$B58=\"L\",'RES S curve-disconnect'!CD239,IF(Control!$B58=\"M\",'RES S curve-disconnect'!CD217,'RES S curve-disconnect'!CD195))","v":-1908.6581290623762}]
["Monash (C)",{"$f":"Customers!K153","v":65251},{"$f":"IF(Control!$B59=\"L\",'RES S curve-disconnect'!C240,IF(Control!$B59=\"M\",'RES S curve-disconnect'!C218,'RES S curve-disconnect'!C196))","v":-4858.5007874058956},{"$f":"IF(Control!$B59=\"L\",'RES S curve-disconnect'!D240,IF(Control!$B59=\"M\",'RES S curve-disconnect'!D218,'RES S curve-disconnect'!D196))","v":-5373.2688105187653},{"$f":"IF(Control!$B59=\"L\",'RES S curve-disconnect'!E240,IF(Control!$B59=\"M\",'RES S curve-disconnect'!E218,'RES S curve-disconnect'!E196))","v":-4660.3037393980831},{"$f":"IF(Control!$B59=\"L\",'RES S curve-disconnect'!F240,IF(Control!$B59=\"M\",'RES S curve-disconnect'!F218,'RES S curve-disconnect'!F196))","v":-4506.4241621697493},{"$f":"IF(Control!$B59=\"L\",'RES S curve-disconnect'!G240,IF(Control!$B59=\"M\",'RES S curve-disconnect'!G218,'RES S curve-disconnect'!G196))","v":-5709.4450714045042},{"$f":"IF(Control!$B59=\"L\",'RES S curve-disconnect'!H240,IF(Control!$B59=\"M\",'RES S curve-disconnect'!H218,'RES S curve-disconnect'!H196))","v":-5744.6899110794784},{"$f":"IF(Control!$B59=\"L\",'RES S curve-disconnect'!I240,IF(Control!$B59=\"M\",'RES S curve-disconnect'!I218,'RES S curve-disconnect'!I196))","v":-5308.8442410521984},{"$f":"IF(Control!$B59=\"L\",'RES S curve-disconnect'!J240,IF(Control!$B59=\"M\",'RES S curve-disconnect'!J218,'RES S curve-disconnect'!J196))","v":-5648.0698281938558},{"$f":"IF(Control!$B59=\"L\",'RES S curve-disconnect'!K240,IF(Control!$B59=\"M\",'RES S curve-disconnect'!K218,'RES S curve-disconnect'!K196))","v":-4826.5801158284003},{"$f":"IF(Control!$B59=\"L\",'RES S curve-disconnect'!L240,IF(Control!$B59=\"M\",'RES S curve-disconnect'!L218,'RES S curve-disconnect'!L196))","v":-5176.0947988401313},{"$f":"IF(Control!$B59=\"L\",'RES S curve-disconnect'!M240,IF(Control!$B59=\"M\",'RES S curve-disconnect'!M218,'RES S curve-disconnect'!M196))","v":-5811.123925581096},{"$f":"IF(Control!$B59=\"L\",'RES S curve-disconnect'!N240,IF(Control!$B59=\"M\",'RES S curve-disconnect'!N218,'RES S curve-disconnect'!N196))","v":-5868.8689704112639},{"$f":"IF(Control!$B59=\"L\",'RES S curve-disconnect'!O240,IF(Control!$B59=\"M\",'RES S curve-disconnect'!O218,'RES S curve-disconnect'!O196))","v":-5303.9391413912199},{"$f":"IF(Control!$B59=\"L\",'RES S curve-disconnect'!P240,IF(Control!$B59=\"M\",'RES S curve-disconnect'!P218,'RES S curve-disconnect'!P196))","v":-4853.7001941259978},{"$f":"IF(Control!$B59=\"L\",'RES S curve-disconnect'!Q240,IF(Control!$B59=\"M\",'RES S curve-disconnect'!Q218,'RES S curve-disconnect'!Q196))","v":-4174.5724531710057},{"$f":"IF(Control!$B59=\"L\",'RES S curve-disconnect'!R240,IF(Control!$B59=\"M\",'RES S curve-disconnect'!R218,'RES S curve-disconnect'!R196))","v":-3788.6521131074032},{"$f":"IF(Control!$B59=\"L\",'RES S curve-disconnect'!S240,IF(Control!$B59=\"M\",'RES S curve-disconnect'!S218,'RES S curve-disconnect'!S196))","v":-3176.1886251786132},{"$f":"IF(Control!$B59=\"L\",'RES S curve-disconnect'!T240,IF(Control!$B59=\"M\",'RES S curve-disconnect'!T218,'RES S curve-disconnect'!T196))","v":-2842.3384643091881},{"$f":"IF(Control!$B59=\"L\",'RES S curve-disconnect'!U240,IF(Control!$B59=\"M\",'RES S curve-disconnect'!U218,'RES S curve-disconnect'!U196))","v":-2461.3919548517738},{"$f":"IF(Control!$B59=\"L\",'RES S curve-disconnect'!V240,IF(Control!$B59=\"M\",'RES S curve-disconnect'!V218,'RES S curve-disconnect'!V196))","v":-2200.6544923146225},{"$f":"IF(Control!$B59=\"L\",'RES S curve-disconnect'!W240,IF(Control!$B59=\"M\",'RES S curve-disconnect'!W218,'RES S curve-disconnect'!W196))","v":-1997.0370019276033},{"$f":"IF(Control!$B59=\"L\",'RES S curve-disconnect'!X240,IF(Control!$B59=\"M\",'RES S curve-disconnect'!X218,'RES S curve-disconnect'!X196))","v":-1538.1701329315272},{"$f":"IF(Control!$B59=\"L\",'RES S curve-disconnect'!Y240,IF(Control!$B59=\"M\",'RES S curve-disconnect'!Y218,'RES S curve-disconnect'!Y196))","v":-1073.9237807435622},{"$f":"IF(Control!$B59=\"L\",'RES S curve-disconnect'!Z240,IF(Control!$B59=\"M\",'RES S curve-disconnect'!Z218,'RES S curve-disconnect'!Z196))","v":-759.04189706997749},{"$f":"IF(Control!$B59=\"L\",'RES S curve-disconnect'!AA240,IF(Control!$B59=\"M\",'RES S curve-disconnect'!AA218,'RES S curve-disconnect'!AA196))","v":-444.13172818307385},{"$f":"IF(Control!$B59=\"L\",'RES S curve-disconnect'!AB240,IF(Control!$B59=\"M\",'RES S curve-disconnect'!AB218,'RES S curve-disconnect'!AB196))","v":-192.38478076712428},{"$f":"IF(Control!$B59=\"L\",'RES S curve-disconnect'!AC240,IF(Control!$B59=\"M\",'RES S curve-disconnect'!AC218,'RES S curve-disconnect'!AC196))","v":50.221073779203664},{"$f":"IF(Control!$B59=\"L\",'RES S curve-disconnect'!AD240,IF(Control!$B59=\"M\",'RES S curve-disconnect'!AD218,'RES S curve-disconnect'!AD196))","v":272.90022526558073},{"$f":"IF(Control!$B59=\"L\",'RES S curve-disconnect'!AE240,IF(Control!$B59=\"M\",'RES S curve-disconnect'!AE218,'RES S curve-disconnect'!AE196))","v":506.8676031076111},{"$f":"IF(Control!$B59=\"L\",'RES S curve-disconnect'!AF240,IF(Control!$B59=\"M\",'RES S curve-disconnect'!AF218,'RES S curve-disconnect'!AF196))","v":809.05284875905772},{"$f":"IF(Control!$B59=\"L\",'RES S curve-disconnect'!AG240,IF(Control!$B59=\"M\",'RES S curve-disconnect'!AG218,'RES S curve-disconnect'!AG196))","v":1015.9312721390602},{"$f":"IF(Control!$B59=\"L\",'RES S curve-disconnect'!AH240,IF(Control!$B59=\"M\",'RES S curve-disconnect'!AH218,'RES S curve-disconnect'!AH196))","v":1307.0411702648812},{"$f":"IF(Control!$B59=\"L\",'RES S curve-disconnect'!AI240,IF(Control!$B59=\"M\",'RES S curve-disconnect'!AI218,'RES S curve-disconnect'!AI196))","v":1568.7221736581291},{"$f":"IF(Control!$B59=\"L\",'RES S curve-disconnect'!AJ240,IF(Control!$B59=\"M\",'RES S curve-disconnect'!AJ218,'RES S curve-disconnect'!AJ196))","v":1804.8856468867571},{"$f":"IF(Control!$B59=\"L\",'RES S curve-disconnect'!AK240,IF(Control!$B59=\"M\",'RES S curve-disconnect'!AK218,'RES S curve-disconnect'!AK196))","v":2055.6064895848904},{"$f":"IF(Control!$B59=\"L\",'RES S curve-disconnect'!AL240,IF(Control!$B59=\"M\",'RES S curve-disconnect'!AL218,'RES S curve-disconnect'!AL196))","v":1187.7176747971685},{"$f":"IF(Control!$B59=\"L\",'RES S curve-disconnect'!AM240,IF(Control!$B59=\"M\",'RES S curve-disconnect'!AM218,'RES S curve-disconnect'!AM196))","v":1074.0549931731334},{"$f":"IF(Control!$B59=\"L\",'RES S curve-disconnect'!AN240,IF(Control!$B59=\"M\",'RES S curve-disconnect'!AN218,'RES S curve-disconnect'!AN196))","v":1311.3404188080467},{"$f":"IF(Control!$B59=\"L\",'RES S curve-disconnect'!AO240,IF(Control!$B59=\"M\",'RES S curve-disconnect'!AO218,'RES S curve-disconnect'!AO196))","v":1601.6331874805721},{"$f":"IF(Control!$B59=\"L\",'RES S curve-disconnect'!AP240,IF(Control!$B59=\"M\",'RES S curve-disconnect'!AP218,'RES S curve-disconnect'!AP196))","v":1869.8632705616678},{"$f":"IF(Control!$B59=\"L\",'RES S curve-disconnect'!AQ240,IF(Control!$B59=\"M\",'RES S curve-disconnect'!AQ218,'RES S curve-disconnect'!AQ196))","v":2158.5962736347624},{"$f":"IF(Control!$B59=\"L\",'RES S curve-disconnect'!AR240,IF(Control!$B59=\"M\",'RES S curve-disconnect'!AR218,'RES S curve-disconnect'!AR196))","v":2475.6580360473026},{"$f":"IF(Control!$B59=\"L\",'RES S curve-disconnect'!AS240,IF(Control!$B59=\"M\",'RES S curve-disconnect'!AS218,'RES S curve-disconnect'!AS196))","v":2831.45638498274},{"$f":"IF(Control!$B59=\"L\",'RES S curve-disconnect'!AT240,IF(Control!$B59=\"M\",'RES S curve-disconnect'!AT218,'RES S curve-disconnect'!AT196))","v":3229.4863558921179},{"$f":"IF(Control!$B59=\"L\",'RES S curve-disconnect'!AU240,IF(Control!$B59=\"M\",'RES S curve-disconnect'!AU218,'RES S curve-disconnect'!AU196))","v":3689.9160014362569},{"$f":"IF(Control!$B59=\"L\",'RES S curve-disconnect'!AV240,IF(Control!$B59=\"M\",'RES S curve-disconnect'!AV218,'RES S curve-disconnect'!AV196))","v":4215.1747376407102},{"$f":"IF(Control!$B59=\"L\",'RES S curve-disconnect'!AW240,IF(Control!$B59=\"M\",'RES S curve-disconnect'!AW218,'RES S curve-disconnect'!AW196))","v":4818.9445384475321},{"$f":"IF(Control!$B59=\"L\",'RES S curve-disconnect'!AX240,IF(Control!$B59=\"M\",'RES S curve-disconnect'!AX218,'RES S curve-disconnect'!AX196))","v":5507.1400929524634},{"$f":"IF(Control!$B59=\"L\",'RES S curve-disconnect'!AY240,IF(Control!$B59=\"M\",'RES S curve-disconnect'!AY218,'RES S curve-disconnect'!AY196))","v":6301.1943832734732},{"$f":"IF(Control!$B59=\"L\",'RES S curve-disconnect'!AZ240,IF(Control!$B59=\"M\",'RES S curve-disconnect'!AZ218,'RES S curve-disconnect'!AZ196))","v":7209.0425371778301},{"$f":"IF(Control!$B59=\"L\",'RES S curve-disconnect'!BA240,IF(Control!$B59=\"M\",'RES S curve-disconnect'!BA218,'RES S curve-disconnect'!BA196))","v":8260.5014352554335},{"$f":"IF(Control!$B59=\"L\",'RES S curve-disconnect'!BB240,IF(Control!$B59=\"M\",'RES S curve-disconnect'!BB218,'RES S curve-disconnect'!BB196))","v":9489.0950996518877},{"$f":"IF(Control!$B59=\"L\",'RES S curve-disconnect'!BC240,IF(Control!$B59=\"M\",'RES S curve-disconnect'!BC218,'RES S curve-disconnect'!BC196))","v":10954.23604038516},{"$f":"IF(Control!$B59=\"L\",'RES S curve-disconnect'!BD240,IF(Control!$B59=\"M\",'RES S curve-disconnect'!BD218,'RES S curve-disconnect'!BD196))","v":12368.066934166869},{"$f":"IF(Control!$B59=\"L\",'RES S curve-disconnect'!BE240,IF(Control!$B59=\"M\",'RES S curve-disconnect'!BE218,'RES S curve-disconnect'!BE196))","v":13660.45999599598},{"$f":"IF(Control!$B59=\"L\",'RES S curve-disconnect'!BF240,IF(Control!$B59=\"M\",'RES S curve-disconnect'!BF218,'RES S curve-disconnect'!BF196))","v":14982.778568792872},{"$f":"IF(Control!$B59=\"L\",'RES S curve-disconnect'!BG240,IF(Control!$B59=\"M\",'RES S curve-disconnect'!BG218,'RES S curve-disconnect'!BG196))","v":16479.185756194402},{"$f":"IF(Control!$B59=\"L\",'RES S curve-disconnect'!BH240,IF(Control!$B59=\"M\",'RES S curve-disconnect'!BH218,'RES S curve-disconnect'!BH196))","v":18255.600139742222},{"$f":"IF(Control!$B59=\"L\",'RES S curve-disconnect'!BI240,IF(Control!$B59=\"M\",'RES S curve-disconnect'!BI218,'RES S curve-disconnect'!BI196))","v":20829.521398623365},{"$f":"IF(Control!$B59=\"L\",'RES S curve-disconnect'!BJ240,IF(Control!$B59=\"M\",'RES S curve-disconnect'!BJ218,'RES S curve-disconnect'!BJ196))","v":24599.663792662228},{"$f":"IF(Control!$B59=\"L\",'RES S curve-disconnect'!BK240,IF(Control!$B59=\"M\",'RES S curve-disconnect'!BK218,'RES S curve-disconnect'!BK196))","v":30164.362089713821},{"$f":"IF(Control!$B59=\"L\",'RES S curve-disconnect'!BL240,IF(Control!$B59=\"M\",'RES S curve-disconnect'!BL218,'RES S curve-disconnect'!BL196))","v":-1987.3754802765568},{"$f":"IF(Control!$B59=\"L\",'RES S curve-disconnect'!BM240,IF(Control!$B59=\"M\",'RES S curve-disconnect'!BM218,'RES S curve-disconnect'!BM196))","v":-1980.3251591933413},{"$f":"IF(Control!$B59=\"L\",'RES S curve-disconnect'!BN240,IF(Control!$B59=\"M\",'RES S curve-disconnect'!BN218,'RES S curve-disconnect'!BN196))","v":-1976.6250939007482},{"$f":"IF(Control!$B59=\"L\",'RES S curve-disconnect'!BO240,IF(Control!$B59=\"M\",'RES S curve-disconnect'!BO218,'RES S curve-disconnect'!BO196))","v":-1966.2539655590706},{"$f":"IF(Control!$B59=\"L\",'RES S curve-disconnect'!BP240,IF(Control!$B59=\"M\",'RES S curve-disconnect'!BP218,'RES S curve-disconnect'!BP196))","v":-1959.2329748007835},{"$f":"IF(Control!$B59=\"L\",'RES S curve-disconnect'!BQ240,IF(Control!$B59=\"M\",'RES S curve-disconnect'!BQ218,'RES S curve-disconnect'!BQ196))","v":-1952.2216432226169},{"$f":"IF(Control!$B59=\"L\",'RES S curve-disconnect'!BR240,IF(Control!$B59=\"M\",'RES S curve-disconnect'!BR218,'RES S curve-disconnect'!BR196))","v":-1948.5603324866006},{"$f":"IF(Control!$B59=\"L\",'RES S curve-disconnect'!BS240,IF(Control!$B59=\"M\",'RES S curve-disconnect'!BS218,'RES S curve-disconnect'!BS196))","v":-1938.2277252144065},{"$f":"IF(Control!$B59=\"L\",'RES S curve-disconnect'!BT240,IF(Control!$B59=\"M\",'RES S curve-disconnect'!BT218,'RES S curve-disconnect'!BT196))","v":-1931.2450234906535},{"$f":"IF(Control!$B59=\"L\",'RES S curve-disconnect'!BU240,IF(Control!$B59=\"M\",'RES S curve-disconnect'!BU218,'RES S curve-disconnect'!BU196))","v":-1924.2717503550441},{"$f":"IF(Control!$B59=\"L\",'RES S curve-disconnect'!BV240,IF(Control!$B59=\"M\",'RES S curve-disconnect'!BV218,'RES S curve-disconnect'!BV196))","v":-1920.6482689034713},{"$f":"IF(Control!$B59=\"L\",'RES S curve-disconnect'!BW240,IF(Control!$B59=\"M\",'RES S curve-disconnect'!BW218,'RES S curve-disconnect'!BW196))","v":-1910.3532631824098},{"$f":"IF(Control!$B59=\"L\",'RES S curve-disconnect'!BX240,IF(Control!$B59=\"M\",'RES S curve-disconnect'!BX218,'RES S curve-disconnect'!BX196))","v":-1903.4079366922888},{"$f":"IF(Control!$B59=\"L\",'RES S curve-disconnect'!BY240,IF(Control!$B59=\"M\",'RES S curve-disconnect'!BY218,'RES S curve-disconnect'!BY196))","v":-1896.47181387968},{"$f":"IF(Control!$B59=\"L\",'RES S curve-disconnect'!BZ240,IF(Control!$B59=\"M\",'RES S curve-disconnect'!BZ218,'RES S curve-disconnect'!BZ196))","v":-1892.8852592384592},{"$f":"IF(Control!$B59=\"L\",'RES S curve-disconnect'!CA240,IF(Control!$B59=\"M\",'RES S curve-disconnect'!CA218,'RES S curve-disconnect'!CA196))","v":-1882.6269582042592},{"$f":"IF(Control!$B59=\"L\",'RES S curve-disconnect'!CB240,IF(Control!$B59=\"M\",'RES S curve-disconnect'!CB218,'RES S curve-disconnect'!CB196))","v":-1875.7181156578949},{"$f":"IF(Control!$B59=\"L\",'RES S curve-disconnect'!CC240,IF(Control!$B59=\"M\",'RES S curve-disconnect'!CC218,'RES S curve-disconnect'!CC196))","v":-1868.8182574176112},{"$f":"IF(Control!$B59=\"L\",'RES S curve-disconnect'!CD240,IF(Control!$B59=\"M\",'RES S curve-disconnect'!CD218,'RES S curve-disconnect'!CD196))","v":-1974.0301418099475}]
["Nillumbik (S)",{"$f":"Customers!K154","v":8},{"$f":"IF(Control!$B60=\"L\",'RES S curve-disconnect'!C241,IF(Control!$B60=\"M\",'RES S curve-disconnect'!C219,'RES S curve-disconnect'!C197))","v":-4446.4624526331818},{"$f":"IF(Control!$B60=\"L\",'RES S curve-disconnect'!D241,IF(Control!$B60=\"M\",'RES S curve-disconnect'!D219,'RES S curve-disconnect'!D197))","v":-5080.9796378911087},{"$f":"IF(Control!$B60=\"L\",'RES S curve-disconnect'!E241,IF(Control!$B60=\"M\",'RES S curve-disconnect'!E219,'RES S curve-disconnect'!E197))","v":-4474.4707576922756},{"$f":"IF(Control!$B60=\"L\",'RES S curve-disconnect'!F241,IF(Control!$B60=\"M\",'RES S curve-disconnect'!F219,'RES S curve-disconnect'!F197))","v":-4283.1041056219692},{"$f":"IF(Control!$B60=\"L\",'RES S curve-disconnect'!G241,IF(Control!$B60=\"M\",'RES S curve-disconnect'!G219,'RES S curve-disconnect'!G197))","v":-5700.5121491385717},{"$f":"IF(Control!$B60=\"L\",'RES S curve-disconnect'!H241,IF(Control!$B60=\"M\",'RES S curve-disconnect'!H219,'RES S curve-disconnect'!H197))","v":-5732.3840117826849},{"$f":"IF(Control!$B60=\"L\",'RES S curve-disconnect'!I241,IF(Control!$B60=\"M\",'RES S curve-disconnect'!I219,'RES S curve-disconnect'!I197))","v":-5179.8351166000248},{"$f":"IF(Control!$B60=\"L\",'RES S curve-disconnect'!J241,IF(Control!$B60=\"M\",'RES S curve-disconnect'!J219,'RES S curve-disconnect'!J197))","v":-5444.1368811525499},{"$f":"IF(Control!$B60=\"L\",'RES S curve-disconnect'!K241,IF(Control!$B60=\"M\",'RES S curve-disconnect'!K219,'RES S curve-disconnect'!K197))","v":-4467.7822352463518},{"$f":"IF(Control!$B60=\"L\",'RES S curve-disconnect'!L241,IF(Control!$B60=\"M\",'RES S curve-disconnect'!L219,'RES S curve-disconnect'!L197))","v":-4913.72527268666},{"$f":"IF(Control!$B60=\"L\",'RES S curve-disconnect'!M241,IF(Control!$B60=\"M\",'RES S curve-disconnect'!M219,'RES S curve-disconnect'!M197))","v":-5746.5750669151339},{"$f":"IF(Control!$B60=\"L\",'RES S curve-disconnect'!N241,IF(Control!$B60=\"M\",'RES S curve-disconnect'!N219,'RES S curve-disconnect'!N197))","v":-5835.1629189426194},{"$f":"IF(Control!$B60=\"L\",'RES S curve-disconnect'!O241,IF(Control!$B60=\"M\",'RES S curve-disconnect'!O219,'RES S curve-disconnect'!O197))","v":-5136.2649614630072},{"$f":"IF(Control!$B60=\"L\",'RES S curve-disconnect'!P241,IF(Control!$B60=\"M\",'RES S curve-disconnect'!P219,'RES S curve-disconnect'!P197))","v":-4578.8852345159457},{"$f":"IF(Control!$B60=\"L\",'RES S curve-disconnect'!Q241,IF(Control!$B60=\"M\",'RES S curve-disconnect'!Q219,'RES S curve-disconnect'!Q197))","v":-3730.8921741666345},{"$f":"IF(Control!$B60=\"L\",'RES S curve-disconnect'!R241,IF(Control!$B60=\"M\",'RES S curve-disconnect'!R219,'RES S curve-disconnect'!R197))","v":-3254.7154789672054},{"$f":"IF(Control!$B60=\"L\",'RES S curve-disconnect'!S241,IF(Control!$B60=\"M\",'RES S curve-disconnect'!S219,'RES S curve-disconnect'!S197))","v":-2491.7595487256449},{"$f":"IF(Control!$B60=\"L\",'RES S curve-disconnect'!T241,IF(Control!$B60=\"M\",'RES S curve-disconnect'!T219,'RES S curve-disconnect'!T197))","v":-2080.2066186145889},{"$f":"IF(Control!$B60=\"L\",'RES S curve-disconnect'!U241,IF(Control!$B60=\"M\",'RES S curve-disconnect'!U219,'RES S curve-disconnect'!U197))","v":-1611.0165249425929},{"$f":"IF(Control!$B60=\"L\",'RES S curve-disconnect'!V241,IF(Control!$B60=\"M\",'RES S curve-disconnect'!V219,'RES S curve-disconnect'!V197))","v":-1296.4280472248392},{"$f":"IF(Control!$B60=\"L\",'RES S curve-disconnect'!W241,IF(Control!$B60=\"M\",'RES S curve-disconnect'!W219,'RES S curve-disconnect'!W197))","v":-1052.246619667392},{"$f":"IF(Control!$B60=\"L\",'RES S curve-disconnect'!X241,IF(Control!$B60=\"M\",'RES S curve-disconnect'!X219,'RES S curve-disconnect'!X197))","v":-481.31744152967474},{"$f":"IF(Control!$B60=\"L\",'RES S curve-disconnect'!Y241,IF(Control!$B60=\"M\",'RES S curve-disconnect'!Y219,'RES S curve-disconnect'!Y197))","v":96.107891599761672},{"$f":"IF(Control!$B60=\"L\",'RES S curve-disconnect'!Z241,IF(Control!$B60=\"M\",'RES S curve-disconnect'!Z219,'RES S curve-disconnect'!Z197))","v":482.68201474551819},{"$f":"IF(Control!$B60=\"L\",'RES S curve-disconnect'!AA241,IF(Control!$B60=\"M\",'RES S curve-disconnect'!AA219,'RES S curve-disconnect'!AA197))","v":868.88543153328135},{"$f":"IF(Control!$B60=\"L\",'RES S curve-disconnect'!AB241,IF(Control!$B60=\"M\",'RES S curve-disconnect'!AB219,'RES S curve-disconnect'!AB197))","v":1176.1766341342163},{"$f":"IF(Control!$B60=\"L\",'RES S curve-disconnect'!AC241,IF(Control!$B60=\"M\",'RES S curve-disconnect'!AC219,'RES S curve-disconnect'!AC197))","v":1471.6446591988777},{"$f":"IF(Control!$B60=\"L\",'RES S curve-disconnect'!AD241,IF(Control!$B60=\"M\",'RES S curve-disconnect'!AD219,'RES S curve-disconnect'!AD197))","v":1741.832956382877},{"$f":"IF(Control!$B60=\"L\",'RES S curve-disconnect'!AE241,IF(Control!$B60=\"M\",'RES S curve-disconnect'!AE219,'RES S curve-disconnect'!AE197))","v":2025.8711809106401},{"$f":"IF(Control!$B60=\"L\",'RES S curve-disconnect'!AF241,IF(Control!$B60=\"M\",'RES S curve-disconnect'!AF219,'RES S curve-disconnect'!AF197))","v":2397.3785971019333},{"$f":"IF(Control!$B60=\"L\",'RES S curve-disconnect'!AG241,IF(Control!$B60=\"M\",'RES S curve-disconnect'!AG219,'RES S curve-disconnect'!AG197))","v":2660.1961949758552},{"$f":"IF(Control!$B60=\"L\",'RES S curve-disconnect'!AH241,IF(Control!$B60=\"M\",'RES S curve-disconnect'!AH219,'RES S curve-disconnect'!AH197))","v":3031.2887102068926},{"$f":"IF(Control!$B60=\"L\",'RES S curve-disconnect'!AI241,IF(Control!$B60=\"M\",'RES S curve-disconnect'!AI219,'RES S curve-disconnect'!AI197))","v":3363.767542004297},{"$f":"IF(Control!$B60=\"L\",'RES S curve-disconnect'!AJ241,IF(Control!$B60=\"M\",'RES S curve-disconnect'!AJ219,'RES S curve-disconnect'!AJ197))","v":3664.0323533892538},{"$f":"IF(Control!$B60=\"L\",'RES S curve-disconnect'!AK241,IF(Control!$B60=\"M\",'RES S curve-disconnect'!AK219,'RES S curve-disconnect'!AK197))","v":3982.7806155511435},{"$f":"IF(Control!$B60=\"L\",'RES S curve-disconnect'!AL241,IF(Control!$B60=\"M\",'RES S curve-disconnect'!AL219,'RES S curve-disconnect'!AL197))","v":2881.4589324427043},{"$f":"IF(Control!$B60=\"L\",'RES S curve-disconnect'!AM241,IF(Control!$B60=\"M\",'RES S curve-disconnect'!AM219,'RES S curve-disconnect'!AM197))","v":2735.4311350840217},{"$f":"IF(Control!$B60=\"L\",'RES S curve-disconnect'!AN241,IF(Control!$B60=\"M\",'RES S curve-disconnect'!AN219,'RES S curve-disconnect'!AN197))","v":3036.2548020289446},{"$f":"IF(Control!$B60=\"L\",'RES S curve-disconnect'!AO241,IF(Control!$B60=\"M\",'RES S curve-disconnect'!AO219,'RES S curve-disconnect'!AO197))","v":3405.1137781364987},{"$f":"IF(Control!$B60=\"L\",'RES S curve-disconnect'!AP241,IF(Control!$B60=\"M\",'RES S curve-disconnect'!AP219,'RES S curve-disconnect'!AP197))","v":3746.3947574263166},{"$f":"IF(Control!$B60=\"L\",'RES S curve-disconnect'!AQ241,IF(Control!$B60=\"M\",'RES S curve-disconnect'!AQ219,'RES S curve-disconnect'!AQ197))","v":4113.3018926428158},{"$f":"IF(Control!$B60=\"L\",'RES S curve-disconnect'!AR241,IF(Control!$B60=\"M\",'RES S curve-disconnect'!AR219,'RES S curve-disconnect'!AR197))","v":4516.5042728813905},{"$f":"IF(Control!$B60=\"L\",'RES S curve-disconnect'!AS241,IF(Control!$B60=\"M\",'RES S curve-disconnect'!AS219,'RES S curve-disconnect'!AS197))","v":4969.062305750931},{"$f":"IF(Control!$B60=\"L\",'RES S curve-disconnect'!AT241,IF(Control!$B60=\"M\",'RES S curve-disconnect'!AT219,'RES S curve-disconnect'!AT197))","v":5475.6794007726621},{"$f":"IF(Control!$B60=\"L\",'RES S curve-disconnect'!AU241,IF(Control!$B60=\"M\",'RES S curve-disconnect'!AU219,'RES S curve-disconnect'!AU197))","v":6061.3614567739223},{"$f":"IF(Control!$B60=\"L\",'RES S curve-disconnect'!AV241,IF(Control!$B60=\"M\",'RES S curve-disconnect'!AV219,'RES S curve-disconnect'!AV197))","v":6729.9309754285496},{"$f":"IF(Control!$B60=\"L\",'RES S curve-disconnect'!AW241,IF(Control!$B60=\"M\",'RES S curve-disconnect'!AW219,'RES S curve-disconnect'!AW197))","v":7498.646820678282},{"$f":"IF(Control!$B60=\"L\",'RES S curve-disconnect'!AX241,IF(Control!$B60=\"M\",'RES S curve-disconnect'!AX219,'RES S curve-disconnect'!AX197))","v":8375.3600901255086},{"$f":"IF(Control!$B60=\"L\",'RES S curve-disconnect'!AY241,IF(Control!$B60=\"M\",'RES S curve-disconnect'!AY219,'RES S curve-disconnect'!AY197))","v":9386.7652015562835},{"$f":"IF(Control!$B60=\"L\",'RES S curve-disconnect'!AZ241,IF(Control!$B60=\"M\",'RES S curve-disconnect'!AZ219,'RES S curve-disconnect'!AZ197))","v":10543.772446482351},{"$f":"IF(Control!$B60=\"L\",'RES S curve-disconnect'!BA241,IF(Control!$B60=\"M\",'RES S curve-disconnect'!BA219,'RES S curve-disconnect'!BA197))","v":11884.267019378593},{"$f":"IF(Control!$B60=\"L\",'RES S curve-disconnect'!BB241,IF(Control!$B60=\"M\",'RES S curve-disconnect'!BB219,'RES S curve-disconnect'!BB197))","v":13451.387357723148},{"$f":"IF(Control!$B60=\"L\",'RES S curve-disconnect'!BC241,IF(Control!$B60=\"M\",'RES S curve-disconnect'!BC219,'RES S curve-disconnect'!BC197))","v":15320.405828642597},{"$f":"IF(Control!$B60=\"L\",'RES S curve-disconnect'!BD241,IF(Control!$B60=\"M\",'RES S curve-disconnect'!BD219,'RES S curve-disconnect'!BD197))","v":17125.948831281079},{"$f":"IF(Control!$B60=\"L\",'RES S curve-disconnect'!BE241,IF(Control!$B60=\"M\",'RES S curve-disconnect'!BE219,'RES S curve-disconnect'!BE197))","v":18777.058370262796},{"$f":"IF(Control!$B60=\"L\",'RES S curve-disconnect'!BF241,IF(Control!$B60=\"M\",'RES S curve-disconnect'!BF219,'RES S curve-disconnect'!BF197))","v":20466.208292307543},{"$f":"IF(Control!$B60=\"L\",'RES S curve-disconnect'!BG241,IF(Control!$B60=\"M\",'RES S curve-disconnect'!BG219,'RES S curve-disconnect'!BG197))","v":22377.016822344878},{"$f":"IF(Control!$B60=\"L\",'RES S curve-disconnect'!BH241,IF(Control!$B60=\"M\",'RES S curve-disconnect'!BH219,'RES S curve-disconnect'!BH197))","v":24645.853516222614},{"$f":"IF(Control!$B60=\"L\",'RES S curve-disconnect'!BI241,IF(Control!$B60=\"M\",'RES S curve-disconnect'!BI219,'RES S curve-disconnect'!BI197))","v":27932.874408539923},{"$f":"IF(Control!$B60=\"L\",'RES S curve-disconnect'!BJ241,IF(Control!$B60=\"M\",'RES S curve-disconnect'!BJ219,'RES S curve-disconnect'!BJ197))","v":32749.893902514192},{"$f":"IF(Control!$B60=\"L\",'RES S curve-disconnect'!BK241,IF(Control!$B60=\"M\",'RES S curve-disconnect'!BK219,'RES S curve-disconnect'!BK197))","v":39863.227724293916},{"$f":"IF(Control!$B60=\"L\",'RES S curve-disconnect'!BL241,IF(Control!$B60=\"M\",'RES S curve-disconnect'!BL219,'RES S curve-disconnect'!BL197))","v":-1154.1595881558035},{"$f":"IF(Control!$B60=\"L\",'RES S curve-disconnect'!BM241,IF(Control!$B60=\"M\",'RES S curve-disconnect'!BM219,'RES S curve-disconnect'!BM197))","v":-1145.3330739069083},{"$f":"IF(Control!$B60=\"L\",'RES S curve-disconnect'!BN241,IF(Control!$B60=\"M\",'RES S curve-disconnect'!BN219,'RES S curve-disconnect'!BN197))","v":-1140.5399540555036},{"$f":"IF(Control!$B60=\"L\",'RES S curve-disconnect'!BO241,IF(Control!$B60=\"M\",'RES S curve-disconnect'!BO219,'RES S curve-disconnect'!BO197))","v":-1127.7135382848853},{"$f":"IF(Control!$B60=\"L\",'RES S curve-disconnect'!BP241,IF(Control!$B60=\"M\",'RES S curve-disconnect'!BP219,'RES S curve-disconnect'!BP197))","v":-1118.9203841846286},{"$f":"IF(Control!$B60=\"L\",'RES S curve-disconnect'!BQ241,IF(Control!$B60=\"M\",'RES S curve-disconnect'!BQ219,'RES S curve-disconnect'!BQ197))","v":-1110.1382180899896},{"$f":"IF(Control!$B60=\"L\",'RES S curve-disconnect'!BR241,IF(Control!$B60=\"M\",'RES S curve-disconnect'!BR219,'RES S curve-disconnect'!BR197))","v":-1105.3891825741302},{"$f":"IF(Control!$B60=\"L\",'RES S curve-disconnect'!BS241,IF(Control!$B60=\"M\",'RES S curve-disconnect'!BS219,'RES S curve-disconnect'!BS197))","v":-1092.6065889507631},{"$f":"IF(Control!$B60=\"L\",'RES S curve-disconnect'!BT241,IF(Control!$B60=\"M\",'RES S curve-disconnect'!BT219,'RES S curve-disconnect'!BT197))","v":-1083.8569964296087},{"$f":"IF(Control!$B60=\"L\",'RES S curve-disconnect'!BU241,IF(Control!$B60=\"M\",'RES S curve-disconnect'!BU219,'RES S curve-disconnect'!BU197))","v":-1075.1181329558631},{"$f":"IF(Control!$B60=\"L\",'RES S curve-disconnect'!BV241,IF(Control!$B60=\"M\",'RES S curve-disconnect'!BV219,'RES S curve-disconnect'!BV197))","v":-1070.4121427025011},{"$f":"IF(Control!$B60=\"L\",'RES S curve-disconnect'!BW241,IF(Control!$B60=\"M\",'RES S curve-disconnect'!BW219,'RES S curve-disconnect'!BW197))","v":-1057.6723385729695},{"$f":"IF(Control!$B60=\"L\",'RES S curve-disconnect'!BX241,IF(Control!$B60=\"M\",'RES S curve-disconnect'!BX219,'RES S curve-disconnect'!BX197))","v":-1048.9652813567166},{"$f":"IF(Control!$B60=\"L\",'RES S curve-disconnect'!BY241,IF(Control!$B60=\"M\",'RES S curve-disconnect'!BY219,'RES S curve-disconnect'!BY197))","v":-1040.2687005687258},{"$f":"IF(Control!$B60=\"L\",'RES S curve-disconnect'!BZ241,IF(Control!$B60=\"M\",'RES S curve-disconnect'!BZ219,'RES S curve-disconnect'!BZ197))","v":-1035.6047419418742},{"$f":"IF(Control!$B60=\"L\",'RES S curve-disconnect'!CA241,IF(Control!$B60=\"M\",'RES S curve-disconnect'!CA219,'RES S curve-disconnect'!CA197))","v":-1022.9067199296896},{"$f":"IF(Control!$B60=\"L\",'RES S curve-disconnect'!CB241,IF(Control!$B60=\"M\",'RES S curve-disconnect'!CB219,'RES S curve-disconnect'!CB197))","v":-1014.2411968619507},{"$f":"IF(Control!$B60=\"L\",'RES S curve-disconnect'!CC241,IF(Control!$B60=\"M\",'RES S curve-disconnect'!CC219,'RES S curve-disconnect'!CC197))","v":-1005.5859037842755},{"$f":"IF(Control!$B60=\"L\",'RES S curve-disconnect'!CD241,IF(Control!$B60=\"M\",'RES S curve-disconnect'!CD219,'RES S curve-disconnect'!CD197))","v":-1140.5010187645662}]
["Port Phillip (C)",{"$f":"Customers!K155","v":37768},{"$f":"IF(Control!$B61=\"L\",'RES S curve-disconnect'!C242,IF(Control!$B61=\"M\",'RES S curve-disconnect'!C220,'RES S curve-disconnect'!C198))","v":-2932.3191936297771},{"$f":"IF(Control!$B61=\"L\",'RES S curve-disconnect'!D242,IF(Control!$B61=\"M\",'RES S curve-disconnect'!D220,'RES S curve-disconnect'!D198))","v":-3341.777210260288},{"$f":"IF(Control!$B61=\"L\",'RES S curve-disconnect'!E242,IF(Control!$B61=\"M\",'RES S curve-disconnect'!E220,'RES S curve-disconnect'!E198))","v":-3044.6474243204375},{"$f":"IF(Control!$B61=\"L\",'RES S curve-disconnect'!F242,IF(Control!$B61=\"M\",'RES S curve-disconnect'!F220,'RES S curve-disconnect'!F198))","v":-2934.8814172259936},{"$f":"IF(Control!$B61=\"L\",'RES S curve-disconnect'!G242,IF(Control!$B61=\"M\",'RES S curve-disconnect'!G220,'RES S curve-disconnect'!G198))","v":-3588.6179074625834},{"$f":"IF(Control!$B61=\"L\",'RES S curve-disconnect'!H242,IF(Control!$B61=\"M\",'RES S curve-disconnect'!H220,'RES S curve-disconnect'!H198))","v":-3622.5661750696286},{"$f":"IF(Control!$B61=\"L\",'RES S curve-disconnect'!I242,IF(Control!$B61=\"M\",'RES S curve-disconnect'!I220,'RES S curve-disconnect'!I198))","v":-3296.0113193435309},{"$f":"IF(Control!$B61=\"L\",'RES S curve-disconnect'!J242,IF(Control!$B61=\"M\",'RES S curve-disconnect'!J220,'RES S curve-disconnect'!J198))","v":-3585.1128237701505},{"$f":"IF(Control!$B61=\"L\",'RES S curve-disconnect'!K242,IF(Control!$B61=\"M\",'RES S curve-disconnect'!K220,'RES S curve-disconnect'!K198))","v":-2982.8049237292589},{"$f":"IF(Control!$B61=\"L\",'RES S curve-disconnect'!L242,IF(Control!$B61=\"M\",'RES S curve-disconnect'!L220,'RES S curve-disconnect'!L198))","v":-3266.0212809641325},{"$f":"IF(Control!$B61=\"L\",'RES S curve-disconnect'!M242,IF(Control!$B61=\"M\",'RES S curve-disconnect'!M220,'RES S curve-disconnect'!M198))","v":-3728.4436999987629},{"$f":"IF(Control!$B61=\"L\",'RES S curve-disconnect'!N242,IF(Control!$B61=\"M\",'RES S curve-disconnect'!N220,'RES S curve-disconnect'!N198))","v":-3777.5133156795314},{"$f":"IF(Control!$B61=\"L\",'RES S curve-disconnect'!O242,IF(Control!$B61=\"M\",'RES S curve-disconnect'!O220,'RES S curve-disconnect'!O198))","v":-3345.9962392561429},{"$f":"IF(Control!$B61=\"L\",'RES S curve-disconnect'!P242,IF(Control!$B61=\"M\",'RES S curve-disconnect'!P220,'RES S curve-disconnect'!P198))","v":-3008.9212831621958},{"$f":"IF(Control!$B61=\"L\",'RES S curve-disconnect'!Q242,IF(Control!$B61=\"M\",'RES S curve-disconnect'!Q220,'RES S curve-disconnect'!Q198))","v":-2497.5156736818326},{"$f":"IF(Control!$B61=\"L\",'RES S curve-disconnect'!R242,IF(Control!$B61=\"M\",'RES S curve-disconnect'!R220,'RES S curve-disconnect'!R198))","v":-2210.3906635572885},{"$f":"IF(Control!$B61=\"L\",'RES S curve-disconnect'!S242,IF(Control!$B61=\"M\",'RES S curve-disconnect'!S220,'RES S curve-disconnect'!S198))","v":-1740.7751822758232},{"$f":"IF(Control!$B61=\"L\",'RES S curve-disconnect'!T242,IF(Control!$B61=\"M\",'RES S curve-disconnect'!T220,'RES S curve-disconnect'!T198))","v":-1509.3799939963119},{"$f":"IF(Control!$B61=\"L\",'RES S curve-disconnect'!U242,IF(Control!$B61=\"M\",'RES S curve-disconnect'!U220,'RES S curve-disconnect'!U198))","v":-1229.2532874850724},{"$f":"IF(Control!$B61=\"L\",'RES S curve-disconnect'!V242,IF(Control!$B61=\"M\",'RES S curve-disconnect'!V220,'RES S curve-disconnect'!V198))","v":-1034.3971466925934},{"$f":"IF(Control!$B61=\"L\",'RES S curve-disconnect'!W242,IF(Control!$B61=\"M\",'RES S curve-disconnect'!W220,'RES S curve-disconnect'!W198))","v":-883.33779493672023},{"$f":"IF(Control!$B61=\"L\",'RES S curve-disconnect'!X242,IF(Control!$B61=\"M\",'RES S curve-disconnect'!X220,'RES S curve-disconnect'!X198))","v":-546.11161092880161},{"$f":"IF(Control!$B61=\"L\",'RES S curve-disconnect'!Y242,IF(Control!$B61=\"M\",'RES S curve-disconnect'!Y220,'RES S curve-disconnect'!Y198))","v":-202.55439048034151},{"$f":"IF(Control!$B61=\"L\",'RES S curve-disconnect'!Z242,IF(Control!$B61=\"M\",'RES S curve-disconnect'!Z220,'RES S curve-disconnect'!Z198))","v":29.945692236589537},{"$f":"IF(Control!$B61=\"L\",'RES S curve-disconnect'!AA242,IF(Control!$B61=\"M\",'RES S curve-disconnect'!AA220,'RES S curve-disconnect'!AA198))","v":265.11220829204996},{"$f":"IF(Control!$B61=\"L\",'RES S curve-disconnect'!AB242,IF(Control!$B61=\"M\",'RES S curve-disconnect'!AB220,'RES S curve-disconnect'!AB198))","v":453.25691324143196},{"$f":"IF(Control!$B61=\"L\",'RES S curve-disconnect'!AC242,IF(Control!$B61=\"M\",'RES S curve-disconnect'!AC220,'RES S curve-disconnect'!AC198))","v":636.09154052741633},{"$f":"IF(Control!$B61=\"L\",'RES S curve-disconnect'!AD242,IF(Control!$B61=\"M\",'RES S curve-disconnect'!AD220,'RES S curve-disconnect'!AD198))","v":803.57163771791647},{"$f":"IF(Control!$B61=\"L\",'RES S curve-disconnect'!AE242,IF(Control!$B61=\"M\",'RES S curve-disconnect'!AE220,'RES S curve-disconnect'!AE198))","v":983.52591646999724},{"$f":"IF(Control!$B61=\"L\",'RES S curve-disconnect'!AF242,IF(Control!$B61=\"M\",'RES S curve-disconnect'!AF220,'RES S curve-disconnect'!AF198))","v":1212.9324439190532},{"$f":"IF(Control!$B61=\"L\",'RES S curve-disconnect'!AG242,IF(Control!$B61=\"M\",'RES S curve-disconnect'!AG220,'RES S curve-disconnect'!AG198))","v":1375.0672019441197},{"$f":"IF(Control!$B61=\"L\",'RES S curve-disconnect'!AH242,IF(Control!$B61=\"M\",'RES S curve-disconnect'!AH220,'RES S curve-disconnect'!AH198))","v":1595.8127876661288},{"$f":"IF(Control!$B61=\"L\",'RES S curve-disconnect'!AI242,IF(Control!$B61=\"M\",'RES S curve-disconnect'!AI220,'RES S curve-disconnect'!AI198))","v":1800.9951650811686},{"$f":"IF(Control!$B61=\"L\",'RES S curve-disconnect'!AJ242,IF(Control!$B61=\"M\",'RES S curve-disconnect'!AJ220,'RES S curve-disconnect'!AJ198))","v":1984.7619119300898},{"$f":"IF(Control!$B61=\"L\",'RES S curve-disconnect'!AK242,IF(Control!$B61=\"M\",'RES S curve-disconnect'!AK220,'RES S curve-disconnect'!AK198))","v":2180.0978213070875},{"$f":"IF(Control!$B61=\"L\",'RES S curve-disconnect'!AL242,IF(Control!$B61=\"M\",'RES S curve-disconnect'!AL220,'RES S curve-disconnect'!AL198))","v":1485.6904104998066},{"$f":"IF(Control!$B61=\"L\",'RES S curve-disconnect'!AM242,IF(Control!$B61=\"M\",'RES S curve-disconnect'!AM220,'RES S curve-disconnect'!AM198))","v":1404.9139174351662},{"$f":"IF(Control!$B61=\"L\",'RES S curve-disconnect'!AN242,IF(Control!$B61=\"M\",'RES S curve-disconnect'!AN220,'RES S curve-disconnect'!AN198))","v":1595.0154990862543},{"$f":"IF(Control!$B61=\"L\",'RES S curve-disconnect'!AO242,IF(Control!$B61=\"M\",'RES S curve-disconnect'!AO220,'RES S curve-disconnect'!AO198))","v":1822.6459177901818},{"$f":"IF(Control!$B61=\"L\",'RES S curve-disconnect'!AP242,IF(Control!$B61=\"M\",'RES S curve-disconnect'!AP220,'RES S curve-disconnect'!AP198))","v":2030.0452227496908},{"$f":"IF(Control!$B61=\"L\",'RES S curve-disconnect'!AQ242,IF(Control!$B61=\"M\",'RES S curve-disconnect'!AQ220,'RES S curve-disconnect'!AQ198))","v":2256.2745795084707},{"$f":"IF(Control!$B61=\"L\",'RES S curve-disconnect'!AR242,IF(Control!$B61=\"M\",'RES S curve-disconnect'!AR220,'RES S curve-disconnect'!AR198))","v":2502.9699311188783},{"$f":"IF(Control!$B61=\"L\",'RES S curve-disconnect'!AS242,IF(Control!$B61=\"M\",'RES S curve-disconnect'!AS220,'RES S curve-disconnect'!AS198))","v":2779.3614350543667},{"$f":"IF(Control!$B61=\"L\",'RES S curve-disconnect'!AT242,IF(Control!$B61=\"M\",'RES S curve-disconnect'!AT220,'RES S curve-disconnect'!AT198))","v":3086.5635844375515},{"$f":"IF(Control!$B61=\"L\",'RES S curve-disconnect'!AU242,IF(Control!$B61=\"M\",'RES S curve-disconnect'!AU220,'RES S curve-disconnect'!AU198))","v":3444.3515156400117},{"$f":"IF(Control!$B61=\"L\",'RES S curve-disconnect'!AV242,IF(Control!$B61=\"M\",'RES S curve-disconnect'!AV220,'RES S curve-disconnect'!AV198))","v":3850.0428887775856},{"$f":"IF(Control!$B61=\"L\",'RES S curve-disconnect'!AW242,IF(Control!$B61=\"M\",'RES S curve-disconnect'!AW220,'RES S curve-disconnect'!AW198))","v":4315.2100194210834},{"$f":"IF(Control!$B61=\"L\",'RES S curve-disconnect'!AX242,IF(Control!$B61=\"M\",'RES S curve-disconnect'!AX220,'RES S curve-disconnect'!AX198))","v":4842.4173507843525},{"$f":"IF(Control!$B61=\"L\",'RES S curve-disconnect'!AY242,IF(Control!$B61=\"M\",'RES S curve-disconnect'!AY220,'RES S curve-disconnect'!AY198))","v":5451.9293177205027},{"$f":"IF(Control!$B61=\"L\",'RES S curve-disconnect'!AZ242,IF(Control!$B61=\"M\",'RES S curve-disconnect'!AZ220,'RES S curve-disconnect'!AZ198))","v":6144.8284314993343},{"$f":"IF(Control!$B61=\"L\",'RES S curve-disconnect'!BA242,IF(Control!$B61=\"M\",'RES S curve-disconnect'!BA220,'RES S curve-disconnect'!BA198))","v":6944.6262612885239},{"$f":"IF(Control!$B61=\"L\",'RES S curve-disconnect'!BB242,IF(Control!$B61=\"M\",'RES S curve-disconnect'!BB220,'RES S curve-disconnect'!BB198))","v":7874.3641510095022},{"$f":"IF(Control!$B61=\"L\",'RES S curve-disconnect'!BC242,IF(Control!$B61=\"M\",'RES S curve-disconnect'!BC220,'RES S curve-disconnect'!BC198))","v":8982.2464169923624},{"$f":"IF(Control!$B61=\"L\",'RES S curve-disconnect'!BD242,IF(Control!$B61=\"M\",'RES S curve-disconnect'!BD220,'RES S curve-disconnect'!BD198))","v":10038.93395843102},{"$f":"IF(Control!$B61=\"L\",'RES S curve-disconnect'!BE242,IF(Control!$B61=\"M\",'RES S curve-disconnect'!BE220,'RES S curve-disconnect'!BE198))","v":11000.715410526969},{"$f":"IF(Control!$B61=\"L\",'RES S curve-disconnect'!BF242,IF(Control!$B61=\"M\",'RES S curve-disconnect'!BF220,'RES S curve-disconnect'!BF198))","v":11985.994226770708},{"$f":"IF(Control!$B61=\"L\",'RES S curve-disconnect'!BG242,IF(Control!$B61=\"M\",'RES S curve-disconnect'!BG220,'RES S curve-disconnect'!BG198))","v":13105.665222236914},{"$f":"IF(Control!$B61=\"L\",'RES S curve-disconnect'!BH242,IF(Control!$B61=\"M\",'RES S curve-disconnect'!BH220,'RES S curve-disconnect'!BH198))","v":14432.062311429994},{"$f":"IF(Control!$B61=\"L\",'RES S curve-disconnect'!BI242,IF(Control!$B61=\"M\",'RES S curve-disconnect'!BI220,'RES S curve-disconnect'!BI198))","v":16356.856535239711},{"$f":"IF(Control!$B61=\"L\",'RES S curve-disconnect'!BJ242,IF(Control!$B61=\"M\",'RES S curve-disconnect'!BJ220,'RES S curve-disconnect'!BJ198))","v":19161.886921208017},{"$f":"IF(Control!$B61=\"L\",'RES S curve-disconnect'!BK242,IF(Control!$B61=\"M\",'RES S curve-disconnect'!BK220,'RES S curve-disconnect'!BK198))","v":23280.997673602811},{"$f":"IF(Control!$B61=\"L\",'RES S curve-disconnect'!BL242,IF(Control!$B61=\"M\",'RES S curve-disconnect'!BL220,'RES S curve-disconnect'!BL198))","v":-1038.1903747154915},{"$f":"IF(Control!$B61=\"L\",'RES S curve-disconnect'!BM242,IF(Control!$B61=\"M\",'RES S curve-disconnect'!BM220,'RES S curve-disconnect'!BM198))","v":-1032.8124707600136},{"$f":"IF(Control!$B61=\"L\",'RES S curve-disconnect'!BN242,IF(Control!$B61=\"M\",'RES S curve-disconnect'!BN220,'RES S curve-disconnect'!BN198))","v":-1031.4657519327525},{"$f":"IF(Control!$B61=\"L\",'RES S curve-disconnect'!BO242,IF(Control!$B61=\"M\",'RES S curve-disconnect'!BO220,'RES S curve-disconnect'!BO198))","v":-1022.0835391861665},{"$f":"IF(Control!$B61=\"L\",'RES S curve-disconnect'!BP242,IF(Control!$B61=\"M\",'RES S curve-disconnect'!BP220,'RES S curve-disconnect'!BP198))","v":-1016.7324013151909},{"$f":"IF(Control!$B61=\"L\",'RES S curve-disconnect'!BQ242,IF(Control!$B61=\"M\",'RES S curve-disconnect'!BQ220,'RES S curve-disconnect'!BQ198))","v":-1011.390075797028},{"$f":"IF(Control!$B61=\"L\",'RES S curve-disconnect'!BR242,IF(Control!$B61=\"M\",'RES S curve-disconnect'!BR220,'RES S curve-disconnect'!BR198))","v":-1010.0787162837534},{"$f":"IF(Control!$B61=\"L\",'RES S curve-disconnect'!BS242,IF(Control!$B61=\"M\",'RES S curve-disconnect'!BS220,'RES S curve-disconnect'!BS198))","v":-1000.7316451053377},{"$f":"IF(Control!$B61=\"L\",'RES S curve-disconnect'!BT242,IF(Control!$B61=\"M\",'RES S curve-disconnect'!BT220,'RES S curve-disconnect'!BT198))","v":-995.41543242548391},{"$f":"IF(Control!$B61=\"L\",'RES S curve-disconnect'!BU242,IF(Control!$B61=\"M\",'RES S curve-disconnect'!BU220,'RES S curve-disconnect'!BU198))","v":-990.10781708147078},{"$f":"IF(Control!$B61=\"L\",'RES S curve-disconnect'!BV242,IF(Control!$B61=\"M\",'RES S curve-disconnect'!BV220,'RES S curve-disconnect'!BV198))","v":-988.83095407682265},{"$f":"IF(Control!$B61=\"L\",'RES S curve-disconnect'!BW242,IF(Control!$B61=\"M\",'RES S curve-disconnect'!BW220,'RES S curve-disconnect'!BW198))","v":-979.51816708437696},{"$f":"IF(Control!$B61=\"L\",'RES S curve-disconnect'!BX242,IF(Control!$B61=\"M\",'RES S curve-disconnect'!BX220,'RES S curve-disconnect'!BX198))","v":-974.23602760218262},{"$f":"IF(Control!$B61=\"L\",'RES S curve-disconnect'!BY242,IF(Control!$B61=\"M\",'RES S curve-disconnect'!BY220,'RES S curve-disconnect'!BY198))","v":-968.96227579339609},{"$f":"IF(Control!$B61=\"L\",'RES S curve-disconnect'!BZ242,IF(Control!$B61=\"M\",'RES S curve-disconnect'!BZ220,'RES S curve-disconnect'!BZ198))","v":-967.71906797900351},{"$f":"IF(Control!$B61=\"L\",'RES S curve-disconnect'!CA242,IF(Control!$B61=\"M\",'RES S curve-disconnect'!CA220,'RES S curve-disconnect'!CA198))","v":-958.43972914094252},{"$f":"IF(Control!$B61=\"L\",'RES S curve-disconnect'!CB242,IF(Control!$B61=\"M\",'RES S curve-disconnect'!CB220,'RES S curve-disconnect'!CB198))","v":-953.19083207805602},{"$f":"IF(Control!$B61=\"L\",'RES S curve-disconnect'!CC242,IF(Control!$B61=\"M\",'RES S curve-disconnect'!CC220,'RES S curve-disconnect'!CC198))","v":-947.95011824603876},{"$f":"IF(Control!$B61=\"L\",'RES S curve-disconnect'!CD242,IF(Control!$B61=\"M\",'RES S curve-disconnect'!CD220,'RES S curve-disconnect'!CD198))","v":-1024.0964301861827}]
["South Gippsland (S)",{"$f":"Customers!K156","v":2194},{"$f":"IF(Control!$B62=\"L\",'RES S curve-disconnect'!C243,IF(Control!$B62=\"M\",'RES S curve-disconnect'!C221,'RES S curve-disconnect'!C199))","v":-4644.7150864654404},{"$f":"IF(Control!$B62=\"L\",'RES S curve-disconnect'!D243,IF(Control!$B62=\"M\",'RES S curve-disconnect'!D221,'RES S curve-disconnect'!D199))","v":-4934.5162682068303},{"$f":"IF(Control!$B62=\"L\",'RES S curve-disconnect'!E243,IF(Control!$B62=\"M\",'RES S curve-disconnect'!E221,'RES S curve-disconnect'!E199))","v":-4210.0578265035319},{"$f":"IF(Control!$B62=\"L\",'RES S curve-disconnect'!F243,IF(Control!$B62=\"M\",'RES S curve-disconnect'!F221,'RES S curve-disconnect'!F199))","v":-4127.100853129401},{"$f":"IF(Control!$B62=\"L\",'RES S curve-disconnect'!G243,IF(Control!$B62=\"M\",'RES S curve-disconnect'!G221,'RES S curve-disconnect'!G199))","v":-4903.6766822400241},{"$f":"IF(Control!$B62=\"L\",'RES S curve-disconnect'!H243,IF(Control!$B62=\"M\",'RES S curve-disconnect'!H221,'RES S curve-disconnect'!H199))","v":-4950.2360867359184},{"$f":"IF(Control!$B62=\"L\",'RES S curve-disconnect'!I243,IF(Control!$B62=\"M\",'RES S curve-disconnect'!I221,'RES S curve-disconnect'!I199))","v":-4712.9791342846001},{"$f":"IF(Control!$B62=\"L\",'RES S curve-disconnect'!J243,IF(Control!$B62=\"M\",'RES S curve-disconnect'!J221,'RES S curve-disconnect'!J199))","v":-5074.9411504643995},{"$f":"IF(Control!$B62=\"L\",'RES S curve-disconnect'!K243,IF(Control!$B62=\"M\",'RES S curve-disconnect'!K221,'RES S curve-disconnect'!K199))","v":-4538.4000846436011},{"$f":"IF(Control!$B62=\"L\",'RES S curve-disconnect'!L243,IF(Control!$B62=\"M\",'RES S curve-disconnect'!L221,'RES S curve-disconnect'!L199))","v":-4717.8473041990765},{"$f":"IF(Control!$B62=\"L\",'RES S curve-disconnect'!M243,IF(Control!$B62=\"M\",'RES S curve-disconnect'!M221,'RES S curve-disconnect'!M199))","v":-5039.041476329744},{"$f":"IF(Control!$B62=\"L\",'RES S curve-disconnect'!N243,IF(Control!$B62=\"M\",'RES S curve-disconnect'!N221,'RES S curve-disconnect'!N199))","v":-5053.4232617253228},{"$f":"IF(Control!$B62=\"L\",'RES S curve-disconnect'!O243,IF(Control!$B62=\"M\",'RES S curve-disconnect'!O221,'RES S curve-disconnect'!O199))","v":-4724.8322462753349},{"$f":"IF(Control!$B62=\"L\",'RES S curve-disconnect'!P243,IF(Control!$B62=\"M\",'RES S curve-disconnect'!P221,'RES S curve-disconnect'!P199))","v":-4461.7232526842008},{"$f":"IF(Control!$B62=\"L\",'RES S curve-disconnect'!Q243,IF(Control!$B62=\"M\",'RES S curve-disconnect'!Q221,'RES S curve-disconnect'!Q199))","v":-4073.4175440567992},{"$f":"IF(Control!$B62=\"L\",'RES S curve-disconnect'!R243,IF(Control!$B62=\"M\",'RES S curve-disconnect'!R221,'RES S curve-disconnect'!R199))","v":-3846.0078176779371},{"$f":"IF(Control!$B62=\"L\",'RES S curve-disconnect'!S243,IF(Control!$B62=\"M\",'RES S curve-disconnect'!S221,'RES S curve-disconnect'!S199))","v":-3491.870422813724},{"$f":"IF(Control!$B62=\"L\",'RES S curve-disconnect'!T243,IF(Control!$B62=\"M\",'RES S curve-disconnect'!T221,'RES S curve-disconnect'!T199))","v":-3297.6803659256275},{"$f":"IF(Control!$B62=\"L\",'RES S curve-disconnect'!U243,IF(Control!$B62=\"M\",'RES S curve-disconnect'!U221,'RES S curve-disconnect'!U199))","v":-3073.9634016313876},{"$f":"IF(Control!$B62=\"L\",'RES S curve-disconnect'!V243,IF(Control!$B62=\"M\",'RES S curve-disconnect'!V221,'RES S curve-disconnect'!V199))","v":-2914.0806037157799},{"$f":"IF(Control!$B62=\"L\",'RES S curve-disconnect'!W243,IF(Control!$B62=\"M\",'RES S curve-disconnect'!W221,'RES S curve-disconnect'!W199))","v":-2785.9938209122056},{"$f":"IF(Control!$B62=\"L\",'RES S curve-disconnect'!X243,IF(Control!$B62=\"M\",'RES S curve-disconnect'!X221,'RES S curve-disconnect'!X199))","v":-2520.9616543772941},{"$f":"IF(Control!$B62=\"L\",'RES S curve-disconnect'!Y243,IF(Control!$B62=\"M\",'RES S curve-disconnect'!Y221,'RES S curve-disconnect'!Y199))","v":-2252.4032371228213},{"$f":"IF(Control!$B62=\"L\",'RES S curve-disconnect'!Z243,IF(Control!$B62=\"M\",'RES S curve-disconnect'!Z221,'RES S curve-disconnect'!Z199))","v":-2064.730171911885},{"$f":"IF(Control!$B62=\"L\",'RES S curve-disconnect'!AA243,IF(Control!$B62=\"M\",'RES S curve-disconnect'!AA221,'RES S curve-disconnect'!AA199))","v":-1876.3359508558588},{"$f":"IF(Control!$B62=\"L\",'RES S curve-disconnect'!AB243,IF(Control!$B62=\"M\",'RES S curve-disconnect'!AB221,'RES S curve-disconnect'!AB199))","v":-1722.5258973975833},{"$f":"IF(Control!$B62=\"L\",'RES S curve-disconnect'!AC243,IF(Control!$B62=\"M\",'RES S curve-disconnect'!AC221,'RES S curve-disconnect'!AC199))","v":-1573.3120368550508},{"$f":"IF(Control!$B62=\"L\",'RES S curve-disconnect'!AD243,IF(Control!$B62=\"M\",'RES S curve-disconnect'!AD221,'RES S curve-disconnect'!AD199))","v":-1435.1291768622896},{"$f":"IF(Control!$B62=\"L\",'RES S curve-disconnect'!AE243,IF(Control!$B62=\"M\",'RES S curve-disconnect'!AE221,'RES S curve-disconnect'!AE199))","v":-1289.7178274692965},{"$f":"IF(Control!$B62=\"L\",'RES S curve-disconnect'!AF243,IF(Control!$B62=\"M\",'RES S curve-disconnect'!AF221,'RES S curve-disconnect'!AF199))","v":-1107.8655545007719},{"$f":"IF(Control!$B62=\"L\",'RES S curve-disconnect'!AG243,IF(Control!$B62=\"M\",'RES S curve-disconnect'!AG221,'RES S curve-disconnect'!AG199))","v":-993.4367618740489},{"$f":"IF(Control!$B62=\"L\",'RES S curve-disconnect'!AH243,IF(Control!$B62=\"M\",'RES S curve-disconnect'!AH221,'RES S curve-disconnect'!AH199))","v":-834.62724787629168},{"$f":"IF(Control!$B62=\"L\",'RES S curve-disconnect'!AI243,IF(Control!$B62=\"M\",'RES S curve-disconnect'!AI221,'RES S curve-disconnect'!AI199))","v":-689.86853006359854},{"$f":"IF(Control!$B62=\"L\",'RES S curve-disconnect'!AJ243,IF(Control!$B62=\"M\",'RES S curve-disconnect'!AJ221,'RES S curve-disconnect'!AJ199))","v":-559.63898876387975},{"$f":"IF(Control!$B62=\"L\",'RES S curve-disconnect'!AK243,IF(Control!$B62=\"M\",'RES S curve-disconnect'!AK221,'RES S curve-disconnect'!AK199))","v":-421.31318392254639},{"$f":"IF(Control!$B62=\"L\",'RES S curve-disconnect'!AL243,IF(Control!$B62=\"M\",'RES S curve-disconnect'!AL221,'RES S curve-disconnect'!AL199))","v":-905.36187525434445},{"$f":"IF(Control!$B62=\"L\",'RES S curve-disconnect'!AM243,IF(Control!$B62=\"M\",'RES S curve-disconnect'!AM221,'RES S curve-disconnect'!AM199))","v":-965.7102178229502},{"$f":"IF(Control!$B62=\"L\",'RES S curve-disconnect'!AN243,IF(Control!$B62=\"M\",'RES S curve-disconnect'!AN221,'RES S curve-disconnect'!AN199))","v":-833.24580966785891},{"$f":"IF(Control!$B62=\"L\",'RES S curve-disconnect'!AO243,IF(Control!$B62=\"M\",'RES S curve-disconnect'!AO221,'RES S curve-disconnect'!AO199))","v":-672.66152588229727},{"$f":"IF(Control!$B62=\"L\",'RES S curve-disconnect'!AP243,IF(Control!$B62=\"M\",'RES S curve-disconnect'!AP221,'RES S curve-disconnect'!AP199))","v":-525.14722345637881},{"$f":"IF(Control!$B62=\"L\",'RES S curve-disconnect'!AQ243,IF(Control!$B62=\"M\",'RES S curve-disconnect'!AQ221,'RES S curve-disconnect'!AQ199))","v":-365.47884534039076},{"$f":"IF(Control!$B62=\"L\",'RES S curve-disconnect'!AR243,IF(Control!$B62=\"M\",'RES S curve-disconnect'!AR221,'RES S curve-disconnect'!AR199))","v":-190.6612126736797},{"$f":"IF(Control!$B62=\"L\",'RES S curve-disconnect'!AS243,IF(Control!$B62=\"M\",'RES S curve-disconnect'!AS221,'RES S curve-disconnect'!AS199))","v":5.3782723161276635},{"$f":"IF(Control!$B62=\"L\",'RES S curve-disconnect'!AT243,IF(Control!$B62=\"M\",'RES S curve-disconnect'!AT221,'RES S curve-disconnect'!AT199))","v":224.09095090283404},{"$f":"IF(Control!$B62=\"L\",'RES S curve-disconnect'!AU243,IF(Control!$B62=\"M\",'RES S curve-disconnect'!AU221,'RES S curve-disconnect'!AU199))","v":477.80364449268109},{"$f":"IF(Control!$B62=\"L\",'RES S curve-disconnect'!AV243,IF(Control!$B62=\"M\",'RES S curve-disconnect'!AV221,'RES S curve-disconnect'!AV199))","v":766.50137066865977},{"$f":"IF(Control!$B62=\"L\",'RES S curve-disconnect'!AW243,IF(Control!$B62=\"M\",'RES S curve-disconnect'!AW221,'RES S curve-disconnect'!AW199))","v":1098.0007804533589},{"$f":"IF(Control!$B62=\"L\",'RES S curve-disconnect'!AX243,IF(Control!$B62=\"M\",'RES S curve-disconnect'!AX221,'RES S curve-disconnect'!AX199))","v":1474.9588980441135},{"$f":"IF(Control!$B62=\"L\",'RES S curve-disconnect'!AY243,IF(Control!$B62=\"M\",'RES S curve-disconnect'!AY221,'RES S curve-disconnect'!AY199))","v":1910.2532674542895},{"$f":"IF(Control!$B62=\"L\",'RES S curve-disconnect'!AZ243,IF(Control!$B62=\"M\",'RES S curve-disconnect'!AZ221,'RES S curve-disconnect'!AZ199))","v":2406.7502276198343},{"$f":"IF(Control!$B62=\"L\",'RES S curve-disconnect'!BA243,IF(Control!$B62=\"M\",'RES S curve-disconnect'!BA221,'RES S curve-disconnect'!BA199))","v":2980.9786985502315},{"$f":"IF(Control!$B62=\"L\",'RES S curve-disconnect'!BB243,IF(Control!$B62=\"M\",'RES S curve-disconnect'!BB221,'RES S curve-disconnect'!BB199))","v":3650.5176648284037},{"$f":"IF(Control!$B62=\"L\",'RES S curve-disconnect'!BC243,IF(Control!$B62=\"M\",'RES S curve-disconnect'!BC221,'RES S curve-disconnect'!BC199))","v":4448.7037949126789},{"$f":"IF(Control!$B62=\"L\",'RES S curve-disconnect'!BD243,IF(Control!$B62=\"M\",'RES S curve-disconnect'!BD221,'RES S curve-disconnect'!BD199))","v":5215.2668035240158},{"$f":"IF(Control!$B62=\"L\",'RES S curve-disconnect'!BE243,IF(Control!$B62=\"M\",'RES S curve-disconnect'!BE221,'RES S curve-disconnect'!BE199))","v":5914.7629649123483},{"$f":"IF(Control!$B62=\"L\",'RES S curve-disconnect'!BF243,IF(Control!$B62=\"M\",'RES S curve-disconnect'!BF221,'RES S curve-disconnect'!BF199))","v":6630.8184318720951},{"$f":"IF(Control!$B62=\"L\",'RES S curve-disconnect'!BG243,IF(Control!$B62=\"M\",'RES S curve-disconnect'!BG221,'RES S curve-disconnect'!BG199))","v":7442.5256557447374},{"$f":"IF(Control!$B62=\"L\",'RES S curve-disconnect'!BH243,IF(Control!$B62=\"M\",'RES S curve-disconnect'!BH221,'RES S curve-disconnect'!BH199))","v":8405.2874777803736},{"$f":"IF(Control!$B62=\"L\",'RES S curve-disconnect'!BI243,IF(Control!$B62=\"M\",'RES S curve-disconnect'!BI221,'RES S curve-disconnect'!BI199))","v":9801.1234420362252},{"$f":"IF(Control!$B62=\"L\",'RES S curve-disconnect'!BJ243,IF(Control!$B62=\"M\",'RES S curve-disconnect'!BJ221,'RES S curve-disconnect'!BJ199))","v":11841.417059689182},{"$f":"IF(Control!$B62=\"L\",'RES S curve-disconnect'!BK243,IF(Control!$B62=\"M\",'RES S curve-disconnect'!BK221,'RES S curve-disconnect'!BK199))","v":14846.61117045768},{"$f":"IF(Control!$B62=\"L\",'RES S curve-disconnect'!BL243,IF(Control!$B62=\"M\",'RES S curve-disconnect'!BL221,'RES S curve-disconnect'!BL199))","v":-2670.5232270214792},{"$f":"IF(Control!$B62=\"L\",'RES S curve-disconnect'!BM243,IF(Control!$B62=\"M\",'RES S curve-disconnect'!BM221,'RES S curve-disconnect'!BM199))","v":-2666.6363126807883},{"$f":"IF(Control!$B62=\"L\",'RES S curve-disconnect'!BN243,IF(Control!$B62=\"M\",'RES S curve-disconnect'!BN221,'RES S curve-disconnect'!BN199))","v":-2665.0183259210839},{"$f":"IF(Control!$B62=\"L\",'RES S curve-disconnect'!BO243,IF(Control!$B62=\"M\",'RES S curve-disconnect'!BO221,'RES S curve-disconnect'!BO199))","v":-2658.8806180787897},{"$f":"IF(Control!$B62=\"L\",'RES S curve-disconnect'!BP243,IF(Control!$B62=\"M\",'RES S curve-disconnect'!BP221,'RES S curve-disconnect'!BP199))","v":-2655.0117639369792},{"$f":"IF(Control!$B62=\"L\",'RES S curve-disconnect'!BQ243,IF(Control!$B62=\"M\",'RES S curve-disconnect'!BQ221,'RES S curve-disconnect'!BQ199))","v":-2651.1488563664952},{"$f":"IF(Control!$B62=\"L\",'RES S curve-disconnect'!BR243,IF(Control!$B62=\"M\",'RES S curve-disconnect'!BR221,'RES S curve-disconnect'!BR199))","v":-2649.554729538936},{"$f":"IF(Control!$B62=\"L\",'RES S curve-disconnect'!BS243,IF(Control!$B62=\"M\",'RES S curve-disconnect'!BS221,'RES S curve-disconnect'!BS199))","v":-2643.440735710753},{"$f":"IF(Control!$B62=\"L\",'RES S curve-disconnect'!BT243,IF(Control!$B62=\"M\",'RES S curve-disconnect'!BT221,'RES S curve-disconnect'!BT199))","v":-2639.595450579216},{"$f":"IF(Control!$B62=\"L\",'RES S curve-disconnect'!BU243,IF(Control!$B62=\"M\",'RES S curve-disconnect'!BU221,'RES S curve-disconnect'!BU199))","v":-2635.7559679235733},{"$f":"IF(Control!$B62=\"L\",'RES S curve-disconnect'!BV243,IF(Control!$B62=\"M\",'RES S curve-disconnect'!BV221,'RES S curve-disconnect'!BV199))","v":-2634.1851228180676},{"$f":"IF(Control!$B62=\"L\",'RES S curve-disconnect'!BW243,IF(Control!$B62=\"M\",'RES S curve-disconnect'!BW221,'RES S curve-disconnect'!BW199))","v":-2628.0942684160782},{"$f":"IF(Control!$B62=\"L\",'RES S curve-disconnect'!BX243,IF(Control!$B62=\"M\",'RES S curve-disconnect'!BX221,'RES S curve-disconnect'!BX199))","v":-2624.2719813061171},{"$f":"IF(Control!$B62=\"L\",'RES S curve-disconnect'!BY243,IF(Control!$B62=\"M\",'RES S curve-disconnect'!BY221,'RES S curve-disconnect'!BY199))","v":-2620.4553561530265},{"$f":"IF(Control!$B62=\"L\",'RES S curve-disconnect'!BZ243,IF(Control!$B62=\"M\",'RES S curve-disconnect'!BZ221,'RES S curve-disconnect'!BZ199))","v":-2618.9072289110363},{"$f":"IF(Control!$B62=\"L\",'RES S curve-disconnect'!CA243,IF(Control!$B62=\"M\",'RES S curve-disconnect'!CA221,'RES S curve-disconnect'!CA199))","v":-2612.8389536079312},{"$f":"IF(Control!$B62=\"L\",'RES S curve-disconnect'!CB243,IF(Control!$B62=\"M\",'RES S curve-disconnect'!CB221,'RES S curve-disconnect'!CB199))","v":-2609.0391077010909},{"$f":"IF(Control!$B62=\"L\",'RES S curve-disconnect'!CC243,IF(Control!$B62=\"M\",'RES S curve-disconnect'!CC221,'RES S curve-disconnect'!CC199))","v":-2605.2447867187211},{"$f":"IF(Control!$B62=\"L\",'RES S curve-disconnect'!CD243,IF(Control!$B62=\"M\",'RES S curve-disconnect'!CD221,'RES S curve-disconnect'!CD199))","v":-2661.521537378364}]
["Stonnington (C)",{"$f":"Customers!K157","v":38102},{"$f":"IF(Control!$B63=\"L\",'RES S curve-disconnect'!C244,IF(Control!$B63=\"M\",'RES S curve-disconnect'!C222,'RES S curve-disconnect'!C200))","v":-3240.9018454784673},{"$f":"IF(Control!$B63=\"L\",'RES S curve-disconnect'!D244,IF(Control!$B63=\"M\",'RES S curve-disconnect'!D222,'RES S curve-disconnect'!D200))","v":-3707.5459535060008},{"$f":"IF(Control!$B63=\"L\",'RES S curve-disconnect'!E244,IF(Control!$B63=\"M\",'RES S curve-disconnect'!E222,'RES S curve-disconnect'!E200))","v":-3327.3661200627757},{"$f":"IF(Control!$B63=\"L\",'RES S curve-disconnect'!F244,IF(Control!$B63=\"M\",'RES S curve-disconnect'!F222,'RES S curve-disconnect'!F200))","v":-3196.7496522788724},{"$f":"IF(Control!$B63=\"L\",'RES S curve-disconnect'!G244,IF(Control!$B63=\"M\",'RES S curve-disconnect'!G222,'RES S curve-disconnect'!G200))","v":-4069.1957917640952},{"$f":"IF(Control!$B63=\"L\",'RES S curve-disconnect'!H244,IF(Control!$B63=\"M\",'RES S curve-disconnect'!H222,'RES S curve-disconnect'!H200))","v":-4097.6558317659847},{"$f":"IF(Control!$B63=\"L\",'RES S curve-disconnect'!I244,IF(Control!$B63=\"M\",'RES S curve-disconnect'!I222,'RES S curve-disconnect'!I200))","v":-3711.5705689809588},{"$f":"IF(Control!$B63=\"L\",'RES S curve-disconnect'!J244,IF(Control!$B63=\"M\",'RES S curve-disconnect'!J222,'RES S curve-disconnect'!J200))","v":-3983.6400239109157},{"$f":"IF(Control!$B63=\"L\",'RES S curve-disconnect'!K244,IF(Control!$B63=\"M\",'RES S curve-disconnect'!K222,'RES S curve-disconnect'!K200))","v":-3284.0117431701974},{"$f":"IF(Control!$B63=\"L\",'RES S curve-disconnect'!L244,IF(Control!$B63=\"M\",'RES S curve-disconnect'!L222,'RES S curve-disconnect'!L200))","v":-3609.2887843637118},{"$f":"IF(Control!$B63=\"L\",'RES S curve-disconnect'!M244,IF(Control!$B63=\"M\",'RES S curve-disconnect'!M222,'RES S curve-disconnect'!M200))","v":-4171.3644565327304},{"$f":"IF(Control!$B63=\"L\",'RES S curve-disconnect'!N244,IF(Control!$B63=\"M\",'RES S curve-disconnect'!N222,'RES S curve-disconnect'!N200))","v":-4231.5336236650237},{"$f":"IF(Control!$B63=\"L\",'RES S curve-disconnect'!O244,IF(Control!$B63=\"M\",'RES S curve-disconnect'!O222,'RES S curve-disconnect'!O200))","v":-3730.2686512032019},{"$f":"IF(Control!$B63=\"L\",'RES S curve-disconnect'!P244,IF(Control!$B63=\"M\",'RES S curve-disconnect'!P222,'RES S curve-disconnect'!P200))","v":-3335.4710612434064},{"$f":"IF(Control!$B63=\"L\",'RES S curve-disconnect'!Q244,IF(Control!$B63=\"M\",'RES S curve-disconnect'!Q222,'RES S curve-disconnect'!Q200))","v":-2735.5985828058219},{"$f":"IF(Control!$B63=\"L\",'RES S curve-disconnect'!R244,IF(Control!$B63=\"M\",'RES S curve-disconnect'!R222,'RES S curve-disconnect'!R200))","v":-2398.9870939282373},{"$f":"IF(Control!$B63=\"L\",'RES S curve-disconnect'!S244,IF(Control!$B63=\"M\",'RES S curve-disconnect'!S222,'RES S curve-disconnect'!S200))","v":-1852.2251108096152},{"$f":"IF(Control!$B63=\"L\",'RES S curve-disconnect'!T244,IF(Control!$B63=\"M\",'RES S curve-disconnect'!T222,'RES S curve-disconnect'!T200))","v":-1573.8380476278041},{"$f":"IF(Control!$B63=\"L\",'RES S curve-disconnect'!U244,IF(Control!$B63=\"M\",'RES S curve-disconnect'!U222,'RES S curve-disconnect'!U200))","v":-1244.4081139031764},{"$f":"IF(Control!$B63=\"L\",'RES S curve-disconnect'!V244,IF(Control!$B63=\"M\",'RES S curve-disconnect'!V222,'RES S curve-disconnect'!V200))","v":-1018.740009685714},{"$f":"IF(Control!$B63=\"L\",'RES S curve-disconnect'!W244,IF(Control!$B63=\"M\",'RES S curve-disconnect'!W222,'RES S curve-disconnect'!W200))","v":-843.61988293758532},{"$f":"IF(Control!$B63=\"L\",'RES S curve-disconnect'!X244,IF(Control!$B63=\"M\",'RES S curve-disconnect'!X222,'RES S curve-disconnect'!X200))","v":-444.95773369779295},{"$f":"IF(Control!$B63=\"L\",'RES S curve-disconnect'!Y244,IF(Control!$B63=\"M\",'RES S curve-disconnect'!Y222,'RES S curve-disconnect'!Y200))","v":-39.929004941410028},{"$f":"IF(Control!$B63=\"L\",'RES S curve-disconnect'!Z244,IF(Control!$B63=\"M\",'RES S curve-disconnect'!Z222,'RES S curve-disconnect'!Z200))","v":232.8181002273503},{"$f":"IF(Control!$B63=\"L\",'RES S curve-disconnect'!AA244,IF(Control!$B63=\"M\",'RES S curve-disconnect'!AA222,'RES S curve-disconnect'!AA200))","v":507.41872849148399},{"$f":"IF(Control!$B63=\"L\",'RES S curve-disconnect'!AB244,IF(Control!$B63=\"M\",'RES S curve-disconnect'!AB222,'RES S curve-disconnect'!AB200))","v":726.76110177245585},{"$f":"IF(Control!$B63=\"L\",'RES S curve-disconnect'!AC244,IF(Control!$B63=\"M\",'RES S curve-disconnect'!AC222,'RES S curve-disconnect'!AC200))","v":939.06733317310648},{"$f":"IF(Control!$B63=\"L\",'RES S curve-disconnect'!AD244,IF(Control!$B63=\"M\",'RES S curve-disconnect'!AD222,'RES S curve-disconnect'!AD200))","v":1133.38588744855},{"$f":"IF(Control!$B63=\"L\",'RES S curve-disconnect'!AE244,IF(Control!$B63=\"M\",'RES S curve-disconnect'!AE222,'RES S curve-disconnect'!AE200))","v":1340.5480368810238},{"$f":"IF(Control!$B63=\"L\",'RES S curve-disconnect'!AF244,IF(Control!$B63=\"M\",'RES S curve-disconnect'!AF222,'RES S curve-disconnect'!AF200))","v":1607.2775957353044},{"$f":"IF(Control!$B63=\"L\",'RES S curve-disconnect'!AG244,IF(Control!$B63=\"M\",'RES S curve-disconnect'!AG222,'RES S curve-disconnect'!AG200))","v":1796.1525701389846},{"$f":"IF(Control!$B63=\"L\",'RES S curve-disconnect'!AH244,IF(Control!$B63=\"M\",'RES S curve-disconnect'!AH222,'RES S curve-disconnect'!AH200))","v":2056.844562015976},{"$f":"IF(Control!$B63=\"L\",'RES S curve-disconnect'!AI244,IF(Control!$B63=\"M\",'RES S curve-disconnect'!AI222,'RES S curve-disconnect'!AI200))","v":2295.8443291492622},{"$f":"IF(Control!$B63=\"L\",'RES S curve-disconnect'!AJ244,IF(Control!$B63=\"M\",'RES S curve-disconnect'!AJ222,'RES S curve-disconnect'!AJ200))","v":2510.5573448938753},{"$f":"IF(Control!$B63=\"L\",'RES S curve-disconnect'!AK244,IF(Control!$B63=\"M\",'RES S curve-disconnect'!AK222,'RES S curve-disconnect'!AK200))","v":2738.6782997756727},{"$f":"IF(Control!$B63=\"L\",'RES S curve-disconnect'!AL244,IF(Control!$B63=\"M\",'RES S curve-disconnect'!AL222,'RES S curve-disconnect'!AL200))","v":1936.0393816389981},{"$f":"IF(Control!$B63=\"L\",'RES S curve-disconnect'!AM244,IF(Control!$B63=\"M\",'RES S curve-disconnect'!AM222,'RES S curve-disconnect'!AM200))","v":1837.8816786805137},{"$f":"IF(Control!$B63=\"L\",'RES S curve-disconnect'!AN244,IF(Control!$B63=\"M\",'RES S curve-disconnect'!AN222,'RES S curve-disconnect'!AN200))","v":2057.3945717646998},{"$f":"IF(Control!$B63=\"L\",'RES S curve-disconnect'!AO244,IF(Control!$B63=\"M\",'RES S curve-disconnect'!AO222,'RES S curve-disconnect'!AO200))","v":2322.5483644339088},{"$f":"IF(Control!$B63=\"L\",'RES S curve-disconnect'!AP244,IF(Control!$B63=\"M\",'RES S curve-disconnect'!AP222,'RES S curve-disconnect'!AP200))","v":2565.5176880414433},{"$f":"IF(Control!$B63=\"L\",'RES S curve-disconnect'!AQ244,IF(Control!$B63=\"M\",'RES S curve-disconnect'!AQ222,'RES S curve-disconnect'!AQ200))","v":2829.1244050865835},{"$f":"IF(Control!$B63=\"L\",'RES S curve-disconnect'!AR244,IF(Control!$B63=\"M\",'RES S curve-disconnect'!AR222,'RES S curve-disconnect'!AR200))","v":3117.4064205840132},{"$f":"IF(Control!$B63=\"L\",'RES S curve-disconnect'!AS244,IF(Control!$B63=\"M\",'RES S curve-disconnect'!AS222,'RES S curve-disconnect'!AS200))","v":3440.6123752039216},{"$f":"IF(Control!$B63=\"L\",'RES S curve-disconnect'!AT244,IF(Control!$B63=\"M\",'RES S curve-disconnect'!AT222,'RES S curve-disconnect'!AT200))","v":3800.8110733010444},{"$f":"IF(Control!$B63=\"L\",'RES S curve-disconnect'!AU244,IF(Control!$B63=\"M\",'RES S curve-disconnect'!AU222,'RES S curve-disconnect'!AU200))","v":4219.1685384289249},{"$f":"IF(Control!$B63=\"L\",'RES S curve-disconnect'!AV244,IF(Control!$B63=\"M\",'RES S curve-disconnect'!AV222,'RES S curve-disconnect'!AV200))","v":4694.7321025693891},{"$f":"IF(Control!$B63=\"L\",'RES S curve-disconnect'!AW244,IF(Control!$B63=\"M\",'RES S curve-disconnect'!AW222,'RES S curve-disconnect'!AW200))","v":5240.5861644880706},{"$f":"IF(Control!$B63=\"L\",'RES S curve-disconnect'!AX244,IF(Control!$B63=\"M\",'RES S curve-disconnect'!AX222,'RES S curve-disconnect'!AX200))","v":5860.7009165832123},{"$f":"IF(Control!$B63=\"L\",'RES S curve-disconnect'!AY244,IF(Control!$B63=\"M\",'RES S curve-disconnect'!AY222,'RES S curve-disconnect'!AY200))","v":6577.0505602802359},{"$f":"IF(Control!$B63=\"L\",'RES S curve-disconnect'!AZ244,IF(Control!$B63=\"M\",'RES S curve-disconnect'!AZ222,'RES S curve-disconnect'!AZ200))","v":7393.3308665128379},{"$f":"IF(Control!$B63=\"L\",'RES S curve-disconnect'!BA244,IF(Control!$B63=\"M\",'RES S curve-disconnect'!BA222,'RES S curve-disconnect'!BA200))","v":8336.8754294471273},{"$f":"IF(Control!$B63=\"L\",'RES S curve-disconnect'!BB244,IF(Control!$B63=\"M\",'RES S curve-disconnect'!BB222,'RES S curve-disconnect'!BB200))","v":9436.0695198502108},{"$f":"IF(Control!$B63=\"L\",'RES S curve-disconnect'!BC244,IF(Control!$B63=\"M\",'RES S curve-disconnect'!BC222,'RES S curve-disconnect'!BC200))","v":10746.314996961748},{"$f":"IF(Control!$B63=\"L\",'RES S curve-disconnect'!BD244,IF(Control!$B63=\"M\",'RES S curve-disconnect'!BD222,'RES S curve-disconnect'!BD200))","v":12002.100433246027},{"$f":"IF(Control!$B63=\"L\",'RES S curve-disconnect'!BE244,IF(Control!$B63=\"M\",'RES S curve-disconnect'!BE222,'RES S curve-disconnect'!BE200))","v":13147.151322358523},{"$f":"IF(Control!$B63=\"L\",'RES S curve-disconnect'!BF244,IF(Control!$B63=\"M\",'RES S curve-disconnect'!BF222,'RES S curve-disconnect'!BF200))","v":14319.566843335511},{"$f":"IF(Control!$B63=\"L\",'RES S curve-disconnect'!BG244,IF(Control!$B63=\"M\",'RES S curve-disconnect'!BG222,'RES S curve-disconnect'!BG200))","v":15649.579366483074},{"$f":"IF(Control!$B63=\"L\",'RES S curve-disconnect'!BH244,IF(Control!$B63=\"M\",'RES S curve-disconnect'!BH222,'RES S curve-disconnect'!BH200))","v":17226.550235886196},{"$f":"IF(Control!$B63=\"L\",'RES S curve-disconnect'!BI244,IF(Control!$B63=\"M\",'RES S curve-disconnect'!BI222,'RES S curve-disconnect'!BI200))","v":19513.54213469752},{"$f":"IF(Control!$B63=\"L\",'RES S curve-disconnect'!BJ244,IF(Control!$B63=\"M\",'RES S curve-disconnect'!BJ222,'RES S curve-disconnect'!BJ200))","v":22853.54581247388},{"$f":"IF(Control!$B63=\"L\",'RES S curve-disconnect'!BK244,IF(Control!$B63=\"M\",'RES S curve-disconnect'!BK222,'RES S curve-disconnect'!BK200))","v":27768.811487222694},{"$f":"IF(Control!$B63=\"L\",'RES S curve-disconnect'!BL244,IF(Control!$B63=\"M\",'RES S curve-disconnect'!BL222,'RES S curve-disconnect'!BL200))","v":-990.54537579522366},{"$f":"IF(Control!$B63=\"L\",'RES S curve-disconnect'!BM244,IF(Control!$B63=\"M\",'RES S curve-disconnect'!BM222,'RES S curve-disconnect'!BM200))","v":-984.27562654688199},{"$f":"IF(Control!$B63=\"L\",'RES S curve-disconnect'!BN244,IF(Control!$B63=\"M\",'RES S curve-disconnect'!BN222,'RES S curve-disconnect'!BN200))","v":-982.03746183332396},{"$f":"IF(Control!$B63=\"L\",'RES S curve-disconnect'!BO244,IF(Control!$B63=\"M\",'RES S curve-disconnect'!BO222,'RES S curve-disconnect'!BO200))","v":-971.76420089238809},{"$f":"IF(Control!$B63=\"L\",'RES S curve-disconnect'!BP244,IF(Control!$B63=\"M\",'RES S curve-disconnect'!BP222,'RES S curve-disconnect'!BP200))","v":-965.52241081292414},{"$f":"IF(Control!$B63=\"L\",'RES S curve-disconnect'!BQ244,IF(Control!$B63=\"M\",'RES S curve-disconnect'!BQ222,'RES S curve-disconnect'!BQ200))","v":-959.28982737453271},{"$f":"IF(Control!$B63=\"L\",'RES S curve-disconnect'!BR244,IF(Control!$B63=\"M\",'RES S curve-disconnect'!BR222,'RES S curve-disconnect'!BR200))","v":-957.08860254012689},{"$f":"IF(Control!$B63=\"L\",'RES S curve-disconnect'!BS244,IF(Control!$B63=\"M\",'RES S curve-disconnect'!BS222,'RES S curve-disconnect'!BS200))","v":-946.85205695890613},{"$f":"IF(Control!$B63=\"L\",'RES S curve-disconnect'!BT244,IF(Control!$B63=\"M\",'RES S curve-disconnect'!BT222,'RES S curve-disconnect'!BT200))","v":-940.64675912214602},{"$f":"IF(Control!$B63=\"L\",'RES S curve-disconnect'!BU244,IF(Control!$B63=\"M\",'RES S curve-disconnect'!BU222,'RES S curve-disconnect'!BU200))","v":-934.4504462029962},{"$f":"IF(Control!$B63=\"L\",'RES S curve-disconnect'!BV244,IF(Control!$B63=\"M\",'RES S curve-disconnect'!BV222,'RES S curve-disconnect'!BV200))","v":-932.28527154910432},{"$f":"IF(Control!$B63=\"L\",'RES S curve-disconnect'!BW244,IF(Control!$B63=\"M\",'RES S curve-disconnect'!BW222,'RES S curve-disconnect'!BW200))","v":-922.08455718563744},{"$f":"IF(Control!$B63=\"L\",'RES S curve-disconnect'!BX244,IF(Control!$B63=\"M\",'RES S curve-disconnect'!BX222,'RES S curve-disconnect'!BX200))","v":-915.9148729711336},{"$f":"IF(Control!$B63=\"L\",'RES S curve-disconnect'!BY244,IF(Control!$B63=\"M\",'RES S curve-disconnect'!BY222,'RES S curve-disconnect'!BY200))","v":-909.75395743735487},{"$f":"IF(Control!$B63=\"L\",'RES S curve-disconnect'!BZ244,IF(Control!$B63=\"M\",'RES S curve-disconnect'!BZ222,'RES S curve-disconnect'!BZ200))","v":-907.62396528196268},{"$f":"IF(Control!$B63=\"L\",'RES S curve-disconnect'!CA244,IF(Control!$B63=\"M\",'RES S curve-disconnect'!CA222,'RES S curve-disconnect'!CA200))","v":-897.45821987159479},{"$f":"IF(Control!$B63=\"L\",'RES S curve-disconnect'!CB244,IF(Control!$B63=\"M\",'RES S curve-disconnect'!CB222,'RES S curve-disconnect'!CB200))","v":-891.32329239777573},{"$f":"IF(Control!$B63=\"L\",'RES S curve-disconnect'!CC244,IF(Control!$B63=\"M\",'RES S curve-disconnect'!CC222,'RES S curve-disconnect'!CC200))","v":-885.19692271681902},{"$f":"IF(Control!$B63=\"L\",'RES S curve-disconnect'!CD244,IF(Control!$B63=\"M\",'RES S curve-disconnect'!CD222,'RES S curve-disconnect'!CD200))","v":-976.99231528967664}]
["Whitehorse (C)",{"$f":"Customers!K158","v":66452},{"$f":"IF(Control!$B64=\"L\",'RES S curve-disconnect'!C245,IF(Control!$B64=\"M\",'RES S curve-disconnect'!C223,'RES S curve-disconnect'!C201))","v":-4861.4597085375517},{"$f":"IF(Control!$B64=\"L\",'RES S curve-disconnect'!D245,IF(Control!$B64=\"M\",'RES S curve-disconnect'!D223,'RES S curve-disconnect'!D201))","v":-5378.3896012197256},{"$f":"IF(Control!$B64=\"L\",'RES S curve-disconnect'!E245,IF(Control!$B64=\"M\",'RES S curve-disconnect'!E223,'RES S curve-disconnect'!E201))","v":-4660.5434789658966},{"$f":"IF(Control!$B64=\"L\",'RES S curve-disconnect'!F245,IF(Control!$B64=\"M\",'RES S curve-disconnect'!F223,'RES S curve-disconnect'!F201))","v":-4505.8867029670582},{"$f":"IF(Control!$B64=\"L\",'RES S curve-disconnect'!G245,IF(Control!$B64=\"M\",'RES S curve-disconnect'!G223,'RES S curve-disconnect'!G201))","v":-5719.9090712890811},{"$f":"IF(Control!$B64=\"L\",'RES S curve-disconnect'!H245,IF(Control!$B64=\"M\",'RES S curve-disconnect'!H223,'RES S curve-disconnect'!H201))","v":-5753.4785523413284},{"$f":"IF(Control!$B64=\"L\",'RES S curve-disconnect'!I245,IF(Control!$B64=\"M\",'RES S curve-disconnect'!I223,'RES S curve-disconnect'!I201))","v":-5315.5425151331074},{"$f":"IF(Control!$B64=\"L\",'RES S curve-disconnect'!J245,IF(Control!$B64=\"M\",'RES S curve-disconnect'!J223,'RES S curve-disconnect'!J201))","v":-5654.3144409414163},{"$f":"IF(Control!$B64=\"L\",'RES S curve-disconnect'!K245,IF(Control!$B64=\"M\",'RES S curve-disconnect'!K223,'RES S curve-disconnect'!K201))","v":-4829.5559917740975},{"$f":"IF(Control!$B64=\"L\",'RES S curve-disconnect'!L245,IF(Control!$B64=\"M\",'RES S curve-disconnect'!L223,'RES S curve-disconnect'!L201))","v":-5180.6546685526519},{"$f":"IF(Control!$B64=\"L\",'RES S curve-disconnect'!M245,IF(Control!$B64=\"M\",'RES S curve-disconnect'!M223,'RES S curve-disconnect'!M201))","v":-5819.0849586101886},{"$f":"IF(Control!$B64=\"L\",'RES S curve-disconnect'!N245,IF(Control!$B64=\"M\",'RES S curve-disconnect'!N223,'RES S curve-disconnect'!N201))","v":-5877.2183381246005},{"$f":"IF(Control!$B64=\"L\",'RES S curve-disconnect'!O245,IF(Control!$B64=\"M\",'RES S curve-disconnect'!O223,'RES S curve-disconnect'!O201))","v":-5309.8357822105963},{"$f":"IF(Control!$B64=\"L\",'RES S curve-disconnect'!P245,IF(Control!$B64=\"M\",'RES S curve-disconnect'!P223,'RES S curve-disconnect'!P201))","v":-4857.5933712844144},{"$f":"IF(Control!$B64=\"L\",'RES S curve-disconnect'!Q245,IF(Control!$B64=\"M\",'RES S curve-disconnect'!Q223,'RES S curve-disconnect'!Q201))","v":-4175.3896260599358},{"$f":"IF(Control!$B64=\"L\",'RES S curve-disconnect'!R245,IF(Control!$B64=\"M\",'RES S curve-disconnect'!R223,'RES S curve-disconnect'!R201))","v":-3787.7545179215208},{"$f":"IF(Control!$B64=\"L\",'RES S curve-disconnect'!S245,IF(Control!$B64=\"M\",'RES S curve-disconnect'!S223,'RES S curve-disconnect'!S201))","v":-3172.6175009375138},{"$f":"IF(Control!$B64=\"L\",'RES S curve-disconnect'!T245,IF(Control!$B64=\"M\",'RES S curve-disconnect'!T223,'RES S curve-disconnect'!T201))","v":-2837.1288739763972},{"$f":"IF(Control!$B64=\"L\",'RES S curve-disconnect'!U245,IF(Control!$B64=\"M\",'RES S curve-disconnect'!U223,'RES S curve-disconnect'!U201))","v":-2454.4599559604007},{"$f":"IF(Control!$B64=\"L\",'RES S curve-disconnect'!V245,IF(Control!$B64=\"M\",'RES S curve-disconnect'!V223,'RES S curve-disconnect'!V201))","v":-2192.6333078036723},{"$f":"IF(Control!$B64=\"L\",'RES S curve-disconnect'!W245,IF(Control!$B64=\"M\",'RES S curve-disconnect'!W223,'RES S curve-disconnect'!W201))","v":-1988.1821736804038},{"$f":"IF(Control!$B64=\"L\",'RES S curve-disconnect'!X245,IF(Control!$B64=\"M\",'RES S curve-disconnect'!X223,'RES S curve-disconnect'!X201))","v":-1527.1926182556108},{"$f":"IF(Control!$B64=\"L\",'RES S curve-disconnect'!Y245,IF(Control!$B64=\"M\",'RES S curve-disconnect'!Y223,'RES S curve-disconnect'!Y201))","v":-1060.8215260670349},{"$f":"IF(Control!$B64=\"L\",'RES S curve-disconnect'!Z245,IF(Control!$B64=\"M\",'RES S curve-disconnect'!Z223,'RES S curve-disconnect'!Z201))","v":-744.54582508039198},{"$f":"IF(Control!$B64=\"L\",'RES S curve-disconnect'!AA245,IF(Control!$B64=\"M\",'RES S curve-disconnect'!AA223,'RES S curve-disconnect'!AA201))","v":-428.26925139185153},{"$f":"IF(Control!$B64=\"L\",'RES S curve-disconnect'!AB245,IF(Control!$B64=\"M\",'RES S curve-disconnect'!AB223,'RES S curve-disconnect'!AB201))","v":-175.45687649935991},{"$f":"IF(Control!$B64=\"L\",'RES S curve-disconnect'!AC245,IF(Control!$B64=\"M\",'RES S curve-disconnect'!AC223,'RES S curve-disconnect'!AC201))","v":68.154722903455763},{"$f":"IF(Control!$B64=\"L\",'RES S curve-disconnect'!AD245,IF(Control!$B64=\"M\",'RES S curve-disconnect'!AD223,'RES S curve-disconnect'!AD201))","v":291.74865185776508},{"$f":"IF(Control!$B64=\"L\",'RES S curve-disconnect'!AE245,IF(Control!$B64=\"M\",'RES S curve-disconnect'!AE223,'RES S curve-disconnect'!AE201))","v":526.64351329825786},{"$f":"IF(Control!$B64=\"L\",'RES S curve-disconnect'!AF245,IF(Control!$B64=\"M\",'RES S curve-disconnect'!AF223,'RES S curve-disconnect'!AF201))","v":830.10470936039928},{"$f":"IF(Control!$B64=\"L\",'RES S curve-disconnect'!AG245,IF(Control!$B64=\"M\",'RES S curve-disconnect'!AG223,'RES S curve-disconnect'!AG201))","v":1037.9058528971868},{"$f":"IF(Control!$B64=\"L\",'RES S curve-disconnect'!AH245,IF(Control!$B64=\"M\",'RES S curve-disconnect'!AH223,'RES S curve-disconnect'!AH201))","v":1330.3937052727802},{"$f":"IF(Control!$B64=\"L\",'RES S curve-disconnect'!AI245,IF(Control!$B64=\"M\",'RES S curve-disconnect'!AI223,'RES S curve-disconnect'!AI201))","v":1593.2413843251693},{"$f":"IF(Control!$B64=\"L\",'RES S curve-disconnect'!AJ245,IF(Control!$B64=\"M\",'RES S curve-disconnect'!AJ223,'RES S curve-disconnect'!AJ201))","v":1830.4725590295955},{"$f":"IF(Control!$B64=\"L\",'RES S curve-disconnect'!AK245,IF(Control!$B64=\"M\",'RES S curve-disconnect'!AK223,'RES S curve-disconnect'!AK201))","v":2082.3244860426475},{"$f":"IF(Control!$B64=\"L\",'RES S curve-disconnect'!AL245,IF(Control!$B64=\"M\",'RES S curve-disconnect'!AL223,'RES S curve-disconnect'!AL201))","v":1210.7057073669487},{"$f":"IF(Control!$B64=\"L\",'RES S curve-disconnect'!AM245,IF(Control!$B64=\"M\",'RES S curve-disconnect'!AM223,'RES S curve-disconnect'!AM201))","v":1096.444801331699},{"$f":"IF(Control!$B64=\"L\",'RES S curve-disconnect'!AN245,IF(Control!$B64=\"M\",'RES S curve-disconnect'!AN223,'RES S curve-disconnect'!AN201))","v":1334.7450063951078},{"$f":"IF(Control!$B64=\"L\",'RES S curve-disconnect'!AO245,IF(Control!$B64=\"M\",'RES S curve-disconnect'!AO223,'RES S curve-disconnect'!AO201))","v":1626.3321866501005},{"$f":"IF(Control!$B64=\"L\",'RES S curve-disconnect'!AP245,IF(Control!$B64=\"M\",'RES S curve-disconnect'!AP223,'RES S curve-disconnect'!AP201))","v":1895.7893438755802},{"$f":"IF(Control!$B64=\"L\",'RES S curve-disconnect'!AQ245,IF(Control!$B64=\"M\",'RES S curve-disconnect'!AQ223,'RES S curve-disconnect'!AQ201))","v":2185.8117203559946},{"$f":"IF(Control!$B64=\"L\",'RES S curve-disconnect'!AR245,IF(Control!$B64=\"M\",'RES S curve-disconnect'!AR223,'RES S curve-disconnect'!AR201))","v":2504.3079545677488},{"$f":"IF(Control!$B64=\"L\",'RES S curve-disconnect'!AS245,IF(Control!$B64=\"M\",'RES S curve-disconnect'!AS223,'RES S curve-disconnect'!AS201))","v":2861.7209822973609},{"$f":"IF(Control!$B64=\"L\",'RES S curve-disconnect'!AT245,IF(Control!$B64=\"M\",'RES S curve-disconnect'!AT223,'RES S curve-disconnect'!AT201))","v":3261.5787354979475},{"$f":"IF(Control!$B64=\"L\",'RES S curve-disconnect'!AU245,IF(Control!$B64=\"M\",'RES S curve-disconnect'!AU223,'RES S curve-disconnect'!AU201))","v":3724.0972127405703},{"$f":"IF(Control!$B64=\"L\",'RES S curve-disconnect'!AV245,IF(Control!$B64=\"M\",'RES S curve-disconnect'!AV223,'RES S curve-disconnect'!AV201))","v":4251.7654543619728},{"$f":"IF(Control!$B64=\"L\",'RES S curve-disconnect'!AW245,IF(Control!$B64=\"M\",'RES S curve-disconnect'!AW223,'RES S curve-disconnect'!AW201))","v":4858.3175580173311},{"$f":"IF(Control!$B64=\"L\",'RES S curve-disconnect'!AX245,IF(Control!$B64=\"M\",'RES S curve-disconnect'!AX223,'RES S curve-disconnect'!AX201))","v":5549.7166710274541},{"$f":"IF(Control!$B64=\"L\",'RES S curve-disconnect'!AY245,IF(Control!$B64=\"M\",'RES S curve-disconnect'!AY223,'RES S curve-disconnect'!AY201))","v":6347.4547136570491},{"$f":"IF(Control!$B64=\"L\",'RES S curve-disconnect'!AZ245,IF(Control!$B64=\"M\",'RES S curve-disconnect'!AZ223,'RES S curve-disconnect'!AZ201))","v":7259.5568965414896},{"$f":"IF(Control!$B64=\"L\",'RES S curve-disconnect'!BA245,IF(Control!$B64=\"M\",'RES S curve-disconnect'!BA223,'RES S curve-disconnect'!BA201))","v":8315.9718510384973},{"$f":"IF(Control!$B64=\"L\",'RES S curve-disconnect'!BB245,IF(Control!$B64=\"M\",'RES S curve-disconnect'!BB223,'RES S curve-disconnect'!BB201))","v":9550.4078122323954},{"$f":"IF(Control!$B64=\"L\",'RES S curve-disconnect'!BC245,IF(Control!$B64=\"M\",'RES S curve-disconnect'!BC223,'RES S curve-disconnect'!BC201))","v":11022.525399922437},{"$f":"IF(Control!$B64=\"L\",'RES S curve-disconnect'!BD245,IF(Control!$B64=\"M\",'RES S curve-disconnect'!BD223,'RES S curve-disconnect'!BD201))","v":12443.220378095801},{"$f":"IF(Control!$B64=\"L\",'RES S curve-disconnect'!BE245,IF(Control!$B64=\"M\",'RES S curve-disconnect'!BE223,'RES S curve-disconnect'!BE201))","v":13741.931891989521},{"$f":"IF(Control!$B64=\"L\",'RES S curve-disconnect'!BF245,IF(Control!$B64=\"M\",'RES S curve-disconnect'!BF223,'RES S curve-disconnect'!BF201))","v":15070.702224844443},{"$f":"IF(Control!$B64=\"L\",'RES S curve-disconnect'!BG245,IF(Control!$B64=\"M\",'RES S curve-disconnect'!BG223,'RES S curve-disconnect'!BG201))","v":16574.361073966033},{"$f":"IF(Control!$B64=\"L\",'RES S curve-disconnect'!BH245,IF(Control!$B64=\"M\",'RES S curve-disconnect'!BH223,'RES S curve-disconnect'!BH201))","v":18359.413981172336},{"$f":"IF(Control!$B64=\"L\",'RES S curve-disconnect'!BI245,IF(Control!$B64=\"M\",'RES S curve-disconnect'!BI223,'RES S curve-disconnect'!BI201))","v":20945.821599432966},{"$f":"IF(Control!$B64=\"L\",'RES S curve-disconnect'!BJ245,IF(Control!$B64=\"M\",'RES S curve-disconnect'!BJ223,'RES S curve-disconnect'!BJ201))","v":24734.406177405781},{"$f":"IF(Control!$B64=\"L\",'RES S curve-disconnect'!BK245,IF(Control!$B64=\"M\",'RES S curve-disconnect'!BK223,'RES S curve-disconnect'!BK201))","v":30326.549966867529},{"$f":"IF(Control!$B64=\"L\",'RES S curve-disconnect'!BL245,IF(Control!$B64=\"M\",'RES S curve-disconnect'!BL223,'RES S curve-disconnect'!BL201))","v":-1978.2458106267536},{"$f":"IF(Control!$B64=\"L\",'RES S curve-disconnect'!BM245,IF(Control!$B64=\"M\",'RES S curve-disconnect'!BM223,'RES S curve-disconnect'!BM201))","v":-1971.1638770685386},{"$f":"IF(Control!$B64=\"L\",'RES S curve-disconnect'!BN245,IF(Control!$B64=\"M\",'RES S curve-disconnect'!BN223,'RES S curve-disconnect'!BN201))","v":-1967.4322153774604},{"$f":"IF(Control!$B64=\"L\",'RES S curve-disconnect'!BO245,IF(Control!$B64=\"M\",'RES S curve-disconnect'!BO223,'RES S curve-disconnect'!BO201))","v":-1957.0295066493727},{"$f":"IF(Control!$B64=\"L\",'RES S curve-disconnect'!BP245,IF(Control!$B64=\"M\",'RES S curve-disconnect'!BP223,'RES S curve-disconnect'!BP201))","v":-1949.9769514526113},{"$f":"IF(Control!$B64=\"L\",'RES S curve-disconnect'!BQ245,IF(Control!$B64=\"M\",'RES S curve-disconnect'!BQ223,'RES S curve-disconnect'!BQ201))","v":-1942.9340713200668},{"$f":"IF(Control!$B64=\"L\",'RES S curve-disconnect'!BR245,IF(Control!$B64=\"M\",'RES S curve-disconnect'!BR223,'RES S curve-disconnect'!BR201))","v":-1939.2412278502268},{"$f":"IF(Control!$B64=\"L\",'RES S curve-disconnect'!BS245,IF(Control!$B64=\"M\",'RES S curve-disconnect'!BS223,'RES S curve-disconnect'!BS201))","v":-1928.8771036015182},{"$f":"IF(Control!$B64=\"L\",'RES S curve-disconnect'!BT245,IF(Control!$B64=\"M\",'RES S curve-disconnect'!BT223,'RES S curve-disconnect'!BT201))","v":-1921.8629005956079},{"$f":"IF(Control!$B64=\"L\",'RES S curve-disconnect'!BU245,IF(Control!$B64=\"M\",'RES S curve-disconnect'!BU223,'RES S curve-disconnect'!BU201))","v":-1914.8581418095412},{"$f":"IF(Control!$B64=\"L\",'RES S curve-disconnect'!BV245,IF(Control!$B64=\"M\",'RES S curve-disconnect'!BV223,'RES S curve-disconnect'!BV201))","v":-1911.2031902768435},{"$f":"IF(Control!$B64=\"L\",'RES S curve-disconnect'!BW245,IF(Control!$B64=\"M\",'RES S curve-disconnect'!BW223,'RES S curve-disconnect'!BW201))","v":-1900.8767299819128},{"$f":"IF(Control!$B64=\"L\",'RES S curve-disconnect'!BX245,IF(Control!$B64=\"M\",'RES S curve-disconnect'!BX223,'RES S curve-disconnect'!BX201))","v":-1893.8999643633897},{"$f":"IF(Control!$B64=\"L\",'RES S curve-disconnect'!BY245,IF(Control!$B64=\"M\",'RES S curve-disconnect'!BY223,'RES S curve-disconnect'!BY201))","v":-1886.932417806345},{"$f":"IF(Control!$B64=\"L\",'RES S curve-disconnect'!BZ245,IF(Control!$B64=\"M\",'RES S curve-disconnect'!BZ223,'RES S curve-disconnect'!BZ201))","v":-1883.3144547434367},{"$f":"IF(Control!$B64=\"L\",'RES S curve-disconnect'!CA245,IF(Control!$B64=\"M\",'RES S curve-disconnect'!CA223,'RES S curve-disconnect'!CA201))","v":-1873.0247605493666},{"$f":"IF(Control!$B64=\"L\",'RES S curve-disconnect'!CB245,IF(Control!$B64=\"M\",'RES S curve-disconnect'!CB223,'RES S curve-disconnect'!CB201))","v":-1866.0845400442981},{"$f":"IF(Control!$B64=\"L\",'RES S curve-disconnect'!CC245,IF(Control!$B64=\"M\",'RES S curve-disconnect'!CC223,'RES S curve-disconnect'!CC201))","v":-1859.1533189861073},{"$f":"IF(Control!$B64=\"L\",'RES S curve-disconnect'!CD245,IF(Control!$B64=\"M\",'RES S curve-disconnect'!CD223,'RES S curve-disconnect'!CD201))","v":-1964.9038192074795}]
["Yarra Ranges (S)",{"$f":"Customers!K159","v":48199},{"$f":"IF(Control!$B65=\"L\",'RES S curve-disconnect'!C246,IF(Control!$B65=\"M\",'RES S curve-disconnect'!C224,'RES S curve-disconnect'!C202))","v":-5013.2385079435608},{"$f":"IF(Control!$B65=\"L\",'RES S curve-disconnect'!D246,IF(Control!$B65=\"M\",'RES S curve-disconnect'!D224,'RES S curve-disconnect'!D202))","v":-5554.9794976005414},{"$f":"IF(Control!$B65=\"L\",'RES S curve-disconnect'!E246,IF(Control!$B65=\"M\",'RES S curve-disconnect'!E224,'RES S curve-disconnect'!E202))","v":-4785.6409986389035},{"$f":"IF(Control!$B65=\"L\",'RES S curve-disconnect'!F246,IF(Control!$B65=\"M\",'RES S curve-disconnect'!F224,'RES S curve-disconnect'!F202))","v":-4621.9804459552743},{"$f":"IF(Control!$B65=\"L\",'RES S curve-disconnect'!G246,IF(Control!$B65=\"M\",'RES S curve-disconnect'!G224,'RES S curve-disconnect'!G202))","v":-5946.2605565583781},{"$f":"IF(Control!$B65=\"L\",'RES S curve-disconnect'!H246,IF(Control!$B65=\"M\",'RES S curve-disconnect'!H224,'RES S curve-disconnect'!H202))","v":-5973.8299145195815},{"$f":"IF(Control!$B65=\"L\",'RES S curve-disconnect'!I246,IF(Control!$B65=\"M\",'RES S curve-disconnect'!I224,'RES S curve-disconnect'!I202))","v":-5510.7307558367265},{"$f":"IF(Control!$B65=\"L\",'RES S curve-disconnect'!J246,IF(Control!$B65=\"M\",'RES S curve-disconnect'!J224,'RES S curve-disconnect'!J202))","v":-5844.2770322837123},{"$f":"IF(Control!$B65=\"L\",'RES S curve-disconnect'!K246,IF(Control!$B65=\"M\",'RES S curve-disconnect'!K224,'RES S curve-disconnect'!K202))","v":-4977.3017657513374},{"$f":"IF(Control!$B65=\"L\",'RES S curve-disconnect'!L246,IF(Control!$B65=\"M\",'RES S curve-disconnect'!L224,'RES S curve-disconnect'!L202))","v":-5346.287473440615},{"$f":"IF(Control!$B65=\"L\",'RES S curve-disconnect'!M246,IF(Control!$B65=\"M\",'RES S curve-disconnect'!M224,'RES S curve-disconnect'!M202))","v":-6026.0889004590017},{"$f":"IF(Control!$B65=\"L\",'RES S curve-disconnect'!N246,IF(Control!$B65=\"M\",'RES S curve-disconnect'!N224,'RES S curve-disconnect'!N202))","v":-6088.5727178052948},{"$f":"IF(Control!$B65=\"L\",'RES S curve-disconnect'!O246,IF(Control!$B65=\"M\",'RES S curve-disconnect'!O224,'RES S curve-disconnect'!O202))","v":-5491.3630704838479},{"$f":"IF(Control!$B65=\"L\",'RES S curve-disconnect'!P246,IF(Control!$B65=\"M\",'RES S curve-disconnect'!P224,'RES S curve-disconnect'!P202))","v":-5014.4908069832954},{"$f":"IF(Control!$B65=\"L\",'RES S curve-disconnect'!Q246,IF(Control!$B65=\"M\",'RES S curve-disconnect'!Q224,'RES S curve-disconnect'!Q202))","v":-4294.6942331726632},{"$f":"IF(Control!$B65=\"L\",'RES S curve-disconnect'!R246,IF(Control!$B65=\"M\",'RES S curve-disconnect'!R224,'RES S curve-disconnect'!R202))","v":-3885.9114738311691},{"$f":"IF(Control!$B65=\"L\",'RES S curve-disconnect'!S246,IF(Control!$B65=\"M\",'RES S curve-disconnect'!S224,'RES S curve-disconnect'!S202))","v":-3237.9903015511254},{"$f":"IF(Control!$B65=\"L\",'RES S curve-disconnect'!T246,IF(Control!$B65=\"M\",'RES S curve-disconnect'!T224,'RES S curve-disconnect'!T202))","v":-2882.3643699741192},{"$f":"IF(Control!$B65=\"L\",'RES S curve-disconnect'!U246,IF(Control!$B65=\"M\",'RES S curve-disconnect'!U224,'RES S curve-disconnect'!U202))","v":-2478.5712455174671},{"$f":"IF(Control!$B65=\"L\",'RES S curve-disconnect'!V246,IF(Control!$B65=\"M\",'RES S curve-disconnect'!V224,'RES S curve-disconnect'!V202))","v":-2203.369994677927},{"$f":"IF(Control!$B65=\"L\",'RES S curve-disconnect'!W246,IF(Control!$B65=\"M\",'RES S curve-disconnect'!W224,'RES S curve-disconnect'!W202))","v":-1988.4766482813745},{"$f":"IF(Control!$B65=\"L\",'RES S curve-disconnect'!X246,IF(Control!$B65=\"M\",'RES S curve-disconnect'!X224,'RES S curve-disconnect'!X202))","v":-1501.3476955865419},{"$f":"IF(Control!$B65=\"L\",'RES S curve-disconnect'!Y246,IF(Control!$B65=\"M\",'RES S curve-disconnect'!Y224,'RES S curve-disconnect'!Y202))","v":-1008.8204146118171},{"$f":"IF(Control!$B65=\"L\",'RES S curve-disconnect'!Z246,IF(Control!$B65=\"M\",'RES S curve-disconnect'!Z224,'RES S curve-disconnect'!Z202))","v":-675.30051401672608},{"$f":"IF(Control!$B65=\"L\",'RES S curve-disconnect'!AA246,IF(Control!$B65=\"M\",'RES S curve-disconnect'!AA224,'RES S curve-disconnect'!AA202))","v":-342.12016351560089},{"$f":"IF(Control!$B65=\"L\",'RES S curve-disconnect'!AB246,IF(Control!$B65=\"M\",'RES S curve-disconnect'!AB224,'RES S curve-disconnect'!AB202))","v":-75.93597172906891},{"$f":"IF(Control!$B65=\"L\",'RES S curve-disconnect'!AC246,IF(Control!$B65=\"M\",'RES S curve-disconnect'!AC224,'RES S curve-disconnect'!AC202))","v":180.32023332785667},{"$f":"IF(Control!$B65=\"L\",'RES S curve-disconnect'!AD246,IF(Control!$B65=\"M\",'RES S curve-disconnect'!AD224,'RES S curve-disconnect'!AD202))","v":415.45055965412286},{"$f":"IF(Control!$B65=\"L\",'RES S curve-disconnect'!AE246,IF(Control!$B65=\"M\",'RES S curve-disconnect'!AE224,'RES S curve-disconnect'!AE202))","v":662.0352830118677},{"$f":"IF(Control!$B65=\"L\",'RES S curve-disconnect'!AF246,IF(Control!$B65=\"M\",'RES S curve-disconnect'!AF224,'RES S curve-disconnect'!AF202))","v":981.43182470750696},{"$f":"IF(Control!$B65=\"L\",'RES S curve-disconnect'!AG246,IF(Control!$B65=\"M\",'RES S curve-disconnect'!AG224,'RES S curve-disconnect'!AG202))","v":1200.4687267683341},{"$f":"IF(Control!$B65=\"L\",'RES S curve-disconnect'!AH246,IF(Control!$B65=\"M\",'RES S curve-disconnect'!AH224,'RES S curve-disconnect'!AH202))","v":1509.7383505921136},{"$f":"IF(Control!$B65=\"L\",'RES S curve-disconnect'!AI246,IF(Control!$B65=\"M\",'RES S curve-disconnect'!AI224,'RES S curve-disconnect'!AI202))","v":1786.7938396870372},{"$f":"IF(Control!$B65=\"L\",'RES S curve-disconnect'!AJ246,IF(Control!$B65=\"M\",'RES S curve-disconnect'!AJ224,'RES S curve-disconnect'!AJ202))","v":2037.0270425387102},{"$f":"IF(Control!$B65=\"L\",'RES S curve-disconnect'!AK246,IF(Control!$B65=\"M\",'RES S curve-disconnect'!AK224,'RES S curve-disconnect'!AK202))","v":2302.65317509119},{"$f":"IF(Control!$B65=\"L\",'RES S curve-disconnect'!AL246,IF(Control!$B65=\"M\",'RES S curve-disconnect'!AL224,'RES S curve-disconnect'!AL202))","v":1385.5875411891579},{"$f":"IF(Control!$B65=\"L\",'RES S curve-disconnect'!AM246,IF(Control!$B65=\"M\",'RES S curve-disconnect'!AM224,'RES S curve-disconnect'!AM202))","v":1264.0330578873998},{"$f":"IF(Control!$B65=\"L\",'RES S curve-disconnect'!AN246,IF(Control!$B65=\"M\",'RES S curve-disconnect'!AN224,'RES S curve-disconnect'!AN202))","v":1514.690548317855},{"$f":"IF(Control!$B65=\"L\",'RES S curve-disconnect'!AO246,IF(Control!$B65=\"M\",'RES S curve-disconnect'!AO224,'RES S curve-disconnect'!AO202))","v":1822.0417086667787},{"$f":"IF(Control!$B65=\"L\",'RES S curve-disconnect'!AP246,IF(Control!$B65=\"M\",'RES S curve-disconnect'!AP224,'RES S curve-disconnect'!AP202))","v":2106.4424881505092},{"$f":"IF(Control!$B65=\"L\",'RES S curve-disconnect'!AQ246,IF(Control!$B65=\"M\",'RES S curve-disconnect'!AQ224,'RES S curve-disconnect'!AQ202))","v":2412.1674640014066},{"$f":"IF(Control!$B65=\"L\",'RES S curve-disconnect'!AR246,IF(Control!$B65=\"M\",'RES S curve-disconnect'!AR224,'RES S curve-disconnect'!AR202))","v":2748.1339980133521},{"$f":"IF(Control!$B65=\"L\",'RES S curve-disconnect'!AS246,IF(Control!$B65=\"M\",'RES S curve-disconnect'!AS224,'RES S curve-disconnect'!AS202))","v":3125.2127463147863},{"$f":"IF(Control!$B65=\"L\",'RES S curve-disconnect'!AT246,IF(Control!$B65=\"M\",'RES S curve-disconnect'!AT224,'RES S curve-disconnect'!AT202))","v":3547.3324116698022},{"$f":"IF(Control!$B65=\"L\",'RES S curve-disconnect'!AU246,IF(Control!$B65=\"M\",'RES S curve-disconnect'!AU224,'RES S curve-disconnect'!AU202))","v":4035.2931070218024},{"$f":"IF(Control!$B65=\"L\",'RES S curve-disconnect'!AV246,IF(Control!$B65=\"M\",'RES S curve-disconnect'!AV224,'RES S curve-disconnect'!AV202))","v":4592.3102624169051},{"$f":"IF(Control!$B65=\"L\",'RES S curve-disconnect'!AW246,IF(Control!$B65=\"M\",'RES S curve-disconnect'!AW224,'RES S curve-disconnect'!AW202))","v":5232.7529871155866},{"$f":"IF(Control!$B65=\"L\",'RES S curve-disconnect'!AX246,IF(Control!$B65=\"M\",'RES S curve-disconnect'!AX224,'RES S curve-disconnect'!AX202))","v":5963.1747842246359},{"$f":"IF(Control!$B65=\"L\",'RES S curve-disconnect'!AY246,IF(Control!$B65=\"M\",'RES S curve-disconnect'!AY224,'RES S curve-disconnect'!AY202))","v":6805.7856043276734},{"$f":"IF(Control!$B65=\"L\",'RES S curve-disconnect'!AZ246,IF(Control!$B65=\"M\",'RES S curve-disconnect'!AZ224,'RES S curve-disconnect'!AZ202))","v":7769.7081175290677},{"$f":"IF(Control!$B65=\"L\",'RES S curve-disconnect'!BA246,IF(Control!$B65=\"M\",'RES S curve-disconnect'!BA224,'RES S curve-disconnect'!BA202))","v":8886.4960453260173},{"$f":"IF(Control!$B65=\"L\",'RES S curve-disconnect'!BB246,IF(Control!$B65=\"M\",'RES S curve-disconnect'!BB224,'RES S curve-disconnect'!BB202))","v":10192.101847796195},{"$f":"IF(Control!$B65=\"L\",'RES S curve-disconnect'!BC246,IF(Control!$B65=\"M\",'RES S curve-disconnect'!BC224,'RES S curve-disconnect'!BC202))","v":11749.208810624841},{"$f":"IF(Control!$B65=\"L\",'RES S curve-disconnect'!BD246,IF(Control!$B65=\"M\",'RES S curve-disconnect'!BD224,'RES S curve-disconnect'!BD202))","v":13253.521840000642},{"$f":"IF(Control!$B65=\"L\",'RES S curve-disconnect'!BE246,IF(Control!$B65=\"M\",'RES S curve-disconnect'!BE224,'RES S curve-disconnect'!BE202))","v":14629.20408953589},{"$f":"IF(Control!$B65=\"L\",'RES S curve-disconnect'!BF246,IF(Control!$B65=\"M\",'RES S curve-disconnect'!BF224,'RES S curve-disconnect'!BF202))","v":16036.569220129148},{"$f":"IF(Control!$B65=\"L\",'RES S curve-disconnect'!BG246,IF(Control!$B65=\"M\",'RES S curve-disconnect'!BG224,'RES S curve-disconnect'!BG202))","v":17628.567890253995},{"$f":"IF(Control!$B65=\"L\",'RES S curve-disconnect'!BH246,IF(Control!$B65=\"M\",'RES S curve-disconnect'!BH224,'RES S curve-disconnect'!BH202))","v":19518.856447149141},{"$f":"IF(Control!$B65=\"L\",'RES S curve-disconnect'!BI246,IF(Control!$B65=\"M\",'RES S curve-disconnect'!BI224,'RES S curve-disconnect'!BI202))","v":22257.377035195328},{"$f":"IF(Control!$B65=\"L\",'RES S curve-disconnect'!BJ246,IF(Control!$B65=\"M\",'RES S curve-disconnect'!BJ224,'RES S curve-disconnect'!BJ202))","v":26270.633058040246},{"$f":"IF(Control!$B65=\"L\",'RES S curve-disconnect'!BK246,IF(Control!$B65=\"M\",'RES S curve-disconnect'!BK224,'RES S curve-disconnect'!BK202))","v":32197.133580274458},{"$f":"IF(Control!$B65=\"L\",'RES S curve-disconnect'!BL246,IF(Control!$B65=\"M\",'RES S curve-disconnect'!BL224,'RES S curve-disconnect'!BL202))","v":-1972.3415316939136},{"$f":"IF(Control!$B65=\"L\",'RES S curve-disconnect'!BM246,IF(Control!$B65=\"M\",'RES S curve-disconnect'!BM224,'RES S curve-disconnect'!BM202))","v":-1964.8800098849576},{"$f":"IF(Control!$B65=\"L\",'RES S curve-disconnect'!BN246,IF(Control!$B65=\"M\",'RES S curve-disconnect'!BN224,'RES S curve-disconnect'!BN202))","v":-1960.7689543261006},{"$f":"IF(Control!$B65=\"L\",'RES S curve-disconnect'!BO246,IF(Control!$B65=\"M\",'RES S curve-disconnect'!BO224,'RES S curve-disconnect'!BO202))","v":-1949.9870452390323},{"$f":"IF(Control!$B65=\"L\",'RES S curve-disconnect'!BP246,IF(Control!$B65=\"M\",'RES S curve-disconnect'!BP224,'RES S curve-disconnect'!BP202))","v":-1942.5554823224488},{"$f":"IF(Control!$B65=\"L\",'RES S curve-disconnect'!BQ246,IF(Control!$B65=\"M\",'RES S curve-disconnect'!BQ224,'RES S curve-disconnect'!BQ202))","v":-1935.1337862440951},{"$f":"IF(Control!$B65=\"L\",'RES S curve-disconnect'!BR246,IF(Control!$B65=\"M\",'RES S curve-disconnect'!BR224,'RES S curve-disconnect'!BR202))","v":-1931.0623177417847},{"$f":"IF(Control!$B65=\"L\",'RES S curve-disconnect'!BS246,IF(Control!$B65=\"M\",'RES S curve-disconnect'!BS224,'RES S curve-disconnect'!BS202))","v":-1920.3197585177156},{"$f":"IF(Control!$B65=\"L\",'RES S curve-disconnect'!BT246,IF(Control!$B65=\"M\",'RES S curve-disconnect'!BT224,'RES S curve-disconnect'!BT202))","v":-1912.9273097417445},{"$f":"IF(Control!$B65=\"L\",'RES S curve-disconnect'!BU246,IF(Control!$B65=\"M\",'RES S curve-disconnect'!BU224,'RES S curve-disconnect'!BU202))","v":-1905.5444935435003},{"$f":"IF(Control!$B65=\"L\",'RES S curve-disconnect'!BV246,IF(Control!$B65=\"M\",'RES S curve-disconnect'!BV224,'RES S curve-disconnect'!BV202))","v":-1901.5116721134641},{"$f":"IF(Control!$B65=\"L\",'RES S curve-disconnect'!BW246,IF(Control!$B65=\"M\",'RES S curve-disconnect'!BW224,'RES S curve-disconnect'!BW202))","v":-1890.8075285973307},{"$f":"IF(Control!$B65=\"L\",'RES S curve-disconnect'!BX246,IF(Control!$B65=\"M\",'RES S curve-disconnect'!BX224,'RES S curve-disconnect'!BX202))","v":-1883.4532655993596},{"$f":"IF(Control!$B65=\"L\",'RES S curve-disconnect'!BY246,IF(Control!$B65=\"M\",'RES S curve-disconnect'!BY224,'RES S curve-disconnect'!BY202))","v":-1876.1084066745339},{"$f":"IF(Control!$B65=\"L\",'RES S curve-disconnect'!BZ246,IF(Control!$B65=\"M\",'RES S curve-disconnect'!BZ224,'RES S curve-disconnect'!BZ202))","v":-1872.1133154296961},{"$f":"IF(Control!$B65=\"L\",'RES S curve-disconnect'!CA246,IF(Control!$B65=\"M\",'RES S curve-disconnect'!CA224,'RES S curve-disconnect'!CA202))","v":-1861.4466764179765},{"$f":"IF(Control!$B65=\"L\",'RES S curve-disconnect'!CB246,IF(Control!$B65=\"M\",'RES S curve-disconnect'!CB224,'RES S curve-disconnect'!CB202))","v":-1854.1296936421913},{"$f":"IF(Control!$B65=\"L\",'RES S curve-disconnect'!CC246,IF(Control!$B65=\"M\",'RES S curve-disconnect'!CC224,'RES S curve-disconnect'!CC202))","v":-1846.8218920470665},{"$f":"IF(Control!$B65=\"L\",'RES S curve-disconnect'!CD246,IF(Control!$B65=\"M\",'RES S curve-disconnect'!CD224,'RES S curve-disconnect'!CD202))","v":-1959.1397308761104}]
["Weighted Average NPV",{"$f":"Customers!K160","v":686973},{"$f":"SUMPRODUCT($B$24:$B$43,C24:C43)/$B$44","v":-4577.9085630030713},{"$f":"SUMPRODUCT($B$24:$B$43,D24:D43)/$B$44","v":-5086.1060392956488},-4430.9948282084324,-4280.5470853833949,-5428.6386796977076,-5461.8471224142913,-5033.2867412010273,-5361.8116376911421,-4559.7151038173952,-4906.3161154149648,-5530.6243709788032,-5589.0378848912815,-5033.5534136548104,-4591.6954344366368,-3924.403860078673,-3545.9870191768923,-2943.2703071946412,-2618.0315732106833,-2244.9368442229429,-1989.5617739195391,-1790.3758899760796,-1340.6732722817073,-885.41425796804276,-576.99121465690632,-268.23537296865339,-21.492582775864697,216.43972413352037,434.72627048712116,664.58269344537814,961.36260788944821,1165.6825275397625,1452.3479715465091,1710.8071160657264,1943.900484265715,2191.3904521275927,1332.544781974181,1221.2228184969665,1456.0502866848467,1742.7722206833221,2007.3660149509692,2292.5270605868513,2605.4690979891097,2956.5949004318577,3349.1701609680435,3803.5697837303737,4321.6673207411914,4917.0737090672892,5595.3933142241385,6378.1928213693245,7272.7206246892138,8308.4429514851981,9518.1004210099363,10960.562302089396,12351.086540858512,13621.698808423062,14921.873276291553,16393.758574656738,18140.744832863133,20672.365774741291,24378.912766702277,29847.330609515946,-1807.7856498465749,-1800.8480191116569,-1797.3805108094566,-1787.0020755252438,{"$f":"SUMPRODUCT($B$24:$B$43,BP24:BP43)/$B$44","v":-1780.0936448310986},-1773.1948302521255,-1769.7659038830204,-1759.4258177668994,-1752.5555049244774,-1745.6945783203373,-1742.3033114795664,-1732.0006578666294,-1725.1675519146131,-1718.3436079915571,-1714.9891010171314,-1704.7229858415808,-1697.9261982750177,-1691.1383540538113,-1794.339070854186]
["LGA Number of decision points",{"$f":"B23","v":"2021 Weights"},2021,{"$f":"C45+1","v":2022},{"$f":"D45+1","v":2023},{"$f":"E45+1","v":2024},{"$f":"F45+1","v":2025},{"$f":"G45+1","v":2026},{"$f":"H45+1","v":2027},{"$f":"I45+1","v":2028},{"$f":"J45+1","v":2029},{"$f":"K45+1","v":2030},{"$f":"L45+1","v":2031},{"$f":"M45+1","v":2032},{"$f":"N45+1","v":2033},{"$f":"O45+1","v":2034},{"$f":"P45+1","v":2035},{"$f":"Q45+1","v":2036},{"$f":"R45+1","v":2037},{"$f":"S45+1","v":2038},{"$f":"T45+1","v":2039},{"$f":"U45+1","v":2040},{"$f":"V45+1","v":2041},{"$f":"W45+1","v":2042},{"$f":"X45+1","v":2043},{"$f":"Y45+1","v":2044},{"$f":"Z45+1","v":2045},{"$f":"AA45+1","v":2046},{"$f":"AB45+1","v":2047},{"$f":"AC45+1","v":2048},{"$f":"AD45+1","v":2049},{"$f":"AE45+1","v":2050},{"$f":"AF45+1","v":2051},{"$f":"AG45+1","v":2052},{"$f":"AH45+1","v":2053},{"$f":"AI45+1","v":2054},{"$f":"AJ45+1","v":2055},{"$f":"AK45+1","v":2056},{"$f":"AL45+1","v":2057},{"$f":"AM45+1","v":2058},{"$f":"AN45+1","v":2059},{"$f":"AO45+1","v":2060},{"$f":"AP45+1","v":2061},{"$f":"AQ45+1","v":2062},{"$f":"AR45+1","v":2063},{"$f":"AS45+1","v":2064},{"$f":"AT45+1","v":2065},{"$f":"AU45+1","v":2066},{"$f":"AV45+1","v":2067},{"$f":"AW45+1","v":2068},{"$f":"AX45+1","v":2069},{"$f":"AY45+1","v":2070},{"$f":"AZ45+1","v":2071},{"$f":"BA45+1","v":2072},{"$f":"BB45+1","v":2073},{"$f":"BC45+1","v":2074},{"$f":"BD45+1","v":2075},{"$f":"BE45+1","v":2076},{"$f":"BF45+1","v":2077},{"$f":"BG45+1","v":2078},{"$f":"BH45+1","v":2079},{"$f":"BI45+1","v":2080},{"$f":"BJ45+1","v":2081},{"$f":"BK45+1","v":2082},{"$f":"BL45+1","v":2083},{"$f":"BM45+1","v":2084},{"$f":"BN45+1","v":2085},{"$f":"BO45+1","v":2086},{"$f":"BP45+1","v":2087},{"$f":"BQ45+1","v":2088},{"$f":"BR45+1","v":2089},{"$f":"BS45+1","v":2090},{"$f":"BT45+1","v":2091},{"$f":"BU45+1","v":2092},{"$f":"BV45+1","v":2093},{"$f":"BW45+1","v":2094},{"$f":"BX45+1","v":2095},{"$f":"BY45+1","v":2096},{"$f":"BZ45+1","v":2097},{"$f":"CA45+1","v":2098},{"$f":"CB45+1","v":2099},{"$f":"CC45+1","v":2100}]
["Bass Coast (S)",null,{"$f":"CustomersRes!K124*Scenarios!B108","v":236},{"$f":"CustomersRes!L124*Scenarios!C108","v":240},{"$f":"CustomersRes!M124*Scenarios!D108","v":243},{"$f":"CustomersRes!N124*Scenarios!E108","v":247},{"$f":"CustomersRes!O124*Scenarios!F108","v":250},{"$f":"CustomersRes!P124*Scenarios!G108","v":254},{"$f":"CustomersRes!Q124*Scenarios!H108","v":258},{"$f":"CustomersRes!R124*Scenarios!I108","v":262},{"$f":"CustomersRes!S124*Scenarios!J108","v":266},{"$f":"CustomersRes!T124*Scenarios!K108","v":270},{"$f":"CustomersRes!U124*Scenarios!L108","v":274},{"$f":"CustomersRes!V124*Scenarios!M108","v":272},{"$f":"CustomersRes!W124*Scenarios!N108","v":271},{"$f":"CustomersRes!X124*Scenarios!O108","v":269},{"$f":"CustomersRes!Y124*Scenarios!P108","v":268},{"$f":"CustomersRes!Z124*Scenarios!Q108","v":267},{"$f":"CustomersRes!AA124*Scenarios!R108","v":265},{"$f":"CustomersRes!AB124*Scenarios!S108","v":264},{"$f":"CustomersRes!AC124*Scenarios!T108","v":263},{"$f":"CustomersRes!AD124*Scenarios!U108","v":261},{"$f":"CustomersRes!AE124*Scenarios!V108","v":260},{"$f":"CustomersRes!AF124*Scenarios!W108","v":259},{"$f":"CustomersRes!AG124*Scenarios!X108","v":258},{"$f":"CustomersRes!AH124*Scenarios!Y108","v":256},{"$f":"CustomersRes!AI124*Scenarios!Z108","v":255},{"$f":"CustomersRes!AJ124*Scenarios!AA108","v":253},{"$f":"CustomersRes!AK124*Scenarios!AB108","v":252},{"$f":"CustomersRes!AL124*Scenarios!AC108","v":251},{"$f":"CustomersRes!AM124*Scenarios!AD108","v":249},{"$f":"CustomersRes!AN124*Scenarios!AE108","v":247},{"$f":"CustomersRes!AO124*Scenarios!AF108","v":246},{"$f":"CustomersRes!AP124*Scenarios!AG108","v":244},{"$f":"CustomersRes!AQ124*Scenarios!AH108","v":241},{"$f":"CustomersRes!AR124*Scenarios!AI108","v":239},{"$f":"CustomersRes!AS124*Scenarios!AJ108","v":236},{"$f":"CustomersRes!AT124*Scenarios!AK108","v":233},{"$f":"CustomersRes!AU124*Scenarios!AL108","v":231},{"$f":"CustomersRes!AV124*Scenarios!AM108","v":229},{"$f":"CustomersRes!AW124*Scenarios!AN108","v":227},{"$f":"CustomersRes!AX124*Scenarios!AO108","v":224},{"$f":"CustomersRes!AY124*Scenarios!AP108","v":222},{"$f":"CustomersRes!AZ124*Scenarios!AQ108","v":218},{"$f":"CustomersRes!BA124*Scenarios!AR108","v":214},{"$f":"CustomersRes!BB124*Scenarios!AS108","v":209},{"$f":"CustomersRes!BC124*Scenarios!AT108","v":203},{"$f":"CustomersRes!BD124*Scenarios!AU108","v":195},{"$f":"CustomersRes!BE124*Scenarios!AV108","v":186},{"$f":"CustomersRes!BF124*Scenarios!AW108","v":175},{"$f":"CustomersRes!BG124*Scenarios!AX108","v":164},{"$f":"CustomersRes!BH124*Scenarios!AY108","v":153},{"$f":"CustomersRes!BI124*Scenarios!AZ108","v":142},{"$f":"CustomersRes!BJ124*Scenarios!BA108","v":132},{"$f":"CustomersRes!BK124*Scenarios!BB108","v":123},{"$f":"CustomersRes!BL124*Scenarios!BC108","v":114},{"$f":"CustomersRes!BM124*Scenarios!BD108","v":106},{"$f":"CustomersRes!BN124*Scenarios!BE108","v":98},{"$f":"CustomersRes!BO124*Scenarios!BF108","v":91},{"$f":"CustomersRes!BP124*Scenarios!BG108","v":85},{"$f":"CustomersRes!BQ124*Scenarios!BH108","v":79},{"$f":"CustomersRes!BR124*Scenarios!BI108","v":73},{"$f":"CustomersRes!BS124*Scenarios!BJ108","v":68},{"$f":"CustomersRes!BT124*Scenarios!BK108","v":63},{"$f":"CustomersRes!BU124*Scenarios!BL108","v":63},{"$f":"CustomersRes!BV124*Scenarios!BM108","v":63},{"$f":"CustomersRes!BW124*Scenarios!BN108","v":62},{"$f":"CustomersRes!BX124*Scenarios!BO108","v":62},{"$f":"CustomersRes!BY124*Scenarios!BP108","v":62},{"$f":"CustomersRes!BZ124*Scenarios!BQ108","v":61},{"$f":"CustomersRes!CA124*Scenarios!BR108","v":61},{"$f":"CustomersRes!CB124*Scenarios!BS108","v":61},{"$f":"CustomersRes!CC124*Scenarios!BT108","v":61},{"$f":"CustomersRes!CD124*Scenarios!BU108","v":60},{"$f":"CustomersRes!CE124*Scenarios!BV108","v":60},{"$f":"CustomersRes!CF124*Scenarios!BW108","v":60},{"$f":"CustomersRes!CG124*Scenarios!BX108","v":59},{"$f":"CustomersRes!CH124*Scenarios!BY108","v":59},{"$f":"CustomersRes!CI124*Scenarios!BZ108","v":59},{"$f":"CustomersRes!CJ124*Scenarios!CA108","v":58},{"$f":"CustomersRes!CK124*Scenarios!CB108","v":58},{"$f":"CustomersRes!CL124*Scenarios!CC108","v":58}]
["Bayside (C)",null,{"$f":"CustomersRes!K125*Scenarios!B109","v":2492},{"$f":"CustomersRes!L125*Scenarios!C109","v":2529},{"$f":"CustomersRes!M125*Scenarios!D109","v":2567},{"$f":"CustomersRes!N125*Scenarios!E109","v":2605},{"$f":"CustomersRes!O125*Scenarios!F109","v":2644},{"$f":"CustomersRes!P125*Scenarios!G109","v":2684},{"$f":"CustomersRes!Q125*Scenarios!H109","v":2724},{"$f":"CustomersRes!R125*Scenarios!I109","v":2765},{"$f":"CustomersRes!S125*Scenarios!J109","v":2806},{"$f":"CustomersRes!T125*Scenarios!K109","v":2848},{"$f":"CustomersRes!U125*Scenarios!L109","v":2891},{"$f":"CustomersRes!V125*Scenarios!M109","v":2877},{"$f":"CustomersRes!W125*Scenarios!N109","v":2862},{"$f":"CustomersRes!X125*Scenarios!O109","v":2848},{"$f":"CustomersRes!Y125*Scenarios!P109","v":2834},{"$f":"CustomersRes!Z125*Scenarios!Q109","v":2819},{"$f":"CustomersRes!AA125*Scenarios!R109","v":2805},{"$f":"CustomersRes!AB125*Scenarios!S109","v":2791},{"$f":"CustomersRes!AC125*Scenarios!T109","v":2777},{"$f":"CustomersRes!AD125*Scenarios!U109","v":2762},{"$f":"CustomersRes!AE125*Scenarios!V109","v":2746},{"$f":"CustomersRes!AF125*Scenarios!W109","v":2728},{"$f":"CustomersRes!AG125*Scenarios!X109","v":2701},{"$f":"CustomersRes!AH125*Scenarios!Y109","v":2646},{"$f":"CustomersRes!AI125*Scenarios!Z109","v":2559},{"$f":"CustomersRes!AJ125*Scenarios!AA109","v":2439},{"$f":"CustomersRes!AK125*Scenarios!AB109","v":2301},{"$f":"CustomersRes!AL125*Scenarios!AC109","v":2156},{"$f":"CustomersRes!AM125*Scenarios!AD109","v":2012},{"$f":"CustomersRes!AN125*Scenarios!AE109","v":1874},{"$f":"CustomersRes!AO125*Scenarios!AF109","v":1742},{"$f":"CustomersRes!AP125*Scenarios!AG109","v":1618},{"$f":"CustomersRes!AQ125*Scenarios!AH109","v":1503},{"$f":"CustomersRes!AR125*Scenarios!AI109","v":1395},{"$f":"CustomersRes!AS125*Scenarios!AJ109","v":1295},{"$f":"CustomersRes!AT125*Scenarios!AK109","v":1203},{"$f":"CustomersRes!AU125*Scenarios!AL109","v":1117},{"$f":"CustomersRes!AV125*Scenarios!AM109","v":1038},{"$f":"CustomersRes!AW125*Scenarios!AN109","v":963},{"$f":"CustomersRes!AX125*Scenarios!AO109","v":895},{"$f":"CustomersRes!AY125*Scenarios!AP109","v":831},{"$f":"CustomersRes!AZ125*Scenarios!AQ109","v":771},{"$f":"CustomersRes!BA125*Scenarios!AR109","v":716},{"$f":"CustomersRes!BB125*Scenarios!AS109","v":665},{"$f":"CustomersRes!BC125*Scenarios!AT109","v":617},{"$f":"CustomersRes!BD125*Scenarios!AU109","v":573},{"$f":"CustomersRes!BE125*Scenarios!AV109","v":532},{"$f":"CustomersRes!BF125*Scenarios!AW109","v":494},{"$f":"CustomersRes!BG125*Scenarios!AX109","v":458},{"$f":"CustomersRes!BH125*Scenarios!AY109","v":426},{"$f":"CustomersRes!BI125*Scenarios!AZ109","v":395},{"$f":"CustomersRes!BJ125*Scenarios!BA109","v":367},{"$f":"CustomersRes!BK125*Scenarios!BB109","v":341},{"$f":"CustomersRes!BL125*Scenarios!BC109","v":316},{"$f":"CustomersRes!BM125*Scenarios!BD109","v":294},{"$f":"CustomersRes!BN125*Scenarios!BE109","v":273},{"$f":"CustomersRes!BO125*Scenarios!BF109","v":253},{"$f":"CustomersRes!BP125*Scenarios!BG109","v":235},{"$f":"CustomersRes!BQ125*Scenarios!BH109","v":218},{"$f":"CustomersRes!BR125*Scenarios!BI109","v":202},{"$f":"CustomersRes!BS125*Scenarios!BJ109","v":188},{"$f":"CustomersRes!BT125*Scenarios!BK109","v":174},{"$f":"CustomersRes!BU125*Scenarios!BL109","v":173},{"$f":"CustomersRes!BV125*Scenarios!BM109","v":172},{"$f":"CustomersRes!BW125*Scenarios!BN109","v":171},{"$f":"CustomersRes!BX125*Scenarios!BO109","v":170},{"$f":"CustomersRes!BY125*Scenarios!BP109","v":169},{"$f":"CustomersRes!BZ125*Scenarios!BQ109","v":168},{"$f":"CustomersRes!CA125*Scenarios!BR109","v":167},{"$f":"CustomersRes!CB125*Scenarios!BS109","v":166},{"$f":"CustomersRes!CC125*Scenarios!BT109","v":165},{"$f":"CustomersRes!CD125*Scenarios!BU109","v":164},{"$f":"CustomersRes!CE125*Scenarios!BV109","v":163},{"$f":"CustomersRes!CF125*Scenarios!BW109","v":162},{"$f":"CustomersRes!CG125*Scenarios!BX109","v":161},{"$f":"CustomersRes!CH125*Scenarios!BY109","v":160},{"$f":"CustomersRes!CI125*Scenarios!BZ109","v":159},{"$f":"CustomersRes!CJ125*Scenarios!CA109","v":158},{"$f":"CustomersRes!CK125*Scenarios!CB109","v":157},{"$f":"CustomersRes!CL125*Scenarios!CC109","v":156}]
["Boroondara (C)",null,{"$f":"CustomersRes!K126*Scenarios!B110","v":4231},{"$f":"CustomersRes!L126*Scenarios!C110","v":4294},{"$f":"CustomersRes!M126*Scenarios!D110","v":4358},{"$f":"CustomersRes!N126*Scenarios!E110","v":4424},{"$f":"CustomersRes!O126*Scenarios!F110","v":4490},{"$f":"CustomersRes!P126*Scenarios!G110","v":4557},{"$f":"CustomersRes!Q126*Scenarios!H110","v":4626},{"$f":"CustomersRes!R126*Scenarios!I110","v":4695},{"$f":"CustomersRes!S126*Scenarios!J110","v":4765},{"$f":"CustomersRes!T126*Scenarios!K110","v":4837},{"$f":"CustomersRes!U126*Scenarios!L110","v":4909},{"$f":"CustomersRes!V126*Scenarios!M110","v":4885},{"$f":"CustomersRes!W126*Scenarios!N110","v":4860},{"$f":"CustomersRes!X126*Scenarios!O110","v":4836},{"$f":"CustomersRes!Y126*Scenarios!P110","v":4812},{"$f":"CustomersRes!Z126*Scenarios!Q110","v":4788},{"$f":"CustomersRes!AA126*Scenarios!R110","v":4764},{"$f":"CustomersRes!AB126*Scenarios!S110","v":4739},{"$f":"CustomersRes!AC126*Scenarios!T110","v":4715},{"$f":"CustomersRes!AD126*Scenarios!U110","v":4689},{"$f":"CustomersRes!AE126*Scenarios!V110","v":4660},{"$f":"CustomersRes!AF126*Scenarios!W110","v":4629},{"$f":"CustomersRes!AG126*Scenarios!X110","v":4579},{"$f":"CustomersRes!AH126*Scenarios!Y110","v":4482},{"$f":"CustomersRes!AI126*Scenarios!Z110","v":4332},{"$f":"CustomersRes!AJ126*Scenarios!AA110","v":4128},{"$f":"CustomersRes!AK126*Scenarios!AB110","v":3896},{"$f":"CustomersRes!AL126*Scenarios!AC110","v":3652},{"$f":"CustomersRes!AM126*Scenarios!AD110","v":3410},{"$f":"CustomersRes!AN126*Scenarios!AE110","v":3176},{"$f":"CustomersRes!AO126*Scenarios!AF110","v":2953},{"$f":"CustomersRes!AP126*Scenarios!AG110","v":2744},{"$f":"CustomersRes!AQ126*Scenarios!AH110","v":2548},{"$f":"CustomersRes!AR126*Scenarios!AI110","v":2366},{"$f":"CustomersRes!AS126*Scenarios!AJ110","v":2197},{"$f":"CustomersRes!AT126*Scenarios!AK110","v":2039},{"$f":"CustomersRes!AU126*Scenarios!AL110","v":1894},{"$f":"CustomersRes!AV126*Scenarios!AM110","v":1760},{"$f":"CustomersRes!AW126*Scenarios!AN110","v":1635},{"$f":"CustomersRes!AX126*Scenarios!AO110","v":1518},{"$f":"CustomersRes!AY126*Scenarios!AP110","v":1409},{"$f":"CustomersRes!AZ126*Scenarios!AQ110","v":1308},{"$f":"CustomersRes!BA126*Scenarios!AR110","v":1214},{"$f":"CustomersRes!BB126*Scenarios!AS110","v":1128},{"$f":"CustomersRes!BC126*Scenarios!AT110","v":1047},{"$f":"CustomersRes!BD126*Scenarios!AU110","v":972},{"$f":"CustomersRes!BE126*Scenarios!AV110","v":902},{"$f":"CustomersRes!BF126*Scenarios!AW110","v":838},{"$f":"CustomersRes!BG126*Scenarios!AX110","v":778},{"$f":"CustomersRes!BH126*Scenarios!AY110","v":722},{"$f":"CustomersRes!BI126*Scenarios!AZ110","v":670},{"$f":"CustomersRes!BJ126*Scenarios!BA110","v":622},{"$f":"CustomersRes!BK126*Scenarios!BB110","v":578},{"$f":"CustomersRes!BL126*Scenarios!BC110","v":536},{"$f":"CustomersRes!BM126*Scenarios!BD110","v":498},{"$f":"CustomersRes!BN126*Scenarios!BE110","v":462},{"$f":"CustomersRes!BO126*Scenarios!BF110","v":429},{"$f":"CustomersRes!BP126*Scenarios!BG110","v":398},{"$f":"CustomersRes!BQ126*Scenarios!BH110","v":370},{"$f":"CustomersRes!BR126*Scenarios!BI110","v":343},{"$f":"CustomersRes!BS126*Scenarios!BJ110","v":319},{"$f":"CustomersRes!BT126*Scenarios!BK110","v":296},{"$f":"CustomersRes!BU126*Scenarios!BL110","v":294},{"$f":"CustomersRes!BV126*Scenarios!BM110","v":292},{"$f":"CustomersRes!BW126*Scenarios!BN110","v":290},{"$f":"CustomersRes!BX126*Scenarios!BO110","v":288},{"$f":"CustomersRes!BY126*Scenarios!BP110","v":287},{"$f":"CustomersRes!BZ126*Scenarios!BQ110","v":285},{"$f":"CustomersRes!CA126*Scenarios!BR110","v":283},{"$f":"CustomersRes!CB126*Scenarios!BS110","v":281},{"$f":"CustomersRes!CC126*Scenarios!BT110","v":279},{"$f":"CustomersRes!CD126*Scenarios!BU110","v":277},{"$f":"CustomersRes!CE126*Scenarios!BV110","v":276},{"$f":"CustomersRes!CF126*Scenarios!BW110","v":274},{"$f":"CustomersRes!CG126*Scenarios!BX110","v":272},{"$f":"CustomersRes!CH126*Scenarios!BY110","v":270},{"$f":"CustomersRes!CI126*Scenarios!BZ110","v":268},{"$f":"CustomersRes!CJ126*Scenarios!CA110","v":266},{"$f":"CustomersRes!CK126*Scenarios!CB110","v":265},{"$f":"CustomersRes!CL126*Scenarios!CC110","v":263}]
["Cardinia (S)",null,{"$f":"CustomersRes!K127*Scenarios!B111","v":278},{"$f":"CustomersRes!L127*Scenarios!C111","v":282},{"$f":"CustomersRes!M127*Scenarios!D111","v":286},{"$f":"CustomersRes!N127*Scenarios!E111","v":290},{"$f":"CustomersRes!O127*Scenarios!F111","v":294},{"$f":"CustomersRes!P127*Scenarios!G111","v":299},{"$f":"CustomersRes!Q127*Scenarios!H111","v":303},{"$f":"CustomersRes!R127*Scenarios!I111","v":308},{"$f":"CustomersRes!S127*Scenarios!J111","v":312},{"$f":"CustomersRes!T127*Scenarios!K111","v":317},{"$f":"CustomersRes!U127*Scenarios!L111","v":322},{"$f":"CustomersRes!V127*Scenarios!M111","v":320},{"$f":"CustomersRes!W127*Scenarios!N111","v":319},{"$f":"CustomersRes!X127*Scenarios!O111","v":317},{"$f":"CustomersRes!Y127*Scenarios!P111","v":315},{"$f":"CustomersRes!Z127*Scenarios!Q111","v":314},{"$f":"CustomersRes!AA127*Scenarios!R111","v":312},{"$f":"CustomersRes!AB127*Scenarios!S111","v":311},{"$f":"CustomersRes!AC127*Scenarios!T111","v":309},{"$f":"CustomersRes!AD127*Scenarios!U111","v":308},{"$f":"CustomersRes!AE127*Scenarios!V111","v":306},{"$f":"CustomersRes!AF127*Scenarios!W111","v":304},{"$f":"CustomersRes!AG127*Scenarios!X111","v":303},{"$f":"CustomersRes!AH127*Scenarios!Y111","v":301},{"$f":"CustomersRes!AI127*Scenarios!Z111","v":300},{"$f":"CustomersRes!AJ127*Scenarios!AA111","v":298},{"$f":"CustomersRes!AK127*Scenarios!AB111","v":297},{"$f":"CustomersRes!AL127*Scenarios!AC111","v":295},{"$f":"CustomersRes!AM127*Scenarios!AD111","v":293},{"$f":"CustomersRes!AN127*Scenarios!AE111","v":292},{"$f":"CustomersRes!AO127*Scenarios!AF111","v":289},{"$f":"CustomersRes!AP127*Scenarios!AG111","v":287},{"$f":"CustomersRes!AQ127*Scenarios!AH111","v":284},{"$f":"CustomersRes!AR127*Scenarios!AI111","v":280},{"$f":"CustomersRes!AS127*Scenarios!AJ111","v":275},{"$f":"CustomersRes!AT127*Scenarios!AK111","v":269},{"$f":"CustomersRes!AU127*Scenarios!AL111","v":266},{"$f":"CustomersRes!AV127*Scenarios!AM111","v":264},{"$f":"CustomersRes!AW127*Scenarios!AN111","v":261},{"$f":"CustomersRes!AX127*Scenarios!AO111","v":257},{"$f":"CustomersRes!AY127*Scenarios!AP111","v":252},{"$f":"CustomersRes!AZ127*Scenarios!AQ111","v":246},{"$f":"CustomersRes!BA127*Scenarios!AR111","v":237},{"$f":"CustomersRes!BB127*Scenarios!AS111","v":227},{"$f":"CustomersRes!BC127*Scenarios!AT111","v":215},{"$f":"CustomersRes!BD127*Scenarios!AU111","v":201},{"$f":"CustomersRes!BE127*Scenarios!AV111","v":188},{"$f":"CustomersRes!BF127*Scenarios!AW111","v":174},{"$f":"CustomersRes!BG127*Scenarios!AX111","v":162},{"$f":"CustomersRes!BH127*Scenarios!AY111","v":151},{"$f":"CustomersRes!BI127*Scenarios!AZ111","v":140},{"$f":"CustomersRes!BJ127*Scenarios!BA111","v":130},{"$f":"CustomersRes!BK127*Scenarios!BB111","v":121},{"$f":"CustomersRes!BL127*Scenarios!BC111","v":112},{"$f":"CustomersRes!BM127*Scenarios!BD111","v":104},{"$f":"CustomersRes!BN127*Scenarios!BE111","v":97},{"$f":"CustomersRes!BO127*Scenarios!BF111","v":90},{"$f":"CustomersRes!BP127*Scenarios!BG111","v":83},{"$f":"CustomersRes!BQ127*Scenarios!BH111","v":77},{"$f":"CustomersRes!BR127*Scenarios!BI111","v":72},{"$f":"CustomersRes!BS127*Scenarios!BJ111","v":67},{"$f":"CustomersRes!BT127*Scenarios!BK111","v":62},{"$f":"CustomersRes!BU127*Scenarios!BL111","v":62},{"$f":"CustomersRes!BV127*Scenarios!BM111","v":61},{"$f":"CustomersRes!BW127*Scenarios!BN111","v":61},{"$f":"CustomersRes!BX127*Scenarios!BO111","v":61},{"$f":"CustomersRes!BY127*Scenarios!BP111","v":60},{"$f":"CustomersRes!BZ127*Scenarios!BQ111","v":60},{"$f":"CustomersRes!CA127*Scenarios!BR111","v":60},{"$f":"CustomersRes!CB127*Scenarios!BS111","v":60},{"$f":"CustomersRes!CC127*Scenarios!BT111","v":59},{"$f":"CustomersRes!CD127*Scenarios!BU111","v":59},{"$f":"CustomersRes!CE127*Scenarios!BV111","v":59},{"$f":"CustomersRes!CF127*Scenarios!BW111","v":58},{"$f":"CustomersRes!CG127*Scenarios!BX111","v":58},{"$f":"CustomersRes!CH127*Scenarios!BY111","v":58},{"$f":"CustomersRes!CI127*Scenarios!BZ111","v":58},{"$f":"CustomersRes!CJ127*Scenarios!CA111","v":57},{"$f":"CustomersRes!CK127*Scenarios!CB111","v":57},{"$f":"CustomersRes!CL127*Scenarios!CC111","v":57}]
["Casey (C)",null,{"$f":"CustomersRes!K128*Scenarios!B112","v":871},{"$f":"CustomersRes!L128*Scenarios!C112","v":884},{"$f":"CustomersRes!M128*Scenarios!D112","v":897},{"$f":"CustomersRes!N128*Scenarios!E112","v":911},{"$f":"CustomersRes!O128*Scenarios!F112","v":924},{"$f":"CustomersRes!P128*Scenarios!G112","v":938},{"$f":"CustomersRes!Q128*Scenarios!H112","v":952},{"$f":"CustomersRes!R128*Scenarios!I112","v":967},{"$f":"CustomersRes!S128*Scenarios!J112","v":981},{"$f":"CustomersRes!T128*Scenarios!K112","v":996},{"$f":"CustomersRes!U128*Scenarios!L112","v":1011},{"$f":"CustomersRes!V128*Scenarios!M112","v":1006},{"$f":"CustomersRes!W128*Scenarios!N112","v":1001},{"$f":"CustomersRes!X128*Scenarios!O112","v":996},{"$f":"CustomersRes!Y128*Scenarios!P112","v":991},{"$f":"CustomersRes!Z128*Scenarios!Q112","v":986},{"$f":"CustomersRes!AA128*Scenarios!R112","v":981},{"$f":"CustomersRes!AB128*Scenarios!S112","v":976},{"$f":"CustomersRes!AC128*Scenarios!T112","v":971},{"$f":"CustomersRes!AD128*Scenarios!U112","v":966},{"$f":"CustomersRes!AE128*Scenarios!V112","v":961},{"$f":"CustomersRes!AF128*Scenarios!W112","v":956},{"$f":"CustomersRes!AG128*Scenarios!X112","v":951},{"$f":"CustomersRes!AH128*Scenarios!Y112","v":944},{"$f":"CustomersRes!AI128*Scenarios!Z112","v":936},{"$f":"CustomersRes!AJ128*Scenarios!AA112","v":924},{"$f":"CustomersRes!AK128*Scenarios!AB112","v":906},{"$f":"CustomersRes!AL128*Scenarios!AC112","v":882},{"$f":"CustomersRes!AM128*Scenarios!AD112","v":851},{"$f":"CustomersRes!AN128*Scenarios!AE112","v":813},{"$f":"CustomersRes!AO128*Scenarios!AF112","v":767},{"$f":"CustomersRes!AP128*Scenarios!AG112","v":720},{"$f":"CustomersRes!AQ128*Scenarios!AH112","v":673},{"$f":"CustomersRes!AR128*Scenarios!AI112","v":627},{"$f":"CustomersRes!AS128*Scenarios!AJ112","v":583},{"$f":"CustomersRes!AT128*Scenarios!AK112","v":542},{"$f":"CustomersRes!AU128*Scenarios!AL112","v":507},{"$f":"CustomersRes!AV128*Scenarios!AM112","v":475},{"$f":"CustomersRes!AW128*Scenarios!AN112","v":444},{"$f":"CustomersRes!AX128*Scenarios!AO112","v":413},{"$f":"CustomersRes!AY128*Scenarios!AP112","v":384},{"$f":"CustomersRes!AZ128*Scenarios!AQ112","v":357},{"$f":"CustomersRes!BA128*Scenarios!AR112","v":332},{"$f":"CustomersRes!BB128*Scenarios!AS112","v":308},{"$f":"CustomersRes!BC128*Scenarios!AT112","v":286},{"$f":"CustomersRes!BD128*Scenarios!AU112","v":266},{"$f":"CustomersRes!BE128*Scenarios!AV112","v":247},{"$f":"CustomersRes!BF128*Scenarios!AW112","v":229},{"$f":"CustomersRes!BG128*Scenarios!AX112","v":213},{"$f":"CustomersRes!BH128*Scenarios!AY112","v":197},{"$f":"CustomersRes!BI128*Scenarios!AZ112","v":183},{"$f":"CustomersRes!BJ128*Scenarios!BA112","v":170},{"$f":"CustomersRes!BK128*Scenarios!BB112","v":158},{"$f":"CustomersRes!BL128*Scenarios!BC112","v":147},{"$f":"CustomersRes!BM128*Scenarios!BD112","v":136},{"$f":"CustomersRes!BN128*Scenarios!BE112","v":127},{"$f":"CustomersRes!BO128*Scenarios!BF112","v":118},{"$f":"CustomersRes!BP128*Scenarios!BG112","v":109},{"$f":"CustomersRes!BQ128*Scenarios!BH112","v":101},{"$f":"CustomersRes!BR128*Scenarios!BI112","v":94},{"$f":"CustomersRes!BS128*Scenarios!BJ112","v":87},{"$f":"CustomersRes!BT128*Scenarios!BK112","v":81},{"$f":"CustomersRes!BU128*Scenarios!BL112","v":81},{"$f":"CustomersRes!BV128*Scenarios!BM112","v":80},{"$f":"CustomersRes!BW128*Scenarios!BN112","v":80},{"$f":"CustomersRes!BX128*Scenarios!BO112","v":79},{"$f":"CustomersRes!BY128*Scenarios!BP112","v":79},{"$f":"CustomersRes!BZ128*Scenarios!BQ112","v":79},{"$f":"CustomersRes!CA128*Scenarios!BR112","v":78},{"$f":"CustomersRes!CB128*Scenarios!BS112","v":78},{"$f":"CustomersRes!CC128*Scenarios!BT112","v":78},{"$f":"CustomersRes!CD128*Scenarios!BU112","v":77},{"$f":"CustomersRes!CE128*Scenarios!BV112","v":77},{"$f":"CustomersRes!CF128*Scenarios!BW112","v":76},{"$f":"CustomersRes!CG128*Scenarios!BX112","v":76},{"$f":"CustomersRes!CH128*Scenarios!BY112","v":76},{"$f":"CustomersRes!CI128*Scenarios!BZ112","v":75},{"$f":"CustomersRes!CJ128*Scenarios!CA112","v":75},{"$f":"CustomersRes!CK128*Scenarios!CB112","v":74},{"$f":"CustomersRes!CL128*Scenarios!CC112","v":74}]
["Frankston (C)",null,{"$f":"CustomersRes!K129*Scenarios!B113","v":0},{"$f":"CustomersRes!L129*Scenarios!C113","v":0},{"$f":"CustomersRes!M129*Scenarios!D113","v":0},{"$f":"CustomersRes!N129*Scenarios!E113","v":0},{"$f":"CustomersRes!O129*Scenarios!F113","v":0},{"$f":"CustomersRes!P129*Scenarios!G113","v":0},{"$f":"CustomersRes!Q129*Scenarios!H113","v":0},{"$f":"CustomersRes!R129*Scenarios!I113","v":0},{"$f":"CustomersRes!S129*Scenarios!J113","v":0},{"$f":"CustomersRes!T129*Scenarios!K113","v":0},{"$f":"CustomersRes!U129*Scenarios!L113","v":0},{"$f":"CustomersRes!V129*Scenarios!M113","v":0},{"$f":"CustomersRes!W129*Scenarios!N113","v":0},{"$f":"CustomersRes!X129*Scenarios!O113","v":0},{"$f":"CustomersRes!Y129*Scenarios!P113","v":0},{"$f":"CustomersRes!Z129*Scenarios!Q113","v":0},{"$f":"CustomersRes!AA129*Scenarios!R113","v":0},{"$f":"CustomersRes!AB129*Scenarios!S113","v":0},{"$f":"CustomersRes!AC129*Scenarios!T113","v":0},{"$f":"CustomersRes!AD129*Scenarios!U113","v":0},{"$f":"CustomersRes!AE129*Scenarios!V113","v":0},{"$f":"CustomersRes!AF129*Scenarios!W113","v":0},{"$f":"CustomersRes!AG129*Scenarios!X113","v":0},{"$f":"CustomersRes!AH129*Scenarios!Y113","v":0},{"$f":"CustomersRes!AI129*Scenarios!Z113","v":0},{"$f":"CustomersRes!AJ129*Scenarios!AA113","v":0},{"$f":"CustomersRes!AK129*Scenarios!AB113","v":0},{"$f":"CustomersRes!AL129*Scenarios!AC113","v":0},{"$f":"CustomersRes!AM129*Scenarios!AD113","v":0},{"$f":"CustomersRes!AN129*Scenarios!AE113","v":0},{"$f":"CustomersRes!AO129*Scenarios!AF113","v":0},{"$f":"CustomersRes!AP129*Scenarios!AG113","v":0},{"$f":"CustomersRes!AQ129*Scenarios!AH113","v":0},{"$f":"CustomersRes!AR129*Scenarios!AI113","v":0},{"$f":"CustomersRes!AS129*Scenarios!AJ113","v":0},{"$f":"CustomersRes!AT129*Scenarios!AK113","v":0},{"$f":"CustomersRes!AU129*Scenarios!AL113","v":0},{"$f":"CustomersRes!AV129*Scenarios!AM113","v":0},{"$f":"CustomersRes!AW129*Scenarios!AN113","v":0},{"$f":"CustomersRes!AX129*Scenarios!AO113","v":0},{"$f":"CustomersRes!AY129*Scenarios!AP113","v":0},{"$f":"CustomersRes!AZ129*Scenarios!AQ113","v":0},{"$f":"CustomersRes!BA129*Scenarios!AR113","v":0},{"$f":"CustomersRes!BB129*Scenarios!AS113","v":0},{"$f":"CustomersRes!BC129*Scenarios!AT113","v":0},{"$f":"CustomersRes!BD129*Scenarios!AU113","v":0},{"$f":"CustomersRes!BE129*Scenarios!AV113","v":0},{"$f":"CustomersRes!BF129*Scenarios!AW113","v":0},{"$f":"CustomersRes!BG129*Scenarios!AX113","v":0},{"$f":"CustomersRes!BH129*Scenarios!AY113","v":0},{"$f":"CustomersRes!BI129*Scenarios!AZ113","v":0},{"$f":"CustomersRes!BJ129*Scenarios!BA113","v":0},{"$f":"CustomersRes!BK129*Scenarios!BB113","v":0},{"$f":"CustomersRes!BL129*Scenarios!BC113","v":0},{"$f":"CustomersRes!BM129*Scenarios!BD113","v":0},{"$f":"CustomersRes!BN129*Scenarios!BE113","v":0},{"$f":"CustomersRes!BO129*Scenarios!BF113","v":0},{"$f":"CustomersRes!BP129*Scenarios!BG113","v":0},{"$f":"CustomersRes!BQ129*Scenarios!BH113","v":0},{"$f":"CustomersRes!BR129*Scenarios!BI113","v":0},{"$f":"CustomersRes!BS129*Scenarios!BJ113","v":0},{"$f":"CustomersRes!BT129*Scenarios!BK113","v":0},{"$f":"CustomersRes!BU129*Scenarios!BL113","v":0},{"$f":"CustomersRes!BV129*Scenarios!BM113","v":0},{"$f":"CustomersRes!BW129*Scenarios!BN113","v":0},{"$f":"CustomersRes!BX129*Scenarios!BO113","v":0},{"$f":"CustomersRes!BY129*Scenarios!BP113","v":0},{"$f":"CustomersRes!BZ129*Scenarios!BQ113","v":0},{"$f":"CustomersRes!CA129*Scenarios!BR113","v":0},{"$f":"CustomersRes!CB129*Scenarios!BS113","v":0},{"$f":"CustomersRes!CC129*Scenarios!BT113","v":0},{"$f":"CustomersRes!CD129*Scenarios!BU113","v":0},{"$f":"CustomersRes!CE129*Scenarios!BV113","v":0},{"$f":"CustomersRes!CF129*Scenarios!BW113","v":0},{"$f":"CustomersRes!CG129*Scenarios!BX113","v":0},{"$f":"CustomersRes!CH129*Scenarios!BY113","v":0},{"$f":"CustomersRes!CI129*Scenarios!BZ113","v":0},{"$f":"CustomersRes!CJ129*Scenarios!CA113","v":0},{"$f":"CustomersRes!CK129*Scenarios!CB113","v":0},{"$f":"CustomersRes!CL129*Scenarios!CC113","v":0}]
["Glen Eira (C)",null,{"$f":"CustomersRes!K130*Scenarios!B114","v":3476},{"$f":"CustomersRes!L130*Scenarios!C114","v":3528},{"$f":"CustomersRes!M130*Scenarios!D114","v":3581},{"$f":"CustomersRes!N130*Scenarios!E114","v":3635},{"$f":"CustomersRes!O130*Scenarios!F114","v":3689},{"$f":"CustomersRes!P130*Scenarios!G114","v":3744},{"$f":"CustomersRes!Q130*Scenarios!H114","v":3800},{"$f":"CustomersRes!R130*Scenarios!I114","v":3857},{"$f":"CustomersRes!S130*Scenarios!J114","v":3915},{"$f":"CustomersRes!T130*Scenarios!K114","v":3974},{"$f":"CustomersRes!U130*Scenarios!L114","v":4033},{"$f":"CustomersRes!V130*Scenarios!M114","v":4013},{"$f":"CustomersRes!W130*Scenarios!N114","v":3993},{"$f":"CustomersRes!X130*Scenarios!O114","v":3973},{"$f":"CustomersRes!Y130*Scenarios!P114","v":3953},{"$f":"CustomersRes!Z130*Scenarios!Q114","v":3934},{"$f":"CustomersRes!AA130*Scenarios!R114","v":3914},{"$f":"CustomersRes!AB130*Scenarios!S114","v":3894},{"$f":"CustomersRes!AC130*Scenarios!T114","v":3874},{"$f":"CustomersRes!AD130*Scenarios!U114","v":3852},{"$f":"CustomersRes!AE130*Scenarios!V114","v":3829},{"$f":"CustomersRes!AF130*Scenarios!W114","v":3803},{"$f":"CustomersRes!AG130*Scenarios!X114","v":3764},{"$f":"CustomersRes!AH130*Scenarios!Y114","v":3689},{"$f":"CustomersRes!AI130*Scenarios!Z114","v":3574},{"$f":"CustomersRes!AJ130*Scenarios!AA114","v":3415},{"$f":"CustomersRes!AK130*Scenarios!AB114","v":3231},{"$f":"CustomersRes!AL130*Scenarios!AC114","v":3034},{"$f":"CustomersRes!AM130*Scenarios!AD114","v":2837},{"$f":"CustomersRes!AN130*Scenarios!AE114","v":2645},{"$f":"CustomersRes!AO130*Scenarios!AF114","v":2460},{"$f":"CustomersRes!AP130*Scenarios!AG114","v":2286},{"$f":"CustomersRes!AQ130*Scenarios!AH114","v":2123},{"$f":"CustomersRes!AR130*Scenarios!AI114","v":1972},{"$f":"CustomersRes!AS130*Scenarios!AJ114","v":1831},{"$f":"CustomersRes!AT130*Scenarios!AK114","v":1700},{"$f":"CustomersRes!AU130*Scenarios!AL114","v":1579},{"$f":"CustomersRes!AV130*Scenarios!AM114","v":1467},{"$f":"CustomersRes!AW130*Scenarios!AN114","v":1363},{"$f":"CustomersRes!AX130*Scenarios!AO114","v":1266},{"$f":"CustomersRes!AY130*Scenarios!AP114","v":1175},{"$f":"CustomersRes!AZ130*Scenarios!AQ114","v":1091},{"$f":"CustomersRes!BA130*Scenarios!AR114","v":1013},{"$f":"CustomersRes!BB130*Scenarios!AS114","v":940},{"$f":"CustomersRes!BC130*Scenarios!AT114","v":873},{"$f":"CustomersRes!BD130*Scenarios!AU114","v":810},{"$f":"CustomersRes!BE130*Scenarios!AV114","v":752},{"$f":"CustomersRes!BF130*Scenarios!AW114","v":699},{"$f":"CustomersRes!BG130*Scenarios!AX114","v":649},{"$f":"CustomersRes!BH130*Scenarios!AY114","v":602},{"$f":"CustomersRes!BI130*Scenarios!AZ114","v":559},{"$f":"CustomersRes!BJ130*Scenarios!BA114","v":519},{"$f":"CustomersRes!BK130*Scenarios!BB114","v":482},{"$f":"CustomersRes!BL130*Scenarios!BC114","v":447},{"$f":"CustomersRes!BM130*Scenarios!BD114","v":415},{"$f":"CustomersRes!BN130*Scenarios!BE114","v":386},{"$f":"CustomersRes!BO130*Scenarios!BF114","v":358},{"$f":"CustomersRes!BP130*Scenarios!BG114","v":332},{"$f":"CustomersRes!BQ130*Scenarios!BH114","v":309},{"$f":"CustomersRes!BR130*Scenarios!BI114","v":286},{"$f":"CustomersRes!BS130*Scenarios!BJ114","v":266},{"$f":"CustomersRes!BT130*Scenarios!BK114","v":247},{"$f":"CustomersRes!BU130*Scenarios!BL114","v":245},{"$f":"CustomersRes!BV130*Scenarios!BM114","v":244},{"$f":"CustomersRes!BW130*Scenarios!BN114","v":242},{"$f":"CustomersRes!BX130*Scenarios!BO114","v":241},{"$f":"CustomersRes!BY130*Scenarios!BP114","v":239},{"$f":"CustomersRes!BZ130*Scenarios!BQ114","v":238},{"$f":"CustomersRes!CA130*Scenarios!BR114","v":236},{"$f":"CustomersRes!CB130*Scenarios!BS114","v":235},{"$f":"CustomersRes!CC130*Scenarios!BT114","v":233},{"$f":"CustomersRes!CD130*Scenarios!BU114","v":232},{"$f":"CustomersRes!CE130*Scenarios!BV114","v":230},{"$f":"CustomersRes!CF130*Scenarios!BW114","v":229},{"$f":"CustomersRes!CG130*Scenarios!BX114","v":227},{"$f":"CustomersRes!CH130*Scenarios!BY114","v":226},{"$f":"CustomersRes!CI130*Scenarios!BZ114","v":224},{"$f":"CustomersRes!CJ130*Scenarios!CA114","v":223},{"$f":"CustomersRes!CK130*Scenarios!CB114","v":221},{"$f":"CustomersRes!CL130*Scenarios!CC114","v":220}]
["Greater Dandenong (C)",null,{"$f":"CustomersRes!K131*Scenarios!B115","v":3781},{"$f":"CustomersRes!L131*Scenarios!C115","v":3837},{"$f":"CustomersRes!M131*Scenarios!D115","v":3895},{"$f":"CustomersRes!N131*Scenarios!E115","v":3953},{"$f":"CustomersRes!O131*Scenarios!F115","v":4013},{"$f":"CustomersRes!P131*Scenarios!G115","v":4073},{"$f":"CustomersRes!Q131*Scenarios!H115","v":4134},{"$f":"CustomersRes!R131*Scenarios!I115","v":4196},{"$f":"CustomersRes!S131*Scenarios!J115","v":4259},{"$f":"CustomersRes!T131*Scenarios!K115","v":4323},{"$f":"CustomersRes!U131*Scenarios!L115","v":4387},{"$f":"CustomersRes!V131*Scenarios!M115","v":4365},{"$f":"CustomersRes!W131*Scenarios!N115","v":4344},{"$f":"CustomersRes!X131*Scenarios!O115","v":4322},{"$f":"CustomersRes!Y131*Scenarios!P115","v":4300},{"$f":"CustomersRes!Z131*Scenarios!Q115","v":4279},{"$f":"CustomersRes!AA131*Scenarios!R115","v":4257},{"$f":"CustomersRes!AB131*Scenarios!S115","v":4236},{"$f":"CustomersRes!AC131*Scenarios!T115","v":4215},{"$f":"CustomersRes!AD131*Scenarios!U115","v":4194},{"$f":"CustomersRes!AE131*Scenarios!V115","v":4173},{"$f":"CustomersRes!AF131*Scenarios!W115","v":4152},{"$f":"CustomersRes!AG131*Scenarios!X115","v":4131},{"$f":"CustomersRes!AH131*Scenarios!Y115","v":4110},{"$f":"CustomersRes!AI131*Scenarios!Z115","v":4089},{"$f":"CustomersRes!AJ131*Scenarios!AA115","v":4068},{"$f":"CustomersRes!AK131*Scenarios!AB115","v":4046},{"$f":"CustomersRes!AL131*Scenarios!AC115","v":4024},{"$f":"CustomersRes!AM131*Scenarios!AD115","v":4001},{"$f":"CustomersRes!AN131*Scenarios!AE115","v":3977},{"$f":"CustomersRes!AO131*Scenarios!AF115","v":3950},{"$f":"CustomersRes!AP131*Scenarios!AG115","v":3921},{"$f":"CustomersRes!AQ131*Scenarios!AH115","v":3888},{"$f":"CustomersRes!AR131*Scenarios!AI115","v":3848},{"$f":"CustomersRes!AS131*Scenarios!AJ115","v":3801},{"$f":"CustomersRes!AT131*Scenarios!AK115","v":3744},{"$f":"CustomersRes!AU131*Scenarios!AL115","v":3714},{"$f":"CustomersRes!AV131*Scenarios!AM115","v":3686},{"$f":"CustomersRes!AW131*Scenarios!AN115","v":3654},{"$f":"CustomersRes!AX131*Scenarios!AO115","v":3616},{"$f":"CustomersRes!AY131*Scenarios!AP115","v":3569},{"$f":"CustomersRes!AZ131*Scenarios!AQ115","v":3510},{"$f":"CustomersRes!BA131*Scenarios!AR115","v":3433},{"$f":"CustomersRes!BB131*Scenarios!AS115","v":3331},{"$f":"CustomersRes!BC131*Scenarios!AT115","v":3198},{"$f":"CustomersRes!BD131*Scenarios!AU115","v":3034},{"$f":"CustomersRes!BE131*Scenarios!AV115","v":2851},{"$f":"CustomersRes!BF131*Scenarios!AW115","v":2660},{"$f":"CustomersRes!BG131*Scenarios!AX115","v":2474},{"$f":"CustomersRes!BH131*Scenarios!AY115","v":2298},{"$f":"CustomersRes!BI131*Scenarios!AZ115","v":2134},{"$f":"CustomersRes!BJ131*Scenarios!BA115","v":1981},{"$f":"CustomersRes!BK131*Scenarios!BB115","v":1839},{"$f":"CustomersRes!BL131*Scenarios!BC115","v":1707},{"$f":"CustomersRes!BM131*Scenarios!BD115","v":1585},{"$f":"CustomersRes!BN131*Scenarios!BE115","v":1472},{"$f":"CustomersRes!BO131*Scenarios!BF115","v":1366},{"$f":"CustomersRes!BP131*Scenarios!BG115","v":1268},{"$f":"CustomersRes!BQ131*Scenarios!BH115","v":1178},{"$f":"CustomersRes!BR131*Scenarios!BI115","v":1093},{"$f":"CustomersRes!BS131*Scenarios!BJ115","v":1015},{"$f":"CustomersRes!BT131*Scenarios!BK115","v":942},{"$f":"CustomersRes!BU131*Scenarios!BL115","v":937},{"$f":"CustomersRes!BV131*Scenarios!BM115","v":933},{"$f":"CustomersRes!BW131*Scenarios!BN115","v":928},{"$f":"CustomersRes!BX131*Scenarios!BO115","v":923},{"$f":"CustomersRes!BY131*Scenarios!BP115","v":919},{"$f":"CustomersRes!BZ131*Scenarios!BQ115","v":914},{"$f":"CustomersRes!CA131*Scenarios!BR115","v":910},{"$f":"CustomersRes!CB131*Scenarios!BS115","v":905},{"$f":"CustomersRes!CC131*Scenarios!BT115","v":901},{"$f":"CustomersRes!CD131*Scenarios!BU115","v":896},{"$f":"CustomersRes!CE131*Scenarios!BV115","v":892},{"$f":"CustomersRes!CF131*Scenarios!BW115","v":887},{"$f":"CustomersRes!CG131*Scenarios!BX115","v":883},{"$f":"CustomersRes!CH131*Scenarios!BY115","v":878},{"$f":"CustomersRes!CI131*Scenarios!BZ115","v":874},{"$f":"CustomersRes!CJ131*Scenarios!CA115","v":870},{"$f":"CustomersRes!CK131*Scenarios!CB115","v":865},{"$f":"CustomersRes!CL131*Scenarios!CC115","v":861}]
["Kingston (C)",null,{"$f":"CustomersRes!K132*Scenarios!B116","v":3594},{"$f":"CustomersRes!L132*Scenarios!C116","v":3648},{"$f":"CustomersRes!M132*Scenarios!D116","v":3702},{"$f":"CustomersRes!N132*Scenarios!E116","v":3758},{"$f":"CustomersRes!O132*Scenarios!F116","v":3814},{"$f":"CustomersRes!P132*Scenarios!G116","v":3871},{"$f":"CustomersRes!Q132*Scenarios!H116","v":3929},{"$f":"CustomersRes!R132*Scenarios!I116","v":3988},{"$f":"CustomersRes!S132*Scenarios!J116","v":4048},{"$f":"CustomersRes!T132*Scenarios!K116","v":4109},{"$f":"CustomersRes!U132*Scenarios!L116","v":4170},{"$f":"CustomersRes!V132*Scenarios!M116","v":4149},{"$f":"CustomersRes!W132*Scenarios!N116","v":4129},{"$f":"CustomersRes!X132*Scenarios!O116","v":4108},{"$f":"CustomersRes!Y132*Scenarios!P116","v":4087},{"$f":"CustomersRes!Z132*Scenarios!Q116","v":4067},{"$f":"CustomersRes!AA132*Scenarios!R116","v":4047},{"$f":"CustomersRes!AB132*Scenarios!S116","v":4026},{"$f":"CustomersRes!AC132*Scenarios!T116","v":4006},{"$f":"CustomersRes!AD132*Scenarios!U116","v":3986},{"$f":"CustomersRes!AE132*Scenarios!V116","v":3965},{"$f":"CustomersRes!AF132*Scenarios!W116","v":3944},{"$f":"CustomersRes!AG132*Scenarios!X116","v":3922},{"$f":"CustomersRes!AH132*Scenarios!Y116","v":3895},{"$f":"CustomersRes!AI132*Scenarios!Z116","v":3861},{"$f":"CustomersRes!AJ132*Scenarios!AA116","v":3815},{"$f":"CustomersRes!AK132*Scenarios!AB116","v":3753},{"$f":"CustomersRes!AL132*Scenarios!AC116","v":3670},{"$f":"CustomersRes!AM132*Scenarios!AD116","v":3563},{"$f":"CustomersRes!AN132*Scenarios!AE116","v":3429},{"$f":"CustomersRes!AO132*Scenarios!AF116","v":3264},{"$f":"CustomersRes!AP132*Scenarios!AG116","v":3086},{"$f":"CustomersRes!AQ132*Scenarios!AH116","v":2896},{"$f":"CustomersRes!AR132*Scenarios!AI116","v":2706},{"$f":"CustomersRes!AS132*Scenarios!AJ116","v":2523},{"$f":"CustomersRes!AT132*Scenarios!AK116","v":2348},{"$f":"CustomersRes!AU132*Scenarios!AL116","v":2210},{"$f":"CustomersRes!AV132*Scenarios!AM116","v":2086},{"$f":"CustomersRes!AW132*Scenarios!AN116","v":1957},{"$f":"CustomersRes!AX132*Scenarios!AO116","v":1829},{"$f":"CustomersRes!AY132*Scenarios!AP116","v":1704},{"$f":"CustomersRes!AZ132*Scenarios!AQ116","v":1585},{"$f":"CustomersRes!BA132*Scenarios!AR116","v":1473},{"$f":"CustomersRes!BB132*Scenarios!AS116","v":1368},{"$f":"CustomersRes!BC132*Scenarios!AT116","v":1270},{"$f":"CustomersRes!BD132*Scenarios!AU116","v":1179},{"$f":"CustomersRes!BE132*Scenarios!AV116","v":1095},{"$f":"CustomersRes!BF132*Scenarios!AW116","v":1016},{"$f":"CustomersRes!BG132*Scenarios!AX116","v":943},{"$f":"CustomersRes!BH132*Scenarios!AY116","v":876},{"$f":"CustomersRes!BI132*Scenarios!AZ116","v":813},{"$f":"CustomersRes!BJ132*Scenarios!BA116","v":755},{"$f":"CustomersRes!BK132*Scenarios!BB116","v":701},{"$f":"CustomersRes!BL132*Scenarios!BC116","v":651},{"$f":"CustomersRes!BM132*Scenarios!BD116","v":604},{"$f":"CustomersRes!BN132*Scenarios!BE116","v":561},{"$f":"CustomersRes!BO132*Scenarios!BF116","v":521},{"$f":"CustomersRes!BP132*Scenarios!BG116","v":483},{"$f":"CustomersRes!BQ132*Scenarios!BH116","v":449},{"$f":"CustomersRes!BR132*Scenarios!BI116","v":417},{"$f":"CustomersRes!BS132*Scenarios!BJ116","v":387},{"$f":"CustomersRes!BT132*Scenarios!BK116","v":359},{"$f":"CustomersRes!BU132*Scenarios!BL116","v":357},{"$f":"CustomersRes!BV132*Scenarios!BM116","v":355},{"$f":"CustomersRes!BW132*Scenarios!BN116","v":353},{"$f":"CustomersRes!BX132*Scenarios!BO116","v":352},{"$f":"CustomersRes!BY132*Scenarios!BP116","v":350},{"$f":"CustomersRes!BZ132*Scenarios!BQ116","v":348},{"$f":"CustomersRes!CA132*Scenarios!BR116","v":346},{"$f":"CustomersRes!CB132*Scenarios!BS116","v":344},{"$f":"CustomersRes!CC132*Scenarios!BT116","v":343},{"$f":"CustomersRes!CD132*Scenarios!BU116","v":341},{"$f":"CustomersRes!CE132*Scenarios!BV116","v":339},{"$f":"CustomersRes!CF132*Scenarios!BW116","v":337},{"$f":"CustomersRes!CG132*Scenarios!BX116","v":335},{"$f":"CustomersRes!CH132*Scenarios!BY116","v":334},{"$f":"CustomersRes!CI132*Scenarios!BZ116","v":332},{"$f":"CustomersRes!CJ132*Scenarios!CA116","v":330},{"$f":"CustomersRes!CK132*Scenarios!CB116","v":329},{"$f":"CustomersRes!CL132*Scenarios!CC116","v":327}]
["Knox (C)",null,{"$f":"CustomersRes!K133*Scenarios!B117","v":4206},{"$f":"CustomersRes!L133*Scenarios!C117","v":4269},{"$f":"CustomersRes!M133*Scenarios!D117","v":4333},{"$f":"CustomersRes!N133*Scenarios!E117","v":4398},{"$f":"CustomersRes!O133*Scenarios!F117","v":4464},{"$f":"CustomersRes!P133*Scenarios!G117","v":4531},{"$f":"CustomersRes!Q133*Scenarios!H117","v":4599},{"$f":"CustomersRes!R133*Scenarios!I117","v":4668},{"$f":"CustomersRes!S133*Scenarios!J117","v":4738},{"$f":"CustomersRes!T133*Scenarios!K117","v":4809},{"$f":"CustomersRes!U133*Scenarios!L117","v":4881},{"$f":"CustomersRes!V133*Scenarios!M117","v":4856},{"$f":"CustomersRes!W133*Scenarios!N117","v":4832},{"$f":"CustomersRes!X133*Scenarios!O117","v":4808},{"$f":"CustomersRes!Y133*Scenarios!P117","v":4784},{"$f":"CustomersRes!Z133*Scenarios!Q117","v":4760},{"$f":"CustomersRes!AA133*Scenarios!R117","v":4736},{"$f":"CustomersRes!AB133*Scenarios!S117","v":4712},{"$f":"CustomersRes!AC133*Scenarios!T117","v":4689},{"$f":"CustomersRes!AD133*Scenarios!U117","v":4665},{"$f":"CustomersRes!AE133*Scenarios!V117","v":4641},{"$f":"CustomersRes!AF133*Scenarios!W117","v":4617},{"$f":"CustomersRes!AG133*Scenarios!X117","v":4591},{"$f":"CustomersRes!AH133*Scenarios!Y117","v":4558},{"$f":"CustomersRes!AI133*Scenarios!Z117","v":4514},{"$f":"CustomersRes!AJ133*Scenarios!AA117","v":4449},{"$f":"CustomersRes!AK133*Scenarios!AB117","v":4356},{"$f":"CustomersRes!AL133*Scenarios!AC117","v":4229},{"$f":"CustomersRes!AM133*Scenarios!AD117","v":4066},{"$f":"CustomersRes!AN133*Scenarios!AE117","v":3872},{"$f":"CustomersRes!AO133*Scenarios!AF117","v":3647},{"$f":"CustomersRes!AP133*Scenarios!AG117","v":3418},{"$f":"CustomersRes!AQ133*Scenarios!AH117","v":3189},{"$f":"CustomersRes!AR133*Scenarios!AI117","v":2968},{"$f":"CustomersRes!AS133*Scenarios!AJ117","v":2760},{"$f":"CustomersRes!AT133*Scenarios!AK117","v":2564},{"$f":"CustomersRes!AU133*Scenarios!AL117","v":2396},{"$f":"CustomersRes!AV133*Scenarios!AM117","v":2243},{"$f":"CustomersRes!AW133*Scenarios!AN117","v":2092},{"$f":"CustomersRes!AX133*Scenarios!AO117","v":1947},{"$f":"CustomersRes!AY133*Scenarios!AP117","v":1810},{"$f":"CustomersRes!AZ133*Scenarios!AQ117","v":1681},{"$f":"CustomersRes!BA133*Scenarios!AR117","v":1561},{"$f":"CustomersRes!BB133*Scenarios!AS117","v":1449},{"$f":"CustomersRes!BC133*Scenarios!AT117","v":1346},{"$f":"CustomersRes!BD133*Scenarios!AU117","v":1249},{"$f":"CustomersRes!BE133*Scenarios!AV117","v":1160},{"$f":"CustomersRes!BF133*Scenarios!AW117","v":1077},{"$f":"CustomersRes!BG133*Scenarios!AX117","v":1000},{"$f":"CustomersRes!BH133*Scenarios!AY117","v":928},{"$f":"CustomersRes!BI133*Scenarios!AZ117","v":862},{"$f":"CustomersRes!BJ133*Scenarios!BA117","v":800},{"$f":"CustomersRes!BK133*Scenarios!BB117","v":743},{"$f":"CustomersRes!BL133*Scenarios!BC117","v":689},{"$f":"CustomersRes!BM133*Scenarios!BD117","v":640},{"$f":"CustomersRes!BN133*Scenarios!BE117","v":594},{"$f":"CustomersRes!BO133*Scenarios!BF117","v":552},{"$f":"CustomersRes!BP133*Scenarios!BG117","v":512},{"$f":"CustomersRes!BQ133*Scenarios!BH117","v":475},{"$f":"CustomersRes!BR133*Scenarios!BI117","v":441},{"$f":"CustomersRes!BS133*Scenarios!BJ117","v":410},{"$f":"CustomersRes!BT133*Scenarios!BK117","v":380},{"$f":"CustomersRes!BU133*Scenarios!BL117","v":378},{"$f":"CustomersRes!BV133*Scenarios!BM117","v":376},{"$f":"CustomersRes!BW133*Scenarios!BN117","v":375},{"$f":"CustomersRes!BX133*Scenarios!BO117","v":373},{"$f":"CustomersRes!BY133*Scenarios!BP117","v":371},{"$f":"CustomersRes!BZ133*Scenarios!BQ117","v":369},{"$f":"CustomersRes!CA133*Scenarios!BR117","v":367},{"$f":"CustomersRes!CB133*Scenarios!BS117","v":365},{"$f":"CustomersRes!CC133*Scenarios!BT117","v":363},{"$f":"CustomersRes!CD133*Scenarios!BU117","v":361},{"$f":"CustomersRes!CE133*Scenarios!BV117","v":359},{"$f":"CustomersRes!CF133*Scenarios!BW117","v":357},{"$f":"CustomersRes!CG133*Scenarios!BX117","v":356},{"$f":"CustomersRes!CH133*Scenarios!BY117","v":354},{"$f":"CustomersRes!CI133*Scenarios!BZ117","v":352},{"$f":"CustomersRes!CJ133*Scenarios!CA117","v":350},{"$f":"CustomersRes!CK133*Scenarios!CB117","v":348},{"$f":"CustomersRes!CL133*Scenarios!CC117","v":346}]
["Manningham (C)",null,{"$f":"CustomersRes!K134*Scenarios!B118","v":2911},{"$f":"CustomersRes!L134*Scenarios!C118","v":2954},{"$f":"CustomersRes!M134*Scenarios!D118","v":2999},{"$f":"CustomersRes!N134*Scenarios!E118","v":3044},{"$f":"CustomersRes!O134*Scenarios!F118","v":3089},{"$f":"CustomersRes!P134*Scenarios!G118","v":3135},{"$f":"CustomersRes!Q134*Scenarios!H118","v":3182},{"$f":"CustomersRes!R134*Scenarios!I118","v":3230},{"$f":"CustomersRes!S134*Scenarios!J118","v":3278},{"$f":"CustomersRes!T134*Scenarios!K118","v":3328},{"$f":"CustomersRes!U134*Scenarios!L118","v":3378},{"$f":"CustomersRes!V134*Scenarios!M118","v":3361},{"$f":"CustomersRes!W134*Scenarios!N118","v":3344},{"$f":"CustomersRes!X134*Scenarios!O118","v":3327},{"$f":"CustomersRes!Y134*Scenarios!P118","v":3310},{"$f":"CustomersRes!Z134*Scenarios!Q118","v":3294},{"$f":"CustomersRes!AA134*Scenarios!R118","v":3277},{"$f":"CustomersRes!AB134*Scenarios!S118","v":3261},{"$f":"CustomersRes!AC134*Scenarios!T118","v":3245},{"$f":"CustomersRes!AD134*Scenarios!U118","v":3228},{"$f":"CustomersRes!AE134*Scenarios!V118","v":3212},{"$f":"CustomersRes!AF134*Scenarios!W118","v":3195},{"$f":"CustomersRes!AG134*Scenarios!X118","v":3176},{"$f":"CustomersRes!AH134*Scenarios!Y118","v":3153},{"$f":"CustomersRes!AI134*Scenarios!Z118","v":3121},{"$f":"CustomersRes!AJ134*Scenarios!AA118","v":3073},{"$f":"CustomersRes!AK134*Scenarios!AB118","v":3005},{"$f":"CustomersRes!AL134*Scenarios!AC118","v":2911},{"$f":"CustomersRes!AM134*Scenarios!AD118","v":2794},{"$f":"CustomersRes!AN134*Scenarios!AE118","v":2656},{"$f":"CustomersRes!AO134*Scenarios!AF118","v":2499},{"$f":"CustomersRes!AP134*Scenarios!AG118","v":2340},{"$f":"CustomersRes!AQ134*Scenarios!AH118","v":2182},{"$f":"CustomersRes!AR134*Scenarios!AI118","v":2030},{"$f":"CustomersRes!AS134*Scenarios!AJ118","v":1887},{"$f":"CustomersRes!AT134*Scenarios!AK118","v":1753},{"$f":"CustomersRes!AU134*Scenarios!AL118","v":1637},{"$f":"CustomersRes!AV134*Scenarios!AM118","v":1532},{"$f":"CustomersRes!AW134*Scenarios!AN118","v":1428},{"$f":"CustomersRes!AX134*Scenarios!AO118","v":1329},{"$f":"CustomersRes!AY134*Scenarios!AP118","v":1235},{"$f":"CustomersRes!AZ134*Scenarios!AQ118","v":1147},{"$f":"CustomersRes!BA134*Scenarios!AR118","v":1065},{"$f":"CustomersRes!BB134*Scenarios!AS118","v":989},{"$f":"CustomersRes!BC134*Scenarios!AT118","v":918},{"$f":"CustomersRes!BD134*Scenarios!AU118","v":852},{"$f":"CustomersRes!BE134*Scenarios!AV118","v":791},{"$f":"CustomersRes!BF134*Scenarios!AW118","v":735},{"$f":"CustomersRes!BG134*Scenarios!AX118","v":682},{"$f":"CustomersRes!BH134*Scenarios!AY118","v":633},{"$f":"CustomersRes!BI134*Scenarios!AZ118","v":588},{"$f":"CustomersRes!BJ134*Scenarios!BA118","v":546},{"$f":"CustomersRes!BK134*Scenarios!BB118","v":507},{"$f":"CustomersRes!BL134*Scenarios!BC118","v":471},{"$f":"CustomersRes!BM134*Scenarios!BD118","v":437},{"$f":"CustomersRes!BN134*Scenarios!BE118","v":406},{"$f":"CustomersRes!BO134*Scenarios!BF118","v":377},{"$f":"CustomersRes!BP134*Scenarios!BG118","v":350},{"$f":"CustomersRes!BQ134*Scenarios!BH118","v":324},{"$f":"CustomersRes!BR134*Scenarios!BI118","v":301},{"$f":"CustomersRes!BS134*Scenarios!BJ118","v":280},{"$f":"CustomersRes!BT134*Scenarios!BK118","v":260},{"$f":"CustomersRes!BU134*Scenarios!BL118","v":258},{"$f":"CustomersRes!BV134*Scenarios!BM118","v":257},{"$f":"CustomersRes!BW134*Scenarios!BN118","v":256},{"$f":"CustomersRes!BX134*Scenarios!BO118","v":254},{"$f":"CustomersRes!BY134*Scenarios!BP118","v":253},{"$f":"CustomersRes!BZ134*Scenarios!BQ118","v":252},{"$f":"CustomersRes!CA134*Scenarios!BR118","v":250},{"$f":"CustomersRes!CB134*Scenarios!BS118","v":249},{"$f":"CustomersRes!CC134*Scenarios!BT118","v":248},{"$f":"CustomersRes!CD134*Scenarios!BU118","v":246},{"$f":"CustomersRes!CE134*Scenarios!BV118","v":245},{"$f":"CustomersRes!CF134*Scenarios!BW118","v":244},{"$f":"CustomersRes!CG134*Scenarios!BX118","v":242},{"$f":"CustomersRes!CH134*Scenarios!BY118","v":241},{"$f":"CustomersRes!CI134*Scenarios!BZ118","v":240},{"$f":"CustomersRes!CJ134*Scenarios!CA118","v":239},{"$f":"CustomersRes!CK134*Scenarios!CB118","v":237},{"$f":"CustomersRes!CL134*Scenarios!CC118","v":236}]
["Maroondah (C)",null,{"$f":"CustomersRes!K135*Scenarios!B119","v":2592},{"$f":"CustomersRes!L135*Scenarios!C119","v":2631},{"$f":"CustomersRes!M135*Scenarios!D119","v":2671},{"$f":"CustomersRes!N135*Scenarios!E119","v":2711},{"$f":"CustomersRes!O135*Scenarios!F119","v":2751},{"$f":"CustomersRes!P135*Scenarios!G119","v":2792},{"$f":"CustomersRes!Q135*Scenarios!H119","v":2834},{"$f":"CustomersRes!R135*Scenarios!I119","v":2877},{"$f":"CustomersRes!S135*Scenarios!J119","v":2920},{"$f":"CustomersRes!T135*Scenarios!K119","v":2964},{"$f":"CustomersRes!U135*Scenarios!L119","v":3008},{"$f":"CustomersRes!V135*Scenarios!M119","v":2993},{"$f":"CustomersRes!W135*Scenarios!N119","v":2978},{"$f":"CustomersRes!X135*Scenarios!O119","v":2963},{"$f":"CustomersRes!Y135*Scenarios!P119","v":2948},{"$f":"CustomersRes!Z135*Scenarios!Q119","v":2934},{"$f":"CustomersRes!AA135*Scenarios!R119","v":2919},{"$f":"CustomersRes!AB135*Scenarios!S119","v":2904},{"$f":"CustomersRes!AC135*Scenarios!T119","v":2890},{"$f":"CustomersRes!AD135*Scenarios!U119","v":2875},{"$f":"CustomersRes!AE135*Scenarios!V119","v":2860},{"$f":"CustomersRes!AF135*Scenarios!W119","v":2846},{"$f":"CustomersRes!AG135*Scenarios!X119","v":2829},{"$f":"CustomersRes!AH135*Scenarios!Y119","v":2809},{"$f":"CustomersRes!AI135*Scenarios!Z119","v":2781},{"$f":"CustomersRes!AJ135*Scenarios!AA119","v":2740},{"$f":"CustomersRes!AK135*Scenarios!AB119","v":2681},{"$f":"CustomersRes!AL135*Scenarios!AC119","v":2601},{"$f":"CustomersRes!AM135*Scenarios!AD119","v":2499},{"$f":"CustomersRes!AN135*Scenarios!AE119","v":2378},{"$f":"CustomersRes!AO135*Scenarios!AF119","v":2239},{"$f":"CustomersRes!AP135*Scenarios!AG119","v":2098},{"$f":"CustomersRes!AQ135*Scenarios!AH119","v":1956},{"$f":"CustomersRes!AR135*Scenarios!AI119","v":1821},{"$f":"CustomersRes!AS135*Scenarios!AJ119","v":1693},{"$f":"CustomersRes!AT135*Scenarios!AK119","v":1573},{"$f":"CustomersRes!AU135*Scenarios!AL119","v":1469},{"$f":"CustomersRes!AV135*Scenarios!AM119","v":1375},{"$f":"CustomersRes!AW135*Scenarios!AN119","v":1282},{"$f":"CustomersRes!AX135*Scenarios!AO119","v":1193},{"$f":"CustomersRes!AY135*Scenarios!AP119","v":1109},{"$f":"CustomersRes!AZ135*Scenarios!AQ119","v":1030},{"$f":"CustomersRes!BA135*Scenarios!AR119","v":957},{"$f":"CustomersRes!BB135*Scenarios!AS119","v":888},{"$f":"CustomersRes!BC135*Scenarios!AT119","v":825},{"$f":"CustomersRes!BD135*Scenarios!AU119","v":766},{"$f":"CustomersRes!BE135*Scenarios!AV119","v":711},{"$f":"CustomersRes!BF135*Scenarios!AW119","v":660},{"$f":"CustomersRes!BG135*Scenarios!AX119","v":613},{"$f":"CustomersRes!BH135*Scenarios!AY119","v":569},{"$f":"CustomersRes!BI135*Scenarios!AZ119","v":528},{"$f":"CustomersRes!BJ135*Scenarios!BA119","v":490},{"$f":"CustomersRes!BK135*Scenarios!BB119","v":455},{"$f":"CustomersRes!BL135*Scenarios!BC119","v":423},{"$f":"CustomersRes!BM135*Scenarios!BD119","v":393},{"$f":"CustomersRes!BN135*Scenarios!BE119","v":364},{"$f":"CustomersRes!BO135*Scenarios!BF119","v":338},{"$f":"CustomersRes!BP135*Scenarios!BG119","v":314},{"$f":"CustomersRes!BQ135*Scenarios!BH119","v":292},{"$f":"CustomersRes!BR135*Scenarios!BI119","v":271},{"$f":"CustomersRes!BS135*Scenarios!BJ119","v":251},{"$f":"CustomersRes!BT135*Scenarios!BK119","v":233},{"$f":"CustomersRes!BU135*Scenarios!BL119","v":232},{"$f":"CustomersRes!BV135*Scenarios!BM119","v":231},{"$f":"CustomersRes!BW135*Scenarios!BN119","v":230},{"$f":"CustomersRes!BX135*Scenarios!BO119","v":229},{"$f":"CustomersRes!BY135*Scenarios!BP119","v":228},{"$f":"CustomersRes!BZ135*Scenarios!BQ119","v":226},{"$f":"CustomersRes!CA135*Scenarios!BR119","v":225},{"$f":"CustomersRes!CB135*Scenarios!BS119","v":224},{"$f":"CustomersRes!CC135*Scenarios!BT119","v":223},{"$f":"CustomersRes!CD135*Scenarios!BU119","v":222},{"$f":"CustomersRes!CE135*Scenarios!BV119","v":221},{"$f":"CustomersRes!CF135*Scenarios!BW119","v":220},{"$f":"CustomersRes!CG135*Scenarios!BX119","v":219},{"$f":"CustomersRes!CH135*Scenarios!BY119","v":217},{"$f":"CustomersRes!CI135*Scenarios!BZ119","v":216},{"$f":"CustomersRes!CJ135*Scenarios!CA119","v":215},{"$f":"CustomersRes!CK135*Scenarios!CB119","v":214},{"$f":"CustomersRes!CL135*Scenarios!CC119","v":213}]
["Melbourne (C)",null,{"$f":"CustomersRes!K136*Scenarios!B120","v":57},{"$f":"CustomersRes!L136*Scenarios!C120","v":58},{"$f":"CustomersRes!M136*Scenarios!D120","v":59},{"$f":"CustomersRes!N136*Scenarios!E120","v":60},{"$f":"CustomersRes!O136*Scenarios!F120","v":61},{"$f":"CustomersRes!P136*Scenarios!G120","v":62},{"$f":"CustomersRes!Q136*Scenarios!H120","v":63},{"$f":"CustomersRes!R136*Scenarios!I120","v":63},{"$f":"CustomersRes!S136*Scenarios!J120","v":64},{"$f":"CustomersRes!T136*Scenarios!K120","v":65},{"$f":"CustomersRes!U136*Scenarios!L120","v":66},{"$f":"CustomersRes!V136*Scenarios!M120","v":66},{"$f":"CustomersRes!W136*Scenarios!N120","v":66},{"$f":"CustomersRes!X136*Scenarios!O120","v":65},{"$f":"CustomersRes!Y136*Scenarios!P120","v":65},{"$f":"CustomersRes!Z136*Scenarios!Q120","v":65},{"$f":"CustomersRes!AA136*Scenarios!R120","v":64},{"$f":"CustomersRes!AB136*Scenarios!S120","v":64},{"$f":"CustomersRes!AC136*Scenarios!T120","v":64},{"$f":"CustomersRes!AD136*Scenarios!U120","v":63},{"$f":"CustomersRes!AE136*Scenarios!V120","v":63},{"$f":"CustomersRes!AF136*Scenarios!W120","v":63},{"$f":"CustomersRes!AG136*Scenarios!X120","v":62},{"$f":"CustomersRes!AH136*Scenarios!Y120","v":62},{"$f":"CustomersRes!AI136*Scenarios!Z120","v":62},{"$f":"CustomersRes!AJ136*Scenarios!AA120","v":61},{"$f":"CustomersRes!AK136*Scenarios!AB120","v":61},{"$f":"CustomersRes!AL136*Scenarios!AC120","v":61},{"$f":"CustomersRes!AM136*Scenarios!AD120","v":60},{"$f":"CustomersRes!AN136*Scenarios!AE120","v":60},{"$f":"CustomersRes!AO136*Scenarios!AF120","v":59},{"$f":"CustomersRes!AP136*Scenarios!AG120","v":59},{"$f":"CustomersRes!AQ136*Scenarios!AH120","v":58},{"$f":"CustomersRes!AR136*Scenarios!AI120","v":57},{"$f":"CustomersRes!AS136*Scenarios!AJ120","v":56},{"$f":"CustomersRes!AT136*Scenarios!AK120","v":55},{"$f":"CustomersRes!AU136*Scenarios!AL120","v":55},{"$f":"CustomersRes!AV136*Scenarios!AM120","v":54},{"$f":"CustomersRes!AW136*Scenarios!AN120","v":54},{"$f":"CustomersRes!AX136*Scenarios!AO120","v":53},{"$f":"CustomersRes!AY136*Scenarios!AP120","v":52},{"$f":"CustomersRes!AZ136*Scenarios!AQ120","v":51},{"$f":"CustomersRes!BA136*Scenarios!AR120","v":50},{"$f":"CustomersRes!BB136*Scenarios!AS120","v":49},{"$f":"CustomersRes!BC136*Scenarios!AT120","v":48},{"$f":"CustomersRes!BD136*Scenarios!AU120","v":46},{"$f":"CustomersRes!BE136*Scenarios!AV120","v":44},{"$f":"CustomersRes!BF136*Scenarios!AW120","v":41},{"$f":"CustomersRes!BG136*Scenarios!AX120","v":39},{"$f":"CustomersRes!BH136*Scenarios!AY120","v":36},{"$f":"CustomersRes!BI136*Scenarios!AZ120","v":34},{"$f":"CustomersRes!BJ136*Scenarios!BA120","v":31},{"$f":"CustomersRes!BK136*Scenarios!BB120","v":29},{"$f":"CustomersRes!BL136*Scenarios!BC120","v":27},{"$f":"CustomersRes!BM136*Scenarios!BD120","v":25},{"$f":"CustomersRes!BN136*Scenarios!BE120","v":24},{"$f":"CustomersRes!BO136*Scenarios!BF120","v":22},{"$f":"CustomersRes!BP136*Scenarios!BG120","v":20},{"$f":"CustomersRes!BQ136*Scenarios!BH120","v":19},{"$f":"CustomersRes!BR136*Scenarios!BI120","v":18},{"$f":"CustomersRes!BS136*Scenarios!BJ120","v":17},{"$f":"CustomersRes!BT136*Scenarios!BK120","v":15},{"$f":"CustomersRes!BU136*Scenarios!BL120","v":15},{"$f":"CustomersRes!BV136*Scenarios!BM120","v":15},{"$f":"CustomersRes!BW136*Scenarios!BN120","v":15},{"$f":"CustomersRes!BX136*Scenarios!BO120","v":15},{"$f":"CustomersRes!BY136*Scenarios!BP120","v":15},{"$f":"CustomersRes!BZ136*Scenarios!BQ120","v":15},{"$f":"CustomersRes!CA136*Scenarios!BR120","v":15},{"$f":"CustomersRes!CB136*Scenarios!BS120","v":15},{"$f":"CustomersRes!CC136*Scenarios!BT120","v":15},{"$f":"CustomersRes!CD136*Scenarios!BU120","v":15},{"$f":"CustomersRes!CE136*Scenarios!BV120","v":15},{"$f":"CustomersRes!CF136*Scenarios!BW120","v":14},{"$f":"CustomersRes!CG136*Scenarios!BX120","v":14},{"$f":"CustomersRes!CH136*Scenarios!BY120","v":14},{"$f":"CustomersRes!CI136*Scenarios!BZ120","v":14},{"$f":"CustomersRes!CJ136*Scenarios!CA120","v":14},{"$f":"CustomersRes!CK136*Scenarios!CB120","v":14},{"$f":"CustomersRes!CL136*Scenarios!CC120","v":14}]
["Monash (C)",null,{"$f":"CustomersRes!K137*Scenarios!B121","v":4374},{"$f":"CustomersRes!L137*Scenarios!C121","v":4439},{"$f":"CustomersRes!M137*Scenarios!D121","v":4506},{"$f":"CustomersRes!N137*Scenarios!E121","v":4573},{"$f":"CustomersRes!O137*Scenarios!F121","v":4642},{"$f":"CustomersRes!P137*Scenarios!G121","v":4711},{"$f":"CustomersRes!Q137*Scenarios!H121","v":4782},{"$f":"CustomersRes!R137*Scenarios!I121","v":4854},{"$f":"CustomersRes!S137*Scenarios!J121","v":4927},{"$f":"CustomersRes!T137*Scenarios!K121","v":5000},{"$f":"CustomersRes!U137*Scenarios!L121","v":5075},{"$f":"CustomersRes!V137*Scenarios!M121","v":5050},{"$f":"CustomersRes!W137*Scenarios!N121","v":5025},{"$f":"CustomersRes!X137*Scenarios!O121","v":5000},{"$f":"CustomersRes!Y137*Scenarios!P121","v":4975},{"$f":"CustomersRes!Z137*Scenarios!Q121","v":4950},{"$f":"CustomersRes!AA137*Scenarios!R121","v":4925},{"$f":"CustomersRes!AB137*Scenarios!S121","v":4900},{"$f":"CustomersRes!AC137*Scenarios!T121","v":4876},{"$f":"CustomersRes!AD137*Scenarios!U121","v":4851},{"$f":"CustomersRes!AE137*Scenarios!V121","v":4826},{"$f":"CustomersRes!AF137*Scenarios!W121","v":4801},{"$f":"CustomersRes!AG137*Scenarios!X121","v":4774},{"$f":"CustomersRes!AH137*Scenarios!Y121","v":4740},{"$f":"CustomersRes!AI137*Scenarios!Z121","v":4696},{"$f":"CustomersRes!AJ137*Scenarios!AA121","v":4633},{"$f":"CustomersRes!AK137*Scenarios!AB121","v":4544},{"$f":"CustomersRes!AL137*Scenarios!AC121","v":4424},{"$f":"CustomersRes!AM137*Scenarios!AD121","v":4269},{"$f":"CustomersRes!AN137*Scenarios!AE121","v":4081},{"$f":"CustomersRes!AO137*Scenarios!AF121","v":3857},{"$f":"CustomersRes!AP137*Scenarios!AG121","v":3625},{"$f":"CustomersRes!AQ137*Scenarios!AH121","v":3387},{"$f":"CustomersRes!AR137*Scenarios!AI121","v":3156},{"$f":"CustomersRes!AS137*Scenarios!AJ121","v":2937},{"$f":"CustomersRes!AT137*Scenarios!AK121","v":2729},{"$f":"CustomersRes!AU137*Scenarios!AL121","v":2556},{"$f":"CustomersRes!AV137*Scenarios!AM121","v":2399},{"$f":"CustomersRes!AW137*Scenarios!AN121","v":2241},{"$f":"CustomersRes!AX137*Scenarios!AO121","v":2088},{"$f":"CustomersRes!AY137*Scenarios!AP121","v":1942},{"$f":"CustomersRes!AZ137*Scenarios!AQ121","v":1805},{"$f":"CustomersRes!BA137*Scenarios!AR121","v":1676},{"$f":"CustomersRes!BB137*Scenarios!AS121","v":1556},{"$f":"CustomersRes!BC137*Scenarios!AT121","v":1445},{"$f":"CustomersRes!BD137*Scenarios!AU121","v":1341},{"$f":"CustomersRes!BE137*Scenarios!AV121","v":1245},{"$f":"CustomersRes!BF137*Scenarios!AW121","v":1156},{"$f":"CustomersRes!BG137*Scenarios!AX121","v":1073},{"$f":"CustomersRes!BH137*Scenarios!AY121","v":997},{"$f":"CustomersRes!BI137*Scenarios!AZ121","v":925},{"$f":"CustomersRes!BJ137*Scenarios!BA121","v":859},{"$f":"CustomersRes!BK137*Scenarios!BB121","v":797},{"$f":"CustomersRes!BL137*Scenarios!BC121","v":740},{"$f":"CustomersRes!BM137*Scenarios!BD121","v":687},{"$f":"CustomersRes!BN137*Scenarios!BE121","v":638},{"$f":"CustomersRes!BO137*Scenarios!BF121","v":593},{"$f":"CustomersRes!BP137*Scenarios!BG121","v":550},{"$f":"CustomersRes!BQ137*Scenarios!BH121","v":511},{"$f":"CustomersRes!BR137*Scenarios!BI121","v":474},{"$f":"CustomersRes!BS137*Scenarios!BJ121","v":440},{"$f":"CustomersRes!BT137*Scenarios!BK121","v":408},{"$f":"CustomersRes!BU137*Scenarios!BL121","v":406},{"$f":"CustomersRes!BV137*Scenarios!BM121","v":404},{"$f":"CustomersRes!BW137*Scenarios!BN121","v":402},{"$f":"CustomersRes!BX137*Scenarios!BO121","v":400},{"$f":"CustomersRes!BY137*Scenarios!BP121","v":398},{"$f":"CustomersRes!BZ137*Scenarios!BQ121","v":396},{"$f":"CustomersRes!CA137*Scenarios!BR121","v":394},{"$f":"CustomersRes!CB137*Scenarios!BS121","v":392},{"$f":"CustomersRes!CC137*Scenarios!BT121","v":390},{"$f":"CustomersRes!CD137*Scenarios!BU121","v":388},{"$f":"CustomersRes!CE137*Scenarios!BV121","v":386},{"$f":"CustomersRes!CF137*Scenarios!BW121","v":384},{"$f":"CustomersRes!CG137*Scenarios!BX121","v":382},{"$f":"CustomersRes!CH137*Scenarios!BY121","v":380},{"$f":"CustomersRes!CI137*Scenarios!BZ121","v":378},{"$f":"CustomersRes!CJ137*Scenarios!CA121","v":376},{"$f":"CustomersRes!CK137*Scenarios!CB121","v":374},{"$f":"CustomersRes!CL137*Scenarios!CC121","v":372}]
["Nillumbik (S)",null,{"$f":"CustomersRes!K138*Scenarios!B122","v":0},{"$f":"CustomersRes!L138*Scenarios!C122","v":0},{"$f":"CustomersRes!M138*Scenarios!D122","v":0},{"$f":"CustomersRes!N138*Scenarios!E122","v":0},{"$f":"CustomersRes!O138*Scenarios!F122","v":0},{"$f":"CustomersRes!P138*Scenarios!G122","v":0},{"$f":"CustomersRes!Q138*Scenarios!H122","v":0},{"$f":"CustomersRes!R138*Scenarios!I122","v":0},{"$f":"CustomersRes!S138*Scenarios!J122","v":0},{"$f":"CustomersRes!T138*Scenarios!K122","v":0},{"$f":"CustomersRes!U138*Scenarios!L122","v":0},{"$f":"CustomersRes!V138*Scenarios!M122","v":0},{"$f":"CustomersRes!W138*Scenarios!N122","v":0},{"$f":"CustomersRes!X138*Scenarios!O122","v":0},{"$f":"CustomersRes!Y138*Scenarios!P122","v":0},{"$f":"CustomersRes!Z138*Scenarios!Q122","v":0},{"$f":"CustomersRes!AA138*Scenarios!R122","v":0},{"$f":"CustomersRes!AB138*Scenarios!S122","v":0},{"$f":"CustomersRes!AC138*Scenarios!T122","v":0},{"$f":"CustomersRes!AD138*Scenarios!U122","v":0},{"$f":"CustomersRes!AE138*Scenarios!V122","v":0},{"$f":"CustomersRes!AF138*Scenarios!W122","v":0},{"$f":"CustomersRes!AG138*Scenarios!X122","v":0},{"$f":"CustomersRes!AH138*Scenarios!Y122","v":0},{"$f":"CustomersRes!AI138*Scenarios!Z122","v":0},{"$f":"CustomersRes!AJ138*Scenarios!AA122","v":0},{"$f":"CustomersRes!AK138*Scenarios!AB122","v":0},{"$f":"CustomersRes!AL138*Scenarios!AC122","v":0},{"$f":"CustomersRes!AM138*Scenarios!AD122","v":0},{"$f":"CustomersRes!AN138*Scenarios!AE122","v":0},{"$f":"CustomersRes!AO138*Scenarios!AF122","v":0},{"$f":"CustomersRes!AP138*Scenarios!AG122","v":0},{"$f":"CustomersRes!AQ138*Scenarios!AH122","v":0},{"$f":"CustomersRes!AR138*Scenarios!AI122","v":0},{"$f":"CustomersRes!AS138*Scenarios!AJ122","v":0},{"$f":"CustomersRes!AT138*Scenarios!AK122","v":0},{"$f":"CustomersRes!AU138*Scenarios!AL122","v":0},{"$f":"CustomersRes!AV138*Scenarios!AM122","v":0},{"$f":"CustomersRes!AW138*Scenarios!AN122","v":0},{"$f":"CustomersRes!AX138*Scenarios!AO122","v":0},{"$f":"CustomersRes!AY138*Scenarios!AP122","v":0},{"$f":"CustomersRes!AZ138*Scenarios!AQ122","v":0},{"$f":"CustomersRes!BA138*Scenarios!AR122","v":0},{"$f":"CustomersRes!BB138*Scenarios!AS122","v":0},{"$f":"CustomersRes!BC138*Scenarios!AT122","v":0},{"$f":"CustomersRes!BD138*Scenarios!AU122","v":0},{"$f":"CustomersRes!BE138*Scenarios!AV122","v":0},{"$f":"CustomersRes!BF138*Scenarios!AW122","v":0},{"$f":"CustomersRes!BG138*Scenarios!AX122","v":0},{"$f":"CustomersRes!BH138*Scenarios!AY122","v":0},{"$f":"CustomersRes!BI138*Scenarios!AZ122","v":0},{"$f":"CustomersRes!BJ138*Scenarios!BA122","v":0},{"$f":"CustomersRes!BK138*Scenarios!BB122","v":0},{"$f":"CustomersRes!BL138*Scenarios!BC122","v":0},{"$f":"CustomersRes!BM138*Scenarios!BD122","v":0},{"$f":"CustomersRes!BN138*Scenarios!BE122","v":0},{"$f":"CustomersRes!BO138*Scenarios!BF122","v":0},{"$f":"CustomersRes!BP138*Scenarios!BG122","v":0},{"$f":"CustomersRes!BQ138*Scenarios!BH122","v":0},{"$f":"CustomersRes!BR138*Scenarios!BI122","v":0},{"$f":"CustomersRes!BS138*Scenarios!BJ122","v":0},{"$f":"CustomersRes!BT138*Scenarios!BK122","v":0},{"$f":"CustomersRes!BU138*Scenarios!BL122","v":0},{"$f":"CustomersRes!BV138*Scenarios!BM122","v":0},{"$f":"CustomersRes!BW138*Scenarios!BN122","v":0},{"$f":"CustomersRes!BX138*Scenarios!BO122","v":0},{"$f":"CustomersRes!BY138*Scenarios!BP122","v":0},{"$f":"CustomersRes!BZ138*Scenarios!BQ122","v":0},{"$f":"CustomersRes!CA138*Scenarios!BR122","v":0},{"$f":"CustomersRes!CB138*Scenarios!BS122","v":0},{"$f":"CustomersRes!CC138*Scenarios!BT122","v":0},{"$f":"CustomersRes!CD138*Scenarios!BU122","v":0},{"$f":"CustomersRes!CE138*Scenarios!BV122","v":0},{"$f":"CustomersRes!CF138*Scenarios!BW122","v":0},{"$f":"CustomersRes!CG138*Scenarios!BX122","v":0},{"$f":"CustomersRes!CH138*Scenarios!BY122","v":0},{"$f":"CustomersRes!CI138*Scenarios!BZ122","v":0},{"$f":"CustomersRes!CJ138*Scenarios!CA122","v":0},{"$f":"CustomersRes!CK138*Scenarios!CB122","v":0},{"$f":"CustomersRes!CL138*Scenarios!CC122","v":0}]
["Port Phillip (C)",null,{"$f":"CustomersRes!K139*Scenarios!B123","v":2554},{"$f":"CustomersRes!L139*Scenarios!C123","v":2592},{"$f":"CustomersRes!M139*Scenarios!D123","v":2631},{"$f":"CustomersRes!N139*Scenarios!E123","v":2670},{"$f":"CustomersRes!O139*Scenarios!F123","v":2710},{"$f":"CustomersRes!P139*Scenarios!G123","v":2751},{"$f":"CustomersRes!Q139*Scenarios!H123","v":2792},{"$f":"CustomersRes!R139*Scenarios!I123","v":2834},{"$f":"CustomersRes!S139*Scenarios!J123","v":2876},{"$f":"CustomersRes!T139*Scenarios!K123","v":2919},{"$f":"CustomersRes!U139*Scenarios!L123","v":2962},{"$f":"CustomersRes!V139*Scenarios!M123","v":2948},{"$f":"CustomersRes!W139*Scenarios!N123","v":2933},{"$f":"CustomersRes!X139*Scenarios!O123","v":2918},{"$f":"CustomersRes!Y139*Scenarios!P123","v":2904},{"$f":"CustomersRes!Z139*Scenarios!Q123","v":2889},{"$f":"CustomersRes!AA139*Scenarios!R123","v":2874},{"$f":"CustomersRes!AB139*Scenarios!S123","v":2859},{"$f":"CustomersRes!AC139*Scenarios!T123","v":2842},{"$f":"CustomersRes!AD139*Scenarios!U123","v":2824},{"$f":"CustomersRes!AE139*Scenarios!V123","v":2803},{"$f":"CustomersRes!AF139*Scenarios!W123","v":2780},{"$f":"CustomersRes!AG139*Scenarios!X123","v":2748},{"$f":"CustomersRes!AH139*Scenarios!Y123","v":2696},{"$f":"CustomersRes!AI139*Scenarios!Z123","v":2626},{"$f":"CustomersRes!AJ139*Scenarios!AA123","v":2535},{"$f":"CustomersRes!AK139*Scenarios!AB123","v":2429},{"$f":"CustomersRes!AL139*Scenarios!AC123","v":2310},{"$f":"CustomersRes!AM139*Scenarios!AD123","v":2184},{"$f":"CustomersRes!AN139*Scenarios!AE123","v":2054},{"$f":"CustomersRes!AO139*Scenarios!AF123","v":1922},{"$f":"CustomersRes!AP139*Scenarios!AG123","v":1795},{"$f":"CustomersRes!AQ139*Scenarios!AH123","v":1672},{"$f":"CustomersRes!AR139*Scenarios!AI123","v":1555},{"$f":"CustomersRes!AS139*Scenarios!AJ123","v":1446},{"$f":"CustomersRes!AT139*Scenarios!AK123","v":1344},{"$f":"CustomersRes!AU139*Scenarios!AL123","v":1253},{"$f":"CustomersRes!AV139*Scenarios!AM123","v":1170},{"$f":"CustomersRes!AW139*Scenarios!AN123","v":1090},{"$f":"CustomersRes!AX139*Scenarios!AO123","v":1014},{"$f":"CustomersRes!AY139*Scenarios!AP123","v":942},{"$f":"CustomersRes!AZ139*Scenarios!AQ123","v":875},{"$f":"CustomersRes!BA139*Scenarios!AR123","v":813},{"$f":"CustomersRes!BB139*Scenarios!AS123","v":755},{"$f":"CustomersRes!BC139*Scenarios!AT123","v":701},{"$f":"CustomersRes!BD139*Scenarios!AU123","v":651},{"$f":"CustomersRes!BE139*Scenarios!AV123","v":604},{"$f":"CustomersRes!BF139*Scenarios!AW123","v":561},{"$f":"CustomersRes!BG139*Scenarios!AX123","v":521},{"$f":"CustomersRes!BH139*Scenarios!AY123","v":484},{"$f":"CustomersRes!BI139*Scenarios!AZ123","v":449},{"$f":"CustomersRes!BJ139*Scenarios!BA123","v":417},{"$f":"CustomersRes!BK139*Scenarios!BB123","v":387},{"$f":"CustomersRes!BL139*Scenarios!BC123","v":359},{"$f":"CustomersRes!BM139*Scenarios!BD123","v":334},{"$f":"CustomersRes!BN139*Scenarios!BE123","v":310},{"$f":"CustomersRes!BO139*Scenarios!BF123","v":288},{"$f":"CustomersRes!BP139*Scenarios!BG123","v":267},{"$f":"CustomersRes!BQ139*Scenarios!BH123","v":248},{"$f":"CustomersRes!BR139*Scenarios!BI123","v":230},{"$f":"CustomersRes!BS139*Scenarios!BJ123","v":214},{"$f":"CustomersRes!BT139*Scenarios!BK123","v":198},{"$f":"CustomersRes!BU139*Scenarios!BL123","v":197},{"$f":"CustomersRes!BV139*Scenarios!BM123","v":196},{"$f":"CustomersRes!BW139*Scenarios!BN123","v":194},{"$f":"CustomersRes!BX139*Scenarios!BO123","v":193},{"$f":"CustomersRes!BY139*Scenarios!BP123","v":192},{"$f":"CustomersRes!BZ139*Scenarios!BQ123","v":190},{"$f":"CustomersRes!CA139*Scenarios!BR123","v":189},{"$f":"CustomersRes!CB139*Scenarios!BS123","v":187},{"$f":"CustomersRes!CC139*Scenarios!BT123","v":186},{"$f":"CustomersRes!CD139*Scenarios!BU123","v":185},{"$f":"CustomersRes!CE139*Scenarios!BV123","v":183},{"$f":"CustomersRes!CF139*Scenarios!BW123","v":182},{"$f":"CustomersRes!CG139*Scenarios!BX123","v":181},{"$f":"CustomersRes!CH139*Scenarios!BY123","v":179},{"$f":"CustomersRes!CI139*Scenarios!BZ123","v":178},{"$f":"CustomersRes!CJ139*Scenarios!CA123","v":176},{"$f":"CustomersRes!CK139*Scenarios!CB123","v":175},{"$f":"CustomersRes!CL139*Scenarios!CC123","v":174}]
["South Gippsland (S)",null,{"$f":"CustomersRes!K140*Scenarios!B124","v":144},{"$f":"CustomersRes!L140*Scenarios!C124","v":146},{"$f":"CustomersRes!M140*Scenarios!D124","v":148},{"$f":"CustomersRes!N140*Scenarios!E124","v":150},{"$f":"CustomersRes!O140*Scenarios!F124","v":152},{"$f":"CustomersRes!P140*Scenarios!G124","v":155},{"$f":"CustomersRes!Q140*Scenarios!H124","v":157},{"$f":"CustomersRes!R140*Scenarios!I124","v":159},{"$f":"CustomersRes!S140*Scenarios!J124","v":162},{"$f":"CustomersRes!T140*Scenarios!K124","v":164},{"$f":"CustomersRes!U140*Scenarios!L124","v":166},{"$f":"CustomersRes!V140*Scenarios!M124","v":166},{"$f":"CustomersRes!W140*Scenarios!N124","v":165},{"$f":"CustomersRes!X140*Scenarios!O124","v":164},{"$f":"CustomersRes!Y140*Scenarios!P124","v":163},{"$f":"CustomersRes!Z140*Scenarios!Q124","v":162},{"$f":"CustomersRes!AA140*Scenarios!R124","v":161},{"$f":"CustomersRes!AB140*Scenarios!S124","v":161},{"$f":"CustomersRes!AC140*Scenarios!T124","v":160},{"$f":"CustomersRes!AD140*Scenarios!U124","v":159},{"$f":"CustomersRes!AE140*Scenarios!V124","v":158},{"$f":"CustomersRes!AF140*Scenarios!W124","v":157},{"$f":"CustomersRes!AG140*Scenarios!X124","v":157},{"$f":"CustomersRes!AH140*Scenarios!Y124","v":156},{"$f":"CustomersRes!AI140*Scenarios!Z124","v":155},{"$f":"CustomersRes!AJ140*Scenarios!AA124","v":154},{"$f":"CustomersRes!AK140*Scenarios!AB124","v":153},{"$f":"CustomersRes!AL140*Scenarios!AC124","v":153},{"$f":"CustomersRes!AM140*Scenarios!AD124","v":152},{"$f":"CustomersRes!AN140*Scenarios!AE124","v":151},{"$f":"CustomersRes!AO140*Scenarios!AF124","v":150},{"$f":"CustomersRes!AP140*Scenarios!AG124","v":149},{"$f":"CustomersRes!AQ140*Scenarios!AH124","v":147},{"$f":"CustomersRes!AR140*Scenarios!AI124","v":146},{"$f":"CustomersRes!AS140*Scenarios!AJ124","v":144},{"$f":"CustomersRes!AT140*Scenarios!AK124","v":142},{"$f":"CustomersRes!AU140*Scenarios!AL124","v":141},{"$f":"CustomersRes!AV140*Scenarios!AM124","v":140},{"$f":"CustomersRes!AW140*Scenarios!AN124","v":139},{"$f":"CustomersRes!AX140*Scenarios!AO124","v":138},{"$f":"CustomersRes!AY140*Scenarios!AP124","v":136},{"$f":"CustomersRes!AZ140*Scenarios!AQ124","v":134},{"$f":"CustomersRes!BA140*Scenarios!AR124","v":132},{"$f":"CustomersRes!BB140*Scenarios!AS124","v":128},{"$f":"CustomersRes!BC140*Scenarios!AT124","v":124},{"$f":"CustomersRes!BD140*Scenarios!AU124","v":119},{"$f":"CustomersRes!BE140*Scenarios!AV124","v":112},{"$f":"CustomersRes!BF140*Scenarios!AW124","v":106},{"$f":"CustomersRes!BG140*Scenarios!AX124","v":98},{"$f":"CustomersRes!BH140*Scenarios!AY124","v":92},{"$f":"CustomersRes!BI140*Scenarios!AZ124","v":85},{"$f":"CustomersRes!BJ140*Scenarios!BA124","v":79},{"$f":"CustomersRes!BK140*Scenarios!BB124","v":73},{"$f":"CustomersRes!BL140*Scenarios!BC124","v":68},{"$f":"CustomersRes!BM140*Scenarios!BD124","v":63},{"$f":"CustomersRes!BN140*Scenarios!BE124","v":59},{"$f":"CustomersRes!BO140*Scenarios!BF124","v":55},{"$f":"CustomersRes!BP140*Scenarios!BG124","v":51},{"$f":"CustomersRes!BQ140*Scenarios!BH124","v":47},{"$f":"CustomersRes!BR140*Scenarios!BI124","v":44},{"$f":"CustomersRes!BS140*Scenarios!BJ124","v":41},{"$f":"CustomersRes!BT140*Scenarios!BK124","v":38},{"$f":"CustomersRes!BU140*Scenarios!BL124","v":38},{"$f":"CustomersRes!BV140*Scenarios!BM124","v":38},{"$f":"CustomersRes!BW140*Scenarios!BN124","v":37},{"$f":"CustomersRes!BX140*Scenarios!BO124","v":37},{"$f":"CustomersRes!BY140*Scenarios!BP124","v":37},{"$f":"CustomersRes!BZ140*Scenarios!BQ124","v":37},{"$f":"CustomersRes!CA140*Scenarios!BR124","v":37},{"$f":"CustomersRes!CB140*Scenarios!BS124","v":37},{"$f":"CustomersRes!CC140*Scenarios!BT124","v":36},{"$f":"CustomersRes!CD140*Scenarios!BU124","v":36},{"$f":"CustomersRes!CE140*Scenarios!BV124","v":36},{"$f":"CustomersRes!CF140*Scenarios!BW124","v":36},{"$f":"CustomersRes!CG140*Scenarios!BX124","v":36},{"$f":"CustomersRes!CH140*Scenarios!BY124","v":35},{"$f":"CustomersRes!CI140*Scenarios!BZ124","v":35},{"$f":"CustomersRes!CJ140*Scenarios!CA124","v":35},{"$f":"CustomersRes!CK140*Scenarios!CB124","v":35},{"$f":"CustomersRes!CL140*Scenarios!CC124","v":35}]
["Stonnington (C)",null,{"$f":"CustomersRes!K141*Scenarios!B125","v":2589},{"$f":"CustomersRes!L141*Scenarios!C125","v":2628},{"$f":"CustomersRes!M141*Scenarios!D125","v":2667},{"$f":"CustomersRes!N141*Scenarios!E125","v":2707},{"$f":"CustomersRes!O141*Scenarios!F125","v":2747},{"$f":"CustomersRes!P141*Scenarios!G125","v":2788},{"$f":"CustomersRes!Q141*Scenarios!H125","v":2830},{"$f":"CustomersRes!R141*Scenarios!I125","v":2872},{"$f":"CustomersRes!S141*Scenarios!J125","v":2915},{"$f":"CustomersRes!T141*Scenarios!K125","v":2959},{"$f":"CustomersRes!U141*Scenarios!L125","v":3003},{"$f":"CustomersRes!V141*Scenarios!M125","v":2988},{"$f":"CustomersRes!W141*Scenarios!N125","v":2973},{"$f":"CustomersRes!X141*Scenarios!O125","v":2958},{"$f":"CustomersRes!Y141*Scenarios!P125","v":2944},{"$f":"CustomersRes!Z141*Scenarios!Q125","v":2929},{"$f":"CustomersRes!AA141*Scenarios!R125","v":2914},{"$f":"CustomersRes!AB141*Scenarios!S125","v":2898},{"$f":"CustomersRes!AC141*Scenarios!T125","v":2882},{"$f":"CustomersRes!AD141*Scenarios!U125","v":2864},{"$f":"CustomersRes!AE141*Scenarios!V125","v":2843},{"$f":"CustomersRes!AF141*Scenarios!W125","v":2818},{"$f":"CustomersRes!AG141*Scenarios!X125","v":2781},{"$f":"CustomersRes!AH141*Scenarios!Y125","v":2715},{"$f":"CustomersRes!AI141*Scenarios!Z125","v":2625},{"$f":"CustomersRes!AJ141*Scenarios!AA125","v":2509},{"$f":"CustomersRes!AK141*Scenarios!AB125","v":2378},{"$f":"CustomersRes!AL141*Scenarios!AC125","v":2239},{"$f":"CustomersRes!AM141*Scenarios!AD125","v":2098},{"$f":"CustomersRes!AN141*Scenarios!AE125","v":1960},{"$f":"CustomersRes!AO141*Scenarios!AF125","v":1826},{"$f":"CustomersRes!AP141*Scenarios!AG125","v":1699},{"$f":"CustomersRes!AQ141*Scenarios!AH125","v":1579},{"$f":"CustomersRes!AR141*Scenarios!AI125","v":1467},{"$f":"CustomersRes!AS141*Scenarios!AJ125","v":1362},{"$f":"CustomersRes!AT141*Scenarios!AK125","v":1265},{"$f":"CustomersRes!AU141*Scenarios!AL125","v":1176},{"$f":"CustomersRes!AV141*Scenarios!AM125","v":1094},{"$f":"CustomersRes!AW141*Scenarios!AN125","v":1017},{"$f":"CustomersRes!AX141*Scenarios!AO125","v":945},{"$f":"CustomersRes!AY141*Scenarios!AP125","v":878},{"$f":"CustomersRes!AZ141*Scenarios!AQ125","v":815},{"$f":"CustomersRes!BA141*Scenarios!AR125","v":757},{"$f":"CustomersRes!BB141*Scenarios!AS125","v":702},{"$f":"CustomersRes!BC141*Scenarios!AT125","v":652},{"$f":"CustomersRes!BD141*Scenarios!AU125","v":606},{"$f":"CustomersRes!BE141*Scenarios!AV125","v":562},{"$f":"CustomersRes!BF141*Scenarios!AW125","v":522},{"$f":"CustomersRes!BG141*Scenarios!AX125","v":485},{"$f":"CustomersRes!BH141*Scenarios!AY125","v":450},{"$f":"CustomersRes!BI141*Scenarios!AZ125","v":418},{"$f":"CustomersRes!BJ141*Scenarios!BA125","v":388},{"$f":"CustomersRes!BK141*Scenarios!BB125","v":360},{"$f":"CustomersRes!BL141*Scenarios!BC125","v":334},{"$f":"CustomersRes!BM141*Scenarios!BD125","v":310},{"$f":"CustomersRes!BN141*Scenarios!BE125","v":288},{"$f":"CustomersRes!BO141*Scenarios!BF125","v":268},{"$f":"CustomersRes!BP141*Scenarios!BG125","v":249},{"$f":"CustomersRes!BQ141*Scenarios!BH125","v":231},{"$f":"CustomersRes!BR141*Scenarios!BI125","v":214},{"$f":"CustomersRes!BS141*Scenarios!BJ125","v":199},{"$f":"CustomersRes!BT141*Scenarios!BK125","v":185},{"$f":"CustomersRes!BU141*Scenarios!BL125","v":183},{"$f":"CustomersRes!BV141*Scenarios!BM125","v":182},{"$f":"CustomersRes!BW141*Scenarios!BN125","v":180},{"$f":"CustomersRes!BX141*Scenarios!BO125","v":179},{"$f":"CustomersRes!BY141*Scenarios!BP125","v":178},{"$f":"CustomersRes!BZ141*Scenarios!BQ125","v":176},{"$f":"CustomersRes!CA141*Scenarios!BR125","v":175},{"$f":"CustomersRes!CB141*Scenarios!BS125","v":174},{"$f":"CustomersRes!CC141*Scenarios!BT125","v":172},{"$f":"CustomersRes!CD141*Scenarios!BU125","v":171},{"$f":"CustomersRes!CE141*Scenarios!BV125","v":170},{"$f":"CustomersRes!CF141*Scenarios!BW125","v":168},{"$f":"CustomersRes!CG141*Scenarios!BX125","v":167},{"$f":"CustomersRes!CH141*Scenarios!BY125","v":166},{"$f":"CustomersRes!CI141*Scenarios!BZ125","v":164},{"$f":"CustomersRes!CJ141*Scenarios!CA125","v":163},{"$f":"CustomersRes!CK141*Scenarios!CB125","v":162},{"$f":"CustomersRes!CL141*Scenarios!CC125","v":161}]
["Whitehorse (C)",null,{"$f":"CustomersRes!K142*Scenarios!B126","v":4457},{"$f":"CustomersRes!L142*Scenarios!C126","v":4524},{"$f":"CustomersRes!M142*Scenarios!D126","v":4592},{"$f":"CustomersRes!N142*Scenarios!E126","v":4661},{"$f":"CustomersRes!O142*Scenarios!F126","v":4730},{"$f":"CustomersRes!P142*Scenarios!G126","v":4801},{"$f":"CustomersRes!Q142*Scenarios!H126","v":4873},{"$f":"CustomersRes!R142*Scenarios!I126","v":4946},{"$f":"CustomersRes!S142*Scenarios!J126","v":5020},{"$f":"CustomersRes!T142*Scenarios!K126","v":5096},{"$f":"CustomersRes!U142*Scenarios!L126","v":5172},{"$f":"CustomersRes!V142*Scenarios!M126","v":5146},{"$f":"CustomersRes!W142*Scenarios!N126","v":5121},{"$f":"CustomersRes!X142*Scenarios!O126","v":5095},{"$f":"CustomersRes!Y142*Scenarios!P126","v":5069},{"$f":"CustomersRes!Z142*Scenarios!Q126","v":5044},{"$f":"CustomersRes!AA142*Scenarios!R126","v":5019},{"$f":"CustomersRes!AB142*Scenarios!S126","v":4994},{"$f":"CustomersRes!AC142*Scenarios!T126","v":4969},{"$f":"CustomersRes!AD142*Scenarios!U126","v":4943},{"$f":"CustomersRes!AE142*Scenarios!V126","v":4918},{"$f":"CustomersRes!AF142*Scenarios!W126","v":4892},{"$f":"CustomersRes!AG142*Scenarios!X126","v":4864},{"$f":"CustomersRes!AH142*Scenarios!Y126","v":4830},{"$f":"CustomersRes!AI142*Scenarios!Z126","v":4784},{"$f":"CustomersRes!AJ142*Scenarios!AA126","v":4718},{"$f":"CustomersRes!AK142*Scenarios!AB126","v":4626},{"$f":"CustomersRes!AL142*Scenarios!AC126","v":4501},{"$f":"CustomersRes!AM142*Scenarios!AD126","v":4340},{"$f":"CustomersRes!AN142*Scenarios!AE126","v":4145},{"$f":"CustomersRes!AO142*Scenarios!AF126","v":3915},{"$f":"CustomersRes!AP142*Scenarios!AG126","v":3678},{"$f":"CustomersRes!AQ142*Scenarios!AH126","v":3436},{"$f":"CustomersRes!AR142*Scenarios!AI126","v":3201},{"$f":"CustomersRes!AS142*Scenarios!AJ126","v":2977},{"$f":"CustomersRes!AT142*Scenarios!AK126","v":2767},{"$f":"CustomersRes!AU142*Scenarios!AL126","v":2590},{"$f":"CustomersRes!AV142*Scenarios!AM126","v":2429},{"$f":"CustomersRes!AW142*Scenarios!AN126","v":2270},{"$f":"CustomersRes!AX142*Scenarios!AO126","v":2114},{"$f":"CustomersRes!AY142*Scenarios!AP126","v":1966},{"$f":"CustomersRes!AZ142*Scenarios!AQ126","v":1827},{"$f":"CustomersRes!BA142*Scenarios!AR126","v":1696},{"$f":"CustomersRes!BB142*Scenarios!AS126","v":1575},{"$f":"CustomersRes!BC142*Scenarios!AT126","v":1462},{"$f":"CustomersRes!BD142*Scenarios!AU126","v":1358},{"$f":"CustomersRes!BE142*Scenarios!AV126","v":1260},{"$f":"CustomersRes!BF142*Scenarios!AW126","v":1170},{"$f":"CustomersRes!BG142*Scenarios!AX126","v":1086},{"$f":"CustomersRes!BH142*Scenarios!AY126","v":1009},{"$f":"CustomersRes!BI142*Scenarios!AZ126","v":936},{"$f":"CustomersRes!BJ142*Scenarios!BA126","v":869},{"$f":"CustomersRes!BK142*Scenarios!BB126","v":807},{"$f":"CustomersRes!BL142*Scenarios!BC126","v":749},{"$f":"CustomersRes!BM142*Scenarios!BD126","v":696},{"$f":"CustomersRes!BN142*Scenarios!BE126","v":646},{"$f":"CustomersRes!BO142*Scenarios!BF126","v":600},{"$f":"CustomersRes!BP142*Scenarios!BG126","v":557},{"$f":"CustomersRes!BQ142*Scenarios!BH126","v":517},{"$f":"CustomersRes!BR142*Scenarios!BI126","v":480},{"$f":"CustomersRes!BS142*Scenarios!BJ126","v":445},{"$f":"CustomersRes!BT142*Scenarios!BK126","v":413},{"$f":"CustomersRes!BU142*Scenarios!BL126","v":411},{"$f":"CustomersRes!BV142*Scenarios!BM126","v":409},{"$f":"CustomersRes!BW142*Scenarios!BN126","v":407},{"$f":"CustomersRes!BX142*Scenarios!BO126","v":405},{"$f":"CustomersRes!BY142*Scenarios!BP126","v":403},{"$f":"CustomersRes!BZ142*Scenarios!BQ126","v":401},{"$f":"CustomersRes!CA142*Scenarios!BR126","v":399},{"$f":"CustomersRes!CB142*Scenarios!BS126","v":397},{"$f":"CustomersRes!CC142*Scenarios!BT126","v":395},{"$f":"CustomersRes!CD142*Scenarios!BU126","v":392},{"$f":"CustomersRes!CE142*Scenarios!BV126","v":390},{"$f":"CustomersRes!CF142*Scenarios!BW126","v":388},{"$f":"CustomersRes!CG142*Scenarios!BX126","v":386},{"$f":"CustomersRes!CH142*Scenarios!BY126","v":384},{"$f":"CustomersRes!CI142*Scenarios!BZ126","v":382},{"$f":"CustomersRes!CJ142*Scenarios!CA126","v":380},{"$f":"CustomersRes!CK142*Scenarios!CB126","v":378},{"$f":"CustomersRes!CL142*Scenarios!CC126","v":377}]
["Yarra Ranges (S)",null,{"$f":"CustomersRes!K143*Scenarios!B127","v":3211},{"$f":"CustomersRes!L143*Scenarios!C127","v":3259},{"$f":"CustomersRes!M143*Scenarios!D127","v":3308},{"$f":"CustomersRes!N143*Scenarios!E127","v":3358},{"$f":"CustomersRes!O143*Scenarios!F127","v":3408},{"$f":"CustomersRes!P143*Scenarios!G127","v":3459},{"$f":"CustomersRes!Q143*Scenarios!H127","v":3511},{"$f":"CustomersRes!R143*Scenarios!I127","v":3564},{"$f":"CustomersRes!S143*Scenarios!J127","v":3617},{"$f":"CustomersRes!T143*Scenarios!K127","v":3671},{"$f":"CustomersRes!U143*Scenarios!L127","v":3726},{"$f":"CustomersRes!V143*Scenarios!M127","v":3708},{"$f":"CustomersRes!W143*Scenarios!N127","v":3689},{"$f":"CustomersRes!X143*Scenarios!O127","v":3671},{"$f":"CustomersRes!Y143*Scenarios!P127","v":3652},{"$f":"CustomersRes!Z143*Scenarios!Q127","v":3634},{"$f":"CustomersRes!AA143*Scenarios!R127","v":3616},{"$f":"CustomersRes!AB143*Scenarios!S127","v":3598},{"$f":"CustomersRes!AC143*Scenarios!T127","v":3580},{"$f":"CustomersRes!AD143*Scenarios!U127","v":3562},{"$f":"CustomersRes!AE143*Scenarios!V127","v":3543},{"$f":"CustomersRes!AF143*Scenarios!W127","v":3525},{"$f":"CustomersRes!AG143*Scenarios!X127","v":3505},{"$f":"CustomersRes!AH143*Scenarios!Y127","v":3479},{"$f":"CustomersRes!AI143*Scenarios!Z127","v":3443},{"$f":"CustomersRes!AJ143*Scenarios!AA127","v":3390},{"$f":"CustomersRes!AK143*Scenarios!AB127","v":3314},{"$f":"CustomersRes!AL143*Scenarios!AC127","v":3211},{"$f":"CustomersRes!AM143*Scenarios!AD127","v":3080},{"$f":"CustomersRes!AN143*Scenarios!AE127","v":2926},{"$f":"CustomersRes!AO143*Scenarios!AF127","v":2752},{"$f":"CustomersRes!AP143*Scenarios!AG127","v":2577},{"$f":"CustomersRes!AQ143*Scenarios!AH127","v":2402},{"$f":"CustomersRes!AR143*Scenarios!AI127","v":2235},{"$f":"CustomersRes!AS143*Scenarios!AJ127","v":2077},{"$f":"CustomersRes!AT143*Scenarios!AK127","v":1930},{"$f":"CustomersRes!AU143*Scenarios!AL127","v":1802},{"$f":"CustomersRes!AV143*Scenarios!AM127","v":1685},{"$f":"CustomersRes!AW143*Scenarios!AN127","v":1571},{"$f":"CustomersRes!AX143*Scenarios!AO127","v":1461},{"$f":"CustomersRes!AY143*Scenarios!AP127","v":1358},{"$f":"CustomersRes!AZ143*Scenarios!AQ127","v":1261},{"$f":"CustomersRes!BA143*Scenarios!AR127","v":1171},{"$f":"CustomersRes!BB143*Scenarios!AS127","v":1087},{"$f":"CustomersRes!BC143*Scenarios!AT127","v":1010},{"$f":"CustomersRes!BD143*Scenarios!AU127","v":937},{"$f":"CustomersRes!BE143*Scenarios!AV127","v":870},{"$f":"CustomersRes!BF143*Scenarios!AW127","v":808},{"$f":"CustomersRes!BG143*Scenarios!AX127","v":750},{"$f":"CustomersRes!BH143*Scenarios!AY127","v":696},{"$f":"CustomersRes!BI143*Scenarios!AZ127","v":647},{"$f":"CustomersRes!BJ143*Scenarios!BA127","v":600},{"$f":"CustomersRes!BK143*Scenarios!BB127","v":557},{"$f":"CustomersRes!BL143*Scenarios!BC127","v":518},{"$f":"CustomersRes!BM143*Scenarios!BD127","v":480},{"$f":"CustomersRes!BN143*Scenarios!BE127","v":446},{"$f":"CustomersRes!BO143*Scenarios!BF127","v":414},{"$f":"CustomersRes!BP143*Scenarios!BG127","v":384},{"$f":"CustomersRes!BQ143*Scenarios!BH127","v":357},{"$f":"CustomersRes!BR143*Scenarios!BI127","v":331},{"$f":"CustomersRes!BS143*Scenarios!BJ127","v":308},{"$f":"CustomersRes!BT143*Scenarios!BK127","v":286},{"$f":"CustomersRes!BU143*Scenarios!BL127","v":284},{"$f":"CustomersRes!BV143*Scenarios!BM127","v":283},{"$f":"CustomersRes!BW143*Scenarios!BN127","v":281},{"$f":"CustomersRes!BX143*Scenarios!BO127","v":280},{"$f":"CustomersRes!BY143*Scenarios!BP127","v":278},{"$f":"CustomersRes!BZ143*Scenarios!BQ127","v":277},{"$f":"CustomersRes!CA143*Scenarios!BR127","v":275},{"$f":"CustomersRes!CB143*Scenarios!BS127","v":274},{"$f":"CustomersRes!CC143*Scenarios!BT127","v":272},{"$f":"CustomersRes!CD143*Scenarios!BU127","v":271},{"$f":"CustomersRes!CE143*Scenarios!BV127","v":270},{"$f":"CustomersRes!CF143*Scenarios!BW127","v":268},{"$f":"CustomersRes!CG143*Scenarios!BX127","v":267},{"$f":"CustomersRes!CH143*Scenarios!BY127","v":265},{"$f":"CustomersRes!CI143*Scenarios!BZ127","v":264},{"$f":"CustomersRes!CJ143*Scenarios!CA127","v":262},{"$f":"CustomersRes!CK143*Scenarios!CB127","v":261},{"$f":"CustomersRes!CL143*Scenarios!CC127","v":260}]
["Total",null,{"$f":"SUM(C46:C65)","v":46054},{"$f":"SUM(D46:D65)","v":46742},47443,48155,48872,49605,50349,51105,51869,52649,53434,53169,52905,52638,52374,52115,51850,51588,51327,51052,50767,50469,50096,49521,48713,47602,46229,44604,42758,40736,38537,36344,34164,32069,30080,28200,26593,25126,23688,22300,20974,19712,18510,17354,16240,15155,14112,13121,12188,11319,10508,9755,9058,8408,7807,7251,6733,6247,5802,5384,5002,4640,4614,4591,4564,{"$f":"SUM(BP46:BP65)","v":4541},4518,4492,4467,4444,4419,4393,4371,4344,4321,4296,4272,4247,4224,4204]
["LGA S curves","Constant","NPV coefficient",null,null,null,null,null,null,null,null,null,"Relative U","P(Disconnect)","Average Decision Points","Economic Disconnection Estimate","Economic Stay Estimate"]
["Bass Coast (S)",{"$f":"Scenarios!J32","v":0.86},{"$f":"Scenarios!K32","v":-2.3999999999999998E-3},null,null,null,null,null,null,null,"Against Gas",{"$f":"600*15","v":9000},{"$f":"$B68+$C68*L68","v":-20.74},{"$f":"1-EXP(M68)/(1+EXP(M68))","v":0.99999999901659498},{"$f":"O72","v":46054},{"$f":"N68*O68","v":46053.999954710263},{"$f":"O68-P68","v":4.5289736590348184E-5}]
["Bayside (C)",{"$f":"B68","v":0.86},{"$f":"C68","v":-2.3999999999999998E-3},null,null,null,null,null,null,null,"For Gas (status quo)",0,{"$f":"$B69+$C69*L69","v":0.86},{"$f":"1-EXP(M69)/(1+EXP(M69))","v":0.29733934565526854},{"$f":"O72","v":46054},{"$f":"N69*O69","v":13693.666224807737},{"$f":"O69-P69","v":32360.333775192263}]
["Boroondara (C)",{"$f":"B69","v":0.86},{"$f":"C69","v":-2.3999999999999998E-3}]
["Cardinia (S)",0.86,-2.3999999999999998E-3,null,null,null,null,null,null,null,null,null,null,null,null,"Estimate of number of people disconnecting","Close to zero","Solve for 0"]
["Casey (C)",0.86,-2.3999999999999998E-3,null,null,null,null,null,null,null,"Relative U where less than 1 person disconnects ",null,18.02612900965207,{"$f":"1-EXP(M72)/(1+EXP(M72))","v":1.4837189143968033E-8},{"$f":"SUM(C46:C65)","v":46054},{"$f":"N72*O72","v":6.8331190883630377E-4},9.9999999999999995E-7,{"$f":"(P72-Q72)","v":6.8231190883630375E-4}]
["Frankston (C)",0.86,-2.3999999999999998E-3]
["Glen Eira (C)",0.86,-2.3999999999999998E-3,null,null,null,null,null,null,null,"Current Economics (where households don't switch)",{"$f":"L69","v":0},{"$f":"M72/L74","v":{"$error":"#DIV/0!"}}]
["Greater Dandenong (C)",0.86,-2.3999999999999998E-3,null,null,null,null,null,null,null,"Difference in NPV to reach almost 100% disconnections",{"$f":"L68-L74","v":9000}]
["Kingston (C)",0.86,-2.3999999999999998E-3,null,null,null,null,null,null,null,"Difference in RU to reach almost 100% disconnections",{"$f":"-2*M72","v":-36.052258019304141}]
["Knox (C)",0.86,-2.3999999999999998E-3,null,null,null,null,null,null,null,"Implied NPV Coefficient",{"$f":"L76/L75","v":-4.0058064465893486E-3}]
["Manningham (C)",0.86,-2.3999999999999998E-3,null,null,null,null,null,null,null,"Intercept",{"$f":"M72-L77*L74","v":18.02612900965207}]
["Maroondah (C)",0.86,-2.3999999999999998E-3]
["Melbourne (C)",0.86,-2.3999999999999998E-3,null,null,null,null,null,null,null,"NPV per year of appliance life",{"$f":"L68/15","v":600}]
["Monash (C)",0.86,-2.3999999999999998E-3]
["Nillumbik (S)",0.86,-2.3999999999999998E-3]
["Port Phillip (C)",0.86,-2.3999999999999998E-3]
["South Gippsland (S)",0.86,-2.3999999999999998E-3]
["Stonnington (C)",0.86,-2.3999999999999998E-3]
["Whitehorse (C)",0.86,-2.3999999999999998E-3]
["Yarra Ranges (S)",0.86,-2.3999999999999998E-3]
["WANPV",0.86,-2.3999999999999998E-3]
["LGA S curves (Relative utility)",2020,2021,{"$f":"C89+1","v":2022},{"$f":"D89+1","v":2023},{"$f":"E89+1","v":2024},{"$f":"F89+1","v":2025},{"$f":"G89+1","v":2026},{"$f":"H89+1","v":2027},{"$f":"I89+1","v":2028},{"$f":"J89+1","v":2029},{"$f":"K89+1","v":2030},{"$f":"L89+1","v":2031},{"$f":"M89+1","v":2032},{"$f":"N89+1","v":2033},{"$f":"O89+1","v":2034},{"$f":"P89+1","v":2035},{"$f":"Q89+1","v":2036},{"$f":"R89+1","v":2037},{"$f":"S89+1","v":2038},{"$f":"T89+1","v":2039},{"$f":"U89+1","v":2040},{"$f":"V89+1","v":2041},{"$f":"W89+1","v":2042},{"$f":"X89+1","v":2043},{"$f":"Y89+1","v":2044},{"$f":"Z89+1","v":2045},{"$f":"AA89+1","v":2046},{"$f":"AB89+1","v":2047},{"$f":"AC89+1","v":2048},{"$f":"AD89+1","v":2049},{"$f":"AE89+1","v":2050},{"$f":"AF89+1","v":2051},{"$f":"AG89+1","v":2052},{"$f":"AH89+1","v":2053},{"$f":"AI89+1","v":2054},{"$f":"AJ89+1","v":2055},{"$f":"AK89+1","v":2056},{"$f":"AL89+1","v":2057},{"$f":"AM89+1","v":2058},{"$f":"AN89+1","v":2059},{"$f":"AO89+1","v":2060},{"$f":"AP89+1","v":2061},{"$f":"AQ89+1","v":2062},{"$f":"AR89+1","v":2063},{"$f":"AS89+1","v":2064},{"$f":"AT89+1","v":2065},{"$f":"AU89+1","v":2066},{"$f":"AV89+1","v":2067},{"$f":"AW89+1","v":2068},{"$f":"AX89+1","v":2069},{"$f":"AY89+1","v":2070},{"$f":"AZ89+1","v":2071},{"$f":"BA89+1","v":2072},{"$f":"BB89+1","v":2073},{"$f":"BC89+1","v":2074},{"$f":"BD89+1","v":2075},{"$f":"BE89+1","v":2076},{"$f":"BF89+1","v":2077},{"$f":"BG89+1","v":2078},{"$f":"BH89+1","v":2079},{"$f":"BI89+1","v":2080},{"$f":"BJ89+1","v":2081},{"$f":"BK89+1","v":2082},{"$f":"BL89+1","v":2083},{"$f":"BM89+1","v":2084},{"$f":"BN89+1","v":2085},{"$f":"BO89+1","v":2086},{"$f":"BP89+1","v":2087},{"$f":"BQ89+1","v":2088},{"$f":"BR89+1","v":2089},{"$f":"BS89+1","v":2090},{"$f":"BT89+1","v":2091},{"$f":"BU89+1","v":2092},{"$f":"BV89+1","v":2093},{"$f":"BW89+1","v":2094},{"$f":"BX89+1","v":2095},{"$f":"BY89+1","v":2096},{"$f":"BZ89+1","v":2097},{"$f":"CA89+1","v":2098},{"$f":"CB89+1","v":2099},{"$f":"CC89+1","v":2100}]
["Bass Coast (S)",null,{"$f":"$B68+$C68*C24","v":10.465065758240591},{"$f":"$B68+$C68*D24","v":11.05748318177846},9.6484211152729511,9.4860269960196604,10.937268063502676,11.048527693364086,10.57098319419109,11.35691792855169,10.251261993914571,10.615896986013153,11.252106192195924,11.278869278272806,10.607246701354951,10.071548008338382,9.2820162402686162,8.8192621381144001,8.0937095348996966,7.707857995422823,7.2549317826727009,6.9282499873639516,6.6656130008195911,6.1295588568638735,5.5851312908284445,5.2034904738490084,4.8189336094305455,4.5034862630785248,4.1964576137160323,3.9119493809006296,3.6105928299414316,3.2366614252143298,3.0017480288370897,2.6798348696897465,2.3825851212020956,2.1159612398609511,1.8326221996220595,2.8345942787751457,2.9539376210923618,2.6796763725142356,2.3499136402965863,2.0486309828686298,1.7208480180837566,1.3629258094013901,0.96179518789337437,0.51538317045939697,-3.8392310427548537E-3,-0.59328003872399659,-1.269464735279823,-2.0366928334873378,-2.9233438339761437,-3.9324352140771022,-5.0979884004697116,-6.4542959940923543,-8.0707298678937462,-9.6160947548014466,-11.023890807485788,-12.465715551595149,-14.102814913245643,-16.042993527866681,-18.857599748305521,-22.963587425537021,-28.999377942909941,6.480474734298741,6.4726242608142037,6.4702174968111237,6.4569616955337104,{"$f":"$B68+$C68*BP24","v":6.4491494464366532},6.441349782324199,6.438993515061683,6.4257878998577738,6.4180255281191387,6.4102754345896216,6.4079684330618498,6.3948117806595475,6.3870980706922866,6.3793963397947442,6.3771374036383843,6.3640285212138377,6.3563622876857506,6.3487077415320945,6.4607886535589341]
["Bayside (C)",null,11.493158470691442,{"$f":"$B69+$C69*D25","v":12.964500120557648},11.605292940267908,11.166380388758633,14.19873197668044,14.270226551646633,13.024663522210481,13.780812220890743,11.570085442944343,12.59652150792845,14.438342425113913,14.630632122329125,13.042297050458808,11.78193523717824,9.8670382523614713,8.7903540015553414,7.0650889162555579,6.1382369365188474,5.0757412945316567,4.3564772805624221,3.8002160094101094,2.5144862966836468,1.2131010839877452,0.33853280261463348,-0.5364177300363776,-1.2311176690491106,-1.8999179281474436,-2.5118504662587098,-3.1564522017707417,-3.9960838394226053,-4.5879538493782253,-5.4203130808051467,-6.1689862220639249,-6.8445543978071051,-7.5617839436077494,-5.0776605849926577,-4.752997978476297,-5.432150150358142,-6.2626877082436012,-7.0299008307050208,-7.8559640007885223,-8.7629602907034734,-9.7807409686168683,-10.919194622807122,-12.236295526680701,-13.738680933470636,-15.46555448471948,-17.433697133795661,-19.704667925765644,-22.300818925445419,-25.307469170521266,-28.820313436735876,-33.009449388575199,-37.051031296920847,-40.745185285207477,-44.524962538430039,-48.802686047397003,-53.88067006347957,-61.238584981750712,-72.015099309199627,-87.919713156948205,4.0097311535574134,3.9895931306382733,3.9791364325222673,3.9494009934283874,3.9293465426127239,3.9093196143826172,3.8989733420775914,3.8693476640752977,3.8494023137642106,3.8294838295579545,3.8192453488764295,3.7897268141518832,3.7698879628017923,3.7500753372433535,3.7399420788747584,3.7105281340814247,3.6907932442090599,3.6710839555782875,3.9716951310999651]
["Boroondara (C)",null,10.91476085005948,{"$f":"$B70+$C70*D26","v":12.318309552984317},11.04352808257288,10.628747006774727,13.49095933006123,13.560573042139117,12.37535796384674,13.10619527879569,10.996419336504974,11.975775680317849,13.725559593844986,13.909140699147381,12.394056337190133,11.193003925698426,9.3680653589631309,8.3423624642427843,6.6952495797879248,5.8175642283161046,4.8067434118362726,4.1214723574243113,3.591156213482062,2.3676695780543646,1.1286038462311441,0.29579472936357154,-0.53815762886799023,-1.2009731015612428,-1.8395873906966385,-2.4239136353348418,-3.0405640653778532,-3.842454947719363,-4.4082436491895445,-5.2017079983620027,-5.9174344280371773,-6.5628427857429301,-7.2481291925206692,-4.8688978052888787,-4.5609722750207968,-5.2114577052453068,-6.005457947333614,-6.7380300653437892,-7.527699376526777,-8.3942182241237102,-9.3664495940662462,-10.453356061148218,-11.711562257619679,-13.146027058797021,-14.794486863634912,-16.672358563241414,-18.839542139807744,-21.315853898577949,-24.182904202679971,-27.53120238899562,-31.523862042816525,-35.372136935020961,-38.88834371974437,-42.486421999107201,-46.559930728555528,-51.394661734644885,-58.401011142511287,-68.658309407585648,-83.790272622423188,3.8307999518353291,3.8116343590883615,3.8021489456958331,3.7733836526022779,3.7542982157480367,3.7352391760836734,3.7258596735511644,3.6971996530900988,3.6782188546106243,3.6592638230080339,3.649987702144136,3.6214304408535791,3.602551782916982,3.5836982770756687,3.5745230710131857,3.5460661173617867,3.527287163675723,3.5085327624461242,3.7940538056100062]
["Cardinia (S)",null,14.237854384242391,15.129574679962907,12.675272436784558,12.405183159802107,15.390473682826249,15.452606469322228,14.688016279544744,15.560392324527385,13.904822693357906,14.468133302597254,15.548660719739653,15.608219755884447,14.579601986436639,13.749161731080191,12.517945832264896,11.800259888094153,10.688546769664491,10.058225535614095,9.3493594264729278,8.8534299492471504,8.4570540333114206,7.6109100660476958,6.7561941177290086,6.1643937056644447,5.5735149954925882,5.0933618181758789,4.629896075698694,4.2015013961033718,3.754615068218103,3.1875566082730242,2.8261704221066228,2.3154762988734587,1.8583659512904476,1.4454302198584941,1.0071055388218608,2.5194469288115049,2.7205061609750887,2.3071834628656416,1.8000864358850386,1.3306878957435029,0.82626349685989309,0.27184120592017702,-0.35045362853622064,-1.0471966919694147,-1.8524795541567212,-2.7718712933864085,-3.829031808268939,-5.0348933157816855,-6.4259024541146976,-8.0174067544628773,-9.8614609678481298,-12.017571749883119,-14.589070872835546,-17.074092596431843,-19.346860902084646,-21.671902904523474,-24.301704177778117,-27.424409228929019,-31.94821083685752,-38.578592660271802,-48.371098756901603,8.0583830774583429,8.0460793300754947,8.0392228590779826,8.0215208985267203,8.0092660188053095,7.9970272337584216,7.9902353364026526,7.9725975632080797,7.9604064869522659,7.9482311238587489,7.9415022693080015,7.9239271621190639,7.9117983774036613,7.8996849337047754,7.8930176287077076,7.8755037035217956,7.8634357355346189,7.8513827455506835,8.0370819323503753]
["Casey (C)",null,12.973375828119032,14.253225304951698,12.461480625200007,12.076205994343637,15.108106623133597,15.196715327543387,14.108525821491538,14.933130933162616,12.887391446319029,13.756924454389113,15.347126220545187,15.4917112724695,14.084629813008878,12.962024265373218,11.268525247172464,10.306116588482453,8.7807681772154922,7.9448180589956312,6.9941382789733408,6.3446345707982799,5.8374836321771726,4.6919059516677128,3.5333803028975974,2.7479820690999417,1.9630704608643299,1.3358917267549284,0.73185742607284998,0.17748004077470136,-0.40423499173874899,-1.1566465814331996,-1.6716848332737277,-2.3980014244272621,-3.0494541582494348,-3.6376809598050133,-4.2621153226251334,-2.1044678431231976,-1.8197246640037918,-2.4095821557328216,-3.1322609211788537,-3.8006394161638375,-4.5194730935924863,-5.3092033144461652,-6.195512463851145,-7.1874478949329044,-8.3343738012384918,-9.6433156905090947,-11.148154893000269,-12.864057796748419,-14.843644716921284,-17.10776527706054,-19.730620357082099,-22.796359349881953,-26.452544550151124,-29.983329508010669,-33.211728564874079,-36.514620115871864,-40.2513545475557,-44.687899492654857,-51.115573569030595,-60.533536358692309,-74.438864706031438,5.7926553550849391,5.7750732689633182,5.7655324052614585,5.7399815953253412,5.7224717172548702,5.7049856194847202,5.6955401666267136,5.6700841936161162,5.6526685821194436,5.6352761841154635,5.6259238677377272,5.6005604714209865,5.5832368803091601,5.5659359498364713,5.5566745515701053,5.5314015273567838,5.514167765730857,5.4969561254955854,5.7602356340388772]
["Frankston (C)",null,15.732943119929763,16.776290381547248,13.753455418549207,13.428421428483871,17.341496321076026,17.343844853065697,16.426768510114545,17.282243150585618,15.34436127039991,16.011486694334529,17.336441161150347,17.416933908875063,16.202156437912439,15.217303050202586,13.75320917198626,12.902260145684295,11.586902661298211,10.829399004178129,9.9873732373657056,9.4051350185455096,8.9404004392912473,7.9310007591226279,6.9129463868955305,6.2117160020918734,5.5134861902671002,4.9475081863680206,4.4026417409191918,3.8995742969865974,3.3771125215990754,2.708833876077847,2.2794936981466849,1.6673101638474614,1.1242746591532988,0.63270494769030661,0.11107718451789816,1.898212120639521,2.1433606177584612,1.6553028818164668,1.0528713741165614,0.49309895395739478,-0.10628861093138764,-0.76636287928379565,-1.507584832564834,-2.3389535284328371,-3.2980925464848396,-4.3949632820572031,-5.657065407790153,-7.0989008909078697,-8.7612581392697138,-10.666120777183597,-12.875249178229319,-15.461720326489999,-18.547143381163423,-21.537796873334241,-24.276002040216532,-27.076301172927941,-30.240285486918118,-33.999338815253004,-39.442945329066951,-47.431876904080283,-59.246175155175528,8.4585952432765872,8.443984786377932,8.4348228499815932,{"$f":"$B73+$C73*BO29","v":8.4148166624354896},8.4002587884402651,8.3857182361875022,8.3766257930704082,8.3566886899651855,8.3421994940848787,8.3277272161176938,8.3187026459377833,8.2988330168867179,8.284410898627435,8.2700053042826482,8.2610470261457429,8.241243299962326,8.2268866977842823,8.2125462351082845,8.4379463417920224]
["Glen Eira (C)",null,10.746799361943904,{"$f":"$B74+$C74*D30","v":12.11451288805209},10.89254596985843,10.490756075786255,13.216469660775537,13.293542713575592,12.144453885442877,12.882811010402083,10.831288046710316,11.78439271542055,13.474502496414637,13.651422822154553,12.178748911047251,11.012609588165526,9.2411862159676801,8.2454021043147367,6.6448980320587818,5.7957010049996223,4.8147912792792802,4.1483305232318974,3.6325907602031067,2.4461847573794522,1.2442268798671277,0.43575359999665186,-0.37434808324274294,-1.0183981140710983,-1.6392877158749068,-2.2074762054017896,-2.8077670188768327,-3.5872109471324927,-4.1368911280463552,-4.9062969724122709,-5.6016545893371266,-6.2284225926147379,-6.8939617732817995,-4.5798743283471151,-4.2824014731955264,-4.9151708245565633,-5.6865716346495514,-6.3977202875754386,-7.164878183513804,-8.0063516988479684,-8.9503906984659238,-10.005383267252833,-11.227116731482679,-12.619508714176305,-14.21938534905307,-16.041317274416116,-18.144175203033232,-20.546202273374881,-23.326708012409529,-26.572984745195356,-30.443813179592972,-34.172222607094511,-37.578092616400887,-41.063506102189301,-45.010380928817852,-49.694258513363422,-56.482557645723219,-66.417795815871145,-81.070469232863957,3.8776580095290201,3.8590385706406667,3.8500990196414309,3.8218792988105479,3.8033391454160554,3.7848251017292545,3.7759903090059326,3.7478747134926089,3.7294380563995184,3.7110268839152361,3.7022943411880909,3.6742803783325217,3.6559447404022527,3.6376339774050654,3.6290012382843546,3.6010864769256443,3.5828494421299291,3.5646366876285773,3.8407455202079834]
["Greater Dandenong (C)",null,13.5087872116555,14.309905449009456,12.20840094425207,11.97124366807228,14.351169469706297,14.463684881916906,13.792128807886085,14.693248672377955,13.206265680894541,13.706461988217203,14.63545507958076,14.681110211286985,13.764951586659356,13.027945787249678,11.93814489024987,11.300990650855997,10.312926285219582,9.7592930921962449,9.1307328911642696,8.6863177701020042,8.3307424473549201,7.5836157680991301,6.8279627165153443,6.3021484338977913,5.7759780756687231,5.3475513011526132,4.9331054852746092,4.5496110384977158,4.1481844433386064,3.6423269688068274,3.3225990484283865,2.8741375432201139,2.4697113234418655,2.1049867928340871,1.7177380618711913,3.0614619609161657,3.2354419109618218,2.8679393354153762,2.4193004999254915,2.0053170323140241,1.5591234781086512,1.069489885035908,0.52012832361395356,-9.4050144877204533E-2,-0.8049701899653795,-1.615506187843506,-2.5469623223106859,-3.6080807561655894,-4.8326444364867305,-6.2319296269779727,-7.8520366428894226,-9.7441466919209265,-12.00037829971758,-14.175219574771242,-16.162466957763584,-18.195963059314277,-20.498066952579727,-23.230395651127292,-27.189918959915659,-32.986850613019904,-41.539004543764563,7.9730188369671398,7.9621054603895409,7.9566387907776273,7.9403260643548217,7.9294598536576766,7.9186091746743337,7.9132048225554064,7.896954035895595,7.8861493895877288,7.8753599019613176,7.8700163704935466,7.853826036090962,7.8430814759436291,7.8323517106637608,7.8270675399968184,7.8109362071032722,7.8002502914128646,7.7895788157633294,7.9508996479039977]
["Kingston (C)",null,11.840714422022739,12.983596259273488,11.459381641954911,11.123689941956606,13.620179533988075,13.715443964433385,12.76355696891185,13.593560384382339,11.782421258921309,12.554966916509965,13.924562990290815,14.047322678621615,12.803513423163045,11.815560698222841,10.326777741386016,9.4801575929202393,8.1333833057305025,7.4079293491479659,6.5731294323409371,5.9978123295079655,5.5486406697469484,4.5456282034481665,3.5297643305630562,2.8390106655845839,2.1469116454940953,1.5932081865512213,1.0587192739706115,0.56790418227431672,5.0569770896104149E-2,-0.61459668936847967,-1.0690397321652565,-1.7048773973321594,-2.2797211676699218,-2.7978366646320127,-3.3479993398480681,-1.4351874456401275,-1.1896950818357395,-1.7129170598407737,-2.3506040795353247,-2.938411650550016,-3.5725851320229256,-4.2681304757947478,-5.0484253352172903,-5.9203575465552616,-6.9301438577791101,-8.0808956944220931,-9.4030726864698906,-10.908660145194418,-12.646409347362958,-14.631256361505644,-16.928753194641466,-19.610956451535387,-22.809141086634746,-25.889315089504301,-28.702921960532759,-31.582270587892715,-34.842952355644329,-38.712403482797988,-44.320390269211281,-52.527691918443331,-64.631331095830348,5.5525883857356977,5.5370918094648953,5.529635067250898,5.5061669975759386,5.4907384856355668,5.4753323869197539,5.4679655730555075,5.4445868859534094,5.4292472142156649,5.4139294167173411,5.4066503684491396,5.3833589146640453,5.3681059472855308,5.3528743284889275,5.3456809365443103,5.322474619963308,5.3073062739074199,5.2921587637695309,5.5200854735443805]
["Knox (C)",null,12.932964909899008,14.225385704580196,12.400786303710118,12.010894649607653,15.128470790172326,15.203636685800411,14.101550083279463,14.913711706790556,12.846995387388166,13.726310717243031,15.3408396129271,15.488538826215018,14.065682878597237,12.929968106076332,11.21613386869719,10.242538598464726,8.6994695188677902,7.8529704800968929,6.8912136703852056,6.2350376843089501,5.7226921728310183,4.563057617731892,3.3904685354513657,2.5960414140744859,1.8022944335153321,1.1681408169491125,0.55753753027267772,-2.7879090223416059E-3,-0.5905411853701551,-1.3513933425704963,-1.8727540981249016,-2.6085251202705084,-3.2679789858143606,-3.8635262086211291,-4.4957172043428866,-2.3123853042528579,-2.0235024494529297,-2.6203169782833271,-3.3518766592700664,-4.0286729951183231,-4.7563532638350763,-5.5559284358523611,-6.4533224222618379,-7.45780888417426,-8.6190818544343077,-9.9445770207950339,-11.468534293713862,-13.206453424978537,-15.211360189371483,-17.504723927893746,-20.161651889202798,-23.2675607446192,-26.971719640930694,-30.549704082136692,-33.82154913680413,-37.168803919433785,-40.955404598063858,-45.451356754806405,-51.964909096067075,-61.509722958208634,-75.60384012788019,5.6806529965092416,5.6628735849425391,5.6531353630781052,{"$f":"$B77+$C77*BO33","v":5.6273871627774508},5.6096798626518218,5.5919963116430749,5.5823533748660887,5.5566998877550855,5.5390867324714659,5.5214967614848387,5.5119468434155845,5.4863858171812971,5.4688645684047827,5.4513659529952188,5.4419068429908446,5.4164360807055605,5.3990045551370471,5.3815951255480794,5.6485978425417125]
["Manningham (C)",null,12.804108761950111,{"$f":"$B78+$C78*D34","v":14.093869047405718},12.267246981520278,11.878203373988763,15.019032616041384,15.08614941002002,13.984580705923692,14.783326606286751,12.719544122625758,13.597831492989769,15.213807149565326,15.362287832728393,13.94090796632628,12.806176602622829,11.093474272404745,10.120793065052688,8.5786821853110755,7.7332306982724832,6.7725763328377822,6.117577476116125,5.6060829500182034,4.4472674682138651,3.2755051844700134,2.4819322137513642,1.6890448492139445,1.0555093089207923,0.44551910482870677,-0.114197554010526,-0.70134686675397651,-1.4616123121002218,-1.9829657596735699,-2.7187429092669197,-3.3781970366829506,-3.9737419059099621,-4.6059326320384857,-2.4224599547879233,-2.1335272495435942,-2.7303388770700283,-3.4619039956530897,-4.1387040596337874,-4.8663900990872682,-5.6659754803144935,-6.5633851293789611,-7.5678936583212009,-8.7291964866909115,-10.054731027111792,-11.578738697738039,-13.316720651928147,-15.321704369498033,-17.615161798306588,-20.272204000398382,-23.378252979564849,-27.082585065246107,-30.660739654829381,-33.932739275591103,-37.280152699671191,-41.066935395252088,-45.563109938767091,-52.07699629413937,-61.622316834367624,-75.717201586390942,5.5717503420544698,5.5539967216465502,5.5442840876007846,5.5185612731765366,5.5008791583736807,5.4832205935135327,5.4736024450813279,5.4479735498725939,5.4303847914010497,5.4128190234796918,5.4032931160634154,5.3777559093955141,5.360258290415735,5.3427831163414981,5.3333472605106378,5.3078995665280617,5.2904909246739287,5.2731041954850069,5.5401459344673096]
["Maroondah (C)",null,12.859437103701968,14.149637445400536,12.326506971135107,11.937412495252866,15.058404460933986,15.128403109885344,14.028307296760424,14.837309651998904,12.775182373493426,13.653204264995871,15.26495074681686,15.412612628957302,13.992415514809414,12.858900519947612,11.148273826484905,10.176601707967158,8.636349296576654,7.791710759664694,6.83189566438302,6.1770775780718932,5.6658245929059037,4.5084769358644987,3.3381760289000373,2.5453586221612152,1.7531950719079781,1.1203241991915081,0.51094653612114338,-4.8239418149689239E-2,-0.63484301333909843,-1.3942241911988007,-1.9147223425320674,-2.6492087347611251,-3.3075739336150023,-3.9021243240209631,-4.5332597839985445,-2.3533795683068761,-2.0650447186293208,-2.6609117418961463,-3.3912647060908312,-4.0669168230601418,-4.793395171423346,-5.5916339499438799,-6.4875245166212334,-7.4903100305333021,-8.6496400687097008,-9.9728950348982597,-11.494266510095803,-13.229209315266683,-15.230694577407633,-17.520108112405087,-20.172435009400132,-23.272921137365572,-26.970605595702136,-30.542220023312488,-33.808201029879292,-37.149468217192499,-40.929339688376608,-45.417276796576637,-51.919246437145034,-61.446955422429809,-75.515619916843534,5.6269631104555318,5.6092181658151681,5.5995143434833246,5.5738004757737016,5.5561274417467805,5.5384780907907185,5.5288692884637776,5.5032498706406665,5.4856707199203898,5.468114689207308,5.4585986475537025,5.4330714343062496,5.4155839355140323,5.3981190075097167,5.3886935227522601,5.3632563239735331,5.3458583005864515,5.328482312266309,5.5949899407909447]
["Melbourne (C)",null,8.6936338387917083,9.1873220029117046,8.0758418970152839,7.9485322582880258,9.0764578663007995,9.1589096437222359,8.7679238161907609,9.4535156879069859,8.5260241827580412,8.8289725693692152,9.3410679505887639,9.3621891626130278,8.8024310460521349,8.3583001933381755,7.7041781090923136,7.320987966626598,6.7137989712184227,6.4049562406328588,6.032630054471535,5.7613240348689478,5.5423038878869022,5.1016445459686519,4.6526968567944316,4.3371676043833363,4.0176102912009917,3.7539438479084053,3.4962380790080467,3.257337088141953,3.002048164356915,2.6881218764075334,2.4904633016716362,2.2240920133975806,1.97389474868532,1.7503456860601854,1.5126263326785878,2.3649291334127787,2.4604160904666048,2.227097751256482,1.949510426455705,1.697696545689475,1.4218837550642385,1.1217594959738477,0.78566506058225327,0.41284905798228788,-2.2291313677508917E-2,-0.51476872279251962,-1.0790146270548258,-1.7173817714337218,-2.4558818689709732,-3.2939134030111625,-4.2602048422132714,-5.3816482169558792,-6.7176478411669311,-7.9871018473811981,-9.140908501903839,-10.323389607244467,-11.66901138020785,-13.261997934845061,-15.574830578824649,-18.939776917503067,-23.87282886048742,5.4582146607329305,5.4517765134555072,5.4507802319022671,5.4389330804050839,5.4325276594374108,5.4261330127537972,5.4251799631018605,5.4133757765049442,5.4070130551172237,5.4006608443633031,5.399749968650239,5.3879876956502812,5.3816666291560358,5.3753558162201287,5.3744860828673131,5.3627646983772452,5.3564842681397389,5.3502138407944857,5.4407795097497029]
["Monash (C)",null,12.520401889774147,13.755845145245035,12.044728974555397,11.675417989207396,14.562668171370808,14.647255786590746,13.601226178525275,14.415367587665251,12.443792277988159,13.282627517216314,14.806697421394629,14.945285528987032,13.589453939338926,12.508880465902394,10.878973887610412,9.9527650714577671,8.4828527004286709,7.6816123143420514,6.7673406916442573,6.1415707815550942,5.6528888046262482,4.5516083190356653,3.4374170737845491,2.6817005529679458,1.9259161476393771,1.3217234738410983,0.73946942292991125,0.20503945936260626,-0.35648224745826662,-1.0817268370217383,-1.5782350531337443,-2.2768988086357149,-2.9049332167795097,-3.4717255525282167,-4.0734555750037362,-1.9905224195132041,-1.7177319836155203,-2.2872170051393121,-2.9839196499533731,-3.6276718493480025,-4.3206310567234292,-5.0815792865135254,-5.935495323958575,-6.8907672541410818,-7.995798403447016,-9.2564193703377047,-10.705466892274076,-12.357136223085911,-14.262866519856335,-16.441702089226791,-18.965203444613039,-21.91382823916453,-25.430166496924382,-28.823360642000484,-31.925103990390348,-35.098668565102891,-38.690045814866558,-42.95344033538133,-49.13085135669607,-58.179193102389341,-71.534469015313164,5.6297011526637366,5.6127803820640194,5.6039002253617953,{"$f":"$B81+$C81*BO37","v":5.5790095173417695},5.5621591395218806,5.5453319437342801,5.5365447979678413,5.5117465405145758,5.4949880563775686,5.478252200852106,5.4695558453683306,5.4448478316377837,5.4281790480614927,5.4115323533112321,5.4029246221723017,5.3783046996902222,5.3617234775789475,5.3451638178022671,5.5976723403438742]
["Nillumbik (S)",null,11.531509886319634,{"$f":"$B82+$C82*D38","v":13.05435113093866},11.598729818461459,11.139449853492724,14.54122915793257,14.617721628278442,13.291604279840058,13.925928514766118,11.582677364591243,12.652940654447983,14.651780160596319,14.864391005462284,13.187035907511216,11.849324562838268,9.8141412179999215,8.6713171495212915,6.8402229169415474,5.8524958846750135,4.7264396598622227,3.9714273133396136,3.3853918872017403,2.0151618596712191,0.62934106016057201,-0.29843683538924359,-1.2253250356798753,-1.9628239219221189,-2.6719471820773064,-3.3203990953189044,-4.0020908341855357,-4.8937086330446391,-5.5244708679420516,-6.4150929044965412,-7.2130421008103118,-7.9336776481342079,-8.6986734773227443,-6.055501437862489,-5.705034724201651,-6.4270115248694664,-7.3122730675275962,-8.1313474178231591,-9.0119245423427579,-9.979610254915336,-11.065749533802235,-12.281630561854389,-13.687267496257412,-15.291834341028519,-17.136752369627875,-19.240864216301219,-21.668236483735079,-24.44505387155764,-27.66224084650862,-31.42332965853555,-35.908973988742233,-40.242277195074585,-44.204940088630707,-48.258899901538101,-52.844840373627704,-58.290048438934271,-66.178898580495812,-77.739745366034057,-94.811746538305385,3.6299830115739278,3.6087993773765796,3.5972958897332084,3.5665124918837243,3.5454089220431082,3.5243317234159748,3.5129340381779124,3.4822558134818311,3.4612567914310604,3.4402835190940708,3.4289891424860022,3.3984136125751263,3.3775166752561194,3.3566448813649417,3.3454513806604975,3.3149761278312546,3.2941788724686814,3.2734061690822607,3.5972024450349585]
["Port Phillip (C)",null,7.8975660647114649,8.8802653046246895,8.1671538183690497,7.9037154013423843,9.472682977910198,9.5541588201671068,8.770427166424474,9.4642707770483607,8.0187318169502202,8.6984510743139172,9.8082648799970293,9.9260319576308742,8.8903909742147409,8.0814110795892695,6.8540376168363979,6.1649375925374921,5.0378604374619753,4.4825119855911479,3.8102078899641736,3.3425531520622238,2.9800107078481282,2.1706678662291239,1.3461305371528196,0.78813033863218507,0.22373070009908014,-0.22781659177943669,-0.66661969726579906,-1.0685719305229995,-1.5004621995279934,-2.0510378654057275,-2.4401612846658871,-2.9699506903987087,-3.4623883961948043,-3.9034285886322153,-4.3722347711370091,-2.7056569851995356,-2.5117934018443986,-2.9680371978070101,-3.5143502026964364,-4.0121085345992569,-4.5550589908203287,-5.1471278346853069,-5.8104674441304791,-6.5477526026501227,-7.4064436375360279,-8.3801029330662047,-9.4965040466105997,-10.761801641882446,-12.224630362529206,-13.887588235598402,-15.807103027092456,-18.038473962422803,-20.697391400781669,-23.233441500234445,-25.541716985264724,-27.906386144249698,-30.59359653336859,-33.776949547431983,-38.396455684575301,-45.128528610899238,-55.014394416646745,3.3516568993171796,3.3387499298240324,3.3355178046386058,3.3130004940467992,3.300157763156458,3.2873361819128668,3.2841889190810076,3.2617559482528105,3.248997037821161,3.2362587609955296,3.233194289784374,3.2108436010025043,3.198166466245238,3.1855094619041502,3.182525763149608,3.1602553499382617,3.1476579969873342,3.1350802837904928,3.3178314324468383]
["South Gippsland (S)",null,12.007316207517055,12.702839043696391,10.964138783608476,10.76504204751056,12.628824037376056,12.740566608166203,12.171149922283039,13.039858761114557,11.752160203144641,12.182833530077781,12.953699543191384,12.988215828140774,12.199597391060802,11.568135806442081,10.636202105736317,10.090418762427047,9.2404890147529368,8.7744328782215053,8.2375121639153299,7.8537934489178713,7.5463851701892928,6.9103079705055057,6.2657677690947713,5.8153524125885241,5.3632062820540609,4.9940621537542,4.6359488884521216,4.304310024469495,3.9553227859263114,3.5188773308018519,3.244248228497717,2.8631053949030996,2.5156844721526364,2.2031335730333113,1.8711516414141114,3.0328685006104266,3.17770452277508,2.8597899432028613,2.4743876621175134,2.1203533362953091,1.7371492288169379,1.3175869104168312,0.8470921464412936,0.32218171783319838,-0.28672874678243454,-0.97960328960478338,-1.775201873088061,-2.6799013553058724,-3.7246078418902946,-4.9162005462876017,-6.2943488765205542,-7.9012423955881674,-9.8168891077904288,-11.656640328457637,-13.335431115789635,-15.053964236493027,-17.002061573787369,-19.312689946672897,-22.662696260886939,-27.559400943254033,-34.771866809098427,7.2692557448515496,7.2599271504338914,7.2560439822106009,7.2413134833890949,7.2320282334487498,7.2227572552795882,7.2189313508934463,7.2042577657058064,7.1950290813901185,7.1858143230165759,7.1820442947633616,7.1674262441985874,7.1582527551346811,7.1490928547672636,7.1453773493864867,7.1308134886590349,7.1216938584826179,7.1125874881249302,7.2476516897080732]
["Stonnington (C)",null,8.6381644291483202,9.7581102884144002,8.8456786881506613,8.5321991654692937,10.626069900233826,10.694373996238362,9.7677693655542992,10.420736057386197,8.7416281836084728,9.5222930824729062,10.871274695678551,11.015680696796055,9.8126447628876825,8.8651305469841741,7.4254365987339721,6.6175690254277697,5.3053402659430766,4.6372113143067297,3.8465794733676231,3.3049760232457133,2.8846877190502043,1.927898560874703,0.95582961185938409,0.30123655945435934,-0.35780494837956145,-0.88422664425389386,-1.3937615996154555,-1.8601261298765199,-2.357315288514457,-2.9974662297647305,-3.4507661683335624,-4.0764269488383418,-4.6500263899582288,-5.1653376277453003,-5.7128279194616134,-3.7864945159335952,-3.5509160288332322,-4.0777469722352784,-4.7141160746413799,-5.2972424512994634,-5.929898572207799,-6.6217754094016303,-7.3974697004894105,-8.2619465759225061,-9.2660044922294187,-10.407357046166533,-11.717406794771369,-13.205682199799709,-14.924921344672565,-16.88399407963081,-19.148501030673103,-21.786566847640504,-24.931155992708195,-27.945041039790464,-30.693163173660452,-33.506960424005221,-36.698990479559377,-40.48372056612687,-45.972501123274043,-53.98850994993731,-65.785147569334455,3.2373089019085364,3.2222615037125166,3.2168899083999771,{"$f":"$B85+$C85*BO41","v":3.1922340821417312},3.1772537859510175,3.1622955856988781,3.1570126460963044,3.1324449367013742,3.11755222189315,3.1026810708871904,3.09748465171785,3.0730029372455294,3.0581956951307205,3.0434094978496513,3.0382975166767103,3.0138997276918271,2.9991759017546613,2.9844726145203655,3.2047815566952238]
["Whitehorse (C)",null,12.527503300490123,{"$f":"$B86+$C86*D42","v":13.768135042927339},12.045304349518151,11.674128087120938,14.587781771093793,14.668348525619187,13.617302036319456,14.430354658259397,12.450934380257833,13.293571204526362,14.82580390066445,14.965324011499039,13.60360587730543,12.518224091082592,10.880935102543845,9.9506108430116491,8.4742820022500318,7.6691092975433532,6.7507038943049613,6.1223199387288139,5.6316372168329689,4.5252622838134657,3.4059716625608836,2.6469099801929405,1.8878462033404437,1.2810965035984636,0.6964286650317062,0.15980323554136389,-0.40394443191581886,-1.1322513024649581,-1.6309740469532481,-2.3329448926546723,-2.9637793223804061,-3.5331341416710287,-4.1375787665023536,-2.0456936976806768,-1.7714675231960775,-2.3433880153482587,-3.0431972479602409,-3.6898944253013926,-4.3859481288543858,-5.1503390909625963,-6.0081303575136653,-6.9677889651950728,-8.0778333105773683,-9.3442370904687344,-10.799962139241595,-12.459320010465889,-14.373891312776918,-16.562936551699575,-19.098332442492392,-22.060978749357748,-25.594060959813845,-29.00372890742992,-32.120636540774846,-35.309685339626661,-38.918466577518473,-43.202593554813603,-49.409971838639116,-58.50257482577387,-71.923719920482071,5.6077899455042086,5.5907933049644924,5.5818373169059043,5.5568708159584945,5.5399446834862669,5.5230417711681605,5.514178946840544,5.4893050486436437,5.4724709614294591,5.4556595403428991,5.4468876566644244,5.4221041519565905,5.4053599144721352,5.3886378027352277,5.3799546913842482,5.3552594253184802,5.3386028961063152,5.3219679655666576,5.5757691660979507]
["Yarra Ranges (S)",null,12.891772419064544,14.191950794241297,12.345538396733367,11.952753070292657,15.131025335740105,15.197191794846994,14.085753814008141,14.886264877480908,12.805524237803208,13.691089936257475,15.322613361101602,15.472574522732705,14.039271369161233,12.894777936759908,11.167266159614391,10.186187537194805,8.6311767237226995,7.7776744879378858,6.8085709892419208,6.1480879872270249,5.6323439558752986,4.4632344694077002,3.2811689950683607,2.4807212336401423,1.681088392437442,1.0422463321497655,0.427231440013144,-0.13708134316989473,-0.72888467922848232,-1.4954363792980168,-2.021124944244002,-2.7633720414210727,-3.4283052152488893,-4.0288649020929039,-4.6663676202188551,-2.4654100988539791,-2.1736793389297593,-2.7752573159628517,-3.5129001008002683,-4.1954619715612216,-4.9292019136033751,-5.7355215952320444,-6.6405105911554863,-7.6535977880075245,-8.8247034568523262,-10.161544629800572,-11.698607169077407,-13.451619482139126,-15.473885450386415,-17.787299482069763,-20.46759050878244,-23.601044434710868,-27.338101145499618,-30.948452416001537,-34.250089814886131,-37.62776612830995,-41.448562936609584,-45.985255473157935,-52.557704884468784,-62.189519339296588,-76.413120592658686,5.5936196760653925,5.5757120237238986,5.5658454903826415,5.5399689085736776,5.5221331575738768,5.5043210869858283,5.4945495625802829,5.4687674204425178,5.4510255433801866,5.433306784504401,5.4236280130723138,5.3979380686335938,5.3802878374384626,5.3626601760188812,5.3530719570312701,5.3274720234031436,5.3099112647412587,5.2923725409129592,5.5619353541026646]
["Weighted Average NPV",null,11.84698055120737,13.066654494309555,11.494387587700237,11.133313004920147,13.888732831274497,13.968433093794298,12.939888178882464,13.728347930458739,11.803316249161746,12.635158676995914,14.133498490349126,14.273690923739073,12.940528192771543,11.880069042647927,10.278569264188814,9.3703688460245402,7.9238487372671385,7.1432757757056393,6.2478484261350626,5.6349482574068936,5.1569021359425911,4.0776158534760976,2.9849942191233025,2.2447789151765751,1.503764895124768,0.91158219866207524,0.34054466207955114,-0.18334304916909072,-0.73499846426890747,-1.4472702589346755,-1.9376380660954298,-2.6256351317116216,-3.2459370785577435,-3.8053611622377157,-4.3993370851062217,-2.3381074767380343,-2.0709347643927196,-2.634520688043632,-3.3226533296399725,-3.9576784358823258,-4.6420649454084426,-5.3931258351738629,-6.2358277610364574,-7.1780083863233033,-8.2685674809528962,-9.5120015697788585,-10.940976901761493,-12.568943954137932,-14.447662771286378,-16.594529499254111,-19.080263083564475,-21.983441010423846,-25.445349525014549,-28.782607698060428,-31.832077140215347,-34.952495863099728,-38.485020579176172,-42.677787598871518,-48.753677859379096,-57.649390640085457,-70.773593462838264,5.1986855596317794,5.1820352458679766,5.1737132259426959,5.1488049812605849,5.1322247475946368,5.1156675926051012,5.1074381693192485,5.0826219626405589,5.0661332118187454,5.0496669879688092,5.0415279475509598,5.0168015788799103,5.0004021245950714,4.9840246591797372,4.9759738424411148,4.9513351660197937,4.9350228758600423,4.9187320497291473,5.1664137700500463]
[]
["LGA S curves",2020,{"$f":"B112+1","v":2021},{"$f":"C112+1","v":2022},{"$f":"D112+1","v":2023},{"$f":"E112+1","v":2024},{"$f":"F112+1","v":2025},{"$f":"G112+1","v":2026},{"$f":"H112+1","v":2027},{"$f":"I112+1","v":2028},{"$f":"J112+1","v":2029},{"$f":"K112+1","v":2030},{"$f":"L112+1","v":2031},{"$f":"M112+1","v":2032},{"$f":"N112+1","v":2033},{"$f":"O112+1","v":2034},{"$f":"P112+1","v":2035},{"$f":"Q112+1","v":2036},{"$f":"R112+1","v":2037},{"$f":"S112+1","v":2038},{"$f":"T112+1","v":2039},{"$f":"U112+1","v":2040},{"$f":"V112+1","v":2041},{"$f":"W112+1","v":2042},{"$f":"X112+1","v":2043},{"$f":"Y112+1","v":2044},{"$f":"Z112+1","v":2045},{"$f":"AA112+1","v":2046},{"$f":"AB112+1","v":2047},{"$f":"AC112+1","v":2048},{"$f":"AD112+1","v":2049},{"$f":"AE112+1","v":2050},{"$f":"AF112+1","v":2051},{"$f":"AG112+1","v":2052},{"$f":"AH112+1","v":2053},{"$f":"AI112+1","v":2054},{"$f":"AJ112+1","v":2055},{"$f":"AK112+1","v":2056},{"$f":"AL112+1","v":2057},{"$f":"AM112+1","v":2058},{"$f":"AN112+1","v":2059},{"$f":"AO112+1","v":2060},{"$f":"AP112+1","v":2061},{"$f":"AQ112+1","v":2062},{"$f":"AR112+1","v":2063},{"$f":"AS112+1","v":2064},{"$f":"AT112+1","v":2065},{"$f":"AU112+1","v":2066},{"$f":"AV112+1","v":2067},{"$f":"AW112+1","v":2068},{"$f":"AX112+1","v":2069},{"$f":"AY112+1","v":2070},{"$f":"AZ112+1","v":2071},{"$f":"BA112+1","v":2072},{"$f":"BB112+1","v":2073},{"$f":"BC112+1","v":2074},{"$f":"BD112+1","v":2075},{"$f":"BE112+1","v":2076},{"$f":"BF112+1","v":2077},{"$f":"BG112+1","v":2078},{"$f":"BH112+1","v":2079},{"$f":"BI112+1","v":2080},{"$f":"BJ112+1","v":2081},{"$f":"BK112+1","v":2082},{"$f":"BL112+1","v":2083},{"$f":"BM112+1","v":2084},{"$f":"BN112+1","v":2085},{"$f":"BO112+1","v":2086},{"$f":"BP112+1","v":2087},{"$f":"BQ112+1","v":2088},{"$f":"BR112+1","v":2089},{"$f":"BS112+1","v":2090},{"$f":"BT112+1","v":2091},{"$f":"BU112+1","v":2092},{"$f":"BV112+1","v":2093},{"$f":"BW112+1","v":2094},{"$f":"BX112+1","v":2095},{"$f":"BY112+1","v":2096},{"$f":"BZ112+1","v":2097},{"$f":"CA112+1","v":2098},{"$f":"CB112+1","v":2099},{"$f":"CC112+1","v":2100}]
["Bass Coast (S)",null,{"$f":"1-EXP(C90)/(1+EXP(C90))","v":2.8514601366103065E-5},{"$f":"1-EXP(D90)/(1+EXP(D90))","v":1.5768457873988062E-5},6.4523204410416035E-5,7.5899315031935366E-5,1.7782675763133859E-5,1.5910304071997672E-5,2.5648926387900062E-5,1.1688213502947242E-5,3.5311661085946078E-5,2.4522450605468649E-5,1.2979762139098128E-5,1.2636995246451121E-5,2.4735491641059149E-5,4.2263350217952578E-5,9.3074592240505183E-5,1.4783555976149998E-4,3.0536128456393197E-4,4.4908104861884901E-4,7.0618154073320838E-4,9.7875498089194934E-4,1.2723544904365003E-3,2.1728099727116312E-3,3.7392227055250693E-3,5.4672870135208385E-3,8.0107044777300018E-3,1.0949124606645655E-2,1.482568254317429E-2,1.9609258499261317E-2,2.6324120437909992E-2,3.7809159375878143E-2,4.734696551853157E-2,6.4173792677652441E-2,8.4510344234617785E-2,0.1075551250332375,0.13792619081177981,5.5483143558534675E-2,4.9550738205981326E-2,6.4183311965018475E-2,8.7072637014044996E-2,0.11419078595026966,0.1517619658175543,0.20376519306490437,0.27651891235689341,0.37393243502627083,0.50095980658175088,0.64411738447666744,0.78065110564977014,0.88459608221991581,0.94898841533008049,0.98078072468180921,0.99392807043643627,0.99842872596881926,0.99968754258626824,0.99993335705710329,0.99998369285356703,0.99999614338000953,0.99999924971722154,0.99999989220058827,0.99999999353976254,0.99999999989357569,0.99999999999974543,1.530735954789364E-3,1.5427816374961045E-3,1.5464934714659595E-3,1.5670976166041184E-3,{"$f":"1-EXP(BP90)/(1+EXP(BP90))","v":1.5793687080346563E-3},1.5917157345803901E-3,1.5954646734709366E-3,1.6166392085654735E-3,1.6292164696413147E-3,1.6418712931329793E-3,1.6456572246906775E-3,1.6674152807295561E-3,1.6803052775185012E-3,1.6932745021189799E-3,1.6970973258507716E-3,1.7194523268294626E-3,1.7326617791181276E-3,1.7459521636044029E-3,1.5611212052180079E-3]
["Bayside (C)",null,{"$f":"1-EXP(C91)/(1+EXP(C91))","v":1.0199532518129217E-5},2.342006628408555E-6,9.1176172184459503E-6,1.4141532393874279E-5,6.8166148514681169E-7,6.346277779956111E-7,2.2052587093090992E-6,1.0353062759316245E-6,9.4443404756727745E-6,3.3837537367631398E-6,5.3642291764077754E-7,4.4258532561070041E-7,2.1667131476776902E-6,7.641299493266196E-6,5.1853397125545264E-5,1.5217092169284019E-4,8.5368953673725656E-4,2.1540761758210847E-3,6.2076782820972287E-3,1.2661122037504247E-2,2.18766482762901E-2,7.4848855968966954E-2,0.22915280985787567,0.41616592081654391,0.63097869766216541,0.77401413262477026,0.86988223644145846,0.92496841732448343,0.95916220508283323,0.98194448931766665,0.98992880691401119,0.99559374024161262,0.99791101586539677,0.99893589272592453,0.99948032334408399,0.99380415088074481,0.99144797160766329,0.99564536417837279,0.99809751054268248,0.99911576302399618,0.99961271564223408,0.99984360359238689,0.99994347330180022,0.99998189301404794,0.9999951488772153,0.99999892014308678,0.99999980795856425,0.99999997316871181,0.99999999723069077,0.99999999979352028,0.99999999998978817,0.99999999999969558,0.99999999999999534,0.99999999999999989,1,1,1,1,1,1,1,1.7815135240258795E-2,1.8170948466281756E-2,1.8358446933815609E-2,1.8902067180901039E-2,1.9277582989291497E-2,1.9659878985416546E-2,1.9860280654924289E-2,2.044524771573264E-2,2.084854212048215E-2,2.1259060073869906E-2,2.1473140756065323E-2,2.2102225944325204E-2,2.2535107198738857E-2,2.2975678694111545E-2,2.3204250938821613E-2,2.3880375454562563E-2,2.4344746005200424E-2,2.4817297382880632E-2,1.8493031445365737E-2]
["Boroondara (C)",null,1.8187444989492541E-5,{"$f":"1-EXP(D92)/(1+EXP(D92))","v":4.4691424109233324E-6},1.5990047304459409E-5,2.4209360152349646E-5,1.3834077571273085E-6,1.2903793248364437E-6,4.2213220998732481E-6,2.0325948877353284E-6,1.6761330209114078E-5,6.2948295040943236E-6,1.0941194341640426E-6,9.106186713569997E-7,4.1431239378164619E-6,1.377000756552782E-5,8.5401169423571233E-5,2.381521876378967E-4,1.2352454437422056E-3,2.9660189251394797E-3,8.1081575491104285E-3,1.5961705638704582E-2,2.6826916729874695E-2,8.5671509646505384E-2,0.24441884816065251,0.42658581695372011,0.6313837312710161,0.76869784762130933,0.86289990154188378,0.91863275522460008,0.95437339763452078,0.97900916207217992,0.98796993874622829,0.99452301241336361,0.99731512983783899,0.99859012418982773,0.99928900164638435,0.99237673312787156,0.98965622018015498,0.99457586373226681,0.99754080243095655,0.99881642332327381,0.99946231475010916,0.99977387991941447,0.99991446074263934,0.9999711495484076,0.99999180159107504,0.999998046775599,0.99999962430464173,0.99999994255044744,0.99999999342204637,0.99999999944710549,0.99999999996855882,0.999999999998895,0.99999999999997957,0.99999999999999956,1,1,1,1,1,1,1,2.1231692617343145E-2,2.1633647014958513E-2,2.1835325391366456E-2,2.2458235057396303E-2,2.2881075086761626E-2,2.3311085417841548E-2,2.3525592428743525E-2,2.4193043266939163E-2,2.4645207025478566E-2,2.5104973576992817E-2,2.5333006874479147E-2,2.6047761285223681E-2,2.6531008701387915E-2,2.7022311437031266E-2,2.7264596666193075E-2,2.8029549307507784E-2,2.8545720841885669E-2,2.9070420499375249E-2,2.2008896710463355E-2]
["Cardinia (S)",null,6.5550818983961534E-7,2.6872562786106613E-7,3.1275032222888299E-6,4.0972798440730429E-6,2.070151433608558E-7,1.9454415844943895E-7,4.1790291283039238E-7,1.7466560853218738E-7,9.1455922601735296E-7,5.2067810685230143E-7,1.7672678287450339E-7,1.6650842593612936E-7,4.6575669532256114E-7,1.0685982664293547E-6,3.6603583971617226E-6,7.502551534588342E-6,2.2804114584773494E-5,4.2830145607686276E-5,8.7013572665162187E-5,1.4287037178550843E-4,2.123517611495318E-4,4.9477622678162358E-4,1.1622969636474467E-3,2.0985797124273287E-3,3.7827466176267865E-3,6.0999151737802793E-3,9.6615173423726386E-3,1.4752193645884093E-2,2.2873992118520814E-2,3.9636684215946349E-2,5.5926250395853638E-2,8.9849305633192933E-2,0.13489362734439481,0.19070585610510826,0.26754668338852994,7.4506073171031528E-2,6.1774123636705869E-2,9.0529774561022847E-2,0.14184054344294339,0.20904560195627975,0.30443571327666097,0.43245513762424648,0.58672757833166544,0.74023622386042343,0.86441796828350337,0.94113673876983583,0.97873153263275647,0.99353517366599076,0.99838354567439214,0.99967043480855067,0.99994785660886787,0.99999396284562536,0.99999953863268576,0.99999996155713156,0.99999999603936274,0.99999999961273156,0.99999999997208078,0.99999999999877054,0.99999999999998668,1,1,3.1633794632068835E-4,3.2025287680048642E-4,3.2245551584919596E-4,3.2821254219450591E-4,3.3225814959636502E-4,3.3634819547401218E-4,3.3863963710023537E-4,3.4466339426231229E-4,3.4888945378097613E-4,3.531617650736063E-4,3.5554530456693989E-4,3.6184700463470776E-4,3.6626087495328363E-4,3.7072288123196628E-4,3.732019364240946E-4,3.7979323608372528E-4,3.8440256352156865E-4,3.8906198473820375E-4,3.2314638568320397E-4]
["Casey (C)",null,2.3213116876474871E-6,6.4550947354025112E-7,3.8729870612819184E-6,5.6933502458056395E-6,2.7455701356871032E-7,2.5127557823356739E-7,7.4601019728337548E-7,3.2705703567614819E-7,2.529740129597613E-6,1.0603351562332719E-6,2.161860545024652E-7,1.8708337579109724E-7,7.6405154936232123E-7,2.3478122680442581E-6,1.2768389450523721E-5,3.3426885859944022E-5,1.5363639396925866E-4,3.5436876054684152E-4,9.164022964662788E-4,1.7530657353866941E-3,2.9076922316846332E-3,9.0858832308396975E-3,2.8377237348042761E-2,6.0200716552895051E-2,0.12313513726855319,0.20818647444109717,0.32478726046798656,0.45574609229576502,0.59970473578763861,0.76072284732004125,0.8418003239119477,0.91667477511300843,0.95475895511997866,0.97436134269624919,0.98610337685844363,0.89133667168399255,0.86053308562272268,0.91755507840512096,0.95820403457903791,0.97813240997316442,0.98922265395076703,0.99507847574868602,0.99796558902071852,0.99924455503551923,0.99975993813378006,0.99993514655629923,0.99998559837189216,0.99999741053789737,0.99999964232642735,0.99999996283005432,0.99999999730163647,0.99999999987420396,0.9999999999967506,0.99999999999990485,0.99999999999999623,0.99999999999999989,1,1,1,1,1,3.0405994771417477E-3,3.094365407544708E-3,3.123936943081107E-3,3.2045254462703676E-3,3.2609458372352407E-3,3.3182776366375011E-3,3.3496632768000856E-3,3.4357300630052379E-3,3.4958784662642017E-3,3.5569938354430564E-3,3.5902960154141628E-3,3.6821831680688977E-3,3.7462864798035733E-3,3.8114154591518679E-3,3.8467420436674171E-3,3.9448113730050638E-3,4.0131093096887893E-3,4.082494923690505E-3,3.1404755194879286E-3]
["Frankston (C)",null,1.4698382844180458E-7,5.1778520582246301E-8,1.0640198804257039E-6,1.4726855764868318E-6,2.9422788316857407E-8,2.9353768971063232E-8,7.3442093628806049E-8,3.1218867935223216E-8,2.1678462513996521E-7,1.1124990106914368E-7,2.9571901816183299E-8,2.7284858150622426E-8,9.1937528368113419E-8,2.461552761623409E-7,1.064281923701671E-6,2.4924045316510046E-6,9.2868424658165694E-6,1.9808115856778663E-5,4.5974704581563941E-5,8.2293591940008071E-5,1.309714209448698E-4,3.5929739248563575E-4,9.9383365467831108E-4,2.0017774146959821E-3,4.0158344908720611E-3,7.0510116648806465E-3,1.2096824157940556E-2,1.9848585931639073E-2,3.301846270430997E-2,6.2454097284849408E-2,9.2835583621116879E-2,0.15878313341286399,0.24521923931120104,0.34689745238776415,0.47225922047759261,0.13031096086727179,0.10495328014235339,0.16039353729767003,0.25867409949020237,0.37916380550323325,0.52654716489919617,0.68273358683662355,0.81870300331110002,0.91205218073383798,0.96436331585591195,0.98781106988038803,0.99651940517811977,0.99917466943105138,0.99984333719706442,0.99997667871508522,0.99999743935592389,0.9999998072208337,0.99999999118792937,0.99999999955715302,0.9999999999713538,0.9999999999982585,0.99999999999992639,0.99999999999999833,1,1,1,2.1202480390991596E-4,2.1514465240612957E-4,2.1712442145493949E-4,{"$f":"1-EXP(BO95)/(1+EXP(BO95))","v":2.2151102443612736E-4},2.2475861085424764E-4,{"$f":"1-EXP(BQ95)/(1+EXP(BQ95))","v":2.2804985011681822E-4},2.3013235640834129E-4,2.3476548388468021E-4,2.3819099325494975E-4,2.4166238535472395E-4,2.4385262079507086E-4,2.4874512180528274E-4,2.5235763548647761E-4,2.5601837072064537E-4,2.5832156295302333E-4,2.6348692239253069E-4,2.6729596522778731E-4,2.711556825818473E-4,2.164474397182703E-4]
["Glen Eira (C)",null,2.1513694419161844E-5,{"$f":"1-EXP(D96)/(1+EXP(D96))","v":5.4793812857001356E-6},1.8595990480929636E-5,2.7791401947308003E-5,1.8203687252027478E-6,1.6853380369052928E-6,5.317755707001659E-6,2.541353990692663E-6,1.9770733542756602E-5,7.6225443638167079E-6,1.4063626004867658E-6,1.1783163027523358E-6,5.1384758509298578E-6,1.6492149462199457E-5,9.6953102692531878E-5,2.6239369419811531E-4,1.2989515654804329E-3,3.0313809932782654E-3,8.043688815678518E-3,1.5545284978708995E-2,2.5766124698106796E-2,7.9717998548292868E-2,0.22370109318937192,0.3927532652135628,0.59250920933578877,0.73466045408187464,0.83743799349691361,0.90091887051096931,0.94309409891339846,0.97306989077596773,0.98427867710091943,0.99265451593410492,0.99632182856104745,0.9980313223605819,0.99898713785485693,0.98984793631739665,0.98637864436629863,0.99271893781618337,0.99662026203227083,0.99833741931101716,0.99922732432022343,0.99966677245463509,0.99987033033456574,0.99995484585252548,0.99998669179824873,0.99999669314185757,0.99999933227272442,0.9999998920197376,0.99999998681485758,0.99999999880629309,0.99999999992598165,0.9999999999971193,0.99999999999993994,0.99999999999999856,1,1,1,1,1,1,1,2.0279476034718913E-2,2.0652734329098754E-2,2.0834324396866499E-2,2.1417865782974554E-2,2.1809918920438154E-2,{"$f":"1-EXP(BQ96)/(1+EXP(BQ96))","v":2.2208418717955536E-2},2.2401080058690792E-2,2.3025129740414596E-2,2.344352932660787E-2,2.386875230483132E-2,2.407306030411227E-2,2.4740056865219073E-2,2.518633534311987E-2,2.56398310121142E-2,2.585638325612738E-2,2.6568879593855566E-2,2.7044638057855286E-2,2.7528024820828834E-2,2.1025995823613641E-2]
["Greater Dandenong (C)",null,1.3589631066013297E-6,6.0993950368182226E-7,4.9883471645584265E-6,6.3234223106611864E-6,5.8528317037342958E-7,5.229994602951038E-7,1.0236561983623105E-6,4.1572199216410866E-7,1.8390387893640892E-6,1.1152152711302321E-6,4.4045589564500887E-7,4.2079896622748691E-7,1.0518577846507782E-6,2.1980323475778718E-6,6.5362207500863079E-6,1.2360520298737576E-5,3.3200039714853524E-5,5.7752099978269911E-5,1.082744693853277E-4,1.6885222453721926E-4,2.409349901266733E-4,5.0845982258407307E-4,1.0818906215556146E-3,1.8290124163434784E-3,3.0915755231194497E-3,4.7372437431218994E-3,7.1525684999349526E-3,1.04607317244374E-2,1.5547520689429217E-2,2.5522849318192375E-2,3.4803993899277574E-2,5.3446945006284441E-2,7.8008995255208879E-2,0.10861307533222109,0.15216274504820615,4.4725199389343273E-2,3.7853549864437008E-2,5.3761383933129014E-2,8.1712727624671189E-2,0.11864579706497069,0.17377245818434373,0.25550010603694817,0.3728222278236305,0.52349521999546689,0.69103664786055119,0.83417444541474206,0.92736917550428066,0.97361141552196773,0.99209751734882867,0.99803820096721596,0.99961119223981554,0.99994136655715082,0.99999385814928343,0.99999930212111932,0.99999990434013919,0.99999998748030805,0.99999999874742818,0.99999999991849819,0.99999999999844558,0.99999999999999523,1,3.4451827721104777E-4,3.4829740939734677E-4,3.5020598147306181E-4,3.5596359580325476E-4,3.5985126319360017E-4,{"$f":"1-EXP(BQ97)/(1+EXP(BQ97))","v":3.6377572636292488E-4},3.6574629947272452E-4,3.7173629432196709E-4,3.7577303271185691E-4,3.7984783412392531E-4,3.818822184187276E-4,3.8811292209817161E-4,3.9230386337785195E-4,3.9653417715912465E-4,3.9863423980468493E-4,4.0511426151701446E-4,4.0946470863889584E-4,4.1385588139908336E-4,3.5222093222775364E-4]
["Kingston (C)",null,7.205098718987557E-6,2.2977077624997122E-6,1.0549920939739721E-5,1.4758303264694739E-5,1.2157118721711768E-6,1.1052432962177505E-6,2.8632310525855686E-6,1.2485076088530889E-6,7.6375865862843284E-6,3.527326131624875E-6,8.9668259706243703E-7,7.9309448652864489E-7,2.7510822609988494E-6,7.3886310267834432E-6,3.2743356046305294E-5,7.6346074519118012E-5,2.9348711057874954E-4,6.060575614973418E-4,1.395467388504823E-3,2.4780249435205626E-3,3.8776504697667358E-3,1.0502039749956782E-2,2.8477107034296179E-2,5.5252157685844461E-2,0.10462017102520871,0.16893300620464025,0.2575542791683777,0.36172056435893352,0.48736025079888023,0.64898865464408706,0.74441425654918625,0.84617067801619006,0.90718357143694417,0.94255880952215043,0.96603926053104627,0.80770829333522687,0.76668652542193283,0.8472142576115842,0.9129822310414466,0.94971292412452246,0.9726839596786766,0.98618556498727916,0.99362151233199447,0.99732294559273293,0.99902309509093368,0.99969070190592713,0.99991753653022908,0.99998170126166797,0.99999678091231581,0.99999955769086724,0.99999995554343712,0.99999999695862607,0.99999999987580168,0.9999999999942929,0.99999999999965761,0.99999999999998079,0.99999999999999922,1,1,1,1,3.8624317918578566E-3,3.9225158266272819E-3,3.9517583216254204E-3,4.0452156496698644E-3,4.1078528868904174E-3,{"$f":"1-EXP(BQ98)/(1+EXP(BQ98))","v":4.1713628493782462E-3},4.2020763661775318E-3,4.3010452376693875E-3,4.3672401299551522E-3,4.4343526832280045E-3,4.4666036136488119E-3,4.5713771555829785E-3,4.6413126027603502E-3,4.7122127699685823E-3,4.7460703160882023E-3,4.8569558329776275E-3,4.9308233641403021E-3,5.0057048890109757E-3,3.9895254961336279E-3]
["Knox (C)",null,2.4170389848476859E-6,6.6373267371133693E-7,4.1153345827771304E-6,6.0775996932882492E-6,2.6902243499549172E-7,2.4954241517605169E-7,7.5123235832030844E-7,3.3347029693153729E-7,2.6340235301791637E-6,1.0932979248590158E-6,2.1754941204044087E-7,1.8767783005468885E-7,7.786659849129407E-7,2.4242932232798609E-6,1.3455167513498623E-5,3.5621035131105927E-5,1.6664642939978602E-4,3.8844498748102918E-4,1.0156465917575686E-3,1.9557230209000798E-3,3.2602293662781223E-3,1.0322454395834346E-2,3.2594678086847906E-2,6.9393623141946303E-2,0.14157199447058699,0.23719120474294209,0.36411741892226412,0.50069697680415148,0.64348930911174573,0.79435732930328173,0.86677662806348588,0.93140823065739231,0.96331381530046301,0.97943783854259936,0.98896642192861794,0.90989760326916225,0.88324268448374155,0.93215775477276974,0.96616623572878058,0.98251329495832695,0.99147637384670806,0.99615039782356918,0.99842719788294554,0.99942341375978605,0.99981940660029678,0.99995201513967991,0.9999895461972641,0.99999816130644625,0.99999975237750227,0.99999997500834714,0.99999999824649977,0.99999999992147159,0.99999999999806655,0.99999999999994604,0.999999999999998,0.99999999999999989,1,1,1,1,1,3.3997325192931527E-3,3.4605072603958176E-3,3.4942527381761623E-3,{"$f":"1-EXP(BO99)/(1+EXP(BO99))","v":3.5850650159658937E-3},3.6488785157358095E-3,{"$f":"1-EXP(BQ99)/(1+EXP(BQ99))","v":3.7137357790676395E-3},3.7495853907685284E-3,3.8466449580301099E-3,3.9147291123048378E-3,3.9839215132088102E-3,4.0219961312624175E-3,4.1256980494467355E-3,4.1983162692323939E-3,4.2721109105871014E-3,4.3125379066704106E-3,4.4233002760628581E-3,4.5007310270375189E-3,4.5794102595888564E-3,3.5100882281919876E-3]
["Manningham (C)",null,2.7494449269527266E-6,{"$f":"1-EXP(D100)/(1+EXP(D100))","v":7.5702481416861644E-7},4.7032740526642414E-6,6.9399893779520383E-6,3.0013516427729314E-7,2.8065219048745149E-7,8.4444895176449819E-7,3.799116975455874E-7,2.9920639791347625E-6,1.2431864755413358E-6,2.4701731626830536E-7,2.1293304874880903E-7,8.8214548243925606E-7,2.7437654027684388E-6,1.5211033830508924E-5,4.0232585808208654E-5,1.8803729440997063E-4,4.3783491323301504E-4,1.1434326781535331E-3,2.198942228282541E-3,3.6619786965850221E-3,1.1574973674380096E-2,3.6421132004530898E-2,7.7134545441188695E-2,0.15590149304695511,0.25816856645465047,0.39042666567610351,0.52851840266940409,0.66848632219150361,0.81177914986302835,0.87899695890639262,0.93812360267682715,0.96701614642658451,0.98154408305386787,0.99010648133725709,0.91852403137695215,0.89411939719554512,0.93879331209767691,0.96958416714996787,0.98430670608352189,0.99235773850419895,0.99655017326666362,0.99859088754252279,0.99948348710554558,0.99983823376618619,0.99995701992871144,0.99999063703047408,0.99999835327534203,0.99999977824764397,0.99999997762142523,0.99999999843002163,0.99999999992970023,0.9999999999982695,0.99999999999995171,0.99999999999999811,0.99999999999999989,1,1,1,1,1,3.7894024301665663E-3,3.8570169849256875E-3,3.8945146898632377E-3,3.9955866538903262E-3,4.0665755377395918E-3,{"$f":"1-EXP(BQ100)/(1+EXP(BQ100))","v":4.1387233631166032E-3},4.1785551304622803E-3,4.2865660138748929E-3,4.3622965418163018E-3,4.4392574227020143E-3,4.4815570131514493E-3,4.5969444221398703E-3,4.6777082769117184E-3,4.7597779636342485E-3,4.8046862924914224E-3,4.9279132226142108E-3,5.014018669833753E-3,5.101509705772167E-3,3.9106010253046053E-3]
["Maroondah (C)",null,2.6014548670794113E-6,7.1596241713045572E-7,4.4326568919839104E-6,6.5410095675400015E-6,2.8854789546617354E-7,2.6904064320820709E-7,8.0831976734252464E-7,3.5994664959737577E-7,2.8301376621131524E-6,1.1762190706976483E-6,2.3470158483362979E-7,2.0248240739650925E-7,8.3785871152208813E-7,2.6028511365128182E-6,1.4399915398533025E-5,3.8048847715743683E-5,1.775023313687063E-4,4.129748677212941E-4,1.0776485349787146E-3,2.0721845033723207E-3,3.4503455118627402E-3,1.0895211105113045E-2,3.4284496407152254E-2,7.2738916722208224E-2,0.14764465909084323,0.24595115288179403,0.37497166159510353,0.51205751643304476,0.65358678823420746,0.80126575501319086,0.87154874955444894,0.93396220455155221,0.96468772918619627,0.9802009631794667,0.98936864952590331,0.91320247902977747,0.8874589995231088,0.93468035320944498,0.96743041763647108,0.98315837669800898,0.99178378245189791,0.99628492326182039,0.99848000110619684,0.99944184192347452,0.99982484079298739,0.99995335485370151,0.99998981176259172,0.9999982026750055,0.99999975711914446,0.99999997538988095,0.99999999826530639,0.99999999992189137,0.99999999999806444,0.9999999999999456,0.99999999999999789,0.99999999999999989,1,1,1,1,1,3.5865801398163866E-3,3.6505574289431575E-3,3.6860230121980031E-3,3.7816709554313599E-3,3.8488391074074091E-3,{"$f":"1-EXP(BQ101)/(1+EXP(BQ101))","v":3.9171031688594038E-3},3.9547736808934753E-3,4.0569853416165813E-3,4.128637194966811E-3,4.2014524478589665E-3,4.241454092746233E-3,4.3506432591237099E-3,4.427054482590953E-3,4.5047004420266656E-3,4.5471661749905135E-3,4.6637706580643368E-3,4.7452326026173886E-3,4.8280046655454489E-3,3.7026759588282276E-3]
["Melbourne (C)",null,1.676216042730827E-4,1.0231806355953665E-4,3.1086469336005784E-4,3.5305546945962885E-4,1.1431277963136477E-4,1.0526654339992891E-4,1.5562217391773547E-4,7.8407254873624765E-5,1.9820228553268926E-4,1.4640716926350716E-4,8.7737979354352014E-5,8.5904437556849622E-5,1.5034447424300268E-4,2.3438755179150395E-4,4.5073591395017321E-4,6.6107103609702733E-4,1.2125711237606085E-3,1.6506135397121868E-3,2.3934334433785009E-3,3.1370699997540497E-3,3.902204124059061E-3,6.0499043009534237E-3,9.445776883847623E-3,1.2904794256546781E-2,1.7677790521452241E-2,2.2888999216589156E-2,2.9419458519875263E-2,3.7064132566379859E-2,4.7333429675810224E-2,6.3677906033802412E-2,7.6529448150969737E-2,9.7607783743268839E-2,0.12197116733010993,0.14800360222128661,0.18054989689363632,8.5886417769533763E-2,7.8680169650669374E-2,9.7343356856445129E-2,0.12460675101114926,0.15476634896096242,0.19436644007596493,0.24568506098501064,0.31310022201626508,0.39822916764981642,0.50557259766806872,0.62592370735382796,0.7463074653678361,0.84779128449510499,0.92099051790400877,0.96421941338681627,0.98607717224871905,0.99542083174800344,0.99879208130836061,0.99966029793609856,0.99989282158541248,0.99996714552057187,0.99999144521630534,0.99999826065103747,0.99999982783813912,0.99999999404941864,0.99999999995712918,4.2430761560854346E-3,4.270364799280113E-3,4.2746032096916409E-3,4.3253259053732673E-3,4.3529993719334525E-3,{"$f":"1-EXP(BQ102)/(1+EXP(BQ102))","v":4.3808021210292036E-3},4.3849609166739523E-3,4.4367975034049767E-3,4.4649911616772009E-3,4.4933161524912668E-3,4.4973924541016341E-3,4.5503622114587694E-3,4.5790843262811798E-3,4.6079398670049176E-3,4.611930798128272E-3,4.6660533497013823E-3,4.69531236036691E-3,4.7247069343415715E-3,4.3173813138887018E-3]
["Monash (C)",null,3.6513794101633579E-6,1.0614802021802205E-6,5.8754091959434263E-6,8.5001521944461089E-6,4.7371088662817584E-7,4.3528875481868567E-7,1.2389734086459825E-6,5.4888980416389899E-7,3.9421030023634174E-6,1.7038345641040564E-6,3.7113580408920654E-7,3.2310585207362408E-7,1.2536450714195624E-6,3.6936916251173457E-6,1.8850092481925707E-5,4.7593580647320444E-5,2.0694455177627802E-4,4.6101801453068969E-4,1.1494280814101643E-3,2.1469221692681506E-3,3.495111370399151E-3,1.0440077466295827E-2,3.1146332838766111E-2,6.4061839167204537E-2,0.12720329022686672,0.21053169525392756,0.32312017725223674,0.44891896879253146,0.58818861943619694,0.74682063209155336,0.82895441320945873,0.90694565119788206,0.94808976534862299,0.96987247980583313,0.98326630388789382,0.87979839601902476,0.84783647079896651,0.90781280899535499,0.95184236062276861,0.97411011120608904,0.98688285325766945,0.9938282334984615,0.99736305900536659,0.99898390036669127,0.99966323837489146,0.9999045124668976,0.99997757847928337,0.99999570105331415,0.99999936068411321,0.99999992764651102,0.99999999419881391,0.99999999969594977,0.99999999999096723,0.99999999999969647,0.99999999999998634,0.99999999999999944,1,1,1,1,1,3.5768084407796774E-3,3.6376237079163154E-3,3.669951151194395E-3,{"$f":"1-EXP(BO103)/(1+EXP(BO103))","v":3.7620972078258319E-3},3.8257824939628149E-3,{"$f":"1-EXP(BQ103)/(1+EXP(BQ103))","v":3.8904518043002545E-3},3.924653651558585E-3,4.0227985882829165E-3,4.0905045693575559E-3,4.1592515939589125E-3,4.1954272445490215E-3,4.2999278702463561E-3,4.3718871549216498E-3,4.4449475537552408E-3,4.4832013387998693E-3,4.5944339432291148E-3,4.6708915668628448E-3,4.7485135754818941E-3,3.6927938393499504E-3]
["Nillumbik (S)",null,9.8157756913686001E-6,{"$f":"1-EXP(D104)/(1+EXP(D104))","v":2.1407522506899923E-6},9.1776534988374792E-6,1.4527540268205463E-5,4.8397642415931585E-7,4.4833636270169563E-7,1.6886081158906663E-6,8.9545899173426591E-7,9.3261647804432357E-6,3.1981314115858694E-6,4.3332379495719664E-7,3.5032961942516039E-7,1.8747452353862215E-6,7.1433285541155911E-6,5.4669975703913742E-5,1.7140376806812352E-4,1.0687214944528067E-3,2.864491342323694E-3,8.7801778907323769E-3,1.8497893242970687E-2,3.2755136705009291E-2,0.11762019236886367,0.34765996542453859,0.57406034383593296,0.77299929891781438,0.87683824073963401,0.93535087660331084,0.96512202810896719,0.98205068263366779,0.99256215613771726,0.9960278624970571,0.99836600645742168,0.99926363065775592,0.99964166277640165,0.99983322088243798,0.99766055982293378,0.99668188476179531,0.99838533454972189,0.99933314647808869,0.9997059149498172,0.99987806793125145,0.99995366702229516,0.99998436135045143,0.99999536389135635,0.99999886317200359,0.99999977152397823,0.99999996389203671,0.99999999559649144,0.99999999961130903,0.99999999997580935,0.99999999999903078,0.99999999999997746,0.99999999999999978,1,1,1,1,1,1,1,1,2.5831666024617506E-2,2.6370127781169317E-2,2.6667091584601899E-2,2.7477853584193968E-2,2.8047459421548959E-2,{"$f":"1-EXP(BQ104)/(1+EXP(BQ104))","v":2.8627792044417344E-2},2.8946450186621231E-2,2.9821345265952592E-2,3.0434925163839721E-2,3.1059950452812846E-2,3.140166352544238E-2,3.2345080022349926E-2,3.3005561222906876E-2,3.3678241653125718E-2,3.4044430738517817E-2,3.5060978261612696E-2,3.5771428956246742E-2,3.6494867901855299E-2,2.6669517138528942E-2]
["Port Phillip (C)",null,3.7150893510351501E-4,1.3908790673078375E-4,2.8374415094722938E-4,3.6923225234219981E-4,7.6918826021232789E-5,7.0900737435319883E-5,1.552331447288724E-4,7.7568561465568564E-5,3.2912892980652142E-4,1.6681620767633465E-4,5.4992163006639672E-5,4.8883001386390568E-5,1.3768684775650186E-4,3.0913877676042034E-4,1.0540743957411225E-3,2.0974410261541676E-3,6.4457962966040228E-3,1.1178605604203806E-2,2.1663859747258818E-2,3.4139868984294885E-2,4.8337136149469551E-2,0.10241562242613766,0.2065037016387159,0.31257026288290579,0.44429947416883941,0.55670909113504163,0.66074584014801774,0.74432524165083458,0.8176434014951186,0.88605244724466414,0.91983898099443162,0.95119798808191502,0.96959844921687344,0.98022625924163587,0.98753435433051862,0.93735962559621522,0.92496445685284501,0.95110908630973012,0.97109332960577621,0.98222641594236293,0.98959551155150616,0.99421754572907783,0.99701292011012166,0.99856871825308802,0.99939304188945488,0.99977066627322086,0.99992489167534659,0.99997880664429317,0.99999509195700309,0.9999990695422486,0.99999986352210324,0.99999998534484924,0.99999999897378788,0.999999999918746,0.99999999999192069,0.99999999999924072,0.99999999999994826,0.99999999999999789,1,1,1,3.3840948749238819E-2,3.4265500159186391E-2,3.4372616778575171E-2,3.5127878752735486E-2,3.5565777465292214E-2,{"$f":"1-EXP(BQ105)/(1+EXP(BQ105))","v":3.6008197089118066E-2},3.6117603315191427E-2,3.6906743976063972E-2,3.7362944105565177E-2,3.7823810876460584E-2,3.793549479223346E-2,3.875969186613959E-2,3.9234780246498735E-2,3.9714683588343624E-2,3.9828630588153113E-2,4.0689085204765996E-2,4.1183658887133823E-2,4.168319834306089E-2,3.496450657094774E-2]
["South Gippsland (S)",null,6.0993868580272448E-6,3.0424663073347347E-6,1.7311213366233424E-5,2.1124793233573413E-5,3.276196822721289E-6,2.9298200945326869E-6,5.1776716043505644E-6,2.1720026558424976E-6,7.8722387046870068E-6,5.1175300489481046E-6,2.3674386855354612E-6,2.2871178467775977E-6,5.0324559954795234E-6,9.4627712932116026E-6,2.4029552388671327E-5,4.1473319686069487E-5,9.7020715522422307E-5,1.5461266519156691E-4,2.64471603790839E-4,3.8812556489831174E-4,5.2773671407702061E-4,9.9645664757808117E-4,1.8966497858653453E-3,2.9725669503962715E-3,4.6640029594086085E-3,6.7324419155234683E-3,9.60377453900918E-3,1.3330111510522102E-2,1.8792561146078635E-2,2.8779859708255251E-2,3.7534120062134302E-2,5.4007822903776037E-2,7.4765928759199185E-2,9.9469445947651391E-2,0.13340852425561256,4.5962878497314619E-2,4.0013415566294674E-2,5.4177463259501568E-2,7.767331920636833E-2,0.10713426687558225,0.14967539756362214,0.21122004885928725,0.30004320170592746,0.42014413870956224,0.57119508803641472,0.72702949323577548,0.85510338270135811,0.93583020003470285,0.97644563316123412,0.99272637691962251,0.99815669271770124,0.99962985384257808,0.99994548003697026,0.99999133872822354,0.99999838379982031,0.9999997101680389,0.99999995868588443,0.99999999590168509,0.99999999985621413,0.99999999999892575,0.99999999999999922,6.9614531563644277E-4,7.0266517306538656E-4,7.0539711627837232E-4,7.1585738262625043E-4,7.2253042724756966E-4,{"$f":"1-EXP(BQ106)/(1+EXP(BQ106))","v":7.2925523068856357E-4},7.3204858916808835E-4,7.4286152510383285E-4,7.4974372763203512E-4,7.5667911212129457E-4,7.5953502708325793E-4,7.7071087693081353E-4,7.7780798841253773E-4,7.8495974421333159E-4,7.8787938911828448E-4,7.9942867869831069E-4,8.0674660870905246E-4,8.1412068572761509E-4,7.1133769683973114E-4]
["Stonnington (C)",null,1.7718049037174222E-4,5.7820445842682311E-5,1.4398194035458722E-4,1.9698240119070398E-4,2.4274256443912456E-5,2.2671619270053789E-5,5.7264674119927861E-5,2.9807042559504282E-5,1.5976797294359191E-4,7.319625632484783E-5,1.8995780324604361E-5,1.6441578806203339E-5,5.4751843629796682E-5,1.412086794453371E-4,5.9554576430342898E-4,1.3348921067675157E-3,4.9404789973696017E-3,9.5917743531788169E-3,2.0906245255862821E-2,3.5400876363468337E-2,5.2915715380695949E-2,0.12698336013760225,0.27771395252533171,0.42525522381409864,0.58850897029907179,0.70769731934470026,0.80119208215160209,0.86531164883438938,0.91351393191807484,0.95245952819558255,0.96925398120706363,0.98331512378115182,0.99052920398809674,0.99432129755610688,0.9967075581745144,0.97782780405262582,0.97210227914924052,0.98333676692210648,0.99111191703536716,0.99501955155851385,0.99734829856913487,0.99867070372055711,0.99938757392344957,0.99974191064572093,0.99990542326793652,0.99996979150117482,0.99999184936684038,0.99999815988785512,0.99999967024690994,0.99999995350839721,0.9999999951703944,0.999999999654686,0.99999999998512223,0.99999999999926947,0.99999999999995326,0.99999999999999722,0.99999999999999989,1,1,1,1,3.7785611463072466E-2,3.8336523914881515E-2,3.8535049472237182E-2,{"$f":"1-EXP(BO107)/(1+EXP(BO107))","v":3.9459016188021279E-2},4.00307330135794E-2,{"$f":"1-EXP(BQ107)/(1+EXP(BQ107))","v":4.060952228198289E-2},4.0815847922327619E-2,4.1788596393116273E-2,4.2389021299479746E-2,4.2996798766509081E-2,4.3211129914418889E-2,4.4234695544782876E-2,4.4864957827777885E-2,4.5502858603831076E-2,4.572540051645424E-2,4.6801865375028395E-2,4.7463117072162886E-2,4.8132298653449368E-2,3.8986180324818709E-2]
["Whitehorse (C)",null,3.6255414110897277E-6,{"$f":"1-EXP(D108)/(1+EXP(D108))","v":1.048514569168546E-6},5.8720296248759851E-6,8.5111235397228313E-6,4.6196244685159371E-7,4.2620348017496923E-7,1.2192151138679108E-6,5.4072489530376799E-7,3.9140485130761959E-6,1.6852900207586785E-6,3.6411202164465806E-7,3.1669574207526807E-7,1.2360285340795585E-6,3.6593400155604527E-6,1.8813160322372902E-5,4.7696213710257673E-5,2.0872546178085649E-4,4.6681560790950982E-4,1.1686883048386276E-3,2.1885612852463598E-3,3.5699149068457725E-3,1.071580084460011E-2,3.2109355857555699E-2,6.6179716800096156E-2,0.13149023905359902,0.21736363221298771,0.33260451381748735,0.46013399345807149,0.59963498227680156,0.75625412965390648,0.8363030297546501,0.91156901522802336,0.95091071184939702,0.97161597471405203,0.98428931418774657,0.88551176711788782,0.85464007697894195,0.91240723488336706,0.95448792199567789,0.97563389604710449,0.98770204547212737,0.99423597802860197,0.99754734954461066,0.99905915321664673,0.99968975355894274,0.99991253961016402,0.99997960014039633,0.99999611863589177,0.99999942786558671,0.99999993590738023,0.99999999492191927,0.99999999973755482,0.99999999999233269,0.99999999999974654,0.99999999999998879,0.99999999999999956,1,1,1,1,1,3.6557558802117196E-3,3.7181894948348226E-3,3.7515136324647314E-3,3.8459900426305316E-3,3.9113850381783388E-3,{"$f":"1-EXP(BQ108)/(1+EXP(BQ108))","v":3.9777955335771331E-3},4.0130646189935337E-3,4.1137212170885284E-3,4.1832659835621122E-3,4.2538854112834645E-3,4.2912033096529356E-3,4.3984095777803711E-3,4.4723454857000799E-3,4.5474183980230842E-3,4.586894159610444E-3,4.7010398511545537E-3,4.7796212297666063E-3,4.8594052934523013E-3,3.7742614114998352E-3]
["Yarra Ranges (S)",null,2.5186816761113562E-6,6.8629966132327525E-7,4.349095150679716E-6,6.4414330986917179E-6,2.6833608213205906E-7,2.5115588220270268E-7,7.6319323782936266E-7,3.427497594632456E-7,2.7455559178379829E-6,1.1324908391063815E-6,2.2155087664454953E-7,1.9069801882043436E-7,7.9950570530673559E-7,2.5111231171104365E-6,1.4129011959518323E-5,3.768587418495617E-5,1.784226895495955E-4,4.1880992290577179E-4,1.103051719713144E-3,2.1330054790241748E-3,3.5674017973126304E-3,1.1393712762309938E-2,3.6222883704602138E-2,7.7220792982343189E-2,0.15695140156952403,0.26071679522114166,0.39478763154540142,0.53421677111373289,0.67456047541486963,0.81689284165461162,0.8829972806656734,0.94066412485765061,0.96857752774981387,0.98251659179145168,0.99068128029873004,0.92168108316874797,0.89786088093861727,0.94132403897837369,0.97105259586754356,0.9851597681983536,0.99281965724137378,0.99678119655740594,0.99869534429247542,0.99952589038609829,0.99985296655809475,0.99996137393524331,0.99999169468988158,0.99999856108459773,0.99999980955180867,0.9999999811603002,0.99999999870866663,0.99999999994374045,0.99999999999865963,0.99999999999996381,0.99999999999999867,1,1,1,1,1,1,3.7077342581658401E-3,3.774476273853633E-3,3.8117589390351814E-3,3.9112906562861482E-3,3.9813970587436742E-3,{"$f":"1-EXP(BQ109)/(1+EXP(BQ109))","v":4.0526593625388463E-3},4.0922912817586976E-3,4.1987224343495999E-3,4.2735592098122055E-3,4.3496239080151877E-3,4.3917415302677787E-3,4.5055119185414272E-3,4.5853733142010578E-3,4.6665388060685986E-3,4.711285981279234E-3,4.8328612245935876E-3,4.9180584192034527E-3,5.0046402530125045E-3,3.8266354675494663E-3]
["Weighted Average NPV",null,{"$f":"1-EXP(C110)/(1+EXP(C110))","v":7.1600921187631172E-6},{"$f":"1-EXP(D110)/(1+EXP(D110))","v":2.1145752164830611E-6},1.0187003928074922E-5,1.4616966396485687E-5,9.2939336371333781E-7,8.5819546213894427E-7,2.4003630066937731E-6,1.0910729134616659E-6,7.4796562056222982E-6,3.2555089584107577E-6,7.2761103953045136E-7,6.3243299663895414E-7,2.3988272362940322E-6,6.9270538174404095E-6,3.4360475394290546E-5,8.5204692074625221E-5,3.6187537327569963E-4,7.8953560812733414E-4,1.9308766250720755E-3,3.5581563089647217E-3,5.7265322259987261E-3,1.6665381669629387E-2,4.810840666757854E-2,9.5800777413130755E-2,0.18186467428964326,0.28667617960591596,0.41567717820345851,0.54570779624606514,0.67590119131066606,0.80957796864117293,0.87409243079355747,0.93249330109645057,0.96252684254119847,0.97823317759950323,0.98786361984029503,0.91198429272605019,0.88804592976784713,0.93305049787840744,0.96519782950582711,0.98125082642526762,0.99045422445725817,0.99547285264630636,0.99804581852175045,0.99923739570731696,0.99974361334977435,0.99992604660983953,0.99998228315398519,0.99999652163232289,0.99999946855349997,0.99999993790060315,0.99999999482932755,0.99999999971639564,0.99999999999110334,0.99999999999968392,0.99999999999998501,0.99999999999999933,1,1,1,1,1,5.4934754119929652E-3,5.585194087645351E-3,5.6316052761362645E-3,5.7728203135288814E-3,{"$f":"1-EXP(BP110)/(1+EXP(BP110))","v":5.8687665030873193E-3},5.9661609095451595E-3,6.0151650012547631E-3,6.16537435612452E-3,6.2672340163456575E-3,6.3706231392457457E-3,6.4223511171778158E-3,6.5820738397147638E-3,6.6901781074333311E-3,6.7998972238901834E-3,6.8544861511860011E-3,7.0242683358483493E-3,7.1389651837124868E-3,7.2553665909792509E-3,5.672629286293307E-3]
["LGA S curves (number of disconnections)",2020,{"$f":"B134+1","v":2021},{"$f":"C134+1","v":2022},{"$f":"D134+1","v":2023},{"$f":"E134+1","v":2024},{"$f":"F134+1","v":2025},{"$f":"G134+1","v":2026},{"$f":"H134+1","v":2027},{"$f":"I134+1","v":2028},{"$f":"J134+1","v":2029},{"$f":"K134+1","v":2030},{"$f":"L134+1","v":2031},{"$f":"M134+1","v":2032},{"$f":"N134+1","v":2033},{"$f":"O134+1","v":2034},{"$f":"P134+1","v":2035},{"$f":"Q134+1","v":2036},{"$f":"R134+1","v":2037},{"$f":"S134+1","v":2038},{"$f":"T134+1","v":2039},{"$f":"U134+1","v":2040},{"$f":"V134+1","v":2041},{"$f":"W134+1","v":2042},{"$f":"X134+1","v":2043},{"$f":"Y134+1","v":2044},{"$f":"Z134+1","v":2045},{"$f":"AA134+1","v":2046},{"$f":"AB134+1","v":2047},{"$f":"AC134+1","v":2048},{"$f":"AD134+1","v":2049},{"$f":"AE134+1","v":2050},{"$f":"AF134+1","v":2051},{"$f":"AG134+1","v":2052},{"$f":"AH134+1","v":2053},{"$f":"AI134+1","v":2054},{"$f":"AJ134+1","v":2055},{"$f":"AK134+1","v":2056},{"$f":"AL134+1","v":2057},{"$f":"AM134+1","v":2058},{"$f":"AN134+1","v":2059},{"$f":"AO134+1","v":2060},{"$f":"AP134+1","v":2061},{"$f":"AQ134+1","v":2062},{"$f":"AR134+1","v":2063},{"$f":"AS134+1","v":2064},{"$f":"AT134+1","v":2065},{"$f":"AU134+1","v":2066},{"$f":"AV134+1","v":2067},{"$f":"AW134+1","v":2068},{"$f":"AX134+1","v":2069},{"$f":"AY134+1","v":2070},{"$f":"AZ134+1","v":2071},{"$f":"BA134+1","v":2072},{"$f":"BB134+1","v":2073},{"$f":"BC134+1","v":2074},{"$f":"BD134+1","v":2075},{"$f":"BE134+1","v":2076},{"$f":"BF134+1","v":2077},{"$f":"BG134+1","v":2078},{"$f":"BH134+1","v":2079},{"$f":"BI134+1","v":2080},{"$f":"BJ134+1","v":2081},{"$f":"BK134+1","v":2082},{"$f":"BL134+1","v":2083},{"$f":"BM134+1","v":2084},{"$f":"BN134+1","v":2085},{"$f":"BO134+1","v":2086},{"$f":"BP134+1","v":2087},{"$f":"BQ134+1","v":2088},{"$f":"BR134+1","v":2089},{"$f":"BS134+1","v":2090},{"$f":"BT134+1","v":2091},{"$f":"BU134+1","v":2092},{"$f":"BV134+1","v":2093},{"$f":"BW134+1","v":2094},{"$f":"BX134+1","v":2095},{"$f":"BY134+1","v":2096},{"$f":"BZ134+1","v":2097},{"$f":"CA134+1","v":2098},{"$f":"CB134+1","v":2099},{"$f":"CC134+1","v":2100}]
["Bass Coast (S)",null,{"$f":"(INT(C113*C46)+Control!$K$18*CustomersRes!J3)","v":17.740000000000002},{"$f":"(INT(D113*D46)+Control!$K$18*CustomersRes!K3)","v":18.001300000000001},{"$f":"(INT(E113*E46)+Control!$K$18*CustomersRes!L3)","v":18.266293500000003},{"$f":"(INT(F113*F46)+Control!$K$18*CustomersRes!M3)","v":18.534962032500001},{"$f":"(INT(G113*G46)+Control!$K$18*CustomersRes!N3)","v":18.812287222337503},{"$f":"(INT(H113*H46)+Control!$K$18*CustomersRes!O3)","v":19.093225786225815},{"$f":"(INT(I113*I46)+Control!$K$18*CustomersRes!P3)","v":19.377759657294686},{"$f":"(INT(J113*J46)+Control!$K$18*CustomersRes!Q3)","v":19.665870859008212},{"$f":"(INT(K113*K46)+Control!$K$18*CustomersRes!R3)","v":19.957541504713173},{"$f":"(INT(L113*L46)+Control!$K$18*CustomersRes!S3)","v":20.252753797189605},{"$f":"(INT(M113*M46)+Control!$K$18*CustomersRes!T3)","v":20.551490028203656},{"$f":"(INT(N113*N46)+Control!$K$18*CustomersRes!U3)","v":20.448732578062639},{"$f":"(INT(O113*O46)+Control!$K$18*CustomersRes!V3)","v":20.346488915172326},{"$f":"(INT(P113*P46)+Control!$K$18*CustomersRes!W3)","v":20.244756470596464},{"$f":"(INT(Q113*Q46)+Control!$K$18*CustomersRes!X3)","v":20.143532688243482},{"$f":"(INT(R113*R46)+Control!$K$18*CustomersRes!Y3)","v":20.042815024802266},{"$f":"(INT(S113*S46)+Control!$K$18*CustomersRes!Z3)","v":19.942600949678255},{"$f":"(INT(T113*T46)+Control!$K$18*CustomersRes!AA3)","v":19.842887944929863},{"$f":"(INT(U113*U46)+Control!$K$18*CustomersRes!AB3)","v":19.743673505205212},{"$f":"(INT(V113*V46)+Control!$K$18*CustomersRes!AC3)","v":19.644955137679187},{"$f":"(INT(W113*W46)+Control!$K$18*CustomersRes!AD3)","v":19.546730361990793},{"$f":"(INT(X113*X46)+Control!$K$18*CustomersRes!AE3)","v":19.44899671018084},{"$f":"(INT(Y113*Y46)+Control!$K$18*CustomersRes!AF3)","v":19.351751726629935},{"$f":"(INT(Z113*Z46)+Control!$K$18*CustomersRes!AG3)","v":20.254992967996785},{"$f":"(INT(AA113*AA46)+Control!$K$18*CustomersRes!AH3)","v":21.153718003156801},{"$f":"(INT(AB113*AB46)+Control!$K$18*CustomersRes!AI3)","v":21.047949413141016},{"$f":"(INT(AC113*AC46)+Control!$K$18*CustomersRes!AJ3)","v":21.942709666075313},{"$f":"(INT(AD113*AD46)+Control!$K$18*CustomersRes!AK3)","v":22.832996117744937},{"$f":"(INT(AE113*AE46)+Control!$K$18*CustomersRes!AL3)","v":24.718831137156211},{"$f":"(INT(AF113*AF46)+Control!$K$18*CustomersRes!AM3)","v":27.595236981470432},{"$f":"(INT(AG113*AG46)+Control!$K$18*CustomersRes!AN3)","v":29.457260796563077},{"$f":"(INT(AH113*AH46)+Control!$K$18*CustomersRes!AO3)","v":33.309974492580267},{"$f":"(INT(AI113*AI46)+Control!$K$18*CustomersRes!AP3)","v":38.143424620117358},{"$f":"(INT(AJ113*AJ46)+Control!$K$18*CustomersRes!AQ3)","v":42.952707497016775},{"$f":"(INT(AK113*AK46)+Control!$K$18*CustomersRes!AR3)","v":49.737943959531691},{"$f":"(INT(AL113*AL46)+Control!$K$18*CustomersRes!AS3)","v":29.489254239734034},{"$f":"(INT(AM113*AM46)+Control!$K$18*CustomersRes!AT3)","v":28.34180796853536},{"$f":"(INT(AN113*AN46)+Control!$K$18*CustomersRes!AU3)","v":31.200098928692686},{"$f":"(INT(AO113*AO46)+Control!$K$18*CustomersRes!AV3)","v":36.044098434049218},{"$f":"(INT(AP113*AP46)+Control!$K$18*CustomersRes!AW3)","v":41.863877941878975},{"$f":"(INT(AQ113*AQ46)+Control!$K$18*CustomersRes!AX3)","v":49.654558552169583},{"$f":"(INT(AR113*AR46)+Control!$K$18*CustomersRes!AY3)","v":60.406285759408732},{"$f":"(INT(AS113*AS46)+Control!$K$18*CustomersRes!AZ3)","v":75.104254330611695},{"$f":"(INT(AT113*AT46)+Control!$K$18*CustomersRes!BA3)","v":93.728733058958639},{"$f":"(INT(AU113*AU46)+Control!$K$18*CustomersRes!BB3)","v":116.26008939366383},{"$f":"(INT(AV113*AV46)+Control!$K$18*CustomersRes!BC3)","v":139.67878894669553},{"$f":"(INT(AW113*AW46)+Control!$K$18*CustomersRes!BD3)","v":158.98039500196205},{"$f":"(INT(AX113*AX46)+Control!$K$18*CustomersRes!BE3)","v":167.18549302695223},{"$f":"(INT(AY113*AY46)+Control!$K$18*CustomersRes!BF3)","v":167.34956556181746},{"$f":"(INT(AZ113*AZ46)+Control!$K$18*CustomersRes!BG3)","v":161.51281773400839},{"$f":"(INT(BA113*BA46)+Control!$K$18*CustomersRes!BH3)","v":151.70525364533833},{"$f":"(INT(BB113*BB46)+Control!$K$18*CustomersRes!BI3)","v":140.94672737711164},{"$f":"(INT(BC113*BC46)+Control!$K$18*CustomersRes!BJ3)","v":131.24199374022609},{"$f":"(INT(BD113*BD46)+Control!$K$18*CustomersRes!BK3)","v":121.58578377152496},{"$f":"(INT(BE113*BE46)+Control!$K$18*CustomersRes!BL3)","v":112.97785485266733},{"$f":"(INT(BF113*BF46)+Control!$K$18*CustomersRes!BM3)","v":104.412965578404},{"$f":"(INT(BG113*BG46)+Control!$K$18*CustomersRes!BN3)","v":96.890900750511975},{"$f":"(INT(BH113*BH46)+Control!$K$18*CustomersRes!BO3)","v":90.406446246759415},{"$f":"(INT(BI113*BI46)+Control!$K$18*CustomersRes!BP3)","v":83.954414015525614},{"$f":"(INT(BJ113*BJ46)+Control!$K$18*CustomersRes!BQ3)","v":77.534641945447987},{"$f":"(INT(BK113*BK46)+Control!$K$18*CustomersRes!BR3)","v":72.146968735720748},{"$f":"(INT(BL113*BL46)+Control!$K$18*CustomersRes!BS3)","v":4.7862338920421488},{"$f":"(INT(BM113*BM46)+Control!$K$18*CustomersRes!BT3)","v":4.7623027225819383},{"$f":"(INT(BN113*BN46)+Control!$K$18*CustomersRes!BU3)","v":4.7384912089690285},{"$f":"(INT(BO113*BO46)+Control!$K$18*CustomersRes!BV3)","v":4.7147987529241835},{"$f":"(INT(BP113*BP46)+Control!$K$18*CustomersRes!BW3)","v":4.6912247591595628},{"$f":"(INT(BQ113*BQ46)+Control!$K$18*CustomersRes!BX3)","v":4.6677686353637649},{"$f":"(INT(BR113*BR46)+Control!$K$18*CustomersRes!BY3)","v":4.644429792186946},{"$f":"(INT(BS113*BS46)+Control!$K$18*CustomersRes!BZ3)","v":4.6212076432260112},{"$f":"(INT(BT113*BT46)+Control!$K$18*CustomersRes!CA3)","v":4.5981016050098802},{"$f":"(INT(BU113*BU46)+Control!$K$18*CustomersRes!CB3)","v":4.5751110969848314},{"$f":"(INT(BV113*BV46)+Control!$K$18*CustomersRes!CC3)","v":4.5522355414999067},{"$f":"(INT(BW113*BW46)+Control!$K$18*CustomersRes!CD3)","v":4.5294743637924073},{"$f":"(INT(BX113*BX46)+Control!$K$18*CustomersRes!CE3)","v":4.5068269919734449},{"$f":"(INT(BY113*BY46)+Control!$K$18*CustomersRes!CF3)","v":4.4842928570135783},{"$f":"(INT(BZ113*BZ46)+Control!$K$18*CustomersRes!CG3)","v":4.4618713927285105},{"$f":"(INT(CA113*CA46)+Control!$K$18*CustomersRes!CH3)","v":4.439562035764868},{"$f":"(INT(CB113*CB46)+Control!$K$18*CustomersRes!CI3)","v":4.4173642255860432},{"$f":"(INT(CC113*CC46)+Control!$K$18*CustomersRes!CJ3)","v":4.3952774044581124},{"$f":"(INT(CD113*CD46)+Control!$K$18*CustomersRes!CK3)","v":4.3733010174358222}]
["Bayside (C)",null,{"$f":"(INT(C114*C47)+Control!$K$18*CustomersRes!J4)","v":186.905},{"$f":"(INT(D114*D47)+Control!$K$18*CustomersRes!K4)","v":189.70047500000001},{"$f":"(INT(E114*E47)+Control!$K$18*CustomersRes!L4)","v":192.54197262500003},{"$f":"(INT(F114*F47)+Control!$K$18*CustomersRes!M4)","v":195.42426276187504},{"$f":"(INT(G114*G47)+Control!$K$18*CustomersRes!N4)","v":198.34714144806568},{"$f":"(INT(H114*H47)+Control!$K$18*CustomersRes!O4)","v":201.32040574082535},{"$f":"(INT(I114*I47)+Control!$K$18*CustomersRes!P4)","v":204.33880371212123},{"$f":"(INT(J114*J47)+Control!$K$18*CustomersRes!Q4)","v":207.40210969356065},{"$f":"(INT(K114*K47)+Control!$K$18*CustomersRes!R4)","v":210.51009914509282},{"$f":"(INT(L114*L47)+Control!$K$18*CustomersRes!S4)","v":213.66254864936735},{"$f":"(INT(M114*M47)+Control!$K$18*CustomersRes!T4)","v":216.86423590612051},{"$f":"(INT(N114*N47)+Control!$K$18*CustomersRes!U4)","v":215.77991472658994},{"$f":"(INT(O114*O47)+Control!$K$18*CustomersRes!V4)","v":214.70101515295698},{"$f":"(INT(P114*P47)+Control!$K$18*CustomersRes!W4)","v":213.6275100771922},{"$f":"(INT(Q114*Q47)+Control!$K$18*CustomersRes!X4)","v":212.55937252680627},{"$f":"(INT(R114*R47)+Control!$K$18*CustomersRes!Y4)","v":211.49657566417224},{"$f":"(INT(S114*S47)+Control!$K$18*CustomersRes!Z4)","v":212.43909278585139},{"$f":"(INT(T114*T47)+Control!$K$18*CustomersRes!AA4)","v":215.37689732192212},{"$f":"(INT(U114*U47)+Control!$K$18*CustomersRes!AB4)","v":225.30001283531251},{"$f":"(INT(V114*V47)+Control!$K$18*CustomersRes!AC4)","v":241.17351277113593},{"$f":"(INT(W114*W47)+Control!$K$18*CustomersRes!AD4)","v":265.96764520728027},{"$f":"(INT(X114*X47)+Control!$K$18*CustomersRes!AE4)","v":408.63780698124384},{"$f":"(INT(Y114*Y47)+Control!$K$18*CustomersRes!AF4)","v":820.59461794633762},{"$f":"(INT(Z114*Z47)+Control!$K$18*CustomersRes!AG4)","v":1299.4916448566059},{"$f":"(INT(AA114*AA47)+Control!$K$18*CustomersRes!AH4)","v":1805.9941866323229},{"$f":"(INT(AB114*AB47)+Control!$K$18*CustomersRes!AI4)","v":2069.9642156991613},{"$f":"(INT(AC114*AC47)+Control!$K$18*CustomersRes!AJ4)","v":2173.6143946206657},{"$f":"(INT(AD114*AD47)+Control!$K$18*CustomersRes!AK4)","v":2155.746322647562},{"$f":"(INT(AE114*AE47)+Control!$K$18*CustomersRes!AL4)","v":2079.9675910343244},{"$f":"(INT(AF114*AF47)+Control!$K$18*CustomersRes!AM4)","v":1980.5677530791527},{"$f":"(INT(AG114*AG47)+Control!$K$18*CustomersRes!AN4)","v":1854.664914313757},{"$f":"(INT(AH114*AH47)+Control!$K$18*CustomersRes!AO4)","v":1731.3915897421882},{"$f":"(INT(AI114*AI47)+Control!$K$18*CustomersRes!AP4)","v":1611.7346317934773},{"$f":"(INT(AJ114*AJ47)+Control!$K$18*CustomersRes!AQ4)","v":1497.6759586345099},{"$f":"(INT(AK114*AK47)+Control!$K$18*CustomersRes!AR4)","v":1391.1875788413374},{"$f":"(INT(AL114*AL47)+Control!$K$18*CustomersRes!AS4)","v":1285.2316409471307},{"$f":"(INT(AM114*AM47)+Control!$K$18*CustomersRes!AT4)","v":1190.805482742395},{"$f":"(INT(AN114*AN47)+Control!$K$18*CustomersRes!AU4)","v":1110.851455328683},{"$f":"(INT(AO114*AO47)+Control!$K$18*CustomersRes!AV4)","v":1033.2971980520397},{"$f":"(INT(AP114*AP47)+Control!$K$18*CustomersRes!AW4)","v":961.13071206177938},{"$f":"(INT(AQ114*AQ47)+Control!$K$18*CustomersRes!AX4)","v":892.32505850147049},{"$f":"(INT(AR114*AR47)+Control!$K$18*CustomersRes!AY4)","v":827.8634332089631},{"$f":"(INT(AS114*AS47)+Control!$K$18*CustomersRes!AZ4)","v":768.72411604291835},{"$f":"(INT(AT114*AT47)+Control!$K$18*CustomersRes!BA4)","v":713.88049546270372},{"$f":"(INT(AU114*AU47)+Control!$K$18*CustomersRes!BB4)","v":662.31109298539025},{"$f":"(INT(AV114*AV47)+Control!$K$18*CustomersRes!BC4)","v":614.99953752046326},{"$f":"(INT(AW114*AW47)+Control!$K$18*CustomersRes!BD4)","v":570.924539832861},{"$f":"(INT(AX114*AX47)+Control!$K$18*CustomersRes!BE4)","v":530.06991713369666},{"$f":"(INT(AY114*AY47)+Control!$K$18*CustomersRes!BF4)","v":491.41956754802817},{"$f":"(INT(AZ114*AZ47)+Control!$K$18*CustomersRes!BG4)","v":456.96246971028802},{"$f":"(INT(BA114*BA47)+Control!$K$18*CustomersRes!BH4)","v":423.67765736173658},{"$f":"(INT(BB114*BB47)+Control!$K$18*CustomersRes!BI4)","v":393.5592690749279},{"$f":"(INT(BC114*BC47)+Control!$K$18*CustomersRes!BJ4)","v":365.59147272955329},{"$f":"(INT(BD114*BD47)+Control!$K$18*CustomersRes!BK4)","v":339.7635153659055},{"$f":"(INT(BE114*BE47)+Control!$K$18*CustomersRes!BL4)","v":316.06469778907598},{"$f":"(INT(BF114*BF47)+Control!$K$18*CustomersRes!BM4)","v":293.48437430013058},{"$f":"(INT(BG114*BG47)+Control!$K$18*CustomersRes!BN4)","v":272.01695242862996},{"$f":"(INT(BH114*BH47)+Control!$K$18*CustomersRes!BO4)","v":252.65686766648679},{"$f":"(INT(BI114*BI47)+Control!$K$18*CustomersRes!BP4)","v":234.39358332815436},{"$f":"(INT(BJ114*BJ47)+Control!$K$18*CustomersRes!BQ4)","v":217.2216154115136},{"$f":"(INT(BK114*BK47)+Control!$K$18*CustomersRes!BR4)","v":202.13550733445604},{"$f":"(INT(BL114*BL47)+Control!$K$18*CustomersRes!BS4)","v":16.124829797783747},{"$f":"(INT(BM114*BM47)+Control!$K$18*CustomersRes!BT4)","v":16.044205648794829},{"$f":"(INT(BN114*BN47)+Control!$K$18*CustomersRes!BU4)","v":15.963984620550853},{"$f":"(INT(BO114*BO47)+Control!$K$18*CustomersRes!BV4)","v":15.884164697448098},{"$f":"(INT(BP114*BP47)+Control!$K$18*CustomersRes!BW4)","v":15.804743873960859},{"$f":"(INT(BQ114*BQ47)+Control!$K$18*CustomersRes!BX4)","v":15.725720154591054},{"$f":"(INT(BR114*BR47)+Control!$K$18*CustomersRes!BY4)","v":15.647091553818099},{"$f":"(INT(BS114*BS47)+Control!$K$18*CustomersRes!BZ4)","v":15.568856096049007},{"$f":"(INT(BT114*BT47)+Control!$K$18*CustomersRes!CA4)","v":15.491011815568763},{"$f":"(INT(BU114*BU47)+Control!$K$18*CustomersRes!CB4)","v":15.413556756490919},{"$f":"(INT(BV114*BV47)+Control!$K$18*CustomersRes!CC4)","v":15.336488972708464},{"$f":"(INT(BW114*BW47)+Control!$K$18*CustomersRes!CD4)","v":15.259806527844921},{"$f":"(INT(BX114*BX47)+Control!$K$18*CustomersRes!CE4)","v":15.183507495205697},{"$f":"(INT(BY114*BY47)+Control!$K$18*CustomersRes!CF4)","v":15.107589957729671},{"$f":"(INT(BZ114*BZ47)+Control!$K$18*CustomersRes!CG4)","v":15.032052007941022},{"$f":"(INT(CA114*CA47)+Control!$K$18*CustomersRes!CH4)","v":14.956891747901318},{"$f":"(INT(CB114*CB47)+Control!$K$18*CustomersRes!CI4)","v":14.88210728916181},{"$f":"(INT(CC114*CC47)+Control!$K$18*CustomersRes!CJ4)","v":14.807696752716001},{"$f":"(INT(CD114*CD47)+Control!$K$18*CustomersRes!CK4)","v":13.733658268952423}]
["Boroondara (C)",null,{"$f":"(INT(C115*C48)+Control!$K$18*CustomersRes!J5)","v":317.34500000000003},{"$f":"(INT(D115*D48)+Control!$K$18*CustomersRes!K5)","v":322.09327500000001},{"$f":"(INT(E115*E48)+Control!$K$18*CustomersRes!L5)","v":326.91780862500002},{"$f":"(INT(F115*F48)+Control!$K$18*CustomersRes!M5)","v":331.81321958187505},{"$f":"(INT(G115*G48)+Control!$K$18*CustomersRes!N5)","v":336.77915348396567},{"$f":"(INT(H115*H48)+Control!$K$18*CustomersRes!O5)","v":341.82525771654582},{"$f":"(INT(I115*I48)+Control!$K$18*CustomersRes!P5)","v":346.95113142796311},{"$f":"(INT(J115*J48)+Control!$K$18*CustomersRes!Q5)","v":352.15137577082328},{"$f":"(INT(K115*K48)+Control!$K$18*CustomersRes!R5)","v":357.43061889196923},{"$f":"(INT(L115*L48)+Control!$K$18*CustomersRes!S5)","v":362.78346579750934},{"$f":"(INT(M115*M48)+Control!$K$18*CustomersRes!T5)","v":368.21954846852185},{"$f":"(INT(N115*N48)+Control!$K$18*CustomersRes!U5)","v":366.37845072617921},{"$f":"(INT(O115*O48)+Control!$K$18*CustomersRes!V5)","v":364.54655847254838},{"$f":"(INT(P115*P48)+Control!$K$18*CustomersRes!W5)","v":362.7238256801856},{"$f":"(INT(Q115*Q48)+Control!$K$18*CustomersRes!X5)","v":360.91020655178471},{"$f":"(INT(R115*R48)+Control!$K$18*CustomersRes!Y5)","v":360.10565551902585},{"$f":"(INT(S115*S48)+Control!$K$18*CustomersRes!Z5)","v":362.30512724143068},{"$f":"(INT(T115*T48)+Control!$K$18*CustomersRes!AA5)","v":369.49360160522355},{"$f":"(INT(U115*U48)+Control!$K$18*CustomersRes!AB5)","v":391.64613359719743},{"$f":"(INT(V115*V48)+Control!$K$18*CustomersRes!AC5)","v":425.68790292921142},{"$f":"(INT(W115*W48)+Control!$K$18*CustomersRes!AD5)","v":474.55946341456536},{"$f":"(INT(X115*X48)+Control!$K$18*CustomersRes!AE5)","v":743.18666609749243},{"$f":"(INT(Y115*Y48)+Control!$K$18*CustomersRes!AF5)","v":1462.4707327670051},{"$f":"(INT(Z115*Z48)+Control!$K$18*CustomersRes!AG5)","v":2247.1583791031699},{"$f":"(INT(AA115*AA48)+Control!$K$18*CustomersRes!AH5)","v":3059.922587207654},{"$f":"(INT(AB115*AB48)+Control!$K$18*CustomersRes!AI5)","v":3482.6229742716159},{"$f":"(INT(AC115*AC48)+Control!$K$18*CustomersRes!AJ5)","v":3653.2098594002578},{"$f":"(INT(AD115*AD48)+Control!$K$18*CustomersRes!AK5)","v":3627.9438101032565},{"$f":"(INT(AE115*AE48)+Control!$K$18*CustomersRes!AL5)","v":3509.8040910527402},{"$f":"(INT(AF115*AF48)+Control!$K$18*CustomersRes!AM5)","v":3347.2550705974763},{"$f":"(INT(AG115*AG48)+Control!$K$18*CustomersRes!AN5)","v":3138.518795244489},{"$f":"(INT(AH115*AH48)+Control!$K$18*CustomersRes!AO5)","v":2933.8262012682667},{"$f":"(INT(AI115*AI48)+Control!$K$18*CustomersRes!AP5)","v":2732.1570702619251},{"$f":"(INT(AJ115*AJ48)+Control!$K$18*CustomersRes!AQ5)","v":2539.4962849106155},{"$f":"(INT(AK115*AK48)+Control!$K$18*CustomersRes!AR5)","v":2359.7988034860628},{"$f":"(INT(AL115*AL48)+Control!$K$18*CustomersRes!AS5)","v":2175.9998094686321},{"$f":"(INT(AM115*AM48)+Control!$K$18*CustomersRes!AT5)","v":2016.119810421289},{"$f":"(INT(AN115*AN48)+Control!$K$18*CustomersRes!AU5)","v":1882.0392113691828},{"$f":"(INT(AO115*AO48)+Control!$K$18*CustomersRes!AV5)","v":1752.6290153123368},{"$f":"(INT(AP115*AP48)+Control!$K$18*CustomersRes!AW5)","v":1629.865870235775},{"$f":"(INT(AQ115*AQ48)+Control!$K$18*CustomersRes!AX5)","v":1513.7165408845963},{"$f":"(INT(AR115*AR48)+Control!$K$18*CustomersRes!AY5)","v":1405.1479581801732},{"$f":"(INT(AS115*AS48)+Control!$K$18*CustomersRes!AZ5)","v":1304.1222183892723},{"$f":"(INT(AT115*AT48)+Control!$K$18*CustomersRes!BA5)","v":1211.6016072973259},{"$f":"(INT(AU115*AU48)+Control!$K$18*CustomersRes!BB5)","v":1124.5435992608393},{"$f":"(INT(AV115*AV48)+Control!$K$18*CustomersRes!BC5)","v":1043.9208812645352},{"$f":"(INT(AW115*AW48)+Control!$K$18*CustomersRes!BD5)","v":968.70127685821251},{"$f":"(INT(AX115*AX48)+Control!$K$18*CustomersRes!BE5)","v":899.85777047392139},{"$f":"(INT(AY115*AY48)+Control!$K$18*CustomersRes!BF5)","v":835.35848162155185},{"$f":"(INT(AZ115*AZ48)+Control!$K$18*CustomersRes!BG5)","v":775.18168921344409},{"$f":"(INT(BA115*BA48)+Control!$K$18*CustomersRes!BH5)","v":719.30578076737686},{"$f":"(INT(BB115*BB48)+Control!$K$18*CustomersRes!BI5)","v":667.70925186353998},{"$f":"(INT(BC115*BC48)+Control!$K$18*CustomersRes!BJ5)","v":620.37070560422228},{"$f":"(INT(BD115*BD48)+Control!$K$18*CustomersRes!BK5)","v":576.26885207620114},{"$f":"(INT(BE115*BE48)+Control!$K$18*CustomersRes!BL5)","v":535.38750781582007},{"$f":"(INT(BF115*BF48)+Control!$K$18*CustomersRes!BM5)","v":496.71057027674101},{"$f":"(INT(BG115*BG48)+Control!$K$18*CustomersRes!BN5)","v":461.2270174253573},{"$f":"(INT(BH115*BH48)+Control!$K$18*CustomersRes!BO5)","v":427.92088233823051},{"$f":"(INT(BI115*BI48)+Control!$K$18*CustomersRes!BP5)","v":397.78127792653936},{"$f":"(INT(BJ115*BJ48)+Control!$K$18*CustomersRes!BQ5)","v":368.79237153690667},{"$f":"(INT(BK115*BK48)+Control!$K$18*CustomersRes!BR5)","v":342.94840967922215},{"$f":"(INT(BL115*BL48)+Control!$K$18*CustomersRes!BS5)","v":28.233667630826044},{"$f":"(INT(BM115*BM48)+Control!$K$18*CustomersRes!BT5)","v":28.092499292671913},{"$f":"(INT(BN115*BN48)+Control!$K$18*CustomersRes!BU5)","v":27.952036796208553},{"$f":"(INT(BO115*BO48)+Control!$K$18*CustomersRes!BV5)","v":27.81227661222751},{"$f":"(INT(BP115*BP48)+Control!$K$18*CustomersRes!BW5)","v":27.67321522916637},{"$f":"(INT(BQ115*BQ48)+Control!$K$18*CustomersRes!BX5)","v":27.534849153020541},{"$f":"(INT(BR115*BR48)+Control!$K$18*CustomersRes!BY5)","v":27.39717490725544},{"$f":"(INT(BS115*BS48)+Control!$K$18*CustomersRes!BZ5)","v":27.260189032719165},{"$f":"(INT(BT115*BT48)+Control!$K$18*CustomersRes!CA5)","v":27.123888087555567},{"$f":"(INT(BU115*BU48)+Control!$K$18*CustomersRes!CB5)","v":27.988268647117788},{"$f":"(INT(BV115*BV48)+Control!$K$18*CustomersRes!CC5)","v":27.848327303882201},{"$f":"(INT(BW115*BW48)+Control!$K$18*CustomersRes!CD5)","v":27.709085667362793},{"$f":"(INT(BX115*BX48)+Control!$K$18*CustomersRes!CE5)","v":27.570540239025977},{"$f":"(INT(BY115*BY48)+Control!$K$18*CustomersRes!CF5)","v":27.432687537830848},{"$f":"(INT(BZ115*BZ48)+Control!$K$18*CustomersRes!CG5)","v":27.295524100141694},{"$f":"(INT(CA115*CA48)+Control!$K$18*CustomersRes!CH5)","v":27.159046479640985},{"$f":"(INT(CB115*CB48)+Control!$K$18*CustomersRes!CI5)","v":27.023251247242779},{"$f":"(INT(CC115*CC48)+Control!$K$18*CustomersRes!CJ5)","v":26.888134991006567},{"$f":"(INT(CD115*CD48)+Control!$K$18*CustomersRes!CK5)","v":24.753694316051533}]
["Cardinia (S)",null,{"$f":"(INT(C116*C49)+Control!$K$18*CustomersRes!J6)","v":20.85},{"$f":"(INT(D116*D49)+Control!$K$18*CustomersRes!K6)","v":21.16075},{"$f":"(INT(E116*E49)+Control!$K$18*CustomersRes!L6)","v":21.474946249999999},{"$f":"(INT(F116*F49)+Control!$K$18*CustomersRes!M6)","v":21.792571518749998},{"$f":"(INT(G116*G49)+Control!$K$18*CustomersRes!N6)","v":22.118608661156244},{"$f":"(INT(H116*H49)+Control!$K$18*CustomersRes!O6)","v":22.448015617850466},{"$f":"(INT(I116*I49)+Control!$K$18*CustomersRes!P6)","v":22.780775539761212},{"$f":"(INT(J116*J49)+Control!$K$18*CustomersRes!Q6)","v":23.121871662062404},{"$f":"(INT(K116*K49)+Control!$K$18*CustomersRes!R6)","v":23.466262303752092},{"$f":"(INT(L116*L49)+Control!$K$18*CustomersRes!S6)","v":23.813930992233331},{"$f":"(INT(M116*M49)+Control!$K$18*CustomersRes!T6)","v":24.169861337272163},{"$f":"(INT(N116*N49)+Control!$K$18*CustomersRes!U6)","v":24.049012030585804},{"$f":"(INT(O116*O49)+Control!$K$18*CustomersRes!V6)","v":23.928766970432875},{"$f":"(INT(P116*P49)+Control!$K$18*CustomersRes!W6)","v":23.809123135580712},{"$f":"(INT(Q116*Q49)+Control!$K$18*CustomersRes!X6)","v":23.690077519902808},{"$f":"(INT(R116*R49)+Control!$K$18*CustomersRes!Y6)","v":23.571627132303291},{"$f":"(INT(S116*S49)+Control!$K$18*CustomersRes!Z6)","v":23.453768996641774},{"$f":"(INT(T116*T49)+Control!$K$18*CustomersRes!AA6)","v":23.336500151658566},{"$f":"(INT(U116*U49)+Control!$K$18*CustomersRes!AB6)","v":23.219817650900271},{"$f":"(INT(V116*V49)+Control!$K$18*CustomersRes!AC6)","v":23.103718562645774},{"$f":"(INT(W116*W49)+Control!$K$18*CustomersRes!AD6)","v":22.988199969832547},{"$f":"(INT(X116*X49)+Control!$K$18*CustomersRes!AE6)","v":22.873258969983382},{"$f":"(INT(Y116*Y49)+Control!$K$18*CustomersRes!AF6)","v":22.758892675133467},{"$f":"(INT(Z116*Z49)+Control!$K$18*CustomersRes!AG6)","v":22.645098211757801},{"$f":"(INT(AA116*AA49)+Control!$K$18*CustomersRes!AH6)","v":23.531872720699013},{"$f":"(INT(AB116*AB49)+Control!$K$18*CustomersRes!AI6)","v":23.41421335709552},{"$f":"(INT(AC116*AC49)+Control!$K$18*CustomersRes!AJ6)","v":24.297142290310038},{"$f":"(INT(AD116*AD49)+Control!$K$18*CustomersRes!AK6)","v":26.17565657885849},{"$f":"(INT(AE116*AE49)+Control!$K$18*CustomersRes!AL6)","v":28.044778295964196},{"$f":"(INT(AF116*AF49)+Control!$K$18*CustomersRes!AM6)","v":32.904554404484372},{"$f":"(INT(AG116*AG49)+Control!$K$18*CustomersRes!AN6)","v":37.74003163246195},{"$f":"(INT(AH116*AH49)+Control!$K$18*CustomersRes!AO6)","v":46.551331474299644},{"$f":"(INT(AI116*AI49)+Control!$K$18*CustomersRes!AP6)","v":59.318574816928148},{"$f":"(INT(AJ116*AJ49)+Control!$K$18*CustomersRes!AQ6)","v":74.021981942843496},{"$f":"(INT(AK116*AK49)+Control!$K$18*CustomersRes!AR6)","v":93.65187203312928},{"$f":"(INT(AL116*AL49)+Control!$K$18*CustomersRes!AS6)","v":40.18361267296364},{"$f":"(INT(AM116*AM49)+Control!$K$18*CustomersRes!AT6)","v":35.982694609598823},{"$f":"(INT(AN116*AN49)+Control!$K$18*CustomersRes!AU6)","v":42.802781136550827},{"$f":"(INT(AO116*AO49)+Control!$K$18*CustomersRes!AV6)","v":56.588767230868072},{"$f":"(INT(AP116*AP49)+Control!$K$18*CustomersRes!AW6)","v":72.305823394713741},{"$f":"(INT(AQ116*AQ49)+Control!$K$18*CustomersRes!AX6)","v":94.94429427774017},{"$f":"(INT(AR116*AR49)+Control!$K$18*CustomersRes!AY6)","v":124.46957280635147},{"$f":"(INT(AS116*AS49)+Control!$K$18*CustomersRes!AZ6)","v":156.84722494231971},{"$f":"(INT(AT116*AT49)+Control!$K$18*CustomersRes!BA6)","v":185.0629888176081},{"$f":"(INT(AU116*AU49)+Control!$K$18*CustomersRes!BB6)","v":201.13767387352007},{"$f":"(INT(AV116*AV49)+Control!$K$18*CustomersRes!BC6)","v":204.13198550415245},{"$f":"(INT(AW116*AW49)+Control!$K$18*CustomersRes!BD6)","v":198.11132557663171},{"$f":"(INT(AX116*AX49)+Control!$K$18*CustomersRes!BE6)","v":185.12076894874855},{"$f":"(INT(AY116*AY49)+Control!$K$18*CustomersRes!BF6)","v":173.19516510400479},{"$f":"(INT(AZ116*AZ49)+Control!$K$18*CustomersRes!BG6)","v":161.32918927848476},{"$f":"(INT(BA116*BA49)+Control!$K$18*CustomersRes!BH6)","v":149.52254333209234},{"$f":"(INT(BB116*BB49)+Control!$K$18*CustomersRes!BI6)","v":138.77493061543188},{"$f":"(INT(BC116*BC49)+Control!$K$18*CustomersRes!BJ6)","v":129.08105596235472},{"$f":"(INT(BD116*BD49)+Control!$K$18*CustomersRes!BK6)","v":119.43565068254296},{"$f":"(INT(BE116*BE49)+Control!$K$18*CustomersRes!BL6)","v":110.83847242913025},{"$f":"(INT(BF116*BF49)+Control!$K$18*CustomersRes!BM6)","v":103.28428006698459},{"$f":"(INT(BG116*BG49)+Control!$K$18*CustomersRes!BN6)","v":95.767858666649673},{"$f":"(INT(BH116*BH49)+Control!$K$18*CustomersRes!BO6)","v":88.289019373316421},{"$f":"(INT(BI116*BI49)+Control!$K$18*CustomersRes!BP6)","v":81.847574276449834},{"$f":"(INT(BJ116*BJ49)+Control!$K$18*CustomersRes!BQ6)","v":77.438336405067588},{"$f":"(INT(BK116*BK49)+Control!$K$18*CustomersRes!BR6)","v":72.051144723042256},{"$f":"(INT(BL116*BL49)+Control!$K$18*CustomersRes!BS6)","v":4.69088899942704},{"$f":"(INT(BM116*BM49)+Control!$K$18*CustomersRes!BT6)","v":4.6674345544299047},{"$f":"(INT(BN116*BN49)+Control!$K$18*CustomersRes!BU6)","v":4.6440973816577555},{"$f":"(INT(BO116*BO49)+Control!$K$18*CustomersRes!BV6)","v":4.6208768947494665},{"$f":"(INT(BP116*BP49)+Control!$K$18*CustomersRes!BW6)","v":4.5977725102757194},{"$f":"(INT(BQ116*BQ49)+Control!$K$18*CustomersRes!BX6)","v":4.5747836477243409},{"$f":"(INT(BR116*BR49)+Control!$K$18*CustomersRes!BY6)","v":4.5519097294857191},{"$f":"(INT(BS116*BS49)+Control!$K$18*CustomersRes!BZ6)","v":4.5291501808382906},{"$f":"(INT(BT116*BT49)+Control!$K$18*CustomersRes!CA6)","v":4.5065044299340995},{"$f":"(INT(BU116*BU49)+Control!$K$18*CustomersRes!CB6)","v":4.4839719077844284},{"$f":"(INT(BV116*BV49)+Control!$K$18*CustomersRes!CC6)","v":4.4615520482455064},{"$f":"(INT(BW116*BW49)+Control!$K$18*CustomersRes!CD6)","v":4.4392442880042795},{"$f":"(INT(BX116*BX49)+Control!$K$18*CustomersRes!CE6)","v":4.4170480665642575},{"$f":"(INT(BY116*BY49)+Control!$K$18*CustomersRes!CF6)","v":4.3949628262314366},{"$f":"(INT(BZ116*BZ49)+Control!$K$18*CustomersRes!CG6)","v":4.3729880121002793},{"$f":"(INT(CA116*CA49)+Control!$K$18*CustomersRes!CH6)","v":4.351123072039778},{"$f":"(INT(CB116*CB49)+Control!$K$18*CustomersRes!CI6)","v":4.3293674566795799},{"$f":"(INT(CC116*CC49)+Control!$K$18*CustomersRes!CJ6)","v":4.3077206193961812},{"$f":"(INT(CD116*CD49)+Control!$K$18*CustomersRes!CK6)","v":4.2861820162992004}]
["Casey (C)",null,{"$f":"(INT(C117*C50)+Control!$K$18*CustomersRes!J7)","v":65.364999999999995},{"$f":"(INT(D117*D50)+Control!$K$18*CustomersRes!K7)","v":66.343175000000002},{"$f":"(INT(E117*E50)+Control!$K$18*CustomersRes!L7)","v":67.336459125000005},{"$f":"(INT(F117*F50)+Control!$K$18*CustomersRes!M7)","v":68.344776829375007},{"$f":"(INT(G117*G50)+Control!$K$18*CustomersRes!N7)","v":69.368052945228129},{"$f":"(INT(H117*H50)+Control!$K$18*CustomersRes!O7)","v":70.40621268050198},{"$f":"(INT(I117*I50)+Control!$K$18*CustomersRes!P7)","v":71.459181617099475},{"$f":"(INT(J117*J50)+Control!$K$18*CustomersRes!Q7)","v":72.526885709013982},{"$f":"(INT(K117*K50)+Control!$K$18*CustomersRes!R7)","v":73.614251280468906},{"$f":"(INT(L117*L50)+Control!$K$18*CustomersRes!S7)","v":74.71618002406656},{"$f":"(INT(M117*M50)+Control!$K$18*CustomersRes!T7)","v":75.832599123946224},{"$f":"(INT(N117*N50)+Control!$K$18*CustomersRes!U7)","v":75.453436128326501},{"$f":"(INT(O117*O50)+Control!$K$18*CustomersRes!V7)","v":75.076168947684877},{"$f":"(INT(P117*P50)+Control!$K$18*CustomersRes!W7)","v":74.700788102946461},{"$f":"(INT(Q117*Q50)+Control!$K$18*CustomersRes!X7)","v":74.327284162431724},{"$f":"(INT(R117*R50)+Control!$K$18*CustomersRes!Y7)","v":73.955647741619572},{"$f":"(INT(S117*S50)+Control!$K$18*CustomersRes!Z7)","v":73.585869502911478},{"$f":"(INT(T117*T50)+Control!$K$18*CustomersRes!AA7)","v":73.217940155396917},{"$f":"(INT(U117*U50)+Control!$K$18*CustomersRes!AB7)","v":72.851850454619935},{"$f":"(INT(V117*V50)+Control!$K$18*CustomersRes!AC7)","v":73.487591202346835},{"$f":"(INT(W117*W50)+Control!$K$18*CustomersRes!AD7)","v":74.120153246335107},{"$f":"(INT(X117*X50)+Control!$K$18*CustomersRes!AE7)","v":79.749552480103432},{"$f":"(INT(Y117*Y50)+Control!$K$18*CustomersRes!AF7)","v":97.350804717702914},{"$f":"(INT(Z117*Z50)+Control!$K$18*CustomersRes!AG7)","v":126.8640506941144},{"$f":"(INT(AA117*AA50)+Control!$K$18*CustomersRes!AH7)","v":185.22973044064383},{"$f":"(INT(AB117*AB50)+Control!$K$18*CustomersRes!AI7)","v":261.30358178844062},{"$f":"(INT(AC117*AC50)+Control!$K$18*CustomersRes!AJ7)","v":361.9970638794984},{"$f":"(INT(AD117*AD50)+Control!$K$18*CustomersRes!AK7)","v":467.18707856010093},{"$f":"(INT(AE117*AE50)+Control!$K$18*CustomersRes!AL7)","v":573.85114316730039},{"$f":"(INT(AF117*AF50)+Control!$K$18*CustomersRes!AM7)","v":678.98188745146388},{"$f":"(INT(AG117*AG50)+Control!$K$18*CustomersRes!AN7)","v":702.58697801420658},{"$f":"(INT(AH117*AH50)+Control!$K$18*CustomersRes!AO7)","v":714.07404312413553},{"$f":"(INT(AI117*AI50)+Control!$K$18*CustomersRes!AP7)","v":692.50367290851489},{"$f":"(INT(AJ117*AJ50)+Control!$K$18*CustomersRes!AQ7)","v":657.04115454397231},{"$f":"(INT(AK117*AK50)+Control!$K$18*CustomersRes!AR7)","v":617.75594877125241},{"$f":"(INT(AL117*AL50)+Control!$K$18*CustomersRes!AS7)","v":523.6671690273962},{"$f":"(INT(AM117*AM50)+Control!$K$18*CustomersRes!AT7)","v":474.04883318225922},{"$f":"(INT(AN117*AN50)+Control!$K$18*CustomersRes!AU7)","v":470.67858901634793},{"$f":"(INT(AO117*AO50)+Control!$K$18*CustomersRes!AV7)","v":458.32519607126613},{"$f":"(INT(AP117*AP50)+Control!$K$18*CustomersRes!AW7)","v":434.03357009090985},{"$f":"(INT(AQ117*AQ50)+Control!$K$18*CustomersRes!AX7)","v":407.86340224045529},{"$f":"(INT(AR117*AR50)+Control!$K$18*CustomersRes!AY7)","v":381.824085229253},{"$f":"(INT(AS117*AS50)+Control!$K$18*CustomersRes!AZ7)","v":355.91496480310673},{"$f":"(INT(AT117*AT50)+Control!$K$18*CustomersRes!BA7)","v":330.1353899790912},{"$f":"(INT(AU117*AU50)+Control!$K$18*CustomersRes!BB7)","v":306.48471302919575},{"$f":"(INT(AV117*AV50)+Control!$K$18*CustomersRes!BC7)","v":284.95228946404978},{"$f":"(INT(AW117*AW50)+Control!$K$18*CustomersRes!BD7)","v":264.52752801672955},{"$f":"(INT(AX117*AX50)+Control!$K$18*CustomersRes!BE7)","v":245.20489037664586},{"$f":"(INT(AY117*AY50)+Control!$K$18*CustomersRes!BF7)","v":227.97886592476263},{"$f":"(INT(AZ117*AZ50)+Control!$K$18*CustomersRes!BG7)","v":210.83897159513884},{"$f":"(INT(BA117*BA50)+Control!$K$18*CustomersRes!BH7)","v":195.78477673716313},{"$f":"(INT(BB117*BB50)+Control!$K$18*CustomersRes!BI7)","v":181.80585285347732},{"$f":"(INT(BC117*BC50)+Control!$K$18*CustomersRes!BJ7)","v":168.89682358920993},{"$f":"(INT(BD117*BD50)+Control!$K$18*CustomersRes!BK7)","v":157.05233947126388},{"$f":"(INT(BE117*BE50)+Control!$K$18*CustomersRes!BL7)","v":145.26707777390757},{"$f":"(INT(BF117*BF50)+Control!$K$18*CustomersRes!BM7)","v":136.54074238503802},{"$f":"(INT(BG117*BG50)+Control!$K$18*CustomersRes!BN7)","v":126.85803867311283},{"$f":"(INT(BH117*BH50)+Control!$K$18*CustomersRes!BO7)","v":117.22374847974727},{"$f":"(INT(BI117*BI50)+Control!$K$18*CustomersRes!BP7)","v":108.63762973734853},{"$f":"(INT(BJ117*BJ50)+Control!$K$18*CustomersRes!BQ7)","v":101.09444158866179},{"$f":"(INT(BK117*BK50)+Control!$K$18*CustomersRes!BR7)","v":93.588969380718481},{"$f":"(INT(BL117*BL50)+Control!$K$18*CustomersRes!BS7)","v":6.1210245338148912},{"$f":"(INT(BM117*BM50)+Control!$K$18*CustomersRes!BT7)","v":6.0904194111458168},{"$f":"(INT(BN117*BN50)+Control!$K$18*CustomersRes!BU7)","v":6.0599673140900876},{"$f":"(INT(BO117*BO50)+Control!$K$18*CustomersRes!BV7)","v":6.0296674775196371},{"$f":"(INT(BP117*BP50)+Control!$K$18*CustomersRes!BW7)","v":5.9995191401320396},{"$f":"(INT(BQ117*BQ50)+Control!$K$18*CustomersRes!BX7)","v":5.9695215444313794},{"$f":"(INT(BR117*BR50)+Control!$K$18*CustomersRes!BY7)","v":5.9396739367092222},{"$f":"(INT(BS117*BS50)+Control!$K$18*CustomersRes!BZ7)","v":5.9099755670256764},{"$f":"(INT(BT117*BT50)+Control!$K$18*CustomersRes!CA7)","v":5.880425689190548},{"$f":"(INT(BU117*BU50)+Control!$K$18*CustomersRes!CB7)","v":5.8510235607445953},{"$f":"(INT(BV117*BV50)+Control!$K$18*CustomersRes!CC7)","v":5.821768442940872},{"$f":"(INT(BW117*BW50)+Control!$K$18*CustomersRes!CD7)","v":5.7926596007261688},{"$f":"(INT(BX117*BX50)+Control!$K$18*CustomersRes!CE7)","v":5.7636963027225372},{"$f":"(INT(BY117*BY50)+Control!$K$18*CustomersRes!CF7)","v":5.7348778212089249},{"$f":"(INT(BZ117*BZ50)+Control!$K$18*CustomersRes!CG7)","v":5.7062034321028801},{"$f":"(INT(CA117*CA50)+Control!$K$18*CustomersRes!CH7)","v":5.6776724149423652},{"$f":"(INT(CB117*CB50)+Control!$K$18*CustomersRes!CI7)","v":5.6492840528676531},{"$f":"(INT(CC117*CC50)+Control!$K$18*CustomersRes!CJ7)","v":5.6210376326033149},{"$f":"(INT(CD117*CD50)+Control!$K$18*CustomersRes!CK7)","v":5.5929324444402981}]
["Frankston (C)",null,{"$f":"(INT(C118*C51)+Control!$K$18*CustomersRes!J8)","v":5.0000000000000001E-3},{"$f":"(INT(D118*D51)+Control!$K$18*CustomersRes!K8)","v":4.9750000000000003E-3},{"$f":"(INT(E118*E51)+Control!$K$18*CustomersRes!L8)","v":4.9501250000000005E-3},{"$f":"(INT(F118*F51)+Control!$K$18*CustomersRes!M8)","v":4.9253743750000004E-3},{"$f":"(INT(G118*G51)+Control!$K$18*CustomersRes!N8)","v":4.9007475031250004E-3},{"$f":"(INT(H118*H51)+Control!$K$18*CustomersRes!O8)","v":4.876243765609376E-3},{"$f":"(INT(I118*I51)+Control!$K$18*CustomersRes!P8)","v":4.8518625467813287E-3},{"$f":"(INT(J118*J51)+Control!$K$18*CustomersRes!Q8)","v":4.8276032340474218E-3},{"$f":"(INT(K118*K51)+Control!$K$18*CustomersRes!R8)","v":4.8034652178771849E-3},{"$f":"(INT(L118*L51)+Control!$K$18*CustomersRes!S8)","v":4.779447891787799E-3},{"$f":"(INT(M118*M51)+Control!$K$18*CustomersRes!T8)","v":4.7555506523288601E-3},{"$f":"(INT(N118*N51)+Control!$K$18*CustomersRes!U8)","v":4.7317728990672152E-3},{"$f":"(INT(O118*O51)+Control!$K$18*CustomersRes!V8)","v":4.7081140345718794E-3},{"$f":"(INT(P118*P51)+Control!$K$18*CustomersRes!W8)","v":4.6845734643990201E-3},{"$f":"(INT(Q118*Q51)+Control!$K$18*CustomersRes!X8)","v":4.6611505970770252E-3},{"$f":"(INT(R118*R51)+Control!$K$18*CustomersRes!Y8)","v":4.6378448440916398E-3},{"$f":"(INT(S118*S51)+Control!$K$18*CustomersRes!Z8)","v":4.6146556198711818E-3},{"$f":"(INT(T118*T51)+Control!$K$18*CustomersRes!AA8)","v":4.5915823417718256E-3},{"$f":"(INT(U118*U51)+Control!$K$18*CustomersRes!AB8)","v":4.5686244300629664E-3},{"$f":"(INT(V118*V51)+Control!$K$18*CustomersRes!AC8)","v":4.5457813079126516E-3},{"$f":"(INT(W118*W51)+Control!$K$18*CustomersRes!AD8)","v":4.523052401373088E-3},{"$f":"(INT(X118*X51)+Control!$K$18*CustomersRes!AE8)","v":4.5004371393662229E-3},{"$f":"(INT(Y118*Y51)+Control!$K$18*CustomersRes!AF8)","v":4.477934953669392E-3},{"$f":"(INT(Z118*Z51)+Control!$K$18*CustomersRes!AG8)","v":4.4555452789010446E-3},{"$f":"(INT(AA118*AA51)+Control!$K$18*CustomersRes!AH8)","v":4.4332675525065399E-3},{"$f":"(INT(AB118*AB51)+Control!$K$18*CustomersRes!AI8)","v":4.411101214744007E-3},{"$f":"(INT(AC118*AC51)+Control!$K$18*CustomersRes!AJ8)","v":4.3890457086702877E-3},{"$f":"(INT(AD118*AD51)+Control!$K$18*CustomersRes!AK8)","v":4.3671004801269361E-3},{"$f":"(INT(AE118*AE51)+Control!$K$18*CustomersRes!AL8)","v":4.3452649777263016E-3},{"$f":"(INT(AF118*AF51)+Control!$K$18*CustomersRes!AM8)","v":4.3235386528376702E-3},{"$f":"(INT(AG118*AG51)+Control!$K$18*CustomersRes!AN8)","v":4.3019209595734822E-3},{"$f":"(INT(AH118*AH51)+Control!$K$18*CustomersRes!AO8)","v":4.2804113547756147E-3},{"$f":"(INT(AI118*AI51)+Control!$K$18*CustomersRes!AP8)","v":4.2590092980017364E-3},{"$f":"(INT(AJ118*AJ51)+Control!$K$18*CustomersRes!AQ8)","v":4.2377142515117282E-3},{"$f":"(INT(AK118*AK51)+Control!$K$18*CustomersRes!AR8)","v":4.2165256802541694E-3},{"$f":"(INT(AL118*AL51)+Control!$K$18*CustomersRes!AS8)","v":4.1954430518528979E-3},{"$f":"(INT(AM118*AM51)+Control!$K$18*CustomersRes!AT8)","v":4.1744658365936334E-3},{"$f":"(INT(AN118*AN51)+Control!$K$18*CustomersRes!AU8)","v":4.1535935074106653E-3},{"$f":"(INT(AO118*AO51)+Control!$K$18*CustomersRes!AV8)","v":4.1328255398736117E-3},{"$f":"(INT(AP118*AP51)+Control!$K$18*CustomersRes!AW8)","v":4.112161412174244E-3},{"$f":"(INT(AQ118*AQ51)+Control!$K$18*CustomersRes!AX8)","v":4.0916006051133725E-3},{"$f":"(INT(AR118*AR51)+Control!$K$18*CustomersRes!AY8)","v":4.0711426020878056E-3},{"$f":"(INT(AS118*AS51)+Control!$K$18*CustomersRes!AZ8)","v":4.0507868890773662E-3},{"$f":"(INT(AT118*AT51)+Control!$K$18*CustomersRes!BA8)","v":4.0305329546319792E-3},{"$f":"(INT(AU118*AU51)+Control!$K$18*CustomersRes!BB8)","v":4.0103802898588201E-3},{"$f":"(INT(AV118*AV51)+Control!$K$18*CustomersRes!BC8)","v":3.9903283884095263E-3},{"$f":"(INT(AW118*AW51)+Control!$K$18*CustomersRes!BD8)","v":3.9703767464674784E-3},{"$f":"(INT(AX118*AX51)+Control!$K$18*CustomersRes!BE8)","v":3.9505248627351407E-3},{"$f":"(INT(AY118*AY51)+Control!$K$18*CustomersRes!BF8)","v":3.9307722384214648E-3},{"$f":"(INT(AZ118*AZ51)+Control!$K$18*CustomersRes!BG8)","v":3.9111183772293579E-3},{"$f":"(INT(BA118*BA51)+Control!$K$18*CustomersRes!BH8)","v":3.8915627853432114E-3},{"$f":"(INT(BB118*BB51)+Control!$K$18*CustomersRes!BI8)","v":3.8721049714164953E-3},{"$f":"(INT(BC118*BC51)+Control!$K$18*CustomersRes!BJ8)","v":3.8527444465594127E-3},{"$f":"(INT(BD118*BD51)+Control!$K$18*CustomersRes!BK8)","v":3.8334807243266158E-3},{"$f":"(INT(BE118*BE51)+Control!$K$18*CustomersRes!BL8)","v":3.8143133207049823E-3},{"$f":"(INT(BF118*BF51)+Control!$K$18*CustomersRes!BM8)","v":3.795241754101457E-3},{"$f":"(INT(BG118*BG51)+Control!$K$18*CustomersRes!BN8)","v":3.7762655453309497E-3},{"$f":"(INT(BH118*BH51)+Control!$K$18*CustomersRes!BO8)","v":3.7573842176042952E-3},{"$f":"(INT(BI118*BI51)+Control!$K$18*CustomersRes!BP8)","v":3.7385972965162735E-3},{"$f":"(INT(BJ118*BJ51)+Control!$K$18*CustomersRes!BQ8)","v":3.7199043100336923E-3},{"$f":"(INT(BK118*BK51)+Control!$K$18*CustomersRes!BR8)","v":3.701304788483524E-3},{"$f":"(INT(BL118*BL51)+Control!$K$18*CustomersRes!BS8)","v":3.6827982645411062E-3},{"$f":"(INT(BM118*BM51)+Control!$K$18*CustomersRes!BT8)","v":3.6643842732184007E-3},{"$f":"(INT(BN118*BN51)+Control!$K$18*CustomersRes!BU8)","v":3.6460623518523088E-3},{"$f":"(INT(BO118*BO51)+Control!$K$18*CustomersRes!BV8)","v":3.6278320400930475E-3},{"$f":"(INT(BP118*BP51)+Control!$K$18*CustomersRes!BW8)","v":3.6096928798925823E-3},{"$f":"(INT(BQ118*BQ51)+Control!$K$18*CustomersRes!BX8)","v":3.5916444154931193E-3},{"$f":"(INT(BR118*BR51)+Control!$K$18*CustomersRes!BY8)","v":3.5736861934156541E-3},{"$f":"(INT(BS118*BS51)+Control!$K$18*CustomersRes!BZ8)","v":3.5558177624485754E-3},{"$f":"(INT(BT118*BT51)+Control!$K$18*CustomersRes!CA8)","v":3.5380386736363323E-3},{"$f":"(INT(BU118*BU51)+Control!$K$18*CustomersRes!CB8)","v":3.5203484802681507E-3},{"$f":"(INT(BV118*BV51)+Control!$K$18*CustomersRes!CC8)","v":3.5027467378668099E-3},{"$f":"(INT(BW118*BW51)+Control!$K$18*CustomersRes!CD8)","v":3.485233004177476E-3},{"$f":"(INT(BX118*BX51)+Control!$K$18*CustomersRes!CE8)","v":3.4678068391565888E-3},{"$f":"(INT(BY118*BY51)+Control!$K$18*CustomersRes!CF8)","v":3.4504678049608055E-3},{"$f":"(INT(BZ118*BZ51)+Control!$K$18*CustomersRes!CG8)","v":3.4332154659360015E-3},{"$f":"(INT(CA118*CA51)+Control!$K$18*CustomersRes!CH8)","v":3.4160493886063216E-3},{"$f":"(INT(CB118*CB51)+Control!$K$18*CustomersRes!CI8)","v":3.39896914166329E-3},{"$f":"(INT(CC118*CC51)+Control!$K$18*CustomersRes!CJ8)","v":3.3819742959549739E-3},{"$f":"(INT(CD118*CD51)+Control!$K$18*CustomersRes!CK8)","v":3.365064424475199E-3}]
["Glen Eira (C)",null,{"$f":"(INT(C119*C52)+Control!$K$18*CustomersRes!J9)","v":260.75},{"$f":"(INT(D119*D52)+Control!$K$18*CustomersRes!K9)","v":264.65125},{"$f":"(INT(E119*E52)+Control!$K$18*CustomersRes!L9)","v":268.61799374999998},{"$f":"(INT(F119*F52)+Control!$K$18*CustomersRes!M9)","v":272.63990378124998},{"$f":"(INT(G119*G52)+Control!$K$18*CustomersRes!N9)","v":276.71670426234374},{"$f":"(INT(H119*H52)+Control!$K$18*CustomersRes!O9)","v":280.86312074103205},{"$f":"(INT(I119*I52)+Control!$K$18*CustomersRes!P9)","v":285.07380513732687},{"$f":"(INT(J119*J52)+Control!$K$18*CustomersRes!Q9)","v":289.34343611164024},{"$f":"(INT(K119*K52)+Control!$K$18*CustomersRes!R9)","v":293.68171893108206},{"$f":"(INT(L119*L52)+Control!$K$18*CustomersRes!S9)","v":298.07831033642668},{"$f":"(INT(M119*M52)+Control!$K$18*CustomersRes!T9)","v":302.54291878474453},{"$f":"(INT(N119*N52)+Control!$K$18*CustomersRes!U9)","v":301.03020419082077},{"$f":"(INT(O119*O52)+Control!$K$18*CustomersRes!V9)","v":299.52505316986668},{"$f":"(INT(P119*P52)+Control!$K$18*CustomersRes!W9)","v":298.02742790401732},{"$f":"(INT(Q119*Q52)+Control!$K$18*CustomersRes!X9)","v":296.53729076449724},{"$f":"(INT(R119*R52)+Control!$K$18*CustomersRes!Y9)","v":296.05460431067473},{"$f":"(INT(S119*S52)+Control!$K$18*CustomersRes!Z9)","v":298.57433128912135},{"$f":"(INT(T119*T52)+Control!$K$18*CustomersRes!AA9)","v":303.08145963267577},{"$f":"(INT(U119*U52)+Control!$K$18*CustomersRes!AB9)","v":321.56605233451239},{"$f":"(INT(V119*V52)+Control!$K$18*CustomersRes!AC9)","v":347.95822207283982},{"$f":"(INT(W119*W52)+Control!$K$18*CustomersRes!AD9)","v":385.21843096247562},{"$f":"(INT(X119*X52)+Control!$K$18*CustomersRes!AE9)","v":588.29233880766321},{"$f":"(INT(Y119*Y52)+Control!$K$18*CustomersRes!AF9)","v":1124.3508771136248},{"$f":"(INT(Z119*Z52)+Control!$K$18*CustomersRes!AG9)","v":1724.7291227280568},{"$f":"(INT(AA119*AA52)+Control!$K$18*CustomersRes!AH9)","v":2385.1054771144163},{"$f":"(INT(AB119*AB52)+Control!$K$18*CustomersRes!AI9)","v":2764.1799497288443},{"$f":"(INT(AC119*AC52)+Control!$K$18*CustomersRes!AJ9)","v":2947.3590499802003},{"$f":"(INT(AD119*AD52)+Control!$K$18*CustomersRes!AK9)","v":2960.6222547302991},{"$f":"(INT(AE119*AE52)+Control!$K$18*CustomersRes!AL9)","v":2887.8191434566479},{"$f":"(INT(AF119*AF52)+Control!$K$18*CustomersRes!AM9)","v":2771.3800477393643},{"$f":"(INT(AG119*AG52)+Control!$K$18*CustomersRes!AN9)","v":2605.5231475006676},{"$f":"(INT(AH119*AH52)+Control!$K$18*CustomersRes!AO9)","v":2440.4955317631643},{"$f":"(INT(AI119*AI52)+Control!$K$18*CustomersRes!AP9)","v":2274.2930541043484},{"$f":"(INT(AJ119*AJ52)+Control!$K$18*CustomersRes!AQ9)","v":2115.9215888338267},{"$f":"(INT(AK119*AK52)+Control!$K$18*CustomersRes!AR9)","v":1966.3419808896576},{"$f":"(INT(AL119*AL52)+Control!$K$18*CustomersRes!AS9)","v":1809.5102709852092},{"$f":"(INT(AM119*AM52)+Control!$K$18*CustomersRes!AT9)","v":1675.4627196302833},{"$f":"(INT(AN119*AN52)+Control!$K$18*CustomersRes!AU9)","v":1566.0854060321319},{"$f":"(INT(AO119*AO52)+Control!$K$18*CustomersRes!AV9)","v":1460.2549790019712},{"$f":"(INT(AP119*AP52)+Control!$K$18*CustomersRes!AW9)","v":1357.9537041069614},{"$f":"(INT(AQ119*AQ52)+Control!$K$18*CustomersRes!AX9)","v":1262.1639355864265},{"$f":"(INT(AR119*AR52)+Control!$K$18*CustomersRes!AY9)","v":1171.8531159084944},{"$f":"(INT(AS119*AS52)+Control!$K$18*CustomersRes!AZ9)","v":1087.9938503289518},{"$f":"(INT(AT119*AT52)+Control!$K$18*CustomersRes!BA9)","v":1009.5538810773071},{"$f":"(INT(AU119*AU52)+Control!$K$18*CustomersRes!BB9)","v":937.50611167192062},{"$f":"(INT(AV119*AV52)+Control!$K$18*CustomersRes!BC9)","v":869.81858111356098},{"$f":"(INT(AW119*AW52)+Control!$K$18*CustomersRes!BD9)","v":807.46948820799321},{"$f":"(INT(AX119*AX52)+Control!$K$18*CustomersRes!BE9)","v":750.43214076695324},{"$f":"(INT(AY119*AY52)+Control!$K$18*CustomersRes!BF9)","v":696.67998006311848},{"$f":"(INT(AZ119*AZ52)+Control!$K$18*CustomersRes!BG9)","v":646.19658016280289},{"$f":"(INT(BA119*BA52)+Control!$K$18*CustomersRes!BH9)","v":599.96559726198882},{"$f":"(INT(BB119*BB52)+Control!$K$18*CustomersRes!BI9)","v":556.96576927567889},{"$f":"(INT(BC119*BC52)+Control!$K$18*CustomersRes!BJ9)","v":517.18094042930056},{"$f":"(INT(BD119*BD52)+Control!$K$18*CustomersRes!BK9)","v":479.59503572715403},{"$f":"(INT(BE119*BE52)+Control!$K$18*CustomersRes!BL9)","v":446.19706054851827},{"$f":"(INT(BF119*BF52)+Control!$K$18*CustomersRes!BM9)","v":414.96607524577564},{"$f":"(INT(BG119*BG52)+Control!$K$18*CustomersRes!BN9)","v":384.89124486954677},{"$f":"(INT(BH119*BH52)+Control!$K$18*CustomersRes!BO9)","v":356.96678864519902},{"$f":"(INT(BI119*BI52)+Control!$K$18*CustomersRes!BP9)","v":332.18195470197304},{"$f":"(INT(BJ119*BJ52)+Control!$K$18*CustomersRes!BQ9)","v":307.5210449284632},{"$f":"(INT(BK119*BK52)+Control!$K$18*CustomersRes!BR9)","v":285.98343970382086},{"$f":"(INT(BL119*BL52)+Control!$K$18*CustomersRes!BS9)","v":23.553522505301764},{"$f":"(INT(BM119*BM52)+Control!$K$18*CustomersRes!BT9)","v":23.435754892775257},{"$f":"(INT(BN119*BN52)+Control!$K$18*CustomersRes!BU9)","v":23.31857611831138},{"$f":"(INT(BO119*BO52)+Control!$K$18*CustomersRes!BV9)","v":23.201983237719823},{"$f":"(INT(BP119*BP52)+Control!$K$18*CustomersRes!BW9)","v":23.085973321531224},{"$f":"(INT(BQ119*BQ52)+Control!$K$18*CustomersRes!BX9)","v":22.970543454923568},{"$f":"(INT(BR119*BR52)+Control!$K$18*CustomersRes!BY9)","v":22.855690737648949},{"$f":"(INT(BS119*BS52)+Control!$K$18*CustomersRes!BZ9)","v":22.741412283960706},{"$f":"(INT(BT119*BT52)+Control!$K$18*CustomersRes!CA9)","v":22.6277052225409},{"$f":"(INT(BU119*BU52)+Control!$K$18*CustomersRes!CB9)","v":22.514566696428197},{"$f":"(INT(BV119*BV52)+Control!$K$18*CustomersRes!CC9)","v":22.401993862946057},{"$f":"(INT(BW119*BW52)+Control!$K$18*CustomersRes!CD9)","v":22.289983893631327},{"$f":"(INT(BX119*BX52)+Control!$K$18*CustomersRes!CE9)","v":22.17853397416317},{"$f":"(INT(BY119*BY52)+Control!$K$18*CustomersRes!CF9)","v":22.067641304292351},{"$f":"(INT(BZ119*BZ52)+Control!$K$18*CustomersRes!CG9)","v":21.95730309777089},{"$f":"(INT(CA119*CA52)+Control!$K$18*CustomersRes!CH9)","v":21.847516582282037},{"$f":"(INT(CB119*CB52)+Control!$K$18*CustomersRes!CI9)","v":22.738278999370625},{"$f":"(INT(CC119*CC52)+Control!$K$18*CustomersRes!CJ9)","v":22.624587604373772},{"$f":"(INT(CD119*CD52)+Control!$K$18*CustomersRes!CK9)","v":20.511464666351905}]
["Greater Dandenong (C)",null,{"$f":"(INT(C120*C53)+Control!$K$18*CustomersRes!J10)","v":283.59500000000003},{"$f":"(INT(D120*D53)+Control!$K$18*CustomersRes!K10)","v":287.84702499999997},{"$f":"(INT(E120*E53)+Control!$K$18*CustomersRes!L10)","v":292.16278987499999},{"$f":"(INT(F120*F53)+Control!$K$18*CustomersRes!M10)","v":296.54197592562497},{"$f":"(INT(G120*G53)+Control!$K$18*CustomersRes!N10)","v":300.98426604599683},{"$f":"(INT(H120*H53)+Control!$K$18*CustomersRes!O10)","v":305.49434471576689},{"$f":"(INT(I120*I53)+Control!$K$18*CustomersRes!P10)","v":310.07187299218805},{"$f":"(INT(J120*J53)+Control!$K$18*CustomersRes!Q10)","v":314.72151362722713},{"$f":"(INT(K120*K53)+Control!$K$18*CustomersRes!R10)","v":319.43790605909095},{"$f":"(INT(L120*L53)+Control!$K$18*CustomersRes!S10)","v":324.22571652879549},{"$f":"(INT(M120*M53)+Control!$K$18*CustomersRes!T10)","v":329.08458794615154},{"$f":"(INT(N120*N53)+Control!$K$18*CustomersRes!U10)","v":327.43916500642075},{"$f":"(INT(O120*O53)+Control!$K$18*CustomersRes!V10)","v":325.8019691813887},{"$f":"(INT(P120*P53)+Control!$K$18*CustomersRes!W10)","v":324.17295933548172},{"$f":"(INT(Q120*Q53)+Control!$K$18*CustomersRes!X10)","v":322.55209453880428},{"$f":"(INT(R120*R53)+Control!$K$18*CustomersRes!Y10)","v":320.93933406611029},{"$f":"(INT(S120*S53)+Control!$K$18*CustomersRes!Z10)","v":319.33463739577974},{"$f":"(INT(T120*T53)+Control!$K$18*CustomersRes!AA10)","v":317.7379642088008},{"$f":"(INT(U120*U53)+Control!$K$18*CustomersRes!AB10)","v":316.1492743877568},{"$f":"(INT(V120*V53)+Control!$K$18*CustomersRes!AC10)","v":314.56852801581806},{"$f":"(INT(W120*W53)+Control!$K$18*CustomersRes!AD10)","v":313.99568537573896},{"$f":"(INT(X120*X53)+Control!$K$18*CustomersRes!AE10)","v":313.42570694886024},{"$f":"(INT(Y120*Y53)+Control!$K$18*CustomersRes!AF10)","v":313.85857841411593},{"$f":"(INT(Z120*Z53)+Control!$K$18*CustomersRes!AG10)","v":315.28928552204536},{"$f":"(INT(AA120*AA53)+Control!$K$18*CustomersRes!AH10)","v":318.71283909443514},{"$f":"(INT(AB120*AB53)+Control!$K$18*CustomersRes!AI10)","v":324.11927489896294},{"$f":"(INT(AC120*AC53)+Control!$K$18*CustomersRes!AJ10)","v":331.49867852446812},{"$f":"(INT(AD120*AD53)+Control!$K$18*CustomersRes!AK10)","v":343.8411851318458},{"$f":"(INT(AE120*AE53)+Control!$K$18*CustomersRes!AL10)","v":362.12197920618655},{"$f":"(INT(AF120*AF53)+Control!$K$18*CustomersRes!AM10)","v":399.31136931015561},{"$f":"(INT(AG120*AG53)+Control!$K$18*CustomersRes!AN10)","v":433.31481246360482},{"$f":"(INT(AH120*AH53)+Control!$K$18*CustomersRes!AO10)","v":503.14823840128679},{"$f":"(INT(AI120*AI53)+Control!$K$18*CustomersRes!AP10)","v":594.63249720928036},{"$f":"(INT(AJ120*AJ53)+Control!$K$18*CustomersRes!AQ10)","v":705.659334723234},{"$f":"(INT(AK120*AK53)+Control!$K$18*CustomersRes!AR10)","v":863.13103804961781},{"$f":"(INT(AL120*AL53)+Control!$K$18*CustomersRes!AS10)","v":447.81538285936978},{"$f":"(INT(AM120*AM53)+Control!$K$18*CustomersRes!AT10)","v":418.57630594507287},{"$f":"(INT(AN120*AN53)+Control!$K$18*CustomersRes!AU10)","v":474.48342441534754},{"$f":"(INT(AO120*AO53)+Control!$K$18*CustomersRes!AV10)","v":572.11100729327086},{"$f":"(INT(AP120*AP53)+Control!$K$18*CustomersRes!AW10)","v":700.25045225680446},{"$f":"(INT(AQ120*AQ53)+Control!$K$18*CustomersRes!AX10)","v":887.74919999552037},{"$f":"(INT(AR120*AR53)+Control!$K$18*CustomersRes!AY10)","v":1159.3104539955427},{"$f":"(INT(AS120*AS53)+Control!$K$18*CustomersRes!AZ10)","v":1536.5139017255651},{"$f":"(INT(AT120*AT53)+Control!$K$18*CustomersRes!BA10)","v":1992.8313322169372},{"$f":"(INT(AU120*AU53)+Control!$K$18*CustomersRes!BB10)","v":2448.8671755558526},{"$f":"(INT(AV120*AV53)+Control!$K$18*CustomersRes!BC10)","v":2757.6228396780734},{"$f":"(INT(AW120*AW53)+Control!$K$18*CustomersRes!BD10)","v":2856.8347254796831},{"$f":"(INT(AX120*AX53)+Control!$K$18*CustomersRes!BE10)","v":2788.5505518522846},{"$f":"(INT(AY120*AY53)+Control!$K$18*CustomersRes!BF10)","v":2639.607799093023},{"$f":"(INT(AZ120*AZ53)+Control!$K$18*CustomersRes!BG10)","v":2465.4097600975579},{"$f":"(INT(BA120*BA53)+Control!$K$18*CustomersRes!BH10)","v":2293.0827112970701},{"$f":"(INT(BB120*BB53)+Control!$K$18*CustomersRes!BI10)","v":2128.6172977405849},{"$f":"(INT(BC120*BC53)+Control!$K$18*CustomersRes!BJ10)","v":1975.974211251882},{"$f":"(INT(BD120*BD53)+Control!$K$18*CustomersRes!BK10)","v":1834.0943401956224},{"$f":"(INT(BE120*BE53)+Control!$K$18*CustomersRes!BL10)","v":1702.9238684946445},{"$f":"(INT(BF120*BF53)+Control!$K$18*CustomersRes!BM10)","v":1581.4092491521712},{"$f":"(INT(BG120*BG53)+Control!$K$18*CustomersRes!BN10)","v":1467.5022029064103},{"$f":"(INT(BH120*BH53)+Control!$K$18*CustomersRes!BO10)","v":1362.1646918918782},{"$f":"(INT(BI120*BI53)+Control!$K$18*CustomersRes!BP10)","v":1265.3538684324189},{"$f":"(INT(BJ120*BJ53)+Control!$K$18*CustomersRes!BQ10)","v":1174.0270990902568},{"$f":"(INT(BK120*BK53)+Control!$K$18*CustomersRes!BR10)","v":1091.1569635948056},{"$f":"(INT(BL120*BL53)+Control!$K$18*CustomersRes!BS10)","v":70.701178776831497},{"$f":"(INT(BM120*BM53)+Control!$K$18*CustomersRes!BT10)","v":70.34767288294735},{"$f":"(INT(BN120*BN53)+Control!$K$18*CustomersRes!BU10)","v":69.995934518532607},{"$f":"(INT(BO120*BO53)+Control!$K$18*CustomersRes!BV10)","v":69.64595484593994},{"$f":"(INT(BP120*BP53)+Control!$K$18*CustomersRes!BW10)","v":69.297725071710246},{"$f":"(INT(BQ120*BQ53)+Control!$K$18*CustomersRes!BX10)","v":68.951236446351686},{"$f":"(INT(BR120*BR53)+Control!$K$18*CustomersRes!BY10)","v":68.606480264119924},{"$f":"(INT(BS120*BS53)+Control!$K$18*CustomersRes!BZ10)","v":68.263447862799325},{"$f":"(INT(BT120*BT53)+Control!$K$18*CustomersRes!CA10)","v":67.922130623485344},{"$f":"(INT(BU120*BU53)+Control!$K$18*CustomersRes!CB10)","v":67.582519970367912},{"$f":"(INT(BV120*BV53)+Control!$K$18*CustomersRes!CC10)","v":67.244607370516064},{"$f":"(INT(BW120*BW53)+Control!$K$18*CustomersRes!CD10)","v":66.908384333663491},{"$f":"(INT(BX120*BX53)+Control!$K$18*CustomersRes!CE10)","v":66.573842411995173},{"$f":"(INT(BY120*BY53)+Control!$K$18*CustomersRes!CF10)","v":66.240973199935198},{"$f":"(INT(BZ120*BZ53)+Control!$K$18*CustomersRes!CG10)","v":65.909768333935517},{"$f":"(INT(CA120*CA53)+Control!$K$18*CustomersRes!CH10)","v":65.58021949226584},{"$f":"(INT(CB120*CB53)+Control!$K$18*CustomersRes!CI10)","v":65.252318394804519},{"$f":"(INT(CC120*CC53)+Control!$K$18*CustomersRes!CJ10)","v":64.926056802830487},{"$f":"(INT(CD120*CD53)+Control!$K$18*CustomersRes!CK10)","v":64.601426518816339}]
["Kingston (C)",null,{"$f":"(INT(C121*C54)+Control!$K$18*CustomersRes!J11)","v":269.565},{"$f":"(INT(D121*D54)+Control!$K$18*CustomersRes!K11)","v":273.60217499999999},{"$f":"(INT(E121*E54)+Control!$K$18*CustomersRes!L11)","v":277.70416412499998},{"$f":"(INT(F121*F54)+Control!$K$18*CustomersRes!M11)","v":281.865643304375},{"$f":"(INT(G121*G54)+Control!$K$18*CustomersRes!N11)","v":286.08631508785311},{"$f":"(INT(H121*H54)+Control!$K$18*CustomersRes!O11)","v":290.37588351241385},{"$f":"(INT(I121*I54)+Control!$K$18*CustomersRes!P11)","v":294.7290040948518},{"$f":"(INT(J121*J54)+Control!$K$18*CustomersRes!Q11)","v":299.14535907437755},{"$f":"(INT(K121*K54)+Control!$K$18*CustomersRes!R11)","v":303.62963227900565},{"$f":"(INT(L121*L54)+Control!$K$18*CustomersRes!S11)","v":308.17648411761058},{"$f":"(INT(M121*M54)+Control!$K$18*CustomersRes!T11)","v":312.79560169702256},{"$f":"(INT(N121*N54)+Control!$K$18*CustomersRes!U11)","v":311.23162368853747},{"$f":"(INT(O121*O54)+Control!$K$18*CustomersRes!V11)","v":309.67546557009473},{"$f":"(INT(P121*P54)+Control!$K$18*CustomersRes!W11)","v":308.12708824224427},{"$f":"(INT(Q121*Q54)+Control!$K$18*CustomersRes!X11)","v":306.58645280103303},{"$f":"(INT(R121*R54)+Control!$K$18*CustomersRes!Y11)","v":305.05352053702785},{"$f":"(INT(S121*S54)+Control!$K$18*CustomersRes!Z11)","v":304.52825293434273},{"$f":"(INT(T121*T54)+Control!$K$18*CustomersRes!AA11)","v":304.005611669671},{"$f":"(INT(U121*U54)+Control!$K$18*CustomersRes!AB11)","v":305.48558361132268},{"$f":"(INT(V121*V54)+Control!$K$18*CustomersRes!AC11)","v":307.95815569326606},{"$f":"(INT(W121*W54)+Control!$K$18*CustomersRes!AD11)","v":312.41836491479972},{"$f":"(INT(X121*X54)+Control!$K$18*CustomersRes!AE11)","v":336.85627309022573},{"$f":"(INT(Y121*Y54)+Control!$K$18*CustomersRes!AF11)","v":405.17199172477461},{"$f":"(INT(Z121*Z54)+Control!$K$18*CustomersRes!AG11)","v":507.14613176615075},{"$f":"(INT(AA121*AA54)+Control!$K$18*CustomersRes!AH11)","v":692.61040110731994},{"$f":"(INT(AB121*AB54)+Control!$K$18*CustomersRes!AI11)","v":930.14734910178345},{"$f":"(INT(AC121*AC54)+Control!$K$18*CustomersRes!AJ11)","v":1247.4966123562745},{"$f":"(INT(AD121*AD54)+Control!$K$18*CustomersRes!AK11)","v":1602.2591292944931},{"$f":"(INT(AE121*AE54)+Control!$K$18*CustomersRes!AL11)","v":2003.2478336480206},{"$f":"(INT(AF121*AF54)+Control!$K$18*CustomersRes!AM11)","v":2482.2315944797806},{"$f":"(INT(AG121*AG54)+Control!$K$18*CustomersRes!AN11)","v":2673.8204365073816},{"$f":"(INT(AH121*AH54)+Control!$K$18*CustomersRes!AO11)","v":2842.4513343248445},{"$f":"(INT(AI121*AI54)+Control!$K$18*CustomersRes!AP11)","v":2844.2390776532206},{"$f":"(INT(AJ121*AJ54)+Control!$K$18*CustomersRes!AQ11)","v":2753.0178822649546},{"$f":"(INT(AK121*AK54)+Control!$K$18*CustomersRes!AR11)","v":2626.2527928536297},{"$f":"(INT(AL121*AL54)+Control!$K$18*CustomersRes!AS11)","v":2072.1215288893613},{"$f":"(INT(AM121*AM54)+Control!$K$18*CustomersRes!AT11)","v":1859.7609212449147},{"$f":"(INT(AN121*AN54)+Control!$K$18*CustomersRes!AU11)","v":1923.4621166386901},{"$f":"(INT(AO121*AO54)+Control!$K$18*CustomersRes!AV11)","v":1932.8448060554965},{"$f":"(INT(AP121*AP54)+Control!$K$18*CustomersRes!AW11)","v":1874.1805820252191},{"$f":"(INT(AQ121*AQ54)+Control!$K$18*CustomersRes!AX11)","v":1784.8096791150931},{"$f":"(INT(AR121*AR54)+Control!$K$18*CustomersRes!AY11)","v":1681.8856307195176},{"$f":"(INT(AS121*AS54)+Control!$K$18*CustomersRes!AZ11)","v":1573.4762025659199},{"$f":"(INT(AT121*AT54)+Control!$K$18*CustomersRes!BA11)","v":1466.6088215530904},{"$f":"(INT(AU121*AU54)+Control!$K$18*CustomersRes!BB11)","v":1363.275777445325},{"$f":"(INT(AV121*AV54)+Control!$K$18*CustomersRes!BC11)","v":1266.4593985580984},{"$f":"(INT(AW121*AW54)+Control!$K$18*CustomersRes!BD11)","v":1176.1271015653078},{"$f":"(INT(AX121*AX54)+Control!$K$18*CustomersRes!BE11)","v":1091.2464660574813},{"$f":"(INT(AY121*AY54)+Control!$K$18*CustomersRes!BF11)","v":1012.7902337271939},{"$f":"(INT(AZ121*AZ54)+Control!$K$18*CustomersRes!BG11)","v":940.72628255855795},{"$f":"(INT(BA121*BA54)+Control!$K$18*CustomersRes!BH11)","v":873.02265114576517},{"$f":"(INT(BB121*BB54)+Control!$K$18*CustomersRes!BI11)","v":810.65753789003634},{"$f":"(INT(BC121*BC54)+Control!$K$18*CustomersRes!BJ11)","v":752.60425020058619},{"$f":"(INT(BD121*BD54)+Control!$K$18*CustomersRes!BK11)","v":698.84122894958318},{"$f":"(INT(BE121*BE54)+Control!$K$18*CustomersRes!BL11)","v":648.34702280483532},{"$f":"(INT(BF121*BF54)+Control!$K$18*CustomersRes!BM11)","v":602.10528769081111},{"$f":"(INT(BG121*BG54)+Control!$K$18*CustomersRes!BN11)","v":560.0947612523571},{"$f":"(INT(BH121*BH54)+Control!$K$18*CustomersRes!BO11)","v":519.29428744609527},{"$f":"(INT(BI121*BI54)+Control!$K$18*CustomersRes!BP11)","v":482.69781600886483},{"$f":"(INT(BJ121*BJ54)+Control!$K$18*CustomersRes!BQ11)","v":448.28432692882052},{"$f":"(INT(BK121*BK54)+Control!$K$18*CustomersRes!BR11)","v":416.04290529417636},{"$f":"(INT(BL121*BL54)+Control!$K$18*CustomersRes!BS11)","v":27.96269076770551},{"$f":"(INT(BM121*BM54)+Control!$K$18*CustomersRes!BT11)","v":27.822877313866979},{"$f":"(INT(BN121*BN54)+Control!$K$18*CustomersRes!BU11)","v":27.683762927297643},{"$f":"(INT(BO121*BO54)+Control!$K$18*CustomersRes!BV11)","v":27.545344112661155},{"$f":"(INT(BP121*BP54)+Control!$K$18*CustomersRes!BW11)","v":27.407617392097851},{"$f":"(INT(BQ121*BQ54)+Control!$K$18*CustomersRes!BX11)","v":27.270579305137364},{"$f":"(INT(BR121*BR54)+Control!$K$18*CustomersRes!BY11)","v":27.134226408611678},{"$f":"(INT(BS121*BS54)+Control!$K$18*CustomersRes!BZ11)","v":26.99855527656862},{"$f":"(INT(BT121*BT54)+Control!$K$18*CustomersRes!CA11)","v":26.863562500185775},{"$f":"(INT(BU121*BU54)+Control!$K$18*CustomersRes!CB11)","v":26.729244687684847},{"$f":"(INT(BV121*BV54)+Control!$K$18*CustomersRes!CC11)","v":26.595598464246422},{"$f":"(INT(BW121*BW54)+Control!$K$18*CustomersRes!CD11)","v":26.462620471925192},{"$f":"(INT(BX121*BX54)+Control!$K$18*CustomersRes!CE11)","v":26.330307369565567},{"$f":"(INT(BY121*BY54)+Control!$K$18*CustomersRes!CF11)","v":26.198655832717741},{"$f":"(INT(BZ121*BZ54)+Control!$K$18*CustomersRes!CG11)","v":26.06766255355415},{"$f":"(INT(CA121*CA54)+Control!$K$18*CustomersRes!CH11)","v":25.937324240786381},{"$f":"(INT(CB121*CB54)+Control!$K$18*CustomersRes!CI11)","v":25.807637619582447},{"$f":"(INT(CC121*CC54)+Control!$K$18*CustomersRes!CJ11)","v":25.678599431484535},{"$f":"(INT(CD121*CD54)+Control!$K$18*CustomersRes!CK11)","v":25.550206434327116}]
["Knox (C)",null,{"$f":"(INT(C122*C55)+Control!$K$18*CustomersRes!J12)","v":315.48500000000001},{"$f":"(INT(D122*D55)+Control!$K$18*CustomersRes!K12)","v":320.21257500000002},{"$f":"(INT(E122*E55)+Control!$K$18*CustomersRes!L12)","v":325.01151212500002},{"$f":"(INT(F122*F55)+Control!$K$18*CustomersRes!M12)","v":329.88145456437502},{"$f":"(INT(G122*G55)+Control!$K$18*CustomersRes!N12)","v":334.82204729155319},{"$f":"(INT(H122*H55)+Control!$K$18*CustomersRes!O12)","v":339.84293705509538},{"$f":"(INT(I122*I55)+Control!$K$18*CustomersRes!P12)","v":344.93872236981991},{"$f":"(INT(J122*J55)+Control!$K$18*CustomersRes!Q12)","v":350.1090287579708},{"$f":"(INT(K122*K55)+Control!$K$18*CustomersRes!R12)","v":355.35848361418095},{"$f":"(INT(L122*L55)+Control!$K$18*CustomersRes!S12)","v":360.68669119611008},{"$f":"(INT(M122*M55)+Control!$K$18*CustomersRes!T12)","v":366.0932577401295},{"$f":"(INT(N122*N55)+Control!$K$18*CustomersRes!U12)","v":364.26279145142888},{"$f":"(INT(O122*O55)+Control!$K$18*CustomersRes!V12)","v":362.44147749417169},{"$f":"(INT(P122*P55)+Control!$K$18*CustomersRes!W12)","v":360.62927010670086},{"$f":"(INT(Q122*Q55)+Control!$K$18*CustomersRes!X12)","v":358.82612375616736},{"$f":"(INT(R122*R55)+Control!$K$18*CustomersRes!Y12)","v":357.03199313738651},{"$f":"(INT(S122*S55)+Control!$K$18*CustomersRes!Z12)","v":355.24683317169962},{"$f":"(INT(T122*T55)+Control!$K$18*CustomersRes!AA12)","v":354.47059900584117},{"$f":"(INT(U122*U55)+Control!$K$18*CustomersRes!AB12)","v":355.69824601081194},{"$f":"(INT(V122*V55)+Control!$K$18*CustomersRes!AC12)","v":358.9197547807579},{"$f":"(INT(W122*W55)+Control!$K$18*CustomersRes!AD12)","v":363.12515600685407},{"$f":"(INT(X122*X55)+Control!$K$18*CustomersRes!AE12)","v":393.30953022681985},{"$f":"(INT(Y122*Y55)+Control!$K$18*CustomersRes!AF12)","v":493.34298257568577},{"$f":"(INT(Z122*Z55)+Control!$K$18*CustomersRes!AG12)","v":657.87626766280732},{"$f":"(INT(AA122*AA55)+Control!$K$18*CustomersRes!AH12)","v":977.58688632449321},{"$f":"(INT(AB122*AB55)+Control!$K$18*CustomersRes!AI12)","v":1388.6989518928708},{"$f":"(INT(AC122*AC55)+Control!$K$18*CustomersRes!AJ12)","v":1912.7554571334065},{"$f":"(INT(AD122*AD55)+Control!$K$18*CustomersRes!AK12)","v":2434.1916798477396},{"$f":"(INT(AE122*AE55)+Control!$K$18*CustomersRes!AL12)","v":2921.0207214485008},{"$f":"(INT(AF122*AF55)+Control!$K$18*CustomersRes!AM12)","v":3365.4156178412582},{"$f":"(INT(AG122*AG55)+Control!$K$18*CustomersRes!AN12)","v":3434.5885397520519},{"$f":"(INT(AH122*AH55)+Control!$K$18*CustomersRes!AO12)","v":3439.4155970532915},{"$f":"(INT(AI122*AI55)+Control!$K$18*CustomersRes!AP12)","v":3311.2185190680252},{"$f":"(INT(AJ122*AJ55)+Control!$K$18*CustomersRes!AQ12)","v":3128.6624264726852},{"$f":"(INT(AK122*AK55)+Control!$K$18*CustomersRes!AR12)","v":2936.0191143403217},{"$f":"(INT(AL122*AL55)+Control!$K$18*CustomersRes!AS12)","v":2524.33901876862},{"$f":"(INT(AM122*AM55)+Control!$K$18*CustomersRes!AT12)","v":2295.7173236747767},{"$f":"(INT(AN122*AN55)+Control!$K$18*CustomersRes!AU12)","v":2258.2387370564029},{"$f":"(INT(AO122*AO55)+Control!$K$18*CustomersRes!AV12)","v":2177.9475433711209},{"$f":"(INT(AP122*AP55)+Control!$K$18*CustomersRes!AW12)","v":2058.0578056542654},{"$f":"(INT(AQ122*AQ55)+Control!$K$18*CustomersRes!AX12)","v":1929.7675166259942},{"$f":"(INT(AR122*AR55)+Control!$K$18*CustomersRes!AY12)","v":1800.1186790428642},{"$f":"(INT(AS122*AS55)+Control!$K$18*CustomersRes!AZ12)","v":1675.1180856476499},{"$f":"(INT(AT122*AT55)+Control!$K$18*CustomersRes!BA12)","v":1556.7424952194115},{"$f":"(INT(AU122*AU55)+Control!$K$18*CustomersRes!BB12)","v":1445.9587827433145},{"$f":"(INT(AV122*AV55)+Control!$K$18*CustomersRes!BC12)","v":1341.7289888295979},{"$f":"(INT(AW122*AW55)+Control!$K$18*CustomersRes!BD12)","v":1246.0203438854498},{"$f":"(INT(AX122*AX55)+Control!$K$18*CustomersRes!BE12)","v":1156.7902421660226},{"$f":"(INT(AY122*AY55)+Control!$K$18*CustomersRes!BF12)","v":1074.0062909551925},{"$f":"(INT(AZ122*AZ55)+Control!$K$18*CustomersRes!BG12)","v":996.6362595004166},{"$f":"(INT(BA122*BA55)+Control!$K$18*CustomersRes!BH12)","v":925.65307820291457},{"$f":"(INT(BB122*BB55)+Control!$K$18*CustomersRes!BI12)","v":859.02481281190001},{"$f":"(INT(BC122*BC55)+Control!$K$18*CustomersRes!BJ12)","v":797.72968874784044},{"$f":"(INT(BD122*BD55)+Control!$K$18*CustomersRes!BK12)","v":739.74104030410126},{"$f":"(INT(BE122*BE55)+Control!$K$18*CustomersRes!BL12)","v":687.04233510258075},{"$f":"(INT(BF122*BF55)+Control!$K$18*CustomersRes!BM12)","v":638.6071234270679},{"$f":"(INT(BG122*BG55)+Control!$K$18*CustomersRes!BN12)","v":593.41408780993254},{"$f":"(INT(BH122*BH55)+Control!$K$18*CustomersRes!BO12)","v":550.4470173708828},{"$f":"(INT(BI122*BI55)+Control!$K$18*CustomersRes!BP12)","v":510.69478228402846},{"$f":"(INT(BJ122*BJ55)+Control!$K$18*CustomersRes!BQ12)","v":474.14130837260831},{"$f":"(INT(BK122*BK55)+Control!$K$18*CustomersRes!BR12)","v":440.77060183074525},{"$f":"(INT(BL122*BL55)+Control!$K$18*CustomersRes!BS12)","v":29.566748821591542},{"$f":"(INT(BM122*BM55)+Control!$K$18*CustomersRes!BT12)","v":29.418915077483586},{"$f":"(INT(BN122*BN55)+Control!$K$18*CustomersRes!BU12)","v":29.271820502096165},{"$f":"(INT(BO122*BO55)+Control!$K$18*CustomersRes!BV12)","v":29.125461399585685},{"$f":"(INT(BP122*BP55)+Control!$K$18*CustomersRes!BW12)","v":28.979834092587755},{"$f":"(INT(BQ122*BQ55)+Control!$K$18*CustomersRes!BX12)","v":28.834934922124813},{"$f":"(INT(BR122*BR55)+Control!$K$18*CustomersRes!BY12)","v":28.690760247514191},{"$f":"(INT(BS122*BS55)+Control!$K$18*CustomersRes!BZ12)","v":28.547306446276622},{"$f":"(INT(BT122*BT55)+Control!$K$18*CustomersRes!CA12)","v":28.404569914045236},{"$f":"(INT(BU122*BU55)+Control!$K$18*CustomersRes!CB12)","v":28.262547064475012},{"$f":"(INT(BV122*BV55)+Control!$K$18*CustomersRes!CC12)","v":28.121234329152635},{"$f":"(INT(BW122*BW55)+Control!$K$18*CustomersRes!CD12)","v":27.980628157506871},{"$f":"(INT(BX122*BX55)+Control!$K$18*CustomersRes!CE12)","v":27.84072501671934},{"$f":"(INT(BY122*BY55)+Control!$K$18*CustomersRes!CF12)","v":27.701521391635744},{"$f":"(INT(BZ122*BZ55)+Control!$K$18*CustomersRes!CG12)","v":27.563013784677565},{"$f":"(INT(CA122*CA55)+Control!$K$18*CustomersRes!CH12)","v":27.425198715754178},{"$f":"(INT(CB122*CB55)+Control!$K$18*CustomersRes!CI12)","v":27.288072722175407},{"$f":"(INT(CC122*CC55)+Control!$K$18*CustomersRes!CJ12)","v":27.15163235856453},{"$f":"(INT(CD122*CD55)+Control!$K$18*CustomersRes!CK12)","v":27.015874196771705}]
["Manningham (C)",null,{"$f":"(INT(C123*C56)+Control!$K$18*CustomersRes!J13)","v":218.33500000000001},{"$f":"(INT(D123*D56)+Control!$K$18*CustomersRes!K13)","v":221.60832500000001},{"$f":"(INT(E123*E56)+Control!$K$18*CustomersRes!L13)","v":224.93028337500002},{"$f":"(INT(F123*F56)+Control!$K$18*CustomersRes!M13)","v":228.30063195812502},{"$f":"(INT(G123*G56)+Control!$K$18*CustomersRes!N13)","v":231.7191287983344},{"$f":"(INT(H123*H56)+Control!$K$18*CustomersRes!O13)","v":235.19053315434272},{"$f":"(INT(I123*I56)+Control!$K$18*CustomersRes!P13)","v":238.71458048857099},{"$f":"(INT(J123*J56)+Control!$K$18*CustomersRes!Q13)","v":242.2910075861281},{"$f":"(INT(K123*K56)+Control!$K$18*CustomersRes!R13)","v":245.92455254819745},{"$f":"(INT(L123*L56)+Control!$K$18*CustomersRes!S13)","v":249.60992978545647},{"$f":"(INT(M123*M56)+Control!$K$18*CustomersRes!T13)","v":253.35188013652919},{"$f":"(INT(N123*N56)+Control!$K$18*CustomersRes!U13)","v":252.08512073584654},{"$f":"(INT(O123*O56)+Control!$K$18*CustomersRes!V13)","v":250.82469513216731},{"$f":"(INT(P123*P56)+Control!$K$18*CustomersRes!W13)","v":249.57057165650644},{"$f":"(INT(Q123*Q56)+Control!$K$18*CustomersRes!X13)","v":248.32271879822392},{"$f":"(INT(R123*R56)+Control!$K$18*CustomersRes!Y13)","v":247.08110520423278},{"$f":"(INT(S123*S56)+Control!$K$18*CustomersRes!Z13)","v":245.84569967821162},{"$f":"(INT(T123*T56)+Control!$K$18*CustomersRes!AA13)","v":245.61647117982056},{"$f":"(INT(U123*U56)+Control!$K$18*CustomersRes!AB13)","v":246.38838882392145},{"$f":"(INT(V123*V56)+Control!$K$18*CustomersRes!AC13)","v":249.15644687980185},{"$f":"(INT(W123*W56)+Control!$K$18*CustomersRes!AD13)","v":251.91066464540285},{"$f":"(INT(X123*X56)+Control!$K$18*CustomersRes!AE13)","v":275.65111132217584},{"$f":"(INT(Y123*Y56)+Control!$K$18*CustomersRes!AF13)","v":353.27285576556494},{"$f":"(INT(Z123*Z56)+Control!$K$18*CustomersRes!AG13)","v":479.5064914867371},{"$f":"(INT(AA123*AA56)+Control!$K$18*CustomersRes!AH13)","v":720.10895902930338},{"$f":"(INT(AB123*AB56)+Control!$K$18*CustomersRes!AI13)","v":1023.5084142341568},{"$f":"(INT(AC123*AC56)+Control!$K$18*CustomersRes!AJ13)","v":1398.3908721629862},{"$f":"(INT(AD123*AD56)+Control!$K$18*CustomersRes!AK13)","v":1756.3989178021711},{"$f":"(INT(AE123*AE56)+Control!$K$18*CustomersRes!AL13)","v":2076.6169232131601},{"$f":"(INT(AF123*AF56)+Control!$K$18*CustomersRes!AM13)","v":2355.2338385970943},{"$f":"(INT(AG123*AG56)+Control!$K$18*CustomersRes!AN13)","v":2383.4576694041089},{"$f":"(INT(AH123*AH56)+Control!$K$18*CustomersRes!AO13)","v":2370.5403810570883},{"$f":"(INT(AI123*AI56)+Control!$K$18*CustomersRes!AP13)","v":2273.687679151803},{"$f":"(INT(AJ123*AJ56)+Control!$K$18*CustomersRes!AQ13)","v":2144.3192407560441},{"$f":"(INT(AK123*AK56)+Control!$K$18*CustomersRes!AR13)","v":2009.5976445522638},{"$f":"(INT(AL123*AL56)+Control!$K$18*CustomersRes!AS13)","v":1741.5496563295026},{"$f":"(INT(AM123*AM56)+Control!$K$18*CustomersRes!AT13)","v":1585.841908047855},{"$f":"(INT(AN123*AN56)+Control!$K$18*CustomersRes!AU13)","v":1552.9126985076157},{"$f":"(INT(AO123*AO56)+Control!$K$18*CustomersRes!AV13)","v":1491.1481350150775},{"$f":"(INT(AP123*AP56)+Control!$K$18*CustomersRes!AW13)","v":1407.6923943400022},{"$f":"(INT(AQ123*AQ56)+Control!$K$18*CustomersRes!AX13)","v":1317.6539323683021},{"$f":"(INT(AR123*AR56)+Control!$K$18*CustomersRes!AY13)","v":1229.0656627064607},{"$f":"(INT(AS123*AS56)+Control!$K$18*CustomersRes!AZ13)","v":1142.9203343929285},{"$f":"(INT(AT123*AT56)+Control!$K$18*CustomersRes!BA13)","v":1062.2057327209636},{"$f":"(INT(AU123*AU56)+Control!$K$18*CustomersRes!BB13)","v":985.89470405735892},{"$f":"(INT(AV123*AV56)+Control!$K$18*CustomersRes!BC13)","v":914.9652305370721},{"$f":"(INT(AW123*AW56)+Control!$K$18*CustomersRes!BD13)","v":849.39040438438678},{"$f":"(INT(AX123*AX56)+Control!$K$18*CustomersRes!BE13)","v":789.14345236246481},{"$f":"(INT(AY123*AY56)+Control!$K$18*CustomersRes!BF13)","v":732.19773510065249},{"$f":"(INT(AZ123*AZ56)+Control!$K$18*CustomersRes!BG13)","v":679.5367464251492},{"$f":"(INT(BA123*BA56)+Control!$K$18*CustomersRes!BH13)","v":631.13906269302345},{"$f":"(INT(BB123*BB56)+Control!$K$18*CustomersRes!BI13)","v":585.98336737955833},{"$f":"(INT(BC123*BC56)+Control!$K$18*CustomersRes!BJ13)","v":544.05345054266058},{"$f":"(INT(BD123*BD56)+Control!$K$18*CustomersRes!BK13)","v":505.33318328994727},{"$f":"(INT(BE123*BE56)+Control!$K$18*CustomersRes!BL13)","v":468.80651737349757},{"$f":"(INT(BF123*BF56)+Control!$K$18*CustomersRes!BM13)","v":436.46248478663006},{"$f":"(INT(BG123*BG56)+Control!$K$18*CustomersRes!BN13)","v":405.28017236269693},{"$f":"(INT(BH123*BH56)+Control!$K$18*CustomersRes!BO13)","v":376.25377150088343},{"$f":"(INT(BI123*BI56)+Control!$K$18*CustomersRes!BP13)","v":348.37250264337899},{"$f":"(INT(BJ123*BJ56)+Control!$K$18*CustomersRes!BQ13)","v":323.63064013016213},{"$f":"(INT(BK123*BK56)+Control!$K$18*CustomersRes!BR13)","v":301.01248692951128},{"$f":"(INT(BL123*BL56)+Control!$K$18*CustomersRes!BS13)","v":19.507424494863745},{"$f":"(INT(BM123*BM56)+Control!$K$18*CustomersRes!BT13)","v":19.409887372389427},{"$f":"(INT(BN123*BN56)+Control!$K$18*CustomersRes!BU13)","v":20.31283793552748},{"$f":"(INT(BO123*BO56)+Control!$K$18*CustomersRes!BV13)","v":20.211273745849841},{"$f":"(INT(BP123*BP56)+Control!$K$18*CustomersRes!BW13)","v":20.110217377120595},{"$f":"(INT(BQ123*BQ56)+Control!$K$18*CustomersRes!BX13)","v":20.009666290234993},{"$f":"(INT(BR123*BR56)+Control!$K$18*CustomersRes!BY13)","v":19.909617958783816},{"$f":"(INT(BS123*BS56)+Control!$K$18*CustomersRes!BZ13)","v":19.810069868989896},{"$f":"(INT(BT123*BT56)+Control!$K$18*CustomersRes!CA13)","v":19.711019519644946},{"$f":"(INT(BU123*BU56)+Control!$K$18*CustomersRes!CB13)","v":19.61246442204672},{"$f":"(INT(BV123*BV56)+Control!$K$18*CustomersRes!CC13)","v":19.514402099936486},{"$f":"(INT(BW123*BW56)+Control!$K$18*CustomersRes!CD13)","v":19.416830089436807},{"$f":"(INT(BX123*BX56)+Control!$K$18*CustomersRes!CE13)","v":19.319745938989623},{"$f":"(INT(BY123*BY56)+Control!$K$18*CustomersRes!CF13)","v":19.223147209294677},{"$f":"(INT(BZ123*BZ56)+Control!$K$18*CustomersRes!CG13)","v":19.127031473248202},{"$f":"(INT(CA123*CA56)+Control!$K$18*CustomersRes!CH13)","v":19.03139631588196},{"$f":"(INT(CB123*CB56)+Control!$K$18*CustomersRes!CI13)","v":18.936239334302549},{"$f":"(INT(CC123*CC56)+Control!$K$18*CustomersRes!CJ13)","v":18.841558137631036},{"$f":"(INT(CD123*CD56)+Control!$K$18*CustomersRes!CK13)","v":17.747350346942881}]
["Maroondah (C)",null,{"$f":"(INT(C124*C57)+Control!$K$18*CustomersRes!J14)","v":194.465},{"$f":"(INT(D124*D57)+Control!$K$18*CustomersRes!K14)","v":197.37767500000001},{"$f":"(INT(E124*E57)+Control!$K$18*CustomersRes!L14)","v":200.335786625},{"$f":"(INT(F124*F57)+Control!$K$18*CustomersRes!M14)","v":203.334107691875},{"$f":"(INT(G124*G57)+Control!$K$18*CustomersRes!N14)","v":206.37743715341563},{"$f":"(INT(H124*H57)+Control!$K$18*CustomersRes!O14)","v":209.47054996764857},{"$f":"(INT(I124*I57)+Control!$K$18*CustomersRes!P14)","v":212.6081972178103},{"$f":"(INT(J124*J57)+Control!$K$18*CustomersRes!Q14)","v":215.79515623172128},{"$f":"(INT(K124*K57)+Control!$K$18*CustomersRes!R14)","v":219.03118045056266},{"$f":"(INT(L124*L57)+Control!$K$18*CustomersRes!S14)","v":222.31102454830983},{"$f":"(INT(M124*M57)+Control!$K$18*CustomersRes!T14)","v":225.64446942556827},{"$f":"(INT(N124*N57)+Control!$K$18*CustomersRes!U14)","v":224.51624707844044},{"$f":"(INT(O124*O57)+Control!$K$18*CustomersRes!V14)","v":223.39366584304821},{"$f":"(INT(P124*P57)+Control!$K$18*CustomersRes!W14)","v":222.276697513833},{"$f":"(INT(Q124*Q57)+Control!$K$18*CustomersRes!X14)","v":221.16531402626381},{"$f":"(INT(R124*R57)+Control!$K$18*CustomersRes!Y14)","v":220.0594874561325},{"$f":"(INT(S124*S57)+Control!$K$18*CustomersRes!Z14)","v":218.95919001885181},{"$f":"(INT(T124*T57)+Control!$K$18*CustomersRes!AA14)","v":218.86439406875755},{"$f":"(INT(U124*U57)+Control!$K$18*CustomersRes!AB14)","v":219.77007209841378},{"$f":"(INT(V124*V57)+Control!$K$18*CustomersRes!AC14)","v":220.67122173792171},{"$f":"(INT(W124*W57)+Control!$K$18*CustomersRes!AD14)","v":223.56786562923207},{"$f":"(INT(X124*X57)+Control!$K$18*CustomersRes!AE14)","v":244.45002630108593},{"$f":"(INT(Y124*Y57)+Control!$K$18*CustomersRes!AF14)","v":308.22777616958047},{"$f":"(INT(Z124*Z57)+Control!$K$18*CustomersRes!AG14)","v":414.68663728873264},{"$f":"(INT(AA124*AA57)+Control!$K$18*CustomersRes!AH14)","v":618.61320410228893},{"$f":"(INT(AB124*AB57)+Control!$K$18*CustomersRes!AI14)","v":878.52013808177753},{"$f":"(INT(AC124*AC57)+Control!$K$18*CustomersRes!AJ14)","v":1206.1275373913686},{"$f":"(INT(AD124*AD57)+Control!$K$18*CustomersRes!AK14)","v":1526.0968997044117},{"$f":"(INT(AE124*AE57)+Control!$K$18*CustomersRes!AL14)","v":1820.4664152058897},{"$f":"(INT(AF124*AF57)+Control!$K$18*CustomersRes!AM14)","v":2083.3640831298603},{"$f":"(INT(AG124*AG57)+Control!$K$18*CustomersRes!AN14)","v":2118.9472627142109},{"$f":"(INT(AH124*AH57)+Control!$K$18*CustomersRes!AO14)","v":2116.3525264006398},{"$f":"(INT(AI124*AI57)+Control!$K$18*CustomersRes!AP14)","v":2032.7707637686367},{"$f":"(INT(AJ124*AJ57)+Control!$K$18*CustomersRes!AQ14)","v":1920.6069099497936},{"$f":"(INT(AK124*AK57)+Control!$K$18*CustomersRes!AR14)","v":1802.0038754000445},{"$f":"(INT(AL124*AL57)+Control!$K$18*CustomersRes!AS14)","v":1553.9938560230444},{"$f":"(INT(AM124*AM57)+Control!$K$18*CustomersRes!AT14)","v":1413.2238867429292},{"$f":"(INT(AN124*AN57)+Control!$K$18*CustomersRes!AU14)","v":1388.1577673092145},{"$f":"(INT(AO124*AO57)+Control!$K$18*CustomersRes!AV14)","v":1336.2169784726684},{"$f":"(INT(AP124*AP57)+Control!$K$18*CustomersRes!AW14)","v":1261.5358935803051},{"$f":"(INT(AQ124*AQ57)+Control!$K$18*CustomersRes!AX14)","v":1182.2282141124035},{"$f":"(INT(AR124*AR57)+Control!$K$18*CustomersRes!AY14)","v":1103.3170730418415},{"$f":"(INT(AS124*AS57)+Control!$K$18*CustomersRes!AZ14)","v":1026.8004876766324},{"$f":"(INT(AT124*AT57)+Control!$K$18*CustomersRes!BA14)","v":953.66648523824915},{"$f":"(INT(AU124*AU57)+Control!$K$18*CustomersRes!BB14)","v":885.8981528120579},{"$f":"(INT(AV124*AV57)+Control!$K$18*CustomersRes!BC14)","v":822.46866204799767},{"$f":"(INT(AW124*AW57)+Control!$K$18*CustomersRes!BD14)","v":763.35631873775765},{"$f":"(INT(AX124*AX57)+Control!$K$18*CustomersRes!BE14)","v":708.53953714406885},{"$f":"(INT(AY124*AY57)+Control!$K$18*CustomersRes!BF14)","v":657.99683945834852},{"$f":"(INT(AZ124*AZ57)+Control!$K$18*CustomersRes!BG14)","v":610.70685526105683},{"$f":"(INT(BA124*BA57)+Control!$K$18*CustomersRes!BH14)","v":566.65332098475153},{"$f":"(INT(BB124*BB57)+Control!$K$18*CustomersRes!BI14)","v":525.82005437982775},{"$f":"(INT(BC124*BC57)+Control!$K$18*CustomersRes!BJ14)","v":488.19095410792863},{"$f":"(INT(BD124*BD57)+Control!$K$18*CustomersRes!BK14)","v":453.74999933738894},{"$f":"(INT(BE124*BE57)+Control!$K$18*CustomersRes!BL14)","v":421.48124934070205},{"$f":"(INT(BF124*BF57)+Control!$K$18*CustomersRes!BM14)","v":391.37384309399852},{"$f":"(INT(BG124*BG57)+Control!$K$18*CustomersRes!BN14)","v":363.41697387852855},{"$f":"(INT(BH124*BH57)+Control!$K$18*CustomersRes!BO14)","v":337.59988900913589},{"$f":"(INT(BI124*BI57)+Control!$K$18*CustomersRes!BP14)","v":313.91188956409019},{"$f":"(INT(BJ124*BJ57)+Control!$K$18*CustomersRes!BQ14)","v":291.34233011626975},{"$f":"(INT(BK124*BK57)+Control!$K$18*CustomersRes!BR14)","v":269.88561846568842},{"$f":"(INT(BL124*BL57)+Control!$K$18*CustomersRes!BS14)","v":17.536190373359961},{"$f":"(INT(BM124*BM57)+Control!$K$18*CustomersRes!BT14)","v":17.44850942149316},{"$f":"(INT(BN124*BN57)+Control!$K$18*CustomersRes!BU14)","v":17.361266874385691},{"$f":"(INT(BO124*BO57)+Control!$K$18*CustomersRes!BV14)","v":17.274460540013763},{"$f":"(INT(BP124*BP57)+Control!$K$18*CustomersRes!BW14)","v":17.188088237313693},{"$f":"(INT(BQ124*BQ57)+Control!$K$18*CustomersRes!BX14)","v":17.102147796127124},{"$f":"(INT(BR124*BR57)+Control!$K$18*CustomersRes!BY14)","v":17.01663705714649},{"$f":"(INT(BS124*BS57)+Control!$K$18*CustomersRes!BZ14)","v":16.931553871860757},{"$f":"(INT(BT124*BT57)+Control!$K$18*CustomersRes!CA14)","v":16.846896102501454},{"$f":"(INT(BU124*BU57)+Control!$K$18*CustomersRes!CB14)","v":16.762661621988947},{"$f":"(INT(BV124*BV57)+Control!$K$18*CustomersRes!CC14)","v":16.678848313879001},{"$f":"(INT(BW124*BW57)+Control!$K$18*CustomersRes!CD14)","v":16.595454072309607},{"$f":"(INT(BX124*BX57)+Control!$K$18*CustomersRes!CE14)","v":16.512476801948058},{"$f":"(INT(BY124*BY57)+Control!$K$18*CustomersRes!CF14)","v":16.429914417938317},{"$f":"(INT(BZ124*BZ57)+Control!$K$18*CustomersRes!CG14)","v":16.347764845848626},{"$f":"(INT(CA124*CA57)+Control!$K$18*CustomersRes!CH14)","v":17.266026021619382},{"$f":"(INT(CB124*CB57)+Control!$K$18*CustomersRes!CI14)","v":17.179695891511287},{"$f":"(INT(CC124*CC57)+Control!$K$18*CustomersRes!CJ14)","v":17.093797412053728},{"$f":"(INT(CD124*CD57)+Control!$K$18*CustomersRes!CK14)","v":16.008328424993461}]
["Melbourne (C)",null,{"$f":"(INT(C125*C58)+Control!$K$18*CustomersRes!J15)","v":4.335},{"$f":"(INT(D125*D58)+Control!$K$18*CustomersRes!K15)","v":4.3983249999999998},{"$f":"(INT(E125*E58)+Control!$K$18*CustomersRes!L15)","v":4.4613333749999997},{"$f":"(INT(F125*F58)+Control!$K$18*CustomersRes!M15)","v":4.5240267081249996},{"$f":"(INT(G125*G58)+Control!$K$18*CustomersRes!N15)","v":4.5914065745843748},{"$f":"(INT(H125*H58)+Control!$K$18*CustomersRes!O15)","v":4.6584495417114526},{"$f":"(INT(I125*I58)+Control!$K$18*CustomersRes!P15)","v":4.7251572940028961},{"$f":"(INT(J125*J58)+Control!$K$18*CustomersRes!Q15)","v":4.7915315075328815},{"$f":"(INT(K125*K58)+Control!$K$18*CustomersRes!R15)","v":4.8625738499952167},{"$f":"(INT(L125*L58)+Control!$K$18*CustomersRes!S15)","v":4.9332609807452403},{"$f":"(INT(M125*M58)+Control!$K$18*CustomersRes!T15)","v":5.0035946758415148},{"$f":"(INT(N125*N58)+Control!$K$18*CustomersRes!U15)","v":4.9785767024623064},{"$f":"(INT(O125*O58)+Control!$K$18*CustomersRes!V15)","v":4.9536838189499957},{"$f":"(INT(P125*P58)+Control!$K$18*CustomersRes!W15)","v":4.9289153998552448},{"$f":"(INT(Q125*Q58)+Control!$K$18*CustomersRes!X15)","v":4.9042708228559695},{"$f":"(INT(R125*R58)+Control!$K$18*CustomersRes!Y15)","v":4.8797494687416894},{"$f":"(INT(S125*S58)+Control!$K$18*CustomersRes!Z15)","v":4.855350721397981},{"$f":"(INT(T125*T58)+Control!$K$18*CustomersRes!AA15)","v":4.8310739677909913},{"$f":"(INT(U125*U58)+Control!$K$18*CustomersRes!AB15)","v":4.8069185979520359},{"$f":"(INT(V125*V58)+Control!$K$18*CustomersRes!AC15)","v":4.7828840049622761},{"$f":"(INT(W125*W58)+Control!$K$18*CustomersRes!AD15)","v":4.7589695849374642},{"$f":"(INT(X125*X58)+Control!$K$18*CustomersRes!AE15)","v":4.7351747370127768},{"$f":"(INT(Y125*Y58)+Control!$K$18*CustomersRes!AF15)","v":4.7114988633277122},{"$f":"(INT(Z125*Z58)+Control!$K$18*CustomersRes!AG15)","v":4.6879413690110736},{"$f":"(INT(AA125*AA58)+Control!$K$18*CustomersRes!AH15)","v":5.6645016621660185},{"$f":"(INT(AB125*AB58)+Control!$K$18*CustomersRes!AI15)","v":5.6361791538551884},{"$f":"(INT(AC125*AC58)+Control!$K$18*CustomersRes!AJ15)","v":5.607998258085912},{"$f":"(INT(AD125*AD58)+Control!$K$18*CustomersRes!AK15)","v":6.579958266795483},{"$f":"(INT(AE125*AE58)+Control!$K$18*CustomersRes!AL15)","v":6.5470584754615047},{"$f":"(INT(AF125*AF58)+Control!$K$18*CustomersRes!AM15)","v":7.5143231830841977},{"$f":"(INT(AG125*AG58)+Control!$K$18*CustomersRes!AN15)","v":8.4767515671687761},{"$f":"(INT(AH125*AH58)+Control!$K$18*CustomersRes!AO15)","v":9.4343678093329331},{"$f":"(INT(AI125*AI58)+Control!$K$18*CustomersRes!AP15)","v":11.387195970286268},{"$f":"(INT(AJ125*AJ58)+Control!$K$18*CustomersRes!AQ15)","v":12.330259990434836},{"$f":"(INT(AK125*AK58)+Control!$K$18*CustomersRes!AR15)","v":14.268608690482662},{"$f":"(INT(AL125*AL58)+Control!$K$18*CustomersRes!AS15)","v":8.1972656470302496},{"$f":"(INT(AM125*AM58)+Control!$K$18*CustomersRes!AT15)","v":8.1562793187950984},{"$f":"(INT(AN125*AN58)+Control!$K$18*CustomersRes!AU15)","v":9.1154979222011221},{"$f":"(INT(AO125*AO58)+Control!$K$18*CustomersRes!AV15)","v":10.069920432590116},{"$f":"(INT(AP125*AP58)+Control!$K$18*CustomersRes!AW15)","v":12.019570830427167},{"$f":"(INT(AQ125*AQ58)+Control!$K$18*CustomersRes!AX15)","v":13.95947297627503},{"$f":"(INT(AR125*AR58)+Control!$K$18*CustomersRes!AY15)","v":15.889675611393656},{"$f":"(INT(AS125*AS58)+Control!$K$18*CustomersRes!AZ15)","v":18.810227233336686},{"$f":"(INT(AT125*AT58)+Control!$K$18*CustomersRes!BA15)","v":22.716176097170003},{"$f":"(INT(AU125*AU58)+Control!$K$18*CustomersRes!BB15)","v":27.602595216684154},{"$f":"(INT(AV125*AV58)+Control!$K$18*CustomersRes!BC15)","v":31.464582240600734},{"$f":"(INT(AW125*AW58)+Control!$K$18*CustomersRes!BD15)","v":35.307259329397731},{"$f":"(INT(AX125*AX58)+Control!$K$18*CustomersRes!BE15)","v":37.130723032750737},{"$f":"(INT(AY125*AY58)+Control!$K$18*CustomersRes!BF15)","v":37.945069417586986},{"$f":"(INT(AZ125*AZ58)+Control!$K$18*CustomersRes!BG15)","v":36.755344070499049},{"$f":"(INT(BA125*BA58)+Control!$K$18*CustomersRes!BH15)","v":35.571567350146559},{"$f":"(INT(BB125*BB58)+Control!$K$18*CustomersRes!BI15)","v":32.393709513395827},{"$f":"(INT(BC125*BC58)+Control!$K$18*CustomersRes!BJ15)","v":30.231740965828845},{"$f":"(INT(BD125*BD58)+Control!$K$18*CustomersRes!BK15)","v":28.080582260999702},{"$f":"(INT(BE125*BE58)+Control!$K$18*CustomersRes!BL15)","v":25.940179349694702},{"$f":"(INT(BF125*BF58)+Control!$K$18*CustomersRes!BM15)","v":24.810478452946228},{"$f":"(INT(BG125*BG58)+Control!$K$18*CustomersRes!BN15)","v":22.686426060681498},{"$f":"(INT(BH125*BH58)+Control!$K$18*CustomersRes!BO15)","v":20.57299393037809},{"$f":"(INT(BI125*BI58)+Control!$K$18*CustomersRes!BP15)","v":19.4701289607262},{"$f":"(INT(BJ125*BJ58)+Control!$K$18*CustomersRes!BQ15)","v":18.372778315922567},{"$f":"(INT(BK125*BK58)+Control!$K$18*CustomersRes!BR15)","v":17.280914424342956},{"$f":"(INT(BL125*BL58)+Control!$K$18*CustomersRes!BS15)","v":1.1945098522212407},{"$f":"(INT(BM125*BM58)+Control!$K$18*CustomersRes!BT15)","v":1.1885373029601345},{"$f":"(INT(BN125*BN58)+Control!$K$18*CustomersRes!BU15)","v":1.1825946164453338},{"$f":"(INT(BO125*BO58)+Control!$K$18*CustomersRes!BV15)","v":1.1766816433631071},{"$f":"(INT(BP125*BP58)+Control!$K$18*CustomersRes!BW15)","v":1.1707982351462916},{"$f":"(INT(BQ125*BQ58)+Control!$K$18*CustomersRes!BX15)","v":1.1649442439705602},{"$f":"(INT(BR125*BR58)+Control!$K$18*CustomersRes!BY15)","v":1.1591195227507074},{"$f":"(INT(BS125*BS58)+Control!$K$18*CustomersRes!BZ15)","v":1.1533239251369538},{"$f":"(INT(BT125*BT58)+Control!$K$18*CustomersRes!CA15)","v":1.1475573055112691},{"$f":"(INT(BU125*BU58)+Control!$K$18*CustomersRes!CB15)","v":1.1418195189837126},{"$f":"(INT(BV125*BV58)+Control!$K$18*CustomersRes!CC15)","v":1.1361104213887943},{"$f":"(INT(BW125*BW58)+Control!$K$18*CustomersRes!CD15)","v":1.1304298692818502},{"$f":"(INT(BX125*BX58)+Control!$K$18*CustomersRes!CE15)","v":1.124777719935441},{"$f":"(INT(BY125*BY58)+Control!$K$18*CustomersRes!CF15)","v":1.1191538313357636},{"$f":"(INT(BZ125*BZ58)+Control!$K$18*CustomersRes!CG15)","v":1.113558062179085},{"$f":"(INT(CA125*CA58)+Control!$K$18*CustomersRes!CH15)","v":1.1079902718681895},{"$f":"(INT(CB125*CB58)+Control!$K$18*CustomersRes!CI15)","v":1.1024503205088485},{"$f":"(INT(CC125*CC58)+Control!$K$18*CustomersRes!CJ15)","v":1.0969380689063042},{"$f":"(INT(CD125*CD58)+Control!$K$18*CustomersRes!CK15)","v":1.0914533785617728}]
["Monash (C)",null,{"$f":"(INT(C126*C59)+Control!$K$18*CustomersRes!J16)","v":328.07},{"$f":"(INT(D126*D59)+Control!$K$18*CustomersRes!K16)","v":332.98464999999999},{"$f":"(INT(E126*E59)+Control!$K$18*CustomersRes!L16)","v":337.97472675},{"$f":"(INT(F126*F59)+Control!$K$18*CustomersRes!M16)","v":343.03985311624996},{"$f":"(INT(G126*G59)+Control!$K$18*CustomersRes!N16)","v":348.17965385066867},{"$f":"(INT(H126*H59)+Control!$K$18*CustomersRes!O16)","v":353.39875558141534},{"$f":"(INT(I126*I59)+Control!$K$18*CustomersRes!P16)","v":358.69676180350825},{"$f":"(INT(J126*J59)+Control!$K$18*CustomersRes!Q16)","v":364.0732779944907},{"$f":"(INT(K126*K59)+Control!$K$18*CustomersRes!R16)","v":369.53291160451823},{"$f":"(INT(L126*L59)+Control!$K$18*CustomersRes!S16)","v":375.07024704649564},{"$f":"(INT(M126*M59)+Control!$K$18*CustomersRes!T16)","v":380.69489581126322},{"$f":"(INT(N126*N59)+Control!$K$18*CustomersRes!U16)","v":378.79142133220688},{"$f":"(INT(O126*O59)+Control!$K$18*CustomersRes!V16)","v":376.89746422554583},{"$f":"(INT(P126*P59)+Control!$K$18*CustomersRes!W16)","v":375.01297690441811},{"$f":"(INT(Q126*Q59)+Control!$K$18*CustomersRes!X16)","v":373.13791201989602},{"$f":"(INT(R126*R59)+Control!$K$18*CustomersRes!Y16)","v":371.27222245979652},{"$f":"(INT(S126*S59)+Control!$K$18*CustomersRes!Z16)","v":370.41586134749758},{"$f":"(INT(T126*T59)+Control!$K$18*CustomersRes!AA16)","v":369.56378204076003},{"$f":"(INT(U126*U59)+Control!$K$18*CustomersRes!AB16)","v":370.71596313055625},{"$f":"(INT(V126*V59)+Control!$K$18*CustomersRes!AC16)","v":373.86238331490352},{"$f":"(INT(W126*W59)+Control!$K$18*CustomersRes!AD16)","v":377.99307139832899},{"$f":"(INT(X126*X59)+Control!$K$18*CustomersRes!AE16)","v":410.1031060413373},{"$f":"(INT(Y126*Y59)+Control!$K$18*CustomersRes!AF16)","v":506.05259051113063},{"$f":"(INT(Z126*Z59)+Control!$K$18*CustomersRes!AG16)","v":658.52232755857494},{"$f":"(INT(AA126*AA59)+Control!$K$18*CustomersRes!AH16)","v":949.22971592078216},{"$f":"(INT(AB126*AB59)+Control!$K$18*CustomersRes!AI16)","v":1322.4835673411783},{"$f":"(INT(AC126*AC59)+Control!$K$18*CustomersRes!AJ16)","v":1808.8711495044722},{"$f":"(INT(AD126*AD59)+Control!$K$18*CustomersRes!AK16)","v":2317.8267937569499},{"$f":"(INT(AE126*AE59)+Control!$K$18*CustomersRes!AL16)","v":2830.2376597881653},{"$f":"(INT(AF126*AF59)+Control!$K$18*CustomersRes!AM16)","v":3353.0864714892246},{"$f":"(INT(AG126*AG59)+Control!$K$18*CustomersRes!AN16)","v":3486.3210391317784},{"$f":"(INT(AH126*AH59)+Control!$K$18*CustomersRes!AO16)","v":3558.8894339361195},{"$f":"(INT(AI126*AI59)+Control!$K$18*CustomersRes!AP16)","v":3465.094986766439},{"$f":"(INT(AJ126*AJ59)+Control!$K$18*CustomersRes!AQ16)","v":3296.7695118326064},{"$f":"(INT(AK126*AK59)+Control!$K$18*CustomersRes!AR16)","v":3107.2856642734437},{"$f":"(INT(AL126*AL59)+Control!$K$18*CustomersRes!AS16)","v":2604.7492359520766},{"$f":"(INT(AM126*AM59)+Control!$K$18*CustomersRes!AT16)","v":2358.725489772316},{"$f":"(INT(AN126*AN59)+Control!$K$18*CustomersRes!AU16)","v":2356.9318623234544},{"$f":"(INT(AO126*AO59)+Control!$K$18*CustomersRes!AV16)","v":2301.1472030118371},{"$f":"(INT(AP126*AP59)+Control!$K$18*CustomersRes!AW16)","v":2189.641466996778},{"$f":"(INT(AQ126*AQ59)+Control!$K$18*CustomersRes!AX16)","v":2061.6932596617939},{"$f":"(INT(AR126*AR59)+Control!$K$18*CustomersRes!AY16)","v":1928.3847933634852},{"$f":"(INT(AS126*AS59)+Control!$K$18*CustomersRes!AZ16)","v":1796.7428693966676},{"$f":"(INT(AT126*AT59)+Control!$K$18*CustomersRes!BA16)","v":1670.7591550496843},{"$f":"(INT(AU126*AU59)+Control!$K$18*CustomersRes!BB16)","v":1552.4053592744358},{"$f":"(INT(AV126*AV59)+Control!$K$18*CustomersRes!BC16)","v":1440.6433324780637},{"$f":"(INT(AW126*AW59)+Control!$K$18*CustomersRes!BD16)","v":1337.4401158156734},{"$f":"(INT(AX126*AX59)+Control!$K$18*CustomersRes!BE16)","v":1241.7529152365951},{"$f":"(INT(AY126*AY59)+Control!$K$18*CustomersRes!BF16)","v":1152.544150660412},{"$f":"(INT(AZ126*AZ59)+Control!$K$18*CustomersRes!BG16)","v":1070.7814299071099},{"$f":"(INT(BA126*BA59)+Control!$K$18*CustomersRes!BH16)","v":993.42752275757448},{"$f":"(INT(BB126*BB59)+Control!$K$18*CustomersRes!BI16)","v":922.46038514378654},{"$f":"(INT(BC126*BC59)+Control!$K$18*CustomersRes!BJ16)","v":855.84808321806759},{"$f":"(INT(BD126*BD59)+Control!$K$18*CustomersRes!BK16)","v":794.56884280197733},{"$f":"(INT(BE126*BE59)+Control!$K$18*CustomersRes!BL16)","v":737.59599858796742},{"$f":"(INT(BF126*BF59)+Control!$K$18*CustomersRes!BM16)","v":685.90801859502756},{"$f":"(INT(BG126*BG59)+Control!$K$18*CustomersRes!BN16)","v":637.47847850205244},{"$f":"(INT(BH126*BH59)+Control!$K$18*CustomersRes!BO16)","v":591.29108610954211},{"$f":"(INT(BI126*BI59)+Control!$K$18*CustomersRes!BP16)","v":549.33463067899447},{"$f":"(INT(BJ126*BJ59)+Control!$K$18*CustomersRes!BQ16)","v":509.58795752559945},{"$f":"(INT(BK126*BK59)+Control!$K$18*CustomersRes!BR16)","v":473.04001773797148},{"$f":"(INT(BL126*BL59)+Control!$K$18*CustomersRes!BS16)","v":31.674817649281618},{"$f":"(INT(BM126*BM59)+Control!$K$18*CustomersRes!BT16)","v":31.516443561035206},{"$f":"(INT(BN126*BN59)+Control!$K$18*CustomersRes!BU16)","v":31.358861343230032},{"$f":"(INT(BO126*BO59)+Control!$K$18*CustomersRes!BV16)","v":31.202067036513881},{"$f":"(INT(BP126*BP59)+Control!$K$18*CustomersRes!BW16)","v":31.046056701331313},{"$f":"(INT(BQ126*BQ59)+Control!$K$18*CustomersRes!BX16)","v":30.890826417824655},{"$f":"(INT(BR126*BR59)+Control!$K$18*CustomersRes!BY16)","v":30.736372285735534},{"$f":"(INT(BS126*BS59)+Control!$K$18*CustomersRes!BZ16)","v":30.582690424306858},{"$f":"(INT(BT126*BT59)+Control!$K$18*CustomersRes!CA16)","v":30.429776972185323},{"$f":"(INT(BU126*BU59)+Control!$K$18*CustomersRes!CB16)","v":30.277628087324398},{"$f":"(INT(BV126*BV59)+Control!$K$18*CustomersRes!CC16)","v":30.126239946887779},{"$f":"(INT(BW126*BW59)+Control!$K$18*CustomersRes!CD16)","v":29.975608747153338},{"$f":"(INT(BX126*BX59)+Control!$K$18*CustomersRes!CE16)","v":29.825730703417573},{"$f":"(INT(BY126*BY59)+Control!$K$18*CustomersRes!CF16)","v":29.676602049900485},{"$f":"(INT(BZ126*BZ59)+Control!$K$18*CustomersRes!CG16)","v":29.528219039650981},{"$f":"(INT(CA126*CA59)+Control!$K$18*CustomersRes!CH16)","v":29.380577944452725},{"$f":"(INT(CB126*CB59)+Control!$K$18*CustomersRes!CI16)","v":29.233675054730462},{"$f":"(INT(CC126*CC59)+Control!$K$18*CustomersRes!CJ16)","v":29.087506679456812},{"$f":"(INT(CD126*CD59)+Control!$K$18*CustomersRes!CK16)","v":28.942069146059527}]
["Nillumbik (S)",null,{"$f":"(INT(C127*C60)+Control!$K$18*CustomersRes!J17)","v":0.04},{"$f":"(INT(D127*D60)+Control!$K$18*CustomersRes!K17)","v":3.9800000000000002E-2},{"$f":"(INT(E127*E60)+Control!$K$18*CustomersRes!L17)","v":3.9601000000000004E-2},{"$f":"(INT(F127*F60)+Control!$K$18*CustomersRes!M17)","v":3.9402995000000003E-2},{"$f":"(INT(G127*G60)+Control!$K$18*CustomersRes!N17)","v":3.9205980025000003E-2},{"$f":"(INT(H127*H60)+Control!$K$18*CustomersRes!O17)","v":3.9009950124875008E-2},{"$f":"(INT(I127*I60)+Control!$K$18*CustomersRes!P17)","v":3.881490037425063E-2},{"$f":"(INT(J127*J60)+Control!$K$18*CustomersRes!Q17)","v":3.8620825872379375E-2},{"$f":"(INT(K127*K60)+Control!$K$18*CustomersRes!R17)","v":3.8427721743017479E-2},{"$f":"(INT(L127*L60)+Control!$K$18*CustomersRes!S17)","v":3.8235583134302392E-2},{"$f":"(INT(M127*M60)+Control!$K$18*CustomersRes!T17)","v":3.8044405218630881E-2},{"$f":"(INT(N127*N60)+Control!$K$18*CustomersRes!U17)","v":3.7854183192537721E-2},{"$f":"(INT(O127*O60)+Control!$K$18*CustomersRes!V17)","v":3.7664912276575035E-2},{"$f":"(INT(P127*P60)+Control!$K$18*CustomersRes!W17)","v":3.7476587715192161E-2},{"$f":"(INT(Q127*Q60)+Control!$K$18*CustomersRes!X17)","v":3.7289204776616201E-2},{"$f":"(INT(R127*R60)+Control!$K$18*CustomersRes!Y17)","v":3.7102758752733118E-2},{"$f":"(INT(S127*S60)+Control!$K$18*CustomersRes!Z17)","v":3.6917244958969454E-2},{"$f":"(INT(T127*T60)+Control!$K$18*CustomersRes!AA17)","v":3.6732658734174604E-2},{"$f":"(INT(U127*U60)+Control!$K$18*CustomersRes!AB17)","v":3.6548995440503732E-2},{"$f":"(INT(V127*V60)+Control!$K$18*CustomersRes!AC17)","v":3.6366250463301213E-2},{"$f":"(INT(W127*W60)+Control!$K$18*CustomersRes!AD17)","v":3.6184419210984704E-2},{"$f":"(INT(X127*X60)+Control!$K$18*CustomersRes!AE17)","v":3.6003497114929783E-2},{"$f":"(INT(Y127*Y60)+Control!$K$18*CustomersRes!AF17)","v":3.5823479629355136E-2},{"$f":"(INT(Z127*Z60)+Control!$K$18*CustomersRes!AG17)","v":3.5644362231208357E-2},{"$f":"(INT(AA127*AA60)+Control!$K$18*CustomersRes!AH17)","v":3.5466140420052319E-2},{"$f":"(INT(AB127*AB60)+Control!$K$18*CustomersRes!AI17)","v":3.5288809717952056E-2},{"$f":"(INT(AC127*AC60)+Control!$K$18*CustomersRes!AJ17)","v":3.5112365669362301E-2},{"$f":"(INT(AD127*AD60)+Control!$K$18*CustomersRes!AK17)","v":3.4936803841015489E-2},{"$f":"(INT(AE127*AE60)+Control!$K$18*CustomersRes!AL17)","v":3.4762119821810412E-2},{"$f":"(INT(AF127*AF60)+Control!$K$18*CustomersRes!AM17)","v":3.4588309222701362E-2},{"$f":"(INT(AG127*AG60)+Control!$K$18*CustomersRes!AN17)","v":3.4415367676587857E-2},{"$f":"(INT(AH127*AH60)+Control!$K$18*CustomersRes!AO17)","v":3.4243290838204918E-2},{"$f":"(INT(AI127*AI60)+Control!$K$18*CustomersRes!AP17)","v":3.4072074384013891E-2},{"$f":"(INT(AJ127*AJ60)+Control!$K$18*CustomersRes!AQ17)","v":3.3901714012093825E-2},{"$f":"(INT(AK127*AK60)+Control!$K$18*CustomersRes!AR17)","v":3.3732205442033356E-2},{"$f":"(INT(AL127*AL60)+Control!$K$18*CustomersRes!AS17)","v":3.3563544414823183E-2},{"$f":"(INT(AM127*AM60)+Control!$K$18*CustomersRes!AT17)","v":3.3395726692749067E-2},{"$f":"(INT(AN127*AN60)+Control!$K$18*CustomersRes!AU17)","v":3.3228748059285322E-2},{"$f":"(INT(AO127*AO60)+Control!$K$18*CustomersRes!AV17)","v":3.3062604318988893E-2},{"$f":"(INT(AP127*AP60)+Control!$K$18*CustomersRes!AW17)","v":3.2897291297393952E-2},{"$f":"(INT(AQ127*AQ60)+Control!$K$18*CustomersRes!AX17)","v":3.273280484090698E-2},{"$f":"(INT(AR127*AR60)+Control!$K$18*CustomersRes!AY17)","v":3.2569140816702445E-2},{"$f":"(INT(AS127*AS60)+Control!$K$18*CustomersRes!AZ17)","v":3.240629511261893E-2},{"$f":"(INT(AT127*AT60)+Control!$K$18*CustomersRes!BA17)","v":3.2244263637055834E-2},{"$f":"(INT(AU127*AU60)+Control!$K$18*CustomersRes!BB17)","v":3.2083042318870561E-2},{"$f":"(INT(AV127*AV60)+Control!$K$18*CustomersRes!BC17)","v":3.1922627107276211E-2},{"$f":"(INT(AW127*AW60)+Control!$K$18*CustomersRes!BD17)","v":3.1763013971739827E-2},{"$f":"(INT(AX127*AX60)+Control!$K$18*CustomersRes!BE17)","v":3.1604198901881125E-2},{"$f":"(INT(AY127*AY60)+Control!$K$18*CustomersRes!BF17)","v":3.1446177907371718E-2},{"$f":"(INT(AZ127*AZ60)+Control!$K$18*CustomersRes!BG17)","v":3.1288947017834863E-2},{"$f":"(INT(BA127*BA60)+Control!$K$18*CustomersRes!BH17)","v":3.1132502282745691E-2},{"$f":"(INT(BB127*BB60)+Control!$K$18*CustomersRes!BI17)","v":3.0976839771331963E-2},{"$f":"(INT(BC127*BC60)+Control!$K$18*CustomersRes!BJ17)","v":3.0821955572475301E-2},{"$f":"(INT(BD127*BD60)+Control!$K$18*CustomersRes!BK17)","v":3.0667845794612927E-2},{"$f":"(INT(BE127*BE60)+Control!$K$18*CustomersRes!BL17)","v":3.0514506565639858E-2},{"$f":"(INT(BF127*BF60)+Control!$K$18*CustomersRes!BM17)","v":3.0361934032811656E-2},{"$f":"(INT(BG127*BG60)+Control!$K$18*CustomersRes!BN17)","v":3.0210124362647597E-2},{"$f":"(INT(BH127*BH60)+Control!$K$18*CustomersRes!BO17)","v":3.0059073740834361E-2},{"$f":"(INT(BI127*BI60)+Control!$K$18*CustomersRes!BP17)","v":2.9908778372130188E-2},{"$f":"(INT(BJ127*BJ60)+Control!$K$18*CustomersRes!BQ17)","v":2.9759234480269538E-2},{"$f":"(INT(BK127*BK60)+Control!$K$18*CustomersRes!BR17)","v":2.9610438307868192E-2},{"$f":"(INT(BL127*BL60)+Control!$K$18*CustomersRes!BS17)","v":2.9462386116328849E-2},{"$f":"(INT(BM127*BM60)+Control!$K$18*CustomersRes!BT17)","v":2.9315074185747206E-2},{"$f":"(INT(BN127*BN60)+Control!$K$18*CustomersRes!BU17)","v":2.9168498814818471E-2},{"$f":"(INT(BO127*BO60)+Control!$K$18*CustomersRes!BV17)","v":2.902265632074438E-2},{"$f":"(INT(BP127*BP60)+Control!$K$18*CustomersRes!BW17)","v":2.8877543039140658E-2},{"$f":"(INT(BQ127*BQ60)+Control!$K$18*CustomersRes!BX17)","v":2.8733155323944954E-2},{"$f":"(INT(BR127*BR60)+Control!$K$18*CustomersRes!BY17)","v":2.8589489547325233E-2},{"$f":"(INT(BS127*BS60)+Control!$K$18*CustomersRes!BZ17)","v":2.8446542099588603E-2},{"$f":"(INT(BT127*BT60)+Control!$K$18*CustomersRes!CA17)","v":2.8304309389090659E-2},{"$f":"(INT(BU127*BU60)+Control!$K$18*CustomersRes!CB17)","v":2.8162787842145206E-2},{"$f":"(INT(BV127*BV60)+Control!$K$18*CustomersRes!CC17)","v":2.8021973902934479E-2},{"$f":"(INT(BW127*BW60)+Control!$K$18*CustomersRes!CD17)","v":2.7881864033419808E-2},{"$f":"(INT(BX127*BX60)+Control!$K$18*CustomersRes!CE17)","v":2.774245471325271E-2},{"$f":"(INT(BY127*BY60)+Control!$K$18*CustomersRes!CF17)","v":2.7603742439686444E-2},{"$f":"(INT(BZ127*BZ60)+Control!$K$18*CustomersRes!CG17)","v":2.7465723727488012E-2},{"$f":"(INT(CA127*CA60)+Control!$K$18*CustomersRes!CH17)","v":2.7328395108850573E-2},{"$f":"(INT(CB127*CB60)+Control!$K$18*CustomersRes!CI17)","v":2.719175313330632E-2},{"$f":"(INT(CC127*CC60)+Control!$K$18*CustomersRes!CJ17)","v":2.7055794367639791E-2},{"$f":"(INT(CD127*CD60)+Control!$K$18*CustomersRes!CK17)","v":2.6920515395801592E-2}]
["Port Phillip (C)",null,{"$f":"(INT(C128*C61)+Control!$K$18*CustomersRes!J18)","v":191.62},{"$f":"(INT(D128*D61)+Control!$K$18*CustomersRes!K18)","v":194.47190000000001},{"$f":"(INT(E128*E61)+Control!$K$18*CustomersRes!L18)","v":197.37954050000002},{"$f":"(INT(F128*F61)+Control!$K$18*CustomersRes!M18)","v":200.32264279750001},{"$f":"(INT(G128*G61)+Control!$K$18*CustomersRes!N18)","v":203.3010295835125},{"$f":"(INT(H128*H61)+Control!$K$18*CustomersRes!O18)","v":206.34452443559493},{"$f":"(INT(I128*I61)+Control!$K$18*CustomersRes!P18)","v":209.43280181341697},{"$f":"(INT(J128*J61)+Control!$K$18*CustomersRes!Q18)","v":212.56063780434988},{"$f":"(INT(K128*K61)+Control!$K$18*CustomersRes!R18)","v":215.74283461532809},{"$f":"(INT(L128*L61)+Control!$K$18*CustomersRes!S18)","v":218.95412044225148},{"$f":"(INT(M128*M61)+Control!$K$18*CustomersRes!T18)","v":222.22434984004025},{"$f":"(INT(N128*N61)+Control!$K$18*CustomersRes!U18)","v":221.11322809084004},{"$f":"(INT(O128*O61)+Control!$K$18*CustomersRes!V18)","v":220.00766195038582},{"$f":"(INT(P128*P61)+Control!$K$18*CustomersRes!W18)","v":218.90762364063386},{"$f":"(INT(Q128*Q61)+Control!$K$18*CustomersRes!X18)","v":220.8130855224307},{"$f":"(INT(R128*R61)+Control!$K$18*CustomersRes!Y18)","v":222.70902009481856},{"$f":"(INT(S128*S61)+Control!$K$18*CustomersRes!Z18)","v":233.59547499434447},{"$f":"(INT(T128*T61)+Control!$K$18*CustomersRes!AA18)","v":245.42749761937279},{"$f":"(INT(U128*U61)+Control!$K$18*CustomersRes!AB18)","v":274.20036013127594},{"$f":"(INT(V128*V61)+Control!$K$18*CustomersRes!AC18)","v":307.82935833061958},{"$f":"(INT(W128*W61)+Control!$K$18*CustomersRes!AD18)","v":345.29021153896645},{"$f":"(INT(X128*X61)+Control!$K$18*CustomersRes!AE18)","v":492.56376048127163},{"$f":"(INT(Y128*Y61)+Control!$K$18*CustomersRes!AF18)","v":773.10094167886518},{"$f":"(INT(Z128*Z61)+Control!$K$18*CustomersRes!AG18)","v":1044.2354369704708},{"$f":"(INT(AA128*AA61)+Control!$K$18*CustomersRes!AH18)","v":1363.0142597856186},{"$f":"(INT(AB128*AB61)+Control!$K$18*CustomersRes!AI18)","v":1601.1991884866904},{"$f":"(INT(AC128*AC61)+Control!$K$18*CustomersRes!AJ18)","v":1786.193192544257},{"$f":"(INT(AD128*AD61)+Control!$K$18*CustomersRes!AK18)","v":1892.2622265815357},{"$f":"(INT(AE128*AE61)+Control!$K$18*CustomersRes!AL18)","v":1948.8009154486281},{"$f":"(INT(AF128*AF61)+Control!$K$18*CustomersRes!AM18)","v":1973.0569108713848},{"$f":"(INT(AG128*AG61)+Control!$K$18*CustomersRes!AN18)","v":1911.1916263170281},{"$f":"(INT(AH128*AH61)+Control!$K$18*CustomersRes!AO18)","v":1841.6356681854429},{"$f":"(INT(AI128*AI61)+Control!$K$18*CustomersRes!AP18)","v":1746.4274898445155},{"$f":"(INT(AJ128*AJ61)+Control!$K$18*CustomersRes!AQ18)","v":1640.6953523952932},{"$f":"(INT(AK128*AK61)+Control!$K$18*CustomersRes!AR18)","v":1535.4918756333166},{"$f":"(INT(AL128*AL61)+Control!$K$18*CustomersRes!AS18)","v":1359.81441625515},{"$f":"(INT(AM128*AM61)+Control!$K$18*CustomersRes!AT18)","v":1252.0153441738744},{"$f":"(INT(AN128*AN61)+Control!$K$18*CustomersRes!AU18)","v":1199.755267453005},{"$f":"(INT(AO128*AO61)+Control!$K$18*CustomersRes!AV18)","v":1139.7564911157399},{"$f":"(INT(AP128*AP61)+Control!$K$18*CustomersRes!AW18)","v":1071.0577086601611},{"$f":"(INT(AQ128*AQ61)+Control!$K$18*CustomersRes!AX18)","v":1002.7024201168604},{"$f":"(INT(AR128*AR61)+Control!$K$18*CustomersRes!AY18)","v":934.68890801627606},{"$f":"(INT(AS128*AS61)+Control!$K$18*CustomersRes!AZ18)","v":871.01546347619467},{"$f":"(INT(AT128*AT61)+Control!$K$18*CustomersRes!BA18)","v":809.66038615881371},{"$f":"(INT(AU128*AU61)+Control!$K$18*CustomersRes!BB18)","v":752.61208422801963},{"$f":"(INT(AV128*AV61)+Control!$K$18*CustomersRes!BC18)","v":698.84902380687959},{"$f":"(INT(AW128*AW61)+Control!$K$18*CustomersRes!BD18)","v":648.35477868784517},{"$f":"(INT(AX128*AX61)+Control!$K$18*CustomersRes!BE18)","v":602.11300479440592},{"$f":"(INT(AY128*AY61)+Control!$K$18*CustomersRes!BF18)","v":559.10243977043388},{"$f":"(INT(AZ128*AZ61)+Control!$K$18*CustomersRes!BG18)","v":519.3069275715817},{"$f":"(INT(BA128*BA61)+Control!$K$18*CustomersRes!BH18)","v":481.71039293372382},{"$f":"(INT(BB128*BB61)+Control!$K$18*CustomersRes!BI18)","v":447.30184096905521},{"$f":"(INT(BC128*BC61)+Control!$K$18*CustomersRes!BJ18)","v":415.06533176420993},{"$f":"(INT(BD128*BD61)+Control!$K$18*CustomersRes!BK18)","v":384.99000510538889},{"$f":"(INT(BE128*BE61)+Control!$K$18*CustomersRes!BL18)","v":358.06505507986196},{"$f":"(INT(BF128*BF61)+Control!$K$18*CustomersRes!BM18)","v":332.27472980446265},{"$f":"(INT(BG128*BG61)+Control!$K$18*CustomersRes!BN18)","v":308.61335615544033},{"$f":"(INT(BH128*BH61)+Control!$K$18*CustomersRes!BO18)","v":286.0702893746631},{"$f":"(INT(BI128*BI61)+Control!$K$18*CustomersRes!BP18)","v":266.63993792778979},{"$f":"(INT(BJ128*BJ61)+Control!$K$18*CustomersRes!BQ18)","v":247.30673823815084},{"$f":"(INT(BK128*BK61)+Control!$K$18*CustomersRes!BR18)","v":230.0702045469601},{"$f":"(INT(BL128*BL61)+Control!$K$18*CustomersRes!BS18)","v":20.919853524225296},{"$f":"(INT(BM128*BM61)+Control!$K$18*CustomersRes!BT18)","v":20.81525425660417},{"$f":"(INT(BN128*BN61)+Control!$K$18*CustomersRes!BU18)","v":20.71117798532115},{"$f":"(INT(BO128*BO61)+Control!$K$18*CustomersRes!BV18)","v":20.607622095394543},{"$f":"(INT(BP128*BP61)+Control!$K$18*CustomersRes!BW18)","v":20.50458398491757},{"$f":"(INT(BQ128*BQ61)+Control!$K$18*CustomersRes!BX18)","v":20.402061064992981},{"$f":"(INT(BR128*BR61)+Control!$K$18*CustomersRes!BY18)","v":20.300050759668018},{"$f":"(INT(BS128*BS61)+Control!$K$18*CustomersRes!BZ18)","v":20.198550505869676},{"$f":"(INT(BT128*BT61)+Control!$K$18*CustomersRes!CA18)","v":20.097557753340325},{"$f":"(INT(BU128*BU61)+Control!$K$18*CustomersRes!CB18)","v":20.997069964573626},{"$f":"(INT(BV128*BV61)+Control!$K$18*CustomersRes!CC18)","v":20.892084614750758},{"$f":"(INT(BW128*BW61)+Control!$K$18*CustomersRes!CD18)","v":20.787624191677004},{"$f":"(INT(BX128*BX61)+Control!$K$18*CustomersRes!CE18)","v":20.683686070718618},{"$f":"(INT(BY128*BY61)+Control!$K$18*CustomersRes!CF18)","v":20.580267640365026},{"$f":"(INT(BZ128*BZ61)+Control!$K$18*CustomersRes!CG18)","v":20.477366302163201},{"$f":"(INT(CA128*CA61)+Control!$K$18*CustomersRes!CH18)","v":20.374979470652384},{"$f":"(INT(CB128*CB61)+Control!$K$18*CustomersRes!CI18)","v":20.273104573299122},{"$f":"(INT(CC128*CC61)+Control!$K$18*CustomersRes!CJ18)","v":20.171739050432627},{"$f":"(INT(CD128*CD61)+Control!$K$18*CustomersRes!CK18)","v":19.070880355180464}]
["South Gippsland (S)",null,{"$f":"(INT(C129*C62)+Control!$K$18*CustomersRes!J19)","v":10.81},{"$f":"(INT(D129*D62)+Control!$K$18*CustomersRes!K19)","v":10.97095},{"$f":"(INT(E129*E62)+Control!$K$18*CustomersRes!L19)","v":11.131095250000001},{"$f":"(INT(F129*F62)+Control!$K$18*CustomersRes!M19)","v":11.295439773750003},{"$f":"(INT(G129*G62)+Control!$K$18*CustomersRes!N19)","v":11.463962574881252},{"$f":"(INT(H129*H62)+Control!$K$18*CustomersRes!O19)","v":11.631642762006846},{"$f":"(INT(I129*I62)+Control!$K$18*CustomersRes!P19)","v":11.803484548196812},{"$f":"(INT(J129*J62)+Control!$K$18*CustomersRes!Q19)","v":11.979467125455828},{"$f":"(INT(K129*K62)+Control!$K$18*CustomersRes!R19)","v":12.15456978982855},{"$f":"(INT(L129*L62)+Control!$K$18*CustomersRes!S19)","v":12.333796940879406},{"$f":"(INT(M129*M62)+Control!$K$18*CustomersRes!T19)","v":12.51712795617501},{"$f":"(INT(N129*N62)+Control!$K$18*CustomersRes!U19)","v":12.454542316394134},{"$f":"(INT(O129*O62)+Control!$K$18*CustomersRes!V19)","v":12.392269604812164},{"$f":"(INT(P129*P62)+Control!$K$18*CustomersRes!W19)","v":12.330308256788102},{"$f":"(INT(Q129*Q62)+Control!$K$18*CustomersRes!X19)","v":12.268656715504163},{"$f":"(INT(R129*R62)+Control!$K$18*CustomersRes!Y19)","v":12.207313431926641},{"$f":"(INT(S129*S62)+Control!$K$18*CustomersRes!Z19)","v":12.146276864767009},{"$f":"(INT(T129*T62)+Control!$K$18*CustomersRes!AA19)","v":12.085545480443173},{"$f":"(INT(U129*U62)+Control!$K$18*CustomersRes!AB19)","v":12.025117753040957},{"$f":"(INT(V129*V62)+Control!$K$18*CustomersRes!AC19)","v":11.964992164275753},{"$f":"(INT(W129*W62)+Control!$K$18*CustomersRes!AD19)","v":11.905167203454374},{"$f":"(INT(X129*X62)+Control!$K$18*CustomersRes!AE19)","v":11.845641367437102},{"$f":"(INT(Y129*Y62)+Control!$K$18*CustomersRes!AF19)","v":11.786413160599917},{"$f":"(INT(Z129*Z62)+Control!$K$18*CustomersRes!AG19)","v":11.727481094796918},{"$f":"(INT(AA129*AA62)+Control!$K$18*CustomersRes!AH19)","v":11.668843689322932},{"$f":"(INT(AB129*AB62)+Control!$K$18*CustomersRes!AI19)","v":12.610499470876318},{"$f":"(INT(AC129*AC62)+Control!$K$18*CustomersRes!AJ19)","v":12.547446973521938},{"$f":"(INT(AD129*AD62)+Control!$K$18*CustomersRes!AK19)","v":13.484709738654329},{"$f":"(INT(AE129*AE62)+Control!$K$18*CustomersRes!AL19)","v":13.417286189961057},{"$f":"(INT(AF129*AF62)+Control!$K$18*CustomersRes!AM19)","v":15.350199759011252},{"$f":"(INT(AG129*AG62)+Control!$K$18*CustomersRes!AN19)","v":16.273448760216198},{"$f":"(INT(AH129*AH62)+Control!$K$18*CustomersRes!AO19)","v":19.192081516415115},{"$f":"(INT(AI129*AI62)+Control!$K$18*CustomersRes!AP19)","v":21.096121108833039},{"$f":"(INT(AJ129*AJ62)+Control!$K$18*CustomersRes!AQ19)","v":24.990640503288876},{"$f":"(INT(AK129*AK62)+Control!$K$18*CustomersRes!AR19)","v":29.865687300772432},{"$f":"(INT(AL129*AL62)+Control!$K$18*CustomersRes!AS19)","v":16.716358864268571},{"$f":"(INT(AM129*AM62)+Control!$K$18*CustomersRes!AT19)","v":15.632777069947226},{"$f":"(INT(AN129*AN62)+Control!$K$18*CustomersRes!AU19)","v":17.554613184597493},{"$f":"(INT(AO129*AO62)+Control!$K$18*CustomersRes!AV19)","v":20.466840118674504},{"$f":"(INT(AP129*AP62)+Control!$K$18*CustomersRes!AW19)","v":24.364505918081129},{"$f":"(INT(AQ129*AQ62)+Control!$K$18*CustomersRes!AX19)","v":30.242683388490725},{"$f":"(INT(AR129*AR62)+Control!$K$18*CustomersRes!AY19)","v":38.091469971548271},{"$f":"(INT(AS129*AS62)+Control!$K$18*CustomersRes!AZ19)","v":48.901012621690526},{"$f":"(INT(AT129*AT62)+Control!$K$18*CustomersRes!BA19)","v":62.656507558582078},{"$f":"(INT(AU129*AU62)+Control!$K$18*CustomersRes!BB19)","v":79.343225020789163},{"$f":"(INT(AV129*AV62)+Control!$K$18*CustomersRes!BC19)","v":94.946508895685213},{"$f":"(INT(AW129*AW62)+Control!$K$18*CustomersRes!BD19)","v":103.4717763512068},{"$f":"(INT(AX129*AX62)+Control!$K$18*CustomersRes!BE19)","v":106.95441746945076},{"$f":"(INT(AY129*AY62)+Control!$K$18*CustomersRes!BF19)","v":102.41964538210351},{"$f":"(INT(AZ129*AZ62)+Control!$K$18*CustomersRes!BG19)","v":97.907547155192987},{"$f":"(INT(BA129*BA62)+Control!$K$18*CustomersRes!BH19)","v":90.418009419417018},{"$f":"(INT(BB129*BB62)+Control!$K$18*CustomersRes!BI19)","v":83.965919372319931},{"$f":"(INT(BC129*BC62)+Control!$K$18*CustomersRes!BJ19)","v":77.546089775458341},{"$f":"(INT(BD129*BD62)+Control!$K$18*CustomersRes!BK19)","v":72.158359326581049},{"$f":"(INT(BE129*BE62)+Control!$K$18*CustomersRes!BL19)","v":66.79756752994814},{"$f":"(INT(BF129*BF62)+Control!$K$18*CustomersRes!BM19)","v":62.463579692298403},{"$f":"(INT(BG129*BG62)+Control!$K$18*CustomersRes!BN19)","v":58.151261793836909},{"$f":"(INT(BH129*BH62)+Control!$K$18*CustomersRes!BO19)","v":53.860505484867723},{"$f":"(INT(BI129*BI62)+Control!$K$18*CustomersRes!BP19)","v":49.591202957443386},{"$f":"(INT(BJ129*BJ62)+Control!$K$18*CustomersRes!BQ19)","v":46.343246942656165},{"$f":"(INT(BK129*BK62)+Control!$K$18*CustomersRes!BR19)","v":44.11153070794289},{"$f":"(INT(BL129*BL62)+Control!$K$18*CustomersRes!BS19)","v":2.8909730544031733},{"$f":"(INT(BM129*BM62)+Control!$K$18*CustomersRes!BT19)","v":2.8765181891311573},{"$f":"(INT(BN129*BN62)+Control!$K$18*CustomersRes!BU19)","v":2.8621355981855015},{"$f":"(INT(BO129*BO62)+Control!$K$18*CustomersRes!BV19)","v":2.847824920194574},{"$f":"(INT(BP129*BP62)+Control!$K$18*CustomersRes!BW19)","v":2.8335857955936006},{"$f":"(INT(BQ129*BQ62)+Control!$K$18*CustomersRes!BX19)","v":2.8194178666156327},{"$f":"(INT(BR129*BR62)+Control!$K$18*CustomersRes!BY19)","v":2.8053207772825544},{"$f":"(INT(BS129*BS62)+Control!$K$18*CustomersRes!BZ19)","v":2.7912941733961421},{"$f":"(INT(BT129*BT62)+Control!$K$18*CustomersRes!CA19)","v":2.7773377025291608},{"$f":"(INT(BU129*BU62)+Control!$K$18*CustomersRes!CB19)","v":2.7634510140165149},{"$f":"(INT(BV129*BV62)+Control!$K$18*CustomersRes!CC19)","v":2.7496337589464326},{"$f":"(INT(BW129*BW62)+Control!$K$18*CustomersRes!CD19)","v":2.7358855901517005},{"$f":"(INT(BX129*BX62)+Control!$K$18*CustomersRes!CE19)","v":2.7222061622009419},{"$f":"(INT(BY129*BY62)+Control!$K$18*CustomersRes!CF19)","v":2.7085951313899375},{"$f":"(INT(BZ129*BZ62)+Control!$K$18*CustomersRes!CG19)","v":2.6950521557329874},{"$f":"(INT(CA129*CA62)+Control!$K$18*CustomersRes!CH19)","v":2.6815768949543224},{"$f":"(INT(CB129*CB62)+Control!$K$18*CustomersRes!CI19)","v":2.6681690104795508},{"$f":"(INT(CC129*CC62)+Control!$K$18*CustomersRes!CJ19)","v":2.6548281654271531},{"$f":"(INT(CD129*CD62)+Control!$K$18*CustomersRes!CK19)","v":2.6415540246000173}]
["Stonnington (C)",null,{"$f":"(INT(C130*C63)+Control!$K$18*CustomersRes!J20)","v":194.22},{"$f":"(INT(D130*D63)+Control!$K$18*CustomersRes!K20)","v":197.1139},{"$f":"(INT(E130*E63)+Control!$K$18*CustomersRes!L20)","v":200.06333050000001},{"$f":"(INT(F130*F63)+Control!$K$18*CustomersRes!M20)","v":203.04801384750002},{"$f":"(INT(G130*G63)+Control!$K$18*CustomersRes!N20)","v":206.0727737782625},{"$f":"(INT(H130*H63)+Control!$K$18*CustomersRes!O20)","v":209.15740990937115},{"$f":"(INT(I130*I63)+Control!$K$18*CustomersRes!P20)","v":212.29162285982432},{"$f":"(INT(J130*J63)+Control!$K$18*CustomersRes!Q20)","v":215.46516474552519},{"$f":"(INT(K130*K63)+Control!$K$18*CustomersRes!R20)","v":218.69283892179757},{"$f":"(INT(L130*L63)+Control!$K$18*CustomersRes!S20)","v":221.95437472718856},{"$f":"(INT(M130*M63)+Control!$K$18*CustomersRes!T20)","v":225.27460285355261},{"$f":"(INT(N130*N63)+Control!$K$18*CustomersRes!U20)","v":224.14822983928482},{"$f":"(INT(O130*O63)+Control!$K$18*CustomersRes!V20)","v":223.0274886900884},{"$f":"(INT(P130*P63)+Control!$K$18*CustomersRes!W20)","v":221.91235124663797},{"$f":"(INT(Q130*Q63)+Control!$K$18*CustomersRes!X20)","v":221.80278949040476},{"$f":"(INT(R130*R63)+Control!$K$18*CustomersRes!Y20)","v":222.69377554295272},{"$f":"(INT(S130*S63)+Control!$K$18*CustomersRes!Z20)","v":232.58030666523794},{"$f":"(INT(T130*T63)+Control!$K$18*CustomersRes!AA20)","v":244.41740513191178},{"$f":"(INT(U130*U63)+Control!$K$18*CustomersRes!AB20)","v":276.19531810625222},{"$f":"(INT(V130*V63)+Control!$K$18*CustomersRes!AC20)","v":315.81434151572097},{"$f":"(INT(W130*W63)+Control!$K$18*CustomersRes!AD20)","v":363.23526980814233},{"$f":"(INT(X130*X63)+Control!$K$18*CustomersRes!AE20)","v":568.41909345910165},{"$f":"(INT(Y130*Y63)+Control!$K$18*CustomersRes!AF20)","v":980.57699799180614},{"$f":"(INT(Z130*Z63)+Control!$K$18*CustomersRes!AG20)","v":1357.6741130018472},{"$f":"(INT(AA130*AA63)+Control!$K$18*CustomersRes!AH20)","v":1740.885742436838},{"$f":"(INT(AB130*AB63)+Control!$K$18*CustomersRes!AI20)","v":1963.1813137246536},{"$f":"(INT(AC130*AC63)+Control!$K$18*CustomersRes!AJ20)","v":2083.3654071560304},{"$f":"(INT(AD130*AD63)+Control!$K$18*CustomersRes!AK20)","v":2104.9485801202504},{"$f":"(INT(AE130*AE63)+Control!$K$18*CustomersRes!AL20)","v":2073.4238372196492},{"$f":"(INT(AF130*AF63)+Control!$K$18*CustomersRes!AM20)","v":2013.0567180335509},{"$f":"(INT(AG130*AG63)+Control!$K$18*CustomersRes!AN20)","v":1905.991434443383},{"$f":"(INT(AH130*AH63)+Control!$K$18*CustomersRes!AO20)","v":1797.4614772711661},{"$f":"(INT(AI130*AI63)+Control!$K$18*CustomersRes!AP20)","v":1682.4741698848102},{"$f":"(INT(AJ130*AJ63)+Control!$K$18*CustomersRes!AQ20)","v":1568.0617990353862},{"$f":"(INT(AK130*AK63)+Control!$K$18*CustomersRes!AR20)","v":1459.2214900402093},{"$f":"(INT(AL130*AL63)+Control!$K$18*CustomersRes!AS20)","v":1330.9253825900082},{"$f":"(INT(AM130*AM63)+Control!$K$18*CustomersRes!AT20)","v":1231.2707556770583},{"$f":"(INT(AN130*AN63)+Control!$K$18*CustomersRes!AU20)","v":1157.1144018986729},{"$f":"(INT(AO130*AO63)+Control!$K$18*CustomersRes!AV20)","v":1083.3288298891796},{"$f":"(INT(AP130*AP63)+Control!$K$18*CustomersRes!AW20)","v":1010.9121857397337},{"$f":"(INT(AQ130*AQ63)+Control!$K$18*CustomersRes!AX20)","v":940.85762481103507},{"$f":"(INT(AR130*AR63)+Control!$K$18*CustomersRes!AY20)","v":874.15333668697986},{"$f":"(INT(AS130*AS63)+Control!$K$18*CustomersRes!AZ20)","v":812.78257000354495},{"$f":"(INT(AT130*AT63)+Control!$K$18*CustomersRes!BA20)","v":753.71865715352726},{"$f":"(INT(AU130*AU63)+Control!$K$18*CustomersRes!BB20)","v":699.95006386775958},{"$f":"(INT(AV130*AV63)+Control!$K$18*CustomersRes!BC20)","v":650.45031354842081},{"$f":"(INT(AW130*AW63)+Control!$K$18*CustomersRes!BD20)","v":603.19806198067863},{"$f":"(INT(AX130*AX63)+Control!$K$18*CustomersRes!BE20)","v":560.18207167077526},{"$f":"(INT(AY130*AY63)+Control!$K$18*CustomersRes!BF20)","v":520.38116131242145},{"$f":"(INT(AZ130*AZ63)+Control!$K$18*CustomersRes!BG20)","v":482.77925550585928},{"$f":"(INT(BA130*BA63)+Control!$K$18*CustomersRes!BH20)","v":448.36535922833002},{"$f":"(INT(BB130*BB63)+Control!$K$18*CustomersRes!BI20)","v":416.12353243218837},{"$f":"(INT(BC130*BC63)+Control!$K$18*CustomersRes!BJ20)","v":386.04291477002738},{"$f":"(INT(BD130*BD63)+Control!$K$18*CustomersRes!BK20)","v":358.11270019617729},{"$f":"(INT(BE130*BE63)+Control!$K$18*CustomersRes!BL20)","v":332.32213669519638},{"$f":"(INT(BF130*BF63)+Control!$K$18*CustomersRes!BM20)","v":308.66052601172038},{"$f":"(INT(BG130*BG63)+Control!$K$18*CustomersRes!BN20)","v":288.1172233816618},{"$f":"(INT(BH130*BH63)+Control!$K$18*CustomersRes!BO20)","v":267.67663726475348},{"$f":"(INT(BI130*BI63)+Control!$K$18*CustomersRes!BP20)","v":248.33825407842971},{"$f":"(INT(BJ130*BJ63)+Control!$K$18*CustomersRes!BQ20)","v":230.09656280803756},{"$f":"(INT(BK130*BK63)+Control!$K$18*CustomersRes!BR20)","v":213.94607999399739},{"$f":"(INT(BL130*BL63)+Control!$K$18*CustomersRes!BS20)","v":19.876349594027392},{"$f":"(INT(BM130*BM63)+Control!$K$18*CustomersRes!BT20)","v":20.776967846057254},{"$f":"(INT(BN130*BN63)+Control!$K$18*CustomersRes!BU20)","v":20.673083006826971},{"$f":"(INT(BO130*BO63)+Control!$K$18*CustomersRes!BV20)","v":20.569717591792838},{"$f":"(INT(BP130*BP63)+Control!$K$18*CustomersRes!BW20)","v":20.466869003833871},{"$f":"(INT(BQ130*BQ63)+Control!$K$18*CustomersRes!BX20)","v":20.364534658814701},{"$f":"(INT(BR130*BR63)+Control!$K$18*CustomersRes!BY20)","v":20.262711985520628},{"$f":"(INT(BS130*BS63)+Control!$K$18*CustomersRes!BZ20)","v":20.161398425593024},{"$f":"(INT(BT130*BT63)+Control!$K$18*CustomersRes!CA20)","v":20.060591433465056},{"$f":"(INT(BU130*BU63)+Control!$K$18*CustomersRes!CB20)","v":19.960288476297734},{"$f":"(INT(BV130*BV63)+Control!$K$18*CustomersRes!CC20)","v":19.860487033916243},{"$f":"(INT(BW130*BW63)+Control!$K$18*CustomersRes!CD20)","v":19.761184598746663},{"$f":"(INT(BX130*BX63)+Control!$K$18*CustomersRes!CE20)","v":19.66237867575293},{"$f":"(INT(BY130*BY63)+Control!$K$18*CustomersRes!CF20)","v":19.564066782374166},{"$f":"(INT(BZ130*BZ63)+Control!$K$18*CustomersRes!CG20)","v":19.466246448462297},{"$f":"(INT(CA130*CA63)+Control!$K$18*CustomersRes!CH20)","v":19.368915216219985},{"$f":"(INT(CB130*CB63)+Control!$K$18*CustomersRes!CI20)","v":19.272070640138885},{"$f":"(INT(CC130*CC63)+Control!$K$18*CustomersRes!CJ20)","v":19.175710286938191},{"$f":"(INT(CD130*CD63)+Control!$K$18*CustomersRes!CK20)","v":18.079831735503497}]
["Whitehorse (C)",null,{"$f":"(INT(C131*C64)+Control!$K$18*CustomersRes!J21)","v":334.32499999999999},{"$f":"(INT(D131*D64)+Control!$K$18*CustomersRes!K21)","v":339.33337500000005},{"$f":"(INT(E131*E64)+Control!$K$18*CustomersRes!L21)","v":344.42170812500001},{"$f":"(INT(F131*F64)+Control!$K$18*CustomersRes!M21)","v":349.57959958437505},{"$f":"(INT(G131*G64)+Control!$K$18*CustomersRes!N21)","v":354.81670158645312},{"$f":"(INT(H131*H64)+Control!$K$18*CustomersRes!O21)","v":360.13761807852086},{"$f":"(INT(I131*I64)+Control!$K$18*CustomersRes!P21)","v":365.53692998812824},{"$f":"(INT(J131*J64)+Control!$K$18*CustomersRes!Q21)","v":371.01424533818761},{"$f":"(INT(K131*K64)+Control!$K$18*CustomersRes!R21)","v":376.57417411149669},{"$f":"(INT(L131*L64)+Control!$K$18*CustomersRes!S21)","v":382.21630324093923},{"$f":"(INT(M131*M64)+Control!$K$18*CustomersRes!T21)","v":387.94522172473449},{"$f":"(INT(N131*N64)+Control!$K$18*CustomersRes!U21)","v":386.00549561611086},{"$f":"(INT(O131*O64)+Control!$K$18*CustomersRes!V21)","v":384.07546813803037},{"$f":"(INT(P131*P64)+Control!$K$18*CustomersRes!W21)","v":382.15509079734016},{"$f":"(INT(Q131*Q64)+Control!$K$18*CustomersRes!X21)","v":380.24431534335343},{"$f":"(INT(R131*R64)+Control!$K$18*CustomersRes!Y21)","v":378.34309376663668},{"$f":"(INT(S131*S64)+Control!$K$18*CustomersRes!Z21)","v":377.45137829780344},{"$f":"(INT(T131*T64)+Control!$K$18*CustomersRes!AA21)","v":376.56412140631443},{"$f":"(INT(U131*U64)+Control!$K$18*CustomersRes!AB21)","v":377.68130079928284},{"$f":"(INT(V131*V64)+Control!$K$18*CustomersRes!AC21)","v":380.79289429528637},{"$f":"(INT(W131*W64)+Control!$K$18*CustomersRes!AD21)","v":385.88892982380997},{"$f":"(INT(X131*X64)+Control!$K$18*CustomersRes!AE21)","v":418.95948517469094},{"$f":"(INT(Y131*Y64)+Control!$K$18*CustomersRes!AF21)","v":520.86468774881746},{"$f":"(INT(Z131*Z64)+Control!$K$18*CustomersRes!AG21)","v":681.26036431007333},{"$f":"(INT(AA131*AA64)+Control!$K$18*CustomersRes!AH21)","v":987.85406248852291},{"$f":"(INT(AB131*AB64)+Control!$K$18*CustomersRes!AI21)","v":1378.9147921760805},{"$f":"(INT(AC131*AC64)+Control!$K$18*CustomersRes!AJ21)","v":1885.0202182152},{"$f":"(INT(AD131*AD64)+Control!$K$18*CustomersRes!AK21)","v":2408.595117124124},{"$f":"(INT(AE131*AE64)+Control!$K$18*CustomersRes!AL21)","v":2927.5521415385033},{"$f":"(INT(AF131*AF64)+Control!$K$18*CustomersRes!AM21)","v":3444.9143808308108},{"$f":"(INT(AG131*AG64)+Control!$K$18*CustomersRes!AN21)","v":3567.689808926657},{"$f":"(INT(AH131*AH64)+Control!$K$18*CustomersRes!AO21)","v":3627.8513598820236},{"$f":"(INT(AI131*AI64)+Control!$K$18*CustomersRes!AP21)","v":3524.7121030826133},{"$f":"(INT(AJ131*AJ64)+Control!$K$18*CustomersRes!AQ21)","v":3350.0885425672004},{"$f":"(INT(AK131*AK64)+Control!$K$18*CustomersRes!AR21)","v":3153.3380998543644},{"$f":"(INT(AL131*AL64)+Control!$K$18*CustomersRes!AS21)","v":2657.5714093550923},{"$f":"(INT(AM131*AM64)+Control!$K$18*CustomersRes!AT21)","v":2407.2835523083172},{"$f":"(INT(AN131*AN64)+Control!$K$18*CustomersRes!AU21)","v":2398.2471345467757},{"$f":"(INT(AO131*AO64)+Control!$K$18*CustomersRes!AV21)","v":2336.2558988740416},{"$f":"(INT(AP131*AP64)+Control!$K$18*CustomersRes!AW21)","v":2220.5746193796713},{"$f":"(INT(AQ131*AQ64)+Control!$K$18*CustomersRes!AX21)","v":2088.471746282773},{"$f":"(INT(AR131*AR64)+Control!$K$18*CustomersRes!AY21)","v":1953.0293875513592},{"$f":"(INT(AS131*AS64)+Control!$K$18*CustomersRes!AZ21)","v":1818.2642406136024},{"$f":"(INT(AT131*AT64)+Control!$K$18*CustomersRes!BA21)","v":1691.1729194105344},{"$f":"(INT(AU131*AU64)+Control!$K$18*CustomersRes!BB21)","v":1570.7170548134816},{"$f":"(INT(AV131*AV64)+Control!$K$18*CustomersRes!BC21)","v":1458.8634695394142},{"$f":"(INT(AW131*AW64)+Control!$K$18*CustomersRes!BD21)","v":1353.5691521917172},{"$f":"(INT(AX131*AX64)+Control!$K$18*CustomersRes!BE21)","v":1256.8013064307586},{"$f":"(INT(AY131*AY64)+Control!$K$18*CustomersRes!BF21)","v":1166.5172998986047},{"$f":"(INT(AZ131*AZ64)+Control!$K$18*CustomersRes!BG21)","v":1083.6847133991118},{"$f":"(INT(BA131*BA64)+Control!$K$18*CustomersRes!BH21)","v":1005.2662898321162},{"$f":"(INT(BB131*BB64)+Control!$K$18*CustomersRes!BI21)","v":933.23995838295559},{"$f":"(INT(BC131*BC64)+Control!$K$18*CustomersRes!BJ21)","v":866.57375859104081},{"$f":"(INT(BD131*BD64)+Control!$K$18*CustomersRes!BK21)","v":804.24088979808562},{"$f":"(INT(BE131*BE64)+Control!$K$18*CustomersRes!BL21)","v":747.21968534909524},{"$f":"(INT(BF131*BF64)+Control!$K$18*CustomersRes!BM21)","v":694.48358692234979},{"$f":"(INT(BG131*BG64)+Control!$K$18*CustomersRes!BN21)","v":645.01116898773796},{"$f":"(INT(BH131*BH64)+Control!$K$18*CustomersRes!BO21)","v":598.78611314279931},{"$f":"(INT(BI131*BI64)+Control!$K$18*CustomersRes!BP21)","v":555.79218257708533},{"$f":"(INT(BJ131*BJ64)+Control!$K$18*CustomersRes!BQ21)","v":516.01322166419993},{"$f":"(INT(BK131*BK64)+Control!$K$18*CustomersRes!BR21)","v":478.4331555558789},{"$f":"(INT(BL131*BL64)+Control!$K$18*CustomersRes!BS21)","v":32.040989778099501},{"$f":"(INT(BM131*BM64)+Control!$K$18*CustomersRes!BT21)","v":31.880784829209002},{"$f":"(INT(BN131*BN64)+Control!$K$18*CustomersRes!BU21)","v":31.721380905062958},{"$f":"(INT(BO131*BO64)+Control!$K$18*CustomersRes!BV21)","v":31.562774000537644},{"$f":"(INT(BP131*BP64)+Control!$K$18*CustomersRes!BW21)","v":31.404960130534956},{"$f":"(INT(BQ131*BQ64)+Control!$K$18*CustomersRes!BX21)","v":31.247935329882282},{"$f":"(INT(BR131*BR64)+Control!$K$18*CustomersRes!BY21)","v":31.091695653232868},{"$f":"(INT(BS131*BS64)+Control!$K$18*CustomersRes!BZ21)","v":30.936237174966706},{"$f":"(INT(BT131*BT64)+Control!$K$18*CustomersRes!CA21)","v":30.781555989091871},{"$f":"(INT(BU131*BU64)+Control!$K$18*CustomersRes!CB21)","v":30.627648209146415},{"$f":"(INT(BV131*BV64)+Control!$K$18*CustomersRes!CC21)","v":30.474509968100683},{"$f":"(INT(BW131*BW64)+Control!$K$18*CustomersRes!CD21)","v":30.322137418260183},{"$f":"(INT(BX131*BX64)+Control!$K$18*CustomersRes!CE21)","v":30.170526731168881},{"$f":"(INT(BY131*BY64)+Control!$K$18*CustomersRes!CF21)","v":30.019674097513036},{"$f":"(INT(BZ131*BZ64)+Control!$K$18*CustomersRes!CG21)","v":29.869575727025467},{"$f":"(INT(CA131*CA64)+Control!$K$18*CustomersRes!CH21)","v":29.720227848390341},{"$f":"(INT(CB131*CB64)+Control!$K$18*CustomersRes!CI21)","v":29.57162670914839},{"$f":"(INT(CC131*CC64)+Control!$K$18*CustomersRes!CJ21)","v":29.423768575602651},{"$f":"(INT(CD131*CD64)+Control!$K$18*CustomersRes!CK21)","v":29.276649732724636}]
["Yarra Ranges (S)",null,{"$f":"(INT(C132*C65)+Control!$K$18*CustomersRes!J22)","v":240.875},{"$f":"(INT(D132*D65)+Control!$K$18*CustomersRes!K22)","v":244.485625},{"$f":"(INT(E132*E65)+Control!$K$18*CustomersRes!L22)","v":248.148196875},{"$f":"(INT(F132*F65)+Control!$K$18*CustomersRes!M22)","v":251.867455890625},{"$f":"(INT(G132*G65)+Control!$K$18*CustomersRes!N22)","v":255.63811861117185},{"$f":"(INT(H132*H65)+Control!$K$18*CustomersRes!O22)","v":259.46992801811604},{"$f":"(INT(I132*I65)+Control!$K$18*CustomersRes!P22)","v":263.35757837802544},{"$f":"(INT(J132*J65)+Control!$K$18*CustomersRes!Q22)","v":267.30579048613532},{"$f":"(INT(K132*K65)+Control!$K$18*CustomersRes!R22)","v":271.31426153370461},{"$f":"(INT(L132*L65)+Control!$K$18*CustomersRes!S22)","v":275.37769022603612},{"$f":"(INT(M132*M65)+Control!$K$18*CustomersRes!T22)","v":279.50580177490593},{"$f":"(INT(N132*N65)+Control!$K$18*CustomersRes!U22)","v":278.1082727660314},{"$f":"(INT(O132*O65)+Control!$K$18*CustomersRes!V22)","v":276.71773140220125},{"$f":"(INT(P132*P65)+Control!$K$18*CustomersRes!W22)","v":275.33414274519021},{"$f":"(INT(Q132*Q65)+Control!$K$18*CustomersRes!X22)","v":273.95747203146431},{"$f":"(INT(R132*R65)+Control!$K$18*CustomersRes!Y22)","v":272.58768467130699},{"$f":"(INT(S132*S65)+Control!$K$18*CustomersRes!Z22)","v":271.22474624795041},{"$f":"(INT(T132*T65)+Control!$K$18*CustomersRes!AA22)","v":270.86862251671067},{"$f":"(INT(U132*U65)+Control!$K$18*CustomersRes!AB22)","v":271.51427940412714},{"$f":"(INT(V132*V65)+Control!$K$18*CustomersRes!AC22)","v":274.15670800710649},{"$f":"(INT(W132*W65)+Control!$K$18*CustomersRes!AD22)","v":277.78592446707097},{"$f":"(INT(X132*X65)+Control!$K$18*CustomersRes!AE22)","v":304.39699484473562},{"$f":"(INT(Y132*Y65)+Control!$K$18*CustomersRes!AF22)","v":388.87500987051197},{"$f":"(INT(Z132*Z65)+Control!$K$18*CustomersRes!AG22)","v":528.9306348211594},{"$f":"(INT(AA132*AA65)+Control!$K$18*CustomersRes!AH22)","v":798.28598164705363},{"$f":"(INT(AB132*AB65)+Control!$K$18*CustomersRes!AI22)","v":1137.2945517388184},{"$f":"(INT(AC132*AC65)+Control!$K$18*CustomersRes!AJ22)","v":1556.6080789801242},{"$f":"(INT(AD132*AD65)+Control!$K$18*CustomersRes!AK22)","v":1955.8250385852236},{"$f":"(INT(AE132*AE65)+Control!$K$18*CustomersRes!AL22)","v":2308.0459133922973},{"$f":"(INT(AF132*AF65)+Control!$K$18*CustomersRes!AM22)","v":2609.5056838253358},{"$f":"(INT(AG132*AG65)+Control!$K$18*CustomersRes!AN22)","v":2636.4581554062092},{"$f":"(INT(AH132*AH65)+Control!$K$18*CustomersRes!AO22)","v":2617.2758646291782},{"$f":"(INT(AI132*AI65)+Control!$K$18*CustomersRes!AP22)","v":2506.1894853060326},{"$f":"(INT(AJ132*AJ65)+Control!$K$18*CustomersRes!AQ22)","v":2362.6585378795021},{"$f":"(INT(AK132*AK65)+Control!$K$18*CustomersRes!AR22)","v":2212.8452451901048},{"$f":"(INT(AL132*AL65)+Control!$K$18*CustomersRes!AS22)","v":1922.7810189641541},{"$f":"(INT(AM132*AM65)+Control!$K$18*CustomersRes!AT22)","v":1752.1671138693334},{"$f":"(INT(AN132*AN65)+Control!$K$18*CustomersRes!AU22)","v":1712.4062782999868},{"$f":"(INT(AO132*AO65)+Control!$K$18*CustomersRes!AV22)","v":1642.8442469084869},{"$f":"(INT(AP132*AP65)+Control!$K$18*CustomersRes!AW22)","v":1548.6300256739444},{"$f":"(INT(AQ132*AQ65)+Control!$K$18*CustomersRes!AX22)","v":1449.8868755455746},{"$f":"(INT(AR132*AR65)+Control!$K$18*CustomersRes!AY22)","v":1350.6374411678469},{"$f":"(INT(AS132*AS65)+Control!$K$18*CustomersRes!AZ22)","v":1256.8842539620075},{"$f":"(INT(AT132*AT65)+Control!$K$18*CustomersRes!BA22)","v":1167.5998326921974},{"$f":"(INT(AU132*AU65)+Control!$K$18*CustomersRes!BB22)","v":1084.7618335287366},{"$f":"(INT(AV132*AV65)+Control!$K$18*CustomersRes!BC22)","v":1006.3380243610928},{"$f":"(INT(AW132*AW65)+Control!$K$18*CustomersRes!BD22)","v":934.30633423928737},{"$f":"(INT(AX132*AX65)+Control!$K$18*CustomersRes!BE22)","v":867.63480256809089},{"$f":"(INT(AY132*AY65)+Control!$K$18*CustomersRes!BF22)","v":805.29662855525044},{"$f":"(INT(AZ132*AZ65)+Control!$K$18*CustomersRes!BG22)","v":747.27014541247422},{"$f":"(INT(BA132*BA65)+Control!$K$18*CustomersRes!BH22)","v":694.53379468541186},{"$f":"(INT(BB132*BB65)+Control!$K$18*CustomersRes!BI22)","v":644.0611257119848},{"$f":"(INT(BC132*BC65)+Control!$K$18*CustomersRes!BJ22)","v":597.84082008342489},{"$f":"(INT(BD132*BD65)+Control!$K$18*CustomersRes!BK22)","v":555.85161598300772},{"$f":"(INT(BE132*BE65)+Control!$K$18*CustomersRes!BL22)","v":515.07235790309267},{"$f":"(INT(BF132*BF65)+Control!$K$18*CustomersRes!BM22)","v":479.49699611357721},{"$f":"(INT(BG132*BG65)+Control!$K$18*CustomersRes!BN22)","v":445.09951113300934},{"$f":"(INT(BH132*BH65)+Control!$K$18*CustomersRes!BO22)","v":412.87401357734427},{"$f":"(INT(BI132*BI65)+Control!$K$18*CustomersRes!BP22)","v":383.80964350945754},{"$f":"(INT(BJ132*BJ65)+Control!$K$18*CustomersRes!BQ22)","v":355.8905952919103},{"$f":"(INT(BK132*BK65)+Control!$K$18*CustomersRes!BR22)","v":331.11114231545071},{"$f":"(INT(BL132*BL65)+Control!$K$18*CustomersRes!BS22)","v":22.455586603873478},{"$f":"(INT(BM132*BM65)+Control!$K$18*CustomersRes!BT22)","v":22.343308670854107},{"$f":"(INT(BN132*BN65)+Control!$K$18*CustomersRes!BU22)","v":22.231592127499841},{"$f":"(INT(BO132*BO65)+Control!$K$18*CustomersRes!BV22)","v":22.120434166862342},{"$f":"(INT(BP132*BP65)+Control!$K$18*CustomersRes!BW22)","v":22.00983199602803},{"$f":"(INT(BQ132*BQ65)+Control!$K$18*CustomersRes!BX22)","v":21.899782836047891},{"$f":"(INT(BR132*BR65)+Control!$K$18*CustomersRes!BY22)","v":21.790283921867651},{"$f":"(INT(BS132*BS65)+Control!$K$18*CustomersRes!BZ22)","v":21.681332502258311},{"$f":"(INT(BT132*BT65)+Control!$K$18*CustomersRes!CA22)","v":21.572925839747018},{"$f":"(INT(BU132*BU65)+Control!$K$18*CustomersRes!CB22)","v":21.465061210548285},{"$f":"(INT(BV132*BV65)+Control!$K$18*CustomersRes!CC22)","v":21.357735904495541},{"$f":"(INT(BW132*BW65)+Control!$K$18*CustomersRes!CD22)","v":21.250947224973064},{"$f":"(INT(BX132*BX65)+Control!$K$18*CustomersRes!CE22)","v":21.144692488848197},{"$f":"(INT(BY132*BY65)+Control!$K$18*CustomersRes!CF22)","v":21.038969026403958},{"$f":"(INT(BZ132*BZ65)+Control!$K$18*CustomersRes!CG22)","v":20.933774181271936},{"$f":"(INT(CA132*CA65)+Control!$K$18*CustomersRes!CH22)","v":20.829105310365577},{"$f":"(INT(CB132*CB65)+Control!$K$18*CustomersRes!CI22)","v":20.724959783813748},{"$f":"(INT(CC132*CC65)+Control!$K$18*CustomersRes!CJ22)","v":20.621334984894681},{"$f":"(INT(CD132*CD65)+Control!$K$18*CustomersRes!CK22)","v":19.518228309970208}]
["Total (Aggregated LGA)",null,{"$f":"SUM(C135:C154)","v":3454.7},{"$f":"SUM(D135:D154)","v":3506.4014999999995},3558.9244925000003,3612.1948700374996,3666.2388956873128,3721.1727012088763,3776.9318377028312,3833.5071785143177,3890.9596426217458,3949.199844408638,4008.358845186594,3988.3170509606607,3968.375465705858,3948.5335883773278,3932.7909204354414,3920.126965833264,3936.5263310040973,3968.8436993490777,4084.9994808523325,4251.5744834480711,4474.3166110308302,5636.9450279756757,8606.7603028357971,12102.72650132162,16665.212868815011,20588.886804470938,24416.942370448585,27622.857658596342,30395.74337030336,32940.764653451835,32945.060830184579,32643.33552603365,31422.118848403486,29835.008254161472,28227.83321289067,24104.694046826207,22019.170576592078,21552.07472370912,20841.314350090572,19876.107778340123,18910.727239448417,18040.17360325118,17326.972735234922,16754.337871558746,16245.566182200957,15642.338351289949,14876.1266595335,13984.746026235833,13052.822296104652,12143.558184624129,11278.840393701008,10469.446191732504,9720.0989607738429,9023.498465969973,8378.3809736401217,7787.4890687719217,7232.5516234280612,6710.3888653109216,6232.8369209843686,5784.6727363794453,5375.7493726975481,379.87062583406049,378.97127270489023,378.07641634136576,376.18603425965892,{"$f":"SUM(BP135:BP154)","v":374.30510408836057},372.43357856791886,370.57141067507911,368.71855362170373,366.87496085359527,367.04058604932726,365.20538311908064,363.37935620348526,361.56245942246784,359.7546471253554,357.95587388972865,357.16609452028001,356.38026404767874,354.5983627274403,342.82537091380311]
["Weighted Average NPV",null,{"$f":"(INT(C133*C66)+Control!$K$18*CustomersRes!J23)","v":3454.7000000000003},{"$f":"(INT(D133*D66)+Control!$K$18*CustomersRes!K23)","v":3506.4014999999999},{"$f":"(INT(E133*E66)+Control!$K$18*CustomersRes!L23)","v":3558.9244925000003},{"$f":"(INT(F133*F66)+Control!$K$18*CustomersRes!M23)","v":3612.1948700375006},{"$f":"(INT(G133*G66)+Control!$K$18*CustomersRes!N23)","v":3666.2388956873119},{"$f":"(INT(H133*H66)+Control!$K$18*CustomersRes!O23)","v":3721.1727012088754},{"$f":"(INT(I133*I66)+Control!$K$18*CustomersRes!P23)","v":3776.9318377028321},{"$f":"(INT(J133*J66)+Control!$K$18*CustomersRes!Q23)","v":3833.5071785143182},{"$f":"(INT(K133*K66)+Control!$K$18*CustomersRes!R23)","v":3890.9596426217449},{"$f":"(INT(L133*L66)+Control!$K$18*CustomersRes!S23)","v":3949.199844408638},{"$f":"(INT(M133*M66)+Control!$K$18*CustomersRes!T23)","v":4008.358845186594},{"$f":"(INT(N133*N66)+Control!$K$18*CustomersRes!U23)","v":3988.3170509606612},{"$f":"(INT(O133*O66)+Control!$K$18*CustomersRes!V23)","v":3968.375465705858},{"$f":"(INT(P133*P66)+Control!$K$18*CustomersRes!W23)","v":3948.5335883773282},{"$f":"(INT(Q133*Q66)+Control!$K$18*CustomersRes!X23)","v":3929.7909204354419},{"$f":"(INT(R133*R66)+Control!$K$18*CustomersRes!Y23)","v":3913.1269658332649},{"$f":"(INT(S133*S66)+Control!$K$18*CustomersRes!Z23)","v":3907.5263310040978},{"$f":"(INT(T133*T66)+Control!$K$18*CustomersRes!AA23)","v":3909.8436993490782},{"$f":"(INT(U133*U66)+Control!$K$18*CustomersRes!AB23)","v":3948.9994808523325},{"$f":"(INT(V133*V66)+Control!$K$18*CustomersRes!AC23)","v":4010.5744834480702},{"$f":"(INT(W133*W66)+Control!$K$18*CustomersRes!AD23)","v":4098.3166110308293},{"$f":"(INT(X133*X66)+Control!$K$18*CustomersRes!AE23)","v":4626.9450279756757},{"$f":"(INT(Y133*Y66)+Control!$K$18*CustomersRes!AF23)","v":6167.7603028357971},{"$f":"(INT(Z133*Z66)+Control!$K$18*CustomersRes!AG23)","v":8458.7265013216183},{"$f":"(INT(AA133*AA66)+Control!$K$18*CustomersRes!AH23)","v":12513.212868815011},{"$f":"(INT(AB133*AB66)+Control!$K$18*CustomersRes!AI23)","v":17216.886804470938},{"$f":"(INT(AC133*AC66)+Control!$K$18*CustomersRes!AJ23)","v":22683.942370448582},{"$f":"(INT(AD133*AD66)+Control!$K$18*CustomersRes!AK23)","v":27685.857658596338},{"$f":"(INT(AE133*AE66)+Control!$K$18*CustomersRes!AL23)","v":32107.743370303357},{"$f":"(INT(AF133*AF66)+Control!$K$18*CustomersRes!AM23)","v":36033.764653451843},{"$f":"(INT(AG133*AG66)+Control!$K$18*CustomersRes!AN23)","v":36575.060830184579},{"$f":"(INT(AH133*AH66)+Control!$K$18*CustomersRes!AO23)","v":36616.335526033654},{"$f":"(INT(AI133*AI66)+Control!$K$18*CustomersRes!AP23)","v":35446.118848403486},{"$f":"(INT(AJ133*AJ66)+Control!$K$18*CustomersRes!AQ23)","v":33776.008254161468},{"$f":"(INT(AK133*AK66)+Control!$K$18*CustomersRes!AR23)","v":31970.833212890666},{"$f":"(INT(AL133*AL66)+Control!$K$18*CustomersRes!AS23)","v":27832.694046826211},{"$f":"(INT(AM133*AM66)+Control!$K$18*CustomersRes!AT23)","v":25610.170576592081},{"$f":"(INT(AN133*AN66)+Control!$K$18*CustomersRes!AU23)","v":25328.07472370912},{"$f":"(INT(AO133*AO66)+Control!$K$18*CustomersRes!AV23)","v":24640.314350090575},{"$f":"(INT(AP133*AP66)+Control!$K$18*CustomersRes!AW23)","v":23554.10777834012},{"$f":"(INT(AQ133*AQ66)+Control!$K$18*CustomersRes!AX23)","v":22346.727239448421},{"$f":"(INT(AR133*AR66)+Control!$K$18*CustomersRes!AY23)","v":21101.17360325118},{"$f":"(INT(AS133*AS66)+Control!$K$18*CustomersRes!AZ23)","v":19861.972735234922},{"$f":"(INT(AT133*AT66)+Control!$K$18*CustomersRes!BA23)","v":18642.337871558746},{"$f":"(INT(AU133*AU66)+Control!$K$18*CustomersRes!BB23)","v":17453.566182200953},{"$f":"(INT(AV133*AV66)+Control!$K$18*CustomersRes!BC23)","v":16290.338351289949},{"$f":"(INT(AW133*AW66)+Control!$K$18*CustomersRes!BD23)","v":15170.1266595335},{"$f":"(INT(AX133*AX66)+Control!$K$18*CustomersRes!BE23)","v":14104.746026235833},{"$f":"(INT(AY133*AY66)+Control!$K$18*CustomersRes!BF23)","v":13101.822296104652},{"$f":"(INT(AZ133*AZ66)+Control!$K$18*CustomersRes!BG23)","v":12167.558184624129},{"$f":"(INT(BA133*BA66)+Control!$K$18*CustomersRes!BH23)","v":11295.84039370101},{"$f":"(INT(BB133*BB66)+Control!$K$18*CustomersRes!BI23)","v":10486.446191732504},{"$f":"(INT(BC133*BC66)+Control!$K$18*CustomersRes!BJ23)","v":9737.0989607738411},{"$f":"(INT(BD133*BD66)+Control!$K$18*CustomersRes!BK23)","v":9038.498465969973},{"$f":"(INT(BE133*BE66)+Control!$K$18*CustomersRes!BL23)","v":8392.3809736401217},{"$f":"(INT(BF133*BF66)+Control!$K$18*CustomersRes!BM23)","v":7795.4890687719217},{"$f":"(INT(BG133*BG66)+Control!$K$18*CustomersRes!BN23)","v":7238.5516234280622},{"$f":"(INT(BH133*BH66)+Control!$K$18*CustomersRes!BO23)","v":6716.3888653109216},{"$f":"(INT(BI133*BI66)+Control!$K$18*CustomersRes!BP23)","v":6237.8369209843677},{"$f":"(INT(BJ133*BJ66)+Control!$K$18*CustomersRes!BQ23)","v":5788.6727363794453},{"$f":"(INT(BK133*BK66)+Control!$K$18*CustomersRes!BR23)","v":5377.7493726975481},{"$f":"(INT(BL133*BL66)+Control!$K$18*CustomersRes!BS23)","v":373.87062583406043},{"$f":"(INT(BM133*BM66)+Control!$K$18*CustomersRes!BT23)","v":371.97127270489017},{"$f":"(INT(BN133*BN66)+Control!$K$18*CustomersRes!BU23)","v":370.0764163413657},{"$f":"(INT(BO133*BO66)+Control!$K$18*CustomersRes!BV23)","v":369.18603425965887},{"$f":"(INT(BP133*BP66)+Control!$K$18*CustomersRes!BW23)","v":367.30510408836057},{"$f":"(INT(BQ133*BQ66)+Control!$K$18*CustomersRes!BX23)","v":365.43357856791874},{"$f":"(INT(BR133*BR66)+Control!$K$18*CustomersRes!BY23)","v":364.57141067507911},{"$f":"(INT(BS133*BS66)+Control!$K$18*CustomersRes!BZ23)","v":362.71855362170379},{"$f":"(INT(BT133*BT66)+Control!$K$18*CustomersRes!CA23)","v":360.87496085359527},{"$f":"(INT(BU133*BU66)+Control!$K$18*CustomersRes!CB23)","v":360.04058604932732},{"$f":"(INT(BV133*BV66)+Control!$K$18*CustomersRes!CC23)","v":358.20538311908064},{"$f":"(INT(BW133*BW66)+Control!$K$18*CustomersRes!CD23)","v":356.3793562034852},{"$f":"(INT(BX133*BX66)+Control!$K$18*CustomersRes!CE23)","v":355.56245942246778},{"$f":"(INT(BY133*BY66)+Control!$K$18*CustomersRes!CF23)","v":353.7546471253554},{"$f":"(INT(BZ133*BZ66)+Control!$K$18*CustomersRes!CG23)","v":351.95587388972871},{"$f":"(INT(CA133*CA66)+Control!$K$18*CustomersRes!CH23)","v":351.16609452028013},{"$f":"(INT(CB133*CB66)+Control!$K$18*CustomersRes!CI23)","v":349.38026404767868},{"$f":"(INT(CC133*CC66)+Control!$K$18*CustomersRes!CJ23)","v":347.5983627274403},{"$f":"(INT(CD133*CD66)+Control!$K$18*CustomersRes!CK23)","v":338.82537091380306}]
[]
[]
[]
[]
[]
[]
[]
[]
[]
[]
[]
[]
[]
[]
[]
[]
[]
[]
[]
[]
[]
[]
[]
[]
[]
["LGA High",2020,{"$f":"B182+1","v":2021},{"$f":"C182+1","v":2022},{"$f":"D182+1","v":2023},{"$f":"E182+1","v":2024},{"$f":"F182+1","v":2025},{"$f":"G182+1","v":2026},{"$f":"H182+1","v":2027},{"$f":"I182+1","v":2028},{"$f":"J182+1","v":2029},{"$f":"K182+1","v":2030},{"$f":"L182+1","v":2031},{"$f":"M182+1","v":2032},{"$f":"N182+1","v":2033},{"$f":"O182+1","v":2034},{"$f":"P182+1","v":2035},{"$f":"Q182+1","v":2036},{"$f":"R182+1","v":2037},{"$f":"S182+1","v":2038},{"$f":"T182+1","v":2039},{"$f":"U182+1","v":2040},{"$f":"V182+1","v":2041},{"$f":"W182+1","v":2042},{"$f":"X182+1","v":2043},{"$f":"Y182+1","v":2044},{"$f":"Z182+1","v":2045},{"$f":"AA182+1","v":2046},{"$f":"AB182+1","v":2047},{"$f":"AC182+1","v":2048},{"$f":"AD182+1","v":2049},{"$f":"AE182+1","v":2050},{"$f":"AF182+1","v":2051},{"$f":"AG182+1","v":2052},{"$f":"AH182+1","v":2053},{"$f":"AI182+1","v":2054},{"$f":"AJ182+1","v":2055},{"$f":"AK182+1","v":2056},{"$f":"AL182+1","v":2057},{"$f":"AM182+1","v":2058},{"$f":"AN182+1","v":2059},{"$f":"AO182+1","v":2060},{"$f":"AP182+1","v":2061},{"$f":"AQ182+1","v":2062},{"$f":"AR182+1","v":2063},{"$f":"AS182+1","v":2064},{"$f":"AT182+1","v":2065},{"$f":"AU182+1","v":2066},{"$f":"AV182+1","v":2067},{"$f":"AW182+1","v":2068},{"$f":"AX182+1","v":2069},{"$f":"AY182+1","v":2070},{"$f":"AZ182+1","v":2071},{"$f":"BA182+1","v":2072},{"$f":"BB182+1","v":2073},{"$f":"BC182+1","v":2074},{"$f":"BD182+1","v":2075},{"$f":"BE182+1","v":2076},{"$f":"BF182+1","v":2077},{"$f":"BG182+1","v":2078},{"$f":"BH182+1","v":2079},{"$f":"BI182+1","v":2080},{"$f":"BJ182+1","v":2081},{"$f":"BK182+1","v":2082},{"$f":"BL182+1","v":2083},{"$f":"BM182+1","v":2084},{"$f":"BN182+1","v":2085},{"$f":"BO182+1","v":2086},{"$f":"BP182+1","v":2087},{"$f":"BQ182+1","v":2088},{"$f":"BR182+1","v":2089},{"$f":"BS182+1","v":2090},{"$f":"BT182+1","v":2091},{"$f":"BU182+1","v":2092},{"$f":"BV182+1","v":2093},{"$f":"BW182+1","v":2094},{"$f":"BX182+1","v":2095},{"$f":"BY182+1","v":2096},{"$f":"BZ182+1","v":2097},{"$f":"CA182+1","v":2098},{"$f":"CB182+1","v":2099},{"$f":"CC182+1","v":2100}]
["Bass Coast (S)",null,{"$f":"'Res-Appliance class'!$B27*'RES S curve-disconnect'!C$3+'Res-Appliance class'!$C27*'RES S curve-disconnect'!C$8+'Res-Appliance class'!$D27*'RES S curve-disconnect'!C$13+'Res-Appliance class'!$E27*'RES S curve-disconnect'!C$18","v":-3286.1992356985384},{"$f":"'Res-Appliance class'!$B27*'RES S curve-disconnect'!D$3+'Res-Appliance class'!$C27*'RES S curve-disconnect'!D$8+'Res-Appliance class'!$D27*'RES S curve-disconnect'!D$13+'Res-Appliance class'!$E27*'RES S curve-disconnect'!D$18","v":-3724.9535400171317},{"$f":"'Res-Appliance class'!$B27*'RES S curve-disconnect'!E$3+'Res-Appliance class'!$C27*'RES S curve-disconnect'!E$8+'Res-Appliance class'!$D27*'RES S curve-disconnect'!E$13+'Res-Appliance class'!$E27*'RES S curve-disconnect'!E$18","v":-3395.9201972992423},{"$f":"'Res-Appliance class'!$B27*'RES S curve-disconnect'!F$3+'Res-Appliance class'!$C27*'RES S curve-disconnect'!F$8+'Res-Appliance class'!$D27*'RES S curve-disconnect'!F$13+'Res-Appliance class'!$E27*'RES S curve-disconnect'!F$18","v":-3275.6483822116602},{"$f":"'Res-Appliance class'!$B27*'RES S curve-disconnect'!G$3+'Res-Appliance class'!$C27*'RES S curve-disconnect'!G$8+'Res-Appliance class'!$D27*'RES S curve-disconnect'!G$13+'Res-Appliance class'!$E27*'RES S curve-disconnect'!G$18","v":-3987.5477567692901},{"$f":"'Res-Appliance class'!$B27*'RES S curve-disconnect'!H$3+'Res-Appliance class'!$C27*'RES S curve-disconnect'!H$8+'Res-Appliance class'!$D27*'RES S curve-disconnect'!H$13+'Res-Appliance class'!$E27*'RES S curve-disconnect'!H$18","v":-4034.006389924476},{"$f":"'Res-Appliance class'!$B27*'RES S curve-disconnect'!I$3+'Res-Appliance class'!$C27*'RES S curve-disconnect'!I$8+'Res-Appliance class'!$D27*'RES S curve-disconnect'!I$13+'Res-Appliance class'!$E27*'RES S curve-disconnect'!I$18","v":-3680.3289047746398},{"$f":"'Res-Appliance class'!$B27*'RES S curve-disconnect'!J$3+'Res-Appliance class'!$C27*'RES S curve-disconnect'!J$8+'Res-Appliance class'!$D27*'RES S curve-disconnect'!J$13+'Res-Appliance class'!$E27*'RES S curve-disconnect'!J$18","v":-3980.9839062176488},{"$f":"'Res-Appliance class'!$B27*'RES S curve-disconnect'!K$3+'Res-Appliance class'!$C27*'RES S curve-disconnect'!K$8+'Res-Appliance class'!$D27*'RES S curve-disconnect'!K$13+'Res-Appliance class'!$E27*'RES S curve-disconnect'!K$18","v":-3330.8835937620279},{"$f":"'Res-Appliance class'!$B27*'RES S curve-disconnect'!L$3+'Res-Appliance class'!$C27*'RES S curve-disconnect'!L$8+'Res-Appliance class'!$D27*'RES S curve-disconnect'!L$13+'Res-Appliance class'!$E27*'RES S curve-disconnect'!L$18","v":-3634.1872027735189},{"$f":"'Res-Appliance class'!$B27*'RES S curve-disconnect'!M$3+'Res-Appliance class'!$C27*'RES S curve-disconnect'!M$8+'Res-Appliance class'!$D27*'RES S curve-disconnect'!M$13+'Res-Appliance class'!$E27*'RES S curve-disconnect'!M$18","v":-4138.4569967578027},{"$f":"'Res-Appliance class'!$B27*'RES S curve-disconnect'!N$3+'Res-Appliance class'!$C27*'RES S curve-disconnect'!N$8+'Res-Appliance class'!$D27*'RES S curve-disconnect'!N$13+'Res-Appliance class'!$E27*'RES S curve-disconnect'!N$18","v":-4191.1953346421478},{"$f":"'Res-Appliance class'!$B27*'RES S curve-disconnect'!O$3+'Res-Appliance class'!$C27*'RES S curve-disconnect'!O$8+'Res-Appliance class'!$D27*'RES S curve-disconnect'!O$13+'Res-Appliance class'!$E27*'RES S curve-disconnect'!O$18","v":-3726.5329226666613},{"$f":"'Res-Appliance class'!$B27*'RES S curve-disconnect'!P$3+'Res-Appliance class'!$C27*'RES S curve-disconnect'!P$8+'Res-Appliance class'!$D27*'RES S curve-disconnect'!P$13+'Res-Appliance class'!$E27*'RES S curve-disconnect'!P$18","v":-3362.3742616239297},{"$f":"'Res-Appliance class'!$B27*'RES S curve-disconnect'!Q$3+'Res-Appliance class'!$C27*'RES S curve-disconnect'!Q$8+'Res-Appliance class'!$D27*'RES S curve-disconnect'!Q$13+'Res-Appliance class'!$E27*'RES S curve-disconnect'!Q$18","v":-2810.0596134554839},{"$f":"'Res-Appliance class'!$B27*'RES S curve-disconnect'!R$3+'Res-Appliance class'!$C27*'RES S curve-disconnect'!R$8+'Res-Appliance class'!$D27*'RES S curve-disconnect'!R$13+'Res-Appliance class'!$E27*'RES S curve-disconnect'!R$18","v":-2499.599869580783},{"$f":"'Res-Appliance class'!$B27*'RES S curve-disconnect'!S$3+'Res-Appliance class'!$C27*'RES S curve-disconnect'!S$8+'Res-Appliance class'!$D27*'RES S curve-disconnect'!S$13+'Res-Appliance class'!$E27*'RES S curve-disconnect'!S$18","v":-1994.3458187079509},{"$f":"'Res-Appliance class'!$B27*'RES S curve-disconnect'!T$3+'Res-Appliance class'!$C27*'RES S curve-disconnect'!T$8+'Res-Appliance class'!$D27*'RES S curve-disconnect'!T$13+'Res-Appliance class'!$E27*'RES S curve-disconnect'!T$18","v":-1740.5195750794769},{"$f":"'Res-Appliance class'!$B27*'RES S curve-disconnect'!U$3+'Res-Appliance class'!$C27*'RES S curve-disconnect'!U$8+'Res-Appliance class'!$D27*'RES S curve-disconnect'!U$13+'Res-Appliance class'!$E27*'RES S curve-disconnect'!U$18","v":-1436.8569912137928},{"$f":"'Res-Appliance class'!$B27*'RES S curve-disconnect'!V$3+'Res-Appliance class'!$C27*'RES S curve-disconnect'!V$8+'Res-Appliance class'!$D27*'RES S curve-disconnect'!V$13+'Res-Appliance class'!$E27*'RES S curve-disconnect'!V$18","v":-1226.5342345585423},{"$f":"'Res-Appliance class'!$B27*'RES S curve-disconnect'!W$3+'Res-Appliance class'!$C27*'RES S curve-disconnect'!W$8+'Res-Appliance class'!$D27*'RES S curve-disconnect'!W$13+'Res-Appliance class'!$E27*'RES S curve-disconnect'!W$18","v":-1063.4860237062478},{"$f":"'Res-Appliance class'!$B27*'RES S curve-disconnect'!X$3+'Res-Appliance class'!$C27*'RES S curve-disconnect'!X$8+'Res-Appliance class'!$D27*'RES S curve-disconnect'!X$13+'Res-Appliance class'!$E27*'RES S curve-disconnect'!X$18","v":-697.78314326558814},{"$f":"'Res-Appliance class'!$B27*'RES S curve-disconnect'!Y$3+'Res-Appliance class'!$C27*'RES S curve-disconnect'!Y$8+'Res-Appliance class'!$D27*'RES S curve-disconnect'!Y$13+'Res-Appliance class'!$E27*'RES S curve-disconnect'!Y$18","v":-325.72222649162342},{"$f":"'Res-Appliance class'!$B27*'RES S curve-disconnect'!Z$3+'Res-Appliance class'!$C27*'RES S curve-disconnect'!Z$8+'Res-Appliance class'!$D27*'RES S curve-disconnect'!Z$13+'Res-Appliance class'!$E27*'RES S curve-disconnect'!Z$18","v":-74.068156577424531},{"$f":"'Res-Appliance class'!$B27*'RES S curve-disconnect'!AA$3+'Res-Appliance class'!$C27*'RES S curve-disconnect'!AA$8+'Res-Appliance class'!$D27*'RES S curve-disconnect'!AA$13+'Res-Appliance class'!$E27*'RES S curve-disconnect'!AA$18","v":179.90056477703985},{"$f":"'Res-Appliance class'!$B27*'RES S curve-disconnect'!AB$3+'Res-Appliance class'!$C27*'RES S curve-disconnect'!AB$8+'Res-Appliance class'!$D27*'RES S curve-disconnect'!AB$13+'Res-Appliance class'!$E27*'RES S curve-disconnect'!AB$18","v":382.83981788810797},{"$f":"'Res-Appliance class'!$B27*'RES S curve-disconnect'!AC$3+'Res-Appliance class'!$C27*'RES S curve-disconnect'!AC$8+'Res-Appliance class'!$D27*'RES S curve-disconnect'!AC$13+'Res-Appliance class'!$E27*'RES S curve-disconnect'!AC$18","v":579.69747423971705},{"$f":"'Res-Appliance class'!$B27*'RES S curve-disconnect'!AD$3+'Res-Appliance class'!$C27*'RES S curve-disconnect'!AD$8+'Res-Appliance class'!$D27*'RES S curve-disconnect'!AD$13+'Res-Appliance class'!$E27*'RES S curve-disconnect'!AD$18","v":760.02879607329714},{"$f":"'Res-Appliance class'!$B27*'RES S curve-disconnect'!AE$3+'Res-Appliance class'!$C27*'RES S curve-disconnect'!AE$8+'Res-Appliance class'!$D27*'RES S curve-disconnect'!AE$13+'Res-Appliance class'!$E27*'RES S curve-disconnect'!AE$18","v":952.99016689315681},{"$f":"'Res-Appliance class'!$B27*'RES S curve-disconnect'!AF$3+'Res-Appliance class'!$C27*'RES S curve-disconnect'!AF$8+'Res-Appliance class'!$D27*'RES S curve-disconnect'!AF$13+'Res-Appliance class'!$E27*'RES S curve-disconnect'!AF$18","v":1199.85283641873},{"$f":"'Res-Appliance class'!$B27*'RES S curve-disconnect'!AG$3+'Res-Appliance class'!$C27*'RES S curve-disconnect'!AG$8+'Res-Appliance class'!$D27*'RES S curve-disconnect'!AG$13+'Res-Appliance class'!$E27*'RES S curve-disconnect'!AG$18","v":1373.8336474271098},{"$f":"'Res-Appliance class'!$B27*'RES S curve-disconnect'!AH$3+'Res-Appliance class'!$C27*'RES S curve-disconnect'!AH$8+'Res-Appliance class'!$D27*'RES S curve-disconnect'!AH$13+'Res-Appliance class'!$E27*'RES S curve-disconnect'!AH$18","v":1612.2479454894703},{"$f":"'Res-Appliance class'!$B27*'RES S curve-disconnect'!AI$3+'Res-Appliance class'!$C27*'RES S curve-disconnect'!AI$8+'Res-Appliance class'!$D27*'RES S curve-disconnect'!AI$13+'Res-Appliance class'!$E27*'RES S curve-disconnect'!AI$18","v":1832.396106945831},{"$f":"'Res-Appliance class'!$B27*'RES S curve-disconnect'!AJ$3+'Res-Appliance class'!$C27*'RES S curve-disconnect'!AJ$8+'Res-Appliance class'!$D27*'RES S curve-disconnect'!AJ$13+'Res-Appliance class'!$E27*'RES S curve-disconnect'!AJ$18","v":2029.8622362739461},{"$f":"'Res-Appliance class'!$B27*'RES S curve-disconnect'!AK$3+'Res-Appliance class'!$C27*'RES S curve-disconnect'!AK$8+'Res-Appliance class'!$D27*'RES S curve-disconnect'!AK$13+'Res-Appliance class'!$E27*'RES S curve-disconnect'!AK$18","v":2239.7078933174298},{"$f":"'Res-Appliance class'!$B27*'RES S curve-disconnect'!AL$3+'Res-Appliance class'!$C27*'RES S curve-disconnect'!AL$8+'Res-Appliance class'!$D27*'RES S curve-disconnect'!AL$13+'Res-Appliance class'!$E27*'RES S curve-disconnect'!AL$18","v":1497.6305251163167},{"$f":"'Res-Appliance class'!$B27*'RES S curve-disconnect'!AM$3+'Res-Appliance class'!$C27*'RES S curve-disconnect'!AM$8+'Res-Appliance class'!$D27*'RES S curve-disconnect'!AM$13+'Res-Appliance class'!$E27*'RES S curve-disconnect'!AM$18","v":1409.2428392499187},{"$f":"'Res-Appliance class'!$B27*'RES S curve-disconnect'!AN$3+'Res-Appliance class'!$C27*'RES S curve-disconnect'!AN$8+'Res-Appliance class'!$D27*'RES S curve-disconnect'!AN$13+'Res-Appliance class'!$E27*'RES S curve-disconnect'!AN$18","v":1612.3653311625021},{"$f":"'Res-Appliance class'!$B27*'RES S curve-disconnect'!AO$3+'Res-Appliance class'!$C27*'RES S curve-disconnect'!AO$8+'Res-Appliance class'!$D27*'RES S curve-disconnect'!AO$13+'Res-Appliance class'!$E27*'RES S curve-disconnect'!AO$18","v":1856.5931550173564},{"$f":"'Res-Appliance class'!$B27*'RES S curve-disconnect'!AP$3+'Res-Appliance class'!$C27*'RES S curve-disconnect'!AP$8+'Res-Appliance class'!$D27*'RES S curve-disconnect'!AP$13+'Res-Appliance class'!$E27*'RES S curve-disconnect'!AP$18","v":2079.728156641107},{"$f":"'Res-Appliance class'!$B27*'RES S curve-disconnect'!AQ$3+'Res-Appliance class'!$C27*'RES S curve-disconnect'!AQ$8+'Res-Appliance class'!$D27*'RES S curve-disconnect'!AQ$13+'Res-Appliance class'!$E27*'RES S curve-disconnect'!AQ$18","v":2322.4897314489745},{"$f":"'Res-Appliance class'!$B27*'RES S curve-disconnect'!AR$3+'Res-Appliance class'!$C27*'RES S curve-disconnect'!AR$8+'Res-Appliance class'!$D27*'RES S curve-disconnect'!AR$13+'Res-Appliance class'!$E27*'RES S curve-disconnect'!AR$18","v":2587.5729370251647},{"$f":"'Res-Appliance class'!$B27*'RES S curve-disconnect'!AS$3+'Res-Appliance class'!$C27*'RES S curve-disconnect'!AS$8+'Res-Appliance class'!$D27*'RES S curve-disconnect'!AS$13+'Res-Appliance class'!$E27*'RES S curve-disconnect'!AS$18","v":2884.6570196127263},{"$f":"'Res-Appliance class'!$B27*'RES S curve-disconnect'!AT$3+'Res-Appliance class'!$C27*'RES S curve-disconnect'!AT$8+'Res-Appliance class'!$D27*'RES S curve-disconnect'!AT$13+'Res-Appliance class'!$E27*'RES S curve-disconnect'!AT$18","v":3215.2772653492775},{"$f":"'Res-Appliance class'!$B27*'RES S curve-disconnect'!AU$3+'Res-Appliance class'!$C27*'RES S curve-disconnect'!AU$8+'Res-Appliance class'!$D27*'RES S curve-disconnect'!AU$13+'Res-Appliance class'!$E27*'RES S curve-disconnect'!AU$18","v":3599.8221057039659},{"$f":"'Res-Appliance class'!$B27*'RES S curve-disconnect'!AV$3+'Res-Appliance class'!$C27*'RES S curve-disconnect'!AV$8+'Res-Appliance class'!$D27*'RES S curve-disconnect'!AV$13+'Res-Appliance class'!$E27*'RES S curve-disconnect'!AV$18","v":4036.3718782726346},{"$f":"'Res-Appliance class'!$B27*'RES S curve-disconnect'!AW$3+'Res-Appliance class'!$C27*'RES S curve-disconnect'!AW$8+'Res-Appliance class'!$D27*'RES S curve-disconnect'!AW$13+'Res-Appliance class'!$E27*'RES S curve-disconnect'!AW$18","v":4537.1656333861956},{"$f":"'Res-Appliance class'!$B27*'RES S curve-disconnect'!AX$3+'Res-Appliance class'!$C27*'RES S curve-disconnect'!AX$8+'Res-Appliance class'!$D27*'RES S curve-disconnect'!AX$13+'Res-Appliance class'!$E27*'RES S curve-disconnect'!AX$18","v":5105.387662496043},{"$f":"'Res-Appliance class'!$B27*'RES S curve-disconnect'!AY$3+'Res-Appliance class'!$C27*'RES S curve-disconnect'!AY$8+'Res-Appliance class'!$D27*'RES S curve-disconnect'!AY$13+'Res-Appliance class'!$E27*'RES S curve-disconnect'!AY$18","v":5762.0563009193411},{"$f":"'Res-Appliance class'!$B27*'RES S curve-disconnect'!AZ$3+'Res-Appliance class'!$C27*'RES S curve-disconnect'!AZ$8+'Res-Appliance class'!$D27*'RES S curve-disconnect'!AZ$13+'Res-Appliance class'!$E27*'RES S curve-disconnect'!AZ$18","v":6509.4063431008472},{"$f":"'Res-Appliance class'!$B27*'RES S curve-disconnect'!BA$3+'Res-Appliance class'!$C27*'RES S curve-disconnect'!BA$8+'Res-Appliance class'!$D27*'RES S curve-disconnect'!BA$13+'Res-Appliance class'!$E27*'RES S curve-disconnect'!BA$18","v":7372.634629649242},{"$f":"'Res-Appliance class'!$B27*'RES S curve-disconnect'!BB$3+'Res-Appliance class'!$C27*'RES S curve-disconnect'!BB$8+'Res-Appliance class'!$D27*'RES S curve-disconnect'!BB$13+'Res-Appliance class'!$E27*'RES S curve-disconnect'!BB$18","v":8377.1388373886493},{"$f":"'Res-Appliance class'!$B27*'RES S curve-disconnect'!BC$3+'Res-Appliance class'!$C27*'RES S curve-disconnect'!BC$8+'Res-Appliance class'!$D27*'RES S curve-disconnect'!BC$13+'Res-Appliance class'!$E27*'RES S curve-disconnect'!BC$18","v":9574.2969417896802},{"$f":"'Res-Appliance class'!$B27*'RES S curve-disconnect'!BD$3+'Res-Appliance class'!$C27*'RES S curve-disconnect'!BD$8+'Res-Appliance class'!$D27*'RES S curve-disconnect'!BD$13+'Res-Appliance class'!$E27*'RES S curve-disconnect'!BD$18","v":10718.820159598497},{"$f":"'Res-Appliance class'!$B27*'RES S curve-disconnect'!BE$3+'Res-Appliance class'!$C27*'RES S curve-disconnect'!BE$8+'Res-Appliance class'!$D27*'RES S curve-disconnect'!BE$13+'Res-Appliance class'!$E27*'RES S curve-disconnect'!BE$18","v":11761.457585805958},{"$f":"'Res-Appliance class'!$B27*'RES S curve-disconnect'!BF$3+'Res-Appliance class'!$C27*'RES S curve-disconnect'!BF$8+'Res-Appliance class'!$D27*'RES S curve-disconnect'!BF$13+'Res-Appliance class'!$E27*'RES S curve-disconnect'!BF$18","v":12829.29723301478},{"$f":"'Res-Appliance class'!$B27*'RES S curve-disconnect'!BG$3+'Res-Appliance class'!$C27*'RES S curve-disconnect'!BG$8+'Res-Appliance class'!$D27*'RES S curve-disconnect'!BG$13+'Res-Appliance class'!$E27*'RES S curve-disconnect'!BG$18","v":14041.760545170318},{"$f":"'Res-Appliance class'!$B27*'RES S curve-disconnect'!BH$3+'Res-Appliance class'!$C27*'RES S curve-disconnect'!BH$8+'Res-Appliance class'!$D27*'RES S curve-disconnect'!BH$13+'Res-Appliance class'!$E27*'RES S curve-disconnect'!BH$18","v":15478.68944781501},{"$f":"'Res-Appliance class'!$B27*'RES S curve-disconnect'!BI$3+'Res-Appliance class'!$C27*'RES S curve-disconnect'!BI$8+'Res-Appliance class'!$D27*'RES S curve-disconnect'!BI$13+'Res-Appliance class'!$E27*'RES S curve-disconnect'!BI$18","v":17563.234137274991},{"$f":"'Res-Appliance class'!$B27*'RES S curve-disconnect'!BJ$3+'Res-Appliance class'!$C27*'RES S curve-disconnect'!BJ$8+'Res-Appliance class'!$D27*'RES S curve-disconnect'!BJ$13+'Res-Appliance class'!$E27*'RES S curve-disconnect'!BJ$18","v":20604.197645920452},{"$f":"'Res-Appliance class'!$B27*'RES S curve-disconnect'!BK$3+'Res-Appliance class'!$C27*'RES S curve-disconnect'!BK$8+'Res-Appliance class'!$D27*'RES S curve-disconnect'!BK$13+'Res-Appliance class'!$E27*'RES S curve-disconnect'!BK$18","v":25074.405584180793},{"$f":"'Res-Appliance class'!$B27*'RES S curve-disconnect'!BL$3+'Res-Appliance class'!$C27*'RES S curve-disconnect'!BL$8+'Res-Appliance class'!$D27*'RES S curve-disconnect'!BL$13+'Res-Appliance class'!$E27*'RES S curve-disconnect'!BL$18","v":-1202.5698392467975},{"$f":"'Res-Appliance class'!$B27*'RES S curve-disconnect'!BM$3+'Res-Appliance class'!$C27*'RES S curve-disconnect'!BM$8+'Res-Appliance class'!$D27*'RES S curve-disconnect'!BM$13+'Res-Appliance class'!$E27*'RES S curve-disconnect'!BM$18","v":-1196.7556465923858},{"$f":"'Res-Appliance class'!$B27*'RES S curve-disconnect'!BN$3+'Res-Appliance class'!$C27*'RES S curve-disconnect'!BN$8+'Res-Appliance class'!$D27*'RES S curve-disconnect'!BN$13+'Res-Appliance class'!$E27*'RES S curve-disconnect'!BN$18","v":-1194.9731567062429},{"$f":"'Res-Appliance class'!$B27*'RES S curve-disconnect'!BO$3+'Res-Appliance class'!$C27*'RES S curve-disconnect'!BO$8+'Res-Appliance class'!$D27*'RES S curve-disconnect'!BO$13+'Res-Appliance class'!$E27*'RES S curve-disconnect'!BO$18","v":-1185.1556874074445},{"$f":"'Res-Appliance class'!$B27*'RES S curve-disconnect'!BP$3+'Res-Appliance class'!$C27*'RES S curve-disconnect'!BP$8+'Res-Appliance class'!$D27*'RES S curve-disconnect'!BP$13+'Res-Appliance class'!$E27*'RES S curve-disconnect'!BP$18","v":-1179.3698043770751},{"$f":"'Res-Appliance class'!$B27*'RES S curve-disconnect'!BQ$3+'Res-Appliance class'!$C27*'RES S curve-disconnect'!BQ$8+'Res-Appliance class'!$D27*'RES S curve-disconnect'!BQ$13+'Res-Appliance class'!$E27*'RES S curve-disconnect'!BQ$18","v":-1173.593241997896},{"$f":"'Res-Appliance class'!$B27*'RES S curve-disconnect'!BR$3+'Res-Appliance class'!$C27*'RES S curve-disconnect'!BR$8+'Res-Appliance class'!$D27*'RES S curve-disconnect'!BR$13+'Res-Appliance class'!$E27*'RES S curve-disconnect'!BR$18","v":-1171.8481508468292},{"$f":"'Res-Appliance class'!$B27*'RES S curve-disconnect'!BS$3+'Res-Appliance class'!$C27*'RES S curve-disconnect'!BS$8+'Res-Appliance class'!$D27*'RES S curve-disconnect'!BS$13+'Res-Appliance class'!$E27*'RES S curve-disconnect'!BS$18","v":-1162.0678501978562},{"$f":"'Res-Appliance class'!$B27*'RES S curve-disconnect'!BT$3+'Res-Appliance class'!$C27*'RES S curve-disconnect'!BT$8+'Res-Appliance class'!$D27*'RES S curve-disconnect'!BT$13+'Res-Appliance class'!$E27*'RES S curve-disconnect'!BT$18","v":-1156.3189071777342},{"$f":"'Res-Appliance class'!$B27*'RES S curve-disconnect'!BU$3+'Res-Appliance class'!$C27*'RES S curve-disconnect'!BU$8+'Res-Appliance class'!$D27*'RES S curve-disconnect'!BU$13+'Res-Appliance class'!$E27*'RES S curve-disconnect'!BU$18","v":-1150.5790576057202},{"$f":"'Res-Appliance class'!$B27*'RES S curve-disconnect'!BV$3+'Res-Appliance class'!$C27*'RES S curve-disconnect'!BV$8+'Res-Appliance class'!$D27*'RES S curve-disconnect'!BV$13+'Res-Appliance class'!$E27*'RES S curve-disconnect'!BV$18","v":-1148.8704534861204},{"$f":"'Res-Appliance class'!$B27*'RES S curve-disconnect'!BW$3+'Res-Appliance class'!$C27*'RES S curve-disconnect'!BW$8+'Res-Appliance class'!$D27*'RES S curve-disconnect'!BW$13+'Res-Appliance class'!$E27*'RES S curve-disconnect'!BW$18","v":-1139.126415511239},{"$f":"'Res-Appliance class'!$B27*'RES S curve-disconnect'!BX$3+'Res-Appliance class'!$C27*'RES S curve-disconnect'!BX$8+'Res-Appliance class'!$D27*'RES S curve-disconnect'!BX$13+'Res-Appliance class'!$E27*'RES S curve-disconnect'!BX$18","v":-1133.4135122171581},{"$f":"'Res-Appliance class'!$B27*'RES S curve-disconnect'!BY$3+'Res-Appliance class'!$C27*'RES S curve-disconnect'!BY$8+'Res-Appliance class'!$D27*'RES S curve-disconnect'!BY$13+'Res-Appliance class'!$E27*'RES S curve-disconnect'!BY$18","v":-1127.7094808235172},{"$f":"'Res-Appliance class'!$B27*'RES S curve-disconnect'!BZ$3+'Res-Appliance class'!$C27*'RES S curve-disconnect'!BZ$8+'Res-Appliance class'!$D27*'RES S curve-disconnect'!BZ$13+'Res-Appliance class'!$E27*'RES S curve-disconnect'!BZ$18","v":-1126.0364747261181},{"$f":"'Res-Appliance class'!$B27*'RES S curve-disconnect'!CA$3+'Res-Appliance class'!$C27*'RES S curve-disconnect'!CA$8+'Res-Appliance class'!$D27*'RES S curve-disconnect'!CA$13+'Res-Appliance class'!$E27*'RES S curve-disconnect'!CA$18","v":-1116.3278159999309},{"$f":"'Res-Appliance class'!$B27*'RES S curve-disconnect'!CB$3+'Res-Appliance class'!$C27*'RES S curve-disconnect'!CB$8+'Res-Appliance class'!$D27*'RES S curve-disconnect'!CB$13+'Res-Appliance class'!$E27*'RES S curve-disconnect'!CB$18","v":-1110.6500745549333},{"$f":"'Res-Appliance class'!$B27*'RES S curve-disconnect'!CC$3+'Res-Appliance class'!$C27*'RES S curve-disconnect'!CC$8+'Res-Appliance class'!$D27*'RES S curve-disconnect'!CC$13+'Res-Appliance class'!$E27*'RES S curve-disconnect'!CC$18","v":-1104.980988975942},{"$f":"'Res-Appliance class'!$B27*'RES S curve-disconnect'!CD$3+'Res-Appliance class'!$C27*'RES S curve-disconnect'!CD$8+'Res-Appliance class'!$D27*'RES S curve-disconnect'!CD$13+'Res-Appliance class'!$E27*'RES S curve-disconnect'!CD$18","v":-1187.9899968644243}]
["Bayside (C)",null,{"$f":"'Res-Appliance class'!$B28*'RES S curve-disconnect'!C$3+'Res-Appliance class'!$C28*'RES S curve-disconnect'!C$8+'Res-Appliance class'!$D28*'RES S curve-disconnect'!C$13+'Res-Appliance class'!$E28*'RES S curve-disconnect'!C$18","v":-4430.4826961214349},{"$f":"'Res-Appliance class'!$B28*'RES S curve-disconnect'!D$3+'Res-Appliance class'!$C28*'RES S curve-disconnect'!D$8+'Res-Appliance class'!$D28*'RES S curve-disconnect'!D$13+'Res-Appliance class'!$E28*'RES S curve-disconnect'!D$18","v":-5043.5417168990207},{"$f":"'Res-Appliance class'!$B28*'RES S curve-disconnect'!E$3+'Res-Appliance class'!$C28*'RES S curve-disconnect'!E$8+'Res-Appliance class'!$D28*'RES S curve-disconnect'!E$13+'Res-Appliance class'!$E28*'RES S curve-disconnect'!E$18","v":-4477.205391778296},{"$f":"'Res-Appliance class'!$B28*'RES S curve-disconnect'!F$3+'Res-Appliance class'!$C28*'RES S curve-disconnect'!F$8+'Res-Appliance class'!$D28*'RES S curve-disconnect'!F$13+'Res-Appliance class'!$E28*'RES S curve-disconnect'!F$18","v":-4294.3251619827643},{"$f":"'Res-Appliance class'!$B28*'RES S curve-disconnect'!G$3+'Res-Appliance class'!$C28*'RES S curve-disconnect'!G$8+'Res-Appliance class'!$D28*'RES S curve-disconnect'!G$13+'Res-Appliance class'!$E28*'RES S curve-disconnect'!G$18","v":-5557.8049902835173},{"$f":"'Res-Appliance class'!$B28*'RES S curve-disconnect'!H$3+'Res-Appliance class'!$C28*'RES S curve-disconnect'!H$8+'Res-Appliance class'!$D28*'RES S curve-disconnect'!H$13+'Res-Appliance class'!$E28*'RES S curve-disconnect'!H$18","v":-5587.594396519431},{"$f":"'Res-Appliance class'!$B28*'RES S curve-disconnect'!I$3+'Res-Appliance class'!$C28*'RES S curve-disconnect'!I$8+'Res-Appliance class'!$D28*'RES S curve-disconnect'!I$13+'Res-Appliance class'!$E28*'RES S curve-disconnect'!I$18","v":-5068.6098009210345},{"$f":"'Res-Appliance class'!$B28*'RES S curve-disconnect'!J$3+'Res-Appliance class'!$C28*'RES S curve-disconnect'!J$8+'Res-Appliance class'!$D28*'RES S curve-disconnect'!J$13+'Res-Appliance class'!$E28*'RES S curve-disconnect'!J$18","v":-5383.6717587044768},{"$f":"'Res-Appliance class'!$B28*'RES S curve-disconnect'!K$3+'Res-Appliance class'!$C28*'RES S curve-disconnect'!K$8+'Res-Appliance class'!$D28*'RES S curve-disconnect'!K$13+'Res-Appliance class'!$E28*'RES S curve-disconnect'!K$18","v":-4462.5356012268103},{"$f":"'Res-Appliance class'!$B28*'RES S curve-disconnect'!L$3+'Res-Appliance class'!$C28*'RES S curve-disconnect'!L$8+'Res-Appliance class'!$D28*'RES S curve-disconnect'!L$13+'Res-Appliance class'!$E28*'RES S curve-disconnect'!L$18","v":-4890.217294970188},{"$f":"'Res-Appliance class'!$B28*'RES S curve-disconnect'!M$3+'Res-Appliance class'!$C28*'RES S curve-disconnect'!M$8+'Res-Appliance class'!$D28*'RES S curve-disconnect'!M$13+'Res-Appliance class'!$E28*'RES S curve-disconnect'!M$18","v":-5657.6426771307979},{"$f":"'Res-Appliance class'!$B28*'RES S curve-disconnect'!N$3+'Res-Appliance class'!$C28*'RES S curve-disconnect'!N$8+'Res-Appliance class'!$D28*'RES S curve-disconnect'!N$13+'Res-Appliance class'!$E28*'RES S curve-disconnect'!N$18","v":-5737.7633843038029},{"$f":"'Res-Appliance class'!$B28*'RES S curve-disconnect'!O$3+'Res-Appliance class'!$C28*'RES S curve-disconnect'!O$8+'Res-Appliance class'!$D28*'RES S curve-disconnect'!O$13+'Res-Appliance class'!$E28*'RES S curve-disconnect'!O$18","v":-5075.9571043578371},{"$f":"'Res-Appliance class'!$B28*'RES S curve-disconnect'!P$3+'Res-Appliance class'!$C28*'RES S curve-disconnect'!P$8+'Res-Appliance class'!$D28*'RES S curve-disconnect'!P$13+'Res-Appliance class'!$E28*'RES S curve-disconnect'!P$18","v":-4550.8063488242678},{"$f":"'Res-Appliance class'!$B28*'RES S curve-disconnect'!Q$3+'Res-Appliance class'!$C28*'RES S curve-disconnect'!Q$8+'Res-Appliance class'!$D28*'RES S curve-disconnect'!Q$13+'Res-Appliance class'!$E28*'RES S curve-disconnect'!Q$18","v":-3752.9326051506137},{"$f":"'Res-Appliance class'!$B28*'RES S curve-disconnect'!R$3+'Res-Appliance class'!$C28*'RES S curve-disconnect'!R$8+'Res-Appliance class'!$D28*'RES S curve-disconnect'!R$13+'Res-Appliance class'!$E28*'RES S curve-disconnect'!R$18","v":-3304.3141673147256},{"$f":"'Res-Appliance class'!$B28*'RES S curve-disconnect'!S$3+'Res-Appliance class'!$C28*'RES S curve-disconnect'!S$8+'Res-Appliance class'!$D28*'RES S curve-disconnect'!S$13+'Res-Appliance class'!$E28*'RES S curve-disconnect'!S$18","v":-2585.4537151064824},{"$f":"'Res-Appliance class'!$B28*'RES S curve-disconnect'!T$3+'Res-Appliance class'!$C28*'RES S curve-disconnect'!T$8+'Res-Appliance class'!$D28*'RES S curve-disconnect'!T$13+'Res-Appliance class'!$E28*'RES S curve-disconnect'!T$18","v":-2199.2653902161865},{"$f":"'Res-Appliance class'!$B28*'RES S curve-disconnect'!U$3+'Res-Appliance class'!$C28*'RES S curve-disconnect'!U$8+'Res-Appliance class'!$D28*'RES S curve-disconnect'!U$13+'Res-Appliance class'!$E28*'RES S curve-disconnect'!U$18","v":-1756.5588727215238},{"$f":"'Res-Appliance class'!$B28*'RES S curve-disconnect'!V$3+'Res-Appliance class'!$C28*'RES S curve-disconnect'!V$8+'Res-Appliance class'!$D28*'RES S curve-disconnect'!V$13+'Res-Appliance class'!$E28*'RES S curve-disconnect'!V$18","v":-1456.8655335676758},{"$f":"'Res-Appliance class'!$B28*'RES S curve-disconnect'!W$3+'Res-Appliance class'!$C28*'RES S curve-disconnect'!W$8+'Res-Appliance class'!$D28*'RES S curve-disconnect'!W$13+'Res-Appliance class'!$E28*'RES S curve-disconnect'!W$18","v":-1225.0900039208791},{"$f":"'Res-Appliance class'!$B28*'RES S curve-disconnect'!X$3+'Res-Appliance class'!$C28*'RES S curve-disconnect'!X$8+'Res-Appliance class'!$D28*'RES S curve-disconnect'!X$13+'Res-Appliance class'!$E28*'RES S curve-disconnect'!X$18","v":-689.36929028485281},{"$f":"'Res-Appliance class'!$B28*'RES S curve-disconnect'!Y$3+'Res-Appliance class'!$C28*'RES S curve-disconnect'!Y$8+'Res-Appliance class'!$D28*'RES S curve-disconnect'!Y$13+'Res-Appliance class'!$E28*'RES S curve-disconnect'!Y$18","v":-147.12545166156048},{"$f":"'Res-Appliance class'!$B28*'RES S curve-disconnect'!Z$3+'Res-Appliance class'!$C28*'RES S curve-disconnect'!Z$8+'Res-Appliance class'!$D28*'RES S curve-disconnect'!Z$13+'Res-Appliance class'!$E28*'RES S curve-disconnect'!Z$18","v":217.27799891056941},{"$f":"'Res-Appliance class'!$B28*'RES S curve-disconnect'!AA$3+'Res-Appliance class'!$C28*'RES S curve-disconnect'!AA$8+'Res-Appliance class'!$D28*'RES S curve-disconnect'!AA$13+'Res-Appliance class'!$E28*'RES S curve-disconnect'!AA$18","v":581.84072084849072},{"$f":"'Res-Appliance class'!$B28*'RES S curve-disconnect'!AB$3+'Res-Appliance class'!$C28*'RES S curve-disconnect'!AB$8+'Res-Appliance class'!$D28*'RES S curve-disconnect'!AB$13+'Res-Appliance class'!$E28*'RES S curve-disconnect'!AB$18","v":871.29902877046277},{"$f":"'Res-Appliance class'!$B28*'RES S curve-disconnect'!AC$3+'Res-Appliance class'!$C28*'RES S curve-disconnect'!AC$8+'Res-Appliance class'!$D28*'RES S curve-disconnect'!AC$13+'Res-Appliance class'!$E28*'RES S curve-disconnect'!AC$18","v":1149.9658033947683},{"$f":"'Res-Appliance class'!$B28*'RES S curve-disconnect'!AD$3+'Res-Appliance class'!$C28*'RES S curve-disconnect'!AD$8+'Res-Appliance class'!$D28*'RES S curve-disconnect'!AD$13+'Res-Appliance class'!$E28*'RES S curve-disconnect'!AD$18","v":1404.9376942744625},{"$f":"'Res-Appliance class'!$B28*'RES S curve-disconnect'!AE$3+'Res-Appliance class'!$C28*'RES S curve-disconnect'!AE$8+'Res-Appliance class'!$D28*'RES S curve-disconnect'!AE$13+'Res-Appliance class'!$E28*'RES S curve-disconnect'!AE$18","v":1673.5217507378093},{"$f":"'Res-Appliance class'!$B28*'RES S curve-disconnect'!AF$3+'Res-Appliance class'!$C28*'RES S curve-disconnect'!AF$8+'Res-Appliance class'!$D28*'RES S curve-disconnect'!AF$13+'Res-Appliance class'!$E28*'RES S curve-disconnect'!AF$18","v":2023.3682664260857},{"$f":"'Res-Appliance class'!$B28*'RES S curve-disconnect'!AG$3+'Res-Appliance class'!$C28*'RES S curve-disconnect'!AG$8+'Res-Appliance class'!$D28*'RES S curve-disconnect'!AG$13+'Res-Appliance class'!$E28*'RES S curve-disconnect'!AG$18","v":2269.980770574261},{"$f":"'Res-Appliance class'!$B28*'RES S curve-disconnect'!AH$3+'Res-Appliance class'!$C28*'RES S curve-disconnect'!AH$8+'Res-Appliance class'!$D28*'RES S curve-disconnect'!AH$13+'Res-Appliance class'!$E28*'RES S curve-disconnect'!AH$18","v":2616.7971170021447},{"$f":"'Res-Appliance class'!$B28*'RES S curve-disconnect'!AI$3+'Res-Appliance class'!$C28*'RES S curve-disconnect'!AI$8+'Res-Appliance class'!$D28*'RES S curve-disconnect'!AI$13+'Res-Appliance class'!$E28*'RES S curve-disconnect'!AI$18","v":2928.7442591933022},{"$f":"'Res-Appliance class'!$B28*'RES S curve-disconnect'!AJ$3+'Res-Appliance class'!$C28*'RES S curve-disconnect'!AJ$8+'Res-Appliance class'!$D28*'RES S curve-disconnect'!AJ$13+'Res-Appliance class'!$E28*'RES S curve-disconnect'!AJ$18","v":3210.2309990862941},{"$f":"'Res-Appliance class'!$B28*'RES S curve-disconnect'!AK$3+'Res-Appliance class'!$C28*'RES S curve-disconnect'!AK$8+'Res-Appliance class'!$D28*'RES S curve-disconnect'!AK$13+'Res-Appliance class'!$E28*'RES S curve-disconnect'!AK$18","v":3509.0766431698962},{"$f":"'Res-Appliance class'!$B28*'RES S curve-disconnect'!AL$3+'Res-Appliance class'!$C28*'RES S curve-disconnect'!AL$8+'Res-Appliance class'!$D28*'RES S curve-disconnect'!AL$13+'Res-Appliance class'!$E28*'RES S curve-disconnect'!AL$18","v":2474.0252437469412},{"$f":"'Res-Appliance class'!$B28*'RES S curve-disconnect'!AM$3+'Res-Appliance class'!$C28*'RES S curve-disconnect'!AM$8+'Res-Appliance class'!$D28*'RES S curve-disconnect'!AM$13+'Res-Appliance class'!$E28*'RES S curve-disconnect'!AM$18","v":2338.7491576984576},{"$f":"'Res-Appliance class'!$B28*'RES S curve-disconnect'!AN$3+'Res-Appliance class'!$C28*'RES S curve-disconnect'!AN$8+'Res-Appliance class'!$D28*'RES S curve-disconnect'!AN$13+'Res-Appliance class'!$E28*'RES S curve-disconnect'!AN$18","v":2621.729229315893},{"$f":"'Res-Appliance class'!$B28*'RES S curve-disconnect'!AO$3+'Res-Appliance class'!$C28*'RES S curve-disconnect'!AO$8+'Res-Appliance class'!$D28*'RES S curve-disconnect'!AO$13+'Res-Appliance class'!$E28*'RES S curve-disconnect'!AO$18","v":2967.7865451015009},{"$f":"'Res-Appliance class'!$B28*'RES S curve-disconnect'!AP$3+'Res-Appliance class'!$C28*'RES S curve-disconnect'!AP$8+'Res-Appliance class'!$D28*'RES S curve-disconnect'!AP$13+'Res-Appliance class'!$E28*'RES S curve-disconnect'!AP$18","v":3287.4586794604256},{"$f":"'Res-Appliance class'!$B28*'RES S curve-disconnect'!AQ$3+'Res-Appliance class'!$C28*'RES S curve-disconnect'!AQ$8+'Res-Appliance class'!$D28*'RES S curve-disconnect'!AQ$13+'Res-Appliance class'!$E28*'RES S curve-disconnect'!AQ$18","v":3631.6516669952184},{"$f":"'Res-Appliance class'!$B28*'RES S curve-disconnect'!AR$3+'Res-Appliance class'!$C28*'RES S curve-disconnect'!AR$8+'Res-Appliance class'!$D28*'RES S curve-disconnect'!AR$13+'Res-Appliance class'!$E28*'RES S curve-disconnect'!AR$18","v":4009.5667877931137},{"$f":"'Res-Appliance class'!$B28*'RES S curve-disconnect'!AS$3+'Res-Appliance class'!$C28*'RES S curve-disconnect'!AS$8+'Res-Appliance class'!$D28*'RES S curve-disconnect'!AS$13+'Res-Appliance class'!$E28*'RES S curve-disconnect'!AS$18","v":4433.6420702570285},{"$f":"'Res-Appliance class'!$B28*'RES S curve-disconnect'!AT$3+'Res-Appliance class'!$C28*'RES S curve-disconnect'!AT$8+'Res-Appliance class'!$D28*'RES S curve-disconnect'!AT$13+'Res-Appliance class'!$E28*'RES S curve-disconnect'!AT$18","v":4907.9977595029677},{"$f":"'Res-Appliance class'!$B28*'RES S curve-disconnect'!AU$3+'Res-Appliance class'!$C28*'RES S curve-disconnect'!AU$8+'Res-Appliance class'!$D28*'RES S curve-disconnect'!AU$13+'Res-Appliance class'!$E28*'RES S curve-disconnect'!AU$18","v":5456.7898027836254},{"$f":"'Res-Appliance class'!$B28*'RES S curve-disconnect'!AV$3+'Res-Appliance class'!$C28*'RES S curve-disconnect'!AV$8+'Res-Appliance class'!$D28*'RES S curve-disconnect'!AV$13+'Res-Appliance class'!$E28*'RES S curve-disconnect'!AV$18","v":6082.7837222794324},{"$f":"'Res-Appliance class'!$B28*'RES S curve-disconnect'!AW$3+'Res-Appliance class'!$C28*'RES S curve-disconnect'!AW$8+'Res-Appliance class'!$D28*'RES S curve-disconnect'!AW$13+'Res-Appliance class'!$E28*'RES S curve-disconnect'!AW$18","v":6802.3143686331168},{"$f":"'Res-Appliance class'!$B28*'RES S curve-disconnect'!AX$3+'Res-Appliance class'!$C28*'RES S curve-disconnect'!AX$8+'Res-Appliance class'!$D28*'RES S curve-disconnect'!AX$13+'Res-Appliance class'!$E28*'RES S curve-disconnect'!AX$18","v":7622.3738057481924},{"$f":"'Res-Appliance class'!$B28*'RES S curve-disconnect'!AY$3+'Res-Appliance class'!$C28*'RES S curve-disconnect'!AY$8+'Res-Appliance class'!$D28*'RES S curve-disconnect'!AY$13+'Res-Appliance class'!$E28*'RES S curve-disconnect'!AY$18","v":8568.6116357356859},{"$f":"'Res-Appliance class'!$B28*'RES S curve-disconnect'!AZ$3+'Res-Appliance class'!$C28*'RES S curve-disconnect'!AZ$8+'Res-Appliance class'!$D28*'RES S curve-disconnect'!AZ$13+'Res-Appliance class'!$E28*'RES S curve-disconnect'!AZ$18","v":9650.3412189355913},{"$f":"'Res-Appliance class'!$B28*'RES S curve-disconnect'!BA$3+'Res-Appliance class'!$C28*'RES S curve-disconnect'!BA$8+'Res-Appliance class'!$D28*'RES S curve-disconnect'!BA$13+'Res-Appliance class'!$E28*'RES S curve-disconnect'!BA$18","v":10903.112154383862},{"$f":"'Res-Appliance class'!$B28*'RES S curve-disconnect'!BB$3+'Res-Appliance class'!$C28*'RES S curve-disconnect'!BB$8+'Res-Appliance class'!$D28*'RES S curve-disconnect'!BB$13+'Res-Appliance class'!$E28*'RES S curve-disconnect'!BB$18","v":12366.797265306615},{"$f":"'Res-Appliance class'!$B28*'RES S curve-disconnect'!BC$3+'Res-Appliance class'!$C28*'RES S curve-disconnect'!BC$8+'Res-Appliance class'!$D28*'RES S curve-disconnect'!BC$13+'Res-Appliance class'!$E28*'RES S curve-disconnect'!BC$18","v":14112.270578573001},{"$f":"'Res-Appliance class'!$B28*'RES S curve-disconnect'!BD$3+'Res-Appliance class'!$C28*'RES S curve-disconnect'!BD$8+'Res-Appliance class'!$D28*'RES S curve-disconnect'!BD$13+'Res-Appliance class'!$E28*'RES S curve-disconnect'!BD$18","v":15796.263040383688},{"$f":"'Res-Appliance class'!$B28*'RES S curve-disconnect'!BE$3+'Res-Appliance class'!$C28*'RES S curve-disconnect'!BE$8+'Res-Appliance class'!$D28*'RES S curve-disconnect'!BE$13+'Res-Appliance class'!$E28*'RES S curve-disconnect'!BE$18","v":17335.493868836449},{"$f":"'Res-Appliance class'!$B28*'RES S curve-disconnect'!BF$3+'Res-Appliance class'!$C28*'RES S curve-disconnect'!BF$8+'Res-Appliance class'!$D28*'RES S curve-disconnect'!BF$13+'Res-Appliance class'!$E28*'RES S curve-disconnect'!BF$18","v":18910.401057679184},{"$f":"'Res-Appliance class'!$B28*'RES S curve-disconnect'!BG$3+'Res-Appliance class'!$C28*'RES S curve-disconnect'!BG$8+'Res-Appliance class'!$D28*'RES S curve-disconnect'!BG$13+'Res-Appliance class'!$E28*'RES S curve-disconnect'!BG$18","v":20692.785853082085},{"$f":"'Res-Appliance class'!$B28*'RES S curve-disconnect'!BH$3+'Res-Appliance class'!$C28*'RES S curve-disconnect'!BH$8+'Res-Appliance class'!$D28*'RES S curve-disconnect'!BH$13+'Res-Appliance class'!$E28*'RES S curve-disconnect'!BH$18","v":22808.612526449822},{"$f":"'Res-Appliance class'!$B28*'RES S curve-disconnect'!BI$3+'Res-Appliance class'!$C28*'RES S curve-disconnect'!BI$8+'Res-Appliance class'!$D28*'RES S curve-disconnect'!BI$13+'Res-Appliance class'!$E28*'RES S curve-disconnect'!BI$18","v":25874.410409062799},{"$f":"'Res-Appliance class'!$B28*'RES S curve-disconnect'!BJ$3+'Res-Appliance class'!$C28*'RES S curve-disconnect'!BJ$8+'Res-Appliance class'!$D28*'RES S curve-disconnect'!BJ$13+'Res-Appliance class'!$E28*'RES S curve-disconnect'!BJ$18","v":30364.624712166515},{"$f":"'Res-Appliance class'!$B28*'RES S curve-disconnect'!BK$3+'Res-Appliance class'!$C28*'RES S curve-disconnect'!BK$8+'Res-Appliance class'!$D28*'RES S curve-disconnect'!BK$13+'Res-Appliance class'!$E28*'RES S curve-disconnect'!BK$18","v":36991.547148728423},{"$f":"'Res-Appliance class'!$B28*'RES S curve-disconnect'!BL$3+'Res-Appliance class'!$C28*'RES S curve-disconnect'!BL$8+'Res-Appliance class'!$D28*'RES S curve-disconnect'!BL$13+'Res-Appliance class'!$E28*'RES S curve-disconnect'!BL$18","v":-1312.3879806489222},{"$f":"'Res-Appliance class'!$B28*'RES S curve-disconnect'!BM$3+'Res-Appliance class'!$C28*'RES S curve-disconnect'!BM$8+'Res-Appliance class'!$D28*'RES S curve-disconnect'!BM$13+'Res-Appliance class'!$E28*'RES S curve-disconnect'!BM$18","v":-1303.9971377659474},{"$f":"'Res-Appliance class'!$B28*'RES S curve-disconnect'!BN$3+'Res-Appliance class'!$C28*'RES S curve-disconnect'!BN$8+'Res-Appliance class'!$D28*'RES S curve-disconnect'!BN$13+'Res-Appliance class'!$E28*'RES S curve-disconnect'!BN$18","v":-1299.6401802176115},{"$f":"'Res-Appliance class'!$B28*'RES S curve-disconnect'!BO$3+'Res-Appliance class'!$C28*'RES S curve-disconnect'!BO$8+'Res-Appliance class'!$D28*'RES S curve-disconnect'!BO$13+'Res-Appliance class'!$E28*'RES S curve-disconnect'!BO$18","v":-1287.2504139284949},{"$f":"'Res-Appliance class'!$B28*'RES S curve-disconnect'!BP$3+'Res-Appliance class'!$C28*'RES S curve-disconnect'!BP$8+'Res-Appliance class'!$D28*'RES S curve-disconnect'!BP$13+'Res-Appliance class'!$E28*'RES S curve-disconnect'!BP$18","v":-1278.8943927553019},{"$f":"'Res-Appliance class'!$B28*'RES S curve-disconnect'!BQ$3+'Res-Appliance class'!$C28*'RES S curve-disconnect'!BQ$8+'Res-Appliance class'!$D28*'RES S curve-disconnect'!BQ$13+'Res-Appliance class'!$E28*'RES S curve-disconnect'!BQ$18","v":-1270.5498393260907},{"$f":"'Res-Appliance class'!$B28*'RES S curve-disconnect'!BR$3+'Res-Appliance class'!$C28*'RES S curve-disconnect'!BR$8+'Res-Appliance class'!$D28*'RES S curve-disconnect'!BR$13+'Res-Appliance class'!$E28*'RES S curve-disconnect'!BR$18","v":-1266.2388925323298},{"$f":"'Res-Appliance class'!$B28*'RES S curve-disconnect'!BS$3+'Res-Appliance class'!$C28*'RES S curve-disconnect'!BS$8+'Res-Appliance class'!$D28*'RES S curve-disconnect'!BS$13+'Res-Appliance class'!$E28*'RES S curve-disconnect'!BS$18","v":-1253.8948600313743},{"$f":"'Res-Appliance class'!$B28*'RES S curve-disconnect'!BT$3+'Res-Appliance class'!$C28*'RES S curve-disconnect'!BT$8+'Res-Appliance class'!$D28*'RES S curve-disconnect'!BT$13+'Res-Appliance class'!$E28*'RES S curve-disconnect'!BT$18","v":-1245.5842974017546},{"$f":"'Res-Appliance class'!$B28*'RES S curve-disconnect'!BU$3+'Res-Appliance class'!$C28*'RES S curve-disconnect'!BU$8+'Res-Appliance class'!$D28*'RES S curve-disconnect'!BU$13+'Res-Appliance class'!$E28*'RES S curve-disconnect'!BU$18","v":-1237.2849289824812},{"$f":"'Res-Appliance class'!$B28*'RES S curve-disconnect'!BV$3+'Res-Appliance class'!$C28*'RES S curve-disconnect'!BV$8+'Res-Appliance class'!$D28*'RES S curve-disconnect'!BV$13+'Res-Appliance class'!$E28*'RES S curve-disconnect'!BV$18","v":-1233.0188953651791},{"$f":"'Res-Appliance class'!$B28*'RES S curve-disconnect'!BW$3+'Res-Appliance class'!$C28*'RES S curve-disconnect'!BW$8+'Res-Appliance class'!$D28*'RES S curve-disconnect'!BW$13+'Res-Appliance class'!$E28*'RES S curve-disconnect'!BW$18","v":-1220.7195058966181},{"$f":"'Res-Appliance class'!$B28*'RES S curve-disconnect'!BX$3+'Res-Appliance class'!$C28*'RES S curve-disconnect'!BX$8+'Res-Appliance class'!$D28*'RES S curve-disconnect'!BX$13+'Res-Appliance class'!$E28*'RES S curve-disconnect'!BX$18","v":-1212.4533178340803},{"$f":"'Res-Appliance class'!$B28*'RES S curve-disconnect'!BY$3+'Res-Appliance class'!$C28*'RES S curve-disconnect'!BY$8+'Res-Appliance class'!$D28*'RES S curve-disconnect'!BY$13+'Res-Appliance class'!$E28*'RES S curve-disconnect'!BY$18","v":-1204.1980571847307},{"$f":"'Res-Appliance class'!$B28*'RES S curve-disconnect'!BZ$3+'Res-Appliance class'!$C28*'RES S curve-disconnect'!BZ$8+'Res-Appliance class'!$D28*'RES S curve-disconnect'!BZ$13+'Res-Appliance class'!$E28*'RES S curve-disconnect'!BZ$18","v":-1199.9758661978162},{"$f":"'Res-Appliance class'!$B28*'RES S curve-disconnect'!CA$3+'Res-Appliance class'!$C28*'RES S curve-disconnect'!CA$8+'Res-Appliance class'!$D28*'RES S curve-disconnect'!CA$13+'Res-Appliance class'!$E28*'RES S curve-disconnect'!CA$18","v":-1187.7200558672605},{"$f":"'Res-Appliance class'!$B28*'RES S curve-disconnect'!CB$3+'Res-Appliance class'!$C28*'RES S curve-disconnect'!CB$8+'Res-Appliance class'!$D28*'RES S curve-disconnect'!CB$13+'Res-Appliance class'!$E28*'RES S curve-disconnect'!CB$18","v":-1179.4971850871084},{"$f":"'Res-Appliance class'!$B28*'RES S curve-disconnect'!CC$3+'Res-Appliance class'!$C28*'RES S curve-disconnect'!CC$8+'Res-Appliance class'!$D28*'RES S curve-disconnect'!CC$13+'Res-Appliance class'!$E28*'RES S curve-disconnect'!CC$18","v":-1171.2849814909532},{"$f":"'Res-Appliance class'!$B28*'RES S curve-disconnect'!CD$3+'Res-Appliance class'!$C28*'RES S curve-disconnect'!CD$8+'Res-Appliance class'!$D28*'RES S curve-disconnect'!CD$13+'Res-Appliance class'!$E28*'RES S curve-disconnect'!CD$18","v":-1296.539637958319}]
["Boroondara (C)",null,{"$f":"'Res-Appliance class'!$B29*'RES S curve-disconnect'!C$3+'Res-Appliance class'!$C29*'RES S curve-disconnect'!C$8+'Res-Appliance class'!$D29*'RES S curve-disconnect'!C$13+'Res-Appliance class'!$E29*'RES S curve-disconnect'!C$18","v":-4189.4836875247838},{"$f":"'Res-Appliance class'!$B29*'RES S curve-disconnect'!D$3+'Res-Appliance class'!$C29*'RES S curve-disconnect'!D$8+'Res-Appliance class'!$D29*'RES S curve-disconnect'!D$13+'Res-Appliance class'!$E29*'RES S curve-disconnect'!D$18","v":-4774.2956470767995},{"$f":"'Res-Appliance class'!$B29*'RES S curve-disconnect'!E$3+'Res-Appliance class'!$C29*'RES S curve-disconnect'!E$8+'Res-Appliance class'!$D29*'RES S curve-disconnect'!E$13+'Res-Appliance class'!$E29*'RES S curve-disconnect'!E$18","v":-4243.1367010720342},{"$f":"'Res-Appliance class'!$B29*'RES S curve-disconnect'!F$3+'Res-Appliance class'!$C29*'RES S curve-disconnect'!F$8+'Res-Appliance class'!$D29*'RES S curve-disconnect'!F$13+'Res-Appliance class'!$E29*'RES S curve-disconnect'!F$18","v":-4070.3112528228039},{"$f":"'Res-Appliance class'!$B29*'RES S curve-disconnect'!G$3+'Res-Appliance class'!$C29*'RES S curve-disconnect'!G$8+'Res-Appliance class'!$D29*'RES S curve-disconnect'!G$13+'Res-Appliance class'!$E29*'RES S curve-disconnect'!G$18","v":-5262.8997208588462},{"$f":"'Res-Appliance class'!$B29*'RES S curve-disconnect'!H$3+'Res-Appliance class'!$C29*'RES S curve-disconnect'!H$8+'Res-Appliance class'!$D29*'RES S curve-disconnect'!H$13+'Res-Appliance class'!$E29*'RES S curve-disconnect'!H$18","v":-5291.9054342246327},{"$f":"'Res-Appliance class'!$B29*'RES S curve-disconnect'!I$3+'Res-Appliance class'!$C29*'RES S curve-disconnect'!I$8+'Res-Appliance class'!$D29*'RES S curve-disconnect'!I$13+'Res-Appliance class'!$E29*'RES S curve-disconnect'!I$18","v":-4798.065818269476},{"$f":"'Res-Appliance class'!$B29*'RES S curve-disconnect'!J$3+'Res-Appliance class'!$C29*'RES S curve-disconnect'!J$8+'Res-Appliance class'!$D29*'RES S curve-disconnect'!J$13+'Res-Appliance class'!$E29*'RES S curve-disconnect'!J$18","v":-5102.5813661648717},{"$f":"'Res-Appliance class'!$B29*'RES S curve-disconnect'!K$3+'Res-Appliance class'!$C29*'RES S curve-disconnect'!K$8+'Res-Appliance class'!$D29*'RES S curve-disconnect'!K$13+'Res-Appliance class'!$E29*'RES S curve-disconnect'!K$18","v":-4223.5080568770736},{"$f":"'Res-Appliance class'!$B29*'RES S curve-disconnect'!L$3+'Res-Appliance class'!$C29*'RES S curve-disconnect'!L$8+'Res-Appliance class'!$D29*'RES S curve-disconnect'!L$13+'Res-Appliance class'!$E29*'RES S curve-disconnect'!L$18","v":-4631.5732001324377},{"$f":"'Res-Appliance class'!$B29*'RES S curve-disconnect'!M$3+'Res-Appliance class'!$C29*'RES S curve-disconnect'!M$8+'Res-Appliance class'!$D29*'RES S curve-disconnect'!M$13+'Res-Appliance class'!$E29*'RES S curve-disconnect'!M$18","v":-5360.6498307687452},{"$f":"'Res-Appliance class'!$B29*'RES S curve-disconnect'!N$3+'Res-Appliance class'!$C29*'RES S curve-disconnect'!N$8+'Res-Appliance class'!$D29*'RES S curve-disconnect'!N$13+'Res-Appliance class'!$E29*'RES S curve-disconnect'!N$18","v":-5437.1419579780759},{"$f":"'Res-Appliance class'!$B29*'RES S curve-disconnect'!O$3+'Res-Appliance class'!$C29*'RES S curve-disconnect'!O$8+'Res-Appliance class'!$D29*'RES S curve-disconnect'!O$13+'Res-Appliance class'!$E29*'RES S curve-disconnect'!O$18","v":-4805.8568071625559},{"$f":"'Res-Appliance class'!$B29*'RES S curve-disconnect'!P$3+'Res-Appliance class'!$C29*'RES S curve-disconnect'!P$8+'Res-Appliance class'!$D29*'RES S curve-disconnect'!P$13+'Res-Appliance class'!$E29*'RES S curve-disconnect'!P$18","v":-4305.4183023743444},{"$f":"'Res-Appliance class'!$B29*'RES S curve-disconnect'!Q$3+'Res-Appliance class'!$C29*'RES S curve-disconnect'!Q$8+'Res-Appliance class'!$D29*'RES S curve-disconnect'!Q$13+'Res-Appliance class'!$E29*'RES S curve-disconnect'!Q$18","v":-3545.0272329013051},{"$f":"'Res-Appliance class'!$B29*'RES S curve-disconnect'!R$3+'Res-Appliance class'!$C29*'RES S curve-disconnect'!R$8+'Res-Appliance class'!$D29*'RES S curve-disconnect'!R$13+'Res-Appliance class'!$E29*'RES S curve-disconnect'!R$18","v":-3117.6510267678268},{"$f":"'Res-Appliance class'!$B29*'RES S curve-disconnect'!S$3+'Res-Appliance class'!$C29*'RES S curve-disconnect'!S$8+'Res-Appliance class'!$D29*'RES S curve-disconnect'!S$13+'Res-Appliance class'!$E29*'RES S curve-disconnect'!S$18","v":-2431.3539915783022},{"$f":"'Res-Appliance class'!$B29*'RES S curve-disconnect'!T$3+'Res-Appliance class'!$C29*'RES S curve-disconnect'!T$8+'Res-Appliance class'!$D29*'RES S curve-disconnect'!T$13+'Res-Appliance class'!$E29*'RES S curve-disconnect'!T$18","v":-2065.6517617983768},{"$f":"'Res-Appliance class'!$B29*'RES S curve-disconnect'!U$3+'Res-Appliance class'!$C29*'RES S curve-disconnect'!U$8+'Res-Appliance class'!$D29*'RES S curve-disconnect'!U$13+'Res-Appliance class'!$E29*'RES S curve-disconnect'!U$18","v":-1644.4764215984469},{"$f":"'Res-Appliance class'!$B29*'RES S curve-disconnect'!V$3+'Res-Appliance class'!$C29*'RES S curve-disconnect'!V$8+'Res-Appliance class'!$D29*'RES S curve-disconnect'!V$13+'Res-Appliance class'!$E29*'RES S curve-disconnect'!V$18","v":-1358.946815593463},{"$f":"'Res-Appliance class'!$B29*'RES S curve-disconnect'!W$3+'Res-Appliance class'!$C29*'RES S curve-disconnect'!W$8+'Res-Appliance class'!$D29*'RES S curve-disconnect'!W$13+'Res-Appliance class'!$E29*'RES S curve-disconnect'!W$18","v":-1137.981755617526},{"$f":"'Res-Appliance class'!$B29*'RES S curve-disconnect'!X$3+'Res-Appliance class'!$C29*'RES S curve-disconnect'!X$8+'Res-Appliance class'!$D29*'RES S curve-disconnect'!X$13+'Res-Appliance class'!$E29*'RES S curve-disconnect'!X$18","v":-628.19565752265191},{"$f":"'Res-Appliance class'!$B29*'RES S curve-disconnect'!Y$3+'Res-Appliance class'!$C29*'RES S curve-disconnect'!Y$8+'Res-Appliance class'!$D29*'RES S curve-disconnect'!Y$13+'Res-Appliance class'!$E29*'RES S curve-disconnect'!Y$18","v":-111.91826926297668},{"$f":"'Res-Appliance class'!$B29*'RES S curve-disconnect'!Z$3+'Res-Appliance class'!$C29*'RES S curve-disconnect'!Z$8+'Res-Appliance class'!$D29*'RES S curve-disconnect'!Z$13+'Res-Appliance class'!$E29*'RES S curve-disconnect'!Z$18","v":235.0855294318452},{"$f":"'Res-Appliance class'!$B29*'RES S curve-disconnect'!AA$3+'Res-Appliance class'!$C29*'RES S curve-disconnect'!AA$8+'Res-Appliance class'!$D29*'RES S curve-disconnect'!AA$13+'Res-Appliance class'!$E29*'RES S curve-disconnect'!AA$18","v":582.565678694996},{"$f":"'Res-Appliance class'!$B29*'RES S curve-disconnect'!AB$3+'Res-Appliance class'!$C29*'RES S curve-disconnect'!AB$8+'Res-Appliance class'!$D29*'RES S curve-disconnect'!AB$13+'Res-Appliance class'!$E29*'RES S curve-disconnect'!AB$18","v":858.73879231718456},{"$f":"'Res-Appliance class'!$B29*'RES S curve-disconnect'!AC$3+'Res-Appliance class'!$C29*'RES S curve-disconnect'!AC$8+'Res-Appliance class'!$D29*'RES S curve-disconnect'!AC$13+'Res-Appliance class'!$E29*'RES S curve-disconnect'!AC$18","v":1124.8280794569328},{"$f":"'Res-Appliance class'!$B29*'RES S curve-disconnect'!AD$3+'Res-Appliance class'!$C29*'RES S curve-disconnect'!AD$8+'Res-Appliance class'!$D29*'RES S curve-disconnect'!AD$13+'Res-Appliance class'!$E29*'RES S curve-disconnect'!AD$18","v":1368.2973480561841},{"$f":"'Res-Appliance class'!$B29*'RES S curve-disconnect'!AE$3+'Res-Appliance class'!$C29*'RES S curve-disconnect'!AE$8+'Res-Appliance class'!$D29*'RES S curve-disconnect'!AE$13+'Res-Appliance class'!$E29*'RES S curve-disconnect'!AE$18","v":1625.2350272407723},{"$f":"'Res-Appliance class'!$B29*'RES S curve-disconnect'!AF$3+'Res-Appliance class'!$C29*'RES S curve-disconnect'!AF$8+'Res-Appliance class'!$D29*'RES S curve-disconnect'!AF$13+'Res-Appliance class'!$E29*'RES S curve-disconnect'!AF$18","v":1959.3562282164014},{"$f":"'Res-Appliance class'!$B29*'RES S curve-disconnect'!AG$3+'Res-Appliance class'!$C29*'RES S curve-disconnect'!AG$8+'Res-Appliance class'!$D29*'RES S curve-disconnect'!AG$13+'Res-Appliance class'!$E29*'RES S curve-disconnect'!AG$18","v":2195.1015204956439},{"$f":"'Res-Appliance class'!$B29*'RES S curve-disconnect'!AH$3+'Res-Appliance class'!$C29*'RES S curve-disconnect'!AH$8+'Res-Appliance class'!$D29*'RES S curve-disconnect'!AH$13+'Res-Appliance class'!$E29*'RES S curve-disconnect'!AH$18","v":2525.7116659841681},{"$f":"'Res-Appliance class'!$B29*'RES S curve-disconnect'!AI$3+'Res-Appliance class'!$C29*'RES S curve-disconnect'!AI$8+'Res-Appliance class'!$D29*'RES S curve-disconnect'!AI$13+'Res-Appliance class'!$E29*'RES S curve-disconnect'!AI$18","v":2823.9310116821575},{"$f":"'Res-Appliance class'!$B29*'RES S curve-disconnect'!AJ$3+'Res-Appliance class'!$C29*'RES S curve-disconnect'!AJ$8+'Res-Appliance class'!$D29*'RES S curve-disconnect'!AJ$13+'Res-Appliance class'!$E29*'RES S curve-disconnect'!AJ$18","v":3092.8511607262212},{"$f":"'Res-Appliance class'!$B29*'RES S curve-disconnect'!AK$3+'Res-Appliance class'!$C29*'RES S curve-disconnect'!AK$8+'Res-Appliance class'!$D29*'RES S curve-disconnect'!AK$13+'Res-Appliance class'!$E29*'RES S curve-disconnect'!AK$18","v":3378.3871635502792},{"$f":"'Res-Appliance class'!$B29*'RES S curve-disconnect'!AL$3+'Res-Appliance class'!$C29*'RES S curve-disconnect'!AL$8+'Res-Appliance class'!$D29*'RES S curve-disconnect'!AL$13+'Res-Appliance class'!$E29*'RES S curve-disconnect'!AL$18","v":2387.0407522036999},{"$f":"'Res-Appliance class'!$B29*'RES S curve-disconnect'!AM$3+'Res-Appliance class'!$C29*'RES S curve-disconnect'!AM$8+'Res-Appliance class'!$D29*'RES S curve-disconnect'!AM$13+'Res-Appliance class'!$E29*'RES S curve-disconnect'!AM$18","v":2258.7384479253324},{"$f":"'Res-Appliance class'!$B29*'RES S curve-disconnect'!AN$3+'Res-Appliance class'!$C29*'RES S curve-disconnect'!AN$8+'Res-Appliance class'!$D29*'RES S curve-disconnect'!AN$13+'Res-Appliance class'!$E29*'RES S curve-disconnect'!AN$18","v":2529.7740438522114},{"$f":"'Res-Appliance class'!$B29*'RES S curve-disconnect'!AO$3+'Res-Appliance class'!$C29*'RES S curve-disconnect'!AO$8+'Res-Appliance class'!$D29*'RES S curve-disconnect'!AO$13+'Res-Appliance class'!$E29*'RES S curve-disconnect'!AO$18","v":2860.6074780556728},{"$f":"'Res-Appliance class'!$B29*'RES S curve-disconnect'!AP$3+'Res-Appliance class'!$C29*'RES S curve-disconnect'!AP$8+'Res-Appliance class'!$D29*'RES S curve-disconnect'!AP$13+'Res-Appliance class'!$E29*'RES S curve-disconnect'!AP$18","v":3165.8458605599126},{"$f":"'Res-Appliance class'!$B29*'RES S curve-disconnect'!AQ$3+'Res-Appliance class'!$C29*'RES S curve-disconnect'!AQ$8+'Res-Appliance class'!$D29*'RES S curve-disconnect'!AQ$13+'Res-Appliance class'!$E29*'RES S curve-disconnect'!AQ$18","v":3494.8747402194908},{"$f":"'Res-Appliance class'!$B29*'RES S curve-disconnect'!AR$3+'Res-Appliance class'!$C29*'RES S curve-disconnect'!AR$8+'Res-Appliance class'!$D29*'RES S curve-disconnect'!AR$13+'Res-Appliance class'!$E29*'RES S curve-disconnect'!AR$18","v":3855.9242600515463},{"$f":"'Res-Appliance class'!$B29*'RES S curve-disconnect'!AS$3+'Res-Appliance class'!$C29*'RES S curve-disconnect'!AS$8+'Res-Appliance class'!$D29*'RES S curve-disconnect'!AS$13+'Res-Appliance class'!$E29*'RES S curve-disconnect'!AS$18","v":4261.0206641942696},{"$f":"'Res-Appliance class'!$B29*'RES S curve-disconnect'!AT$3+'Res-Appliance class'!$C29*'RES S curve-disconnect'!AT$8+'Res-Appliance class'!$D29*'RES S curve-disconnect'!AT$13+'Res-Appliance class'!$E29*'RES S curve-disconnect'!AT$18","v":4713.898358811758},{"$f":"'Res-Appliance class'!$B29*'RES S curve-disconnect'!AU$3+'Res-Appliance class'!$C29*'RES S curve-disconnect'!AU$8+'Res-Appliance class'!$D29*'RES S curve-disconnect'!AU$13+'Res-Appliance class'!$E29*'RES S curve-disconnect'!AU$18","v":5238.1509406748664},{"$f":"'Res-Appliance class'!$B29*'RES S curve-disconnect'!AV$3+'Res-Appliance class'!$C29*'RES S curve-disconnect'!AV$8+'Res-Appliance class'!$D29*'RES S curve-disconnect'!AV$13+'Res-Appliance class'!$E29*'RES S curve-disconnect'!AV$18","v":5835.8446078320922},{"$f":"'Res-Appliance class'!$B29*'RES S curve-disconnect'!AW$3+'Res-Appliance class'!$C29*'RES S curve-disconnect'!AW$8+'Res-Appliance class'!$D29*'RES S curve-disconnect'!AW$13+'Res-Appliance class'!$E29*'RES S curve-disconnect'!AW$18","v":6522.7028598478801},{"$f":"'Res-Appliance class'!$B29*'RES S curve-disconnect'!AX$3+'Res-Appliance class'!$C29*'RES S curve-disconnect'!AX$8+'Res-Appliance class'!$D29*'RES S curve-disconnect'!AX$13+'Res-Appliance class'!$E29*'RES S curve-disconnect'!AX$18","v":7305.1494013505899},{"$f":"'Res-Appliance class'!$B29*'RES S curve-disconnect'!AY$3+'Res-Appliance class'!$C29*'RES S curve-disconnect'!AY$8+'Res-Appliance class'!$D29*'RES S curve-disconnect'!AY$13+'Res-Appliance class'!$E29*'RES S curve-disconnect'!AY$18","v":8208.1425582532265},{"$f":"'Res-Appliance class'!$B29*'RES S curve-disconnect'!AZ$3+'Res-Appliance class'!$C29*'RES S curve-disconnect'!AZ$8+'Res-Appliance class'!$D29*'RES S curve-disconnect'!AZ$13+'Res-Appliance class'!$E29*'RES S curve-disconnect'!AZ$18","v":9239.9391244074795},{"$f":"'Res-Appliance class'!$B29*'RES S curve-disconnect'!BA$3+'Res-Appliance class'!$C29*'RES S curve-disconnect'!BA$8+'Res-Appliance class'!$D29*'RES S curve-disconnect'!BA$13+'Res-Appliance class'!$E29*'RES S curve-disconnect'!BA$18","v":10434.543417783321},{"$f":"'Res-Appliance class'!$B29*'RES S curve-disconnect'!BB$3+'Res-Appliance class'!$C29*'RES S curve-disconnect'!BB$8+'Res-Appliance class'!$D29*'RES S curve-disconnect'!BB$13+'Res-Appliance class'!$E29*'RES S curve-disconnect'!BB$18","v":11829.667662081509},{"$f":"'Res-Appliance class'!$B29*'RES S curve-disconnect'!BC$3+'Res-Appliance class'!$C29*'RES S curve-disconnect'!BC$8+'Res-Appliance class'!$D29*'RES S curve-disconnect'!BC$13+'Res-Appliance class'!$E29*'RES S curve-disconnect'!BC$18","v":13493.275851173554},{"$f":"'Res-Appliance class'!$B29*'RES S curve-disconnect'!BD$3+'Res-Appliance class'!$C29*'RES S curve-disconnect'!BD$8+'Res-Appliance class'!$D29*'RES S curve-disconnect'!BD$13+'Res-Appliance class'!$E29*'RES S curve-disconnect'!BD$18","v":15096.723722925401},{"$f":"'Res-Appliance class'!$B29*'RES S curve-disconnect'!BE$3+'Res-Appliance class'!$C29*'RES S curve-disconnect'!BE$8+'Res-Appliance class'!$D29*'RES S curve-disconnect'!BE$13+'Res-Appliance class'!$E29*'RES S curve-disconnect'!BE$18","v":16561.809883226822},{"$f":"'Res-Appliance class'!$B29*'RES S curve-disconnect'!BF$3+'Res-Appliance class'!$C29*'RES S curve-disconnect'!BF$8+'Res-Appliance class'!$D29*'RES S curve-disconnect'!BF$13+'Res-Appliance class'!$E29*'RES S curve-disconnect'!BF$18","v":18061.009166294669},{"$f":"'Res-Appliance class'!$B29*'RES S curve-disconnect'!BG$3+'Res-Appliance class'!$C29*'RES S curve-disconnect'!BG$8+'Res-Appliance class'!$D29*'RES S curve-disconnect'!BG$13+'Res-Appliance class'!$E29*'RES S curve-disconnect'!BG$18","v":19758.304470231473},{"$f":"'Res-Appliance class'!$B29*'RES S curve-disconnect'!BH$3+'Res-Appliance class'!$C29*'RES S curve-disconnect'!BH$8+'Res-Appliance class'!$D29*'RES S curve-disconnect'!BH$13+'Res-Appliance class'!$E29*'RES S curve-disconnect'!BH$18","v":21772.775722768703},{"$f":"'Res-Appliance class'!$B29*'RES S curve-disconnect'!BI$3+'Res-Appliance class'!$C29*'RES S curve-disconnect'!BI$8+'Res-Appliance class'!$D29*'RES S curve-disconnect'!BI$13+'Res-Appliance class'!$E29*'RES S curve-disconnect'!BI$18","v":24692.087976046372},{"$f":"'Res-Appliance class'!$B29*'RES S curve-disconnect'!BJ$3+'Res-Appliance class'!$C29*'RES S curve-disconnect'!BJ$8+'Res-Appliance class'!$D29*'RES S curve-disconnect'!BJ$13+'Res-Appliance class'!$E29*'RES S curve-disconnect'!BJ$18","v":28965.962253160691},{"$f":"'Res-Appliance class'!$B29*'RES S curve-disconnect'!BK$3+'Res-Appliance class'!$C29*'RES S curve-disconnect'!BK$8+'Res-Appliance class'!$D29*'RES S curve-disconnect'!BK$13+'Res-Appliance class'!$E29*'RES S curve-disconnect'!BK$18","v":35270.946926009667},{"$f":"'Res-Appliance class'!$B29*'RES S curve-disconnect'!BL$3+'Res-Appliance class'!$C29*'RES S curve-disconnect'!BL$8+'Res-Appliance class'!$D29*'RES S curve-disconnect'!BL$13+'Res-Appliance class'!$E29*'RES S curve-disconnect'!BL$18","v":-1237.8333132647206},{"$f":"'Res-Appliance class'!$B29*'RES S curve-disconnect'!BM$3+'Res-Appliance class'!$C29*'RES S curve-disconnect'!BM$8+'Res-Appliance class'!$D29*'RES S curve-disconnect'!BM$13+'Res-Appliance class'!$E29*'RES S curve-disconnect'!BM$18","v":-1229.8476496201508},{"$f":"'Res-Appliance class'!$B29*'RES S curve-disconnect'!BN$3+'Res-Appliance class'!$C29*'RES S curve-disconnect'!BN$8+'Res-Appliance class'!$D29*'RES S curve-disconnect'!BN$13+'Res-Appliance class'!$E29*'RES S curve-disconnect'!BN$18","v":-1225.8953940399306},{"$f":"'Res-Appliance class'!$B29*'RES S curve-disconnect'!BO$3+'Res-Appliance class'!$C29*'RES S curve-disconnect'!BO$8+'Res-Appliance class'!$D29*'RES S curve-disconnect'!BO$13+'Res-Appliance class'!$E29*'RES S curve-disconnect'!BO$18","v":-1213.9098552509492},{"$f":"'Res-Appliance class'!$B29*'RES S curve-disconnect'!BP$3+'Res-Appliance class'!$C29*'RES S curve-disconnect'!BP$8+'Res-Appliance class'!$D29*'RES S curve-disconnect'!BP$13+'Res-Appliance class'!$E29*'RES S curve-disconnect'!BP$18","v":-1205.9575898950154},{"$f":"'Res-Appliance class'!$B29*'RES S curve-disconnect'!BQ$3+'Res-Appliance class'!$C29*'RES S curve-disconnect'!BQ$8+'Res-Appliance class'!$D29*'RES S curve-disconnect'!BQ$13+'Res-Appliance class'!$E29*'RES S curve-disconnect'!BQ$18","v":-1198.0163233681974},{"$f":"'Res-Appliance class'!$B29*'RES S curve-disconnect'!BR$3+'Res-Appliance class'!$C29*'RES S curve-disconnect'!BR$8+'Res-Appliance class'!$D29*'RES S curve-disconnect'!BR$13+'Res-Appliance class'!$E29*'RES S curve-disconnect'!BR$18","v":-1194.1081973129853},{"$f":"'Res-Appliance class'!$B29*'RES S curve-disconnect'!BS$3+'Res-Appliance class'!$C29*'RES S curve-disconnect'!BS$8+'Res-Appliance class'!$D29*'RES S curve-disconnect'!BS$13+'Res-Appliance class'!$E29*'RES S curve-disconnect'!BS$18","v":-1182.1665221208746},{"$f":"'Res-Appliance class'!$B29*'RES S curve-disconnect'!BT$3+'Res-Appliance class'!$C29*'RES S curve-disconnect'!BT$8+'Res-Appliance class'!$D29*'RES S curve-disconnect'!BT$13+'Res-Appliance class'!$E29*'RES S curve-disconnect'!BT$18","v":-1174.2578560877603},{"$f":"'Res-Appliance class'!$B29*'RES S curve-disconnect'!BU$3+'Res-Appliance class'!$C29*'RES S curve-disconnect'!BU$8+'Res-Appliance class'!$D29*'RES S curve-disconnect'!BU$13+'Res-Appliance class'!$E29*'RES S curve-disconnect'!BU$18","v":-1166.3599262533476},{"$f":"'Res-Appliance class'!$B29*'RES S curve-disconnect'!BV$3+'Res-Appliance class'!$C29*'RES S curve-disconnect'!BV$8+'Res-Appliance class'!$D29*'RES S curve-disconnect'!BV$13+'Res-Appliance class'!$E29*'RES S curve-disconnect'!BV$18","v":-1162.4948758933901},{"$f":"'Res-Appliance class'!$B29*'RES S curve-disconnect'!BW$3+'Res-Appliance class'!$C29*'RES S curve-disconnect'!BW$8+'Res-Appliance class'!$D29*'RES S curve-disconnect'!BW$13+'Res-Appliance class'!$E29*'RES S curve-disconnect'!BW$18","v":-1150.5960170223248},{"$f":"'Res-Appliance class'!$B29*'RES S curve-disconnect'!BX$3+'Res-Appliance class'!$C29*'RES S curve-disconnect'!BX$8+'Res-Appliance class'!$D29*'RES S curve-disconnect'!BX$13+'Res-Appliance class'!$E29*'RES S curve-disconnect'!BX$18","v":-1142.7299095487426},{"$f":"'Res-Appliance class'!$B29*'RES S curve-disconnect'!BY$3+'Res-Appliance class'!$C29*'RES S curve-disconnect'!BY$8+'Res-Appliance class'!$D29*'RES S curve-disconnect'!BY$13+'Res-Appliance class'!$E29*'RES S curve-disconnect'!BY$18","v":-1134.8742821148621},{"$f":"'Res-Appliance class'!$B29*'RES S curve-disconnect'!BZ$3+'Res-Appliance class'!$C29*'RES S curve-disconnect'!BZ$8+'Res-Appliance class'!$D29*'RES S curve-disconnect'!BZ$13+'Res-Appliance class'!$E29*'RES S curve-disconnect'!BZ$18","v":-1131.0512795888276},{"$f":"'Res-Appliance class'!$B29*'RES S curve-disconnect'!CA$3+'Res-Appliance class'!$C29*'RES S curve-disconnect'!CA$8+'Res-Appliance class'!$D29*'RES S curve-disconnect'!CA$13+'Res-Appliance class'!$E29*'RES S curve-disconnect'!CA$18","v":-1119.1942155674112},{"$f":"'Res-Appliance class'!$B29*'RES S curve-disconnect'!CB$3+'Res-Appliance class'!$C29*'RES S curve-disconnect'!CB$8+'Res-Appliance class'!$D29*'RES S curve-disconnect'!CB$13+'Res-Appliance class'!$E29*'RES S curve-disconnect'!CB$18","v":-1111.3696515315514},{"$f":"'Res-Appliance class'!$B29*'RES S curve-disconnect'!CC$3+'Res-Appliance class'!$C29*'RES S curve-disconnect'!CC$8+'Res-Appliance class'!$D29*'RES S curve-disconnect'!CC$13+'Res-Appliance class'!$E29*'RES S curve-disconnect'!CC$18","v":-1103.5553176858853},{"$f":"'Res-Appliance class'!$B29*'RES S curve-disconnect'!CD$3+'Res-Appliance class'!$C29*'RES S curve-disconnect'!CD$8+'Res-Appliance class'!$D29*'RES S curve-disconnect'!CD$13+'Res-Appliance class'!$E29*'RES S curve-disconnect'!CD$18","v":-1222.5224190041695}]
["Cardinia (S)",null,{"$f":"'Res-Appliance class'!$B30*'RES S curve-disconnect'!C$3+'Res-Appliance class'!$C30*'RES S curve-disconnect'!C$8+'Res-Appliance class'!$D30*'RES S curve-disconnect'!C$13+'Res-Appliance class'!$E30*'RES S curve-disconnect'!C$18","v":-4721.8376804339541},{"$f":"'Res-Appliance class'!$B30*'RES S curve-disconnect'!D$3+'Res-Appliance class'!$C30*'RES S curve-disconnect'!D$8+'Res-Appliance class'!$D30*'RES S curve-disconnect'!D$13+'Res-Appliance class'!$E30*'RES S curve-disconnect'!D$18","v":-5382.2607241370506},{"$f":"'Res-Appliance class'!$B30*'RES S curve-disconnect'!E$3+'Res-Appliance class'!$C30*'RES S curve-disconnect'!E$8+'Res-Appliance class'!$D30*'RES S curve-disconnect'!E$13+'Res-Appliance class'!$E30*'RES S curve-disconnect'!E$18","v":-4749.6130820904045},{"$f":"'Res-Appliance class'!$B30*'RES S curve-disconnect'!F$3+'Res-Appliance class'!$C30*'RES S curve-disconnect'!F$8+'Res-Appliance class'!$D30*'RES S curve-disconnect'!F$13+'Res-Appliance class'!$E30*'RES S curve-disconnect'!F$18","v":-4549.5804224858693},{"$f":"'Res-Appliance class'!$B30*'RES S curve-disconnect'!G$3+'Res-Appliance class'!$C30*'RES S curve-disconnect'!G$8+'Res-Appliance class'!$D30*'RES S curve-disconnect'!G$13+'Res-Appliance class'!$E30*'RES S curve-disconnect'!G$18","v":-5977.7975458699693},{"$f":"'Res-Appliance class'!$B30*'RES S curve-disconnect'!H$3+'Res-Appliance class'!$C30*'RES S curve-disconnect'!H$8+'Res-Appliance class'!$D30*'RES S curve-disconnect'!H$13+'Res-Appliance class'!$E30*'RES S curve-disconnect'!H$18","v":-6004.0737981390394},{"$f":"'Res-Appliance class'!$B30*'RES S curve-disconnect'!I$3+'Res-Appliance class'!$C30*'RES S curve-disconnect'!I$8+'Res-Appliance class'!$D30*'RES S curve-disconnect'!I$13+'Res-Appliance class'!$E30*'RES S curve-disconnect'!I$18","v":-5437.8054483642172},{"$f":"'Res-Appliance class'!$B30*'RES S curve-disconnect'!J$3+'Res-Appliance class'!$C30*'RES S curve-disconnect'!J$8+'Res-Appliance class'!$D30*'RES S curve-disconnect'!J$13+'Res-Appliance class'!$E30*'RES S curve-disconnect'!J$18","v":-5747.496956757368},{"$f":"'Res-Appliance class'!$B30*'RES S curve-disconnect'!K$3+'Res-Appliance class'!$C30*'RES S curve-disconnect'!K$8+'Res-Appliance class'!$D30*'RES S curve-disconnect'!K$13+'Res-Appliance class'!$E30*'RES S curve-disconnect'!K$18","v":-4748.7420487761437},{"$f":"'Res-Appliance class'!$B30*'RES S curve-disconnect'!L$3+'Res-Appliance class'!$C30*'RES S curve-disconnect'!L$8+'Res-Appliance class'!$D30*'RES S curve-disconnect'!L$13+'Res-Appliance class'!$E30*'RES S curve-disconnect'!L$18","v":-5210.7370324787407},{"$f":"'Res-Appliance class'!$B30*'RES S curve-disconnect'!M$3+'Res-Appliance class'!$C30*'RES S curve-disconnect'!M$8+'Res-Appliance class'!$D30*'RES S curve-disconnect'!M$13+'Res-Appliance class'!$E30*'RES S curve-disconnect'!M$18","v":-6055.5674918188706},{"$f":"'Res-Appliance class'!$B30*'RES S curve-disconnect'!N$3+'Res-Appliance class'!$C30*'RES S curve-disconnect'!N$8+'Res-Appliance class'!$D30*'RES S curve-disconnect'!N$13+'Res-Appliance class'!$E30*'RES S curve-disconnect'!N$18","v":-6144.0287339874913},{"$f":"'Res-Appliance class'!$B30*'RES S curve-disconnect'!O$3+'Res-Appliance class'!$C30*'RES S curve-disconnect'!O$8+'Res-Appliance class'!$D30*'RES S curve-disconnect'!O$13+'Res-Appliance class'!$E30*'RES S curve-disconnect'!O$18","v":-5426.3461840814725},{"$f":"'Res-Appliance class'!$B30*'RES S curve-disconnect'!P$3+'Res-Appliance class'!$C30*'RES S curve-disconnect'!P$8+'Res-Appliance class'!$D30*'RES S curve-disconnect'!P$13+'Res-Appliance class'!$E30*'RES S curve-disconnect'!P$18","v":-4855.2165877916841},{"$f":"'Res-Appliance class'!$B30*'RES S curve-disconnect'!Q$3+'Res-Appliance class'!$C30*'RES S curve-disconnect'!Q$8+'Res-Appliance class'!$D30*'RES S curve-disconnect'!Q$13+'Res-Appliance class'!$E30*'RES S curve-disconnect'!Q$18","v":-3987.0462695298479},{"$f":"'Res-Appliance class'!$B30*'RES S curve-disconnect'!R$3+'Res-Appliance class'!$C30*'RES S curve-disconnect'!R$8+'Res-Appliance class'!$D30*'RES S curve-disconnect'!R$13+'Res-Appliance class'!$E30*'RES S curve-disconnect'!R$18","v":-3498.9864253860424},{"$f":"'Res-Appliance class'!$B30*'RES S curve-disconnect'!S$3+'Res-Appliance class'!$C30*'RES S curve-disconnect'!S$8+'Res-Appliance class'!$D30*'RES S curve-disconnect'!S$13+'Res-Appliance class'!$E30*'RES S curve-disconnect'!S$18","v":-2718.8860789555811},{"$f":"'Res-Appliance class'!$B30*'RES S curve-disconnect'!T$3+'Res-Appliance class'!$C30*'RES S curve-disconnect'!T$8+'Res-Appliance class'!$D30*'RES S curve-disconnect'!T$13+'Res-Appliance class'!$E30*'RES S curve-disconnect'!T$18","v":-2295.0963904428718},{"$f":"'Res-Appliance class'!$B30*'RES S curve-disconnect'!U$3+'Res-Appliance class'!$C30*'RES S curve-disconnect'!U$8+'Res-Appliance class'!$D30*'RES S curve-disconnect'!U$13+'Res-Appliance class'!$E30*'RES S curve-disconnect'!U$18","v":-1812.9198627696276},{"$f":"'Res-Appliance class'!$B30*'RES S curve-disconnect'!V$3+'Res-Appliance class'!$C30*'RES S curve-disconnect'!V$8+'Res-Appliance class'!$D30*'RES S curve-disconnect'!V$13+'Res-Appliance class'!$E30*'RES S curve-disconnect'!V$18","v":-1488.2336766886674},{"$f":"'Res-Appliance class'!$B30*'RES S curve-disconnect'!W$3+'Res-Appliance class'!$C30*'RES S curve-disconnect'!W$8+'Res-Appliance class'!$D30*'RES S curve-disconnect'!W$13+'Res-Appliance class'!$E30*'RES S curve-disconnect'!W$18","v":-1237.0654943007441},{"$f":"'Res-Appliance class'!$B30*'RES S curve-disconnect'!X$3+'Res-Appliance class'!$C30*'RES S curve-disconnect'!X$8+'Res-Appliance class'!$D30*'RES S curve-disconnect'!X$13+'Res-Appliance class'!$E30*'RES S curve-disconnect'!X$18","v":-652.5795586220604},{"$f":"'Res-Appliance class'!$B30*'RES S curve-disconnect'!Y$3+'Res-Appliance class'!$C30*'RES S curve-disconnect'!Y$8+'Res-Appliance class'!$D30*'RES S curve-disconnect'!Y$13+'Res-Appliance class'!$E30*'RES S curve-disconnect'!Y$18","v":-61.534157087016212},{"$f":"'Res-Appliance class'!$B30*'RES S curve-disconnect'!Z$3+'Res-Appliance class'!$C30*'RES S curve-disconnect'!Z$8+'Res-Appliance class'!$D30*'RES S curve-disconnect'!Z$13+'Res-Appliance class'!$E30*'RES S curve-disconnect'!Z$18","v":335.00143584219273},{"$f":"'Res-Appliance class'!$B30*'RES S curve-disconnect'!AA$3+'Res-Appliance class'!$C30*'RES S curve-disconnect'!AA$8+'Res-Appliance class'!$D30*'RES S curve-disconnect'!AA$13+'Res-Appliance class'!$E30*'RES S curve-disconnect'!AA$18","v":731.06320956447519},{"$f":"'Res-Appliance class'!$B30*'RES S curve-disconnect'!AB$3+'Res-Appliance class'!$C30*'RES S curve-disconnect'!AB$8+'Res-Appliance class'!$D30*'RES S curve-disconnect'!AB$13+'Res-Appliance class'!$E30*'RES S curve-disconnect'!AB$18","v":1045.3275566691573},{"$f":"'Res-Appliance class'!$B30*'RES S curve-disconnect'!AC$3+'Res-Appliance class'!$C30*'RES S curve-disconnect'!AC$8+'Res-Appliance class'!$D30*'RES S curve-disconnect'!AC$13+'Res-Appliance class'!$E30*'RES S curve-disconnect'!AC$18","v":1347.4396348068115},{"$f":"'Res-Appliance class'!$B30*'RES S curve-disconnect'!AD$3+'Res-Appliance class'!$C30*'RES S curve-disconnect'!AD$8+'Res-Appliance class'!$D30*'RES S curve-disconnect'!AD$13+'Res-Appliance class'!$E30*'RES S curve-disconnect'!AD$18","v":1623.7831863320162},{"$f":"'Res-Appliance class'!$B30*'RES S curve-disconnect'!AE$3+'Res-Appliance class'!$C30*'RES S curve-disconnect'!AE$8+'Res-Appliance class'!$D30*'RES S curve-disconnect'!AE$13+'Res-Appliance class'!$E30*'RES S curve-disconnect'!AE$18","v":1914.0266272393599},{"$f":"'Res-Appliance class'!$B30*'RES S curve-disconnect'!AF$3+'Res-Appliance class'!$C30*'RES S curve-disconnect'!AF$8+'Res-Appliance class'!$D30*'RES S curve-disconnect'!AF$13+'Res-Appliance class'!$E30*'RES S curve-disconnect'!AF$18","v":2293.4752100667151},{"$f":"'Res-Appliance class'!$B30*'RES S curve-disconnect'!AG$3+'Res-Appliance class'!$C30*'RES S curve-disconnect'!AG$8+'Res-Appliance class'!$D30*'RES S curve-disconnect'!AG$13+'Res-Appliance class'!$E30*'RES S curve-disconnect'!AG$18","v":2561.123895608207},{"$f":"'Res-Appliance class'!$B30*'RES S curve-disconnect'!AH$3+'Res-Appliance class'!$C30*'RES S curve-disconnect'!AH$8+'Res-Appliance class'!$D30*'RES S curve-disconnect'!AH$13+'Res-Appliance class'!$E30*'RES S curve-disconnect'!AH$18","v":2939.3525496890366},{"$f":"'Res-Appliance class'!$B30*'RES S curve-disconnect'!AI$3+'Res-Appliance class'!$C30*'RES S curve-disconnect'!AI$8+'Res-Appliance class'!$D30*'RES S curve-disconnect'!AI$13+'Res-Appliance class'!$E30*'RES S curve-disconnect'!AI$18","v":3277.896158607376},{"$f":"'Res-Appliance class'!$B30*'RES S curve-disconnect'!AJ$3+'Res-Appliance class'!$C30*'RES S curve-disconnect'!AJ$8+'Res-Appliance class'!$D30*'RES S curve-disconnect'!AJ$13+'Res-Appliance class'!$E30*'RES S curve-disconnect'!AJ$18","v":3583.7233040865558},{"$f":"'Res-Appliance class'!$B30*'RES S curve-disconnect'!AK$3+'Res-Appliance class'!$C30*'RES S curve-disconnect'!AK$8+'Res-Appliance class'!$D30*'RES S curve-disconnect'!AK$13+'Res-Appliance class'!$E30*'RES S curve-disconnect'!AK$18","v":3908.3539325130387},{"$f":"'Res-Appliance class'!$B30*'RES S curve-disconnect'!AL$3+'Res-Appliance class'!$C30*'RES S curve-disconnect'!AL$8+'Res-Appliance class'!$D30*'RES S curve-disconnect'!AL$13+'Res-Appliance class'!$E30*'RES S curve-disconnect'!AL$18","v":2788.288471753166},{"$f":"'Res-Appliance class'!$B30*'RES S curve-disconnect'!AM$3+'Res-Appliance class'!$C30*'RES S curve-disconnect'!AM$8+'Res-Appliance class'!$D30*'RES S curve-disconnect'!AM$13+'Res-Appliance class'!$E30*'RES S curve-disconnect'!AM$18","v":2639.3806239590426},{"$f":"'Res-Appliance class'!$B30*'RES S curve-disconnect'!AN$3+'Res-Appliance class'!$C30*'RES S curve-disconnect'!AN$8+'Res-Appliance class'!$D30*'RES S curve-disconnect'!AN$13+'Res-Appliance class'!$E30*'RES S curve-disconnect'!AN$18","v":2945.4943634657302},{"$f":"'Res-Appliance class'!$B30*'RES S curve-disconnect'!AO$3+'Res-Appliance class'!$C30*'RES S curve-disconnect'!AO$8+'Res-Appliance class'!$D30*'RES S curve-disconnect'!AO$13+'Res-Appliance class'!$E30*'RES S curve-disconnect'!AO$18","v":3321.0589475831293},{"$f":"'Res-Appliance class'!$B30*'RES S curve-disconnect'!AP$3+'Res-Appliance class'!$C30*'RES S curve-disconnect'!AP$8+'Res-Appliance class'!$D30*'RES S curve-disconnect'!AP$13+'Res-Appliance class'!$E30*'RES S curve-disconnect'!AP$18","v":3668.7033985144394},{"$f":"'Res-Appliance class'!$B30*'RES S curve-disconnect'!AQ$3+'Res-Appliance class'!$C30*'RES S curve-disconnect'!AQ$8+'Res-Appliance class'!$D30*'RES S curve-disconnect'!AQ$13+'Res-Appliance class'!$E30*'RES S curve-disconnect'!AQ$18","v":4042.2885893277121},{"$f":"'Res-Appliance class'!$B30*'RES S curve-disconnect'!AR$3+'Res-Appliance class'!$C30*'RES S curve-disconnect'!AR$8+'Res-Appliance class'!$D30*'RES S curve-disconnect'!AR$13+'Res-Appliance class'!$E30*'RES S curve-disconnect'!AR$18","v":4452.9030596234634},{"$f":"'Res-Appliance class'!$B30*'RES S curve-disconnect'!AS$3+'Res-Appliance class'!$C30*'RES S curve-disconnect'!AS$8+'Res-Appliance class'!$D30*'RES S curve-disconnect'!AS$13+'Res-Appliance class'!$E30*'RES S curve-disconnect'!AS$18","v":4913.7850768039025},{"$f":"'Res-Appliance class'!$B30*'RES S curve-disconnect'!AT$3+'Res-Appliance class'!$C30*'RES S curve-disconnect'!AT$8+'Res-Appliance class'!$D30*'RES S curve-disconnect'!AT$13+'Res-Appliance class'!$E30*'RES S curve-disconnect'!AT$18","v":5429.8047040792553},{"$f":"'Res-Appliance class'!$B30*'RES S curve-disconnect'!AU$3+'Res-Appliance class'!$C30*'RES S curve-disconnect'!AU$8+'Res-Appliance class'!$D30*'RES S curve-disconnect'!AU$13+'Res-Appliance class'!$E30*'RES S curve-disconnect'!AU$18","v":6026.2107312157805},{"$f":"'Res-Appliance class'!$B30*'RES S curve-disconnect'!AV$3+'Res-Appliance class'!$C30*'RES S curve-disconnect'!AV$8+'Res-Appliance class'!$D30*'RES S curve-disconnect'!AV$13+'Res-Appliance class'!$E30*'RES S curve-disconnect'!AV$18","v":6707.1277112279295},{"$f":"'Res-Appliance class'!$B30*'RES S curve-disconnect'!AW$3+'Res-Appliance class'!$C30*'RES S curve-disconnect'!AW$8+'Res-Appliance class'!$D30*'RES S curve-disconnect'!AW$13+'Res-Appliance class'!$E30*'RES S curve-disconnect'!AW$18","v":7490.0785628257663},{"$f":"'Res-Appliance class'!$B30*'RES S curve-disconnect'!AX$3+'Res-Appliance class'!$C30*'RES S curve-disconnect'!AX$8+'Res-Appliance class'!$D30*'RES S curve-disconnect'!AX$13+'Res-Appliance class'!$E30*'RES S curve-disconnect'!AX$18","v":8383.1598697085392},{"$f":"'Res-Appliance class'!$B30*'RES S curve-disconnect'!AY$3+'Res-Appliance class'!$C30*'RES S curve-disconnect'!AY$8+'Res-Appliance class'!$D30*'RES S curve-disconnect'!AY$13+'Res-Appliance class'!$E30*'RES S curve-disconnect'!AY$18","v":9413.3646249052672},{"$f":"'Res-Appliance class'!$B30*'RES S curve-disconnect'!AZ$3+'Res-Appliance class'!$C30*'RES S curve-disconnect'!AZ$8+'Res-Appliance class'!$D30*'RES S curve-disconnect'!AZ$13+'Res-Appliance class'!$E30*'RES S curve-disconnect'!AZ$18","v":10592.059468060363},{"$f":"'Res-Appliance class'!$B30*'RES S curve-disconnect'!BA$3+'Res-Appliance class'!$C30*'RES S curve-disconnect'!BA$8+'Res-Appliance class'!$D30*'RES S curve-disconnect'!BA$13+'Res-Appliance class'!$E30*'RES S curve-disconnect'!BA$18","v":11957.797022988807},{"$f":"'Res-Appliance class'!$B30*'RES S curve-disconnect'!BB$3+'Res-Appliance class'!$C30*'RES S curve-disconnect'!BB$8+'Res-Appliance class'!$D30*'RES S curve-disconnect'!BB$13+'Res-Appliance class'!$E30*'RES S curve-disconnect'!BB$18","v":13554.64891933603},{"$f":"'Res-Appliance class'!$B30*'RES S curve-disconnect'!BC$3+'Res-Appliance class'!$C30*'RES S curve-disconnect'!BC$8+'Res-Appliance class'!$D30*'RES S curve-disconnect'!BC$13+'Res-Appliance class'!$E30*'RES S curve-disconnect'!BC$18","v":15459.144404983645},{"$f":"'Res-Appliance class'!$B30*'RES S curve-disconnect'!BD$3+'Res-Appliance class'!$C30*'RES S curve-disconnect'!BD$8+'Res-Appliance class'!$D30*'RES S curve-disconnect'!BD$13+'Res-Appliance class'!$E30*'RES S curve-disconnect'!BD$18","v":17299.593274704286},{"$f":"'Res-Appliance class'!$B30*'RES S curve-disconnect'!BE$3+'Res-Appliance class'!$C30*'RES S curve-disconnect'!BE$8+'Res-Appliance class'!$D30*'RES S curve-disconnect'!BE$13+'Res-Appliance class'!$E30*'RES S curve-disconnect'!BE$18","v":18982.843694431856},{"$f":"'Res-Appliance class'!$B30*'RES S curve-disconnect'!BF$3+'Res-Appliance class'!$C30*'RES S curve-disconnect'!BF$8+'Res-Appliance class'!$D30*'RES S curve-disconnect'!BF$13+'Res-Appliance class'!$E30*'RES S curve-disconnect'!BF$18","v":20704.808892888497},{"$f":"'Res-Appliance class'!$B30*'RES S curve-disconnect'!BG$3+'Res-Appliance class'!$C30*'RES S curve-disconnect'!BG$8+'Res-Appliance class'!$D30*'RES S curve-disconnect'!BG$13+'Res-Appliance class'!$E30*'RES S curve-disconnect'!BG$18","v":22652.483931297011},{"$f":"'Res-Appliance class'!$B30*'RES S curve-disconnect'!BH$3+'Res-Appliance class'!$C30*'RES S curve-disconnect'!BH$8+'Res-Appliance class'!$D30*'RES S curve-disconnect'!BH$13+'Res-Appliance class'!$E30*'RES S curve-disconnect'!BH$18","v":24965.211794916799},{"$f":"'Res-Appliance class'!$B30*'RES S curve-disconnect'!BI$3+'Res-Appliance class'!$C30*'RES S curve-disconnect'!BI$8+'Res-Appliance class'!$D30*'RES S curve-disconnect'!BI$13+'Res-Appliance class'!$E30*'RES S curve-disconnect'!BI$18","v":28315.615325435378},{"$f":"'Res-Appliance class'!$B30*'RES S curve-disconnect'!BJ$3+'Res-Appliance class'!$C30*'RES S curve-disconnect'!BJ$8+'Res-Appliance class'!$D30*'RES S curve-disconnect'!BJ$13+'Res-Appliance class'!$E30*'RES S curve-disconnect'!BJ$18","v":33226.187581946375},{"$f":"'Res-Appliance class'!$B30*'RES S curve-disconnect'!BK$3+'Res-Appliance class'!$C30*'RES S curve-disconnect'!BK$8+'Res-Appliance class'!$D30*'RES S curve-disconnect'!BK$13+'Res-Appliance class'!$E30*'RES S curve-disconnect'!BK$18","v":40478.682240702386},{"$f":"'Res-Appliance class'!$B30*'RES S curve-disconnect'!BL$3+'Res-Appliance class'!$C30*'RES S curve-disconnect'!BL$8+'Res-Appliance class'!$D30*'RES S curve-disconnect'!BL$13+'Res-Appliance class'!$E30*'RES S curve-disconnect'!BL$18","v":-1313.9407673051694},{"$f":"'Res-Appliance class'!$B30*'RES S curve-disconnect'!BM$3+'Res-Appliance class'!$C30*'RES S curve-disconnect'!BM$8+'Res-Appliance class'!$D30*'RES S curve-disconnect'!BM$13+'Res-Appliance class'!$E30*'RES S curve-disconnect'!BM$18","v":-1304.8284051277803},{"$f":"'Res-Appliance class'!$B30*'RES S curve-disconnect'!BN$3+'Res-Appliance class'!$C30*'RES S curve-disconnect'!BN$8+'Res-Appliance class'!$D30*'RES S curve-disconnect'!BN$13+'Res-Appliance class'!$E30*'RES S curve-disconnect'!BN$18","v":-1299.7503874276438},{"$f":"'Res-Appliance class'!$B30*'RES S curve-disconnect'!BO$3+'Res-Appliance class'!$C30*'RES S curve-disconnect'!BO$8+'Res-Appliance class'!$D30*'RES S curve-disconnect'!BO$13+'Res-Appliance class'!$E30*'RES S curve-disconnect'!BO$18","v":-1286.6400178163638},{"$f":"'Res-Appliance class'!$B30*'RES S curve-disconnect'!BP$3+'Res-Appliance class'!$C30*'RES S curve-disconnect'!BP$8+'Res-Appliance class'!$D30*'RES S curve-disconnect'!BP$13+'Res-Appliance class'!$E30*'RES S curve-disconnect'!BP$18","v":-1277.5638478506569},{"$f":"'Res-Appliance class'!$B30*'RES S curve-disconnect'!BQ$3+'Res-Appliance class'!$C30*'RES S curve-disconnect'!BQ$8+'Res-Appliance class'!$D30*'RES S curve-disconnect'!BQ$13+'Res-Appliance class'!$E30*'RES S curve-disconnect'!BQ$18","v":-1268.4995978715051},{"$f":"'Res-Appliance class'!$B30*'RES S curve-disconnect'!BR$3+'Res-Appliance class'!$C30*'RES S curve-disconnect'!BR$8+'Res-Appliance class'!$D30*'RES S curve-disconnect'!BR$13+'Res-Appliance class'!$E30*'RES S curve-disconnect'!BR$18","v":-1263.4694044961348},{"$f":"'Res-Appliance class'!$B30*'RES S curve-disconnect'!BS$3+'Res-Appliance class'!$C30*'RES S curve-disconnect'!BS$8+'Res-Appliance class'!$D30*'RES S curve-disconnect'!BS$13+'Res-Appliance class'!$E30*'RES S curve-disconnect'!BS$18","v":-1250.406573120415},{"$f":"'Res-Appliance class'!$B30*'RES S curve-disconnect'!BT$3+'Res-Appliance class'!$C30*'RES S curve-disconnect'!BT$8+'Res-Appliance class'!$D30*'RES S curve-disconnect'!BT$13+'Res-Appliance class'!$E30*'RES S curve-disconnect'!BT$18","v":-1241.377657074072},{"$f":"'Res-Appliance class'!$B30*'RES S curve-disconnect'!BU$3+'Res-Appliance class'!$C30*'RES S curve-disconnect'!BU$8+'Res-Appliance class'!$D30*'RES S curve-disconnect'!BU$13+'Res-Appliance class'!$E30*'RES S curve-disconnect'!BU$18","v":-1232.3603784599138},{"$f":"'Res-Appliance class'!$B30*'RES S curve-disconnect'!BV$3+'Res-Appliance class'!$C30*'RES S curve-disconnect'!BV$8+'Res-Appliance class'!$D30*'RES S curve-disconnect'!BV$13+'Res-Appliance class'!$E30*'RES S curve-disconnect'!BV$18","v":-1227.3768756458949},{"$f":"'Res-Appliance class'!$B30*'RES S curve-disconnect'!BW$3+'Res-Appliance class'!$C30*'RES S curve-disconnect'!BW$8+'Res-Appliance class'!$D30*'RES S curve-disconnect'!BW$13+'Res-Appliance class'!$E30*'RES S curve-disconnect'!BW$18","v":-1214.3604557675662},{"$f":"'Res-Appliance class'!$B30*'RES S curve-disconnect'!BX$3+'Res-Appliance class'!$C30*'RES S curve-disconnect'!BX$8+'Res-Appliance class'!$D30*'RES S curve-disconnect'!BX$13+'Res-Appliance class'!$E30*'RES S curve-disconnect'!BX$18","v":-1205.3776738833722},{"$f":"'Res-Appliance class'!$B30*'RES S curve-disconnect'!BY$3+'Res-Appliance class'!$C30*'RES S curve-disconnect'!BY$8+'Res-Appliance class'!$D30*'RES S curve-disconnect'!BY$13+'Res-Appliance class'!$E30*'RES S curve-disconnect'!BY$18","v":-1196.4062538139447},{"$f":"'Res-Appliance class'!$B30*'RES S curve-disconnect'!BZ$3+'Res-Appliance class'!$C30*'RES S curve-disconnect'!BZ$8+'Res-Appliance class'!$D30*'RES S curve-disconnect'!BZ$13+'Res-Appliance class'!$E30*'RES S curve-disconnect'!BZ$18","v":-1191.468335634228},{"$f":"'Res-Appliance class'!$B30*'RES S curve-disconnect'!CA$3+'Res-Appliance class'!$C30*'RES S curve-disconnect'!CA$8+'Res-Appliance class'!$D30*'RES S curve-disconnect'!CA$13+'Res-Appliance class'!$E30*'RES S curve-disconnect'!CA$18","v":-1178.4972281760047},{"$f":"'Res-Appliance class'!$B30*'RES S curve-disconnect'!CB$3+'Res-Appliance class'!$C30*'RES S curve-disconnect'!CB$8+'Res-Appliance class'!$D30*'RES S curve-disconnect'!CB$13+'Res-Appliance class'!$E30*'RES S curve-disconnect'!CB$18","v":-1169.5594881832606},{"$f":"'Res-Appliance class'!$B30*'RES S curve-disconnect'!CC$3+'Res-Appliance class'!$C30*'RES S curve-disconnect'!CC$8+'Res-Appliance class'!$D30*'RES S curve-disconnect'!CC$13+'Res-Appliance class'!$E30*'RES S curve-disconnect'!CC$18","v":-1160.6328411515465},{"$f":"'Res-Appliance class'!$B30*'RES S curve-disconnect'!CD$3+'Res-Appliance class'!$C30*'RES S curve-disconnect'!CD$8+'Res-Appliance class'!$D30*'RES S curve-disconnect'!CD$13+'Res-Appliance class'!$E30*'RES S curve-disconnect'!CD$18","v":-1298.1647810972972}]
["Casey (C)",null,{"$f":"'Res-Appliance class'!$B31*'RES S curve-disconnect'!C$3+'Res-Appliance class'!$C31*'RES S curve-disconnect'!C$8+'Res-Appliance class'!$D31*'RES S curve-disconnect'!C$13+'Res-Appliance class'!$E31*'RES S curve-disconnect'!C$18","v":-4728.6646531613769},{"$f":"'Res-Appliance class'!$B31*'RES S curve-disconnect'!D$3+'Res-Appliance class'!$C31*'RES S curve-disconnect'!D$8+'Res-Appliance class'!$D31*'RES S curve-disconnect'!D$13+'Res-Appliance class'!$E31*'RES S curve-disconnect'!D$18","v":-5370.7771379000133},{"$f":"'Res-Appliance class'!$B31*'RES S curve-disconnect'!E$3+'Res-Appliance class'!$C31*'RES S curve-disconnect'!E$8+'Res-Appliance class'!$D31*'RES S curve-disconnect'!E$13+'Res-Appliance class'!$E31*'RES S curve-disconnect'!E$18","v":-4770.2490979714785},{"$f":"'Res-Appliance class'!$B31*'RES S curve-disconnect'!F$3+'Res-Appliance class'!$C31*'RES S curve-disconnect'!F$8+'Res-Appliance class'!$D31*'RES S curve-disconnect'!F$13+'Res-Appliance class'!$E31*'RES S curve-disconnect'!F$18","v":-4576.9532026305842},{"$f":"'Res-Appliance class'!$B31*'RES S curve-disconnect'!G$3+'Res-Appliance class'!$C31*'RES S curve-disconnect'!G$8+'Res-Appliance class'!$D31*'RES S curve-disconnect'!G$13+'Res-Appliance class'!$E31*'RES S curve-disconnect'!G$18","v":-5908.725811394188},{"$f":"'Res-Appliance class'!$B31*'RES S curve-disconnect'!H$3+'Res-Appliance class'!$C31*'RES S curve-disconnect'!H$8+'Res-Appliance class'!$D31*'RES S curve-disconnect'!H$13+'Res-Appliance class'!$E31*'RES S curve-disconnect'!H$18","v":-5945.7403629429718},{"$f":"'Res-Appliance class'!$B31*'RES S curve-disconnect'!I$3+'Res-Appliance class'!$C31*'RES S curve-disconnect'!I$8+'Res-Appliance class'!$D31*'RES S curve-disconnect'!I$13+'Res-Appliance class'!$E31*'RES S curve-disconnect'!I$18","v":-5399.7854828998243},{"$f":"'Res-Appliance class'!$B31*'RES S curve-disconnect'!J$3+'Res-Appliance class'!$C31*'RES S curve-disconnect'!J$8+'Res-Appliance class'!$D31*'RES S curve-disconnect'!J$13+'Res-Appliance class'!$E31*'RES S curve-disconnect'!J$18","v":-5723.8364830986893},{"$f":"'Res-Appliance class'!$B31*'RES S curve-disconnect'!K$3+'Res-Appliance class'!$C31*'RES S curve-disconnect'!K$8+'Res-Appliance class'!$D31*'RES S curve-disconnect'!K$13+'Res-Appliance class'!$E31*'RES S curve-disconnect'!K$18","v":-4756.3015015232477},{"$f":"'Res-Appliance class'!$B31*'RES S curve-disconnect'!L$3+'Res-Appliance class'!$C31*'RES S curve-disconnect'!L$8+'Res-Appliance class'!$D31*'RES S curve-disconnect'!L$13+'Res-Appliance class'!$E31*'RES S curve-disconnect'!L$18","v":-5204.1448013954396},{"$f":"'Res-Appliance class'!$B31*'RES S curve-disconnect'!M$3+'Res-Appliance class'!$C31*'RES S curve-disconnect'!M$8+'Res-Appliance class'!$D31*'RES S curve-disconnect'!M$13+'Res-Appliance class'!$E31*'RES S curve-disconnect'!M$18","v":-6013.4964233320097},{"$f":"'Res-Appliance class'!$B31*'RES S curve-disconnect'!N$3+'Res-Appliance class'!$C31*'RES S curve-disconnect'!N$8+'Res-Appliance class'!$D31*'RES S curve-disconnect'!N$13+'Res-Appliance class'!$E31*'RES S curve-disconnect'!N$18","v":-6097.5109205736717},{"$f":"'Res-Appliance class'!$B31*'RES S curve-disconnect'!O$3+'Res-Appliance class'!$C31*'RES S curve-disconnect'!O$8+'Res-Appliance class'!$D31*'RES S curve-disconnect'!O$13+'Res-Appliance class'!$E31*'RES S curve-disconnect'!O$18","v":-5402.9824036837072},{"$f":"'Res-Appliance class'!$B31*'RES S curve-disconnect'!P$3+'Res-Appliance class'!$C31*'RES S curve-disconnect'!P$8+'Res-Appliance class'!$D31*'RES S curve-disconnect'!P$13+'Res-Appliance class'!$E31*'RES S curve-disconnect'!P$18","v":-4851.121032289795},{"$f":"'Res-Appliance class'!$B31*'RES S curve-disconnect'!Q$3+'Res-Appliance class'!$C31*'RES S curve-disconnect'!Q$8+'Res-Appliance class'!$D31*'RES S curve-disconnect'!Q$13+'Res-Appliance class'!$E31*'RES S curve-disconnect'!Q$18","v":-4012.7802511737768},{"$f":"'Res-Appliance class'!$B31*'RES S curve-disconnect'!R$3+'Res-Appliance class'!$C31*'RES S curve-disconnect'!R$8+'Res-Appliance class'!$D31*'RES S curve-disconnect'!R$13+'Res-Appliance class'!$E31*'RES S curve-disconnect'!R$18","v":-3541.1778416775865},{"$f":"'Res-Appliance class'!$B31*'RES S curve-disconnect'!S$3+'Res-Appliance class'!$C31*'RES S curve-disconnect'!S$8+'Res-Appliance class'!$D31*'RES S curve-disconnect'!S$13+'Res-Appliance class'!$E31*'RES S curve-disconnect'!S$18","v":-2787.0870439604892},{"$f":"'Res-Appliance class'!$B31*'RES S curve-disconnect'!T$3+'Res-Appliance class'!$C31*'RES S curve-disconnect'!T$8+'Res-Appliance class'!$D31*'RES S curve-disconnect'!T$13+'Res-Appliance class'!$E31*'RES S curve-disconnect'!T$18","v":-2378.8178809022102},{"$f":"'Res-Appliance class'!$B31*'RES S curve-disconnect'!U$3+'Res-Appliance class'!$C31*'RES S curve-disconnect'!U$8+'Res-Appliance class'!$D31*'RES S curve-disconnect'!U$13+'Res-Appliance class'!$E31*'RES S curve-disconnect'!U$18","v":-1912.9320963490545},{"$f":"'Res-Appliance class'!$B31*'RES S curve-disconnect'!V$3+'Res-Appliance class'!$C31*'RES S curve-disconnect'!V$8+'Res-Appliance class'!$D31*'RES S curve-disconnect'!V$13+'Res-Appliance class'!$E31*'RES S curve-disconnect'!V$18","v":-1598.0937755378704},{"$f":"'Res-Appliance class'!$B31*'RES S curve-disconnect'!W$3+'Res-Appliance class'!$C31*'RES S curve-disconnect'!W$8+'Res-Appliance class'!$D31*'RES S curve-disconnect'!W$13+'Res-Appliance class'!$E31*'RES S curve-disconnect'!W$18","v":-1354.6200552694936},{"$f":"'Res-Appliance class'!$B31*'RES S curve-disconnect'!X$3+'Res-Appliance class'!$C31*'RES S curve-disconnect'!X$8+'Res-Appliance class'!$D31*'RES S curve-disconnect'!X$13+'Res-Appliance class'!$E31*'RES S curve-disconnect'!X$18","v":-790.78680822977731},{"$f":"'Res-Appliance class'!$B31*'RES S curve-disconnect'!Y$3+'Res-Appliance class'!$C31*'RES S curve-disconnect'!Y$8+'Res-Appliance class'!$D31*'RES S curve-disconnect'!Y$13+'Res-Appliance class'!$E31*'RES S curve-disconnect'!Y$18","v":-220.40287499830885},{"$f":"'Res-Appliance class'!$B31*'RES S curve-disconnect'!Z$3+'Res-Appliance class'!$C31*'RES S curve-disconnect'!Z$8+'Res-Appliance class'!$D31*'RES S curve-disconnect'!Z$13+'Res-Appliance class'!$E31*'RES S curve-disconnect'!Z$18","v":162.83383126182673},{"$f":"'Res-Appliance class'!$B31*'RES S curve-disconnect'!AA$3+'Res-Appliance class'!$C31*'RES S curve-disconnect'!AA$8+'Res-Appliance class'!$D31*'RES S curve-disconnect'!AA$13+'Res-Appliance class'!$E31*'RES S curve-disconnect'!AA$18","v":545.88041767883158},{"$f":"'Res-Appliance class'!$B31*'RES S curve-disconnect'!AB$3+'Res-Appliance class'!$C31*'RES S curve-disconnect'!AB$8+'Res-Appliance class'!$D31*'RES S curve-disconnect'!AB$13+'Res-Appliance class'!$E31*'RES S curve-disconnect'!AB$18","v":849.84469659554645},{"$f":"'Res-Appliance class'!$B31*'RES S curve-disconnect'!AC$3+'Res-Appliance class'!$C31*'RES S curve-disconnect'!AC$8+'Res-Appliance class'!$D31*'RES S curve-disconnect'!AC$13+'Res-Appliance class'!$E31*'RES S curve-disconnect'!AC$18","v":1142.2506820850044},{"$f":"'Res-Appliance class'!$B31*'RES S curve-disconnect'!AD$3+'Res-Appliance class'!$C31*'RES S curve-disconnect'!AD$8+'Res-Appliance class'!$D31*'RES S curve-disconnect'!AD$13+'Res-Appliance class'!$E31*'RES S curve-disconnect'!AD$18","v":1409.7965458906715},{"$f":"'Res-Appliance class'!$B31*'RES S curve-disconnect'!AE$3+'Res-Appliance class'!$C31*'RES S curve-disconnect'!AE$8+'Res-Appliance class'!$D31*'RES S curve-disconnect'!AE$13+'Res-Appliance class'!$E31*'RES S curve-disconnect'!AE$18","v":1691.1109160183594},{"$f":"'Res-Appliance class'!$B31*'RES S curve-disconnect'!AF$3+'Res-Appliance class'!$C31*'RES S curve-disconnect'!AF$8+'Res-Appliance class'!$D31*'RES S curve-disconnect'!AF$13+'Res-Appliance class'!$E31*'RES S curve-disconnect'!AF$18","v":2058.1180372317144},{"$f":"'Res-Appliance class'!$B31*'RES S curve-disconnect'!AG$3+'Res-Appliance class'!$C31*'RES S curve-disconnect'!AG$8+'Res-Appliance class'!$D31*'RES S curve-disconnect'!AG$13+'Res-Appliance class'!$E31*'RES S curve-disconnect'!AG$18","v":2316.5175581216254},{"$f":"'Res-Appliance class'!$B31*'RES S curve-disconnect'!AH$3+'Res-Appliance class'!$C31*'RES S curve-disconnect'!AH$8+'Res-Appliance class'!$D31*'RES S curve-disconnect'!AH$13+'Res-Appliance class'!$E31*'RES S curve-disconnect'!AH$18","v":2680.9174031773646},{"$f":"'Res-Appliance class'!$B31*'RES S curve-disconnect'!AI$3+'Res-Appliance class'!$C31*'RES S curve-disconnect'!AI$8+'Res-Appliance class'!$D31*'RES S curve-disconnect'!AI$13+'Res-Appliance class'!$E31*'RES S curve-disconnect'!AI$18","v":3007.757348949382},{"$f":"'Res-Appliance class'!$B31*'RES S curve-disconnect'!AJ$3+'Res-Appliance class'!$C31*'RES S curve-disconnect'!AJ$8+'Res-Appliance class'!$D31*'RES S curve-disconnect'!AJ$13+'Res-Appliance class'!$E31*'RES S curve-disconnect'!AJ$18","v":3302.8762515811618},{"$f":"'Res-Appliance class'!$B31*'RES S curve-disconnect'!AK$3+'Res-Appliance class'!$C31*'RES S curve-disconnect'!AK$8+'Res-Appliance class'!$D31*'RES S curve-disconnect'!AK$13+'Res-Appliance class'!$E31*'RES S curve-disconnect'!AK$18","v":3616.1608272477392},{"$f":"'Res-Appliance class'!$B31*'RES S curve-disconnect'!AL$3+'Res-Appliance class'!$C31*'RES S curve-disconnect'!AL$8+'Res-Appliance class'!$D31*'RES S curve-disconnect'!AL$13+'Res-Appliance class'!$E31*'RES S curve-disconnect'!AL$18","v":2533.6488527288921},{"$f":"'Res-Appliance class'!$B31*'RES S curve-disconnect'!AM$3+'Res-Appliance class'!$C31*'RES S curve-disconnect'!AM$8+'Res-Appliance class'!$D31*'RES S curve-disconnect'!AM$13+'Res-Appliance class'!$E31*'RES S curve-disconnect'!AM$18","v":2390.7905294913653},{"$f":"'Res-Appliance class'!$B31*'RES S curve-disconnect'!AN$3+'Res-Appliance class'!$C31*'RES S curve-disconnect'!AN$8+'Res-Appliance class'!$D31*'RES S curve-disconnect'!AN$13+'Res-Appliance class'!$E31*'RES S curve-disconnect'!AN$18","v":2686.7275646755011},{"$f":"'Res-Appliance class'!$B31*'RES S curve-disconnect'!AO$3+'Res-Appliance class'!$C31*'RES S curve-disconnect'!AO$8+'Res-Appliance class'!$D31*'RES S curve-disconnect'!AO$13+'Res-Appliance class'!$E31*'RES S curve-disconnect'!AO$18","v":3049.3022784588729},{"$f":"'Res-Appliance class'!$B31*'RES S curve-disconnect'!AP$3+'Res-Appliance class'!$C31*'RES S curve-disconnect'!AP$8+'Res-Appliance class'!$D31*'RES S curve-disconnect'!AP$13+'Res-Appliance class'!$E31*'RES S curve-disconnect'!AP$18","v":3384.6340373331959},{"$f":"'Res-Appliance class'!$B31*'RES S curve-disconnect'!AQ$3+'Res-Appliance class'!$C31*'RES S curve-disconnect'!AQ$8+'Res-Appliance class'!$D31*'RES S curve-disconnect'!AQ$13+'Res-Appliance class'!$E31*'RES S curve-disconnect'!AQ$18","v":3745.279634399662},{"$f":"'Res-Appliance class'!$B31*'RES S curve-disconnect'!AR$3+'Res-Appliance class'!$C31*'RES S curve-disconnect'!AR$8+'Res-Appliance class'!$D31*'RES S curve-disconnect'!AR$13+'Res-Appliance class'!$E31*'RES S curve-disconnect'!AR$18","v":4141.494692158245},{"$f":"'Res-Appliance class'!$B31*'RES S curve-disconnect'!AS$3+'Res-Appliance class'!$C31*'RES S curve-disconnect'!AS$8+'Res-Appliance class'!$D31*'RES S curve-disconnect'!AS$13+'Res-Appliance class'!$E31*'RES S curve-disconnect'!AS$18","v":4586.1643040718573},{"$f":"'Res-Appliance class'!$B31*'RES S curve-disconnect'!AT$3+'Res-Appliance class'!$C31*'RES S curve-disconnect'!AT$8+'Res-Appliance class'!$D31*'RES S curve-disconnect'!AT$13+'Res-Appliance class'!$E31*'RES S curve-disconnect'!AT$18","v":5083.8276120480932},{"$f":"'Res-Appliance class'!$B31*'RES S curve-disconnect'!AU$3+'Res-Appliance class'!$C31*'RES S curve-disconnect'!AU$8+'Res-Appliance class'!$D31*'RES S curve-disconnect'!AU$13+'Res-Appliance class'!$E31*'RES S curve-disconnect'!AU$18","v":5659.2510949185544},{"$f":"'Res-Appliance class'!$B31*'RES S curve-disconnect'!AV$3+'Res-Appliance class'!$C31*'RES S curve-disconnect'!AV$8+'Res-Appliance class'!$D31*'RES S curve-disconnect'!AV$13+'Res-Appliance class'!$E31*'RES S curve-disconnect'!AV$18","v":6315.9595158010225},{"$f":"'Res-Appliance class'!$B31*'RES S curve-disconnect'!AW$3+'Res-Appliance class'!$C31*'RES S curve-disconnect'!AW$8+'Res-Appliance class'!$D31*'RES S curve-disconnect'!AW$13+'Res-Appliance class'!$E31*'RES S curve-disconnect'!AW$18","v":7070.9514558180854},{"$f":"'Res-Appliance class'!$B31*'RES S curve-disconnect'!AX$3+'Res-Appliance class'!$C31*'RES S curve-disconnect'!AX$8+'Res-Appliance class'!$D31*'RES S curve-disconnect'!AX$13+'Res-Appliance class'!$E31*'RES S curve-disconnect'!AX$18","v":7931.8360340754243},{"$f":"'Res-Appliance class'!$B31*'RES S curve-disconnect'!AY$3+'Res-Appliance class'!$C31*'RES S curve-disconnect'!AY$8+'Res-Appliance class'!$D31*'RES S curve-disconnect'!AY$13+'Res-Appliance class'!$E31*'RES S curve-disconnect'!AY$18","v":8925.0133561571001},{"$f":"'Res-Appliance class'!$B31*'RES S curve-disconnect'!AZ$3+'Res-Appliance class'!$C31*'RES S curve-disconnect'!AZ$8+'Res-Appliance class'!$D31*'RES S curve-disconnect'!AZ$13+'Res-Appliance class'!$E31*'RES S curve-disconnect'!AZ$18","v":10060.943873718217},{"$f":"'Res-Appliance class'!$B31*'RES S curve-disconnect'!BA$3+'Res-Appliance class'!$C31*'RES S curve-disconnect'!BA$8+'Res-Appliance class'!$D31*'RES S curve-disconnect'!BA$13+'Res-Appliance class'!$E31*'RES S curve-disconnect'!BA$18","v":11376.854864055871},{"$f":"'Res-Appliance class'!$B31*'RES S curve-disconnect'!BB$3+'Res-Appliance class'!$C31*'RES S curve-disconnect'!BB$8+'Res-Appliance class'!$D31*'RES S curve-disconnect'!BB$13+'Res-Appliance class'!$E31*'RES S curve-disconnect'!BB$18","v":12914.96486672474},{"$f":"'Res-Appliance class'!$B31*'RES S curve-disconnect'!BC$3+'Res-Appliance class'!$C31*'RES S curve-disconnect'!BC$8+'Res-Appliance class'!$D31*'RES S curve-disconnect'!BC$13+'Res-Appliance class'!$E31*'RES S curve-disconnect'!BC$18","v":14749.30726878552},{"$f":"'Res-Appliance class'!$B31*'RES S curve-disconnect'!BD$3+'Res-Appliance class'!$C31*'RES S curve-disconnect'!BD$8+'Res-Appliance class'!$D31*'RES S curve-disconnect'!BD$13+'Res-Appliance class'!$E31*'RES S curve-disconnect'!BD$18","v":16520.735193247154},{"$f":"'Res-Appliance class'!$B31*'RES S curve-disconnect'!BE$3+'Res-Appliance class'!$C31*'RES S curve-disconnect'!BE$8+'Res-Appliance class'!$D31*'RES S curve-disconnect'!BE$13+'Res-Appliance class'!$E31*'RES S curve-disconnect'!BE$18","v":18140.453275455238},{"$f":"'Res-Appliance class'!$B31*'RES S curve-disconnect'!BF$3+'Res-Appliance class'!$C31*'RES S curve-disconnect'!BF$8+'Res-Appliance class'!$D31*'RES S curve-disconnect'!BF$13+'Res-Appliance class'!$E31*'RES S curve-disconnect'!BF$18","v":19797.544940548549},{"$f":"'Res-Appliance class'!$B31*'RES S curve-disconnect'!BG$3+'Res-Appliance class'!$C31*'RES S curve-disconnect'!BG$8+'Res-Appliance class'!$D31*'RES S curve-disconnect'!BG$13+'Res-Appliance class'!$E31*'RES S curve-disconnect'!BG$18","v":21672.299647387124},{"$f":"'Res-Appliance class'!$B31*'RES S curve-disconnect'!BH$3+'Res-Appliance class'!$C31*'RES S curve-disconnect'!BH$8+'Res-Appliance class'!$D31*'RES S curve-disconnect'!BH$13+'Res-Appliance class'!$E31*'RES S curve-disconnect'!BH$18","v":23898.155851510663},{"$f":"'Res-Appliance class'!$B31*'RES S curve-disconnect'!BI$3+'Res-Appliance class'!$C31*'RES S curve-disconnect'!BI$8+'Res-Appliance class'!$D31*'RES S curve-disconnect'!BI$13+'Res-Appliance class'!$E31*'RES S curve-disconnect'!BI$18","v":27122.980213267518},{"$f":"'Res-Appliance class'!$B31*'RES S curve-disconnect'!BJ$3+'Res-Appliance class'!$C31*'RES S curve-disconnect'!BJ$8+'Res-Appliance class'!$D31*'RES S curve-disconnect'!BJ$13+'Res-Appliance class'!$E31*'RES S curve-disconnect'!BJ$18","v":31848.060464901184},{"$f":"'Res-Appliance class'!$B31*'RES S curve-disconnect'!BK$3+'Res-Appliance class'!$C31*'RES S curve-disconnect'!BK$8+'Res-Appliance class'!$D31*'RES S curve-disconnect'!BK$13+'Res-Appliance class'!$E31*'RES S curve-disconnect'!BK$18","v":38824.494098576004},{"$f":"'Res-Appliance class'!$B31*'RES S curve-disconnect'!BL$3+'Res-Appliance class'!$C31*'RES S curve-disconnect'!BL$8+'Res-Appliance class'!$D31*'RES S curve-disconnect'!BL$13+'Res-Appliance class'!$E31*'RES S curve-disconnect'!BL$18","v":-1428.4119136963336},{"$f":"'Res-Appliance class'!$B31*'RES S curve-disconnect'!BM$3+'Res-Appliance class'!$C31*'RES S curve-disconnect'!BM$8+'Res-Appliance class'!$D31*'RES S curve-disconnect'!BM$13+'Res-Appliance class'!$E31*'RES S curve-disconnect'!BM$18","v":-1419.5908162072906},{"$f":"'Res-Appliance class'!$B31*'RES S curve-disconnect'!BN$3+'Res-Appliance class'!$C31*'RES S curve-disconnect'!BN$8+'Res-Appliance class'!$D31*'RES S curve-disconnect'!BN$13+'Res-Appliance class'!$E31*'RES S curve-disconnect'!BN$18","v":-1414.8040754154622},{"$f":"'Res-Appliance class'!$B31*'RES S curve-disconnect'!BO$3+'Res-Appliance class'!$C31*'RES S curve-disconnect'!BO$8+'Res-Appliance class'!$D31*'RES S curve-disconnect'!BO$13+'Res-Appliance class'!$E31*'RES S curve-disconnect'!BO$18","v":-1401.9849944593439},{"$f":"'Res-Appliance class'!$B31*'RES S curve-disconnect'!BP$3+'Res-Appliance class'!$C31*'RES S curve-disconnect'!BP$8+'Res-Appliance class'!$D31*'RES S curve-disconnect'!BP$13+'Res-Appliance class'!$E31*'RES S curve-disconnect'!BP$18","v":-1393.2001244267162},{"$f":"'Res-Appliance class'!$B31*'RES S curve-disconnect'!BQ$3+'Res-Appliance class'!$C31*'RES S curve-disconnect'!BQ$8+'Res-Appliance class'!$D31*'RES S curve-disconnect'!BQ$13+'Res-Appliance class'!$E31*'RES S curve-disconnect'!BQ$18","v":-1384.4271851937685},{"$f":"'Res-Appliance class'!$B31*'RES S curve-disconnect'!BR$3+'Res-Appliance class'!$C31*'RES S curve-disconnect'!BR$8+'Res-Appliance class'!$D31*'RES S curve-disconnect'!BR$13+'Res-Appliance class'!$E31*'RES S curve-disconnect'!BR$18","v":-1379.6883129170478},{"$f":"'Res-Appliance class'!$B31*'RES S curve-disconnect'!BS$3+'Res-Appliance class'!$C31*'RES S curve-disconnect'!BS$8+'Res-Appliance class'!$D31*'RES S curve-disconnect'!BS$13+'Res-Appliance class'!$E31*'RES S curve-disconnect'!BS$18","v":-1366.9168125358271},{"$f":"'Res-Appliance class'!$B31*'RES S curve-disconnect'!BT$3+'Res-Appliance class'!$C31*'RES S curve-disconnect'!BT$8+'Res-Appliance class'!$D31*'RES S curve-disconnect'!BT$13+'Res-Appliance class'!$E31*'RES S curve-disconnect'!BT$18","v":-1358.1792369272905},{"$f":"'Res-Appliance class'!$B31*'RES S curve-disconnect'!BU$3+'Res-Appliance class'!$C31*'RES S curve-disconnect'!BU$8+'Res-Appliance class'!$D31*'RES S curve-disconnect'!BU$13+'Res-Appliance class'!$E31*'RES S curve-disconnect'!BU$18","v":-1349.4533077457306},{"$f":"'Res-Appliance class'!$B31*'RES S curve-disconnect'!BV$3+'Res-Appliance class'!$C31*'RES S curve-disconnect'!BV$8+'Res-Appliance class'!$D31*'RES S curve-disconnect'!BV$13+'Res-Appliance class'!$E31*'RES S curve-disconnect'!BV$18","v":-1344.7611629145797},{"$f":"'Res-Appliance class'!$B31*'RES S curve-disconnect'!BW$3+'Res-Appliance class'!$C31*'RES S curve-disconnect'!BW$8+'Res-Appliance class'!$D31*'RES S curve-disconnect'!BW$13+'Res-Appliance class'!$E31*'RES S curve-disconnect'!BW$18","v":-1332.0361091288362},{"$f":"'Res-Appliance class'!$B31*'RES S curve-disconnect'!BX$3+'Res-Appliance class'!$C31*'RES S curve-disconnect'!BX$8+'Res-Appliance class'!$D31*'RES S curve-disconnect'!BX$13+'Res-Appliance class'!$E31*'RES S curve-disconnect'!BX$18","v":-1323.3447010103284},{"$f":"'Res-Appliance class'!$B31*'RES S curve-disconnect'!BY$3+'Res-Appliance class'!$C31*'RES S curve-disconnect'!BY$8+'Res-Appliance class'!$D31*'RES S curve-disconnect'!BY$13+'Res-Appliance class'!$E31*'RES S curve-disconnect'!BY$18","v":-1314.6646619469836},{"$f":"'Res-Appliance class'!$B31*'RES S curve-disconnect'!BZ$3+'Res-Appliance class'!$C31*'RES S curve-disconnect'!BZ$8+'Res-Appliance class'!$D31*'RES S curve-disconnect'!BZ$13+'Res-Appliance class'!$E31*'RES S curve-disconnect'!BZ$18","v":-1310.0181315849227},{"$f":"'Res-Appliance class'!$B31*'RES S curve-disconnect'!CA$3+'Res-Appliance class'!$C31*'RES S curve-disconnect'!CA$8+'Res-Appliance class'!$D31*'RES S curve-disconnect'!CA$13+'Res-Appliance class'!$E31*'RES S curve-disconnect'!CA$18","v":-1297.3384183309577},{"$f":"'Res-Appliance class'!$B31*'RES S curve-disconnect'!CB$3+'Res-Appliance class'!$C31*'RES S curve-disconnect'!CB$8+'Res-Appliance class'!$D31*'RES S curve-disconnect'!CB$13+'Res-Appliance class'!$E31*'RES S curve-disconnect'!CB$18","v":-1288.6920785079315},{"$f":"'Res-Appliance class'!$B31*'RES S curve-disconnect'!CC$3+'Res-Appliance class'!$C31*'RES S curve-disconnect'!CC$8+'Res-Appliance class'!$D31*'RES S curve-disconnect'!CC$13+'Res-Appliance class'!$E31*'RES S curve-disconnect'!CC$18","v":-1280.0568371940481},{"$f":"'Res-Appliance class'!$B31*'RES S curve-disconnect'!CD$3+'Res-Appliance class'!$C31*'RES S curve-disconnect'!CD$8+'Res-Appliance class'!$D31*'RES S curve-disconnect'!CD$13+'Res-Appliance class'!$E31*'RES S curve-disconnect'!CD$18","v":-1412.1466356208703}]
["Frankston (C)",null,{"$f":"'Res-Appliance class'!$B32*'RES S curve-disconnect'!C$3+'Res-Appliance class'!$C32*'RES S curve-disconnect'!C$8+'Res-Appliance class'!$D32*'RES S curve-disconnect'!C$13+'Res-Appliance class'!$E32*'RES S curve-disconnect'!C$18","v":-5240.0303836238345},{"$f":"'Res-Appliance class'!$B32*'RES S curve-disconnect'!D$3+'Res-Appliance class'!$C32*'RES S curve-disconnect'!D$8+'Res-Appliance class'!$D32*'RES S curve-disconnect'!D$13+'Res-Appliance class'!$E32*'RES S curve-disconnect'!D$18","v":-6012.7509076082661},{"$f":"'Res-Appliance class'!$B32*'RES S curve-disconnect'!E$3+'Res-Appliance class'!$C32*'RES S curve-disconnect'!E$8+'Res-Appliance class'!$D32*'RES S curve-disconnect'!E$13+'Res-Appliance class'!$E32*'RES S curve-disconnect'!E$18","v":-5214.3109879506592},{"$f":"'Res-Appliance class'!$B32*'RES S curve-disconnect'!F$3+'Res-Appliance class'!$C32*'RES S curve-disconnect'!F$8+'Res-Appliance class'!$D32*'RES S curve-disconnect'!F$13+'Res-Appliance class'!$E32*'RES S curve-disconnect'!F$18","v":-4973.5853500392068},{"$f":"'Res-Appliance class'!$B32*'RES S curve-disconnect'!G$3+'Res-Appliance class'!$C32*'RES S curve-disconnect'!G$8+'Res-Appliance class'!$D32*'RES S curve-disconnect'!G$13+'Res-Appliance class'!$E32*'RES S curve-disconnect'!G$18","v":-6829.8507355688025},{"$f":"'Res-Appliance class'!$B32*'RES S curve-disconnect'!H$3+'Res-Appliance class'!$C32*'RES S curve-disconnect'!H$8+'Res-Appliance class'!$D32*'RES S curve-disconnect'!H$13+'Res-Appliance class'!$E32*'RES S curve-disconnect'!H$18","v":-6831.5900978467462},{"$f":"'Res-Appliance class'!$B32*'RES S curve-disconnect'!I$3+'Res-Appliance class'!$C32*'RES S curve-disconnect'!I$8+'Res-Appliance class'!$D32*'RES S curve-disconnect'!I$13+'Res-Appliance class'!$E32*'RES S curve-disconnect'!I$18","v":-6152.3879392477593},{"$f":"'Res-Appliance class'!$B32*'RES S curve-disconnect'!J$3+'Res-Appliance class'!$C32*'RES S curve-disconnect'!J$8+'Res-Appliance class'!$D32*'RES S curve-disconnect'!J$13+'Res-Appliance class'!$E32*'RES S curve-disconnect'!J$18","v":-6439.1605304763452},{"$f":"'Res-Appliance class'!$B32*'RES S curve-disconnect'!K$3+'Res-Appliance class'!$C32*'RES S curve-disconnect'!K$8+'Res-Appliance class'!$D32*'RES S curve-disconnect'!K$13+'Res-Appliance class'!$E32*'RES S curve-disconnect'!K$18","v":-5258.5439174381299},{"$f":"'Res-Appliance class'!$B32*'RES S curve-disconnect'!L$3+'Res-Appliance class'!$C32*'RES S curve-disconnect'!L$8+'Res-Appliance class'!$D32*'RES S curve-disconnect'!L$13+'Res-Appliance class'!$E32*'RES S curve-disconnect'!L$18","v":-5802.7891994297661},{"$f":"'Res-Appliance class'!$B32*'RES S curve-disconnect'!M$3+'Res-Appliance class'!$C32*'RES S curve-disconnect'!M$8+'Res-Appliance class'!$D32*'RES S curve-disconnect'!M$13+'Res-Appliance class'!$E32*'RES S curve-disconnect'!M$18","v":-6833.9829259233411},{"$f":"'Res-Appliance class'!$B32*'RES S curve-disconnect'!N$3+'Res-Appliance class'!$C32*'RES S curve-disconnect'!N$8+'Res-Appliance class'!$D32*'RES S curve-disconnect'!N$13+'Res-Appliance class'!$E32*'RES S curve-disconnect'!N$18","v":-6943.2578289871672},{"$f":"'Res-Appliance class'!$B32*'RES S curve-disconnect'!O$3+'Res-Appliance class'!$C32*'RES S curve-disconnect'!O$8+'Res-Appliance class'!$D32*'RES S curve-disconnect'!O$13+'Res-Appliance class'!$E32*'RES S curve-disconnect'!O$18","v":-6092.9855273199028},{"$f":"'Res-Appliance class'!$B32*'RES S curve-disconnect'!P$3+'Res-Appliance class'!$C32*'RES S curve-disconnect'!P$8+'Res-Appliance class'!$D32*'RES S curve-disconnect'!P$13+'Res-Appliance class'!$E32*'RES S curve-disconnect'!P$18","v":-5412.7518058863407},{"$f":"'Res-Appliance class'!$B32*'RES S curve-disconnect'!Q$3+'Res-Appliance class'!$C32*'RES S curve-disconnect'!Q$8+'Res-Appliance class'!$D32*'RES S curve-disconnect'!Q$13+'Res-Appliance class'!$E32*'RES S curve-disconnect'!Q$18","v":-4377.3386933259644},{"$f":"'Res-Appliance class'!$B32*'RES S curve-disconnect'!R$3+'Res-Appliance class'!$C32*'RES S curve-disconnect'!R$8+'Res-Appliance class'!$D32*'RES S curve-disconnect'!R$13+'Res-Appliance class'!$E32*'RES S curve-disconnect'!R$18","v":-3795.7863698857773},{"$f":"'Res-Appliance class'!$B32*'RES S curve-disconnect'!S$3+'Res-Appliance class'!$C32*'RES S curve-disconnect'!S$8+'Res-Appliance class'!$D32*'RES S curve-disconnect'!S$13+'Res-Appliance class'!$E32*'RES S curve-disconnect'!S$18","v":-2870.0419600221903},{"$f":"'Res-Appliance class'!$B32*'RES S curve-disconnect'!T$3+'Res-Appliance class'!$C32*'RES S curve-disconnect'!T$8+'Res-Appliance class'!$D32*'RES S curve-disconnect'!T$13+'Res-Appliance class'!$E32*'RES S curve-disconnect'!T$18","v":-2357.2113166604286},{"$f":"'Res-Appliance class'!$B32*'RES S curve-disconnect'!U$3+'Res-Appliance class'!$C32*'RES S curve-disconnect'!U$8+'Res-Appliance class'!$D32*'RES S curve-disconnect'!U$13+'Res-Appliance class'!$E32*'RES S curve-disconnect'!U$18","v":-1781.5412312655171},{"$f":"'Res-Appliance class'!$B32*'RES S curve-disconnect'!V$3+'Res-Appliance class'!$C32*'RES S curve-disconnect'!V$8+'Res-Appliance class'!$D32*'RES S curve-disconnect'!V$13+'Res-Appliance class'!$E32*'RES S curve-disconnect'!V$18","v":-1398.0344300063466},{"$f":"'Res-Appliance class'!$B32*'RES S curve-disconnect'!W$3+'Res-Appliance class'!$C32*'RES S curve-disconnect'!W$8+'Res-Appliance class'!$D32*'RES S curve-disconnect'!W$13+'Res-Appliance class'!$E32*'RES S curve-disconnect'!W$18","v":-1101.3142567601365},{"$f":"'Res-Appliance class'!$B32*'RES S curve-disconnect'!X$3+'Res-Appliance class'!$C32*'RES S curve-disconnect'!X$8+'Res-Appliance class'!$D32*'RES S curve-disconnect'!X$13+'Res-Appliance class'!$E32*'RES S curve-disconnect'!X$18","v":-400.96860185159085},{"$f":"'Res-Appliance class'!$B32*'RES S curve-disconnect'!Y$3+'Res-Appliance class'!$C32*'RES S curve-disconnect'!Y$8+'Res-Appliance class'!$D32*'RES S curve-disconnect'!Y$13+'Res-Appliance class'!$E32*'RES S curve-disconnect'!Y$18","v":306.02302710616664},{"$f":"'Res-Appliance class'!$B32*'RES S curve-disconnect'!Z$3+'Res-Appliance class'!$C32*'RES S curve-disconnect'!Z$8+'Res-Appliance class'!$D32*'RES S curve-disconnect'!Z$13+'Res-Appliance class'!$E32*'RES S curve-disconnect'!Z$18","v":778.60446692511186},{"$f":"'Res-Appliance class'!$B32*'RES S curve-disconnect'!AA$3+'Res-Appliance class'!$C32*'RES S curve-disconnect'!AA$8+'Res-Appliance class'!$D32*'RES S curve-disconnect'!AA$13+'Res-Appliance class'!$E32*'RES S curve-disconnect'!AA$18","v":1249.1974398121392},{"$f":"'Res-Appliance class'!$B32*'RES S curve-disconnect'!AB$3+'Res-Appliance class'!$C32*'RES S curve-disconnect'!AB$8+'Res-Appliance class'!$D32*'RES S curve-disconnect'!AB$13+'Res-Appliance class'!$E32*'RES S curve-disconnect'!AB$18","v":1622.0751389964385},{"$f":"'Res-Appliance class'!$B32*'RES S curve-disconnect'!AC$3+'Res-Appliance class'!$C32*'RES S curve-disconnect'!AC$8+'Res-Appliance class'!$D32*'RES S curve-disconnect'!AC$13+'Res-Appliance class'!$E32*'RES S curve-disconnect'!AC$18","v":1979.548738671223},{"$f":"'Res-Appliance class'!$B32*'RES S curve-disconnect'!AD$3+'Res-Appliance class'!$C32*'RES S curve-disconnect'!AD$8+'Res-Appliance class'!$D32*'RES S curve-disconnect'!AD$13+'Res-Appliance class'!$E32*'RES S curve-disconnect'!AD$18","v":2306.2956133010671},{"$f":"'Res-Appliance class'!$B32*'RES S curve-disconnect'!AE$3+'Res-Appliance class'!$C32*'RES S curve-disconnect'!AE$8+'Res-Appliance class'!$D32*'RES S curve-disconnect'!AE$13+'Res-Appliance class'!$E32*'RES S curve-disconnect'!AE$18","v":2647.6354225503155},{"$f":"'Res-Appliance class'!$B32*'RES S curve-disconnect'!AF$3+'Res-Appliance class'!$C32*'RES S curve-disconnect'!AF$8+'Res-Appliance class'!$D32*'RES S curve-disconnect'!AF$13+'Res-Appliance class'!$E32*'RES S curve-disconnect'!AF$18","v":3097.197678301538},{"$f":"'Res-Appliance class'!$B32*'RES S curve-disconnect'!AG$3+'Res-Appliance class'!$C32*'RES S curve-disconnect'!AG$8+'Res-Appliance class'!$D32*'RES S curve-disconnect'!AG$13+'Res-Appliance class'!$E32*'RES S curve-disconnect'!AG$18","v":3415.1742326696517},{"$f":"'Res-Appliance class'!$B32*'RES S curve-disconnect'!AH$3+'Res-Appliance class'!$C32*'RES S curve-disconnect'!AH$8+'Res-Appliance class'!$D32*'RES S curve-disconnect'!AH$13+'Res-Appliance class'!$E32*'RES S curve-disconnect'!AH$18","v":3868.5676509501382},{"$f":"'Res-Appliance class'!$B32*'RES S curve-disconnect'!AI$3+'Res-Appliance class'!$C32*'RES S curve-disconnect'!AI$8+'Res-Appliance class'!$D32*'RES S curve-disconnect'!AI$13+'Res-Appliance class'!$E32*'RES S curve-disconnect'!AI$18","v":4270.7488759038533},{"$f":"'Res-Appliance class'!$B32*'RES S curve-disconnect'!AJ$3+'Res-Appliance class'!$C32*'RES S curve-disconnect'!AJ$8+'Res-Appliance class'!$D32*'RES S curve-disconnect'!AJ$13+'Res-Appliance class'!$E32*'RES S curve-disconnect'!AJ$18","v":4634.8136690846877},{"$f":"'Res-Appliance class'!$B32*'RES S curve-disconnect'!AK$3+'Res-Appliance class'!$C32*'RES S curve-disconnect'!AK$8+'Res-Appliance class'!$D32*'RES S curve-disconnect'!AK$13+'Res-Appliance class'!$E32*'RES S curve-disconnect'!AK$18","v":5021.1399607342501},{"$f":"'Res-Appliance class'!$B32*'RES S curve-disconnect'!AL$3+'Res-Appliance class'!$C32*'RES S curve-disconnect'!AL$8+'Res-Appliance class'!$D32*'RES S curve-disconnect'!AL$13+'Res-Appliance class'!$E32*'RES S curve-disconnect'!AL$18","v":3697.557779543773},{"$f":"'Res-Appliance class'!$B32*'RES S curve-disconnect'!AM$3+'Res-Appliance class'!$C32*'RES S curve-disconnect'!AM$8+'Res-Appliance class'!$D32*'RES S curve-disconnect'!AM$13+'Res-Appliance class'!$E32*'RES S curve-disconnect'!AM$18","v":3515.9966808410545},{"$f":"'Res-Appliance class'!$B32*'RES S curve-disconnect'!AN$3+'Res-Appliance class'!$C32*'RES S curve-disconnect'!AN$8+'Res-Appliance class'!$D32*'RES S curve-disconnect'!AN$13+'Res-Appliance class'!$E32*'RES S curve-disconnect'!AN$18","v":3877.4604459034081},{"$f":"'Res-Appliance class'!$B32*'RES S curve-disconnect'!AO$3+'Res-Appliance class'!$C32*'RES S curve-disconnect'!AO$8+'Res-Appliance class'!$D32*'RES S curve-disconnect'!AO$13+'Res-Appliance class'!$E32*'RES S curve-disconnect'!AO$18","v":4323.6313493214384},{"$f":"'Res-Appliance class'!$B32*'RES S curve-disconnect'!AP$3+'Res-Appliance class'!$C32*'RES S curve-disconnect'!AP$8+'Res-Appliance class'!$D32*'RES S curve-disconnect'!AP$13+'Res-Appliance class'!$E32*'RES S curve-disconnect'!AP$18","v":4738.2082152700341},{"$f":"'Res-Appliance class'!$B32*'RES S curve-disconnect'!AQ$3+'Res-Appliance class'!$C32*'RES S curve-disconnect'!AQ$8+'Res-Appliance class'!$D32*'RES S curve-disconnect'!AQ$13+'Res-Appliance class'!$E32*'RES S curve-disconnect'!AQ$18","v":5182.1247234636558},{"$f":"'Res-Appliance class'!$B32*'RES S curve-disconnect'!AR$3+'Res-Appliance class'!$C32*'RES S curve-disconnect'!AR$8+'Res-Appliance class'!$D32*'RES S curve-disconnect'!AR$13+'Res-Appliance class'!$E32*'RES S curve-disconnect'!AR$18","v":5670.9868245815378},{"$f":"'Res-Appliance class'!$B32*'RES S curve-disconnect'!AS$3+'Res-Appliance class'!$C32*'RES S curve-disconnect'!AS$8+'Res-Appliance class'!$D32*'RES S curve-disconnect'!AS$13+'Res-Appliance class'!$E32*'RES S curve-disconnect'!AS$18","v":6219.9482655117154},{"$f":"'Res-Appliance class'!$B32*'RES S curve-disconnect'!AT$3+'Res-Appliance class'!$C32*'RES S curve-disconnect'!AT$8+'Res-Appliance class'!$D32*'RES S curve-disconnect'!AT$13+'Res-Appliance class'!$E32*'RES S curve-disconnect'!AT$18","v":6835.6738996591121},{"$f":"'Res-Appliance class'!$B32*'RES S curve-disconnect'!AU$3+'Res-Appliance class'!$C32*'RES S curve-disconnect'!AU$8+'Res-Appliance class'!$D32*'RES S curve-disconnect'!AU$13+'Res-Appliance class'!$E32*'RES S curve-disconnect'!AU$18","v":7546.0283826469404},{"$f":"'Res-Appliance class'!$B32*'RES S curve-disconnect'!AV$3+'Res-Appliance class'!$C32*'RES S curve-disconnect'!AV$8+'Res-Appliance class'!$D32*'RES S curve-disconnect'!AV$13+'Res-Appliance class'!$E32*'RES S curve-disconnect'!AV$18","v":8358.3892913444779},{"$f":"'Res-Appliance class'!$B32*'RES S curve-disconnect'!AW$3+'Res-Appliance class'!$C32*'RES S curve-disconnect'!AW$8+'Res-Appliance class'!$D32*'RES S curve-disconnect'!AW$13+'Res-Appliance class'!$E32*'RES S curve-disconnect'!AW$18","v":9293.1233456672089},{"$f":"'Res-Appliance class'!$B32*'RES S curve-disconnect'!AX$3+'Res-Appliance class'!$C32*'RES S curve-disconnect'!AX$8+'Res-Appliance class'!$D32*'RES S curve-disconnect'!AX$13+'Res-Appliance class'!$E32*'RES S curve-disconnect'!AX$18","v":10360.970946366175},{"$f":"'Res-Appliance class'!$B32*'RES S curve-disconnect'!AY$3+'Res-Appliance class'!$C32*'RES S curve-disconnect'!AY$8+'Res-Appliance class'!$D32*'RES S curve-disconnect'!AY$13+'Res-Appliance class'!$E32*'RES S curve-disconnect'!AY$18","v":11592.140674086628},{"$f":"'Res-Appliance class'!$B32*'RES S curve-disconnect'!AZ$3+'Res-Appliance class'!$C32*'RES S curve-disconnect'!AZ$8+'Res-Appliance class'!$D32*'RES S curve-disconnect'!AZ$13+'Res-Appliance class'!$E32*'RES S curve-disconnect'!AZ$18","v":13002.913970606598},{"$f":"'Res-Appliance class'!$B32*'RES S curve-disconnect'!BA$3+'Res-Appliance class'!$C32*'RES S curve-disconnect'!BA$8+'Res-Appliance class'!$D32*'RES S curve-disconnect'!BA$13+'Res-Appliance class'!$E32*'RES S curve-disconnect'!BA$18","v":14639.031606990238},{"$f":"'Res-Appliance class'!$B32*'RES S curve-disconnect'!BB$3+'Res-Appliance class'!$C32*'RES S curve-disconnect'!BB$8+'Res-Appliance class'!$D32*'RES S curve-disconnect'!BB$13+'Res-Appliance class'!$E32*'RES S curve-disconnect'!BB$18","v":16554.615626309154},{"$f":"'Res-Appliance class'!$B32*'RES S curve-disconnect'!BC$3+'Res-Appliance class'!$C32*'RES S curve-disconnect'!BC$8+'Res-Appliance class'!$D32*'RES S curve-disconnect'!BC$13+'Res-Appliance class'!$E32*'RES S curve-disconnect'!BC$18","v":18839.731816507181},{"$f":"'Res-Appliance class'!$B32*'RES S curve-disconnect'!BD$3+'Res-Appliance class'!$C32*'RES S curve-disconnect'!BD$8+'Res-Appliance class'!$D32*'RES S curve-disconnect'!BD$13+'Res-Appliance class'!$E32*'RES S curve-disconnect'!BD$18","v":21054.660075333963},{"$f":"'Res-Appliance class'!$B32*'RES S curve-disconnect'!BE$3+'Res-Appliance class'!$C32*'RES S curve-disconnect'!BE$8+'Res-Appliance class'!$D32*'RES S curve-disconnect'!BE$13+'Res-Appliance class'!$E32*'RES S curve-disconnect'!BE$18","v":23082.620859981984},{"$f":"'Res-Appliance class'!$B32*'RES S curve-disconnect'!BF$3+'Res-Appliance class'!$C32*'RES S curve-disconnect'!BF$8+'Res-Appliance class'!$D32*'RES S curve-disconnect'!BF$13+'Res-Appliance class'!$E32*'RES S curve-disconnect'!BF$18","v":25156.56947972277},{"$f":"'Res-Appliance class'!$B32*'RES S curve-disconnect'!BG$3+'Res-Appliance class'!$C32*'RES S curve-disconnect'!BG$8+'Res-Appliance class'!$D32*'RES S curve-disconnect'!BG$13+'Res-Appliance class'!$E32*'RES S curve-disconnect'!BG$18","v":27499.869459438785},{"$f":"'Res-Appliance class'!$B32*'RES S curve-disconnect'!BH$3+'Res-Appliance class'!$C32*'RES S curve-disconnect'!BH$8+'Res-Appliance class'!$D32*'RES S curve-disconnect'!BH$13+'Res-Appliance class'!$E32*'RES S curve-disconnect'!BH$18","v":30283.887556206726},{"$f":"'Res-Appliance class'!$B32*'RES S curve-disconnect'!BI$3+'Res-Appliance class'!$C32*'RES S curve-disconnect'!BI$8+'Res-Appliance class'!$D32*'RES S curve-disconnect'!BI$13+'Res-Appliance class'!$E32*'RES S curve-disconnect'!BI$18","v":34315.514064909374},{"$f":"'Res-Appliance class'!$B32*'RES S curve-disconnect'!BJ$3+'Res-Appliance class'!$C32*'RES S curve-disconnect'!BJ$8+'Res-Appliance class'!$D32*'RES S curve-disconnect'!BJ$13+'Res-Appliance class'!$E32*'RES S curve-disconnect'!BJ$18","v":40232.251109055003},{"$f":"'Res-Appliance class'!$B32*'RES S curve-disconnect'!BK$3+'Res-Appliance class'!$C32*'RES S curve-disconnect'!BK$8+'Res-Appliance class'!$D32*'RES S curve-disconnect'!BK$13+'Res-Appliance class'!$E32*'RES S curve-disconnect'!BK$18","v":48982.119030251153},{"$f":"'Res-Appliance class'!$B32*'RES S curve-disconnect'!BL$3+'Res-Appliance class'!$C32*'RES S curve-disconnect'!BL$8+'Res-Appliance class'!$D32*'RES S curve-disconnect'!BL$13+'Res-Appliance class'!$E32*'RES S curve-disconnect'!BL$18","v":-1161.1722622678205},{"$f":"'Res-Appliance class'!$B32*'RES S curve-disconnect'!BM$3+'Res-Appliance class'!$C32*'RES S curve-disconnect'!BM$8+'Res-Appliance class'!$D32*'RES S curve-disconnect'!BM$13+'Res-Appliance class'!$E32*'RES S curve-disconnect'!BM$18","v":-1150.3515122398028},{"$f":"'Res-Appliance class'!$B32*'RES S curve-disconnect'!BN$3+'Res-Appliance class'!$C32*'RES S curve-disconnect'!BN$8+'Res-Appliance class'!$D32*'RES S curve-disconnect'!BN$13+'Res-Appliance class'!$E32*'RES S curve-disconnect'!BN$18","v":-1143.5660281029907},{"$f":"'Res-Appliance class'!$B32*'RES S curve-disconnect'!BO$3+'Res-Appliance class'!$C32*'RES S curve-disconnect'!BO$8+'Res-Appliance class'!$D32*'RES S curve-disconnect'!BO$13+'Res-Appliance class'!$E32*'RES S curve-disconnect'!BO$18","v":-1128.7491092378471},{"$f":"'Res-Appliance class'!$B32*'RES S curve-disconnect'!BP$3+'Res-Appliance class'!$C32*'RES S curve-disconnect'!BP$8+'Res-Appliance class'!$D32*'RES S curve-disconnect'!BP$13+'Res-Appliance class'!$E32*'RES S curve-disconnect'!BP$18","v":-1117.9673029921967},{"$f":"'Res-Appliance class'!$B32*'RES S curve-disconnect'!BQ$3+'Res-Appliance class'!$C32*'RES S curve-disconnect'!BQ$8+'Res-Appliance class'!$D32*'RES S curve-disconnect'!BQ$13+'Res-Appliance class'!$E32*'RES S curve-disconnect'!BQ$18","v":-1107.1983255202497},{"$f":"'Res-Appliance class'!$B32*'RES S curve-disconnect'!BR$3+'Res-Appliance class'!$C32*'RES S curve-disconnect'!BR$8+'Res-Appliance class'!$D32*'RES S curve-disconnect'!BR$13+'Res-Appliance class'!$E32*'RES S curve-disconnect'!BR$18","v":-1100.4643092744516},{"$f":"'Res-Appliance class'!$B32*'RES S curve-disconnect'!BS$3+'Res-Appliance class'!$C32*'RES S curve-disconnect'!BS$8+'Res-Appliance class'!$D32*'RES S curve-disconnect'!BS$13+'Res-Appliance class'!$E32*'RES S curve-disconnect'!BS$18","v":-1085.698555507757},{"$f":"'Res-Appliance class'!$B32*'RES S curve-disconnect'!BT$3+'Res-Appliance class'!$C32*'RES S curve-disconnect'!BT$8+'Res-Appliance class'!$D32*'RES S curve-disconnect'!BT$13+'Res-Appliance class'!$E32*'RES S curve-disconnect'!BT$18","v":-1074.9676134287167},{"$f":"'Res-Appliance class'!$B32*'RES S curve-disconnect'!BU$3+'Res-Appliance class'!$C32*'RES S curve-disconnect'!BU$8+'Res-Appliance class'!$D32*'RES S curve-disconnect'!BU$13+'Res-Appliance class'!$E32*'RES S curve-disconnect'!BU$18","v":-1064.249201040577},{"$f":"'Res-Appliance class'!$B32*'RES S curve-disconnect'!BV$3+'Res-Appliance class'!$C32*'RES S curve-disconnect'!BV$8+'Res-Appliance class'!$D32*'RES S curve-disconnect'!BV$13+'Res-Appliance class'!$E32*'RES S curve-disconnect'!BV$18","v":-1057.5654526332198},{"$f":"'Res-Appliance class'!$B32*'RES S curve-disconnect'!BW$3+'Res-Appliance class'!$C32*'RES S curve-disconnect'!BW$8+'Res-Appliance class'!$D32*'RES S curve-disconnect'!BW$13+'Res-Appliance class'!$E32*'RES S curve-disconnect'!BW$18","v":-1042.849671285491},{"$f":"'Res-Appliance class'!$B32*'RES S curve-disconnect'!BX$3+'Res-Appliance class'!$C32*'RES S curve-disconnect'!BX$8+'Res-Appliance class'!$D32*'RES S curve-disconnect'!BX$13+'Res-Appliance class'!$E32*'RES S curve-disconnect'!BX$18","v":-1032.1684080203706},{"$f":"'Res-Appliance class'!$B32*'RES S curve-disconnect'!BY$3+'Res-Appliance class'!$C32*'RES S curve-disconnect'!BY$8+'Res-Appliance class'!$D32*'RES S curve-disconnect'!BY$13+'Res-Appliance class'!$E32*'RES S curve-disconnect'!BY$18","v":-1021.499382644148},{"$f":"'Res-Appliance class'!$B32*'RES S curve-disconnect'!BZ$3+'Res-Appliance class'!$C32*'RES S curve-disconnect'!BZ$8+'Res-Appliance class'!$D32*'RES S curve-disconnect'!BZ$13+'Res-Appliance class'!$E32*'RES S curve-disconnect'!BZ$18","v":-1014.8647312384239},{"$f":"'Res-Appliance class'!$B32*'RES S curve-disconnect'!CA$3+'Res-Appliance class'!$C32*'RES S curve-disconnect'!CA$8+'Res-Appliance class'!$D32*'RES S curve-disconnect'!CA$13+'Res-Appliance class'!$E32*'RES S curve-disconnect'!CA$18","v":-1000.1977586625133},{"$f":"'Res-Appliance class'!$B32*'RES S curve-disconnect'!CB$3+'Res-Appliance class'!$C32*'RES S curve-disconnect'!CB$8+'Res-Appliance class'!$D32*'RES S curve-disconnect'!CB$13+'Res-Appliance class'!$E32*'RES S curve-disconnect'!CB$18","v":-989.56501770869522},{"$f":"'Res-Appliance class'!$B32*'RES S curve-disconnect'!CC$3+'Res-Appliance class'!$C32*'RES S curve-disconnect'!CC$8+'Res-Appliance class'!$D32*'RES S curve-disconnect'!CC$13+'Res-Appliance class'!$E32*'RES S curve-disconnect'!CC$18","v":-978.94422994145157},{"$f":"'Res-Appliance class'!$B32*'RES S curve-disconnect'!CD$3+'Res-Appliance class'!$C32*'RES S curve-disconnect'!CD$8+'Res-Appliance class'!$D32*'RES S curve-disconnect'!CD$13+'Res-Appliance class'!$E32*'RES S curve-disconnect'!CD$18","v":-1145.8793386537598}]
["Glen Eira (C)",null,{"$f":"'Res-Appliance class'!$B33*'RES S curve-disconnect'!C$3+'Res-Appliance class'!$C33*'RES S curve-disconnect'!C$8+'Res-Appliance class'!$D33*'RES S curve-disconnect'!C$13+'Res-Appliance class'!$E33*'RES S curve-disconnect'!C$18","v":-4119.4997341432936},{"$f":"'Res-Appliance class'!$B33*'RES S curve-disconnect'!D$3+'Res-Appliance class'!$C33*'RES S curve-disconnect'!D$8+'Res-Appliance class'!$D33*'RES S curve-disconnect'!D$13+'Res-Appliance class'!$E33*'RES S curve-disconnect'!D$18","v":-4689.3803700217049},{"$f":"'Res-Appliance class'!$B33*'RES S curve-disconnect'!E$3+'Res-Appliance class'!$C33*'RES S curve-disconnect'!E$8+'Res-Appliance class'!$D33*'RES S curve-disconnect'!E$13+'Res-Appliance class'!$E33*'RES S curve-disconnect'!E$18","v":-4180.2274874410132},{"$f":"'Res-Appliance class'!$B33*'RES S curve-disconnect'!F$3+'Res-Appliance class'!$C33*'RES S curve-disconnect'!F$8+'Res-Appliance class'!$D33*'RES S curve-disconnect'!F$13+'Res-Appliance class'!$E33*'RES S curve-disconnect'!F$18","v":-4012.8150315776065},{"$f":"'Res-Appliance class'!$B33*'RES S curve-disconnect'!G$3+'Res-Appliance class'!$C33*'RES S curve-disconnect'!G$8+'Res-Appliance class'!$D33*'RES S curve-disconnect'!G$13+'Res-Appliance class'!$E33*'RES S curve-disconnect'!G$18","v":-5148.5290253231415},{"$f":"'Res-Appliance class'!$B33*'RES S curve-disconnect'!H$3+'Res-Appliance class'!$C33*'RES S curve-disconnect'!H$8+'Res-Appliance class'!$D33*'RES S curve-disconnect'!H$13+'Res-Appliance class'!$E33*'RES S curve-disconnect'!H$18","v":-5180.6427973231639},{"$f":"'Res-Appliance class'!$B33*'RES S curve-disconnect'!I$3+'Res-Appliance class'!$C33*'RES S curve-disconnect'!I$8+'Res-Appliance class'!$D33*'RES S curve-disconnect'!I$13+'Res-Appliance class'!$E33*'RES S curve-disconnect'!I$18","v":-4701.8557856011994},{"$f":"'Res-Appliance class'!$B33*'RES S curve-disconnect'!J$3+'Res-Appliance class'!$C33*'RES S curve-disconnect'!J$8+'Res-Appliance class'!$D33*'RES S curve-disconnect'!J$13+'Res-Appliance class'!$E33*'RES S curve-disconnect'!J$18","v":-5009.5045876675349},{"$f":"'Res-Appliance class'!$B33*'RES S curve-disconnect'!K$3+'Res-Appliance class'!$C33*'RES S curve-disconnect'!K$8+'Res-Appliance class'!$D33*'RES S curve-disconnect'!K$13+'Res-Appliance class'!$E33*'RES S curve-disconnect'!K$18","v":-4154.7033527959657},{"$f":"'Res-Appliance class'!$B33*'RES S curve-disconnect'!L$3+'Res-Appliance class'!$C33*'RES S curve-disconnect'!L$8+'Res-Appliance class'!$D33*'RES S curve-disconnect'!L$13+'Res-Appliance class'!$E33*'RES S curve-disconnect'!L$18","v":-4551.8302980918961},{"$f":"'Res-Appliance class'!$B33*'RES S curve-disconnect'!M$3+'Res-Appliance class'!$C33*'RES S curve-disconnect'!M$8+'Res-Appliance class'!$D33*'RES S curve-disconnect'!M$13+'Res-Appliance class'!$E33*'RES S curve-disconnect'!M$18","v":-5256.0427068394329},{"$f":"'Res-Appliance class'!$B33*'RES S curve-disconnect'!N$3+'Res-Appliance class'!$C33*'RES S curve-disconnect'!N$8+'Res-Appliance class'!$D33*'RES S curve-disconnect'!N$13+'Res-Appliance class'!$E33*'RES S curve-disconnect'!N$18","v":-5329.7595092310639},{"$f":"'Res-Appliance class'!$B33*'RES S curve-disconnect'!O$3+'Res-Appliance class'!$C33*'RES S curve-disconnect'!O$8+'Res-Appliance class'!$D33*'RES S curve-disconnect'!O$13+'Res-Appliance class'!$E33*'RES S curve-disconnect'!O$18","v":-4716.1453796030219},{"$f":"'Res-Appliance class'!$B33*'RES S curve-disconnect'!P$3+'Res-Appliance class'!$C33*'RES S curve-disconnect'!P$8+'Res-Appliance class'!$D33*'RES S curve-disconnect'!P$13+'Res-Appliance class'!$E33*'RES S curve-disconnect'!P$18","v":-4230.2539950689697},{"$f":"'Res-Appliance class'!$B33*'RES S curve-disconnect'!Q$3+'Res-Appliance class'!$C33*'RES S curve-disconnect'!Q$8+'Res-Appliance class'!$D33*'RES S curve-disconnect'!Q$13+'Res-Appliance class'!$E33*'RES S curve-disconnect'!Q$18","v":-3492.1609233198669},{"$f":"'Res-Appliance class'!$B33*'RES S curve-disconnect'!R$3+'Res-Appliance class'!$C33*'RES S curve-disconnect'!R$8+'Res-Appliance class'!$D33*'RES S curve-disconnect'!R$13+'Res-Appliance class'!$E33*'RES S curve-disconnect'!R$18","v":-3077.250876797807},{"$f":"'Res-Appliance class'!$B33*'RES S curve-disconnect'!S$3+'Res-Appliance class'!$C33*'RES S curve-disconnect'!S$8+'Res-Appliance class'!$D33*'RES S curve-disconnect'!S$13+'Res-Appliance class'!$E33*'RES S curve-disconnect'!S$18","v":-2410.3741800244925},{"$f":"'Res-Appliance class'!$B33*'RES S curve-disconnect'!T$3+'Res-Appliance class'!$C33*'RES S curve-disconnect'!T$8+'Res-Appliance class'!$D33*'RES S curve-disconnect'!T$13+'Res-Appliance class'!$E33*'RES S curve-disconnect'!T$18","v":-2056.5420854165095},{"$f":"'Res-Appliance class'!$B33*'RES S curve-disconnect'!U$3+'Res-Appliance class'!$C33*'RES S curve-disconnect'!U$8+'Res-Appliance class'!$D33*'RES S curve-disconnect'!U$13+'Res-Appliance class'!$E33*'RES S curve-disconnect'!U$18","v":-1647.8296996997001},{"$f":"'Res-Appliance class'!$B33*'RES S curve-disconnect'!V$3+'Res-Appliance class'!$C33*'RES S curve-disconnect'!V$8+'Res-Appliance class'!$D33*'RES S curve-disconnect'!V$13+'Res-Appliance class'!$E33*'RES S curve-disconnect'!V$18","v":-1370.1377180132909},{"$f":"'Res-Appliance class'!$B33*'RES S curve-disconnect'!W$3+'Res-Appliance class'!$C33*'RES S curve-disconnect'!W$8+'Res-Appliance class'!$D33*'RES S curve-disconnect'!W$13+'Res-Appliance class'!$E33*'RES S curve-disconnect'!W$18","v":-1155.246150084628},{"$f":"'Res-Appliance class'!$B33*'RES S curve-disconnect'!X$3+'Res-Appliance class'!$C33*'RES S curve-disconnect'!X$8+'Res-Appliance class'!$D33*'RES S curve-disconnect'!X$13+'Res-Appliance class'!$E33*'RES S curve-disconnect'!X$18","v":-660.91031557477186},{"$f":"'Res-Appliance class'!$B33*'RES S curve-disconnect'!Y$3+'Res-Appliance class'!$C33*'RES S curve-disconnect'!Y$8+'Res-Appliance class'!$D33*'RES S curve-disconnect'!Y$13+'Res-Appliance class'!$E33*'RES S curve-disconnect'!Y$18","v":-160.09453327796984},{"$f":"'Res-Appliance class'!$B33*'RES S curve-disconnect'!Z$3+'Res-Appliance class'!$C33*'RES S curve-disconnect'!Z$8+'Res-Appliance class'!$D33*'RES S curve-disconnect'!Z$13+'Res-Appliance class'!$E33*'RES S curve-disconnect'!Z$18","v":176.7693333347284},{"$f":"'Res-Appliance class'!$B33*'RES S curve-disconnect'!AA$3+'Res-Appliance class'!$C33*'RES S curve-disconnect'!AA$8+'Res-Appliance class'!$D33*'RES S curve-disconnect'!AA$13+'Res-Appliance class'!$E33*'RES S curve-disconnect'!AA$18","v":514.31170135114291},{"$f":"'Res-Appliance class'!$B33*'RES S curve-disconnect'!AB$3+'Res-Appliance class'!$C33*'RES S curve-disconnect'!AB$8+'Res-Appliance class'!$D33*'RES S curve-disconnect'!AB$13+'Res-Appliance class'!$E33*'RES S curve-disconnect'!AB$18","v":782.66588086295758},{"$f":"'Res-Appliance class'!$B33*'RES S curve-disconnect'!AC$3+'Res-Appliance class'!$C33*'RES S curve-disconnect'!AC$8+'Res-Appliance class'!$D33*'RES S curve-disconnect'!AC$13+'Res-Appliance class'!$E33*'RES S curve-disconnect'!AC$18","v":1041.3698816145445},{"$f":"'Res-Appliance class'!$B33*'RES S curve-disconnect'!AD$3+'Res-Appliance class'!$C33*'RES S curve-disconnect'!AD$8+'Res-Appliance class'!$D33*'RES S curve-disconnect'!AD$13+'Res-Appliance class'!$E33*'RES S curve-disconnect'!AD$18","v":1278.115085584079},{"$f":"'Res-Appliance class'!$B33*'RES S curve-disconnect'!AE$3+'Res-Appliance class'!$C33*'RES S curve-disconnect'!AE$8+'Res-Appliance class'!$D33*'RES S curve-disconnect'!AE$13+'Res-Appliance class'!$E33*'RES S curve-disconnect'!AE$18","v":1528.2362578653469},{"$f":"'Res-Appliance class'!$B33*'RES S curve-disconnect'!AF$3+'Res-Appliance class'!$C33*'RES S curve-disconnect'!AF$8+'Res-Appliance class'!$D33*'RES S curve-disconnect'!AF$13+'Res-Appliance class'!$E33*'RES S curve-disconnect'!AF$18","v":1853.0045613052052},{"$f":"'Res-Appliance class'!$B33*'RES S curve-disconnect'!AG$3+'Res-Appliance class'!$C33*'RES S curve-disconnect'!AG$8+'Res-Appliance class'!$D33*'RES S curve-disconnect'!AG$13+'Res-Appliance class'!$E33*'RES S curve-disconnect'!AG$18","v":2082.0379700193148},{"$f":"'Res-Appliance class'!$B33*'RES S curve-disconnect'!AH$3+'Res-Appliance class'!$C33*'RES S curve-disconnect'!AH$8+'Res-Appliance class'!$D33*'RES S curve-disconnect'!AH$13+'Res-Appliance class'!$E33*'RES S curve-disconnect'!AH$18","v":2402.6237385051131},{"$f":"'Res-Appliance class'!$B33*'RES S curve-disconnect'!AI$3+'Res-Appliance class'!$C33*'RES S curve-disconnect'!AI$8+'Res-Appliance class'!$D33*'RES S curve-disconnect'!AI$13+'Res-Appliance class'!$E33*'RES S curve-disconnect'!AI$18","v":2692.3560788904697},{"$f":"'Res-Appliance class'!$B33*'RES S curve-disconnect'!AJ$3+'Res-Appliance class'!$C33*'RES S curve-disconnect'!AJ$8+'Res-Appliance class'!$D33*'RES S curve-disconnect'!AJ$13+'Res-Appliance class'!$E33*'RES S curve-disconnect'!AJ$18","v":2953.5094135894747},{"$f":"'Res-Appliance class'!$B33*'RES S curve-disconnect'!AK$3+'Res-Appliance class'!$C33*'RES S curve-disconnect'!AK$8+'Res-Appliance class'!$D33*'RES S curve-disconnect'!AK$13+'Res-Appliance class'!$E33*'RES S curve-disconnect'!AK$18","v":3230.8174055340837},{"$f":"'Res-Appliance class'!$B33*'RES S curve-disconnect'!AL$3+'Res-Appliance class'!$C33*'RES S curve-disconnect'!AL$8+'Res-Appliance class'!$D33*'RES S curve-disconnect'!AL$13+'Res-Appliance class'!$E33*'RES S curve-disconnect'!AL$18","v":2266.6143034779648},{"$f":"'Res-Appliance class'!$B33*'RES S curve-disconnect'!AM$3+'Res-Appliance class'!$C33*'RES S curve-disconnect'!AM$8+'Res-Appliance class'!$D33*'RES S curve-disconnect'!AM$13+'Res-Appliance class'!$E33*'RES S curve-disconnect'!AM$18","v":2142.6672804981363},{"$f":"'Res-Appliance class'!$B33*'RES S curve-disconnect'!AN$3+'Res-Appliance class'!$C33*'RES S curve-disconnect'!AN$8+'Res-Appliance class'!$D33*'RES S curve-disconnect'!AN$13+'Res-Appliance class'!$E33*'RES S curve-disconnect'!AN$18","v":2406.3211768985684},{"$f":"'Res-Appliance class'!$B33*'RES S curve-disconnect'!AO$3+'Res-Appliance class'!$C33*'RES S curve-disconnect'!AO$8+'Res-Appliance class'!$D33*'RES S curve-disconnect'!AO$13+'Res-Appliance class'!$E33*'RES S curve-disconnect'!AO$18","v":2727.73818110398},{"$f":"'Res-Appliance class'!$B33*'RES S curve-disconnect'!AP$3+'Res-Appliance class'!$C33*'RES S curve-disconnect'!AP$8+'Res-Appliance class'!$D33*'RES S curve-disconnect'!AP$13+'Res-Appliance class'!$E33*'RES S curve-disconnect'!AP$18","v":3024.0501198231},{"$f":"'Res-Appliance class'!$B33*'RES S curve-disconnect'!AQ$3+'Res-Appliance class'!$C33*'RES S curve-disconnect'!AQ$8+'Res-Appliance class'!$D33*'RES S curve-disconnect'!AQ$13+'Res-Appliance class'!$E33*'RES S curve-disconnect'!AQ$18","v":3343.6992431307522},{"$f":"'Res-Appliance class'!$B33*'RES S curve-disconnect'!AR$3+'Res-Appliance class'!$C33*'RES S curve-disconnect'!AR$8+'Res-Appliance class'!$D33*'RES S curve-disconnect'!AR$13+'Res-Appliance class'!$E33*'RES S curve-disconnect'!AR$18","v":3694.3132078533199},{"$f":"'Res-Appliance class'!$B33*'RES S curve-disconnect'!AS$3+'Res-Appliance class'!$C33*'RES S curve-disconnect'!AS$8+'Res-Appliance class'!$D33*'RES S curve-disconnect'!AS$13+'Res-Appliance class'!$E33*'RES S curve-disconnect'!AS$18","v":4087.6627910274683},{"$f":"'Res-Appliance class'!$B33*'RES S curve-disconnect'!AT$3+'Res-Appliance class'!$C33*'RES S curve-disconnect'!AT$8+'Res-Appliance class'!$D33*'RES S curve-disconnect'!AT$13+'Res-Appliance class'!$E33*'RES S curve-disconnect'!AT$18","v":4527.2430280220142},{"$f":"'Res-Appliance class'!$B33*'RES S curve-disconnect'!AU$3+'Res-Appliance class'!$C33*'RES S curve-disconnect'!AU$8+'Res-Appliance class'!$D33*'RES S curve-disconnect'!AU$13+'Res-Appliance class'!$E33*'RES S curve-disconnect'!AU$18","v":5036.2986381177834},{"$f":"'Res-Appliance class'!$B33*'RES S curve-disconnect'!AV$3+'Res-Appliance class'!$C33*'RES S curve-disconnect'!AV$8+'Res-Appliance class'!$D33*'RES S curve-disconnect'!AV$13+'Res-Appliance class'!$E33*'RES S curve-disconnect'!AV$18","v":5616.4619642401276},{"$f":"'Res-Appliance class'!$B33*'RES S curve-disconnect'!AW$3+'Res-Appliance class'!$C33*'RES S curve-disconnect'!AW$8+'Res-Appliance class'!$D33*'RES S curve-disconnect'!AW$13+'Res-Appliance class'!$E33*'RES S curve-disconnect'!AW$18","v":6283.0772287721129},{"$f":"'Res-Appliance class'!$B33*'RES S curve-disconnect'!AX$3+'Res-Appliance class'!$C33*'RES S curve-disconnect'!AX$8+'Res-Appliance class'!$D33*'RES S curve-disconnect'!AX$13+'Res-Appliance class'!$E33*'RES S curve-disconnect'!AX$18","v":7042.2155310067155},{"$f":"'Res-Appliance class'!$B33*'RES S curve-disconnect'!AY$3+'Res-Appliance class'!$C33*'RES S curve-disconnect'!AY$8+'Res-Appliance class'!$D33*'RES S curve-disconnect'!AY$13+'Res-Appliance class'!$E33*'RES S curve-disconnect'!AY$18","v":7918.4063345971808},{"$f":"'Res-Appliance class'!$B33*'RES S curve-disconnect'!AZ$3+'Res-Appliance class'!$C33*'RES S curve-disconnect'!AZ$8+'Res-Appliance class'!$D33*'RES S curve-disconnect'!AZ$13+'Res-Appliance class'!$E33*'RES S curve-disconnect'!AZ$18","v":8919.2509472395341},{"$f":"'Res-Appliance class'!$B33*'RES S curve-disconnect'!BA$3+'Res-Appliance class'!$C33*'RES S curve-disconnect'!BA$8+'Res-Appliance class'!$D33*'RES S curve-disconnect'!BA$13+'Res-Appliance class'!$E33*'RES S curve-disconnect'!BA$18","v":10077.795005170638},{"$f":"'Res-Appliance class'!$B33*'RES S curve-disconnect'!BB$3+'Res-Appliance class'!$C33*'RES S curve-disconnect'!BB$8+'Res-Appliance class'!$D33*'RES S curve-disconnect'!BB$13+'Res-Appliance class'!$E33*'RES S curve-disconnect'!BB$18","v":11430.410310498066},{"$f":"'Res-Appliance class'!$B33*'RES S curve-disconnect'!BC$3+'Res-Appliance class'!$C33*'RES S curve-disconnect'!BC$8+'Res-Appliance class'!$D33*'RES S curve-disconnect'!BC$13+'Res-Appliance class'!$E33*'RES S curve-disconnect'!BC$18","v":13043.255491497073},{"$f":"'Res-Appliance class'!$B33*'RES S curve-disconnect'!BD$3+'Res-Appliance class'!$C33*'RES S curve-disconnect'!BD$8+'Res-Appliance class'!$D33*'RES S curve-disconnect'!BD$13+'Res-Appliance class'!$E33*'RES S curve-disconnect'!BD$18","v":14596.759419622715},{"$f":"'Res-Appliance class'!$B33*'RES S curve-disconnect'!BE$3+'Res-Appliance class'!$C33*'RES S curve-disconnect'!BE$8+'Res-Appliance class'!$D33*'RES S curve-disconnect'!BE$13+'Res-Appliance class'!$E33*'RES S curve-disconnect'!BE$18","v":16015.871923500372},{"$f":"'Res-Appliance class'!$B33*'RES S curve-disconnect'!BF$3+'Res-Appliance class'!$C33*'RES S curve-disconnect'!BF$8+'Res-Appliance class'!$D33*'RES S curve-disconnect'!BF$13+'Res-Appliance class'!$E33*'RES S curve-disconnect'!BF$18","v":17468.127542578877},{"$f":"'Res-Appliance class'!$B33*'RES S curve-disconnect'!BG$3+'Res-Appliance class'!$C33*'RES S curve-disconnect'!BG$8+'Res-Appliance class'!$D33*'RES S curve-disconnect'!BG$13+'Res-Appliance class'!$E33*'RES S curve-disconnect'!BG$18","v":19112.658720340773},{"$f":"'Res-Appliance class'!$B33*'RES S curve-disconnect'!BH$3+'Res-Appliance class'!$C33*'RES S curve-disconnect'!BH$8+'Res-Appliance class'!$D33*'RES S curve-disconnect'!BH$13+'Res-Appliance class'!$E33*'RES S curve-disconnect'!BH$18","v":21064.274380568095},{"$f":"'Res-Appliance class'!$B33*'RES S curve-disconnect'!BI$3+'Res-Appliance class'!$C33*'RES S curve-disconnect'!BI$8+'Res-Appliance class'!$D33*'RES S curve-disconnect'!BI$13+'Res-Appliance class'!$E33*'RES S curve-disconnect'!BI$18","v":23892.732352384675},{"$f":"'Res-Appliance class'!$B33*'RES S curve-disconnect'!BJ$3+'Res-Appliance class'!$C33*'RES S curve-disconnect'!BJ$8+'Res-Appliance class'!$D33*'RES S curve-disconnect'!BJ$13+'Res-Appliance class'!$E33*'RES S curve-disconnect'!BJ$18","v":28032.414923279648},{"$f":"'Res-Appliance class'!$B33*'RES S curve-disconnect'!BK$3+'Res-Appliance class'!$C33*'RES S curve-disconnect'!BK$8+'Res-Appliance class'!$D33*'RES S curve-disconnect'!BK$13+'Res-Appliance class'!$E33*'RES S curve-disconnect'!BK$18","v":34137.695513693317},{"$f":"'Res-Appliance class'!$B33*'RES S curve-disconnect'!BL$3+'Res-Appliance class'!$C33*'RES S curve-disconnect'!BL$8+'Res-Appliance class'!$D33*'RES S curve-disconnect'!BL$13+'Res-Appliance class'!$E33*'RES S curve-disconnect'!BL$18","v":-1257.3575039704251},{"$f":"'Res-Appliance class'!$B33*'RES S curve-disconnect'!BM$3+'Res-Appliance class'!$C33*'RES S curve-disconnect'!BM$8+'Res-Appliance class'!$D33*'RES S curve-disconnect'!BM$13+'Res-Appliance class'!$E33*'RES S curve-disconnect'!BM$18","v":-1249.5994044336112},{"$f":"'Res-Appliance class'!$B33*'RES S curve-disconnect'!BN$3+'Res-Appliance class'!$C33*'RES S curve-disconnect'!BN$8+'Res-Appliance class'!$D33*'RES S curve-disconnect'!BN$13+'Res-Appliance class'!$E33*'RES S curve-disconnect'!BN$18","v":-1245.8745915172631},{"$f":"'Res-Appliance class'!$B33*'RES S curve-disconnect'!BO$3+'Res-Appliance class'!$C33*'RES S curve-disconnect'!BO$8+'Res-Appliance class'!$D33*'RES S curve-disconnect'!BO$13+'Res-Appliance class'!$E33*'RES S curve-disconnect'!BO$18","v":-1234.116374504395},{"$f":"'Res-Appliance class'!$B33*'RES S curve-disconnect'!BP$3+'Res-Appliance class'!$C33*'RES S curve-disconnect'!BP$8+'Res-Appliance class'!$D33*'RES S curve-disconnect'!BP$13+'Res-Appliance class'!$E33*'RES S curve-disconnect'!BP$18","v":-1226.3913105900233},{"$f":"'Res-Appliance class'!$B33*'RES S curve-disconnect'!BQ$3+'Res-Appliance class'!$C33*'RES S curve-disconnect'!BQ$8+'Res-Appliance class'!$D33*'RES S curve-disconnect'!BQ$13+'Res-Appliance class'!$E33*'RES S curve-disconnect'!BQ$18","v":-1218.6771257205228},{"$f":"'Res-Appliance class'!$B33*'RES S curve-disconnect'!BR$3+'Res-Appliance class'!$C33*'RES S curve-disconnect'!BR$8+'Res-Appliance class'!$D33*'RES S curve-disconnect'!BR$13+'Res-Appliance class'!$E33*'RES S curve-disconnect'!BR$18","v":-1214.9959620858053},{"$f":"'Res-Appliance class'!$B33*'RES S curve-disconnect'!BS$3+'Res-Appliance class'!$C33*'RES S curve-disconnect'!BS$8+'Res-Appliance class'!$D33*'RES S curve-disconnect'!BS$13+'Res-Appliance class'!$E33*'RES S curve-disconnect'!BS$18","v":-1203.2811306219205},{"$f":"'Res-Appliance class'!$B33*'RES S curve-disconnect'!BT$3+'Res-Appliance class'!$C33*'RES S curve-disconnect'!BT$8+'Res-Appliance class'!$D33*'RES S curve-disconnect'!BT$13+'Res-Appliance class'!$E33*'RES S curve-disconnect'!BT$18","v":-1195.5991901664661},{"$f":"'Res-Appliance class'!$B33*'RES S curve-disconnect'!BU$3+'Res-Appliance class'!$C33*'RES S curve-disconnect'!BU$8+'Res-Appliance class'!$D33*'RES S curve-disconnect'!BU$13+'Res-Appliance class'!$E33*'RES S curve-disconnect'!BU$18","v":-1187.9278682980153},{"$f":"'Res-Appliance class'!$B33*'RES S curve-disconnect'!BV$3+'Res-Appliance class'!$C33*'RES S curve-disconnect'!BV$8+'Res-Appliance class'!$D33*'RES S curve-disconnect'!BV$13+'Res-Appliance class'!$E33*'RES S curve-disconnect'!BV$18","v":-1184.2893088283713},{"$f":"'Res-Appliance class'!$B33*'RES S curve-disconnect'!BW$3+'Res-Appliance class'!$C33*'RES S curve-disconnect'!BW$8+'Res-Appliance class'!$D33*'RES S curve-disconnect'!BW$13+'Res-Appliance class'!$E33*'RES S curve-disconnect'!BW$18","v":-1172.6168243052175},{"$f":"'Res-Appliance class'!$B33*'RES S curve-disconnect'!BX$3+'Res-Appliance class'!$C33*'RES S curve-disconnect'!BX$8+'Res-Appliance class'!$D33*'RES S curve-disconnect'!BX$13+'Res-Appliance class'!$E33*'RES S curve-disconnect'!BX$18","v":-1164.9769751676054},{"$f":"'Res-Appliance class'!$B33*'RES S curve-disconnect'!BY$3+'Res-Appliance class'!$C33*'RES S curve-disconnect'!BY$8+'Res-Appliance class'!$D33*'RES S curve-disconnect'!BY$13+'Res-Appliance class'!$E33*'RES S curve-disconnect'!BY$18","v":-1157.3474905854441},{"$f":"'Res-Appliance class'!$B33*'RES S curve-disconnect'!BZ$3+'Res-Appliance class'!$C33*'RES S curve-disconnect'!BZ$8+'Res-Appliance class'!$D33*'RES S curve-disconnect'!BZ$13+'Res-Appliance class'!$E33*'RES S curve-disconnect'!BZ$18","v":-1153.7505159518146},{"$f":"'Res-Appliance class'!$B33*'RES S curve-disconnect'!CA$3+'Res-Appliance class'!$C33*'RES S curve-disconnect'!CA$8+'Res-Appliance class'!$D33*'RES S curve-disconnect'!CA$13+'Res-Appliance class'!$E33*'RES S curve-disconnect'!CA$18","v":-1142.1193653856853},{"$f":"'Res-Appliance class'!$B33*'RES S curve-disconnect'!CB$3+'Res-Appliance class'!$C33*'RES S curve-disconnect'!CB$8+'Res-Appliance class'!$D33*'RES S curve-disconnect'!CB$13+'Res-Appliance class'!$E33*'RES S curve-disconnect'!CB$18","v":-1134.5206008874707},{"$f":"'Res-Appliance class'!$B33*'RES S curve-disconnect'!CC$3+'Res-Appliance class'!$C33*'RES S curve-disconnect'!CC$8+'Res-Appliance class'!$D33*'RES S curve-disconnect'!CC$13+'Res-Appliance class'!$E33*'RES S curve-disconnect'!CC$18","v":-1126.9319531785741},{"$f":"'Res-Appliance class'!$B33*'RES S curve-disconnect'!CD$3+'Res-Appliance class'!$C33*'RES S curve-disconnect'!CD$8+'Res-Appliance class'!$D33*'RES S curve-disconnect'!CD$13+'Res-Appliance class'!$E33*'RES S curve-disconnect'!CD$18","v":-1241.9773000866599}]
["Greater Dandenong (C)",null,{"$f":"'Res-Appliance class'!$B34*'RES S curve-disconnect'!C$3+'Res-Appliance class'!$C34*'RES S curve-disconnect'!C$8+'Res-Appliance class'!$D34*'RES S curve-disconnect'!C$13+'Res-Appliance class'!$E34*'RES S curve-disconnect'!C$18","v":-4490.5758542473841},{"$f":"'Res-Appliance class'!$B34*'RES S curve-disconnect'!D$3+'Res-Appliance class'!$C34*'RES S curve-disconnect'!D$8+'Res-Appliance class'!$D34*'RES S curve-disconnect'!D$13+'Res-Appliance class'!$E34*'RES S curve-disconnect'!D$18","v":-5083.8974902115642},{"$f":"'Res-Appliance class'!$B34*'RES S curve-disconnect'!E$3+'Res-Appliance class'!$C34*'RES S curve-disconnect'!E$8+'Res-Appliance class'!$D34*'RES S curve-disconnect'!E$13+'Res-Appliance class'!$E34*'RES S curve-disconnect'!E$18","v":-4554.6028283375217},{"$f":"'Res-Appliance class'!$B34*'RES S curve-disconnect'!F$3+'Res-Appliance class'!$C34*'RES S curve-disconnect'!F$8+'Res-Appliance class'!$D34*'RES S curve-disconnect'!F$13+'Res-Appliance class'!$E34*'RES S curve-disconnect'!F$18","v":-4378.9601622205191},{"$f":"'Res-Appliance class'!$B34*'RES S curve-disconnect'!G$3+'Res-Appliance class'!$C34*'RES S curve-disconnect'!G$8+'Res-Appliance class'!$D34*'RES S curve-disconnect'!G$13+'Res-Appliance class'!$E34*'RES S curve-disconnect'!G$18","v":-5529.5084500299326},{"$f":"'Res-Appliance class'!$B34*'RES S curve-disconnect'!H$3+'Res-Appliance class'!$C34*'RES S curve-disconnect'!H$8+'Res-Appliance class'!$D34*'RES S curve-disconnect'!H$13+'Res-Appliance class'!$E34*'RES S curve-disconnect'!H$18","v":-5576.4913976997432},{"$f":"'Res-Appliance class'!$B34*'RES S curve-disconnect'!I$3+'Res-Appliance class'!$C34*'RES S curve-disconnect'!I$8+'Res-Appliance class'!$D34*'RES S curve-disconnect'!I$13+'Res-Appliance class'!$E34*'RES S curve-disconnect'!I$18","v":-5079.125678250266},{"$f":"'Res-Appliance class'!$B34*'RES S curve-disconnect'!J$3+'Res-Appliance class'!$C34*'RES S curve-disconnect'!J$8+'Res-Appliance class'!$D34*'RES S curve-disconnect'!J$13+'Res-Appliance class'!$E34*'RES S curve-disconnect'!J$18","v":-5410.8806574393593},{"$f":"'Res-Appliance class'!$B34*'RES S curve-disconnect'!K$3+'Res-Appliance class'!$C34*'RES S curve-disconnect'!K$8+'Res-Appliance class'!$D34*'RES S curve-disconnect'!K$13+'Res-Appliance class'!$E34*'RES S curve-disconnect'!K$18","v":-4521.7507077568534},{"$f":"'Res-Appliance class'!$B34*'RES S curve-disconnect'!L$3+'Res-Appliance class'!$C34*'RES S curve-disconnect'!L$8+'Res-Appliance class'!$D34*'RES S curve-disconnect'!L$13+'Res-Appliance class'!$E34*'RES S curve-disconnect'!L$18","v":-4934.0010967103353},{"$f":"'Res-Appliance class'!$B34*'RES S curve-disconnect'!M$3+'Res-Appliance class'!$C34*'RES S curve-disconnect'!M$8+'Res-Appliance class'!$D34*'RES S curve-disconnect'!M$13+'Res-Appliance class'!$E34*'RES S curve-disconnect'!M$18","v":-5663.6166104114},{"$f":"'Res-Appliance class'!$B34*'RES S curve-disconnect'!N$3+'Res-Appliance class'!$C34*'RES S curve-disconnect'!N$8+'Res-Appliance class'!$D34*'RES S curve-disconnect'!N$13+'Res-Appliance class'!$E34*'RES S curve-disconnect'!N$18","v":-5738.8092413775121},{"$f":"'Res-Appliance class'!$B34*'RES S curve-disconnect'!O$3+'Res-Appliance class'!$C34*'RES S curve-disconnect'!O$8+'Res-Appliance class'!$D34*'RES S curve-disconnect'!O$13+'Res-Appliance class'!$E34*'RES S curve-disconnect'!O$18","v":-5101.4595348492085},{"$f":"'Res-Appliance class'!$B34*'RES S curve-disconnect'!P$3+'Res-Appliance class'!$C34*'RES S curve-disconnect'!P$8+'Res-Appliance class'!$D34*'RES S curve-disconnect'!P$13+'Res-Appliance class'!$E34*'RES S curve-disconnect'!P$18","v":-4596.58755894153},{"$f":"'Res-Appliance class'!$B34*'RES S curve-disconnect'!Q$3+'Res-Appliance class'!$C34*'RES S curve-disconnect'!Q$8+'Res-Appliance class'!$D34*'RES S curve-disconnect'!Q$13+'Res-Appliance class'!$E34*'RES S curve-disconnect'!Q$18","v":-3830.2247675829417},{"$f":"'Res-Appliance class'!$B34*'RES S curve-disconnect'!R$3+'Res-Appliance class'!$C34*'RES S curve-disconnect'!R$8+'Res-Appliance class'!$D34*'RES S curve-disconnect'!R$13+'Res-Appliance class'!$E34*'RES S curve-disconnect'!R$18","v":-3398.8958909165285},{"$f":"'Res-Appliance class'!$B34*'RES S curve-disconnect'!S$3+'Res-Appliance class'!$C34*'RES S curve-disconnect'!S$8+'Res-Appliance class'!$D34*'RES S curve-disconnect'!S$13+'Res-Appliance class'!$E34*'RES S curve-disconnect'!S$18","v":-2707.4742834963408},{"$f":"'Res-Appliance class'!$B34*'RES S curve-disconnect'!T$3+'Res-Appliance class'!$C34*'RES S curve-disconnect'!T$8+'Res-Appliance class'!$D34*'RES S curve-disconnect'!T$13+'Res-Appliance class'!$E34*'RES S curve-disconnect'!T$18","v":-2337.5979293301389},{"$f":"'Res-Appliance class'!$B34*'RES S curve-disconnect'!U$3+'Res-Appliance class'!$C34*'RES S curve-disconnect'!U$8+'Res-Appliance class'!$D34*'RES S curve-disconnect'!U$13+'Res-Appliance class'!$E34*'RES S curve-disconnect'!U$18","v":-1912.0286047834957},{"$f":"'Res-Appliance class'!$B34*'RES S curve-disconnect'!V$3+'Res-Appliance class'!$C34*'RES S curve-disconnect'!V$8+'Res-Appliance class'!$D34*'RES S curve-disconnect'!V$13+'Res-Appliance class'!$E34*'RES S curve-disconnect'!V$18","v":-1622.6404578924717},{"$f":"'Res-Appliance class'!$B34*'RES S curve-disconnect'!W$3+'Res-Appliance class'!$C34*'RES S curve-disconnect'!W$8+'Res-Appliance class'!$D34*'RES S curve-disconnect'!W$13+'Res-Appliance class'!$E34*'RES S curve-disconnect'!W$18","v":-1398.849793497948},{"$f":"'Res-Appliance class'!$B34*'RES S curve-disconnect'!X$3+'Res-Appliance class'!$C34*'RES S curve-disconnect'!X$8+'Res-Appliance class'!$D34*'RES S curve-disconnect'!X$13+'Res-Appliance class'!$E34*'RES S curve-disconnect'!X$18","v":-884.87183924267686},{"$f":"'Res-Appliance class'!$B34*'RES S curve-disconnect'!Y$3+'Res-Appliance class'!$C34*'RES S curve-disconnect'!Y$8+'Res-Appliance class'!$D34*'RES S curve-disconnect'!Y$13+'Res-Appliance class'!$E34*'RES S curve-disconnect'!Y$18","v":-364.38232715544245},{"$f":"'Res-Appliance class'!$B34*'RES S curve-disconnect'!Z$3+'Res-Appliance class'!$C34*'RES S curve-disconnect'!Z$8+'Res-Appliance class'!$D34*'RES S curve-disconnect'!Z$13+'Res-Appliance class'!$E34*'RES S curve-disconnect'!Z$18","v":-13.919472480758373},{"$f":"'Res-Appliance class'!$B34*'RES S curve-disconnect'!AA$3+'Res-Appliance class'!$C34*'RES S curve-disconnect'!AA$8+'Res-Appliance class'!$D34*'RES S curve-disconnect'!AA$13+'Res-Appliance class'!$E34*'RES S curve-disconnect'!AA$18","v":337.00191799691521},{"$f":"'Res-Appliance class'!$B34*'RES S curve-disconnect'!AB$3+'Res-Appliance class'!$C34*'RES S curve-disconnect'!AB$8+'Res-Appliance class'!$D34*'RES S curve-disconnect'!AB$13+'Res-Appliance class'!$E34*'RES S curve-disconnect'!AB$18","v":615.72661310930562},{"$f":"'Res-Appliance class'!$B34*'RES S curve-disconnect'!AC$3+'Res-Appliance class'!$C34*'RES S curve-disconnect'!AC$8+'Res-Appliance class'!$D34*'RES S curve-disconnect'!AC$13+'Res-Appliance class'!$E34*'RES S curve-disconnect'!AC$18","v":884.28965207597935},{"$f":"'Res-Appliance class'!$B34*'RES S curve-disconnect'!AD$3+'Res-Appliance class'!$C34*'RES S curve-disconnect'!AD$8+'Res-Appliance class'!$D34*'RES S curve-disconnect'!AD$13+'Res-Appliance class'!$E34*'RES S curve-disconnect'!AD$18","v":1130.1214991963034},{"$f":"'Res-Appliance class'!$B34*'RES S curve-disconnect'!AE$3+'Res-Appliance class'!$C34*'RES S curve-disconnect'!AE$8+'Res-Appliance class'!$D34*'RES S curve-disconnect'!AE$13+'Res-Appliance class'!$E34*'RES S curve-disconnect'!AE$18","v":1389.4251498454137},{"$f":"'Res-Appliance class'!$B34*'RES S curve-disconnect'!AF$3+'Res-Appliance class'!$C34*'RES S curve-disconnect'!AF$8+'Res-Appliance class'!$D34*'RES S curve-disconnect'!AF$13+'Res-Appliance class'!$E34*'RES S curve-disconnect'!AF$18","v":1726.2620637526254},{"$f":"'Res-Appliance class'!$B34*'RES S curve-disconnect'!AG$3+'Res-Appliance class'!$C34*'RES S curve-disconnect'!AG$8+'Res-Appliance class'!$D34*'RES S curve-disconnect'!AG$13+'Res-Appliance class'!$E34*'RES S curve-disconnect'!AG$18","v":1963.0579372418281},{"$f":"'Res-Appliance class'!$B34*'RES S curve-disconnect'!AH$3+'Res-Appliance class'!$C34*'RES S curve-disconnect'!AH$8+'Res-Appliance class'!$D34*'RES S curve-disconnect'!AH$13+'Res-Appliance class'!$E34*'RES S curve-disconnect'!AH$18","v":2295.1960680825173},{"$f":"'Res-Appliance class'!$B34*'RES S curve-disconnect'!AI$3+'Res-Appliance class'!$C34*'RES S curve-disconnect'!AI$8+'Res-Appliance class'!$D34*'RES S curve-disconnect'!AI$13+'Res-Appliance class'!$E34*'RES S curve-disconnect'!AI$18","v":2594.7209261586427},{"$f":"'Res-Appliance class'!$B34*'RES S curve-disconnect'!AJ$3+'Res-Appliance class'!$C34*'RES S curve-disconnect'!AJ$8+'Res-Appliance class'!$D34*'RES S curve-disconnect'!AJ$13+'Res-Appliance class'!$E34*'RES S curve-disconnect'!AJ$18","v":2864.8420457217517},{"$f":"'Res-Appliance class'!$B34*'RES S curve-disconnect'!AK$3+'Res-Appliance class'!$C34*'RES S curve-disconnect'!AK$8+'Res-Appliance class'!$D34*'RES S curve-disconnect'!AK$13+'Res-Appliance class'!$E34*'RES S curve-disconnect'!AK$18","v":3151.6449667722695},{"$f":"'Res-Appliance class'!$B34*'RES S curve-disconnect'!AL$3+'Res-Appliance class'!$C34*'RES S curve-disconnect'!AL$8+'Res-Appliance class'!$D34*'RES S curve-disconnect'!AL$13+'Res-Appliance class'!$E34*'RES S curve-disconnect'!AL$18","v":2156.4604548095522},{"$f":"'Res-Appliance class'!$B34*'RES S curve-disconnect'!AM$3+'Res-Appliance class'!$C34*'RES S curve-disconnect'!AM$8+'Res-Appliance class'!$D34*'RES S curve-disconnect'!AM$13+'Res-Appliance class'!$E34*'RES S curve-disconnect'!AM$18","v":2027.6079786419834},{"$f":"'Res-Appliance class'!$B34*'RES S curve-disconnect'!AN$3+'Res-Appliance class'!$C34*'RES S curve-disconnect'!AN$8+'Res-Appliance class'!$D34*'RES S curve-disconnect'!AN$13+'Res-Appliance class'!$E34*'RES S curve-disconnect'!AN$18","v":2299.7865649945584},{"$f":"'Res-Appliance class'!$B34*'RES S curve-disconnect'!AO$3+'Res-Appliance class'!$C34*'RES S curve-disconnect'!AO$8+'Res-Appliance class'!$D34*'RES S curve-disconnect'!AO$13+'Res-Appliance class'!$E34*'RES S curve-disconnect'!AO$18","v":2632.0560296233034},{"$f":"'Res-Appliance class'!$B34*'RES S curve-disconnect'!AP$3+'Res-Appliance class'!$C34*'RES S curve-disconnect'!AP$8+'Res-Appliance class'!$D34*'RES S curve-disconnect'!AP$13+'Res-Appliance class'!$E34*'RES S curve-disconnect'!AP$18","v":2938.6591461328535},{"$f":"'Res-Appliance class'!$B34*'RES S curve-disconnect'!AQ$3+'Res-Appliance class'!$C34*'RES S curve-disconnect'!AQ$8+'Res-Appliance class'!$D34*'RES S curve-disconnect'!AQ$13+'Res-Appliance class'!$E34*'RES S curve-disconnect'!AQ$18","v":3269.1175943292278},{"$f":"'Res-Appliance class'!$B34*'RES S curve-disconnect'!AR$3+'Res-Appliance class'!$C34*'RES S curve-disconnect'!AR$8+'Res-Appliance class'!$D34*'RES S curve-disconnect'!AR$13+'Res-Appliance class'!$E34*'RES S curve-disconnect'!AR$18","v":3631.748465677852},{"$f":"'Res-Appliance class'!$B34*'RES S curve-disconnect'!AS$3+'Res-Appliance class'!$C34*'RES S curve-disconnect'!AS$8+'Res-Appliance class'!$D34*'RES S curve-disconnect'!AS$13+'Res-Appliance class'!$E34*'RES S curve-disconnect'!AS$18","v":4038.6148746055746},{"$f":"'Res-Appliance class'!$B34*'RES S curve-disconnect'!AT$3+'Res-Appliance class'!$C34*'RES S curve-disconnect'!AT$8+'Res-Appliance class'!$D34*'RES S curve-disconnect'!AT$13+'Res-Appliance class'!$E34*'RES S curve-disconnect'!AT$18","v":4493.4857746898824},{"$f":"'Res-Appliance class'!$B34*'RES S curve-disconnect'!AU$3+'Res-Appliance class'!$C34*'RES S curve-disconnect'!AU$8+'Res-Appliance class'!$D34*'RES S curve-disconnect'!AU$13+'Res-Appliance class'!$E34*'RES S curve-disconnect'!AU$18","v":5020.0051129396734},{"$f":"'Res-Appliance class'!$B34*'RES S curve-disconnect'!AV$3+'Res-Appliance class'!$C34*'RES S curve-disconnect'!AV$8+'Res-Appliance class'!$D34*'RES S curve-disconnect'!AV$13+'Res-Appliance class'!$E34*'RES S curve-disconnect'!AV$18","v":5620.3017006909649},{"$f":"'Res-Appliance class'!$B34*'RES S curve-disconnect'!AW$3+'Res-Appliance class'!$C34*'RES S curve-disconnect'!AW$8+'Res-Appliance class'!$D34*'RES S curve-disconnect'!AW$13+'Res-Appliance class'!$E34*'RES S curve-disconnect'!AW$18","v":6310.1537746573713},{"$f":"'Res-Appliance class'!$B34*'RES S curve-disconnect'!AX$3+'Res-Appliance class'!$C34*'RES S curve-disconnect'!AX$8+'Res-Appliance class'!$D34*'RES S curve-disconnect'!AX$13+'Res-Appliance class'!$E34*'RES S curve-disconnect'!AX$18","v":7096.0359275915216},{"$f":"'Res-Appliance class'!$B34*'RES S curve-disconnect'!AY$3+'Res-Appliance class'!$C34*'RES S curve-disconnect'!AY$8+'Res-Appliance class'!$D34*'RES S curve-disconnect'!AY$13+'Res-Appliance class'!$E34*'RES S curve-disconnect'!AY$18","v":8002.9683781000003},{"$f":"'Res-Appliance class'!$B34*'RES S curve-disconnect'!AZ$3+'Res-Appliance class'!$C34*'RES S curve-disconnect'!AZ$8+'Res-Appliance class'!$D34*'RES S curve-disconnect'!AZ$13+'Res-Appliance class'!$E34*'RES S curve-disconnect'!AZ$18","v":9039.3025166722273},{"$f":"'Res-Appliance class'!$B34*'RES S curve-disconnect'!BA$3+'Res-Appliance class'!$C34*'RES S curve-disconnect'!BA$8+'Res-Appliance class'!$D34*'RES S curve-disconnect'!BA$13+'Res-Appliance class'!$E34*'RES S curve-disconnect'!BA$18","v":10239.18101187733},{"$f":"'Res-Appliance class'!$B34*'RES S curve-disconnect'!BB$3+'Res-Appliance class'!$C34*'RES S curve-disconnect'!BB$8+'Res-Appliance class'!$D34*'RES S curve-disconnect'!BB$13+'Res-Appliance class'!$E34*'RES S curve-disconnect'!BB$18","v":11640.509526658881},{"$f":"'Res-Appliance class'!$B34*'RES S curve-disconnect'!BC$3+'Res-Appliance class'!$C34*'RES S curve-disconnect'!BC$8+'Res-Appliance class'!$D34*'RES S curve-disconnect'!BC$13+'Res-Appliance class'!$E34*'RES S curve-disconnect'!BC$18","v":13311.512589918993},{"$f":"'Res-Appliance class'!$B34*'RES S curve-disconnect'!BD$3+'Res-Appliance class'!$C34*'RES S curve-disconnect'!BD$8+'Res-Appliance class'!$D34*'RES S curve-disconnect'!BD$13+'Res-Appliance class'!$E34*'RES S curve-disconnect'!BD$18","v":14922.236604315804},{"$f":"'Res-Appliance class'!$B34*'RES S curve-disconnect'!BE$3+'Res-Appliance class'!$C34*'RES S curve-disconnect'!BE$8+'Res-Appliance class'!$D34*'RES S curve-disconnect'!BE$13+'Res-Appliance class'!$E34*'RES S curve-disconnect'!BE$18","v":16394.025428193996},{"$f":"'Res-Appliance class'!$B34*'RES S curve-disconnect'!BF$3+'Res-Appliance class'!$C34*'RES S curve-disconnect'!BF$8+'Res-Appliance class'!$D34*'RES S curve-disconnect'!BF$13+'Res-Appliance class'!$E34*'RES S curve-disconnect'!BF$18","v":17900.066830626543},{"$f":"'Res-Appliance class'!$B34*'RES S curve-disconnect'!BG$3+'Res-Appliance class'!$C34*'RES S curve-disconnect'!BG$8+'Res-Appliance class'!$D34*'RES S curve-disconnect'!BG$13+'Res-Appliance class'!$E34*'RES S curve-disconnect'!BG$18","v":19605.043679765826},{"$f":"'Res-Appliance class'!$B34*'RES S curve-disconnect'!BH$3+'Res-Appliance class'!$C34*'RES S curve-disconnect'!BH$8+'Res-Appliance class'!$D34*'RES S curve-disconnect'!BH$13+'Res-Appliance class'!$E34*'RES S curve-disconnect'!BH$18","v":21628.652253162774},{"$f":"'Res-Appliance class'!$B34*'RES S curve-disconnect'!BI$3+'Res-Appliance class'!$C34*'RES S curve-disconnect'!BI$8+'Res-Appliance class'!$D34*'RES S curve-disconnect'!BI$13+'Res-Appliance class'!$E34*'RES S curve-disconnect'!BI$18","v":24561.14178800111},{"$f":"'Res-Appliance class'!$B34*'RES S curve-disconnect'!BJ$3+'Res-Appliance class'!$C34*'RES S curve-disconnect'!BJ$8+'Res-Appliance class'!$D34*'RES S curve-disconnect'!BJ$13+'Res-Appliance class'!$E34*'RES S curve-disconnect'!BJ$18","v":28854.44683539664},{"$f":"'Res-Appliance class'!$B34*'RES S curve-disconnect'!BK$3+'Res-Appliance class'!$C34*'RES S curve-disconnect'!BK$8+'Res-Appliance class'!$D34*'RES S curve-disconnect'!BK$13+'Res-Appliance class'!$E34*'RES S curve-disconnect'!BK$18","v":35188.315825780148},{"$f":"'Res-Appliance class'!$B34*'RES S curve-disconnect'!BL$3+'Res-Appliance class'!$C34*'RES S curve-disconnect'!BL$8+'Res-Appliance class'!$D34*'RES S curve-disconnect'!BL$13+'Res-Appliance class'!$E34*'RES S curve-disconnect'!BL$18","v":-1481.121146696463},{"$f":"'Res-Appliance class'!$B34*'RES S curve-disconnect'!BM$3+'Res-Appliance class'!$C34*'RES S curve-disconnect'!BM$8+'Res-Appliance class'!$D34*'RES S curve-disconnect'!BM$13+'Res-Appliance class'!$E34*'RES S curve-disconnect'!BM$18","v":-1473.0385165140556},{"$f":"'Res-Appliance class'!$B34*'RES S curve-disconnect'!BN$3+'Res-Appliance class'!$C34*'RES S curve-disconnect'!BN$8+'Res-Appliance class'!$D34*'RES S curve-disconnect'!BN$13+'Res-Appliance class'!$E34*'RES S curve-disconnect'!BN$18","v":-1468.9898090871352},{"$f":"'Res-Appliance class'!$B34*'RES S curve-disconnect'!BO$3+'Res-Appliance class'!$C34*'RES S curve-disconnect'!BO$8+'Res-Appliance class'!$D34*'RES S curve-disconnect'!BO$13+'Res-Appliance class'!$E34*'RES S curve-disconnect'!BO$18","v":-1456.9083296288923},{"$f":"'Res-Appliance class'!$B34*'RES S curve-disconnect'!BP$3+'Res-Appliance class'!$C34*'RES S curve-disconnect'!BP$8+'Res-Appliance class'!$D34*'RES S curve-disconnect'!BP$13+'Res-Appliance class'!$E34*'RES S curve-disconnect'!BP$18","v":-1448.8606312905601},{"$f":"'Res-Appliance class'!$B34*'RES S curve-disconnect'!BQ$3+'Res-Appliance class'!$C34*'RES S curve-disconnect'!BQ$8+'Res-Appliance class'!$D34*'RES S curve-disconnect'!BQ$13+'Res-Appliance class'!$E34*'RES S curve-disconnect'!BQ$18","v":-1440.8244360006074},{"$f":"'Res-Appliance class'!$B34*'RES S curve-disconnect'!BR$3+'Res-Appliance class'!$C34*'RES S curve-disconnect'!BR$8+'Res-Appliance class'!$D34*'RES S curve-disconnect'!BR$13+'Res-Appliance class'!$E34*'RES S curve-disconnect'!BR$18","v":-1436.8218819567508},{"$f":"'Res-Appliance class'!$B34*'RES S curve-disconnect'!BS$3+'Res-Appliance class'!$C34*'RES S curve-disconnect'!BS$8+'Res-Appliance class'!$D34*'RES S curve-disconnect'!BS$13+'Res-Appliance class'!$E34*'RES S curve-disconnect'!BS$18","v":-1424.7862761283886},{"$f":"'Res-Appliance class'!$B34*'RES S curve-disconnect'!BT$3+'Res-Appliance class'!$C34*'RES S curve-disconnect'!BT$8+'Res-Appliance class'!$D34*'RES S curve-disconnect'!BT$13+'Res-Appliance class'!$E34*'RES S curve-disconnect'!BT$18","v":-1416.7841734118524},{"$f":"'Res-Appliance class'!$B34*'RES S curve-disconnect'!BU$3+'Res-Appliance class'!$C34*'RES S curve-disconnect'!BU$8+'Res-Appliance class'!$D34*'RES S curve-disconnect'!BU$13+'Res-Appliance class'!$E34*'RES S curve-disconnect'!BU$18","v":-1408.7932974696669},{"$f":"'Res-Appliance class'!$B34*'RES S curve-disconnect'!BV$3+'Res-Appliance class'!$C34*'RES S curve-disconnect'!BV$8+'Res-Appliance class'!$D34*'RES S curve-disconnect'!BV$13+'Res-Appliance class'!$E34*'RES S curve-disconnect'!BV$18","v":-1404.8357882226464},{"$f":"'Res-Appliance class'!$B34*'RES S curve-disconnect'!BW$3+'Res-Appliance class'!$C34*'RES S curve-disconnect'!BW$8+'Res-Appliance class'!$D34*'RES S curve-disconnect'!BW$13+'Res-Appliance class'!$E34*'RES S curve-disconnect'!BW$18","v":-1392.8449543523843},{"$f":"'Res-Appliance class'!$B34*'RES S curve-disconnect'!BX$3+'Res-Appliance class'!$C34*'RES S curve-disconnect'!BX$8+'Res-Appliance class'!$D34*'RES S curve-disconnect'!BX$13+'Res-Appliance class'!$E34*'RES S curve-disconnect'!BX$18","v":-1384.8873524565802},{"$f":"'Res-Appliance class'!$B34*'RES S curve-disconnect'!BY$3+'Res-Appliance class'!$C34*'RES S curve-disconnect'!BY$8+'Res-Appliance class'!$D34*'RES S curve-disconnect'!BY$13+'Res-Appliance class'!$E34*'RES S curve-disconnect'!BY$18","v":-1376.9407078883714},{"$f":"'Res-Appliance class'!$B34*'RES S curve-disconnect'!BZ$3+'Res-Appliance class'!$C34*'RES S curve-disconnect'!BZ$8+'Res-Appliance class'!$D34*'RES S curve-disconnect'!BZ$13+'Res-Appliance class'!$E34*'RES S curve-disconnect'!BZ$18","v":-1373.0271622484911},{"$f":"'Res-Appliance class'!$B34*'RES S curve-disconnect'!CA$3+'Res-Appliance class'!$C34*'RES S curve-disconnect'!CA$8+'Res-Appliance class'!$D34*'RES S curve-disconnect'!CA$13+'Res-Appliance class'!$E34*'RES S curve-disconnect'!CA$18","v":-1361.0800258878278},{"$f":"'Res-Appliance class'!$B34*'RES S curve-disconnect'!CB$3+'Res-Appliance class'!$C34*'RES S curve-disconnect'!CB$8+'Res-Appliance class'!$D34*'RES S curve-disconnect'!CB$13+'Res-Appliance class'!$E34*'RES S curve-disconnect'!CB$18","v":-1353.1658570628251},{"$f":"'Res-Appliance class'!$B34*'RES S curve-disconnect'!CC$3+'Res-Appliance class'!$C34*'RES S curve-disconnect'!CC$8+'Res-Appliance class'!$D34*'RES S curve-disconnect'!CC$13+'Res-Appliance class'!$E34*'RES S curve-disconnect'!CC$18","v":-1345.2623827748762},{"$f":"'Res-Appliance class'!$B34*'RES S curve-disconnect'!CD$3+'Res-Appliance class'!$C34*'RES S curve-disconnect'!CD$8+'Res-Appliance class'!$D34*'RES S curve-disconnect'!CD$13+'Res-Appliance class'!$E34*'RES S curve-disconnect'!CD$18","v":-1464.7393033814337}]
["Kingston (C)",null,{"$f":"'Res-Appliance class'!$B35*'RES S curve-disconnect'!C$3+'Res-Appliance class'!$C35*'RES S curve-disconnect'!C$8+'Res-Appliance class'!$D35*'RES S curve-disconnect'!C$13+'Res-Appliance class'!$E35*'RES S curve-disconnect'!C$18","v":-4279.2236285529552},{"$f":"'Res-Appliance class'!$B35*'RES S curve-disconnect'!D$3+'Res-Appliance class'!$C35*'RES S curve-disconnect'!D$8+'Res-Appliance class'!$D35*'RES S curve-disconnect'!D$13+'Res-Appliance class'!$E35*'RES S curve-disconnect'!D$18","v":-4852.6181640540126},{"$f":"'Res-Appliance class'!$B35*'RES S curve-disconnect'!E$3+'Res-Appliance class'!$C35*'RES S curve-disconnect'!E$8+'Res-Appliance class'!$D35*'RES S curve-disconnect'!E$13+'Res-Appliance class'!$E35*'RES S curve-disconnect'!E$18","v":-4346.9365474677606},{"$f":"'Res-Appliance class'!$B35*'RES S curve-disconnect'!F$3+'Res-Appliance class'!$C35*'RES S curve-disconnect'!F$8+'Res-Appliance class'!$D35*'RES S curve-disconnect'!F$13+'Res-Appliance class'!$E35*'RES S curve-disconnect'!F$18","v":-4178.5168735186871},{"$f":"'Res-Appliance class'!$B35*'RES S curve-disconnect'!G$3+'Res-Appliance class'!$C35*'RES S curve-disconnect'!G$8+'Res-Appliance class'!$D35*'RES S curve-disconnect'!G$13+'Res-Appliance class'!$E35*'RES S curve-disconnect'!G$18","v":-5277.499765648754},{"$f":"'Res-Appliance class'!$B35*'RES S curve-disconnect'!H$3+'Res-Appliance class'!$C35*'RES S curve-disconnect'!H$8+'Res-Appliance class'!$D35*'RES S curve-disconnect'!H$13+'Res-Appliance class'!$E35*'RES S curve-disconnect'!H$18","v":-5317.2135182044676},{"$f":"'Res-Appliance class'!$B35*'RES S curve-disconnect'!I$3+'Res-Appliance class'!$C35*'RES S curve-disconnect'!I$8+'Res-Appliance class'!$D35*'RES S curve-disconnect'!I$13+'Res-Appliance class'!$E35*'RES S curve-disconnect'!I$18","v":-4839.6428859162443},{"$f":"'Res-Appliance class'!$B35*'RES S curve-disconnect'!J$3+'Res-Appliance class'!$C35*'RES S curve-disconnect'!J$8+'Res-Appliance class'!$D35*'RES S curve-disconnect'!J$13+'Res-Appliance class'!$E35*'RES S curve-disconnect'!J$18","v":-5169.588693918633},{"$f":"'Res-Appliance class'!$B35*'RES S curve-disconnect'!K$3+'Res-Appliance class'!$C35*'RES S curve-disconnect'!K$8+'Res-Appliance class'!$D35*'RES S curve-disconnect'!K$13+'Res-Appliance class'!$E35*'RES S curve-disconnect'!K$18","v":-4314.836767714809},{"$f":"'Res-Appliance class'!$B35*'RES S curve-disconnect'!L$3+'Res-Appliance class'!$C35*'RES S curve-disconnect'!L$8+'Res-Appliance class'!$D35*'RES S curve-disconnect'!L$13+'Res-Appliance class'!$E35*'RES S curve-disconnect'!L$18","v":-4713.0516802578659},{"$f":"'Res-Appliance class'!$B35*'RES S curve-disconnect'!M$3+'Res-Appliance class'!$C35*'RES S curve-disconnect'!M$8+'Res-Appliance class'!$D35*'RES S curve-disconnect'!M$13+'Res-Appliance class'!$E35*'RES S curve-disconnect'!M$18","v":-5410.7592780856112},{"$f":"'Res-Appliance class'!$B35*'RES S curve-disconnect'!N$3+'Res-Appliance class'!$C35*'RES S curve-disconnect'!N$8+'Res-Appliance class'!$D35*'RES S curve-disconnect'!N$13+'Res-Appliance class'!$E35*'RES S curve-disconnect'!N$18","v":-5482.8645266937019},{"$f":"'Res-Appliance class'!$B35*'RES S curve-disconnect'!O$3+'Res-Appliance class'!$C35*'RES S curve-disconnect'!O$8+'Res-Appliance class'!$D35*'RES S curve-disconnect'!O$13+'Res-Appliance class'!$E35*'RES S curve-disconnect'!O$18","v":-4869.2967429417349},{"$f":"'Res-Appliance class'!$B35*'RES S curve-disconnect'!P$3+'Res-Appliance class'!$C35*'RES S curve-disconnect'!P$8+'Res-Appliance class'!$D35*'RES S curve-disconnect'!P$13+'Res-Appliance class'!$E35*'RES S curve-disconnect'!P$18","v":-4384.0422650103301},{"$f":"'Res-Appliance class'!$B35*'RES S curve-disconnect'!Q$3+'Res-Appliance class'!$C35*'RES S curve-disconnect'!Q$8+'Res-Appliance class'!$D35*'RES S curve-disconnect'!Q$13+'Res-Appliance class'!$E35*'RES S curve-disconnect'!Q$18","v":-3647.4645096901586},{"$f":"'Res-Appliance class'!$B35*'RES S curve-disconnect'!R$3+'Res-Appliance class'!$C35*'RES S curve-disconnect'!R$8+'Res-Appliance class'!$D35*'RES S curve-disconnect'!R$13+'Res-Appliance class'!$E35*'RES S curve-disconnect'!R$18","v":-3233.0140643454279},{"$f":"'Res-Appliance class'!$B35*'RES S curve-disconnect'!S$3+'Res-Appliance class'!$C35*'RES S curve-disconnect'!S$8+'Res-Appliance class'!$D35*'RES S curve-disconnect'!S$13+'Res-Appliance class'!$E35*'RES S curve-disconnect'!S$18","v":-2567.5800631290563},{"$f":"'Res-Appliance class'!$B35*'RES S curve-disconnect'!T$3+'Res-Appliance class'!$C35*'RES S curve-disconnect'!T$8+'Res-Appliance class'!$D35*'RES S curve-disconnect'!T$13+'Res-Appliance class'!$E35*'RES S curve-disconnect'!T$18","v":-2213.8170219727331},{"$f":"'Res-Appliance class'!$B35*'RES S curve-disconnect'!U$3+'Res-Appliance class'!$C35*'RES S curve-disconnect'!U$8+'Res-Appliance class'!$D35*'RES S curve-disconnect'!U$13+'Res-Appliance class'!$E35*'RES S curve-disconnect'!U$18","v":-1805.1430670836558},{"$f":"'Res-Appliance class'!$B35*'RES S curve-disconnect'!V$3+'Res-Appliance class'!$C35*'RES S curve-disconnect'!V$8+'Res-Appliance class'!$D35*'RES S curve-disconnect'!V$13+'Res-Appliance class'!$E35*'RES S curve-disconnect'!V$18","v":-1526.6033083913303},{"$f":"'Res-Appliance class'!$B35*'RES S curve-disconnect'!W$3+'Res-Appliance class'!$C35*'RES S curve-disconnect'!W$8+'Res-Appliance class'!$D35*'RES S curve-disconnect'!W$13+'Res-Appliance class'!$E35*'RES S curve-disconnect'!W$18","v":-1311.3013903236838},{"$f":"'Res-Appliance class'!$B35*'RES S curve-disconnect'!X$3+'Res-Appliance class'!$C35*'RES S curve-disconnect'!X$8+'Res-Appliance class'!$D35*'RES S curve-disconnect'!X$13+'Res-Appliance class'!$E35*'RES S curve-disconnect'!X$18","v":-818.08208721128267},{"$f":"'Res-Appliance class'!$B35*'RES S curve-disconnect'!Y$3+'Res-Appliance class'!$C35*'RES S curve-disconnect'!Y$8+'Res-Appliance class'!$D35*'RES S curve-disconnect'!Y$13+'Res-Appliance class'!$E35*'RES S curve-disconnect'!Y$18","v":-318.36510560965223},{"$f":"'Res-Appliance class'!$B35*'RES S curve-disconnect'!Z$3+'Res-Appliance class'!$C35*'RES S curve-disconnect'!Z$8+'Res-Appliance class'!$D35*'RES S curve-disconnect'!Z$13+'Res-Appliance class'!$E35*'RES S curve-disconnect'!Z$18","v":18.290793106857961},{"$f":"'Res-Appliance class'!$B35*'RES S curve-disconnect'!AA$3+'Res-Appliance class'!$C35*'RES S curve-disconnect'!AA$8+'Res-Appliance class'!$D35*'RES S curve-disconnect'!AA$13+'Res-Appliance class'!$E35*'RES S curve-disconnect'!AA$18","v":355.67117756344942},{"$f":"'Res-Appliance class'!$B35*'RES S curve-disconnect'!AB$3+'Res-Appliance class'!$C35*'RES S curve-disconnect'!AB$8+'Res-Appliance class'!$D35*'RES S curve-disconnect'!AB$13+'Res-Appliance class'!$E35*'RES S curve-disconnect'!AB$18","v":623.66647206369544},{"$f":"'Res-Appliance class'!$B35*'RES S curve-disconnect'!AC$3+'Res-Appliance class'!$C35*'RES S curve-disconnect'!AC$8+'Res-Appliance class'!$D35*'RES S curve-disconnect'!AC$13+'Res-Appliance class'!$E35*'RES S curve-disconnect'!AC$18","v":882.07066308017374},{"$f":"'Res-Appliance class'!$B35*'RES S curve-disconnect'!AD$3+'Res-Appliance class'!$C35*'RES S curve-disconnect'!AD$8+'Res-Appliance class'!$D35*'RES S curve-disconnect'!AD$13+'Res-Appliance class'!$E35*'RES S curve-disconnect'!AD$18","v":1118.6120581371529},{"$f":"'Res-Appliance class'!$B35*'RES S curve-disconnect'!AE$3+'Res-Appliance class'!$C35*'RES S curve-disconnect'!AE$8+'Res-Appliance class'!$D35*'RES S curve-disconnect'!AE$13+'Res-Appliance class'!$E35*'RES S curve-disconnect'!AE$18","v":1368.5069702683788},{"$f":"'Res-Appliance class'!$B35*'RES S curve-disconnect'!AF$3+'Res-Appliance class'!$C35*'RES S curve-disconnect'!AF$8+'Res-Appliance class'!$D35*'RES S curve-disconnect'!AF$13+'Res-Appliance class'!$E35*'RES S curve-disconnect'!AF$18","v":1692.6188907374803},{"$f":"'Res-Appliance class'!$B35*'RES S curve-disconnect'!AG$3+'Res-Appliance class'!$C35*'RES S curve-disconnect'!AG$8+'Res-Appliance class'!$D35*'RES S curve-disconnect'!AG$13+'Res-Appliance class'!$E35*'RES S curve-disconnect'!AG$18","v":1920.6172269985309},{"$f":"'Res-Appliance class'!$B35*'RES S curve-disconnect'!AH$3+'Res-Appliance class'!$C35*'RES S curve-disconnect'!AH$8+'Res-Appliance class'!$D35*'RES S curve-disconnect'!AH$13+'Res-Appliance class'!$E35*'RES S curve-disconnect'!AH$18","v":2239.6229463907293},{"$f":"'Res-Appliance class'!$B35*'RES S curve-disconnect'!AI$3+'Res-Appliance class'!$C35*'RES S curve-disconnect'!AI$8+'Res-Appliance class'!$D35*'RES S curve-disconnect'!AI$13+'Res-Appliance class'!$E35*'RES S curve-disconnect'!AI$18","v":2528.0274567567294},{"$f":"'Res-Appliance class'!$B35*'RES S curve-disconnect'!AJ$3+'Res-Appliance class'!$C35*'RES S curve-disconnect'!AJ$8+'Res-Appliance class'!$D35*'RES S curve-disconnect'!AJ$13+'Res-Appliance class'!$E35*'RES S curve-disconnect'!AJ$18","v":2787.9708603820141},{"$f":"'Res-Appliance class'!$B35*'RES S curve-disconnect'!AK$3+'Res-Appliance class'!$C35*'RES S curve-disconnect'!AK$8+'Res-Appliance class'!$D35*'RES S curve-disconnect'!AK$13+'Res-Appliance class'!$E35*'RES S curve-disconnect'!AK$18","v":3063.9926338703217},{"$f":"'Res-Appliance class'!$B35*'RES S curve-disconnect'!AL$3+'Res-Appliance class'!$C35*'RES S curve-disconnect'!AL$8+'Res-Appliance class'!$D35*'RES S curve-disconnect'!AL$13+'Res-Appliance class'!$E35*'RES S curve-disconnect'!AL$18","v":2104.3169685201347},{"$f":"'Res-Appliance class'!$B35*'RES S curve-disconnect'!AM$3+'Res-Appliance class'!$C35*'RES S curve-disconnect'!AM$8+'Res-Appliance class'!$D35*'RES S curve-disconnect'!AM$13+'Res-Appliance class'!$E35*'RES S curve-disconnect'!AM$18","v":1981.1511474136521},{"$f":"'Res-Appliance class'!$B35*'RES S curve-disconnect'!AN$3+'Res-Appliance class'!$C35*'RES S curve-disconnect'!AN$8+'Res-Appliance class'!$D35*'RES S curve-disconnect'!AN$13+'Res-Appliance class'!$E35*'RES S curve-disconnect'!AN$18","v":2243.6565204658946},{"$f":"'Res-Appliance class'!$B35*'RES S curve-disconnect'!AO$3+'Res-Appliance class'!$C35*'RES S curve-disconnect'!AO$8+'Res-Appliance class'!$D35*'RES S curve-disconnect'!AO$13+'Res-Appliance class'!$E35*'RES S curve-disconnect'!AO$18","v":2563.5900783675479},{"$f":"'Res-Appliance class'!$B35*'RES S curve-disconnect'!AP$3+'Res-Appliance class'!$C35*'RES S curve-disconnect'!AP$8+'Res-Appliance class'!$D35*'RES S curve-disconnect'!AP$13+'Res-Appliance class'!$E35*'RES S curve-disconnect'!AP$18","v":2858.4986491054919},{"$f":"'Res-Appliance class'!$B35*'RES S curve-disconnect'!AQ$3+'Res-Appliance class'!$C35*'RES S curve-disconnect'!AQ$8+'Res-Appliance class'!$D35*'RES S curve-disconnect'!AQ$13+'Res-Appliance class'!$E35*'RES S curve-disconnect'!AQ$18","v":3176.6694319319813},{"$f":"'Res-Appliance class'!$B35*'RES S curve-disconnect'!AR$3+'Res-Appliance class'!$C35*'RES S curve-disconnect'!AR$8+'Res-Appliance class'!$D35*'RES S curve-disconnect'!AR$13+'Res-Appliance class'!$E35*'RES S curve-disconnect'!AR$18","v":3525.6310536087667},{"$f":"'Res-Appliance class'!$B35*'RES S curve-disconnect'!AS$3+'Res-Appliance class'!$C35*'RES S curve-disconnect'!AS$8+'Res-Appliance class'!$D35*'RES S curve-disconnect'!AS$13+'Res-Appliance class'!$E35*'RES S curve-disconnect'!AS$18","v":3917.1123020541281},{"$f":"'Res-Appliance class'!$B35*'RES S curve-disconnect'!AT$3+'Res-Appliance class'!$C35*'RES S curve-disconnect'!AT$8+'Res-Appliance class'!$D35*'RES S curve-disconnect'!AT$13+'Res-Appliance class'!$E35*'RES S curve-disconnect'!AT$18","v":4354.5688693150305},{"$f":"'Res-Appliance class'!$B35*'RES S curve-disconnect'!AU$3+'Res-Appliance class'!$C35*'RES S curve-disconnect'!AU$8+'Res-Appliance class'!$D35*'RES S curve-disconnect'!AU$13+'Res-Appliance class'!$E35*'RES S curve-disconnect'!AU$18","v":4861.1881312610831},{"$f":"'Res-Appliance class'!$B35*'RES S curve-disconnect'!AV$3+'Res-Appliance class'!$C35*'RES S curve-disconnect'!AV$8+'Res-Appliance class'!$D35*'RES S curve-disconnect'!AV$13+'Res-Appliance class'!$E35*'RES S curve-disconnect'!AV$18","v":5438.5311192607442},{"$f":"'Res-Appliance class'!$B35*'RES S curve-disconnect'!AW$3+'Res-Appliance class'!$C35*'RES S curve-disconnect'!AW$8+'Res-Appliance class'!$D35*'RES S curve-disconnect'!AW$13+'Res-Appliance class'!$E35*'RES S curve-disconnect'!AW$18","v":6101.8797153230844},{"$f":"'Res-Appliance class'!$B35*'RES S curve-disconnect'!AX$3+'Res-Appliance class'!$C35*'RES S curve-disconnect'!AX$8+'Res-Appliance class'!$D35*'RES S curve-disconnect'!AX$13+'Res-Appliance class'!$E35*'RES S curve-disconnect'!AX$18","v":6857.2470625094393},{"$f":"'Res-Appliance class'!$B35*'RES S curve-disconnect'!AY$3+'Res-Appliance class'!$C35*'RES S curve-disconnect'!AY$8+'Res-Appliance class'!$D35*'RES S curve-disconnect'!AY$13+'Res-Appliance class'!$E35*'RES S curve-disconnect'!AY$18","v":7729.0921335551739},{"$f":"'Res-Appliance class'!$B35*'RES S curve-disconnect'!AZ$3+'Res-Appliance class'!$C35*'RES S curve-disconnect'!AZ$8+'Res-Appliance class'!$D35*'RES S curve-disconnect'!AZ$13+'Res-Appliance class'!$E35*'RES S curve-disconnect'!AZ$18","v":8724.9084941097844},{"$f":"'Res-Appliance class'!$B35*'RES S curve-disconnect'!BA$3+'Res-Appliance class'!$C35*'RES S curve-disconnect'!BA$8+'Res-Appliance class'!$D35*'RES S curve-disconnect'!BA$13+'Res-Appliance class'!$E35*'RES S curve-disconnect'!BA$18","v":9877.5842008303152},{"$f":"'Res-Appliance class'!$B35*'RES S curve-disconnect'!BB$3+'Res-Appliance class'!$C35*'RES S curve-disconnect'!BB$8+'Res-Appliance class'!$D35*'RES S curve-disconnect'!BB$13+'Res-Appliance class'!$E35*'RES S curve-disconnect'!BB$18","v":11223.270728061983},{"$f":"'Res-Appliance class'!$B35*'RES S curve-disconnect'!BC$3+'Res-Appliance class'!$C35*'RES S curve-disconnect'!BC$8+'Res-Appliance class'!$D35*'RES S curve-disconnect'!BC$13+'Res-Appliance class'!$E35*'RES S curve-disconnect'!BC$18","v":12827.829951525318},{"$f":"'Res-Appliance class'!$B35*'RES S curve-disconnect'!BD$3+'Res-Appliance class'!$C35*'RES S curve-disconnect'!BD$8+'Res-Appliance class'!$D35*'RES S curve-disconnect'!BD$13+'Res-Appliance class'!$E35*'RES S curve-disconnect'!BD$18","v":14373.182134115235},{"$f":"'Res-Appliance class'!$B35*'RES S curve-disconnect'!BE$3+'Res-Appliance class'!$C35*'RES S curve-disconnect'!BE$8+'Res-Appliance class'!$D35*'RES S curve-disconnect'!BE$13+'Res-Appliance class'!$E35*'RES S curve-disconnect'!BE$18","v":15784.795086839047},{"$f":"'Res-Appliance class'!$B35*'RES S curve-disconnect'!BF$3+'Res-Appliance class'!$C35*'RES S curve-disconnect'!BF$8+'Res-Appliance class'!$D35*'RES S curve-disconnect'!BF$13+'Res-Appliance class'!$E35*'RES S curve-disconnect'!BF$18","v":17229.39129522943},{"$f":"'Res-Appliance class'!$B35*'RES S curve-disconnect'!BG$3+'Res-Appliance class'!$C35*'RES S curve-disconnect'!BG$8+'Res-Appliance class'!$D35*'RES S curve-disconnect'!BG$13+'Res-Appliance class'!$E35*'RES S curve-disconnect'!BG$18","v":18865.305916231933},{"$f":"'Res-Appliance class'!$B35*'RES S curve-disconnect'!BH$3+'Res-Appliance class'!$C35*'RES S curve-disconnect'!BH$8+'Res-Appliance class'!$D35*'RES S curve-disconnect'!BH$13+'Res-Appliance class'!$E35*'RES S curve-disconnect'!BH$18","v":20806.645833782412},{"$f":"'Res-Appliance class'!$B35*'RES S curve-disconnect'!BI$3+'Res-Appliance class'!$C35*'RES S curve-disconnect'!BI$8+'Res-Appliance class'!$D35*'RES S curve-disconnect'!BI$13+'Res-Appliance class'!$E35*'RES S curve-disconnect'!BI$18","v":23620.225395276491},{"$f":"'Res-Appliance class'!$B35*'RES S curve-disconnect'!BJ$3+'Res-Appliance class'!$C35*'RES S curve-disconnect'!BJ$8+'Res-Appliance class'!$D35*'RES S curve-disconnect'!BJ$13+'Res-Appliance class'!$E35*'RES S curve-disconnect'!BJ$18","v":27737.905599381411},{"$f":"'Res-Appliance class'!$B35*'RES S curve-disconnect'!BK$3+'Res-Appliance class'!$C35*'RES S curve-disconnect'!BK$8+'Res-Appliance class'!$D35*'RES S curve-disconnect'!BK$13+'Res-Appliance class'!$E35*'RES S curve-disconnect'!BK$18","v":33810.414880555283},{"$f":"'Res-Appliance class'!$B35*'RES S curve-disconnect'!BL$3+'Res-Appliance class'!$C35*'RES S curve-disconnect'!BL$8+'Res-Appliance class'!$D35*'RES S curve-disconnect'!BL$13+'Res-Appliance class'!$E35*'RES S curve-disconnect'!BL$18","v":-1401.5156962596857},{"$f":"'Res-Appliance class'!$B35*'RES S curve-disconnect'!BM$3+'Res-Appliance class'!$C35*'RES S curve-disconnect'!BM$8+'Res-Appliance class'!$D35*'RES S curve-disconnect'!BM$13+'Res-Appliance class'!$E35*'RES S curve-disconnect'!BM$18","v":-1393.7409186203568},{"$f":"'Res-Appliance class'!$B35*'RES S curve-disconnect'!BN$3+'Res-Appliance class'!$C35*'RES S curve-disconnect'!BN$8+'Res-Appliance class'!$D35*'RES S curve-disconnect'!BN$13+'Res-Appliance class'!$E35*'RES S curve-disconnect'!BN$18","v":-1389.9998011235273},{"$f":"'Res-Appliance class'!$B35*'RES S curve-disconnect'!BO$3+'Res-Appliance class'!$C35*'RES S curve-disconnect'!BO$8+'Res-Appliance class'!$D35*'RES S curve-disconnect'!BO$13+'Res-Appliance class'!$E35*'RES S curve-disconnect'!BO$18","v":-1378.225650488017},{"$f":"'Res-Appliance class'!$B35*'RES S curve-disconnect'!BP$3+'Res-Appliance class'!$C35*'RES S curve-disconnect'!BP$8+'Res-Appliance class'!$D35*'RES S curve-disconnect'!BP$13+'Res-Appliance class'!$E35*'RES S curve-disconnect'!BP$18","v":-1370.4850213615596},{"$f":"'Res-Appliance class'!$B35*'RES S curve-disconnect'!BQ$3+'Res-Appliance class'!$C35*'RES S curve-disconnect'!BQ$8+'Res-Appliance class'!$D35*'RES S curve-disconnect'!BQ$13+'Res-Appliance class'!$E35*'RES S curve-disconnect'!BQ$18","v":-1362.7556371600519},{"$f":"'Res-Appliance class'!$B35*'RES S curve-disconnect'!BR$3+'Res-Appliance class'!$C35*'RES S curve-disconnect'!BR$8+'Res-Appliance class'!$D35*'RES S curve-disconnect'!BR$13+'Res-Appliance class'!$E35*'RES S curve-disconnect'!BR$18","v":-1359.0596375596251},{"$f":"'Res-Appliance class'!$B35*'RES S curve-disconnect'!BS$3+'Res-Appliance class'!$C35*'RES S curve-disconnect'!BS$8+'Res-Appliance class'!$D35*'RES S curve-disconnect'!BS$13+'Res-Appliance class'!$E35*'RES S curve-disconnect'!BS$18","v":-1347.3303309991345},{"$f":"'Res-Appliance class'!$B35*'RES S curve-disconnect'!BT$3+'Res-Appliance class'!$C35*'RES S curve-disconnect'!BT$8+'Res-Appliance class'!$D35*'RES S curve-disconnect'!BT$13+'Res-Appliance class'!$E35*'RES S curve-disconnect'!BT$18","v":-1339.6342738354633},{"$f":"'Res-Appliance class'!$B35*'RES S curve-disconnect'!BU$3+'Res-Appliance class'!$C35*'RES S curve-disconnect'!BU$8+'Res-Appliance class'!$D35*'RES S curve-disconnect'!BU$13+'Res-Appliance class'!$E35*'RES S curve-disconnect'!BU$18","v":-1331.9491911828436},{"$f":"'Res-Appliance class'!$B35*'RES S curve-disconnect'!BV$3+'Res-Appliance class'!$C35*'RES S curve-disconnect'!BV$8+'Res-Appliance class'!$D35*'RES S curve-disconnect'!BV$13+'Res-Appliance class'!$E35*'RES S curve-disconnect'!BV$18","v":-1328.2972244050034},{"$f":"'Res-Appliance class'!$B35*'RES S curve-disconnect'!BW$3+'Res-Appliance class'!$C35*'RES S curve-disconnect'!BW$8+'Res-Appliance class'!$D35*'RES S curve-disconnect'!BW$13+'Res-Appliance class'!$E35*'RES S curve-disconnect'!BW$18","v":-1316.611683617713},{"$f":"'Res-Appliance class'!$B35*'RES S curve-disconnect'!BX$3+'Res-Appliance class'!$C35*'RES S curve-disconnect'!BX$8+'Res-Appliance class'!$D35*'RES S curve-disconnect'!BX$13+'Res-Appliance class'!$E35*'RES S curve-disconnect'!BX$18","v":-1308.9591268441668},{"$f":"'Res-Appliance class'!$B35*'RES S curve-disconnect'!BY$3+'Res-Appliance class'!$C35*'RES S curve-disconnect'!BY$8+'Res-Appliance class'!$D35*'RES S curve-disconnect'!BY$13+'Res-Appliance class'!$E35*'RES S curve-disconnect'!BY$18","v":-1301.3172808543684},{"$f":"'Res-Appliance class'!$B35*'RES S curve-disconnect'!BZ$3+'Res-Appliance class'!$C35*'RES S curve-disconnect'!BZ$8+'Res-Appliance class'!$D35*'RES S curve-disconnect'!BZ$13+'Res-Appliance class'!$E35*'RES S curve-disconnect'!BZ$18","v":-1297.7082886573417},{"$f":"'Res-Appliance class'!$B35*'RES S curve-disconnect'!CA$3+'Res-Appliance class'!$C35*'RES S curve-disconnect'!CA$8+'Res-Appliance class'!$D35*'RES S curve-disconnect'!CA$13+'Res-Appliance class'!$E35*'RES S curve-disconnect'!CA$18","v":-1286.0654620037456},{"$f":"'Res-Appliance class'!$B35*'RES S curve-disconnect'!CB$3+'Res-Appliance class'!$C35*'RES S curve-disconnect'!CB$8+'Res-Appliance class'!$D35*'RES S curve-disconnect'!CB$13+'Res-Appliance class'!$E35*'RES S curve-disconnect'!CB$18","v":-1278.4553605413257},{"$f":"'Res-Appliance class'!$B35*'RES S curve-disconnect'!CC$3+'Res-Appliance class'!$C35*'RES S curve-disconnect'!CC$8+'Res-Appliance class'!$D35*'RES S curve-disconnect'!CC$13+'Res-Appliance class'!$E35*'RES S curve-disconnect'!CC$18","v":-1270.8557126543615},{"$f":"'Res-Appliance class'!$B35*'RES S curve-disconnect'!CD$3+'Res-Appliance class'!$C35*'RES S curve-disconnect'!CD$8+'Res-Appliance class'!$D35*'RES S curve-disconnect'!CD$13+'Res-Appliance class'!$E35*'RES S curve-disconnect'!CD$18","v":-1385.2086804064952}]
["Knox (C)",null,{"$f":"'Res-Appliance class'!$B36*'RES S curve-disconnect'!C$3+'Res-Appliance class'!$C36*'RES S curve-disconnect'!C$8+'Res-Appliance class'!$D36*'RES S curve-disconnect'!C$13+'Res-Appliance class'!$E36*'RES S curve-disconnect'!C$18","v":-4707.7804659233752},{"$f":"'Res-Appliance class'!$B36*'RES S curve-disconnect'!D$3+'Res-Appliance class'!$C36*'RES S curve-disconnect'!D$8+'Res-Appliance class'!$D36*'RES S curve-disconnect'!D$13+'Res-Appliance class'!$E36*'RES S curve-disconnect'!D$18","v":-5356.2000987183055},{"$f":"'Res-Appliance class'!$B36*'RES S curve-disconnect'!E$3+'Res-Appliance class'!$C36*'RES S curve-disconnect'!E$8+'Res-Appliance class'!$D36*'RES S curve-disconnect'!E$13+'Res-Appliance class'!$E36*'RES S curve-disconnect'!E$18","v":-4743.7307107990073},{"$f":"'Res-Appliance class'!$B36*'RES S curve-disconnect'!F$3+'Res-Appliance class'!$C36*'RES S curve-disconnect'!F$8+'Res-Appliance class'!$D36*'RES S curve-disconnect'!F$13+'Res-Appliance class'!$E36*'RES S curve-disconnect'!F$18","v":-4548.118411597884},{"$f":"'Res-Appliance class'!$B36*'RES S curve-disconnect'!G$3+'Res-Appliance class'!$C36*'RES S curve-disconnect'!G$8+'Res-Appliance class'!$D36*'RES S curve-disconnect'!G$13+'Res-Appliance class'!$E36*'RES S curve-disconnect'!G$18","v":-5916.6045147715822},{"$f":"'Res-Appliance class'!$B36*'RES S curve-disconnect'!H$3+'Res-Appliance class'!$C36*'RES S curve-disconnect'!H$8+'Res-Appliance class'!$D36*'RES S curve-disconnect'!H$13+'Res-Appliance class'!$E36*'RES S curve-disconnect'!H$18","v":-5948.0371815863782},{"$f":"'Res-Appliance class'!$B36*'RES S curve-disconnect'!I$3+'Res-Appliance class'!$C36*'RES S curve-disconnect'!I$8+'Res-Appliance class'!$D36*'RES S curve-disconnect'!I$13+'Res-Appliance class'!$E36*'RES S curve-disconnect'!I$18","v":-5395.1099979200671},{"$f":"'Res-Appliance class'!$B36*'RES S curve-disconnect'!J$3+'Res-Appliance class'!$C36*'RES S curve-disconnect'!J$8+'Res-Appliance class'!$D36*'RES S curve-disconnect'!J$13+'Res-Appliance class'!$E36*'RES S curve-disconnect'!J$18","v":-5713.5274688317077},{"$f":"'Res-Appliance class'!$B36*'RES S curve-disconnect'!K$3+'Res-Appliance class'!$C36*'RES S curve-disconnect'!K$8+'Res-Appliance class'!$D36*'RES S curve-disconnect'!K$13+'Res-Appliance class'!$E36*'RES S curve-disconnect'!K$18","v":-4735.6821985334254},{"$f":"'Res-Appliance class'!$B36*'RES S curve-disconnect'!L$3+'Res-Appliance class'!$C36*'RES S curve-disconnect'!L$8+'Res-Appliance class'!$D36*'RES S curve-disconnect'!L$13+'Res-Appliance class'!$E36*'RES S curve-disconnect'!L$18","v":-5188.4755381503446},{"$f":"'Res-Appliance class'!$B36*'RES S curve-disconnect'!M$3+'Res-Appliance class'!$C36*'RES S curve-disconnect'!M$8+'Res-Appliance class'!$D36*'RES S curve-disconnect'!M$13+'Res-Appliance class'!$E36*'RES S curve-disconnect'!M$18","v":-6010.0742554893168},{"$f":"'Res-Appliance class'!$B36*'RES S curve-disconnect'!N$3+'Res-Appliance class'!$C36*'RES S curve-disconnect'!N$8+'Res-Appliance class'!$D36*'RES S curve-disconnect'!N$13+'Res-Appliance class'!$E36*'RES S curve-disconnect'!N$18","v":-6095.6928933417676},{"$f":"'Res-Appliance class'!$B36*'RES S curve-disconnect'!O$3+'Res-Appliance class'!$C36*'RES S curve-disconnect'!O$8+'Res-Appliance class'!$D36*'RES S curve-disconnect'!O$13+'Res-Appliance class'!$E36*'RES S curve-disconnect'!O$18","v":-5393.2916957802145},{"$f":"'Res-Appliance class'!$B36*'RES S curve-disconnect'!P$3+'Res-Appliance class'!$C36*'RES S curve-disconnect'!P$8+'Res-Appliance class'!$D36*'RES S curve-disconnect'!P$13+'Res-Appliance class'!$E36*'RES S curve-disconnect'!P$18","v":-4834.8946236527845},{"$f":"'Res-Appliance class'!$B36*'RES S curve-disconnect'!Q$3+'Res-Appliance class'!$C36*'RES S curve-disconnect'!Q$8+'Res-Appliance class'!$D36*'RES S curve-disconnect'!Q$13+'Res-Appliance class'!$E36*'RES S curve-disconnect'!Q$18","v":-3986.392586100591},{"$f":"'Res-Appliance class'!$B36*'RES S curve-disconnect'!R$3+'Res-Appliance class'!$C36*'RES S curve-disconnect'!R$8+'Res-Appliance class'!$D36*'RES S curve-disconnect'!R$13+'Res-Appliance class'!$E36*'RES S curve-disconnect'!R$18","v":-3509.2186568446368},{"$f":"'Res-Appliance class'!$B36*'RES S curve-disconnect'!S$3+'Res-Appliance class'!$C36*'RES S curve-disconnect'!S$8+'Res-Appliance class'!$D36*'RES S curve-disconnect'!S$13+'Res-Appliance class'!$E36*'RES S curve-disconnect'!S$18","v":-2746.2779372614141},{"$f":"'Res-Appliance class'!$B36*'RES S curve-disconnect'!T$3+'Res-Appliance class'!$C36*'RES S curve-disconnect'!T$8+'Res-Appliance class'!$D36*'RES S curve-disconnect'!T$13+'Res-Appliance class'!$E36*'RES S curve-disconnect'!T$18","v":-2332.7567819350547},{"$f":"'Res-Appliance class'!$B36*'RES S curve-disconnect'!U$3+'Res-Appliance class'!$C36*'RES S curve-disconnect'!U$8+'Res-Appliance class'!$D36*'RES S curve-disconnect'!U$13+'Res-Appliance class'!$E36*'RES S curve-disconnect'!U$18","v":-1861.3538453060935},{"$f":"'Res-Appliance class'!$B36*'RES S curve-disconnect'!V$3+'Res-Appliance class'!$C36*'RES S curve-disconnect'!V$8+'Res-Appliance class'!$D36*'RES S curve-disconnect'!V$13+'Res-Appliance class'!$E36*'RES S curve-disconnect'!V$18","v":-1543.2080762102723},{"$f":"'Res-Appliance class'!$B36*'RES S curve-disconnect'!W$3+'Res-Appliance class'!$C36*'RES S curve-disconnect'!W$8+'Res-Appliance class'!$D36*'RES S curve-disconnect'!W$13+'Res-Appliance class'!$E36*'RES S curve-disconnect'!W$18","v":-1297.1680856551375},{"$f":"'Res-Appliance class'!$B36*'RES S curve-disconnect'!X$3+'Res-Appliance class'!$C36*'RES S curve-disconnect'!X$8+'Res-Appliance class'!$D36*'RES S curve-disconnect'!X$13+'Res-Appliance class'!$E36*'RES S curve-disconnect'!X$18","v":-726.32206896198431},{"$f":"'Res-Appliance class'!$B36*'RES S curve-disconnect'!Y$3+'Res-Appliance class'!$C36*'RES S curve-disconnect'!Y$8+'Res-Appliance class'!$D36*'RES S curve-disconnect'!Y$13+'Res-Appliance class'!$E36*'RES S curve-disconnect'!Y$18","v":-148.92187692427774},{"$f":"'Res-Appliance class'!$B36*'RES S curve-disconnect'!Z$3+'Res-Appliance class'!$C36*'RES S curve-disconnect'!Z$8+'Res-Appliance class'!$D36*'RES S curve-disconnect'!Z$13+'Res-Appliance class'!$E36*'RES S curve-disconnect'!Z$18","v":238.80540672365311},{"$f":"'Res-Appliance class'!$B36*'RES S curve-disconnect'!AA$3+'Res-Appliance class'!$C36*'RES S curve-disconnect'!AA$8+'Res-Appliance class'!$D36*'RES S curve-disconnect'!AA$13+'Res-Appliance class'!$E36*'RES S curve-disconnect'!AA$18","v":626.24567861083437},{"$f":"'Res-Appliance class'!$B36*'RES S curve-disconnect'!AB$3+'Res-Appliance class'!$C36*'RES S curve-disconnect'!AB$8+'Res-Appliance class'!$D36*'RES S curve-disconnect'!AB$13+'Res-Appliance class'!$E36*'RES S curve-disconnect'!AB$18","v":933.67041330263714},{"$f":"'Res-Appliance class'!$B36*'RES S curve-disconnect'!AC$3+'Res-Appliance class'!$C36*'RES S curve-disconnect'!AC$8+'Res-Appliance class'!$D36*'RES S curve-disconnect'!AC$13+'Res-Appliance class'!$E36*'RES S curve-disconnect'!AC$18","v":1229.3334070463518},{"$f":"'Res-Appliance class'!$B36*'RES S curve-disconnect'!AD$3+'Res-Appliance class'!$C36*'RES S curve-disconnect'!AD$8+'Res-Appliance class'!$D36*'RES S curve-disconnect'!AD$13+'Res-Appliance class'!$E36*'RES S curve-disconnect'!AD$18","v":1499.824945268251},{"$f":"'Res-Appliance class'!$B36*'RES S curve-disconnect'!AE$3+'Res-Appliance class'!$C36*'RES S curve-disconnect'!AE$8+'Res-Appliance class'!$D36*'RES S curve-disconnect'!AE$13+'Res-Appliance class'!$E36*'RES S curve-disconnect'!AE$18","v":1784.130431499696},{"$f":"'Res-Appliance class'!$B36*'RES S curve-disconnect'!AF$3+'Res-Appliance class'!$C36*'RES S curve-disconnect'!AF$8+'Res-Appliance class'!$D36*'RES S curve-disconnect'!AF$13+'Res-Appliance class'!$E36*'RES S curve-disconnect'!AF$18","v":2155.3341287686653},{"$f":"'Res-Appliance class'!$B36*'RES S curve-disconnect'!AG$3+'Res-Appliance class'!$C36*'RES S curve-disconnect'!AG$8+'Res-Appliance class'!$D36*'RES S curve-disconnect'!AG$13+'Res-Appliance class'!$E36*'RES S curve-disconnect'!AG$18","v":2416.9057090631977},{"$f":"'Res-Appliance class'!$B36*'RES S curve-disconnect'!AH$3+'Res-Appliance class'!$C36*'RES S curve-disconnect'!AH$8+'Res-Appliance class'!$D36*'RES S curve-disconnect'!AH$13+'Res-Appliance class'!$E36*'RES S curve-disconnect'!AH$18","v":2786.0489308097131},{"$f":"'Res-Appliance class'!$B36*'RES S curve-disconnect'!AI$3+'Res-Appliance class'!$C36*'RES S curve-disconnect'!AI$8+'Res-Appliance class'!$D36*'RES S curve-disconnect'!AI$13+'Res-Appliance class'!$E36*'RES S curve-disconnect'!AI$18","v":3116.9031193997553},{"$f":"'Res-Appliance class'!$B36*'RES S curve-disconnect'!AJ$3+'Res-Appliance class'!$C36*'RES S curve-disconnect'!AJ$8+'Res-Appliance class'!$D36*'RES S curve-disconnect'!AJ$13+'Res-Appliance class'!$E36*'RES S curve-disconnect'!AJ$18","v":3415.6947460229285},{"$f":"'Res-Appliance class'!$B36*'RES S curve-disconnect'!AK$3+'Res-Appliance class'!$C36*'RES S curve-disconnect'!AK$8+'Res-Appliance class'!$D36*'RES S curve-disconnect'!AK$13+'Res-Appliance class'!$E36*'RES S curve-disconnect'!AK$18","v":3732.870897156648},{"$f":"'Res-Appliance class'!$B36*'RES S curve-disconnect'!AL$3+'Res-Appliance class'!$C36*'RES S curve-disconnect'!AL$8+'Res-Appliance class'!$D36*'RES S curve-disconnect'!AL$13+'Res-Appliance class'!$E36*'RES S curve-disconnect'!AL$18","v":2637.4728079646065},{"$f":"'Res-Appliance class'!$B36*'RES S curve-disconnect'!AM$3+'Res-Appliance class'!$C36*'RES S curve-disconnect'!AM$8+'Res-Appliance class'!$D36*'RES S curve-disconnect'!AM$13+'Res-Appliance class'!$E36*'RES S curve-disconnect'!AM$18","v":2492.5375706169839},{"$f":"'Res-Appliance class'!$B36*'RES S curve-disconnect'!AN$3+'Res-Appliance class'!$C36*'RES S curve-disconnect'!AN$8+'Res-Appliance class'!$D36*'RES S curve-disconnect'!AN$13+'Res-Appliance class'!$E36*'RES S curve-disconnect'!AN$18","v":2791.9650165567914},{"$f":"'Res-Appliance class'!$B36*'RES S curve-disconnect'!AO$3+'Res-Appliance class'!$C36*'RES S curve-disconnect'!AO$8+'Res-Appliance class'!$D36*'RES S curve-disconnect'!AO$13+'Res-Appliance class'!$E36*'RES S curve-disconnect'!AO$18","v":3158.9953689506588},{"$f":"'Res-Appliance class'!$B36*'RES S curve-disconnect'!AP$3+'Res-Appliance class'!$C36*'RES S curve-disconnect'!AP$8+'Res-Appliance class'!$D36*'RES S curve-disconnect'!AP$13+'Res-Appliance class'!$E36*'RES S curve-disconnect'!AP$18","v":3498.5504375271721},{"$f":"'Res-Appliance class'!$B36*'RES S curve-disconnect'!AQ$3+'Res-Appliance class'!$C36*'RES S curve-disconnect'!AQ$8+'Res-Appliance class'!$D36*'RES S curve-disconnect'!AQ$13+'Res-Appliance class'!$E36*'RES S curve-disconnect'!AQ$18","v":3863.6344524047154},{"$f":"'Res-Appliance class'!$B36*'RES S curve-disconnect'!AR$3+'Res-Appliance class'!$C36*'RES S curve-disconnect'!AR$8+'Res-Appliance class'!$D36*'RES S curve-disconnect'!AR$13+'Res-Appliance class'!$E36*'RES S curve-disconnect'!AR$18","v":4264.7888144863646},{"$f":"'Res-Appliance class'!$B36*'RES S curve-disconnect'!AS$3+'Res-Appliance class'!$C36*'RES S curve-disconnect'!AS$8+'Res-Appliance class'!$D36*'RES S curve-disconnect'!AS$13+'Res-Appliance class'!$E36*'RES S curve-disconnect'!AS$18","v":4715.0197930768563},{"$f":"'Res-Appliance class'!$B36*'RES S curve-disconnect'!AT$3+'Res-Appliance class'!$C36*'RES S curve-disconnect'!AT$8+'Res-Appliance class'!$D36*'RES S curve-disconnect'!AT$13+'Res-Appliance class'!$E36*'RES S curve-disconnect'!AT$18","v":5218.9800709222782},{"$f":"'Res-Appliance class'!$B36*'RES S curve-disconnect'!AU$3+'Res-Appliance class'!$C36*'RES S curve-disconnect'!AU$8+'Res-Appliance class'!$D36*'RES S curve-disconnect'!AU$13+'Res-Appliance class'!$E36*'RES S curve-disconnect'!AU$18","v":5801.6016103230304},{"$f":"'Res-Appliance class'!$B36*'RES S curve-disconnect'!AV$3+'Res-Appliance class'!$C36*'RES S curve-disconnect'!AV$8+'Res-Appliance class'!$D36*'RES S curve-disconnect'!AV$13+'Res-Appliance class'!$E36*'RES S curve-disconnect'!AV$18","v":6466.6149655554418},{"$f":"'Res-Appliance class'!$B36*'RES S curve-disconnect'!AW$3+'Res-Appliance class'!$C36*'RES S curve-disconnect'!AW$8+'Res-Appliance class'!$D36*'RES S curve-disconnect'!AW$13+'Res-Appliance class'!$E36*'RES S curve-disconnect'!AW$18","v":7231.1986207920863},{"$f":"'Res-Appliance class'!$B36*'RES S curve-disconnect'!AX$3+'Res-Appliance class'!$C36*'RES S curve-disconnect'!AX$8+'Res-Appliance class'!$D36*'RES S curve-disconnect'!AX$13+'Res-Appliance class'!$E36*'RES S curve-disconnect'!AX$18","v":8103.1289468589202},{"$f":"'Res-Appliance class'!$B36*'RES S curve-disconnect'!AY$3+'Res-Appliance class'!$C36*'RES S curve-disconnect'!AY$8+'Res-Appliance class'!$D36*'RES S curve-disconnect'!AY$13+'Res-Appliance class'!$E36*'RES S curve-disconnect'!AY$18","v":9109.0094722310241},{"$f":"'Res-Appliance class'!$B36*'RES S curve-disconnect'!AZ$3+'Res-Appliance class'!$C36*'RES S curve-disconnect'!AZ$8+'Res-Appliance class'!$D36*'RES S curve-disconnect'!AZ$13+'Res-Appliance class'!$E36*'RES S curve-disconnect'!AZ$18","v":10259.61156662447},{"$f":"'Res-Appliance class'!$B36*'RES S curve-disconnect'!BA$3+'Res-Appliance class'!$C36*'RES S curve-disconnect'!BA$8+'Res-Appliance class'!$D36*'RES S curve-disconnect'!BA$13+'Res-Appliance class'!$E36*'RES S curve-disconnect'!BA$18","v":11592.617241033769},{"$f":"'Res-Appliance class'!$B36*'RES S curve-disconnect'!BB$3+'Res-Appliance class'!$C36*'RES S curve-disconnect'!BB$8+'Res-Appliance class'!$D36*'RES S curve-disconnect'!BB$13+'Res-Appliance class'!$E36*'RES S curve-disconnect'!BB$18","v":13150.880840483529},{"$f":"'Res-Appliance class'!$B36*'RES S curve-disconnect'!BC$3+'Res-Appliance class'!$C36*'RES S curve-disconnect'!BC$8+'Res-Appliance class'!$D36*'RES S curve-disconnect'!BC$13+'Res-Appliance class'!$E36*'RES S curve-disconnect'!BC$18","v":15009.292095737939},{"$f":"'Res-Appliance class'!$B36*'RES S curve-disconnect'!BD$3+'Res-Appliance class'!$C36*'RES S curve-disconnect'!BD$8+'Res-Appliance class'!$D36*'RES S curve-disconnect'!BD$13+'Res-Appliance class'!$E36*'RES S curve-disconnect'!BD$18","v":16804.400443623254},{"$f":"'Res-Appliance class'!$B36*'RES S curve-disconnect'!BE$3+'Res-Appliance class'!$C36*'RES S curve-disconnect'!BE$8+'Res-Appliance class'!$D36*'RES S curve-disconnect'!BE$13+'Res-Appliance class'!$E36*'RES S curve-disconnect'!BE$18","v":18445.915790358835},{"$f":"'Res-Appliance class'!$B36*'RES S curve-disconnect'!BF$3+'Res-Appliance class'!$C36*'RES S curve-disconnect'!BF$8+'Res-Appliance class'!$D36*'RES S curve-disconnect'!BF$13+'Res-Appliance class'!$E36*'RES S curve-disconnect'!BF$18","v":20125.264904792726},{"$f":"'Res-Appliance class'!$B36*'RES S curve-disconnect'!BG$3+'Res-Appliance class'!$C36*'RES S curve-disconnect'!BG$8+'Res-Appliance class'!$D36*'RES S curve-disconnect'!BG$13+'Res-Appliance class'!$E36*'RES S curve-disconnect'!BG$18","v":22025.037975361447},{"$f":"'Res-Appliance class'!$B36*'RES S curve-disconnect'!BH$3+'Res-Appliance class'!$C36*'RES S curve-disconnect'!BH$8+'Res-Appliance class'!$D36*'RES S curve-disconnect'!BH$13+'Res-Appliance class'!$E36*'RES S curve-disconnect'!BH$18","v":24280.699334677251},{"$f":"'Res-Appliance class'!$B36*'RES S curve-disconnect'!BI$3+'Res-Appliance class'!$C36*'RES S curve-disconnect'!BI$8+'Res-Appliance class'!$D36*'RES S curve-disconnect'!BI$13+'Res-Appliance class'!$E36*'RES S curve-disconnect'!BI$18","v":27548.609627278704},{"$f":"'Res-Appliance class'!$B36*'RES S curve-disconnect'!BJ$3+'Res-Appliance class'!$C36*'RES S curve-disconnect'!BJ$8+'Res-Appliance class'!$D36*'RES S curve-disconnect'!BJ$13+'Res-Appliance class'!$E36*'RES S curve-disconnect'!BJ$18","v":32337.332251563384},{"$f":"'Res-Appliance class'!$B36*'RES S curve-disconnect'!BK$3+'Res-Appliance class'!$C36*'RES S curve-disconnect'!BK$8+'Res-Appliance class'!$D36*'RES S curve-disconnect'!BK$13+'Res-Appliance class'!$E36*'RES S curve-disconnect'!BK$18","v":39408.483007831994},{"$f":"'Res-Appliance class'!$B36*'RES S curve-disconnect'!BL$3+'Res-Appliance class'!$C36*'RES S curve-disconnect'!BL$8+'Res-Appliance class'!$D36*'RES S curve-disconnect'!BL$13+'Res-Appliance class'!$E36*'RES S curve-disconnect'!BL$18","v":-1372.7094648875336},{"$f":"'Res-Appliance class'!$B36*'RES S curve-disconnect'!BM$3+'Res-Appliance class'!$C36*'RES S curve-disconnect'!BM$8+'Res-Appliance class'!$D36*'RES S curve-disconnect'!BM$13+'Res-Appliance class'!$E36*'RES S curve-disconnect'!BM$18","v":-1363.7893673722085},{"$f":"'Res-Appliance class'!$B36*'RES S curve-disconnect'!BN$3+'Res-Appliance class'!$C36*'RES S curve-disconnect'!BN$8+'Res-Appliance class'!$D36*'RES S curve-disconnect'!BN$13+'Res-Appliance class'!$E36*'RES S curve-disconnect'!BN$18","v":-1358.9036101394254},{"$f":"'Res-Appliance class'!$B36*'RES S curve-disconnect'!BO$3+'Res-Appliance class'!$C36*'RES S curve-disconnect'!BO$8+'Res-Appliance class'!$D36*'RES S curve-disconnect'!BO$13+'Res-Appliance class'!$E36*'RES S curve-disconnect'!BO$18","v":-1345.9854965863251},{"$f":"'Res-Appliance class'!$B36*'RES S curve-disconnect'!BP$3+'Res-Appliance class'!$C36*'RES S curve-disconnect'!BP$8+'Res-Appliance class'!$D36*'RES S curve-disconnect'!BP$13+'Res-Appliance class'!$E36*'RES S curve-disconnect'!BP$18","v":-1337.1015780572338},{"$f":"'Res-Appliance class'!$B36*'RES S curve-disconnect'!BQ$3+'Res-Appliance class'!$C36*'RES S curve-disconnect'!BQ$8+'Res-Appliance class'!$D36*'RES S curve-disconnect'!BQ$13+'Res-Appliance class'!$E36*'RES S curve-disconnect'!BQ$18","v":-1328.2295746827995},{"$f":"'Res-Appliance class'!$B36*'RES S curve-disconnect'!BR$3+'Res-Appliance class'!$C36*'RES S curve-disconnect'!BR$8+'Res-Appliance class'!$D36*'RES S curve-disconnect'!BR$13+'Res-Appliance class'!$E36*'RES S curve-disconnect'!BR$18","v":-1323.3916228719563},{"$f":"'Res-Appliance class'!$B36*'RES S curve-disconnect'!BS$3+'Res-Appliance class'!$C36*'RES S curve-disconnect'!BS$8+'Res-Appliance class'!$D36*'RES S curve-disconnect'!BS$13+'Res-Appliance class'!$E36*'RES S curve-disconnect'!BS$18","v":-1310.5210278143081},{"$f":"'Res-Appliance class'!$B36*'RES S curve-disconnect'!BT$3+'Res-Appliance class'!$C36*'RES S curve-disconnect'!BT$8+'Res-Appliance class'!$D36*'RES S curve-disconnect'!BT$13+'Res-Appliance class'!$E36*'RES S curve-disconnect'!BT$18","v":-1301.684342635328},{"$f":"'Res-Appliance class'!$B36*'RES S curve-disconnect'!BU$3+'Res-Appliance class'!$C36*'RES S curve-disconnect'!BU$8+'Res-Appliance class'!$D36*'RES S curve-disconnect'!BU$13+'Res-Appliance class'!$E36*'RES S curve-disconnect'!BU$18","v":-1292.8592892355678},{"$f":"'Res-Appliance class'!$B36*'RES S curve-disconnect'!BV$3+'Res-Appliance class'!$C36*'RES S curve-disconnect'!BV$8+'Res-Appliance class'!$D36*'RES S curve-disconnect'!BV$13+'Res-Appliance class'!$E36*'RES S curve-disconnect'!BV$18","v":-1288.0680057827071},{"$f":"'Res-Appliance class'!$B36*'RES S curve-disconnect'!BW$3+'Res-Appliance class'!$C36*'RES S curve-disconnect'!BW$8+'Res-Appliance class'!$D36*'RES S curve-disconnect'!BW$13+'Res-Appliance class'!$E36*'RES S curve-disconnect'!BW$18","v":-1275.243799213991},{"$f":"'Res-Appliance class'!$B36*'RES S curve-disconnect'!BX$3+'Res-Appliance class'!$C36*'RES S curve-disconnect'!BX$8+'Res-Appliance class'!$D36*'RES S curve-disconnect'!BX$13+'Res-Appliance class'!$E36*'RES S curve-disconnect'!BX$18","v":-1266.4532243915089},{"$f":"'Res-Appliance class'!$B36*'RES S curve-disconnect'!BY$3+'Res-Appliance class'!$C36*'RES S curve-disconnect'!BY$8+'Res-Appliance class'!$D36*'RES S curve-disconnect'!BY$13+'Res-Appliance class'!$E36*'RES S curve-disconnect'!BY$18","v":-1257.674004941478},{"$f":"'Res-Appliance class'!$B36*'RES S curve-disconnect'!BZ$3+'Res-Appliance class'!$C36*'RES S curve-disconnect'!BZ$8+'Res-Appliance class'!$D36*'RES S curve-disconnect'!BZ$13+'Res-Appliance class'!$E36*'RES S curve-disconnect'!BZ$18","v":-1252.928280746351},{"$f":"'Res-Appliance class'!$B36*'RES S curve-disconnect'!CA$3+'Res-Appliance class'!$C36*'RES S curve-disconnect'!CA$8+'Res-Appliance class'!$D36*'RES S curve-disconnect'!CA$13+'Res-Appliance class'!$E36*'RES S curve-disconnect'!CA$18","v":-1240.149360447328},{"$f":"'Res-Appliance class'!$B36*'RES S curve-disconnect'!CB$3+'Res-Appliance class'!$C36*'RES S curve-disconnect'!CB$8+'Res-Appliance class'!$D36*'RES S curve-disconnect'!CB$13+'Res-Appliance class'!$E36*'RES S curve-disconnect'!CB$18","v":-1231.4038005997095},{"$f":"'Res-Appliance class'!$B36*'RES S curve-disconnect'!CC$3+'Res-Appliance class'!$C36*'RES S curve-disconnect'!CC$8+'Res-Appliance class'!$D36*'RES S curve-disconnect'!CC$13+'Res-Appliance class'!$E36*'RES S curve-disconnect'!CC$18","v":-1222.6693265122417},{"$f":"'Res-Appliance class'!$B36*'RES S curve-disconnect'!CD$3+'Res-Appliance class'!$C36*'RES S curve-disconnect'!CD$8+'Res-Appliance class'!$D36*'RES S curve-disconnect'!CD$13+'Res-Appliance class'!$E36*'RES S curve-disconnect'!CD$18","v":-1356.6270935342184}]
["Manningham (C)",null,{"$f":"'Res-Appliance class'!$B37*'RES S curve-disconnect'!C$3+'Res-Appliance class'!$C37*'RES S curve-disconnect'!C$8+'Res-Appliance class'!$D37*'RES S curve-disconnect'!C$13+'Res-Appliance class'!$E37*'RES S curve-disconnect'!C$18","v":-4651.6856905746354},{"$f":"'Res-Appliance class'!$B37*'RES S curve-disconnect'!D$3+'Res-Appliance class'!$C37*'RES S curve-disconnect'!D$8+'Res-Appliance class'!$D37*'RES S curve-disconnect'!D$13+'Res-Appliance class'!$E37*'RES S curve-disconnect'!D$18","v":-5298.7705209412889},{"$f":"'Res-Appliance class'!$B37*'RES S curve-disconnect'!E$3+'Res-Appliance class'!$C37*'RES S curve-disconnect'!E$8+'Res-Appliance class'!$D37*'RES S curve-disconnect'!E$13+'Res-Appliance class'!$E37*'RES S curve-disconnect'!E$18","v":-4685.4738103122854},{"$f":"'Res-Appliance class'!$B37*'RES S curve-disconnect'!F$3+'Res-Appliance class'!$C37*'RES S curve-disconnect'!F$8+'Res-Appliance class'!$D37*'RES S curve-disconnect'!F$13+'Res-Appliance class'!$E37*'RES S curve-disconnect'!F$18","v":-4490.2869840286457},{"$f":"'Res-Appliance class'!$B37*'RES S curve-disconnect'!G$3+'Res-Appliance class'!$C37*'RES S curve-disconnect'!G$8+'Res-Appliance class'!$D37*'RES S curve-disconnect'!G$13+'Res-Appliance class'!$E37*'RES S curve-disconnect'!G$18","v":-5868.4632196139055},{"$f":"'Res-Appliance class'!$B37*'RES S curve-disconnect'!H$3+'Res-Appliance class'!$C37*'RES S curve-disconnect'!H$8+'Res-Appliance class'!$D37*'RES S curve-disconnect'!H$13+'Res-Appliance class'!$E37*'RES S curve-disconnect'!H$18","v":-5896.5587738596805},{"$f":"'Res-Appliance class'!$B37*'RES S curve-disconnect'!I$3+'Res-Appliance class'!$C37*'RES S curve-disconnect'!I$8+'Res-Appliance class'!$D37*'RES S curve-disconnect'!I$13+'Res-Appliance class'!$E37*'RES S curve-disconnect'!I$18","v":-5343.8914246897666},{"$f":"'Res-Appliance class'!$B37*'RES S curve-disconnect'!J$3+'Res-Appliance class'!$C37*'RES S curve-disconnect'!J$8+'Res-Appliance class'!$D37*'RES S curve-disconnect'!J$13+'Res-Appliance class'!$E37*'RES S curve-disconnect'!J$18","v":-5656.6151113968117},{"$f":"'Res-Appliance class'!$B37*'RES S curve-disconnect'!K$3+'Res-Appliance class'!$C37*'RES S curve-disconnect'!K$8+'Res-Appliance class'!$D37*'RES S curve-disconnect'!K$13+'Res-Appliance class'!$E37*'RES S curve-disconnect'!K$18","v":-4679.9930745146839},{"$f":"'Res-Appliance class'!$B37*'RES S curve-disconnect'!L$3+'Res-Appliance class'!$C37*'RES S curve-disconnect'!L$8+'Res-Appliance class'!$D37*'RES S curve-disconnect'!L$13+'Res-Appliance class'!$E37*'RES S curve-disconnect'!L$18","v":-5132.2216809226084},{"$f":"'Res-Appliance class'!$B37*'RES S curve-disconnect'!M$3+'Res-Appliance class'!$C37*'RES S curve-disconnect'!M$8+'Res-Appliance class'!$D37*'RES S curve-disconnect'!M$13+'Res-Appliance class'!$E37*'RES S curve-disconnect'!M$18","v":-5954.4975004573753},{"$f":"'Res-Appliance class'!$B37*'RES S curve-disconnect'!N$3+'Res-Appliance class'!$C37*'RES S curve-disconnect'!N$8+'Res-Appliance class'!$D37*'RES S curve-disconnect'!N$13+'Res-Appliance class'!$E37*'RES S curve-disconnect'!N$18","v":-6040.4597015202917},{"$f":"'Res-Appliance class'!$B37*'RES S curve-disconnect'!O$3+'Res-Appliance class'!$C37*'RES S curve-disconnect'!O$8+'Res-Appliance class'!$D37*'RES S curve-disconnect'!O$13+'Res-Appliance class'!$E37*'RES S curve-disconnect'!O$18","v":-5338.7508027304648},{"$f":"'Res-Appliance class'!$B37*'RES S curve-disconnect'!P$3+'Res-Appliance class'!$C37*'RES S curve-disconnect'!P$8+'Res-Appliance class'!$D37*'RES S curve-disconnect'!P$13+'Res-Appliance class'!$E37*'RES S curve-disconnect'!P$18","v":-4780.7990923374573},{"$f":"'Res-Appliance class'!$B37*'RES S curve-disconnect'!Q$3+'Res-Appliance class'!$C37*'RES S curve-disconnect'!Q$8+'Res-Appliance class'!$D37*'RES S curve-disconnect'!Q$13+'Res-Appliance class'!$E37*'RES S curve-disconnect'!Q$18","v":-3932.8171596497259},{"$f":"'Res-Appliance class'!$B37*'RES S curve-disconnect'!R$3+'Res-Appliance class'!$C37*'RES S curve-disconnect'!R$8+'Res-Appliance class'!$D37*'RES S curve-disconnect'!R$13+'Res-Appliance class'!$E37*'RES S curve-disconnect'!R$18","v":-3456.0542796575883},{"$f":"'Res-Appliance class'!$B37*'RES S curve-disconnect'!S$3+'Res-Appliance class'!$C37*'RES S curve-disconnect'!S$8+'Res-Appliance class'!$D37*'RES S curve-disconnect'!S$13+'Res-Appliance class'!$E37*'RES S curve-disconnect'!S$18","v":-2693.5469909956837},{"$f":"'Res-Appliance class'!$B37*'RES S curve-disconnect'!T$3+'Res-Appliance class'!$C37*'RES S curve-disconnect'!T$8+'Res-Appliance class'!$D37*'RES S curve-disconnect'!T$13+'Res-Appliance class'!$E37*'RES S curve-disconnect'!T$18","v":-2280.5043317999098},{"$f":"'Res-Appliance class'!$B37*'RES S curve-disconnect'!U$3+'Res-Appliance class'!$C37*'RES S curve-disconnect'!U$8+'Res-Appliance class'!$D37*'RES S curve-disconnect'!U$13+'Res-Appliance class'!$E37*'RES S curve-disconnect'!U$18","v":-1809.6076667579609},{"$f":"'Res-Appliance class'!$B37*'RES S curve-disconnect'!V$3+'Res-Appliance class'!$C37*'RES S curve-disconnect'!V$8+'Res-Appliance class'!$D37*'RES S curve-disconnect'!V$13+'Res-Appliance class'!$E37*'RES S curve-disconnect'!V$18","v":-1492.0058736282003},{"$f":"'Res-Appliance class'!$B37*'RES S curve-disconnect'!W$3+'Res-Appliance class'!$C37*'RES S curve-disconnect'!W$8+'Res-Appliance class'!$D37*'RES S curve-disconnect'!W$13+'Res-Appliance class'!$E37*'RES S curve-disconnect'!W$18","v":-1246.3464625529018},{"$f":"'Res-Appliance class'!$B37*'RES S curve-disconnect'!X$3+'Res-Appliance class'!$C37*'RES S curve-disconnect'!X$8+'Res-Appliance class'!$D37*'RES S curve-disconnect'!X$13+'Res-Appliance class'!$E37*'RES S curve-disconnect'!X$18","v":-675.8652465864925},{"$f":"'Res-Appliance class'!$B37*'RES S curve-disconnect'!Y$3+'Res-Appliance class'!$C37*'RES S curve-disconnect'!Y$8+'Res-Appliance class'!$D37*'RES S curve-disconnect'!Y$13+'Res-Appliance class'!$E37*'RES S curve-disconnect'!Y$18","v":-98.833961781961307},{"$f":"'Res-Appliance class'!$B37*'RES S curve-disconnect'!Z$3+'Res-Appliance class'!$C37*'RES S curve-disconnect'!Z$8+'Res-Appliance class'!$D37*'RES S curve-disconnect'!Z$13+'Res-Appliance class'!$E37*'RES S curve-disconnect'!Z$18","v":288.51046229017442},{"$f":"'Res-Appliance class'!$B37*'RES S curve-disconnect'!AA$3+'Res-Appliance class'!$C37*'RES S curve-disconnect'!AA$8+'Res-Appliance class'!$D37*'RES S curve-disconnect'!AA$13+'Res-Appliance class'!$E37*'RES S curve-disconnect'!AA$18","v":675.56490419834017},{"$f":"'Res-Appliance class'!$B37*'RES S curve-disconnect'!AB$3+'Res-Appliance class'!$C37*'RES S curve-disconnect'!AB$8+'Res-Appliance class'!$D37*'RES S curve-disconnect'!AB$13+'Res-Appliance class'!$E37*'RES S curve-disconnect'!AB$18","v":982.72476443095002},{"$f":"'Res-Appliance class'!$B37*'RES S curve-disconnect'!AC$3+'Res-Appliance class'!$C37*'RES S curve-disconnect'!AC$8+'Res-Appliance class'!$D37*'RES S curve-disconnect'!AC$13+'Res-Appliance class'!$E37*'RES S curve-disconnect'!AC$18","v":1278.1251629949154},{"$f":"'Res-Appliance class'!$B37*'RES S curve-disconnect'!AD$3+'Res-Appliance class'!$C37*'RES S curve-disconnect'!AD$8+'Res-Appliance class'!$D37*'RES S curve-disconnect'!AD$13+'Res-Appliance class'!$E37*'RES S curve-disconnect'!AD$18","v":1548.3560394847991},{"$f":"'Res-Appliance class'!$B37*'RES S curve-disconnect'!AE$3+'Res-Appliance class'!$C37*'RES S curve-disconnect'!AE$8+'Res-Appliance class'!$D37*'RES S curve-disconnect'!AE$13+'Res-Appliance class'!$E37*'RES S curve-disconnect'!AE$18","v":1832.403056798101},{"$f":"'Res-Appliance class'!$B37*'RES S curve-disconnect'!AF$3+'Res-Appliance class'!$C37*'RES S curve-disconnect'!AF$8+'Res-Appliance class'!$D37*'RES S curve-disconnect'!AF$13+'Res-Appliance class'!$E37*'RES S curve-disconnect'!AF$18","v":2203.3567177873897},{"$f":"'Res-Appliance class'!$B37*'RES S curve-disconnect'!AG$3+'Res-Appliance class'!$C37*'RES S curve-disconnect'!AG$8+'Res-Appliance class'!$D37*'RES S curve-disconnect'!AG$13+'Res-Appliance class'!$E37*'RES S curve-disconnect'!AG$18","v":2464.9246315992932},{"$f":"'Res-Appliance class'!$B37*'RES S curve-disconnect'!AH$3+'Res-Appliance class'!$C37*'RES S curve-disconnect'!AH$8+'Res-Appliance class'!$D37*'RES S curve-disconnect'!AH$13+'Res-Appliance class'!$E37*'RES S curve-disconnect'!AH$18","v":2834.070927543803},{"$f":"'Res-Appliance class'!$B37*'RES S curve-disconnect'!AI$3+'Res-Appliance class'!$C37*'RES S curve-disconnect'!AI$8+'Res-Appliance class'!$D37*'RES S curve-disconnect'!AI$13+'Res-Appliance class'!$E37*'RES S curve-disconnect'!AI$18","v":3164.9252475175726},{"$f":"'Res-Appliance class'!$B37*'RES S curve-disconnect'!AJ$3+'Res-Appliance class'!$C37*'RES S curve-disconnect'!AJ$8+'Res-Appliance class'!$D37*'RES S curve-disconnect'!AJ$13+'Res-Appliance class'!$E37*'RES S curve-disconnect'!AJ$18","v":3463.7156933277101},{"$f":"'Res-Appliance class'!$B37*'RES S curve-disconnect'!AK$3+'Res-Appliance class'!$C37*'RES S curve-disconnect'!AK$8+'Res-Appliance class'!$D37*'RES S curve-disconnect'!AK$13+'Res-Appliance class'!$E37*'RES S curve-disconnect'!AK$18","v":3780.8917092039765},{"$f":"'Res-Appliance class'!$B37*'RES S curve-disconnect'!AL$3+'Res-Appliance class'!$C37*'RES S curve-disconnect'!AL$8+'Res-Appliance class'!$D37*'RES S curve-disconnect'!AL$13+'Res-Appliance class'!$E37*'RES S curve-disconnect'!AL$18","v":2685.4229907903105},{"$f":"'Res-Appliance class'!$B37*'RES S curve-disconnect'!AM$3+'Res-Appliance class'!$C37*'RES S curve-disconnect'!AM$8+'Res-Appliance class'!$D37*'RES S curve-disconnect'!AM$13+'Res-Appliance class'!$E37*'RES S curve-disconnect'!AM$18","v":2540.4627430072437},{"$f":"'Res-Appliance class'!$B37*'RES S curve-disconnect'!AN$3+'Res-Appliance class'!$C37*'RES S curve-disconnect'!AN$8+'Res-Appliance class'!$D37*'RES S curve-disconnect'!AN$13+'Res-Appliance class'!$E37*'RES S curve-disconnect'!AN$18","v":2839.8887333356452},{"$f":"'Res-Appliance class'!$B37*'RES S curve-disconnect'!AO$3+'Res-Appliance class'!$C37*'RES S curve-disconnect'!AO$8+'Res-Appliance class'!$D37*'RES S curve-disconnect'!AO$13+'Res-Appliance class'!$E37*'RES S curve-disconnect'!AO$18","v":3206.9218138225792},{"$f":"'Res-Appliance class'!$B37*'RES S curve-disconnect'!AP$3+'Res-Appliance class'!$C37*'RES S curve-disconnect'!AP$8+'Res-Appliance class'!$D37*'RES S curve-disconnect'!AP$13+'Res-Appliance class'!$E37*'RES S curve-disconnect'!AP$18","v":3546.4787528381007},{"$f":"'Res-Appliance class'!$B37*'RES S curve-disconnect'!AQ$3+'Res-Appliance class'!$C37*'RES S curve-disconnect'!AQ$8+'Res-Appliance class'!$D37*'RES S curve-disconnect'!AQ$13+'Res-Appliance class'!$E37*'RES S curve-disconnect'!AQ$18","v":3911.5656629483765},{"$f":"'Res-Appliance class'!$B37*'RES S curve-disconnect'!AR$3+'Res-Appliance class'!$C37*'RES S curve-disconnect'!AR$8+'Res-Appliance class'!$D37*'RES S curve-disconnect'!AR$13+'Res-Appliance class'!$E37*'RES S curve-disconnect'!AR$18","v":4312.725147086393},{"$f":"'Res-Appliance class'!$B37*'RES S curve-disconnect'!AS$3+'Res-Appliance class'!$C37*'RES S curve-disconnect'!AS$8+'Res-Appliance class'!$D37*'RES S curve-disconnect'!AS$13+'Res-Appliance class'!$E37*'RES S curve-disconnect'!AS$18","v":4762.9639837777768},{"$f":"'Res-Appliance class'!$B37*'RES S curve-disconnect'!AT$3+'Res-Appliance class'!$C37*'RES S curve-disconnect'!AT$8+'Res-Appliance class'!$D37*'RES S curve-disconnect'!AT$13+'Res-Appliance class'!$E37*'RES S curve-disconnect'!AT$18","v":5266.9353328589987},{"$f":"'Res-Appliance class'!$B37*'RES S curve-disconnect'!AU$3+'Res-Appliance class'!$C37*'RES S curve-disconnect'!AU$8+'Res-Appliance class'!$D37*'RES S curve-disconnect'!AU$13+'Res-Appliance class'!$E37*'RES S curve-disconnect'!AU$18","v":5849.5718523533724},{"$f":"'Res-Appliance class'!$B37*'RES S curve-disconnect'!AV$3+'Res-Appliance class'!$C37*'RES S curve-disconnect'!AV$8+'Res-Appliance class'!$D37*'RES S curve-disconnect'!AV$13+'Res-Appliance class'!$E37*'RES S curve-disconnect'!AV$18","v":6514.6049619210071},{"$f":"'Res-Appliance class'!$B37*'RES S curve-disconnect'!AW$3+'Res-Appliance class'!$C37*'RES S curve-disconnect'!AW$8+'Res-Appliance class'!$D37*'RES S curve-disconnect'!AW$13+'Res-Appliance class'!$E37*'RES S curve-disconnect'!AW$18","v":7279.2139021600842},{"$f":"'Res-Appliance class'!$B37*'RES S curve-disconnect'!AX$3+'Res-Appliance class'!$C37*'RES S curve-disconnect'!AX$8+'Res-Appliance class'!$D37*'RES S curve-disconnect'!AX$13+'Res-Appliance class'!$E37*'RES S curve-disconnect'!AX$18","v":8151.1757470777502},{"$f":"'Res-Appliance class'!$B37*'RES S curve-disconnect'!AY$3+'Res-Appliance class'!$C37*'RES S curve-disconnect'!AY$8+'Res-Appliance class'!$D37*'RES S curve-disconnect'!AY$13+'Res-Appliance class'!$E37*'RES S curve-disconnect'!AY$18","v":9157.0948805803764},{"$f":"'Res-Appliance class'!$B37*'RES S curve-disconnect'!AZ$3+'Res-Appliance class'!$C37*'RES S curve-disconnect'!AZ$8+'Res-Appliance class'!$D37*'RES S curve-disconnect'!AZ$13+'Res-Appliance class'!$E37*'RES S curve-disconnect'!AZ$18","v":10307.743980269068},{"$f":"'Res-Appliance class'!$B37*'RES S curve-disconnect'!BA$3+'Res-Appliance class'!$C37*'RES S curve-disconnect'!BA$8+'Res-Appliance class'!$D37*'RES S curve-disconnect'!BA$13+'Res-Appliance class'!$E37*'RES S curve-disconnect'!BA$18","v":11640.806970350402},{"$f":"'Res-Appliance class'!$B37*'RES S curve-disconnect'!BB$3+'Res-Appliance class'!$C37*'RES S curve-disconnect'!BB$8+'Res-Appliance class'!$D37*'RES S curve-disconnect'!BB$13+'Res-Appliance class'!$E37*'RES S curve-disconnect'!BB$18","v":13199.140871199626},{"$f":"'Res-Appliance class'!$B37*'RES S curve-disconnect'!BC$3+'Res-Appliance class'!$C37*'RES S curve-disconnect'!BC$8+'Res-Appliance class'!$D37*'RES S curve-disconnect'!BC$13+'Res-Appliance class'!$E37*'RES S curve-disconnect'!BC$18","v":15057.639017184991},{"$f":"'Res-Appliance class'!$B37*'RES S curve-disconnect'!BD$3+'Res-Appliance class'!$C37*'RES S curve-disconnect'!BD$8+'Res-Appliance class'!$D37*'RES S curve-disconnect'!BD$13+'Res-Appliance class'!$E37*'RES S curve-disconnect'!BD$18","v":16852.832730106806},{"$f":"'Res-Appliance class'!$B37*'RES S curve-disconnect'!BE$3+'Res-Appliance class'!$C37*'RES S curve-disconnect'!BE$8+'Res-Appliance class'!$D37*'RES S curve-disconnect'!BE$13+'Res-Appliance class'!$E37*'RES S curve-disconnect'!BE$18","v":18494.425624101379},{"$f":"'Res-Appliance class'!$B37*'RES S curve-disconnect'!BF$3+'Res-Appliance class'!$C37*'RES S curve-disconnect'!BF$8+'Res-Appliance class'!$D37*'RES S curve-disconnect'!BF$13+'Res-Appliance class'!$E37*'RES S curve-disconnect'!BF$18","v":20173.854330438669},{"$f":"'Res-Appliance class'!$B37*'RES S curve-disconnect'!BG$3+'Res-Appliance class'!$C37*'RES S curve-disconnect'!BG$8+'Res-Appliance class'!$D37*'RES S curve-disconnect'!BG$13+'Res-Appliance class'!$E37*'RES S curve-disconnect'!BG$18","v":22073.718720618534},{"$f":"'Res-Appliance class'!$B37*'RES S curve-disconnect'!BH$3+'Res-Appliance class'!$C37*'RES S curve-disconnect'!BH$8+'Res-Appliance class'!$D37*'RES S curve-disconnect'!BH$13+'Res-Appliance class'!$E37*'RES S curve-disconnect'!BH$18","v":24329.491653463585},{"$f":"'Res-Appliance class'!$B37*'RES S curve-disconnect'!BI$3+'Res-Appliance class'!$C37*'RES S curve-disconnect'!BI$8+'Res-Appliance class'!$D37*'RES S curve-disconnect'!BI$13+'Res-Appliance class'!$E37*'RES S curve-disconnect'!BI$18","v":27597.56952407716},{"$f":"'Res-Appliance class'!$B37*'RES S curve-disconnect'!BJ$3+'Res-Appliance class'!$C37*'RES S curve-disconnect'!BJ$8+'Res-Appliance class'!$D37*'RES S curve-disconnect'!BJ$13+'Res-Appliance class'!$E37*'RES S curve-disconnect'!BJ$18","v":32386.546353509479},{"$f":"'Res-Appliance class'!$B37*'RES S curve-disconnect'!BK$3+'Res-Appliance class'!$C37*'RES S curve-disconnect'!BK$8+'Res-Appliance class'!$D37*'RES S curve-disconnect'!BK$13+'Res-Appliance class'!$E37*'RES S curve-disconnect'!BK$18","v":39458.082213042217},{"$f":"'Res-Appliance class'!$B37*'RES S curve-disconnect'!BL$3+'Res-Appliance class'!$C37*'RES S curve-disconnect'!BL$8+'Res-Appliance class'!$D37*'RES S curve-disconnect'!BL$13+'Res-Appliance class'!$E37*'RES S curve-disconnect'!BL$18","v":-1325.3472834860936},{"$f":"'Res-Appliance class'!$B37*'RES S curve-disconnect'!BM$3+'Res-Appliance class'!$C37*'RES S curve-disconnect'!BM$8+'Res-Appliance class'!$D37*'RES S curve-disconnect'!BM$13+'Res-Appliance class'!$E37*'RES S curve-disconnect'!BM$18","v":-1316.4401256369949},{"$f":"'Res-Appliance class'!$B37*'RES S curve-disconnect'!BN$3+'Res-Appliance class'!$C37*'RES S curve-disconnect'!BN$8+'Res-Appliance class'!$D37*'RES S curve-disconnect'!BN$13+'Res-Appliance class'!$E37*'RES S curve-disconnect'!BN$18","v":-1311.5672060527957},{"$f":"'Res-Appliance class'!$B37*'RES S curve-disconnect'!BO$3+'Res-Appliance class'!$C37*'RES S curve-disconnect'!BO$8+'Res-Appliance class'!$D37*'RES S curve-disconnect'!BO$13+'Res-Appliance class'!$E37*'RES S curve-disconnect'!BO$18","v":-1298.6618288319532},{"$f":"'Res-Appliance class'!$B37*'RES S curve-disconnect'!BP$3+'Res-Appliance class'!$C37*'RES S curve-disconnect'!BP$8+'Res-Appliance class'!$D37*'RES S curve-disconnect'!BP$13+'Res-Appliance class'!$E37*'RES S curve-disconnect'!BP$18","v":-1289.7905460154805},{"$f":"'Res-Appliance class'!$B37*'RES S curve-disconnect'!BQ$3+'Res-Appliance class'!$C37*'RES S curve-disconnect'!BQ$8+'Res-Appliance class'!$D37*'RES S curve-disconnect'!BQ$13+'Res-Appliance class'!$E37*'RES S curve-disconnect'!BQ$18","v":-1280.9310784261143},{"$f":"'Res-Appliance class'!$B37*'RES S curve-disconnect'!BR$3+'Res-Appliance class'!$C37*'RES S curve-disconnect'!BR$8+'Res-Appliance class'!$D37*'RES S curve-disconnect'!BR$13+'Res-Appliance class'!$E37*'RES S curve-disconnect'!BR$18","v":-1276.1055631603085},{"$f":"'Res-Appliance class'!$B37*'RES S curve-disconnect'!BS$3+'Res-Appliance class'!$C37*'RES S curve-disconnect'!BS$8+'Res-Appliance class'!$D37*'RES S curve-disconnect'!BS$13+'Res-Appliance class'!$E37*'RES S curve-disconnect'!BS$18","v":-1263.2473060906477},{"$f":"'Res-Appliance class'!$B37*'RES S curve-disconnect'!BT$3+'Res-Appliance class'!$C37*'RES S curve-disconnect'!BT$8+'Res-Appliance class'!$D37*'RES S curve-disconnect'!BT$13+'Res-Appliance class'!$E37*'RES S curve-disconnect'!BT$18","v":-1254.4228610210751},{"$f":"'Res-Appliance class'!$B37*'RES S curve-disconnect'!BU$3+'Res-Appliance class'!$C37*'RES S curve-disconnect'!BU$8+'Res-Appliance class'!$D37*'RES S curve-disconnect'!BU$13+'Res-Appliance class'!$E37*'RES S curve-disconnect'!BU$18","v":-1245.6099505261329},{"$f":"'Res-Appliance class'!$B37*'RES S curve-disconnect'!BV$3+'Res-Appliance class'!$C37*'RES S curve-disconnect'!BV$8+'Res-Appliance class'!$D37*'RES S curve-disconnect'!BV$13+'Res-Appliance class'!$E37*'RES S curve-disconnect'!BV$18","v":-1240.830713443039},{"$f":"'Res-Appliance class'!$B37*'RES S curve-disconnect'!BW$3+'Res-Appliance class'!$C37*'RES S curve-disconnect'!BW$8+'Res-Appliance class'!$D37*'RES S curve-disconnect'!BW$13+'Res-Appliance class'!$E37*'RES S curve-disconnect'!BW$18","v":-1228.0184573741544},{"$f":"'Res-Appliance class'!$B37*'RES S curve-disconnect'!BX$3+'Res-Appliance class'!$C37*'RES S curve-disconnect'!BX$8+'Res-Appliance class'!$D37*'RES S curve-disconnect'!BX$13+'Res-Appliance class'!$E37*'RES S curve-disconnect'!BX$18","v":-1219.2397378422911},{"$f":"'Res-Appliance class'!$B37*'RES S curve-disconnect'!BY$3+'Res-Appliance class'!$C37*'RES S curve-disconnect'!BY$8+'Res-Appliance class'!$D37*'RES S curve-disconnect'!BY$13+'Res-Appliance class'!$E37*'RES S curve-disconnect'!BY$18","v":-1210.4722791300221},{"$f":"'Res-Appliance class'!$B37*'RES S curve-disconnect'!BZ$3+'Res-Appliance class'!$C37*'RES S curve-disconnect'!BZ$8+'Res-Appliance class'!$D37*'RES S curve-disconnect'!BZ$13+'Res-Appliance class'!$E37*'RES S curve-disconnect'!BZ$18","v":-1205.7382217718207},{"$f":"'Res-Appliance class'!$B37*'RES S curve-disconnect'!CA$3+'Res-Appliance class'!$C37*'RES S curve-disconnect'!CA$8+'Res-Appliance class'!$D37*'RES S curve-disconnect'!CA$13+'Res-Appliance class'!$E37*'RES S curve-disconnect'!CA$18","v":-1192.9708750565972},{"$f":"'Res-Appliance class'!$B37*'RES S curve-disconnect'!CB$3+'Res-Appliance class'!$C37*'RES S curve-disconnect'!CB$8+'Res-Appliance class'!$D37*'RES S curve-disconnect'!CB$13+'Res-Appliance class'!$E37*'RES S curve-disconnect'!CB$18","v":-1184.2367961830826},{"$f":"'Res-Appliance class'!$B37*'RES S curve-disconnect'!CC$3+'Res-Appliance class'!$C37*'RES S curve-disconnect'!CC$8+'Res-Appliance class'!$D37*'RES S curve-disconnect'!CC$13+'Res-Appliance class'!$E37*'RES S curve-disconnect'!CC$18","v":-1175.5137110991986},{"$f":"'Res-Appliance class'!$B37*'RES S curve-disconnect'!CD$3+'Res-Appliance class'!$C37*'RES S curve-disconnect'!CD$8+'Res-Appliance class'!$D37*'RES S curve-disconnect'!CD$13+'Res-Appliance class'!$E37*'RES S curve-disconnect'!CD$18","v":-1309.4910558188326}]
["Maroondah (C)",null,{"$f":"'Res-Appliance class'!$B38*'RES S curve-disconnect'!C$3+'Res-Appliance class'!$C38*'RES S curve-disconnect'!C$8+'Res-Appliance class'!$D38*'RES S curve-disconnect'!C$13+'Res-Appliance class'!$E38*'RES S curve-disconnect'!C$18","v":-4677.1394713538293},{"$f":"'Res-Appliance class'!$B38*'RES S curve-disconnect'!D$3+'Res-Appliance class'!$C38*'RES S curve-disconnect'!D$8+'Res-Appliance class'!$D38*'RES S curve-disconnect'!D$13+'Res-Appliance class'!$E38*'RES S curve-disconnect'!D$18","v":-5324.4450820643451},{"$f":"'Res-Appliance class'!$B38*'RES S curve-disconnect'!E$3+'Res-Appliance class'!$C38*'RES S curve-disconnect'!E$8+'Res-Appliance class'!$D38*'RES S curve-disconnect'!E$13+'Res-Appliance class'!$E38*'RES S curve-disconnect'!E$18","v":-4712.3541577481537},{"$f":"'Res-Appliance class'!$B38*'RES S curve-disconnect'!F$3+'Res-Appliance class'!$C38*'RES S curve-disconnect'!F$8+'Res-Appliance class'!$D38*'RES S curve-disconnect'!F$13+'Res-Appliance class'!$E38*'RES S curve-disconnect'!F$18","v":-4517.1418103359219},{"$f":"'Res-Appliance class'!$B38*'RES S curve-disconnect'!G$3+'Res-Appliance class'!$C38*'RES S curve-disconnect'!G$8+'Res-Appliance class'!$D38*'RES S curve-disconnect'!G$13+'Res-Appliance class'!$E38*'RES S curve-disconnect'!G$18","v":-5886.9141761590254},{"$f":"'Res-Appliance class'!$B38*'RES S curve-disconnect'!H$3+'Res-Appliance class'!$C38*'RES S curve-disconnect'!H$8+'Res-Appliance class'!$D38*'RES S curve-disconnect'!H$13+'Res-Appliance class'!$E38*'RES S curve-disconnect'!H$18","v":-5916.1948956734859},{"$f":"'Res-Appliance class'!$B38*'RES S curve-disconnect'!I$3+'Res-Appliance class'!$C38*'RES S curve-disconnect'!I$8+'Res-Appliance class'!$D38*'RES S curve-disconnect'!I$13+'Res-Appliance class'!$E38*'RES S curve-disconnect'!I$18","v":-5364.2665097164481},{"$f":"'Res-Appliance class'!$B38*'RES S curve-disconnect'!J$3+'Res-Appliance class'!$C38*'RES S curve-disconnect'!J$8+'Res-Appliance class'!$D38*'RES S curve-disconnect'!J$13+'Res-Appliance class'!$E38*'RES S curve-disconnect'!J$18","v":-5681.4085398289099},{"$f":"'Res-Appliance class'!$B38*'RES S curve-disconnect'!K$3+'Res-Appliance class'!$C38*'RES S curve-disconnect'!K$8+'Res-Appliance class'!$D38*'RES S curve-disconnect'!K$13+'Res-Appliance class'!$E38*'RES S curve-disconnect'!K$18","v":-4705.6888239788932},{"$f":"'Res-Appliance class'!$B38*'RES S curve-disconnect'!L$3+'Res-Appliance class'!$C38*'RES S curve-disconnect'!L$8+'Res-Appliance class'!$D38*'RES S curve-disconnect'!L$13+'Res-Appliance class'!$E38*'RES S curve-disconnect'!L$18","v":-5157.7984000224606},{"$f":"'Res-Appliance class'!$B38*'RES S curve-disconnect'!M$3+'Res-Appliance class'!$C38*'RES S curve-disconnect'!M$8+'Res-Appliance class'!$D38*'RES S curve-disconnect'!M$13+'Res-Appliance class'!$E38*'RES S curve-disconnect'!M$18","v":-5977.9664949781318},{"$f":"'Res-Appliance class'!$B38*'RES S curve-disconnect'!N$3+'Res-Appliance class'!$C38*'RES S curve-disconnect'!N$8+'Res-Appliance class'!$D38*'RES S curve-disconnect'!N$13+'Res-Appliance class'!$E38*'RES S curve-disconnect'!N$18","v":-6063.5319174848955},{"$f":"'Res-Appliance class'!$B38*'RES S curve-disconnect'!O$3+'Res-Appliance class'!$C38*'RES S curve-disconnect'!O$8+'Res-Appliance class'!$D38*'RES S curve-disconnect'!O$13+'Res-Appliance class'!$E38*'RES S curve-disconnect'!O$18","v":-5362.430368080165},{"$f":"'Res-Appliance class'!$B38*'RES S curve-disconnect'!P$3+'Res-Appliance class'!$C38*'RES S curve-disconnect'!P$8+'Res-Appliance class'!$D38*'RES S curve-disconnect'!P$13+'Res-Appliance class'!$E38*'RES S curve-disconnect'!P$18","v":-4805.102803071979},{"$f":"'Res-Appliance class'!$B38*'RES S curve-disconnect'!Q$3+'Res-Appliance class'!$C38*'RES S curve-disconnect'!Q$8+'Res-Appliance class'!$D38*'RES S curve-disconnect'!Q$13+'Res-Appliance class'!$E38*'RES S curve-disconnect'!Q$18","v":-3958.1760491308005},{"$f":"'Res-Appliance class'!$B38*'RES S curve-disconnect'!R$3+'Res-Appliance class'!$C38*'RES S curve-disconnect'!R$8+'Res-Appliance class'!$D38*'RES S curve-disconnect'!R$13+'Res-Appliance class'!$E38*'RES S curve-disconnect'!R$18","v":-3481.9331817297084},{"$f":"'Res-Appliance class'!$B38*'RES S curve-disconnect'!S$3+'Res-Appliance class'!$C38*'RES S curve-disconnect'!S$8+'Res-Appliance class'!$D38*'RES S curve-disconnect'!S$13+'Res-Appliance class'!$E38*'RES S curve-disconnect'!S$18","v":-2720.3719786114602},{"$f":"'Res-Appliance class'!$B38*'RES S curve-disconnect'!T$3+'Res-Appliance class'!$C38*'RES S curve-disconnect'!T$8+'Res-Appliance class'!$D38*'RES S curve-disconnect'!T$13+'Res-Appliance class'!$E38*'RES S curve-disconnect'!T$18","v":-2307.750790288716},{"$f":"'Res-Appliance class'!$B38*'RES S curve-disconnect'!U$3+'Res-Appliance class'!$C38*'RES S curve-disconnect'!U$8+'Res-Appliance class'!$D38*'RES S curve-disconnect'!U$13+'Res-Appliance class'!$E38*'RES S curve-disconnect'!U$18","v":-1837.2887330930091},{"$f":"'Res-Appliance class'!$B38*'RES S curve-disconnect'!V$3+'Res-Appliance class'!$C38*'RES S curve-disconnect'!V$8+'Res-Appliance class'!$D38*'RES S curve-disconnect'!V$13+'Res-Appliance class'!$E38*'RES S curve-disconnect'!V$18","v":-1519.7911046226816},{"$f":"'Res-Appliance class'!$B38*'RES S curve-disconnect'!W$3+'Res-Appliance class'!$C38*'RES S curve-disconnect'!W$8+'Res-Appliance class'!$D38*'RES S curve-disconnect'!W$13+'Res-Appliance class'!$E38*'RES S curve-disconnect'!W$18","v":-1274.2662799950522},{"$f":"'Res-Appliance class'!$B38*'RES S curve-disconnect'!X$3+'Res-Appliance class'!$C38*'RES S curve-disconnect'!X$8+'Res-Appliance class'!$D38*'RES S curve-disconnect'!X$13+'Res-Appliance class'!$E38*'RES S curve-disconnect'!X$18","v":-704.53482155872211},{"$f":"'Res-Appliance class'!$B38*'RES S curve-disconnect'!Y$3+'Res-Appliance class'!$C38*'RES S curve-disconnect'!Y$8+'Res-Appliance class'!$D38*'RES S curve-disconnect'!Y$13+'Res-Appliance class'!$E38*'RES S curve-disconnect'!Y$18","v":-128.24999259005185},{"$f":"'Res-Appliance class'!$B38*'RES S curve-disconnect'!Z$3+'Res-Appliance class'!$C38*'RES S curve-disconnect'!Z$8+'Res-Appliance class'!$D38*'RES S curve-disconnect'!Z$13+'Res-Appliance class'!$E38*'RES S curve-disconnect'!Z$18","v":258.70215489376233},{"$f":"'Res-Appliance class'!$B38*'RES S curve-disconnect'!AA$3+'Res-Appliance class'!$C38*'RES S curve-disconnect'!AA$8+'Res-Appliance class'!$D38*'RES S curve-disconnect'!AA$13+'Res-Appliance class'!$E38*'RES S curve-disconnect'!AA$18","v":645.38031534892525},{"$f":"'Res-Appliance class'!$B38*'RES S curve-disconnect'!AB$3+'Res-Appliance class'!$C38*'RES S curve-disconnect'!AB$8+'Res-Appliance class'!$D38*'RES S curve-disconnect'!AB$13+'Res-Appliance class'!$E38*'RES S curve-disconnect'!AB$18","v":952.19363427154713},{"$f":"'Res-Appliance class'!$B38*'RES S curve-disconnect'!AC$3+'Res-Appliance class'!$C38*'RES S curve-disconnect'!AC$8+'Res-Appliance class'!$D38*'RES S curve-disconnect'!AC$13+'Res-Appliance class'!$E38*'RES S curve-disconnect'!AC$18","v":1247.273709263751},{"$f":"'Res-Appliance class'!$B38*'RES S curve-disconnect'!AD$3+'Res-Appliance class'!$C38*'RES S curve-disconnect'!AD$8+'Res-Appliance class'!$D38*'RES S curve-disconnect'!AD$13+'Res-Appliance class'!$E38*'RES S curve-disconnect'!AD$18","v":1517.2253853279365},{"$f":"'Res-Appliance class'!$B38*'RES S curve-disconnect'!AE$3+'Res-Appliance class'!$C38*'RES S curve-disconnect'!AE$8+'Res-Appliance class'!$D38*'RES S curve-disconnect'!AE$13+'Res-Appliance class'!$E38*'RES S curve-disconnect'!AE$18","v":1800.9857347646894},{"$f":"'Res-Appliance class'!$B38*'RES S curve-disconnect'!AF$3+'Res-Appliance class'!$C38*'RES S curve-disconnect'!AF$8+'Res-Appliance class'!$D38*'RES S curve-disconnect'!AF$13+'Res-Appliance class'!$E38*'RES S curve-disconnect'!AF$18","v":2171.4829385827393},{"$f":"'Res-Appliance class'!$B38*'RES S curve-disconnect'!AG$3+'Res-Appliance class'!$C38*'RES S curve-disconnect'!AG$8+'Res-Appliance class'!$D38*'RES S curve-disconnect'!AG$13+'Res-Appliance class'!$E38*'RES S curve-disconnect'!AG$18","v":2432.6217422501704},{"$f":"'Res-Appliance class'!$B38*'RES S curve-disconnect'!AH$3+'Res-Appliance class'!$C38*'RES S curve-disconnect'!AH$8+'Res-Appliance class'!$D38*'RES S curve-disconnect'!AH$13+'Res-Appliance class'!$E38*'RES S curve-disconnect'!AH$18","v":2801.1204531205103},{"$f":"'Res-Appliance class'!$B38*'RES S curve-disconnect'!AI$3+'Res-Appliance class'!$C38*'RES S curve-disconnect'!AI$8+'Res-Appliance class'!$D38*'RES S curve-disconnect'!AI$13+'Res-Appliance class'!$E38*'RES S curve-disconnect'!AI$18","v":3131.4284474228602},{"$f":"'Res-Appliance class'!$B38*'RES S curve-disconnect'!AJ$3+'Res-Appliance class'!$C38*'RES S curve-disconnect'!AJ$8+'Res-Appliance class'!$D38*'RES S curve-disconnect'!AJ$13+'Res-Appliance class'!$E38*'RES S curve-disconnect'!AJ$18","v":3429.7199538824234},{"$f":"'Res-Appliance class'!$B38*'RES S curve-disconnect'!AK$3+'Res-Appliance class'!$C38*'RES S curve-disconnect'!AK$8+'Res-Appliance class'!$D38*'RES S curve-disconnect'!AK$13+'Res-Appliance class'!$E38*'RES S curve-disconnect'!AK$18","v":3746.3665328346528},{"$f":"'Res-Appliance class'!$B38*'RES S curve-disconnect'!AL$3+'Res-Appliance class'!$C38*'RES S curve-disconnect'!AL$8+'Res-Appliance class'!$D38*'RES S curve-disconnect'!AL$13+'Res-Appliance class'!$E38*'RES S curve-disconnect'!AL$18","v":2652.7001860745818},{"$f":"'Res-Appliance class'!$B38*'RES S curve-disconnect'!AM$3+'Res-Appliance class'!$C38*'RES S curve-disconnect'!AM$8+'Res-Appliance class'!$D38*'RES S curve-disconnect'!AM$13+'Res-Appliance class'!$E38*'RES S curve-disconnect'!AM$18","v":2508.0398880359526},{"$f":"'Res-Appliance class'!$B38*'RES S curve-disconnect'!AN$3+'Res-Appliance class'!$C38*'RES S curve-disconnect'!AN$8+'Res-Appliance class'!$D38*'RES S curve-disconnect'!AN$13+'Res-Appliance class'!$E38*'RES S curve-disconnect'!AN$18","v":2806.9919615489698},{"$f":"'Res-Appliance class'!$B38*'RES S curve-disconnect'!AO$3+'Res-Appliance class'!$C38*'RES S curve-disconnect'!AO$8+'Res-Appliance class'!$D38*'RES S curve-disconnect'!AO$13+'Res-Appliance class'!$E38*'RES S curve-disconnect'!AO$18","v":3173.416892811877},{"$f":"'Res-Appliance class'!$B38*'RES S curve-disconnect'!AP$3+'Res-Appliance class'!$C38*'RES S curve-disconnect'!AP$8+'Res-Appliance class'!$D38*'RES S curve-disconnect'!AP$13+'Res-Appliance class'!$E38*'RES S curve-disconnect'!AP$18","v":3512.3978960465333},{"$f":"'Res-Appliance class'!$B38*'RES S curve-disconnect'!AQ$3+'Res-Appliance class'!$C38*'RES S curve-disconnect'!AQ$8+'Res-Appliance class'!$D38*'RES S curve-disconnect'!AQ$13+'Res-Appliance class'!$E38*'RES S curve-disconnect'!AQ$18","v":3876.8788962112953},{"$f":"'Res-Appliance class'!$B38*'RES S curve-disconnect'!AR$3+'Res-Appliance class'!$C38*'RES S curve-disconnect'!AR$8+'Res-Appliance class'!$D38*'RES S curve-disconnect'!AR$13+'Res-Appliance class'!$E38*'RES S curve-disconnect'!AR$18","v":4277.362777143152},{"$f":"'Res-Appliance class'!$B38*'RES S curve-disconnect'!AS$3+'Res-Appliance class'!$C38*'RES S curve-disconnect'!AS$8+'Res-Appliance class'!$D38*'RES S curve-disconnect'!AS$13+'Res-Appliance class'!$E38*'RES S curve-disconnect'!AS$18","v":4726.839475955223},{"$f":"'Res-Appliance class'!$B38*'RES S curve-disconnect'!AT$3+'Res-Appliance class'!$C38*'RES S curve-disconnect'!AT$8+'Res-Appliance class'!$D38*'RES S curve-disconnect'!AT$13+'Res-Appliance class'!$E38*'RES S curve-disconnect'!AT$18","v":5229.946372237664},{"$f":"'Res-Appliance class'!$B38*'RES S curve-disconnect'!AU$3+'Res-Appliance class'!$C38*'RES S curve-disconnect'!AU$8+'Res-Appliance class'!$D38*'RES S curve-disconnect'!AU$13+'Res-Appliance class'!$E38*'RES S curve-disconnect'!AU$18","v":5811.5931243915611},{"$f":"'Res-Appliance class'!$B38*'RES S curve-disconnect'!AV$3+'Res-Appliance class'!$C38*'RES S curve-disconnect'!AV$8+'Res-Appliance class'!$D38*'RES S curve-disconnect'!AV$13+'Res-Appliance class'!$E38*'RES S curve-disconnect'!AV$18","v":6475.4825501893793},{"$f":"'Res-Appliance class'!$B38*'RES S curve-disconnect'!AW$3+'Res-Appliance class'!$C38*'RES S curve-disconnect'!AW$8+'Res-Appliance class'!$D38*'RES S curve-disconnect'!AW$13+'Res-Appliance class'!$E38*'RES S curve-disconnect'!AW$18","v":7238.7688864600814},{"$f":"'Res-Appliance class'!$B38*'RES S curve-disconnect'!AX$3+'Res-Appliance class'!$C38*'RES S curve-disconnect'!AX$8+'Res-Appliance class'!$D38*'RES S curve-disconnect'!AX$13+'Res-Appliance class'!$E38*'RES S curve-disconnect'!AX$18","v":8109.2059618141757},{"$f":"'Res-Appliance class'!$B38*'RES S curve-disconnect'!AY$3+'Res-Appliance class'!$C38*'RES S curve-disconnect'!AY$8+'Res-Appliance class'!$D38*'RES S curve-disconnect'!AY$13+'Res-Appliance class'!$E38*'RES S curve-disconnect'!AY$18","v":9113.3698874201837},{"$f":"'Res-Appliance class'!$B38*'RES S curve-disconnect'!AZ$3+'Res-Appliance class'!$C38*'RES S curve-disconnect'!AZ$8+'Res-Appliance class'!$D38*'RES S curve-disconnect'!AZ$13+'Res-Appliance class'!$E38*'RES S curve-disconnect'!AZ$18","v":10261.990127660893},{"$f":"'Res-Appliance class'!$B38*'RES S curve-disconnect'!BA$3+'Res-Appliance class'!$C38*'RES S curve-disconnect'!BA$8+'Res-Appliance class'!$D38*'RES S curve-disconnect'!BA$13+'Res-Appliance class'!$E38*'RES S curve-disconnect'!BA$18","v":11592.687404955856},{"$f":"'Res-Appliance class'!$B38*'RES S curve-disconnect'!BB$3+'Res-Appliance class'!$C38*'RES S curve-disconnect'!BB$8+'Res-Appliance class'!$D38*'RES S curve-disconnect'!BB$13+'Res-Appliance class'!$E38*'RES S curve-disconnect'!BB$18","v":13148.230371190049},{"$f":"'Res-Appliance class'!$B38*'RES S curve-disconnect'!BC$3+'Res-Appliance class'!$C38*'RES S curve-disconnect'!BC$8+'Res-Appliance class'!$D38*'RES S curve-disconnect'!BC$13+'Res-Appliance class'!$E38*'RES S curve-disconnect'!BC$18","v":15003.393340196255},{"$f":"'Res-Appliance class'!$B38*'RES S curve-disconnect'!BD$3+'Res-Appliance class'!$C38*'RES S curve-disconnect'!BD$8+'Res-Appliance class'!$D38*'RES S curve-disconnect'!BD$13+'Res-Appliance class'!$E38*'RES S curve-disconnect'!BD$18","v":16795.305792523723},{"$f":"'Res-Appliance class'!$B38*'RES S curve-disconnect'!BE$3+'Res-Appliance class'!$C38*'RES S curve-disconnect'!BE$8+'Res-Appliance class'!$D38*'RES S curve-disconnect'!BE$13+'Res-Appliance class'!$E38*'RES S curve-disconnect'!BE$18","v":18433.879091335166},{"$f":"'Res-Appliance class'!$B38*'RES S curve-disconnect'!BF$3+'Res-Appliance class'!$C38*'RES S curve-disconnect'!BF$8+'Res-Appliance class'!$D38*'RES S curve-disconnect'!BF$13+'Res-Appliance class'!$E38*'RES S curve-disconnect'!BF$18","v":20110.22417304814},{"$f":"'Res-Appliance class'!$B38*'RES S curve-disconnect'!BG$3+'Res-Appliance class'!$C38*'RES S curve-disconnect'!BG$8+'Res-Appliance class'!$D38*'RES S curve-disconnect'!BG$13+'Res-Appliance class'!$E38*'RES S curve-disconnect'!BG$18","v":22006.621137135851},{"$f":"'Res-Appliance class'!$B38*'RES S curve-disconnect'!BH$3+'Res-Appliance class'!$C38*'RES S curve-disconnect'!BH$8+'Res-Appliance class'!$D38*'RES S curve-disconnect'!BH$13+'Res-Appliance class'!$E38*'RES S curve-disconnect'!BH$18","v":24258.261271434105},{"$f":"'Res-Appliance class'!$B38*'RES S curve-disconnect'!BI$3+'Res-Appliance class'!$C38*'RES S curve-disconnect'!BI$8+'Res-Appliance class'!$D38*'RES S curve-disconnect'!BI$13+'Res-Appliance class'!$E38*'RES S curve-disconnect'!BI$18","v":27520.36041447764},{"$f":"'Res-Appliance class'!$B38*'RES S curve-disconnect'!BJ$3+'Res-Appliance class'!$C38*'RES S curve-disconnect'!BJ$8+'Res-Appliance class'!$D38*'RES S curve-disconnect'!BJ$13+'Res-Appliance class'!$E38*'RES S curve-disconnect'!BJ$18","v":32300.501361636634},{"$f":"'Res-Appliance class'!$B38*'RES S curve-disconnect'!BK$3+'Res-Appliance class'!$C38*'RES S curve-disconnect'!BK$8+'Res-Appliance class'!$D38*'RES S curve-disconnect'!BK$13+'Res-Appliance class'!$E38*'RES S curve-disconnect'!BK$18","v":39358.882272037503},{"$f":"'Res-Appliance class'!$B38*'RES S curve-disconnect'!BL$3+'Res-Appliance class'!$C38*'RES S curve-disconnect'!BL$8+'Res-Appliance class'!$D38*'RES S curve-disconnect'!BL$13+'Res-Appliance class'!$E38*'RES S curve-disconnect'!BL$18","v":-1351.1125741629198},{"$f":"'Res-Appliance class'!$B38*'RES S curve-disconnect'!BM$3+'Res-Appliance class'!$C38*'RES S curve-disconnect'!BM$8+'Res-Appliance class'!$D38*'RES S curve-disconnect'!BM$13+'Res-Appliance class'!$E38*'RES S curve-disconnect'!BM$18","v":-1342.2097690277637},{"$f":"'Res-Appliance class'!$B38*'RES S curve-disconnect'!BN$3+'Res-Appliance class'!$C38*'RES S curve-disconnect'!BN$8+'Res-Appliance class'!$D38*'RES S curve-disconnect'!BN$13+'Res-Appliance class'!$E38*'RES S curve-disconnect'!BN$18","v":-1337.3412703630743},{"$f":"'Res-Appliance class'!$B38*'RES S curve-disconnect'!BO$3+'Res-Appliance class'!$C38*'RES S curve-disconnect'!BO$8+'Res-Appliance class'!$D38*'RES S curve-disconnect'!BO$13+'Res-Appliance class'!$E38*'RES S curve-disconnect'!BO$18","v":-1324.4403817928596},{"$f":"'Res-Appliance class'!$B38*'RES S curve-disconnect'!BP$3+'Res-Appliance class'!$C38*'RES S curve-disconnect'!BP$8+'Res-Appliance class'!$D38*'RES S curve-disconnect'!BP$13+'Res-Appliance class'!$E38*'RES S curve-disconnect'!BP$18","v":-1315.5736548868319},{"$f":"'Res-Appliance class'!$B38*'RES S curve-disconnect'!BQ$3+'Res-Appliance class'!$C38*'RES S curve-disconnect'!BQ$8+'Res-Appliance class'!$D38*'RES S curve-disconnect'!BQ$13+'Res-Appliance class'!$E38*'RES S curve-disconnect'!BQ$18","v":-1306.7188099995517},{"$f":"'Res-Appliance class'!$B38*'RES S curve-disconnect'!BR$3+'Res-Appliance class'!$C38*'RES S curve-disconnect'!BR$8+'Res-Appliance class'!$D38*'RES S curve-disconnect'!BR$13+'Res-Appliance class'!$E38*'RES S curve-disconnect'!BR$18","v":-1301.8979837624033},{"$f":"'Res-Appliance class'!$B38*'RES S curve-disconnect'!BS$3+'Res-Appliance class'!$C38*'RES S curve-disconnect'!BS$8+'Res-Appliance class'!$D38*'RES S curve-disconnect'!BS$13+'Res-Appliance class'!$E38*'RES S curve-disconnect'!BS$18","v":-1289.0444815859864},{"$f":"'Res-Appliance class'!$B38*'RES S curve-disconnect'!BT$3+'Res-Appliance class'!$C38*'RES S curve-disconnect'!BT$8+'Res-Appliance class'!$D38*'RES S curve-disconnect'!BT$13+'Res-Appliance class'!$E38*'RES S curve-disconnect'!BT$18","v":-1280.224856815325},{"$f":"'Res-Appliance class'!$B38*'RES S curve-disconnect'!BU$3+'Res-Appliance class'!$C38*'RES S curve-disconnect'!BU$8+'Res-Appliance class'!$D38*'RES S curve-disconnect'!BU$13+'Res-Appliance class'!$E38*'RES S curve-disconnect'!BU$18","v":-1271.4168315690883},{"$f":"'Res-Appliance class'!$B38*'RES S curve-disconnect'!BV$3+'Res-Appliance class'!$C38*'RES S curve-disconnect'!BV$8+'Res-Appliance class'!$D38*'RES S curve-disconnect'!BV$13+'Res-Appliance class'!$E38*'RES S curve-disconnect'!BV$18","v":-1266.6425442316458},{"$f":"'Res-Appliance class'!$B38*'RES S curve-disconnect'!BW$3+'Res-Appliance class'!$C38*'RES S curve-disconnect'!BW$8+'Res-Appliance class'!$D38*'RES S curve-disconnect'!BW$13+'Res-Appliance class'!$E38*'RES S curve-disconnect'!BW$18","v":-1253.8353019555173},{"$f":"'Res-Appliance class'!$B38*'RES S curve-disconnect'!BX$3+'Res-Appliance class'!$C38*'RES S curve-disconnect'!BX$8+'Res-Appliance class'!$D38*'RES S curve-disconnect'!BX$13+'Res-Appliance class'!$E38*'RES S curve-disconnect'!BX$18","v":-1245.0616598166584},{"$f":"'Res-Appliance class'!$B38*'RES S curve-disconnect'!BY$3+'Res-Appliance class'!$C38*'RES S curve-disconnect'!BY$8+'Res-Appliance class'!$D38*'RES S curve-disconnect'!BY$13+'Res-Appliance class'!$E38*'RES S curve-disconnect'!BY$18","v":-1236.2993416537552},{"$f":"'Res-Appliance class'!$B38*'RES S curve-disconnect'!BZ$3+'Res-Appliance class'!$C38*'RES S curve-disconnect'!BZ$8+'Res-Appliance class'!$D38*'RES S curve-disconnect'!BZ$13+'Res-Appliance class'!$E38*'RES S curve-disconnect'!BZ$18","v":-1231.5704875603387},{"$f":"'Res-Appliance class'!$B38*'RES S curve-disconnect'!CA$3+'Res-Appliance class'!$C38*'RES S curve-disconnect'!CA$8+'Res-Appliance class'!$D38*'RES S curve-disconnect'!CA$13+'Res-Appliance class'!$E38*'RES S curve-disconnect'!CA$18","v":-1218.8084063873084},{"$f":"'Res-Appliance class'!$B38*'RES S curve-disconnect'!CB$3+'Res-Appliance class'!$C38*'RES S curve-disconnect'!CB$8+'Res-Appliance class'!$D38*'RES S curve-disconnect'!CB$13+'Res-Appliance class'!$E38*'RES S curve-disconnect'!CB$18","v":-1210.0796548982921},{"$f":"'Res-Appliance class'!$B38*'RES S curve-disconnect'!CC$3+'Res-Appliance class'!$C38*'RES S curve-disconnect'!CC$8+'Res-Appliance class'!$D38*'RES S curve-disconnect'!CC$13+'Res-Appliance class'!$E38*'RES S curve-disconnect'!CC$18","v":-1201.3619586090003},{"$f":"'Res-Appliance class'!$B38*'RES S curve-disconnect'!CD$3+'Res-Appliance class'!$C38*'RES S curve-disconnect'!CD$8+'Res-Appliance class'!$D38*'RES S curve-disconnect'!CD$13+'Res-Appliance class'!$E38*'RES S curve-disconnect'!CD$18","v":-1335.0713351032255}]
["Melbourne (C)",null,{"$f":"'Res-Appliance class'!$B39*'RES S curve-disconnect'!C$3+'Res-Appliance class'!$C39*'RES S curve-disconnect'!C$8+'Res-Appliance class'!$D39*'RES S curve-disconnect'!C$13+'Res-Appliance class'!$E39*'RES S curve-disconnect'!C$18","v":-2551.8356332341773},{"$f":"'Res-Appliance class'!$B39*'RES S curve-disconnect'!D$3+'Res-Appliance class'!$C39*'RES S curve-disconnect'!D$8+'Res-Appliance class'!$D39*'RES S curve-disconnect'!D$13+'Res-Appliance class'!$E39*'RES S curve-disconnect'!D$18","v":-2917.4693880708073},{"$f":"'Res-Appliance class'!$B39*'RES S curve-disconnect'!E$3+'Res-Appliance class'!$C39*'RES S curve-disconnect'!E$8+'Res-Appliance class'!$D39*'RES S curve-disconnect'!E$13+'Res-Appliance class'!$E39*'RES S curve-disconnect'!E$18","v":-2673.8366344921947},{"$f":"'Res-Appliance class'!$B39*'RES S curve-disconnect'!F$3+'Res-Appliance class'!$C39*'RES S curve-disconnect'!F$8+'Res-Appliance class'!$D39*'RES S curve-disconnect'!F$13+'Res-Appliance class'!$E39*'RES S curve-disconnect'!F$18","v":-2579.5489755653971},{"$f":"'Res-Appliance class'!$B39*'RES S curve-disconnect'!G$3+'Res-Appliance class'!$C39*'RES S curve-disconnect'!G$8+'Res-Appliance class'!$D39*'RES S curve-disconnect'!G$13+'Res-Appliance class'!$E39*'RES S curve-disconnect'!G$18","v":-3134.0493464336341},{"$f":"'Res-Appliance class'!$B39*'RES S curve-disconnect'!H$3+'Res-Appliance class'!$C39*'RES S curve-disconnect'!H$8+'Res-Appliance class'!$D39*'RES S curve-disconnect'!H$13+'Res-Appliance class'!$E39*'RES S curve-disconnect'!H$18","v":-3168.6730213955452},{"$f":"'Res-Appliance class'!$B39*'RES S curve-disconnect'!I$3+'Res-Appliance class'!$C39*'RES S curve-disconnect'!I$8+'Res-Appliance class'!$D39*'RES S curve-disconnect'!I$13+'Res-Appliance class'!$E39*'RES S curve-disconnect'!I$18","v":-2879.1023437936969},{"$f":"'Res-Appliance class'!$B39*'RES S curve-disconnect'!J$3+'Res-Appliance class'!$C39*'RES S curve-disconnect'!J$8+'Res-Appliance class'!$D39*'RES S curve-disconnect'!J$13+'Res-Appliance class'!$E39*'RES S curve-disconnect'!J$18","v":-3144.3081894430211},{"$f":"'Res-Appliance class'!$B39*'RES S curve-disconnect'!K$3+'Res-Appliance class'!$C39*'RES S curve-disconnect'!K$8+'Res-Appliance class'!$D39*'RES S curve-disconnect'!K$13+'Res-Appliance class'!$E39*'RES S curve-disconnect'!K$18","v":-2603.636743941689},{"$f":"'Res-Appliance class'!$B39*'RES S curve-disconnect'!L$3+'Res-Appliance class'!$C39*'RES S curve-disconnect'!L$8+'Res-Appliance class'!$D39*'RES S curve-disconnect'!L$13+'Res-Appliance class'!$E39*'RES S curve-disconnect'!L$18","v":-2856.8170170955182},{"$f":"'Res-Appliance class'!$B39*'RES S curve-disconnect'!M$3+'Res-Appliance class'!$C39*'RES S curve-disconnect'!M$8+'Res-Appliance class'!$D39*'RES S curve-disconnect'!M$13+'Res-Appliance class'!$E39*'RES S curve-disconnect'!M$18","v":-3264.7510128689819},{"$f":"'Res-Appliance class'!$B39*'RES S curve-disconnect'!N$3+'Res-Appliance class'!$C39*'RES S curve-disconnect'!N$8+'Res-Appliance class'!$D39*'RES S curve-disconnect'!N$13+'Res-Appliance class'!$E39*'RES S curve-disconnect'!N$18","v":-3308.9179463457212},{"$f":"'Res-Appliance class'!$B39*'RES S curve-disconnect'!O$3+'Res-Appliance class'!$C39*'RES S curve-disconnect'!O$8+'Res-Appliance class'!$D39*'RES S curve-disconnect'!O$13+'Res-Appliance class'!$E39*'RES S curve-disconnect'!O$18","v":-2922.7332615747337},{"$f":"'Res-Appliance class'!$B39*'RES S curve-disconnect'!P$3+'Res-Appliance class'!$C39*'RES S curve-disconnect'!P$8+'Res-Appliance class'!$D39*'RES S curve-disconnect'!P$13+'Res-Appliance class'!$E39*'RES S curve-disconnect'!P$18","v":-2622.0421645373335},{"$f":"'Res-Appliance class'!$B39*'RES S curve-disconnect'!Q$3+'Res-Appliance class'!$C39*'RES S curve-disconnect'!Q$8+'Res-Appliance class'!$D39*'RES S curve-disconnect'!Q$13+'Res-Appliance class'!$E39*'RES S curve-disconnect'!Q$18","v":-2165.6868323991657},{"$f":"'Res-Appliance class'!$B39*'RES S curve-disconnect'!R$3+'Res-Appliance class'!$C39*'RES S curve-disconnect'!R$8+'Res-Appliance class'!$D39*'RES S curve-disconnect'!R$13+'Res-Appliance class'!$E39*'RES S curve-disconnect'!R$18","v":-1909.8477591758433},{"$f":"'Res-Appliance class'!$B39*'RES S curve-disconnect'!S$3+'Res-Appliance class'!$C39*'RES S curve-disconnect'!S$8+'Res-Appliance class'!$D39*'RES S curve-disconnect'!S$13+'Res-Appliance class'!$E39*'RES S curve-disconnect'!S$18","v":-1487.9715793758523},{"$f":"'Res-Appliance class'!$B39*'RES S curve-disconnect'!T$3+'Res-Appliance class'!$C39*'RES S curve-disconnect'!T$8+'Res-Appliance class'!$D39*'RES S curve-disconnect'!T$13+'Res-Appliance class'!$E39*'RES S curve-disconnect'!T$18","v":-1286.9165684708521},{"$f":"'Res-Appliance class'!$B39*'RES S curve-disconnect'!U$3+'Res-Appliance class'!$C39*'RES S curve-disconnect'!U$8+'Res-Appliance class'!$D39*'RES S curve-disconnect'!U$13+'Res-Appliance class'!$E39*'RES S curve-disconnect'!U$18","v":-1038.7062474648842},{"$f":"'Res-Appliance class'!$B39*'RES S curve-disconnect'!V$3+'Res-Appliance class'!$C39*'RES S curve-disconnect'!V$8+'Res-Appliance class'!$D39*'RES S curve-disconnect'!V$13+'Res-Appliance class'!$E39*'RES S curve-disconnect'!V$18","v":-865.17545672459858},{"$f":"'Res-Appliance class'!$B39*'RES S curve-disconnect'!W$3+'Res-Appliance class'!$C39*'RES S curve-disconnect'!W$8+'Res-Appliance class'!$D39*'RES S curve-disconnect'!W$13+'Res-Appliance class'!$E39*'RES S curve-disconnect'!W$18","v":-730.23144729660692},{"$f":"'Res-Appliance class'!$B39*'RES S curve-disconnect'!X$3+'Res-Appliance class'!$C39*'RES S curve-disconnect'!X$8+'Res-Appliance class'!$D39*'RES S curve-disconnect'!X$13+'Res-Appliance class'!$E39*'RES S curve-disconnect'!X$18","v":-431.00139366027156},{"$f":"'Res-Appliance class'!$B39*'RES S curve-disconnect'!Y$3+'Res-Appliance class'!$C39*'RES S curve-disconnect'!Y$8+'Res-Appliance class'!$D39*'RES S curve-disconnect'!Y$13+'Res-Appliance class'!$E39*'RES S curve-disconnect'!Y$18","v":-125.49720237286836},{"$f":"'Res-Appliance class'!$B39*'RES S curve-disconnect'!Z$3+'Res-Appliance class'!$C39*'RES S curve-disconnect'!Z$8+'Res-Appliance class'!$D39*'RES S curve-disconnect'!Z$13+'Res-Appliance class'!$E39*'RES S curve-disconnect'!Z$18","v":81.330021531653131},{"$f":"'Res-Appliance class'!$B39*'RES S curve-disconnect'!AA$3+'Res-Appliance class'!$C39*'RES S curve-disconnect'!AA$8+'Res-Appliance class'!$D39*'RES S curve-disconnect'!AA$13+'Res-Appliance class'!$E39*'RES S curve-disconnect'!AA$18","v":291.27479019552169},{"$f":"'Res-Appliance class'!$B39*'RES S curve-disconnect'!AB$3+'Res-Appliance class'!$C39*'RES S curve-disconnect'!AB$8+'Res-Appliance class'!$D39*'RES S curve-disconnect'!AB$13+'Res-Appliance class'!$E39*'RES S curve-disconnect'!AB$18","v":459.95946466469559},{"$f":"'Res-Appliance class'!$B39*'RES S curve-disconnect'!AC$3+'Res-Appliance class'!$C39*'RES S curve-disconnect'!AC$8+'Res-Appliance class'!$D39*'RES S curve-disconnect'!AC$13+'Res-Appliance class'!$E39*'RES S curve-disconnect'!AC$18","v":624.36251909341547},{"$f":"'Res-Appliance class'!$B39*'RES S curve-disconnect'!AD$3+'Res-Appliance class'!$C39*'RES S curve-disconnect'!AD$8+'Res-Appliance class'!$D39*'RES S curve-disconnect'!AD$13+'Res-Appliance class'!$E39*'RES S curve-disconnect'!AD$18","v":774.9707295954446},{"$f":"'Res-Appliance class'!$B39*'RES S curve-disconnect'!AE$3+'Res-Appliance class'!$C39*'RES S curve-disconnect'!AE$8+'Res-Appliance class'!$D39*'RES S curve-disconnect'!AE$13+'Res-Appliance class'!$E39*'RES S curve-disconnect'!AE$18","v":937.84774815136518},{"$f":"'Res-Appliance class'!$B39*'RES S curve-disconnect'!AF$3+'Res-Appliance class'!$C39*'RES S curve-disconnect'!AF$8+'Res-Appliance class'!$D39*'RES S curve-disconnect'!AF$13+'Res-Appliance class'!$E39*'RES S curve-disconnect'!AF$18","v":1144.283555743644},{"$f":"'Res-Appliance class'!$B39*'RES S curve-disconnect'!AG$3+'Res-Appliance class'!$C39*'RES S curve-disconnect'!AG$8+'Res-Appliance class'!$D39*'RES S curve-disconnect'!AG$13+'Res-Appliance class'!$E39*'RES S curve-disconnect'!AG$18","v":1290.6728194708087},{"$f":"'Res-Appliance class'!$B39*'RES S curve-disconnect'!AH$3+'Res-Appliance class'!$C39*'RES S curve-disconnect'!AH$8+'Res-Appliance class'!$D39*'RES S curve-disconnect'!AH$13+'Res-Appliance class'!$E39*'RES S curve-disconnect'!AH$18","v":1487.9518741265333},{"$f":"'Res-Appliance class'!$B39*'RES S curve-disconnect'!AI$3+'Res-Appliance class'!$C39*'RES S curve-disconnect'!AI$8+'Res-Appliance class'!$D39*'RES S curve-disconnect'!AI$13+'Res-Appliance class'!$E39*'RES S curve-disconnect'!AI$18","v":1673.2521749949221},{"$f":"'Res-Appliance class'!$B39*'RES S curve-disconnect'!AJ$3+'Res-Appliance class'!$C39*'RES S curve-disconnect'!AJ$8+'Res-Appliance class'!$D39*'RES S curve-disconnect'!AJ$13+'Res-Appliance class'!$E39*'RES S curve-disconnect'!AJ$18","v":1838.8163693554127},{"$f":"'Res-Appliance class'!$B39*'RES S curve-disconnect'!AK$3+'Res-Appliance class'!$C39*'RES S curve-disconnect'!AK$8+'Res-Appliance class'!$D39*'RES S curve-disconnect'!AK$13+'Res-Appliance class'!$E39*'RES S curve-disconnect'!AK$18","v":2014.8753192984013},{"$f":"'Res-Appliance class'!$B39*'RES S curve-disconnect'!AL$3+'Res-Appliance class'!$C39*'RES S curve-disconnect'!AL$8+'Res-Appliance class'!$D39*'RES S curve-disconnect'!AL$13+'Res-Appliance class'!$E39*'RES S curve-disconnect'!AL$18","v":1383.6455351173258},{"$f":"'Res-Appliance class'!$B39*'RES S curve-disconnect'!AM$3+'Res-Appliance class'!$C39*'RES S curve-disconnect'!AM$8+'Res-Appliance class'!$D39*'RES S curve-disconnect'!AM$13+'Res-Appliance class'!$E39*'RES S curve-disconnect'!AM$18","v":1312.9262892797278},{"$f":"'Res-Appliance class'!$B39*'RES S curve-disconnect'!AN$3+'Res-Appliance class'!$C39*'RES S curve-disconnect'!AN$8+'Res-Appliance class'!$D39*'RES S curve-disconnect'!AN$13+'Res-Appliance class'!$E39*'RES S curve-disconnect'!AN$18","v":1485.7257741320891},{"$f":"'Res-Appliance class'!$B39*'RES S curve-disconnect'!AO$3+'Res-Appliance class'!$C39*'RES S curve-disconnect'!AO$8+'Res-Appliance class'!$D39*'RES S curve-disconnect'!AO$13+'Res-Appliance class'!$E39*'RES S curve-disconnect'!AO$18","v":1691.3116140172299},{"$f":"'Res-Appliance class'!$B39*'RES S curve-disconnect'!AP$3+'Res-Appliance class'!$C39*'RES S curve-disconnect'!AP$8+'Res-Appliance class'!$D39*'RES S curve-disconnect'!AP$13+'Res-Appliance class'!$E39*'RES S curve-disconnect'!AP$18","v":1877.8092079157161},{"$f":"'Res-Appliance class'!$B39*'RES S curve-disconnect'!AQ$3+'Res-Appliance class'!$C39*'RES S curve-disconnect'!AQ$8+'Res-Appliance class'!$D39*'RES S curve-disconnect'!AQ$13+'Res-Appliance class'!$E39*'RES S curve-disconnect'!AQ$18","v":2082.0807979548122},{"$f":"'Res-Appliance class'!$B39*'RES S curve-disconnect'!AR$3+'Res-Appliance class'!$C39*'RES S curve-disconnect'!AR$8+'Res-Appliance class'!$D39*'RES S curve-disconnect'!AR$13+'Res-Appliance class'!$E39*'RES S curve-disconnect'!AR$18","v":2304.357870293351},{"$f":"'Res-Appliance class'!$B39*'RES S curve-disconnect'!AS$3+'Res-Appliance class'!$C39*'RES S curve-disconnect'!AS$8+'Res-Appliance class'!$D39*'RES S curve-disconnect'!AS$13+'Res-Appliance class'!$E39*'RES S curve-disconnect'!AS$18","v":2553.2750599751689},{"$f":"'Res-Appliance class'!$B39*'RES S curve-disconnect'!AT$3+'Res-Appliance class'!$C39*'RES S curve-disconnect'!AT$8+'Res-Appliance class'!$D39*'RES S curve-disconnect'!AT$13+'Res-Appliance class'!$E39*'RES S curve-disconnect'!AT$18","v":2829.3888597394166},{"$f":"'Res-Appliance class'!$B39*'RES S curve-disconnect'!AU$3+'Res-Appliance class'!$C39*'RES S curve-disconnect'!AU$8+'Res-Appliance class'!$D39*'RES S curve-disconnect'!AU$13+'Res-Appliance class'!$E39*'RES S curve-disconnect'!AU$18","v":3151.6611351029114},{"$f":"'Res-Appliance class'!$B39*'RES S curve-disconnect'!AV$3+'Res-Appliance class'!$C39*'RES S curve-disconnect'!AV$8+'Res-Appliance class'!$D39*'RES S curve-disconnect'!AV$13+'Res-Appliance class'!$E39*'RES S curve-disconnect'!AV$18","v":3516.3981844261539},{"$f":"'Res-Appliance class'!$B39*'RES S curve-disconnect'!AW$3+'Res-Appliance class'!$C39*'RES S curve-disconnect'!AW$8+'Res-Appliance class'!$D39*'RES S curve-disconnect'!AW$13+'Res-Appliance class'!$E39*'RES S curve-disconnect'!AW$18","v":3934.2881879152201},{"$f":"'Res-Appliance class'!$B39*'RES S curve-disconnect'!AX$3+'Res-Appliance class'!$C39*'RES S curve-disconnect'!AX$8+'Res-Appliance class'!$D39*'RES S curve-disconnect'!AX$13+'Res-Appliance class'!$E39*'RES S curve-disconnect'!AX$18","v":4407.0736280515966},{"$f":"'Res-Appliance class'!$B39*'RES S curve-disconnect'!AY$3+'Res-Appliance class'!$C39*'RES S curve-disconnect'!AY$8+'Res-Appliance class'!$D39*'RES S curve-disconnect'!AY$13+'Res-Appliance class'!$E39*'RES S curve-disconnect'!AY$18","v":4954.0192168547555},{"$f":"'Res-Appliance class'!$B39*'RES S curve-disconnect'!AZ$3+'Res-Appliance class'!$C39*'RES S curve-disconnect'!AZ$8+'Res-Appliance class'!$D39*'RES S curve-disconnect'!AZ$13+'Res-Appliance class'!$E39*'RES S curve-disconnect'!AZ$18","v":5574.6794609762601},{"$f":"'Res-Appliance class'!$B39*'RES S curve-disconnect'!BA$3+'Res-Appliance class'!$C39*'RES S curve-disconnect'!BA$8+'Res-Appliance class'!$D39*'RES S curve-disconnect'!BA$13+'Res-Appliance class'!$E39*'RES S curve-disconnect'!BA$18","v":6290.3311473231133},{"$f":"'Res-Appliance class'!$B39*'RES S curve-disconnect'!BB$3+'Res-Appliance class'!$C39*'RES S curve-disconnect'!BB$8+'Res-Appliance class'!$D39*'RES S curve-disconnect'!BB$13+'Res-Appliance class'!$E39*'RES S curve-disconnect'!BB$18","v":7120.8909657354025},{"$f":"'Res-Appliance class'!$B39*'RES S curve-disconnect'!BC$3+'Res-Appliance class'!$C39*'RES S curve-disconnect'!BC$8+'Res-Appliance class'!$D39*'RES S curve-disconnect'!BC$13+'Res-Appliance class'!$E39*'RES S curve-disconnect'!BC$18","v":8110.3547498861599},{"$f":"'Res-Appliance class'!$B39*'RES S curve-disconnect'!BD$3+'Res-Appliance class'!$C39*'RES S curve-disconnect'!BD$8+'Res-Appliance class'!$D39*'RES S curve-disconnect'!BD$13+'Res-Appliance class'!$E39*'RES S curve-disconnect'!BD$18","v":9050.533730502164},{"$f":"'Res-Appliance class'!$B39*'RES S curve-disconnect'!BE$3+'Res-Appliance class'!$C39*'RES S curve-disconnect'!BE$8+'Res-Appliance class'!$D39*'RES S curve-disconnect'!BE$13+'Res-Appliance class'!$E39*'RES S curve-disconnect'!BE$18","v":9905.0623380505931},{"$f":"'Res-Appliance class'!$B39*'RES S curve-disconnect'!BF$3+'Res-Appliance class'!$C39*'RES S curve-disconnect'!BF$8+'Res-Appliance class'!$D39*'RES S curve-disconnect'!BF$13+'Res-Appliance class'!$E39*'RES S curve-disconnect'!BF$18","v":10780.827725984775},{"$f":"'Res-Appliance class'!$B39*'RES S curve-disconnect'!BG$3+'Res-Appliance class'!$C39*'RES S curve-disconnect'!BG$8+'Res-Appliance class'!$D39*'RES S curve-disconnect'!BG$13+'Res-Appliance class'!$E39*'RES S curve-disconnect'!BG$18","v":11777.417835280843},{"$f":"'Res-Appliance class'!$B39*'RES S curve-disconnect'!BH$3+'Res-Appliance class'!$C39*'RES S curve-disconnect'!BH$8+'Res-Appliance class'!$D39*'RES S curve-disconnect'!BH$13+'Res-Appliance class'!$E39*'RES S curve-disconnect'!BH$18","v":12957.210460883869},{"$f":"'Res-Appliance class'!$B39*'RES S curve-disconnect'!BI$3+'Res-Appliance class'!$C39*'RES S curve-disconnect'!BI$8+'Res-Appliance class'!$D39*'RES S curve-disconnect'!BI$13+'Res-Appliance class'!$E39*'RES S curve-disconnect'!BI$18","v":14670.133203186924},{"$f":"'Res-Appliance class'!$B39*'RES S curve-disconnect'!BJ$3+'Res-Appliance class'!$C39*'RES S curve-disconnect'!BJ$8+'Res-Appliance class'!$D39*'RES S curve-disconnect'!BJ$13+'Res-Appliance class'!$E39*'RES S curve-disconnect'!BJ$18","v":17162.269037206454},{"$f":"'Res-Appliance class'!$B39*'RES S curve-disconnect'!BK$3+'Res-Appliance class'!$C39*'RES S curve-disconnect'!BK$8+'Res-Appliance class'!$D39*'RES S curve-disconnect'!BK$13+'Res-Appliance class'!$E39*'RES S curve-disconnect'!BK$18","v":20815.770246684689},{"$f":"'Res-Appliance class'!$B39*'RES S curve-disconnect'!BL$3+'Res-Appliance class'!$C39*'RES S curve-disconnect'!BL$8+'Res-Appliance class'!$D39*'RES S curve-disconnect'!BL$13+'Res-Appliance class'!$E39*'RES S curve-disconnect'!BL$18","v":-907.29373451637821},{"$f":"'Res-Appliance class'!$B39*'RES S curve-disconnect'!BM$3+'Res-Appliance class'!$C39*'RES S curve-disconnect'!BM$8+'Res-Appliance class'!$D39*'RES S curve-disconnect'!BM$13+'Res-Appliance class'!$E39*'RES S curve-disconnect'!BM$18","v":-902.52553439671033},{"$f":"'Res-Appliance class'!$B39*'RES S curve-disconnect'!BN$3+'Res-Appliance class'!$C39*'RES S curve-disconnect'!BN$8+'Res-Appliance class'!$D39*'RES S curve-disconnect'!BN$13+'Res-Appliance class'!$E39*'RES S curve-disconnect'!BN$18","v":-901.78767152767659},{"$f":"'Res-Appliance class'!$B39*'RES S curve-disconnect'!BO$3+'Res-Appliance class'!$C39*'RES S curve-disconnect'!BO$8+'Res-Appliance class'!$D39*'RES S curve-disconnect'!BO$13+'Res-Appliance class'!$E39*'RES S curve-disconnect'!BO$18","v":-893.01347194005939},{"$f":"'Res-Appliance class'!$B39*'RES S curve-disconnect'!BP$3+'Res-Appliance class'!$C39*'RES S curve-disconnect'!BP$8+'Res-Appliance class'!$D39*'RES S curve-disconnect'!BP$13+'Res-Appliance class'!$E39*'RES S curve-disconnect'!BP$18","v":-888.26950947562705},{"$f":"'Res-Appliance class'!$B39*'RES S curve-disconnect'!BQ$3+'Res-Appliance class'!$C39*'RES S curve-disconnect'!BQ$8+'Res-Appliance class'!$D39*'RES S curve-disconnect'!BQ$13+'Res-Appliance class'!$E39*'RES S curve-disconnect'!BQ$18","v":-883.5335266271203},{"$f":"'Res-Appliance class'!$B39*'RES S curve-disconnect'!BR$3+'Res-Appliance class'!$C39*'RES S curve-disconnect'!BR$8+'Res-Appliance class'!$D39*'RES S curve-disconnect'!BR$13+'Res-Appliance class'!$E39*'RES S curve-disconnect'!BR$18","v":-882.82768203105888},{"$f":"'Res-Appliance class'!$B39*'RES S curve-disconnect'!BS$3+'Res-Appliance class'!$C39*'RES S curve-disconnect'!BS$8+'Res-Appliance class'!$D39*'RES S curve-disconnect'!BS$13+'Res-Appliance class'!$E39*'RES S curve-disconnect'!BS$18","v":-874.08530297095717},{"$f":"'Res-Appliance class'!$B39*'RES S curve-disconnect'!BT$3+'Res-Appliance class'!$C39*'RES S curve-disconnect'!BT$8+'Res-Appliance class'!$D39*'RES S curve-disconnect'!BT$13+'Res-Appliance class'!$E39*'RES S curve-disconnect'!BT$18","v":-869.37296453335648},{"$f":"'Res-Appliance class'!$B39*'RES S curve-disconnect'!BU$3+'Res-Appliance class'!$C39*'RES S curve-disconnect'!BU$8+'Res-Appliance class'!$D39*'RES S curve-disconnect'!BU$13+'Res-Appliance class'!$E39*'RES S curve-disconnect'!BU$18","v":-864.66841044786361},{"$f":"'Res-Appliance class'!$B39*'RES S curve-disconnect'!BV$3+'Res-Appliance class'!$C39*'RES S curve-disconnect'!BV$8+'Res-Appliance class'!$D39*'RES S curve-disconnect'!BV$13+'Res-Appliance class'!$E39*'RES S curve-disconnect'!BV$18","v":-863.99380058001179},{"$f":"'Res-Appliance class'!$B39*'RES S curve-disconnect'!BW$3+'Res-Appliance class'!$C39*'RES S curve-disconnect'!BW$8+'Res-Appliance class'!$D39*'RES S curve-disconnect'!BW$13+'Res-Appliance class'!$E39*'RES S curve-disconnect'!BW$18","v":-855.28246343451963},{"$f":"'Res-Appliance class'!$B39*'RES S curve-disconnect'!BX$3+'Res-Appliance class'!$C39*'RES S curve-disconnect'!BX$8+'Res-Appliance class'!$D39*'RES S curve-disconnect'!BX$13+'Res-Appliance class'!$E39*'RES S curve-disconnect'!BX$18","v":-850.60097531137876},{"$f":"'Res-Appliance class'!$B39*'RES S curve-disconnect'!BY$3+'Res-Appliance class'!$C39*'RES S curve-disconnect'!BY$8+'Res-Appliance class'!$D39*'RES S curve-disconnect'!BY$13+'Res-Appliance class'!$E39*'RES S curve-disconnect'!BY$18","v":-845.92708114594029},{"$f":"'Res-Appliance class'!$B39*'RES S curve-disconnect'!BZ$3+'Res-Appliance class'!$C39*'RES S curve-disconnect'!BZ$8+'Res-Appliance class'!$D39*'RES S curve-disconnect'!BZ$13+'Res-Appliance class'!$E39*'RES S curve-disconnect'!BZ$18","v":-845.28294200182313},{"$f":"'Res-Appliance class'!$B39*'RES S curve-disconnect'!CA$3+'Res-Appliance class'!$C39*'RES S curve-disconnect'!CA$8+'Res-Appliance class'!$D39*'RES S curve-disconnect'!CA$13+'Res-Appliance class'!$E39*'RES S curve-disconnect'!CA$18","v":-836.60188757422293},{"$f":"'Res-Appliance class'!$B39*'RES S curve-disconnect'!CB$3+'Res-Appliance class'!$C39*'RES S curve-disconnect'!CB$8+'Res-Appliance class'!$D39*'RES S curve-disconnect'!CB$13+'Res-Appliance class'!$E39*'RES S curve-disconnect'!CB$18","v":-831.95049534604982},{"$f":"'Res-Appliance class'!$B39*'RES S curve-disconnect'!CC$3+'Res-Appliance class'!$C39*'RES S curve-disconnect'!CC$8+'Res-Appliance class'!$D39*'RES S curve-disconnect'!CC$13+'Res-Appliance class'!$E39*'RES S curve-disconnect'!CC$18","v":-827.30651142806073},{"$f":"'Res-Appliance class'!$B39*'RES S curve-disconnect'!CD$3+'Res-Appliance class'!$C39*'RES S curve-disconnect'!CD$8+'Res-Appliance class'!$D39*'RES S curve-disconnect'!CD$13+'Res-Appliance class'!$E39*'RES S curve-disconnect'!CD$18","v":-894.38096855711183}]
["Monash (C)",null,{"$f":"'Res-Appliance class'!$B40*'RES S curve-disconnect'!C$3+'Res-Appliance class'!$C40*'RES S curve-disconnect'!C$8+'Res-Appliance class'!$D40*'RES S curve-disconnect'!C$13+'Res-Appliance class'!$E40*'RES S curve-disconnect'!C$18","v":-4544.5391137883416},{"$f":"'Res-Appliance class'!$B40*'RES S curve-disconnect'!D$3+'Res-Appliance class'!$C40*'RES S curve-disconnect'!D$8+'Res-Appliance class'!$D40*'RES S curve-disconnect'!D$13+'Res-Appliance class'!$E40*'RES S curve-disconnect'!D$18","v":-5164.3725808357503},{"$f":"'Res-Appliance class'!$B40*'RES S curve-disconnect'!E$3+'Res-Appliance class'!$C40*'RES S curve-disconnect'!E$8+'Res-Appliance class'!$D40*'RES S curve-disconnect'!E$13+'Res-Appliance class'!$E40*'RES S curve-disconnect'!E$18","v":-4592.3721772852341},{"$f":"'Res-Appliance class'!$B40*'RES S curve-disconnect'!F$3+'Res-Appliance class'!$C40*'RES S curve-disconnect'!F$8+'Res-Appliance class'!$D40*'RES S curve-disconnect'!F$13+'Res-Appliance class'!$E40*'RES S curve-disconnect'!F$18","v":-4407.0853926002537},{"$f":"'Res-Appliance class'!$B40*'RES S curve-disconnect'!G$3+'Res-Appliance class'!$C40*'RES S curve-disconnect'!G$8+'Res-Appliance class'!$D40*'RES S curve-disconnect'!G$13+'Res-Appliance class'!$E40*'RES S curve-disconnect'!G$18","v":-5675.6222544784177},{"$f":"'Res-Appliance class'!$B40*'RES S curve-disconnect'!H$3+'Res-Appliance class'!$C40*'RES S curve-disconnect'!H$8+'Res-Appliance class'!$D40*'RES S curve-disconnect'!H$13+'Res-Appliance class'!$E40*'RES S curve-disconnect'!H$18","v":-5710.9544803327117},{"$f":"'Res-Appliance class'!$B40*'RES S curve-disconnect'!I$3+'Res-Appliance class'!$C40*'RES S curve-disconnect'!I$8+'Res-Appliance class'!$D40*'RES S curve-disconnect'!I$13+'Res-Appliance class'!$E40*'RES S curve-disconnect'!I$18","v":-5186.1516164777158},{"$f":"'Res-Appliance class'!$B40*'RES S curve-disconnect'!J$3+'Res-Appliance class'!$C40*'RES S curve-disconnect'!J$8+'Res-Appliance class'!$D40*'RES S curve-disconnect'!J$13+'Res-Appliance class'!$E40*'RES S curve-disconnect'!J$18","v":-5506.8581434562248},{"$f":"'Res-Appliance class'!$B40*'RES S curve-disconnect'!K$3+'Res-Appliance class'!$C40*'RES S curve-disconnect'!K$8+'Res-Appliance class'!$D40*'RES S curve-disconnect'!K$13+'Res-Appliance class'!$E40*'RES S curve-disconnect'!K$18","v":-4574.8211674897811},{"$f":"'Res-Appliance class'!$B40*'RES S curve-disconnect'!L$3+'Res-Appliance class'!$C40*'RES S curve-disconnect'!L$8+'Res-Appliance class'!$D40*'RES S curve-disconnect'!L$13+'Res-Appliance class'!$E40*'RES S curve-disconnect'!L$18","v":-5006.9260527620136},{"$f":"'Res-Appliance class'!$B40*'RES S curve-disconnect'!M$3+'Res-Appliance class'!$C40*'RES S curve-disconnect'!M$8+'Res-Appliance class'!$D40*'RES S curve-disconnect'!M$13+'Res-Appliance class'!$E40*'RES S curve-disconnect'!M$18","v":-5782.7633285579213},{"$f":"'Res-Appliance class'!$B40*'RES S curve-disconnect'!N$3+'Res-Appliance class'!$C40*'RES S curve-disconnect'!N$8+'Res-Appliance class'!$D40*'RES S curve-disconnect'!N$13+'Res-Appliance class'!$E40*'RES S curve-disconnect'!N$18","v":-5863.4354086309813},{"$f":"'Res-Appliance class'!$B40*'RES S curve-disconnect'!O$3+'Res-Appliance class'!$C40*'RES S curve-disconnect'!O$8+'Res-Appliance class'!$D40*'RES S curve-disconnect'!O$13+'Res-Appliance class'!$E40*'RES S curve-disconnect'!O$18","v":-5194.2874065493997},{"$f":"'Res-Appliance class'!$B40*'RES S curve-disconnect'!P$3+'Res-Appliance class'!$C40*'RES S curve-disconnect'!P$8+'Res-Appliance class'!$D40*'RES S curve-disconnect'!P$13+'Res-Appliance class'!$E40*'RES S curve-disconnect'!P$18","v":-4663.1835555891521},{"$f":"'Res-Appliance class'!$B40*'RES S curve-disconnect'!Q$3+'Res-Appliance class'!$C40*'RES S curve-disconnect'!Q$8+'Res-Appliance class'!$D40*'RES S curve-disconnect'!Q$13+'Res-Appliance class'!$E40*'RES S curve-disconnect'!Q$18","v":-3856.4189843995946},{"$f":"'Res-Appliance class'!$B40*'RES S curve-disconnect'!R$3+'Res-Appliance class'!$C40*'RES S curve-disconnect'!R$8+'Res-Appliance class'!$D40*'RES S curve-disconnect'!R$13+'Res-Appliance class'!$E40*'RES S curve-disconnect'!R$18","v":-3402.6513054131656},{"$f":"'Res-Appliance class'!$B40*'RES S curve-disconnect'!S$3+'Res-Appliance class'!$C40*'RES S curve-disconnect'!S$8+'Res-Appliance class'!$D40*'RES S curve-disconnect'!S$13+'Res-Appliance class'!$E40*'RES S curve-disconnect'!S$18","v":-2676.0478543358122},{"$f":"'Res-Appliance class'!$B40*'RES S curve-disconnect'!T$3+'Res-Appliance class'!$C40*'RES S curve-disconnect'!T$8+'Res-Appliance class'!$D40*'RES S curve-disconnect'!T$13+'Res-Appliance class'!$E40*'RES S curve-disconnect'!T$18","v":-2284.8690819464646},{"$f":"'Res-Appliance class'!$B40*'RES S curve-disconnect'!U$3+'Res-Appliance class'!$C40*'RES S curve-disconnect'!U$8+'Res-Appliance class'!$D40*'RES S curve-disconnect'!U$13+'Res-Appliance class'!$E40*'RES S curve-disconnect'!U$18","v":-1836.9274229454584},{"$f":"'Res-Appliance class'!$B40*'RES S curve-disconnect'!V$3+'Res-Appliance class'!$C40*'RES S curve-disconnect'!V$8+'Res-Appliance class'!$D40*'RES S curve-disconnect'!V$13+'Res-Appliance class'!$E40*'RES S curve-disconnect'!V$18","v":-1533.6759937404604},{"$f":"'Res-Appliance class'!$B40*'RES S curve-disconnect'!W$3+'Res-Appliance class'!$C40*'RES S curve-disconnect'!W$8+'Res-Appliance class'!$D40*'RES S curve-disconnect'!W$13+'Res-Appliance class'!$E40*'RES S curve-disconnect'!W$18","v":-1299.1493501741627},{"$f":"'Res-Appliance class'!$B40*'RES S curve-disconnect'!X$3+'Res-Appliance class'!$C40*'RES S curve-disconnect'!X$8+'Res-Appliance class'!$D40*'RES S curve-disconnect'!X$13+'Res-Appliance class'!$E40*'RES S curve-disconnect'!X$18","v":-757.22304153200491},{"$f":"'Res-Appliance class'!$B40*'RES S curve-disconnect'!Y$3+'Res-Appliance class'!$C40*'RES S curve-disconnect'!Y$8+'Res-Appliance class'!$D40*'RES S curve-disconnect'!Y$13+'Res-Appliance class'!$E40*'RES S curve-disconnect'!Y$18","v":-208.76630150023729},{"$f":"'Res-Appliance class'!$B40*'RES S curve-disconnect'!Z$3+'Res-Appliance class'!$C40*'RES S curve-disconnect'!Z$8+'Res-Appliance class'!$D40*'RES S curve-disconnect'!Z$13+'Res-Appliance class'!$E40*'RES S curve-disconnect'!Z$18","v":159.89302484950537},{"$f":"'Res-Appliance class'!$B40*'RES S curve-disconnect'!AA$3+'Res-Appliance class'!$C40*'RES S curve-disconnect'!AA$8+'Res-Appliance class'!$D40*'RES S curve-disconnect'!AA$13+'Res-Appliance class'!$E40*'RES S curve-disconnect'!AA$18","v":528.63886319113794},{"$f":"'Res-Appliance class'!$B40*'RES S curve-disconnect'!AB$3+'Res-Appliance class'!$C40*'RES S curve-disconnect'!AB$8+'Res-Appliance class'!$D40*'RES S curve-disconnect'!AB$13+'Res-Appliance class'!$E40*'RES S curve-disconnect'!AB$18","v":821.38189964958383},{"$f":"'Res-Appliance class'!$B40*'RES S curve-disconnect'!AC$3+'Res-Appliance class'!$C40*'RES S curve-disconnect'!AC$8+'Res-Appliance class'!$D40*'RES S curve-disconnect'!AC$13+'Res-Appliance class'!$E40*'RES S curve-disconnect'!AC$18","v":1103.1700537388979},{"$f":"'Res-Appliance class'!$B40*'RES S curve-disconnect'!AD$3+'Res-Appliance class'!$C40*'RES S curve-disconnect'!AD$8+'Res-Appliance class'!$D40*'RES S curve-disconnect'!AD$13+'Res-Appliance class'!$E40*'RES S curve-disconnect'!AD$18","v":1361.0160855392564},{"$f":"'Res-Appliance class'!$B40*'RES S curve-disconnect'!AE$3+'Res-Appliance class'!$C40*'RES S curve-disconnect'!AE$8+'Res-Appliance class'!$D40*'RES S curve-disconnect'!AE$13+'Res-Appliance class'!$E40*'RES S curve-disconnect'!AE$18","v":1632.5057114552862},{"$f":"'Res-Appliance class'!$B40*'RES S curve-disconnect'!AF$3+'Res-Appliance class'!$C40*'RES S curve-disconnect'!AF$8+'Res-Appliance class'!$D40*'RES S curve-disconnect'!AF$13+'Res-Appliance class'!$E40*'RES S curve-disconnect'!AF$18","v":1986.187798410009},{"$f":"'Res-Appliance class'!$B40*'RES S curve-disconnect'!AG$3+'Res-Appliance class'!$C40*'RES S curve-disconnect'!AG$8+'Res-Appliance class'!$D40*'RES S curve-disconnect'!AG$13+'Res-Appliance class'!$E40*'RES S curve-disconnect'!AG$18","v":2235.2906266033829},{"$f":"'Res-Appliance class'!$B40*'RES S curve-disconnect'!AH$3+'Res-Appliance class'!$C40*'RES S curve-disconnect'!AH$8+'Res-Appliance class'!$D40*'RES S curve-disconnect'!AH$13+'Res-Appliance class'!$E40*'RES S curve-disconnect'!AH$18","v":2585.816784689122},{"$f":"'Res-Appliance class'!$B40*'RES S curve-disconnect'!AI$3+'Res-Appliance class'!$C40*'RES S curve-disconnect'!AI$8+'Res-Appliance class'!$D40*'RES S curve-disconnect'!AI$13+'Res-Appliance class'!$E40*'RES S curve-disconnect'!AI$18","v":2900.9075368552044},{"$f":"'Res-Appliance class'!$B40*'RES S curve-disconnect'!AJ$3+'Res-Appliance class'!$C40*'RES S curve-disconnect'!AJ$8+'Res-Appliance class'!$D40*'RES S curve-disconnect'!AJ$13+'Res-Appliance class'!$E40*'RES S curve-disconnect'!AJ$18","v":3185.2725669828856},{"$f":"'Res-Appliance class'!$B40*'RES S curve-disconnect'!AK$3+'Res-Appliance class'!$C40*'RES S curve-disconnect'!AK$8+'Res-Appliance class'!$D40*'RES S curve-disconnect'!AK$13+'Res-Appliance class'!$E40*'RES S curve-disconnect'!AK$18","v":3487.1661621811181},{"$f":"'Res-Appliance class'!$B40*'RES S curve-disconnect'!AL$3+'Res-Appliance class'!$C40*'RES S curve-disconnect'!AL$8+'Res-Appliance class'!$D40*'RES S curve-disconnect'!AL$13+'Res-Appliance class'!$E40*'RES S curve-disconnect'!AL$18","v":2442.1390646770715},{"$f":"'Res-Appliance class'!$B40*'RES S curve-disconnect'!AM$3+'Res-Appliance class'!$C40*'RES S curve-disconnect'!AM$8+'Res-Appliance class'!$D40*'RES S curve-disconnect'!AM$13+'Res-Appliance class'!$E40*'RES S curve-disconnect'!AM$18","v":2305.2775448046846},{"$f":"'Res-Appliance class'!$B40*'RES S curve-disconnect'!AN$3+'Res-Appliance class'!$C40*'RES S curve-disconnect'!AN$8+'Res-Appliance class'!$D40*'RES S curve-disconnect'!AN$13+'Res-Appliance class'!$E40*'RES S curve-disconnect'!AN$18","v":2590.9935206372766},{"$f":"'Res-Appliance class'!$B40*'RES S curve-disconnect'!AO$3+'Res-Appliance class'!$C40*'RES S curve-disconnect'!AO$8+'Res-Appliance class'!$D40*'RES S curve-disconnect'!AO$13+'Res-Appliance class'!$E40*'RES S curve-disconnect'!AO$18","v":2940.5357710999274},{"$f":"'Res-Appliance class'!$B40*'RES S curve-disconnect'!AP$3+'Res-Appliance class'!$C40*'RES S curve-disconnect'!AP$8+'Res-Appliance class'!$D40*'RES S curve-disconnect'!AP$13+'Res-Appliance class'!$E40*'RES S curve-disconnect'!AP$18","v":3263.5122865353396},{"$f":"'Res-Appliance class'!$B40*'RES S curve-disconnect'!AQ$3+'Res-Appliance class'!$C40*'RES S curve-disconnect'!AQ$8+'Res-Appliance class'!$D40*'RES S curve-disconnect'!AQ$13+'Res-Appliance class'!$E40*'RES S curve-disconnect'!AQ$18","v":3611.1764193297049},{"$f":"'Res-Appliance class'!$B40*'RES S curve-disconnect'!AR$3+'Res-Appliance class'!$C40*'RES S curve-disconnect'!AR$8+'Res-Appliance class'!$D40*'RES S curve-disconnect'!AR$13+'Res-Appliance class'!$E40*'RES S curve-disconnect'!AR$18","v":3992.9512822590491},{"$f":"'Res-Appliance class'!$B40*'RES S curve-disconnect'!AS$3+'Res-Appliance class'!$C40*'RES S curve-disconnect'!AS$8+'Res-Appliance class'!$D40*'RES S curve-disconnect'!AS$13+'Res-Appliance class'!$E40*'RES S curve-disconnect'!AS$18","v":4421.3689661252456},{"$f":"'Res-Appliance class'!$B40*'RES S curve-disconnect'!AT$3+'Res-Appliance class'!$C40*'RES S curve-disconnect'!AT$8+'Res-Appliance class'!$D40*'RES S curve-disconnect'!AT$13+'Res-Appliance class'!$E40*'RES S curve-disconnect'!AT$18","v":4900.6378518762222},{"$f":"'Res-Appliance class'!$B40*'RES S curve-disconnect'!AU$3+'Res-Appliance class'!$C40*'RES S curve-disconnect'!AU$8+'Res-Appliance class'!$D40*'RES S curve-disconnect'!AU$13+'Res-Appliance class'!$E40*'RES S curve-disconnect'!AU$18","v":5455.0423422780223},{"$f":"'Res-Appliance class'!$B40*'RES S curve-disconnect'!AV$3+'Res-Appliance class'!$C40*'RES S curve-disconnect'!AV$8+'Res-Appliance class'!$D40*'RES S curve-disconnect'!AV$13+'Res-Appliance class'!$E40*'RES S curve-disconnect'!AV$18","v":6087.5077032570571},{"$f":"'Res-Appliance class'!$B40*'RES S curve-disconnect'!AW$3+'Res-Appliance class'!$C40*'RES S curve-disconnect'!AW$8+'Res-Appliance class'!$D40*'RES S curve-disconnect'!AW$13+'Res-Appliance class'!$E40*'RES S curve-disconnect'!AW$18","v":6814.5084339348423},{"$f":"'Res-Appliance class'!$B40*'RES S curve-disconnect'!AX$3+'Res-Appliance class'!$C40*'RES S curve-disconnect'!AX$8+'Res-Appliance class'!$D40*'RES S curve-disconnect'!AX$13+'Res-Appliance class'!$E40*'RES S curve-disconnect'!AX$18","v":7643.1664262784616},{"$f":"'Res-Appliance class'!$B40*'RES S curve-disconnect'!AY$3+'Res-Appliance class'!$C40*'RES S curve-disconnect'!AY$8+'Res-Appliance class'!$D40*'RES S curve-disconnect'!AY$13+'Res-Appliance class'!$E40*'RES S curve-disconnect'!AY$18","v":8599.2891877842249},{"$f":"'Res-Appliance class'!$B40*'RES S curve-disconnect'!AZ$3+'Res-Appliance class'!$C40*'RES S curve-disconnect'!AZ$8+'Res-Appliance class'!$D40*'RES S curve-disconnect'!AZ$13+'Res-Appliance class'!$E40*'RES S curve-disconnect'!AZ$18","v":9692.4314256884336},{"$f":"'Res-Appliance class'!$B40*'RES S curve-disconnect'!BA$3+'Res-Appliance class'!$C40*'RES S curve-disconnect'!BA$8+'Res-Appliance class'!$D40*'RES S curve-disconnect'!BA$13+'Res-Appliance class'!$E40*'RES S curve-disconnect'!BA$18","v":10958.495720654144},{"$f":"'Res-Appliance class'!$B40*'RES S curve-disconnect'!BB$3+'Res-Appliance class'!$C40*'RES S curve-disconnect'!BB$8+'Res-Appliance class'!$D40*'RES S curve-disconnect'!BB$13+'Res-Appliance class'!$E40*'RES S curve-disconnect'!BB$18","v":12437.848431784681},{"$f":"'Res-Appliance class'!$B40*'RES S curve-disconnect'!BC$3+'Res-Appliance class'!$C40*'RES S curve-disconnect'!BC$8+'Res-Appliance class'!$D40*'RES S curve-disconnect'!BC$13+'Res-Appliance class'!$E40*'RES S curve-disconnect'!BC$18","v":14202.028311327591},{"$f":"'Res-Appliance class'!$B40*'RES S curve-disconnect'!BD$3+'Res-Appliance class'!$C40*'RES S curve-disconnect'!BD$8+'Res-Appliance class'!$D40*'RES S curve-disconnect'!BD$13+'Res-Appliance class'!$E40*'RES S curve-disconnect'!BD$18","v":15904.425634712428},{"$f":"'Res-Appliance class'!$B40*'RES S curve-disconnect'!BE$3+'Res-Appliance class'!$C40*'RES S curve-disconnect'!BE$8+'Res-Appliance class'!$D40*'RES S curve-disconnect'!BE$13+'Res-Appliance class'!$E40*'RES S curve-disconnect'!BE$18","v":17460.59936022355},{"$f":"'Res-Appliance class'!$B40*'RES S curve-disconnect'!BF$3+'Res-Appliance class'!$C40*'RES S curve-disconnect'!BF$8+'Res-Appliance class'!$D40*'RES S curve-disconnect'!BF$13+'Res-Appliance class'!$E40*'RES S curve-disconnect'!BF$18","v":19052.806468508064},{"$f":"'Res-Appliance class'!$B40*'RES S curve-disconnect'!BG$3+'Res-Appliance class'!$C40*'RES S curve-disconnect'!BG$8+'Res-Appliance class'!$D40*'RES S curve-disconnect'!BG$13+'Res-Appliance class'!$E40*'RES S curve-disconnect'!BG$18","v":20854.634114042252},{"$f":"'Res-Appliance class'!$B40*'RES S curve-disconnect'!BH$3+'Res-Appliance class'!$C40*'RES S curve-disconnect'!BH$8+'Res-Appliance class'!$D40*'RES S curve-disconnect'!BH$13+'Res-Appliance class'!$E40*'RES S curve-disconnect'!BH$18","v":22993.619126376438},{"$f":"'Res-Appliance class'!$B40*'RES S curve-disconnect'!BI$3+'Res-Appliance class'!$C40*'RES S curve-disconnect'!BI$8+'Res-Appliance class'!$D40*'RES S curve-disconnect'!BI$13+'Res-Appliance class'!$E40*'RES S curve-disconnect'!BI$18","v":26092.884166484637},{"$f":"'Res-Appliance class'!$B40*'RES S curve-disconnect'!BJ$3+'Res-Appliance class'!$C40*'RES S curve-disconnect'!BJ$8+'Res-Appliance class'!$D40*'RES S curve-disconnect'!BJ$13+'Res-Appliance class'!$E40*'RES S curve-disconnect'!BJ$18","v":30632.522074115772},{"$f":"'Res-Appliance class'!$B40*'RES S curve-disconnect'!BK$3+'Res-Appliance class'!$C40*'RES S curve-disconnect'!BK$8+'Res-Appliance class'!$D40*'RES S curve-disconnect'!BK$13+'Res-Appliance class'!$E40*'RES S curve-disconnect'!BK$18","v":37332.989243145836},{"$f":"'Res-Appliance class'!$B40*'RES S curve-disconnect'!BL$3+'Res-Appliance class'!$C40*'RES S curve-disconnect'!BL$8+'Res-Appliance class'!$D40*'RES S curve-disconnect'!BL$13+'Res-Appliance class'!$E40*'RES S curve-disconnect'!BL$18","v":-1380.9985626504949},{"$f":"'Res-Appliance class'!$B40*'RES S curve-disconnect'!BM$3+'Res-Appliance class'!$C40*'RES S curve-disconnect'!BM$8+'Res-Appliance class'!$D40*'RES S curve-disconnect'!BM$13+'Res-Appliance class'!$E40*'RES S curve-disconnect'!BM$18","v":-1372.5092533604961},{"$f":"'Res-Appliance class'!$B40*'RES S curve-disconnect'!BN$3+'Res-Appliance class'!$C40*'RES S curve-disconnect'!BN$8+'Res-Appliance class'!$D40*'RES S curve-disconnect'!BN$13+'Res-Appliance class'!$E40*'RES S curve-disconnect'!BN$18","v":-1368.0539954663836},{"$f":"'Res-Appliance class'!$B40*'RES S curve-disconnect'!BO$3+'Res-Appliance class'!$C40*'RES S curve-disconnect'!BO$8+'Res-Appliance class'!$D40*'RES S curve-disconnect'!BO$13+'Res-Appliance class'!$E40*'RES S curve-disconnect'!BO$18","v":-1355.566093831892},{"$f":"'Res-Appliance class'!$B40*'RES S curve-disconnect'!BP$3+'Res-Appliance class'!$C40*'RES S curve-disconnect'!BP$8+'Res-Appliance class'!$D40*'RES S curve-disconnect'!BP$13+'Res-Appliance class'!$E40*'RES S curve-disconnect'!BP$18","v":-1347.1121012596627},{"$f":"'Res-Appliance class'!$B40*'RES S curve-disconnect'!BQ$3+'Res-Appliance class'!$C40*'RES S curve-disconnect'!BQ$8+'Res-Appliance class'!$D40*'RES S curve-disconnect'!BQ$13+'Res-Appliance class'!$E40*'RES S curve-disconnect'!BQ$18","v":-1338.6697393304316},{"$f":"'Res-Appliance class'!$B40*'RES S curve-disconnect'!BR$3+'Res-Appliance class'!$C40*'RES S curve-disconnect'!BR$8+'Res-Appliance class'!$D40*'RES S curve-disconnect'!BR$13+'Res-Appliance class'!$E40*'RES S curve-disconnect'!BR$18","v":-1334.2611458950432},{"$f":"'Res-Appliance class'!$B40*'RES S curve-disconnect'!BS$3+'Res-Appliance class'!$C40*'RES S curve-disconnect'!BS$8+'Res-Appliance class'!$D40*'RES S curve-disconnect'!BS$13+'Res-Appliance class'!$E40*'RES S curve-disconnect'!BS$18","v":-1321.819627576881},{"$f":"'Res-Appliance class'!$B40*'RES S curve-disconnect'!BT$3+'Res-Appliance class'!$C40*'RES S curve-disconnect'!BT$8+'Res-Appliance class'!$D40*'RES S curve-disconnect'!BT$13+'Res-Appliance class'!$E40*'RES S curve-disconnect'!BT$18","v":-1313.4117389271175},{"$f":"'Res-Appliance class'!$B40*'RES S curve-disconnect'!BU$3+'Res-Appliance class'!$C40*'RES S curve-disconnect'!BU$8+'Res-Appliance class'!$D40*'RES S curve-disconnect'!BU$13+'Res-Appliance class'!$E40*'RES S curve-disconnect'!BU$18","v":-1305.0152032639742},{"$f":"'Res-Appliance class'!$B40*'RES S curve-disconnect'!BV$3+'Res-Appliance class'!$C40*'RES S curve-disconnect'!BV$8+'Res-Appliance class'!$D40*'RES S curve-disconnect'!BV$13+'Res-Appliance class'!$E40*'RES S curve-disconnect'!BV$18","v":-1300.6521601648137},{"$f":"'Res-Appliance class'!$B40*'RES S curve-disconnect'!BW$3+'Res-Appliance class'!$C40*'RES S curve-disconnect'!BW$8+'Res-Appliance class'!$D40*'RES S curve-disconnect'!BW$13+'Res-Appliance class'!$E40*'RES S curve-disconnect'!BW$18","v":-1288.2559179686307},{"$f":"'Res-Appliance class'!$B40*'RES S curve-disconnect'!BX$3+'Res-Appliance class'!$C40*'RES S curve-disconnect'!BX$8+'Res-Appliance class'!$D40*'RES S curve-disconnect'!BX$13+'Res-Appliance class'!$E40*'RES S curve-disconnect'!BX$18","v":-1279.8930329313753},{"$f":"'Res-Appliance class'!$B40*'RES S curve-disconnect'!BY$3+'Res-Appliance class'!$C40*'RES S curve-disconnect'!BY$8+'Res-Appliance class'!$D40*'RES S curve-disconnect'!BY$13+'Res-Appliance class'!$E40*'RES S curve-disconnect'!BY$18","v":-1271.5412300652843},{"$f":"'Res-Appliance class'!$B40*'RES S curve-disconnect'!BZ$3+'Res-Appliance class'!$C40*'RES S curve-disconnect'!BZ$8+'Res-Appliance class'!$D40*'RES S curve-disconnect'!BZ$13+'Res-Appliance class'!$E40*'RES S curve-disconnect'!BZ$18","v":-1267.2226506310371},{"$f":"'Res-Appliance class'!$B40*'RES S curve-disconnect'!CA$3+'Res-Appliance class'!$C40*'RES S curve-disconnect'!CA$8+'Res-Appliance class'!$D40*'RES S curve-disconnect'!CA$13+'Res-Appliance class'!$E40*'RES S curve-disconnect'!CA$18","v":-1254.870604640314},{"$f":"'Res-Appliance class'!$B40*'RES S curve-disconnect'!CB$3+'Res-Appliance class'!$C40*'RES S curve-disconnect'!CB$8+'Res-Appliance class'!$D40*'RES S curve-disconnect'!CB$13+'Res-Appliance class'!$E40*'RES S curve-disconnect'!CB$18","v":-1246.5516500111942},{"$f":"'Res-Appliance class'!$B40*'RES S curve-disconnect'!CC$3+'Res-Appliance class'!$C40*'RES S curve-disconnect'!CC$8+'Res-Appliance class'!$D40*'RES S curve-disconnect'!CC$13+'Res-Appliance class'!$E40*'RES S curve-disconnect'!CC$18","v":-1238.2435134075479},{"$f":"'Res-Appliance class'!$B40*'RES S curve-disconnect'!CD$3+'Res-Appliance class'!$C40*'RES S curve-disconnect'!CD$8+'Res-Appliance class'!$D40*'RES S curve-disconnect'!CD$13+'Res-Appliance class'!$E40*'RES S curve-disconnect'!CD$18","v":-1364.9294071488421}]
["Nillumbik (S)",null,{"$f":"'Res-Appliance class'!$B41*'RES S curve-disconnect'!C$3+'Res-Appliance class'!$C41*'RES S curve-disconnect'!C$8+'Res-Appliance class'!$D41*'RES S curve-disconnect'!C$13+'Res-Appliance class'!$E41*'RES S curve-disconnect'!C$18","v":-4446.4624526331818},{"$f":"'Res-Appliance class'!$B41*'RES S curve-disconnect'!D$3+'Res-Appliance class'!$C41*'RES S curve-disconnect'!D$8+'Res-Appliance class'!$D41*'RES S curve-disconnect'!D$13+'Res-Appliance class'!$E41*'RES S curve-disconnect'!D$18","v":-5080.9796378911087},{"$f":"'Res-Appliance class'!$B41*'RES S curve-disconnect'!E$3+'Res-Appliance class'!$C41*'RES S curve-disconnect'!E$8+'Res-Appliance class'!$D41*'RES S curve-disconnect'!E$13+'Res-Appliance class'!$E41*'RES S curve-disconnect'!E$18","v":-4474.4707576922756},{"$f":"'Res-Appliance class'!$B41*'RES S curve-disconnect'!F$3+'Res-Appliance class'!$C41*'RES S curve-disconnect'!F$8+'Res-Appliance class'!$D41*'RES S curve-disconnect'!F$13+'Res-Appliance class'!$E41*'RES S curve-disconnect'!F$18","v":-4283.1041056219692},{"$f":"'Res-Appliance class'!$B41*'RES S curve-disconnect'!G$3+'Res-Appliance class'!$C41*'RES S curve-disconnect'!G$8+'Res-Appliance class'!$D41*'RES S curve-disconnect'!G$13+'Res-Appliance class'!$E41*'RES S curve-disconnect'!G$18","v":-5700.5121491385717},{"$f":"'Res-Appliance class'!$B41*'RES S curve-disconnect'!H$3+'Res-Appliance class'!$C41*'RES S curve-disconnect'!H$8+'Res-Appliance class'!$D41*'RES S curve-disconnect'!H$13+'Res-Appliance class'!$E41*'RES S curve-disconnect'!H$18","v":-5732.3840117826849},{"$f":"'Res-Appliance class'!$B41*'RES S curve-disconnect'!I$3+'Res-Appliance class'!$C41*'RES S curve-disconnect'!I$8+'Res-Appliance class'!$D41*'RES S curve-disconnect'!I$13+'Res-Appliance class'!$E41*'RES S curve-disconnect'!I$18","v":-5179.8351166000248},{"$f":"'Res-Appliance class'!$B41*'RES S curve-disconnect'!J$3+'Res-Appliance class'!$C41*'RES S curve-disconnect'!J$8+'Res-Appliance class'!$D41*'RES S curve-disconnect'!J$13+'Res-Appliance class'!$E41*'RES S curve-disconnect'!J$18","v":-5444.1368811525499},{"$f":"'Res-Appliance class'!$B41*'RES S curve-disconnect'!K$3+'Res-Appliance class'!$C41*'RES S curve-disconnect'!K$8+'Res-Appliance class'!$D41*'RES S curve-disconnect'!K$13+'Res-Appliance class'!$E41*'RES S curve-disconnect'!K$18","v":-4467.7822352463518},{"$f":"'Res-Appliance class'!$B41*'RES S curve-disconnect'!L$3+'Res-Appliance class'!$C41*'RES S curve-disconnect'!L$8+'Res-Appliance class'!$D41*'RES S curve-disconnect'!L$13+'Res-Appliance class'!$E41*'RES S curve-disconnect'!L$18","v":-4913.72527268666},{"$f":"'Res-Appliance class'!$B41*'RES S curve-disconnect'!M$3+'Res-Appliance class'!$C41*'RES S curve-disconnect'!M$8+'Res-Appliance class'!$D41*'RES S curve-disconnect'!M$13+'Res-Appliance class'!$E41*'RES S curve-disconnect'!M$18","v":-5746.5750669151339},{"$f":"'Res-Appliance class'!$B41*'RES S curve-disconnect'!N$3+'Res-Appliance class'!$C41*'RES S curve-disconnect'!N$8+'Res-Appliance class'!$D41*'RES S curve-disconnect'!N$13+'Res-Appliance class'!$E41*'RES S curve-disconnect'!N$18","v":-5835.1629189426194},{"$f":"'Res-Appliance class'!$B41*'RES S curve-disconnect'!O$3+'Res-Appliance class'!$C41*'RES S curve-disconnect'!O$8+'Res-Appliance class'!$D41*'RES S curve-disconnect'!O$13+'Res-Appliance class'!$E41*'RES S curve-disconnect'!O$18","v":-5136.2649614630072},{"$f":"'Res-Appliance class'!$B41*'RES S curve-disconnect'!P$3+'Res-Appliance class'!$C41*'RES S curve-disconnect'!P$8+'Res-Appliance class'!$D41*'RES S curve-disconnect'!P$13+'Res-Appliance class'!$E41*'RES S curve-disconnect'!P$18","v":-4578.8852345159457},{"$f":"'Res-Appliance class'!$B41*'RES S curve-disconnect'!Q$3+'Res-Appliance class'!$C41*'RES S curve-disconnect'!Q$8+'Res-Appliance class'!$D41*'RES S curve-disconnect'!Q$13+'Res-Appliance class'!$E41*'RES S curve-disconnect'!Q$18","v":-3730.8921741666345},{"$f":"'Res-Appliance class'!$B41*'RES S curve-disconnect'!R$3+'Res-Appliance class'!$C41*'RES S curve-disconnect'!R$8+'Res-Appliance class'!$D41*'RES S curve-disconnect'!R$13+'Res-Appliance class'!$E41*'RES S curve-disconnect'!R$18","v":-3254.7154789672054},{"$f":"'Res-Appliance class'!$B41*'RES S curve-disconnect'!S$3+'Res-Appliance class'!$C41*'RES S curve-disconnect'!S$8+'Res-Appliance class'!$D41*'RES S curve-disconnect'!S$13+'Res-Appliance class'!$E41*'RES S curve-disconnect'!S$18","v":-2491.7595487256449},{"$f":"'Res-Appliance class'!$B41*'RES S curve-disconnect'!T$3+'Res-Appliance class'!$C41*'RES S curve-disconnect'!T$8+'Res-Appliance class'!$D41*'RES S curve-disconnect'!T$13+'Res-Appliance class'!$E41*'RES S curve-disconnect'!T$18","v":-2080.2066186145889},{"$f":"'Res-Appliance class'!$B41*'RES S curve-disconnect'!U$3+'Res-Appliance class'!$C41*'RES S curve-disconnect'!U$8+'Res-Appliance class'!$D41*'RES S curve-disconnect'!U$13+'Res-Appliance class'!$E41*'RES S curve-disconnect'!U$18","v":-1611.0165249425929},{"$f":"'Res-Appliance class'!$B41*'RES S curve-disconnect'!V$3+'Res-Appliance class'!$C41*'RES S curve-disconnect'!V$8+'Res-Appliance class'!$D41*'RES S curve-disconnect'!V$13+'Res-Appliance class'!$E41*'RES S curve-disconnect'!V$18","v":-1296.4280472248392},{"$f":"'Res-Appliance class'!$B41*'RES S curve-disconnect'!W$3+'Res-Appliance class'!$C41*'RES S curve-disconnect'!W$8+'Res-Appliance class'!$D41*'RES S curve-disconnect'!W$13+'Res-Appliance class'!$E41*'RES S curve-disconnect'!W$18","v":-1052.246619667392},{"$f":"'Res-Appliance class'!$B41*'RES S curve-disconnect'!X$3+'Res-Appliance class'!$C41*'RES S curve-disconnect'!X$8+'Res-Appliance class'!$D41*'RES S curve-disconnect'!X$13+'Res-Appliance class'!$E41*'RES S curve-disconnect'!X$18","v":-481.31744152967474},{"$f":"'Res-Appliance class'!$B41*'RES S curve-disconnect'!Y$3+'Res-Appliance class'!$C41*'RES S curve-disconnect'!Y$8+'Res-Appliance class'!$D41*'RES S curve-disconnect'!Y$13+'Res-Appliance class'!$E41*'RES S curve-disconnect'!Y$18","v":96.107891599761672},{"$f":"'Res-Appliance class'!$B41*'RES S curve-disconnect'!Z$3+'Res-Appliance class'!$C41*'RES S curve-disconnect'!Z$8+'Res-Appliance class'!$D41*'RES S curve-disconnect'!Z$13+'Res-Appliance class'!$E41*'RES S curve-disconnect'!Z$18","v":482.68201474551819},{"$f":"'Res-Appliance class'!$B41*'RES S curve-disconnect'!AA$3+'Res-Appliance class'!$C41*'RES S curve-disconnect'!AA$8+'Res-Appliance class'!$D41*'RES S curve-disconnect'!AA$13+'Res-Appliance class'!$E41*'RES S curve-disconnect'!AA$18","v":868.88543153328135},{"$f":"'Res-Appliance class'!$B41*'RES S curve-disconnect'!AB$3+'Res-Appliance class'!$C41*'RES S curve-disconnect'!AB$8+'Res-Appliance class'!$D41*'RES S curve-disconnect'!AB$13+'Res-Appliance class'!$E41*'RES S curve-disconnect'!AB$18","v":1176.1766341342163},{"$f":"'Res-Appliance class'!$B41*'RES S curve-disconnect'!AC$3+'Res-Appliance class'!$C41*'RES S curve-disconnect'!AC$8+'Res-Appliance class'!$D41*'RES S curve-disconnect'!AC$13+'Res-Appliance class'!$E41*'RES S curve-disconnect'!AC$18","v":1471.6446591988777},{"$f":"'Res-Appliance class'!$B41*'RES S curve-disconnect'!AD$3+'Res-Appliance class'!$C41*'RES S curve-disconnect'!AD$8+'Res-Appliance class'!$D41*'RES S curve-disconnect'!AD$13+'Res-Appliance class'!$E41*'RES S curve-disconnect'!AD$18","v":1741.832956382877},{"$f":"'Res-Appliance class'!$B41*'RES S curve-disconnect'!AE$3+'Res-Appliance class'!$C41*'RES S curve-disconnect'!AE$8+'Res-Appliance class'!$D41*'RES S curve-disconnect'!AE$13+'Res-Appliance class'!$E41*'RES S curve-disconnect'!AE$18","v":2025.8711809106401},{"$f":"'Res-Appliance class'!$B41*'RES S curve-disconnect'!AF$3+'Res-Appliance class'!$C41*'RES S curve-disconnect'!AF$8+'Res-Appliance class'!$D41*'RES S curve-disconnect'!AF$13+'Res-Appliance class'!$E41*'RES S curve-disconnect'!AF$18","v":2397.3785971019333},{"$f":"'Res-Appliance class'!$B41*'RES S curve-disconnect'!AG$3+'Res-Appliance class'!$C41*'RES S curve-disconnect'!AG$8+'Res-Appliance class'!$D41*'RES S curve-disconnect'!AG$13+'Res-Appliance class'!$E41*'RES S curve-disconnect'!AG$18","v":2660.1961949758552},{"$f":"'Res-Appliance class'!$B41*'RES S curve-disconnect'!AH$3+'Res-Appliance class'!$C41*'RES S curve-disconnect'!AH$8+'Res-Appliance class'!$D41*'RES S curve-disconnect'!AH$13+'Res-Appliance class'!$E41*'RES S curve-disconnect'!AH$18","v":3031.2887102068926},{"$f":"'Res-Appliance class'!$B41*'RES S curve-disconnect'!AI$3+'Res-Appliance class'!$C41*'RES S curve-disconnect'!AI$8+'Res-Appliance class'!$D41*'RES S curve-disconnect'!AI$13+'Res-Appliance class'!$E41*'RES S curve-disconnect'!AI$18","v":3363.767542004297},{"$f":"'Res-Appliance class'!$B41*'RES S curve-disconnect'!AJ$3+'Res-Appliance class'!$C41*'RES S curve-disconnect'!AJ$8+'Res-Appliance class'!$D41*'RES S curve-disconnect'!AJ$13+'Res-Appliance class'!$E41*'RES S curve-disconnect'!AJ$18","v":3664.0323533892538},{"$f":"'Res-Appliance class'!$B41*'RES S curve-disconnect'!AK$3+'Res-Appliance class'!$C41*'RES S curve-disconnect'!AK$8+'Res-Appliance class'!$D41*'RES S curve-disconnect'!AK$13+'Res-Appliance class'!$E41*'RES S curve-disconnect'!AK$18","v":3982.7806155511435},{"$f":"'Res-Appliance class'!$B41*'RES S curve-disconnect'!AL$3+'Res-Appliance class'!$C41*'RES S curve-disconnect'!AL$8+'Res-Appliance class'!$D41*'RES S curve-disconnect'!AL$13+'Res-Appliance class'!$E41*'RES S curve-disconnect'!AL$18","v":2881.4589324427043},{"$f":"'Res-Appliance class'!$B41*'RES S curve-disconnect'!AM$3+'Res-Appliance class'!$C41*'RES S curve-disconnect'!AM$8+'Res-Appliance class'!$D41*'RES S curve-disconnect'!AM$13+'Res-Appliance class'!$E41*'RES S curve-disconnect'!AM$18","v":2735.4311350840217},{"$f":"'Res-Appliance class'!$B41*'RES S curve-disconnect'!AN$3+'Res-Appliance class'!$C41*'RES S curve-disconnect'!AN$8+'Res-Appliance class'!$D41*'RES S curve-disconnect'!AN$13+'Res-Appliance class'!$E41*'RES S curve-disconnect'!AN$18","v":3036.2548020289446},{"$f":"'Res-Appliance class'!$B41*'RES S curve-disconnect'!AO$3+'Res-Appliance class'!$C41*'RES S curve-disconnect'!AO$8+'Res-Appliance class'!$D41*'RES S curve-disconnect'!AO$13+'Res-Appliance class'!$E41*'RES S curve-disconnect'!AO$18","v":3405.1137781364987},{"$f":"'Res-Appliance class'!$B41*'RES S curve-disconnect'!AP$3+'Res-Appliance class'!$C41*'RES S curve-disconnect'!AP$8+'Res-Appliance class'!$D41*'RES S curve-disconnect'!AP$13+'Res-Appliance class'!$E41*'RES S curve-disconnect'!AP$18","v":3746.3947574263166},{"$f":"'Res-Appliance class'!$B41*'RES S curve-disconnect'!AQ$3+'Res-Appliance class'!$C41*'RES S curve-disconnect'!AQ$8+'Res-Appliance class'!$D41*'RES S curve-disconnect'!AQ$13+'Res-Appliance class'!$E41*'RES S curve-disconnect'!AQ$18","v":4113.3018926428158},{"$f":"'Res-Appliance class'!$B41*'RES S curve-disconnect'!AR$3+'Res-Appliance class'!$C41*'RES S curve-disconnect'!AR$8+'Res-Appliance class'!$D41*'RES S curve-disconnect'!AR$13+'Res-Appliance class'!$E41*'RES S curve-disconnect'!AR$18","v":4516.5042728813905},{"$f":"'Res-Appliance class'!$B41*'RES S curve-disconnect'!AS$3+'Res-Appliance class'!$C41*'RES S curve-disconnect'!AS$8+'Res-Appliance class'!$D41*'RES S curve-disconnect'!AS$13+'Res-Appliance class'!$E41*'RES S curve-disconnect'!AS$18","v":4969.062305750931},{"$f":"'Res-Appliance class'!$B41*'RES S curve-disconnect'!AT$3+'Res-Appliance class'!$C41*'RES S curve-disconnect'!AT$8+'Res-Appliance class'!$D41*'RES S curve-disconnect'!AT$13+'Res-Appliance class'!$E41*'RES S curve-disconnect'!AT$18","v":5475.6794007726621},{"$f":"'Res-Appliance class'!$B41*'RES S curve-disconnect'!AU$3+'Res-Appliance class'!$C41*'RES S curve-disconnect'!AU$8+'Res-Appliance class'!$D41*'RES S curve-disconnect'!AU$13+'Res-Appliance class'!$E41*'RES S curve-disconnect'!AU$18","v":6061.3614567739223},{"$f":"'Res-Appliance class'!$B41*'RES S curve-disconnect'!AV$3+'Res-Appliance class'!$C41*'RES S curve-disconnect'!AV$8+'Res-Appliance class'!$D41*'RES S curve-disconnect'!AV$13+'Res-Appliance class'!$E41*'RES S curve-disconnect'!AV$18","v":6729.9309754285496},{"$f":"'Res-Appliance class'!$B41*'RES S curve-disconnect'!AW$3+'Res-Appliance class'!$C41*'RES S curve-disconnect'!AW$8+'Res-Appliance class'!$D41*'RES S curve-disconnect'!AW$13+'Res-Appliance class'!$E41*'RES S curve-disconnect'!AW$18","v":7498.646820678282},{"$f":"'Res-Appliance class'!$B41*'RES S curve-disconnect'!AX$3+'Res-Appliance class'!$C41*'RES S curve-disconnect'!AX$8+'Res-Appliance class'!$D41*'RES S curve-disconnect'!AX$13+'Res-Appliance class'!$E41*'RES S curve-disconnect'!AX$18","v":8375.3600901255086},{"$f":"'Res-Appliance class'!$B41*'RES S curve-disconnect'!AY$3+'Res-Appliance class'!$C41*'RES S curve-disconnect'!AY$8+'Res-Appliance class'!$D41*'RES S curve-disconnect'!AY$13+'Res-Appliance class'!$E41*'RES S curve-disconnect'!AY$18","v":9386.7652015562835},{"$f":"'Res-Appliance class'!$B41*'RES S curve-disconnect'!AZ$3+'Res-Appliance class'!$C41*'RES S curve-disconnect'!AZ$8+'Res-Appliance class'!$D41*'RES S curve-disconnect'!AZ$13+'Res-Appliance class'!$E41*'RES S curve-disconnect'!AZ$18","v":10543.772446482351},{"$f":"'Res-Appliance class'!$B41*'RES S curve-disconnect'!BA$3+'Res-Appliance class'!$C41*'RES S curve-disconnect'!BA$8+'Res-Appliance class'!$D41*'RES S curve-disconnect'!BA$13+'Res-Appliance class'!$E41*'RES S curve-disconnect'!BA$18","v":11884.267019378593},{"$f":"'Res-Appliance class'!$B41*'RES S curve-disconnect'!BB$3+'Res-Appliance class'!$C41*'RES S curve-disconnect'!BB$8+'Res-Appliance class'!$D41*'RES S curve-disconnect'!BB$13+'Res-Appliance class'!$E41*'RES S curve-disconnect'!BB$18","v":13451.387357723148},{"$f":"'Res-Appliance class'!$B41*'RES S curve-disconnect'!BC$3+'Res-Appliance class'!$C41*'RES S curve-disconnect'!BC$8+'Res-Appliance class'!$D41*'RES S curve-disconnect'!BC$13+'Res-Appliance class'!$E41*'RES S curve-disconnect'!BC$18","v":15320.405828642597},{"$f":"'Res-Appliance class'!$B41*'RES S curve-disconnect'!BD$3+'Res-Appliance class'!$C41*'RES S curve-disconnect'!BD$8+'Res-Appliance class'!$D41*'RES S curve-disconnect'!BD$13+'Res-Appliance class'!$E41*'RES S curve-disconnect'!BD$18","v":17125.948831281079},{"$f":"'Res-Appliance class'!$B41*'RES S curve-disconnect'!BE$3+'Res-Appliance class'!$C41*'RES S curve-disconnect'!BE$8+'Res-Appliance class'!$D41*'RES S curve-disconnect'!BE$13+'Res-Appliance class'!$E41*'RES S curve-disconnect'!BE$18","v":18777.058370262796},{"$f":"'Res-Appliance class'!$B41*'RES S curve-disconnect'!BF$3+'Res-Appliance class'!$C41*'RES S curve-disconnect'!BF$8+'Res-Appliance class'!$D41*'RES S curve-disconnect'!BF$13+'Res-Appliance class'!$E41*'RES S curve-disconnect'!BF$18","v":20466.208292307543},{"$f":"'Res-Appliance class'!$B41*'RES S curve-disconnect'!BG$3+'Res-Appliance class'!$C41*'RES S curve-disconnect'!BG$8+'Res-Appliance class'!$D41*'RES S curve-disconnect'!BG$13+'Res-Appliance class'!$E41*'RES S curve-disconnect'!BG$18","v":22377.016822344878},{"$f":"'Res-Appliance class'!$B41*'RES S curve-disconnect'!BH$3+'Res-Appliance class'!$C41*'RES S curve-disconnect'!BH$8+'Res-Appliance class'!$D41*'RES S curve-disconnect'!BH$13+'Res-Appliance class'!$E41*'RES S curve-disconnect'!BH$18","v":24645.853516222614},{"$f":"'Res-Appliance class'!$B41*'RES S curve-disconnect'!BI$3+'Res-Appliance class'!$C41*'RES S curve-disconnect'!BI$8+'Res-Appliance class'!$D41*'RES S curve-disconnect'!BI$13+'Res-Appliance class'!$E41*'RES S curve-disconnect'!BI$18","v":27932.874408539923},{"$f":"'Res-Appliance class'!$B41*'RES S curve-disconnect'!BJ$3+'Res-Appliance class'!$C41*'RES S curve-disconnect'!BJ$8+'Res-Appliance class'!$D41*'RES S curve-disconnect'!BJ$13+'Res-Appliance class'!$E41*'RES S curve-disconnect'!BJ$18","v":32749.893902514192},{"$f":"'Res-Appliance class'!$B41*'RES S curve-disconnect'!BK$3+'Res-Appliance class'!$C41*'RES S curve-disconnect'!BK$8+'Res-Appliance class'!$D41*'RES S curve-disconnect'!BK$13+'Res-Appliance class'!$E41*'RES S curve-disconnect'!BK$18","v":39863.227724293916},{"$f":"'Res-Appliance class'!$B41*'RES S curve-disconnect'!BL$3+'Res-Appliance class'!$C41*'RES S curve-disconnect'!BL$8+'Res-Appliance class'!$D41*'RES S curve-disconnect'!BL$13+'Res-Appliance class'!$E41*'RES S curve-disconnect'!BL$18","v":-1154.1595881558035},{"$f":"'Res-Appliance class'!$B41*'RES S curve-disconnect'!BM$3+'Res-Appliance class'!$C41*'RES S curve-disconnect'!BM$8+'Res-Appliance class'!$D41*'RES S curve-disconnect'!BM$13+'Res-Appliance class'!$E41*'RES S curve-disconnect'!BM$18","v":-1145.3330739069083},{"$f":"'Res-Appliance class'!$B41*'RES S curve-disconnect'!BN$3+'Res-Appliance class'!$C41*'RES S curve-disconnect'!BN$8+'Res-Appliance class'!$D41*'RES S curve-disconnect'!BN$13+'Res-Appliance class'!$E41*'RES S curve-disconnect'!BN$18","v":-1140.5399540555036},{"$f":"'Res-Appliance class'!$B41*'RES S curve-disconnect'!BO$3+'Res-Appliance class'!$C41*'RES S curve-disconnect'!BO$8+'Res-Appliance class'!$D41*'RES S curve-disconnect'!BO$13+'Res-Appliance class'!$E41*'RES S curve-disconnect'!BO$18","v":-1127.7135382848853},{"$f":"'Res-Appliance class'!$B41*'RES S curve-disconnect'!BP$3+'Res-Appliance class'!$C41*'RES S curve-disconnect'!BP$8+'Res-Appliance class'!$D41*'RES S curve-disconnect'!BP$13+'Res-Appliance class'!$E41*'RES S curve-disconnect'!BP$18","v":-1118.9203841846286},{"$f":"'Res-Appliance class'!$B41*'RES S curve-disconnect'!BQ$3+'Res-Appliance class'!$C41*'RES S curve-disconnect'!BQ$8+'Res-Appliance class'!$D41*'RES S curve-disconnect'!BQ$13+'Res-Appliance class'!$E41*'RES S curve-disconnect'!BQ$18","v":-1110.1382180899896},{"$f":"'Res-Appliance class'!$B41*'RES S curve-disconnect'!BR$3+'Res-Appliance class'!$C41*'RES S curve-disconnect'!BR$8+'Res-Appliance class'!$D41*'RES S curve-disconnect'!BR$13+'Res-Appliance class'!$E41*'RES S curve-disconnect'!BR$18","v":-1105.3891825741302},{"$f":"'Res-Appliance class'!$B41*'RES S curve-disconnect'!BS$3+'Res-Appliance class'!$C41*'RES S curve-disconnect'!BS$8+'Res-Appliance class'!$D41*'RES S curve-disconnect'!BS$13+'Res-Appliance class'!$E41*'RES S curve-disconnect'!BS$18","v":-1092.6065889507631},{"$f":"'Res-Appliance class'!$B41*'RES S curve-disconnect'!BT$3+'Res-Appliance class'!$C41*'RES S curve-disconnect'!BT$8+'Res-Appliance class'!$D41*'RES S curve-disconnect'!BT$13+'Res-Appliance class'!$E41*'RES S curve-disconnect'!BT$18","v":-1083.8569964296087},{"$f":"'Res-Appliance class'!$B41*'RES S curve-disconnect'!BU$3+'Res-Appliance class'!$C41*'RES S curve-disconnect'!BU$8+'Res-Appliance class'!$D41*'RES S curve-disconnect'!BU$13+'Res-Appliance class'!$E41*'RES S curve-disconnect'!BU$18","v":-1075.1181329558631},{"$f":"'Res-Appliance class'!$B41*'RES S curve-disconnect'!BV$3+'Res-Appliance class'!$C41*'RES S curve-disconnect'!BV$8+'Res-Appliance class'!$D41*'RES S curve-disconnect'!BV$13+'Res-Appliance class'!$E41*'RES S curve-disconnect'!BV$18","v":-1070.4121427025011},{"$f":"'Res-Appliance class'!$B41*'RES S curve-disconnect'!BW$3+'Res-Appliance class'!$C41*'RES S curve-disconnect'!BW$8+'Res-Appliance class'!$D41*'RES S curve-disconnect'!BW$13+'Res-Appliance class'!$E41*'RES S curve-disconnect'!BW$18","v":-1057.6723385729695},{"$f":"'Res-Appliance class'!$B41*'RES S curve-disconnect'!BX$3+'Res-Appliance class'!$C41*'RES S curve-disconnect'!BX$8+'Res-Appliance class'!$D41*'RES S curve-disconnect'!BX$13+'Res-Appliance class'!$E41*'RES S curve-disconnect'!BX$18","v":-1048.9652813567166},{"$f":"'Res-Appliance class'!$B41*'RES S curve-disconnect'!BY$3+'Res-Appliance class'!$C41*'RES S curve-disconnect'!BY$8+'Res-Appliance class'!$D41*'RES S curve-disconnect'!BY$13+'Res-Appliance class'!$E41*'RES S curve-disconnect'!BY$18","v":-1040.2687005687258},{"$f":"'Res-Appliance class'!$B41*'RES S curve-disconnect'!BZ$3+'Res-Appliance class'!$C41*'RES S curve-disconnect'!BZ$8+'Res-Appliance class'!$D41*'RES S curve-disconnect'!BZ$13+'Res-Appliance class'!$E41*'RES S curve-disconnect'!BZ$18","v":-1035.6047419418742},{"$f":"'Res-Appliance class'!$B41*'RES S curve-disconnect'!CA$3+'Res-Appliance class'!$C41*'RES S curve-disconnect'!CA$8+'Res-Appliance class'!$D41*'RES S curve-disconnect'!CA$13+'Res-Appliance class'!$E41*'RES S curve-disconnect'!CA$18","v":-1022.9067199296896},{"$f":"'Res-Appliance class'!$B41*'RES S curve-disconnect'!CB$3+'Res-Appliance class'!$C41*'RES S curve-disconnect'!CB$8+'Res-Appliance class'!$D41*'RES S curve-disconnect'!CB$13+'Res-Appliance class'!$E41*'RES S curve-disconnect'!CB$18","v":-1014.2411968619507},{"$f":"'Res-Appliance class'!$B41*'RES S curve-disconnect'!CC$3+'Res-Appliance class'!$C41*'RES S curve-disconnect'!CC$8+'Res-Appliance class'!$D41*'RES S curve-disconnect'!CC$13+'Res-Appliance class'!$E41*'RES S curve-disconnect'!CC$18","v":-1005.5859037842755},{"$f":"'Res-Appliance class'!$B41*'RES S curve-disconnect'!CD$3+'Res-Appliance class'!$C41*'RES S curve-disconnect'!CD$8+'Res-Appliance class'!$D41*'RES S curve-disconnect'!CD$13+'Res-Appliance class'!$E41*'RES S curve-disconnect'!CD$18","v":-1140.5010187645662}]
["Port Phillip (C)",null,{"$f":"'Res-Appliance class'!$B42*'RES S curve-disconnect'!C$3+'Res-Appliance class'!$C42*'RES S curve-disconnect'!C$8+'Res-Appliance class'!$D42*'RES S curve-disconnect'!C$13+'Res-Appliance class'!$E42*'RES S curve-disconnect'!C$18","v":-2932.3191936297771},{"$f":"'Res-Appliance class'!$B42*'RES S curve-disconnect'!D$3+'Res-Appliance class'!$C42*'RES S curve-disconnect'!D$8+'Res-Appliance class'!$D42*'RES S curve-disconnect'!D$13+'Res-Appliance class'!$E42*'RES S curve-disconnect'!D$18","v":-3341.777210260288},{"$f":"'Res-Appliance class'!$B42*'RES S curve-disconnect'!E$3+'Res-Appliance class'!$C42*'RES S curve-disconnect'!E$8+'Res-Appliance class'!$D42*'RES S curve-disconnect'!E$13+'Res-Appliance class'!$E42*'RES S curve-disconnect'!E$18","v":-3044.6474243204375},{"$f":"'Res-Appliance class'!$B42*'RES S curve-disconnect'!F$3+'Res-Appliance class'!$C42*'RES S curve-disconnect'!F$8+'Res-Appliance class'!$D42*'RES S curve-disconnect'!F$13+'Res-Appliance class'!$E42*'RES S curve-disconnect'!F$18","v":-2934.8814172259936},{"$f":"'Res-Appliance class'!$B42*'RES S curve-disconnect'!G$3+'Res-Appliance class'!$C42*'RES S curve-disconnect'!G$8+'Res-Appliance class'!$D42*'RES S curve-disconnect'!G$13+'Res-Appliance class'!$E42*'RES S curve-disconnect'!G$18","v":-3588.6179074625834},{"$f":"'Res-Appliance class'!$B42*'RES S curve-disconnect'!H$3+'Res-Appliance class'!$C42*'RES S curve-disconnect'!H$8+'Res-Appliance class'!$D42*'RES S curve-disconnect'!H$13+'Res-Appliance class'!$E42*'RES S curve-disconnect'!H$18","v":-3622.5661750696286},{"$f":"'Res-Appliance class'!$B42*'RES S curve-disconnect'!I$3+'Res-Appliance class'!$C42*'RES S curve-disconnect'!I$8+'Res-Appliance class'!$D42*'RES S curve-disconnect'!I$13+'Res-Appliance class'!$E42*'RES S curve-disconnect'!I$18","v":-3296.0113193435309},{"$f":"'Res-Appliance class'!$B42*'RES S curve-disconnect'!J$3+'Res-Appliance class'!$C42*'RES S curve-disconnect'!J$8+'Res-Appliance class'!$D42*'RES S curve-disconnect'!J$13+'Res-Appliance class'!$E42*'RES S curve-disconnect'!J$18","v":-3585.1128237701505},{"$f":"'Res-Appliance class'!$B42*'RES S curve-disconnect'!K$3+'Res-Appliance class'!$C42*'RES S curve-disconnect'!K$8+'Res-Appliance class'!$D42*'RES S curve-disconnect'!K$13+'Res-Appliance class'!$E42*'RES S curve-disconnect'!K$18","v":-2982.8049237292589},{"$f":"'Res-Appliance class'!$B42*'RES S curve-disconnect'!L$3+'Res-Appliance class'!$C42*'RES S curve-disconnect'!L$8+'Res-Appliance class'!$D42*'RES S curve-disconnect'!L$13+'Res-Appliance class'!$E42*'RES S curve-disconnect'!L$18","v":-3266.0212809641325},{"$f":"'Res-Appliance class'!$B42*'RES S curve-disconnect'!M$3+'Res-Appliance class'!$C42*'RES S curve-disconnect'!M$8+'Res-Appliance class'!$D42*'RES S curve-disconnect'!M$13+'Res-Appliance class'!$E42*'RES S curve-disconnect'!M$18","v":-3728.4436999987629},{"$f":"'Res-Appliance class'!$B42*'RES S curve-disconnect'!N$3+'Res-Appliance class'!$C42*'RES S curve-disconnect'!N$8+'Res-Appliance class'!$D42*'RES S curve-disconnect'!N$13+'Res-Appliance class'!$E42*'RES S curve-disconnect'!N$18","v":-3777.5133156795314},{"$f":"'Res-Appliance class'!$B42*'RES S curve-disconnect'!O$3+'Res-Appliance class'!$C42*'RES S curve-disconnect'!O$8+'Res-Appliance class'!$D42*'RES S curve-disconnect'!O$13+'Res-Appliance class'!$E42*'RES S curve-disconnect'!O$18","v":-3345.9962392561429},{"$f":"'Res-Appliance class'!$B42*'RES S curve-disconnect'!P$3+'Res-Appliance class'!$C42*'RES S curve-disconnect'!P$8+'Res-Appliance class'!$D42*'RES S curve-disconnect'!P$13+'Res-Appliance class'!$E42*'RES S curve-disconnect'!P$18","v":-3008.9212831621958},{"$f":"'Res-Appliance class'!$B42*'RES S curve-disconnect'!Q$3+'Res-Appliance class'!$C42*'RES S curve-disconnect'!Q$8+'Res-Appliance class'!$D42*'RES S curve-disconnect'!Q$13+'Res-Appliance class'!$E42*'RES S curve-disconnect'!Q$18","v":-2497.5156736818326},{"$f":"'Res-Appliance class'!$B42*'RES S curve-disconnect'!R$3+'Res-Appliance class'!$C42*'RES S curve-disconnect'!R$8+'Res-Appliance class'!$D42*'RES S curve-disconnect'!R$13+'Res-Appliance class'!$E42*'RES S curve-disconnect'!R$18","v":-2210.3906635572885},{"$f":"'Res-Appliance class'!$B42*'RES S curve-disconnect'!S$3+'Res-Appliance class'!$C42*'RES S curve-disconnect'!S$8+'Res-Appliance class'!$D42*'RES S curve-disconnect'!S$13+'Res-Appliance class'!$E42*'RES S curve-disconnect'!S$18","v":-1740.7751822758232},{"$f":"'Res-Appliance class'!$B42*'RES S curve-disconnect'!T$3+'Res-Appliance class'!$C42*'RES S curve-disconnect'!T$8+'Res-Appliance class'!$D42*'RES S curve-disconnect'!T$13+'Res-Appliance class'!$E42*'RES S curve-disconnect'!T$18","v":-1509.3799939963119},{"$f":"'Res-Appliance class'!$B42*'RES S curve-disconnect'!U$3+'Res-Appliance class'!$C42*'RES S curve-disconnect'!U$8+'Res-Appliance class'!$D42*'RES S curve-disconnect'!U$13+'Res-Appliance class'!$E42*'RES S curve-disconnect'!U$18","v":-1229.2532874850724},{"$f":"'Res-Appliance class'!$B42*'RES S curve-disconnect'!V$3+'Res-Appliance class'!$C42*'RES S curve-disconnect'!V$8+'Res-Appliance class'!$D42*'RES S curve-disconnect'!V$13+'Res-Appliance class'!$E42*'RES S curve-disconnect'!V$18","v":-1034.3971466925934},{"$f":"'Res-Appliance class'!$B42*'RES S curve-disconnect'!W$3+'Res-Appliance class'!$C42*'RES S curve-disconnect'!W$8+'Res-Appliance class'!$D42*'RES S curve-disconnect'!W$13+'Res-Appliance class'!$E42*'RES S curve-disconnect'!W$18","v":-883.33779493672023},{"$f":"'Res-Appliance class'!$B42*'RES S curve-disconnect'!X$3+'Res-Appliance class'!$C42*'RES S curve-disconnect'!X$8+'Res-Appliance class'!$D42*'RES S curve-disconnect'!X$13+'Res-Appliance class'!$E42*'RES S curve-disconnect'!X$18","v":-546.11161092880161},{"$f":"'Res-Appliance class'!$B42*'RES S curve-disconnect'!Y$3+'Res-Appliance class'!$C42*'RES S curve-disconnect'!Y$8+'Res-Appliance class'!$D42*'RES S curve-disconnect'!Y$13+'Res-Appliance class'!$E42*'RES S curve-disconnect'!Y$18","v":-202.55439048034151},{"$f":"'Res-Appliance class'!$B42*'RES S curve-disconnect'!Z$3+'Res-Appliance class'!$C42*'RES S curve-disconnect'!Z$8+'Res-Appliance class'!$D42*'RES S curve-disconnect'!Z$13+'Res-Appliance class'!$E42*'RES S curve-disconnect'!Z$18","v":29.945692236589537},{"$f":"'Res-Appliance class'!$B42*'RES S curve-disconnect'!AA$3+'Res-Appliance class'!$C42*'RES S curve-disconnect'!AA$8+'Res-Appliance class'!$D42*'RES S curve-disconnect'!AA$13+'Res-Appliance class'!$E42*'RES S curve-disconnect'!AA$18","v":265.11220829204996},{"$f":"'Res-Appliance class'!$B42*'RES S curve-disconnect'!AB$3+'Res-Appliance class'!$C42*'RES S curve-disconnect'!AB$8+'Res-Appliance class'!$D42*'RES S curve-disconnect'!AB$13+'Res-Appliance class'!$E42*'RES S curve-disconnect'!AB$18","v":453.25691324143196},{"$f":"'Res-Appliance class'!$B42*'RES S curve-disconnect'!AC$3+'Res-Appliance class'!$C42*'RES S curve-disconnect'!AC$8+'Res-Appliance class'!$D42*'RES S curve-disconnect'!AC$13+'Res-Appliance class'!$E42*'RES S curve-disconnect'!AC$18","v":636.09154052741633},{"$f":"'Res-Appliance class'!$B42*'RES S curve-disconnect'!AD$3+'Res-Appliance class'!$C42*'RES S curve-disconnect'!AD$8+'Res-Appliance class'!$D42*'RES S curve-disconnect'!AD$13+'Res-Appliance class'!$E42*'RES S curve-disconnect'!AD$18","v":803.57163771791647},{"$f":"'Res-Appliance class'!$B42*'RES S curve-disconnect'!AE$3+'Res-Appliance class'!$C42*'RES S curve-disconnect'!AE$8+'Res-Appliance class'!$D42*'RES S curve-disconnect'!AE$13+'Res-Appliance class'!$E42*'RES S curve-disconnect'!AE$18","v":983.52591646999724},{"$f":"'Res-Appliance class'!$B42*'RES S curve-disconnect'!AF$3+'Res-Appliance class'!$C42*'RES S curve-disconnect'!AF$8+'Res-Appliance class'!$D42*'RES S curve-disconnect'!AF$13+'Res-Appliance class'!$E42*'RES S curve-disconnect'!AF$18","v":1212.9324439190532},{"$f":"'Res-Appliance class'!$B42*'RES S curve-disconnect'!AG$3+'Res-Appliance class'!$C42*'RES S curve-disconnect'!AG$8+'Res-Appliance class'!$D42*'RES S curve-disconnect'!AG$13+'Res-Appliance class'!$E42*'RES S curve-disconnect'!AG$18","v":1375.0672019441197},{"$f":"'Res-Appliance class'!$B42*'RES S curve-disconnect'!AH$3+'Res-Appliance class'!$C42*'RES S curve-disconnect'!AH$8+'Res-Appliance class'!$D42*'RES S curve-disconnect'!AH$13+'Res-Appliance class'!$E42*'RES S curve-disconnect'!AH$18","v":1595.8127876661288},{"$f":"'Res-Appliance class'!$B42*'RES S curve-disconnect'!AI$3+'Res-Appliance class'!$C42*'RES S curve-disconnect'!AI$8+'Res-Appliance class'!$D42*'RES S curve-disconnect'!AI$13+'Res-Appliance class'!$E42*'RES S curve-disconnect'!AI$18","v":1800.9951650811686},{"$f":"'Res-Appliance class'!$B42*'RES S curve-disconnect'!AJ$3+'Res-Appliance class'!$C42*'RES S curve-disconnect'!AJ$8+'Res-Appliance class'!$D42*'RES S curve-disconnect'!AJ$13+'Res-Appliance class'!$E42*'RES S curve-disconnect'!AJ$18","v":1984.7619119300898},{"$f":"'Res-Appliance class'!$B42*'RES S curve-disconnect'!AK$3+'Res-Appliance class'!$C42*'RES S curve-disconnect'!AK$8+'Res-Appliance class'!$D42*'RES S curve-disconnect'!AK$13+'Res-Appliance class'!$E42*'RES S curve-disconnect'!AK$18","v":2180.0978213070875},{"$f":"'Res-Appliance class'!$B42*'RES S curve-disconnect'!AL$3+'Res-Appliance class'!$C42*'RES S curve-disconnect'!AL$8+'Res-Appliance class'!$D42*'RES S curve-disconnect'!AL$13+'Res-Appliance class'!$E42*'RES S curve-disconnect'!AL$18","v":1485.6904104998066},{"$f":"'Res-Appliance class'!$B42*'RES S curve-disconnect'!AM$3+'Res-Appliance class'!$C42*'RES S curve-disconnect'!AM$8+'Res-Appliance class'!$D42*'RES S curve-disconnect'!AM$13+'Res-Appliance class'!$E42*'RES S curve-disconnect'!AM$18","v":1404.9139174351662},{"$f":"'Res-Appliance class'!$B42*'RES S curve-disconnect'!AN$3+'Res-Appliance class'!$C42*'RES S curve-disconnect'!AN$8+'Res-Appliance class'!$D42*'RES S curve-disconnect'!AN$13+'Res-Appliance class'!$E42*'RES S curve-disconnect'!AN$18","v":1595.0154990862543},{"$f":"'Res-Appliance class'!$B42*'RES S curve-disconnect'!AO$3+'Res-Appliance class'!$C42*'RES S curve-disconnect'!AO$8+'Res-Appliance class'!$D42*'RES S curve-disconnect'!AO$13+'Res-Appliance class'!$E42*'RES S curve-disconnect'!AO$18","v":1822.6459177901818},{"$f":"'Res-Appliance class'!$B42*'RES S curve-disconnect'!AP$3+'Res-Appliance class'!$C42*'RES S curve-disconnect'!AP$8+'Res-Appliance class'!$D42*'RES S curve-disconnect'!AP$13+'Res-Appliance class'!$E42*'RES S curve-disconnect'!AP$18","v":2030.0452227496908},{"$f":"'Res-Appliance class'!$B42*'RES S curve-disconnect'!AQ$3+'Res-Appliance class'!$C42*'RES S curve-disconnect'!AQ$8+'Res-Appliance class'!$D42*'RES S curve-disconnect'!AQ$13+'Res-Appliance class'!$E42*'RES S curve-disconnect'!AQ$18","v":2256.2745795084707},{"$f":"'Res-Appliance class'!$B42*'RES S curve-disconnect'!AR$3+'Res-Appliance class'!$C42*'RES S curve-disconnect'!AR$8+'Res-Appliance class'!$D42*'RES S curve-disconnect'!AR$13+'Res-Appliance class'!$E42*'RES S curve-disconnect'!AR$18","v":2502.9699311188783},{"$f":"'Res-Appliance class'!$B42*'RES S curve-disconnect'!AS$3+'Res-Appliance class'!$C42*'RES S curve-disconnect'!AS$8+'Res-Appliance class'!$D42*'RES S curve-disconnect'!AS$13+'Res-Appliance class'!$E42*'RES S curve-disconnect'!AS$18","v":2779.3614350543667},{"$f":"'Res-Appliance class'!$B42*'RES S curve-disconnect'!AT$3+'Res-Appliance class'!$C42*'RES S curve-disconnect'!AT$8+'Res-Appliance class'!$D42*'RES S curve-disconnect'!AT$13+'Res-Appliance class'!$E42*'RES S curve-disconnect'!AT$18","v":3086.5635844375515},{"$f":"'Res-Appliance class'!$B42*'RES S curve-disconnect'!AU$3+'Res-Appliance class'!$C42*'RES S curve-disconnect'!AU$8+'Res-Appliance class'!$D42*'RES S curve-disconnect'!AU$13+'Res-Appliance class'!$E42*'RES S curve-disconnect'!AU$18","v":3444.3515156400117},{"$f":"'Res-Appliance class'!$B42*'RES S curve-disconnect'!AV$3+'Res-Appliance class'!$C42*'RES S curve-disconnect'!AV$8+'Res-Appliance class'!$D42*'RES S curve-disconnect'!AV$13+'Res-Appliance class'!$E42*'RES S curve-disconnect'!AV$18","v":3850.0428887775856},{"$f":"'Res-Appliance class'!$B42*'RES S curve-disconnect'!AW$3+'Res-Appliance class'!$C42*'RES S curve-disconnect'!AW$8+'Res-Appliance class'!$D42*'RES S curve-disconnect'!AW$13+'Res-Appliance class'!$E42*'RES S curve-disconnect'!AW$18","v":4315.2100194210834},{"$f":"'Res-Appliance class'!$B42*'RES S curve-disconnect'!AX$3+'Res-Appliance class'!$C42*'RES S curve-disconnect'!AX$8+'Res-Appliance class'!$D42*'RES S curve-disconnect'!AX$13+'Res-Appliance class'!$E42*'RES S curve-disconnect'!AX$18","v":4842.4173507843525},{"$f":"'Res-Appliance class'!$B42*'RES S curve-disconnect'!AY$3+'Res-Appliance class'!$C42*'RES S curve-disconnect'!AY$8+'Res-Appliance class'!$D42*'RES S curve-disconnect'!AY$13+'Res-Appliance class'!$E42*'RES S curve-disconnect'!AY$18","v":5451.9293177205027},{"$f":"'Res-Appliance class'!$B42*'RES S curve-disconnect'!AZ$3+'Res-Appliance class'!$C42*'RES S curve-disconnect'!AZ$8+'Res-Appliance class'!$D42*'RES S curve-disconnect'!AZ$13+'Res-Appliance class'!$E42*'RES S curve-disconnect'!AZ$18","v":6144.8284314993343},{"$f":"'Res-Appliance class'!$B42*'RES S curve-disconnect'!BA$3+'Res-Appliance class'!$C42*'RES S curve-disconnect'!BA$8+'Res-Appliance class'!$D42*'RES S curve-disconnect'!BA$13+'Res-Appliance class'!$E42*'RES S curve-disconnect'!BA$18","v":6944.6262612885239},{"$f":"'Res-Appliance class'!$B42*'RES S curve-disconnect'!BB$3+'Res-Appliance class'!$C42*'RES S curve-disconnect'!BB$8+'Res-Appliance class'!$D42*'RES S curve-disconnect'!BB$13+'Res-Appliance class'!$E42*'RES S curve-disconnect'!BB$18","v":7874.3641510095022},{"$f":"'Res-Appliance class'!$B42*'RES S curve-disconnect'!BC$3+'Res-Appliance class'!$C42*'RES S curve-disconnect'!BC$8+'Res-Appliance class'!$D42*'RES S curve-disconnect'!BC$13+'Res-Appliance class'!$E42*'RES S curve-disconnect'!BC$18","v":8982.2464169923624},{"$f":"'Res-Appliance class'!$B42*'RES S curve-disconnect'!BD$3+'Res-Appliance class'!$C42*'RES S curve-disconnect'!BD$8+'Res-Appliance class'!$D42*'RES S curve-disconnect'!BD$13+'Res-Appliance class'!$E42*'RES S curve-disconnect'!BD$18","v":10038.93395843102},{"$f":"'Res-Appliance class'!$B42*'RES S curve-disconnect'!BE$3+'Res-Appliance class'!$C42*'RES S curve-disconnect'!BE$8+'Res-Appliance class'!$D42*'RES S curve-disconnect'!BE$13+'Res-Appliance class'!$E42*'RES S curve-disconnect'!BE$18","v":11000.715410526969},{"$f":"'Res-Appliance class'!$B42*'RES S curve-disconnect'!BF$3+'Res-Appliance class'!$C42*'RES S curve-disconnect'!BF$8+'Res-Appliance class'!$D42*'RES S curve-disconnect'!BF$13+'Res-Appliance class'!$E42*'RES S curve-disconnect'!BF$18","v":11985.994226770708},{"$f":"'Res-Appliance class'!$B42*'RES S curve-disconnect'!BG$3+'Res-Appliance class'!$C42*'RES S curve-disconnect'!BG$8+'Res-Appliance class'!$D42*'RES S curve-disconnect'!BG$13+'Res-Appliance class'!$E42*'RES S curve-disconnect'!BG$18","v":13105.665222236914},{"$f":"'Res-Appliance class'!$B42*'RES S curve-disconnect'!BH$3+'Res-Appliance class'!$C42*'RES S curve-disconnect'!BH$8+'Res-Appliance class'!$D42*'RES S curve-disconnect'!BH$13+'Res-Appliance class'!$E42*'RES S curve-disconnect'!BH$18","v":14432.062311429994},{"$f":"'Res-Appliance class'!$B42*'RES S curve-disconnect'!BI$3+'Res-Appliance class'!$C42*'RES S curve-disconnect'!BI$8+'Res-Appliance class'!$D42*'RES S curve-disconnect'!BI$13+'Res-Appliance class'!$E42*'RES S curve-disconnect'!BI$18","v":16356.856535239711},{"$f":"'Res-Appliance class'!$B42*'RES S curve-disconnect'!BJ$3+'Res-Appliance class'!$C42*'RES S curve-disconnect'!BJ$8+'Res-Appliance class'!$D42*'RES S curve-disconnect'!BJ$13+'Res-Appliance class'!$E42*'RES S curve-disconnect'!BJ$18","v":19161.886921208017},{"$f":"'Res-Appliance class'!$B42*'RES S curve-disconnect'!BK$3+'Res-Appliance class'!$C42*'RES S curve-disconnect'!BK$8+'Res-Appliance class'!$D42*'RES S curve-disconnect'!BK$13+'Res-Appliance class'!$E42*'RES S curve-disconnect'!BK$18","v":23280.997673602811},{"$f":"'Res-Appliance class'!$B42*'RES S curve-disconnect'!BL$3+'Res-Appliance class'!$C42*'RES S curve-disconnect'!BL$8+'Res-Appliance class'!$D42*'RES S curve-disconnect'!BL$13+'Res-Appliance class'!$E42*'RES S curve-disconnect'!BL$18","v":-1038.1903747154915},{"$f":"'Res-Appliance class'!$B42*'RES S curve-disconnect'!BM$3+'Res-Appliance class'!$C42*'RES S curve-disconnect'!BM$8+'Res-Appliance class'!$D42*'RES S curve-disconnect'!BM$13+'Res-Appliance class'!$E42*'RES S curve-disconnect'!BM$18","v":-1032.8124707600136},{"$f":"'Res-Appliance class'!$B42*'RES S curve-disconnect'!BN$3+'Res-Appliance class'!$C42*'RES S curve-disconnect'!BN$8+'Res-Appliance class'!$D42*'RES S curve-disconnect'!BN$13+'Res-Appliance class'!$E42*'RES S curve-disconnect'!BN$18","v":-1031.4657519327525},{"$f":"'Res-Appliance class'!$B42*'RES S curve-disconnect'!BO$3+'Res-Appliance class'!$C42*'RES S curve-disconnect'!BO$8+'Res-Appliance class'!$D42*'RES S curve-disconnect'!BO$13+'Res-Appliance class'!$E42*'RES S curve-disconnect'!BO$18","v":-1022.0835391861665},{"$f":"'Res-Appliance class'!$B42*'RES S curve-disconnect'!BP$3+'Res-Appliance class'!$C42*'RES S curve-disconnect'!BP$8+'Res-Appliance class'!$D42*'RES S curve-disconnect'!BP$13+'Res-Appliance class'!$E42*'RES S curve-disconnect'!BP$18","v":-1016.7324013151909},{"$f":"'Res-Appliance class'!$B42*'RES S curve-disconnect'!BQ$3+'Res-Appliance class'!$C42*'RES S curve-disconnect'!BQ$8+'Res-Appliance class'!$D42*'RES S curve-disconnect'!BQ$13+'Res-Appliance class'!$E42*'RES S curve-disconnect'!BQ$18","v":-1011.390075797028},{"$f":"'Res-Appliance class'!$B42*'RES S curve-disconnect'!BR$3+'Res-Appliance class'!$C42*'RES S curve-disconnect'!BR$8+'Res-Appliance class'!$D42*'RES S curve-disconnect'!BR$13+'Res-Appliance class'!$E42*'RES S curve-disconnect'!BR$18","v":-1010.0787162837534},{"$f":"'Res-Appliance class'!$B42*'RES S curve-disconnect'!BS$3+'Res-Appliance class'!$C42*'RES S curve-disconnect'!BS$8+'Res-Appliance class'!$D42*'RES S curve-disconnect'!BS$13+'Res-Appliance class'!$E42*'RES S curve-disconnect'!BS$18","v":-1000.7316451053377},{"$f":"'Res-Appliance class'!$B42*'RES S curve-disconnect'!BT$3+'Res-Appliance class'!$C42*'RES S curve-disconnect'!BT$8+'Res-Appliance class'!$D42*'RES S curve-disconnect'!BT$13+'Res-Appliance class'!$E42*'RES S curve-disconnect'!BT$18","v":-995.41543242548391},{"$f":"'Res-Appliance class'!$B42*'RES S curve-disconnect'!BU$3+'Res-Appliance class'!$C42*'RES S curve-disconnect'!BU$8+'Res-Appliance class'!$D42*'RES S curve-disconnect'!BU$13+'Res-Appliance class'!$E42*'RES S curve-disconnect'!BU$18","v":-990.10781708147078},{"$f":"'Res-Appliance class'!$B42*'RES S curve-disconnect'!BV$3+'Res-Appliance class'!$C42*'RES S curve-disconnect'!BV$8+'Res-Appliance class'!$D42*'RES S curve-disconnect'!BV$13+'Res-Appliance class'!$E42*'RES S curve-disconnect'!BV$18","v":-988.83095407682265},{"$f":"'Res-Appliance class'!$B42*'RES S curve-disconnect'!BW$3+'Res-Appliance class'!$C42*'RES S curve-disconnect'!BW$8+'Res-Appliance class'!$D42*'RES S curve-disconnect'!BW$13+'Res-Appliance class'!$E42*'RES S curve-disconnect'!BW$18","v":-979.51816708437696},{"$f":"'Res-Appliance class'!$B42*'RES S curve-disconnect'!BX$3+'Res-Appliance class'!$C42*'RES S curve-disconnect'!BX$8+'Res-Appliance class'!$D42*'RES S curve-disconnect'!BX$13+'Res-Appliance class'!$E42*'RES S curve-disconnect'!BX$18","v":-974.23602760218262},{"$f":"'Res-Appliance class'!$B42*'RES S curve-disconnect'!BY$3+'Res-Appliance class'!$C42*'RES S curve-disconnect'!BY$8+'Res-Appliance class'!$D42*'RES S curve-disconnect'!BY$13+'Res-Appliance class'!$E42*'RES S curve-disconnect'!BY$18","v":-968.96227579339609},{"$f":"'Res-Appliance class'!$B42*'RES S curve-disconnect'!BZ$3+'Res-Appliance class'!$C42*'RES S curve-disconnect'!BZ$8+'Res-Appliance class'!$D42*'RES S curve-disconnect'!BZ$13+'Res-Appliance class'!$E42*'RES S curve-disconnect'!BZ$18","v":-967.71906797900351},{"$f":"'Res-Appliance class'!$B42*'RES S curve-disconnect'!CA$3+'Res-Appliance class'!$C42*'RES S curve-disconnect'!CA$8+'Res-Appliance class'!$D42*'RES S curve-disconnect'!CA$13+'Res-Appliance class'!$E42*'RES S curve-disconnect'!CA$18","v":-958.43972914094252},{"$f":"'Res-Appliance class'!$B42*'RES S curve-disconnect'!CB$3+'Res-Appliance class'!$C42*'RES S curve-disconnect'!CB$8+'Res-Appliance class'!$D42*'RES S curve-disconnect'!CB$13+'Res-Appliance class'!$E42*'RES S curve-disconnect'!CB$18","v":-953.19083207805602},{"$f":"'Res-Appliance class'!$B42*'RES S curve-disconnect'!CC$3+'Res-Appliance class'!$C42*'RES S curve-disconnect'!CC$8+'Res-Appliance class'!$D42*'RES S curve-disconnect'!CC$13+'Res-Appliance class'!$E42*'RES S curve-disconnect'!CC$18","v":-947.95011824603876},{"$f":"'Res-Appliance class'!$B42*'RES S curve-disconnect'!CD$3+'Res-Appliance class'!$C42*'RES S curve-disconnect'!CD$8+'Res-Appliance class'!$D42*'RES S curve-disconnect'!CD$13+'Res-Appliance class'!$E42*'RES S curve-disconnect'!CD$18","v":-1024.0964301861827}]
["South Gippsland (S)",null,{"$f":"'Res-Appliance class'!$B43*'RES S curve-disconnect'!C$3+'Res-Appliance class'!$C43*'RES S curve-disconnect'!C$8+'Res-Appliance class'!$D43*'RES S curve-disconnect'!C$13+'Res-Appliance class'!$E43*'RES S curve-disconnect'!C$18","v":-3916.4492585048906},{"$f":"'Res-Appliance class'!$B43*'RES S curve-disconnect'!D$3+'Res-Appliance class'!$C43*'RES S curve-disconnect'!D$8+'Res-Appliance class'!$D43*'RES S curve-disconnect'!D$13+'Res-Appliance class'!$E43*'RES S curve-disconnect'!D$18","v":-4431.565164960085},{"$f":"'Res-Appliance class'!$B43*'RES S curve-disconnect'!E$3+'Res-Appliance class'!$C43*'RES S curve-disconnect'!E$8+'Res-Appliance class'!$D43*'RES S curve-disconnect'!E$13+'Res-Appliance class'!$E43*'RES S curve-disconnect'!E$18","v":-4006.3929138788767},{"$f":"'Res-Appliance class'!$B43*'RES S curve-disconnect'!F$3+'Res-Appliance class'!$C43*'RES S curve-disconnect'!F$8+'Res-Appliance class'!$D43*'RES S curve-disconnect'!F$13+'Res-Appliance class'!$E43*'RES S curve-disconnect'!F$18","v":-3858.9385236668741},{"$f":"'Res-Appliance class'!$B43*'RES S curve-disconnect'!G$3+'Res-Appliance class'!$C43*'RES S curve-disconnect'!G$8+'Res-Appliance class'!$D43*'RES S curve-disconnect'!G$13+'Res-Appliance class'!$E43*'RES S curve-disconnect'!G$18","v":-4766.9305487527436},{"$f":"'Res-Appliance class'!$B43*'RES S curve-disconnect'!H$3+'Res-Appliance class'!$C43*'RES S curve-disconnect'!H$8+'Res-Appliance class'!$D43*'RES S curve-disconnect'!H$13+'Res-Appliance class'!$E43*'RES S curve-disconnect'!H$18","v":-4813.4675378694947},{"$f":"'Res-Appliance class'!$B43*'RES S curve-disconnect'!I$3+'Res-Appliance class'!$C43*'RES S curve-disconnect'!I$8+'Res-Appliance class'!$D43*'RES S curve-disconnect'!I$13+'Res-Appliance class'!$E43*'RES S curve-disconnect'!I$18","v":-4391.747966574515},{"$f":"'Res-Appliance class'!$B43*'RES S curve-disconnect'!J$3+'Res-Appliance class'!$C43*'RES S curve-disconnect'!J$8+'Res-Appliance class'!$D43*'RES S curve-disconnect'!J$13+'Res-Appliance class'!$E43*'RES S curve-disconnect'!J$18","v":-4719.7856489170381},{"$f":"'Res-Appliance class'!$B43*'RES S curve-disconnect'!K$3+'Res-Appliance class'!$C43*'RES S curve-disconnect'!K$8+'Res-Appliance class'!$D43*'RES S curve-disconnect'!K$13+'Res-Appliance class'!$E43*'RES S curve-disconnect'!K$18","v":-3956.3074063971389},{"$f":"'Res-Appliance class'!$B43*'RES S curve-disconnect'!L$3+'Res-Appliance class'!$C43*'RES S curve-disconnect'!L$8+'Res-Appliance class'!$D43*'RES S curve-disconnect'!L$13+'Res-Appliance class'!$E43*'RES S curve-disconnect'!L$18","v":-4312.7451733063099},{"$f":"'Res-Appliance class'!$B43*'RES S curve-disconnect'!M$3+'Res-Appliance class'!$C43*'RES S curve-disconnect'!M$8+'Res-Appliance class'!$D43*'RES S curve-disconnect'!M$13+'Res-Appliance class'!$E43*'RES S curve-disconnect'!M$18","v":-4920.9479940364581},{"$f":"'Res-Appliance class'!$B43*'RES S curve-disconnect'!N$3+'Res-Appliance class'!$C43*'RES S curve-disconnect'!N$8+'Res-Appliance class'!$D43*'RES S curve-disconnect'!N$13+'Res-Appliance class'!$E43*'RES S curve-disconnect'!N$18","v":-4983.6113932223816},{"$f":"'Res-Appliance class'!$B43*'RES S curve-disconnect'!O$3+'Res-Appliance class'!$C43*'RES S curve-disconnect'!O$8+'Res-Appliance class'!$D43*'RES S curve-disconnect'!O$13+'Res-Appliance class'!$E43*'RES S curve-disconnect'!O$18","v":-4436.4618774343344},{"$f":"'Res-Appliance class'!$B43*'RES S curve-disconnect'!P$3+'Res-Appliance class'!$C43*'RES S curve-disconnect'!P$8+'Res-Appliance class'!$D43*'RES S curve-disconnect'!P$13+'Res-Appliance class'!$E43*'RES S curve-disconnect'!P$18","v":-4005.5207961026936},{"$f":"'Res-Appliance class'!$B43*'RES S curve-disconnect'!Q$3+'Res-Appliance class'!$C43*'RES S curve-disconnect'!Q$8+'Res-Appliance class'!$D43*'RES S curve-disconnect'!Q$13+'Res-Appliance class'!$E43*'RES S curve-disconnect'!Q$18","v":-3351.8613637664857},{"$f":"'Res-Appliance class'!$B43*'RES S curve-disconnect'!R$3+'Res-Appliance class'!$C43*'RES S curve-disconnect'!R$8+'Res-Appliance class'!$D43*'RES S curve-disconnect'!R$13+'Res-Appliance class'!$E43*'RES S curve-disconnect'!R$18","v":-2984.0086468742429},{"$f":"'Res-Appliance class'!$B43*'RES S curve-disconnect'!S$3+'Res-Appliance class'!$C43*'RES S curve-disconnect'!S$8+'Res-Appliance class'!$D43*'RES S curve-disconnect'!S$13+'Res-Appliance class'!$E43*'RES S curve-disconnect'!S$18","v":-2390.7181712102747},{"$f":"'Res-Appliance class'!$B43*'RES S curve-disconnect'!T$3+'Res-Appliance class'!$C43*'RES S curve-disconnect'!T$8+'Res-Appliance class'!$D43*'RES S curve-disconnect'!T$13+'Res-Appliance class'!$E43*'RES S curve-disconnect'!T$18","v":-2081.5500371837206},{"$f":"'Res-Appliance class'!$B43*'RES S curve-disconnect'!U$3+'Res-Appliance class'!$C43*'RES S curve-disconnect'!U$8+'Res-Appliance class'!$D43*'RES S curve-disconnect'!U$13+'Res-Appliance class'!$E43*'RES S curve-disconnect'!U$18","v":-1719.7184010122462},{"$f":"'Res-Appliance class'!$B43*'RES S curve-disconnect'!V$3+'Res-Appliance class'!$C43*'RES S curve-disconnect'!V$8+'Res-Appliance class'!$D43*'RES S curve-disconnect'!V$13+'Res-Appliance class'!$E43*'RES S curve-disconnect'!V$18","v":-1471.1716369871815},{"$f":"'Res-Appliance class'!$B43*'RES S curve-disconnect'!W$3+'Res-Appliance class'!$C43*'RES S curve-disconnect'!W$8+'Res-Appliance class'!$D43*'RES S curve-disconnect'!W$13+'Res-Appliance class'!$E43*'RES S curve-disconnect'!W$18","v":-1278.9634562480019},{"$f":"'Res-Appliance class'!$B43*'RES S curve-disconnect'!X$3+'Res-Appliance class'!$C43*'RES S curve-disconnect'!X$8+'Res-Appliance class'!$D43*'RES S curve-disconnect'!X$13+'Res-Appliance class'!$E43*'RES S curve-disconnect'!X$18","v":-843.16022887036854},{"$f":"'Res-Appliance class'!$B43*'RES S curve-disconnect'!Y$3+'Res-Appliance class'!$C43*'RES S curve-disconnect'!Y$8+'Res-Appliance class'!$D43*'RES S curve-disconnect'!Y$13+'Res-Appliance class'!$E43*'RES S curve-disconnect'!Y$18","v":-400.91272891733735},{"$f":"'Res-Appliance class'!$B43*'RES S curve-disconnect'!Z$3+'Res-Appliance class'!$C43*'RES S curve-disconnect'!Z$8+'Res-Appliance class'!$D43*'RES S curve-disconnect'!Z$13+'Res-Appliance class'!$E43*'RES S curve-disconnect'!Z$18","v":-102.26180391489197},{"$f":"'Res-Appliance class'!$B43*'RES S curve-disconnect'!AA$3+'Res-Appliance class'!$C43*'RES S curve-disconnect'!AA$8+'Res-Appliance class'!$D43*'RES S curve-disconnect'!AA$13+'Res-Appliance class'!$E43*'RES S curve-disconnect'!AA$18","v":197.84563273753986},{"$f":"'Res-Appliance class'!$B43*'RES S curve-disconnect'!AB$3+'Res-Appliance class'!$C43*'RES S curve-disconnect'!AB$8+'Res-Appliance class'!$D43*'RES S curve-disconnect'!AB$13+'Res-Appliance class'!$E43*'RES S curve-disconnect'!AB$18","v":436.65418895210308},{"$f":"'Res-Appliance class'!$B43*'RES S curve-disconnect'!AC$3+'Res-Appliance class'!$C43*'RES S curve-disconnect'!AC$8+'Res-Appliance class'!$D43*'RES S curve-disconnect'!AC$13+'Res-Appliance class'!$E43*'RES S curve-disconnect'!AC$18","v":667.46603152467833},{"$f":"'Res-Appliance class'!$B43*'RES S curve-disconnect'!AD$3+'Res-Appliance class'!$C43*'RES S curve-disconnect'!AD$8+'Res-Appliance class'!$D43*'RES S curve-disconnect'!AD$13+'Res-Appliance class'!$E43*'RES S curve-disconnect'!AD$18","v":878.84255167378933},{"$f":"'Res-Appliance class'!$B43*'RES S curve-disconnect'!AE$3+'Res-Appliance class'!$C43*'RES S curve-disconnect'!AE$8+'Res-Appliance class'!$D43*'RES S curve-disconnect'!AE$13+'Res-Appliance class'!$E43*'RES S curve-disconnect'!AE$18","v":1103.2387736967178},{"$f":"'Res-Appliance class'!$B43*'RES S curve-disconnect'!AF$3+'Res-Appliance class'!$C43*'RES S curve-disconnect'!AF$8+'Res-Appliance class'!$D43*'RES S curve-disconnect'!AF$13+'Res-Appliance class'!$E43*'RES S curve-disconnect'!AF$18","v":1392.57836934648},{"$f":"'Res-Appliance class'!$B43*'RES S curve-disconnect'!AG$3+'Res-Appliance class'!$C43*'RES S curve-disconnect'!AG$8+'Res-Appliance class'!$D43*'RES S curve-disconnect'!AG$13+'Res-Appliance class'!$E43*'RES S curve-disconnect'!AG$18","v":1595.9732999133516},{"$f":"'Res-Appliance class'!$B43*'RES S curve-disconnect'!AH$3+'Res-Appliance class'!$C43*'RES S curve-disconnect'!AH$8+'Res-Appliance class'!$D43*'RES S curve-disconnect'!AH$13+'Res-Appliance class'!$E43*'RES S curve-disconnect'!AH$18","v":1878.2540907131079},{"$f":"'Res-Appliance class'!$B43*'RES S curve-disconnect'!AI$3+'Res-Appliance class'!$C43*'RES S curve-disconnect'!AI$8+'Res-Appliance class'!$D43*'RES S curve-disconnect'!AI$13+'Res-Appliance class'!$E43*'RES S curve-disconnect'!AI$18","v":2135.5598673676654},{"$f":"'Res-Appliance class'!$B43*'RES S curve-disconnect'!AJ$3+'Res-Appliance class'!$C43*'RES S curve-disconnect'!AJ$8+'Res-Appliance class'!$D43*'RES S curve-disconnect'!AJ$13+'Res-Appliance class'!$E43*'RES S curve-disconnect'!AJ$18","v":2367.0403182435075},{"$f":"'Res-Appliance class'!$B43*'RES S curve-disconnect'!AK$3+'Res-Appliance class'!$C43*'RES S curve-disconnect'!AK$8+'Res-Appliance class'!$D43*'RES S curve-disconnect'!AK$13+'Res-Appliance class'!$E43*'RES S curve-disconnect'!AK$18","v":2612.9117184870438},{"$f":"'Res-Appliance class'!$B43*'RES S curve-disconnect'!AL$3+'Res-Appliance class'!$C43*'RES S curve-disconnect'!AL$8+'Res-Appliance class'!$D43*'RES S curve-disconnect'!AL$13+'Res-Appliance class'!$E43*'RES S curve-disconnect'!AL$18","v":1752.5246803612522},{"$f":"'Res-Appliance class'!$B43*'RES S curve-disconnect'!AM$3+'Res-Appliance class'!$C43*'RES S curve-disconnect'!AM$8+'Res-Appliance class'!$D43*'RES S curve-disconnect'!AM$13+'Res-Appliance class'!$E43*'RES S curve-disconnect'!AM$18","v":1645.2566871857221},{"$f":"'Res-Appliance class'!$B43*'RES S curve-disconnect'!AN$3+'Res-Appliance class'!$C43*'RES S curve-disconnect'!AN$8+'Res-Appliance class'!$D43*'RES S curve-disconnect'!AN$13+'Res-Appliance class'!$E43*'RES S curve-disconnect'!AN$18","v":1880.7095699857343},{"$f":"'Res-Appliance class'!$B43*'RES S curve-disconnect'!AO$3+'Res-Appliance class'!$C43*'RES S curve-disconnect'!AO$8+'Res-Appliance class'!$D43*'RES S curve-disconnect'!AO$13+'Res-Appliance class'!$E43*'RES S curve-disconnect'!AO$18","v":2166.1449792121666},{"$f":"'Res-Appliance class'!$B43*'RES S curve-disconnect'!AP$3+'Res-Appliance class'!$C43*'RES S curve-disconnect'!AP$8+'Res-Appliance class'!$D43*'RES S curve-disconnect'!AP$13+'Res-Appliance class'!$E43*'RES S curve-disconnect'!AP$18","v":2428.34875337428},{"$f":"'Res-Appliance class'!$B43*'RES S curve-disconnect'!AQ$3+'Res-Appliance class'!$C43*'RES S curve-disconnect'!AQ$8+'Res-Appliance class'!$D43*'RES S curve-disconnect'!AQ$13+'Res-Appliance class'!$E43*'RES S curve-disconnect'!AQ$18","v":2712.1561582690015},{"$f":"'Res-Appliance class'!$B43*'RES S curve-disconnect'!AR$3+'Res-Appliance class'!$C43*'RES S curve-disconnect'!AR$8+'Res-Appliance class'!$D43*'RES S curve-disconnect'!AR$13+'Res-Appliance class'!$E43*'RES S curve-disconnect'!AR$18","v":3022.8910654710812},{"$f":"'Res-Appliance class'!$B43*'RES S curve-disconnect'!AS$3+'Res-Appliance class'!$C43*'RES S curve-disconnect'!AS$8+'Res-Appliance class'!$D43*'RES S curve-disconnect'!AS$13+'Res-Appliance class'!$E43*'RES S curve-disconnect'!AS$18","v":3371.3473982049081},{"$f":"'Res-Appliance class'!$B43*'RES S curve-disconnect'!AT$3+'Res-Appliance class'!$C43*'RES S curve-disconnect'!AT$8+'Res-Appliance class'!$D43*'RES S curve-disconnect'!AT$13+'Res-Appliance class'!$E43*'RES S curve-disconnect'!AT$18","v":3760.1048870683285},{"$f":"'Res-Appliance class'!$B43*'RES S curve-disconnect'!AU$3+'Res-Appliance class'!$C43*'RES S curve-disconnect'!AU$8+'Res-Appliance class'!$D43*'RES S curve-disconnect'!AU$13+'Res-Appliance class'!$E43*'RES S curve-disconnect'!AU$18","v":4211.0742149102962},{"$f":"'Res-Appliance class'!$B43*'RES S curve-disconnect'!AV$3+'Res-Appliance class'!$C43*'RES S curve-disconnect'!AV$8+'Res-Appliance class'!$D43*'RES S curve-disconnect'!AV$13+'Res-Appliance class'!$E43*'RES S curve-disconnect'!AV$18","v":4724.2287507789579},{"$f":"'Res-Appliance class'!$B43*'RES S curve-disconnect'!AW$3+'Res-Appliance class'!$C43*'RES S curve-disconnect'!AW$8+'Res-Appliance class'!$D43*'RES S curve-disconnect'!AW$13+'Res-Appliance class'!$E43*'RES S curve-disconnect'!AW$18","v":5313.4624382833399},{"$f":"'Res-Appliance class'!$B43*'RES S curve-disconnect'!AX$3+'Res-Appliance class'!$C43*'RES S curve-disconnect'!AX$8+'Res-Appliance class'!$D43*'RES S curve-disconnect'!AX$13+'Res-Appliance class'!$E43*'RES S curve-disconnect'!AX$18","v":5983.4980857282935},{"$f":"'Res-Appliance class'!$B43*'RES S curve-disconnect'!AY$3+'Res-Appliance class'!$C43*'RES S curve-disconnect'!AY$8+'Res-Appliance class'!$D43*'RES S curve-disconnect'!AY$13+'Res-Appliance class'!$E43*'RES S curve-disconnect'!AY$18","v":6757.2252745761907},{"$f":"'Res-Appliance class'!$B43*'RES S curve-disconnect'!AZ$3+'Res-Appliance class'!$C43*'RES S curve-disconnect'!AZ$8+'Res-Appliance class'!$D43*'RES S curve-disconnect'!AZ$13+'Res-Appliance class'!$E43*'RES S curve-disconnect'!AZ$18","v":7639.738865967096},{"$f":"'Res-Appliance class'!$B43*'RES S curve-disconnect'!BA$3+'Res-Appliance class'!$C43*'RES S curve-disconnect'!BA$8+'Res-Appliance class'!$D43*'RES S curve-disconnect'!BA$13+'Res-Appliance class'!$E43*'RES S curve-disconnect'!BA$18","v":8660.4186904532835},{"$f":"'Res-Appliance class'!$B43*'RES S curve-disconnect'!BB$3+'Res-Appliance class'!$C43*'RES S curve-disconnect'!BB$8+'Res-Appliance class'!$D43*'RES S curve-disconnect'!BB$13+'Res-Appliance class'!$E43*'RES S curve-disconnect'!BB$18","v":9850.5110477343642},{"$f":"'Res-Appliance class'!$B43*'RES S curve-disconnect'!BC$3+'Res-Appliance class'!$C43*'RES S curve-disconnect'!BC$8+'Res-Appliance class'!$D43*'RES S curve-disconnect'!BC$13+'Res-Appliance class'!$E43*'RES S curve-disconnect'!BC$18","v":11269.271210987354},{"$f":"'Res-Appliance class'!$B43*'RES S curve-disconnect'!BD$3+'Res-Appliance class'!$C43*'RES S curve-disconnect'!BD$8+'Res-Appliance class'!$D43*'RES S curve-disconnect'!BD$13+'Res-Appliance class'!$E43*'RES S curve-disconnect'!BD$18","v":12631.821897161637},{"$f":"'Res-Appliance class'!$B43*'RES S curve-disconnect'!BE$3+'Res-Appliance class'!$C43*'RES S curve-disconnect'!BE$8+'Res-Appliance class'!$D43*'RES S curve-disconnect'!BE$13+'Res-Appliance class'!$E43*'RES S curve-disconnect'!BE$18","v":13875.162580144148},{"$f":"'Res-Appliance class'!$B43*'RES S curve-disconnect'!BF$3+'Res-Appliance class'!$C43*'RES S curve-disconnect'!BF$8+'Res-Appliance class'!$D43*'RES S curve-disconnect'!BF$13+'Res-Appliance class'!$E43*'RES S curve-disconnect'!BF$18","v":15147.937103418244},{"$f":"'Res-Appliance class'!$B43*'RES S curve-disconnect'!BG$3+'Res-Appliance class'!$C43*'RES S curve-disconnect'!BG$8+'Res-Appliance class'!$D43*'RES S curve-disconnect'!BG$13+'Res-Appliance class'!$E43*'RES S curve-disconnect'!BG$18","v":16590.730745214038},{"$f":"'Res-Appliance class'!$B43*'RES S curve-disconnect'!BH$3+'Res-Appliance class'!$C43*'RES S curve-disconnect'!BH$8+'Res-Appliance class'!$D43*'RES S curve-disconnect'!BH$13+'Res-Appliance class'!$E43*'RES S curve-disconnect'!BH$18","v":18302.020967283926},{"$f":"'Res-Appliance class'!$B43*'RES S curve-disconnect'!BI$3+'Res-Appliance class'!$C43*'RES S curve-disconnect'!BI$8+'Res-Appliance class'!$D43*'RES S curve-disconnect'!BI$13+'Res-Appliance class'!$E43*'RES S curve-disconnect'!BI$18","v":20783.091967995169},{"$f":"'Res-Appliance class'!$B43*'RES S curve-disconnect'!BJ$3+'Res-Appliance class'!$C43*'RES S curve-disconnect'!BJ$8+'Res-Appliance class'!$D43*'RES S curve-disconnect'!BJ$13+'Res-Appliance class'!$E43*'RES S curve-disconnect'!BJ$18","v":24409.673785145656},{"$f":"'Res-Appliance class'!$B43*'RES S curve-disconnect'!BK$3+'Res-Appliance class'!$C43*'RES S curve-disconnect'!BK$8+'Res-Appliance class'!$D43*'RES S curve-disconnect'!BK$13+'Res-Appliance class'!$E43*'RES S curve-disconnect'!BK$18","v":29751.347270189395},{"$f":"'Res-Appliance class'!$B43*'RES S curve-disconnect'!BL$3+'Res-Appliance class'!$C43*'RES S curve-disconnect'!BL$8+'Res-Appliance class'!$D43*'RES S curve-disconnect'!BL$13+'Res-Appliance class'!$E43*'RES S curve-disconnect'!BL$18","v":-1385.0149400485811},{"$f":"'Res-Appliance class'!$B43*'RES S curve-disconnect'!BM$3+'Res-Appliance class'!$C43*'RES S curve-disconnect'!BM$8+'Res-Appliance class'!$D43*'RES S curve-disconnect'!BM$13+'Res-Appliance class'!$E43*'RES S curve-disconnect'!BM$18","v":-1378.1060261791217},{"$f":"'Res-Appliance class'!$B43*'RES S curve-disconnect'!BN$3+'Res-Appliance class'!$C43*'RES S curve-disconnect'!BN$8+'Res-Appliance class'!$D43*'RES S curve-disconnect'!BN$13+'Res-Appliance class'!$E43*'RES S curve-disconnect'!BN$18","v":-1375.2300865043776},{"$f":"'Res-Appliance class'!$B43*'RES S curve-disconnect'!BO$3+'Res-Appliance class'!$C43*'RES S curve-disconnect'!BO$8+'Res-Appliance class'!$D43*'RES S curve-disconnect'!BO$13+'Res-Appliance class'!$E43*'RES S curve-disconnect'!BO$18","v":-1364.3204314100049},{"$f":"'Res-Appliance class'!$B43*'RES S curve-disconnect'!BP$3+'Res-Appliance class'!$C43*'RES S curve-disconnect'!BP$8+'Res-Appliance class'!$D43*'RES S curve-disconnect'!BP$13+'Res-Appliance class'!$E43*'RES S curve-disconnect'!BP$18","v":-1357.4436191892032},{"$f":"'Res-Appliance class'!$B43*'RES S curve-disconnect'!BQ$3+'Res-Appliance class'!$C43*'RES S curve-disconnect'!BQ$8+'Res-Appliance class'!$D43*'RES S curve-disconnect'!BQ$13+'Res-Appliance class'!$E43*'RES S curve-disconnect'!BQ$18","v":-1350.5773768820968},{"$f":"'Res-Appliance class'!$B43*'RES S curve-disconnect'!BR$3+'Res-Appliance class'!$C43*'RES S curve-disconnect'!BR$8+'Res-Appliance class'!$D43*'RES S curve-disconnect'!BR$13+'Res-Appliance class'!$E43*'RES S curve-disconnect'!BR$18","v":-1347.7438477679336},{"$f":"'Res-Appliance class'!$B43*'RES S curve-disconnect'!BS$3+'Res-Appliance class'!$C43*'RES S curve-disconnect'!BS$8+'Res-Appliance class'!$D43*'RES S curve-disconnect'!BS$13+'Res-Appliance class'!$E43*'RES S curve-disconnect'!BS$18","v":-1336.8763438677038},{"$f":"'Res-Appliance class'!$B43*'RES S curve-disconnect'!BT$3+'Res-Appliance class'!$C43*'RES S curve-disconnect'!BT$8+'Res-Appliance class'!$D43*'RES S curve-disconnect'!BT$13+'Res-Appliance class'!$E43*'RES S curve-disconnect'!BT$18","v":-1330.0414250995752},{"$f":"'Res-Appliance class'!$B43*'RES S curve-disconnect'!BU$3+'Res-Appliance class'!$C43*'RES S curve-disconnect'!BU$8+'Res-Appliance class'!$D43*'RES S curve-disconnect'!BU$13+'Res-Appliance class'!$E43*'RES S curve-disconnect'!BU$18","v":-1323.2168201183381},{"$f":"'Res-Appliance class'!$B43*'RES S curve-disconnect'!BV$3+'Res-Appliance class'!$C43*'RES S curve-disconnect'!BV$8+'Res-Appliance class'!$D43*'RES S curve-disconnect'!BV$13+'Res-Appliance class'!$E43*'RES S curve-disconnect'!BV$18","v":-1320.4246738076804},{"$f":"'Res-Appliance class'!$B43*'RES S curve-disconnect'!BW$3+'Res-Appliance class'!$C43*'RES S curve-disconnect'!BW$8+'Res-Appliance class'!$D43*'RES S curve-disconnect'!BW$13+'Res-Appliance class'!$E43*'RES S curve-disconnect'!BW$18","v":-1309.5982997828596},{"$f":"'Res-Appliance class'!$B43*'RES S curve-disconnect'!BX$3+'Res-Appliance class'!$C43*'RES S curve-disconnect'!BX$8+'Res-Appliance class'!$D43*'RES S curve-disconnect'!BX$13+'Res-Appliance class'!$E43*'RES S curve-disconnect'!BX$18","v":-1302.8042595462102},{"$f":"'Res-Appliance class'!$B43*'RES S curve-disconnect'!BY$3+'Res-Appliance class'!$C43*'RES S curve-disconnect'!BY$8+'Res-Appliance class'!$D43*'RES S curve-disconnect'!BY$13+'Res-Appliance class'!$E43*'RES S curve-disconnect'!BY$18","v":-1296.0202833266519},{"$f":"'Res-Appliance class'!$B43*'RES S curve-disconnect'!BZ$3+'Res-Appliance class'!$C43*'RES S curve-disconnect'!BZ$8+'Res-Appliance class'!$D43*'RES S curve-disconnect'!BZ$13+'Res-Appliance class'!$E43*'RES S curve-disconnect'!BZ$18","v":-1293.2685175720262},{"$f":"'Res-Appliance class'!$B43*'RES S curve-disconnect'!CA$3+'Res-Appliance class'!$C43*'RES S curve-disconnect'!CA$8+'Res-Appliance class'!$D43*'RES S curve-disconnect'!CA$13+'Res-Appliance class'!$E43*'RES S curve-disconnect'!CA$18","v":-1282.4822774518314},{"$f":"'Res-Appliance class'!$B43*'RES S curve-disconnect'!CB$3+'Res-Appliance class'!$C43*'RES S curve-disconnect'!CB$8+'Res-Appliance class'!$D43*'RES S curve-disconnect'!CB$13+'Res-Appliance class'!$E43*'RES S curve-disconnect'!CB$18","v":-1275.7281260127979},{"$f":"'Res-Appliance class'!$B43*'RES S curve-disconnect'!CC$3+'Res-Appliance class'!$C43*'RES S curve-disconnect'!CC$8+'Res-Appliance class'!$D43*'RES S curve-disconnect'!CC$13+'Res-Appliance class'!$E43*'RES S curve-disconnect'!CC$18","v":-1268.9837950184565},{"$f":"'Res-Appliance class'!$B43*'RES S curve-disconnect'!CD$3+'Res-Appliance class'!$C43*'RES S curve-disconnect'!CD$8+'Res-Appliance class'!$D43*'RES S curve-disconnect'!CD$13+'Res-Appliance class'!$E43*'RES S curve-disconnect'!CD$18","v":-1369.0146135755172}]
["Stonnington (C)",null,{"$f":"'Res-Appliance class'!$B44*'RES S curve-disconnect'!C$3+'Res-Appliance class'!$C44*'RES S curve-disconnect'!C$8+'Res-Appliance class'!$D44*'RES S curve-disconnect'!C$13+'Res-Appliance class'!$E44*'RES S curve-disconnect'!C$18","v":-3240.9018454784673},{"$f":"'Res-Appliance class'!$B44*'RES S curve-disconnect'!D$3+'Res-Appliance class'!$C44*'RES S curve-disconnect'!D$8+'Res-Appliance class'!$D44*'RES S curve-disconnect'!D$13+'Res-Appliance class'!$E44*'RES S curve-disconnect'!D$18","v":-3707.5459535060008},{"$f":"'Res-Appliance class'!$B44*'RES S curve-disconnect'!E$3+'Res-Appliance class'!$C44*'RES S curve-disconnect'!E$8+'Res-Appliance class'!$D44*'RES S curve-disconnect'!E$13+'Res-Appliance class'!$E44*'RES S curve-disconnect'!E$18","v":-3327.3661200627757},{"$f":"'Res-Appliance class'!$B44*'RES S curve-disconnect'!F$3+'Res-Appliance class'!$C44*'RES S curve-disconnect'!F$8+'Res-Appliance class'!$D44*'RES S curve-disconnect'!F$13+'Res-Appliance class'!$E44*'RES S curve-disconnect'!F$18","v":-3196.7496522788724},{"$f":"'Res-Appliance class'!$B44*'RES S curve-disconnect'!G$3+'Res-Appliance class'!$C44*'RES S curve-disconnect'!G$8+'Res-Appliance class'!$D44*'RES S curve-disconnect'!G$13+'Res-Appliance class'!$E44*'RES S curve-disconnect'!G$18","v":-4069.1957917640952},{"$f":"'Res-Appliance class'!$B44*'RES S curve-disconnect'!H$3+'Res-Appliance class'!$C44*'RES S curve-disconnect'!H$8+'Res-Appliance class'!$D44*'RES S curve-disconnect'!H$13+'Res-Appliance class'!$E44*'RES S curve-disconnect'!H$18","v":-4097.6558317659847},{"$f":"'Res-Appliance class'!$B44*'RES S curve-disconnect'!I$3+'Res-Appliance class'!$C44*'RES S curve-disconnect'!I$8+'Res-Appliance class'!$D44*'RES S curve-disconnect'!I$13+'Res-Appliance class'!$E44*'RES S curve-disconnect'!I$18","v":-3711.5705689809588},{"$f":"'Res-Appliance class'!$B44*'RES S curve-disconnect'!J$3+'Res-Appliance class'!$C44*'RES S curve-disconnect'!J$8+'Res-Appliance class'!$D44*'RES S curve-disconnect'!J$13+'Res-Appliance class'!$E44*'RES S curve-disconnect'!J$18","v":-3983.6400239109157},{"$f":"'Res-Appliance class'!$B44*'RES S curve-disconnect'!K$3+'Res-Appliance class'!$C44*'RES S curve-disconnect'!K$8+'Res-Appliance class'!$D44*'RES S curve-disconnect'!K$13+'Res-Appliance class'!$E44*'RES S curve-disconnect'!K$18","v":-3284.0117431701974},{"$f":"'Res-Appliance class'!$B44*'RES S curve-disconnect'!L$3+'Res-Appliance class'!$C44*'RES S curve-disconnect'!L$8+'Res-Appliance class'!$D44*'RES S curve-disconnect'!L$13+'Res-Appliance class'!$E44*'RES S curve-disconnect'!L$18","v":-3609.2887843637118},{"$f":"'Res-Appliance class'!$B44*'RES S curve-disconnect'!M$3+'Res-Appliance class'!$C44*'RES S curve-disconnect'!M$8+'Res-Appliance class'!$D44*'RES S curve-disconnect'!M$13+'Res-Appliance class'!$E44*'RES S curve-disconnect'!M$18","v":-4171.3644565327304},{"$f":"'Res-Appliance class'!$B44*'RES S curve-disconnect'!N$3+'Res-Appliance class'!$C44*'RES S curve-disconnect'!N$8+'Res-Appliance class'!$D44*'RES S curve-disconnect'!N$13+'Res-Appliance class'!$E44*'RES S curve-disconnect'!N$18","v":-4231.5336236650237},{"$f":"'Res-Appliance class'!$B44*'RES S curve-disconnect'!O$3+'Res-Appliance class'!$C44*'RES S curve-disconnect'!O$8+'Res-Appliance class'!$D44*'RES S curve-disconnect'!O$13+'Res-Appliance class'!$E44*'RES S curve-disconnect'!O$18","v":-3730.2686512032019},{"$f":"'Res-Appliance class'!$B44*'RES S curve-disconnect'!P$3+'Res-Appliance class'!$C44*'RES S curve-disconnect'!P$8+'Res-Appliance class'!$D44*'RES S curve-disconnect'!P$13+'Res-Appliance class'!$E44*'RES S curve-disconnect'!P$18","v":-3335.4710612434064},{"$f":"'Res-Appliance class'!$B44*'RES S curve-disconnect'!Q$3+'Res-Appliance class'!$C44*'RES S curve-disconnect'!Q$8+'Res-Appliance class'!$D44*'RES S curve-disconnect'!Q$13+'Res-Appliance class'!$E44*'RES S curve-disconnect'!Q$18","v":-2735.5985828058219},{"$f":"'Res-Appliance class'!$B44*'RES S curve-disconnect'!R$3+'Res-Appliance class'!$C44*'RES S curve-disconnect'!R$8+'Res-Appliance class'!$D44*'RES S curve-disconnect'!R$13+'Res-Appliance class'!$E44*'RES S curve-disconnect'!R$18","v":-2398.9870939282373},{"$f":"'Res-Appliance class'!$B44*'RES S curve-disconnect'!S$3+'Res-Appliance class'!$C44*'RES S curve-disconnect'!S$8+'Res-Appliance class'!$D44*'RES S curve-disconnect'!S$13+'Res-Appliance class'!$E44*'RES S curve-disconnect'!S$18","v":-1852.2251108096152},{"$f":"'Res-Appliance class'!$B44*'RES S curve-disconnect'!T$3+'Res-Appliance class'!$C44*'RES S curve-disconnect'!T$8+'Res-Appliance class'!$D44*'RES S curve-disconnect'!T$13+'Res-Appliance class'!$E44*'RES S curve-disconnect'!T$18","v":-1573.8380476278041},{"$f":"'Res-Appliance class'!$B44*'RES S curve-disconnect'!U$3+'Res-Appliance class'!$C44*'RES S curve-disconnect'!U$8+'Res-Appliance class'!$D44*'RES S curve-disconnect'!U$13+'Res-Appliance class'!$E44*'RES S curve-disconnect'!U$18","v":-1244.4081139031764},{"$f":"'Res-Appliance class'!$B44*'RES S curve-disconnect'!V$3+'Res-Appliance class'!$C44*'RES S curve-disconnect'!V$8+'Res-Appliance class'!$D44*'RES S curve-disconnect'!V$13+'Res-Appliance class'!$E44*'RES S curve-disconnect'!V$18","v":-1018.740009685714},{"$f":"'Res-Appliance class'!$B44*'RES S curve-disconnect'!W$3+'Res-Appliance class'!$C44*'RES S curve-disconnect'!W$8+'Res-Appliance class'!$D44*'RES S curve-disconnect'!W$13+'Res-Appliance class'!$E44*'RES S curve-disconnect'!W$18","v":-843.61988293758532},{"$f":"'Res-Appliance class'!$B44*'RES S curve-disconnect'!X$3+'Res-Appliance class'!$C44*'RES S curve-disconnect'!X$8+'Res-Appliance class'!$D44*'RES S curve-disconnect'!X$13+'Res-Appliance class'!$E44*'RES S curve-disconnect'!X$18","v":-444.95773369779295},{"$f":"'Res-Appliance class'!$B44*'RES S curve-disconnect'!Y$3+'Res-Appliance class'!$C44*'RES S curve-disconnect'!Y$8+'Res-Appliance class'!$D44*'RES S curve-disconnect'!Y$13+'Res-Appliance class'!$E44*'RES S curve-disconnect'!Y$18","v":-39.929004941410028},{"$f":"'Res-Appliance class'!$B44*'RES S curve-disconnect'!Z$3+'Res-Appliance class'!$C44*'RES S curve-disconnect'!Z$8+'Res-Appliance class'!$D44*'RES S curve-disconnect'!Z$13+'Res-Appliance class'!$E44*'RES S curve-disconnect'!Z$18","v":232.8181002273503},{"$f":"'Res-Appliance class'!$B44*'RES S curve-disconnect'!AA$3+'Res-Appliance class'!$C44*'RES S curve-disconnect'!AA$8+'Res-Appliance class'!$D44*'RES S curve-disconnect'!AA$13+'Res-Appliance class'!$E44*'RES S curve-disconnect'!AA$18","v":507.41872849148399},{"$f":"'Res-Appliance class'!$B44*'RES S curve-disconnect'!AB$3+'Res-Appliance class'!$C44*'RES S curve-disconnect'!AB$8+'Res-Appliance class'!$D44*'RES S curve-disconnect'!AB$13+'Res-Appliance class'!$E44*'RES S curve-disconnect'!AB$18","v":726.76110177245585},{"$f":"'Res-Appliance class'!$B44*'RES S curve-disconnect'!AC$3+'Res-Appliance class'!$C44*'RES S curve-disconnect'!AC$8+'Res-Appliance class'!$D44*'RES S curve-disconnect'!AC$13+'Res-Appliance class'!$E44*'RES S curve-disconnect'!AC$18","v":939.06733317310648},{"$f":"'Res-Appliance class'!$B44*'RES S curve-disconnect'!AD$3+'Res-Appliance class'!$C44*'RES S curve-disconnect'!AD$8+'Res-Appliance class'!$D44*'RES S curve-disconnect'!AD$13+'Res-Appliance class'!$E44*'RES S curve-disconnect'!AD$18","v":1133.38588744855},{"$f":"'Res-Appliance class'!$B44*'RES S curve-disconnect'!AE$3+'Res-Appliance class'!$C44*'RES S curve-disconnect'!AE$8+'Res-Appliance class'!$D44*'RES S curve-disconnect'!AE$13+'Res-Appliance class'!$E44*'RES S curve-disconnect'!AE$18","v":1340.5480368810238},{"$f":"'Res-Appliance class'!$B44*'RES S curve-disconnect'!AF$3+'Res-Appliance class'!$C44*'RES S curve-disconnect'!AF$8+'Res-Appliance class'!$D44*'RES S curve-disconnect'!AF$13+'Res-Appliance class'!$E44*'RES S curve-disconnect'!AF$18","v":1607.2775957353044},{"$f":"'Res-Appliance class'!$B44*'RES S curve-disconnect'!AG$3+'Res-Appliance class'!$C44*'RES S curve-disconnect'!AG$8+'Res-Appliance class'!$D44*'RES S curve-disconnect'!AG$13+'Res-Appliance class'!$E44*'RES S curve-disconnect'!AG$18","v":1796.1525701389846},{"$f":"'Res-Appliance class'!$B44*'RES S curve-disconnect'!AH$3+'Res-Appliance class'!$C44*'RES S curve-disconnect'!AH$8+'Res-Appliance class'!$D44*'RES S curve-disconnect'!AH$13+'Res-Appliance class'!$E44*'RES S curve-disconnect'!AH$18","v":2056.844562015976},{"$f":"'Res-Appliance class'!$B44*'RES S curve-disconnect'!AI$3+'Res-Appliance class'!$C44*'RES S curve-disconnect'!AI$8+'Res-Appliance class'!$D44*'RES S curve-disconnect'!AI$13+'Res-Appliance class'!$E44*'RES S curve-disconnect'!AI$18","v":2295.8443291492622},{"$f":"'Res-Appliance class'!$B44*'RES S curve-disconnect'!AJ$3+'Res-Appliance class'!$C44*'RES S curve-disconnect'!AJ$8+'Res-Appliance class'!$D44*'RES S curve-disconnect'!AJ$13+'Res-Appliance class'!$E44*'RES S curve-disconnect'!AJ$18","v":2510.5573448938753},{"$f":"'Res-Appliance class'!$B44*'RES S curve-disconnect'!AK$3+'Res-Appliance class'!$C44*'RES S curve-disconnect'!AK$8+'Res-Appliance class'!$D44*'RES S curve-disconnect'!AK$13+'Res-Appliance class'!$E44*'RES S curve-disconnect'!AK$18","v":2738.6782997756727},{"$f":"'Res-Appliance class'!$B44*'RES S curve-disconnect'!AL$3+'Res-Appliance class'!$C44*'RES S curve-disconnect'!AL$8+'Res-Appliance class'!$D44*'RES S curve-disconnect'!AL$13+'Res-Appliance class'!$E44*'RES S curve-disconnect'!AL$18","v":1936.0393816389981},{"$f":"'Res-Appliance class'!$B44*'RES S curve-disconnect'!AM$3+'Res-Appliance class'!$C44*'RES S curve-disconnect'!AM$8+'Res-Appliance class'!$D44*'RES S curve-disconnect'!AM$13+'Res-Appliance class'!$E44*'RES S curve-disconnect'!AM$18","v":1837.8816786805137},{"$f":"'Res-Appliance class'!$B44*'RES S curve-disconnect'!AN$3+'Res-Appliance class'!$C44*'RES S curve-disconnect'!AN$8+'Res-Appliance class'!$D44*'RES S curve-disconnect'!AN$13+'Res-Appliance class'!$E44*'RES S curve-disconnect'!AN$18","v":2057.3945717646998},{"$f":"'Res-Appliance class'!$B44*'RES S curve-disconnect'!AO$3+'Res-Appliance class'!$C44*'RES S curve-disconnect'!AO$8+'Res-Appliance class'!$D44*'RES S curve-disconnect'!AO$13+'Res-Appliance class'!$E44*'RES S curve-disconnect'!AO$18","v":2322.5483644339088},{"$f":"'Res-Appliance class'!$B44*'RES S curve-disconnect'!AP$3+'Res-Appliance class'!$C44*'RES S curve-disconnect'!AP$8+'Res-Appliance class'!$D44*'RES S curve-disconnect'!AP$13+'Res-Appliance class'!$E44*'RES S curve-disconnect'!AP$18","v":2565.5176880414433},{"$f":"'Res-Appliance class'!$B44*'RES S curve-disconnect'!AQ$3+'Res-Appliance class'!$C44*'RES S curve-disconnect'!AQ$8+'Res-Appliance class'!$D44*'RES S curve-disconnect'!AQ$13+'Res-Appliance class'!$E44*'RES S curve-disconnect'!AQ$18","v":2829.1244050865835},{"$f":"'Res-Appliance class'!$B44*'RES S curve-disconnect'!AR$3+'Res-Appliance class'!$C44*'RES S curve-disconnect'!AR$8+'Res-Appliance class'!$D44*'RES S curve-disconnect'!AR$13+'Res-Appliance class'!$E44*'RES S curve-disconnect'!AR$18","v":3117.4064205840132},{"$f":"'Res-Appliance class'!$B44*'RES S curve-disconnect'!AS$3+'Res-Appliance class'!$C44*'RES S curve-disconnect'!AS$8+'Res-Appliance class'!$D44*'RES S curve-disconnect'!AS$13+'Res-Appliance class'!$E44*'RES S curve-disconnect'!AS$18","v":3440.6123752039216},{"$f":"'Res-Appliance class'!$B44*'RES S curve-disconnect'!AT$3+'Res-Appliance class'!$C44*'RES S curve-disconnect'!AT$8+'Res-Appliance class'!$D44*'RES S curve-disconnect'!AT$13+'Res-Appliance class'!$E44*'RES S curve-disconnect'!AT$18","v":3800.8110733010444},{"$f":"'Res-Appliance class'!$B44*'RES S curve-disconnect'!AU$3+'Res-Appliance class'!$C44*'RES S curve-disconnect'!AU$8+'Res-Appliance class'!$D44*'RES S curve-disconnect'!AU$13+'Res-Appliance class'!$E44*'RES S curve-disconnect'!AU$18","v":4219.1685384289249},{"$f":"'Res-Appliance class'!$B44*'RES S curve-disconnect'!AV$3+'Res-Appliance class'!$C44*'RES S curve-disconnect'!AV$8+'Res-Appliance class'!$D44*'RES S curve-disconnect'!AV$13+'Res-Appliance class'!$E44*'RES S curve-disconnect'!AV$18","v":4694.7321025693891},{"$f":"'Res-Appliance class'!$B44*'RES S curve-disconnect'!AW$3+'Res-Appliance class'!$C44*'RES S curve-disconnect'!AW$8+'Res-Appliance class'!$D44*'RES S curve-disconnect'!AW$13+'Res-Appliance class'!$E44*'RES S curve-disconnect'!AW$18","v":5240.5861644880706},{"$f":"'Res-Appliance class'!$B44*'RES S curve-disconnect'!AX$3+'Res-Appliance class'!$C44*'RES S curve-disconnect'!AX$8+'Res-Appliance class'!$D44*'RES S curve-disconnect'!AX$13+'Res-Appliance class'!$E44*'RES S curve-disconnect'!AX$18","v":5860.7009165832123},{"$f":"'Res-Appliance class'!$B44*'RES S curve-disconnect'!AY$3+'Res-Appliance class'!$C44*'RES S curve-disconnect'!AY$8+'Res-Appliance class'!$D44*'RES S curve-disconnect'!AY$13+'Res-Appliance class'!$E44*'RES S curve-disconnect'!AY$18","v":6577.0505602802359},{"$f":"'Res-Appliance class'!$B44*'RES S curve-disconnect'!AZ$3+'Res-Appliance class'!$C44*'RES S curve-disconnect'!AZ$8+'Res-Appliance class'!$D44*'RES S curve-disconnect'!AZ$13+'Res-Appliance class'!$E44*'RES S curve-disconnect'!AZ$18","v":7393.3308665128379},{"$f":"'Res-Appliance class'!$B44*'RES S curve-disconnect'!BA$3+'Res-Appliance class'!$C44*'RES S curve-disconnect'!BA$8+'Res-Appliance class'!$D44*'RES S curve-disconnect'!BA$13+'Res-Appliance class'!$E44*'RES S curve-disconnect'!BA$18","v":8336.8754294471273},{"$f":"'Res-Appliance class'!$B44*'RES S curve-disconnect'!BB$3+'Res-Appliance class'!$C44*'RES S curve-disconnect'!BB$8+'Res-Appliance class'!$D44*'RES S curve-disconnect'!BB$13+'Res-Appliance class'!$E44*'RES S curve-disconnect'!BB$18","v":9436.0695198502108},{"$f":"'Res-Appliance class'!$B44*'RES S curve-disconnect'!BC$3+'Res-Appliance class'!$C44*'RES S curve-disconnect'!BC$8+'Res-Appliance class'!$D44*'RES S curve-disconnect'!BC$13+'Res-Appliance class'!$E44*'RES S curve-disconnect'!BC$18","v":10746.314996961748},{"$f":"'Res-Appliance class'!$B44*'RES S curve-disconnect'!BD$3+'Res-Appliance class'!$C44*'RES S curve-disconnect'!BD$8+'Res-Appliance class'!$D44*'RES S curve-disconnect'!BD$13+'Res-Appliance class'!$E44*'RES S curve-disconnect'!BD$18","v":12002.100433246027},{"$f":"'Res-Appliance class'!$B44*'RES S curve-disconnect'!BE$3+'Res-Appliance class'!$C44*'RES S curve-disconnect'!BE$8+'Res-Appliance class'!$D44*'RES S curve-disconnect'!BE$13+'Res-Appliance class'!$E44*'RES S curve-disconnect'!BE$18","v":13147.151322358523},{"$f":"'Res-Appliance class'!$B44*'RES S curve-disconnect'!BF$3+'Res-Appliance class'!$C44*'RES S curve-disconnect'!BF$8+'Res-Appliance class'!$D44*'RES S curve-disconnect'!BF$13+'Res-Appliance class'!$E44*'RES S curve-disconnect'!BF$18","v":14319.566843335511},{"$f":"'Res-Appliance class'!$B44*'RES S curve-disconnect'!BG$3+'Res-Appliance class'!$C44*'RES S curve-disconnect'!BG$8+'Res-Appliance class'!$D44*'RES S curve-disconnect'!BG$13+'Res-Appliance class'!$E44*'RES S curve-disconnect'!BG$18","v":15649.579366483074},{"$f":"'Res-Appliance class'!$B44*'RES S curve-disconnect'!BH$3+'Res-Appliance class'!$C44*'RES S curve-disconnect'!BH$8+'Res-Appliance class'!$D44*'RES S curve-disconnect'!BH$13+'Res-Appliance class'!$E44*'RES S curve-disconnect'!BH$18","v":17226.550235886196},{"$f":"'Res-Appliance class'!$B44*'RES S curve-disconnect'!BI$3+'Res-Appliance class'!$C44*'RES S curve-disconnect'!BI$8+'Res-Appliance class'!$D44*'RES S curve-disconnect'!BI$13+'Res-Appliance class'!$E44*'RES S curve-disconnect'!BI$18","v":19513.54213469752},{"$f":"'Res-Appliance class'!$B44*'RES S curve-disconnect'!BJ$3+'Res-Appliance class'!$C44*'RES S curve-disconnect'!BJ$8+'Res-Appliance class'!$D44*'RES S curve-disconnect'!BJ$13+'Res-Appliance class'!$E44*'RES S curve-disconnect'!BJ$18","v":22853.54581247388},{"$f":"'Res-Appliance class'!$B44*'RES S curve-disconnect'!BK$3+'Res-Appliance class'!$C44*'RES S curve-disconnect'!BK$8+'Res-Appliance class'!$D44*'RES S curve-disconnect'!BK$13+'Res-Appliance class'!$E44*'RES S curve-disconnect'!BK$18","v":27768.811487222694},{"$f":"'Res-Appliance class'!$B44*'RES S curve-disconnect'!BL$3+'Res-Appliance class'!$C44*'RES S curve-disconnect'!BL$8+'Res-Appliance class'!$D44*'RES S curve-disconnect'!BL$13+'Res-Appliance class'!$E44*'RES S curve-disconnect'!BL$18","v":-990.54537579522366},{"$f":"'Res-Appliance class'!$B44*'RES S curve-disconnect'!BM$3+'Res-Appliance class'!$C44*'RES S curve-disconnect'!BM$8+'Res-Appliance class'!$D44*'RES S curve-disconnect'!BM$13+'Res-Appliance class'!$E44*'RES S curve-disconnect'!BM$18","v":-984.27562654688199},{"$f":"'Res-Appliance class'!$B44*'RES S curve-disconnect'!BN$3+'Res-Appliance class'!$C44*'RES S curve-disconnect'!BN$8+'Res-Appliance class'!$D44*'RES S curve-disconnect'!BN$13+'Res-Appliance class'!$E44*'RES S curve-disconnect'!BN$18","v":-982.03746183332396},{"$f":"'Res-Appliance class'!$B44*'RES S curve-disconnect'!BO$3+'Res-Appliance class'!$C44*'RES S curve-disconnect'!BO$8+'Res-Appliance class'!$D44*'RES S curve-disconnect'!BO$13+'Res-Appliance class'!$E44*'RES S curve-disconnect'!BO$18","v":-971.76420089238809},{"$f":"'Res-Appliance class'!$B44*'RES S curve-disconnect'!BP$3+'Res-Appliance class'!$C44*'RES S curve-disconnect'!BP$8+'Res-Appliance class'!$D44*'RES S curve-disconnect'!BP$13+'Res-Appliance class'!$E44*'RES S curve-disconnect'!BP$18","v":-965.52241081292414},{"$f":"'Res-Appliance class'!$B44*'RES S curve-disconnect'!BQ$3+'Res-Appliance class'!$C44*'RES S curve-disconnect'!BQ$8+'Res-Appliance class'!$D44*'RES S curve-disconnect'!BQ$13+'Res-Appliance class'!$E44*'RES S curve-disconnect'!BQ$18","v":-959.28982737453271},{"$f":"'Res-Appliance class'!$B44*'RES S curve-disconnect'!BR$3+'Res-Appliance class'!$C44*'RES S curve-disconnect'!BR$8+'Res-Appliance class'!$D44*'RES S curve-disconnect'!BR$13+'Res-Appliance class'!$E44*'RES S curve-disconnect'!BR$18","v":-957.08860254012689},{"$f":"'Res-Appliance class'!$B44*'RES S curve-disconnect'!BS$3+'Res-Appliance class'!$C44*'RES S curve-disconnect'!BS$8+'Res-Appliance class'!$D44*'RES S curve-disconnect'!BS$13+'Res-Appliance class'!$E44*'RES S curve-disconnect'!BS$18","v":-946.85205695890613},{"$f":"'Res-Appliance class'!$B44*'RES S curve-disconnect'!BT$3+'Res-Appliance class'!$C44*'RES S curve-disconnect'!BT$8+'Res-Appliance class'!$D44*'RES S curve-disconnect'!BT$13+'Res-Appliance class'!$E44*'RES S curve-disconnect'!BT$18","v":-940.64675912214602},{"$f":"'Res-Appliance class'!$B44*'RES S curve-disconnect'!BU$3+'Res-Appliance class'!$C44*'RES S curve-disconnect'!BU$8+'Res-Appliance class'!$D44*'RES S curve-disconnect'!BU$13+'Res-Appliance class'!$E44*'RES S curve-disconnect'!BU$18","v":-934.4504462029962},{"$f":"'Res-Appliance class'!$B44*'RES S curve-disconnect'!BV$3+'Res-Appliance class'!$C44*'RES S curve-disconnect'!BV$8+'Res-Appliance class'!$D44*'RES S curve-disconnect'!BV$13+'Res-Appliance class'!$E44*'RES S curve-disconnect'!BV$18","v":-932.28527154910432},{"$f":"'Res-Appliance class'!$B44*'RES S curve-disconnect'!BW$3+'Res-Appliance class'!$C44*'RES S curve-disconnect'!BW$8+'Res-Appliance class'!$D44*'RES S curve-disconnect'!BW$13+'Res-Appliance class'!$E44*'RES S curve-disconnect'!BW$18","v":-922.08455718563744},{"$f":"'Res-Appliance class'!$B44*'RES S curve-disconnect'!BX$3+'Res-Appliance class'!$C44*'RES S curve-disconnect'!BX$8+'Res-Appliance class'!$D44*'RES S curve-disconnect'!BX$13+'Res-Appliance class'!$E44*'RES S curve-disconnect'!BX$18","v":-915.9148729711336},{"$f":"'Res-Appliance class'!$B44*'RES S curve-disconnect'!BY$3+'Res-Appliance class'!$C44*'RES S curve-disconnect'!BY$8+'Res-Appliance class'!$D44*'RES S curve-disconnect'!BY$13+'Res-Appliance class'!$E44*'RES S curve-disconnect'!BY$18","v":-909.75395743735487},{"$f":"'Res-Appliance class'!$B44*'RES S curve-disconnect'!BZ$3+'Res-Appliance class'!$C44*'RES S curve-disconnect'!BZ$8+'Res-Appliance class'!$D44*'RES S curve-disconnect'!BZ$13+'Res-Appliance class'!$E44*'RES S curve-disconnect'!BZ$18","v":-907.62396528196268},{"$f":"'Res-Appliance class'!$B44*'RES S curve-disconnect'!CA$3+'Res-Appliance class'!$C44*'RES S curve-disconnect'!CA$8+'Res-Appliance class'!$D44*'RES S curve-disconnect'!CA$13+'Res-Appliance class'!$E44*'RES S curve-disconnect'!CA$18","v":-897.45821987159479},{"$f":"'Res-Appliance class'!$B44*'RES S curve-disconnect'!CB$3+'Res-Appliance class'!$C44*'RES S curve-disconnect'!CB$8+'Res-Appliance class'!$D44*'RES S curve-disconnect'!CB$13+'Res-Appliance class'!$E44*'RES S curve-disconnect'!CB$18","v":-891.32329239777573},{"$f":"'Res-Appliance class'!$B44*'RES S curve-disconnect'!CC$3+'Res-Appliance class'!$C44*'RES S curve-disconnect'!CC$8+'Res-Appliance class'!$D44*'RES S curve-disconnect'!CC$13+'Res-Appliance class'!$E44*'RES S curve-disconnect'!CC$18","v":-885.19692271681902},{"$f":"'Res-Appliance class'!$B44*'RES S curve-disconnect'!CD$3+'Res-Appliance class'!$C44*'RES S curve-disconnect'!CD$8+'Res-Appliance class'!$D44*'RES S curve-disconnect'!CD$13+'Res-Appliance class'!$E44*'RES S curve-disconnect'!CD$18","v":-976.99231528967664}]
["Whitehorse (C)",null,{"$f":"'Res-Appliance class'!$B45*'RES S curve-disconnect'!C$3+'Res-Appliance class'!$C45*'RES S curve-disconnect'!C$8+'Res-Appliance class'!$D45*'RES S curve-disconnect'!C$13+'Res-Appliance class'!$E45*'RES S curve-disconnect'!C$18","v":-4546.76570913266},{"$f":"'Res-Appliance class'!$B45*'RES S curve-disconnect'!D$3+'Res-Appliance class'!$C45*'RES S curve-disconnect'!D$8+'Res-Appliance class'!$D45*'RES S curve-disconnect'!D$13+'Res-Appliance class'!$E45*'RES S curve-disconnect'!D$18","v":-5169.202288747827},{"$f":"'Res-Appliance class'!$B45*'RES S curve-disconnect'!E$3+'Res-Appliance class'!$C45*'RES S curve-disconnect'!E$8+'Res-Appliance class'!$D45*'RES S curve-disconnect'!E$13+'Res-Appliance class'!$E45*'RES S curve-disconnect'!E$18","v":-4592.9284389269105},{"$f":"'Res-Appliance class'!$B45*'RES S curve-disconnect'!F$3+'Res-Appliance class'!$C45*'RES S curve-disconnect'!F$8+'Res-Appliance class'!$D45*'RES S curve-disconnect'!F$13+'Res-Appliance class'!$E45*'RES S curve-disconnect'!F$18","v":-4406.705827254088},{"$f":"'Res-Appliance class'!$B45*'RES S curve-disconnect'!G$3+'Res-Appliance class'!$C45*'RES S curve-disconnect'!G$8+'Res-Appliance class'!$D45*'RES S curve-disconnect'!G$13+'Res-Appliance class'!$E45*'RES S curve-disconnect'!G$18","v":-5686.5993737856879},{"$f":"'Res-Appliance class'!$B45*'RES S curve-disconnect'!H$3+'Res-Appliance class'!$C45*'RES S curve-disconnect'!H$8+'Res-Appliance class'!$D45*'RES S curve-disconnect'!H$13+'Res-Appliance class'!$E45*'RES S curve-disconnect'!H$18","v":-5720.2581998482729},{"$f":"'Res-Appliance class'!$B45*'RES S curve-disconnect'!I$3+'Res-Appliance class'!$C45*'RES S curve-disconnect'!I$8+'Res-Appliance class'!$D45*'RES S curve-disconnect'!I$13+'Res-Appliance class'!$E45*'RES S curve-disconnect'!I$18","v":-5192.9383196305844},{"$f":"'Res-Appliance class'!$B45*'RES S curve-disconnect'!J$3+'Res-Appliance class'!$C45*'RES S curve-disconnect'!J$8+'Res-Appliance class'!$D45*'RES S curve-disconnect'!J$13+'Res-Appliance class'!$E45*'RES S curve-disconnect'!J$18","v":-5513.0648829720185},{"$f":"'Res-Appliance class'!$B45*'RES S curve-disconnect'!K$3+'Res-Appliance class'!$C45*'RES S curve-disconnect'!K$8+'Res-Appliance class'!$D45*'RES S curve-disconnect'!K$13+'Res-Appliance class'!$E45*'RES S curve-disconnect'!K$18","v":-4577.2094104026919},{"$f":"'Res-Appliance class'!$B45*'RES S curve-disconnect'!L$3+'Res-Appliance class'!$C45*'RES S curve-disconnect'!L$8+'Res-Appliance class'!$D45*'RES S curve-disconnect'!L$13+'Res-Appliance class'!$E45*'RES S curve-disconnect'!L$18","v":-5011.2447150393446},{"$f":"'Res-Appliance class'!$B45*'RES S curve-disconnect'!M$3+'Res-Appliance class'!$C45*'RES S curve-disconnect'!M$8+'Res-Appliance class'!$D45*'RES S curve-disconnect'!M$13+'Res-Appliance class'!$E45*'RES S curve-disconnect'!M$18","v":-5791.2003529673002},{"$f":"'Res-Appliance class'!$B45*'RES S curve-disconnect'!N$3+'Res-Appliance class'!$C45*'RES S curve-disconnect'!N$8+'Res-Appliance class'!$D45*'RES S curve-disconnect'!N$13+'Res-Appliance class'!$E45*'RES S curve-disconnect'!N$18","v":-5872.3629255993974},{"$f":"'Res-Appliance class'!$B45*'RES S curve-disconnect'!O$3+'Res-Appliance class'!$C45*'RES S curve-disconnect'!O$8+'Res-Appliance class'!$D45*'RES S curve-disconnect'!O$13+'Res-Appliance class'!$E45*'RES S curve-disconnect'!O$18","v":-5200.284372219623},{"$f":"'Res-Appliance class'!$B45*'RES S curve-disconnect'!P$3+'Res-Appliance class'!$C45*'RES S curve-disconnect'!P$8+'Res-Appliance class'!$D45*'RES S curve-disconnect'!P$13+'Res-Appliance class'!$E45*'RES S curve-disconnect'!P$18","v":-4666.7908150297299},{"$f":"'Res-Appliance class'!$B45*'RES S curve-disconnect'!Q$3+'Res-Appliance class'!$C45*'RES S curve-disconnect'!Q$8+'Res-Appliance class'!$D45*'RES S curve-disconnect'!Q$13+'Res-Appliance class'!$E45*'RES S curve-disconnect'!Q$18","v":-3856.3449754282292},{"$f":"'Res-Appliance class'!$B45*'RES S curve-disconnect'!R$3+'Res-Appliance class'!$C45*'RES S curve-disconnect'!R$8+'Res-Appliance class'!$D45*'RES S curve-disconnect'!R$13+'Res-Appliance class'!$E45*'RES S curve-disconnect'!R$18","v":-3400.5349831640019},{"$f":"'Res-Appliance class'!$B45*'RES S curve-disconnect'!S$3+'Res-Appliance class'!$C45*'RES S curve-disconnect'!S$8+'Res-Appliance class'!$D45*'RES S curve-disconnect'!S$13+'Res-Appliance class'!$E45*'RES S curve-disconnect'!S$18","v":-2670.7346600926321},{"$f":"'Res-Appliance class'!$B45*'RES S curve-disconnect'!T$3+'Res-Appliance class'!$C45*'RES S curve-disconnect'!T$8+'Res-Appliance class'!$D45*'RES S curve-disconnect'!T$13+'Res-Appliance class'!$E45*'RES S curve-disconnect'!T$18","v":-2277.6052259631206},{"$f":"'Res-Appliance class'!$B45*'RES S curve-disconnect'!U$3+'Res-Appliance class'!$C45*'RES S curve-disconnect'!U$8+'Res-Appliance class'!$D45*'RES S curve-disconnect'!U$13+'Res-Appliance class'!$E45*'RES S curve-disconnect'!U$18","v":-1827.6117187902012},{"$f":"'Res-Appliance class'!$B45*'RES S curve-disconnect'!V$3+'Res-Appliance class'!$C45*'RES S curve-disconnect'!V$8+'Res-Appliance class'!$D45*'RES S curve-disconnect'!V$13+'Res-Appliance class'!$E45*'RES S curve-disconnect'!V$18","v":-1523.0707962000483},{"$f":"'Res-Appliance class'!$B45*'RES S curve-disconnect'!W$3+'Res-Appliance class'!$C45*'RES S curve-disconnect'!W$8+'Res-Appliance class'!$D45*'RES S curve-disconnect'!W$13+'Res-Appliance class'!$E45*'RES S curve-disconnect'!W$18","v":-1287.5622478821538},{"$f":"'Res-Appliance class'!$B45*'RES S curve-disconnect'!X$3+'Res-Appliance class'!$C45*'RES S curve-disconnect'!X$8+'Res-Appliance class'!$D45*'RES S curve-disconnect'!X$13+'Res-Appliance class'!$E45*'RES S curve-disconnect'!X$18","v":-743.10178551222953},{"$f":"'Res-Appliance class'!$B45*'RES S curve-disconnect'!Y$3+'Res-Appliance class'!$C45*'RES S curve-disconnect'!Y$8+'Res-Appliance class'!$D45*'RES S curve-disconnect'!Y$13+'Res-Appliance class'!$E45*'RES S curve-disconnect'!Y$18","v":-192.10831015001904},{"$f":"'Res-Appliance class'!$B45*'RES S curve-disconnect'!Z$3+'Res-Appliance class'!$C45*'RES S curve-disconnect'!Z$8+'Res-Appliance class'!$D45*'RES S curve-disconnect'!Z$13+'Res-Appliance class'!$E45*'RES S curve-disconnect'!Z$18","v":178.20775403696467},{"$f":"'Res-Appliance class'!$B45*'RES S curve-disconnect'!AA$3+'Res-Appliance class'!$C45*'RES S curve-disconnect'!AA$8+'Res-Appliance class'!$D45*'RES S curve-disconnect'!AA$13+'Res-Appliance class'!$E45*'RES S curve-disconnect'!AA$18","v":548.57743054753564},{"$f":"'Res-Appliance class'!$B45*'RES S curve-disconnect'!AB$3+'Res-Appliance class'!$C45*'RES S curve-disconnect'!AB$8+'Res-Appliance class'!$D45*'RES S curve-disconnect'!AB$13+'Res-Appliance class'!$E45*'RES S curve-disconnect'!AB$18","v":842.58200488967509},{"$f":"'Res-Appliance class'!$B45*'RES S curve-disconnect'!AC$3+'Res-Appliance class'!$C45*'RES S curve-disconnect'!AC$8+'Res-Appliance class'!$D45*'RES S curve-disconnect'!AC$13+'Res-Appliance class'!$E45*'RES S curve-disconnect'!AC$18","v":1125.5599396003217},{"$f":"'Res-Appliance class'!$B45*'RES S curve-disconnect'!AD$3+'Res-Appliance class'!$C45*'RES S curve-disconnect'!AD$8+'Res-Appliance class'!$D45*'RES S curve-disconnect'!AD$13+'Res-Appliance class'!$E45*'RES S curve-disconnect'!AD$18","v":1384.4863241578244},{"$f":"'Res-Appliance class'!$B45*'RES S curve-disconnect'!AE$3+'Res-Appliance class'!$C45*'RES S curve-disconnect'!AE$8+'Res-Appliance class'!$D45*'RES S curve-disconnect'!AE$13+'Res-Appliance class'!$E45*'RES S curve-disconnect'!AE$18","v":1657.071707980047},{"$f":"'Res-Appliance class'!$B45*'RES S curve-disconnect'!AF$3+'Res-Appliance class'!$C45*'RES S curve-disconnect'!AF$8+'Res-Appliance class'!$D45*'RES S curve-disconnect'!AF$13+'Res-Appliance class'!$E45*'RES S curve-disconnect'!AF$18","v":2012.2692477402045},{"$f":"'Res-Appliance class'!$B45*'RES S curve-disconnect'!AG$3+'Res-Appliance class'!$C45*'RES S curve-disconnect'!AG$8+'Res-Appliance class'!$D45*'RES S curve-disconnect'!AG$13+'Res-Appliance class'!$E45*'RES S curve-disconnect'!AG$18","v":2262.4831255874324},{"$f":"'Res-Appliance class'!$B45*'RES S curve-disconnect'!AH$3+'Res-Appliance class'!$C45*'RES S curve-disconnect'!AH$8+'Res-Appliance class'!$D45*'RES S curve-disconnect'!AH$13+'Res-Appliance class'!$E45*'RES S curve-disconnect'!AH$18","v":2614.6684818395693},{"$f":"'Res-Appliance class'!$B45*'RES S curve-disconnect'!AI$3+'Res-Appliance class'!$C45*'RES S curve-disconnect'!AI$8+'Res-Appliance class'!$D45*'RES S curve-disconnect'!AI$13+'Res-Appliance class'!$E45*'RES S curve-disconnect'!AI$18","v":2931.1640310914381},{"$f":"'Res-Appliance class'!$B45*'RES S curve-disconnect'!AJ$3+'Res-Appliance class'!$C45*'RES S curve-disconnect'!AJ$8+'Res-Appliance class'!$D45*'RES S curve-disconnect'!AJ$13+'Res-Appliance class'!$E45*'RES S curve-disconnect'!AJ$18","v":3216.814683242636},{"$f":"'Res-Appliance class'!$B45*'RES S curve-disconnect'!AK$3+'Res-Appliance class'!$C45*'RES S curve-disconnect'!AK$8+'Res-Appliance class'!$D45*'RES S curve-disconnect'!AK$13+'Res-Appliance class'!$E45*'RES S curve-disconnect'!AK$18","v":3520.070219899857},{"$f":"'Res-Appliance class'!$B45*'RES S curve-disconnect'!AL$3+'Res-Appliance class'!$C45*'RES S curve-disconnect'!AL$8+'Res-Appliance class'!$D45*'RES S curve-disconnect'!AL$13+'Res-Appliance class'!$E45*'RES S curve-disconnect'!AL$18","v":2470.5518635280478},{"$f":"'Res-Appliance class'!$B45*'RES S curve-disconnect'!AM$3+'Res-Appliance class'!$C45*'RES S curve-disconnect'!AM$8+'Res-Appliance class'!$D45*'RES S curve-disconnect'!AM$13+'Res-Appliance class'!$E45*'RES S curve-disconnect'!AM$18","v":2332.9700201424916},{"$f":"'Res-Appliance class'!$B45*'RES S curve-disconnect'!AN$3+'Res-Appliance class'!$C45*'RES S curve-disconnect'!AN$8+'Res-Appliance class'!$D45*'RES S curve-disconnect'!AN$13+'Res-Appliance class'!$E45*'RES S curve-disconnect'!AN$18","v":2619.907894428778},{"$f":"'Res-Appliance class'!$B45*'RES S curve-disconnect'!AO$3+'Res-Appliance class'!$C45*'RES S curve-disconnect'!AO$8+'Res-Appliance class'!$D45*'RES S curve-disconnect'!AO$13+'Res-Appliance class'!$E45*'RES S curve-disconnect'!AO$18","v":2971.0087491227005},{"$f":"'Res-Appliance class'!$B45*'RES S curve-disconnect'!AP$3+'Res-Appliance class'!$C45*'RES S curve-disconnect'!AP$8+'Res-Appliance class'!$D45*'RES S curve-disconnect'!AP$13+'Res-Appliance class'!$E45*'RES S curve-disconnect'!AP$18","v":3295.4627876113868},{"$f":"'Res-Appliance class'!$B45*'RES S curve-disconnect'!AQ$3+'Res-Appliance class'!$C45*'RES S curve-disconnect'!AQ$8+'Res-Appliance class'!$D45*'RES S curve-disconnect'!AQ$13+'Res-Appliance class'!$E45*'RES S curve-disconnect'!AQ$18","v":3644.6794581576996},{"$f":"'Res-Appliance class'!$B45*'RES S curve-disconnect'!AR$3+'Res-Appliance class'!$C45*'RES S curve-disconnect'!AR$8+'Res-Appliance class'!$D45*'RES S curve-disconnect'!AR$13+'Res-Appliance class'!$E45*'RES S curve-disconnect'!AR$18","v":4028.1815721764024},{"$f":"'Res-Appliance class'!$B45*'RES S curve-disconnect'!AS$3+'Res-Appliance class'!$C45*'RES S curve-disconnect'!AS$8+'Res-Appliance class'!$D45*'RES S curve-disconnect'!AS$13+'Res-Appliance class'!$E45*'RES S curve-disconnect'!AS$18","v":4458.5434948263301},{"$f":"'Res-Appliance class'!$B45*'RES S curve-disconnect'!AT$3+'Res-Appliance class'!$C45*'RES S curve-disconnect'!AT$8+'Res-Appliance class'!$D45*'RES S curve-disconnect'!AT$13+'Res-Appliance class'!$E45*'RES S curve-disconnect'!AT$18","v":4940.0132178160247},{"$f":"'Res-Appliance class'!$B45*'RES S curve-disconnect'!AU$3+'Res-Appliance class'!$C45*'RES S curve-disconnect'!AU$8+'Res-Appliance class'!$D45*'RES S curve-disconnect'!AU$13+'Res-Appliance class'!$E45*'RES S curve-disconnect'!AU$18","v":5496.9328757022386},{"$f":"'Res-Appliance class'!$B45*'RES S curve-disconnect'!AV$3+'Res-Appliance class'!$C45*'RES S curve-disconnect'!AV$8+'Res-Appliance class'!$D45*'RES S curve-disconnect'!AV$13+'Res-Appliance class'!$E45*'RES S curve-disconnect'!AV$18","v":6132.2995281939557},{"$f":"'Res-Appliance class'!$B45*'RES S curve-disconnect'!AW$3+'Res-Appliance class'!$C45*'RES S curve-disconnect'!AW$8+'Res-Appliance class'!$D45*'RES S curve-disconnect'!AW$13+'Res-Appliance class'!$E45*'RES S curve-disconnect'!AW$18","v":6862.6504367063226},{"$f":"'Res-Appliance class'!$B45*'RES S curve-disconnect'!AX$3+'Res-Appliance class'!$C45*'RES S curve-disconnect'!AX$8+'Res-Appliance class'!$D45*'RES S curve-disconnect'!AX$13+'Res-Appliance class'!$E45*'RES S curve-disconnect'!AX$18","v":7695.165841876702},{"$f":"'Res-Appliance class'!$B45*'RES S curve-disconnect'!AY$3+'Res-Appliance class'!$C45*'RES S curve-disconnect'!AY$8+'Res-Appliance class'!$D45*'RES S curve-disconnect'!AY$13+'Res-Appliance class'!$E45*'RES S curve-disconnect'!AY$18","v":8655.7242187716402},{"$f":"'Res-Appliance class'!$B45*'RES S curve-disconnect'!AZ$3+'Res-Appliance class'!$C45*'RES S curve-disconnect'!AZ$8+'Res-Appliance class'!$D45*'RES S curve-disconnect'!AZ$13+'Res-Appliance class'!$E45*'RES S curve-disconnect'!AZ$18","v":9753.9887436347381},{"$f":"'Res-Appliance class'!$B45*'RES S curve-disconnect'!BA$3+'Res-Appliance class'!$C45*'RES S curve-disconnect'!BA$8+'Res-Appliance class'!$D45*'RES S curve-disconnect'!BA$13+'Res-Appliance class'!$E45*'RES S curve-disconnect'!BA$18","v":11026.020638558864},{"$f":"'Res-Appliance class'!$B45*'RES S curve-disconnect'!BB$3+'Res-Appliance class'!$C45*'RES S curve-disconnect'!BB$8+'Res-Appliance class'!$D45*'RES S curve-disconnect'!BB$13+'Res-Appliance class'!$E45*'RES S curve-disconnect'!BB$18","v":12512.408073908642},{"$f":"'Res-Appliance class'!$B45*'RES S curve-disconnect'!BC$3+'Res-Appliance class'!$C45*'RES S curve-disconnect'!BC$8+'Res-Appliance class'!$D45*'RES S curve-disconnect'!BC$13+'Res-Appliance class'!$E45*'RES S curve-disconnect'!BC$18","v":14284.98855154121},{"$f":"'Res-Appliance class'!$B45*'RES S curve-disconnect'!BD$3+'Res-Appliance class'!$C45*'RES S curve-disconnect'!BD$8+'Res-Appliance class'!$D45*'RES S curve-disconnect'!BD$13+'Res-Appliance class'!$E45*'RES S curve-disconnect'!BD$18","v":15995.650936148881},{"$f":"'Res-Appliance class'!$B45*'RES S curve-disconnect'!BE$3+'Res-Appliance class'!$C45*'RES S curve-disconnect'!BE$8+'Res-Appliance class'!$D45*'RES S curve-disconnect'!BE$13+'Res-Appliance class'!$E45*'RES S curve-disconnect'!BE$18","v":17559.432725630057},{"$f":"'Res-Appliance class'!$B45*'RES S curve-disconnect'!BF$3+'Res-Appliance class'!$C45*'RES S curve-disconnect'!BF$8+'Res-Appliance class'!$D45*'RES S curve-disconnect'!BF$13+'Res-Appliance class'!$E45*'RES S curve-disconnect'!BF$18","v":19159.408414373669},{"$f":"'Res-Appliance class'!$B45*'RES S curve-disconnect'!BG$3+'Res-Appliance class'!$C45*'RES S curve-disconnect'!BG$8+'Res-Appliance class'!$D45*'RES S curve-disconnect'!BG$13+'Res-Appliance class'!$E45*'RES S curve-disconnect'!BG$18","v":20969.967803963398},{"$f":"'Res-Appliance class'!$B45*'RES S curve-disconnect'!BH$3+'Res-Appliance class'!$C45*'RES S curve-disconnect'!BH$8+'Res-Appliance class'!$D45*'RES S curve-disconnect'!BH$13+'Res-Appliance class'!$E45*'RES S curve-disconnect'!BH$18","v":23119.354484289765},{"$f":"'Res-Appliance class'!$B45*'RES S curve-disconnect'!BI$3+'Res-Appliance class'!$C45*'RES S curve-disconnect'!BI$8+'Res-Appliance class'!$D45*'RES S curve-disconnect'!BI$13+'Res-Appliance class'!$E45*'RES S curve-disconnect'!BI$18","v":26233.654381027533},{"$f":"'Res-Appliance class'!$B45*'RES S curve-disconnect'!BJ$3+'Res-Appliance class'!$C45*'RES S curve-disconnect'!BJ$8+'Res-Appliance class'!$D45*'RES S curve-disconnect'!BJ$13+'Res-Appliance class'!$E45*'RES S curve-disconnect'!BJ$18","v":30795.498568564282},{"$f":"'Res-Appliance class'!$B45*'RES S curve-disconnect'!BK$3+'Res-Appliance class'!$C45*'RES S curve-disconnect'!BK$8+'Res-Appliance class'!$D45*'RES S curve-disconnect'!BK$13+'Res-Appliance class'!$E45*'RES S curve-disconnect'!BK$18","v":37529.012923805603},{"$f":"'Res-Appliance class'!$B45*'RES S curve-disconnect'!BL$3+'Res-Appliance class'!$C45*'RES S curve-disconnect'!BL$8+'Res-Appliance class'!$D45*'RES S curve-disconnect'!BL$13+'Res-Appliance class'!$E45*'RES S curve-disconnect'!BL$18","v":-1369.272653331519},{"$f":"'Res-Appliance class'!$B45*'RES S curve-disconnect'!BM$3+'Res-Appliance class'!$C45*'RES S curve-disconnect'!BM$8+'Res-Appliance class'!$D45*'RES S curve-disconnect'!BM$13+'Res-Appliance class'!$E45*'RES S curve-disconnect'!BM$18","v":-1360.7452793811271},{"$f":"'Res-Appliance class'!$B45*'RES S curve-disconnect'!BN$3+'Res-Appliance class'!$C45*'RES S curve-disconnect'!BN$8+'Res-Appliance class'!$D45*'RES S curve-disconnect'!BN$13+'Res-Appliance class'!$E45*'RES S curve-disconnect'!BN$18","v":-1356.2519761843932},{"$f":"'Res-Appliance class'!$B45*'RES S curve-disconnect'!BO$3+'Res-Appliance class'!$C45*'RES S curve-disconnect'!BO$8+'Res-Appliance class'!$D45*'RES S curve-disconnect'!BO$13+'Res-Appliance class'!$E45*'RES S curve-disconnect'!BO$18","v":-1343.7260485274599},{"$f":"'Res-Appliance class'!$B45*'RES S curve-disconnect'!BP$3+'Res-Appliance class'!$C45*'RES S curve-disconnect'!BP$8+'Res-Appliance class'!$D45*'RES S curve-disconnect'!BP$13+'Res-Appliance class'!$E45*'RES S curve-disconnect'!BP$18","v":-1335.2340491357381},{"$f":"'Res-Appliance class'!$B45*'RES S curve-disconnect'!BQ$3+'Res-Appliance class'!$C45*'RES S curve-disconnect'!BQ$8+'Res-Appliance class'!$D45*'RES S curve-disconnect'!BQ$13+'Res-Appliance class'!$E45*'RES S curve-disconnect'!BQ$18","v":-1326.7536995130949},{"$f":"'Res-Appliance class'!$B45*'RES S curve-disconnect'!BR$3+'Res-Appliance class'!$C45*'RES S curve-disconnect'!BR$8+'Res-Appliance class'!$D45*'RES S curve-disconnect'!BR$13+'Res-Appliance class'!$E45*'RES S curve-disconnect'!BR$18","v":-1322.3071374338633},{"$f":"'Res-Appliance class'!$B45*'RES S curve-disconnect'!BS$3+'Res-Appliance class'!$C45*'RES S curve-disconnect'!BS$8+'Res-Appliance class'!$D45*'RES S curve-disconnect'!BS$13+'Res-Appliance class'!$E45*'RES S curve-disconnect'!BS$18","v":-1309.8276694452734},{"$f":"'Res-Appliance class'!$B45*'RES S curve-disconnect'!BT$3+'Res-Appliance class'!$C45*'RES S curve-disconnect'!BT$8+'Res-Appliance class'!$D45*'RES S curve-disconnect'!BT$13+'Res-Appliance class'!$E45*'RES S curve-disconnect'!BT$18","v":-1301.3818500226976},{"$f":"'Res-Appliance class'!$B45*'RES S curve-disconnect'!BU$3+'Res-Appliance class'!$C45*'RES S curve-disconnect'!BU$8+'Res-Appliance class'!$D45*'RES S curve-disconnect'!BU$13+'Res-Appliance class'!$E45*'RES S curve-disconnect'!BU$18","v":-1292.94740240891},{"$f":"'Res-Appliance class'!$B45*'RES S curve-disconnect'!BV$3+'Res-Appliance class'!$C45*'RES S curve-disconnect'!BV$8+'Res-Appliance class'!$D45*'RES S curve-disconnect'!BV$13+'Res-Appliance class'!$E45*'RES S curve-disconnect'!BV$18","v":-1288.5464661061783},{"$f":"'Res-Appliance class'!$B45*'RES S curve-disconnect'!BW$3+'Res-Appliance class'!$C45*'RES S curve-disconnect'!BW$8+'Res-Appliance class'!$D45*'RES S curve-disconnect'!BW$13+'Res-Appliance class'!$E45*'RES S curve-disconnect'!BW$18","v":-1276.1123493787491},{"$f":"'Res-Appliance class'!$B45*'RES S curve-disconnect'!BX$3+'Res-Appliance class'!$C45*'RES S curve-disconnect'!BX$8+'Res-Appliance class'!$D45*'RES S curve-disconnect'!BX$13+'Res-Appliance class'!$E45*'RES S curve-disconnect'!BX$18","v":-1267.7116084081736},{"$f":"'Res-Appliance class'!$B45*'RES S curve-disconnect'!BY$3+'Res-Appliance class'!$C45*'RES S curve-disconnect'!BY$8+'Res-Appliance class'!$D45*'RES S curve-disconnect'!BY$13+'Res-Appliance class'!$E45*'RES S curve-disconnect'!BY$18","v":-1259.3219681326341},{"$f":"'Res-Appliance class'!$B45*'RES S curve-disconnect'!BZ$3+'Res-Appliance class'!$C45*'RES S curve-disconnect'!BZ$8+'Res-Appliance class'!$D45*'RES S curve-disconnect'!BZ$13+'Res-Appliance class'!$E45*'RES S curve-disconnect'!BZ$18","v":-1254.9655697390995},{"$f":"'Res-Appliance class'!$B45*'RES S curve-disconnect'!CA$3+'Res-Appliance class'!$C45*'RES S curve-disconnect'!CA$8+'Res-Appliance class'!$D45*'RES S curve-disconnect'!CA$13+'Res-Appliance class'!$E45*'RES S curve-disconnect'!CA$18","v":-1242.5757231658799},{"$f":"'Res-Appliance class'!$B45*'RES S curve-disconnect'!CB$3+'Res-Appliance class'!$C45*'RES S curve-disconnect'!CB$8+'Res-Appliance class'!$D45*'RES S curve-disconnect'!CB$13+'Res-Appliance class'!$E45*'RES S curve-disconnect'!CB$18","v":-1234.2189862580262},{"$f":"'Res-Appliance class'!$B45*'RES S curve-disconnect'!CC$3+'Res-Appliance class'!$C45*'RES S curve-disconnect'!CC$8+'Res-Appliance class'!$D45*'RES S curve-disconnect'!CC$13+'Res-Appliance class'!$E45*'RES S curve-disconnect'!CC$18","v":-1225.8730856067175},{"$f":"'Res-Appliance class'!$B45*'RES S curve-disconnect'!CD$3+'Res-Appliance class'!$C45*'RES S curve-disconnect'!CD$8+'Res-Appliance class'!$D45*'RES S curve-disconnect'!CD$13+'Res-Appliance class'!$E45*'RES S curve-disconnect'!CD$18","v":-1353.2075280179524}]
["Yarra Ranges (S)",null,{"$f":"'Res-Appliance class'!$B46*'RES S curve-disconnect'!C$3+'Res-Appliance class'!$C46*'RES S curve-disconnect'!C$8+'Res-Appliance class'!$D46*'RES S curve-disconnect'!C$13+'Res-Appliance class'!$E46*'RES S curve-disconnect'!C$18","v":-4687.1245305249377},{"$f":"'Res-Appliance class'!$B46*'RES S curve-disconnect'!D$3+'Res-Appliance class'!$C46*'RES S curve-disconnect'!D$8+'Res-Appliance class'!$D46*'RES S curve-disconnect'!D$13+'Res-Appliance class'!$E46*'RES S curve-disconnect'!D$18","v":-5339.4362142037708},{"$f":"'Res-Appliance class'!$B46*'RES S curve-disconnect'!E$3+'Res-Appliance class'!$C46*'RES S curve-disconnect'!E$8+'Res-Appliance class'!$D46*'RES S curve-disconnect'!E$13+'Res-Appliance class'!$E46*'RES S curve-disconnect'!E$18","v":-4719.0794742972648},{"$f":"'Res-Appliance class'!$B46*'RES S curve-disconnect'!F$3+'Res-Appliance class'!$C46*'RES S curve-disconnect'!F$8+'Res-Appliance class'!$D46*'RES S curve-disconnect'!F$13+'Res-Appliance class'!$E46*'RES S curve-disconnect'!F$18","v":-4522.0153925476761},{"$f":"'Res-Appliance class'!$B46*'RES S curve-disconnect'!G$3+'Res-Appliance class'!$C46*'RES S curve-disconnect'!G$8+'Res-Appliance class'!$D46*'RES S curve-disconnect'!G$13+'Res-Appliance class'!$E46*'RES S curve-disconnect'!G$18","v":-5916.4868421504816},{"$f":"'Res-Appliance class'!$B46*'RES S curve-disconnect'!H$3+'Res-Appliance class'!$C46*'RES S curve-disconnect'!H$8+'Res-Appliance class'!$D46*'RES S curve-disconnect'!H$13+'Res-Appliance class'!$E46*'RES S curve-disconnect'!H$18","v":-5944.1880330755966},{"$f":"'Res-Appliance class'!$B46*'RES S curve-disconnect'!I$3+'Res-Appliance class'!$C46*'RES S curve-disconnect'!I$8+'Res-Appliance class'!$D46*'RES S curve-disconnect'!I$13+'Res-Appliance class'!$E46*'RES S curve-disconnect'!I$18","v":-5386.569175211549},{"$f":"'Res-Appliance class'!$B46*'RES S curve-disconnect'!J$3+'Res-Appliance class'!$C46*'RES S curve-disconnect'!J$8+'Res-Appliance class'!$D46*'RES S curve-disconnect'!J$13+'Res-Appliance class'!$E46*'RES S curve-disconnect'!J$18","v":-5699.7918138868208},{"$f":"'Res-Appliance class'!$B46*'RES S curve-disconnect'!K$3+'Res-Appliance class'!$C46*'RES S curve-disconnect'!K$8+'Res-Appliance class'!$D46*'RES S curve-disconnect'!K$13+'Res-Appliance class'!$E46*'RES S curve-disconnect'!K$18","v":-4715.0283918436407},{"$f":"'Res-Appliance class'!$B46*'RES S curve-disconnect'!L$3+'Res-Appliance class'!$C46*'RES S curve-disconnect'!L$8+'Res-Appliance class'!$D46*'RES S curve-disconnect'!L$13+'Res-Appliance class'!$E46*'RES S curve-disconnect'!L$18","v":-5170.9808434917577},{"$f":"'Res-Appliance class'!$B46*'RES S curve-disconnect'!M$3+'Res-Appliance class'!$C46*'RES S curve-disconnect'!M$8+'Res-Appliance class'!$D46*'RES S curve-disconnect'!M$13+'Res-Appliance class'!$E46*'RES S curve-disconnect'!M$18","v":-6001.1290027546775},{"$f":"'Res-Appliance class'!$B46*'RES S curve-disconnect'!N$3+'Res-Appliance class'!$C46*'RES S curve-disconnect'!N$8+'Res-Appliance class'!$D46*'RES S curve-disconnect'!N$13+'Res-Appliance class'!$E46*'RES S curve-disconnect'!N$18","v":-6087.9054929392387},{"$f":"'Res-Appliance class'!$B46*'RES S curve-disconnect'!O$3+'Res-Appliance class'!$C46*'RES S curve-disconnect'!O$8+'Res-Appliance class'!$D46*'RES S curve-disconnect'!O$13+'Res-Appliance class'!$E46*'RES S curve-disconnect'!O$18","v":-5380.2857307565773},{"$f":"'Res-Appliance class'!$B46*'RES S curve-disconnect'!P$3+'Res-Appliance class'!$C46*'RES S curve-disconnect'!P$8+'Res-Appliance class'!$D46*'RES S curve-disconnect'!P$13+'Res-Appliance class'!$E46*'RES S curve-disconnect'!P$18","v":-4817.5071047374513},{"$f":"'Res-Appliance class'!$B46*'RES S curve-disconnect'!Q$3+'Res-Appliance class'!$C46*'RES S curve-disconnect'!Q$8+'Res-Appliance class'!$D46*'RES S curve-disconnect'!Q$13+'Res-Appliance class'!$E46*'RES S curve-disconnect'!Q$18","v":-3962.1655854034343},{"$f":"'Res-Appliance class'!$B46*'RES S curve-disconnect'!R$3+'Res-Appliance class'!$C46*'RES S curve-disconnect'!R$8+'Res-Appliance class'!$D46*'RES S curve-disconnect'!R$13+'Res-Appliance class'!$E46*'RES S curve-disconnect'!R$18","v":-3481.25974302129},{"$f":"'Res-Appliance class'!$B46*'RES S curve-disconnect'!S$3+'Res-Appliance class'!$C46*'RES S curve-disconnect'!S$8+'Res-Appliance class'!$D46*'RES S curve-disconnect'!S$13+'Res-Appliance class'!$E46*'RES S curve-disconnect'!S$18","v":-2712.3501856348148},{"$f":"'Res-Appliance class'!$B46*'RES S curve-disconnect'!T$3+'Res-Appliance class'!$C46*'RES S curve-disconnect'!T$8+'Res-Appliance class'!$D46*'RES S curve-disconnect'!T$13+'Res-Appliance class'!$E46*'RES S curve-disconnect'!T$18","v":-2295.3377905509087},{"$f":"'Res-Appliance class'!$B46*'RES S curve-disconnect'!U$3+'Res-Appliance class'!$C46*'RES S curve-disconnect'!U$8+'Res-Appliance class'!$D46*'RES S curve-disconnect'!U$13+'Res-Appliance class'!$E46*'RES S curve-disconnect'!U$18","v":-1820.2711693723672},{"$f":"'Res-Appliance class'!$B46*'RES S curve-disconnect'!V$3+'Res-Appliance class'!$C46*'RES S curve-disconnect'!V$8+'Res-Appliance class'!$D46*'RES S curve-disconnect'!V$13+'Res-Appliance class'!$E46*'RES S curve-disconnect'!V$18","v":-1499.9866371084504},{"$f":"'Res-Appliance class'!$B46*'RES S curve-disconnect'!W$3+'Res-Appliance class'!$C46*'RES S curve-disconnect'!W$8+'Res-Appliance class'!$D46*'RES S curve-disconnect'!W$13+'Res-Appliance class'!$E46*'RES S curve-disconnect'!W$18","v":-1252.2635738450822},{"$f":"'Res-Appliance class'!$B46*'RES S curve-disconnect'!X$3+'Res-Appliance class'!$C46*'RES S curve-disconnect'!X$8+'Res-Appliance class'!$D46*'RES S curve-disconnect'!X$13+'Res-Appliance class'!$E46*'RES S curve-disconnect'!X$18","v":-676.68578183034128},{"$f":"'Res-Appliance class'!$B46*'RES S curve-disconnect'!Y$3+'Res-Appliance class'!$C46*'RES S curve-disconnect'!Y$8+'Res-Appliance class'!$D46*'RES S curve-disconnect'!Y$13+'Res-Appliance class'!$E46*'RES S curve-disconnect'!Y$18","v":-94.552972196003395},{"$f":"'Res-Appliance class'!$B46*'RES S curve-disconnect'!Z$3+'Res-Appliance class'!$C46*'RES S curve-disconnect'!Z$8+'Res-Appliance class'!$D46*'RES S curve-disconnect'!Z$13+'Res-Appliance class'!$E46*'RES S curve-disconnect'!Z$18","v":296.17325474478776},{"$f":"'Res-Appliance class'!$B46*'RES S curve-disconnect'!AA$3+'Res-Appliance class'!$C46*'RES S curve-disconnect'!AA$8+'Res-Appliance class'!$D46*'RES S curve-disconnect'!AA$13+'Res-Appliance class'!$E46*'RES S curve-disconnect'!AA$18","v":686.5449581734091},{"$f":"'Res-Appliance class'!$B46*'RES S curve-disconnect'!AB$3+'Res-Appliance class'!$C46*'RES S curve-disconnect'!AB$8+'Res-Appliance class'!$D46*'RES S curve-disconnect'!AB$13+'Res-Appliance class'!$E46*'RES S curve-disconnect'!AB$18","v":996.3004769073666},{"$f":"'Res-Appliance class'!$B46*'RES S curve-disconnect'!AC$3+'Res-Appliance class'!$C46*'RES S curve-disconnect'!AC$8+'Res-Appliance class'!$D46*'RES S curve-disconnect'!AC$13+'Res-Appliance class'!$E46*'RES S curve-disconnect'!AC$18","v":1294.1554696021155},{"$f":"'Res-Appliance class'!$B46*'RES S curve-disconnect'!AD$3+'Res-Appliance class'!$C46*'RES S curve-disconnect'!AD$8+'Res-Appliance class'!$D46*'RES S curve-disconnect'!AD$13+'Res-Appliance class'!$E46*'RES S curve-disconnect'!AD$18","v":1566.6262574900379},{"$f":"'Res-Appliance class'!$B46*'RES S curve-disconnect'!AE$3+'Res-Appliance class'!$C46*'RES S curve-disconnect'!AE$8+'Res-Appliance class'!$D46*'RES S curve-disconnect'!AE$13+'Res-Appliance class'!$E46*'RES S curve-disconnect'!AE$18","v":1852.9425646946968},{"$f":"'Res-Appliance class'!$B46*'RES S curve-disconnect'!AF$3+'Res-Appliance class'!$C46*'RES S curve-disconnect'!AF$8+'Res-Appliance class'!$D46*'RES S curve-disconnect'!AF$13+'Res-Appliance class'!$E46*'RES S curve-disconnect'!AF$18","v":2226.9847497658543},{"$f":"'Res-Appliance class'!$B46*'RES S curve-disconnect'!AG$3+'Res-Appliance class'!$C46*'RES S curve-disconnect'!AG$8+'Res-Appliance class'!$D46*'RES S curve-disconnect'!AG$13+'Res-Appliance class'!$E46*'RES S curve-disconnect'!AG$18","v":2490.727632617607},{"$f":"'Res-Appliance class'!$B46*'RES S curve-disconnect'!AH$3+'Res-Appliance class'!$C46*'RES S curve-disconnect'!AH$8+'Res-Appliance class'!$D46*'RES S curve-disconnect'!AH$13+'Res-Appliance class'!$E46*'RES S curve-disconnect'!AH$18","v":2863.1199619389422},{"$f":"'Res-Appliance class'!$B46*'RES S curve-disconnect'!AI$3+'Res-Appliance class'!$C46*'RES S curve-disconnect'!AI$8+'Res-Appliance class'!$D46*'RES S curve-disconnect'!AI$13+'Res-Appliance class'!$E46*'RES S curve-disconnect'!AI$18","v":3196.7231708790746},{"$f":"'Res-Appliance class'!$B46*'RES S curve-disconnect'!AJ$3+'Res-Appliance class'!$C46*'RES S curve-disconnect'!AJ$8+'Res-Appliance class'!$D46*'RES S curve-disconnect'!AJ$13+'Res-Appliance class'!$E46*'RES S curve-disconnect'!AJ$18","v":3498.0295977157734},{"$f":"'Res-Appliance class'!$B46*'RES S curve-disconnect'!AK$3+'Res-Appliance class'!$C46*'RES S curve-disconnect'!AK$8+'Res-Appliance class'!$D46*'RES S curve-disconnect'!AK$13+'Res-Appliance class'!$E46*'RES S curve-disconnect'!AK$18","v":3817.8706897921106},{"$f":"'Res-Appliance class'!$B46*'RES S curve-disconnect'!AL$3+'Res-Appliance class'!$C46*'RES S curve-disconnect'!AL$8+'Res-Appliance class'!$D46*'RES S curve-disconnect'!AL$13+'Res-Appliance class'!$E46*'RES S curve-disconnect'!AL$18","v":2713.6296611163857},{"$f":"'Res-Appliance class'!$B46*'RES S curve-disconnect'!AM$3+'Res-Appliance class'!$C46*'RES S curve-disconnect'!AM$8+'Res-Appliance class'!$D46*'RES S curve-disconnect'!AM$13+'Res-Appliance class'!$E46*'RES S curve-disconnect'!AM$18","v":2567.2656030607341},{"$f":"'Res-Appliance class'!$B46*'RES S curve-disconnect'!AN$3+'Res-Appliance class'!$C46*'RES S curve-disconnect'!AN$8+'Res-Appliance class'!$D46*'RES S curve-disconnect'!AN$13+'Res-Appliance class'!$E46*'RES S curve-disconnect'!AN$18","v":2869.0829156346445},{"$f":"'Res-Appliance class'!$B46*'RES S curve-disconnect'!AO$3+'Res-Appliance class'!$C46*'RES S curve-disconnect'!AO$8+'Res-Appliance class'!$D46*'RES S curve-disconnect'!AO$13+'Res-Appliance class'!$E46*'RES S curve-disconnect'!AO$18","v":3239.1652182767148},{"$f":"'Res-Appliance class'!$B46*'RES S curve-disconnect'!AP$3+'Res-Appliance class'!$C46*'RES S curve-disconnect'!AP$8+'Res-Appliance class'!$D46*'RES S curve-disconnect'!AP$13+'Res-Appliance class'!$E46*'RES S curve-disconnect'!AP$18","v":3581.6129097871381},{"$f":"'Res-Appliance class'!$B46*'RES S curve-disconnect'!AQ$3+'Res-Appliance class'!$C46*'RES S curve-disconnect'!AQ$8+'Res-Appliance class'!$D46*'RES S curve-disconnect'!AQ$13+'Res-Appliance class'!$E46*'RES S curve-disconnect'!AQ$18","v":3949.7371195986252},{"$f":"'Res-Appliance class'!$B46*'RES S curve-disconnect'!AR$3+'Res-Appliance class'!$C46*'RES S curve-disconnect'!AR$8+'Res-Appliance class'!$D46*'RES S curve-disconnect'!AR$13+'Res-Appliance class'!$E46*'RES S curve-disconnect'!AR$18","v":4354.2752654011747},{"$f":"'Res-Appliance class'!$B46*'RES S curve-disconnect'!AS$3+'Res-Appliance class'!$C46*'RES S curve-disconnect'!AS$8+'Res-Appliance class'!$D46*'RES S curve-disconnect'!AS$13+'Res-Appliance class'!$E46*'RES S curve-disconnect'!AS$18","v":4808.3167314895363},{"$f":"'Res-Appliance class'!$B46*'RES S curve-disconnect'!AT$3+'Res-Appliance class'!$C46*'RES S curve-disconnect'!AT$8+'Res-Appliance class'!$D46*'RES S curve-disconnect'!AT$13+'Res-Appliance class'!$E46*'RES S curve-disconnect'!AT$18","v":5316.5920787103996},{"$f":"'Res-Appliance class'!$B46*'RES S curve-disconnect'!AU$3+'Res-Appliance class'!$C46*'RES S curve-disconnect'!AU$8+'Res-Appliance class'!$D46*'RES S curve-disconnect'!AU$13+'Res-Appliance class'!$E46*'RES S curve-disconnect'!AU$18","v":5904.1467752005046},{"$f":"'Res-Appliance class'!$B46*'RES S curve-disconnect'!AV$3+'Res-Appliance class'!$C46*'RES S curve-disconnect'!AV$8+'Res-Appliance class'!$D46*'RES S curve-disconnect'!AV$13+'Res-Appliance class'!$E46*'RES S curve-disconnect'!AV$18","v":6574.8525283388035},{"$f":"'Res-Appliance class'!$B46*'RES S curve-disconnect'!AW$3+'Res-Appliance class'!$C46*'RES S curve-disconnect'!AW$8+'Res-Appliance class'!$D46*'RES S curve-disconnect'!AW$13+'Res-Appliance class'!$E46*'RES S curve-disconnect'!AW$18","v":7346.0112186062306},{"$f":"'Res-Appliance class'!$B46*'RES S curve-disconnect'!AX$3+'Res-Appliance class'!$C46*'RES S curve-disconnect'!AX$8+'Res-Appliance class'!$D46*'RES S curve-disconnect'!AX$13+'Res-Appliance class'!$E46*'RES S curve-disconnect'!AX$18","v":8225.5139355219435},{"$f":"'Res-Appliance class'!$B46*'RES S curve-disconnect'!AY$3+'Res-Appliance class'!$C46*'RES S curve-disconnect'!AY$8+'Res-Appliance class'!$D46*'RES S curve-disconnect'!AY$13+'Res-Appliance class'!$E46*'RES S curve-disconnect'!AY$18","v":9240.1037362594434},{"$f":"'Res-Appliance class'!$B46*'RES S curve-disconnect'!AZ$3+'Res-Appliance class'!$C46*'RES S curve-disconnect'!AZ$8+'Res-Appliance class'!$D46*'RES S curve-disconnect'!AZ$13+'Res-Appliance class'!$E46*'RES S curve-disconnect'!AZ$18","v":10400.765250760061},{"$f":"'Res-Appliance class'!$B46*'RES S curve-disconnect'!BA$3+'Res-Appliance class'!$C46*'RES S curve-disconnect'!BA$8+'Res-Appliance class'!$D46*'RES S curve-disconnect'!BA$13+'Res-Appliance class'!$E46*'RES S curve-disconnect'!BA$18","v":11745.492394177232},{"$f":"'Res-Appliance class'!$B46*'RES S curve-disconnect'!BB$3+'Res-Appliance class'!$C46*'RES S curve-disconnect'!BB$8+'Res-Appliance class'!$D46*'RES S curve-disconnect'!BB$13+'Res-Appliance class'!$E46*'RES S curve-disconnect'!BB$18","v":13317.575613815883},{"$f":"'Res-Appliance class'!$B46*'RES S curve-disconnect'!BC$3+'Res-Appliance class'!$C46*'RES S curve-disconnect'!BC$8+'Res-Appliance class'!$D46*'RES S curve-disconnect'!BC$13+'Res-Appliance class'!$E46*'RES S curve-disconnect'!BC$18","v":15192.492011103668},{"$f":"'Res-Appliance class'!$B46*'RES S curve-disconnect'!BD$3+'Res-Appliance class'!$C46*'RES S curve-disconnect'!BD$8+'Res-Appliance class'!$D46*'RES S curve-disconnect'!BD$13+'Res-Appliance class'!$E46*'RES S curve-disconnect'!BD$18","v":17003.83910077739},{"$f":"'Res-Appliance class'!$B46*'RES S curve-disconnect'!BE$3+'Res-Appliance class'!$C46*'RES S curve-disconnect'!BE$8+'Res-Appliance class'!$D46*'RES S curve-disconnect'!BE$13+'Res-Appliance class'!$E46*'RES S curve-disconnect'!BE$18","v":18660.301545994276},{"$f":"'Res-Appliance class'!$B46*'RES S curve-disconnect'!BF$3+'Res-Appliance class'!$C46*'RES S curve-disconnect'!BF$8+'Res-Appliance class'!$D46*'RES S curve-disconnect'!BF$13+'Res-Appliance class'!$E46*'RES S curve-disconnect'!BF$18","v":20354.913427715564},{"$f":"'Res-Appliance class'!$B46*'RES S curve-disconnect'!BG$3+'Res-Appliance class'!$C46*'RES S curve-disconnect'!BG$8+'Res-Appliance class'!$D46*'RES S curve-disconnect'!BG$13+'Res-Appliance class'!$E46*'RES S curve-disconnect'!BG$18","v":22271.843017225019},{"$f":"'Res-Appliance class'!$B46*'RES S curve-disconnect'!BH$3+'Res-Appliance class'!$C46*'RES S curve-disconnect'!BH$8+'Res-Appliance class'!$D46*'RES S curve-disconnect'!BH$13+'Res-Appliance class'!$E46*'RES S curve-disconnect'!BH$18","v":24547.944207145774},{"$f":"'Res-Appliance class'!$B46*'RES S curve-disconnect'!BI$3+'Res-Appliance class'!$C46*'RES S curve-disconnect'!BI$8+'Res-Appliance class'!$D46*'RES S curve-disconnect'!BI$13+'Res-Appliance class'!$E46*'RES S curve-disconnect'!BI$18","v":27845.40371211815},{"$f":"'Res-Appliance class'!$B46*'RES S curve-disconnect'!BJ$3+'Res-Appliance class'!$C46*'RES S curve-disconnect'!BJ$8+'Res-Appliance class'!$D46*'RES S curve-disconnect'!BJ$13+'Res-Appliance class'!$E46*'RES S curve-disconnect'!BJ$18","v":32677.775349630349},{"$f":"'Res-Appliance class'!$B46*'RES S curve-disconnect'!BK$3+'Res-Appliance class'!$C46*'RES S curve-disconnect'!BK$8+'Res-Appliance class'!$D46*'RES S curve-disconnect'!BK$13+'Res-Appliance class'!$E46*'RES S curve-disconnect'!BK$18","v":39813.889484966319},{"$f":"'Res-Appliance class'!$B46*'RES S curve-disconnect'!BL$3+'Res-Appliance class'!$C46*'RES S curve-disconnect'!BL$8+'Res-Appliance class'!$D46*'RES S curve-disconnect'!BL$13+'Res-Appliance class'!$E46*'RES S curve-disconnect'!BL$18","v":-1329.6611531773285},{"$f":"'Res-Appliance class'!$B46*'RES S curve-disconnect'!BM$3+'Res-Appliance class'!$C46*'RES S curve-disconnect'!BM$8+'Res-Appliance class'!$D46*'RES S curve-disconnect'!BM$13+'Res-Appliance class'!$E46*'RES S curve-disconnect'!BM$18","v":-1320.6767160626703},{"$f":"'Res-Appliance class'!$B46*'RES S curve-disconnect'!BN$3+'Res-Appliance class'!$C46*'RES S curve-disconnect'!BN$8+'Res-Appliance class'!$D46*'RES S curve-disconnect'!BN$13+'Res-Appliance class'!$E46*'RES S curve-disconnect'!BN$18","v":-1315.7265837586815},{"$f":"'Res-Appliance class'!$B46*'RES S curve-disconnect'!BO$3+'Res-Appliance class'!$C46*'RES S curve-disconnect'!BO$8+'Res-Appliance class'!$D46*'RES S curve-disconnect'!BO$13+'Res-Appliance class'!$E46*'RES S curve-disconnect'!BO$18","v":-1302.7440599989227},{"$f":"'Res-Appliance class'!$B46*'RES S curve-disconnect'!BP$3+'Res-Appliance class'!$C46*'RES S curve-disconnect'!BP$8+'Res-Appliance class'!$D46*'RES S curve-disconnect'!BP$13+'Res-Appliance class'!$E46*'RES S curve-disconnect'!BP$18","v":-1293.7956964616687},{"$f":"'Res-Appliance class'!$B46*'RES S curve-disconnect'!BQ$3+'Res-Appliance class'!$C46*'RES S curve-disconnect'!BQ$8+'Res-Appliance class'!$D46*'RES S curve-disconnect'!BQ$13+'Res-Appliance class'!$E46*'RES S curve-disconnect'!BQ$18","v":-1284.8592136090635},{"$f":"'Res-Appliance class'!$B46*'RES S curve-disconnect'!BR$3+'Res-Appliance class'!$C46*'RES S curve-disconnect'!BR$8+'Res-Appliance class'!$D46*'RES S curve-disconnect'!BR$13+'Res-Appliance class'!$E46*'RES S curve-disconnect'!BR$18","v":-1279.9567481790998},{"$f":"'Res-Appliance class'!$B46*'RES S curve-disconnect'!BS$3+'Res-Appliance class'!$C46*'RES S curve-disconnect'!BS$8+'Res-Appliance class'!$D46*'RES S curve-disconnect'!BS$13+'Res-Appliance class'!$E46*'RES S curve-disconnect'!BS$18","v":-1267.0216056880195},{"$f":"'Res-Appliance class'!$B46*'RES S curve-disconnect'!BT$3+'Res-Appliance class'!$C46*'RES S curve-disconnect'!BT$8+'Res-Appliance class'!$D46*'RES S curve-disconnect'!BT$13+'Res-Appliance class'!$E46*'RES S curve-disconnect'!BT$18","v":-1258.1203395855291},{"$f":"'Res-Appliance class'!$B46*'RES S curve-disconnect'!BU$3+'Res-Appliance class'!$C46*'RES S curve-disconnect'!BU$8+'Res-Appliance class'!$D46*'RES S curve-disconnect'!BU$13+'Res-Appliance class'!$E46*'RES S curve-disconnect'!BU$18","v":-1249.2306720940273},{"$f":"'Res-Appliance class'!$B46*'RES S curve-disconnect'!BV$3+'Res-Appliance class'!$C46*'RES S curve-disconnect'!BV$8+'Res-Appliance class'!$D46*'RES S curve-disconnect'!BV$13+'Res-Appliance class'!$E46*'RES S curve-disconnect'!BV$18","v":-1244.3747417006678},{"$f":"'Res-Appliance class'!$B46*'RES S curve-disconnect'!BW$3+'Res-Appliance class'!$C46*'RES S curve-disconnect'!BW$8+'Res-Appliance class'!$D46*'RES S curve-disconnect'!BW$13+'Res-Appliance class'!$E46*'RES S curve-disconnect'!BW$18","v":-1231.4858556598147},{"$f":"'Res-Appliance class'!$B46*'RES S curve-disconnect'!BX$3+'Res-Appliance class'!$C46*'RES S curve-disconnect'!BX$8+'Res-Appliance class'!$D46*'RES S curve-disconnect'!BX$13+'Res-Appliance class'!$E46*'RES S curve-disconnect'!BX$18","v":-1222.6305691483378},{"$f":"'Res-Appliance class'!$B46*'RES S curve-disconnect'!BY$3+'Res-Appliance class'!$C46*'RES S curve-disconnect'!BY$8+'Res-Appliance class'!$D46*'RES S curve-disconnect'!BY$13+'Res-Appliance class'!$E46*'RES S curve-disconnect'!BY$18","v":-1213.7866061049092},{"$f":"'Res-Appliance class'!$B46*'RES S curve-disconnect'!BZ$3+'Res-Appliance class'!$C46*'RES S curve-disconnect'!BZ$8+'Res-Appliance class'!$D46*'RES S curve-disconnect'!BZ$13+'Res-Appliance class'!$E46*'RES S curve-disconnect'!BZ$18","v":-1208.9761067221302},{"$f":"'Res-Appliance class'!$B46*'RES S curve-disconnect'!CA$3+'Res-Appliance class'!$C46*'RES S curve-disconnect'!CA$8+'Res-Appliance class'!$D46*'RES S curve-disconnect'!CA$13+'Res-Appliance class'!$E46*'RES S curve-disconnect'!CA$18","v":-1196.1323799490565},{"$f":"'Res-Appliance class'!$B46*'RES S curve-disconnect'!CB$3+'Res-Appliance class'!$C46*'RES S curve-disconnect'!CB$8+'Res-Appliance class'!$D46*'RES S curve-disconnect'!CB$13+'Res-Appliance class'!$E46*'RES S curve-disconnect'!CB$18","v":-1187.3219826465674},{"$f":"'Res-Appliance class'!$B46*'RES S curve-disconnect'!CC$3+'Res-Appliance class'!$C46*'RES S curve-disconnect'!CC$8+'Res-Appliance class'!$D46*'RES S curve-disconnect'!CC$13+'Res-Appliance class'!$E46*'RES S curve-disconnect'!CC$18","v":-1178.5226404267269},{"$f":"'Res-Appliance class'!$B46*'RES S curve-disconnect'!CD$3+'Res-Appliance class'!$C46*'RES S curve-disconnect'!CD$8+'Res-Appliance class'!$D46*'RES S curve-disconnect'!CD$13+'Res-Appliance class'!$E46*'RES S curve-disconnect'!CD$18","v":-1313.7648317184219}]
[]
["LGA Medium",2020,{"$f":"B204+1","v":2021},{"$f":"C204+1","v":2022},{"$f":"D204+1","v":2023},{"$f":"E204+1","v":2024},{"$f":"F204+1","v":2025},{"$f":"G204+1","v":2026},{"$f":"H204+1","v":2027},{"$f":"I204+1","v":2028},{"$f":"J204+1","v":2029},{"$f":"K204+1","v":2030},{"$f":"L204+1","v":2031},{"$f":"M204+1","v":2032},{"$f":"N204+1","v":2033},{"$f":"O204+1","v":2034},{"$f":"P204+1","v":2035},{"$f":"Q204+1","v":2036},{"$f":"R204+1","v":2037},{"$f":"S204+1","v":2038},{"$f":"T204+1","v":2039},{"$f":"U204+1","v":2040},{"$f":"V204+1","v":2041},{"$f":"W204+1","v":2042},{"$f":"X204+1","v":2043},{"$f":"Y204+1","v":2044},{"$f":"Z204+1","v":2045},{"$f":"AA204+1","v":2046},{"$f":"AB204+1","v":2047},{"$f":"AC204+1","v":2048},{"$f":"AD204+1","v":2049},{"$f":"AE204+1","v":2050},{"$f":"AF204+1","v":2051},{"$f":"AG204+1","v":2052},{"$f":"AH204+1","v":2053},{"$f":"AI204+1","v":2054},{"$f":"AJ204+1","v":2055},{"$f":"AK204+1","v":2056},{"$f":"AL204+1","v":2057},{"$f":"AM204+1","v":2058},{"$f":"AN204+1","v":2059},{"$f":"AO204+1","v":2060},{"$f":"AP204+1","v":2061},{"$f":"AQ204+1","v":2062},{"$f":"AR204+1","v":2063},{"$f":"AS204+1","v":2064},{"$f":"AT204+1","v":2065},{"$f":"AU204+1","v":2066},{"$f":"AV204+1","v":2067},{"$f":"AW204+1","v":2068},{"$f":"AX204+1","v":2069},{"$f":"AY204+1","v":2070},{"$f":"AZ204+1","v":2071},{"$f":"BA204+1","v":2072},{"$f":"BB204+1","v":2073},{"$f":"BC204+1","v":2074},{"$f":"BD204+1","v":2075},{"$f":"BE204+1","v":2076},{"$f":"BF204+1","v":2077},{"$f":"BG204+1","v":2078},{"$f":"BH204+1","v":2079},{"$f":"BI204+1","v":2080},{"$f":"BJ204+1","v":2081},{"$f":"BK204+1","v":2082},{"$f":"BL204+1","v":2083},{"$f":"BM204+1","v":2084},{"$f":"BN204+1","v":2085},{"$f":"BO204+1","v":2086},{"$f":"BP204+1","v":2087},{"$f":"BQ204+1","v":2088},{"$f":"BR204+1","v":2089},{"$f":"BS204+1","v":2090},{"$f":"BT204+1","v":2091},{"$f":"BU204+1","v":2092},{"$f":"BV204+1","v":2093},{"$f":"BW204+1","v":2094},{"$f":"BX204+1","v":2095},{"$f":"BY204+1","v":2096},{"$f":"BZ204+1","v":2097},{"$f":"CA204+1","v":2098},{"$f":"CB204+1","v":2099},{"$f":"CC204+1","v":2100}]
["Bass Coast (S)",null,{"$f":"'Res-Appliance class'!$B27*'RES S curve-disconnect'!C$4+'Res-Appliance class'!$C27*'RES S curve-disconnect'!C$9+'Res-Appliance class'!$D27*'RES S curve-disconnect'!C$14+'Res-Appliance class'!$E27*'RES S curve-disconnect'!C$19","v":-3563.6331832114947},{"$f":"'Res-Appliance class'!$B27*'RES S curve-disconnect'!D$4+'Res-Appliance class'!$C27*'RES S curve-disconnect'!D$9+'Res-Appliance class'!$D27*'RES S curve-disconnect'!D$14+'Res-Appliance class'!$E27*'RES S curve-disconnect'!D$19","v":-3928.0160342089061},{"$f":"'Res-Appliance class'!$B27*'RES S curve-disconnect'!E$4+'Res-Appliance class'!$C27*'RES S curve-disconnect'!E$9+'Res-Appliance class'!$D27*'RES S curve-disconnect'!E$14+'Res-Appliance class'!$E27*'RES S curve-disconnect'!E$19","v":-3498.971722825896},{"$f":"'Res-Appliance class'!$B27*'RES S curve-disconnect'!F$4+'Res-Appliance class'!$C27*'RES S curve-disconnect'!F$9+'Res-Appliance class'!$D27*'RES S curve-disconnect'!F$14+'Res-Appliance class'!$E27*'RES S curve-disconnect'!F$19","v":-3399.0866927649163},{"$f":"'Res-Appliance class'!$B27*'RES S curve-disconnect'!G$4+'Res-Appliance class'!$C27*'RES S curve-disconnect'!G$9+'Res-Appliance class'!$D27*'RES S curve-disconnect'!G$14+'Res-Appliance class'!$E27*'RES S curve-disconnect'!G$19","v":-4069.4372916932207},{"$f":"'Res-Appliance class'!$B27*'RES S curve-disconnect'!H$4+'Res-Appliance class'!$C27*'RES S curve-disconnect'!H$9+'Res-Appliance class'!$D27*'RES S curve-disconnect'!H$14+'Res-Appliance class'!$E27*'RES S curve-disconnect'!H$19","v":-4115.8569963457639},{"$f":"'Res-Appliance class'!$B27*'RES S curve-disconnect'!I$4+'Res-Appliance class'!$C27*'RES S curve-disconnect'!I$9+'Res-Appliance class'!$D27*'RES S curve-disconnect'!I$14+'Res-Appliance class'!$E27*'RES S curve-disconnect'!I$19","v":-3822.1299397585021},{"$f":"'Res-Appliance class'!$B27*'RES S curve-disconnect'!J$4+'Res-Appliance class'!$C27*'RES S curve-disconnect'!J$9+'Res-Appliance class'!$D27*'RES S curve-disconnect'!J$14+'Res-Appliance class'!$E27*'RES S curve-disconnect'!J$19","v":-4133.1775238175487},{"$f":"'Res-Appliance class'!$B27*'RES S curve-disconnect'!K$4+'Res-Appliance class'!$C27*'RES S curve-disconnect'!K$9+'Res-Appliance class'!$D27*'RES S curve-disconnect'!K$14+'Res-Appliance class'!$E27*'RES S curve-disconnect'!K$19","v":-3556.4785444421036},{"$f":"'Res-Appliance class'!$B27*'RES S curve-disconnect'!L$4+'Res-Appliance class'!$C27*'RES S curve-disconnect'!L$9+'Res-Appliance class'!$D27*'RES S curve-disconnect'!L$14+'Res-Appliance class'!$E27*'RES S curve-disconnect'!L$19","v":-3801.1215058734988},{"$f":"'Res-Appliance class'!$B27*'RES S curve-disconnect'!M$4+'Res-Appliance class'!$C27*'RES S curve-disconnect'!M$9+'Res-Appliance class'!$D27*'RES S curve-disconnect'!M$14+'Res-Appliance class'!$E27*'RES S curve-disconnect'!M$19","v":-4212.7019380501943},{"$f":"'Res-Appliance class'!$B27*'RES S curve-disconnect'!N$4+'Res-Appliance class'!$C27*'RES S curve-disconnect'!N$9+'Res-Appliance class'!$D27*'RES S curve-disconnect'!N$14+'Res-Appliance class'!$E27*'RES S curve-disconnect'!N$19","v":-4249.3242335787672},{"$f":"'Res-Appliance class'!$B27*'RES S curve-disconnect'!O$4+'Res-Appliance class'!$C27*'RES S curve-disconnect'!O$9+'Res-Appliance class'!$D27*'RES S curve-disconnect'!O$14+'Res-Appliance class'!$E27*'RES S curve-disconnect'!O$19","v":-3856.2841538189459},{"$f":"'Res-Appliance class'!$B27*'RES S curve-disconnect'!P$4+'Res-Appliance class'!$C27*'RES S curve-disconnect'!P$9+'Res-Appliance class'!$D27*'RES S curve-disconnect'!P$14+'Res-Appliance class'!$E27*'RES S curve-disconnect'!P$19","v":-3546.7475474196826},{"$f":"'Res-Appliance class'!$B27*'RES S curve-disconnect'!Q$4+'Res-Appliance class'!$C27*'RES S curve-disconnect'!Q$9+'Res-Appliance class'!$D27*'RES S curve-disconnect'!Q$14+'Res-Appliance class'!$E27*'RES S curve-disconnect'!Q$19","v":-3080.9840331358882},{"$f":"'Res-Appliance class'!$B27*'RES S curve-disconnect'!R$4+'Res-Appliance class'!$C27*'RES S curve-disconnect'!R$9+'Res-Appliance class'!$D27*'RES S curve-disconnect'!R$14+'Res-Appliance class'!$E27*'RES S curve-disconnect'!R$19","v":-2816.1149317145478},{"$f":"'Res-Appliance class'!$B27*'RES S curve-disconnect'!S$4+'Res-Appliance class'!$C27*'RES S curve-disconnect'!S$9+'Res-Appliance class'!$D27*'RES S curve-disconnect'!S$14+'Res-Appliance class'!$E27*'RES S curve-disconnect'!S$19","v":-2389.5054827117228},{"$f":"'Res-Appliance class'!$B27*'RES S curve-disconnect'!T$4+'Res-Appliance class'!$C27*'RES S curve-disconnect'!T$9+'Res-Appliance class'!$D27*'RES S curve-disconnect'!T$14+'Res-Appliance class'!$E27*'RES S curve-disconnect'!T$19","v":-2171.740333181755},{"$f":"'Res-Appliance class'!$B27*'RES S curve-disconnect'!U$4+'Res-Appliance class'!$C27*'RES S curve-disconnect'!U$9+'Res-Appliance class'!$D27*'RES S curve-disconnect'!U$14+'Res-Appliance class'!$E27*'RES S curve-disconnect'!U$19","v":-1912.6212180531747},{"$f":"'Res-Appliance class'!$B27*'RES S curve-disconnect'!V$4+'Res-Appliance class'!$C27*'RES S curve-disconnect'!V$9+'Res-Appliance class'!$D27*'RES S curve-disconnect'!V$14+'Res-Appliance class'!$E27*'RES S curve-disconnect'!V$19","v":-1731.0549222607074},{"$f":"'Res-Appliance class'!$B27*'RES S curve-disconnect'!W$4+'Res-Appliance class'!$C27*'RES S curve-disconnect'!W$9+'Res-Appliance class'!$D27*'RES S curve-disconnect'!W$14+'Res-Appliance class'!$E27*'RES S curve-disconnect'!W$19","v":-1588.7843292113912},{"$f":"'Res-Appliance class'!$B27*'RES S curve-disconnect'!X$4+'Res-Appliance class'!$C27*'RES S curve-disconnect'!X$9+'Res-Appliance class'!$D27*'RES S curve-disconnect'!X$14+'Res-Appliance class'!$E27*'RES S curve-disconnect'!X$19","v":-1278.2445334897109},{"$f":"'Res-Appliance class'!$B27*'RES S curve-disconnect'!Y$4+'Res-Appliance class'!$C27*'RES S curve-disconnect'!Y$9+'Res-Appliance class'!$D27*'RES S curve-disconnect'!Y$14+'Res-Appliance class'!$E27*'RES S curve-disconnect'!Y$19","v":-962.45855484969115},{"$f":"'Res-Appliance class'!$B27*'RES S curve-disconnect'!Z$4+'Res-Appliance class'!$C27*'RES S curve-disconnect'!Z$9+'Res-Appliance class'!$D27*'RES S curve-disconnect'!Z$14+'Res-Appliance class'!$E27*'RES S curve-disconnect'!Z$19","v":-746.7037073125266},{"$f":"'Res-Appliance class'!$B27*'RES S curve-disconnect'!AA$4+'Res-Appliance class'!$C27*'RES S curve-disconnect'!AA$9+'Res-Appliance class'!$D27*'RES S curve-disconnect'!AA$14+'Res-Appliance class'!$E27*'RES S curve-disconnect'!AA$19","v":-529.06034362898356},{"$f":"'Res-Appliance class'!$B27*'RES S curve-disconnect'!AB$4+'Res-Appliance class'!$C27*'RES S curve-disconnect'!AB$9+'Res-Appliance class'!$D27*'RES S curve-disconnect'!AB$14+'Res-Appliance class'!$E27*'RES S curve-disconnect'!AB$19","v":-353.83027029860904},{"$f":"'Res-Appliance class'!$B27*'RES S curve-disconnect'!AC$4+'Res-Appliance class'!$C27*'RES S curve-disconnect'!AC$9+'Res-Appliance class'!$D27*'RES S curve-disconnect'!AC$14+'Res-Appliance class'!$E27*'RES S curve-disconnect'!AC$19","v":-183.68437818385081},{"$f":"'Res-Appliance class'!$B27*'RES S curve-disconnect'!AD$4+'Res-Appliance class'!$C27*'RES S curve-disconnect'!AD$9+'Res-Appliance class'!$D27*'RES S curve-disconnect'!AD$14+'Res-Appliance class'!$E27*'RES S curve-disconnect'!AD$19","v":-27.296792873440495},{"$f":"'Res-Appliance class'!$B27*'RES S curve-disconnect'!AE$4+'Res-Appliance class'!$C27*'RES S curve-disconnect'!AE$9+'Res-Appliance class'!$D27*'RES S curve-disconnect'!AE$14+'Res-Appliance class'!$E27*'RES S curve-disconnect'!AE$19","v":139.54685585922391},{"$f":"'Res-Appliance class'!$B27*'RES S curve-disconnect'!AF$4+'Res-Appliance class'!$C27*'RES S curve-disconnect'!AF$9+'Res-Appliance class'!$D27*'RES S curve-disconnect'!AF$14+'Res-Appliance class'!$E27*'RES S curve-disconnect'!AF$19","v":351.12226204402606},{"$f":"'Res-Appliance class'!$B27*'RES S curve-disconnect'!AG$4+'Res-Appliance class'!$C27*'RES S curve-disconnect'!AG$9+'Res-Appliance class'!$D27*'RES S curve-disconnect'!AG$14+'Res-Appliance class'!$E27*'RES S curve-disconnect'!AG$19","v":495.61229509915955},{"$f":"'Res-Appliance class'!$B27*'RES S curve-disconnect'!AH$4+'Res-Appliance class'!$C27*'RES S curve-disconnect'!AH$9+'Res-Appliance class'!$D27*'RES S curve-disconnect'!AH$14+'Res-Appliance class'!$E27*'RES S curve-disconnect'!AH$19","v":693.61395751345606},{"$f":"'Res-Appliance class'!$B27*'RES S curve-disconnect'!AI$4+'Res-Appliance class'!$C27*'RES S curve-disconnect'!AI$9+'Res-Appliance class'!$D27*'RES S curve-disconnect'!AI$14+'Res-Appliance class'!$E27*'RES S curve-disconnect'!AI$19","v":876.44570166669041},{"$f":"'Res-Appliance class'!$B27*'RES S curve-disconnect'!AJ$4+'Res-Appliance class'!$C27*'RES S curve-disconnect'!AJ$9+'Res-Appliance class'!$D27*'RES S curve-disconnect'!AJ$14+'Res-Appliance class'!$E27*'RES S curve-disconnect'!AJ$19","v":1040.44015248296},{"$f":"'Res-Appliance class'!$B27*'RES S curve-disconnect'!AK$4+'Res-Appliance class'!$C27*'RES S curve-disconnect'!AK$9+'Res-Appliance class'!$D27*'RES S curve-disconnect'!AK$14+'Res-Appliance class'!$E27*'RES S curve-disconnect'!AK$19","v":1214.715727742974},{"$f":"'Res-Appliance class'!$B27*'RES S curve-disconnect'!AL$4+'Res-Appliance class'!$C27*'RES S curve-disconnect'!AL$9+'Res-Appliance class'!$D27*'RES S curve-disconnect'!AL$14+'Res-Appliance class'!$E27*'RES S curve-disconnect'!AL$19","v":598.42486877186252},{"$f":"'Res-Appliance class'!$B27*'RES S curve-disconnect'!AM$4+'Res-Appliance class'!$C27*'RES S curve-disconnect'!AM$9+'Res-Appliance class'!$D27*'RES S curve-disconnect'!AM$14+'Res-Appliance class'!$E27*'RES S curve-disconnect'!AM$19","v":525.01941917956606},{"$f":"'Res-Appliance class'!$B27*'RES S curve-disconnect'!AN$4+'Res-Appliance class'!$C27*'RES S curve-disconnect'!AN$9+'Res-Appliance class'!$D27*'RES S curve-disconnect'!AN$14+'Res-Appliance class'!$E27*'RES S curve-disconnect'!AN$19","v":693.71144561963445},{"$f":"'Res-Appliance class'!$B27*'RES S curve-disconnect'!AO$4+'Res-Appliance class'!$C27*'RES S curve-disconnect'!AO$9+'Res-Appliance class'!$D27*'RES S curve-disconnect'!AO$14+'Res-Appliance class'!$E27*'RES S curve-disconnect'!AO$19","v":896.5412067711178},{"$f":"'Res-Appliance class'!$B27*'RES S curve-disconnect'!AP$4+'Res-Appliance class'!$C27*'RES S curve-disconnect'!AP$9+'Res-Appliance class'!$D27*'RES S curve-disconnect'!AP$14+'Res-Appliance class'!$E27*'RES S curve-disconnect'!AP$19","v":1081.853503992332},{"$f":"'Res-Appliance class'!$B27*'RES S curve-disconnect'!AQ$4+'Res-Appliance class'!$C27*'RES S curve-disconnect'!AQ$9+'Res-Appliance class'!$D27*'RES S curve-disconnect'!AQ$14+'Res-Appliance class'!$E27*'RES S curve-disconnect'!AQ$19","v":1283.4655539948776},{"$f":"'Res-Appliance class'!$B27*'RES S curve-disconnect'!AR$4+'Res-Appliance class'!$C27*'RES S curve-disconnect'!AR$9+'Res-Appliance class'!$D27*'RES S curve-disconnect'!AR$14+'Res-Appliance class'!$E27*'RES S curve-disconnect'!AR$19","v":1503.6155861396273},{"$f":"'Res-Appliance class'!$B27*'RES S curve-disconnect'!AS$4+'Res-Appliance class'!$C27*'RES S curve-disconnect'!AS$9+'Res-Appliance class'!$D27*'RES S curve-disconnect'!AS$14+'Res-Appliance class'!$E27*'RES S curve-disconnect'!AS$19","v":1750.3421571013121},{"$f":"'Res-Appliance class'!$B27*'RES S curve-disconnect'!AT$4+'Res-Appliance class'!$C27*'RES S curve-disconnect'!AT$9+'Res-Appliance class'!$D27*'RES S curve-disconnect'!AT$14+'Res-Appliance class'!$E27*'RES S curve-disconnect'!AT$19","v":2024.9203129237342},{"$f":"'Res-Appliance class'!$B27*'RES S curve-disconnect'!AU$4+'Res-Appliance class'!$C27*'RES S curve-disconnect'!AU$9+'Res-Appliance class'!$D27*'RES S curve-disconnect'!AU$14+'Res-Appliance class'!$E27*'RES S curve-disconnect'!AU$19","v":2344.282525181462},{"$f":"'Res-Appliance class'!$B27*'RES S curve-disconnect'!AV$4+'Res-Appliance class'!$C27*'RES S curve-disconnect'!AV$9+'Res-Appliance class'!$D27*'RES S curve-disconnect'!AV$14+'Res-Appliance class'!$E27*'RES S curve-disconnect'!AV$19","v":2706.83452561799},{"$f":"'Res-Appliance class'!$B27*'RES S curve-disconnect'!AW$4+'Res-Appliance class'!$C27*'RES S curve-disconnect'!AW$9+'Res-Appliance class'!$D27*'RES S curve-disconnect'!AW$14+'Res-Appliance class'!$E27*'RES S curve-disconnect'!AW$19","v":3122.7407730413188},{"$f":"'Res-Appliance class'!$B27*'RES S curve-disconnect'!AX$4+'Res-Appliance class'!$C27*'RES S curve-disconnect'!AX$9+'Res-Appliance class'!$D27*'RES S curve-disconnect'!AX$14+'Res-Appliance class'!$E27*'RES S curve-disconnect'!AX$19","v":3594.6458026412902},{"$f":"'Res-Appliance class'!$B27*'RES S curve-disconnect'!AY$4+'Res-Appliance class'!$C27*'RES S curve-disconnect'!AY$9+'Res-Appliance class'!$D27*'RES S curve-disconnect'!AY$14+'Res-Appliance class'!$E27*'RES S curve-disconnect'!AY$19","v":4140.0052174073326},{"$f":"'Res-Appliance class'!$B27*'RES S curve-disconnect'!AZ$4+'Res-Appliance class'!$C27*'RES S curve-disconnect'!AZ$9+'Res-Appliance class'!$D27*'RES S curve-disconnect'!AZ$14+'Res-Appliance class'!$E27*'RES S curve-disconnect'!AZ$19","v":4760.6750008891413},{"$f":"'Res-Appliance class'!$B27*'RES S curve-disconnect'!BA$4+'Res-Appliance class'!$C27*'RES S curve-disconnect'!BA$9+'Res-Appliance class'!$D27*'RES S curve-disconnect'!BA$14+'Res-Appliance class'!$E27*'RES S curve-disconnect'!BA$19","v":5477.580979971488},{"$f":"'Res-Appliance class'!$B27*'RES S curve-disconnect'!BB$4+'Res-Appliance class'!$C27*'RES S curve-disconnect'!BB$9+'Res-Appliance class'!$D27*'RES S curve-disconnect'!BB$14+'Res-Appliance class'!$E27*'RES S curve-disconnect'!BB$19","v":6311.8157748265148},{"$f":"'Res-Appliance class'!$B27*'RES S curve-disconnect'!BC$4+'Res-Appliance class'!$C27*'RES S curve-disconnect'!BC$9+'Res-Appliance class'!$D27*'RES S curve-disconnect'!BC$14+'Res-Appliance class'!$E27*'RES S curve-disconnect'!BC$19","v":7306.0484897711158},{"$f":"'Res-Appliance class'!$B27*'RES S curve-disconnect'!BD$4+'Res-Appliance class'!$C27*'RES S curve-disconnect'!BD$9+'Res-Appliance class'!$D27*'RES S curve-disconnect'!BD$14+'Res-Appliance class'!$E27*'RES S curve-disconnect'!BD$19","v":8256.5682431570094},{"$f":"'Res-Appliance class'!$B27*'RES S curve-disconnect'!BE$4+'Res-Appliance class'!$C27*'RES S curve-disconnect'!BE$9+'Res-Appliance class'!$D27*'RES S curve-disconnect'!BE$14+'Res-Appliance class'!$E27*'RES S curve-disconnect'!BE$19","v":9122.472450086927},{"$f":"'Res-Appliance class'!$B27*'RES S curve-disconnect'!BF$4+'Res-Appliance class'!$C27*'RES S curve-disconnect'!BF$9+'Res-Appliance class'!$D27*'RES S curve-disconnect'!BF$14+'Res-Appliance class'!$E27*'RES S curve-disconnect'!BF$19","v":10009.306952285864},{"$f":"'Res-Appliance class'!$B27*'RES S curve-disconnect'!BG$4+'Res-Appliance class'!$C27*'RES S curve-disconnect'!BG$9+'Res-Appliance class'!$D27*'RES S curve-disconnect'!BG$14+'Res-Appliance class'!$E27*'RES S curve-disconnect'!BG$19","v":11016.25055161793},{"$f":"'Res-Appliance class'!$B27*'RES S curve-disconnect'!BH$4+'Res-Appliance class'!$C27*'RES S curve-disconnect'!BH$9+'Res-Appliance class'!$D27*'RES S curve-disconnect'!BH$14+'Res-Appliance class'!$E27*'RES S curve-disconnect'!BH$19","v":12209.611494342855},{"$f":"'Res-Appliance class'!$B27*'RES S curve-disconnect'!BI$4+'Res-Appliance class'!$C27*'RES S curve-disconnect'!BI$9+'Res-Appliance class'!$D27*'RES S curve-disconnect'!BI$14+'Res-Appliance class'!$E27*'RES S curve-disconnect'!BI$19","v":13940.813512193357},{"$f":"'Res-Appliance class'!$B27*'RES S curve-disconnect'!BJ$4+'Res-Appliance class'!$C27*'RES S curve-disconnect'!BJ$9+'Res-Appliance class'!$D27*'RES S curve-disconnect'!BJ$14+'Res-Appliance class'!$E27*'RES S curve-disconnect'!BJ$19","v":16466.315694514327},{"$f":"'Res-Appliance class'!$B27*'RES S curve-disconnect'!BK$4+'Res-Appliance class'!$C27*'RES S curve-disconnect'!BK$9+'Res-Appliance class'!$D27*'RES S curve-disconnect'!BK$14+'Res-Appliance class'!$E27*'RES S curve-disconnect'!BK$19","v":20178.796910224053},{"$f":"'Res-Appliance class'!$B27*'RES S curve-disconnect'!BL$4+'Res-Appliance class'!$C27*'RES S curve-disconnect'!BL$9+'Res-Appliance class'!$D27*'RES S curve-disconnect'!BL$14+'Res-Appliance class'!$E27*'RES S curve-disconnect'!BL$19","v":-1644.0755405607295},{"$f":"'Res-Appliance class'!$B27*'RES S curve-disconnect'!BM$4+'Res-Appliance class'!$C27*'RES S curve-disconnect'!BM$9+'Res-Appliance class'!$D27*'RES S curve-disconnect'!BM$14+'Res-Appliance class'!$E27*'RES S curve-disconnect'!BM$19","v":-1639.2468879986689},{"$f":"'Res-Appliance class'!$B27*'RES S curve-disconnect'!BN$4+'Res-Appliance class'!$C27*'RES S curve-disconnect'!BN$9+'Res-Appliance class'!$D27*'RES S curve-disconnect'!BN$14+'Res-Appliance class'!$E27*'RES S curve-disconnect'!BN$19","v":-1637.7665407059053},{"$f":"'Res-Appliance class'!$B27*'RES S curve-disconnect'!BO$4+'Res-Appliance class'!$C27*'RES S curve-disconnect'!BO$9+'Res-Appliance class'!$D27*'RES S curve-disconnect'!BO$14+'Res-Appliance class'!$E27*'RES S curve-disconnect'!BO$19","v":-1629.6131906020657},{"$f":"'Res-Appliance class'!$B27*'RES S curve-disconnect'!BP$4+'Res-Appliance class'!$C27*'RES S curve-disconnect'!BP$9+'Res-Appliance class'!$D27*'RES S curve-disconnect'!BP$14+'Res-Appliance class'!$E27*'RES S curve-disconnect'!BP$19","v":-1624.808049015096},{"$f":"'Res-Appliance class'!$B27*'RES S curve-disconnect'!BQ$4+'Res-Appliance class'!$C27*'RES S curve-disconnect'!BQ$9+'Res-Appliance class'!$D27*'RES S curve-disconnect'!BQ$14+'Res-Appliance class'!$E27*'RES S curve-disconnect'!BQ$19","v":-1620.0106481737325},{"$f":"'Res-Appliance class'!$B27*'RES S curve-disconnect'!BR$4+'Res-Appliance class'!$C27*'RES S curve-disconnect'!BR$9+'Res-Appliance class'!$D27*'RES S curve-disconnect'!BR$14+'Res-Appliance class'!$E27*'RES S curve-disconnect'!BR$19","v":-1618.5613603089366},{"$f":"'Res-Appliance class'!$B27*'RES S curve-disconnect'!BS$4+'Res-Appliance class'!$C27*'RES S curve-disconnect'!BS$9+'Res-Appliance class'!$D27*'RES S curve-disconnect'!BS$14+'Res-Appliance class'!$E27*'RES S curve-disconnect'!BS$19","v":-1610.4388785486278},{"$f":"'Res-Appliance class'!$B27*'RES S curve-disconnect'!BT$4+'Res-Appliance class'!$C27*'RES S curve-disconnect'!BT$9+'Res-Appliance class'!$D27*'RES S curve-disconnect'!BT$14+'Res-Appliance class'!$E27*'RES S curve-disconnect'!BT$19","v":-1605.6644154213723},{"$f":"'Res-Appliance class'!$B27*'RES S curve-disconnect'!BU$4+'Res-Appliance class'!$C27*'RES S curve-disconnect'!BU$9+'Res-Appliance class'!$D27*'RES S curve-disconnect'!BU$14+'Res-Appliance class'!$E27*'RES S curve-disconnect'!BU$19","v":-1600.8975043489099},{"$f":"'Res-Appliance class'!$B27*'RES S curve-disconnect'!BV$4+'Res-Appliance class'!$C27*'RES S curve-disconnect'!BV$9+'Res-Appliance class'!$D27*'RES S curve-disconnect'!BV$14+'Res-Appliance class'!$E27*'RES S curve-disconnect'!BV$19","v":-1599.4785187476355},{"$f":"'Res-Appliance class'!$B27*'RES S curve-disconnect'!BW$4+'Res-Appliance class'!$C27*'RES S curve-disconnect'!BW$9+'Res-Appliance class'!$D27*'RES S curve-disconnect'!BW$14+'Res-Appliance class'!$E27*'RES S curve-disconnect'!BW$19","v":-1591.3861529233754},{"$f":"'Res-Appliance class'!$B27*'RES S curve-disconnect'!BX$4+'Res-Appliance class'!$C27*'RES S curve-disconnect'!BX$9+'Res-Appliance class'!$D27*'RES S curve-disconnect'!BX$14+'Res-Appliance class'!$E27*'RES S curve-disconnect'!BX$19","v":-1586.6416205751341},{"$f":"'Res-Appliance class'!$B27*'RES S curve-disconnect'!BY$4+'Res-Appliance class'!$C27*'RES S curve-disconnect'!BY$9+'Res-Appliance class'!$D27*'RES S curve-disconnect'!BY$14+'Res-Appliance class'!$E27*'RES S curve-disconnect'!BY$19","v":-1581.9044562876602},{"$f":"'Res-Appliance class'!$B27*'RES S curve-disconnect'!BZ$4+'Res-Appliance class'!$C27*'RES S curve-disconnect'!BZ$9+'Res-Appliance class'!$D27*'RES S curve-disconnect'!BZ$14+'Res-Appliance class'!$E27*'RES S curve-disconnect'!BZ$19","v":-1580.5150346329758},{"$f":"'Res-Appliance class'!$B27*'RES S curve-disconnect'!CA$4+'Res-Appliance class'!$C27*'RES S curve-disconnect'!CA$9+'Res-Appliance class'!$D27*'RES S curve-disconnect'!CA$14+'Res-Appliance class'!$E27*'RES S curve-disconnect'!CA$19","v":-1572.4520510652062},{"$f":"'Res-Appliance class'!$B27*'RES S curve-disconnect'!CB$4+'Res-Appliance class'!$C27*'RES S curve-disconnect'!CB$9+'Res-Appliance class'!$D27*'RES S curve-disconnect'!CB$14+'Res-Appliance class'!$E27*'RES S curve-disconnect'!CB$19","v":-1567.7367204243651},{"$f":"'Res-Appliance class'!$B27*'RES S curve-disconnect'!CC$4+'Res-Appliance class'!$C27*'RES S curve-disconnect'!CC$9+'Res-Appliance class'!$D27*'RES S curve-disconnect'!CC$14+'Res-Appliance class'!$E27*'RES S curve-disconnect'!CC$19","v":-1563.0285784289736},{"$f":"'Res-Appliance class'!$B27*'RES S curve-disconnect'!CD$4+'Res-Appliance class'!$C27*'RES S curve-disconnect'!CD$9+'Res-Appliance class'!$D27*'RES S curve-disconnect'!CD$14+'Res-Appliance class'!$E27*'RES S curve-disconnect'!CD$19","v":-1631.9670678184893}]
["Bayside (C)",null,{"$f":"'Res-Appliance class'!$B28*'RES S curve-disconnect'!C$4+'Res-Appliance class'!$C28*'RES S curve-disconnect'!C$9+'Res-Appliance class'!$D28*'RES S curve-disconnect'!C$14+'Res-Appliance class'!$E28*'RES S curve-disconnect'!C$19","v":-4744.801946203519},{"$f":"'Res-Appliance class'!$B28*'RES S curve-disconnect'!D$4+'Res-Appliance class'!$C28*'RES S curve-disconnect'!D$9+'Res-Appliance class'!$D28*'RES S curve-disconnect'!D$14+'Res-Appliance class'!$E28*'RES S curve-disconnect'!D$19","v":-5253.9438318143075},{"$f":"'Res-Appliance class'!$B28*'RES S curve-disconnect'!E$4+'Res-Appliance class'!$C28*'RES S curve-disconnect'!E$9+'Res-Appliance class'!$D28*'RES S curve-disconnect'!E$14+'Res-Appliance class'!$E28*'RES S curve-disconnect'!E$19","v":-4547.9875631305422},{"$f":"'Res-Appliance class'!$B28*'RES S curve-disconnect'!F$4+'Res-Appliance class'!$C28*'RES S curve-disconnect'!F$9+'Res-Appliance class'!$D28*'RES S curve-disconnect'!F$14+'Res-Appliance class'!$E28*'RES S curve-disconnect'!F$19","v":-4396.1066154838845},{"$f":"'Res-Appliance class'!$B28*'RES S curve-disconnect'!G$4+'Res-Appliance class'!$C28*'RES S curve-disconnect'!G$9+'Res-Appliance class'!$D28*'RES S curve-disconnect'!G$14+'Res-Appliance class'!$E28*'RES S curve-disconnect'!G$19","v":-5594.8617156901182},{"$f":"'Res-Appliance class'!$B28*'RES S curve-disconnect'!H$4+'Res-Appliance class'!$C28*'RES S curve-disconnect'!H$9+'Res-Appliance class'!$D28*'RES S curve-disconnect'!H$14+'Res-Appliance class'!$E28*'RES S curve-disconnect'!H$19","v":-5624.5547380419266},{"$f":"'Res-Appliance class'!$B28*'RES S curve-disconnect'!I$4+'Res-Appliance class'!$C28*'RES S curve-disconnect'!I$9+'Res-Appliance class'!$D28*'RES S curve-disconnect'!I$14+'Res-Appliance class'!$E28*'RES S curve-disconnect'!I$19","v":-5193.5411053401831},{"$f":"'Res-Appliance class'!$B28*'RES S curve-disconnect'!J$4+'Res-Appliance class'!$C28*'RES S curve-disconnect'!J$9+'Res-Appliance class'!$D28*'RES S curve-disconnect'!J$14+'Res-Appliance class'!$E28*'RES S curve-disconnect'!J$19","v":-5526.9140510512589},{"$f":"'Res-Appliance class'!$B28*'RES S curve-disconnect'!K$4+'Res-Appliance class'!$C28*'RES S curve-disconnect'!K$9+'Res-Appliance class'!$D28*'RES S curve-disconnect'!K$14+'Res-Appliance class'!$E28*'RES S curve-disconnect'!K$19","v":-4715.0952960257882},{"$f":"'Res-Appliance class'!$B28*'RES S curve-disconnect'!L$4+'Res-Appliance class'!$C28*'RES S curve-disconnect'!L$9+'Res-Appliance class'!$D28*'RES S curve-disconnect'!L$14+'Res-Appliance class'!$E28*'RES S curve-disconnect'!L$19","v":-5061.0582756193526},{"$f":"'Res-Appliance class'!$B28*'RES S curve-disconnect'!M$4+'Res-Appliance class'!$C28*'RES S curve-disconnect'!M$9+'Res-Appliance class'!$D28*'RES S curve-disconnect'!M$14+'Res-Appliance class'!$E28*'RES S curve-disconnect'!M$19","v":-5689.2224968130686},{"$f":"'Res-Appliance class'!$B28*'RES S curve-disconnect'!N$4+'Res-Appliance class'!$C28*'RES S curve-disconnect'!N$9+'Res-Appliance class'!$D28*'RES S curve-disconnect'!N$14+'Res-Appliance class'!$E28*'RES S curve-disconnect'!N$19","v":-5746.6301463973232},{"$f":"'Res-Appliance class'!$B28*'RES S curve-disconnect'!O$4+'Res-Appliance class'!$C28*'RES S curve-disconnect'!O$9+'Res-Appliance class'!$D28*'RES S curve-disconnect'!O$14+'Res-Appliance class'!$E28*'RES S curve-disconnect'!O$19","v":-5187.9174882243233},{"$f":"'Res-Appliance class'!$B28*'RES S curve-disconnect'!P$4+'Res-Appliance class'!$C28*'RES S curve-disconnect'!P$9+'Res-Appliance class'!$D28*'RES S curve-disconnect'!P$14+'Res-Appliance class'!$E28*'RES S curve-disconnect'!P$19","v":-4742.7418659787108},{"$f":"'Res-Appliance class'!$B28*'RES S curve-disconnect'!Q$4+'Res-Appliance class'!$C28*'RES S curve-disconnect'!Q$9+'Res-Appliance class'!$D28*'RES S curve-disconnect'!Q$14+'Res-Appliance class'!$E28*'RES S curve-disconnect'!Q$19","v":-4071.1166225706193},{"$f":"'Res-Appliance class'!$B28*'RES S curve-disconnect'!R$4+'Res-Appliance class'!$C28*'RES S curve-disconnect'!R$9+'Res-Appliance class'!$D28*'RES S curve-disconnect'!R$14+'Res-Appliance class'!$E28*'RES S curve-disconnect'!R$19","v":-3689.5908211491032},{"$f":"'Res-Appliance class'!$B28*'RES S curve-disconnect'!S$4+'Res-Appliance class'!$C28*'RES S curve-disconnect'!S$9+'Res-Appliance class'!$D28*'RES S curve-disconnect'!S$14+'Res-Appliance class'!$E28*'RES S curve-disconnect'!S$19","v":-3083.6753816630307},{"$f":"'Res-Appliance class'!$B28*'RES S curve-disconnect'!T$4+'Res-Appliance class'!$C28*'RES S curve-disconnect'!T$9+'Res-Appliance class'!$D28*'RES S curve-disconnect'!T$14+'Res-Appliance class'!$E28*'RES S curve-disconnect'!T$19","v":-2754.0867039581171},{"$f":"'Res-Appliance class'!$B28*'RES S curve-disconnect'!U$4+'Res-Appliance class'!$C28*'RES S curve-disconnect'!U$9+'Res-Appliance class'!$D28*'RES S curve-disconnect'!U$14+'Res-Appliance class'!$E28*'RES S curve-disconnect'!U$19","v":-2377.6043098585742},{"$f":"'Res-Appliance class'!$B28*'RES S curve-disconnect'!V$4+'Res-Appliance class'!$C28*'RES S curve-disconnect'!V$9+'Res-Appliance class'!$D28*'RES S curve-disconnect'!V$14+'Res-Appliance class'!$E28*'RES S curve-disconnect'!V$19","v":-2119.9375995722003},{"$f":"'Res-Appliance class'!$B28*'RES S curve-disconnect'!W$4+'Res-Appliance class'!$C28*'RES S curve-disconnect'!W$9+'Res-Appliance class'!$D28*'RES S curve-disconnect'!W$14+'Res-Appliance class'!$E28*'RES S curve-disconnect'!W$19","v":-1918.7200936406484},{"$f":"'Res-Appliance class'!$B28*'RES S curve-disconnect'!X$4+'Res-Appliance class'!$C28*'RES S curve-disconnect'!X$9+'Res-Appliance class'!$D28*'RES S curve-disconnect'!X$14+'Res-Appliance class'!$E28*'RES S curve-disconnect'!X$19","v":-1465.1215591784146},{"$f":"'Res-Appliance class'!$B28*'RES S curve-disconnect'!Y$4+'Res-Appliance class'!$C28*'RES S curve-disconnect'!Y$9+'Res-Appliance class'!$D28*'RES S curve-disconnect'!Y$14+'Res-Appliance class'!$E28*'RES S curve-disconnect'!Y$19","v":-1006.1490363249779},{"$f":"'Res-Appliance class'!$B28*'RES S curve-disconnect'!Z$4+'Res-Appliance class'!$C28*'RES S curve-disconnect'!Z$9+'Res-Appliance class'!$D28*'RES S curve-disconnect'!Z$14+'Res-Appliance class'!$E28*'RES S curve-disconnect'!Z$19","v":-694.91511353337285},{"$f":"'Res-Appliance class'!$B28*'RES S curve-disconnect'!AA$4+'Res-Appliance class'!$C28*'RES S curve-disconnect'!AA$9+'Res-Appliance class'!$D28*'RES S curve-disconnect'!AA$14+'Res-Appliance class'!$E28*'RES S curve-disconnect'!AA$19","v":-383.59191189309581},{"$f":"'Res-Appliance class'!$B28*'RES S curve-disconnect'!AB$4+'Res-Appliance class'!$C28*'RES S curve-disconnect'!AB$9+'Res-Appliance class'!$D28*'RES S curve-disconnect'!AB$14+'Res-Appliance class'!$E28*'RES S curve-disconnect'!AB$19","v":-134.68526135192874},{"$f":"'Res-Appliance class'!$B28*'RES S curve-disconnect'!AC$4+'Res-Appliance class'!$C28*'RES S curve-disconnect'!AC$9+'Res-Appliance class'!$D28*'RES S curve-disconnect'!AC$14+'Res-Appliance class'!$E28*'RES S curve-disconnect'!AC$19","v":105.21651850235634},{"$f":"'Res-Appliance class'!$B28*'RES S curve-disconnect'!AD$4+'Res-Appliance class'!$C28*'RES S curve-disconnect'!AD$9+'Res-Appliance class'!$D28*'RES S curve-disconnect'!AD$14+'Res-Appliance class'!$E28*'RES S curve-disconnect'!AD$19","v":325.39748438104738},{"$f":"'Res-Appliance class'!$B28*'RES S curve-disconnect'!AE$4+'Res-Appliance class'!$C28*'RES S curve-disconnect'!AE$9+'Res-Appliance class'!$D28*'RES S curve-disconnect'!AE$14+'Res-Appliance class'!$E28*'RES S curve-disconnect'!AE$19","v":556.84113154868407},{"$f":"'Res-Appliance class'!$B28*'RES S curve-disconnect'!AF$4+'Res-Appliance class'!$C28*'RES S curve-disconnect'!AF$9+'Res-Appliance class'!$D28*'RES S curve-disconnect'!AF$14+'Res-Appliance class'!$E28*'RES S curve-disconnect'!AF$19","v":855.73083889006978},{"$f":"'Res-Appliance class'!$B28*'RES S curve-disconnect'!AG$4+'Res-Appliance class'!$C28*'RES S curve-disconnect'!AG$9+'Res-Appliance class'!$D28*'RES S curve-disconnect'!AG$14+'Res-Appliance class'!$E28*'RES S curve-disconnect'!AG$19","v":1060.5410629007097},{"$f":"'Res-Appliance class'!$B28*'RES S curve-disconnect'!AH$4+'Res-Appliance class'!$C28*'RES S curve-disconnect'!AH$9+'Res-Appliance class'!$D28*'RES S curve-disconnect'!AH$14+'Res-Appliance class'!$E28*'RES S curve-disconnect'!AH$19","v":1348.5699844178744},{"$f":"'Res-Appliance class'!$B28*'RES S curve-disconnect'!AI$4+'Res-Appliance class'!$C28*'RES S curve-disconnect'!AI$9+'Res-Appliance class'!$D28*'RES S curve-disconnect'!AI$14+'Res-Appliance class'!$E28*'RES S curve-disconnect'!AI$19","v":1607.6402383465313},{"$f":"'Res-Appliance class'!$B28*'RES S curve-disconnect'!AJ$4+'Res-Appliance class'!$C28*'RES S curve-disconnect'!AJ$9+'Res-Appliance class'!$D28*'RES S curve-disconnect'!AJ$14+'Res-Appliance class'!$E28*'RES S curve-disconnect'!AJ$19","v":1841.4133085833457},{"$f":"'Res-Appliance class'!$B28*'RES S curve-disconnect'!AK$4+'Res-Appliance class'!$C28*'RES S curve-disconnect'!AK$9+'Res-Appliance class'!$D28*'RES S curve-disconnect'!AK$14+'Res-Appliance class'!$E28*'RES S curve-disconnect'!AK$19","v":2089.6028459337749},{"$f":"'Res-Appliance class'!$B28*'RES S curve-disconnect'!AL$4+'Res-Appliance class'!$C28*'RES S curve-disconnect'!AL$9+'Res-Appliance class'!$D28*'RES S curve-disconnect'!AL$14+'Res-Appliance class'!$E28*'RES S curve-disconnect'!AL$19","v":1229.9987893163984},{"$f":"'Res-Appliance class'!$B28*'RES S curve-disconnect'!AM$4+'Res-Appliance class'!$C28*'RES S curve-disconnect'!AM$9+'Res-Appliance class'!$D28*'RES S curve-disconnect'!AM$14+'Res-Appliance class'!$E28*'RES S curve-disconnect'!AM$19","v":1117.6528010925999},{"$f":"'Res-Appliance class'!$B28*'RES S curve-disconnect'!AN$4+'Res-Appliance class'!$C28*'RES S curve-disconnect'!AN$9+'Res-Appliance class'!$D28*'RES S curve-disconnect'!AN$14+'Res-Appliance class'!$E28*'RES S curve-disconnect'!AN$19","v":1352.6660744815701},{"$f":"'Res-Appliance class'!$B28*'RES S curve-disconnect'!AO$4+'Res-Appliance class'!$C28*'RES S curve-disconnect'!AO$9+'Res-Appliance class'!$D28*'RES S curve-disconnect'!AO$14+'Res-Appliance class'!$E28*'RES S curve-disconnect'!AO$19","v":1640.064625546059},{"$f":"'Res-Appliance class'!$B28*'RES S curve-disconnect'!AP$4+'Res-Appliance class'!$C28*'RES S curve-disconnect'!AP$9+'Res-Appliance class'!$D28*'RES S curve-disconnect'!AP$14+'Res-Appliance class'!$E28*'RES S curve-disconnect'!AP$19","v":1905.5504397149623},{"$f":"'Res-Appliance class'!$B28*'RES S curve-disconnect'!AQ$4+'Res-Appliance class'!$C28*'RES S curve-disconnect'!AQ$9+'Res-Appliance class'!$D28*'RES S curve-disconnect'!AQ$14+'Res-Appliance class'!$E28*'RES S curve-disconnect'!AQ$19","v":2191.4006772095545},{"$f":"'Res-Appliance class'!$B28*'RES S curve-disconnect'!AR$4+'Res-Appliance class'!$C28*'RES S curve-disconnect'!AR$9+'Res-Appliance class'!$D28*'RES S curve-disconnect'!AR$14+'Res-Appliance class'!$E28*'RES S curve-disconnect'!AR$19","v":2505.2569466431564},{"$f":"'Res-Appliance class'!$B28*'RES S curve-disconnect'!AS$4+'Res-Appliance class'!$C28*'RES S curve-disconnect'!AS$9+'Res-Appliance class'!$D28*'RES S curve-disconnect'!AS$14+'Res-Appliance class'!$E28*'RES S curve-disconnect'!AS$19","v":2857.4489569340167},{"$f":"'Res-Appliance class'!$B28*'RES S curve-disconnect'!AT$4+'Res-Appliance class'!$C28*'RES S curve-disconnect'!AT$9+'Res-Appliance class'!$D28*'RES S curve-disconnect'!AT$14+'Res-Appliance class'!$E28*'RES S curve-disconnect'!AT$19","v":3251.3985472467953},{"$f":"'Res-Appliance class'!$B28*'RES S curve-disconnect'!AU$4+'Res-Appliance class'!$C28*'RES S curve-disconnect'!AU$9+'Res-Appliance class'!$D28*'RES S curve-disconnect'!AU$14+'Res-Appliance class'!$E28*'RES S curve-disconnect'!AU$19","v":3707.167088699317},{"$f":"'Res-Appliance class'!$B28*'RES S curve-disconnect'!AV$4+'Res-Appliance class'!$C28*'RES S curve-disconnect'!AV$9+'Res-Appliance class'!$D28*'RES S curve-disconnect'!AV$14+'Res-Appliance class'!$E28*'RES S curve-disconnect'!AV$19","v":4227.0513310822598},{"$f":"'Res-Appliance class'!$B28*'RES S curve-disconnect'!AW$4+'Res-Appliance class'!$C28*'RES S curve-disconnect'!AW$9+'Res-Appliance class'!$D28*'RES S curve-disconnect'!AW$14+'Res-Appliance class'!$E28*'RES S curve-disconnect'!AW$19","v":4824.6172711031822},{"$f":"'Res-Appliance class'!$B28*'RES S curve-disconnect'!AX$4+'Res-Appliance class'!$C28*'RES S curve-disconnect'!AX$9+'Res-Appliance class'!$D28*'RES S curve-disconnect'!AX$14+'Res-Appliance class'!$E28*'RES S curve-disconnect'!AX$19","v":5505.6717764200002},{"$f":"'Res-Appliance class'!$B28*'RES S curve-disconnect'!AY$4+'Res-Appliance class'!$C28*'RES S curve-disconnect'!AY$9+'Res-Appliance class'!$D28*'RES S curve-disconnect'!AY$14+'Res-Appliance class'!$E28*'RES S curve-disconnect'!AY$19","v":6291.5166896634792},{"$f":"'Res-Appliance class'!$B28*'RES S curve-disconnect'!AZ$4+'Res-Appliance class'!$C28*'RES S curve-disconnect'!AZ$9+'Res-Appliance class'!$D28*'RES S curve-disconnect'!AZ$14+'Res-Appliance class'!$E28*'RES S curve-disconnect'!AZ$19","v":7189.8867014329999},{"$f":"'Res-Appliance class'!$B28*'RES S curve-disconnect'!BA$4+'Res-Appliance class'!$C28*'RES S curve-disconnect'!BA$9+'Res-Appliance class'!$D28*'RES S curve-disconnect'!BA$14+'Res-Appliance class'!$E28*'RES S curve-disconnect'!BA$19","v":8230.3055431678604},{"$f":"'Res-Appliance class'!$B28*'RES S curve-disconnect'!BB$4+'Res-Appliance class'!$C28*'RES S curve-disconnect'!BB$9+'Res-Appliance class'!$D28*'RES S curve-disconnect'!BB$14+'Res-Appliance class'!$E28*'RES S curve-disconnect'!BB$19","v":9445.8873583908498},{"$f":"'Res-Appliance class'!$B28*'RES S curve-disconnect'!BC$4+'Res-Appliance class'!$C28*'RES S curve-disconnect'!BC$9+'Res-Appliance class'!$D28*'RES S curve-disconnect'!BC$14+'Res-Appliance class'!$E28*'RES S curve-disconnect'!BC$19","v":10895.492606630354},{"$f":"'Res-Appliance class'!$B28*'RES S curve-disconnect'!BD$4+'Res-Appliance class'!$C28*'RES S curve-disconnect'!BD$9+'Res-Appliance class'!$D28*'RES S curve-disconnect'!BD$14+'Res-Appliance class'!$E28*'RES S curve-disconnect'!BD$19","v":12294.03837188662},{"$f":"'Res-Appliance class'!$B28*'RES S curve-disconnect'!BE$4+'Res-Appliance class'!$C28*'RES S curve-disconnect'!BE$9+'Res-Appliance class'!$D28*'RES S curve-disconnect'!BE$14+'Res-Appliance class'!$E28*'RES S curve-disconnect'!BE$19","v":13572.360458061445},{"$f":"'Res-Appliance class'!$B28*'RES S curve-disconnect'!BF$4+'Res-Appliance class'!$C28*'RES S curve-disconnect'!BF$9+'Res-Appliance class'!$D28*'RES S curve-disconnect'!BF$14+'Res-Appliance class'!$E28*'RES S curve-disconnect'!BF$19","v":14880.311550229259},{"$f":"'Res-Appliance class'!$B28*'RES S curve-disconnect'!BG$4+'Res-Appliance class'!$C28*'RES S curve-disconnect'!BG$9+'Res-Appliance class'!$D28*'RES S curve-disconnect'!BG$14+'Res-Appliance class'!$E28*'RES S curve-disconnect'!BG$19","v":16360.571565756642},{"$f":"'Res-Appliance class'!$B28*'RES S curve-disconnect'!BH$4+'Res-Appliance class'!$C28*'RES S curve-disconnect'!BH$9+'Res-Appliance class'!$D28*'RES S curve-disconnect'!BH$14+'Res-Appliance class'!$E28*'RES S curve-disconnect'!BH$19","v":18117.753085959532},{"$f":"'Res-Appliance class'!$B28*'RES S curve-disconnect'!BI$4+'Res-Appliance class'!$C28*'RES S curve-disconnect'!BI$9+'Res-Appliance class'!$D28*'RES S curve-disconnect'!BI$14+'Res-Appliance class'!$E28*'RES S curve-disconnect'!BI$19","v":20663.880068766674},{"$f":"'Res-Appliance class'!$B28*'RES S curve-disconnect'!BJ$4+'Res-Appliance class'!$C28*'RES S curve-disconnect'!BJ$9+'Res-Appliance class'!$D28*'RES S curve-disconnect'!BJ$14+'Res-Appliance class'!$E28*'RES S curve-disconnect'!BJ$19","v":24392.976451981234},{"$f":"'Res-Appliance class'!$B28*'RES S curve-disconnect'!BK$4+'Res-Appliance class'!$C28*'RES S curve-disconnect'!BK$9+'Res-Appliance class'!$D28*'RES S curve-disconnect'!BK$14+'Res-Appliance class'!$E28*'RES S curve-disconnect'!BK$19","v":29896.596284323048},{"$f":"'Res-Appliance class'!$B28*'RES S curve-disconnect'!BL$4+'Res-Appliance class'!$C28*'RES S curve-disconnect'!BL$9+'Res-Appliance class'!$D28*'RES S curve-disconnect'!BL$14+'Res-Appliance class'!$E28*'RES S curve-disconnect'!BL$19","v":-1914.5949666409715},{"$f":"'Res-Appliance class'!$B28*'RES S curve-disconnect'!BM$4+'Res-Appliance class'!$C28*'RES S curve-disconnect'!BM$9+'Res-Appliance class'!$D28*'RES S curve-disconnect'!BM$14+'Res-Appliance class'!$E28*'RES S curve-disconnect'!BM$19","v":-1907.6264213255736},{"$f":"'Res-Appliance class'!$B28*'RES S curve-disconnect'!BN$4+'Res-Appliance class'!$C28*'RES S curve-disconnect'!BN$9+'Res-Appliance class'!$D28*'RES S curve-disconnect'!BN$14+'Res-Appliance class'!$E28*'RES S curve-disconnect'!BN$19","v":-1904.0079938879155},{"$f":"'Res-Appliance class'!$B28*'RES S curve-disconnect'!BO$4+'Res-Appliance class'!$C28*'RES S curve-disconnect'!BO$9+'Res-Appliance class'!$D28*'RES S curve-disconnect'!BO$14+'Res-Appliance class'!$E28*'RES S curve-disconnect'!BO$19","v":-1893.7183663693168},{"$f":"'Res-Appliance class'!$B28*'RES S curve-disconnect'!BP$4+'Res-Appliance class'!$C28*'RES S curve-disconnect'!BP$9+'Res-Appliance class'!$D28*'RES S curve-disconnect'!BP$14+'Res-Appliance class'!$E28*'RES S curve-disconnect'!BP$19","v":-1886.7787402776453},{"$f":"'Res-Appliance class'!$B28*'RES S curve-disconnect'!BQ$4+'Res-Appliance class'!$C28*'RES S curve-disconnect'!BQ$9+'Res-Appliance class'!$D28*'RES S curve-disconnect'!BQ$14+'Res-Appliance class'!$E28*'RES S curve-disconnect'!BQ$19","v":-1879.8486380794257},{"$f":"'Res-Appliance class'!$B28*'RES S curve-disconnect'!BR$4+'Res-Appliance class'!$C28*'RES S curve-disconnect'!BR$9+'Res-Appliance class'!$D28*'RES S curve-disconnect'!BR$14+'Res-Appliance class'!$E28*'RES S curve-disconnect'!BR$19","v":-1876.268422300921},{"$f":"'Res-Appliance class'!$B28*'RES S curve-disconnect'!BS$4+'Res-Appliance class'!$C28*'RES S curve-disconnect'!BS$9+'Res-Appliance class'!$D28*'RES S curve-disconnect'!BS$14+'Res-Appliance class'!$E28*'RES S curve-disconnect'!BS$19","v":-1866.0167764225089},{"$f":"'Res-Appliance class'!$B28*'RES S curve-disconnect'!BT$4+'Res-Appliance class'!$C28*'RES S curve-disconnect'!BT$9+'Res-Appliance class'!$D28*'RES S curve-disconnect'!BT$14+'Res-Appliance class'!$E28*'RES S curve-disconnect'!BT$19","v":-1859.1149033820238},{"$f":"'Res-Appliance class'!$B28*'RES S curve-disconnect'!BU$4+'Res-Appliance class'!$C28*'RES S curve-disconnect'!BU$9+'Res-Appliance class'!$D28*'RES S curve-disconnect'!BU$14+'Res-Appliance class'!$E28*'RES S curve-disconnect'!BU$19","v":-1852.2223270669278},{"$f":"'Res-Appliance class'!$B28*'RES S curve-disconnect'!BV$4+'Res-Appliance class'!$C28*'RES S curve-disconnect'!BV$9+'Res-Appliance class'!$D28*'RES S curve-disconnect'!BV$14+'Res-Appliance class'!$E28*'RES S curve-disconnect'!BV$19","v":-1848.6794114154518},{"$f":"'Res-Appliance class'!$B28*'RES S curve-disconnect'!BW$4+'Res-Appliance class'!$C28*'RES S curve-disconnect'!BW$9+'Res-Appliance class'!$D28*'RES S curve-disconnect'!BW$14+'Res-Appliance class'!$E28*'RES S curve-disconnect'!BW$19","v":-1838.4648413110219},{"$f":"'Res-Appliance class'!$B28*'RES S curve-disconnect'!BX$4+'Res-Appliance class'!$C28*'RES S curve-disconnect'!BX$9+'Res-Appliance class'!$D28*'RES S curve-disconnect'!BX$14+'Res-Appliance class'!$E28*'RES S curve-disconnect'!BX$19","v":-1831.5998210856683},{"$f":"'Res-Appliance class'!$B28*'RES S curve-disconnect'!BY$4+'Res-Appliance class'!$C28*'RES S curve-disconnect'!BY$9+'Res-Appliance class'!$D28*'RES S curve-disconnect'!BY$14+'Res-Appliance class'!$E28*'RES S curve-disconnect'!BY$19","v":-1824.7438760122445},{"$f":"'Res-Appliance class'!$B28*'RES S curve-disconnect'!BZ$4+'Res-Appliance class'!$C28*'RES S curve-disconnect'!BZ$9+'Res-Appliance class'!$D28*'RES S curve-disconnect'!BZ$14+'Res-Appliance class'!$E28*'RES S curve-disconnect'!BZ$19","v":-1821.2373714056246},{"$f":"'Res-Appliance class'!$B28*'RES S curve-disconnect'!CA$4+'Res-Appliance class'!$C28*'RES S curve-disconnect'!CA$9+'Res-Appliance class'!$D28*'RES S curve-disconnect'!CA$14+'Res-Appliance class'!$E28*'RES S curve-disconnect'!CA$19","v":-1811.0589935171911},{"$f":"'Res-Appliance class'!$B28*'RES S curve-disconnect'!CB$4+'Res-Appliance class'!$C28*'RES S curve-disconnect'!CB$9+'Res-Appliance class'!$D28*'RES S curve-disconnect'!CB$14+'Res-Appliance class'!$E28*'RES S curve-disconnect'!CB$19","v":-1804.2299480382903},{"$f":"'Res-Appliance class'!$B28*'RES S curve-disconnect'!CC$4+'Res-Appliance class'!$C28*'RES S curve-disconnect'!CC$9+'Res-Appliance class'!$D28*'RES S curve-disconnect'!CC$14+'Res-Appliance class'!$E28*'RES S curve-disconnect'!CC$19","v":-1797.409761592517},{"$f":"'Res-Appliance class'!$B28*'RES S curve-disconnect'!CD$4+'Res-Appliance class'!$C28*'RES S curve-disconnect'!CD$9+'Res-Appliance class'!$D28*'RES S curve-disconnect'!CD$14+'Res-Appliance class'!$E28*'RES S curve-disconnect'!CD$19","v":-1901.4330119060664}]
["Boroondara (C)",null,{"$f":"'Res-Appliance class'!$B29*'RES S curve-disconnect'!C$4+'Res-Appliance class'!$C29*'RES S curve-disconnect'!C$9+'Res-Appliance class'!$D29*'RES S curve-disconnect'!C$14+'Res-Appliance class'!$E29*'RES S curve-disconnect'!C$19","v":-4502.125601862891},{"$f":"'Res-Appliance class'!$B29*'RES S curve-disconnect'!D$4+'Res-Appliance class'!$C29*'RES S curve-disconnect'!D$9+'Res-Appliance class'!$D29*'RES S curve-disconnect'!D$14+'Res-Appliance class'!$E29*'RES S curve-disconnect'!D$19","v":-4987.8084704330213},{"$f":"'Res-Appliance class'!$B29*'RES S curve-disconnect'!E$4+'Res-Appliance class'!$C29*'RES S curve-disconnect'!E$9+'Res-Appliance class'!$D29*'RES S curve-disconnect'!E$14+'Res-Appliance class'!$E29*'RES S curve-disconnect'!E$19","v":-4322.9288872144061},{"$f":"'Res-Appliance class'!$B29*'RES S curve-disconnect'!F$4+'Res-Appliance class'!$C29*'RES S curve-disconnect'!F$9+'Res-Appliance class'!$D29*'RES S curve-disconnect'!F$14+'Res-Appliance class'!$E29*'RES S curve-disconnect'!F$19","v":-4179.3983760875399},{"$f":"'Res-Appliance class'!$B29*'RES S curve-disconnect'!G$4+'Res-Appliance class'!$C29*'RES S curve-disconnect'!G$9+'Res-Appliance class'!$D29*'RES S curve-disconnect'!G$14+'Res-Appliance class'!$E29*'RES S curve-disconnect'!G$19","v":-5310.7266252968202},{"$f":"'Res-Appliance class'!$B29*'RES S curve-disconnect'!H$4+'Res-Appliance class'!$C29*'RES S curve-disconnect'!H$9+'Res-Appliance class'!$D29*'RES S curve-disconnect'!H$14+'Res-Appliance class'!$E29*'RES S curve-disconnect'!H$19","v":-5339.6177741873771},{"$f":"'Res-Appliance class'!$B29*'RES S curve-disconnect'!I$4+'Res-Appliance class'!$C29*'RES S curve-disconnect'!I$9+'Res-Appliance class'!$D29*'RES S curve-disconnect'!I$14+'Res-Appliance class'!$E29*'RES S curve-disconnect'!I$19","v":-4929.4868981457776},{"$f":"'Res-Appliance class'!$B29*'RES S curve-disconnect'!J$4+'Res-Appliance class'!$C29*'RES S curve-disconnect'!J$9+'Res-Appliance class'!$D29*'RES S curve-disconnect'!J$14+'Res-Appliance class'!$E29*'RES S curve-disconnect'!J$19","v":-5251.298813952104},{"$f":"'Res-Appliance class'!$B29*'RES S curve-disconnect'!K$4+'Res-Appliance class'!$C29*'RES S curve-disconnect'!K$9+'Res-Appliance class'!$D29*'RES S curve-disconnect'!K$14+'Res-Appliance class'!$E29*'RES S curve-disconnect'!K$19","v":-4476.1702463392321},{"$f":"'Res-Appliance class'!$B29*'RES S curve-disconnect'!L$4+'Res-Appliance class'!$C29*'RES S curve-disconnect'!L$9+'Res-Appliance class'!$D29*'RES S curve-disconnect'!L$14+'Res-Appliance class'!$E29*'RES S curve-disconnect'!L$19","v":-4806.1879910599091},{"$f":"'Res-Appliance class'!$B29*'RES S curve-disconnect'!M$4+'Res-Appliance class'!$C29*'RES S curve-disconnect'!M$9+'Res-Appliance class'!$D29*'RES S curve-disconnect'!M$14+'Res-Appliance class'!$E29*'RES S curve-disconnect'!M$19","v":-5402.8482644002233},{"$f":"'Res-Appliance class'!$B29*'RES S curve-disconnect'!N$4+'Res-Appliance class'!$C29*'RES S curve-disconnect'!N$9+'Res-Appliance class'!$D29*'RES S curve-disconnect'!N$14+'Res-Appliance class'!$E29*'RES S curve-disconnect'!N$19","v":-5457.5851406490638},{"$f":"'Res-Appliance class'!$B29*'RES S curve-disconnect'!O$4+'Res-Appliance class'!$C29*'RES S curve-disconnect'!O$9+'Res-Appliance class'!$D29*'RES S curve-disconnect'!O$14+'Res-Appliance class'!$E29*'RES S curve-disconnect'!O$19","v":-4924.5611265706302},{"$f":"'Res-Appliance class'!$B29*'RES S curve-disconnect'!P$4+'Res-Appliance class'!$C29*'RES S curve-disconnect'!P$9+'Res-Appliance class'!$D29*'RES S curve-disconnect'!P$14+'Res-Appliance class'!$E29*'RES S curve-disconnect'!P$19","v":-4500.2482041910771},{"$f":"'Res-Appliance class'!$B29*'RES S curve-disconnect'!Q$4+'Res-Appliance class'!$C29*'RES S curve-disconnect'!Q$9+'Res-Appliance class'!$D29*'RES S curve-disconnect'!Q$14+'Res-Appliance class'!$E29*'RES S curve-disconnect'!Q$19","v":-3860.089725079531},{"$f":"'Res-Appliance class'!$B29*'RES S curve-disconnect'!R$4+'Res-Appliance class'!$C29*'RES S curve-disconnect'!R$9+'Res-Appliance class'!$D29*'RES S curve-disconnect'!R$14+'Res-Appliance class'!$E29*'RES S curve-disconnect'!R$19","v":-3496.5414085249322},{"$f":"'Res-Appliance class'!$B29*'RES S curve-disconnect'!S$4+'Res-Appliance class'!$C29*'RES S curve-disconnect'!S$9+'Res-Appliance class'!$D29*'RES S curve-disconnect'!S$14+'Res-Appliance class'!$E29*'RES S curve-disconnect'!S$19","v":-2918.0039515693811},{"$f":"'Res-Appliance class'!$B29*'RES S curve-disconnect'!T$4+'Res-Appliance class'!$C29*'RES S curve-disconnect'!T$9+'Res-Appliance class'!$D29*'RES S curve-disconnect'!T$14+'Res-Appliance class'!$E29*'RES S curve-disconnect'!T$19","v":-2605.7614407961651},{"$f":"'Res-Appliance class'!$B29*'RES S curve-disconnect'!U$4+'Res-Appliance class'!$C29*'RES S curve-disconnect'!U$9+'Res-Appliance class'!$D29*'RES S curve-disconnect'!U$14+'Res-Appliance class'!$E29*'RES S curve-disconnect'!U$19","v":-2247.4914852610086},{"$f":"'Res-Appliance class'!$B29*'RES S curve-disconnect'!V$4+'Res-Appliance class'!$C29*'RES S curve-disconnect'!V$9+'Res-Appliance class'!$D29*'RES S curve-disconnect'!V$14+'Res-Appliance class'!$E29*'RES S curve-disconnect'!V$19","v":-2001.916940196455},{"$f":"'Res-Appliance class'!$B29*'RES S curve-disconnect'!W$4+'Res-Appliance class'!$C29*'RES S curve-disconnect'!W$9+'Res-Appliance class'!$D29*'RES S curve-disconnect'!W$14+'Res-Appliance class'!$E29*'RES S curve-disconnect'!W$19","v":-1810.0050876859343},{"$f":"'Res-Appliance class'!$B29*'RES S curve-disconnect'!X$4+'Res-Appliance class'!$C29*'RES S curve-disconnect'!X$9+'Res-Appliance class'!$D29*'RES S curve-disconnect'!X$14+'Res-Appliance class'!$E29*'RES S curve-disconnect'!X$19","v":-1378.2710820978332},{"$f":"'Res-Appliance class'!$B29*'RES S curve-disconnect'!Y$4+'Res-Appliance class'!$C29*'RES S curve-disconnect'!Y$9+'Res-Appliance class'!$D29*'RES S curve-disconnect'!Y$14+'Res-Appliance class'!$E29*'RES S curve-disconnect'!Y$19","v":-941.18789682864008},{"$f":"'Res-Appliance class'!$B29*'RES S curve-disconnect'!Z$4+'Res-Appliance class'!$C29*'RES S curve-disconnect'!Z$9+'Res-Appliance class'!$D29*'RES S curve-disconnect'!Z$14+'Res-Appliance class'!$E29*'RES S curve-disconnect'!Z$19","v":-644.72701444771383},{"$f":"'Res-Appliance class'!$B29*'RES S curve-disconnect'!AA$4+'Res-Appliance class'!$C29*'RES S curve-disconnect'!AA$9+'Res-Appliance class'!$D29*'RES S curve-disconnect'!AA$14+'Res-Appliance class'!$E29*'RES S curve-disconnect'!AA$19","v":-347.91190715554387},{"$f":"'Res-Appliance class'!$B29*'RES S curve-disconnect'!AB$4+'Res-Appliance class'!$C29*'RES S curve-disconnect'!AB$9+'Res-Appliance class'!$D29*'RES S curve-disconnect'!AB$14+'Res-Appliance class'!$E29*'RES S curve-disconnect'!AB$19","v":-110.35804511929831},{"$f":"'Res-Appliance class'!$B29*'RES S curve-disconnect'!AC$4+'Res-Appliance class'!$C29*'RES S curve-disconnect'!AC$9+'Res-Appliance class'!$D29*'RES S curve-disconnect'!AC$14+'Res-Appliance class'!$E29*'RES S curve-disconnect'!AC$19","v":118.78029011500251},{"$f":"'Res-Appliance class'!$B29*'RES S curve-disconnect'!AD$4+'Res-Appliance class'!$C29*'RES S curve-disconnect'!AD$9+'Res-Appliance class'!$D29*'RES S curve-disconnect'!AD$14+'Res-Appliance class'!$E29*'RES S curve-disconnect'!AD$19","v":329.09207013810828},{"$f":"'Res-Appliance class'!$B29*'RES S curve-disconnect'!AE$4+'Res-Appliance class'!$C29*'RES S curve-disconnect'!AE$9+'Res-Appliance class'!$D29*'RES S curve-disconnect'!AE$14+'Res-Appliance class'!$E29*'RES S curve-disconnect'!AE$19","v":550.54872540642668},{"$f":"'Res-Appliance class'!$B29*'RES S curve-disconnect'!AF$4+'Res-Appliance class'!$C29*'RES S curve-disconnect'!AF$9+'Res-Appliance class'!$D29*'RES S curve-disconnect'!AF$14+'Res-Appliance class'!$E29*'RES S curve-disconnect'!AF$19","v":836.06548119192587},{"$f":"'Res-Appliance class'!$B29*'RES S curve-disconnect'!AG$4+'Res-Appliance class'!$C29*'RES S curve-disconnect'!AG$9+'Res-Appliance class'!$D29*'RES S curve-disconnect'!AG$14+'Res-Appliance class'!$E29*'RES S curve-disconnect'!AG$19","v":1031.8505501118493},{"$f":"'Res-Appliance class'!$B29*'RES S curve-disconnect'!AH$4+'Res-Appliance class'!$C29*'RES S curve-disconnect'!AH$9+'Res-Appliance class'!$D29*'RES S curve-disconnect'!AH$14+'Res-Appliance class'!$E29*'RES S curve-disconnect'!AH$19","v":1306.4203177381094},{"$f":"'Res-Appliance class'!$B29*'RES S curve-disconnect'!AI$4+'Res-Appliance class'!$C29*'RES S curve-disconnect'!AI$9+'Res-Appliance class'!$D29*'RES S curve-disconnect'!AI$14+'Res-Appliance class'!$E29*'RES S curve-disconnect'!AI$19","v":1554.0897179888486},{"$f":"'Res-Appliance class'!$B29*'RES S curve-disconnect'!AJ$4+'Res-Appliance class'!$C29*'RES S curve-disconnect'!AJ$9+'Res-Appliance class'!$D29*'RES S curve-disconnect'!AJ$14+'Res-Appliance class'!$E29*'RES S curve-disconnect'!AJ$19","v":1777.4263089574724},{"$f":"'Res-Appliance class'!$B29*'RES S curve-disconnect'!AK$4+'Res-Appliance class'!$C29*'RES S curve-disconnect'!AK$9+'Res-Appliance class'!$D29*'RES S curve-disconnect'!AK$14+'Res-Appliance class'!$E29*'RES S curve-disconnect'!AK$19","v":2014.5622680747776},{"$f":"'Res-Appliance class'!$B29*'RES S curve-disconnect'!AL$4+'Res-Appliance class'!$C29*'RES S curve-disconnect'!AL$9+'Res-Appliance class'!$D29*'RES S curve-disconnect'!AL$14+'Res-Appliance class'!$E29*'RES S curve-disconnect'!AL$19","v":1191.2549451904422},{"$f":"'Res-Appliance class'!$B29*'RES S curve-disconnect'!AM$4+'Res-Appliance class'!$C29*'RES S curve-disconnect'!AM$9+'Res-Appliance class'!$D29*'RES S curve-disconnect'!AM$14+'Res-Appliance class'!$E29*'RES S curve-disconnect'!AM$19","v":1084.7006414210564},{"$f":"'Res-Appliance class'!$B29*'RES S curve-disconnect'!AN$4+'Res-Appliance class'!$C29*'RES S curve-disconnect'!AN$9+'Res-Appliance class'!$D29*'RES S curve-disconnect'!AN$14+'Res-Appliance class'!$E29*'RES S curve-disconnect'!AN$19","v":1309.7940984960794},{"$f":"'Res-Appliance class'!$B29*'RES S curve-disconnect'!AO$4+'Res-Appliance class'!$C29*'RES S curve-disconnect'!AO$9+'Res-Appliance class'!$D29*'RES S curve-disconnect'!AO$14+'Res-Appliance class'!$E29*'RES S curve-disconnect'!AO$19","v":1584.5493060775573},{"$f":"'Res-Appliance class'!$B29*'RES S curve-disconnect'!AP$4+'Res-Appliance class'!$C29*'RES S curve-disconnect'!AP$9+'Res-Appliance class'!$D29*'RES S curve-disconnect'!AP$14+'Res-Appliance class'!$E29*'RES S curve-disconnect'!AP$19","v":1838.0479748221724},{"$f":"'Res-Appliance class'!$B29*'RES S curve-disconnect'!AQ$4+'Res-Appliance class'!$C29*'RES S curve-disconnect'!AQ$9+'Res-Appliance class'!$D29*'RES S curve-disconnect'!AQ$14+'Res-Appliance class'!$E29*'RES S curve-disconnect'!AQ$19","v":2111.3045105433212},{"$f":"'Res-Appliance class'!$B29*'RES S curve-disconnect'!AR$4+'Res-Appliance class'!$C29*'RES S curve-disconnect'!AR$9+'Res-Appliance class'!$D29*'RES S curve-disconnect'!AR$14+'Res-Appliance class'!$E29*'RES S curve-disconnect'!AR$19","v":2411.1539982696486},{"$f":"'Res-Appliance class'!$B29*'RES S curve-disconnect'!AS$4+'Res-Appliance class'!$C29*'RES S curve-disconnect'!AS$9+'Res-Appliance class'!$D29*'RES S curve-disconnect'!AS$14+'Res-Appliance class'!$E29*'RES S curve-disconnect'!AS$19","v":2747.5841625265452},{"$f":"'Res-Appliance class'!$B29*'RES S curve-disconnect'!AT$4+'Res-Appliance class'!$C29*'RES S curve-disconnect'!AT$9+'Res-Appliance class'!$D29*'RES S curve-disconnect'!AT$14+'Res-Appliance class'!$E29*'RES S curve-disconnect'!AT$19","v":3123.6964055144313},{"$f":"'Res-Appliance class'!$B29*'RES S curve-disconnect'!AU$4+'Res-Appliance class'!$C29*'RES S curve-disconnect'!AU$9+'Res-Appliance class'!$D29*'RES S curve-disconnect'!AU$14+'Res-Appliance class'!$E29*'RES S curve-disconnect'!AU$19","v":3559.085069606766},{"$f":"'Res-Appliance class'!$B29*'RES S curve-disconnect'!AV$4+'Res-Appliance class'!$C29*'RES S curve-disconnect'!AV$9+'Res-Appliance class'!$D29*'RES S curve-disconnect'!AV$14+'Res-Appliance class'!$E29*'RES S curve-disconnect'!AV$19","v":4055.4661200447458},{"$f":"'Res-Appliance class'!$B29*'RES S curve-disconnect'!AW$4+'Res-Appliance class'!$C29*'RES S curve-disconnect'!AW$9+'Res-Appliance class'!$D29*'RES S curve-disconnect'!AW$14+'Res-Appliance class'!$E29*'RES S curve-disconnect'!AW$19","v":4625.8978300864455},{"$f":"'Res-Appliance class'!$B29*'RES S curve-disconnect'!AX$4+'Res-Appliance class'!$C29*'RES S curve-disconnect'!AX$9+'Res-Appliance class'!$D29*'RES S curve-disconnect'!AX$14+'Res-Appliance class'!$E29*'RES S curve-disconnect'!AX$19","v":5275.7150483781543},{"$f":"'Res-Appliance class'!$B29*'RES S curve-disconnect'!AY$4+'Res-Appliance class'!$C29*'RES S curve-disconnect'!AY$9+'Res-Appliance class'!$D29*'RES S curve-disconnect'!AY$14+'Res-Appliance class'!$E29*'RES S curve-disconnect'!AY$19","v":6025.6455167626063},{"$f":"'Res-Appliance class'!$B29*'RES S curve-disconnect'!AZ$4+'Res-Appliance class'!$C29*'RES S curve-disconnect'!AZ$9+'Res-Appliance class'!$D29*'RES S curve-disconnect'!AZ$14+'Res-Appliance class'!$E29*'RES S curve-disconnect'!AZ$19","v":6882.5464536286809},{"$f":"'Res-Appliance class'!$B29*'RES S curve-disconnect'!BA$4+'Res-Appliance class'!$C29*'RES S curve-disconnect'!BA$9+'Res-Appliance class'!$D29*'RES S curve-disconnect'!BA$14+'Res-Appliance class'!$E29*'RES S curve-disconnect'!BA$19","v":7874.658243643069},{"$f":"'Res-Appliance class'!$B29*'RES S curve-disconnect'!BB$4+'Res-Appliance class'!$C29*'RES S curve-disconnect'!BB$9+'Res-Appliance class'!$D29*'RES S curve-disconnect'!BB$14+'Res-Appliance class'!$E29*'RES S curve-disconnect'!BB$19","v":9033.3006652199711},{"$f":"'Res-Appliance class'!$B29*'RES S curve-disconnect'!BC$4+'Res-Appliance class'!$C29*'RES S curve-disconnect'!BC$9+'Res-Appliance class'!$D29*'RES S curve-disconnect'!BC$14+'Res-Appliance class'!$E29*'RES S curve-disconnect'!BC$19","v":10414.917412719336},{"$f":"'Res-Appliance class'!$B29*'RES S curve-disconnect'!BD$4+'Res-Appliance class'!$C29*'RES S curve-disconnect'!BD$9+'Res-Appliance class'!$D29*'RES S curve-disconnect'!BD$14+'Res-Appliance class'!$E29*'RES S curve-disconnect'!BD$19","v":11746.57137299687},{"$f":"'Res-Appliance class'!$B29*'RES S curve-disconnect'!BE$4+'Res-Appliance class'!$C29*'RES S curve-disconnect'!BE$9+'Res-Appliance class'!$D29*'RES S curve-disconnect'!BE$14+'Res-Appliance class'!$E29*'RES S curve-disconnect'!BE$19","v":12963.316751430439},{"$f":"'Res-Appliance class'!$B29*'RES S curve-disconnect'!BF$4+'Res-Appliance class'!$C29*'RES S curve-disconnect'!BF$9+'Res-Appliance class'!$D29*'RES S curve-disconnect'!BF$14+'Res-Appliance class'!$E29*'RES S curve-disconnect'!BF$19","v":14208.392876269696},{"$f":"'Res-Appliance class'!$B29*'RES S curve-disconnect'!BG$4+'Res-Appliance class'!$C29*'RES S curve-disconnect'!BG$9+'Res-Appliance class'!$D29*'RES S curve-disconnect'!BG$14+'Res-Appliance class'!$E29*'RES S curve-disconnect'!BG$19","v":15617.986573119048},{"$f":"'Res-Appliance class'!$B29*'RES S curve-disconnect'!BH$4+'Res-Appliance class'!$C29*'RES S curve-disconnect'!BH$9+'Res-Appliance class'!$D29*'RES S curve-disconnect'!BH$14+'Res-Appliance class'!$E29*'RES S curve-disconnect'!BH$19","v":17290.993016649765},{"$f":"'Res-Appliance class'!$B29*'RES S curve-disconnect'!BI$4+'Res-Appliance class'!$C29*'RES S curve-disconnect'!BI$9+'Res-Appliance class'!$D29*'RES S curve-disconnect'!BI$14+'Res-Appliance class'!$E29*'RES S curve-disconnect'!BI$19","v":19715.464551927456},{"$f":"'Res-Appliance class'!$B29*'RES S curve-disconnect'!BJ$4+'Res-Appliance class'!$C29*'RES S curve-disconnect'!BJ$9+'Res-Appliance class'!$D29*'RES S curve-disconnect'!BJ$14+'Res-Appliance class'!$E29*'RES S curve-disconnect'!BJ$19","v":23264.891824938539},{"$f":"'Res-Appliance class'!$B29*'RES S curve-disconnect'!BK$4+'Res-Appliance class'!$C29*'RES S curve-disconnect'!BK$9+'Res-Appliance class'!$D29*'RES S curve-disconnect'!BK$14+'Res-Appliance class'!$E29*'RES S curve-disconnect'!BK$19","v":28501.144251352252},{"$f":"'Res-Appliance class'!$B29*'RES S curve-disconnect'!BL$4+'Res-Appliance class'!$C29*'RES S curve-disconnect'!BL$9+'Res-Appliance class'!$D29*'RES S curve-disconnect'!BL$14+'Res-Appliance class'!$E29*'RES S curve-disconnect'!BL$19","v":-1819.1814960731804},{"$f":"'Res-Appliance class'!$B29*'RES S curve-disconnect'!BM$4+'Res-Appliance class'!$C29*'RES S curve-disconnect'!BM$9+'Res-Appliance class'!$D29*'RES S curve-disconnect'!BM$14+'Res-Appliance class'!$E29*'RES S curve-disconnect'!BM$19","v":-1812.5494497154036},{"$f":"'Res-Appliance class'!$B29*'RES S curve-disconnect'!BN$4+'Res-Appliance class'!$C29*'RES S curve-disconnect'!BN$9+'Res-Appliance class'!$D29*'RES S curve-disconnect'!BN$14+'Res-Appliance class'!$E29*'RES S curve-disconnect'!BN$19","v":-1809.2671248652182},{"$f":"'Res-Appliance class'!$B29*'RES S curve-disconnect'!BO$4+'Res-Appliance class'!$C29*'RES S curve-disconnect'!BO$9+'Res-Appliance class'!$D29*'RES S curve-disconnect'!BO$14+'Res-Appliance class'!$E29*'RES S curve-disconnect'!BO$19","v":-1799.3132058912447},{"$f":"'Res-Appliance class'!$B29*'RES S curve-disconnect'!BP$4+'Res-Appliance class'!$C29*'RES S curve-disconnect'!BP$9+'Res-Appliance class'!$D29*'RES S curve-disconnect'!BP$14+'Res-Appliance class'!$E29*'RES S curve-disconnect'!BP$19","v":-1792.7088966143638},{"$f":"'Res-Appliance class'!$B29*'RES S curve-disconnect'!BQ$4+'Res-Appliance class'!$C29*'RES S curve-disconnect'!BQ$9+'Res-Appliance class'!$D29*'RES S curve-disconnect'!BQ$14+'Res-Appliance class'!$E29*'RES S curve-disconnect'!BQ$19","v":-1786.1137217999158},{"$f":"'Res-Appliance class'!$B29*'RES S curve-disconnect'!BR$4+'Res-Appliance class'!$C29*'RES S curve-disconnect'!BR$9+'Res-Appliance class'!$D29*'RES S curve-disconnect'!BR$14+'Res-Appliance class'!$E29*'RES S curve-disconnect'!BR$19","v":-1782.8680462588707},{"$f":"'Res-Appliance class'!$B29*'RES S curve-disconnect'!BS$4+'Res-Appliance class'!$C29*'RES S curve-disconnect'!BS$9+'Res-Appliance class'!$D29*'RES S curve-disconnect'!BS$14+'Res-Appliance class'!$E29*'RES S curve-disconnect'!BS$19","v":-1772.9505557422945},{"$f":"'Res-Appliance class'!$B29*'RES S curve-disconnect'!BT$4+'Res-Appliance class'!$C29*'RES S curve-disconnect'!BT$9+'Res-Appliance class'!$D29*'RES S curve-disconnect'!BT$14+'Res-Appliance class'!$E29*'RES S curve-disconnect'!BT$19","v":-1766.3824554447758},{"$f":"'Res-Appliance class'!$B29*'RES S curve-disconnect'!BU$4+'Res-Appliance class'!$C29*'RES S curve-disconnect'!BU$9+'Res-Appliance class'!$D29*'RES S curve-disconnect'!BU$14+'Res-Appliance class'!$E29*'RES S curve-disconnect'!BU$19","v":-1759.823271496688},{"$f":"'Res-Appliance class'!$B29*'RES S curve-disconnect'!BV$4+'Res-Appliance class'!$C29*'RES S curve-disconnect'!BV$9+'Res-Appliance class'!$D29*'RES S curve-disconnect'!BV$14+'Res-Appliance class'!$E29*'RES S curve-disconnect'!BV$19","v":-1756.613370065415},{"$f":"'Res-Appliance class'!$B29*'RES S curve-disconnect'!BW$4+'Res-Appliance class'!$C29*'RES S curve-disconnect'!BW$9+'Res-Appliance class'!$D29*'RES S curve-disconnect'!BW$14+'Res-Appliance class'!$E29*'RES S curve-disconnect'!BW$19","v":-1746.7314382498655},{"$f":"'Res-Appliance class'!$B29*'RES S curve-disconnect'!BX$4+'Res-Appliance class'!$C29*'RES S curve-disconnect'!BX$9+'Res-Appliance class'!$D29*'RES S curve-disconnect'!BX$14+'Res-Appliance class'!$E29*'RES S curve-disconnect'!BX$19","v":-1740.1986825839645},{"$f":"'Res-Appliance class'!$B29*'RES S curve-disconnect'!BY$4+'Res-Appliance class'!$C29*'RES S curve-disconnect'!BY$9+'Res-Appliance class'!$D29*'RES S curve-disconnect'!BY$14+'Res-Appliance class'!$E29*'RES S curve-disconnect'!BY$19","v":-1733.6746305289623},{"$f":"'Res-Appliance class'!$B29*'RES S curve-disconnect'!BZ$4+'Res-Appliance class'!$C29*'RES S curve-disconnect'!BZ$9+'Res-Appliance class'!$D29*'RES S curve-disconnect'!BZ$14+'Res-Appliance class'!$E29*'RES S curve-disconnect'!BZ$19","v":-1730.4996495747125},{"$f":"'Res-Appliance class'!$B29*'RES S curve-disconnect'!CA$4+'Res-Appliance class'!$C29*'RES S curve-disconnect'!CA$9+'Res-Appliance class'!$D29*'RES S curve-disconnect'!CA$14+'Res-Appliance class'!$E29*'RES S curve-disconnect'!CA$19","v":-1720.652428134247},{"$f":"'Res-Appliance class'!$B29*'RES S curve-disconnect'!CB$4+'Res-Appliance class'!$C29*'RES S curve-disconnect'!CB$9+'Res-Appliance class'!$D29*'RES S curve-disconnect'!CB$14+'Res-Appliance class'!$E29*'RES S curve-disconnect'!CB$19","v":-1714.1541740473126},{"$f":"'Res-Appliance class'!$B29*'RES S curve-disconnect'!CC$4+'Res-Appliance class'!$C29*'RES S curve-disconnect'!CC$9+'Res-Appliance class'!$D29*'RES S curve-disconnect'!CC$14+'Res-Appliance class'!$E29*'RES S curve-disconnect'!CC$19","v":-1707.6644160727406},{"$f":"'Res-Appliance class'!$B29*'RES S curve-disconnect'!CD$4+'Res-Appliance class'!$C29*'RES S curve-disconnect'!CD$9+'Res-Appliance class'!$D29*'RES S curve-disconnect'!CD$14+'Res-Appliance class'!$E29*'RES S curve-disconnect'!CD$19","v":-1806.4658890761295}]
["Cardinia (S)",null,{"$f":"'Res-Appliance class'!$B30*'RES S curve-disconnect'!C$4+'Res-Appliance class'!$C30*'RES S curve-disconnect'!C$9+'Res-Appliance class'!$D30*'RES S curve-disconnect'!C$14+'Res-Appliance class'!$E30*'RES S curve-disconnect'!C$19","v":-5052.1133687546371},{"$f":"'Res-Appliance class'!$B30*'RES S curve-disconnect'!D$4+'Res-Appliance class'!$C30*'RES S curve-disconnect'!D$9+'Res-Appliance class'!$D30*'RES S curve-disconnect'!D$14+'Res-Appliance class'!$E30*'RES S curve-disconnect'!D$19","v":-5600.5907948682307},{"$f":"'Res-Appliance class'!$B30*'RES S curve-disconnect'!E$4+'Res-Appliance class'!$C30*'RES S curve-disconnect'!E$9+'Res-Appliance class'!$D30*'RES S curve-disconnect'!E$14+'Res-Appliance class'!$E30*'RES S curve-disconnect'!E$19","v":-4816.8166272221697},{"$f":"'Res-Appliance class'!$B30*'RES S curve-disconnect'!F$4+'Res-Appliance class'!$C30*'RES S curve-disconnect'!F$9+'Res-Appliance class'!$D30*'RES S curve-disconnect'!F$14+'Res-Appliance class'!$E30*'RES S curve-disconnect'!F$19","v":-4650.6906882128769},{"$f":"'Res-Appliance class'!$B30*'RES S curve-disconnect'!G$4+'Res-Appliance class'!$C30*'RES S curve-disconnect'!G$9+'Res-Appliance class'!$D30*'RES S curve-disconnect'!G$14+'Res-Appliance class'!$E30*'RES S curve-disconnect'!G$19","v":-6007.4690112435528},{"$f":"'Res-Appliance class'!$B30*'RES S curve-disconnect'!H$4+'Res-Appliance class'!$C30*'RES S curve-disconnect'!H$9+'Res-Appliance class'!$D30*'RES S curve-disconnect'!H$14+'Res-Appliance class'!$E30*'RES S curve-disconnect'!H$19","v":-6033.5950620349695},{"$f":"'Res-Appliance class'!$B30*'RES S curve-disconnect'!I$4+'Res-Appliance class'!$C30*'RES S curve-disconnect'!I$9+'Res-Appliance class'!$D30*'RES S curve-disconnect'!I$14+'Res-Appliance class'!$E30*'RES S curve-disconnect'!I$19","v":-5563.3125515511056},{"$f":"'Res-Appliance class'!$B30*'RES S curve-disconnect'!J$4+'Res-Appliance class'!$C30*'RES S curve-disconnect'!J$9+'Res-Appliance class'!$D30*'RES S curve-disconnect'!J$14+'Res-Appliance class'!$E30*'RES S curve-disconnect'!J$19","v":-5893.8523535688237},{"$f":"'Res-Appliance class'!$B30*'RES S curve-disconnect'!K$4+'Res-Appliance class'!$C30*'RES S curve-disconnect'!K$9+'Res-Appliance class'!$D30*'RES S curve-disconnect'!K$14+'Res-Appliance class'!$E30*'RES S curve-disconnect'!K$19","v":-5014.8173311567398},{"$f":"'Res-Appliance class'!$B30*'RES S curve-disconnect'!L$4+'Res-Appliance class'!$C30*'RES S curve-disconnect'!L$9+'Res-Appliance class'!$D30*'RES S curve-disconnect'!L$14+'Res-Appliance class'!$E30*'RES S curve-disconnect'!L$19","v":-5388.7346593104057},{"$f":"'Res-Appliance class'!$B30*'RES S curve-disconnect'!M$4+'Res-Appliance class'!$C30*'RES S curve-disconnect'!M$9+'Res-Appliance class'!$D30*'RES S curve-disconnect'!M$14+'Res-Appliance class'!$E30*'RES S curve-disconnect'!M$19","v":-6080.6434162958467},{"$f":"'Res-Appliance class'!$B30*'RES S curve-disconnect'!N$4+'Res-Appliance class'!$C30*'RES S curve-disconnect'!N$9+'Res-Appliance class'!$D30*'RES S curve-disconnect'!N$14+'Res-Appliance class'!$E30*'RES S curve-disconnect'!N$19","v":-6144.4406080686558},{"$f":"'Res-Appliance class'!$B30*'RES S curve-disconnect'!O$4+'Res-Appliance class'!$C30*'RES S curve-disconnect'!O$9+'Res-Appliance class'!$D30*'RES S curve-disconnect'!O$14+'Res-Appliance class'!$E30*'RES S curve-disconnect'!O$19","v":-5538.788502037909},{"$f":"'Res-Appliance class'!$B30*'RES S curve-disconnect'!P$4+'Res-Appliance class'!$C30*'RES S curve-disconnect'!P$9+'Res-Appliance class'!$D30*'RES S curve-disconnect'!P$14+'Res-Appliance class'!$E30*'RES S curve-disconnect'!P$19","v":-5054.8958609489728},{"$f":"'Res-Appliance class'!$B30*'RES S curve-disconnect'!Q$4+'Res-Appliance class'!$C30*'RES S curve-disconnect'!Q$9+'Res-Appliance class'!$D30*'RES S curve-disconnect'!Q$14+'Res-Appliance class'!$E30*'RES S curve-disconnect'!Q$19","v":-4324.3605241035439},{"$f":"'Res-Appliance class'!$B30*'RES S curve-disconnect'!R$4+'Res-Appliance class'!$C30*'RES S curve-disconnect'!R$9+'Res-Appliance class'!$D30*'RES S curve-disconnect'!R$14+'Res-Appliance class'!$E30*'RES S curve-disconnect'!R$19","v":-3909.5523097695104},{"$f":"'Res-Appliance class'!$B30*'RES S curve-disconnect'!S$4+'Res-Appliance class'!$C30*'RES S curve-disconnect'!S$9+'Res-Appliance class'!$D30*'RES S curve-disconnect'!S$14+'Res-Appliance class'!$E30*'RES S curve-disconnect'!S$19","v":-3252.253575063336},{"$f":"'Res-Appliance class'!$B30*'RES S curve-disconnect'!T$4+'Res-Appliance class'!$C30*'RES S curve-disconnect'!T$9+'Res-Appliance class'!$D30*'RES S curve-disconnect'!T$14+'Res-Appliance class'!$E30*'RES S curve-disconnect'!T$19","v":-2890.9158814195393},{"$f":"'Res-Appliance class'!$B30*'RES S curve-disconnect'!U$4+'Res-Appliance class'!$C30*'RES S curve-disconnect'!U$9+'Res-Appliance class'!$D30*'RES S curve-disconnect'!U$14+'Res-Appliance class'!$E30*'RES S curve-disconnect'!U$19","v":-2481.1351780150139},{"$f":"'Res-Appliance class'!$B30*'RES S curve-disconnect'!V$4+'Res-Appliance class'!$C30*'RES S curve-disconnect'!V$9+'Res-Appliance class'!$D30*'RES S curve-disconnect'!V$14+'Res-Appliance class'!$E30*'RES S curve-disconnect'!V$19","v":-2202.1959502540112},{"$f":"'Res-Appliance class'!$B30*'RES S curve-disconnect'!W$4+'Res-Appliance class'!$C30*'RES S curve-disconnect'!W$9+'Res-Appliance class'!$D30*'RES S curve-disconnect'!W$14+'Res-Appliance class'!$E30*'RES S curve-disconnect'!W$19","v":-1984.3594354800452},{"$f":"'Res-Appliance class'!$B30*'RES S curve-disconnect'!X$4+'Res-Appliance class'!$C30*'RES S curve-disconnect'!X$9+'Res-Appliance class'!$D30*'RES S curve-disconnect'!X$14+'Res-Appliance class'!$E30*'RES S curve-disconnect'!X$19","v":-1489.7507149720493},{"$f":"'Res-Appliance class'!$B30*'RES S curve-disconnect'!Y$4+'Res-Appliance class'!$C30*'RES S curve-disconnect'!Y$9+'Res-Appliance class'!$D30*'RES S curve-disconnect'!Y$14+'Res-Appliance class'!$E30*'RES S curve-disconnect'!Y$19","v":-989.74037998619156},{"$f":"'Res-Appliance class'!$B30*'RES S curve-disconnect'!Z$4+'Res-Appliance class'!$C30*'RES S curve-disconnect'!Z$9+'Res-Appliance class'!$D30*'RES S curve-disconnect'!Z$14+'Res-Appliance class'!$E30*'RES S curve-disconnect'!Z$19","v":-651.31504211586855},{"$f":"'Res-Appliance class'!$B30*'RES S curve-disconnect'!AA$4+'Res-Appliance class'!$C30*'RES S curve-disconnect'!AA$9+'Res-Appliance class'!$D30*'RES S curve-disconnect'!AA$14+'Res-Appliance class'!$E30*'RES S curve-disconnect'!AA$19","v":-313.32873267357246},{"$f":"'Res-Appliance class'!$B30*'RES S curve-disconnect'!AB$4+'Res-Appliance class'!$C30*'RES S curve-disconnect'!AB$9+'Res-Appliance class'!$D30*'RES S curve-disconnect'!AB$14+'Res-Appliance class'!$E30*'RES S curve-disconnect'!AB$19","v":-43.319998312702239},{"$f":"'Res-Appliance class'!$B30*'RES S curve-disconnect'!AC$4+'Res-Appliance class'!$C30*'RES S curve-disconnect'!AC$9+'Res-Appliance class'!$D30*'RES S curve-disconnect'!AC$14+'Res-Appliance class'!$E30*'RES S curve-disconnect'!AC$19","v":216.55127837148848},{"$f":"'Res-Appliance class'!$B30*'RES S curve-disconnect'!AD$4+'Res-Appliance class'!$C30*'RES S curve-disconnect'!AD$9+'Res-Appliance class'!$D30*'RES S curve-disconnect'!AD$14+'Res-Appliance class'!$E30*'RES S curve-disconnect'!AD$19","v":454.97710140487777},{"$f":"'Res-Appliance class'!$B30*'RES S curve-disconnect'!AE$4+'Res-Appliance class'!$C30*'RES S curve-disconnect'!AE$9+'Res-Appliance class'!$D30*'RES S curve-disconnect'!AE$14+'Res-Appliance class'!$E30*'RES S curve-disconnect'!AE$19","v":704.9020795398053},{"$f":"'Res-Appliance class'!$B30*'RES S curve-disconnect'!AF$4+'Res-Appliance class'!$C30*'RES S curve-disconnect'!AF$9+'Res-Appliance class'!$D30*'RES S curve-disconnect'!AF$14+'Res-Appliance class'!$E30*'RES S curve-disconnect'!AF$19","v":1028.8670020799098},{"$f":"'Res-Appliance class'!$B30*'RES S curve-disconnect'!AG$4+'Res-Appliance class'!$C30*'RES S curve-disconnect'!AG$9+'Res-Appliance class'!$D30*'RES S curve-disconnect'!AG$14+'Res-Appliance class'!$E30*'RES S curve-disconnect'!AG$19","v":1251.1476501405195},{"$f":"'Res-Appliance class'!$B30*'RES S curve-disconnect'!AH$4+'Res-Appliance class'!$C30*'RES S curve-disconnect'!AH$9+'Res-Appliance class'!$D30*'RES S curve-disconnect'!AH$14+'Res-Appliance class'!$E30*'RES S curve-disconnect'!AH$19","v":1565.2643071085413},{"$f":"'Res-Appliance class'!$B30*'RES S curve-disconnect'!AI$4+'Res-Appliance class'!$C30*'RES S curve-disconnect'!AI$9+'Res-Appliance class'!$D30*'RES S curve-disconnect'!AI$14+'Res-Appliance class'!$E30*'RES S curve-disconnect'!AI$19","v":1846.4227691234057},{"$f":"'Res-Appliance class'!$B30*'RES S curve-disconnect'!AJ$4+'Res-Appliance class'!$C30*'RES S curve-disconnect'!AJ$9+'Res-Appliance class'!$D30*'RES S curve-disconnect'!AJ$14+'Res-Appliance class'!$E30*'RES S curve-disconnect'!AJ$19","v":2100.4104020314689},{"$f":"'Res-Appliance class'!$B30*'RES S curve-disconnect'!AK$4+'Res-Appliance class'!$C30*'RES S curve-disconnect'!AK$9+'Res-Appliance class'!$D30*'RES S curve-disconnect'!AK$14+'Res-Appliance class'!$E30*'RES S curve-disconnect'!AK$19","v":2370.0142161543495},{"$f":"'Res-Appliance class'!$B30*'RES S curve-disconnect'!AL$4+'Res-Appliance class'!$C30*'RES S curve-disconnect'!AL$9+'Res-Appliance class'!$D30*'RES S curve-disconnect'!AL$14+'Res-Appliance class'!$E30*'RES S curve-disconnect'!AL$19","v":1439.8064851344509},{"$f":"'Res-Appliance class'!$B30*'RES S curve-disconnect'!AM$4+'Res-Appliance class'!$C30*'RES S curve-disconnect'!AM$9+'Res-Appliance class'!$D30*'RES S curve-disconnect'!AM$14+'Res-Appliance class'!$E30*'RES S curve-disconnect'!AM$19","v":1316.1393995217436},{"$f":"'Res-Appliance class'!$B30*'RES S curve-disconnect'!AN$4+'Res-Appliance class'!$C30*'RES S curve-disconnect'!AN$9+'Res-Appliance class'!$D30*'RES S curve-disconnect'!AN$14+'Res-Appliance class'!$E30*'RES S curve-disconnect'!AN$19","v":1570.3650470721584},{"$f":"'Res-Appliance class'!$B30*'RES S curve-disconnect'!AO$4+'Res-Appliance class'!$C30*'RES S curve-disconnect'!AO$9+'Res-Appliance class'!$D30*'RES S curve-disconnect'!AO$14+'Res-Appliance class'!$E30*'RES S curve-disconnect'!AO$19","v":1882.2692097148222},{"$f":"'Res-Appliance class'!$B30*'RES S curve-disconnect'!AP$4+'Res-Appliance class'!$C30*'RES S curve-disconnect'!AP$9+'Res-Appliance class'!$D30*'RES S curve-disconnect'!AP$14+'Res-Appliance class'!$E30*'RES S curve-disconnect'!AP$19","v":2170.9858671172233},{"$f":"'Res-Appliance class'!$B30*'RES S curve-disconnect'!AQ$4+'Res-Appliance class'!$C30*'RES S curve-disconnect'!AQ$9+'Res-Appliance class'!$D30*'RES S curve-disconnect'!AQ$14+'Res-Appliance class'!$E30*'RES S curve-disconnect'!AQ$19","v":2481.2461553447451},{"$f":"'Res-Appliance class'!$B30*'RES S curve-disconnect'!AR$4+'Res-Appliance class'!$C30*'RES S curve-disconnect'!AR$9+'Res-Appliance class'!$D30*'RES S curve-disconnect'!AR$14+'Res-Appliance class'!$E30*'RES S curve-disconnect'!AR$19","v":2822.2590408582596},{"$f":"'Res-Appliance class'!$B30*'RES S curve-disconnect'!AS$4+'Res-Appliance class'!$C30*'RES S curve-disconnect'!AS$9+'Res-Appliance class'!$D30*'RES S curve-disconnect'!AS$14+'Res-Appliance class'!$E30*'RES S curve-disconnect'!AS$19","v":3205.0188263251202},{"$f":"'Res-Appliance class'!$B30*'RES S curve-disconnect'!AT$4+'Res-Appliance class'!$C30*'RES S curve-disconnect'!AT$9+'Res-Appliance class'!$D30*'RES S curve-disconnect'!AT$14+'Res-Appliance class'!$E30*'RES S curve-disconnect'!AT$19","v":3633.5700703960647},{"$f":"'Res-Appliance class'!$B30*'RES S curve-disconnect'!AU$4+'Res-Appliance class'!$C30*'RES S curve-disconnect'!AU$9+'Res-Appliance class'!$D30*'RES S curve-disconnect'!AU$14+'Res-Appliance class'!$E30*'RES S curve-disconnect'!AU$19","v":4128.881743423537},{"$f":"'Res-Appliance class'!$B30*'RES S curve-disconnect'!AV$4+'Res-Appliance class'!$C30*'RES S curve-disconnect'!AV$9+'Res-Appliance class'!$D30*'RES S curve-disconnect'!AV$14+'Res-Appliance class'!$E30*'RES S curve-disconnect'!AV$19","v":4694.3792622563342},{"$f":"'Res-Appliance class'!$B30*'RES S curve-disconnect'!AW$4+'Res-Appliance class'!$C30*'RES S curve-disconnect'!AW$9+'Res-Appliance class'!$D30*'RES S curve-disconnect'!AW$14+'Res-Appliance class'!$E30*'RES S curve-disconnect'!AW$19","v":5344.6153070950195},{"$f":"'Res-Appliance class'!$B30*'RES S curve-disconnect'!AX$4+'Res-Appliance class'!$C30*'RES S curve-disconnect'!AX$9+'Res-Appliance class'!$D30*'RES S curve-disconnect'!AX$14+'Res-Appliance class'!$E30*'RES S curve-disconnect'!AX$19","v":6086.3140427458029},{"$f":"'Res-Appliance class'!$B30*'RES S curve-disconnect'!AY$4+'Res-Appliance class'!$C30*'RES S curve-disconnect'!AY$9+'Res-Appliance class'!$D30*'RES S curve-disconnect'!AY$14+'Res-Appliance class'!$E30*'RES S curve-disconnect'!AY$19","v":6941.8929900399444},{"$f":"'Res-Appliance class'!$B30*'RES S curve-disconnect'!AZ$4+'Res-Appliance class'!$C30*'RES S curve-disconnect'!AZ$9+'Res-Appliance class'!$D30*'RES S curve-disconnect'!AZ$14+'Res-Appliance class'!$E30*'RES S curve-disconnect'!AZ$19","v":7920.7920758775826},{"$f":"'Res-Appliance class'!$B30*'RES S curve-disconnect'!BA$4+'Res-Appliance class'!$C30*'RES S curve-disconnect'!BA$9+'Res-Appliance class'!$D30*'RES S curve-disconnect'!BA$14+'Res-Appliance class'!$E30*'RES S curve-disconnect'!BA$19","v":9055.0290259900994},{"$f":"'Res-Appliance class'!$B30*'RES S curve-disconnect'!BB$4+'Res-Appliance class'!$C30*'RES S curve-disconnect'!BB$9+'Res-Appliance class'!$D30*'RES S curve-disconnect'!BB$14+'Res-Appliance class'!$E30*'RES S curve-disconnect'!BB$19","v":10381.205067762021},{"$f":"'Res-Appliance class'!$B30*'RES S curve-disconnect'!BC$4+'Res-Appliance class'!$C30*'RES S curve-disconnect'!BC$9+'Res-Appliance class'!$D30*'RES S curve-disconnect'!BC$14+'Res-Appliance class'!$E30*'RES S curve-disconnect'!BC$19","v":11962.877288276737},{"$f":"'Res-Appliance class'!$B30*'RES S curve-disconnect'!BD$4+'Res-Appliance class'!$C30*'RES S curve-disconnect'!BD$9+'Res-Appliance class'!$D30*'RES S curve-disconnect'!BD$14+'Res-Appliance class'!$E30*'RES S curve-disconnect'!BD$19","v":13491.359173611831},{"$f":"'Res-Appliance class'!$B30*'RES S curve-disconnect'!BE$4+'Res-Appliance class'!$C30*'RES S curve-disconnect'!BE$9+'Res-Appliance class'!$D30*'RES S curve-disconnect'!BE$14+'Res-Appliance class'!$E30*'RES S curve-disconnect'!BE$19","v":14889.288677313183},{"$f":"'Res-Appliance class'!$B30*'RES S curve-disconnect'!BF$4+'Res-Appliance class'!$C30*'RES S curve-disconnect'!BF$9+'Res-Appliance class'!$D30*'RES S curve-disconnect'!BF$14+'Res-Appliance class'!$E30*'RES S curve-disconnect'!BF$19","v":16319.370575441619},{"$f":"'Res-Appliance class'!$B30*'RES S curve-disconnect'!BG$4+'Res-Appliance class'!$C30*'RES S curve-disconnect'!BG$9+'Res-Appliance class'!$D30*'RES S curve-disconnect'!BG$14+'Res-Appliance class'!$E30*'RES S curve-disconnect'!BG$19","v":17936.903158772024},{"$f":"'Res-Appliance class'!$B30*'RES S curve-disconnect'!BH$4+'Res-Appliance class'!$C30*'RES S curve-disconnect'!BH$9+'Res-Appliance class'!$D30*'RES S curve-disconnect'!BH$14+'Res-Appliance class'!$E30*'RES S curve-disconnect'!BH$19","v":19857.609951234637},{"$f":"'Res-Appliance class'!$B30*'RES S curve-disconnect'!BI$4+'Res-Appliance class'!$C30*'RES S curve-disconnect'!BI$9+'Res-Appliance class'!$D30*'RES S curve-disconnect'!BI$14+'Res-Appliance class'!$E30*'RES S curve-disconnect'!BI$19","v":22640.100238909792},{"$f":"'Res-Appliance class'!$B30*'RES S curve-disconnect'!BJ$4+'Res-Appliance class'!$C30*'RES S curve-disconnect'!BJ$9+'Res-Appliance class'!$D30*'RES S curve-disconnect'!BJ$14+'Res-Appliance class'!$E30*'RES S curve-disconnect'!BJ$19","v":26718.301412651403},{"$f":"'Res-Appliance class'!$B30*'RES S curve-disconnect'!BK$4+'Res-Appliance class'!$C30*'RES S curve-disconnect'!BK$9+'Res-Appliance class'!$D30*'RES S curve-disconnect'!BK$14+'Res-Appliance class'!$E30*'RES S curve-disconnect'!BK$19","v":32741.455270264803},{"$f":"'Res-Appliance class'!$B30*'RES S curve-disconnect'!BL$4+'Res-Appliance class'!$C30*'RES S curve-disconnect'!BL$9+'Res-Appliance class'!$D30*'RES S curve-disconnect'!BL$14+'Res-Appliance class'!$E30*'RES S curve-disconnect'!BL$19","v":-1967.0706004236931},{"$f":"'Res-Appliance class'!$B30*'RES S curve-disconnect'!BM$4+'Res-Appliance class'!$C30*'RES S curve-disconnect'!BM$9+'Res-Appliance class'!$D30*'RES S curve-disconnect'!BM$14+'Res-Appliance class'!$E30*'RES S curve-disconnect'!BM$19","v":-1959.502837607839},{"$f":"'Res-Appliance class'!$B30*'RES S curve-disconnect'!BN$4+'Res-Appliance class'!$C30*'RES S curve-disconnect'!BN$9+'Res-Appliance class'!$D30*'RES S curve-disconnect'!BN$14+'Res-Appliance class'!$E30*'RES S curve-disconnect'!BN$19","v":-1955.2855739849456},{"$f":"'Res-Appliance class'!$B30*'RES S curve-disconnect'!BO$4+'Res-Appliance class'!$C30*'RES S curve-disconnect'!BO$9+'Res-Appliance class'!$D30*'RES S curve-disconnect'!BO$14+'Res-Appliance class'!$E30*'RES S curve-disconnect'!BO$19","v":-1944.3974896754191},{"$f":"'Res-Appliance class'!$B30*'RES S curve-disconnect'!BP$4+'Res-Appliance class'!$C30*'RES S curve-disconnect'!BP$9+'Res-Appliance class'!$D30*'RES S curve-disconnect'!BP$14+'Res-Appliance class'!$E30*'RES S curve-disconnect'!BP$19","v":-1936.8597842770018},{"$f":"'Res-Appliance class'!$B30*'RES S curve-disconnect'!BQ$4+'Res-Appliance class'!$C30*'RES S curve-disconnect'!BQ$9+'Res-Appliance class'!$D30*'RES S curve-disconnect'!BQ$14+'Res-Appliance class'!$E30*'RES S curve-disconnect'!BQ$19","v":-1929.3319783568152},{"$f":"'Res-Appliance class'!$B30*'RES S curve-disconnect'!BR$4+'Res-Appliance class'!$C30*'RES S curve-disconnect'!BR$9+'Res-Appliance class'!$D30*'RES S curve-disconnect'!BR$14+'Res-Appliance class'!$E30*'RES S curve-disconnect'!BR$19","v":-1925.1544325523769},{"$f":"'Res-Appliance class'!$B30*'RES S curve-disconnect'!BS$4+'Res-Appliance class'!$C30*'RES S curve-disconnect'!BS$9+'Res-Appliance class'!$D30*'RES S curve-disconnect'!BS$14+'Res-Appliance class'!$E30*'RES S curve-disconnect'!BS$19","v":-1914.3058284659151},{"$f":"'Res-Appliance class'!$B30*'RES S curve-disconnect'!BT$4+'Res-Appliance class'!$C30*'RES S curve-disconnect'!BT$9+'Res-Appliance class'!$D30*'RES S curve-disconnect'!BT$14+'Res-Appliance class'!$E30*'RES S curve-disconnect'!BT$19","v":-1906.8073671676439},{"$f":"'Res-Appliance class'!$B30*'RES S curve-disconnect'!BU$4+'Res-Appliance class'!$C30*'RES S curve-disconnect'!BU$9+'Res-Appliance class'!$D30*'RES S curve-disconnect'!BU$14+'Res-Appliance class'!$E30*'RES S curve-disconnect'!BU$19","v":-1899.3185706878742},{"$f":"'Res-Appliance class'!$B30*'RES S curve-disconnect'!BV$4+'Res-Appliance class'!$C30*'RES S curve-disconnect'!BV$9+'Res-Appliance class'!$D30*'RES S curve-disconnect'!BV$14+'Res-Appliance class'!$E30*'RES S curve-disconnect'!BV$19","v":-1895.1798011180904},{"$f":"'Res-Appliance class'!$B30*'RES S curve-disconnect'!BW$4+'Res-Appliance class'!$C30*'RES S curve-disconnect'!BW$9+'Res-Appliance class'!$D30*'RES S curve-disconnect'!BW$14+'Res-Appliance class'!$E30*'RES S curve-disconnect'!BW$19","v":-1884.3697415053159},{"$f":"'Res-Appliance class'!$B30*'RES S curve-disconnect'!BX$4+'Res-Appliance class'!$C30*'RES S curve-disconnect'!BX$9+'Res-Appliance class'!$D30*'RES S curve-disconnect'!BX$14+'Res-Appliance class'!$E30*'RES S curve-disconnect'!BX$19","v":-1876.9095943554576},{"$f":"'Res-Appliance class'!$B30*'RES S curve-disconnect'!BY$4+'Res-Appliance class'!$C30*'RES S curve-disconnect'!BY$9+'Res-Appliance class'!$D30*'RES S curve-disconnect'!BY$14+'Res-Appliance class'!$E30*'RES S curve-disconnect'!BY$19","v":-1869.4588831254669},{"$f":"'Res-Appliance class'!$B30*'RES S curve-disconnect'!BZ$4+'Res-Appliance class'!$C30*'RES S curve-disconnect'!BZ$9+'Res-Appliance class'!$D30*'RES S curve-disconnect'!BZ$14+'Res-Appliance class'!$E30*'RES S curve-disconnect'!BZ$19","v":-1865.3579713244735},{"$f":"'Res-Appliance class'!$B30*'RES S curve-disconnect'!CA$4+'Res-Appliance class'!$C30*'RES S curve-disconnect'!CA$9+'Res-Appliance class'!$D30*'RES S curve-disconnect'!CA$14+'Res-Appliance class'!$E30*'RES S curve-disconnect'!CA$19","v":-1854.5855434082118},{"$f":"'Res-Appliance class'!$B30*'RES S curve-disconnect'!CB$4+'Res-Appliance class'!$C30*'RES S curve-disconnect'!CB$9+'Res-Appliance class'!$D30*'RES S curve-disconnect'!CB$14+'Res-Appliance class'!$E30*'RES S curve-disconnect'!CB$19","v":-1847.1628032824201},{"$f":"'Res-Appliance class'!$B30*'RES S curve-disconnect'!CC$4+'Res-Appliance class'!$C30*'RES S curve-disconnect'!CC$9+'Res-Appliance class'!$D30*'RES S curve-disconnect'!CC$14+'Res-Appliance class'!$E30*'RES S curve-disconnect'!CC$19","v":-1839.7492757950597},{"$f":"'Res-Appliance class'!$B30*'RES S curve-disconnect'!CD$4+'Res-Appliance class'!$C30*'RES S curve-disconnect'!CD$9+'Res-Appliance class'!$D30*'RES S curve-disconnect'!CD$14+'Res-Appliance class'!$E30*'RES S curve-disconnect'!CD$19","v":-1953.9687373191291}]
["Casey (C)",null,{"$f":"'Res-Appliance class'!$B31*'RES S curve-disconnect'!C$4+'Res-Appliance class'!$C31*'RES S curve-disconnect'!C$9+'Res-Appliance class'!$D31*'RES S curve-disconnect'!C$14+'Res-Appliance class'!$E31*'RES S curve-disconnect'!C$19","v":-5047.2399283829309},{"$f":"'Res-Appliance class'!$B31*'RES S curve-disconnect'!D$4+'Res-Appliance class'!$C31*'RES S curve-disconnect'!D$9+'Res-Appliance class'!$D31*'RES S curve-disconnect'!D$14+'Res-Appliance class'!$E31*'RES S curve-disconnect'!D$19","v":-5580.5105437298753},{"$f":"'Res-Appliance class'!$B31*'RES S curve-disconnect'!E$4+'Res-Appliance class'!$C31*'RES S curve-disconnect'!E$9+'Res-Appliance class'!$D31*'RES S curve-disconnect'!E$14+'Res-Appliance class'!$E31*'RES S curve-disconnect'!E$19","v":-4833.9502605000034},{"$f":"'Res-Appliance class'!$B31*'RES S curve-disconnect'!F$4+'Res-Appliance class'!$C31*'RES S curve-disconnect'!F$9+'Res-Appliance class'!$D31*'RES S curve-disconnect'!F$14+'Res-Appliance class'!$E31*'RES S curve-disconnect'!F$19","v":-4673.4191643098493},{"$f":"'Res-Appliance class'!$B31*'RES S curve-disconnect'!G$4+'Res-Appliance class'!$C31*'RES S curve-disconnect'!G$9+'Res-Appliance class'!$D31*'RES S curve-disconnect'!G$14+'Res-Appliance class'!$E31*'RES S curve-disconnect'!G$19","v":-5936.7110929723331},{"$f":"'Res-Appliance class'!$B31*'RES S curve-disconnect'!H$4+'Res-Appliance class'!$C31*'RES S curve-disconnect'!H$9+'Res-Appliance class'!$D31*'RES S curve-disconnect'!H$14+'Res-Appliance class'!$E31*'RES S curve-disconnect'!H$19","v":-5973.6313864764124},{"$f":"'Res-Appliance class'!$B31*'RES S curve-disconnect'!I$4+'Res-Appliance class'!$C31*'RES S curve-disconnect'!I$9+'Res-Appliance class'!$D31*'RES S curve-disconnect'!I$14+'Res-Appliance class'!$E31*'RES S curve-disconnect'!I$19","v":-5520.2190922881418},{"$f":"'Res-Appliance class'!$B31*'RES S curve-disconnect'!J$4+'Res-Appliance class'!$C31*'RES S curve-disconnect'!J$9+'Res-Appliance class'!$D31*'RES S curve-disconnect'!J$14+'Res-Appliance class'!$E31*'RES S curve-disconnect'!J$19","v":-5863.8045554844239},{"$f":"'Res-Appliance class'!$B31*'RES S curve-disconnect'!K$4+'Res-Appliance class'!$C31*'RES S curve-disconnect'!K$9+'Res-Appliance class'!$D31*'RES S curve-disconnect'!K$14+'Res-Appliance class'!$E31*'RES S curve-disconnect'!K$19","v":-5011.4131026329296},{"$f":"'Res-Appliance class'!$B31*'RES S curve-disconnect'!L$4+'Res-Appliance class'!$C31*'RES S curve-disconnect'!L$9+'Res-Appliance class'!$D31*'RES S curve-disconnect'!L$14+'Res-Appliance class'!$E31*'RES S curve-disconnect'!L$19","v":-5373.7185226621314},{"$f":"'Res-Appliance class'!$B31*'RES S curve-disconnect'!M$4+'Res-Appliance class'!$C31*'RES S curve-disconnect'!M$9+'Res-Appliance class'!$D31*'RES S curve-disconnect'!M$14+'Res-Appliance class'!$E31*'RES S curve-disconnect'!M$19","v":-6036.3025918938283},{"$f":"'Res-Appliance class'!$B31*'RES S curve-disconnect'!N$4+'Res-Appliance class'!$C31*'RES S curve-disconnect'!N$9+'Res-Appliance class'!$D31*'RES S curve-disconnect'!N$14+'Res-Appliance class'!$E31*'RES S curve-disconnect'!N$19","v":-6096.5463635289589},{"$f":"'Res-Appliance class'!$B31*'RES S curve-disconnect'!O$4+'Res-Appliance class'!$C31*'RES S curve-disconnect'!O$9+'Res-Appliance class'!$D31*'RES S curve-disconnect'!O$14+'Res-Appliance class'!$E31*'RES S curve-disconnect'!O$19","v":-5510.262422087033},{"$f":"'Res-Appliance class'!$B31*'RES S curve-disconnect'!P$4+'Res-Appliance class'!$C31*'RES S curve-disconnect'!P$9+'Res-Appliance class'!$D31*'RES S curve-disconnect'!P$14+'Res-Appliance class'!$E31*'RES S curve-disconnect'!P$19","v":-5042.5101105721751},{"$f":"'Res-Appliance class'!$B31*'RES S curve-disconnect'!Q$4+'Res-Appliance class'!$C31*'RES S curve-disconnect'!Q$9+'Res-Appliance class'!$D31*'RES S curve-disconnect'!Q$14+'Res-Appliance class'!$E31*'RES S curve-disconnect'!Q$19","v":-4336.885519655194},{"$f":"'Res-Appliance class'!$B31*'RES S curve-disconnect'!R$4+'Res-Appliance class'!$C31*'RES S curve-disconnect'!R$9+'Res-Appliance class'!$D31*'RES S curve-disconnect'!R$14+'Res-Appliance class'!$E31*'RES S curve-disconnect'!R$19","v":-3935.8819118676893},{"$f":"'Res-Appliance class'!$B31*'RES S curve-disconnect'!S$4+'Res-Appliance class'!$C31*'RES S curve-disconnect'!S$9+'Res-Appliance class'!$D31*'RES S curve-disconnect'!S$14+'Res-Appliance class'!$E31*'RES S curve-disconnect'!S$19","v":-3300.3200738397886},{"$f":"'Res-Appliance class'!$B31*'RES S curve-disconnect'!T$4+'Res-Appliance class'!$C31*'RES S curve-disconnect'!T$9+'Res-Appliance class'!$D31*'RES S curve-disconnect'!T$14+'Res-Appliance class'!$E31*'RES S curve-disconnect'!T$19","v":-2952.0075245815133},{"$f":"'Res-Appliance class'!$B31*'RES S curve-disconnect'!U$4+'Res-Appliance class'!$C31*'RES S curve-disconnect'!U$9+'Res-Appliance class'!$D31*'RES S curve-disconnect'!U$14+'Res-Appliance class'!$E31*'RES S curve-disconnect'!U$19","v":-2555.8909495722255},{"$f":"'Res-Appliance class'!$B31*'RES S curve-disconnect'!V$4+'Res-Appliance class'!$C31*'RES S curve-disconnect'!V$9+'Res-Appliance class'!$D31*'RES S curve-disconnect'!V$14+'Res-Appliance class'!$E31*'RES S curve-disconnect'!V$19","v":-2285.2644044992835},{"$f":"'Res-Appliance class'!$B31*'RES S curve-disconnect'!W$4+'Res-Appliance class'!$C31*'RES S curve-disconnect'!W$9+'Res-Appliance class'!$D31*'RES S curve-disconnect'!W$14+'Res-Appliance class'!$E31*'RES S curve-disconnect'!W$19","v":-2073.9515134071553},{"$f":"'Res-Appliance class'!$B31*'RES S curve-disconnect'!X$4+'Res-Appliance class'!$C31*'RES S curve-disconnect'!X$9+'Res-Appliance class'!$D31*'RES S curve-disconnect'!X$14+'Res-Appliance class'!$E31*'RES S curve-disconnect'!X$19","v":-1596.6274798615473},{"$f":"'Res-Appliance class'!$B31*'RES S curve-disconnect'!Y$4+'Res-Appliance class'!$C31*'RES S curve-disconnect'!Y$9+'Res-Appliance class'!$D31*'RES S curve-disconnect'!Y$14+'Res-Appliance class'!$E31*'RES S curve-disconnect'!Y$19","v":-1113.9084595406657},{"$f":"'Res-Appliance class'!$B31*'RES S curve-disconnect'!Z$4+'Res-Appliance class'!$C31*'RES S curve-disconnect'!Z$9+'Res-Appliance class'!$D31*'RES S curve-disconnect'!Z$14+'Res-Appliance class'!$E31*'RES S curve-disconnect'!Z$19","v":-786.65919545830911},{"$f":"'Res-Appliance class'!$B31*'RES S curve-disconnect'!AA$4+'Res-Appliance class'!$C31*'RES S curve-disconnect'!AA$9+'Res-Appliance class'!$D31*'RES S curve-disconnect'!AA$14+'Res-Appliance class'!$E31*'RES S curve-disconnect'!AA$19","v":-459.61269202680421},{"$f":"'Res-Appliance class'!$B31*'RES S curve-disconnect'!AB$4+'Res-Appliance class'!$C31*'RES S curve-disconnect'!AB$9+'Res-Appliance class'!$D31*'RES S curve-disconnect'!AB$14+'Res-Appliance class'!$E31*'RES S curve-disconnect'!AB$19","v":-198.28821948122018},{"$f":"'Res-Appliance class'!$B31*'RES S curve-disconnect'!AC$4+'Res-Appliance class'!$C31*'RES S curve-disconnect'!AC$9+'Res-Appliance class'!$D31*'RES S curve-disconnect'!AC$14+'Res-Appliance class'!$E31*'RES S curve-disconnect'!AC$19","v":53.392739136312514},{"$f":"'Res-Appliance class'!$B31*'RES S curve-disconnect'!AD$4+'Res-Appliance class'!$C31*'RES S curve-disconnect'!AD$9+'Res-Appliance class'!$D31*'RES S curve-disconnect'!AD$14+'Res-Appliance class'!$E31*'RES S curve-disconnect'!AD$19","v":284.38331634387447},{"$f":"'Res-Appliance class'!$B31*'RES S curve-disconnect'!AE$4+'Res-Appliance class'!$C31*'RES S curve-disconnect'!AE$9+'Res-Appliance class'!$D31*'RES S curve-disconnect'!AE$14+'Res-Appliance class'!$E31*'RES S curve-disconnect'!AE$19","v":526.76457989114544},{"$f":"'Res-Appliance class'!$B31*'RES S curve-disconnect'!AF$4+'Res-Appliance class'!$C31*'RES S curve-disconnect'!AF$9+'Res-Appliance class'!$D31*'RES S curve-disconnect'!AF$14+'Res-Appliance class'!$E31*'RES S curve-disconnect'!AF$19","v":840.26940893049982},{"$f":"'Res-Appliance class'!$B31*'RES S curve-disconnect'!AG$4+'Res-Appliance class'!$C31*'RES S curve-disconnect'!AG$9+'Res-Appliance class'!$D31*'RES S curve-disconnect'!AG$14+'Res-Appliance class'!$E31*'RES S curve-disconnect'!AG$19","v":1054.86868053072},{"$f":"'Res-Appliance class'!$B31*'RES S curve-disconnect'!AH$4+'Res-Appliance class'!$C31*'RES S curve-disconnect'!AH$9+'Res-Appliance class'!$D31*'RES S curve-disconnect'!AH$14+'Res-Appliance class'!$E31*'RES S curve-disconnect'!AH$19","v":1357.5005935113593},{"$f":"'Res-Appliance class'!$B31*'RES S curve-disconnect'!AI$4+'Res-Appliance class'!$C31*'RES S curve-disconnect'!AI$9+'Res-Appliance class'!$D31*'RES S curve-disconnect'!AI$14+'Res-Appliance class'!$E31*'RES S curve-disconnect'!AI$19","v":1628.9392326039313},{"$f":"'Res-Appliance class'!$B31*'RES S curve-disconnect'!AJ$4+'Res-Appliance class'!$C31*'RES S curve-disconnect'!AJ$9+'Res-Appliance class'!$D31*'RES S curve-disconnect'!AJ$14+'Res-Appliance class'!$E31*'RES S curve-disconnect'!AJ$19","v":1874.033733252089},{"$f":"'Res-Appliance class'!$B31*'RES S curve-disconnect'!AK$4+'Res-Appliance class'!$C31*'RES S curve-disconnect'!AK$9+'Res-Appliance class'!$D31*'RES S curve-disconnect'!AK$14+'Res-Appliance class'!$E31*'RES S curve-disconnect'!AK$19","v":2134.2147177604725},{"$f":"'Res-Appliance class'!$B31*'RES S curve-disconnect'!AL$4+'Res-Appliance class'!$C31*'RES S curve-disconnect'!AL$9+'Res-Appliance class'!$D31*'RES S curve-disconnect'!AL$14+'Res-Appliance class'!$E31*'RES S curve-disconnect'!AL$19","v":1235.1949346346657},{"$f":"'Res-Appliance class'!$B31*'RES S curve-disconnect'!AM$4+'Res-Appliance class'!$C31*'RES S curve-disconnect'!AM$9+'Res-Appliance class'!$D31*'RES S curve-disconnect'!AM$14+'Res-Appliance class'!$E31*'RES S curve-disconnect'!AM$19","v":1116.5519433349134},{"$f":"'Res-Appliance class'!$B31*'RES S curve-disconnect'!AN$4+'Res-Appliance class'!$C31*'RES S curve-disconnect'!AN$9+'Res-Appliance class'!$D31*'RES S curve-disconnect'!AN$14+'Res-Appliance class'!$E31*'RES S curve-disconnect'!AN$19","v":1362.3258982220091},{"$f":"'Res-Appliance class'!$B31*'RES S curve-disconnect'!AO$4+'Res-Appliance class'!$C31*'RES S curve-disconnect'!AO$9+'Res-Appliance class'!$D31*'RES S curve-disconnect'!AO$14+'Res-Appliance class'!$E31*'RES S curve-disconnect'!AO$19","v":1663.4420504911891},{"$f":"'Res-Appliance class'!$B31*'RES S curve-disconnect'!AP$4+'Res-Appliance class'!$C31*'RES S curve-disconnect'!AP$9+'Res-Appliance class'!$D31*'RES S curve-disconnect'!AP$14+'Res-Appliance class'!$E31*'RES S curve-disconnect'!AP$19","v":1941.9330900682658},{"$f":"'Res-Appliance class'!$B31*'RES S curve-disconnect'!AQ$4+'Res-Appliance class'!$C31*'RES S curve-disconnect'!AQ$9+'Res-Appliance class'!$D31*'RES S curve-disconnect'!AQ$14+'Res-Appliance class'!$E31*'RES S curve-disconnect'!AQ$19","v":2241.447122330203},{"$f":"'Res-Appliance class'!$B31*'RES S curve-disconnect'!AR$4+'Res-Appliance class'!$C31*'RES S curve-disconnect'!AR$9+'Res-Appliance class'!$D31*'RES S curve-disconnect'!AR$14+'Res-Appliance class'!$E31*'RES S curve-disconnect'!AR$19","v":2570.5013810192359},{"$f":"'Res-Appliance class'!$B31*'RES S curve-disconnect'!AS$4+'Res-Appliance class'!$C31*'RES S curve-disconnect'!AS$9+'Res-Appliance class'!$D31*'RES S curve-disconnect'!AS$14+'Res-Appliance class'!$E31*'RES S curve-disconnect'!AS$19","v":2939.7968599379774},{"$f":"'Res-Appliance class'!$B31*'RES S curve-disconnect'!AT$4+'Res-Appliance class'!$C31*'RES S curve-disconnect'!AT$9+'Res-Appliance class'!$D31*'RES S curve-disconnect'!AT$14+'Res-Appliance class'!$E31*'RES S curve-disconnect'!AT$19","v":3353.1032895553776},{"$f":"'Res-Appliance class'!$B31*'RES S curve-disconnect'!AU$4+'Res-Appliance class'!$C31*'RES S curve-disconnect'!AU$9+'Res-Appliance class'!$D31*'RES S curve-disconnect'!AU$14+'Res-Appliance class'!$E31*'RES S curve-disconnect'!AU$19","v":3830.9890838493716},{"$f":"'Res-Appliance class'!$B31*'RES S curve-disconnect'!AV$4+'Res-Appliance class'!$C31*'RES S curve-disconnect'!AV$9+'Res-Appliance class'!$D31*'RES S curve-disconnect'!AV$14+'Res-Appliance class'!$E31*'RES S curve-disconnect'!AV$19","v":4376.3815377121227},{"$f":"'Res-Appliance class'!$B31*'RES S curve-disconnect'!AW$4+'Res-Appliance class'!$C31*'RES S curve-disconnect'!AW$9+'Res-Appliance class'!$D31*'RES S curve-disconnect'!AW$14+'Res-Appliance class'!$E31*'RES S curve-disconnect'!AW$19","v":5003.3978720834457},{"$f":"'Res-Appliance class'!$B31*'RES S curve-disconnect'!AX$4+'Res-Appliance class'!$C31*'RES S curve-disconnect'!AX$9+'Res-Appliance class'!$D31*'RES S curve-disconnect'!AX$14+'Res-Appliance class'!$E31*'RES S curve-disconnect'!AX$19","v":5718.3574153118416},{"$f":"'Res-Appliance class'!$B31*'RES S curve-disconnect'!AY$4+'Res-Appliance class'!$C31*'RES S curve-disconnect'!AY$9+'Res-Appliance class'!$D31*'RES S curve-disconnect'!AY$14+'Res-Appliance class'!$E31*'RES S curve-disconnect'!AY$19","v":6543.1852987172024},{"$f":"'Res-Appliance class'!$B31*'RES S curve-disconnect'!AZ$4+'Res-Appliance class'!$C31*'RES S curve-disconnect'!AZ$9+'Res-Appliance class'!$D31*'RES S curve-disconnect'!AZ$14+'Res-Appliance class'!$E31*'RES S curve-disconnect'!AZ$19","v":7486.5688654418927},{"$f":"'Res-Appliance class'!$B31*'RES S curve-disconnect'!BA$4+'Res-Appliance class'!$C31*'RES S curve-disconnect'!BA$9+'Res-Appliance class'!$D31*'RES S curve-disconnect'!BA$14+'Res-Appliance class'!$E31*'RES S curve-disconnect'!BA$19","v":8579.4251487842084},{"$f":"'Res-Appliance class'!$B31*'RES S curve-disconnect'!BB$4+'Res-Appliance class'!$C31*'RES S curve-disconnect'!BB$9+'Res-Appliance class'!$D31*'RES S curve-disconnect'!BB$14+'Res-Appliance class'!$E31*'RES S curve-disconnect'!BB$19","v":9856.816395784148},{"$f":"'Res-Appliance class'!$B31*'RES S curve-disconnect'!BC$4+'Res-Appliance class'!$C31*'RES S curve-disconnect'!BC$9+'Res-Appliance class'!$D31*'RES S curve-disconnect'!BC$14+'Res-Appliance class'!$E31*'RES S curve-disconnect'!BC$19","v":11380.226895896303},{"$f":"'Res-Appliance class'!$B31*'RES S curve-disconnect'!BD$4+'Res-Appliance class'!$C31*'RES S curve-disconnect'!BD$9+'Res-Appliance class'!$D31*'RES S curve-disconnect'!BD$14+'Res-Appliance class'!$E31*'RES S curve-disconnect'!BD$19","v":12851.387295004446},{"$f":"'Res-Appliance class'!$B31*'RES S curve-disconnect'!BE$4+'Res-Appliance class'!$C31*'RES S curve-disconnect'!BE$9+'Res-Appliance class'!$D31*'RES S curve-disconnect'!BE$14+'Res-Appliance class'!$E31*'RES S curve-disconnect'!BE$19","v":14196.553568697533},{"$f":"'Res-Appliance class'!$B31*'RES S curve-disconnect'!BF$4+'Res-Appliance class'!$C31*'RES S curve-disconnect'!BF$9+'Res-Appliance class'!$D31*'RES S curve-disconnect'!BF$14+'Res-Appliance class'!$E31*'RES S curve-disconnect'!BF$19","v":15572.758381613277},{"$f":"'Res-Appliance class'!$B31*'RES S curve-disconnect'!BG$4+'Res-Appliance class'!$C31*'RES S curve-disconnect'!BG$9+'Res-Appliance class'!$D31*'RES S curve-disconnect'!BG$14+'Res-Appliance class'!$E31*'RES S curve-disconnect'!BG$19","v":17129.731061481543},{"$f":"'Res-Appliance class'!$B31*'RES S curve-disconnect'!BH$4+'Res-Appliance class'!$C31*'RES S curve-disconnect'!BH$9+'Res-Appliance class'!$D31*'RES S curve-disconnect'!BH$14+'Res-Appliance class'!$E31*'RES S curve-disconnect'!BH$19","v":18978.291455272858},{"$f":"'Res-Appliance class'!$B31*'RES S curve-disconnect'!BI$4+'Res-Appliance class'!$C31*'RES S curve-disconnect'!BI$9+'Res-Appliance class'!$D31*'RES S curve-disconnect'!BI$14+'Res-Appliance class'!$E31*'RES S curve-disconnect'!BI$19","v":21656.488987096083},{"$f":"'Res-Appliance class'!$B31*'RES S curve-disconnect'!BJ$4+'Res-Appliance class'!$C31*'RES S curve-disconnect'!BJ$9+'Res-Appliance class'!$D31*'RES S curve-disconnect'!BJ$14+'Res-Appliance class'!$E31*'RES S curve-disconnect'!BJ$19","v":25580.640149455132},{"$f":"'Res-Appliance class'!$B31*'RES S curve-disconnect'!BK$4+'Res-Appliance class'!$C31*'RES S curve-disconnect'!BK$9+'Res-Appliance class'!$D31*'RES S curve-disconnect'!BK$14+'Res-Appliance class'!$E31*'RES S curve-disconnect'!BK$19","v":31374.526960846437},{"$f":"'Res-Appliance class'!$B31*'RES S curve-disconnect'!BL$4+'Res-Appliance class'!$C31*'RES S curve-disconnect'!BL$9+'Res-Appliance class'!$D31*'RES S curve-disconnect'!BL$14+'Res-Appliance class'!$E31*'RES S curve-disconnect'!BL$19","v":-2055.2730646187247},{"$f":"'Res-Appliance class'!$B31*'RES S curve-disconnect'!BM$4+'Res-Appliance class'!$C31*'RES S curve-disconnect'!BM$9+'Res-Appliance class'!$D31*'RES S curve-disconnect'!BM$14+'Res-Appliance class'!$E31*'RES S curve-disconnect'!BM$19","v":-2047.9471954013827},{"$f":"'Res-Appliance class'!$B31*'RES S curve-disconnect'!BN$4+'Res-Appliance class'!$C31*'RES S curve-disconnect'!BN$9+'Res-Appliance class'!$D31*'RES S curve-disconnect'!BN$14+'Res-Appliance class'!$E31*'RES S curve-disconnect'!BN$19","v":-2043.9718355256077},{"$f":"'Res-Appliance class'!$B31*'RES S curve-disconnect'!BO$4+'Res-Appliance class'!$C31*'RES S curve-disconnect'!BO$9+'Res-Appliance class'!$D31*'RES S curve-disconnect'!BO$14+'Res-Appliance class'!$E31*'RES S curve-disconnect'!BO$19","v":-2033.3256647188923},{"$f":"'Res-Appliance class'!$B31*'RES S curve-disconnect'!BP$4+'Res-Appliance class'!$C31*'RES S curve-disconnect'!BP$9+'Res-Appliance class'!$D31*'RES S curve-disconnect'!BP$14+'Res-Appliance class'!$E31*'RES S curve-disconnect'!BP$19","v":-2026.0298821895294},{"$f":"'Res-Appliance class'!$B31*'RES S curve-disconnect'!BQ$4+'Res-Appliance class'!$C31*'RES S curve-disconnect'!BQ$9+'Res-Appliance class'!$D31*'RES S curve-disconnect'!BQ$14+'Res-Appliance class'!$E31*'RES S curve-disconnect'!BQ$19","v":-2018.7440081186335},{"$f":"'Res-Appliance class'!$B31*'RES S curve-disconnect'!BR$4+'Res-Appliance class'!$C31*'RES S curve-disconnect'!BR$9+'Res-Appliance class'!$D31*'RES S curve-disconnect'!BR$14+'Res-Appliance class'!$E31*'RES S curve-disconnect'!BR$19","v":-2014.8084027611305},{"$f":"'Res-Appliance class'!$B31*'RES S curve-disconnect'!BS$4+'Res-Appliance class'!$C31*'RES S curve-disconnect'!BS$9+'Res-Appliance class'!$D31*'RES S curve-disconnect'!BS$14+'Res-Appliance class'!$E31*'RES S curve-disconnect'!BS$19","v":-2004.2017473400485},{"$f":"'Res-Appliance class'!$B31*'RES S curve-disconnect'!BT$4+'Res-Appliance class'!$C31*'RES S curve-disconnect'!BT$9+'Res-Appliance class'!$D31*'RES S curve-disconnect'!BT$14+'Res-Appliance class'!$E31*'RES S curve-disconnect'!BT$19","v":-1996.9452425497682},{"$f":"'Res-Appliance class'!$B31*'RES S curve-disconnect'!BU$4+'Res-Appliance class'!$C31*'RES S curve-disconnect'!BU$9+'Res-Appliance class'!$D31*'RES S curve-disconnect'!BU$14+'Res-Appliance class'!$E31*'RES S curve-disconnect'!BU$19","v":-1989.69841004811},{"$f":"'Res-Appliance class'!$B31*'RES S curve-disconnect'!BV$4+'Res-Appliance class'!$C31*'RES S curve-disconnect'!BV$9+'Res-Appliance class'!$D31*'RES S curve-disconnect'!BV$14+'Res-Appliance class'!$E31*'RES S curve-disconnect'!BV$19","v":-1985.8016115573864},{"$f":"'Res-Appliance class'!$B31*'RES S curve-disconnect'!BW$4+'Res-Appliance class'!$C31*'RES S curve-disconnect'!BW$9+'Res-Appliance class'!$D31*'RES S curve-disconnect'!BW$14+'Res-Appliance class'!$E31*'RES S curve-disconnect'!BW$19","v":-1975.2335297587442},{"$f":"'Res-Appliance class'!$B31*'RES S curve-disconnect'!BX$4+'Res-Appliance class'!$C31*'RES S curve-disconnect'!BX$9+'Res-Appliance class'!$D31*'RES S curve-disconnect'!BX$14+'Res-Appliance class'!$E31*'RES S curve-disconnect'!BX$19","v":-1968.0153667954833},{"$f":"'Res-Appliance class'!$B31*'RES S curve-disconnect'!BY$4+'Res-Appliance class'!$C31*'RES S curve-disconnect'!BY$9+'Res-Appliance class'!$D31*'RES S curve-disconnect'!BY$14+'Res-Appliance class'!$E31*'RES S curve-disconnect'!BY$19","v":-1960.8066457651964},{"$f":"'Res-Appliance class'!$B31*'RES S curve-disconnect'!BZ$4+'Res-Appliance class'!$C31*'RES S curve-disconnect'!BZ$9+'Res-Appliance class'!$D31*'RES S curve-disconnect'!BZ$14+'Res-Appliance class'!$E31*'RES S curve-disconnect'!BZ$19","v":-1956.9477298208774},{"$f":"'Res-Appliance class'!$B31*'RES S curve-disconnect'!CA$4+'Res-Appliance class'!$C31*'RES S curve-disconnect'!CA$9+'Res-Appliance class'!$D31*'RES S curve-disconnect'!CA$14+'Res-Appliance class'!$E31*'RES S curve-disconnect'!CA$19","v":-1946.4173030653265},{"$f":"'Res-Appliance class'!$B31*'RES S curve-disconnect'!CB$4+'Res-Appliance class'!$C31*'RES S curve-disconnect'!CB$9+'Res-Appliance class'!$D31*'RES S curve-disconnect'!CB$14+'Res-Appliance class'!$E31*'RES S curve-disconnect'!CB$19","v":-1939.2365690545237},{"$f":"'Res-Appliance class'!$B31*'RES S curve-disconnect'!CC$4+'Res-Appliance class'!$C31*'RES S curve-disconnect'!CC$9+'Res-Appliance class'!$D31*'RES S curve-disconnect'!CC$14+'Res-Appliance class'!$E31*'RES S curve-disconnect'!CC$19","v":-1932.0650522898275},{"$f":"'Res-Appliance class'!$B31*'RES S curve-disconnect'!CD$4+'Res-Appliance class'!$C31*'RES S curve-disconnect'!CD$9+'Res-Appliance class'!$D31*'RES S curve-disconnect'!CD$14+'Res-Appliance class'!$E31*'RES S curve-disconnect'!CD$19","v":-2041.7648475161989}]
["Frankston (C)",null,{"$f":"'Res-Appliance class'!$B32*'RES S curve-disconnect'!C$4+'Res-Appliance class'!$C32*'RES S curve-disconnect'!C$9+'Res-Appliance class'!$D32*'RES S curve-disconnect'!C$14+'Res-Appliance class'!$E32*'RES S curve-disconnect'!C$19","v":-5610.9036043686101},{"$f":"'Res-Appliance class'!$B32*'RES S curve-disconnect'!D$4+'Res-Appliance class'!$C32*'RES S curve-disconnect'!D$9+'Res-Appliance class'!$D32*'RES S curve-disconnect'!D$14+'Res-Appliance class'!$E32*'RES S curve-disconnect'!D$19","v":-6252.6434227185337},{"$f":"'Res-Appliance class'!$B32*'RES S curve-disconnect'!E$4+'Res-Appliance class'!$C32*'RES S curve-disconnect'!E$9+'Res-Appliance class'!$D32*'RES S curve-disconnect'!E$14+'Res-Appliance class'!$E32*'RES S curve-disconnect'!E$19","v":-5275.5253280099196},{"$f":"'Res-Appliance class'!$B32*'RES S curve-disconnect'!F$4+'Res-Appliance class'!$C32*'RES S curve-disconnect'!F$9+'Res-Appliance class'!$D32*'RES S curve-disconnect'!F$14+'Res-Appliance class'!$E32*'RES S curve-disconnect'!F$19","v":-5075.6041115410044},{"$f":"'Res-Appliance class'!$B32*'RES S curve-disconnect'!G$4+'Res-Appliance class'!$C32*'RES S curve-disconnect'!G$9+'Res-Appliance class'!$D32*'RES S curve-disconnect'!G$14+'Res-Appliance class'!$E32*'RES S curve-disconnect'!G$19","v":-6844.3594563864735},{"$f":"'Res-Appliance class'!$B32*'RES S curve-disconnect'!H$4+'Res-Appliance class'!$C32*'RES S curve-disconnect'!H$9+'Res-Appliance class'!$D32*'RES S curve-disconnect'!H$14+'Res-Appliance class'!$E32*'RES S curve-disconnect'!H$19","v":-6845.8039864560733},{"$f":"'Res-Appliance class'!$B32*'RES S curve-disconnect'!I$4+'Res-Appliance class'!$C32*'RES S curve-disconnect'!I$9+'Res-Appliance class'!$D32*'RES S curve-disconnect'!I$14+'Res-Appliance class'!$E32*'RES S curve-disconnect'!I$19","v":-6281.7306166500293},{"$f":"'Res-Appliance class'!$B32*'RES S curve-disconnect'!J$4+'Res-Appliance class'!$C32*'RES S curve-disconnect'!J$9+'Res-Appliance class'!$D32*'RES S curve-disconnect'!J$14+'Res-Appliance class'!$E32*'RES S curve-disconnect'!J$19","v":-6595.5041138614861},{"$f":"'Res-Appliance class'!$B32*'RES S curve-disconnect'!K$4+'Res-Appliance class'!$C32*'RES S curve-disconnect'!K$9+'Res-Appliance class'!$D32*'RES S curve-disconnect'!K$14+'Res-Appliance class'!$E32*'RES S curve-disconnect'!K$19","v":-5559.4987686106342},{"$f":"'Res-Appliance class'!$B32*'RES S curve-disconnect'!L$4+'Res-Appliance class'!$C32*'RES S curve-disconnect'!L$9+'Res-Appliance class'!$D32*'RES S curve-disconnect'!L$14+'Res-Appliance class'!$E32*'RES S curve-disconnect'!L$19","v":-6000.5551777954561},{"$f":"'Res-Appliance class'!$B32*'RES S curve-disconnect'!M$4+'Res-Appliance class'!$C32*'RES S curve-disconnect'!M$9+'Res-Appliance class'!$D32*'RES S curve-disconnect'!M$14+'Res-Appliance class'!$E32*'RES S curve-disconnect'!M$19","v":-6846.0740663160859},{"$f":"'Res-Appliance class'!$B32*'RES S curve-disconnect'!N$4+'Res-Appliance class'!$C32*'RES S curve-disconnect'!N$9+'Res-Appliance class'!$D32*'RES S curve-disconnect'!N$14+'Res-Appliance class'!$E32*'RES S curve-disconnect'!N$19","v":-6925.9992394659994},{"$f":"'Res-Appliance class'!$B32*'RES S curve-disconnect'!O$4+'Res-Appliance class'!$C32*'RES S curve-disconnect'!O$9+'Res-Appliance class'!$D32*'RES S curve-disconnect'!O$14+'Res-Appliance class'!$E32*'RES S curve-disconnect'!O$19","v":-6209.0802774122785},{"$f":"'Res-Appliance class'!$B32*'RES S curve-disconnect'!P$4+'Res-Appliance class'!$C32*'RES S curve-disconnect'!P$9+'Res-Appliance class'!$D32*'RES S curve-disconnect'!P$14+'Res-Appliance class'!$E32*'RES S curve-disconnect'!P$19","v":-5633.4312133635167},{"$f":"'Res-Appliance class'!$B32*'RES S curve-disconnect'!Q$4+'Res-Appliance class'!$C32*'RES S curve-disconnect'!Q$9+'Res-Appliance class'!$D32*'RES S curve-disconnect'!Q$14+'Res-Appliance class'!$E32*'RES S curve-disconnect'!Q$19","v":-4762.8613636464825},{"$f":"'Res-Appliance class'!$B32*'RES S curve-disconnect'!R$4+'Res-Appliance class'!$C32*'RES S curve-disconnect'!R$9+'Res-Appliance class'!$D32*'RES S curve-disconnect'!R$14+'Res-Appliance class'!$E32*'RES S curve-disconnect'!R$19","v":-4269.2735380413742},{"$f":"'Res-Appliance class'!$B32*'RES S curve-disconnect'!S$4+'Res-Appliance class'!$C32*'RES S curve-disconnect'!S$9+'Res-Appliance class'!$D32*'RES S curve-disconnect'!S$14+'Res-Appliance class'!$E32*'RES S curve-disconnect'!S$19","v":-3489.8892836369409},{"$f":"'Res-Appliance class'!$B32*'RES S curve-disconnect'!T$4+'Res-Appliance class'!$C32*'RES S curve-disconnect'!T$9+'Res-Appliance class'!$D32*'RES S curve-disconnect'!T$14+'Res-Appliance class'!$E32*'RES S curve-disconnect'!T$19","v":-3053.4802616524084},{"$f":"'Res-Appliance class'!$B32*'RES S curve-disconnect'!U$4+'Res-Appliance class'!$C32*'RES S curve-disconnect'!U$9+'Res-Appliance class'!$D32*'RES S curve-disconnect'!U$14+'Res-Appliance class'!$E32*'RES S curve-disconnect'!U$19","v":-2564.9359863078189},{"$f":"'Res-Appliance class'!$B32*'RES S curve-disconnect'!V$4+'Res-Appliance class'!$C32*'RES S curve-disconnect'!V$9+'Res-Appliance class'!$D32*'RES S curve-disconnect'!V$14+'Res-Appliance class'!$E32*'RES S curve-disconnect'!V$19","v":-2236.0344486515269},{"$f":"'Res-Appliance class'!$B32*'RES S curve-disconnect'!W$4+'Res-Appliance class'!$C32*'RES S curve-disconnect'!W$9+'Res-Appliance class'!$D32*'RES S curve-disconnect'!W$14+'Res-Appliance class'!$E32*'RES S curve-disconnect'!W$19","v":-1979.2606985769035},{"$f":"'Res-Appliance class'!$B32*'RES S curve-disconnect'!X$4+'Res-Appliance class'!$C32*'RES S curve-disconnect'!X$9+'Res-Appliance class'!$D32*'RES S curve-disconnect'!X$14+'Res-Appliance class'!$E32*'RES S curve-disconnect'!X$19","v":-1387.3301236714065},{"$f":"'Res-Appliance class'!$B32*'RES S curve-disconnect'!Y$4+'Res-Appliance class'!$C32*'RES S curve-disconnect'!Y$9+'Res-Appliance class'!$D32*'RES S curve-disconnect'!Y$14+'Res-Appliance class'!$E32*'RES S curve-disconnect'!Y$19","v":-789.93159496533985},{"$f":"'Res-Appliance class'!$B32*'RES S curve-disconnect'!Z$4+'Res-Appliance class'!$C32*'RES S curve-disconnect'!Z$9+'Res-Appliance class'!$D32*'RES S curve-disconnect'!Z$14+'Res-Appliance class'!$E32*'RES S curve-disconnect'!Z$19","v":-387.26057077069709},{"$f":"'Res-Appliance class'!$B32*'RES S curve-disconnect'!AA$4+'Res-Appliance class'!$C32*'RES S curve-disconnect'!AA$9+'Res-Appliance class'!$D32*'RES S curve-disconnect'!AA$14+'Res-Appliance class'!$E32*'RES S curve-disconnect'!AA$19","v":13.708068727055661},{"$f":"'Res-Appliance class'!$B32*'RES S curve-disconnect'!AB$4+'Res-Appliance class'!$C32*'RES S curve-disconnect'!AB$9+'Res-Appliance class'!$D32*'RES S curve-disconnect'!AB$14+'Res-Appliance class'!$E32*'RES S curve-disconnect'!AB$19","v":333.47403236751416},{"$f":"'Res-Appliance class'!$B32*'RES S curve-disconnect'!AC$4+'Res-Appliance class'!$C32*'RES S curve-disconnect'!AC$9+'Res-Appliance class'!$D32*'RES S curve-disconnect'!AC$14+'Res-Appliance class'!$E32*'RES S curve-disconnect'!AC$19","v":640.39651638861096},{"$f":"'Res-Appliance class'!$B32*'RES S curve-disconnect'!AD$4+'Res-Appliance class'!$C32*'RES S curve-disconnect'!AD$9+'Res-Appliance class'!$D32*'RES S curve-disconnect'!AD$14+'Res-Appliance class'!$E32*'RES S curve-disconnect'!AD$19","v":921.75042337007153},{"$f":"'Res-Appliance class'!$B32*'RES S curve-disconnect'!AE$4+'Res-Appliance class'!$C32*'RES S curve-disconnect'!AE$9+'Res-Appliance class'!$D32*'RES S curve-disconnect'!AE$14+'Res-Appliance class'!$E32*'RES S curve-disconnect'!AE$19","v":1215.1737133044753},{"$f":"'Res-Appliance class'!$B32*'RES S curve-disconnect'!AF$4+'Res-Appliance class'!$C32*'RES S curve-disconnect'!AF$9+'Res-Appliance class'!$D32*'RES S curve-disconnect'!AF$14+'Res-Appliance class'!$E32*'RES S curve-disconnect'!AF$19","v":1598.4253910573166},{"$f":"'Res-Appliance class'!$B32*'RES S curve-disconnect'!AG$4+'Res-Appliance class'!$C32*'RES S curve-disconnect'!AG$9+'Res-Appliance class'!$D32*'RES S curve-disconnect'!AG$14+'Res-Appliance class'!$E32*'RES S curve-disconnect'!AG$19","v":1862.5030360867629},{"$f":"'Res-Appliance class'!$B32*'RES S curve-disconnect'!AH$4+'Res-Appliance class'!$C32*'RES S curve-disconnect'!AH$9+'Res-Appliance class'!$D32*'RES S curve-disconnect'!AH$14+'Res-Appliance class'!$E32*'RES S curve-disconnect'!AH$19","v":2239.0435845221409},{"$f":"'Res-Appliance class'!$B32*'RES S curve-disconnect'!AI$4+'Res-Appliance class'!$C32*'RES S curve-disconnect'!AI$9+'Res-Appliance class'!$D32*'RES S curve-disconnect'!AI$14+'Res-Appliance class'!$E32*'RES S curve-disconnect'!AI$19","v":2573.052709729157},{"$f":"'Res-Appliance class'!$B32*'RES S curve-disconnect'!AJ$4+'Res-Appliance class'!$C32*'RES S curve-disconnect'!AJ$9+'Res-Appliance class'!$D32*'RES S curve-disconnect'!AJ$14+'Res-Appliance class'!$E32*'RES S curve-disconnect'!AJ$19","v":2875.4063641121975},{"$f":"'Res-Appliance class'!$B32*'RES S curve-disconnect'!AK$4+'Res-Appliance class'!$C32*'RES S curve-disconnect'!AK$9+'Res-Appliance class'!$D32*'RES S curve-disconnect'!AK$14+'Res-Appliance class'!$E32*'RES S curve-disconnect'!AK$19","v":3196.248061118793},{"$f":"'Res-Appliance class'!$B32*'RES S curve-disconnect'!AL$4+'Res-Appliance class'!$C32*'RES S curve-disconnect'!AL$9+'Res-Appliance class'!$D32*'RES S curve-disconnect'!AL$14+'Res-Appliance class'!$E32*'RES S curve-disconnect'!AL$19","v":2097.0208992096227},{"$f":"'Res-Appliance class'!$B32*'RES S curve-disconnect'!AM$4+'Res-Appliance class'!$C32*'RES S curve-disconnect'!AM$9+'Res-Appliance class'!$D32*'RES S curve-disconnect'!AM$14+'Res-Appliance class'!$E32*'RES S curve-disconnect'!AM$19","v":1946.2354821223414},{"$f":"'Res-Appliance class'!$B32*'RES S curve-disconnect'!AN$4+'Res-Appliance class'!$C32*'RES S curve-disconnect'!AN$9+'Res-Appliance class'!$D32*'RES S curve-disconnect'!AN$14+'Res-Appliance class'!$E32*'RES S curve-disconnect'!AN$19","v":2246.4289980588592},{"$f":"'Res-Appliance class'!$B32*'RES S curve-disconnect'!AO$4+'Res-Appliance class'!$C32*'RES S curve-disconnect'!AO$9+'Res-Appliance class'!$D32*'RES S curve-disconnect'!AO$14+'Res-Appliance class'!$E32*'RES S curve-disconnect'!AO$19","v":2616.9712906798804},{"$f":"'Res-Appliance class'!$B32*'RES S curve-disconnect'!AP$4+'Res-Appliance class'!$C32*'RES S curve-disconnect'!AP$9+'Res-Appliance class'!$D32*'RES S curve-disconnect'!AP$14+'Res-Appliance class'!$E32*'RES S curve-disconnect'!AP$19","v":2961.2749223138344},{"$f":"'Res-Appliance class'!$B32*'RES S curve-disconnect'!AQ$4+'Res-Appliance class'!$C32*'RES S curve-disconnect'!AQ$9+'Res-Appliance class'!$D32*'RES S curve-disconnect'!AQ$14+'Res-Appliance class'!$E32*'RES S curve-disconnect'!AQ$19","v":3329.944953053754},{"$f":"'Res-Appliance class'!$B32*'RES S curve-disconnect'!AR$4+'Res-Appliance class'!$C32*'RES S curve-disconnect'!AR$9+'Res-Appliance class'!$D32*'RES S curve-disconnect'!AR$14+'Res-Appliance class'!$E32*'RES S curve-disconnect'!AR$19","v":3735.9420325047895},{"$f":"'Res-Appliance class'!$B32*'RES S curve-disconnect'!AS$4+'Res-Appliance class'!$C32*'RES S curve-disconnect'!AS$9+'Res-Appliance class'!$D32*'RES S curve-disconnect'!AS$14+'Res-Appliance class'!$E32*'RES S curve-disconnect'!AS$19","v":4191.8512577018946},{"$f":"'Res-Appliance class'!$B32*'RES S curve-disconnect'!AT$4+'Res-Appliance class'!$C32*'RES S curve-disconnect'!AT$9+'Res-Appliance class'!$D32*'RES S curve-disconnect'!AT$14+'Res-Appliance class'!$E32*'RES S curve-disconnect'!AT$19","v":4703.2077499219758},{"$f":"'Res-Appliance class'!$B32*'RES S curve-disconnect'!AU$4+'Res-Appliance class'!$C32*'RES S curve-disconnect'!AU$9+'Res-Appliance class'!$D32*'RES S curve-disconnect'!AU$14+'Res-Appliance class'!$E32*'RES S curve-disconnect'!AU$19","v":5293.1529406179179},{"$f":"'Res-Appliance class'!$B32*'RES S curve-disconnect'!AV$4+'Res-Appliance class'!$C32*'RES S curve-disconnect'!AV$9+'Res-Appliance class'!$D32*'RES S curve-disconnect'!AV$14+'Res-Appliance class'!$E32*'RES S curve-disconnect'!AV$19","v":5967.8138636823096},{"$f":"'Res-Appliance class'!$B32*'RES S curve-disconnect'!AW$4+'Res-Appliance class'!$C32*'RES S curve-disconnect'!AW$9+'Res-Appliance class'!$D32*'RES S curve-disconnect'!AW$14+'Res-Appliance class'!$E32*'RES S curve-disconnect'!AW$19","v":6744.1049593729967},{"$f":"'Res-Appliance class'!$B32*'RES S curve-disconnect'!AX$4+'Res-Appliance class'!$C32*'RES S curve-disconnect'!AX$9+'Res-Appliance class'!$D32*'RES S curve-disconnect'!AX$14+'Res-Appliance class'!$E32*'RES S curve-disconnect'!AX$19","v":7630.946066898392},{"$f":"'Res-Appliance class'!$B32*'RES S curve-disconnect'!AY$4+'Res-Appliance class'!$C32*'RES S curve-disconnect'!AY$9+'Res-Appliance class'!$D32*'RES S curve-disconnect'!AY$14+'Res-Appliance class'!$E32*'RES S curve-disconnect'!AY$19","v":8653.42523355913},{"$f":"'Res-Appliance class'!$B32*'RES S curve-disconnect'!AZ$4+'Res-Appliance class'!$C32*'RES S curve-disconnect'!AZ$9+'Res-Appliance class'!$D32*'RES S curve-disconnect'!AZ$14+'Res-Appliance class'!$E32*'RES S curve-disconnect'!AZ$19","v":9825.0641003169731},{"$f":"'Res-Appliance class'!$B32*'RES S curve-disconnect'!BA$4+'Res-Appliance class'!$C32*'RES S curve-disconnect'!BA$9+'Res-Appliance class'!$D32*'RES S curve-disconnect'!BA$14+'Res-Appliance class'!$E32*'RES S curve-disconnect'!BA$19","v":11183.850106618387},{"$f":"'Res-Appliance class'!$B32*'RES S curve-disconnect'!BB$4+'Res-Appliance class'!$C32*'RES S curve-disconnect'!BB$9+'Res-Appliance class'!$D32*'RES S curve-disconnect'!BB$14+'Res-Appliance class'!$E32*'RES S curve-disconnect'!BB$19","v":12774.731288669798},{"$f":"'Res-Appliance class'!$B32*'RES S curve-disconnect'!BC$4+'Res-Appliance class'!$C32*'RES S curve-disconnect'!BC$9+'Res-Appliance class'!$D32*'RES S curve-disconnect'!BC$14+'Res-Appliance class'!$E32*'RES S curve-disconnect'!BC$19","v":14672.506749899425},{"$f":"'Res-Appliance class'!$B32*'RES S curve-disconnect'!BD$4+'Res-Appliance class'!$C32*'RES S curve-disconnect'!BD$9+'Res-Appliance class'!$D32*'RES S curve-disconnect'!BD$14+'Res-Appliance class'!$E32*'RES S curve-disconnect'!BD$19","v":16511.991549847935},{"$f":"'Res-Appliance class'!$B32*'RES S curve-disconnect'!BE$4+'Res-Appliance class'!$C32*'RES S curve-disconnect'!BE$9+'Res-Appliance class'!$D32*'RES S curve-disconnect'!BE$14+'Res-Appliance class'!$E32*'RES S curve-disconnect'!BE$19","v":18196.200969898247},{"$f":"'Res-Appliance class'!$B32*'RES S curve-disconnect'!BF$4+'Res-Appliance class'!$C32*'RES S curve-disconnect'!BF$9+'Res-Appliance class'!$D32*'RES S curve-disconnect'!BF$14+'Res-Appliance class'!$E32*'RES S curve-disconnect'!BF$19","v":19918.603014607415},{"$f":"'Res-Appliance class'!$B32*'RES S curve-disconnect'!BG$4+'Res-Appliance class'!$C32*'RES S curve-disconnect'!BG$9+'Res-Appliance class'!$D32*'RES S curve-disconnect'!BG$14+'Res-Appliance class'!$E32*'RES S curve-disconnect'!BG$19","v":21864.699768409486},{"$f":"'Res-Appliance class'!$B32*'RES S curve-disconnect'!BH$4+'Res-Appliance class'!$C32*'RES S curve-disconnect'!BH$9+'Res-Appliance class'!$D32*'RES S curve-disconnect'!BH$14+'Res-Appliance class'!$E32*'RES S curve-disconnect'!BH$19","v":24176.810308052347},{"$f":"'Res-Appliance class'!$B32*'RES S curve-disconnect'!BI$4+'Res-Appliance class'!$C32*'RES S curve-disconnect'!BI$9+'Res-Appliance class'!$D32*'RES S curve-disconnect'!BI$14+'Res-Appliance class'!$E32*'RES S curve-disconnect'!BI$19","v":27525.052244229653},{"$f":"'Res-Appliance class'!$B32*'RES S curve-disconnect'!BJ$4+'Res-Appliance class'!$C32*'RES S curve-disconnect'!BJ$9+'Res-Appliance class'!$D32*'RES S curve-disconnect'!BJ$14+'Res-Appliance class'!$E32*'RES S curve-disconnect'!BJ$19","v":32438.86731459367},{"$f":"'Res-Appliance class'!$B32*'RES S curve-disconnect'!BK$4+'Res-Appliance class'!$C32*'RES S curve-disconnect'!BK$9+'Res-Appliance class'!$D32*'RES S curve-disconnect'!BK$14+'Res-Appliance class'!$E32*'RES S curve-disconnect'!BK$19","v":39705.580797730523},{"$f":"'Res-Appliance class'!$B32*'RES S curve-disconnect'!BL$4+'Res-Appliance class'!$C32*'RES S curve-disconnect'!BL$9+'Res-Appliance class'!$D32*'RES S curve-disconnect'!BL$14+'Res-Appliance class'!$E32*'RES S curve-disconnect'!BL$19","v":-1938.1256222852696},{"$f":"'Res-Appliance class'!$B32*'RES S curve-disconnect'!BM$4+'Res-Appliance class'!$C32*'RES S curve-disconnect'!BM$9+'Res-Appliance class'!$D32*'RES S curve-disconnect'!BM$14+'Res-Appliance class'!$E32*'RES S curve-disconnect'!BM$19","v":-1929.1390534782392},{"$f":"'Res-Appliance class'!$B32*'RES S curve-disconnect'!BN$4+'Res-Appliance class'!$C32*'RES S curve-disconnect'!BN$9+'Res-Appliance class'!$D32*'RES S curve-disconnect'!BN$14+'Res-Appliance class'!$E32*'RES S curve-disconnect'!BN$19","v":-1923.5037490930006},{"$f":"'Res-Appliance class'!$B32*'RES S curve-disconnect'!BO$4+'Res-Appliance class'!$C32*'RES S curve-disconnect'!BO$9+'Res-Appliance class'!$D32*'RES S curve-disconnect'!BO$14+'Res-Appliance class'!$E32*'RES S curve-disconnect'!BO$19","v":-1911.1983857360217},{"$f":"'Res-Appliance class'!$B32*'RES S curve-disconnect'!BP$4+'Res-Appliance class'!$C32*'RES S curve-disconnect'!BP$9+'Res-Appliance class'!$D32*'RES S curve-disconnect'!BP$14+'Res-Appliance class'!$E32*'RES S curve-disconnect'!BP$19","v":-1902.2441595095854},{"$f":"'Res-Appliance class'!$B32*'RES S curve-disconnect'!BQ$4+'Res-Appliance class'!$C32*'RES S curve-disconnect'!BQ$9+'Res-Appliance class'!$D32*'RES S curve-disconnect'!BQ$14+'Res-Appliance class'!$E32*'RES S curve-disconnect'!BQ$19","v":-1893.3005875037231},{"$f":"'Res-Appliance class'!$B32*'RES S curve-disconnect'!BR$4+'Res-Appliance class'!$C32*'RES S curve-disconnect'!BR$9+'Res-Appliance class'!$D32*'RES S curve-disconnect'!BR$14+'Res-Appliance class'!$E32*'RES S curve-disconnect'!BR$19","v":-1887.7080268971274},{"$f":"'Res-Appliance class'!$B32*'RES S curve-disconnect'!BS$4+'Res-Appliance class'!$C32*'RES S curve-disconnect'!BS$9+'Res-Appliance class'!$D32*'RES S curve-disconnect'!BS$14+'Res-Appliance class'!$E32*'RES S curve-disconnect'!BS$19","v":-1875.4451558513604},{"$f":"'Res-Appliance class'!$B32*'RES S curve-disconnect'!BT$4+'Res-Appliance class'!$C32*'RES S curve-disconnect'!BT$9+'Res-Appliance class'!$D32*'RES S curve-disconnect'!BT$14+'Res-Appliance class'!$E32*'RES S curve-disconnect'!BT$19","v":-1866.5331720140246},{"$f":"'Res-Appliance class'!$B32*'RES S curve-disconnect'!BU$4+'Res-Appliance class'!$C32*'RES S curve-disconnect'!BU$9+'Res-Appliance class'!$D32*'RES S curve-disconnect'!BU$14+'Res-Appliance class'!$E32*'RES S curve-disconnect'!BU$19","v":-1857.6315940107681},{"$f":"'Res-Appliance class'!$B32*'RES S curve-disconnect'!BV$4+'Res-Appliance class'!$C32*'RES S curve-disconnect'!BV$9+'Res-Appliance class'!$D32*'RES S curve-disconnect'!BV$14+'Res-Appliance class'!$E32*'RES S curve-disconnect'!BV$19","v":-1852.0807805462621},{"$f":"'Res-Appliance class'!$B32*'RES S curve-disconnect'!BW$4+'Res-Appliance class'!$C32*'RES S curve-disconnect'!BW$9+'Res-Appliance class'!$D32*'RES S curve-disconnect'!BW$14+'Res-Appliance class'!$E32*'RES S curve-disconnect'!BW$19","v":-1839.8594112984586},{"$f":"'Res-Appliance class'!$B32*'RES S curve-disconnect'!BX$4+'Res-Appliance class'!$C32*'RES S curve-disconnect'!BX$9+'Res-Appliance class'!$D32*'RES S curve-disconnect'!BX$14+'Res-Appliance class'!$E32*'RES S curve-disconnect'!BX$19","v":-1830.9886854218364},{"$f":"'Res-Appliance class'!$B32*'RES S curve-disconnect'!BY$4+'Res-Appliance class'!$C32*'RES S curve-disconnect'!BY$9+'Res-Appliance class'!$D32*'RES S curve-disconnect'!BY$14+'Res-Appliance class'!$E32*'RES S curve-disconnect'!BY$19","v":-1822.1281230394586},{"$f":"'Res-Appliance class'!$B32*'RES S curve-disconnect'!BZ$4+'Res-Appliance class'!$C32*'RES S curve-disconnect'!BZ$9+'Res-Appliance class'!$D32*'RES S curve-disconnect'!BZ$14+'Res-Appliance class'!$E32*'RES S curve-disconnect'!BZ$19","v":-1816.6180843440068},{"$f":"'Res-Appliance class'!$B32*'RES S curve-disconnect'!CA$4+'Res-Appliance class'!$C32*'RES S curve-disconnect'!CA$9+'Res-Appliance class'!$D32*'RES S curve-disconnect'!CA$14+'Res-Appliance class'!$E32*'RES S curve-disconnect'!CA$19","v":-1804.4372504921055},{"$f":"'Res-Appliance class'!$B32*'RES S curve-disconnect'!CB$4+'Res-Appliance class'!$C32*'RES S curve-disconnect'!CB$9+'Res-Appliance class'!$D32*'RES S curve-disconnect'!CB$14+'Res-Appliance class'!$E32*'RES S curve-disconnect'!CB$19","v":-1795.6068221076223},{"$f":"'Res-Appliance class'!$B32*'RES S curve-disconnect'!CC$4+'Res-Appliance class'!$C32*'RES S curve-disconnect'!CC$9+'Res-Appliance class'!$D32*'RES S curve-disconnect'!CC$14+'Res-Appliance class'!$E32*'RES S curve-disconnect'!CC$19","v":-1786.7863207737903},{"$f":"'Res-Appliance class'!$B32*'RES S curve-disconnect'!CD$4+'Res-Appliance class'!$C32*'RES S curve-disconnect'!CD$9+'Res-Appliance class'!$D32*'RES S curve-disconnect'!CD$14+'Res-Appliance class'!$E32*'RES S curve-disconnect'!CD$19","v":-1925.4249398036889}]
["Glen Eira (C)",null,{"$f":"'Res-Appliance class'!$B33*'RES S curve-disconnect'!C$4+'Res-Appliance class'!$C33*'RES S curve-disconnect'!C$9+'Res-Appliance class'!$D33*'RES S curve-disconnect'!C$14+'Res-Appliance class'!$E33*'RES S curve-disconnect'!C$19","v":-4426.6574766039357},{"$f":"'Res-Appliance class'!$B33*'RES S curve-disconnect'!D$4+'Res-Appliance class'!$C33*'RES S curve-disconnect'!D$9+'Res-Appliance class'!$D33*'RES S curve-disconnect'!D$14+'Res-Appliance class'!$E33*'RES S curve-disconnect'!D$19","v":-4899.9399693012811},{"$f":"'Res-Appliance class'!$B33*'RES S curve-disconnect'!E$4+'Res-Appliance class'!$C33*'RES S curve-disconnect'!E$9+'Res-Appliance class'!$D33*'RES S curve-disconnect'!E$14+'Res-Appliance class'!$E33*'RES S curve-disconnect'!E$19","v":-4260.7412247712327},{"$f":"'Res-Appliance class'!$B33*'RES S curve-disconnect'!F$4+'Res-Appliance class'!$C33*'RES S curve-disconnect'!F$9+'Res-Appliance class'!$D33*'RES S curve-disconnect'!F$14+'Res-Appliance class'!$E33*'RES S curve-disconnect'!F$19","v":-4121.7061717596707},{"$f":"'Res-Appliance class'!$B33*'RES S curve-disconnect'!G$4+'Res-Appliance class'!$C33*'RES S curve-disconnect'!G$9+'Res-Appliance class'!$D33*'RES S curve-disconnect'!G$14+'Res-Appliance class'!$E33*'RES S curve-disconnect'!G$19","v":-5198.30321487541},{"$f":"'Res-Appliance class'!$B33*'RES S curve-disconnect'!H$4+'Res-Appliance class'!$C33*'RES S curve-disconnect'!H$9+'Res-Appliance class'!$D33*'RES S curve-disconnect'!H$14+'Res-Appliance class'!$E33*'RES S curve-disconnect'!H$19","v":-5230.3222145613345},{"$f":"'Res-Appliance class'!$B33*'RES S curve-disconnect'!I$4+'Res-Appliance class'!$C33*'RES S curve-disconnect'!I$9+'Res-Appliance class'!$D33*'RES S curve-disconnect'!I$14+'Res-Appliance class'!$E33*'RES S curve-disconnect'!I$19","v":-4832.6924371789137},{"$f":"'Res-Appliance class'!$B33*'RES S curve-disconnect'!J$4+'Res-Appliance class'!$C33*'RES S curve-disconnect'!J$9+'Res-Appliance class'!$D33*'RES S curve-disconnect'!J$14+'Res-Appliance class'!$E33*'RES S curve-disconnect'!J$19","v":-5156.813578156658},{"$f":"'Res-Appliance class'!$B33*'RES S curve-disconnect'!K$4+'Res-Appliance class'!$C33*'RES S curve-disconnect'!K$9+'Res-Appliance class'!$D33*'RES S curve-disconnect'!K$14+'Res-Appliance class'!$E33*'RES S curve-disconnect'!K$19","v":-4402.6375238751598},{"$f":"'Res-Appliance class'!$B33*'RES S curve-disconnect'!L$4+'Res-Appliance class'!$C33*'RES S curve-disconnect'!L$9+'Res-Appliance class'!$D33*'RES S curve-disconnect'!L$14+'Res-Appliance class'!$E33*'RES S curve-disconnect'!L$19","v":-4723.7277237047838},{"$f":"'Res-Appliance class'!$B33*'RES S curve-disconnect'!M$4+'Res-Appliance class'!$C33*'RES S curve-disconnect'!M$9+'Res-Appliance class'!$D33*'RES S curve-disconnect'!M$14+'Res-Appliance class'!$E33*'RES S curve-disconnect'!M$19","v":-5299.8941889458529},{"$f":"'Res-Appliance class'!$B33*'RES S curve-disconnect'!N$4+'Res-Appliance class'!$C33*'RES S curve-disconnect'!N$9+'Res-Appliance class'!$D33*'RES S curve-disconnect'!N$14+'Res-Appliance class'!$E33*'RES S curve-disconnect'!N$19","v":-5352.4811763760208},{"$f":"'Res-Appliance class'!$B33*'RES S curve-disconnect'!O$4+'Res-Appliance class'!$C33*'RES S curve-disconnect'!O$9+'Res-Appliance class'!$D33*'RES S curve-disconnect'!O$14+'Res-Appliance class'!$E33*'RES S curve-disconnect'!O$19","v":-4834.2870677226038},{"$f":"'Res-Appliance class'!$B33*'RES S curve-disconnect'!P$4+'Res-Appliance class'!$C33*'RES S curve-disconnect'!P$9+'Res-Appliance class'!$D33*'RES S curve-disconnect'!P$14+'Res-Appliance class'!$E33*'RES S curve-disconnect'!P$19","v":-4422.2088984108241},{"$f":"'Res-Appliance class'!$B33*'RES S curve-disconnect'!Q$4+'Res-Appliance class'!$C33*'RES S curve-disconnect'!Q$9+'Res-Appliance class'!$D33*'RES S curve-disconnect'!Q$14+'Res-Appliance class'!$E33*'RES S curve-disconnect'!Q$19","v":-3800.7214629180021},{"$f":"'Res-Appliance class'!$B33*'RES S curve-disconnect'!R$4+'Res-Appliance class'!$C33*'RES S curve-disconnect'!R$9+'Res-Appliance class'!$D33*'RES S curve-disconnect'!R$14+'Res-Appliance class'!$E33*'RES S curve-disconnect'!R$19","v":-3447.6781432207026},{"$f":"'Res-Appliance class'!$B33*'RES S curve-disconnect'!S$4+'Res-Appliance class'!$C33*'RES S curve-disconnect'!S$9+'Res-Appliance class'!$D33*'RES S curve-disconnect'!S$14+'Res-Appliance class'!$E33*'RES S curve-disconnect'!S$19","v":-2885.4203278045834},{"$f":"'Res-Appliance class'!$B33*'RES S curve-disconnect'!T$4+'Res-Appliance class'!$C33*'RES S curve-disconnect'!T$9+'Res-Appliance class'!$D33*'RES S curve-disconnect'!T$14+'Res-Appliance class'!$E33*'RES S curve-disconnect'!T$19","v":-2583.1863036686887},{"$f":"'Res-Appliance class'!$B33*'RES S curve-disconnect'!U$4+'Res-Appliance class'!$C33*'RES S curve-disconnect'!U$9+'Res-Appliance class'!$D33*'RES S curve-disconnect'!U$14+'Res-Appliance class'!$E33*'RES S curve-disconnect'!U$19","v":-2235.4164156491033},{"$f":"'Res-Appliance class'!$B33*'RES S curve-disconnect'!V$4+'Res-Appliance class'!$C33*'RES S curve-disconnect'!V$9+'Res-Appliance class'!$D33*'RES S curve-disconnect'!V$14+'Res-Appliance class'!$E33*'RES S curve-disconnect'!V$19","v":-1996.4998805060918},{"$f":"'Res-Appliance class'!$B33*'RES S curve-disconnect'!W$4+'Res-Appliance class'!$C33*'RES S curve-disconnect'!W$9+'Res-Appliance class'!$D33*'RES S curve-disconnect'!W$14+'Res-Appliance class'!$E33*'RES S curve-disconnect'!W$19","v":-1809.7801919680078},{"$f":"'Res-Appliance class'!$B33*'RES S curve-disconnect'!X$4+'Res-Appliance class'!$C33*'RES S curve-disconnect'!X$9+'Res-Appliance class'!$D33*'RES S curve-disconnect'!X$14+'Res-Appliance class'!$E33*'RES S curve-disconnect'!X$19","v":-1391.0249627518738},{"$f":"'Res-Appliance class'!$B33*'RES S curve-disconnect'!Y$4+'Res-Appliance class'!$C33*'RES S curve-disconnect'!Y$9+'Res-Appliance class'!$D33*'RES S curve-disconnect'!Y$14+'Res-Appliance class'!$E33*'RES S curve-disconnect'!Y$19","v":-966.92923651239403},{"$f":"'Res-Appliance class'!$B33*'RES S curve-disconnect'!Z$4+'Res-Appliance class'!$C33*'RES S curve-disconnect'!Z$9+'Res-Appliance class'!$D33*'RES S curve-disconnect'!Z$14+'Res-Appliance class'!$E33*'RES S curve-disconnect'!Z$19","v":-679.03546108917919},{"$f":"'Res-Appliance class'!$B33*'RES S curve-disconnect'!AA$4+'Res-Appliance class'!$C33*'RES S curve-disconnect'!AA$9+'Res-Appliance class'!$D33*'RES S curve-disconnect'!AA$14+'Res-Appliance class'!$E33*'RES S curve-disconnect'!AA$19","v":-390.61884591615808},{"$f":"'Res-Appliance class'!$B33*'RES S curve-disconnect'!AB$4+'Res-Appliance class'!$C33*'RES S curve-disconnect'!AB$9+'Res-Appliance class'!$D33*'RES S curve-disconnect'!AB$14+'Res-Appliance class'!$E33*'RES S curve-disconnect'!AB$19","v":-159.703059883956},{"$f":"'Res-Appliance class'!$B33*'RES S curve-disconnect'!AC$4+'Res-Appliance class'!$C33*'RES S curve-disconnect'!AC$9+'Res-Appliance class'!$D33*'RES S curve-disconnect'!AC$14+'Res-Appliance class'!$E33*'RES S curve-disconnect'!AC$19","v":63.158063698790613},{"$f":"'Res-Appliance class'!$B33*'RES S curve-disconnect'!AD$4+'Res-Appliance class'!$C33*'RES S curve-disconnect'!AD$9+'Res-Appliance class'!$D33*'RES S curve-disconnect'!AD$14+'Res-Appliance class'!$E33*'RES S curve-disconnect'!AD$19","v":267.74249169956312},{"$f":"'Res-Appliance class'!$B33*'RES S curve-disconnect'!AE$4+'Res-Appliance class'!$C33*'RES S curve-disconnect'!AE$9+'Res-Appliance class'!$D33*'RES S curve-disconnect'!AE$14+'Res-Appliance class'!$E33*'RES S curve-disconnect'!AE$19","v":483.39573746572569},{"$f":"'Res-Appliance class'!$B33*'RES S curve-disconnect'!AF$4+'Res-Appliance class'!$C33*'RES S curve-disconnect'!AF$9+'Res-Appliance class'!$D33*'RES S curve-disconnect'!AF$14+'Res-Appliance class'!$E33*'RES S curve-disconnect'!AF$19","v":761.00333805631146},{"$f":"'Res-Appliance class'!$B33*'RES S curve-disconnect'!AG$4+'Res-Appliance class'!$C33*'RES S curve-disconnect'!AG$9+'Res-Appliance class'!$D33*'RES S curve-disconnect'!AG$14+'Res-Appliance class'!$E33*'RES S curve-disconnect'!AG$19","v":951.21422742983896},{"$f":"'Res-Appliance class'!$B33*'RES S curve-disconnect'!AH$4+'Res-Appliance class'!$C33*'RES S curve-disconnect'!AH$9+'Res-Appliance class'!$D33*'RES S curve-disconnect'!AH$14+'Res-Appliance class'!$E33*'RES S curve-disconnect'!AH$19","v":1217.4588093296618},{"$f":"'Res-Appliance class'!$B33*'RES S curve-disconnect'!AI$4+'Res-Appliance class'!$C33*'RES S curve-disconnect'!AI$9+'Res-Appliance class'!$D33*'RES S curve-disconnect'!AI$14+'Res-Appliance class'!$E33*'RES S curve-disconnect'!AI$19","v":1458.0798019367421},{"$f":"'Res-Appliance class'!$B33*'RES S curve-disconnect'!AJ$4+'Res-Appliance class'!$C33*'RES S curve-disconnect'!AJ$9+'Res-Appliance class'!$D33*'RES S curve-disconnect'!AJ$14+'Res-Appliance class'!$E33*'RES S curve-disconnect'!AJ$19","v":1674.9660995945906},{"$f":"'Res-Appliance class'!$B33*'RES S curve-disconnect'!AK$4+'Res-Appliance class'!$C33*'RES S curve-disconnect'!AK$9+'Res-Appliance class'!$D33*'RES S curve-disconnect'!AK$14+'Res-Appliance class'!$E33*'RES S curve-disconnect'!AK$19","v":1905.2687444109738},{"$f":"'Res-Appliance class'!$B33*'RES S curve-disconnect'!AL$4+'Res-Appliance class'!$C33*'RES S curve-disconnect'!AL$9+'Res-Appliance class'!$D33*'RES S curve-disconnect'!AL$14+'Res-Appliance class'!$E33*'RES S curve-disconnect'!AL$19","v":1104.5037791227035},{"$f":"'Res-Appliance class'!$B33*'RES S curve-disconnect'!AM$4+'Res-Appliance class'!$C33*'RES S curve-disconnect'!AM$9+'Res-Appliance class'!$D33*'RES S curve-disconnect'!AM$14+'Res-Appliance class'!$E33*'RES S curve-disconnect'!AM$19","v":1001.5665106754486},{"$f":"'Res-Appliance class'!$B33*'RES S curve-disconnect'!AN$4+'Res-Appliance class'!$C33*'RES S curve-disconnect'!AN$9+'Res-Appliance class'!$D33*'RES S curve-disconnect'!AN$14+'Res-Appliance class'!$E33*'RES S curve-disconnect'!AN$19","v":1220.5295100155206},{"$f":"'Res-Appliance class'!$B33*'RES S curve-disconnect'!AO$4+'Res-Appliance class'!$C33*'RES S curve-disconnect'!AO$9+'Res-Appliance class'!$D33*'RES S curve-disconnect'!AO$14+'Res-Appliance class'!$E33*'RES S curve-disconnect'!AO$19","v":1487.4644282570778},{"$f":"'Res-Appliance class'!$B33*'RES S curve-disconnect'!AP$4+'Res-Appliance class'!$C33*'RES S curve-disconnect'!AP$9+'Res-Appliance class'!$D33*'RES S curve-disconnect'!AP$14+'Res-Appliance class'!$E33*'RES S curve-disconnect'!AP$19","v":1733.5497383094253},{"$f":"'Res-Appliance class'!$B33*'RES S curve-disconnect'!AQ$4+'Res-Appliance class'!$C33*'RES S curve-disconnect'!AQ$9+'Res-Appliance class'!$D33*'RES S curve-disconnect'!AQ$14+'Res-Appliance class'!$E33*'RES S curve-disconnect'!AQ$19","v":1999.0164419365415},{"$f":"'Res-Appliance class'!$B33*'RES S curve-disconnect'!AR$4+'Res-Appliance class'!$C33*'RES S curve-disconnect'!AR$9+'Res-Appliance class'!$D33*'RES S curve-disconnect'!AR$14+'Res-Appliance class'!$E33*'RES S curve-disconnect'!AR$19","v":2290.1992629541719},{"$f":"'Res-Appliance class'!$B33*'RES S curve-disconnect'!AS$4+'Res-Appliance class'!$C33*'RES S curve-disconnect'!AS$9+'Res-Appliance class'!$D33*'RES S curve-disconnect'!AS$14+'Res-Appliance class'!$E33*'RES S curve-disconnect'!AS$19","v":2616.8737619730186},{"$f":"'Res-Appliance class'!$B33*'RES S curve-disconnect'!AT$4+'Res-Appliance class'!$C33*'RES S curve-disconnect'!AT$9+'Res-Appliance class'!$D33*'RES S curve-disconnect'!AT$14+'Res-Appliance class'!$E33*'RES S curve-disconnect'!AT$19","v":2981.9425451658153},{"$f":"'Res-Appliance class'!$B33*'RES S curve-disconnect'!AU$4+'Res-Appliance class'!$C33*'RES S curve-disconnect'!AU$9+'Res-Appliance class'!$D33*'RES S curve-disconnect'!AU$14+'Res-Appliance class'!$E33*'RES S curve-disconnect'!AU$19","v":3404.7102142169497},{"$f":"'Res-Appliance class'!$B33*'RES S curve-disconnect'!AV$4+'Res-Appliance class'!$C33*'RES S curve-disconnect'!AV$9+'Res-Appliance class'!$D33*'RES S curve-disconnect'!AV$14+'Res-Appliance class'!$E33*'RES S curve-disconnect'!AV$19","v":3886.5324202575671},{"$f":"'Res-Appliance class'!$B33*'RES S curve-disconnect'!AW$4+'Res-Appliance class'!$C33*'RES S curve-disconnect'!AW$9+'Res-Appliance class'!$D33*'RES S curve-disconnect'!AW$14+'Res-Appliance class'!$E33*'RES S curve-disconnect'!AW$19","v":4440.1524490930651},{"$f":"'Res-Appliance class'!$B33*'RES S curve-disconnect'!AX$4+'Res-Appliance class'!$C33*'RES S curve-disconnect'!AX$9+'Res-Appliance class'!$D33*'RES S curve-disconnect'!AX$14+'Res-Appliance class'!$E33*'RES S curve-disconnect'!AX$19","v":5070.6123127271767},{"$f":"'Res-Appliance class'!$B33*'RES S curve-disconnect'!AY$4+'Res-Appliance class'!$C33*'RES S curve-disconnect'!AY$9+'Res-Appliance class'!$D33*'RES S curve-disconnect'!AY$14+'Res-Appliance class'!$E33*'RES S curve-disconnect'!AY$19","v":5798.2835854360519},{"$f":"'Res-Appliance class'!$B33*'RES S curve-disconnect'!AZ$4+'Res-Appliance class'!$C33*'RES S curve-disconnect'!AZ$9+'Res-Appliance class'!$D33*'RES S curve-disconnect'!AZ$14+'Res-Appliance class'!$E33*'RES S curve-disconnect'!AZ$19","v":6629.4791082387328},{"$f":"'Res-Appliance class'!$B33*'RES S curve-disconnect'!BA$4+'Res-Appliance class'!$C33*'RES S curve-disconnect'!BA$9+'Res-Appliance class'!$D33*'RES S curve-disconnect'!BA$14+'Res-Appliance class'!$E33*'RES S curve-disconnect'!BA$19","v":7591.64308630083},{"$f":"'Res-Appliance class'!$B33*'RES S curve-disconnect'!BB$4+'Res-Appliance class'!$C33*'RES S curve-disconnect'!BB$9+'Res-Appliance class'!$D33*'RES S curve-disconnect'!BB$14+'Res-Appliance class'!$E33*'RES S curve-disconnect'!BB$19","v":8714.982085842712},{"$f":"'Res-Appliance class'!$B33*'RES S curve-disconnect'!BC$4+'Res-Appliance class'!$C33*'RES S curve-disconnect'!BC$9+'Res-Appliance class'!$D33*'RES S curve-disconnect'!BC$14+'Res-Appliance class'!$E33*'RES S curve-disconnect'!BC$19","v":10054.440455789812},{"$f":"'Res-Appliance class'!$B33*'RES S curve-disconnect'!BD$4+'Res-Appliance class'!$C33*'RES S curve-disconnect'!BD$9+'Res-Appliance class'!$D33*'RES S curve-disconnect'!BD$14+'Res-Appliance class'!$E33*'RES S curve-disconnect'!BD$19","v":11344.61626670347},{"$f":"'Res-Appliance class'!$B33*'RES S curve-disconnect'!BE$4+'Res-Appliance class'!$C33*'RES S curve-disconnect'!BE$9+'Res-Appliance class'!$D33*'RES S curve-disconnect'!BE$14+'Res-Appliance class'!$E33*'RES S curve-disconnect'!BE$19","v":12523.180795778801},{"$f":"'Res-Appliance class'!$B33*'RES S curve-disconnect'!BF$4+'Res-Appliance class'!$C33*'RES S curve-disconnect'!BF$9+'Res-Appliance class'!$D33*'RES S curve-disconnect'!BF$14+'Res-Appliance class'!$E33*'RES S curve-disconnect'!BF$19","v":13729.270485721956},{"$f":"'Res-Appliance class'!$B33*'RES S curve-disconnect'!BG$4+'Res-Appliance class'!$C33*'RES S curve-disconnect'!BG$9+'Res-Appliance class'!$D33*'RES S curve-disconnect'!BG$14+'Res-Appliance class'!$E33*'RES S curve-disconnect'!BG$19","v":15095.043888304655},{"$f":"'Res-Appliance class'!$B33*'RES S curve-disconnect'!BH$4+'Res-Appliance class'!$C33*'RES S curve-disconnect'!BH$9+'Res-Appliance class'!$D33*'RES S curve-disconnect'!BH$14+'Res-Appliance class'!$E33*'RES S curve-disconnect'!BH$19","v":16715.849134715303},{"$f":"'Res-Appliance class'!$B33*'RES S curve-disconnect'!BI$4+'Res-Appliance class'!$C33*'RES S curve-disconnect'!BI$9+'Res-Appliance class'!$D33*'RES S curve-disconnect'!BI$14+'Res-Appliance class'!$E33*'RES S curve-disconnect'!BI$19","v":19064.866727368939},{"$f":"'Res-Appliance class'!$B33*'RES S curve-disconnect'!BJ$4+'Res-Appliance class'!$C33*'RES S curve-disconnect'!BJ$9+'Res-Appliance class'!$D33*'RES S curve-disconnect'!BJ$14+'Res-Appliance class'!$E33*'RES S curve-disconnect'!BJ$19","v":22502.848583181538},{"$f":"'Res-Appliance class'!$B33*'RES S curve-disconnect'!BK$4+'Res-Appliance class'!$C33*'RES S curve-disconnect'!BK$9+'Res-Appliance class'!$D33*'RES S curve-disconnect'!BK$14+'Res-Appliance class'!$E33*'RES S curve-disconnect'!BK$19","v":27573.247951978847},{"$f":"'Res-Appliance class'!$B33*'RES S curve-disconnect'!BL$4+'Res-Appliance class'!$C33*'RES S curve-disconnect'!BL$9+'Res-Appliance class'!$D33*'RES S curve-disconnect'!BL$14+'Res-Appliance class'!$E33*'RES S curve-disconnect'!BL$19","v":-1822.1339344987678},{"$f":"'Res-Appliance class'!$B33*'RES S curve-disconnect'!BM$4+'Res-Appliance class'!$C33*'RES S curve-disconnect'!BM$9+'Res-Appliance class'!$D33*'RES S curve-disconnect'!BM$14+'Res-Appliance class'!$E33*'RES S curve-disconnect'!BM$19","v":-1815.6908787846219},{"$f":"'Res-Appliance class'!$B33*'RES S curve-disconnect'!BN$4+'Res-Appliance class'!$C33*'RES S curve-disconnect'!BN$9+'Res-Appliance class'!$D33*'RES S curve-disconnect'!BN$14+'Res-Appliance class'!$E33*'RES S curve-disconnect'!BN$19","v":-1812.5974437196405},{"$f":"'Res-Appliance class'!$B33*'RES S curve-disconnect'!BO$4+'Res-Appliance class'!$C33*'RES S curve-disconnect'!BO$9+'Res-Appliance class'!$D33*'RES S curve-disconnect'!BO$14+'Res-Appliance class'!$E33*'RES S curve-disconnect'!BO$19","v":-1802.8323141343035},{"$f":"'Res-Appliance class'!$B33*'RES S curve-disconnect'!BP$4+'Res-Appliance class'!$C33*'RES S curve-disconnect'!BP$9+'Res-Appliance class'!$D33*'RES S curve-disconnect'!BP$14+'Res-Appliance class'!$E33*'RES S curve-disconnect'!BP$19","v":-1796.4166943089269},{"$f":"'Res-Appliance class'!$B33*'RES S curve-disconnect'!BQ$4+'Res-Appliance class'!$C33*'RES S curve-disconnect'!BQ$9+'Res-Appliance class'!$D33*'RES S curve-disconnect'!BQ$14+'Res-Appliance class'!$E33*'RES S curve-disconnect'!BQ$19","v":-1790.0101094658778},{"$f":"'Res-Appliance class'!$B33*'RES S curve-disconnect'!BR$4+'Res-Appliance class'!$C33*'RES S curve-disconnect'!BR$9+'Res-Appliance class'!$D33*'RES S curve-disconnect'!BR$14+'Res-Appliance class'!$E33*'RES S curve-disconnect'!BR$19","v":-1786.9529248707565},{"$f":"'Res-Appliance class'!$B33*'RES S curve-disconnect'!BS$4+'Res-Appliance class'!$C33*'RES S curve-disconnect'!BS$9+'Res-Appliance class'!$D33*'RES S curve-disconnect'!BS$14+'Res-Appliance class'!$E33*'RES S curve-disconnect'!BS$19","v":-1777.2238267268776},{"$f":"'Res-Appliance class'!$B33*'RES S curve-disconnect'!BT$4+'Res-Appliance class'!$C33*'RES S curve-disconnect'!BT$9+'Res-Appliance class'!$D33*'RES S curve-disconnect'!BT$14+'Res-Appliance class'!$E33*'RES S curve-disconnect'!BT$19","v":-1770.8440206787116},{"$f":"'Res-Appliance class'!$B33*'RES S curve-disconnect'!BU$4+'Res-Appliance class'!$C33*'RES S curve-disconnect'!BU$9+'Res-Appliance class'!$D33*'RES S curve-disconnect'!BU$14+'Res-Appliance class'!$E33*'RES S curve-disconnect'!BU$19","v":-1764.4730333041573},{"$f":"'Res-Appliance class'!$B33*'RES S curve-disconnect'!BV$4+'Res-Appliance class'!$C33*'RES S curve-disconnect'!BV$9+'Res-Appliance class'!$D33*'RES S curve-disconnect'!BV$14+'Res-Appliance class'!$E33*'RES S curve-disconnect'!BV$19","v":-1761.4512312157854},{"$f":"'Res-Appliance class'!$B33*'RES S curve-disconnect'!BW$4+'Res-Appliance class'!$C33*'RES S curve-disconnect'!BW$9+'Res-Appliance class'!$D33*'RES S curve-disconnect'!BW$14+'Res-Appliance class'!$E33*'RES S curve-disconnect'!BW$19","v":-1751.7573019553624},{"$f":"'Res-Appliance class'!$B33*'RES S curve-disconnect'!BX$4+'Res-Appliance class'!$C33*'RES S curve-disconnect'!BX$9+'Res-Appliance class'!$D33*'RES S curve-disconnect'!BX$14+'Res-Appliance class'!$E33*'RES S curve-disconnect'!BX$19","v":-1745.4124524973577},{"$f":"'Res-Appliance class'!$B33*'RES S curve-disconnect'!BY$4+'Res-Appliance class'!$C33*'RES S curve-disconnect'!BY$9+'Res-Appliance class'!$D33*'RES S curve-disconnect'!BY$14+'Res-Appliance class'!$E33*'RES S curve-disconnect'!BY$19","v":-1739.0762107412656},{"$f":"'Res-Appliance class'!$B33*'RES S curve-disconnect'!BZ$4+'Res-Appliance class'!$C33*'RES S curve-disconnect'!BZ$9+'Res-Appliance class'!$D33*'RES S curve-disconnect'!BZ$14+'Res-Appliance class'!$E33*'RES S curve-disconnect'!BZ$19","v":-1736.0889446128963},{"$f":"'Res-Appliance class'!$B33*'RES S curve-disconnect'!CA$4+'Res-Appliance class'!$C33*'RES S curve-disconnect'!CA$9+'Res-Appliance class'!$D33*'RES S curve-disconnect'!CA$14+'Res-Appliance class'!$E33*'RES S curve-disconnect'!CA$19","v":-1726.4293429589627},{"$f":"'Res-Appliance class'!$B33*'RES S curve-disconnect'!CB$4+'Res-Appliance class'!$C33*'RES S curve-disconnect'!CB$9+'Res-Appliance class'!$D33*'RES S curve-disconnect'!CB$14+'Res-Appliance class'!$E33*'RES S curve-disconnect'!CB$19","v":-1720.1186140506331},{"$f":"'Res-Appliance class'!$B33*'RES S curve-disconnect'!CC$4+'Res-Appliance class'!$C33*'RES S curve-disconnect'!CC$9+'Res-Appliance class'!$D33*'RES S curve-disconnect'!CC$14+'Res-Appliance class'!$E33*'RES S curve-disconnect'!CC$19","v":-1713.8162870759109},{"$f":"'Res-Appliance class'!$B33*'RES S curve-disconnect'!CD$4+'Res-Appliance class'!$C33*'RES S curve-disconnect'!CD$9+'Res-Appliance class'!$D33*'RES S curve-disconnect'!CD$14+'Res-Appliance class'!$E33*'RES S curve-disconnect'!CD$19","v":-1809.3607662701584}]
["Greater Dandenong (C)",null,{"$f":"'Res-Appliance class'!$B34*'RES S curve-disconnect'!C$4+'Res-Appliance class'!$C34*'RES S curve-disconnect'!C$9+'Res-Appliance class'!$D34*'RES S curve-disconnect'!C$14+'Res-Appliance class'!$E34*'RES S curve-disconnect'!C$19","v":-4792.7496818244181},{"$f":"'Res-Appliance class'!$B34*'RES S curve-disconnect'!D$4+'Res-Appliance class'!$C34*'RES S curve-disconnect'!D$9+'Res-Appliance class'!$D34*'RES S curve-disconnect'!D$14+'Res-Appliance class'!$E34*'RES S curve-disconnect'!D$19","v":-5285.4997862520868},{"$f":"'Res-Appliance class'!$B34*'RES S curve-disconnect'!E$4+'Res-Appliance class'!$C34*'RES S curve-disconnect'!E$9+'Res-Appliance class'!$D34*'RES S curve-disconnect'!E$14+'Res-Appliance class'!$E34*'RES S curve-disconnect'!E$19","v":-4621.9925659763376},{"$f":"'Res-Appliance class'!$B34*'RES S curve-disconnect'!F$4+'Res-Appliance class'!$C34*'RES S curve-disconnect'!F$9+'Res-Appliance class'!$D34*'RES S curve-disconnect'!F$14+'Res-Appliance class'!$E34*'RES S curve-disconnect'!F$19","v":-4476.1223720966518},{"$f":"'Res-Appliance class'!$B34*'RES S curve-disconnect'!G$4+'Res-Appliance class'!$C34*'RES S curve-disconnect'!G$9+'Res-Appliance class'!$D34*'RES S curve-disconnect'!G$14+'Res-Appliance class'!$E34*'RES S curve-disconnect'!G$19","v":-5565.088002446756},{"$f":"'Res-Appliance class'!$B34*'RES S curve-disconnect'!H$4+'Res-Appliance class'!$C34*'RES S curve-disconnect'!H$9+'Res-Appliance class'!$D34*'RES S curve-disconnect'!H$14+'Res-Appliance class'!$E34*'RES S curve-disconnect'!H$19","v":-5612.0316062373258},{"$f":"'Res-Appliance class'!$B34*'RES S curve-disconnect'!I$4+'Res-Appliance class'!$C34*'RES S curve-disconnect'!I$9+'Res-Appliance class'!$D34*'RES S curve-disconnect'!I$14+'Res-Appliance class'!$E34*'RES S curve-disconnect'!I$19","v":-5198.9723221287832},{"$f":"'Res-Appliance class'!$B34*'RES S curve-disconnect'!J$4+'Res-Appliance class'!$C34*'RES S curve-disconnect'!J$9+'Res-Appliance class'!$D34*'RES S curve-disconnect'!J$14+'Res-Appliance class'!$E34*'RES S curve-disconnect'!J$19","v":-5547.6666721722922},{"$f":"'Res-Appliance class'!$B34*'RES S curve-disconnect'!K$4+'Res-Appliance class'!$C34*'RES S curve-disconnect'!K$9+'Res-Appliance class'!$D34*'RES S curve-disconnect'!K$14+'Res-Appliance class'!$E34*'RES S curve-disconnect'!K$19","v":-4762.9956511112414},{"$f":"'Res-Appliance class'!$B34*'RES S curve-disconnect'!L$4+'Res-Appliance class'!$C34*'RES S curve-disconnect'!L$9+'Res-Appliance class'!$D34*'RES S curve-disconnect'!L$14+'Res-Appliance class'!$E34*'RES S curve-disconnect'!L$19","v":-5096.2546824468936},{"$f":"'Res-Appliance class'!$B34*'RES S curve-disconnect'!M$4+'Res-Appliance class'!$C34*'RES S curve-disconnect'!M$9+'Res-Appliance class'!$D34*'RES S curve-disconnect'!M$14+'Res-Appliance class'!$E34*'RES S curve-disconnect'!M$19","v":-5693.1291325083039},{"$f":"'Res-Appliance class'!$B34*'RES S curve-disconnect'!N$4+'Res-Appliance class'!$C34*'RES S curve-disconnect'!N$9+'Res-Appliance class'!$D34*'RES S curve-disconnect'!N$14+'Res-Appliance class'!$E34*'RES S curve-disconnect'!N$19","v":-5746.5545891640377},{"$f":"'Res-Appliance class'!$B34*'RES S curve-disconnect'!O$4+'Res-Appliance class'!$C34*'RES S curve-disconnect'!O$9+'Res-Appliance class'!$D34*'RES S curve-disconnect'!O$14+'Res-Appliance class'!$E34*'RES S curve-disconnect'!O$19","v":-5208.2629628047416},{"$f":"'Res-Appliance class'!$B34*'RES S curve-disconnect'!P$4+'Res-Appliance class'!$C34*'RES S curve-disconnect'!P$9+'Res-Appliance class'!$D34*'RES S curve-disconnect'!P$14+'Res-Appliance class'!$E34*'RES S curve-disconnect'!P$19","v":-4780.0381894115817},{"$f":"'Res-Appliance class'!$B34*'RES S curve-disconnect'!Q$4+'Res-Appliance class'!$C34*'RES S curve-disconnect'!Q$9+'Res-Appliance class'!$D34*'RES S curve-disconnect'!Q$14+'Res-Appliance class'!$E34*'RES S curve-disconnect'!Q$19","v":-4134.6915005337887},{"$f":"'Res-Appliance class'!$B34*'RES S curve-disconnect'!R$4+'Res-Appliance class'!$C34*'RES S curve-disconnect'!R$9+'Res-Appliance class'!$D34*'RES S curve-disconnect'!R$14+'Res-Appliance class'!$E34*'RES S curve-disconnect'!R$19","v":-3767.6329280530144},{"$f":"'Res-Appliance class'!$B34*'RES S curve-disconnect'!S$4+'Res-Appliance class'!$C34*'RES S curve-disconnect'!S$9+'Res-Appliance class'!$D34*'RES S curve-disconnect'!S$14+'Res-Appliance class'!$E34*'RES S curve-disconnect'!S$19","v":-3184.6130956847906},{"$f":"'Res-Appliance class'!$B34*'RES S curve-disconnect'!T$4+'Res-Appliance class'!$C34*'RES S curve-disconnect'!T$9+'Res-Appliance class'!$D34*'RES S curve-disconnect'!T$14+'Res-Appliance class'!$E34*'RES S curve-disconnect'!T$19","v":-2868.6786830468086},{"$f":"'Res-Appliance class'!$B34*'RES S curve-disconnect'!U$4+'Res-Appliance class'!$C34*'RES S curve-disconnect'!U$9+'Res-Appliance class'!$D34*'RES S curve-disconnect'!U$14+'Res-Appliance class'!$E34*'RES S curve-disconnect'!U$19","v":-2506.5353598333991},{"$f":"'Res-Appliance class'!$B34*'RES S curve-disconnect'!V$4+'Res-Appliance class'!$C34*'RES S curve-disconnect'!V$9+'Res-Appliance class'!$D34*'RES S curve-disconnect'!V$14+'Res-Appliance class'!$E34*'RES S curve-disconnect'!V$19","v":-2257.5332506617719},{"$f":"'Res-Appliance class'!$B34*'RES S curve-disconnect'!W$4+'Res-Appliance class'!$C34*'RES S curve-disconnect'!W$9+'Res-Appliance class'!$D34*'RES S curve-disconnect'!W$14+'Res-Appliance class'!$E34*'RES S curve-disconnect'!W$19","v":-2063.0527970060984},{"$f":"'Res-Appliance class'!$B34*'RES S curve-disconnect'!X$4+'Res-Appliance class'!$C34*'RES S curve-disconnect'!X$9+'Res-Appliance class'!$D34*'RES S curve-disconnect'!X$14+'Res-Appliance class'!$E34*'RES S curve-disconnect'!X$19","v":-1627.6166360606294},{"$f":"'Res-Appliance class'!$B34*'RES S curve-disconnect'!Y$4+'Res-Appliance class'!$C34*'RES S curve-disconnect'!Y$9+'Res-Appliance class'!$D34*'RES S curve-disconnect'!Y$14+'Res-Appliance class'!$E34*'RES S curve-disconnect'!Y$19","v":-1186.8155674747579},{"$f":"'Res-Appliance class'!$B34*'RES S curve-disconnect'!Z$4+'Res-Appliance class'!$C34*'RES S curve-disconnect'!Z$9+'Res-Appliance class'!$D34*'RES S curve-disconnect'!Z$14+'Res-Appliance class'!$E34*'RES S curve-disconnect'!Z$19","v":-887.26331886138087},{"$f":"'Res-Appliance class'!$B34*'RES S curve-disconnect'!AA$4+'Res-Appliance class'!$C34*'RES S curve-disconnect'!AA$9+'Res-Appliance class'!$D34*'RES S curve-disconnect'!AA$14+'Res-Appliance class'!$E34*'RES S curve-disconnect'!AA$19","v":-587.37273359750304},{"$f":"'Res-Appliance class'!$B34*'RES S curve-disconnect'!AB$4+'Res-Appliance class'!$C34*'RES S curve-disconnect'!AB$9+'Res-Appliance class'!$D34*'RES S curve-disconnect'!AB$14+'Res-Appliance class'!$E34*'RES S curve-disconnect'!AB$19","v":-347.48333845877681},{"$f":"'Res-Appliance class'!$B34*'RES S curve-disconnect'!AC$4+'Res-Appliance class'!$C34*'RES S curve-disconnect'!AC$9+'Res-Appliance class'!$D34*'RES S curve-disconnect'!AC$14+'Res-Appliance class'!$E34*'RES S curve-disconnect'!AC$19","v":-116.07518949530038},{"$f":"'Res-Appliance class'!$B34*'RES S curve-disconnect'!AD$4+'Res-Appliance class'!$C34*'RES S curve-disconnect'!AD$9+'Res-Appliance class'!$D34*'RES S curve-disconnect'!AD$14+'Res-Appliance class'!$E34*'RES S curve-disconnect'!AD$19","v":96.412998597503872},{"$f":"'Res-Appliance class'!$B34*'RES S curve-disconnect'!AE$4+'Res-Appliance class'!$C34*'RES S curve-disconnect'!AE$9+'Res-Appliance class'!$D34*'RES S curve-disconnect'!AE$14+'Res-Appliance class'!$E34*'RES S curve-disconnect'!AE$19","v":320.04780825195201},{"$f":"'Res-Appliance class'!$B34*'RES S curve-disconnect'!AF$4+'Res-Appliance class'!$C34*'RES S curve-disconnect'!AF$9+'Res-Appliance class'!$D34*'RES S curve-disconnect'!AF$14+'Res-Appliance class'!$E34*'RES S curve-disconnect'!AF$19","v":608.03211049496554},{"$f":"'Res-Appliance class'!$B34*'RES S curve-disconnect'!AG$4+'Res-Appliance class'!$C34*'RES S curve-disconnect'!AG$9+'Res-Appliance class'!$D34*'RES S curve-disconnect'!AG$14+'Res-Appliance class'!$E34*'RES S curve-disconnect'!AG$19","v":804.68968088717452},{"$f":"'Res-Appliance class'!$B34*'RES S curve-disconnect'!AH$4+'Res-Appliance class'!$C34*'RES S curve-disconnect'!AH$9+'Res-Appliance class'!$D34*'RES S curve-disconnect'!AH$14+'Res-Appliance class'!$E34*'RES S curve-disconnect'!AH$19","v":1080.5284312981594},{"$f":"'Res-Appliance class'!$B34*'RES S curve-disconnect'!AI$4+'Res-Appliance class'!$C34*'RES S curve-disconnect'!AI$9+'Res-Appliance class'!$D34*'RES S curve-disconnect'!AI$14+'Res-Appliance class'!$E34*'RES S curve-disconnect'!AI$19","v":1329.2820518463982},{"$f":"'Res-Appliance class'!$B34*'RES S curve-disconnect'!AJ$4+'Res-Appliance class'!$C34*'RES S curve-disconnect'!AJ$9+'Res-Appliance class'!$D34*'RES S curve-disconnect'!AJ$14+'Res-Appliance class'!$E34*'RES S curve-disconnect'!AJ$19","v":1553.6160417177475},{"$f":"'Res-Appliance class'!$B34*'RES S curve-disconnect'!AK$4+'Res-Appliance class'!$C34*'RES S curve-disconnect'!AK$9+'Res-Appliance class'!$D34*'RES S curve-disconnect'!AK$14+'Res-Appliance class'!$E34*'RES S curve-disconnect'!AK$19","v":1791.8041689181784},{"$f":"'Res-Appliance class'!$B34*'RES S curve-disconnect'!AL$4+'Res-Appliance class'!$C34*'RES S curve-disconnect'!AL$9+'Res-Appliance class'!$D34*'RES S curve-disconnect'!AL$14+'Res-Appliance class'!$E34*'RES S curve-disconnect'!AL$19","v":965.30932620518786},{"$f":"'Res-Appliance class'!$B34*'RES S curve-disconnect'!AM$4+'Res-Appliance class'!$C34*'RES S curve-disconnect'!AM$9+'Res-Appliance class'!$D34*'RES S curve-disconnect'!AM$14+'Res-Appliance class'!$E34*'RES S curve-disconnect'!AM$19","v":858.29810794048535},{"$f":"'Res-Appliance class'!$B34*'RES S curve-disconnect'!AN$4+'Res-Appliance class'!$C34*'RES S curve-disconnect'!AN$9+'Res-Appliance class'!$D34*'RES S curve-disconnect'!AN$14+'Res-Appliance class'!$E34*'RES S curve-disconnect'!AN$19","v":1084.3408117941233},{"$f":"'Res-Appliance class'!$B34*'RES S curve-disconnect'!AO$4+'Res-Appliance class'!$C34*'RES S curve-disconnect'!AO$9+'Res-Appliance class'!$D34*'RES S curve-disconnect'!AO$14+'Res-Appliance class'!$E34*'RES S curve-disconnect'!AO$19","v":1360.2886341381991},{"$f":"'Res-Appliance class'!$B34*'RES S curve-disconnect'!AP$4+'Res-Appliance class'!$C34*'RES S curve-disconnect'!AP$9+'Res-Appliance class'!$D34*'RES S curve-disconnect'!AP$14+'Res-Appliance class'!$E34*'RES S curve-disconnect'!AP$19","v":1614.9207063909132},{"$f":"'Res-Appliance class'!$B34*'RES S curve-disconnect'!AQ$4+'Res-Appliance class'!$C34*'RES S curve-disconnect'!AQ$9+'Res-Appliance class'!$D34*'RES S curve-disconnect'!AQ$14+'Res-Appliance class'!$E34*'RES S curve-disconnect'!AQ$19","v":1889.3644903145453},{"$f":"'Res-Appliance class'!$B34*'RES S curve-disconnect'!AR$4+'Res-Appliance class'!$C34*'RES S curve-disconnect'!AR$9+'Res-Appliance class'!$D34*'RES S curve-disconnect'!AR$14+'Res-Appliance class'!$E34*'RES S curve-disconnect'!AR$19","v":2190.5272811090472},{"$f":"'Res-Appliance class'!$B34*'RES S curve-disconnect'!AS$4+'Res-Appliance class'!$C34*'RES S curve-disconnect'!AS$9+'Res-Appliance class'!$D34*'RES S curve-disconnect'!AS$14+'Res-Appliance class'!$E34*'RES S curve-disconnect'!AS$19","v":2528.4274238561579},{"$f":"'Res-Appliance class'!$B34*'RES S curve-disconnect'!AT$4+'Res-Appliance class'!$C34*'RES S curve-disconnect'!AT$9+'Res-Appliance class'!$D34*'RES S curve-disconnect'!AT$14+'Res-Appliance class'!$E34*'RES S curve-disconnect'!AT$19","v":2906.195012178493},{"$f":"'Res-Appliance class'!$B34*'RES S curve-disconnect'!AU$4+'Res-Appliance class'!$C34*'RES S curve-disconnect'!AU$9+'Res-Appliance class'!$D34*'RES S curve-disconnect'!AU$14+'Res-Appliance class'!$E34*'RES S curve-disconnect'!AU$19","v":3343.4662040239823},{"$f":"'Res-Appliance class'!$B34*'RES S curve-disconnect'!AV$4+'Res-Appliance class'!$C34*'RES S curve-disconnect'!AV$9+'Res-Appliance class'!$D34*'RES S curve-disconnect'!AV$14+'Res-Appliance class'!$E34*'RES S curve-disconnect'!AV$19","v":3842.0089645982498},{"$f":"'Res-Appliance class'!$B34*'RES S curve-disconnect'!AW$4+'Res-Appliance class'!$C34*'RES S curve-disconnect'!AW$9+'Res-Appliance class'!$D34*'RES S curve-disconnect'!AW$14+'Res-Appliance class'!$E34*'RES S curve-disconnect'!AW$19","v":4414.9270260375488},{"$f":"'Res-Appliance class'!$B34*'RES S curve-disconnect'!AX$4+'Res-Appliance class'!$C34*'RES S curve-disconnect'!AX$9+'Res-Appliance class'!$D34*'RES S curve-disconnect'!AX$14+'Res-Appliance class'!$E34*'RES S curve-disconnect'!AX$19","v":5067.5974992739639},{"$f":"'Res-Appliance class'!$B34*'RES S curve-disconnect'!AY$4+'Res-Appliance class'!$C34*'RES S curve-disconnect'!AY$9+'Res-Appliance class'!$D34*'RES S curve-disconnect'!AY$14+'Res-Appliance class'!$E34*'RES S curve-disconnect'!AY$19","v":5820.7995276656529},{"$f":"'Res-Appliance class'!$B34*'RES S curve-disconnect'!AZ$4+'Res-Appliance class'!$C34*'RES S curve-disconnect'!AZ$9+'Res-Appliance class'!$D34*'RES S curve-disconnect'!AZ$14+'Res-Appliance class'!$E34*'RES S curve-disconnect'!AZ$19","v":6681.4688915488405},{"$f":"'Res-Appliance class'!$B34*'RES S curve-disconnect'!BA$4+'Res-Appliance class'!$C34*'RES S curve-disconnect'!BA$9+'Res-Appliance class'!$D34*'RES S curve-disconnect'!BA$14+'Res-Appliance class'!$E34*'RES S curve-disconnect'!BA$19","v":7677.9608749433637},{"$f":"'Res-Appliance class'!$B34*'RES S curve-disconnect'!BB$4+'Res-Appliance class'!$C34*'RES S curve-disconnect'!BB$9+'Res-Appliance class'!$D34*'RES S curve-disconnect'!BB$14+'Res-Appliance class'!$E34*'RES S curve-disconnect'!BB$19","v":8841.7559064088418},{"$f":"'Res-Appliance class'!$B34*'RES S curve-disconnect'!BC$4+'Res-Appliance class'!$C34*'RES S curve-disconnect'!BC$9+'Res-Appliance class'!$D34*'RES S curve-disconnect'!BC$14+'Res-Appliance class'!$E34*'RES S curve-disconnect'!BC$19","v":10229.514053104987},{"$f":"'Res-Appliance class'!$B34*'RES S curve-disconnect'!BD$4+'Res-Appliance class'!$C34*'RES S curve-disconnect'!BD$9+'Res-Appliance class'!$D34*'RES S curve-disconnect'!BD$14+'Res-Appliance class'!$E34*'RES S curve-disconnect'!BD$19","v":11567.210806752615},{"$f":"'Res-Appliance class'!$B34*'RES S curve-disconnect'!BE$4+'Res-Appliance class'!$C34*'RES S curve-disconnect'!BE$9+'Res-Appliance class'!$D34*'RES S curve-disconnect'!BE$14+'Res-Appliance class'!$E34*'RES S curve-disconnect'!BE$19","v":12789.522707586857},{"$f":"'Res-Appliance class'!$B34*'RES S curve-disconnect'!BF$4+'Res-Appliance class'!$C34*'RES S curve-disconnect'!BF$9+'Res-Appliance class'!$D34*'RES S curve-disconnect'!BF$14+'Res-Appliance class'!$E34*'RES S curve-disconnect'!BF$19","v":14040.281172032664},{"$f":"'Res-Appliance class'!$B34*'RES S curve-disconnect'!BG$4+'Res-Appliance class'!$C34*'RES S curve-disconnect'!BG$9+'Res-Appliance class'!$D34*'RES S curve-disconnect'!BG$14+'Res-Appliance class'!$E34*'RES S curve-disconnect'!BG$19","v":15456.254346674925},{"$f":"'Res-Appliance class'!$B34*'RES S curve-disconnect'!BH$4+'Res-Appliance class'!$C34*'RES S curve-disconnect'!BH$9+'Res-Appliance class'!$D34*'RES S curve-disconnect'!BH$14+'Res-Appliance class'!$E34*'RES S curve-disconnect'!BH$19","v":17136.849281059342},{"$f":"'Res-Appliance class'!$B34*'RES S curve-disconnect'!BI$4+'Res-Appliance class'!$C34*'RES S curve-disconnect'!BI$9+'Res-Appliance class'!$D34*'RES S curve-disconnect'!BI$14+'Res-Appliance class'!$E34*'RES S curve-disconnect'!BI$19","v":19572.264470624206},{"$f":"'Res-Appliance class'!$B34*'RES S curve-disconnect'!BJ$4+'Res-Appliance class'!$C34*'RES S curve-disconnect'!BJ$9+'Res-Appliance class'!$D34*'RES S curve-disconnect'!BJ$14+'Res-Appliance class'!$E34*'RES S curve-disconnect'!BJ$19","v":23137.828883265494},{"$f":"'Res-Appliance class'!$B34*'RES S curve-disconnect'!BK$4+'Res-Appliance class'!$C34*'RES S curve-disconnect'!BK$9+'Res-Appliance class'!$D34*'RES S curve-disconnect'!BK$14+'Res-Appliance class'!$E34*'RES S curve-disconnect'!BK$19","v":28398.06956430999},{"$f":"'Res-Appliance class'!$B34*'RES S curve-disconnect'!BL$4+'Res-Appliance class'!$C34*'RES S curve-disconnect'!BL$9+'Res-Appliance class'!$D34*'RES S curve-disconnect'!BL$14+'Res-Appliance class'!$E34*'RES S curve-disconnect'!BL$19","v":-2055.6806484709955},{"$f":"'Res-Appliance class'!$B34*'RES S curve-disconnect'!BM$4+'Res-Appliance class'!$C34*'RES S curve-disconnect'!BM$9+'Res-Appliance class'!$D34*'RES S curve-disconnect'!BM$14+'Res-Appliance class'!$E34*'RES S curve-disconnect'!BM$19","v":-2048.9680719778767},{"$f":"'Res-Appliance class'!$B34*'RES S curve-disconnect'!BN$4+'Res-Appliance class'!$C34*'RES S curve-disconnect'!BN$9+'Res-Appliance class'!$D34*'RES S curve-disconnect'!BN$14+'Res-Appliance class'!$E34*'RES S curve-disconnect'!BN$19","v":-2045.6056444402905},{"$f":"'Res-Appliance class'!$B34*'RES S curve-disconnect'!BO$4+'Res-Appliance class'!$C34*'RES S curve-disconnect'!BO$9+'Res-Appliance class'!$D34*'RES S curve-disconnect'!BO$14+'Res-Appliance class'!$E34*'RES S curve-disconnect'!BO$19","v":-2035.5720473087513},{"$f":"'Res-Appliance class'!$B34*'RES S curve-disconnect'!BP$4+'Res-Appliance class'!$C34*'RES S curve-disconnect'!BP$9+'Res-Appliance class'!$D34*'RES S curve-disconnect'!BP$14+'Res-Appliance class'!$E34*'RES S curve-disconnect'!BP$19","v":-2028.8884815052372},{"$f":"'Res-Appliance class'!$B34*'RES S curve-disconnect'!BQ$4+'Res-Appliance class'!$C34*'RES S curve-disconnect'!BQ$9+'Res-Appliance class'!$D34*'RES S curve-disconnect'!BQ$14+'Res-Appliance class'!$E34*'RES S curve-disconnect'!BQ$19","v":-2022.2144689152685},{"$f":"'Res-Appliance class'!$B34*'RES S curve-disconnect'!BR$4+'Res-Appliance class'!$C34*'RES S curve-disconnect'!BR$9+'Res-Appliance class'!$D34*'RES S curve-disconnect'!BR$14+'Res-Appliance class'!$E34*'RES S curve-disconnect'!BR$19","v":-2018.8903714889502},{"$f":"'Res-Appliance class'!$B34*'RES S curve-disconnect'!BS$4+'Res-Appliance class'!$C34*'RES S curve-disconnect'!BS$9+'Res-Appliance class'!$D34*'RES S curve-disconnect'!BS$14+'Res-Appliance class'!$E34*'RES S curve-disconnect'!BS$19","v":-2008.8948721353183},{"$f":"'Res-Appliance class'!$B34*'RES S curve-disconnect'!BT$4+'Res-Appliance class'!$C34*'RES S curve-disconnect'!BT$9+'Res-Appliance class'!$D34*'RES S curve-disconnect'!BT$14+'Res-Appliance class'!$E34*'RES S curve-disconnect'!BT$19","v":-2002.2491732256426},{"$f":"'Res-Appliance class'!$B34*'RES S curve-disconnect'!BU$4+'Res-Appliance class'!$C34*'RES S curve-disconnect'!BU$9+'Res-Appliance class'!$D34*'RES S curve-disconnect'!BU$14+'Res-Appliance class'!$E34*'RES S curve-disconnect'!BU$19","v":-1995.6127980855686},{"$f":"'Res-Appliance class'!$B34*'RES S curve-disconnect'!BV$4+'Res-Appliance class'!$C34*'RES S curve-disconnect'!BV$9+'Res-Appliance class'!$D34*'RES S curve-disconnect'!BV$14+'Res-Appliance class'!$E34*'RES S curve-disconnect'!BV$19","v":-1992.3261100962236},{"$f":"'Res-Appliance class'!$B34*'RES S curve-disconnect'!BW$4+'Res-Appliance class'!$C34*'RES S curve-disconnect'!BW$9+'Res-Appliance class'!$D34*'RES S curve-disconnect'!BW$14+'Res-Appliance class'!$E34*'RES S curve-disconnect'!BW$19","v":-1982.3677935886083},{"$f":"'Res-Appliance class'!$B34*'RES S curve-disconnect'!BX$4+'Res-Appliance class'!$C34*'RES S curve-disconnect'!BX$9+'Res-Appliance class'!$D34*'RES S curve-disconnect'!BX$14+'Res-Appliance class'!$E34*'RES S curve-disconnect'!BX$19","v":-1975.7590523469728},{"$f":"'Res-Appliance class'!$B34*'RES S curve-disconnect'!BY$4+'Res-Appliance class'!$C34*'RES S curve-disconnect'!BY$9+'Res-Appliance class'!$D34*'RES S curve-disconnect'!BY$14+'Res-Appliance class'!$E34*'RES S curve-disconnect'!BY$19","v":-1969.1594111010049},{"$f":"'Res-Appliance class'!$B34*'RES S curve-disconnect'!BZ$4+'Res-Appliance class'!$C34*'RES S curve-disconnect'!BZ$9+'Res-Appliance class'!$D34*'RES S curve-disconnect'!BZ$14+'Res-Appliance class'!$E34*'RES S curve-disconnect'!BZ$19","v":-1965.9092346269927},{"$f":"'Res-Appliance class'!$B34*'RES S curve-disconnect'!CA$4+'Res-Appliance class'!$C34*'RES S curve-disconnect'!CA$9+'Res-Appliance class'!$D34*'RES S curve-disconnect'!CA$14+'Res-Appliance class'!$E34*'RES S curve-disconnect'!CA$19","v":-1955.9872086422804},{"$f":"'Res-Appliance class'!$B34*'RES S curve-disconnect'!CB$4+'Res-Appliance class'!$C34*'RES S curve-disconnect'!CB$9+'Res-Appliance class'!$D34*'RES S curve-disconnect'!CB$14+'Res-Appliance class'!$E34*'RES S curve-disconnect'!CB$19","v":-1949.4145383086916},{"$f":"'Res-Appliance class'!$B34*'RES S curve-disconnect'!CC$4+'Res-Appliance class'!$C34*'RES S curve-disconnect'!CC$9+'Res-Appliance class'!$D34*'RES S curve-disconnect'!CC$14+'Res-Appliance class'!$E34*'RES S curve-disconnect'!CC$19","v":-1942.850749724782},{"$f":"'Res-Appliance class'!$B34*'RES S curve-disconnect'!CD$4+'Res-Appliance class'!$C34*'RES S curve-disconnect'!CD$9+'Res-Appliance class'!$D34*'RES S curve-disconnect'!CD$14+'Res-Appliance class'!$E34*'RES S curve-disconnect'!CD$19","v":-2042.0756246274254}]
["Kingston (C)",null,{"$f":"'Res-Appliance class'!$B35*'RES S curve-disconnect'!C$4+'Res-Appliance class'!$C35*'RES S curve-disconnect'!C$9+'Res-Appliance class'!$D35*'RES S curve-disconnect'!C$14+'Res-Appliance class'!$E35*'RES S curve-disconnect'!C$19","v":-4575.2976758428085},{"$f":"'Res-Appliance class'!$B35*'RES S curve-disconnect'!D$4+'Res-Appliance class'!$C35*'RES S curve-disconnect'!D$9+'Res-Appliance class'!$D35*'RES S curve-disconnect'!D$14+'Res-Appliance class'!$E35*'RES S curve-disconnect'!D$19","v":-5051.498441363954},{"$f":"'Res-Appliance class'!$B35*'RES S curve-disconnect'!E$4+'Res-Appliance class'!$C35*'RES S curve-disconnect'!E$9+'Res-Appliance class'!$D35*'RES S curve-disconnect'!E$14+'Res-Appliance class'!$E35*'RES S curve-disconnect'!E$19","v":-4416.4090174812136},{"$f":"'Res-Appliance class'!$B35*'RES S curve-disconnect'!F$4+'Res-Appliance class'!$C35*'RES S curve-disconnect'!F$9+'Res-Appliance class'!$D35*'RES S curve-disconnect'!F$14+'Res-Appliance class'!$E35*'RES S curve-disconnect'!F$19","v":-4276.5374758152529},{"$f":"'Res-Appliance class'!$B35*'RES S curve-disconnect'!G$4+'Res-Appliance class'!$C35*'RES S curve-disconnect'!G$9+'Res-Appliance class'!$D35*'RES S curve-disconnect'!G$14+'Res-Appliance class'!$E35*'RES S curve-disconnect'!G$19","v":-5316.7414724950322},{"$f":"'Res-Appliance class'!$B35*'RES S curve-disconnect'!H$4+'Res-Appliance class'!$C35*'RES S curve-disconnect'!H$9+'Res-Appliance class'!$D35*'RES S curve-disconnect'!H$14+'Res-Appliance class'!$E35*'RES S curve-disconnect'!H$19","v":-5356.4349851805782},{"$f":"'Res-Appliance class'!$B35*'RES S curve-disconnect'!I$4+'Res-Appliance class'!$C35*'RES S curve-disconnect'!I$9+'Res-Appliance class'!$D35*'RES S curve-disconnect'!I$14+'Res-Appliance class'!$E35*'RES S curve-disconnect'!I$19","v":-4959.8154037132717},{"$f":"'Res-Appliance class'!$B35*'RES S curve-disconnect'!J$4+'Res-Appliance class'!$C35*'RES S curve-disconnect'!J$9+'Res-Appliance class'!$D35*'RES S curve-disconnect'!J$14+'Res-Appliance class'!$E35*'RES S curve-disconnect'!J$19","v":-5305.6501601593091},{"$f":"'Res-Appliance class'!$B35*'RES S curve-disconnect'!K$4+'Res-Appliance class'!$C35*'RES S curve-disconnect'!K$9+'Res-Appliance class'!$D35*'RES S curve-disconnect'!K$14+'Res-Appliance class'!$E35*'RES S curve-disconnect'!K$19","v":-4551.0088578838795},{"$f":"'Res-Appliance class'!$B35*'RES S curve-disconnect'!L$4+'Res-Appliance class'!$C35*'RES S curve-disconnect'!L$9+'Res-Appliance class'!$D35*'RES S curve-disconnect'!L$14+'Res-Appliance class'!$E35*'RES S curve-disconnect'!L$19","v":-4872.902881879153},{"$f":"'Res-Appliance class'!$B35*'RES S curve-disconnect'!M$4+'Res-Appliance class'!$C35*'RES S curve-disconnect'!M$9+'Res-Appliance class'!$D35*'RES S curve-disconnect'!M$14+'Res-Appliance class'!$E35*'RES S curve-disconnect'!M$19","v":-5443.5679126211735},{"$f":"'Res-Appliance class'!$B35*'RES S curve-disconnect'!N$4+'Res-Appliance class'!$C35*'RES S curve-disconnect'!N$9+'Res-Appliance class'!$D35*'RES S curve-disconnect'!N$14+'Res-Appliance class'!$E35*'RES S curve-disconnect'!N$19","v":-5494.7177827590067},{"$f":"'Res-Appliance class'!$B35*'RES S curve-disconnect'!O$4+'Res-Appliance class'!$C35*'RES S curve-disconnect'!O$9+'Res-Appliance class'!$D35*'RES S curve-disconnect'!O$14+'Res-Appliance class'!$E35*'RES S curve-disconnect'!O$19","v":-4976.4639263179361},{"$f":"'Res-Appliance class'!$B35*'RES S curve-disconnect'!P$4+'Res-Appliance class'!$C35*'RES S curve-disconnect'!P$9+'Res-Appliance class'!$D35*'RES S curve-disconnect'!P$14+'Res-Appliance class'!$E35*'RES S curve-disconnect'!P$19","v":-4564.8169575928514},{"$f":"'Res-Appliance class'!$B35*'RES S curve-disconnect'!Q$4+'Res-Appliance class'!$C35*'RES S curve-disconnect'!Q$9+'Res-Appliance class'!$D35*'RES S curve-disconnect'!Q$14+'Res-Appliance class'!$E35*'RES S curve-disconnect'!Q$19","v":-3944.4907255775074},{"$f":"'Res-Appliance class'!$B35*'RES S curve-disconnect'!R$4+'Res-Appliance class'!$C35*'RES S curve-disconnect'!R$9+'Res-Appliance class'!$D35*'RES S curve-disconnect'!R$14+'Res-Appliance class'!$E35*'RES S curve-disconnect'!R$19","v":-3591.7323303834337},{"$f":"'Res-Appliance class'!$B35*'RES S curve-disconnect'!S$4+'Res-Appliance class'!$C35*'RES S curve-disconnect'!S$9+'Res-Appliance class'!$D35*'RES S curve-disconnect'!S$14+'Res-Appliance class'!$E35*'RES S curve-disconnect'!S$19","v":-3030.5763773877097},{"$f":"'Res-Appliance class'!$B35*'RES S curve-disconnect'!T$4+'Res-Appliance class'!$C35*'RES S curve-disconnect'!T$9+'Res-Appliance class'!$D35*'RES S curve-disconnect'!T$14+'Res-Appliance class'!$E35*'RES S curve-disconnect'!T$19","v":-2728.3038954783192},{"$f":"'Res-Appliance class'!$B35*'RES S curve-disconnect'!U$4+'Res-Appliance class'!$C35*'RES S curve-disconnect'!U$9+'Res-Appliance class'!$D35*'RES S curve-disconnect'!U$14+'Res-Appliance class'!$E35*'RES S curve-disconnect'!U$19","v":-2380.4705968087237},{"$f":"'Res-Appliance class'!$B35*'RES S curve-disconnect'!V$4+'Res-Appliance class'!$C35*'RES S curve-disconnect'!V$9+'Res-Appliance class'!$D35*'RES S curve-disconnect'!V$14+'Res-Appliance class'!$E35*'RES S curve-disconnect'!V$19","v":-2140.7551372949856},{"$f":"'Res-Appliance class'!$B35*'RES S curve-disconnect'!W$4+'Res-Appliance class'!$C35*'RES S curve-disconnect'!W$9+'Res-Appliance class'!$D35*'RES S curve-disconnect'!W$14+'Res-Appliance class'!$E35*'RES S curve-disconnect'!W$19","v":-1953.6002790612285},{"$f":"'Res-Appliance class'!$B35*'RES S curve-disconnect'!X$4+'Res-Appliance class'!$C35*'RES S curve-disconnect'!X$9+'Res-Appliance class'!$D35*'RES S curve-disconnect'!X$14+'Res-Appliance class'!$E35*'RES S curve-disconnect'!X$19","v":-1535.6784181034027},{"$f":"'Res-Appliance class'!$B35*'RES S curve-disconnect'!Y$4+'Res-Appliance class'!$C35*'RES S curve-disconnect'!Y$9+'Res-Appliance class'!$D35*'RES S curve-disconnect'!Y$14+'Res-Appliance class'!$E35*'RES S curve-disconnect'!Y$19","v":-1112.4018044012735},{"$f":"'Res-Appliance class'!$B35*'RES S curve-disconnect'!Z$4+'Res-Appliance class'!$C35*'RES S curve-disconnect'!Z$9+'Res-Appliance class'!$D35*'RES S curve-disconnect'!Z$14+'Res-Appliance class'!$E35*'RES S curve-disconnect'!Z$19","v":-824.58777732690999},{"$f":"'Res-Appliance class'!$B35*'RES S curve-disconnect'!AA$4+'Res-Appliance class'!$C35*'RES S curve-disconnect'!AA$9+'Res-Appliance class'!$D35*'RES S curve-disconnect'!AA$14+'Res-Appliance class'!$E35*'RES S curve-disconnect'!AA$19","v":-536.21318562253975},{"$f":"'Res-Appliance class'!$B35*'RES S curve-disconnect'!AB$4+'Res-Appliance class'!$C35*'RES S curve-disconnect'!AB$9+'Res-Appliance class'!$D35*'RES S curve-disconnect'!AB$14+'Res-Appliance class'!$E35*'RES S curve-disconnect'!AB$19","v":-305.50341106300885},{"$f":"'Res-Appliance class'!$B35*'RES S curve-disconnect'!AC$4+'Res-Appliance class'!$C35*'RES S curve-disconnect'!AC$9+'Res-Appliance class'!$D35*'RES S curve-disconnect'!AC$14+'Res-Appliance class'!$E35*'RES S curve-disconnect'!AC$19","v":-82.799697487754827},{"$f":"'Res-Appliance class'!$B35*'RES S curve-disconnect'!AD$4+'Res-Appliance class'!$C35*'RES S curve-disconnect'!AD$9+'Res-Appliance class'!$D35*'RES S curve-disconnect'!AD$14+'Res-Appliance class'!$E35*'RES S curve-disconnect'!AD$19","v":121.70659071903469},{"$f":"'Res-Appliance class'!$B35*'RES S curve-disconnect'!AE$4+'Res-Appliance class'!$C35*'RES S curve-disconnect'!AE$9+'Res-Appliance class'!$D35*'RES S curve-disconnect'!AE$14+'Res-Appliance class'!$E35*'RES S curve-disconnect'!AE$19","v":337.26259545995663},{"$f":"'Res-Appliance class'!$B35*'RES S curve-disconnect'!AF$4+'Res-Appliance class'!$C35*'RES S curve-disconnect'!AF$9+'Res-Appliance class'!$D35*'RES S curve-disconnect'!AF$14+'Res-Appliance class'!$E35*'RES S curve-disconnect'!AF$19","v":614.41528723686656},{"$f":"'Res-Appliance class'!$B35*'RES S curve-disconnect'!AG$4+'Res-Appliance class'!$C35*'RES S curve-disconnect'!AG$9+'Res-Appliance class'!$D35*'RES S curve-disconnect'!AG$14+'Res-Appliance class'!$E35*'RES S curve-disconnect'!AG$19","v":803.76655506885686},{"$f":"'Res-Appliance class'!$B35*'RES S curve-disconnect'!AH$4+'Res-Appliance class'!$C35*'RES S curve-disconnect'!AH$9+'Res-Appliance class'!$D35*'RES S curve-disconnect'!AH$14+'Res-Appliance class'!$E35*'RES S curve-disconnect'!AH$19","v":1068.6989155550664},{"$f":"'Res-Appliance class'!$B35*'RES S curve-disconnect'!AI$4+'Res-Appliance class'!$C35*'RES S curve-disconnect'!AI$9+'Res-Appliance class'!$D35*'RES S curve-disconnect'!AI$14+'Res-Appliance class'!$E35*'RES S curve-disconnect'!AI$19","v":1308.2171531958008},{"$f":"'Res-Appliance class'!$B35*'RES S curve-disconnect'!AJ$4+'Res-Appliance class'!$C35*'RES S curve-disconnect'!AJ$9+'Res-Appliance class'!$D35*'RES S curve-disconnect'!AJ$14+'Res-Appliance class'!$E35*'RES S curve-disconnect'!AJ$19","v":1524.0986102633387},{"$f":"'Res-Appliance class'!$B35*'RES S curve-disconnect'!AK$4+'Res-Appliance class'!$C35*'RES S curve-disconnect'!AK$9+'Res-Appliance class'!$D35*'RES S curve-disconnect'!AK$14+'Res-Appliance class'!$E35*'RES S curve-disconnect'!AK$19","v":1753.3330582700285},{"$f":"'Res-Appliance class'!$B35*'RES S curve-disconnect'!AL$4+'Res-Appliance class'!$C35*'RES S curve-disconnect'!AL$9+'Res-Appliance class'!$D35*'RES S curve-disconnect'!AL$14+'Res-Appliance class'!$E35*'RES S curve-disconnect'!AL$19","v":956.32810235005309},{"$f":"'Res-Appliance class'!$B35*'RES S curve-disconnect'!AM$4+'Res-Appliance class'!$C35*'RES S curve-disconnect'!AM$9+'Res-Appliance class'!$D35*'RES S curve-disconnect'!AM$14+'Res-Appliance class'!$E35*'RES S curve-disconnect'!AM$19","v":854.0396174315581},{"$f":"'Res-Appliance class'!$B35*'RES S curve-disconnect'!AN$4+'Res-Appliance class'!$C35*'RES S curve-disconnect'!AN$9+'Res-Appliance class'!$D35*'RES S curve-disconnect'!AN$14+'Res-Appliance class'!$E35*'RES S curve-disconnect'!AN$19","v":1072.0487749336557},{"$f":"'Res-Appliance class'!$B35*'RES S curve-disconnect'!AO$4+'Res-Appliance class'!$C35*'RES S curve-disconnect'!AO$9+'Res-Appliance class'!$D35*'RES S curve-disconnect'!AO$14+'Res-Appliance class'!$E35*'RES S curve-disconnect'!AO$19","v":1337.7516998063854},{"$f":"'Res-Appliance class'!$B35*'RES S curve-disconnect'!AP$4+'Res-Appliance class'!$C35*'RES S curve-disconnect'!AP$9+'Res-Appliance class'!$D35*'RES S curve-disconnect'!AP$14+'Res-Appliance class'!$E35*'RES S curve-disconnect'!AP$19","v":1582.6715210625068},{"$f":"'Res-Appliance class'!$B35*'RES S curve-disconnect'!AQ$4+'Res-Appliance class'!$C35*'RES S curve-disconnect'!AQ$9+'Res-Appliance class'!$D35*'RES S curve-disconnect'!AQ$14+'Res-Appliance class'!$E35*'RES S curve-disconnect'!AQ$19","v":1846.910471676219},{"$f":"'Res-Appliance class'!$B35*'RES S curve-disconnect'!AR$4+'Res-Appliance class'!$C35*'RES S curve-disconnect'!AR$9+'Res-Appliance class'!$D35*'RES S curve-disconnect'!AR$14+'Res-Appliance class'!$E35*'RES S curve-disconnect'!AR$19","v":2136.7210315811453},{"$f":"'Res-Appliance class'!$B35*'RES S curve-disconnect'!AS$4+'Res-Appliance class'!$C35*'RES S curve-disconnect'!AS$9+'Res-Appliance class'!$D35*'RES S curve-disconnect'!AS$14+'Res-Appliance class'!$E35*'RES S curve-disconnect'!AS$19","v":2461.8438896738712},{"$f":"'Res-Appliance class'!$B35*'RES S curve-disconnect'!AT$4+'Res-Appliance class'!$C35*'RES S curve-disconnect'!AT$9+'Res-Appliance class'!$D35*'RES S curve-disconnect'!AT$14+'Res-Appliance class'!$E35*'RES S curve-disconnect'!AT$19","v":2825.1489777313595},{"$f":"'Res-Appliance class'!$B35*'RES S curve-disconnect'!AU$4+'Res-Appliance class'!$C35*'RES S curve-disconnect'!AU$9+'Res-Appliance class'!$D35*'RES S curve-disconnect'!AU$14+'Res-Appliance class'!$E35*'RES S curve-disconnect'!AU$19","v":3245.8932740746295},{"$f":"'Res-Appliance class'!$B35*'RES S curve-disconnect'!AV$4+'Res-Appliance class'!$C35*'RES S curve-disconnect'!AV$9+'Res-Appliance class'!$D35*'RES S curve-disconnect'!AV$14+'Res-Appliance class'!$E35*'RES S curve-disconnect'!AV$19","v":3725.3732060092052},{"$f":"'Res-Appliance class'!$B35*'RES S curve-disconnect'!AW$4+'Res-Appliance class'!$C35*'RES S curve-disconnect'!AW$9+'Res-Appliance class'!$D35*'RES S curve-disconnect'!AW$14+'Res-Appliance class'!$E35*'RES S curve-disconnect'!AW$19","v":4276.2802860291213},{"$f":"'Res-Appliance class'!$B35*'RES S curve-disconnect'!AX$4+'Res-Appliance class'!$C35*'RES S curve-disconnect'!AX$9+'Res-Appliance class'!$D35*'RES S curve-disconnect'!AX$14+'Res-Appliance class'!$E35*'RES S curve-disconnect'!AX$19","v":4903.6083938310076},{"$f":"'Res-Appliance class'!$B35*'RES S curve-disconnect'!AY$4+'Res-Appliance class'!$C35*'RES S curve-disconnect'!AY$9+'Res-Appliance class'!$D35*'RES S curve-disconnect'!AY$14+'Res-Appliance class'!$E35*'RES S curve-disconnect'!AY$19","v":5627.6705614012326},{"$f":"'Res-Appliance class'!$B35*'RES S curve-disconnect'!AZ$4+'Res-Appliance class'!$C35*'RES S curve-disconnect'!AZ$9+'Res-Appliance class'!$D35*'RES S curve-disconnect'!AZ$14+'Res-Appliance class'!$E35*'RES S curve-disconnect'!AZ$19","v":6454.6901506273516},{"$f":"'Res-Appliance class'!$B35*'RES S curve-disconnect'!BA$4+'Res-Appliance class'!$C35*'RES S curve-disconnect'!BA$9+'Res-Appliance class'!$D35*'RES S curve-disconnect'!BA$14+'Res-Appliance class'!$E35*'RES S curve-disconnect'!BA$19","v":7411.9804977672775},{"$f":"'Res-Appliance class'!$B35*'RES S curve-disconnect'!BB$4+'Res-Appliance class'!$C35*'RES S curve-disconnect'!BB$9+'Res-Appliance class'!$D35*'RES S curve-disconnect'!BB$14+'Res-Appliance class'!$E35*'RES S curve-disconnect'!BB$19","v":8529.5651881397444},{"$f":"'Res-Appliance class'!$B35*'RES S curve-disconnect'!BC$4+'Res-Appliance class'!$C35*'RES S curve-disconnect'!BC$9+'Res-Appliance class'!$D35*'RES S curve-disconnect'!BC$14+'Res-Appliance class'!$E35*'RES S curve-disconnect'!BC$19","v":9862.1421194311442},{"$f":"'Res-Appliance class'!$B35*'RES S curve-disconnect'!BD$4+'Res-Appliance class'!$C35*'RES S curve-disconnect'!BD$9+'Res-Appliance class'!$D35*'RES S curve-disconnect'!BD$14+'Res-Appliance class'!$E35*'RES S curve-disconnect'!BD$19","v":11145.547953960126},{"$f":"'Res-Appliance class'!$B35*'RES S curve-disconnect'!BE$4+'Res-Appliance class'!$C35*'RES S curve-disconnect'!BE$9+'Res-Appliance class'!$D35*'RES S curve-disconnect'!BE$14+'Res-Appliance class'!$E35*'RES S curve-disconnect'!BE$19","v":12317.884150221984},{"$f":"'Res-Appliance class'!$B35*'RES S curve-disconnect'!BF$4+'Res-Appliance class'!$C35*'RES S curve-disconnect'!BF$9+'Res-Appliance class'!$D35*'RES S curve-disconnect'!BF$14+'Res-Appliance class'!$E35*'RES S curve-disconnect'!BF$19","v":13517.612744955299},{"$f":"'Res-Appliance class'!$B35*'RES S curve-disconnect'!BG$4+'Res-Appliance class'!$C35*'RES S curve-disconnect'!BG$9+'Res-Appliance class'!$D35*'RES S curve-disconnect'!BG$14+'Res-Appliance class'!$E35*'RES S curve-disconnect'!BG$19","v":14876.230148185139},{"$f":"'Res-Appliance class'!$B35*'RES S curve-disconnect'!BH$4+'Res-Appliance class'!$C35*'RES S curve-disconnect'!BH$9+'Res-Appliance class'!$D35*'RES S curve-disconnect'!BH$14+'Res-Appliance class'!$E35*'RES S curve-disconnect'!BH$19","v":16488.50145116583},{"$f":"'Res-Appliance class'!$B35*'RES S curve-disconnect'!BI$4+'Res-Appliance class'!$C35*'RES S curve-disconnect'!BI$9+'Res-Appliance class'!$D35*'RES S curve-disconnect'!BI$14+'Res-Appliance class'!$E35*'RES S curve-disconnect'!BI$19","v":18825.162612171367},{"$f":"'Res-Appliance class'!$B35*'RES S curve-disconnect'!BJ$4+'Res-Appliance class'!$C35*'RES S curve-disconnect'!BJ$9+'Res-Appliance class'!$D35*'RES S curve-disconnect'!BJ$14+'Res-Appliance class'!$E35*'RES S curve-disconnect'!BJ$19","v":22244.871632684724},{"$f":"'Res-Appliance class'!$B35*'RES S curve-disconnect'!BK$4+'Res-Appliance class'!$C35*'RES S curve-disconnect'!BK$9+'Res-Appliance class'!$D35*'RES S curve-disconnect'!BK$14+'Res-Appliance class'!$E35*'RES S curve-disconnect'!BK$19","v":27288.054623262648},{"$f":"'Res-Appliance class'!$B35*'RES S curve-disconnect'!BL$4+'Res-Appliance class'!$C35*'RES S curve-disconnect'!BL$9+'Res-Appliance class'!$D35*'RES S curve-disconnect'!BL$14+'Res-Appliance class'!$E35*'RES S curve-disconnect'!BL$19","v":-1955.2451607232074},{"$f":"'Res-Appliance class'!$B35*'RES S curve-disconnect'!BM$4+'Res-Appliance class'!$C35*'RES S curve-disconnect'!BM$9+'Res-Appliance class'!$D35*'RES S curve-disconnect'!BM$14+'Res-Appliance class'!$E35*'RES S curve-disconnect'!BM$19","v":-1948.7882539437064},{"$f":"'Res-Appliance class'!$B35*'RES S curve-disconnect'!BN$4+'Res-Appliance class'!$C35*'RES S curve-disconnect'!BN$9+'Res-Appliance class'!$D35*'RES S curve-disconnect'!BN$14+'Res-Appliance class'!$E35*'RES S curve-disconnect'!BN$19","v":-1945.6812780212076},{"$f":"'Res-Appliance class'!$B35*'RES S curve-disconnect'!BO$4+'Res-Appliance class'!$C35*'RES S curve-disconnect'!BO$9+'Res-Appliance class'!$D35*'RES S curve-disconnect'!BO$14+'Res-Appliance class'!$E35*'RES S curve-disconnect'!BO$19","v":-1935.902915656641},{"$f":"'Res-Appliance class'!$B35*'RES S curve-disconnect'!BP$4+'Res-Appliance class'!$C35*'RES S curve-disconnect'!BP$9+'Res-Appliance class'!$D35*'RES S curve-disconnect'!BP$14+'Res-Appliance class'!$E35*'RES S curve-disconnect'!BP$19","v":-1929.4743690148196},{"$f":"'Res-Appliance class'!$B35*'RES S curve-disconnect'!BQ$4+'Res-Appliance class'!$C35*'RES S curve-disconnect'!BQ$9+'Res-Appliance class'!$D35*'RES S curve-disconnect'!BQ$14+'Res-Appliance class'!$E35*'RES S curve-disconnect'!BQ$19","v":-1923.0551612165643},{"$f":"'Res-Appliance class'!$B35*'RES S curve-disconnect'!BR$4+'Res-Appliance class'!$C35*'RES S curve-disconnect'!BR$9+'Res-Appliance class'!$D35*'RES S curve-disconnect'!BR$14+'Res-Appliance class'!$E35*'RES S curve-disconnect'!BR$19","v":-1919.9856554397948},{"$f":"'Res-Appliance class'!$B35*'RES S curve-disconnect'!BS$4+'Res-Appliance class'!$C35*'RES S curve-disconnect'!BS$9+'Res-Appliance class'!$D35*'RES S curve-disconnect'!BS$14+'Res-Appliance class'!$E35*'RES S curve-disconnect'!BS$19","v":-1910.2445358139207},{"$f":"'Res-Appliance class'!$B35*'RES S curve-disconnect'!BT$4+'Res-Appliance class'!$C35*'RES S curve-disconnect'!BT$9+'Res-Appliance class'!$D35*'RES S curve-disconnect'!BT$14+'Res-Appliance class'!$E35*'RES S curve-disconnect'!BT$19","v":-1903.8530059231937},{"$f":"'Res-Appliance class'!$B35*'RES S curve-disconnect'!BU$4+'Res-Appliance class'!$C35*'RES S curve-disconnect'!BU$9+'Res-Appliance class'!$D35*'RES S curve-disconnect'!BU$14+'Res-Appliance class'!$E35*'RES S curve-disconnect'!BU$19","v":-1897.4705902988921},{"$f":"'Res-Appliance class'!$B35*'RES S curve-disconnect'!BV$4+'Res-Appliance class'!$C35*'RES S curve-disconnect'!BV$9+'Res-Appliance class'!$D35*'RES S curve-disconnect'!BV$14+'Res-Appliance class'!$E35*'RES S curve-disconnect'!BV$19","v":-1894.4376535204749},{"$f":"'Res-Appliance class'!$B35*'RES S curve-disconnect'!BW$4+'Res-Appliance class'!$C35*'RES S curve-disconnect'!BW$9+'Res-Appliance class'!$D35*'RES S curve-disconnect'!BW$14+'Res-Appliance class'!$E35*'RES S curve-disconnect'!BW$19","v":-1884.7328811100188},{"$f":"'Res-Appliance class'!$B35*'RES S curve-disconnect'!BX$4+'Res-Appliance class'!$C35*'RES S curve-disconnect'!BX$9+'Res-Appliance class'!$D35*'RES S curve-disconnect'!BX$14+'Res-Appliance class'!$E35*'RES S curve-disconnect'!BX$19","v":-1878.377478035638},{"$f":"'Res-Appliance class'!$B35*'RES S curve-disconnect'!BY$4+'Res-Appliance class'!$C35*'RES S curve-disconnect'!BY$9+'Res-Appliance class'!$D35*'RES S curve-disconnect'!BY$14+'Res-Appliance class'!$E35*'RES S curve-disconnect'!BY$19","v":-1872.0309702037198},{"$f":"'Res-Appliance class'!$B35*'RES S curve-disconnect'!BZ$4+'Res-Appliance class'!$C35*'RES S curve-disconnect'!BZ$9+'Res-Appliance class'!$D35*'RES S curve-disconnect'!BZ$14+'Res-Appliance class'!$E35*'RES S curve-disconnect'!BZ$19","v":-1869.0337235601291},{"$f":"'Res-Appliance class'!$B35*'RES S curve-disconnect'!CA$4+'Res-Appliance class'!$C35*'RES S curve-disconnect'!CA$9+'Res-Appliance class'!$D35*'RES S curve-disconnect'!CA$14+'Res-Appliance class'!$E35*'RES S curve-disconnect'!CA$19","v":-1859.3644249847116},{"$f":"'Res-Appliance class'!$B35*'RES S curve-disconnect'!CB$4+'Res-Appliance class'!$C35*'RES S curve-disconnect'!CB$9+'Res-Appliance class'!$D35*'RES S curve-disconnect'!CB$14+'Res-Appliance class'!$E35*'RES S curve-disconnect'!CB$19","v":-1853.0442807947584},{"$f":"'Res-Appliance class'!$B35*'RES S curve-disconnect'!CC$4+'Res-Appliance class'!$C35*'RES S curve-disconnect'!CC$9+'Res-Appliance class'!$D35*'RES S curve-disconnect'!CC$14+'Res-Appliance class'!$E35*'RES S curve-disconnect'!CC$19","v":-1846.7328182373046},{"$f":"'Res-Appliance class'!$B35*'RES S curve-disconnect'!CD$4+'Res-Appliance class'!$C35*'RES S curve-disconnect'!CD$9+'Res-Appliance class'!$D35*'RES S curve-disconnect'!CD$14+'Res-Appliance class'!$E35*'RES S curve-disconnect'!CD$19","v":-1941.7022806434918}]
["Knox (C)",null,{"$f":"'Res-Appliance class'!$B36*'RES S curve-disconnect'!C$4+'Res-Appliance class'!$C36*'RES S curve-disconnect'!C$9+'Res-Appliance class'!$D36*'RES S curve-disconnect'!C$14+'Res-Appliance class'!$E36*'RES S curve-disconnect'!C$19","v":-5030.4020457912538},{"$f":"'Res-Appliance class'!$B36*'RES S curve-disconnect'!D$4+'Res-Appliance class'!$C36*'RES S curve-disconnect'!D$9+'Res-Appliance class'!$D36*'RES S curve-disconnect'!D$14+'Res-Appliance class'!$E36*'RES S curve-disconnect'!D$19","v":-5568.9107102417493},{"$f":"'Res-Appliance class'!$B36*'RES S curve-disconnect'!E$4+'Res-Appliance class'!$C36*'RES S curve-disconnect'!E$9+'Res-Appliance class'!$D36*'RES S curve-disconnect'!E$14+'Res-Appliance class'!$E36*'RES S curve-disconnect'!E$19","v":-4808.6609598792165},{"$f":"'Res-Appliance class'!$B36*'RES S curve-disconnect'!F$4+'Res-Appliance class'!$C36*'RES S curve-disconnect'!F$9+'Res-Appliance class'!$D36*'RES S curve-disconnect'!F$14+'Res-Appliance class'!$E36*'RES S curve-disconnect'!F$19","v":-4646.2061040031895},{"$f":"'Res-Appliance class'!$B36*'RES S curve-disconnect'!G$4+'Res-Appliance class'!$C36*'RES S curve-disconnect'!G$9+'Res-Appliance class'!$D36*'RES S curve-disconnect'!G$14+'Res-Appliance class'!$E36*'RES S curve-disconnect'!G$19","v":-5945.1961625718031},{"$f":"'Res-Appliance class'!$B36*'RES S curve-disconnect'!H$4+'Res-Appliance class'!$C36*'RES S curve-disconnect'!H$9+'Res-Appliance class'!$D36*'RES S curve-disconnect'!H$14+'Res-Appliance class'!$E36*'RES S curve-disconnect'!H$19","v":-5976.5152857501726},{"$f":"'Res-Appliance class'!$B36*'RES S curve-disconnect'!I$4+'Res-Appliance class'!$C36*'RES S curve-disconnect'!I$9+'Res-Appliance class'!$D36*'RES S curve-disconnect'!I$14+'Res-Appliance class'!$E36*'RES S curve-disconnect'!I$19","v":-5517.3125346997767},{"$f":"'Res-Appliance class'!$B36*'RES S curve-disconnect'!J$4+'Res-Appliance class'!$C36*'RES S curve-disconnect'!J$9+'Res-Appliance class'!$D36*'RES S curve-disconnect'!J$14+'Res-Appliance class'!$E36*'RES S curve-disconnect'!J$19","v":-5855.7132111627325},{"$f":"'Res-Appliance class'!$B36*'RES S curve-disconnect'!K$4+'Res-Appliance class'!$C36*'RES S curve-disconnect'!K$9+'Res-Appliance class'!$D36*'RES S curve-disconnect'!K$14+'Res-Appliance class'!$E36*'RES S curve-disconnect'!K$19","v":-4994.5814114117366},{"$f":"'Res-Appliance class'!$B36*'RES S curve-disconnect'!L$4+'Res-Appliance class'!$C36*'RES S curve-disconnect'!L$9+'Res-Appliance class'!$D36*'RES S curve-disconnect'!L$14+'Res-Appliance class'!$E36*'RES S curve-disconnect'!L$19","v":-5360.9627988512639},{"$f":"'Res-Appliance class'!$B36*'RES S curve-disconnect'!M$4+'Res-Appliance class'!$C36*'RES S curve-disconnect'!M$9+'Res-Appliance class'!$D36*'RES S curve-disconnect'!M$14+'Res-Appliance class'!$E36*'RES S curve-disconnect'!M$19","v":-6033.683172052959},{"$f":"'Res-Appliance class'!$B36*'RES S curve-disconnect'!N$4+'Res-Appliance class'!$C36*'RES S curve-disconnect'!N$9+'Res-Appliance class'!$D36*'RES S curve-disconnect'!N$14+'Res-Appliance class'!$E36*'RES S curve-disconnect'!N$19","v":-6095.2245109229252},{"$f":"'Res-Appliance class'!$B36*'RES S curve-disconnect'!O$4+'Res-Appliance class'!$C36*'RES S curve-disconnect'!O$9+'Res-Appliance class'!$D36*'RES S curve-disconnect'!O$14+'Res-Appliance class'!$E36*'RES S curve-disconnect'!O$19","v":-5502.3678660821824},{"$f":"'Res-Appliance class'!$B36*'RES S curve-disconnect'!P$4+'Res-Appliance class'!$C36*'RES S curve-disconnect'!P$9+'Res-Appliance class'!$D36*'RES S curve-disconnect'!P$14+'Res-Appliance class'!$E36*'RES S curve-disconnect'!P$19","v":-5029.1533775318057},{"$f":"'Res-Appliance class'!$B36*'RES S curve-disconnect'!Q$4+'Res-Appliance class'!$C36*'RES S curve-disconnect'!Q$9+'Res-Appliance class'!$D36*'RES S curve-disconnect'!Q$14+'Res-Appliance class'!$E36*'RES S curve-disconnect'!Q$19","v":-4315.0557786238296},{"$f":"'Res-Appliance class'!$B36*'RES S curve-disconnect'!R$4+'Res-Appliance class'!$C36*'RES S curve-disconnect'!R$9+'Res-Appliance class'!$D36*'RES S curve-disconnect'!R$14+'Res-Appliance class'!$E36*'RES S curve-disconnect'!R$19","v":-3909.3910826936362},{"$f":"'Res-Appliance class'!$B36*'RES S curve-disconnect'!S$4+'Res-Appliance class'!$C36*'RES S curve-disconnect'!S$9+'Res-Appliance class'!$D36*'RES S curve-disconnect'!S$14+'Res-Appliance class'!$E36*'RES S curve-disconnect'!S$19","v":-3266.4456328615797},{"$f":"'Res-Appliance class'!$B36*'RES S curve-disconnect'!T$4+'Res-Appliance class'!$C36*'RES S curve-disconnect'!T$9+'Res-Appliance class'!$D36*'RES S curve-disconnect'!T$14+'Res-Appliance class'!$E36*'RES S curve-disconnect'!T$19","v":-2913.7377000403721},{"$f":"'Res-Appliance class'!$B36*'RES S curve-disconnect'!U$4+'Res-Appliance class'!$C36*'RES S curve-disconnect'!U$9+'Res-Appliance class'!$D36*'RES S curve-disconnect'!U$14+'Res-Appliance class'!$E36*'RES S curve-disconnect'!U$19","v":-2513.0056959938356},{"$f":"'Res-Appliance class'!$B36*'RES S curve-disconnect'!V$4+'Res-Appliance class'!$C36*'RES S curve-disconnect'!V$9+'Res-Appliance class'!$D36*'RES S curve-disconnect'!V$14+'Res-Appliance class'!$E36*'RES S curve-disconnect'!V$19","v":-2239.5990351287292},{"$f":"'Res-Appliance class'!$B36*'RES S curve-disconnect'!W$4+'Res-Appliance class'!$C36*'RES S curve-disconnect'!W$9+'Res-Appliance class'!$D36*'RES S curve-disconnect'!W$14+'Res-Appliance class'!$E36*'RES S curve-disconnect'!W$19","v":-2026.1217386795911},{"$f":"'Res-Appliance class'!$B36*'RES S curve-disconnect'!X$4+'Res-Appliance class'!$C36*'RES S curve-disconnect'!X$9+'Res-Appliance class'!$D36*'RES S curve-disconnect'!X$14+'Res-Appliance class'!$E36*'RES S curve-disconnect'!X$19","v":-1542.9406740549553},{"$f":"'Res-Appliance class'!$B36*'RES S curve-disconnect'!Y$4+'Res-Appliance class'!$C36*'RES S curve-disconnect'!Y$9+'Res-Appliance class'!$D36*'RES S curve-disconnect'!Y$14+'Res-Appliance class'!$E36*'RES S curve-disconnect'!Y$19","v":-1054.3618897714025},{"$f":"'Res-Appliance class'!$B36*'RES S curve-disconnect'!Z$4+'Res-Appliance class'!$C36*'RES S curve-disconnect'!Z$9+'Res-Appliance class'!$D36*'RES S curve-disconnect'!Z$14+'Res-Appliance class'!$E36*'RES S curve-disconnect'!Z$19","v":-723.35058919770245},{"$f":"'Res-Appliance class'!$B36*'RES S curve-disconnect'!AA$4+'Res-Appliance class'!$C36*'RES S curve-disconnect'!AA$9+'Res-Appliance class'!$D36*'RES S curve-disconnect'!AA$14+'Res-Appliance class'!$E36*'RES S curve-disconnect'!AA$19","v":-392.62268063138845},{"$f":"'Res-Appliance class'!$B36*'RES S curve-disconnect'!AB$4+'Res-Appliance class'!$C36*'RES S curve-disconnect'!AB$9+'Res-Appliance class'!$D36*'RES S curve-disconnect'!AB$14+'Res-Appliance class'!$E36*'RES S curve-disconnect'!AB$19","v":-128.39200706213029},{"$f":"'Res-Appliance class'!$B36*'RES S curve-disconnect'!AC$4+'Res-Appliance class'!$C36*'RES S curve-disconnect'!AC$9+'Res-Appliance class'!$D36*'RES S curve-disconnect'!AC$14+'Res-Appliance class'!$E36*'RES S curve-disconnect'!AC$19","v":126.02602905305093},{"$f":"'Res-Appliance class'!$B36*'RES S curve-disconnect'!AD$4+'Res-Appliance class'!$C36*'RES S curve-disconnect'!AD$9+'Res-Appliance class'!$D36*'RES S curve-disconnect'!AD$14+'Res-Appliance class'!$E36*'RES S curve-disconnect'!AD$19","v":359.49496209264237},{"$f":"'Res-Appliance class'!$B36*'RES S curve-disconnect'!AE$4+'Res-Appliance class'!$C36*'RES S curve-disconnect'!AE$9+'Res-Appliance class'!$D36*'RES S curve-disconnect'!AE$14+'Res-Appliance class'!$E36*'RES S curve-disconnect'!AE$19","v":604.392160570898},{"$f":"'Res-Appliance class'!$B36*'RES S curve-disconnect'!AF$4+'Res-Appliance class'!$C36*'RES S curve-disconnect'!AF$9+'Res-Appliance class'!$D36*'RES S curve-disconnect'!AF$14+'Res-Appliance class'!$E36*'RES S curve-disconnect'!AF$19","v":921.41389273770687},{"$f":"'Res-Appliance class'!$B36*'RES S curve-disconnect'!AG$4+'Res-Appliance class'!$C36*'RES S curve-disconnect'!AG$9+'Res-Appliance class'!$D36*'RES S curve-disconnect'!AG$14+'Res-Appliance class'!$E36*'RES S curve-disconnect'!AG$19","v":1138.6475408853757},{"$f":"'Res-Appliance class'!$B36*'RES S curve-disconnect'!AH$4+'Res-Appliance class'!$C36*'RES S curve-disconnect'!AH$9+'Res-Appliance class'!$D36*'RES S curve-disconnect'!AH$14+'Res-Appliance class'!$E36*'RES S curve-disconnect'!AH$19","v":1445.218800112712},{"$f":"'Res-Appliance class'!$B36*'RES S curve-disconnect'!AI$4+'Res-Appliance class'!$C36*'RES S curve-disconnect'!AI$9+'Res-Appliance class'!$D36*'RES S curve-disconnect'!AI$14+'Res-Appliance class'!$E36*'RES S curve-disconnect'!AI$19","v":1719.991244089317},{"$f":"'Res-Appliance class'!$B36*'RES S curve-disconnect'!AJ$4+'Res-Appliance class'!$C36*'RES S curve-disconnect'!AJ$9+'Res-Appliance class'!$D36*'RES S curve-disconnect'!AJ$14+'Res-Appliance class'!$E36*'RES S curve-disconnect'!AJ$19","v":1968.1359202588039},{"$f":"'Res-Appliance class'!$B36*'RES S curve-disconnect'!AK$4+'Res-Appliance class'!$C36*'RES S curve-disconnect'!AK$9+'Res-Appliance class'!$D36*'RES S curve-disconnect'!AK$14+'Res-Appliance class'!$E36*'RES S curve-disconnect'!AK$19","v":2231.5488351428698},{"$f":"'Res-Appliance class'!$B36*'RES S curve-disconnect'!AL$4+'Res-Appliance class'!$C36*'RES S curve-disconnect'!AL$9+'Res-Appliance class'!$D36*'RES S curve-disconnect'!AL$14+'Res-Appliance class'!$E36*'RES S curve-disconnect'!AL$19","v":1321.8272101053576},{"$f":"'Res-Appliance class'!$B36*'RES S curve-disconnect'!AM$4+'Res-Appliance class'!$C36*'RES S curve-disconnect'!AM$9+'Res-Appliance class'!$D36*'RES S curve-disconnect'!AM$14+'Res-Appliance class'!$E36*'RES S curve-disconnect'!AM$19","v":1201.4593539387208},{"$f":"'Res-Appliance class'!$B36*'RES S curve-disconnect'!AN$4+'Res-Appliance class'!$C36*'RES S curve-disconnect'!AN$9+'Res-Appliance class'!$D36*'RES S curve-disconnect'!AN$14+'Res-Appliance class'!$E36*'RES S curve-disconnect'!AN$19","v":1450.1320742847197},{"$f":"'Res-Appliance class'!$B36*'RES S curve-disconnect'!AO$4+'Res-Appliance class'!$C36*'RES S curve-disconnect'!AO$9+'Res-Appliance class'!$D36*'RES S curve-disconnect'!AO$14+'Res-Appliance class'!$E36*'RES S curve-disconnect'!AO$19","v":1754.9486080291945},{"$f":"'Res-Appliance class'!$B36*'RES S curve-disconnect'!AP$4+'Res-Appliance class'!$C36*'RES S curve-disconnect'!AP$9+'Res-Appliance class'!$D36*'RES S curve-disconnect'!AP$14+'Res-Appliance class'!$E36*'RES S curve-disconnect'!AP$19","v":2036.9470812993015},{"$f":"'Res-Appliance class'!$B36*'RES S curve-disconnect'!AQ$4+'Res-Appliance class'!$C36*'RES S curve-disconnect'!AQ$9+'Res-Appliance class'!$D36*'RES S curve-disconnect'!AQ$14+'Res-Appliance class'!$E36*'RES S curve-disconnect'!AQ$19","v":2340.1471932646155},{"$f":"'Res-Appliance class'!$B36*'RES S curve-disconnect'!AR$4+'Res-Appliance class'!$C36*'RES S curve-disconnect'!AR$9+'Res-Appliance class'!$D36*'RES S curve-disconnect'!AR$14+'Res-Appliance class'!$E36*'RES S curve-disconnect'!AR$19","v":2673.3035149384841},{"$f":"'Res-Appliance class'!$B36*'RES S curve-disconnect'!AS$4+'Res-Appliance class'!$C36*'RES S curve-disconnect'!AS$9+'Res-Appliance class'!$D36*'RES S curve-disconnect'!AS$14+'Res-Appliance class'!$E36*'RES S curve-disconnect'!AS$19","v":3047.2176759424328},{"$f":"'Res-Appliance class'!$B36*'RES S curve-disconnect'!AT$4+'Res-Appliance class'!$C36*'RES S curve-disconnect'!AT$9+'Res-Appliance class'!$D36*'RES S curve-disconnect'!AT$14+'Res-Appliance class'!$E36*'RES S curve-disconnect'!AT$19","v":3465.7537017392751},{"$f":"'Res-Appliance class'!$B36*'RES S curve-disconnect'!AU$4+'Res-Appliance class'!$C36*'RES S curve-disconnect'!AU$9+'Res-Appliance class'!$D36*'RES S curve-disconnect'!AU$14+'Res-Appliance class'!$E36*'RES S curve-disconnect'!AU$19","v":3949.6174393476285},{"$f":"'Res-Appliance class'!$B36*'RES S curve-disconnect'!AV$4+'Res-Appliance class'!$C36*'RES S curve-disconnect'!AV$9+'Res-Appliance class'!$D36*'RES S curve-disconnect'!AV$14+'Res-Appliance class'!$E36*'RES S curve-disconnect'!AV$19","v":4501.9070919979313},{"$f":"'Res-Appliance class'!$B36*'RES S curve-disconnect'!AW$4+'Res-Appliance class'!$C36*'RES S curve-disconnect'!AW$9+'Res-Appliance class'!$D36*'RES S curve-disconnect'!AW$14+'Res-Appliance class'!$E36*'RES S curve-disconnect'!AW$19","v":5136.8892890474426},{"$f":"'Res-Appliance class'!$B36*'RES S curve-disconnect'!AX$4+'Res-Appliance class'!$C36*'RES S curve-disconnect'!AX$9+'Res-Appliance class'!$D36*'RES S curve-disconnect'!AX$14+'Res-Appliance class'!$E36*'RES S curve-disconnect'!AX$19","v":5861.0222604077244},{"$f":"'Res-Appliance class'!$B36*'RES S curve-disconnect'!AY$4+'Res-Appliance class'!$C36*'RES S curve-disconnect'!AY$9+'Res-Appliance class'!$D36*'RES S curve-disconnect'!AY$14+'Res-Appliance class'!$E36*'RES S curve-disconnect'!AY$19","v":6696.400078904785},{"$f":"'Res-Appliance class'!$B36*'RES S curve-disconnect'!AZ$4+'Res-Appliance class'!$C36*'RES S curve-disconnect'!AZ$9+'Res-Appliance class'!$D36*'RES S curve-disconnect'!AZ$14+'Res-Appliance class'!$E36*'RES S curve-disconnect'!AZ$19","v":7651.9683032890607},{"$f":"'Res-Appliance class'!$B36*'RES S curve-disconnect'!BA$4+'Res-Appliance class'!$C36*'RES S curve-disconnect'!BA$9+'Res-Appliance class'!$D36*'RES S curve-disconnect'!BA$14+'Res-Appliance class'!$E36*'RES S curve-disconnect'!BA$19","v":8759.0216205011657},{"$f":"'Res-Appliance class'!$B36*'RES S curve-disconnect'!BB$4+'Res-Appliance class'!$C36*'RES S curve-disconnect'!BB$9+'Res-Appliance class'!$D36*'RES S curve-disconnect'!BB$14+'Res-Appliance class'!$E36*'RES S curve-disconnect'!BB$19","v":10053.150310258001},{"$f":"'Res-Appliance class'!$B36*'RES S curve-disconnect'!BC$4+'Res-Appliance class'!$C36*'RES S curve-disconnect'!BC$9+'Res-Appliance class'!$D36*'RES S curve-disconnect'!BC$14+'Res-Appliance class'!$E36*'RES S curve-disconnect'!BC$19","v":11596.54985038779},{"$f":"'Res-Appliance class'!$B36*'RES S curve-disconnect'!BD$4+'Res-Appliance class'!$C36*'RES S curve-disconnect'!BD$9+'Res-Appliance class'!$D36*'RES S curve-disconnect'!BD$14+'Res-Appliance class'!$E36*'RES S curve-disconnect'!BD$19","v":13087.376700890289},{"$f":"'Res-Appliance class'!$B36*'RES S curve-disconnect'!BE$4+'Res-Appliance class'!$C36*'RES S curve-disconnect'!BE$9+'Res-Appliance class'!$D36*'RES S curve-disconnect'!BE$14+'Res-Appliance class'!$E36*'RES S curve-disconnect'!BE$19","v":14450.645473668388},{"$f":"'Res-Appliance class'!$B36*'RES S curve-disconnect'!BF$4+'Res-Appliance class'!$C36*'RES S curve-disconnect'!BF$9+'Res-Appliance class'!$D36*'RES S curve-disconnect'!BF$14+'Res-Appliance class'!$E36*'RES S curve-disconnect'!BF$19","v":15845.334966430746},{"$f":"'Res-Appliance class'!$B36*'RES S curve-disconnect'!BG$4+'Res-Appliance class'!$C36*'RES S curve-disconnect'!BG$9+'Res-Appliance class'!$D36*'RES S curve-disconnect'!BG$14+'Res-Appliance class'!$E36*'RES S curve-disconnect'!BG$19","v":17423.085249193275},{"$f":"'Res-Appliance class'!$B36*'RES S curve-disconnect'!BH$4+'Res-Appliance class'!$C36*'RES S curve-disconnect'!BH$9+'Res-Appliance class'!$D36*'RES S curve-disconnect'!BH$14+'Res-Appliance class'!$E36*'RES S curve-disconnect'!BH$19","v":19296.398647836002},{"$f":"'Res-Appliance class'!$B36*'RES S curve-disconnect'!BI$4+'Res-Appliance class'!$C36*'RES S curve-disconnect'!BI$9+'Res-Appliance class'!$D36*'RES S curve-disconnect'!BI$14+'Res-Appliance class'!$E36*'RES S curve-disconnect'!BI$19","v":22010.378790027949},{"$f":"'Res-Appliance class'!$B36*'RES S curve-disconnect'!BJ$4+'Res-Appliance class'!$C36*'RES S curve-disconnect'!BJ$9+'Res-Appliance class'!$D36*'RES S curve-disconnect'!BJ$14+'Res-Appliance class'!$E36*'RES S curve-disconnect'!BJ$19","v":25987.384565920267},{"$f":"'Res-Appliance class'!$B36*'RES S curve-disconnect'!BK$4+'Res-Appliance class'!$C36*'RES S curve-disconnect'!BK$9+'Res-Appliance class'!$D36*'RES S curve-disconnect'!BK$14+'Res-Appliance class'!$E36*'RES S curve-disconnect'!BK$19","v":31859.933386616751},{"$f":"'Res-Appliance class'!$B36*'RES S curve-disconnect'!BL$4+'Res-Appliance class'!$C36*'RES S curve-disconnect'!BL$9+'Res-Appliance class'!$D36*'RES S curve-disconnect'!BL$14+'Res-Appliance class'!$E36*'RES S curve-disconnect'!BL$19","v":-2008.605415212184},{"$f":"'Res-Appliance class'!$B36*'RES S curve-disconnect'!BM$4+'Res-Appliance class'!$C36*'RES S curve-disconnect'!BM$9+'Res-Appliance class'!$D36*'RES S curve-disconnect'!BM$14+'Res-Appliance class'!$E36*'RES S curve-disconnect'!BM$19","v":-2001.1973270593912},{"$f":"'Res-Appliance class'!$B36*'RES S curve-disconnect'!BN$4+'Res-Appliance class'!$C36*'RES S curve-disconnect'!BN$9+'Res-Appliance class'!$D36*'RES S curve-disconnect'!BN$14+'Res-Appliance class'!$E36*'RES S curve-disconnect'!BN$19","v":-1997.1397346158772},{"$f":"'Res-Appliance class'!$B36*'RES S curve-disconnect'!BO$4+'Res-Appliance class'!$C36*'RES S curve-disconnect'!BO$9+'Res-Appliance class'!$D36*'RES S curve-disconnect'!BO$14+'Res-Appliance class'!$E36*'RES S curve-disconnect'!BO$19","v":-1986.4113178239377},{"$f":"'Res-Appliance class'!$B36*'RES S curve-disconnect'!BP$4+'Res-Appliance class'!$C36*'RES S curve-disconnect'!BP$9+'Res-Appliance class'!$D36*'RES S curve-disconnect'!BP$14+'Res-Appliance class'!$E36*'RES S curve-disconnect'!BP$19","v":-1979.0332761049258},{"$f":"'Res-Appliance class'!$B36*'RES S curve-disconnect'!BQ$4+'Res-Appliance class'!$C36*'RES S curve-disconnect'!BQ$9+'Res-Appliance class'!$D36*'RES S curve-disconnect'!BQ$14+'Res-Appliance class'!$E36*'RES S curve-disconnect'!BQ$19","v":-1971.6651298512811},{"$f":"'Res-Appliance class'!$B36*'RES S curve-disconnect'!BR$4+'Res-Appliance class'!$C36*'RES S curve-disconnect'!BR$9+'Res-Appliance class'!$D36*'RES S curve-disconnect'!BR$14+'Res-Appliance class'!$E36*'RES S curve-disconnect'!BR$19","v":-1967.6472395275368},{"$f":"'Res-Appliance class'!$B36*'RES S curve-disconnect'!BS$4+'Res-Appliance class'!$C36*'RES S curve-disconnect'!BS$9+'Res-Appliance class'!$D36*'RES S curve-disconnect'!BS$14+'Res-Appliance class'!$E36*'RES S curve-disconnect'!BS$19","v":-1956.9582865646189},{"$f":"'Res-Appliance class'!$B36*'RES S curve-disconnect'!BT$4+'Res-Appliance class'!$C36*'RES S curve-disconnect'!BT$9+'Res-Appliance class'!$D36*'RES S curve-disconnect'!BT$14+'Res-Appliance class'!$E36*'RES S curve-disconnect'!BT$19","v":-1949.6194718631107},{"$f":"'Res-Appliance class'!$B36*'RES S curve-disconnect'!BU$4+'Res-Appliance class'!$C36*'RES S curve-disconnect'!BU$9+'Res-Appliance class'!$D36*'RES S curve-disconnect'!BU$14+'Res-Appliance class'!$E36*'RES S curve-disconnect'!BU$19","v":-1942.2903172853494},{"$f":"'Res-Appliance class'!$B36*'RES S curve-disconnect'!BV$4+'Res-Appliance class'!$C36*'RES S curve-disconnect'!BV$9+'Res-Appliance class'!$D36*'RES S curve-disconnect'!BV$14+'Res-Appliance class'!$E36*'RES S curve-disconnect'!BV$19","v":-1938.3111847564935},{"$f":"'Res-Appliance class'!$B36*'RES S curve-disconnect'!BW$4+'Res-Appliance class'!$C36*'RES S curve-disconnect'!BW$9+'Res-Appliance class'!$D36*'RES S curve-disconnect'!BW$14+'Res-Appliance class'!$E36*'RES S curve-disconnect'!BW$19","v":-1927.6607571588738},{"$f":"'Res-Appliance class'!$B36*'RES S curve-disconnect'!BX$4+'Res-Appliance class'!$C36*'RES S curve-disconnect'!BX$9+'Res-Appliance class'!$D36*'RES S curve-disconnect'!BX$14+'Res-Appliance class'!$E36*'RES S curve-disconnect'!BX$19","v":-1920.3602368353261},{"$f":"'Res-Appliance class'!$B36*'RES S curve-disconnect'!BY$4+'Res-Appliance class'!$C36*'RES S curve-disconnect'!BY$9+'Res-Appliance class'!$D36*'RES S curve-disconnect'!BY$14+'Res-Appliance class'!$E36*'RES S curve-disconnect'!BY$19","v":-1913.0691470813413},{"$f":"'Res-Appliance class'!$B36*'RES S curve-disconnect'!BZ$4+'Res-Appliance class'!$C36*'RES S curve-disconnect'!BZ$9+'Res-Appliance class'!$D36*'RES S curve-disconnect'!BZ$14+'Res-Appliance class'!$E36*'RES S curve-disconnect'!BZ$19","v":-1909.1278512461852},{"$f":"'Res-Appliance class'!$B36*'RES S curve-disconnect'!CA$4+'Res-Appliance class'!$C36*'RES S curve-disconnect'!CA$9+'Res-Appliance class'!$D36*'RES S curve-disconnect'!CA$14+'Res-Appliance class'!$E36*'RES S curve-disconnect'!CA$19","v":-1898.5150336273168},{"$f":"'Res-Appliance class'!$B36*'RES S curve-disconnect'!CB$4+'Res-Appliance class'!$C36*'RES S curve-disconnect'!CB$9+'Res-Appliance class'!$D36*'RES S curve-disconnect'!CB$14+'Res-Appliance class'!$E36*'RES S curve-disconnect'!CB$19","v":-1891.2518979737697},{"$f":"'Res-Appliance class'!$B36*'RES S curve-disconnect'!CC$4+'Res-Appliance class'!$C36*'RES S curve-disconnect'!CC$9+'Res-Appliance class'!$D36*'RES S curve-disconnect'!CC$14+'Res-Appliance class'!$E36*'RES S curve-disconnect'!CC$19","v":-1883.9979689783663},{"$f":"'Res-Appliance class'!$B36*'RES S curve-disconnect'!CD$4+'Res-Appliance class'!$C36*'RES S curve-disconnect'!CD$9+'Res-Appliance class'!$D36*'RES S curve-disconnect'!CD$14+'Res-Appliance class'!$E36*'RES S curve-disconnect'!CD$19","v":-1995.2491010590468}]
["Manningham (C)",null,{"$f":"'Res-Appliance class'!$B37*'RES S curve-disconnect'!C$4+'Res-Appliance class'!$C37*'RES S curve-disconnect'!C$9+'Res-Appliance class'!$D37*'RES S curve-disconnect'!C$14+'Res-Appliance class'!$E37*'RES S curve-disconnect'!C$19","v":-4976.7119841458807},{"$f":"'Res-Appliance class'!$B37*'RES S curve-disconnect'!D$4+'Res-Appliance class'!$C37*'RES S curve-disconnect'!D$9+'Res-Appliance class'!$D37*'RES S curve-disconnect'!D$14+'Res-Appliance class'!$E37*'RES S curve-disconnect'!D$19","v":-5514.1121030857166},{"$f":"'Res-Appliance class'!$B37*'RES S curve-disconnect'!E$4+'Res-Appliance class'!$C37*'RES S curve-disconnect'!E$9+'Res-Appliance class'!$D37*'RES S curve-disconnect'!E$14+'Res-Appliance class'!$E37*'RES S curve-disconnect'!E$19","v":-4753.0195756334497},{"$f":"'Res-Appliance class'!$B37*'RES S curve-disconnect'!F$4+'Res-Appliance class'!$C37*'RES S curve-disconnect'!F$9+'Res-Appliance class'!$D37*'RES S curve-disconnect'!F$14+'Res-Appliance class'!$E37*'RES S curve-disconnect'!F$19","v":-4590.9180724953185},{"$f":"'Res-Appliance class'!$B37*'RES S curve-disconnect'!G$4+'Res-Appliance class'!$C37*'RES S curve-disconnect'!G$9+'Res-Appliance class'!$D37*'RES S curve-disconnect'!G$14+'Res-Appliance class'!$E37*'RES S curve-disconnect'!G$19","v":-5899.5969233505775},{"$f":"'Res-Appliance class'!$B37*'RES S curve-disconnect'!H$4+'Res-Appliance class'!$C37*'RES S curve-disconnect'!H$9+'Res-Appliance class'!$D37*'RES S curve-disconnect'!H$14+'Res-Appliance class'!$E37*'RES S curve-disconnect'!H$19","v":-5927.562254175009},{"$f":"'Res-Appliance class'!$B37*'RES S curve-disconnect'!I$4+'Res-Appliance class'!$C37*'RES S curve-disconnect'!I$9+'Res-Appliance class'!$D37*'RES S curve-disconnect'!I$14+'Res-Appliance class'!$E37*'RES S curve-disconnect'!I$19","v":-5468.5752941348728},{"$f":"'Res-Appliance class'!$B37*'RES S curve-disconnect'!J$4+'Res-Appliance class'!$C37*'RES S curve-disconnect'!J$9+'Res-Appliance class'!$D37*'RES S curve-disconnect'!J$14+'Res-Appliance class'!$E37*'RES S curve-disconnect'!J$19","v":-5801.386085952814},{"$f":"'Res-Appliance class'!$B37*'RES S curve-disconnect'!K$4+'Res-Appliance class'!$C37*'RES S curve-disconnect'!K$9+'Res-Appliance class'!$D37*'RES S curve-disconnect'!K$14+'Res-Appliance class'!$E37*'RES S curve-disconnect'!K$19","v":-4941.4767177607328},{"$f":"'Res-Appliance class'!$B37*'RES S curve-disconnect'!L$4+'Res-Appliance class'!$C37*'RES S curve-disconnect'!L$9+'Res-Appliance class'!$D37*'RES S curve-disconnect'!L$14+'Res-Appliance class'!$E37*'RES S curve-disconnect'!L$19","v":-5307.4297887457378},{"$f":"'Res-Appliance class'!$B37*'RES S curve-disconnect'!M$4+'Res-Appliance class'!$C37*'RES S curve-disconnect'!M$9+'Res-Appliance class'!$D37*'RES S curve-disconnect'!M$14+'Res-Appliance class'!$E37*'RES S curve-disconnect'!M$19","v":-5980.7529789855535},{"$f":"'Res-Appliance class'!$B37*'RES S curve-disconnect'!N$4+'Res-Appliance class'!$C37*'RES S curve-disconnect'!N$9+'Res-Appliance class'!$D37*'RES S curve-disconnect'!N$14+'Res-Appliance class'!$E37*'RES S curve-disconnect'!N$19","v":-6042.6199303034982},{"$f":"'Res-Appliance class'!$B37*'RES S curve-disconnect'!O$4+'Res-Appliance class'!$C37*'RES S curve-disconnect'!O$9+'Res-Appliance class'!$D37*'RES S curve-disconnect'!O$14+'Res-Appliance class'!$E37*'RES S curve-disconnect'!O$19","v":-5450.3783193026175},{"$f":"'Res-Appliance class'!$B37*'RES S curve-disconnect'!P$4+'Res-Appliance class'!$C37*'RES S curve-disconnect'!P$9+'Res-Appliance class'!$D37*'RES S curve-disconnect'!P$14+'Res-Appliance class'!$E37*'RES S curve-disconnect'!P$19","v":-4977.573584426179},{"$f":"'Res-Appliance class'!$B37*'RES S curve-disconnect'!Q$4+'Res-Appliance class'!$C37*'RES S curve-disconnect'!Q$9+'Res-Appliance class'!$D37*'RES S curve-disconnect'!Q$14+'Res-Appliance class'!$E37*'RES S curve-disconnect'!Q$19","v":-4263.9476135019777},{"$f":"'Res-Appliance class'!$B37*'RES S curve-disconnect'!R$4+'Res-Appliance class'!$C37*'RES S curve-disconnect'!R$9+'Res-Appliance class'!$D37*'RES S curve-disconnect'!R$14+'Res-Appliance class'!$E37*'RES S curve-disconnect'!R$19","v":-3858.663777105287},{"$f":"'Res-Appliance class'!$B37*'RES S curve-disconnect'!S$4+'Res-Appliance class'!$C37*'RES S curve-disconnect'!S$9+'Res-Appliance class'!$D37*'RES S curve-disconnect'!S$14+'Res-Appliance class'!$E37*'RES S curve-disconnect'!S$19","v":-3216.1175772129486},{"$f":"'Res-Appliance class'!$B37*'RES S curve-disconnect'!T$4+'Res-Appliance class'!$C37*'RES S curve-disconnect'!T$9+'Res-Appliance class'!$D37*'RES S curve-disconnect'!T$14+'Res-Appliance class'!$E37*'RES S curve-disconnect'!T$19","v":-2863.8461242802014},{"$f":"'Res-Appliance class'!$B37*'RES S curve-disconnect'!U$4+'Res-Appliance class'!$C37*'RES S curve-disconnect'!U$9+'Res-Appliance class'!$D37*'RES S curve-disconnect'!U$14+'Res-Appliance class'!$E37*'RES S curve-disconnect'!U$19","v":-2463.5734720157425},{"$f":"'Res-Appliance class'!$B37*'RES S curve-disconnect'!V$4+'Res-Appliance class'!$C37*'RES S curve-disconnect'!V$9+'Res-Appliance class'!$D37*'RES S curve-disconnect'!V$14+'Res-Appliance class'!$E37*'RES S curve-disconnect'!V$19","v":-2190.6572817150522},{"$f":"'Res-Appliance class'!$B37*'RES S curve-disconnect'!W$4+'Res-Appliance class'!$C37*'RES S curve-disconnect'!W$9+'Res-Appliance class'!$D37*'RES S curve-disconnect'!W$14+'Res-Appliance class'!$E37*'RES S curve-disconnect'!W$19","v":-1977.5345625075847},{"$f":"'Res-Appliance class'!$B37*'RES S curve-disconnect'!X$4+'Res-Appliance class'!$C37*'RES S curve-disconnect'!X$9+'Res-Appliance class'!$D37*'RES S curve-disconnect'!X$14+'Res-Appliance class'!$E37*'RES S curve-disconnect'!X$19","v":-1494.694778422444},{"$f":"'Res-Appliance class'!$B37*'RES S curve-disconnect'!Y$4+'Res-Appliance class'!$C37*'RES S curve-disconnect'!Y$9+'Res-Appliance class'!$D37*'RES S curve-disconnect'!Y$14+'Res-Appliance class'!$E37*'RES S curve-disconnect'!Y$19","v":-1006.4604935291724},{"$f":"'Res-Appliance class'!$B37*'RES S curve-disconnect'!Z$4+'Res-Appliance class'!$C37*'RES S curve-disconnect'!Z$9+'Res-Appliance class'!$D37*'RES S curve-disconnect'!Z$14+'Res-Appliance class'!$E37*'RES S curve-disconnect'!Z$19","v":-675.80508906306852},{"$f":"'Res-Appliance class'!$B37*'RES S curve-disconnect'!AA$4+'Res-Appliance class'!$C37*'RES S curve-disconnect'!AA$9+'Res-Appliance class'!$D37*'RES S curve-disconnect'!AA$14+'Res-Appliance class'!$E37*'RES S curve-disconnect'!AA$19","v":-345.43535383914354},{"$f":"'Res-Appliance class'!$B37*'RES S curve-disconnect'!AB$4+'Res-Appliance class'!$C37*'RES S curve-disconnect'!AB$9+'Res-Appliance class'!$D37*'RES S curve-disconnect'!AB$14+'Res-Appliance class'!$E37*'RES S curve-disconnect'!AB$19","v":-81.462212050330152},{"$f":"'Res-Appliance class'!$B37*'RES S curve-disconnect'!AC$4+'Res-Appliance class'!$C37*'RES S curve-disconnect'!AC$9+'Res-Appliance class'!$D37*'RES S curve-disconnect'!AC$14+'Res-Appliance class'!$E37*'RES S curve-disconnect'!AC$19","v":172.70037298803885},{"$f":"'Res-Appliance class'!$B37*'RES S curve-disconnect'!AD$4+'Res-Appliance class'!$C37*'RES S curve-disconnect'!AD$9+'Res-Appliance class'!$D37*'RES S curve-disconnect'!AD$14+'Res-Appliance class'!$E37*'RES S curve-disconnect'!AD$19","v":405.91564750438584},{"$f":"'Res-Appliance class'!$B37*'RES S curve-disconnect'!AE$4+'Res-Appliance class'!$C37*'RES S curve-disconnect'!AE$9+'Res-Appliance class'!$D37*'RES S curve-disconnect'!AE$14+'Res-Appliance class'!$E37*'RES S curve-disconnect'!AE$19","v":650.56119448082359},{"$f":"'Res-Appliance class'!$B37*'RES S curve-disconnect'!AF$4+'Res-Appliance class'!$C37*'RES S curve-disconnect'!AF$9+'Res-Appliance class'!$D37*'RES S curve-disconnect'!AF$14+'Res-Appliance class'!$E37*'RES S curve-disconnect'!AF$19","v":967.33846337509249},{"$f":"'Res-Appliance class'!$B37*'RES S curve-disconnect'!AG$4+'Res-Appliance class'!$C37*'RES S curve-disconnect'!AG$9+'Res-Appliance class'!$D37*'RES S curve-disconnect'!AG$14+'Res-Appliance class'!$E37*'RES S curve-disconnect'!AG$19","v":1184.5690665306543},{"$f":"'Res-Appliance class'!$B37*'RES S curve-disconnect'!AH$4+'Res-Appliance class'!$C37*'RES S curve-disconnect'!AH$9+'Res-Appliance class'!$D37*'RES S curve-disconnect'!AH$14+'Res-Appliance class'!$E37*'RES S curve-disconnect'!AH$19","v":1491.1428788612166},{"$f":"'Res-Appliance class'!$B37*'RES S curve-disconnect'!AI$4+'Res-Appliance class'!$C37*'RES S curve-disconnect'!AI$9+'Res-Appliance class'!$D37*'RES S curve-disconnect'!AI$14+'Res-Appliance class'!$E37*'RES S curve-disconnect'!AI$19","v":1765.9154319512295},{"$f":"'Res-Appliance class'!$B37*'RES S curve-disconnect'!AJ$4+'Res-Appliance class'!$C37*'RES S curve-disconnect'!AJ$9+'Res-Appliance class'!$D37*'RES S curve-disconnect'!AJ$14+'Res-Appliance class'!$E37*'RES S curve-disconnect'!AJ$19","v":2014.0591274624844},{"$f":"'Res-Appliance class'!$B37*'RES S curve-disconnect'!AK$4+'Res-Appliance class'!$C37*'RES S curve-disconnect'!AK$9+'Res-Appliance class'!$D37*'RES S curve-disconnect'!AK$14+'Res-Appliance class'!$E37*'RES S curve-disconnect'!AK$19","v":2277.4719300160359},{"$f":"'Res-Appliance class'!$B37*'RES S curve-disconnect'!AL$4+'Res-Appliance class'!$C37*'RES S curve-disconnect'!AL$9+'Res-Appliance class'!$D37*'RES S curve-disconnect'!AL$14+'Res-Appliance class'!$E37*'RES S curve-disconnect'!AL$19","v":1367.6916478283015},{"$f":"'Res-Appliance class'!$B37*'RES S curve-disconnect'!AM$4+'Res-Appliance class'!$C37*'RES S curve-disconnect'!AM$9+'Res-Appliance class'!$D37*'RES S curve-disconnect'!AM$14+'Res-Appliance class'!$E37*'RES S curve-disconnect'!AM$19","v":1247.3030206431642},{"$f":"'Res-Appliance class'!$B37*'RES S curve-disconnect'!AN$4+'Res-Appliance class'!$C37*'RES S curve-disconnect'!AN$9+'Res-Appliance class'!$D37*'RES S curve-disconnect'!AN$14+'Res-Appliance class'!$E37*'RES S curve-disconnect'!AN$19","v":1495.974532112512},{"$f":"'Res-Appliance class'!$B37*'RES S curve-disconnect'!AO$4+'Res-Appliance class'!$C37*'RES S curve-disconnect'!AO$9+'Res-Appliance class'!$D37*'RES S curve-disconnect'!AO$14+'Res-Appliance class'!$E37*'RES S curve-disconnect'!AO$19","v":1800.7933315221208},{"$f":"'Res-Appliance class'!$B37*'RES S curve-disconnect'!AP$4+'Res-Appliance class'!$C37*'RES S curve-disconnect'!AP$9+'Res-Appliance class'!$D37*'RES S curve-disconnect'!AP$14+'Res-Appliance class'!$E37*'RES S curve-disconnect'!AP$19","v":2082.7933581807451},{"$f":"'Res-Appliance class'!$B37*'RES S curve-disconnect'!AQ$4+'Res-Appliance class'!$C37*'RES S curve-disconnect'!AQ$9+'Res-Appliance class'!$D37*'RES S curve-disconnect'!AQ$14+'Res-Appliance class'!$E37*'RES S curve-disconnect'!AQ$19","v":2385.9958746196953},{"$f":"'Res-Appliance class'!$B37*'RES S curve-disconnect'!AR$4+'Res-Appliance class'!$C37*'RES S curve-disconnect'!AR$9+'Res-Appliance class'!$D37*'RES S curve-disconnect'!AR$14+'Res-Appliance class'!$E37*'RES S curve-disconnect'!AR$19","v":2719.1564501310395},{"$f":"'Res-Appliance class'!$B37*'RES S curve-disconnect'!AS$4+'Res-Appliance class'!$C37*'RES S curve-disconnect'!AS$9+'Res-Appliance class'!$D37*'RES S curve-disconnect'!AS$14+'Res-Appliance class'!$E37*'RES S curve-disconnect'!AS$19","v":3093.0771372412341},{"$f":"'Res-Appliance class'!$B37*'RES S curve-disconnect'!AT$4+'Res-Appliance class'!$C37*'RES S curve-disconnect'!AT$9+'Res-Appliance class'!$D37*'RES S curve-disconnect'!AT$14+'Res-Appliance class'!$E37*'RES S curve-disconnect'!AT$19","v":3511.6223576338339},{"$f":"'Res-Appliance class'!$B37*'RES S curve-disconnect'!AU$4+'Res-Appliance class'!$C37*'RES S curve-disconnect'!AU$9+'Res-Appliance class'!$D37*'RES S curve-disconnect'!AU$14+'Res-Appliance class'!$E37*'RES S curve-disconnect'!AU$19","v":3995.4985361212134},{"$f":"'Res-Appliance class'!$B37*'RES S curve-disconnect'!AV$4+'Res-Appliance class'!$C37*'RES S curve-disconnect'!AV$9+'Res-Appliance class'!$D37*'RES S curve-disconnect'!AV$14+'Res-Appliance class'!$E37*'RES S curve-disconnect'!AV$19","v":4547.8045946299135},{"$f":"'Res-Appliance class'!$B37*'RES S curve-disconnect'!AW$4+'Res-Appliance class'!$C37*'RES S curve-disconnect'!AW$9+'Res-Appliance class'!$D37*'RES S curve-disconnect'!AW$14+'Res-Appliance class'!$E37*'RES S curve-disconnect'!AW$19","v":5182.8077907241832},{"$f":"'Res-Appliance class'!$B37*'RES S curve-disconnect'!AX$4+'Res-Appliance class'!$C37*'RES S curve-disconnect'!AX$9+'Res-Appliance class'!$D37*'RES S curve-disconnect'!AX$14+'Res-Appliance class'!$E37*'RES S curve-disconnect'!AX$19","v":5906.9669383033952},{"$f":"'Res-Appliance class'!$B37*'RES S curve-disconnect'!AY$4+'Res-Appliance class'!$C37*'RES S curve-disconnect'!AY$9+'Res-Appliance class'!$D37*'RES S curve-disconnect'!AY$14+'Res-Appliance class'!$E37*'RES S curve-disconnect'!AY$19","v":6742.3768206241812},{"$f":"'Res-Appliance class'!$B37*'RES S curve-disconnect'!AZ$4+'Res-Appliance class'!$C37*'RES S curve-disconnect'!AZ$9+'Res-Appliance class'!$D37*'RES S curve-disconnect'!AZ$14+'Res-Appliance class'!$E37*'RES S curve-disconnect'!AZ$19","v":7697.984082627745},{"$f":"'Res-Appliance class'!$B37*'RES S curve-disconnect'!BA$4+'Res-Appliance class'!$C37*'RES S curve-disconnect'!BA$9+'Res-Appliance class'!$D37*'RES S curve-disconnect'!BA$14+'Res-Appliance class'!$E37*'RES S curve-disconnect'!BA$19","v":8805.0850001659928},{"$f":"'Res-Appliance class'!$B37*'RES S curve-disconnect'!BB$4+'Res-Appliance class'!$C37*'RES S curve-disconnect'!BB$9+'Res-Appliance class'!$D37*'RES S curve-disconnect'!BB$14+'Res-Appliance class'!$E37*'RES S curve-disconnect'!BB$19","v":10099.272074818688},{"$f":"'Res-Appliance class'!$B37*'RES S curve-disconnect'!BC$4+'Res-Appliance class'!$C37*'RES S curve-disconnect'!BC$9+'Res-Appliance class'!$D37*'RES S curve-disconnect'!BC$14+'Res-Appliance class'!$E37*'RES S curve-disconnect'!BC$19","v":11642.743777185879},{"$f":"'Res-Appliance class'!$B37*'RES S curve-disconnect'!BD$4+'Res-Appliance class'!$C37*'RES S curve-disconnect'!BD$9+'Res-Appliance class'!$D37*'RES S curve-disconnect'!BD$14+'Res-Appliance class'!$E37*'RES S curve-disconnect'!BD$19","v":13133.641522845577},{"$f":"'Res-Appliance class'!$B37*'RES S curve-disconnect'!BE$4+'Res-Appliance class'!$C37*'RES S curve-disconnect'!BE$9+'Res-Appliance class'!$D37*'RES S curve-disconnect'!BE$14+'Res-Appliance class'!$E37*'RES S curve-disconnect'!BE$19","v":14496.97469816296},{"$f":"'Res-Appliance class'!$B37*'RES S curve-disconnect'!BF$4+'Res-Appliance class'!$C37*'RES S curve-disconnect'!BF$9+'Res-Appliance class'!$D37*'RES S curve-disconnect'!BF$14+'Res-Appliance class'!$E37*'RES S curve-disconnect'!BF$19","v":15891.730291529664},{"$f":"'Res-Appliance class'!$B37*'RES S curve-disconnect'!BG$4+'Res-Appliance class'!$C37*'RES S curve-disconnect'!BG$9+'Res-Appliance class'!$D37*'RES S curve-disconnect'!BG$14+'Res-Appliance class'!$E37*'RES S curve-disconnect'!BG$19","v":17469.55641468837},{"$f":"'Res-Appliance class'!$B37*'RES S curve-disconnect'!BH$4+'Res-Appliance class'!$C37*'RES S curve-disconnect'!BH$9+'Res-Appliance class'!$D37*'RES S curve-disconnect'!BH$14+'Res-Appliance class'!$E37*'RES S curve-disconnect'!BH$19","v":19342.962474486289},{"$f":"'Res-Appliance class'!$B37*'RES S curve-disconnect'!BI$4+'Res-Appliance class'!$C37*'RES S curve-disconnect'!BI$9+'Res-Appliance class'!$D37*'RES S curve-disconnect'!BI$14+'Res-Appliance class'!$E37*'RES S curve-disconnect'!BI$19","v":22057.08178922474},{"$f":"'Res-Appliance class'!$B37*'RES S curve-disconnect'!BJ$4+'Res-Appliance class'!$C37*'RES S curve-disconnect'!BJ$9+'Res-Appliance class'!$D37*'RES S curve-disconnect'!BJ$14+'Res-Appliance class'!$E37*'RES S curve-disconnect'!BJ$19","v":26034.298680986511},{"$f":"'Res-Appliance class'!$B37*'RES S curve-disconnect'!BK$4+'Res-Appliance class'!$C37*'RES S curve-disconnect'!BK$9+'Res-Appliance class'!$D37*'RES S curve-disconnect'!BK$14+'Res-Appliance class'!$E37*'RES S curve-disconnect'!BK$19","v":31907.167327662894},{"$f":"'Res-Appliance class'!$B37*'RES S curve-disconnect'!BL$4+'Res-Appliance class'!$C37*'RES S curve-disconnect'!BL$9+'Res-Appliance class'!$D37*'RES S curve-disconnect'!BL$14+'Res-Appliance class'!$E37*'RES S curve-disconnect'!BL$19","v":-1963.2293091893625},{"$f":"'Res-Appliance class'!$B37*'RES S curve-disconnect'!BM$4+'Res-Appliance class'!$C37*'RES S curve-disconnect'!BM$9+'Res-Appliance class'!$D37*'RES S curve-disconnect'!BM$14+'Res-Appliance class'!$E37*'RES S curve-disconnect'!BM$19","v":-1955.8319673527292},{"$f":"'Res-Appliance class'!$B37*'RES S curve-disconnect'!BN$4+'Res-Appliance class'!$C37*'RES S curve-disconnect'!BN$9+'Res-Appliance class'!$D37*'RES S curve-disconnect'!BN$14+'Res-Appliance class'!$E37*'RES S curve-disconnect'!BN$19","v":-1951.7850365003271},{"$f":"'Res-Appliance class'!$B37*'RES S curve-disconnect'!BO$4+'Res-Appliance class'!$C37*'RES S curve-disconnect'!BO$9+'Res-Appliance class'!$D37*'RES S curve-disconnect'!BO$14+'Res-Appliance class'!$E37*'RES S curve-disconnect'!BO$19","v":-1941.0671971568904},{"$f":"'Res-Appliance class'!$B37*'RES S curve-disconnect'!BP$4+'Res-Appliance class'!$C37*'RES S curve-disconnect'!BP$9+'Res-Appliance class'!$D37*'RES S curve-disconnect'!BP$14+'Res-Appliance class'!$E37*'RES S curve-disconnect'!BP$19","v":-1933.6996493223669},{"$f":"'Res-Appliance class'!$B37*'RES S curve-disconnect'!BQ$4+'Res-Appliance class'!$C37*'RES S curve-disconnect'!BQ$9+'Res-Appliance class'!$D37*'RES S curve-disconnect'!BQ$14+'Res-Appliance class'!$E37*'RES S curve-disconnect'!BQ$19","v":-1926.341913963972},{"$f":"'Res-Appliance class'!$B37*'RES S curve-disconnect'!BR$4+'Res-Appliance class'!$C37*'RES S curve-disconnect'!BR$9+'Res-Appliance class'!$D37*'RES S curve-disconnect'!BR$14+'Res-Appliance class'!$E37*'RES S curve-disconnect'!BR$19","v":-1922.3343521172199},{"$f":"'Res-Appliance class'!$B37*'RES S curve-disconnect'!BS$4+'Res-Appliance class'!$C37*'RES S curve-disconnect'!BS$9+'Res-Appliance class'!$D37*'RES S curve-disconnect'!BS$14+'Res-Appliance class'!$E37*'RES S curve-disconnect'!BS$19","v":-1911.6556457802476},{"$f":"'Res-Appliance class'!$B37*'RES S curve-disconnect'!BT$4+'Res-Appliance class'!$C37*'RES S curve-disconnect'!BT$9+'Res-Appliance class'!$D37*'RES S curve-disconnect'!BT$14+'Res-Appliance class'!$E37*'RES S curve-disconnect'!BT$19","v":-1904.3269964171041},{"$f":"'Res-Appliance class'!$B37*'RES S curve-disconnect'!BU$4+'Res-Appliance class'!$C37*'RES S curve-disconnect'!BU$9+'Res-Appliance class'!$D37*'RES S curve-disconnect'!BU$14+'Res-Appliance class'!$E37*'RES S curve-disconnect'!BU$19","v":-1897.0079264498715},{"$f":"'Res-Appliance class'!$B37*'RES S curve-disconnect'!BV$4+'Res-Appliance class'!$C37*'RES S curve-disconnect'!BV$9+'Res-Appliance class'!$D37*'RES S curve-disconnect'!BV$14+'Res-Appliance class'!$E37*'RES S curve-disconnect'!BV$19","v":-1893.0387983597566},{"$f":"'Res-Appliance class'!$B37*'RES S curve-disconnect'!BW$4+'Res-Appliance class'!$C37*'RES S curve-disconnect'!BW$9+'Res-Appliance class'!$D37*'RES S curve-disconnect'!BW$14+'Res-Appliance class'!$E37*'RES S curve-disconnect'!BW$19","v":-1882.3982955814643},{"$f":"'Res-Appliance class'!$B37*'RES S curve-disconnect'!BX$4+'Res-Appliance class'!$C37*'RES S curve-disconnect'!BX$9+'Res-Appliance class'!$D37*'RES S curve-disconnect'!BX$14+'Res-Appliance class'!$E37*'RES S curve-disconnect'!BX$19","v":-1875.1076210065564},{"$f":"'Res-Appliance class'!$B37*'RES S curve-disconnect'!BY$4+'Res-Appliance class'!$C37*'RES S curve-disconnect'!BY$9+'Res-Appliance class'!$D37*'RES S curve-disconnect'!BY$14+'Res-Appliance class'!$E37*'RES S curve-disconnect'!BY$19","v":-1867.8262984756243},{"$f":"'Res-Appliance class'!$B37*'RES S curve-disconnect'!BZ$4+'Res-Appliance class'!$C37*'RES S curve-disconnect'!BZ$9+'Res-Appliance class'!$D37*'RES S curve-disconnect'!BZ$14+'Res-Appliance class'!$E37*'RES S curve-disconnect'!BZ$19","v":-1863.8946918794325},{"$f":"'Res-Appliance class'!$B37*'RES S curve-disconnect'!CA$4+'Res-Appliance class'!$C37*'RES S curve-disconnect'!CA$9+'Res-Appliance class'!$D37*'RES S curve-disconnect'!CA$14+'Res-Appliance class'!$E37*'RES S curve-disconnect'!CA$19","v":-1853.291486053359},{"$f":"'Res-Appliance class'!$B37*'RES S curve-disconnect'!CB$4+'Res-Appliance class'!$C37*'RES S curve-disconnect'!CB$9+'Res-Appliance class'!$D37*'RES S curve-disconnect'!CB$14+'Res-Appliance class'!$E37*'RES S curve-disconnect'!CB$19","v":-1846.0378852808035},{"$f":"'Res-Appliance class'!$B37*'RES S curve-disconnect'!CC$4+'Res-Appliance class'!$C37*'RES S curve-disconnect'!CC$9+'Res-Appliance class'!$D37*'RES S curve-disconnect'!CC$14+'Res-Appliance class'!$E37*'RES S curve-disconnect'!CC$19","v":-1838.7934147854196},{"$f":"'Res-Appliance class'!$B37*'RES S curve-disconnect'!CD$4+'Res-Appliance class'!$C37*'RES S curve-disconnect'!CD$9+'Res-Appliance class'!$D37*'RES S curve-disconnect'!CD$14+'Res-Appliance class'!$E37*'RES S curve-disconnect'!CD$19","v":-1950.0608060280456}]
["Maroondah (C)",null,{"$f":"'Res-Appliance class'!$B38*'RES S curve-disconnect'!C$4+'Res-Appliance class'!$C38*'RES S curve-disconnect'!C$9+'Res-Appliance class'!$D38*'RES S curve-disconnect'!C$14+'Res-Appliance class'!$E38*'RES S curve-disconnect'!C$19","v":-4999.7654598758209},{"$f":"'Res-Appliance class'!$B38*'RES S curve-disconnect'!D$4+'Res-Appliance class'!$C38*'RES S curve-disconnect'!D$9+'Res-Appliance class'!$D38*'RES S curve-disconnect'!D$14+'Res-Appliance class'!$E38*'RES S curve-disconnect'!D$19","v":-5537.3489355835572},{"$f":"'Res-Appliance class'!$B38*'RES S curve-disconnect'!E$4+'Res-Appliance class'!$C38*'RES S curve-disconnect'!E$9+'Res-Appliance class'!$D38*'RES S curve-disconnect'!E$14+'Res-Appliance class'!$E38*'RES S curve-disconnect'!E$19","v":-4777.7112379729615},{"$f":"'Res-Appliance class'!$B38*'RES S curve-disconnect'!F$4+'Res-Appliance class'!$C38*'RES S curve-disconnect'!F$9+'Res-Appliance class'!$D38*'RES S curve-disconnect'!F$14+'Res-Appliance class'!$E38*'RES S curve-disconnect'!F$19","v":-4615.5885396886952},{"$f":"'Res-Appliance class'!$B38*'RES S curve-disconnect'!G$4+'Res-Appliance class'!$C38*'RES S curve-disconnect'!G$9+'Res-Appliance class'!$D38*'RES S curve-disconnect'!G$14+'Res-Appliance class'!$E38*'RES S curve-disconnect'!G$19","v":-5916.0018587224949},{"$f":"'Res-Appliance class'!$B38*'RES S curve-disconnect'!H$4+'Res-Appliance class'!$C38*'RES S curve-disconnect'!H$9+'Res-Appliance class'!$D38*'RES S curve-disconnect'!H$14+'Res-Appliance class'!$E38*'RES S curve-disconnect'!H$19","v":-5945.1679624522276},{"$f":"'Res-Appliance class'!$B38*'RES S curve-disconnect'!I$4+'Res-Appliance class'!$C38*'RES S curve-disconnect'!I$9+'Res-Appliance class'!$D38*'RES S curve-disconnect'!I$14+'Res-Appliance class'!$E38*'RES S curve-disconnect'!I$19","v":-5486.7947069835109},{"$f":"'Res-Appliance class'!$B38*'RES S curve-disconnect'!J$4+'Res-Appliance class'!$C38*'RES S curve-disconnect'!J$9+'Res-Appliance class'!$D38*'RES S curve-disconnect'!J$14+'Res-Appliance class'!$E38*'RES S curve-disconnect'!J$19","v":-5823.879021666211},{"$f":"'Res-Appliance class'!$B38*'RES S curve-disconnect'!K$4+'Res-Appliance class'!$C38*'RES S curve-disconnect'!K$9+'Res-Appliance class'!$D38*'RES S curve-disconnect'!K$14+'Res-Appliance class'!$E38*'RES S curve-disconnect'!K$19","v":-4964.6593222889278},{"$f":"'Res-Appliance class'!$B38*'RES S curve-disconnect'!L$4+'Res-Appliance class'!$C38*'RES S curve-disconnect'!L$9+'Res-Appliance class'!$D38*'RES S curve-disconnect'!L$14+'Res-Appliance class'!$E38*'RES S curve-disconnect'!L$19","v":-5330.5017770816139},{"$f":"'Res-Appliance class'!$B38*'RES S curve-disconnect'!M$4+'Res-Appliance class'!$C38*'RES S curve-disconnect'!M$9+'Res-Appliance class'!$D38*'RES S curve-disconnect'!M$14+'Res-Appliance class'!$E38*'RES S curve-disconnect'!M$19","v":-6002.0628111736924},{"$f":"'Res-Appliance class'!$B38*'RES S curve-disconnect'!N$4+'Res-Appliance class'!$C38*'RES S curve-disconnect'!N$9+'Res-Appliance class'!$D38*'RES S curve-disconnect'!N$14+'Res-Appliance class'!$E38*'RES S curve-disconnect'!N$19","v":-6063.5885953988764},{"$f":"'Res-Appliance class'!$B38*'RES S curve-disconnect'!O$4+'Res-Appliance class'!$C38*'RES S curve-disconnect'!O$9+'Res-Appliance class'!$D38*'RES S curve-disconnect'!O$14+'Res-Appliance class'!$E38*'RES S curve-disconnect'!O$19","v":-5471.8397978372568},{"$f":"'Res-Appliance class'!$B38*'RES S curve-disconnect'!P$4+'Res-Appliance class'!$C38*'RES S curve-disconnect'!P$9+'Res-Appliance class'!$D38*'RES S curve-disconnect'!P$14+'Res-Appliance class'!$E38*'RES S curve-disconnect'!P$19","v":-4999.5418833115054},{"$f":"'Res-Appliance class'!$B38*'RES S curve-disconnect'!Q$4+'Res-Appliance class'!$C38*'RES S curve-disconnect'!Q$9+'Res-Appliance class'!$D38*'RES S curve-disconnect'!Q$14+'Res-Appliance class'!$E38*'RES S curve-disconnect'!Q$19","v":-4286.7807610353775},{"$f":"'Res-Appliance class'!$B38*'RES S curve-disconnect'!R$4+'Res-Appliance class'!$C38*'RES S curve-disconnect'!R$9+'Res-Appliance class'!$D38*'RES S curve-disconnect'!R$14+'Res-Appliance class'!$E38*'RES S curve-disconnect'!R$19","v":-3881.9173783196502},{"$f":"'Res-Appliance class'!$B38*'RES S curve-disconnect'!S$4+'Res-Appliance class'!$C38*'RES S curve-disconnect'!S$9+'Res-Appliance class'!$D38*'RES S curve-disconnect'!S$14+'Res-Appliance class'!$E38*'RES S curve-disconnect'!S$19","v":-3240.1455402402726},{"$f":"'Res-Appliance class'!$B38*'RES S curve-disconnect'!T$4+'Res-Appliance class'!$C38*'RES S curve-disconnect'!T$9+'Res-Appliance class'!$D38*'RES S curve-disconnect'!T$14+'Res-Appliance class'!$E38*'RES S curve-disconnect'!T$19","v":-2888.212816526956},{"$f":"'Res-Appliance class'!$B38*'RES S curve-disconnect'!U$4+'Res-Appliance class'!$C38*'RES S curve-disconnect'!U$9+'Res-Appliance class'!$D38*'RES S curve-disconnect'!U$14+'Res-Appliance class'!$E38*'RES S curve-disconnect'!U$19","v":-2488.2898601595916},{"$f":"'Res-Appliance class'!$B38*'RES S curve-disconnect'!V$4+'Res-Appliance class'!$C38*'RES S curve-disconnect'!V$9+'Res-Appliance class'!$D38*'RES S curve-disconnect'!V$14+'Res-Appliance class'!$E38*'RES S curve-disconnect'!V$19","v":-2215.4489908632891},{"$f":"'Res-Appliance class'!$B38*'RES S curve-disconnect'!W$4+'Res-Appliance class'!$C38*'RES S curve-disconnect'!W$9+'Res-Appliance class'!$D38*'RES S curve-disconnect'!W$14+'Res-Appliance class'!$E38*'RES S curve-disconnect'!W$19","v":-2002.4269137107931},{"$f":"'Res-Appliance class'!$B38*'RES S curve-disconnect'!X$4+'Res-Appliance class'!$C38*'RES S curve-disconnect'!X$9+'Res-Appliance class'!$D38*'RES S curve-disconnect'!X$14+'Res-Appliance class'!$E38*'RES S curve-disconnect'!X$19","v":-1520.1987232768745},{"$f":"'Res-Appliance class'!$B38*'RES S curve-disconnect'!Y$4+'Res-Appliance class'!$C38*'RES S curve-disconnect'!Y$9+'Res-Appliance class'!$D38*'RES S curve-disconnect'!Y$14+'Res-Appliance class'!$E38*'RES S curve-disconnect'!Y$19","v":-1032.5733453750156},{"$f":"'Res-Appliance class'!$B38*'RES S curve-disconnect'!Z$4+'Res-Appliance class'!$C38*'RES S curve-disconnect'!Z$9+'Res-Appliance class'!$D38*'RES S curve-disconnect'!Z$14+'Res-Appliance class'!$E38*'RES S curve-disconnect'!Z$19","v":-702.23275923383972},{"$f":"'Res-Appliance class'!$B38*'RES S curve-disconnect'!AA$4+'Res-Appliance class'!$C38*'RES S curve-disconnect'!AA$9+'Res-Appliance class'!$D38*'RES S curve-disconnect'!AA$14+'Res-Appliance class'!$E38*'RES S curve-disconnect'!AA$19","v":-372.16461329499089},{"$f":"'Res-Appliance class'!$B38*'RES S curve-disconnect'!AB$4+'Res-Appliance class'!$C38*'RES S curve-disconnect'!AB$9+'Res-Appliance class'!$D38*'RES S curve-disconnect'!AB$14+'Res-Appliance class'!$E38*'RES S curve-disconnect'!AB$19","v":-108.46841632979502},{"$f":"'Res-Appliance class'!$B38*'RES S curve-disconnect'!AC$4+'Res-Appliance class'!$C38*'RES S curve-disconnect'!AC$9+'Res-Appliance class'!$D38*'RES S curve-disconnect'!AC$14+'Res-Appliance class'!$E38*'RES S curve-disconnect'!AC$19","v":145.43894328285694},{"$f":"'Res-Appliance class'!$B38*'RES S curve-disconnect'!AD$4+'Res-Appliance class'!$C38*'RES S curve-disconnect'!AD$9+'Res-Appliance class'!$D38*'RES S curve-disconnect'!AD$14+'Res-Appliance class'!$E38*'RES S curve-disconnect'!AD$19","v":378.43309089570386},{"$f":"'Res-Appliance class'!$B38*'RES S curve-disconnect'!AE$4+'Res-Appliance class'!$C38*'RES S curve-disconnect'!AE$9+'Res-Appliance class'!$D38*'RES S curve-disconnect'!AE$14+'Res-Appliance class'!$E38*'RES S curve-disconnect'!AE$19","v":622.85125555795776},{"$f":"'Res-Appliance class'!$B38*'RES S curve-disconnect'!AF$4+'Res-Appliance class'!$C38*'RES S curve-disconnect'!AF$9+'Res-Appliance class'!$D38*'RES S curve-disconnect'!AF$14+'Res-Appliance class'!$E38*'RES S curve-disconnect'!AF$19","v":939.26007966616692},{"$f":"'Res-Appliance class'!$B38*'RES S curve-disconnect'!AG$4+'Res-Appliance class'!$C38*'RES S curve-disconnect'!AG$9+'Res-Appliance class'!$D38*'RES S curve-disconnect'!AG$14+'Res-Appliance class'!$E38*'RES S curve-disconnect'!AG$19","v":1156.1343093883615},{"$f":"'Res-Appliance class'!$B38*'RES S curve-disconnect'!AH$4+'Res-Appliance class'!$C38*'RES S curve-disconnect'!AH$9+'Res-Appliance class'!$D38*'RES S curve-disconnect'!AH$14+'Res-Appliance class'!$E38*'RES S curve-disconnect'!AH$19","v":1462.1703061504688},{"$f":"'Res-Appliance class'!$B38*'RES S curve-disconnect'!AI$4+'Res-Appliance class'!$C38*'RES S curve-disconnect'!AI$9+'Res-Appliance class'!$D38*'RES S curve-disconnect'!AI$14+'Res-Appliance class'!$E38*'RES S curve-disconnect'!AI$19","v":1736.489139006251},{"$f":"'Res-Appliance class'!$B38*'RES S curve-disconnect'!AJ$4+'Res-Appliance class'!$C38*'RES S curve-disconnect'!AJ$9+'Res-Appliance class'!$D38*'RES S curve-disconnect'!AJ$14+'Res-Appliance class'!$E38*'RES S curve-disconnect'!AJ$19","v":1984.2184683420683},{"$f":"'Res-Appliance class'!$B38*'RES S curve-disconnect'!AK$4+'Res-Appliance class'!$C38*'RES S curve-disconnect'!AK$9+'Res-Appliance class'!$D38*'RES S curve-disconnect'!AK$14+'Res-Appliance class'!$E38*'RES S curve-disconnect'!AK$19","v":2247.1915766660604},{"$f":"'Res-Appliance class'!$B38*'RES S curve-disconnect'!AL$4+'Res-Appliance class'!$C38*'RES S curve-disconnect'!AL$9+'Res-Appliance class'!$D38*'RES S curve-disconnect'!AL$14+'Res-Appliance class'!$E38*'RES S curve-disconnect'!AL$19","v":1338.9081534611985},{"$f":"'Res-Appliance class'!$B38*'RES S curve-disconnect'!AM$4+'Res-Appliance class'!$C38*'RES S curve-disconnect'!AM$9+'Res-Appliance class'!$D38*'RES S curve-disconnect'!AM$14+'Res-Appliance class'!$E38*'RES S curve-disconnect'!AM$19","v":1218.7686327622171},{"$f":"'Res-Appliance class'!$B38*'RES S curve-disconnect'!AN$4+'Res-Appliance class'!$C38*'RES S curve-disconnect'!AN$9+'Res-Appliance class'!$D38*'RES S curve-disconnect'!AN$14+'Res-Appliance class'!$E38*'RES S curve-disconnect'!AN$19","v":1467.0465591233944},{"$f":"'Res-Appliance class'!$B38*'RES S curve-disconnect'!AO$4+'Res-Appliance class'!$C38*'RES S curve-disconnect'!AO$9+'Res-Appliance class'!$D38*'RES S curve-disconnect'!AO$14+'Res-Appliance class'!$E38*'RES S curve-disconnect'!AO$19","v":1771.3602942045131},{"$f":"'Res-Appliance class'!$B38*'RES S curve-disconnect'!AP$4+'Res-Appliance class'!$C38*'RES S curve-disconnect'!AP$9+'Res-Appliance class'!$D38*'RES S curve-disconnect'!AP$14+'Res-Appliance class'!$E38*'RES S curve-disconnect'!AP$19","v":2052.8820096083928},{"$f":"'Res-Appliance class'!$B38*'RES S curve-disconnect'!AQ$4+'Res-Appliance class'!$C38*'RES S curve-disconnect'!AQ$9+'Res-Appliance class'!$D38*'RES S curve-disconnect'!AQ$14+'Res-Appliance class'!$E38*'RES S curve-disconnect'!AQ$19","v":2355.5813214263944},{"$f":"'Res-Appliance class'!$B38*'RES S curve-disconnect'!AR$4+'Res-Appliance class'!$C38*'RES S curve-disconnect'!AR$9+'Res-Appliance class'!$D38*'RES S curve-disconnect'!AR$14+'Res-Appliance class'!$E38*'RES S curve-disconnect'!AR$19","v":2688.1808124766171},{"$f":"'Res-Appliance class'!$B38*'RES S curve-disconnect'!AS$4+'Res-Appliance class'!$C38*'RES S curve-disconnect'!AS$9+'Res-Appliance class'!$D38*'RES S curve-disconnect'!AS$14+'Res-Appliance class'!$E38*'RES S curve-disconnect'!AS$19","v":3061.4685485921809},{"$f":"'Res-Appliance class'!$B38*'RES S curve-disconnect'!AT$4+'Res-Appliance class'!$C38*'RES S curve-disconnect'!AT$9+'Res-Appliance class'!$D38*'RES S curve-disconnect'!AT$14+'Res-Appliance class'!$E38*'RES S curve-disconnect'!AT$19","v":3479.2958460555428},{"$f":"'Res-Appliance class'!$B38*'RES S curve-disconnect'!AU$4+'Res-Appliance class'!$C38*'RES S curve-disconnect'!AU$9+'Res-Appliance class'!$D38*'RES S curve-disconnect'!AU$14+'Res-Appliance class'!$E38*'RES S curve-disconnect'!AU$19","v":3962.3500286290423},{"$f":"'Res-Appliance class'!$B38*'RES S curve-disconnect'!AV$4+'Res-Appliance class'!$C38*'RES S curve-disconnect'!AV$9+'Res-Appliance class'!$D38*'RES S curve-disconnect'!AV$14+'Res-Appliance class'!$E38*'RES S curve-disconnect'!AV$19","v":4513.7062645409414},{"$f":"'Res-Appliance class'!$B38*'RES S curve-disconnect'!AW$4+'Res-Appliance class'!$C38*'RES S curve-disconnect'!AW$9+'Res-Appliance class'!$D38*'RES S curve-disconnect'!AW$14+'Res-Appliance class'!$E38*'RES S curve-disconnect'!AW$19","v":5147.6110458732519},{"$f":"'Res-Appliance class'!$B38*'RES S curve-disconnect'!AX$4+'Res-Appliance class'!$C38*'RES S curve-disconnect'!AX$9+'Res-Appliance class'!$D38*'RES S curve-disconnect'!AX$14+'Res-Appliance class'!$E38*'RES S curve-disconnect'!AX$19","v":5870.5038813611181},{"$f":"'Res-Appliance class'!$B38*'RES S curve-disconnect'!AY$4+'Res-Appliance class'!$C38*'RES S curve-disconnect'!AY$9+'Res-Appliance class'!$D38*'RES S curve-disconnect'!AY$14+'Res-Appliance class'!$E38*'RES S curve-disconnect'!AY$19","v":6704.4560739198478},{"$f":"'Res-Appliance class'!$B38*'RES S curve-disconnect'!AZ$4+'Res-Appliance class'!$C38*'RES S curve-disconnect'!AZ$9+'Res-Appliance class'!$D38*'RES S curve-disconnect'!AZ$14+'Res-Appliance class'!$E38*'RES S curve-disconnect'!AZ$19","v":7658.378380168786},{"$f":"'Res-Appliance class'!$B38*'RES S curve-disconnect'!BA$4+'Res-Appliance class'!$C38*'RES S curve-disconnect'!BA$9+'Res-Appliance class'!$D38*'RES S curve-disconnect'!BA$14+'Res-Appliance class'!$E38*'RES S curve-disconnect'!BA$19","v":8763.5145872500561},{"$f":"'Res-Appliance class'!$B38*'RES S curve-disconnect'!BB$4+'Res-Appliance class'!$C38*'RES S curve-disconnect'!BB$9+'Res-Appliance class'!$D38*'RES S curve-disconnect'!BB$14+'Res-Appliance class'!$E38*'RES S curve-disconnect'!BB$19","v":10055.383807235656},{"$f":"'Res-Appliance class'!$B38*'RES S curve-disconnect'!BC$4+'Res-Appliance class'!$C38*'RES S curve-disconnect'!BC$9+'Res-Appliance class'!$D38*'RES S curve-disconnect'!BC$14+'Res-Appliance class'!$E38*'RES S curve-disconnect'!BC$19","v":11596.085664875891},{"$f":"'Res-Appliance class'!$B38*'RES S curve-disconnect'!BD$4+'Res-Appliance class'!$C38*'RES S curve-disconnect'!BD$9+'Res-Appliance class'!$D38*'RES S curve-disconnect'!BD$14+'Res-Appliance class'!$E38*'RES S curve-disconnect'!BD$19","v":13084.258343046871},{"$f":"'Res-Appliance class'!$B38*'RES S curve-disconnect'!BE$4+'Res-Appliance class'!$C38*'RES S curve-disconnect'!BE$9+'Res-Appliance class'!$D38*'RES S curve-disconnect'!BE$14+'Res-Appliance class'!$E38*'RES S curve-disconnect'!BE$19","v":14445.083762449707},{"$f":"'Res-Appliance class'!$B38*'RES S curve-disconnect'!BF$4+'Res-Appliance class'!$C38*'RES S curve-disconnect'!BF$9+'Res-Appliance class'!$D38*'RES S curve-disconnect'!BF$14+'Res-Appliance class'!$E38*'RES S curve-disconnect'!BF$19","v":15837.27842383021},{"$f":"'Res-Appliance class'!$B38*'RES S curve-disconnect'!BG$4+'Res-Appliance class'!$C38*'RES S curve-disconnect'!BG$9+'Res-Appliance class'!$D38*'RES S curve-disconnect'!BG$14+'Res-Appliance class'!$E38*'RES S curve-disconnect'!BG$19","v":17412.224870156922},{"$f":"'Res-Appliance class'!$B38*'RES S curve-disconnect'!BH$4+'Res-Appliance class'!$C38*'RES S curve-disconnect'!BH$9+'Res-Appliance class'!$D38*'RES S curve-disconnect'!BH$14+'Res-Appliance class'!$E38*'RES S curve-disconnect'!BH$19","v":19282.198665240267},{"$f":"'Res-Appliance class'!$B38*'RES S curve-disconnect'!BI$4+'Res-Appliance class'!$C38*'RES S curve-disconnect'!BI$9+'Res-Appliance class'!$D38*'RES S curve-disconnect'!BI$14+'Res-Appliance class'!$E38*'RES S curve-disconnect'!BI$19","v":21991.352682143766},{"$f":"'Res-Appliance class'!$B38*'RES S curve-disconnect'!BJ$4+'Res-Appliance class'!$C38*'RES S curve-disconnect'!BJ$9+'Res-Appliance class'!$D38*'RES S curve-disconnect'!BJ$14+'Res-Appliance class'!$E38*'RES S curve-disconnect'!BJ$19","v":25961.231426012422},{"$f":"'Res-Appliance class'!$B38*'RES S curve-disconnect'!BK$4+'Res-Appliance class'!$C38*'RES S curve-disconnect'!BK$9+'Res-Appliance class'!$D38*'RES S curve-disconnect'!BK$14+'Res-Appliance class'!$E38*'RES S curve-disconnect'!BK$19","v":31823.174965351474},{"$f":"'Res-Appliance class'!$B38*'RES S curve-disconnect'!BL$4+'Res-Appliance class'!$C38*'RES S curve-disconnect'!BL$9+'Res-Appliance class'!$D38*'RES S curve-disconnect'!BL$14+'Res-Appliance class'!$E38*'RES S curve-disconnect'!BL$19","v":-1986.2346293564717},{"$f":"'Res-Appliance class'!$B38*'RES S curve-disconnect'!BM$4+'Res-Appliance class'!$C38*'RES S curve-disconnect'!BM$9+'Res-Appliance class'!$D38*'RES S curve-disconnect'!BM$14+'Res-Appliance class'!$E38*'RES S curve-disconnect'!BM$19","v":-1978.8409024229868},{"$f":"'Res-Appliance class'!$B38*'RES S curve-disconnect'!BN$4+'Res-Appliance class'!$C38*'RES S curve-disconnect'!BN$9+'Res-Appliance class'!$D38*'RES S curve-disconnect'!BN$14+'Res-Appliance class'!$E38*'RES S curve-disconnect'!BN$19","v":-1974.7976431180521},{"$f":"'Res-Appliance class'!$B38*'RES S curve-disconnect'!BO$4+'Res-Appliance class'!$C38*'RES S curve-disconnect'!BO$9+'Res-Appliance class'!$D38*'RES S curve-disconnect'!BO$14+'Res-Appliance class'!$E38*'RES S curve-disconnect'!BO$19","v":-1964.0835315723757},{"$f":"'Res-Appliance class'!$B38*'RES S curve-disconnect'!BP$4+'Res-Appliance class'!$C38*'RES S curve-disconnect'!BP$9+'Res-Appliance class'!$D38*'RES S curve-disconnect'!BP$14+'Res-Appliance class'!$E38*'RES S curve-disconnect'!BP$19","v":-1956.719767394492},{"$f":"'Res-Appliance class'!$B38*'RES S curve-disconnect'!BQ$4+'Res-Appliance class'!$C38*'RES S curve-disconnect'!BQ$9+'Res-Appliance class'!$D38*'RES S curve-disconnect'!BQ$14+'Res-Appliance class'!$E38*'RES S curve-disconnect'!BQ$19","v":-1949.3658711627995},{"$f":"'Res-Appliance class'!$B38*'RES S curve-disconnect'!BR$4+'Res-Appliance class'!$C38*'RES S curve-disconnect'!BR$9+'Res-Appliance class'!$D38*'RES S curve-disconnect'!BR$14+'Res-Appliance class'!$E38*'RES S curve-disconnect'!BR$19","v":-1945.3622035265739},{"$f":"'Res-Appliance class'!$B38*'RES S curve-disconnect'!BS$4+'Res-Appliance class'!$C38*'RES S curve-disconnect'!BS$9+'Res-Appliance class'!$D38*'RES S curve-disconnect'!BS$14+'Res-Appliance class'!$E38*'RES S curve-disconnect'!BS$19","v":-1934.6874461002776},{"$f":"'Res-Appliance class'!$B38*'RES S curve-disconnect'!BT$4+'Res-Appliance class'!$C38*'RES S curve-disconnect'!BT$9+'Res-Appliance class'!$D38*'RES S curve-disconnect'!BT$14+'Res-Appliance class'!$E38*'RES S curve-disconnect'!BT$19","v":-1927.3627999668292},{"$f":"'Res-Appliance class'!$B38*'RES S curve-disconnect'!BU$4+'Res-Appliance class'!$C38*'RES S curve-disconnect'!BU$9+'Res-Appliance class'!$D38*'RES S curve-disconnect'!BU$14+'Res-Appliance class'!$E38*'RES S curve-disconnect'!BU$19","v":-1920.0477871697117},{"$f":"'Res-Appliance class'!$B38*'RES S curve-disconnect'!BV$4+'Res-Appliance class'!$C38*'RES S curve-disconnect'!BV$9+'Res-Appliance class'!$D38*'RES S curve-disconnect'!BV$14+'Res-Appliance class'!$E38*'RES S curve-disconnect'!BV$19","v":-1916.0827698140426},{"$f":"'Res-Appliance class'!$B38*'RES S curve-disconnect'!BW$4+'Res-Appliance class'!$C38*'RES S curve-disconnect'!BW$9+'Res-Appliance class'!$D38*'RES S curve-disconnect'!BW$14+'Res-Appliance class'!$E38*'RES S curve-disconnect'!BW$19","v":-1905.4464309609375},{"$f":"'Res-Appliance class'!$B38*'RES S curve-disconnect'!BX$4+'Res-Appliance class'!$C38*'RES S curve-disconnect'!BX$9+'Res-Appliance class'!$D38*'RES S curve-disconnect'!BX$14+'Res-Appliance class'!$E38*'RES S curve-disconnect'!BX$19","v":-1898.159973130847},{"$f":"'Res-Appliance class'!$B38*'RES S curve-disconnect'!BY$4+'Res-Appliance class'!$C38*'RES S curve-disconnect'!BY$9+'Res-Appliance class'!$D38*'RES S curve-disconnect'!BY$14+'Res-Appliance class'!$E38*'RES S curve-disconnect'!BY$19","v":-1890.8829197957152},{"$f":"'Res-Appliance class'!$B38*'RES S curve-disconnect'!BZ$4+'Res-Appliance class'!$C38*'RES S curve-disconnect'!BZ$9+'Res-Appliance class'!$D38*'RES S curve-disconnect'!BZ$14+'Res-Appliance class'!$E38*'RES S curve-disconnect'!BZ$19","v":-1886.9556344801085},{"$f":"'Res-Appliance class'!$B38*'RES S curve-disconnect'!CA$4+'Res-Appliance class'!$C38*'RES S curve-disconnect'!CA$9+'Res-Appliance class'!$D38*'RES S curve-disconnect'!CA$14+'Res-Appliance class'!$E38*'RES S curve-disconnect'!CA$19","v":-1876.3568016556387},{"$f":"'Res-Appliance class'!$B38*'RES S curve-disconnect'!CB$4+'Res-Appliance class'!$C38*'RES S curve-disconnect'!CB$9+'Res-Appliance class'!$D38*'RES S curve-disconnect'!CB$14+'Res-Appliance class'!$E38*'RES S curve-disconnect'!CB$19","v":-1869.1076252443549},{"$f":"'Res-Appliance class'!$B38*'RES S curve-disconnect'!CC$4+'Res-Appliance class'!$C38*'RES S curve-disconnect'!CC$9+'Res-Appliance class'!$D38*'RES S curve-disconnect'!CC$14+'Res-Appliance class'!$E38*'RES S curve-disconnect'!CC$19","v":-1861.867630110962},{"$f":"'Res-Appliance class'!$B38*'RES S curve-disconnect'!CD$4+'Res-Appliance class'!$C38*'RES S curve-disconnect'!CD$9+'Res-Appliance class'!$D38*'RES S curve-disconnect'!CD$14+'Res-Appliance class'!$E38*'RES S curve-disconnect'!CD$19","v":-1972.9124753295605}]
["Melbourne (C)",null,{"$f":"'Res-Appliance class'!$B39*'RES S curve-disconnect'!C$4+'Res-Appliance class'!$C39*'RES S curve-disconnect'!C$9+'Res-Appliance class'!$D39*'RES S curve-disconnect'!C$14+'Res-Appliance class'!$E39*'RES S curve-disconnect'!C$19","v":-2827.8229362513525},{"$f":"'Res-Appliance class'!$B39*'RES S curve-disconnect'!D$4+'Res-Appliance class'!$C39*'RES S curve-disconnect'!D$9+'Res-Appliance class'!$D39*'RES S curve-disconnect'!D$14+'Res-Appliance class'!$E39*'RES S curve-disconnect'!D$19","v":-3131.4796039965813},{"$f":"'Res-Appliance class'!$B39*'RES S curve-disconnect'!E$4+'Res-Appliance class'!$C39*'RES S curve-disconnect'!E$9+'Res-Appliance class'!$D39*'RES S curve-disconnect'!E$14+'Res-Appliance class'!$E39*'RES S curve-disconnect'!E$19","v":-2802.7912242288439},{"$f":"'Res-Appliance class'!$B39*'RES S curve-disconnect'!F$4+'Res-Appliance class'!$C39*'RES S curve-disconnect'!F$9+'Res-Appliance class'!$D39*'RES S curve-disconnect'!F$14+'Res-Appliance class'!$E39*'RES S curve-disconnect'!F$19","v":-2724.4858819553915},{"$f":"'Res-Appliance class'!$B39*'RES S curve-disconnect'!G$4+'Res-Appliance class'!$C39*'RES S curve-disconnect'!G$9+'Res-Appliance class'!$D39*'RES S curve-disconnect'!G$14+'Res-Appliance class'!$E39*'RES S curve-disconnect'!G$19","v":-3246.2281939240379},{"$f":"'Res-Appliance class'!$B39*'RES S curve-disconnect'!H$4+'Res-Appliance class'!$C39*'RES S curve-disconnect'!H$9+'Res-Appliance class'!$D39*'RES S curve-disconnect'!H$14+'Res-Appliance class'!$E39*'RES S curve-disconnect'!H$19","v":-3280.7477145524535},{"$f":"'Res-Appliance class'!$B39*'RES S curve-disconnect'!I$4+'Res-Appliance class'!$C39*'RES S curve-disconnect'!I$9+'Res-Appliance class'!$D39*'RES S curve-disconnect'!I$14+'Res-Appliance class'!$E39*'RES S curve-disconnect'!I$19","v":-3040.2609819295494},{"$f":"'Res-Appliance class'!$B39*'RES S curve-disconnect'!J$4+'Res-Appliance class'!$C39*'RES S curve-disconnect'!J$9+'Res-Appliance class'!$D39*'RES S curve-disconnect'!J$14+'Res-Appliance class'!$E39*'RES S curve-disconnect'!J$19","v":-3313.3946046290457},{"$f":"'Res-Appliance class'!$B39*'RES S curve-disconnect'!K$4+'Res-Appliance class'!$C39*'RES S curve-disconnect'!K$9+'Res-Appliance class'!$D39*'RES S curve-disconnect'!K$14+'Res-Appliance class'!$E39*'RES S curve-disconnect'!K$19","v":-2832.4860413213191},{"$f":"'Res-Appliance class'!$B39*'RES S curve-disconnect'!L$4+'Res-Appliance class'!$C39*'RES S curve-disconnect'!L$9+'Res-Appliance class'!$D39*'RES S curve-disconnect'!L$14+'Res-Appliance class'!$E39*'RES S curve-disconnect'!L$19","v":-3036.469265300806},{"$f":"'Res-Appliance class'!$B39*'RES S curve-disconnect'!M$4+'Res-Appliance class'!$C39*'RES S curve-disconnect'!M$9+'Res-Appliance class'!$D39*'RES S curve-disconnect'!M$14+'Res-Appliance class'!$E39*'RES S curve-disconnect'!M$19","v":-3369.0059467769524},{"$f":"'Res-Appliance class'!$B39*'RES S curve-disconnect'!N$4+'Res-Appliance class'!$C39*'RES S curve-disconnect'!N$9+'Res-Appliance class'!$D39*'RES S curve-disconnect'!N$14+'Res-Appliance class'!$E39*'RES S curve-disconnect'!N$19","v":-3399.4674880349676},{"$f":"'Res-Appliance class'!$B39*'RES S curve-disconnect'!O$4+'Res-Appliance class'!$C39*'RES S curve-disconnect'!O$9+'Res-Appliance class'!$D39*'RES S curve-disconnect'!O$14+'Res-Appliance class'!$E39*'RES S curve-disconnect'!O$19","v":-3072.5556534853349},{"$f":"'Res-Appliance class'!$B39*'RES S curve-disconnect'!P$4+'Res-Appliance class'!$C39*'RES S curve-disconnect'!P$9+'Res-Appliance class'!$D39*'RES S curve-disconnect'!P$14+'Res-Appliance class'!$E39*'RES S curve-disconnect'!P$19","v":-2816.6766758765125},{"$f":"'Res-Appliance class'!$B39*'RES S curve-disconnect'!Q$4+'Res-Appliance class'!$C39*'RES S curve-disconnect'!Q$9+'Res-Appliance class'!$D39*'RES S curve-disconnect'!Q$14+'Res-Appliance class'!$E39*'RES S curve-disconnect'!Q$19","v":-2431.5502570274084},{"$f":"'Res-Appliance class'!$B39*'RES S curve-disconnect'!R$4+'Res-Appliance class'!$C39*'RES S curve-disconnect'!R$9+'Res-Appliance class'!$D39*'RES S curve-disconnect'!R$14+'Res-Appliance class'!$E39*'RES S curve-disconnect'!R$19","v":-2212.9820336429475},{"$f":"'Res-Appliance class'!$B39*'RES S curve-disconnect'!S$4+'Res-Appliance class'!$C39*'RES S curve-disconnect'!S$9+'Res-Appliance class'!$D39*'RES S curve-disconnect'!S$14+'Res-Appliance class'!$E39*'RES S curve-disconnect'!S$19","v":-1856.5514536254027},{"$f":"'Res-Appliance class'!$B39*'RES S curve-disconnect'!T$4+'Res-Appliance class'!$C39*'RES S curve-disconnect'!T$9+'Res-Appliance class'!$D39*'RES S curve-disconnect'!T$14+'Res-Appliance class'!$E39*'RES S curve-disconnect'!T$19","v":-1683.5418710099761},{"$f":"'Res-Appliance class'!$B39*'RES S curve-disconnect'!U$4+'Res-Appliance class'!$C39*'RES S curve-disconnect'!U$9+'Res-Appliance class'!$D39*'RES S curve-disconnect'!U$14+'Res-Appliance class'!$E39*'RES S curve-disconnect'!U$19","v":-1471.4002555908532},{"$f":"'Res-Appliance class'!$B39*'RES S curve-disconnect'!V$4+'Res-Appliance class'!$C39*'RES S curve-disconnect'!V$9+'Res-Appliance class'!$D39*'RES S curve-disconnect'!V$14+'Res-Appliance class'!$E39*'RES S curve-disconnect'!V$19","v":-1321.3095698008178},{"$f":"'Res-Appliance class'!$B39*'RES S curve-disconnect'!W$4+'Res-Appliance class'!$C39*'RES S curve-disconnect'!W$9+'Res-Appliance class'!$D39*'RES S curve-disconnect'!W$14+'Res-Appliance class'!$E39*'RES S curve-disconnect'!W$19","v":-1203.2948493008735},{"$f":"'Res-Appliance class'!$B39*'RES S curve-disconnect'!X$4+'Res-Appliance class'!$C39*'RES S curve-disconnect'!X$9+'Res-Appliance class'!$D39*'RES S curve-disconnect'!X$14+'Res-Appliance class'!$E39*'RES S curve-disconnect'!X$19","v":-948.87126475089144},{"$f":"'Res-Appliance class'!$B39*'RES S curve-disconnect'!Y$4+'Res-Appliance class'!$C39*'RES S curve-disconnect'!Y$9+'Res-Appliance class'!$D39*'RES S curve-disconnect'!Y$14+'Res-Appliance class'!$E39*'RES S curve-disconnect'!Y$19","v":-689.26662003009255},{"$f":"'Res-Appliance class'!$B39*'RES S curve-disconnect'!Z$4+'Res-Appliance class'!$C39*'RES S curve-disconnect'!Z$9+'Res-Appliance class'!$D39*'RES S curve-disconnect'!Z$14+'Res-Appliance class'!$E39*'RES S curve-disconnect'!Z$19","v":-511.642038374457},{"$f":"'Res-Appliance class'!$B39*'RES S curve-disconnect'!AA$4+'Res-Appliance class'!$C39*'RES S curve-disconnect'!AA$9+'Res-Appliance class'!$D39*'RES S curve-disconnect'!AA$14+'Res-Appliance class'!$E39*'RES S curve-disconnect'!AA$19","v":-331.45763324757985},{"$f":"'Res-Appliance class'!$B39*'RES S curve-disconnect'!AB$4+'Res-Appliance class'!$C39*'RES S curve-disconnect'!AB$9+'Res-Appliance class'!$D39*'RES S curve-disconnect'!AB$14+'Res-Appliance class'!$E39*'RES S curve-disconnect'!AB$19","v":-185.56862455736604},{"$f":"'Res-Appliance class'!$B39*'RES S curve-disconnect'!AC$4+'Res-Appliance class'!$C39*'RES S curve-disconnect'!AC$9+'Res-Appliance class'!$D39*'RES S curve-disconnect'!AC$14+'Res-Appliance class'!$E39*'RES S curve-disconnect'!AC$19","v":-43.264462879047926},{"$f":"'Res-Appliance class'!$B39*'RES S curve-disconnect'!AD$4+'Res-Appliance class'!$C39*'RES S curve-disconnect'!AD$9+'Res-Appliance class'!$D39*'RES S curve-disconnect'!AD$14+'Res-Appliance class'!$E39*'RES S curve-disconnect'!AD$19","v":87.554320631265341},{"$f":"'Res-Appliance class'!$B39*'RES S curve-disconnect'!AE$4+'Res-Appliance class'!$C39*'RES S curve-disconnect'!AE$9+'Res-Appliance class'!$D39*'RES S curve-disconnect'!AE$14+'Res-Appliance class'!$E39*'RES S curve-disconnect'!AE$19","v":228.53357877855746},{"$f":"'Res-Appliance class'!$B39*'RES S curve-disconnect'!AF$4+'Res-Appliance class'!$C39*'RES S curve-disconnect'!AF$9+'Res-Appliance class'!$D39*'RES S curve-disconnect'!AF$14+'Res-Appliance class'!$E39*'RES S curve-disconnect'!AF$19","v":405.65959892731064},{"$f":"'Res-Appliance class'!$B39*'RES S curve-disconnect'!AG$4+'Res-Appliance class'!$C39*'RES S curve-disconnect'!AG$9+'Res-Appliance class'!$D39*'RES S curve-disconnect'!AG$14+'Res-Appliance class'!$E39*'RES S curve-disconnect'!AG$19","v":527.235015389968},{"$f":"'Res-Appliance class'!$B39*'RES S curve-disconnect'!AH$4+'Res-Appliance class'!$C39*'RES S curve-disconnect'!AH$9+'Res-Appliance class'!$D39*'RES S curve-disconnect'!AH$14+'Res-Appliance class'!$E39*'RES S curve-disconnect'!AH$19","v":691.07410179885972},{"$f":"'Res-Appliance class'!$B39*'RES S curve-disconnect'!AI$4+'Res-Appliance class'!$C39*'RES S curve-disconnect'!AI$9+'Res-Appliance class'!$D39*'RES S curve-disconnect'!AI$14+'Res-Appliance class'!$E39*'RES S curve-disconnect'!AI$19","v":844.96490413745801},{"$f":"'Res-Appliance class'!$B39*'RES S curve-disconnect'!AJ$4+'Res-Appliance class'!$C39*'RES S curve-disconnect'!AJ$9+'Res-Appliance class'!$D39*'RES S curve-disconnect'!AJ$14+'Res-Appliance class'!$E39*'RES S curve-disconnect'!AJ$19","v":982.46498691808983},{"$f":"'Res-Appliance class'!$B39*'RES S curve-disconnect'!AK$4+'Res-Appliance class'!$C39*'RES S curve-disconnect'!AK$9+'Res-Appliance class'!$D39*'RES S curve-disconnect'!AK$14+'Res-Appliance class'!$E39*'RES S curve-disconnect'!AK$19","v":1128.6809020496109},{"$f":"'Res-Appliance class'!$B39*'RES S curve-disconnect'!AL$4+'Res-Appliance class'!$C39*'RES S curve-disconnect'!AL$9+'Res-Appliance class'!$D39*'RES S curve-disconnect'!AL$14+'Res-Appliance class'!$E39*'RES S curve-disconnect'!AL$19","v":604.44830505754885},{"$f":"'Res-Appliance class'!$B39*'RES S curve-disconnect'!AM$4+'Res-Appliance class'!$C39*'RES S curve-disconnect'!AM$9+'Res-Appliance class'!$D39*'RES S curve-disconnect'!AM$14+'Res-Appliance class'!$E39*'RES S curve-disconnect'!AM$19","v":545.71639025910372},{"$f":"'Res-Appliance class'!$B39*'RES S curve-disconnect'!AN$4+'Res-Appliance class'!$C39*'RES S curve-disconnect'!AN$9+'Res-Appliance class'!$D39*'RES S curve-disconnect'!AN$14+'Res-Appliance class'!$E39*'RES S curve-disconnect'!AN$19","v":689.22533893865125},{"$f":"'Res-Appliance class'!$B39*'RES S curve-disconnect'!AO$4+'Res-Appliance class'!$C39*'RES S curve-disconnect'!AO$9+'Res-Appliance class'!$D39*'RES S curve-disconnect'!AO$14+'Res-Appliance class'!$E39*'RES S curve-disconnect'!AO$19","v":859.96316127953287},{"$f":"'Res-Appliance class'!$B39*'RES S curve-disconnect'!AP$4+'Res-Appliance class'!$C39*'RES S curve-disconnect'!AP$9+'Res-Appliance class'!$D39*'RES S curve-disconnect'!AP$14+'Res-Appliance class'!$E39*'RES S curve-disconnect'!AP$19","v":1014.8483083880666},{"$f":"'Res-Appliance class'!$B39*'RES S curve-disconnect'!AQ$4+'Res-Appliance class'!$C39*'RES S curve-disconnect'!AQ$9+'Res-Appliance class'!$D39*'RES S curve-disconnect'!AQ$14+'Res-Appliance class'!$E39*'RES S curve-disconnect'!AQ$19","v":1184.4946540161022},{"$f":"'Res-Appliance class'!$B39*'RES S curve-disconnect'!AR$4+'Res-Appliance class'!$C39*'RES S curve-disconnect'!AR$9+'Res-Appliance class'!$D39*'RES S curve-disconnect'!AR$14+'Res-Appliance class'!$E39*'RES S curve-disconnect'!AR$19","v":1369.0944460474589},{"$f":"'Res-Appliance class'!$B39*'RES S curve-disconnect'!AS$4+'Res-Appliance class'!$C39*'RES S curve-disconnect'!AS$9+'Res-Appliance class'!$D39*'RES S curve-disconnect'!AS$14+'Res-Appliance class'!$E39*'RES S curve-disconnect'!AS$19","v":1575.818697743149},{"$f":"'Res-Appliance class'!$B39*'RES S curve-disconnect'!AT$4+'Res-Appliance class'!$C39*'RES S curve-disconnect'!AT$9+'Res-Appliance class'!$D39*'RES S curve-disconnect'!AT$14+'Res-Appliance class'!$E39*'RES S curve-disconnect'!AT$19","v":1805.1295730269346},{"$f":"'Res-Appliance class'!$B39*'RES S curve-disconnect'!AU$4+'Res-Appliance class'!$C39*'RES S curve-disconnect'!AU$9+'Res-Appliance class'!$D39*'RES S curve-disconnect'!AU$14+'Res-Appliance class'!$E39*'RES S curve-disconnect'!AU$19","v":2072.7747888995136},{"$f":"'Res-Appliance class'!$B39*'RES S curve-disconnect'!AV$4+'Res-Appliance class'!$C39*'RES S curve-disconnect'!AV$9+'Res-Appliance class'!$D39*'RES S curve-disconnect'!AV$14+'Res-Appliance class'!$E39*'RES S curve-disconnect'!AV$19","v":2375.6867480270557},{"$f":"'Res-Appliance class'!$B39*'RES S curve-disconnect'!AW$4+'Res-Appliance class'!$C39*'RES S curve-disconnect'!AW$9+'Res-Appliance class'!$D39*'RES S curve-disconnect'!AW$14+'Res-Appliance class'!$E39*'RES S curve-disconnect'!AW$19","v":2722.7419207646772},{"$f":"'Res-Appliance class'!$B39*'RES S curve-disconnect'!AX$4+'Res-Appliance class'!$C39*'RES S curve-disconnect'!AX$9+'Res-Appliance class'!$D39*'RES S curve-disconnect'!AX$14+'Res-Appliance class'!$E39*'RES S curve-disconnect'!AX$19","v":3115.3874284925396},{"$f":"'Res-Appliance class'!$B39*'RES S curve-disconnect'!AY$4+'Res-Appliance class'!$C39*'RES S curve-disconnect'!AY$9+'Res-Appliance class'!$D39*'RES S curve-disconnect'!AY$14+'Res-Appliance class'!$E39*'RES S curve-disconnect'!AY$19","v":3569.6225004380385},{"$f":"'Res-Appliance class'!$B39*'RES S curve-disconnect'!AZ$4+'Res-Appliance class'!$C39*'RES S curve-disconnect'!AZ$9+'Res-Appliance class'!$D39*'RES S curve-disconnect'!AZ$14+'Res-Appliance class'!$E39*'RES S curve-disconnect'!AZ$19","v":4085.0771570139495},{"$f":"'Res-Appliance class'!$B39*'RES S curve-disconnect'!BA$4+'Res-Appliance class'!$C39*'RES S curve-disconnect'!BA$9+'Res-Appliance class'!$D39*'RES S curve-disconnect'!BA$14+'Res-Appliance class'!$E39*'RES S curve-disconnect'!BA$19","v":4679.4216437242558},{"$f":"'Res-Appliance class'!$B39*'RES S curve-disconnect'!BB$4+'Res-Appliance class'!$C39*'RES S curve-disconnect'!BB$9+'Res-Appliance class'!$D39*'RES S curve-disconnect'!BB$14+'Res-Appliance class'!$E39*'RES S curve-disconnect'!BB$19","v":5369.196653514713},{"$f":"'Res-Appliance class'!$B39*'RES S curve-disconnect'!BC$4+'Res-Appliance class'!$C39*'RES S curve-disconnect'!BC$9+'Res-Appliance class'!$D39*'RES S curve-disconnect'!BC$14+'Res-Appliance class'!$E39*'RES S curve-disconnect'!BC$19","v":6190.9404656637071},{"$f":"'Res-Appliance class'!$B39*'RES S curve-disconnect'!BD$4+'Res-Appliance class'!$C39*'RES S curve-disconnect'!BD$9+'Res-Appliance class'!$D39*'RES S curve-disconnect'!BD$14+'Res-Appliance class'!$E39*'RES S curve-disconnect'!BD$19","v":6971.7535403906904},{"$f":"'Res-Appliance class'!$B39*'RES S curve-disconnect'!BE$4+'Res-Appliance class'!$C39*'RES S curve-disconnect'!BE$9+'Res-Appliance class'!$D39*'RES S curve-disconnect'!BE$14+'Res-Appliance class'!$E39*'RES S curve-disconnect'!BE$19","v":7681.4344875917159},{"$f":"'Res-Appliance class'!$B39*'RES S curve-disconnect'!BF$4+'Res-Appliance class'!$C39*'RES S curve-disconnect'!BF$9+'Res-Appliance class'!$D39*'RES S curve-disconnect'!BF$14+'Res-Appliance class'!$E39*'RES S curve-disconnect'!BF$19","v":8408.7524551177794},{"$f":"'Res-Appliance class'!$B39*'RES S curve-disconnect'!BG$4+'Res-Appliance class'!$C39*'RES S curve-disconnect'!BG$9+'Res-Appliance class'!$D39*'RES S curve-disconnect'!BG$14+'Res-Appliance class'!$E39*'RES S curve-disconnect'!BG$19","v":9236.4146380907732},{"$f":"'Res-Appliance class'!$B39*'RES S curve-disconnect'!BH$4+'Res-Appliance class'!$C39*'RES S curve-disconnect'!BH$9+'Res-Appliance class'!$D39*'RES S curve-disconnect'!BH$14+'Res-Appliance class'!$E39*'RES S curve-disconnect'!BH$19","v":10216.22542574926},{"$f":"'Res-Appliance class'!$B39*'RES S curve-disconnect'!BI$4+'Res-Appliance class'!$C39*'RES S curve-disconnect'!BI$9+'Res-Appliance class'!$D39*'RES S curve-disconnect'!BI$14+'Res-Appliance class'!$E39*'RES S curve-disconnect'!BI$19","v":11638.797617600558},{"$f":"'Res-Appliance class'!$B39*'RES S curve-disconnect'!BJ$4+'Res-Appliance class'!$C39*'RES S curve-disconnect'!BJ$9+'Res-Appliance class'!$D39*'RES S curve-disconnect'!BJ$14+'Res-Appliance class'!$E39*'RES S curve-disconnect'!BJ$19","v":13708.5016668478},{"$f":"'Res-Appliance class'!$B39*'RES S curve-disconnect'!BK$4+'Res-Appliance class'!$C39*'RES S curve-disconnect'!BK$9+'Res-Appliance class'!$D39*'RES S curve-disconnect'!BK$14+'Res-Appliance class'!$E39*'RES S curve-disconnect'!BK$19","v":16742.712781653168},{"$f":"'Res-Appliance class'!$B39*'RES S curve-disconnect'!BL$4+'Res-Appliance class'!$C39*'RES S curve-disconnect'!BL$9+'Res-Appliance class'!$D39*'RES S curve-disconnect'!BL$14+'Res-Appliance class'!$E39*'RES S curve-disconnect'!BL$19","v":-1298.1631891533398},{"$f":"'Res-Appliance class'!$B39*'RES S curve-disconnect'!BM$4+'Res-Appliance class'!$C39*'RES S curve-disconnect'!BM$9+'Res-Appliance class'!$D39*'RES S curve-disconnect'!BM$14+'Res-Appliance class'!$E39*'RES S curve-disconnect'!BM$19","v":-1294.2032271959765},{"$f":"'Res-Appliance class'!$B39*'RES S curve-disconnect'!BN$4+'Res-Appliance class'!$C39*'RES S curve-disconnect'!BN$9+'Res-Appliance class'!$D39*'RES S curve-disconnect'!BN$14+'Res-Appliance class'!$E39*'RES S curve-disconnect'!BN$19","v":-1293.5904364536023},{"$f":"'Res-Appliance class'!$B39*'RES S curve-disconnect'!BO$4+'Res-Appliance class'!$C39*'RES S curve-disconnect'!BO$9+'Res-Appliance class'!$D39*'RES S curve-disconnect'!BO$14+'Res-Appliance class'!$E39*'RES S curve-disconnect'!BO$19","v":-1286.3035156656183},{"$f":"'Res-Appliance class'!$B39*'RES S curve-disconnect'!BP$4+'Res-Appliance class'!$C39*'RES S curve-disconnect'!BP$9+'Res-Appliance class'!$D39*'RES S curve-disconnect'!BP$14+'Res-Appliance class'!$E39*'RES S curve-disconnect'!BP$19","v":-1282.3636829373695},{"$f":"'Res-Appliance class'!$B39*'RES S curve-disconnect'!BQ$4+'Res-Appliance class'!$C39*'RES S curve-disconnect'!BQ$9+'Res-Appliance class'!$D39*'RES S curve-disconnect'!BQ$14+'Res-Appliance class'!$E39*'RES S curve-disconnect'!BQ$19","v":-1278.4304772328833},{"$f":"'Res-Appliance class'!$B39*'RES S curve-disconnect'!BR$4+'Res-Appliance class'!$C39*'RES S curve-disconnect'!BR$9+'Res-Appliance class'!$D39*'RES S curve-disconnect'!BR$14+'Res-Appliance class'!$E39*'RES S curve-disconnect'!BR$19","v":-1277.8442774765681},{"$f":"'Res-Appliance class'!$B39*'RES S curve-disconnect'!BS$4+'Res-Appliance class'!$C39*'RES S curve-disconnect'!BS$9+'Res-Appliance class'!$D39*'RES S curve-disconnect'!BS$14+'Res-Appliance class'!$E39*'RES S curve-disconnect'!BS$19","v":-1270.5837834482131},{"$f":"'Res-Appliance class'!$B39*'RES S curve-disconnect'!BT$4+'Res-Appliance class'!$C39*'RES S curve-disconnect'!BT$9+'Res-Appliance class'!$D39*'RES S curve-disconnect'!BT$14+'Res-Appliance class'!$E39*'RES S curve-disconnect'!BT$19","v":-1266.670214286939},{"$f":"'Res-Appliance class'!$B39*'RES S curve-disconnect'!BU$4+'Res-Appliance class'!$C39*'RES S curve-disconnect'!BU$9+'Res-Appliance class'!$D39*'RES S curve-disconnect'!BU$14+'Res-Appliance class'!$E39*'RES S curve-disconnect'!BU$19","v":-1262.7631099839834},{"$f":"'Res-Appliance class'!$B39*'RES S curve-disconnect'!BV$4+'Res-Appliance class'!$C39*'RES S curve-disconnect'!BV$9+'Res-Appliance class'!$D39*'RES S curve-disconnect'!BV$14+'Res-Appliance class'!$E39*'RES S curve-disconnect'!BV$19","v":-1262.2028504844434},{"$f":"'Res-Appliance class'!$B39*'RES S curve-disconnect'!BW$4+'Res-Appliance class'!$C39*'RES S curve-disconnect'!BW$9+'Res-Appliance class'!$D39*'RES S curve-disconnect'!BW$14+'Res-Appliance class'!$E39*'RES S curve-disconnect'!BW$19","v":-1254.9681365823101},{"$f":"'Res-Appliance class'!$B39*'RES S curve-disconnect'!BX$4+'Res-Appliance class'!$C39*'RES S curve-disconnect'!BX$9+'Res-Appliance class'!$D39*'RES S curve-disconnect'!BX$14+'Res-Appliance class'!$E39*'RES S curve-disconnect'!BX$19","v":-1251.0801884244688},{"$f":"'Res-Appliance class'!$B39*'RES S curve-disconnect'!BY$4+'Res-Appliance class'!$C39*'RES S curve-disconnect'!BY$9+'Res-Appliance class'!$D39*'RES S curve-disconnect'!BY$14+'Res-Appliance class'!$E39*'RES S curve-disconnect'!BY$19","v":-1247.1985470035202},{"$f":"'Res-Appliance class'!$B39*'RES S curve-disconnect'!BZ$4+'Res-Appliance class'!$C39*'RES S curve-disconnect'!BZ$9+'Res-Appliance class'!$D39*'RES S curve-disconnect'!BZ$14+'Res-Appliance class'!$E39*'RES S curve-disconnect'!BZ$19","v":-1246.6635932595636},{"$f":"'Res-Appliance class'!$B39*'RES S curve-disconnect'!CA$4+'Res-Appliance class'!$C39*'RES S curve-disconnect'!CA$9+'Res-Appliance class'!$D39*'RES S curve-disconnect'!CA$14+'Res-Appliance class'!$E39*'RES S curve-disconnect'!CA$19","v":-1239.4540289752758},{"$f":"'Res-Appliance class'!$B39*'RES S curve-disconnect'!CB$4+'Res-Appliance class'!$C39*'RES S curve-disconnect'!CB$9+'Res-Appliance class'!$D39*'RES S curve-disconnect'!CB$14+'Res-Appliance class'!$E39*'RES S curve-disconnect'!CB$19","v":-1235.5910752799473},{"$f":"'Res-Appliance class'!$B39*'RES S curve-disconnect'!CC$4+'Res-Appliance class'!$C39*'RES S curve-disconnect'!CC$9+'Res-Appliance class'!$D39*'RES S curve-disconnect'!CC$14+'Res-Appliance class'!$E39*'RES S curve-disconnect'!CC$19","v":-1231.734274142347},{"$f":"'Res-Appliance class'!$B39*'RES S curve-disconnect'!CD$4+'Res-Appliance class'!$C39*'RES S curve-disconnect'!CD$9+'Res-Appliance class'!$D39*'RES S curve-disconnect'!CD$14+'Res-Appliance class'!$E39*'RES S curve-disconnect'!CD$19","v":-1287.4392135064061}]
["Monash (C)",null,{"$f":"'Res-Appliance class'!$B40*'RES S curve-disconnect'!C$4+'Res-Appliance class'!$C40*'RES S curve-disconnect'!C$9+'Res-Appliance class'!$D40*'RES S curve-disconnect'!C$14+'Res-Appliance class'!$E40*'RES S curve-disconnect'!C$19","v":-4858.5007874058956},{"$f":"'Res-Appliance class'!$B40*'RES S curve-disconnect'!D$4+'Res-Appliance class'!$C40*'RES S curve-disconnect'!D$9+'Res-Appliance class'!$D40*'RES S curve-disconnect'!D$14+'Res-Appliance class'!$E40*'RES S curve-disconnect'!D$19","v":-5373.2688105187653},{"$f":"'Res-Appliance class'!$B40*'RES S curve-disconnect'!E$4+'Res-Appliance class'!$C40*'RES S curve-disconnect'!E$9+'Res-Appliance class'!$D40*'RES S curve-disconnect'!E$14+'Res-Appliance class'!$E40*'RES S curve-disconnect'!E$19","v":-4660.3037393980831},{"$f":"'Res-Appliance class'!$B40*'RES S curve-disconnect'!F$4+'Res-Appliance class'!$C40*'RES S curve-disconnect'!F$9+'Res-Appliance class'!$D40*'RES S curve-disconnect'!F$14+'Res-Appliance class'!$E40*'RES S curve-disconnect'!F$19","v":-4506.4241621697493},{"$f":"'Res-Appliance class'!$B40*'RES S curve-disconnect'!G$4+'Res-Appliance class'!$C40*'RES S curve-disconnect'!G$9+'Res-Appliance class'!$D40*'RES S curve-disconnect'!G$14+'Res-Appliance class'!$E40*'RES S curve-disconnect'!G$19","v":-5709.4450714045042},{"$f":"'Res-Appliance class'!$B40*'RES S curve-disconnect'!H$4+'Res-Appliance class'!$C40*'RES S curve-disconnect'!H$9+'Res-Appliance class'!$D40*'RES S curve-disconnect'!H$14+'Res-Appliance class'!$E40*'RES S curve-disconnect'!H$19","v":-5744.6899110794784},{"$f":"'Res-Appliance class'!$B40*'RES S curve-disconnect'!I$4+'Res-Appliance class'!$C40*'RES S curve-disconnect'!I$9+'Res-Appliance class'!$D40*'RES S curve-disconnect'!I$14+'Res-Appliance class'!$E40*'RES S curve-disconnect'!I$19","v":-5308.8442410521984},{"$f":"'Res-Appliance class'!$B40*'RES S curve-disconnect'!J$4+'Res-Appliance class'!$C40*'RES S curve-disconnect'!J$9+'Res-Appliance class'!$D40*'RES S curve-disconnect'!J$14+'Res-Appliance class'!$E40*'RES S curve-disconnect'!J$19","v":-5648.0698281938558},{"$f":"'Res-Appliance class'!$B40*'RES S curve-disconnect'!K$4+'Res-Appliance class'!$C40*'RES S curve-disconnect'!K$9+'Res-Appliance class'!$D40*'RES S curve-disconnect'!K$14+'Res-Appliance class'!$E40*'RES S curve-disconnect'!K$19","v":-4826.5801158284003},{"$f":"'Res-Appliance class'!$B40*'RES S curve-disconnect'!L$4+'Res-Appliance class'!$C40*'RES S curve-disconnect'!L$9+'Res-Appliance class'!$D40*'RES S curve-disconnect'!L$14+'Res-Appliance class'!$E40*'RES S curve-disconnect'!L$19","v":-5176.0947988401313},{"$f":"'Res-Appliance class'!$B40*'RES S curve-disconnect'!M$4+'Res-Appliance class'!$C40*'RES S curve-disconnect'!M$9+'Res-Appliance class'!$D40*'RES S curve-disconnect'!M$14+'Res-Appliance class'!$E40*'RES S curve-disconnect'!M$19","v":-5811.123925581096},{"$f":"'Res-Appliance class'!$B40*'RES S curve-disconnect'!N$4+'Res-Appliance class'!$C40*'RES S curve-disconnect'!N$9+'Res-Appliance class'!$D40*'RES S curve-disconnect'!N$14+'Res-Appliance class'!$E40*'RES S curve-disconnect'!N$19","v":-5868.8689704112639},{"$f":"'Res-Appliance class'!$B40*'RES S curve-disconnect'!O$4+'Res-Appliance class'!$C40*'RES S curve-disconnect'!O$9+'Res-Appliance class'!$D40*'RES S curve-disconnect'!O$14+'Res-Appliance class'!$E40*'RES S curve-disconnect'!O$19","v":-5303.9391413912199},{"$f":"'Res-Appliance class'!$B40*'RES S curve-disconnect'!P$4+'Res-Appliance class'!$C40*'RES S curve-disconnect'!P$9+'Res-Appliance class'!$D40*'RES S curve-disconnect'!P$14+'Res-Appliance class'!$E40*'RES S curve-disconnect'!P$19","v":-4853.7001941259978},{"$f":"'Res-Appliance class'!$B40*'RES S curve-disconnect'!Q$4+'Res-Appliance class'!$C40*'RES S curve-disconnect'!Q$9+'Res-Appliance class'!$D40*'RES S curve-disconnect'!Q$14+'Res-Appliance class'!$E40*'RES S curve-disconnect'!Q$19","v":-4174.5724531710057},{"$f":"'Res-Appliance class'!$B40*'RES S curve-disconnect'!R$4+'Res-Appliance class'!$C40*'RES S curve-disconnect'!R$9+'Res-Appliance class'!$D40*'RES S curve-disconnect'!R$14+'Res-Appliance class'!$E40*'RES S curve-disconnect'!R$19","v":-3788.6521131074032},{"$f":"'Res-Appliance class'!$B40*'RES S curve-disconnect'!S$4+'Res-Appliance class'!$C40*'RES S curve-disconnect'!S$9+'Res-Appliance class'!$D40*'RES S curve-disconnect'!S$14+'Res-Appliance class'!$E40*'RES S curve-disconnect'!S$19","v":-3176.1886251786132},{"$f":"'Res-Appliance class'!$B40*'RES S curve-disconnect'!T$4+'Res-Appliance class'!$C40*'RES S curve-disconnect'!T$9+'Res-Appliance class'!$D40*'RES S curve-disconnect'!T$14+'Res-Appliance class'!$E40*'RES S curve-disconnect'!T$19","v":-2842.3384643091881},{"$f":"'Res-Appliance class'!$B40*'RES S curve-disconnect'!U$4+'Res-Appliance class'!$C40*'RES S curve-disconnect'!U$9+'Res-Appliance class'!$D40*'RES S curve-disconnect'!U$14+'Res-Appliance class'!$E40*'RES S curve-disconnect'!U$19","v":-2461.3919548517738},{"$f":"'Res-Appliance class'!$B40*'RES S curve-disconnect'!V$4+'Res-Appliance class'!$C40*'RES S curve-disconnect'!V$9+'Res-Appliance class'!$D40*'RES S curve-disconnect'!V$14+'Res-Appliance class'!$E40*'RES S curve-disconnect'!V$19","v":-2200.6544923146225},{"$f":"'Res-Appliance class'!$B40*'RES S curve-disconnect'!W$4+'Res-Appliance class'!$C40*'RES S curve-disconnect'!W$9+'Res-Appliance class'!$D40*'RES S curve-disconnect'!W$14+'Res-Appliance class'!$E40*'RES S curve-disconnect'!W$19","v":-1997.0370019276033},{"$f":"'Res-Appliance class'!$B40*'RES S curve-disconnect'!X$4+'Res-Appliance class'!$C40*'RES S curve-disconnect'!X$9+'Res-Appliance class'!$D40*'RES S curve-disconnect'!X$14+'Res-Appliance class'!$E40*'RES S curve-disconnect'!X$19","v":-1538.1701329315272},{"$f":"'Res-Appliance class'!$B40*'RES S curve-disconnect'!Y$4+'Res-Appliance class'!$C40*'RES S curve-disconnect'!Y$9+'Res-Appliance class'!$D40*'RES S curve-disconnect'!Y$14+'Res-Appliance class'!$E40*'RES S curve-disconnect'!Y$19","v":-1073.9237807435622},{"$f":"'Res-Appliance class'!$B40*'RES S curve-disconnect'!Z$4+'Res-Appliance class'!$C40*'RES S curve-disconnect'!Z$9+'Res-Appliance class'!$D40*'RES S curve-disconnect'!Z$14+'Res-Appliance class'!$E40*'RES S curve-disconnect'!Z$19","v":-759.04189706997749},{"$f":"'Res-Appliance class'!$B40*'RES S curve-disconnect'!AA$4+'Res-Appliance class'!$C40*'RES S curve-disconnect'!AA$9+'Res-Appliance class'!$D40*'RES S curve-disconnect'!AA$14+'Res-Appliance class'!$E40*'RES S curve-disconnect'!AA$19","v":-444.13172818307385},{"$f":"'Res-Appliance class'!$B40*'RES S curve-disconnect'!AB$4+'Res-Appliance class'!$C40*'RES S curve-disconnect'!AB$9+'Res-Appliance class'!$D40*'RES S curve-disconnect'!AB$14+'Res-Appliance class'!$E40*'RES S curve-disconnect'!AB$19","v":-192.38478076712428},{"$f":"'Res-Appliance class'!$B40*'RES S curve-disconnect'!AC$4+'Res-Appliance class'!$C40*'RES S curve-disconnect'!AC$9+'Res-Appliance class'!$D40*'RES S curve-disconnect'!AC$14+'Res-Appliance class'!$E40*'RES S curve-disconnect'!AC$19","v":50.221073779203664},{"$f":"'Res-Appliance class'!$B40*'RES S curve-disconnect'!AD$4+'Res-Appliance class'!$C40*'RES S curve-disconnect'!AD$9+'Res-Appliance class'!$D40*'RES S curve-disconnect'!AD$14+'Res-Appliance class'!$E40*'RES S curve-disconnect'!AD$19","v":272.90022526558073},{"$f":"'Res-Appliance class'!$B40*'RES S curve-disconnect'!AE$4+'Res-Appliance class'!$C40*'RES S curve-disconnect'!AE$9+'Res-Appliance class'!$D40*'RES S curve-disconnect'!AE$14+'Res-Appliance class'!$E40*'RES S curve-disconnect'!AE$19","v":506.8676031076111},{"$f":"'Res-Appliance class'!$B40*'RES S curve-disconnect'!AF$4+'Res-Appliance class'!$C40*'RES S curve-disconnect'!AF$9+'Res-Appliance class'!$D40*'RES S curve-disconnect'!AF$14+'Res-Appliance class'!$E40*'RES S curve-disconnect'!AF$19","v":809.05284875905772},{"$f":"'Res-Appliance class'!$B40*'RES S curve-disconnect'!AG$4+'Res-Appliance class'!$C40*'RES S curve-disconnect'!AG$9+'Res-Appliance class'!$D40*'RES S curve-disconnect'!AG$14+'Res-Appliance class'!$E40*'RES S curve-disconnect'!AG$19","v":1015.9312721390602},{"$f":"'Res-Appliance class'!$B40*'RES S curve-disconnect'!AH$4+'Res-Appliance class'!$C40*'RES S curve-disconnect'!AH$9+'Res-Appliance class'!$D40*'RES S curve-disconnect'!AH$14+'Res-Appliance class'!$E40*'RES S curve-disconnect'!AH$19","v":1307.0411702648812},{"$f":"'Res-Appliance class'!$B40*'RES S curve-disconnect'!AI$4+'Res-Appliance class'!$C40*'RES S curve-disconnect'!AI$9+'Res-Appliance class'!$D40*'RES S curve-disconnect'!AI$14+'Res-Appliance class'!$E40*'RES S curve-disconnect'!AI$19","v":1568.7221736581291},{"$f":"'Res-Appliance class'!$B40*'RES S curve-disconnect'!AJ$4+'Res-Appliance class'!$C40*'RES S curve-disconnect'!AJ$9+'Res-Appliance class'!$D40*'RES S curve-disconnect'!AJ$14+'Res-Appliance class'!$E40*'RES S curve-disconnect'!AJ$19","v":1804.8856468867571},{"$f":"'Res-Appliance class'!$B40*'RES S curve-disconnect'!AK$4+'Res-Appliance class'!$C40*'RES S curve-disconnect'!AK$9+'Res-Appliance class'!$D40*'RES S curve-disconnect'!AK$14+'Res-Appliance class'!$E40*'RES S curve-disconnect'!AK$19","v":2055.6064895848904},{"$f":"'Res-Appliance class'!$B40*'RES S curve-disconnect'!AL$4+'Res-Appliance class'!$C40*'RES S curve-disconnect'!AL$9+'Res-Appliance class'!$D40*'RES S curve-disconnect'!AL$14+'Res-Appliance class'!$E40*'RES S curve-disconnect'!AL$19","v":1187.7176747971685},{"$f":"'Res-Appliance class'!$B40*'RES S curve-disconnect'!AM$4+'Res-Appliance class'!$C40*'RES S curve-disconnect'!AM$9+'Res-Appliance class'!$D40*'RES S curve-disconnect'!AM$14+'Res-Appliance class'!$E40*'RES S curve-disconnect'!AM$19","v":1074.0549931731334},{"$f":"'Res-Appliance class'!$B40*'RES S curve-disconnect'!AN$4+'Res-Appliance class'!$C40*'RES S curve-disconnect'!AN$9+'Res-Appliance class'!$D40*'RES S curve-disconnect'!AN$14+'Res-Appliance class'!$E40*'RES S curve-disconnect'!AN$19","v":1311.3404188080467},{"$f":"'Res-Appliance class'!$B40*'RES S curve-disconnect'!AO$4+'Res-Appliance class'!$C40*'RES S curve-disconnect'!AO$9+'Res-Appliance class'!$D40*'RES S curve-disconnect'!AO$14+'Res-Appliance class'!$E40*'RES S curve-disconnect'!AO$19","v":1601.6331874805721},{"$f":"'Res-Appliance class'!$B40*'RES S curve-disconnect'!AP$4+'Res-Appliance class'!$C40*'RES S curve-disconnect'!AP$9+'Res-Appliance class'!$D40*'RES S curve-disconnect'!AP$14+'Res-Appliance class'!$E40*'RES S curve-disconnect'!AP$19","v":1869.8632705616678},{"$f":"'Res-Appliance class'!$B40*'RES S curve-disconnect'!AQ$4+'Res-Appliance class'!$C40*'RES S curve-disconnect'!AQ$9+'Res-Appliance class'!$D40*'RES S curve-disconnect'!AQ$14+'Res-Appliance class'!$E40*'RES S curve-disconnect'!AQ$19","v":2158.5962736347624},{"$f":"'Res-Appliance class'!$B40*'RES S curve-disconnect'!AR$4+'Res-Appliance class'!$C40*'RES S curve-disconnect'!AR$9+'Res-Appliance class'!$D40*'RES S curve-disconnect'!AR$14+'Res-Appliance class'!$E40*'RES S curve-disconnect'!AR$19","v":2475.6580360473026},{"$f":"'Res-Appliance class'!$B40*'RES S curve-disconnect'!AS$4+'Res-Appliance class'!$C40*'RES S curve-disconnect'!AS$9+'Res-Appliance class'!$D40*'RES S curve-disconnect'!AS$14+'Res-Appliance class'!$E40*'RES S curve-disconnect'!AS$19","v":2831.45638498274},{"$f":"'Res-Appliance class'!$B40*'RES S curve-disconnect'!AT$4+'Res-Appliance class'!$C40*'RES S curve-disconnect'!AT$9+'Res-Appliance class'!$D40*'RES S curve-disconnect'!AT$14+'Res-Appliance class'!$E40*'RES S curve-disconnect'!AT$19","v":3229.4863558921179},{"$f":"'Res-Appliance class'!$B40*'RES S curve-disconnect'!AU$4+'Res-Appliance class'!$C40*'RES S curve-disconnect'!AU$9+'Res-Appliance class'!$D40*'RES S curve-disconnect'!AU$14+'Res-Appliance class'!$E40*'RES S curve-disconnect'!AU$19","v":3689.9160014362569},{"$f":"'Res-Appliance class'!$B40*'RES S curve-disconnect'!AV$4+'Res-Appliance class'!$C40*'RES S curve-disconnect'!AV$9+'Res-Appliance class'!$D40*'RES S curve-disconnect'!AV$14+'Res-Appliance class'!$E40*'RES S curve-disconnect'!AV$19","v":4215.1747376407102},{"$f":"'Res-Appliance class'!$B40*'RES S curve-disconnect'!AW$4+'Res-Appliance class'!$C40*'RES S curve-disconnect'!AW$9+'Res-Appliance class'!$D40*'RES S curve-disconnect'!AW$14+'Res-Appliance class'!$E40*'RES S curve-disconnect'!AW$19","v":4818.9445384475321},{"$f":"'Res-Appliance class'!$B40*'RES S curve-disconnect'!AX$4+'Res-Appliance class'!$C40*'RES S curve-disconnect'!AX$9+'Res-Appliance class'!$D40*'RES S curve-disconnect'!AX$14+'Res-Appliance class'!$E40*'RES S curve-disconnect'!AX$19","v":5507.1400929524634},{"$f":"'Res-Appliance class'!$B40*'RES S curve-disconnect'!AY$4+'Res-Appliance class'!$C40*'RES S curve-disconnect'!AY$9+'Res-Appliance class'!$D40*'RES S curve-disconnect'!AY$14+'Res-Appliance class'!$E40*'RES S curve-disconnect'!AY$19","v":6301.1943832734732},{"$f":"'Res-Appliance class'!$B40*'RES S curve-disconnect'!AZ$4+'Res-Appliance class'!$C40*'RES S curve-disconnect'!AZ$9+'Res-Appliance class'!$D40*'RES S curve-disconnect'!AZ$14+'Res-Appliance class'!$E40*'RES S curve-disconnect'!AZ$19","v":7209.0425371778301},{"$f":"'Res-Appliance class'!$B40*'RES S curve-disconnect'!BA$4+'Res-Appliance class'!$C40*'RES S curve-disconnect'!BA$9+'Res-Appliance class'!$D40*'RES S curve-disconnect'!BA$14+'Res-Appliance class'!$E40*'RES S curve-disconnect'!BA$19","v":8260.5014352554335},{"$f":"'Res-Appliance class'!$B40*'RES S curve-disconnect'!BB$4+'Res-Appliance class'!$C40*'RES S curve-disconnect'!BB$9+'Res-Appliance class'!$D40*'RES S curve-disconnect'!BB$14+'Res-Appliance class'!$E40*'RES S curve-disconnect'!BB$19","v":9489.0950996518877},{"$f":"'Res-Appliance class'!$B40*'RES S curve-disconnect'!BC$4+'Res-Appliance class'!$C40*'RES S curve-disconnect'!BC$9+'Res-Appliance class'!$D40*'RES S curve-disconnect'!BC$14+'Res-Appliance class'!$E40*'RES S curve-disconnect'!BC$19","v":10954.23604038516},{"$f":"'Res-Appliance class'!$B40*'RES S curve-disconnect'!BD$4+'Res-Appliance class'!$C40*'RES S curve-disconnect'!BD$9+'Res-Appliance class'!$D40*'RES S curve-disconnect'!BD$14+'Res-Appliance class'!$E40*'RES S curve-disconnect'!BD$19","v":12368.066934166869},{"$f":"'Res-Appliance class'!$B40*'RES S curve-disconnect'!BE$4+'Res-Appliance class'!$C40*'RES S curve-disconnect'!BE$9+'Res-Appliance class'!$D40*'RES S curve-disconnect'!BE$14+'Res-Appliance class'!$E40*'RES S curve-disconnect'!BE$19","v":13660.45999599598},{"$f":"'Res-Appliance class'!$B40*'RES S curve-disconnect'!BF$4+'Res-Appliance class'!$C40*'RES S curve-disconnect'!BF$9+'Res-Appliance class'!$D40*'RES S curve-disconnect'!BF$14+'Res-Appliance class'!$E40*'RES S curve-disconnect'!BF$19","v":14982.778568792872},{"$f":"'Res-Appliance class'!$B40*'RES S curve-disconnect'!BG$4+'Res-Appliance class'!$C40*'RES S curve-disconnect'!BG$9+'Res-Appliance class'!$D40*'RES S curve-disconnect'!BG$14+'Res-Appliance class'!$E40*'RES S curve-disconnect'!BG$19","v":16479.185756194402},{"$f":"'Res-Appliance class'!$B40*'RES S curve-disconnect'!BH$4+'Res-Appliance class'!$C40*'RES S curve-disconnect'!BH$9+'Res-Appliance class'!$D40*'RES S curve-disconnect'!BH$14+'Res-Appliance class'!$E40*'RES S curve-disconnect'!BH$19","v":18255.600139742222},{"$f":"'Res-Appliance class'!$B40*'RES S curve-disconnect'!BI$4+'Res-Appliance class'!$C40*'RES S curve-disconnect'!BI$9+'Res-Appliance class'!$D40*'RES S curve-disconnect'!BI$14+'Res-Appliance class'!$E40*'RES S curve-disconnect'!BI$19","v":20829.521398623365},{"$f":"'Res-Appliance class'!$B40*'RES S curve-disconnect'!BJ$4+'Res-Appliance class'!$C40*'RES S curve-disconnect'!BJ$9+'Res-Appliance class'!$D40*'RES S curve-disconnect'!BJ$14+'Res-Appliance class'!$E40*'RES S curve-disconnect'!BJ$19","v":24599.663792662228},{"$f":"'Res-Appliance class'!$B40*'RES S curve-disconnect'!BK$4+'Res-Appliance class'!$C40*'RES S curve-disconnect'!BK$9+'Res-Appliance class'!$D40*'RES S curve-disconnect'!BK$14+'Res-Appliance class'!$E40*'RES S curve-disconnect'!BK$19","v":30164.362089713821},{"$f":"'Res-Appliance class'!$B40*'RES S curve-disconnect'!BL$4+'Res-Appliance class'!$C40*'RES S curve-disconnect'!BL$9+'Res-Appliance class'!$D40*'RES S curve-disconnect'!BL$14+'Res-Appliance class'!$E40*'RES S curve-disconnect'!BL$19","v":-1987.3754802765568},{"$f":"'Res-Appliance class'!$B40*'RES S curve-disconnect'!BM$4+'Res-Appliance class'!$C40*'RES S curve-disconnect'!BM$9+'Res-Appliance class'!$D40*'RES S curve-disconnect'!BM$14+'Res-Appliance class'!$E40*'RES S curve-disconnect'!BM$19","v":-1980.3251591933413},{"$f":"'Res-Appliance class'!$B40*'RES S curve-disconnect'!BN$4+'Res-Appliance class'!$C40*'RES S curve-disconnect'!BN$9+'Res-Appliance class'!$D40*'RES S curve-disconnect'!BN$14+'Res-Appliance class'!$E40*'RES S curve-disconnect'!BN$19","v":-1976.6250939007482},{"$f":"'Res-Appliance class'!$B40*'RES S curve-disconnect'!BO$4+'Res-Appliance class'!$C40*'RES S curve-disconnect'!BO$9+'Res-Appliance class'!$D40*'RES S curve-disconnect'!BO$14+'Res-Appliance class'!$E40*'RES S curve-disconnect'!BO$19","v":-1966.2539655590706},{"$f":"'Res-Appliance class'!$B40*'RES S curve-disconnect'!BP$4+'Res-Appliance class'!$C40*'RES S curve-disconnect'!BP$9+'Res-Appliance class'!$D40*'RES S curve-disconnect'!BP$14+'Res-Appliance class'!$E40*'RES S curve-disconnect'!BP$19","v":-1959.2329748007835},{"$f":"'Res-Appliance class'!$B40*'RES S curve-disconnect'!BQ$4+'Res-Appliance class'!$C40*'RES S curve-disconnect'!BQ$9+'Res-Appliance class'!$D40*'RES S curve-disconnect'!BQ$14+'Res-Appliance class'!$E40*'RES S curve-disconnect'!BQ$19","v":-1952.2216432226169},{"$f":"'Res-Appliance class'!$B40*'RES S curve-disconnect'!BR$4+'Res-Appliance class'!$C40*'RES S curve-disconnect'!BR$9+'Res-Appliance class'!$D40*'RES S curve-disconnect'!BR$14+'Res-Appliance class'!$E40*'RES S curve-disconnect'!BR$19","v":-1948.5603324866006},{"$f":"'Res-Appliance class'!$B40*'RES S curve-disconnect'!BS$4+'Res-Appliance class'!$C40*'RES S curve-disconnect'!BS$9+'Res-Appliance class'!$D40*'RES S curve-disconnect'!BS$14+'Res-Appliance class'!$E40*'RES S curve-disconnect'!BS$19","v":-1938.2277252144065},{"$f":"'Res-Appliance class'!$B40*'RES S curve-disconnect'!BT$4+'Res-Appliance class'!$C40*'RES S curve-disconnect'!BT$9+'Res-Appliance class'!$D40*'RES S curve-disconnect'!BT$14+'Res-Appliance class'!$E40*'RES S curve-disconnect'!BT$19","v":-1931.2450234906535},{"$f":"'Res-Appliance class'!$B40*'RES S curve-disconnect'!BU$4+'Res-Appliance class'!$C40*'RES S curve-disconnect'!BU$9+'Res-Appliance class'!$D40*'RES S curve-disconnect'!BU$14+'Res-Appliance class'!$E40*'RES S curve-disconnect'!BU$19","v":-1924.2717503550441},{"$f":"'Res-Appliance class'!$B40*'RES S curve-disconnect'!BV$4+'Res-Appliance class'!$C40*'RES S curve-disconnect'!BV$9+'Res-Appliance class'!$D40*'RES S curve-disconnect'!BV$14+'Res-Appliance class'!$E40*'RES S curve-disconnect'!BV$19","v":-1920.6482689034713},{"$f":"'Res-Appliance class'!$B40*'RES S curve-disconnect'!BW$4+'Res-Appliance class'!$C40*'RES S curve-disconnect'!BW$9+'Res-Appliance class'!$D40*'RES S curve-disconnect'!BW$14+'Res-Appliance class'!$E40*'RES S curve-disconnect'!BW$19","v":-1910.3532631824098},{"$f":"'Res-Appliance class'!$B40*'RES S curve-disconnect'!BX$4+'Res-Appliance class'!$C40*'RES S curve-disconnect'!BX$9+'Res-Appliance class'!$D40*'RES S curve-disconnect'!BX$14+'Res-Appliance class'!$E40*'RES S curve-disconnect'!BX$19","v":-1903.4079366922888},{"$f":"'Res-Appliance class'!$B40*'RES S curve-disconnect'!BY$4+'Res-Appliance class'!$C40*'RES S curve-disconnect'!BY$9+'Res-Appliance class'!$D40*'RES S curve-disconnect'!BY$14+'Res-Appliance class'!$E40*'RES S curve-disconnect'!BY$19","v":-1896.47181387968},{"$f":"'Res-Appliance class'!$B40*'RES S curve-disconnect'!BZ$4+'Res-Appliance class'!$C40*'RES S curve-disconnect'!BZ$9+'Res-Appliance class'!$D40*'RES S curve-disconnect'!BZ$14+'Res-Appliance class'!$E40*'RES S curve-disconnect'!BZ$19","v":-1892.8852592384592},{"$f":"'Res-Appliance class'!$B40*'RES S curve-disconnect'!CA$4+'Res-Appliance class'!$C40*'RES S curve-disconnect'!CA$9+'Res-Appliance class'!$D40*'RES S curve-disconnect'!CA$14+'Res-Appliance class'!$E40*'RES S curve-disconnect'!CA$19","v":-1882.6269582042592},{"$f":"'Res-Appliance class'!$B40*'RES S curve-disconnect'!CB$4+'Res-Appliance class'!$C40*'RES S curve-disconnect'!CB$9+'Res-Appliance class'!$D40*'RES S curve-disconnect'!CB$14+'Res-Appliance class'!$E40*'RES S curve-disconnect'!CB$19","v":-1875.7181156578949},{"$f":"'Res-Appliance class'!$B40*'RES S curve-disconnect'!CC$4+'Res-Appliance class'!$C40*'RES S curve-disconnect'!CC$9+'Res-Appliance class'!$D40*'RES S curve-disconnect'!CC$14+'Res-Appliance class'!$E40*'RES S curve-disconnect'!CC$19","v":-1868.8182574176112},{"$f":"'Res-Appliance class'!$B40*'RES S curve-disconnect'!CD$4+'Res-Appliance class'!$C40*'RES S curve-disconnect'!CD$9+'Res-Appliance class'!$D40*'RES S curve-disconnect'!CD$14+'Res-Appliance class'!$E40*'RES S curve-disconnect'!CD$19","v":-1974.0301418099475}]
["Nillumbik (S)",null,{"$f":"'Res-Appliance class'!$B41*'RES S curve-disconnect'!C$4+'Res-Appliance class'!$C41*'RES S curve-disconnect'!C$9+'Res-Appliance class'!$D41*'RES S curve-disconnect'!C$14+'Res-Appliance class'!$E41*'RES S curve-disconnect'!C$19","v":-4798.5439376801942},{"$f":"'Res-Appliance class'!$B41*'RES S curve-disconnect'!D$4+'Res-Appliance class'!$C41*'RES S curve-disconnect'!D$9+'Res-Appliance class'!$D41*'RES S curve-disconnect'!D$14+'Res-Appliance class'!$E41*'RES S curve-disconnect'!D$19","v":-5325.5067017953215},{"$f":"'Res-Appliance class'!$B41*'RES S curve-disconnect'!E$4+'Res-Appliance class'!$C41*'RES S curve-disconnect'!E$9+'Res-Appliance class'!$D41*'RES S curve-disconnect'!E$14+'Res-Appliance class'!$E41*'RES S curve-disconnect'!E$19","v":-4570.3455717859852},{"$f":"'Res-Appliance class'!$B41*'RES S curve-disconnect'!F$4+'Res-Appliance class'!$C41*'RES S curve-disconnect'!F$9+'Res-Appliance class'!$D41*'RES S curve-disconnect'!F$14+'Res-Appliance class'!$E41*'RES S curve-disconnect'!F$19","v":-4411.4167007051574},{"$f":"'Res-Appliance class'!$B41*'RES S curve-disconnect'!G$4+'Res-Appliance class'!$C41*'RES S curve-disconnect'!G$9+'Res-Appliance class'!$D41*'RES S curve-disconnect'!G$14+'Res-Appliance class'!$E41*'RES S curve-disconnect'!G$19","v":-5758.9191381552646},{"$f":"'Res-Appliance class'!$B41*'RES S curve-disconnect'!H$4+'Res-Appliance class'!$C41*'RES S curve-disconnect'!H$9+'Res-Appliance class'!$D41*'RES S curve-disconnect'!H$14+'Res-Appliance class'!$E41*'RES S curve-disconnect'!H$19","v":-5790.47370899417},{"$f":"'Res-Appliance class'!$B41*'RES S curve-disconnect'!I$4+'Res-Appliance class'!$C41*'RES S curve-disconnect'!I$9+'Res-Appliance class'!$D41*'RES S curve-disconnect'!I$14+'Res-Appliance class'!$E41*'RES S curve-disconnect'!I$19","v":-5331.5851242888466},{"$f":"'Res-Appliance class'!$B41*'RES S curve-disconnect'!J$4+'Res-Appliance class'!$C41*'RES S curve-disconnect'!J$9+'Res-Appliance class'!$D41*'RES S curve-disconnect'!J$14+'Res-Appliance class'!$E41*'RES S curve-disconnect'!J$19","v":-5617.3277786387562},{"$f":"'Res-Appliance class'!$B41*'RES S curve-disconnect'!K$4+'Res-Appliance class'!$C41*'RES S curve-disconnect'!K$9+'Res-Appliance class'!$D41*'RES S curve-disconnect'!K$14+'Res-Appliance class'!$E41*'RES S curve-disconnect'!K$19","v":-4758.3052581920965},{"$f":"'Res-Appliance class'!$B41*'RES S curve-disconnect'!L$4+'Res-Appliance class'!$C41*'RES S curve-disconnect'!L$9+'Res-Appliance class'!$D41*'RES S curve-disconnect'!L$14+'Res-Appliance class'!$E41*'RES S curve-disconnect'!L$19","v":-5119.1691699246621},{"$f":"'Res-Appliance class'!$B41*'RES S curve-disconnect'!M$4+'Res-Appliance class'!$C41*'RES S curve-disconnect'!M$9+'Res-Appliance class'!$D41*'RES S curve-disconnect'!M$14+'Res-Appliance class'!$E41*'RES S curve-disconnect'!M$19","v":-5801.4042972210573},{"$f":"'Res-Appliance class'!$B41*'RES S curve-disconnect'!N$4+'Res-Appliance class'!$C41*'RES S curve-disconnect'!N$9+'Res-Appliance class'!$D41*'RES S curve-disconnect'!N$14+'Res-Appliance class'!$E41*'RES S curve-disconnect'!N$19","v":-5865.5814982478933},{"$f":"'Res-Appliance class'!$B41*'RES S curve-disconnect'!O$4+'Res-Appliance class'!$C41*'RES S curve-disconnect'!O$9+'Res-Appliance class'!$D41*'RES S curve-disconnect'!O$14+'Res-Appliance class'!$E41*'RES S curve-disconnect'!O$19","v":-5275.8033711798171},{"$f":"'Res-Appliance class'!$B41*'RES S curve-disconnect'!P$4+'Res-Appliance class'!$C41*'RES S curve-disconnect'!P$9+'Res-Appliance class'!$D41*'RES S curve-disconnect'!P$14+'Res-Appliance class'!$E41*'RES S curve-disconnect'!P$19","v":-4803.6020339221204},{"$f":"'Res-Appliance class'!$B41*'RES S curve-disconnect'!Q$4+'Res-Appliance class'!$C41*'RES S curve-disconnect'!Q$9+'Res-Appliance class'!$D41*'RES S curve-disconnect'!Q$14+'Res-Appliance class'!$E41*'RES S curve-disconnect'!Q$19","v":-4090.0945484518534},{"$f":"'Res-Appliance class'!$B41*'RES S curve-disconnect'!R$4+'Res-Appliance class'!$C41*'RES S curve-disconnect'!R$9+'Res-Appliance class'!$D41*'RES S curve-disconnect'!R$14+'Res-Appliance class'!$E41*'RES S curve-disconnect'!R$19","v":-3685.4246233299491},{"$f":"'Res-Appliance class'!$B41*'RES S curve-disconnect'!S$4+'Res-Appliance class'!$C41*'RES S curve-disconnect'!S$9+'Res-Appliance class'!$D41*'RES S curve-disconnect'!S$14+'Res-Appliance class'!$E41*'RES S curve-disconnect'!S$19","v":-3042.6322820980381},{"$f":"'Res-Appliance class'!$B41*'RES S curve-disconnect'!T$4+'Res-Appliance class'!$C41*'RES S curve-disconnect'!T$9+'Res-Appliance class'!$D41*'RES S curve-disconnect'!T$14+'Res-Appliance class'!$E41*'RES S curve-disconnect'!T$19","v":-2691.7238609173473},{"$f":"'Res-Appliance class'!$B41*'RES S curve-disconnect'!U$4+'Res-Appliance class'!$C41*'RES S curve-disconnect'!U$9+'Res-Appliance class'!$D41*'RES S curve-disconnect'!U$14+'Res-Appliance class'!$E41*'RES S curve-disconnect'!U$19","v":-2292.9936975356218},{"$f":"'Res-Appliance class'!$B41*'RES S curve-disconnect'!V$4+'Res-Appliance class'!$C41*'RES S curve-disconnect'!V$9+'Res-Appliance class'!$D41*'RES S curve-disconnect'!V$14+'Res-Appliance class'!$E41*'RES S curve-disconnect'!V$19","v":-2022.7046133474137},{"$f":"'Res-Appliance class'!$B41*'RES S curve-disconnect'!W$4+'Res-Appliance class'!$C41*'RES S curve-disconnect'!W$9+'Res-Appliance class'!$D41*'RES S curve-disconnect'!W$14+'Res-Appliance class'!$E41*'RES S curve-disconnect'!W$19","v":-1810.9332933805408},{"$f":"'Res-Appliance class'!$B41*'RES S curve-disconnect'!X$4+'Res-Appliance class'!$C41*'RES S curve-disconnect'!X$9+'Res-Appliance class'!$D41*'RES S curve-disconnect'!X$14+'Res-Appliance class'!$E41*'RES S curve-disconnect'!X$19","v":-1327.8448023350975},{"$f":"'Res-Appliance class'!$B41*'RES S curve-disconnect'!Y$4+'Res-Appliance class'!$C41*'RES S curve-disconnect'!Y$9+'Res-Appliance class'!$D41*'RES S curve-disconnect'!Y$14+'Res-Appliance class'!$E41*'RES S curve-disconnect'!Y$19","v":-839.40596899678087},{"$f":"'Res-Appliance class'!$B41*'RES S curve-disconnect'!Z$4+'Res-Appliance class'!$C41*'RES S curve-disconnect'!Z$9+'Res-Appliance class'!$D41*'RES S curve-disconnect'!Z$14+'Res-Appliance class'!$E41*'RES S curve-disconnect'!Z$19","v":-509.51238771061571},{"$f":"'Res-Appliance class'!$B41*'RES S curve-disconnect'!AA$4+'Res-Appliance class'!$C41*'RES S curve-disconnect'!AA$9+'Res-Appliance class'!$D41*'RES S curve-disconnect'!AA$14+'Res-Appliance class'!$E41*'RES S curve-disconnect'!AA$19","v":-179.97090616752155},{"$f":"'Res-Appliance class'!$B41*'RES S curve-disconnect'!AB$4+'Res-Appliance class'!$C41*'RES S curve-disconnect'!AB$9+'Res-Appliance class'!$D41*'RES S curve-disconnect'!AB$14+'Res-Appliance class'!$E41*'RES S curve-disconnect'!AB$19","v":83.990439733087214},{"$f":"'Res-Appliance class'!$B41*'RES S curve-disconnect'!AC$4+'Res-Appliance class'!$C41*'RES S curve-disconnect'!AC$9+'Res-Appliance class'!$D41*'RES S curve-disconnect'!AC$14+'Res-Appliance class'!$E41*'RES S curve-disconnect'!AC$19","v":338.08891760731001},{"$f":"'Res-Appliance class'!$B41*'RES S curve-disconnect'!AD$4+'Res-Appliance class'!$C41*'RES S curve-disconnect'!AD$9+'Res-Appliance class'!$D41*'RES S curve-disconnect'!AD$14+'Res-Appliance class'!$E41*'RES S curve-disconnect'!AD$19","v":571.1491610427563},{"$f":"'Res-Appliance class'!$B41*'RES S curve-disconnect'!AE$4+'Res-Appliance class'!$C41*'RES S curve-disconnect'!AE$9+'Res-Appliance class'!$D41*'RES S curve-disconnect'!AE$14+'Res-Appliance class'!$E41*'RES S curve-disconnect'!AE$19","v":815.66833478942112},{"$f":"'Res-Appliance class'!$B41*'RES S curve-disconnect'!AF$4+'Res-Appliance class'!$C41*'RES S curve-disconnect'!AF$9+'Res-Appliance class'!$D41*'RES S curve-disconnect'!AF$14+'Res-Appliance class'!$E41*'RES S curve-disconnect'!AF$19","v":1132.7870185799704},{"$f":"'Res-Appliance class'!$B41*'RES S curve-disconnect'!AG$4+'Res-Appliance class'!$C41*'RES S curve-disconnect'!AG$9+'Res-Appliance class'!$D41*'RES S curve-disconnect'!AG$14+'Res-Appliance class'!$E41*'RES S curve-disconnect'!AG$19","v":1351.0554769471671},{"$f":"'Res-Appliance class'!$B41*'RES S curve-disconnect'!AH$4+'Res-Appliance class'!$C41*'RES S curve-disconnect'!AH$9+'Res-Appliance class'!$D41*'RES S curve-disconnect'!AH$14+'Res-Appliance class'!$E41*'RES S curve-disconnect'!AH$19","v":1659.2456128677454},{"$f":"'Res-Appliance class'!$B41*'RES S curve-disconnect'!AI$4+'Res-Appliance class'!$C41*'RES S curve-disconnect'!AI$9+'Res-Appliance class'!$D41*'RES S curve-disconnect'!AI$14+'Res-Appliance class'!$E41*'RES S curve-disconnect'!AI$19","v":1935.3673134053126},{"$f":"'Res-Appliance class'!$B41*'RES S curve-disconnect'!AJ$4+'Res-Appliance class'!$C41*'RES S curve-disconnect'!AJ$9+'Res-Appliance class'!$D41*'RES S curve-disconnect'!AJ$14+'Res-Appliance class'!$E41*'RES S curve-disconnect'!AJ$19","v":2184.7354607937959},{"$f":"'Res-Appliance class'!$B41*'RES S curve-disconnect'!AK$4+'Res-Appliance class'!$C41*'RES S curve-disconnect'!AK$9+'Res-Appliance class'!$D41*'RES S curve-disconnect'!AK$14+'Res-Appliance class'!$E41*'RES S curve-disconnect'!AK$19","v":2449.4540045751528},{"$f":"'Res-Appliance class'!$B41*'RES S curve-disconnect'!AL$4+'Res-Appliance class'!$C41*'RES S curve-disconnect'!AL$9+'Res-Appliance class'!$D41*'RES S curve-disconnect'!AL$14+'Res-Appliance class'!$E41*'RES S curve-disconnect'!AL$19","v":1534.812869875484},{"$f":"'Res-Appliance class'!$B41*'RES S curve-disconnect'!AM$4+'Res-Appliance class'!$C41*'RES S curve-disconnect'!AM$9+'Res-Appliance class'!$D41*'RES S curve-disconnect'!AM$14+'Res-Appliance class'!$E41*'RES S curve-disconnect'!AM$19","v":1413.5376490908884},{"$f":"'Res-Appliance class'!$B41*'RES S curve-disconnect'!AN$4+'Res-Appliance class'!$C41*'RES S curve-disconnect'!AN$9+'Res-Appliance class'!$D41*'RES S curve-disconnect'!AN$14+'Res-Appliance class'!$E41*'RES S curve-disconnect'!AN$19","v":1663.369922711827},{"$f":"'Res-Appliance class'!$B41*'RES S curve-disconnect'!AO$4+'Res-Appliance class'!$C41*'RES S curve-disconnect'!AO$9+'Res-Appliance class'!$D41*'RES S curve-disconnect'!AO$14+'Res-Appliance class'!$E41*'RES S curve-disconnect'!AO$19","v":1969.7051176195912},{"$f":"'Res-Appliance class'!$B41*'RES S curve-disconnect'!AP$4+'Res-Appliance class'!$C41*'RES S curve-disconnect'!AP$9+'Res-Appliance class'!$D41*'RES S curve-disconnect'!AP$14+'Res-Appliance class'!$E41*'RES S curve-disconnect'!AP$19","v":2253.1369495145391},{"$f":"'Res-Appliance class'!$B41*'RES S curve-disconnect'!AQ$4+'Res-Appliance class'!$C41*'RES S curve-disconnect'!AQ$9+'Res-Appliance class'!$D41*'RES S curve-disconnect'!AQ$14+'Res-Appliance class'!$E41*'RES S curve-disconnect'!AQ$19","v":2557.8511521230243},{"$f":"'Res-Appliance class'!$B41*'RES S curve-disconnect'!AR$4+'Res-Appliance class'!$C41*'RES S curve-disconnect'!AR$9+'Res-Appliance class'!$D41*'RES S curve-disconnect'!AR$14+'Res-Appliance class'!$E41*'RES S curve-disconnect'!AR$19","v":2892.7083407458199},{"$f":"'Res-Appliance class'!$B41*'RES S curve-disconnect'!AS$4+'Res-Appliance class'!$C41*'RES S curve-disconnect'!AS$9+'Res-Appliance class'!$D41*'RES S curve-disconnect'!AS$14+'Res-Appliance class'!$E41*'RES S curve-disconnect'!AS$19","v":3268.5551065453892},{"$f":"'Res-Appliance class'!$B41*'RES S curve-disconnect'!AT$4+'Res-Appliance class'!$C41*'RES S curve-disconnect'!AT$9+'Res-Appliance class'!$D41*'RES S curve-disconnect'!AT$14+'Res-Appliance class'!$E41*'RES S curve-disconnect'!AT$19","v":3689.2976032708443},{"$f":"'Res-Appliance class'!$B41*'RES S curve-disconnect'!AU$4+'Res-Appliance class'!$C41*'RES S curve-disconnect'!AU$9+'Res-Appliance class'!$D41*'RES S curve-disconnect'!AU$14+'Res-Appliance class'!$E41*'RES S curve-disconnect'!AU$19","v":4175.7030817884979},{"$f":"'Res-Appliance class'!$B41*'RES S curve-disconnect'!AV$4+'Res-Appliance class'!$C41*'RES S curve-disconnect'!AV$9+'Res-Appliance class'!$D41*'RES S curve-disconnect'!AV$14+'Res-Appliance class'!$E41*'RES S curve-disconnect'!AV$19","v":4730.9461070978159},{"$f":"'Res-Appliance class'!$B41*'RES S curve-disconnect'!AW$4+'Res-Appliance class'!$C41*'RES S curve-disconnect'!AW$9+'Res-Appliance class'!$D41*'RES S curve-disconnect'!AW$14+'Res-Appliance class'!$E41*'RES S curve-disconnect'!AW$19","v":5369.3600634782588},{"$f":"'Res-Appliance class'!$B41*'RES S curve-disconnect'!AX$4+'Res-Appliance class'!$C41*'RES S curve-disconnect'!AX$9+'Res-Appliance class'!$D41*'RES S curve-disconnect'!AX$14+'Res-Appliance class'!$E41*'RES S curve-disconnect'!AX$19","v":6097.4652409866121},{"$f":"'Res-Appliance class'!$B41*'RES S curve-disconnect'!AY$4+'Res-Appliance class'!$C41*'RES S curve-disconnect'!AY$9+'Res-Appliance class'!$D41*'RES S curve-disconnect'!AY$14+'Res-Appliance class'!$E41*'RES S curve-disconnect'!AY$19","v":6937.4311954833092},{"$f":"'Res-Appliance class'!$B41*'RES S curve-disconnect'!AZ$4+'Res-Appliance class'!$C41*'RES S curve-disconnect'!AZ$9+'Res-Appliance class'!$D41*'RES S curve-disconnect'!AZ$14+'Res-Appliance class'!$E41*'RES S curve-disconnect'!AZ$19","v":7898.3188594472576},{"$f":"'Res-Appliance class'!$B41*'RES S curve-disconnect'!BA$4+'Res-Appliance class'!$C41*'RES S curve-disconnect'!BA$9+'Res-Appliance class'!$D41*'RES S curve-disconnect'!BA$14+'Res-Appliance class'!$E41*'RES S curve-disconnect'!BA$19","v":9011.5916624960646},{"$f":"'Res-Appliance class'!$B41*'RES S curve-disconnect'!BB$4+'Res-Appliance class'!$C41*'RES S curve-disconnect'!BB$9+'Res-Appliance class'!$D41*'RES S curve-disconnect'!BB$14+'Res-Appliance class'!$E41*'RES S curve-disconnect'!BB$19","v":10313.075821446613},{"$f":"'Res-Appliance class'!$B41*'RES S curve-disconnect'!BC$4+'Res-Appliance class'!$C41*'RES S curve-disconnect'!BC$9+'Res-Appliance class'!$D41*'RES S curve-disconnect'!BC$14+'Res-Appliance class'!$E41*'RES S curve-disconnect'!BC$19","v":11865.284591359739},{"$f":"'Res-Appliance class'!$B41*'RES S curve-disconnect'!BD$4+'Res-Appliance class'!$C41*'RES S curve-disconnect'!BD$9+'Res-Appliance class'!$D41*'RES S curve-disconnect'!BD$14+'Res-Appliance class'!$E41*'RES S curve-disconnect'!BD$19","v":13364.777360830345},{"$f":"'Res-Appliance class'!$B41*'RES S curve-disconnect'!BE$4+'Res-Appliance class'!$C41*'RES S curve-disconnect'!BE$9+'Res-Appliance class'!$D41*'RES S curve-disconnect'!BE$14+'Res-Appliance class'!$E41*'RES S curve-disconnect'!BE$19","v":14736.014053442519},{"$f":"'Res-Appliance class'!$B41*'RES S curve-disconnect'!BF$4+'Res-Appliance class'!$C41*'RES S curve-disconnect'!BF$9+'Res-Appliance class'!$D41*'RES S curve-disconnect'!BF$14+'Res-Appliance class'!$E41*'RES S curve-disconnect'!BF$19","v":16138.843058875564},{"$f":"'Res-Appliance class'!$B41*'RES S curve-disconnect'!BG$4+'Res-Appliance class'!$C41*'RES S curve-disconnect'!BG$9+'Res-Appliance class'!$D41*'RES S curve-disconnect'!BG$14+'Res-Appliance class'!$E41*'RES S curve-disconnect'!BG$19","v":17725.758225363817},{"$f":"'Res-Appliance class'!$B41*'RES S curve-disconnect'!BH$4+'Res-Appliance class'!$C41*'RES S curve-disconnect'!BH$9+'Res-Appliance class'!$D41*'RES S curve-disconnect'!BH$14+'Res-Appliance class'!$E41*'RES S curve-disconnect'!BH$19","v":19610.013661322802},{"$f":"'Res-Appliance class'!$B41*'RES S curve-disconnect'!BI$4+'Res-Appliance class'!$C41*'RES S curve-disconnect'!BI$9+'Res-Appliance class'!$D41*'RES S curve-disconnect'!BI$14+'Res-Appliance class'!$E41*'RES S curve-disconnect'!BI$19","v":22339.865043386795},{"$f":"'Res-Appliance class'!$B41*'RES S curve-disconnect'!BJ$4+'Res-Appliance class'!$C41*'RES S curve-disconnect'!BJ$9+'Res-Appliance class'!$D41*'RES S curve-disconnect'!BJ$14+'Res-Appliance class'!$E41*'RES S curve-disconnect'!BJ$19","v":26340.371201954124},{"$f":"'Res-Appliance class'!$B41*'RES S curve-disconnect'!BK$4+'Res-Appliance class'!$C41*'RES S curve-disconnect'!BK$9+'Res-Appliance class'!$D41*'RES S curve-disconnect'!BK$14+'Res-Appliance class'!$E41*'RES S curve-disconnect'!BK$19","v":32247.952808707541},{"$f":"'Res-Appliance class'!$B41*'RES S curve-disconnect'!BL$4+'Res-Appliance class'!$C41*'RES S curve-disconnect'!BL$9+'Res-Appliance class'!$D41*'RES S curve-disconnect'!BL$14+'Res-Appliance class'!$E41*'RES S curve-disconnect'!BL$19","v":-1816.744408536669},{"$f":"'Res-Appliance class'!$B41*'RES S curve-disconnect'!BM$4+'Res-Appliance class'!$C41*'RES S curve-disconnect'!BM$9+'Res-Appliance class'!$D41*'RES S curve-disconnect'!BM$14+'Res-Appliance class'!$E41*'RES S curve-disconnect'!BM$19","v":-1809.4140407323532},{"$f":"'Res-Appliance class'!$B41*'RES S curve-disconnect'!BN$4+'Res-Appliance class'!$C41*'RES S curve-disconnect'!BN$9+'Res-Appliance class'!$D41*'RES S curve-disconnect'!BN$14+'Res-Appliance class'!$E41*'RES S curve-disconnect'!BN$19","v":-1805.4333830853832},{"$f":"'Res-Appliance class'!$B41*'RES S curve-disconnect'!BO$4+'Res-Appliance class'!$C41*'RES S curve-disconnect'!BO$9+'Res-Appliance class'!$D41*'RES S curve-disconnect'!BO$14+'Res-Appliance class'!$E41*'RES S curve-disconnect'!BO$19","v":-1794.7811207586694},{"$f":"'Res-Appliance class'!$B41*'RES S curve-disconnect'!BP$4+'Res-Appliance class'!$C41*'RES S curve-disconnect'!BP$9+'Res-Appliance class'!$D41*'RES S curve-disconnect'!BP$14+'Res-Appliance class'!$E41*'RES S curve-disconnect'!BP$19","v":-1787.4784583602075},{"$f":"'Res-Appliance class'!$B41*'RES S curve-disconnect'!BQ$4+'Res-Appliance class'!$C41*'RES S curve-disconnect'!BQ$9+'Res-Appliance class'!$D41*'RES S curve-disconnect'!BQ$14+'Res-Appliance class'!$E41*'RES S curve-disconnect'!BQ$19","v":-1780.1849214353274},{"$f":"'Res-Appliance class'!$B41*'RES S curve-disconnect'!BR$4+'Res-Appliance class'!$C41*'RES S curve-disconnect'!BR$9+'Res-Appliance class'!$D41*'RES S curve-disconnect'!BR$14+'Res-Appliance class'!$E41*'RES S curve-disconnect'!BR$19","v":-1776.2408755679166},{"$f":"'Res-Appliance class'!$B41*'RES S curve-disconnect'!BS$4+'Res-Appliance class'!$C41*'RES S curve-disconnect'!BS$9+'Res-Appliance class'!$D41*'RES S curve-disconnect'!BS$14+'Res-Appliance class'!$E41*'RES S curve-disconnect'!BS$19","v":-1765.6250072749372},{"$f":"'Res-Appliance class'!$B41*'RES S curve-disconnect'!BT$4+'Res-Appliance class'!$C41*'RES S curve-disconnect'!BT$9+'Res-Appliance class'!$D41*'RES S curve-disconnect'!BT$14+'Res-Appliance class'!$E41*'RES S curve-disconnect'!BT$19","v":-1758.3585225099037},{"$f":"'Res-Appliance class'!$B41*'RES S curve-disconnect'!BU$4+'Res-Appliance class'!$C41*'RES S curve-disconnect'!BU$9+'Res-Appliance class'!$D41*'RES S curve-disconnect'!BU$14+'Res-Appliance class'!$E41*'RES S curve-disconnect'!BU$19","v":-1751.1009481551951},{"$f":"'Res-Appliance class'!$B41*'RES S curve-disconnect'!BV$4+'Res-Appliance class'!$C41*'RES S curve-disconnect'!BV$9+'Res-Appliance class'!$D41*'RES S curve-disconnect'!BV$14+'Res-Appliance class'!$E41*'RES S curve-disconnect'!BV$19","v":-1747.1926511233319},{"$f":"'Res-Appliance class'!$B41*'RES S curve-disconnect'!BW$4+'Res-Appliance class'!$C41*'RES S curve-disconnect'!BW$9+'Res-Appliance class'!$D41*'RES S curve-disconnect'!BW$14+'Res-Appliance class'!$E41*'RES S curve-disconnect'!BW$19","v":-1736.6123192515397},{"$f":"'Res-Appliance class'!$B41*'RES S curve-disconnect'!BX$4+'Res-Appliance class'!$C41*'RES S curve-disconnect'!BX$9+'Res-Appliance class'!$D41*'RES S curve-disconnect'!BX$14+'Res-Appliance class'!$E41*'RES S curve-disconnect'!BX$19","v":-1729.3811598052907},{"$f":"'Res-Appliance class'!$B41*'RES S curve-disconnect'!BY$4+'Res-Appliance class'!$C41*'RES S curve-disconnect'!BY$9+'Res-Appliance class'!$D41*'RES S curve-disconnect'!BY$14+'Res-Appliance class'!$E41*'RES S curve-disconnect'!BY$19","v":-1722.158700970662},{"$f":"'Res-Appliance class'!$B41*'RES S curve-disconnect'!BZ$4+'Res-Appliance class'!$C41*'RES S curve-disconnect'!BZ$9+'Res-Appliance class'!$D41*'RES S curve-disconnect'!BZ$14+'Res-Appliance class'!$E41*'RES S curve-disconnect'!BZ$19","v":-1718.2853109556618},{"$f":"'Res-Appliance class'!$B41*'RES S curve-disconnect'!CA$4+'Res-Appliance class'!$C41*'RES S curve-disconnect'!CA$9+'Res-Appliance class'!$D41*'RES S curve-disconnect'!CA$14+'Res-Appliance class'!$E41*'RES S curve-disconnect'!CA$19","v":-1707.7396788848523},{"$f":"'Res-Appliance class'!$B41*'RES S curve-disconnect'!CB$4+'Res-Appliance class'!$C41*'RES S curve-disconnect'!CB$9+'Res-Appliance class'!$D41*'RES S curve-disconnect'!CB$14+'Res-Appliance class'!$E41*'RES S curve-disconnect'!CB$19","v":-1700.5430133029381},{"$f":"'Res-Appliance class'!$B41*'RES S curve-disconnect'!CC$4+'Res-Appliance class'!$C41*'RES S curve-disconnect'!CC$9+'Res-Appliance class'!$D41*'RES S curve-disconnect'!CC$14+'Res-Appliance class'!$E41*'RES S curve-disconnect'!CC$19","v":-1693.354843667179},{"$f":"'Res-Appliance class'!$B41*'RES S curve-disconnect'!CD$4+'Res-Appliance class'!$C41*'RES S curve-disconnect'!CD$9+'Res-Appliance class'!$D41*'RES S curve-disconnect'!CD$14+'Res-Appliance class'!$E41*'RES S curve-disconnect'!CD$19","v":-1805.4010475568728}]
["Port Phillip (C)",null,{"$f":"'Res-Appliance class'!$B42*'RES S curve-disconnect'!C$4+'Res-Appliance class'!$C42*'RES S curve-disconnect'!C$9+'Res-Appliance class'!$D42*'RES S curve-disconnect'!C$14+'Res-Appliance class'!$E42*'RES S curve-disconnect'!C$19","v":-3205.8643226867098},{"$f":"'Res-Appliance class'!$B42*'RES S curve-disconnect'!D$4+'Res-Appliance class'!$C42*'RES S curve-disconnect'!D$9+'Res-Appliance class'!$D42*'RES S curve-disconnect'!D$14+'Res-Appliance class'!$E42*'RES S curve-disconnect'!D$19","v":-3545.9167802809097},{"$f":"'Res-Appliance class'!$B42*'RES S curve-disconnect'!E$4+'Res-Appliance class'!$C42*'RES S curve-disconnect'!E$9+'Res-Appliance class'!$D42*'RES S curve-disconnect'!E$14+'Res-Appliance class'!$E42*'RES S curve-disconnect'!E$19","v":-3155.2156934364125},{"$f":"'Res-Appliance class'!$B42*'RES S curve-disconnect'!F$4+'Res-Appliance class'!$C42*'RES S curve-disconnect'!F$9+'Res-Appliance class'!$D42*'RES S curve-disconnect'!F$14+'Res-Appliance class'!$E42*'RES S curve-disconnect'!F$19","v":-3064.0556746878956},{"$f":"'Res-Appliance class'!$B42*'RES S curve-disconnect'!G$4+'Res-Appliance class'!$C42*'RES S curve-disconnect'!G$9+'Res-Appliance class'!$D42*'RES S curve-disconnect'!G$14+'Res-Appliance class'!$E42*'RES S curve-disconnect'!G$19","v":-3680.0156543719058},{"$f":"'Res-Appliance class'!$B42*'RES S curve-disconnect'!H$4+'Res-Appliance class'!$C42*'RES S curve-disconnect'!H$9+'Res-Appliance class'!$D42*'RES S curve-disconnect'!H$14+'Res-Appliance class'!$E42*'RES S curve-disconnect'!H$19","v":-3713.9205026192631},{"$f":"'Res-Appliance class'!$B42*'RES S curve-disconnect'!I$4+'Res-Appliance class'!$C42*'RES S curve-disconnect'!I$9+'Res-Appliance class'!$D42*'RES S curve-disconnect'!I$14+'Res-Appliance class'!$E42*'RES S curve-disconnect'!I$19","v":-3442.7186291212402},{"$f":"'Res-Appliance class'!$B42*'RES S curve-disconnect'!J$4+'Res-Appliance class'!$C42*'RES S curve-disconnect'!J$9+'Res-Appliance class'!$D42*'RES S curve-disconnect'!J$14+'Res-Appliance class'!$E42*'RES S curve-disconnect'!J$19","v":-3740.9915636882661},{"$f":"'Res-Appliance class'!$B42*'RES S curve-disconnect'!K$4+'Res-Appliance class'!$C42*'RES S curve-disconnect'!K$9+'Res-Appliance class'!$D42*'RES S curve-disconnect'!K$14+'Res-Appliance class'!$E42*'RES S curve-disconnect'!K$19","v":-3206.2309647837242},{"$f":"'Res-Appliance class'!$B42*'RES S curve-disconnect'!L$4+'Res-Appliance class'!$C42*'RES S curve-disconnect'!L$9+'Res-Appliance class'!$D42*'RES S curve-disconnect'!L$14+'Res-Appliance class'!$E42*'RES S curve-disconnect'!L$19","v":-3434.6342769299094},{"$f":"'Res-Appliance class'!$B42*'RES S curve-disconnect'!M$4+'Res-Appliance class'!$C42*'RES S curve-disconnect'!M$9+'Res-Appliance class'!$D42*'RES S curve-disconnect'!M$14+'Res-Appliance class'!$E42*'RES S curve-disconnect'!M$19","v":-3811.9011929395788},{"$f":"'Res-Appliance class'!$B42*'RES S curve-disconnect'!N$4+'Res-Appliance class'!$C42*'RES S curve-disconnect'!N$9+'Res-Appliance class'!$D42*'RES S curve-disconnect'!N$14+'Res-Appliance class'!$E42*'RES S curve-disconnect'!N$19","v":-3845.9149148704691},{"$f":"'Res-Appliance class'!$B42*'RES S curve-disconnect'!O$4+'Res-Appliance class'!$C42*'RES S curve-disconnect'!O$9+'Res-Appliance class'!$D42*'RES S curve-disconnect'!O$14+'Res-Appliance class'!$E42*'RES S curve-disconnect'!O$19","v":-3480.8379270372916},{"$f":"'Res-Appliance class'!$B42*'RES S curve-disconnect'!P$4+'Res-Appliance class'!$C42*'RES S curve-disconnect'!P$9+'Res-Appliance class'!$D42*'RES S curve-disconnect'!P$14+'Res-Appliance class'!$E42*'RES S curve-disconnect'!P$19","v":-3194.2280838162719},{"$f":"'Res-Appliance class'!$B42*'RES S curve-disconnect'!Q$4+'Res-Appliance class'!$C42*'RES S curve-disconnect'!Q$9+'Res-Appliance class'!$D42*'RES S curve-disconnect'!Q$14+'Res-Appliance class'!$E42*'RES S curve-disconnect'!Q$19","v":-2762.8710209606634},{"$f":"'Res-Appliance class'!$B42*'RES S curve-disconnect'!R$4+'Res-Appliance class'!$C42*'RES S curve-disconnect'!R$9+'Res-Appliance class'!$D42*'RES S curve-disconnect'!R$14+'Res-Appliance class'!$E42*'RES S curve-disconnect'!R$19","v":-2517.8108561235572},{"$f":"'Res-Appliance class'!$B42*'RES S curve-disconnect'!S$4+'Res-Appliance class'!$C42*'RES S curve-disconnect'!S$9+'Res-Appliance class'!$D42*'RES S curve-disconnect'!S$14+'Res-Appliance class'!$E42*'RES S curve-disconnect'!S$19","v":-2121.226458603463},{"$f":"'Res-Appliance class'!$B42*'RES S curve-disconnect'!T$4+'Res-Appliance class'!$C42*'RES S curve-disconnect'!T$9+'Res-Appliance class'!$D42*'RES S curve-disconnect'!T$14+'Res-Appliance class'!$E42*'RES S curve-disconnect'!T$19","v":-1922.5154610533186},{"$f":"'Res-Appliance class'!$B42*'RES S curve-disconnect'!U$4+'Res-Appliance class'!$C42*'RES S curve-disconnect'!U$9+'Res-Appliance class'!$D42*'RES S curve-disconnect'!U$14+'Res-Appliance class'!$E42*'RES S curve-disconnect'!U$19","v":-1683.3659195694022},{"$f":"'Res-Appliance class'!$B42*'RES S curve-disconnect'!V$4+'Res-Appliance class'!$C42*'RES S curve-disconnect'!V$9+'Res-Appliance class'!$D42*'RES S curve-disconnect'!V$14+'Res-Appliance class'!$E42*'RES S curve-disconnect'!V$19","v":-1515.0656077124297},{"$f":"'Res-Appliance class'!$B42*'RES S curve-disconnect'!W$4+'Res-Appliance class'!$C42*'RES S curve-disconnect'!W$9+'Res-Appliance class'!$D42*'RES S curve-disconnect'!W$14+'Res-Appliance class'!$E42*'RES S curve-disconnect'!W$19","v":-1383.1706369475364},{"$f":"'Res-Appliance class'!$B42*'RES S curve-disconnect'!X$4+'Res-Appliance class'!$C42*'RES S curve-disconnect'!X$9+'Res-Appliance class'!$D42*'RES S curve-disconnect'!X$14+'Res-Appliance class'!$E42*'RES S curve-disconnect'!X$19","v":-1096.6974200316547},{"$f":"'Res-Appliance class'!$B42*'RES S curve-disconnect'!Y$4+'Res-Appliance class'!$C42*'RES S curve-disconnect'!Y$9+'Res-Appliance class'!$D42*'RES S curve-disconnect'!Y$14+'Res-Appliance class'!$E42*'RES S curve-disconnect'!Y$19","v":-804.99835919302507},{"$f":"'Res-Appliance class'!$B42*'RES S curve-disconnect'!Z$4+'Res-Appliance class'!$C42*'RES S curve-disconnect'!Z$9+'Res-Appliance class'!$D42*'RES S curve-disconnect'!Z$14+'Res-Appliance class'!$E42*'RES S curve-disconnect'!Z$19","v":-605.56347757037099},{"$f":"'Res-Appliance class'!$B42*'RES S curve-disconnect'!AA$4+'Res-Appliance class'!$C42*'RES S curve-disconnect'!AA$9+'Res-Appliance class'!$D42*'RES S curve-disconnect'!AA$14+'Res-Appliance class'!$E42*'RES S curve-disconnect'!AA$19","v":-403.94586355345177},{"$f":"'Res-Appliance class'!$B42*'RES S curve-disconnect'!AB$4+'Res-Appliance class'!$C42*'RES S curve-disconnect'!AB$9+'Res-Appliance class'!$D42*'RES S curve-disconnect'!AB$14+'Res-Appliance class'!$E42*'RES S curve-disconnect'!AB$19","v":-241.4111512268326},{"$f":"'Res-Appliance class'!$B42*'RES S curve-disconnect'!AC$4+'Res-Appliance class'!$C42*'RES S curve-disconnect'!AC$9+'Res-Appliance class'!$D42*'RES S curve-disconnect'!AC$14+'Res-Appliance class'!$E42*'RES S curve-disconnect'!AC$19","v":-83.317835194336197},{"$f":"'Res-Appliance class'!$B42*'RES S curve-disconnect'!AD$4+'Res-Appliance class'!$C42*'RES S curve-disconnect'!AD$9+'Res-Appliance class'!$D42*'RES S curve-disconnect'!AD$14+'Res-Appliance class'!$E42*'RES S curve-disconnect'!AD$19","v":61.992383333652668},{"$f":"'Res-Appliance class'!$B42*'RES S curve-disconnect'!AE$4+'Res-Appliance class'!$C42*'RES S curve-disconnect'!AE$9+'Res-Appliance class'!$D42*'RES S curve-disconnect'!AE$14+'Res-Appliance class'!$E42*'RES S curve-disconnect'!AE$19","v":217.63124081505535},{"$f":"'Res-Appliance class'!$B42*'RES S curve-disconnect'!AF$4+'Res-Appliance class'!$C42*'RES S curve-disconnect'!AF$9+'Res-Appliance class'!$D42*'RES S curve-disconnect'!AF$14+'Res-Appliance class'!$E42*'RES S curve-disconnect'!AF$19","v":414.30895845968564},{"$f":"'Res-Appliance class'!$B42*'RES S curve-disconnect'!AG$4+'Res-Appliance class'!$C42*'RES S curve-disconnect'!AG$9+'Res-Appliance class'!$D42*'RES S curve-disconnect'!AG$14+'Res-Appliance class'!$E42*'RES S curve-disconnect'!AG$19","v":548.9609146762798},{"$f":"'Res-Appliance class'!$B42*'RES S curve-disconnect'!AH$4+'Res-Appliance class'!$C42*'RES S curve-disconnect'!AH$9+'Res-Appliance class'!$D42*'RES S curve-disconnect'!AH$14+'Res-Appliance class'!$E42*'RES S curve-disconnect'!AH$19","v":732.28881614359432},{"$f":"'Res-Appliance class'!$B42*'RES S curve-disconnect'!AI$4+'Res-Appliance class'!$C42*'RES S curve-disconnect'!AI$9+'Res-Appliance class'!$D42*'RES S curve-disconnect'!AI$14+'Res-Appliance class'!$E42*'RES S curve-disconnect'!AI$19","v":902.69156529276324},{"$f":"'Res-Appliance class'!$B42*'RES S curve-disconnect'!AJ$4+'Res-Appliance class'!$C42*'RES S curve-disconnect'!AJ$9+'Res-Appliance class'!$D42*'RES S curve-disconnect'!AJ$14+'Res-Appliance class'!$E42*'RES S curve-disconnect'!AJ$19","v":1055.3087601014247},{"$f":"'Res-Appliance class'!$B42*'RES S curve-disconnect'!AK$4+'Res-Appliance class'!$C42*'RES S curve-disconnect'!AK$9+'Res-Appliance class'!$D42*'RES S curve-disconnect'!AK$14+'Res-Appliance class'!$E42*'RES S curve-disconnect'!AK$19","v":1217.5340758655725},{"$f":"'Res-Appliance class'!$B42*'RES S curve-disconnect'!AL$4+'Res-Appliance class'!$C42*'RES S curve-disconnect'!AL$9+'Res-Appliance class'!$D42*'RES S curve-disconnect'!AL$14+'Res-Appliance class'!$E42*'RES S curve-disconnect'!AL$19","v":640.83283416115989},{"$f":"'Res-Appliance class'!$B42*'RES S curve-disconnect'!AM$4+'Res-Appliance class'!$C42*'RES S curve-disconnect'!AM$9+'Res-Appliance class'!$D42*'RES S curve-disconnect'!AM$14+'Res-Appliance class'!$E42*'RES S curve-disconnect'!AM$19","v":573.74843510967264},{"$f":"'Res-Appliance class'!$B42*'RES S curve-disconnect'!AN$4+'Res-Appliance class'!$C42*'RES S curve-disconnect'!AN$9+'Res-Appliance class'!$D42*'RES S curve-disconnect'!AN$14+'Res-Appliance class'!$E42*'RES S curve-disconnect'!AN$19","v":731.62667270034444},{"$f":"'Res-Appliance class'!$B42*'RES S curve-disconnect'!AO$4+'Res-Appliance class'!$C42*'RES S curve-disconnect'!AO$9+'Res-Appliance class'!$D42*'RES S curve-disconnect'!AO$14+'Res-Appliance class'!$E42*'RES S curve-disconnect'!AO$19","v":920.67238718031695},{"$f":"'Res-Appliance class'!$B42*'RES S curve-disconnect'!AP$4+'Res-Appliance class'!$C42*'RES S curve-disconnect'!AP$9+'Res-Appliance class'!$D42*'RES S curve-disconnect'!AP$14+'Res-Appliance class'!$E42*'RES S curve-disconnect'!AP$19","v":1092.9162815243176},{"$f":"'Res-Appliance class'!$B42*'RES S curve-disconnect'!AQ$4+'Res-Appliance class'!$C42*'RES S curve-disconnect'!AQ$9+'Res-Appliance class'!$D42*'RES S curve-disconnect'!AQ$14+'Res-Appliance class'!$E42*'RES S curve-disconnect'!AQ$19","v":1280.7984223573267},{"$f":"'Res-Appliance class'!$B42*'RES S curve-disconnect'!AR$4+'Res-Appliance class'!$C42*'RES S curve-disconnect'!AR$9+'Res-Appliance class'!$D42*'RES S curve-disconnect'!AR$14+'Res-Appliance class'!$E42*'RES S curve-disconnect'!AR$19","v":1485.6774506946454},{"$f":"'Res-Appliance class'!$B42*'RES S curve-disconnect'!AS$4+'Res-Appliance class'!$C42*'RES S curve-disconnect'!AS$9+'Res-Appliance class'!$D42*'RES S curve-disconnect'!AS$14+'Res-Appliance class'!$E42*'RES S curve-disconnect'!AS$19","v":1715.2189576478058},{"$f":"'Res-Appliance class'!$B42*'RES S curve-disconnect'!AT$4+'Res-Appliance class'!$C42*'RES S curve-disconnect'!AT$9+'Res-Appliance class'!$D42*'RES S curve-disconnect'!AT$14+'Res-Appliance class'!$E42*'RES S curve-disconnect'!AT$19","v":1970.3485231540058},{"$f":"'Res-Appliance class'!$B42*'RES S curve-disconnect'!AU$4+'Res-Appliance class'!$C42*'RES S curve-disconnect'!AU$9+'Res-Appliance class'!$D42*'RES S curve-disconnect'!AU$14+'Res-Appliance class'!$E42*'RES S curve-disconnect'!AU$19","v":2267.4892808418235},{"$f":"'Res-Appliance class'!$B42*'RES S curve-disconnect'!AV$4+'Res-Appliance class'!$C42*'RES S curve-disconnect'!AV$9+'Res-Appliance class'!$D42*'RES S curve-disconnect'!AV$14+'Res-Appliance class'!$E42*'RES S curve-disconnect'!AV$19","v":2604.413563324948},{"$f":"'Res-Appliance class'!$B42*'RES S curve-disconnect'!AW$4+'Res-Appliance class'!$C42*'RES S curve-disconnect'!AW$9+'Res-Appliance class'!$D42*'RES S curve-disconnect'!AW$14+'Res-Appliance class'!$E42*'RES S curve-disconnect'!AW$19","v":2990.7321101421762},{"$f":"'Res-Appliance class'!$B42*'RES S curve-disconnect'!AX$4+'Res-Appliance class'!$C42*'RES S curve-disconnect'!AX$9+'Res-Appliance class'!$D42*'RES S curve-disconnect'!AX$14+'Res-Appliance class'!$E42*'RES S curve-disconnect'!AX$19","v":3428.5746761934297},{"$f":"'Res-Appliance class'!$B42*'RES S curve-disconnect'!AY$4+'Res-Appliance class'!$C42*'RES S curve-disconnect'!AY$9+'Res-Appliance class'!$D42*'RES S curve-disconnect'!AY$14+'Res-Appliance class'!$E42*'RES S curve-disconnect'!AY$19","v":3934.7707545980861},{"$f":"'Res-Appliance class'!$B42*'RES S curve-disconnect'!AZ$4+'Res-Appliance class'!$C42*'RES S curve-disconnect'!AZ$9+'Res-Appliance class'!$D42*'RES S curve-disconnect'!AZ$14+'Res-Appliance class'!$E42*'RES S curve-disconnect'!AZ$19","v":4510.2193645540037},{"$f":"'Res-Appliance class'!$B42*'RES S curve-disconnect'!BA$4+'Res-Appliance class'!$C42*'RES S curve-disconnect'!BA$9+'Res-Appliance class'!$D42*'RES S curve-disconnect'!BA$14+'Res-Appliance class'!$E42*'RES S curve-disconnect'!BA$19","v":5174.4467249960544},{"$f":"'Res-Appliance class'!$B42*'RES S curve-disconnect'!BB$4+'Res-Appliance class'!$C42*'RES S curve-disconnect'!BB$9+'Res-Appliance class'!$D42*'RES S curve-disconnect'!BB$14+'Res-Appliance class'!$E42*'RES S curve-disconnect'!BB$19","v":5946.5885355772407},{"$f":"'Res-Appliance class'!$B42*'RES S curve-disconnect'!BC$4+'Res-Appliance class'!$C42*'RES S curve-disconnect'!BC$9+'Res-Appliance class'!$D42*'RES S curve-disconnect'!BC$14+'Res-Appliance class'!$E42*'RES S curve-disconnect'!BC$19","v":6866.6781954958205},{"$f":"'Res-Appliance class'!$B42*'RES S curve-disconnect'!BD$4+'Res-Appliance class'!$C42*'RES S curve-disconnect'!BD$9+'Res-Appliance class'!$D42*'RES S curve-disconnect'!BD$14+'Res-Appliance class'!$E42*'RES S curve-disconnect'!BD$19","v":7744.2509399064957},{"$f":"'Res-Appliance class'!$B42*'RES S curve-disconnect'!BE$4+'Res-Appliance class'!$C42*'RES S curve-disconnect'!BE$9+'Res-Appliance class'!$D42*'RES S curve-disconnect'!BE$14+'Res-Appliance class'!$E42*'RES S curve-disconnect'!BE$19","v":8543.004739246262},{"$f":"'Res-Appliance class'!$B42*'RES S curve-disconnect'!BF$4+'Res-Appliance class'!$C42*'RES S curve-disconnect'!BF$9+'Res-Appliance class'!$D42*'RES S curve-disconnect'!BF$14+'Res-Appliance class'!$E42*'RES S curve-disconnect'!BF$19","v":9361.2729603360203},{"$f":"'Res-Appliance class'!$B42*'RES S curve-disconnect'!BG$4+'Res-Appliance class'!$C42*'RES S curve-disconnect'!BG$9+'Res-Appliance class'!$D42*'RES S curve-disconnect'!BG$14+'Res-Appliance class'!$E42*'RES S curve-disconnect'!BG$19","v":10291.153090265943},{"$f":"'Res-Appliance class'!$B42*'RES S curve-disconnect'!BH$4+'Res-Appliance class'!$C42*'RES S curve-disconnect'!BH$9+'Res-Appliance class'!$D42*'RES S curve-disconnect'!BH$14+'Res-Appliance class'!$E42*'RES S curve-disconnect'!BH$19","v":11392.718016598588},{"$f":"'Res-Appliance class'!$B42*'RES S curve-disconnect'!BI$4+'Res-Appliance class'!$C42*'RES S curve-disconnect'!BI$9+'Res-Appliance class'!$D42*'RES S curve-disconnect'!BI$14+'Res-Appliance class'!$E42*'RES S curve-disconnect'!BI$19","v":12991.248218927623},{"$f":"'Res-Appliance class'!$B42*'RES S curve-disconnect'!BJ$4+'Res-Appliance class'!$C42*'RES S curve-disconnect'!BJ$9+'Res-Appliance class'!$D42*'RES S curve-disconnect'!BJ$14+'Res-Appliance class'!$E42*'RES S curve-disconnect'!BJ$19","v":15320.809340295722},{"$f":"'Res-Appliance class'!$B42*'RES S curve-disconnect'!BK$4+'Res-Appliance class'!$C42*'RES S curve-disconnect'!BK$9+'Res-Appliance class'!$D42*'RES S curve-disconnect'!BK$14+'Res-Appliance class'!$E42*'RES S curve-disconnect'!BK$19","v":18741.706422690688},{"$f":"'Res-Appliance class'!$B42*'RES S curve-disconnect'!BL$4+'Res-Appliance class'!$C42*'RES S curve-disconnect'!BL$9+'Res-Appliance class'!$D42*'RES S curve-disconnect'!BL$14+'Res-Appliance class'!$E42*'RES S curve-disconnect'!BL$19","v":-1455.2352090290076},{"$f":"'Res-Appliance class'!$B42*'RES S curve-disconnect'!BM$4+'Res-Appliance class'!$C42*'RES S curve-disconnect'!BM$9+'Res-Appliance class'!$D42*'RES S curve-disconnect'!BM$14+'Res-Appliance class'!$E42*'RES S curve-disconnect'!BM$19","v":-1450.7688916472762},{"$f":"'Res-Appliance class'!$B42*'RES S curve-disconnect'!BN$4+'Res-Appliance class'!$C42*'RES S curve-disconnect'!BN$9+'Res-Appliance class'!$D42*'RES S curve-disconnect'!BN$14+'Res-Appliance class'!$E42*'RES S curve-disconnect'!BN$19","v":-1449.6504496378445},{"$f":"'Res-Appliance class'!$B42*'RES S curve-disconnect'!BO$4+'Res-Appliance class'!$C42*'RES S curve-disconnect'!BO$9+'Res-Appliance class'!$D42*'RES S curve-disconnect'!BO$14+'Res-Appliance class'!$E42*'RES S curve-disconnect'!BO$19","v":-1441.8585775225952},{"$f":"'Res-Appliance class'!$B42*'RES S curve-disconnect'!BP$4+'Res-Appliance class'!$C42*'RES S curve-disconnect'!BP$9+'Res-Appliance class'!$D42*'RES S curve-disconnect'!BP$14+'Res-Appliance class'!$E42*'RES S curve-disconnect'!BP$19","v":-1437.4144892155091},{"$f":"'Res-Appliance class'!$B42*'RES S curve-disconnect'!BQ$4+'Res-Appliance class'!$C42*'RES S curve-disconnect'!BQ$9+'Res-Appliance class'!$D42*'RES S curve-disconnect'!BQ$14+'Res-Appliance class'!$E42*'RES S curve-disconnect'!BQ$19","v":-1432.9777195152369},{"$f":"'Res-Appliance class'!$B42*'RES S curve-disconnect'!BR$4+'Res-Appliance class'!$C42*'RES S curve-disconnect'!BR$9+'Res-Appliance class'!$D42*'RES S curve-disconnect'!BR$14+'Res-Appliance class'!$E42*'RES S curve-disconnect'!BR$19","v":-1431.8886432066377},{"$f":"'Res-Appliance class'!$B42*'RES S curve-disconnect'!BS$4+'Res-Appliance class'!$C42*'RES S curve-disconnect'!BS$9+'Res-Appliance class'!$D42*'RES S curve-disconnect'!BS$14+'Res-Appliance class'!$E42*'RES S curve-disconnect'!BS$19","v":-1424.1259559556113},{"$f":"'Res-Appliance class'!$B42*'RES S curve-disconnect'!BT$4+'Res-Appliance class'!$C42*'RES S curve-disconnect'!BT$9+'Res-Appliance class'!$D42*'RES S curve-disconnect'!BT$14+'Res-Appliance class'!$E42*'RES S curve-disconnect'!BT$19","v":-1419.7108728128892},{"$f":"'Res-Appliance class'!$B42*'RES S curve-disconnect'!BU$4+'Res-Appliance class'!$C42*'RES S curve-disconnect'!BU$9+'Res-Appliance class'!$D42*'RES S curve-disconnect'!BU$14+'Res-Appliance class'!$E42*'RES S curve-disconnect'!BU$19","v":-1415.3029297066605},{"$f":"'Res-Appliance class'!$B42*'RES S curve-disconnect'!BV$4+'Res-Appliance class'!$C42*'RES S curve-disconnect'!BV$9+'Res-Appliance class'!$D42*'RES S curve-disconnect'!BV$14+'Res-Appliance class'!$E42*'RES S curve-disconnect'!BV$19","v":-1414.2425025441535},{"$f":"'Res-Appliance class'!$B42*'RES S curve-disconnect'!BW$4+'Res-Appliance class'!$C42*'RES S curve-disconnect'!BW$9+'Res-Appliance class'!$D42*'RES S curve-disconnect'!BW$14+'Res-Appliance class'!$E42*'RES S curve-disconnect'!BW$19","v":-1406.5082881065091},{"$f":"'Res-Appliance class'!$B42*'RES S curve-disconnect'!BX$4+'Res-Appliance class'!$C42*'RES S curve-disconnect'!BX$9+'Res-Appliance class'!$D42*'RES S curve-disconnect'!BX$14+'Res-Appliance class'!$E42*'RES S curve-disconnect'!BX$19","v":-1402.1215025526283},{"$f":"'Res-Appliance class'!$B42*'RES S curve-disconnect'!BY$4+'Res-Appliance class'!$C42*'RES S curve-disconnect'!BY$9+'Res-Appliance class'!$D42*'RES S curve-disconnect'!BY$14+'Res-Appliance class'!$E42*'RES S curve-disconnect'!BY$19","v":-1397.7416829118324},{"$f":"'Res-Appliance class'!$B42*'RES S curve-disconnect'!BZ$4+'Res-Appliance class'!$C42*'RES S curve-disconnect'!BZ$9+'Res-Appliance class'!$D42*'RES S curve-disconnect'!BZ$14+'Res-Appliance class'!$E42*'RES S curve-disconnect'!BZ$19","v":-1396.7092061854923},{"$f":"'Res-Appliance class'!$B42*'RES S curve-disconnect'!CA$4+'Res-Appliance class'!$C42*'RES S curve-disconnect'!CA$9+'Res-Appliance class'!$D42*'RES S curve-disconnect'!CA$14+'Res-Appliance class'!$E42*'RES S curve-disconnect'!CA$19","v":-1389.002770241952},{"$f":"'Res-Appliance class'!$B42*'RES S curve-disconnect'!CB$4+'Res-Appliance class'!$C42*'RES S curve-disconnect'!CB$9+'Res-Appliance class'!$D42*'RES S curve-disconnect'!CB$14+'Res-Appliance class'!$E42*'RES S curve-disconnect'!CB$19","v":-1384.6435923204117},{"$f":"'Res-Appliance class'!$B42*'RES S curve-disconnect'!CC$4+'Res-Appliance class'!$C42*'RES S curve-disconnect'!CC$9+'Res-Appliance class'!$D42*'RES S curve-disconnect'!CC$14+'Res-Appliance class'!$E42*'RES S curve-disconnect'!CC$19","v":-1380.2912105236387},{"$f":"'Res-Appliance class'!$B42*'RES S curve-disconnect'!CD$4+'Res-Appliance class'!$C42*'RES S curve-disconnect'!CD$9+'Res-Appliance class'!$D42*'RES S curve-disconnect'!CD$14+'Res-Appliance class'!$E42*'RES S curve-disconnect'!CD$19","v":-1443.5302715757673}]
["South Gippsland (S)",null,{"$f":"'Res-Appliance class'!$B43*'RES S curve-disconnect'!C$4+'Res-Appliance class'!$C43*'RES S curve-disconnect'!C$9+'Res-Appliance class'!$D43*'RES S curve-disconnect'!C$14+'Res-Appliance class'!$E43*'RES S curve-disconnect'!C$19","v":-4198.6708241094266},{"$f":"'Res-Appliance class'!$B43*'RES S curve-disconnect'!D$4+'Res-Appliance class'!$C43*'RES S curve-disconnect'!D$9+'Res-Appliance class'!$D43*'RES S curve-disconnect'!D$14+'Res-Appliance class'!$E43*'RES S curve-disconnect'!D$19","v":-4626.4715333919621},{"$f":"'Res-Appliance class'!$B43*'RES S curve-disconnect'!E$4+'Res-Appliance class'!$C43*'RES S curve-disconnect'!E$9+'Res-Appliance class'!$D43*'RES S curve-disconnect'!E$14+'Res-Appliance class'!$E43*'RES S curve-disconnect'!E$19","v":-4085.3182571983698},{"$f":"'Res-Appliance class'!$B43*'RES S curve-disconnect'!F$4+'Res-Appliance class'!$C43*'RES S curve-disconnect'!F$9+'Res-Appliance class'!$D43*'RES S curve-disconnect'!F$14+'Res-Appliance class'!$E43*'RES S curve-disconnect'!F$19","v":-3962.8582594987929},{"$f":"'Res-Appliance class'!$B43*'RES S curve-disconnect'!G$4+'Res-Appliance class'!$C43*'RES S curve-disconnect'!G$9+'Res-Appliance class'!$D43*'RES S curve-disconnect'!G$14+'Res-Appliance class'!$E43*'RES S curve-disconnect'!G$19","v":-4819.9231599689292},{"$f":"'Res-Appliance class'!$B43*'RES S curve-disconnect'!H$4+'Res-Appliance class'!$C43*'RES S curve-disconnect'!H$9+'Res-Appliance class'!$D43*'RES S curve-disconnect'!H$14+'Res-Appliance class'!$E43*'RES S curve-disconnect'!H$19","v":-4866.4688356162751},{"$f":"'Res-Appliance class'!$B43*'RES S curve-disconnect'!I$4+'Res-Appliance class'!$C43*'RES S curve-disconnect'!I$9+'Res-Appliance class'!$D43*'RES S curve-disconnect'!I$14+'Res-Appliance class'!$E43*'RES S curve-disconnect'!I$19","v":-4516.2332294983498},{"$f":"'Res-Appliance class'!$B43*'RES S curve-disconnect'!J$4+'Res-Appliance class'!$C43*'RES S curve-disconnect'!J$9+'Res-Appliance class'!$D43*'RES S curve-disconnect'!J$14+'Res-Appliance class'!$E43*'RES S curve-disconnect'!J$19","v":-4857.4174556440594},{"$f":"'Res-Appliance class'!$B43*'RES S curve-disconnect'!K$4+'Res-Appliance class'!$C43*'RES S curve-disconnect'!K$9+'Res-Appliance class'!$D43*'RES S curve-disconnect'!K$14+'Res-Appliance class'!$E43*'RES S curve-disconnect'!K$19","v":-4181.8831517835506},{"$f":"'Res-Appliance class'!$B43*'RES S curve-disconnect'!L$4+'Res-Appliance class'!$C43*'RES S curve-disconnect'!L$9+'Res-Appliance class'!$D43*'RES S curve-disconnect'!L$14+'Res-Appliance class'!$E43*'RES S curve-disconnect'!L$19","v":-4469.7325716172509},{"$f":"'Res-Appliance class'!$B43*'RES S curve-disconnect'!M$4+'Res-Appliance class'!$C43*'RES S curve-disconnect'!M$9+'Res-Appliance class'!$D43*'RES S curve-disconnect'!M$14+'Res-Appliance class'!$E43*'RES S curve-disconnect'!M$19","v":-4966.7122276183582},{"$f":"'Res-Appliance class'!$B43*'RES S curve-disconnect'!N$4+'Res-Appliance class'!$C43*'RES S curve-disconnect'!N$9+'Res-Appliance class'!$D43*'RES S curve-disconnect'!N$14+'Res-Appliance class'!$E43*'RES S curve-disconnect'!N$19","v":-5010.6652711749593},{"$f":"'Res-Appliance class'!$B43*'RES S curve-disconnect'!O$4+'Res-Appliance class'!$C43*'RES S curve-disconnect'!O$9+'Res-Appliance class'!$D43*'RES S curve-disconnect'!O$14+'Res-Appliance class'!$E43*'RES S curve-disconnect'!O$19","v":-4548.2127434555714},{"$f":"'Res-Appliance class'!$B43*'RES S curve-disconnect'!P$4+'Res-Appliance class'!$C43*'RES S curve-disconnect'!P$9+'Res-Appliance class'!$D43*'RES S curve-disconnect'!P$14+'Res-Appliance class'!$E43*'RES S curve-disconnect'!P$19","v":-4182.3108727284543},{"$f":"'Res-Appliance class'!$B43*'RES S curve-disconnect'!Q$4+'Res-Appliance class'!$C43*'RES S curve-disconnect'!Q$9+'Res-Appliance class'!$D43*'RES S curve-disconnect'!Q$14+'Res-Appliance class'!$E43*'RES S curve-disconnect'!Q$19","v":-3631.4827699272473},{"$f":"'Res-Appliance class'!$B43*'RES S curve-disconnect'!R$4+'Res-Appliance class'!$C43*'RES S curve-disconnect'!R$9+'Res-Appliance class'!$D43*'RES S curve-disconnect'!R$14+'Res-Appliance class'!$E43*'RES S curve-disconnect'!R$19","v":-3318.0552905500858},{"$f":"'Res-Appliance class'!$B43*'RES S curve-disconnect'!S$4+'Res-Appliance class'!$C43*'RES S curve-disconnect'!S$9+'Res-Appliance class'!$D43*'RES S curve-disconnect'!S$14+'Res-Appliance class'!$E43*'RES S curve-disconnect'!S$19","v":-2817.4427276634697},{"$f":"'Res-Appliance class'!$B43*'RES S curve-disconnect'!T$4+'Res-Appliance class'!$C43*'RES S curve-disconnect'!T$9+'Res-Appliance class'!$D43*'RES S curve-disconnect'!T$14+'Res-Appliance class'!$E43*'RES S curve-disconnect'!T$19","v":-2552.8315283362781},{"$f":"'Res-Appliance class'!$B43*'RES S curve-disconnect'!U$4+'Res-Appliance class'!$C43*'RES S curve-disconnect'!U$9+'Res-Appliance class'!$D43*'RES S curve-disconnect'!U$14+'Res-Appliance class'!$E43*'RES S curve-disconnect'!U$19","v":-2244.5228468794403},{"$f":"'Res-Appliance class'!$B43*'RES S curve-disconnect'!V$4+'Res-Appliance class'!$C43*'RES S curve-disconnect'!V$9+'Res-Appliance class'!$D43*'RES S curve-disconnect'!V$14+'Res-Appliance class'!$E43*'RES S curve-disconnect'!V$19","v":-2030.3356290082752},{"$f":"'Res-Appliance class'!$B43*'RES S curve-disconnect'!W$4+'Res-Appliance class'!$C43*'RES S curve-disconnect'!W$9+'Res-Appliance class'!$D43*'RES S curve-disconnect'!W$14+'Res-Appliance class'!$E43*'RES S curve-disconnect'!W$19","v":-1862.9761238753858},{"$f":"'Res-Appliance class'!$B43*'RES S curve-disconnect'!X$4+'Res-Appliance class'!$C43*'RES S curve-disconnect'!X$9+'Res-Appliance class'!$D43*'RES S curve-disconnect'!X$14+'Res-Appliance class'!$E43*'RES S curve-disconnect'!X$19","v":-1493.3510340686821},{"$f":"'Res-Appliance class'!$B43*'RES S curve-disconnect'!Y$4+'Res-Appliance class'!$C43*'RES S curve-disconnect'!Y$9+'Res-Appliance class'!$D43*'RES S curve-disconnect'!Y$14+'Res-Appliance class'!$E43*'RES S curve-disconnect'!Y$19","v":-1118.412479511147},{"$f":"'Res-Appliance class'!$B43*'RES S curve-disconnect'!Z$4+'Res-Appliance class'!$C43*'RES S curve-disconnect'!Z$9+'Res-Appliance class'!$D43*'RES S curve-disconnect'!Z$14+'Res-Appliance class'!$E43*'RES S curve-disconnect'!Z$19","v":-862.76830305477915},{"$f":"'Res-Appliance class'!$B43*'RES S curve-disconnect'!AA$4+'Res-Appliance class'!$C43*'RES S curve-disconnect'!AA$9+'Res-Appliance class'!$D43*'RES S curve-disconnect'!AA$14+'Res-Appliance class'!$E43*'RES S curve-disconnect'!AA$19","v":-605.95258406075516},{"$f":"'Res-Appliance class'!$B43*'RES S curve-disconnect'!AB$4+'Res-Appliance class'!$C43*'RES S curve-disconnect'!AB$9+'Res-Appliance class'!$D43*'RES S curve-disconnect'!AB$14+'Res-Appliance class'!$E43*'RES S curve-disconnect'!AB$19","v":-400.08311354941486},{"$f":"'Res-Appliance class'!$B43*'RES S curve-disconnect'!AC$4+'Res-Appliance class'!$C43*'RES S curve-disconnect'!AC$9+'Res-Appliance class'!$D43*'RES S curve-disconnect'!AC$14+'Res-Appliance class'!$E43*'RES S curve-disconnect'!AC$19","v":-200.89256824844097},{"$f":"'Res-Appliance class'!$B43*'RES S curve-disconnect'!AD$4+'Res-Appliance class'!$C43*'RES S curve-disconnect'!AD$9+'Res-Appliance class'!$D43*'RES S curve-disconnect'!AD$14+'Res-Appliance class'!$E43*'RES S curve-disconnect'!AD$19","v":-17.880456490561414},{"$f":"'Res-Appliance class'!$B43*'RES S curve-disconnect'!AE$4+'Res-Appliance class'!$C43*'RES S curve-disconnect'!AE$9+'Res-Appliance class'!$D43*'RES S curve-disconnect'!AE$14+'Res-Appliance class'!$E43*'RES S curve-disconnect'!AE$19","v":175.90711473912586},{"$f":"'Res-Appliance class'!$B43*'RES S curve-disconnect'!AF$4+'Res-Appliance class'!$C43*'RES S curve-disconnect'!AF$9+'Res-Appliance class'!$D43*'RES S curve-disconnect'!AF$14+'Res-Appliance class'!$E43*'RES S curve-disconnect'!AF$19","v":423.59263391698994},{"$f":"'Res-Appliance class'!$B43*'RES S curve-disconnect'!AG$4+'Res-Appliance class'!$C43*'RES S curve-disconnect'!AG$9+'Res-Appliance class'!$D43*'RES S curve-disconnect'!AG$14+'Res-Appliance class'!$E43*'RES S curve-disconnect'!AG$19","v":592.51091904579255},{"$f":"'Res-Appliance class'!$B43*'RES S curve-disconnect'!AH$4+'Res-Appliance class'!$C43*'RES S curve-disconnect'!AH$9+'Res-Appliance class'!$D43*'RES S curve-disconnect'!AH$14+'Res-Appliance class'!$E43*'RES S curve-disconnect'!AH$19","v":826.94344385751606},{"$f":"'Res-Appliance class'!$B43*'RES S curve-disconnect'!AI$4+'Res-Appliance class'!$C43*'RES S curve-disconnect'!AI$9+'Res-Appliance class'!$D43*'RES S curve-disconnect'!AI$14+'Res-Appliance class'!$E43*'RES S curve-disconnect'!AI$19","v":1040.6343673485153},{"$f":"'Res-Appliance class'!$B43*'RES S curve-disconnect'!AJ$4+'Res-Appliance class'!$C43*'RES S curve-disconnect'!AJ$9+'Res-Appliance class'!$D43*'RES S curve-disconnect'!AJ$14+'Res-Appliance class'!$E43*'RES S curve-disconnect'!AJ$19","v":1232.8775107435445},{"$f":"'Res-Appliance class'!$B43*'RES S curve-disconnect'!AK$4+'Res-Appliance class'!$C43*'RES S curve-disconnect'!AK$9+'Res-Appliance class'!$D43*'RES S curve-disconnect'!AK$14+'Res-Appliance class'!$E43*'RES S curve-disconnect'!AK$19","v":1437.0722523509357},{"$f":"'Res-Appliance class'!$B43*'RES S curve-disconnect'!AL$4+'Res-Appliance class'!$C43*'RES S curve-disconnect'!AL$9+'Res-Appliance class'!$D43*'RES S curve-disconnect'!AL$14+'Res-Appliance class'!$E43*'RES S curve-disconnect'!AL$19","v":722.52591325486219},{"$f":"'Res-Appliance class'!$B43*'RES S curve-disconnect'!AM$4+'Res-Appliance class'!$C43*'RES S curve-disconnect'!AM$9+'Res-Appliance class'!$D43*'RES S curve-disconnect'!AM$14+'Res-Appliance class'!$E43*'RES S curve-disconnect'!AM$19","v":633.44048027028134},{"$f":"'Res-Appliance class'!$B43*'RES S curve-disconnect'!AN$4+'Res-Appliance class'!$C43*'RES S curve-disconnect'!AN$9+'Res-Appliance class'!$D43*'RES S curve-disconnect'!AN$14+'Res-Appliance class'!$E43*'RES S curve-disconnect'!AN$19","v":828.98270484964314},{"$f":"'Res-Appliance class'!$B43*'RES S curve-disconnect'!AO$4+'Res-Appliance class'!$C43*'RES S curve-disconnect'!AO$9+'Res-Appliance class'!$D43*'RES S curve-disconnect'!AO$14+'Res-Appliance class'!$E43*'RES S curve-disconnect'!AO$19","v":1066.0351215799351},{"$f":"'Res-Appliance class'!$B43*'RES S curve-disconnect'!AP$4+'Res-Appliance class'!$C43*'RES S curve-disconnect'!AP$9+'Res-Appliance class'!$D43*'RES S curve-disconnect'!AP$14+'Res-Appliance class'!$E43*'RES S curve-disconnect'!AP$19","v":1283.7938029901477},{"$f":"'Res-Appliance class'!$B43*'RES S curve-disconnect'!AQ$4+'Res-Appliance class'!$C43*'RES S curve-disconnect'!AQ$9+'Res-Appliance class'!$D43*'RES S curve-disconnect'!AQ$14+'Res-Appliance class'!$E43*'RES S curve-disconnect'!AQ$19","v":1519.4941717656138},{"$f":"'Res-Appliance class'!$B43*'RES S curve-disconnect'!AR$4+'Res-Appliance class'!$C43*'RES S curve-disconnect'!AR$9+'Res-Appliance class'!$D43*'RES S curve-disconnect'!AR$14+'Res-Appliance class'!$E43*'RES S curve-disconnect'!AR$19","v":1777.5576717159026},{"$f":"'Res-Appliance class'!$B43*'RES S curve-disconnect'!AS$4+'Res-Appliance class'!$C43*'RES S curve-disconnect'!AS$9+'Res-Appliance class'!$D43*'RES S curve-disconnect'!AS$14+'Res-Appliance class'!$E43*'RES S curve-disconnect'!AS$19","v":2066.9485921465234},{"$f":"'Res-Appliance class'!$B43*'RES S curve-disconnect'!AT$4+'Res-Appliance class'!$C43*'RES S curve-disconnect'!AT$9+'Res-Appliance class'!$D43*'RES S curve-disconnect'!AT$14+'Res-Appliance class'!$E43*'RES S curve-disconnect'!AT$19","v":2389.8093840392598},{"$f":"'Res-Appliance class'!$B43*'RES S curve-disconnect'!AU$4+'Res-Appliance class'!$C43*'RES S curve-disconnect'!AU$9+'Res-Appliance class'!$D43*'RES S curve-disconnect'!AU$14+'Res-Appliance class'!$E43*'RES S curve-disconnect'!AU$19","v":2764.3367397233214},{"$f":"'Res-Appliance class'!$B43*'RES S curve-disconnect'!AV$4+'Res-Appliance class'!$C43*'RES S curve-disconnect'!AV$9+'Res-Appliance class'!$D43*'RES S curve-disconnect'!AV$14+'Res-Appliance class'!$E43*'RES S curve-disconnect'!AV$19","v":3190.5085423509295},{"$f":"'Res-Appliance class'!$B43*'RES S curve-disconnect'!AW$4+'Res-Appliance class'!$C43*'RES S curve-disconnect'!AW$9+'Res-Appliance class'!$D43*'RES S curve-disconnect'!AW$14+'Res-Appliance class'!$E43*'RES S curve-disconnect'!AW$19","v":3679.8636297956314},{"$f":"'Res-Appliance class'!$B43*'RES S curve-disconnect'!AX$4+'Res-Appliance class'!$C43*'RES S curve-disconnect'!AX$9+'Res-Appliance class'!$D43*'RES S curve-disconnect'!AX$14+'Res-Appliance class'!$E43*'RES S curve-disconnect'!AX$19","v":4236.3242663814426},{"$f":"'Res-Appliance class'!$B43*'RES S curve-disconnect'!AY$4+'Res-Appliance class'!$C43*'RES S curve-disconnect'!AY$9+'Res-Appliance class'!$D43*'RES S curve-disconnect'!AY$14+'Res-Appliance class'!$E43*'RES S curve-disconnect'!AY$19","v":4878.9001139380061},{"$f":"'Res-Appliance class'!$B43*'RES S curve-disconnect'!AZ$4+'Res-Appliance class'!$C43*'RES S curve-disconnect'!AZ$9+'Res-Appliance class'!$D43*'RES S curve-disconnect'!AZ$14+'Res-Appliance class'!$E43*'RES S curve-disconnect'!AZ$19","v":5611.8224244653074},{"$f":"'Res-Appliance class'!$B43*'RES S curve-disconnect'!BA$4+'Res-Appliance class'!$C43*'RES S curve-disconnect'!BA$9+'Res-Appliance class'!$D43*'RES S curve-disconnect'!BA$14+'Res-Appliance class'!$E43*'RES S curve-disconnect'!BA$19","v":6459.4909732204515},{"$f":"'Res-Appliance class'!$B43*'RES S curve-disconnect'!BB$4+'Res-Appliance class'!$C43*'RES S curve-disconnect'!BB$9+'Res-Appliance class'!$D43*'RES S curve-disconnect'!BB$14+'Res-Appliance class'!$E43*'RES S curve-disconnect'!BB$19","v":7447.8556270323134},{"$f":"'Res-Appliance class'!$B43*'RES S curve-disconnect'!BC$4+'Res-Appliance class'!$C43*'RES S curve-disconnect'!BC$9+'Res-Appliance class'!$D43*'RES S curve-disconnect'!BC$14+'Res-Appliance class'!$E43*'RES S curve-disconnect'!BC$19","v":8626.1275393057676},{"$f":"'Res-Appliance class'!$B43*'RES S curve-disconnect'!BD$4+'Res-Appliance class'!$C43*'RES S curve-disconnect'!BD$9+'Res-Appliance class'!$D43*'RES S curve-disconnect'!BD$14+'Res-Appliance class'!$E43*'RES S curve-disconnect'!BD$19","v":9757.717813793759},{"$f":"'Res-Appliance class'!$B43*'RES S curve-disconnect'!BE$4+'Res-Appliance class'!$C43*'RES S curve-disconnect'!BE$9+'Res-Appliance class'!$D43*'RES S curve-disconnect'!BE$14+'Res-Appliance class'!$E43*'RES S curve-disconnect'!BE$19","v":10790.304886711139},{"$f":"'Res-Appliance class'!$B43*'RES S curve-disconnect'!BF$4+'Res-Appliance class'!$C43*'RES S curve-disconnect'!BF$9+'Res-Appliance class'!$D43*'RES S curve-disconnect'!BF$14+'Res-Appliance class'!$E43*'RES S curve-disconnect'!BF$19","v":11847.336589654213},{"$f":"'Res-Appliance class'!$B43*'RES S curve-disconnect'!BG$4+'Res-Appliance class'!$C43*'RES S curve-disconnect'!BG$9+'Res-Appliance class'!$D43*'RES S curve-disconnect'!BG$14+'Res-Appliance class'!$E43*'RES S curve-disconnect'!BG$19","v":13045.568163507312},{"$f":"'Res-Appliance class'!$B43*'RES S curve-disconnect'!BH$4+'Res-Appliance class'!$C43*'RES S curve-disconnect'!BH$9+'Res-Appliance class'!$D43*'RES S curve-disconnect'!BH$14+'Res-Appliance class'!$E43*'RES S curve-disconnect'!BH$19","v":14466.784556974375},{"$f":"'Res-Appliance class'!$B43*'RES S curve-disconnect'!BI$4+'Res-Appliance class'!$C43*'RES S curve-disconnect'!BI$9+'Res-Appliance class'!$D43*'RES S curve-disconnect'!BI$14+'Res-Appliance class'!$E43*'RES S curve-disconnect'!BI$19","v":16527.29932769603},{"$f":"'Res-Appliance class'!$B43*'RES S curve-disconnect'!BJ$4+'Res-Appliance class'!$C43*'RES S curve-disconnect'!BJ$9+'Res-Appliance class'!$D43*'RES S curve-disconnect'!BJ$14+'Res-Appliance class'!$E43*'RES S curve-disconnect'!BJ$19","v":19539.154046616604},{"$f":"'Res-Appliance class'!$B43*'RES S curve-disconnect'!BK$4+'Res-Appliance class'!$C43*'RES S curve-disconnect'!BK$9+'Res-Appliance class'!$D43*'RES S curve-disconnect'!BK$14+'Res-Appliance class'!$E43*'RES S curve-disconnect'!BK$19","v":23975.382237244601},{"$f":"'Res-Appliance class'!$B43*'RES S curve-disconnect'!BL$4+'Res-Appliance class'!$C43*'RES S curve-disconnect'!BL$9+'Res-Appliance class'!$D43*'RES S curve-disconnect'!BL$14+'Res-Appliance class'!$E43*'RES S curve-disconnect'!BL$19","v":-1883.1821578666729},{"$f":"'Res-Appliance class'!$B43*'RES S curve-disconnect'!BM$4+'Res-Appliance class'!$C43*'RES S curve-disconnect'!BM$9+'Res-Appliance class'!$D43*'RES S curve-disconnect'!BM$14+'Res-Appliance class'!$E43*'RES S curve-disconnect'!BM$19","v":-1877.4443458195428},{"$f":"'Res-Appliance class'!$B43*'RES S curve-disconnect'!BN$4+'Res-Appliance class'!$C43*'RES S curve-disconnect'!BN$9+'Res-Appliance class'!$D43*'RES S curve-disconnect'!BN$14+'Res-Appliance class'!$E43*'RES S curve-disconnect'!BN$19","v":-1875.0558949538424},{"$f":"'Res-Appliance class'!$B43*'RES S curve-disconnect'!BO$4+'Res-Appliance class'!$C43*'RES S curve-disconnect'!BO$9+'Res-Appliance class'!$D43*'RES S curve-disconnect'!BO$14+'Res-Appliance class'!$E43*'RES S curve-disconnect'!BO$19","v":-1865.9954910157885},{"$f":"'Res-Appliance class'!$B43*'RES S curve-disconnect'!BP$4+'Res-Appliance class'!$C43*'RES S curve-disconnect'!BP$9+'Res-Appliance class'!$D43*'RES S curve-disconnect'!BP$14+'Res-Appliance class'!$E43*'RES S curve-disconnect'!BP$19","v":-1860.2843391977322},{"$f":"'Res-Appliance class'!$B43*'RES S curve-disconnect'!BQ$4+'Res-Appliance class'!$C43*'RES S curve-disconnect'!BQ$9+'Res-Appliance class'!$D43*'RES S curve-disconnect'!BQ$14+'Res-Appliance class'!$E43*'RES S curve-disconnect'!BQ$19","v":-1854.5819656303925},{"$f":"'Res-Appliance class'!$B43*'RES S curve-disconnect'!BR$4+'Res-Appliance class'!$C43*'RES S curve-disconnect'!BR$9+'Res-Appliance class'!$D43*'RES S curve-disconnect'!BR$14+'Res-Appliance class'!$E43*'RES S curve-disconnect'!BR$19","v":-1852.2287364840572},{"$f":"'Res-Appliance class'!$B43*'RES S curve-disconnect'!BS$4+'Res-Appliance class'!$C43*'RES S curve-disconnect'!BS$9+'Res-Appliance class'!$D43*'RES S curve-disconnect'!BS$14+'Res-Appliance class'!$E43*'RES S curve-disconnect'!BS$19","v":-1843.203338863078},{"$f":"'Res-Appliance class'!$B43*'RES S curve-disconnect'!BT$4+'Res-Appliance class'!$C43*'RES S curve-disconnect'!BT$9+'Res-Appliance class'!$D43*'RES S curve-disconnect'!BT$14+'Res-Appliance class'!$E43*'RES S curve-disconnect'!BT$19","v":-1837.5269793093312},{"$f":"'Res-Appliance class'!$B43*'RES S curve-disconnect'!BU$4+'Res-Appliance class'!$C43*'RES S curve-disconnect'!BU$9+'Res-Appliance class'!$D43*'RES S curve-disconnect'!BU$14+'Res-Appliance class'!$E43*'RES S curve-disconnect'!BU$19","v":-1831.8591852945087},{"$f":"'Res-Appliance class'!$B43*'RES S curve-disconnect'!BV$4+'Res-Appliance class'!$C43*'RES S curve-disconnect'!BV$9+'Res-Appliance class'!$D43*'RES S curve-disconnect'!BV$14+'Res-Appliance class'!$E43*'RES S curve-disconnect'!BV$19","v":-1829.5403243213748},{"$f":"'Res-Appliance class'!$B43*'RES S curve-disconnect'!BW$4+'Res-Appliance class'!$C43*'RES S curve-disconnect'!BW$9+'Res-Appliance class'!$D43*'RES S curve-disconnect'!BW$14+'Res-Appliance class'!$E43*'RES S curve-disconnect'!BW$19","v":-1820.5490848183099},{"$f":"'Res-Appliance class'!$B43*'RES S curve-disconnect'!BX$4+'Res-Appliance class'!$C43*'RES S curve-disconnect'!BX$9+'Res-Appliance class'!$D43*'RES S curve-disconnect'!BX$14+'Res-Appliance class'!$E43*'RES S curve-disconnect'!BX$19","v":-1814.9066746428334},{"$f":"'Res-Appliance class'!$B43*'RES S curve-disconnect'!BY$4+'Res-Appliance class'!$C43*'RES S curve-disconnect'!BY$9+'Res-Appliance class'!$D43*'RES S curve-disconnect'!BY$14+'Res-Appliance class'!$E43*'RES S curve-disconnect'!BY$19","v":-1809.2726225739423},{"$f":"'Res-Appliance class'!$B43*'RES S curve-disconnect'!BZ$4+'Res-Appliance class'!$C43*'RES S curve-disconnect'!BZ$9+'Res-Appliance class'!$D43*'RES S curve-disconnect'!BZ$14+'Res-Appliance class'!$E43*'RES S curve-disconnect'!BZ$19","v":-1806.9872974134182},{"$f":"'Res-Appliance class'!$B43*'RES S curve-disconnect'!CA$4+'Res-Appliance class'!$C43*'RES S curve-disconnect'!CA$9+'Res-Appliance class'!$D43*'RES S curve-disconnect'!CA$14+'Res-Appliance class'!$E43*'RES S curve-disconnect'!CA$19","v":-1798.0293888804331},{"$f":"'Res-Appliance class'!$B43*'RES S curve-disconnect'!CB$4+'Res-Appliance class'!$C43*'RES S curve-disconnect'!CB$9+'Res-Appliance class'!$D43*'RES S curve-disconnect'!CB$14+'Res-Appliance class'!$E43*'RES S curve-disconnect'!CB$19","v":-1792.4201061151157},{"$f":"'Res-Appliance class'!$B43*'RES S curve-disconnect'!CC$4+'Res-Appliance class'!$C43*'RES S curve-disconnect'!CC$9+'Res-Appliance class'!$D43*'RES S curve-disconnect'!CC$14+'Res-Appliance class'!$E43*'RES S curve-disconnect'!CC$19","v":-1786.8189791709481},{"$f":"'Res-Appliance class'!$B43*'RES S curve-disconnect'!CD$4+'Res-Appliance class'!$C43*'RES S curve-disconnect'!CD$9+'Res-Appliance class'!$D43*'RES S curve-disconnect'!CD$14+'Res-Appliance class'!$E43*'RES S curve-disconnect'!CD$19","v":-1869.8939815006333}]
["Stonnington (C)",null,{"$f":"'Res-Appliance class'!$B44*'RES S curve-disconnect'!C$4+'Res-Appliance class'!$C44*'RES S curve-disconnect'!C$9+'Res-Appliance class'!$D44*'RES S curve-disconnect'!C$14+'Res-Appliance class'!$E44*'RES S curve-disconnect'!C$19","v":-3539.9338913572278},{"$f":"'Res-Appliance class'!$B44*'RES S curve-disconnect'!D$4+'Res-Appliance class'!$C44*'RES S curve-disconnect'!D$9+'Res-Appliance class'!$D44*'RES S curve-disconnect'!D$14+'Res-Appliance class'!$E44*'RES S curve-disconnect'!D$19","v":-3927.4790591437695},{"$f":"'Res-Appliance class'!$B44*'RES S curve-disconnect'!E$4+'Res-Appliance class'!$C44*'RES S curve-disconnect'!E$9+'Res-Appliance class'!$D44*'RES S curve-disconnect'!E$14+'Res-Appliance class'!$E44*'RES S curve-disconnect'!E$19","v":-3439.0660906678877},{"$f":"'Res-Appliance class'!$B44*'RES S curve-disconnect'!F$4+'Res-Appliance class'!$C44*'RES S curve-disconnect'!F$9+'Res-Appliance class'!$D44*'RES S curve-disconnect'!F$14+'Res-Appliance class'!$E44*'RES S curve-disconnect'!F$19","v":-3330.5898878139315},{"$f":"'Res-Appliance class'!$B44*'RES S curve-disconnect'!G$4+'Res-Appliance class'!$C44*'RES S curve-disconnect'!G$9+'Res-Appliance class'!$D44*'RES S curve-disconnect'!G$14+'Res-Appliance class'!$E44*'RES S curve-disconnect'!G$19","v":-4156.7222263160802},{"$f":"'Res-Appliance class'!$B44*'RES S curve-disconnect'!H$4+'Res-Appliance class'!$C44*'RES S curve-disconnect'!H$9+'Res-Appliance class'!$D44*'RES S curve-disconnect'!H$14+'Res-Appliance class'!$E44*'RES S curve-disconnect'!H$19","v":-4185.0339171133946},{"$f":"'Res-Appliance class'!$B44*'RES S curve-disconnect'!I$4+'Res-Appliance class'!$C44*'RES S curve-disconnect'!I$9+'Res-Appliance class'!$D44*'RES S curve-disconnect'!I$14+'Res-Appliance class'!$E44*'RES S curve-disconnect'!I$19","v":-3864.392393151184},{"$f":"'Res-Appliance class'!$B44*'RES S curve-disconnect'!J$4+'Res-Appliance class'!$C44*'RES S curve-disconnect'!J$9+'Res-Appliance class'!$D44*'RES S curve-disconnect'!J$14+'Res-Appliance class'!$E44*'RES S curve-disconnect'!J$19","v":-4149.0951464715636},{"$f":"'Res-Appliance class'!$B44*'RES S curve-disconnect'!K$4+'Res-Appliance class'!$C44*'RES S curve-disconnect'!K$9+'Res-Appliance class'!$D44*'RES S curve-disconnect'!K$14+'Res-Appliance class'!$E44*'RES S curve-disconnect'!K$19","v":-3530.2380443908078},{"$f":"'Res-Appliance class'!$B44*'RES S curve-disconnect'!L$4+'Res-Appliance class'!$C44*'RES S curve-disconnect'!L$9+'Res-Appliance class'!$D44*'RES S curve-disconnect'!L$14+'Res-Appliance class'!$E44*'RES S curve-disconnect'!L$19","v":-3792.9277894563829},{"$f":"'Res-Appliance class'!$B44*'RES S curve-disconnect'!M$4+'Res-Appliance class'!$C44*'RES S curve-disconnect'!M$9+'Res-Appliance class'!$D44*'RES S curve-disconnect'!M$14+'Res-Appliance class'!$E44*'RES S curve-disconnect'!M$19","v":-4252.3146495453657},{"$f":"'Res-Appliance class'!$B44*'RES S curve-disconnect'!N$4+'Res-Appliance class'!$C44*'RES S curve-disconnect'!N$9+'Res-Appliance class'!$D44*'RES S curve-disconnect'!N$14+'Res-Appliance class'!$E44*'RES S curve-disconnect'!N$19","v":-4294.9081982730249},{"$f":"'Res-Appliance class'!$B44*'RES S curve-disconnect'!O$4+'Res-Appliance class'!$C44*'RES S curve-disconnect'!O$9+'Res-Appliance class'!$D44*'RES S curve-disconnect'!O$14+'Res-Appliance class'!$E44*'RES S curve-disconnect'!O$19","v":-3871.2709023798707},{"$f":"'Res-Appliance class'!$B44*'RES S curve-disconnect'!P$4+'Res-Appliance class'!$C44*'RES S curve-disconnect'!P$9+'Res-Appliance class'!$D44*'RES S curve-disconnect'!P$14+'Res-Appliance class'!$E44*'RES S curve-disconnect'!P$19","v":-3536.0908355752308},{"$f":"'Res-Appliance class'!$B44*'RES S curve-disconnect'!Q$4+'Res-Appliance class'!$C44*'RES S curve-disconnect'!Q$9+'Res-Appliance class'!$D44*'RES S curve-disconnect'!Q$14+'Res-Appliance class'!$E44*'RES S curve-disconnect'!Q$19","v":-3030.6338035807858},{"$f":"'Res-Appliance class'!$B44*'RES S curve-disconnect'!R$4+'Res-Appliance class'!$C44*'RES S curve-disconnect'!R$9+'Res-Appliance class'!$D44*'RES S curve-disconnect'!R$14+'Res-Appliance class'!$E44*'RES S curve-disconnect'!R$19","v":-2743.8497965810852},{"$f":"'Res-Appliance class'!$B44*'RES S curve-disconnect'!S$4+'Res-Appliance class'!$C44*'RES S curve-disconnect'!S$9+'Res-Appliance class'!$D44*'RES S curve-disconnect'!S$14+'Res-Appliance class'!$E44*'RES S curve-disconnect'!S$19","v":-2282.5731996305244},{"$f":"'Res-Appliance class'!$B44*'RES S curve-disconnect'!T$4+'Res-Appliance class'!$C44*'RES S curve-disconnect'!T$9+'Res-Appliance class'!$D44*'RES S curve-disconnect'!T$14+'Res-Appliance class'!$E44*'RES S curve-disconnect'!T$19","v":-2044.216354146598},{"$f":"'Res-Appliance class'!$B44*'RES S curve-disconnect'!U$4+'Res-Appliance class'!$C44*'RES S curve-disconnect'!U$9+'Res-Appliance class'!$D44*'RES S curve-disconnect'!U$14+'Res-Appliance class'!$E44*'RES S curve-disconnect'!U$19","v":-1763.5044971954669},{"$f":"'Res-Appliance class'!$B44*'RES S curve-disconnect'!V$4+'Res-Appliance class'!$C44*'RES S curve-disconnect'!V$9+'Res-Appliance class'!$D44*'RES S curve-disconnect'!V$14+'Res-Appliance class'!$E44*'RES S curve-disconnect'!V$19","v":-1569.0018363103491},{"$f":"'Res-Appliance class'!$B44*'RES S curve-disconnect'!W$4+'Res-Appliance class'!$C44*'RES S curve-disconnect'!W$9+'Res-Appliance class'!$D44*'RES S curve-disconnect'!W$14+'Res-Appliance class'!$E44*'RES S curve-disconnect'!W$19","v":-1416.5144045029547},{"$f":"'Res-Appliance class'!$B44*'RES S curve-disconnect'!X$4+'Res-Appliance class'!$C44*'RES S curve-disconnect'!X$9+'Res-Appliance class'!$D44*'RES S curve-disconnect'!X$14+'Res-Appliance class'!$E44*'RES S curve-disconnect'!X$19","v":-1078.411903073219},{"$f":"'Res-Appliance class'!$B44*'RES S curve-disconnect'!Y$4+'Res-Appliance class'!$C44*'RES S curve-disconnect'!Y$9+'Res-Appliance class'!$D44*'RES S curve-disconnect'!Y$14+'Res-Appliance class'!$E44*'RES S curve-disconnect'!Y$19","v":-735.0570748029661},{"$f":"'Res-Appliance class'!$B44*'RES S curve-disconnect'!Z$4+'Res-Appliance class'!$C44*'RES S curve-disconnect'!Z$9+'Res-Appliance class'!$D44*'RES S curve-disconnect'!Z$14+'Res-Appliance class'!$E44*'RES S curve-disconnect'!Z$19","v":-501.59625575905551},{"$f":"'Res-Appliance class'!$B44*'RES S curve-disconnect'!AA$4+'Res-Appliance class'!$C44*'RES S curve-disconnect'!AA$9+'Res-Appliance class'!$D44*'RES S curve-disconnect'!AA$14+'Res-Appliance class'!$E44*'RES S curve-disconnect'!AA$19","v":-266.63082658124716},{"$f":"'Res-Appliance class'!$B44*'RES S curve-disconnect'!AB$4+'Res-Appliance class'!$C44*'RES S curve-disconnect'!AB$9+'Res-Appliance class'!$D44*'RES S curve-disconnect'!AB$14+'Res-Appliance class'!$E44*'RES S curve-disconnect'!AB$19","v":-77.591607041945991},{"$f":"'Res-Appliance class'!$B44*'RES S curve-disconnect'!AC$4+'Res-Appliance class'!$C44*'RES S curve-disconnect'!AC$9+'Res-Appliance class'!$D44*'RES S curve-disconnect'!AC$14+'Res-Appliance class'!$E44*'RES S curve-disconnect'!AC$19","v":105.56975495231097},{"$f":"'Res-Appliance class'!$B44*'RES S curve-disconnect'!AD$4+'Res-Appliance class'!$C44*'RES S curve-disconnect'!AD$9+'Res-Appliance class'!$D44*'RES S curve-disconnect'!AD$14+'Res-Appliance class'!$E44*'RES S curve-disconnect'!AD$19","v":273.75824616346677},{"$f":"'Res-Appliance class'!$B44*'RES S curve-disconnect'!AE$4+'Res-Appliance class'!$C44*'RES S curve-disconnect'!AE$9+'Res-Appliance class'!$D44*'RES S curve-disconnect'!AE$14+'Res-Appliance class'!$E44*'RES S curve-disconnect'!AE$19","v":452.57922666583227},{"$f":"'Res-Appliance class'!$B44*'RES S curve-disconnect'!AF$4+'Res-Appliance class'!$C44*'RES S curve-disconnect'!AF$9+'Res-Appliance class'!$D44*'RES S curve-disconnect'!AF$14+'Res-Appliance class'!$E44*'RES S curve-disconnect'!AF$19","v":680.83671766349516},{"$f":"'Res-Appliance class'!$B44*'RES S curve-disconnect'!AG$4+'Res-Appliance class'!$C44*'RES S curve-disconnect'!AG$9+'Res-Appliance class'!$D44*'RES S curve-disconnect'!AG$14+'Res-Appliance class'!$E44*'RES S curve-disconnect'!AG$19","v":837.69626520038275},{"$f":"'Res-Appliance class'!$B44*'RES S curve-disconnect'!AH$4+'Res-Appliance class'!$C44*'RES S curve-disconnect'!AH$9+'Res-Appliance class'!$D44*'RES S curve-disconnect'!AH$14+'Res-Appliance class'!$E44*'RES S curve-disconnect'!AH$19","v":1054.1994203770801},{"$f":"'Res-Appliance class'!$B44*'RES S curve-disconnect'!AI$4+'Res-Appliance class'!$C44*'RES S curve-disconnect'!AI$9+'Res-Appliance class'!$D44*'RES S curve-disconnect'!AI$14+'Res-Appliance class'!$E44*'RES S curve-disconnect'!AI$19","v":1252.6873113870506},{"$f":"'Res-Appliance class'!$B44*'RES S curve-disconnect'!AJ$4+'Res-Appliance class'!$C44*'RES S curve-disconnect'!AJ$9+'Res-Appliance class'!$D44*'RES S curve-disconnect'!AJ$14+'Res-Appliance class'!$E44*'RES S curve-disconnect'!AJ$19","v":1431.0051992190145},{"$f":"'Res-Appliance class'!$B44*'RES S curve-disconnect'!AK$4+'Res-Appliance class'!$C44*'RES S curve-disconnect'!AK$9+'Res-Appliance class'!$D44*'RES S curve-disconnect'!AK$14+'Res-Appliance class'!$E44*'RES S curve-disconnect'!AK$19","v":1620.4583010892659},{"$f":"'Res-Appliance class'!$B44*'RES S curve-disconnect'!AL$4+'Res-Appliance class'!$C44*'RES S curve-disconnect'!AL$9+'Res-Appliance class'!$D44*'RES S curve-disconnect'!AL$14+'Res-Appliance class'!$E44*'RES S curve-disconnect'!AL$19","v":953.87143360237678},{"$f":"'Res-Appliance class'!$B44*'RES S curve-disconnect'!AM$4+'Res-Appliance class'!$C44*'RES S curve-disconnect'!AM$9+'Res-Appliance class'!$D44*'RES S curve-disconnect'!AM$14+'Res-Appliance class'!$E44*'RES S curve-disconnect'!AM$19","v":872.35204268285656},{"$f":"'Res-Appliance class'!$B44*'RES S curve-disconnect'!AN$4+'Res-Appliance class'!$C44*'RES S curve-disconnect'!AN$9+'Res-Appliance class'!$D44*'RES S curve-disconnect'!AN$14+'Res-Appliance class'!$E44*'RES S curve-disconnect'!AN$19","v":1054.6562002156909},{"$f":"'Res-Appliance class'!$B44*'RES S curve-disconnect'!AO$4+'Res-Appliance class'!$C44*'RES S curve-disconnect'!AO$9+'Res-Appliance class'!$D44*'RES S curve-disconnect'!AO$14+'Res-Appliance class'!$E44*'RES S curve-disconnect'!AO$19","v":1274.8648545231047},{"$f":"'Res-Appliance class'!$B44*'RES S curve-disconnect'!AP$4+'Res-Appliance class'!$C44*'RES S curve-disconnect'!AP$9+'Res-Appliance class'!$D44*'RES S curve-disconnect'!AP$14+'Res-Appliance class'!$E44*'RES S curve-disconnect'!AP$19","v":1476.6494386732782},{"$f":"'Res-Appliance class'!$B44*'RES S curve-disconnect'!AQ$4+'Res-Appliance class'!$C44*'RES S curve-disconnect'!AQ$9+'Res-Appliance class'!$D44*'RES S curve-disconnect'!AQ$14+'Res-Appliance class'!$E44*'RES S curve-disconnect'!AQ$19","v":1695.5732558382228},{"$f":"'Res-Appliance class'!$B44*'RES S curve-disconnect'!AR$4+'Res-Appliance class'!$C44*'RES S curve-disconnect'!AR$9+'Res-Appliance class'!$D44*'RES S curve-disconnect'!AR$14+'Res-Appliance class'!$E44*'RES S curve-disconnect'!AR$19","v":1934.9897622161463},{"$f":"'Res-Appliance class'!$B44*'RES S curve-disconnect'!AS$4+'Res-Appliance class'!$C44*'RES S curve-disconnect'!AS$9+'Res-Appliance class'!$D44*'RES S curve-disconnect'!AS$14+'Res-Appliance class'!$E44*'RES S curve-disconnect'!AS$19","v":2203.4103931809996},{"$f":"'Res-Appliance class'!$B44*'RES S curve-disconnect'!AT$4+'Res-Appliance class'!$C44*'RES S curve-disconnect'!AT$9+'Res-Appliance class'!$D44*'RES S curve-disconnect'!AT$14+'Res-Appliance class'!$E44*'RES S curve-disconnect'!AT$19","v":2502.5532784958768},{"$f":"'Res-Appliance class'!$B44*'RES S curve-disconnect'!AU$4+'Res-Appliance class'!$C44*'RES S curve-disconnect'!AU$9+'Res-Appliance class'!$D44*'RES S curve-disconnect'!AU$14+'Res-Appliance class'!$E44*'RES S curve-disconnect'!AU$19","v":2849.9966753557619},{"$f":"'Res-Appliance class'!$B44*'RES S curve-disconnect'!AV$4+'Res-Appliance class'!$C44*'RES S curve-disconnect'!AV$9+'Res-Appliance class'!$D44*'RES S curve-disconnect'!AV$14+'Res-Appliance class'!$E44*'RES S curve-disconnect'!AV$19","v":3244.949398614207},{"$f":"'Res-Appliance class'!$B44*'RES S curve-disconnect'!AW$4+'Res-Appliance class'!$C44*'RES S curve-disconnect'!AW$9+'Res-Appliance class'!$D44*'RES S curve-disconnect'!AW$14+'Res-Appliance class'!$E44*'RES S curve-disconnect'!AW$19","v":3698.2779639472533},{"$f":"'Res-Appliance class'!$B44*'RES S curve-disconnect'!AX$4+'Res-Appliance class'!$C44*'RES S curve-disconnect'!AX$9+'Res-Appliance class'!$D44*'RES S curve-disconnect'!AX$14+'Res-Appliance class'!$E44*'RES S curve-disconnect'!AX$19","v":4213.279592626217},{"$f":"'Res-Appliance class'!$B44*'RES S curve-disconnect'!AY$4+'Res-Appliance class'!$C44*'RES S curve-disconnect'!AY$9+'Res-Appliance class'!$D44*'RES S curve-disconnect'!AY$14+'Res-Appliance class'!$E44*'RES S curve-disconnect'!AY$19","v":4808.2037287818448},{"$f":"'Res-Appliance class'!$B44*'RES S curve-disconnect'!AZ$4+'Res-Appliance class'!$C44*'RES S curve-disconnect'!AZ$9+'Res-Appliance class'!$D44*'RES S curve-disconnect'!AZ$14+'Res-Appliance class'!$E44*'RES S curve-disconnect'!AZ$19","v":5486.1196882845361},{"$f":"'Res-Appliance class'!$B44*'RES S curve-disconnect'!BA$4+'Res-Appliance class'!$C44*'RES S curve-disconnect'!BA$9+'Res-Appliance class'!$D44*'RES S curve-disconnect'!BA$14+'Res-Appliance class'!$E44*'RES S curve-disconnect'!BA$19","v":6269.7278591925315},{"$f":"'Res-Appliance class'!$B44*'RES S curve-disconnect'!BB$4+'Res-Appliance class'!$C44*'RES S curve-disconnect'!BB$9+'Res-Appliance class'!$D44*'RES S curve-disconnect'!BB$14+'Res-Appliance class'!$E44*'RES S curve-disconnect'!BB$19","v":7182.602040752121},{"$f":"'Res-Appliance class'!$B44*'RES S curve-disconnect'!BC$4+'Res-Appliance class'!$C44*'RES S curve-disconnect'!BC$9+'Res-Appliance class'!$D44*'RES S curve-disconnect'!BC$14+'Res-Appliance class'!$E44*'RES S curve-disconnect'!BC$19","v":8270.7531489169523},{"$f":"'Res-Appliance class'!$B44*'RES S curve-disconnect'!BD$4+'Res-Appliance class'!$C44*'RES S curve-disconnect'!BD$9+'Res-Appliance class'!$D44*'RES S curve-disconnect'!BD$14+'Res-Appliance class'!$E44*'RES S curve-disconnect'!BD$19","v":9313.6755157412445},{"$f":"'Res-Appliance class'!$B44*'RES S curve-disconnect'!BE$4+'Res-Appliance class'!$C44*'RES S curve-disconnect'!BE$9+'Res-Appliance class'!$D44*'RES S curve-disconnect'!BE$14+'Res-Appliance class'!$E44*'RES S curve-disconnect'!BE$19","v":10264.633497019451},{"$f":"'Res-Appliance class'!$B44*'RES S curve-disconnect'!BF$4+'Res-Appliance class'!$C44*'RES S curve-disconnect'!BF$9+'Res-Appliance class'!$D44*'RES S curve-disconnect'!BF$14+'Res-Appliance class'!$E44*'RES S curve-disconnect'!BF$19","v":11238.317642980561},{"$f":"'Res-Appliance class'!$B44*'RES S curve-disconnect'!BG$4+'Res-Appliance class'!$C44*'RES S curve-disconnect'!BG$9+'Res-Appliance class'!$D44*'RES S curve-disconnect'!BG$14+'Res-Appliance class'!$E44*'RES S curve-disconnect'!BG$19","v":12342.885165798216},{"$f":"'Res-Appliance class'!$B44*'RES S curve-disconnect'!BH$4+'Res-Appliance class'!$C44*'RES S curve-disconnect'!BH$9+'Res-Appliance class'!$D44*'RES S curve-disconnect'!BH$14+'Res-Appliance class'!$E44*'RES S curve-disconnect'!BH$19","v":13652.550132448267},{"$f":"'Res-Appliance class'!$B44*'RES S curve-disconnect'!BI$4+'Res-Appliance class'!$C44*'RES S curve-disconnect'!BI$9+'Res-Appliance class'!$D44*'RES S curve-disconnect'!BI$14+'Res-Appliance class'!$E44*'RES S curve-disconnect'!BI$19","v":15551.88335857142},{"$f":"'Res-Appliance class'!$B44*'RES S curve-disconnect'!BJ$4+'Res-Appliance class'!$C44*'RES S curve-disconnect'!BJ$9+'Res-Appliance class'!$D44*'RES S curve-disconnect'!BJ$14+'Res-Appliance class'!$E44*'RES S curve-disconnect'!BJ$19","v":18325.73663014243},{"$f":"'Res-Appliance class'!$B44*'RES S curve-disconnect'!BK$4+'Res-Appliance class'!$C44*'RES S curve-disconnect'!BK$9+'Res-Appliance class'!$D44*'RES S curve-disconnect'!BK$14+'Res-Appliance class'!$E44*'RES S curve-disconnect'!BK$19","v":22407.835659931457},{"$f":"'Res-Appliance class'!$B44*'RES S curve-disconnect'!BL$4+'Res-Appliance class'!$C44*'RES S curve-disconnect'!BL$9+'Res-Appliance class'!$D44*'RES S curve-disconnect'!BL$14+'Res-Appliance class'!$E44*'RES S curve-disconnect'!BL$19","v":-1476.6398733023334},{"$f":"'Res-Appliance class'!$B44*'RES S curve-disconnect'!BM$4+'Res-Appliance class'!$C44*'RES S curve-disconnect'!BM$9+'Res-Appliance class'!$D44*'RES S curve-disconnect'!BM$14+'Res-Appliance class'!$E44*'RES S curve-disconnect'!BM$19","v":-1471.4328836872728},{"$f":"'Res-Appliance class'!$B44*'RES S curve-disconnect'!BN$4+'Res-Appliance class'!$C44*'RES S curve-disconnect'!BN$9+'Res-Appliance class'!$D44*'RES S curve-disconnect'!BN$14+'Res-Appliance class'!$E44*'RES S curve-disconnect'!BN$19","v":-1469.5741011493005},{"$f":"'Res-Appliance class'!$B44*'RES S curve-disconnect'!BO$4+'Res-Appliance class'!$C44*'RES S curve-disconnect'!BO$9+'Res-Appliance class'!$D44*'RES S curve-disconnect'!BO$14+'Res-Appliance class'!$E44*'RES S curve-disconnect'!BO$19","v":-1461.0422187863169},{"$f":"'Res-Appliance class'!$B44*'RES S curve-disconnect'!BP$4+'Res-Appliance class'!$C44*'RES S curve-disconnect'!BP$9+'Res-Appliance class'!$D44*'RES S curve-disconnect'!BP$14+'Res-Appliance class'!$E44*'RES S curve-disconnect'!BP$19","v":-1455.8584490954088},{"$f":"'Res-Appliance class'!$B44*'RES S curve-disconnect'!BQ$4+'Res-Appliance class'!$C44*'RES S curve-disconnect'!BQ$9+'Res-Appliance class'!$D44*'RES S curve-disconnect'!BQ$14+'Res-Appliance class'!$E44*'RES S curve-disconnect'!BQ$19","v":-1450.6823254653796},{"$f":"'Res-Appliance class'!$B44*'RES S curve-disconnect'!BR$4+'Res-Appliance class'!$C44*'RES S curve-disconnect'!BR$9+'Res-Appliance class'!$D44*'RES S curve-disconnect'!BR$14+'Res-Appliance class'!$E44*'RES S curve-disconnect'!BR$19","v":-1448.8542212782479},{"$f":"'Res-Appliance class'!$B44*'RES S curve-disconnect'!BS$4+'Res-Appliance class'!$C44*'RES S curve-disconnect'!BS$9+'Res-Appliance class'!$D44*'RES S curve-disconnect'!BS$14+'Res-Appliance class'!$E44*'RES S curve-disconnect'!BS$19","v":-1440.3528308040432},{"$f":"'Res-Appliance class'!$B44*'RES S curve-disconnect'!BT$4+'Res-Appliance class'!$C44*'RES S curve-disconnect'!BT$9+'Res-Appliance class'!$D44*'RES S curve-disconnect'!BT$14+'Res-Appliance class'!$E44*'RES S curve-disconnect'!BT$19","v":-1435.1993677045568},{"$f":"'Res-Appliance class'!$B44*'RES S curve-disconnect'!BU$4+'Res-Appliance class'!$C44*'RES S curve-disconnect'!BU$9+'Res-Appliance class'!$D44*'RES S curve-disconnect'!BU$14+'Res-Appliance class'!$E44*'RES S curve-disconnect'!BU$19","v":-1430.0533665259277},{"$f":"'Res-Appliance class'!$B44*'RES S curve-disconnect'!BV$4+'Res-Appliance class'!$C44*'RES S curve-disconnect'!BV$9+'Res-Appliance class'!$D44*'RES S curve-disconnect'!BV$14+'Res-Appliance class'!$E44*'RES S curve-disconnect'!BV$19","v":-1428.2552018001884},{"$f":"'Res-Appliance class'!$B44*'RES S curve-disconnect'!BW$4+'Res-Appliance class'!$C44*'RES S curve-disconnect'!BW$9+'Res-Appliance class'!$D44*'RES S curve-disconnect'!BW$14+'Res-Appliance class'!$E44*'RES S curve-disconnect'!BW$19","v":-1419.7835689400995},{"$f":"'Res-Appliance class'!$B44*'RES S curve-disconnect'!BX$4+'Res-Appliance class'!$C44*'RES S curve-disconnect'!BX$9+'Res-Appliance class'!$D44*'RES S curve-disconnect'!BX$14+'Res-Appliance class'!$E44*'RES S curve-disconnect'!BX$19","v":-1414.659682742958},{"$f":"'Res-Appliance class'!$B44*'RES S curve-disconnect'!BY$4+'Res-Appliance class'!$C44*'RES S curve-disconnect'!BY$9+'Res-Appliance class'!$D44*'RES S curve-disconnect'!BY$14+'Res-Appliance class'!$E44*'RES S curve-disconnect'!BY$19","v":-1409.5430788832216},{"$f":"'Res-Appliance class'!$B44*'RES S curve-disconnect'!BZ$4+'Res-Appliance class'!$C44*'RES S curve-disconnect'!BZ$9+'Res-Appliance class'!$D44*'RES S curve-disconnect'!BZ$14+'Res-Appliance class'!$E44*'RES S curve-disconnect'!BZ$19","v":-1407.7741330140998},{"$f":"'Res-Appliance class'!$B44*'RES S curve-disconnect'!CA$4+'Res-Appliance class'!$C44*'RES S curve-disconnect'!CA$9+'Res-Appliance class'!$D44*'RES S curve-disconnect'!CA$14+'Res-Appliance class'!$E44*'RES S curve-disconnect'!CA$19","v":-1399.3315416624396},{"$f":"'Res-Appliance class'!$B44*'RES S curve-disconnect'!CB$4+'Res-Appliance class'!$C44*'RES S curve-disconnect'!CB$9+'Res-Appliance class'!$D44*'RES S curve-disconnect'!CB$14+'Res-Appliance class'!$E44*'RES S curve-disconnect'!CB$19","v":-1394.2365207325727},{"$f":"'Res-Appliance class'!$B44*'RES S curve-disconnect'!CC$4+'Res-Appliance class'!$C44*'RES S curve-disconnect'!CC$9+'Res-Appliance class'!$D44*'RES S curve-disconnect'!CC$14+'Res-Appliance class'!$E44*'RES S curve-disconnect'!CC$19","v":-1389.1486069989899},{"$f":"'Res-Appliance class'!$B44*'RES S curve-disconnect'!CD$4+'Res-Appliance class'!$C44*'RES S curve-disconnect'!CD$9+'Res-Appliance class'!$D44*'RES S curve-disconnect'!CD$14+'Res-Appliance class'!$E44*'RES S curve-disconnect'!CD$19","v":-1465.3841368271742}]
["Whitehorse (C)",null,{"$f":"'Res-Appliance class'!$B45*'RES S curve-disconnect'!C$4+'Res-Appliance class'!$C45*'RES S curve-disconnect'!C$9+'Res-Appliance class'!$D45*'RES S curve-disconnect'!C$14+'Res-Appliance class'!$E45*'RES S curve-disconnect'!C$19","v":-4861.4597085375517},{"$f":"'Res-Appliance class'!$B45*'RES S curve-disconnect'!D$4+'Res-Appliance class'!$C45*'RES S curve-disconnect'!D$9+'Res-Appliance class'!$D45*'RES S curve-disconnect'!D$14+'Res-Appliance class'!$E45*'RES S curve-disconnect'!D$19","v":-5378.3896012197256},{"$f":"'Res-Appliance class'!$B45*'RES S curve-disconnect'!E$4+'Res-Appliance class'!$C45*'RES S curve-disconnect'!E$9+'Res-Appliance class'!$D45*'RES S curve-disconnect'!E$14+'Res-Appliance class'!$E45*'RES S curve-disconnect'!E$19","v":-4660.5434789658966},{"$f":"'Res-Appliance class'!$B45*'RES S curve-disconnect'!F$4+'Res-Appliance class'!$C45*'RES S curve-disconnect'!F$9+'Res-Appliance class'!$D45*'RES S curve-disconnect'!F$14+'Res-Appliance class'!$E45*'RES S curve-disconnect'!F$19","v":-4505.8867029670582},{"$f":"'Res-Appliance class'!$B45*'RES S curve-disconnect'!G$4+'Res-Appliance class'!$C45*'RES S curve-disconnect'!G$9+'Res-Appliance class'!$D45*'RES S curve-disconnect'!G$14+'Res-Appliance class'!$E45*'RES S curve-disconnect'!G$19","v":-5719.9090712890811},{"$f":"'Res-Appliance class'!$B45*'RES S curve-disconnect'!H$4+'Res-Appliance class'!$C45*'RES S curve-disconnect'!H$9+'Res-Appliance class'!$D45*'RES S curve-disconnect'!H$14+'Res-Appliance class'!$E45*'RES S curve-disconnect'!H$19","v":-5753.4785523413284},{"$f":"'Res-Appliance class'!$B45*'RES S curve-disconnect'!I$4+'Res-Appliance class'!$C45*'RES S curve-disconnect'!I$9+'Res-Appliance class'!$D45*'RES S curve-disconnect'!I$14+'Res-Appliance class'!$E45*'RES S curve-disconnect'!I$19","v":-5315.5425151331074},{"$f":"'Res-Appliance class'!$B45*'RES S curve-disconnect'!J$4+'Res-Appliance class'!$C45*'RES S curve-disconnect'!J$9+'Res-Appliance class'!$D45*'RES S curve-disconnect'!J$14+'Res-Appliance class'!$E45*'RES S curve-disconnect'!J$19","v":-5654.3144409414163},{"$f":"'Res-Appliance class'!$B45*'RES S curve-disconnect'!K$4+'Res-Appliance class'!$C45*'RES S curve-disconnect'!K$9+'Res-Appliance class'!$D45*'RES S curve-disconnect'!K$14+'Res-Appliance class'!$E45*'RES S curve-disconnect'!K$19","v":-4829.5559917740975},{"$f":"'Res-Appliance class'!$B45*'RES S curve-disconnect'!L$4+'Res-Appliance class'!$C45*'RES S curve-disconnect'!L$9+'Res-Appliance class'!$D45*'RES S curve-disconnect'!L$14+'Res-Appliance class'!$E45*'RES S curve-disconnect'!L$19","v":-5180.6546685526519},{"$f":"'Res-Appliance class'!$B45*'RES S curve-disconnect'!M$4+'Res-Appliance class'!$C45*'RES S curve-disconnect'!M$9+'Res-Appliance class'!$D45*'RES S curve-disconnect'!M$14+'Res-Appliance class'!$E45*'RES S curve-disconnect'!M$19","v":-5819.0849586101886},{"$f":"'Res-Appliance class'!$B45*'RES S curve-disconnect'!N$4+'Res-Appliance class'!$C45*'RES S curve-disconnect'!N$9+'Res-Appliance class'!$D45*'RES S curve-disconnect'!N$14+'Res-Appliance class'!$E45*'RES S curve-disconnect'!N$19","v":-5877.2183381246005},{"$f":"'Res-Appliance class'!$B45*'RES S curve-disconnect'!O$4+'Res-Appliance class'!$C45*'RES S curve-disconnect'!O$9+'Res-Appliance class'!$D45*'RES S curve-disconnect'!O$14+'Res-Appliance class'!$E45*'RES S curve-disconnect'!O$19","v":-5309.8357822105963},{"$f":"'Res-Appliance class'!$B45*'RES S curve-disconnect'!P$4+'Res-Appliance class'!$C45*'RES S curve-disconnect'!P$9+'Res-Appliance class'!$D45*'RES S curve-disconnect'!P$14+'Res-Appliance class'!$E45*'RES S curve-disconnect'!P$19","v":-4857.5933712844144},{"$f":"'Res-Appliance class'!$B45*'RES S curve-disconnect'!Q$4+'Res-Appliance class'!$C45*'RES S curve-disconnect'!Q$9+'Res-Appliance class'!$D45*'RES S curve-disconnect'!Q$14+'Res-Appliance class'!$E45*'RES S curve-disconnect'!Q$19","v":-4175.3896260599358},{"$f":"'Res-Appliance class'!$B45*'RES S curve-disconnect'!R$4+'Res-Appliance class'!$C45*'RES S curve-disconnect'!R$9+'Res-Appliance class'!$D45*'RES S curve-disconnect'!R$14+'Res-Appliance class'!$E45*'RES S curve-disconnect'!R$19","v":-3787.7545179215208},{"$f":"'Res-Appliance class'!$B45*'RES S curve-disconnect'!S$4+'Res-Appliance class'!$C45*'RES S curve-disconnect'!S$9+'Res-Appliance class'!$D45*'RES S curve-disconnect'!S$14+'Res-Appliance class'!$E45*'RES S curve-disconnect'!S$19","v":-3172.6175009375138},{"$f":"'Res-Appliance class'!$B45*'RES S curve-disconnect'!T$4+'Res-Appliance class'!$C45*'RES S curve-disconnect'!T$9+'Res-Appliance class'!$D45*'RES S curve-disconnect'!T$14+'Res-Appliance class'!$E45*'RES S curve-disconnect'!T$19","v":-2837.1288739763972},{"$f":"'Res-Appliance class'!$B45*'RES S curve-disconnect'!U$4+'Res-Appliance class'!$C45*'RES S curve-disconnect'!U$9+'Res-Appliance class'!$D45*'RES S curve-disconnect'!U$14+'Res-Appliance class'!$E45*'RES S curve-disconnect'!U$19","v":-2454.4599559604007},{"$f":"'Res-Appliance class'!$B45*'RES S curve-disconnect'!V$4+'Res-Appliance class'!$C45*'RES S curve-disconnect'!V$9+'Res-Appliance class'!$D45*'RES S curve-disconnect'!V$14+'Res-Appliance class'!$E45*'RES S curve-disconnect'!V$19","v":-2192.6333078036723},{"$f":"'Res-Appliance class'!$B45*'RES S curve-disconnect'!W$4+'Res-Appliance class'!$C45*'RES S curve-disconnect'!W$9+'Res-Appliance class'!$D45*'RES S curve-disconnect'!W$14+'Res-Appliance class'!$E45*'RES S curve-disconnect'!W$19","v":-1988.1821736804038},{"$f":"'Res-Appliance class'!$B45*'RES S curve-disconnect'!X$4+'Res-Appliance class'!$C45*'RES S curve-disconnect'!X$9+'Res-Appliance class'!$D45*'RES S curve-disconnect'!X$14+'Res-Appliance class'!$E45*'RES S curve-disconnect'!X$19","v":-1527.1926182556108},{"$f":"'Res-Appliance class'!$B45*'RES S curve-disconnect'!Y$4+'Res-Appliance class'!$C45*'RES S curve-disconnect'!Y$9+'Res-Appliance class'!$D45*'RES S curve-disconnect'!Y$14+'Res-Appliance class'!$E45*'RES S curve-disconnect'!Y$19","v":-1060.8215260670349},{"$f":"'Res-Appliance class'!$B45*'RES S curve-disconnect'!Z$4+'Res-Appliance class'!$C45*'RES S curve-disconnect'!Z$9+'Res-Appliance class'!$D45*'RES S curve-disconnect'!Z$14+'Res-Appliance class'!$E45*'RES S curve-disconnect'!Z$19","v":-744.54582508039198},{"$f":"'Res-Appliance class'!$B45*'RES S curve-disconnect'!AA$4+'Res-Appliance class'!$C45*'RES S curve-disconnect'!AA$9+'Res-Appliance class'!$D45*'RES S curve-disconnect'!AA$14+'Res-Appliance class'!$E45*'RES S curve-disconnect'!AA$19","v":-428.26925139185153},{"$f":"'Res-Appliance class'!$B45*'RES S curve-disconnect'!AB$4+'Res-Appliance class'!$C45*'RES S curve-disconnect'!AB$9+'Res-Appliance class'!$D45*'RES S curve-disconnect'!AB$14+'Res-Appliance class'!$E45*'RES S curve-disconnect'!AB$19","v":-175.45687649935991},{"$f":"'Res-Appliance class'!$B45*'RES S curve-disconnect'!AC$4+'Res-Appliance class'!$C45*'RES S curve-disconnect'!AC$9+'Res-Appliance class'!$D45*'RES S curve-disconnect'!AC$14+'Res-Appliance class'!$E45*'RES S curve-disconnect'!AC$19","v":68.154722903455763},{"$f":"'Res-Appliance class'!$B45*'RES S curve-disconnect'!AD$4+'Res-Appliance class'!$C45*'RES S curve-disconnect'!AD$9+'Res-Appliance class'!$D45*'RES S curve-disconnect'!AD$14+'Res-Appliance class'!$E45*'RES S curve-disconnect'!AD$19","v":291.74865185776508},{"$f":"'Res-Appliance class'!$B45*'RES S curve-disconnect'!AE$4+'Res-Appliance class'!$C45*'RES S curve-disconnect'!AE$9+'Res-Appliance class'!$D45*'RES S curve-disconnect'!AE$14+'Res-Appliance class'!$E45*'RES S curve-disconnect'!AE$19","v":526.64351329825786},{"$f":"'Res-Appliance class'!$B45*'RES S curve-disconnect'!AF$4+'Res-Appliance class'!$C45*'RES S curve-disconnect'!AF$9+'Res-Appliance class'!$D45*'RES S curve-disconnect'!AF$14+'Res-Appliance class'!$E45*'RES S curve-disconnect'!AF$19","v":830.10470936039928},{"$f":"'Res-Appliance class'!$B45*'RES S curve-disconnect'!AG$4+'Res-Appliance class'!$C45*'RES S curve-disconnect'!AG$9+'Res-Appliance class'!$D45*'RES S curve-disconnect'!AG$14+'Res-Appliance class'!$E45*'RES S curve-disconnect'!AG$19","v":1037.9058528971868},{"$f":"'Res-Appliance class'!$B45*'RES S curve-disconnect'!AH$4+'Res-Appliance class'!$C45*'RES S curve-disconnect'!AH$9+'Res-Appliance class'!$D45*'RES S curve-disconnect'!AH$14+'Res-Appliance class'!$E45*'RES S curve-disconnect'!AH$19","v":1330.3937052727802},{"$f":"'Res-Appliance class'!$B45*'RES S curve-disconnect'!AI$4+'Res-Appliance class'!$C45*'RES S curve-disconnect'!AI$9+'Res-Appliance class'!$D45*'RES S curve-disconnect'!AI$14+'Res-Appliance class'!$E45*'RES S curve-disconnect'!AI$19","v":1593.2413843251693},{"$f":"'Res-Appliance class'!$B45*'RES S curve-disconnect'!AJ$4+'Res-Appliance class'!$C45*'RES S curve-disconnect'!AJ$9+'Res-Appliance class'!$D45*'RES S curve-disconnect'!AJ$14+'Res-Appliance class'!$E45*'RES S curve-disconnect'!AJ$19","v":1830.4725590295955},{"$f":"'Res-Appliance class'!$B45*'RES S curve-disconnect'!AK$4+'Res-Appliance class'!$C45*'RES S curve-disconnect'!AK$9+'Res-Appliance class'!$D45*'RES S curve-disconnect'!AK$14+'Res-Appliance class'!$E45*'RES S curve-disconnect'!AK$19","v":2082.3244860426475},{"$f":"'Res-Appliance class'!$B45*'RES S curve-disconnect'!AL$4+'Res-Appliance class'!$C45*'RES S curve-disconnect'!AL$9+'Res-Appliance class'!$D45*'RES S curve-disconnect'!AL$14+'Res-Appliance class'!$E45*'RES S curve-disconnect'!AL$19","v":1210.7057073669487},{"$f":"'Res-Appliance class'!$B45*'RES S curve-disconnect'!AM$4+'Res-Appliance class'!$C45*'RES S curve-disconnect'!AM$9+'Res-Appliance class'!$D45*'RES S curve-disconnect'!AM$14+'Res-Appliance class'!$E45*'RES S curve-disconnect'!AM$19","v":1096.444801331699},{"$f":"'Res-Appliance class'!$B45*'RES S curve-disconnect'!AN$4+'Res-Appliance class'!$C45*'RES S curve-disconnect'!AN$9+'Res-Appliance class'!$D45*'RES S curve-disconnect'!AN$14+'Res-Appliance class'!$E45*'RES S curve-disconnect'!AN$19","v":1334.7450063951078},{"$f":"'Res-Appliance class'!$B45*'RES S curve-disconnect'!AO$4+'Res-Appliance class'!$C45*'RES S curve-disconnect'!AO$9+'Res-Appliance class'!$D45*'RES S curve-disconnect'!AO$14+'Res-Appliance class'!$E45*'RES S curve-disconnect'!AO$19","v":1626.3321866501005},{"$f":"'Res-Appliance class'!$B45*'RES S curve-disconnect'!AP$4+'Res-Appliance class'!$C45*'RES S curve-disconnect'!AP$9+'Res-Appliance class'!$D45*'RES S curve-disconnect'!AP$14+'Res-Appliance class'!$E45*'RES S curve-disconnect'!AP$19","v":1895.7893438755802},{"$f":"'Res-Appliance class'!$B45*'RES S curve-disconnect'!AQ$4+'Res-Appliance class'!$C45*'RES S curve-disconnect'!AQ$9+'Res-Appliance class'!$D45*'RES S curve-disconnect'!AQ$14+'Res-Appliance class'!$E45*'RES S curve-disconnect'!AQ$19","v":2185.8117203559946},{"$f":"'Res-Appliance class'!$B45*'RES S curve-disconnect'!AR$4+'Res-Appliance class'!$C45*'RES S curve-disconnect'!AR$9+'Res-Appliance class'!$D45*'RES S curve-disconnect'!AR$14+'Res-Appliance class'!$E45*'RES S curve-disconnect'!AR$19","v":2504.3079545677488},{"$f":"'Res-Appliance class'!$B45*'RES S curve-disconnect'!AS$4+'Res-Appliance class'!$C45*'RES S curve-disconnect'!AS$9+'Res-Appliance class'!$D45*'RES S curve-disconnect'!AS$14+'Res-Appliance class'!$E45*'RES S curve-disconnect'!AS$19","v":2861.7209822973609},{"$f":"'Res-Appliance class'!$B45*'RES S curve-disconnect'!AT$4+'Res-Appliance class'!$C45*'RES S curve-disconnect'!AT$9+'Res-Appliance class'!$D45*'RES S curve-disconnect'!AT$14+'Res-Appliance class'!$E45*'RES S curve-disconnect'!AT$19","v":3261.5787354979475},{"$f":"'Res-Appliance class'!$B45*'RES S curve-disconnect'!AU$4+'Res-Appliance class'!$C45*'RES S curve-disconnect'!AU$9+'Res-Appliance class'!$D45*'RES S curve-disconnect'!AU$14+'Res-Appliance class'!$E45*'RES S curve-disconnect'!AU$19","v":3724.0972127405703},{"$f":"'Res-Appliance class'!$B45*'RES S curve-disconnect'!AV$4+'Res-Appliance class'!$C45*'RES S curve-disconnect'!AV$9+'Res-Appliance class'!$D45*'RES S curve-disconnect'!AV$14+'Res-Appliance class'!$E45*'RES S curve-disconnect'!AV$19","v":4251.7654543619728},{"$f":"'Res-Appliance class'!$B45*'RES S curve-disconnect'!AW$4+'Res-Appliance class'!$C45*'RES S curve-disconnect'!AW$9+'Res-Appliance class'!$D45*'RES S curve-disconnect'!AW$14+'Res-Appliance class'!$E45*'RES S curve-disconnect'!AW$19","v":4858.3175580173311},{"$f":"'Res-Appliance class'!$B45*'RES S curve-disconnect'!AX$4+'Res-Appliance class'!$C45*'RES S curve-disconnect'!AX$9+'Res-Appliance class'!$D45*'RES S curve-disconnect'!AX$14+'Res-Appliance class'!$E45*'RES S curve-disconnect'!AX$19","v":5549.7166710274541},{"$f":"'Res-Appliance class'!$B45*'RES S curve-disconnect'!AY$4+'Res-Appliance class'!$C45*'RES S curve-disconnect'!AY$9+'Res-Appliance class'!$D45*'RES S curve-disconnect'!AY$14+'Res-Appliance class'!$E45*'RES S curve-disconnect'!AY$19","v":6347.4547136570491},{"$f":"'Res-Appliance class'!$B45*'RES S curve-disconnect'!AZ$4+'Res-Appliance class'!$C45*'RES S curve-disconnect'!AZ$9+'Res-Appliance class'!$D45*'RES S curve-disconnect'!AZ$14+'Res-Appliance class'!$E45*'RES S curve-disconnect'!AZ$19","v":7259.5568965414896},{"$f":"'Res-Appliance class'!$B45*'RES S curve-disconnect'!BA$4+'Res-Appliance class'!$C45*'RES S curve-disconnect'!BA$9+'Res-Appliance class'!$D45*'RES S curve-disconnect'!BA$14+'Res-Appliance class'!$E45*'RES S curve-disconnect'!BA$19","v":8315.9718510384973},{"$f":"'Res-Appliance class'!$B45*'RES S curve-disconnect'!BB$4+'Res-Appliance class'!$C45*'RES S curve-disconnect'!BB$9+'Res-Appliance class'!$D45*'RES S curve-disconnect'!BB$14+'Res-Appliance class'!$E45*'RES S curve-disconnect'!BB$19","v":9550.4078122323954},{"$f":"'Res-Appliance class'!$B45*'RES S curve-disconnect'!BC$4+'Res-Appliance class'!$C45*'RES S curve-disconnect'!BC$9+'Res-Appliance class'!$D45*'RES S curve-disconnect'!BC$14+'Res-Appliance class'!$E45*'RES S curve-disconnect'!BC$19","v":11022.525399922437},{"$f":"'Res-Appliance class'!$B45*'RES S curve-disconnect'!BD$4+'Res-Appliance class'!$C45*'RES S curve-disconnect'!BD$9+'Res-Appliance class'!$D45*'RES S curve-disconnect'!BD$14+'Res-Appliance class'!$E45*'RES S curve-disconnect'!BD$19","v":12443.220378095801},{"$f":"'Res-Appliance class'!$B45*'RES S curve-disconnect'!BE$4+'Res-Appliance class'!$C45*'RES S curve-disconnect'!BE$9+'Res-Appliance class'!$D45*'RES S curve-disconnect'!BE$14+'Res-Appliance class'!$E45*'RES S curve-disconnect'!BE$19","v":13741.931891989521},{"$f":"'Res-Appliance class'!$B45*'RES S curve-disconnect'!BF$4+'Res-Appliance class'!$C45*'RES S curve-disconnect'!BF$9+'Res-Appliance class'!$D45*'RES S curve-disconnect'!BF$14+'Res-Appliance class'!$E45*'RES S curve-disconnect'!BF$19","v":15070.702224844443},{"$f":"'Res-Appliance class'!$B45*'RES S curve-disconnect'!BG$4+'Res-Appliance class'!$C45*'RES S curve-disconnect'!BG$9+'Res-Appliance class'!$D45*'RES S curve-disconnect'!BG$14+'Res-Appliance class'!$E45*'RES S curve-disconnect'!BG$19","v":16574.361073966033},{"$f":"'Res-Appliance class'!$B45*'RES S curve-disconnect'!BH$4+'Res-Appliance class'!$C45*'RES S curve-disconnect'!BH$9+'Res-Appliance class'!$D45*'RES S curve-disconnect'!BH$14+'Res-Appliance class'!$E45*'RES S curve-disconnect'!BH$19","v":18359.413981172336},{"$f":"'Res-Appliance class'!$B45*'RES S curve-disconnect'!BI$4+'Res-Appliance class'!$C45*'RES S curve-disconnect'!BI$9+'Res-Appliance class'!$D45*'RES S curve-disconnect'!BI$14+'Res-Appliance class'!$E45*'RES S curve-disconnect'!BI$19","v":20945.821599432966},{"$f":"'Res-Appliance class'!$B45*'RES S curve-disconnect'!BJ$4+'Res-Appliance class'!$C45*'RES S curve-disconnect'!BJ$9+'Res-Appliance class'!$D45*'RES S curve-disconnect'!BJ$14+'Res-Appliance class'!$E45*'RES S curve-disconnect'!BJ$19","v":24734.406177405781},{"$f":"'Res-Appliance class'!$B45*'RES S curve-disconnect'!BK$4+'Res-Appliance class'!$C45*'RES S curve-disconnect'!BK$9+'Res-Appliance class'!$D45*'RES S curve-disconnect'!BK$14+'Res-Appliance class'!$E45*'RES S curve-disconnect'!BK$19","v":30326.549966867529},{"$f":"'Res-Appliance class'!$B45*'RES S curve-disconnect'!BL$4+'Res-Appliance class'!$C45*'RES S curve-disconnect'!BL$9+'Res-Appliance class'!$D45*'RES S curve-disconnect'!BL$14+'Res-Appliance class'!$E45*'RES S curve-disconnect'!BL$19","v":-1978.2458106267536},{"$f":"'Res-Appliance class'!$B45*'RES S curve-disconnect'!BM$4+'Res-Appliance class'!$C45*'RES S curve-disconnect'!BM$9+'Res-Appliance class'!$D45*'RES S curve-disconnect'!BM$14+'Res-Appliance class'!$E45*'RES S curve-disconnect'!BM$19","v":-1971.1638770685386},{"$f":"'Res-Appliance class'!$B45*'RES S curve-disconnect'!BN$4+'Res-Appliance class'!$C45*'RES S curve-disconnect'!BN$9+'Res-Appliance class'!$D45*'RES S curve-disconnect'!BN$14+'Res-Appliance class'!$E45*'RES S curve-disconnect'!BN$19","v":-1967.4322153774604},{"$f":"'Res-Appliance class'!$B45*'RES S curve-disconnect'!BO$4+'Res-Appliance class'!$C45*'RES S curve-disconnect'!BO$9+'Res-Appliance class'!$D45*'RES S curve-disconnect'!BO$14+'Res-Appliance class'!$E45*'RES S curve-disconnect'!BO$19","v":-1957.0295066493727},{"$f":"'Res-Appliance class'!$B45*'RES S curve-disconnect'!BP$4+'Res-Appliance class'!$C45*'RES S curve-disconnect'!BP$9+'Res-Appliance class'!$D45*'RES S curve-disconnect'!BP$14+'Res-Appliance class'!$E45*'RES S curve-disconnect'!BP$19","v":-1949.9769514526113},{"$f":"'Res-Appliance class'!$B45*'RES S curve-disconnect'!BQ$4+'Res-Appliance class'!$C45*'RES S curve-disconnect'!BQ$9+'Res-Appliance class'!$D45*'RES S curve-disconnect'!BQ$14+'Res-Appliance class'!$E45*'RES S curve-disconnect'!BQ$19","v":-1942.9340713200668},{"$f":"'Res-Appliance class'!$B45*'RES S curve-disconnect'!BR$4+'Res-Appliance class'!$C45*'RES S curve-disconnect'!BR$9+'Res-Appliance class'!$D45*'RES S curve-disconnect'!BR$14+'Res-Appliance class'!$E45*'RES S curve-disconnect'!BR$19","v":-1939.2412278502268},{"$f":"'Res-Appliance class'!$B45*'RES S curve-disconnect'!BS$4+'Res-Appliance class'!$C45*'RES S curve-disconnect'!BS$9+'Res-Appliance class'!$D45*'RES S curve-disconnect'!BS$14+'Res-Appliance class'!$E45*'RES S curve-disconnect'!BS$19","v":-1928.8771036015182},{"$f":"'Res-Appliance class'!$B45*'RES S curve-disconnect'!BT$4+'Res-Appliance class'!$C45*'RES S curve-disconnect'!BT$9+'Res-Appliance class'!$D45*'RES S curve-disconnect'!BT$14+'Res-Appliance class'!$E45*'RES S curve-disconnect'!BT$19","v":-1921.8629005956079},{"$f":"'Res-Appliance class'!$B45*'RES S curve-disconnect'!BU$4+'Res-Appliance class'!$C45*'RES S curve-disconnect'!BU$9+'Res-Appliance class'!$D45*'RES S curve-disconnect'!BU$14+'Res-Appliance class'!$E45*'RES S curve-disconnect'!BU$19","v":-1914.8581418095412},{"$f":"'Res-Appliance class'!$B45*'RES S curve-disconnect'!BV$4+'Res-Appliance class'!$C45*'RES S curve-disconnect'!BV$9+'Res-Appliance class'!$D45*'RES S curve-disconnect'!BV$14+'Res-Appliance class'!$E45*'RES S curve-disconnect'!BV$19","v":-1911.2031902768435},{"$f":"'Res-Appliance class'!$B45*'RES S curve-disconnect'!BW$4+'Res-Appliance class'!$C45*'RES S curve-disconnect'!BW$9+'Res-Appliance class'!$D45*'RES S curve-disconnect'!BW$14+'Res-Appliance class'!$E45*'RES S curve-disconnect'!BW$19","v":-1900.8767299819128},{"$f":"'Res-Appliance class'!$B45*'RES S curve-disconnect'!BX$4+'Res-Appliance class'!$C45*'RES S curve-disconnect'!BX$9+'Res-Appliance class'!$D45*'RES S curve-disconnect'!BX$14+'Res-Appliance class'!$E45*'RES S curve-disconnect'!BX$19","v":-1893.8999643633897},{"$f":"'Res-Appliance class'!$B45*'RES S curve-disconnect'!BY$4+'Res-Appliance class'!$C45*'RES S curve-disconnect'!BY$9+'Res-Appliance class'!$D45*'RES S curve-disconnect'!BY$14+'Res-Appliance class'!$E45*'RES S curve-disconnect'!BY$19","v":-1886.932417806345},{"$f":"'Res-Appliance class'!$B45*'RES S curve-disconnect'!BZ$4+'Res-Appliance class'!$C45*'RES S curve-disconnect'!BZ$9+'Res-Appliance class'!$D45*'RES S curve-disconnect'!BZ$14+'Res-Appliance class'!$E45*'RES S curve-disconnect'!BZ$19","v":-1883.3144547434367},{"$f":"'Res-Appliance class'!$B45*'RES S curve-disconnect'!CA$4+'Res-Appliance class'!$C45*'RES S curve-disconnect'!CA$9+'Res-Appliance class'!$D45*'RES S curve-disconnect'!CA$14+'Res-Appliance class'!$E45*'RES S curve-disconnect'!CA$19","v":-1873.0247605493666},{"$f":"'Res-Appliance class'!$B45*'RES S curve-disconnect'!CB$4+'Res-Appliance class'!$C45*'RES S curve-disconnect'!CB$9+'Res-Appliance class'!$D45*'RES S curve-disconnect'!CB$14+'Res-Appliance class'!$E45*'RES S curve-disconnect'!CB$19","v":-1866.0845400442981},{"$f":"'Res-Appliance class'!$B45*'RES S curve-disconnect'!CC$4+'Res-Appliance class'!$C45*'RES S curve-disconnect'!CC$9+'Res-Appliance class'!$D45*'RES S curve-disconnect'!CC$14+'Res-Appliance class'!$E45*'RES S curve-disconnect'!CC$19","v":-1859.1533189861073},{"$f":"'Res-Appliance class'!$B45*'RES S curve-disconnect'!CD$4+'Res-Appliance class'!$C45*'RES S curve-disconnect'!CD$9+'Res-Appliance class'!$D45*'RES S curve-disconnect'!CD$14+'Res-Appliance class'!$E45*'RES S curve-disconnect'!CD$19","v":-1964.9038192074795}]
["Yarra Ranges (S)",null,{"$f":"'Res-Appliance class'!$B46*'RES S curve-disconnect'!C$4+'Res-Appliance class'!$C46*'RES S curve-disconnect'!C$9+'Res-Appliance class'!$D46*'RES S curve-disconnect'!C$14+'Res-Appliance class'!$E46*'RES S curve-disconnect'!C$19","v":-5013.2385079435608},{"$f":"'Res-Appliance class'!$B46*'RES S curve-disconnect'!D$4+'Res-Appliance class'!$C46*'RES S curve-disconnect'!D$9+'Res-Appliance class'!$D46*'RES S curve-disconnect'!D$14+'Res-Appliance class'!$E46*'RES S curve-disconnect'!D$19","v":-5554.9794976005414},{"$f":"'Res-Appliance class'!$B46*'RES S curve-disconnect'!E$4+'Res-Appliance class'!$C46*'RES S curve-disconnect'!E$9+'Res-Appliance class'!$D46*'RES S curve-disconnect'!E$14+'Res-Appliance class'!$E46*'RES S curve-disconnect'!E$19","v":-4785.6409986389035},{"$f":"'Res-Appliance class'!$B46*'RES S curve-disconnect'!F$4+'Res-Appliance class'!$C46*'RES S curve-disconnect'!F$9+'Res-Appliance class'!$D46*'RES S curve-disconnect'!F$14+'Res-Appliance class'!$E46*'RES S curve-disconnect'!F$19","v":-4621.9804459552743},{"$f":"'Res-Appliance class'!$B46*'RES S curve-disconnect'!G$4+'Res-Appliance class'!$C46*'RES S curve-disconnect'!G$9+'Res-Appliance class'!$D46*'RES S curve-disconnect'!G$14+'Res-Appliance class'!$E46*'RES S curve-disconnect'!G$19","v":-5946.2605565583781},{"$f":"'Res-Appliance class'!$B46*'RES S curve-disconnect'!H$4+'Res-Appliance class'!$C46*'RES S curve-disconnect'!H$9+'Res-Appliance class'!$D46*'RES S curve-disconnect'!H$14+'Res-Appliance class'!$E46*'RES S curve-disconnect'!H$19","v":-5973.8299145195815},{"$f":"'Res-Appliance class'!$B46*'RES S curve-disconnect'!I$4+'Res-Appliance class'!$C46*'RES S curve-disconnect'!I$9+'Res-Appliance class'!$D46*'RES S curve-disconnect'!I$14+'Res-Appliance class'!$E46*'RES S curve-disconnect'!I$19","v":-5510.7307558367265},{"$f":"'Res-Appliance class'!$B46*'RES S curve-disconnect'!J$4+'Res-Appliance class'!$C46*'RES S curve-disconnect'!J$9+'Res-Appliance class'!$D46*'RES S curve-disconnect'!J$14+'Res-Appliance class'!$E46*'RES S curve-disconnect'!J$19","v":-5844.2770322837123},{"$f":"'Res-Appliance class'!$B46*'RES S curve-disconnect'!K$4+'Res-Appliance class'!$C46*'RES S curve-disconnect'!K$9+'Res-Appliance class'!$D46*'RES S curve-disconnect'!K$14+'Res-Appliance class'!$E46*'RES S curve-disconnect'!K$19","v":-4977.3017657513374},{"$f":"'Res-Appliance class'!$B46*'RES S curve-disconnect'!L$4+'Res-Appliance class'!$C46*'RES S curve-disconnect'!L$9+'Res-Appliance class'!$D46*'RES S curve-disconnect'!L$14+'Res-Appliance class'!$E46*'RES S curve-disconnect'!L$19","v":-5346.287473440615},{"$f":"'Res-Appliance class'!$B46*'RES S curve-disconnect'!M$4+'Res-Appliance class'!$C46*'RES S curve-disconnect'!M$9+'Res-Appliance class'!$D46*'RES S curve-disconnect'!M$14+'Res-Appliance class'!$E46*'RES S curve-disconnect'!M$19","v":-6026.0889004590017},{"$f":"'Res-Appliance class'!$B46*'RES S curve-disconnect'!N$4+'Res-Appliance class'!$C46*'RES S curve-disconnect'!N$9+'Res-Appliance class'!$D46*'RES S curve-disconnect'!N$14+'Res-Appliance class'!$E46*'RES S curve-disconnect'!N$19","v":-6088.5727178052948},{"$f":"'Res-Appliance class'!$B46*'RES S curve-disconnect'!O$4+'Res-Appliance class'!$C46*'RES S curve-disconnect'!O$9+'Res-Appliance class'!$D46*'RES S curve-disconnect'!O$14+'Res-Appliance class'!$E46*'RES S curve-disconnect'!O$19","v":-5491.3630704838479},{"$f":"'Res-Appliance class'!$B46*'RES S curve-disconnect'!P$4+'Res-Appliance class'!$C46*'RES S curve-disconnect'!P$9+'Res-Appliance class'!$D46*'RES S curve-disconnect'!P$14+'Res-Appliance class'!$E46*'RES S curve-disconnect'!P$19","v":-5014.4908069832954},{"$f":"'Res-Appliance class'!$B46*'RES S curve-disconnect'!Q$4+'Res-Appliance class'!$C46*'RES S curve-disconnect'!Q$9+'Res-Appliance class'!$D46*'RES S curve-disconnect'!Q$14+'Res-Appliance class'!$E46*'RES S curve-disconnect'!Q$19","v":-4294.6942331726632},{"$f":"'Res-Appliance class'!$B46*'RES S curve-disconnect'!R$4+'Res-Appliance class'!$C46*'RES S curve-disconnect'!R$9+'Res-Appliance class'!$D46*'RES S curve-disconnect'!R$14+'Res-Appliance class'!$E46*'RES S curve-disconnect'!R$19","v":-3885.9114738311691},{"$f":"'Res-Appliance class'!$B46*'RES S curve-disconnect'!S$4+'Res-Appliance class'!$C46*'RES S curve-disconnect'!S$9+'Res-Appliance class'!$D46*'RES S curve-disconnect'!S$14+'Res-Appliance class'!$E46*'RES S curve-disconnect'!S$19","v":-3237.9903015511254},{"$f":"'Res-Appliance class'!$B46*'RES S curve-disconnect'!T$4+'Res-Appliance class'!$C46*'RES S curve-disconnect'!T$9+'Res-Appliance class'!$D46*'RES S curve-disconnect'!T$14+'Res-Appliance class'!$E46*'RES S curve-disconnect'!T$19","v":-2882.3643699741192},{"$f":"'Res-Appliance class'!$B46*'RES S curve-disconnect'!U$4+'Res-Appliance class'!$C46*'RES S curve-disconnect'!U$9+'Res-Appliance class'!$D46*'RES S curve-disconnect'!U$14+'Res-Appliance class'!$E46*'RES S curve-disconnect'!U$19","v":-2478.5712455174671},{"$f":"'Res-Appliance class'!$B46*'RES S curve-disconnect'!V$4+'Res-Appliance class'!$C46*'RES S curve-disconnect'!V$9+'Res-Appliance class'!$D46*'RES S curve-disconnect'!V$14+'Res-Appliance class'!$E46*'RES S curve-disconnect'!V$19","v":-2203.369994677927},{"$f":"'Res-Appliance class'!$B46*'RES S curve-disconnect'!W$4+'Res-Appliance class'!$C46*'RES S curve-disconnect'!W$9+'Res-Appliance class'!$D46*'RES S curve-disconnect'!W$14+'Res-Appliance class'!$E46*'RES S curve-disconnect'!W$19","v":-1988.4766482813745},{"$f":"'Res-Appliance class'!$B46*'RES S curve-disconnect'!X$4+'Res-Appliance class'!$C46*'RES S curve-disconnect'!X$9+'Res-Appliance class'!$D46*'RES S curve-disconnect'!X$14+'Res-Appliance class'!$E46*'RES S curve-disconnect'!X$19","v":-1501.3476955865419},{"$f":"'Res-Appliance class'!$B46*'RES S curve-disconnect'!Y$4+'Res-Appliance class'!$C46*'RES S curve-disconnect'!Y$9+'Res-Appliance class'!$D46*'RES S curve-disconnect'!Y$14+'Res-Appliance class'!$E46*'RES S curve-disconnect'!Y$19","v":-1008.8204146118171},{"$f":"'Res-Appliance class'!$B46*'RES S curve-disconnect'!Z$4+'Res-Appliance class'!$C46*'RES S curve-disconnect'!Z$9+'Res-Appliance class'!$D46*'RES S curve-disconnect'!Z$14+'Res-Appliance class'!$E46*'RES S curve-disconnect'!Z$19","v":-675.30051401672608},{"$f":"'Res-Appliance class'!$B46*'RES S curve-disconnect'!AA$4+'Res-Appliance class'!$C46*'RES S curve-disconnect'!AA$9+'Res-Appliance class'!$D46*'RES S curve-disconnect'!AA$14+'Res-Appliance class'!$E46*'RES S curve-disconnect'!AA$19","v":-342.12016351560089},{"$f":"'Res-Appliance class'!$B46*'RES S curve-disconnect'!AB$4+'Res-Appliance class'!$C46*'RES S curve-disconnect'!AB$9+'Res-Appliance class'!$D46*'RES S curve-disconnect'!AB$14+'Res-Appliance class'!$E46*'RES S curve-disconnect'!AB$19","v":-75.93597172906891},{"$f":"'Res-Appliance class'!$B46*'RES S curve-disconnect'!AC$4+'Res-Appliance class'!$C46*'RES S curve-disconnect'!AC$9+'Res-Appliance class'!$D46*'RES S curve-disconnect'!AC$14+'Res-Appliance class'!$E46*'RES S curve-disconnect'!AC$19","v":180.32023332785667},{"$f":"'Res-Appliance class'!$B46*'RES S curve-disconnect'!AD$4+'Res-Appliance class'!$C46*'RES S curve-disconnect'!AD$9+'Res-Appliance class'!$D46*'RES S curve-disconnect'!AD$14+'Res-Appliance class'!$E46*'RES S curve-disconnect'!AD$19","v":415.45055965412286},{"$f":"'Res-Appliance class'!$B46*'RES S curve-disconnect'!AE$4+'Res-Appliance class'!$C46*'RES S curve-disconnect'!AE$9+'Res-Appliance class'!$D46*'RES S curve-disconnect'!AE$14+'Res-Appliance class'!$E46*'RES S curve-disconnect'!AE$19","v":662.0352830118677},{"$f":"'Res-Appliance class'!$B46*'RES S curve-disconnect'!AF$4+'Res-Appliance class'!$C46*'RES S curve-disconnect'!AF$9+'Res-Appliance class'!$D46*'RES S curve-disconnect'!AF$14+'Res-Appliance class'!$E46*'RES S curve-disconnect'!AF$19","v":981.43182470750696},{"$f":"'Res-Appliance class'!$B46*'RES S curve-disconnect'!AG$4+'Res-Appliance class'!$C46*'RES S curve-disconnect'!AG$9+'Res-Appliance class'!$D46*'RES S curve-disconnect'!AG$14+'Res-Appliance class'!$E46*'RES S curve-disconnect'!AG$19","v":1200.4687267683341},{"$f":"'Res-Appliance class'!$B46*'RES S curve-disconnect'!AH$4+'Res-Appliance class'!$C46*'RES S curve-disconnect'!AH$9+'Res-Appliance class'!$D46*'RES S curve-disconnect'!AH$14+'Res-Appliance class'!$E46*'RES S curve-disconnect'!AH$19","v":1509.7383505921136},{"$f":"'Res-Appliance class'!$B46*'RES S curve-disconnect'!AI$4+'Res-Appliance class'!$C46*'RES S curve-disconnect'!AI$9+'Res-Appliance class'!$D46*'RES S curve-disconnect'!AI$14+'Res-Appliance class'!$E46*'RES S curve-disconnect'!AI$19","v":1786.7938396870372},{"$f":"'Res-Appliance class'!$B46*'RES S curve-disconnect'!AJ$4+'Res-Appliance class'!$C46*'RES S curve-disconnect'!AJ$9+'Res-Appliance class'!$D46*'RES S curve-disconnect'!AJ$14+'Res-Appliance class'!$E46*'RES S curve-disconnect'!AJ$19","v":2037.0270425387102},{"$f":"'Res-Appliance class'!$B46*'RES S curve-disconnect'!AK$4+'Res-Appliance class'!$C46*'RES S curve-disconnect'!AK$9+'Res-Appliance class'!$D46*'RES S curve-disconnect'!AK$14+'Res-Appliance class'!$E46*'RES S curve-disconnect'!AK$19","v":2302.65317509119},{"$f":"'Res-Appliance class'!$B46*'RES S curve-disconnect'!AL$4+'Res-Appliance class'!$C46*'RES S curve-disconnect'!AL$9+'Res-Appliance class'!$D46*'RES S curve-disconnect'!AL$14+'Res-Appliance class'!$E46*'RES S curve-disconnect'!AL$19","v":1385.5875411891579},{"$f":"'Res-Appliance class'!$B46*'RES S curve-disconnect'!AM$4+'Res-Appliance class'!$C46*'RES S curve-disconnect'!AM$9+'Res-Appliance class'!$D46*'RES S curve-disconnect'!AM$14+'Res-Appliance class'!$E46*'RES S curve-disconnect'!AM$19","v":1264.0330578873998},{"$f":"'Res-Appliance class'!$B46*'RES S curve-disconnect'!AN$4+'Res-Appliance class'!$C46*'RES S curve-disconnect'!AN$9+'Res-Appliance class'!$D46*'RES S curve-disconnect'!AN$14+'Res-Appliance class'!$E46*'RES S curve-disconnect'!AN$19","v":1514.690548317855},{"$f":"'Res-Appliance class'!$B46*'RES S curve-disconnect'!AO$4+'Res-Appliance class'!$C46*'RES S curve-disconnect'!AO$9+'Res-Appliance class'!$D46*'RES S curve-disconnect'!AO$14+'Res-Appliance class'!$E46*'RES S curve-disconnect'!AO$19","v":1822.0417086667787},{"$f":"'Res-Appliance class'!$B46*'RES S curve-disconnect'!AP$4+'Res-Appliance class'!$C46*'RES S curve-disconnect'!AP$9+'Res-Appliance class'!$D46*'RES S curve-disconnect'!AP$14+'Res-Appliance class'!$E46*'RES S curve-disconnect'!AP$19","v":2106.4424881505092},{"$f":"'Res-Appliance class'!$B46*'RES S curve-disconnect'!AQ$4+'Res-Appliance class'!$C46*'RES S curve-disconnect'!AQ$9+'Res-Appliance class'!$D46*'RES S curve-disconnect'!AQ$14+'Res-Appliance class'!$E46*'RES S curve-disconnect'!AQ$19","v":2412.1674640014066},{"$f":"'Res-Appliance class'!$B46*'RES S curve-disconnect'!AR$4+'Res-Appliance class'!$C46*'RES S curve-disconnect'!AR$9+'Res-Appliance class'!$D46*'RES S curve-disconnect'!AR$14+'Res-Appliance class'!$E46*'RES S curve-disconnect'!AR$19","v":2748.1339980133521},{"$f":"'Res-Appliance class'!$B46*'RES S curve-disconnect'!AS$4+'Res-Appliance class'!$C46*'RES S curve-disconnect'!AS$9+'Res-Appliance class'!$D46*'RES S curve-disconnect'!AS$14+'Res-Appliance class'!$E46*'RES S curve-disconnect'!AS$19","v":3125.2127463147863},{"$f":"'Res-Appliance class'!$B46*'RES S curve-disconnect'!AT$4+'Res-Appliance class'!$C46*'RES S curve-disconnect'!AT$9+'Res-Appliance class'!$D46*'RES S curve-disconnect'!AT$14+'Res-Appliance class'!$E46*'RES S curve-disconnect'!AT$19","v":3547.3324116698022},{"$f":"'Res-Appliance class'!$B46*'RES S curve-disconnect'!AU$4+'Res-Appliance class'!$C46*'RES S curve-disconnect'!AU$9+'Res-Appliance class'!$D46*'RES S curve-disconnect'!AU$14+'Res-Appliance class'!$E46*'RES S curve-disconnect'!AU$19","v":4035.2931070218024},{"$f":"'Res-Appliance class'!$B46*'RES S curve-disconnect'!AV$4+'Res-Appliance class'!$C46*'RES S curve-disconnect'!AV$9+'Res-Appliance class'!$D46*'RES S curve-disconnect'!AV$14+'Res-Appliance class'!$E46*'RES S curve-disconnect'!AV$19","v":4592.3102624169051},{"$f":"'Res-Appliance class'!$B46*'RES S curve-disconnect'!AW$4+'Res-Appliance class'!$C46*'RES S curve-disconnect'!AW$9+'Res-Appliance class'!$D46*'RES S curve-disconnect'!AW$14+'Res-Appliance class'!$E46*'RES S curve-disconnect'!AW$19","v":5232.7529871155866},{"$f":"'Res-Appliance class'!$B46*'RES S curve-disconnect'!AX$4+'Res-Appliance class'!$C46*'RES S curve-disconnect'!AX$9+'Res-Appliance class'!$D46*'RES S curve-disconnect'!AX$14+'Res-Appliance class'!$E46*'RES S curve-disconnect'!AX$19","v":5963.1747842246359},{"$f":"'Res-Appliance class'!$B46*'RES S curve-disconnect'!AY$4+'Res-Appliance class'!$C46*'RES S curve-disconnect'!AY$9+'Res-Appliance class'!$D46*'RES S curve-disconnect'!AY$14+'Res-Appliance class'!$E46*'RES S curve-disconnect'!AY$19","v":6805.7856043276734},{"$f":"'Res-Appliance class'!$B46*'RES S curve-disconnect'!AZ$4+'Res-Appliance class'!$C46*'RES S curve-disconnect'!AZ$9+'Res-Appliance class'!$D46*'RES S curve-disconnect'!AZ$14+'Res-Appliance class'!$E46*'RES S curve-disconnect'!AZ$19","v":7769.7081175290677},{"$f":"'Res-Appliance class'!$B46*'RES S curve-disconnect'!BA$4+'Res-Appliance class'!$C46*'RES S curve-disconnect'!BA$9+'Res-Appliance class'!$D46*'RES S curve-disconnect'!BA$14+'Res-Appliance class'!$E46*'RES S curve-disconnect'!BA$19","v":8886.4960453260173},{"$f":"'Res-Appliance class'!$B46*'RES S curve-disconnect'!BB$4+'Res-Appliance class'!$C46*'RES S curve-disconnect'!BB$9+'Res-Appliance class'!$D46*'RES S curve-disconnect'!BB$14+'Res-Appliance class'!$E46*'RES S curve-disconnect'!BB$19","v":10192.101847796195},{"$f":"'Res-Appliance class'!$B46*'RES S curve-disconnect'!BC$4+'Res-Appliance class'!$C46*'RES S curve-disconnect'!BC$9+'Res-Appliance class'!$D46*'RES S curve-disconnect'!BC$14+'Res-Appliance class'!$E46*'RES S curve-disconnect'!BC$19","v":11749.208810624841},{"$f":"'Res-Appliance class'!$B46*'RES S curve-disconnect'!BD$4+'Res-Appliance class'!$C46*'RES S curve-disconnect'!BD$9+'Res-Appliance class'!$D46*'RES S curve-disconnect'!BD$14+'Res-Appliance class'!$E46*'RES S curve-disconnect'!BD$19","v":13253.521840000642},{"$f":"'Res-Appliance class'!$B46*'RES S curve-disconnect'!BE$4+'Res-Appliance class'!$C46*'RES S curve-disconnect'!BE$9+'Res-Appliance class'!$D46*'RES S curve-disconnect'!BE$14+'Res-Appliance class'!$E46*'RES S curve-disconnect'!BE$19","v":14629.20408953589},{"$f":"'Res-Appliance class'!$B46*'RES S curve-disconnect'!BF$4+'Res-Appliance class'!$C46*'RES S curve-disconnect'!BF$9+'Res-Appliance class'!$D46*'RES S curve-disconnect'!BF$14+'Res-Appliance class'!$E46*'RES S curve-disconnect'!BF$19","v":16036.569220129148},{"$f":"'Res-Appliance class'!$B46*'RES S curve-disconnect'!BG$4+'Res-Appliance class'!$C46*'RES S curve-disconnect'!BG$9+'Res-Appliance class'!$D46*'RES S curve-disconnect'!BG$14+'Res-Appliance class'!$E46*'RES S curve-disconnect'!BG$19","v":17628.567890253995},{"$f":"'Res-Appliance class'!$B46*'RES S curve-disconnect'!BH$4+'Res-Appliance class'!$C46*'RES S curve-disconnect'!BH$9+'Res-Appliance class'!$D46*'RES S curve-disconnect'!BH$14+'Res-Appliance class'!$E46*'RES S curve-disconnect'!BH$19","v":19518.856447149141},{"$f":"'Res-Appliance class'!$B46*'RES S curve-disconnect'!BI$4+'Res-Appliance class'!$C46*'RES S curve-disconnect'!BI$9+'Res-Appliance class'!$D46*'RES S curve-disconnect'!BI$14+'Res-Appliance class'!$E46*'RES S curve-disconnect'!BI$19","v":22257.377035195328},{"$f":"'Res-Appliance class'!$B46*'RES S curve-disconnect'!BJ$4+'Res-Appliance class'!$C46*'RES S curve-disconnect'!BJ$9+'Res-Appliance class'!$D46*'RES S curve-disconnect'!BJ$14+'Res-Appliance class'!$E46*'RES S curve-disconnect'!BJ$19","v":26270.633058040246},{"$f":"'Res-Appliance class'!$B46*'RES S curve-disconnect'!BK$4+'Res-Appliance class'!$C46*'RES S curve-disconnect'!BK$9+'Res-Appliance class'!$D46*'RES S curve-disconnect'!BK$14+'Res-Appliance class'!$E46*'RES S curve-disconnect'!BK$19","v":32197.133580274458},{"$f":"'Res-Appliance class'!$B46*'RES S curve-disconnect'!BL$4+'Res-Appliance class'!$C46*'RES S curve-disconnect'!BL$9+'Res-Appliance class'!$D46*'RES S curve-disconnect'!BL$14+'Res-Appliance class'!$E46*'RES S curve-disconnect'!BL$19","v":-1972.3415316939136},{"$f":"'Res-Appliance class'!$B46*'RES S curve-disconnect'!BM$4+'Res-Appliance class'!$C46*'RES S curve-disconnect'!BM$9+'Res-Appliance class'!$D46*'RES S curve-disconnect'!BM$14+'Res-Appliance class'!$E46*'RES S curve-disconnect'!BM$19","v":-1964.8800098849576},{"$f":"'Res-Appliance class'!$B46*'RES S curve-disconnect'!BN$4+'Res-Appliance class'!$C46*'RES S curve-disconnect'!BN$9+'Res-Appliance class'!$D46*'RES S curve-disconnect'!BN$14+'Res-Appliance class'!$E46*'RES S curve-disconnect'!BN$19","v":-1960.7689543261006},{"$f":"'Res-Appliance class'!$B46*'RES S curve-disconnect'!BO$4+'Res-Appliance class'!$C46*'RES S curve-disconnect'!BO$9+'Res-Appliance class'!$D46*'RES S curve-disconnect'!BO$14+'Res-Appliance class'!$E46*'RES S curve-disconnect'!BO$19","v":-1949.9870452390323},{"$f":"'Res-Appliance class'!$B46*'RES S curve-disconnect'!BP$4+'Res-Appliance class'!$C46*'RES S curve-disconnect'!BP$9+'Res-Appliance class'!$D46*'RES S curve-disconnect'!BP$14+'Res-Appliance class'!$E46*'RES S curve-disconnect'!BP$19","v":-1942.5554823224488},{"$f":"'Res-Appliance class'!$B46*'RES S curve-disconnect'!BQ$4+'Res-Appliance class'!$C46*'RES S curve-disconnect'!BQ$9+'Res-Appliance class'!$D46*'RES S curve-disconnect'!BQ$14+'Res-Appliance class'!$E46*'RES S curve-disconnect'!BQ$19","v":-1935.1337862440951},{"$f":"'Res-Appliance class'!$B46*'RES S curve-disconnect'!BR$4+'Res-Appliance class'!$C46*'RES S curve-disconnect'!BR$9+'Res-Appliance class'!$D46*'RES S curve-disconnect'!BR$14+'Res-Appliance class'!$E46*'RES S curve-disconnect'!BR$19","v":-1931.0623177417847},{"$f":"'Res-Appliance class'!$B46*'RES S curve-disconnect'!BS$4+'Res-Appliance class'!$C46*'RES S curve-disconnect'!BS$9+'Res-Appliance class'!$D46*'RES S curve-disconnect'!BS$14+'Res-Appliance class'!$E46*'RES S curve-disconnect'!BS$19","v":-1920.3197585177156},{"$f":"'Res-Appliance class'!$B46*'RES S curve-disconnect'!BT$4+'Res-Appliance class'!$C46*'RES S curve-disconnect'!BT$9+'Res-Appliance class'!$D46*'RES S curve-disconnect'!BT$14+'Res-Appliance class'!$E46*'RES S curve-disconnect'!BT$19","v":-1912.9273097417445},{"$f":"'Res-Appliance class'!$B46*'RES S curve-disconnect'!BU$4+'Res-Appliance class'!$C46*'RES S curve-disconnect'!BU$9+'Res-Appliance class'!$D46*'RES S curve-disconnect'!BU$14+'Res-Appliance class'!$E46*'RES S curve-disconnect'!BU$19","v":-1905.5444935435003},{"$f":"'Res-Appliance class'!$B46*'RES S curve-disconnect'!BV$4+'Res-Appliance class'!$C46*'RES S curve-disconnect'!BV$9+'Res-Appliance class'!$D46*'RES S curve-disconnect'!BV$14+'Res-Appliance class'!$E46*'RES S curve-disconnect'!BV$19","v":-1901.5116721134641},{"$f":"'Res-Appliance class'!$B46*'RES S curve-disconnect'!BW$4+'Res-Appliance class'!$C46*'RES S curve-disconnect'!BW$9+'Res-Appliance class'!$D46*'RES S curve-disconnect'!BW$14+'Res-Appliance class'!$E46*'RES S curve-disconnect'!BW$19","v":-1890.8075285973307},{"$f":"'Res-Appliance class'!$B46*'RES S curve-disconnect'!BX$4+'Res-Appliance class'!$C46*'RES S curve-disconnect'!BX$9+'Res-Appliance class'!$D46*'RES S curve-disconnect'!BX$14+'Res-Appliance class'!$E46*'RES S curve-disconnect'!BX$19","v":-1883.4532655993596},{"$f":"'Res-Appliance class'!$B46*'RES S curve-disconnect'!BY$4+'Res-Appliance class'!$C46*'RES S curve-disconnect'!BY$9+'Res-Appliance class'!$D46*'RES S curve-disconnect'!BY$14+'Res-Appliance class'!$E46*'RES S curve-disconnect'!BY$19","v":-1876.1084066745339},{"$f":"'Res-Appliance class'!$B46*'RES S curve-disconnect'!BZ$4+'Res-Appliance class'!$C46*'RES S curve-disconnect'!BZ$9+'Res-Appliance class'!$D46*'RES S curve-disconnect'!BZ$14+'Res-Appliance class'!$E46*'RES S curve-disconnect'!BZ$19","v":-1872.1133154296961},{"$f":"'Res-Appliance class'!$B46*'RES S curve-disconnect'!CA$4+'Res-Appliance class'!$C46*'RES S curve-disconnect'!CA$9+'Res-Appliance class'!$D46*'RES S curve-disconnect'!CA$14+'Res-Appliance class'!$E46*'RES S curve-disconnect'!CA$19","v":-1861.4466764179765},{"$f":"'Res-Appliance class'!$B46*'RES S curve-disconnect'!CB$4+'Res-Appliance class'!$C46*'RES S curve-disconnect'!CB$9+'Res-Appliance class'!$D46*'RES S curve-disconnect'!CB$14+'Res-Appliance class'!$E46*'RES S curve-disconnect'!CB$19","v":-1854.1296936421913},{"$f":"'Res-Appliance class'!$B46*'RES S curve-disconnect'!CC$4+'Res-Appliance class'!$C46*'RES S curve-disconnect'!CC$9+'Res-Appliance class'!$D46*'RES S curve-disconnect'!CC$14+'Res-Appliance class'!$E46*'RES S curve-disconnect'!CC$19","v":-1846.8218920470665},{"$f":"'Res-Appliance class'!$B46*'RES S curve-disconnect'!CD$4+'Res-Appliance class'!$C46*'RES S curve-disconnect'!CD$9+'Res-Appliance class'!$D46*'RES S curve-disconnect'!CD$14+'Res-Appliance class'!$E46*'RES S curve-disconnect'!CD$19","v":-1959.1397308761104}]
[]
["LGA Low",2020,{"$f":"B226+1","v":2021},{"$f":"C226+1","v":2022},{"$f":"D226+1","v":2023},{"$f":"E226+1","v":2024},{"$f":"F226+1","v":2025},{"$f":"G226+1","v":2026},{"$f":"H226+1","v":2027},{"$f":"I226+1","v":2028},{"$f":"J226+1","v":2029},{"$f":"K226+1","v":2030},{"$f":"L226+1","v":2031},{"$f":"M226+1","v":2032},{"$f":"N226+1","v":2033},{"$f":"O226+1","v":2034},{"$f":"P226+1","v":2035},{"$f":"Q226+1","v":2036},{"$f":"R226+1","v":2037},{"$f":"S226+1","v":2038},{"$f":"T226+1","v":2039},{"$f":"U226+1","v":2040},{"$f":"V226+1","v":2041},{"$f":"W226+1","v":2042},{"$f":"X226+1","v":2043},{"$f":"Y226+1","v":2044},{"$f":"Z226+1","v":2045},{"$f":"AA226+1","v":2046},{"$f":"AB226+1","v":2047},{"$f":"AC226+1","v":2048},{"$f":"AD226+1","v":2049},{"$f":"AE226+1","v":2050},{"$f":"AF226+1","v":2051},{"$f":"AG226+1","v":2052},{"$f":"AH226+1","v":2053},{"$f":"AI226+1","v":2054},{"$f":"AJ226+1","v":2055},{"$f":"AK226+1","v":2056},{"$f":"AL226+1","v":2057},{"$f":"AM226+1","v":2058},{"$f":"AN226+1","v":2059},{"$f":"AO226+1","v":2060},{"$f":"AP226+1","v":2061},{"$f":"AQ226+1","v":2062},{"$f":"AR226+1","v":2063},{"$f":"AS226+1","v":2064},{"$f":"AT226+1","v":2065},{"$f":"AU226+1","v":2066},{"$f":"AV226+1","v":2067},{"$f":"AW226+1","v":2068},{"$f":"AX226+1","v":2069},{"$f":"AY226+1","v":2070},{"$f":"AZ226+1","v":2071},{"$f":"BA226+1","v":2072},{"$f":"BB226+1","v":2073},{"$f":"BC226+1","v":2074},{"$f":"BD226+1","v":2075},{"$f":"BE226+1","v":2076},{"$f":"BF226+1","v":2077},{"$f":"BG226+1","v":2078},{"$f":"BH226+1","v":2079},{"$f":"BI226+1","v":2080},{"$f":"BJ226+1","v":2081},{"$f":"BK226+1","v":2082},{"$f":"BL226+1","v":2083},{"$f":"BM226+1","v":2084},{"$f":"BN226+1","v":2085},{"$f":"BO226+1","v":2086},{"$f":"BP226+1","v":2087},{"$f":"BQ226+1","v":2088},{"$f":"BR226+1","v":2089},{"$f":"BS226+1","v":2090},{"$f":"BT226+1","v":2091},{"$f":"BU226+1","v":2092},{"$f":"BV226+1","v":2093},{"$f":"BW226+1","v":2094},{"$f":"BX226+1","v":2095},{"$f":"BY226+1","v":2096},{"$f":"BZ226+1","v":2097},{"$f":"CA226+1","v":2098},{"$f":"CB226+1","v":2099},{"$f":"CC226+1","v":2100}]
["Bass Coast (S)",null,{"$f":"'Res-Appliance class'!$B27*'RES S curve-disconnect'!C$5+'Res-Appliance class'!$C27*'RES S curve-disconnect'!C$10+'Res-Appliance class'!$D27*'RES S curve-disconnect'!C$15+'Res-Appliance class'!$E27*'RES S curve-disconnect'!C$20","v":-4002.110732600247},{"$f":"'Res-Appliance class'!$B27*'RES S curve-disconnect'!D$5+'Res-Appliance class'!$C27*'RES S curve-disconnect'!D$10+'Res-Appliance class'!$D27*'RES S curve-disconnect'!D$15+'Res-Appliance class'!$E27*'RES S curve-disconnect'!D$20","v":-4248.9513257410254},{"$f":"'Res-Appliance class'!$B27*'RES S curve-disconnect'!E$5+'Res-Appliance class'!$C27*'RES S curve-disconnect'!E$10+'Res-Appliance class'!$D27*'RES S curve-disconnect'!E$15+'Res-Appliance class'!$E27*'RES S curve-disconnect'!E$20","v":-3661.8421313637305},{"$f":"'Res-Appliance class'!$B27*'RES S curve-disconnect'!F$5+'Res-Appliance class'!$C27*'RES S curve-disconnect'!F$10+'Res-Appliance class'!$D27*'RES S curve-disconnect'!F$15+'Res-Appliance class'!$E27*'RES S curve-disconnect'!F$20","v":-3594.177915008192},{"$f":"'Res-Appliance class'!$B27*'RES S curve-disconnect'!G$5+'Res-Appliance class'!$C27*'RES S curve-disconnect'!G$10+'Res-Appliance class'!$D27*'RES S curve-disconnect'!G$15+'Res-Appliance class'!$E27*'RES S curve-disconnect'!G$20","v":-4198.8616931261158},{"$f":"'Res-Appliance class'!$B27*'RES S curve-disconnect'!H$5+'Res-Appliance class'!$C27*'RES S curve-disconnect'!H$10+'Res-Appliance class'!$D27*'RES S curve-disconnect'!H$15+'Res-Appliance class'!$E27*'RES S curve-disconnect'!H$20","v":-4245.2198722350367},{"$f":"'Res-Appliance class'!$B27*'RES S curve-disconnect'!I$5+'Res-Appliance class'!$C27*'RES S curve-disconnect'!I$10+'Res-Appliance class'!$D27*'RES S curve-disconnect'!I$15+'Res-Appliance class'!$E27*'RES S curve-disconnect'!I$20","v":-4046.2429975796213},{"$f":"'Res-Appliance class'!$B27*'RES S curve-disconnect'!J$5+'Res-Appliance class'!$C27*'RES S curve-disconnect'!J$10+'Res-Appliance class'!$D27*'RES S curve-disconnect'!J$15+'Res-Appliance class'!$E27*'RES S curve-disconnect'!J$20","v":-4373.7158035632046},{"$f":"'Res-Appliance class'!$B27*'RES S curve-disconnect'!K$5+'Res-Appliance class'!$C27*'RES S curve-disconnect'!K$10+'Res-Appliance class'!$D27*'RES S curve-disconnect'!K$15+'Res-Appliance class'!$E27*'RES S curve-disconnect'!K$20","v":-3913.0258307977388},{"$f":"'Res-Appliance class'!$B27*'RES S curve-disconnect'!L$5+'Res-Appliance class'!$C27*'RES S curve-disconnect'!L$10+'Res-Appliance class'!$D27*'RES S curve-disconnect'!L$15+'Res-Appliance class'!$E27*'RES S curve-disconnect'!L$20","v":-4064.9570775054808},{"$f":"'Res-Appliance class'!$B27*'RES S curve-disconnect'!M$5+'Res-Appliance class'!$C27*'RES S curve-disconnect'!M$10+'Res-Appliance class'!$D27*'RES S curve-disconnect'!M$15+'Res-Appliance class'!$E27*'RES S curve-disconnect'!M$20","v":-4330.0442467483026},{"$f":"'Res-Appliance class'!$B27*'RES S curve-disconnect'!N$5+'Res-Appliance class'!$C27*'RES S curve-disconnect'!N$10+'Res-Appliance class'!$D27*'RES S curve-disconnect'!N$15+'Res-Appliance class'!$E27*'RES S curve-disconnect'!N$20","v":-4341.1955326136695},{"$f":"'Res-Appliance class'!$B27*'RES S curve-disconnect'!O$5+'Res-Appliance class'!$C27*'RES S curve-disconnect'!O$10+'Res-Appliance class'!$D27*'RES S curve-disconnect'!O$15+'Res-Appliance class'!$E27*'RES S curve-disconnect'!O$20","v":-4061.3527922312305},{"$f":"'Res-Appliance class'!$B27*'RES S curve-disconnect'!P$5+'Res-Appliance class'!$C27*'RES S curve-disconnect'!P$10+'Res-Appliance class'!$D27*'RES S curve-disconnect'!P$15+'Res-Appliance class'!$E27*'RES S curve-disconnect'!P$20","v":-3838.1450034743266},{"$f":"'Res-Appliance class'!$B27*'RES S curve-disconnect'!Q$5+'Res-Appliance class'!$C27*'RES S curve-disconnect'!Q$10+'Res-Appliance class'!$D27*'RES S curve-disconnect'!Q$15+'Res-Appliance class'!$E27*'RES S curve-disconnect'!Q$20","v":-3509.1734334452576},{"$f":"'Res-Appliance class'!$B27*'RES S curve-disconnect'!R$5+'Res-Appliance class'!$C27*'RES S curve-disconnect'!R$10+'Res-Appliance class'!$D27*'RES S curve-disconnect'!R$15+'Res-Appliance class'!$E27*'RES S curve-disconnect'!R$20","v":-3316.3592242143336},{"$f":"'Res-Appliance class'!$B27*'RES S curve-disconnect'!S$5+'Res-Appliance class'!$C27*'RES S curve-disconnect'!S$10+'Res-Appliance class'!$D27*'RES S curve-disconnect'!S$15+'Res-Appliance class'!$E27*'RES S curve-disconnect'!S$20","v":-3014.0456395415404},{"$f":"'Res-Appliance class'!$B27*'RES S curve-disconnect'!T$5+'Res-Appliance class'!$C27*'RES S curve-disconnect'!T$10+'Res-Appliance class'!$D27*'RES S curve-disconnect'!T$15+'Res-Appliance class'!$E27*'RES S curve-disconnect'!T$20","v":-2853.2741647595099},{"$f":"'Res-Appliance class'!$B27*'RES S curve-disconnect'!U$5+'Res-Appliance class'!$C27*'RES S curve-disconnect'!U$10+'Res-Appliance class'!$D27*'RES S curve-disconnect'!U$15+'Res-Appliance class'!$E27*'RES S curve-disconnect'!U$20","v":-2664.5549094469588},{"$f":"'Res-Appliance class'!$B27*'RES S curve-disconnect'!V$5+'Res-Appliance class'!$C27*'RES S curve-disconnect'!V$10+'Res-Appliance class'!$D27*'RES S curve-disconnect'!V$15+'Res-Appliance class'!$E27*'RES S curve-disconnect'!V$20","v":-2528.4374947349797},{"$f":"'Res-Appliance class'!$B27*'RES S curve-disconnect'!W$5+'Res-Appliance class'!$C27*'RES S curve-disconnect'!W$10+'Res-Appliance class'!$D27*'RES S curve-disconnect'!W$15+'Res-Appliance class'!$E27*'RES S curve-disconnect'!W$20","v":-2419.005417008163},{"$f":"'Res-Appliance class'!$B27*'RES S curve-disconnect'!X$5+'Res-Appliance class'!$C27*'RES S curve-disconnect'!X$10+'Res-Appliance class'!$D27*'RES S curve-disconnect'!X$15+'Res-Appliance class'!$E27*'RES S curve-disconnect'!X$20","v":-2195.6495236932806},{"$f":"'Res-Appliance class'!$B27*'RES S curve-disconnect'!Y$5+'Res-Appliance class'!$C27*'RES S curve-disconnect'!Y$10+'Res-Appliance class'!$D27*'RES S curve-disconnect'!Y$15+'Res-Appliance class'!$E27*'RES S curve-disconnect'!Y$20","v":-1968.8047045118519},{"$f":"'Res-Appliance class'!$B27*'RES S curve-disconnect'!Z$5+'Res-Appliance class'!$C27*'RES S curve-disconnect'!Z$10+'Res-Appliance class'!$D27*'RES S curve-disconnect'!Z$15+'Res-Appliance class'!$E27*'RES S curve-disconnect'!Z$20","v":-1809.787697437087},{"$f":"'Res-Appliance class'!$B27*'RES S curve-disconnect'!AA$5+'Res-Appliance class'!$C27*'RES S curve-disconnect'!AA$10+'Res-Appliance class'!$D27*'RES S curve-disconnect'!AA$15+'Res-Appliance class'!$E27*'RES S curve-disconnect'!AA$20","v":-1649.5556705960607},{"$f":"'Res-Appliance class'!$B27*'RES S curve-disconnect'!AB$5+'Res-Appliance class'!$C27*'RES S curve-disconnect'!AB$10+'Res-Appliance class'!$D27*'RES S curve-disconnect'!AB$15+'Res-Appliance class'!$E27*'RES S curve-disconnect'!AB$20","v":-1518.1192762827186},{"$f":"'Res-Appliance class'!$B27*'RES S curve-disconnect'!AC$5+'Res-Appliance class'!$C27*'RES S curve-disconnect'!AC$10+'Res-Appliance class'!$D27*'RES S curve-disconnect'!AC$15+'Res-Appliance class'!$E27*'RES S curve-disconnect'!AC$20","v":-1390.1906723816803},{"$f":"'Res-Appliance class'!$B27*'RES S curve-disconnect'!AD$5+'Res-Appliance class'!$C27*'RES S curve-disconnect'!AD$10+'Res-Appliance class'!$D27*'RES S curve-disconnect'!AD$15+'Res-Appliance class'!$E27*'RES S curve-disconnect'!AD$20","v":-1271.6455753752625},{"$f":"'Res-Appliance class'!$B27*'RES S curve-disconnect'!AE$5+'Res-Appliance class'!$C27*'RES S curve-disconnect'!AE$10+'Res-Appliance class'!$D27*'RES S curve-disconnect'!AE$15+'Res-Appliance class'!$E27*'RES S curve-disconnect'!AE$20","v":-1146.0803458089299},{"$f":"'Res-Appliance class'!$B27*'RES S curve-disconnect'!AF$5+'Res-Appliance class'!$C27*'RES S curve-disconnect'!AF$10+'Res-Appliance class'!$D27*'RES S curve-disconnect'!AF$15+'Res-Appliance class'!$E27*'RES S curve-disconnect'!AF$20","v":-990.27559383930429},{"$f":"'Res-Appliance class'!$B27*'RES S curve-disconnect'!AG$5+'Res-Appliance class'!$C27*'RES S curve-disconnect'!AG$10+'Res-Appliance class'!$D27*'RES S curve-disconnect'!AG$15+'Res-Appliance class'!$E27*'RES S curve-disconnect'!AG$20","v":-892.3950120154542},{"$f":"'Res-Appliance class'!$B27*'RES S curve-disconnect'!AH$5+'Res-Appliance class'!$C27*'RES S curve-disconnect'!AH$10+'Res-Appliance class'!$D27*'RES S curve-disconnect'!AH$15+'Res-Appliance class'!$E27*'RES S curve-disconnect'!AH$20","v":-758.26452903739448},{"$f":"'Res-Appliance class'!$B27*'RES S curve-disconnect'!AI$5+'Res-Appliance class'!$C27*'RES S curve-disconnect'!AI$10+'Res-Appliance class'!$D27*'RES S curve-disconnect'!AI$15+'Res-Appliance class'!$E27*'RES S curve-disconnect'!AI$20","v":-634.41046716753999},{"$f":"'Res-Appliance class'!$B27*'RES S curve-disconnect'!AJ$5+'Res-Appliance class'!$C27*'RES S curve-disconnect'!AJ$10+'Res-Appliance class'!$D27*'RES S curve-disconnect'!AJ$15+'Res-Appliance class'!$E27*'RES S curve-disconnect'!AJ$20","v":-523.31718327539625},{"$f":"'Res-Appliance class'!$B27*'RES S curve-disconnect'!AK$5+'Res-Appliance class'!$C27*'RES S curve-disconnect'!AK$10+'Res-Appliance class'!$D27*'RES S curve-disconnect'!AK$15+'Res-Appliance class'!$E27*'RES S curve-disconnect'!AK$20","v":-405.25924984252481},{"$f":"'Res-Appliance class'!$B27*'RES S curve-disconnect'!AL$5+'Res-Appliance class'!$C27*'RES S curve-disconnect'!AL$10+'Res-Appliance class'!$D27*'RES S curve-disconnect'!AL$15+'Res-Appliance class'!$E27*'RES S curve-disconnect'!AL$20","v":-822.74761615631087},{"$f":"'Res-Appliance class'!$B27*'RES S curve-disconnect'!AM$5+'Res-Appliance class'!$C27*'RES S curve-disconnect'!AM$10+'Res-Appliance class'!$D27*'RES S curve-disconnect'!AM$15+'Res-Appliance class'!$E27*'RES S curve-disconnect'!AM$20","v":-872.47400878848418},{"$f":"'Res-Appliance class'!$B27*'RES S curve-disconnect'!AN$5+'Res-Appliance class'!$C27*'RES S curve-disconnect'!AN$10+'Res-Appliance class'!$D27*'RES S curve-disconnect'!AN$15+'Res-Appliance class'!$E27*'RES S curve-disconnect'!AN$20","v":-758.19848854759823},{"$f":"'Res-Appliance class'!$B27*'RES S curve-disconnect'!AO$5+'Res-Appliance class'!$C27*'RES S curve-disconnect'!AO$10+'Res-Appliance class'!$D27*'RES S curve-disconnect'!AO$15+'Res-Appliance class'!$E27*'RES S curve-disconnect'!AO$20","v":-620.79735012357764},{"$f":"'Res-Appliance class'!$B27*'RES S curve-disconnect'!AP$5+'Res-Appliance class'!$C27*'RES S curve-disconnect'!AP$10+'Res-Appliance class'!$D27*'RES S curve-disconnect'!AP$15+'Res-Appliance class'!$E27*'RES S curve-disconnect'!AP$20","v":-495.26290952859574},{"$f":"'Res-Appliance class'!$B27*'RES S curve-disconnect'!AQ$5+'Res-Appliance class'!$C27*'RES S curve-disconnect'!AQ$10+'Res-Appliance class'!$D27*'RES S curve-disconnect'!AQ$15+'Res-Appliance class'!$E27*'RES S curve-disconnect'!AQ$20","v":-358.68667420156532},{"$f":"'Res-Appliance class'!$B27*'RES S curve-disconnect'!AR$5+'Res-Appliance class'!$C27*'RES S curve-disconnect'!AR$10+'Res-Appliance class'!$D27*'RES S curve-disconnect'!AR$15+'Res-Appliance class'!$E27*'RES S curve-disconnect'!AR$20","v":-209.55242058391261},{"$f":"'Res-Appliance class'!$B27*'RES S curve-disconnect'!AS$5+'Res-Appliance class'!$C27*'RES S curve-disconnect'!AS$10+'Res-Appliance class'!$D27*'RES S curve-disconnect'!AS$15+'Res-Appliance class'!$E27*'RES S curve-disconnect'!AS$20","v":-42.41466162223935},{"$f":"'Res-Appliance class'!$B27*'RES S curve-disconnect'!AT$5+'Res-Appliance class'!$C27*'RES S curve-disconnect'!AT$10+'Res-Appliance class'!$D27*'RES S curve-disconnect'!AT$15+'Res-Appliance class'!$E27*'RES S curve-disconnect'!AT$20","v":143.59034564191791},{"$f":"'Res-Appliance class'!$B27*'RES S curve-disconnect'!AU$5+'Res-Appliance class'!$C27*'RES S curve-disconnect'!AU$10+'Res-Appliance class'!$D27*'RES S curve-disconnect'!AU$15+'Res-Appliance class'!$E27*'RES S curve-disconnect'!AU$20","v":359.93301293448121},{"$f":"'Res-Appliance class'!$B27*'RES S curve-disconnect'!AV$5+'Res-Appliance class'!$C27*'RES S curve-disconnect'!AV$10+'Res-Appliance class'!$D27*'RES S curve-disconnect'!AV$15+'Res-Appliance class'!$E27*'RES S curve-disconnect'!AV$20","v":605.53334946833195},{"$f":"'Res-Appliance class'!$B27*'RES S curve-disconnect'!AW$5+'Res-Appliance class'!$C27*'RES S curve-disconnect'!AW$10+'Res-Appliance class'!$D27*'RES S curve-disconnect'!AW$15+'Res-Appliance class'!$E27*'RES S curve-disconnect'!AW$20","v":887.27697303325954},{"$f":"'Res-Appliance class'!$B27*'RES S curve-disconnect'!AX$5+'Res-Appliance class'!$C27*'RES S curve-disconnect'!AX$10+'Res-Appliance class'!$D27*'RES S curve-disconnect'!AX$15+'Res-Appliance class'!$E27*'RES S curve-disconnect'!AX$20","v":1206.9553472863909},{"$f":"'Res-Appliance class'!$B27*'RES S curve-disconnect'!AY$5+'Res-Appliance class'!$C27*'RES S curve-disconnect'!AY$10+'Res-Appliance class'!$D27*'RES S curve-disconnect'!AY$15+'Res-Appliance class'!$E27*'RES S curve-disconnect'!AY$20","v":1576.3932641567267},{"$f":"'Res-Appliance class'!$B27*'RES S curve-disconnect'!AZ$5+'Res-Appliance class'!$C27*'RES S curve-disconnect'!AZ$10+'Res-Appliance class'!$D27*'RES S curve-disconnect'!AZ$15+'Res-Appliance class'!$E27*'RES S curve-disconnect'!AZ$20","v":1996.8480058654595},{"$f":"'Res-Appliance class'!$B27*'RES S curve-disconnect'!BA$5+'Res-Appliance class'!$C27*'RES S curve-disconnect'!BA$10+'Res-Appliance class'!$D27*'RES S curve-disconnect'!BA$15+'Res-Appliance class'!$E27*'RES S curve-disconnect'!BA$20","v":2482.4951668623803},{"$f":"'Res-Appliance class'!$B27*'RES S curve-disconnect'!BB$5+'Res-Appliance class'!$C27*'RES S curve-disconnect'!BB$10+'Res-Appliance class'!$D27*'RES S curve-disconnect'!BB$15+'Res-Appliance class'!$E27*'RES S curve-disconnect'!BB$20","v":3047.6233308718147},{"$f":"'Res-Appliance class'!$B27*'RES S curve-disconnect'!BC$5+'Res-Appliance class'!$C27*'RES S curve-disconnect'!BC$10+'Res-Appliance class'!$D27*'RES S curve-disconnect'!BC$15+'Res-Appliance class'!$E27*'RES S curve-disconnect'!BC$20","v":3721.1374449557275},{"$f":"'Res-Appliance class'!$B27*'RES S curve-disconnect'!BD$5+'Res-Appliance class'!$C27*'RES S curve-disconnect'!BD$10+'Res-Appliance class'!$D27*'RES S curve-disconnect'!BD$15+'Res-Appliance class'!$E27*'RES S curve-disconnect'!BD$20","v":4365.0394811672695},{"$f":"'Res-Appliance class'!$B27*'RES S curve-disconnect'!BE$5+'Res-Appliance class'!$C27*'RES S curve-disconnect'!BE$10+'Res-Appliance class'!$D27*'RES S curve-disconnect'!BE$15+'Res-Appliance class'!$E27*'RES S curve-disconnect'!BE$20","v":4951.6211697857452},{"$f":"'Res-Appliance class'!$B27*'RES S curve-disconnect'!BF$5+'Res-Appliance class'!$C27*'RES S curve-disconnect'!BF$10+'Res-Appliance class'!$D27*'RES S curve-disconnect'!BF$15+'Res-Appliance class'!$E27*'RES S curve-disconnect'!BF$20","v":5552.3814798313124},{"$f":"'Res-Appliance class'!$B27*'RES S curve-disconnect'!BG$5+'Res-Appliance class'!$C27*'RES S curve-disconnect'!BG$10+'Res-Appliance class'!$D27*'RES S curve-disconnect'!BG$15+'Res-Appliance class'!$E27*'RES S curve-disconnect'!BG$20","v":6234.5062138523517},{"$f":"'Res-Appliance class'!$B27*'RES S curve-disconnect'!BH$5+'Res-Appliance class'!$C27*'RES S curve-disconnect'!BH$10+'Res-Appliance class'!$D27*'RES S curve-disconnect'!BH$15+'Res-Appliance class'!$E27*'RES S curve-disconnect'!BH$20","v":7042.9139699444504},{"$f":"'Res-Appliance class'!$B27*'RES S curve-disconnect'!BI$5+'Res-Appliance class'!$C27*'RES S curve-disconnect'!BI$10+'Res-Appliance class'!$D27*'RES S curve-disconnect'!BI$15+'Res-Appliance class'!$E27*'RES S curve-disconnect'!BI$20","v":8215.666561793967},{"$f":"'Res-Appliance class'!$B27*'RES S curve-disconnect'!BJ$5+'Res-Appliance class'!$C27*'RES S curve-disconnect'!BJ$10+'Res-Appliance class'!$D27*'RES S curve-disconnect'!BJ$15+'Res-Appliance class'!$E27*'RES S curve-disconnect'!BJ$20","v":9926.4947606404257},{"$f":"'Res-Appliance class'!$B27*'RES S curve-disconnect'!BK$5+'Res-Appliance class'!$C27*'RES S curve-disconnect'!BK$10+'Res-Appliance class'!$D27*'RES S curve-disconnect'!BK$15+'Res-Appliance class'!$E27*'RES S curve-disconnect'!BK$20","v":12441.407476212476},{"$f":"'Res-Appliance class'!$B27*'RES S curve-disconnect'!BL$5+'Res-Appliance class'!$C27*'RES S curve-disconnect'!BL$10+'Res-Appliance class'!$D27*'RES S curve-disconnect'!BL$15+'Res-Appliance class'!$E27*'RES S curve-disconnect'!BL$20","v":-2341.8644726244756},{"$f":"'Res-Appliance class'!$B27*'RES S curve-disconnect'!BM$5+'Res-Appliance class'!$C27*'RES S curve-disconnect'!BM$10+'Res-Appliance class'!$D27*'RES S curve-disconnect'!BM$15+'Res-Appliance class'!$E27*'RES S curve-disconnect'!BM$20","v":-2338.5934420059184},{"$f":"'Res-Appliance class'!$B27*'RES S curve-disconnect'!BN$5+'Res-Appliance class'!$C27*'RES S curve-disconnect'!BN$10+'Res-Appliance class'!$D27*'RES S curve-disconnect'!BN$15+'Res-Appliance class'!$E27*'RES S curve-disconnect'!BN$20","v":-2337.5906236713017},{"$f":"'Res-Appliance class'!$B27*'RES S curve-disconnect'!BO$5+'Res-Appliance class'!$C27*'RES S curve-disconnect'!BO$10+'Res-Appliance class'!$D27*'RES S curve-disconnect'!BO$15+'Res-Appliance class'!$E27*'RES S curve-disconnect'!BO$20","v":-2332.0673731390461},{"$f":"'Res-Appliance class'!$B27*'RES S curve-disconnect'!BP$5+'Res-Appliance class'!$C27*'RES S curve-disconnect'!BP$10+'Res-Appliance class'!$D27*'RES S curve-disconnect'!BP$15+'Res-Appliance class'!$E27*'RES S curve-disconnect'!BP$20","v":-2328.8122693486057},{"$f":"'Res-Appliance class'!$B27*'RES S curve-disconnect'!BQ$5+'Res-Appliance class'!$C27*'RES S curve-disconnect'!BQ$10+'Res-Appliance class'!$D27*'RES S curve-disconnect'!BQ$15+'Res-Appliance class'!$E27*'RES S curve-disconnect'!BQ$20","v":-2325.5624093017495},{"$f":"'Res-Appliance class'!$B27*'RES S curve-disconnect'!BR$5+'Res-Appliance class'!$C27*'RES S curve-disconnect'!BR$10+'Res-Appliance class'!$D27*'RES S curve-disconnect'!BR$15+'Res-Appliance class'!$E27*'RES S curve-disconnect'!BR$20","v":-2324.5806312757013},{"$f":"'Res-Appliance class'!$B27*'RES S curve-disconnect'!BS$5+'Res-Appliance class'!$C27*'RES S curve-disconnect'!BS$10+'Res-Appliance class'!$D27*'RES S curve-disconnect'!BS$15+'Res-Appliance class'!$E27*'RES S curve-disconnect'!BS$20","v":-2319.0782916074058},{"$f":"'Res-Appliance class'!$B27*'RES S curve-disconnect'!BT$5+'Res-Appliance class'!$C27*'RES S curve-disconnect'!BT$10+'Res-Appliance class'!$D27*'RES S curve-disconnect'!BT$15+'Res-Appliance class'!$E27*'RES S curve-disconnect'!BT$20","v":-2315.843970049641},{"$f":"'Res-Appliance class'!$B27*'RES S curve-disconnect'!BU$5+'Res-Appliance class'!$C27*'RES S curve-disconnect'!BU$10+'Res-Appliance class'!$D27*'RES S curve-disconnect'!BU$15+'Res-Appliance class'!$E27*'RES S curve-disconnect'!BU$20","v":-2312.6147644123425},{"$f":"'Res-Appliance class'!$B27*'RES S curve-disconnect'!BV$5+'Res-Appliance class'!$C27*'RES S curve-disconnect'!BV$10+'Res-Appliance class'!$D27*'RES S curve-disconnect'!BV$15+'Res-Appliance class'!$E27*'RES S curve-disconnect'!BV$20","v":-2311.653513775771},{"$f":"'Res-Appliance class'!$B27*'RES S curve-disconnect'!BW$5+'Res-Appliance class'!$C27*'RES S curve-disconnect'!BW$10+'Res-Appliance class'!$D27*'RES S curve-disconnect'!BW$15+'Res-Appliance class'!$E27*'RES S curve-disconnect'!BW$20","v":-2306.1715752748114},{"$f":"'Res-Appliance class'!$B27*'RES S curve-disconnect'!BX$5+'Res-Appliance class'!$C27*'RES S curve-disconnect'!BX$10+'Res-Appliance class'!$D27*'RES S curve-disconnect'!BX$15+'Res-Appliance class'!$E27*'RES S curve-disconnect'!BX$20","v":-2302.9575294551196},{"$f":"'Res-Appliance class'!$B27*'RES S curve-disconnect'!BY$5+'Res-Appliance class'!$C27*'RES S curve-disconnect'!BY$10+'Res-Appliance class'!$D27*'RES S curve-disconnect'!BY$15+'Res-Appliance class'!$E27*'RES S curve-disconnect'!BY$20","v":-2299.7484749144769},{"$f":"'Res-Appliance class'!$B27*'RES S curve-disconnect'!BZ$5+'Res-Appliance class'!$C27*'RES S curve-disconnect'!BZ$10+'Res-Appliance class'!$D27*'RES S curve-disconnect'!BZ$15+'Res-Appliance class'!$E27*'RES S curve-disconnect'!BZ$20","v":-2298.8072515159934},{"$f":"'Res-Appliance class'!$B27*'RES S curve-disconnect'!CA$5+'Res-Appliance class'!$C27*'RES S curve-disconnect'!CA$10+'Res-Appliance class'!$D27*'RES S curve-disconnect'!CA$15+'Res-Appliance class'!$E27*'RES S curve-disconnect'!CA$20","v":-2293.3452171724325},{"$f":"'Res-Appliance class'!$B27*'RES S curve-disconnect'!CB$5+'Res-Appliance class'!$C27*'RES S curve-disconnect'!CB$10+'Res-Appliance class'!$D27*'RES S curve-disconnect'!CB$15+'Res-Appliance class'!$E27*'RES S curve-disconnect'!CB$20","v":-2290.1509532023961},{"$f":"'Res-Appliance class'!$B27*'RES S curve-disconnect'!CC$5+'Res-Appliance class'!$C27*'RES S curve-disconnect'!CC$10+'Res-Appliance class'!$D27*'RES S curve-disconnect'!CC$15+'Res-Appliance class'!$E27*'RES S curve-disconnect'!CC$20","v":-2286.9615589717059},{"$f":"'Res-Appliance class'!$B27*'RES S curve-disconnect'!CD$5+'Res-Appliance class'!$C27*'RES S curve-disconnect'!CD$10+'Res-Appliance class'!$D27*'RES S curve-disconnect'!CD$15+'Res-Appliance class'!$E27*'RES S curve-disconnect'!CD$20","v":-2333.6619389828893}]
["Bayside (C)",null,{"$f":"'Res-Appliance class'!$B28*'RES S curve-disconnect'!C$5+'Res-Appliance class'!$C28*'RES S curve-disconnect'!C$10+'Res-Appliance class'!$D28*'RES S curve-disconnect'!C$15+'Res-Appliance class'!$E28*'RES S curve-disconnect'!C$20","v":-5241.575811612568},{"$f":"'Res-Appliance class'!$B28*'RES S curve-disconnect'!D$5+'Res-Appliance class'!$C28*'RES S curve-disconnect'!D$10+'Res-Appliance class'!$D28*'RES S curve-disconnect'!D$15+'Res-Appliance class'!$E28*'RES S curve-disconnect'!D$20","v":-5586.4792138801859},{"$f":"'Res-Appliance class'!$B28*'RES S curve-disconnect'!E$5+'Res-Appliance class'!$C28*'RES S curve-disconnect'!E$10+'Res-Appliance class'!$D28*'RES S curve-disconnect'!E$15+'Res-Appliance class'!$E28*'RES S curve-disconnect'!E$20","v":-4659.8570488700198},{"$f":"'Res-Appliance class'!$B28*'RES S curve-disconnect'!F$5+'Res-Appliance class'!$C28*'RES S curve-disconnect'!F$10+'Res-Appliance class'!$D28*'RES S curve-disconnect'!F$15+'Res-Appliance class'!$E28*'RES S curve-disconnect'!F$20","v":-4556.9697063365729},{"$f":"'Res-Appliance class'!$B28*'RES S curve-disconnect'!G$5+'Res-Appliance class'!$C28*'RES S curve-disconnect'!G$10+'Res-Appliance class'!$D28*'RES S curve-disconnect'!G$15+'Res-Appliance class'!$E28*'RES S curve-disconnect'!G$20","v":-5653.4289613005312},{"$f":"'Res-Appliance class'!$B28*'RES S curve-disconnect'!H$5+'Res-Appliance class'!$C28*'RES S curve-disconnect'!H$10+'Res-Appliance class'!$D28*'RES S curve-disconnect'!H$15+'Res-Appliance class'!$E28*'RES S curve-disconnect'!H$20","v":-5682.9696512875289},{"$f":"'Res-Appliance class'!$B28*'RES S curve-disconnect'!I$5+'Res-Appliance class'!$C28*'RES S curve-disconnect'!I$10+'Res-Appliance class'!$D28*'RES S curve-disconnect'!I$15+'Res-Appliance class'!$E28*'RES S curve-disconnect'!I$20","v":-5390.9919677696635},{"$f":"'Res-Appliance class'!$B28*'RES S curve-disconnect'!J$5+'Res-Appliance class'!$C28*'RES S curve-disconnect'!J$10+'Res-Appliance class'!$D28*'RES S curve-disconnect'!J$15+'Res-Appliance class'!$E28*'RES S curve-disconnect'!J$20","v":-5753.3049807845782},{"$f":"'Res-Appliance class'!$B28*'RES S curve-disconnect'!K$5+'Res-Appliance class'!$C28*'RES S curve-disconnect'!K$10+'Res-Appliance class'!$D28*'RES S curve-disconnect'!K$15+'Res-Appliance class'!$E28*'RES S curve-disconnect'!K$20","v":-5114.2596990938564},{"$f":"'Res-Appliance class'!$B28*'RES S curve-disconnect'!L$5+'Res-Appliance class'!$C28*'RES S curve-disconnect'!L$10+'Res-Appliance class'!$D28*'RES S curve-disconnect'!L$15+'Res-Appliance class'!$E28*'RES S curve-disconnect'!L$20","v":-5331.0682552982753},{"$f":"'Res-Appliance class'!$B28*'RES S curve-disconnect'!M$5+'Res-Appliance class'!$C28*'RES S curve-disconnect'!M$10+'Res-Appliance class'!$D28*'RES S curve-disconnect'!M$15+'Res-Appliance class'!$E28*'RES S curve-disconnect'!M$20","v":-5739.1336272588978},{"$f":"'Res-Appliance class'!$B28*'RES S curve-disconnect'!N$5+'Res-Appliance class'!$C28*'RES S curve-disconnect'!N$10+'Res-Appliance class'!$D28*'RES S curve-disconnect'!N$15+'Res-Appliance class'!$E28*'RES S curve-disconnect'!N$20","v":-5760.6438464100029},{"$f":"'Res-Appliance class'!$B28*'RES S curve-disconnect'!O$5+'Res-Appliance class'!$C28*'RES S curve-disconnect'!O$10+'Res-Appliance class'!$D28*'RES S curve-disconnect'!O$15+'Res-Appliance class'!$E28*'RES S curve-disconnect'!O$20","v":-5364.8681288596363},{"$f":"'Res-Appliance class'!$B28*'RES S curve-disconnect'!P$5+'Res-Appliance class'!$C28*'RES S curve-disconnect'!P$10+'Res-Appliance class'!$D28*'RES S curve-disconnect'!P$15+'Res-Appliance class'!$E28*'RES S curve-disconnect'!P$20","v":-5046.0912432160158},{"$f":"'Res-Appliance class'!$B28*'RES S curve-disconnect'!Q$5+'Res-Appliance class'!$C28*'RES S curve-disconnect'!Q$10+'Res-Appliance class'!$D28*'RES S curve-disconnect'!Q$15+'Res-Appliance class'!$E28*'RES S curve-disconnect'!Q$20","v":-4573.998657965647},{"$f":"'Res-Appliance class'!$B28*'RES S curve-disconnect'!R$5+'Res-Appliance class'!$C28*'RES S curve-disconnect'!R$10+'Res-Appliance class'!$D28*'RES S curve-disconnect'!R$15+'Res-Appliance class'!$E28*'RES S curve-disconnect'!R$20","v":-4298.5111228079559},{"$f":"'Res-Appliance class'!$B28*'RES S curve-disconnect'!S$5+'Res-Appliance class'!$C28*'RES S curve-disconnect'!S$10+'Res-Appliance class'!$D28*'RES S curve-disconnect'!S$15+'Res-Appliance class'!$E28*'RES S curve-disconnect'!S$20","v":-3871.1025057134993},{"$f":"'Res-Appliance class'!$B28*'RES S curve-disconnect'!T$5+'Res-Appliance class'!$C28*'RES S curve-disconnect'!T$10+'Res-Appliance class'!$D28*'RES S curve-disconnect'!T$15+'Res-Appliance class'!$E28*'RES S curve-disconnect'!T$20","v":-3630.9681821587933},{"$f":"'Res-Appliance class'!$B28*'RES S curve-disconnect'!U$5+'Res-Appliance class'!$C28*'RES S curve-disconnect'!U$10+'Res-Appliance class'!$D28*'RES S curve-disconnect'!U$15+'Res-Appliance class'!$E28*'RES S curve-disconnect'!U$20","v":-3359.1513907982744},{"$f":"'Res-Appliance class'!$B28*'RES S curve-disconnect'!V$5+'Res-Appliance class'!$C28*'RES S curve-disconnect'!V$10+'Res-Appliance class'!$D28*'RES S curve-disconnect'!V$15+'Res-Appliance class'!$E28*'RES S curve-disconnect'!V$20","v":-3167.9067366448098},{"$f":"'Res-Appliance class'!$B28*'RES S curve-disconnect'!W$5+'Res-Appliance class'!$C28*'RES S curve-disconnect'!W$10+'Res-Appliance class'!$D28*'RES S curve-disconnect'!W$15+'Res-Appliance class'!$E28*'RES S curve-disconnect'!W$20","v":-3014.9854376949156},{"$f":"'Res-Appliance class'!$B28*'RES S curve-disconnect'!X$5+'Res-Appliance class'!$C28*'RES S curve-disconnect'!X$10+'Res-Appliance class'!$D28*'RES S curve-disconnect'!X$15+'Res-Appliance class'!$E28*'RES S curve-disconnect'!X$20","v":-2691.1789931963913},{"$f":"'Res-Appliance class'!$B28*'RES S curve-disconnect'!Y$5+'Res-Appliance class'!$C28*'RES S curve-disconnect'!Y$10+'Res-Appliance class'!$D28*'RES S curve-disconnect'!Y$15+'Res-Appliance class'!$E28*'RES S curve-disconnect'!Y$20","v":-2363.8147425117331},{"$f":"'Res-Appliance class'!$B28*'RES S curve-disconnect'!Z$5+'Res-Appliance class'!$C28*'RES S curve-disconnect'!Z$10+'Res-Appliance class'!$D28*'RES S curve-disconnect'!Z$15+'Res-Appliance class'!$E28*'RES S curve-disconnect'!Z$20","v":-2136.613954281906},{"$f":"'Res-Appliance class'!$B28*'RES S curve-disconnect'!AA$5+'Res-Appliance class'!$C28*'RES S curve-disconnect'!AA$10+'Res-Appliance class'!$D28*'RES S curve-disconnect'!AA$15+'Res-Appliance class'!$E28*'RES S curve-disconnect'!AA$20","v":-1909.4345086600001},{"$f":"'Res-Appliance class'!$B28*'RES S curve-disconnect'!AB$5+'Res-Appliance class'!$C28*'RES S curve-disconnect'!AB$10+'Res-Appliance class'!$D28*'RES S curve-disconnect'!AB$15+'Res-Appliance class'!$E28*'RES S curve-disconnect'!AB$20","v":-1724.6187579938637},{"$f":"'Res-Appliance class'!$B28*'RES S curve-disconnect'!AC$5+'Res-Appliance class'!$C28*'RES S curve-disconnect'!AC$10+'Res-Appliance class'!$D28*'RES S curve-disconnect'!AC$15+'Res-Appliance class'!$E28*'RES S curve-disconnect'!AC$20","v":-1545.9841015799516},{"$f":"'Res-Appliance class'!$B28*'RES S curve-disconnect'!AD$5+'Res-Appliance class'!$C28*'RES S curve-disconnect'!AD$10+'Res-Appliance class'!$D28*'RES S curve-disconnect'!AD$15+'Res-Appliance class'!$E28*'RES S curve-disconnect'!AD$20","v":-1380.7893393441855},{"$f":"'Res-Appliance class'!$B28*'RES S curve-disconnect'!AE$5+'Res-Appliance class'!$C28*'RES S curve-disconnect'!AE$10+'Res-Appliance class'!$D28*'RES S curve-disconnect'!AE$15+'Res-Appliance class'!$E28*'RES S curve-disconnect'!AE$20","v":-1208.0451981211761},{"$f":"'Res-Appliance class'!$B28*'RES S curve-disconnect'!AF$5+'Res-Appliance class'!$C28*'RES S curve-disconnect'!AF$10+'Res-Appliance class'!$D28*'RES S curve-disconnect'!AF$15+'Res-Appliance class'!$E28*'RES S curve-disconnect'!AF$20","v":-989.69147654834217},{"$f":"'Res-Appliance class'!$B28*'RES S curve-disconnect'!AG$5+'Res-Appliance class'!$C28*'RES S curve-disconnect'!AG$10+'Res-Appliance class'!$D28*'RES S curve-disconnect'!AG$15+'Res-Appliance class'!$E28*'RES S curve-disconnect'!AG$20","v":-850.94873100557425},{"$f":"'Res-Appliance class'!$B28*'RES S curve-disconnect'!AH$5+'Res-Appliance class'!$C28*'RES S curve-disconnect'!AH$10+'Res-Appliance class'!$D28*'RES S curve-disconnect'!AH$15+'Res-Appliance class'!$E28*'RES S curve-disconnect'!AH$20","v":-655.83189267362786},{"$f":"'Res-Appliance class'!$B28*'RES S curve-disconnect'!AI$5+'Res-Appliance class'!$C28*'RES S curve-disconnect'!AI$10+'Res-Appliance class'!$D28*'RES S curve-disconnect'!AI$15+'Res-Appliance class'!$E28*'RES S curve-disconnect'!AI$20","v":-480.3322637261175},{"$f":"'Res-Appliance class'!$B28*'RES S curve-disconnect'!AJ$5+'Res-Appliance class'!$C28*'RES S curve-disconnect'!AJ$10+'Res-Appliance class'!$D28*'RES S curve-disconnect'!AJ$15+'Res-Appliance class'!$E28*'RES S curve-disconnect'!AJ$20","v":-321.96947810203199},{"$f":"'Res-Appliance class'!$B28*'RES S curve-disconnect'!AK$5+'Res-Appliance class'!$C28*'RES S curve-disconnect'!AK$10+'Res-Appliance class'!$D28*'RES S curve-disconnect'!AK$15+'Res-Appliance class'!$E28*'RES S curve-disconnect'!AK$20","v":-153.84067499502024},{"$f":"'Res-Appliance class'!$B28*'RES S curve-disconnect'!AL$5+'Res-Appliance class'!$C28*'RES S curve-disconnect'!AL$10+'Res-Appliance class'!$D28*'RES S curve-disconnect'!AL$15+'Res-Appliance class'!$E28*'RES S curve-disconnect'!AL$20","v":-736.15450952605283},{"$f":"'Res-Appliance class'!$B28*'RES S curve-disconnect'!AM$5+'Res-Appliance class'!$C28*'RES S curve-disconnect'!AM$10+'Res-Appliance class'!$D28*'RES S curve-disconnect'!AM$15+'Res-Appliance class'!$E28*'RES S curve-disconnect'!AM$20","v":-812.26004054717737},{"$f":"'Res-Appliance class'!$B28*'RES S curve-disconnect'!AN$5+'Res-Appliance class'!$C28*'RES S curve-disconnect'!AN$10+'Res-Appliance class'!$D28*'RES S curve-disconnect'!AN$15+'Res-Appliance class'!$E28*'RES S curve-disconnect'!AN$20","v":-653.05711527092342},{"$f":"'Res-Appliance class'!$B28*'RES S curve-disconnect'!AO$5+'Res-Appliance class'!$C28*'RES S curve-disconnect'!AO$10+'Res-Appliance class'!$D28*'RES S curve-disconnect'!AO$15+'Res-Appliance class'!$E28*'RES S curve-disconnect'!AO$20","v":-458.36730311765393},{"$f":"'Res-Appliance class'!$B28*'RES S curve-disconnect'!AP$5+'Res-Appliance class'!$C28*'RES S curve-disconnect'!AP$10+'Res-Appliance class'!$D28*'RES S curve-disconnect'!AP$15+'Res-Appliance class'!$E28*'RES S curve-disconnect'!AP$20","v":-278.52163897474941},{"$f":"'Res-Appliance class'!$B28*'RES S curve-disconnect'!AQ$5+'Res-Appliance class'!$C28*'RES S curve-disconnect'!AQ$10+'Res-Appliance class'!$D28*'RES S curve-disconnect'!AQ$15+'Res-Appliance class'!$E28*'RES S curve-disconnect'!AQ$20","v":-84.880686939114526},{"$f":"'Res-Appliance class'!$B28*'RES S curve-disconnect'!AR$5+'Res-Appliance class'!$C28*'RES S curve-disconnect'!AR$10+'Res-Appliance class'!$D28*'RES S curve-disconnect'!AR$15+'Res-Appliance class'!$E28*'RES S curve-disconnect'!AR$20","v":127.73213909229611},{"$f":"'Res-Appliance class'!$B28*'RES S curve-disconnect'!AS$5+'Res-Appliance class'!$C28*'RES S curve-disconnect'!AS$10+'Res-Appliance class'!$D28*'RES S curve-disconnect'!AS$15+'Res-Appliance class'!$E28*'RES S curve-disconnect'!AS$20","v":366.31440080322602},{"$f":"'Res-Appliance class'!$B28*'RES S curve-disconnect'!AT$5+'Res-Appliance class'!$C28*'RES S curve-disconnect'!AT$10+'Res-Appliance class'!$D28*'RES S curve-disconnect'!AT$15+'Res-Appliance class'!$E28*'RES S curve-disconnect'!AT$20","v":633.18412388210891},{"$f":"'Res-Appliance class'!$B28*'RES S curve-disconnect'!AU$5+'Res-Appliance class'!$C28*'RES S curve-disconnect'!AU$10+'Res-Appliance class'!$D28*'RES S curve-disconnect'!AU$15+'Res-Appliance class'!$E28*'RES S curve-disconnect'!AU$20","v":941.9313022937713},{"$f":"'Res-Appliance class'!$B28*'RES S curve-disconnect'!AV$5+'Res-Appliance class'!$C28*'RES S curve-disconnect'!AV$10+'Res-Appliance class'!$D28*'RES S curve-disconnect'!AV$15+'Res-Appliance class'!$E28*'RES S curve-disconnect'!AV$20","v":1294.1118025645183},{"$f":"'Res-Appliance class'!$B28*'RES S curve-disconnect'!AW$5+'Res-Appliance class'!$C28*'RES S curve-disconnect'!AW$10+'Res-Appliance class'!$D28*'RES S curve-disconnect'!AW$15+'Res-Appliance class'!$E28*'RES S curve-disconnect'!AW$20","v":1698.9155156693896},{"$f":"'Res-Appliance class'!$B28*'RES S curve-disconnect'!AX$5+'Res-Appliance class'!$C28*'RES S curve-disconnect'!AX$10+'Res-Appliance class'!$D28*'RES S curve-disconnect'!AX$15+'Res-Appliance class'!$E28*'RES S curve-disconnect'!AX$20","v":2160.2761356695805},{"$f":"'Res-Appliance class'!$B28*'RES S curve-disconnect'!AY$5+'Res-Appliance class'!$C28*'RES S curve-disconnect'!AY$10+'Res-Appliance class'!$D28*'RES S curve-disconnect'!AY$15+'Res-Appliance class'!$E28*'RES S curve-disconnect'!AY$20","v":2692.6239779753137},{"$f":"'Res-Appliance class'!$B28*'RES S curve-disconnect'!AZ$5+'Res-Appliance class'!$C28*'RES S curve-disconnect'!AZ$10+'Res-Appliance class'!$D28*'RES S curve-disconnect'!AZ$15+'Res-Appliance class'!$E28*'RES S curve-disconnect'!AZ$20","v":3301.1986843811669},{"$f":"'Res-Appliance class'!$B28*'RES S curve-disconnect'!BA$5+'Res-Appliance class'!$C28*'RES S curve-disconnect'!BA$10+'Res-Appliance class'!$D28*'RES S curve-disconnect'!BA$15+'Res-Appliance class'!$E28*'RES S curve-disconnect'!BA$20","v":4006.0002503870783},{"$f":"'Res-Appliance class'!$B28*'RES S curve-disconnect'!BB$5+'Res-Appliance class'!$C28*'RES S curve-disconnect'!BB$10+'Res-Appliance class'!$D28*'RES S curve-disconnect'!BB$15+'Res-Appliance class'!$E28*'RES S curve-disconnect'!BB$20","v":4829.4608920156779},{"$f":"'Res-Appliance class'!$B28*'RES S curve-disconnect'!BC$5+'Res-Appliance class'!$C28*'RES S curve-disconnect'!BC$10+'Res-Appliance class'!$D28*'RES S curve-disconnect'!BC$15+'Res-Appliance class'!$E28*'RES S curve-disconnect'!BC$20","v":5811.4539202714623},{"$f":"'Res-Appliance class'!$B28*'RES S curve-disconnect'!BD$5+'Res-Appliance class'!$C28*'RES S curve-disconnect'!BD$10+'Res-Appliance class'!$D28*'RES S curve-disconnect'!BD$15+'Res-Appliance class'!$E28*'RES S curve-disconnect'!BD$20","v":6758.8581828085962},{"$f":"'Res-Appliance class'!$B28*'RES S curve-disconnect'!BE$5+'Res-Appliance class'!$C28*'RES S curve-disconnect'!BE$10+'Res-Appliance class'!$D28*'RES S curve-disconnect'!BE$15+'Res-Appliance class'!$E28*'RES S curve-disconnect'!BE$20","v":7624.8204011529269},{"$f":"'Res-Appliance class'!$B28*'RES S curve-disconnect'!BF$5+'Res-Appliance class'!$C28*'RES S curve-disconnect'!BF$10+'Res-Appliance class'!$D28*'RES S curve-disconnect'!BF$15+'Res-Appliance class'!$E28*'RES S curve-disconnect'!BF$20","v":8510.8539301900164},{"$f":"'Res-Appliance class'!$B28*'RES S curve-disconnect'!BG$5+'Res-Appliance class'!$C28*'RES S curve-disconnect'!BG$10+'Res-Appliance class'!$D28*'RES S curve-disconnect'!BG$15+'Res-Appliance class'!$E28*'RES S curve-disconnect'!BG$20","v":9513.6131413746079},{"$f":"'Res-Appliance class'!$B28*'RES S curve-disconnect'!BH$5+'Res-Appliance class'!$C28*'RES S curve-disconnect'!BH$10+'Res-Appliance class'!$D28*'RES S curve-disconnect'!BH$15+'Res-Appliance class'!$E28*'RES S curve-disconnect'!BH$20","v":10703.964793532841},{"$f":"'Res-Appliance class'!$B28*'RES S curve-disconnect'!BI$5+'Res-Appliance class'!$C28*'RES S curve-disconnect'!BI$10+'Res-Appliance class'!$D28*'RES S curve-disconnect'!BI$15+'Res-Appliance class'!$E28*'RES S curve-disconnect'!BI$20","v":12428.764665226914},{"$f":"'Res-Appliance class'!$B28*'RES S curve-disconnect'!BJ$5+'Res-Appliance class'!$C28*'RES S curve-disconnect'!BJ$10+'Res-Appliance class'!$D28*'RES S curve-disconnect'!BJ$15+'Res-Appliance class'!$E28*'RES S curve-disconnect'!BJ$20","v":14954.932844086556},{"$f":"'Res-Appliance class'!$B28*'RES S curve-disconnect'!BK$5+'Res-Appliance class'!$C28*'RES S curve-disconnect'!BK$10+'Res-Appliance class'!$D28*'RES S curve-disconnect'!BK$15+'Res-Appliance class'!$E28*'RES S curve-disconnect'!BK$20","v":18683.200461835266},{"$f":"'Res-Appliance class'!$B28*'RES S curve-disconnect'!BL$5+'Res-Appliance class'!$C28*'RES S curve-disconnect'!BL$10+'Res-Appliance class'!$D28*'RES S curve-disconnect'!BL$15+'Res-Appliance class'!$E28*'RES S curve-disconnect'!BL$20","v":-2866.3683375989322},{"$f":"'Res-Appliance class'!$B28*'RES S curve-disconnect'!BM$5+'Res-Appliance class'!$C28*'RES S curve-disconnect'!BM$10+'Res-Appliance class'!$D28*'RES S curve-disconnect'!BM$15+'Res-Appliance class'!$E28*'RES S curve-disconnect'!BM$20","v":-2861.6476987042288},{"$f":"'Res-Appliance class'!$B28*'RES S curve-disconnect'!BN$5+'Res-Appliance class'!$C28*'RES S curve-disconnect'!BN$10+'Res-Appliance class'!$D28*'RES S curve-disconnect'!BN$15+'Res-Appliance class'!$E28*'RES S curve-disconnect'!BN$20","v":-2859.1964999924794},{"$f":"'Res-Appliance class'!$B28*'RES S curve-disconnect'!BO$5+'Res-Appliance class'!$C28*'RES S curve-disconnect'!BO$10+'Res-Appliance class'!$D28*'RES S curve-disconnect'!BO$15+'Res-Appliance class'!$E28*'RES S curve-disconnect'!BO$20","v":-2852.2260902903317},{"$f":"'Res-Appliance class'!$B28*'RES S curve-disconnect'!BP$5+'Res-Appliance class'!$C28*'RES S curve-disconnect'!BP$10+'Res-Appliance class'!$D28*'RES S curve-disconnect'!BP$15+'Res-Appliance class'!$E28*'RES S curve-disconnect'!BP$20","v":-2847.5250418849128},{"$f":"'Res-Appliance class'!$B28*'RES S curve-disconnect'!BQ$5+'Res-Appliance class'!$C28*'RES S curve-disconnect'!BQ$10+'Res-Appliance class'!$D28*'RES S curve-disconnect'!BQ$15+'Res-Appliance class'!$E28*'RES S curve-disconnect'!BQ$20","v":-2842.8304451648632},{"$f":"'Res-Appliance class'!$B28*'RES S curve-disconnect'!BR$5+'Res-Appliance class'!$C28*'RES S curve-disconnect'!BR$10+'Res-Appliance class'!$D28*'RES S curve-disconnect'!BR$15+'Res-Appliance class'!$E28*'RES S curve-disconnect'!BR$20","v":-2840.4051318332422},{"$f":"'Res-Appliance class'!$B28*'RES S curve-disconnect'!BS$5+'Res-Appliance class'!$C28*'RES S curve-disconnect'!BS$10+'Res-Appliance class'!$D28*'RES S curve-disconnect'!BS$15+'Res-Appliance class'!$E28*'RES S curve-disconnect'!BS$20","v":-2833.460451691546},{"$f":"'Res-Appliance class'!$B28*'RES S curve-disconnect'!BT$5+'Res-Appliance class'!$C28*'RES S curve-disconnect'!BT$10+'Res-Appliance class'!$D28*'RES S curve-disconnect'!BT$15+'Res-Appliance class'!$E28*'RES S curve-disconnect'!BT$20","v":-2828.7849779955905},{"$f":"'Res-Appliance class'!$B28*'RES S curve-disconnect'!BU$5+'Res-Appliance class'!$C28*'RES S curve-disconnect'!BU$10+'Res-Appliance class'!$D28*'RES S curve-disconnect'!BU$15+'Res-Appliance class'!$E28*'RES S curve-disconnect'!BU$20","v":-2824.1158020965895},{"$f":"'Res-Appliance class'!$B28*'RES S curve-disconnect'!BV$5+'Res-Appliance class'!$C28*'RES S curve-disconnect'!BV$10+'Res-Appliance class'!$D28*'RES S curve-disconnect'!BV$15+'Res-Appliance class'!$E28*'RES S curve-disconnect'!BV$20","v":-2821.7157566540982},{"$f":"'Res-Appliance class'!$B28*'RES S curve-disconnect'!BW$5+'Res-Appliance class'!$C28*'RES S curve-disconnect'!BW$10+'Res-Appliance class'!$D28*'RES S curve-disconnect'!BW$15+'Res-Appliance class'!$E28*'RES S curve-disconnect'!BW$20","v":-2814.7961924200699},{"$f":"'Res-Appliance class'!$B28*'RES S curve-disconnect'!BX$5+'Res-Appliance class'!$C28*'RES S curve-disconnect'!BX$10+'Res-Appliance class'!$D28*'RES S curve-disconnect'!BX$15+'Res-Appliance class'!$E28*'RES S curve-disconnect'!BX$20","v":-2810.1456835947743},{"$f":"'Res-Appliance class'!$B28*'RES S curve-disconnect'!BY$5+'Res-Appliance class'!$C28*'RES S curve-disconnect'!BY$10+'Res-Appliance class'!$D28*'RES S curve-disconnect'!BY$15+'Res-Appliance class'!$E28*'RES S curve-disconnect'!BY$20","v":-2805.5013224679196},{"$f":"'Res-Appliance class'!$B28*'RES S curve-disconnect'!BZ$5+'Res-Appliance class'!$C28*'RES S curve-disconnect'!BZ$10+'Res-Appliance class'!$D28*'RES S curve-disconnect'!BZ$15+'Res-Appliance class'!$E28*'RES S curve-disconnect'!BZ$20","v":-2803.1259426316301},{"$f":"'Res-Appliance class'!$B28*'RES S curve-disconnect'!CA$5+'Res-Appliance class'!$C28*'RES S curve-disconnect'!CA$10+'Res-Appliance class'!$D28*'RES S curve-disconnect'!CA$15+'Res-Appliance class'!$E28*'RES S curve-disconnect'!CA$20","v":-2796.2308957645382},{"$f":"'Res-Appliance class'!$B28*'RES S curve-disconnect'!CB$5+'Res-Appliance class'!$C28*'RES S curve-disconnect'!CB$10+'Res-Appliance class'!$D28*'RES S curve-disconnect'!CB$15+'Res-Appliance class'!$E28*'RES S curve-disconnect'!CB$20","v":-2791.6047569877455},{"$f":"'Res-Appliance class'!$B28*'RES S curve-disconnect'!CC$5+'Res-Appliance class'!$C28*'RES S curve-disconnect'!CC$10+'Res-Appliance class'!$D28*'RES S curve-disconnect'!CC$15+'Res-Appliance class'!$E28*'RES S curve-disconnect'!CC$20","v":-2786.9846195059813},{"$f":"'Res-Appliance class'!$B28*'RES S curve-disconnect'!CD$5+'Res-Appliance class'!$C28*'RES S curve-disconnect'!CD$10+'Res-Appliance class'!$D28*'RES S curve-disconnect'!CD$15+'Res-Appliance class'!$E28*'RES S curve-disconnect'!CD$20","v":-2857.4521531386513}]
["Boroondara (C)",null,{"$f":"'Res-Appliance class'!$B29*'RES S curve-disconnect'!C$5+'Res-Appliance class'!$C29*'RES S curve-disconnect'!C$10+'Res-Appliance class'!$D29*'RES S curve-disconnect'!C$15+'Res-Appliance class'!$E29*'RES S curve-disconnect'!C$20","v":-4996.2484792687983},{"$f":"'Res-Appliance class'!$B29*'RES S curve-disconnect'!D$5+'Res-Appliance class'!$C29*'RES S curve-disconnect'!D$10+'Res-Appliance class'!$D29*'RES S curve-disconnect'!D$15+'Res-Appliance class'!$E29*'RES S curve-disconnect'!D$20","v":-5325.2602508930822},{"$f":"'Res-Appliance class'!$B29*'RES S curve-disconnect'!E$5+'Res-Appliance class'!$C29*'RES S curve-disconnect'!E$10+'Res-Appliance class'!$D29*'RES S curve-disconnect'!E$15+'Res-Appliance class'!$E29*'RES S curve-disconnect'!E$20","v":-4449.0384803399702},{"$f":"'Res-Appliance class'!$B29*'RES S curve-disconnect'!F$5+'Res-Appliance class'!$C29*'RES S curve-disconnect'!F$10+'Res-Appliance class'!$D29*'RES S curve-disconnect'!F$15+'Res-Appliance class'!$E29*'RES S curve-disconnect'!F$20","v":-4351.807898814588},{"$f":"'Res-Appliance class'!$B29*'RES S curve-disconnect'!G$5+'Res-Appliance class'!$C29*'RES S curve-disconnect'!G$10+'Res-Appliance class'!$D29*'RES S curve-disconnect'!G$15+'Res-Appliance class'!$E29*'RES S curve-disconnect'!G$20","v":-5386.3158747048583},{"$f":"'Res-Appliance class'!$B29*'RES S curve-disconnect'!H$5+'Res-Appliance class'!$C29*'RES S curve-disconnect'!H$10+'Res-Appliance class'!$D29*'RES S curve-disconnect'!H$15+'Res-Appliance class'!$E29*'RES S curve-disconnect'!H$20","v":-5415.0259572522473},{"$f":"'Res-Appliance class'!$B29*'RES S curve-disconnect'!I$5+'Res-Appliance class'!$C29*'RES S curve-disconnect'!I$10+'Res-Appliance class'!$D29*'RES S curve-disconnect'!I$15+'Res-Appliance class'!$E29*'RES S curve-disconnect'!I$20","v":-5137.1946915097906},{"$f":"'Res-Appliance class'!$B29*'RES S curve-disconnect'!J$5+'Res-Appliance class'!$C29*'RES S curve-disconnect'!J$10+'Res-Appliance class'!$D29*'RES S curve-disconnect'!J$15+'Res-Appliance class'!$E29*'RES S curve-disconnect'!J$20","v":-5486.3430925692664},{"$f":"'Res-Appliance class'!$B29*'RES S curve-disconnect'!K$5+'Res-Appliance class'!$C29*'RES S curve-disconnect'!K$10+'Res-Appliance class'!$D29*'RES S curve-disconnect'!K$15+'Res-Appliance class'!$E29*'RES S curve-disconnect'!K$20","v":-4875.4966397085591},{"$f":"'Res-Appliance class'!$B29*'RES S curve-disconnect'!L$5+'Res-Appliance class'!$C29*'RES S curve-disconnect'!L$10+'Res-Appliance class'!$D29*'RES S curve-disconnect'!L$15+'Res-Appliance class'!$E29*'RES S curve-disconnect'!L$20","v":-5082.1623853230021},{"$f":"'Res-Appliance class'!$B29*'RES S curve-disconnect'!M$5+'Res-Appliance class'!$C29*'RES S curve-disconnect'!M$10+'Res-Appliance class'!$D29*'RES S curve-disconnect'!M$15+'Res-Appliance class'!$E29*'RES S curve-disconnect'!M$20","v":-5469.5418537487676},{"$f":"'Res-Appliance class'!$B29*'RES S curve-disconnect'!N$5+'Res-Appliance class'!$C29*'RES S curve-disconnect'!N$10+'Res-Appliance class'!$D29*'RES S curve-disconnect'!N$15+'Res-Appliance class'!$E29*'RES S curve-disconnect'!N$20","v":-5489.8950894481877},{"$f":"'Res-Appliance class'!$B29*'RES S curve-disconnect'!O$5+'Res-Appliance class'!$C29*'RES S curve-disconnect'!O$10+'Res-Appliance class'!$D29*'RES S curve-disconnect'!O$15+'Res-Appliance class'!$E29*'RES S curve-disconnect'!O$20","v":-5112.1703919201109},{"$f":"'Res-Appliance class'!$B29*'RES S curve-disconnect'!P$5+'Res-Appliance class'!$C29*'RES S curve-disconnect'!P$10+'Res-Appliance class'!$D29*'RES S curve-disconnect'!P$15+'Res-Appliance class'!$E29*'RES S curve-disconnect'!P$20","v":-4808.1720853962142},{"$f":"'Res-Appliance class'!$B29*'RES S curve-disconnect'!Q$5+'Res-Appliance class'!$C29*'RES S curve-disconnect'!Q$10+'Res-Appliance class'!$D29*'RES S curve-disconnect'!Q$15+'Res-Appliance class'!$E29*'RES S curve-disconnect'!Q$20","v":-4358.0382663919454},{"$f":"'Res-Appliance class'!$B29*'RES S curve-disconnect'!R$5+'Res-Appliance class'!$C29*'RES S curve-disconnect'!R$10+'Res-Appliance class'!$D29*'RES S curve-disconnect'!R$15+'Res-Appliance class'!$E29*'RES S curve-disconnect'!R$20","v":-4095.368363802515},{"$f":"'Res-Appliance class'!$B29*'RES S curve-disconnect'!S$5+'Res-Appliance class'!$C29*'RES S curve-disconnect'!S$10+'Res-Appliance class'!$D29*'RES S curve-disconnect'!S$15+'Res-Appliance class'!$E29*'RES S curve-disconnect'!S$20","v":-3687.1422772137507},{"$f":"'Res-Appliance class'!$B29*'RES S curve-disconnect'!T$5+'Res-Appliance class'!$C29*'RES S curve-disconnect'!T$10+'Res-Appliance class'!$D29*'RES S curve-disconnect'!T$15+'Res-Appliance class'!$E29*'RES S curve-disconnect'!T$20","v":-3459.3915411177409},{"$f":"'Res-Appliance class'!$B29*'RES S curve-disconnect'!U$5+'Res-Appliance class'!$C29*'RES S curve-disconnect'!U$10+'Res-Appliance class'!$D29*'RES S curve-disconnect'!U$15+'Res-Appliance class'!$E29*'RES S curve-disconnect'!U$20","v":-3200.5420031573967},{"$f":"'Res-Appliance class'!$B29*'RES S curve-disconnect'!V$5+'Res-Appliance class'!$C29*'RES S curve-disconnect'!V$10+'Res-Appliance class'!$D29*'RES S curve-disconnect'!V$15+'Res-Appliance class'!$E29*'RES S curve-disconnect'!V$20","v":-3018.1154519266538},{"$f":"'Res-Appliance class'!$B29*'RES S curve-disconnect'!W$5+'Res-Appliance class'!$C29*'RES S curve-disconnect'!W$10+'Res-Appliance class'!$D29*'RES S curve-disconnect'!W$15+'Res-Appliance class'!$E29*'RES S curve-disconnect'!W$20","v":-2872.121481223744},{"$f":"'Res-Appliance class'!$B29*'RES S curve-disconnect'!X$5+'Res-Appliance class'!$C29*'RES S curve-disconnect'!X$10+'Res-Appliance class'!$D29*'RES S curve-disconnect'!X$15+'Res-Appliance class'!$E29*'RES S curve-disconnect'!X$20","v":-2563.7468934496283},{"$f":"'Res-Appliance class'!$B29*'RES S curve-disconnect'!Y$5+'Res-Appliance class'!$C29*'RES S curve-disconnect'!Y$10+'Res-Appliance class'!$D29*'RES S curve-disconnect'!Y$15+'Res-Appliance class'!$E29*'RES S curve-disconnect'!Y$20","v":-2251.8282036012442},{"$f":"'Res-Appliance class'!$B29*'RES S curve-disconnect'!Z$5+'Res-Appliance class'!$C29*'RES S curve-disconnect'!Z$10+'Res-Appliance class'!$D29*'RES S curve-disconnect'!Z$15+'Res-Appliance class'!$E29*'RES S curve-disconnect'!Z$20","v":-2035.2491607823013},{"$f":"'Res-Appliance class'!$B29*'RES S curve-disconnect'!AA$5+'Res-Appliance class'!$C29*'RES S curve-disconnect'!AA$10+'Res-Appliance class'!$D29*'RES S curve-disconnect'!AA$15+'Res-Appliance class'!$E29*'RES S curve-disconnect'!AA$20","v":-1818.5089096577472},{"$f":"'Res-Appliance class'!$B29*'RES S curve-disconnect'!AB$5+'Res-Appliance class'!$C29*'RES S curve-disconnect'!AB$10+'Res-Appliance class'!$D29*'RES S curve-disconnect'!AB$15+'Res-Appliance class'!$E29*'RES S curve-disconnect'!AB$20","v":-1641.9918275341004},{"$f":"'Res-Appliance class'!$B29*'RES S curve-disconnect'!AC$5+'Res-Appliance class'!$C29*'RES S curve-disconnect'!AC$10+'Res-Appliance class'!$D29*'RES S curve-disconnect'!AC$15+'Res-Appliance class'!$E29*'RES S curve-disconnect'!AC$20","v":-1471.2535654859603},{"$f":"'Res-Appliance class'!$B29*'RES S curve-disconnect'!AD$5+'Res-Appliance class'!$C29*'RES S curve-disconnect'!AD$10+'Res-Appliance class'!$D29*'RES S curve-disconnect'!AD$15+'Res-Appliance class'!$E29*'RES S curve-disconnect'!AD$20","v":-1313.3463828997815},{"$f":"'Res-Appliance class'!$B29*'RES S curve-disconnect'!AE$5+'Res-Appliance class'!$C29*'RES S curve-disconnect'!AE$10+'Res-Appliance class'!$D29*'RES S curve-disconnect'!AE$15+'Res-Appliance class'!$E29*'RES S curve-disconnect'!AE$20","v":-1147.966615683828},{"$f":"'Res-Appliance class'!$B29*'RES S curve-disconnect'!AF$5+'Res-Appliance class'!$C29*'RES S curve-disconnect'!AF$10+'Res-Appliance class'!$D29*'RES S curve-disconnect'!AF$15+'Res-Appliance class'!$E29*'RES S curve-disconnect'!AF$20","v":-939.26799339431159},{"$f":"'Res-Appliance class'!$B29*'RES S curve-disconnect'!AG$5+'Res-Appliance class'!$C29*'RES S curve-disconnect'!AG$10+'Res-Appliance class'!$D29*'RES S curve-disconnect'!AG$15+'Res-Appliance class'!$E29*'RES S curve-disconnect'!AG$20","v":-806.63907738463479},{"$f":"'Res-Appliance class'!$B29*'RES S curve-disconnect'!AH$5+'Res-Appliance class'!$C29*'RES S curve-disconnect'!AH$10+'Res-Appliance class'!$D29*'RES S curve-disconnect'!AH$15+'Res-Appliance class'!$E29*'RES S curve-disconnect'!AH$20","v":-620.63975246066025},{"$f":"'Res-Appliance class'!$B29*'RES S curve-disconnect'!AI$5+'Res-Appliance class'!$C29*'RES S curve-disconnect'!AI$10+'Res-Appliance class'!$D29*'RES S curve-disconnect'!AI$15+'Res-Appliance class'!$E29*'RES S curve-disconnect'!AI$20","v":-452.863301144768},{"$f":"'Res-Appliance class'!$B29*'RES S curve-disconnect'!AJ$5+'Res-Appliance class'!$C29*'RES S curve-disconnect'!AJ$10+'Res-Appliance class'!$D29*'RES S curve-disconnect'!AJ$15+'Res-Appliance class'!$E29*'RES S curve-disconnect'!AJ$20","v":-301.5704056810182},{"$f":"'Res-Appliance class'!$B29*'RES S curve-disconnect'!AK$5+'Res-Appliance class'!$C29*'RES S curve-disconnect'!AK$10+'Res-Appliance class'!$D29*'RES S curve-disconnect'!AK$15+'Res-Appliance class'!$E29*'RES S curve-disconnect'!AK$20","v":-140.92952852859992},{"$f":"'Res-Appliance class'!$B29*'RES S curve-disconnect'!AL$5+'Res-Appliance class'!$C29*'RES S curve-disconnect'!AL$10+'Res-Appliance class'!$D29*'RES S curve-disconnect'!AL$15+'Res-Appliance class'!$E29*'RES S curve-disconnect'!AL$20","v":-698.65519361309498},{"$f":"'Res-Appliance class'!$B29*'RES S curve-disconnect'!AM$5+'Res-Appliance class'!$C29*'RES S curve-disconnect'!AM$10+'Res-Appliance class'!$D29*'RES S curve-disconnect'!AM$15+'Res-Appliance class'!$E29*'RES S curve-disconnect'!AM$20","v":-770.83731599383441},{"$f":"'Res-Appliance class'!$B29*'RES S curve-disconnect'!AN$5+'Res-Appliance class'!$C29*'RES S curve-disconnect'!AN$10+'Res-Appliance class'!$D29*'RES S curve-disconnect'!AN$15+'Res-Appliance class'!$E29*'RES S curve-disconnect'!AN$20","v":-618.35428254585895},{"$f":"'Res-Appliance class'!$B29*'RES S curve-disconnect'!AO$5+'Res-Appliance class'!$C29*'RES S curve-disconnect'!AO$10+'Res-Appliance class'!$D29*'RES S curve-disconnect'!AO$15+'Res-Appliance class'!$E29*'RES S curve-disconnect'!AO$20","v":-432.2293367030822},{"$f":"'Res-Appliance class'!$B29*'RES S curve-disconnect'!AP$5+'Res-Appliance class'!$C29*'RES S curve-disconnect'!AP$10+'Res-Appliance class'!$D29*'RES S curve-disconnect'!AP$15+'Res-Appliance class'!$E29*'RES S curve-disconnect'!AP$20","v":-260.5040165294306},{"$f":"'Res-Appliance class'!$B29*'RES S curve-disconnect'!AQ$5+'Res-Appliance class'!$C29*'RES S curve-disconnect'!AQ$10+'Res-Appliance class'!$D29*'RES S curve-disconnect'!AQ$15+'Res-Appliance class'!$E29*'RES S curve-disconnect'!AQ$20","v":-75.394302468046504},{"$f":"'Res-Appliance class'!$B29*'RES S curve-disconnect'!AR$5+'Res-Appliance class'!$C29*'RES S curve-disconnect'!AR$10+'Res-Appliance class'!$D29*'RES S curve-disconnect'!AR$15+'Res-Appliance class'!$E29*'RES S curve-disconnect'!AR$20","v":127.73003557565283},{"$f":"'Res-Appliance class'!$B29*'RES S curve-disconnect'!AS$5+'Res-Appliance class'!$C29*'RES S curve-disconnect'!AS$10+'Res-Appliance class'!$D29*'RES S curve-disconnect'!AS$15+'Res-Appliance class'!$E29*'RES S curve-disconnect'!AS$20","v":355.63489187804743},{"$f":"'Res-Appliance class'!$B29*'RES S curve-disconnect'!AT$5+'Res-Appliance class'!$C29*'RES S curve-disconnect'!AT$10+'Res-Appliance class'!$D29*'RES S curve-disconnect'!AT$15+'Res-Appliance class'!$E29*'RES S curve-disconnect'!AT$20","v":610.4212214007232},{"$f":"'Res-Appliance class'!$B29*'RES S curve-disconnect'!AU$5+'Res-Appliance class'!$C29*'RES S curve-disconnect'!AU$10+'Res-Appliance class'!$D29*'RES S curve-disconnect'!AU$15+'Res-Appliance class'!$E29*'RES S curve-disconnect'!AU$20","v":905.36264303224334},{"$f":"'Res-Appliance class'!$B29*'RES S curve-disconnect'!AV$5+'Res-Appliance class'!$C29*'RES S curve-disconnect'!AV$10+'Res-Appliance class'!$D29*'RES S curve-disconnect'!AV$15+'Res-Appliance class'!$E29*'RES S curve-disconnect'!AV$20","v":1241.6215876520703},{"$f":"'Res-Appliance class'!$B29*'RES S curve-disconnect'!AW$5+'Res-Appliance class'!$C29*'RES S curve-disconnect'!AW$10+'Res-Appliance class'!$D29*'RES S curve-disconnect'!AW$15+'Res-Appliance class'!$E29*'RES S curve-disconnect'!AW$20","v":1628.0440037113867},{"$f":"'Res-Appliance class'!$B29*'RES S curve-disconnect'!AX$5+'Res-Appliance class'!$C29*'RES S curve-disconnect'!AX$10+'Res-Appliance class'!$D29*'RES S curve-disconnect'!AX$15+'Res-Appliance class'!$E29*'RES S curve-disconnect'!AX$20","v":2068.2438296833166},{"$f":"'Res-Appliance class'!$B29*'RES S curve-disconnect'!AY$5+'Res-Appliance class'!$C29*'RES S curve-disconnect'!AY$10+'Res-Appliance class'!$D29*'RES S curve-disconnect'!AY$15+'Res-Appliance class'!$E29*'RES S curve-disconnect'!AY$20","v":2576.2624730515649},{"$f":"'Res-Appliance class'!$B29*'RES S curve-disconnect'!AZ$5+'Res-Appliance class'!$C29*'RES S curve-disconnect'!AZ$10+'Res-Appliance class'!$D29*'RES S curve-disconnect'!AZ$15+'Res-Appliance class'!$E29*'RES S curve-disconnect'!AZ$20","v":3156.745157513611},{"$f":"'Res-Appliance class'!$B29*'RES S curve-disconnect'!BA$5+'Res-Appliance class'!$C29*'RES S curve-disconnect'!BA$10+'Res-Appliance class'!$D29*'RES S curve-disconnect'!BA$15+'Res-Appliance class'!$E29*'RES S curve-disconnect'!BA$20","v":3828.8225125229737},{"$f":"'Res-Appliance class'!$B29*'RES S curve-disconnect'!BB$5+'Res-Appliance class'!$C29*'RES S curve-disconnect'!BB$10+'Res-Appliance class'!$D29*'RES S curve-disconnect'!BB$15+'Res-Appliance class'!$E29*'RES S curve-disconnect'!BB$20","v":4613.7112135067146},{"$f":"'Res-Appliance class'!$B29*'RES S curve-disconnect'!BC$5+'Res-Appliance class'!$C29*'RES S curve-disconnect'!BC$10+'Res-Appliance class'!$D29*'RES S curve-disconnect'!BC$15+'Res-Appliance class'!$E29*'RES S curve-disconnect'!BC$20","v":5549.6474040065223},{"$f":"'Res-Appliance class'!$B29*'RES S curve-disconnect'!BD$5+'Res-Appliance class'!$C29*'RES S curve-disconnect'!BD$10+'Res-Appliance class'!$D29*'RES S curve-disconnect'!BD$15+'Res-Appliance class'!$E29*'RES S curve-disconnect'!BD$20","v":6451.7377535205505},{"$f":"'Res-Appliance class'!$B29*'RES S curve-disconnect'!BE$5+'Res-Appliance class'!$C29*'RES S curve-disconnect'!BE$10+'Res-Appliance class'!$D29*'RES S curve-disconnect'!BE$15+'Res-Appliance class'!$E29*'RES S curve-disconnect'!BE$20","v":7275.9866172959119},{"$f":"'Res-Appliance class'!$B29*'RES S curve-disconnect'!BF$5+'Res-Appliance class'!$C29*'RES S curve-disconnect'!BF$10+'Res-Appliance class'!$D29*'RES S curve-disconnect'!BF$15+'Res-Appliance class'!$E29*'RES S curve-disconnect'!BF$20","v":8119.4273234638513},{"$f":"'Res-Appliance class'!$B29*'RES S curve-disconnect'!BG$5+'Res-Appliance class'!$C29*'RES S curve-disconnect'!BG$10+'Res-Appliance class'!$D29*'RES S curve-disconnect'!BG$15+'Res-Appliance class'!$E29*'RES S curve-disconnect'!BG$20","v":9074.3156868030692},{"$f":"'Res-Appliance class'!$B29*'RES S curve-disconnect'!BH$5+'Res-Appliance class'!$C29*'RES S curve-disconnect'!BH$10+'Res-Appliance class'!$D29*'RES S curve-disconnect'!BH$15+'Res-Appliance class'!$E29*'RES S curve-disconnect'!BH$20","v":10207.645374847032},{"$f":"'Res-Appliance class'!$B29*'RES S curve-disconnect'!BI$5+'Res-Appliance class'!$C29*'RES S curve-disconnect'!BI$10+'Res-Appliance class'!$D29*'RES S curve-disconnect'!BI$15+'Res-Appliance class'!$E29*'RES S curve-disconnect'!BI$20","v":11850.033292342996},{"$f":"'Res-Appliance class'!$B29*'RES S curve-disconnect'!BJ$5+'Res-Appliance class'!$C29*'RES S curve-disconnect'!BJ$10+'Res-Appliance class'!$D29*'RES S curve-disconnect'!BJ$15+'Res-Appliance class'!$E29*'RES S curve-disconnect'!BJ$20","v":14254.489843966867},{"$f":"'Res-Appliance class'!$B29*'RES S curve-disconnect'!BK$5+'Res-Appliance class'!$C29*'RES S curve-disconnect'!BK$10+'Res-Appliance class'!$D29*'RES S curve-disconnect'!BK$15+'Res-Appliance class'!$E29*'RES S curve-disconnect'!BK$20","v":17801.637167812747},{"$f":"'Res-Appliance class'!$B29*'RES S curve-disconnect'!BL$5+'Res-Appliance class'!$C29*'RES S curve-disconnect'!BL$10+'Res-Appliance class'!$D29*'RES S curve-disconnect'!BL$15+'Res-Appliance class'!$E29*'RES S curve-disconnect'!BL$20","v":-2737.9880402058275},{"$f":"'Res-Appliance class'!$B29*'RES S curve-disconnect'!BM$5+'Res-Appliance class'!$C29*'RES S curve-disconnect'!BM$10+'Res-Appliance class'!$D29*'RES S curve-disconnect'!BM$15+'Res-Appliance class'!$E29*'RES S curve-disconnect'!BM$20","v":-2733.4953527694965},{"$f":"'Res-Appliance class'!$B29*'RES S curve-disconnect'!BN$5+'Res-Appliance class'!$C29*'RES S curve-disconnect'!BN$10+'Res-Appliance class'!$D29*'RES S curve-disconnect'!BN$15+'Res-Appliance class'!$E29*'RES S curve-disconnect'!BN$20","v":-2731.2718370066586},{"$f":"'Res-Appliance class'!$B29*'RES S curve-disconnect'!BO$5+'Res-Appliance class'!$C29*'RES S curve-disconnect'!BO$10+'Res-Appliance class'!$D29*'RES S curve-disconnect'!BO$15+'Res-Appliance class'!$E29*'RES S curve-disconnect'!BO$20","v":-2724.5288433205251},{"$f":"'Res-Appliance class'!$B29*'RES S curve-disconnect'!BP$5+'Res-Appliance class'!$C29*'RES S curve-disconnect'!BP$10+'Res-Appliance class'!$D29*'RES S curve-disconnect'!BP$15+'Res-Appliance class'!$E29*'RES S curve-disconnect'!BP$20","v":-2720.0549455651058},{"$f":"'Res-Appliance class'!$B29*'RES S curve-disconnect'!BQ$5+'Res-Appliance class'!$C29*'RES S curve-disconnect'!BQ$10+'Res-Appliance class'!$D29*'RES S curve-disconnect'!BQ$15+'Res-Appliance class'!$E29*'RES S curve-disconnect'!BQ$20","v":-2715.5872356863088},{"$f":"'Res-Appliance class'!$B29*'RES S curve-disconnect'!BR$5+'Res-Appliance class'!$C29*'RES S curve-disconnect'!BR$10+'Res-Appliance class'!$D29*'RES S curve-disconnect'!BR$15+'Res-Appliance class'!$E29*'RES S curve-disconnect'!BR$20","v":-2713.3885469349007},{"$f":"'Res-Appliance class'!$B29*'RES S curve-disconnect'!BS$5+'Res-Appliance class'!$C29*'RES S curve-disconnect'!BS$10+'Res-Appliance class'!$D29*'RES S curve-disconnect'!BS$15+'Res-Appliance class'!$E29*'RES S curve-disconnect'!BS$20","v":-2706.6702306505895},{"$f":"'Res-Appliance class'!$B29*'RES S curve-disconnect'!BT$5+'Res-Appliance class'!$C29*'RES S curve-disconnect'!BT$10+'Res-Appliance class'!$D29*'RES S curve-disconnect'!BT$15+'Res-Appliance class'!$E29*'RES S curve-disconnect'!BT$20","v":-2702.2208616179637},{"$f":"'Res-Appliance class'!$B29*'RES S curve-disconnect'!BU$5+'Res-Appliance class'!$C29*'RES S curve-disconnect'!BU$10+'Res-Appliance class'!$D29*'RES S curve-disconnect'!BU$15+'Res-Appliance class'!$E29*'RES S curve-disconnect'!BU$20","v":-2697.7775327076338},{"$f":"'Res-Appliance class'!$B29*'RES S curve-disconnect'!BV$5+'Res-Appliance class'!$C29*'RES S curve-disconnect'!BV$10+'Res-Appliance class'!$D29*'RES S curve-disconnect'!BV$15+'Res-Appliance class'!$E29*'RES S curve-disconnect'!BV$20","v":-2695.6030780892288},{"$f":"'Res-Appliance class'!$B29*'RES S curve-disconnect'!BW$5+'Res-Appliance class'!$C29*'RES S curve-disconnect'!BW$10+'Res-Appliance class'!$D29*'RES S curve-disconnect'!BW$15+'Res-Appliance class'!$E29*'RES S curve-disconnect'!BW$20","v":-2688.9088500155149},{"$f":"'Res-Appliance class'!$B29*'RES S curve-disconnect'!BX$5+'Res-Appliance class'!$C29*'RES S curve-disconnect'!BX$10+'Res-Appliance class'!$D29*'RES S curve-disconnect'!BX$15+'Res-Appliance class'!$E29*'RES S curve-disconnect'!BX$20","v":-2684.4834241783742},{"$f":"'Res-Appliance class'!$B29*'RES S curve-disconnect'!BY$5+'Res-Appliance class'!$C29*'RES S curve-disconnect'!BY$10+'Res-Appliance class'!$D29*'RES S curve-disconnect'!BY$15+'Res-Appliance class'!$E29*'RES S curve-disconnect'!BY$20","v":-2680.0638943499798},{"$f":"'Res-Appliance class'!$B29*'RES S curve-disconnect'!BZ$5+'Res-Appliance class'!$C29*'RES S curve-disconnect'!BZ$10+'Res-Appliance class'!$D29*'RES S curve-disconnect'!BZ$15+'Res-Appliance class'!$E29*'RES S curve-disconnect'!BZ$20","v":-2677.9130955958335},{"$f":"'Res-Appliance class'!$B29*'RES S curve-disconnect'!CA$5+'Res-Appliance class'!$C29*'RES S curve-disconnect'!CA$10+'Res-Appliance class'!$D29*'RES S curve-disconnect'!CA$15+'Res-Appliance class'!$E29*'RES S curve-disconnect'!CA$20","v":-2671.242381058913},{"$f":"'Res-Appliance class'!$B29*'RES S curve-disconnect'!CB$5+'Res-Appliance class'!$C29*'RES S curve-disconnect'!CB$10+'Res-Appliance class'!$D29*'RES S curve-disconnect'!CB$15+'Res-Appliance class'!$E29*'RES S curve-disconnect'!CB$20","v":-2666.8403273156928},{"$f":"'Res-Appliance class'!$B29*'RES S curve-disconnect'!CC$5+'Res-Appliance class'!$C29*'RES S curve-disconnect'!CC$10+'Res-Appliance class'!$D29*'RES S curve-disconnect'!CC$15+'Res-Appliance class'!$E29*'RES S curve-disconnect'!CC$20","v":-2662.4440290173543},{"$f":"'Res-Appliance class'!$B29*'RES S curve-disconnect'!CD$5+'Res-Appliance class'!$C29*'RES S curve-disconnect'!CD$10+'Res-Appliance class'!$D29*'RES S curve-disconnect'!CD$15+'Res-Appliance class'!$E29*'RES S curve-disconnect'!CD$20","v":-2729.3742210738205}]
["Cardinia (S)",null,{"$f":"'Res-Appliance class'!$B30*'RES S curve-disconnect'!C$5+'Res-Appliance class'!$C30*'RES S curve-disconnect'!C$10+'Res-Appliance class'!$D30*'RES S curve-disconnect'!C$15+'Res-Appliance class'!$E30*'RES S curve-disconnect'!C$20","v":-5574.1059934343302},{"$f":"'Res-Appliance class'!$B30*'RES S curve-disconnect'!D$5+'Res-Appliance class'!$C30*'RES S curve-disconnect'!D$10+'Res-Appliance class'!$D30*'RES S curve-disconnect'!D$15+'Res-Appliance class'!$E30*'RES S curve-disconnect'!D$20","v":-5945.656116651212},{"$f":"'Res-Appliance class'!$B30*'RES S curve-disconnect'!E$5+'Res-Appliance class'!$C30*'RES S curve-disconnect'!E$10+'Res-Appliance class'!$D30*'RES S curve-disconnect'!E$15+'Res-Appliance class'!$E30*'RES S curve-disconnect'!E$20","v":-4923.0301819935667},{"$f":"'Res-Appliance class'!$B30*'RES S curve-disconnect'!F$5+'Res-Appliance class'!$C30*'RES S curve-disconnect'!F$10+'Res-Appliance class'!$D30*'RES S curve-disconnect'!F$15+'Res-Appliance class'!$E30*'RES S curve-disconnect'!F$20","v":-4810.4929832508788},{"$f":"'Res-Appliance class'!$B30*'RES S curve-disconnect'!G$5+'Res-Appliance class'!$C30*'RES S curve-disconnect'!G$10+'Res-Appliance class'!$D30*'RES S curve-disconnect'!G$15+'Res-Appliance class'!$E30*'RES S curve-disconnect'!G$20","v":-6054.3640345109379},{"$f":"'Res-Appliance class'!$B30*'RES S curve-disconnect'!H$5+'Res-Appliance class'!$C30*'RES S curve-disconnect'!H$10+'Res-Appliance class'!$D30*'RES S curve-disconnect'!H$15+'Res-Appliance class'!$E30*'RES S curve-disconnect'!H$20","v":-6080.2526955509293},{"$f":"'Res-Appliance class'!$B30*'RES S curve-disconnect'!I$5+'Res-Appliance class'!$C30*'RES S curve-disconnect'!I$10+'Res-Appliance class'!$D30*'RES S curve-disconnect'!I$15+'Res-Appliance class'!$E30*'RES S curve-disconnect'!I$20","v":-5761.6734498103106},{"$f":"'Res-Appliance class'!$B30*'RES S curve-disconnect'!J$5+'Res-Appliance class'!$C30*'RES S curve-disconnect'!J$10+'Res-Appliance class'!$D30*'RES S curve-disconnect'!J$15+'Res-Appliance class'!$E30*'RES S curve-disconnect'!J$20","v":-6125.163468553078},{"$f":"'Res-Appliance class'!$B30*'RES S curve-disconnect'!K$5+'Res-Appliance class'!$C30*'RES S curve-disconnect'!K$10+'Res-Appliance class'!$D30*'RES S curve-disconnect'!K$15+'Res-Appliance class'!$E30*'RES S curve-disconnect'!K$20","v":-5435.3427888991282},{"$f":"'Res-Appliance class'!$B30*'RES S curve-disconnect'!L$5+'Res-Appliance class'!$C30*'RES S curve-disconnect'!L$10+'Res-Appliance class'!$D30*'RES S curve-disconnect'!L$15+'Res-Appliance class'!$E30*'RES S curve-disconnect'!L$20","v":-5670.0555427488562},{"$f":"'Res-Appliance class'!$B30*'RES S curve-disconnect'!M$5+'Res-Appliance class'!$C30*'RES S curve-disconnect'!M$10+'Res-Appliance class'!$D30*'RES S curve-disconnect'!M$15+'Res-Appliance class'!$E30*'RES S curve-disconnect'!M$20","v":-6120.275299891523},{"$f":"'Res-Appliance class'!$B30*'RES S curve-disconnect'!N$5+'Res-Appliance class'!$C30*'RES S curve-disconnect'!N$10+'Res-Appliance class'!$D30*'RES S curve-disconnect'!N$15+'Res-Appliance class'!$E30*'RES S curve-disconnect'!N$20","v":-6145.0915649518538},{"$f":"'Res-Appliance class'!$B30*'RES S curve-disconnect'!O$5+'Res-Appliance class'!$C30*'RES S curve-disconnect'!O$10+'Res-Appliance class'!$D30*'RES S curve-disconnect'!O$15+'Res-Appliance class'!$E30*'RES S curve-disconnect'!O$20","v":-5716.5008276819335},{"$f":"'Res-Appliance class'!$B30*'RES S curve-disconnect'!P$5+'Res-Appliance class'!$C30*'RES S curve-disconnect'!P$10+'Res-Appliance class'!$D30*'RES S curve-disconnect'!P$15+'Res-Appliance class'!$E30*'RES S curve-disconnect'!P$20","v":-5370.484054616747},{"$f":"'Res-Appliance class'!$B30*'RES S curve-disconnect'!Q$5+'Res-Appliance class'!$C30*'RES S curve-disconnect'!Q$10+'Res-Appliance class'!$D30*'RES S curve-disconnect'!Q$15+'Res-Appliance class'!$E30*'RES S curve-disconnect'!Q$20","v":-4857.4774301103744},{"$f":"'Res-Appliance class'!$B30*'RES S curve-disconnect'!R$5+'Res-Appliance class'!$C30*'RES S curve-disconnect'!R$10+'Res-Appliance class'!$D30*'RES S curve-disconnect'!R$15+'Res-Appliance class'!$E30*'RES S curve-disconnect'!R$20","v":-4558.4416200392316},{"$f":"'Res-Appliance class'!$B30*'RES S curve-disconnect'!S$5+'Res-Appliance class'!$C30*'RES S curve-disconnect'!S$10+'Res-Appliance class'!$D30*'RES S curve-disconnect'!S$15+'Res-Appliance class'!$E30*'RES S curve-disconnect'!S$20","v":-4095.2278206935384},{"$f":"'Res-Appliance class'!$B30*'RES S curve-disconnect'!T$5+'Res-Appliance class'!$C30*'RES S curve-disconnect'!T$10+'Res-Appliance class'!$D30*'RES S curve-disconnect'!T$15+'Res-Appliance class'!$E30*'RES S curve-disconnect'!T$20","v":-3832.5939731725402},{"$f":"'Res-Appliance class'!$B30*'RES S curve-disconnect'!U$5+'Res-Appliance class'!$C30*'RES S curve-disconnect'!U$10+'Res-Appliance class'!$D30*'RES S curve-disconnect'!U$15+'Res-Appliance class'!$E30*'RES S curve-disconnect'!U$20","v":-3537.2330943637207},{"$f":"'Res-Appliance class'!$B30*'RES S curve-disconnect'!V$5+'Res-Appliance class'!$C30*'RES S curve-disconnect'!V$10+'Res-Appliance class'!$D30*'RES S curve-disconnect'!V$15+'Res-Appliance class'!$E30*'RES S curve-disconnect'!V$20","v":-3330.5958121863132},{"$f":"'Res-Appliance class'!$B30*'RES S curve-disconnect'!W$5+'Res-Appliance class'!$C30*'RES S curve-disconnect'!W$10+'Res-Appliance class'!$D30*'RES S curve-disconnect'!W$15+'Res-Appliance class'!$E30*'RES S curve-disconnect'!W$20","v":-3165.4391805464256},{"$f":"'Res-Appliance class'!$B30*'RES S curve-disconnect'!X$5+'Res-Appliance class'!$C30*'RES S curve-disconnect'!X$10+'Res-Appliance class'!$D30*'RES S curve-disconnect'!X$15+'Res-Appliance class'!$E30*'RES S curve-disconnect'!X$20","v":-2812.8791941865402},{"$f":"'Res-Appliance class'!$B30*'RES S curve-disconnect'!Y$5+'Res-Appliance class'!$C30*'RES S curve-disconnect'!Y$10+'Res-Appliance class'!$D30*'RES S curve-disconnect'!Y$15+'Res-Appliance class'!$E30*'RES S curve-disconnect'!Y$20","v":-2456.7475490537536},{"$f":"'Res-Appliance class'!$B30*'RES S curve-disconnect'!Z$5+'Res-Appliance class'!$C30*'RES S curve-disconnect'!Z$10+'Res-Appliance class'!$D30*'RES S curve-disconnect'!Z$15+'Res-Appliance class'!$E30*'RES S curve-disconnect'!Z$20","v":-2210.164044026852},{"$f":"'Res-Appliance class'!$B30*'RES S curve-disconnect'!AA$5+'Res-Appliance class'!$C30*'RES S curve-disconnect'!AA$10+'Res-Appliance class'!$D30*'RES S curve-disconnect'!AA$15+'Res-Appliance class'!$E30*'RES S curve-disconnect'!AA$20","v":-1963.964581455245},{"$f":"'Res-Appliance class'!$B30*'RES S curve-disconnect'!AB$5+'Res-Appliance class'!$C30*'RES S curve-disconnect'!AB$10+'Res-Appliance class'!$D30*'RES S curve-disconnect'!AB$15+'Res-Appliance class'!$E30*'RES S curve-disconnect'!AB$20","v":-1763.900757573283},{"$f":"'Res-Appliance class'!$B30*'RES S curve-disconnect'!AC$5+'Res-Appliance class'!$C30*'RES S curve-disconnect'!AC$10+'Res-Appliance class'!$D30*'RES S curve-disconnect'!AC$15+'Res-Appliance class'!$E30*'RES S curve-disconnect'!AC$20","v":-1570.7900315411225},{"$f":"'Res-Appliance class'!$B30*'RES S curve-disconnect'!AD$5+'Res-Appliance class'!$C30*'RES S curve-disconnect'!AD$10+'Res-Appliance class'!$D30*'RES S curve-disconnect'!AD$15+'Res-Appliance class'!$E30*'RES S curve-disconnect'!AD$20","v":-1392.292248376405},{"$f":"'Res-Appliance class'!$B30*'RES S curve-disconnect'!AE$5+'Res-Appliance class'!$C30*'RES S curve-disconnect'!AE$10+'Res-Appliance class'!$D30*'RES S curve-disconnect'!AE$15+'Res-Appliance class'!$E30*'RES S curve-disconnect'!AE$20","v":-1206.089611757543},{"$f":"'Res-Appliance class'!$B30*'RES S curve-disconnect'!AF$5+'Res-Appliance class'!$C30*'RES S curve-disconnect'!AF$10+'Res-Appliance class'!$D30*'RES S curve-disconnect'!AF$15+'Res-Appliance class'!$E30*'RES S curve-disconnect'!AF$20","v":-969.81525344709348},{"$f":"'Res-Appliance class'!$B30*'RES S curve-disconnect'!AG$5+'Res-Appliance class'!$C30*'RES S curve-disconnect'!AG$10+'Res-Appliance class'!$D30*'RES S curve-disconnect'!AG$15+'Res-Appliance class'!$E30*'RES S curve-disconnect'!AG$20","v":-819.23767587775956},{"$f":"'Res-Appliance class'!$B30*'RES S curve-disconnect'!AH$5+'Res-Appliance class'!$C30*'RES S curve-disconnect'!AH$10+'Res-Appliance class'!$D30*'RES S curve-disconnect'!AH$15+'Res-Appliance class'!$E30*'RES S curve-disconnect'!AH$20","v":-606.44845786394114},{"$f":"'Res-Appliance class'!$B30*'RES S curve-disconnect'!AI$5+'Res-Appliance class'!$C30*'RES S curve-disconnect'!AI$10+'Res-Appliance class'!$D30*'RES S curve-disconnect'!AI$15+'Res-Appliance class'!$E30*'RES S curve-disconnect'!AI$20","v":-415.98581303768651},{"$f":"'Res-Appliance class'!$B30*'RES S curve-disconnect'!AJ$5+'Res-Appliance class'!$C30*'RES S curve-disconnect'!AJ$10+'Res-Appliance class'!$D30*'RES S curve-disconnect'!AJ$15+'Res-Appliance class'!$E30*'RES S curve-disconnect'!AJ$20","v":-243.9292582743725},{"$f":"'Res-Appliance class'!$B30*'RES S curve-disconnect'!AK$5+'Res-Appliance class'!$C30*'RES S curve-disconnect'!AK$10+'Res-Appliance class'!$D30*'RES S curve-disconnect'!AK$15+'Res-Appliance class'!$E30*'RES S curve-disconnect'!AK$20","v":-61.293974509108722},{"$f":"'Res-Appliance class'!$B30*'RES S curve-disconnect'!AL$5+'Res-Appliance class'!$C30*'RES S curve-disconnect'!AL$10+'Res-Appliance class'!$D30*'RES S curve-disconnect'!AL$15+'Res-Appliance class'!$E30*'RES S curve-disconnect'!AL$20","v":-691.4362203381271},{"$f":"'Res-Appliance class'!$B30*'RES S curve-disconnect'!AM$5+'Res-Appliance class'!$C30*'RES S curve-disconnect'!AM$10+'Res-Appliance class'!$D30*'RES S curve-disconnect'!AM$15+'Res-Appliance class'!$E30*'RES S curve-disconnect'!AM$20","v":-775.21090040628701},{"$f":"'Res-Appliance class'!$B30*'RES S curve-disconnect'!AN$5+'Res-Appliance class'!$C30*'RES S curve-disconnect'!AN$10+'Res-Appliance class'!$D30*'RES S curve-disconnect'!AN$15+'Res-Appliance class'!$E30*'RES S curve-disconnect'!AN$20","v":-602.99310952735073},{"$f":"'Res-Appliance class'!$B30*'RES S curve-disconnect'!AO$5+'Res-Appliance class'!$C30*'RES S curve-disconnect'!AO$10+'Res-Appliance class'!$D30*'RES S curve-disconnect'!AO$15+'Res-Appliance class'!$E30*'RES S curve-disconnect'!AO$20","v":-391.70268161876612},{"$f":"'Res-Appliance class'!$B30*'RES S curve-disconnect'!AP$5+'Res-Appliance class'!$C30*'RES S curve-disconnect'!AP$10+'Res-Appliance class'!$D30*'RES S curve-disconnect'!AP$15+'Res-Appliance class'!$E30*'RES S curve-disconnect'!AP$20","v":-196.11995655979288},{"$f":"'Res-Appliance class'!$B30*'RES S curve-disconnect'!AQ$5+'Res-Appliance class'!$C30*'RES S curve-disconnect'!AQ$10+'Res-Appliance class'!$D30*'RES S curve-disconnect'!AQ$15+'Res-Appliance class'!$E30*'RES S curve-disconnect'!AQ$20","v":14.056876308377866},{"$f":"'Res-Appliance class'!$B30*'RES S curve-disconnect'!AR$5+'Res-Appliance class'!$C30*'RES S curve-disconnect'!AR$10+'Res-Appliance class'!$D30*'RES S curve-disconnect'!AR$15+'Res-Appliance class'!$E30*'RES S curve-disconnect'!AR$20","v":245.06616419992628},{"$f":"'Res-Appliance class'!$B30*'RES S curve-disconnect'!AS$5+'Res-Appliance class'!$C30*'RES S curve-disconnect'!AS$10+'Res-Appliance class'!$D30*'RES S curve-disconnect'!AS$15+'Res-Appliance class'!$E30*'RES S curve-disconnect'!AS$20","v":504.35567855675868},{"$f":"'Res-Appliance class'!$B30*'RES S curve-disconnect'!AT$5+'Res-Appliance class'!$C30*'RES S curve-disconnect'!AT$10+'Res-Appliance class'!$D30*'RES S curve-disconnect'!AT$15+'Res-Appliance class'!$E30*'RES S curve-disconnect'!AT$20","v":794.66528832058953},{"$f":"'Res-Appliance class'!$B30*'RES S curve-disconnect'!AU$5+'Res-Appliance class'!$C30*'RES S curve-disconnect'!AU$10+'Res-Appliance class'!$D30*'RES S curve-disconnect'!AU$15+'Res-Appliance class'!$E30*'RES S curve-disconnect'!AU$20","v":1130.1998142319671},{"$f":"'Res-Appliance class'!$B30*'RES S curve-disconnect'!AV$5+'Res-Appliance class'!$C30*'RES S curve-disconnect'!AV$10+'Res-Appliance class'!$D30*'RES S curve-disconnect'!AV$15+'Res-Appliance class'!$E30*'RES S curve-disconnect'!AV$20","v":1513.2797055776703},{"$f":"'Res-Appliance class'!$B30*'RES S curve-disconnect'!AW$5+'Res-Appliance class'!$C30*'RES S curve-disconnect'!AW$10+'Res-Appliance class'!$D30*'RES S curve-disconnect'!AW$15+'Res-Appliance class'!$E30*'RES S curve-disconnect'!AW$20","v":1953.7632534453912},{"$f":"'Res-Appliance class'!$B30*'RES S curve-disconnect'!AX$5+'Res-Appliance class'!$C30*'RES S curve-disconnect'!AX$10+'Res-Appliance class'!$D30*'RES S curve-disconnect'!AX$15+'Res-Appliance class'!$E30*'RES S curve-disconnect'!AX$20","v":2456.2055482423693},{"$f":"'Res-Appliance class'!$B30*'RES S curve-disconnect'!AY$5+'Res-Appliance class'!$C30*'RES S curve-disconnect'!AY$10+'Res-Appliance class'!$D30*'RES S curve-disconnect'!AY$15+'Res-Appliance class'!$E30*'RES S curve-disconnect'!AY$20","v":3035.7926892144578},{"$f":"'Res-Appliance class'!$B30*'RES S curve-disconnect'!AZ$5+'Res-Appliance class'!$C30*'RES S curve-disconnect'!AZ$10+'Res-Appliance class'!$D30*'RES S curve-disconnect'!AZ$15+'Res-Appliance class'!$E30*'RES S curve-disconnect'!AZ$20","v":3698.9194810261988},{"$f":"'Res-Appliance class'!$B30*'RES S curve-disconnect'!BA$5+'Res-Appliance class'!$C30*'RES S curve-disconnect'!BA$10+'Res-Appliance class'!$D30*'RES S curve-disconnect'!BA$15+'Res-Appliance class'!$E30*'RES S curve-disconnect'!BA$20","v":4467.2754032700541},{"$f":"'Res-Appliance class'!$B30*'RES S curve-disconnect'!BB$5+'Res-Appliance class'!$C30*'RES S curve-disconnect'!BB$10+'Res-Appliance class'!$D30*'RES S curve-disconnect'!BB$15+'Res-Appliance class'!$E30*'RES S curve-disconnect'!BB$20","v":5365.6548957846335},{"$f":"'Res-Appliance class'!$B30*'RES S curve-disconnect'!BC$5+'Res-Appliance class'!$C30*'RES S curve-disconnect'!BC$10+'Res-Appliance class'!$D30*'RES S curve-disconnect'!BC$15+'Res-Appliance class'!$E30*'RES S curve-disconnect'!BC$20","v":6437.1128636814774},{"$f":"'Res-Appliance class'!$B30*'RES S curve-disconnect'!BD$5+'Res-Appliance class'!$C30*'RES S curve-disconnect'!BD$10+'Res-Appliance class'!$D30*'RES S curve-disconnect'!BD$15+'Res-Appliance class'!$E30*'RES S curve-disconnect'!BD$20","v":7472.5385818466011},{"$f":"'Res-Appliance class'!$B30*'RES S curve-disconnect'!BE$5+'Res-Appliance class'!$C30*'RES S curve-disconnect'!BE$10+'Res-Appliance class'!$D30*'RES S curve-disconnect'!BE$15+'Res-Appliance class'!$E30*'RES S curve-disconnect'!BE$20","v":8419.5253758686031},{"$f":"'Res-Appliance class'!$B30*'RES S curve-disconnect'!BF$5+'Res-Appliance class'!$C30*'RES S curve-disconnect'!BF$10+'Res-Appliance class'!$D30*'RES S curve-disconnect'!BF$15+'Res-Appliance class'!$E30*'RES S curve-disconnect'!BF$20","v":9388.2928768847814},{"$f":"'Res-Appliance class'!$B30*'RES S curve-disconnect'!BG$5+'Res-Appliance class'!$C30*'RES S curve-disconnect'!BG$10+'Res-Appliance class'!$D30*'RES S curve-disconnect'!BG$15+'Res-Appliance class'!$E30*'RES S curve-disconnect'!BG$20","v":10484.043407407549},{"$f":"'Res-Appliance class'!$B30*'RES S curve-disconnect'!BH$5+'Res-Appliance class'!$C30*'RES S curve-disconnect'!BH$10+'Res-Appliance class'!$D30*'RES S curve-disconnect'!BH$15+'Res-Appliance class'!$E30*'RES S curve-disconnect'!BH$20","v":11785.170512053759},{"$f":"'Res-Appliance class'!$B30*'RES S curve-disconnect'!BI$5+'Res-Appliance class'!$C30*'RES S curve-disconnect'!BI$10+'Res-Appliance class'!$D30*'RES S curve-disconnect'!BI$15+'Res-Appliance class'!$E30*'RES S curve-disconnect'!BI$20","v":13670.087848690635},{"$f":"'Res-Appliance class'!$B30*'RES S curve-disconnect'!BJ$5+'Res-Appliance class'!$C30*'RES S curve-disconnect'!BJ$10+'Res-Appliance class'!$D30*'RES S curve-disconnect'!BJ$15+'Res-Appliance class'!$E30*'RES S curve-disconnect'!BJ$20","v":16432.746941779918},{"$f":"'Res-Appliance class'!$B30*'RES S curve-disconnect'!BK$5+'Res-Appliance class'!$C30*'RES S curve-disconnect'!BK$10+'Res-Appliance class'!$D30*'RES S curve-disconnect'!BK$15+'Res-Appliance class'!$E30*'RES S curve-disconnect'!BK$20","v":20512.95781537567},{"$f":"'Res-Appliance class'!$B30*'RES S curve-disconnect'!BL$5+'Res-Appliance class'!$C30*'RES S curve-disconnect'!BL$10+'Res-Appliance class'!$D30*'RES S curve-disconnect'!BL$15+'Res-Appliance class'!$E30*'RES S curve-disconnect'!BL$20","v":-2999.3262822743095},{"$f":"'Res-Appliance class'!$B30*'RES S curve-disconnect'!BM$5+'Res-Appliance class'!$C30*'RES S curve-disconnect'!BM$10+'Res-Appliance class'!$D30*'RES S curve-disconnect'!BM$15+'Res-Appliance class'!$E30*'RES S curve-disconnect'!BM$20","v":-2994.1997208647899},{"$f":"'Res-Appliance class'!$B30*'RES S curve-disconnect'!BN$5+'Res-Appliance class'!$C30*'RES S curve-disconnect'!BN$10+'Res-Appliance class'!$D30*'RES S curve-disconnect'!BN$15+'Res-Appliance class'!$E30*'RES S curve-disconnect'!BN$20","v":-2991.3428579491597},{"$f":"'Res-Appliance class'!$B30*'RES S curve-disconnect'!BO$5+'Res-Appliance class'!$C30*'RES S curve-disconnect'!BO$10+'Res-Appliance class'!$D30*'RES S curve-disconnect'!BO$15+'Res-Appliance class'!$E30*'RES S curve-disconnect'!BO$20","v":-2983.9670410528006},{"$f":"'Res-Appliance class'!$B30*'RES S curve-disconnect'!BP$5+'Res-Appliance class'!$C30*'RES S curve-disconnect'!BP$10+'Res-Appliance class'!$D30*'RES S curve-disconnect'!BP$15+'Res-Appliance class'!$E30*'RES S curve-disconnect'!BP$20","v":-2978.8608411688792},{"$f":"'Res-Appliance class'!$B30*'RES S curve-disconnect'!BQ$5+'Res-Appliance class'!$C30*'RES S curve-disconnect'!BQ$10+'Res-Appliance class'!$D30*'RES S curve-disconnect'!BQ$15+'Res-Appliance class'!$E30*'RES S curve-disconnect'!BQ$20","v":-2973.7613473993424},{"$f":"'Res-Appliance class'!$B30*'RES S curve-disconnect'!BR$5+'Res-Appliance class'!$C30*'RES S curve-disconnect'!BR$10+'Res-Appliance class'!$D30*'RES S curve-disconnect'!BR$15+'Res-Appliance class'!$E30*'RES S curve-disconnect'!BR$20","v":-2970.931390167772},{"$f":"'Res-Appliance class'!$B30*'RES S curve-disconnect'!BS$5+'Res-Appliance class'!$C30*'RES S curve-disconnect'!BS$10+'Res-Appliance class'!$D30*'RES S curve-disconnect'!BS$15+'Res-Appliance class'!$E30*'RES S curve-disconnect'!BS$20","v":-2963.5823180033667},{"$f":"'Res-Appliance class'!$B30*'RES S curve-disconnect'!BT$5+'Res-Appliance class'!$C30*'RES S curve-disconnect'!BT$10+'Res-Appliance class'!$D30*'RES S curve-disconnect'!BT$15+'Res-Appliance class'!$E30*'RES S curve-disconnect'!BT$20","v":-2958.5027028967775},{"$f":"'Res-Appliance class'!$B30*'RES S curve-disconnect'!BU$5+'Res-Appliance class'!$C30*'RES S curve-disconnect'!BU$10+'Res-Appliance class'!$D30*'RES S curve-disconnect'!BU$15+'Res-Appliance class'!$E30*'RES S curve-disconnect'!BU$20","v":-2953.4296349411457},{"$f":"'Res-Appliance class'!$B30*'RES S curve-disconnect'!BV$5+'Res-Appliance class'!$C30*'RES S curve-disconnect'!BV$10+'Res-Appliance class'!$D30*'RES S curve-disconnect'!BV$15+'Res-Appliance class'!$E30*'RES S curve-disconnect'!BV$20","v":-2950.6259455450008},{"$f":"'Res-Appliance class'!$B30*'RES S curve-disconnect'!BW$5+'Res-Appliance class'!$C30*'RES S curve-disconnect'!BW$10+'Res-Appliance class'!$D30*'RES S curve-disconnect'!BW$15+'Res-Appliance class'!$E30*'RES S curve-disconnect'!BW$20","v":-2943.3029842162769},{"$f":"'Res-Appliance class'!$B30*'RES S curve-disconnect'!BX$5+'Res-Appliance class'!$C30*'RES S curve-disconnect'!BX$10+'Res-Appliance class'!$D30*'RES S curve-disconnect'!BX$15+'Res-Appliance class'!$E30*'RES S curve-disconnect'!BX$20","v":-2938.2493239181922},{"$f":"'Res-Appliance class'!$B30*'RES S curve-disconnect'!BY$5+'Res-Appliance class'!$C30*'RES S curve-disconnect'!BY$10+'Res-Appliance class'!$D30*'RES S curve-disconnect'!BY$15+'Res-Appliance class'!$E30*'RES S curve-disconnect'!BY$20","v":-2933.2020557103233},{"$f":"'Res-Appliance class'!$B30*'RES S curve-disconnect'!BZ$5+'Res-Appliance class'!$C30*'RES S curve-disconnect'!BZ$10+'Res-Appliance class'!$D30*'RES S curve-disconnect'!BZ$15+'Res-Appliance class'!$E30*'RES S curve-disconnect'!BZ$20","v":-2930.4240119615451},{"$f":"'Res-Appliance class'!$B30*'RES S curve-disconnect'!CA$5+'Res-Appliance class'!$C30*'RES S curve-disconnect'!CA$10+'Res-Appliance class'!$D30*'RES S curve-disconnect'!CA$15+'Res-Appliance class'!$E30*'RES S curve-disconnect'!CA$20","v":-2923.1265431340817},{"$f":"'Res-Appliance class'!$B30*'RES S curve-disconnect'!CB$5+'Res-Appliance class'!$C30*'RES S curve-disconnect'!CB$10+'Res-Appliance class'!$D30*'RES S curve-disconnect'!CB$15+'Res-Appliance class'!$E30*'RES S curve-disconnect'!CB$20","v":-2918.0982231394246},{"$f":"'Res-Appliance class'!$B30*'RES S curve-disconnect'!CC$5+'Res-Appliance class'!$C30*'RES S curve-disconnect'!CC$10+'Res-Appliance class'!$D30*'RES S curve-disconnect'!CC$15+'Res-Appliance class'!$E30*'RES S curve-disconnect'!CC$20","v":-2913.0761439794514},{"$f":"'Res-Appliance class'!$B30*'RES S curve-disconnect'!CD$5+'Res-Appliance class'!$C30*'RES S curve-disconnect'!CD$10+'Res-Appliance class'!$D30*'RES S curve-disconnect'!CD$15+'Res-Appliance class'!$E30*'RES S curve-disconnect'!CD$20","v":-2990.4508051459898}]
["Casey (C)",null,{"$f":"'Res-Appliance class'!$B31*'RES S curve-disconnect'!C$5+'Res-Appliance class'!$C31*'RES S curve-disconnect'!C$10+'Res-Appliance class'!$D31*'RES S curve-disconnect'!C$15+'Res-Appliance class'!$E31*'RES S curve-disconnect'!C$20","v":-5550.7403371368791},{"$f":"'Res-Appliance class'!$B31*'RES S curve-disconnect'!D$5+'Res-Appliance class'!$C31*'RES S curve-disconnect'!D$10+'Res-Appliance class'!$D31*'RES S curve-disconnect'!D$15+'Res-Appliance class'!$E31*'RES S curve-disconnect'!D$20","v":-5911.9890474877475},{"$f":"'Res-Appliance class'!$B31*'RES S curve-disconnect'!E$5+'Res-Appliance class'!$C31*'RES S curve-disconnect'!E$10+'Res-Appliance class'!$D31*'RES S curve-disconnect'!E$15+'Res-Appliance class'!$E31*'RES S curve-disconnect'!E$20","v":-4934.6283854703361},{"$f":"'Res-Appliance class'!$B31*'RES S curve-disconnect'!F$5+'Res-Appliance class'!$C31*'RES S curve-disconnect'!F$10+'Res-Appliance class'!$D31*'RES S curve-disconnect'!F$15+'Res-Appliance class'!$E31*'RES S curve-disconnect'!F$20","v":-4825.8812507117946},{"$f":"'Res-Appliance class'!$B31*'RES S curve-disconnect'!G$5+'Res-Appliance class'!$C31*'RES S curve-disconnect'!G$10+'Res-Appliance class'!$D31*'RES S curve-disconnect'!G$15+'Res-Appliance class'!$E31*'RES S curve-disconnect'!G$20","v":-5980.9411441082557},{"$f":"'Res-Appliance class'!$B31*'RES S curve-disconnect'!H$5+'Res-Appliance class'!$C31*'RES S curve-disconnect'!H$10+'Res-Appliance class'!$D31*'RES S curve-disconnect'!H$15+'Res-Appliance class'!$E31*'RES S curve-disconnect'!H$20","v":-6017.712465084559},{"$f":"'Res-Appliance class'!$B31*'RES S curve-disconnect'!I$5+'Res-Appliance class'!$C31*'RES S curve-disconnect'!I$10+'Res-Appliance class'!$D31*'RES S curve-disconnect'!I$15+'Res-Appliance class'!$E31*'RES S curve-disconnect'!I$20","v":-5710.5614580368947},{"$f":"'Res-Appliance class'!$B31*'RES S curve-disconnect'!J$5+'Res-Appliance class'!$C31*'RES S curve-disconnect'!J$10+'Res-Appliance class'!$D31*'RES S curve-disconnect'!J$15+'Res-Appliance class'!$E31*'RES S curve-disconnect'!J$20","v":-6085.0206608764929},{"$f":"'Res-Appliance class'!$B31*'RES S curve-disconnect'!K$5+'Res-Appliance class'!$C31*'RES S curve-disconnect'!K$10+'Res-Appliance class'!$D31*'RES S curve-disconnect'!K$15+'Res-Appliance class'!$E31*'RES S curve-disconnect'!K$20","v":-5414.6107310341567},{"$f":"'Res-Appliance class'!$B31*'RES S curve-disconnect'!L$5+'Res-Appliance class'!$C31*'RES S curve-disconnect'!L$10+'Res-Appliance class'!$D31*'RES S curve-disconnect'!L$15+'Res-Appliance class'!$E31*'RES S curve-disconnect'!L$20","v":-5641.7256299692772},{"$f":"'Res-Appliance class'!$B31*'RES S curve-disconnect'!M$5+'Res-Appliance class'!$C31*'RES S curve-disconnect'!M$10+'Res-Appliance class'!$D31*'RES S curve-disconnect'!M$15+'Res-Appliance class'!$E31*'RES S curve-disconnect'!M$20","v":-6072.3471819361675},{"$f":"'Res-Appliance class'!$B31*'RES S curve-disconnect'!N$5+'Res-Appliance class'!$C31*'RES S curve-disconnect'!N$10+'Res-Appliance class'!$D31*'RES S curve-disconnect'!N$15+'Res-Appliance class'!$E31*'RES S curve-disconnect'!N$20","v":-6095.0219047776},{"$f":"'Res-Appliance class'!$B31*'RES S curve-disconnect'!O$5+'Res-Appliance class'!$C31*'RES S curve-disconnect'!O$10+'Res-Appliance class'!$D31*'RES S curve-disconnect'!O$15+'Res-Appliance class'!$E31*'RES S curve-disconnect'!O$20","v":-5679.8158599037006},{"$f":"'Res-Appliance class'!$B31*'RES S curve-disconnect'!P$5+'Res-Appliance class'!$C31*'RES S curve-disconnect'!P$10+'Res-Appliance class'!$D31*'RES S curve-disconnect'!P$15+'Res-Appliance class'!$E31*'RES S curve-disconnect'!P$20","v":-5344.995854574755},{"$f":"'Res-Appliance class'!$B31*'RES S curve-disconnect'!Q$5+'Res-Appliance class'!$C31*'RES S curve-disconnect'!Q$10+'Res-Appliance class'!$D31*'RES S curve-disconnect'!Q$15+'Res-Appliance class'!$E31*'RES S curve-disconnect'!Q$20","v":-4849.1259471215526},{"$f":"'Res-Appliance class'!$B31*'RES S curve-disconnect'!R$5+'Res-Appliance class'!$C31*'RES S curve-disconnect'!R$10+'Res-Appliance class'!$D31*'RES S curve-disconnect'!R$15+'Res-Appliance class'!$E31*'RES S curve-disconnect'!R$20","v":-4559.7020138494045},{"$f":"'Res-Appliance class'!$B31*'RES S curve-disconnect'!S$5+'Res-Appliance class'!$C31*'RES S curve-disconnect'!S$10+'Res-Appliance class'!$D31*'RES S curve-disconnect'!S$15+'Res-Appliance class'!$E31*'RES S curve-disconnect'!S$20","v":-4111.4722894363686},{"$f":"'Res-Appliance class'!$B31*'RES S curve-disconnect'!T$5+'Res-Appliance class'!$C31*'RES S curve-disconnect'!T$10+'Res-Appliance class'!$D31*'RES S curve-disconnect'!T$15+'Res-Appliance class'!$E31*'RES S curve-disconnect'!T$20","v":-3857.9196977259899},{"$f":"'Res-Appliance class'!$B31*'RES S curve-disconnect'!U$5+'Res-Appliance class'!$C31*'RES S curve-disconnect'!U$10+'Res-Appliance class'!$D31*'RES S curve-disconnect'!U$15+'Res-Appliance class'!$E31*'RES S curve-disconnect'!U$20","v":-3572.0716471630726},{"$f":"'Res-Appliance class'!$B31*'RES S curve-disconnect'!V$5+'Res-Appliance class'!$C31*'RES S curve-disconnect'!V$10+'Res-Appliance class'!$D31*'RES S curve-disconnect'!V$15+'Res-Appliance class'!$E31*'RES S curve-disconnect'!V$20","v":-3371.3207292569318},{"$f":"'Res-Appliance class'!$B31*'RES S curve-disconnect'!W$5+'Res-Appliance class'!$C31*'RES S curve-disconnect'!W$10+'Res-Appliance class'!$D31*'RES S curve-disconnect'!W$15+'Res-Appliance class'!$E31*'RES S curve-disconnect'!W$20","v":-3210.8372398653769},{"$f":"'Res-Appliance class'!$B31*'RES S curve-disconnect'!X$5+'Res-Appliance class'!$C31*'RES S curve-disconnect'!X$10+'Res-Appliance class'!$D31*'RES S curve-disconnect'!X$15+'Res-Appliance class'!$E31*'RES S curve-disconnect'!X$20","v":-2870.2388964254237},{"$f":"'Res-Appliance class'!$B31*'RES S curve-disconnect'!Y$5+'Res-Appliance class'!$C31*'RES S curve-disconnect'!Y$10+'Res-Appliance class'!$D31*'RES S curve-disconnect'!Y$15+'Res-Appliance class'!$E31*'RES S curve-disconnect'!Y$20","v":-2526.072120791966},{"$f":"'Res-Appliance class'!$B31*'RES S curve-disconnect'!Z$5+'Res-Appliance class'!$C31*'RES S curve-disconnect'!Z$10+'Res-Appliance class'!$D31*'RES S curve-disconnect'!Z$15+'Res-Appliance class'!$E31*'RES S curve-disconnect'!Z$20","v":-2287.3096358609259},{"$f":"'Res-Appliance class'!$B31*'RES S curve-disconnect'!AA$5+'Res-Appliance class'!$C31*'RES S curve-disconnect'!AA$10+'Res-Appliance class'!$D31*'RES S curve-disconnect'!AA$15+'Res-Appliance class'!$E31*'RES S curve-disconnect'!AA$20","v":-2048.7698900672985},{"$f":"'Res-Appliance class'!$B31*'RES S curve-disconnect'!AB$5+'Res-Appliance class'!$C31*'RES S curve-disconnect'!AB$10+'Res-Appliance class'!$D31*'RES S curve-disconnect'!AB$15+'Res-Appliance class'!$E31*'RES S curve-disconnect'!AB$20","v":-1854.8365856596761},{"$f":"'Res-Appliance class'!$B31*'RES S curve-disconnect'!AC$5+'Res-Appliance class'!$C31*'RES S curve-disconnect'!AC$10+'Res-Appliance class'!$D31*'RES S curve-disconnect'!AC$15+'Res-Appliance class'!$E31*'RES S curve-disconnect'!AC$20","v":-1667.5205331456364},{"$f":"'Res-Appliance class'!$B31*'RES S curve-disconnect'!AD$5+'Res-Appliance class'!$C31*'RES S curve-disconnect'!AD$10+'Res-Appliance class'!$D31*'RES S curve-disconnect'!AD$15+'Res-Appliance class'!$E31*'RES S curve-disconnect'!AD$20","v":-1494.3046898105108},{"$f":"'Res-Appliance class'!$B31*'RES S curve-disconnect'!AE$5+'Res-Appliance class'!$C31*'RES S curve-disconnect'!AE$10+'Res-Appliance class'!$D31*'RES S curve-disconnect'!AE$15+'Res-Appliance class'!$E31*'RES S curve-disconnect'!AE$20","v":-1313.4562462966474},{"$f":"'Res-Appliance class'!$B31*'RES S curve-disconnect'!AF$5+'Res-Appliance class'!$C31*'RES S curve-disconnect'!AF$10+'Res-Appliance class'!$D31*'RES S curve-disconnect'!AF$15+'Res-Appliance class'!$E31*'RES S curve-disconnect'!AF$20","v":-1084.5104777812071},{"$f":"'Res-Appliance class'!$B31*'RES S curve-disconnect'!AG$5+'Res-Appliance class'!$C31*'RES S curve-disconnect'!AG$10+'Res-Appliance class'!$D31*'RES S curve-disconnect'!AG$15+'Res-Appliance class'!$E31*'RES S curve-disconnect'!AG$20","v":-939.13642588941298},{"$f":"'Res-Appliance class'!$B31*'RES S curve-disconnect'!AH$5+'Res-Appliance class'!$C31*'RES S curve-disconnect'!AH$10+'Res-Appliance class'!$D31*'RES S curve-disconnect'!AH$15+'Res-Appliance class'!$E31*'RES S curve-disconnect'!AH$20","v":-734.12721456404233},{"$f":"'Res-Appliance class'!$B31*'RES S curve-disconnect'!AI$5+'Res-Appliance class'!$C31*'RES S curve-disconnect'!AI$10+'Res-Appliance class'!$D31*'RES S curve-disconnect'!AI$15+'Res-Appliance class'!$E31*'RES S curve-disconnect'!AI$20","v":-550.24898184388599},{"$f":"'Res-Appliance class'!$B31*'RES S curve-disconnect'!AJ$5+'Res-Appliance class'!$C31*'RES S curve-disconnect'!AJ$10+'Res-Appliance class'!$D31*'RES S curve-disconnect'!AJ$15+'Res-Appliance class'!$E31*'RES S curve-disconnect'!AJ$20","v":-384.21682157637684},{"$f":"'Res-Appliance class'!$B31*'RES S curve-disconnect'!AK$5+'Res-Appliance class'!$C31*'RES S curve-disconnect'!AK$10+'Res-Appliance class'!$D31*'RES S curve-disconnect'!AK$15+'Res-Appliance class'!$E31*'RES S curve-disconnect'!AK$20","v":-207.96476041541578},{"$f":"'Res-Appliance class'!$B31*'RES S curve-disconnect'!AL$5+'Res-Appliance class'!$C31*'RES S curve-disconnect'!AL$10+'Res-Appliance class'!$D31*'RES S curve-disconnect'!AL$15+'Res-Appliance class'!$E31*'RES S curve-disconnect'!AL$20","v":-816.97963557935304},{"$f":"'Res-Appliance class'!$B31*'RES S curve-disconnect'!AM$5+'Res-Appliance class'!$C31*'RES S curve-disconnect'!AM$10+'Res-Appliance class'!$D31*'RES S curve-disconnect'!AM$15+'Res-Appliance class'!$E31*'RES S curve-disconnect'!AM$20","v":-897.35088868378398},{"$f":"'Res-Appliance class'!$B31*'RES S curve-disconnect'!AN$5+'Res-Appliance class'!$C31*'RES S curve-disconnect'!AN$10+'Res-Appliance class'!$D31*'RES S curve-disconnect'!AN$15+'Res-Appliance class'!$E31*'RES S curve-disconnect'!AN$20","v":-730.85845185031565},{"$f":"'Res-Appliance class'!$B31*'RES S curve-disconnect'!AO$5+'Res-Appliance class'!$C31*'RES S curve-disconnect'!AO$10+'Res-Appliance class'!$D31*'RES S curve-disconnect'!AO$15+'Res-Appliance class'!$E31*'RES S curve-disconnect'!AO$20","v":-526.87604865285721},{"$f":"'Res-Appliance class'!$B31*'RES S curve-disconnect'!AP$5+'Res-Appliance class'!$C31*'RES S curve-disconnect'!AP$10+'Res-Appliance class'!$D31*'RES S curve-disconnect'!AP$15+'Res-Appliance class'!$E31*'RES S curve-disconnect'!AP$20","v":-338.22037178598453},{"$f":"'Res-Appliance class'!$B31*'RES S curve-disconnect'!AQ$5+'Res-Appliance class'!$C31*'RES S curve-disconnect'!AQ$10+'Res-Appliance class'!$D31*'RES S curve-disconnect'!AQ$15+'Res-Appliance class'!$E31*'RES S curve-disconnect'!AQ$20","v":-135.32327831643414},{"$f":"'Res-Appliance class'!$B31*'RES S curve-disconnect'!AR$5+'Res-Appliance class'!$C31*'RES S curve-disconnect'!AR$10+'Res-Appliance class'!$D31*'RES S curve-disconnect'!AR$15+'Res-Appliance class'!$E31*'RES S curve-disconnect'!AR$20","v":87.584984704091084},{"$f":"'Res-Appliance class'!$B31*'RES S curve-disconnect'!AS$5+'Res-Appliance class'!$C31*'RES S curve-disconnect'!AS$10+'Res-Appliance class'!$D31*'RES S curve-disconnect'!AS$15+'Res-Appliance class'!$E31*'RES S curve-disconnect'!AS$20","v":337.75349513477971},{"$f":"'Res-Appliance class'!$B31*'RES S curve-disconnect'!AT$5+'Res-Appliance class'!$C31*'RES S curve-disconnect'!AT$10+'Res-Appliance class'!$D31*'RES S curve-disconnect'!AT$15+'Res-Appliance class'!$E31*'RES S curve-disconnect'!AT$20","v":617.73594753724274},{"$f":"'Res-Appliance class'!$B31*'RES S curve-disconnect'!AU$5+'Res-Appliance class'!$C31*'RES S curve-disconnect'!AU$10+'Res-Appliance class'!$D31*'RES S curve-disconnect'!AU$15+'Res-Appliance class'!$E31*'RES S curve-disconnect'!AU$20","v":941.46581735463292},{"$f":"'Res-Appliance class'!$B31*'RES S curve-disconnect'!AV$5+'Res-Appliance class'!$C31*'RES S curve-disconnect'!AV$10+'Res-Appliance class'!$D31*'RES S curve-disconnect'!AV$15+'Res-Appliance class'!$E31*'RES S curve-disconnect'!AV$20","v":1310.9261156027035},{"$f":"'Res-Appliance class'!$B31*'RES S curve-disconnect'!AW$5+'Res-Appliance class'!$C31*'RES S curve-disconnect'!AW$10+'Res-Appliance class'!$D31*'RES S curve-disconnect'!AW$15+'Res-Appliance class'!$E31*'RES S curve-disconnect'!AW$20","v":1735.6801441238579},{"$f":"'Res-Appliance class'!$B31*'RES S curve-disconnect'!AX$5+'Res-Appliance class'!$C31*'RES S curve-disconnect'!AX$10+'Res-Appliance class'!$D31*'RES S curve-disconnect'!AX$15+'Res-Appliance class'!$E31*'RES S curve-disconnect'!AX$20","v":2220.0087486097227},{"$f":"'Res-Appliance class'!$B31*'RES S curve-disconnect'!AY$5+'Res-Appliance class'!$C31*'RES S curve-disconnect'!AY$10+'Res-Appliance class'!$D31*'RES S curve-disconnect'!AY$15+'Res-Appliance class'!$E31*'RES S curve-disconnect'!AY$20","v":2778.7644733138973},{"$f":"'Res-Appliance class'!$B31*'RES S curve-disconnect'!AZ$5+'Res-Appliance class'!$C31*'RES S curve-disconnect'!AZ$10+'Res-Appliance class'!$D31*'RES S curve-disconnect'!AZ$15+'Res-Appliance class'!$E31*'RES S curve-disconnect'!AZ$20","v":3417.8323068636173},{"$f":"'Res-Appliance class'!$B31*'RES S curve-disconnect'!BA$5+'Res-Appliance class'!$C31*'RES S curve-disconnect'!BA$10+'Res-Appliance class'!$D31*'RES S curve-disconnect'!BA$15+'Res-Appliance class'!$E31*'RES S curve-disconnect'!BA$20","v":4158.1560966891711},{"$f":"'Res-Appliance class'!$B31*'RES S curve-disconnect'!BB$5+'Res-Appliance class'!$C31*'RES S curve-disconnect'!BB$10+'Res-Appliance class'!$D31*'RES S curve-disconnect'!BB$15+'Res-Appliance class'!$E31*'RES S curve-disconnect'!BB$20","v":5023.4877450343447},{"$f":"'Res-Appliance class'!$B31*'RES S curve-disconnect'!BC$5+'Res-Appliance class'!$C31*'RES S curve-disconnect'!BC$10+'Res-Appliance class'!$D31*'RES S curve-disconnect'!BC$15+'Res-Appliance class'!$E31*'RES S curve-disconnect'!BC$20","v":6055.4780003804872},{"$f":"'Res-Appliance class'!$B31*'RES S curve-disconnect'!BD$5+'Res-Appliance class'!$C31*'RES S curve-disconnect'!BD$10+'Res-Appliance class'!$D31*'RES S curve-disconnect'!BD$15+'Res-Appliance class'!$E31*'RES S curve-disconnect'!BD$20","v":7052.072940364802},{"$f":"'Res-Appliance class'!$B31*'RES S curve-disconnect'!BE$5+'Res-Appliance class'!$C31*'RES S curve-disconnect'!BE$10+'Res-Appliance class'!$D31*'RES S curve-disconnect'!BE$15+'Res-Appliance class'!$E31*'RES S curve-disconnect'!BE$20","v":7963.3168146648313},{"$f":"'Res-Appliance class'!$B31*'RES S curve-disconnect'!BF$5+'Res-Appliance class'!$C31*'RES S curve-disconnect'!BF$10+'Res-Appliance class'!$D31*'RES S curve-disconnect'!BF$15+'Res-Appliance class'!$E31*'RES S curve-disconnect'!BF$20","v":8895.5868470592195},{"$f":"'Res-Appliance class'!$B31*'RES S curve-disconnect'!BG$5+'Res-Appliance class'!$C31*'RES S curve-disconnect'!BG$10+'Res-Appliance class'!$D31*'RES S curve-disconnect'!BG$15+'Res-Appliance class'!$E31*'RES S curve-disconnect'!BG$20","v":9950.3128275785384},{"$f":"'Res-Appliance class'!$B31*'RES S curve-disconnect'!BH$5+'Res-Appliance class'!$C31*'RES S curve-disconnect'!BH$10+'Res-Appliance class'!$D31*'RES S curve-disconnect'!BH$15+'Res-Appliance class'!$E31*'RES S curve-disconnect'!BH$20","v":11202.56644711905},{"$f":"'Res-Appliance class'!$B31*'RES S curve-disconnect'!BI$5+'Res-Appliance class'!$C31*'RES S curve-disconnect'!BI$10+'Res-Appliance class'!$D31*'RES S curve-disconnect'!BI$15+'Res-Appliance class'!$E31*'RES S curve-disconnect'!BI$20","v":13016.833681413538},{"$f":"'Res-Appliance class'!$B31*'RES S curve-disconnect'!BJ$5+'Res-Appliance class'!$C31*'RES S curve-disconnect'!BJ$10+'Res-Appliance class'!$D31*'RES S curve-disconnect'!BJ$15+'Res-Appliance class'!$E31*'RES S curve-disconnect'!BJ$20","v":15675.136062657226},{"$f":"'Res-Appliance class'!$B31*'RES S curve-disconnect'!BK$5+'Res-Appliance class'!$C31*'RES S curve-disconnect'!BK$10+'Res-Appliance class'!$D31*'RES S curve-disconnect'!BK$15+'Res-Appliance class'!$E31*'RES S curve-disconnect'!BK$20","v":19600.036625896195},{"$f":"'Res-Appliance class'!$B31*'RES S curve-disconnect'!BL$5+'Res-Appliance class'!$C31*'RES S curve-disconnect'!BL$10+'Res-Appliance class'!$D31*'RES S curve-disconnect'!BL$15+'Res-Appliance class'!$E31*'RES S curve-disconnect'!BL$20","v":-3046.0117385534504},{"$f":"'Res-Appliance class'!$B31*'RES S curve-disconnect'!BM$5+'Res-Appliance class'!$C31*'RES S curve-disconnect'!BM$10+'Res-Appliance class'!$D31*'RES S curve-disconnect'!BM$15+'Res-Appliance class'!$E31*'RES S curve-disconnect'!BM$20","v":-3041.0490409458916},{"$f":"'Res-Appliance class'!$B31*'RES S curve-disconnect'!BN$5+'Res-Appliance class'!$C31*'RES S curve-disconnect'!BN$10+'Res-Appliance class'!$D31*'RES S curve-disconnect'!BN$15+'Res-Appliance class'!$E31*'RES S curve-disconnect'!BN$20","v":-3038.3560487071009},{"$f":"'Res-Appliance class'!$B31*'RES S curve-disconnect'!BO$5+'Res-Appliance class'!$C31*'RES S curve-disconnect'!BO$10+'Res-Appliance class'!$D31*'RES S curve-disconnect'!BO$15+'Res-Appliance class'!$E31*'RES S curve-disconnect'!BO$20","v":-3031.1441090962917},{"$f":"'Res-Appliance class'!$B31*'RES S curve-disconnect'!BP$5+'Res-Appliance class'!$C31*'RES S curve-disconnect'!BP$10+'Res-Appliance class'!$D31*'RES S curve-disconnect'!BP$15+'Res-Appliance class'!$E31*'RES S curve-disconnect'!BP$20","v":-3026.2017928428113},{"$f":"'Res-Appliance class'!$B31*'RES S curve-disconnect'!BQ$5+'Res-Appliance class'!$C31*'RES S curve-disconnect'!BQ$10+'Res-Appliance class'!$D31*'RES S curve-disconnect'!BQ$15+'Res-Appliance class'!$E31*'RES S curve-disconnect'!BQ$20","v":-3021.2661887871159},{"$f":"'Res-Appliance class'!$B31*'RES S curve-disconnect'!BR$5+'Res-Appliance class'!$C31*'RES S curve-disconnect'!BR$10+'Res-Appliance class'!$D31*'RES S curve-disconnect'!BR$15+'Res-Appliance class'!$E31*'RES S curve-disconnect'!BR$20","v":-3018.6001270936113},{"$f":"'Res-Appliance class'!$B31*'RES S curve-disconnect'!BS$5+'Res-Appliance class'!$C31*'RES S curve-disconnect'!BS$10+'Res-Appliance class'!$D31*'RES S curve-disconnect'!BS$15+'Res-Appliance class'!$E31*'RES S curve-disconnect'!BS$20","v":-3011.4149560346186},{"$f":"'Res-Appliance class'!$B31*'RES S curve-disconnect'!BT$5+'Res-Appliance class'!$C31*'RES S curve-disconnect'!BT$10+'Res-Appliance class'!$D31*'RES S curve-disconnect'!BT$15+'Res-Appliance class'!$E31*'RES S curve-disconnect'!BT$20","v":-3006.4992473461916},{"$f":"'Res-Appliance class'!$B31*'RES S curve-disconnect'!BU$5+'Res-Appliance class'!$C31*'RES S curve-disconnect'!BU$10+'Res-Appliance class'!$D31*'RES S curve-disconnect'!BU$15+'Res-Appliance class'!$E31*'RES S curve-disconnect'!BU$20","v":-3001.5900908691392},{"$f":"'Res-Appliance class'!$B31*'RES S curve-disconnect'!BV$5+'Res-Appliance class'!$C31*'RES S curve-disconnect'!BV$10+'Res-Appliance class'!$D31*'RES S curve-disconnect'!BV$15+'Res-Appliance class'!$E31*'RES S curve-disconnect'!BV$20","v":-2998.9503177619044},{"$f":"'Res-Appliance class'!$B31*'RES S curve-disconnect'!BW$5+'Res-Appliance class'!$C31*'RES S curve-disconnect'!BW$10+'Res-Appliance class'!$D31*'RES S curve-disconnect'!BW$15+'Res-Appliance class'!$E31*'RES S curve-disconnect'!BW$20","v":-2991.7912772845702},{"$f":"'Res-Appliance class'!$B31*'RES S curve-disconnect'!BX$5+'Res-Appliance class'!$C31*'RES S curve-disconnect'!BX$10+'Res-Appliance class'!$D31*'RES S curve-disconnect'!BX$15+'Res-Appliance class'!$E31*'RES S curve-disconnect'!BX$20","v":-2986.9015421547169},{"$f":"'Res-Appliance class'!$B31*'RES S curve-disconnect'!BY$5+'Res-Appliance class'!$C31*'RES S curve-disconnect'!BY$10+'Res-Appliance class'!$D31*'RES S curve-disconnect'!BY$15+'Res-Appliance class'!$E31*'RES S curve-disconnect'!BY$20","v":-2982.0182031884838},{"$f":"'Res-Appliance class'!$B31*'RES S curve-disconnect'!BZ$5+'Res-Appliance class'!$C31*'RES S curve-disconnect'!BZ$10+'Res-Appliance class'!$D31*'RES S curve-disconnect'!BZ$15+'Res-Appliance class'!$E31*'RES S curve-disconnect'!BZ$20","v":-2979.4040925134927},{"$f":"'Res-Appliance class'!$B31*'RES S curve-disconnect'!CA$5+'Res-Appliance class'!$C31*'RES S curve-disconnect'!CA$10+'Res-Appliance class'!$D31*'RES S curve-disconnect'!CA$15+'Res-Appliance class'!$E31*'RES S curve-disconnect'!CA$20","v":-2972.2705603528811},{"$f":"'Res-Appliance class'!$B31*'RES S curve-disconnect'!CB$5+'Res-Appliance class'!$C31*'RES S curve-disconnect'!CB$10+'Res-Appliance class'!$D31*'RES S curve-disconnect'!CB$15+'Res-Appliance class'!$E31*'RES S curve-disconnect'!CB$20","v":-2967.4061803812083},{"$f":"'Res-Appliance class'!$B31*'RES S curve-disconnect'!CC$5+'Res-Appliance class'!$C31*'RES S curve-disconnect'!CC$10+'Res-Appliance class'!$D31*'RES S curve-disconnect'!CC$15+'Res-Appliance class'!$E31*'RES S curve-disconnect'!CC$20","v":-2962.5480443655556},{"$f":"'Res-Appliance class'!$B31*'RES S curve-disconnect'!CD$5+'Res-Appliance class'!$C31*'RES S curve-disconnect'!CD$10+'Res-Appliance class'!$D31*'RES S curve-disconnect'!CD$15+'Res-Appliance class'!$E31*'RES S curve-disconnect'!CD$20","v":-3036.8609886958911}]
["Frankston (C)",null,{"$f":"'Res-Appliance class'!$B32*'RES S curve-disconnect'!C$5+'Res-Appliance class'!$C32*'RES S curve-disconnect'!C$10+'Res-Appliance class'!$D32*'RES S curve-disconnect'!C$15+'Res-Appliance class'!$E32*'RES S curve-disconnect'!C$20","v":-6197.0596333040685},{"$f":"'Res-Appliance class'!$B32*'RES S curve-disconnect'!D$5+'Res-Appliance class'!$C32*'RES S curve-disconnect'!D$10+'Res-Appliance class'!$D32*'RES S curve-disconnect'!D$15+'Res-Appliance class'!$E32*'RES S curve-disconnect'!D$20","v":-6631.7876589780208},{"$f":"'Res-Appliance class'!$B32*'RES S curve-disconnect'!E$5+'Res-Appliance class'!$C32*'RES S curve-disconnect'!E$10+'Res-Appliance class'!$D32*'RES S curve-disconnect'!E$15+'Res-Appliance class'!$E32*'RES S curve-disconnect'!E$20","v":-5372.2730910621704},{"$f":"'Res-Appliance class'!$B32*'RES S curve-disconnect'!F$5+'Res-Appliance class'!$C32*'RES S curve-disconnect'!F$10+'Res-Appliance class'!$D32*'RES S curve-disconnect'!F$15+'Res-Appliance class'!$E32*'RES S curve-disconnect'!F$20","v":-5236.8422618682798},{"$f":"'Res-Appliance class'!$B32*'RES S curve-disconnect'!G$5+'Res-Appliance class'!$C32*'RES S curve-disconnect'!G$10+'Res-Appliance class'!$D32*'RES S curve-disconnect'!G$15+'Res-Appliance class'!$E32*'RES S curve-disconnect'!G$20","v":-6867.2901337816775},{"$f":"'Res-Appliance class'!$B32*'RES S curve-disconnect'!H$5+'Res-Appliance class'!$C32*'RES S curve-disconnect'!H$10+'Res-Appliance class'!$D32*'RES S curve-disconnect'!H$15+'Res-Appliance class'!$E32*'RES S curve-disconnect'!H$20","v":-6868.2686887773743},{"$f":"'Res-Appliance class'!$B32*'RES S curve-disconnect'!I$5+'Res-Appliance class'!$C32*'RES S curve-disconnect'!I$10+'Res-Appliance class'!$D32*'RES S curve-disconnect'!I$15+'Res-Appliance class'!$E32*'RES S curve-disconnect'!I$20","v":-6486.1535458810613},{"$f":"'Res-Appliance class'!$B32*'RES S curve-disconnect'!J$5+'Res-Appliance class'!$C32*'RES S curve-disconnect'!J$10+'Res-Appliance class'!$D32*'RES S curve-disconnect'!J$15+'Res-Appliance class'!$E32*'RES S curve-disconnect'!J$20","v":-6842.6013127440083},{"$f":"'Res-Appliance class'!$B32*'RES S curve-disconnect'!K$5+'Res-Appliance class'!$C32*'RES S curve-disconnect'!K$10+'Res-Appliance class'!$D32*'RES S curve-disconnect'!K$15+'Res-Appliance class'!$E32*'RES S curve-disconnect'!K$20","v":-6035.1505293332966},{"$f":"'Res-Appliance class'!$B32*'RES S curve-disconnect'!L$5+'Res-Appliance class'!$C32*'RES S curve-disconnect'!L$10+'Res-Appliance class'!$D32*'RES S curve-disconnect'!L$15+'Res-Appliance class'!$E32*'RES S curve-disconnect'!L$20","v":-6313.119455972721},{"$f":"'Res-Appliance class'!$B32*'RES S curve-disconnect'!M$5+'Res-Appliance class'!$C32*'RES S curve-disconnect'!M$10+'Res-Appliance class'!$D32*'RES S curve-disconnect'!M$15+'Res-Appliance class'!$E32*'RES S curve-disconnect'!M$20","v":-6865.1838171459785},{"$f":"'Res-Appliance class'!$B32*'RES S curve-disconnect'!N$5+'Res-Appliance class'!$C32*'RES S curve-disconnect'!N$10+'Res-Appliance class'!$D32*'RES S curve-disconnect'!N$15+'Res-Appliance class'!$E32*'RES S curve-disconnect'!N$20","v":-6898.7224620312772},{"$f":"'Res-Appliance class'!$B32*'RES S curve-disconnect'!O$5+'Res-Appliance class'!$C32*'RES S curve-disconnect'!O$10+'Res-Appliance class'!$D32*'RES S curve-disconnect'!O$15+'Res-Appliance class'!$E32*'RES S curve-disconnect'!O$20","v":-6392.565182463517},{"$f":"'Res-Appliance class'!$B32*'RES S curve-disconnect'!P$5+'Res-Appliance class'!$C32*'RES S curve-disconnect'!P$10+'Res-Appliance class'!$D32*'RES S curve-disconnect'!P$15+'Res-Appliance class'!$E32*'RES S curve-disconnect'!P$20","v":-5982.2096042510784},{"$f":"'Res-Appliance class'!$B32*'RES S curve-disconnect'!Q$5+'Res-Appliance class'!$C32*'RES S curve-disconnect'!Q$10+'Res-Appliance class'!$D32*'RES S curve-disconnect'!Q$15+'Res-Appliance class'!$E32*'RES S curve-disconnect'!Q$20","v":-5372.1704883276088},{"$f":"'Res-Appliance class'!$B32*'RES S curve-disconnect'!R$5+'Res-Appliance class'!$C32*'RES S curve-disconnect'!R$10+'Res-Appliance class'!$D32*'RES S curve-disconnect'!R$15+'Res-Appliance class'!$E32*'RES S curve-disconnect'!R$20","v":-5017.6083940351236},{"$f":"'Res-Appliance class'!$B32*'RES S curve-disconnect'!S$5+'Res-Appliance class'!$C32*'RES S curve-disconnect'!S$10+'Res-Appliance class'!$D32*'RES S curve-disconnect'!S$15+'Res-Appliance class'!$E32*'RES S curve-disconnect'!S$20","v":-4469.5427755409219},{"$f":"'Res-Appliance class'!$B32*'RES S curve-disconnect'!T$5+'Res-Appliance class'!$C32*'RES S curve-disconnect'!T$10+'Res-Appliance class'!$D32*'RES S curve-disconnect'!T$15+'Res-Appliance class'!$E32*'RES S curve-disconnect'!T$20","v":-4153.9162517408877},{"$f":"'Res-Appliance class'!$B32*'RES S curve-disconnect'!U$5+'Res-Appliance class'!$C32*'RES S curve-disconnect'!U$10+'Res-Appliance class'!$D32*'RES S curve-disconnect'!U$15+'Res-Appliance class'!$E32*'RES S curve-disconnect'!U$20","v":-3803.0721822357109},{"$f":"'Res-Appliance class'!$B32*'RES S curve-disconnect'!V$5+'Res-Appliance class'!$C32*'RES S curve-disconnect'!V$10+'Res-Appliance class'!$D32*'RES S curve-disconnect'!V$15+'Res-Appliance class'!$E32*'RES S curve-disconnect'!V$20","v":-3560.4729243939628},{"$f":"'Res-Appliance class'!$B32*'RES S curve-disconnect'!W$5+'Res-Appliance class'!$C32*'RES S curve-disconnect'!W$10+'Res-Appliance class'!$D32*'RES S curve-disconnect'!W$15+'Res-Appliance class'!$E32*'RES S curve-disconnect'!W$20","v":-3366.8335163713537},{"$f":"'Res-Appliance class'!$B32*'RES S curve-disconnect'!X$5+'Res-Appliance class'!$C32*'RES S curve-disconnect'!X$10+'Res-Appliance class'!$D32*'RES S curve-disconnect'!X$15+'Res-Appliance class'!$E32*'RES S curve-disconnect'!X$20","v":-2946.2503163010952},{"$f":"'Res-Appliance class'!$B32*'RES S curve-disconnect'!Y$5+'Res-Appliance class'!$C32*'RES S curve-disconnect'!Y$10+'Res-Appliance class'!$D32*'RES S curve-disconnect'!Y$15+'Res-Appliance class'!$E32*'RES S curve-disconnect'!Y$20","v":-2522.0609945398046},{"$f":"'Res-Appliance class'!$B32*'RES S curve-disconnect'!Z$5+'Res-Appliance class'!$C32*'RES S curve-disconnect'!Z$10+'Res-Appliance class'!$D32*'RES S curve-disconnect'!Z$15+'Res-Appliance class'!$E32*'RES S curve-disconnect'!Z$20","v":-2229.8816675382805},{"$f":"'Res-Appliance class'!$B32*'RES S curve-disconnect'!AA$5+'Res-Appliance class'!$C32*'RES S curve-disconnect'!AA$10+'Res-Appliance class'!$D32*'RES S curve-disconnect'!AA$15+'Res-Appliance class'!$E32*'RES S curve-disconnect'!AA$20","v":-1938.9525792779584},{"$f":"'Res-Appliance class'!$B32*'RES S curve-disconnect'!AB$5+'Res-Appliance class'!$C32*'RES S curve-disconnect'!AB$10+'Res-Appliance class'!$D32*'RES S curve-disconnect'!AB$15+'Res-Appliance class'!$E32*'RES S curve-disconnect'!AB$20","v":-1703.1284109866754},{"$f":"'Res-Appliance class'!$B32*'RES S curve-disconnect'!AC$5+'Res-Appliance class'!$C32*'RES S curve-disconnect'!AC$10+'Res-Appliance class'!$D32*'RES S curve-disconnect'!AC$15+'Res-Appliance class'!$E32*'RES S curve-disconnect'!AC$20","v":-1476.1007253829966},{"$f":"'Res-Appliance class'!$B32*'RES S curve-disconnect'!AD$5+'Res-Appliance class'!$C32*'RES S curve-disconnect'!AD$10+'Res-Appliance class'!$D32*'RES S curve-disconnect'!AD$15+'Res-Appliance class'!$E32*'RES S curve-disconnect'!AD$20","v":-1266.4892904110825},{"$f":"'Res-Appliance class'!$B32*'RES S curve-disconnect'!AE$5+'Res-Appliance class'!$C32*'RES S curve-disconnect'!AE$10+'Res-Appliance class'!$D32*'RES S curve-disconnect'!AE$15+'Res-Appliance class'!$E32*'RES S curve-disconnect'!AE$20","v":-1048.7968839996149},{"$f":"'Res-Appliance class'!$B32*'RES S curve-disconnect'!AF$5+'Res-Appliance class'!$C32*'RES S curve-disconnect'!AF$10+'Res-Appliance class'!$D32*'RES S curve-disconnect'!AF$15+'Res-Appliance class'!$E32*'RES S curve-disconnect'!AF$20","v":-770.34744836576965},{"$f":"'Res-Appliance class'!$B32*'RES S curve-disconnect'!AG$5+'Res-Appliance class'!$C32*'RES S curve-disconnect'!AG$10+'Res-Appliance class'!$D32*'RES S curve-disconnect'!AG$15+'Res-Appliance class'!$E32*'RES S curve-disconnect'!AG$20","v":-591.45570756111874},{"$f":"'Res-Appliance class'!$B32*'RES S curve-disconnect'!AH$5+'Res-Appliance class'!$C32*'RES S curve-disconnect'!AH$10+'Res-Appliance class'!$D32*'RES S curve-disconnect'!AH$15+'Res-Appliance class'!$E32*'RES S curve-disconnect'!AH$20","v":-336.37923493644234},{"$f":"'Res-Appliance class'!$B32*'RES S curve-disconnect'!AI$5+'Res-Appliance class'!$C32*'RES S curve-disconnect'!AI$10+'Res-Appliance class'!$D32*'RES S curve-disconnect'!AI$15+'Res-Appliance class'!$E32*'RES S curve-disconnect'!AI$20","v":-110.11444131387452},{"$f":"'Res-Appliance class'!$B32*'RES S curve-disconnect'!AJ$5+'Res-Appliance class'!$C32*'RES S curve-disconnect'!AJ$10+'Res-Appliance class'!$D32*'RES S curve-disconnect'!AJ$15+'Res-Appliance class'!$E32*'RES S curve-disconnect'!AJ$20","v":94.706271795705561},{"$f":"'Res-Appliance class'!$B32*'RES S curve-disconnect'!AK$5+'Res-Appliance class'!$C32*'RES S curve-disconnect'!AK$10+'Res-Appliance class'!$D32*'RES S curve-disconnect'!AK$15+'Res-Appliance class'!$E32*'RES S curve-disconnect'!AK$20","v":312.05117311754248},{"$f":"'Res-Appliance class'!$B32*'RES S curve-disconnect'!AL$5+'Res-Appliance class'!$C32*'RES S curve-disconnect'!AL$10+'Res-Appliance class'!$D32*'RES S curve-disconnect'!AL$15+'Res-Appliance class'!$E32*'RES S curve-disconnect'!AL$20","v":-432.58838359980041},{"$f":"'Res-Appliance class'!$B32*'RES S curve-disconnect'!AM$5+'Res-Appliance class'!$C32*'RES S curve-disconnect'!AM$10+'Res-Appliance class'!$D32*'RES S curve-disconnect'!AM$15+'Res-Appliance class'!$E32*'RES S curve-disconnect'!AM$20","v":-534.73359073269216},{"$f":"'Res-Appliance class'!$B32*'RES S curve-disconnect'!AN$5+'Res-Appliance class'!$C32*'RES S curve-disconnect'!AN$10+'Res-Appliance class'!$D32*'RES S curve-disconnect'!AN$15+'Res-Appliance class'!$E32*'RES S curve-disconnect'!AN$20","v":-331.37620075686118},{"$f":"'Res-Appliance class'!$B32*'RES S curve-disconnect'!AO$5+'Res-Appliance class'!$C32*'RES S curve-disconnect'!AO$10+'Res-Appliance class'!$D32*'RES S curve-disconnect'!AO$15+'Res-Appliance class'!$E32*'RES S curve-disconnect'!AO$20","v":-80.363072548567288},{"$f":"'Res-Appliance class'!$B32*'RES S curve-disconnect'!AP$5+'Res-Appliance class'!$C32*'RES S curve-disconnect'!AP$10+'Res-Appliance class'!$D32*'RES S curve-disconnect'!AP$15+'Res-Appliance class'!$E32*'RES S curve-disconnect'!AP$20","v":152.87543585108551},{"$f":"'Res-Appliance class'!$B32*'RES S curve-disconnect'!AQ$5+'Res-Appliance class'!$C32*'RES S curve-disconnect'!AQ$10+'Res-Appliance class'!$D32*'RES S curve-disconnect'!AQ$15+'Res-Appliance class'!$E32*'RES S curve-disconnect'!AQ$20","v":402.62025455474486},{"$f":"'Res-Appliance class'!$B32*'RES S curve-disconnect'!AR$5+'Res-Appliance class'!$C32*'RES S curve-disconnect'!AR$10+'Res-Appliance class'!$D32*'RES S curve-disconnect'!AR$15+'Res-Appliance class'!$E32*'RES S curve-disconnect'!AR$20","v":677.65119970158162},{"$f":"'Res-Appliance class'!$B32*'RES S curve-disconnect'!AS$5+'Res-Appliance class'!$C32*'RES S curve-disconnect'!AS$10+'Res-Appliance class'!$D32*'RES S curve-disconnect'!AS$15+'Res-Appliance class'!$E32*'RES S curve-disconnect'!AS$20","v":986.49368023534748},{"$f":"'Res-Appliance class'!$B32*'RES S curve-disconnect'!AT$5+'Res-Appliance class'!$C32*'RES S curve-disconnect'!AT$10+'Res-Appliance class'!$D32*'RES S curve-disconnect'!AT$15+'Res-Appliance class'!$E32*'RES S curve-disconnect'!AT$20","v":1332.8973035136821},{"$f":"'Res-Appliance class'!$B32*'RES S curve-disconnect'!AU$5+'Res-Appliance class'!$C32*'RES S curve-disconnect'!AU$10+'Res-Appliance class'!$D32*'RES S curve-disconnect'!AU$15+'Res-Appliance class'!$E32*'RES S curve-disconnect'!AU$20","v":1732.5385610353499},{"$f":"'Res-Appliance class'!$B32*'RES S curve-disconnect'!AV$5+'Res-Appliance class'!$C32*'RES S curve-disconnect'!AV$10+'Res-Appliance class'!$D32*'RES S curve-disconnect'!AV$15+'Res-Appliance class'!$E32*'RES S curve-disconnect'!AV$20","v":2189.5680341905017},{"$f":"'Res-Appliance class'!$B32*'RES S curve-disconnect'!AW$5+'Res-Appliance class'!$C32*'RES S curve-disconnect'!AW$10+'Res-Appliance class'!$D32*'RES S curve-disconnect'!AW$15+'Res-Appliance class'!$E32*'RES S curve-disconnect'!AW$20","v":2715.4439199125641},{"$f":"'Res-Appliance class'!$B32*'RES S curve-disconnect'!AX$5+'Res-Appliance class'!$C32*'RES S curve-disconnect'!AX$10+'Res-Appliance class'!$D32*'RES S curve-disconnect'!AX$15+'Res-Appliance class'!$E32*'RES S curve-disconnect'!AX$20","v":3316.2087045449462},{"$f":"'Res-Appliance class'!$B32*'RES S curve-disconnect'!AY$5+'Res-Appliance class'!$C32*'RES S curve-disconnect'!AY$10+'Res-Appliance class'!$D32*'RES S curve-disconnect'!AY$15+'Res-Appliance class'!$E32*'RES S curve-disconnect'!AY$20","v":4008.8575580290471},{"$f":"'Res-Appliance class'!$B32*'RES S curve-disconnect'!AZ$5+'Res-Appliance class'!$C32*'RES S curve-disconnect'!AZ$10+'Res-Appliance class'!$D32*'RES S curve-disconnect'!AZ$15+'Res-Appliance class'!$E32*'RES S curve-disconnect'!AZ$20","v":4802.5503238264992},{"$f":"'Res-Appliance class'!$B32*'RES S curve-disconnect'!BA$5+'Res-Appliance class'!$C32*'RES S curve-disconnect'!BA$10+'Res-Appliance class'!$D32*'RES S curve-disconnect'!BA$15+'Res-Appliance class'!$E32*'RES S curve-disconnect'!BA$20","v":5723.0204909288832},{"$f":"'Res-Appliance class'!$B32*'RES S curve-disconnect'!BB$5+'Res-Appliance class'!$C32*'RES S curve-disconnect'!BB$10+'Res-Appliance class'!$D32*'RES S curve-disconnect'!BB$15+'Res-Appliance class'!$E32*'RES S curve-disconnect'!BB$20","v":6800.7168027041662},{"$f":"'Res-Appliance class'!$B32*'RES S curve-disconnect'!BC$5+'Res-Appliance class'!$C32*'RES S curve-disconnect'!BC$10+'Res-Appliance class'!$D32*'RES S curve-disconnect'!BC$15+'Res-Appliance class'!$E32*'RES S curve-disconnect'!BC$20","v":8086.3097421514267},{"$f":"'Res-Appliance class'!$B32*'RES S curve-disconnect'!BD$5+'Res-Appliance class'!$C32*'RES S curve-disconnect'!BD$10+'Res-Appliance class'!$D32*'RES S curve-disconnect'!BD$15+'Res-Appliance class'!$E32*'RES S curve-disconnect'!BD$20","v":9332.4153638892676},{"$f":"'Res-Appliance class'!$B32*'RES S curve-disconnect'!BE$5+'Res-Appliance class'!$C32*'RES S curve-disconnect'!BE$10+'Res-Appliance class'!$D32*'RES S curve-disconnect'!BE$15+'Res-Appliance class'!$E32*'RES S curve-disconnect'!BE$20","v":10473.334183423556},{"$f":"'Res-Appliance class'!$B32*'RES S curve-disconnect'!BF$5+'Res-Appliance class'!$C32*'RES S curve-disconnect'!BF$10+'Res-Appliance class'!$D32*'RES S curve-disconnect'!BF$15+'Res-Appliance class'!$E32*'RES S curve-disconnect'!BF$20","v":11640.125488719976},{"$f":"'Res-Appliance class'!$B32*'RES S curve-disconnect'!BG$5+'Res-Appliance class'!$C32*'RES S curve-disconnect'!BG$10+'Res-Appliance class'!$D32*'RES S curve-disconnect'!BG$15+'Res-Appliance class'!$E32*'RES S curve-disconnect'!BG$20","v":12958.452286215883},{"$f":"'Res-Appliance class'!$B32*'RES S curve-disconnect'!BH$5+'Res-Appliance class'!$C32*'RES S curve-disconnect'!BH$10+'Res-Appliance class'!$D32*'RES S curve-disconnect'!BH$15+'Res-Appliance class'!$E32*'RES S curve-disconnect'!BH$20","v":14524.724506355418},{"$f":"'Res-Appliance class'!$B32*'RES S curve-disconnect'!BI$5+'Res-Appliance class'!$C32*'RES S curve-disconnect'!BI$10+'Res-Appliance class'!$D32*'RES S curve-disconnect'!BI$15+'Res-Appliance class'!$E32*'RES S curve-disconnect'!BI$20","v":16792.89388711123},{"$f":"'Res-Appliance class'!$B32*'RES S curve-disconnect'!BJ$5+'Res-Appliance class'!$C32*'RES S curve-disconnect'!BJ$10+'Res-Appliance class'!$D32*'RES S curve-disconnect'!BJ$15+'Res-Appliance class'!$E32*'RES S curve-disconnect'!BJ$20","v":20121.61537670012},{"$f":"'Res-Appliance class'!$B32*'RES S curve-disconnect'!BK$5+'Res-Appliance class'!$C32*'RES S curve-disconnect'!BK$10+'Res-Appliance class'!$D32*'RES S curve-disconnect'!BK$15+'Res-Appliance class'!$E32*'RES S curve-disconnect'!BK$20","v":25044.239647989805},{"$f":"'Res-Appliance class'!$B32*'RES S curve-disconnect'!BL$5+'Res-Appliance class'!$C32*'RES S curve-disconnect'!BL$10+'Res-Appliance class'!$D32*'RES S curve-disconnect'!BL$15+'Res-Appliance class'!$E32*'RES S curve-disconnect'!BL$20","v":-3166.0813513652447},{"$f":"'Res-Appliance class'!$B32*'RES S curve-disconnect'!BM$5+'Res-Appliance class'!$C32*'RES S curve-disconnect'!BM$10+'Res-Appliance class'!$D32*'RES S curve-disconnect'!BM$15+'Res-Appliance class'!$E32*'RES S curve-disconnect'!BM$20","v":-3159.9936609908054},{"$f":"'Res-Appliance class'!$B32*'RES S curve-disconnect'!BN$5+'Res-Appliance class'!$C32*'RES S curve-disconnect'!BN$10+'Res-Appliance class'!$D32*'RES S curve-disconnect'!BN$15+'Res-Appliance class'!$E32*'RES S curve-disconnect'!BN$20","v":-3156.1761874923309},{"$f":"'Res-Appliance class'!$B32*'RES S curve-disconnect'!BO$5+'Res-Appliance class'!$C32*'RES S curve-disconnect'!BO$10+'Res-Appliance class'!$D32*'RES S curve-disconnect'!BO$15+'Res-Appliance class'!$E32*'RES S curve-disconnect'!BO$20","v":-3147.8402760147874},{"$f":"'Res-Appliance class'!$B32*'RES S curve-disconnect'!BP$5+'Res-Appliance class'!$C32*'RES S curve-disconnect'!BP$10+'Res-Appliance class'!$D32*'RES S curve-disconnect'!BP$15+'Res-Appliance class'!$E32*'RES S curve-disconnect'!BP$20","v":-3141.7744951834438},{"$f":"'Res-Appliance class'!$B32*'RES S curve-disconnect'!BQ$5+'Res-Appliance class'!$C32*'RES S curve-disconnect'!BQ$10+'Res-Appliance class'!$D32*'RES S curve-disconnect'!BQ$15+'Res-Appliance class'!$E32*'RES S curve-disconnect'!BQ$20","v":-3135.7159317447931},{"$f":"'Res-Appliance class'!$B32*'RES S curve-disconnect'!BR$5+'Res-Appliance class'!$C32*'RES S curve-disconnect'!BR$10+'Res-Appliance class'!$D32*'RES S curve-disconnect'!BR$15+'Res-Appliance class'!$E32*'RES S curve-disconnect'!BR$20","v":-3131.9274137793368},{"$f":"'Res-Appliance class'!$B32*'RES S curve-disconnect'!BS$5+'Res-Appliance class'!$C32*'RES S curve-disconnect'!BS$10+'Res-Appliance class'!$D32*'RES S curve-disconnect'!BS$15+'Res-Appliance class'!$E32*'RES S curve-disconnect'!BS$20","v":-3123.6202874854944},{"$f":"'Res-Appliance class'!$B32*'RES S curve-disconnect'!BT$5+'Res-Appliance class'!$C32*'RES S curve-disconnect'!BT$10+'Res-Appliance class'!$D32*'RES S curve-disconnect'!BT$15+'Res-Appliance class'!$E32*'RES S curve-disconnect'!BT$20","v":-3117.5831225353668},{"$f":"'Res-Appliance class'!$B32*'RES S curve-disconnect'!BU$5+'Res-Appliance class'!$C32*'RES S curve-disconnect'!BU$10+'Res-Appliance class'!$D32*'RES S curve-disconnect'!BU$15+'Res-Appliance class'!$E32*'RES S curve-disconnect'!BU$20","v":-3111.553006715706},{"$f":"'Res-Appliance class'!$B32*'RES S curve-disconnect'!BV$5+'Res-Appliance class'!$C32*'RES S curve-disconnect'!BV$10+'Res-Appliance class'!$D32*'RES S curve-disconnect'!BV$15+'Res-Appliance class'!$E32*'RES S curve-disconnect'!BV$20","v":-3107.7927691407431},{"$f":"'Res-Appliance class'!$B32*'RES S curve-disconnect'!BW$5+'Res-Appliance class'!$C32*'RES S curve-disconnect'!BW$10+'Res-Appliance class'!$D32*'RES S curve-disconnect'!BW$15+'Res-Appliance class'!$E32*'RES S curve-disconnect'!BW$20","v":-3099.513757036133},{"$f":"'Res-Appliance class'!$B32*'RES S curve-disconnect'!BX$5+'Res-Appliance class'!$C32*'RES S curve-disconnect'!BX$10+'Res-Appliance class'!$D32*'RES S curve-disconnect'!BX$15+'Res-Appliance class'!$E32*'RES S curve-disconnect'!BX$20","v":-3093.504541094765},{"$f":"'Res-Appliance class'!$B32*'RES S curve-disconnect'!BY$5+'Res-Appliance class'!$C32*'RES S curve-disconnect'!BY$10+'Res-Appliance class'!$D32*'RES S curve-disconnect'!BY$15+'Res-Appliance class'!$E32*'RES S curve-disconnect'!BY$20","v":-3087.5022101177701},{"$f":"'Res-Appliance class'!$B32*'RES S curve-disconnect'!BZ$5+'Res-Appliance class'!$C32*'RES S curve-disconnect'!BZ$10+'Res-Appliance class'!$D32*'RES S curve-disconnect'!BZ$15+'Res-Appliance class'!$E32*'RES S curve-disconnect'!BZ$20","v":-3083.7695942273931},{"$f":"'Res-Appliance class'!$B32*'RES S curve-disconnect'!CA$5+'Res-Appliance class'!$C32*'RES S curve-disconnect'!CA$10+'Res-Appliance class'!$D32*'RES S curve-disconnect'!CA$15+'Res-Appliance class'!$E32*'RES S curve-disconnect'!CA$20","v":-3075.5180416509693},{"$f":"'Res-Appliance class'!$B32*'RES S curve-disconnect'!CB$5+'Res-Appliance class'!$C32*'RES S curve-disconnect'!CB$10+'Res-Appliance class'!$D32*'RES S curve-disconnect'!CB$15+'Res-Appliance class'!$E32*'RES S curve-disconnect'!CB$20","v":-3069.5361240767843},{"$f":"'Res-Appliance class'!$B32*'RES S curve-disconnect'!CC$5+'Res-Appliance class'!$C32*'RES S curve-disconnect'!CC$10+'Res-Appliance class'!$D32*'RES S curve-disconnect'!CC$15+'Res-Appliance class'!$E32*'RES S curve-disconnect'!CC$20","v":-3063.5609312951192},{"$f":"'Res-Appliance class'!$B32*'RES S curve-disconnect'!CD$5+'Res-Appliance class'!$C32*'RES S curve-disconnect'!CD$10+'Res-Appliance class'!$D32*'RES S curve-disconnect'!CD$15+'Res-Appliance class'!$E32*'RES S curve-disconnect'!CD$20","v":-3157.4776424133433}]
["Glen Eira (C)",null,{"$f":"'Res-Appliance class'!$B33*'RES S curve-disconnect'!C$5+'Res-Appliance class'!$C33*'RES S curve-disconnect'!C$10+'Res-Appliance class'!$D33*'RES S curve-disconnect'!C$15+'Res-Appliance class'!$E33*'RES S curve-disconnect'!C$20","v":-4912.1127548684472},{"$f":"'Res-Appliance class'!$B33*'RES S curve-disconnect'!D$5+'Res-Appliance class'!$C33*'RES S curve-disconnect'!D$10+'Res-Appliance class'!$D33*'RES S curve-disconnect'!D$15+'Res-Appliance class'!$E33*'RES S curve-disconnect'!D$20","v":-5232.7242515422804},{"$f":"'Res-Appliance class'!$B33*'RES S curve-disconnect'!E$5+'Res-Appliance class'!$C33*'RES S curve-disconnect'!E$10+'Res-Appliance class'!$D33*'RES S curve-disconnect'!E$15+'Res-Appliance class'!$E33*'RES S curve-disconnect'!E$20","v":-4387.9912118516186},{"$f":"'Res-Appliance class'!$B33*'RES S curve-disconnect'!F$5+'Res-Appliance class'!$C33*'RES S curve-disconnect'!F$10+'Res-Appliance class'!$D33*'RES S curve-disconnect'!F$15+'Res-Appliance class'!$E33*'RES S curve-disconnect'!F$20","v":-4293.8059480314569},{"$f":"'Res-Appliance class'!$B33*'RES S curve-disconnect'!G$5+'Res-Appliance class'!$C33*'RES S curve-disconnect'!G$10+'Res-Appliance class'!$D33*'RES S curve-disconnect'!G$15+'Res-Appliance class'!$E33*'RES S curve-disconnect'!G$20","v":-5276.9701006452924},{"$f":"'Res-Appliance class'!$B33*'RES S curve-disconnect'!H$5+'Res-Appliance class'!$C33*'RES S curve-disconnect'!H$10+'Res-Appliance class'!$D33*'RES S curve-disconnect'!H$15+'Res-Appliance class'!$E33*'RES S curve-disconnect'!H$20","v":-5308.8393150132779},{"$f":"'Res-Appliance class'!$B33*'RES S curve-disconnect'!I$5+'Res-Appliance class'!$C33*'RES S curve-disconnect'!I$10+'Res-Appliance class'!$D33*'RES S curve-disconnect'!I$15+'Res-Appliance class'!$E33*'RES S curve-disconnect'!I$20","v":-5039.4765559513544},{"$f":"'Res-Appliance class'!$B33*'RES S curve-disconnect'!J$5+'Res-Appliance class'!$C33*'RES S curve-disconnect'!J$10+'Res-Appliance class'!$D33*'RES S curve-disconnect'!J$15+'Res-Appliance class'!$E33*'RES S curve-disconnect'!J$20","v":-5389.6318245595612},{"$f":"'Res-Appliance class'!$B33*'RES S curve-disconnect'!K$5+'Res-Appliance class'!$C33*'RES S curve-disconnect'!K$10+'Res-Appliance class'!$D33*'RES S curve-disconnect'!K$15+'Res-Appliance class'!$E33*'RES S curve-disconnect'!K$20","v":-4794.4914001548832},{"$f":"'Res-Appliance class'!$B33*'RES S curve-disconnect'!L$5+'Res-Appliance class'!$C33*'RES S curve-disconnect'!L$10+'Res-Appliance class'!$D33*'RES S curve-disconnect'!L$15+'Res-Appliance class'!$E33*'RES S curve-disconnect'!L$20","v":-4995.4073887373215},{"$f":"'Res-Appliance class'!$B33*'RES S curve-disconnect'!M$5+'Res-Appliance class'!$C33*'RES S curve-disconnect'!M$10+'Res-Appliance class'!$D33*'RES S curve-disconnect'!M$15+'Res-Appliance class'!$E33*'RES S curve-disconnect'!M$20","v":-5369.2003808645259},{"$f":"'Res-Appliance class'!$B33*'RES S curve-disconnect'!N$5+'Res-Appliance class'!$C33*'RES S curve-disconnect'!N$10+'Res-Appliance class'!$D33*'RES S curve-disconnect'!N$15+'Res-Appliance class'!$E33*'RES S curve-disconnect'!N$20","v":-5388.3922140015911},{"$f":"'Res-Appliance class'!$B33*'RES S curve-disconnect'!O$5+'Res-Appliance class'!$C33*'RES S curve-disconnect'!O$10+'Res-Appliance class'!$D33*'RES S curve-disconnect'!O$15+'Res-Appliance class'!$E33*'RES S curve-disconnect'!O$20","v":-5021.0071081203478},{"$f":"'Res-Appliance class'!$B33*'RES S curve-disconnect'!P$5+'Res-Appliance class'!$C33*'RES S curve-disconnect'!P$10+'Res-Appliance class'!$D33*'RES S curve-disconnect'!P$15+'Res-Appliance class'!$E33*'RES S curve-disconnect'!P$20","v":-4725.5889150418443},{"$f":"'Res-Appliance class'!$B33*'RES S curve-disconnect'!Q$5+'Res-Appliance class'!$C33*'RES S curve-disconnect'!Q$10+'Res-Appliance class'!$D33*'RES S curve-disconnect'!Q$15+'Res-Appliance class'!$E33*'RES S curve-disconnect'!Q$20","v":-4288.3938276517492},{"$f":"'Res-Appliance class'!$B33*'RES S curve-disconnect'!R$5+'Res-Appliance class'!$C33*'RES S curve-disconnect'!R$10+'Res-Appliance class'!$D33*'RES S curve-disconnect'!R$15+'Res-Appliance class'!$E33*'RES S curve-disconnect'!R$20","v":-4033.1293522884034},{"$f":"'Res-Appliance class'!$B33*'RES S curve-disconnect'!S$5+'Res-Appliance class'!$C33*'RES S curve-disconnect'!S$10+'Res-Appliance class'!$D33*'RES S curve-disconnect'!S$15+'Res-Appliance class'!$E33*'RES S curve-disconnect'!S$20","v":-3636.219112857571},{"$f":"'Res-Appliance class'!$B33*'RES S curve-disconnect'!T$5+'Res-Appliance class'!$C33*'RES S curve-disconnect'!T$10+'Res-Appliance class'!$D33*'RES S curve-disconnect'!T$15+'Res-Appliance class'!$E33*'RES S curve-disconnect'!T$20","v":-3415.5345735507894},{"$f":"'Res-Appliance class'!$B33*'RES S curve-disconnect'!U$5+'Res-Appliance class'!$C33*'RES S curve-disconnect'!U$10+'Res-Appliance class'!$D33*'RES S curve-disconnect'!U$15+'Res-Appliance class'!$E33*'RES S curve-disconnect'!U$20","v":-3164.0828083977667},{"$f":"'Res-Appliance class'!$B33*'RES S curve-disconnect'!V$5+'Res-Appliance class'!$C33*'RES S curve-disconnect'!V$10+'Res-Appliance class'!$D33*'RES S curve-disconnect'!V$15+'Res-Appliance class'!$E33*'RES S curve-disconnect'!V$20","v":-2986.4499154665991},{"$f":"'Res-Appliance class'!$B33*'RES S curve-disconnect'!W$5+'Res-Appliance class'!$C33*'RES S curve-disconnect'!W$10+'Res-Appliance class'!$D33*'RES S curve-disconnect'!W$15+'Res-Appliance class'!$E33*'RES S curve-disconnect'!W$20","v":-2844.2551913302832},{"$f":"'Res-Appliance class'!$B33*'RES S curve-disconnect'!X$5+'Res-Appliance class'!$C33*'RES S curve-disconnect'!X$10+'Res-Appliance class'!$D33*'RES S curve-disconnect'!X$15+'Res-Appliance class'!$E33*'RES S curve-disconnect'!X$20","v":-2544.9532550063695},{"$f":"'Res-Appliance class'!$B33*'RES S curve-disconnect'!Y$5+'Res-Appliance class'!$C33*'RES S curve-disconnect'!Y$10+'Res-Appliance class'!$D33*'RES S curve-disconnect'!Y$15+'Res-Appliance class'!$E33*'RES S curve-disconnect'!Y$20","v":-2242.1116956435358},{"$f":"'Res-Appliance class'!$B33*'RES S curve-disconnect'!Z$5+'Res-Appliance class'!$C33*'RES S curve-disconnect'!Z$10+'Res-Appliance class'!$D33*'RES S curve-disconnect'!Z$15+'Res-Appliance class'!$E33*'RES S curve-disconnect'!Z$20","v":-2031.6139482500398},{"$f":"'Res-Appliance class'!$B33*'RES S curve-disconnect'!AA$5+'Res-Appliance class'!$C33*'RES S curve-disconnect'!AA$10+'Res-Appliance class'!$D33*'RES S curve-disconnect'!AA$15+'Res-Appliance class'!$E33*'RES S curve-disconnect'!AA$20","v":-1820.8393805328108},{"$f":"'Res-Appliance class'!$B33*'RES S curve-disconnect'!AB$5+'Res-Appliance class'!$C33*'RES S curve-disconnect'!AB$10+'Res-Appliance class'!$D33*'RES S curve-disconnect'!AB$15+'Res-Appliance class'!$E33*'RES S curve-disconnect'!AB$20","v":-1649.0940571391993},{"$f":"'Res-Appliance class'!$B33*'RES S curve-disconnect'!AC$5+'Res-Appliance class'!$C33*'RES S curve-disconnect'!AC$10+'Res-Appliance class'!$D33*'RES S curve-disconnect'!AC$15+'Res-Appliance class'!$E33*'RES S curve-disconnect'!AC$20","v":-1482.8817217992873},{"$f":"'Res-Appliance class'!$B33*'RES S curve-disconnect'!AD$5+'Res-Appliance class'!$C33*'RES S curve-disconnect'!AD$10+'Res-Appliance class'!$D33*'RES S curve-disconnect'!AD$15+'Res-Appliance class'!$E33*'RES S curve-disconnect'!AD$20","v":-1329.1266114059604},{"$f":"'Res-Appliance class'!$B33*'RES S curve-disconnect'!AE$5+'Res-Appliance class'!$C33*'RES S curve-disconnect'!AE$10+'Res-Appliance class'!$D33*'RES S curve-disconnect'!AE$15+'Res-Appliance class'!$E33*'RES S curve-disconnect'!AE$20","v":-1167.9490780979827},{"$f":"'Res-Appliance class'!$B33*'RES S curve-disconnect'!AF$5+'Res-Appliance class'!$C33*'RES S curve-disconnect'!AF$10+'Res-Appliance class'!$D33*'RES S curve-disconnect'!AF$15+'Res-Appliance class'!$E33*'RES S curve-disconnect'!AF$20","v":-964.87781164449564},{"$f":"'Res-Appliance class'!$B33*'RES S curve-disconnect'!AG$5+'Res-Appliance class'!$C33*'RES S curve-disconnect'!AG$10+'Res-Appliance class'!$D33*'RES S curve-disconnect'!AG$15+'Res-Appliance class'!$E33*'RES S curve-disconnect'!AG$20","v":-836.02496188420264},{"$f":"'Res-Appliance class'!$B33*'RES S curve-disconnect'!AH$5+'Res-Appliance class'!$C33*'RES S curve-disconnect'!AH$10+'Res-Appliance class'!$D33*'RES S curve-disconnect'!AH$15+'Res-Appliance class'!$E33*'RES S curve-disconnect'!AH$20","v":-655.66529255075829},{"$f":"'Res-Appliance class'!$B33*'RES S curve-disconnect'!AI$5+'Res-Appliance class'!$C33*'RES S curve-disconnect'!AI$10+'Res-Appliance class'!$D33*'RES S curve-disconnect'!AI$15+'Res-Appliance class'!$E33*'RES S curve-disconnect'!AI$20","v":-492.6635805473677},{"$f":"'Res-Appliance class'!$B33*'RES S curve-disconnect'!AJ$5+'Res-Appliance class'!$C33*'RES S curve-disconnect'!AJ$10+'Res-Appliance class'!$D33*'RES S curve-disconnect'!AJ$15+'Res-Appliance class'!$E33*'RES S curve-disconnect'!AJ$20","v":-345.74024919017637},{"$f":"'Res-Appliance class'!$B33*'RES S curve-disconnect'!AK$5+'Res-Appliance class'!$C33*'RES S curve-disconnect'!AK$10+'Res-Appliance class'!$D33*'RES S curve-disconnect'!AK$15+'Res-Appliance class'!$E33*'RES S curve-disconnect'!AK$20","v":-189.7284026042075},{"$f":"'Res-Appliance class'!$B33*'RES S curve-disconnect'!AL$5+'Res-Appliance class'!$C33*'RES S curve-disconnect'!AL$10+'Res-Appliance class'!$D33*'RES S curve-disconnect'!AL$15+'Res-Appliance class'!$E33*'RES S curve-disconnect'!AL$20","v":-732.183401397539},{"$f":"'Res-Appliance class'!$B33*'RES S curve-disconnect'!AM$5+'Res-Appliance class'!$C33*'RES S curve-disconnect'!AM$10+'Res-Appliance class'!$D33*'RES S curve-disconnect'!AM$15+'Res-Appliance class'!$E33*'RES S curve-disconnect'!AM$20","v":-801.91526811481333},{"$f":"'Res-Appliance class'!$B33*'RES S curve-disconnect'!AN$5+'Res-Appliance class'!$C33*'RES S curve-disconnect'!AN$10+'Res-Appliance class'!$D33*'RES S curve-disconnect'!AN$15+'Res-Appliance class'!$E33*'RES S curve-disconnect'!AN$20","v":-653.58513543968593},{"$f":"'Res-Appliance class'!$B33*'RES S curve-disconnect'!AO$5+'Res-Appliance class'!$C33*'RES S curve-disconnect'!AO$10+'Res-Appliance class'!$D33*'RES S curve-disconnect'!AO$15+'Res-Appliance class'!$E33*'RES S curve-disconnect'!AO$20","v":-472.75781777538856},{"$f":"'Res-Appliance class'!$B33*'RES S curve-disconnect'!AP$5+'Res-Appliance class'!$C33*'RES S curve-disconnect'!AP$10+'Res-Appliance class'!$D33*'RES S curve-disconnect'!AP$15+'Res-Appliance class'!$E33*'RES S curve-disconnect'!AP$20","v":-306.05446241637014},{"$f":"'Res-Appliance class'!$B33*'RES S curve-disconnect'!AQ$5+'Res-Appliance class'!$C33*'RES S curve-disconnect'!AQ$10+'Res-Appliance class'!$D33*'RES S curve-disconnect'!AQ$15+'Res-Appliance class'!$E33*'RES S curve-disconnect'!AQ$20","v":-126.22174415567935},{"$f":"'Res-Appliance class'!$B33*'RES S curve-disconnect'!AR$5+'Res-Appliance class'!$C33*'RES S curve-disconnect'!AR$10+'Res-Appliance class'!$D33*'RES S curve-disconnect'!AR$15+'Res-Appliance class'!$E33*'RES S curve-disconnect'!AR$20","v":71.031611911034531},{"$f":"'Res-Appliance class'!$B33*'RES S curve-disconnect'!AS$5+'Res-Appliance class'!$C33*'RES S curve-disconnect'!AS$10+'Res-Appliance class'!$D33*'RES S curve-disconnect'!AS$15+'Res-Appliance class'!$E33*'RES S curve-disconnect'!AS$20","v":292.32777577016134},{"$f":"'Res-Appliance class'!$B33*'RES S curve-disconnect'!AT$5+'Res-Appliance class'!$C33*'RES S curve-disconnect'!AT$10+'Res-Appliance class'!$D33*'RES S curve-disconnect'!AT$15+'Res-Appliance class'!$E33*'RES S curve-disconnect'!AT$20","v":539.63303378059459},{"$f":"'Res-Appliance class'!$B33*'RES S curve-disconnect'!AU$5+'Res-Appliance class'!$C33*'RES S curve-disconnect'!AU$10+'Res-Appliance class'!$D33*'RES S curve-disconnect'!AU$15+'Res-Appliance class'!$E33*'RES S curve-disconnect'!AU$20","v":826.02472840528935},{"$f":"'Res-Appliance class'!$B33*'RES S curve-disconnect'!AV$5+'Res-Appliance class'!$C33*'RES S curve-disconnect'!AV$10+'Res-Appliance class'!$D33*'RES S curve-disconnect'!AV$15+'Res-Appliance class'!$E33*'RES S curve-disconnect'!AV$20","v":1152.4212061811024},{"$f":"'Res-Appliance class'!$B33*'RES S curve-disconnect'!AW$5+'Res-Appliance class'!$C33*'RES S curve-disconnect'!AW$10+'Res-Appliance class'!$D33*'RES S curve-disconnect'!AW$15+'Res-Appliance class'!$E33*'RES S curve-disconnect'!AW$20","v":1527.4550364459089},{"$f":"'Res-Appliance class'!$B33*'RES S curve-disconnect'!AX$5+'Res-Appliance class'!$C33*'RES S curve-disconnect'!AX$10+'Res-Appliance class'!$D33*'RES S curve-disconnect'!AX$15+'Res-Appliance class'!$E33*'RES S curve-disconnect'!AX$20","v":1954.5417839833328},{"$f":"'Res-Appliance class'!$B33*'RES S curve-disconnect'!AY$5+'Res-Appliance class'!$C33*'RES S curve-disconnect'!AY$10+'Res-Appliance class'!$D33*'RES S curve-disconnect'!AY$15+'Res-Appliance class'!$E33*'RES S curve-disconnect'!AY$20","v":2447.4815808900744},{"$f":"'Res-Appliance class'!$B33*'RES S curve-disconnect'!AZ$5+'Res-Appliance class'!$C33*'RES S curve-disconnect'!AZ$10+'Res-Appliance class'!$D33*'RES S curve-disconnect'!AZ$15+'Res-Appliance class'!$E33*'RES S curve-disconnect'!AZ$20","v":3010.5508782045945},{"$f":"'Res-Appliance class'!$B33*'RES S curve-disconnect'!BA$5+'Res-Appliance class'!$C33*'RES S curve-disconnect'!BA$10+'Res-Appliance class'!$D33*'RES S curve-disconnect'!BA$15+'Res-Appliance class'!$E33*'RES S curve-disconnect'!BA$20","v":3662.340956671339},{"$f":"'Res-Appliance class'!$B33*'RES S curve-disconnect'!BB$5+'Res-Appliance class'!$C33*'RES S curve-disconnect'!BB$10+'Res-Appliance class'!$D33*'RES S curve-disconnect'!BB$15+'Res-Appliance class'!$E33*'RES S curve-disconnect'!BB$20","v":4423.3143784064268},{"$f":"'Res-Appliance class'!$B33*'RES S curve-disconnect'!BC$5+'Res-Appliance class'!$C33*'RES S curve-disconnect'!BC$10+'Res-Appliance class'!$D33*'RES S curve-disconnect'!BC$15+'Res-Appliance class'!$E33*'RES S curve-disconnect'!BC$20","v":5330.691598876856},{"$f":"'Res-Appliance class'!$B33*'RES S curve-disconnect'!BD$5+'Res-Appliance class'!$C33*'RES S curve-disconnect'!BD$10+'Res-Appliance class'!$D33*'RES S curve-disconnect'!BD$15+'Res-Appliance class'!$E33*'RES S curve-disconnect'!BD$20","v":6204.6837792170745},{"$f":"'Res-Appliance class'!$B33*'RES S curve-disconnect'!BE$5+'Res-Appliance class'!$C33*'RES S curve-disconnect'!BE$10+'Res-Appliance class'!$D33*'RES S curve-disconnect'!BE$15+'Res-Appliance class'!$E33*'RES S curve-disconnect'!BE$20","v":7003.068134066154},{"$f":"'Res-Appliance class'!$B33*'RES S curve-disconnect'!BF$5+'Res-Appliance class'!$C33*'RES S curve-disconnect'!BF$10+'Res-Appliance class'!$D33*'RES S curve-disconnect'!BF$15+'Res-Appliance class'!$E33*'RES S curve-disconnect'!BF$20","v":7820.0986107519539},{"$f":"'Res-Appliance class'!$B33*'RES S curve-disconnect'!BG$5+'Res-Appliance class'!$C33*'RES S curve-disconnect'!BG$10+'Res-Appliance class'!$D33*'RES S curve-disconnect'!BG$15+'Res-Appliance class'!$E33*'RES S curve-disconnect'!BG$20","v":8745.3021867890911},{"$f":"'Res-Appliance class'!$B33*'RES S curve-disconnect'!BH$5+'Res-Appliance class'!$C33*'RES S curve-disconnect'!BH$10+'Res-Appliance class'!$D33*'RES S curve-disconnect'!BH$15+'Res-Appliance class'!$E33*'RES S curve-disconnect'!BH$20","v":9843.2696879888972},{"$f":"'Res-Appliance class'!$B33*'RES S curve-disconnect'!BI$5+'Res-Appliance class'!$C33*'RES S curve-disconnect'!BI$10+'Res-Appliance class'!$D33*'RES S curve-disconnect'!BI$15+'Res-Appliance class'!$E33*'RES S curve-disconnect'!BI$20","v":11434.54352066679},{"$f":"'Res-Appliance class'!$B33*'RES S curve-disconnect'!BJ$5+'Res-Appliance class'!$C33*'RES S curve-disconnect'!BJ$10+'Res-Appliance class'!$D33*'RES S curve-disconnect'!BJ$15+'Res-Appliance class'!$E33*'RES S curve-disconnect'!BJ$20","v":13763.504606988728},{"$f":"'Res-Appliance class'!$B33*'RES S curve-disconnect'!BK$5+'Res-Appliance class'!$C33*'RES S curve-disconnect'!BK$10+'Res-Appliance class'!$D33*'RES S curve-disconnect'!BK$15+'Res-Appliance class'!$E33*'RES S curve-disconnect'!BK$20","v":17198.299587676349},{"$f":"'Res-Appliance class'!$B33*'RES S curve-disconnect'!BL$5+'Res-Appliance class'!$C33*'RES S curve-disconnect'!BL$10+'Res-Appliance class'!$D33*'RES S curve-disconnect'!BL$15+'Res-Appliance class'!$E33*'RES S curve-disconnect'!BL$20","v":-2714.7492306100326},{"$f":"'Res-Appliance class'!$B33*'RES S curve-disconnect'!BM$5+'Res-Appliance class'!$C33*'RES S curve-disconnect'!BM$10+'Res-Appliance class'!$D33*'RES S curve-disconnect'!BM$15+'Res-Appliance class'!$E33*'RES S curve-disconnect'!BM$20","v":-2710.3845694033771},{"$f":"'Res-Appliance class'!$B33*'RES S curve-disconnect'!BN$5+'Res-Appliance class'!$C33*'RES S curve-disconnect'!BN$10+'Res-Appliance class'!$D33*'RES S curve-disconnect'!BN$15+'Res-Appliance class'!$E33*'RES S curve-disconnect'!BN$20","v":-2708.2890115465998},{"$f":"'Res-Appliance class'!$B33*'RES S curve-disconnect'!BO$5+'Res-Appliance class'!$C33*'RES S curve-disconnect'!BO$10+'Res-Appliance class'!$D33*'RES S curve-disconnect'!BO$15+'Res-Appliance class'!$E33*'RES S curve-disconnect'!BO$20","v":-2701.6739077557845},{"$f":"'Res-Appliance class'!$B33*'RES S curve-disconnect'!BP$5+'Res-Appliance class'!$C33*'RES S curve-disconnect'!BP$10+'Res-Appliance class'!$D33*'RES S curve-disconnect'!BP$15+'Res-Appliance class'!$E33*'RES S curve-disconnect'!BP$20","v":-2697.3278321961725},{"$f":"'Res-Appliance class'!$B33*'RES S curve-disconnect'!BQ$5+'Res-Appliance class'!$C33*'RES S curve-disconnect'!BQ$10+'Res-Appliance class'!$D33*'RES S curve-disconnect'!BQ$15+'Res-Appliance class'!$E33*'RES S curve-disconnect'!BQ$20","v":-2692.9878771232698},{"$f":"'Res-Appliance class'!$B33*'RES S curve-disconnect'!BR$5+'Res-Appliance class'!$C33*'RES S curve-disconnect'!BR$10+'Res-Appliance class'!$D33*'RES S curve-disconnect'!BR$15+'Res-Appliance class'!$E33*'RES S curve-disconnect'!BR$20","v":-2690.91687609582},{"$f":"'Res-Appliance class'!$B33*'RES S curve-disconnect'!BS$5+'Res-Appliance class'!$C33*'RES S curve-disconnect'!BS$10+'Res-Appliance class'!$D33*'RES S curve-disconnect'!BS$15+'Res-Appliance class'!$E33*'RES S curve-disconnect'!BS$20","v":-2684.3261807598947},{"$f":"'Res-Appliance class'!$B33*'RES S curve-disconnect'!BT$5+'Res-Appliance class'!$C33*'RES S curve-disconnect'!BT$10+'Res-Appliance class'!$D33*'RES S curve-disconnect'!BT$15+'Res-Appliance class'!$E33*'RES S curve-disconnect'!BT$20","v":-2680.0043662048411},{"$f":"'Res-Appliance class'!$B33*'RES S curve-disconnect'!BU$5+'Res-Appliance class'!$C33*'RES S curve-disconnect'!BU$10+'Res-Appliance class'!$D33*'RES S curve-disconnect'!BU$15+'Res-Appliance class'!$E33*'RES S curve-disconnect'!BU$20","v":-2675.6885256044329},{"$f":"'Res-Appliance class'!$B33*'RES S curve-disconnect'!BV$5+'Res-Appliance class'!$C33*'RES S curve-disconnect'!BV$10+'Res-Appliance class'!$D33*'RES S curve-disconnect'!BV$15+'Res-Appliance class'!$E33*'RES S curve-disconnect'!BV$20","v":-2673.6414934298773},{"$f":"'Res-Appliance class'!$B33*'RES S curve-disconnect'!BW$5+'Res-Appliance class'!$C33*'RES S curve-disconnect'!BW$10+'Res-Appliance class'!$D33*'RES S curve-disconnect'!BW$15+'Res-Appliance class'!$E33*'RES S curve-disconnect'!BW$20","v":-2667.074622233943},{"$f":"'Res-Appliance class'!$B33*'RES S curve-disconnect'!BX$5+'Res-Appliance class'!$C33*'RES S curve-disconnect'!BX$10+'Res-Appliance class'!$D33*'RES S curve-disconnect'!BX$15+'Res-Appliance class'!$E33*'RES S curve-disconnect'!BX$20","v":-2662.7764880069458},{"$f":"'Res-Appliance class'!$B33*'RES S curve-disconnect'!BY$5+'Res-Appliance class'!$C33*'RES S curve-disconnect'!BY$10+'Res-Appliance class'!$D33*'RES S curve-disconnect'!BY$15+'Res-Appliance class'!$E33*'RES S curve-disconnect'!BY$20","v":-2658.484184817934},{"$f":"'Res-Appliance class'!$B33*'RES S curve-disconnect'!BZ$5+'Res-Appliance class'!$C33*'RES S curve-disconnect'!BZ$10+'Res-Appliance class'!$D33*'RES S curve-disconnect'!BZ$15+'Res-Appliance class'!$E33*'RES S curve-disconnect'!BZ$20","v":-2656.4605480277346},{"$f":"'Res-Appliance class'!$B33*'RES S curve-disconnect'!CA$5+'Res-Appliance class'!$C33*'RES S curve-disconnect'!CA$10+'Res-Appliance class'!$D33*'RES S curve-disconnect'!CA$15+'Res-Appliance class'!$E33*'RES S curve-disconnect'!CA$20","v":-2649.9169310731122},{"$f":"'Res-Appliance class'!$B33*'RES S curve-disconnect'!CB$5+'Res-Appliance class'!$C33*'RES S curve-disconnect'!CB$10+'Res-Appliance class'!$D33*'RES S curve-disconnect'!CB$15+'Res-Appliance class'!$E33*'RES S curve-disconnect'!CB$20","v":-2645.6419108227938},{"$f":"'Res-Appliance class'!$B33*'RES S curve-disconnect'!CC$5+'Res-Appliance class'!$C33*'RES S curve-disconnect'!CC$10+'Res-Appliance class'!$D33*'RES S curve-disconnect'!CC$15+'Res-Appliance class'!$E33*'RES S curve-disconnect'!CC$20","v":-2641.3725822186907},{"$f":"'Res-Appliance class'!$B33*'RES S curve-disconnect'!CD$5+'Res-Appliance class'!$C33*'RES S curve-disconnect'!CD$10+'Res-Appliance class'!$D33*'RES S curve-disconnect'!CD$15+'Res-Appliance class'!$E33*'RES S curve-disconnect'!CD$20","v":-2706.096418291324}]
["Greater Dandenong (C)",null,{"$f":"'Res-Appliance class'!$B34*'RES S curve-disconnect'!C$5+'Res-Appliance class'!$C34*'RES S curve-disconnect'!C$10+'Res-Appliance class'!$D34*'RES S curve-disconnect'!C$15+'Res-Appliance class'!$E34*'RES S curve-disconnect'!C$20","v":-5270.3280048564593},{"$f":"'Res-Appliance class'!$B34*'RES S curve-disconnect'!D$5+'Res-Appliance class'!$C34*'RES S curve-disconnect'!D$10+'Res-Appliance class'!$D34*'RES S curve-disconnect'!D$15+'Res-Appliance class'!$E34*'RES S curve-disconnect'!D$20","v":-5604.1272704206076},{"$f":"'Res-Appliance class'!$B34*'RES S curve-disconnect'!E$5+'Res-Appliance class'!$C34*'RES S curve-disconnect'!E$10+'Res-Appliance class'!$D34*'RES S curve-disconnect'!E$15+'Res-Appliance class'!$E34*'RES S curve-disconnect'!E$20","v":-4728.5003934383631},{"$f":"'Res-Appliance class'!$B34*'RES S curve-disconnect'!F$5+'Res-Appliance class'!$C34*'RES S curve-disconnect'!F$10+'Res-Appliance class'!$D34*'RES S curve-disconnect'!F$15+'Res-Appliance class'!$E34*'RES S curve-disconnect'!F$20","v":-4629.6848616967836},{"$f":"'Res-Appliance class'!$B34*'RES S curve-disconnect'!G$5+'Res-Appliance class'!$C34*'RES S curve-disconnect'!G$10+'Res-Appliance class'!$D34*'RES S curve-disconnect'!G$15+'Res-Appliance class'!$E34*'RES S curve-disconnect'!G$20","v":-5621.3206123776245},{"$f":"'Res-Appliance class'!$B34*'RES S curve-disconnect'!H$5+'Res-Appliance class'!$C34*'RES S curve-disconnect'!H$10+'Res-Appliance class'!$D34*'RES S curve-disconnect'!H$15+'Res-Appliance class'!$E34*'RES S curve-disconnect'!H$20","v":-5668.2020341320449},{"$f":"'Res-Appliance class'!$B34*'RES S curve-disconnect'!I$5+'Res-Appliance class'!$C34*'RES S curve-disconnect'!I$10+'Res-Appliance class'!$D34*'RES S curve-disconnect'!I$15+'Res-Appliance class'!$E34*'RES S curve-disconnect'!I$20","v":-5388.3870032858695},{"$f":"'Res-Appliance class'!$B34*'RES S curve-disconnect'!J$5+'Res-Appliance class'!$C34*'RES S curve-disconnect'!J$10+'Res-Appliance class'!$D34*'RES S curve-disconnect'!J$15+'Res-Appliance class'!$E34*'RES S curve-disconnect'!J$20","v":-5763.8536134908154},{"$f":"'Res-Appliance class'!$B34*'RES S curve-disconnect'!K$5+'Res-Appliance class'!$C34*'RES S curve-disconnect'!K$10+'Res-Appliance class'!$D34*'RES S curve-disconnect'!K$15+'Res-Appliance class'!$E34*'RES S curve-disconnect'!K$20","v":-5144.2773670393926},{"$f":"'Res-Appliance class'!$B34*'RES S curve-disconnect'!L$5+'Res-Appliance class'!$C34*'RES S curve-disconnect'!L$10+'Res-Appliance class'!$D34*'RES S curve-disconnect'!L$15+'Res-Appliance class'!$E34*'RES S curve-disconnect'!L$20","v":-5352.6924950905022},{"$f":"'Res-Appliance class'!$B34*'RES S curve-disconnect'!M$5+'Res-Appliance class'!$C34*'RES S curve-disconnect'!M$10+'Res-Appliance class'!$D34*'RES S curve-disconnect'!M$15+'Res-Appliance class'!$E34*'RES S curve-disconnect'!M$20","v":-5739.7729498253175},{"$f":"'Res-Appliance class'!$B34*'RES S curve-disconnect'!N$5+'Res-Appliance class'!$C34*'RES S curve-disconnect'!N$10+'Res-Appliance class'!$D34*'RES S curve-disconnect'!N$15+'Res-Appliance class'!$E34*'RES S curve-disconnect'!N$20","v":-5758.7959213695776},{"$f":"'Res-Appliance class'!$B34*'RES S curve-disconnect'!O$5+'Res-Appliance class'!$C34*'RES S curve-disconnect'!O$10+'Res-Appliance class'!$D34*'RES S curve-disconnect'!O$15+'Res-Appliance class'!$E34*'RES S curve-disconnect'!O$20","v":-5377.0631611080653},{"$f":"'Res-Appliance class'!$B34*'RES S curve-disconnect'!P$5+'Res-Appliance class'!$C34*'RES S curve-disconnect'!P$10+'Res-Appliance class'!$D34*'RES S curve-disconnect'!P$15+'Res-Appliance class'!$E34*'RES S curve-disconnect'!P$20","v":-5069.9774113540334},{"$f":"'Res-Appliance class'!$B34*'RES S curve-disconnect'!Q$5+'Res-Appliance class'!$C34*'RES S curve-disconnect'!Q$10+'Res-Appliance class'!$D34*'RES S curve-disconnect'!Q$15+'Res-Appliance class'!$E34*'RES S curve-disconnect'!Q$20","v":-4615.8937042707794},{"$f":"'Res-Appliance class'!$B34*'RES S curve-disconnect'!R$5+'Res-Appliance class'!$C34*'RES S curve-disconnect'!R$10+'Res-Appliance class'!$D34*'RES S curve-disconnect'!R$15+'Res-Appliance class'!$E34*'RES S curve-disconnect'!R$20","v":-4350.4127711899991},{"$f":"'Res-Appliance class'!$B34*'RES S curve-disconnect'!S$5+'Res-Appliance class'!$C34*'RES S curve-disconnect'!S$10+'Res-Appliance class'!$D34*'RES S curve-disconnect'!S$15+'Res-Appliance class'!$E34*'RES S curve-disconnect'!S$20","v":-3938.7192855081598},{"$f":"'Res-Appliance class'!$B34*'RES S curve-disconnect'!T$5+'Res-Appliance class'!$C34*'RES S curve-disconnect'!T$10+'Res-Appliance class'!$D34*'RES S curve-disconnect'!T$15+'Res-Appliance class'!$E34*'RES S curve-disconnect'!T$20","v":-3708.0387884151023},{"$f":"'Res-Appliance class'!$B34*'RES S curve-disconnect'!U$5+'Res-Appliance class'!$C34*'RES S curve-disconnect'!U$10+'Res-Appliance class'!$D34*'RES S curve-disconnect'!U$15+'Res-Appliance class'!$E34*'RES S curve-disconnect'!U$20","v":-3446.1387046517793},{"$f":"'Res-Appliance class'!$B34*'RES S curve-disconnect'!V$5+'Res-Appliance class'!$C34*'RES S curve-disconnect'!V$10+'Res-Appliance class'!$D34*'RES S curve-disconnect'!V$15+'Res-Appliance class'!$E34*'RES S curve-disconnect'!V$20","v":-3260.9657375425018},{"$f":"'Res-Appliance class'!$B34*'RES S curve-disconnect'!W$5+'Res-Appliance class'!$C34*'RES S curve-disconnect'!W$10+'Res-Appliance class'!$D34*'RES S curve-disconnect'!W$15+'Res-Appliance class'!$E34*'RES S curve-disconnect'!W$20","v":-3112.8093530645501},{"$f":"'Res-Appliance class'!$B34*'RES S curve-disconnect'!X$5+'Res-Appliance class'!$C34*'RES S curve-disconnect'!X$10+'Res-Appliance class'!$D34*'RES S curve-disconnect'!X$15+'Res-Appliance class'!$E34*'RES S curve-disconnect'!X$20","v":-2801.5065700413043},{"$f":"'Res-Appliance class'!$B34*'RES S curve-disconnect'!Y$5+'Res-Appliance class'!$C34*'RES S curve-disconnect'!Y$10+'Res-Appliance class'!$D34*'RES S curve-disconnect'!Y$15+'Res-Appliance class'!$E34*'RES S curve-disconnect'!Y$20","v":-2486.6511318813937},{"$f":"'Res-Appliance class'!$B34*'RES S curve-disconnect'!Z$5+'Res-Appliance class'!$C34*'RES S curve-disconnect'!Z$10+'Res-Appliance class'!$D34*'RES S curve-disconnect'!Z$15+'Res-Appliance class'!$E34*'RES S curve-disconnect'!Z$20","v":-2267.561847457413},{"$f":"'Res-Appliance class'!$B34*'RES S curve-disconnect'!AA$5+'Res-Appliance class'!$C34*'RES S curve-disconnect'!AA$10+'Res-Appliance class'!$D34*'RES S curve-disconnect'!AA$15+'Res-Appliance class'!$E34*'RES S curve-disconnect'!AA$20","v":-2048.3241981953015},{"$f":"'Res-Appliance class'!$B34*'RES S curve-disconnect'!AB$5+'Res-Appliance class'!$C34*'RES S curve-disconnect'!AB$10+'Res-Appliance class'!$D34*'RES S curve-disconnect'!AB$15+'Res-Appliance class'!$E34*'RES S curve-disconnect'!AB$20","v":-1869.8130421469223},{"$f":"'Res-Appliance class'!$B34*'RES S curve-disconnect'!AC$5+'Res-Appliance class'!$C34*'RES S curve-disconnect'!AC$10+'Res-Appliance class'!$D34*'RES S curve-disconnect'!AC$15+'Res-Appliance class'!$E34*'RES S curve-disconnect'!AC$20","v":-1697.1272855310872},{"$f":"'Res-Appliance class'!$B34*'RES S curve-disconnect'!AD$5+'Res-Appliance class'!$C34*'RES S curve-disconnect'!AD$10+'Res-Appliance class'!$D34*'RES S curve-disconnect'!AD$15+'Res-Appliance class'!$E34*'RES S curve-disconnect'!AD$20","v":-1537.3379327073817},{"$f":"'Res-Appliance class'!$B34*'RES S curve-disconnect'!AE$5+'Res-Appliance class'!$C34*'RES S curve-disconnect'!AE$10+'Res-Appliance class'!$D34*'RES S curve-disconnect'!AE$15+'Res-Appliance class'!$E34*'RES S curve-disconnect'!AE$20","v":-1370.0768513910859},{"$f":"'Res-Appliance class'!$B34*'RES S curve-disconnect'!AF$5+'Res-Appliance class'!$C34*'RES S curve-disconnect'!AF$10+'Res-Appliance class'!$D34*'RES S curve-disconnect'!AF$15+'Res-Appliance class'!$E34*'RES S curve-disconnect'!AF$20","v":-1159.3029036695116},{"$f":"'Res-Appliance class'!$B34*'RES S curve-disconnect'!AG$5+'Res-Appliance class'!$C34*'RES S curve-disconnect'!AG$10+'Res-Appliance class'!$D34*'RES S curve-disconnect'!AG$15+'Res-Appliance class'!$E34*'RES S curve-disconnect'!AG$20","v":-1026.0829368451612},{"$f":"'Res-Appliance class'!$B34*'RES S curve-disconnect'!AH$5+'Res-Appliance class'!$C34*'RES S curve-disconnect'!AH$10+'Res-Appliance class'!$D34*'RES S curve-disconnect'!AH$15+'Res-Appliance class'!$E34*'RES S curve-disconnect'!AH$20","v":-839.22397634171421},{"$f":"'Res-Appliance class'!$B34*'RES S curve-disconnect'!AI$5+'Res-Appliance class'!$C34*'RES S curve-disconnect'!AI$10+'Res-Appliance class'!$D34*'RES S curve-disconnect'!AI$15+'Res-Appliance class'!$E34*'RES S curve-disconnect'!AI$20","v":-670.71305143411075},{"$f":"'Res-Appliance class'!$B34*'RES S curve-disconnect'!AJ$5+'Res-Appliance class'!$C34*'RES S curve-disconnect'!AJ$10+'Res-Appliance class'!$D34*'RES S curve-disconnect'!AJ$15+'Res-Appliance class'!$E34*'RES S curve-disconnect'!AJ$20","v":-518.74449701420292},{"$f":"'Res-Appliance class'!$B34*'RES S curve-disconnect'!AK$5+'Res-Appliance class'!$C34*'RES S curve-disconnect'!AK$10+'Res-Appliance class'!$D34*'RES S curve-disconnect'!AK$15+'Res-Appliance class'!$E34*'RES S curve-disconnect'!AK$20","v":-357.3908591129964},{"$f":"'Res-Appliance class'!$B34*'RES S curve-disconnect'!AL$5+'Res-Appliance class'!$C34*'RES S curve-disconnect'!AL$10+'Res-Appliance class'!$D34*'RES S curve-disconnect'!AL$15+'Res-Appliance class'!$E34*'RES S curve-disconnect'!AL$20","v":-917.27581704840247},{"$f":"'Res-Appliance class'!$B34*'RES S curve-disconnect'!AM$5+'Res-Appliance class'!$C34*'RES S curve-disconnect'!AM$10+'Res-Appliance class'!$D34*'RES S curve-disconnect'!AM$15+'Res-Appliance class'!$E34*'RES S curve-disconnect'!AM$20","v":-989.76746290075926},{"$f":"'Res-Appliance class'!$B34*'RES S curve-disconnect'!AN$5+'Res-Appliance class'!$C34*'RES S curve-disconnect'!AN$10+'Res-Appliance class'!$D34*'RES S curve-disconnect'!AN$15+'Res-Appliance class'!$E34*'RES S curve-disconnect'!AN$20","v":-836.64138975640685},{"$f":"'Res-Appliance class'!$B34*'RES S curve-disconnect'!AO$5+'Res-Appliance class'!$C34*'RES S curve-disconnect'!AO$10+'Res-Appliance class'!$D34*'RES S curve-disconnect'!AO$15+'Res-Appliance class'!$E34*'RES S curve-disconnect'!AO$20","v":-649.70854163562149},{"$f":"'Res-Appliance class'!$B34*'RES S curve-disconnect'!AP$5+'Res-Appliance class'!$C34*'RES S curve-disconnect'!AP$10+'Res-Appliance class'!$D34*'RES S curve-disconnect'!AP$15+'Res-Appliance class'!$E34*'RES S curve-disconnect'!AP$20","v":-477.2154301308434},{"$f":"'Res-Appliance class'!$B34*'RES S curve-disconnect'!AQ$5+'Res-Appliance class'!$C34*'RES S curve-disconnect'!AQ$10+'Res-Appliance class'!$D34*'RES S curve-disconnect'!AQ$15+'Res-Appliance class'!$E34*'RES S curve-disconnect'!AQ$20","v":-291.30144921193801},{"$f":"'Res-Appliance class'!$B34*'RES S curve-disconnect'!AR$5+'Res-Appliance class'!$C34*'RES S curve-disconnect'!AR$10+'Res-Appliance class'!$D34*'RES S curve-disconnect'!AR$15+'Res-Appliance class'!$E34*'RES S curve-disconnect'!AR$20","v":-87.287452098294978},{"$f":"'Res-Appliance class'!$B34*'RES S curve-disconnect'!AS$5+'Res-Appliance class'!$C34*'RES S curve-disconnect'!AS$10+'Res-Appliance class'!$D34*'RES S curve-disconnect'!AS$15+'Res-Appliance class'!$E34*'RES S curve-disconnect'!AS$20","v":141.61319849418601},{"$f":"'Res-Appliance class'!$B34*'RES S curve-disconnect'!AT$5+'Res-Appliance class'!$C34*'RES S curve-disconnect'!AT$10+'Res-Appliance class'!$D34*'RES S curve-disconnect'!AT$15+'Res-Appliance class'!$E34*'RES S curve-disconnect'!AT$20","v":397.52089369883527},{"$f":"'Res-Appliance class'!$B34*'RES S curve-disconnect'!AU$5+'Res-Appliance class'!$C34*'RES S curve-disconnect'!AU$10+'Res-Appliance class'!$D34*'RES S curve-disconnect'!AU$15+'Res-Appliance class'!$E34*'RES S curve-disconnect'!AU$20","v":693.73757915224155},{"$f":"'Res-Appliance class'!$B34*'RES S curve-disconnect'!AV$5+'Res-Appliance class'!$C34*'RES S curve-disconnect'!AV$10+'Res-Appliance class'!$D34*'RES S curve-disconnect'!AV$15+'Res-Appliance class'!$E34*'RES S curve-disconnect'!AV$20","v":1031.4609116014608},{"$f":"'Res-Appliance class'!$B34*'RES S curve-disconnect'!AW$5+'Res-Appliance class'!$C34*'RES S curve-disconnect'!AW$10+'Res-Appliance class'!$D34*'RES S curve-disconnect'!AW$15+'Res-Appliance class'!$E34*'RES S curve-disconnect'!AW$20","v":1419.5676342961192},{"$f":"'Res-Appliance class'!$B34*'RES S curve-disconnect'!AX$5+'Res-Appliance class'!$C34*'RES S curve-disconnect'!AX$10+'Res-Appliance class'!$D34*'RES S curve-disconnect'!AX$15+'Res-Appliance class'!$E34*'RES S curve-disconnect'!AX$20","v":1861.7003150689957},{"$f":"'Res-Appliance class'!$B34*'RES S curve-disconnect'!AY$5+'Res-Appliance class'!$C34*'RES S curve-disconnect'!AY$10+'Res-Appliance class'!$D34*'RES S curve-disconnect'!AY$15+'Res-Appliance class'!$E34*'RES S curve-disconnect'!AY$20","v":2371.9351818694713},{"$f":"'Res-Appliance class'!$B34*'RES S curve-disconnect'!AZ$5+'Res-Appliance class'!$C34*'RES S curve-disconnect'!AZ$10+'Res-Appliance class'!$D34*'RES S curve-disconnect'!AZ$15+'Res-Appliance class'!$E34*'RES S curve-disconnect'!AZ$20","v":2954.9706779074891},{"$f":"'Res-Appliance class'!$B34*'RES S curve-disconnect'!BA$5+'Res-Appliance class'!$C34*'RES S curve-disconnect'!BA$10+'Res-Appliance class'!$D34*'RES S curve-disconnect'!BA$15+'Res-Appliance class'!$E34*'RES S curve-disconnect'!BA$20","v":3630.0152678705936},{"$f":"'Res-Appliance class'!$B34*'RES S curve-disconnect'!BB$5+'Res-Appliance class'!$C34*'RES S curve-disconnect'!BB$10+'Res-Appliance class'!$D34*'RES S curve-disconnect'!BB$15+'Res-Appliance class'!$E34*'RES S curve-disconnect'!BB$20","v":4418.3944549670532},{"$f":"'Res-Appliance class'!$B34*'RES S curve-disconnect'!BC$5+'Res-Appliance class'!$C34*'RES S curve-disconnect'!BC$10+'Res-Appliance class'!$D34*'RES S curve-disconnect'!BC$15+'Res-Appliance class'!$E34*'RES S curve-disconnect'!BC$20","v":5358.4909582156588},{"$f":"'Res-Appliance class'!$B34*'RES S curve-disconnect'!BD$5+'Res-Appliance class'!$C34*'RES S curve-disconnect'!BD$10+'Res-Appliance class'!$D34*'RES S curve-disconnect'!BD$15+'Res-Appliance class'!$E34*'RES S curve-disconnect'!BD$20","v":6264.674822821351},{"$f":"'Res-Appliance class'!$B34*'RES S curve-disconnect'!BE$5+'Res-Appliance class'!$C34*'RES S curve-disconnect'!BE$10+'Res-Appliance class'!$D34*'RES S curve-disconnect'!BE$15+'Res-Appliance class'!$E34*'RES S curve-disconnect'!BE$20","v":7092.6945657348269},{"$f":"'Res-Appliance class'!$B34*'RES S curve-disconnect'!BF$5+'Res-Appliance class'!$C34*'RES S curve-disconnect'!BF$10+'Res-Appliance class'!$D34*'RES S curve-disconnect'!BF$15+'Res-Appliance class'!$E34*'RES S curve-disconnect'!BF$20","v":7939.9846080476163},{"$f":"'Res-Appliance class'!$B34*'RES S curve-disconnect'!BG$5+'Res-Appliance class'!$C34*'RES S curve-disconnect'!BG$10+'Res-Appliance class'!$D34*'RES S curve-disconnect'!BG$15+'Res-Appliance class'!$E34*'RES S curve-disconnect'!BG$20","v":8899.1945635748871},{"$f":"'Res-Appliance class'!$B34*'RES S curve-disconnect'!BH$5+'Res-Appliance class'!$C34*'RES S curve-disconnect'!BH$10+'Res-Appliance class'!$D34*'RES S curve-disconnect'!BH$15+'Res-Appliance class'!$E34*'RES S curve-disconnect'!BH$20","v":10037.664854636372},{"$f":"'Res-Appliance class'!$B34*'RES S curve-disconnect'!BI$5+'Res-Appliance class'!$C34*'RES S curve-disconnect'!BI$10+'Res-Appliance class'!$D34*'RES S curve-disconnect'!BI$15+'Res-Appliance class'!$E34*'RES S curve-disconnect'!BI$20","v":11687.466233298192},{"$f":"'Res-Appliance class'!$B34*'RES S curve-disconnect'!BJ$5+'Res-Appliance class'!$C34*'RES S curve-disconnect'!BJ$10+'Res-Appliance class'!$D34*'RES S curve-disconnect'!BJ$15+'Res-Appliance class'!$E34*'RES S curve-disconnect'!BJ$20","v":14102.854422091626},{"$f":"'Res-Appliance class'!$B34*'RES S curve-disconnect'!BK$5+'Res-Appliance class'!$C34*'RES S curve-disconnect'!BK$10+'Res-Appliance class'!$D34*'RES S curve-disconnect'!BK$15+'Res-Appliance class'!$E34*'RES S curve-disconnect'!BK$20","v":17666.251893235236},{"$f":"'Res-Appliance class'!$B34*'RES S curve-disconnect'!BL$5+'Res-Appliance class'!$C34*'RES S curve-disconnect'!BL$10+'Res-Appliance class'!$D34*'RES S curve-disconnect'!BL$15+'Res-Appliance class'!$E34*'RES S curve-disconnect'!BL$20","v":-2963.7578487363085},{"$f":"'Res-Appliance class'!$B34*'RES S curve-disconnect'!BM$5+'Res-Appliance class'!$C34*'RES S curve-disconnect'!BM$10+'Res-Appliance class'!$D34*'RES S curve-disconnect'!BM$15+'Res-Appliance class'!$E34*'RES S curve-disconnect'!BM$20","v":-2959.2106084956422},{"$f":"'Res-Appliance class'!$B34*'RES S curve-disconnect'!BN$5+'Res-Appliance class'!$C34*'RES S curve-disconnect'!BN$10+'Res-Appliance class'!$D34*'RES S curve-disconnect'!BN$15+'Res-Appliance class'!$E34*'RES S curve-disconnect'!BN$20","v":-2956.9328294906782},{"$f":"'Res-Appliance class'!$B34*'RES S curve-disconnect'!BO$5+'Res-Appliance class'!$C34*'RES S curve-disconnect'!BO$10+'Res-Appliance class'!$D34*'RES S curve-disconnect'!BO$15+'Res-Appliance class'!$E34*'RES S curve-disconnect'!BO$20","v":-2950.1358601478423},{"$f":"'Res-Appliance class'!$B34*'RES S curve-disconnect'!BP$5+'Res-Appliance class'!$C34*'RES S curve-disconnect'!BP$10+'Res-Appliance class'!$D34*'RES S curve-disconnect'!BP$15+'Res-Appliance class'!$E34*'RES S curve-disconnect'!BP$20","v":-2945.6082723573654},{"$f":"'Res-Appliance class'!$B34*'RES S curve-disconnect'!BQ$5+'Res-Appliance class'!$C34*'RES S curve-disconnect'!BQ$10+'Res-Appliance class'!$D34*'RES S curve-disconnect'!BQ$15+'Res-Appliance class'!$E34*'RES S curve-disconnect'!BQ$20","v":-2941.0871561143058},{"$f":"'Res-Appliance class'!$B34*'RES S curve-disconnect'!BR$5+'Res-Appliance class'!$C34*'RES S curve-disconnect'!BR$10+'Res-Appliance class'!$D34*'RES S curve-disconnect'!BR$15+'Res-Appliance class'!$E34*'RES S curve-disconnect'!BR$20","v":-2938.8353427314196},{"$f":"'Res-Appliance class'!$B34*'RES S curve-disconnect'!BS$5+'Res-Appliance class'!$C34*'RES S curve-disconnect'!BS$10+'Res-Appliance class'!$D34*'RES S curve-disconnect'!BS$15+'Res-Appliance class'!$E34*'RES S curve-disconnect'!BS$20","v":-2932.0641816231646},{"$f":"'Res-Appliance class'!$B34*'RES S curve-disconnect'!BT$5+'Res-Appliance class'!$C34*'RES S curve-disconnect'!BT$10+'Res-Appliance class'!$D34*'RES S curve-disconnect'!BT$15+'Res-Appliance class'!$E34*'RES S curve-disconnect'!BT$20","v":-2927.5622456615538},{"$f":"'Res-Appliance class'!$B34*'RES S curve-disconnect'!BU$5+'Res-Appliance class'!$C34*'RES S curve-disconnect'!BU$10+'Res-Appliance class'!$D34*'RES S curve-disconnect'!BU$15+'Res-Appliance class'!$E34*'RES S curve-disconnect'!BU$20","v":-2923.0666258172159},{"$f":"'Res-Appliance class'!$B34*'RES S curve-disconnect'!BV$5+'Res-Appliance class'!$C34*'RES S curve-disconnect'!BV$10+'Res-Appliance class'!$D34*'RES S curve-disconnect'!BV$15+'Res-Appliance class'!$E34*'RES S curve-disconnect'!BV$20","v":-2920.8401543723112},{"$f":"'Res-Appliance class'!$B34*'RES S curve-disconnect'!BW$5+'Res-Appliance class'!$C34*'RES S curve-disconnect'!BW$10+'Res-Appliance class'!$D34*'RES S curve-disconnect'!BW$15+'Res-Appliance class'!$E34*'RES S curve-disconnect'!BW$20","v":-2914.0941817045677},{"$f":"'Res-Appliance class'!$B34*'RES S curve-disconnect'!BX$5+'Res-Appliance class'!$C34*'RES S curve-disconnect'!BX$10+'Res-Appliance class'!$D34*'RES S curve-disconnect'!BX$15+'Res-Appliance class'!$E34*'RES S curve-disconnect'!BX$20","v":-2909.617281643179},{"$f":"'Res-Appliance class'!$B34*'RES S curve-disconnect'!BY$5+'Res-Appliance class'!$C34*'RES S curve-disconnect'!BY$10+'Res-Appliance class'!$D34*'RES S curve-disconnect'!BY$15+'Res-Appliance class'!$E34*'RES S curve-disconnect'!BY$20","v":-2905.1465461099006},{"$f":"'Res-Appliance class'!$B34*'RES S curve-disconnect'!BZ$5+'Res-Appliance class'!$C34*'RES S curve-disconnect'!BZ$10+'Res-Appliance class'!$D34*'RES S curve-disconnect'!BZ$15+'Res-Appliance class'!$E34*'RES S curve-disconnect'!BZ$20","v":-2902.9448083320076},{"$f":"'Res-Appliance class'!$B34*'RES S curve-disconnect'!CA$5+'Res-Appliance class'!$C34*'RES S curve-disconnect'!CA$10+'Res-Appliance class'!$D34*'RES S curve-disconnect'!CA$15+'Res-Appliance class'!$E34*'RES S curve-disconnect'!CA$20","v":-2896.2234196263635},{"$f":"'Res-Appliance class'!$B34*'RES S curve-disconnect'!CB$5+'Res-Appliance class'!$C34*'RES S curve-disconnect'!CB$10+'Res-Appliance class'!$D34*'RES S curve-disconnect'!CB$15+'Res-Appliance class'!$E34*'RES S curve-disconnect'!CB$20","v":-2891.7709547553604},{"$f":"'Res-Appliance class'!$B34*'RES S curve-disconnect'!CC$5+'Res-Appliance class'!$C34*'RES S curve-disconnect'!CC$10+'Res-Appliance class'!$D34*'RES S curve-disconnect'!CC$15+'Res-Appliance class'!$E34*'RES S curve-disconnect'!CC$20","v":-2887.3245065680539},{"$f":"'Res-Appliance class'!$B34*'RES S curve-disconnect'!CD$5+'Res-Appliance class'!$C34*'RES S curve-disconnect'!CD$10+'Res-Appliance class'!$D34*'RES S curve-disconnect'!CD$15+'Res-Appliance class'!$E34*'RES S curve-disconnect'!CD$20","v":-2954.5415199599993}]
["Kingston (C)",null,{"$f":"'Res-Appliance class'!$B35*'RES S curve-disconnect'!C$5+'Res-Appliance class'!$C35*'RES S curve-disconnect'!C$10+'Res-Appliance class'!$D35*'RES S curve-disconnect'!C$15+'Res-Appliance class'!$E35*'RES S curve-disconnect'!C$20","v":-5043.2354457409983},{"$f":"'Res-Appliance class'!$B35*'RES S curve-disconnect'!D$5+'Res-Appliance class'!$C35*'RES S curve-disconnect'!D$10+'Res-Appliance class'!$D35*'RES S curve-disconnect'!D$15+'Res-Appliance class'!$E35*'RES S curve-disconnect'!D$20","v":-5365.8238416920667},{"$f":"'Res-Appliance class'!$B35*'RES S curve-disconnect'!E$5+'Res-Appliance class'!$C35*'RES S curve-disconnect'!E$10+'Res-Appliance class'!$D35*'RES S curve-disconnect'!E$15+'Res-Appliance class'!$E35*'RES S curve-disconnect'!E$20","v":-4526.2085523779306},{"$f":"'Res-Appliance class'!$B35*'RES S curve-disconnect'!F$5+'Res-Appliance class'!$C35*'RES S curve-disconnect'!F$10+'Res-Appliance class'!$D35*'RES S curve-disconnect'!F$15+'Res-Appliance class'!$E35*'RES S curve-disconnect'!F$20","v":-4431.4566335819873},{"$f":"'Res-Appliance class'!$B35*'RES S curve-disconnect'!G$5+'Res-Appliance class'!$C35*'RES S curve-disconnect'!G$10+'Res-Appliance class'!$D35*'RES S curve-disconnect'!G$15+'Res-Appliance class'!$E35*'RES S curve-disconnect'!G$20","v":-5378.7620276795551},{"$f":"'Res-Appliance class'!$B35*'RES S curve-disconnect'!H$5+'Res-Appliance class'!$C35*'RES S curve-disconnect'!H$10+'Res-Appliance class'!$D35*'RES S curve-disconnect'!H$15+'Res-Appliance class'!$E35*'RES S curve-disconnect'!H$20","v":-5418.4235517467278},{"$f":"'Res-Appliance class'!$B35*'RES S curve-disconnect'!I$5+'Res-Appliance class'!$C35*'RES S curve-disconnect'!I$10+'Res-Appliance class'!$D35*'RES S curve-disconnect'!I$15+'Res-Appliance class'!$E35*'RES S curve-disconnect'!I$20","v":-5149.7451206058158},{"$f":"'Res-Appliance class'!$B35*'RES S curve-disconnect'!J$5+'Res-Appliance class'!$C35*'RES S curve-disconnect'!J$10+'Res-Appliance class'!$D35*'RES S curve-disconnect'!J$15+'Res-Appliance class'!$E35*'RES S curve-disconnect'!J$20","v":-5520.6919703569074},{"$f":"'Res-Appliance class'!$B35*'RES S curve-disconnect'!K$5+'Res-Appliance class'!$C35*'RES S curve-disconnect'!K$10+'Res-Appliance class'!$D35*'RES S curve-disconnect'!K$15+'Res-Appliance class'!$E35*'RES S curve-disconnect'!K$20","v":-4924.2730537751095},{"$f":"'Res-Appliance class'!$B35*'RES S curve-disconnect'!L$5+'Res-Appliance class'!$C35*'RES S curve-disconnect'!L$10+'Res-Appliance class'!$D35*'RES S curve-disconnect'!L$15+'Res-Appliance class'!$E35*'RES S curve-disconnect'!L$20","v":-5125.5437853521362},{"$f":"'Res-Appliance class'!$B35*'RES S curve-disconnect'!M$5+'Res-Appliance class'!$C35*'RES S curve-disconnect'!M$10+'Res-Appliance class'!$D35*'RES S curve-disconnect'!M$15+'Res-Appliance class'!$E35*'RES S curve-disconnect'!M$20","v":-5495.4211548033436},{"$f":"'Res-Appliance class'!$B35*'RES S curve-disconnect'!N$5+'Res-Appliance class'!$C35*'RES S curve-disconnect'!N$10+'Res-Appliance class'!$D35*'RES S curve-disconnect'!N$15+'Res-Appliance class'!$E35*'RES S curve-disconnect'!N$20","v":-5513.4515632439989},{"$f":"'Res-Appliance class'!$B35*'RES S curve-disconnect'!O$5+'Res-Appliance class'!$C35*'RES S curve-disconnect'!O$10+'Res-Appliance class'!$D35*'RES S curve-disconnect'!O$15+'Res-Appliance class'!$E35*'RES S curve-disconnect'!O$20","v":-5145.8390311417534},{"$f":"'Res-Appliance class'!$B35*'RES S curve-disconnect'!P$5+'Res-Appliance class'!$C35*'RES S curve-disconnect'!P$10+'Res-Appliance class'!$D35*'RES S curve-disconnect'!P$15+'Res-Appliance class'!$E35*'RES S curve-disconnect'!P$20","v":-4850.5269253371061},{"$f":"'Res-Appliance class'!$B35*'RES S curve-disconnect'!Q$5+'Res-Appliance class'!$C35*'RES S curve-disconnect'!Q$10+'Res-Appliance class'!$D35*'RES S curve-disconnect'!Q$15+'Res-Appliance class'!$E35*'RES S curve-disconnect'!Q$20","v":-4413.9333745900885},{"$f":"'Res-Appliance class'!$B35*'RES S curve-disconnect'!R$5+'Res-Appliance class'!$C35*'RES S curve-disconnect'!R$10+'Res-Appliance class'!$D35*'RES S curve-disconnect'!R$15+'Res-Appliance class'!$E35*'RES S curve-disconnect'!R$20","v":-4158.677751530864},{"$f":"'Res-Appliance class'!$B35*'RES S curve-disconnect'!S$5+'Res-Appliance class'!$C35*'RES S curve-disconnect'!S$10+'Res-Appliance class'!$D35*'RES S curve-disconnect'!S$15+'Res-Appliance class'!$E35*'RES S curve-disconnect'!S$20","v":-3762.3306961077674},{"$f":"'Res-Appliance class'!$B35*'RES S curve-disconnect'!T$5+'Res-Appliance class'!$C35*'RES S curve-disconnect'!T$10+'Res-Appliance class'!$D35*'RES S curve-disconnect'!T$15+'Res-Appliance class'!$E35*'RES S curve-disconnect'!T$20","v":-3541.4377801730716},{"$f":"'Res-Appliance class'!$B35*'RES S curve-disconnect'!U$5+'Res-Appliance class'!$C35*'RES S curve-disconnect'!U$10+'Res-Appliance class'!$D35*'RES S curve-disconnect'!U$15+'Res-Appliance class'!$E35*'RES S curve-disconnect'!U$20","v":-3289.7616464123457},{"$f":"'Res-Appliance class'!$B35*'RES S curve-disconnect'!V$5+'Res-Appliance class'!$C35*'RES S curve-disconnect'!V$10+'Res-Appliance class'!$D35*'RES S curve-disconnect'!V$15+'Res-Appliance class'!$E35*'RES S curve-disconnect'!V$20","v":-3111.4070395021536},{"$f":"'Res-Appliance class'!$B35*'RES S curve-disconnect'!W$5+'Res-Appliance class'!$C35*'RES S curve-disconnect'!W$10+'Res-Appliance class'!$D35*'RES S curve-disconnect'!W$15+'Res-Appliance class'!$E35*'RES S curve-disconnect'!W$20","v":-2968.7379189695698},{"$f":"'Res-Appliance class'!$B35*'RES S curve-disconnect'!X$5+'Res-Appliance class'!$C35*'RES S curve-disconnect'!X$10+'Res-Appliance class'!$D35*'RES S curve-disconnect'!X$15+'Res-Appliance class'!$E35*'RES S curve-disconnect'!X$20","v":-2669.8218185077185},{"$f":"'Res-Appliance class'!$B35*'RES S curve-disconnect'!Y$5+'Res-Appliance class'!$C35*'RES S curve-disconnect'!Y$10+'Res-Appliance class'!$D35*'RES S curve-disconnect'!Y$15+'Res-Appliance class'!$E35*'RES S curve-disconnect'!Y$20","v":-2367.3573314087444},{"$f":"'Res-Appliance class'!$B35*'RES S curve-disconnect'!Z$5+'Res-Appliance class'!$C35*'RES S curve-disconnect'!Z$10+'Res-Appliance class'!$D35*'RES S curve-disconnect'!Z$15+'Res-Appliance class'!$E35*'RES S curve-disconnect'!Z$20","v":-2156.7366845143902},{"$f":"'Res-Appliance class'!$B35*'RES S curve-disconnect'!AA$5+'Res-Appliance class'!$C35*'RES S curve-disconnect'!AA$10+'Res-Appliance class'!$D35*'RES S curve-disconnect'!AA$15+'Res-Appliance class'!$E35*'RES S curve-disconnect'!AA$20","v":-1945.8145462839896},{"$f":"'Res-Appliance class'!$B35*'RES S curve-disconnect'!AB$5+'Res-Appliance class'!$C35*'RES S curve-disconnect'!AB$10+'Res-Appliance class'!$D35*'RES S curve-disconnect'!AB$15+'Res-Appliance class'!$E35*'RES S curve-disconnect'!AB$20","v":-1774.0336214843696},{"$f":"'Res-Appliance class'!$B35*'RES S curve-disconnect'!AC$5+'Res-Appliance class'!$C35*'RES S curve-disconnect'!AC$10+'Res-Appliance class'!$D35*'RES S curve-disconnect'!AC$15+'Res-Appliance class'!$E35*'RES S curve-disconnect'!AC$20","v":-1607.7536368751082},{"$f":"'Res-Appliance class'!$B35*'RES S curve-disconnect'!AD$5+'Res-Appliance class'!$C35*'RES S curve-disconnect'!AD$10+'Res-Appliance class'!$D35*'RES S curve-disconnect'!AD$15+'Res-Appliance class'!$E35*'RES S curve-disconnect'!AD$20","v":-1453.8780493161621},{"$f":"'Res-Appliance class'!$B35*'RES S curve-disconnect'!AE$5+'Res-Appliance class'!$C35*'RES S curve-disconnect'!AE$10+'Res-Appliance class'!$D35*'RES S curve-disconnect'!AE$15+'Res-Appliance class'!$E35*'RES S curve-disconnect'!AE$20","v":-1292.5938454711443},{"$f":"'Res-Appliance class'!$B35*'RES S curve-disconnect'!AF$5+'Res-Appliance class'!$C35*'RES S curve-disconnect'!AF$10+'Res-Appliance class'!$D35*'RES S curve-disconnect'!AF$15+'Res-Appliance class'!$E35*'RES S curve-disconnect'!AF$20","v":-1089.6590628676468},{"$f":"'Res-Appliance class'!$B35*'RES S curve-disconnect'!AG$5+'Res-Appliance class'!$C35*'RES S curve-disconnect'!AG$10+'Res-Appliance class'!$D35*'RES S curve-disconnect'!AG$15+'Res-Appliance class'!$E35*'RES S curve-disconnect'!AG$20","v":-961.38853878653674},{"$f":"'Res-Appliance class'!$B35*'RES S curve-disconnect'!AH$5+'Res-Appliance class'!$C35*'RES S curve-disconnect'!AH$10+'Res-Appliance class'!$D35*'RES S curve-disconnect'!AH$15+'Res-Appliance class'!$E35*'RES S curve-disconnect'!AH$20","v":-781.91779578752812},{"$f":"'Res-Appliance class'!$B35*'RES S curve-disconnect'!AI$5+'Res-Appliance class'!$C35*'RES S curve-disconnect'!AI$10+'Res-Appliance class'!$D35*'RES S curve-disconnect'!AI$15+'Res-Appliance class'!$E35*'RES S curve-disconnect'!AI$20","v":-619.66311314964321},{"$f":"'Res-Appliance class'!$B35*'RES S curve-disconnect'!AJ$5+'Res-Appliance class'!$C35*'RES S curve-disconnect'!AJ$10+'Res-Appliance class'!$D35*'RES S curve-disconnect'!AJ$15+'Res-Appliance class'!$E35*'RES S curve-disconnect'!AJ$20","v":-473.42048190401096},{"$f":"'Res-Appliance class'!$B35*'RES S curve-disconnect'!AK$5+'Res-Appliance class'!$C35*'RES S curve-disconnect'!AK$10+'Res-Appliance class'!$D35*'RES S curve-disconnect'!AK$15+'Res-Appliance class'!$E35*'RES S curve-disconnect'!AK$20","v":-318.13225426271549},{"$f":"'Res-Appliance class'!$B35*'RES S curve-disconnect'!AL$5+'Res-Appliance class'!$C35*'RES S curve-disconnect'!AL$10+'Res-Appliance class'!$D35*'RES S curve-disconnect'!AL$15+'Res-Appliance class'!$E35*'RES S curve-disconnect'!AL$20","v":-858.04014377210478},{"$f":"'Res-Appliance class'!$B35*'RES S curve-disconnect'!AM$5+'Res-Appliance class'!$C35*'RES S curve-disconnect'!AM$10+'Res-Appliance class'!$D35*'RES S curve-disconnect'!AM$15+'Res-Appliance class'!$E35*'RES S curve-disconnect'!AM$20","v":-927.33251090639749},{"$f":"'Res-Appliance class'!$B35*'RES S curve-disconnect'!AN$5+'Res-Appliance class'!$C35*'RES S curve-disconnect'!AN$10+'Res-Appliance class'!$D35*'RES S curve-disconnect'!AN$15+'Res-Appliance class'!$E35*'RES S curve-disconnect'!AN$20","v":-779.64853071732591},{"$f":"'Res-Appliance class'!$B35*'RES S curve-disconnect'!AO$5+'Res-Appliance class'!$C35*'RES S curve-disconnect'!AO$10+'Res-Appliance class'!$D35*'RES S curve-disconnect'!AO$15+'Res-Appliance class'!$E35*'RES S curve-disconnect'!AO$20","v":-599.65579122561405},{"$f":"'Res-Appliance class'!$B35*'RES S curve-disconnect'!AP$5+'Res-Appliance class'!$C35*'RES S curve-disconnect'!AP$10+'Res-Appliance class'!$D35*'RES S curve-disconnect'!AP$15+'Res-Appliance class'!$E35*'RES S curve-disconnect'!AP$20","v":-433.74196244550001},{"$f":"'Res-Appliance class'!$B35*'RES S curve-disconnect'!AQ$5+'Res-Appliance class'!$C35*'RES S curve-disconnect'!AQ$10+'Res-Appliance class'!$D35*'RES S curve-disconnect'!AQ$15+'Res-Appliance class'!$E35*'RES S curve-disconnect'!AQ$20","v":-254.74094985160818},{"$f":"'Res-Appliance class'!$B35*'RES S curve-disconnect'!AR$5+'Res-Appliance class'!$C35*'RES S curve-disconnect'!AR$10+'Res-Appliance class'!$D35*'RES S curve-disconnect'!AR$15+'Res-Appliance class'!$E35*'RES S curve-disconnect'!AR$20","v":-58.417192271971032},{"$f":"'Res-Appliance class'!$B35*'RES S curve-disconnect'!AS$5+'Res-Appliance class'!$C35*'RES S curve-disconnect'!AS$10+'Res-Appliance class'!$D35*'RES S curve-disconnect'!AS$15+'Res-Appliance class'!$E35*'RES S curve-disconnect'!AS$20","v":161.8278574485596},{"$f":"'Res-Appliance class'!$B35*'RES S curve-disconnect'!AT$5+'Res-Appliance class'!$C35*'RES S curve-disconnect'!AT$10+'Res-Appliance class'!$D35*'RES S curve-disconnect'!AT$15+'Res-Appliance class'!$E35*'RES S curve-disconnect'!AT$20","v":407.93835134721536},{"$f":"'Res-Appliance class'!$B35*'RES S curve-disconnect'!AU$5+'Res-Appliance class'!$C35*'RES S curve-disconnect'!AU$10+'Res-Appliance class'!$D35*'RES S curve-disconnect'!AU$15+'Res-Appliance class'!$E35*'RES S curve-disconnect'!AU$20","v":692.95937082079661},{"$f":"'Res-Appliance class'!$B35*'RES S curve-disconnect'!AV$5+'Res-Appliance class'!$C35*'RES S curve-disconnect'!AV$10+'Res-Appliance class'!$D35*'RES S curve-disconnect'!AV$15+'Res-Appliance class'!$E35*'RES S curve-disconnect'!AV$20","v":1017.769142943336},{"$f":"'Res-Appliance class'!$B35*'RES S curve-disconnect'!AW$5+'Res-Appliance class'!$C35*'RES S curve-disconnect'!AW$10+'Res-Appliance class'!$D35*'RES S curve-disconnect'!AW$15+'Res-Appliance class'!$E35*'RES S curve-disconnect'!AW$20","v":1390.9651647246587},{"$f":"'Res-Appliance class'!$B35*'RES S curve-disconnect'!AX$5+'Res-Appliance class'!$C35*'RES S curve-disconnect'!AX$10+'Res-Appliance class'!$D35*'RES S curve-disconnect'!AX$15+'Res-Appliance class'!$E35*'RES S curve-disconnect'!AX$20","v":1815.9303951130664},{"$f":"'Res-Appliance class'!$B35*'RES S curve-disconnect'!AY$5+'Res-Appliance class'!$C35*'RES S curve-disconnect'!AY$10+'Res-Appliance class'!$D35*'RES S curve-disconnect'!AY$15+'Res-Appliance class'!$E35*'RES S curve-disconnect'!AY$20","v":2306.4253084291199},{"$f":"'Res-Appliance class'!$B35*'RES S curve-disconnect'!AZ$5+'Res-Appliance class'!$C35*'RES S curve-disconnect'!AZ$10+'Res-Appliance class'!$D35*'RES S curve-disconnect'!AZ$15+'Res-Appliance class'!$E35*'RES S curve-disconnect'!AZ$20","v":2866.6657406690792},{"$f":"'Res-Appliance class'!$B35*'RES S curve-disconnect'!BA$5+'Res-Appliance class'!$C35*'RES S curve-disconnect'!BA$10+'Res-Appliance class'!$D35*'RES S curve-disconnect'!BA$15+'Res-Appliance class'!$E35*'RES S curve-disconnect'!BA$20","v":3515.1543192318495},{"$f":"'Res-Appliance class'!$B35*'RES S curve-disconnect'!BB$5+'Res-Appliance class'!$C35*'RES S curve-disconnect'!BB$10+'Res-Appliance class'!$D35*'RES S curve-disconnect'!BB$15+'Res-Appliance class'!$E35*'RES S curve-disconnect'!BB$20","v":4272.2296511292679},{"$f":"'Res-Appliance class'!$B35*'RES S curve-disconnect'!BC$5+'Res-Appliance class'!$C35*'RES S curve-disconnect'!BC$10+'Res-Appliance class'!$D35*'RES S curve-disconnect'!BC$15+'Res-Appliance class'!$E35*'RES S curve-disconnect'!BC$20","v":5174.945240584997},{"$f":"'Res-Appliance class'!$B35*'RES S curve-disconnect'!BD$5+'Res-Appliance class'!$C35*'RES S curve-disconnect'!BD$10+'Res-Appliance class'!$D35*'RES S curve-disconnect'!BD$15+'Res-Appliance class'!$E35*'RES S curve-disconnect'!BD$20","v":6044.3512967929501},{"$f":"'Res-Appliance class'!$B35*'RES S curve-disconnect'!BE$5+'Res-Appliance class'!$C35*'RES S curve-disconnect'!BE$10+'Res-Appliance class'!$D35*'RES S curve-disconnect'!BE$15+'Res-Appliance class'!$E35*'RES S curve-disconnect'!BE$20","v":6838.5164482361961},{"$f":"'Res-Appliance class'!$B35*'RES S curve-disconnect'!BF$5+'Res-Appliance class'!$C35*'RES S curve-disconnect'!BF$10+'Res-Appliance class'!$D35*'RES S curve-disconnect'!BF$15+'Res-Appliance class'!$E35*'RES S curve-disconnect'!BF$20","v":7651.2377854816405},{"$f":"'Res-Appliance class'!$B35*'RES S curve-disconnect'!BG$5+'Res-Appliance class'!$C35*'RES S curve-disconnect'!BG$10+'Res-Appliance class'!$D35*'RES S curve-disconnect'!BG$15+'Res-Appliance class'!$E35*'RES S curve-disconnect'!BG$20","v":8571.5937373236775},{"$f":"'Res-Appliance class'!$B35*'RES S curve-disconnect'!BH$5+'Res-Appliance class'!$C35*'RES S curve-disconnect'!BH$10+'Res-Appliance class'!$D35*'RES S curve-disconnect'!BH$15+'Res-Appliance class'!$E35*'RES S curve-disconnect'!BH$20","v":9663.7801660819168},{"$f":"'Res-Appliance class'!$B35*'RES S curve-disconnect'!BI$5+'Res-Appliance class'!$C35*'RES S curve-disconnect'!BI$10+'Res-Appliance class'!$D35*'RES S curve-disconnect'!BI$15+'Res-Appliance class'!$E35*'RES S curve-disconnect'!BI$20","v":11246.683492549731},{"$f":"'Res-Appliance class'!$B35*'RES S curve-disconnect'!BJ$5+'Res-Appliance class'!$C35*'RES S curve-disconnect'!BJ$10+'Res-Appliance class'!$D35*'RES S curve-disconnect'!BJ$15+'Res-Appliance class'!$E35*'RES S curve-disconnect'!BJ$20","v":13563.266176618974},{"$f":"'Res-Appliance class'!$B35*'RES S curve-disconnect'!BK$5+'Res-Appliance class'!$C35*'RES S curve-disconnect'!BK$10+'Res-Appliance class'!$D35*'RES S curve-disconnect'!BK$15+'Res-Appliance class'!$E35*'RES S curve-disconnect'!BK$20","v":16979.624211318533},{"$f":"'Res-Appliance class'!$B35*'RES S curve-disconnect'!BL$5+'Res-Appliance class'!$C35*'RES S curve-disconnect'!BL$10+'Res-Appliance class'!$D35*'RES S curve-disconnect'!BL$15+'Res-Appliance class'!$E35*'RES S curve-disconnect'!BL$20","v":-2830.4009979192742},{"$f":"'Res-Appliance class'!$B35*'RES S curve-disconnect'!BM$5+'Res-Appliance class'!$C35*'RES S curve-disconnect'!BM$10+'Res-Appliance class'!$D35*'RES S curve-disconnect'!BM$15+'Res-Appliance class'!$E35*'RES S curve-disconnect'!BM$20","v":-2826.0269537101576},{"$f":"'Res-Appliance class'!$B35*'RES S curve-disconnect'!BN$5+'Res-Appliance class'!$C35*'RES S curve-disconnect'!BN$10+'Res-Appliance class'!$D35*'RES S curve-disconnect'!BN$15+'Res-Appliance class'!$E35*'RES S curve-disconnect'!BN$20","v":-2823.9222229922207},{"$f":"'Res-Appliance class'!$B35*'RES S curve-disconnect'!BO$5+'Res-Appliance class'!$C35*'RES S curve-disconnect'!BO$10+'Res-Appliance class'!$D35*'RES S curve-disconnect'!BO$15+'Res-Appliance class'!$E35*'RES S curve-disconnect'!BO$20","v":-2817.298155038945},{"$f":"'Res-Appliance class'!$B35*'RES S curve-disconnect'!BP$5+'Res-Appliance class'!$C35*'RES S curve-disconnect'!BP$10+'Res-Appliance class'!$D35*'RES S curve-disconnect'!BP$15+'Res-Appliance class'!$E35*'RES S curve-disconnect'!BP$20","v":-2812.9433225824869},{"$f":"'Res-Appliance class'!$B35*'RES S curve-disconnect'!BQ$5+'Res-Appliance class'!$C35*'RES S curve-disconnect'!BQ$10+'Res-Appliance class'!$D35*'RES S curve-disconnect'!BQ$15+'Res-Appliance class'!$E35*'RES S curve-disconnect'!BQ$20","v":-2808.5948164547203},{"$f":"'Res-Appliance class'!$B35*'RES S curve-disconnect'!BR$5+'Res-Appliance class'!$C35*'RES S curve-disconnect'!BR$10+'Res-Appliance class'!$D35*'RES S curve-disconnect'!BR$15+'Res-Appliance class'!$E35*'RES S curve-disconnect'!BR$20","v":-2806.5154688001503},{"$f":"'Res-Appliance class'!$B35*'RES S curve-disconnect'!BS$5+'Res-Appliance class'!$C35*'RES S curve-disconnect'!BS$10+'Res-Appliance class'!$D35*'RES S curve-disconnect'!BS$15+'Res-Appliance class'!$E35*'RES S curve-disconnect'!BS$20","v":-2799.9166298599421},{"$f":"'Res-Appliance class'!$B35*'RES S curve-disconnect'!BT$5+'Res-Appliance class'!$C35*'RES S curve-disconnect'!BT$10+'Res-Appliance class'!$D35*'RES S curve-disconnect'!BT$15+'Res-Appliance class'!$E35*'RES S curve-disconnect'!BT$20","v":-2795.5868733278066},{"$f":"'Res-Appliance class'!$B35*'RES S curve-disconnect'!BU$5+'Res-Appliance class'!$C35*'RES S curve-disconnect'!BU$10+'Res-Appliance class'!$D35*'RES S curve-disconnect'!BU$15+'Res-Appliance class'!$E35*'RES S curve-disconnect'!BU$20","v":-2791.2632909910944},{"$f":"'Res-Appliance class'!$B35*'RES S curve-disconnect'!BV$5+'Res-Appliance class'!$C35*'RES S curve-disconnect'!BV$10+'Res-Appliance class'!$D35*'RES S curve-disconnect'!BV$15+'Res-Appliance class'!$E35*'RES S curve-disconnect'!BV$20","v":-2789.2087159437397},{"$f":"'Res-Appliance class'!$B35*'RES S curve-disconnect'!BW$5+'Res-Appliance class'!$C35*'RES S curve-disconnect'!BW$10+'Res-Appliance class'!$D35*'RES S curve-disconnect'!BW$15+'Res-Appliance class'!$E35*'RES S curve-disconnect'!BW$20","v":-2782.6344993703315},{"$f":"'Res-Appliance class'!$B35*'RES S curve-disconnect'!BX$5+'Res-Appliance class'!$C35*'RES S curve-disconnect'!BX$10+'Res-Appliance class'!$D35*'RES S curve-disconnect'!BX$15+'Res-Appliance class'!$E35*'RES S curve-disconnect'!BX$20","v":-2778.3292159020375},{"$f":"'Res-Appliance class'!$B35*'RES S curve-disconnect'!BY$5+'Res-Appliance class'!$C35*'RES S curve-disconnect'!BY$10+'Res-Appliance class'!$D35*'RES S curve-disconnect'!BY$15+'Res-Appliance class'!$E35*'RES S curve-disconnect'!BY$20","v":-2774.0299582577345},{"$f":"'Res-Appliance class'!$B35*'RES S curve-disconnect'!BZ$5+'Res-Appliance class'!$C35*'RES S curve-disconnect'!BZ$10+'Res-Appliance class'!$D35*'RES S curve-disconnect'!BZ$15+'Res-Appliance class'!$E35*'RES S curve-disconnect'!BZ$20","v":-2771.9995604569926},{"$f":"'Res-Appliance class'!$B35*'RES S curve-disconnect'!CA$5+'Res-Appliance class'!$C35*'RES S curve-disconnect'!CA$10+'Res-Appliance class'!$D35*'RES S curve-disconnect'!CA$15+'Res-Appliance class'!$E35*'RES S curve-disconnect'!CA$20","v":-2765.449374604179},{"$f":"'Res-Appliance class'!$B35*'RES S curve-disconnect'!CB$5+'Res-Appliance class'!$C35*'RES S curve-disconnect'!CB$10+'Res-Appliance class'!$D35*'RES S curve-disconnect'!CB$15+'Res-Appliance class'!$E35*'RES S curve-disconnect'!CB$20","v":-2761.1679762444237},{"$f":"'Res-Appliance class'!$B35*'RES S curve-disconnect'!CC$5+'Res-Appliance class'!$C35*'RES S curve-disconnect'!CC$10+'Res-Appliance class'!$D35*'RES S curve-disconnect'!CC$15+'Res-Appliance class'!$E35*'RES S curve-disconnect'!CC$20","v":-2756.8924590047855},{"$f":"'Res-Appliance class'!$B35*'RES S curve-disconnect'!CD$5+'Res-Appliance class'!$C35*'RES S curve-disconnect'!CD$10+'Res-Appliance class'!$D35*'RES S curve-disconnect'!CD$15+'Res-Appliance class'!$E35*'RES S curve-disconnect'!CD$20","v":-2821.22676663325}]
["Knox (C)",null,{"$f":"'Res-Appliance class'!$B36*'RES S curve-disconnect'!C$5+'Res-Appliance class'!$C36*'RES S curve-disconnect'!C$10+'Res-Appliance class'!$D36*'RES S curve-disconnect'!C$15+'Res-Appliance class'!$E36*'RES S curve-disconnect'!C$20","v":-5540.2975397945211},{"$f":"'Res-Appliance class'!$B36*'RES S curve-disconnect'!D$5+'Res-Appliance class'!$C36*'RES S curve-disconnect'!D$10+'Res-Appliance class'!$D36*'RES S curve-disconnect'!D$15+'Res-Appliance class'!$E36*'RES S curve-disconnect'!D$20","v":-5905.0946145760472},{"$f":"'Res-Appliance class'!$B36*'RES S curve-disconnect'!E$5+'Res-Appliance class'!$C36*'RES S curve-disconnect'!E$10+'Res-Appliance class'!$D36*'RES S curve-disconnect'!E$15+'Res-Appliance class'!$E36*'RES S curve-disconnect'!E$20","v":-4911.2816259985357},{"$f":"'Res-Appliance class'!$B36*'RES S curve-disconnect'!F$5+'Res-Appliance class'!$C36*'RES S curve-disconnect'!F$10+'Res-Appliance class'!$D36*'RES S curve-disconnect'!F$15+'Res-Appliance class'!$E36*'RES S curve-disconnect'!F$20","v":-4801.2312960412582},{"$f":"'Res-Appliance class'!$B36*'RES S curve-disconnect'!G$5+'Res-Appliance class'!$C36*'RES S curve-disconnect'!G$10+'Res-Appliance class'!$D36*'RES S curve-disconnect'!G$15+'Res-Appliance class'!$E36*'RES S curve-disconnect'!G$20","v":-5990.3845606492987},{"$f":"'Res-Appliance class'!$B36*'RES S curve-disconnect'!H$5+'Res-Appliance class'!$C36*'RES S curve-disconnect'!H$10+'Res-Appliance class'!$D36*'RES S curve-disconnect'!H$15+'Res-Appliance class'!$E36*'RES S curve-disconnect'!H$20","v":-6021.5242308951947},{"$f":"'Res-Appliance class'!$B36*'RES S curve-disconnect'!I$5+'Res-Appliance class'!$C36*'RES S curve-disconnect'!I$10+'Res-Appliance class'!$D36*'RES S curve-disconnect'!I$15+'Res-Appliance class'!$E36*'RES S curve-disconnect'!I$20","v":-5710.4506468039326},{"$f":"'Res-Appliance class'!$B36*'RES S curve-disconnect'!J$5+'Res-Appliance class'!$C36*'RES S curve-disconnect'!J$10+'Res-Appliance class'!$D36*'RES S curve-disconnect'!J$15+'Res-Appliance class'!$E36*'RES S curve-disconnect'!J$20","v":-6080.4342895102791},{"$f":"'Res-Appliance class'!$B36*'RES S curve-disconnect'!K$5+'Res-Appliance class'!$C36*'RES S curve-disconnect'!K$10+'Res-Appliance class'!$D36*'RES S curve-disconnect'!K$15+'Res-Appliance class'!$E36*'RES S curve-disconnect'!K$20","v":-5403.7652673140756},{"$f":"'Res-Appliance class'!$B36*'RES S curve-disconnect'!L$5+'Res-Appliance class'!$C36*'RES S curve-disconnect'!L$10+'Res-Appliance class'!$D36*'RES S curve-disconnect'!L$15+'Res-Appliance class'!$E36*'RES S curve-disconnect'!L$20","v":-5633.5746837734769},{"$f":"'Res-Appliance class'!$B36*'RES S curve-disconnect'!M$5+'Res-Appliance class'!$C36*'RES S curve-disconnect'!M$10+'Res-Appliance class'!$D36*'RES S curve-disconnect'!M$15+'Res-Appliance class'!$E36*'RES S curve-disconnect'!M$20","v":-6070.9964856230863},{"$f":"'Res-Appliance class'!$B36*'RES S curve-disconnect'!N$5+'Res-Appliance class'!$C36*'RES S curve-disconnect'!N$10+'Res-Appliance class'!$D36*'RES S curve-disconnect'!N$15+'Res-Appliance class'!$E36*'RES S curve-disconnect'!N$20","v":-6094.4842439980202},{"$f":"'Res-Appliance class'!$B36*'RES S curve-disconnect'!O$5+'Res-Appliance class'!$C36*'RES S curve-disconnect'!O$10+'Res-Appliance class'!$D36*'RES S curve-disconnect'!O$15+'Res-Appliance class'!$E36*'RES S curve-disconnect'!O$20","v":-5674.7600779202221},{"$f":"'Res-Appliance class'!$B36*'RES S curve-disconnect'!P$5+'Res-Appliance class'!$C36*'RES S curve-disconnect'!P$10+'Res-Appliance class'!$D36*'RES S curve-disconnect'!P$15+'Res-Appliance class'!$E36*'RES S curve-disconnect'!P$20","v":-5336.1745734300011},{"$f":"'Res-Appliance class'!$B36*'RES S curve-disconnect'!Q$5+'Res-Appliance class'!$C36*'RES S curve-disconnect'!Q$10+'Res-Appliance class'!$D36*'RES S curve-disconnect'!Q$15+'Res-Appliance class'!$E36*'RES S curve-disconnect'!Q$20","v":-4834.499893245541},{"$f":"'Res-Appliance class'!$B36*'RES S curve-disconnect'!R$5+'Res-Appliance class'!$C36*'RES S curve-disconnect'!R$10+'Res-Appliance class'!$D36*'RES S curve-disconnect'!R$15+'Res-Appliance class'!$E36*'RES S curve-disconnect'!R$20","v":-4541.8537866712259},{"$f":"'Res-Appliance class'!$B36*'RES S curve-disconnect'!S$5+'Res-Appliance class'!$C36*'RES S curve-disconnect'!S$10+'Res-Appliance class'!$D36*'RES S curve-disconnect'!S$15+'Res-Appliance class'!$E36*'RES S curve-disconnect'!S$20","v":-4088.5579175426183},{"$f":"'Res-Appliance class'!$B36*'RES S curve-disconnect'!T$5+'Res-Appliance class'!$C36*'RES S curve-disconnect'!T$10+'Res-Appliance class'!$D36*'RES S curve-disconnect'!T$15+'Res-Appliance class'!$E36*'RES S curve-disconnect'!T$20","v":-3831.9637913176493},{"$f":"'Res-Appliance class'!$B36*'RES S curve-disconnect'!U$5+'Res-Appliance class'!$C36*'RES S curve-disconnect'!U$10+'Res-Appliance class'!$D36*'RES S curve-disconnect'!U$15+'Res-Appliance class'!$E36*'RES S curve-disconnect'!U$20","v":-3542.9254628632534},{"$f":"'Res-Appliance class'!$B36*'RES S curve-disconnect'!V$5+'Res-Appliance class'!$C36*'RES S curve-disconnect'!V$10+'Res-Appliance class'!$D36*'RES S curve-disconnect'!V$15+'Res-Appliance class'!$E36*'RES S curve-disconnect'!V$20","v":-3340.2278652353543},{"$f":"'Res-Appliance class'!$B36*'RES S curve-disconnect'!W$5+'Res-Appliance class'!$C36*'RES S curve-disconnect'!W$10+'Res-Appliance class'!$D36*'RES S curve-disconnect'!W$15+'Res-Appliance class'!$E36*'RES S curve-disconnect'!W$20","v":-3178.2151081516668},{"$f":"'Res-Appliance class'!$B36*'RES S curve-disconnect'!X$5+'Res-Appliance class'!$C36*'RES S curve-disconnect'!X$10+'Res-Appliance class'!$D36*'RES S curve-disconnect'!X$15+'Res-Appliance class'!$E36*'RES S curve-disconnect'!X$20","v":-2833.586350102602},{"$f":"'Res-Appliance class'!$B36*'RES S curve-disconnect'!Y$5+'Res-Appliance class'!$C36*'RES S curve-disconnect'!Y$10+'Res-Appliance class'!$D36*'RES S curve-disconnect'!Y$15+'Res-Appliance class'!$E36*'RES S curve-disconnect'!Y$20","v":-2485.3876222412441},{"$f":"'Res-Appliance class'!$B36*'RES S curve-disconnect'!Z$5+'Res-Appliance class'!$C36*'RES S curve-disconnect'!Z$10+'Res-Appliance class'!$D36*'RES S curve-disconnect'!Z$15+'Res-Appliance class'!$E36*'RES S curve-disconnect'!Z$20","v":-2244.0145418366933},{"$f":"'Res-Appliance class'!$B36*'RES S curve-disconnect'!AA$5+'Res-Appliance class'!$C36*'RES S curve-disconnect'!AA$10+'Res-Appliance class'!$D36*'RES S curve-disconnect'!AA$15+'Res-Appliance class'!$E36*'RES S curve-disconnect'!AA$20","v":-2002.9191325081197},{"$f":"'Res-Appliance class'!$B36*'RES S curve-disconnect'!AB$5+'Res-Appliance class'!$C36*'RES S curve-disconnect'!AB$10+'Res-Appliance class'!$D36*'RES S curve-disconnect'!AB$15+'Res-Appliance class'!$E36*'RES S curve-disconnect'!AB$20","v":-1806.9556131171605},{"$f":"'Res-Appliance class'!$B36*'RES S curve-disconnect'!AC$5+'Res-Appliance class'!$C36*'RES S curve-disconnect'!AC$10+'Res-Appliance class'!$D36*'RES S curve-disconnect'!AC$15+'Res-Appliance class'!$E36*'RES S curve-disconnect'!AC$20","v":-1617.7242209138876},{"$f":"'Res-Appliance class'!$B36*'RES S curve-disconnect'!AD$5+'Res-Appliance class'!$C36*'RES S curve-disconnect'!AD$10+'Res-Appliance class'!$D36*'RES S curve-disconnect'!AD$15+'Res-Appliance class'!$E36*'RES S curve-disconnect'!AD$20","v":-1442.768607307087},{"$f":"'Res-Appliance class'!$B36*'RES S curve-disconnect'!AE$5+'Res-Appliance class'!$C36*'RES S curve-disconnect'!AE$10+'Res-Appliance class'!$D36*'RES S curve-disconnect'!AE$15+'Res-Appliance class'!$E36*'RES S curve-disconnect'!AE$20","v":-1260.1552410509801},{"$f":"'Res-Appliance class'!$B36*'RES S curve-disconnect'!AF$5+'Res-Appliance class'!$C36*'RES S curve-disconnect'!AF$10+'Res-Appliance class'!$D36*'RES S curve-disconnect'!AF$15+'Res-Appliance class'!$E36*'RES S curve-disconnect'!AF$20","v":-1028.7667758006232},{"$f":"'Res-Appliance class'!$B36*'RES S curve-disconnect'!AG$5+'Res-Appliance class'!$C36*'RES S curve-disconnect'!AG$10+'Res-Appliance class'!$D36*'RES S curve-disconnect'!AG$15+'Res-Appliance class'!$E36*'RES S curve-disconnect'!AG$20","v":-881.6081419293306},{"$f":"'Res-Appliance class'!$B36*'RES S curve-disconnect'!AH$5+'Res-Appliance class'!$C36*'RES S curve-disconnect'!AH$10+'Res-Appliance class'!$D36*'RES S curve-disconnect'!AH$15+'Res-Appliance class'!$E36*'RES S curve-disconnect'!AH$20","v":-673.93033475357902},{"$f":"'Res-Appliance class'!$B36*'RES S curve-disconnect'!AI$5+'Res-Appliance class'!$C36*'RES S curve-disconnect'!AI$10+'Res-Appliance class'!$D36*'RES S curve-disconnect'!AI$15+'Res-Appliance class'!$E36*'RES S curve-disconnect'!AI$20","v":-487.79371261488177},{"$f":"'Res-Appliance class'!$B36*'RES S curve-disconnect'!AJ$5+'Res-Appliance class'!$C36*'RES S curve-disconnect'!AJ$10+'Res-Appliance class'!$D36*'RES S curve-disconnect'!AJ$15+'Res-Appliance class'!$E36*'RES S curve-disconnect'!AJ$20","v":-319.69529941365863},{"$f":"'Res-Appliance class'!$B36*'RES S curve-disconnect'!AK$5+'Res-Appliance class'!$C36*'RES S curve-disconnect'!AK$10+'Res-Appliance class'!$D36*'RES S curve-disconnect'!AK$15+'Res-Appliance class'!$E36*'RES S curve-disconnect'!AK$20","v":-141.25386076487291},{"$f":"'Res-Appliance class'!$B36*'RES S curve-disconnect'!AL$5+'Res-Appliance class'!$C36*'RES S curve-disconnect'!AL$10+'Res-Appliance class'!$D36*'RES S curve-disconnect'!AL$15+'Res-Appliance class'!$E36*'RES S curve-disconnect'!AL$20","v":-757.5183883149017},{"$f":"'Res-Appliance class'!$B36*'RES S curve-disconnect'!AM$5+'Res-Appliance class'!$C36*'RES S curve-disconnect'!AM$10+'Res-Appliance class'!$D36*'RES S curve-disconnect'!AM$15+'Res-Appliance class'!$E36*'RES S curve-disconnect'!AM$20","v":-839.05810109207539},{"$f":"'Res-Appliance class'!$B36*'RES S curve-disconnect'!AN$5+'Res-Appliance class'!$C36*'RES S curve-disconnect'!AN$10+'Res-Appliance class'!$D36*'RES S curve-disconnect'!AN$15+'Res-Appliance class'!$E36*'RES S curve-disconnect'!AN$20","v":-670.60197967989257},{"$f":"'Res-Appliance class'!$B36*'RES S curve-disconnect'!AO$5+'Res-Appliance class'!$C36*'RES S curve-disconnect'!AO$10+'Res-Appliance class'!$D36*'RES S curve-disconnect'!AO$15+'Res-Appliance class'!$E36*'RES S curve-disconnect'!AO$20","v":-464.1128603850417},{"$f":"'Res-Appliance class'!$B36*'RES S curve-disconnect'!AP$5+'Res-Appliance class'!$C36*'RES S curve-disconnect'!AP$10+'Res-Appliance class'!$D36*'RES S curve-disconnect'!AP$15+'Res-Appliance class'!$E36*'RES S curve-disconnect'!AP$20","v":-273.08117429923959},{"$f":"'Res-Appliance class'!$B36*'RES S curve-disconnect'!AQ$5+'Res-Appliance class'!$C36*'RES S curve-disconnect'!AQ$10+'Res-Appliance class'!$D36*'RES S curve-disconnect'!AQ$15+'Res-Appliance class'!$E36*'RES S curve-disconnect'!AQ$20","v":-67.687053052846522},{"$f":"'Res-Appliance class'!$B36*'RES S curve-disconnect'!AR$5+'Res-Appliance class'!$C36*'RES S curve-disconnect'!AR$10+'Res-Appliance class'!$D36*'RES S curve-disconnect'!AR$15+'Res-Appliance class'!$E36*'RES S curve-disconnect'!AR$20","v":158.00003355255927},{"$f":"'Res-Appliance class'!$B36*'RES S curve-disconnect'!AS$5+'Res-Appliance class'!$C36*'RES S curve-disconnect'!AS$10+'Res-Appliance class'!$D36*'RES S curve-disconnect'!AS$15+'Res-Appliance class'!$E36*'RES S curve-disconnect'!AS$20","v":411.2973361926521},{"$f":"'Res-Appliance class'!$B36*'RES S curve-disconnect'!AT$5+'Res-Appliance class'!$C36*'RES S curve-disconnect'!AT$10+'Res-Appliance class'!$D36*'RES S curve-disconnect'!AT$15+'Res-Appliance class'!$E36*'RES S curve-disconnect'!AT$20","v":694.82242683752088},{"$f":"'Res-Appliance class'!$B36*'RES S curve-disconnect'!AU$5+'Res-Appliance class'!$C36*'RES S curve-disconnect'!AU$10+'Res-Appliance class'!$D36*'RES S curve-disconnect'!AU$15+'Res-Appliance class'!$E36*'RES S curve-disconnect'!AU$20","v":1022.6018809573538},{"$f":"'Res-Appliance class'!$B36*'RES S curve-disconnect'!AV$5+'Res-Appliance class'!$C36*'RES S curve-disconnect'!AV$10+'Res-Appliance class'!$D36*'RES S curve-disconnect'!AV$15+'Res-Appliance class'!$E36*'RES S curve-disconnect'!AV$20","v":1396.7344864643112},{"$f":"'Res-Appliance class'!$B36*'RES S curve-disconnect'!AW$5+'Res-Appliance class'!$C36*'RES S curve-disconnect'!AW$10+'Res-Appliance class'!$D36*'RES S curve-disconnect'!AW$15+'Res-Appliance class'!$E36*'RES S curve-disconnect'!AW$20","v":1826.884757599463},{"$f":"'Res-Appliance class'!$B36*'RES S curve-disconnect'!AX$5+'Res-Appliance class'!$C36*'RES S curve-disconnect'!AX$10+'Res-Appliance class'!$D36*'RES S curve-disconnect'!AX$15+'Res-Appliance class'!$E36*'RES S curve-disconnect'!AX$20","v":2317.42763488936},{"$f":"'Res-Appliance class'!$B36*'RES S curve-disconnect'!AY$5+'Res-Appliance class'!$C36*'RES S curve-disconnect'!AY$10+'Res-Appliance class'!$D36*'RES S curve-disconnect'!AY$15+'Res-Appliance class'!$E36*'RES S curve-disconnect'!AY$20","v":2883.3301071106139},{"$f":"'Res-Appliance class'!$B36*'RES S curve-disconnect'!AZ$5+'Res-Appliance class'!$C36*'RES S curve-disconnect'!AZ$10+'Res-Appliance class'!$D36*'RES S curve-disconnect'!AZ$15+'Res-Appliance class'!$E36*'RES S curve-disconnect'!AZ$20","v":3530.6520835643605},{"$f":"'Res-Appliance class'!$B36*'RES S curve-disconnect'!BA$5+'Res-Appliance class'!$C36*'RES S curve-disconnect'!BA$10+'Res-Appliance class'!$D36*'RES S curve-disconnect'!BA$15+'Res-Appliance class'!$E36*'RES S curve-disconnect'!BA$20","v":4280.5932421866783},{"$f":"'Res-Appliance class'!$B36*'RES S curve-disconnect'!BB$5+'Res-Appliance class'!$C36*'RES S curve-disconnect'!BB$10+'Res-Appliance class'!$D36*'RES S curve-disconnect'!BB$15+'Res-Appliance class'!$E36*'RES S curve-disconnect'!BB$20","v":5157.2631856422358},{"$f":"'Res-Appliance class'!$B36*'RES S curve-disconnect'!BC$5+'Res-Appliance class'!$C36*'RES S curve-disconnect'!BC$10+'Res-Appliance class'!$D36*'RES S curve-disconnect'!BC$15+'Res-Appliance class'!$E36*'RES S curve-disconnect'!BC$20","v":6202.7944363474116},{"$f":"'Res-Appliance class'!$B36*'RES S curve-disconnect'!BD$5+'Res-Appliance class'!$C36*'RES S curve-disconnect'!BD$10+'Res-Appliance class'!$D36*'RES S curve-disconnect'!BD$15+'Res-Appliance class'!$E36*'RES S curve-disconnect'!BD$20","v":7212.7118433849073},{"$f":"'Res-Appliance class'!$B36*'RES S curve-disconnect'!BE$5+'Res-Appliance class'!$C36*'RES S curve-disconnect'!BE$10+'Res-Appliance class'!$D36*'RES S curve-disconnect'!BE$15+'Res-Appliance class'!$E36*'RES S curve-disconnect'!BE$20","v":8136.2187306100623},{"$f":"'Res-Appliance class'!$B36*'RES S curve-disconnect'!BF$5+'Res-Appliance class'!$C36*'RES S curve-disconnect'!BF$10+'Res-Appliance class'!$D36*'RES S curve-disconnect'!BF$15+'Res-Appliance class'!$E36*'RES S curve-disconnect'!BF$20","v":9081.0106732010099},{"$f":"'Res-Appliance class'!$B36*'RES S curve-disconnect'!BG$5+'Res-Appliance class'!$C36*'RES S curve-disconnect'!BG$10+'Res-Appliance class'!$D36*'RES S curve-disconnect'!BG$15+'Res-Appliance class'!$E36*'RES S curve-disconnect'!BG$20","v":10149.811838127125},{"$f":"'Res-Appliance class'!$B36*'RES S curve-disconnect'!BH$5+'Res-Appliance class'!$C36*'RES S curve-disconnect'!BH$10+'Res-Appliance class'!$D36*'RES S curve-disconnect'!BH$15+'Res-Appliance class'!$E36*'RES S curve-disconnect'!BH$20","v":11418.833662820032},{"$f":"'Res-Appliance class'!$B36*'RES S curve-disconnect'!BI$5+'Res-Appliance class'!$C36*'RES S curve-disconnect'!BI$10+'Res-Appliance class'!$D36*'RES S curve-disconnect'!BI$15+'Res-Appliance class'!$E36*'RES S curve-disconnect'!BI$20","v":13257.340788600533},{"$f":"'Res-Appliance class'!$B36*'RES S curve-disconnect'!BJ$5+'Res-Appliance class'!$C36*'RES S curve-disconnect'!BJ$10+'Res-Appliance class'!$D36*'RES S curve-disconnect'!BJ$15+'Res-Appliance class'!$E36*'RES S curve-disconnect'!BJ$20","v":15951.44799468454},{"$f":"'Res-Appliance class'!$B36*'RES S curve-disconnect'!BK$5+'Res-Appliance class'!$C36*'RES S curve-disconnect'!BK$10+'Res-Appliance class'!$D36*'RES S curve-disconnect'!BK$15+'Res-Appliance class'!$E36*'RES S curve-disconnect'!BK$20","v":19929.635854461714},{"$f":"'Res-Appliance class'!$B36*'RES S curve-disconnect'!BL$5+'Res-Appliance class'!$C36*'RES S curve-disconnect'!BL$10+'Res-Appliance class'!$D36*'RES S curve-disconnect'!BL$15+'Res-Appliance class'!$E36*'RES S curve-disconnect'!BL$20","v":-3013.6233680045793},{"$f":"'Res-Appliance class'!$B36*'RES S curve-disconnect'!BM$5+'Res-Appliance class'!$C36*'RES S curve-disconnect'!BM$10+'Res-Appliance class'!$D36*'RES S curve-disconnect'!BM$15+'Res-Appliance class'!$E36*'RES S curve-disconnect'!BM$20","v":-3008.6049735640368},{"$f":"'Res-Appliance class'!$B36*'RES S curve-disconnect'!BN$5+'Res-Appliance class'!$C36*'RES S curve-disconnect'!BN$10+'Res-Appliance class'!$D36*'RES S curve-disconnect'!BN$15+'Res-Appliance class'!$E36*'RES S curve-disconnect'!BN$20","v":-3005.8562752574644},{"$f":"'Res-Appliance class'!$B36*'RES S curve-disconnect'!BO$5+'Res-Appliance class'!$C36*'RES S curve-disconnect'!BO$10+'Res-Appliance class'!$D36*'RES S curve-disconnect'!BO$15+'Res-Appliance class'!$E36*'RES S curve-disconnect'!BO$20","v":-2998.5886204895878},{"$f":"'Res-Appliance class'!$B36*'RES S curve-disconnect'!BP$5+'Res-Appliance class'!$C36*'RES S curve-disconnect'!BP$10+'Res-Appliance class'!$D36*'RES S curve-disconnect'!BP$15+'Res-Appliance class'!$E36*'RES S curve-disconnect'!BP$20","v":-2993.5905801340841},{"$f":"'Res-Appliance class'!$B36*'RES S curve-disconnect'!BQ$5+'Res-Appliance class'!$C36*'RES S curve-disconnect'!BQ$10+'Res-Appliance class'!$D36*'RES S curve-disconnect'!BQ$15+'Res-Appliance class'!$E36*'RES S curve-disconnect'!BQ$20","v":-2988.5992431745672},{"$f":"'Res-Appliance class'!$B36*'RES S curve-disconnect'!BR$5+'Res-Appliance class'!$C36*'RES S curve-disconnect'!BR$10+'Res-Appliance class'!$D36*'RES S curve-disconnect'!BR$15+'Res-Appliance class'!$E36*'RES S curve-disconnect'!BR$20","v":-2985.8774399174363},{"$f":"'Res-Appliance class'!$B36*'RES S curve-disconnect'!BS$5+'Res-Appliance class'!$C36*'RES S curve-disconnect'!BS$10+'Res-Appliance class'!$D36*'RES S curve-disconnect'!BS$15+'Res-Appliance class'!$E36*'RES S curve-disconnect'!BS$20","v":-2978.6365187758447},{"$f":"'Res-Appliance class'!$B36*'RES S curve-disconnect'!BT$5+'Res-Appliance class'!$C36*'RES S curve-disconnect'!BT$10+'Res-Appliance class'!$D36*'RES S curve-disconnect'!BT$15+'Res-Appliance class'!$E36*'RES S curve-disconnect'!BT$20","v":-2973.6650516255322},{"$f":"'Res-Appliance class'!$B36*'RES S curve-disconnect'!BU$5+'Res-Appliance class'!$C36*'RES S curve-disconnect'!BU$10+'Res-Appliance class'!$D36*'RES S curve-disconnect'!BU$15+'Res-Appliance class'!$E36*'RES S curve-disconnect'!BU$20","v":-2968.7001284458529},{"$f":"'Res-Appliance class'!$B36*'RES S curve-disconnect'!BV$5+'Res-Appliance class'!$C36*'RES S curve-disconnect'!BV$10+'Res-Appliance class'!$D36*'RES S curve-disconnect'!BV$15+'Res-Appliance class'!$E36*'RES S curve-disconnect'!BV$20","v":-2966.0045805326617},{"$f":"'Res-Appliance class'!$B36*'RES S curve-disconnect'!BW$5+'Res-Appliance class'!$C36*'RES S curve-disconnect'!BW$10+'Res-Appliance class'!$D36*'RES S curve-disconnect'!BW$15+'Res-Appliance class'!$E36*'RES S curve-disconnect'!BW$20","v":-2958.7897572823276},{"$f":"'Res-Appliance class'!$B36*'RES S curve-disconnect'!BX$5+'Res-Appliance class'!$C36*'RES S curve-disconnect'!BX$10+'Res-Appliance class'!$D36*'RES S curve-disconnect'!BX$15+'Res-Appliance class'!$E36*'RES S curve-disconnect'!BX$20","v":-2953.8442315476013},{"$f":"'Res-Appliance class'!$B36*'RES S curve-disconnect'!BY$5+'Res-Appliance class'!$C36*'RES S curve-disconnect'!BY$10+'Res-Appliance class'!$D36*'RES S curve-disconnect'!BY$15+'Res-Appliance class'!$E36*'RES S curve-disconnect'!BY$20","v":-2948.9050942786807},{"$f":"'Res-Appliance class'!$B36*'RES S curve-disconnect'!BZ$5+'Res-Appliance class'!$C36*'RES S curve-disconnect'!BZ$10+'Res-Appliance class'!$D36*'RES S curve-disconnect'!BZ$15+'Res-Appliance class'!$E36*'RES S curve-disconnect'!BZ$20","v":-2946.2351777361487},{"$f":"'Res-Appliance class'!$B36*'RES S curve-disconnect'!CA$5+'Res-Appliance class'!$C36*'RES S curve-disconnect'!CA$10+'Res-Appliance class'!$D36*'RES S curve-disconnect'!CA$15+'Res-Appliance class'!$E36*'RES S curve-disconnect'!CA$20","v":-2939.0458322750064},{"$f":"'Res-Appliance class'!$B36*'RES S curve-disconnect'!CB$5+'Res-Appliance class'!$C36*'RES S curve-disconnect'!CB$10+'Res-Appliance class'!$D36*'RES S curve-disconnect'!CB$15+'Res-Appliance class'!$E36*'RES S curve-disconnect'!CB$20","v":-2934.1256317005946},{"$f":"'Res-Appliance class'!$B36*'RES S curve-disconnect'!CC$5+'Res-Appliance class'!$C36*'RES S curve-disconnect'!CC$10+'Res-Appliance class'!$D36*'RES S curve-disconnect'!CC$15+'Res-Appliance class'!$E36*'RES S curve-disconnect'!CC$20","v":-2929.211667909693},{"$f":"'Res-Appliance class'!$B36*'RES S curve-disconnect'!CD$5+'Res-Appliance class'!$C36*'RES S curve-disconnect'!CD$10+'Res-Appliance class'!$D36*'RES S curve-disconnect'!CD$15+'Res-Appliance class'!$E36*'RES S curve-disconnect'!CD$20","v":-3004.5755203939957}]
["Manningham (C)",null,{"$f":"'Res-Appliance class'!$B37*'RES S curve-disconnect'!C$5+'Res-Appliance class'!$C37*'RES S curve-disconnect'!C$10+'Res-Appliance class'!$D37*'RES S curve-disconnect'!C$15+'Res-Appliance class'!$E37*'RES S curve-disconnect'!C$20","v":-5490.4080691766158},{"$f":"'Res-Appliance class'!$B37*'RES S curve-disconnect'!D$5+'Res-Appliance class'!$C37*'RES S curve-disconnect'!D$10+'Res-Appliance class'!$D37*'RES S curve-disconnect'!D$15+'Res-Appliance class'!$E37*'RES S curve-disconnect'!D$20","v":-5854.4541919563535},{"$f":"'Res-Appliance class'!$B37*'RES S curve-disconnect'!E$5+'Res-Appliance class'!$C37*'RES S curve-disconnect'!E$10+'Res-Appliance class'!$D37*'RES S curve-disconnect'!E$15+'Res-Appliance class'!$E37*'RES S curve-disconnect'!E$20","v":-4859.7740010205189},{"$f":"'Res-Appliance class'!$B37*'RES S curve-disconnect'!F$5+'Res-Appliance class'!$C37*'RES S curve-disconnect'!F$10+'Res-Appliance class'!$D37*'RES S curve-disconnect'!F$15+'Res-Appliance class'!$E37*'RES S curve-disconnect'!F$20","v":-4749.9630396262},{"$f":"'Res-Appliance class'!$B37*'RES S curve-disconnect'!G$5+'Res-Appliance class'!$C37*'RES S curve-disconnect'!G$10+'Res-Appliance class'!$D37*'RES S curve-disconnect'!G$15+'Res-Appliance class'!$E37*'RES S curve-disconnect'!G$20","v":-5948.8029784863274},{"$f":"'Res-Appliance class'!$B37*'RES S curve-disconnect'!H$5+'Res-Appliance class'!$C37*'RES S curve-disconnect'!H$10+'Res-Appliance class'!$D37*'RES S curve-disconnect'!H$15+'Res-Appliance class'!$E37*'RES S curve-disconnect'!H$20","v":-5976.5624943873281},{"$f":"'Res-Appliance class'!$B37*'RES S curve-disconnect'!I$5+'Res-Appliance class'!$C37*'RES S curve-disconnect'!I$10+'Res-Appliance class'!$D37*'RES S curve-disconnect'!I$15+'Res-Appliance class'!$E37*'RES S curve-disconnect'!I$20","v":-5665.6350916567462},{"$f":"'Res-Appliance class'!$B37*'RES S curve-disconnect'!J$5+'Res-Appliance class'!$C37*'RES S curve-disconnect'!J$10+'Res-Appliance class'!$D37*'RES S curve-disconnect'!J$15+'Res-Appliance class'!$E37*'RES S curve-disconnect'!J$20","v":-6030.1930604236404},{"$f":"'Res-Appliance class'!$B37*'RES S curve-disconnect'!K$5+'Res-Appliance class'!$C37*'RES S curve-disconnect'!K$10+'Res-Appliance class'!$D37*'RES S curve-disconnect'!K$15+'Res-Appliance class'!$E37*'RES S curve-disconnect'!K$20","v":-5354.7452024706499},{"$f":"'Res-Appliance class'!$B37*'RES S curve-disconnect'!L$5+'Res-Appliance class'!$C37*'RES S curve-disconnect'!L$10+'Res-Appliance class'!$D37*'RES S curve-disconnect'!L$15+'Res-Appliance class'!$E37*'RES S curve-disconnect'!L$20","v":-5584.3419058100653},{"$f":"'Res-Appliance class'!$B37*'RES S curve-disconnect'!M$5+'Res-Appliance class'!$C37*'RES S curve-disconnect'!M$10+'Res-Appliance class'!$D37*'RES S curve-disconnect'!M$15+'Res-Appliance class'!$E37*'RES S curve-disconnect'!M$20","v":-6022.2491188280901},{"$f":"'Res-Appliance class'!$B37*'RES S curve-disconnect'!N$5+'Res-Appliance class'!$C37*'RES S curve-disconnect'!N$10+'Res-Appliance class'!$D37*'RES S curve-disconnect'!N$15+'Res-Appliance class'!$E37*'RES S curve-disconnect'!N$20","v":-6046.0341189111705},{"$f":"'Res-Appliance class'!$B37*'RES S curve-disconnect'!O$5+'Res-Appliance class'!$C37*'RES S curve-disconnect'!O$10+'Res-Appliance class'!$D37*'RES S curve-disconnect'!O$15+'Res-Appliance class'!$E37*'RES S curve-disconnect'!O$20","v":-5626.8028713435124},{"$f":"'Res-Appliance class'!$B37*'RES S curve-disconnect'!P$5+'Res-Appliance class'!$C37*'RES S curve-disconnect'!P$10+'Res-Appliance class'!$D37*'RES S curve-disconnect'!P$15+'Res-Appliance class'!$E37*'RES S curve-disconnect'!P$20","v":-5288.5708428609951},{"$f":"'Res-Appliance class'!$B37*'RES S curve-disconnect'!Q$5+'Res-Appliance class'!$C37*'RES S curve-disconnect'!Q$10+'Res-Appliance class'!$D37*'RES S curve-disconnect'!Q$15+'Res-Appliance class'!$E37*'RES S curve-disconnect'!Q$20","v":-4787.2911741393818},{"$f":"'Res-Appliance class'!$B37*'RES S curve-disconnect'!R$5+'Res-Appliance class'!$C37*'RES S curve-disconnect'!R$10+'Res-Appliance class'!$D37*'RES S curve-disconnect'!R$15+'Res-Appliance class'!$E37*'RES S curve-disconnect'!R$20","v":-4494.9782129702744},{"$f":"'Res-Appliance class'!$B37*'RES S curve-disconnect'!S$5+'Res-Appliance class'!$C37*'RES S curve-disconnect'!S$10+'Res-Appliance class'!$D37*'RES S curve-disconnect'!S$15+'Res-Appliance class'!$E37*'RES S curve-disconnect'!S$20","v":-4042.0275715783278},{"$f":"'Res-Appliance class'!$B37*'RES S curve-disconnect'!T$5+'Res-Appliance class'!$C37*'RES S curve-disconnect'!T$10+'Res-Appliance class'!$D37*'RES S curve-disconnect'!T$15+'Res-Appliance class'!$E37*'RES S curve-disconnect'!T$20","v":-3785.8035196016772},{"$f":"'Res-Appliance class'!$B37*'RES S curve-disconnect'!U$5+'Res-Appliance class'!$C37*'RES S curve-disconnect'!U$10+'Res-Appliance class'!$D37*'RES S curve-disconnect'!U$15+'Res-Appliance class'!$E37*'RES S curve-disconnect'!U$20","v":-3497.1503873284673},{"$f":"'Res-Appliance class'!$B37*'RES S curve-disconnect'!V$5+'Res-Appliance class'!$C37*'RES S curve-disconnect'!V$10+'Res-Appliance class'!$D37*'RES S curve-disconnect'!V$15+'Res-Appliance class'!$E37*'RES S curve-disconnect'!V$20","v":-3294.858696290019},{"$f":"'Res-Appliance class'!$B37*'RES S curve-disconnect'!W$5+'Res-Appliance class'!$C37*'RES S curve-disconnect'!W$10+'Res-Appliance class'!$D37*'RES S curve-disconnect'!W$15+'Res-Appliance class'!$E37*'RES S curve-disconnect'!W$20","v":-3133.1594205483416},{"$f":"'Res-Appliance class'!$B37*'RES S curve-disconnect'!X$5+'Res-Appliance class'!$C37*'RES S curve-disconnect'!X$10+'Res-Appliance class'!$D37*'RES S curve-disconnect'!X$15+'Res-Appliance class'!$E37*'RES S curve-disconnect'!X$20","v":-2788.8347699597084},{"$f":"'Res-Appliance class'!$B37*'RES S curve-disconnect'!Y$5+'Res-Appliance class'!$C37*'RES S curve-disconnect'!Y$10+'Res-Appliance class'!$D37*'RES S curve-disconnect'!Y$15+'Res-Appliance class'!$E37*'RES S curve-disconnect'!Y$20","v":-2440.941965491591},{"$f":"'Res-Appliance class'!$B37*'RES S curve-disconnect'!Z$5+'Res-Appliance class'!$C37*'RES S curve-disconnect'!Z$10+'Res-Appliance class'!$D37*'RES S curve-disconnect'!Z$15+'Res-Appliance class'!$E37*'RES S curve-disconnect'!Z$20","v":-2199.8821660944841},{"$f":"'Res-Appliance class'!$B37*'RES S curve-disconnect'!AA$5+'Res-Appliance class'!$C37*'RES S curve-disconnect'!AA$10+'Res-Appliance class'!$D37*'RES S curve-disconnect'!AA$15+'Res-Appliance class'!$E37*'RES S curve-disconnect'!AA$20","v":-1959.101219472449},{"$f":"'Res-Appliance class'!$B37*'RES S curve-disconnect'!AB$5+'Res-Appliance class'!$C37*'RES S curve-disconnect'!AB$10+'Res-Appliance class'!$D37*'RES S curve-disconnect'!AB$15+'Res-Appliance class'!$E37*'RES S curve-disconnect'!AB$20","v":-1763.3836269382678},{"$f":"'Res-Appliance class'!$B37*'RES S curve-disconnect'!AC$5+'Res-Appliance class'!$C37*'RES S curve-disconnect'!AC$10+'Res-Appliance class'!$D37*'RES S curve-disconnect'!AC$15+'Res-Appliance class'!$E37*'RES S curve-disconnect'!AC$20","v":-1574.3963947323396},{"$f":"'Res-Appliance class'!$B37*'RES S curve-disconnect'!AD$5+'Res-Appliance class'!$C37*'RES S curve-disconnect'!AD$10+'Res-Appliance class'!$D37*'RES S curve-disconnect'!AD$15+'Res-Appliance class'!$E37*'RES S curve-disconnect'!AD$20","v":-1399.6833712490893},{"$f":"'Res-Appliance class'!$B37*'RES S curve-disconnect'!AE$5+'Res-Appliance class'!$C37*'RES S curve-disconnect'!AE$10+'Res-Appliance class'!$D37*'RES S curve-disconnect'!AE$15+'Res-Appliance class'!$E37*'RES S curve-disconnect'!AE$20","v":-1217.3108817355096},{"$f":"'Res-Appliance class'!$B37*'RES S curve-disconnect'!AF$5+'Res-Appliance class'!$C37*'RES S curve-disconnect'!AF$10+'Res-Appliance class'!$D37*'RES S curve-disconnect'!AF$15+'Res-Appliance class'!$E37*'RES S curve-disconnect'!AF$20","v":-986.15807175659711},{"$f":"'Res-Appliance class'!$B37*'RES S curve-disconnect'!AG$5+'Res-Appliance class'!$C37*'RES S curve-disconnect'!AG$10+'Res-Appliance class'!$D37*'RES S curve-disconnect'!AG$15+'Res-Appliance class'!$E37*'RES S curve-disconnect'!AG$20","v":-839.00150062688431},{"$f":"'Res-Appliance class'!$B37*'RES S curve-disconnect'!AH$5+'Res-Appliance class'!$C37*'RES S curve-disconnect'!AH$10+'Res-Appliance class'!$D37*'RES S curve-disconnect'!AH$15+'Res-Appliance class'!$E37*'RES S curve-disconnect'!AH$20","v":-631.32196392540743},{"$f":"'Res-Appliance class'!$B37*'RES S curve-disconnect'!AI$5+'Res-Appliance class'!$C37*'RES S curve-disconnect'!AI$10+'Res-Appliance class'!$D37*'RES S curve-disconnect'!AI$15+'Res-Appliance class'!$E37*'RES S curve-disconnect'!AI$20","v":-445.18526787099711},{"$f":"'Res-Appliance class'!$B37*'RES S curve-disconnect'!AJ$5+'Res-Appliance class'!$C37*'RES S curve-disconnect'!AJ$10+'Res-Appliance class'!$D37*'RES S curve-disconnect'!AJ$15+'Res-Appliance class'!$E37*'RES S curve-disconnect'!AJ$20","v":-277.08751898824852},{"$f":"'Res-Appliance class'!$B37*'RES S curve-disconnect'!AK$5+'Res-Appliance class'!$C37*'RES S curve-disconnect'!AK$10+'Res-Appliance class'!$D37*'RES S curve-disconnect'!AK$15+'Res-Appliance class'!$E37*'RES S curve-disconnect'!AK$20","v":-98.64615643451117},{"$f":"'Res-Appliance class'!$B37*'RES S curve-disconnect'!AL$5+'Res-Appliance class'!$C37*'RES S curve-disconnect'!AL$10+'Res-Appliance class'!$D37*'RES S curve-disconnect'!AL$15+'Res-Appliance class'!$E37*'RES S curve-disconnect'!AL$20","v":-714.95041956955265},{"$f":"'Res-Appliance class'!$B37*'RES S curve-disconnect'!AM$5+'Res-Appliance class'!$C37*'RES S curve-disconnect'!AM$10+'Res-Appliance class'!$D37*'RES S curve-disconnect'!AM$15+'Res-Appliance class'!$E37*'RES S curve-disconnect'!AM$20","v":-796.50420307072602},{"$f":"'Res-Appliance class'!$B37*'RES S curve-disconnect'!AN$5+'Res-Appliance class'!$C37*'RES S curve-disconnect'!AN$10+'Res-Appliance class'!$D37*'RES S curve-disconnect'!AN$15+'Res-Appliance class'!$E37*'RES S curve-disconnect'!AN$20","v":-628.04890057696605},{"$f":"'Res-Appliance class'!$B37*'RES S curve-disconnect'!AO$5+'Res-Appliance class'!$C37*'RES S curve-disconnect'!AO$10+'Res-Appliance class'!$D37*'RES S curve-disconnect'!AO$15+'Res-Appliance class'!$E37*'RES S curve-disconnect'!AO$20","v":-421.55824647298806},{"$f":"'Res-Appliance class'!$B37*'RES S curve-disconnect'!AP$5+'Res-Appliance class'!$C37*'RES S curve-disconnect'!AP$10+'Res-Appliance class'!$D37*'RES S curve-disconnect'!AP$15+'Res-Appliance class'!$E37*'RES S curve-disconnect'!AP$20","v":-230.52550808919233},{"$f":"'Res-Appliance class'!$B37*'RES S curve-disconnect'!AQ$5+'Res-Appliance class'!$C37*'RES S curve-disconnect'!AQ$10+'Res-Appliance class'!$D37*'RES S curve-disconnect'!AQ$15+'Res-Appliance class'!$E37*'RES S curve-disconnect'!AQ$20","v":-25.129758001878486},{"$f":"'Res-Appliance class'!$B37*'RES S curve-disconnect'!AR$5+'Res-Appliance class'!$C37*'RES S curve-disconnect'!AR$10+'Res-Appliance class'!$D37*'RES S curve-disconnect'!AR$15+'Res-Appliance class'!$E37*'RES S curve-disconnect'!AR$20","v":200.56021024233866},{"$f":"'Res-Appliance class'!$B37*'RES S curve-disconnect'!AS$5+'Res-Appliance class'!$C37*'RES S curve-disconnect'!AS$10+'Res-Appliance class'!$D37*'RES S curve-disconnect'!AS$15+'Res-Appliance class'!$E37*'RES S curve-disconnect'!AS$20","v":453.86193380381212},{"$f":"'Res-Appliance class'!$B37*'RES S curve-disconnect'!AT$5+'Res-Appliance class'!$C37*'RES S curve-disconnect'!AT$10+'Res-Appliance class'!$D37*'RES S curve-disconnect'!AT$15+'Res-Appliance class'!$E37*'RES S curve-disconnect'!AT$20","v":737.39325306087915},{"$f":"'Res-Appliance class'!$B37*'RES S curve-disconnect'!AU$5+'Res-Appliance class'!$C37*'RES S curve-disconnect'!AU$10+'Res-Appliance class'!$D37*'RES S curve-disconnect'!AU$15+'Res-Appliance class'!$E37*'RES S curve-disconnect'!AU$20","v":1065.1811348933486},{"$f":"'Res-Appliance class'!$B37*'RES S curve-disconnect'!AV$5+'Res-Appliance class'!$C37*'RES S curve-disconnect'!AV$10+'Res-Appliance class'!$D37*'RES S curve-disconnect'!AV$15+'Res-Appliance class'!$E37*'RES S curve-disconnect'!AV$20","v":1439.32485407321},{"$f":"'Res-Appliance class'!$B37*'RES S curve-disconnect'!AW$5+'Res-Appliance class'!$C37*'RES S curve-disconnect'!AW$10+'Res-Appliance class'!$D37*'RES S curve-disconnect'!AW$15+'Res-Appliance class'!$E37*'RES S curve-disconnect'!AW$20","v":1869.4893504021359},{"$f":"'Res-Appliance class'!$B37*'RES S curve-disconnect'!AX$5+'Res-Appliance class'!$C37*'RES S curve-disconnect'!AX$10+'Res-Appliance class'!$D37*'RES S curve-disconnect'!AX$15+'Res-Appliance class'!$E37*'RES S curve-disconnect'!AX$20","v":2360.0499600122816},{"$f":"'Res-Appliance class'!$B37*'RES S curve-disconnect'!AY$5+'Res-Appliance class'!$C37*'RES S curve-disconnect'!AY$10+'Res-Appliance class'!$D37*'RES S curve-disconnect'!AY$15+'Res-Appliance class'!$E37*'RES S curve-disconnect'!AY$20","v":2925.9741529408761},{"$f":"'Res-Appliance class'!$B37*'RES S curve-disconnect'!AZ$5+'Res-Appliance class'!$C37*'RES S curve-disconnect'!AZ$10+'Res-Appliance class'!$D37*'RES S curve-disconnect'!AZ$15+'Res-Appliance class'!$E37*'RES S curve-disconnect'!AZ$20","v":3573.3225742974873},{"$f":"'Res-Appliance class'!$B37*'RES S curve-disconnect'!BA$5+'Res-Appliance class'!$C37*'RES S curve-disconnect'!BA$10+'Res-Appliance class'!$D37*'RES S curve-disconnect'!BA$15+'Res-Appliance class'!$E37*'RES S curve-disconnect'!BA$20","v":4323.2959783800588},{"$f":"'Res-Appliance class'!$B37*'RES S curve-disconnect'!BB$5+'Res-Appliance class'!$C37*'RES S curve-disconnect'!BB$10+'Res-Appliance class'!$D37*'RES S curve-disconnect'!BB$15+'Res-Appliance class'!$E37*'RES S curve-disconnect'!BB$20","v":5200.0054729898075},{"$f":"'Res-Appliance class'!$B37*'RES S curve-disconnect'!BC$5+'Res-Appliance class'!$C37*'RES S curve-disconnect'!BC$10+'Res-Appliance class'!$D37*'RES S curve-disconnect'!BC$15+'Res-Appliance class'!$E37*'RES S curve-disconnect'!BC$20","v":6245.5856079095793},{"$f":"'Res-Appliance class'!$B37*'RES S curve-disconnect'!BD$5+'Res-Appliance class'!$C37*'RES S curve-disconnect'!BD$10+'Res-Appliance class'!$D37*'RES S curve-disconnect'!BD$15+'Res-Appliance class'!$E37*'RES S curve-disconnect'!BD$20","v":7255.5510408149376},{"$f":"'Res-Appliance class'!$B37*'RES S curve-disconnect'!BE$5+'Res-Appliance class'!$C37*'RES S curve-disconnect'!BE$10+'Res-Appliance class'!$D37*'RES S curve-disconnect'!BE$15+'Res-Appliance class'!$E37*'RES S curve-disconnect'!BE$20","v":8179.1015556722723},{"$f":"'Res-Appliance class'!$B37*'RES S curve-disconnect'!BF$5+'Res-Appliance class'!$C37*'RES S curve-disconnect'!BF$10+'Res-Appliance class'!$D37*'RES S curve-disconnect'!BF$15+'Res-Appliance class'!$E37*'RES S curve-disconnect'!BF$20","v":9123.9382762003243},{"$f":"'Res-Appliance class'!$B37*'RES S curve-disconnect'!BG$5+'Res-Appliance class'!$C37*'RES S curve-disconnect'!BG$10+'Res-Appliance class'!$D37*'RES S curve-disconnect'!BG$15+'Res-Appliance class'!$E37*'RES S curve-disconnect'!BG$20","v":10192.790817003008},{"$f":"'Res-Appliance class'!$B37*'RES S curve-disconnect'!BH$5+'Res-Appliance class'!$C37*'RES S curve-disconnect'!BH$10+'Res-Appliance class'!$D37*'RES S curve-disconnect'!BH$15+'Res-Appliance class'!$E37*'RES S curve-disconnect'!BH$20","v":11461.875412307774},{"$f":"'Res-Appliance class'!$B37*'RES S curve-disconnect'!BI$5+'Res-Appliance class'!$C37*'RES S curve-disconnect'!BI$10+'Res-Appliance class'!$D37*'RES S curve-disconnect'!BI$15+'Res-Appliance class'!$E37*'RES S curve-disconnect'!BI$20","v":13300.476816493074},{"$f":"'Res-Appliance class'!$B37*'RES S curve-disconnect'!BJ$5+'Res-Appliance class'!$C37*'RES S curve-disconnect'!BJ$10+'Res-Appliance class'!$D37*'RES S curve-disconnect'!BJ$15+'Res-Appliance class'!$E37*'RES S curve-disconnect'!BJ$20","v":15994.727036899227},{"$f":"'Res-Appliance class'!$B37*'RES S curve-disconnect'!BK$5+'Res-Appliance class'!$C37*'RES S curve-disconnect'!BK$10+'Res-Appliance class'!$D37*'RES S curve-disconnect'!BK$15+'Res-Appliance class'!$E37*'RES S curve-disconnect'!BK$20","v":19973.131553509629},{"$f":"'Res-Appliance class'!$B37*'RES S curve-disconnect'!BL$5+'Res-Appliance class'!$C37*'RES S curve-disconnect'!BL$10+'Res-Appliance class'!$D37*'RES S curve-disconnect'!BL$15+'Res-Appliance class'!$E37*'RES S curve-disconnect'!BL$20","v":-2971.3862054049578},{"$f":"'Res-Appliance class'!$B37*'RES S curve-disconnect'!BM$5+'Res-Appliance class'!$C37*'RES S curve-disconnect'!BM$10+'Res-Appliance class'!$D37*'RES S curve-disconnect'!BM$15+'Res-Appliance class'!$E37*'RES S curve-disconnect'!BM$20","v":-2966.3750907445901},{"$f":"'Res-Appliance class'!$B37*'RES S curve-disconnect'!BN$5+'Res-Appliance class'!$C37*'RES S curve-disconnect'!BN$10+'Res-Appliance class'!$D37*'RES S curve-disconnect'!BN$15+'Res-Appliance class'!$E37*'RES S curve-disconnect'!BN$20","v":-2963.6336148236669},{"$f":"'Res-Appliance class'!$B37*'RES S curve-disconnect'!BO$5+'Res-Appliance class'!$C37*'RES S curve-disconnect'!BO$10+'Res-Appliance class'!$D37*'RES S curve-disconnect'!BO$15+'Res-Appliance class'!$E37*'RES S curve-disconnect'!BO$20","v":-2956.3731254414697},{"$f":"'Res-Appliance class'!$B37*'RES S curve-disconnect'!BP$5+'Res-Appliance class'!$C37*'RES S curve-disconnect'!BP$10+'Res-Appliance class'!$D37*'RES S curve-disconnect'!BP$15+'Res-Appliance class'!$E37*'RES S curve-disconnect'!BP$20","v":-2951.3821938636279},{"$f":"'Res-Appliance class'!$B37*'RES S curve-disconnect'!BQ$5+'Res-Appliance class'!$C37*'RES S curve-disconnect'!BQ$10+'Res-Appliance class'!$D37*'RES S curve-disconnect'!BQ$15+'Res-Appliance class'!$E37*'RES S curve-disconnect'!BQ$20","v":-2946.3979094631204},{"$f":"'Res-Appliance class'!$B37*'RES S curve-disconnect'!BR$5+'Res-Appliance class'!$C37*'RES S curve-disconnect'!BR$10+'Res-Appliance class'!$D37*'RES S curve-disconnect'!BR$15+'Res-Appliance class'!$E37*'RES S curve-disconnect'!BR$20","v":-2943.6831029331397},{"$f":"'Res-Appliance class'!$B37*'RES S curve-disconnect'!BS$5+'Res-Appliance class'!$C37*'RES S curve-disconnect'!BS$10+'Res-Appliance class'!$D37*'RES S curve-disconnect'!BS$15+'Res-Appliance class'!$E37*'RES S curve-disconnect'!BS$20","v":-2936.4491230710828},{"$f":"'Res-Appliance class'!$B37*'RES S curve-disconnect'!BT$5+'Res-Appliance class'!$C37*'RES S curve-disconnect'!BT$10+'Res-Appliance class'!$D37*'RES S curve-disconnect'!BT$15+'Res-Appliance class'!$E37*'RES S curve-disconnect'!BT$20","v":-2931.4845421343907},{"$f":"'Res-Appliance class'!$B37*'RES S curve-disconnect'!BU$5+'Res-Appliance class'!$C37*'RES S curve-disconnect'!BU$10+'Res-Appliance class'!$D37*'RES S curve-disconnect'!BU$15+'Res-Appliance class'!$E37*'RES S curve-disconnect'!BU$20","v":-2926.5264504816},{"$f":"'Res-Appliance class'!$B37*'RES S curve-disconnect'!BV$5+'Res-Appliance class'!$C37*'RES S curve-disconnect'!BV$10+'Res-Appliance class'!$D37*'RES S curve-disconnect'!BV$15+'Res-Appliance class'!$E37*'RES S curve-disconnect'!BV$20","v":-2923.8376797852457},{"$f":"'Res-Appliance class'!$B37*'RES S curve-disconnect'!BW$5+'Res-Appliance class'!$C37*'RES S curve-disconnect'!BW$10+'Res-Appliance class'!$D37*'RES S curve-disconnect'!BW$15+'Res-Appliance class'!$E37*'RES S curve-disconnect'!BW$20","v":-2916.6295798158862},{"$f":"'Res-Appliance class'!$B37*'RES S curve-disconnect'!BX$5+'Res-Appliance class'!$C37*'RES S curve-disconnect'!BX$10+'Res-Appliance class'!$D37*'RES S curve-disconnect'!BX$15+'Res-Appliance class'!$E37*'RES S curve-disconnect'!BX$20","v":-2911.6907237979899},{"$f":"'Res-Appliance class'!$B37*'RES S curve-disconnect'!BY$5+'Res-Appliance class'!$C37*'RES S curve-disconnect'!BY$10+'Res-Appliance class'!$D37*'RES S curve-disconnect'!BY$15+'Res-Appliance class'!$E37*'RES S curve-disconnect'!BY$20","v":-2906.7582030510193},{"$f":"'Res-Appliance class'!$B37*'RES S curve-disconnect'!BZ$5+'Res-Appliance class'!$C37*'RES S curve-disconnect'!BZ$10+'Res-Appliance class'!$D37*'RES S curve-disconnect'!BZ$15+'Res-Appliance class'!$E37*'RES S curve-disconnect'!BZ$20","v":-2904.094850202378},{"$f":"'Res-Appliance class'!$B37*'RES S curve-disconnect'!CA$5+'Res-Appliance class'!$C37*'RES S curve-disconnect'!CA$10+'Res-Appliance class'!$D37*'RES S curve-disconnect'!CA$15+'Res-Appliance class'!$E37*'RES S curve-disconnect'!CA$20","v":-2896.9120159714662},{"$f":"'Res-Appliance class'!$B37*'RES S curve-disconnect'!CB$5+'Res-Appliance class'!$C37*'RES S curve-disconnect'!CB$10+'Res-Appliance class'!$D37*'RES S curve-disconnect'!CB$15+'Res-Appliance class'!$E37*'RES S curve-disconnect'!CB$20","v":-2891.9982745256129},{"$f":"'Res-Appliance class'!$B37*'RES S curve-disconnect'!CC$5+'Res-Appliance class'!$C37*'RES S curve-disconnect'!CC$10+'Res-Appliance class'!$D37*'RES S curve-disconnect'!CC$15+'Res-Appliance class'!$E37*'RES S curve-disconnect'!CC$20","v":-2887.0907181211978},{"$f":"'Res-Appliance class'!$B37*'RES S curve-disconnect'!CD$5+'Res-Appliance class'!$C37*'RES S curve-disconnect'!CD$10+'Res-Appliance class'!$D37*'RES S curve-disconnect'!CD$15+'Res-Appliance class'!$E37*'RES S curve-disconnect'!CD$20","v":-2962.4655849031478}]
["Maroondah (C)",null,{"$f":"'Res-Appliance class'!$B38*'RES S curve-disconnect'!C$5+'Res-Appliance class'!$C38*'RES S curve-disconnect'!C$10+'Res-Appliance class'!$D38*'RES S curve-disconnect'!C$15+'Res-Appliance class'!$E38*'RES S curve-disconnect'!C$20","v":-5509.667921648781},{"$f":"'Res-Appliance class'!$B38*'RES S curve-disconnect'!D$5+'Res-Appliance class'!$C38*'RES S curve-disconnect'!D$10+'Res-Appliance class'!$D38*'RES S curve-disconnect'!D$15+'Res-Appliance class'!$E38*'RES S curve-disconnect'!D$20","v":-5873.8382541524961},{"$f":"'Res-Appliance class'!$B38*'RES S curve-disconnect'!E$5+'Res-Appliance class'!$C38*'RES S curve-disconnect'!E$10+'Res-Appliance class'!$D38*'RES S curve-disconnect'!E$15+'Res-Appliance class'!$E38*'RES S curve-disconnect'!E$20","v":-4881.0065002473766},{"$f":"'Res-Appliance class'!$B38*'RES S curve-disconnect'!F$5+'Res-Appliance class'!$C38*'RES S curve-disconnect'!F$10+'Res-Appliance class'!$D38*'RES S curve-disconnect'!F$15+'Res-Appliance class'!$E38*'RES S curve-disconnect'!F$20","v":-4771.1811808160946},{"$f":"'Res-Appliance class'!$B38*'RES S curve-disconnect'!G$5+'Res-Appliance class'!$C38*'RES S curve-disconnect'!G$10+'Res-Appliance class'!$D38*'RES S curve-disconnect'!G$15+'Res-Appliance class'!$E38*'RES S curve-disconnect'!G$20","v":-5961.9742275770013},{"$f":"'Res-Appliance class'!$B38*'RES S curve-disconnect'!H$5+'Res-Appliance class'!$C38*'RES S curve-disconnect'!H$10+'Res-Appliance class'!$D38*'RES S curve-disconnect'!H$15+'Res-Appliance class'!$E38*'RES S curve-disconnect'!H$20","v":-5990.9591838701663},{"$f":"'Res-Appliance class'!$B38*'RES S curve-disconnect'!I$5+'Res-Appliance class'!$C38*'RES S curve-disconnect'!I$10+'Res-Appliance class'!$D38*'RES S curve-disconnect'!I$15+'Res-Appliance class'!$E38*'RES S curve-disconnect'!I$20","v":-5680.4475175004136},{"$f":"'Res-Appliance class'!$B38*'RES S curve-disconnect'!J$5+'Res-Appliance class'!$C38*'RES S curve-disconnect'!J$10+'Res-Appliance class'!$D38*'RES S curve-disconnect'!J$15+'Res-Appliance class'!$E38*'RES S curve-disconnect'!J$20","v":-6049.0501238195884},{"$f":"'Res-Appliance class'!$B38*'RES S curve-disconnect'!K$5+'Res-Appliance class'!$C38*'RES S curve-disconnect'!K$10+'Res-Appliance class'!$D38*'RES S curve-disconnect'!K$15+'Res-Appliance class'!$E38*'RES S curve-disconnect'!K$20","v":-5373.9558430676825},{"$f":"'Res-Appliance class'!$B38*'RES S curve-disconnect'!L$5+'Res-Appliance class'!$C38*'RES S curve-disconnect'!L$10+'Res-Appliance class'!$D38*'RES S curve-disconnect'!L$15+'Res-Appliance class'!$E38*'RES S curve-disconnect'!L$20","v":-5603.4552286073076},{"$f":"'Res-Appliance class'!$B38*'RES S curve-disconnect'!M$5+'Res-Appliance class'!$C38*'RES S curve-disconnect'!M$10+'Res-Appliance class'!$D38*'RES S curve-disconnect'!M$15+'Res-Appliance class'!$E38*'RES S curve-disconnect'!M$20","v":-6040.1464479075594},{"$f":"'Res-Appliance class'!$B38*'RES S curve-disconnect'!N$5+'Res-Appliance class'!$C38*'RES S curve-disconnect'!N$10+'Res-Appliance class'!$D38*'RES S curve-disconnect'!N$15+'Res-Appliance class'!$E38*'RES S curve-disconnect'!N$20","v":-6063.6781734517781},{"$f":"'Res-Appliance class'!$B38*'RES S curve-disconnect'!O$5+'Res-Appliance class'!$C38*'RES S curve-disconnect'!O$10+'Res-Appliance class'!$D38*'RES S curve-disconnect'!O$15+'Res-Appliance class'!$E38*'RES S curve-disconnect'!O$20","v":-5644.7587180702258},{"$f":"'Res-Appliance class'!$B38*'RES S curve-disconnect'!P$5+'Res-Appliance class'!$C38*'RES S curve-disconnect'!P$10+'Res-Appliance class'!$D38*'RES S curve-disconnect'!P$15+'Res-Appliance class'!$E38*'RES S curve-disconnect'!P$20","v":-5306.8480805995951},{"$f":"'Res-Appliance class'!$B38*'RES S curve-disconnect'!Q$5+'Res-Appliance class'!$C38*'RES S curve-disconnect'!Q$10+'Res-Appliance class'!$D38*'RES S curve-disconnect'!Q$15+'Res-Appliance class'!$E38*'RES S curve-disconnect'!Q$20","v":-4806.1324484736542},{"$f":"'Res-Appliance class'!$B38*'RES S curve-disconnect'!R$5+'Res-Appliance class'!$C38*'RES S curve-disconnect'!R$10+'Res-Appliance class'!$D38*'RES S curve-disconnect'!R$15+'Res-Appliance class'!$E38*'RES S curve-disconnect'!R$20","v":-4514.0825905700212},{"$f":"'Res-Appliance class'!$B38*'RES S curve-disconnect'!S$5+'Res-Appliance class'!$C38*'RES S curve-disconnect'!S$10+'Res-Appliance class'!$D38*'RES S curve-disconnect'!S$15+'Res-Appliance class'!$E38*'RES S curve-disconnect'!S$20","v":-4061.6349058465571},{"$f":"'Res-Appliance class'!$B38*'RES S curve-disconnect'!T$5+'Res-Appliance class'!$C38*'RES S curve-disconnect'!T$10+'Res-Appliance class'!$D38*'RES S curve-disconnect'!T$15+'Res-Appliance class'!$E38*'RES S curve-disconnect'!T$20","v":-3805.6188119352387},{"$f":"'Res-Appliance class'!$B38*'RES S curve-disconnect'!U$5+'Res-Appliance class'!$C38*'RES S curve-disconnect'!U$10+'Res-Appliance class'!$D38*'RES S curve-disconnect'!U$15+'Res-Appliance class'!$E38*'RES S curve-disconnect'!U$20","v":-3517.1811743061417},{"$f":"'Res-Appliance class'!$B38*'RES S curve-disconnect'!V$5+'Res-Appliance class'!$C38*'RES S curve-disconnect'!V$10+'Res-Appliance class'!$D38*'RES S curve-disconnect'!V$15+'Res-Appliance class'!$E38*'RES S curve-disconnect'!V$20","v":-3314.9192175827347},{"$f":"'Res-Appliance class'!$B38*'RES S curve-disconnect'!W$5+'Res-Appliance class'!$C38*'RES S curve-disconnect'!W$10+'Res-Appliance class'!$D38*'RES S curve-disconnect'!W$15+'Res-Appliance class'!$E38*'RES S curve-disconnect'!W$20","v":-3153.2669356159277},{"$f":"'Res-Appliance class'!$B38*'RES S curve-disconnect'!X$5+'Res-Appliance class'!$C38*'RES S curve-disconnect'!X$10+'Res-Appliance class'!$D38*'RES S curve-disconnect'!X$15+'Res-Appliance class'!$E38*'RES S curve-disconnect'!X$20","v":-2809.3355140567442},{"$f":"'Res-Appliance class'!$B38*'RES S curve-disconnect'!Y$5+'Res-Appliance class'!$C38*'RES S curve-disconnect'!Y$10+'Res-Appliance class'!$D38*'RES S curve-disconnect'!Y$15+'Res-Appliance class'!$E38*'RES S curve-disconnect'!Y$20","v":-2461.8342240050661},{"$f":"'Res-Appliance class'!$B38*'RES S curve-disconnect'!Z$5+'Res-Appliance class'!$C38*'RES S curve-disconnect'!Z$10+'Res-Appliance class'!$D38*'RES S curve-disconnect'!Z$15+'Res-Appliance class'!$E38*'RES S curve-disconnect'!Z$20","v":-2220.9668220474218},{"$f":"'Res-Appliance class'!$B38*'RES S curve-disconnect'!AA$5+'Res-Appliance class'!$C38*'RES S curve-disconnect'!AA$10+'Res-Appliance class'!$D38*'RES S curve-disconnect'!AA$15+'Res-Appliance class'!$E38*'RES S curve-disconnect'!AA$20","v":-1980.3694155710382},{"$f":"'Res-Appliance class'!$B38*'RES S curve-disconnect'!AB$5+'Res-Appliance class'!$C38*'RES S curve-disconnect'!AB$10+'Res-Appliance class'!$D38*'RES S curve-disconnect'!AB$15+'Res-Appliance class'!$E38*'RES S curve-disconnect'!AB$20","v":-1784.8187723207677},{"$f":"'Res-Appliance class'!$B38*'RES S curve-disconnect'!AC$5+'Res-Appliance class'!$C38*'RES S curve-disconnect'!AC$10+'Res-Appliance class'!$D38*'RES S curve-disconnect'!AC$15+'Res-Appliance class'!$E38*'RES S curve-disconnect'!AC$20","v":-1595.9838795174028},{"$f":"'Res-Appliance class'!$B38*'RES S curve-disconnect'!AD$5+'Res-Appliance class'!$C38*'RES S curve-disconnect'!AD$10+'Res-Appliance class'!$D38*'RES S curve-disconnect'!AD$15+'Res-Appliance class'!$E38*'RES S curve-disconnect'!AD$20","v":-1421.4001991601949},{"$f":"'Res-Appliance class'!$B38*'RES S curve-disconnect'!AE$5+'Res-Appliance class'!$C38*'RES S curve-disconnect'!AE$10+'Res-Appliance class'!$D38*'RES S curve-disconnect'!AE$15+'Res-Appliance class'!$E38*'RES S curve-disconnect'!AE$20","v":-1239.1613925835848},{"$f":"'Res-Appliance class'!$B38*'RES S curve-disconnect'!AF$5+'Res-Appliance class'!$C38*'RES S curve-disconnect'!AF$10+'Res-Appliance class'!$D38*'RES S curve-disconnect'!AF$15+'Res-Appliance class'!$E38*'RES S curve-disconnect'!AF$20","v":-1008.2379259746463},{"$f":"'Res-Appliance class'!$B38*'RES S curve-disconnect'!AG$5+'Res-Appliance class'!$C38*'RES S curve-disconnect'!AG$10+'Res-Appliance class'!$D38*'RES S curve-disconnect'!AG$15+'Res-Appliance class'!$E38*'RES S curve-disconnect'!AG$20","v":-861.32276969042141},{"$f":"'Res-Appliance class'!$B38*'RES S curve-disconnect'!AH$5+'Res-Appliance class'!$C38*'RES S curve-disconnect'!AH$10+'Res-Appliance class'!$D38*'RES S curve-disconnect'!AH$15+'Res-Appliance class'!$E38*'RES S curve-disconnect'!AH$20","v":-654.00756054594785},{"$f":"'Res-Appliance class'!$B38*'RES S curve-disconnect'!AI$5+'Res-Appliance class'!$C38*'RES S curve-disconnect'!AI$10+'Res-Appliance class'!$D38*'RES S curve-disconnect'!AI$15+'Res-Appliance class'!$E38*'RES S curve-disconnect'!AI$20","v":-468.17822410363493},{"$f":"'Res-Appliance class'!$B38*'RES S curve-disconnect'!AJ$5+'Res-Appliance class'!$C38*'RES S curve-disconnect'!AJ$10+'Res-Appliance class'!$D38*'RES S curve-disconnect'!AJ$15+'Res-Appliance class'!$E38*'RES S curve-disconnect'!AJ$20","v":-300.36117556735564},{"$f":"'Res-Appliance class'!$B38*'RES S curve-disconnect'!AK$5+'Res-Appliance class'!$C38*'RES S curve-disconnect'!AK$10+'Res-Appliance class'!$D38*'RES S curve-disconnect'!AK$15+'Res-Appliance class'!$E38*'RES S curve-disconnect'!AK$20","v":-122.21767111568889},{"$f":"'Res-Appliance class'!$B38*'RES S curve-disconnect'!AL$5+'Res-Appliance class'!$C38*'RES S curve-disconnect'!AL$10+'Res-Appliance class'!$D38*'RES S curve-disconnect'!AL$15+'Res-Appliance class'!$E38*'RES S curve-disconnect'!AL$20","v":-737.50793055058591},{"$f":"'Res-Appliance class'!$B38*'RES S curve-disconnect'!AM$5+'Res-Appliance class'!$C38*'RES S curve-disconnect'!AM$10+'Res-Appliance class'!$D38*'RES S curve-disconnect'!AM$15+'Res-Appliance class'!$E38*'RES S curve-disconnect'!AM$20","v":-818.89296408828136},{"$f":"'Res-Appliance class'!$B38*'RES S curve-disconnect'!AN$5+'Res-Appliance class'!$C38*'RES S curve-disconnect'!AN$10+'Res-Appliance class'!$D38*'RES S curve-disconnect'!AN$15+'Res-Appliance class'!$E38*'RES S curve-disconnect'!AN$20","v":-650.70428440974501},{"$f":"'Res-Appliance class'!$B38*'RES S curve-disconnect'!AO$5+'Res-Appliance class'!$C38*'RES S curve-disconnect'!AO$10+'Res-Appliance class'!$D38*'RES S curve-disconnect'!AO$15+'Res-Appliance class'!$E38*'RES S curve-disconnect'!AO$20","v":-444.55577148523656},{"$f":"'Res-Appliance class'!$B38*'RES S curve-disconnect'!AP$5+'Res-Appliance class'!$C38*'RES S curve-disconnect'!AP$10+'Res-Appliance class'!$D38*'RES S curve-disconnect'!AP$15+'Res-Appliance class'!$E38*'RES S curve-disconnect'!AP$20","v":-253.84705118709945},{"$f":"'Res-Appliance class'!$B38*'RES S curve-disconnect'!AQ$5+'Res-Appliance class'!$C38*'RES S curve-disconnect'!AQ$10+'Res-Appliance class'!$D38*'RES S curve-disconnect'!AQ$15+'Res-Appliance class'!$E38*'RES S curve-disconnect'!AQ$20","v":-48.792182474323738},{"$f":"'Res-Appliance class'!$B38*'RES S curve-disconnect'!AR$5+'Res-Appliance class'!$C38*'RES S curve-disconnect'!AR$10+'Res-Appliance class'!$D38*'RES S curve-disconnect'!AR$15+'Res-Appliance class'!$E38*'RES S curve-disconnect'!AR$20","v":176.51769537648931},{"$f":"'Res-Appliance class'!$B38*'RES S curve-disconnect'!AS$5+'Res-Appliance class'!$C38*'RES S curve-disconnect'!AS$10+'Res-Appliance class'!$D38*'RES S curve-disconnect'!AS$15+'Res-Appliance class'!$E38*'RES S curve-disconnect'!AS$20","v":429.39064464598925},{"$f":"'Res-Appliance class'!$B38*'RES S curve-disconnect'!AT$5+'Res-Appliance class'!$C38*'RES S curve-disconnect'!AT$10+'Res-Appliance class'!$D38*'RES S curve-disconnect'!AT$15+'Res-Appliance class'!$E38*'RES S curve-disconnect'!AT$20","v":712.43562783867355},{"$f":"'Res-Appliance class'!$B38*'RES S curve-disconnect'!AU$5+'Res-Appliance class'!$C38*'RES S curve-disconnect'!AU$10+'Res-Appliance class'!$D38*'RES S curve-disconnect'!AU$15+'Res-Appliance class'!$E38*'RES S curve-disconnect'!AU$20","v":1039.6666723820501},{"$f":"'Res-Appliance class'!$B38*'RES S curve-disconnect'!AV$5+'Res-Appliance class'!$C38*'RES S curve-disconnect'!AV$10+'Res-Appliance class'!$D38*'RES S curve-disconnect'!AV$15+'Res-Appliance class'!$E38*'RES S curve-disconnect'!AV$20","v":1413.1669617942073},{"$f":"'Res-Appliance class'!$B38*'RES S curve-disconnect'!AW$5+'Res-Appliance class'!$C38*'RES S curve-disconnect'!AW$10+'Res-Appliance class'!$D38*'RES S curve-disconnect'!AW$15+'Res-Appliance class'!$E38*'RES S curve-disconnect'!AW$20","v":1842.5873689031969},{"$f":"'Res-Appliance class'!$B38*'RES S curve-disconnect'!AX$5+'Res-Appliance class'!$C38*'RES S curve-disconnect'!AX$10+'Res-Appliance class'!$D38*'RES S curve-disconnect'!AX$15+'Res-Appliance class'!$E38*'RES S curve-disconnect'!AX$20","v":2332.2901521176341},{"$f":"'Res-Appliance class'!$B38*'RES S curve-disconnect'!AY$5+'Res-Appliance class'!$C38*'RES S curve-disconnect'!AY$10+'Res-Appliance class'!$D38*'RES S curve-disconnect'!AY$15+'Res-Appliance class'!$E38*'RES S curve-disconnect'!AY$20","v":2897.2268753985873},{"$f":"'Res-Appliance class'!$B38*'RES S curve-disconnect'!AZ$5+'Res-Appliance class'!$C38*'RES S curve-disconnect'!AZ$10+'Res-Appliance class'!$D38*'RES S curve-disconnect'!AZ$15+'Res-Appliance class'!$E38*'RES S curve-disconnect'!AZ$20","v":3543.4338723529536},{"$f":"'Res-Appliance class'!$B38*'RES S curve-disconnect'!BA$5+'Res-Appliance class'!$C38*'RES S curve-disconnect'!BA$10+'Res-Appliance class'!$D38*'RES S curve-disconnect'!BA$15+'Res-Appliance class'!$E38*'RES S curve-disconnect'!BA$20","v":4292.0763403247211},{"$f":"'Res-Appliance class'!$B38*'RES S curve-disconnect'!BB$5+'Res-Appliance class'!$C38*'RES S curve-disconnect'!BB$10+'Res-Appliance class'!$D38*'RES S curve-disconnect'!BB$15+'Res-Appliance class'!$E38*'RES S curve-disconnect'!BB$20","v":5167.2156715218016},{"$f":"'Res-Appliance class'!$B38*'RES S curve-disconnect'!BC$5+'Res-Appliance class'!$C38*'RES S curve-disconnect'!BC$10+'Res-Appliance class'!$D38*'RES S curve-disconnect'!BC$15+'Res-Appliance class'!$E38*'RES S curve-disconnect'!BC$20","v":6210.9194554732485},{"$f":"'Res-Appliance class'!$B38*'RES S curve-disconnect'!BD$5+'Res-Appliance class'!$C38*'RES S curve-disconnect'!BD$10+'Res-Appliance class'!$D38*'RES S curve-disconnect'!BD$15+'Res-Appliance class'!$E38*'RES S curve-disconnect'!BD$20","v":7219.0388704515217},{"$f":"'Res-Appliance class'!$B38*'RES S curve-disconnect'!BE$5+'Res-Appliance class'!$C38*'RES S curve-disconnect'!BE$10+'Res-Appliance class'!$D38*'RES S curve-disconnect'!BE$15+'Res-Appliance class'!$E38*'RES S curve-disconnect'!BE$20","v":8140.8905788043676},{"$f":"'Res-Appliance class'!$B38*'RES S curve-disconnect'!BF$5+'Res-Appliance class'!$C38*'RES S curve-disconnect'!BF$10+'Res-Appliance class'!$D38*'RES S curve-disconnect'!BF$15+'Res-Appliance class'!$E38*'RES S curve-disconnect'!BF$20","v":9083.9924702406079},{"$f":"'Res-Appliance class'!$B38*'RES S curve-disconnect'!BG$5+'Res-Appliance class'!$C38*'RES S curve-disconnect'!BG$10+'Res-Appliance class'!$D38*'RES S curve-disconnect'!BG$15+'Res-Appliance class'!$E38*'RES S curve-disconnect'!BG$20","v":10150.894257501193},{"$f":"'Res-Appliance class'!$B38*'RES S curve-disconnect'!BH$5+'Res-Appliance class'!$C38*'RES S curve-disconnect'!BH$10+'Res-Appliance class'!$D38*'RES S curve-disconnect'!BH$15+'Res-Appliance class'!$E38*'RES S curve-disconnect'!BH$20","v":11417.653764631141},{"$f":"'Res-Appliance class'!$B38*'RES S curve-disconnect'!BI$5+'Res-Appliance class'!$C38*'RES S curve-disconnect'!BI$10+'Res-Appliance class'!$D38*'RES S curve-disconnect'!BI$15+'Res-Appliance class'!$E38*'RES S curve-disconnect'!BI$20","v":13252.891571821285},{"$f":"'Res-Appliance class'!$B38*'RES S curve-disconnect'!BJ$5+'Res-Appliance class'!$C38*'RES S curve-disconnect'!BJ$10+'Res-Appliance class'!$D38*'RES S curve-disconnect'!BJ$15+'Res-Appliance class'!$E38*'RES S curve-disconnect'!BJ$20","v":15942.170776787134},{"$f":"'Res-Appliance class'!$B38*'RES S curve-disconnect'!BK$5+'Res-Appliance class'!$C38*'RES S curve-disconnect'!BK$10+'Res-Appliance class'!$D38*'RES S curve-disconnect'!BK$15+'Res-Appliance class'!$E38*'RES S curve-disconnect'!BK$20","v":19913.174396324881},{"$f":"'Res-Appliance class'!$B38*'RES S curve-disconnect'!BL$5+'Res-Appliance class'!$C38*'RES S curve-disconnect'!BL$10+'Res-Appliance class'!$D38*'RES S curve-disconnect'!BL$15+'Res-Appliance class'!$E38*'RES S curve-disconnect'!BL$20","v":-2990.0294598755836},{"$f":"'Res-Appliance class'!$B38*'RES S curve-disconnect'!BM$5+'Res-Appliance class'!$C38*'RES S curve-disconnect'!BM$10+'Res-Appliance class'!$D38*'RES S curve-disconnect'!BM$15+'Res-Appliance class'!$E38*'RES S curve-disconnect'!BM$20","v":-2985.0207940265009},{"$f":"'Res-Appliance class'!$B38*'RES S curve-disconnect'!BN$5+'Res-Appliance class'!$C38*'RES S curve-disconnect'!BN$10+'Res-Appliance class'!$D38*'RES S curve-disconnect'!BN$15+'Res-Appliance class'!$E38*'RES S curve-disconnect'!BN$20","v":-2982.2818052889129},{"$f":"'Res-Appliance class'!$B38*'RES S curve-disconnect'!BO$5+'Res-Appliance class'!$C38*'RES S curve-disconnect'!BO$10+'Res-Appliance class'!$D38*'RES S curve-disconnect'!BO$15+'Res-Appliance class'!$E38*'RES S curve-disconnect'!BO$20","v":-2975.0238411951805},{"$f":"'Res-Appliance class'!$B38*'RES S curve-disconnect'!BP$5+'Res-Appliance class'!$C38*'RES S curve-disconnect'!BP$10+'Res-Appliance class'!$D38*'RES S curve-disconnect'!BP$15+'Res-Appliance class'!$E38*'RES S curve-disconnect'!BP$20","v":-2970.0354727457807},{"$f":"'Res-Appliance class'!$B38*'RES S curve-disconnect'!BQ$5+'Res-Appliance class'!$C38*'RES S curve-disconnect'!BQ$10+'Res-Appliance class'!$D38*'RES S curve-disconnect'!BQ$15+'Res-Appliance class'!$E38*'RES S curve-disconnect'!BQ$20","v":-2965.0537890503001},{"$f":"'Res-Appliance class'!$B38*'RES S curve-disconnect'!BR$5+'Res-Appliance class'!$C38*'RES S curve-disconnect'!BR$10+'Res-Appliance class'!$D38*'RES S curve-disconnect'!BR$15+'Res-Appliance class'!$E38*'RES S curve-disconnect'!BR$20","v":-2962.3416205402855},{"$f":"'Res-Appliance class'!$B38*'RES S curve-disconnect'!BS$5+'Res-Appliance class'!$C38*'RES S curve-disconnect'!BS$10+'Res-Appliance class'!$D38*'RES S curve-disconnect'!BS$15+'Res-Appliance class'!$E38*'RES S curve-disconnect'!BS$20","v":-2955.1103157532234},{"$f":"'Res-Appliance class'!$B38*'RES S curve-disconnect'!BT$5+'Res-Appliance class'!$C38*'RES S curve-disconnect'!BT$10+'Res-Appliance class'!$D38*'RES S curve-disconnect'!BT$15+'Res-Appliance class'!$E38*'RES S curve-disconnect'!BT$20","v":-2950.1484466883712},{"$f":"'Res-Appliance class'!$B38*'RES S curve-disconnect'!BU$5+'Res-Appliance class'!$C38*'RES S curve-disconnect'!BU$10+'Res-Appliance class'!$D38*'RES S curve-disconnect'!BU$15+'Res-Appliance class'!$E38*'RES S curve-disconnect'!BU$20","v":-2945.1931034477925},{"$f":"'Res-Appliance class'!$B38*'RES S curve-disconnect'!BV$5+'Res-Appliance class'!$C38*'RES S curve-disconnect'!BV$10+'Res-Appliance class'!$D38*'RES S curve-disconnect'!BV$15+'Res-Appliance class'!$E38*'RES S curve-disconnect'!BV$20","v":-2942.5071174492532},{"$f":"'Res-Appliance class'!$B38*'RES S curve-disconnect'!BW$5+'Res-Appliance class'!$C38*'RES S curve-disconnect'!BW$10+'Res-Appliance class'!$D38*'RES S curve-disconnect'!BW$15+'Res-Appliance class'!$E38*'RES S curve-disconnect'!BW$20","v":-2935.3018382102337},{"$f":"'Res-Appliance class'!$B38*'RES S curve-disconnect'!BX$5+'Res-Appliance class'!$C38*'RES S curve-disconnect'!BX$10+'Res-Appliance class'!$D38*'RES S curve-disconnect'!BX$15+'Res-Appliance class'!$E38*'RES S curve-disconnect'!BX$20","v":-2930.3658387038031},{"$f":"'Res-Appliance class'!$B38*'RES S curve-disconnect'!BY$5+'Res-Appliance class'!$C38*'RES S curve-disconnect'!BY$10+'Res-Appliance class'!$D38*'RES S curve-disconnect'!BY$15+'Res-Appliance class'!$E38*'RES S curve-disconnect'!BY$20","v":-2925.4362099996956},{"$f":"'Res-Appliance class'!$B38*'RES S curve-disconnect'!BZ$5+'Res-Appliance class'!$C38*'RES S curve-disconnect'!BZ$10+'Res-Appliance class'!$D38*'RES S curve-disconnect'!BZ$15+'Res-Appliance class'!$E38*'RES S curve-disconnect'!BZ$20","v":-2922.7757844772436},{"$f":"'Res-Appliance class'!$B38*'RES S curve-disconnect'!CA$5+'Res-Appliance class'!$C38*'RES S curve-disconnect'!CA$10+'Res-Appliance class'!$D38*'RES S curve-disconnect'!CA$15+'Res-Appliance class'!$E38*'RES S curve-disconnect'!CA$20","v":-2915.5959126094249},{"$f":"'Res-Appliance class'!$B38*'RES S curve-disconnect'!CB$5+'Res-Appliance class'!$C38*'RES S curve-disconnect'!CB$10+'Res-Appliance class'!$D38*'RES S curve-disconnect'!CB$15+'Res-Appliance class'!$E38*'RES S curve-disconnect'!CB$20","v":-2910.6851683187829},{"$f":"'Res-Appliance class'!$B38*'RES S curve-disconnect'!CC$5+'Res-Appliance class'!$C38*'RES S curve-disconnect'!CC$10+'Res-Appliance class'!$D38*'RES S curve-disconnect'!CC$15+'Res-Appliance class'!$E38*'RES S curve-disconnect'!CC$20","v":-2905.780643618536},{"$f":"'Res-Appliance class'!$B38*'RES S curve-disconnect'!CD$5+'Res-Appliance class'!$C38*'RES S curve-disconnect'!CD$10+'Res-Appliance class'!$D38*'RES S curve-disconnect'!CD$15+'Res-Appliance class'!$E38*'RES S curve-disconnect'!CD$20","v":-2981.0047530516654}]
["Melbourne (C)",null,{"$f":"'Res-Appliance class'!$B39*'RES S curve-disconnect'!C$5+'Res-Appliance class'!$C39*'RES S curve-disconnect'!C$10+'Res-Appliance class'!$D39*'RES S curve-disconnect'!C$15+'Res-Appliance class'!$E39*'RES S curve-disconnect'!C$20","v":-3264.0140994965454},{"$f":"'Res-Appliance class'!$B39*'RES S curve-disconnect'!D$5+'Res-Appliance class'!$C39*'RES S curve-disconnect'!D$10+'Res-Appliance class'!$D39*'RES S curve-disconnect'!D$15+'Res-Appliance class'!$E39*'RES S curve-disconnect'!D$20","v":-3469.7175012132111},{"$f":"'Res-Appliance class'!$B39*'RES S curve-disconnect'!E$5+'Res-Appliance class'!$C39*'RES S curve-disconnect'!E$10+'Res-Appliance class'!$D39*'RES S curve-disconnect'!E$15+'Res-Appliance class'!$E39*'RES S curve-disconnect'!E$20","v":-3006.6007904230355},{"$f":"'Res-Appliance class'!$B39*'RES S curve-disconnect'!F$5+'Res-Appliance class'!$C39*'RES S curve-disconnect'!F$10+'Res-Appliance class'!$D39*'RES S curve-disconnect'!F$15+'Res-Appliance class'!$E39*'RES S curve-disconnect'!F$20","v":-2953.5551076200109},{"$f":"'Res-Appliance class'!$B39*'RES S curve-disconnect'!G$5+'Res-Appliance class'!$C39*'RES S curve-disconnect'!G$10+'Res-Appliance class'!$D39*'RES S curve-disconnect'!G$15+'Res-Appliance class'!$E39*'RES S curve-disconnect'!G$20","v":-3423.5241109586668},{"$f":"'Res-Appliance class'!$B39*'RES S curve-disconnect'!H$5+'Res-Appliance class'!$C39*'RES S curve-disconnect'!H$10+'Res-Appliance class'!$D39*'RES S curve-disconnect'!H$15+'Res-Appliance class'!$E39*'RES S curve-disconnect'!H$20","v":-3457.8790182175985},{"$f":"'Res-Appliance class'!$B39*'RES S curve-disconnect'!I$5+'Res-Appliance class'!$C39*'RES S curve-disconnect'!I$10+'Res-Appliance class'!$D39*'RES S curve-disconnect'!I$15+'Res-Appliance class'!$E39*'RES S curve-disconnect'!I$20","v":-3294.9682567461505},{"$f":"'Res-Appliance class'!$B39*'RES S curve-disconnect'!J$5+'Res-Appliance class'!$C39*'RES S curve-disconnect'!J$10+'Res-Appliance class'!$D39*'RES S curve-disconnect'!J$15+'Res-Appliance class'!$E39*'RES S curve-disconnect'!J$20","v":-3580.6315366279114},{"$f":"'Res-Appliance class'!$B39*'RES S curve-disconnect'!K$5+'Res-Appliance class'!$C39*'RES S curve-disconnect'!K$10+'Res-Appliance class'!$D39*'RES S curve-disconnect'!K$15+'Res-Appliance class'!$E39*'RES S curve-disconnect'!K$20","v":-3194.176742815851},{"$f":"'Res-Appliance class'!$B39*'RES S curve-disconnect'!L$5+'Res-Appliance class'!$C39*'RES S curve-disconnect'!L$10+'Res-Appliance class'!$D39*'RES S curve-disconnect'!L$15+'Res-Appliance class'!$E39*'RES S curve-disconnect'!L$20","v":-3320.4052372371734},{"$f":"'Res-Appliance class'!$B39*'RES S curve-disconnect'!M$5+'Res-Appliance class'!$C39*'RES S curve-disconnect'!M$10+'Res-Appliance class'!$D39*'RES S curve-disconnect'!M$15+'Res-Appliance class'!$E39*'RES S curve-disconnect'!M$20","v":-3533.778312745319},{"$f":"'Res-Appliance class'!$B39*'RES S curve-disconnect'!N$5+'Res-Appliance class'!$C39*'RES S curve-disconnect'!N$10+'Res-Appliance class'!$D39*'RES S curve-disconnect'!N$15+'Res-Appliance class'!$E39*'RES S curve-disconnect'!N$20","v":-3542.5788177554286},{"$f":"'Res-Appliance class'!$B39*'RES S curve-disconnect'!O$5+'Res-Appliance class'!$C39*'RES S curve-disconnect'!O$10+'Res-Appliance class'!$D39*'RES S curve-disconnect'!O$15+'Res-Appliance class'!$E39*'RES S curve-disconnect'!O$20","v":-3309.3462691883897},{"$f":"'Res-Appliance class'!$B39*'RES S curve-disconnect'!P$5+'Res-Appliance class'!$C39*'RES S curve-disconnect'!P$10+'Res-Appliance class'!$D39*'RES S curve-disconnect'!P$15+'Res-Appliance class'!$E39*'RES S curve-disconnect'!P$20","v":-3124.2917472242398},{"$f":"'Res-Appliance class'!$B39*'RES S curve-disconnect'!Q$5+'Res-Appliance class'!$C39*'RES S curve-disconnect'!Q$10+'Res-Appliance class'!$D39*'RES S curve-disconnect'!Q$15+'Res-Appliance class'!$E39*'RES S curve-disconnect'!Q$20","v":-2851.7408787884642},{"$f":"'Res-Appliance class'!$B39*'RES S curve-disconnect'!R$5+'Res-Appliance class'!$C39*'RES S curve-disconnect'!R$10+'Res-Appliance class'!$D39*'RES S curve-disconnect'!R$15+'Res-Appliance class'!$E39*'RES S curve-disconnect'!R$20","v":-2692.0783194277492},{"$f":"'Res-Appliance class'!$B39*'RES S curve-disconnect'!S$5+'Res-Appliance class'!$C39*'RES S curve-disconnect'!S$10+'Res-Appliance class'!$D39*'RES S curve-disconnect'!S$15+'Res-Appliance class'!$E39*'RES S curve-disconnect'!S$20","v":-2439.0829046743429},{"$f":"'Res-Appliance class'!$B39*'RES S curve-disconnect'!T$5+'Res-Appliance class'!$C39*'RES S curve-disconnect'!T$10+'Res-Appliance class'!$D39*'RES S curve-disconnect'!T$15+'Res-Appliance class'!$E39*'RES S curve-disconnect'!T$20","v":-2310.3984335970245},{"$f":"'Res-Appliance class'!$B39*'RES S curve-disconnect'!U$5+'Res-Appliance class'!$C39*'RES S curve-disconnect'!U$10+'Res-Appliance class'!$D39*'RES S curve-disconnect'!U$15+'Res-Appliance class'!$E39*'RES S curve-disconnect'!U$20","v":-2155.2625226964728},{"$f":"'Res-Appliance class'!$B39*'RES S curve-disconnect'!V$5+'Res-Appliance class'!$C39*'RES S curve-disconnect'!V$10+'Res-Appliance class'!$D39*'RES S curve-disconnect'!V$15+'Res-Appliance class'!$E39*'RES S curve-disconnect'!V$20","v":-2042.2183478620616},{"$f":"'Res-Appliance class'!$B39*'RES S curve-disconnect'!W$5+'Res-Appliance class'!$C39*'RES S curve-disconnect'!W$10+'Res-Appliance class'!$D39*'RES S curve-disconnect'!W$15+'Res-Appliance class'!$E39*'RES S curve-disconnect'!W$20","v":-1950.9599532862092},{"$f":"'Res-Appliance class'!$B39*'RES S curve-disconnect'!X$5+'Res-Appliance class'!$C39*'RES S curve-disconnect'!X$10+'Res-Appliance class'!$D39*'RES S curve-disconnect'!X$15+'Res-Appliance class'!$E39*'RES S curve-disconnect'!X$20","v":-1767.3518941536049},{"$f":"'Res-Appliance class'!$B39*'RES S curve-disconnect'!Y$5+'Res-Appliance class'!$C39*'RES S curve-disconnect'!Y$10+'Res-Appliance class'!$D39*'RES S curve-disconnect'!Y$15+'Res-Appliance class'!$E39*'RES S curve-disconnect'!Y$20","v":-1580.2903569976797},{"$f":"'Res-Appliance class'!$B39*'RES S curve-disconnect'!Z$5+'Res-Appliance class'!$C39*'RES S curve-disconnect'!Z$10+'Res-Appliance class'!$D39*'RES S curve-disconnect'!Z$15+'Res-Appliance class'!$E39*'RES S curve-disconnect'!Z$20","v":-1448.8198351597234},{"$f":"'Res-Appliance class'!$B39*'RES S curve-disconnect'!AA$5+'Res-Appliance class'!$C39*'RES S curve-disconnect'!AA$10+'Res-Appliance class'!$D39*'RES S curve-disconnect'!AA$15+'Res-Appliance class'!$E39*'RES S curve-disconnect'!AA$20","v":-1315.67095466708},{"$f":"'Res-Appliance class'!$B39*'RES S curve-disconnect'!AB$5+'Res-Appliance class'!$C39*'RES S curve-disconnect'!AB$10+'Res-Appliance class'!$D39*'RES S curve-disconnect'!AB$15+'Res-Appliance class'!$E39*'RES S curve-disconnect'!AB$20","v":-1205.8099366285023},{"$f":"'Res-Appliance class'!$B39*'RES S curve-disconnect'!AC$5+'Res-Appliance class'!$C39*'RES S curve-disconnect'!AC$10+'Res-Appliance class'!$D39*'RES S curve-disconnect'!AC$15+'Res-Appliance class'!$E39*'RES S curve-disconnect'!AC$20","v":-1098.4325329200196},{"$f":"'Res-Appliance class'!$B39*'RES S curve-disconnect'!AD$5+'Res-Appliance class'!$C39*'RES S curve-disconnect'!AD$10+'Res-Appliance class'!$D39*'RES S curve-disconnect'!AD$15+'Res-Appliance class'!$E39*'RES S curve-disconnect'!AD$20","v":-998.89045339248059},{"$f":"'Res-Appliance class'!$B39*'RES S curve-disconnect'!AE$5+'Res-Appliance class'!$C39*'RES S curve-disconnect'!AE$10+'Res-Appliance class'!$D39*'RES S curve-disconnect'!AE$15+'Res-Appliance class'!$E39*'RES S curve-disconnect'!AE$20","v":-892.52006848204803},{"$f":"'Res-Appliance class'!$B39*'RES S curve-disconnect'!AF$5+'Res-Appliance class'!$C39*'RES S curve-disconnect'!AF$10+'Res-Appliance class'!$D39*'RES S curve-disconnect'!AF$15+'Res-Appliance class'!$E39*'RES S curve-disconnect'!AF$20","v":-761.71744850313894},{"$f":"'Res-Appliance class'!$B39*'RES S curve-disconnect'!AG$5+'Res-Appliance class'!$C39*'RES S curve-disconnect'!AG$10+'Res-Appliance class'!$D39*'RES S curve-disconnect'!AG$15+'Res-Appliance class'!$E39*'RES S curve-disconnect'!AG$20","v":-679.35970902984855},{"$f":"'Res-Appliance class'!$B39*'RES S curve-disconnect'!AH$5+'Res-Appliance class'!$C39*'RES S curve-disconnect'!AH$10+'Res-Appliance class'!$D39*'RES S curve-disconnect'!AH$15+'Res-Appliance class'!$E39*'RES S curve-disconnect'!AH$20","v":-568.3716722489919},{"$f":"'Res-Appliance class'!$B39*'RES S curve-disconnect'!AI$5+'Res-Appliance class'!$C39*'RES S curve-disconnect'!AI$10+'Res-Appliance class'!$D39*'RES S curve-disconnect'!AI$15+'Res-Appliance class'!$E39*'RES S curve-disconnect'!AI$20","v":-464.12281195221669},{"$f":"'Res-Appliance class'!$B39*'RES S curve-disconnect'!AJ$5+'Res-Appliance class'!$C39*'RES S curve-disconnect'!AJ$10+'Res-Appliance class'!$D39*'RES S curve-disconnect'!AJ$15+'Res-Appliance class'!$E39*'RES S curve-disconnect'!AJ$20","v":-370.97736919174395},{"$f":"'Res-Appliance class'!$B39*'RES S curve-disconnect'!AK$5+'Res-Appliance class'!$C39*'RES S curve-disconnect'!AK$10+'Res-Appliance class'!$D39*'RES S curve-disconnect'!AK$15+'Res-Appliance class'!$E39*'RES S curve-disconnect'!AK$20","v":-271.92763861607835},{"$f":"'Res-Appliance class'!$B39*'RES S curve-disconnect'!AL$5+'Res-Appliance class'!$C39*'RES S curve-disconnect'!AL$10+'Res-Appliance class'!$D39*'RES S curve-disconnect'!AL$15+'Res-Appliance class'!$E39*'RES S curve-disconnect'!AL$20","v":-627.05380558865784},{"$f":"'Res-Appliance class'!$B39*'RES S curve-disconnect'!AM$5+'Res-Appliance class'!$C39*'RES S curve-disconnect'!AM$10+'Res-Appliance class'!$D39*'RES S curve-disconnect'!AM$15+'Res-Appliance class'!$E39*'RES S curve-disconnect'!AM$20","v":-666.8400376944187},{"$f":"'Res-Appliance class'!$B39*'RES S curve-disconnect'!AN$5+'Res-Appliance class'!$C39*'RES S curve-disconnect'!AN$10+'Res-Appliance class'!$D39*'RES S curve-disconnect'!AN$15+'Res-Appliance class'!$E39*'RES S curve-disconnect'!AN$20","v":-569.62406302353418},{"$f":"'Res-Appliance class'!$B39*'RES S curve-disconnect'!AO$5+'Res-Appliance class'!$C39*'RES S curve-disconnect'!AO$10+'Res-Appliance class'!$D39*'RES S curve-disconnect'!AO$15+'Res-Appliance class'!$E39*'RES S curve-disconnect'!AO$20","v":-453.96267768987718},{"$f":"'Res-Appliance class'!$B39*'RES S curve-disconnect'!AP$5+'Res-Appliance class'!$C39*'RES S curve-disconnect'!AP$10+'Res-Appliance class'!$D39*'RES S curve-disconnect'!AP$15+'Res-Appliance class'!$E39*'RES S curve-disconnect'!AP$20","v":-349.04022737061467},{"$f":"'Res-Appliance class'!$B39*'RES S curve-disconnect'!AQ$5+'Res-Appliance class'!$C39*'RES S curve-disconnect'!AQ$10+'Res-Appliance class'!$D39*'RES S curve-disconnect'!AQ$15+'Res-Appliance class'!$E39*'RES S curve-disconnect'!AQ$20","v":-234.11823127676604},{"$f":"'Res-Appliance class'!$B39*'RES S curve-disconnect'!AR$5+'Res-Appliance class'!$C39*'RES S curve-disconnect'!AR$10+'Res-Appliance class'!$D39*'RES S curve-disconnect'!AR$15+'Res-Appliance class'!$E39*'RES S curve-disconnect'!AR$20","v":-109.06645665576994},{"$f":"'Res-Appliance class'!$B39*'RES S curve-disconnect'!AS$5+'Res-Appliance class'!$C39*'RES S curve-disconnect'!AS$10+'Res-Appliance class'!$D39*'RES S curve-disconnect'!AS$15+'Res-Appliance class'!$E39*'RES S curve-disconnect'!AS$20","v":30.972891424061146},{"$f":"'Res-Appliance class'!$B39*'RES S curve-disconnect'!AT$5+'Res-Appliance class'!$C39*'RES S curve-disconnect'!AT$10+'Res-Appliance class'!$D39*'RES S curve-disconnect'!AT$15+'Res-Appliance class'!$E39*'RES S curve-disconnect'!AT$20","v":186.31289250738007},{"$f":"'Res-Appliance class'!$B39*'RES S curve-disconnect'!AU$5+'Res-Appliance class'!$C39*'RES S curve-disconnect'!AU$10+'Res-Appliance class'!$D39*'RES S curve-disconnect'!AU$15+'Res-Appliance class'!$E39*'RES S curve-disconnect'!AU$20","v":367.62138069896207},{"$f":"'Res-Appliance class'!$B39*'RES S curve-disconnect'!AV$5+'Res-Appliance class'!$C39*'RES S curve-disconnect'!AV$10+'Res-Appliance class'!$D39*'RES S curve-disconnect'!AV$15+'Res-Appliance class'!$E39*'RES S curve-disconnect'!AV$20","v":572.82030116354986},{"$f":"'Res-Appliance class'!$B39*'RES S curve-disconnect'!AW$5+'Res-Appliance class'!$C39*'RES S curve-disconnect'!AW$10+'Res-Appliance class'!$D39*'RES S curve-disconnect'!AW$15+'Res-Appliance class'!$E39*'RES S curve-disconnect'!AW$20","v":807.92276127284413},{"$f":"'Res-Appliance class'!$B39*'RES S curve-disconnect'!AX$5+'Res-Appliance class'!$C39*'RES S curve-disconnect'!AX$10+'Res-Appliance class'!$D39*'RES S curve-disconnect'!AX$15+'Res-Appliance class'!$E39*'RES S curve-disconnect'!AX$20","v":1073.9090714307174},{"$f":"'Res-Appliance class'!$B39*'RES S curve-disconnect'!AY$5+'Res-Appliance class'!$C39*'RES S curve-disconnect'!AY$10+'Res-Appliance class'!$D39*'RES S curve-disconnect'!AY$15+'Res-Appliance class'!$E39*'RES S curve-disconnect'!AY$20","v":1381.6174454045722},{"$f":"'Res-Appliance class'!$B39*'RES S curve-disconnect'!AZ$5+'Res-Appliance class'!$C39*'RES S curve-disconnect'!AZ$10+'Res-Appliance class'!$D39*'RES S curve-disconnect'!AZ$15+'Res-Appliance class'!$E39*'RES S curve-disconnect'!AZ$20","v":1730.7972512546512},{"$f":"'Res-Appliance class'!$B39*'RES S curve-disconnect'!BA$5+'Res-Appliance class'!$C39*'RES S curve-disconnect'!BA$10+'Res-Appliance class'!$D39*'RES S curve-disconnect'!BA$15+'Res-Appliance class'!$E39*'RES S curve-disconnect'!BA$20","v":2133.41868425553},{"$f":"'Res-Appliance class'!$B39*'RES S curve-disconnect'!BB$5+'Res-Appliance class'!$C39*'RES S curve-disconnect'!BB$10+'Res-Appliance class'!$D39*'RES S curve-disconnect'!BB$15+'Res-Appliance class'!$E39*'RES S curve-disconnect'!BB$20","v":2600.6867570649501},{"$f":"'Res-Appliance class'!$B39*'RES S curve-disconnect'!BC$5+'Res-Appliance class'!$C39*'RES S curve-disconnect'!BC$10+'Res-Appliance class'!$D39*'RES S curve-disconnect'!BC$15+'Res-Appliance class'!$E39*'RES S curve-disconnect'!BC$20","v":3157.3532671528883},{"$f":"'Res-Appliance class'!$B39*'RES S curve-disconnect'!BD$5+'Res-Appliance class'!$C39*'RES S curve-disconnect'!BD$10+'Res-Appliance class'!$D39*'RES S curve-disconnect'!BD$15+'Res-Appliance class'!$E39*'RES S curve-disconnect'!BD$20","v":3686.2924364088331},{"$f":"'Res-Appliance class'!$B39*'RES S curve-disconnect'!BE$5+'Res-Appliance class'!$C39*'RES S curve-disconnect'!BE$10+'Res-Appliance class'!$D39*'RES S curve-disconnect'!BE$15+'Res-Appliance class'!$E39*'RES S curve-disconnect'!BE$20","v":4167.0452091265997},{"$f":"'Res-Appliance class'!$B39*'RES S curve-disconnect'!BF$5+'Res-Appliance class'!$C39*'RES S curve-disconnect'!BF$10+'Res-Appliance class'!$D39*'RES S curve-disconnect'!BF$15+'Res-Appliance class'!$E39*'RES S curve-disconnect'!BF$20","v":4659.745669685195},{"$f":"'Res-Appliance class'!$B39*'RES S curve-disconnect'!BG$5+'Res-Appliance class'!$C39*'RES S curve-disconnect'!BG$10+'Res-Appliance class'!$D39*'RES S curve-disconnect'!BG$15+'Res-Appliance class'!$E39*'RES S curve-disconnect'!BG$20","v":5220.4214084199375},{"$f":"'Res-Appliance class'!$B39*'RES S curve-disconnect'!BH$5+'Res-Appliance class'!$C39*'RES S curve-disconnect'!BH$10+'Res-Appliance class'!$D39*'RES S curve-disconnect'!BH$15+'Res-Appliance class'!$E39*'RES S curve-disconnect'!BH$20","v":5884.1658061854423},{"$f":"'Res-Appliance class'!$B39*'RES S curve-disconnect'!BI$5+'Res-Appliance class'!$C39*'RES S curve-disconnect'!BI$10+'Res-Appliance class'!$D39*'RES S curve-disconnect'!BI$15+'Res-Appliance class'!$E39*'RES S curve-disconnect'!BI$20","v":6847.8460745102711},{"$f":"'Res-Appliance class'!$B39*'RES S curve-disconnect'!BJ$5+'Res-Appliance class'!$C39*'RES S curve-disconnect'!BJ$10+'Res-Appliance class'!$D39*'RES S curve-disconnect'!BJ$15+'Res-Appliance class'!$E39*'RES S curve-disconnect'!BJ$20","v":8249.9070489596124},{"$f":"'Res-Appliance class'!$B39*'RES S curve-disconnect'!BK$5+'Res-Appliance class'!$C39*'RES S curve-disconnect'!BK$10+'Res-Appliance class'!$D39*'RES S curve-disconnect'!BK$15+'Res-Appliance class'!$E39*'RES S curve-disconnect'!BK$20","v":10305.345358536426},{"$f":"'Res-Appliance class'!$B39*'RES S curve-disconnect'!BL$5+'Res-Appliance class'!$C39*'RES S curve-disconnect'!BL$10+'Res-Appliance class'!$D39*'RES S curve-disconnect'!BL$15+'Res-Appliance class'!$E39*'RES S curve-disconnect'!BL$20","v":-1915.9227753053876},{"$f":"'Res-Appliance class'!$B39*'RES S curve-disconnect'!BM$5+'Res-Appliance class'!$C39*'RES S curve-disconnect'!BM$10+'Res-Appliance class'!$D39*'RES S curve-disconnect'!BM$15+'Res-Appliance class'!$E39*'RES S curve-disconnect'!BM$20","v":-1913.2402139397946},{"$f":"'Res-Appliance class'!$B39*'RES S curve-disconnect'!BN$5+'Res-Appliance class'!$C39*'RES S curve-disconnect'!BN$10+'Res-Appliance class'!$D39*'RES S curve-disconnect'!BN$15+'Res-Appliance class'!$E39*'RES S curve-disconnect'!BN$20","v":-1912.8250966259448},{"$f":"'Res-Appliance class'!$B39*'RES S curve-disconnect'!BO$5+'Res-Appliance class'!$C39*'RES S curve-disconnect'!BO$10+'Res-Appliance class'!$D39*'RES S curve-disconnect'!BO$15+'Res-Appliance class'!$E39*'RES S curve-disconnect'!BO$20","v":-1907.8887835021185},{"$f":"'Res-Appliance class'!$B39*'RES S curve-disconnect'!BP$5+'Res-Appliance class'!$C39*'RES S curve-disconnect'!BP$10+'Res-Appliance class'!$D39*'RES S curve-disconnect'!BP$15+'Res-Appliance class'!$E39*'RES S curve-disconnect'!BP$20","v":-1905.2198580989213},{"$f":"'Res-Appliance class'!$B39*'RES S curve-disconnect'!BQ$5+'Res-Appliance class'!$C39*'RES S curve-disconnect'!BQ$10+'Res-Appliance class'!$D39*'RES S curve-disconnect'!BQ$15+'Res-Appliance class'!$E39*'RES S curve-disconnect'!BQ$20","v":-1902.5554219807489},{"$f":"'Res-Appliance class'!$B39*'RES S curve-disconnect'!BR$5+'Res-Appliance class'!$C39*'RES S curve-disconnect'!BR$10+'Res-Appliance class'!$D39*'RES S curve-disconnect'!BR$15+'Res-Appliance class'!$E39*'RES S curve-disconnect'!BR$20","v":-1902.1583179591087},{"$f":"'Res-Appliance class'!$B39*'RES S curve-disconnect'!BS$5+'Res-Appliance class'!$C39*'RES S curve-disconnect'!BS$10+'Res-Appliance class'!$D39*'RES S curve-disconnect'!BS$15+'Res-Appliance class'!$E39*'RES S curve-disconnect'!BS$20","v":-1897.2399068770601},{"$f":"'Res-Appliance class'!$B39*'RES S curve-disconnect'!BT$5+'Res-Appliance class'!$C39*'RES S curve-disconnect'!BT$10+'Res-Appliance class'!$D39*'RES S curve-disconnect'!BT$15+'Res-Appliance class'!$E39*'RES S curve-disconnect'!BT$20","v":-1894.5887729655101},{"$f":"'Res-Appliance class'!$B39*'RES S curve-disconnect'!BU$5+'Res-Appliance class'!$C39*'RES S curve-disconnect'!BU$10+'Res-Appliance class'!$D39*'RES S curve-disconnect'!BU$15+'Res-Appliance class'!$E39*'RES S curve-disconnect'!BU$20","v":-1891.9420184847095},{"$f":"'Res-Appliance class'!$B39*'RES S curve-disconnect'!BV$5+'Res-Appliance class'!$C39*'RES S curve-disconnect'!BV$10+'Res-Appliance class'!$D39*'RES S curve-disconnect'!BV$15+'Res-Appliance class'!$E39*'RES S curve-disconnect'!BV$20","v":-1891.5624869375997},{"$f":"'Res-Appliance class'!$B39*'RES S curve-disconnect'!BW$5+'Res-Appliance class'!$C39*'RES S curve-disconnect'!BW$10+'Res-Appliance class'!$D39*'RES S curve-disconnect'!BW$15+'Res-Appliance class'!$E39*'RES S curve-disconnect'!BW$20","v":-1886.6615398542838},{"$f":"'Res-Appliance class'!$B39*'RES S curve-disconnect'!BX$5+'Res-Appliance class'!$C39*'RES S curve-disconnect'!BX$10+'Res-Appliance class'!$D39*'RES S curve-disconnect'!BX$15+'Res-Appliance class'!$E39*'RES S curve-disconnect'!BX$20","v":-1884.0277621483483},{"$f":"'Res-Appliance class'!$B39*'RES S curve-disconnect'!BY$5+'Res-Appliance class'!$C39*'RES S curve-disconnect'!BY$10+'Res-Appliance class'!$D39*'RES S curve-disconnect'!BY$15+'Res-Appliance class'!$E39*'RES S curve-disconnect'!BY$20","v":-1881.3982567583871},{"$f":"'Res-Appliance class'!$B39*'RES S curve-disconnect'!BZ$5+'Res-Appliance class'!$C39*'RES S curve-disconnect'!BZ$10+'Res-Appliance class'!$D39*'RES S curve-disconnect'!BZ$15+'Res-Appliance class'!$E39*'RES S curve-disconnect'!BZ$20","v":-1881.0358678613807},{"$f":"'Res-Appliance class'!$B39*'RES S curve-disconnect'!CA$5+'Res-Appliance class'!$C39*'RES S curve-disconnect'!CA$10+'Res-Appliance class'!$D39*'RES S curve-disconnect'!CA$15+'Res-Appliance class'!$E39*'RES S curve-disconnect'!CA$20","v":-1876.1519576571854},{"$f":"'Res-Appliance class'!$B39*'RES S curve-disconnect'!CB$5+'Res-Appliance class'!$C39*'RES S curve-disconnect'!CB$10+'Res-Appliance class'!$D39*'RES S curve-disconnect'!CB$15+'Res-Appliance class'!$E39*'RES S curve-disconnect'!CB$20","v":-1873.5351117248913},{"$f":"'Res-Appliance class'!$B39*'RES S curve-disconnect'!CC$5+'Res-Appliance class'!$C39*'RES S curve-disconnect'!CC$10+'Res-Appliance class'!$D39*'RES S curve-disconnect'!CC$15+'Res-Appliance class'!$E39*'RES S curve-disconnect'!CC$20","v":-1870.9224336643692},{"$f":"'Res-Appliance class'!$B39*'RES S curve-disconnect'!CD$5+'Res-Appliance class'!$C39*'RES S curve-disconnect'!CD$10+'Res-Appliance class'!$D39*'RES S curve-disconnect'!CD$15+'Res-Appliance class'!$E39*'RES S curve-disconnect'!CD$20","v":-1908.6581290623762}]
["Monash (C)",null,{"$f":"'Res-Appliance class'!$B40*'RES S curve-disconnect'!C$5+'Res-Appliance class'!$C40*'RES S curve-disconnect'!C$10+'Res-Appliance class'!$D40*'RES S curve-disconnect'!C$15+'Res-Appliance class'!$E40*'RES S curve-disconnect'!C$20","v":-5354.7095119830747},{"$f":"'Res-Appliance class'!$B40*'RES S curve-disconnect'!D$5+'Res-Appliance class'!$C40*'RES S curve-disconnect'!D$10+'Res-Appliance class'!$D40*'RES S curve-disconnect'!D$15+'Res-Appliance class'!$E40*'RES S curve-disconnect'!D$20","v":-5703.4241779100657},{"$f":"'Res-Appliance class'!$B40*'RES S curve-disconnect'!E$5+'Res-Appliance class'!$C40*'RES S curve-disconnect'!E$10+'Res-Appliance class'!$D40*'RES S curve-disconnect'!E$15+'Res-Appliance class'!$E40*'RES S curve-disconnect'!E$20","v":-4767.6679071519229},{"$f":"'Res-Appliance class'!$B40*'RES S curve-disconnect'!F$5+'Res-Appliance class'!$C40*'RES S curve-disconnect'!F$10+'Res-Appliance class'!$D40*'RES S curve-disconnect'!F$15+'Res-Appliance class'!$E40*'RES S curve-disconnect'!F$20","v":-4663.4266509805011},{"$f":"'Res-Appliance class'!$B40*'RES S curve-disconnect'!G$5+'Res-Appliance class'!$C40*'RES S curve-disconnect'!G$10+'Res-Appliance class'!$D40*'RES S curve-disconnect'!G$15+'Res-Appliance class'!$E40*'RES S curve-disconnect'!G$20","v":-5762.9012039799236},{"$f":"'Res-Appliance class'!$B40*'RES S curve-disconnect'!H$5+'Res-Appliance class'!$C40*'RES S curve-disconnect'!H$10+'Res-Appliance class'!$D40*'RES S curve-disconnect'!H$15+'Res-Appliance class'!$E40*'RES S curve-disconnect'!H$20","v":-5798.0079319418137},{"$f":"'Res-Appliance class'!$B40*'RES S curve-disconnect'!I$5+'Res-Appliance class'!$C40*'RES S curve-disconnect'!I$10+'Res-Appliance class'!$D40*'RES S curve-disconnect'!I$15+'Res-Appliance class'!$E40*'RES S curve-disconnect'!I$20","v":-5502.7569248955515},{"$f":"'Res-Appliance class'!$B40*'RES S curve-disconnect'!J$5+'Res-Appliance class'!$C40*'RES S curve-disconnect'!J$10+'Res-Appliance class'!$D40*'RES S curve-disconnect'!J$15+'Res-Appliance class'!$E40*'RES S curve-disconnect'!J$20","v":-5871.2514324058702},{"$f":"'Res-Appliance class'!$B40*'RES S curve-disconnect'!K$5+'Res-Appliance class'!$C40*'RES S curve-disconnect'!K$10+'Res-Appliance class'!$D40*'RES S curve-disconnect'!K$15+'Res-Appliance class'!$E40*'RES S curve-disconnect'!K$20","v":-5224.4789587558771},{"$f":"'Res-Appliance class'!$B40*'RES S curve-disconnect'!L$5+'Res-Appliance class'!$C40*'RES S curve-disconnect'!L$10+'Res-Appliance class'!$D40*'RES S curve-disconnect'!L$15+'Res-Appliance class'!$E40*'RES S curve-disconnect'!L$20","v":-5443.4618527946113},{"$f":"'Res-Appliance class'!$B40*'RES S curve-disconnect'!M$5+'Res-Appliance class'!$C40*'RES S curve-disconnect'!M$10+'Res-Appliance class'!$D40*'RES S curve-disconnect'!M$15+'Res-Appliance class'!$E40*'RES S curve-disconnect'!M$20","v":-5855.9471535724824},{"$f":"'Res-Appliance class'!$B40*'RES S curve-disconnect'!N$5+'Res-Appliance class'!$C40*'RES S curve-disconnect'!N$10+'Res-Appliance class'!$D40*'RES S curve-disconnect'!N$15+'Res-Appliance class'!$E40*'RES S curve-disconnect'!N$20","v":-5877.4565815353872},{"$f":"'Res-Appliance class'!$B40*'RES S curve-disconnect'!O$5+'Res-Appliance class'!$C40*'RES S curve-disconnect'!O$10+'Res-Appliance class'!$D40*'RES S curve-disconnect'!O$15+'Res-Appliance class'!$E40*'RES S curve-disconnect'!O$20","v":-5477.2410188675567},{"$f":"'Res-Appliance class'!$B40*'RES S curve-disconnect'!P$5+'Res-Appliance class'!$C40*'RES S curve-disconnect'!P$10+'Res-Appliance class'!$D40*'RES S curve-disconnect'!P$15+'Res-Appliance class'!$E40*'RES S curve-disconnect'!P$20","v":-5154.8070685091952},{"$f":"'Res-Appliance class'!$B40*'RES S curve-disconnect'!Q$5+'Res-Appliance class'!$C40*'RES S curve-disconnect'!Q$10+'Res-Appliance class'!$D40*'RES S curve-disconnect'!Q$15+'Res-Appliance class'!$E40*'RES S curve-disconnect'!Q$20","v":-4677.4062071761982},{"$f":"'Res-Appliance class'!$B40*'RES S curve-disconnect'!R$5+'Res-Appliance class'!$C40*'RES S curve-disconnect'!R$10+'Res-Appliance class'!$D40*'RES S curve-disconnect'!R$15+'Res-Appliance class'!$E40*'RES S curve-disconnect'!R$20","v":-4398.7169221803579},{"$f":"'Res-Appliance class'!$B40*'RES S curve-disconnect'!S$5+'Res-Appliance class'!$C40*'RES S curve-disconnect'!S$10+'Res-Appliance class'!$D40*'RES S curve-disconnect'!S$15+'Res-Appliance class'!$E40*'RES S curve-disconnect'!S$20","v":-3966.6488464834047},{"$f":"'Res-Appliance class'!$B40*'RES S curve-disconnect'!T$5+'Res-Appliance class'!$C40*'RES S curve-disconnect'!T$10+'Res-Appliance class'!$D40*'RES S curve-disconnect'!T$15+'Res-Appliance class'!$E40*'RES S curve-disconnect'!T$20","v":-3723.4051500155329},{"$f":"'Res-Appliance class'!$B40*'RES S curve-disconnect'!U$5+'Res-Appliance class'!$C40*'RES S curve-disconnect'!U$10+'Res-Appliance class'!$D40*'RES S curve-disconnect'!U$15+'Res-Appliance class'!$E40*'RES S curve-disconnect'!U$20","v":-3448.3428312137517},{"$f":"'Res-Appliance class'!$B40*'RES S curve-disconnect'!V$5+'Res-Appliance class'!$C40*'RES S curve-disconnect'!V$10+'Res-Appliance class'!$D40*'RES S curve-disconnect'!V$15+'Res-Appliance class'!$E40*'RES S curve-disconnect'!V$20","v":-3254.7976502500087},{"$f":"'Res-Appliance class'!$B40*'RES S curve-disconnect'!W$5+'Res-Appliance class'!$C40*'RES S curve-disconnect'!W$10+'Res-Appliance class'!$D40*'RES S curve-disconnect'!W$15+'Res-Appliance class'!$E40*'RES S curve-disconnect'!W$20","v":-3100.0313183503567},{"$f":"'Res-Appliance class'!$B40*'RES S curve-disconnect'!X$5+'Res-Appliance class'!$C40*'RES S curve-disconnect'!X$10+'Res-Appliance class'!$D40*'RES S curve-disconnect'!X$15+'Res-Appliance class'!$E40*'RES S curve-disconnect'!X$20","v":-2772.4378565061434},{"$f":"'Res-Appliance class'!$B40*'RES S curve-disconnect'!Y$5+'Res-Appliance class'!$C40*'RES S curve-disconnect'!Y$10+'Res-Appliance class'!$D40*'RES S curve-disconnect'!Y$15+'Res-Appliance class'!$E40*'RES S curve-disconnect'!Y$20","v":-2441.2839568670979},{"$f":"'Res-Appliance class'!$B40*'RES S curve-disconnect'!Z$5+'Res-Appliance class'!$C40*'RES S curve-disconnect'!Z$10+'Res-Appliance class'!$D40*'RES S curve-disconnect'!Z$15+'Res-Appliance class'!$E40*'RES S curve-disconnect'!Z$20","v":-2211.3960023374384},{"$f":"'Res-Appliance class'!$B40*'RES S curve-disconnect'!AA$5+'Res-Appliance class'!$C40*'RES S curve-disconnect'!AA$10+'Res-Appliance class'!$D40*'RES S curve-disconnect'!AA$15+'Res-Appliance class'!$E40*'RES S curve-disconnect'!AA$20","v":-1981.5717885898569},{"$f":"'Res-Appliance class'!$B40*'RES S curve-disconnect'!AB$5+'Res-Appliance class'!$C40*'RES S curve-disconnect'!AB$10+'Res-Appliance class'!$D40*'RES S curve-disconnect'!AB$15+'Res-Appliance class'!$E40*'RES S curve-disconnect'!AB$20","v":-1794.6181543896128},{"$f":"'Res-Appliance class'!$B40*'RES S curve-disconnect'!AC$5+'Res-Appliance class'!$C40*'RES S curve-disconnect'!AC$10+'Res-Appliance class'!$D40*'RES S curve-disconnect'!AC$15+'Res-Appliance class'!$E40*'RES S curve-disconnect'!AC$20","v":-1613.9389632420462},{"$f":"'Res-Appliance class'!$B40*'RES S curve-disconnect'!AD$5+'Res-Appliance class'!$C40*'RES S curve-disconnect'!AD$10+'Res-Appliance class'!$D40*'RES S curve-disconnect'!AD$15+'Res-Appliance class'!$E40*'RES S curve-disconnect'!AD$20","v":-1446.8402035496554},{"$f":"'Res-Appliance class'!$B40*'RES S curve-disconnect'!AE$5+'Res-Appliance class'!$C40*'RES S curve-disconnect'!AE$10+'Res-Appliance class'!$D40*'RES S curve-disconnect'!AE$15+'Res-Appliance class'!$E40*'RES S curve-disconnect'!AE$20","v":-1272.1758184759337},{"$f":"'Res-Appliance class'!$B40*'RES S curve-disconnect'!AF$5+'Res-Appliance class'!$C40*'RES S curve-disconnect'!AF$10+'Res-Appliance class'!$D40*'RES S curve-disconnect'!AF$15+'Res-Appliance class'!$E40*'RES S curve-disconnect'!AF$20","v":-1051.3800674351539},{"$f":"'Res-Appliance class'!$B40*'RES S curve-disconnect'!AG$5+'Res-Appliance class'!$C40*'RES S curve-disconnect'!AG$10+'Res-Appliance class'!$D40*'RES S curve-disconnect'!AG$15+'Res-Appliance class'!$E40*'RES S curve-disconnect'!AG$20","v":-911.23628021967966},{"$f":"'Res-Appliance class'!$B40*'RES S curve-disconnect'!AH$5+'Res-Appliance class'!$C40*'RES S curve-disconnect'!AH$10+'Res-Appliance class'!$D40*'RES S curve-disconnect'!AH$15+'Res-Appliance class'!$E40*'RES S curve-disconnect'!AH$20","v":-714.03232365082431},{"$f":"'Res-Appliance class'!$B40*'RES S curve-disconnect'!AI$5+'Res-Appliance class'!$C40*'RES S curve-disconnect'!AI$10+'Res-Appliance class'!$D40*'RES S curve-disconnect'!AI$15+'Res-Appliance class'!$E40*'RES S curve-disconnect'!AI$20","v":-536.76411820577118},{"$f":"'Res-Appliance class'!$B40*'RES S curve-disconnect'!AJ$5+'Res-Appliance class'!$C40*'RES S curve-disconnect'!AJ$10+'Res-Appliance class'!$D40*'RES S curve-disconnect'!AJ$15+'Res-Appliance class'!$E40*'RES S curve-disconnect'!AJ$20","v":-376.78202341076945},{"$f":"'Res-Appliance class'!$B40*'RES S curve-disconnect'!AK$5+'Res-Appliance class'!$C40*'RES S curve-disconnect'!AK$10+'Res-Appliance class'!$D40*'RES S curve-disconnect'!AK$15+'Res-Appliance class'!$E40*'RES S curve-disconnect'!AK$20","v":-206.9384609188487},{"$f":"'Res-Appliance class'!$B40*'RES S curve-disconnect'!AL$5+'Res-Appliance class'!$C40*'RES S curve-disconnect'!AL$10+'Res-Appliance class'!$D40*'RES S curve-disconnect'!AL$15+'Res-Appliance class'!$E40*'RES S curve-disconnect'!AL$20","v":-794.86456456517635},{"$f":"'Res-Appliance class'!$B40*'RES S curve-disconnect'!AM$5+'Res-Appliance class'!$C40*'RES S curve-disconnect'!AM$10+'Res-Appliance class'!$D40*'RES S curve-disconnect'!AM$15+'Res-Appliance class'!$E40*'RES S curve-disconnect'!AM$20","v":-871.8620513383604},{"$f":"'Res-Appliance class'!$B40*'RES S curve-disconnect'!AN$5+'Res-Appliance class'!$C40*'RES S curve-disconnect'!AN$10+'Res-Appliance class'!$D40*'RES S curve-disconnect'!AN$15+'Res-Appliance class'!$E40*'RES S curve-disconnect'!AN$20","v":-711.11992242900578},{"$f":"'Res-Appliance class'!$B40*'RES S curve-disconnect'!AO$5+'Res-Appliance class'!$C40*'RES S curve-disconnect'!AO$10+'Res-Appliance class'!$D40*'RES S curve-disconnect'!AO$15+'Res-Appliance class'!$E40*'RES S curve-disconnect'!AO$20","v":-514.46950650667668},{"$f":"'Res-Appliance class'!$B40*'RES S curve-disconnect'!AP$5+'Res-Appliance class'!$C40*'RES S curve-disconnect'!AP$10+'Res-Appliance class'!$D40*'RES S curve-disconnect'!AP$15+'Res-Appliance class'!$E40*'RES S curve-disconnect'!AP$20","v":-332.76481698930928},{"$f":"'Res-Appliance class'!$B40*'RES S curve-disconnect'!AQ$5+'Res-Appliance class'!$C40*'RES S curve-disconnect'!AQ$10+'Res-Appliance class'!$D40*'RES S curve-disconnect'!AQ$15+'Res-Appliance class'!$E40*'RES S curve-disconnect'!AQ$20","v":-137.17101902984558},{"$f":"'Res-Appliance class'!$B40*'RES S curve-disconnect'!AR$5+'Res-Appliance class'!$C40*'RES S curve-disconnect'!AR$10+'Res-Appliance class'!$D40*'RES S curve-disconnect'!AR$15+'Res-Appliance class'!$E40*'RES S curve-disconnect'!AR$20","v":77.613275241806946},{"$f":"'Res-Appliance class'!$B40*'RES S curve-disconnect'!AS$5+'Res-Appliance class'!$C40*'RES S curve-disconnect'!AS$10+'Res-Appliance class'!$D40*'RES S curve-disconnect'!AS$15+'Res-Appliance class'!$E40*'RES S curve-disconnect'!AS$20","v":318.63854646226008},{"$f":"'Res-Appliance class'!$B40*'RES S curve-disconnect'!AT$5+'Res-Appliance class'!$C40*'RES S curve-disconnect'!AT$10+'Res-Appliance class'!$D40*'RES S curve-disconnect'!AT$15+'Res-Appliance class'!$E40*'RES S curve-disconnect'!AT$20","v":588.27240502103086},{"$f":"'Res-Appliance class'!$B40*'RES S curve-disconnect'!AU$5+'Res-Appliance class'!$C40*'RES S curve-disconnect'!AU$10+'Res-Appliance class'!$D40*'RES S curve-disconnect'!AU$15+'Res-Appliance class'!$E40*'RES S curve-disconnect'!AU$20","v":900.17711319984983},{"$f":"'Res-Appliance class'!$B40*'RES S curve-disconnect'!AV$5+'Res-Appliance class'!$C40*'RES S curve-disconnect'!AV$10+'Res-Appliance class'!$D40*'RES S curve-disconnect'!AV$15+'Res-Appliance class'!$E40*'RES S curve-disconnect'!AV$20","v":1255.9984084177297},{"$f":"'Res-Appliance class'!$B40*'RES S curve-disconnect'!AW$5+'Res-Appliance class'!$C40*'RES S curve-disconnect'!AW$10+'Res-Appliance class'!$D40*'RES S curve-disconnect'!AW$15+'Res-Appliance class'!$E40*'RES S curve-disconnect'!AW$20","v":1665.0047470631898},{"$f":"'Res-Appliance class'!$B40*'RES S curve-disconnect'!AX$5+'Res-Appliance class'!$C40*'RES S curve-disconnect'!AX$10+'Res-Appliance class'!$D40*'RES S curve-disconnect'!AX$15+'Res-Appliance class'!$E40*'RES S curve-disconnect'!AX$20","v":2131.2028637030171},{"$f":"'Res-Appliance class'!$B40*'RES S curve-disconnect'!AY$5+'Res-Appliance class'!$C40*'RES S curve-disconnect'!AY$10+'Res-Appliance class'!$D40*'RES S curve-disconnect'!AY$15+'Res-Appliance class'!$E40*'RES S curve-disconnect'!AY$20","v":2669.1119103892188},{"$f":"'Res-Appliance class'!$B40*'RES S curve-disconnect'!AZ$5+'Res-Appliance class'!$C40*'RES S curve-disconnect'!AZ$10+'Res-Appliance class'!$D40*'RES S curve-disconnect'!AZ$15+'Res-Appliance class'!$E40*'RES S curve-disconnect'!AZ$20","v":3284.1073092618863},{"$f":"'Res-Appliance class'!$B40*'RES S curve-disconnect'!BA$5+'Res-Appliance class'!$C40*'RES S curve-disconnect'!BA$10+'Res-Appliance class'!$D40*'RES S curve-disconnect'!BA$15+'Res-Appliance class'!$E40*'RES S curve-disconnect'!BA$20","v":3996.3876412099685},{"$f":"'Res-Appliance class'!$B40*'RES S curve-disconnect'!BB$5+'Res-Appliance class'!$C40*'RES S curve-disconnect'!BB$10+'Res-Appliance class'!$D40*'RES S curve-disconnect'!BB$15+'Res-Appliance class'!$E40*'RES S curve-disconnect'!BB$20","v":4828.6627826402027},{"$f":"'Res-Appliance class'!$B40*'RES S curve-disconnect'!BC$5+'Res-Appliance class'!$C40*'RES S curve-disconnect'!BC$10+'Res-Appliance class'!$D40*'RES S curve-disconnect'!BC$15+'Res-Appliance class'!$E40*'RES S curve-disconnect'!BC$20","v":5821.180015148514},{"$f":"'Res-Appliance class'!$B40*'RES S curve-disconnect'!BD$5+'Res-Appliance class'!$C40*'RES S curve-disconnect'!BD$10+'Res-Appliance class'!$D40*'RES S curve-disconnect'!BD$15+'Res-Appliance class'!$E40*'RES S curve-disconnect'!BD$20","v":6778.9387446456758},{"$f":"'Res-Appliance class'!$B40*'RES S curve-disconnect'!BE$5+'Res-Appliance class'!$C40*'RES S curve-disconnect'!BE$10+'Res-Appliance class'!$D40*'RES S curve-disconnect'!BE$15+'Res-Appliance class'!$E40*'RES S curve-disconnect'!BE$20","v":7654.4329373051169},{"$f":"'Res-Appliance class'!$B40*'RES S curve-disconnect'!BF$5+'Res-Appliance class'!$C40*'RES S curve-disconnect'!BF$10+'Res-Appliance class'!$D40*'RES S curve-disconnect'!BF$15+'Res-Appliance class'!$E40*'RES S curve-disconnect'!BF$20","v":8550.1992993520798},{"$f":"'Res-Appliance class'!$B40*'RES S curve-disconnect'!BG$5+'Res-Appliance class'!$C40*'RES S curve-disconnect'!BG$10+'Res-Appliance class'!$D40*'RES S curve-disconnect'!BG$15+'Res-Appliance class'!$E40*'RES S curve-disconnect'!BG$20","v":9563.8969437589003},{"$f":"'Res-Appliance class'!$B40*'RES S curve-disconnect'!BH$5+'Res-Appliance class'!$C40*'RES S curve-disconnect'!BH$10+'Res-Appliance class'!$D40*'RES S curve-disconnect'!BH$15+'Res-Appliance class'!$E40*'RES S curve-disconnect'!BH$20","v":10767.277341322861},{"$f":"'Res-Appliance class'!$B40*'RES S curve-disconnect'!BI$5+'Res-Appliance class'!$C40*'RES S curve-disconnect'!BI$10+'Res-Appliance class'!$D40*'RES S curve-disconnect'!BI$15+'Res-Appliance class'!$E40*'RES S curve-disconnect'!BI$20","v":12510.905639144141},{"$f":"'Res-Appliance class'!$B40*'RES S curve-disconnect'!BJ$5+'Res-Appliance class'!$C40*'RES S curve-disconnect'!BJ$10+'Res-Appliance class'!$D40*'RES S curve-disconnect'!BJ$15+'Res-Appliance class'!$E40*'RES S curve-disconnect'!BJ$20","v":15064.879247458539},{"$f":"'Res-Appliance class'!$B40*'RES S curve-disconnect'!BK$5+'Res-Appliance class'!$C40*'RES S curve-disconnect'!BK$10+'Res-Appliance class'!$D40*'RES S curve-disconnect'!BK$15+'Res-Appliance class'!$E40*'RES S curve-disconnect'!BK$20","v":18834.522699486559},{"$f":"'Res-Appliance class'!$B40*'RES S curve-disconnect'!BL$5+'Res-Appliance class'!$C40*'RES S curve-disconnect'!BL$10+'Res-Appliance class'!$D40*'RES S curve-disconnect'!BL$15+'Res-Appliance class'!$E40*'RES S curve-disconnect'!BL$20","v":-2945.7393259056639},{"$f":"'Res-Appliance class'!$B40*'RES S curve-disconnect'!BM$5+'Res-Appliance class'!$C40*'RES S curve-disconnect'!BM$10+'Res-Appliance class'!$D40*'RES S curve-disconnect'!BM$15+'Res-Appliance class'!$E40*'RES S curve-disconnect'!BM$20","v":-2940.963290389036},{"$f":"'Res-Appliance class'!$B40*'RES S curve-disconnect'!BN$5+'Res-Appliance class'!$C40*'RES S curve-disconnect'!BN$10+'Res-Appliance class'!$D40*'RES S curve-disconnect'!BN$15+'Res-Appliance class'!$E40*'RES S curve-disconnect'!BN$20","v":-2938.4567884804437},{"$f":"'Res-Appliance class'!$B40*'RES S curve-disconnect'!BO$5+'Res-Appliance class'!$C40*'RES S curve-disconnect'!BO$10+'Res-Appliance class'!$D40*'RES S curve-disconnect'!BO$15+'Res-Appliance class'!$E40*'RES S curve-disconnect'!BO$20","v":-2931.4311684097092},{"$f":"'Res-Appliance class'!$B40*'RES S curve-disconnect'!BP$5+'Res-Appliance class'!$C40*'RES S curve-disconnect'!BP$10+'Res-Appliance class'!$D40*'RES S curve-disconnect'!BP$15+'Res-Appliance class'!$E40*'RES S curve-disconnect'!BP$20","v":-2926.6750018709499},{"$f":"'Res-Appliance class'!$B40*'RES S curve-disconnect'!BQ$5+'Res-Appliance class'!$C40*'RES S curve-disconnect'!BQ$10+'Res-Appliance class'!$D40*'RES S curve-disconnect'!BQ$15+'Res-Appliance class'!$E40*'RES S curve-disconnect'!BQ$20","v":-2921.92537866359},{"$f":"'Res-Appliance class'!$B40*'RES S curve-disconnect'!BR$5+'Res-Appliance class'!$C40*'RES S curve-disconnect'!BR$10+'Res-Appliance class'!$D40*'RES S curve-disconnect'!BR$15+'Res-Appliance class'!$E40*'RES S curve-disconnect'!BR$20","v":-2919.4451299052384},{"$f":"'Res-Appliance class'!$B40*'RES S curve-disconnect'!BS$5+'Res-Appliance class'!$C40*'RES S curve-disconnect'!BS$10+'Res-Appliance class'!$D40*'RES S curve-disconnect'!BS$15+'Res-Appliance class'!$E40*'RES S curve-disconnect'!BS$20","v":-2912.4456048156862},{"$f":"'Res-Appliance class'!$B40*'RES S curve-disconnect'!BT$5+'Res-Appliance class'!$C40*'RES S curve-disconnect'!BT$10+'Res-Appliance class'!$D40*'RES S curve-disconnect'!BT$15+'Res-Appliance class'!$E40*'RES S curve-disconnect'!BT$20","v":-2907.7153760727624},{"$f":"'Res-Appliance class'!$B40*'RES S curve-disconnect'!BU$5+'Res-Appliance class'!$C40*'RES S curve-disconnect'!BU$10+'Res-Appliance class'!$D40*'RES S curve-disconnect'!BU$15+'Res-Appliance class'!$E40*'RES S curve-disconnect'!BU$20","v":-2902.991534453392},{"$f":"'Res-Appliance class'!$B40*'RES S curve-disconnect'!BV$5+'Res-Appliance class'!$C40*'RES S curve-disconnect'!BV$10+'Res-Appliance class'!$D40*'RES S curve-disconnect'!BV$15+'Res-Appliance class'!$E40*'RES S curve-disconnect'!BV$20","v":-2900.5369120465125},{"$f":"'Res-Appliance class'!$B40*'RES S curve-disconnect'!BW$5+'Res-Appliance class'!$C40*'RES S curve-disconnect'!BW$10+'Res-Appliance class'!$D40*'RES S curve-disconnect'!BW$15+'Res-Appliance class'!$E40*'RES S curve-disconnect'!BW$20","v":-2893.562859037107},{"$f":"'Res-Appliance class'!$B40*'RES S curve-disconnect'!BX$5+'Res-Appliance class'!$C40*'RES S curve-disconnect'!BX$10+'Res-Appliance class'!$D40*'RES S curve-disconnect'!BX$15+'Res-Appliance class'!$E40*'RES S curve-disconnect'!BX$20","v":-2888.8579490621037},{"$f":"'Res-Appliance class'!$B40*'RES S curve-disconnect'!BY$5+'Res-Appliance class'!$C40*'RES S curve-disconnect'!BY$10+'Res-Appliance class'!$D40*'RES S curve-disconnect'!BY$15+'Res-Appliance class'!$E40*'RES S curve-disconnect'!BY$20","v":-2884.1592738514692},{"$f":"'Res-Appliance class'!$B40*'RES S curve-disconnect'!BZ$5+'Res-Appliance class'!$C40*'RES S curve-disconnect'!BZ$10+'Res-Appliance class'!$D40*'RES S curve-disconnect'!BZ$15+'Res-Appliance class'!$E40*'RES S curve-disconnect'!BZ$20","v":-2881.729666441166},{"$f":"'Res-Appliance class'!$B40*'RES S curve-disconnect'!CA$5+'Res-Appliance class'!$C40*'RES S curve-disconnect'!CA$10+'Res-Appliance class'!$D40*'RES S curve-disconnect'!CA$15+'Res-Appliance class'!$E40*'RES S curve-disconnect'!CA$20","v":-2874.7804779572207},{"$f":"'Res-Appliance class'!$B40*'RES S curve-disconnect'!CB$5+'Res-Appliance class'!$C40*'RES S curve-disconnect'!CB$10+'Res-Appliance class'!$D40*'RES S curve-disconnect'!CB$15+'Res-Appliance class'!$E40*'RES S curve-disconnect'!CB$20","v":-2870.1002829716645},{"$f":"'Res-Appliance class'!$B40*'RES S curve-disconnect'!CC$5+'Res-Appliance class'!$C40*'RES S curve-disconnect'!CC$10+'Res-Appliance class'!$D40*'RES S curve-disconnect'!CC$15+'Res-Appliance class'!$E40*'RES S curve-disconnect'!CC$20","v":-2865.4261741436635},{"$f":"'Res-Appliance class'!$B40*'RES S curve-disconnect'!CD$5+'Res-Appliance class'!$C40*'RES S curve-disconnect'!CD$10+'Res-Appliance class'!$D40*'RES S curve-disconnect'!CD$15+'Res-Appliance class'!$E40*'RES S curve-disconnect'!CD$20","v":-2936.6989134555583}]
["Nillumbik (S)",null,{"$f":"'Res-Appliance class'!$B41*'RES S curve-disconnect'!C$5+'Res-Appliance class'!$C41*'RES S curve-disconnect'!C$10+'Res-Appliance class'!$D41*'RES S curve-disconnect'!C$15+'Res-Appliance class'!$E41*'RES S curve-disconnect'!C$20","v":-5355.0000892524768},{"$f":"'Res-Appliance class'!$B41*'RES S curve-disconnect'!D$5+'Res-Appliance class'!$C41*'RES S curve-disconnect'!D$10+'Res-Appliance class'!$D41*'RES S curve-disconnect'!D$15+'Res-Appliance class'!$E41*'RES S curve-disconnect'!D$20","v":-5711.9757287515113},{"$f":"'Res-Appliance class'!$B41*'RES S curve-disconnect'!E$5+'Res-Appliance class'!$C41*'RES S curve-disconnect'!E$10+'Res-Appliance class'!$D41*'RES S curve-disconnect'!E$15+'Res-Appliance class'!$E41*'RES S curve-disconnect'!E$20","v":-4721.8733639281072},{"$f":"'Res-Appliance class'!$B41*'RES S curve-disconnect'!F$5+'Res-Appliance class'!$C41*'RES S curve-disconnect'!F$10+'Res-Appliance class'!$D41*'RES S curve-disconnect'!F$15+'Res-Appliance class'!$E41*'RES S curve-disconnect'!F$20","v":-4614.2116100958319},{"$f":"'Res-Appliance class'!$B41*'RES S curve-disconnect'!G$5+'Res-Appliance class'!$C41*'RES S curve-disconnect'!G$10+'Res-Appliance class'!$D41*'RES S curve-disconnect'!G$15+'Res-Appliance class'!$E41*'RES S curve-disconnect'!G$20","v":-5851.229951740971},{"$f":"'Res-Appliance class'!$B41*'RES S curve-disconnect'!H$5+'Res-Appliance class'!$C41*'RES S curve-disconnect'!H$10+'Res-Appliance class'!$D41*'RES S curve-disconnect'!H$15+'Res-Appliance class'!$E41*'RES S curve-disconnect'!H$20","v":-5882.2830506639975},{"$f":"'Res-Appliance class'!$B41*'RES S curve-disconnect'!I$5+'Res-Appliance class'!$C41*'RES S curve-disconnect'!I$10+'Res-Appliance class'!$D41*'RES S curve-disconnect'!I$15+'Res-Appliance class'!$E41*'RES S curve-disconnect'!I$20","v":-5571.4222894505137},{"$f":"'Res-Appliance class'!$B41*'RES S curve-disconnect'!J$5+'Res-Appliance class'!$C41*'RES S curve-disconnect'!J$10+'Res-Appliance class'!$D41*'RES S curve-disconnect'!J$15+'Res-Appliance class'!$E41*'RES S curve-disconnect'!J$20","v":-5891.0517442419341},{"$f":"'Res-Appliance class'!$B41*'RES S curve-disconnect'!K$5+'Res-Appliance class'!$C41*'RES S curve-disconnect'!K$10+'Res-Appliance class'!$D41*'RES S curve-disconnect'!K$15+'Res-Appliance class'!$E41*'RES S curve-disconnect'!K$20","v":-5217.4697702650583},{"$f":"'Res-Appliance class'!$B41*'RES S curve-disconnect'!L$5+'Res-Appliance class'!$C41*'RES S curve-disconnect'!L$10+'Res-Appliance class'!$D41*'RES S curve-disconnect'!L$15+'Res-Appliance class'!$E41*'RES S curve-disconnect'!L$20","v":-5443.8682105623839},{"$f":"'Res-Appliance class'!$B41*'RES S curve-disconnect'!M$5+'Res-Appliance class'!$C41*'RES S curve-disconnect'!M$10+'Res-Appliance class'!$D41*'RES S curve-disconnect'!M$15+'Res-Appliance class'!$E41*'RES S curve-disconnect'!M$20","v":-5888.0605509165061},{"$f":"'Res-Appliance class'!$B41*'RES S curve-disconnect'!N$5+'Res-Appliance class'!$C41*'RES S curve-disconnect'!N$10+'Res-Appliance class'!$D41*'RES S curve-disconnect'!N$15+'Res-Appliance class'!$E41*'RES S curve-disconnect'!N$20","v":-5913.6573167597644},{"$f":"'Res-Appliance class'!$B41*'RES S curve-disconnect'!O$5+'Res-Appliance class'!$C41*'RES S curve-disconnect'!O$10+'Res-Appliance class'!$D41*'RES S curve-disconnect'!O$15+'Res-Appliance class'!$E41*'RES S curve-disconnect'!O$20","v":-5496.3404052620408},{"$f":"'Res-Appliance class'!$B41*'RES S curve-disconnect'!P$5+'Res-Appliance class'!$C41*'RES S curve-disconnect'!P$10+'Res-Appliance class'!$D41*'RES S curve-disconnect'!P$15+'Res-Appliance class'!$E41*'RES S curve-disconnect'!P$20","v":-5158.761423727874},{"$f":"'Res-Appliance class'!$B41*'RES S curve-disconnect'!Q$5+'Res-Appliance class'!$C41*'RES S curve-disconnect'!Q$10+'Res-Appliance class'!$D41*'RES S curve-disconnect'!Q$15+'Res-Appliance class'!$E41*'RES S curve-disconnect'!Q$20","v":-4657.8050908102268},{"$f":"'Res-Appliance class'!$B41*'RES S curve-disconnect'!R$5+'Res-Appliance class'!$C41*'RES S curve-disconnect'!R$10+'Res-Appliance class'!$D41*'RES S curve-disconnect'!R$15+'Res-Appliance class'!$E41*'RES S curve-disconnect'!R$20","v":-4366.1498619407803},{"$f":"'Res-Appliance class'!$B41*'RES S curve-disconnect'!S$5+'Res-Appliance class'!$C41*'RES S curve-disconnect'!S$10+'Res-Appliance class'!$D41*'RES S curve-disconnect'!S$15+'Res-Appliance class'!$E41*'RES S curve-disconnect'!S$20","v":-3913.2731258719637},{"$f":"'Res-Appliance class'!$B41*'RES S curve-disconnect'!T$5+'Res-Appliance class'!$C41*'RES S curve-disconnect'!T$10+'Res-Appliance class'!$D41*'RES S curve-disconnect'!T$15+'Res-Appliance class'!$E41*'RES S curve-disconnect'!T$20","v":-3658.2118636206178},{"$f":"'Res-Appliance class'!$B41*'RES S curve-disconnect'!U$5+'Res-Appliance class'!$C41*'RES S curve-disconnect'!U$10+'Res-Appliance class'!$D41*'RES S curve-disconnect'!U$15+'Res-Appliance class'!$E41*'RES S curve-disconnect'!U$20","v":-3370.8418918835623},{"$f":"'Res-Appliance class'!$B41*'RES S curve-disconnect'!V$5+'Res-Appliance class'!$C41*'RES S curve-disconnect'!V$10+'Res-Appliance class'!$D41*'RES S curve-disconnect'!V$15+'Res-Appliance class'!$E41*'RES S curve-disconnect'!V$20","v":-3170.5669126322996},{"$f":"'Res-Appliance class'!$B41*'RES S curve-disconnect'!W$5+'Res-Appliance class'!$C41*'RES S curve-disconnect'!W$10+'Res-Appliance class'!$D41*'RES S curve-disconnect'!W$15+'Res-Appliance class'!$E41*'RES S curve-disconnect'!W$20","v":-3010.0189727857596},{"$f":"'Res-Appliance class'!$B41*'RES S curve-disconnect'!X$5+'Res-Appliance class'!$C41*'RES S curve-disconnect'!X$10+'Res-Appliance class'!$D41*'RES S curve-disconnect'!X$15+'Res-Appliance class'!$E41*'RES S curve-disconnect'!X$20","v":-2665.7605332106614},{"$f":"'Res-Appliance class'!$B41*'RES S curve-disconnect'!Y$5+'Res-Appliance class'!$C41*'RES S curve-disconnect'!Y$10+'Res-Appliance class'!$D41*'RES S curve-disconnect'!Y$15+'Res-Appliance class'!$E41*'RES S curve-disconnect'!Y$20","v":-2317.9626802097318},{"$f":"'Res-Appliance class'!$B41*'RES S curve-disconnect'!Z$5+'Res-Appliance class'!$C41*'RES S curve-disconnect'!Z$10+'Res-Appliance class'!$D41*'RES S curve-disconnect'!Z$15+'Res-Appliance class'!$E41*'RES S curve-disconnect'!Z$20","v":-2077.6513051222487},{"$f":"'Res-Appliance class'!$B41*'RES S curve-disconnect'!AA$5+'Res-Appliance class'!$C41*'RES S curve-disconnect'!AA$10+'Res-Appliance class'!$D41*'RES S curve-disconnect'!AA$15+'Res-Appliance class'!$E41*'RES S curve-disconnect'!AA$20","v":-1837.6626224793192},{"$f":"'Res-Appliance class'!$B41*'RES S curve-disconnect'!AB$5+'Res-Appliance class'!$C41*'RES S curve-disconnect'!AB$10+'Res-Appliance class'!$D41*'RES S curve-disconnect'!AB$15+'Res-Appliance class'!$E41*'RES S curve-disconnect'!AB$20","v":-1642.1830523370188},{"$f":"'Res-Appliance class'!$B41*'RES S curve-disconnect'!AC$5+'Res-Appliance class'!$C41*'RES S curve-disconnect'!AC$10+'Res-Appliance class'!$D41*'RES S curve-disconnect'!AC$15+'Res-Appliance class'!$E41*'RES S curve-disconnect'!AC$20","v":-1453.4681291214724},{"$f":"'Res-Appliance class'!$B41*'RES S curve-disconnect'!AD$5+'Res-Appliance class'!$C41*'RES S curve-disconnect'!AD$10+'Res-Appliance class'!$D41*'RES S curve-disconnect'!AD$15+'Res-Appliance class'!$E41*'RES S curve-disconnect'!AD$20","v":-1279.0878639914176},{"$f":"'Res-Appliance class'!$B41*'RES S curve-disconnect'!AE$5+'Res-Appliance class'!$C41*'RES S curve-disconnect'!AE$10+'Res-Appliance class'!$D41*'RES S curve-disconnect'!AE$15+'Res-Appliance class'!$E41*'RES S curve-disconnect'!AE$20","v":-1097.0275807158139},{"$f":"'Res-Appliance class'!$B41*'RES S curve-disconnect'!AF$5+'Res-Appliance class'!$C41*'RES S curve-disconnect'!AF$10+'Res-Appliance class'!$D41*'RES S curve-disconnect'!AF$15+'Res-Appliance class'!$E41*'RES S curve-disconnect'!AF$20","v":-865.86895448572204},{"$f":"'Res-Appliance class'!$B41*'RES S curve-disconnect'!AG$5+'Res-Appliance class'!$C41*'RES S curve-disconnect'!AG$10+'Res-Appliance class'!$D41*'RES S curve-disconnect'!AG$15+'Res-Appliance class'!$E41*'RES S curve-disconnect'!AG$20","v":-718.00931844685419},{"$f":"'Res-Appliance class'!$B41*'RES S curve-disconnect'!AH$5+'Res-Appliance class'!$C41*'RES S curve-disconnect'!AH$10+'Res-Appliance class'!$D41*'RES S curve-disconnect'!AH$15+'Res-Appliance class'!$E41*'RES S curve-disconnect'!AH$20","v":-509.23485021230726},{"$f":"'Res-Appliance class'!$B41*'RES S curve-disconnect'!AI$5+'Res-Appliance class'!$C41*'RES S curve-disconnect'!AI$10+'Res-Appliance class'!$D41*'RES S curve-disconnect'!AI$15+'Res-Appliance class'!$E41*'RES S curve-disconnect'!AI$20","v":-322.18421335284233},{"$f":"'Res-Appliance class'!$B41*'RES S curve-disconnect'!AJ$5+'Res-Appliance class'!$C41*'RES S curve-disconnect'!AJ$10+'Res-Appliance class'!$D41*'RES S curve-disconnect'!AJ$15+'Res-Appliance class'!$E41*'RES S curve-disconnect'!AJ$20","v":-153.25699506224385},{"$f":"'Res-Appliance class'!$B41*'RES S curve-disconnect'!AK$5+'Res-Appliance class'!$C41*'RES S curve-disconnect'!AK$10+'Res-Appliance class'!$D41*'RES S curve-disconnect'!AK$15+'Res-Appliance class'!$E41*'RES S curve-disconnect'!AK$20","v":26.068904012017185},{"$f":"'Res-Appliance class'!$B41*'RES S curve-disconnect'!AL$5+'Res-Appliance class'!$C41*'RES S curve-disconnect'!AL$10+'Res-Appliance class'!$D41*'RES S curve-disconnect'!AL$15+'Res-Appliance class'!$E41*'RES S curve-disconnect'!AL$20","v":-593.52820266363346},{"$f":"'Res-Appliance class'!$B41*'RES S curve-disconnect'!AM$5+'Res-Appliance class'!$C41*'RES S curve-disconnect'!AM$10+'Res-Appliance class'!$D41*'RES S curve-disconnect'!AM$15+'Res-Appliance class'!$E41*'RES S curve-disconnect'!AM$20","v":-675.68258328227876},{"$f":"'Res-Appliance class'!$B41*'RES S curve-disconnect'!AN$5+'Res-Appliance class'!$C41*'RES S curve-disconnect'!AN$10+'Res-Appliance class'!$D41*'RES S curve-disconnect'!AN$15+'Res-Appliance class'!$E41*'RES S curve-disconnect'!AN$20","v":-506.44095613792183},{"$f":"'Res-Appliance class'!$B41*'RES S curve-disconnect'!AO$5+'Res-Appliance class'!$C41*'RES S curve-disconnect'!AO$10+'Res-Appliance class'!$D41*'RES S curve-disconnect'!AO$15+'Res-Appliance class'!$E41*'RES S curve-disconnect'!AO$20","v":-298.92306388819645},{"$f":"'Res-Appliance class'!$B41*'RES S curve-disconnect'!AP$5+'Res-Appliance class'!$C41*'RES S curve-disconnect'!AP$10+'Res-Appliance class'!$D41*'RES S curve-disconnect'!AP$15+'Res-Appliance class'!$E41*'RES S curve-disconnect'!AP$20","v":-106.92039057791163},{"$f":"'Res-Appliance class'!$B41*'RES S curve-disconnect'!AQ$5+'Res-Appliance class'!$C41*'RES S curve-disconnect'!AQ$10+'Res-Appliance class'!$D41*'RES S curve-disconnect'!AQ$15+'Res-Appliance class'!$E41*'RES S curve-disconnect'!AQ$20","v":99.499407457074369},{"$f":"'Res-Appliance class'!$B41*'RES S curve-disconnect'!AR$5+'Res-Appliance class'!$C41*'RES S curve-disconnect'!AR$10+'Res-Appliance class'!$D41*'RES S curve-disconnect'!AR$15+'Res-Appliance class'!$E41*'RES S curve-disconnect'!AR$20","v":326.33869704178505},{"$f":"'Res-Appliance class'!$B41*'RES S curve-disconnect'!AS$5+'Res-Appliance class'!$C41*'RES S curve-disconnect'!AS$10+'Res-Appliance class'!$D41*'RES S curve-disconnect'!AS$15+'Res-Appliance class'!$E41*'RES S curve-disconnect'!AS$20","v":580.94518674365054},{"$f":"'Res-Appliance class'!$B41*'RES S curve-disconnect'!AT$5+'Res-Appliance class'!$C41*'RES S curve-disconnect'!AT$10+'Res-Appliance class'!$D41*'RES S curve-disconnect'!AT$15+'Res-Appliance class'!$E41*'RES S curve-disconnect'!AT$20","v":865.96498711834272},{"$f":"'Res-Appliance class'!$B41*'RES S curve-disconnect'!AU$5+'Res-Appliance class'!$C41*'RES S curve-disconnect'!AU$10+'Res-Appliance class'!$D41*'RES S curve-disconnect'!AU$15+'Res-Appliance class'!$E41*'RES S curve-disconnect'!AU$20","v":1195.4662698915947},{"$f":"'Res-Appliance class'!$B41*'RES S curve-disconnect'!AV$5+'Res-Appliance class'!$C41*'RES S curve-disconnect'!AV$10+'Res-Appliance class'!$D41*'RES S curve-disconnect'!AV$15+'Res-Appliance class'!$E41*'RES S curve-disconnect'!AV$20","v":1571.599552041049},{"$f":"'Res-Appliance class'!$B41*'RES S curve-disconnect'!AW$5+'Res-Appliance class'!$C41*'RES S curve-disconnect'!AW$10+'Res-Appliance class'!$D41*'RES S curve-disconnect'!AW$15+'Res-Appliance class'!$E41*'RES S curve-disconnect'!AW$20","v":2004.0745689935322},{"$f":"'Res-Appliance class'!$B41*'RES S curve-disconnect'!AX$5+'Res-Appliance class'!$C41*'RES S curve-disconnect'!AX$10+'Res-Appliance class'!$D41*'RES S curve-disconnect'!AX$15+'Res-Appliance class'!$E41*'RES S curve-disconnect'!AX$20","v":2497.308302120864},{"$f":"'Res-Appliance class'!$B41*'RES S curve-disconnect'!AY$5+'Res-Appliance class'!$C41*'RES S curve-disconnect'!AY$10+'Res-Appliance class'!$D41*'RES S curve-disconnect'!AY$15+'Res-Appliance class'!$E41*'RES S curve-disconnect'!AY$20","v":3066.3188739918696},{"$f":"'Res-Appliance class'!$B41*'RES S curve-disconnect'!AZ$5+'Res-Appliance class'!$C41*'RES S curve-disconnect'!AZ$10+'Res-Appliance class'!$D41*'RES S curve-disconnect'!AZ$15+'Res-Appliance class'!$E41*'RES S curve-disconnect'!AZ$20","v":3717.2443504935163},{"$f":"'Res-Appliance class'!$B41*'RES S curve-disconnect'!BA$5+'Res-Appliance class'!$C41*'RES S curve-disconnect'!BA$10+'Res-Appliance class'!$D41*'RES S curve-disconnect'!BA$15+'Res-Appliance class'!$E41*'RES S curve-disconnect'!BA$20","v":4471.3987193938701},{"$f":"'Res-Appliance class'!$B41*'RES S curve-disconnect'!BB$5+'Res-Appliance class'!$C41*'RES S curve-disconnect'!BB$10+'Res-Appliance class'!$D41*'RES S curve-disconnect'!BB$15+'Res-Appliance class'!$E41*'RES S curve-disconnect'!BB$20","v":5353.0514121024044},{"$f":"'Res-Appliance class'!$B41*'RES S curve-disconnect'!BC$5+'Res-Appliance class'!$C41*'RES S curve-disconnect'!BC$10+'Res-Appliance class'!$D41*'RES S curve-disconnect'!BC$15+'Res-Appliance class'!$E41*'RES S curve-disconnect'!BC$20","v":6404.5502200043065},{"$f":"'Res-Appliance class'!$B41*'RES S curve-disconnect'!BD$5+'Res-Appliance class'!$C41*'RES S curve-disconnect'!BD$10+'Res-Appliance class'!$D41*'RES S curve-disconnect'!BD$15+'Res-Appliance class'!$E41*'RES S curve-disconnect'!BD$20","v":7420.3381024836108},{"$f":"'Res-Appliance class'!$B41*'RES S curve-disconnect'!BE$5+'Res-Appliance class'!$C41*'RES S curve-disconnect'!BE$10+'Res-Appliance class'!$D41*'RES S curve-disconnect'!BE$15+'Res-Appliance class'!$E41*'RES S curve-disconnect'!BE$20","v":8349.2426258833475},{"$f":"'Res-Appliance class'!$B41*'RES S curve-disconnect'!BF$5+'Res-Appliance class'!$C41*'RES S curve-disconnect'!BF$10+'Res-Appliance class'!$D41*'RES S curve-disconnect'!BF$15+'Res-Appliance class'!$E41*'RES S curve-disconnect'!BF$20","v":9299.5484452388282},{"$f":"'Res-Appliance class'!$B41*'RES S curve-disconnect'!BG$5+'Res-Appliance class'!$C41*'RES S curve-disconnect'!BG$10+'Res-Appliance class'!$D41*'RES S curve-disconnect'!BG$15+'Res-Appliance class'!$E41*'RES S curve-disconnect'!BG$20","v":10374.558094808861},{"$f":"'Res-Appliance class'!$B41*'RES S curve-disconnect'!BH$5+'Res-Appliance class'!$C41*'RES S curve-disconnect'!BH$10+'Res-Appliance class'!$D41*'RES S curve-disconnect'!BH$15+'Res-Appliance class'!$E41*'RES S curve-disconnect'!BH$20","v":11650.99228529758},{"$f":"'Res-Appliance class'!$B41*'RES S curve-disconnect'!BI$5+'Res-Appliance class'!$C41*'RES S curve-disconnect'!BI$10+'Res-Appliance class'!$D41*'RES S curve-disconnect'!BI$15+'Res-Appliance class'!$E41*'RES S curve-disconnect'!BI$20","v":13500.250922169153},{"$f":"'Res-Appliance class'!$B41*'RES S curve-disconnect'!BJ$5+'Res-Appliance class'!$C41*'RES S curve-disconnect'!BJ$10+'Res-Appliance class'!$D41*'RES S curve-disconnect'!BJ$15+'Res-Appliance class'!$E41*'RES S curve-disconnect'!BJ$20","v":16210.277780845634},{"$f":"'Res-Appliance class'!$B41*'RES S curve-disconnect'!BK$5+'Res-Appliance class'!$C41*'RES S curve-disconnect'!BK$10+'Res-Appliance class'!$D41*'RES S curve-disconnect'!BK$15+'Res-Appliance class'!$E41*'RES S curve-disconnect'!BK$20","v":20212.197585378162},{"$f":"'Res-Appliance class'!$B41*'RES S curve-disconnect'!BL$5+'Res-Appliance class'!$C41*'RES S curve-disconnect'!BL$10+'Res-Appliance class'!$D41*'RES S curve-disconnect'!BL$15+'Res-Appliance class'!$E41*'RES S curve-disconnect'!BL$20","v":-2863.9434658518176},{"$f":"'Res-Appliance class'!$B41*'RES S curve-disconnect'!BM$5+'Res-Appliance class'!$C41*'RES S curve-disconnect'!BM$10+'Res-Appliance class'!$D41*'RES S curve-disconnect'!BM$15+'Res-Appliance class'!$E41*'RES S curve-disconnect'!BM$20","v":-2858.9777208069991},{"$f":"'Res-Appliance class'!$B41*'RES S curve-disconnect'!BN$5+'Res-Appliance class'!$C41*'RES S curve-disconnect'!BN$10+'Res-Appliance class'!$D41*'RES S curve-disconnect'!BN$15+'Res-Appliance class'!$E41*'RES S curve-disconnect'!BN$20","v":-2856.2811397467794},{"$f":"'Res-Appliance class'!$B41*'RES S curve-disconnect'!BO$5+'Res-Appliance class'!$C41*'RES S curve-disconnect'!BO$10+'Res-Appliance class'!$D41*'RES S curve-disconnect'!BO$15+'Res-Appliance class'!$E41*'RES S curve-disconnect'!BO$20","v":-2849.065073612438},{"$f":"'Res-Appliance class'!$B41*'RES S curve-disconnect'!BP$5+'Res-Appliance class'!$C41*'RES S curve-disconnect'!BP$10+'Res-Appliance class'!$D41*'RES S curve-disconnect'!BP$15+'Res-Appliance class'!$E41*'RES S curve-disconnect'!BP$20","v":-2844.1180967911932},{"$f":"'Res-Appliance class'!$B41*'RES S curve-disconnect'!BQ$5+'Res-Appliance class'!$C41*'RES S curve-disconnect'!BQ$10+'Res-Appliance class'!$D41*'RES S curve-disconnect'!BQ$15+'Res-Appliance class'!$E41*'RES S curve-disconnect'!BQ$20","v":-2839.1773017573341},{"$f":"'Res-Appliance class'!$B41*'RES S curve-disconnect'!BR$5+'Res-Appliance class'!$C41*'RES S curve-disconnect'!BR$10+'Res-Appliance class'!$D41*'RES S curve-disconnect'!BR$15+'Res-Appliance class'!$E41*'RES S curve-disconnect'!BR$20","v":-2836.5055222852175},{"$f":"'Res-Appliance class'!$B41*'RES S curve-disconnect'!BS$5+'Res-Appliance class'!$C41*'RES S curve-disconnect'!BS$10+'Res-Appliance class'!$D41*'RES S curve-disconnect'!BS$15+'Res-Appliance class'!$E41*'RES S curve-disconnect'!BS$20","v":-2829.3141102333866},{"$f":"'Res-Appliance class'!$B41*'RES S curve-disconnect'!BT$5+'Res-Appliance class'!$C41*'RES S curve-disconnect'!BT$10+'Res-Appliance class'!$D41*'RES S curve-disconnect'!BT$15+'Res-Appliance class'!$E41*'RES S curve-disconnect'!BT$20","v":-2824.3916409005415},{"$f":"'Res-Appliance class'!$B41*'RES S curve-disconnect'!BU$5+'Res-Appliance class'!$C41*'RES S curve-disconnect'!BU$10+'Res-Appliance class'!$D41*'RES S curve-disconnect'!BU$15+'Res-Appliance class'!$E41*'RES S curve-disconnect'!BU$20","v":-2819.4752076667169},{"$f":"'Res-Appliance class'!$B41*'RES S curve-disconnect'!BV$5+'Res-Appliance class'!$C41*'RES S curve-disconnect'!BV$10+'Res-Appliance class'!$D41*'RES S curve-disconnect'!BV$15+'Res-Appliance class'!$E41*'RES S curve-disconnect'!BV$20","v":-2816.8276452063133},{"$f":"'Res-Appliance class'!$B41*'RES S curve-disconnect'!BW$5+'Res-Appliance class'!$C41*'RES S curve-disconnect'!BW$10+'Res-Appliance class'!$D41*'RES S curve-disconnect'!BW$15+'Res-Appliance class'!$E41*'RES S curve-disconnect'!BW$20","v":-2809.6603062722488},{"$f":"'Res-Appliance class'!$B41*'RES S curve-disconnect'!BX$5+'Res-Appliance class'!$C41*'RES S curve-disconnect'!BX$10+'Res-Appliance class'!$D41*'RES S curve-disconnect'!BX$15+'Res-Appliance class'!$E41*'RES S curve-disconnect'!BX$20","v":-2804.7617670519708},{"$f":"'Res-Appliance class'!$B41*'RES S curve-disconnect'!BY$5+'Res-Appliance class'!$C41*'RES S curve-disconnect'!BY$10+'Res-Appliance class'!$D41*'RES S curve-disconnect'!BY$15+'Res-Appliance class'!$E41*'RES S curve-disconnect'!BY$20","v":-2799.8691218086633},{"$f":"'Res-Appliance class'!$B41*'RES S curve-disconnect'!BZ$5+'Res-Appliance class'!$C41*'RES S curve-disconnect'!BZ$10+'Res-Appliance class'!$D41*'RES S curve-disconnect'!BZ$15+'Res-Appliance class'!$E41*'RES S curve-disconnect'!BZ$20","v":-2797.2452060943237},{"$f":"'Res-Appliance class'!$B41*'RES S curve-disconnect'!CA$5+'Res-Appliance class'!$C41*'RES S curve-disconnect'!CA$10+'Res-Appliance class'!$D41*'RES S curve-disconnect'!CA$15+'Res-Appliance class'!$E41*'RES S curve-disconnect'!CA$20","v":-2790.1013735339347},{"$f":"'Res-Appliance class'!$B41*'RES S curve-disconnect'!CB$5+'Res-Appliance class'!$C41*'RES S curve-disconnect'!CB$10+'Res-Appliance class'!$D41*'RES S curve-disconnect'!CB$15+'Res-Appliance class'!$E41*'RES S curve-disconnect'!CB$20","v":-2785.2262011815224},{"$f":"'Res-Appliance class'!$B41*'RES S curve-disconnect'!CC$5+'Res-Appliance class'!$C41*'RES S curve-disconnect'!CC$10+'Res-Appliance class'!$D41*'RES S curve-disconnect'!CC$15+'Res-Appliance class'!$E41*'RES S curve-disconnect'!CC$20","v":-2780.3567841613999},{"$f":"'Res-Appliance class'!$B41*'RES S curve-disconnect'!CD$5+'Res-Appliance class'!$C41*'RES S curve-disconnect'!CD$10+'Res-Appliance class'!$D41*'RES S curve-disconnect'!CD$15+'Res-Appliance class'!$E41*'RES S curve-disconnect'!CD$20","v":-2856.2592349809129}]
["Port Phillip (C)",null,{"$f":"'Res-Appliance class'!$B42*'RES S curve-disconnect'!C$5+'Res-Appliance class'!$C42*'RES S curve-disconnect'!C$10+'Res-Appliance class'!$D42*'RES S curve-disconnect'!C$15+'Res-Appliance class'!$E42*'RES S curve-disconnect'!C$20","v":-3638.1956898872304},{"$f":"'Res-Appliance class'!$B42*'RES S curve-disconnect'!D$5+'Res-Appliance class'!$C42*'RES S curve-disconnect'!D$10+'Res-Appliance class'!$D42*'RES S curve-disconnect'!D$15+'Res-Appliance class'!$E42*'RES S curve-disconnect'!D$20","v":-3868.554363742955},{"$f":"'Res-Appliance class'!$B42*'RES S curve-disconnect'!E$5+'Res-Appliance class'!$C42*'RES S curve-disconnect'!E$10+'Res-Appliance class'!$D42*'RES S curve-disconnect'!E$15+'Res-Appliance class'!$E42*'RES S curve-disconnect'!E$20","v":-3329.9661308531049},{"$f":"'Res-Appliance class'!$B42*'RES S curve-disconnect'!F$5+'Res-Appliance class'!$C42*'RES S curve-disconnect'!F$10+'Res-Appliance class'!$D42*'RES S curve-disconnect'!F$15+'Res-Appliance class'!$E42*'RES S curve-disconnect'!F$20","v":-3268.2124203340327},{"$f":"'Res-Appliance class'!$B42*'RES S curve-disconnect'!G$5+'Res-Appliance class'!$C42*'RES S curve-disconnect'!G$10+'Res-Appliance class'!$D42*'RES S curve-disconnect'!G$15+'Res-Appliance class'!$E42*'RES S curve-disconnect'!G$20","v":-3824.4675516386637},{"$f":"'Res-Appliance class'!$B42*'RES S curve-disconnect'!H$5+'Res-Appliance class'!$C42*'RES S curve-disconnect'!H$10+'Res-Appliance class'!$D42*'RES S curve-disconnect'!H$15+'Res-Appliance class'!$E42*'RES S curve-disconnect'!H$20","v":-3858.3037766529874},{"$f":"'Res-Appliance class'!$B42*'RES S curve-disconnect'!I$5+'Res-Appliance class'!$C42*'RES S curve-disconnect'!I$10+'Res-Appliance class'!$D42*'RES S curve-disconnect'!I$15+'Res-Appliance class'!$E42*'RES S curve-disconnect'!I$20","v":-3674.5859339172484},{"$f":"'Res-Appliance class'!$B42*'RES S curve-disconnect'!J$5+'Res-Appliance class'!$C42*'RES S curve-disconnect'!J$10+'Res-Appliance class'!$D42*'RES S curve-disconnect'!J$15+'Res-Appliance class'!$E42*'RES S curve-disconnect'!J$20","v":-3987.354088872426},{"$f":"'Res-Appliance class'!$B42*'RES S curve-disconnect'!K$5+'Res-Appliance class'!$C42*'RES S curve-disconnect'!K$10+'Res-Appliance class'!$D42*'RES S curve-disconnect'!K$15+'Res-Appliance class'!$E42*'RES S curve-disconnect'!K$20","v":-3559.3503426731872},{"$f":"'Res-Appliance class'!$B42*'RES S curve-disconnect'!L$5+'Res-Appliance class'!$C42*'RES S curve-disconnect'!L$10+'Res-Appliance class'!$D42*'RES S curve-disconnect'!L$15+'Res-Appliance class'!$E42*'RES S curve-disconnect'!L$20","v":-3701.1229814627841},{"$f":"'Res-Appliance class'!$B42*'RES S curve-disconnect'!M$5+'Res-Appliance class'!$C42*'RES S curve-disconnect'!M$10+'Res-Appliance class'!$D42*'RES S curve-disconnect'!M$15+'Res-Appliance class'!$E42*'RES S curve-disconnect'!M$20","v":-3943.8037135606683},{"$f":"'Res-Appliance class'!$B42*'RES S curve-disconnect'!N$5+'Res-Appliance class'!$C42*'RES S curve-disconnect'!N$10+'Res-Appliance class'!$D42*'RES S curve-disconnect'!N$15+'Res-Appliance class'!$E42*'RES S curve-disconnect'!N$20","v":-3954.0219646975775},{"$f":"'Res-Appliance class'!$B42*'RES S curve-disconnect'!O$5+'Res-Appliance class'!$C42*'RES S curve-disconnect'!O$10+'Res-Appliance class'!$D42*'RES S curve-disconnect'!O$15+'Res-Appliance class'!$E42*'RES S curve-disconnect'!O$20","v":-3693.9519072972607},{"$f":"'Res-Appliance class'!$B42*'RES S curve-disconnect'!P$5+'Res-Appliance class'!$C42*'RES S curve-disconnect'!P$10+'Res-Appliance class'!$D42*'RES S curve-disconnect'!P$15+'Res-Appliance class'!$E42*'RES S curve-disconnect'!P$20","v":-3487.1009372080662},{"$f":"'Res-Appliance class'!$B42*'RES S curve-disconnect'!Q$5+'Res-Appliance class'!$C42*'RES S curve-disconnect'!Q$10+'Res-Appliance class'!$D42*'RES S curve-disconnect'!Q$15+'Res-Appliance class'!$E42*'RES S curve-disconnect'!Q$20","v":-3182.258638932647},{"$f":"'Res-Appliance class'!$B42*'RES S curve-disconnect'!R$5+'Res-Appliance class'!$C42*'RES S curve-disconnect'!R$10+'Res-Appliance class'!$D42*'RES S curve-disconnect'!R$15+'Res-Appliance class'!$E42*'RES S curve-disconnect'!R$20","v":-3003.6809303428649},{"$f":"'Res-Appliance class'!$B42*'RES S curve-disconnect'!S$5+'Res-Appliance class'!$C42*'RES S curve-disconnect'!S$10+'Res-Appliance class'!$D42*'RES S curve-disconnect'!S$15+'Res-Appliance class'!$E42*'RES S curve-disconnect'!S$20","v":-2722.5203694655306},{"$f":"'Res-Appliance class'!$B42*'RES S curve-disconnect'!T$5+'Res-Appliance class'!$C42*'RES S curve-disconnect'!T$10+'Res-Appliance class'!$D42*'RES S curve-disconnect'!T$15+'Res-Appliance class'!$E42*'RES S curve-disconnect'!T$20","v":-2575.4659337141093},{"$f":"'Res-Appliance class'!$B42*'RES S curve-disconnect'!U$5+'Res-Appliance class'!$C42*'RES S curve-disconnect'!U$10+'Res-Appliance class'!$D42*'RES S curve-disconnect'!U$15+'Res-Appliance class'!$E42*'RES S curve-disconnect'!U$20","v":-2401.0797965040697},{"$f":"'Res-Appliance class'!$B42*'RES S curve-disconnect'!V$5+'Res-Appliance class'!$C42*'RES S curve-disconnect'!V$10+'Res-Appliance class'!$D42*'RES S curve-disconnect'!V$15+'Res-Appliance class'!$E42*'RES S curve-disconnect'!V$20","v":-2274.7503209416855},{"$f":"'Res-Appliance class'!$B42*'RES S curve-disconnect'!W$5+'Res-Appliance class'!$C42*'RES S curve-disconnect'!W$10+'Res-Appliance class'!$D42*'RES S curve-disconnect'!W$15+'Res-Appliance class'!$E42*'RES S curve-disconnect'!W$20","v":-2173.1441842859804},{"$f":"'Res-Appliance class'!$B42*'RES S curve-disconnect'!X$5+'Res-Appliance class'!$C42*'RES S curve-disconnect'!X$10+'Res-Appliance class'!$D42*'RES S curve-disconnect'!X$15+'Res-Appliance class'!$E42*'RES S curve-disconnect'!X$20","v":-1966.8847870349941},{"$f":"'Res-Appliance class'!$B42*'RES S curve-disconnect'!Y$5+'Res-Appliance class'!$C42*'RES S curve-disconnect'!Y$10+'Res-Appliance class'!$D42*'RES S curve-disconnect'!Y$15+'Res-Appliance class'!$E42*'RES S curve-disconnect'!Y$20","v":-1757.146275528446},{"$f":"'Res-Appliance class'!$B42*'RES S curve-disconnect'!Z$5+'Res-Appliance class'!$C42*'RES S curve-disconnect'!Z$10+'Res-Appliance class'!$D42*'RES S curve-disconnect'!Z$15+'Res-Appliance class'!$E42*'RES S curve-disconnect'!Z$20","v":-1609.970133241171},{"$f":"'Res-Appliance class'!$B42*'RES S curve-disconnect'!AA$5+'Res-Appliance class'!$C42*'RES S curve-disconnect'!AA$10+'Res-Appliance class'!$D42*'RES S curve-disconnect'!AA$15+'Res-Appliance class'!$E42*'RES S curve-disconnect'!AA$20","v":-1461.3757360382494},{"$f":"'Res-Appliance class'!$B42*'RES S curve-disconnect'!AB$5+'Res-Appliance class'!$C42*'RES S curve-disconnect'!AB$10+'Res-Appliance class'!$D42*'RES S curve-disconnect'!AB$15+'Res-Appliance class'!$E42*'RES S curve-disconnect'!AB$20","v":-1339.3169889125666},{"$f":"'Res-Appliance class'!$B42*'RES S curve-disconnect'!AC$5+'Res-Appliance class'!$C42*'RES S curve-disconnect'!AC$10+'Res-Appliance class'!$D42*'RES S curve-disconnect'!AC$15+'Res-Appliance class'!$E42*'RES S curve-disconnect'!AC$20","v":-1220.3267084831202},{"$f":"'Res-Appliance class'!$B42*'RES S curve-disconnect'!AD$5+'Res-Appliance class'!$C42*'RES S curve-disconnect'!AD$10+'Res-Appliance class'!$D42*'RES S curve-disconnect'!AD$15+'Res-Appliance class'!$E42*'RES S curve-disconnect'!AD$20","v":-1110.055439417976},{"$f":"'Res-Appliance class'!$B42*'RES S curve-disconnect'!AE$5+'Res-Appliance class'!$C42*'RES S curve-disconnect'!AE$10+'Res-Appliance class'!$D42*'RES S curve-disconnect'!AE$15+'Res-Appliance class'!$E42*'RES S curve-disconnect'!AE$20","v":-992.84650886764643},{"$f":"'Res-Appliance class'!$B42*'RES S curve-disconnect'!AF$5+'Res-Appliance class'!$C42*'RES S curve-disconnect'!AF$10+'Res-Appliance class'!$D42*'RES S curve-disconnect'!AF$15+'Res-Appliance class'!$E42*'RES S curve-disconnect'!AF$20","v":-847.89587237549392},{"$f":"'Res-Appliance class'!$B42*'RES S curve-disconnect'!AG$5+'Res-Appliance class'!$C42*'RES S curve-disconnect'!AG$10+'Res-Appliance class'!$D42*'RES S curve-disconnect'!AG$15+'Res-Appliance class'!$E42*'RES S curve-disconnect'!AG$20","v":-756.67981034323748},{"$f":"'Res-Appliance class'!$B42*'RES S curve-disconnect'!AH$5+'Res-Appliance class'!$C42*'RES S curve-disconnect'!AH$10+'Res-Appliance class'!$D42*'RES S curve-disconnect'!AH$15+'Res-Appliance class'!$E42*'RES S curve-disconnect'!AH$20","v":-632.4896410924689},{"$f":"'Res-Appliance class'!$B42*'RES S curve-disconnect'!AI$5+'Res-Appliance class'!$C42*'RES S curve-disconnect'!AI$10+'Res-Appliance class'!$D42*'RES S curve-disconnect'!AI$15+'Res-Appliance class'!$E42*'RES S curve-disconnect'!AI$20","v":-517.05524137342479},{"$f":"'Res-Appliance class'!$B42*'RES S curve-disconnect'!AJ$5+'Res-Appliance class'!$C42*'RES S curve-disconnect'!AJ$10+'Res-Appliance class'!$D42*'RES S curve-disconnect'!AJ$15+'Res-Appliance class'!$E42*'RES S curve-disconnect'!AJ$20","v":-413.66914955562049},{"$f":"'Res-Appliance class'!$B42*'RES S curve-disconnect'!AK$5+'Res-Appliance class'!$C42*'RES S curve-disconnect'!AK$10+'Res-Appliance class'!$D42*'RES S curve-disconnect'!AK$15+'Res-Appliance class'!$E42*'RES S curve-disconnect'!AK$20","v":-303.7743148891098},{"$f":"'Res-Appliance class'!$B42*'RES S curve-disconnect'!AL$5+'Res-Appliance class'!$C42*'RES S curve-disconnect'!AL$10+'Res-Appliance class'!$D42*'RES S curve-disconnect'!AL$15+'Res-Appliance class'!$E42*'RES S curve-disconnect'!AL$20","v":-694.44384331966671},{"$f":"'Res-Appliance class'!$B42*'RES S curve-disconnect'!AM$5+'Res-Appliance class'!$C42*'RES S curve-disconnect'!AM$10+'Res-Appliance class'!$D42*'RES S curve-disconnect'!AM$15+'Res-Appliance class'!$E42*'RES S curve-disconnect'!AM$20","v":-739.88822361098676},{"$f":"'Res-Appliance class'!$B42*'RES S curve-disconnect'!AN$5+'Res-Appliance class'!$C42*'RES S curve-disconnect'!AN$10+'Res-Appliance class'!$D42*'RES S curve-disconnect'!AN$15+'Res-Appliance class'!$E42*'RES S curve-disconnect'!AN$20","v":-632.93819096200514},{"$f":"'Res-Appliance class'!$B42*'RES S curve-disconnect'!AO$5+'Res-Appliance class'!$C42*'RES S curve-disconnect'!AO$10+'Res-Appliance class'!$D42*'RES S curve-disconnect'!AO$15+'Res-Appliance class'!$E42*'RES S curve-disconnect'!AO$20","v":-504.87465513635726},{"$f":"'Res-Appliance class'!$B42*'RES S curve-disconnect'!AP$5+'Res-Appliance class'!$C42*'RES S curve-disconnect'!AP$10+'Res-Appliance class'!$D42*'RES S curve-disconnect'!AP$15+'Res-Appliance class'!$E42*'RES S curve-disconnect'!AP$20","v":-388.19302500922305},{"$f":"'Res-Appliance class'!$B42*'RES S curve-disconnect'!AQ$5+'Res-Appliance class'!$C42*'RES S curve-disconnect'!AQ$10+'Res-Appliance class'!$D42*'RES S curve-disconnect'!AQ$15+'Res-Appliance class'!$E42*'RES S curve-disconnect'!AQ$20","v":-260.91771840016202},{"$f":"'Res-Appliance class'!$B42*'RES S curve-disconnect'!AR$5+'Res-Appliance class'!$C42*'RES S curve-disconnect'!AR$10+'Res-Appliance class'!$D42*'RES S curve-disconnect'!AR$15+'Res-Appliance class'!$E42*'RES S curve-disconnect'!AR$20","v":-122.12836336202039},{"$f":"'Res-Appliance class'!$B42*'RES S curve-disconnect'!AS$5+'Res-Appliance class'!$C42*'RES S curve-disconnect'!AS$10+'Res-Appliance class'!$D42*'RES S curve-disconnect'!AS$15+'Res-Appliance class'!$E42*'RES S curve-disconnect'!AS$20","v":33.367872456027953},{"$f":"'Res-Appliance class'!$B42*'RES S curve-disconnect'!AT$5+'Res-Appliance class'!$C42*'RES S curve-disconnect'!AT$10+'Res-Appliance class'!$D42*'RES S curve-disconnect'!AT$15+'Res-Appliance class'!$E42*'RES S curve-disconnect'!AT$20","v":206.19799633512037},{"$f":"'Res-Appliance class'!$B42*'RES S curve-disconnect'!AU$5+'Res-Appliance class'!$C42*'RES S curve-disconnect'!AU$10+'Res-Appliance class'!$D42*'RES S curve-disconnect'!AU$15+'Res-Appliance class'!$E42*'RES S curve-disconnect'!AU$20","v":407.48738378349503},{"$f":"'Res-Appliance class'!$B42*'RES S curve-disconnect'!AV$5+'Res-Appliance class'!$C42*'RES S curve-disconnect'!AV$10+'Res-Appliance class'!$D42*'RES S curve-disconnect'!AV$15+'Res-Appliance class'!$E42*'RES S curve-disconnect'!AV$20","v":635.72696614588256},{"$f":"'Res-Appliance class'!$B42*'RES S curve-disconnect'!AW$5+'Res-Appliance class'!$C42*'RES S curve-disconnect'!AW$10+'Res-Appliance class'!$D42*'RES S curve-disconnect'!AW$15+'Res-Appliance class'!$E42*'RES S curve-disconnect'!AW$20","v":897.42726015430117},{"$f":"'Res-Appliance class'!$B42*'RES S curve-disconnect'!AX$5+'Res-Appliance class'!$C42*'RES S curve-disconnect'!AX$10+'Res-Appliance class'!$D42*'RES S curve-disconnect'!AX$15+'Res-Appliance class'!$E42*'RES S curve-disconnect'!AX$20","v":1194.031006490156},{"$f":"'Res-Appliance class'!$B42*'RES S curve-disconnect'!AY$5+'Res-Appliance class'!$C42*'RES S curve-disconnect'!AY$10+'Res-Appliance class'!$D42*'RES S curve-disconnect'!AY$15+'Res-Appliance class'!$E42*'RES S curve-disconnect'!AY$20","v":1536.9388571118882},{"$f":"'Res-Appliance class'!$B42*'RES S curve-disconnect'!AZ$5+'Res-Appliance class'!$C42*'RES S curve-disconnect'!AZ$10+'Res-Appliance class'!$D42*'RES S curve-disconnect'!AZ$15+'Res-Appliance class'!$E42*'RES S curve-disconnect'!AZ$20","v":1926.75982649819},{"$f":"'Res-Appliance class'!$B42*'RES S curve-disconnect'!BA$5+'Res-Appliance class'!$C42*'RES S curve-disconnect'!BA$10+'Res-Appliance class'!$D42*'RES S curve-disconnect'!BA$15+'Res-Appliance class'!$E42*'RES S curve-disconnect'!BA$20","v":2376.7213852901386},{"$f":"'Res-Appliance class'!$B42*'RES S curve-disconnect'!BB$5+'Res-Appliance class'!$C42*'RES S curve-disconnect'!BB$10+'Res-Appliance class'!$D42*'RES S curve-disconnect'!BB$15+'Res-Appliance class'!$E42*'RES S curve-disconnect'!BB$20","v":2899.7864581686872},{"$f":"'Res-Appliance class'!$B42*'RES S curve-disconnect'!BC$5+'Res-Appliance class'!$C42*'RES S curve-disconnect'!BC$10+'Res-Appliance class'!$D42*'RES S curve-disconnect'!BC$15+'Res-Appliance class'!$E42*'RES S curve-disconnect'!BC$20","v":3523.0745102142891},{"$f":"'Res-Appliance class'!$B42*'RES S curve-disconnect'!BD$5+'Res-Appliance class'!$C42*'RES S curve-disconnect'!BD$10+'Res-Appliance class'!$D42*'RES S curve-disconnect'!BD$15+'Res-Appliance class'!$E42*'RES S curve-disconnect'!BD$20","v":4117.5607110921974},{"$f":"'Res-Appliance class'!$B42*'RES S curve-disconnect'!BE$5+'Res-Appliance class'!$C42*'RES S curve-disconnect'!BE$10+'Res-Appliance class'!$D42*'RES S curve-disconnect'!BE$15+'Res-Appliance class'!$E42*'RES S curve-disconnect'!BE$20","v":4658.6533038494754},{"$f":"'Res-Appliance class'!$B42*'RES S curve-disconnect'!BF$5+'Res-Appliance class'!$C42*'RES S curve-disconnect'!BF$10+'Res-Appliance class'!$D42*'RES S curve-disconnect'!BF$15+'Res-Appliance class'!$E42*'RES S curve-disconnect'!BF$20","v":5212.9653755871204},{"$f":"'Res-Appliance class'!$B42*'RES S curve-disconnect'!BG$5+'Res-Appliance class'!$C42*'RES S curve-disconnect'!BG$10+'Res-Appliance class'!$D42*'RES S curve-disconnect'!BG$15+'Res-Appliance class'!$E42*'RES S curve-disconnect'!BG$20","v":5842.885697560112},{"$f":"'Res-Appliance class'!$B42*'RES S curve-disconnect'!BH$5+'Res-Appliance class'!$C42*'RES S curve-disconnect'!BH$10+'Res-Appliance class'!$D42*'RES S curve-disconnect'!BH$15+'Res-Appliance class'!$E42*'RES S curve-disconnect'!BH$20","v":6589.1089049770817},{"$f":"'Res-Appliance class'!$B42*'RES S curve-disconnect'!BI$5+'Res-Appliance class'!$C42*'RES S curve-disconnect'!BI$10+'Res-Appliance class'!$D42*'RES S curve-disconnect'!BI$15+'Res-Appliance class'!$E42*'RES S curve-disconnect'!BI$20","v":7671.9868236724133},{"$f":"'Res-Appliance class'!$B42*'RES S curve-disconnect'!BJ$5+'Res-Appliance class'!$C42*'RES S curve-disconnect'!BJ$10+'Res-Appliance class'!$D42*'RES S curve-disconnect'!BJ$15+'Res-Appliance class'!$E42*'RES S curve-disconnect'!BJ$20","v":9250.0804342311694},{"$f":"'Res-Appliance class'!$B42*'RES S curve-disconnect'!BK$5+'Res-Appliance class'!$C42*'RES S curve-disconnect'!BK$10+'Res-Appliance class'!$D42*'RES S curve-disconnect'!BK$15+'Res-Appliance class'!$E42*'RES S curve-disconnect'!BK$20","v":11567.467936361258},{"$f":"'Res-Appliance class'!$B42*'RES S curve-disconnect'!BL$5+'Res-Appliance class'!$C42*'RES S curve-disconnect'!BL$10+'Res-Appliance class'!$D42*'RES S curve-disconnect'!BL$15+'Res-Appliance class'!$E42*'RES S curve-disconnect'!BL$20","v":-2114.3643407531949},{"$f":"'Res-Appliance class'!$B42*'RES S curve-disconnect'!BM$5+'Res-Appliance class'!$C42*'RES S curve-disconnect'!BM$10+'Res-Appliance class'!$D42*'RES S curve-disconnect'!BM$15+'Res-Appliance class'!$E42*'RES S curve-disconnect'!BM$20","v":-2111.3387635926788},{"$f":"'Res-Appliance class'!$B42*'RES S curve-disconnect'!BN$5+'Res-Appliance class'!$C42*'RES S curve-disconnect'!BN$10+'Res-Appliance class'!$D42*'RES S curve-disconnect'!BN$15+'Res-Appliance class'!$E42*'RES S curve-disconnect'!BN$20","v":-2110.5811074948519},{"$f":"'Res-Appliance class'!$B42*'RES S curve-disconnect'!BO$5+'Res-Appliance class'!$C42*'RES S curve-disconnect'!BO$10+'Res-Appliance class'!$D42*'RES S curve-disconnect'!BO$15+'Res-Appliance class'!$E42*'RES S curve-disconnect'!BO$20","v":-2105.3027297409581},{"$f":"'Res-Appliance class'!$B42*'RES S curve-disconnect'!BP$5+'Res-Appliance class'!$C42*'RES S curve-disconnect'!BP$10+'Res-Appliance class'!$D42*'RES S curve-disconnect'!BP$15+'Res-Appliance class'!$E42*'RES S curve-disconnect'!BP$20","v":-2102.2922110222844},{"$f":"'Res-Appliance class'!$B42*'RES S curve-disconnect'!BQ$5+'Res-Appliance class'!$C42*'RES S curve-disconnect'!BQ$10+'Res-Appliance class'!$D42*'RES S curve-disconnect'!BQ$15+'Res-Appliance class'!$E42*'RES S curve-disconnect'!BQ$20","v":-2099.2866500815148},{"$f":"'Res-Appliance class'!$B42*'RES S curve-disconnect'!BR$5+'Res-Appliance class'!$C42*'RES S curve-disconnect'!BR$10+'Res-Appliance class'!$D42*'RES S curve-disconnect'!BR$15+'Res-Appliance class'!$E42*'RES S curve-disconnect'!BR$20","v":-2098.5488869259375},{"$f":"'Res-Appliance class'!$B42*'RES S curve-disconnect'!BS$5+'Res-Appliance class'!$C42*'RES S curve-disconnect'!BS$10+'Res-Appliance class'!$D42*'RES S curve-disconnect'!BS$15+'Res-Appliance class'!$E42*'RES S curve-disconnect'!BS$20","v":-2093.2902796117769},{"$f":"'Res-Appliance class'!$B42*'RES S curve-disconnect'!BT$5+'Res-Appliance class'!$C42*'RES S curve-disconnect'!BT$10+'Res-Appliance class'!$D42*'RES S curve-disconnect'!BT$15+'Res-Appliance class'!$E42*'RES S curve-disconnect'!BT$20","v":-2090.2994096003799},{"$f":"'Res-Appliance class'!$B42*'RES S curve-disconnect'!BU$5+'Res-Appliance class'!$C42*'RES S curve-disconnect'!BU$10+'Res-Appliance class'!$D42*'RES S curve-disconnect'!BU$15+'Res-Appliance class'!$E42*'RES S curve-disconnect'!BU$20","v":-2087.3133763996029},{"$f":"'Res-Appliance class'!$B42*'RES S curve-disconnect'!BV$5+'Res-Appliance class'!$C42*'RES S curve-disconnect'!BV$10+'Res-Appliance class'!$D42*'RES S curve-disconnect'!BV$15+'Res-Appliance class'!$E42*'RES S curve-disconnect'!BV$20","v":-2086.5950207770493},{"$f":"'Res-Appliance class'!$B42*'RES S curve-disconnect'!BW$5+'Res-Appliance class'!$C42*'RES S curve-disconnect'!BW$10+'Res-Appliance class'!$D42*'RES S curve-disconnect'!BW$15+'Res-Appliance class'!$E42*'RES S curve-disconnect'!BW$20","v":-2081.3557015444344},{"$f":"'Res-Appliance class'!$B42*'RES S curve-disconnect'!BX$5+'Res-Appliance class'!$C42*'RES S curve-disconnect'!BX$10+'Res-Appliance class'!$D42*'RES S curve-disconnect'!BX$15+'Res-Appliance class'!$E42*'RES S curve-disconnect'!BX$20","v":-2078.3840009137998},{"$f":"'Res-Appliance class'!$B42*'RES S curve-disconnect'!BY$5+'Res-Appliance class'!$C42*'RES S curve-disconnect'!BY$10+'Res-Appliance class'!$D42*'RES S curve-disconnect'!BY$15+'Res-Appliance class'!$E42*'RES S curve-disconnect'!BY$20","v":-2075.4170191389312},{"$f":"'Res-Appliance class'!$B42*'RES S curve-disconnect'!BZ$5+'Res-Appliance class'!$C42*'RES S curve-disconnect'!BZ$10+'Res-Appliance class'!$D42*'RES S curve-disconnect'!BZ$15+'Res-Appliance class'!$E42*'RES S curve-disconnect'!BZ$20","v":-2074.7175977286315},{"$f":"'Res-Appliance class'!$B42*'RES S curve-disconnect'!CA$5+'Res-Appliance class'!$C42*'RES S curve-disconnect'!CA$10+'Res-Appliance class'!$D42*'RES S curve-disconnect'!CA$15+'Res-Appliance class'!$E42*'RES S curve-disconnect'!CA$20","v":-2069.4970962311054},{"$f":"'Res-Appliance class'!$B42*'RES S curve-disconnect'!CB$5+'Res-Appliance class'!$C42*'RES S curve-disconnect'!CB$10+'Res-Appliance class'!$D42*'RES S curve-disconnect'!CB$15+'Res-Appliance class'!$E42*'RES S curve-disconnect'!CB$20","v":-2066.5440975902147},{"$f":"'Res-Appliance class'!$B42*'RES S curve-disconnect'!CC$5+'Res-Appliance class'!$C42*'RES S curve-disconnect'!CC$10+'Res-Appliance class'!$D42*'RES S curve-disconnect'!CC$15+'Res-Appliance class'!$E42*'RES S curve-disconnect'!CC$20","v":-2063.5957027869194},{"$f":"'Res-Appliance class'!$B42*'RES S curve-disconnect'!CD$5+'Res-Appliance class'!$C42*'RES S curve-disconnect'!CD$10+'Res-Appliance class'!$D42*'RES S curve-disconnect'!CD$15+'Res-Appliance class'!$E42*'RES S curve-disconnect'!CD$20","v":-2106.4351703882212}]
["South Gippsland (S)",null,{"$f":"'Res-Appliance class'!$B43*'RES S curve-disconnect'!C$5+'Res-Appliance class'!$C43*'RES S curve-disconnect'!C$10+'Res-Appliance class'!$D43*'RES S curve-disconnect'!C$15+'Res-Appliance class'!$E43*'RES S curve-disconnect'!C$20","v":-4644.7150864654404},{"$f":"'Res-Appliance class'!$B43*'RES S curve-disconnect'!D$5+'Res-Appliance class'!$C43*'RES S curve-disconnect'!D$10+'Res-Appliance class'!$D43*'RES S curve-disconnect'!D$15+'Res-Appliance class'!$E43*'RES S curve-disconnect'!D$20","v":-4934.5162682068303},{"$f":"'Res-Appliance class'!$B43*'RES S curve-disconnect'!E$5+'Res-Appliance class'!$C43*'RES S curve-disconnect'!E$10+'Res-Appliance class'!$D43*'RES S curve-disconnect'!E$15+'Res-Appliance class'!$E43*'RES S curve-disconnect'!E$20","v":-4210.0578265035319},{"$f":"'Res-Appliance class'!$B43*'RES S curve-disconnect'!F$5+'Res-Appliance class'!$C43*'RES S curve-disconnect'!F$10+'Res-Appliance class'!$D43*'RES S curve-disconnect'!F$15+'Res-Appliance class'!$E43*'RES S curve-disconnect'!F$20","v":-4127.100853129401},{"$f":"'Res-Appliance class'!$B43*'RES S curve-disconnect'!G$5+'Res-Appliance class'!$C43*'RES S curve-disconnect'!G$10+'Res-Appliance class'!$D43*'RES S curve-disconnect'!G$15+'Res-Appliance class'!$E43*'RES S curve-disconnect'!G$20","v":-4903.6766822400241},{"$f":"'Res-Appliance class'!$B43*'RES S curve-disconnect'!H$5+'Res-Appliance class'!$C43*'RES S curve-disconnect'!H$10+'Res-Appliance class'!$D43*'RES S curve-disconnect'!H$15+'Res-Appliance class'!$E43*'RES S curve-disconnect'!H$20","v":-4950.2360867359184},{"$f":"'Res-Appliance class'!$B43*'RES S curve-disconnect'!I$5+'Res-Appliance class'!$C43*'RES S curve-disconnect'!I$10+'Res-Appliance class'!$D43*'RES S curve-disconnect'!I$15+'Res-Appliance class'!$E43*'RES S curve-disconnect'!I$20","v":-4712.9791342846001},{"$f":"'Res-Appliance class'!$B43*'RES S curve-disconnect'!J$5+'Res-Appliance class'!$C43*'RES S curve-disconnect'!J$10+'Res-Appliance class'!$D43*'RES S curve-disconnect'!J$15+'Res-Appliance class'!$E43*'RES S curve-disconnect'!J$20","v":-5074.9411504643995},{"$f":"'Res-Appliance class'!$B43*'RES S curve-disconnect'!K$5+'Res-Appliance class'!$C43*'RES S curve-disconnect'!K$10+'Res-Appliance class'!$D43*'RES S curve-disconnect'!K$15+'Res-Appliance class'!$E43*'RES S curve-disconnect'!K$20","v":-4538.4000846436011},{"$f":"'Res-Appliance class'!$B43*'RES S curve-disconnect'!L$5+'Res-Appliance class'!$C43*'RES S curve-disconnect'!L$10+'Res-Appliance class'!$D43*'RES S curve-disconnect'!L$15+'Res-Appliance class'!$E43*'RES S curve-disconnect'!L$20","v":-4717.8473041990765},{"$f":"'Res-Appliance class'!$B43*'RES S curve-disconnect'!M$5+'Res-Appliance class'!$C43*'RES S curve-disconnect'!M$10+'Res-Appliance class'!$D43*'RES S curve-disconnect'!M$15+'Res-Appliance class'!$E43*'RES S curve-disconnect'!M$20","v":-5039.041476329744},{"$f":"'Res-Appliance class'!$B43*'RES S curve-disconnect'!N$5+'Res-Appliance class'!$C43*'RES S curve-disconnect'!N$10+'Res-Appliance class'!$D43*'RES S curve-disconnect'!N$15+'Res-Appliance class'!$E43*'RES S curve-disconnect'!N$20","v":-5053.4232617253228},{"$f":"'Res-Appliance class'!$B43*'RES S curve-disconnect'!O$5+'Res-Appliance class'!$C43*'RES S curve-disconnect'!O$10+'Res-Appliance class'!$D43*'RES S curve-disconnect'!O$15+'Res-Appliance class'!$E43*'RES S curve-disconnect'!O$20","v":-4724.8322462753349},{"$f":"'Res-Appliance class'!$B43*'RES S curve-disconnect'!P$5+'Res-Appliance class'!$C43*'RES S curve-disconnect'!P$10+'Res-Appliance class'!$D43*'RES S curve-disconnect'!P$15+'Res-Appliance class'!$E43*'RES S curve-disconnect'!P$20","v":-4461.7232526842008},{"$f":"'Res-Appliance class'!$B43*'RES S curve-disconnect'!Q$5+'Res-Appliance class'!$C43*'RES S curve-disconnect'!Q$10+'Res-Appliance class'!$D43*'RES S curve-disconnect'!Q$15+'Res-Appliance class'!$E43*'RES S curve-disconnect'!Q$20","v":-4073.4175440567992},{"$f":"'Res-Appliance class'!$B43*'RES S curve-disconnect'!R$5+'Res-Appliance class'!$C43*'RES S curve-disconnect'!R$10+'Res-Appliance class'!$D43*'RES S curve-disconnect'!R$15+'Res-Appliance class'!$E43*'RES S curve-disconnect'!R$20","v":-3846.0078176779371},{"$f":"'Res-Appliance class'!$B43*'RES S curve-disconnect'!S$5+'Res-Appliance class'!$C43*'RES S curve-disconnect'!S$10+'Res-Appliance class'!$D43*'RES S curve-disconnect'!S$15+'Res-Appliance class'!$E43*'RES S curve-disconnect'!S$20","v":-3491.870422813724},{"$f":"'Res-Appliance class'!$B43*'RES S curve-disconnect'!T$5+'Res-Appliance class'!$C43*'RES S curve-disconnect'!T$10+'Res-Appliance class'!$D43*'RES S curve-disconnect'!T$15+'Res-Appliance class'!$E43*'RES S curve-disconnect'!T$20","v":-3297.6803659256275},{"$f":"'Res-Appliance class'!$B43*'RES S curve-disconnect'!U$5+'Res-Appliance class'!$C43*'RES S curve-disconnect'!U$10+'Res-Appliance class'!$D43*'RES S curve-disconnect'!U$15+'Res-Appliance class'!$E43*'RES S curve-disconnect'!U$20","v":-3073.9634016313876},{"$f":"'Res-Appliance class'!$B43*'RES S curve-disconnect'!V$5+'Res-Appliance class'!$C43*'RES S curve-disconnect'!V$10+'Res-Appliance class'!$D43*'RES S curve-disconnect'!V$15+'Res-Appliance class'!$E43*'RES S curve-disconnect'!V$20","v":-2914.0806037157799},{"$f":"'Res-Appliance class'!$B43*'RES S curve-disconnect'!W$5+'Res-Appliance class'!$C43*'RES S curve-disconnect'!W$10+'Res-Appliance class'!$D43*'RES S curve-disconnect'!W$15+'Res-Appliance class'!$E43*'RES S curve-disconnect'!W$20","v":-2785.9938209122056},{"$f":"'Res-Appliance class'!$B43*'RES S curve-disconnect'!X$5+'Res-Appliance class'!$C43*'RES S curve-disconnect'!X$10+'Res-Appliance class'!$D43*'RES S curve-disconnect'!X$15+'Res-Appliance class'!$E43*'RES S curve-disconnect'!X$20","v":-2520.9616543772941},{"$f":"'Res-Appliance class'!$B43*'RES S curve-disconnect'!Y$5+'Res-Appliance class'!$C43*'RES S curve-disconnect'!Y$10+'Res-Appliance class'!$D43*'RES S curve-disconnect'!Y$15+'Res-Appliance class'!$E43*'RES S curve-disconnect'!Y$20","v":-2252.4032371228213},{"$f":"'Res-Appliance class'!$B43*'RES S curve-disconnect'!Z$5+'Res-Appliance class'!$C43*'RES S curve-disconnect'!Z$10+'Res-Appliance class'!$D43*'RES S curve-disconnect'!Z$15+'Res-Appliance class'!$E43*'RES S curve-disconnect'!Z$20","v":-2064.730171911885},{"$f":"'Res-Appliance class'!$B43*'RES S curve-disconnect'!AA$5+'Res-Appliance class'!$C43*'RES S curve-disconnect'!AA$10+'Res-Appliance class'!$D43*'RES S curve-disconnect'!AA$15+'Res-Appliance class'!$E43*'RES S curve-disconnect'!AA$20","v":-1876.3359508558588},{"$f":"'Res-Appliance class'!$B43*'RES S curve-disconnect'!AB$5+'Res-Appliance class'!$C43*'RES S curve-disconnect'!AB$10+'Res-Appliance class'!$D43*'RES S curve-disconnect'!AB$15+'Res-Appliance class'!$E43*'RES S curve-disconnect'!AB$20","v":-1722.5258973975833},{"$f":"'Res-Appliance class'!$B43*'RES S curve-disconnect'!AC$5+'Res-Appliance class'!$C43*'RES S curve-disconnect'!AC$10+'Res-Appliance class'!$D43*'RES S curve-disconnect'!AC$15+'Res-Appliance class'!$E43*'RES S curve-disconnect'!AC$20","v":-1573.3120368550508},{"$f":"'Res-Appliance class'!$B43*'RES S curve-disconnect'!AD$5+'Res-Appliance class'!$C43*'RES S curve-disconnect'!AD$10+'Res-Appliance class'!$D43*'RES S curve-disconnect'!AD$15+'Res-Appliance class'!$E43*'RES S curve-disconnect'!AD$20","v":-1435.1291768622896},{"$f":"'Res-Appliance class'!$B43*'RES S curve-disconnect'!AE$5+'Res-Appliance class'!$C43*'RES S curve-disconnect'!AE$10+'Res-Appliance class'!$D43*'RES S curve-disconnect'!AE$15+'Res-Appliance class'!$E43*'RES S curve-disconnect'!AE$20","v":-1289.7178274692965},{"$f":"'Res-Appliance class'!$B43*'RES S curve-disconnect'!AF$5+'Res-Appliance class'!$C43*'RES S curve-disconnect'!AF$10+'Res-Appliance class'!$D43*'RES S curve-disconnect'!AF$15+'Res-Appliance class'!$E43*'RES S curve-disconnect'!AF$20","v":-1107.8655545007719},{"$f":"'Res-Appliance class'!$B43*'RES S curve-disconnect'!AG$5+'Res-Appliance class'!$C43*'RES S curve-disconnect'!AG$10+'Res-Appliance class'!$D43*'RES S curve-disconnect'!AG$15+'Res-Appliance class'!$E43*'RES S curve-disconnect'!AG$20","v":-993.4367618740489},{"$f":"'Res-Appliance class'!$B43*'RES S curve-disconnect'!AH$5+'Res-Appliance class'!$C43*'RES S curve-disconnect'!AH$10+'Res-Appliance class'!$D43*'RES S curve-disconnect'!AH$15+'Res-Appliance class'!$E43*'RES S curve-disconnect'!AH$20","v":-834.62724787629168},{"$f":"'Res-Appliance class'!$B43*'RES S curve-disconnect'!AI$5+'Res-Appliance class'!$C43*'RES S curve-disconnect'!AI$10+'Res-Appliance class'!$D43*'RES S curve-disconnect'!AI$15+'Res-Appliance class'!$E43*'RES S curve-disconnect'!AI$20","v":-689.86853006359854},{"$f":"'Res-Appliance class'!$B43*'RES S curve-disconnect'!AJ$5+'Res-Appliance class'!$C43*'RES S curve-disconnect'!AJ$10+'Res-Appliance class'!$D43*'RES S curve-disconnect'!AJ$15+'Res-Appliance class'!$E43*'RES S curve-disconnect'!AJ$20","v":-559.63898876387975},{"$f":"'Res-Appliance class'!$B43*'RES S curve-disconnect'!AK$5+'Res-Appliance class'!$C43*'RES S curve-disconnect'!AK$10+'Res-Appliance class'!$D43*'RES S curve-disconnect'!AK$15+'Res-Appliance class'!$E43*'RES S curve-disconnect'!AK$20","v":-421.31318392254639},{"$f":"'Res-Appliance class'!$B43*'RES S curve-disconnect'!AL$5+'Res-Appliance class'!$C43*'RES S curve-disconnect'!AL$10+'Res-Appliance class'!$D43*'RES S curve-disconnect'!AL$15+'Res-Appliance class'!$E43*'RES S curve-disconnect'!AL$20","v":-905.36187525434445},{"$f":"'Res-Appliance class'!$B43*'RES S curve-disconnect'!AM$5+'Res-Appliance class'!$C43*'RES S curve-disconnect'!AM$10+'Res-Appliance class'!$D43*'RES S curve-disconnect'!AM$15+'Res-Appliance class'!$E43*'RES S curve-disconnect'!AM$20","v":-965.7102178229502},{"$f":"'Res-Appliance class'!$B43*'RES S curve-disconnect'!AN$5+'Res-Appliance class'!$C43*'RES S curve-disconnect'!AN$10+'Res-Appliance class'!$D43*'RES S curve-disconnect'!AN$15+'Res-Appliance class'!$E43*'RES S curve-disconnect'!AN$20","v":-833.24580966785891},{"$f":"'Res-Appliance class'!$B43*'RES S curve-disconnect'!AO$5+'Res-Appliance class'!$C43*'RES S curve-disconnect'!AO$10+'Res-Appliance class'!$D43*'RES S curve-disconnect'!AO$15+'Res-Appliance class'!$E43*'RES S curve-disconnect'!AO$20","v":-672.66152588229727},{"$f":"'Res-Appliance class'!$B43*'RES S curve-disconnect'!AP$5+'Res-Appliance class'!$C43*'RES S curve-disconnect'!AP$10+'Res-Appliance class'!$D43*'RES S curve-disconnect'!AP$15+'Res-Appliance class'!$E43*'RES S curve-disconnect'!AP$20","v":-525.14722345637881},{"$f":"'Res-Appliance class'!$B43*'RES S curve-disconnect'!AQ$5+'Res-Appliance class'!$C43*'RES S curve-disconnect'!AQ$10+'Res-Appliance class'!$D43*'RES S curve-disconnect'!AQ$15+'Res-Appliance class'!$E43*'RES S curve-disconnect'!AQ$20","v":-365.47884534039076},{"$f":"'Res-Appliance class'!$B43*'RES S curve-disconnect'!AR$5+'Res-Appliance class'!$C43*'RES S curve-disconnect'!AR$10+'Res-Appliance class'!$D43*'RES S curve-disconnect'!AR$15+'Res-Appliance class'!$E43*'RES S curve-disconnect'!AR$20","v":-190.6612126736797},{"$f":"'Res-Appliance class'!$B43*'RES S curve-disconnect'!AS$5+'Res-Appliance class'!$C43*'RES S curve-disconnect'!AS$10+'Res-Appliance class'!$D43*'RES S curve-disconnect'!AS$15+'Res-Appliance class'!$E43*'RES S curve-disconnect'!AS$20","v":5.3782723161276635},{"$f":"'Res-Appliance class'!$B43*'RES S curve-disconnect'!AT$5+'Res-Appliance class'!$C43*'RES S curve-disconnect'!AT$10+'Res-Appliance class'!$D43*'RES S curve-disconnect'!AT$15+'Res-Appliance class'!$E43*'RES S curve-disconnect'!AT$20","v":224.09095090283404},{"$f":"'Res-Appliance class'!$B43*'RES S curve-disconnect'!AU$5+'Res-Appliance class'!$C43*'RES S curve-disconnect'!AU$10+'Res-Appliance class'!$D43*'RES S curve-disconnect'!AU$15+'Res-Appliance class'!$E43*'RES S curve-disconnect'!AU$20","v":477.80364449268109},{"$f":"'Res-Appliance class'!$B43*'RES S curve-disconnect'!AV$5+'Res-Appliance class'!$C43*'RES S curve-disconnect'!AV$10+'Res-Appliance class'!$D43*'RES S curve-disconnect'!AV$15+'Res-Appliance class'!$E43*'RES S curve-disconnect'!AV$20","v":766.50137066865977},{"$f":"'Res-Appliance class'!$B43*'RES S curve-disconnect'!AW$5+'Res-Appliance class'!$C43*'RES S curve-disconnect'!AW$10+'Res-Appliance class'!$D43*'RES S curve-disconnect'!AW$15+'Res-Appliance class'!$E43*'RES S curve-disconnect'!AW$20","v":1098.0007804533589},{"$f":"'Res-Appliance class'!$B43*'RES S curve-disconnect'!AX$5+'Res-Appliance class'!$C43*'RES S curve-disconnect'!AX$10+'Res-Appliance class'!$D43*'RES S curve-disconnect'!AX$15+'Res-Appliance class'!$E43*'RES S curve-disconnect'!AX$20","v":1474.9588980441135},{"$f":"'Res-Appliance class'!$B43*'RES S curve-disconnect'!AY$5+'Res-Appliance class'!$C43*'RES S curve-disconnect'!AY$10+'Res-Appliance class'!$D43*'RES S curve-disconnect'!AY$15+'Res-Appliance class'!$E43*'RES S curve-disconnect'!AY$20","v":1910.2532674542895},{"$f":"'Res-Appliance class'!$B43*'RES S curve-disconnect'!AZ$5+'Res-Appliance class'!$C43*'RES S curve-disconnect'!AZ$10+'Res-Appliance class'!$D43*'RES S curve-disconnect'!AZ$15+'Res-Appliance class'!$E43*'RES S curve-disconnect'!AZ$20","v":2406.7502276198343},{"$f":"'Res-Appliance class'!$B43*'RES S curve-disconnect'!BA$5+'Res-Appliance class'!$C43*'RES S curve-disconnect'!BA$10+'Res-Appliance class'!$D43*'RES S curve-disconnect'!BA$15+'Res-Appliance class'!$E43*'RES S curve-disconnect'!BA$20","v":2980.9786985502315},{"$f":"'Res-Appliance class'!$B43*'RES S curve-disconnect'!BB$5+'Res-Appliance class'!$C43*'RES S curve-disconnect'!BB$10+'Res-Appliance class'!$D43*'RES S curve-disconnect'!BB$15+'Res-Appliance class'!$E43*'RES S curve-disconnect'!BB$20","v":3650.5176648284037},{"$f":"'Res-Appliance class'!$B43*'RES S curve-disconnect'!BC$5+'Res-Appliance class'!$C43*'RES S curve-disconnect'!BC$10+'Res-Appliance class'!$D43*'RES S curve-disconnect'!BC$15+'Res-Appliance class'!$E43*'RES S curve-disconnect'!BC$20","v":4448.7037949126789},{"$f":"'Res-Appliance class'!$B43*'RES S curve-disconnect'!BD$5+'Res-Appliance class'!$C43*'RES S curve-disconnect'!BD$10+'Res-Appliance class'!$D43*'RES S curve-disconnect'!BD$15+'Res-Appliance class'!$E43*'RES S curve-disconnect'!BD$20","v":5215.2668035240158},{"$f":"'Res-Appliance class'!$B43*'RES S curve-disconnect'!BE$5+'Res-Appliance class'!$C43*'RES S curve-disconnect'!BE$10+'Res-Appliance class'!$D43*'RES S curve-disconnect'!BE$15+'Res-Appliance class'!$E43*'RES S curve-disconnect'!BE$20","v":5914.7629649123483},{"$f":"'Res-Appliance class'!$B43*'RES S curve-disconnect'!BF$5+'Res-Appliance class'!$C43*'RES S curve-disconnect'!BF$10+'Res-Appliance class'!$D43*'RES S curve-disconnect'!BF$15+'Res-Appliance class'!$E43*'RES S curve-disconnect'!BF$20","v":6630.8184318720951},{"$f":"'Res-Appliance class'!$B43*'RES S curve-disconnect'!BG$5+'Res-Appliance class'!$C43*'RES S curve-disconnect'!BG$10+'Res-Appliance class'!$D43*'RES S curve-disconnect'!BG$15+'Res-Appliance class'!$E43*'RES S curve-disconnect'!BG$20","v":7442.5256557447374},{"$f":"'Res-Appliance class'!$B43*'RES S curve-disconnect'!BH$5+'Res-Appliance class'!$C43*'RES S curve-disconnect'!BH$10+'Res-Appliance class'!$D43*'RES S curve-disconnect'!BH$15+'Res-Appliance class'!$E43*'RES S curve-disconnect'!BH$20","v":8405.2874777803736},{"$f":"'Res-Appliance class'!$B43*'RES S curve-disconnect'!BI$5+'Res-Appliance class'!$C43*'RES S curve-disconnect'!BI$10+'Res-Appliance class'!$D43*'RES S curve-disconnect'!BI$15+'Res-Appliance class'!$E43*'RES S curve-disconnect'!BI$20","v":9801.1234420362252},{"$f":"'Res-Appliance class'!$B43*'RES S curve-disconnect'!BJ$5+'Res-Appliance class'!$C43*'RES S curve-disconnect'!BJ$10+'Res-Appliance class'!$D43*'RES S curve-disconnect'!BJ$15+'Res-Appliance class'!$E43*'RES S curve-disconnect'!BJ$20","v":11841.417059689182},{"$f":"'Res-Appliance class'!$B43*'RES S curve-disconnect'!BK$5+'Res-Appliance class'!$C43*'RES S curve-disconnect'!BK$10+'Res-Appliance class'!$D43*'RES S curve-disconnect'!BK$15+'Res-Appliance class'!$E43*'RES S curve-disconnect'!BK$20","v":14846.61117045768},{"$f":"'Res-Appliance class'!$B43*'RES S curve-disconnect'!BL$5+'Res-Appliance class'!$C43*'RES S curve-disconnect'!BL$10+'Res-Appliance class'!$D43*'RES S curve-disconnect'!BL$15+'Res-Appliance class'!$E43*'RES S curve-disconnect'!BL$20","v":-2670.5232270214792},{"$f":"'Res-Appliance class'!$B43*'RES S curve-disconnect'!BM$5+'Res-Appliance class'!$C43*'RES S curve-disconnect'!BM$10+'Res-Appliance class'!$D43*'RES S curve-disconnect'!BM$15+'Res-Appliance class'!$E43*'RES S curve-disconnect'!BM$20","v":-2666.6363126807883},{"$f":"'Res-Appliance class'!$B43*'RES S curve-disconnect'!BN$5+'Res-Appliance class'!$C43*'RES S curve-disconnect'!BN$10+'Res-Appliance class'!$D43*'RES S curve-disconnect'!BN$15+'Res-Appliance class'!$E43*'RES S curve-disconnect'!BN$20","v":-2665.0183259210839},{"$f":"'Res-Appliance class'!$B43*'RES S curve-disconnect'!BO$5+'Res-Appliance class'!$C43*'RES S curve-disconnect'!BO$10+'Res-Appliance class'!$D43*'RES S curve-disconnect'!BO$15+'Res-Appliance class'!$E43*'RES S curve-disconnect'!BO$20","v":-2658.8806180787897},{"$f":"'Res-Appliance class'!$B43*'RES S curve-disconnect'!BP$5+'Res-Appliance class'!$C43*'RES S curve-disconnect'!BP$10+'Res-Appliance class'!$D43*'RES S curve-disconnect'!BP$15+'Res-Appliance class'!$E43*'RES S curve-disconnect'!BP$20","v":-2655.0117639369792},{"$f":"'Res-Appliance class'!$B43*'RES S curve-disconnect'!BQ$5+'Res-Appliance class'!$C43*'RES S curve-disconnect'!BQ$10+'Res-Appliance class'!$D43*'RES S curve-disconnect'!BQ$15+'Res-Appliance class'!$E43*'RES S curve-disconnect'!BQ$20","v":-2651.1488563664952},{"$f":"'Res-Appliance class'!$B43*'RES S curve-disconnect'!BR$5+'Res-Appliance class'!$C43*'RES S curve-disconnect'!BR$10+'Res-Appliance class'!$D43*'RES S curve-disconnect'!BR$15+'Res-Appliance class'!$E43*'RES S curve-disconnect'!BR$20","v":-2649.554729538936},{"$f":"'Res-Appliance class'!$B43*'RES S curve-disconnect'!BS$5+'Res-Appliance class'!$C43*'RES S curve-disconnect'!BS$10+'Res-Appliance class'!$D43*'RES S curve-disconnect'!BS$15+'Res-Appliance class'!$E43*'RES S curve-disconnect'!BS$20","v":-2643.440735710753},{"$f":"'Res-Appliance class'!$B43*'RES S curve-disconnect'!BT$5+'Res-Appliance class'!$C43*'RES S curve-disconnect'!BT$10+'Res-Appliance class'!$D43*'RES S curve-disconnect'!BT$15+'Res-Appliance class'!$E43*'RES S curve-disconnect'!BT$20","v":-2639.595450579216},{"$f":"'Res-Appliance class'!$B43*'RES S curve-disconnect'!BU$5+'Res-Appliance class'!$C43*'RES S curve-disconnect'!BU$10+'Res-Appliance class'!$D43*'RES S curve-disconnect'!BU$15+'Res-Appliance class'!$E43*'RES S curve-disconnect'!BU$20","v":-2635.7559679235733},{"$f":"'Res-Appliance class'!$B43*'RES S curve-disconnect'!BV$5+'Res-Appliance class'!$C43*'RES S curve-disconnect'!BV$10+'Res-Appliance class'!$D43*'RES S curve-disconnect'!BV$15+'Res-Appliance class'!$E43*'RES S curve-disconnect'!BV$20","v":-2634.1851228180676},{"$f":"'Res-Appliance class'!$B43*'RES S curve-disconnect'!BW$5+'Res-Appliance class'!$C43*'RES S curve-disconnect'!BW$10+'Res-Appliance class'!$D43*'RES S curve-disconnect'!BW$15+'Res-Appliance class'!$E43*'RES S curve-disconnect'!BW$20","v":-2628.0942684160782},{"$f":"'Res-Appliance class'!$B43*'RES S curve-disconnect'!BX$5+'Res-Appliance class'!$C43*'RES S curve-disconnect'!BX$10+'Res-Appliance class'!$D43*'RES S curve-disconnect'!BX$15+'Res-Appliance class'!$E43*'RES S curve-disconnect'!BX$20","v":-2624.2719813061171},{"$f":"'Res-Appliance class'!$B43*'RES S curve-disconnect'!BY$5+'Res-Appliance class'!$C43*'RES S curve-disconnect'!BY$10+'Res-Appliance class'!$D43*'RES S curve-disconnect'!BY$15+'Res-Appliance class'!$E43*'RES S curve-disconnect'!BY$20","v":-2620.4553561530265},{"$f":"'Res-Appliance class'!$B43*'RES S curve-disconnect'!BZ$5+'Res-Appliance class'!$C43*'RES S curve-disconnect'!BZ$10+'Res-Appliance class'!$D43*'RES S curve-disconnect'!BZ$15+'Res-Appliance class'!$E43*'RES S curve-disconnect'!BZ$20","v":-2618.9072289110363},{"$f":"'Res-Appliance class'!$B43*'RES S curve-disconnect'!CA$5+'Res-Appliance class'!$C43*'RES S curve-disconnect'!CA$10+'Res-Appliance class'!$D43*'RES S curve-disconnect'!CA$15+'Res-Appliance class'!$E43*'RES S curve-disconnect'!CA$20","v":-2612.8389536079312},{"$f":"'Res-Appliance class'!$B43*'RES S curve-disconnect'!CB$5+'Res-Appliance class'!$C43*'RES S curve-disconnect'!CB$10+'Res-Appliance class'!$D43*'RES S curve-disconnect'!CB$15+'Res-Appliance class'!$E43*'RES S curve-disconnect'!CB$20","v":-2609.0391077010909},{"$f":"'Res-Appliance class'!$B43*'RES S curve-disconnect'!CC$5+'Res-Appliance class'!$C43*'RES S curve-disconnect'!CC$10+'Res-Appliance class'!$D43*'RES S curve-disconnect'!CC$15+'Res-Appliance class'!$E43*'RES S curve-disconnect'!CC$20","v":-2605.2447867187211},{"$f":"'Res-Appliance class'!$B43*'RES S curve-disconnect'!CD$5+'Res-Appliance class'!$C43*'RES S curve-disconnect'!CD$10+'Res-Appliance class'!$D43*'RES S curve-disconnect'!CD$15+'Res-Appliance class'!$E43*'RES S curve-disconnect'!CD$20","v":-2661.521537378364}]
["Stonnington (C)",null,{"$f":"'Res-Appliance class'!$B44*'RES S curve-disconnect'!C$5+'Res-Appliance class'!$C44*'RES S curve-disconnect'!C$10+'Res-Appliance class'!$D44*'RES S curve-disconnect'!C$15+'Res-Appliance class'!$E44*'RES S curve-disconnect'!C$20","v":-4012.5467054740016},{"$f":"'Res-Appliance class'!$B44*'RES S curve-disconnect'!D$5+'Res-Appliance class'!$C44*'RES S curve-disconnect'!D$10+'Res-Appliance class'!$D44*'RES S curve-disconnect'!D$15+'Res-Appliance class'!$E44*'RES S curve-disconnect'!D$20","v":-4275.077938278786},{"$f":"'Res-Appliance class'!$B44*'RES S curve-disconnect'!E$5+'Res-Appliance class'!$C44*'RES S curve-disconnect'!E$10+'Res-Appliance class'!$D44*'RES S curve-disconnect'!E$15+'Res-Appliance class'!$E44*'RES S curve-disconnect'!E$20","v":-3615.6051545307841},{"$f":"'Res-Appliance class'!$B44*'RES S curve-disconnect'!F$5+'Res-Appliance class'!$C44*'RES S curve-disconnect'!F$10+'Res-Appliance class'!$D44*'RES S curve-disconnect'!F$15+'Res-Appliance class'!$E44*'RES S curve-disconnect'!F$20","v":-3542.121097361693},{"$f":"'Res-Appliance class'!$B44*'RES S curve-disconnect'!G$5+'Res-Appliance class'!$C44*'RES S curve-disconnect'!G$10+'Res-Appliance class'!$D44*'RES S curve-disconnect'!G$15+'Res-Appliance class'!$E44*'RES S curve-disconnect'!G$20","v":-4295.0556093542045},{"$f":"'Res-Appliance class'!$B44*'RES S curve-disconnect'!H$5+'Res-Appliance class'!$C44*'RES S curve-disconnect'!H$10+'Res-Appliance class'!$D44*'RES S curve-disconnect'!H$15+'Res-Appliance class'!$E44*'RES S curve-disconnect'!H$20","v":-4323.1328378722665},{"$f":"'Res-Appliance class'!$B44*'RES S curve-disconnect'!I$5+'Res-Appliance class'!$C44*'RES S curve-disconnect'!I$10+'Res-Appliance class'!$D44*'RES S curve-disconnect'!I$15+'Res-Appliance class'!$E44*'RES S curve-disconnect'!I$20","v":-4105.9235379731399},{"$f":"'Res-Appliance class'!$B44*'RES S curve-disconnect'!J$5+'Res-Appliance class'!$C44*'RES S curve-disconnect'!J$10+'Res-Appliance class'!$D44*'RES S curve-disconnect'!J$15+'Res-Appliance class'!$E44*'RES S curve-disconnect'!J$20","v":-4410.5929095411684},{"$f":"'Res-Appliance class'!$B44*'RES S curve-disconnect'!K$5+'Res-Appliance class'!$C44*'RES S curve-disconnect'!K$10+'Res-Appliance class'!$D44*'RES S curve-disconnect'!K$15+'Res-Appliance class'!$E44*'RES S curve-disconnect'!K$20","v":-3919.3926742481644},{"$f":"'Res-Appliance class'!$B44*'RES S curve-disconnect'!L$5+'Res-Appliance class'!$C44*'RES S curve-disconnect'!L$10+'Res-Appliance class'!$D44*'RES S curve-disconnect'!L$15+'Res-Appliance class'!$E44*'RES S curve-disconnect'!L$20","v":-4083.1647328695981},{"$f":"'Res-Appliance class'!$B44*'RES S curve-disconnect'!M$5+'Res-Appliance class'!$C44*'RES S curve-disconnect'!M$10+'Res-Appliance class'!$D44*'RES S curve-disconnect'!M$15+'Res-Appliance class'!$E44*'RES S curve-disconnect'!M$20","v":-4380.2544441268101},{"$f":"'Res-Appliance class'!$B44*'RES S curve-disconnect'!N$5+'Res-Appliance class'!$C44*'RES S curve-disconnect'!N$10+'Res-Appliance class'!$D44*'RES S curve-disconnect'!N$15+'Res-Appliance class'!$E44*'RES S curve-disconnect'!N$20","v":-4395.0701590452336},{"$f":"'Res-Appliance class'!$B44*'RES S curve-disconnect'!O$5+'Res-Appliance class'!$C44*'RES S curve-disconnect'!O$10+'Res-Appliance class'!$D44*'RES S curve-disconnect'!O$15+'Res-Appliance class'!$E44*'RES S curve-disconnect'!O$20","v":-4094.1215019855877},{"$f":"'Res-Appliance class'!$B44*'RES S curve-disconnect'!P$5+'Res-Appliance class'!$C44*'RES S curve-disconnect'!P$10+'Res-Appliance class'!$D44*'RES S curve-disconnect'!P$15+'Res-Appliance class'!$E44*'RES S curve-disconnect'!P$20","v":-3853.1654682815774},{"$f":"'Res-Appliance class'!$B44*'RES S curve-disconnect'!Q$5+'Res-Appliance class'!$C44*'RES S curve-disconnect'!Q$10+'Res-Appliance class'!$D44*'RES S curve-disconnect'!Q$15+'Res-Appliance class'!$E44*'RES S curve-disconnect'!Q$20","v":-3496.9297336516156},{"$f":"'Res-Appliance class'!$B44*'RES S curve-disconnect'!R$5+'Res-Appliance class'!$C44*'RES S curve-disconnect'!R$10+'Res-Appliance class'!$D44*'RES S curve-disconnect'!R$15+'Res-Appliance class'!$E44*'RES S curve-disconnect'!R$20","v":-3288.8968396353266},{"$f":"'Res-Appliance class'!$B44*'RES S curve-disconnect'!S$5+'Res-Appliance class'!$C44*'RES S curve-disconnect'!S$10+'Res-Appliance class'!$D44*'RES S curve-disconnect'!S$15+'Res-Appliance class'!$E44*'RES S curve-disconnect'!S$20","v":-2962.7277988131409},{"$f":"'Res-Appliance class'!$B44*'RES S curve-disconnect'!T$5+'Res-Appliance class'!$C44*'RES S curve-disconnect'!T$10+'Res-Appliance class'!$D44*'RES S curve-disconnect'!T$15+'Res-Appliance class'!$E44*'RES S curve-disconnect'!T$20","v":-2787.6377305748019},{"$f":"'Res-Appliance class'!$B44*'RES S curve-disconnect'!U$5+'Res-Appliance class'!$C44*'RES S curve-disconnect'!U$10+'Res-Appliance class'!$D44*'RES S curve-disconnect'!U$15+'Res-Appliance class'!$E44*'RES S curve-disconnect'!U$20","v":-2583.9235990501102},{"$f":"'Res-Appliance class'!$B44*'RES S curve-disconnect'!V$5+'Res-Appliance class'!$C44*'RES S curve-disconnect'!V$10+'Res-Appliance class'!$D44*'RES S curve-disconnect'!V$15+'Res-Appliance class'!$E44*'RES S curve-disconnect'!V$20","v":-2438.677156953222},{"$f":"'Res-Appliance class'!$B44*'RES S curve-disconnect'!W$5+'Res-Appliance class'!$C44*'RES S curve-disconnect'!W$10+'Res-Appliance class'!$D44*'RES S curve-disconnect'!W$15+'Res-Appliance class'!$E44*'RES S curve-disconnect'!W$20","v":-2321.9601443848537},{"$f":"'Res-Appliance class'!$B44*'RES S curve-disconnect'!X$5+'Res-Appliance class'!$C44*'RES S curve-disconnect'!X$10+'Res-Appliance class'!$D44*'RES S curve-disconnect'!X$15+'Res-Appliance class'!$E44*'RES S curve-disconnect'!X$20","v":-2079.5706809652179},{"$f":"'Res-Appliance class'!$B44*'RES S curve-disconnect'!Y$5+'Res-Appliance class'!$C44*'RES S curve-disconnect'!Y$10+'Res-Appliance class'!$D44*'RES S curve-disconnect'!Y$15+'Res-Appliance class'!$E44*'RES S curve-disconnect'!Y$20","v":-1833.689939730192},{"$f":"'Res-Appliance class'!$B44*'RES S curve-disconnect'!Z$5+'Res-Appliance class'!$C44*'RES S curve-disconnect'!Z$10+'Res-Appliance class'!$D44*'RES S curve-disconnect'!Z$15+'Res-Appliance class'!$E44*'RES S curve-disconnect'!Z$20","v":-1662.3201323271865},{"$f":"'Res-Appliance class'!$B44*'RES S curve-disconnect'!AA$5+'Res-Appliance class'!$C44*'RES S curve-disconnect'!AA$10+'Res-Appliance class'!$D44*'RES S curve-disconnect'!AA$15+'Res-Appliance class'!$E44*'RES S curve-disconnect'!AA$20","v":-1489.9971631680667},{"$f":"'Res-Appliance class'!$B44*'RES S curve-disconnect'!AB$5+'Res-Appliance class'!$C44*'RES S curve-disconnect'!AB$10+'Res-Appliance class'!$D44*'RES S curve-disconnect'!AB$15+'Res-Appliance class'!$E44*'RES S curve-disconnect'!AB$20","v":-1348.8513348684137},{"$f":"'Res-Appliance class'!$B44*'RES S curve-disconnect'!AC$5+'Res-Appliance class'!$C44*'RES S curve-disconnect'!AC$10+'Res-Appliance class'!$D44*'RES S curve-disconnect'!AC$15+'Res-Appliance class'!$E44*'RES S curve-disconnect'!AC$20","v":-1211.7527241312787},{"$f":"'Res-Appliance class'!$B44*'RES S curve-disconnect'!AD$5+'Res-Appliance class'!$C44*'RES S curve-disconnect'!AD$10+'Res-Appliance class'!$D44*'RES S curve-disconnect'!AD$15+'Res-Appliance class'!$E44*'RES S curve-disconnect'!AD$20","v":-1084.8621566980605},{"$f":"'Res-Appliance class'!$B44*'RES S curve-disconnect'!AE$5+'Res-Appliance class'!$C44*'RES S curve-disconnect'!AE$10+'Res-Appliance class'!$D44*'RES S curve-disconnect'!AE$15+'Res-Appliance class'!$E44*'RES S curve-disconnect'!AE$20","v":-950.83369856250579},{"$f":"'Res-Appliance class'!$B44*'RES S curve-disconnect'!AF$5+'Res-Appliance class'!$C44*'RES S curve-disconnect'!AF$10+'Res-Appliance class'!$D44*'RES S curve-disconnect'!AF$15+'Res-Appliance class'!$E44*'RES S curve-disconnect'!AF$20","v":-783.38036720323566},{"$f":"'Res-Appliance class'!$B44*'RES S curve-disconnect'!AG$5+'Res-Appliance class'!$C44*'RES S curve-disconnect'!AG$10+'Res-Appliance class'!$D44*'RES S curve-disconnect'!AG$15+'Res-Appliance class'!$E44*'RES S curve-disconnect'!AG$20","v":-677.12041658312637},{"$f":"'Res-Appliance class'!$B44*'RES S curve-disconnect'!AH$5+'Res-Appliance class'!$C44*'RES S curve-disconnect'!AH$10+'Res-Appliance class'!$D44*'RES S curve-disconnect'!AH$15+'Res-Appliance class'!$E44*'RES S curve-disconnect'!AH$20","v":-530.45663398638271},{"$f":"'Res-Appliance class'!$B44*'RES S curve-disconnect'!AI$5+'Res-Appliance class'!$C44*'RES S curve-disconnect'!AI$10+'Res-Appliance class'!$D44*'RES S curve-disconnect'!AI$15+'Res-Appliance class'!$E44*'RES S curve-disconnect'!AI$20","v":-395.99676954970181},{"$f":"'Res-Appliance class'!$B44*'RES S curve-disconnect'!AJ$5+'Res-Appliance class'!$C44*'RES S curve-disconnect'!AJ$10+'Res-Appliance class'!$D44*'RES S curve-disconnect'!AJ$15+'Res-Appliance class'!$E44*'RES S curve-disconnect'!AJ$20","v":-275.20048871604263},{"$f":"'Res-Appliance class'!$B44*'RES S curve-disconnect'!AK$5+'Res-Appliance class'!$C44*'RES S curve-disconnect'!AK$10+'Res-Appliance class'!$D44*'RES S curve-disconnect'!AK$15+'Res-Appliance class'!$E44*'RES S curve-disconnect'!AK$20","v":-146.86098011950475},{"$f":"'Res-Appliance class'!$B44*'RES S curve-disconnect'!AL$5+'Res-Appliance class'!$C44*'RES S curve-disconnect'!AL$10+'Res-Appliance class'!$D44*'RES S curve-disconnect'!AL$15+'Res-Appliance class'!$E44*'RES S curve-disconnect'!AL$20","v":-598.42091851925682},{"$f":"'Res-Appliance class'!$B44*'RES S curve-disconnect'!AM$5+'Res-Appliance class'!$C44*'RES S curve-disconnect'!AM$10+'Res-Appliance class'!$D44*'RES S curve-disconnect'!AM$15+'Res-Appliance class'!$E44*'RES S curve-disconnect'!AM$20","v":-653.64386535105587},{"$f":"'Res-Appliance class'!$B44*'RES S curve-disconnect'!AN$5+'Res-Appliance class'!$C44*'RES S curve-disconnect'!AN$10+'Res-Appliance class'!$D44*'RES S curve-disconnect'!AN$15+'Res-Appliance class'!$E44*'RES S curve-disconnect'!AN$20","v":-530.1472017340451},{"$f":"'Res-Appliance class'!$B44*'RES S curve-disconnect'!AO$5+'Res-Appliance class'!$C44*'RES S curve-disconnect'!AO$10+'Res-Appliance class'!$D44*'RES S curve-disconnect'!AO$15+'Res-Appliance class'!$E44*'RES S curve-disconnect'!AO$20","v":-380.97323623268585},{"$f":"'Res-Appliance class'!$B44*'RES S curve-disconnect'!AP$5+'Res-Appliance class'!$C44*'RES S curve-disconnect'!AP$10+'Res-Appliance class'!$D44*'RES S curve-disconnect'!AP$15+'Res-Appliance class'!$E44*'RES S curve-disconnect'!AP$20","v":-244.28012265186072},{"$f":"'Res-Appliance class'!$B44*'RES S curve-disconnect'!AQ$5+'Res-Appliance class'!$C44*'RES S curve-disconnect'!AQ$10+'Res-Appliance class'!$D44*'RES S curve-disconnect'!AQ$15+'Res-Appliance class'!$E44*'RES S curve-disconnect'!AQ$20","v":-95.976532804756886},{"$f":"'Res-Appliance class'!$B44*'RES S curve-disconnect'!AR$5+'Res-Appliance class'!$C44*'RES S curve-disconnect'!AR$10+'Res-Appliance class'!$D44*'RES S curve-disconnect'!AR$15+'Res-Appliance class'!$E44*'RES S curve-disconnect'!AR$20","v":66.209234939947635},{"$f":"'Res-Appliance class'!$B44*'RES S curve-disconnect'!AS$5+'Res-Appliance class'!$C44*'RES S curve-disconnect'!AS$10+'Res-Appliance class'!$D44*'RES S curve-disconnect'!AS$15+'Res-Appliance class'!$E44*'RES S curve-disconnect'!AS$20","v":248.04300559414628},{"$f":"'Res-Appliance class'!$B44*'RES S curve-disconnect'!AT$5+'Res-Appliance class'!$C44*'RES S curve-disconnect'!AT$10+'Res-Appliance class'!$D44*'RES S curve-disconnect'!AT$15+'Res-Appliance class'!$E44*'RES S curve-disconnect'!AT$20","v":450.68867632987696},{"$f":"'Res-Appliance class'!$B44*'RES S curve-disconnect'!AU$5+'Res-Appliance class'!$C44*'RES S curve-disconnect'!AU$10+'Res-Appliance class'!$D44*'RES S curve-disconnect'!AU$15+'Res-Appliance class'!$E44*'RES S curve-disconnect'!AU$20","v":686.05412760999252},{"$f":"'Res-Appliance class'!$B44*'RES S curve-disconnect'!AV$5+'Res-Appliance class'!$C44*'RES S curve-disconnect'!AV$10+'Res-Appliance class'!$D44*'RES S curve-disconnect'!AV$15+'Res-Appliance class'!$E44*'RES S curve-disconnect'!AV$20","v":953.60339400610121},{"$f":"'Res-Appliance class'!$B44*'RES S curve-disconnect'!AW$5+'Res-Appliance class'!$C44*'RES S curve-disconnect'!AW$10+'Res-Appliance class'!$D44*'RES S curve-disconnect'!AW$15+'Res-Appliance class'!$E44*'RES S curve-disconnect'!AW$20","v":1260.6976813694282},{"$f":"'Res-Appliance class'!$B44*'RES S curve-disconnect'!AX$5+'Res-Appliance class'!$C44*'RES S curve-disconnect'!AX$10+'Res-Appliance class'!$D44*'RES S curve-disconnect'!AX$15+'Res-Appliance class'!$E44*'RES S curve-disconnect'!AX$20","v":1609.5705966112196},{"$f":"'Res-Appliance class'!$B44*'RES S curve-disconnect'!AY$5+'Res-Appliance class'!$C44*'RES S curve-disconnect'!AY$10+'Res-Appliance class'!$D44*'RES S curve-disconnect'!AY$15+'Res-Appliance class'!$E44*'RES S curve-disconnect'!AY$20","v":2012.5846963155532},{"$f":"'Res-Appliance class'!$B44*'RES S curve-disconnect'!AZ$5+'Res-Appliance class'!$C44*'RES S curve-disconnect'!AZ$10+'Res-Appliance class'!$D44*'RES S curve-disconnect'!AZ$15+'Res-Appliance class'!$E44*'RES S curve-disconnect'!AZ$20","v":2471.8191994904391},{"$f":"'Res-Appliance class'!$B44*'RES S curve-disconnect'!BA$5+'Res-Appliance class'!$C44*'RES S curve-disconnect'!BA$10+'Res-Appliance class'!$D44*'RES S curve-disconnect'!BA$15+'Res-Appliance class'!$E44*'RES S curve-disconnect'!BA$20","v":3002.651825579816},{"$f":"'Res-Appliance class'!$B44*'RES S curve-disconnect'!BB$5+'Res-Appliance class'!$C44*'RES S curve-disconnect'!BB$10+'Res-Appliance class'!$D44*'RES S curve-disconnect'!BB$15+'Res-Appliance class'!$E44*'RES S curve-disconnect'!BB$20","v":3621.0519611028576},{"$f":"'Res-Appliance class'!$B44*'RES S curve-disconnect'!BC$5+'Res-Appliance class'!$C44*'RES S curve-disconnect'!BC$10+'Res-Appliance class'!$D44*'RES S curve-disconnect'!BC$15+'Res-Appliance class'!$E44*'RES S curve-disconnect'!BC$20","v":4358.1883664824572},{"$f":"'Res-Appliance class'!$B44*'RES S curve-disconnect'!BD$5+'Res-Appliance class'!$C44*'RES S curve-disconnect'!BD$10+'Res-Appliance class'!$D44*'RES S curve-disconnect'!BD$15+'Res-Appliance class'!$E44*'RES S curve-disconnect'!BD$20","v":5064.685872943106},{"$f":"'Res-Appliance class'!$B44*'RES S curve-disconnect'!BE$5+'Res-Appliance class'!$C44*'RES S curve-disconnect'!BE$10+'Res-Appliance class'!$D44*'RES S curve-disconnect'!BE$15+'Res-Appliance class'!$E44*'RES S curve-disconnect'!BE$20","v":5708.8847739290832},{"$f":"'Res-Appliance class'!$B44*'RES S curve-disconnect'!BF$5+'Res-Appliance class'!$C44*'RES S curve-disconnect'!BF$10+'Res-Appliance class'!$D44*'RES S curve-disconnect'!BF$15+'Res-Appliance class'!$E44*'RES S curve-disconnect'!BF$20","v":6368.4788559857052},{"$f":"'Res-Appliance class'!$B44*'RES S curve-disconnect'!BG$5+'Res-Appliance class'!$C44*'RES S curve-disconnect'!BG$10+'Res-Appliance class'!$D44*'RES S curve-disconnect'!BG$15+'Res-Appliance class'!$E44*'RES S curve-disconnect'!BG$20","v":7116.7360852983065},{"$f":"'Res-Appliance class'!$B44*'RES S curve-disconnect'!BH$5+'Res-Appliance class'!$C44*'RES S curve-disconnect'!BH$10+'Res-Appliance class'!$D44*'RES S curve-disconnect'!BH$15+'Res-Appliance class'!$E44*'RES S curve-disconnect'!BH$20","v":8003.9306288908456},{"$f":"'Res-Appliance class'!$B44*'RES S curve-disconnect'!BI$5+'Res-Appliance class'!$C44*'RES S curve-disconnect'!BI$10+'Res-Appliance class'!$D44*'RES S curve-disconnect'!BI$15+'Res-Appliance class'!$E44*'RES S curve-disconnect'!BI$20","v":9290.5788309807922},{"$f":"'Res-Appliance class'!$B44*'RES S curve-disconnect'!BJ$5+'Res-Appliance class'!$C44*'RES S curve-disconnect'!BJ$10+'Res-Appliance class'!$D44*'RES S curve-disconnect'!BJ$15+'Res-Appliance class'!$E44*'RES S curve-disconnect'!BJ$20","v":11169.645271582685},{"$f":"'Res-Appliance class'!$B44*'RES S curve-disconnect'!BK$5+'Res-Appliance class'!$C44*'RES S curve-disconnect'!BK$10+'Res-Appliance class'!$D44*'RES S curve-disconnect'!BK$15+'Res-Appliance class'!$E44*'RES S curve-disconnect'!BK$20","v":13934.944854190311},{"$f":"'Res-Appliance class'!$B44*'RES S curve-disconnect'!BL$5+'Res-Appliance class'!$C44*'RES S curve-disconnect'!BL$10+'Res-Appliance class'!$D44*'RES S curve-disconnect'!BL$15+'Res-Appliance class'!$E44*'RES S curve-disconnect'!BL$20","v":-2244.9003041146811},{"$f":"'Res-Appliance class'!$B44*'RES S curve-disconnect'!BM$5+'Res-Appliance class'!$C44*'RES S curve-disconnect'!BM$10+'Res-Appliance class'!$D44*'RES S curve-disconnect'!BM$15+'Res-Appliance class'!$E44*'RES S curve-disconnect'!BM$20","v":-2241.3729800335918},{"$f":"'Res-Appliance class'!$B44*'RES S curve-disconnect'!BN$5+'Res-Appliance class'!$C44*'RES S curve-disconnect'!BN$10+'Res-Appliance class'!$D44*'RES S curve-disconnect'!BN$15+'Res-Appliance class'!$E44*'RES S curve-disconnect'!BN$20","v":-2240.1138017189787},{"$f":"'Res-Appliance class'!$B44*'RES S curve-disconnect'!BO$5+'Res-Appliance class'!$C44*'RES S curve-disconnect'!BO$10+'Res-Appliance class'!$D44*'RES S curve-disconnect'!BO$15+'Res-Appliance class'!$E44*'RES S curve-disconnect'!BO$20","v":-2234.3341254874504},{"$f":"'Res-Appliance class'!$B44*'RES S curve-disconnect'!BP$5+'Res-Appliance class'!$C44*'RES S curve-disconnect'!BP$10+'Res-Appliance class'!$D44*'RES S curve-disconnect'!BP$15+'Res-Appliance class'!$E44*'RES S curve-disconnect'!BP$20","v":-2230.8225310704611},{"$f":"'Res-Appliance class'!$B44*'RES S curve-disconnect'!BQ$5+'Res-Appliance class'!$C44*'RES S curve-disconnect'!BQ$10+'Res-Appliance class'!$D44*'RES S curve-disconnect'!BQ$15+'Res-Appliance class'!$E44*'RES S curve-disconnect'!BQ$20","v":-2227.3161162556339},{"$f":"'Res-Appliance class'!$B44*'RES S curve-disconnect'!BR$5+'Res-Appliance class'!$C44*'RES S curve-disconnect'!BR$10+'Res-Appliance class'!$D44*'RES S curve-disconnect'!BR$15+'Res-Appliance class'!$E44*'RES S curve-disconnect'!BR$20","v":-2226.0777200999437},{"$f":"'Res-Appliance class'!$B44*'RES S curve-disconnect'!BS$5+'Res-Appliance class'!$C44*'RES S curve-disconnect'!BS$10+'Res-Appliance class'!$D44*'RES S curve-disconnect'!BS$15+'Res-Appliance class'!$E44*'RES S curve-disconnect'!BS$20","v":-2220.3186997140228},{"$f":"'Res-Appliance class'!$B44*'RES S curve-disconnect'!BT$5+'Res-Appliance class'!$C44*'RES S curve-disconnect'!BT$10+'Res-Appliance class'!$D44*'RES S curve-disconnect'!BT$15+'Res-Appliance class'!$E44*'RES S curve-disconnect'!BT$20","v":-2216.8276356183214},{"$f":"'Res-Appliance class'!$B44*'RES S curve-disconnect'!BU$5+'Res-Appliance class'!$C44*'RES S curve-disconnect'!BU$10+'Res-Appliance class'!$D44*'RES S curve-disconnect'!BU$15+'Res-Appliance class'!$E44*'RES S curve-disconnect'!BU$20","v":-2213.3416263844651},{"$f":"'Res-Appliance class'!$B44*'RES S curve-disconnect'!BV$5+'Res-Appliance class'!$C44*'RES S curve-disconnect'!BV$10+'Res-Appliance class'!$D44*'RES S curve-disconnect'!BV$15+'Res-Appliance class'!$E44*'RES S curve-disconnect'!BV$20","v":-2212.1235118484724},{"$f":"'Res-Appliance class'!$B44*'RES S curve-disconnect'!BW$5+'Res-Appliance class'!$C44*'RES S curve-disconnect'!BW$10+'Res-Appliance class'!$D44*'RES S curve-disconnect'!BW$15+'Res-Appliance class'!$E44*'RES S curve-disconnect'!BW$20","v":-2206.3846498950875},{"$f":"'Res-Appliance class'!$B44*'RES S curve-disconnect'!BX$5+'Res-Appliance class'!$C44*'RES S curve-disconnect'!BX$10+'Res-Appliance class'!$D44*'RES S curve-disconnect'!BX$15+'Res-Appliance class'!$E44*'RES S curve-disconnect'!BX$20","v":-2202.9136218139738},{"$f":"'Res-Appliance class'!$B44*'RES S curve-disconnect'!BY$5+'Res-Appliance class'!$C44*'RES S curve-disconnect'!BY$10+'Res-Appliance class'!$D44*'RES S curve-disconnect'!BY$15+'Res-Appliance class'!$E44*'RES S curve-disconnect'!BY$20","v":-2199.4475269411032},{"$f":"'Res-Appliance class'!$B44*'RES S curve-disconnect'!BZ$5+'Res-Appliance class'!$C44*'RES S curve-disconnect'!BZ$10+'Res-Appliance class'!$D44*'RES S curve-disconnect'!BZ$15+'Res-Appliance class'!$E44*'RES S curve-disconnect'!BZ$20","v":-2198.2492058720063},{"$f":"'Res-Appliance class'!$B44*'RES S curve-disconnect'!CA$5+'Res-Appliance class'!$C44*'RES S curve-disconnect'!CA$10+'Res-Appliance class'!$D44*'RES S curve-disconnect'!CA$15+'Res-Appliance class'!$E44*'RES S curve-disconnect'!CA$20","v":-2192.5300172461293},{"$f":"'Res-Appliance class'!$B44*'RES S curve-disconnect'!CB$5+'Res-Appliance class'!$C44*'RES S curve-disconnect'!CB$10+'Res-Appliance class'!$D44*'RES S curve-disconnect'!CB$15+'Res-Appliance class'!$E44*'RES S curve-disconnect'!CB$20","v":-2189.0785431030667},{"$f":"'Res-Appliance class'!$B44*'RES S curve-disconnect'!CC$5+'Res-Appliance class'!$C44*'RES S curve-disconnect'!CC$10+'Res-Appliance class'!$D44*'RES S curve-disconnect'!CC$15+'Res-Appliance class'!$E44*'RES S curve-disconnect'!CC$20","v":-2185.6318835239754},{"$f":"'Res-Appliance class'!$B44*'RES S curve-disconnect'!CD$5+'Res-Appliance class'!$C44*'RES S curve-disconnect'!CD$10+'Res-Appliance class'!$D44*'RES S curve-disconnect'!CD$15+'Res-Appliance class'!$E44*'RES S curve-disconnect'!CD$20","v":-2237.2754319228115}]
["Whitehorse (C)",null,{"$f":"'Res-Appliance class'!$B45*'RES S curve-disconnect'!C$5+'Res-Appliance class'!$C45*'RES S curve-disconnect'!C$10+'Res-Appliance class'!$D45*'RES S curve-disconnect'!C$15+'Res-Appliance class'!$E45*'RES S curve-disconnect'!C$20","v":-5358.8258560597787},{"$f":"'Res-Appliance class'!$B45*'RES S curve-disconnect'!D$5+'Res-Appliance class'!$C45*'RES S curve-disconnect'!D$10+'Res-Appliance class'!$D45*'RES S curve-disconnect'!D$15+'Res-Appliance class'!$E45*'RES S curve-disconnect'!D$20","v":-5709.0050178194324},{"$f":"'Res-Appliance class'!$B45*'RES S curve-disconnect'!E$5+'Res-Appliance class'!$C45*'RES S curve-disconnect'!E$10+'Res-Appliance class'!$D45*'RES S curve-disconnect'!E$15+'Res-Appliance class'!$E45*'RES S curve-disconnect'!E$20","v":-4767.4073913453731},{"$f":"'Res-Appliance class'!$B45*'RES S curve-disconnect'!F$5+'Res-Appliance class'!$C45*'RES S curve-disconnect'!F$10+'Res-Appliance class'!$D45*'RES S curve-disconnect'!F$15+'Res-Appliance class'!$E45*'RES S curve-disconnect'!F$20","v":-4662.6396444102538},{"$f":"'Res-Appliance class'!$B45*'RES S curve-disconnect'!G$5+'Res-Appliance class'!$C45*'RES S curve-disconnect'!G$10+'Res-Appliance class'!$D45*'RES S curve-disconnect'!G$15+'Res-Appliance class'!$E45*'RES S curve-disconnect'!G$20","v":-5772.5542312022735},{"$f":"'Res-Appliance class'!$B45*'RES S curve-disconnect'!H$5+'Res-Appliance class'!$C45*'RES S curve-disconnect'!H$10+'Res-Appliance class'!$D45*'RES S curve-disconnect'!H$15+'Res-Appliance class'!$E45*'RES S curve-disconnect'!H$20","v":-5805.9825046570622},{"$f":"'Res-Appliance class'!$B45*'RES S curve-disconnect'!I$5+'Res-Appliance class'!$C45*'RES S curve-disconnect'!I$10+'Res-Appliance class'!$D45*'RES S curve-disconnect'!I$15+'Res-Appliance class'!$E45*'RES S curve-disconnect'!I$20","v":-5509.3154389971378},{"$f":"'Res-Appliance class'!$B45*'RES S curve-disconnect'!J$5+'Res-Appliance class'!$C45*'RES S curve-disconnect'!J$10+'Res-Appliance class'!$D45*'RES S curve-disconnect'!J$15+'Res-Appliance class'!$E45*'RES S curve-disconnect'!J$20","v":-5877.555902867316},{"$f":"'Res-Appliance class'!$B45*'RES S curve-disconnect'!K$5+'Res-Appliance class'!$C45*'RES S curve-disconnect'!K$10+'Res-Appliance class'!$D45*'RES S curve-disconnect'!K$15+'Res-Appliance class'!$E45*'RES S curve-disconnect'!K$20","v":-5228.383574296945},{"$f":"'Res-Appliance class'!$B45*'RES S curve-disconnect'!L$5+'Res-Appliance class'!$C45*'RES S curve-disconnect'!L$10+'Res-Appliance class'!$D45*'RES S curve-disconnect'!L$15+'Res-Appliance class'!$E45*'RES S curve-disconnect'!L$20","v":-5448.4029449423233},{"$f":"'Res-Appliance class'!$B45*'RES S curve-disconnect'!M$5+'Res-Appliance class'!$C45*'RES S curve-disconnect'!M$10+'Res-Appliance class'!$D45*'RES S curve-disconnect'!M$15+'Res-Appliance class'!$E45*'RES S curve-disconnect'!M$20","v":-5863.1558938997305},{"$f":"'Res-Appliance class'!$B45*'RES S curve-disconnect'!N$5+'Res-Appliance class'!$C45*'RES S curve-disconnect'!N$10+'Res-Appliance class'!$D45*'RES S curve-disconnect'!N$15+'Res-Appliance class'!$E45*'RES S curve-disconnect'!N$20","v":-5884.8921985314064},{"$f":"'Res-Appliance class'!$B45*'RES S curve-disconnect'!O$5+'Res-Appliance class'!$C45*'RES S curve-disconnect'!O$10+'Res-Appliance class'!$D45*'RES S curve-disconnect'!O$15+'Res-Appliance class'!$E45*'RES S curve-disconnect'!O$20","v":-5482.9790987208507},{"$f":"'Res-Appliance class'!$B45*'RES S curve-disconnect'!P$5+'Res-Appliance class'!$C45*'RES S curve-disconnect'!P$10+'Res-Appliance class'!$D45*'RES S curve-disconnect'!P$15+'Res-Appliance class'!$E45*'RES S curve-disconnect'!P$20","v":-5159.1521316079179},{"$f":"'Res-Appliance class'!$B45*'RES S curve-disconnect'!Q$5+'Res-Appliance class'!$C45*'RES S curve-disconnect'!Q$10+'Res-Appliance class'!$D45*'RES S curve-disconnect'!Q$15+'Res-Appliance class'!$E45*'RES S curve-disconnect'!Q$20","v":-4679.6318711372023},{"$f":"'Res-Appliance class'!$B45*'RES S curve-disconnect'!R$5+'Res-Appliance class'!$C45*'RES S curve-disconnect'!R$10+'Res-Appliance class'!$D45*'RES S curve-disconnect'!R$15+'Res-Appliance class'!$E45*'RES S curve-disconnect'!R$20","v":-4399.7454952261278},{"$f":"'Res-Appliance class'!$B45*'RES S curve-disconnect'!S$5+'Res-Appliance class'!$C45*'RES S curve-disconnect'!S$10+'Res-Appliance class'!$D45*'RES S curve-disconnect'!S$15+'Res-Appliance class'!$E45*'RES S curve-disconnect'!S$20","v":-3965.8310211526364},{"$f":"'Res-Appliance class'!$B45*'RES S curve-disconnect'!T$5+'Res-Appliance class'!$C45*'RES S curve-disconnect'!T$10+'Res-Appliance class'!$D45*'RES S curve-disconnect'!T$15+'Res-Appliance class'!$E45*'RES S curve-disconnect'!T$20","v":-3721.4422761582223},{"$f":"'Res-Appliance class'!$B45*'RES S curve-disconnect'!U$5+'Res-Appliance class'!$C45*'RES S curve-disconnect'!U$10+'Res-Appliance class'!$D45*'RES S curve-disconnect'!U$15+'Res-Appliance class'!$E45*'RES S curve-disconnect'!U$20","v":-3445.1782200265247},{"$f":"'Res-Appliance class'!$B45*'RES S curve-disconnect'!V$5+'Res-Appliance class'!$C45*'RES S curve-disconnect'!V$10+'Res-Appliance class'!$D45*'RES S curve-disconnect'!V$15+'Res-Appliance class'!$E45*'RES S curve-disconnect'!V$20","v":-3250.8604349537263},{"$f":"'Res-Appliance class'!$B45*'RES S curve-disconnect'!W$5+'Res-Appliance class'!$C45*'RES S curve-disconnect'!W$10+'Res-Appliance class'!$D45*'RES S curve-disconnect'!W$15+'Res-Appliance class'!$E45*'RES S curve-disconnect'!W$20","v":-3095.4947822161676},{"$f":"'Res-Appliance class'!$B45*'RES S curve-disconnect'!X$5+'Res-Appliance class'!$C45*'RES S curve-disconnect'!X$10+'Res-Appliance class'!$D45*'RES S curve-disconnect'!X$15+'Res-Appliance class'!$E45*'RES S curve-disconnect'!X$20","v":-2766.428947917278},{"$f":"'Res-Appliance class'!$B45*'RES S curve-disconnect'!Y$5+'Res-Appliance class'!$C45*'RES S curve-disconnect'!Y$10+'Res-Appliance class'!$D45*'RES S curve-disconnect'!Y$15+'Res-Appliance class'!$E45*'RES S curve-disconnect'!Y$20","v":-2433.8014567913619},{"$f":"'Res-Appliance class'!$B45*'RES S curve-disconnect'!Z$5+'Res-Appliance class'!$C45*'RES S curve-disconnect'!Z$10+'Res-Appliance class'!$D45*'RES S curve-disconnect'!Z$15+'Res-Appliance class'!$E45*'RES S curve-disconnect'!Z$20","v":-2202.9352243884327},{"$f":"'Res-Appliance class'!$B45*'RES S curve-disconnect'!AA$5+'Res-Appliance class'!$C45*'RES S curve-disconnect'!AA$10+'Res-Appliance class'!$D45*'RES S curve-disconnect'!AA$15+'Res-Appliance class'!$E45*'RES S curve-disconnect'!AA$20","v":-1972.1514729621354},{"$f":"'Res-Appliance class'!$B45*'RES S curve-disconnect'!AB$5+'Res-Appliance class'!$C45*'RES S curve-disconnect'!AB$10+'Res-Appliance class'!$D45*'RES S curve-disconnect'!AB$15+'Res-Appliance class'!$E45*'RES S curve-disconnect'!AB$20","v":-1784.4423589738294},{"$f":"'Res-Appliance class'!$B45*'RES S curve-disconnect'!AC$5+'Res-Appliance class'!$C45*'RES S curve-disconnect'!AC$10+'Res-Appliance class'!$D45*'RES S curve-disconnect'!AC$15+'Res-Appliance class'!$E45*'RES S curve-disconnect'!AC$20","v":-1603.0482869822449},{"$f":"'Res-Appliance class'!$B45*'RES S curve-disconnect'!AD$5+'Res-Appliance class'!$C45*'RES S curve-disconnect'!AD$10+'Res-Appliance class'!$D45*'RES S curve-disconnect'!AD$15+'Res-Appliance class'!$E45*'RES S curve-disconnect'!AD$20","v":-1435.2964375054362},{"$f":"'Res-Appliance class'!$B45*'RES S curve-disconnect'!AE$5+'Res-Appliance class'!$C45*'RES S curve-disconnect'!AE$10+'Res-Appliance class'!$D45*'RES S curve-disconnect'!AE$15+'Res-Appliance class'!$E45*'RES S curve-disconnect'!AE$20","v":-1259.9705222493358},{"$f":"'Res-Appliance class'!$B45*'RES S curve-disconnect'!AF$5+'Res-Appliance class'!$C45*'RES S curve-disconnect'!AF$10+'Res-Appliance class'!$D45*'RES S curve-disconnect'!AF$15+'Res-Appliance class'!$E45*'RES S curve-disconnect'!AF$20","v":-1038.2773484584443},{"$f":"'Res-Appliance class'!$B45*'RES S curve-disconnect'!AG$5+'Res-Appliance class'!$C45*'RES S curve-disconnect'!AG$10+'Res-Appliance class'!$D45*'RES S curve-disconnect'!AG$15+'Res-Appliance class'!$E45*'RES S curve-disconnect'!AG$20","v":-897.50849123712214},{"$f":"'Res-Appliance class'!$B45*'RES S curve-disconnect'!AH$5+'Res-Appliance class'!$C45*'RES S curve-disconnect'!AH$10+'Res-Appliance class'!$D45*'RES S curve-disconnect'!AH$15+'Res-Appliance class'!$E45*'RES S curve-disconnect'!AH$20","v":-699.3710795306182},{"$f":"'Res-Appliance class'!$B45*'RES S curve-disconnect'!AI$5+'Res-Appliance class'!$C45*'RES S curve-disconnect'!AI$10+'Res-Appliance class'!$D45*'RES S curve-disconnect'!AI$15+'Res-Appliance class'!$E45*'RES S curve-disconnect'!AI$20","v":-521.31254350080508},{"$f":"'Res-Appliance class'!$B45*'RES S curve-disconnect'!AJ$5+'Res-Appliance class'!$C45*'RES S curve-disconnect'!AJ$10+'Res-Appliance class'!$D45*'RES S curve-disconnect'!AJ$15+'Res-Appliance class'!$E45*'RES S curve-disconnect'!AJ$20","v":-360.60716531070966},{"$f":"'Res-Appliance class'!$B45*'RES S curve-disconnect'!AK$5+'Res-Appliance class'!$C45*'RES S curve-disconnect'!AK$10+'Res-Appliance class'!$D45*'RES S curve-disconnect'!AK$15+'Res-Appliance class'!$E45*'RES S curve-disconnect'!AK$20","v":-189.99738255781168},{"$f":"'Res-Appliance class'!$B45*'RES S curve-disconnect'!AL$5+'Res-Appliance class'!$C45*'RES S curve-disconnect'!AL$10+'Res-Appliance class'!$D45*'RES S curve-disconnect'!AL$15+'Res-Appliance class'!$E45*'RES S curve-disconnect'!AL$20","v":-780.45024204893753},{"$f":"'Res-Appliance class'!$B45*'RES S curve-disconnect'!AM$5+'Res-Appliance class'!$C45*'RES S curve-disconnect'!AM$10+'Res-Appliance class'!$D45*'RES S curve-disconnect'!AM$15+'Res-Appliance class'!$E45*'RES S curve-disconnect'!AM$20","v":-857.85297859743696},{"$f":"'Res-Appliance class'!$B45*'RES S curve-disconnect'!AN$5+'Res-Appliance class'!$C45*'RES S curve-disconnect'!AN$10+'Res-Appliance class'!$D45*'RES S curve-disconnect'!AN$15+'Res-Appliance class'!$E45*'RES S curve-disconnect'!AN$20","v":-696.42341679888034},{"$f":"'Res-Appliance class'!$B45*'RES S curve-disconnect'!AO$5+'Res-Appliance class'!$C45*'RES S curve-disconnect'!AO$10+'Res-Appliance class'!$D45*'RES S curve-disconnect'!AO$15+'Res-Appliance class'!$E45*'RES S curve-disconnect'!AO$20","v":-498.89613929563455},{"$f":"'Res-Appliance class'!$B45*'RES S curve-disconnect'!AP$5+'Res-Appliance class'!$C45*'RES S curve-disconnect'!AP$10+'Res-Appliance class'!$D45*'RES S curve-disconnect'!AP$15+'Res-Appliance class'!$E45*'RES S curve-disconnect'!AP$20","v":-316.36020399159395},{"$f":"'Res-Appliance class'!$B45*'RES S curve-disconnect'!AQ$5+'Res-Appliance class'!$C45*'RES S curve-disconnect'!AQ$10+'Res-Appliance class'!$D45*'RES S curve-disconnect'!AQ$15+'Res-Appliance class'!$E45*'RES S curve-disconnect'!AQ$20","v":-119.89295741683014},{"$f":"'Res-Appliance class'!$B45*'RES S curve-disconnect'!AR$5+'Res-Appliance class'!$C45*'RES S curve-disconnect'!AR$10+'Res-Appliance class'!$D45*'RES S curve-disconnect'!AR$15+'Res-Appliance class'!$E45*'RES S curve-disconnect'!AR$20","v":95.863078166995933},{"$f":"'Res-Appliance class'!$B45*'RES S curve-disconnect'!AS$5+'Res-Appliance class'!$C45*'RES S curve-disconnect'!AS$10+'Res-Appliance class'!$D45*'RES S curve-disconnect'!AS$15+'Res-Appliance class'!$E45*'RES S curve-disconnect'!AS$20","v":337.9821667012846},{"$f":"'Res-Appliance class'!$B45*'RES S curve-disconnect'!AT$5+'Res-Appliance class'!$C45*'RES S curve-disconnect'!AT$10+'Res-Appliance class'!$D45*'RES S curve-disconnect'!AT$15+'Res-Appliance class'!$E45*'RES S curve-disconnect'!AT$20","v":608.85420335669005},{"$f":"'Res-Appliance class'!$B45*'RES S curve-disconnect'!AU$5+'Res-Appliance class'!$C45*'RES S curve-disconnect'!AU$10+'Res-Appliance class'!$D45*'RES S curve-disconnect'!AU$15+'Res-Appliance class'!$E45*'RES S curve-disconnect'!AU$20","v":922.17392998111791},{"$f":"'Res-Appliance class'!$B45*'RES S curve-disconnect'!AV$5+'Res-Appliance class'!$C45*'RES S curve-disconnect'!AV$10+'Res-Appliance class'!$D45*'RES S curve-disconnect'!AV$15+'Res-Appliance class'!$E45*'RES S curve-disconnect'!AV$20","v":1279.6274747537389},{"$f":"'Res-Appliance class'!$B45*'RES S curve-disconnect'!AW$5+'Res-Appliance class'!$C45*'RES S curve-disconnect'!AW$10+'Res-Appliance class'!$D45*'RES S curve-disconnect'!AW$15+'Res-Appliance class'!$E45*'RES S curve-disconnect'!AW$20","v":1690.5186037606281},{"$f":"'Res-Appliance class'!$B45*'RES S curve-disconnect'!AX$5+'Res-Appliance class'!$C45*'RES S curve-disconnect'!AX$10+'Res-Appliance class'!$D45*'RES S curve-disconnect'!AX$15+'Res-Appliance class'!$E45*'RES S curve-disconnect'!AX$20","v":2158.8868781875685},{"$f":"'Res-Appliance class'!$B45*'RES S curve-disconnect'!AY$5+'Res-Appliance class'!$C45*'RES S curve-disconnect'!AY$10+'Res-Appliance class'!$D45*'RES S curve-disconnect'!AY$15+'Res-Appliance class'!$E45*'RES S curve-disconnect'!AY$20","v":2699.2913760245196},{"$f":"'Res-Appliance class'!$B45*'RES S curve-disconnect'!AZ$5+'Res-Appliance class'!$C45*'RES S curve-disconnect'!AZ$10+'Res-Appliance class'!$D45*'RES S curve-disconnect'!AZ$15+'Res-Appliance class'!$E45*'RES S curve-disconnect'!AZ$20","v":3317.1685434376323},{"$f":"'Res-Appliance class'!$B45*'RES S curve-disconnect'!BA$5+'Res-Appliance class'!$C45*'RES S curve-disconnect'!BA$10+'Res-Appliance class'!$D45*'RES S curve-disconnect'!BA$15+'Res-Appliance class'!$E45*'RES S curve-disconnect'!BA$20","v":4032.8062120519603},{"$f":"'Res-Appliance class'!$B45*'RES S curve-disconnect'!BB$5+'Res-Appliance class'!$C45*'RES S curve-disconnect'!BB$10+'Res-Appliance class'!$D45*'RES S curve-disconnect'!BB$15+'Res-Appliance class'!$E45*'RES S curve-disconnect'!BB$20","v":4869.039047986309},{"$f":"'Res-Appliance class'!$B45*'RES S curve-disconnect'!BC$5+'Res-Appliance class'!$C45*'RES S curve-disconnect'!BC$10+'Res-Appliance class'!$D45*'RES S curve-disconnect'!BC$15+'Res-Appliance class'!$E45*'RES S curve-disconnect'!BC$20","v":5866.2824076112738},{"$f":"'Res-Appliance class'!$B45*'RES S curve-disconnect'!BD$5+'Res-Appliance class'!$C45*'RES S curve-disconnect'!BD$10+'Res-Appliance class'!$D45*'RES S curve-disconnect'!BD$15+'Res-Appliance class'!$E45*'RES S curve-disconnect'!BD$20","v":6828.691011980337},{"$f":"'Res-Appliance class'!$B45*'RES S curve-disconnect'!BE$5+'Res-Appliance class'!$C45*'RES S curve-disconnect'!BE$10+'Res-Appliance class'!$D45*'RES S curve-disconnect'!BE$15+'Res-Appliance class'!$E45*'RES S curve-disconnect'!BE$20","v":7708.4654567183015},{"$f":"'Res-Appliance class'!$B45*'RES S curve-disconnect'!BF$5+'Res-Appliance class'!$C45*'RES S curve-disconnect'!BF$10+'Res-Appliance class'!$D45*'RES S curve-disconnect'!BF$15+'Res-Appliance class'!$E45*'RES S curve-disconnect'!BF$20","v":8608.6023764772053},{"$f":"'Res-Appliance class'!$B45*'RES S curve-disconnect'!BG$5+'Res-Appliance class'!$C45*'RES S curve-disconnect'!BG$10+'Res-Appliance class'!$D45*'RES S curve-disconnect'!BG$15+'Res-Appliance class'!$E45*'RES S curve-disconnect'!BG$20","v":9627.2124487750079},{"$f":"'Res-Appliance class'!$B45*'RES S curve-disconnect'!BH$5+'Res-Appliance class'!$C45*'RES S curve-disconnect'!BH$10+'Res-Appliance class'!$D45*'RES S curve-disconnect'!BH$15+'Res-Appliance class'!$E45*'RES S curve-disconnect'!BH$20","v":10836.4447636229},{"$f":"'Res-Appliance class'!$B45*'RES S curve-disconnect'!BI$5+'Res-Appliance class'!$C45*'RES S curve-disconnect'!BI$10+'Res-Appliance class'!$D45*'RES S curve-disconnect'!BI$15+'Res-Appliance class'!$E45*'RES S curve-disconnect'!BI$20","v":12588.531583427215},{"$f":"'Res-Appliance class'!$B45*'RES S curve-disconnect'!BJ$5+'Res-Appliance class'!$C45*'RES S curve-disconnect'!BJ$10+'Res-Appliance class'!$D45*'RES S curve-disconnect'!BJ$15+'Res-Appliance class'!$E45*'RES S curve-disconnect'!BJ$20","v":15154.998314314773},{"$f":"'Res-Appliance class'!$B45*'RES S curve-disconnect'!BK$5+'Res-Appliance class'!$C45*'RES S curve-disconnect'!BK$10+'Res-Appliance class'!$D45*'RES S curve-disconnect'!BK$15+'Res-Appliance class'!$E45*'RES S curve-disconnect'!BK$20","v":18943.233919093724},{"$f":"'Res-Appliance class'!$B45*'RES S curve-disconnect'!BL$5+'Res-Appliance class'!$C45*'RES S curve-disconnect'!BL$10+'Res-Appliance class'!$D45*'RES S curve-disconnect'!BL$15+'Res-Appliance class'!$E45*'RES S curve-disconnect'!BL$20","v":-2940.7129493747084},{"$f":"'Res-Appliance class'!$B45*'RES S curve-disconnect'!BM$5+'Res-Appliance class'!$C45*'RES S curve-disconnect'!BM$10+'Res-Appliance class'!$D45*'RES S curve-disconnect'!BM$15+'Res-Appliance class'!$E45*'RES S curve-disconnect'!BM$20","v":-2935.915498903842},{"$f":"'Res-Appliance class'!$B45*'RES S curve-disconnect'!BN$5+'Res-Appliance class'!$C45*'RES S curve-disconnect'!BN$10+'Res-Appliance class'!$D45*'RES S curve-disconnect'!BN$15+'Res-Appliance class'!$E45*'RES S curve-disconnect'!BN$20","v":-2933.3875929315791},{"$f":"'Res-Appliance class'!$B45*'RES S curve-disconnect'!BO$5+'Res-Appliance class'!$C45*'RES S curve-disconnect'!BO$10+'Res-Appliance class'!$D45*'RES S curve-disconnect'!BO$15+'Res-Appliance class'!$E45*'RES S curve-disconnect'!BO$20","v":-2926.3405796440898},{"$f":"'Res-Appliance class'!$B45*'RES S curve-disconnect'!BP$5+'Res-Appliance class'!$C45*'RES S curve-disconnect'!BP$10+'Res-Appliance class'!$D45*'RES S curve-disconnect'!BP$15+'Res-Appliance class'!$E45*'RES S curve-disconnect'!BP$20","v":-2921.5630306920425},{"$f":"'Res-Appliance class'!$B45*'RES S curve-disconnect'!BQ$5+'Res-Appliance class'!$C45*'RES S curve-disconnect'!BQ$10+'Res-Appliance class'!$D45*'RES S curve-disconnect'!BQ$15+'Res-Appliance class'!$E45*'RES S curve-disconnect'!BQ$20","v":-2916.7920358316151},{"$f":"'Res-Appliance class'!$B45*'RES S curve-disconnect'!BR$5+'Res-Appliance class'!$C45*'RES S curve-disconnect'!BR$10+'Res-Appliance class'!$D45*'RES S curve-disconnect'!BR$15+'Res-Appliance class'!$E45*'RES S curve-disconnect'!BR$20","v":-2914.290426137371},{"$f":"'Res-Appliance class'!$B45*'RES S curve-disconnect'!BS$5+'Res-Appliance class'!$C45*'RES S curve-disconnect'!BS$10+'Res-Appliance class'!$D45*'RES S curve-disconnect'!BS$15+'Res-Appliance class'!$E45*'RES S curve-disconnect'!BS$20","v":-2907.2695507862586},{"$f":"'Res-Appliance class'!$B45*'RES S curve-disconnect'!BT$5+'Res-Appliance class'!$C45*'RES S curve-disconnect'!BT$10+'Res-Appliance class'!$D45*'RES S curve-disconnect'!BT$15+'Res-Appliance class'!$E45*'RES S curve-disconnect'!BT$20","v":-2902.5179824134616},{"$f":"'Res-Appliance class'!$B45*'RES S curve-disconnect'!BU$5+'Res-Appliance class'!$C45*'RES S curve-disconnect'!BU$10+'Res-Appliance class'!$D45*'RES S curve-disconnect'!BU$15+'Res-Appliance class'!$E45*'RES S curve-disconnect'!BU$20","v":-2897.7728117534602},{"$f":"'Res-Appliance class'!$B45*'RES S curve-disconnect'!BV$5+'Res-Appliance class'!$C45*'RES S curve-disconnect'!BV$10+'Res-Appliance class'!$D45*'RES S curve-disconnect'!BV$15+'Res-Appliance class'!$E45*'RES S curve-disconnect'!BV$20","v":-2895.2968708529415},{"$f":"'Res-Appliance class'!$B45*'RES S curve-disconnect'!BW$5+'Res-Appliance class'!$C45*'RES S curve-disconnect'!BW$10+'Res-Appliance class'!$D45*'RES S curve-disconnect'!BW$15+'Res-Appliance class'!$E45*'RES S curve-disconnect'!BW$20","v":-2888.3015098548381},{"$f":"'Res-Appliance class'!$B45*'RES S curve-disconnect'!BX$5+'Res-Appliance class'!$C45*'RES S curve-disconnect'!BX$10+'Res-Appliance class'!$D45*'RES S curve-disconnect'!BX$15+'Res-Appliance class'!$E45*'RES S curve-disconnect'!BX$20","v":-2883.5753023542202},{"$f":"'Res-Appliance class'!$B45*'RES S curve-disconnect'!BY$5+'Res-Appliance class'!$C45*'RES S curve-disconnect'!BY$10+'Res-Appliance class'!$D45*'RES S curve-disconnect'!BY$15+'Res-Appliance class'!$E45*'RES S curve-disconnect'!BY$20","v":-2878.8553400393926},{"$f":"'Res-Appliance class'!$B45*'RES S curve-disconnect'!BZ$5+'Res-Appliance class'!$C45*'RES S curve-disconnect'!BZ$10+'Res-Appliance class'!$D45*'RES S curve-disconnect'!BZ$15+'Res-Appliance class'!$E45*'RES S curve-disconnect'!BZ$20","v":-2876.404455904848},{"$f":"'Res-Appliance class'!$B45*'RES S curve-disconnect'!CA$5+'Res-Appliance class'!$C45*'RES S curve-disconnect'!CA$10+'Res-Appliance class'!$D45*'RES S curve-disconnect'!CA$15+'Res-Appliance class'!$E45*'RES S curve-disconnect'!CA$20","v":-2869.4340010353367},{"$f":"'Res-Appliance class'!$B45*'RES S curve-disconnect'!CB$5+'Res-Appliance class'!$C45*'RES S curve-disconnect'!CB$10+'Res-Appliance class'!$D45*'RES S curve-disconnect'!CB$15+'Res-Appliance class'!$E45*'RES S curve-disconnect'!CB$20","v":-2864.7325499618037},{"$f":"'Res-Appliance class'!$B45*'RES S curve-disconnect'!CC$5+'Res-Appliance class'!$C45*'RES S curve-disconnect'!CC$10+'Res-Appliance class'!$D45*'RES S curve-disconnect'!CC$15+'Res-Appliance class'!$E45*'RES S curve-disconnect'!CC$20","v":-2860.0371953025196},{"$f":"'Res-Appliance class'!$B45*'RES S curve-disconnect'!CD$5+'Res-Appliance class'!$C45*'RES S curve-disconnect'!CD$10+'Res-Appliance class'!$D45*'RES S curve-disconnect'!CD$15+'Res-Appliance class'!$E45*'RES S curve-disconnect'!CD$20","v":-2931.6748042847357}]
["Yarra Ranges (S)",null,{"$f":"'Res-Appliance class'!$B46*'RES S curve-disconnect'!C$5+'Res-Appliance class'!$C46*'RES S curve-disconnect'!C$10+'Res-Appliance class'!$D46*'RES S curve-disconnect'!C$15+'Res-Appliance class'!$E46*'RES S curve-disconnect'!C$20","v":-5528.653650617327},{"$f":"'Res-Appliance class'!$B46*'RES S curve-disconnect'!D$5+'Res-Appliance class'!$C46*'RES S curve-disconnect'!D$10+'Res-Appliance class'!$D46*'RES S curve-disconnect'!D$15+'Res-Appliance class'!$E46*'RES S curve-disconnect'!D$20","v":-5895.6403703533542},{"$f":"'Res-Appliance class'!$B46*'RES S curve-disconnect'!E$5+'Res-Appliance class'!$C46*'RES S curve-disconnect'!E$10+'Res-Appliance class'!$D46*'RES S curve-disconnect'!E$15+'Res-Appliance class'!$E46*'RES S curve-disconnect'!E$20","v":-4890.8398552984281},{"$f":"'Res-Appliance class'!$B46*'RES S curve-disconnect'!F$5+'Res-Appliance class'!$C46*'RES S curve-disconnect'!F$10+'Res-Appliance class'!$D46*'RES S curve-disconnect'!F$15+'Res-Appliance class'!$E46*'RES S curve-disconnect'!F$20","v":-4779.9727610112113},{"$f":"'Res-Appliance class'!$B46*'RES S curve-disconnect'!G$5+'Res-Appliance class'!$C46*'RES S curve-disconnect'!G$10+'Res-Appliance class'!$D46*'RES S curve-disconnect'!G$15+'Res-Appliance class'!$E46*'RES S curve-disconnect'!G$20","v":-5993.31718191662},{"$f":"'Res-Appliance class'!$B46*'RES S curve-disconnect'!H$5+'Res-Appliance class'!$C46*'RES S curve-disconnect'!H$10+'Res-Appliance class'!$D46*'RES S curve-disconnect'!H$15+'Res-Appliance class'!$E46*'RES S curve-disconnect'!H$20","v":-6020.6781811118426},{"$f":"'Res-Appliance class'!$B46*'RES S curve-disconnect'!I$5+'Res-Appliance class'!$C46*'RES S curve-disconnect'!I$10+'Res-Appliance class'!$D46*'RES S curve-disconnect'!I$15+'Res-Appliance class'!$E46*'RES S curve-disconnect'!I$20","v":-5706.9650886889394},{"$f":"'Res-Appliance class'!$B46*'RES S curve-disconnect'!J$5+'Res-Appliance class'!$C46*'RES S curve-disconnect'!J$10+'Res-Appliance class'!$D46*'RES S curve-disconnect'!J$15+'Res-Appliance class'!$E46*'RES S curve-disconnect'!J$20","v":-6072.6323761538379},{"$f":"'Res-Appliance class'!$B46*'RES S curve-disconnect'!K$5+'Res-Appliance class'!$C46*'RES S curve-disconnect'!K$10+'Res-Appliance class'!$D46*'RES S curve-disconnect'!K$15+'Res-Appliance class'!$E46*'RES S curve-disconnect'!K$20","v":-5391.8184004021714},{"$f":"'Res-Appliance class'!$B46*'RES S curve-disconnect'!L$5+'Res-Appliance class'!$C46*'RES S curve-disconnect'!L$10+'Res-Appliance class'!$D46*'RES S curve-disconnect'!L$15+'Res-Appliance class'!$E46*'RES S curve-disconnect'!L$20","v":-5623.3553023081895},{"$f":"'Res-Appliance class'!$B46*'RES S curve-disconnect'!M$5+'Res-Appliance class'!$C46*'RES S curve-disconnect'!M$10+'Res-Appliance class'!$D46*'RES S curve-disconnect'!M$15+'Res-Appliance class'!$E46*'RES S curve-disconnect'!M$20","v":-6065.5374065863016},{"$f":"'Res-Appliance class'!$B46*'RES S curve-disconnect'!N$5+'Res-Appliance class'!$C46*'RES S curve-disconnect'!N$10+'Res-Appliance class'!$D46*'RES S curve-disconnect'!N$15+'Res-Appliance class'!$E46*'RES S curve-disconnect'!N$20","v":-6089.6272503409946},{"$f":"'Res-Appliance class'!$B46*'RES S curve-disconnect'!O$5+'Res-Appliance class'!$C46*'RES S curve-disconnect'!O$10+'Res-Appliance class'!$D46*'RES S curve-disconnect'!O$15+'Res-Appliance class'!$E46*'RES S curve-disconnect'!O$20","v":-5666.9180815156569},{"$f":"'Res-Appliance class'!$B46*'RES S curve-disconnect'!P$5+'Res-Appliance class'!$C46*'RES S curve-disconnect'!P$10+'Res-Appliance class'!$D46*'RES S curve-disconnect'!P$15+'Res-Appliance class'!$E46*'RES S curve-disconnect'!P$20","v":-5325.8187169401235},{"$f":"'Res-Appliance class'!$B46*'RES S curve-disconnect'!Q$5+'Res-Appliance class'!$C46*'RES S curve-disconnect'!Q$10+'Res-Appliance class'!$D46*'RES S curve-disconnect'!Q$15+'Res-Appliance class'!$E46*'RES S curve-disconnect'!Q$20","v":-4820.2476050021796},{"$f":"'Res-Appliance class'!$B46*'RES S curve-disconnect'!R$5+'Res-Appliance class'!$C46*'RES S curve-disconnect'!R$10+'Res-Appliance class'!$D46*'RES S curve-disconnect'!R$15+'Res-Appliance class'!$E46*'RES S curve-disconnect'!R$20","v":-4525.4536094349833},{"$f":"'Res-Appliance class'!$B46*'RES S curve-disconnect'!S$5+'Res-Appliance class'!$C46*'RES S curve-disconnect'!S$10+'Res-Appliance class'!$D46*'RES S curve-disconnect'!S$15+'Res-Appliance class'!$E46*'RES S curve-disconnect'!S$20","v":-4068.7516123191253},{"$f":"'Res-Appliance class'!$B46*'RES S curve-disconnect'!T$5+'Res-Appliance class'!$C46*'RES S curve-disconnect'!T$10+'Res-Appliance class'!$D46*'RES S curve-disconnect'!T$15+'Res-Appliance class'!$E46*'RES S curve-disconnect'!T$20","v":-3810.1454806816691},{"$f":"'Res-Appliance class'!$B46*'RES S curve-disconnect'!U$5+'Res-Appliance class'!$C46*'RES S curve-disconnect'!U$10+'Res-Appliance class'!$D46*'RES S curve-disconnect'!U$15+'Res-Appliance class'!$E46*'RES S curve-disconnect'!U$20","v":-3518.9983696604213},{"$f":"'Res-Appliance class'!$B46*'RES S curve-disconnect'!V$5+'Res-Appliance class'!$C46*'RES S curve-disconnect'!V$10+'Res-Appliance class'!$D46*'RES S curve-disconnect'!V$15+'Res-Appliance class'!$E46*'RES S curve-disconnect'!V$20","v":-3315.050139349094},{"$f":"'Res-Appliance class'!$B46*'RES S curve-disconnect'!W$5+'Res-Appliance class'!$C46*'RES S curve-disconnect'!W$10+'Res-Appliance class'!$D46*'RES S curve-disconnect'!W$15+'Res-Appliance class'!$E46*'RES S curve-disconnect'!W$20","v":-3152.0433552421682},{"$f":"'Res-Appliance class'!$B46*'RES S curve-disconnect'!X$5+'Res-Appliance class'!$C46*'RES S curve-disconnect'!X$10+'Res-Appliance class'!$D46*'RES S curve-disconnect'!X$15+'Res-Appliance class'!$E46*'RES S curve-disconnect'!X$20","v":-2804.7056236972339},{"$f":"'Res-Appliance class'!$B46*'RES S curve-disconnect'!Y$5+'Res-Appliance class'!$C46*'RES S curve-disconnect'!Y$10+'Res-Appliance class'!$D46*'RES S curve-disconnect'!Y$15+'Res-Appliance class'!$E46*'RES S curve-disconnect'!Y$20","v":-2453.797683003555},{"$f":"'Res-Appliance class'!$B46*'RES S curve-disconnect'!Z$5+'Res-Appliance class'!$C46*'RES S curve-disconnect'!Z$10+'Res-Appliance class'!$D46*'RES S curve-disconnect'!Z$15+'Res-Appliance class'!$E46*'RES S curve-disconnect'!Z$20","v":-2210.690978091463},{"$f":"'Res-Appliance class'!$B46*'RES S curve-disconnect'!AA$5+'Res-Appliance class'!$C46*'RES S curve-disconnect'!AA$10+'Res-Appliance class'!$D46*'RES S curve-disconnect'!AA$15+'Res-Appliance class'!$E46*'RES S curve-disconnect'!AA$20","v":-1967.9001581531199},{"$f":"'Res-Appliance class'!$B46*'RES S curve-disconnect'!AB$5+'Res-Appliance class'!$C46*'RES S curve-disconnect'!AB$10+'Res-Appliance class'!$D46*'RES S curve-disconnect'!AB$15+'Res-Appliance class'!$E46*'RES S curve-disconnect'!AB$20","v":-1770.5793799278672},{"$f":"'Res-Appliance class'!$B46*'RES S curve-disconnect'!AC$5+'Res-Appliance class'!$C46*'RES S curve-disconnect'!AC$10+'Res-Appliance class'!$D46*'RES S curve-disconnect'!AC$15+'Res-Appliance class'!$E46*'RES S curve-disconnect'!AC$20","v":-1580.0690384341019},{"$f":"'Res-Appliance class'!$B46*'RES S curve-disconnect'!AD$5+'Res-Appliance class'!$C46*'RES S curve-disconnect'!AD$10+'Res-Appliance class'!$D46*'RES S curve-disconnect'!AD$15+'Res-Appliance class'!$E46*'RES S curve-disconnect'!AD$20","v":-1403.9543957520857},{"$f":"'Res-Appliance class'!$B46*'RES S curve-disconnect'!AE$5+'Res-Appliance class'!$C46*'RES S curve-disconnect'!AE$10+'Res-Appliance class'!$D46*'RES S curve-disconnect'!AE$15+'Res-Appliance class'!$E46*'RES S curve-disconnect'!AE$20","v":-1220.1644661630994},{"$f":"'Res-Appliance class'!$B46*'RES S curve-disconnect'!AF$5+'Res-Appliance class'!$C46*'RES S curve-disconnect'!AF$10+'Res-Appliance class'!$D46*'RES S curve-disconnect'!AF$15+'Res-Appliance class'!$E46*'RES S curve-disconnect'!AF$20","v":-987.13402352226262},{"$f":"'Res-Appliance class'!$B46*'RES S curve-disconnect'!AG$5+'Res-Appliance class'!$C46*'RES S curve-disconnect'!AG$10+'Res-Appliance class'!$D46*'RES S curve-disconnect'!AG$15+'Res-Appliance class'!$E46*'RES S curve-disconnect'!AG$20","v":-838.75382759257695},{"$f":"'Res-Appliance class'!$B46*'RES S curve-disconnect'!AH$5+'Res-Appliance class'!$C46*'RES S curve-disconnect'!AH$10+'Res-Appliance class'!$D46*'RES S curve-disconnect'!AH$15+'Res-Appliance class'!$E46*'RES S curve-disconnect'!AH$20","v":-629.24809158956884},{"$f":"'Res-Appliance class'!$B46*'RES S curve-disconnect'!AI$5+'Res-Appliance class'!$C46*'RES S curve-disconnect'!AI$10+'Res-Appliance class'!$D46*'RES S curve-disconnect'!AI$15+'Res-Appliance class'!$E46*'RES S curve-disconnect'!AI$20","v":-441.56488675733829},{"$f":"'Res-Appliance class'!$B46*'RES S curve-disconnect'!AJ$5+'Res-Appliance class'!$C46*'RES S curve-disconnect'!AJ$10+'Res-Appliance class'!$D46*'RES S curve-disconnect'!AJ$15+'Res-Appliance class'!$E46*'RES S curve-disconnect'!AJ$20","v":-272.05166173494979},{"$f":"'Res-Appliance class'!$B46*'RES S curve-disconnect'!AK$5+'Res-Appliance class'!$C46*'RES S curve-disconnect'!AK$10+'Res-Appliance class'!$D46*'RES S curve-disconnect'!AK$15+'Res-Appliance class'!$E46*'RES S curve-disconnect'!AK$20","v":-92.110942973157535},{"$f":"'Res-Appliance class'!$B46*'RES S curve-disconnect'!AL$5+'Res-Appliance class'!$C46*'RES S curve-disconnect'!AL$10+'Res-Appliance class'!$D46*'RES S curve-disconnect'!AL$15+'Res-Appliance class'!$E46*'RES S curve-disconnect'!AL$20","v":-713.35045630856894},{"$f":"'Res-Appliance class'!$B46*'RES S curve-disconnect'!AM$5+'Res-Appliance class'!$C46*'RES S curve-disconnect'!AM$10+'Res-Appliance class'!$D46*'RES S curve-disconnect'!AM$15+'Res-Appliance class'!$E46*'RES S curve-disconnect'!AM$20","v":-795.69401521919406},{"$f":"'Res-Appliance class'!$B46*'RES S curve-disconnect'!AN$5+'Res-Appliance class'!$C46*'RES S curve-disconnect'!AN$10+'Res-Appliance class'!$D46*'RES S curve-disconnect'!AN$15+'Res-Appliance class'!$E46*'RES S curve-disconnect'!AN$20","v":-625.89336888341995},{"$f":"'Res-Appliance class'!$B46*'RES S curve-disconnect'!AO$5+'Res-Appliance class'!$C46*'RES S curve-disconnect'!AO$10+'Res-Appliance class'!$D46*'RES S curve-disconnect'!AO$15+'Res-Appliance class'!$E46*'RES S curve-disconnect'!AO$20","v":-417.68724031461437},{"$f":"'Res-Appliance class'!$B46*'RES S curve-disconnect'!AP$5+'Res-Appliance class'!$C46*'RES S curve-disconnect'!AP$10+'Res-Appliance class'!$D46*'RES S curve-disconnect'!AP$15+'Res-Appliance class'!$E46*'RES S curve-disconnect'!AP$20","v":-225.02818156554508},{"$f":"'Res-Appliance class'!$B46*'RES S curve-disconnect'!AQ$5+'Res-Appliance class'!$C46*'RES S curve-disconnect'!AQ$10+'Res-Appliance class'!$D46*'RES S curve-disconnect'!AQ$15+'Res-Appliance class'!$E46*'RES S curve-disconnect'!AQ$20","v":-17.923664515915846},{"$f":"'Res-Appliance class'!$B46*'RES S curve-disconnect'!AR$5+'Res-Appliance class'!$C46*'RES S curve-disconnect'!AR$10+'Res-Appliance class'!$D46*'RES S curve-disconnect'!AR$15+'Res-Appliance class'!$E46*'RES S curve-disconnect'!AR$20","v":209.66711892506726},{"$f":"'Res-Appliance class'!$B46*'RES S curve-disconnect'!AS$5+'Res-Appliance class'!$C46*'RES S curve-disconnect'!AS$10+'Res-Appliance class'!$D46*'RES S curve-disconnect'!AS$15+'Res-Appliance class'!$E46*'RES S curve-disconnect'!AS$20","v":465.10817943800976},{"$f":"'Res-Appliance class'!$B46*'RES S curve-disconnect'!AT$5+'Res-Appliance class'!$C46*'RES S curve-disconnect'!AT$10+'Res-Appliance class'!$D46*'RES S curve-disconnect'!AT$15+'Res-Appliance class'!$E46*'RES S curve-disconnect'!AT$20","v":751.06090275472638},{"$f":"'Res-Appliance class'!$B46*'RES S curve-disconnect'!AU$5+'Res-Appliance class'!$C46*'RES S curve-disconnect'!AU$10+'Res-Appliance class'!$D46*'RES S curve-disconnect'!AU$15+'Res-Appliance class'!$E46*'RES S curve-disconnect'!AU$20","v":1081.6157220618788},{"$f":"'Res-Appliance class'!$B46*'RES S curve-disconnect'!AV$5+'Res-Appliance class'!$C46*'RES S curve-disconnect'!AV$10+'Res-Appliance class'!$D46*'RES S curve-disconnect'!AV$15+'Res-Appliance class'!$E46*'RES S curve-disconnect'!AV$20","v":1458.9508371776355},{"$f":"'Res-Appliance class'!$B46*'RES S curve-disconnect'!AW$5+'Res-Appliance class'!$C46*'RES S curve-disconnect'!AW$10+'Res-Appliance class'!$D46*'RES S curve-disconnect'!AW$15+'Res-Appliance class'!$E46*'RES S curve-disconnect'!AW$20","v":1892.8001843809761},{"$f":"'Res-Appliance class'!$B46*'RES S curve-disconnect'!AX$5+'Res-Appliance class'!$C46*'RES S curve-disconnect'!AX$10+'Res-Appliance class'!$D46*'RES S curve-disconnect'!AX$15+'Res-Appliance class'!$E46*'RES S curve-disconnect'!AX$20","v":2387.6032442610681},{"$f":"'Res-Appliance class'!$B46*'RES S curve-disconnect'!AY$5+'Res-Appliance class'!$C46*'RES S curve-disconnect'!AY$10+'Res-Appliance class'!$D46*'RES S curve-disconnect'!AY$15+'Res-Appliance class'!$E46*'RES S curve-disconnect'!AY$20","v":2958.405503620274},{"$f":"'Res-Appliance class'!$B46*'RES S curve-disconnect'!AZ$5+'Res-Appliance class'!$C46*'RES S curve-disconnect'!AZ$10+'Res-Appliance class'!$D46*'RES S curve-disconnect'!AZ$15+'Res-Appliance class'!$E46*'RES S curve-disconnect'!AZ$20","v":3611.3868507091711},{"$f":"'Res-Appliance class'!$B46*'RES S curve-disconnect'!BA$5+'Res-Appliance class'!$C46*'RES S curve-disconnect'!BA$10+'Res-Appliance class'!$D46*'RES S curve-disconnect'!BA$15+'Res-Appliance class'!$E46*'RES S curve-disconnect'!BA$20","v":4367.9224389106539},{"$f":"'Res-Appliance class'!$B46*'RES S curve-disconnect'!BB$5+'Res-Appliance class'!$C46*'RES S curve-disconnect'!BB$10+'Res-Appliance class'!$D46*'RES S curve-disconnect'!BB$15+'Res-Appliance class'!$E46*'RES S curve-disconnect'!BB$20","v":5252.3672194694127},{"$f":"'Res-Appliance class'!$B46*'RES S curve-disconnect'!BC$5+'Res-Appliance class'!$C46*'RES S curve-disconnect'!BC$10+'Res-Appliance class'!$D46*'RES S curve-disconnect'!BC$15+'Res-Appliance class'!$E46*'RES S curve-disconnect'!BC$20","v":6307.1841660852378},{"$f":"'Res-Appliance class'!$B46*'RES S curve-disconnect'!BD$5+'Res-Appliance class'!$C46*'RES S curve-disconnect'!BD$10+'Res-Appliance class'!$D46*'RES S curve-disconnect'!BD$15+'Res-Appliance class'!$E46*'RES S curve-disconnect'!BD$20","v":7326.2373938211449},{"$f":"'Res-Appliance class'!$B46*'RES S curve-disconnect'!BE$5+'Res-Appliance class'!$C46*'RES S curve-disconnect'!BE$10+'Res-Appliance class'!$D46*'RES S curve-disconnect'!BE$15+'Res-Appliance class'!$E46*'RES S curve-disconnect'!BE$20","v":8258.1534308108567},{"$f":"'Res-Appliance class'!$B46*'RES S curve-disconnect'!BF$5+'Res-Appliance class'!$C46*'RES S curve-disconnect'!BF$10+'Res-Appliance class'!$D46*'RES S curve-disconnect'!BF$15+'Res-Appliance class'!$E46*'RES S curve-disconnect'!BF$20","v":9211.5321165815458},{"$f":"'Res-Appliance class'!$B46*'RES S curve-disconnect'!BG$5+'Res-Appliance class'!$C46*'RES S curve-disconnect'!BG$10+'Res-Appliance class'!$D46*'RES S curve-disconnect'!BG$15+'Res-Appliance class'!$E46*'RES S curve-disconnect'!BG$20","v":10289.985438238386},{"$f":"'Res-Appliance class'!$B46*'RES S curve-disconnect'!BH$5+'Res-Appliance class'!$C46*'RES S curve-disconnect'!BH$10+'Res-Appliance class'!$D46*'RES S curve-disconnect'!BH$15+'Res-Appliance class'!$E46*'RES S curve-disconnect'!BH$20","v":11570.506591508956},{"$f":"'Res-Appliance class'!$B46*'RES S curve-disconnect'!BI$5+'Res-Appliance class'!$C46*'RES S curve-disconnect'!BI$10+'Res-Appliance class'!$D46*'RES S curve-disconnect'!BI$15+'Res-Appliance class'!$E46*'RES S curve-disconnect'!BI$20","v":13425.637930514689},{"$f":"'Res-Appliance class'!$B46*'RES S curve-disconnect'!BJ$5+'Res-Appliance class'!$C46*'RES S curve-disconnect'!BJ$10+'Res-Appliance class'!$D46*'RES S curve-disconnect'!BJ$15+'Res-Appliance class'!$E46*'RES S curve-disconnect'!BJ$20","v":16144.301814924218},{"$f":"'Res-Appliance class'!$B46*'RES S curve-disconnect'!BK$5+'Res-Appliance class'!$C46*'RES S curve-disconnect'!BK$10+'Res-Appliance class'!$D46*'RES S curve-disconnect'!BK$15+'Res-Appliance class'!$E46*'RES S curve-disconnect'!BK$20","v":20159.037689988261},{"$f":"'Res-Appliance class'!$B46*'RES S curve-disconnect'!BL$5+'Res-Appliance class'!$C46*'RES S curve-disconnect'!BL$10+'Res-Appliance class'!$D46*'RES S curve-disconnect'!BL$15+'Res-Appliance class'!$E46*'RES S curve-disconnect'!BL$20","v":-2988.0821068411833},{"$f":"'Res-Appliance class'!$B46*'RES S curve-disconnect'!BM$5+'Res-Appliance class'!$C46*'RES S curve-disconnect'!BM$10+'Res-Appliance class'!$D46*'RES S curve-disconnect'!BM$15+'Res-Appliance class'!$E46*'RES S curve-disconnect'!BM$20","v":-2983.0275153201669},{"$f":"'Res-Appliance class'!$B46*'RES S curve-disconnect'!BN$5+'Res-Appliance class'!$C46*'RES S curve-disconnect'!BN$10+'Res-Appliance class'!$D46*'RES S curve-disconnect'!BN$15+'Res-Appliance class'!$E46*'RES S curve-disconnect'!BN$20","v":-2980.2425999768529},{"$f":"'Res-Appliance class'!$B46*'RES S curve-disconnect'!BO$5+'Res-Appliance class'!$C46*'RES S curve-disconnect'!BO$10+'Res-Appliance class'!$D46*'RES S curve-disconnect'!BO$15+'Res-Appliance class'!$E46*'RES S curve-disconnect'!BO$20","v":-2972.938708405236},{"$f":"'Res-Appliance class'!$B46*'RES S curve-disconnect'!BP$5+'Res-Appliance class'!$C46*'RES S curve-disconnect'!BP$10+'Res-Appliance class'!$D46*'RES S curve-disconnect'!BP$15+'Res-Appliance class'!$E46*'RES S curve-disconnect'!BP$20","v":-2967.9044116668701},{"$f":"'Res-Appliance class'!$B46*'RES S curve-disconnect'!BQ$5+'Res-Appliance class'!$C46*'RES S curve-disconnect'!BQ$10+'Res-Appliance class'!$D46*'RES S curve-disconnect'!BQ$15+'Res-Appliance class'!$E46*'RES S curve-disconnect'!BQ$20","v":-2962.8767989318671},{"$f":"'Res-Appliance class'!$B46*'RES S curve-disconnect'!BR$5+'Res-Appliance class'!$C46*'RES S curve-disconnect'!BR$10+'Res-Appliance class'!$D46*'RES S curve-disconnect'!BR$15+'Res-Appliance class'!$E46*'RES S curve-disconnect'!BR$20","v":-2960.1187006917517},{"$f":"'Res-Appliance class'!$B46*'RES S curve-disconnect'!BS$5+'Res-Appliance class'!$C46*'RES S curve-disconnect'!BS$10+'Res-Appliance class'!$D46*'RES S curve-disconnect'!BS$15+'Res-Appliance class'!$E46*'RES S curve-disconnect'!BS$20","v":-2952.8414655434435},{"$f":"'Res-Appliance class'!$B46*'RES S curve-disconnect'!BT$5+'Res-Appliance class'!$C46*'RES S curve-disconnect'!BT$10+'Res-Appliance class'!$D46*'RES S curve-disconnect'!BT$15+'Res-Appliance class'!$E46*'RES S curve-disconnect'!BT$20","v":-2947.833665545093},{"$f":"'Res-Appliance class'!$B46*'RES S curve-disconnect'!BU$5+'Res-Appliance class'!$C46*'RES S curve-disconnect'!BU$10+'Res-Appliance class'!$D46*'RES S curve-disconnect'!BU$15+'Res-Appliance class'!$E46*'RES S curve-disconnect'!BU$20","v":-2942.8323908571228},{"$f":"'Res-Appliance class'!$B46*'RES S curve-disconnect'!BV$5+'Res-Appliance class'!$C46*'RES S curve-disconnect'!BV$10+'Res-Appliance class'!$D46*'RES S curve-disconnect'!BV$15+'Res-Appliance class'!$E46*'RES S curve-disconnect'!BV$20","v":-2940.1004729551241},{"$f":"'Res-Appliance class'!$B46*'RES S curve-disconnect'!BW$5+'Res-Appliance class'!$C46*'RES S curve-disconnect'!BW$10+'Res-Appliance class'!$D46*'RES S curve-disconnect'!BW$15+'Res-Appliance class'!$E46*'RES S curve-disconnect'!BW$20","v":-2932.8492614138745},{"$f":"'Res-Appliance class'!$B46*'RES S curve-disconnect'!BX$5+'Res-Appliance class'!$C46*'RES S curve-disconnect'!BX$10+'Res-Appliance class'!$D46*'RES S curve-disconnect'!BX$15+'Res-Appliance class'!$E46*'RES S curve-disconnect'!BX$20","v":-2927.8673292632166},{"$f":"'Res-Appliance class'!$B46*'RES S curve-disconnect'!BY$5+'Res-Appliance class'!$C46*'RES S curve-disconnect'!BY$10+'Res-Appliance class'!$D46*'RES S curve-disconnect'!BY$15+'Res-Appliance class'!$E46*'RES S curve-disconnect'!BY$20","v":-2922.8917676291353},{"$f":"'Res-Appliance class'!$B46*'RES S curve-disconnect'!BZ$5+'Res-Appliance class'!$C46*'RES S curve-disconnect'!BZ$10+'Res-Appliance class'!$D46*'RES S curve-disconnect'!BZ$15+'Res-Appliance class'!$E46*'RES S curve-disconnect'!BZ$20","v":-2920.1854089467006},{"$f":"'Res-Appliance class'!$B46*'RES S curve-disconnect'!CA$5+'Res-Appliance class'!$C46*'RES S curve-disconnect'!CA$10+'Res-Appliance class'!$D46*'RES S curve-disconnect'!CA$15+'Res-Appliance class'!$E46*'RES S curve-disconnect'!CA$20","v":-2912.9596037441115},{"$f":"'Res-Appliance class'!$B46*'RES S curve-disconnect'!CB$5+'Res-Appliance class'!$C46*'RES S curve-disconnect'!CB$10+'Res-Appliance class'!$D46*'RES S curve-disconnect'!CB$15+'Res-Appliance class'!$E46*'RES S curve-disconnect'!CB$20","v":-2908.0029259986254},{"$f":"'Res-Appliance class'!$B46*'RES S curve-disconnect'!CC$5+'Res-Appliance class'!$C46*'RES S curve-disconnect'!CC$10+'Res-Appliance class'!$D46*'RES S curve-disconnect'!CC$15+'Res-Appliance class'!$E46*'RES S curve-disconnect'!CC$20","v":-2903.0524677776684},{"$f":"'Res-Appliance class'!$B46*'RES S curve-disconnect'!CD$5+'Res-Appliance class'!$C46*'RES S curve-disconnect'!CD$10+'Res-Appliance class'!$D46*'RES S curve-disconnect'!CD$15+'Res-Appliance class'!$E46*'RES S curve-disconnect'!CD$20","v":-2979.1389298078166}]

{"sheet":"RES S curve-connect","index":17,"n_rows":257,"n_cols":82,"rows_kept":257,"cut":false,"hidden":false,"merged":[]}
["By customer class",2020,{"$f":"B1+1","v":2021},2022,2023,2024,2025,2026,2027,2028,2029,2030,2031,2032,2033,2034,2035,2036,2037,2038,2039,2040,2041,2042,2043,2044,2045,2046,2047,2048,2049,2050,2051,2052,2053,2054,2055,2056,2057,2058,2059,2060,2061,2062,2063,2064,2065,2066,2067,2068,2069,2070,2071,2072,2073,2074,2075,2076,2077,2078,2079,2080,2081,2082,2083,2084,{"$f":"BN1+1","v":2085},2086,2087,2088,2089,2090,2091,2092,2093,2094,2095,2096,2097,2098,2099,2100]
["Cooking"]
["High income",null,{"$f":"'Appliance costs'!B103+'Appliance costs'!B107","v":1146.2774539916959},{"$f":"'Appliance costs'!C103+'Appliance costs'!C107","v":1126.4234158927356},{"$f":"'Appliance costs'!D103+'Appliance costs'!D107","v":983.97942726623319},{"$f":"'Appliance costs'!E103+'Appliance costs'!E107","v":957.25526261992843},{"$f":"'Appliance costs'!F103+'Appliance costs'!F107","v":976.83158704416735},{"$f":"'Appliance costs'!G103+'Appliance costs'!G107","v":971.43831327822579},{"$f":"'Appliance costs'!H103+'Appliance costs'!H107","v":989.08260386378117},{"$f":"'Appliance costs'!I103+'Appliance costs'!I107","v":1008.5572611404409},{"$f":"'Appliance costs'!J103+'Appliance costs'!J107","v":1087.0357715951038},{"$f":"'Appliance costs'!K103+'Appliance costs'!K107","v":1064.6455175306155},{"$f":"'Appliance costs'!L103+'Appliance costs'!L107","v":1035.0157635077005},{"$f":"'Appliance costs'!M103+'Appliance costs'!M107","v":1020.0800184651496},{"$f":"'Appliance costs'!N103+'Appliance costs'!N107","v":1066.1662431302341},{"$f":"'Appliance costs'!O103+'Appliance costs'!O107","v":1096.7597546702004},{"$f":"'Appliance costs'!P103+'Appliance costs'!P107","v":1147.0285079303353},{"$f":"'Appliance costs'!Q103+'Appliance costs'!Q107","v":1170.2061543549712},{"$f":"'Appliance costs'!R103+'Appliance costs'!R107","v":1240.5472164190958},{"$f":"'Appliance costs'!S103+'Appliance costs'!S107","v":1214.1849854097522},{"$f":"'Appliance costs'!T103+'Appliance costs'!T107","v":1222.9964827998322},{"$f":"'Appliance costs'!U103+'Appliance costs'!U107","v":1232.442226937816},{"$f":"'Appliance costs'!V103+'Appliance costs'!V107","v":1244.5018211284871},{"$f":"'Appliance costs'!W103+'Appliance costs'!W107","v":1263.8048725630701},{"$f":"'Appliance costs'!X103+'Appliance costs'!X107","v":1288.8701393210749},{"$f":"'Appliance costs'!Y103+'Appliance costs'!Y107","v":1303.984697122562},{"$f":"'Appliance costs'!Z103+'Appliance costs'!Z107","v":1325.3851692563965},{"$f":"'Appliance costs'!AA103+'Appliance costs'!AA107","v":1349.7254731863418},{"$f":"'Appliance costs'!AB103+'Appliance costs'!AB107","v":1377.2255396147539},{"$f":"'Appliance costs'!AC103+'Appliance costs'!AC107","v":1402.1855529927307},{"$f":"'Appliance costs'!AD103+'Appliance costs'!AD107","v":1437.9786037689369},{"$f":"'Appliance costs'!AE103+'Appliance costs'!AE107","v":1475.1213847978104},{"$f":"'Appliance costs'!AF103+'Appliance costs'!AF107","v":1508.201348043684},{"$f":"'Appliance costs'!AG103+'Appliance costs'!AG107","v":1536.7852887163051},{"$f":"'Appliance costs'!AH103+'Appliance costs'!AH107","v":1579.106777136401},{"$f":"'Appliance costs'!AI103+'Appliance costs'!AI107","v":1613.7430559616955},{"$f":"'Appliance costs'!AJ103+'Appliance costs'!AJ107","v":1651.1691128974517},{"$f":"'Appliance costs'!AK103+'Appliance costs'!AK107","v":1472.8128555550147},{"$f":"'Appliance costs'!AL103+'Appliance costs'!AL107","v":1473.9002591952994},{"$f":"'Appliance costs'!AM103+'Appliance costs'!AM107","v":1522.2412778225071},{"$f":"'Appliance costs'!AN103+'Appliance costs'!AN107","v":1569.3499607483386},{"$f":"'Appliance costs'!AO103+'Appliance costs'!AO107","v":1605.5713875463111},{"$f":"'Appliance costs'!AP103+'Appliance costs'!AP107","v":1651.9933810595339},{"$f":"'Appliance costs'!AQ103+'Appliance costs'!AQ107","v":1698.7722677878853},{"$f":"'Appliance costs'!AR103+'Appliance costs'!AR107","v":1750.270571318566},{"$f":"'Appliance costs'!AS103+'Appliance costs'!AS107","v":1803.0418447056636},{"$f":"'Appliance costs'!AT103+'Appliance costs'!AT107","v":1870.2137817031557},{"$f":"'Appliance costs'!AU103+'Appliance costs'!AU107","v":1940.8374655586049},{"$f":"'Appliance costs'!AV103+'Appliance costs'!AV107","v":2019.2585446287349},{"$f":"'Appliance costs'!AW103+'Appliance costs'!AW107","v":2101.3229914179847},{"$f":"'Appliance costs'!AX103+'Appliance costs'!AX107","v":2199.1237971969344},{"$f":"'Appliance costs'!AY103+'Appliance costs'!AY107","v":2301.25401623876},{"$f":"'Appliance costs'!AZ103+'Appliance costs'!AZ107","v":2412.9587768243937},{"$f":"'Appliance costs'!BA103+'Appliance costs'!BA107","v":2531.7394423599153},{"$f":"'Appliance costs'!BB103+'Appliance costs'!BB107","v":2671.4014659167269},{"$f":"'Appliance costs'!BC103+'Appliance costs'!BC107","v":2775.4820642541613},{"$f":"'Appliance costs'!BD103+'Appliance costs'!BD107","v":2860.3121386044122},{"$f":"'Appliance costs'!BE103+'Appliance costs'!BE107","v":2950.1644183377821},{"$f":"'Appliance costs'!BF103+'Appliance costs'!BF107","v":3063.5147779875397},{"$f":"'Appliance costs'!BG103+'Appliance costs'!BG107","v":3191.3188455292598},{"$f":"'Appliance costs'!BH103+'Appliance costs'!BH107","v":3384.0495493508643},{"$f":"'Appliance costs'!BI103+'Appliance costs'!BI107","v":3631.2868801485297},{"$f":"'Appliance costs'!BJ103+'Appliance costs'!BJ107","v":3944.3611009681254},{"$f":"'Appliance costs'!BK103+'Appliance costs'!BK107","v":844.81142910573692},{"$f":"'Appliance costs'!BL103+'Appliance costs'!BL107","v":844.92320955105845},{"$f":"'Appliance costs'!BM103+'Appliance costs'!BM107","v":841.01278208057931},{"$f":"'Appliance costs'!BN103+'Appliance costs'!BN107","v":845.14677044170151},{"$f":"'Appliance costs'!BO103+'Appliance costs'!BO107","v":845.25855088702303},{"$f":"'Appliance costs'!BP103+'Appliance costs'!BP107","v":845.37033133234456},{"$f":"'Appliance costs'!BQ103+'Appliance costs'!BQ107","v":841.45990386186543},{"$f":"'Appliance costs'!BR103+'Appliance costs'!BR107","v":845.59389222298762},{"$f":"'Appliance costs'!BS103+'Appliance costs'!BS107","v":845.70567266830926},{"$f":"'Appliance costs'!BT103+'Appliance costs'!BT107","v":845.81745311363068},{"$f":"'Appliance costs'!BU103+'Appliance costs'!BU107","v":841.90702564315154},{"$f":"'Appliance costs'!BV103+'Appliance costs'!BV107","v":846.04101400427385},{"$f":"'Appliance costs'!BW103+'Appliance costs'!BW107","v":846.15279444959526},{"$f":"'Appliance costs'!BX103+'Appliance costs'!BX107","v":846.2645748949169},{"$f":"'Appliance costs'!BY103+'Appliance costs'!BY107","v":842.35414742443777},{"$f":"'Appliance costs'!BZ103+'Appliance costs'!BZ107","v":846.48813578555985},{"$f":"'Appliance costs'!CA103+'Appliance costs'!CA107","v":846.59991623088149},{"$f":"'Appliance costs'!CB103+'Appliance costs'!CB107","v":846.71169667620302},{"$f":"'Appliance costs'!CC103+'Appliance costs'!CC107","v":844.46633853399794}]
["Medium income",null,{"$f":"'Appliance costs'!B110+'Appliance costs'!B114","v":799.32713549348603},{"$f":"'Appliance costs'!C110+'Appliance costs'!C114","v":782.83847444765138},{"$f":"'Appliance costs'!D110+'Appliance costs'!D114","v":664.53958558825275},{"$f":"'Appliance costs'!E110+'Appliance costs'!E114","v":642.34532513656768},{"$f":"'Appliance costs'!F110+'Appliance costs'!F114","v":658.60334662044272},{"$f":"'Appliance costs'!G110+'Appliance costs'!G114","v":654.12426470215735},{"$f":"'Appliance costs'!H110+'Appliance costs'!H114","v":668.77774352643121},{"$f":"'Appliance costs'!I110+'Appliance costs'!I114","v":686.88934876598216},{"$f":"'Appliance costs'!J110+'Appliance costs'!J114","v":761.61098952202428},{"$f":"'Appliance costs'!K110+'Appliance costs'!K114","v":744.89661525652309},{"$f":"'Appliance costs'!L110+'Appliance costs'!L114","v":722.1604761594765},{"$f":"'Appliance costs'!M110+'Appliance costs'!M114","v":711.61826850748196},{"$f":"'Appliance costs'!N110+'Appliance costs'!N114","v":751.74513606420135},{"$f":"'Appliance costs'!O110+'Appliance costs'!O114","v":778.99613447905494},{"$f":"'Appliance costs'!P110+'Appliance costs'!P114","v":822.57808826473672},{"$f":"'Appliance costs'!Q110+'Appliance costs'!Q114","v":843.65186802428047},{"$f":"'Appliance costs'!R110+'Appliance costs'!R114","v":903.88546071535995},{"$f":"'Appliance costs'!S110+'Appliance costs'!S114","v":883.79846249558079},{"$f":"'Appliance costs'!T110+'Appliance costs'!T114","v":892.91400398528447},{"$f":"'Appliance costs'!U110+'Appliance costs'!U114","v":902.5472954169943},{"$f":"'Appliance costs'!V110+'Appliance costs'!V114","v":914.34243055128127},{"$f":"'Appliance costs'!W110+'Appliance costs'!W114","v":932.14431545574314},{"$f":"'Appliance costs'!X110+'Appliance costs'!X114","v":954.7228319816395},{"$f":"'Appliance costs'!Y110+'Appliance costs'!Y114","v":969.02853385241463},{"$f":"'Appliance costs'!Z110+'Appliance costs'!Z114","v":988.54588458907017},{"$f":"'Appliance costs'!AA110+'Appliance costs'!AA114","v":1010.4960262928672},{"$f":"'Appliance costs'!AB110+'Appliance costs'!AB114","v":1035.0616537190992},{"$f":"'Appliance costs'!AC110+'Appliance costs'!AC114","v":1057.509147205963},{"$f":"'Appliance costs'!AD110+'Appliance costs'!AD114","v":1088.9448223369668},{"$f":"'Appliance costs'!AE110+'Appliance costs'!AE114","v":1121.4928916560489},{"$f":"'Appliance costs'!AF110+'Appliance costs'!AF114","v":1148.9656051993184},{"$f":"'Appliance costs'!AG110+'Appliance costs'!AG114","v":1172.7043986254166},{"$f":"'Appliance costs'!AH110+'Appliance costs'!AH114","v":1207.8521440883781},{"$f":"'Appliance costs'!AI110+'Appliance costs'!AI114","v":1236.6173685023082},{"$f":"'Appliance costs'!AJ110+'Appliance costs'!AJ114","v":1267.6994871131369},{"$f":"'Appliance costs'!AK110+'Appliance costs'!AK114","v":1119.5756717933127},{"$f":"'Appliance costs'!AL110+'Appliance costs'!AL114","v":1120.4787540758839},{"$f":"'Appliance costs'!AM110+'Appliance costs'!AM114","v":1160.6256837222088},{"$f":"'Appliance costs'!AN110+'Appliance costs'!AN114","v":1199.7491658676586},{"$f":"'Appliance costs'!AO110+'Appliance costs'!AO114","v":1229.8308462840753},{"$f":"'Appliance costs'!AP110+'Appliance costs'!AP114","v":1268.3840369396107},{"$f":"'Appliance costs'!AQ110+'Appliance costs'!AQ114","v":1307.233625296434},{"$f":"'Appliance costs'!AR110+'Appliance costs'!AR114","v":1350.0026613545133},{"$f":"'Appliance costs'!AS110+'Appliance costs'!AS114","v":1393.8288913385541},{"$f":"'Appliance costs'!AT110+'Appliance costs'!AT114","v":1449.614787155981},{"$f":"'Appliance costs'!AU110+'Appliance costs'!AU114","v":1508.2673382942648},{"$f":"'Appliance costs'!AV110+'Appliance costs'!AV114","v":1573.3955799744151},{"$f":"'Appliance costs'!AW110+'Appliance costs'!AW114","v":1641.5496169656487},{"$f":"'Appliance costs'!AX110+'Appliance costs'!AX114","v":1722.7726068914653},{"$f":"'Appliance costs'!AY110+'Appliance costs'!AY114","v":1807.5911488890106},{"$f":"'Appliance costs'!AZ110+'Appliance costs'!AZ114","v":1900.3612909287358},{"$f":"'Appliance costs'!BA110+'Appliance costs'!BA114","v":1999.0079301187989},{"$f":"'Appliance costs'!BB110+'Appliance costs'!BB114","v":2114.9964134653815},{"$f":"'Appliance costs'!BC110+'Appliance costs'!BC114","v":2201.4347339158453},{"$f":"'Appliance costs'!BD110+'Appliance costs'!BD114","v":2271.8856082156944},{"$f":"'Appliance costs'!BE110+'Appliance costs'!BE114","v":2346.5073943397306},{"$f":"'Appliance costs'!BF110+'Appliance costs'!BF114","v":2440.6441966553361},{"$f":"'Appliance costs'!BG110+'Appliance costs'!BG114","v":2546.7847177659896},{"$f":"'Appliance costs'!BH110+'Appliance costs'!BH114","v":2706.846425747},{"$f":"'Appliance costs'!BI110+'Appliance costs'!BI114","v":2912.1755645891963},{"$f":"'Appliance costs'!BJ110+'Appliance costs'!BJ114","v":3172.1818506430909},{"$f":"'Appliance costs'!BK110+'Appliance costs'!BK114","v":598.02420677596547},{"$f":"'Appliance costs'!BL110+'Appliance costs'!BL114","v":598.11703977373008},{"$f":"'Appliance costs'!BM110+'Appliance costs'!BM114","v":594.86945292093606},{"$f":"'Appliance costs'!BN110+'Appliance costs'!BN114","v":598.30270576925932},{"$f":"'Appliance costs'!BO110+'Appliance costs'!BO114","v":598.39553876702394},{"$f":"'Appliance costs'!BP110+'Appliance costs'!BP114","v":598.48837176478855},{"$f":"'Appliance costs'!BQ110+'Appliance costs'!BQ114","v":595.24078491199452},{"$f":"'Appliance costs'!BR110+'Appliance costs'!BR114","v":598.67403776031779},{"$f":"'Appliance costs'!BS110+'Appliance costs'!BS114","v":598.7668707580824},{"$f":"'Appliance costs'!BT110+'Appliance costs'!BT114","v":598.85970375584702},{"$f":"'Appliance costs'!BU110+'Appliance costs'!BU114","v":595.61211690305299},{"$f":"'Appliance costs'!BV110+'Appliance costs'!BV114","v":599.04536975137626},{"$f":"'Appliance costs'!BW110+'Appliance costs'!BW114","v":599.13820274914076},{"$f":"'Appliance costs'!BX110+'Appliance costs'!BX114","v":599.23103574690538},{"$f":"'Appliance costs'!BY110+'Appliance costs'!BY114","v":595.98344889411135},{"$f":"'Appliance costs'!BZ110+'Appliance costs'!BZ114","v":599.41670174243461},{"$f":"'Appliance costs'!CA110+'Appliance costs'!CA114","v":599.50953474019923},{"$f":"'Appliance costs'!CB110+'Appliance costs'!CB114","v":599.60236773796385},{"$f":"'Appliance costs'!CC110+'Appliance costs'!CC114","v":597.73761110010571}]
["Low income",null,{"$f":"'Appliance costs'!B117+'Appliance costs'!B121","v":250.9806667988513},{"$f":"'Appliance costs'!C117+'Appliance costs'!C121","v":239.81090164247735},{"$f":"'Appliance costs'!D117+'Appliance costs'!D121","v":159.67275075524924},{"$f":"'Appliance costs'!E117+'Appliance costs'!E121","v":144.63789277766068},{"$f":"'Appliance costs'!F117+'Appliance costs'!F121","v":155.65141785270282},{"$f":"'Appliance costs'!G117+'Appliance costs'!G121","v":152.61719372714538},{"$f":"'Appliance costs'!H117+'Appliance costs'!H121","v":162.54376791870982},{"$f":"'Appliance costs'!I117+'Appliance costs'!I121","v":178.5011028453506},{"$f":"'Appliance costs'!J117+'Appliance costs'!J121","v":247.28510318791257},{"$f":"'Appliance costs'!K117+'Appliance costs'!K121","v":239.54131773173128},{"$f":"'Appliance costs'!L117+'Appliance costs'!L121","v":227.70036794450482},{"$f":"'Appliance costs'!M117+'Appliance costs'!M121","v":224.10203837746963},{"$f":"'Appliance costs'!N117+'Appliance costs'!N121","v":254.81028819027949},{"$f":"'Appliance costs'!O117+'Appliance costs'!O121","v":276.77852659311043},{"$f":"'Appliance costs'!P117+'Appliance costs'!P121","v":309.79215781734592},{"$f":"'Appliance costs'!Q117+'Appliance costs'!Q121","v":327.54082791450003},{"$f":"'Appliance costs'!R117+'Appliance costs'!R121","v":371.7998131685863},{"$f":"'Appliance costs'!S117+'Appliance costs'!S121","v":361.63066645933202},{"$f":"'Appliance costs'!T117+'Appliance costs'!T121","v":371.22674219116561},{"$f":"'Appliance costs'!U117+'Appliance costs'!U121","v":381.15644752061439},{"$f":"'Appliance costs'!V117+'Appliance costs'!V121","v":392.53361160270515},{"$f":"'Appliance costs'!W117+'Appliance costs'!W121","v":407.96293962560048},{"$f":"'Appliance costs'!X117+'Appliance costs'!X121","v":426.61120840246815},{"$f":"'Appliance costs'!Y117+'Appliance costs'!Y121","v":439.6385333136592},{"$f":"'Appliance costs'!Z117+'Appliance costs'!Z121","v":456.17965686961622},{"$f":"'Appliance costs'!AA117+'Appliance costs'!AA121","v":474.35220579877978},{"$f":"'Appliance costs'!AB117+'Appliance costs'!AB121","v":494.28002435540077},{"$f":"'Appliance costs'!AC117+'Appliance costs'!AC121","v":512.75654177923502},{"$f":"'Appliance costs'!AD117+'Appliance costs'!AD121","v":537.30549157686778},{"$f":"'Appliance costs'!AE117+'Appliance costs'!AE121","v":562.59173173366685},{"$f":"'Appliance costs'!AF117+'Appliance costs'!AF121","v":581.20232465165111},{"$f":"'Appliance costs'!AG117+'Appliance costs'!AG121","v":597.28348169212359},{"$f":"'Appliance costs'!AH117+'Appliance costs'!AH121","v":621.09330236258143},{"$f":"'Appliance costs'!AI117+'Appliance costs'!AI121","v":640.57946927940077},{"$f":"'Appliance costs'!AJ117+'Appliance costs'!AJ121","v":661.63514896621336},{"$f":"'Appliance costs'!AK117+'Appliance costs'!AK121","v":561.29296674842203},{"$f":"'Appliance costs'!AL117+'Appliance costs'!AL121","v":561.9047336459987},{"$f":"'Appliance costs'!AM117+'Appliance costs'!AM121","v":589.10110663543537},{"$f":"'Appliance costs'!AN117+'Appliance costs'!AN121","v":615.60417480146191},{"$f":"'Appliance costs'!AO117+'Appliance costs'!AO121","v":635.98213665212108},{"$f":"'Appliance costs'!AP117+'Appliance costs'!AP121","v":662.0988773901463},{"$f":"'Appliance costs'!AQ117+'Appliance costs'!AQ121","v":688.41640415361474},{"$f":"'Appliance costs'!AR117+'Appliance costs'!AR121","v":717.38904707503104},{"$f":"'Appliance costs'!AS117+'Appliance costs'!AS121","v":747.0778553566854},{"$f":"'Appliance costs'!AT117+'Appliance costs'!AT121","v":784.86839235580783},{"$f":"'Appliance costs'!AU117+'Appliance costs'!AU121","v":824.60086185200976},{"$f":"'Appliance costs'!AV117+'Appliance costs'!AV121","v":868.72010007230267},{"$f":"'Appliance costs'!AW117+'Appliance costs'!AW121","v":914.88907556004904},{"$f":"'Appliance costs'!AX117+'Appliance costs'!AX121","v":969.91123413605328},{"$f":"'Appliance costs'!AY117+'Appliance costs'!AY121","v":1027.3690951706794},{"$f":"'Appliance costs'!AZ117+'Appliance costs'!AZ121","v":1090.2135370102396},{"$f":"'Appliance costs'!BA117+'Appliance costs'!BA121","v":1157.0388413909677},{"$f":"'Appliance costs'!BB117+'Appliance costs'!BB121","v":1235.6118750790247},{"$f":"'Appliance costs'!BC117+'Appliance costs'!BC121","v":1294.1670080433821},{"$f":"'Appliance costs'!BD117+'Appliance costs'!BD121","v":1341.8919093439231},{"$f":"'Appliance costs'!BE117+'Appliance costs'!BE121","v":1392.4422738785377},{"$f":"'Appliance costs'!BF117+'Appliance costs'!BF121","v":1456.2125200807263},{"$f":"'Appliance costs'!BG117+'Appliance costs'!BG121","v":1528.1143374014628},{"$f":"'Appliance costs'!BH117+'Appliance costs'!BH121","v":1636.5434987327665},{"$f":"'Appliance costs'!BI117+'Appliance costs'!BI121","v":1775.6377680765588},{"$f":"'Appliance costs'!BJ117+'Appliance costs'!BJ121","v":1951.7714848368191},{"$f":"'Appliance costs'!BK117+'Appliance costs'!BK121","v":207.98305486335789},{"$f":"'Appliance costs'!BL117+'Appliance costs'!BL121","v":208.04594188498504},{"$f":"'Appliance costs'!BM117+'Appliance costs'!BM121","v":205.84595837087193},{"$f":"'Appliance costs'!BN117+'Appliance costs'!BN121","v":208.17171592823945},{"$f":"'Appliance costs'!BO117+'Appliance costs'!BO121","v":208.2346029498666},{"$f":"'Appliance costs'!BP117+'Appliance costs'!BP121","v":208.29748997149386},{"$f":"'Appliance costs'!BQ117+'Appliance costs'!BQ121","v":206.09750645738075},{"$f":"'Appliance costs'!BR117+'Appliance costs'!BR121","v":208.42326401474816},{"$f":"'Appliance costs'!BS117+'Appliance costs'!BS121","v":208.48615103637542},{"$f":"'Appliance costs'!BT117+'Appliance costs'!BT121","v":208.54903805800257},{"$f":"'Appliance costs'!BU117+'Appliance costs'!BU121","v":206.34905454388945},{"$f":"'Appliance costs'!BV117+'Appliance costs'!BV121","v":208.67481210125698},{"$f":"'Appliance costs'!BW117+'Appliance costs'!BW121","v":208.73769912288412},{"$f":"'Appliance costs'!BX117+'Appliance costs'!BX121","v":208.80058614451139},{"$f":"'Appliance costs'!BY117+'Appliance costs'!BY121","v":206.60060263039827},{"$f":"'Appliance costs'!BZ117+'Appliance costs'!BZ121","v":208.92636018776568},{"$f":"'Appliance costs'!CA117+'Appliance costs'!CA121","v":208.98924720939294},{"$f":"'Appliance costs'!CB117+'Appliance costs'!CB121","v":209.05213423102009},{"$f":"'Appliance costs'!CC117+'Appliance costs'!CC121","v":207.78890893572384}]
[]
["Cooking plus hot water"]
["High income",null,{"$f":"'Appliance costs'!B104+'Appliance costs'!B103+'Appliance costs'!B107","v":-2610.5244178362923},{"$f":"'Appliance costs'!C104+'Appliance costs'!C103+'Appliance costs'!C107","v":-2947.1283127579331},{"$f":"'Appliance costs'!D104+'Appliance costs'!D103+'Appliance costs'!D107","v":-2783.0024747526504},{"$f":"'Appliance costs'!E104+'Appliance costs'!E103+'Appliance costs'!E107","v":-2702.813081342103},{"$f":"'Appliance costs'!F104+'Appliance costs'!F103+'Appliance costs'!F107","v":-2809.2120758874134},{"$f":"'Appliance costs'!G104+'Appliance costs'!G103+'Appliance costs'!G107","v":-2803.90825385687},{"$f":"'Appliance costs'!H104+'Appliance costs'!H103+'Appliance costs'!H107","v":-2603.5896476553812},{"$f":"'Appliance costs'!I104+'Appliance costs'!I103+'Appliance costs'!I107","v":-3101.9763916773691},{"$f":"'Appliance costs'!J104+'Appliance costs'!J103+'Appliance costs'!J107","v":-2713.5362115688527},{"$f":"'Appliance costs'!K104+'Appliance costs'!K103+'Appliance costs'!K107","v":-2933.2346512393697},{"$f":"'Appliance costs'!L104+'Appliance costs'!L103+'Appliance costs'!L107","v":-3144.1686612047429},{"$f":"'Appliance costs'!M104+'Appliance costs'!M103+'Appliance costs'!M107","v":-3160.9939567999299},{"$f":"'Appliance costs'!N104+'Appliance costs'!N103+'Appliance costs'!N107","v":-2868.5157783571872},{"$f":"'Appliance costs'!O104+'Appliance costs'!O103+'Appliance costs'!O107","v":-2653.575936149582},{"$f":"'Appliance costs'!P104+'Appliance costs'!P103+'Appliance costs'!P107","v":-2331.9716346788332},{"$f":"'Appliance costs'!Q104+'Appliance costs'!Q103+'Appliance costs'!Q107","v":-2149.3876675647862},{"$f":"'Appliance costs'!R104+'Appliance costs'!R103+'Appliance costs'!R107","v":-1847.1705919453036},{"$f":"'Appliance costs'!S104+'Appliance costs'!S103+'Appliance costs'!S107","v":-1711.4868224367897},{"$f":"'Appliance costs'!T104+'Appliance costs'!T103+'Appliance costs'!T107","v":-1531.1398652517078},{"$f":"'Appliance costs'!U104+'Appliance costs'!U103+'Appliance costs'!U107","v":-1391.6426660400698},{"$f":"'Appliance costs'!V104+'Appliance costs'!V103+'Appliance costs'!V107","v":-1287.5291725397453},{"$f":"'Appliance costs'!W104+'Appliance costs'!W103+'Appliance costs'!W107","v":-1084.2345898080689},{"$f":"'Appliance costs'!X104+'Appliance costs'!X103+'Appliance costs'!X107","v":-874.4677648691129},{"$f":"'Appliance costs'!Y104+'Appliance costs'!Y103+'Appliance costs'!Y107","v":-726.07485784952542},{"$f":"'Appliance costs'!Z104+'Appliance costs'!Z103+'Appliance costs'!Z107","v":-572.96518135885617},{"$f":"'Appliance costs'!AA104+'Appliance costs'!AA103+'Appliance costs'!AA107","v":-453.15845139505154},{"$f":"'Appliance costs'!AB104+'Appliance costs'!AB103+'Appliance costs'!AB107","v":-334.73472800744548},{"$f":"'Appliance costs'!AC104+'Appliance costs'!AC103+'Appliance costs'!AC107","v":-225.62818111466959},{"$f":"'Appliance costs'!AD104+'Appliance costs'!AD103+'Appliance costs'!AD107","v":-104.9571670686621},{"$f":"'Appliance costs'!AE104+'Appliance costs'!AE103+'Appliance costs'!AE107","v":41.469348355459942},{"$f":"'Appliance costs'!AF104+'Appliance costs'!AF103+'Appliance costs'!AF107","v":141.83118562408845},{"$f":"'Appliance costs'!AG104+'Appliance costs'!AG103+'Appliance costs'!AG107","v":270.00367835694783},{"$f":"'Appliance costs'!AH104+'Appliance costs'!AH103+'Appliance costs'!AH107","v":396.90182158548032},{"$f":"'Appliance costs'!AI104+'Appliance costs'!AI103+'Appliance costs'!AI107","v":509.07592194058179},{"$f":"'Appliance costs'!AJ104+'Appliance costs'!AJ103+'Appliance costs'!AJ107","v":628.5274851624431},{"$f":"'Appliance costs'!AK104+'Appliance costs'!AK103+'Appliance costs'!AK107","v":187.07755001659825},{"$f":"'Appliance costs'!AL104+'Appliance costs'!AL103+'Appliance costs'!AL107","v":147.39521151835856},{"$f":"'Appliance costs'!AM104+'Appliance costs'!AM103+'Appliance costs'!AM107","v":269.46880193418701},{"$f":"'Appliance costs'!AN104+'Appliance costs'!AN103+'Appliance costs'!AN107","v":410.15054790211116},{"$f":"'Appliance costs'!AO104+'Appliance costs'!AO103+'Appliance costs'!AO107","v":535.1527150525576},{"$f":"'Appliance costs'!AP104+'Appliance costs'!AP103+'Appliance costs'!AP107","v":674.76668207152306},{"$f":"'Appliance costs'!AQ104+'Appliance costs'!AQ103+'Appliance costs'!AQ107","v":825.02712620625766},{"$f":"'Appliance costs'!AR104+'Appliance costs'!AR103+'Appliance costs'!AR107","v":992.78916176700523},{"$f":"'Appliance costs'!AS104+'Appliance costs'!AS103+'Appliance costs'!AS107","v":1176.941885281552},{"$f":"'Appliance costs'!AT104+'Appliance costs'!AT103+'Appliance costs'!AT107","v":1394.0169569447698},{"$f":"'Appliance costs'!AU104+'Appliance costs'!AU103+'Appliance costs'!AU107","v":1637.2985268343964},{"$f":"'Appliance costs'!AV104+'Appliance costs'!AV103+'Appliance costs'!AV107","v":1914.8328093037599},{"$f":"'Appliance costs'!AW104+'Appliance costs'!AW103+'Appliance costs'!AW107","v":2225.9061132978932},{"$f":"'Appliance costs'!AX104+'Appliance costs'!AX103+'Appliance costs'!AX107","v":2586.795781628266},{"$f":"'Appliance costs'!AY104+'Appliance costs'!AY103+'Appliance costs'!AY107","v":2992.4903199415003},{"$f":"'Appliance costs'!AZ104+'Appliance costs'!AZ103+'Appliance costs'!AZ107","v":3457.5884942953353},{"$f":"'Appliance costs'!BA104+'Appliance costs'!BA103+'Appliance costs'!BA107","v":3992.6698249146575},{"$f":"'Appliance costs'!BB104+'Appliance costs'!BB103+'Appliance costs'!BB107","v":4629.1542382082571},{"$f":"'Appliance costs'!BC104+'Appliance costs'!BC103+'Appliance costs'!BC107","v":5222.0552215973858},{"$f":"'Appliance costs'!BD104+'Appliance costs'!BD103+'Appliance costs'!BD107","v":5756.9582264931123},{"$f":"'Appliance costs'!BE104+'Appliance costs'!BE103+'Appliance costs'!BE107","v":6306.3370030385386},{"$f":"'Appliance costs'!BF104+'Appliance costs'!BF103+'Appliance costs'!BF107","v":6935.9919031332875},{"$f":"'Appliance costs'!BG104+'Appliance costs'!BG103+'Appliance costs'!BG107","v":7678.5495080164828},{"$f":"'Appliance costs'!BH104+'Appliance costs'!BH103+'Appliance costs'!BH107","v":8759.1981337964462},{"$f":"'Appliance costs'!BI104+'Appliance costs'!BI103+'Appliance costs'!BI107","v":10317.173209332126},{"$f":"'Appliance costs'!BJ104+'Appliance costs'!BJ103+'Appliance costs'!BJ107","v":12580.159310663214},{"$f":"'Appliance costs'!BK104+'Appliance costs'!BK103+'Appliance costs'!BK107","v":-1384.2376450083009},{"$f":"'Appliance costs'!BL104+'Appliance costs'!BL103+'Appliance costs'!BL107","v":-1380.4657167481703},{"$f":"'Appliance costs'!BM104+'Appliance costs'!BM103+'Appliance costs'!BM107","v":-1380.7271404049282},{"$f":"'Appliance costs'!BN104+'Appliance costs'!BN103+'Appliance costs'!BN107","v":-1372.9552209095675},{"$f":"'Appliance costs'!BO104+'Appliance costs'!BO103+'Appliance costs'!BO107","v":-1369.2165111443403},{"$f":"'Appliance costs'!BP104+'Appliance costs'!BP103+'Appliance costs'!BP107","v":-1365.4887327818344},{"$f":"'Appliance costs'!BQ104+'Appliance costs'!BQ103+'Appliance costs'!BQ107","v":-1365.7940237768732},{"$f":"'Appliance costs'!BR104+'Appliance costs'!BR103+'Appliance costs'!BR107","v":-1358.0656908688281},{"$f":"'Appliance costs'!BS104+'Appliance costs'!BS103+'Appliance costs'!BS107","v":-1354.3702887367574},{"$f":"'Appliance costs'!BT104+'Appliance costs'!BT103+'Appliance costs'!BT107","v":-1350.6855408385557},{"$f":"'Appliance costs'!BU104+'Appliance costs'!BU103+'Appliance costs'!BU107","v":-1351.0335869029275},{"$f":"'Appliance costs'!BV104+'Appliance costs'!BV103+'Appliance costs'!BV107","v":-1343.3477354317713},{"$f":"'Appliance costs'!BW104+'Appliance costs'!BW103+'Appliance costs'!BW107","v":-1339.6945428553938},{"$f":"'Appliance costs'!BX104+'Appliance costs'!BX103+'Appliance costs'!BX107","v":-1336.0517343717286},{"$f":"'Appliance costs'!BY104+'Appliance costs'!BY103+'Appliance costs'!BY107","v":-1336.4414514383836},{"$f":"'Appliance costs'!BZ104+'Appliance costs'!BZ103+'Appliance costs'!BZ107","v":-1328.797004275096},{"$f":"'Appliance costs'!CA104+'Appliance costs'!CA103+'Appliance costs'!CA107","v":-1325.184951019017},{"$f":"'Appliance costs'!CB104+'Appliance costs'!CB103+'Appliance costs'!CB107","v":-1321.5830185640004},{"$f":"'Appliance costs'!CC104+'Appliance costs'!CC103+'Appliance costs'!CC107","v":-1360.8124931436539}]
["Medium income",null,{"$f":"'Appliance costs'!B111+'Appliance costs'!B110+'Appliance costs'!B114","v":-2726.1704033290371},{"$f":"'Appliance costs'!C111+'Appliance costs'!C110+'Appliance costs'!C114","v":-3005.7179443585574},{"$f":"'Appliance costs'!D111+'Appliance costs'!D110+'Appliance costs'!D114","v":-2782.5318742357676},{"$f":"'Appliance costs'!E111+'Appliance costs'!E110+'Appliance costs'!E114","v":-2715.9350579696165},{"$f":"'Appliance costs'!F111+'Appliance costs'!F110+'Appliance costs'!F114","v":-2804.2987927388745},{"$f":"'Appliance costs'!G111+'Appliance costs'!G110+'Appliance costs'!G114","v":-2799.8939999570148},{"$f":"'Appliance costs'!H111+'Appliance costs'!H110+'Appliance costs'!H114","v":-2633.5305839926118},{"$f":"'Appliance costs'!I111+'Appliance costs'!I110+'Appliance costs'!I114","v":-3128.4628687970071},{"$f":"'Appliance costs'!J111+'Appliance costs'!J110+'Appliance costs'!J114","v":-2777.0244050550414},{"$f":"'Appliance costs'!K111+'Appliance costs'!K110+'Appliance costs'!K114","v":-2953.8006534031092},{"$f":"'Appliance costs'!L111+'Appliance costs'!L110+'Appliance costs'!L114","v":-3123.3265048153498},{"$f":"'Appliance costs'!M111+'Appliance costs'!M110+'Appliance costs'!M114","v":-3131.6744866204463},{"$f":"'Appliance costs'!N111+'Appliance costs'!N110+'Appliance costs'!N114","v":-2883.1758918723649},{"$f":"'Appliance costs'!O111+'Appliance costs'!O110+'Appliance costs'!O114","v":-2699.1004121079422},{"$f":"'Appliance costs'!P111+'Appliance costs'!P110+'Appliance costs'!P114","v":-2426.4685767679384},{"$f":"'Appliance costs'!Q111+'Appliance costs'!Q110+'Appliance costs'!Q114","v":-2269.3200125336934},{"$f":"'Appliance costs'!R111+'Appliance costs'!R110+'Appliance costs'!R114","v":-2012.8444285768346},{"$f":"'Appliance costs'!S111+'Appliance costs'!S110+'Appliance costs'!S114","v":-1894.701199432762},{"$f":"'Appliance costs'!T111+'Appliance costs'!T110+'Appliance costs'!T114","v":-1739.4927507742061},{"$f":"'Appliance costs'!U111+'Appliance costs'!U110+'Appliance costs'!U114","v":-1618.2369410042686},{"$f":"'Appliance costs'!V111+'Appliance costs'!V110+'Appliance costs'!V114","v":-1526.3941103104244},{"$f":"'Appliance costs'!W111+'Appliance costs'!W110+'Appliance costs'!W114","v":-1352.2088584139806},{"$f":"'Appliance costs'!X111+'Appliance costs'!X110+'Appliance costs'!X114","v":-1172.6751992246966},{"$f":"'Appliance costs'!Y111+'Appliance costs'!Y110+'Appliance costs'!Y114","v":-1044.1388331177168},{"$f":"'Appliance costs'!Z111+'Appliance costs'!Z110+'Appliance costs'!Z114","v":-911.71170258118923},{"$f":"'Appliance costs'!AA111+'Appliance costs'!AA110+'Appliance costs'!AA114","v":-806.9688241374588},{"$f":"'Appliance costs'!AB111+'Appliance costs'!AB110+'Appliance costs'!AB114","v":-703.40074495783801},{"$f":"'Appliance costs'!AC111+'Appliance costs'!AC110+'Appliance costs'!AC114","v":-607.596615063238},{"$f":"'Appliance costs'!AD111+'Appliance costs'!AD110+'Appliance costs'!AD114","v":-502.21422263883869},{"$f":"'Appliance costs'!AE111+'Appliance costs'!AE110+'Appliance costs'!AE114","v":-375.46786801956432},{"$f":"'Appliance costs'!AF111+'Appliance costs'!AF110+'Appliance costs'!AF114","v":-292.11795661054316},{"$f":"'Appliance costs'!AG111+'Appliance costs'!AG110+'Appliance costs'!AG114","v":-185.67146056082879},{"$f":"'Appliance costs'!AH111+'Appliance costs'!AH110+'Appliance costs'!AH114","v":-80.283304226493101},{"$f":"'Appliance costs'!AI111+'Appliance costs'!AI110+'Appliance costs'!AI114","v":12.876621711877988},{"$f":"'Appliance costs'!AJ111+'Appliance costs'!AJ110+'Appliance costs'!AJ114","v":112.0804374567233},{"$f":"'Appliance costs'!AK111+'Appliance costs'!AK110+'Appliance costs'!AK114","v":-254.54111897651592},{"$f":"'Appliance costs'!AL111+'Appliance costs'!AL110+'Appliance costs'!AL114","v":-287.49706606104473},{"$f":"'Appliance costs'!AM111+'Appliance costs'!AM110+'Appliance costs'!AM114","v":-186.11567226186162},{"$f":"'Appliance costs'!AN111+'Appliance costs'!AN110+'Appliance costs'!AN114","v":-69.280315492659611},{"$f":"'Appliance costs'!AO111+'Appliance costs'!AO110+'Appliance costs'!AO114","v":34.533243938680471},{"$f":"'Appliance costs'!AP111+'Appliance costs'!AP110+'Appliance costs'!AP114","v":150.48181661522085},{"$f":"'Appliance costs'!AQ111+'Appliance costs'!AQ110+'Appliance costs'!AQ114","v":275.27222547738597},{"$f":"'Appliance costs'!AR111+'Appliance costs'!AR110+'Appliance costs'!AR114","v":414.59760235703038},{"$f":"'Appliance costs'!AS111+'Appliance costs'!AS110+'Appliance costs'!AS114","v":567.53534850035658},{"$f":"'Appliance costs'!AT111+'Appliance costs'!AT110+'Appliance costs'!AT114","v":747.81490978227862},{"$f":"'Appliance costs'!AU111+'Appliance costs'!AU110+'Appliance costs'!AU114","v":949.85881262029716},{"$f":"'Appliance costs'!AV111+'Appliance costs'!AV110+'Appliance costs'!AV114","v":1180.3493903771707},{"$f":"'Appliance costs'!AW111+'Appliance costs'!AW110+'Appliance costs'!AW114","v":1438.6939268589376},{"$f":"'Appliance costs'!AX111+'Appliance costs'!AX110+'Appliance costs'!AX114","v":1738.4106588599161},{"$f":"'Appliance costs'!AY111+'Appliance costs'!AY110+'Appliance costs'!AY114","v":2075.3375700026777},{"$f":"'Appliance costs'!AZ111+'Appliance costs'!AZ110+'Appliance costs'!AZ114","v":2461.5988490297705},{"$f":"'Appliance costs'!BA111+'Appliance costs'!BA110+'Appliance costs'!BA114","v":2905.9807248255238},{"$f":"'Appliance costs'!BB111+'Appliance costs'!BB110+'Appliance costs'!BB114","v":3434.5772601723979},{"$f":"'Appliance costs'!BC111+'Appliance costs'!BC110+'Appliance costs'!BC114","v":3926.9780151280106},{"$f":"'Appliance costs'!BD111+'Appliance costs'!BD110+'Appliance costs'!BD114","v":4371.2117924665408},{"$f":"'Appliance costs'!BE111+'Appliance costs'!BE110+'Appliance costs'!BE114","v":4827.467612420236},{"$f":"'Appliance costs'!BF111+'Appliance costs'!BF110+'Appliance costs'!BF114","v":5350.3922775066312},{"$f":"'Appliance costs'!BG111+'Appliance costs'!BG110+'Appliance costs'!BG114","v":5967.0819701977725},{"$f":"'Appliance costs'!BH111+'Appliance costs'!BH110+'Appliance costs'!BH114","v":6864.554253232538},{"$f":"'Appliance costs'!BI111+'Appliance costs'!BI110+'Appliance costs'!BI114","v":8158.4433255876547},{"$f":"'Appliance costs'!BJ111+'Appliance costs'!BJ110+'Appliance costs'!BJ114","v":10037.839879089672},{"$f":"'Appliance costs'!BK111+'Appliance costs'!BK110+'Appliance costs'!BK114","v":-1559.5090815539795},{"$f":"'Appliance costs'!BL111+'Appliance costs'!BL110+'Appliance costs'!BL114","v":-1556.3765174750495},{"$f":"'Appliance costs'!BM111+'Appliance costs'!BM110+'Appliance costs'!BM114","v":-1556.5936282735772},{"$f":"'Appliance costs'!BN111+'Appliance costs'!BN110+'Appliance costs'!BN114","v":-1550.1390951657129},{"$f":"'Appliance costs'!BO111+'Appliance costs'!BO110+'Appliance costs'!BO114","v":-1547.0341188500486},{"$f":"'Appliance costs'!BP111+'Appliance costs'!BP110+'Appliance costs'!BP114","v":-1543.9382209995963},{"$f":"'Appliance costs'!BQ111+'Appliance costs'!BQ110+'Appliance costs'!BQ114","v":-1544.1917633627397},{"$f":"'Appliance costs'!BR111+'Appliance costs'!BR110+'Appliance costs'!BR114","v":-1537.7734286574785},{"$f":"'Appliance costs'!BS111+'Appliance costs'!BS110+'Appliance costs'!BS114","v":-1534.704419074639},{"$f":"'Appliance costs'!BT111+'Appliance costs'!BT110+'Appliance costs'!BT114","v":-1531.6442577699224},{"$f":"'Appliance costs'!BU111+'Appliance costs'!BU110+'Appliance costs'!BU114","v":-1531.9333079649093},{"$f":"'Appliance costs'!BV111+'Appliance costs'!BV110+'Appliance costs'!BV114","v":-1525.5502538413664},{"$f":"'Appliance costs'!BW111+'Appliance costs'!BW110+'Appliance costs'!BW114","v":-1522.5162990445235},{"$f":"'Appliance costs'!BX111+'Appliance costs'!BX110+'Appliance costs'!BX114","v":-1519.4909681751731},{"$f":"'Appliance costs'!BY111+'Appliance costs'!BY110+'Appliance costs'!BY114","v":-1519.8146258907384},{"$f":"'Appliance costs'!BZ111+'Appliance costs'!BZ110+'Appliance costs'!BZ114","v":-1513.4659577996438},{"$f":"'Appliance costs'!CA111+'Appliance costs'!CA110+'Appliance costs'!CA114","v":-1510.4661689646407},{"$f":"'Appliance costs'!CB111+'Appliance costs'!CB110+'Appliance costs'!CB114","v":-1507.4747853949741},{"$f":"'Appliance costs'!CC111+'Appliance costs'!CC110+'Appliance costs'!CC114","v":-1540.0546316774273}]
["Low income",null,{"$f":"'Appliance costs'!B118+'Appliance costs'!B117+'Appliance costs'!B121","v":-2908.9460469374599},{"$f":"'Appliance costs'!C118+'Appliance costs'!C117+'Appliance costs'!C121","v":-3098.3174200684725},{"$f":"'Appliance costs'!D118+'Appliance costs'!D117+'Appliance costs'!D121","v":-2781.7881016613092},{"$f":"'Appliance costs'!E118+'Appliance costs'!E117+'Appliance costs'!E121","v":-2736.6740201851176},{"$f":"'Appliance costs'!F118+'Appliance costs'!F117+'Appliance costs'!F121","v":-2796.5334692312881},{"$f":"'Appliance costs'!G118+'Appliance costs'!G117+'Appliance costs'!G121","v":-2793.5495701263767},{"$f":"'Appliance costs'!H118+'Appliance costs'!H117+'Appliance costs'!H121","v":-2680.8514995086925},{"$f":"'Appliance costs'!I118+'Appliance costs'!I117+'Appliance costs'!I121","v":-3170.3240962476157},{"$f":"'Appliance costs'!J118+'Appliance costs'!J117+'Appliance costs'!J121","v":-2877.3659376774813},{"$f":"'Appliance costs'!K118+'Appliance costs'!K117+'Appliance costs'!K121","v":-2986.3047153981161},{"$f":"'Appliance costs'!L118+'Appliance costs'!L117+'Appliance costs'!L121","v":-3090.3859878399676},{"$f":"'Appliance costs'!M118+'Appliance costs'!M117+'Appliance costs'!M121","v":-3085.3357831239114},{"$f":"'Appliance costs'!N118+'Appliance costs'!N117+'Appliance costs'!N121","v":-2906.3458417127526},{"$f":"'Appliance costs'!O118+'Appliance costs'!O117+'Appliance costs'!O121","v":-2771.0507297758845},{"$f":"'Appliance costs'!P118+'Appliance costs'!P117+'Appliance costs'!P121","v":-2575.8186760020162},{"$f":"'Appliance costs'!Q118+'Appliance costs'!Q117+'Appliance costs'!Q121","v":-2458.8701421621413},{"$f":"'Appliance costs'!R118+'Appliance costs'!R117+'Appliance costs'!R121","v":-2274.6878638710468},{"$f":"'Appliance costs'!S118+'Appliance costs'!S117+'Appliance costs'!S121","v":-2184.2670285540494},{"$f":"'Appliance costs'!T118+'Appliance costs'!T117+'Appliance costs'!T121","v":-2068.7893760464749},{"$f":"'Appliance costs'!U118+'Appliance costs'!U117+'Appliance costs'!U121","v":-1976.3636348804137},{"$f":"'Appliance costs'!V118+'Appliance costs'!V117+'Appliance costs'!V121","v":-1903.9142857882027},{"$f":"'Appliance costs'!W118+'Appliance costs'!W117+'Appliance costs'!W121","v":-1775.7356173088203},{"$f":"'Appliance costs'!X118+'Appliance costs'!X117+'Appliance costs'!X121","v":-1643.984735054436},{"$f":"'Appliance costs'!Y118+'Appliance costs'!Y117+'Appliance costs'!Y121","v":-1546.831144836088},{"$f":"'Appliance costs'!Z118+'Appliance costs'!Z117+'Appliance costs'!Z121","v":-1447.092270896813},{"$f":"'Appliance costs'!AA118+'Appliance costs'!AA117+'Appliance costs'!AA121","v":-1366.1574403076795},{"$f":"'Appliance costs'!AB118+'Appliance costs'!AB117+'Appliance costs'!AB121","v":-1286.0683424326248},{"$f":"'Appliance costs'!AC118+'Appliance costs'!AC117+'Appliance costs'!AC121","v":-1211.2883563336759},{"$f":"'Appliance costs'!AD118+'Appliance costs'!AD117+'Appliance costs'!AD121","v":-1130.0692553963843},{"$f":"'Appliance costs'!AE118+'Appliance costs'!AE117+'Appliance costs'!AE121","v":-1034.4269122315227},{"$f":"'Appliance costs'!AF118+'Appliance costs'!AF117+'Appliance costs'!AF121","v":-977.96393239008012},{"$f":"'Appliance costs'!AG118+'Appliance costs'!AG117+'Appliance costs'!AG121","v":-905.85484122196772},{"$f":"'Appliance costs'!AH118+'Appliance costs'!AH117+'Appliance costs'!AH121","v":-834.46269159589974},{"$f":"'Appliance costs'!AI118+'Appliance costs'!AI117+'Appliance costs'!AI121","v":-771.35420196025052},{"$f":"'Appliance costs'!AJ118+'Appliance costs'!AJ117+'Appliance costs'!AJ121","v":-704.15145448391513},{"$f":"'Appliance costs'!AK118+'Appliance costs'!AK117+'Appliance costs'!AK121","v":-952.50859368643773},{"$f":"'Appliance costs'!AL118+'Appliance costs'!AL117+'Appliance costs'!AL121","v":-974.83364412060041},{"$f":"'Appliance costs'!AM118+'Appliance costs'!AM117+'Appliance costs'!AM121","v":-906.15575955405438},{"$f":"'Appliance costs'!AN118+'Appliance costs'!AN117+'Appliance costs'!AN121","v":-827.00903603020424},{"$f":"'Appliance costs'!AO118+'Appliance costs'!AO117+'Appliance costs'!AO121","v":-756.683551403406},{"$f":"'Appliance costs'!AP118+'Appliance costs'!AP117+'Appliance costs'!AP121","v":-678.13755404112271},{"$f":"'Appliance costs'!AQ118+'Appliance costs'!AQ117+'Appliance costs'!AQ121","v":-593.60191122066567},{"$f":"'Appliance costs'!AR118+'Appliance costs'!AR117+'Appliance costs'!AR121","v":-499.21997591718923},{"$f":"'Appliance costs'!AS118+'Appliance costs'!AS117+'Appliance costs'!AS121","v":-395.61673589560928},{"$f":"'Appliance costs'!AT118+'Appliance costs'!AT117+'Appliance costs'!AT121","v":-273.49157628345984},{"$f":"'Appliance costs'!AU118+'Appliance costs'!AU117+'Appliance costs'!AU121","v":-136.6227947793368},{"$f":"'Appliance costs'!AV118+'Appliance costs'!AV117+'Appliance costs'!AV121","v":19.516361525995762},{"$f":"'Appliance costs'!AW118+'Appliance costs'!AW117+'Appliance costs'!AW121","v":194.52437423922788},{"$f":"'Appliance costs'!AX118+'Appliance costs'!AX117+'Appliance costs'!AX121","v":397.55878076749445},{"$f":"'Appliance costs'!AY118+'Appliance costs'!AY117+'Appliance costs'!AY121","v":625.80014383910759},{"$f":"'Appliance costs'!AZ118+'Appliance costs'!AZ117+'Appliance costs'!AZ121","v":887.46164344420436},{"$f":"'Appliance costs'!BA118+'Appliance costs'!BA117+'Appliance costs'!BA121","v":1188.495255487639},{"$f":"'Appliance costs'!BB118+'Appliance costs'!BB117+'Appliance costs'!BB121","v":1546.5776459185486},{"$f":"'Appliance costs'!BC118+'Appliance costs'!BC117+'Appliance costs'!BC121","v":1880.140254816062},{"$f":"'Appliance costs'!BD118+'Appliance costs'!BD117+'Appliance costs'!BD121","v":2181.0735418553863},{"$f":"'Appliance costs'!BE118+'Appliance costs'!BE117+'Appliance costs'!BE121","v":2490.150812953696},{"$f":"'Appliance costs'!BF118+'Appliance costs'!BF117+'Appliance costs'!BF121","v":2844.3909593945777},{"$f":"'Appliance costs'!BG118+'Appliance costs'!BG117+'Appliance costs'!BG121","v":3262.1495040434502},{"$f":"'Appliance costs'!BH118+'Appliance costs'!BH117+'Appliance costs'!BH121","v":3870.1160701574081},{"$f":"'Appliance costs'!BI118+'Appliance costs'!BI117+'Appliance costs'!BI121","v":4746.6236917544993},{"$f":"'Appliance costs'!BJ118+'Appliance costs'!BJ117+'Appliance costs'!BJ121","v":6019.7663732592009},{"$f":"'Appliance costs'!BK118+'Appliance costs'!BK117+'Appliance costs'!BK121","v":-1836.5212881110235},{"$f":"'Appliance costs'!BL118+'Appliance costs'!BL117+'Appliance costs'!BL121","v":-1834.3992234387213},{"$f":"'Appliance costs'!BM118+'Appliance costs'!BM117+'Appliance costs'!BM121","v":-1834.5462988516806},{"$f":"'Appliance costs'!BN118+'Appliance costs'!BN117+'Appliance costs'!BN121","v":-1830.1738626175636},{"$f":"'Appliance costs'!BO118+'Appliance costs'!BO117+'Appliance costs'!BO121","v":-1828.0704864752759},{"$f":"'Appliance costs'!BP118+'Appliance costs'!BP117+'Appliance costs'!BP121","v":-1825.973260275917},{"$f":"'Appliance costs'!BQ118+'Appliance costs'!BQ117+'Appliance costs'!BQ121","v":-1826.1450151955937},{"$f":"'Appliance costs'!BR118+'Appliance costs'!BR117+'Appliance costs'!BR121","v":-1821.797100519351},{"$f":"'Appliance costs'!BS118+'Appliance costs'!BS117+'Appliance costs'!BS121","v":-1819.718088996967},{"$f":"'Appliance costs'!BT118+'Appliance costs'!BT117+'Appliance costs'!BT121","v":-1817.645071483945},{"$f":"'Appliance costs'!BU118+'Appliance costs'!BU117+'Appliance costs'!BU121","v":-1817.8408801543655},{"$f":"'Appliance costs'!BV118+'Appliance costs'!BV117+'Appliance costs'!BV121","v":-1813.5168652848622},{"$f":"'Appliance costs'!BW118+'Appliance costs'!BW117+'Appliance costs'!BW121","v":-1811.4616006104541},{"$f":"'Appliance costs'!BX118+'Appliance costs'!BX117+'Appliance costs'!BX121","v":-1809.4121779655804},{"$f":"'Appliance costs'!BY118+'Appliance costs'!BY117+'Appliance costs'!BY121","v":-1809.6314304969937},{"$f":"'Appliance costs'!BZ118+'Appliance costs'!BZ117+'Appliance costs'!BZ121","v":-1805.330709447773},{"$f":"'Appliance costs'!CA118+'Appliance costs'!CA117+'Appliance costs'!CA121","v":-1803.2985895131976},{"$f":"'Appliance costs'!CB118+'Appliance costs'!CB117+'Appliance costs'!CB121","v":-1801.2721634818215},{"$f":"'Appliance costs'!CC118+'Appliance costs'!CC117+'Appliance costs'!CC121","v":-1823.3424353367761}]
[]
["Cooking plus hot water and room heating"]
["High income",null,{"$f":"'Appliance costs'!B103+'Appliance costs'!B104+'Appliance costs'!B105+'Appliance costs'!B107","v":-2852.7947733141441},{"$f":"'Appliance costs'!C103+'Appliance costs'!C104+'Appliance costs'!C105+'Appliance costs'!C107","v":-3272.755073372005},{"$f":"'Appliance costs'!D103+'Appliance costs'!D104+'Appliance costs'!D105+'Appliance costs'!D107","v":-3068.8795611004816},{"$f":"'Appliance costs'!E103+'Appliance costs'!E104+'Appliance costs'!E105+'Appliance costs'!E107","v":-2955.5760073604433},{"$f":"'Appliance costs'!F103+'Appliance costs'!F104+'Appliance costs'!F105+'Appliance costs'!F107","v":-3176.8243667399256},{"$f":"'Appliance costs'!G103+'Appliance costs'!G104+'Appliance costs'!G105+'Appliance costs'!G107","v":-3415.9698204592305},{"$f":"'Appliance costs'!H103+'Appliance costs'!H104+'Appliance costs'!H105+'Appliance costs'!H107","v":-3088.4359011774245},{"$f":"'Appliance costs'!I103+'Appliance costs'!I104+'Appliance costs'!I105+'Appliance costs'!I107","v":-3501.6891275027619},{"$f":"'Appliance costs'!J103+'Appliance costs'!J104+'Appliance costs'!J105+'Appliance costs'!J107","v":-2853.0301489371373},{"$f":"'Appliance costs'!K103+'Appliance costs'!K104+'Appliance costs'!K105+'Appliance costs'!K107","v":-3132.7125024453044},{"$f":"'Appliance costs'!L103+'Appliance costs'!L104+'Appliance costs'!L105+'Appliance costs'!L107","v":-3578.7187432887245},{"$f":"'Appliance costs'!M103+'Appliance costs'!M104+'Appliance costs'!M105+'Appliance costs'!M107","v":-3616.836396083103},{"$f":"'Appliance costs'!N103+'Appliance costs'!N104+'Appliance costs'!N105+'Appliance costs'!N107","v":-3173.3727709148757},{"$f":"'Appliance costs'!O103+'Appliance costs'!O104+'Appliance costs'!O105+'Appliance costs'!O107","v":-2826.3307954797219},{"$f":"'Appliance costs'!P103+'Appliance costs'!P104+'Appliance costs'!P105+'Appliance costs'!P107","v":-2305.133741307623},{"$f":"'Appliance costs'!Q103+'Appliance costs'!Q104+'Appliance costs'!Q105+'Appliance costs'!Q107","v":-2008.2117667779492},{"$f":"'Appliance costs'!R103+'Appliance costs'!R104+'Appliance costs'!R105+'Appliance costs'!R107","v":-1529.371846091113},{"$f":"'Appliance costs'!S103+'Appliance costs'!S104+'Appliance costs'!S105+'Appliance costs'!S107","v":-1287.5700343638928},{"$f":"'Appliance costs'!T103+'Appliance costs'!T104+'Appliance costs'!T105+'Appliance costs'!T107","v":-996.88129474747302},{"$f":"'Appliance costs'!U103+'Appliance costs'!U104+'Appliance costs'!U105+'Appliance costs'!U107","v":-790.66002469844989},{"$f":"'Appliance costs'!V103+'Appliance costs'!V104+'Appliance costs'!V105+'Appliance costs'!V107","v":-629.58923790680478},{"$f":"'Appliance costs'!W103+'Appliance costs'!W104+'Appliance costs'!W105+'Appliance costs'!W107","v":-283.53279369092297},{"$f":"'Appliance costs'!X103+'Appliance costs'!X104+'Appliance costs'!X105+'Appliance costs'!X107","v":68.854830840018622},{"$f":"'Appliance costs'!Y103+'Appliance costs'!Y104+'Appliance costs'!Y105+'Appliance costs'!Y107","v":310.84461929091231},{"$f":"'Appliance costs'!Z103+'Appliance costs'!Z104+'Appliance costs'!Z105+'Appliance costs'!Z107","v":555.5136441370189},{"$f":"'Appliance costs'!AA103+'Appliance costs'!AA104+'Appliance costs'!AA105+'Appliance costs'!AA107","v":752.2367659087588},{"$f":"'Appliance costs'!AB103+'Appliance costs'!AB104+'Appliance costs'!AB105+'Appliance costs'!AB107","v":943.63930194892941},{"$f":"'Appliance costs'!AC103+'Appliance costs'!AC104+'Appliance costs'!AC105+'Appliance costs'!AC107","v":1119.7044182638808},{"$f":"'Appliance costs'!AD103+'Appliance costs'!AD104+'Appliance costs'!AD105+'Appliance costs'!AD107","v":1308.1783082142908},{"$f":"'Appliance costs'!AE103+'Appliance costs'!AE104+'Appliance costs'!AE105+'Appliance costs'!AE107","v":1545.7213222084295},{"$f":"'Appliance costs'!AF103+'Appliance costs'!AF104+'Appliance costs'!AF105+'Appliance costs'!AF107","v":1707.3228157452477},{"$f":"'Appliance costs'!AG103+'Appliance costs'!AG104+'Appliance costs'!AG105+'Appliance costs'!AG107","v":1927.1184872380088},{"$f":"'Appliance costs'!AH103+'Appliance costs'!AH104+'Appliance costs'!AH105+'Appliance costs'!AH107","v":2131.5403034748556},{"$f":"'Appliance costs'!AI103+'Appliance costs'!AI104+'Appliance costs'!AI105+'Appliance costs'!AI107","v":2314.6337566442094},{"$f":"'Appliance costs'!AJ103+'Appliance costs'!AJ104+'Appliance costs'!AJ105+'Appliance costs'!AJ107","v":2509.2360471061966},{"$f":"'Appliance costs'!AK103+'Appliance costs'!AK104+'Appliance costs'!AK105+'Appliance costs'!AK107","v":1818.5119267239811},{"$f":"'Appliance costs'!AL103+'Appliance costs'!AL104+'Appliance costs'!AL105+'Appliance costs'!AL107","v":1738.5687364305443},{"$f":"'Appliance costs'!AM103+'Appliance costs'!AM104+'Appliance costs'!AM105+'Appliance costs'!AM107","v":1928.0344629886044},{"$f":"'Appliance costs'!AN103+'Appliance costs'!AN104+'Appliance costs'!AN105+'Appliance costs'!AN107","v":2154.772168415022},{"$f":"'Appliance costs'!AO103+'Appliance costs'!AO104+'Appliance costs'!AO105+'Appliance costs'!AO107","v":2361.3373802440206},{"$f":"'Appliance costs'!AP103+'Appliance costs'!AP104+'Appliance costs'!AP105+'Appliance costs'!AP107","v":2586.6734193010602},{"$f":"'Appliance costs'!AQ103+'Appliance costs'!AQ104+'Appliance costs'!AQ105+'Appliance costs'!AQ107","v":2832.3409677740119},{"$f":"'Appliance costs'!AR103+'Appliance costs'!AR104+'Appliance costs'!AR105+'Appliance costs'!AR107","v":3107.5382816185906},{"$f":"'Appliance costs'!AS103+'Appliance costs'!AS104+'Appliance costs'!AS105+'Appliance costs'!AS107","v":3413.3499635209578},{"$f":"'Appliance costs'!AT103+'Appliance costs'!AT104+'Appliance costs'!AT105+'Appliance costs'!AT107","v":3769.5075766065797},{"$f":"'Appliance costs'!AU103+'Appliance costs'!AU104+'Appliance costs'!AU105+'Appliance costs'!AU107","v":4173.274589802927},{"$f":"'Appliance costs'!AV103+'Appliance costs'!AV104+'Appliance costs'!AV105+'Appliance costs'!AV107","v":4636.1759467942666},{"$f":"'Appliance costs'!AW103+'Appliance costs'!AW104+'Appliance costs'!AW105+'Appliance costs'!AW107","v":5160.7320513890409},{"$f":"'Appliance costs'!AX103+'Appliance costs'!AX104+'Appliance costs'!AX105+'Appliance costs'!AX107","v":5767.1537707335665},{"$f":"'Appliance costs'!AY103+'Appliance costs'!AY104+'Appliance costs'!AY105+'Appliance costs'!AY107","v":6456.4417319804652},{"$f":"'Appliance costs'!AZ103+'Appliance costs'!AZ104+'Appliance costs'!AZ105+'Appliance costs'!AZ107","v":7251.9877362629231},{"$f":"'Appliance costs'!BA103+'Appliance costs'!BA104+'Appliance costs'!BA105+'Appliance costs'!BA107","v":8176.6656615703378},{"$f":"'Appliance costs'!BB103+'Appliance costs'!BB104+'Appliance costs'!BB105+'Appliance costs'!BB107","v":9278.4542641809585},{"$f":"'Appliance costs'!BC103+'Appliance costs'!BC104+'Appliance costs'!BC105+'Appliance costs'!BC107","v":10329.148133990677},{"$f":"'Appliance costs'!BD103+'Appliance costs'!BD104+'Appliance costs'!BD105+'Appliance costs'!BD107","v":11285.429663606041},{"$f":"'Appliance costs'!BE103+'Appliance costs'!BE104+'Appliance costs'!BE105+'Appliance costs'!BE107","v":12265.08504178594},{"$f":"'Appliance costs'!BF103+'Appliance costs'!BF104+'Appliance costs'!BF105+'Appliance costs'!BF107","v":13378.403044138753},{"$f":"'Appliance costs'!BG103+'Appliance costs'!BG104+'Appliance costs'!BG105+'Appliance costs'!BG107","v":14697.183947011288},{"$f":"'Appliance costs'!BH103+'Appliance costs'!BH104+'Appliance costs'!BH105+'Appliance costs'!BH107","v":16610.861329512256},{"$f":"'Appliance costs'!BI103+'Appliance costs'!BI104+'Appliance costs'!BI105+'Appliance costs'!BI107","v":19399.357685634986},{"$f":"'Appliance costs'!BJ103+'Appliance costs'!BJ104+'Appliance costs'!BJ105+'Appliance costs'!BJ107","v":23493.746511876336},{"$f":"'Appliance costs'!BK103+'Appliance costs'!BK104+'Appliance costs'!BK105+'Appliance costs'!BK107","v":-686.05456074524204},{"$f":"'Appliance costs'!BL103+'Appliance costs'!BL104+'Appliance costs'!BL105+'Appliance costs'!BL107","v":-680.47872736750901},{"$f":"'Appliance costs'!BM103+'Appliance costs'!BM104+'Appliance costs'!BM105+'Appliance costs'!BM107","v":-678.93624590666445},{"$f":"'Appliance costs'!BN103+'Appliance costs'!BN104+'Appliance costs'!BN105+'Appliance costs'!BN107","v":-669.36042129370139},{"$f":"'Appliance costs'!BO103+'Appliance costs'!BO104+'Appliance costs'!BO105+'Appliance costs'!BO107","v":-663.8178064108713},{"$f":"'Appliance costs'!BP103+'Appliance costs'!BP104+'Appliance costs'!BP105+'Appliance costs'!BP107","v":-658.28612293076253},{"$f":"'Appliance costs'!BQ103+'Appliance costs'!BQ104+'Appliance costs'!BQ105+'Appliance costs'!BQ107","v":-656.78750880819848},{"$f":"'Appliance costs'!BR103+'Appliance costs'!BR104+'Appliance costs'!BR105+'Appliance costs'!BR107","v":-647.25527078255141},{"$f":"'Appliance costs'!BS103+'Appliance costs'!BS104+'Appliance costs'!BS105+'Appliance costs'!BS107","v":-641.75596353287779},{"$f":"'Appliance costs'!BT103+'Appliance costs'!BT104+'Appliance costs'!BT105+'Appliance costs'!BT107","v":-636.26731051707316},{"$f":"'Appliance costs'!BU103+'Appliance costs'!BU104+'Appliance costs'!BU105+'Appliance costs'!BU107","v":-634.81145146384301},{"$f":"'Appliance costs'!BV103+'Appliance costs'!BV104+'Appliance costs'!BV105+'Appliance costs'!BV107","v":-625.32169487508395},{"$f":"'Appliance costs'!BW103+'Appliance costs'!BW104+'Appliance costs'!BW105+'Appliance costs'!BW107","v":-619.86459718110359},{"$f":"'Appliance costs'!BX103+'Appliance costs'!BX104+'Appliance costs'!BX105+'Appliance costs'!BX107","v":-614.41788357983546},{"$f":"'Appliance costs'!BY103+'Appliance costs'!BY104+'Appliance costs'!BY105+'Appliance costs'!BY107","v":-613.0036955288881},{"$f":"'Appliance costs'!BZ103+'Appliance costs'!BZ104+'Appliance costs'!BZ105+'Appliance costs'!BZ107","v":-603.5553432479976},{"$f":"'Appliance costs'!CA103+'Appliance costs'!CA104+'Appliance costs'!CA105+'Appliance costs'!CA107","v":-598.13938487431619},{"$f":"'Appliance costs'!CB103+'Appliance costs'!CB104+'Appliance costs'!CB105+'Appliance costs'!CB107","v":-592.73354730169717},{"$f":"'Appliance costs'!CC103+'Appliance costs'!CC104+'Appliance costs'!CC105+'Appliance costs'!CC107","v":-668.19845672797032}]
["Medium income",null,{"$f":"'Appliance costs'!B110+'Appliance costs'!B111+'Appliance costs'!B112+'Appliance costs'!B114","v":-3097.257010723376},{"$f":"'Appliance costs'!C110+'Appliance costs'!C111+'Appliance costs'!C112+'Appliance costs'!C114","v":-3446.0315524990256},{"$f":"'Appliance costs'!D110+'Appliance costs'!D111+'Appliance costs'!D112+'Appliance costs'!D114","v":-3149.1521918166145},{"$f":"'Appliance costs'!E110+'Appliance costs'!E111+'Appliance costs'!E112+'Appliance costs'!E114","v":-3055.0542615318},{"$f":"'Appliance costs'!F110+'Appliance costs'!F111+'Appliance costs'!F112+'Appliance costs'!F114","v":-3238.7997135437204},{"$f":"'Appliance costs'!G110+'Appliance costs'!G111+'Appliance costs'!G112+'Appliance costs'!G114","v":-3478.0900179190758},{"$f":"'Appliance costs'!H110+'Appliance costs'!H111+'Appliance costs'!H112+'Appliance costs'!H114","v":-3206.0750379370252},{"$f":"'Appliance costs'!I110+'Appliance costs'!I111+'Appliance costs'!I112+'Appliance costs'!I114","v":-3627.4868947071154},{"$f":"'Appliance costs'!J110+'Appliance costs'!J111+'Appliance costs'!J112+'Appliance costs'!J114","v":-3046.0604433949879},{"$f":"'Appliance costs'!K110+'Appliance costs'!K111+'Appliance costs'!K112+'Appliance costs'!K114","v":-3269.9189078810814},{"$f":"'Appliance costs'!L110+'Appliance costs'!L111+'Appliance costs'!L112+'Appliance costs'!L114","v":-3631.9504560314172},{"$f":"'Appliance costs'!M110+'Appliance costs'!M111+'Appliance costs'!M112+'Appliance costs'!M114","v":-3655.2748176946361},{"$f":"'Appliance costs'!N110+'Appliance costs'!N111+'Appliance costs'!N112+'Appliance costs'!N114","v":-3278.690441029064},{"$f":"'Appliance costs'!O110+'Appliance costs'!O111+'Appliance costs'!O112+'Appliance costs'!O114","v":-2982.2251256749223},{"$f":"'Appliance costs'!P110+'Appliance costs'!P111+'Appliance costs'!P112+'Appliance costs'!P114","v":-2541.1662940006727},{"$f":"'Appliance costs'!Q110+'Appliance costs'!Q111+'Appliance costs'!Q112+'Appliance costs'!Q114","v":-2286.4076264156292},{"$f":"'Appliance costs'!R110+'Appliance costs'!R111+'Appliance costs'!R112+'Appliance costs'!R114","v":-1880.6080156780208},{"$f":"'Appliance costs'!S110+'Appliance costs'!S111+'Appliance costs'!S112+'Appliance costs'!S114","v":-1671.7077799199067},{"$f":"'Appliance costs'!T110+'Appliance costs'!T111+'Appliance costs'!T112+'Appliance costs'!T114","v":-1422.2476664233466},{"$f":"'Appliance costs'!U110+'Appliance costs'!U111+'Appliance costs'!U112+'Appliance costs'!U114","v":-1242.9775102871442},{"$f":"'Appliance costs'!V110+'Appliance costs'!V111+'Appliance costs'!V112+'Appliance costs'!V114","v":-1101.2445861341862},{"$f":"'Appliance costs'!W110+'Appliance costs'!W111+'Appliance costs'!W112+'Appliance costs'!W114","v":-805.92199210808576},{"$f":"'Appliance costs'!X110+'Appliance costs'!X111+'Appliance costs'!X112+'Appliance costs'!X114","v":-505.38101416384802},{"$f":"'Appliance costs'!Y110+'Appliance costs'!Y111+'Appliance costs'!Y112+'Appliance costs'!Y114","v":-296.56421091315815},{"$f":"'Appliance costs'!Z110+'Appliance costs'!Z111+'Appliance costs'!Z112+'Appliance costs'!Z114","v":-85.56154629157686},{"$f":"'Appliance costs'!AA110+'Appliance costs'!AA111+'Appliance costs'!AA112+'Appliance costs'!AA114","v":85.58329736674591},{"$f":"'Appliance costs'!AB110+'Appliance costs'!AB111+'Appliance costs'!AB112+'Appliance costs'!AB114","v":252.27058880771483},{"$f":"'Appliance costs'!AC110+'Appliance costs'!AC111+'Appliance costs'!AC112+'Appliance costs'!AC114","v":406.18160091565801},{"$f":"'Appliance costs'!AD110+'Appliance costs'!AD111+'Appliance costs'!AD112+'Appliance costs'!AD114","v":570.35957615155053},{"$f":"'Appliance costs'!AE110+'Appliance costs'!AE111+'Appliance costs'!AE112+'Appliance costs'!AE114","v":775.25091063981495},{"$f":"'Appliance costs'!AF110+'Appliance costs'!AF111+'Appliance costs'!AF112+'Appliance costs'!AF114","v":909.45999385744176},{"$f":"'Appliance costs'!AG110+'Appliance costs'!AG111+'Appliance costs'!AG112+'Appliance costs'!AG114","v":1091.9989971837022},{"$f":"'Appliance costs'!AH110+'Appliance costs'!AH111+'Appliance costs'!AH112+'Appliance costs'!AH114","v":1261.7701047791809},{"$f":"'Appliance costs'!AI110+'Appliance costs'!AI111+'Appliance costs'!AI112+'Appliance costs'!AI114","v":1413.8281331748763},{"$f":"'Appliance costs'!AJ110+'Appliance costs'!AJ111+'Appliance costs'!AJ112+'Appliance costs'!AJ114","v":1575.4441827753283},{"$f":"'Appliance costs'!AK110+'Appliance costs'!AK111+'Appliance costs'!AK112+'Appliance costs'!AK114","v":1001.8018919528251},{"$f":"'Appliance costs'!AL110+'Appliance costs'!AL111+'Appliance costs'!AL112+'Appliance costs'!AL114","v":935.40954591717514},{"$f":"'Appliance costs'!AM110+'Appliance costs'!AM111+'Appliance costs'!AM112+'Appliance costs'!AM114","v":1092.759709619253},{"$f":"'Appliance costs'!AN110+'Appliance costs'!AN111+'Appliance costs'!AN112+'Appliance costs'!AN114","v":1281.064031009789},{"$f":"'Appliance costs'!AO110+'Appliance costs'!AO111+'Appliance costs'!AO112+'Appliance costs'!AO114","v":1452.6152159492297},{"$f":"'Appliance costs'!AP110+'Appliance costs'!AP111+'Appliance costs'!AP112+'Appliance costs'!AP114","v":1639.7554617220594},{"$f":"'Appliance costs'!AQ110+'Appliance costs'!AQ111+'Appliance costs'!AQ112+'Appliance costs'!AQ114","v":1843.7809056413919},{"$f":"'Appliance costs'!AR110+'Appliance costs'!AR111+'Appliance costs'!AR112+'Appliance costs'!AR114","v":2072.3306447972336},{"$f":"'Appliance costs'!AS110+'Appliance costs'!AS111+'Appliance costs'!AS112+'Appliance costs'!AS114","v":2326.305435296345},{"$f":"'Appliance costs'!AT110+'Appliance costs'!AT111+'Appliance costs'!AT112+'Appliance costs'!AT114","v":2622.0922234444934},{"$f":"'Appliance costs'!AU110+'Appliance costs'!AU111+'Appliance costs'!AU112+'Appliance costs'!AU114","v":2957.4183363944012},{"$f":"'Appliance costs'!AV110+'Appliance costs'!AV111+'Appliance costs'!AV112+'Appliance costs'!AV114","v":3341.8551716136772},{"$f":"'Appliance costs'!AW110+'Appliance costs'!AW111+'Appliance costs'!AW112+'Appliance costs'!AW114","v":3777.4959095368968},{"$f":"'Appliance costs'!AX110+'Appliance costs'!AX111+'Appliance costs'!AX112+'Appliance costs'!AX114","v":4281.1255556202259},{"$f":"'Appliance costs'!AY110+'Appliance costs'!AY111+'Appliance costs'!AY112+'Appliance costs'!AY114","v":4853.5751247872086},{"$f":"'Appliance costs'!AZ110+'Appliance costs'!AZ111+'Appliance costs'!AZ112+'Appliance costs'!AZ114","v":5514.271369329459},{"$f":"'Appliance costs'!BA110+'Appliance costs'!BA111+'Appliance costs'!BA112+'Appliance costs'!BA114","v":6282.21090943532},{"$f":"'Appliance costs'!BB110+'Appliance costs'!BB111+'Appliance costs'!BB112+'Appliance costs'!BB114","v":7197.2398180159862},{"$f":"'Appliance costs'!BC110+'Appliance costs'!BC111+'Appliance costs'!BC112+'Appliance costs'!BC114","v":8069.8348536393078},{"$f":"'Appliance costs'!BD110+'Appliance costs'!BD111+'Appliance costs'!BD112+'Appliance costs'!BD114","v":8864.020999934959},{"$f":"'Appliance costs'!BE110+'Appliance costs'!BE111+'Appliance costs'!BE112+'Appliance costs'!BE114","v":9677.6189890202877},{"$f":"'Appliance costs'!BF110+'Appliance costs'!BF111+'Appliance costs'!BF112+'Appliance costs'!BF114","v":10602.222995798278},{"$f":"'Appliance costs'!BG110+'Appliance costs'!BG111+'Appliance costs'!BG112+'Appliance costs'!BG114","v":11697.46272450234},{"$f":"'Appliance costs'!BH110+'Appliance costs'!BH111+'Appliance costs'!BH112+'Appliance costs'!BH114","v":13286.760455969445},{"$f":"'Appliance costs'!BI110+'Appliance costs'!BI111+'Appliance costs'!BI112+'Appliance costs'!BI114","v":15602.590163481753},{"$f":"'Appliance costs'!BJ110+'Appliance costs'!BJ111+'Appliance costs'!BJ112+'Appliance costs'!BJ114","v":19002.95583263411},{"$f":"'Appliance costs'!BK110+'Appliance costs'!BK111+'Appliance costs'!BK112+'Appliance costs'!BK114","v":-1078.2257413576997},{"$f":"'Appliance costs'!BL110+'Appliance costs'!BL111+'Appliance costs'!BL112+'Appliance costs'!BL114","v":-1073.5950447631205},{"$f":"'Appliance costs'!BM110+'Appliance costs'!BM111+'Appliance costs'!BM112+'Appliance costs'!BM114","v":-1072.3140230459983},{"$f":"'Appliance costs'!BN110+'Appliance costs'!BN111+'Appliance costs'!BN112+'Appliance costs'!BN114","v":-1064.3613574224848},{"$f":"'Appliance costs'!BO110+'Appliance costs'!BO111+'Appliance costs'!BO112+'Appliance costs'!BO114","v":-1059.7582485911705},{"$f":"'Appliance costs'!BP110+'Appliance costs'!BP111+'Appliance costs'!BP112+'Appliance costs'!BP114","v":-1055.1642182250691},{"$f":"'Appliance costs'!BQ110+'Appliance costs'!BQ111+'Appliance costs'!BQ112+'Appliance costs'!BQ114","v":-1053.9196280725625},{"$f":"'Appliance costs'!BR110+'Appliance costs'!BR111+'Appliance costs'!BR112+'Appliance costs'!BR114","v":-1046.0031608516522},{"$f":"'Appliance costs'!BS110+'Appliance costs'!BS111+'Appliance costs'!BS112+'Appliance costs'!BS114","v":-1041.4360187531636},{"$f":"'Appliance costs'!BT110+'Appliance costs'!BT111+'Appliance costs'!BT112+'Appliance costs'!BT114","v":-1036.877724932797},{"$f":"'Appliance costs'!BU110+'Appliance costs'!BU111+'Appliance costs'!BU112+'Appliance costs'!BU114","v":-1035.6686426121348},{"$f":"'Appliance costs'!BV110+'Appliance costs'!BV111+'Appliance costs'!BV112+'Appliance costs'!BV114","v":-1027.7874559729423},{"$f":"'Appliance costs'!BW110+'Appliance costs'!BW111+'Appliance costs'!BW112+'Appliance costs'!BW114","v":-1023.2553686604499},{"$f":"'Appliance costs'!BX110+'Appliance costs'!BX111+'Appliance costs'!BX112+'Appliance costs'!BX114","v":-1018.7319052754499},{"$f":"'Appliance costs'!BY110+'Appliance costs'!BY111+'Appliance costs'!BY112+'Appliance costs'!BY114","v":-1017.5574304753657},{"$f":"'Appliance costs'!BZ110+'Appliance costs'!BZ111+'Appliance costs'!BZ112+'Appliance costs'!BZ114","v":-1009.710629868621},{"$f":"'Appliance costs'!CA110+'Appliance costs'!CA111+'Appliance costs'!CA112+'Appliance costs'!CA114","v":-1005.2127085179688},{"$f":"'Appliance costs'!CB110+'Appliance costs'!CB111+'Appliance costs'!CB112+'Appliance costs'!CB114","v":-1000.7231924326531},{"$f":"'Appliance costs'!CC110+'Appliance costs'!CC111+'Appliance costs'!CC112+'Appliance costs'!CC114","v":-1063.3963527329549}]
["Low income",null,{"$f":"'Appliance costs'!B117+'Appliance costs'!B118+'Appliance costs'!B119+'Appliance costs'!B121","v":-3483.6235809942518},{"$f":"'Appliance costs'!C117+'Appliance costs'!C118+'Appliance costs'!C119+'Appliance costs'!C121","v":-3719.8907777864415},{"$f":"'Appliance costs'!D117+'Appliance costs'!D118+'Appliance costs'!D119+'Appliance costs'!D121","v":-3276.0211158070879},{"$f":"'Appliance costs'!E117+'Appliance costs'!E118+'Appliance costs'!E119+'Appliance costs'!E121","v":-3212.2772023346392},{"$f":"'Appliance costs'!F117+'Appliance costs'!F118+'Appliance costs'!F119+'Appliance costs'!F121","v":-3336.750229090404},{"$f":"'Appliance costs'!G117+'Appliance costs'!G118+'Appliance costs'!G119+'Appliance costs'!G121","v":-3576.2694663748784},{"$f":"'Appliance costs'!H117+'Appliance costs'!H118+'Appliance costs'!H119+'Appliance costs'!H121","v":-3392.0008082364538},{"$f":"'Appliance costs'!I117+'Appliance costs'!I118+'Appliance costs'!I119+'Appliance costs'!I121","v":-3826.3071803167759},{"$f":"'Appliance costs'!J117+'Appliance costs'!J118+'Appliance costs'!J119+'Appliance costs'!J121","v":-3351.1400893086002},{"$f":"'Appliance costs'!K117+'Appliance costs'!K118+'Appliance costs'!K119+'Appliance costs'!K121","v":-3486.7702663944792},{"$f":"'Appliance costs'!L117+'Appliance costs'!L118+'Appliance costs'!L119+'Appliance costs'!L121","v":-3716.0818724006863},{"$f":"'Appliance costs'!M117+'Appliance costs'!M118+'Appliance costs'!M119+'Appliance costs'!M121","v":-3716.0258002679197},{"$f":"'Appliance costs'!N117+'Appliance costs'!N118+'Appliance costs'!N119+'Appliance costs'!N121","v":-3445.1424355055001},{"$f":"'Appliance costs'!O117+'Appliance costs'!O118+'Appliance costs'!O119+'Appliance costs'!O121","v":-3228.612290909628},{"$f":"'Appliance costs'!P117+'Appliance costs'!P118+'Appliance costs'!P119+'Appliance costs'!P121","v":-2914.2099543335044},{"$f":"'Appliance costs'!Q117+'Appliance costs'!Q118+'Appliance costs'!Q119+'Appliance costs'!Q121","v":-2726.0893592299985},{"$f":"'Appliance costs'!R117+'Appliance costs'!R118+'Appliance costs'!R119+'Appliance costs'!R121","v":-2435.7281668987634},{"$f":"'Appliance costs'!S117+'Appliance costs'!S118+'Appliance costs'!S119+'Appliance costs'!S121","v":-2278.8280649789463},{"$f":"'Appliance costs'!T117+'Appliance costs'!T118+'Appliance costs'!T119+'Appliance costs'!T121","v":-2094.5287838454014},{"$f":"'Appliance costs'!U117+'Appliance costs'!U118+'Appliance costs'!U119+'Appliance costs'!U121","v":-1957.8542022152321},{"$f":"'Appliance costs'!V117+'Appliance costs'!V118+'Appliance costs'!V119+'Appliance costs'!V121","v":-1846.6842956606581},{"$f":"'Appliance costs'!W117+'Appliance costs'!W118+'Appliance costs'!W119+'Appliance costs'!W121","v":-1631.5453075043213},{"$f":"'Appliance costs'!X117+'Appliance costs'!X118+'Appliance costs'!X119+'Appliance costs'!X121","v":-1412.9466828414934},{"$f":"'Appliance costs'!Y117+'Appliance costs'!Y118+'Appliance costs'!Y119+'Appliance costs'!Y121","v":-1256.5589690619661},{"$f":"'Appliance costs'!Z117+'Appliance costs'!Z118+'Appliance costs'!Z119+'Appliance costs'!Z121","v":-1098.7651610364198},{"$f":"'Appliance costs'!AA117+'Appliance costs'!AA118+'Appliance costs'!AA119+'Appliance costs'!AA121","v":-968.04615857487875},{"$f":"'Appliance costs'!AB117+'Appliance costs'!AB118+'Appliance costs'!AB119+'Appliance costs'!AB121","v":-840.42070502920024},{"$f":"'Appliance costs'!AC117+'Appliance costs'!AC118+'Appliance costs'!AC119+'Appliance costs'!AC121","v":-721.52371124408114},{"$f":"'Appliance costs'!AD117+'Appliance costs'!AD118+'Appliance costs'!AD119+'Appliance costs'!AD121","v":-595.7448333056891},{"$f":"'Appliance costs'!AE117+'Appliance costs'!AE118+'Appliance costs'!AE119+'Appliance costs'!AE121","v":-442.45867742482528},{"$f":"'Appliance costs'!AF117+'Appliance costs'!AF118+'Appliance costs'!AF119+'Appliance costs'!AF121","v":-351.54262685977142},{"$f":"'Appliance costs'!AG117+'Appliance costs'!AG118+'Appliance costs'!AG119+'Appliance costs'!AG121","v":-227.88687377192718},{"$f":"'Appliance costs'!AH117+'Appliance costs'!AH118+'Appliance costs'!AH119+'Appliance costs'!AH121","v":-112.88036130207297},{"$f":"'Appliance costs'!AI117+'Appliance costs'!AI118+'Appliance costs'!AI119+'Appliance costs'!AI121","v":-9.8730605515845582},{"$f":"'Appliance costs'!AJ117+'Appliance costs'!AJ118+'Appliance costs'!AJ119+'Appliance costs'!AJ121","v":99.609044424668809},{"$f":"'Appliance costs'!AK117+'Appliance costs'!AK118+'Appliance costs'!AK119+'Appliance costs'!AK121","v":-288.98828645868684},{"$f":"'Appliance costs'!AL117+'Appliance costs'!AL118+'Appliance costs'!AL119+'Appliance costs'!AL121","v":-333.9638555080769},{"$f":"'Appliance costs'!AM117+'Appliance costs'!AM118+'Appliance costs'!AM119+'Appliance costs'!AM121","v":-227.37155119764316},{"$f":"'Appliance costs'!AN117+'Appliance costs'!AN118+'Appliance costs'!AN119+'Appliance costs'!AN121","v":-99.810250615629911},{"$f":"'Appliance costs'!AO117+'Appliance costs'!AO118+'Appliance costs'!AO119+'Appliance costs'!AO121","v":16.402123618073119},{"$f":"'Appliance costs'!AP117+'Appliance costs'!AP118+'Appliance costs'!AP119+'Appliance costs'!AP121","v":143.17485493797949},{"$f":"'Appliance costs'!AQ117+'Appliance costs'!AQ118+'Appliance costs'!AQ119+'Appliance costs'!AQ121","v":281.38597397117587},{"$f":"'Appliance costs'!AR117+'Appliance costs'!AR118+'Appliance costs'!AR119+'Appliance costs'!AR121","v":436.21036546208848},{"$f":"'Appliance costs'!AS117+'Appliance costs'!AS118+'Appliance costs'!AS119+'Appliance costs'!AS121","v":608.2582205079641},{"$f":"'Appliance costs'!AT117+'Appliance costs'!AT118+'Appliance costs'!AT119+'Appliance costs'!AT121","v":808.63040056485033},{"$f":"'Appliance costs'!AU117+'Appliance costs'!AU118+'Appliance costs'!AU119+'Appliance costs'!AU121","v":1035.7873493333714},{"$f":"'Appliance costs'!AV117+'Appliance costs'!AV118+'Appliance costs'!AV119+'Appliance costs'!AV121","v":1296.2129324005723},{"$f":"'Appliance costs'!AW117+'Appliance costs'!AW118+'Appliance costs'!AW119+'Appliance costs'!AW121","v":1591.325114137187},{"$f":"'Appliance costs'!AX117+'Appliance costs'!AX118+'Appliance costs'!AX119+'Appliance costs'!AX121","v":1932.4944096246206},{"$f":"'Appliance costs'!AY117+'Appliance costs'!AY118+'Appliance costs'!AY119+'Appliance costs'!AY121","v":2320.2837658184581},{"$f":"'Appliance costs'!AZ117+'Appliance costs'!AZ118+'Appliance costs'!AZ119+'Appliance costs'!AZ121","v":2767.853272567424},{"$f":"'Appliance costs'!BA117+'Appliance costs'!BA118+'Appliance costs'!BA119+'Appliance costs'!BA121","v":3288.0716392032732},{"$f":"'Appliance costs'!BB117+'Appliance costs'!BB118+'Appliance costs'!BB119+'Appliance costs'!BB121","v":3907.9314320468602},{"$f":"'Appliance costs'!BC117+'Appliance costs'!BC118+'Appliance costs'!BC119+'Appliance costs'!BC121","v":4499.0456284899019},{"$f":"'Appliance costs'!BD117+'Appliance costs'!BD118+'Appliance costs'!BD119+'Appliance costs'!BD121","v":5037.0439971815176},{"$f":"'Appliance costs'!BE117+'Appliance costs'!BE118+'Appliance costs'!BE119+'Appliance costs'!BE121","v":5588.1923557122363},{"$f":"'Appliance costs'!BF117+'Appliance costs'!BF118+'Appliance costs'!BF119+'Appliance costs'!BF121","v":6214.538521094868},{"$f":"'Appliance costs'!BG117+'Appliance costs'!BG118+'Appliance costs'!BG119+'Appliance costs'!BG121","v":6956.4769068466621},{"$f":"'Appliance costs'!BH117+'Appliance costs'!BH118+'Appliance costs'!BH119+'Appliance costs'!BH121","v":8033.1005559530804},{"$f":"'Appliance costs'!BI117+'Appliance costs'!BI118+'Appliance costs'!BI119+'Appliance costs'!BI121","v":9601.8922184878102},{"$f":"'Appliance costs'!BJ117+'Appliance costs'!BJ118+'Appliance costs'!BJ119+'Appliance costs'!BJ121","v":11905.371310249651},{"$f":"'Appliance costs'!BK117+'Appliance costs'!BK118+'Appliance costs'!BK119+'Appliance costs'!BK121","v":-1698.0426734864311},{"$f":"'Appliance costs'!BL117+'Appliance costs'!BL118+'Appliance costs'!BL119+'Appliance costs'!BL121","v":-1694.9057423961451},{"$f":"'Appliance costs'!BM117+'Appliance costs'!BM118+'Appliance costs'!BM119+'Appliance costs'!BM121","v":-1694.0379513911207},{"$f":"'Appliance costs'!BN117+'Appliance costs'!BN118+'Appliance costs'!BN119+'Appliance costs'!BN121","v":-1688.65064873902},{"$f":"'Appliance costs'!BO117+'Appliance costs'!BO118+'Appliance costs'!BO119+'Appliance costs'!BO121","v":-1685.5324061787485},{"$f":"'Appliance costs'!BP117+'Appliance costs'!BP118+'Appliance costs'!BP119+'Appliance costs'!BP121","v":-1682.4203135614064},{"$f":"'Appliance costs'!BQ117+'Appliance costs'!BQ118+'Appliance costs'!BQ119+'Appliance costs'!BQ121","v":-1681.5772020630993},{"$f":"'Appliance costs'!BR117+'Appliance costs'!BR118+'Appliance costs'!BR119+'Appliance costs'!BR121","v":-1676.2144209688729},{"$f":"'Appliance costs'!BS117+'Appliance costs'!BS118+'Appliance costs'!BS119+'Appliance costs'!BS121","v":-1673.1205430285052},{"$f":"'Appliance costs'!BT117+'Appliance costs'!BT118+'Appliance costs'!BT119+'Appliance costs'!BT121","v":-1670.0326590974994},{"$f":"'Appliance costs'!BU117+'Appliance costs'!BU118+'Appliance costs'!BU119+'Appliance costs'!BU121","v":-1669.2136013499367},{"$f":"'Appliance costs'!BV117+'Appliance costs'!BV118+'Appliance costs'!BV119+'Appliance costs'!BV121","v":-1663.8747200624491},{"$f":"'Appliance costs'!BW117+'Appliance costs'!BW118+'Appliance costs'!BW119+'Appliance costs'!BW121","v":-1660.8045889700577},{"$f":"'Appliance costs'!BX117+'Appliance costs'!BX118+'Appliance costs'!BX119+'Appliance costs'!BX121","v":-1657.7402999072003},{"$f":"'Appliance costs'!BY117+'Appliance costs'!BY118+'Appliance costs'!BY119+'Appliance costs'!BY121","v":-1656.9446860206299},{"$f":"'Appliance costs'!BZ117+'Appliance costs'!BZ118+'Appliance costs'!BZ119+'Appliance costs'!BZ121","v":-1651.6290985534254},{"$f":"'Appliance costs'!CA117+'Appliance costs'!CA118+'Appliance costs'!CA119+'Appliance costs'!CA121","v":-1648.5821122008663},{"$f":"'Appliance costs'!CB117+'Appliance costs'!CB118+'Appliance costs'!CB119+'Appliance costs'!CB121","v":-1645.5408197515069},{"$f":"'Appliance costs'!CC117+'Appliance costs'!CC118+'Appliance costs'!CC119+'Appliance costs'!CC121","v":-1687.9969343029672}]
[]
["Cooking plus hot water and space heating"]
["High income",null,{"$f":"'Appliance costs'!B103+'Appliance costs'!B104+'Appliance costs'!B106+'Appliance costs'!B107","v":-2915.030383623834},{"$f":"'Appliance costs'!C103+'Appliance costs'!C104+'Appliance costs'!C106+'Appliance costs'!C107","v":-3687.7509076082665},{"$f":"'Appliance costs'!D103+'Appliance costs'!D104+'Appliance costs'!D106+'Appliance costs'!D107","v":-2889.3109879506592},{"$f":"'Appliance costs'!E103+'Appliance costs'!E104+'Appliance costs'!E106+'Appliance costs'!E107","v":-2648.5853500392068},{"$f":"'Appliance costs'!F103+'Appliance costs'!F104+'Appliance costs'!F106+'Appliance costs'!F107","v":-4504.8507355688025},{"$f":"'Appliance costs'!G103+'Appliance costs'!G104+'Appliance costs'!G106+'Appliance costs'!G107","v":-4506.5900978467462},{"$f":"'Appliance costs'!H103+'Appliance costs'!H104+'Appliance costs'!H106+'Appliance costs'!H107","v":-3827.3879392477597},{"$f":"'Appliance costs'!I103+'Appliance costs'!I104+'Appliance costs'!I106+'Appliance costs'!I107","v":-4114.1605304763452},{"$f":"'Appliance costs'!J103+'Appliance costs'!J104+'Appliance costs'!J106+'Appliance costs'!J107","v":-2933.5439174381304},{"$f":"'Appliance costs'!K103+'Appliance costs'!K104+'Appliance costs'!K106+'Appliance costs'!K107","v":-3477.7891994297661},{"$f":"'Appliance costs'!L103+'Appliance costs'!L104+'Appliance costs'!L106+'Appliance costs'!L107","v":-4508.9829259233411},{"$f":"'Appliance costs'!M103+'Appliance costs'!M104+'Appliance costs'!M106+'Appliance costs'!M107","v":-4618.2578289871681},{"$f":"'Appliance costs'!N103+'Appliance costs'!N104+'Appliance costs'!N106+'Appliance costs'!N107","v":-3767.9855273199023},{"$f":"'Appliance costs'!O103+'Appliance costs'!O104+'Appliance costs'!O106+'Appliance costs'!O107","v":-3087.7518058863407},{"$f":"'Appliance costs'!P103+'Appliance costs'!P104+'Appliance costs'!P106+'Appliance costs'!P107","v":-2052.3386933259649},{"$f":"'Appliance costs'!Q103+'Appliance costs'!Q104+'Appliance costs'!Q106+'Appliance costs'!Q107","v":-1470.786369885778},{"$f":"'Appliance costs'!R103+'Appliance costs'!R104+'Appliance costs'!R106+'Appliance costs'!R107","v":-545.0419600221901},{"$f":"'Appliance costs'!S103+'Appliance costs'!S104+'Appliance costs'!S106+'Appliance costs'!S107","v":-32.21131666042902},{"$f":"'Appliance costs'!T103+'Appliance costs'!T104+'Appliance costs'!T106+'Appliance costs'!T107","v":543.45876873448287},{"$f":"'Appliance costs'!U103+'Appliance costs'!U104+'Appliance costs'!U106+'Appliance costs'!U107","v":926.96556999365339},{"$f":"'Appliance costs'!V103+'Appliance costs'!V104+'Appliance costs'!V106+'Appliance costs'!V107","v":1223.6857432398635},{"$f":"'Appliance costs'!W103+'Appliance costs'!W104+'Appliance costs'!W106+'Appliance costs'!W107","v":1924.0313981484092},{"$f":"'Appliance costs'!X103+'Appliance costs'!X104+'Appliance costs'!X106+'Appliance costs'!X107","v":2631.0230271061664},{"$f":"'Appliance costs'!Y103+'Appliance costs'!Y104+'Appliance costs'!Y106+'Appliance costs'!Y107","v":3103.6044669251119},{"$f":"'Appliance costs'!Z103+'Appliance costs'!Z104+'Appliance costs'!Z106+'Appliance costs'!Z107","v":3574.1974398121392},{"$f":"'Appliance costs'!AA103+'Appliance costs'!AA104+'Appliance costs'!AA106+'Appliance costs'!AA107","v":3947.0751389964385},{"$f":"'Appliance costs'!AB103+'Appliance costs'!AB104+'Appliance costs'!AB106+'Appliance costs'!AB107","v":4304.548738671223},{"$f":"'Appliance costs'!AC103+'Appliance costs'!AC104+'Appliance costs'!AC106+'Appliance costs'!AC107","v":4631.2956133010666},{"$f":"'Appliance costs'!AD103+'Appliance costs'!AD104+'Appliance costs'!AD106+'Appliance costs'!AD107","v":4972.6354225503155},{"$f":"'Appliance costs'!AE103+'Appliance costs'!AE104+'Appliance costs'!AE106+'Appliance costs'!AE107","v":5422.197678301538},{"$f":"'Appliance costs'!AF103+'Appliance costs'!AF104+'Appliance costs'!AF106+'Appliance costs'!AF107","v":5740.1742326696512},{"$f":"'Appliance costs'!AG103+'Appliance costs'!AG104+'Appliance costs'!AG106+'Appliance costs'!AG107","v":6193.5676509501382},{"$f":"'Appliance costs'!AH103+'Appliance costs'!AH104+'Appliance costs'!AH106+'Appliance costs'!AH107","v":6595.7488759038533},{"$f":"'Appliance costs'!AI103+'Appliance costs'!AI104+'Appliance costs'!AI106+'Appliance costs'!AI107","v":6959.8136690846877},{"$f":"'Appliance costs'!AJ103+'Appliance costs'!AJ104+'Appliance costs'!AJ106+'Appliance costs'!AJ107","v":7346.1399607342501},{"$f":"'Appliance costs'!AK103+'Appliance costs'!AK104+'Appliance costs'!AK106+'Appliance costs'!AK107","v":6022.557779543773},{"$f":"'Appliance costs'!AL103+'Appliance costs'!AL104+'Appliance costs'!AL106+'Appliance costs'!AL107","v":5840.9966808410545},{"$f":"'Appliance costs'!AM103+'Appliance costs'!AM104+'Appliance costs'!AM106+'Appliance costs'!AM107","v":6202.4604459034081},{"$f":"'Appliance costs'!AN103+'Appliance costs'!AN104+'Appliance costs'!AN106+'Appliance costs'!AN107","v":6648.6313493214384},{"$f":"'Appliance costs'!AO103+'Appliance costs'!AO104+'Appliance costs'!AO106+'Appliance costs'!AO107","v":7063.2082152700341},{"$f":"'Appliance costs'!AP103+'Appliance costs'!AP104+'Appliance costs'!AP106+'Appliance costs'!AP107","v":7507.1247234636558},{"$f":"'Appliance costs'!AQ103+'Appliance costs'!AQ104+'Appliance costs'!AQ106+'Appliance costs'!AQ107","v":7995.9868245815378},{"$f":"'Appliance costs'!AR103+'Appliance costs'!AR104+'Appliance costs'!AR106+'Appliance costs'!AR107","v":8544.9482655117154},{"$f":"'Appliance costs'!AS103+'Appliance costs'!AS104+'Appliance costs'!AS106+'Appliance costs'!AS107","v":9160.6738996591121},{"$f":"'Appliance costs'!AT103+'Appliance costs'!AT104+'Appliance costs'!AT106+'Appliance costs'!AT107","v":9871.0283826469404},{"$f":"'Appliance costs'!AU103+'Appliance costs'!AU104+'Appliance costs'!AU106+'Appliance costs'!AU107","v":10683.389291344478},{"$f":"'Appliance costs'!AV103+'Appliance costs'!AV104+'Appliance costs'!AV106+'Appliance costs'!AV107","v":11618.123345667209},{"$f":"'Appliance costs'!AW103+'Appliance costs'!AW104+'Appliance costs'!AW106+'Appliance costs'!AW107","v":12685.970946366175},{"$f":"'Appliance costs'!AX103+'Appliance costs'!AX104+'Appliance costs'!AX106+'Appliance costs'!AX107","v":13917.140674086628},{"$f":"'Appliance costs'!AY103+'Appliance costs'!AY104+'Appliance costs'!AY106+'Appliance costs'!AY107","v":15327.913970606598},{"$f":"'Appliance costs'!AZ103+'Appliance costs'!AZ104+'Appliance costs'!AZ106+'Appliance costs'!AZ107","v":16964.031606990236},{"$f":"'Appliance costs'!BA103+'Appliance costs'!BA104+'Appliance costs'!BA106+'Appliance costs'!BA107","v":18879.615626309154},{"$f":"'Appliance costs'!BB103+'Appliance costs'!BB104+'Appliance costs'!BB106+'Appliance costs'!BB107","v":21164.731816507181},{"$f":"'Appliance costs'!BC103+'Appliance costs'!BC104+'Appliance costs'!BC106+'Appliance costs'!BC107","v":23379.660075333963},{"$f":"'Appliance costs'!BD103+'Appliance costs'!BD104+'Appliance costs'!BD106+'Appliance costs'!BD107","v":25407.620859981984},{"$f":"'Appliance costs'!BE103+'Appliance costs'!BE104+'Appliance costs'!BE106+'Appliance costs'!BE107","v":27481.56947972277},{"$f":"'Appliance costs'!BF103+'Appliance costs'!BF104+'Appliance costs'!BF106+'Appliance costs'!BF107","v":29824.869459438785},{"$f":"'Appliance costs'!BG103+'Appliance costs'!BG104+'Appliance costs'!BG106+'Appliance costs'!BG107","v":32608.887556206726},{"$f":"'Appliance costs'!BH103+'Appliance costs'!BH104+'Appliance costs'!BH106+'Appliance costs'!BH107","v":36640.514064909374},{"$f":"'Appliance costs'!BI103+'Appliance costs'!BI104+'Appliance costs'!BI106+'Appliance costs'!BI107","v":42557.251109055003},{"$f":"'Appliance costs'!BJ103+'Appliance costs'!BJ104+'Appliance costs'!BJ106+'Appliance costs'!BJ107","v":51307.119030251153},{"$f":"'Appliance costs'!BK103+'Appliance costs'!BK104+'Appliance costs'!BK106+'Appliance costs'!BK107","v":1163.8277377321795},{"$f":"'Appliance costs'!BL103+'Appliance costs'!BL104+'Appliance costs'!BL106+'Appliance costs'!BL107","v":1174.6484877601972},{"$f":"'Appliance costs'!BM103+'Appliance costs'!BM104+'Appliance costs'!BM106+'Appliance costs'!BM107","v":1181.4339718970093},{"$f":"'Appliance costs'!BN103+'Appliance costs'!BN104+'Appliance costs'!BN106+'Appliance costs'!BN107","v":1196.2508907621529},{"$f":"'Appliance costs'!BO103+'Appliance costs'!BO104+'Appliance costs'!BO106+'Appliance costs'!BO107","v":1207.0326970078033},{"$f":"'Appliance costs'!BP103+'Appliance costs'!BP104+'Appliance costs'!BP106+'Appliance costs'!BP107","v":1217.8016744797503},{"$f":"'Appliance costs'!BQ103+'Appliance costs'!BQ104+'Appliance costs'!BQ106+'Appliance costs'!BQ107","v":1224.5356907255484},{"$f":"'Appliance costs'!BR103+'Appliance costs'!BR104+'Appliance costs'!BR106+'Appliance costs'!BR107","v":1239.301444492243},{"$f":"'Appliance costs'!BS103+'Appliance costs'!BS104+'Appliance costs'!BS106+'Appliance costs'!BS107","v":1250.0323865712833},{"$f":"'Appliance costs'!BT103+'Appliance costs'!BT104+'Appliance costs'!BT106+'Appliance costs'!BT107","v":1260.750798959423},{"$f":"'Appliance costs'!BU103+'Appliance costs'!BU104+'Appliance costs'!BU106+'Appliance costs'!BU107","v":1267.4345473667802},{"$f":"'Appliance costs'!BV103+'Appliance costs'!BV104+'Appliance costs'!BV106+'Appliance costs'!BV107","v":1282.150328714509},{"$f":"'Appliance costs'!BW103+'Appliance costs'!BW104+'Appliance costs'!BW106+'Appliance costs'!BW107","v":1292.8315919796294},{"$f":"'Appliance costs'!BX103+'Appliance costs'!BX104+'Appliance costs'!BX106+'Appliance costs'!BX107","v":1303.500617355852},{"$f":"'Appliance costs'!BY103+'Appliance costs'!BY104+'Appliance costs'!BY106+'Appliance costs'!BY107","v":1310.1352687615761},{"$f":"'Appliance costs'!BZ103+'Appliance costs'!BZ104+'Appliance costs'!BZ106+'Appliance costs'!BZ107","v":1324.8022413374867},{"$f":"'Appliance costs'!CA103+'Appliance costs'!CA104+'Appliance costs'!CA106+'Appliance costs'!CA107","v":1335.4349822913048},{"$f":"'Appliance costs'!CB103+'Appliance costs'!CB104+'Appliance costs'!CB106+'Appliance costs'!CB107","v":1346.0557700585484},{"$f":"'Appliance costs'!CC103+'Appliance costs'!CC104+'Appliance costs'!CC106+'Appliance costs'!CC107","v":1179.1206613462402}]
["Medium income",null,{"$f":"'Appliance costs'!B110+'Appliance costs'!B111+'Appliance costs'!B113+'Appliance costs'!B114","v":-3285.9036043686101},{"$f":"'Appliance costs'!C110+'Appliance costs'!C111+'Appliance costs'!C113+'Appliance costs'!C114","v":-3927.6434227185337},{"$f":"'Appliance costs'!D110+'Appliance costs'!D111+'Appliance costs'!D113+'Appliance costs'!D114","v":-2950.5253280099196},{"$f":"'Appliance costs'!E110+'Appliance costs'!E111+'Appliance costs'!E113+'Appliance costs'!E114","v":-2750.6041115410044},{"$f":"'Appliance costs'!F110+'Appliance costs'!F111+'Appliance costs'!F113+'Appliance costs'!F114","v":-4519.3594563864735},{"$f":"'Appliance costs'!G110+'Appliance costs'!G111+'Appliance costs'!G113+'Appliance costs'!G114","v":-4520.8039864560733},{"$f":"'Appliance costs'!H110+'Appliance costs'!H111+'Appliance costs'!H113+'Appliance costs'!H114","v":-3956.7306166500298},{"$f":"'Appliance costs'!I110+'Appliance costs'!I111+'Appliance costs'!I113+'Appliance costs'!I114","v":-4270.5041138614861},{"$f":"'Appliance costs'!J110+'Appliance costs'!J111+'Appliance costs'!J113+'Appliance costs'!J114","v":-3234.4987686106338},{"$f":"'Appliance costs'!K110+'Appliance costs'!K111+'Appliance costs'!K113+'Appliance costs'!K114","v":-3675.5551777954561},{"$f":"'Appliance costs'!L110+'Appliance costs'!L111+'Appliance costs'!L113+'Appliance costs'!L114","v":-4521.074066316085},{"$f":"'Appliance costs'!M110+'Appliance costs'!M111+'Appliance costs'!M113+'Appliance costs'!M114","v":-4600.9992394660003},{"$f":"'Appliance costs'!N110+'Appliance costs'!N111+'Appliance costs'!N113+'Appliance costs'!N114","v":-3884.080277412279},{"$f":"'Appliance costs'!O110+'Appliance costs'!O111+'Appliance costs'!O113+'Appliance costs'!O114","v":-3308.4312133635167},{"$f":"'Appliance costs'!P110+'Appliance costs'!P111+'Appliance costs'!P113+'Appliance costs'!P114","v":-2437.8613636464825},{"$f":"'Appliance costs'!Q110+'Appliance costs'!Q111+'Appliance costs'!Q113+'Appliance costs'!Q114","v":-1944.2735380413742},{"$f":"'Appliance costs'!R110+'Appliance costs'!R111+'Appliance costs'!R113+'Appliance costs'!R114","v":-1164.8892836369409},{"$f":"'Appliance costs'!S110+'Appliance costs'!S111+'Appliance costs'!S113+'Appliance costs'!S114","v":-728.48026165240867},{"$f":"'Appliance costs'!T110+'Appliance costs'!T111+'Appliance costs'!T113+'Appliance costs'!T114","v":-239.93598630781867},{"$f":"'Appliance costs'!U110+'Appliance costs'!U111+'Appliance costs'!U113+'Appliance costs'!U114","v":88.965551348473355},{"$f":"'Appliance costs'!V110+'Appliance costs'!V111+'Appliance costs'!V113+'Appliance costs'!V114","v":345.73930142309655},{"$f":"'Appliance costs'!W110+'Appliance costs'!W111+'Appliance costs'!W113+'Appliance costs'!W114","v":937.66987632859355},{"$f":"'Appliance costs'!X110+'Appliance costs'!X111+'Appliance costs'!X113+'Appliance costs'!X114","v":1535.0684050346601},{"$f":"'Appliance costs'!Y110+'Appliance costs'!Y111+'Appliance costs'!Y113+'Appliance costs'!Y114","v":1937.7394292293029},{"$f":"'Appliance costs'!Z110+'Appliance costs'!Z111+'Appliance costs'!Z113+'Appliance costs'!Z114","v":2338.7080687270554},{"$f":"'Appliance costs'!AA110+'Appliance costs'!AA111+'Appliance costs'!AA113+'Appliance costs'!AA114","v":2658.4740323675142},{"$f":"'Appliance costs'!AB110+'Appliance costs'!AB111+'Appliance costs'!AB113+'Appliance costs'!AB114","v":2965.396516388611},{"$f":"'Appliance costs'!AC110+'Appliance costs'!AC111+'Appliance costs'!AC113+'Appliance costs'!AC114","v":3246.7504233700715},{"$f":"'Appliance costs'!AD110+'Appliance costs'!AD111+'Appliance costs'!AD113+'Appliance costs'!AD114","v":3540.1737133044753},{"$f":"'Appliance costs'!AE110+'Appliance costs'!AE111+'Appliance costs'!AE113+'Appliance costs'!AE114","v":3923.4253910573166},{"$f":"'Appliance costs'!AF110+'Appliance costs'!AF111+'Appliance costs'!AF113+'Appliance costs'!AF114","v":4187.5030360867631},{"$f":"'Appliance costs'!AG110+'Appliance costs'!AG111+'Appliance costs'!AG113+'Appliance costs'!AG114","v":4564.0435845221409},{"$f":"'Appliance costs'!AH110+'Appliance costs'!AH111+'Appliance costs'!AH113+'Appliance costs'!AH114","v":4898.052709729157},{"$f":"'Appliance costs'!AI110+'Appliance costs'!AI111+'Appliance costs'!AI113+'Appliance costs'!AI114","v":5200.4063641121975},{"$f":"'Appliance costs'!AJ110+'Appliance costs'!AJ111+'Appliance costs'!AJ113+'Appliance costs'!AJ114","v":5521.248061118793},{"$f":"'Appliance costs'!AK110+'Appliance costs'!AK111+'Appliance costs'!AK113+'Appliance costs'!AK114","v":4422.0208992096232},{"$f":"'Appliance costs'!AL110+'Appliance costs'!AL111+'Appliance costs'!AL113+'Appliance costs'!AL114","v":4271.2354821223416},{"$f":"'Appliance costs'!AM110+'Appliance costs'!AM111+'Appliance costs'!AM113+'Appliance costs'!AM114","v":4571.4289980588592},{"$f":"'Appliance costs'!AN110+'Appliance costs'!AN111+'Appliance costs'!AN113+'Appliance costs'!AN114","v":4941.9712906798804},{"$f":"'Appliance costs'!AO110+'Appliance costs'!AO111+'Appliance costs'!AO113+'Appliance costs'!AO114","v":5286.2749223138344},{"$f":"'Appliance costs'!AP110+'Appliance costs'!AP111+'Appliance costs'!AP113+'Appliance costs'!AP114","v":5654.944953053754},{"$f":"'Appliance costs'!AQ110+'Appliance costs'!AQ111+'Appliance costs'!AQ113+'Appliance costs'!AQ114","v":6060.9420325047895},{"$f":"'Appliance costs'!AR110+'Appliance costs'!AR111+'Appliance costs'!AR113+'Appliance costs'!AR114","v":6516.8512577018946},{"$f":"'Appliance costs'!AS110+'Appliance costs'!AS111+'Appliance costs'!AS113+'Appliance costs'!AS114","v":7028.2077499219758},{"$f":"'Appliance costs'!AT110+'Appliance costs'!AT111+'Appliance costs'!AT113+'Appliance costs'!AT114","v":7618.1529406179179},{"$f":"'Appliance costs'!AU110+'Appliance costs'!AU111+'Appliance costs'!AU113+'Appliance costs'!AU114","v":8292.8138636823096},{"$f":"'Appliance costs'!AV110+'Appliance costs'!AV111+'Appliance costs'!AV113+'Appliance costs'!AV114","v":9069.1049593729967},{"$f":"'Appliance costs'!AW110+'Appliance costs'!AW111+'Appliance costs'!AW113+'Appliance costs'!AW114","v":9955.946066898392},{"$f":"'Appliance costs'!AX110+'Appliance costs'!AX111+'Appliance costs'!AX113+'Appliance costs'!AX114","v":10978.42523355913},{"$f":"'Appliance costs'!AY110+'Appliance costs'!AY111+'Appliance costs'!AY113+'Appliance costs'!AY114","v":12150.064100316973},{"$f":"'Appliance costs'!AZ110+'Appliance costs'!AZ111+'Appliance costs'!AZ113+'Appliance costs'!AZ114","v":13508.850106618387},{"$f":"'Appliance costs'!BA110+'Appliance costs'!BA111+'Appliance costs'!BA113+'Appliance costs'!BA114","v":15099.731288669798},{"$f":"'Appliance costs'!BB110+'Appliance costs'!BB111+'Appliance costs'!BB113+'Appliance costs'!BB114","v":16997.506749899425},{"$f":"'Appliance costs'!BC110+'Appliance costs'!BC111+'Appliance costs'!BC113+'Appliance costs'!BC114","v":18836.991549847935},{"$f":"'Appliance costs'!BD110+'Appliance costs'!BD111+'Appliance costs'!BD113+'Appliance costs'!BD114","v":20521.200969898247},{"$f":"'Appliance costs'!BE110+'Appliance costs'!BE111+'Appliance costs'!BE113+'Appliance costs'!BE114","v":22243.603014607415},{"$f":"'Appliance costs'!BF110+'Appliance costs'!BF111+'Appliance costs'!BF113+'Appliance costs'!BF114","v":24189.699768409486},{"$f":"'Appliance costs'!BG110+'Appliance costs'!BG111+'Appliance costs'!BG113+'Appliance costs'!BG114","v":26501.810308052347},{"$f":"'Appliance costs'!BH110+'Appliance costs'!BH111+'Appliance costs'!BH113+'Appliance costs'!BH114","v":29850.052244229653},{"$f":"'Appliance costs'!BI110+'Appliance costs'!BI111+'Appliance costs'!BI113+'Appliance costs'!BI114","v":34763.86731459367},{"$f":"'Appliance costs'!BJ110+'Appliance costs'!BJ111+'Appliance costs'!BJ113+'Appliance costs'!BJ114","v":42030.580797730523},{"$f":"'Appliance costs'!BK110+'Appliance costs'!BK111+'Appliance costs'!BK113+'Appliance costs'!BK114","v":386.87437771473037},{"$f":"'Appliance costs'!BL110+'Appliance costs'!BL111+'Appliance costs'!BL113+'Appliance costs'!BL114","v":395.86094652176075},{"$f":"'Appliance costs'!BM110+'Appliance costs'!BM111+'Appliance costs'!BM113+'Appliance costs'!BM114","v":401.49625090699942},{"$f":"'Appliance costs'!BN110+'Appliance costs'!BN111+'Appliance costs'!BN113+'Appliance costs'!BN114","v":413.80161426397831},{"$f":"'Appliance costs'!BO110+'Appliance costs'!BO111+'Appliance costs'!BO113+'Appliance costs'!BO114","v":422.75584049041458},{"$f":"'Appliance costs'!BP110+'Appliance costs'!BP111+'Appliance costs'!BP113+'Appliance costs'!BP114","v":431.69941249627686},{"$f":"'Appliance costs'!BQ110+'Appliance costs'!BQ111+'Appliance costs'!BQ113+'Appliance costs'!BQ114","v":437.29197310287259},{"$f":"'Appliance costs'!BR110+'Appliance costs'!BR111+'Appliance costs'!BR113+'Appliance costs'!BR114","v":449.55484414863963},{"$f":"'Appliance costs'!BS110+'Appliance costs'!BS111+'Appliance costs'!BS113+'Appliance costs'!BS114","v":458.46682798597544},{"$f":"'Appliance costs'!BT110+'Appliance costs'!BT111+'Appliance costs'!BT113+'Appliance costs'!BT114","v":467.36840598923186},{"$f":"'Appliance costs'!BU110+'Appliance costs'!BU111+'Appliance costs'!BU113+'Appliance costs'!BU114","v":472.91921945373792},{"$f":"'Appliance costs'!BV110+'Appliance costs'!BV111+'Appliance costs'!BV113+'Appliance costs'!BV114","v":485.14058870154145},{"$f":"'Appliance costs'!BW110+'Appliance costs'!BW111+'Appliance costs'!BW113+'Appliance costs'!BW114","v":494.01131457816359},{"$f":"'Appliance costs'!BX110+'Appliance costs'!BX111+'Appliance costs'!BX113+'Appliance costs'!BX114","v":502.87187696054139},{"$f":"'Appliance costs'!BY110+'Appliance costs'!BY111+'Appliance costs'!BY113+'Appliance costs'!BY114","v":508.38191565599323},{"$f":"'Appliance costs'!BZ110+'Appliance costs'!BZ111+'Appliance costs'!BZ113+'Appliance costs'!BZ114","v":520.56274950789452},{"$f":"'Appliance costs'!CA110+'Appliance costs'!CA111+'Appliance costs'!CA113+'Appliance costs'!CA114","v":529.39317789237771},{"$f":"'Appliance costs'!CB110+'Appliance costs'!CB111+'Appliance costs'!CB113+'Appliance costs'!CB114","v":538.21367922620971},{"$f":"'Appliance costs'!CC110+'Appliance costs'!CC111+'Appliance costs'!CC113+'Appliance costs'!CC114","v":399.57506019631114}]
["Low income",null,{"$f":"'Appliance costs'!B117+'Appliance costs'!B118+'Appliance costs'!B120+'Appliance costs'!B121","v":-3872.0596333040685},{"$f":"'Appliance costs'!C117+'Appliance costs'!C118+'Appliance costs'!C120+'Appliance costs'!C121","v":-4306.7876589780208},{"$f":"'Appliance costs'!D117+'Appliance costs'!D118+'Appliance costs'!D120+'Appliance costs'!D121","v":-3047.2730910621704},{"$f":"'Appliance costs'!E117+'Appliance costs'!E118+'Appliance costs'!E120+'Appliance costs'!E121","v":-2911.8422618682807},{"$f":"'Appliance costs'!F117+'Appliance costs'!F118+'Appliance costs'!F120+'Appliance costs'!F121","v":-4542.2901337816775},{"$f":"'Appliance costs'!G117+'Appliance costs'!G118+'Appliance costs'!G120+'Appliance costs'!G121","v":-4543.2686887773743},{"$f":"'Appliance costs'!H117+'Appliance costs'!H118+'Appliance costs'!H120+'Appliance costs'!H121","v":-4161.1535458810613},{"$f":"'Appliance costs'!I117+'Appliance costs'!I118+'Appliance costs'!I120+'Appliance costs'!I121","v":-4517.6013127440083},{"$f":"'Appliance costs'!J117+'Appliance costs'!J118+'Appliance costs'!J120+'Appliance costs'!J121","v":-3710.1505293332966},{"$f":"'Appliance costs'!K117+'Appliance costs'!K118+'Appliance costs'!K120+'Appliance costs'!K121","v":-3988.119455972721},{"$f":"'Appliance costs'!L117+'Appliance costs'!L118+'Appliance costs'!L120+'Appliance costs'!L121","v":-4540.1838171459785},{"$f":"'Appliance costs'!M117+'Appliance costs'!M118+'Appliance costs'!M120+'Appliance costs'!M121","v":-4573.7224620312772},{"$f":"'Appliance costs'!N117+'Appliance costs'!N118+'Appliance costs'!N120+'Appliance costs'!N121","v":-4067.5651824635165},{"$f":"'Appliance costs'!O117+'Appliance costs'!O118+'Appliance costs'!O120+'Appliance costs'!O121","v":-3657.209604251078},{"$f":"'Appliance costs'!P117+'Appliance costs'!P118+'Appliance costs'!P120+'Appliance costs'!P121","v":-3047.1704883276088},{"$f":"'Appliance costs'!Q117+'Appliance costs'!Q118+'Appliance costs'!Q120+'Appliance costs'!Q121","v":-2692.6083940351241},{"$f":"'Appliance costs'!R117+'Appliance costs'!R118+'Appliance costs'!R120+'Appliance costs'!R121","v":-2144.5427755409219},{"$f":"'Appliance costs'!S117+'Appliance costs'!S118+'Appliance costs'!S120+'Appliance costs'!S121","v":-1828.9162517408868},{"$f":"'Appliance costs'!T117+'Appliance costs'!T118+'Appliance costs'!T120+'Appliance costs'!T121","v":-1478.0721822357107},{"$f":"'Appliance costs'!U117+'Appliance costs'!U118+'Appliance costs'!U120+'Appliance costs'!U121","v":-1235.472924393963},{"$f":"'Appliance costs'!V117+'Appliance costs'!V118+'Appliance costs'!V120+'Appliance costs'!V121","v":-1041.8335163713539},{"$f":"'Appliance costs'!W117+'Appliance costs'!W118+'Appliance costs'!W120+'Appliance costs'!W121","v":-621.25031630109493},{"$f":"'Appliance costs'!X117+'Appliance costs'!X118+'Appliance costs'!X120+'Appliance costs'!X121","v":-197.0609945398046},{"$f":"'Appliance costs'!Y117+'Appliance costs'!Y118+'Appliance costs'!Y120+'Appliance costs'!Y121","v":95.118332461719774},{"$f":"'Appliance costs'!Z117+'Appliance costs'!Z118+'Appliance costs'!Z120+'Appliance costs'!Z121","v":386.04742072204158},{"$f":"'Appliance costs'!AA117+'Appliance costs'!AA118+'Appliance costs'!AA120+'Appliance costs'!AA121","v":621.87158901332464},{"$f":"'Appliance costs'!AB117+'Appliance costs'!AB118+'Appliance costs'!AB120+'Appliance costs'!AB121","v":848.89927461700336},{"$f":"'Appliance costs'!AC117+'Appliance costs'!AC118+'Appliance costs'!AC120+'Appliance costs'!AC121","v":1058.5107095889175},{"$f":"'Appliance costs'!AD117+'Appliance costs'!AD118+'Appliance costs'!AD120+'Appliance costs'!AD121","v":1276.2031160003851},{"$f":"'Appliance costs'!AE117+'Appliance costs'!AE118+'Appliance costs'!AE120+'Appliance costs'!AE121","v":1554.6525516342303},{"$f":"'Appliance costs'!AF117+'Appliance costs'!AF118+'Appliance costs'!AF120+'Appliance costs'!AF121","v":1733.5442924388813},{"$f":"'Appliance costs'!AG117+'Appliance costs'!AG118+'Appliance costs'!AG120+'Appliance costs'!AG121","v":1988.6207650635577},{"$f":"'Appliance costs'!AH117+'Appliance costs'!AH118+'Appliance costs'!AH120+'Appliance costs'!AH121","v":2214.8855586861255},{"$f":"'Appliance costs'!AI117+'Appliance costs'!AI118+'Appliance costs'!AI120+'Appliance costs'!AI121","v":2419.7062717957056},{"$f":"'Appliance costs'!AJ117+'Appliance costs'!AJ118+'Appliance costs'!AJ120+'Appliance costs'!AJ121","v":2637.0511731175425},{"$f":"'Appliance costs'!AK117+'Appliance costs'!AK118+'Appliance costs'!AK120+'Appliance costs'!AK121","v":1892.4116164001996},{"$f":"'Appliance costs'!AL117+'Appliance costs'!AL118+'Appliance costs'!AL120+'Appliance costs'!AL121","v":1790.2664092673078},{"$f":"'Appliance costs'!AM117+'Appliance costs'!AM118+'Appliance costs'!AM120+'Appliance costs'!AM121","v":1993.6237992431388},{"$f":"'Appliance costs'!AN117+'Appliance costs'!AN118+'Appliance costs'!AN120+'Appliance costs'!AN121","v":2244.6369274514327},{"$f":"'Appliance costs'!AO117+'Appliance costs'!AO118+'Appliance costs'!AO120+'Appliance costs'!AO121","v":2477.8754358510855},{"$f":"'Appliance costs'!AP117+'Appliance costs'!AP118+'Appliance costs'!AP120+'Appliance costs'!AP121","v":2727.6202545547449},{"$f":"'Appliance costs'!AQ117+'Appliance costs'!AQ118+'Appliance costs'!AQ120+'Appliance costs'!AQ121","v":3002.6511997015814},{"$f":"'Appliance costs'!AR117+'Appliance costs'!AR118+'Appliance costs'!AR120+'Appliance costs'!AR121","v":3311.4936802353477},{"$f":"'Appliance costs'!AS117+'Appliance costs'!AS118+'Appliance costs'!AS120+'Appliance costs'!AS121","v":3657.8973035136823},{"$f":"'Appliance costs'!AT117+'Appliance costs'!AT118+'Appliance costs'!AT120+'Appliance costs'!AT121","v":4057.5385610353496},{"$f":"'Appliance costs'!AU117+'Appliance costs'!AU118+'Appliance costs'!AU120+'Appliance costs'!AU121","v":4514.5680341905017},{"$f":"'Appliance costs'!AV117+'Appliance costs'!AV118+'Appliance costs'!AV120+'Appliance costs'!AV121","v":5040.4439199125645},{"$f":"'Appliance costs'!AW117+'Appliance costs'!AW118+'Appliance costs'!AW120+'Appliance costs'!AW121","v":5641.2087045449462},{"$f":"'Appliance costs'!AX117+'Appliance costs'!AX118+'Appliance costs'!AX120+'Appliance costs'!AX121","v":6333.8575580290471},{"$f":"'Appliance costs'!AY117+'Appliance costs'!AY118+'Appliance costs'!AY120+'Appliance costs'!AY121","v":7127.5503238264992},{"$f":"'Appliance costs'!AZ117+'Appliance costs'!AZ118+'Appliance costs'!AZ120+'Appliance costs'!AZ121","v":8048.0204909288832},{"$f":"'Appliance costs'!BA117+'Appliance costs'!BA118+'Appliance costs'!BA120+'Appliance costs'!BA121","v":9125.7168027041662},{"$f":"'Appliance costs'!BB117+'Appliance costs'!BB118+'Appliance costs'!BB120+'Appliance costs'!BB121","v":10411.309742151427},{"$f":"'Appliance costs'!BC117+'Appliance costs'!BC118+'Appliance costs'!BC120+'Appliance costs'!BC121","v":11657.415363889268},{"$f":"'Appliance costs'!BD117+'Appliance costs'!BD118+'Appliance costs'!BD120+'Appliance costs'!BD121","v":12798.334183423556},{"$f":"'Appliance costs'!BE117+'Appliance costs'!BE118+'Appliance costs'!BE120+'Appliance costs'!BE121","v":13965.125488719976},{"$f":"'Appliance costs'!BF117+'Appliance costs'!BF118+'Appliance costs'!BF120+'Appliance costs'!BF121","v":15283.452286215883},{"$f":"'Appliance costs'!BG117+'Appliance costs'!BG118+'Appliance costs'!BG120+'Appliance costs'!BG121","v":16849.724506355418},{"$f":"'Appliance costs'!BH117+'Appliance costs'!BH118+'Appliance costs'!BH120+'Appliance costs'!BH121","v":19117.89388711123},{"$f":"'Appliance costs'!BI117+'Appliance costs'!BI118+'Appliance costs'!BI120+'Appliance costs'!BI121","v":22446.61537670012},{"$f":"'Appliance costs'!BJ117+'Appliance costs'!BJ118+'Appliance costs'!BJ120+'Appliance costs'!BJ121","v":27369.239647989805},{"$f":"'Appliance costs'!BK117+'Appliance costs'!BK118+'Appliance costs'!BK120+'Appliance costs'!BK121","v":-841.08135136524447},{"$f":"'Appliance costs'!BL117+'Appliance costs'!BL118+'Appliance costs'!BL120+'Appliance costs'!BL121","v":-834.99366099080544},{"$f":"'Appliance costs'!BM117+'Appliance costs'!BM118+'Appliance costs'!BM120+'Appliance costs'!BM121","v":-831.17618749233077},{"$f":"'Appliance costs'!BN117+'Appliance costs'!BN118+'Appliance costs'!BN120+'Appliance costs'!BN121","v":-822.84027601478715},{"$f":"'Appliance costs'!BO117+'Appliance costs'!BO118+'Appliance costs'!BO120+'Appliance costs'!BO121","v":-816.77449518344383},{"$f":"'Appliance costs'!BP117+'Appliance costs'!BP118+'Appliance costs'!BP120+'Appliance costs'!BP121","v":-810.71593174479312},{"$f":"'Appliance costs'!BQ117+'Appliance costs'!BQ118+'Appliance costs'!BQ120+'Appliance costs'!BQ121","v":-806.92741377933669},{"$f":"'Appliance costs'!BR117+'Appliance costs'!BR118+'Appliance costs'!BR120+'Appliance costs'!BR121","v":-798.62028748549392},{"$f":"'Appliance costs'!BS117+'Appliance costs'!BS118+'Appliance costs'!BS120+'Appliance costs'!BS121","v":-792.58312253536678},{"$f":"'Appliance costs'!BT117+'Appliance costs'!BT118+'Appliance costs'!BT120+'Appliance costs'!BT121","v":-786.55300671570626},{"$f":"'Appliance costs'!BU117+'Appliance costs'!BU118+'Appliance costs'!BU120+'Appliance costs'!BU121","v":-782.79276914074273},{"$f":"'Appliance costs'!BV117+'Appliance costs'!BV118+'Appliance costs'!BV120+'Appliance costs'!BV121","v":-774.51375703613257},{"$f":"'Appliance costs'!BW117+'Appliance costs'!BW118+'Appliance costs'!BW120+'Appliance costs'!BW121","v":-768.50454109476459},{"$f":"'Appliance costs'!BX117+'Appliance costs'!BX118+'Appliance costs'!BX120+'Appliance costs'!BX121","v":-762.50221011777035},{"$f":"'Appliance costs'!BY117+'Appliance costs'!BY118+'Appliance costs'!BY120+'Appliance costs'!BY121","v":-758.76959422739299},{"$f":"'Appliance costs'!BZ117+'Appliance costs'!BZ118+'Appliance costs'!BZ120+'Appliance costs'!BZ121","v":-750.51804165096905},{"$f":"'Appliance costs'!CA117+'Appliance costs'!CA118+'Appliance costs'!CA120+'Appliance costs'!CA121","v":-744.53612407678406},{"$f":"'Appliance costs'!CB117+'Appliance costs'!CB118+'Appliance costs'!CB120+'Appliance costs'!CB121","v":-738.56093129511896},{"$f":"'Appliance costs'!CC117+'Appliance costs'!CC118+'Appliance costs'!CC120+'Appliance costs'!CC121","v":-832.47764241334312}]
[]
[]
["LGA","2021 Weights",2021,{"$f":"C23+1","v":2022},2023,2024,2025,2026,2027,2028,2029,2030,2031,2032,2033,2034,2035,2036,2037,2038,2039,2040,2041,2042,2043,2044,2045,2046,2047,2048,2049,2050,2051,2052,2053,2054,2055,2056,2057,2058,2059,2060,2061,2062,2063,2064,2065,2066,2067,2068,2069,2070,2071,2072,2073,2074,2075,2076,2077,2078,2079,2080,2081,2082,2083,2084,{"$f":"BN23+1","v":2085},2086,2087,2088,2089,2090,2091,2092,2093,2094,2095,2096,2097,2098,2099,2100]
["Bass Coast (S)",{"$f":"Customers!K140","v":3653},{"$f":"IF(Control!$B46=\"L\",'RES S curve-connect'!C238,IF(Control!$B46=\"M\",'RES S curve-connect'!C216,'RES S curve-connect'!C194))","v":-2698.4617906577619},{"$f":"IF(Control!$B46=\"L\",'RES S curve-connect'!D238,IF(Control!$B46=\"M\",'RES S curve-connect'!D216,'RES S curve-connect'!D194))","v":-2945.3023837985406},{"$f":"IF(Control!$B46=\"L\",'RES S curve-connect'!E238,IF(Control!$B46=\"M\",'RES S curve-connect'!E216,'RES S curve-connect'!E194))","v":-2358.1931894212457},{"$f":"IF(Control!$B46=\"L\",'RES S curve-connect'!F238,IF(Control!$B46=\"M\",'RES S curve-connect'!F216,'RES S curve-connect'!F194))","v":-2290.5289730657073},{"$f":"IF(Control!$B46=\"L\",'RES S curve-connect'!G238,IF(Control!$B46=\"M\",'RES S curve-connect'!G216,'RES S curve-connect'!G194))","v":-2895.2127511836306},{"$f":"IF(Control!$B46=\"L\",'RES S curve-connect'!H238,IF(Control!$B46=\"M\",'RES S curve-connect'!H216,'RES S curve-connect'!H194))","v":-2941.5709302925511},{"$f":"IF(Control!$B46=\"L\",'RES S curve-connect'!I238,IF(Control!$B46=\"M\",'RES S curve-connect'!I216,'RES S curve-connect'!I194))","v":-2742.5940556371361},{"$f":"IF(Control!$B46=\"L\",'RES S curve-connect'!J238,IF(Control!$B46=\"M\",'RES S curve-connect'!J216,'RES S curve-connect'!J194))","v":-3070.0668616207195},{"$f":"IF(Control!$B46=\"L\",'RES S curve-connect'!K238,IF(Control!$B46=\"M\",'RES S curve-connect'!K216,'RES S curve-connect'!K194))","v":-2609.376888855254},{"$f":"IF(Control!$B46=\"L\",'RES S curve-connect'!L238,IF(Control!$B46=\"M\",'RES S curve-connect'!L216,'RES S curve-connect'!L194))","v":-2761.3081355629961},{"$f":"IF(Control!$B46=\"L\",'RES S curve-connect'!M238,IF(Control!$B46=\"M\",'RES S curve-connect'!M216,'RES S curve-connect'!M194))","v":-3026.3953048058174},{"$f":"IF(Control!$B46=\"L\",'RES S curve-connect'!N238,IF(Control!$B46=\"M\",'RES S curve-connect'!N216,'RES S curve-connect'!N194))","v":-3037.5465906711838},{"$f":"IF(Control!$B46=\"L\",'RES S curve-connect'!O238,IF(Control!$B46=\"M\",'RES S curve-connect'!O216,'RES S curve-connect'!O194))","v":-2757.7038502887453},{"$f":"IF(Control!$B46=\"L\",'RES S curve-connect'!P238,IF(Control!$B46=\"M\",'RES S curve-connect'!P216,'RES S curve-connect'!P194))","v":-2534.4960615318414},{"$f":"IF(Control!$B46=\"L\",'RES S curve-connect'!Q238,IF(Control!$B46=\"M\",'RES S curve-connect'!Q216,'RES S curve-connect'!Q194))","v":-2205.5244915027724},{"$f":"IF(Control!$B46=\"L\",'RES S curve-connect'!R238,IF(Control!$B46=\"M\",'RES S curve-connect'!R216,'RES S curve-connect'!R194))","v":-2012.7102822718489},{"$f":"IF(Control!$B46=\"L\",'RES S curve-connect'!S238,IF(Control!$B46=\"M\",'RES S curve-connect'!S216,'RES S curve-connect'!S194))","v":-1710.3966975990552},{"$f":"IF(Control!$B46=\"L\",'RES S curve-connect'!T238,IF(Control!$B46=\"M\",'RES S curve-connect'!T216,'RES S curve-connect'!T194))","v":-1549.6252228170242},{"$f":"IF(Control!$B46=\"L\",'RES S curve-connect'!U238,IF(Control!$B46=\"M\",'RES S curve-connect'!U216,'RES S curve-connect'!U194))","v":-1360.9059675044741},{"$f":"IF(Control!$B46=\"L\",'RES S curve-connect'!V238,IF(Control!$B46=\"M\",'RES S curve-connect'!V216,'RES S curve-connect'!V194))","v":-1224.7885527924948},{"$f":"IF(Control!$B46=\"L\",'RES S curve-connect'!W238,IF(Control!$B46=\"M\",'RES S curve-connect'!W216,'RES S curve-connect'!W194))","v":-1115.3564750656781},{"$f":"IF(Control!$B46=\"L\",'RES S curve-connect'!X238,IF(Control!$B46=\"M\",'RES S curve-connect'!X216,'RES S curve-connect'!X194))","v":-892.00058175079528},{"$f":"IF(Control!$B46=\"L\",'RES S curve-connect'!Y238,IF(Control!$B46=\"M\",'RES S curve-connect'!Y216,'RES S curve-connect'!Y194))","v":-665.15576256936686},{"$f":"IF(Control!$B46=\"L\",'RES S curve-connect'!Z238,IF(Control!$B46=\"M\",'RES S curve-connect'!Z216,'RES S curve-connect'!Z194))","v":-506.13875549460181},{"$f":"IF(Control!$B46=\"L\",'RES S curve-connect'!AA238,IF(Control!$B46=\"M\",'RES S curve-connect'!AA216,'RES S curve-connect'!AA194))","v":-345.90672865357556},{"$f":"IF(Control!$B46=\"L\",'RES S curve-connect'!AB238,IF(Control!$B46=\"M\",'RES S curve-connect'!AB216,'RES S curve-connect'!AB194))","v":-214.47033434023365},{"$f":"IF(Control!$B46=\"L\",'RES S curve-connect'!AC238,IF(Control!$B46=\"M\",'RES S curve-connect'!AC216,'RES S curve-connect'!AC194))","v":-86.541730439195135},{"$f":"IF(Control!$B46=\"L\",'RES S curve-connect'!AD238,IF(Control!$B46=\"M\",'RES S curve-connect'!AD216,'RES S curve-connect'!AD194))","v":32.003366567222599},{"$f":"IF(Control!$B46=\"L\",'RES S curve-connect'!AE238,IF(Control!$B46=\"M\",'RES S curve-connect'!AE216,'RES S curve-connect'!AE194))","v":157.5685961335551},{"$f":"IF(Control!$B46=\"L\",'RES S curve-connect'!AF238,IF(Control!$B46=\"M\",'RES S curve-connect'!AF216,'RES S curve-connect'!AF194))","v":313.37334810318089},{"$f":"IF(Control!$B46=\"L\",'RES S curve-connect'!AG238,IF(Control!$B46=\"M\",'RES S curve-connect'!AG216,'RES S curve-connect'!AG194))","v":411.25392992703109},{"$f":"IF(Control!$B46=\"L\",'RES S curve-connect'!AH238,IF(Control!$B46=\"M\",'RES S curve-connect'!AH216,'RES S curve-connect'!AH194))","v":545.3844129050907},{"$f":"IF(Control!$B46=\"L\",'RES S curve-connect'!AI238,IF(Control!$B46=\"M\",'RES S curve-connect'!AI216,'RES S curve-connect'!AI194))","v":669.23847477494508},{"$f":"IF(Control!$B46=\"L\",'RES S curve-connect'!AJ238,IF(Control!$B46=\"M\",'RES S curve-connect'!AJ216,'RES S curve-connect'!AJ194))","v":780.33175866708893},{"$f":"IF(Control!$B46=\"L\",'RES S curve-connect'!AK238,IF(Control!$B46=\"M\",'RES S curve-connect'!AK216,'RES S curve-connect'!AK194))","v":898.38969209996026},{"$f":"IF(Control!$B46=\"L\",'RES S curve-connect'!AL238,IF(Control!$B46=\"M\",'RES S curve-connect'!AL216,'RES S curve-connect'!AL194))","v":480.90132578617431},{"$f":"IF(Control!$B46=\"L\",'RES S curve-connect'!AM238,IF(Control!$B46=\"M\",'RES S curve-connect'!AM216,'RES S curve-connect'!AM194))","v":431.174933154001},{"$f":"IF(Control!$B46=\"L\",'RES S curve-connect'!AN238,IF(Control!$B46=\"M\",'RES S curve-connect'!AN216,'RES S curve-connect'!AN194))","v":545.45045339488684},{"$f":"IF(Control!$B46=\"L\",'RES S curve-connect'!AO238,IF(Control!$B46=\"M\",'RES S curve-connect'!AO216,'RES S curve-connect'!AO194))","v":682.85159181890754},{"$f":"IF(Control!$B46=\"L\",'RES S curve-connect'!AP238,IF(Control!$B46=\"M\",'RES S curve-connect'!AP216,'RES S curve-connect'!AP194))","v":808.38603241388944},{"$f":"IF(Control!$B46=\"L\",'RES S curve-connect'!AQ238,IF(Control!$B46=\"M\",'RES S curve-connect'!AQ216,'RES S curve-connect'!AQ194))","v":944.96226774091974},{"$f":"IF(Control!$B46=\"L\",'RES S curve-connect'!AR238,IF(Control!$B46=\"M\",'RES S curve-connect'!AR216,'RES S curve-connect'!AR194))","v":1094.0965213585725},{"$f":"IF(Control!$B46=\"L\",'RES S curve-connect'!AS238,IF(Control!$B46=\"M\",'RES S curve-connect'!AS216,'RES S curve-connect'!AS194))","v":1261.2342803202459},{"$f":"IF(Control!$B46=\"L\",'RES S curve-connect'!AT238,IF(Control!$B46=\"M\",'RES S curve-connect'!AT216,'RES S curve-connect'!AT194))","v":1447.239287584403},{"$f":"IF(Control!$B46=\"L\",'RES S curve-connect'!AU238,IF(Control!$B46=\"M\",'RES S curve-connect'!AU216,'RES S curve-connect'!AU194))","v":1663.5819548769664},{"$f":"IF(Control!$B46=\"L\",'RES S curve-connect'!AV238,IF(Control!$B46=\"M\",'RES S curve-connect'!AV216,'RES S curve-connect'!AV194))","v":1909.182291410817},{"$f":"IF(Control!$B46=\"L\",'RES S curve-connect'!AW238,IF(Control!$B46=\"M\",'RES S curve-connect'!AW216,'RES S curve-connect'!AW194))","v":2190.9259149757449},{"$f":"IF(Control!$B46=\"L\",'RES S curve-connect'!AX238,IF(Control!$B46=\"M\",'RES S curve-connect'!AX216,'RES S curve-connect'!AX194))","v":2510.604289228876},{"$f":"IF(Control!$B46=\"L\",'RES S curve-connect'!AY238,IF(Control!$B46=\"M\",'RES S curve-connect'!AY216,'RES S curve-connect'!AY194))","v":2880.0422060992114},{"$f":"IF(Control!$B46=\"L\",'RES S curve-connect'!AZ238,IF(Control!$B46=\"M\",'RES S curve-connect'!AZ216,'RES S curve-connect'!AZ194))","v":3300.4969478079447},{"$f":"IF(Control!$B46=\"L\",'RES S curve-connect'!BA238,IF(Control!$B46=\"M\",'RES S curve-connect'!BA216,'RES S curve-connect'!BA194))","v":3786.1441088048659},{"$f":"IF(Control!$B46=\"L\",'RES S curve-connect'!BB238,IF(Control!$B46=\"M\",'RES S curve-connect'!BB216,'RES S curve-connect'!BB194))","v":4351.2722728142999},{"$f":"IF(Control!$B46=\"L\",'RES S curve-connect'!BC238,IF(Control!$B46=\"M\",'RES S curve-connect'!BC216,'RES S curve-connect'!BC194))","v":5024.7863868982131},{"$f":"IF(Control!$B46=\"L\",'RES S curve-connect'!BD238,IF(Control!$B46=\"M\",'RES S curve-connect'!BD216,'RES S curve-connect'!BD194))","v":5668.6884231097547},{"$f":"IF(Control!$B46=\"L\",'RES S curve-connect'!BE238,IF(Control!$B46=\"M\",'RES S curve-connect'!BE216,'RES S curve-connect'!BE194))","v":6255.2701117282304},{"$f":"IF(Control!$B46=\"L\",'RES S curve-connect'!BF238,IF(Control!$B46=\"M\",'RES S curve-connect'!BF216,'RES S curve-connect'!BF194))","v":6856.0304217737985},{"$f":"IF(Control!$B46=\"L\",'RES S curve-connect'!BG238,IF(Control!$B46=\"M\",'RES S curve-connect'!BG216,'RES S curve-connect'!BG194))","v":7538.155155794836},{"$f":"IF(Control!$B46=\"L\",'RES S curve-connect'!BH238,IF(Control!$B46=\"M\",'RES S curve-connect'!BH216,'RES S curve-connect'!BH194))","v":8346.5629118869347},{"$f":"IF(Control!$B46=\"L\",'RES S curve-connect'!BI238,IF(Control!$B46=\"M\",'RES S curve-connect'!BI216,'RES S curve-connect'!BI194))","v":9519.3155037364522},{"$f":"IF(Control!$B46=\"L\",'RES S curve-connect'!BJ238,IF(Control!$B46=\"M\",'RES S curve-connect'!BJ216,'RES S curve-connect'!BJ194))","v":11230.143702582911},{"$f":"IF(Control!$B46=\"L\",'RES S curve-connect'!BK238,IF(Control!$B46=\"M\",'RES S curve-connect'!BK216,'RES S curve-connect'!BK194))","v":13745.056418154962},{"$f":"IF(Control!$B46=\"L\",'RES S curve-connect'!BL238,IF(Control!$B46=\"M\",'RES S curve-connect'!BL216,'RES S curve-connect'!BL194))","v":-1038.2155306819902},{"$f":"IF(Control!$B46=\"L\",'RES S curve-connect'!BM238,IF(Control!$B46=\"M\",'RES S curve-connect'!BM216,'RES S curve-connect'!BM194))","v":-1034.9445000634332},{"$f":"IF(Control!$B46=\"L\",'RES S curve-connect'!BN238,IF(Control!$B46=\"M\",'RES S curve-connect'!BN216,'RES S curve-connect'!BN194))","v":-1033.9416817288163},{"$f":"IF(Control!$B46=\"L\",'RES S curve-connect'!BO238,IF(Control!$B46=\"M\",'RES S curve-connect'!BO216,'RES S curve-connect'!BO194))","v":-1028.418431196561},{"$f":"IF(Control!$B46=\"L\",'RES S curve-connect'!BP238,IF(Control!$B46=\"M\",'RES S curve-connect'!BP216,'RES S curve-connect'!BP194))","v":-1025.1633274061207},{"$f":"IF(Control!$B46=\"L\",'RES S curve-connect'!BQ238,IF(Control!$B46=\"M\",'RES S curve-connect'!BQ216,'RES S curve-connect'!BQ194))","v":-1021.9134673592642},{"$f":"IF(Control!$B46=\"L\",'RES S curve-connect'!BR238,IF(Control!$B46=\"M\",'RES S curve-connect'!BR216,'RES S curve-connect'!BR194))","v":-1020.9316893332162},{"$f":"IF(Control!$B46=\"L\",'RES S curve-connect'!BS238,IF(Control!$B46=\"M\",'RES S curve-connect'!BS216,'RES S curve-connect'!BS194))","v":-1015.4293496649203},{"$f":"IF(Control!$B46=\"L\",'RES S curve-connect'!BT238,IF(Control!$B46=\"M\",'RES S curve-connect'!BT216,'RES S curve-connect'!BT194))","v":-1012.1950281071561},{"$f":"IF(Control!$B46=\"L\",'RES S curve-connect'!BU238,IF(Control!$B46=\"M\",'RES S curve-connect'!BU216,'RES S curve-connect'!BU194))","v":-1008.9658224698576},{"$f":"IF(Control!$B46=\"L\",'RES S curve-connect'!BV238,IF(Control!$B46=\"M\",'RES S curve-connect'!BV216,'RES S curve-connect'!BV194))","v":-1008.0045718332859},{"$f":"IF(Control!$B46=\"L\",'RES S curve-connect'!BW238,IF(Control!$B46=\"M\",'RES S curve-connect'!BW216,'RES S curve-connect'!BW194))","v":-1002.5226333323258},{"$f":"IF(Control!$B46=\"L\",'RES S curve-connect'!BX238,IF(Control!$B46=\"M\",'RES S curve-connect'!BX216,'RES S curve-connect'!BX194))","v":-999.30858751263429},{"$f":"IF(Control!$B46=\"L\",'RES S curve-connect'!BY238,IF(Control!$B46=\"M\",'RES S curve-connect'!BY216,'RES S curve-connect'!BY194))","v":-996.09953297199161},{"$f":"IF(Control!$B46=\"L\",'RES S curve-connect'!BZ238,IF(Control!$B46=\"M\",'RES S curve-connect'!BZ216,'RES S curve-connect'!BZ194))","v":-995.15830957350818},{"$f":"IF(Control!$B46=\"L\",'RES S curve-connect'!CA238,IF(Control!$B46=\"M\",'RES S curve-connect'!CA216,'RES S curve-connect'!CA194))","v":-989.69627522994722},{"$f":"IF(Control!$B46=\"L\",'RES S curve-connect'!CB238,IF(Control!$B46=\"M\",'RES S curve-connect'!CB216,'RES S curve-connect'!CB194))","v":-986.502011259911},{"$f":"IF(Control!$B46=\"L\",'RES S curve-connect'!CC238,IF(Control!$B46=\"M\",'RES S curve-connect'!CC216,'RES S curve-connect'!CC194))","v":-983.31261702922086},{"$f":"IF(Control!$B46=\"L\",'RES S curve-connect'!CD238,IF(Control!$B46=\"M\",'RES S curve-connect'!CD216,'RES S curve-connect'!CD194))","v":-1030.0129970404041}]
["Bayside (C)",{"$f":"Customers!K141","v":37128},{"$f":"IF(Control!$B47=\"L\",'RES S curve-connect'!C239,IF(Control!$B47=\"M\",'RES S curve-connect'!C217,'RES S curve-connect'!C195))","v":-2595.6704914285542},{"$f":"IF(Control!$B47=\"L\",'RES S curve-connect'!D239,IF(Control!$B47=\"M\",'RES S curve-connect'!D217,'RES S curve-connect'!D195))","v":-3208.729512206141},{"$f":"IF(Control!$B47=\"L\",'RES S curve-connect'!E239,IF(Control!$B47=\"M\",'RES S curve-connect'!E217,'RES S curve-connect'!E195))","v":-2642.3931870854149},{"$f":"IF(Control!$B47=\"L\",'RES S curve-connect'!F239,IF(Control!$B47=\"M\",'RES S curve-connect'!F217,'RES S curve-connect'!F195))","v":-2459.5129572898836},{"$f":"IF(Control!$B47=\"L\",'RES S curve-connect'!G239,IF(Control!$B47=\"M\",'RES S curve-connect'!G217,'RES S curve-connect'!G195))","v":-3722.9927855906362},{"$f":"IF(Control!$B47=\"L\",'RES S curve-connect'!H239,IF(Control!$B47=\"M\",'RES S curve-connect'!H217,'RES S curve-connect'!H195))","v":-3752.7821918265504},{"$f":"IF(Control!$B47=\"L\",'RES S curve-connect'!I239,IF(Control!$B47=\"M\",'RES S curve-connect'!I217,'RES S curve-connect'!I195))","v":-3233.7975962281535},{"$f":"IF(Control!$B47=\"L\",'RES S curve-connect'!J239,IF(Control!$B47=\"M\",'RES S curve-connect'!J217,'RES S curve-connect'!J195))","v":-3548.8595540115975},{"$f":"IF(Control!$B47=\"L\",'RES S curve-connect'!K239,IF(Control!$B47=\"M\",'RES S curve-connect'!K217,'RES S curve-connect'!K195))","v":-2627.7233965339301},{"$f":"IF(Control!$B47=\"L\",'RES S curve-connect'!L239,IF(Control!$B47=\"M\",'RES S curve-connect'!L217,'RES S curve-connect'!L195))","v":-3055.4050902773079},{"$f":"IF(Control!$B47=\"L\",'RES S curve-connect'!M239,IF(Control!$B47=\"M\",'RES S curve-connect'!M217,'RES S curve-connect'!M195))","v":-3822.8304724379177},{"$f":"IF(Control!$B47=\"L\",'RES S curve-connect'!N239,IF(Control!$B47=\"M\",'RES S curve-connect'!N217,'RES S curve-connect'!N195))","v":-3902.9511796109227},{"$f":"IF(Control!$B47=\"L\",'RES S curve-connect'!O239,IF(Control!$B47=\"M\",'RES S curve-connect'!O217,'RES S curve-connect'!O195))","v":-3241.144899664956},{"$f":"IF(Control!$B47=\"L\",'RES S curve-connect'!P239,IF(Control!$B47=\"M\",'RES S curve-connect'!P217,'RES S curve-connect'!P195))","v":-2715.9941441313867},{"$f":"IF(Control!$B47=\"L\",'RES S curve-connect'!Q239,IF(Control!$B47=\"M\",'RES S curve-connect'!Q217,'RES S curve-connect'!Q195))","v":-1918.1204004577337},{"$f":"IF(Control!$B47=\"L\",'RES S curve-connect'!R239,IF(Control!$B47=\"M\",'RES S curve-connect'!R217,'RES S curve-connect'!R195))","v":-1469.5019626218459},{"$f":"IF(Control!$B47=\"L\",'RES S curve-connect'!S239,IF(Control!$B47=\"M\",'RES S curve-connect'!S217,'RES S curve-connect'!S195))","v":-750.64151041360185},{"$f":"IF(Control!$B47=\"L\",'RES S curve-connect'!T239,IF(Control!$B47=\"M\",'RES S curve-connect'!T217,'RES S curve-connect'!T195))","v":-364.4531855233061},{"$f":"IF(Control!$B47=\"L\",'RES S curve-connect'!U239,IF(Control!$B47=\"M\",'RES S curve-connect'!U217,'RES S curve-connect'!U195))","v":78.253331971356545},{"$f":"IF(Control!$B47=\"L\",'RES S curve-connect'!V239,IF(Control!$B47=\"M\",'RES S curve-connect'!V217,'RES S curve-connect'!V195))","v":377.9466711252046},{"$f":"IF(Control!$B47=\"L\",'RES S curve-connect'!W239,IF(Control!$B47=\"M\",'RES S curve-connect'!W217,'RES S curve-connect'!W195))","v":609.72220077200143},{"$f":"IF(Control!$B47=\"L\",'RES S curve-connect'!X239,IF(Control!$B47=\"M\",'RES S curve-connect'!X217,'RES S curve-connect'!X195))","v":1145.4429144080277},{"$f":"IF(Control!$B47=\"L\",'RES S curve-connect'!Y239,IF(Control!$B47=\"M\",'RES S curve-connect'!Y217,'RES S curve-connect'!Y195))","v":1687.6867530313198},{"$f":"IF(Control!$B47=\"L\",'RES S curve-connect'!Z239,IF(Control!$B47=\"M\",'RES S curve-connect'!Z217,'RES S curve-connect'!Z195))","v":2052.0902036034499},{"$f":"IF(Control!$B47=\"L\",'RES S curve-connect'!AA239,IF(Control!$B47=\"M\",'RES S curve-connect'!AA217,'RES S curve-connect'!AA195))","v":2416.6529255413711},{"$f":"IF(Control!$B47=\"L\",'RES S curve-connect'!AB239,IF(Control!$B47=\"M\",'RES S curve-connect'!AB217,'RES S curve-connect'!AB195))","v":2706.1112334633431},{"$f":"IF(Control!$B47=\"L\",'RES S curve-connect'!AC239,IF(Control!$B47=\"M\",'RES S curve-connect'!AC217,'RES S curve-connect'!AC195))","v":2984.7780080876487},{"$f":"IF(Control!$B47=\"L\",'RES S curve-connect'!AD239,IF(Control!$B47=\"M\",'RES S curve-connect'!AD217,'RES S curve-connect'!AD195))","v":3239.7498989673431},{"$f":"IF(Control!$B47=\"L\",'RES S curve-connect'!AE239,IF(Control!$B47=\"M\",'RES S curve-connect'!AE217,'RES S curve-connect'!AE195))","v":3508.3339554306899},{"$f":"IF(Control!$B47=\"L\",'RES S curve-connect'!AF239,IF(Control!$B47=\"M\",'RES S curve-connect'!AF217,'RES S curve-connect'!AF195))","v":3858.1804711189661},{"$f":"IF(Control!$B47=\"L\",'RES S curve-connect'!AG239,IF(Control!$B47=\"M\",'RES S curve-connect'!AG217,'RES S curve-connect'!AG195))","v":4104.7929752671407},{"$f":"IF(Control!$B47=\"L\",'RES S curve-connect'!AH239,IF(Control!$B47=\"M\",'RES S curve-connect'!AH217,'RES S curve-connect'!AH195))","v":4451.6093216950248},{"$f":"IF(Control!$B47=\"L\",'RES S curve-connect'!AI239,IF(Control!$B47=\"M\",'RES S curve-connect'!AI217,'RES S curve-connect'!AI195))","v":4763.5564638861833},{"$f":"IF(Control!$B47=\"L\",'RES S curve-connect'!AJ239,IF(Control!$B47=\"M\",'RES S curve-connect'!AJ217,'RES S curve-connect'!AJ195))","v":5045.0432037791743},{"$f":"IF(Control!$B47=\"L\",'RES S curve-connect'!AK239,IF(Control!$B47=\"M\",'RES S curve-connect'!AK217,'RES S curve-connect'!AK195))","v":5343.8888478627759},{"$f":"IF(Control!$B47=\"L\",'RES S curve-connect'!AL239,IF(Control!$B47=\"M\",'RES S curve-connect'!AL217,'RES S curve-connect'!AL195))","v":4308.8374484398219},{"$f":"IF(Control!$B47=\"L\",'RES S curve-connect'!AM239,IF(Control!$B47=\"M\",'RES S curve-connect'!AM217,'RES S curve-connect'!AM195))","v":4173.5613623913378},{"$f":"IF(Control!$B47=\"L\",'RES S curve-connect'!AN239,IF(Control!$B47=\"M\",'RES S curve-connect'!AN217,'RES S curve-connect'!AN195))","v":4456.5414340087736},{"$f":"IF(Control!$B47=\"L\",'RES S curve-connect'!AO239,IF(Control!$B47=\"M\",'RES S curve-connect'!AO217,'RES S curve-connect'!AO195))","v":4802.5987497943806},{"$f":"IF(Control!$B47=\"L\",'RES S curve-connect'!AP239,IF(Control!$B47=\"M\",'RES S curve-connect'!AP217,'RES S curve-connect'!AP195))","v":5122.2708841533058},{"$f":"IF(Control!$B47=\"L\",'RES S curve-connect'!AQ239,IF(Control!$B47=\"M\",'RES S curve-connect'!AQ217,'RES S curve-connect'!AQ195))","v":5466.4638716880991},{"$f":"IF(Control!$B47=\"L\",'RES S curve-connect'!AR239,IF(Control!$B47=\"M\",'RES S curve-connect'!AR217,'RES S curve-connect'!AR195))","v":5844.3789924859939},{"$f":"IF(Control!$B47=\"L\",'RES S curve-connect'!AS239,IF(Control!$B47=\"M\",'RES S curve-connect'!AS217,'RES S curve-connect'!AS195))","v":6268.4542749499087},{"$f":"IF(Control!$B47=\"L\",'RES S curve-connect'!AT239,IF(Control!$B47=\"M\",'RES S curve-connect'!AT217,'RES S curve-connect'!AT195))","v":6742.8099641958488},{"$f":"IF(Control!$B47=\"L\",'RES S curve-connect'!AU239,IF(Control!$B47=\"M\",'RES S curve-connect'!AU217,'RES S curve-connect'!AU195))","v":7291.6020074765056},{"$f":"IF(Control!$B47=\"L\",'RES S curve-connect'!AV239,IF(Control!$B47=\"M\",'RES S curve-connect'!AV217,'RES S curve-connect'!AV195))","v":7917.5959269723135},{"$f":"IF(Control!$B47=\"L\",'RES S curve-connect'!AW239,IF(Control!$B47=\"M\",'RES S curve-connect'!AW217,'RES S curve-connect'!AW195))","v":8637.126573325997},{"$f":"IF(Control!$B47=\"L\",'RES S curve-connect'!AX239,IF(Control!$B47=\"M\",'RES S curve-connect'!AX217,'RES S curve-connect'!AX195))","v":9457.1860104410734},{"$f":"IF(Control!$B47=\"L\",'RES S curve-connect'!AY239,IF(Control!$B47=\"M\",'RES S curve-connect'!AY217,'RES S curve-connect'!AY195))","v":10403.423840428566},{"$f":"IF(Control!$B47=\"L\",'RES S curve-connect'!AZ239,IF(Control!$B47=\"M\",'RES S curve-connect'!AZ217,'RES S curve-connect'!AZ195))","v":11485.153423628473},{"$f":"IF(Control!$B47=\"L\",'RES S curve-connect'!BA239,IF(Control!$B47=\"M\",'RES S curve-connect'!BA217,'RES S curve-connect'!BA195))","v":12737.924359076742},{"$f":"IF(Control!$B47=\"L\",'RES S curve-connect'!BB239,IF(Control!$B47=\"M\",'RES S curve-connect'!BB217,'RES S curve-connect'!BB195))","v":14201.609469999496},{"$f":"IF(Control!$B47=\"L\",'RES S curve-connect'!BC239,IF(Control!$B47=\"M\",'RES S curve-connect'!BC217,'RES S curve-connect'!BC195))","v":15947.082783265882},{"$f":"IF(Control!$B47=\"L\",'RES S curve-connect'!BD239,IF(Control!$B47=\"M\",'RES S curve-connect'!BD217,'RES S curve-connect'!BD195))","v":17631.075245076569},{"$f":"IF(Control!$B47=\"L\",'RES S curve-connect'!BE239,IF(Control!$B47=\"M\",'RES S curve-connect'!BE217,'RES S curve-connect'!BE195))","v":19170.306073529329},{"$f":"IF(Control!$B47=\"L\",'RES S curve-connect'!BF239,IF(Control!$B47=\"M\",'RES S curve-connect'!BF217,'RES S curve-connect'!BF195))","v":20745.213262372064},{"$f":"IF(Control!$B47=\"L\",'RES S curve-connect'!BG239,IF(Control!$B47=\"M\",'RES S curve-connect'!BG217,'RES S curve-connect'!BG195))","v":22527.598057774965},{"$f":"IF(Control!$B47=\"L\",'RES S curve-connect'!BH239,IF(Control!$B47=\"M\",'RES S curve-connect'!BH217,'RES S curve-connect'!BH195))","v":24643.424731142703},{"$f":"IF(Control!$B47=\"L\",'RES S curve-connect'!BI239,IF(Control!$B47=\"M\",'RES S curve-connect'!BI217,'RES S curve-connect'!BI195))","v":27709.222613755679},{"$f":"IF(Control!$B47=\"L\",'RES S curve-connect'!BJ239,IF(Control!$B47=\"M\",'RES S curve-connect'!BJ217,'RES S curve-connect'!BJ195))","v":32199.436916859395},{"$f":"IF(Control!$B47=\"L\",'RES S curve-connect'!BK239,IF(Control!$B47=\"M\",'RES S curve-connect'!BK217,'RES S curve-connect'!BK195))","v":38826.3593534213},{"$f":"IF(Control!$B47=\"L\",'RES S curve-connect'!BL239,IF(Control!$B47=\"M\",'RES S curve-connect'!BL217,'RES S curve-connect'!BL195))","v":522.42422404395836},{"$f":"IF(Control!$B47=\"L\",'RES S curve-connect'!BM239,IF(Control!$B47=\"M\",'RES S curve-connect'!BM217,'RES S curve-connect'!BM195))","v":530.81506692693301},{"$f":"IF(Control!$B47=\"L\",'RES S curve-connect'!BN239,IF(Control!$B47=\"M\",'RES S curve-connect'!BN217,'RES S curve-connect'!BN195))","v":535.17202447526915},{"$f":"IF(Control!$B47=\"L\",'RES S curve-connect'!BO239,IF(Control!$B47=\"M\",'RES S curve-connect'!BO217,'RES S curve-connect'!BO195))","v":547.56179076438548},{"$f":"IF(Control!$B47=\"L\",'RES S curve-connect'!BP239,IF(Control!$B47=\"M\",'RES S curve-connect'!BP217,'RES S curve-connect'!BP195))","v":555.91781193757845},{"$f":"IF(Control!$B47=\"L\",'RES S curve-connect'!BQ239,IF(Control!$B47=\"M\",'RES S curve-connect'!BQ217,'RES S curve-connect'!BQ195))","v":564.26236536678982},{"$f":"IF(Control!$B47=\"L\",'RES S curve-connect'!BR239,IF(Control!$B47=\"M\",'RES S curve-connect'!BR217,'RES S curve-connect'!BR195))","v":568.57331216055059},{"$f":"IF(Control!$B47=\"L\",'RES S curve-connect'!BS239,IF(Control!$B47=\"M\",'RES S curve-connect'!BS217,'RES S curve-connect'!BS195))","v":580.91734466150626},{"$f":"IF(Control!$B47=\"L\",'RES S curve-connect'!BT239,IF(Control!$B47=\"M\",'RES S curve-connect'!BT217,'RES S curve-connect'!BT195))","v":589.2279072911258},{"$f":"IF(Control!$B47=\"L\",'RES S curve-connect'!BU239,IF(Control!$B47=\"M\",'RES S curve-connect'!BU217,'RES S curve-connect'!BU195))","v":597.52727571039918},{"$f":"IF(Control!$B47=\"L\",'RES S curve-connect'!BV239,IF(Control!$B47=\"M\",'RES S curve-connect'!BV217,'RES S curve-connect'!BV195))","v":601.79330932770108},{"$f":"IF(Control!$B47=\"L\",'RES S curve-connect'!BW239,IF(Control!$B47=\"M\",'RES S curve-connect'!BW217,'RES S curve-connect'!BW195))","v":614.09269879626231},{"$f":"IF(Control!$B47=\"L\",'RES S curve-connect'!BX239,IF(Control!$B47=\"M\",'RES S curve-connect'!BX217,'RES S curve-connect'!BX195))","v":622.35888685880036},{"$f":"IF(Control!$B47=\"L\",'RES S curve-connect'!BY239,IF(Control!$B47=\"M\",'RES S curve-connect'!BY217,'RES S curve-connect'!BY195))","v":630.6141475081497},{"$f":"IF(Control!$B47=\"L\",'RES S curve-connect'!BZ239,IF(Control!$B47=\"M\",'RES S curve-connect'!BZ217,'RES S curve-connect'!BZ195))","v":634.83633849506441},{"$f":"IF(Control!$B47=\"L\",'RES S curve-connect'!CA239,IF(Control!$B47=\"M\",'RES S curve-connect'!CA217,'RES S curve-connect'!CA195))","v":647.09214882562003},{"$f":"IF(Control!$B47=\"L\",'RES S curve-connect'!CB239,IF(Control!$B47=\"M\",'RES S curve-connect'!CB217,'RES S curve-connect'!CB195))","v":655.31501960577225},{"$f":"IF(Control!$B47=\"L\",'RES S curve-connect'!CC239,IF(Control!$B47=\"M\",'RES S curve-connect'!CC217,'RES S curve-connect'!CC195))","v":663.52722320192731},{"$f":"IF(Control!$B47=\"L\",'RES S curve-connect'!CD239,IF(Control!$B47=\"M\",'RES S curve-connect'!CD217,'RES S curve-connect'!CD195))","v":538.27256673456145}]
["Boroondara (C)",{"$f":"Customers!K142","v":62660},{"$f":"IF(Control!$B48=\"L\",'RES S curve-connect'!C240,IF(Control!$B48=\"M\",'RES S curve-connect'!C218,'RES S curve-connect'!C196))","v":-2446.7050518272681},{"$f":"IF(Control!$B48=\"L\",'RES S curve-connect'!D240,IF(Control!$B48=\"M\",'RES S curve-connect'!D218,'RES S curve-connect'!D196))","v":-3031.5170113792847},{"$f":"IF(Control!$B48=\"L\",'RES S curve-connect'!E240,IF(Control!$B48=\"M\",'RES S curve-connect'!E218,'RES S curve-connect'!E196))","v":-2500.3580653745189},{"$f":"IF(Control!$B48=\"L\",'RES S curve-connect'!F240,IF(Control!$B48=\"M\",'RES S curve-connect'!F218,'RES S curve-connect'!F196))","v":-2327.5326171252887},{"$f":"IF(Control!$B48=\"L\",'RES S curve-connect'!G240,IF(Control!$B48=\"M\",'RES S curve-connect'!G218,'RES S curve-connect'!G196))","v":-3520.1210851613309},{"$f":"IF(Control!$B48=\"L\",'RES S curve-connect'!H240,IF(Control!$B48=\"M\",'RES S curve-connect'!H218,'RES S curve-connect'!H196))","v":-3549.1267985271184},{"$f":"IF(Control!$B48=\"L\",'RES S curve-connect'!I240,IF(Control!$B48=\"M\",'RES S curve-connect'!I218,'RES S curve-connect'!I196))","v":-3055.2871825719612},{"$f":"IF(Control!$B48=\"L\",'RES S curve-connect'!J240,IF(Control!$B48=\"M\",'RES S curve-connect'!J218,'RES S curve-connect'!J196))","v":-3359.8027304673569},{"$f":"IF(Control!$B48=\"L\",'RES S curve-connect'!K240,IF(Control!$B48=\"M\",'RES S curve-connect'!K218,'RES S curve-connect'!K196))","v":-2480.7294211795588},{"$f":"IF(Control!$B48=\"L\",'RES S curve-connect'!L240,IF(Control!$B48=\"M\",'RES S curve-connect'!L218,'RES S curve-connect'!L196))","v":-2888.794564434922},{"$f":"IF(Control!$B48=\"L\",'RES S curve-connect'!M240,IF(Control!$B48=\"M\",'RES S curve-connect'!M218,'RES S curve-connect'!M196))","v":-3617.8711950712304},{"$f":"IF(Control!$B48=\"L\",'RES S curve-connect'!N240,IF(Control!$B48=\"M\",'RES S curve-connect'!N218,'RES S curve-connect'!N196))","v":-3694.3633222805611},{"$f":"IF(Control!$B48=\"L\",'RES S curve-connect'!O240,IF(Control!$B48=\"M\",'RES S curve-connect'!O218,'RES S curve-connect'!O196))","v":-3063.0781714650407},{"$f":"IF(Control!$B48=\"L\",'RES S curve-connect'!P240,IF(Control!$B48=\"M\",'RES S curve-connect'!P218,'RES S curve-connect'!P196))","v":-2562.6396666768296},{"$f":"IF(Control!$B48=\"L\",'RES S curve-connect'!Q240,IF(Control!$B48=\"M\",'RES S curve-connect'!Q218,'RES S curve-connect'!Q196))","v":-1802.2485972037905},{"$f":"IF(Control!$B48=\"L\",'RES S curve-connect'!R240,IF(Control!$B48=\"M\",'RES S curve-connect'!R218,'RES S curve-connect'!R196))","v":-1374.872391070312},{"$f":"IF(Control!$B48=\"L\",'RES S curve-connect'!S240,IF(Control!$B48=\"M\",'RES S curve-connect'!S218,'RES S curve-connect'!S196))","v":-688.57535588078724},{"$f":"IF(Control!$B48=\"L\",'RES S curve-connect'!T240,IF(Control!$B48=\"M\",'RES S curve-connect'!T218,'RES S curve-connect'!T196))","v":-322.87312610086195},{"$f":"IF(Control!$B48=\"L\",'RES S curve-connect'!U240,IF(Control!$B48=\"M\",'RES S curve-connect'!U218,'RES S curve-connect'!U196))","v":98.302214099068294},{"$f":"IF(Control!$B48=\"L\",'RES S curve-connect'!V240,IF(Control!$B48=\"M\",'RES S curve-connect'!V218,'RES S curve-connect'!V196))","v":383.83182010405216},{"$f":"IF(Control!$B48=\"L\",'RES S curve-connect'!W240,IF(Control!$B48=\"M\",'RES S curve-connect'!W218,'RES S curve-connect'!W196))","v":604.79688007998914},{"$f":"IF(Control!$B48=\"L\",'RES S curve-connect'!X240,IF(Control!$B48=\"M\",'RES S curve-connect'!X218,'RES S curve-connect'!X196))","v":1114.5829781748632},{"$f":"IF(Control!$B48=\"L\",'RES S curve-connect'!Y240,IF(Control!$B48=\"M\",'RES S curve-connect'!Y218,'RES S curve-connect'!Y196))","v":1630.8603664345383},{"$f":"IF(Control!$B48=\"L\",'RES S curve-connect'!Z240,IF(Control!$B48=\"M\",'RES S curve-connect'!Z218,'RES S curve-connect'!Z196))","v":1977.8641651293603},{"$f":"IF(Control!$B48=\"L\",'RES S curve-connect'!AA240,IF(Control!$B48=\"M\",'RES S curve-connect'!AA218,'RES S curve-connect'!AA196))","v":2325.344314392511},{"$f":"IF(Control!$B48=\"L\",'RES S curve-connect'!AB240,IF(Control!$B48=\"M\",'RES S curve-connect'!AB218,'RES S curve-connect'!AB196))","v":2601.5174280146998},{"$f":"IF(Control!$B48=\"L\",'RES S curve-connect'!AC240,IF(Control!$B48=\"M\",'RES S curve-connect'!AC218,'RES S curve-connect'!AC196))","v":2867.6067151544476},{"$f":"IF(Control!$B48=\"L\",'RES S curve-connect'!AD240,IF(Control!$B48=\"M\",'RES S curve-connect'!AD218,'RES S curve-connect'!AD196))","v":3111.0759837536989},{"$f":"IF(Control!$B48=\"L\",'RES S curve-connect'!AE240,IF(Control!$B48=\"M\",'RES S curve-connect'!AE218,'RES S curve-connect'!AE196))","v":3368.0136629382878},{"$f":"IF(Control!$B48=\"L\",'RES S curve-connect'!AF240,IF(Control!$B48=\"M\",'RES S curve-connect'!AF218,'RES S curve-connect'!AF196))","v":3702.1348639139164},{"$f":"IF(Control!$B48=\"L\",'RES S curve-connect'!AG240,IF(Control!$B48=\"M\",'RES S curve-connect'!AG218,'RES S curve-connect'!AG196))","v":3937.8801561931587},{"$f":"IF(Control!$B48=\"L\",'RES S curve-connect'!AH240,IF(Control!$B48=\"M\",'RES S curve-connect'!AH218,'RES S curve-connect'!AH196))","v":4268.4903016816825},{"$f":"IF(Control!$B48=\"L\",'RES S curve-connect'!AI240,IF(Control!$B48=\"M\",'RES S curve-connect'!AI218,'RES S curve-connect'!AI196))","v":4566.7096473796728},{"$f":"IF(Control!$B48=\"L\",'RES S curve-connect'!AJ240,IF(Control!$B48=\"M\",'RES S curve-connect'!AJ218,'RES S curve-connect'!AJ196))","v":4835.6297964237365},{"$f":"IF(Control!$B48=\"L\",'RES S curve-connect'!AK240,IF(Control!$B48=\"M\",'RES S curve-connect'!AK218,'RES S curve-connect'!AK196))","v":5121.165799247794},{"$f":"IF(Control!$B48=\"L\",'RES S curve-connect'!AL240,IF(Control!$B48=\"M\",'RES S curve-connect'!AL218,'RES S curve-connect'!AL196))","v":4129.8193879012151},{"$f":"IF(Control!$B48=\"L\",'RES S curve-connect'!AM240,IF(Control!$B48=\"M\",'RES S curve-connect'!AM218,'RES S curve-connect'!AM196))","v":4001.5170836228476},{"$f":"IF(Control!$B48=\"L\",'RES S curve-connect'!AN240,IF(Control!$B48=\"M\",'RES S curve-connect'!AN218,'RES S curve-connect'!AN196))","v":4272.5526795497262},{"$f":"IF(Control!$B48=\"L\",'RES S curve-connect'!AO240,IF(Control!$B48=\"M\",'RES S curve-connect'!AO218,'RES S curve-connect'!AO196))","v":4603.3861137531885},{"$f":"IF(Control!$B48=\"L\",'RES S curve-connect'!AP240,IF(Control!$B48=\"M\",'RES S curve-connect'!AP218,'RES S curve-connect'!AP196))","v":4908.6244962574274},{"$f":"IF(Control!$B48=\"L\",'RES S curve-connect'!AQ240,IF(Control!$B48=\"M\",'RES S curve-connect'!AQ218,'RES S curve-connect'!AQ196))","v":5237.6533759170052},{"$f":"IF(Control!$B48=\"L\",'RES S curve-connect'!AR240,IF(Control!$B48=\"M\",'RES S curve-connect'!AR218,'RES S curve-connect'!AR196))","v":5598.7028957490611},{"$f":"IF(Control!$B48=\"L\",'RES S curve-connect'!AS240,IF(Control!$B48=\"M\",'RES S curve-connect'!AS218,'RES S curve-connect'!AS196))","v":6003.7992998917844},{"$f":"IF(Control!$B48=\"L\",'RES S curve-connect'!AT240,IF(Control!$B48=\"M\",'RES S curve-connect'!AT218,'RES S curve-connect'!AT196))","v":6456.6769945092728},{"$f":"IF(Control!$B48=\"L\",'RES S curve-connect'!AU240,IF(Control!$B48=\"M\",'RES S curve-connect'!AU218,'RES S curve-connect'!AU196))","v":6980.9295763723812},{"$f":"IF(Control!$B48=\"L\",'RES S curve-connect'!AV240,IF(Control!$B48=\"M\",'RES S curve-connect'!AV218,'RES S curve-connect'!AV196))","v":7578.6232435296079},{"$f":"IF(Control!$B48=\"L\",'RES S curve-connect'!AW240,IF(Control!$B48=\"M\",'RES S curve-connect'!AW218,'RES S curve-connect'!AW196))","v":8265.4814955453949},{"$f":"IF(Control!$B48=\"L\",'RES S curve-connect'!AX240,IF(Control!$B48=\"M\",'RES S curve-connect'!AX218,'RES S curve-connect'!AX196))","v":9047.9280370481047},{"$f":"IF(Control!$B48=\"L\",'RES S curve-connect'!AY240,IF(Control!$B48=\"M\",'RES S curve-connect'!AY218,'RES S curve-connect'!AY196))","v":9950.9211939507404},{"$f":"IF(Control!$B48=\"L\",'RES S curve-connect'!AZ240,IF(Control!$B48=\"M\",'RES S curve-connect'!AZ218,'RES S curve-connect'!AZ196))","v":10982.717760104995},{"$f":"IF(Control!$B48=\"L\",'RES S curve-connect'!BA240,IF(Control!$B48=\"M\",'RES S curve-connect'!BA218,'RES S curve-connect'!BA196))","v":12177.322053480835},{"$f":"IF(Control!$B48=\"L\",'RES S curve-connect'!BB240,IF(Control!$B48=\"M\",'RES S curve-connect'!BB218,'RES S curve-connect'!BB196))","v":13572.446297779024},{"$f":"IF(Control!$B48=\"L\",'RES S curve-connect'!BC240,IF(Control!$B48=\"M\",'RES S curve-connect'!BC218,'RES S curve-connect'!BC196))","v":15236.054486871069},{"$f":"IF(Control!$B48=\"L\",'RES S curve-connect'!BD240,IF(Control!$B48=\"M\",'RES S curve-connect'!BD218,'RES S curve-connect'!BD196))","v":16839.502358622914},{"$f":"IF(Control!$B48=\"L\",'RES S curve-connect'!BE240,IF(Control!$B48=\"M\",'RES S curve-connect'!BE218,'RES S curve-connect'!BE196))","v":18304.588518924334},{"$f":"IF(Control!$B48=\"L\",'RES S curve-connect'!BF240,IF(Control!$B48=\"M\",'RES S curve-connect'!BF218,'RES S curve-connect'!BF196))","v":19803.787801992185},{"$f":"IF(Control!$B48=\"L\",'RES S curve-connect'!BG240,IF(Control!$B48=\"M\",'RES S curve-connect'!BG218,'RES S curve-connect'!BG196))","v":21501.083105928985},{"$f":"IF(Control!$B48=\"L\",'RES S curve-connect'!BH240,IF(Control!$B48=\"M\",'RES S curve-connect'!BH218,'RES S curve-connect'!BH196))","v":23515.554358466219},{"$f":"IF(Control!$B48=\"L\",'RES S curve-connect'!BI240,IF(Control!$B48=\"M\",'RES S curve-connect'!BI218,'RES S curve-connect'!BI196))","v":26434.866611743888},{"$f":"IF(Control!$B48=\"L\",'RES S curve-connect'!BJ240,IF(Control!$B48=\"M\",'RES S curve-connect'!BJ218,'RES S curve-connect'!BJ196))","v":30708.740888858207},{"$f":"IF(Control!$B48=\"L\",'RES S curve-connect'!BK240,IF(Control!$B48=\"M\",'RES S curve-connect'!BK218,'RES S curve-connect'!BK196))","v":37013.725561707179},{"$f":"IF(Control!$B48=\"L\",'RES S curve-connect'!BL240,IF(Control!$B48=\"M\",'RES S curve-connect'!BL218,'RES S curve-connect'!BL196))","v":504.94532243279463},{"$f":"IF(Control!$B48=\"L\",'RES S curve-connect'!BM240,IF(Control!$B48=\"M\",'RES S curve-connect'!BM218,'RES S curve-connect'!BM196))","v":512.93098607736431},{"$f":"IF(Control!$B48=\"L\",'RES S curve-connect'!BN240,IF(Control!$B48=\"M\",'RES S curve-connect'!BN218,'RES S curve-connect'!BN196))","v":516.88324165758445},{"$f":"IF(Control!$B48=\"L\",'RES S curve-connect'!BO240,IF(Control!$B48=\"M\",'RES S curve-connect'!BO218,'RES S curve-connect'!BO196))","v":528.86878044656601},{"$f":"IF(Control!$B48=\"L\",'RES S curve-connect'!BP240,IF(Control!$B48=\"M\",'RES S curve-connect'!BP218,'RES S curve-connect'!BP196))","v":536.82104580249961},{"$f":"IF(Control!$B48=\"L\",'RES S curve-connect'!BQ240,IF(Control!$B48=\"M\",'RES S curve-connect'!BQ218,'RES S curve-connect'!BQ196))","v":544.76231232931775},{"$f":"IF(Control!$B48=\"L\",'RES S curve-connect'!BR240,IF(Control!$B48=\"M\",'RES S curve-connect'!BR218,'RES S curve-connect'!BR196))","v":548.67043838452969},{"$f":"IF(Control!$B48=\"L\",'RES S curve-connect'!BS240,IF(Control!$B48=\"M\",'RES S curve-connect'!BS218,'RES S curve-connect'!BS196))","v":560.61211357664058},{"$f":"IF(Control!$B48=\"L\",'RES S curve-connect'!BT240,IF(Control!$B48=\"M\",'RES S curve-connect'!BT218,'RES S curve-connect'!BT196))","v":568.52077960975487},{"$f":"IF(Control!$B48=\"L\",'RES S curve-connect'!BU240,IF(Control!$B48=\"M\",'RES S curve-connect'!BU218,'RES S curve-connect'!BU196))","v":576.41870944416758},{"$f":"IF(Control!$B48=\"L\",'RES S curve-connect'!BV240,IF(Control!$B48=\"M\",'RES S curve-connect'!BV218,'RES S curve-connect'!BV196))","v":580.28375980412488},{"$f":"IF(Control!$B48=\"L\",'RES S curve-connect'!BW240,IF(Control!$B48=\"M\",'RES S curve-connect'!BW218,'RES S curve-connect'!BW196))","v":592.18261867519027},{"$f":"IF(Control!$B48=\"L\",'RES S curve-connect'!BX240,IF(Control!$B48=\"M\",'RES S curve-connect'!BX218,'RES S curve-connect'!BX196))","v":600.04872614877263},{"$f":"IF(Control!$B48=\"L\",'RES S curve-connect'!BY240,IF(Control!$B48=\"M\",'RES S curve-connect'!BY218,'RES S curve-connect'!BY196))","v":607.90435358265313},{"$f":"IF(Control!$B48=\"L\",'RES S curve-connect'!BZ240,IF(Control!$B48=\"M\",'RES S curve-connect'!BZ218,'RES S curve-connect'!BZ196))","v":611.72735610868756},{"$f":"IF(Control!$B48=\"L\",'RES S curve-connect'!CA240,IF(Control!$B48=\"M\",'RES S curve-connect'!CA218,'RES S curve-connect'!CA196))","v":623.58442013010392},{"$f":"IF(Control!$B48=\"L\",'RES S curve-connect'!CB240,IF(Control!$B48=\"M\",'RES S curve-connect'!CB218,'RES S curve-connect'!CB196))","v":631.4089841659636},{"$f":"IF(Control!$B48=\"L\",'RES S curve-connect'!CC240,IF(Control!$B48=\"M\",'RES S curve-connect'!CC218,'RES S curve-connect'!CC196))","v":639.22331801163},{"$f":"IF(Control!$B48=\"L\",'RES S curve-connect'!CD240,IF(Control!$B48=\"M\",'RES S curve-connect'!CD218,'RES S curve-connect'!CD196))","v":520.25621669334578}]
["Cardinia (S)",{"$f":"Customers!K143","v":4164},{"$f":"IF(Control!$B49=\"L\",'RES S curve-connect'!C241,IF(Control!$B49=\"M\",'RES S curve-connect'!C219,'RES S curve-connect'!C197))","v":-3567.039215071477},{"$f":"IF(Control!$B49=\"L\",'RES S curve-connect'!D241,IF(Control!$B49=\"M\",'RES S curve-connect'!D219,'RES S curve-connect'!D197))","v":-3938.5893382883592},{"$f":"IF(Control!$B49=\"L\",'RES S curve-connect'!E241,IF(Control!$B49=\"M\",'RES S curve-connect'!E219,'RES S curve-connect'!E197))","v":-2915.9634036307134},{"$f":"IF(Control!$B49=\"L\",'RES S curve-connect'!F241,IF(Control!$B49=\"M\",'RES S curve-connect'!F219,'RES S curve-connect'!F197))","v":-2803.4262048880264},{"$f":"IF(Control!$B49=\"L\",'RES S curve-connect'!G241,IF(Control!$B49=\"M\",'RES S curve-connect'!G219,'RES S curve-connect'!G197))","v":-4047.2972561480842},{"$f":"IF(Control!$B49=\"L\",'RES S curve-connect'!H241,IF(Control!$B49=\"M\",'RES S curve-connect'!H219,'RES S curve-connect'!H197))","v":-4073.1859171880765},{"$f":"IF(Control!$B49=\"L\",'RES S curve-connect'!I241,IF(Control!$B49=\"M\",'RES S curve-connect'!I219,'RES S curve-connect'!I197))","v":-3754.6066714474573},{"$f":"IF(Control!$B49=\"L\",'RES S curve-connect'!J241,IF(Control!$B49=\"M\",'RES S curve-connect'!J219,'RES S curve-connect'!J197))","v":-4118.0966901902248},{"$f":"IF(Control!$B49=\"L\",'RES S curve-connect'!K241,IF(Control!$B49=\"M\",'RES S curve-connect'!K219,'RES S curve-connect'!K197))","v":-3428.2760105362745},{"$f":"IF(Control!$B49=\"L\",'RES S curve-connect'!L241,IF(Control!$B49=\"M\",'RES S curve-connect'!L219,'RES S curve-connect'!L197))","v":-3662.9887643860029},{"$f":"IF(Control!$B49=\"L\",'RES S curve-connect'!M241,IF(Control!$B49=\"M\",'RES S curve-connect'!M219,'RES S curve-connect'!M197))","v":-4113.2085215286697},{"$f":"IF(Control!$B49=\"L\",'RES S curve-connect'!N241,IF(Control!$B49=\"M\",'RES S curve-connect'!N219,'RES S curve-connect'!N197))","v":-4138.0247865890005},{"$f":"IF(Control!$B49=\"L\",'RES S curve-connect'!O241,IF(Control!$B49=\"M\",'RES S curve-connect'!O219,'RES S curve-connect'!O197))","v":-3709.4340493190803},{"$f":"IF(Control!$B49=\"L\",'RES S curve-connect'!P241,IF(Control!$B49=\"M\",'RES S curve-connect'!P219,'RES S curve-connect'!P197))","v":-3363.4172762538942},{"$f":"IF(Control!$B49=\"L\",'RES S curve-connect'!Q241,IF(Control!$B49=\"M\",'RES S curve-connect'!Q219,'RES S curve-connect'!Q197))","v":-2850.4106517475211},{"$f":"IF(Control!$B49=\"L\",'RES S curve-connect'!R241,IF(Control!$B49=\"M\",'RES S curve-connect'!R219,'RES S curve-connect'!R197))","v":-2551.3748416763792},{"$f":"IF(Control!$B49=\"L\",'RES S curve-connect'!S241,IF(Control!$B49=\"M\",'RES S curve-connect'!S219,'RES S curve-connect'!S197))","v":-2088.1610423306856},{"$f":"IF(Control!$B49=\"L\",'RES S curve-connect'!T241,IF(Control!$B49=\"M\",'RES S curve-connect'!T219,'RES S curve-connect'!T197))","v":-1825.5271948096865},{"$f":"IF(Control!$B49=\"L\",'RES S curve-connect'!U241,IF(Control!$B49=\"M\",'RES S curve-connect'!U219,'RES S curve-connect'!U197))","v":-1530.166316000867},{"$f":"IF(Control!$B49=\"L\",'RES S curve-connect'!V241,IF(Control!$B49=\"M\",'RES S curve-connect'!V219,'RES S curve-connect'!V197))","v":-1323.5290338234604},{"$f":"IF(Control!$B49=\"L\",'RES S curve-connect'!W241,IF(Control!$B49=\"M\",'RES S curve-connect'!W219,'RES S curve-connect'!W197))","v":-1158.3724021835726},{"$f":"IF(Control!$B49=\"L\",'RES S curve-connect'!X241,IF(Control!$B49=\"M\",'RES S curve-connect'!X219,'RES S curve-connect'!X197))","v":-805.81241582368705},{"$f":"IF(Control!$B49=\"L\",'RES S curve-connect'!Y241,IF(Control!$B49=\"M\",'RES S curve-connect'!Y219,'RES S curve-connect'!Y197))","v":-449.68077069090043},{"$f":"IF(Control!$B49=\"L\",'RES S curve-connect'!Z241,IF(Control!$B49=\"M\",'RES S curve-connect'!Z219,'RES S curve-connect'!Z197))","v":-203.09726566399888},{"$f":"IF(Control!$B49=\"L\",'RES S curve-connect'!AA241,IF(Control!$B49=\"M\",'RES S curve-connect'!AA219,'RES S curve-connect'!AA197))","v":43.10219690760826},{"$f":"IF(Control!$B49=\"L\",'RES S curve-connect'!AB241,IF(Control!$B49=\"M\",'RES S curve-connect'!AB219,'RES S curve-connect'!AB197))","v":243.16602078957004},{"$f":"IF(Control!$B49=\"L\",'RES S curve-connect'!AC241,IF(Control!$B49=\"M\",'RES S curve-connect'!AC219,'RES S curve-connect'!AC197))","v":436.27674682173063},{"$f":"IF(Control!$B49=\"L\",'RES S curve-connect'!AD241,IF(Control!$B49=\"M\",'RES S curve-connect'!AD219,'RES S curve-connect'!AD197))","v":614.77452998644799},{"$f":"IF(Control!$B49=\"L\",'RES S curve-connect'!AE241,IF(Control!$B49=\"M\",'RES S curve-connect'!AE219,'RES S curve-connect'!AE197))","v":800.97716660531012},{"$f":"IF(Control!$B49=\"L\",'RES S curve-connect'!AF241,IF(Control!$B49=\"M\",'RES S curve-connect'!AF219,'RES S curve-connect'!AF197))","v":1037.2515249157598},{"$f":"IF(Control!$B49=\"L\",'RES S curve-connect'!AG241,IF(Control!$B49=\"M\",'RES S curve-connect'!AG219,'RES S curve-connect'!AG197))","v":1187.8291024850937},{"$f":"IF(Control!$B49=\"L\",'RES S curve-connect'!AH241,IF(Control!$B49=\"M\",'RES S curve-connect'!AH219,'RES S curve-connect'!AH197))","v":1400.618320498912},{"$f":"IF(Control!$B49=\"L\",'RES S curve-connect'!AI241,IF(Control!$B49=\"M\",'RES S curve-connect'!AI219,'RES S curve-connect'!AI197))","v":1591.0809653251667},{"$f":"IF(Control!$B49=\"L\",'RES S curve-connect'!AJ241,IF(Control!$B49=\"M\",'RES S curve-connect'!AJ219,'RES S curve-connect'!AJ197))","v":1763.1375200884806},{"$f":"IF(Control!$B49=\"L\",'RES S curve-connect'!AK241,IF(Control!$B49=\"M\",'RES S curve-connect'!AK219,'RES S curve-connect'!AK197))","v":1945.7728038537443},{"$f":"IF(Control!$B49=\"L\",'RES S curve-connect'!AL241,IF(Control!$B49=\"M\",'RES S curve-connect'!AL219,'RES S curve-connect'!AL197))","v":1315.630558024726},{"$f":"IF(Control!$B49=\"L\",'RES S curve-connect'!AM241,IF(Control!$B49=\"M\",'RES S curve-connect'!AM219,'RES S curve-connect'!AM197))","v":1231.855877956566},{"$f":"IF(Control!$B49=\"L\",'RES S curve-connect'!AN241,IF(Control!$B49=\"M\",'RES S curve-connect'!AN219,'RES S curve-connect'!AN197))","v":1404.0736688355023},{"$f":"IF(Control!$B49=\"L\",'RES S curve-connect'!AO241,IF(Control!$B49=\"M\",'RES S curve-connect'!AO219,'RES S curve-connect'!AO197))","v":1615.364096744087},{"$f":"IF(Control!$B49=\"L\",'RES S curve-connect'!AP241,IF(Control!$B49=\"M\",'RES S curve-connect'!AP219,'RES S curve-connect'!AP197))","v":1810.9468218030602},{"$f":"IF(Control!$B49=\"L\",'RES S curve-connect'!AQ241,IF(Control!$B49=\"M\",'RES S curve-connect'!AQ219,'RES S curve-connect'!AQ197))","v":2021.123654671231},{"$f":"IF(Control!$B49=\"L\",'RES S curve-connect'!AR241,IF(Control!$B49=\"M\",'RES S curve-connect'!AR219,'RES S curve-connect'!AR197))","v":2252.1329425627791},{"$f":"IF(Control!$B49=\"L\",'RES S curve-connect'!AS241,IF(Control!$B49=\"M\",'RES S curve-connect'!AS219,'RES S curve-connect'!AS197))","v":2511.4224569196117},{"$f":"IF(Control!$B49=\"L\",'RES S curve-connect'!AT241,IF(Control!$B49=\"M\",'RES S curve-connect'!AT219,'RES S curve-connect'!AT197))","v":2801.7320666834426},{"$f":"IF(Control!$B49=\"L\",'RES S curve-connect'!AU241,IF(Control!$B49=\"M\",'RES S curve-connect'!AU219,'RES S curve-connect'!AU197))","v":3137.2665925948199},{"$f":"IF(Control!$B49=\"L\",'RES S curve-connect'!AV241,IF(Control!$B49=\"M\",'RES S curve-connect'!AV219,'RES S curve-connect'!AV197))","v":3520.3464839405233},{"$f":"IF(Control!$B49=\"L\",'RES S curve-connect'!AW241,IF(Control!$B49=\"M\",'RES S curve-connect'!AW219,'RES S curve-connect'!AW197))","v":3960.8300318082447},{"$f":"IF(Control!$B49=\"L\",'RES S curve-connect'!AX241,IF(Control!$B49=\"M\",'RES S curve-connect'!AX219,'RES S curve-connect'!AX197))","v":4463.2723266052217},{"$f":"IF(Control!$B49=\"L\",'RES S curve-connect'!AY241,IF(Control!$B49=\"M\",'RES S curve-connect'!AY219,'RES S curve-connect'!AY197))","v":5042.8594675773111},{"$f":"IF(Control!$B49=\"L\",'RES S curve-connect'!AZ241,IF(Control!$B49=\"M\",'RES S curve-connect'!AZ219,'RES S curve-connect'!AZ197))","v":5705.9862593890521},{"$f":"IF(Control!$B49=\"L\",'RES S curve-connect'!BA241,IF(Control!$B49=\"M\",'RES S curve-connect'!BA219,'RES S curve-connect'!BA197))","v":6474.3421816329064},{"$f":"IF(Control!$B49=\"L\",'RES S curve-connect'!BB241,IF(Control!$B49=\"M\",'RES S curve-connect'!BB219,'RES S curve-connect'!BB197))","v":7372.7216741474876},{"$f":"IF(Control!$B49=\"L\",'RES S curve-connect'!BC241,IF(Control!$B49=\"M\",'RES S curve-connect'!BC219,'RES S curve-connect'!BC197))","v":8444.1796420443316},{"$f":"IF(Control!$B49=\"L\",'RES S curve-connect'!BD241,IF(Control!$B49=\"M\",'RES S curve-connect'!BD219,'RES S curve-connect'!BD197))","v":9479.6053602094544},{"$f":"IF(Control!$B49=\"L\",'RES S curve-connect'!BE241,IF(Control!$B49=\"M\",'RES S curve-connect'!BE219,'RES S curve-connect'!BE197))","v":10426.592154231457},{"$f":"IF(Control!$B49=\"L\",'RES S curve-connect'!BF241,IF(Control!$B49=\"M\",'RES S curve-connect'!BF219,'RES S curve-connect'!BF197))","v":11395.359655247634},{"$f":"IF(Control!$B49=\"L\",'RES S curve-connect'!BG241,IF(Control!$B49=\"M\",'RES S curve-connect'!BG219,'RES S curve-connect'!BG197))","v":12491.110185770402},{"$f":"IF(Control!$B49=\"L\",'RES S curve-connect'!BH241,IF(Control!$B49=\"M\",'RES S curve-connect'!BH219,'RES S curve-connect'!BH197))","v":13792.237290416615},{"$f":"IF(Control!$B49=\"L\",'RES S curve-connect'!BI241,IF(Control!$B49=\"M\",'RES S curve-connect'!BI219,'RES S curve-connect'!BI197))","v":15677.154627053487},{"$f":"IF(Control!$B49=\"L\",'RES S curve-connect'!BJ241,IF(Control!$B49=\"M\",'RES S curve-connect'!BJ219,'RES S curve-connect'!BJ197))","v":18439.813720142774},{"$f":"IF(Control!$B49=\"L\",'RES S curve-connect'!BK241,IF(Control!$B49=\"M\",'RES S curve-connect'!BK219,'RES S curve-connect'!BK197))","v":22520.024593738523},{"$f":"IF(Control!$B49=\"L\",'RES S curve-connect'!BL241,IF(Control!$B49=\"M\",'RES S curve-connect'!BL219,'RES S curve-connect'!BL197))","v":-992.25950391145625},{"$f":"IF(Control!$B49=\"L\",'RES S curve-connect'!BM241,IF(Control!$B49=\"M\",'RES S curve-connect'!BM219,'RES S curve-connect'!BM197))","v":-987.1329425019369},{"$f":"IF(Control!$B49=\"L\",'RES S curve-connect'!BN241,IF(Control!$B49=\"M\",'RES S curve-connect'!BN219,'RES S curve-connect'!BN197))","v":-984.27607958630654},{"$f":"IF(Control!$B49=\"L\",'RES S curve-connect'!BO241,IF(Control!$B49=\"M\",'RES S curve-connect'!BO219,'RES S curve-connect'!BO197))","v":-976.90026268994734},{"$f":"IF(Control!$B49=\"L\",'RES S curve-connect'!BP241,IF(Control!$B49=\"M\",'RES S curve-connect'!BP219,'RES S curve-connect'!BP197))","v":-971.79406280602632},{"$f":"IF(Control!$B49=\"L\",'RES S curve-connect'!BQ241,IF(Control!$B49=\"M\",'RES S curve-connect'!BQ219,'RES S curve-connect'!BQ197))","v":-966.69456903648927},{"$f":"IF(Control!$B49=\"L\",'RES S curve-connect'!BR241,IF(Control!$B49=\"M\",'RES S curve-connect'!BR219,'RES S curve-connect'!BR197))","v":-963.86461180491881},{"$f":"IF(Control!$B49=\"L\",'RES S curve-connect'!BS241,IF(Control!$B49=\"M\",'RES S curve-connect'!BS219,'RES S curve-connect'!BS197))","v":-956.51553964051345},{"$f":"IF(Control!$B49=\"L\",'RES S curve-connect'!BT241,IF(Control!$B49=\"M\",'RES S curve-connect'!BT219,'RES S curve-connect'!BT197))","v":-951.43592453392466},{"$f":"IF(Control!$B49=\"L\",'RES S curve-connect'!BU241,IF(Control!$B49=\"M\",'RES S curve-connect'!BU219,'RES S curve-connect'!BU197))","v":-946.36285657829262},{"$f":"IF(Control!$B49=\"L\",'RES S curve-connect'!BV241,IF(Control!$B49=\"M\",'RES S curve-connect'!BV219,'RES S curve-connect'!BV197))","v":-943.55916718214712},{"$f":"IF(Control!$B49=\"L\",'RES S curve-connect'!BW241,IF(Control!$B49=\"M\",'RES S curve-connect'!BW219,'RES S curve-connect'!BW197))","v":-936.23620585342348},{"$f":"IF(Control!$B49=\"L\",'RES S curve-connect'!BX241,IF(Control!$B49=\"M\",'RES S curve-connect'!BX219,'RES S curve-connect'!BX197))","v":-931.18254555533872},{"$f":"IF(Control!$B49=\"L\",'RES S curve-connect'!BY241,IF(Control!$B49=\"M\",'RES S curve-connect'!BY219,'RES S curve-connect'!BY197))","v":-926.13527734747004},{"$f":"IF(Control!$B49=\"L\",'RES S curve-connect'!BZ241,IF(Control!$B49=\"M\",'RES S curve-connect'!BZ219,'RES S curve-connect'!BZ197))","v":-923.35723359869212},{"$f":"IF(Control!$B49=\"L\",'RES S curve-connect'!CA241,IF(Control!$B49=\"M\",'RES S curve-connect'!CA219,'RES S curve-connect'!CA197))","v":-916.05976477122817},{"$f":"IF(Control!$B49=\"L\",'RES S curve-connect'!CB241,IF(Control!$B49=\"M\",'RES S curve-connect'!CB219,'RES S curve-connect'!CB197))","v":-911.03144477657122},{"$f":"IF(Control!$B49=\"L\",'RES S curve-connect'!CC241,IF(Control!$B49=\"M\",'RES S curve-connect'!CC219,'RES S curve-connect'!CC197))","v":-906.00936561659819},{"$f":"IF(Control!$B49=\"L\",'RES S curve-connect'!CD241,IF(Control!$B49=\"M\",'RES S curve-connect'!CD219,'RES S curve-connect'!CD197))","v":-983.38402678313628}]
["Casey (C)",{"$f":"Customers!K144","v":13053},{"$f":"IF(Control!$B50=\"L\",'RES S curve-connect'!C242,IF(Control!$B50=\"M\",'RES S curve-connect'!C220,'RES S curve-connect'!C198))","v":-3068.724333172072},{"$f":"IF(Control!$B50=\"L\",'RES S curve-connect'!D242,IF(Control!$B50=\"M\",'RES S curve-connect'!D220,'RES S curve-connect'!D198))","v":-3601.9949485190159},{"$f":"IF(Control!$B50=\"L\",'RES S curve-connect'!E242,IF(Control!$B50=\"M\",'RES S curve-connect'!E220,'RES S curve-connect'!E198))","v":-2855.4346652891436},{"$f":"IF(Control!$B50=\"L\",'RES S curve-connect'!F242,IF(Control!$B50=\"M\",'RES S curve-connect'!F220,'RES S curve-connect'!F198))","v":-2694.9035690989895},{"$f":"IF(Control!$B50=\"L\",'RES S curve-connect'!G242,IF(Control!$B50=\"M\",'RES S curve-connect'!G220,'RES S curve-connect'!G198))","v":-3958.1954977614741},{"$f":"IF(Control!$B50=\"L\",'RES S curve-connect'!H242,IF(Control!$B50=\"M\",'RES S curve-connect'!H220,'RES S curve-connect'!H198))","v":-3995.1157912655535},{"$f":"IF(Control!$B50=\"L\",'RES S curve-connect'!I242,IF(Control!$B50=\"M\",'RES S curve-connect'!I220,'RES S curve-connect'!I198))","v":-3541.7034970772829},{"$f":"IF(Control!$B50=\"L\",'RES S curve-connect'!J242,IF(Control!$B50=\"M\",'RES S curve-connect'!J220,'RES S curve-connect'!J198))","v":-3885.2889602735645},{"$f":"IF(Control!$B50=\"L\",'RES S curve-connect'!K242,IF(Control!$B50=\"M\",'RES S curve-connect'!K220,'RES S curve-connect'!K198))","v":-3032.8975074220698},{"$f":"IF(Control!$B50=\"L\",'RES S curve-connect'!L242,IF(Control!$B50=\"M\",'RES S curve-connect'!L220,'RES S curve-connect'!L198))","v":-3395.202927451272},{"$f":"IF(Control!$B50=\"L\",'RES S curve-connect'!M242,IF(Control!$B50=\"M\",'RES S curve-connect'!M220,'RES S curve-connect'!M198))","v":-4057.7869966829676},{"$f":"IF(Control!$B50=\"L\",'RES S curve-connect'!N242,IF(Control!$B50=\"M\",'RES S curve-connect'!N220,'RES S curve-connect'!N198))","v":-4118.0307683181009},{"$f":"IF(Control!$B50=\"L\",'RES S curve-connect'!O242,IF(Control!$B50=\"M\",'RES S curve-connect'!O220,'RES S curve-connect'!O198))","v":-3531.7468268761731},{"$f":"IF(Control!$B50=\"L\",'RES S curve-connect'!P242,IF(Control!$B50=\"M\",'RES S curve-connect'!P220,'RES S curve-connect'!P198))","v":-3063.9945153613153},{"$f":"IF(Control!$B50=\"L\",'RES S curve-connect'!Q242,IF(Control!$B50=\"M\",'RES S curve-connect'!Q220,'RES S curve-connect'!Q198))","v":-2358.3699244443351},{"$f":"IF(Control!$B50=\"L\",'RES S curve-connect'!R242,IF(Control!$B50=\"M\",'RES S curve-connect'!R220,'RES S curve-connect'!R198))","v":-1957.3663166568303},{"$f":"IF(Control!$B50=\"L\",'RES S curve-connect'!S242,IF(Control!$B50=\"M\",'RES S curve-connect'!S220,'RES S curve-connect'!S198))","v":-1321.8044786289288},{"$f":"IF(Control!$B50=\"L\",'RES S curve-connect'!T242,IF(Control!$B50=\"M\",'RES S curve-connect'!T220,'RES S curve-connect'!T198))","v":-973.49192937065413},{"$f":"IF(Control!$B50=\"L\",'RES S curve-connect'!U242,IF(Control!$B50=\"M\",'RES S curve-connect'!U220,'RES S curve-connect'!U198))","v":-577.37535436136602},{"$f":"IF(Control!$B50=\"L\",'RES S curve-connect'!V242,IF(Control!$B50=\"M\",'RES S curve-connect'!V220,'RES S curve-connect'!V198))","v":-306.74880928842384},{"$f":"IF(Control!$B50=\"L\",'RES S curve-connect'!W242,IF(Control!$B50=\"M\",'RES S curve-connect'!W220,'RES S curve-connect'!W198))","v":-95.435918196295972},{"$f":"IF(Control!$B50=\"L\",'RES S curve-connect'!X242,IF(Control!$B50=\"M\",'RES S curve-connect'!X220,'RES S curve-connect'!X198))","v":381.88811534931222},{"$f":"IF(Control!$B50=\"L\",'RES S curve-connect'!Y242,IF(Control!$B50=\"M\",'RES S curve-connect'!Y220,'RES S curve-connect'!Y198))","v":864.60713567019377},{"$f":"IF(Control!$B50=\"L\",'RES S curve-connect'!Z242,IF(Control!$B50=\"M\",'RES S curve-connect'!Z220,'RES S curve-connect'!Z198))","v":1191.8563997525503},{"$f":"IF(Control!$B50=\"L\",'RES S curve-connect'!AA242,IF(Control!$B50=\"M\",'RES S curve-connect'!AA220,'RES S curve-connect'!AA198))","v":1518.902903184055},{"$f":"IF(Control!$B50=\"L\",'RES S curve-connect'!AB242,IF(Control!$B50=\"M\",'RES S curve-connect'!AB220,'RES S curve-connect'!AB198))","v":1780.2273757296396},{"$f":"IF(Control!$B50=\"L\",'RES S curve-connect'!AC242,IF(Control!$B50=\"M\",'RES S curve-connect'!AC220,'RES S curve-connect'!AC198))","v":2031.9083343471723},{"$f":"IF(Control!$B50=\"L\",'RES S curve-connect'!AD242,IF(Control!$B50=\"M\",'RES S curve-connect'!AD220,'RES S curve-connect'!AD198))","v":2262.8989115547338},{"$f":"IF(Control!$B50=\"L\",'RES S curve-connect'!AE242,IF(Control!$B50=\"M\",'RES S curve-connect'!AE220,'RES S curve-connect'!AE198))","v":2505.2801751020052},{"$f":"IF(Control!$B50=\"L\",'RES S curve-connect'!AF242,IF(Control!$B50=\"M\",'RES S curve-connect'!AF220,'RES S curve-connect'!AF198))","v":2818.7850041413594},{"$f":"IF(Control!$B50=\"L\",'RES S curve-connect'!AG242,IF(Control!$B50=\"M\",'RES S curve-connect'!AG220,'RES S curve-connect'!AG198))","v":3033.3842757415796},{"$f":"IF(Control!$B50=\"L\",'RES S curve-connect'!AH242,IF(Control!$B50=\"M\",'RES S curve-connect'!AH220,'RES S curve-connect'!AH198))","v":3336.0161887222189},{"$f":"IF(Control!$B50=\"L\",'RES S curve-connect'!AI242,IF(Control!$B50=\"M\",'RES S curve-connect'!AI220,'RES S curve-connect'!AI198))","v":3607.4548278147909},{"$f":"IF(Control!$B50=\"L\",'RES S curve-connect'!AJ242,IF(Control!$B50=\"M\",'RES S curve-connect'!AJ220,'RES S curve-connect'!AJ198))","v":3852.5493284629483},{"$f":"IF(Control!$B50=\"L\",'RES S curve-connect'!AK242,IF(Control!$B50=\"M\",'RES S curve-connect'!AK220,'RES S curve-connect'!AK198))","v":4112.7303129713318},{"$f":"IF(Control!$B50=\"L\",'RES S curve-connect'!AL242,IF(Control!$B50=\"M\",'RES S curve-connect'!AL220,'RES S curve-connect'!AL198))","v":3213.7105298455253},{"$f":"IF(Control!$B50=\"L\",'RES S curve-connect'!AM242,IF(Control!$B50=\"M\",'RES S curve-connect'!AM220,'RES S curve-connect'!AM198))","v":3095.067538545773},{"$f":"IF(Control!$B50=\"L\",'RES S curve-connect'!AN242,IF(Control!$B50=\"M\",'RES S curve-connect'!AN220,'RES S curve-connect'!AN198))","v":3340.8414934328689},{"$f":"IF(Control!$B50=\"L\",'RES S curve-connect'!AO242,IF(Control!$B50=\"M\",'RES S curve-connect'!AO220,'RES S curve-connect'!AO198))","v":3641.9576457020485},{"$f":"IF(Control!$B50=\"L\",'RES S curve-connect'!AP242,IF(Control!$B50=\"M\",'RES S curve-connect'!AP220,'RES S curve-connect'!AP198))","v":3920.4486852791251},{"$f":"IF(Control!$B50=\"L\",'RES S curve-connect'!AQ242,IF(Control!$B50=\"M\",'RES S curve-connect'!AQ220,'RES S curve-connect'!AQ198))","v":4219.9627175410624},{"$f":"IF(Control!$B50=\"L\",'RES S curve-connect'!AR242,IF(Control!$B50=\"M\",'RES S curve-connect'!AR220,'RES S curve-connect'!AR198))","v":4549.0169762300957},{"$f":"IF(Control!$B50=\"L\",'RES S curve-connect'!AS242,IF(Control!$B50=\"M\",'RES S curve-connect'!AS220,'RES S curve-connect'!AS198))","v":4918.3124551488372},{"$f":"IF(Control!$B50=\"L\",'RES S curve-connect'!AT242,IF(Control!$B50=\"M\",'RES S curve-connect'!AT220,'RES S curve-connect'!AT198))","v":5331.618884766237},{"$f":"IF(Control!$B50=\"L\",'RES S curve-connect'!AU242,IF(Control!$B50=\"M\",'RES S curve-connect'!AU220,'RES S curve-connect'!AU198))","v":5809.50467906023},{"$f":"IF(Control!$B50=\"L\",'RES S curve-connect'!AV242,IF(Control!$B50=\"M\",'RES S curve-connect'!AV220,'RES S curve-connect'!AV198))","v":6354.8971329229826},{"$f":"IF(Control!$B50=\"L\",'RES S curve-connect'!AW242,IF(Control!$B50=\"M\",'RES S curve-connect'!AW220,'RES S curve-connect'!AW198))","v":6981.9134672943055},{"$f":"IF(Control!$B50=\"L\",'RES S curve-connect'!AX242,IF(Control!$B50=\"M\",'RES S curve-connect'!AX220,'RES S curve-connect'!AX198))","v":7696.8730105227005},{"$f":"IF(Control!$B50=\"L\",'RES S curve-connect'!AY242,IF(Control!$B50=\"M\",'RES S curve-connect'!AY220,'RES S curve-connect'!AY198))","v":8521.7008939280622},{"$f":"IF(Control!$B50=\"L\",'RES S curve-connect'!AZ242,IF(Control!$B50=\"M\",'RES S curve-connect'!AZ220,'RES S curve-connect'!AZ198))","v":9465.0844606527517},{"$f":"IF(Control!$B50=\"L\",'RES S curve-connect'!BA242,IF(Control!$B50=\"M\",'RES S curve-connect'!BA220,'RES S curve-connect'!BA198))","v":10557.940743995068},{"$f":"IF(Control!$B50=\"L\",'RES S curve-connect'!BB242,IF(Control!$B50=\"M\",'RES S curve-connect'!BB220,'RES S curve-connect'!BB198))","v":11835.331990995008},{"$f":"IF(Control!$B50=\"L\",'RES S curve-connect'!BC242,IF(Control!$B50=\"M\",'RES S curve-connect'!BC220,'RES S curve-connect'!BC198))","v":13358.742491107161},{"$f":"IF(Control!$B50=\"L\",'RES S curve-connect'!BD242,IF(Control!$B50=\"M\",'RES S curve-connect'!BD220,'RES S curve-connect'!BD198))","v":14829.902890215308},{"$f":"IF(Control!$B50=\"L\",'RES S curve-connect'!BE242,IF(Control!$B50=\"M\",'RES S curve-connect'!BE220,'RES S curve-connect'!BE198))","v":16175.069163908393},{"$f":"IF(Control!$B50=\"L\",'RES S curve-connect'!BF242,IF(Control!$B50=\"M\",'RES S curve-connect'!BF220,'RES S curve-connect'!BF198))","v":17551.273976824137},{"$f":"IF(Control!$B50=\"L\",'RES S curve-connect'!BG242,IF(Control!$B50=\"M\",'RES S curve-connect'!BG220,'RES S curve-connect'!BG198))","v":19108.246656692405},{"$f":"IF(Control!$B50=\"L\",'RES S curve-connect'!BH242,IF(Control!$B50=\"M\",'RES S curve-connect'!BH220,'RES S curve-connect'!BH198))","v":20956.807050483716},{"$f":"IF(Control!$B50=\"L\",'RES S curve-connect'!BI242,IF(Control!$B50=\"M\",'RES S curve-connect'!BI220,'RES S curve-connect'!BI198))","v":23635.004582306945},{"$f":"IF(Control!$B50=\"L\",'RES S curve-connect'!BJ242,IF(Control!$B50=\"M\",'RES S curve-connect'!BJ220,'RES S curve-connect'!BJ198))","v":27559.155744665994},{"$f":"IF(Control!$B50=\"L\",'RES S curve-connect'!BK242,IF(Control!$B50=\"M\",'RES S curve-connect'!BK220,'RES S curve-connect'!BK198))","v":33353.042556057298},{"$f":"IF(Control!$B50=\"L\",'RES S curve-connect'!BL242,IF(Control!$B50=\"M\",'RES S curve-connect'!BL220,'RES S curve-connect'!BL198))","v":-76.757469407865301},{"$f":"IF(Control!$B50=\"L\",'RES S curve-connect'!BM242,IF(Control!$B50=\"M\",'RES S curve-connect'!BM220,'RES S curve-connect'!BM198))","v":-69.431600190523284},{"$f":"IF(Control!$B50=\"L\",'RES S curve-connect'!BN242,IF(Control!$B50=\"M\",'RES S curve-connect'!BN220,'RES S curve-connect'!BN198))","v":-65.4562403147483},{"$f":"IF(Control!$B50=\"L\",'RES S curve-connect'!BO242,IF(Control!$B50=\"M\",'RES S curve-connect'!BO220,'RES S curve-connect'!BO198))","v":-54.810069508032598},{"$f":"IF(Control!$B50=\"L\",'RES S curve-connect'!BP242,IF(Control!$B50=\"M\",'RES S curve-connect'!BP220,'RES S curve-connect'!BP198))","v":-47.5142869786701},{"$f":"IF(Control!$B50=\"L\",'RES S curve-connect'!BQ242,IF(Control!$B50=\"M\",'RES S curve-connect'!BQ220,'RES S curve-connect'!BQ198))","v":-40.228412907774214},{"$f":"IF(Control!$B50=\"L\",'RES S curve-connect'!BR242,IF(Control!$B50=\"M\",'RES S curve-connect'!BR220,'RES S curve-connect'!BR198))","v":-36.29280755027105},{"$f":"IF(Control!$B50=\"L\",'RES S curve-connect'!BS242,IF(Control!$B50=\"M\",'RES S curve-connect'!BS220,'RES S curve-connect'!BS198))","v":-25.68615212918894},{"$f":"IF(Control!$B50=\"L\",'RES S curve-connect'!BT242,IF(Control!$B50=\"M\",'RES S curve-connect'!BT220,'RES S curve-connect'!BT198))","v":-18.42964733890858},{"$f":"IF(Control!$B50=\"L\",'RES S curve-connect'!BU242,IF(Control!$B50=\"M\",'RES S curve-connect'!BU220,'RES S curve-connect'!BU198))","v":-11.182814837250248},{"$f":"IF(Control!$B50=\"L\",'RES S curve-connect'!BV242,IF(Control!$B50=\"M\",'RES S curve-connect'!BV220,'RES S curve-connect'!BV198))","v":-7.2860163465270489},{"$f":"IF(Control!$B50=\"L\",'RES S curve-connect'!BW242,IF(Control!$B50=\"M\",'RES S curve-connect'!BW220,'RES S curve-connect'!BW198))","v":3.2820654521152619},{"$f":"IF(Control!$B50=\"L\",'RES S curve-connect'!BX242,IF(Control!$B50=\"M\",'RES S curve-connect'!BX220,'RES S curve-connect'!BX198))","v":10.500228415376057},{"$f":"IF(Control!$B50=\"L\",'RES S curve-connect'!BY242,IF(Control!$B50=\"M\",'RES S curve-connect'!BY220,'RES S curve-connect'!BY198))","v":17.708949445663052},{"$f":"IF(Control!$B50=\"L\",'RES S curve-connect'!BZ242,IF(Control!$B50=\"M\",'RES S curve-connect'!BZ220,'RES S curve-connect'!BZ198))","v":21.567865389981989},{"$f":"IF(Control!$B50=\"L\",'RES S curve-connect'!CA242,IF(Control!$B50=\"M\",'RES S curve-connect'!CA220,'RES S curve-connect'!CA198))","v":32.09829214553281},{"$f":"IF(Control!$B50=\"L\",'RES S curve-connect'!CB242,IF(Control!$B50=\"M\",'RES S curve-connect'!CB220,'RES S curve-connect'!CB198))","v":39.279026156335817},{"$f":"IF(Control!$B50=\"L\",'RES S curve-connect'!CC242,IF(Control!$B50=\"M\",'RES S curve-connect'!CC220,'RES S curve-connect'!CC198))","v":46.450542921032024},{"$f":"IF(Control!$B50=\"L\",'RES S curve-connect'!CD242,IF(Control!$B50=\"M\",'RES S curve-connect'!CD220,'RES S curve-connect'!CD198))","v":-63.249252305339269}]
["Frankston (C)",{"$f":"Customers!K145","v":1},{"$f":"IF(Control!$B51=\"L\",'RES S curve-connect'!C243,IF(Control!$B51=\"M\",'RES S curve-connect'!C221,'RES S curve-connect'!C199))","v":-3872.0596333040685},{"$f":"IF(Control!$B51=\"L\",'RES S curve-connect'!D243,IF(Control!$B51=\"M\",'RES S curve-connect'!D221,'RES S curve-connect'!D199))","v":-4306.7876589780208},{"$f":"IF(Control!$B51=\"L\",'RES S curve-connect'!E243,IF(Control!$B51=\"M\",'RES S curve-connect'!E221,'RES S curve-connect'!E199))","v":-3047.2730910621704},{"$f":"IF(Control!$B51=\"L\",'RES S curve-connect'!F243,IF(Control!$B51=\"M\",'RES S curve-connect'!F221,'RES S curve-connect'!F199))","v":-2911.8422618682807},{"$f":"IF(Control!$B51=\"L\",'RES S curve-connect'!G243,IF(Control!$B51=\"M\",'RES S curve-connect'!G221,'RES S curve-connect'!G199))","v":-4542.2901337816775},{"$f":"IF(Control!$B51=\"L\",'RES S curve-connect'!H243,IF(Control!$B51=\"M\",'RES S curve-connect'!H221,'RES S curve-connect'!H199))","v":-4543.2686887773743},{"$f":"IF(Control!$B51=\"L\",'RES S curve-connect'!I243,IF(Control!$B51=\"M\",'RES S curve-connect'!I221,'RES S curve-connect'!I199))","v":-4161.1535458810613},{"$f":"IF(Control!$B51=\"L\",'RES S curve-connect'!J243,IF(Control!$B51=\"M\",'RES S curve-connect'!J221,'RES S curve-connect'!J199))","v":-4517.6013127440083},{"$f":"IF(Control!$B51=\"L\",'RES S curve-connect'!K243,IF(Control!$B51=\"M\",'RES S curve-connect'!K221,'RES S curve-connect'!K199))","v":-3710.1505293332966},{"$f":"IF(Control!$B51=\"L\",'RES S curve-connect'!L243,IF(Control!$B51=\"M\",'RES S curve-connect'!L221,'RES S curve-connect'!L199))","v":-3988.119455972721},{"$f":"IF(Control!$B51=\"L\",'RES S curve-connect'!M243,IF(Control!$B51=\"M\",'RES S curve-connect'!M221,'RES S curve-connect'!M199))","v":-4540.1838171459785},{"$f":"IF(Control!$B51=\"L\",'RES S curve-connect'!N243,IF(Control!$B51=\"M\",'RES S curve-connect'!N221,'RES S curve-connect'!N199))","v":-4573.7224620312772},{"$f":"IF(Control!$B51=\"L\",'RES S curve-connect'!O243,IF(Control!$B51=\"M\",'RES S curve-connect'!O221,'RES S curve-connect'!O199))","v":-4067.5651824635165},{"$f":"IF(Control!$B51=\"L\",'RES S curve-connect'!P243,IF(Control!$B51=\"M\",'RES S curve-connect'!P221,'RES S curve-connect'!P199))","v":-3657.209604251078},{"$f":"IF(Control!$B51=\"L\",'RES S curve-connect'!Q243,IF(Control!$B51=\"M\",'RES S curve-connect'!Q221,'RES S curve-connect'!Q199))","v":-3047.1704883276088},{"$f":"IF(Control!$B51=\"L\",'RES S curve-connect'!R243,IF(Control!$B51=\"M\",'RES S curve-connect'!R221,'RES S curve-connect'!R199))","v":-2692.6083940351241},{"$f":"IF(Control!$B51=\"L\",'RES S curve-connect'!S243,IF(Control!$B51=\"M\",'RES S curve-connect'!S221,'RES S curve-connect'!S199))","v":-2144.5427755409219},{"$f":"IF(Control!$B51=\"L\",'RES S curve-connect'!T243,IF(Control!$B51=\"M\",'RES S curve-connect'!T221,'RES S curve-connect'!T199))","v":-1828.9162517408868},{"$f":"IF(Control!$B51=\"L\",'RES S curve-connect'!U243,IF(Control!$B51=\"M\",'RES S curve-connect'!U221,'RES S curve-connect'!U199))","v":-1478.0721822357107},{"$f":"IF(Control!$B51=\"L\",'RES S curve-connect'!V243,IF(Control!$B51=\"M\",'RES S curve-connect'!V221,'RES S curve-connect'!V199))","v":-1235.472924393963},{"$f":"IF(Control!$B51=\"L\",'RES S curve-connect'!W243,IF(Control!$B51=\"M\",'RES S curve-connect'!W221,'RES S curve-connect'!W199))","v":-1041.8335163713539},{"$f":"IF(Control!$B51=\"L\",'RES S curve-connect'!X243,IF(Control!$B51=\"M\",'RES S curve-connect'!X221,'RES S curve-connect'!X199))","v":-621.25031630109493},{"$f":"IF(Control!$B51=\"L\",'RES S curve-connect'!Y243,IF(Control!$B51=\"M\",'RES S curve-connect'!Y221,'RES S curve-connect'!Y199))","v":-197.0609945398046},{"$f":"IF(Control!$B51=\"L\",'RES S curve-connect'!Z243,IF(Control!$B51=\"M\",'RES S curve-connect'!Z221,'RES S curve-connect'!Z199))","v":95.118332461719774},{"$f":"IF(Control!$B51=\"L\",'RES S curve-connect'!AA243,IF(Control!$B51=\"M\",'RES S curve-connect'!AA221,'RES S curve-connect'!AA199))","v":386.04742072204158},{"$f":"IF(Control!$B51=\"L\",'RES S curve-connect'!AB243,IF(Control!$B51=\"M\",'RES S curve-connect'!AB221,'RES S curve-connect'!AB199))","v":621.87158901332464},{"$f":"IF(Control!$B51=\"L\",'RES S curve-connect'!AC243,IF(Control!$B51=\"M\",'RES S curve-connect'!AC221,'RES S curve-connect'!AC199))","v":848.89927461700336},{"$f":"IF(Control!$B51=\"L\",'RES S curve-connect'!AD243,IF(Control!$B51=\"M\",'RES S curve-connect'!AD221,'RES S curve-connect'!AD199))","v":1058.5107095889175},{"$f":"IF(Control!$B51=\"L\",'RES S curve-connect'!AE243,IF(Control!$B51=\"M\",'RES S curve-connect'!AE221,'RES S curve-connect'!AE199))","v":1276.2031160003851},{"$f":"IF(Control!$B51=\"L\",'RES S curve-connect'!AF243,IF(Control!$B51=\"M\",'RES S curve-connect'!AF221,'RES S curve-connect'!AF199))","v":1554.6525516342303},{"$f":"IF(Control!$B51=\"L\",'RES S curve-connect'!AG243,IF(Control!$B51=\"M\",'RES S curve-connect'!AG221,'RES S curve-connect'!AG199))","v":1733.5442924388813},{"$f":"IF(Control!$B51=\"L\",'RES S curve-connect'!AH243,IF(Control!$B51=\"M\",'RES S curve-connect'!AH221,'RES S curve-connect'!AH199))","v":1988.6207650635577},{"$f":"IF(Control!$B51=\"L\",'RES S curve-connect'!AI243,IF(Control!$B51=\"M\",'RES S curve-connect'!AI221,'RES S curve-connect'!AI199))","v":2214.8855586861255},{"$f":"IF(Control!$B51=\"L\",'RES S curve-connect'!AJ243,IF(Control!$B51=\"M\",'RES S curve-connect'!AJ221,'RES S curve-connect'!AJ199))","v":2419.7062717957056},{"$f":"IF(Control!$B51=\"L\",'RES S curve-connect'!AK243,IF(Control!$B51=\"M\",'RES S curve-connect'!AK221,'RES S curve-connect'!AK199))","v":2637.0511731175425},{"$f":"IF(Control!$B51=\"L\",'RES S curve-connect'!AL243,IF(Control!$B51=\"M\",'RES S curve-connect'!AL221,'RES S curve-connect'!AL199))","v":1892.4116164001996},{"$f":"IF(Control!$B51=\"L\",'RES S curve-connect'!AM243,IF(Control!$B51=\"M\",'RES S curve-connect'!AM221,'RES S curve-connect'!AM199))","v":1790.2664092673078},{"$f":"IF(Control!$B51=\"L\",'RES S curve-connect'!AN243,IF(Control!$B51=\"M\",'RES S curve-connect'!AN221,'RES S curve-connect'!AN199))","v":1993.6237992431388},{"$f":"IF(Control!$B51=\"L\",'RES S curve-connect'!AO243,IF(Control!$B51=\"M\",'RES S curve-connect'!AO221,'RES S curve-connect'!AO199))","v":2244.6369274514327},{"$f":"IF(Control!$B51=\"L\",'RES S curve-connect'!AP243,IF(Control!$B51=\"M\",'RES S curve-connect'!AP221,'RES S curve-connect'!AP199))","v":2477.8754358510855},{"$f":"IF(Control!$B51=\"L\",'RES S curve-connect'!AQ243,IF(Control!$B51=\"M\",'RES S curve-connect'!AQ221,'RES S curve-connect'!AQ199))","v":2727.6202545547449},{"$f":"IF(Control!$B51=\"L\",'RES S curve-connect'!AR243,IF(Control!$B51=\"M\",'RES S curve-connect'!AR221,'RES S curve-connect'!AR199))","v":3002.6511997015814},{"$f":"IF(Control!$B51=\"L\",'RES S curve-connect'!AS243,IF(Control!$B51=\"M\",'RES S curve-connect'!AS221,'RES S curve-connect'!AS199))","v":3311.4936802353477},{"$f":"IF(Control!$B51=\"L\",'RES S curve-connect'!AT243,IF(Control!$B51=\"M\",'RES S curve-connect'!AT221,'RES S curve-connect'!AT199))","v":3657.8973035136823},{"$f":"IF(Control!$B51=\"L\",'RES S curve-connect'!AU243,IF(Control!$B51=\"M\",'RES S curve-connect'!AU221,'RES S curve-connect'!AU199))","v":4057.5385610353496},{"$f":"IF(Control!$B51=\"L\",'RES S curve-connect'!AV243,IF(Control!$B51=\"M\",'RES S curve-connect'!AV221,'RES S curve-connect'!AV199))","v":4514.5680341905017},{"$f":"IF(Control!$B51=\"L\",'RES S curve-connect'!AW243,IF(Control!$B51=\"M\",'RES S curve-connect'!AW221,'RES S curve-connect'!AW199))","v":5040.4439199125645},{"$f":"IF(Control!$B51=\"L\",'RES S curve-connect'!AX243,IF(Control!$B51=\"M\",'RES S curve-connect'!AX221,'RES S curve-connect'!AX199))","v":5641.2087045449462},{"$f":"IF(Control!$B51=\"L\",'RES S curve-connect'!AY243,IF(Control!$B51=\"M\",'RES S curve-connect'!AY221,'RES S curve-connect'!AY199))","v":6333.8575580290471},{"$f":"IF(Control!$B51=\"L\",'RES S curve-connect'!AZ243,IF(Control!$B51=\"M\",'RES S curve-connect'!AZ221,'RES S curve-connect'!AZ199))","v":7127.5503238264992},{"$f":"IF(Control!$B51=\"L\",'RES S curve-connect'!BA243,IF(Control!$B51=\"M\",'RES S curve-connect'!BA221,'RES S curve-connect'!BA199))","v":8048.0204909288832},{"$f":"IF(Control!$B51=\"L\",'RES S curve-connect'!BB243,IF(Control!$B51=\"M\",'RES S curve-connect'!BB221,'RES S curve-connect'!BB199))","v":9125.7168027041662},{"$f":"IF(Control!$B51=\"L\",'RES S curve-connect'!BC243,IF(Control!$B51=\"M\",'RES S curve-connect'!BC221,'RES S curve-connect'!BC199))","v":10411.309742151427},{"$f":"IF(Control!$B51=\"L\",'RES S curve-connect'!BD243,IF(Control!$B51=\"M\",'RES S curve-connect'!BD221,'RES S curve-connect'!BD199))","v":11657.415363889268},{"$f":"IF(Control!$B51=\"L\",'RES S curve-connect'!BE243,IF(Control!$B51=\"M\",'RES S curve-connect'!BE221,'RES S curve-connect'!BE199))","v":12798.334183423556},{"$f":"IF(Control!$B51=\"L\",'RES S curve-connect'!BF243,IF(Control!$B51=\"M\",'RES S curve-connect'!BF221,'RES S curve-connect'!BF199))","v":13965.125488719976},{"$f":"IF(Control!$B51=\"L\",'RES S curve-connect'!BG243,IF(Control!$B51=\"M\",'RES S curve-connect'!BG221,'RES S curve-connect'!BG199))","v":15283.452286215883},{"$f":"IF(Control!$B51=\"L\",'RES S curve-connect'!BH243,IF(Control!$B51=\"M\",'RES S curve-connect'!BH221,'RES S curve-connect'!BH199))","v":16849.724506355418},{"$f":"IF(Control!$B51=\"L\",'RES S curve-connect'!BI243,IF(Control!$B51=\"M\",'RES S curve-connect'!BI221,'RES S curve-connect'!BI199))","v":19117.89388711123},{"$f":"IF(Control!$B51=\"L\",'RES S curve-connect'!BJ243,IF(Control!$B51=\"M\",'RES S curve-connect'!BJ221,'RES S curve-connect'!BJ199))","v":22446.61537670012},{"$f":"IF(Control!$B51=\"L\",'RES S curve-connect'!BK243,IF(Control!$B51=\"M\",'RES S curve-connect'!BK221,'RES S curve-connect'!BK199))","v":27369.239647989805},{"$f":"IF(Control!$B51=\"L\",'RES S curve-connect'!BL243,IF(Control!$B51=\"M\",'RES S curve-connect'!BL221,'RES S curve-connect'!BL199))","v":-841.08135136524447},{"$f":"IF(Control!$B51=\"L\",'RES S curve-connect'!BM243,IF(Control!$B51=\"M\",'RES S curve-connect'!BM221,'RES S curve-connect'!BM199))","v":-834.99366099080544},{"$f":"IF(Control!$B51=\"L\",'RES S curve-connect'!BN243,IF(Control!$B51=\"M\",'RES S curve-connect'!BN221,'RES S curve-connect'!BN199))","v":-831.17618749233077},{"$f":"IF(Control!$B51=\"L\",'RES S curve-connect'!BO243,IF(Control!$B51=\"M\",'RES S curve-connect'!BO221,'RES S curve-connect'!BO199))","v":-822.84027601478715},{"$f":"IF(Control!$B51=\"L\",'RES S curve-connect'!BP243,IF(Control!$B51=\"M\",'RES S curve-connect'!BP221,'RES S curve-connect'!BP199))","v":-816.77449518344383},{"$f":"IF(Control!$B51=\"L\",'RES S curve-connect'!BQ243,IF(Control!$B51=\"M\",'RES S curve-connect'!BQ221,'RES S curve-connect'!BQ199))","v":-810.71593174479312},{"$f":"IF(Control!$B51=\"L\",'RES S curve-connect'!BR243,IF(Control!$B51=\"M\",'RES S curve-connect'!BR221,'RES S curve-connect'!BR199))","v":-806.92741377933669},{"$f":"IF(Control!$B51=\"L\",'RES S curve-connect'!BS243,IF(Control!$B51=\"M\",'RES S curve-connect'!BS221,'RES S curve-connect'!BS199))","v":-798.62028748549392},{"$f":"IF(Control!$B51=\"L\",'RES S curve-connect'!BT243,IF(Control!$B51=\"M\",'RES S curve-connect'!BT221,'RES S curve-connect'!BT199))","v":-792.58312253536678},{"$f":"IF(Control!$B51=\"L\",'RES S curve-connect'!BU243,IF(Control!$B51=\"M\",'RES S curve-connect'!BU221,'RES S curve-connect'!BU199))","v":-786.55300671570626},{"$f":"IF(Control!$B51=\"L\",'RES S curve-connect'!BV243,IF(Control!$B51=\"M\",'RES S curve-connect'!BV221,'RES S curve-connect'!BV199))","v":-782.79276914074273},{"$f":"IF(Control!$B51=\"L\",'RES S curve-connect'!BW243,IF(Control!$B51=\"M\",'RES S curve-connect'!BW221,'RES S curve-connect'!BW199))","v":-774.51375703613257},{"$f":"IF(Control!$B51=\"L\",'RES S curve-connect'!BX243,IF(Control!$B51=\"M\",'RES S curve-connect'!BX221,'RES S curve-connect'!BX199))","v":-768.50454109476459},{"$f":"IF(Control!$B51=\"L\",'RES S curve-connect'!BY243,IF(Control!$B51=\"M\",'RES S curve-connect'!BY221,'RES S curve-connect'!BY199))","v":-762.50221011777035},{"$f":"IF(Control!$B51=\"L\",'RES S curve-connect'!BZ243,IF(Control!$B51=\"M\",'RES S curve-connect'!BZ221,'RES S curve-connect'!BZ199))","v":-758.76959422739299},{"$f":"IF(Control!$B51=\"L\",'RES S curve-connect'!CA243,IF(Control!$B51=\"M\",'RES S curve-connect'!CA221,'RES S curve-connect'!CA199))","v":-750.51804165096905},{"$f":"IF(Control!$B51=\"L\",'RES S curve-connect'!CB243,IF(Control!$B51=\"M\",'RES S curve-connect'!CB221,'RES S curve-connect'!CB199))","v":-744.53612407678406},{"$f":"IF(Control!$B51=\"L\",'RES S curve-connect'!CC243,IF(Control!$B51=\"M\",'RES S curve-connect'!CC221,'RES S curve-connect'!CC199))","v":-738.56093129511896},{"$f":"IF(Control!$B51=\"L\",'RES S curve-connect'!CD243,IF(Control!$B51=\"M\",'RES S curve-connect'!CD221,'RES S curve-connect'!CD199))","v":-832.47764241334312}]
["Glen Eira (C)",{"$f":"Customers!K146","v":51794},{"$f":"IF(Control!$B52=\"L\",'RES S curve-connect'!C244,IF(Control!$B52=\"M\",'RES S curve-connect'!C222,'RES S curve-connect'!C200))","v":-2420.2663529859519},{"$f":"IF(Control!$B52=\"L\",'RES S curve-connect'!D244,IF(Control!$B52=\"M\",'RES S curve-connect'!D222,'RES S curve-connect'!D200))","v":-2990.1469888643642},{"$f":"IF(Control!$B52=\"L\",'RES S curve-connect'!E244,IF(Control!$B52=\"M\",'RES S curve-connect'!E222,'RES S curve-connect'!E200))","v":-2480.9941062836724},{"$f":"IF(Control!$B52=\"L\",'RES S curve-connect'!F244,IF(Control!$B52=\"M\",'RES S curve-connect'!F222,'RES S curve-connect'!F200))","v":-2313.5816504202658},{"$f":"IF(Control!$B52=\"L\",'RES S curve-connect'!G244,IF(Control!$B52=\"M\",'RES S curve-connect'!G222,'RES S curve-connect'!G200))","v":-3449.2956441658002},{"$f":"IF(Control!$B52=\"L\",'RES S curve-connect'!H244,IF(Control!$B52=\"M\",'RES S curve-connect'!H222,'RES S curve-connect'!H200))","v":-3481.4094161658231},{"$f":"IF(Control!$B52=\"L\",'RES S curve-connect'!I244,IF(Control!$B52=\"M\",'RES S curve-connect'!I222,'RES S curve-connect'!I200))","v":-3002.6224044438582},{"$f":"IF(Control!$B52=\"L\",'RES S curve-connect'!J244,IF(Control!$B52=\"M\",'RES S curve-connect'!J222,'RES S curve-connect'!J200))","v":-3310.2712065101941},{"$f":"IF(Control!$B52=\"L\",'RES S curve-connect'!K244,IF(Control!$B52=\"M\",'RES S curve-connect'!K222,'RES S curve-connect'!K200))","v":-2455.4699716386249},{"$f":"IF(Control!$B52=\"L\",'RES S curve-connect'!L244,IF(Control!$B52=\"M\",'RES S curve-connect'!L222,'RES S curve-connect'!L200))","v":-2852.5969169345549},{"$f":"IF(Control!$B52=\"L\",'RES S curve-connect'!M244,IF(Control!$B52=\"M\",'RES S curve-connect'!M222,'RES S curve-connect'!M200))","v":-3556.8093256820925},{"$f":"IF(Control!$B52=\"L\",'RES S curve-connect'!N244,IF(Control!$B52=\"M\",'RES S curve-connect'!N222,'RES S curve-connect'!N200))","v":-3630.5261280737241},{"$f":"IF(Control!$B52=\"L\",'RES S curve-connect'!O244,IF(Control!$B52=\"M\",'RES S curve-connect'!O222,'RES S curve-connect'!O200))","v":-3016.9119984456811},{"$f":"IF(Control!$B52=\"L\",'RES S curve-connect'!P244,IF(Control!$B52=\"M\",'RES S curve-connect'!P222,'RES S curve-connect'!P200))","v":-2531.0206139116285},{"$f":"IF(Control!$B52=\"L\",'RES S curve-connect'!Q244,IF(Control!$B52=\"M\",'RES S curve-connect'!Q222,'RES S curve-connect'!Q200))","v":-1792.9275421625266},{"$f":"IF(Control!$B52=\"L\",'RES S curve-connect'!R244,IF(Control!$B52=\"M\",'RES S curve-connect'!R222,'RES S curve-connect'!R200))","v":-1378.0174956404667},{"$f":"IF(Control!$B52=\"L\",'RES S curve-connect'!S244,IF(Control!$B52=\"M\",'RES S curve-connect'!S222,'RES S curve-connect'!S200))","v":-711.14079886715103},{"$f":"IF(Control!$B52=\"L\",'RES S curve-connect'!T244,IF(Control!$B52=\"M\",'RES S curve-connect'!T222,'RES S curve-connect'!T200))","v":-357.30870425916845},{"$f":"IF(Control!$B52=\"L\",'RES S curve-connect'!U244,IF(Control!$B52=\"M\",'RES S curve-connect'!U222,'RES S curve-connect'!U200))","v":51.403681457640857},{"$f":"IF(Control!$B52=\"L\",'RES S curve-connect'!V244,IF(Control!$B52=\"M\",'RES S curve-connect'!V222,'RES S curve-connect'!V200))","v":329.09566314405026},{"$f":"IF(Control!$B52=\"L\",'RES S curve-connect'!W244,IF(Control!$B52=\"M\",'RES S curve-connect'!W222,'RES S curve-connect'!W200))","v":543.98723107271303},{"$f":"IF(Control!$B52=\"L\",'RES S curve-connect'!X244,IF(Control!$B52=\"M\",'RES S curve-connect'!X222,'RES S curve-connect'!X200))","v":1038.3230655825691},{"$f":"IF(Control!$B52=\"L\",'RES S curve-connect'!Y244,IF(Control!$B52=\"M\",'RES S curve-connect'!Y222,'RES S curve-connect'!Y200))","v":1539.138847879371},{"$f":"IF(Control!$B52=\"L\",'RES S curve-connect'!Z244,IF(Control!$B52=\"M\",'RES S curve-connect'!Z222,'RES S curve-connect'!Z200))","v":1876.0027144920696},{"$f":"IF(Control!$B52=\"L\",'RES S curve-connect'!AA244,IF(Control!$B52=\"M\",'RES S curve-connect'!AA222,'RES S curve-connect'!AA200))","v":2213.545082508484},{"$f":"IF(Control!$B52=\"L\",'RES S curve-connect'!AB244,IF(Control!$B52=\"M\",'RES S curve-connect'!AB222,'RES S curve-connect'!AB200))","v":2481.8992620202989},{"$f":"IF(Control!$B52=\"L\",'RES S curve-connect'!AC244,IF(Control!$B52=\"M\",'RES S curve-connect'!AC222,'RES S curve-connect'!AC200))","v":2740.6032627718855},{"$f":"IF(Control!$B52=\"L\",'RES S curve-connect'!AD244,IF(Control!$B52=\"M\",'RES S curve-connect'!AD222,'RES S curve-connect'!AD200))","v":2977.3484667414195},{"$f":"IF(Control!$B52=\"L\",'RES S curve-connect'!AE244,IF(Control!$B52=\"M\",'RES S curve-connect'!AE222,'RES S curve-connect'!AE200))","v":3227.4696390226877},{"$f":"IF(Control!$B52=\"L\",'RES S curve-connect'!AF244,IF(Control!$B52=\"M\",'RES S curve-connect'!AF222,'RES S curve-connect'!AF200))","v":3552.237942462546},{"$f":"IF(Control!$B52=\"L\",'RES S curve-connect'!AG244,IF(Control!$B52=\"M\",'RES S curve-connect'!AG222,'RES S curve-connect'!AG200))","v":3781.2713511766556},{"$f":"IF(Control!$B52=\"L\",'RES S curve-connect'!AH244,IF(Control!$B52=\"M\",'RES S curve-connect'!AH222,'RES S curve-connect'!AH200))","v":4101.8571196624544},{"$f":"IF(Control!$B52=\"L\",'RES S curve-connect'!AI244,IF(Control!$B52=\"M\",'RES S curve-connect'!AI222,'RES S curve-connect'!AI200))","v":4391.5894600478105},{"$f":"IF(Control!$B52=\"L\",'RES S curve-connect'!AJ244,IF(Control!$B52=\"M\",'RES S curve-connect'!AJ222,'RES S curve-connect'!AJ200))","v":4652.7427947468159},{"$f":"IF(Control!$B52=\"L\",'RES S curve-connect'!AK244,IF(Control!$B52=\"M\",'RES S curve-connect'!AK222,'RES S curve-connect'!AK200))","v":4930.0507866914249},{"$f":"IF(Control!$B52=\"L\",'RES S curve-connect'!AL244,IF(Control!$B52=\"M\",'RES S curve-connect'!AL222,'RES S curve-connect'!AL200))","v":3965.8476846353055},{"$f":"IF(Control!$B52=\"L\",'RES S curve-connect'!AM244,IF(Control!$B52=\"M\",'RES S curve-connect'!AM222,'RES S curve-connect'!AM200))","v":3841.9006616554771},{"$f":"IF(Control!$B52=\"L\",'RES S curve-connect'!AN244,IF(Control!$B52=\"M\",'RES S curve-connect'!AN222,'RES S curve-connect'!AN200))","v":4105.5545580559092},{"$f":"IF(Control!$B52=\"L\",'RES S curve-connect'!AO244,IF(Control!$B52=\"M\",'RES S curve-connect'!AO222,'RES S curve-connect'!AO200))","v":4426.9715622613203},{"$f":"IF(Control!$B52=\"L\",'RES S curve-connect'!AP244,IF(Control!$B52=\"M\",'RES S curve-connect'!AP222,'RES S curve-connect'!AP200))","v":4723.2835009804403},{"$f":"IF(Control!$B52=\"L\",'RES S curve-connect'!AQ244,IF(Control!$B52=\"M\",'RES S curve-connect'!AQ222,'RES S curve-connect'!AQ200))","v":5042.9326242880934},{"$f":"IF(Control!$B52=\"L\",'RES S curve-connect'!AR244,IF(Control!$B52=\"M\",'RES S curve-connect'!AR222,'RES S curve-connect'!AR200))","v":5393.5465890106607},{"$f":"IF(Control!$B52=\"L\",'RES S curve-connect'!AS244,IF(Control!$B52=\"M\",'RES S curve-connect'!AS222,'RES S curve-connect'!AS200))","v":5786.8961721848091},{"$f":"IF(Control!$B52=\"L\",'RES S curve-connect'!AT244,IF(Control!$B52=\"M\",'RES S curve-connect'!AT222,'RES S curve-connect'!AT200))","v":6226.476409179355},{"$f":"IF(Control!$B52=\"L\",'RES S curve-connect'!AU244,IF(Control!$B52=\"M\",'RES S curve-connect'!AU222,'RES S curve-connect'!AU200))","v":6735.5320192751242},{"$f":"IF(Control!$B52=\"L\",'RES S curve-connect'!AV244,IF(Control!$B52=\"M\",'RES S curve-connect'!AV222,'RES S curve-connect'!AV200))","v":7315.6953453974675},{"$f":"IF(Control!$B52=\"L\",'RES S curve-connect'!AW244,IF(Control!$B52=\"M\",'RES S curve-connect'!AW222,'RES S curve-connect'!AW200))","v":7982.3106099294537},{"$f":"IF(Control!$B52=\"L\",'RES S curve-connect'!AX244,IF(Control!$B52=\"M\",'RES S curve-connect'!AX222,'RES S curve-connect'!AX200))","v":8741.4489121640563},{"$f":"IF(Control!$B52=\"L\",'RES S curve-connect'!AY244,IF(Control!$B52=\"M\",'RES S curve-connect'!AY222,'RES S curve-connect'!AY200))","v":9617.6397157545216},{"$f":"IF(Control!$B52=\"L\",'RES S curve-connect'!AZ244,IF(Control!$B52=\"M\",'RES S curve-connect'!AZ222,'RES S curve-connect'!AZ200))","v":10618.484328396877},{"$f":"IF(Control!$B52=\"L\",'RES S curve-connect'!BA244,IF(Control!$B52=\"M\",'RES S curve-connect'!BA222,'RES S curve-connect'!BA200))","v":11777.028386327976},{"$f":"IF(Control!$B52=\"L\",'RES S curve-connect'!BB244,IF(Control!$B52=\"M\",'RES S curve-connect'!BB222,'RES S curve-connect'!BB200))","v":13129.643691655407},{"$f":"IF(Control!$B52=\"L\",'RES S curve-connect'!BC244,IF(Control!$B52=\"M\",'RES S curve-connect'!BC222,'RES S curve-connect'!BC200))","v":14742.488872654414},{"$f":"IF(Control!$B52=\"L\",'RES S curve-connect'!BD244,IF(Control!$B52=\"M\",'RES S curve-connect'!BD222,'RES S curve-connect'!BD200))","v":16295.992800780057},{"$f":"IF(Control!$B52=\"L\",'RES S curve-connect'!BE244,IF(Control!$B52=\"M\",'RES S curve-connect'!BE222,'RES S curve-connect'!BE200))","v":17715.105304657711},{"$f":"IF(Control!$B52=\"L\",'RES S curve-connect'!BF244,IF(Control!$B52=\"M\",'RES S curve-connect'!BF222,'RES S curve-connect'!BF200))","v":19167.360923736218},{"$f":"IF(Control!$B52=\"L\",'RES S curve-connect'!BG244,IF(Control!$B52=\"M\",'RES S curve-connect'!BG222,'RES S curve-connect'!BG200))","v":20811.892101498113},{"$f":"IF(Control!$B52=\"L\",'RES S curve-connect'!BH244,IF(Control!$B52=\"M\",'RES S curve-connect'!BH222,'RES S curve-connect'!BH200))","v":22763.507761725436},{"$f":"IF(Control!$B52=\"L\",'RES S curve-connect'!BI244,IF(Control!$B52=\"M\",'RES S curve-connect'!BI222,'RES S curve-connect'!BI200))","v":25591.96573354202},{"$f":"IF(Control!$B52=\"L\",'RES S curve-connect'!BJ244,IF(Control!$B52=\"M\",'RES S curve-connect'!BJ222,'RES S curve-connect'!BJ200))","v":29731.648304436985},{"$f":"IF(Control!$B52=\"L\",'RES S curve-connect'!BK244,IF(Control!$B52=\"M\",'RES S curve-connect'!BK222,'RES S curve-connect'!BK200))","v":35836.928894850658},{"$f":"IF(Control!$B52=\"L\",'RES S curve-connect'!BL244,IF(Control!$B52=\"M\",'RES S curve-connect'!BL222,'RES S curve-connect'!BL200))","v":441.87587718691606},{"$f":"IF(Control!$B52=\"L\",'RES S curve-connect'!BM244,IF(Control!$B52=\"M\",'RES S curve-connect'!BM222,'RES S curve-connect'!BM200))","v":449.63397672372957},{"$f":"IF(Control!$B52=\"L\",'RES S curve-connect'!BN244,IF(Control!$B52=\"M\",'RES S curve-connect'!BN222,'RES S curve-connect'!BN200))","v":453.35878964007793},{"$f":"IF(Control!$B52=\"L\",'RES S curve-connect'!BO244,IF(Control!$B52=\"M\",'RES S curve-connect'!BO222,'RES S curve-connect'!BO200))","v":465.11700665294603},{"$f":"IF(Control!$B52=\"L\",'RES S curve-connect'!BP244,IF(Control!$B52=\"M\",'RES S curve-connect'!BP222,'RES S curve-connect'!BP200))","v":472.84207056731759},{"$f":"IF(Control!$B52=\"L\",'RES S curve-connect'!BQ244,IF(Control!$B52=\"M\",'RES S curve-connect'!BQ222,'RES S curve-connect'!BQ200))","v":480.55625543681833},{"$f":"IF(Control!$B52=\"L\",'RES S curve-connect'!BR244,IF(Control!$B52=\"M\",'RES S curve-connect'!BR222,'RES S curve-connect'!BR200))","v":484.23741907153556},{"$f":"IF(Control!$B52=\"L\",'RES S curve-connect'!BS244,IF(Control!$B52=\"M\",'RES S curve-connect'!BS222,'RES S curve-connect'!BS200))","v":495.95225053542072},{"$f":"IF(Control!$B52=\"L\",'RES S curve-connect'!BT244,IF(Control!$B52=\"M\",'RES S curve-connect'!BT222,'RES S curve-connect'!BT200))","v":503.63419099087491},{"$f":"IF(Control!$B52=\"L\",'RES S curve-connect'!BU244,IF(Control!$B52=\"M\",'RES S curve-connect'!BU222,'RES S curve-connect'!BU200))","v":511.30551285932552},{"$f":"IF(Control!$B52=\"L\",'RES S curve-connect'!BV244,IF(Control!$B52=\"M\",'RES S curve-connect'!BV222,'RES S curve-connect'!BV200))","v":514.94407232896981},{"$f":"IF(Control!$B52=\"L\",'RES S curve-connect'!BW244,IF(Control!$B52=\"M\",'RES S curve-connect'!BW222,'RES S curve-connect'!BW200))","v":526.61655685212372},{"$f":"IF(Control!$B52=\"L\",'RES S curve-connect'!BX244,IF(Control!$B52=\"M\",'RES S curve-connect'!BX222,'RES S curve-connect'!BX200))","v":534.25640598973564},{"$f":"IF(Control!$B52=\"L\",'RES S curve-connect'!BY244,IF(Control!$B52=\"M\",'RES S curve-connect'!BY222,'RES S curve-connect'!BY200))","v":541.88589057189688},{"$f":"IF(Control!$B52=\"L\",'RES S curve-connect'!BZ244,IF(Control!$B52=\"M\",'RES S curve-connect'!BZ222,'RES S curve-connect'!BZ200))","v":545.48286520552665},{"$f":"IF(Control!$B52=\"L\",'RES S curve-connect'!CA244,IF(Control!$B52=\"M\",'RES S curve-connect'!CA222,'RES S curve-connect'!CA200))","v":557.11401577165543},{"$f":"IF(Control!$B52=\"L\",'RES S curve-connect'!CB244,IF(Control!$B52=\"M\",'RES S curve-connect'!CB222,'RES S curve-connect'!CB200))","v":564.71278026987034},{"$f":"IF(Control!$B52=\"L\",'RES S curve-connect'!CC244,IF(Control!$B52=\"M\",'RES S curve-connect'!CC222,'RES S curve-connect'!CC200))","v":572.3014279787667},{"$f":"IF(Control!$B52=\"L\",'RES S curve-connect'!CD244,IF(Control!$B52=\"M\",'RES S curve-connect'!CD222,'RES S curve-connect'!CD200))","v":457.25608107068115}]
["Greater Dandenong (C)",{"$f":"Customers!K147","v":56619},{"$f":"IF(Control!$B53=\"L\",'RES S curve-connect'!C245,IF(Control!$B53=\"M\",'RES S curve-connect'!C223,'RES S curve-connect'!C201))","v":-3429.7354363278273},{"$f":"IF(Control!$B53=\"L\",'RES S curve-connect'!D245,IF(Control!$B53=\"M\",'RES S curve-connect'!D223,'RES S curve-connect'!D201))","v":-3763.5347018919747},{"$f":"IF(Control!$B53=\"L\",'RES S curve-connect'!E245,IF(Control!$B53=\"M\",'RES S curve-connect'!E223,'RES S curve-connect'!E201))","v":-2887.9078249097311},{"$f":"IF(Control!$B53=\"L\",'RES S curve-connect'!F245,IF(Control!$B53=\"M\",'RES S curve-connect'!F223,'RES S curve-connect'!F201))","v":-2789.0922931681516},{"$f":"IF(Control!$B53=\"L\",'RES S curve-connect'!G245,IF(Control!$B53=\"M\",'RES S curve-connect'!G223,'RES S curve-connect'!G201))","v":-3780.728043848992},{"$f":"IF(Control!$B53=\"L\",'RES S curve-connect'!H245,IF(Control!$B53=\"M\",'RES S curve-connect'!H223,'RES S curve-connect'!H201))","v":-3827.6094656034134},{"$f":"IF(Control!$B53=\"L\",'RES S curve-connect'!I245,IF(Control!$B53=\"M\",'RES S curve-connect'!I223,'RES S curve-connect'!I201))","v":-3547.7944347572379},{"$f":"IF(Control!$B53=\"L\",'RES S curve-connect'!J245,IF(Control!$B53=\"M\",'RES S curve-connect'!J223,'RES S curve-connect'!J201))","v":-3923.2610449621834},{"$f":"IF(Control!$B53=\"L\",'RES S curve-connect'!K245,IF(Control!$B53=\"M\",'RES S curve-connect'!K223,'RES S curve-connect'!K201))","v":-3303.6847985107606},{"$f":"IF(Control!$B53=\"L\",'RES S curve-connect'!L245,IF(Control!$B53=\"M\",'RES S curve-connect'!L223,'RES S curve-connect'!L201))","v":-3512.0999265618702},{"$f":"IF(Control!$B53=\"L\",'RES S curve-connect'!M245,IF(Control!$B53=\"M\",'RES S curve-connect'!M223,'RES S curve-connect'!M201))","v":-3899.180381296685},{"$f":"IF(Control!$B53=\"L\",'RES S curve-connect'!N245,IF(Control!$B53=\"M\",'RES S curve-connect'!N223,'RES S curve-connect'!N201))","v":-3918.2033528409447},{"$f":"IF(Control!$B53=\"L\",'RES S curve-connect'!O245,IF(Control!$B53=\"M\",'RES S curve-connect'!O223,'RES S curve-connect'!O201))","v":-3536.4705925794324},{"$f":"IF(Control!$B53=\"L\",'RES S curve-connect'!P245,IF(Control!$B53=\"M\",'RES S curve-connect'!P223,'RES S curve-connect'!P201))","v":-3229.3848428254005},{"$f":"IF(Control!$B53=\"L\",'RES S curve-connect'!Q245,IF(Control!$B53=\"M\",'RES S curve-connect'!Q223,'RES S curve-connect'!Q201))","v":-2775.3011357421474},{"$f":"IF(Control!$B53=\"L\",'RES S curve-connect'!R245,IF(Control!$B53=\"M\",'RES S curve-connect'!R223,'RES S curve-connect'!R201))","v":-2509.8202026613676},{"$f":"IF(Control!$B53=\"L\",'RES S curve-connect'!S245,IF(Control!$B53=\"M\",'RES S curve-connect'!S223,'RES S curve-connect'!S201))","v":-2098.1267169795283},{"$f":"IF(Control!$B53=\"L\",'RES S curve-connect'!T245,IF(Control!$B53=\"M\",'RES S curve-connect'!T223,'RES S curve-connect'!T201))","v":-1867.4462198864701},{"$f":"IF(Control!$B53=\"L\",'RES S curve-connect'!U245,IF(Control!$B53=\"M\",'RES S curve-connect'!U223,'RES S curve-connect'!U201))","v":-1605.5461361231476},{"$f":"IF(Control!$B53=\"L\",'RES S curve-connect'!V245,IF(Control!$B53=\"M\",'RES S curve-connect'!V223,'RES S curve-connect'!V201))","v":-1420.3731690138702},{"$f":"IF(Control!$B53=\"L\",'RES S curve-connect'!W245,IF(Control!$B53=\"M\",'RES S curve-connect'!W223,'RES S curve-connect'!W201))","v":-1272.2167845359186},{"$f":"IF(Control!$B53=\"L\",'RES S curve-connect'!X245,IF(Control!$B53=\"M\",'RES S curve-connect'!X223,'RES S curve-connect'!X201))","v":-960.91400151267226},{"$f":"IF(Control!$B53=\"L\",'RES S curve-connect'!Y245,IF(Control!$B53=\"M\",'RES S curve-connect'!Y223,'RES S curve-connect'!Y201))","v":-646.05856335276133},{"$f":"IF(Control!$B53=\"L\",'RES S curve-connect'!Z245,IF(Control!$B53=\"M\",'RES S curve-connect'!Z223,'RES S curve-connect'!Z201))","v":-426.96927892878074},{"$f":"IF(Control!$B53=\"L\",'RES S curve-connect'!AA245,IF(Control!$B53=\"M\",'RES S curve-connect'!AA223,'RES S curve-connect'!AA201))","v":-207.73162966666973},{"$f":"IF(Control!$B53=\"L\",'RES S curve-connect'!AB245,IF(Control!$B53=\"M\",'RES S curve-connect'!AB223,'RES S curve-connect'!AB201))","v":-29.220473618290328},{"$f":"IF(Control!$B53=\"L\",'RES S curve-connect'!AC245,IF(Control!$B53=\"M\",'RES S curve-connect'!AC223,'RES S curve-connect'!AC201))","v":143.46528299754482},{"$f":"IF(Control!$B53=\"L\",'RES S curve-connect'!AD245,IF(Control!$B53=\"M\",'RES S curve-connect'!AD223,'RES S curve-connect'!AD201))","v":303.25463582125042},{"$f":"IF(Control!$B53=\"L\",'RES S curve-connect'!AE245,IF(Control!$B53=\"M\",'RES S curve-connect'!AE223,'RES S curve-connect'!AE201))","v":470.51571713754595},{"$f":"IF(Control!$B53=\"L\",'RES S curve-connect'!AF245,IF(Control!$B53=\"M\",'RES S curve-connect'!AF223,'RES S curve-connect'!AF201))","v":681.28966485912031},{"$f":"IF(Control!$B53=\"L\",'RES S curve-connect'!AG245,IF(Control!$B53=\"M\",'RES S curve-connect'!AG223,'RES S curve-connect'!AG201))","v":814.50963168347084},{"$f":"IF(Control!$B53=\"L\",'RES S curve-connect'!AH245,IF(Control!$B53=\"M\",'RES S curve-connect'!AH223,'RES S curve-connect'!AH201))","v":1001.3685921869177},{"$f":"IF(Control!$B53=\"L\",'RES S curve-connect'!AI245,IF(Control!$B53=\"M\",'RES S curve-connect'!AI223,'RES S curve-connect'!AI201))","v":1169.8795170945214},{"$f":"IF(Control!$B53=\"L\",'RES S curve-connect'!AJ245,IF(Control!$B53=\"M\",'RES S curve-connect'!AJ223,'RES S curve-connect'!AJ201))","v":1321.848071514429},{"$f":"IF(Control!$B53=\"L\",'RES S curve-connect'!AK245,IF(Control!$B53=\"M\",'RES S curve-connect'!AK223,'RES S curve-connect'!AK201))","v":1483.2017094156354},{"$f":"IF(Control!$B53=\"L\",'RES S curve-connect'!AL245,IF(Control!$B53=\"M\",'RES S curve-connect'!AL223,'RES S curve-connect'!AL201))","v":923.31675148022953},{"$f":"IF(Control!$B53=\"L\",'RES S curve-connect'!AM245,IF(Control!$B53=\"M\",'RES S curve-connect'!AM223,'RES S curve-connect'!AM201))","v":850.82510562787263},{"$f":"IF(Control!$B53=\"L\",'RES S curve-connect'!AN245,IF(Control!$B53=\"M\",'RES S curve-connect'!AN223,'RES S curve-connect'!AN201))","v":1003.9511787722249},{"$f":"IF(Control!$B53=\"L\",'RES S curve-connect'!AO245,IF(Control!$B53=\"M\",'RES S curve-connect'!AO223,'RES S curve-connect'!AO201))","v":1190.8840268930103},{"$f":"IF(Control!$B53=\"L\",'RES S curve-connect'!AP245,IF(Control!$B53=\"M\",'RES S curve-connect'!AP223,'RES S curve-connect'!AP201))","v":1363.3771383977885},{"$f":"IF(Control!$B53=\"L\",'RES S curve-connect'!AQ245,IF(Control!$B53=\"M\",'RES S curve-connect'!AQ223,'RES S curve-connect'!AQ201))","v":1549.291119316694},{"$f":"IF(Control!$B53=\"L\",'RES S curve-connect'!AR245,IF(Control!$B53=\"M\",'RES S curve-connect'!AR223,'RES S curve-connect'!AR201))","v":1753.3051164303367},{"$f":"IF(Control!$B53=\"L\",'RES S curve-connect'!AS245,IF(Control!$B53=\"M\",'RES S curve-connect'!AS223,'RES S curve-connect'!AS201))","v":1982.2057670228182},{"$f":"IF(Control!$B53=\"L\",'RES S curve-connect'!AT245,IF(Control!$B53=\"M\",'RES S curve-connect'!AT223,'RES S curve-connect'!AT201))","v":2238.1134622274676},{"$f":"IF(Control!$B53=\"L\",'RES S curve-connect'!AU245,IF(Control!$B53=\"M\",'RES S curve-connect'!AU223,'RES S curve-connect'!AU201))","v":2534.3301476808733},{"$f":"IF(Control!$B53=\"L\",'RES S curve-connect'!AV245,IF(Control!$B53=\"M\",'RES S curve-connect'!AV223,'RES S curve-connect'!AV201))","v":2872.0534801300928},{"$f":"IF(Control!$B53=\"L\",'RES S curve-connect'!AW245,IF(Control!$B53=\"M\",'RES S curve-connect'!AW223,'RES S curve-connect'!AW201))","v":3260.1602028247512},{"$f":"IF(Control!$B53=\"L\",'RES S curve-connect'!AX245,IF(Control!$B53=\"M\",'RES S curve-connect'!AX223,'RES S curve-connect'!AX201))","v":3702.2928835976277},{"$f":"IF(Control!$B53=\"L\",'RES S curve-connect'!AY245,IF(Control!$B53=\"M\",'RES S curve-connect'!AY223,'RES S curve-connect'!AY201))","v":4212.5277503981033},{"$f":"IF(Control!$B53=\"L\",'RES S curve-connect'!AZ245,IF(Control!$B53=\"M\",'RES S curve-connect'!AZ223,'RES S curve-connect'!AZ201))","v":4795.5632464361206},{"$f":"IF(Control!$B53=\"L\",'RES S curve-connect'!BA245,IF(Control!$B53=\"M\",'RES S curve-connect'!BA223,'RES S curve-connect'!BA201))","v":5470.6078363992256},{"$f":"IF(Control!$B53=\"L\",'RES S curve-connect'!BB245,IF(Control!$B53=\"M\",'RES S curve-connect'!BB223,'RES S curve-connect'!BB201))","v":6258.9870234956852},{"$f":"IF(Control!$B53=\"L\",'RES S curve-connect'!BC245,IF(Control!$B53=\"M\",'RES S curve-connect'!BC223,'RES S curve-connect'!BC201))","v":7199.0835267442899},{"$f":"IF(Control!$B53=\"L\",'RES S curve-connect'!BD245,IF(Control!$B53=\"M\",'RES S curve-connect'!BD223,'RES S curve-connect'!BD201))","v":8105.2673913499821},{"$f":"IF(Control!$B53=\"L\",'RES S curve-connect'!BE245,IF(Control!$B53=\"M\",'RES S curve-connect'!BE223,'RES S curve-connect'!BE201))","v":8933.2871342634589},{"$f":"IF(Control!$B53=\"L\",'RES S curve-connect'!BF245,IF(Control!$B53=\"M\",'RES S curve-connect'!BF223,'RES S curve-connect'!BF201))","v":9780.5771765762493},{"$f":"IF(Control!$B53=\"L\",'RES S curve-connect'!BG245,IF(Control!$B53=\"M\",'RES S curve-connect'!BG223,'RES S curve-connect'!BG201))","v":10739.787132103518},{"$f":"IF(Control!$B53=\"L\",'RES S curve-connect'!BH245,IF(Control!$B53=\"M\",'RES S curve-connect'!BH223,'RES S curve-connect'!BH201))","v":11878.257423165003},{"$f":"IF(Control!$B53=\"L\",'RES S curve-connect'!BI245,IF(Control!$B53=\"M\",'RES S curve-connect'!BI223,'RES S curve-connect'!BI201))","v":13528.058801826823},{"$f":"IF(Control!$B53=\"L\",'RES S curve-connect'!BJ245,IF(Control!$B53=\"M\",'RES S curve-connect'!BJ223,'RES S curve-connect'!BJ201))","v":15943.446990620258},{"$f":"IF(Control!$B53=\"L\",'RES S curve-connect'!BK245,IF(Control!$B53=\"M\",'RES S curve-connect'!BK223,'RES S curve-connect'!BK201))","v":19506.844461763867},{"$f":"IF(Control!$B53=\"L\",'RES S curve-connect'!BL245,IF(Control!$B53=\"M\",'RES S curve-connect'!BL223,'RES S curve-connect'!BL201))","v":-1123.1652802076765},{"$f":"IF(Control!$B53=\"L\",'RES S curve-connect'!BM245,IF(Control!$B53=\"M\",'RES S curve-connect'!BM223,'RES S curve-connect'!BM201))","v":-1118.6180399670102},{"$f":"IF(Control!$B53=\"L\",'RES S curve-connect'!BN245,IF(Control!$B53=\"M\",'RES S curve-connect'!BN223,'RES S curve-connect'!BN201))","v":-1116.3402609620464},{"$f":"IF(Control!$B53=\"L\",'RES S curve-connect'!BO245,IF(Control!$B53=\"M\",'RES S curve-connect'!BO223,'RES S curve-connect'!BO201))","v":-1109.5432916192099},{"$f":"IF(Control!$B53=\"L\",'RES S curve-connect'!BP245,IF(Control!$B53=\"M\",'RES S curve-connect'!BP223,'RES S curve-connect'!BP201))","v":-1105.0157038287336},{"$f":"IF(Control!$B53=\"L\",'RES S curve-connect'!BQ245,IF(Control!$B53=\"M\",'RES S curve-connect'!BQ223,'RES S curve-connect'!BQ201))","v":-1100.494587585674},{"$f":"IF(Control!$B53=\"L\",'RES S curve-connect'!BR245,IF(Control!$B53=\"M\",'RES S curve-connect'!BR223,'RES S curve-connect'!BR201))","v":-1098.2427742027878},{"$f":"IF(Control!$B53=\"L\",'RES S curve-connect'!BS245,IF(Control!$B53=\"M\",'RES S curve-connect'!BS223,'RES S curve-connect'!BS201))","v":-1091.4716130945324},{"$f":"IF(Control!$B53=\"L\",'RES S curve-connect'!BT245,IF(Control!$B53=\"M\",'RES S curve-connect'!BT223,'RES S curve-connect'!BT201))","v":-1086.969677132922},{"$f":"IF(Control!$B53=\"L\",'RES S curve-connect'!BU245,IF(Control!$B53=\"M\",'RES S curve-connect'!BU223,'RES S curve-connect'!BU201))","v":-1082.4740572885844},{"$f":"IF(Control!$B53=\"L\",'RES S curve-connect'!BV245,IF(Control!$B53=\"M\",'RES S curve-connect'!BV223,'RES S curve-connect'!BV201))","v":-1080.2475858436792},{"$f":"IF(Control!$B53=\"L\",'RES S curve-connect'!BW245,IF(Control!$B53=\"M\",'RES S curve-connect'!BW223,'RES S curve-connect'!BW201))","v":-1073.5016131759353},{"$f":"IF(Control!$B53=\"L\",'RES S curve-connect'!BX245,IF(Control!$B53=\"M\",'RES S curve-connect'!BX223,'RES S curve-connect'!BX201))","v":-1069.0247131145468},{"$f":"IF(Control!$B53=\"L\",'RES S curve-connect'!BY245,IF(Control!$B53=\"M\",'RES S curve-connect'!BY223,'RES S curve-connect'!BY201))","v":-1064.5539775812688},{"$f":"IF(Control!$B53=\"L\",'RES S curve-connect'!BZ245,IF(Control!$B53=\"M\",'RES S curve-connect'!BZ223,'RES S curve-connect'!BZ201))","v":-1062.3522398033758},{"$f":"IF(Control!$B53=\"L\",'RES S curve-connect'!CA245,IF(Control!$B53=\"M\",'RES S curve-connect'!CA223,'RES S curve-connect'!CA201))","v":-1055.6308510977315},{"$f":"IF(Control!$B53=\"L\",'RES S curve-connect'!CB245,IF(Control!$B53=\"M\",'RES S curve-connect'!CB223,'RES S curve-connect'!CB201))","v":-1051.1783862267287},{"$f":"IF(Control!$B53=\"L\",'RES S curve-connect'!CC245,IF(Control!$B53=\"M\",'RES S curve-connect'!CC223,'RES S curve-connect'!CC201))","v":-1046.7319380394219},{"$f":"IF(Control!$B53=\"L\",'RES S curve-connect'!CD245,IF(Control!$B53=\"M\",'RES S curve-connect'!CD223,'RES S curve-connect'!CD201))","v":-1113.9489514313673}]
["Kingston (C)",{"$f":"Customers!K148","v":53752},{"$f":"IF(Control!$B54=\"L\",'RES S curve-connect'!C246,IF(Control!$B54=\"M\",'RES S curve-connect'!C224,'RES S curve-connect'!C202))","v":-2859.2082697284641},{"$f":"IF(Control!$B54=\"L\",'RES S curve-connect'!D246,IF(Control!$B54=\"M\",'RES S curve-connect'!D224,'RES S curve-connect'!D202))","v":-3335.40903524961},{"$f":"IF(Control!$B54=\"L\",'RES S curve-connect'!E246,IF(Control!$B54=\"M\",'RES S curve-connect'!E224,'RES S curve-connect'!E202))","v":-2700.3196113668705},{"$f":"IF(Control!$B54=\"L\",'RES S curve-connect'!F246,IF(Control!$B54=\"M\",'RES S curve-connect'!F224,'RES S curve-connect'!F202))","v":-2560.4480697009094},{"$f":"IF(Control!$B54=\"L\",'RES S curve-connect'!G246,IF(Control!$B54=\"M\",'RES S curve-connect'!G224,'RES S curve-connect'!G202))","v":-3600.6520663806882},{"$f":"IF(Control!$B54=\"L\",'RES S curve-connect'!H246,IF(Control!$B54=\"M\",'RES S curve-connect'!H224,'RES S curve-connect'!H202))","v":-3640.3455790662347},{"$f":"IF(Control!$B54=\"L\",'RES S curve-connect'!I246,IF(Control!$B54=\"M\",'RES S curve-connect'!I224,'RES S curve-connect'!I202))","v":-3243.7259975989291},{"$f":"IF(Control!$B54=\"L\",'RES S curve-connect'!J246,IF(Control!$B54=\"M\",'RES S curve-connect'!J224,'RES S curve-connect'!J202))","v":-3589.5607540449646},{"$f":"IF(Control!$B54=\"L\",'RES S curve-connect'!K246,IF(Control!$B54=\"M\",'RES S curve-connect'!K224,'RES S curve-connect'!K202))","v":-2834.919451769535},{"$f":"IF(Control!$B54=\"L\",'RES S curve-connect'!L246,IF(Control!$B54=\"M\",'RES S curve-connect'!L224,'RES S curve-connect'!L202))","v":-3156.8134757648095},{"$f":"IF(Control!$B54=\"L\",'RES S curve-connect'!M246,IF(Control!$B54=\"M\",'RES S curve-connect'!M224,'RES S curve-connect'!M202))","v":-3727.4785065068295},{"$f":"IF(Control!$B54=\"L\",'RES S curve-connect'!N246,IF(Control!$B54=\"M\",'RES S curve-connect'!N224,'RES S curve-connect'!N202))","v":-3778.6283766446631},{"$f":"IF(Control!$B54=\"L\",'RES S curve-connect'!O246,IF(Control!$B54=\"M\",'RES S curve-connect'!O224,'RES S curve-connect'!O202))","v":-3260.374520203593},{"$f":"IF(Control!$B54=\"L\",'RES S curve-connect'!P246,IF(Control!$B54=\"M\",'RES S curve-connect'!P224,'RES S curve-connect'!P202))","v":-2848.7275514785078},{"$f":"IF(Control!$B54=\"L\",'RES S curve-connect'!Q246,IF(Control!$B54=\"M\",'RES S curve-connect'!Q224,'RES S curve-connect'!Q202))","v":-2228.4013194631634},{"$f":"IF(Control!$B54=\"L\",'RES S curve-connect'!R246,IF(Control!$B54=\"M\",'RES S curve-connect'!R224,'RES S curve-connect'!R202))","v":-1875.6429242690901},{"$f":"IF(Control!$B54=\"L\",'RES S curve-connect'!S246,IF(Control!$B54=\"M\",'RES S curve-connect'!S224,'RES S curve-connect'!S202))","v":-1314.486971273366},{"$f":"IF(Control!$B54=\"L\",'RES S curve-connect'!T246,IF(Control!$B54=\"M\",'RES S curve-connect'!T224,'RES S curve-connect'!T202))","v":-1012.2144893639754},{"$f":"IF(Control!$B54=\"L\",'RES S curve-connect'!U246,IF(Control!$B54=\"M\",'RES S curve-connect'!U224,'RES S curve-connect'!U202))","v":-664.38119069437971},{"$f":"IF(Control!$B54=\"L\",'RES S curve-connect'!V246,IF(Control!$B54=\"M\",'RES S curve-connect'!V224,'RES S curve-connect'!V202))","v":-424.6657311806415},{"$f":"IF(Control!$B54=\"L\",'RES S curve-connect'!W246,IF(Control!$B54=\"M\",'RES S curve-connect'!W224,'RES S curve-connect'!W202))","v":-237.51087294688475},{"$f":"IF(Control!$B54=\"L\",'RES S curve-connect'!X246,IF(Control!$B54=\"M\",'RES S curve-connect'!X224,'RES S curve-connect'!X202))","v":180.41098801094131},{"$f":"IF(Control!$B54=\"L\",'RES S curve-connect'!Y246,IF(Control!$B54=\"M\",'RES S curve-connect'!Y224,'RES S curve-connect'!Y202))","v":603.68760171307042},{"$f":"IF(Control!$B54=\"L\",'RES S curve-connect'!Z246,IF(Control!$B54=\"M\",'RES S curve-connect'!Z224,'RES S curve-connect'!Z202))","v":891.5016287874339},{"$f":"IF(Control!$B54=\"L\",'RES S curve-connect'!AA246,IF(Control!$B54=\"M\",'RES S curve-connect'!AA224,'RES S curve-connect'!AA202))","v":1179.8762204918039},{"$f":"IF(Control!$B54=\"L\",'RES S curve-connect'!AB246,IF(Control!$B54=\"M\",'RES S curve-connect'!AB224,'RES S curve-connect'!AB202))","v":1410.585995051335},{"$f":"IF(Control!$B54=\"L\",'RES S curve-connect'!AC246,IF(Control!$B54=\"M\",'RES S curve-connect'!AC224,'RES S curve-connect'!AC202))","v":1633.2897086265889},{"$f":"IF(Control!$B54=\"L\",'RES S curve-connect'!AD246,IF(Control!$B54=\"M\",'RES S curve-connect'!AD224,'RES S curve-connect'!AD202))","v":1837.7959968333785},{"$f":"IF(Control!$B54=\"L\",'RES S curve-connect'!AE246,IF(Control!$B54=\"M\",'RES S curve-connect'!AE224,'RES S curve-connect'!AE202))","v":2053.3520015743002},{"$f":"IF(Control!$B54=\"L\",'RES S curve-connect'!AF246,IF(Control!$B54=\"M\",'RES S curve-connect'!AF224,'RES S curve-connect'!AF202))","v":2330.5046933512103},{"$f":"IF(Control!$B54=\"L\",'RES S curve-connect'!AG246,IF(Control!$B54=\"M\",'RES S curve-connect'!AG224,'RES S curve-connect'!AG202))","v":2519.8559611832006},{"$f":"IF(Control!$B54=\"L\",'RES S curve-connect'!AH246,IF(Control!$B54=\"M\",'RES S curve-connect'!AH224,'RES S curve-connect'!AH202))","v":2784.7883216694099},{"$f":"IF(Control!$B54=\"L\",'RES S curve-connect'!AI246,IF(Control!$B54=\"M\",'RES S curve-connect'!AI224,'RES S curve-connect'!AI202))","v":3024.3065593101446},{"$f":"IF(Control!$B54=\"L\",'RES S curve-connect'!AJ246,IF(Control!$B54=\"M\",'RES S curve-connect'!AJ224,'RES S curve-connect'!AJ202))","v":3240.1880163776823},{"$f":"IF(Control!$B54=\"L\",'RES S curve-connect'!AK246,IF(Control!$B54=\"M\",'RES S curve-connect'!AK224,'RES S curve-connect'!AK202))","v":3469.4224643843722},{"$f":"IF(Control!$B54=\"L\",'RES S curve-connect'!AL246,IF(Control!$B54=\"M\",'RES S curve-connect'!AL224,'RES S curve-connect'!AL202))","v":2672.4175084643975},{"$f":"IF(Control!$B54=\"L\",'RES S curve-connect'!AM246,IF(Control!$B54=\"M\",'RES S curve-connect'!AM224,'RES S curve-connect'!AM202))","v":2570.1290235459023},{"$f":"IF(Control!$B54=\"L\",'RES S curve-connect'!AN246,IF(Control!$B54=\"M\",'RES S curve-connect'!AN224,'RES S curve-connect'!AN202))","v":2788.1381810479998},{"$f":"IF(Control!$B54=\"L\",'RES S curve-connect'!AO246,IF(Control!$B54=\"M\",'RES S curve-connect'!AO224,'RES S curve-connect'!AO202))","v":3053.8411059207292},{"$f":"IF(Control!$B54=\"L\",'RES S curve-connect'!AP246,IF(Control!$B54=\"M\",'RES S curve-connect'!AP224,'RES S curve-connect'!AP202))","v":3298.7609271768506},{"$f":"IF(Control!$B54=\"L\",'RES S curve-connect'!AQ246,IF(Control!$B54=\"M\",'RES S curve-connect'!AQ224,'RES S curve-connect'!AQ202))","v":3562.999877790563},{"$f":"IF(Control!$B54=\"L\",'RES S curve-connect'!AR246,IF(Control!$B54=\"M\",'RES S curve-connect'!AR224,'RES S curve-connect'!AR202))","v":3852.8104376954889},{"$f":"IF(Control!$B54=\"L\",'RES S curve-connect'!AS246,IF(Control!$B54=\"M\",'RES S curve-connect'!AS224,'RES S curve-connect'!AS202))","v":4177.9332957882152},{"$f":"IF(Control!$B54=\"L\",'RES S curve-connect'!AT246,IF(Control!$B54=\"M\",'RES S curve-connect'!AT224,'RES S curve-connect'!AT202))","v":4541.2383838457026},{"$f":"IF(Control!$B54=\"L\",'RES S curve-connect'!AU246,IF(Control!$B54=\"M\",'RES S curve-connect'!AU224,'RES S curve-connect'!AU202))","v":4961.9826801889731},{"$f":"IF(Control!$B54=\"L\",'RES S curve-connect'!AV246,IF(Control!$B54=\"M\",'RES S curve-connect'!AV224,'RES S curve-connect'!AV202))","v":5441.4626121235488},{"$f":"IF(Control!$B54=\"L\",'RES S curve-connect'!AW246,IF(Control!$B54=\"M\",'RES S curve-connect'!AW224,'RES S curve-connect'!AW202))","v":5992.3696921434648},{"$f":"IF(Control!$B54=\"L\",'RES S curve-connect'!AX246,IF(Control!$B54=\"M\",'RES S curve-connect'!AX224,'RES S curve-connect'!AX202))","v":6619.6977999453511},{"$f":"IF(Control!$B54=\"L\",'RES S curve-connect'!AY246,IF(Control!$B54=\"M\",'RES S curve-connect'!AY224,'RES S curve-connect'!AY202))","v":7343.7599675155761},{"$f":"IF(Control!$B54=\"L\",'RES S curve-connect'!AZ246,IF(Control!$B54=\"M\",'RES S curve-connect'!AZ224,'RES S curve-connect'!AZ202))","v":8170.7795567416952},{"$f":"IF(Control!$B54=\"L\",'RES S curve-connect'!BA246,IF(Control!$B54=\"M\",'RES S curve-connect'!BA224,'RES S curve-connect'!BA202))","v":9128.0699038816201},{"$f":"IF(Control!$B54=\"L\",'RES S curve-connect'!BB246,IF(Control!$B54=\"M\",'RES S curve-connect'!BB224,'RES S curve-connect'!BB202))","v":10245.654594254087},{"$f":"IF(Control!$B54=\"L\",'RES S curve-connect'!BC246,IF(Control!$B54=\"M\",'RES S curve-connect'!BC224,'RES S curve-connect'!BC202))","v":11578.231525545487},{"$f":"IF(Control!$B54=\"L\",'RES S curve-connect'!BD246,IF(Control!$B54=\"M\",'RES S curve-connect'!BD224,'RES S curve-connect'!BD202))","v":12861.637360074468},{"$f":"IF(Control!$B54=\"L\",'RES S curve-connect'!BE246,IF(Control!$B54=\"M\",'RES S curve-connect'!BE224,'RES S curve-connect'!BE202))","v":14033.973556336328},{"$f":"IF(Control!$B54=\"L\",'RES S curve-connect'!BF246,IF(Control!$B54=\"M\",'RES S curve-connect'!BF224,'RES S curve-connect'!BF202))","v":15233.702151069643},{"$f":"IF(Control!$B54=\"L\",'RES S curve-connect'!BG246,IF(Control!$B54=\"M\",'RES S curve-connect'!BG224,'RES S curve-connect'!BG202))","v":16592.319554299484},{"$f":"IF(Control!$B54=\"L\",'RES S curve-connect'!BH246,IF(Control!$B54=\"M\",'RES S curve-connect'!BH224,'RES S curve-connect'!BH202))","v":18204.590857280171},{"$f":"IF(Control!$B54=\"L\",'RES S curve-connect'!BI246,IF(Control!$B54=\"M\",'RES S curve-connect'!BI224,'RES S curve-connect'!BI202))","v":20541.252018285712},{"$f":"IF(Control!$B54=\"L\",'RES S curve-connect'!BJ246,IF(Control!$B54=\"M\",'RES S curve-connect'!BJ224,'RES S curve-connect'!BJ202))","v":23960.961038799065},{"$f":"IF(Control!$B54=\"L\",'RES S curve-connect'!BK246,IF(Control!$B54=\"M\",'RES S curve-connect'!BK224,'RES S curve-connect'!BK202))","v":29004.144029376992},{"$f":"IF(Control!$B54=\"L\",'RES S curve-connect'!BL246,IF(Control!$B54=\"M\",'RES S curve-connect'!BL224,'RES S curve-connect'!BL202))","v":-239.15575460886353},{"$f":"IF(Control!$B54=\"L\",'RES S curve-connect'!BM246,IF(Control!$B54=\"M\",'RES S curve-connect'!BM224,'RES S curve-connect'!BM202))","v":-232.69884782936262},{"$f":"IF(Control!$B54=\"L\",'RES S curve-connect'!BN246,IF(Control!$B54=\"M\",'RES S curve-connect'!BN224,'RES S curve-connect'!BN202))","v":-229.59187190686382},{"$f":"IF(Control!$B54=\"L\",'RES S curve-connect'!BO246,IF(Control!$B54=\"M\",'RES S curve-connect'!BO224,'RES S curve-connect'!BO202))","v":-219.81350954229694},{"$f":"IF(Control!$B54=\"L\",'RES S curve-connect'!BP246,IF(Control!$B54=\"M\",'RES S curve-connect'!BP224,'RES S curve-connect'!BP202))","v":-213.38496290047584},{"$f":"IF(Control!$B54=\"L\",'RES S curve-connect'!BQ246,IF(Control!$B54=\"M\",'RES S curve-connect'!BQ224,'RES S curve-connect'!BQ202))","v":-206.96575510222064},{"$f":"IF(Control!$B54=\"L\",'RES S curve-connect'!BR246,IF(Control!$B54=\"M\",'RES S curve-connect'!BR224,'RES S curve-connect'!BR202))","v":-203.89624932545095},{"$f":"IF(Control!$B54=\"L\",'RES S curve-connect'!BS246,IF(Control!$B54=\"M\",'RES S curve-connect'!BS224,'RES S curve-connect'!BS202))","v":-194.15512969957703},{"$f":"IF(Control!$B54=\"L\",'RES S curve-connect'!BT246,IF(Control!$B54=\"M\",'RES S curve-connect'!BT224,'RES S curve-connect'!BT202))","v":-187.76359980884979},{"$f":"IF(Control!$B54=\"L\",'RES S curve-connect'!BU246,IF(Control!$B54=\"M\",'RES S curve-connect'!BU224,'RES S curve-connect'!BU202))","v":-181.38118418454843},{"$f":"IF(Control!$B54=\"L\",'RES S curve-connect'!BV246,IF(Control!$B54=\"M\",'RES S curve-connect'!BV224,'RES S curve-connect'!BV202))","v":-178.34824740613118},{"$f":"IF(Control!$B54=\"L\",'RES S curve-connect'!BW246,IF(Control!$B54=\"M\",'RES S curve-connect'!BW224,'RES S curve-connect'!BW202))","v":-168.64347499567492},{"$f":"IF(Control!$B54=\"L\",'RES S curve-connect'!BX246,IF(Control!$B54=\"M\",'RES S curve-connect'!BX224,'RES S curve-connect'!BX202))","v":-162.2880719212942},{"$f":"IF(Control!$B54=\"L\",'RES S curve-connect'!BY246,IF(Control!$B54=\"M\",'RES S curve-connect'!BY224,'RES S curve-connect'!BY202))","v":-155.94156408937585},{"$f":"IF(Control!$B54=\"L\",'RES S curve-connect'!BZ246,IF(Control!$B54=\"M\",'RES S curve-connect'!BZ224,'RES S curve-connect'!BZ202))","v":-152.94431744578543},{"$f":"IF(Control!$B54=\"L\",'RES S curve-connect'!CA246,IF(Control!$B54=\"M\",'RES S curve-connect'!CA224,'RES S curve-connect'!CA202))","v":-143.27501887036766},{"$f":"IF(Control!$B54=\"L\",'RES S curve-connect'!CB246,IF(Control!$B54=\"M\",'RES S curve-connect'!CB224,'RES S curve-connect'!CB202))","v":-136.95487468041478},{"$f":"IF(Control!$B54=\"L\",'RES S curve-connect'!CC246,IF(Control!$B54=\"M\",'RES S curve-connect'!CC224,'RES S curve-connect'!CC202))","v":-130.64341212296091},{"$f":"IF(Control!$B54=\"L\",'RES S curve-connect'!CD246,IF(Control!$B54=\"M\",'RES S curve-connect'!CD224,'RES S curve-connect'!CD202))","v":-225.61287452914806}]
["Knox (C)",{"$f":"Customers!K149","v":63020},{"$f":"IF(Control!$B55=\"L\",'RES S curve-connect'!C247,IF(Control!$B55=\"M\",'RES S curve-connect'!C225,'RES S curve-connect'!C203))","v":-3053.6754435612402},{"$f":"IF(Control!$B55=\"L\",'RES S curve-connect'!D247,IF(Control!$B55=\"M\",'RES S curve-connect'!D225,'RES S curve-connect'!D203))","v":-3592.1841080117351},{"$f":"IF(Control!$B55=\"L\",'RES S curve-connect'!E247,IF(Control!$B55=\"M\",'RES S curve-connect'!E225,'RES S curve-connect'!E203))","v":-2831.9343576492033},{"$f":"IF(Control!$B55=\"L\",'RES S curve-connect'!F247,IF(Control!$B55=\"M\",'RES S curve-connect'!F225,'RES S curve-connect'!F203))","v":-2669.4795017731753},{"$f":"IF(Control!$B55=\"L\",'RES S curve-connect'!G247,IF(Control!$B55=\"M\",'RES S curve-connect'!G225,'RES S curve-connect'!G203))","v":-3968.4695603417895},{"$f":"IF(Control!$B55=\"L\",'RES S curve-connect'!H247,IF(Control!$B55=\"M\",'RES S curve-connect'!H225,'RES S curve-connect'!H203))","v":-3999.7886835201589},{"$f":"IF(Control!$B55=\"L\",'RES S curve-connect'!I247,IF(Control!$B55=\"M\",'RES S curve-connect'!I225,'RES S curve-connect'!I203))","v":-3540.585932469764},{"$f":"IF(Control!$B55=\"L\",'RES S curve-connect'!J247,IF(Control!$B55=\"M\",'RES S curve-connect'!J225,'RES S curve-connect'!J203))","v":-3878.9866089327193},{"$f":"IF(Control!$B55=\"L\",'RES S curve-connect'!K247,IF(Control!$B55=\"M\",'RES S curve-connect'!K225,'RES S curve-connect'!K203))","v":-3017.854809181722},{"$f":"IF(Control!$B55=\"L\",'RES S curve-connect'!L247,IF(Control!$B55=\"M\",'RES S curve-connect'!L225,'RES S curve-connect'!L203))","v":-3384.2361966212497},{"$f":"IF(Control!$B55=\"L\",'RES S curve-connect'!M247,IF(Control!$B55=\"M\",'RES S curve-connect'!M225,'RES S curve-connect'!M203))","v":-4056.9565698229444},{"$f":"IF(Control!$B55=\"L\",'RES S curve-connect'!N247,IF(Control!$B55=\"M\",'RES S curve-connect'!N225,'RES S curve-connect'!N203))","v":-4118.4979086929125},{"$f":"IF(Control!$B55=\"L\",'RES S curve-connect'!O247,IF(Control!$B55=\"M\",'RES S curve-connect'!O225,'RES S curve-connect'!O203))","v":-3525.6412638521688},{"$f":"IF(Control!$B55=\"L\",'RES S curve-connect'!P247,IF(Control!$B55=\"M\",'RES S curve-connect'!P225,'RES S curve-connect'!P203))","v":-3052.4267753017916},{"$f":"IF(Control!$B55=\"L\",'RES S curve-connect'!Q247,IF(Control!$B55=\"M\",'RES S curve-connect'!Q225,'RES S curve-connect'!Q203))","v":-2338.3291763938164},{"$f":"IF(Control!$B55=\"L\",'RES S curve-connect'!R247,IF(Control!$B55=\"M\",'RES S curve-connect'!R225,'RES S curve-connect'!R203))","v":-1932.6644804636228},{"$f":"IF(Control!$B55=\"L\",'RES S curve-connect'!S247,IF(Control!$B55=\"M\",'RES S curve-connect'!S225,'RES S curve-connect'!S203))","v":-1289.7190306315661},{"$f":"IF(Control!$B55=\"L\",'RES S curve-connect'!T247,IF(Control!$B55=\"M\",'RES S curve-connect'!T225,'RES S curve-connect'!T203))","v":-937.01109781035882},{"$f":"IF(Control!$B55=\"L\",'RES S curve-connect'!U247,IF(Control!$B55=\"M\",'RES S curve-connect'!U225,'RES S curve-connect'!U203))","v":-536.27909376382195},{"$f":"IF(Control!$B55=\"L\",'RES S curve-connect'!V247,IF(Control!$B55=\"M\",'RES S curve-connect'!V225,'RES S curve-connect'!V203))","v":-262.87243289871554},{"$f":"IF(Control!$B55=\"L\",'RES S curve-connect'!W247,IF(Control!$B55=\"M\",'RES S curve-connect'!W225,'RES S curve-connect'!W203))","v":-49.395136449577279},{"$f":"IF(Control!$B55=\"L\",'RES S curve-connect'!X247,IF(Control!$B55=\"M\",'RES S curve-connect'!X225,'RES S curve-connect'!X203))","v":433.78592817505859},{"$f":"IF(Control!$B55=\"L\",'RES S curve-connect'!Y247,IF(Control!$B55=\"M\",'RES S curve-connect'!Y225,'RES S curve-connect'!Y203))","v":922.36471245861117},{"$f":"IF(Control!$B55=\"L\",'RES S curve-connect'!Z247,IF(Control!$B55=\"M\",'RES S curve-connect'!Z225,'RES S curve-connect'!Z203))","v":1253.3760130323112},{"$f":"IF(Control!$B55=\"L\",'RES S curve-connect'!AA247,IF(Control!$B55=\"M\",'RES S curve-connect'!AA225,'RES S curve-connect'!AA203))","v":1584.103921598625},{"$f":"IF(Control!$B55=\"L\",'RES S curve-connect'!AB247,IF(Control!$B55=\"M\",'RES S curve-connect'!AB225,'RES S curve-connect'!AB203))","v":1848.3345951678834},{"$f":"IF(Control!$B55=\"L\",'RES S curve-connect'!AC247,IF(Control!$B55=\"M\",'RES S curve-connect'!AC225,'RES S curve-connect'!AC203))","v":2102.7526312830646},{"$f":"IF(Control!$B55=\"L\",'RES S curve-connect'!AD247,IF(Control!$B55=\"M\",'RES S curve-connect'!AD225,'RES S curve-connect'!AD203))","v":2336.2215643226559},{"$f":"IF(Control!$B55=\"L\",'RES S curve-connect'!AE247,IF(Control!$B55=\"M\",'RES S curve-connect'!AE225,'RES S curve-connect'!AE203))","v":2581.118762800912},{"$f":"IF(Control!$B55=\"L\",'RES S curve-connect'!AF247,IF(Control!$B55=\"M\",'RES S curve-connect'!AF225,'RES S curve-connect'!AF203))","v":2898.1404949677203},{"$f":"IF(Control!$B55=\"L\",'RES S curve-connect'!AG247,IF(Control!$B55=\"M\",'RES S curve-connect'!AG225,'RES S curve-connect'!AG203))","v":3115.3741431153894},{"$f":"IF(Control!$B55=\"L\",'RES S curve-connect'!AH247,IF(Control!$B55=\"M\",'RES S curve-connect'!AH225,'RES S curve-connect'!AH203))","v":3421.9454023427256},{"$f":"IF(Control!$B55=\"L\",'RES S curve-connect'!AI247,IF(Control!$B55=\"M\",'RES S curve-connect'!AI225,'RES S curve-connect'!AI203))","v":3696.7178463193309},{"$f":"IF(Control!$B55=\"L\",'RES S curve-connect'!AJ247,IF(Control!$B55=\"M\",'RES S curve-connect'!AJ225,'RES S curve-connect'!AJ203))","v":3944.8625224888178},{"$f":"IF(Control!$B55=\"L\",'RES S curve-connect'!AK247,IF(Control!$B55=\"M\",'RES S curve-connect'!AK225,'RES S curve-connect'!AK203))","v":4208.275437372884},{"$f":"IF(Control!$B55=\"L\",'RES S curve-connect'!AL247,IF(Control!$B55=\"M\",'RES S curve-connect'!AL225,'RES S curve-connect'!AL203))","v":3298.5538123353717},{"$f":"IF(Control!$B55=\"L\",'RES S curve-connect'!AM247,IF(Control!$B55=\"M\",'RES S curve-connect'!AM225,'RES S curve-connect'!AM203))","v":3178.1859561687343},{"$f":"IF(Control!$B55=\"L\",'RES S curve-connect'!AN247,IF(Control!$B55=\"M\",'RES S curve-connect'!AN225,'RES S curve-connect'!AN203))","v":3426.8586765147334},{"$f":"IF(Control!$B55=\"L\",'RES S curve-connect'!AO247,IF(Control!$B55=\"M\",'RES S curve-connect'!AO225,'RES S curve-connect'!AO203))","v":3731.6752102592081},{"$f":"IF(Control!$B55=\"L\",'RES S curve-connect'!AP247,IF(Control!$B55=\"M\",'RES S curve-connect'!AP225,'RES S curve-connect'!AP203))","v":4013.673683529315},{"$f":"IF(Control!$B55=\"L\",'RES S curve-connect'!AQ247,IF(Control!$B55=\"M\",'RES S curve-connect'!AQ225,'RES S curve-connect'!AQ203))","v":4316.8737954946291},{"$f":"IF(Control!$B55=\"L\",'RES S curve-connect'!AR247,IF(Control!$B55=\"M\",'RES S curve-connect'!AR225,'RES S curve-connect'!AR203))","v":4650.0301171684978},{"$f":"IF(Control!$B55=\"L\",'RES S curve-connect'!AS247,IF(Control!$B55=\"M\",'RES S curve-connect'!AS225,'RES S curve-connect'!AS203))","v":5023.9442781724465},{"$f":"IF(Control!$B55=\"L\",'RES S curve-connect'!AT247,IF(Control!$B55=\"M\",'RES S curve-connect'!AT225,'RES S curve-connect'!AT203))","v":5442.4803039692888},{"$f":"IF(Control!$B55=\"L\",'RES S curve-connect'!AU247,IF(Control!$B55=\"M\",'RES S curve-connect'!AU225,'RES S curve-connect'!AU203))","v":5926.3440415776422},{"$f":"IF(Control!$B55=\"L\",'RES S curve-connect'!AV247,IF(Control!$B55=\"M\",'RES S curve-connect'!AV225,'RES S curve-connect'!AV203))","v":6478.6336942279459},{"$f":"IF(Control!$B55=\"L\",'RES S curve-connect'!AW247,IF(Control!$B55=\"M\",'RES S curve-connect'!AW225,'RES S curve-connect'!AW203))","v":7113.6158912774572},{"$f":"IF(Control!$B55=\"L\",'RES S curve-connect'!AX247,IF(Control!$B55=\"M\",'RES S curve-connect'!AX225,'RES S curve-connect'!AX203))","v":7837.7488626377381},{"$f":"IF(Control!$B55=\"L\",'RES S curve-connect'!AY247,IF(Control!$B55=\"M\",'RES S curve-connect'!AY225,'RES S curve-connect'!AY203))","v":8673.1266811347996},{"$f":"IF(Control!$B55=\"L\",'RES S curve-connect'!AZ247,IF(Control!$B55=\"M\",'RES S curve-connect'!AZ225,'RES S curve-connect'!AZ203))","v":9628.6949055190744},{"$f":"IF(Control!$B55=\"L\",'RES S curve-connect'!BA247,IF(Control!$B55=\"M\",'RES S curve-connect'!BA225,'RES S curve-connect'!BA203))","v":10735.748222731181},{"$f":"IF(Control!$B55=\"L\",'RES S curve-connect'!BB247,IF(Control!$B55=\"M\",'RES S curve-connect'!BB225,'RES S curve-connect'!BB203))","v":12029.876912488013},{"$f":"IF(Control!$B55=\"L\",'RES S curve-connect'!BC247,IF(Control!$B55=\"M\",'RES S curve-connect'!BC225,'RES S curve-connect'!BC203))","v":13573.276452617802},{"$f":"IF(Control!$B55=\"L\",'RES S curve-connect'!BD247,IF(Control!$B55=\"M\",'RES S curve-connect'!BD225,'RES S curve-connect'!BD203))","v":15064.103303120301},{"$f":"IF(Control!$B55=\"L\",'RES S curve-connect'!BE247,IF(Control!$B55=\"M\",'RES S curve-connect'!BE225,'RES S curve-connect'!BE203))","v":16427.372075898402},{"$f":"IF(Control!$B55=\"L\",'RES S curve-connect'!BF247,IF(Control!$B55=\"M\",'RES S curve-connect'!BF225,'RES S curve-connect'!BF203))","v":17822.06156866076},{"$f":"IF(Control!$B55=\"L\",'RES S curve-connect'!BG247,IF(Control!$B55=\"M\",'RES S curve-connect'!BG225,'RES S curve-connect'!BG203))","v":19399.811851423288},{"$f":"IF(Control!$B55=\"L\",'RES S curve-connect'!BH247,IF(Control!$B55=\"M\",'RES S curve-connect'!BH225,'RES S curve-connect'!BH203))","v":21273.125250066019},{"$f":"IF(Control!$B55=\"L\",'RES S curve-connect'!BI247,IF(Control!$B55=\"M\",'RES S curve-connect'!BI225,'RES S curve-connect'!BI203))","v":23987.105392257967},{"$f":"IF(Control!$B55=\"L\",'RES S curve-connect'!BJ247,IF(Control!$B55=\"M\",'RES S curve-connect'!BJ225,'RES S curve-connect'!BJ203))","v":27964.111168150281},{"$f":"IF(Control!$B55=\"L\",'RES S curve-connect'!BK247,IF(Control!$B55=\"M\",'RES S curve-connect'!BK225,'RES S curve-connect'!BK203))","v":33836.659988846768},{"$f":"IF(Control!$B55=\"L\",'RES S curve-connect'!BL247,IF(Control!$B55=\"M\",'RES S curve-connect'!BL225,'RES S curve-connect'!BL203))","v":-31.878812982170246},{"$f":"IF(Control!$B55=\"L\",'RES S curve-connect'!BM247,IF(Control!$B55=\"M\",'RES S curve-connect'!BM225,'RES S curve-connect'!BM203))","v":-24.470724829377446},{"$f":"IF(Control!$B55=\"L\",'RES S curve-connect'!BN247,IF(Control!$B55=\"M\",'RES S curve-connect'!BN225,'RES S curve-connect'!BN203))","v":-20.413132385863491},{"$f":"IF(Control!$B55=\"L\",'RES S curve-connect'!BO247,IF(Control!$B55=\"M\",'RES S curve-connect'!BO225,'RES S curve-connect'!BO203))","v":-9.6847155939239542},{"$f":"IF(Control!$B55=\"L\",'RES S curve-connect'!BP247,IF(Control!$B55=\"M\",'RES S curve-connect'!BP225,'RES S curve-connect'!BP203))","v":-2.3066738749119509},{"$f":"IF(Control!$B55=\"L\",'RES S curve-connect'!BQ247,IF(Control!$B55=\"M\",'RES S curve-connect'!BQ225,'RES S curve-connect'!BQ203))","v":5.0614723787323896},{"$f":"IF(Control!$B55=\"L\",'RES S curve-connect'!BR247,IF(Control!$B55=\"M\",'RES S curve-connect'!BR225,'RES S curve-connect'!BR203))","v":9.0793627024767716},{"$f":"IF(Control!$B55=\"L\",'RES S curve-connect'!BS247,IF(Control!$B55=\"M\",'RES S curve-connect'!BS225,'RES S curve-connect'!BS203))","v":19.768315665394596},{"$f":"IF(Control!$B55=\"L\",'RES S curve-connect'!BT247,IF(Control!$B55=\"M\",'RES S curve-connect'!BT225,'RES S curve-connect'!BT203))","v":27.10713036690305},{"$f":"IF(Control!$B55=\"L\",'RES S curve-connect'!BU247,IF(Control!$B55=\"M\",'RES S curve-connect'!BU225,'RES S curve-connect'!BU203))","v":34.436284944664351},{"$f":"IF(Control!$B55=\"L\",'RES S curve-connect'!BV247,IF(Control!$B55=\"M\",'RES S curve-connect'!BV225,'RES S curve-connect'!BV203))","v":38.415417473520108},{"$f":"IF(Control!$B55=\"L\",'RES S curve-connect'!BW247,IF(Control!$B55=\"M\",'RES S curve-connect'!BW225,'RES S curve-connect'!BW203))","v":49.065845071139904},{"$f":"IF(Control!$B55=\"L\",'RES S curve-connect'!BX247,IF(Control!$B55=\"M\",'RES S curve-connect'!BX225,'RES S curve-connect'!BX203))","v":56.366365394687534},{"$f":"IF(Control!$B55=\"L\",'RES S curve-connect'!BY247,IF(Control!$B55=\"M\",'RES S curve-connect'!BY225,'RES S curve-connect'!BY203))","v":63.657455148672511},{"$f":"IF(Control!$B55=\"L\",'RES S curve-connect'!BZ247,IF(Control!$B55=\"M\",'RES S curve-connect'!BZ225,'RES S curve-connect'!BZ203))","v":67.598750983828381},{"$f":"IF(Control!$B55=\"L\",'RES S curve-connect'!CA247,IF(Control!$B55=\"M\",'RES S curve-connect'!CA225,'RES S curve-connect'!CA203))","v":78.211568602697071},{"$f":"IF(Control!$B55=\"L\",'RES S curve-connect'!CB247,IF(Control!$B55=\"M\",'RES S curve-connect'!CB225,'RES S curve-connect'!CB203))","v":85.474704256244024},{"$f":"IF(Control!$B55=\"L\",'RES S curve-connect'!CC247,IF(Control!$B55=\"M\",'RES S curve-connect'!CC225,'RES S curve-connect'!CC203))","v":92.728633251647409},{"$f":"IF(Control!$B55=\"L\",'RES S curve-connect'!CD247,IF(Control!$B55=\"M\",'RES S curve-connect'!CD225,'RES S curve-connect'!CD203))","v":-18.522498829032997}]
["Manningham (C)",{"$f":"Customers!K150","v":43519},{"$f":"IF(Control!$B56=\"L\",'RES S curve-connect'!C248,IF(Control!$B56=\"M\",'RES S curve-connect'!C226,'RES S curve-connect'!C204))","v":-3015.7586372898963},{"$f":"IF(Control!$B56=\"L\",'RES S curve-connect'!D248,IF(Control!$B56=\"M\",'RES S curve-connect'!D226,'RES S curve-connect'!D204))","v":-3553.1587562297336},{"$f":"IF(Control!$B56=\"L\",'RES S curve-connect'!E248,IF(Control!$B56=\"M\",'RES S curve-connect'!E226,'RES S curve-connect'!E204))","v":-2792.0662287774658},{"$f":"IF(Control!$B56=\"L\",'RES S curve-connect'!F248,IF(Control!$B56=\"M\",'RES S curve-connect'!F226,'RES S curve-connect'!F204))","v":-2629.9647256393346},{"$f":"IF(Control!$B56=\"L\",'RES S curve-connect'!G248,IF(Control!$B56=\"M\",'RES S curve-connect'!G226,'RES S curve-connect'!G204))","v":-3938.6435764945945},{"$f":"IF(Control!$B56=\"L\",'RES S curve-connect'!H248,IF(Control!$B56=\"M\",'RES S curve-connect'!H226,'RES S curve-connect'!H204))","v":-3966.6089073190251},{"$f":"IF(Control!$B56=\"L\",'RES S curve-connect'!I248,IF(Control!$B56=\"M\",'RES S curve-connect'!I226,'RES S curve-connect'!I204))","v":-3507.6219472788898},{"$f":"IF(Control!$B56=\"L\",'RES S curve-connect'!J248,IF(Control!$B56=\"M\",'RES S curve-connect'!J226,'RES S curve-connect'!J204))","v":-3840.4327390968306},{"$f":"IF(Control!$B56=\"L\",'RES S curve-connect'!K248,IF(Control!$B56=\"M\",'RES S curve-connect'!K226,'RES S curve-connect'!K204))","v":-2980.5233709047479},{"$f":"IF(Control!$B56=\"L\",'RES S curve-connect'!L248,IF(Control!$B56=\"M\",'RES S curve-connect'!L226,'RES S curve-connect'!L204))","v":-3346.4764418897548},{"$f":"IF(Control!$B56=\"L\",'RES S curve-connect'!M248,IF(Control!$B56=\"M\",'RES S curve-connect'!M226,'RES S curve-connect'!M204))","v":-4019.7996321295686},{"$f":"IF(Control!$B56=\"L\",'RES S curve-connect'!N248,IF(Control!$B56=\"M\",'RES S curve-connect'!N226,'RES S curve-connect'!N204))","v":-4081.6665834475152},{"$f":"IF(Control!$B56=\"L\",'RES S curve-connect'!O248,IF(Control!$B56=\"M\",'RES S curve-connect'!O226,'RES S curve-connect'!O204))","v":-3489.4249724466345},{"$f":"IF(Control!$B56=\"L\",'RES S curve-connect'!P248,IF(Control!$B56=\"M\",'RES S curve-connect'!P226,'RES S curve-connect'!P204))","v":-3016.6202375701951},{"$f":"IF(Control!$B56=\"L\",'RES S curve-connect'!Q248,IF(Control!$B56=\"M\",'RES S curve-connect'!Q226,'RES S curve-connect'!Q204))","v":-2302.9942666459942},{"$f":"IF(Control!$B56=\"L\",'RES S curve-connect'!R248,IF(Control!$B56=\"M\",'RES S curve-connect'!R226,'RES S curve-connect'!R204))","v":-1897.710430249303},{"$f":"IF(Control!$B56=\"L\",'RES S curve-connect'!S248,IF(Control!$B56=\"M\",'RES S curve-connect'!S226,'RES S curve-connect'!S204))","v":-1255.1642303569647},{"$f":"IF(Control!$B56=\"L\",'RES S curve-connect'!T248,IF(Control!$B56=\"M\",'RES S curve-connect'!T226,'RES S curve-connect'!T204))","v":-902.89277742421768},{"$f":"IF(Control!$B56=\"L\",'RES S curve-connect'!U248,IF(Control!$B56=\"M\",'RES S curve-connect'!U226,'RES S curve-connect'!U204))","v":-502.62012515975863},{"$f":"IF(Control!$B56=\"L\",'RES S curve-connect'!V248,IF(Control!$B56=\"M\",'RES S curve-connect'!V226,'RES S curve-connect'!V204))","v":-229.70393485906845},{"$f":"IF(Control!$B56=\"L\",'RES S curve-connect'!W248,IF(Control!$B56=\"M\",'RES S curve-connect'!W226,'RES S curve-connect'!W204))","v":-16.581215651600786},{"$f":"IF(Control!$B56=\"L\",'RES S curve-connect'!X248,IF(Control!$B56=\"M\",'RES S curve-connect'!X226,'RES S curve-connect'!X204))","v":466.25856843353961},{"$f":"IF(Control!$B56=\"L\",'RES S curve-connect'!Y248,IF(Control!$B56=\"M\",'RES S curve-connect'!Y226,'RES S curve-connect'!Y204))","v":954.4928533268112},{"$f":"IF(Control!$B56=\"L\",'RES S curve-connect'!Z248,IF(Control!$B56=\"M\",'RES S curve-connect'!Z226,'RES S curve-connect'!Z204))","v":1285.1482577929153},{"$f":"IF(Control!$B56=\"L\",'RES S curve-connect'!AA248,IF(Control!$B56=\"M\",'RES S curve-connect'!AA226,'RES S curve-connect'!AA204))","v":1615.5179930168401},{"$f":"IF(Control!$B56=\"L\",'RES S curve-connect'!AB248,IF(Control!$B56=\"M\",'RES S curve-connect'!AB226,'RES S curve-connect'!AB204))","v":1879.4911348056535},{"$f":"IF(Control!$B56=\"L\",'RES S curve-connect'!AC248,IF(Control!$B56=\"M\",'RES S curve-connect'!AC226,'RES S curve-connect'!AC204))","v":2133.6537198440224},{"$f":"IF(Control!$B56=\"L\",'RES S curve-connect'!AD248,IF(Control!$B56=\"M\",'RES S curve-connect'!AD226,'RES S curve-connect'!AD204))","v":2366.8689943603695},{"$f":"IF(Control!$B56=\"L\",'RES S curve-connect'!AE248,IF(Control!$B56=\"M\",'RES S curve-connect'!AE226,'RES S curve-connect'!AE204))","v":2611.5145413368073},{"$f":"IF(Control!$B56=\"L\",'RES S curve-connect'!AF248,IF(Control!$B56=\"M\",'RES S curve-connect'!AF226,'RES S curve-connect'!AF204))","v":2928.2918102310764},{"$f":"IF(Control!$B56=\"L\",'RES S curve-connect'!AG248,IF(Control!$B56=\"M\",'RES S curve-connect'!AG226,'RES S curve-connect'!AG204))","v":3145.5224133866382},{"$f":"IF(Control!$B56=\"L\",'RES S curve-connect'!AH248,IF(Control!$B56=\"M\",'RES S curve-connect'!AH226,'RES S curve-connect'!AH204))","v":3452.0962257172005},{"$f":"IF(Control!$B56=\"L\",'RES S curve-connect'!AI248,IF(Control!$B56=\"M\",'RES S curve-connect'!AI226,'RES S curve-connect'!AI204))","v":3726.8687788072129},{"$f":"IF(Control!$B56=\"L\",'RES S curve-connect'!AJ248,IF(Control!$B56=\"M\",'RES S curve-connect'!AJ226,'RES S curve-connect'!AJ204))","v":3975.0124743184679},{"$f":"IF(Control!$B56=\"L\",'RES S curve-connect'!AK248,IF(Control!$B56=\"M\",'RES S curve-connect'!AK226,'RES S curve-connect'!AK204))","v":4238.4252768720198},{"$f":"IF(Control!$B56=\"L\",'RES S curve-connect'!AL248,IF(Control!$B56=\"M\",'RES S curve-connect'!AL226,'RES S curve-connect'!AL204))","v":3328.6449946842854},{"$f":"IF(Control!$B56=\"L\",'RES S curve-connect'!AM248,IF(Control!$B56=\"M\",'RES S curve-connect'!AM226,'RES S curve-connect'!AM204))","v":3208.2563674991484},{"$f":"IF(Control!$B56=\"L\",'RES S curve-connect'!AN248,IF(Control!$B56=\"M\",'RES S curve-connect'!AN226,'RES S curve-connect'!AN204))","v":3456.9278789684959},{"$f":"IF(Control!$B56=\"L\",'RES S curve-connect'!AO248,IF(Control!$B56=\"M\",'RES S curve-connect'!AO226,'RES S curve-connect'!AO204))","v":3761.7466783781042},{"$f":"IF(Control!$B56=\"L\",'RES S curve-connect'!AP248,IF(Control!$B56=\"M\",'RES S curve-connect'!AP226,'RES S curve-connect'!AP204))","v":4043.7467050367291},{"$f":"IF(Control!$B56=\"L\",'RES S curve-connect'!AQ248,IF(Control!$B56=\"M\",'RES S curve-connect'!AQ226,'RES S curve-connect'!AQ204))","v":4346.9492214756783},{"$f":"IF(Control!$B56=\"L\",'RES S curve-connect'!AR248,IF(Control!$B56=\"M\",'RES S curve-connect'!AR226,'RES S curve-connect'!AR204))","v":4680.1097969870234},{"$f":"IF(Control!$B56=\"L\",'RES S curve-connect'!AS248,IF(Control!$B56=\"M\",'RES S curve-connect'!AS226,'RES S curve-connect'!AS204))","v":5054.0304840972176},{"$f":"IF(Control!$B56=\"L\",'RES S curve-connect'!AT248,IF(Control!$B56=\"M\",'RES S curve-connect'!AT226,'RES S curve-connect'!AT204))","v":5472.5757044898182},{"$f":"IF(Control!$B56=\"L\",'RES S curve-connect'!AU248,IF(Control!$B56=\"M\",'RES S curve-connect'!AU226,'RES S curve-connect'!AU204))","v":5956.4518829771969},{"$f":"IF(Control!$B56=\"L\",'RES S curve-connect'!AV248,IF(Control!$B56=\"M\",'RES S curve-connect'!AV226,'RES S curve-connect'!AV204))","v":6508.7579414858974},{"$f":"IF(Control!$B56=\"L\",'RES S curve-connect'!AW248,IF(Control!$B56=\"M\",'RES S curve-connect'!AW226,'RES S curve-connect'!AW204))","v":7143.7611375801671},{"$f":"IF(Control!$B56=\"L\",'RES S curve-connect'!AX248,IF(Control!$B56=\"M\",'RES S curve-connect'!AX226,'RES S curve-connect'!AX204))","v":7867.9202851593791},{"$f":"IF(Control!$B56=\"L\",'RES S curve-connect'!AY248,IF(Control!$B56=\"M\",'RES S curve-connect'!AY226,'RES S curve-connect'!AY204))","v":8703.3301674801642},{"$f":"IF(Control!$B56=\"L\",'RES S curve-connect'!AZ248,IF(Control!$B56=\"M\",'RES S curve-connect'!AZ226,'RES S curve-connect'!AZ204))","v":9658.9374294837289},{"$f":"IF(Control!$B56=\"L\",'RES S curve-connect'!BA248,IF(Control!$B56=\"M\",'RES S curve-connect'!BA226,'RES S curve-connect'!BA204))","v":10766.038347021975},{"$f":"IF(Control!$B56=\"L\",'RES S curve-connect'!BB248,IF(Control!$B56=\"M\",'RES S curve-connect'!BB226,'RES S curve-connect'!BB204))","v":12060.225421674673},{"$f":"IF(Control!$B56=\"L\",'RES S curve-connect'!BC248,IF(Control!$B56=\"M\",'RES S curve-connect'!BC226,'RES S curve-connect'!BC204))","v":13603.697124041864},{"$f":"IF(Control!$B56=\"L\",'RES S curve-connect'!BD248,IF(Control!$B56=\"M\",'RES S curve-connect'!BD226,'RES S curve-connect'!BD204))","v":15094.594869701561},{"$f":"IF(Control!$B56=\"L\",'RES S curve-connect'!BE248,IF(Control!$B56=\"M\",'RES S curve-connect'!BE226,'RES S curve-connect'!BE204))","v":16457.928045018944},{"$f":"IF(Control!$B56=\"L\",'RES S curve-connect'!BF248,IF(Control!$B56=\"M\",'RES S curve-connect'!BF226,'RES S curve-connect'!BF204))","v":17852.68363838565},{"$f":"IF(Control!$B56=\"L\",'RES S curve-connect'!BG248,IF(Control!$B56=\"M\",'RES S curve-connect'!BG226,'RES S curve-connect'!BG204))","v":19430.509761544352},{"$f":"IF(Control!$B56=\"L\",'RES S curve-connect'!BH248,IF(Control!$B56=\"M\",'RES S curve-connect'!BH226,'RES S curve-connect'!BH204))","v":21303.915821342271},{"$f":"IF(Control!$B56=\"L\",'RES S curve-connect'!BI248,IF(Control!$B56=\"M\",'RES S curve-connect'!BI226,'RES S curve-connect'!BI204))","v":24018.035136080722},{"$f":"IF(Control!$B56=\"L\",'RES S curve-connect'!BJ248,IF(Control!$B56=\"M\",'RES S curve-connect'!BJ226,'RES S curve-connect'!BJ204))","v":27995.252027842493},{"$f":"IF(Control!$B56=\"L\",'RES S curve-connect'!BK248,IF(Control!$B56=\"M\",'RES S curve-connect'!BK226,'RES S curve-connect'!BK204))","v":33868.120674518876},{"$f":"IF(Control!$B56=\"L\",'RES S curve-connect'!BL248,IF(Control!$B56=\"M\",'RES S curve-connect'!BL226,'RES S curve-connect'!BL204))","v":-2.2759623333787999},{"$f":"IF(Control!$B56=\"L\",'RES S curve-connect'!BM248,IF(Control!$B56=\"M\",'RES S curve-connect'!BM226,'RES S curve-connect'!BM204))","v":5.1213795032543317},{"$f":"IF(Control!$B56=\"L\",'RES S curve-connect'!BN248,IF(Control!$B56=\"M\",'RES S curve-connect'!BN226,'RES S curve-connect'!BN204))","v":9.1683103556567289},{"$f":"IF(Control!$B56=\"L\",'RES S curve-connect'!BO248,IF(Control!$B56=\"M\",'RES S curve-connect'!BO226,'RES S curve-connect'!BO204))","v":19.886149699093437},{"$f":"IF(Control!$B56=\"L\",'RES S curve-connect'!BP248,IF(Control!$B56=\"M\",'RES S curve-connect'!BP226,'RES S curve-connect'!BP204))","v":27.253697533616958},{"$f":"IF(Control!$B56=\"L\",'RES S curve-connect'!BQ248,IF(Control!$B56=\"M\",'RES S curve-connect'!BQ226,'RES S curve-connect'!BQ204))","v":34.611432892011578},{"$f":"IF(Control!$B56=\"L\",'RES S curve-connect'!BR248,IF(Control!$B56=\"M\",'RES S curve-connect'!BR226,'RES S curve-connect'!BR204))","v":38.618994738763831},{"$f":"IF(Control!$B56=\"L\",'RES S curve-connect'!BS248,IF(Control!$B56=\"M\",'RES S curve-connect'!BS226,'RES S curve-connect'!BS204))","v":49.297701075736086},{"$f":"IF(Control!$B56=\"L\",'RES S curve-connect'!BT248,IF(Control!$B56=\"M\",'RES S curve-connect'!BT226,'RES S curve-connect'!BT204))","v":56.62635043887974},{"$f":"IF(Control!$B56=\"L\",'RES S curve-connect'!BU248,IF(Control!$B56=\"M\",'RES S curve-connect'!BU226,'RES S curve-connect'!BU204))","v":63.945420406112078},{"$f":"IF(Control!$B56=\"L\",'RES S curve-connect'!BV248,IF(Control!$B56=\"M\",'RES S curve-connect'!BV226,'RES S curve-connect'!BV204))","v":67.914548496227098},{"$f":"IF(Control!$B56=\"L\",'RES S curve-connect'!BW248,IF(Control!$B56=\"M\",'RES S curve-connect'!BW226,'RES S curve-connect'!BW204))","v":78.555051274519428},{"$f":"IF(Control!$B56=\"L\",'RES S curve-connect'!BX248,IF(Control!$B56=\"M\",'RES S curve-connect'!BX226,'RES S curve-connect'!BX204))","v":85.845725849427083},{"$f":"IF(Control!$B56=\"L\",'RES S curve-connect'!BY248,IF(Control!$B56=\"M\",'RES S curve-connect'!BY226,'RES S curve-connect'!BY204))","v":93.12704838035944},{"$f":"IF(Control!$B56=\"L\",'RES S curve-connect'!BZ248,IF(Control!$B56=\"M\",'RES S curve-connect'!BZ226,'RES S curve-connect'!BZ204))","v":97.058654976551225},{"$f":"IF(Control!$B56=\"L\",'RES S curve-connect'!CA248,IF(Control!$B56=\"M\",'RES S curve-connect'!CA226,'RES S curve-connect'!CA204))","v":107.66186080262463},{"$f":"IF(Control!$B56=\"L\",'RES S curve-connect'!CB248,IF(Control!$B56=\"M\",'RES S curve-connect'!CB226,'RES S curve-connect'!CB204))","v":114.91546157518042},{"$f":"IF(Control!$B56=\"L\",'RES S curve-connect'!CC248,IF(Control!$B56=\"M\",'RES S curve-connect'!CC226,'RES S curve-connect'!CC204))","v":122.15993207056403},{"$f":"IF(Control!$B56=\"L\",'RES S curve-connect'!CD248,IF(Control!$B56=\"M\",'RES S curve-connect'!CD226,'RES S curve-connect'!CD204))","v":10.892540827938092}]
["Maroondah (C)",{"$f":"Customers!K151","v":38795},{"$f":"IF(Control!$B57=\"L\",'RES S curve-connect'!C249,IF(Control!$B57=\"M\",'RES S curve-connect'!C227,'RES S curve-connect'!C205))","v":-3039.5700652401988},{"$f":"IF(Control!$B57=\"L\",'RES S curve-connect'!D249,IF(Control!$B57=\"M\",'RES S curve-connect'!D227,'RES S curve-connect'!D205))","v":-3577.1535409479343},{"$f":"IF(Control!$B57=\"L\",'RES S curve-connect'!E249,IF(Control!$B57=\"M\",'RES S curve-connect'!E227,'RES S curve-connect'!E205))","v":-2817.515843337339},{"$f":"IF(Control!$B57=\"L\",'RES S curve-connect'!F249,IF(Control!$B57=\"M\",'RES S curve-connect'!F227,'RES S curve-connect'!F205))","v":-2655.3931450530722},{"$f":"IF(Control!$B57=\"L\",'RES S curve-connect'!G249,IF(Control!$B57=\"M\",'RES S curve-connect'!G227,'RES S curve-connect'!G205))","v":-3955.8064640868729},{"$f":"IF(Control!$B57=\"L\",'RES S curve-connect'!H249,IF(Control!$B57=\"M\",'RES S curve-connect'!H227,'RES S curve-connect'!H205))","v":-3984.9725678166046},{"$f":"IF(Control!$B57=\"L\",'RES S curve-connect'!I249,IF(Control!$B57=\"M\",'RES S curve-connect'!I227,'RES S curve-connect'!I205))","v":-3526.5993123478884},{"$f":"IF(Control!$B57=\"L\",'RES S curve-connect'!J249,IF(Control!$B57=\"M\",'RES S curve-connect'!J227,'RES S curve-connect'!J205))","v":-3863.6836270305894},{"$f":"IF(Control!$B57=\"L\",'RES S curve-connect'!K249,IF(Control!$B57=\"M\",'RES S curve-connect'!K227,'RES S curve-connect'!K205))","v":-3004.4639276533057},{"$f":"IF(Control!$B57=\"L\",'RES S curve-connect'!L249,IF(Control!$B57=\"M\",'RES S curve-connect'!L227,'RES S curve-connect'!L205))","v":-3370.3063824459919},{"$f":"IF(Control!$B57=\"L\",'RES S curve-connect'!M249,IF(Control!$B57=\"M\",'RES S curve-connect'!M227,'RES S curve-connect'!M205))","v":-4041.8674165380694},{"$f":"IF(Control!$B57=\"L\",'RES S curve-connect'!N249,IF(Control!$B57=\"M\",'RES S curve-connect'!N227,'RES S curve-connect'!N205))","v":-4103.3932007632538},{"$f":"IF(Control!$B57=\"L\",'RES S curve-connect'!O249,IF(Control!$B57=\"M\",'RES S curve-connect'!O227,'RES S curve-connect'!O205))","v":-3511.6444032016343},{"$f":"IF(Control!$B57=\"L\",'RES S curve-connect'!P249,IF(Control!$B57=\"M\",'RES S curve-connect'!P227,'RES S curve-connect'!P205))","v":-3039.3464886758829},{"$f":"IF(Control!$B57=\"L\",'RES S curve-connect'!Q249,IF(Control!$B57=\"M\",'RES S curve-connect'!Q227,'RES S curve-connect'!Q205))","v":-2326.585366399755},{"$f":"IF(Control!$B57=\"L\",'RES S curve-connect'!R249,IF(Control!$B57=\"M\",'RES S curve-connect'!R227,'RES S curve-connect'!R205))","v":-1921.7219836840284},{"$f":"IF(Control!$B57=\"L\",'RES S curve-connect'!S249,IF(Control!$B57=\"M\",'RES S curve-connect'!S227,'RES S curve-connect'!S205))","v":-1279.9501456046501},{"$f":"IF(Control!$B57=\"L\",'RES S curve-connect'!T249,IF(Control!$B57=\"M\",'RES S curve-connect'!T227,'RES S curve-connect'!T205))","v":-928.01742189133381},{"$f":"IF(Control!$B57=\"L\",'RES S curve-connect'!U249,IF(Control!$B57=\"M\",'RES S curve-connect'!U227,'RES S curve-connect'!U205))","v":-528.09446552396923},{"$f":"IF(Control!$B57=\"L\",'RES S curve-connect'!V249,IF(Control!$B57=\"M\",'RES S curve-connect'!V227,'RES S curve-connect'!V205))","v":-255.25359622766692},{"$f":"IF(Control!$B57=\"L\",'RES S curve-connect'!W249,IF(Control!$B57=\"M\",'RES S curve-connect'!W227,'RES S curve-connect'!W205))","v":-42.231519075170809},{"$f":"IF(Control!$B57=\"L\",'RES S curve-connect'!X249,IF(Control!$B57=\"M\",'RES S curve-connect'!X227,'RES S curve-connect'!X205))","v":439.99667135874802},{"$f":"IF(Control!$B57=\"L\",'RES S curve-connect'!Y249,IF(Control!$B57=\"M\",'RES S curve-connect'!Y227,'RES S curve-connect'!Y205))","v":927.62204926060667},{"$f":"IF(Control!$B57=\"L\",'RES S curve-connect'!Z249,IF(Control!$B57=\"M\",'RES S curve-connect'!Z227,'RES S curve-connect'!Z205))","v":1257.9626354017823},{"$f":"IF(Control!$B57=\"L\",'RES S curve-connect'!AA249,IF(Control!$B57=\"M\",'RES S curve-connect'!AA227,'RES S curve-connect'!AA205))","v":1588.0307813406312},{"$f":"IF(Control!$B57=\"L\",'RES S curve-connect'!AB249,IF(Control!$B57=\"M\",'RES S curve-connect'!AB227,'RES S curve-connect'!AB205))","v":1851.7269783058275},{"$f":"IF(Control!$B57=\"L\",'RES S curve-connect'!AC249,IF(Control!$B57=\"M\",'RES S curve-connect'!AC227,'RES S curve-connect'!AC205))","v":2105.6343379184791},{"$f":"IF(Control!$B57=\"L\",'RES S curve-connect'!AD249,IF(Control!$B57=\"M\",'RES S curve-connect'!AD227,'RES S curve-connect'!AD205))","v":2338.6284855313261},{"$f":"IF(Control!$B57=\"L\",'RES S curve-connect'!AE249,IF(Control!$B57=\"M\",'RES S curve-connect'!AE227,'RES S curve-connect'!AE205))","v":2583.0466501935803},{"$f":"IF(Control!$B57=\"L\",'RES S curve-connect'!AF249,IF(Control!$B57=\"M\",'RES S curve-connect'!AF227,'RES S curve-connect'!AF205))","v":2899.4554743017889},{"$f":"IF(Control!$B57=\"L\",'RES S curve-connect'!AG249,IF(Control!$B57=\"M\",'RES S curve-connect'!AG227,'RES S curve-connect'!AG205))","v":3116.329704023984},{"$f":"IF(Control!$B57=\"L\",'RES S curve-connect'!AH249,IF(Control!$B57=\"M\",'RES S curve-connect'!AH227,'RES S curve-connect'!AH205))","v":3422.3657007860911},{"$f":"IF(Control!$B57=\"L\",'RES S curve-connect'!AI249,IF(Control!$B57=\"M\",'RES S curve-connect'!AI227,'RES S curve-connect'!AI205))","v":3696.6845336418733},{"$f":"IF(Control!$B57=\"L\",'RES S curve-connect'!AJ249,IF(Control!$B57=\"M\",'RES S curve-connect'!AJ227,'RES S curve-connect'!AJ205))","v":3944.4138629776908},{"$f":"IF(Control!$B57=\"L\",'RES S curve-connect'!AK249,IF(Control!$B57=\"M\",'RES S curve-connect'!AK227,'RES S curve-connect'!AK205))","v":4207.386971301682},{"$f":"IF(Control!$B57=\"L\",'RES S curve-connect'!AL249,IF(Control!$B57=\"M\",'RES S curve-connect'!AL227,'RES S curve-connect'!AL205))","v":3299.1035480968212},{"$f":"IF(Control!$B57=\"L\",'RES S curve-connect'!AM249,IF(Control!$B57=\"M\",'RES S curve-connect'!AM227,'RES S curve-connect'!AM205))","v":3178.9640273978393},{"$f":"IF(Control!$B57=\"L\",'RES S curve-connect'!AN249,IF(Control!$B57=\"M\",'RES S curve-connect'!AN227,'RES S curve-connect'!AN205))","v":3427.2419537590167},{"$f":"IF(Control!$B57=\"L\",'RES S curve-connect'!AO249,IF(Control!$B57=\"M\",'RES S curve-connect'!AO227,'RES S curve-connect'!AO205))","v":3731.5556888401352},{"$f":"IF(Control!$B57=\"L\",'RES S curve-connect'!AP249,IF(Control!$B57=\"M\",'RES S curve-connect'!AP227,'RES S curve-connect'!AP205))","v":4013.0774042440153},{"$f":"IF(Control!$B57=\"L\",'RES S curve-connect'!AQ249,IF(Control!$B57=\"M\",'RES S curve-connect'!AQ227,'RES S curve-connect'!AQ205))","v":4315.7767160620169},{"$f":"IF(Control!$B57=\"L\",'RES S curve-connect'!AR249,IF(Control!$B57=\"M\",'RES S curve-connect'!AR227,'RES S curve-connect'!AR205))","v":4648.3762071122392},{"$f":"IF(Control!$B57=\"L\",'RES S curve-connect'!AS249,IF(Control!$B57=\"M\",'RES S curve-connect'!AS227,'RES S curve-connect'!AS205))","v":5021.6639432278034},{"$f":"IF(Control!$B57=\"L\",'RES S curve-connect'!AT249,IF(Control!$B57=\"M\",'RES S curve-connect'!AT227,'RES S curve-connect'!AT205))","v":5439.4912406911653},{"$f":"IF(Control!$B57=\"L\",'RES S curve-connect'!AU249,IF(Control!$B57=\"M\",'RES S curve-connect'!AU227,'RES S curve-connect'!AU205))","v":5922.5454232646644},{"$f":"IF(Control!$B57=\"L\",'RES S curve-connect'!AV249,IF(Control!$B57=\"M\",'RES S curve-connect'!AV227,'RES S curve-connect'!AV205))","v":6473.9016591765649},{"$f":"IF(Control!$B57=\"L\",'RES S curve-connect'!AW249,IF(Control!$B57=\"M\",'RES S curve-connect'!AW227,'RES S curve-connect'!AW205))","v":7107.8064405088744},{"$f":"IF(Control!$B57=\"L\",'RES S curve-connect'!AX249,IF(Control!$B57=\"M\",'RES S curve-connect'!AX227,'RES S curve-connect'!AX205))","v":7830.6992759967407},{"$f":"IF(Control!$B57=\"L\",'RES S curve-connect'!AY249,IF(Control!$B57=\"M\",'RES S curve-connect'!AY227,'RES S curve-connect'!AY205))","v":8664.6514685554703},{"$f":"IF(Control!$B57=\"L\",'RES S curve-connect'!AZ249,IF(Control!$B57=\"M\",'RES S curve-connect'!AZ227,'RES S curve-connect'!AZ205))","v":9618.5737748044085},{"$f":"IF(Control!$B57=\"L\",'RES S curve-connect'!BA249,IF(Control!$B57=\"M\",'RES S curve-connect'!BA227,'RES S curve-connect'!BA205))","v":10723.709981885677},{"$f":"IF(Control!$B57=\"L\",'RES S curve-connect'!BB249,IF(Control!$B57=\"M\",'RES S curve-connect'!BB227,'RES S curve-connect'!BB205))","v":12015.579201871278},{"$f":"IF(Control!$B57=\"L\",'RES S curve-connect'!BC249,IF(Control!$B57=\"M\",'RES S curve-connect'!BC227,'RES S curve-connect'!BC205))","v":13556.281059511513},{"$f":"IF(Control!$B57=\"L\",'RES S curve-connect'!BD249,IF(Control!$B57=\"M\",'RES S curve-connect'!BD227,'RES S curve-connect'!BD205))","v":15044.453737682494},{"$f":"IF(Control!$B57=\"L\",'RES S curve-connect'!BE249,IF(Control!$B57=\"M\",'RES S curve-connect'!BE227,'RES S curve-connect'!BE205))","v":16405.27915708533},{"$f":"IF(Control!$B57=\"L\",'RES S curve-connect'!BF249,IF(Control!$B57=\"M\",'RES S curve-connect'!BF227,'RES S curve-connect'!BF205))","v":17797.473818465834},{"$f":"IF(Control!$B57=\"L\",'RES S curve-connect'!BG249,IF(Control!$B57=\"M\",'RES S curve-connect'!BG227,'RES S curve-connect'!BG205))","v":19372.420264792545},{"$f":"IF(Control!$B57=\"L\",'RES S curve-connect'!BH249,IF(Control!$B57=\"M\",'RES S curve-connect'!BH227,'RES S curve-connect'!BH205))","v":21242.394059875889},{"$f":"IF(Control!$B57=\"L\",'RES S curve-connect'!BI249,IF(Control!$B57=\"M\",'RES S curve-connect'!BI227,'RES S curve-connect'!BI205))","v":23951.548076779389},{"$f":"IF(Control!$B57=\"L\",'RES S curve-connect'!BJ249,IF(Control!$B57=\"M\",'RES S curve-connect'!BJ227,'RES S curve-connect'!BJ205))","v":27921.426820648048},{"$f":"IF(Control!$B57=\"L\",'RES S curve-connect'!BK249,IF(Control!$B57=\"M\",'RES S curve-connect'!BK227,'RES S curve-connect'!BK205))","v":33783.370359987093},{"$f":"IF(Control!$B57=\"L\",'RES S curve-connect'!BL249,IF(Control!$B57=\"M\",'RES S curve-connect'!BL227,'RES S curve-connect'!BL205))","v":-26.039234720849322},{"$f":"IF(Control!$B57=\"L\",'RES S curve-connect'!BM249,IF(Control!$B57=\"M\",'RES S curve-connect'!BM227,'RES S curve-connect'!BM205))","v":-18.645507787364465},{"$f":"IF(Control!$B57=\"L\",'RES S curve-connect'!BN249,IF(Control!$B57=\"M\",'RES S curve-connect'!BN227,'RES S curve-connect'!BN205))","v":-14.602248482429673},{"$f":"IF(Control!$B57=\"L\",'RES S curve-connect'!BO249,IF(Control!$B57=\"M\",'RES S curve-connect'!BO227,'RES S curve-connect'!BO205))","v":-3.8881369367533694},{"$f":"IF(Control!$B57=\"L\",'RES S curve-connect'!BP249,IF(Control!$B57=\"M\",'RES S curve-connect'!BP227,'RES S curve-connect'!BP205))","v":3.4756272411303826},{"$f":"IF(Control!$B57=\"L\",'RES S curve-connect'!BQ249,IF(Control!$B57=\"M\",'RES S curve-connect'!BQ227,'RES S curve-connect'!BQ205))","v":10.829523472822757},{"$f":"IF(Control!$B57=\"L\",'RES S curve-connect'!BR249,IF(Control!$B57=\"M\",'RES S curve-connect'!BR227,'RES S curve-connect'!BR205))","v":14.833191109048244},{"$f":"IF(Control!$B57=\"L\",'RES S curve-connect'!BS249,IF(Control!$B57=\"M\",'RES S curve-connect'!BS227,'RES S curve-connect'!BS205))","v":25.507948535344667},{"$f":"IF(Control!$B57=\"L\",'RES S curve-connect'!BT249,IF(Control!$B57=\"M\",'RES S curve-connect'!BT227,'RES S curve-connect'!BT205))","v":32.832594668792979},{"$f":"IF(Control!$B57=\"L\",'RES S curve-connect'!BU249,IF(Control!$B57=\"M\",'RES S curve-connect'!BU227,'RES S curve-connect'!BU205))","v":40.14760746591088},{"$f":"IF(Control!$B57=\"L\",'RES S curve-connect'!BV249,IF(Control!$B57=\"M\",'RES S curve-connect'!BV227,'RES S curve-connect'!BV205))","v":44.112624821579459},{"$f":"IF(Control!$B57=\"L\",'RES S curve-connect'!BW249,IF(Control!$B57=\"M\",'RES S curve-connect'!BW227,'RES S curve-connect'!BW205))","v":54.748963674684774},{"$f":"IF(Control!$B57=\"L\",'RES S curve-connect'!BX249,IF(Control!$B57=\"M\",'RES S curve-connect'!BX227,'RES S curve-connect'!BX205))","v":62.0354215047754},{"$f":"IF(Control!$B57=\"L\",'RES S curve-connect'!BY249,IF(Control!$B57=\"M\",'RES S curve-connect'!BY227,'RES S curve-connect'!BY205))","v":69.312474839907281},{"$f":"IF(Control!$B57=\"L\",'RES S curve-connect'!BZ249,IF(Control!$B57=\"M\",'RES S curve-connect'!BZ227,'RES S curve-connect'!BZ205))","v":73.23976015551392},{"$f":"IF(Control!$B57=\"L\",'RES S curve-connect'!CA249,IF(Control!$B57=\"M\",'RES S curve-connect'!CA227,'RES S curve-connect'!CA205))","v":83.838592979983673},{"$f":"IF(Control!$B57=\"L\",'RES S curve-connect'!CB249,IF(Control!$B57=\"M\",'RES S curve-connect'!CB227,'RES S curve-connect'!CB205))","v":91.0877693912675},{"$f":"IF(Control!$B57=\"L\",'RES S curve-connect'!CC249,IF(Control!$B57=\"M\",'RES S curve-connect'!CC227,'RES S curve-connect'!CC205))","v":98.327764524660381},{"$f":"IF(Control!$B57=\"L\",'RES S curve-connect'!CD249,IF(Control!$B57=\"M\",'RES S curve-connect'!CD227,'RES S curve-connect'!CD205))","v":-12.717080693938044}]
["Melbourne (C)",{"$f":"Customers!K152","v":841},{"$f":"IF(Control!$B58=\"L\",'RES S curve-connect'!C250,IF(Control!$B58=\"M\",'RES S curve-connect'!C228,'RES S curve-connect'!C206))","v":-2248.8931317546098},{"$f":"IF(Control!$B58=\"L\",'RES S curve-connect'!D250,IF(Control!$B58=\"M\",'RES S curve-connect'!D228,'RES S curve-connect'!D206))","v":-2454.596533471276},{"$f":"IF(Control!$B58=\"L\",'RES S curve-connect'!E250,IF(Control!$B58=\"M\",'RES S curve-connect'!E228,'RES S curve-connect'!E206))","v":-1991.4798226811004},{"$f":"IF(Control!$B58=\"L\",'RES S curve-connect'!F250,IF(Control!$B58=\"M\",'RES S curve-connect'!F228,'RES S curve-connect'!F206))","v":-1938.4341398780753},{"$f":"IF(Control!$B58=\"L\",'RES S curve-connect'!G250,IF(Control!$B58=\"M\",'RES S curve-connect'!G228,'RES S curve-connect'!G206))","v":-2408.4031432167312},{"$f":"IF(Control!$B58=\"L\",'RES S curve-connect'!H250,IF(Control!$B58=\"M\",'RES S curve-connect'!H228,'RES S curve-connect'!H206))","v":-2442.7580504756634},{"$f":"IF(Control!$B58=\"L\",'RES S curve-connect'!I250,IF(Control!$B58=\"M\",'RES S curve-connect'!I228,'RES S curve-connect'!I206))","v":-2279.8472890042149},{"$f":"IF(Control!$B58=\"L\",'RES S curve-connect'!J250,IF(Control!$B58=\"M\",'RES S curve-connect'!J228,'RES S curve-connect'!J206))","v":-2565.5105688859758},{"$f":"IF(Control!$B58=\"L\",'RES S curve-connect'!K250,IF(Control!$B58=\"M\",'RES S curve-connect'!K228,'RES S curve-connect'!K206))","v":-2179.0557750739154},{"$f":"IF(Control!$B58=\"L\",'RES S curve-connect'!L250,IF(Control!$B58=\"M\",'RES S curve-connect'!L228,'RES S curve-connect'!L206))","v":-2305.2842694952387},{"$f":"IF(Control!$B58=\"L\",'RES S curve-connect'!M250,IF(Control!$B58=\"M\",'RES S curve-connect'!M228,'RES S curve-connect'!M206))","v":-2518.6573450033834},{"$f":"IF(Control!$B58=\"L\",'RES S curve-connect'!N250,IF(Control!$B58=\"M\",'RES S curve-connect'!N228,'RES S curve-connect'!N206))","v":-2527.457850013493},{"$f":"IF(Control!$B58=\"L\",'RES S curve-connect'!O250,IF(Control!$B58=\"M\",'RES S curve-connect'!O228,'RES S curve-connect'!O206))","v":-2294.2253014464541},{"$f":"IF(Control!$B58=\"L\",'RES S curve-connect'!P250,IF(Control!$B58=\"M\",'RES S curve-connect'!P228,'RES S curve-connect'!P206))","v":-2109.1707794823042},{"$f":"IF(Control!$B58=\"L\",'RES S curve-connect'!Q250,IF(Control!$B58=\"M\",'RES S curve-connect'!Q228,'RES S curve-connect'!Q206))","v":-1836.6199110465288},{"$f":"IF(Control!$B58=\"L\",'RES S curve-connect'!R250,IF(Control!$B58=\"M\",'RES S curve-connect'!R228,'RES S curve-connect'!R206))","v":-1676.957351685814},{"$f":"IF(Control!$B58=\"L\",'RES S curve-connect'!S250,IF(Control!$B58=\"M\",'RES S curve-connect'!S228,'RES S curve-connect'!S206))","v":-1423.9619369324073},{"$f":"IF(Control!$B58=\"L\",'RES S curve-connect'!T250,IF(Control!$B58=\"M\",'RES S curve-connect'!T228,'RES S curve-connect'!T206))","v":-1295.2774658550888},{"$f":"IF(Control!$B58=\"L\",'RES S curve-connect'!U250,IF(Control!$B58=\"M\",'RES S curve-connect'!U228,'RES S curve-connect'!U206))","v":-1140.141554954537},{"$f":"IF(Control!$B58=\"L\",'RES S curve-connect'!V250,IF(Control!$B58=\"M\",'RES S curve-connect'!V228,'RES S curve-connect'!V206))","v":-1027.0973801201262},{"$f":"IF(Control!$B58=\"L\",'RES S curve-connect'!W250,IF(Control!$B58=\"M\",'RES S curve-connect'!W228,'RES S curve-connect'!W206))","v":-935.83898554427378},{"$f":"IF(Control!$B58=\"L\",'RES S curve-connect'!X250,IF(Control!$B58=\"M\",'RES S curve-connect'!X228,'RES S curve-connect'!X206))","v":-752.23092641166954},{"$f":"IF(Control!$B58=\"L\",'RES S curve-connect'!Y250,IF(Control!$B58=\"M\",'RES S curve-connect'!Y228,'RES S curve-connect'!Y206))","v":-565.16938925574436},{"$f":"IF(Control!$B58=\"L\",'RES S curve-connect'!Z250,IF(Control!$B58=\"M\",'RES S curve-connect'!Z228,'RES S curve-connect'!Z206))","v":-433.69886741778788},{"$f":"IF(Control!$B58=\"L\",'RES S curve-connect'!AA250,IF(Control!$B58=\"M\",'RES S curve-connect'!AA228,'RES S curve-connect'!AA206))","v":-300.54998692514437},{"$f":"IF(Control!$B58=\"L\",'RES S curve-connect'!AB250,IF(Control!$B58=\"M\",'RES S curve-connect'!AB228,'RES S curve-connect'!AB206))","v":-190.68896888656684},{"$f":"IF(Control!$B58=\"L\",'RES S curve-connect'!AC250,IF(Control!$B58=\"M\",'RES S curve-connect'!AC228,'RES S curve-connect'!AC206))","v":-83.31156517808418},{"$f":"IF(Control!$B58=\"L\",'RES S curve-connect'!AD250,IF(Control!$B58=\"M\",'RES S curve-connect'!AD228,'RES S curve-connect'!AD206))","v":16.230514349454893},{"$f":"IF(Control!$B58=\"L\",'RES S curve-connect'!AE250,IF(Control!$B58=\"M\",'RES S curve-connect'!AE228,'RES S curve-connect'!AE206))","v":122.60089925988746},{"$f":"IF(Control!$B58=\"L\",'RES S curve-connect'!AF250,IF(Control!$B58=\"M\",'RES S curve-connect'!AF228,'RES S curve-connect'!AF206))","v":253.4035192387966},{"$f":"IF(Control!$B58=\"L\",'RES S curve-connect'!AG250,IF(Control!$B58=\"M\",'RES S curve-connect'!AG228,'RES S curve-connect'!AG206))","v":335.76125871208694},{"$f":"IF(Control!$B58=\"L\",'RES S curve-connect'!AH250,IF(Control!$B58=\"M\",'RES S curve-connect'!AH228,'RES S curve-connect'!AH206))","v":446.74929549294359},{"$f":"IF(Control!$B58=\"L\",'RES S curve-connect'!AI250,IF(Control!$B58=\"M\",'RES S curve-connect'!AI228,'RES S curve-connect'!AI206))","v":550.99815578971879},{"$f":"IF(Control!$B58=\"L\",'RES S curve-connect'!AJ250,IF(Control!$B58=\"M\",'RES S curve-connect'!AJ228,'RES S curve-connect'!AJ206))","v":644.14359855019165},{"$f":"IF(Control!$B58=\"L\",'RES S curve-connect'!AK250,IF(Control!$B58=\"M\",'RES S curve-connect'!AK228,'RES S curve-connect'!AK206))","v":743.19332912585708},{"$f":"IF(Control!$B58=\"L\",'RES S curve-connect'!AL250,IF(Control!$B58=\"M\",'RES S curve-connect'!AL228,'RES S curve-connect'!AL206))","v":388.06716215327759},{"$f":"IF(Control!$B58=\"L\",'RES S curve-connect'!AM250,IF(Control!$B58=\"M\",'RES S curve-connect'!AM228,'RES S curve-connect'!AM206))","v":348.28093004751668},{"$f":"IF(Control!$B58=\"L\",'RES S curve-connect'!AN250,IF(Control!$B58=\"M\",'RES S curve-connect'!AN228,'RES S curve-connect'!AN206))","v":445.4969047184012},{"$f":"IF(Control!$B58=\"L\",'RES S curve-connect'!AO250,IF(Control!$B58=\"M\",'RES S curve-connect'!AO228,'RES S curve-connect'!AO206))","v":561.15829005205831},{"$f":"IF(Control!$B58=\"L\",'RES S curve-connect'!AP250,IF(Control!$B58=\"M\",'RES S curve-connect'!AP228,'RES S curve-connect'!AP206))","v":666.08074037132087},{"$f":"IF(Control!$B58=\"L\",'RES S curve-connect'!AQ250,IF(Control!$B58=\"M\",'RES S curve-connect'!AQ228,'RES S curve-connect'!AQ206))","v":781.00273646516939},{"$f":"IF(Control!$B58=\"L\",'RES S curve-connect'!AR250,IF(Control!$B58=\"M\",'RES S curve-connect'!AR228,'RES S curve-connect'!AR206))","v":906.05451108616546},{"$f":"IF(Control!$B58=\"L\",'RES S curve-connect'!AS250,IF(Control!$B58=\"M\",'RES S curve-connect'!AS228,'RES S curve-connect'!AS206))","v":1046.0938591659967},{"$f":"IF(Control!$B58=\"L\",'RES S curve-connect'!AT250,IF(Control!$B58=\"M\",'RES S curve-connect'!AT228,'RES S curve-connect'!AT206))","v":1201.4338602493156},{"$f":"IF(Control!$B58=\"L\",'RES S curve-connect'!AU250,IF(Control!$B58=\"M\",'RES S curve-connect'!AU228,'RES S curve-connect'!AU206))","v":1382.7423484408973},{"$f":"IF(Control!$B58=\"L\",'RES S curve-connect'!AV250,IF(Control!$B58=\"M\",'RES S curve-connect'!AV228,'RES S curve-connect'!AV206))","v":1587.9412689054852},{"$f":"IF(Control!$B58=\"L\",'RES S curve-connect'!AW250,IF(Control!$B58=\"M\",'RES S curve-connect'!AW228,'RES S curve-connect'!AW206))","v":1823.0437290147797},{"$f":"IF(Control!$B58=\"L\",'RES S curve-connect'!AX250,IF(Control!$B58=\"M\",'RES S curve-connect'!AX228,'RES S curve-connect'!AX206))","v":2089.0300391726532},{"$f":"IF(Control!$B58=\"L\",'RES S curve-connect'!AY250,IF(Control!$B58=\"M\",'RES S curve-connect'!AY228,'RES S curve-connect'!AY206))","v":2396.7384131465078},{"$f":"IF(Control!$B58=\"L\",'RES S curve-connect'!AZ250,IF(Control!$B58=\"M\",'RES S curve-connect'!AZ228,'RES S curve-connect'!AZ206))","v":2745.9182189965868},{"$f":"IF(Control!$B58=\"L\",'RES S curve-connect'!BA250,IF(Control!$B58=\"M\",'RES S curve-connect'!BA228,'RES S curve-connect'!BA206))","v":3148.5396519974656},{"$f":"IF(Control!$B58=\"L\",'RES S curve-connect'!BB250,IF(Control!$B58=\"M\",'RES S curve-connect'!BB228,'RES S curve-connect'!BB206))","v":3615.8077248068853},{"$f":"IF(Control!$B58=\"L\",'RES S curve-connect'!BC250,IF(Control!$B58=\"M\",'RES S curve-connect'!BC228,'RES S curve-connect'!BC206))","v":4172.4742348948239},{"$f":"IF(Control!$B58=\"L\",'RES S curve-connect'!BD250,IF(Control!$B58=\"M\",'RES S curve-connect'!BD228,'RES S curve-connect'!BD206))","v":4701.4134041507687},{"$f":"IF(Control!$B58=\"L\",'RES S curve-connect'!BE250,IF(Control!$B58=\"M\",'RES S curve-connect'!BE228,'RES S curve-connect'!BE206))","v":5182.1661768685353},{"$f":"IF(Control!$B58=\"L\",'RES S curve-connect'!BF250,IF(Control!$B58=\"M\",'RES S curve-connect'!BF228,'RES S curve-connect'!BF206))","v":5674.8666374271306},{"$f":"IF(Control!$B58=\"L\",'RES S curve-connect'!BG250,IF(Control!$B58=\"M\",'RES S curve-connect'!BG228,'RES S curve-connect'!BG206))","v":6235.5423761618731},{"$f":"IF(Control!$B58=\"L\",'RES S curve-connect'!BH250,IF(Control!$B58=\"M\",'RES S curve-connect'!BH228,'RES S curve-connect'!BH206))","v":6899.286773927377},{"$f":"IF(Control!$B58=\"L\",'RES S curve-connect'!BI250,IF(Control!$B58=\"M\",'RES S curve-connect'!BI228,'RES S curve-connect'!BI206))","v":7862.9670422522067},{"$f":"IF(Control!$B58=\"L\",'RES S curve-connect'!BJ250,IF(Control!$B58=\"M\",'RES S curve-connect'!BJ228,'RES S curve-connect'!BJ206))","v":9265.028016701548},{"$f":"IF(Control!$B58=\"L\",'RES S curve-connect'!BK250,IF(Control!$B58=\"M\",'RES S curve-connect'!BK228,'RES S curve-connect'!BK206))","v":11320.466326278362},{"$f":"IF(Control!$B58=\"L\",'RES S curve-connect'!BL250,IF(Control!$B58=\"M\",'RES S curve-connect'!BL228,'RES S curve-connect'!BL206))","v":-900.80180756345203},{"$f":"IF(Control!$B58=\"L\",'RES S curve-connect'!BM250,IF(Control!$B58=\"M\",'RES S curve-connect'!BM228,'RES S curve-connect'!BM206))","v":-898.11924619785907},{"$f":"IF(Control!$B58=\"L\",'RES S curve-connect'!BN250,IF(Control!$B58=\"M\",'RES S curve-connect'!BN228,'RES S curve-connect'!BN206))","v":-897.70412888400915},{"$f":"IF(Control!$B58=\"L\",'RES S curve-connect'!BO250,IF(Control!$B58=\"M\",'RES S curve-connect'!BO228,'RES S curve-connect'!BO206))","v":-892.76781576018288},{"$f":"IF(Control!$B58=\"L\",'RES S curve-connect'!BP250,IF(Control!$B58=\"M\",'RES S curve-connect'!BP228,'RES S curve-connect'!BP206))","v":-890.09889035698575},{"$f":"IF(Control!$B58=\"L\",'RES S curve-connect'!BQ250,IF(Control!$B58=\"M\",'RES S curve-connect'!BQ228,'RES S curve-connect'!BQ206))","v":-887.4344542388136},{"$f":"IF(Control!$B58=\"L\",'RES S curve-connect'!BR250,IF(Control!$B58=\"M\",'RES S curve-connect'!BR228,'RES S curve-connect'!BR206))","v":-887.0373502171733},{"$f":"IF(Control!$B58=\"L\",'RES S curve-connect'!BS250,IF(Control!$B58=\"M\",'RES S curve-connect'!BS228,'RES S curve-connect'!BS206))","v":-882.11893913512438},{"$f":"IF(Control!$B58=\"L\",'RES S curve-connect'!BT250,IF(Control!$B58=\"M\",'RES S curve-connect'!BT228,'RES S curve-connect'!BT206))","v":-879.46780522357483},{"$f":"IF(Control!$B58=\"L\",'RES S curve-connect'!BU250,IF(Control!$B58=\"M\",'RES S curve-connect'!BU228,'RES S curve-connect'!BU206))","v":-876.82105074277422},{"$f":"IF(Control!$B58=\"L\",'RES S curve-connect'!BV250,IF(Control!$B58=\"M\",'RES S curve-connect'!BV228,'RES S curve-connect'!BV206))","v":-876.44151919566434},{"$f":"IF(Control!$B58=\"L\",'RES S curve-connect'!BW250,IF(Control!$B58=\"M\",'RES S curve-connect'!BW228,'RES S curve-connect'!BW206))","v":-871.54057211234795},{"$f":"IF(Control!$B58=\"L\",'RES S curve-connect'!BX250,IF(Control!$B58=\"M\",'RES S curve-connect'!BX228,'RES S curve-connect'!BX206))","v":-868.90679440641236},{"$f":"IF(Control!$B58=\"L\",'RES S curve-connect'!BY250,IF(Control!$B58=\"M\",'RES S curve-connect'!BY228,'RES S curve-connect'!BY206))","v":-866.27728901645196},{"$f":"IF(Control!$B58=\"L\",'RES S curve-connect'!BZ250,IF(Control!$B58=\"M\",'RES S curve-connect'!BZ228,'RES S curve-connect'!BZ206))","v":-865.91490011944518},{"$f":"IF(Control!$B58=\"L\",'RES S curve-connect'!CA250,IF(Control!$B58=\"M\",'RES S curve-connect'!CA228,'RES S curve-connect'!CA206))","v":-861.03098991524985},{"$f":"IF(Control!$B58=\"L\",'RES S curve-connect'!CB250,IF(Control!$B58=\"M\",'RES S curve-connect'!CB228,'RES S curve-connect'!CB206))","v":-858.41414398295569},{"$f":"IF(Control!$B58=\"L\",'RES S curve-connect'!CC250,IF(Control!$B58=\"M\",'RES S curve-connect'!CC228,'RES S curve-connect'!CC206))","v":-855.80146592243364},{"$f":"IF(Control!$B58=\"L\",'RES S curve-connect'!CD250,IF(Control!$B58=\"M\",'RES S curve-connect'!CD228,'RES S curve-connect'!CD206))","v":-893.53716132044042}]
["Monash (C)",{"$f":"Customers!K153","v":65251},{"$f":"IF(Control!$B59=\"L\",'RES S curve-connect'!C251,IF(Control!$B59=\"M\",'RES S curve-connect'!C229,'RES S curve-connect'!C207))","v":-2971.1636569434145},{"$f":"IF(Control!$B59=\"L\",'RES S curve-connect'!D251,IF(Control!$B59=\"M\",'RES S curve-connect'!D229,'RES S curve-connect'!D207))","v":-3485.9316800562842},{"$f":"IF(Control!$B59=\"L\",'RES S curve-connect'!E251,IF(Control!$B59=\"M\",'RES S curve-connect'!E229,'RES S curve-connect'!E207))","v":-2772.966608935601},{"$f":"IF(Control!$B59=\"L\",'RES S curve-connect'!F251,IF(Control!$B59=\"M\",'RES S curve-connect'!F229,'RES S curve-connect'!F207))","v":-2619.0870317072677},{"$f":"IF(Control!$B59=\"L\",'RES S curve-connect'!G251,IF(Control!$B59=\"M\",'RES S curve-connect'!G229,'RES S curve-connect'!G207))","v":-3822.1079409420231},{"$f":"IF(Control!$B59=\"L\",'RES S curve-connect'!H251,IF(Control!$B59=\"M\",'RES S curve-connect'!H229,'RES S curve-connect'!H207))","v":-3857.3527806169968},{"$f":"IF(Control!$B59=\"L\",'RES S curve-connect'!I251,IF(Control!$B59=\"M\",'RES S curve-connect'!I229,'RES S curve-connect'!I207))","v":-3421.5071105897177},{"$f":"IF(Control!$B59=\"L\",'RES S curve-connect'!J251,IF(Control!$B59=\"M\",'RES S curve-connect'!J229,'RES S curve-connect'!J207))","v":-3760.7326977313746},{"$f":"IF(Control!$B59=\"L\",'RES S curve-connect'!K251,IF(Control!$B59=\"M\",'RES S curve-connect'!K229,'RES S curve-connect'!K207))","v":-2939.2429853659187},{"$f":"IF(Control!$B59=\"L\",'RES S curve-connect'!L251,IF(Control!$B59=\"M\",'RES S curve-connect'!L229,'RES S curve-connect'!L207))","v":-3288.7576683776497},{"$f":"IF(Control!$B59=\"L\",'RES S curve-connect'!M251,IF(Control!$B59=\"M\",'RES S curve-connect'!M229,'RES S curve-connect'!M207))","v":-3923.7867951186145},{"$f":"IF(Control!$B59=\"L\",'RES S curve-connect'!N251,IF(Control!$B59=\"M\",'RES S curve-connect'!N229,'RES S curve-connect'!N207))","v":-3981.5318399487833},{"$f":"IF(Control!$B59=\"L\",'RES S curve-connect'!O251,IF(Control!$B59=\"M\",'RES S curve-connect'!O229,'RES S curve-connect'!O207))","v":-3416.6020109287383},{"$f":"IF(Control!$B59=\"L\",'RES S curve-connect'!P251,IF(Control!$B59=\"M\",'RES S curve-connect'!P229,'RES S curve-connect'!P207))","v":-2966.3630636635166},{"$f":"IF(Control!$B59=\"L\",'RES S curve-connect'!Q251,IF(Control!$B59=\"M\",'RES S curve-connect'!Q229,'RES S curve-connect'!Q207))","v":-2287.2353227085241},{"$f":"IF(Control!$B59=\"L\",'RES S curve-connect'!R251,IF(Control!$B59=\"M\",'RES S curve-connect'!R229,'RES S curve-connect'!R207))","v":-1901.3149826449219},{"$f":"IF(Control!$B59=\"L\",'RES S curve-connect'!S251,IF(Control!$B59=\"M\",'RES S curve-connect'!S229,'RES S curve-connect'!S207))","v":-1288.8514947161316},{"$f":"IF(Control!$B59=\"L\",'RES S curve-connect'!T251,IF(Control!$B59=\"M\",'RES S curve-connect'!T229,'RES S curve-connect'!T207))","v":-955.00133384670721},{"$f":"IF(Control!$B59=\"L\",'RES S curve-connect'!U251,IF(Control!$B59=\"M\",'RES S curve-connect'!U229,'RES S curve-connect'!U207))","v":-574.05482438929221},{"$f":"IF(Control!$B59=\"L\",'RES S curve-connect'!V251,IF(Control!$B59=\"M\",'RES S curve-connect'!V229,'RES S curve-connect'!V207))","v":-313.31736185214118},{"$f":"IF(Control!$B59=\"L\",'RES S curve-connect'!W251,IF(Control!$B59=\"M\",'RES S curve-connect'!W229,'RES S curve-connect'!W207))","v":-109.69987146512216},{"$f":"IF(Control!$B59=\"L\",'RES S curve-connect'!X251,IF(Control!$B59=\"M\",'RES S curve-connect'!X229,'RES S curve-connect'!X207))","v":349.16699753095429},{"$f":"IF(Control!$B59=\"L\",'RES S curve-connect'!Y251,IF(Control!$B59=\"M\",'RES S curve-connect'!Y229,'RES S curve-connect'!Y207))","v":813.41334971891911},{"$f":"IF(Control!$B59=\"L\",'RES S curve-connect'!Z251,IF(Control!$B59=\"M\",'RES S curve-connect'!Z229,'RES S curve-connect'!Z207))","v":1128.2952333925039},{"$f":"IF(Control!$B59=\"L\",'RES S curve-connect'!AA251,IF(Control!$B59=\"M\",'RES S curve-connect'!AA229,'RES S curve-connect'!AA207))","v":1443.2054022794073},{"$f":"IF(Control!$B59=\"L\",'RES S curve-connect'!AB251,IF(Control!$B59=\"M\",'RES S curve-connect'!AB229,'RES S curve-connect'!AB207))","v":1694.952349695357},{"$f":"IF(Control!$B59=\"L\",'RES S curve-connect'!AC251,IF(Control!$B59=\"M\",'RES S curve-connect'!AC229,'RES S curve-connect'!AC207))","v":1937.558204241685},{"$f":"IF(Control!$B59=\"L\",'RES S curve-connect'!AD251,IF(Control!$B59=\"M\",'RES S curve-connect'!AD229,'RES S curve-connect'!AD207))","v":2160.2373557280616},{"$f":"IF(Control!$B59=\"L\",'RES S curve-connect'!AE251,IF(Control!$B59=\"M\",'RES S curve-connect'!AE229,'RES S curve-connect'!AE207))","v":2394.2047335700922},{"$f":"IF(Control!$B59=\"L\",'RES S curve-connect'!AF251,IF(Control!$B59=\"M\",'RES S curve-connect'!AF229,'RES S curve-connect'!AF207))","v":2696.3899792215393},{"$f":"IF(Control!$B59=\"L\",'RES S curve-connect'!AG251,IF(Control!$B59=\"M\",'RES S curve-connect'!AG229,'RES S curve-connect'!AG207))","v":2903.2684026015413},{"$f":"IF(Control!$B59=\"L\",'RES S curve-connect'!AH251,IF(Control!$B59=\"M\",'RES S curve-connect'!AH229,'RES S curve-connect'!AH207))","v":3194.3783007273623},{"$f":"IF(Control!$B59=\"L\",'RES S curve-connect'!AI251,IF(Control!$B59=\"M\",'RES S curve-connect'!AI229,'RES S curve-connect'!AI207))","v":3456.0593041206102},{"$f":"IF(Control!$B59=\"L\",'RES S curve-connect'!AJ251,IF(Control!$B59=\"M\",'RES S curve-connect'!AJ229,'RES S curve-connect'!AJ207))","v":3692.2227773492386},{"$f":"IF(Control!$B59=\"L\",'RES S curve-connect'!AK251,IF(Control!$B59=\"M\",'RES S curve-connect'!AK229,'RES S curve-connect'!AK207))","v":3942.9436200473715},{"$f":"IF(Control!$B59=\"L\",'RES S curve-connect'!AL251,IF(Control!$B59=\"M\",'RES S curve-connect'!AL229,'RES S curve-connect'!AL207))","v":3075.0548052596496},{"$f":"IF(Control!$B59=\"L\",'RES S curve-connect'!AM251,IF(Control!$B59=\"M\",'RES S curve-connect'!AM229,'RES S curve-connect'!AM207))","v":2961.3921236356146},{"$f":"IF(Control!$B59=\"L\",'RES S curve-connect'!AN251,IF(Control!$B59=\"M\",'RES S curve-connect'!AN229,'RES S curve-connect'!AN207))","v":3198.6775492705278},{"$f":"IF(Control!$B59=\"L\",'RES S curve-connect'!AO251,IF(Control!$B59=\"M\",'RES S curve-connect'!AO229,'RES S curve-connect'!AO207))","v":3488.9703179430535},{"$f":"IF(Control!$B59=\"L\",'RES S curve-connect'!AP251,IF(Control!$B59=\"M\",'RES S curve-connect'!AP229,'RES S curve-connect'!AP207))","v":3757.200401024149},{"$f":"IF(Control!$B59=\"L\",'RES S curve-connect'!AQ251,IF(Control!$B59=\"M\",'RES S curve-connect'!AQ229,'RES S curve-connect'!AQ207))","v":4045.9334040972435},{"$f":"IF(Control!$B59=\"L\",'RES S curve-connect'!AR251,IF(Control!$B59=\"M\",'RES S curve-connect'!AR229,'RES S curve-connect'!AR207))","v":4362.9951665097833},{"$f":"IF(Control!$B59=\"L\",'RES S curve-connect'!AS251,IF(Control!$B59=\"M\",'RES S curve-connect'!AS229,'RES S curve-connect'!AS207))","v":4718.7935154452207},{"$f":"IF(Control!$B59=\"L\",'RES S curve-connect'!AT251,IF(Control!$B59=\"M\",'RES S curve-connect'!AT229,'RES S curve-connect'!AT207))","v":5116.8234863545986},{"$f":"IF(Control!$B59=\"L\",'RES S curve-connect'!AU251,IF(Control!$B59=\"M\",'RES S curve-connect'!AU229,'RES S curve-connect'!AU207))","v":5577.2531318987385},{"$f":"IF(Control!$B59=\"L\",'RES S curve-connect'!AV251,IF(Control!$B59=\"M\",'RES S curve-connect'!AV229,'RES S curve-connect'!AV207))","v":6102.5118681031918},{"$f":"IF(Control!$B59=\"L\",'RES S curve-connect'!AW251,IF(Control!$B59=\"M\",'RES S curve-connect'!AW229,'RES S curve-connect'!AW207))","v":6706.2816689100137},{"$f":"IF(Control!$B59=\"L\",'RES S curve-connect'!AX251,IF(Control!$B59=\"M\",'RES S curve-connect'!AX229,'RES S curve-connect'!AX207))","v":7394.477223414945},{"$f":"IF(Control!$B59=\"L\",'RES S curve-connect'!AY251,IF(Control!$B59=\"M\",'RES S curve-connect'!AY229,'RES S curve-connect'!AY207))","v":8188.5315137359548},{"$f":"IF(Control!$B59=\"L\",'RES S curve-connect'!AZ251,IF(Control!$B59=\"M\",'RES S curve-connect'!AZ229,'RES S curve-connect'!AZ207))","v":9096.3796676403108},{"$f":"IF(Control!$B59=\"L\",'RES S curve-connect'!BA251,IF(Control!$B59=\"M\",'RES S curve-connect'!BA229,'RES S curve-connect'!BA207))","v":10147.838565717915},{"$f":"IF(Control!$B59=\"L\",'RES S curve-connect'!BB251,IF(Control!$B59=\"M\",'RES S curve-connect'!BB229,'RES S curve-connect'!BB207))","v":11376.432230114367},{"$f":"IF(Control!$B59=\"L\",'RES S curve-connect'!BC251,IF(Control!$B59=\"M\",'RES S curve-connect'!BC229,'RES S curve-connect'!BC207))","v":12841.57317084764},{"$f":"IF(Control!$B59=\"L\",'RES S curve-connect'!BD251,IF(Control!$B59=\"M\",'RES S curve-connect'!BD229,'RES S curve-connect'!BD207))","v":14255.404064629351},{"$f":"IF(Control!$B59=\"L\",'RES S curve-connect'!BE251,IF(Control!$B59=\"M\",'RES S curve-connect'!BE229,'RES S curve-connect'!BE207))","v":15547.797126458461},{"$f":"IF(Control!$B59=\"L\",'RES S curve-connect'!BF251,IF(Control!$B59=\"M\",'RES S curve-connect'!BF229,'RES S curve-connect'!BF207))","v":16870.115699255352},{"$f":"IF(Control!$B59=\"L\",'RES S curve-connect'!BG251,IF(Control!$B59=\"M\",'RES S curve-connect'!BG229,'RES S curve-connect'!BG207))","v":18366.522886656883},{"$f":"IF(Control!$B59=\"L\",'RES S curve-connect'!BH251,IF(Control!$B59=\"M\",'RES S curve-connect'!BH229,'RES S curve-connect'!BH207))","v":20142.937270204704},{"$f":"IF(Control!$B59=\"L\",'RES S curve-connect'!BI251,IF(Control!$B59=\"M\",'RES S curve-connect'!BI229,'RES S curve-connect'!BI207))","v":22716.858529085846},{"$f":"IF(Control!$B59=\"L\",'RES S curve-connect'!BJ251,IF(Control!$B59=\"M\",'RES S curve-connect'!BJ229,'RES S curve-connect'!BJ207))","v":26487.00092312471},{"$f":"IF(Control!$B59=\"L\",'RES S curve-connect'!BK251,IF(Control!$B59=\"M\",'RES S curve-connect'!BK229,'RES S curve-connect'!BK207))","v":32051.699220176306},{"$f":"IF(Control!$B59=\"L\",'RES S curve-connect'!BL251,IF(Control!$B59=\"M\",'RES S curve-connect'!BL229,'RES S curve-connect'!BL207))","v":-100.03834981407545},{"$f":"IF(Control!$B59=\"L\",'RES S curve-connect'!BM251,IF(Control!$B59=\"M\",'RES S curve-connect'!BM229,'RES S curve-connect'!BM207))","v":-92.988028730860094},{"$f":"IF(Control!$B59=\"L\",'RES S curve-connect'!BN251,IF(Control!$B59=\"M\",'RES S curve-connect'!BN229,'RES S curve-connect'!BN207))","v":-89.287963438266956},{"$f":"IF(Control!$B59=\"L\",'RES S curve-connect'!BO251,IF(Control!$B59=\"M\",'RES S curve-connect'!BO229,'RES S curve-connect'!BO207))","v":-78.916835096589239},{"$f":"IF(Control!$B59=\"L\",'RES S curve-connect'!BP251,IF(Control!$B59=\"M\",'RES S curve-connect'!BP229,'RES S curve-connect'!BP207))","v":-71.895844338302197},{"$f":"IF(Control!$B59=\"L\",'RES S curve-connect'!BQ251,IF(Control!$B59=\"M\",'RES S curve-connect'!BQ229,'RES S curve-connect'!BQ207))","v":-64.884512760135522},{"$f":"IF(Control!$B59=\"L\",'RES S curve-connect'!BR251,IF(Control!$B59=\"M\",'RES S curve-connect'!BR229,'RES S curve-connect'!BR207))","v":-61.223202024119018},{"$f":"IF(Control!$B59=\"L\",'RES S curve-connect'!BS251,IF(Control!$B59=\"M\",'RES S curve-connect'!BS229,'RES S curve-connect'!BS207))","v":-50.890594751925164},{"$f":"IF(Control!$B59=\"L\",'RES S curve-connect'!BT251,IF(Control!$B59=\"M\",'RES S curve-connect'!BT229,'RES S curve-connect'!BT207))","v":-43.907893028172055},{"$f":"IF(Control!$B59=\"L\",'RES S curve-connect'!BU251,IF(Control!$B59=\"M\",'RES S curve-connect'!BU229,'RES S curve-connect'!BU207))","v":-36.934619892562694},{"$f":"IF(Control!$B59=\"L\",'RES S curve-connect'!BV251,IF(Control!$B59=\"M\",'RES S curve-connect'!BV229,'RES S curve-connect'!BV207))","v":-33.311138440990021},{"$f":"IF(Control!$B59=\"L\",'RES S curve-connect'!BW251,IF(Control!$B59=\"M\",'RES S curve-connect'!BW229,'RES S curve-connect'!BW207))","v":-23.016132719928521},{"$f":"IF(Control!$B59=\"L\",'RES S curve-connect'!BX251,IF(Control!$B59=\"M\",'RES S curve-connect'!BX229,'RES S curve-connect'!BX207))","v":-16.070806229807431},{"$f":"IF(Control!$B59=\"L\",'RES S curve-connect'!BY251,IF(Control!$B59=\"M\",'RES S curve-connect'!BY229,'RES S curve-connect'!BY207))","v":-9.1346834171987439},{"$f":"IF(Control!$B59=\"L\",'RES S curve-connect'!BZ251,IF(Control!$B59=\"M\",'RES S curve-connect'!BZ229,'RES S curve-connect'!BZ207))","v":-5.5481287759777729},{"$f":"IF(Control!$B59=\"L\",'RES S curve-connect'!CA251,IF(Control!$B59=\"M\",'RES S curve-connect'!CA229,'RES S curve-connect'!CA207))","v":4.7101722582220305},{"$f":"IF(Control!$B59=\"L\",'RES S curve-connect'!CB251,IF(Control!$B59=\"M\",'RES S curve-connect'!CB229,'RES S curve-connect'!CB207))","v":11.6190148045863},{"$f":"IF(Control!$B59=\"L\",'RES S curve-connect'!CC251,IF(Control!$B59=\"M\",'RES S curve-connect'!CC229,'RES S curve-connect'!CC207))","v":18.51887304487002},{"$f":"IF(Control!$B59=\"L\",'RES S curve-connect'!CD251,IF(Control!$B59=\"M\",'RES S curve-connect'!CD229,'RES S curve-connect'!CD207))","v":-86.693011347466324}]
["Nillumbik (S)",{"$f":"Customers!K154","v":8},{"$f":"IF(Control!$B60=\"L\",'RES S curve-connect'!C252,IF(Control!$B60=\"M\",'RES S curve-connect'!C230,'RES S curve-connect'!C208))","v":-2399.5874526331813},{"$f":"IF(Control!$B60=\"L\",'RES S curve-connect'!D252,IF(Control!$B60=\"M\",'RES S curve-connect'!D230,'RES S curve-connect'!D208))","v":-3034.1046378911087},{"$f":"IF(Control!$B60=\"L\",'RES S curve-connect'!E252,IF(Control!$B60=\"M\",'RES S curve-connect'!E230,'RES S curve-connect'!E208))","v":-2427.5957576922756},{"$f":"IF(Control!$B60=\"L\",'RES S curve-connect'!F252,IF(Control!$B60=\"M\",'RES S curve-connect'!F230,'RES S curve-connect'!F208))","v":-2236.2291056219692},{"$f":"IF(Control!$B60=\"L\",'RES S curve-connect'!G252,IF(Control!$B60=\"M\",'RES S curve-connect'!G230,'RES S curve-connect'!G208))","v":-3653.6371491385717},{"$f":"IF(Control!$B60=\"L\",'RES S curve-connect'!H252,IF(Control!$B60=\"M\",'RES S curve-connect'!H230,'RES S curve-connect'!H208))","v":-3685.5090117826849},{"$f":"IF(Control!$B60=\"L\",'RES S curve-connect'!I252,IF(Control!$B60=\"M\",'RES S curve-connect'!I230,'RES S curve-connect'!I208))","v":-3132.9601166000252},{"$f":"IF(Control!$B60=\"L\",'RES S curve-connect'!J252,IF(Control!$B60=\"M\",'RES S curve-connect'!J230,'RES S curve-connect'!J208))","v":-3397.261881152549},{"$f":"IF(Control!$B60=\"L\",'RES S curve-connect'!K252,IF(Control!$B60=\"M\",'RES S curve-connect'!K230,'RES S curve-connect'!K208))","v":-2420.9072352463522},{"$f":"IF(Control!$B60=\"L\",'RES S curve-connect'!L252,IF(Control!$B60=\"M\",'RES S curve-connect'!L230,'RES S curve-connect'!L208))","v":-2866.8502726866609},{"$f":"IF(Control!$B60=\"L\",'RES S curve-connect'!M252,IF(Control!$B60=\"M\",'RES S curve-connect'!M230,'RES S curve-connect'!M208))","v":-3699.7000669151339},{"$f":"IF(Control!$B60=\"L\",'RES S curve-connect'!N252,IF(Control!$B60=\"M\",'RES S curve-connect'!N230,'RES S curve-connect'!N208))","v":-3788.2879189426203},{"$f":"IF(Control!$B60=\"L\",'RES S curve-connect'!O252,IF(Control!$B60=\"M\",'RES S curve-connect'!O230,'RES S curve-connect'!O208))","v":-3089.3899614630068},{"$f":"IF(Control!$B60=\"L\",'RES S curve-connect'!P252,IF(Control!$B60=\"M\",'RES S curve-connect'!P230,'RES S curve-connect'!P208))","v":-2532.0102345159457},{"$f":"IF(Control!$B60=\"L\",'RES S curve-connect'!Q252,IF(Control!$B60=\"M\",'RES S curve-connect'!Q230,'RES S curve-connect'!Q208))","v":-1684.0171741666347},{"$f":"IF(Control!$B60=\"L\",'RES S curve-connect'!R252,IF(Control!$B60=\"M\",'RES S curve-connect'!R230,'RES S curve-connect'!R208))","v":-1207.8404789672056},{"$f":"IF(Control!$B60=\"L\",'RES S curve-connect'!S252,IF(Control!$B60=\"M\",'RES S curve-connect'!S230,'RES S curve-connect'!S208))","v":-444.88454872564472},{"$f":"IF(Control!$B60=\"L\",'RES S curve-connect'!T252,IF(Control!$B60=\"M\",'RES S curve-connect'!T230,'RES S curve-connect'!T208))","v":-33.331618614589331},{"$f":"IF(Control!$B60=\"L\",'RES S curve-connect'!U252,IF(Control!$B60=\"M\",'RES S curve-connect'!U230,'RES S curve-connect'!U208))","v":435.85847505740708},{"$f":"IF(Control!$B60=\"L\",'RES S curve-connect'!V252,IF(Control!$B60=\"M\",'RES S curve-connect'!V230,'RES S curve-connect'!V208))","v":750.44695277516075},{"$f":"IF(Control!$B60=\"L\",'RES S curve-connect'!W252,IF(Control!$B60=\"M\",'RES S curve-connect'!W230,'RES S curve-connect'!W208))","v":994.62838033260789},{"$f":"IF(Control!$B60=\"L\",'RES S curve-connect'!X252,IF(Control!$B60=\"M\",'RES S curve-connect'!X230,'RES S curve-connect'!X208))","v":1565.5575584703254},{"$f":"IF(Control!$B60=\"L\",'RES S curve-connect'!Y252,IF(Control!$B60=\"M\",'RES S curve-connect'!Y230,'RES S curve-connect'!Y208))","v":2142.9828915997614},{"$f":"IF(Control!$B60=\"L\",'RES S curve-connect'!Z252,IF(Control!$B60=\"M\",'RES S curve-connect'!Z230,'RES S curve-connect'!Z208))","v":2529.5570147455182},{"$f":"IF(Control!$B60=\"L\",'RES S curve-connect'!AA252,IF(Control!$B60=\"M\",'RES S curve-connect'!AA230,'RES S curve-connect'!AA208))","v":2915.7604315332815},{"$f":"IF(Control!$B60=\"L\",'RES S curve-connect'!AB252,IF(Control!$B60=\"M\",'RES S curve-connect'!AB230,'RES S curve-connect'!AB208))","v":3223.0516341342163},{"$f":"IF(Control!$B60=\"L\",'RES S curve-connect'!AC252,IF(Control!$B60=\"M\",'RES S curve-connect'!AC230,'RES S curve-connect'!AC208))","v":3518.5196591988779},{"$f":"IF(Control!$B60=\"L\",'RES S curve-connect'!AD252,IF(Control!$B60=\"M\",'RES S curve-connect'!AD230,'RES S curve-connect'!AD208))","v":3788.7079563828765},{"$f":"IF(Control!$B60=\"L\",'RES S curve-connect'!AE252,IF(Control!$B60=\"M\",'RES S curve-connect'!AE230,'RES S curve-connect'!AE208))","v":4072.7461809106399},{"$f":"IF(Control!$B60=\"L\",'RES S curve-connect'!AF252,IF(Control!$B60=\"M\",'RES S curve-connect'!AF230,'RES S curve-connect'!AF208))","v":4444.2535971019333},{"$f":"IF(Control!$B60=\"L\",'RES S curve-connect'!AG252,IF(Control!$B60=\"M\",'RES S curve-connect'!AG230,'RES S curve-connect'!AG208))","v":4707.0711949758552},{"$f":"IF(Control!$B60=\"L\",'RES S curve-connect'!AH252,IF(Control!$B60=\"M\",'RES S curve-connect'!AH230,'RES S curve-connect'!AH208))","v":5078.1637102068926},{"$f":"IF(Control!$B60=\"L\",'RES S curve-connect'!AI252,IF(Control!$B60=\"M\",'RES S curve-connect'!AI230,'RES S curve-connect'!AI208))","v":5410.642542004297},{"$f":"IF(Control!$B60=\"L\",'RES S curve-connect'!AJ252,IF(Control!$B60=\"M\",'RES S curve-connect'!AJ230,'RES S curve-connect'!AJ208))","v":5710.9073533892542},{"$f":"IF(Control!$B60=\"L\",'RES S curve-connect'!AK252,IF(Control!$B60=\"M\",'RES S curve-connect'!AK230,'RES S curve-connect'!AK208))","v":6029.6556155511435},{"$f":"IF(Control!$B60=\"L\",'RES S curve-connect'!AL252,IF(Control!$B60=\"M\",'RES S curve-connect'!AL230,'RES S curve-connect'!AL208))","v":4928.3339324427043},{"$f":"IF(Control!$B60=\"L\",'RES S curve-connect'!AM252,IF(Control!$B60=\"M\",'RES S curve-connect'!AM230,'RES S curve-connect'!AM208))","v":4782.3061350840217},{"$f":"IF(Control!$B60=\"L\",'RES S curve-connect'!AN252,IF(Control!$B60=\"M\",'RES S curve-connect'!AN230,'RES S curve-connect'!AN208))","v":5083.1298020289451},{"$f":"IF(Control!$B60=\"L\",'RES S curve-connect'!AO252,IF(Control!$B60=\"M\",'RES S curve-connect'!AO230,'RES S curve-connect'!AO208))","v":5451.9887781364987},{"$f":"IF(Control!$B60=\"L\",'RES S curve-connect'!AP252,IF(Control!$B60=\"M\",'RES S curve-connect'!AP230,'RES S curve-connect'!AP208))","v":5793.2697574263166},{"$f":"IF(Control!$B60=\"L\",'RES S curve-connect'!AQ252,IF(Control!$B60=\"M\",'RES S curve-connect'!AQ230,'RES S curve-connect'!AQ208))","v":6160.1768926428167},{"$f":"IF(Control!$B60=\"L\",'RES S curve-connect'!AR252,IF(Control!$B60=\"M\",'RES S curve-connect'!AR230,'RES S curve-connect'!AR208))","v":6563.3792728813905},{"$f":"IF(Control!$B60=\"L\",'RES S curve-connect'!AS252,IF(Control!$B60=\"M\",'RES S curve-connect'!AS230,'RES S curve-connect'!AS208))","v":7015.937305750931},{"$f":"IF(Control!$B60=\"L\",'RES S curve-connect'!AT252,IF(Control!$B60=\"M\",'RES S curve-connect'!AT230,'RES S curve-connect'!AT208))","v":7522.5544007726621},{"$f":"IF(Control!$B60=\"L\",'RES S curve-connect'!AU252,IF(Control!$B60=\"M\",'RES S curve-connect'!AU230,'RES S curve-connect'!AU208))","v":8108.2364567739223},{"$f":"IF(Control!$B60=\"L\",'RES S curve-connect'!AV252,IF(Control!$B60=\"M\",'RES S curve-connect'!AV230,'RES S curve-connect'!AV208))","v":8776.8059754285496},{"$f":"IF(Control!$B60=\"L\",'RES S curve-connect'!AW252,IF(Control!$B60=\"M\",'RES S curve-connect'!AW230,'RES S curve-connect'!AW208))","v":9545.5218206782829},{"$f":"IF(Control!$B60=\"L\",'RES S curve-connect'!AX252,IF(Control!$B60=\"M\",'RES S curve-connect'!AX230,'RES S curve-connect'!AX208))","v":10422.23509012551},{"$f":"IF(Control!$B60=\"L\",'RES S curve-connect'!AY252,IF(Control!$B60=\"M\",'RES S curve-connect'!AY230,'RES S curve-connect'!AY208))","v":11433.640201556284},{"$f":"IF(Control!$B60=\"L\",'RES S curve-connect'!AZ252,IF(Control!$B60=\"M\",'RES S curve-connect'!AZ230,'RES S curve-connect'!AZ208))","v":12590.647446482351},{"$f":"IF(Control!$B60=\"L\",'RES S curve-connect'!BA252,IF(Control!$B60=\"M\",'RES S curve-connect'!BA230,'RES S curve-connect'!BA208))","v":13931.142019378593},{"$f":"IF(Control!$B60=\"L\",'RES S curve-connect'!BB252,IF(Control!$B60=\"M\",'RES S curve-connect'!BB230,'RES S curve-connect'!BB208))","v":15498.262357723148},{"$f":"IF(Control!$B60=\"L\",'RES S curve-connect'!BC252,IF(Control!$B60=\"M\",'RES S curve-connect'!BC230,'RES S curve-connect'!BC208))","v":17367.280828642597},{"$f":"IF(Control!$B60=\"L\",'RES S curve-connect'!BD252,IF(Control!$B60=\"M\",'RES S curve-connect'!BD230,'RES S curve-connect'!BD208))","v":19172.823831281079},{"$f":"IF(Control!$B60=\"L\",'RES S curve-connect'!BE252,IF(Control!$B60=\"M\",'RES S curve-connect'!BE230,'RES S curve-connect'!BE208))","v":20823.933370262796},{"$f":"IF(Control!$B60=\"L\",'RES S curve-connect'!BF252,IF(Control!$B60=\"M\",'RES S curve-connect'!BF230,'RES S curve-connect'!BF208))","v":22513.083292307543},{"$f":"IF(Control!$B60=\"L\",'RES S curve-connect'!BG252,IF(Control!$B60=\"M\",'RES S curve-connect'!BG230,'RES S curve-connect'!BG208))","v":24423.891822344878},{"$f":"IF(Control!$B60=\"L\",'RES S curve-connect'!BH252,IF(Control!$B60=\"M\",'RES S curve-connect'!BH230,'RES S curve-connect'!BH208))","v":26692.728516222614},{"$f":"IF(Control!$B60=\"L\",'RES S curve-connect'!BI252,IF(Control!$B60=\"M\",'RES S curve-connect'!BI230,'RES S curve-connect'!BI208))","v":29979.749408539923},{"$f":"IF(Control!$B60=\"L\",'RES S curve-connect'!BJ252,IF(Control!$B60=\"M\",'RES S curve-connect'!BJ230,'RES S curve-connect'!BJ208))","v":34796.768902514188},{"$f":"IF(Control!$B60=\"L\",'RES S curve-connect'!BK252,IF(Control!$B60=\"M\",'RES S curve-connect'!BK230,'RES S curve-connect'!BK208))","v":41910.102724293916},{"$f":"IF(Control!$B60=\"L\",'RES S curve-connect'!BL252,IF(Control!$B60=\"M\",'RES S curve-connect'!BL230,'RES S curve-connect'!BL208))","v":892.71541184419652},{"$f":"IF(Control!$B60=\"L\",'RES S curve-connect'!BM252,IF(Control!$B60=\"M\",'RES S curve-connect'!BM230,'RES S curve-connect'!BM208))","v":901.54192609309166},{"$f":"IF(Control!$B60=\"L\",'RES S curve-connect'!BN252,IF(Control!$B60=\"M\",'RES S curve-connect'!BN230,'RES S curve-connect'!BN208))","v":906.3350459444963},{"$f":"IF(Control!$B60=\"L\",'RES S curve-connect'!BO252,IF(Control!$B60=\"M\",'RES S curve-connect'!BO230,'RES S curve-connect'!BO208))","v":919.16146171511468},{"$f":"IF(Control!$B60=\"L\",'RES S curve-connect'!BP252,IF(Control!$B60=\"M\",'RES S curve-connect'!BP230,'RES S curve-connect'!BP208))","v":927.95461581537154},{"$f":"IF(Control!$B60=\"L\",'RES S curve-connect'!BQ252,IF(Control!$B60=\"M\",'RES S curve-connect'!BQ230,'RES S curve-connect'!BQ208))","v":936.73678191001045},{"$f":"IF(Control!$B60=\"L\",'RES S curve-connect'!BR252,IF(Control!$B60=\"M\",'RES S curve-connect'!BR230,'RES S curve-connect'!BR208))","v":941.48581742586975},{"$f":"IF(Control!$B60=\"L\",'RES S curve-connect'!BS252,IF(Control!$B60=\"M\",'RES S curve-connect'!BS230,'RES S curve-connect'!BS208))","v":954.26841104923687},{"$f":"IF(Control!$B60=\"L\",'RES S curve-connect'!BT252,IF(Control!$B60=\"M\",'RES S curve-connect'!BT230,'RES S curve-connect'!BT208))","v":963.01800357039133},{"$f":"IF(Control!$B60=\"L\",'RES S curve-connect'!BU252,IF(Control!$B60=\"M\",'RES S curve-connect'!BU230,'RES S curve-connect'!BU208))","v":971.75686704413692},{"$f":"IF(Control!$B60=\"L\",'RES S curve-connect'!BV252,IF(Control!$B60=\"M\",'RES S curve-connect'!BV230,'RES S curve-connect'!BV208))","v":976.46285729749877},{"$f":"IF(Control!$B60=\"L\",'RES S curve-connect'!BW252,IF(Control!$B60=\"M\",'RES S curve-connect'!BW230,'RES S curve-connect'!BW208))","v":989.20266142703053},{"$f":"IF(Control!$B60=\"L\",'RES S curve-connect'!BX252,IF(Control!$B60=\"M\",'RES S curve-connect'!BX230,'RES S curve-connect'!BX208))","v":997.90971864328344},{"$f":"IF(Control!$B60=\"L\",'RES S curve-connect'!BY252,IF(Control!$B60=\"M\",'RES S curve-connect'!BY230,'RES S curve-connect'!BY208))","v":1006.6062994312741},{"$f":"IF(Control!$B60=\"L\",'RES S curve-connect'!BZ252,IF(Control!$B60=\"M\",'RES S curve-connect'!BZ230,'RES S curve-connect'!BZ208))","v":1011.2702580581257},{"$f":"IF(Control!$B60=\"L\",'RES S curve-connect'!CA252,IF(Control!$B60=\"M\",'RES S curve-connect'!CA230,'RES S curve-connect'!CA208))","v":1023.9682800703104},{"$f":"IF(Control!$B60=\"L\",'RES S curve-connect'!CB252,IF(Control!$B60=\"M\",'RES S curve-connect'!CB230,'RES S curve-connect'!CB208))","v":1032.6338031380492},{"$f":"IF(Control!$B60=\"L\",'RES S curve-connect'!CC252,IF(Control!$B60=\"M\",'RES S curve-connect'!CC230,'RES S curve-connect'!CC208))","v":1041.2890962157244},{"$f":"IF(Control!$B60=\"L\",'RES S curve-connect'!CD252,IF(Control!$B60=\"M\",'RES S curve-connect'!CD230,'RES S curve-connect'!CD208))","v":906.37398123543369}]
["Port Phillip (C)",{"$f":"Customers!K155","v":37768},{"$f":"IF(Control!$B61=\"L\",'RES S curve-connect'!C253,IF(Control!$B61=\"M\",'RES S curve-connect'!C231,'RES S curve-connect'!C209))","v":-1804.5214255863898},{"$f":"IF(Control!$B61=\"L\",'RES S curve-connect'!D253,IF(Control!$B61=\"M\",'RES S curve-connect'!D231,'RES S curve-connect'!D209))","v":-2213.9794422169007},{"$f":"IF(Control!$B61=\"L\",'RES S curve-connect'!E253,IF(Control!$B61=\"M\",'RES S curve-connect'!E231,'RES S curve-connect'!E209))","v":-1916.8496562770492},{"$f":"IF(Control!$B61=\"L\",'RES S curve-connect'!F253,IF(Control!$B61=\"M\",'RES S curve-connect'!F231,'RES S curve-connect'!F209))","v":-1807.083649182606},{"$f":"IF(Control!$B61=\"L\",'RES S curve-connect'!G253,IF(Control!$B61=\"M\",'RES S curve-connect'!G231,'RES S curve-connect'!G209))","v":-2460.820139419196},{"$f":"IF(Control!$B61=\"L\",'RES S curve-connect'!H253,IF(Control!$B61=\"M\",'RES S curve-connect'!H231,'RES S curve-connect'!H209))","v":-2494.7684070262412},{"$f":"IF(Control!$B61=\"L\",'RES S curve-connect'!I253,IF(Control!$B61=\"M\",'RES S curve-connect'!I231,'RES S curve-connect'!I209))","v":-2168.2135513001431},{"$f":"IF(Control!$B61=\"L\",'RES S curve-connect'!J253,IF(Control!$B61=\"M\",'RES S curve-connect'!J231,'RES S curve-connect'!J209))","v":-2457.3150557267627},{"$f":"IF(Control!$B61=\"L\",'RES S curve-connect'!K253,IF(Control!$B61=\"M\",'RES S curve-connect'!K231,'RES S curve-connect'!K209))","v":-1855.0071556858711},{"$f":"IF(Control!$B61=\"L\",'RES S curve-connect'!L253,IF(Control!$B61=\"M\",'RES S curve-connect'!L231,'RES S curve-connect'!L209))","v":-2138.2235129207452},{"$f":"IF(Control!$B61=\"L\",'RES S curve-connect'!M253,IF(Control!$B61=\"M\",'RES S curve-connect'!M231,'RES S curve-connect'!M209))","v":-2600.6459319553755},{"$f":"IF(Control!$B61=\"L\",'RES S curve-connect'!N253,IF(Control!$B61=\"M\",'RES S curve-connect'!N231,'RES S curve-connect'!N209))","v":-2649.715547636144},{"$f":"IF(Control!$B61=\"L\",'RES S curve-connect'!O253,IF(Control!$B61=\"M\",'RES S curve-connect'!O231,'RES S curve-connect'!O209))","v":-2218.1984712127551},{"$f":"IF(Control!$B61=\"L\",'RES S curve-connect'!P253,IF(Control!$B61=\"M\",'RES S curve-connect'!P231,'RES S curve-connect'!P209))","v":-1881.1235151188082},{"$f":"IF(Control!$B61=\"L\",'RES S curve-connect'!Q253,IF(Control!$B61=\"M\",'RES S curve-connect'!Q231,'RES S curve-connect'!Q209))","v":-1369.7179056384452},{"$f":"IF(Control!$B61=\"L\",'RES S curve-connect'!R253,IF(Control!$B61=\"M\",'RES S curve-connect'!R231,'RES S curve-connect'!R209))","v":-1082.5928955139011},{"$f":"IF(Control!$B61=\"L\",'RES S curve-connect'!S253,IF(Control!$B61=\"M\",'RES S curve-connect'!S231,'RES S curve-connect'!S209))","v":-612.97741423243531},{"$f":"IF(Control!$B61=\"L\",'RES S curve-connect'!T253,IF(Control!$B61=\"M\",'RES S curve-connect'!T231,'RES S curve-connect'!T209))","v":-381.58222595292455},{"$f":"IF(Control!$B61=\"L\",'RES S curve-connect'!U253,IF(Control!$B61=\"M\",'RES S curve-connect'!U231,'RES S curve-connect'!U209))","v":-101.45551944168477},{"$f":"IF(Control!$B61=\"L\",'RES S curve-connect'!V253,IF(Control!$B61=\"M\",'RES S curve-connect'!V231,'RES S curve-connect'!V209))","v":93.400621350794154},{"$f":"IF(Control!$B61=\"L\",'RES S curve-connect'!W253,IF(Control!$B61=\"M\",'RES S curve-connect'!W231,'RES S curve-connect'!W209))","v":244.45997310666726},{"$f":"IF(Control!$B61=\"L\",'RES S curve-connect'!X253,IF(Control!$B61=\"M\",'RES S curve-connect'!X231,'RES S curve-connect'!X209))","v":581.68615711458597},{"$f":"IF(Control!$B61=\"L\",'RES S curve-connect'!Y253,IF(Control!$B61=\"M\",'RES S curve-connect'!Y231,'RES S curve-connect'!Y209))","v":925.24337756304601},{"$f":"IF(Control!$B61=\"L\",'RES S curve-connect'!Z253,IF(Control!$B61=\"M\",'RES S curve-connect'!Z231,'RES S curve-connect'!Z209))","v":1157.7434602799772},{"$f":"IF(Control!$B61=\"L\",'RES S curve-connect'!AA253,IF(Control!$B61=\"M\",'RES S curve-connect'!AA231,'RES S curve-connect'!AA209))","v":1392.9099763354377},{"$f":"IF(Control!$B61=\"L\",'RES S curve-connect'!AB253,IF(Control!$B61=\"M\",'RES S curve-connect'!AB231,'RES S curve-connect'!AB209))","v":1581.0546812848195},{"$f":"IF(Control!$B61=\"L\",'RES S curve-connect'!AC253,IF(Control!$B61=\"M\",'RES S curve-connect'!AC231,'RES S curve-connect'!AC209))","v":1763.8893085708041},{"$f":"IF(Control!$B61=\"L\",'RES S curve-connect'!AD253,IF(Control!$B61=\"M\",'RES S curve-connect'!AD231,'RES S curve-connect'!AD209))","v":1931.3694057613038},{"$f":"IF(Control!$B61=\"L\",'RES S curve-connect'!AE253,IF(Control!$B61=\"M\",'RES S curve-connect'!AE231,'RES S curve-connect'!AE209))","v":2111.3236845133847},{"$f":"IF(Control!$B61=\"L\",'RES S curve-connect'!AF253,IF(Control!$B61=\"M\",'RES S curve-connect'!AF231,'RES S curve-connect'!AF209))","v":2340.730211962441},{"$f":"IF(Control!$B61=\"L\",'RES S curve-connect'!AG253,IF(Control!$B61=\"M\",'RES S curve-connect'!AG231,'RES S curve-connect'!AG209))","v":2502.8649699875068},{"$f":"IF(Control!$B61=\"L\",'RES S curve-connect'!AH253,IF(Control!$B61=\"M\",'RES S curve-connect'!AH231,'RES S curve-connect'!AH209))","v":2723.6105557095161},{"$f":"IF(Control!$B61=\"L\",'RES S curve-connect'!AI253,IF(Control!$B61=\"M\",'RES S curve-connect'!AI231,'RES S curve-connect'!AI209))","v":2928.7929331245564},{"$f":"IF(Control!$B61=\"L\",'RES S curve-connect'!AJ253,IF(Control!$B61=\"M\",'RES S curve-connect'!AJ231,'RES S curve-connect'!AJ209))","v":3112.5596799734776},{"$f":"IF(Control!$B61=\"L\",'RES S curve-connect'!AK253,IF(Control!$B61=\"M\",'RES S curve-connect'!AK231,'RES S curve-connect'!AK209))","v":3307.8955893504749},{"$f":"IF(Control!$B61=\"L\",'RES S curve-connect'!AL253,IF(Control!$B61=\"M\",'RES S curve-connect'!AL231,'RES S curve-connect'!AL209))","v":2613.4881785431944},{"$f":"IF(Control!$B61=\"L\",'RES S curve-connect'!AM253,IF(Control!$B61=\"M\",'RES S curve-connect'!AM231,'RES S curve-connect'!AM209))","v":2532.7116854785536},{"$f":"IF(Control!$B61=\"L\",'RES S curve-connect'!AN253,IF(Control!$B61=\"M\",'RES S curve-connect'!AN231,'RES S curve-connect'!AN209))","v":2722.8132671296416},{"$f":"IF(Control!$B61=\"L\",'RES S curve-connect'!AO253,IF(Control!$B61=\"M\",'RES S curve-connect'!AO231,'RES S curve-connect'!AO209))","v":2950.4436858335694},{"$f":"IF(Control!$B61=\"L\",'RES S curve-connect'!AP253,IF(Control!$B61=\"M\",'RES S curve-connect'!AP231,'RES S curve-connect'!AP209))","v":3157.8429907930781},{"$f":"IF(Control!$B61=\"L\",'RES S curve-connect'!AQ253,IF(Control!$B61=\"M\",'RES S curve-connect'!AQ231,'RES S curve-connect'!AQ209))","v":3384.0723475518585},{"$f":"IF(Control!$B61=\"L\",'RES S curve-connect'!AR253,IF(Control!$B61=\"M\",'RES S curve-connect'!AR231,'RES S curve-connect'!AR209))","v":3630.7676991622661},{"$f":"IF(Control!$B61=\"L\",'RES S curve-connect'!AS253,IF(Control!$B61=\"M\",'RES S curve-connect'!AS231,'RES S curve-connect'!AS209))","v":3907.1592030977545},{"$f":"IF(Control!$B61=\"L\",'RES S curve-connect'!AT253,IF(Control!$B61=\"M\",'RES S curve-connect'!AT231,'RES S curve-connect'!AT209))","v":4214.3613524809389},{"$f":"IF(Control!$B61=\"L\",'RES S curve-connect'!AU253,IF(Control!$B61=\"M\",'RES S curve-connect'!AU231,'RES S curve-connect'!AU209))","v":4572.1492836833986},{"$f":"IF(Control!$B61=\"L\",'RES S curve-connect'!AV253,IF(Control!$B61=\"M\",'RES S curve-connect'!AV231,'RES S curve-connect'!AV209))","v":4977.840656820973},{"$f":"IF(Control!$B61=\"L\",'RES S curve-connect'!AW253,IF(Control!$B61=\"M\",'RES S curve-connect'!AW231,'RES S curve-connect'!AW209))","v":5443.0077874644703},{"$f":"IF(Control!$B61=\"L\",'RES S curve-connect'!AX253,IF(Control!$B61=\"M\",'RES S curve-connect'!AX231,'RES S curve-connect'!AX209))","v":5970.2151188277394},{"$f":"IF(Control!$B61=\"L\",'RES S curve-connect'!AY253,IF(Control!$B61=\"M\",'RES S curve-connect'!AY231,'RES S curve-connect'!AY209))","v":6579.7270857638905},{"$f":"IF(Control!$B61=\"L\",'RES S curve-connect'!AZ253,IF(Control!$B61=\"M\",'RES S curve-connect'!AZ231,'RES S curve-connect'!AZ209))","v":7272.6261995427212},{"$f":"IF(Control!$B61=\"L\",'RES S curve-connect'!BA253,IF(Control!$B61=\"M\",'RES S curve-connect'!BA231,'RES S curve-connect'!BA209))","v":8072.4240293319108},{"$f":"IF(Control!$B61=\"L\",'RES S curve-connect'!BB253,IF(Control!$B61=\"M\",'RES S curve-connect'!BB231,'RES S curve-connect'!BB209))","v":9002.1619190528891},{"$f":"IF(Control!$B61=\"L\",'RES S curve-connect'!BC253,IF(Control!$B61=\"M\",'RES S curve-connect'!BC231,'RES S curve-connect'!BC209))","v":10110.044185035749},{"$f":"IF(Control!$B61=\"L\",'RES S curve-connect'!BD253,IF(Control!$B61=\"M\",'RES S curve-connect'!BD231,'RES S curve-connect'!BD209))","v":11166.731726474409},{"$f":"IF(Control!$B61=\"L\",'RES S curve-connect'!BE253,IF(Control!$B61=\"M\",'RES S curve-connect'!BE231,'RES S curve-connect'!BE209))","v":12128.513178570356},{"$f":"IF(Control!$B61=\"L\",'RES S curve-connect'!BF253,IF(Control!$B61=\"M\",'RES S curve-connect'!BF231,'RES S curve-connect'!BF209))","v":13113.791994814095},{"$f":"IF(Control!$B61=\"L\",'RES S curve-connect'!BG253,IF(Control!$B61=\"M\",'RES S curve-connect'!BG231,'RES S curve-connect'!BG209))","v":14233.462990280303},{"$f":"IF(Control!$B61=\"L\",'RES S curve-connect'!BH253,IF(Control!$B61=\"M\",'RES S curve-connect'!BH231,'RES S curve-connect'!BH209))","v":15559.860079473379},{"$f":"IF(Control!$B61=\"L\",'RES S curve-connect'!BI253,IF(Control!$B61=\"M\",'RES S curve-connect'!BI231,'RES S curve-connect'!BI209))","v":17484.6543032831},{"$f":"IF(Control!$B61=\"L\",'RES S curve-connect'!BJ253,IF(Control!$B61=\"M\",'RES S curve-connect'!BJ231,'RES S curve-connect'!BJ209))","v":20289.684689251408},{"$f":"IF(Control!$B61=\"L\",'RES S curve-connect'!BK253,IF(Control!$B61=\"M\",'RES S curve-connect'!BK231,'RES S curve-connect'!BK209))","v":24408.795441646202},{"$f":"IF(Control!$B61=\"L\",'RES S curve-connect'!BL253,IF(Control!$B61=\"M\",'RES S curve-connect'!BL231,'RES S curve-connect'!BL209))","v":89.607393327896091},{"$f":"IF(Control!$B61=\"L\",'RES S curve-connect'!BM253,IF(Control!$B61=\"M\",'RES S curve-connect'!BM231,'RES S curve-connect'!BM209))","v":94.985297283373995},{"$f":"IF(Control!$B61=\"L\",'RES S curve-connect'!BN253,IF(Control!$B61=\"M\",'RES S curve-connect'!BN231,'RES S curve-connect'!BN209))","v":96.332016110635038},{"$f":"IF(Control!$B61=\"L\",'RES S curve-connect'!BO253,IF(Control!$B61=\"M\",'RES S curve-connect'!BO231,'RES S curve-connect'!BO209))","v":105.71422885722126},{"$f":"IF(Control!$B61=\"L\",'RES S curve-connect'!BP253,IF(Control!$B61=\"M\",'RES S curve-connect'!BP231,'RES S curve-connect'!BP209))","v":111.06536672819669},{"$f":"IF(Control!$B61=\"L\",'RES S curve-connect'!BQ253,IF(Control!$B61=\"M\",'RES S curve-connect'!BQ231,'RES S curve-connect'!BQ209))","v":116.40769224635972},{"$f":"IF(Control!$B61=\"L\",'RES S curve-connect'!BR253,IF(Control!$B61=\"M\",'RES S curve-connect'!BR231,'RES S curve-connect'!BR209))","v":117.71905175963423},{"$f":"IF(Control!$B61=\"L\",'RES S curve-connect'!BS253,IF(Control!$B61=\"M\",'RES S curve-connect'!BS231,'RES S curve-connect'!BS209))","v":127.06612293804983},{"$f":"IF(Control!$B61=\"L\",'RES S curve-connect'!BT253,IF(Control!$B61=\"M\",'RES S curve-connect'!BT231,'RES S curve-connect'!BT209))","v":132.38233561790361},{"$f":"IF(Control!$B61=\"L\",'RES S curve-connect'!BU253,IF(Control!$B61=\"M\",'RES S curve-connect'!BU231,'RES S curve-connect'!BU209))","v":137.68995096191679},{"$f":"IF(Control!$B61=\"L\",'RES S curve-connect'!BV253,IF(Control!$B61=\"M\",'RES S curve-connect'!BV231,'RES S curve-connect'!BV209))","v":138.96681396656498},{"$f":"IF(Control!$B61=\"L\",'RES S curve-connect'!BW253,IF(Control!$B61=\"M\",'RES S curve-connect'!BW231,'RES S curve-connect'!BW209))","v":148.27960095901062},{"$f":"IF(Control!$B61=\"L\",'RES S curve-connect'!BX253,IF(Control!$B61=\"M\",'RES S curve-connect'!BX231,'RES S curve-connect'!BX209))","v":153.56174044120502},{"$f":"IF(Control!$B61=\"L\",'RES S curve-connect'!BY253,IF(Control!$B61=\"M\",'RES S curve-connect'!BY231,'RES S curve-connect'!BY209))","v":158.83549224999149},{"$f":"IF(Control!$B61=\"L\",'RES S curve-connect'!BZ253,IF(Control!$B61=\"M\",'RES S curve-connect'!BZ231,'RES S curve-connect'!BZ209))","v":160.07870006438395},{"$f":"IF(Control!$B61=\"L\",'RES S curve-connect'!CA253,IF(Control!$B61=\"M\",'RES S curve-connect'!CA231,'RES S curve-connect'!CA209))","v":169.35803890244495},{"$f":"IF(Control!$B61=\"L\",'RES S curve-connect'!CB253,IF(Control!$B61=\"M\",'RES S curve-connect'!CB231,'RES S curve-connect'!CB209))","v":174.60693596533159},{"$f":"IF(Control!$B61=\"L\",'RES S curve-connect'!CC253,IF(Control!$B61=\"M\",'RES S curve-connect'!CC231,'RES S curve-connect'!CC209))","v":179.84764979734877},{"$f":"IF(Control!$B61=\"L\",'RES S curve-connect'!CD253,IF(Control!$B61=\"M\",'RES S curve-connect'!CD231,'RES S curve-connect'!CD209))","v":103.70133785720486}]
["South Gippsland (S)",{"$f":"Customers!K156","v":2194},{"$f":"IF(Control!$B62=\"L\",'RES S curve-connect'!C254,IF(Control!$B62=\"M\",'RES S curve-connect'!C232,'RES S curve-connect'!C210))","v":-3104.0024167821821},{"$f":"IF(Control!$B62=\"L\",'RES S curve-connect'!D254,IF(Control!$B62=\"M\",'RES S curve-connect'!D232,'RES S curve-connect'!D210))","v":-3393.8035985235729},{"$f":"IF(Control!$B62=\"L\",'RES S curve-connect'!E254,IF(Control!$B62=\"M\",'RES S curve-connect'!E232,'RES S curve-connect'!E210))","v":-2669.345156820274},{"$f":"IF(Control!$B62=\"L\",'RES S curve-connect'!F254,IF(Control!$B62=\"M\",'RES S curve-connect'!F232,'RES S curve-connect'!F210))","v":-2586.388183446144},{"$f":"IF(Control!$B62=\"L\",'RES S curve-connect'!G254,IF(Control!$B62=\"M\",'RES S curve-connect'!G232,'RES S curve-connect'!G210))","v":-3362.9640125567657},{"$f":"IF(Control!$B62=\"L\",'RES S curve-connect'!H254,IF(Control!$B62=\"M\",'RES S curve-connect'!H232,'RES S curve-connect'!H210))","v":-3409.5234170526601},{"$f":"IF(Control!$B62=\"L\",'RES S curve-connect'!I254,IF(Control!$B62=\"M\",'RES S curve-connect'!I232,'RES S curve-connect'!I210))","v":-3172.2664646013418},{"$f":"IF(Control!$B62=\"L\",'RES S curve-connect'!J254,IF(Control!$B62=\"M\",'RES S curve-connect'!J232,'RES S curve-connect'!J210))","v":-3534.228480781142},{"$f":"IF(Control!$B62=\"L\",'RES S curve-connect'!K254,IF(Control!$B62=\"M\",'RES S curve-connect'!K232,'RES S curve-connect'!K210))","v":-2997.6874149603427},{"$f":"IF(Control!$B62=\"L\",'RES S curve-connect'!L254,IF(Control!$B62=\"M\",'RES S curve-connect'!L232,'RES S curve-connect'!L210))","v":-3177.1346345158181},{"$f":"IF(Control!$B62=\"L\",'RES S curve-connect'!M254,IF(Control!$B62=\"M\",'RES S curve-connect'!M232,'RES S curve-connect'!M210))","v":-3498.3288066464866},{"$f":"IF(Control!$B62=\"L\",'RES S curve-connect'!N254,IF(Control!$B62=\"M\",'RES S curve-connect'!N232,'RES S curve-connect'!N210))","v":-3512.7105920420645},{"$f":"IF(Control!$B62=\"L\",'RES S curve-connect'!O254,IF(Control!$B62=\"M\",'RES S curve-connect'!O232,'RES S curve-connect'!O210))","v":-3184.1195765920761},{"$f":"IF(Control!$B62=\"L\",'RES S curve-connect'!P254,IF(Control!$B62=\"M\",'RES S curve-connect'!P232,'RES S curve-connect'!P210))","v":-2921.0105830009425},{"$f":"IF(Control!$B62=\"L\",'RES S curve-connect'!Q254,IF(Control!$B62=\"M\",'RES S curve-connect'!Q232,'RES S curve-connect'!Q210))","v":-2532.7048743735413},{"$f":"IF(Control!$B62=\"L\",'RES S curve-connect'!R254,IF(Control!$B62=\"M\",'RES S curve-connect'!R232,'RES S curve-connect'!R210))","v":-2305.2951479946796},{"$f":"IF(Control!$B62=\"L\",'RES S curve-connect'!S254,IF(Control!$B62=\"M\",'RES S curve-connect'!S232,'RES S curve-connect'!S210))","v":-1951.1577531304658},{"$f":"IF(Control!$B62=\"L\",'RES S curve-connect'!T254,IF(Control!$B62=\"M\",'RES S curve-connect'!T232,'RES S curve-connect'!T210))","v":-1756.9676962423691},{"$f":"IF(Control!$B62=\"L\",'RES S curve-connect'!U254,IF(Control!$B62=\"M\",'RES S curve-connect'!U232,'RES S curve-connect'!U210))","v":-1533.2507319481294},{"$f":"IF(Control!$B62=\"L\",'RES S curve-connect'!V254,IF(Control!$B62=\"M\",'RES S curve-connect'!V232,'RES S curve-connect'!V210))","v":-1373.367934032522},{"$f":"IF(Control!$B62=\"L\",'RES S curve-connect'!W254,IF(Control!$B62=\"M\",'RES S curve-connect'!W232,'RES S curve-connect'!W210))","v":-1245.2811512289477},{"$f":"IF(Control!$B62=\"L\",'RES S curve-connect'!X254,IF(Control!$B62=\"M\",'RES S curve-connect'!X232,'RES S curve-connect'!X210))","v":-980.24898469403615},{"$f":"IF(Control!$B62=\"L\",'RES S curve-connect'!Y254,IF(Control!$B62=\"M\",'RES S curve-connect'!Y232,'RES S curve-connect'!Y210))","v":-711.69056743956344},{"$f":"IF(Control!$B62=\"L\",'RES S curve-connect'!Z254,IF(Control!$B62=\"M\",'RES S curve-connect'!Z232,'RES S curve-connect'!Z210))","v":-524.01750222862688},{"$f":"IF(Control!$B62=\"L\",'RES S curve-connect'!AA254,IF(Control!$B62=\"M\",'RES S curve-connect'!AA232,'RES S curve-connect'!AA210))","v":-335.62328117260085},{"$f":"IF(Control!$B62=\"L\",'RES S curve-connect'!AB254,IF(Control!$B62=\"M\",'RES S curve-connect'!AB232,'RES S curve-connect'!AB210))","v":-181.81322771432514},{"$f":"IF(Control!$B62=\"L\",'RES S curve-connect'!AC254,IF(Control!$B62=\"M\",'RES S curve-connect'!AC232,'RES S curve-connect'!AC210))","v":-32.599367171792778},{"$f":"IF(Control!$B62=\"L\",'RES S curve-connect'!AD254,IF(Control!$B62=\"M\",'RES S curve-connect'!AD232,'RES S curve-connect'!AD210))","v":105.58349282096833},{"$f":"IF(Control!$B62=\"L\",'RES S curve-connect'!AE254,IF(Control!$B62=\"M\",'RES S curve-connect'!AE232,'RES S curve-connect'!AE210))","v":250.99484221396153},{"$f":"IF(Control!$B62=\"L\",'RES S curve-connect'!AF254,IF(Control!$B62=\"M\",'RES S curve-connect'!AF232,'RES S curve-connect'!AF210))","v":432.84711518248616},{"$f":"IF(Control!$B62=\"L\",'RES S curve-connect'!AG254,IF(Control!$B62=\"M\",'RES S curve-connect'!AG232,'RES S curve-connect'!AG210))","v":547.27590780920923},{"$f":"IF(Control!$B62=\"L\",'RES S curve-connect'!AH254,IF(Control!$B62=\"M\",'RES S curve-connect'!AH232,'RES S curve-connect'!AH210))","v":706.08542180696634},{"$f":"IF(Control!$B62=\"L\",'RES S curve-connect'!AI254,IF(Control!$B62=\"M\",'RES S curve-connect'!AI232,'RES S curve-connect'!AI210))","v":850.84413961965947},{"$f":"IF(Control!$B62=\"L\",'RES S curve-connect'!AJ254,IF(Control!$B62=\"M\",'RES S curve-connect'!AJ232,'RES S curve-connect'!AJ210))","v":981.07368091937826},{"$f":"IF(Control!$B62=\"L\",'RES S curve-connect'!AK254,IF(Control!$B62=\"M\",'RES S curve-connect'!AK232,'RES S curve-connect'!AK210))","v":1119.3994857607115},{"$f":"IF(Control!$B62=\"L\",'RES S curve-connect'!AL254,IF(Control!$B62=\"M\",'RES S curve-connect'!AL232,'RES S curve-connect'!AL210))","v":635.35079442891333},{"$f":"IF(Control!$B62=\"L\",'RES S curve-connect'!AM254,IF(Control!$B62=\"M\",'RES S curve-connect'!AM232,'RES S curve-connect'!AM210))","v":575.00245186030747},{"$f":"IF(Control!$B62=\"L\",'RES S curve-connect'!AN254,IF(Control!$B62=\"M\",'RES S curve-connect'!AN232,'RES S curve-connect'!AN210))","v":707.46686001539899},{"$f":"IF(Control!$B62=\"L\",'RES S curve-connect'!AO254,IF(Control!$B62=\"M\",'RES S curve-connect'!AO232,'RES S curve-connect'!AO210))","v":868.05114380096052},{"$f":"IF(Control!$B62=\"L\",'RES S curve-connect'!AP254,IF(Control!$B62=\"M\",'RES S curve-connect'!AP232,'RES S curve-connect'!AP210))","v":1015.5654462268792},{"$f":"IF(Control!$B62=\"L\",'RES S curve-connect'!AQ254,IF(Control!$B62=\"M\",'RES S curve-connect'!AQ232,'RES S curve-connect'!AQ210))","v":1175.2338243428671},{"$f":"IF(Control!$B62=\"L\",'RES S curve-connect'!AR254,IF(Control!$B62=\"M\",'RES S curve-connect'!AR232,'RES S curve-connect'!AR210))","v":1350.0514570095781},{"$f":"IF(Control!$B62=\"L\",'RES S curve-connect'!AS254,IF(Control!$B62=\"M\",'RES S curve-connect'!AS232,'RES S curve-connect'!AS210))","v":1546.0909419993857},{"$f":"IF(Control!$B62=\"L\",'RES S curve-connect'!AT254,IF(Control!$B62=\"M\",'RES S curve-connect'!AT232,'RES S curve-connect'!AT210))","v":1764.8036205860922},{"$f":"IF(Control!$B62=\"L\",'RES S curve-connect'!AU254,IF(Control!$B62=\"M\",'RES S curve-connect'!AU232,'RES S curve-connect'!AU210))","v":2018.516314175939},{"$f":"IF(Control!$B62=\"L\",'RES S curve-connect'!AV254,IF(Control!$B62=\"M\",'RES S curve-connect'!AV232,'RES S curve-connect'!AV210))","v":2307.2140403519179},{"$f":"IF(Control!$B62=\"L\",'RES S curve-connect'!AW254,IF(Control!$B62=\"M\",'RES S curve-connect'!AW232,'RES S curve-connect'!AW210))","v":2638.7134501366172},{"$f":"IF(Control!$B62=\"L\",'RES S curve-connect'!AX254,IF(Control!$B62=\"M\",'RES S curve-connect'!AX232,'RES S curve-connect'!AX210))","v":3015.6715677273714},{"$f":"IF(Control!$B62=\"L\",'RES S curve-connect'!AY254,IF(Control!$B62=\"M\",'RES S curve-connect'!AY232,'RES S curve-connect'!AY210))","v":3450.9659371375474},{"$f":"IF(Control!$B62=\"L\",'RES S curve-connect'!AZ254,IF(Control!$B62=\"M\",'RES S curve-connect'!AZ232,'RES S curve-connect'!AZ210))","v":3947.4628973030922},{"$f":"IF(Control!$B62=\"L\",'RES S curve-connect'!BA254,IF(Control!$B62=\"M\",'RES S curve-connect'!BA232,'RES S curve-connect'!BA210))","v":4521.6913682334898},{"$f":"IF(Control!$B62=\"L\",'RES S curve-connect'!BB254,IF(Control!$B62=\"M\",'RES S curve-connect'!BB232,'RES S curve-connect'!BB210))","v":5191.2303345116616},{"$f":"IF(Control!$B62=\"L\",'RES S curve-connect'!BC254,IF(Control!$B62=\"M\",'RES S curve-connect'!BC232,'RES S curve-connect'!BC210))","v":5989.4164645959363},{"$f":"IF(Control!$B62=\"L\",'RES S curve-connect'!BD254,IF(Control!$B62=\"M\",'RES S curve-connect'!BD232,'RES S curve-connect'!BD210))","v":6755.9794732072733},{"$f":"IF(Control!$B62=\"L\",'RES S curve-connect'!BE254,IF(Control!$B62=\"M\",'RES S curve-connect'!BE232,'RES S curve-connect'!BE210))","v":7455.4756345956057},{"$f":"IF(Control!$B62=\"L\",'RES S curve-connect'!BF254,IF(Control!$B62=\"M\",'RES S curve-connect'!BF232,'RES S curve-connect'!BF210))","v":8171.5311015553534},{"$f":"IF(Control!$B62=\"L\",'RES S curve-connect'!BG254,IF(Control!$B62=\"M\",'RES S curve-connect'!BG232,'RES S curve-connect'!BG210))","v":8983.2383254279939},{"$f":"IF(Control!$B62=\"L\",'RES S curve-connect'!BH254,IF(Control!$B62=\"M\",'RES S curve-connect'!BH232,'RES S curve-connect'!BH210))","v":9946.0001474636301},{"$f":"IF(Control!$B62=\"L\",'RES S curve-connect'!BI254,IF(Control!$B62=\"M\",'RES S curve-connect'!BI232,'RES S curve-connect'!BI210))","v":11341.836111719484},{"$f":"IF(Control!$B62=\"L\",'RES S curve-connect'!BJ254,IF(Control!$B62=\"M\",'RES S curve-connect'!BJ232,'RES S curve-connect'!BJ210))","v":13382.129729372442},{"$f":"IF(Control!$B62=\"L\",'RES S curve-connect'!BK254,IF(Control!$B62=\"M\",'RES S curve-connect'!BK232,'RES S curve-connect'!BK210))","v":16387.32384014094},{"$f":"IF(Control!$B62=\"L\",'RES S curve-connect'!BL254,IF(Control!$B62=\"M\",'RES S curve-connect'!BL232,'RES S curve-connect'!BL210))","v":-1129.8105573382213},{"$f":"IF(Control!$B62=\"L\",'RES S curve-connect'!BM254,IF(Control!$B62=\"M\",'RES S curve-connect'!BM232,'RES S curve-connect'!BM210))","v":-1125.9236429975301},{"$f":"IF(Control!$B62=\"L\",'RES S curve-connect'!BN254,IF(Control!$B62=\"M\",'RES S curve-connect'!BN232,'RES S curve-connect'!BN210))","v":-1124.3056562378258},{"$f":"IF(Control!$B62=\"L\",'RES S curve-connect'!BO254,IF(Control!$B62=\"M\",'RES S curve-connect'!BO232,'RES S curve-connect'!BO210))","v":-1118.1679483955315},{"$f":"IF(Control!$B62=\"L\",'RES S curve-connect'!BP254,IF(Control!$B62=\"M\",'RES S curve-connect'!BP232,'RES S curve-connect'!BP210))","v":-1114.299094253721},{"$f":"IF(Control!$B62=\"L\",'RES S curve-connect'!BQ254,IF(Control!$B62=\"M\",'RES S curve-connect'!BQ232,'RES S curve-connect'!BQ210))","v":-1110.4361866832376},{"$f":"IF(Control!$B62=\"L\",'RES S curve-connect'!BR254,IF(Control!$B62=\"M\",'RES S curve-connect'!BR232,'RES S curve-connect'!BR210))","v":-1108.8420598556777},{"$f":"IF(Control!$B62=\"L\",'RES S curve-connect'!BS254,IF(Control!$B62=\"M\",'RES S curve-connect'!BS232,'RES S curve-connect'!BS210))","v":-1102.7280660274946},{"$f":"IF(Control!$B62=\"L\",'RES S curve-connect'!BT254,IF(Control!$B62=\"M\",'RES S curve-connect'!BT232,'RES S curve-connect'!BT210))","v":-1098.8827808959584},{"$f":"IF(Control!$B62=\"L\",'RES S curve-connect'!BU254,IF(Control!$B62=\"M\",'RES S curve-connect'!BU232,'RES S curve-connect'!BU210))","v":-1095.0432982403154},{"$f":"IF(Control!$B62=\"L\",'RES S curve-connect'!BV254,IF(Control!$B62=\"M\",'RES S curve-connect'!BV232,'RES S curve-connect'!BV210))","v":-1093.4724531348095},{"$f":"IF(Control!$B62=\"L\",'RES S curve-connect'!BW254,IF(Control!$B62=\"M\",'RES S curve-connect'!BW232,'RES S curve-connect'!BW210))","v":-1087.3815987328198},{"$f":"IF(Control!$B62=\"L\",'RES S curve-connect'!BX254,IF(Control!$B62=\"M\",'RES S curve-connect'!BX232,'RES S curve-connect'!BX210))","v":-1083.5593116228588},{"$f":"IF(Control!$B62=\"L\",'RES S curve-connect'!BY254,IF(Control!$B62=\"M\",'RES S curve-connect'!BY232,'RES S curve-connect'!BY210))","v":-1079.7426864697691},{"$f":"IF(Control!$B62=\"L\",'RES S curve-connect'!BZ254,IF(Control!$B62=\"M\",'RES S curve-connect'!BZ232,'RES S curve-connect'!BZ210))","v":-1078.1945592277784},{"$f":"IF(Control!$B62=\"L\",'RES S curve-connect'!CA254,IF(Control!$B62=\"M\",'RES S curve-connect'!CA232,'RES S curve-connect'!CA210))","v":-1072.1262839246731},{"$f":"IF(Control!$B62=\"L\",'RES S curve-connect'!CB254,IF(Control!$B62=\"M\",'RES S curve-connect'!CB232,'RES S curve-connect'!CB210))","v":-1068.3264380178327},{"$f":"IF(Control!$B62=\"L\",'RES S curve-connect'!CC254,IF(Control!$B62=\"M\",'RES S curve-connect'!CC232,'RES S curve-connect'!CC210))","v":-1064.5321170354628},{"$f":"IF(Control!$B62=\"L\",'RES S curve-connect'!CD254,IF(Control!$B62=\"M\",'RES S curve-connect'!CD232,'RES S curve-connect'!CD210))","v":-1120.8088676951058}]
["Stonnington (C)",{"$f":"Customers!K157","v":38102},{"$f":"IF(Control!$B63=\"L\",'RES S curve-connect'!C255,IF(Control!$B63=\"M\",'RES S curve-connect'!C233,'RES S curve-connect'!C211))","v":-1890.1972020590106},{"$f":"IF(Control!$B63=\"L\",'RES S curve-connect'!D255,IF(Control!$B63=\"M\",'RES S curve-connect'!D233,'RES S curve-connect'!D211))","v":-2356.8413100865446},{"$f":"IF(Control!$B63=\"L\",'RES S curve-connect'!E255,IF(Control!$B63=\"M\",'RES S curve-connect'!E233,'RES S curve-connect'!E211))","v":-1976.661476643319},{"$f":"IF(Control!$B63=\"L\",'RES S curve-connect'!F255,IF(Control!$B63=\"M\",'RES S curve-connect'!F233,'RES S curve-connect'!F211))","v":-1846.0450088594162},{"$f":"IF(Control!$B63=\"L\",'RES S curve-connect'!G255,IF(Control!$B63=\"M\",'RES S curve-connect'!G233,'RES S curve-connect'!G211))","v":-2718.4911483446385},{"$f":"IF(Control!$B63=\"L\",'RES S curve-connect'!H255,IF(Control!$B63=\"M\",'RES S curve-connect'!H233,'RES S curve-connect'!H211))","v":-2746.9511883465284},{"$f":"IF(Control!$B63=\"L\",'RES S curve-connect'!I255,IF(Control!$B63=\"M\",'RES S curve-connect'!I233,'RES S curve-connect'!I211))","v":-2360.8659255615025},{"$f":"IF(Control!$B63=\"L\",'RES S curve-connect'!J255,IF(Control!$B63=\"M\",'RES S curve-connect'!J233,'RES S curve-connect'!J211))","v":-2632.9353804914595},{"$f":"IF(Control!$B63=\"L\",'RES S curve-connect'!K255,IF(Control!$B63=\"M\",'RES S curve-connect'!K233,'RES S curve-connect'!K211))","v":-1933.3070997507416},{"$f":"IF(Control!$B63=\"L\",'RES S curve-connect'!L255,IF(Control!$B63=\"M\",'RES S curve-connect'!L233,'RES S curve-connect'!L211))","v":-2258.5841409442551},{"$f":"IF(Control!$B63=\"L\",'RES S curve-connect'!M255,IF(Control!$B63=\"M\",'RES S curve-connect'!M233,'RES S curve-connect'!M211))","v":-2820.6598131132732},{"$f":"IF(Control!$B63=\"L\",'RES S curve-connect'!N255,IF(Control!$B63=\"M\",'RES S curve-connect'!N233,'RES S curve-connect'!N211))","v":-2880.8289802455674},{"$f":"IF(Control!$B63=\"L\",'RES S curve-connect'!O255,IF(Control!$B63=\"M\",'RES S curve-connect'!O233,'RES S curve-connect'!O211))","v":-2379.5640077837452},{"$f":"IF(Control!$B63=\"L\",'RES S curve-connect'!P255,IF(Control!$B63=\"M\",'RES S curve-connect'!P233,'RES S curve-connect'!P211))","v":-1984.76641782395},{"$f":"IF(Control!$B63=\"L\",'RES S curve-connect'!Q255,IF(Control!$B63=\"M\",'RES S curve-connect'!Q233,'RES S curve-connect'!Q211))","v":-1384.8939393863659},{"$f":"IF(Control!$B63=\"L\",'RES S curve-connect'!R255,IF(Control!$B63=\"M\",'RES S curve-connect'!R233,'RES S curve-connect'!R211))","v":-1048.2824505087815},{"$f":"IF(Control!$B63=\"L\",'RES S curve-connect'!S255,IF(Control!$B63=\"M\",'RES S curve-connect'!S233,'RES S curve-connect'!S211))","v":-501.52046739015884},{"$f":"IF(Control!$B63=\"L\",'RES S curve-connect'!T255,IF(Control!$B63=\"M\",'RES S curve-connect'!T233,'RES S curve-connect'!T211))","v":-223.13340420834788},{"$f":"IF(Control!$B63=\"L\",'RES S curve-connect'!U255,IF(Control!$B63=\"M\",'RES S curve-connect'!U233,'RES S curve-connect'!U211))","v":106.29652951628012},{"$f":"IF(Control!$B63=\"L\",'RES S curve-connect'!V255,IF(Control!$B63=\"M\",'RES S curve-connect'!V233,'RES S curve-connect'!V211))","v":331.96463373374246},{"$f":"IF(Control!$B63=\"L\",'RES S curve-connect'!W255,IF(Control!$B63=\"M\",'RES S curve-connect'!W233,'RES S curve-connect'!W211))","v":507.08476048187111},{"$f":"IF(Control!$B63=\"L\",'RES S curve-connect'!X255,IF(Control!$B63=\"M\",'RES S curve-connect'!X233,'RES S curve-connect'!X211))","v":905.74690972166343},{"$f":"IF(Control!$B63=\"L\",'RES S curve-connect'!Y255,IF(Control!$B63=\"M\",'RES S curve-connect'!Y233,'RES S curve-connect'!Y211))","v":1310.7756384780464},{"$f":"IF(Control!$B63=\"L\",'RES S curve-connect'!Z255,IF(Control!$B63=\"M\",'RES S curve-connect'!Z233,'RES S curve-connect'!Z211))","v":1583.5227436468067},{"$f":"IF(Control!$B63=\"L\",'RES S curve-connect'!AA255,IF(Control!$B63=\"M\",'RES S curve-connect'!AA233,'RES S curve-connect'!AA211))","v":1858.1233719109405},{"$f":"IF(Control!$B63=\"L\",'RES S curve-connect'!AB255,IF(Control!$B63=\"M\",'RES S curve-connect'!AB233,'RES S curve-connect'!AB211))","v":2077.465745191912},{"$f":"IF(Control!$B63=\"L\",'RES S curve-connect'!AC255,IF(Control!$B63=\"M\",'RES S curve-connect'!AC233,'RES S curve-connect'!AC211))","v":2289.7719765925631},{"$f":"IF(Control!$B63=\"L\",'RES S curve-connect'!AD255,IF(Control!$B63=\"M\",'RES S curve-connect'!AD233,'RES S curve-connect'!AD211))","v":2484.0905308680058},{"$f":"IF(Control!$B63=\"L\",'RES S curve-connect'!AE255,IF(Control!$B63=\"M\",'RES S curve-connect'!AE233,'RES S curve-connect'!AE211))","v":2691.2526803004803},{"$f":"IF(Control!$B63=\"L\",'RES S curve-connect'!AF255,IF(Control!$B63=\"M\",'RES S curve-connect'!AF233,'RES S curve-connect'!AF211))","v":2957.9822391547605},{"$f":"IF(Control!$B63=\"L\",'RES S curve-connect'!AG255,IF(Control!$B63=\"M\",'RES S curve-connect'!AG233,'RES S curve-connect'!AG211))","v":3146.8572135584404},{"$f":"IF(Control!$B63=\"L\",'RES S curve-connect'!AH255,IF(Control!$B63=\"M\",'RES S curve-connect'!AH233,'RES S curve-connect'!AH211))","v":3407.5492054354322},{"$f":"IF(Control!$B63=\"L\",'RES S curve-connect'!AI255,IF(Control!$B63=\"M\",'RES S curve-connect'!AI233,'RES S curve-connect'!AI211))","v":3646.5489725687185},{"$f":"IF(Control!$B63=\"L\",'RES S curve-connect'!AJ255,IF(Control!$B63=\"M\",'RES S curve-connect'!AJ233,'RES S curve-connect'!AJ211))","v":3861.2619883133311},{"$f":"IF(Control!$B63=\"L\",'RES S curve-connect'!AK255,IF(Control!$B63=\"M\",'RES S curve-connect'!AK233,'RES S curve-connect'!AK211))","v":4089.3829431951294},{"$f":"IF(Control!$B63=\"L\",'RES S curve-connect'!AL255,IF(Control!$B63=\"M\",'RES S curve-connect'!AL233,'RES S curve-connect'!AL211))","v":3286.7440250584546},{"$f":"IF(Control!$B63=\"L\",'RES S curve-connect'!AM255,IF(Control!$B63=\"M\",'RES S curve-connect'!AM233,'RES S curve-connect'!AM211))","v":3188.5863220999699},{"$f":"IF(Control!$B63=\"L\",'RES S curve-connect'!AN255,IF(Control!$B63=\"M\",'RES S curve-connect'!AN233,'RES S curve-connect'!AN211))","v":3408.0992151841565},{"$f":"IF(Control!$B63=\"L\",'RES S curve-connect'!AO255,IF(Control!$B63=\"M\",'RES S curve-connect'!AO233,'RES S curve-connect'!AO211))","v":3673.253007853365},{"$f":"IF(Control!$B63=\"L\",'RES S curve-connect'!AP255,IF(Control!$B63=\"M\",'RES S curve-connect'!AP233,'RES S curve-connect'!AP211))","v":3916.2223314608991},{"$f":"IF(Control!$B63=\"L\",'RES S curve-connect'!AQ255,IF(Control!$B63=\"M\",'RES S curve-connect'!AQ233,'RES S curve-connect'!AQ211))","v":4179.8290485060397},{"$f":"IF(Control!$B63=\"L\",'RES S curve-connect'!AR255,IF(Control!$B63=\"M\",'RES S curve-connect'!AR233,'RES S curve-connect'!AR211))","v":4468.1110640034694},{"$f":"IF(Control!$B63=\"L\",'RES S curve-connect'!AS255,IF(Control!$B63=\"M\",'RES S curve-connect'!AS233,'RES S curve-connect'!AS211))","v":4791.3170186233783},{"$f":"IF(Control!$B63=\"L\",'RES S curve-connect'!AT255,IF(Control!$B63=\"M\",'RES S curve-connect'!AT233,'RES S curve-connect'!AT211))","v":5151.5157167205007},{"$f":"IF(Control!$B63=\"L\",'RES S curve-connect'!AU255,IF(Control!$B63=\"M\",'RES S curve-connect'!AU233,'RES S curve-connect'!AU211))","v":5569.8731818483811},{"$f":"IF(Control!$B63=\"L\",'RES S curve-connect'!AV255,IF(Control!$B63=\"M\",'RES S curve-connect'!AV233,'RES S curve-connect'!AV211))","v":6045.4367459888454},{"$f":"IF(Control!$B63=\"L\",'RES S curve-connect'!AW255,IF(Control!$B63=\"M\",'RES S curve-connect'!AW233,'RES S curve-connect'!AW211))","v":6591.2908079075269},{"$f":"IF(Control!$B63=\"L\",'RES S curve-connect'!AX255,IF(Control!$B63=\"M\",'RES S curve-connect'!AX233,'RES S curve-connect'!AX211))","v":7211.4055600026677},{"$f":"IF(Control!$B63=\"L\",'RES S curve-connect'!AY255,IF(Control!$B63=\"M\",'RES S curve-connect'!AY233,'RES S curve-connect'!AY211))","v":7927.7552036996931},{"$f":"IF(Control!$B63=\"L\",'RES S curve-connect'!AZ255,IF(Control!$B63=\"M\",'RES S curve-connect'!AZ233,'RES S curve-connect'!AZ211))","v":8744.0355099322951},{"$f":"IF(Control!$B63=\"L\",'RES S curve-connect'!BA255,IF(Control!$B63=\"M\",'RES S curve-connect'!BA233,'RES S curve-connect'!BA211))","v":9687.5800728665818},{"$f":"IF(Control!$B63=\"L\",'RES S curve-connect'!BB255,IF(Control!$B63=\"M\",'RES S curve-connect'!BB233,'RES S curve-connect'!BB211))","v":10786.774163269667},{"$f":"IF(Control!$B63=\"L\",'RES S curve-connect'!BC255,IF(Control!$B63=\"M\",'RES S curve-connect'!BC233,'RES S curve-connect'!BC211))","v":12097.019640381204},{"$f":"IF(Control!$B63=\"L\",'RES S curve-connect'!BD255,IF(Control!$B63=\"M\",'RES S curve-connect'!BD233,'RES S curve-connect'!BD211))","v":13352.805076665483},{"$f":"IF(Control!$B63=\"L\",'RES S curve-connect'!BE255,IF(Control!$B63=\"M\",'RES S curve-connect'!BE233,'RES S curve-connect'!BE211))","v":14497.855965777979},{"$f":"IF(Control!$B63=\"L\",'RES S curve-connect'!BF255,IF(Control!$B63=\"M\",'RES S curve-connect'!BF233,'RES S curve-connect'!BF211))","v":15670.271486754968},{"$f":"IF(Control!$B63=\"L\",'RES S curve-connect'!BG255,IF(Control!$B63=\"M\",'RES S curve-connect'!BG233,'RES S curve-connect'!BG211))","v":17000.284009902531},{"$f":"IF(Control!$B63=\"L\",'RES S curve-connect'!BH255,IF(Control!$B63=\"M\",'RES S curve-connect'!BH233,'RES S curve-connect'!BH211))","v":18577.254879305652},{"$f":"IF(Control!$B63=\"L\",'RES S curve-connect'!BI255,IF(Control!$B63=\"M\",'RES S curve-connect'!BI233,'RES S curve-connect'!BI211))","v":20864.246778116976},{"$f":"IF(Control!$B63=\"L\",'RES S curve-connect'!BJ255,IF(Control!$B63=\"M\",'RES S curve-connect'!BJ233,'RES S curve-connect'!BJ211))","v":24204.25045589334},{"$f":"IF(Control!$B63=\"L\",'RES S curve-connect'!BK255,IF(Control!$B63=\"M\",'RES S curve-connect'!BK233,'RES S curve-connect'!BK211))","v":29119.516130642151},{"$f":"IF(Control!$B63=\"L\",'RES S curve-connect'!BL255,IF(Control!$B63=\"M\",'RES S curve-connect'!BL233,'RES S curve-connect'!BL211))","v":360.15926762423271},{"$f":"IF(Control!$B63=\"L\",'RES S curve-connect'!BM255,IF(Control!$B63=\"M\",'RES S curve-connect'!BM233,'RES S curve-connect'!BM211))","v":366.42901687257461},{"$f":"IF(Control!$B63=\"L\",'RES S curve-connect'!BN255,IF(Control!$B63=\"M\",'RES S curve-connect'!BN233,'RES S curve-connect'!BN211))","v":368.66718158613247},{"$f":"IF(Control!$B63=\"L\",'RES S curve-connect'!BO255,IF(Control!$B63=\"M\",'RES S curve-connect'!BO233,'RES S curve-connect'!BO211))","v":378.94044252706829},{"$f":"IF(Control!$B63=\"L\",'RES S curve-connect'!BP255,IF(Control!$B63=\"M\",'RES S curve-connect'!BP233,'RES S curve-connect'!BP211))","v":385.18223260653241},{"$f":"IF(Control!$B63=\"L\",'RES S curve-connect'!BQ255,IF(Control!$B63=\"M\",'RES S curve-connect'!BQ233,'RES S curve-connect'!BQ211))","v":391.41481604492373},{"$f":"IF(Control!$B63=\"L\",'RES S curve-connect'!BR255,IF(Control!$B63=\"M\",'RES S curve-connect'!BR233,'RES S curve-connect'!BR211))","v":393.61604087932943},{"$f":"IF(Control!$B63=\"L\",'RES S curve-connect'!BS255,IF(Control!$B63=\"M\",'RES S curve-connect'!BS233,'RES S curve-connect'!BS211))","v":403.85258646055024},{"$f":"IF(Control!$B63=\"L\",'RES S curve-connect'!BT255,IF(Control!$B63=\"M\",'RES S curve-connect'!BT233,'RES S curve-connect'!BT211))","v":410.05788429731035},{"$f":"IF(Control!$B63=\"L\",'RES S curve-connect'!BU255,IF(Control!$B63=\"M\",'RES S curve-connect'!BU233,'RES S curve-connect'!BU211))","v":416.25419721646028},{"$f":"IF(Control!$B63=\"L\",'RES S curve-connect'!BV255,IF(Control!$B63=\"M\",'RES S curve-connect'!BV233,'RES S curve-connect'!BV211))","v":418.41937187035205},{"$f":"IF(Control!$B63=\"L\",'RES S curve-connect'!BW255,IF(Control!$B63=\"M\",'RES S curve-connect'!BW233,'RES S curve-connect'!BW211))","v":428.62008623381905},{"$f":"IF(Control!$B63=\"L\",'RES S curve-connect'!BX255,IF(Control!$B63=\"M\",'RES S curve-connect'!BX233,'RES S curve-connect'!BX211))","v":434.78977044832277},{"$f":"IF(Control!$B63=\"L\",'RES S curve-connect'!BY255,IF(Control!$B63=\"M\",'RES S curve-connect'!BY233,'RES S curve-connect'!BY211))","v":440.95068598210162},{"$f":"IF(Control!$B63=\"L\",'RES S curve-connect'!BZ255,IF(Control!$B63=\"M\",'RES S curve-connect'!BZ233,'RES S curve-connect'!BZ211))","v":443.08067813749375},{"$f":"IF(Control!$B63=\"L\",'RES S curve-connect'!CA255,IF(Control!$B63=\"M\",'RES S curve-connect'!CA233,'RES S curve-connect'!CA211))","v":453.24642354786164},{"$f":"IF(Control!$B63=\"L\",'RES S curve-connect'!CB255,IF(Control!$B63=\"M\",'RES S curve-connect'!CB233,'RES S curve-connect'!CB211))","v":459.38135102168064},{"$f":"IF(Control!$B63=\"L\",'RES S curve-connect'!CC255,IF(Control!$B63=\"M\",'RES S curve-connect'!CC233,'RES S curve-connect'!CC211))","v":465.50772070263741},{"$f":"IF(Control!$B63=\"L\",'RES S curve-connect'!CD255,IF(Control!$B63=\"M\",'RES S curve-connect'!CD233,'RES S curve-connect'!CD211))","v":373.71232812977973}]
["Whitehorse (C)",{"$f":"Customers!K158","v":66452},{"$f":"IF(Control!$B64=\"L\",'RES S curve-connect'!C256,IF(Control!$B64=\"M\",'RES S curve-connect'!C234,'RES S curve-connect'!C212))","v":-2974.3660639511463},{"$f":"IF(Control!$B64=\"L\",'RES S curve-connect'!D256,IF(Control!$B64=\"M\",'RES S curve-connect'!D234,'RES S curve-connect'!D212))","v":-3491.2959566333202},{"$f":"IF(Control!$B64=\"L\",'RES S curve-connect'!E256,IF(Control!$B64=\"M\",'RES S curve-connect'!E234,'RES S curve-connect'!E212))","v":-2773.4498343794908},{"$f":"IF(Control!$B64=\"L\",'RES S curve-connect'!F256,IF(Control!$B64=\"M\",'RES S curve-connect'!F234,'RES S curve-connect'!F212))","v":-2618.7930583806528},{"$f":"IF(Control!$B64=\"L\",'RES S curve-connect'!G256,IF(Control!$B64=\"M\",'RES S curve-connect'!G234,'RES S curve-connect'!G212))","v":-3832.8154267026753},{"$f":"IF(Control!$B64=\"L\",'RES S curve-connect'!H256,IF(Control!$B64=\"M\",'RES S curve-connect'!H234,'RES S curve-connect'!H212))","v":-3866.3849077549239},{"$f":"IF(Control!$B64=\"L\",'RES S curve-connect'!I256,IF(Control!$B64=\"M\",'RES S curve-connect'!I234,'RES S curve-connect'!I212))","v":-3428.448870546702},{"$f":"IF(Control!$B64=\"L\",'RES S curve-connect'!J256,IF(Control!$B64=\"M\",'RES S curve-connect'!J234,'RES S curve-connect'!J212))","v":-3767.2207963550104},{"$f":"IF(Control!$B64=\"L\",'RES S curve-connect'!K256,IF(Control!$B64=\"M\",'RES S curve-connect'!K234,'RES S curve-connect'!K212))","v":-2942.4623471876912},{"$f":"IF(Control!$B64=\"L\",'RES S curve-connect'!L256,IF(Control!$B64=\"M\",'RES S curve-connect'!L234,'RES S curve-connect'!L212))","v":-3293.561023966246},{"$f":"IF(Control!$B64=\"L\",'RES S curve-connect'!M256,IF(Control!$B64=\"M\",'RES S curve-connect'!M234,'RES S curve-connect'!M212))","v":-3931.9913140237823},{"$f":"IF(Control!$B64=\"L\",'RES S curve-connect'!N256,IF(Control!$B64=\"M\",'RES S curve-connect'!N234,'RES S curve-connect'!N212))","v":-3990.1246935381951},{"$f":"IF(Control!$B64=\"L\",'RES S curve-connect'!O256,IF(Control!$B64=\"M\",'RES S curve-connect'!O234,'RES S curve-connect'!O212))","v":-3422.7421376241914},{"$f":"IF(Control!$B64=\"L\",'RES S curve-connect'!P256,IF(Control!$B64=\"M\",'RES S curve-connect'!P234,'RES S curve-connect'!P212))","v":-2970.499726698009},{"$f":"IF(Control!$B64=\"L\",'RES S curve-connect'!Q256,IF(Control!$B64=\"M\",'RES S curve-connect'!Q234,'RES S curve-connect'!Q212))","v":-2288.2959814735304},{"$f":"IF(Control!$B64=\"L\",'RES S curve-connect'!R256,IF(Control!$B64=\"M\",'RES S curve-connect'!R234,'RES S curve-connect'!R212))","v":-1900.660873335115},{"$f":"IF(Control!$B64=\"L\",'RES S curve-connect'!S256,IF(Control!$B64=\"M\",'RES S curve-connect'!S234,'RES S curve-connect'!S212))","v":-1285.5238563511084},{"$f":"IF(Control!$B64=\"L\",'RES S curve-connect'!T256,IF(Control!$B64=\"M\",'RES S curve-connect'!T234,'RES S curve-connect'!T212))","v":-950.03522938999163},{"$f":"IF(Control!$B64=\"L\",'RES S curve-connect'!U256,IF(Control!$B64=\"M\",'RES S curve-connect'!U234,'RES S curve-connect'!U212))","v":-567.3663113739949},{"$f":"IF(Control!$B64=\"L\",'RES S curve-connect'!V256,IF(Control!$B64=\"M\",'RES S curve-connect'!V234,'RES S curve-connect'!V212))","v":-305.53966321726642},{"$f":"IF(Control!$B64=\"L\",'RES S curve-connect'!W256,IF(Control!$B64=\"M\",'RES S curve-connect'!W234,'RES S curve-connect'!W212))","v":-101.08852909399815},{"$f":"IF(Control!$B64=\"L\",'RES S curve-connect'!X256,IF(Control!$B64=\"M\",'RES S curve-connect'!X234,'RES S curve-connect'!X212))","v":359.90102633079499},{"$f":"IF(Control!$B64=\"L\",'RES S curve-connect'!Y256,IF(Control!$B64=\"M\",'RES S curve-connect'!Y234,'RES S curve-connect'!Y212))","v":826.27211851937068},{"$f":"IF(Control!$B64=\"L\",'RES S curve-connect'!Z256,IF(Control!$B64=\"M\",'RES S curve-connect'!Z234,'RES S curve-connect'!Z212))","v":1142.5478195060134},{"$f":"IF(Control!$B64=\"L\",'RES S curve-connect'!AA256,IF(Control!$B64=\"M\",'RES S curve-connect'!AA234,'RES S curve-connect'!AA212))","v":1458.824393194554},{"$f":"IF(Control!$B64=\"L\",'RES S curve-connect'!AB256,IF(Control!$B64=\"M\",'RES S curve-connect'!AB234,'RES S curve-connect'!AB212))","v":1711.6367680870458},{"$f":"IF(Control!$B64=\"L\",'RES S curve-connect'!AC256,IF(Control!$B64=\"M\",'RES S curve-connect'!AC234,'RES S curve-connect'!AC212))","v":1955.2483674898615},{"$f":"IF(Control!$B64=\"L\",'RES S curve-connect'!AD256,IF(Control!$B64=\"M\",'RES S curve-connect'!AD234,'RES S curve-connect'!AD212))","v":2178.8422964441706},{"$f":"IF(Control!$B64=\"L\",'RES S curve-connect'!AE256,IF(Control!$B64=\"M\",'RES S curve-connect'!AE234,'RES S curve-connect'!AE212))","v":2413.7371578846632},{"$f":"IF(Control!$B64=\"L\",'RES S curve-connect'!AF256,IF(Control!$B64=\"M\",'RES S curve-connect'!AF234,'RES S curve-connect'!AF212))","v":2717.1983539468047},{"$f":"IF(Control!$B64=\"L\",'RES S curve-connect'!AG256,IF(Control!$B64=\"M\",'RES S curve-connect'!AG234,'RES S curve-connect'!AG212))","v":2924.9994974835927},{"$f":"IF(Control!$B64=\"L\",'RES S curve-connect'!AH256,IF(Control!$B64=\"M\",'RES S curve-connect'!AH234,'RES S curve-connect'!AH212))","v":3217.4873498591855},{"$f":"IF(Control!$B64=\"L\",'RES S curve-connect'!AI256,IF(Control!$B64=\"M\",'RES S curve-connect'!AI234,'RES S curve-connect'!AI212))","v":3480.3350289115747},{"$f":"IF(Control!$B64=\"L\",'RES S curve-connect'!AJ256,IF(Control!$B64=\"M\",'RES S curve-connect'!AJ234,'RES S curve-connect'!AJ212))","v":3717.5662036160006},{"$f":"IF(Control!$B64=\"L\",'RES S curve-connect'!AK256,IF(Control!$B64=\"M\",'RES S curve-connect'!AK234,'RES S curve-connect'!AK212))","v":3969.4181306290534},{"$f":"IF(Control!$B64=\"L\",'RES S curve-connect'!AL256,IF(Control!$B64=\"M\",'RES S curve-connect'!AL234,'RES S curve-connect'!AL212))","v":3097.7993519533547},{"$f":"IF(Control!$B64=\"L\",'RES S curve-connect'!AM256,IF(Control!$B64=\"M\",'RES S curve-connect'!AM234,'RES S curve-connect'!AM212))","v":2983.538445918105},{"$f":"IF(Control!$B64=\"L\",'RES S curve-connect'!AN256,IF(Control!$B64=\"M\",'RES S curve-connect'!AN234,'RES S curve-connect'!AN212))","v":3221.8386509815132},{"$f":"IF(Control!$B64=\"L\",'RES S curve-connect'!AO256,IF(Control!$B64=\"M\",'RES S curve-connect'!AO234,'RES S curve-connect'!AO212))","v":3513.4258312365059},{"$f":"IF(Control!$B64=\"L\",'RES S curve-connect'!AP256,IF(Control!$B64=\"M\",'RES S curve-connect'!AP234,'RES S curve-connect'!AP212))","v":3782.8829884619859},{"$f":"IF(Control!$B64=\"L\",'RES S curve-connect'!AQ256,IF(Control!$B64=\"M\",'RES S curve-connect'!AQ234,'RES S curve-connect'!AQ212))","v":4072.9053649424004},{"$f":"IF(Control!$B64=\"L\",'RES S curve-connect'!AR256,IF(Control!$B64=\"M\",'RES S curve-connect'!AR234,'RES S curve-connect'!AR212))","v":4391.4015991541546},{"$f":"IF(Control!$B64=\"L\",'RES S curve-connect'!AS256,IF(Control!$B64=\"M\",'RES S curve-connect'!AS234,'RES S curve-connect'!AS212))","v":4748.8146268837663},{"$f":"IF(Control!$B64=\"L\",'RES S curve-connect'!AT256,IF(Control!$B64=\"M\",'RES S curve-connect'!AT234,'RES S curve-connect'!AT212))","v":5148.6723800843538},{"$f":"IF(Control!$B64=\"L\",'RES S curve-connect'!AU256,IF(Control!$B64=\"M\",'RES S curve-connect'!AU234,'RES S curve-connect'!AU212))","v":5611.1908573269757},{"$f":"IF(Control!$B64=\"L\",'RES S curve-connect'!AV256,IF(Control!$B64=\"M\",'RES S curve-connect'!AV234,'RES S curve-connect'!AV212))","v":6138.8590989483782},{"$f":"IF(Control!$B64=\"L\",'RES S curve-connect'!AW256,IF(Control!$B64=\"M\",'RES S curve-connect'!AW234,'RES S curve-connect'!AW212))","v":6745.4112026037365},{"$f":"IF(Control!$B64=\"L\",'RES S curve-connect'!AX256,IF(Control!$B64=\"M\",'RES S curve-connect'!AX234,'RES S curve-connect'!AX212))","v":7436.8103156138586},{"$f":"IF(Control!$B64=\"L\",'RES S curve-connect'!AY256,IF(Control!$B64=\"M\",'RES S curve-connect'!AY234,'RES S curve-connect'!AY212))","v":8234.5483582434535},{"$f":"IF(Control!$B64=\"L\",'RES S curve-connect'!AZ256,IF(Control!$B64=\"M\",'RES S curve-connect'!AZ234,'RES S curve-connect'!AZ212))","v":9146.6505411278958},{"$f":"IF(Control!$B64=\"L\",'RES S curve-connect'!BA256,IF(Control!$B64=\"M\",'RES S curve-connect'!BA234,'RES S curve-connect'!BA212))","v":10203.065495624904},{"$f":"IF(Control!$B64=\"L\",'RES S curve-connect'!BB256,IF(Control!$B64=\"M\",'RES S curve-connect'!BB234,'RES S curve-connect'!BB212))","v":11437.501456818802},{"$f":"IF(Control!$B64=\"L\",'RES S curve-connect'!BC256,IF(Control!$B64=\"M\",'RES S curve-connect'!BC234,'RES S curve-connect'!BC212))","v":12909.619044508843},{"$f":"IF(Control!$B64=\"L\",'RES S curve-connect'!BD256,IF(Control!$B64=\"M\",'RES S curve-connect'!BD234,'RES S curve-connect'!BD212))","v":14330.314022682207},{"$f":"IF(Control!$B64=\"L\",'RES S curve-connect'!BE256,IF(Control!$B64=\"M\",'RES S curve-connect'!BE234,'RES S curve-connect'!BE212))","v":15629.025536575929},{"$f":"IF(Control!$B64=\"L\",'RES S curve-connect'!BF256,IF(Control!$B64=\"M\",'RES S curve-connect'!BF234,'RES S curve-connect'!BF212))","v":16957.795869430847},{"$f":"IF(Control!$B64=\"L\",'RES S curve-connect'!BG256,IF(Control!$B64=\"M\",'RES S curve-connect'!BG234,'RES S curve-connect'!BG212))","v":18461.454718552435},{"$f":"IF(Control!$B64=\"L\",'RES S curve-connect'!BH256,IF(Control!$B64=\"M\",'RES S curve-connect'!BH234,'RES S curve-connect'!BH212))","v":20246.507625758743},{"$f":"IF(Control!$B64=\"L\",'RES S curve-connect'!BI256,IF(Control!$B64=\"M\",'RES S curve-connect'!BI234,'RES S curve-connect'!BI212))","v":22832.915244019372},{"$f":"IF(Control!$B64=\"L\",'RES S curve-connect'!BJ256,IF(Control!$B64=\"M\",'RES S curve-connect'!BJ234,'RES S curve-connect'!BJ212))","v":26621.499821992184},{"$f":"IF(Control!$B64=\"L\",'RES S curve-connect'!BK256,IF(Control!$B64=\"M\",'RES S curve-connect'!BK234,'RES S curve-connect'!BK212))","v":32213.643611453932},{"$f":"IF(Control!$B64=\"L\",'RES S curve-connect'!BL256,IF(Control!$B64=\"M\",'RES S curve-connect'!BL234,'RES S curve-connect'!BL212))","v":-91.152166040347936},{"$f":"IF(Control!$B64=\"L\",'RES S curve-connect'!BM256,IF(Control!$B64=\"M\",'RES S curve-connect'!BM234,'RES S curve-connect'!BM212))","v":-84.070232482132951},{"$f":"IF(Control!$B64=\"L\",'RES S curve-connect'!BN256,IF(Control!$B64=\"M\",'RES S curve-connect'!BN234,'RES S curve-connect'!BN212))","v":-80.338570791054849},{"$f":"IF(Control!$B64=\"L\",'RES S curve-connect'!BO256,IF(Control!$B64=\"M\",'RES S curve-connect'!BO234,'RES S curve-connect'!BO212))","v":-69.935862062966919},{"$f":"IF(Control!$B64=\"L\",'RES S curve-connect'!BP256,IF(Control!$B64=\"M\",'RES S curve-connect'!BP234,'RES S curve-connect'!BP212))","v":-62.883306866205601},{"$f":"IF(Control!$B64=\"L\",'RES S curve-connect'!BQ256,IF(Control!$B64=\"M\",'RES S curve-connect'!BQ234,'RES S curve-connect'!BQ212))","v":-55.840426733661047},{"$f":"IF(Control!$B64=\"L\",'RES S curve-connect'!BR256,IF(Control!$B64=\"M\",'RES S curve-connect'!BR234,'RES S curve-connect'!BR212))","v":-52.147583263821161},{"$f":"IF(Control!$B64=\"L\",'RES S curve-connect'!BS256,IF(Control!$B64=\"M\",'RES S curve-connect'!BS234,'RES S curve-connect'!BS212))","v":-41.783459015112612},{"$f":"IF(Control!$B64=\"L\",'RES S curve-connect'!BT256,IF(Control!$B64=\"M\",'RES S curve-connect'!BT234,'RES S curve-connect'!BT212))","v":-34.769256009202422},{"$f":"IF(Control!$B64=\"L\",'RES S curve-connect'!BU256,IF(Control!$B64=\"M\",'RES S curve-connect'!BU234,'RES S curve-connect'!BU212))","v":-27.764497223135493},{"$f":"IF(Control!$B64=\"L\",'RES S curve-connect'!BV256,IF(Control!$B64=\"M\",'RES S curve-connect'!BV234,'RES S curve-connect'!BV212))","v":-24.109545690437869},{"$f":"IF(Control!$B64=\"L\",'RES S curve-connect'!BW256,IF(Control!$B64=\"M\",'RES S curve-connect'!BW234,'RES S curve-connect'!BW212))","v":-13.783085395507158},{"$f":"IF(Control!$B64=\"L\",'RES S curve-connect'!BX256,IF(Control!$B64=\"M\",'RES S curve-connect'!BX234,'RES S curve-connect'!BX212))","v":-6.8063197769842532},{"$f":"IF(Control!$B64=\"L\",'RES S curve-connect'!BY256,IF(Control!$B64=\"M\",'RES S curve-connect'!BY234,'RES S curve-connect'!BY212))","v":0.16122678006070146},{"$f":"IF(Control!$B64=\"L\",'RES S curve-connect'!BZ256,IF(Control!$B64=\"M\",'RES S curve-connect'!BZ234,'RES S curve-connect'!BZ212))","v":3.7791898429686626},{"$f":"IF(Control!$B64=\"L\",'RES S curve-connect'!CA256,IF(Control!$B64=\"M\",'RES S curve-connect'!CA234,'RES S curve-connect'!CA212))","v":14.068884037038856},{"$f":"IF(Control!$B64=\"L\",'RES S curve-connect'!CB256,IF(Control!$B64=\"M\",'RES S curve-connect'!CB234,'RES S curve-connect'!CB212))","v":21.009104542107366},{"$f":"IF(Control!$B64=\"L\",'RES S curve-connect'!CC256,IF(Control!$B64=\"M\",'RES S curve-connect'!CC234,'RES S curve-connect'!CC212))","v":27.940325600298479},{"$f":"IF(Control!$B64=\"L\",'RES S curve-connect'!CD256,IF(Control!$B64=\"M\",'RES S curve-connect'!CD234,'RES S curve-connect'!CD212))","v":-77.81017462107377}]
["Yarra Ranges (S)",{"$f":"Customers!K159","v":48199},{"$f":"IF(Control!$B65=\"L\",'RES S curve-connect'!C257,IF(Control!$B65=\"M\",'RES S curve-connect'!C235,'RES S curve-connect'!C213))","v":-3035.7697611722001},{"$f":"IF(Control!$B65=\"L\",'RES S curve-connect'!D257,IF(Control!$B65=\"M\",'RES S curve-connect'!D235,'RES S curve-connect'!D213))","v":-3577.5107508291808},{"$f":"IF(Control!$B65=\"L\",'RES S curve-connect'!E257,IF(Control!$B65=\"M\",'RES S curve-connect'!E235,'RES S curve-connect'!E213))","v":-2808.1722518675424},{"$f":"IF(Control!$B65=\"L\",'RES S curve-connect'!F257,IF(Control!$B65=\"M\",'RES S curve-connect'!F235,'RES S curve-connect'!F213))","v":-2644.5116991839136},{"$f":"IF(Control!$B65=\"L\",'RES S curve-connect'!G257,IF(Control!$B65=\"M\",'RES S curve-connect'!G235,'RES S curve-connect'!G213))","v":-3968.7918097870179},{"$f":"IF(Control!$B65=\"L\",'RES S curve-connect'!H257,IF(Control!$B65=\"M\",'RES S curve-connect'!H235,'RES S curve-connect'!H213))","v":-3996.3611677482213},{"$f":"IF(Control!$B65=\"L\",'RES S curve-connect'!I257,IF(Control!$B65=\"M\",'RES S curve-connect'!I235,'RES S curve-connect'!I213))","v":-3533.2620090653659},{"$f":"IF(Control!$B65=\"L\",'RES S curve-connect'!J257,IF(Control!$B65=\"M\",'RES S curve-connect'!J235,'RES S curve-connect'!J213))","v":-3866.8082855123521},{"$f":"IF(Control!$B65=\"L\",'RES S curve-connect'!K257,IF(Control!$B65=\"M\",'RES S curve-connect'!K235,'RES S curve-connect'!K213))","v":-2999.8330189799753},{"$f":"IF(Control!$B65=\"L\",'RES S curve-connect'!L257,IF(Control!$B65=\"M\",'RES S curve-connect'!L235,'RES S curve-connect'!L213))","v":-3368.8187266692539},{"$f":"IF(Control!$B65=\"L\",'RES S curve-connect'!M257,IF(Control!$B65=\"M\",'RES S curve-connect'!M235,'RES S curve-connect'!M213))","v":-4048.6201536876397},{"$f":"IF(Control!$B65=\"L\",'RES S curve-connect'!N257,IF(Control!$B65=\"M\",'RES S curve-connect'!N235,'RES S curve-connect'!N213))","v":-4111.1039710339346},{"$f":"IF(Control!$B65=\"L\",'RES S curve-connect'!O257,IF(Control!$B65=\"M\",'RES S curve-connect'!O235,'RES S curve-connect'!O213))","v":-3513.8943237124868},{"$f":"IF(Control!$B65=\"L\",'RES S curve-connect'!P257,IF(Control!$B65=\"M\",'RES S curve-connect'!P235,'RES S curve-connect'!P213))","v":-3037.0220602119352},{"$f":"IF(Control!$B65=\"L\",'RES S curve-connect'!Q257,IF(Control!$B65=\"M\",'RES S curve-connect'!Q235,'RES S curve-connect'!Q213))","v":-2317.2254864013021},{"$f":"IF(Control!$B65=\"L\",'RES S curve-connect'!R257,IF(Control!$B65=\"M\",'RES S curve-connect'!R235,'RES S curve-connect'!R213))","v":-1908.4427270598085},{"$f":"IF(Control!$B65=\"L\",'RES S curve-connect'!S257,IF(Control!$B65=\"M\",'RES S curve-connect'!S235,'RES S curve-connect'!S213))","v":-1260.5215547797645},{"$f":"IF(Control!$B65=\"L\",'RES S curve-connect'!T257,IF(Control!$B65=\"M\",'RES S curve-connect'!T235,'RES S curve-connect'!T213))","v":-904.89562320275832},{"$f":"IF(Control!$B65=\"L\",'RES S curve-connect'!U257,IF(Control!$B65=\"M\",'RES S curve-connect'!U235,'RES S curve-connect'!U213))","v":-501.10249874610645},{"$f":"IF(Control!$B65=\"L\",'RES S curve-connect'!V257,IF(Control!$B65=\"M\",'RES S curve-connect'!V235,'RES S curve-connect'!V213))","v":-225.90124790656606},{"$f":"IF(Control!$B65=\"L\",'RES S curve-connect'!W257,IF(Control!$B65=\"M\",'RES S curve-connect'!W235,'RES S curve-connect'!W213))","v":-11.007901510013824},{"$f":"IF(Control!$B65=\"L\",'RES S curve-connect'!X257,IF(Control!$B65=\"M\",'RES S curve-connect'!X235,'RES S curve-connect'!X213))","v":476.12105118481884},{"$f":"IF(Control!$B65=\"L\",'RES S curve-connect'!Y257,IF(Control!$B65=\"M\",'RES S curve-connect'!Y235,'RES S curve-connect'!Y213))","v":968.64833215954366},{"$f":"IF(Control!$B65=\"L\",'RES S curve-connect'!Z257,IF(Control!$B65=\"M\",'RES S curve-connect'!Z235,'RES S curve-connect'!Z213))","v":1302.1682327546346},{"$f":"IF(Control!$B65=\"L\",'RES S curve-connect'!AA257,IF(Control!$B65=\"M\",'RES S curve-connect'!AA235,'RES S curve-connect'!AA213))","v":1635.3485832557596},{"$f":"IF(Control!$B65=\"L\",'RES S curve-connect'!AB257,IF(Control!$B65=\"M\",'RES S curve-connect'!AB235,'RES S curve-connect'!AB213))","v":1901.5327750422919},{"$f":"IF(Control!$B65=\"L\",'RES S curve-connect'!AC257,IF(Control!$B65=\"M\",'RES S curve-connect'!AC235,'RES S curve-connect'!AC213))","v":2157.7889800992175},{"$f":"IF(Control!$B65=\"L\",'RES S curve-connect'!AD257,IF(Control!$B65=\"M\",'RES S curve-connect'!AD235,'RES S curve-connect'!AD213))","v":2392.9193064254837},{"$f":"IF(Control!$B65=\"L\",'RES S curve-connect'!AE257,IF(Control!$B65=\"M\",'RES S curve-connect'!AE235,'RES S curve-connect'!AE213))","v":2639.5040297832284},{"$f":"IF(Control!$B65=\"L\",'RES S curve-connect'!AF257,IF(Control!$B65=\"M\",'RES S curve-connect'!AF235,'RES S curve-connect'!AF213))","v":2958.9005714788677},{"$f":"IF(Control!$B65=\"L\",'RES S curve-connect'!AG257,IF(Control!$B65=\"M\",'RES S curve-connect'!AG235,'RES S curve-connect'!AG213))","v":3177.9374735396955},{"$f":"IF(Control!$B65=\"L\",'RES S curve-connect'!AH257,IF(Control!$B65=\"M\",'RES S curve-connect'!AH235,'RES S curve-connect'!AH213))","v":3487.2070973634745},{"$f":"IF(Control!$B65=\"L\",'RES S curve-connect'!AI257,IF(Control!$B65=\"M\",'RES S curve-connect'!AI235,'RES S curve-connect'!AI213))","v":3764.2625864583979},{"$f":"IF(Control!$B65=\"L\",'RES S curve-connect'!AJ257,IF(Control!$B65=\"M\",'RES S curve-connect'!AJ235,'RES S curve-connect'!AJ213))","v":4014.4957893100709},{"$f":"IF(Control!$B65=\"L\",'RES S curve-connect'!AK257,IF(Control!$B65=\"M\",'RES S curve-connect'!AK235,'RES S curve-connect'!AK213))","v":4280.1219218625511},{"$f":"IF(Control!$B65=\"L\",'RES S curve-connect'!AL257,IF(Control!$B65=\"M\",'RES S curve-connect'!AL235,'RES S curve-connect'!AL213))","v":3363.0562879605191},{"$f":"IF(Control!$B65=\"L\",'RES S curve-connect'!AM257,IF(Control!$B65=\"M\",'RES S curve-connect'!AM235,'RES S curve-connect'!AM213))","v":3241.5018046587606},{"$f":"IF(Control!$B65=\"L\",'RES S curve-connect'!AN257,IF(Control!$B65=\"M\",'RES S curve-connect'!AN235,'RES S curve-connect'!AN213))","v":3492.1592950892159},{"$f":"IF(Control!$B65=\"L\",'RES S curve-connect'!AO257,IF(Control!$B65=\"M\",'RES S curve-connect'!AO235,'RES S curve-connect'!AO213))","v":3799.5104554381396},{"$f":"IF(Control!$B65=\"L\",'RES S curve-connect'!AP257,IF(Control!$B65=\"M\",'RES S curve-connect'!AP235,'RES S curve-connect'!AP213))","v":4083.9112349218703},{"$f":"IF(Control!$B65=\"L\",'RES S curve-connect'!AQ257,IF(Control!$B65=\"M\",'RES S curve-connect'!AQ235,'RES S curve-connect'!AQ213))","v":4389.6362107727673},{"$f":"IF(Control!$B65=\"L\",'RES S curve-connect'!AR257,IF(Control!$B65=\"M\",'RES S curve-connect'!AR235,'RES S curve-connect'!AR213))","v":4725.6027447847127},{"$f":"IF(Control!$B65=\"L\",'RES S curve-connect'!AS257,IF(Control!$B65=\"M\",'RES S curve-connect'!AS235,'RES S curve-connect'!AS213))","v":5102.6814930861474},{"$f":"IF(Control!$B65=\"L\",'RES S curve-connect'!AT257,IF(Control!$B65=\"M\",'RES S curve-connect'!AT235,'RES S curve-connect'!AT213))","v":5524.8011584411634},{"$f":"IF(Control!$B65=\"L\",'RES S curve-connect'!AU257,IF(Control!$B65=\"M\",'RES S curve-connect'!AU235,'RES S curve-connect'!AU213))","v":6012.761853793163},{"$f":"IF(Control!$B65=\"L\",'RES S curve-connect'!AV257,IF(Control!$B65=\"M\",'RES S curve-connect'!AV235,'RES S curve-connect'!AV213))","v":6569.7790091882653},{"$f":"IF(Control!$B65=\"L\",'RES S curve-connect'!AW257,IF(Control!$B65=\"M\",'RES S curve-connect'!AW235,'RES S curve-connect'!AW213))","v":7210.2217338869486},{"$f":"IF(Control!$B65=\"L\",'RES S curve-connect'!AX257,IF(Control!$B65=\"M\",'RES S curve-connect'!AX235,'RES S curve-connect'!AX213))","v":7940.6435309959961},{"$f":"IF(Control!$B65=\"L\",'RES S curve-connect'!AY257,IF(Control!$B65=\"M\",'RES S curve-connect'!AY235,'RES S curve-connect'!AY213))","v":8783.2543510990345},{"$f":"IF(Control!$B65=\"L\",'RES S curve-connect'!AZ257,IF(Control!$B65=\"M\",'RES S curve-connect'!AZ235,'RES S curve-connect'!AZ213))","v":9747.176864300427},{"$f":"IF(Control!$B65=\"L\",'RES S curve-connect'!BA257,IF(Control!$B65=\"M\",'RES S curve-connect'!BA235,'RES S curve-connect'!BA213))","v":10863.964792097378},{"$f":"IF(Control!$B65=\"L\",'RES S curve-connect'!BB257,IF(Control!$B65=\"M\",'RES S curve-connect'!BB235,'RES S curve-connect'!BB213))","v":12169.570594567556},{"$f":"IF(Control!$B65=\"L\",'RES S curve-connect'!BC257,IF(Control!$B65=\"M\",'RES S curve-connect'!BC235,'RES S curve-connect'!BC213))","v":13726.677557396202},{"$f":"IF(Control!$B65=\"L\",'RES S curve-connect'!BD257,IF(Control!$B65=\"M\",'RES S curve-connect'!BD235,'RES S curve-connect'!BD213))","v":15230.990586772004},{"$f":"IF(Control!$B65=\"L\",'RES S curve-connect'!BE257,IF(Control!$B65=\"M\",'RES S curve-connect'!BE235,'RES S curve-connect'!BE213))","v":16606.672836307251},{"$f":"IF(Control!$B65=\"L\",'RES S curve-connect'!BF257,IF(Control!$B65=\"M\",'RES S curve-connect'!BF235,'RES S curve-connect'!BF213))","v":18014.037966900509},{"$f":"IF(Control!$B65=\"L\",'RES S curve-connect'!BG257,IF(Control!$B65=\"M\",'RES S curve-connect'!BG235,'RES S curve-connect'!BG213))","v":19606.036637025358},{"$f":"IF(Control!$B65=\"L\",'RES S curve-connect'!BH257,IF(Control!$B65=\"M\",'RES S curve-connect'!BH235,'RES S curve-connect'!BH213))","v":21496.325193920504},{"$f":"IF(Control!$B65=\"L\",'RES S curve-connect'!BI257,IF(Control!$B65=\"M\",'RES S curve-connect'!BI235,'RES S curve-connect'!BI213))","v":24234.845781966687},{"$f":"IF(Control!$B65=\"L\",'RES S curve-connect'!BJ257,IF(Control!$B65=\"M\",'RES S curve-connect'!BJ235,'RES S curve-connect'!BJ213))","v":28248.101804811606},{"$f":"IF(Control!$B65=\"L\",'RES S curve-connect'!BK257,IF(Control!$B65=\"M\",'RES S curve-connect'!BK235,'RES S curve-connect'!BK213))","v":34174.602327045817},{"$f":"IF(Control!$B65=\"L\",'RES S curve-connect'!BL257,IF(Control!$B65=\"M\",'RES S curve-connect'!BL235,'RES S curve-connect'!BL213))","v":5.1272150774472038},{"$f":"IF(Control!$B65=\"L\",'RES S curve-connect'!BM257,IF(Control!$B65=\"M\",'RES S curve-connect'!BM235,'RES S curve-connect'!BM213))","v":12.588736886403183},{"$f":"IF(Control!$B65=\"L\",'RES S curve-connect'!BN257,IF(Control!$B65=\"M\",'RES S curve-connect'!BN235,'RES S curve-connect'!BN213))","v":16.6997924452603},{"$f":"IF(Control!$B65=\"L\",'RES S curve-connect'!BO257,IF(Control!$B65=\"M\",'RES S curve-connect'!BO235,'RES S curve-connect'!BO213))","v":27.481701532328486},{"$f":"IF(Control!$B65=\"L\",'RES S curve-connect'!BP257,IF(Control!$B65=\"M\",'RES S curve-connect'!BP235,'RES S curve-connect'!BP213))","v":34.913264448912059},{"$f":"IF(Control!$B65=\"L\",'RES S curve-connect'!BQ257,IF(Control!$B65=\"M\",'RES S curve-connect'!BQ235,'RES S curve-connect'!BQ213))","v":42.334960527265821},{"$f":"IF(Control!$B65=\"L\",'RES S curve-connect'!BR257,IF(Control!$B65=\"M\",'RES S curve-connect'!BR235,'RES S curve-connect'!BR213))","v":46.406429029575918},{"$f":"IF(Control!$B65=\"L\",'RES S curve-connect'!BS257,IF(Control!$B65=\"M\",'RES S curve-connect'!BS235,'RES S curve-connect'!BS213))","v":57.148988253645314},{"$f":"IF(Control!$B65=\"L\",'RES S curve-connect'!BT257,IF(Control!$B65=\"M\",'RES S curve-connect'!BT235,'RES S curve-connect'!BT213))","v":64.541437029616532},{"$f":"IF(Control!$B65=\"L\",'RES S curve-connect'!BU257,IF(Control!$B65=\"M\",'RES S curve-connect'!BU235,'RES S curve-connect'!BU213))","v":71.92425322786039},{"$f":"IF(Control!$B65=\"L\",'RES S curve-connect'!BV257,IF(Control!$B65=\"M\",'RES S curve-connect'!BV235,'RES S curve-connect'!BV213))","v":75.957074657896896},{"$f":"IF(Control!$B65=\"L\",'RES S curve-connect'!BW257,IF(Control!$B65=\"M\",'RES S curve-connect'!BW235,'RES S curve-connect'!BW213))","v":86.661218174030125},{"$f":"IF(Control!$B65=\"L\",'RES S curve-connect'!BX257,IF(Control!$B65=\"M\",'RES S curve-connect'!BX235,'RES S curve-connect'!BX213))","v":94.015481172001103},{"$f":"IF(Control!$B65=\"L\",'RES S curve-connect'!BY257,IF(Control!$B65=\"M\",'RES S curve-connect'!BY235,'RES S curve-connect'!BY213))","v":101.36034009682697},{"$f":"IF(Control!$B65=\"L\",'RES S curve-connect'!BZ257,IF(Control!$B65=\"M\",'RES S curve-connect'!BZ235,'RES S curve-connect'!BZ213))","v":105.35543134166477},{"$f":"IF(Control!$B65=\"L\",'RES S curve-connect'!CA257,IF(Control!$B65=\"M\",'RES S curve-connect'!CA235,'RES S curve-connect'!CA213))","v":116.02207035338421},{"$f":"IF(Control!$B65=\"L\",'RES S curve-connect'!CB257,IF(Control!$B65=\"M\",'RES S curve-connect'!CB235,'RES S curve-connect'!CB213))","v":123.33905312916932},{"$f":"IF(Control!$B65=\"L\",'RES S curve-connect'!CC257,IF(Control!$B65=\"M\",'RES S curve-connect'!CC235,'RES S curve-connect'!CC213))","v":130.64685472429431},{"$f":"IF(Control!$B65=\"L\",'RES S curve-connect'!CD257,IF(Control!$B65=\"M\",'RES S curve-connect'!CD235,'RES S curve-connect'!CD213))","v":18.329015895250564}]
["Weighted Average NPV",{"$f":"Customers!K160","v":686973},{"$f":"SUMPRODUCT($B$24:$B$43,C24:C43)/$B$44","v":-2789.0900052656825},{"$f":"SUMPRODUCT($B$24:$B$43,D24:D43)/$B$44","v":-3297.2874815582604},-2642.176270471045,{"$f":"SUMPRODUCT($B$24:$B$43,F24:F43)/$B$44","v":-2491.7285276460061},{"$f":"SUMPRODUCT($B$24:$B$43,G24:G43)/$B$44","v":-3639.8201219603202},{"$f":"SUMPRODUCT($B$24:$B$43,H24:H43)/$B$44","v":-3673.0285646769044},{"$f":"SUMPRODUCT($B$24:$B$43,I24:I43)/$B$44","v":-3244.4681834636385},{"$f":"SUMPRODUCT($B$24:$B$43,J24:J43)/$B$44","v":-3572.9930799537556},{"$f":"SUMPRODUCT($B$24:$B$43,K24:K43)/$B$44","v":-2770.8965460800059},{"$f":"SUMPRODUCT($B$24:$B$43,L24:L43)/$B$44","v":-3117.4975576775778},{"$f":"SUMPRODUCT($B$24:$B$43,M24:M43)/$B$44","v":-3741.8058132414144},{"$f":"SUMPRODUCT($B$24:$B$43,N24:N43)/$B$44","v":-3800.219327153894},{"$f":"SUMPRODUCT($B$24:$B$43,O24:O43)/$B$44","v":-3244.7348559174225},{"$f":"SUMPRODUCT($B$24:$B$43,P24:P43)/$B$44","v":-2802.8768766992466},{"$f":"SUMPRODUCT($B$24:$B$43,Q24:Q43)/$B$44","v":-2135.5853023412842},{"$f":"SUMPRODUCT($B$24:$B$43,R24:R43)/$B$44","v":-1757.1684614395051},{"$f":"SUMPRODUCT($B$24:$B$43,S24:S43)/$B$44","v":-1154.4517494572535},{"$f":"SUMPRODUCT($B$24:$B$43,T24:T43)/$B$44","v":-829.2130154732954},{"$f":"SUMPRODUCT($B$24:$B$43,U24:U43)/$B$44","v":-456.11828648555468},{"$f":"SUMPRODUCT($B$24:$B$43,V24:V43)/$B$44","v":-200.74321618215086},{"$f":"SUMPRODUCT($B$24:$B$43,W24:W43)/$B$44","v":-1.5573322386911073},{"$f":"SUMPRODUCT($B$24:$B$43,X24:X43)/$B$44","v":448.14528545568083},{"$f":"SUMPRODUCT($B$24:$B$43,Y24:Y43)/$B$44","v":903.40429976934547},{"$f":"SUMPRODUCT($B$24:$B$43,Z24:Z43)/$B$44","v":1211.827343080482},{"$f":"SUMPRODUCT($B$24:$B$43,AA24:AA43)/$B$44","v":1520.5831847687343},{"$f":"SUMPRODUCT($B$24:$B$43,AB24:AB43)/$B$44","v":1767.3259749615236},{"$f":"SUMPRODUCT($B$24:$B$43,AC24:AC43)/$B$44","v":2005.2582818709088},{"$f":"SUMPRODUCT($B$24:$B$43,AD24:AD43)/$B$44","v":2223.5448282245093},{"$f":"SUMPRODUCT($B$24:$B$43,AE24:AE43)/$B$44","v":2453.4012511827664},{"$f":"SUMPRODUCT($B$24:$B$43,AF24:AF43)/$B$44","v":2750.1811656268364},{"$f":"SUMPRODUCT($B$24:$B$43,AG24:AG43)/$B$44","v":2954.5010852771507},{"$f":"SUMPRODUCT($B$24:$B$43,AH24:AH43)/$B$44","v":3241.166529283897},{"$f":"SUMPRODUCT($B$24:$B$43,AI24:AI43)/$B$44","v":3499.6256738031143},{"$f":"SUMPRODUCT($B$24:$B$43,AJ24:AJ43)/$B$44","v":3732.7190420031029},{"$f":"SUMPRODUCT($B$24:$B$43,AK24:AK43)/$B$44","v":3980.209009864981},{"$f":"SUMPRODUCT($B$24:$B$43,AL24:AL43)/$B$44","v":3121.3633397115691},{"$f":"SUMPRODUCT($B$24:$B$43,AM24:AM43)/$B$44","v":3010.0413762343551},{"$f":"SUMPRODUCT($B$24:$B$43,AN24:AN43)/$B$44","v":3244.8688444222348},{"$f":"SUMPRODUCT($B$24:$B$43,AO24:AO43)/$B$44","v":3531.5907784207106},{"$f":"SUMPRODUCT($B$24:$B$43,AP24:AP43)/$B$44","v":3796.1845726883571},{"$f":"SUMPRODUCT($B$24:$B$43,AQ24:AQ43)/$B$44","v":4081.3456183242397},{"$f":"SUMPRODUCT($B$24:$B$43,AR24:AR43)/$B$44","v":4394.2876557264972},{"$f":"SUMPRODUCT($B$24:$B$43,AS24:AS43)/$B$44","v":4745.413458169246},{"$f":"SUMPRODUCT($B$24:$B$43,AT24:AT43)/$B$44","v":5137.988718705431},{"$f":"SUMPRODUCT($B$24:$B$43,AU24:AU43)/$B$44","v":5592.3883414677621},{"$f":"SUMPRODUCT($B$24:$B$43,AV24:AV43)/$B$44","v":6110.4858784785811},{"$f":"SUMPRODUCT($B$24:$B$43,AW24:AW43)/$B$44","v":6705.8922668046789},{"$f":"SUMPRODUCT($B$24:$B$43,AX24:AX43)/$B$44","v":7384.2118719615255},{"$f":"SUMPRODUCT($B$24:$B$43,AY24:AY43)/$B$44","v":8167.0113791067151},{"$f":"SUMPRODUCT($B$24:$B$43,AZ24:AZ43)/$B$44","v":9061.5391824266026},{"$f":"SUMPRODUCT($B$24:$B$43,BA24:BA43)/$B$44","v":10097.261509222582},{"$f":"SUMPRODUCT($B$24:$B$43,BB24:BB43)/$B$44","v":11306.918978747324},{"$f":"SUMPRODUCT($B$24:$B$43,BC24:BC43)/$B$44","v":12749.380859826788},{"$f":"SUMPRODUCT($B$24:$B$43,BD24:BD43)/$B$44","v":14139.9050985959},{"$f":"SUMPRODUCT($B$24:$B$43,BE24:BE43)/$B$44","v":15410.517366160442},{"$f":"SUMPRODUCT($B$24:$B$43,BF24:BF43)/$B$44","v":16710.691834028945},{"$f":"SUMPRODUCT($B$24:$B$43,BG24:BG43)/$B$44","v":18182.577132394123},{"$f":"SUMPRODUCT($B$24:$B$43,BH24:BH43)/$B$44","v":19929.563390600521},{"$f":"SUMPRODUCT($B$24:$B$43,BI24:BI43)/$B$44","v":22461.184332478682},{"$f":"SUMPRODUCT($B$24:$B$43,BJ24:BJ43)/$B$44","v":26167.731324439661},{"$f":"SUMPRODUCT($B$24:$B$43,BK24:BK43)/$B$44","v":31636.14916725333},{"$f":"SUMPRODUCT($B$24:$B$43,BL24:BL43)/$B$44","v":-18.967092109186293},{"$f":"SUMPRODUCT($B$24:$B$43,BM24:BM43)/$B$44","v":-12.029461374268491},{"$f":"SUMPRODUCT($B$24:$B$43,BN24:BN43)/$B$44","v":-8.5619530720687056},{"$f":"SUMPRODUCT($B$24:$B$43,BO24:BO43)/$B$44","v":1.8164822121443762},{"$f":"SUMPRODUCT($B$24:$B$43,BP24:BP43)/$B$44","v":8.7249129062896529},{"$f":"SUMPRODUCT($B$24:$B$43,BQ24:BQ43)/$B$44","v":15.623727485262854},{"$f":"SUMPRODUCT($B$24:$B$43,BR24:BR43)/$B$44","v":19.052653854367883},{"$f":"SUMPRODUCT($B$24:$B$43,BS24:BS43)/$B$44","v":29.392739970488172},{"$f":"SUMPRODUCT($B$24:$B$43,BT24:BT43)/$B$44","v":36.26305281291053},{"$f":"SUMPRODUCT($B$24:$B$43,BU24:BU43)/$B$44","v":43.123979417050528},{"$f":"SUMPRODUCT($B$24:$B$43,BV24:BV43)/$B$44","v":46.5152462578219},{"$f":"SUMPRODUCT($B$24:$B$43,BW24:BW43)/$B$44","v":56.817899870759341},{"$f":"SUMPRODUCT($B$24:$B$43,BX24:BX43)/$B$44","v":63.651005822774927},{"$f":"SUMPRODUCT($B$24:$B$43,BY24:BY43)/$B$44","v":70.47494974583141},{"$f":"SUMPRODUCT($B$24:$B$43,BZ24:BZ43)/$B$44","v":73.829456720256815},{"$f":"SUMPRODUCT($B$24:$B$43,CA24:CA43)/$B$44","v":84.095571895807595},{"$f":"SUMPRODUCT($B$24:$B$43,CB24:CB43)/$B$44","v":90.892359462370081},{"$f":"SUMPRODUCT($B$24:$B$43,CC24:CC43)/$B$44","v":97.68020368357665},{"$f":"SUMPRODUCT($B$24:$B$43,CD24:CD43)/$B$44","v":-5.5205131167979191}]
["LGA Number of decision points",2020,{"$f":"B45+1","v":2021},2022,2023,2024,2025,2026,2027,2028,2029,2030,2031,2032,2033,2034,2035,2036,2037,2038,2039,2040,2041,2042,2043,2044,2045,2046,2047,2048,2049,2050,2051,2052,2053,2054,2055,2056,2057,2058,2059,2060,2061,2062,2063,2064,2065,2066,2067,2068,2069,2070,2071,2072,2073,2074,2075,2076,2077,2078,2079,2080,2081,2082,2083,2084,{"$f":"BN45+1","v":2085},2086,2087,2088,2089,2090,2091,2092,2093,2094,2095,2096,2097,2098,2099,2100]
["Bass Coast (S)",null,{"$f":"Households!M77","v":508.41375920034352},{"$f":"Households!N77","v":396.35553512843671},{"$f":"Households!O77","v":403.56715101447207},{"$f":"Households!P77","v":410.90998092195605},{"$f":"Households!Q77","v":418.38641226581331},{"$f":"Households!R77","v":425.99887589956779},{"$f":"Households!S77","v":402.46324739555803},{"$f":"Households!T77","v":409.257798647659},{"$f":"Households!U77","v":416.16705832846492},{"$f":"Households!V77","v":423.19296299317102},{"$f":"Households!W77","v":430.33748189072867},{"$f":"Households!X77","v":374.79202845231612},{"$f":"Households!Y77","v":380.2112303470085},{"$f":"Households!Z77","v":385.70878969582282},{"$f":"Households!AA77","v":391.28583948673622},{"$f":"Households!AB77","v":396.9435290898673},{"$f":"Households!AC77","v":402.68302449433122},{"$f":"Households!AD77","v":408.50550854851463},{"$f":"Households!AE77","v":414.41218120389749},{"$f":"Households!AF77","v":420.40425976234019},{"$f":"Households!AG77","v":426.48297912691305},{"$f":"Households!AH77","v":432.64959205643208},{"$f":"Households!AI77","v":438.90536942366452},{"$f":"Households!AJ77","v":445.25160047716781},{"$f":"Households!AK77","v":451.68959310706214},{"$f":"Households!AL77","v":458.2206741145319},{"$f":"Households!AM77","v":464.8461894852926},{"$f":"Households!AN77","v":471.56750466693666},{"$f":"Households!AO77","v":478.38600485041297},{"$f":"Households!AP77","v":485.30309525540815},{"$f":"Households!AQ77","v":991.75897091461138},{"$f":"Households!AR77","v":506.66026653948848},{"$f":"Households!AS77","v":513.98618082782832},{"$f":"Households!AT77","v":521.41802215190182},{"$f":"Households!AU77","v":528.95732213445626},{"$f":"Households!AV77","v":536.60563454429393},{"$f":"Households!AW77","v":544.36453561653707},{"$f":"Households!AX77","v":552.23562437739929},{"$f":"Households!AY77","v":560.22052297383198},{"$f":"Households!AZ77","v":568.32087700772263},{"$f":"Households!BA77","v":576.53835587510002},{"$f":"Households!BB77","v":584.87465311019605},{"$f":"Households!BC77","v":593.3314867343779},{"$f":"Households!BD77","v":601.91059961030078},{"$f":"Households!BE77","v":610.61375980106277},{"$f":"Households!BF77","v":619.44276093458029},{"$f":"Households!BG77","v":628.39942257322036},{"$f":"Households!BH77","v":637.48559058883984},{"$f":"Households!BI77","v":646.70313754313611},{"$f":"Households!BJ77","v":656.05396307361843},{"$f":"Households!BK77","v":665.53999428509087},{"$f":"Households!BL77","v":675.16318614676493},{"$f":"Households!BM77","v":684.92552189520211},{"$f":"Households!BN77","v":694.82901344304992},{"$f":"Households!BO77","v":704.87570179359864},{"$f":"Households!BP77","v":715.06765746154088},{"$f":"Households!BQ77","v":725.40698089952457},{"$f":"Households!BR77","v":735.89580293115432},{"$f":"Households!BS77","v":746.53628519010454},{"$f":"Households!BT77","v":757.33062056553536},{"$f":"Households!BU77","v":768.28103365416609},{"$f":"Households!BV77","v":779.38978121857872},{"$f":"Households!BW77","v":790.65915265245167},{"$f":"Households!BX77","v":802.09147045226928},{"$f":"Households!BY77","v":813.68909069606161},{"$f":"Households!BZ77","v":825.45440352887454},{"$f":"Households!CA77","v":837.3898336554339},{"$f":"Households!CB77","v":849.49784083978557},{"$f":"Households!CC77","v":861.78092041227501},{"$f":"Households!CD77","v":874.24160378377564},{"$f":"Households!CE77","v":886.88245896740227},{"$f":"Households!CF77","v":899.70609110772784},{"$f":"Households!CG77","v":912.71514301774005},{"$f":"Households!CH77","v":925.91229572341945},{"$f":"Households!CI77","v":939.30026901627571},{"$f":"Households!CJ77","v":952.88182201397831},{"$f":"Households!CK77","v":966.65975372879075},{"$f":"Households!CL77","v":980.63690364459035},{"$f":"Households!CM77","v":994.81615230199168},{"$f":"Households!CN77","v":1009.2004218919374}]
["Bayside (C)",null,{"$f":"Households!M78","v":604.9484264223247},{"$f":"Households!N78","v":431.78411702877384},{"$f":"Households!O78","v":435.34838697587475},{"$f":"Households!P78","v":438.94207908040698},{"$f":"Households!Q78","v":442.56543621488163},{"$f":"Households!R78","v":446.21870325670898},{"$f":"Households!S78","v":414.31896574746133},{"$f":"Households!T78","v":417.4685665112429},{"$f":"Households!U78","v":420.64211014462671},{"$f":"Households!V78","v":423.83977865831184},{"$f":"Households!W78","v":427.06175544662074},{"$f":"Households!X78","v":440.96848441905422},{"$f":"Households!Y78","v":444.40371702687116},{"$f":"Households!Z78","v":447.86571078310772},{"$f":"Households!AA78","v":451.35467416250322},{"$f":"Households!AB78","v":454.87081726380893},{"$f":"Households!AC78","v":458.41435182241185},{"$f":"Households!AD78","v":461.98549122333134},{"$f":"Households!AE78","v":465.58445051375202},{"$f":"Households!AF78","v":469.21144641619321},{"$f":"Households!AG78","v":472.86669734146926},{"$f":"Households!AH78","v":476.55042340183172},{"$f":"Households!AI78","v":480.26284642429346},{"$f":"Households!AJ78","v":484.00418996390727},{"$f":"Households!AK78","v":487.77467931729007},{"$f":"Households!AL78","v":491.57454153617437},{"$f":"Households!AM78","v":495.40400544099612},{"$f":"Households!AN78","v":499.26330163486455},{"$f":"Households!AO78","v":503.15266251725006},{"$f":"Households!AP78","v":507.07232229806323},{"$f":"Households!AQ78","v":1026.0260015434687},{"$f":"Households!AR78","v":519.01546458402663},{"$f":"Households!AS78","v":523.05869876263387},{"$f":"Households!AT78","v":527.13343054343568},{"$f":"Households!AU78","v":531.23990529900766},{"$f":"Households!AV78","v":535.37837031347408},{"$f":"Households!AW78","v":539.54907479734175},{"$f":"Households!AX78","v":543.75226990254305},{"$f":"Households!AY78","v":547.98820873752447},{"$f":"Households!AZ78","v":552.25714638240788},{"$f":"Households!BA78","v":556.55933990457015},{"$f":"Households!BB78","v":560.89504837394998},{"$f":"Households!BC78","v":565.26453287865479},{"$f":"Households!BD78","v":569.66805654076779},{"$f":"Households!BE78","v":574.10588453212767},{"$f":"Households!BF78","v":578.57828409028116},{"$f":"Households!BG78","v":583.085524534672},{"$f":"Households!BH78","v":587.62787728277544},{"$f":"Households!BI78","v":592.20561586642361},{"$f":"Households!BJ78","v":596.81901594838564},{"$f":"Households!BK78","v":601.46835533880221},{"$f":"Households!BL78","v":606.15391401211127},{"$f":"Households!BM78","v":610.87597412375544},{"$f":"Households!BN78","v":615.63482002722594},{"$f":"Households!BO78","v":620.43073829120658},{"$f":"Households!BP78","v":625.26401771677229},{"$f":"Households!BQ78","v":630.13494935484232},{"$f":"Households!BR78","v":635.04382652368804},{"$f":"Households!BS78","v":639.99094482656801},{"$f":"Households!BT78","v":644.97660216957229},{"$f":"Households!BU78","v":650.0010987794667},{"$f":"Households!BV78","v":655.06473722201918},{"$f":"Households!BW78","v":660.16782241978945},{"$f":"Households!BX78","v":665.31066167097379},{"$f":"Households!BY78","v":670.49356466755853},{"$f":"Households!BZ78","v":675.7168435141466},{"$f":"Households!CA78","v":680.98081274665674},{"$f":"Households!CB78","v":686.28578935131372},{"$f":"Households!CC78","v":691.63209278380236},{"$f":"Households!CD78","v":697.02004498827591},{"$f":"Households!CE78","v":702.44997041705574},{"$f":"Households!CF78","v":707.92219604994898},{"$f":"Households!CG78","v":713.43705141398459},{"$f":"Households!CH78","v":718.9948686032767},{"$f":"Households!CI78","v":724.59598229899711},{"$f":"Households!CJ78","v":730.24072978967524},{"$f":"Households!CK78","v":735.92945099120698},{"$f":"Households!CL78","v":741.66248846764574},{"$f":"Households!CM78","v":747.44018745155699},{"$f":"Households!CN78","v":753.26289586506391}]
["Boroondara (C)",null,{"$f":"Households!M79","v":940.22124614983113},{"$f":"Households!N79","v":800.72445525687726},{"$f":"Households!O79","v":807.93400081944128},{"$f":"Households!P79","v":815.20845953265962},{"$f":"Households!Q79","v":822.5484158602012},{"$f":"Households!R79","v":829.95445952801674},{"$f":"Households!S79","v":843.42744360064899},{"$f":"Households!T79","v":851.07588949640558},{"$f":"Households!U79","v":858.79369372887595},{"$f":"Households!V79","v":866.58148525964862},{"$f":"Households!W79","v":874.43989875402622},{"$f":"Households!X79","v":868.15802650929982},{"$f":"Households!Y79","v":875.90393774573386},{"$f":"Households!Z79","v":883.71895983416834},{"$f":"Households!AA79","v":891.60370939796849},{"$f":"Households!AB79","v":899.55880856221484},{"$f":"Households!AC79","v":907.58488500250678},{"$f":"Households!AD79","v":915.68257199511208},{"$f":"Households!AE79","v":923.85250846613417},{"$f":"Households!AF79","v":932.0953390426439},{"$f":"Households!AG79","v":940.41171410302923},{"$f":"Households!AH79","v":948.80228982852714},{"$f":"Households!AI79","v":957.26772825510125},{"$f":"Households!AJ79","v":965.80869732541032},{"$f":"Households!AK79","v":974.42587094179544},{"$f":"Households!AL79","v":983.11992901912163},{"$f":"Households!AM79","v":991.89155753885643},{"$f":"Households!AN79","v":1000.7414486027665},{"$f":"Households!AO79","v":1009.6703004877781},{"$f":"Households!AP79","v":1018.6788177010567},{"$f":"Households!AQ79","v":2064.7054086612115},{"$f":"Households!AR79","v":1046.189501005174},{"$f":"Households!AS79","v":1055.523851162452},{"$f":"Households!AT79","v":1064.9414845994033},{"$f":"Households!AU79","v":1074.4431443892609},{"$f":"Households!AV79","v":1084.0295802349283},{"$f":"Households!AW79","v":1093.7015485284792},{"$f":"Households!AX79","v":1103.4598124105469},{"$f":"Households!AY79","v":1113.3051418309515},{"$f":"Households!AZ79","v":1123.2383136088174},{"$f":"Households!BA79","v":1133.260111494601},{"$f":"Households!BB79","v":1143.3713262312995},{"$f":"Households!BC79","v":1153.5727556172606},{"$f":"Households!BD79","v":1163.8652045688468},{"$f":"Households!BE79","v":1174.2494851842275},{"$f":"Households!BF79","v":1184.7264168071706},{"$f":"Households!BG79","v":1195.2968260919806},{"$f":"Households!BH79","v":1205.9615470683093},{"$f":"Households!BI79","v":1216.7214212074759},{"$f":"Households!BJ79","v":1227.5772974884785},{"$f":"Households!BK79","v":1238.5300324651325},{"$f":"Households!BL79","v":1249.5804903336284},{"$f":"Households!BM79","v":1260.7295430007071},{"$f":"Households!BN79","v":1271.9780701524905},{"$f":"Households!BO79","v":1283.3269593238583},{"$f":"Households!BP79","v":1294.7771059685147},{"$f":"Households!BQ79","v":1306.3294135295109},{"$f":"Households!BR79","v":1317.9847935107682},{"$f":"Households!BS79","v":1329.7441655487819},{"$f":"Households!BT79","v":1341.6084574852721},{"$f":"Households!BU79","v":1353.5786054403798},{"$f":"Households!BV79","v":1365.6555538865541},{"$f":"Households!BW79","v":1377.8402557229856},{"$f":"Households!BX79","v":1390.1336723510212},{"$f":"Households!BY79","v":1402.5367737496163},{"$f":"Households!BZ79","v":1415.0505385522774},{"$f":"Households!CA79","v":1427.6759541241154},{"$f":"Households!CB79","v":1440.4140166396246},{"$f":"Households!CC79","v":1453.2657311615912},{"$f":"Households!CD79","v":1466.2321117199463},{"$f":"Households!CE79","v":1479.3141813922557},{"$f":"Households!CF79","v":1492.5129723842474},{"$f":"Households!CG79","v":1505.8295261109379},{"$f":"Households!CH79","v":1519.2648932795055},{"$f":"Households!CI79","v":1532.820133971436},{"$f":"Households!CJ79","v":1546.4963177267055},{"$f":"Households!CK79","v":1560.2945236279629},{"$f":"Households!CL79","v":1574.2158403855865},{"$f":"Households!CM79","v":1588.2613664238306},{"$f":"Households!CN79","v":1602.4322099671554}]
["Cardinia (S)",null,{"$f":"Households!M80","v":2432.5580073663059},{"$f":"Households!N80","v":1809.9779280328312},{"$f":"Households!O80","v":1870.304864869122},{"$f":"Households!P80","v":1932.6425109254978},{"$f":"Households!Q80","v":1997.05788355408},{"$f":"Households!R80","v":2063.620233809097},{"$f":"Households!S80","v":1581.6403761915717},{"$f":"Households!T80","v":1620.7410804214123},{"$f":"Households!U80","v":1660.8084172020608},{"$f":"Households!V80","v":1701.8662832511109},{"$f":"Households!W80","v":1743.9391660516685},{"$f":"Households!X80","v":1243.1891864409772},{"$f":"Households!Y80","v":1264.5694992831523},{"$f":"Households!Z80","v":1286.3175098034026},{"$f":"Households!AA80","v":1308.4395416501411},{"$f":"Households!AB80","v":1330.942027225683},{"$f":"Households!AC80","v":1353.8315095565122},{"$f":"Households!AD80","v":1377.1146441957171},{"$f":"Households!AE80","v":1400.7982011583863},{"$f":"Households!AF80","v":1424.8890668900094},{"$f":"Households!AG80","v":1449.3942462688028},{"$f":"Households!AH80","v":1474.3208646426319},{"$f":"Households!AI80","v":1499.6761699007584},{"$f":"Households!AJ80","v":1525.4675345813484},{"$f":"Households!AK80","v":1551.7024580150974},{"$f":"Households!AL80","v":1578.3885685059067},{"$f":"Households!AM80","v":1605.5336255489237},{"$f":"Households!AN80","v":1633.1455220866883},{"$f":"Households!AO80","v":1661.2322868042793},{"$f":"Households!AP80","v":1689.8020864637328},{"$f":"Households!AQ80","v":3467.2873906085442},{"$f":"Households!AR80","v":1778.4934840221285},{"$f":"Households!AS80","v":1809.0799365837483},{"$f":"Households!AT80","v":1840.1924136085836},{"$f":"Households!AU80","v":1871.8399616422175},{"$f":"Households!AV80","v":1904.031782812217},{"$f":"Households!AW80","v":1936.7772375040659},{"$f":"Households!AX80","v":1970.0858470826461},{"$f":"Households!AY80","v":2003.9672966608487},{"$f":"Households!AZ80","v":2038.4314379158241},{"$f":"Households!BA80","v":2073.4882919532538},{"$f":"Households!BB80","v":2109.1480522214806},{"$f":"Households!BC80","v":2145.4210874753517},{"$f":"Households!BD80","v":2182.317944790957},{"$f":"Households!BE80","v":2219.8493526327002},{"$f":"Households!BF80","v":2258.0262239725198},{"$f":"Households!BG80","v":2296.8596594632436},{"$f":"Households!BH80","v":2336.3609506661305},{"$f":"Households!BI80","v":2376.541583334365},{"$f":"Households!BJ80","v":2417.4132407524849},{"$f":"Households!BK80","v":2458.9878071337625},{"$f":"Households!BL80","v":2501.2773710754664},{"$f":"Households!BM80","v":2544.2942290741485},{"$f":"Households!BN80","v":2588.0508891010504},{"$f":"Households!BO80","v":2632.5600742387178},{"$f":"Households!BP80","v":2677.8347263809519},{"$f":"Households!BQ80","v":2723.8880099954622},{"$f":"Households!BR80","v":2770.7333159520931},{"$f":"Households!BS80","v":2818.3842654161344},{"$f":"Households!BT80","v":2866.8547138090435},{"$f":"Households!BU80","v":2916.1587548374882},{"$f":"Households!BV80","v":2966.3107245906576},{"$f":"Households!BW80","v":3017.3252057095306},{"$f":"Households!BX80","v":3069.2170316265765},{"$f":"Households!BY80","v":3122.0012908787976},{"$f":"Households!BZ80","v":3175.6933314956041},{"$f":"Households!CA80","v":3230.3087654606861},{"$f":"Households!CB80","v":3285.8634732522842},{"$f":"Households!CC80","v":3342.3736084602933},{"$f":"Households!CD80","v":3399.8556024831123},{"$f":"Households!CE80","v":3458.3261693060922},{"$f":"Households!CF80","v":3517.8023103604937},{"$f":"Households!CG80","v":3578.3013194676823},{"$f":"Households!CH80","v":3639.840787867397},{"$f":"Households!CI80","v":3702.4386093326393},{"$f":"Households!CJ80","v":3766.1129853727834},{"$f":"Households!CK80","v":3830.882430526035},{"$f":"Households!CL80","v":3896.7657777426939},{"$f":"Households!CM80","v":3963.7821838613672},{"$f":"Households!CN80","v":4031.9511351791516}]
["Casey (C)",null,{"$f":"Households!M81","v":5636.2216212065323},{"$f":"Households!N81","v":4203.8244116849091},{"$f":"Households!O81","v":4319.5916410044993},{"$f":"Households!P81","v":4438.5469319727235},{"$f":"Households!Q81","v":4560.7780791850746},{"$f":"Households!R81","v":4686.3752949729314},{"$f":"Households!S81","v":3784.6411283038105},{"$f":"Households!T81","v":3866.5545922291494},{"$f":"Households!U81","v":3950.2409628436726},{"$f":"Households!V81","v":4035.7386123265678},{"$f":"Households!W81","v":4123.0867433713865},{"$f":"Households!X81","v":3203.1417373305885},{"$f":"Households!Y81","v":3255.8599874429638},{"$f":"Households!Z81","v":3309.4458900423706},{"$f":"Households!AA81","v":3363.913725209095},{"$f":"Households!AB81","v":3419.278008048932},{"$f":"Households!AC81","v":3475.5534925619941},{"$f":"Households!AD81","v":3532.7551755735476},{"$f":"Households!AE81","v":3590.8983007312781},{"$f":"Households!AF81","v":3649.9983625673849},{"$f":"Households!AG81","v":3710.0711106275412},{"$f":"Households!AH81","v":3771.1325536679942},{"$f":"Households!AI81","v":3833.1989639221138},{"$f":"Households!AJ81","v":3896.2868814361354},{"$f":"Households!AK81","v":3960.4131184774451},{"$f":"Households!AL81","v":4025.5947640147133},{"$f":"Households!AM81","v":4091.8491882716262},{"$f":"Households!AN81","v":4159.1940473565774},{"$f":"Households!AO81","v":4227.6472879667926},{"$f":"Households!AP81","v":4297.2271521721996},{"$f":"Households!AQ81","v":8807.7934080297564},{"$f":"Households!AR81","v":4512.9134402837735},{"$f":"Households!AS81","v":4587.1882988413927},{"$f":"Households!AT81","v":4662.685594896866},{"$f":"Households!AU81","v":4739.4254476865171},{"$f":"Households!AV81","v":4817.4283075750282},{"$f":"Households!AW81","v":4896.7149615051312},{"$f":"Households!AX81","v":4977.3065385375594},{"$f":"Households!AY81","v":5059.224515480746},{"$f":"Households!AZ81","v":5142.4907226152209},{"$f":"Households!BA81","v":5227.1273495105561},{"$f":"Households!BB81","v":5313.1569509387919},{"$f":"Households!BC81","v":5400.6024528849957},{"$f":"Households!BD81","v":5489.4871586569934},{"$f":"Households!BE81","v":5579.8347550951439},{"$f":"Households!BF81","v":5671.6693188851059},{"$f":"Households!BG81","v":5765.0153229731222},{"$f":"Households!BH81","v":5859.8976430890616},{"$f":"Households!BI81","v":5956.341564374452},{"$f":"Households!BJ81","v":6054.3727881213272},{"$f":"Households!BK81","v":6154.0174386212311},{"$f":"Households!BL81","v":6255.3020701264904},{"$f":"Households!BM81","v":6358.2536739279021},{"$f":"Households!BN81","v":6462.8996855462901},{"$f":"Households!BO81","v":6569.2679920445516},{"$f":"Households!BP81","v":6677.3869394590292},{"$f":"Households!BQ81","v":6787.285340353701},{"$f":"Households!BR81","v":6898.9924814977712},{"$f":"Households!BS81","v":7012.5381316712446},{"$f":"Households!BT81","v":7127.9525495971029},{"$f":"Households!BU81","v":7245.2664920052484},{"$f":"Households!BV81","v":7364.5112218293798},{"$f":"Households!BW81","v":7485.7185165373812},{"$f":"Households!BX81","v":7608.9206765998097},{"$f":"Households!BY81","v":7734.1505340985168},{"$f":"Households!BZ81","v":7861.4414614749694},{"$f":"Households!CA81","v":7990.82738042438},{"$f":"Households!CB81","v":8122.3427709349926},{"$f":"Households!CC81","v":8256.0226804771082},{"$f":"Households!CD81","v":8391.9027333419217},{"$f":"Households!CE81","v":8530.0191401370103},{"$f":"Households!CF81","v":8670.4087074333074},{"$f":"Households!CG81","v":8813.1088475763681},{"$f":"Households!CH81","v":8958.1575886541395},{"$f":"Households!CI81","v":9105.5935846330976},{"$f":"Households!CJ81","v":9255.4561256569286},{"$f":"Households!CK81","v":9407.7851485190331},{"$f":"Households!CL81","v":9562.6212473037594},{"$f":"Households!CM81","v":9720.0056842052436},{"$f":"Households!CN81","v":9879.9804005224723}]
["Frankston (C)",null,{"$f":"Households!M82","v":638.57813860214264},{"$f":"Households!N82","v":590.67064848050904},{"$f":"Households!O82","v":595.49575566785279},{"$f":"Households!P82","v":600.3602784913528},{"$f":"Households!Q82","v":605.26453893192411},{"$f":"Households!R82","v":610.20886160064947},{"$f":"Households!S82","v":642.24644400090256},{"$f":"Households!T82","v":647.72357592186381},{"$f":"Households!U82","v":653.24741728645677},{"$f":"Households!V82","v":658.81836643675342},{"$f":"Households!W82","v":664.4368251119522},{"$f":"Households!X82","v":712.38947381454636},{"$f":"Households!Y82","v":718.84816901376325},{"$f":"Households!Z82","v":725.36542030514283},{"$f":"Households!AA82","v":731.94175857235678},{"$f":"Households!AB82","v":738.57771951222276},{"$f":"Households!AC82","v":745.27384367827835},{"$f":"Households!AD82","v":752.03067652491882},{"$f":"Households!AE82","v":758.84876845168037},{"$f":"Households!AF82","v":765.72867484823291},{"$f":"Households!AG82","v":772.67095613950005},{"$f":"Households!AH82","v":779.67617783129754},{"$f":"Households!AI82","v":786.74491055659018},{"$f":"Households!AJ82","v":793.87773012174875},{"$f":"Households!AK82","v":801.07521755349808},{"$f":"Households!AL82","v":808.33795914639268},{"$f":"Households!AM82","v":815.66654651047429},{"$f":"Households!AN82","v":823.06157661934776},{"$f":"Households!AO82","v":830.52365185903909},{"$f":"Households!AP82","v":838.05338007690807},{"$f":"Households!AQ82","v":1698.9696290723077},{"$f":"Households!AR82","v":861.05464403688529},{"$f":"Households!AS82","v":868.86117361109427},{"$f":"Households!AT82","v":876.73847906979063},{"$f":"Households!AU82","v":884.68720208418745},{"$f":"Households!AV82","v":892.70799014317163},{"$f":"Households!AW82","v":900.8014966058181},{"$f":"Households!AX82","v":908.96838075475898},{"$f":"Households!AY82","v":917.20930784986194},{"$f":"Households!AZ82","v":925.52494918236334},{"$f":"Households!BA82","v":933.91598212958343},{"$f":"Households!BB82","v":942.38309021016903},{"$f":"Households!BC82","v":950.92696313962733},{"$f":"Households!BD82","v":959.54829688669633},{"$f":"Households!BE82","v":968.2477937297881},{"$f":"Households!BF82","v":977.0261623145052},{"$f":"Households!BG82","v":985.88411771112078},{"$f":"Households!BH82","v":994.82238147285898},{"$f":"Households!BI82","v":1003.8416816947756},{"$f":"Households!BJ82","v":1012.9427530731118},{"$f":"Households!BK82","v":1022.1263369648113},{"$f":"Households!BL82","v":1031.3931814483658},{"$f":"Households!BM82","v":1040.7440413843688},{"$f":"Households!BN82","v":1050.1796784772523},{"$f":"Households!BO82","v":1059.7008613372236},{"$f":"Households!BP82","v":1069.3083655428381},{"$f":"Households!BQ82","v":1079.0029737043369},{"$f":"Households!BR82","v":1088.7854755272565},{"$f":"Households!BS82","v":1098.6566678767304},{"$f":"Households!BT82","v":1108.6173548425359},{"$f":"Households!BU82","v":1118.6683478045052},{"$f":"Households!BV82","v":1128.8104654986273},{"$f":"Households!BW82","v":1139.0445340837505},{"$f":"Households!BX82","v":1149.3713872089029},{"$f":"Households!BY82","v":1159.7918660811411},{"$f":"Households!BZ82","v":1170.3068195341075},{"$f":"Households!CA82","v":1180.9171040972251},{"$f":"Households!CB82","v":1191.6235840653462},{"$f":"Households!CC82","v":1202.4271315693113},{"$f":"Households!CD82","v":1213.3286266468349},{"$f":"Households!CE82","v":1224.3289573143375},{"$f":"Households!CF82","v":1235.4290196390866},{"$f":"Households!CG82","v":1246.6297178125387},{"$f":"Households!CH82","v":1257.9319642234987},{"$f":"Households!CI82","v":1269.3366795329166},{"$f":"Households!CJ82","v":1280.8447927485395},{"$f":"Households!CK82","v":1292.4572413008536},{"$f":"Households!CL82","v":1304.1749711192097},{"$f":"Households!CM82","v":1315.9989367089474},{"$f":"Households!CN82","v":1327.9301012294127}]
["Glen Eira (C)",null,{"$f":"Households!M83","v":1067.1780255750946},{"$f":"Households!N83","v":972.99780814074438},{"$f":"Households!O83","v":984.80601060392473},{"$f":"Households!P83","v":996.75751621149175},{"$f":"Households!Q83","v":1008.8540640758765},{"$f":"Households!R83","v":1021.097414415126},{"$f":"Households!S83","v":994.07077603436846},{"$f":"Households!T83","v":1005.6745841039992},{"$f":"Households!U83","v":1017.4138436575231},{"$f":"Households!V83","v":1029.2901358228664},{"$f":"Households!W83","v":1041.3050601844407},{"$f":"Households!X83","v":926.66895248719811},{"$f":"Households!Y83","v":936.18407333335199},{"$f":"Households!Z83","v":945.79689630329085},{"$f":"Households!AA83","v":955.50842461128923},{"$f":"Households!AB83","v":965.31967177277693},{"$f":"Households!AC83","v":975.2316617098586},{"$f":"Households!AD83","v":985.24542885859773},{"$f":"Households!AE83","v":995.36201827657351},{"$f":"Households!AF83","v":1005.5824857522202},{"$f":"Households!AG83","v":1015.9078979147853},{"$f":"Households!AH83","v":1026.3393323459059},{"$f":"Households!AI83","v":1036.8778776918225},{"$f":"Households!AJ83","v":1047.5246337770841},{"$f":"Households!AK83","v":1058.2807117194352},{"$f":"Households!AL83","v":1069.147234045613},{"$f":"Households!AM83","v":1080.1253348085083},{"$f":"Households!AN83","v":1091.2161597057093},{"$f":"Households!AO83","v":1102.4208661987723},{"$f":"Households!AP83","v":1113.7406236343122},{"$f":"Households!AQ83","v":2261.9066422428659},{"$f":"Households!AR83","v":1148.4020759065606},{"$f":"Households!AS83","v":1160.1939725735247},{"$f":"Households!AT83","v":1172.1069495049051},{"$f":"Households!AU83","v":1184.1422499638611},{"$f":"Households!AV83","v":1196.3011299794016},{"$f":"Households!AW83","v":1208.5848584776795},{"$f":"Households!AX83","v":1220.9947174142508},{"$f":"Households!AY83","v":1233.5320019078063},{"$f":"Households!AZ83","v":1246.198020375632},{"$f":"Households!BA83","v":1258.9940946697789},{"$f":"Households!BB83","v":1271.9215602152872},{"$f":"Households!BC83","v":1284.981766149449},{"$f":"Households!BD83","v":1298.1760754625975},{"$f":"Households!BE83","v":1311.5058651403888},{"$f":"Households!BF83","v":1324.9725263075379},{"$f":"Households!BG83","v":1338.5774643728655},{"$f":"Households!BH83","v":1352.3220991761264},{"$f":"Households!BI83","v":1366.2078651360389},{"$f":"Households!BJ83","v":1380.236211400188},{"$f":"Households!BK83","v":1394.4086019960196},{"$f":"Households!BL83","v":1408.7265159838716},{"$f":"Households!BM83","v":1423.1914476110433},{"$f":"Households!BN83","v":1437.8049064680818},{"$f":"Households!BO83","v":1452.5684176459436},{"$f":"Households!BP83","v":1467.4835218955013},{"$f":"Households!BQ83","v":1482.5517757882517},{"$f":"Households!BR83","v":1497.7747518784963},{"$f":"Households!BS83","v":1513.154038867815},{"$f":"Households!BT83","v":1528.6912417708481},{"$f":"Households!BU83","v":1544.3879820822804},{"$f":"Households!BV83","v":1560.2458979468793},{"$f":"Households!BW83","v":1576.2666443297348},{"$f":"Households!BX83","v":1592.4518931894272},{"$f":"Households!BY83","v":1608.803333652304},{"$f":"Households!BZ83","v":1625.3226721887404},{"$f":"Households!CA83","v":1642.0116327915457},{"$f":"Households!CB83","v":1658.871957155352},{"$f":"Households!CC83","v":1675.9054048588041},{"$f":"Households!CD83","v":1693.1137535480957},{"$f":"Households!CE83","v":1710.4987991224334},{"$f":"Households!CF83","v":1728.0623559213927},{"$f":"Households!CG83","v":1745.8062569144022},{"$f":"Households!CH83","v":1763.7323538921555},{"$f":"Households!CI83","v":1781.8425176593519},{"$f":"Households!CJ83","v":1800.1386382306009},{"$f":"Households!CK83","v":1818.6226250272375},{"$f":"Households!CL83","v":1837.2964070765738},{"$f":"Households!CM83","v":1856.1619332136252},{"$f":"Households!CN83","v":1875.2211722840366}]
["Greater Dandenong (C)",null,{"$f":"Households!M84","v":1269.093635923391},{"$f":"Households!N84","v":1179.8581435661799},{"$f":"Households!O84","v":1198.7108734801677},{"$f":"Households!P84","v":1217.8648475963655},{"$f":"Households!Q84","v":1237.3248794388655},{"$f":"Households!R84","v":1257.0958594462081},{"$f":"Households!S84","v":1174.5817448543767},{"$f":"Households!T84","v":1191.8424247586336},{"$f":"Households!U84","v":1209.3567533102032},{"$f":"Households!V84","v":1227.1284579194253},{"$f":"Households!W84","v":1245.1613207716036},{"$f":"Households!X84","v":1240.2717201356427},{"$f":"Households!Y84","v":1258.163235239881},{"$f":"Households!Z84","v":1276.3128440403852},{"$f":"Households!AA84","v":1294.7242696627836},{"$f":"Households!AB84","v":1313.4012889404039},{"$f":"Households!AC84","v":1332.3477331892173},{"$f":"Households!AD84","v":1351.5674889938055},{"$f":"Households!AE84","v":1371.0644990046603},{"$f":"Households!AF84","v":1390.8427627468154},{"$f":"Households!AG84","v":1410.9063374403559},{"$f":"Households!AH84","v":1431.2593388327696},{"$f":"Households!AI84","v":1451.905942043195},{"$f":"Households!AJ84","v":1472.8503824188192},{"$f":"Households!AK84","v":1494.0969564036823},{"$f":"Households!AL84","v":1515.6500224203228},{"$f":"Households!AM84","v":1537.5140017633566},{"$f":"Households!AN84","v":1559.6933795068253},{"$f":"Households!AO84","v":1582.1927054241314},{"$f":"Households!AP84","v":1605.0165949213078},{"$f":"Households!AQ84","v":3279.826590120847},{"$f":"Households!AR84","v":1675.4828034205093},{"$f":"Households!AS84","v":1699.652447376393},{"$f":"Households!AT84","v":1724.1707500518714},{"$f":"Households!AU84","v":1749.0427410163829},{"$f":"Households!AV84","v":1774.2735223933232},{"$f":"Households!AW84","v":1799.8682699067103},{"$f":"Households!AX84","v":1825.8322339427832},{"$f":"Households!AY84","v":1852.1707406272617},{"$f":"Households!AZ84","v":1878.8891929175406},{"$f":"Households!BA84","v":1905.9930717115458},{"$f":"Households!BB84","v":1933.4879369716327},{"$f":"Households!BC84","v":1961.3794288652753},{"$f":"Households!BD84","v":1989.6732689221608},{"$f":"Households!BE84","v":2018.3752612076933},{"$f":"Households!BF84","v":2047.4912935137945},{"$f":"Households!BG84","v":2077.0273385665496},{"$f":"Households!BH84","v":2106.9894552515689},{"$f":"Households!BI84","v":2137.3837898565944},{"$f":"Households!BJ84","v":2168.2165773328052},{"$f":"Households!BK84","v":2199.4941425732759},{"$f":"Households!BL84","v":2231.222901710953},{"$f":"Households!BM84","v":2263.4093634343662},{"$f":"Households!BN84","v":2296.0601303230942},{"$f":"Households!BO84","v":2329.1819002021111},{"$f":"Households!BP84","v":2362.7814675157606},{"$f":"Households!BQ84","v":2396.8657247213559},{"$f":"Households!BR84","v":2431.4416637034083},{"$f":"Households!BS84","v":2466.5163772075539},{"$f":"Households!BT84","v":2502.0970602958914},{"$f":"Households!BU84","v":2538.1910118225642},{"$f":"Households!BV84","v":2574.8056359311522},{"$f":"Households!BW84","v":2611.9484435738195},{"$f":"Households!BX84","v":2649.6270540515252},{"$f":"Households!BY84","v":2687.8491965775902},{"$f":"Households!BZ84","v":2726.6227118626557},{"$f":"Households!CA84","v":2765.955553723652},{"$f":"Households!CB84","v":2805.8557907148861},{"$f":"Households!CC84","v":2846.3316077836498},{"$f":"Households!CD84","v":2887.3913079488557},{"$f":"Households!CE84","v":2929.0433140046298},{"$f":"Households!CF84","v":2971.2961702477696},{"$f":"Households!CG84","v":3014.1585442307769},{"$f":"Households!CH84","v":3057.6392285397378},{"$f":"Households!CI84","v":3101.7471425979238},{"$f":"Households!CJ84","v":3146.4913344957313},{"$f":"Households!CK84","v":3191.8809828464873},{"$f":"Households!CL84","v":3237.9253986694312},{"$f":"Households!CM84","v":3284.6340272997622},{"$f":"Households!CN84","v":3332.0164503261549}]
["Kingston (C)",null,{"$f":"Households!M85","v":1020.199673238094},{"$f":"Households!N85","v":1015.0013757285888},{"$f":"Households!O85","v":1027.1694157809907},{"$f":"Households!P85","v":1039.4833287379151},{"$f":"Households!Q85","v":1051.9448633528918},{"$f":"Households!R85","v":1064.5557893440673},{"$f":"Households!S85","v":1111.4476205581195},{"$f":"Households!T85","v":1125.1939936074996},{"$f":"Households!U85","v":1139.1103816611758},{"$f":"Households!V85","v":1153.198887463077},{"$f":"Households!W85","v":1167.4616397637692},{"$f":"Households!X85","v":1029.2820197793844},{"$f":"Households!Y85","v":1040.3683260814978},{"$f":"Households!Z85","v":1051.5740420158727},{"$f":"Households!AA85","v":1062.9004537330911},{"$f":"Households!AB85","v":1074.3488612368856},{"$f":"Households!AC85","v":1085.9205785331505},{"$f":"Households!AD85","v":1097.6169337808642},{"$f":"Households!AE85","v":1109.4392694444286},{"$f":"Households!AF85","v":1121.3889424478657},{"$f":"Households!AG85","v":1133.4673243304678},{"$f":"Households!AH85","v":1145.6758014043226},{"$f":"Households!AI85","v":1158.0157749132559},{"$f":"Households!AJ85","v":1170.4886611938855},{"$f":"Households!AK85","v":1183.0958918379656},{"$f":"Households!AL85","v":1195.8389138568782},{"$f":"Households!AM85","v":1208.7191898475794},{"$f":"Households!AN85","v":1221.7381981605649},{"$f":"Households!AO85","v":1234.8974330695091},{"$f":"Households!AP85","v":1248.1984049427774},{"$f":"Households!AQ85","v":2536.8743229878237},{"$f":"Households!AR85","v":1288.9670911058602},{"$f":"Households!AS85","v":1302.8504425205028},{"$f":"Households!AT85","v":1316.8833302948042},{"$f":"Households!AU85","v":1331.0673650717217},{"$f":"Households!AV85","v":1345.4041748424061},{"$f":"Households!AW85","v":1359.8954051329019},{"$f":"Households!AX85","v":1374.5427191930503},{"$f":"Households!AY85","v":1389.3477981874275},{"$f":"Households!AZ85","v":1404.3123413883586},{"$f":"Households!BA85","v":1419.4380663707307},{"$f":"Households!BB85","v":1434.726709209408},{"$f":"Households!BC85","v":1450.180024678375},{"$f":"Households!BD85","v":1465.7997864519712},{"$f":"Households!BE85","v":1481.5877873088175},{"$f":"Households!BF85","v":1497.5458393373265},{"$f":"Households!BG85","v":1513.6757741436304},{"$f":"Households!BH85","v":1529.9794430621478},{"$f":"Households!BI85","v":1546.4587173677501},{"$f":"Households!BJ85","v":1563.1154884906209},{"$f":"Households!BK85","v":1579.951668233407},{"$f":"Households!BL85","v":1596.969188990588},{"$f":"Households!BM85","v":1614.1700039703574},{"$f":"Households!BN85","v":1631.5560874187031},{"$f":"Households!BO85","v":1649.1294348459633},{"$f":"Households!BP85","v":1666.8920632560912},{"$f":"Households!BQ85","v":1684.846011377922},{"$f":"Households!BR85","v":1702.9933398993126},{"$f":"Households!BS85","v":1721.3361317035015},{"$f":"Households!BT85","v":1739.8764921084148},{"$f":"Households!BU85","v":1758.6165491080465},{"$f":"Households!BV85","v":1777.5584536169845},{"$f":"Households!BW85","v":1796.7043797169754},{"$f":"Households!BX85","v":1816.0565249067076},{"$f":"Households!BY85","v":1835.6171103538873},{"$f":"Households!BZ85","v":1855.388381150151},{"$f":"Households!CA85","v":1875.3726065689989},{"$f":"Households!CB85","v":1895.5720803259828},{"$f":"Households!CC85","v":1915.9891208420595},{"$f":"Households!CD85","v":1936.6260715095996},{"$f":"Households!CE85","v":1957.4853009616709},{"$f":"Households!CF85","v":1978.5692033435043},{"$f":"Households!CG85","v":1999.8801985874888},{"$f":"Households!CH85","v":2021.4207326908945},{"$f":"Households!CI85","v":2043.193277996761},{"$f":"Households!CJ85","v":2065.2003334771507},{"$f":"Households!CK85","v":2087.4444250208398},{"$f":"Households!CL85","v":2109.9281057222834},{"$f":"Households!CM85","v":2132.6539561753452},{"$f":"Households!CN85","v":2155.6245847691389}]
["Knox (C)",null,{"$f":"Households!M86","v":576.21833302860978},{"$f":"Households!N86","v":706.67995717007216},{"$f":"Households!O86","v":713.16283472385294},{"$f":"Households!P86","v":719.70518432141944},{"$f":"Households!Q86","v":726.30755154216786},{"$f":"Households!R86","v":732.9704869703346},{"$f":"Households!S86","v":748.46296201733821},{"$f":"Households!T86","v":755.41053721552998},{"$f":"Households!U86","v":762.42260298111432},{"$f":"Households!V86","v":769.49975794510465},{"$f":"Households!W86","v":776.64260629511773},{"$f":"Households!X86","v":819.25018046074911},{"$f":"Households!Y86","v":827.19825803053027},{"$f":"Households!Z86","v":835.22344505783622},{"$f":"Households!AA86","v":843.32648963170868},{"$f":"Households!AB86","v":851.50814709862971},{"$f":"Households!AC86","v":859.76918013322575},{"$f":"Households!AD86","v":868.11035880948111},{"$f":"Households!AE86","v":876.53246067224245},{"$f":"Households!AF86","v":885.0362708098146},{"$f":"Households!AG86","v":893.62258192724767},{"$f":"Households!AH86","v":902.2921944200607},{"$f":"Households!AI86","v":911.04591644885659},{"$f":"Households!AJ86","v":919.88456401495569},{"$f":"Households!AK86","v":928.80896103601117},{"$f":"Households!AL86","v":937.81993942315239},{"$f":"Households!AM86","v":946.91833915840107},{"$f":"Households!AN86","v":956.10500837294239},{"$f":"Households!AO86","v":965.38080342628746},{"$f":"Households!AP86","v":974.74658898603593},{"$f":"Households!AQ86","v":1977.9548704284571},{"$f":"Households!AR86","v":1003.3926616991994},{"$f":"Households!AS86","v":1013.1272249599897},{"$f":"Households!AT86","v":1022.9562295352116},{"$f":"Households!AU86","v":1032.8805916613601},{"$f":"Households!AV86","v":1042.9012364638947},{"$f":"Households!AW86","v":1053.0190980435509},{"$f":"Households!AX86","v":1063.2351195633419},{"$f":"Households!AY86","v":1073.5502533365434},{"$f":"Households!AZ86","v":1083.9654609154422},{"$f":"Households!BA86","v":1094.4817131809396},{"$f":"Households!BB86","v":1105.0999904331184},{"$f":"Households!BC86","v":1115.8212824825932},{"$f":"Households!BD86","v":1126.646588742733},{"$f":"Households!BE86","v":1137.5769183228476},{"$f":"Households!BF86","v":1148.6132901223755},{"$f":"Households!BG86","v":1159.7567329256344},{"$f":"Households!BH86","v":1171.0082854979555},{"$f":"Households!BI86","v":1182.368996682344},{"$f":"Households!BJ86","v":1193.8399254972865},{"$f":"Households!BK86","v":1205.4221412355764},{"$f":"Households!BL86","v":1217.1167235638313},{"$f":"Households!BM86","v":1228.9247626232282},{"$f":"Households!BN86","v":1240.8473591312395},{"$f":"Households!BO86","v":1252.8856244838607},{"$f":"Households!BP86","v":1265.0406808596927},{"$f":"Households!BQ86","v":1277.3136613242423},{"$f":"Households!BR86","v":1289.7057099355879},{"$f":"Households!BS86","v":1302.2179818510631},{"$f":"Households!BT86","v":1314.851643434904},{"$f":"Households!BU86","v":1327.607872367189},{"$f":"Households!BV86","v":1340.4878577531417},{"$f":"Households!BW86","v":1353.4928002345077},{"$f":"Households!BX86","v":1366.6239121010949},{"$f":"Households!BY86","v":1379.8824174040055},{"$f":"Households!BZ86","v":1393.2695520696143},{"$f":"Households!CA86","v":1406.7865640148739},{"$f":"Households!CB86","v":1420.4347132634757},{"$f":"Households!CC86","v":1434.2152720635204},{"$f":"Households!CD86","v":1448.129525005952},{"$f":"Households!CE86","v":1462.1787691444661},{"$f":"Households!CF86","v":1476.364314116181},{"$f":"Households!CG86","v":1490.6874822638747},{"$f":"Households!CH86","v":1505.1496087594205},{"$f":"Households!CI86","v":1519.7520417278065},{"$f":"Households!CJ86","v":1534.4961423731002},{"$f":"Households!CK86","v":1549.3832851055231},{"$f":"Households!CL86","v":1564.4148576690895},{"$f":"Households!CM86","v":1579.5922612712639},{"$f":"Households!CN86","v":1594.9169107136549}]
["Manningham (C)",null,{"$f":"Households!M87","v":715.82348086009006},{"$f":"Households!N87","v":561.40171556070527},{"$f":"Households!O87","v":566.81021784797849},{"$f":"Households!P87","v":572.27082524318575},{"$f":"Households!Q87","v":577.78403972304659},{"$f":"Households!R87","v":583.3503681003458},{"$f":"Households!S87","v":521.29304290003347},{"$f":"Households!T87","v":525.73806299525131},{"$f":"Households!U87","v":530.22098538735918},{"$f":"Households!V87","v":534.74213326580866},{"$f":"Households!W87","v":539.30183257602948},{"$f":"Households!X87","v":500.8202615342816},{"$f":"Households!Y87","v":504.75246691639768},{"$f":"Households!Z87","v":508.7155461275961},{"$f":"Households!AA87","v":512.70974157473574},{"$f":"Households!AB87","v":516.73529756778407},{"$f":"Households!AC87","v":520.7924603351421},{"$f":"Households!AD87","v":524.88147803824177},{"$f":"Households!AE87","v":529.00260078711653},{"$f":"Households!AF87","v":533.15608065551714},{"$f":"Households!AG87","v":537.34217169629119},{"$f":"Households!AH87","v":541.56112995709918},{"$f":"Households!AI87","v":545.81321349587597},{"$f":"Households!AJ87","v":550.09868239674688},{"$f":"Households!AK87","v":554.41779878589841},{"$f":"Households!AL87","v":558.77082684758534},{"$f":"Households!AM87","v":563.15803284032881},{"$f":"Households!AN87","v":567.57968511320541},{"$f":"Households!AO87","v":572.03605412218167},{"$f":"Households!AP87","v":576.52741244682147},{"$f":"Households!AQ87","v":1166.6702328852443},{"$f":"Households!AR87","v":590.21418131284918},{"$f":"Households!AS87","v":594.84826575111583},{"$f":"Households!AT87","v":599.51873484308635},{"$f":"Households!AU87","v":604.22587426392056},{"$f":"Households!AV87","v":608.9699719318287},{"$f":"Households!AW87","v":613.75131802562464},{"$f":"Households!AX87","v":618.57020500237923},{"$f":"Households!AY87","v":623.42692761553735},{"$f":"Households!AZ87","v":628.32178293271681},{"$f":"Households!BA87","v":633.25507035397095},{"$f":"Households!BB87","v":638.22709163016953},{"$f":"Households!BC87","v":643.23815088129777},{"$f":"Households!BD87","v":648.28855461521016},{"$f":"Households!BE87","v":653.37861174628415},{"$f":"Households!BF87","v":658.50863361438314},{"$f":"Households!BG87","v":663.67893400385583},{"$f":"Households!BH87","v":668.88982916269015},{"$f":"Households!BI87","v":674.14163782197647},{"$f":"Households!BJ87","v":679.43468121529804},{"$f":"Households!BK87","v":684.76928309833966},{"$f":"Households!BL87","v":690.14576976895114},{"$f":"Households!BM87","v":695.56447008671967},{"$f":"Households!BN87","v":701.02571549337881},{"$f":"Households!BO87","v":706.52984003303573},{"$f":"Households!BP87","v":712.07718037243467},{"$f":"Households!BQ87","v":717.66807582172987},{"$f":"Households!BR87","v":723.30286835522202},{"$f":"Households!BS87","v":728.98190263214929},{"$f":"Households!BT87","v":734.70552601795134},{"$f":"Households!BU87","v":740.47408860526048},{"$f":"Households!BV87","v":746.28794323569309},{"$f":"Households!BW87","v":752.14744552098637},{"$f":"Households!BX87","v":758.05295386517173},{"$f":"Households!BY87","v":764.0048294861117},{"$f":"Households!BZ87","v":770.00343643794622},{"$f":"Households!CA87","v":776.04914163310241},{"$f":"Households!CB87","v":782.14231486488643},{"$f":"Households!CC87","v":788.28332882998438},{"$f":"Households!CD87","v":794.47255915134519},{"$f":"Households!CE87","v":800.71038440120901},{"$f":"Households!CF87","v":806.99718612404467},{"$f":"Households!CG87","v":813.33334886016019},{"$f":"Households!CH87","v":819.71926016900397},{"$f":"Households!CI87","v":826.15531065299365},{"$f":"Households!CJ87","v":832.6418939814539},{"$f":"Households!CK87","v":839.1794069144089},{"$f":"Households!CL87","v":845.76824932726595},{"$f":"Households!CM87","v":852.40882423500807},{"$f":"Households!CN87","v":859.10153781680492}]
["Maroondah (C)",null,{"$f":"Households!M88","v":698.37614221882177},{"$f":"Households!N88","v":638.18466497416921},{"$f":"Households!O88","v":645.19431590471868},{"$f":"Households!P88","v":652.28095898009087},{"$f":"Households!Q88","v":659.44543986161989},{"$f":"Households!R88","v":666.68861349903636},{"$f":"Households!S88","v":670.66014691848977},{"$f":"Households!T88","v":677.98987427267093},{"$f":"Households!U88","v":685.39970911992896},{"$f":"Households!V88","v":692.89052696494764},{"$f":"Households!W88","v":700.46321288087711},{"$f":"Households!X88","v":726.65960690514112},{"$f":"Households!Y88","v":734.80930123419057},{"$f":"Households!Z88","v":743.0503967048935},{"$f":"Households!AA88","v":751.383918407073},{"$f":"Households!AB88","v":759.81090292720182},{"$f":"Households!AC88","v":768.33239847738696},{"$f":"Households!AD88","v":776.94946502571838},{"$f":"Households!AE88","v":785.66317442821855},{"$f":"Households!AF88","v":794.47461056191059},{"$f":"Households!AG88","v":803.3848694599601},{"$f":"Households!AH88","v":812.39505944778102},{"$f":"Households!AI88","v":821.50630128097873},{"$f":"Households!AJ88","v":830.71972828481194},{"$f":"Households!AK88","v":840.03648649497336},{"$f":"Households!AL88","v":849.45773480043499},{"$f":"Households!AM88","v":858.98464508731195},{"$f":"Households!AN88","v":868.6184023847909},{"$f":"Households!AO88","v":878.36020501255007},{"$f":"Households!AP88","v":888.21126472970718},{"$f":"Households!AQ88","v":1806.4188774578452},{"$f":"Households!AR88","v":918.43230877841961},{"$f":"Households!AS88","v":928.73278854549426},{"$f":"Households!AT88","v":939.1487911250988},{"$f":"Households!AU88","v":949.68161213844724},{"$f":"Households!AV88","v":960.33256173759582},{"$f":"Households!AW88","v":971.10296476814256},{"$f":"Households!AX88","v":981.99416093440959},{"$f":"Households!AY88","v":993.00750496575347},{"$f":"Households!AZ88","v":1004.1443667852946},{"$f":"Households!BA88","v":1015.4061316801381},{"$f":"Households!BB88","v":1026.7942004738507},{"$f":"Households!BC88","v":1038.3099897005923},{"$f":"Households!BD88","v":1049.9549317814126},{"$f":"Households!BE88","v":1061.7304752022756},{"$f":"Households!BF88","v":1073.6380846944121},{"$f":"Households!BG88","v":1085.6792414164374},{"$f":"Households!BH88","v":1097.8554431384873},{"$f":"Households!BI88","v":1110.1682044287372},{"$f":"Households!BJ88","v":1122.6190568415404},{"$f":"Households!BK88","v":1135.2095491082036},{"$f":"Households!BL88","v":1147.9412473293996},{"$f":"Households!BM88","v":1160.815735170163},{"$f":"Households!BN88","v":1173.8346140566318},{"$f":"Households!BO88","v":1186.9995033755731},{"$f":"Households!BP88","v":1200.3120406754533},{"$f":"Households!BQ88","v":1213.7738818704747},{"$f":"Households!BR88","v":1227.3867014463212},{"$f":"Households!BS88","v":1241.1521926684509},{"$f":"Households!BT88","v":1255.0720677928803},{"$f":"Households!BU88","v":1269.1480582790064},{"$f":"Households!BV88","v":1283.381915005084},{"$f":"Households!BW88","v":1297.7754084858498},{"$f":"Households!BX88","v":1312.3303290930016},{"$f":"Households!BY88","v":1327.0484872776979},{"$f":"Households!BZ88","v":1341.9317137958387},{"$f":"Households!CA88","v":1356.9818599357859},{"$f":"Households!CB88","v":1372.2007977485555},{"$f":"Households!CC88","v":1387.5904202808852},{"$f":"Households!CD88","v":1403.1526418103749},{"$f":"Households!CE88","v":1418.889398084084},{"$f":"Households!CF88","v":1434.802646558619},{"$f":"Households!CG88","v":1450.8943666444429},{"$f":"Households!CH88","v":1467.1665599513835},{"$f":"Households!CI88","v":1483.621250537999},{"$f":"Households!CJ88","v":1500.2604851632714},{"$f":"Households!CK88","v":1517.0863335410286},{"$f":"Households!CL88","v":1534.1008885977499},{"$f":"Households!CM88","v":1551.3062667324084},{"$f":"Households!CN88","v":1568.7046080802429}]
["Melbourne (C)",null,{"$f":"Households!M89","v":7860.4176793020451},{"$f":"Households!N89","v":4358.6858536138607},{"$f":"Households!O89","v":4513.5099491554683},{"$f":"Households!P89","v":4673.8335235228988},{"$f":"Households!Q89","v":4839.8519227134602},{"$f":"Households!R89","v":5011.7674315744807},{"$f":"Households!S89","v":3268.4352753558414},{"$f":"Households!T89","v":3341.551375004492},{"$f":"Households!U89","v":3416.3031087035233},{"$f":"Households!V89","v":3492.7270661884177},{"$f":"Households!W89","v":3570.8606557204439},{"$f":"Households!X89","v":2581.9685096752801},{"$f":"Households!Y89","v":2622.8186782097328},{"$f":"Households!Z89","v":2664.315150625589},{"$f":"Households!AA89","v":2706.4681523078616},{"$f":"Households!AB89","v":2749.2880704209892},{"$f":"Households!AC89","v":2792.7854564679728},{"$f":"Households!AD89","v":2836.9710288905844},{"$f":"Households!AE89","v":2881.8556757107945},{"$f":"Households!AF89","v":2927.4504572131991},{"$f":"Households!AG89","v":2973.7666086709942},{"$f":"Households!AH89","v":3020.815543114295},{"$f":"Households!AI89","v":3068.6088541424033},{"$f":"Households!AJ89","v":3117.1583187808574},{"$f":"Households!AK89","v":3166.4759003833024},{"$f":"Households!AL89","v":3216.5737515794899},{"$f":"Households!AM89","v":3267.4642172699532},{"$f":"Households!AN89","v":3319.1598376679758},{"$f":"Households!AO89","v":3371.6733513895451},{"$f":"Households!AP89","v":3425.0176985926009},{"$f":"Households!AQ89","v":7013.4577051312954},{"$f":"Households!AR89","v":3590.1682331118718},{"$f":"Households!AS89","v":3646.9694593236636},{"$f":"Households!AT89","v":3704.669356318991},{"$f":"Households!AU89","v":3763.2821422623601},{"$f":"Households!AV89","v":3822.82226026844},{"$f":"Households!AW89","v":3883.3043819612794},{"$f":"Households!AX89","v":3944.7434110893664},{"$f":"Households!AY89","v":4007.1544871982769},{"$f":"Households!AZ89","v":4070.5529893613493},{"$f":"Households!BA89","v":4134.9545399692943},{"$f":"Households!BB89","v":4200.3750085796128},{"$f":"Households!BC89","v":4266.8305158274234},{"$f":"Households!BD89","v":4334.3374373976985},{"$f":"Households!BE89","v":4402.9124080603651},{"$f":"Households!BF89","v":4472.572325769579},{"$f":"Households!BG89","v":4543.3343558274646},{"$f":"Households!BH89","v":4615.2159351142109},{"$f":"Households!BI89","v":4688.2347763842336},{"$f":"Households!BJ89","v":4762.4088726316768},{"$f":"Households!BK89","v":4837.7565015233267},{"$f":"Households!BL89","v":4914.2962299031933},{"$f":"Households!BM89","v":4992.0469183672321},{"$f":"Households!BN89","v":5071.0277259112627},{"$f":"Households!BO89","v":5151.2581146515004},{"$f":"Households!BP89","v":5232.7578546210134},{"$f":"Households!BQ89","v":5315.5470286408672},{"$f":"Households!BR89","v":5399.6460372689762},{"$f":"Households!BS89","v":5485.0756038274267},{"$f":"Households!BT89","v":5571.8567795082345},{"$f":"Households!BU89","v":5660.0109485618304},{"$f":"Households!BV89","v":5749.5598335652903},{"$f":"Households!BW89","v":5840.5255007761298},{"$f":"Households!BX89","v":5932.9303655692638},{"$f":"Households!BY89","v":6026.7971979604044},{"$f":"Households!BZ89","v":6122.1491282169882},{"$f":"Households!CA89","v":6219.0096525587433},{"$f":"Households!CB89","v":6317.4026389458595},{"$f":"Households!CC89","v":6417.3523329618183},{"$f":"Households!CD89","v":6518.8833637874632},{"$f":"Households!CE89","v":6622.0207502695848},{"$f":"Households!CF89","v":6726.7899070867861},{"$f":"Households!CG89","v":6833.2166510113166},{"$f":"Households!CH89","v":6941.3272072711698},{"$f":"Households!CI89","v":7051.1482160120067},{"$f":"Households!CJ89","v":7162.7067388623982},{"$f":"Households!CK89","v":7276.0302656013664},{"$f":"Households!CL89","v":7391.1467209330294},{"$f":"Households!CM89","v":7508.0844713671104},{"$f":"Households!CN89","v":7626.8723322093138}]
["Monash (C)",null,{"$f":"Households!M90","v":1424.4638917546035},{"$f":"Households!N90","v":1239.5667782730197},{"$f":"Households!O90","v":1255.5220226282836},{"$f":"Households!P90","v":1271.6826369780574},{"$f":"Households!Q90","v":1288.0512647688374},{"$f":"Households!R90","v":1304.6305834725354},{"$f":"Households!S90","v":1225.0956167563527},{"$f":"Households!T90","v":1239.7150838404377},{"$f":"Households!U90","v":1254.5090098114997},{"$f":"Households!V90","v":1269.4794765446568},{"$f":"Households!W90","v":1284.6285907585298},{"$f":"Households!X90","v":1285.3059503475015},{"$f":"Households!Y90","v":1300.4710444378725},{"$f":"Households!Z90","v":1315.8150687500529},{"$f":"Households!AA90","v":1331.3401344495833},{"$f":"Households!AB90","v":1347.0483776113542},{"$f":"Households!AC90","v":1362.9419595131185},{"$f":"Households!AD90","v":1379.0230669336052},{"$f":"Households!AE90","v":1395.2939124527074},{"$f":"Households!AF90","v":1411.7567347561089},{"$f":"Households!AG90","v":1428.4137989434385},{"$f":"Households!AH90","v":1445.2673968398267},{"$f":"Households!AI90","v":1462.3198473111734},{"$f":"Households!AJ90","v":1479.5734965833071},{"$f":"Households!AK90","v":1497.0307185648016},{"$f":"Households!AL90","v":1514.6939151734114},{"$f":"Households!AM90","v":1532.5655166668184},{"$f":"Households!AN90","v":1550.647981976872},{"$f":"Households!AO90","v":1568.9437990477927},{"$f":"Households!AP90","v":1587.4554851787616},{"$f":"Households!AQ90","v":3231.3222700434017},{"$f":"Households!AR90","v":1644.311378547045},{"$f":"Households!AS90","v":1663.7123132138368},{"$f":"Households!AT90","v":1683.3421560247371},{"$f":"Households!AU90","v":1703.2036078257624},{"$f":"Households!AV90","v":1723.2994013298594},{"$f":"Households!AW90","v":1743.6323014926347},{"$f":"Households!AX90","v":1764.2051058930156},{"$f":"Households!AY90","v":1785.0206451180748},{"$f":"Households!AZ90","v":1806.0817831522763},{"$f":"Households!BA90","v":1827.391417771978},{"$f":"Households!BB90","v":1848.9524809437535},{"$f":"Households!BC90","v":1870.7679392278624},{"$f":"Households!BD90","v":1892.8407941866135},{"$f":"Households!BE90","v":1915.1740827972208},{"$f":"Households!BF90","v":1937.7708778693705},{"$f":"Households!BG90","v":1960.6342884686092},{"$f":"Households!BH90","v":1983.7674603437335},{"$f":"Households!BI90","v":2007.1735763594552},{"$f":"Households!BJ90","v":2030.8558569347588},{"$f":"Households!BK90","v":2054.8175604856078},{"$f":"Households!BL90","v":2079.0619838736529},{"$f":"Households!BM90","v":2103.5924628593057},{"$f":"Households!BN90","v":2128.4123725613244},{"$f":"Households!BO90","v":2153.5251279206932},{"$f":"Households!BP90","v":2178.9341841707574},{"$f":"Households!BQ90","v":2204.6430373124895},{"$f":"Households!BR90","v":2230.6552245956482},{"$f":"Households!BS90","v":2256.9743250051761},{"$f":"Households!BT90","v":2283.6039597540366},{"$f":"Households!BU90","v":2310.5477927810716},{"$f":"Households!BV90","v":2337.8095312554069},{"$f":"Households!BW90","v":2365.392926086206},{"$f":"Households!BX90","v":2393.3017724392266},{"$f":"Households!BY90","v":2421.5399102583979},{"$f":"Households!BZ90","v":2450.1112247946367},{"$f":"Households!CA90","v":2479.0196471401941},{"$f":"Households!CB90","v":2508.2691547695867},{"$f":"Households!CC90","v":2537.863772086821},{"$f":"Households!CD90","v":2567.8075709790937},{"$f":"Households!CE90","v":2598.1046713771502},{"$f":"Households!CF90","v":2628.759241821972},{"$f":"Households!CG90","v":2659.7755000384859},{"$f":"Households!CH90","v":2691.1577135157495},{"$f":"Households!CI90","v":2722.9102000940838},{"$f":"Households!CJ90","v":2755.0373285594469},{"$f":"Households!CK90","v":2787.5435192441364},{"$f":"Households!CL90","v":2820.4332446351327},{"$f":"Households!CM90","v":2853.7110299896449},{"$f":"Households!CN90","v":2887.3814539574232}]
["Nillumbik (S)",null,{"$f":"Households!M91","v":100.50710271896605},{"$f":"Households!N91","v":115.06872532176203},{"$f":"Households!O91","v":115.55417968086203},{"$f":"Households!P91","v":116.04168208503324},{"$f":"Households!Q91","v":116.53124117459811},{"$f":"Households!R91","v":117.02286562634526},{"$f":"Households!S91","v":136.30132113272794},{"$f":"Households!T91","v":136.96826939942184},{"$f":"Households!U91","v":137.63848117073849},{"$f":"Households!V91","v":138.31197241561313},{"$f":"Households!W91","v":138.98875918112026},{"$f":"Households!X91","v":157.21016733418764},{"$f":"Households!Y91","v":158.07603946568634},{"$f":"Households!Z91","v":158.94668059247124},{"$f":"Households!AA91","v":159.82211698093124},{"$f":"Households!AB91","v":160.70237504209217},{"$f":"Households!AC91","v":161.58748133242625},{"$f":"Households!AD91","v":162.47746255472975},{"$f":"Households!AE91","v":163.37234555885516},{"$f":"Households!AF91","v":164.27215734250694},{"$f":"Households!AG91","v":165.17692505209652},{"$f":"Households!AH91","v":166.08667598356988},{"$f":"Households!AI91","v":167.00143758318518},{"$f":"Households!AJ91","v":167.92123744839046},{"$f":"Households!AK91","v":168.84610332862849},{"$f":"Households!AL91","v":169.77606312614625},{"$f":"Households!AM91","v":170.71114489693628},{"$f":"Households!AN91","v":171.6513768514551},{"$f":"Households!AO91","v":172.59678735555099},{"$f":"Households!AP91","v":173.5474049313143},{"$f":"Households!AQ91","v":349.96763443043619},{"$f":"Households!AR91","v":176.43078767104726},{"$f":"Households!AS91","v":177.40252190918909},{"$f":"Households!AT91","v":178.37960820318131},{"$f":"Households!AU91","v":179.36207603073399},{"$f":"Households!AV91","v":180.34995503191567},{"$f":"Households!AW91","v":181.34327501005373},{"$f":"Households!AX91","v":182.34206593259387},{"$f":"Households!AY91","v":183.34635793207781},{"$f":"Households!AZ91","v":184.35618130696639},{"$f":"Households!BA91","v":185.37156652263093},{"$f":"Households!BB91","v":186.39254421221267},{"$f":"Households!BC91","v":187.41914517758687},{"$f":"Households!BD91","v":188.45140039026774},{"$f":"Households!BE91","v":189.48934099237704},{"$f":"Households!BF91","v":190.53299829751722},{"$f":"Households!BG91","v":191.58240379178551},{"$f":"Households!BH91","v":192.63758913471065},{"$f":"Households!BI91","v":193.69858616013516},{"$f":"Households!BJ91","v":194.7654268773158},{"$f":"Households!BK91","v":195.83814347174211},{"$f":"Households!BL91","v":196.91676830620054},{"$f":"Households!BM91","v":198.00133392172484},{"$f":"Households!BN91","v":199.0918730385556},{"$f":"Households!BO91","v":200.18841855716346},{"$f":"Households!BP91","v":201.29100355924948},{"$f":"Households!BQ91","v":202.39966130866833},{"$f":"Households!BR91","v":203.51442525251969},{"$f":"Households!BS91","v":204.63532902211682},{"$f":"Households!BT91","v":205.76240643399615},{"$f":"Households!BU91","v":206.89569149094496},{"$f":"Households!BV91","v":208.03521838304277},{"$f":"Households!BW91","v":209.18102148867547},{"$f":"Households!BX91","v":210.33313537555387},{"$f":"Households!BY91","v":211.4915948018097},{"$f":"Households!BZ91","v":212.65643471700514},{"$f":"Households!CA91","v":213.82769026317419},{"$f":"Households!CB91","v":215.00539677593224},{"$f":"Households!CC91","v":216.18958978548562},{"$f":"Households!CD91","v":217.38030501778212},{"$f":"Households!CE91","v":218.57757839546139},{"$f":"Households!CF91","v":219.78144603909186},{"$f":"Households!CG91","v":220.99194426812119},{"$f":"Households!CH91","v":222.20910960210858},{"$f":"Households!CI91","v":223.43297876165252},{"$f":"Households!CJ91","v":224.6635886697004},{"$f":"Households!CK91","v":225.90097645249443},{"$f":"Households!CL91","v":227.14517944080399},{"$f":"Households!CM91","v":228.39623517093969},{"$f":"Households!CN91","v":229.65418138604946}]
["Port Phillip (C)",null,{"$f":"Households!M92","v":1607.4441602020397},{"$f":"Households!N92","v":1272.9637093712699},{"$f":"Households!O92","v":1294.7423240005264},{"$f":"Households!P92","v":1316.8935400257669},{"$f":"Households!Q92","v":1339.4237321316814},{"$f":"Households!R92","v":1362.3393840647077},{"$f":"Households!S92","v":1307.5634205762708},{"$f":"Households!T92","v":1328.6733663880841},{"$f":"Households!U92","v":1350.1241215290975},{"$f":"Households!V92","v":1371.9211881923366},{"$f":"Households!W92","v":1394.0701574011109},{"$f":"Households!X92","v":1946.1643629558966},{"$f":"Households!Y92","v":1989.3305104168212},{"$f":"Households!Z92","v":2033.4540879499946},{"$f":"Households!AA92","v":2078.5563314635692},{"$f":"Households!AB92","v":2124.6589478805618},{"$f":"Households!AC92","v":2171.7841255860731},{"$f":"Households!AD92","v":2219.9545451060112},{"$f":"Households!AE92","v":2269.1933900230288},{"$f":"Households!AF92","v":2319.5243581342402},{"$f":"Households!AG92","v":2370.9716728565945},{"$f":"Households!AH92","v":2423.5600948852152},{"$f":"Households!AI92","v":2477.3149341102908},{"$f":"Households!AJ92","v":2532.262061798192},{"$f":"Households!AK92","v":2588.4279230429456},{"$f":"Households!AL92","v":2645.8395494938304},{"$f":"Households!AM92","v":2704.5245723651351},{"$f":"Households!AN92","v":2764.5112357346807},{"$f":"Households!AO92","v":2825.8284101370919},{"$f":"Households!AP92","v":2888.5056064587843},{"$f":"Households!AQ92","v":5970.6343858388027},{"$f":"Households!AR92","v":3085.0023415565556},{"$f":"Households!AS92","v":3153.428045226683},{"$f":"Households!AT92","v":3223.3714388056796},{"$f":"Households!AU92","v":3294.8661848288248},{"$f":"Households!AV92","v":3367.9466924701956},{"$f":"Households!AW92","v":3442.6481341032559},{"$f":"Households!AX92","v":3519.0064622287719},{"$f":"Households!AY92","v":3597.0584267780578},{"$f":"Households!AZ92","v":3676.8415928001195},{"$f":"Households!BA92","v":3758.3943585409361},{"$f":"Households!BB92","v":3841.755973924046},{"$f":"Households!BC92","v":3926.966559440807},{"$f":"Households!BD92","v":4014.0671254595873},{"$f":"Households!BE92","v":4103.0995919632915},{"$f":"Households!BF92","v":4194.1068087250824},{"$f":"Households!BG92","v":4287.1325759307365},{"$f":"Households!BH92","v":4382.2216652593124},{"$f":"Households!BI92","v":4479.4198414306447},{"$f":"Households!BJ92","v":4578.773884231523},{"$f":"Households!BK92","v":4680.3316110294691},{"$f":"Households!BL92","v":4784.1418997868095},{"$f":"Households!BM92","v":4890.2547125847195},{"$f":"Households!BN92","v":4998.7211196687713},{"$f":"Households!BO92","v":5109.5933240287195},{"$f":"Households!BP92","v":5222.9246865223467},{"$f":"Households!BQ92","v":5338.7697515575201},{"$f":"Households!BR92","v":5457.1842733431913},{"$f":"Households!BS92","v":5578.2252427229469},{"$f":"Households!BT92","v":5701.9509146040218},{"$f":"Households!BU92","v":5828.4208359938566},{"$f":"Households!BV92","v":5957.6958746595119},{"$f":"Households!BW92","v":6089.8382484219837},{"$f":"Households!BX92","v":6224.9115551006253},{"$f":"Households!BY92","v":6362.9808031216817},{"$f":"Households!BZ92","v":6504.1124428057083},{"$f":"Households!CA92","v":6648.3743983489694},{"$f":"Households!CB92","v":6795.8361005140978},{"$f":"Households!CC92","v":6946.5685200459848},{"$f":"Households!CD92","v":7100.6442018287271},{"$f":"Households!CE92","v":7258.137299800328},{"$f":"Households!CF92","v":7419.1236126411968},{"$f":"Households!CG92","v":7583.6806202558364},{"$f":"Households!CH92","v":7751.8875210611441},{"$f":"Households!CI92","v":7923.8252701042802},{"$f":"Households!CJ92","v":8099.5766180246574},{"$f":"Households!CK92","v":8279.2261508799857},{"$f":"Households!CL92","v":8462.860330856638},{"$f":"Households!CM92","v":8650.5675378820888},{"$f":"Households!CN92","v":8842.4381121607439}]
["South Gippsland (S)",null,{"$f":"Households!M93","v":121.66111041416798},{"$f":"Households!N93","v":125.51700457222751},{"$f":"Households!O93","v":126.50936343741705},{"$f":"Households!P93","v":127.50956806119575},{"$f":"Households!Q93","v":128.5176804734806},{"$f":"Households!R93","v":129.53376319459039},{"$f":"Households!S93","v":129.03360664231514},{"$f":"Households!T93","v":130.04185790257907},{"$f":"Households!U93","v":131.0579875026815},{"$f":"Households!V93","v":132.08205700291273},{"$f":"Households!W93","v":133.11412844458346},{"$f":"Households!X93","v":123.98555380973903},{"$f":"Households!Y93","v":124.88092605375869},{"$f":"Households!Z93","v":125.78276430475171},{"$f":"Households!AA93","v":126.69111525753578},{"$f":"Households!AB93","v":127.60602594413513},{"$f":"Households!AC93","v":128.52754373625885},{"$f":"Households!AD93","v":129.45571634763837},{"$f":"Households!AE93","v":130.39059183664676},{"$f":"Households!AF93","v":131.33221860867479},{"$f":"Households!AG93","v":132.28064541869344},{"$f":"Households!AH93","v":133.2359213737459},{"$f":"Households!AI93","v":134.19809593553737},{"$f":"Households!AJ93","v":135.16721892292026},{"$f":"Households!AK93","v":136.14334051456581},{"$f":"Households!AL93","v":137.12651125146976},{"$f":"Households!AM93","v":138.11678203964675},{"$f":"Households!AN93","v":139.11420415272914},{"$f":"Households!AO93","v":140.1188292345978},{"$f":"Households!AP93","v":141.13070930212643},{"$f":"Households!AQ93","v":285.3263410902855},{"$f":"Households!AR93","v":144.21040523810689},{"$f":"Households!AS93","v":145.25183297046851},{"$f":"Households!AT93","v":146.30078146195046},{"$f":"Households!AU93","v":147.35730502437491},{"$f":"Households!AV93","v":148.42145836174495},{"$f":"Households!AW93","v":149.49329657314138},{"$f":"Households!AX93","v":150.57287515552616},{"$f":"Households!AY93","v":151.6602500066665},{"$f":"Households!AZ93","v":152.75547742796334},{"$f":"Households!BA93","v":153.85861412742543},{"$f":"Households!BB93","v":154.96971722258877},{"$f":"Households!BC93","v":156.08884424345433},{"$f":"Households!BD93","v":157.21605313547116},{"$f":"Households!BE93","v":158.35140226258318},{"$f":"Households!BF93","v":159.49495041017599},{"$f":"Households!BG93","v":160.6467567881873},{"$f":"Households!BH93","v":161.8068810341174},{"$f":"Households!BI93","v":162.97538321617139},{"$f":"Households!BJ93","v":164.15232383632429},{"$f":"Households!BK93","v":165.33776383346321},{"$f":"Households!BL93","v":166.53176458658891},{"$f":"Households!BM93","v":167.73438791791705},{"$f":"Households!BN93","v":168.94569609611608},{"$f":"Households!BO93","v":170.16575183957684},{"$f":"Households!BP93","v":171.39461831956851},{"$f":"Households!BQ93","v":172.63235916358553},{"$f":"Households!BR93","v":173.87903845859},{"$f":"Households!BS93","v":175.13472075438585},{"$f":"Households!BT93","v":176.3994710668976},{"$f":"Households!BU93","v":177.67335488158551},{"$f":"Households!BV93","v":178.95643815681069},{"$f":"Households!BW93","v":180.24878732726847},{"$f":"Households!BX93","v":181.550469307399},{"$f":"Households!BY93","v":182.86155149490241},{"$f":"Households!BZ93","v":184.18210177415403},{"$f":"Households!CA93","v":185.51218851980138},{"$f":"Households!CB93","v":186.85188060024757},{"$f":"Households!CC93","v":188.20124738123013},{"$f":"Households!CD93","v":189.56035872941811},{"$f":"Households!CE93","v":190.92928501605911},{"$f":"Households!CF93","v":192.30809712053997},{"$f":"Households!CG93","v":193.69686643415662},{"$f":"Households!CH93","v":195.09566486372478},{"$f":"Households!CI93","v":196.5045648353771},{"$f":"Households!CJ93","v":197.92363929825569},{"$f":"Households!CK93","v":199.35296172831841},{"$f":"Households!CL93","v":200.79260613211318},{"$f":"Households!CM93","v":202.2426470506889},{"$f":"Households!CN93","v":203.70315956333798}]
["Stonnington (C)",null,{"$f":"Households!M94","v":1224.600961768565},{"$f":"Households!N94","v":871.36080214521826},{"$f":"Households!O94","v":882.42582119522922},{"$f":"Households!P94","v":893.63134994715438},{"$f":"Households!Q94","v":904.97917267056437},{"$f":"Households!R94","v":916.47109629256192},{"$f":"Households!S94","v":928.98700340279902},{"$f":"Households!T94","v":940.79495221831166},{"$f":"Households!U94","v":952.75298672363533},{"$f":"Households!V94","v":964.86301459255628},{"$f":"Households!W94","v":977.12696774638971},{"$f":"Households!X94","v":1000.4799238029591},{"$f":"Households!Y94","v":1013.3370894827931},{"$f":"Households!Z94","v":1026.3594825753353},{"$f":"Households!AA94","v":1039.5492264178301},{"$f":"Households!AB94","v":1052.9084716344369},{"$f":"Households!AC94","v":1066.4393964870033},{"$f":"Households!AD94","v":1080.1442072302234},{"$f":"Households!AE94","v":1094.0251384713702},{"$f":"Households!AF94","v":1108.0844535346114},{"$f":"Households!AG94","v":1122.3244448301557},{"$f":"Households!AH94","v":1136.7474342279093},{"$f":"Households!AI94","v":1151.3557734361893},{"$f":"Households!AJ94","v":1166.1518443850036},{"$f":"Households!AK94","v":1181.1380596146773},{"$f":"Households!AL94","v":1196.3168626690094},{"$f":"Households!AM94","v":1211.6907284937406},{"$f":"Households!AN94","v":1227.2621638402052},{"$f":"Households!AO94","v":1243.0337076739488},{"$f":"Households!AP94","v":1259.0079315888397},{"$f":"Households!AQ94","v":2566.7623119256496},{"$f":"Households!AR94","v":1308.1728980249136},{"$f":"Households!AS94","v":1324.9842255564181},{"$f":"Households!AT94","v":1342.0115954274479},{"$f":"Households!AU94","v":1359.2577839976548},{"$f":"Households!AV94","v":1376.7256033058402},{"$f":"Households!AW94","v":1394.4179015281225},{"$f":"Households!AX94","v":1412.3375634426884},{"$f":"Households!AY94","v":1430.4875108998567},{"$f":"Households!AZ94","v":1448.8707032988168},{"$f":"Households!BA94","v":1467.4901380697884},{"$f":"Households!BB94","v":1486.3488511631294},{"$f":"Households!BC94","v":1505.4499175441197},{"$f":"Households!BD94","v":1524.7964516944012},{"$f":"Households!BE94","v":1544.3916081198404},{"$f":"Households!BF94","v":1564.2385818648108},{"$f":"Households!BG94","v":1584.3406090332974},{"$f":"Households!BH94","v":1604.700967316312},{"$f":"Households!BI94","v":1625.3229765265496},{"$f":"Households!BJ94","v":1646.2099991396644},{"$f":"Households!BK94","v":1667.3654408423135},{"$f":"Households!BL94","v":1688.7927510877671},{"$f":"Households!BM94","v":1710.4954236582489},{"$f":"Households!BN94","v":1732.4769972343893},{"$f":"Households!BO94","v":1754.741055972554},{"$f":"Households!BP94","v":1777.2912300890312},{"$f":"Households!BQ94","v":1800.1311964520391},{"$f":"Households!BR94","v":1823.2646791812294},{"$f":"Households!BS94","v":1846.6954502548469},{"$f":"Households!BT94","v":1870.4273301248759},{"$f":"Households!BU94","v":1894.4641883399163},{"$f":"Households!BV94","v":1918.8099441761915},{"$f":"Households!BW94","v":1943.4685672763226},{"$f":"Households!BX94","v":1968.4440782970705},{"$f":"Households!BY94","v":1993.7405495644816},{"$f":"Households!BZ94","v":2019.3621057381279},{"$f":"Households!CA94","v":2045.3129244834963},{"$f":"Households!CB94","v":2071.5972371533826},{"$f":"Households!CC94","v":2098.2193294775061},{"$f":"Households!CD94","v":2125.1835422616205},{"$f":"Households!CE94","v":2152.4942720951731},{"$f":"Households!CF94","v":2180.1559720680598},{"$f":"Households!CG94","v":2208.1731524970382},{"$f":"Households!CH94","v":2236.550381660636},{"$f":"Households!CI94","v":2265.2922865446453},{"$f":"Households!CJ94","v":2294.4035535959119},{"$f":"Households!CK94","v":2323.8889294871478},{"$f":"Households!CL94","v":2353.7532218902197},{"$f":"Households!CM94","v":2384.0013002606429},{"$f":"Households!CN94","v":2414.6380966311335}]
["Whitehorse (C)",null,{"$f":"Households!M95","v":1340.2403271283583},{"$f":"Households!N95","v":1157.4222484954771},{"$f":"Households!O95","v":1172.6052347165023},{"$f":"Households!P95","v":1187.9873903166299},{"$f":"Households!Q95","v":1203.5713279861739},{"$f":"Households!R95","v":1219.3596946886282},{"$f":"Households!S95","v":1162.958664257385},{"$f":"Households!T95","v":1177.3202399316142},{"$f":"Households!U95","v":1191.8591691629081},{"$f":"Households!V95","v":1206.5776421207192},{"$f":"Households!W95","v":1221.4778760212903},{"$f":"Households!X95","v":1168.1083248762661},{"$f":"Households!Y95","v":1181.7349438880592},{"$f":"Households!Z95","v":1195.520524822914},{"$f":"Households!AA95","v":1209.4669220581636},{"$f":"Households!AB95","v":1223.576011603418},{"$f":"Households!AC95","v":1237.8496913529671},{"$f":"Households!AD95","v":1252.289881341112},{"$f":"Households!AE95","v":1266.8985240002803},{"$f":"Households!AF95","v":1281.6775844225958},{"$f":"Households!AG95","v":1296.6290506238875},{"$f":"Households!AH95","v":1311.7549338114441},{"$f":"Households!AI95","v":1327.0572686541891},{"$f":"Households!AJ95","v":1342.5381135567295},{"$f":"Households!AK95","v":1358.1995509359695},{"$f":"Households!AL95","v":1374.0436875014166},{"$f":"Households!AM95","v":1390.0726545384532},{"$f":"Households!AN95","v":1406.2886081950819},{"$f":"Households!AO95","v":1422.6937297718723},{"$f":"Households!AP95","v":1439.2902260155643},{"$f":"Households!AQ95","v":2929.1466279210181},{"$f":"Households!AR95","v":1490.250418163796},{"$f":"Households!AS95","v":1507.6349999255763},{"$f":"Households!AT95","v":1525.222382290176},{"$f":"Households!AU95","v":1543.0149310367779},{"$f":"Households!AV95","v":1561.0150395429446},{"$f":"Households!AW95","v":1579.2251291061257},{"$f":"Households!AX95","v":1597.647649269602},{"$f":"Households!AY95","v":1616.2850781518864},{"$f":"Households!AZ95","v":1635.1399227800357},{"$f":"Households!BA95","v":1654.2147194270547},{"$f":"Households!BB95","v":1673.5120339528112},{"$f":"Households!BC95","v":1693.0344621494442},{"$f":"Households!BD95","v":1712.7846300904093},{"$f":"Households!BE95","v":1732.7651944836543},{"$f":"Households!BF95","v":1752.9788430291228},{"$f":"Households!BG95","v":1773.4282947802785},{"$f":"Households!BH95","v":1794.1163005097405},{"$f":"Households!BI95","v":1815.0456430794657},{"$f":"Households!BJ95","v":1836.2191378149328},{"$f":"Households!BK95","v":1857.6396328840019},{"$f":"Households!BL95","v":1879.3100096799208},{"$f":"Households!BM95","v":1901.2331832088785},{"$f":"Households!BN95","v":1923.412102482398},{"$f":"Households!BO95","v":1945.8497509136942},{"$f":"Households!BP95","v":1968.5491467189786},{"$f":"Households!BQ95","v":1991.5133433239316},{"$f":"Households!BR95","v":2014.7454297737568},{"$f":"Households!BS95","v":2038.248531149402},{"$f":"Households!BT95","v":2062.0258089872368},{"$f":"Households!BU95","v":2086.0804617049143},{"$f":"Households!BV95","v":2110.415725031271},{"$f":"Households!BW95","v":2135.0348724417199},{"$f":"Households!BX95","v":2159.9412155984464},{"$f":"Households!BY95","v":2185.1381047961331},{"$f":"Households!BZ95","v":2210.6289294123781},{"$f":"Households!CA95","v":2236.4171183637154},{"$f":"Households!CB95","v":2262.5061405668021},{"$f":"Households!CC95","v":2288.8995054052793},{"$f":"Households!CD95","v":2315.6007632015098},{"$f":"Households!CE95","v":2342.6135056942439},{"$f":"Households!CF95","v":2369.9413665220345},{"$f":"Households!CG95","v":2397.5880217115264},{"$f":"Households!CH95","v":2425.5571901724397},{"$f":"Households!CI95","v":2453.8526341975376},{"$f":"Households!CJ95","v":2482.4781599687049},{"$f":"Households!CK95","v":2511.437618069067},{"$f":"Households!CL95","v":2540.7349040009285},{"$f":"Households!CM95","v":2570.3739587096788},{"$f":"Households!CN95","v":2600.3587691140274}]
["Yarra Ranges (S)",null,{"$f":"Households!M96","v":588.77620934837068},{"$f":"Households!N96","v":634.64479781873706},{"$f":"Households!O96","v":640.04087412875379},{"$f":"Households!P96","v":645.48283065346368},{"$f":"Households!Q96","v":650.97105748995091},{"$f":"Households!R96","v":656.50594805219043},{"$f":"Households!S96","v":685.86673971562959},{"$f":"Households!T96","v":691.90777251065811},{"$f":"Households!U96","v":698.00201400516926},{"$f":"Households!V96","v":704.14993285503442},{"$f":"Households!W96","v":710.35200184405767},{"$f":"Households!X96","v":707.58174818786756},{"$f":"Households!Y96","v":713.73553744473611},{"$f":"Households!Z96","v":719.94284577882354},{"$f":"Households!AA96","v":726.2041386418241},{"$f":"Households!AB96","v":732.51988553340198},{"$f":"Households!AC96","v":738.89056003654332},{"$f":"Households!AD96","v":745.3166398527901},{"$f":"Households!AE96","v":751.79860683825609},{"$f":"Households!AF96","v":758.33694703987931},{"$f":"Households!AG96","v":764.93215073152896},{"$f":"Households!AH96","v":771.5847124510401},{"$f":"Households!AI96","v":778.29513103715726},{"$f":"Households!AJ96","v":785.06390966707841},{"$f":"Households!AK96","v":791.89155589403526},{"$f":"Households!AL96","v":798.77858168540115},{"$f":"Households!AM96","v":805.7255034611444},{"$f":"Households!AN96","v":812.7328421324637},{"$f":"Households!AO96","v":819.80112314087819},{"$f":"Households!AP96","v":826.9308764976995},{"$f":"Households!AQ96","v":1675.4995802125995},{"$f":"Households!AR96","v":848.69434015405204},{"$f":"Households!AS96","v":856.07537580992357},{"$f":"Households!AT96","v":863.52060381957926},{"$f":"Households!AU96","v":871.03058245946158},{"$f":"Households!AV96","v":878.60587486136865},{"$f":"Households!AW96","v":886.24704905445469},{"$f":"Households!AX96","v":893.95467800810366},{"$f":"Households!AY96","v":901.72933967474819},{"$f":"Households!AZ96","v":909.57161703327074},{"$f":"Households!BA96","v":917.48209813256835},{"$f":"Households!BB96","v":925.46137613589963},{"$f":"Households!BC96","v":933.51004936510435},{"$f":"Households!BD96","v":941.62872134567806},{"$f":"Households!BE96","v":949.81800085184659},{"$f":"Households!BF96","v":958.07850195240462},{"$f":"Households!BG96","v":966.4108440565542},{"$f":"Households!BH96","v":974.81565196056181},{"$f":"Households!BI96","v":983.2935558943791},{"$f":"Households!BJ96","v":991.84519156915485},{"$f":"Households!BK96","v":1000.4712002246924},{"$f":"Households!BL96","v":1009.1722286776167},{"$f":"Households!BM96","v":1017.9489293699044},{"$f":"Households!BN96","v":1026.8019604177789},{"$f":"Households!BO96","v":1035.7319856610047},{"$f":"Households!BP96","v":1044.7396747127459},{"$f":"Households!BQ96","v":1053.8257030097338},{"$f":"Households!BR96","v":1062.9907518629989},{"$f":"Households!BS96","v":1072.2355085087474},{"$f":"Households!BT96","v":1081.5606661601487},{"$f":"Households!BU96","v":1090.9669240591393},{"$f":"Households!BV96","v":1100.4549875289558},{"$f":"Households!BW96","v":1110.0255680269402},{"$f":"Households!BX96","v":1119.6793831979448},{"$f":"Households!BY96","v":1129.4171569281207},{"$f":"Households!BZ96","v":1139.2396193992863},{"$f":"Households!CA96","v":1149.1475071434434},{"$f":"Households!CB96","v":1159.1415630983283},{"$f":"Households!CC96","v":1169.2225366628008},{"$f":"Households!CD96","v":1179.3911837532869},{"$f":"Households!CE96","v":1189.648266860404},{"$f":"Households!CF96","v":1199.9945551060409},{"$f":"Households!CG96","v":1210.4308243009473},{"$f":"Households!CH96","v":1220.9578570033409},{"$f":"Households!CI96","v":1231.5764425770612},{"$f":"Households!CJ96","v":1242.2873772510502},{"$f":"Households!CK96","v":1253.0914641790332},{"$f":"Households!CL96","v":1263.9895134997278},{"$f":"Households!CM96","v":1274.982342397434},{"$f":"Households!CN96","v":1286.0707751636073}]
[]
["LGA S curves","Constant","NPV coefficient",null,null,null,null,null,null,null,null,null,"Relative U","P(connect)","Average Decision Points","Economic Connect Estimate","Economic Stay Estimate"]
["Bass Coast (S)",{"$f":"'RES S curve-disconnect'!B68","v":0.86},{"$f":"'RES S curve-disconnect'!C68","v":-2.3999999999999998E-3},null,null,null,null,null,null,null,"Against Gas",{"$f":"-L69*Scenarios!J52","v":2789.0900052656825},{"$f":"$B68+$C68*L68","v":-5.8338160126376373},{"$f":"EXP(M68)/(1+EXP(M68))","v":2.9183449414988414E-3},{"$f":"O72","v":13818.8},{"$f":"N68*O68","v":40.328025077584186},{"$f":"O68-P68","v":13778.471974922415}]
["Bayside (C)",{"$f":"B68","v":0.86},{"$f":"C68","v":-2.3999999999999998E-3},null,null,null,null,null,null,null,"For Gas (status quo)",{"$f":"C44","v":-2789.0900052656825},{"$f":"$B69+$C69*L69","v":7.5538160126376379},{"$f":"EXP(M69)/(1+EXP(M69))","v":0.99947616823358454},{"$f":"O72","v":13818.8},{"$f":"N69*O69","v":13811.561273586258},{"$f":"O69-P69","v":7.2387264137414604}]
["Boroondara (C)",{"$f":"B69","v":0.86},{"$f":"C69","v":-2.3999999999999998E-3}]
["Cardinia (S)",0.86,-2.3999999999999998E-3,null,null,null,null,null,null,null,null,null,null,null,"Decision points",null,null,"Solve for 0"]
["Casey (C)",0.86,-2.3999999999999998E-3,null,null,null,null,null,null,null,"Relative U where less than 1 person doesn't connect on economics (Constant)",null,13.3,null,{"$f":"SUM(C157:C176)","v":13818.8},null,null,{"$f":"C182","v":-23.799999999999272},"<- find closest value to 0 using lowest relative U"]
["Frankston (C)",0.86,-2.3999999999999998E-3]
["Glen Eira (C)",0.86,-2.3999999999999998E-3,null,null,null,null,null,null,null,"Current Economics (where households don't switch)",{"$f":"L69","v":-2789.0900052656825},{"$f":"M72/L74","v":-4.7685804240415941E-3}]
["Greater Dandenong (C)",0.86,-2.3999999999999998E-3,null,null,null,null,null,null,null,"Difference in NPV to reach almost 100% disconnections",{"$f":"-L68+L69","v":-5578.180010531365}]
["Kingston (C)",0.86,-2.3999999999999998E-3,null,null,null,null,null,null,null,"Difference in RU to reach almost 100% disconnections",{"$f":"2*M72","v":26.6}]
["Knox (C)",0.86,-2.3999999999999998E-3,null,null,null,null,null,null,null,"Implied NPV Coefficient",{"$f":"L76/L75","v":-4.7685804240415941E-3}]
["Manningham (C)",0.86,-2.3999999999999998E-3,null,null,null,null,null,null,null,"Intercept",{"$f":"M72-L77*L74","v":0}]
["Maroondah (C)",0.86,-2.3999999999999998E-3]
["Melbourne (C)",0.86,-2.3999999999999998E-3,null,null,null,null,null,null,null,"NPV per year of appliance life",{"$f":"L68/15","v":185.93933368437882}]
["Monash (C)",0.86,-2.3999999999999998E-3]
["Nillumbik (S)",0.86,-2.3999999999999998E-3]
["Port Phillip (C)",0.86,-2.3999999999999998E-3]
["South Gippsland (S)",0.86,-2.3999999999999998E-3]
["Stonnington (C)",0.86,-2.3999999999999998E-3]
["Whitehorse (C)",0.86,-2.3999999999999998E-3]
["Yarra Ranges (S)",0.86,-2.3999999999999998E-3]
["WANPV",0.86,-2.3999999999999998E-3]
["LGA S curves (Relative utility)",2020,{"$f":"B89+1","v":2021},2022,2023,2024,2025,2026,2027,2028,2029,2030,2031,2032,2033,2034,2035,2036,2037,2038,2039,2040,2041,2042,2043,2044,2045,2046,2047,2048,2049,2050,2051,2052,2053,2054,2055,2056,2057,2058,2059,2060,2061,2062,2063,2064,2065,2066,2067,2068,2069,2070,2071,2072,2073,2074,2075,2076,2077,2078,2079,2080,2081,2082,2083,2084,{"$f":"BN89+1","v":2085},2086,2087,2088,2089,2090,2091,2092,2093,2094,2095,2096,2097,2098,2099,2100]
["Bass Coast (S)",null,{"$f":"$B68+$C68*C24","v":7.3363082975786282},{"$f":"$B68+$C68*D24","v":7.9287257211164972},6.5196636546109898,6.3572695353576973,7.8085106028407134,7.9197702327021222,7.442225733529126,8.228160467889726,7.1225045332526093,7.4871395253511901,8.1233487315339605,8.1501118176108402,7.4784892406929888,6.9427905476764193,6.153258779606654,5.690504677452437,4.9649520742377327,4.5791005347608582,4.1261743220107379,3.7994925267019872,3.5368555401576272,3.0008013962019082,2.4563738301664801,2.0747330131870441,1.6901761487685811,1.3747288024165607,1.0677001530540684,0.7831919202386658,0.4818353692794678,0.10790396455236595,-0.12700943182487456,-0.44892259097221754,-0.74617233945986816,-1.0127962208010133,-1.2961352610399044,-0.29416318188681834,-0.17481983956960223,-0.4490810881477284,-0.77884382036537791,-1.0801264777933346,-1.4079094425782075,-1.7658316512605738,-2.1669622727685902,-2.6133742902025672,-3.1325966917047192,-3.7220374993859608,-4.3982221959417869,-5.1654502941493012,-6.0521012946381063,-7.0611926747390665,-8.2267458611316773,-9.5830534547543191,-11.19948732855571,-12.744852215463411,-14.152648268147752,-15.594473012257115,-17.231572373907607,-19.171750988528643,-21.986357208967483,-26.092344886198983,-32.128135403571903,3.3517172736367762,3.3438668001522394,3.3414600361491589,3.328204234871746,{"$f":"$B68+$C68*BP24","v":3.3203919857746893},3.3125923216622337,3.3102360543997187,3.2970304391958085,3.2892680674571744,3.2815179739276576,3.2792109723998859,3.2660543199975813,3.2583406100303218,3.2506388791327794,3.2483799429764191,3.2352710605518729,3.2276048270237863,3.2199502808701297,3.3320311928969697]
["Bayside (C)",null,{"$f":"$B69+$C69*C25","v":7.0896091794285301},8.5609508292947378,7.2017436490049951,6.7628310974957202,9.7951826854175259,9.8666772603837192,8.6211142309475672,9.3772629296278325,7.1665361516814317,8.1929722166655381,10.034793133851002,10.227082831066213,8.6387477591958941,7.378385945915328,5.4634889610985606,4.3868047102924299,2.6615396249926442,1.7346876452559346,0.67219200326874429,-4.707201070049094E-2,-0.60333328185280333,-1.8890629945792665,-3.1904482072751672,-4.0650164886482791,-4.9399670212992897,-5.6346669603120221,-6.303467219410356,-6.9153997575216222,-7.5600014930336554,-8.399633130685519,-8.9915031406411376,-9.82386237206806,-10.572535513326839,-11.248103689070017,-11.965333234870661,-9.4812098762555728,-9.1565472697392103,-9.8356994416210561,-10.666236999506513,-11.433450121967933,-12.259513292051437,-13.166509581966384,-14.184290259879781,-15.322743914070035,-16.639844817943612,-18.142230224733552,-19.869103775982392,-21.837246425058574,-24.108217217028557,-26.704368216708335,-29.711018461784178,-33.223862727998785,-37.412998679838111,-41.454580588183759,-45.148734576470389,-48.928511829692951,-53.206235338659916,-58.284219354742483,-65.642134273013625,-76.418648600462546,-92.323262448211111,-0.3938181377055,-0.41395616062463902,-0.42441285874064583,-0.45414829783452515,-0.47420274865018819,-0.49422967688029551,-0.50457594918532134,-0.53420162718761499,-0.5541469774987019,-0.57406546170495798,-0.58430394238648253,-0.61382247711102933,-0.63366132846112067,-0.65347395401955921,-0.66360721238815457,-0.69302115718148805,-0.71275604705385331,-0.73246533568462546,-0.43185416016294742]
["Boroondara (C)",null,{"$f":"$B70+$C70*C26","v":6.732092124385443},8.1356408273102829,6.8608593568988452,6.4460782811006929,9.3082906043871922,9.3779043164650826,8.1926892381727061,8.9235265531216559,6.8137506108309411,7.7931069546438128,9.5428908681709519,9.7264719734733447,8.2113876115160966,7.0103352000243913,5.1853966332890975,4.1596937385687482,2.5125808541138892,1.6348955026420686,0.62407468616223616,-6.1196368249725075E-2,-0.59151251219197387,-1.8149991476196718,-3.0540648794428917,-3.8868739963104644,-4.7208263545420257,-5.3836418272352784,-6.0222561163706736,-6.6065823610088765,-7.2232327910518892,-8.0251236733933986,-8.5909123748635814,-9.3843767240360378,-10.100103153711215,-10.745511511416968,-11.430797918194704,-9.0515665309629156,-8.7436410006948346,-9.3941264309193429,-10.188126673007652,-10.920698791017825,-11.710368102200812,-12.576886949797746,-13.549118319740282,-14.636024786822254,-15.894230983293713,-17.328695784471059,-18.977155589308946,-20.855027288915451,-23.022210865481775,-25.498522624251986,-28.365572928354002,-31.713871114669658,-35.706530768490566,-39.554805660694988,-43.071012445418397,-46.669090724781242,-50.742599454229563,-55.577330460318919,-62.583679868185328,-72.840978133259696,-87.972941348097223,-0.35186877383870707,-0.37103436658567424,-0.38051977997820263,-0.40928507307175821,-0.42837050992599901,-0.44742954959036252,-0.45680905212287126,-0.48546907258393734,-0.50444987106341166,-0.52340490266600204,-0.53268102352989966,-0.56123828482045657,-0.58011694275705417,-0.59897044859836746,-0.60814565466085002,-0.63660260831224924,-0.65538156199831243,-0.67413596322791192,-0.38861492006402976]
["Cardinia (S)",null,9.420894116171544,10.31261441189206,7.8583121687137121,7.5882228917312631,10.5735134147554,10.635646201251381,9.8710560114738968,10.743432056456538,9.0878624252870583,9.6511730345264048,10.731700451668805,10.791259487813599,9.7626417183657921,8.9322014630093456,7.7009855641940508,6.9832996200233097,5.8715865015936455,5.2412652675432474,4.5323991584020806,4.036469681176305,3.6400937652405738,2.7939497979768486,1.9392338496581609,1.3474334375935972,0.75655472742174013,0.27640155010503198,-0.18706419237215333,-0.61545887196747506,-1.0623451998527442,-1.6294036597978234,-1.9907898459642248,-2.5014839691973885,-2.9585943167803999,-3.3715300482123536,-3.8098547292489857,-2.2975133392593423,-2.0964541070957585,-2.5097768052052052,-3.0168738321858086,-3.4862723723273441,-3.990696771210954,-4.5451190621506692,-5.1674138966070675,-5.864156960040261,-6.6694398222275666,-7.5888315614572557,-8.6459920763397875,-9.851853583852531,-11.242862722185546,-12.834367022533725,-14.678421235918975,-16.834532017953968,-19.406031140906393,-21.89105286450269,-24.163821170155497,-26.488863172594318,-29.11866444584896,-32.241369496999873,-36.765171104928363,-43.395552928342653,-53.188059024972453,3.2414228093874948,3.2291190620046484,3.2222625910071354,3.2045606304558731,3.1923057507344628,3.180066965687574,3.1732750683318049,3.155637295137232,3.1434462188814187,3.1312708557879021,3.124542001237153,3.1069668940482162,3.0948381093328128,3.0827246656339278,3.0760573606368609,3.0585434354509471,3.0464754674637704,3.0344224774798354,3.2201216642795267]
["Casey (C)",null,8.2249383996129719,9.5047878764456364,7.7130431966939446,7.3277685658375749,10.359669194627536,10.448277899037327,9.3600883929854781,10.184693504656554,8.1389540178129671,9.0084870258830509,10.598688792039122,10.74327384396344,9.3361923845028141,8.2135868368671563,6.5200878186664042,{"$f":"$B72+$C72*R28","v":5.5576791599763924},4.0323307487094286,3.1963806304895694,2.2457008504672782,1.5961971422922172,1.0890462036711104,-5.6531476838349248E-2,-1.2150571256084648,-2.0004553594061205,-2.7853669676417319,-3.4125457017511347,-4.016580002433213,-4.5709573877313607,-5.1526724202448113,-5.9050840099392614,-6.42012226177979,-7.1464388529333247,-7.7978915867554965,-8.3861183883110755,-9.0105527511311969,-6.8529052716292602,-6.5681620925098541,-7.1580195842388852,-7.8806983496849154,-8.5490768446698997,-9.2679105220985498,-10.057640742952229,-10.943949892357208,-11.935885323438969,-13.082811229744552,-14.391753119015158,-15.896592321506333,-17.612495225254481,-19.592082145427348,-21.856202705566602,-24.479057785588161,-27.544796778388015,-31.200981978657182,-34.731766936516735,-37.960165993380137,-41.263057544377929,-44.999791976061772,-49.436336921160915,-55.864010997536667,-65.281973787198382,-79.187302134537504,1.0442179265788767,1.026635840457256,1.0170949767553958,0.99154416681927815,0.97403428874880826,0.95654819097865806,0.94710273812065049,0.92164676511005339,0.90423115361338058,0.88683875560940062,0.87748643923166492,0.85212304291492336,0.83479945180309745,0.81749852133040868,0.80823712306404327,0.78296409885072127,0.765730337224794,0.74851869698952311,1.0117982055328143]
["Frankston (C)",null,10.152943119929763,11.196290381547248,8.1734554185492083,7.8484214284838734,11.761496321076024,11.763844853065697,10.846768510114545,11.702243150585618,9.7643612703999114,10.431486694334529,11.756441161150347,11.836933908875064,10.622156437912437,9.6373030502025863,8.1732091719862598,7.3222601456842975,6.0069026612982119,5.2493990041781284,4.4073732373657055,3.8251350185455109,3.360400439291249,2.3510007591226278,1.3329463868955309,0.63171600209187251,-6.6513809732899776E-2,-0.63249181363197893,-1.1773582590808078,-1.6804257030134018,-2.2028874784009242,-2.8711661239221526,-3.3005063018533147,-3.9126898361525382,-4.4557253408467004,-4.9472950523096921,-5.4689228154821015,-3.681787879360479,-3.4366393822415389,-3.9246971181835328,-4.5271286258834378,-5.0869010460426045,-5.6862886109313866,-6.3463628792837943,-7.0875848325648336,-7.9189535284328363,-8.8780925464848384,-9.9749632820572032,-11.237065407790155,-12.678900890907871,-14.341258139269712,-16.246120777183599,-18.45524917822932,-21.041720326489997,-24.127143381163421,-27.117796873334239,-29.856002040216534,-32.65630117292794,-35.820285486918117,-39.579338815253003,-45.02294532906695,-53.011876904080282,-64.826175155175534,2.8785952432765862,2.8639847863779329,2.8548228499815935,2.8348166624354891,2.820258788440265,2.8057182361875035,2.7966257930704077,2.776688689965185,2.76219949408488,2.7477272161176947,2.7387026459377823,2.7188330168867179,2.7044108986274349,2.6900053042826486,2.6810470261457429,2.6612432999623254,2.6468866977842818,2.6325462351082853,2.8579463417920232]
["Glen Eira (C)",null,6.6686392471662845,8.0363527732744728,6.8143858550808138,6.4125959610086376,9.1383095459979184,9.2153825987979747,8.0662937706652595,8.8046508956244658,6.7531279319326991,7.7062326006429318,9.3963423816370213,9.5732627073769372,8.1005887962696335,6.9344494733879083,5.1630261011900638,4.1672419895371196,2.5667379172811624,1.7175408902220042,0.73663116450166188,7.0170408454279465E-2,-0.44556935457451108,-1.6319753573981659,-2.8339332349104902,-3.642406514780967,-4.4525081980203609,-5.0965582288487168,-5.7174478306525245,-6.2856363201794059,-6.8859271336544499,-7.6653710619101085,-8.2150512428239733,-8.9844570871898899,-9.6798147041147455,-10.306582707392359,-10.972121888059419,-8.6580344431247322,-8.3605615879731445,-8.9933309393341823,-9.7647317494271686,-10.475880402353056,-11.243038298291424,-12.084511813625586,-13.028550813243541,-14.083543382030451,-15.305276846260298,-16.697668828953923,-18.297545463830687,-20.119477389193733,-22.222335317810849,-24.624362388152502,-27.404868127187143,-30.651144859972973,-34.521973294370589,-38.250382721872136,-41.656252731178505,-45.141666216966918,-49.08854104359547,-53.77241862814104,-60.560717760500843,-70.495955930648762,-85.148629347641574,-0.20050210524859835,-0.21912154413695084,-0.22806109513618689,-0.25628081596707031,-0.27482096936156208,-0.29333501304836396,-0.30216980577168517,-0.33028540128500972,-0.34872205837809978,-0.36713323086238125,-0.37586577358952755,-0.40387973644509689,-0.42221537437536549,-0.44052613737255231,-0.4491588764932638,-0.47707363785197299,-0.49531067264768869,-0.51352342714903998,-0.23741459456963476]
["Greater Dandenong (C)",null,9.091365047186784,9.892483284540738,7.7909787797833543,7.5538215036035634,9.9337473052375795,10.04626271744819,9.3747066434173689,10.275826507909239,8.7888435164258247,9.289039823748487,10.218032915112042,10.263688046818267,9.347529422190636,8.6105236227809598,7.5207227257811535,6.8835684863872819,5.8955041207508678,5.3418709277275278,4.7133107266955543,4.2688956056332881,3.9133202828862044,3.166193603630413,2.4105405520466272,1.8847262694290738,1.3585559112000074,0.93012913668389674,0.51568332080589241,0.13218887402899904,-0.26923772113011013,-0.77509519566188867,-1.0948231160403297,-1.5432846212486022,-1.9477108410268511,-2.3124353716346295,-2.6996841025975247,-1.3559602035525509,-1.1819802535068944,-1.5494828290533396,-1.9981216645432247,-2.412105132154692,-2.8582986863600652,-3.3479322794328081,-3.8972938408547635,-4.5114723093459217,-5.2223923544340956,-6.0329283523122221,-6.9643844867794016,-8.025502920634306,-9.2500666009554475,-10.649351791446689,-12.269458807358141,-14.161568856389644,-16.417800464186296,-18.592641739239955,-20.579889122232299,-22.613385223782998,-24.915489117048441,-27.647817815596007,-31.607341124384369,-37.404272777488615,-45.95642670823328,3.5555966724984231,3.5446832959208243,3.5392166263089111,3.5229038998861033,3.5120376891889604,3.5011870102056175,3.4957826580866902,3.4795318714268775,3.4687272251190127,3.4579377374926024,3.4525942060248296,3.4364038716222445,3.4256593114749121,3.4149295461950446,3.4096453755281018,3.3935140426345551,3.3828281269441485,3.3721566512946124,3.5334774834352811]
["Kingston (C)",null,7.7220998473483133,8.8649816845990621,7.3407670672804892,7.0050753672821822,9.5015649593136509,9.5968293897589625,8.6449423942374288,9.4749458097079131,7.6638066842468842,8.4363523418355424,9.8059484156163901,9.9287081039471907,8.684898848488622,7.6969461235484182,6.208163166711592,5.3615430182458166,4.014768731056078,3.2893147744735405,2.4545148576665112,1.8791977548335397,1.4300260950725234,0.42701362877374088,-0.58885024411136888,-1.2796039090898415,-1.9717029291803292,-2.5254063881232036,-3.059895300703813,-3.550710392400108,-4.0680448037783199,-4.7332112640429038,-5.187654306839681,-5.8234919720065825,-6.3983357423443463,-6.9164512393064363,-7.466613914522493,-5.5538020203145528,-5.3083096565101648,-5.8315316345151986,-6.4692186542097492,-7.0570262252244405,-7.6911997066973496,-8.3867450504691732,-9.1670399098917166,-10.038972121229685,-11.048758432453536,-12.199510269096516,-13.521687261144315,-15.027274719868842,-16.765023922037383,-18.749870936180066,-21.047367769315887,-23.729571026209808,-26.927755661309167,-30.007929664178722,-32.821536535207187,-35.70088516256714,-38.96156693031876,-42.831018057472406,-48.439004843885705,-56.646306493117748,{"$f":"$B76+$C76*BK32","v":-68.749945670504772},1.4339738110612723,1.4184772347904704,1.4110204925764731,1.3875524229015126,1.3721239109611418,1.3567178122453294,1.3493509983810823,1.3259723112789847,1.3106326395412395,1.2953148420429161,1.2880357937747147,1.2647443399896199,1.2494913726111061,1.2342597538145019,1.2270663618698849,1.2038600452888824,1.1886916992329954,1.1735441890951062,1.4014708988699551]
["Knox (C)",null,8.1888210645469748,9.4812418592281631,7.6566424583580881,7.2667508042556204,10.384326944820293,10.45949284044838,9.3574062379274316,10.169567861438525,8.1028515420361327,8.9821668718909979,10.596695767575065,10.744394980862989,9.3215390332452035,8.1858242607242993,6.4719900233451595,5.4983947531126942,{"$f":"$B77+$C77*S33","v":3.955325673515758},3.1088266347448608,2.1470698250331726,1.4908938389569171,0.97854832747898546,-0.18108622762014048,-1.3536753099006669,-2.1481024312775467,-2.9418494118366998,-3.5760030284029196,-4.186606315079354,-4.7469317543743736,-5.3346850307221878,-6.0955371879225275,-6.6168979434769337,-7.3526689656225406,-8.0121228311663941,-8.6076700539731625,-9.2398610496949214,-7.0565291496048914,-6.7676462948049609,-7.3644608236353593,-8.0960205046220999,-8.7728168404703553,-9.5004971091871102,-10.300072281204395,-11.197466267613871,-12.201952729526292,-13.363225699786341,-14.688720866147069,-16.212678139065897,-17.950597270330569,-19.955504034723518,-22.248867773245777,-24.905795734554832,-28.011704589971227,-31.715863486282721,-35.29384792748872,-38.565692982156165,-41.91294776478582,-45.699548443415885,-50.195500600158439,-56.709052941419117,-66.253866803560669,-80.347983973232232,0.93650915115720856,0.91872973959050586,0.90899151772607234,0.88324331742541751,0.86553601729978868,0.84785246629104227,0.8382095295140557,0.8125560424030529,0.79494288711943262,0.77735291613280555,0.76780299806355168,0.74224197182926421,0.72472072305274993,0.70722210764318594,0.69776299763881189,0.672292235353527,0.65486070978501432,0.63745128019604624,0.90445399718967923]
["Manningham (C)",null,8.0978207294957496,9.3875810149513601,7.5609589490659177,7.1719153415344028,10.312744583587026,10.379861377565659,9.2782926734693341,10.077038573832391,8.0132560901713941,8.8915434605354111,10.507519117110963,10.655999800274035,9.2346199338719206,8.0998885701684671,6.3871862399503856,5.4145050325983268,3.8723941528567147,3.026942665818122,2.0662883003834205,1.4112894436617642,0.89979491756384189,-0.25902056424049491,-1.430782847984347,-2.2243558187029966,-3.0172431832404163,-3.6507787235335685,-4.2607689276256533,-4.8204855864648861,-5.407634899208337,-6.1679003445545826,-6.6892537921279303,-7.4250309417212792,-8.08448506913731,-8.6800299383643225,-9.3122206644928465,-7.1287479872422841,-6.8398152819979554,-7.4366269095243895,-8.16819202810745,-8.84499209208815,-9.5726781315416272,-10.372263512768855,-11.269673161833321,-12.274181690775563,-13.435484519145271,-14.761019059566152,-16.285026730192399,-18.023008684382507,-20.027992401952392,-22.321449830760947,-24.978492032852738,-28.084541012019216,-31.788873097700474,-35.367027687283745,-38.639027308045463,-41.986440732125558,-45.773223427706441,-50.269397971221444,-56.78328432659373,-66.328604866821976,-80.423489618845295,0.86546230960010906,0.84770868919218956,0.83799605514642383,0.81227324072217577,0.79459112591931924,0.77693256105917219,0.76731441262696676,0.74168551741823341,0.72409675894668868,0.70653099102533101,0.697005083609055,0.6714678769411534,0.65397025796137498,0.63649508388713738,0.62705922805627701,0.60161153407370094,0.584202892219567,0.5668161630306463,0.83385790201294852]
["Maroondah (C)",null,8.1549681565764764,9.4451684982750415,7.6220380240096137,7.2329435481273734,10.353935513808494,10.423934162759849,9.3238383496349311,10.132840704873413,8.0707134263679325,8.9487353178703799,10.560481799691365,10.708143681831809,9.287946567683921,8.1544315728221175,6.443804879359412,5.4721327608416681,3.9318803494511596,3.0872418125392009,2.1274267172575261,1.4726086309464006,0.96135564578040988,-0.19599201126099508,-1.3662929182254557,-2.1591103249642773,-2.9512738752175145,-3.5841447479339856,-4.1935224110043494,-4.7527083652751818,-5.3393119604645918,-6.0986931383242924,-6.6191912896575609,-7.3536776818866167,-8.0120428807404949,-8.6065932711464583,-9.2377287311240366,-7.0578485154323696,-6.7695136657548138,-7.3653806890216389,-8.0957336532163247,-8.7713857701856366,-9.4978641185488399,-10.296102897069373,-11.191993463746728,-12.194778977658796,-13.354109015835194,-14.677363982023754,-16.198735457221296,-17.933678262392178,-19.935163524533127,-22.224577059530578,-24.876903956525624,-27.977390084491066,-31.67507454282763,-35.24668897043798,-38.512669977004791,-41.853937164317998,-45.633808635502106,-50.121745743702128,-56.623715384270525,-66.151424369555315,-80.220088863969011,0.92249416333003831,0.90474921868967473,0.8950453963578312,0.86933152864820806,0.85165849462128707,0.83400914366522538,0.82440034133828421,0.79878092351517282,0.78120177279489689,0.76364574208181391,0.75412970042820926,0.7286024871807566,0.71111498838853904,0.6936500603842225,0.68422457562676664,0.65878737684803923,0.64138935346095804,0.62401336514081507,0.89052099366545123]
["Melbourne (C)",null,6.2573435162110638,6.7510316803310619,5.6395515744346412,5.5122419357073804,6.6401675437201551,6.7226193211415923,6.3316334936101155,7.0172253653263414,6.0897338601773967,6.3926822467885724,6.9047776280081203,6.9258988400323833,6.3661407234714895,5.9220098707575302,5.2678877865116691,4.8846976440459535,4.2775086486377774,3.968665918052213,3.5963397318908883,3.3250337122883025,3.1060135653062568,2.6653542233880065,2.2164065342137862,1.9008772818026909,1.5813199686203463,1.3176535253277604,1.059947756427402,0.82104676556130829,0.56575784177627009,0.25183155382688815,5.4172979090991391E-2,-0.21219830918306448,-0.46239557389532504,-0.68594463652045989,-0.92366398990205678,-7.1361189167866157E-2,2.4125767885959992E-2,-0.2091925713241628,-0.48677989612493977,-0.73859377689117001,-1.0144065675164065,-1.3145308266067972,-1.6506252619983921,-2.023441264598357,-2.4585816362581534,-2.9510590453731642,-3.5153049496354707,-4.1536720940143672,-4.8921721915516176,-5.7302037255918075,-6.6964951647939168,-7.8179385395365228,-9.1539381637475774,-10.423392169961843,-11.577198824484483,-12.759679929825113,-14.105301702788495,-15.698288257425705,-18.011120901405295,-21.376067240083714,-26.309119183068066,3.0219243381522847,3.0154861908748614,3.0144899093216218,3.0026427578244386,2.9962373368567654,2.9898426901731523,2.9888896405212155,2.9770854539242984,2.9707227325365793,2.9643705217826577,2.9634596460695941,2.951697373069635,2.9453763065753895,2.9390654936394842,2.9381957602866682,2.9264743757965994,2.9201939455590935,2.9139235182138403,3.0044891871690567]
["Monash (C)",null,7.9907927766641942,9.2262360321350805,7.5151198614454424,7.1458088760974423,10.033059058260854,10.117646673480792,9.071617065415321,9.8857584745552973,7.9141831648782048,8.7530184041063581,10.277088308284673,10.415676415877078,9.0598448262289715,7.9792713527924395,6.349364774500458,5.4231559583478122,3.9532435873187155,3.1520032012320969,2.237731578534301,1.6119616684451388,1.1232796915162933,2.1999205925709808E-2,-1.0921920393254059,-1.8479085601420091,-2.6036929654705774,-3.2078856392688571,-3.7901396901800433,-4.3245696537473473,-4.8860913605682201,-5.6113359501316937,-6.107844166243698,-6.806507921745669,-7.4345423298894628,-8.0013346656381721,-8.6030646881136921,-6.5201315326231581,-6.2473410967254743,-6.8168261182492662,-7.5135287630633281,-8.157280962457957,-8.8502401698333841,-9.6111883996234795,-10.465104437068529,-11.420376367251036,-12.525407516556971,-13.786028483447659,-15.23507600538403,-16.886745336195865,-18.792475632966291,-20.971311202336743,-23.494812557722994,-26.443437352274479,-29.959775610034335,-33.352969755110436,-36.454713103500303,-39.628277678212839,-43.219654927976514,-47.483049448491286,-53.660460469806026,-62.708802215499297,-76.064078128423134,1.100092039553781,1.0831712689540642,1.0742911122518406,{"$f":"$B81+$C81*BO37","v":1.0494004042318141},1.0325500264119252,1.0157228306243251,1.0069356848578856,0.9821374274046204,0.96537894326761287,0.94864308774215045,0.93994673225837599,0.91523871852782845,0.89856993495153781,0.88192324020127699,0.87331550906234667,0.84869558658026711,0.8321143644689929,0.81555470469231195,1.0680632272339192]
["Nillumbik (S)",null,6.6190098863196347,8.1418511309386599,6.6862298184614612,6.2269498534927257,9.62872915793257,9.7052216282784425,8.3791042798400603,9.0134285147661171,6.670177364591245,7.740440654447986,9.7392801605963193,9.9518910054622882,8.2745359075112148,6.9368245628382699,4.9016412179999236,3.7588171495212932,{"$f":"$B82+$C82*S38","v":1.9277229169415473},0.93999588467501438,-0.18606034013777684,-0.94107268666038568,-1.5271081127982589,-2.8973381403287806,-4.283158939839427,-5.2109368353892433,-6.1378250356798745,-6.8753239219221181,-7.5844471820773061,-8.2328990953189027,-8.9145908341855353,-9.8062086330446405,-10.436970867942051,-11.327592904496541,-12.125542100810312,-12.84617764813421,-13.611173477322744,-10.96800143786249,-10.617534724201651,-11.339511524869467,-12.224773067527597,-13.043847417823159,-13.924424542342759,-14.892110254915336,-15.978249533802234,-17.194130561854386,-18.599767496257414,-20.204334341028517,-22.049252369627876,-24.153364216301224,-26.580736483735077,-29.357553871557641,-32.574740846508618,-36.335829658535552,-40.821473988742227,-45.154777195074587,-49.117440088630708,-53.171399901538102,-57.757340373627706,-63.202548438934272,-71.091398580495806,-82.652245366034052,-99.724246538305394,-1.2825169884260714,-1.30370062262342,-1.3152041102667908,-1.3459875081162753,-1.3670910779568914,-1.3881682765840249,-1.3995659618220873,-1.4302441865181685,-1.4512432085689393,-1.4722164809059284,-1.483510857513997,-1.5140863874248733,-1.5349833247438802,-1.555855118635058,-1.5670486193395017,-1.5975238721687446,-1.6183211275313178,-1.6390938309177385,-1.3152975549650407]
["Port Phillip (C)",null,5.1908514214073351,6.1735506613205615,5.4604391750649182,5.1970007580382545,6.7659683346060699,6.8474441768629788,6.0637125231203433,6.75755613374423,5.3120171736460904,5.9917364310097883,7.1015502366929013,7.2193173143267453,6.183676330910612,5.3746964362851397,4.1473229735322681,3.4582229492333623,2.3311457941578446,1.7757973422870188,1.1034932466600433,0.635838508758094,0.27329606454399857,-0.53604677707500625,-1.3605841061513102,-1.9185843046719451,-2.4829839432050504,-2.9345312350835666,-3.3733343405699299,-3.7752865738271288,-4.2071768428321228,-4.7577525087098573,-5.1468759279700151,-5.6766653337028377,-6.1691030394989346,-6.6101432319363456,-7.0789494144411389,-5.4123716285036654,-5.2185080451485275,-5.6747518411111386,-6.2210648460005658,-6.7188231779033867,-7.2617736341244585,-7.8538424779894376,-8.5171820874346107,-9.2544672459542525,-10.113158280840157,-11.086817576370334,-12.203218689914728,-13.468516285186574,-14.931345005833336,-16.594302878902528,-18.513817670396584,-20.745188605726934,-23.404106044085797,-25.94015614353858,-28.248431628568852,-30.613100787553826,-33.300311176672722,-36.483664190736107,-41.103170327879432,-47.835243254203377,-57.721109059950876,0.64494225601304933,0.63203528651990237,0.62880316133447589,0.60628585074266894,0.593443119852328,0.58062153860873678,0.57747427577687782,0.55504130494868043,0.54228239451703142,0.52954411769139975,0.52647964648024403,0.50412895769837451,0.49145182294110795,0.47879481860002043,0.47581111984547853,0.45354070663413215,0.4409433536832042,0.428365640486363,0.61111678914270828]
["South Gippsland (S)",null,8.3096058002772359,9.0051286364565737,7.2664283763686575,7.0673316402707451,8.9311136301362364,9.0428562009263835,8.4734395150432196,9.3421483538747392,8.0544497959048211,8.4851231228379635,9.255989135951566,9.2905054209009528,8.5018869838209827,7.8704253992022615,6.9384916984964988,6.3927083551872306,5.5427786075131182,5.0767224709816858,4.5398017566755104,4.1560830416780528,3.8486747629494742,3.2125975632656862,2.5680573618549523,2.1176420053487042,1.6654958748142419,1.2963517465143803,0.93823848121230269,0.60659961722967604,0.25761237868649234,-0.17883307643796675,-0.45346217874210215,-0.83460501233671913,-1.1820259350871827,-1.4945768342065078,-1.8265587658257076,-0.66484190662939191,-0.52000588446473783,-0.83792046403695741,-1.2233227451223052,-1.5773570709445099,-1.9605611784228811,-2.3801234968229874,-2.8506182607985253,-3.3755286894066212,-3.9844391540222532,-4.6773136968446023,-5.47291228032788,-6.3776117625456905,-7.4223182491301118,-8.6139109535274212,-9.9920592837603746,-11.598952802827988,-13.514599515030246,-15.354350735697455,-17.033141523029453,-18.751674643732848,-20.699771981027183,-23.010400353912711,-26.36040666812676,-31.257111350493858,-38.469577216338251,3.571545337611731,3.5622167431940719,3.5583335749707814,3.5436030761492754,3.5343178262089303,3.5250468480397696,3.5212209436536259,3.5065473584659865,3.4973186741503,3.4881039157767564,3.4843338875235426,3.4697158369587671,3.4605423478948607,3.4513824475274455,3.4476669421466677,3.4331030814192149,3.423983451242798,3.4148770808851103,3.5499412824682537]
["Stonnington (C)",null,5.3964732849416253,6.5164191442077071,5.6039875439439655,5.2905080212625988,7.3843787560271323,7.4526828520316677,6.5260782213476061,7.1790449131795029,5.4999370394017797,6.2806019382662122,7.6295835514718551,7.7739895525893612,6.5709536186809885,5.6234394027774801,4.1837454545272781,3.3758778812210752,2.0636491217363813,1.3955201701000348,0.60488832916092772,6.3284879039018138E-2,-0.35700342515649053,-1.3137925833319923,-2.2858615323473113,-2.9404545847523358,-3.5994960925862567,-4.1259177884605878,-4.6354527438221504,-5.1018172740832126,-5.5990064327211515,-6.2391573739714241,-6.692457312540256,-7.3181180930450358,-7.8917175341649228,-8.4070287719519943,-8.954519063668311,-7.0281856601402897,-6.7926071730399267,-7.3194381164419751,-7.9558072188480748,-8.5389335955061583,-9.1715897164144948,-9.8634665536083261,-10.639160844696107,-11.503637720129202,-12.507695636436114,-13.649048190373229,-14.959097938978063,-16.447373344006401,-18.166612488879263,-20.125685223837507,-22.390192174879793,-25.028257991847198,-28.172847136914889,-31.186732183997158,-33.934854317867149,-36.748651568211919,-39.940681623766068,-43.72541171033356,-49.21419226748074,-57.230201094144007,-69.026838713541153,-4.382242298158423E-3,-1.9429640494178946E-2,-2.4801235806717892E-2,-4.9457062064963808E-2,-6.4437358255677757E-2,-7.9395558507816877E-2,-8.4678498110390521E-2,-0.10924620750532055,-0.12413892231354473,-0.13901007331950466,-0.14420649248884476,-0.1686882069611656,-0.18349544907597448,-0.19828164635704371,-0.20339362752998491,-0.22779141651486789,-0.24251524245203349,-0.25721852968632974,{"$f":"$B85+$C85*CD41","v":-3.6909587511471331E-2}]
["Whitehorse (C)",null,{"$f":"$B86+$C86*C42","v":7.9984785534827507},9.2391102959199678,7.5162796025107772,7.1451033401135664,10.05875702408642,10.139323778611816,9.0882772893120833,9.9013299112520237,7.9219096332504586,8.7645464575189891,10.296779153657075,10.436299264491666,9.0745811302980588,7.9891993440752209,6.3519103555364733,5.4215860960042761,3.9452572552426597,3.1400845505359798,2.2216791472975874,1.5932951917214393,1.1026124698255955,-3.7624631939079389E-3,-1.1230530844464894,-1.882114766814432,-2.6411785436669293,-3.2479282434089094,-3.8325960819756673,-4.3692215114660087,-4.9329691789231909,-5.6612760494723302,-6.1599987939606216,-6.8619696396620444,-7.4928040693877778,-8.0621588886784021,-8.6666035135097275,-6.5747184446880507,-6.3004922702034509,-6.8724127623556308,-7.5722219949676139,-8.218919172308766,-8.9149728758617606,-9.6793638379699711,-10.537155104521039,-11.496813712202449,-12.606858057584741,-13.873261837476107,-15.328986886248966,-16.988344757473261,-18.902916059784289,-21.091961298706948,-23.627357189499769,-26.590003496365121,-30.123085706821222,-33.532753654437293,-36.64966128778223,-39.83871008663403,-43.447491324525842,-47.73161830182098,-53.938996585646485,-63.031599572781232,-76.452744667489426,1.0787651984968349,1.061768557957119,1.0528125698985316,{"$f":"$B86+$C86*BO42","v":1.0278460689511206},1.0109199364788934,0.99401702416078652,0.98515419983317076,0.96028030163627021,0.94344621442208576,0.92663479333552512,0.91786290965705086,0.89307940494921711,0.87633516746476214,0.85961305572785429,0.85092994437687519,0.82623467831110675,0.80957814909894232,0.79294321855928362,1.046744419090577]
["Yarra Ranges (S)",null,8.1458474268132797,9.4460258019900323,7.5996134044821018,7.2068280780413927,10.385100343488842,10.451266802595729,9.3398288217568766,10.140339885229643,8.0595992455519401,8.9451649440062084,10.576688368850334,10.726649530481442,9.2933463769099678,8.1488529445086435,6.4213411673631251,5.4402625449435407,3.8852517314714343,3.0317494956866198,2.0626459969906552,1.4021629949757584,0.88641896362403316,-0.28269052284356511,-1.4647559971829045,-2.2652037586111229,-3.0648365998138227,-3.7036786601015002,-4.3186935522381216,-4.8830063354211601,-5.474809671479747,-6.2413613715492815,-6.7670499364952681,-7.509297033672337,-8.1742302075001554,-8.7747898943441704,-9.4122926124701216,-7.2113350911052452,-6.9196043311810245,-7.5211823082141178,-8.2588250930515343,-8.941386963812489,-9.6751269058546416,-10.48144658748331,-11.386435583406753,-12.399522780258792,-13.570628449103591,-14.907469622051837,-16.444532161328677,-18.197544474390391,-20.21981044263768,-22.533224474321024,-25.213515501033708,-28.346969426962133,-32.084026137750882,-35.694377408252805,-38.996014807137399,-42.373691120561219,-46.194487928860852,-50.731180465409203,-57.303629876720045,-66.935444331547842,-81.159045584909961,0.84769468381412671,0.82978703147263233,0.81992049813137524,0.79404391632241167,0.77620816532261105,0.75839609473456204,0.74862457032901775,0.72284242819125122,0.70510055112892034,0.68738179225313512,0.6777030208210475,0.65201307638232775,0.63436284518719732,0.61673518376761527,0.60714696478000452,0.58154703115187789,0.56398627248999367,0.54644754866169365,0.81601036185139864]
["Weighted Average NPV",null,7.5538160126376379,8.7734899557398247,7.2012230491305074,6.8401484663504144,9.5955682927047672,9.6752685552245694,8.6467236403127323,9.4351833918890122,7.5101517105920141,8.3419941384261858,9.8403339517793924,9.9805263851693446,8.6473636542018131,7.5869045040781913,5.9854047256190821,5.0772043074548119,3.6306841986974079,2.8501112371359087,1.9546838875653312,1.341783718837162,0.8637375973728586,-0.21554868509363401,-1.3081703194464289,-2.0483856233931568,-2.7893996434449622,-3.3815823399076561,-3.9526198764901808,-4.4765075877388218,-5.0281630028386388,-5.740434797504407,-6.2308026046651603,-6.9187996702813521,-7.5391016171274741,-8.0985257008074463,-8.6925016236759536,-6.6312720153077649,-6.3640993029624511,-6.9276852266133622,-7.615817868209704,-8.2508429744520573,-8.9352294839781745,-9.6862903737435921,-10.528992299606189,-11.471172924893034,-12.561732019522628,-13.805166108348594,-15.234141440331229,-16.862108492707659,-18.740827309856115,-20.887694037823845,-23.373427622134198,-26.276605548993576,-29.73851406358429,-33.075772236630158,-36.125241678785059,-39.245660401669461,-42.778185117745892,-46.970952137441245,-53.046842397948836,-61.942555178655184,-75.06675800140799,0.90552102106204713,0.88887070729824436,0.88054868737296488,0.85564044269085349,0.83906020902490486,0.82250305403536916,0.81427363074951709,0.78945742407082842,0.77296867324901475,0.75650244939907874,0.74836340898122744,0.72363704031017761,0.70723758602534015,0.69086012061000468,0.68280930387138361,0.65817062745006183,0.64185833729031183,0.62556751115941611,0.87324923148031497]
[]
["LGA S curves",2020,{"$f":"B112+1","v":2021},2022,2023,2024,2025,2026,2027,2028,2029,2030,2031,2032,2033,2034,2035,2036,2037,2038,2039,2040,2041,2042,2043,2044,2045,2046,2047,2048,2049,2050,2051,2052,2053,2054,2055,2056,2057,2058,2059,2060,2061,2062,2063,2064,2065,2066,2067,2068,2069,2070,2071,2072,2073,2074,2075,2076,2077,2078,2079,2080,2081,2082,2083,2084,{"$f":"BN112+1","v":2085},2086,2087,2088,2089,2090,2091,2092,2093,2094,2095,2096,2097,2098,2099,2100]
["Bass Coast (S)",null,{"$f":"EXP(C90)/(1+EXP(C90))","v":0.99934897306156489},{"$f":"EXP(D90)/(1+EXP(D90))","v":0.99963988455645902},0.9985280051155867,0.99826890674142355,0.99959390229841805,0.99963664623988557,0.99941436366011083,0.99973304420079789,0.9991939066084109,0.99944007046454997,0.99970355392311883,0.99971138024967454,0.9994352086525623,0.99903536006747684,0.99787797203921635,0.99663348391826101,0.99307007385988899,0.98984015751810395,0.98411197994893418,0.97810786524060889,0.97171842490175875,0.95261031809776298,0.92102630902291338,0.88842299680610337,0.84424732374826006,0.79814308844023218,0.74415930255186113,0.68636763776694032,0.6181811767350418,0.52694984752497853,0.46829025745490344,0.38961696021513448,0.32165590027285623,0.2664329825307542,0.21481616469363823,0.42698495808573322,0.45640601013599136,0.38957926777621754,0.31456912272232707,0.25348208266034522,0.19656400155971682,0.14606147006438941,0.10275676748021027,6.8282618062838918E-2,4.1782520194813724E-2,2.3613556034109615E-2,1.214975393729186E-2,5.6780663135663975E-3,2.3473894432474796E-3,8.5701934941614813E-4,2.6733360288334646E-4,6.8881540117392943E-5,1.3681021059944839E-5,2.9172909395197723E-6,7.1381002462928216E-7,1.6881317935743867E-7,3.2841515456898484E-8,4.7186127320677671E-9,2.8277850028437324E-10,4.6584195102778229E-12,1.1141100205519027E-14,0.96616102517819835,0.96590342119348493,0.9658240678805855,0.9653838091222946,{"$f":"EXP(BP90)/(1+EXP(BP90))","v":0.96512178879026056},0.96485828406345009,0.96477830306919576,0.96432679671383692,0.96405880168520364,0.96378929745018904,0.96370869807647574,0.96324573632998489,0.96297166687958746,0.96269606309246403,0.96261485453464102,0.96214022715976788,0.96185998229075043,0.96157817763820475,0.96551147054060493]
["Bayside (C)",null,{"$f":"EXP(C91)/(1+EXP(C91))","v":0.99916697137714106},0.99980859945818612,0.99925526987726576,0.99884538275763446,0.99994428373279087,0.9999481278818062,0.99981977319527571,0.999915380646485,0.99922860334310737,0.99972348590698712,0.99995615443481867,0.99996382415791274,0.99982292281589658,0.99937578166761687,0.99577914997736772,0.98771244577716333,0.93471867688931032,0.85001103987356175,0.66199381151113135,0.48823416977989581,0.35358146219676895,0.13135134311548266,3.952676012044555E-2,1.687311791462141E-2,7.1040063371734692E-3,3.5591537859310054E-3,1.8266063340800875E-3,9.9140081520687697E-4,5.2060329723677275E-4,2.2489924518619026E-4,1.2444737828763133E-4,5.4141123910447626E-5,2.5609142974540564E-5,1.3031817106187948E-5,6.3609069040737249E-6,7.6265785195171512E-5,1.0551549004061129E-4,5.3504063850948584E-5,2.3318574681525599E-5,1.0827071399293663E-5,4.739788555241008E-6,1.9136244513666607E-6,6.9157726864345206E-7,2.2152195436698061E-7,5.9348150599663974E-8,1.321081218194621E-8,2.349404891942138E-9,3.2824972996814353E-10,3.3879289512756725E-11,2.5260401012993017E-12,1.249305437818262E-13,3.7244294298768759E-15,5.646003225161932E-17,9.9198339148611173E-19,2.4669122895040186E-20,5.6314120348011058E-22,7.8131396991153668E-24,4.869508768436627E-26,3.1044402451308003E-29,6.4833967402457108E-34,8.0263217904611817E-41,0.40279850066698941,0.39796388850228964,0.3954612754994285,0.38837492495202791,0.38362199297174027,0.37889767128512541,0.37646590788941808,0.36953745948627376,0.36490281478507408,0.36029927097904324,0.35794285901979811,0.35118773308870505,0.34668080687208674,0.34220711728317194,0.3399297674447247,0.3333613391167396,0.32899014079125366,0.3246539597910863,0.39368366226781337]
["Boroondara (C)",null,0.99880938280009679,0.99970717450181112,0.99895308425283691,0.99841578102962802,0.99990933881753463,0.99991543489823476,0.99972340767001933,0.99986680012813933,0.99890264064626821,0.99958760108576383,0.99992829589609633,0.9999403210773401,0.99972853005331241,0.99909830776501918,0.99443344406440359,0.98462765953998055,0.92501909185745934,0.83683917035787803,0.65114470415088721,0.48470568073605985,0.35628788907787268,0.1400350182758229,4.5042305102095552E-2,2.0097178039672266E-2,8.8291659210774382E-3,4.5700899481076552E-3,2.418331651154103E-3,1.3496190768532326E-3,7.289087788968806E-4,3.2703257985037393E-4,1.8575199315567684E-4,8.4019575286852264E-5,4.1073630822829206E-5,2.1541418093137469E-5,1.0855824800264919E-5,1.1719354825224803E-4,1.5944676388929404E-4,8.3204457251452303E-5,3.7612869711003375E-5,1.8079770964878775E-5,8.2082048668206581E-6,3.4508485499632923E-6,1.305245222362219E-6,4.4020503628070634E-7,1.2509015640461345E-7,2.9801836605625925E-8,5.7322621414700098E-9,8.7655006866600514E-10,1.0036466974384217E-10,8.435917572681975E-12,4.7972041553013397E-13,1.6859347997078016E-14,3.1106469261993985E-16,6.6308036643751094E-18,1.9701394390101896E-19,5.3935091865426337E-21,9.1784439383055117E-23,7.295785586553E-25,6.6107871774629118E-28,2.3204122005560354E-32,6.2206678891947398E-39,0.41292932176934222,0.40829110579809569,0.40600153857484006,0.39908355960016073,0.39451550580600453,0.38997208718532855,0.38774307783284395,0.38096151771236109,0.37649550384395775,0.37205639887101344,0.36989179923124216,0.36326099294468056,0.35890568558224845,0.35457927421662622,0.35248231511416012,0.34601492767429581,0.34177784138995437,0.33757134895857221,0.4040507749186385]
["Cardinia (S)",null,0.99991899301127363,0.99996678960480734,0.99961362363309214,0.99949387614389151,0.99997441588736169,0.999975957086083,0.99994835450863651,0.99997841374185981,0.99988698335489878,0.99993565410273333,0.99997815901468379,0.99997942183644906,0.99994244095566776,0.99986795047564747,0.99954782344365278,0.9990736203600773,0.99718952265317162,0.99473431933560186,0.98935959337273649,0.98264674647795858,0.97442154881500431,0.9423480056007536,0.87426794970246258,0.79370970988898715,0.68060526090800821,0.56866379612332985,0.45336985011842962,0.35081496334568824,0.25686153909848664,0.16391207023003251,0.12017332565614187,7.5754213722128816E-2,4.9331888424503915E-2,3.3197166677185468E-2,2.1671346089664919E-2,9.1329114678784365E-2,0.10944194121922922,7.5175625461749079E-2,4.6669364948310962E-2,2.9705357253686029E-2,1.8151269140867215E-2,1.0507331936285939E-2,5.6669909099179103E-3,2.8313763231177817E-3,1.2675008814594161E-3,5.0581604335019591E-4,1.7579924084064411E-4,5.2646740402803972E-5,1.3100294821319484E-5,2.6674977692652489E-6,4.219320065332454E-7,4.884899329270329E-8,3.7330839649782438E-9,3.1105453518989349E-10,3.204688368561108E-11,3.1335230396087878E-12,2.2590441087328793E-13,9.948351886577443E-15,1.0791680098186469E-16,1.4241338986843602E-19,7.9564522787790231E-24,0.96236367732085581,0.96191549370791574,0.96166351617020951,{"$f":"EXP(BO93)/(1+EXP(BO93))","v":0.9610055415525901},0.96054370010548418,0.9600772328500754,0.95981609161554149,0.95913027318709643,0.95864970648674641,0.95816436539536065,0.95789380337247099,0.95717920959680092,0.95667931925405192,0.95617450325239828,0.95589425970953312,0.9551499412146951,0.95463011825280952,0.95410521578411145,0.96158450899781389]
["Casey (C)",null,0.99973218289450017,0.99992551124383855,0.99955324046273875,0.99934339332580802,0.99996831606788916,0.99997100267277228,0.99991391492287063,0.99996225778193848,0.99970814280035014,0.99987764811789692,0.9999750519211924,0.99997841032644763,0.99991183324162358,0.99972912625934718,0.99852862843202661,0.99615710564194659,{"$f":"EXP(S94)/(1+EXP(S94))","v":0.9825760277428861},0.96069784651822421,0.90427905362258398,0.83148621203014872,0.74820207299308916,0.48587089341584577,0.22880747421083392,0.11915512049501012,5.8120058660689651E-2,3.1905672847279624E-2,1.7695690674378688E-2,1.0242062526145387E-2,5.7506655414615547E-3,2.7181443516490953E-3,1.6258095633837292E-3,7.8704415396723315E-4,4.1043125801119672E-4,2.2795863453858498E-4,1.2209942843087706E-4,1.0552673876010742E-3,1.4024066486625715E-3,7.7798923062952501E-4,3.7782620345970752E-4,1.936863325819796E-4,9.4396654674689699E-5,4.2855198613855155E-5,1.7664253146421203E-5,6.5510063790244784E-6,2.0806851687691392E-6,5.6200579201961222E-7,1.2479512474698761E-7,2.2438328475221821E-8,3.0993229624217879E-9,3.220859418344376E-10,2.3381925989829599E-11,1.0900508402008629E-12,2.8156955645149134E-14,8.2448977245130367E-16,3.2667009358464784E-17,1.2013838846257616E-18,2.8631141148783213E-20,3.3890007865299724E-22,5.4773221749014176E-25,4.4503996878044355E-29,4.0681002451668551E-35,0.73966303756762675,0.73626316370858447,0.73440635003048282,0.72939281629203034,0.72592288638685565,0.72243016345331568,0.72053214215310613,0.71537752658661413,0.71181822930645322,0.70823737216185245,0.70630107890032623,0.70101230945116499,0.69736879126468709,0.69370508777022954,0.69173371874441525,0.68631859323447408,0.68259655705611766,0.67885584503291774,0.73337191346645481]
["Frankston (C)",null,0.99996104027276678,0.99998627517205418,0.99971803776672208,0.99960978462200878,0.99999220091485452,0.99999221920962167,0.99998053296386302,0.999991724832753,0.99994253984070902,0.99997051167639861,0.99999216138972213,0.99999276761095435,0.99997563056336258,0.99993475546674893,0.9997179683455264,0.99933976887500398,0.99754434398459857,0.99477675248145947,0.98795958921158267,0.97865026508849517,0.96644376547618382,0.91301374035742966,0.79132758409303161,0.65287845857214954,0.48337767533234022,0.34694574153243635,0.23552752069822719,0.15703910701811341,9.9491492115034691E-2,5.3597469825329619E-2,3.5553824225739217E-2,1.9595028505279041E-2,1.1478605880586842E-2,7.0525040360652899E-3,4.1980727632671298E-3,2.4559560842328222E-2,3.1169809203324319E-2,1.9365681560141863E-2,1.0696033860109574E-2,6.1392101898686208E-3,3.3806914148660893E-3,1.7500438115110497E-3,8.3471526072026307E-4,3.6365052593576231E-4,1.3939039748849294E-4,4.6548776790243425E-5,1.3176460914437422E-5,3.1161758186143302E-6,5.9111294448296102E-7,8.7983119461786252E-8,9.6602221905966718E-9,7.2727217516215582E-10,3.3244114194702564E-11,1.6706691630236501E-12,1.0806948011743562E-13,6.5697463338215875E-15,2.77618033021446E-16,6.4701083742293957E-18,2.797584960274132E-20,9.4893045523039429E-24,7.0202058547889681E-29,0.94677812329124755,0.94603708844948664,0.94556744727333608,0.94452850925281184,0.94376080354996239,0.94298404575542438,0.94249321573467759,0.9414030482675797,0.9405986451509154,0.93978486311813469,0.93927213778187346,0.93812883301121164,0.93728641979505056,0.93643429740365225,0.9358989655586859,0.93470059290375462,0.93381884433340312,0.93292705369177797,0.94572798874307495]
["Glen Eira (C)",null,0.99873148527036759,0.99967661797949658,0.99890333675189147,0.99836192806155954,0.99989254270112438,0.99990051285229087,0.99968615385181747,0.9998499888477097,0.99883413790995546,0.9995501887524515,0.99991697970030091,0.99993044079301596,0.99969673153169247,0.99902728814324682,0.99430823070108298,0.98474149315101578,0.92868996664498471,0.84781181624178359,0.67625874584997758,0.51753540750801963,0.39041470661980854,0.16355993672953362,5.5517795587548477E-2,2.5520870970457212E-2,1.1515167740242999E-2,6.08056683678696E-3,3.277315854434997E-3,1.8594073735504332E-3,1.0210245655340483E-3,4.6856312124851646E-4,2.7047746904554994E-4,1.2532722736378701E-4,6.2529179682790426E-5,3.3411309107491619E-5,1.7173568662175406E-5,1.7369526348135546E-4,2.3385823172063143E-4,1.2422014951543809E-4,5.7438876672458451E-5,2.8207896241621583E-5,1.3097994954602311E-5,5.6462584133572457E-6,2.1967028859767792E-6,7.6488208908623919E-7,2.2542528310576219E-7,5.6013736314065559E-8,1.1310374046855643E-8,1.8290348912785796E-9,2.2333788361265321E-10,2.0219727318224669E-11,1.2537674629109676E-12,4.8795179875498666E-14,1.0169450666763913E-15,2.4438235928678735E-17,8.1081038407826367E-19,2.4844110834572932E-20,4.798632599732624E-22,4.4354257270102746E-24,4.998209510183383E-27,2.4210030848661496E-31,1.0481420212089845E-37,0.45004172642948886,0.44543775324706514,0.44323057016618533,0.43627818479219721,0.43172393907146295,0.42718759740643264,0.42502714200455649,0.41817118224993588,0.41369235286182493,0.40923391525606112,0.40712440791199117,0.40038054945066154,0.39598675222586649,0.39161560839302295,0.38956076930165939,0.38294338073291168,0.37864330930649565,0.37436791587030233,0.44092358128202525]
["Greater Dandenong (C)",null,0.99988737847251541,0.99994944930361929,0.99958672285729722,0.99947617110841225,0.99995149267855266,0.99995665443054327,0.99991516407686032,0.99996554515608738,0.99984759908776755,0.9999075767743677,0.99996349529569029,0.99996512439335139,0.99991282706022844,0.99981785469033335,0.99945855243007464,0.99897656682291824,0.9972557628015517,0.99523589893450659,0.99110481985023491,0.98619598493071547,0.98041707937935552,0.95954207435496974,0.91762754992865947,0.86815305293160172,0.79552489520492498,0.71710148379206995,0.62613782960232345,0.53299918046842154,0.43309424294811766,0.31537794517285472,0.25071114267742878,0.17605829471157444,0.12480318227183332,9.0098292093110155E-2,6.2991999013705363E-2,0.20489765957673572,0.23469632821305256,0.17516097626759869,0.11940027629882874,8.2254265043173402E-2,5.4253929462224723E-2,3.3962939616093826E-2,1.9892999950640321E-2,1.0862978692620139E-2,5.3654648321010941E-3,2.3927213018687101E-3,9.4405230550205694E-4,3.2690861769965119E-4,9.6096015814959554E-5,2.3715647221053084E-5,4.6928827745481082E-6,7.0747074092966043E-7,7.4103687778622678E-8,8.4201200787465095E-9,1.1541645092017849E-9,1.5105377390478586E-10,1.5112647845163386E-11,9.8334357839051011E-13,1.8754529011457328E-14,5.6954852717541024E-17,1.0999614697024657E-20,0.97222893546593436,0.97193275265453605,0.97178323940980282,0.97133247595962213,0.97102834409924965,0.97072152441501713,0.97056753462479139,0.9700997445390197,0.96978474558351468,0.96946698127678976,0.9693084113058833,0.96882307800227629,0.96849689948579754,0.96816787652093939,0.96800462101934892,0.96750121707329251,0.96716354026041196,0.96682293833929778,0.97162544198799949]
["Kingston (C)",null,0.99955726655744459,0.99985877030129811,0.99935186750175109,0.99909355683010359,0.99992527080343885,0.99993206079734176,0.99982401616145,0.99992325501822199,0.99953070363968766,0.99978320734280424,0.99994488030897799,0.99995124763542043,0.99983090805787433,0.99954599404015632,0.99799111226344006,0.9953282693892852,0.9822727972847386,0.9640604200215539,0.92089098735030051,0.86751895174703508,0.80690538164876346,0.60516032554486288,0.35689870515813299,0.21761765455584436,0.12220609304878255,7.4096179727046407E-2,4.4792182483928585E-2,2.7903298136693875E-2,1.6822956391726044E-2,8.7214396429041822E-3,5.5540723673224088E-3,2.9485408198681477E-3,1.6615594602408731E-3,9.9035995501763215E-4,5.7153455522825547E-4,3.8577651270481762E-3,4.9259027017411975E-3,2.9249996430579747E-3,1.5480365542905135E-3,8.6059444687976855E-4,4.5662118294389516E-4,2.2781585877365513E-4,1.0441425709776697E-4,4.3662725426705993E-5,1.5906633424777551E-5,5.0328944498683877E-6,1.3415450273854963E-6,2.9767158630312421E-7,5.2365179786044358E-8,7.1950615407670802E-9,7.2317652300316099E-10,4.947413905247806E-11,2.0203392737611442E-12,9.2837135867572339E-14,5.5691356351811047E-15,3.1282580789493115E-16,1.2000697145682462E-17,2.5045240322928164E-19,9.1877144152718621E-22,2.5050804047677737E-25,1.3876436867803745E-30,0.80751972654863269,0.80509958386345593,0.80392685220882276,0.80020121391665922,0.7977230866088203,0.79522573835274213,0.79402350412259692,0.7901736274060831,0.78761900010912744,0.78504542270973443,0.78381454134376383,0.7798417382314482,0.77721180292083736,0.77456326108720175,0.7733047065701496,0.76921075222600011,0.76650699402505906,0.76378504697999894,0.80241719425275548]
["Knox (C)",null,0.99972233598854943,0.99992373665378631,0.99952733101704538,0.999302109914324,0.99996908774521043,0.99997132605005523,0.99991368373937906,0.9999616825893759,0.99969741676794666,0.99987438545347163,0.99997500215072355,0.99997843451734214,0.99991053190756374,0.99972150286799133,0.99845624107325137,0.99592335011788702,0.9812074920992665,0.95725537032901675,0.89539464548335934,0.81621239501308762,0.72682007783735203,0.45485175166594205,{"$f":"EXP(Y99)/(1+EXP(Y99))","v":0.20527015313385388},0.10450867692202093,5.0123147884226962E-2,2.7225373811962612E-2,1.4970259294841326E-2,8.6036168856536508E-3,4.7982938444114187E-3,2.2478354376230872E-3,1.3357870323898835E-3,6.4046912652434337E-4,3.3131061899034159E-4,1.8266572105944518E-4,9.7081654358634336E-5,8.6102196531490235E-4,1.1490772697978131E-3,6.3296591125109214E-4,3.0465663339854606E-4,1.548626883704037E-4,7.4809032792379985E-5,3.3629533249407568E-5,1.3708698818002256E-5,5.0206168659041191E-6,1.5718971824149399E-6,4.1760856782934625E-7,9.0975260498827148E-8,1.6001277304978449E-8,2.1549376707852804E-9,2.1749010222141395E-10,1.5259852825672448E-11,6.8339416738192219E-13,1.6825791350469326E-14,4.6997699486203468E-16,1.7829220130388406E-17,6.2724623829430572E-19,1.4221266846321901E-20,1.5862479468610157E-22,2.3527253590142672E-25,1.6838804022670596E-29,1.2744239614248159E-35,0.71839398320315351,0.71478321070212558,0.71279375176499815,0.70749386502786327,0.70381598785903898,0.70011645431957048,0.69808798827824547,0.69265391382078889,0.68889167768020843,0.68510932654423295,0.6830454465911997,0.67748591907721833,0.67364570418596226,0.66978705685013606,0.66769161348102934,0.66201623887829109,0.65810497504751975,0.65417709199083418,0.71186393972837114]
["Manningham (C)",null,0.99969589115704127,0.99991624919448907,0.99947989465985754,0.99923273851652106,0.99996679392743593,0.99996894940007908,0.99990657822469653,0.99995796805386994,0.99966906450490234,0.99986247172123688,0.99997267057088735,0.9999764414879998,0.99990240824351839,0.99969651916529789,0.99831984261831375,0.99556818775724021,{"$f":"EXP(S100)/(1+EXP(S100))","v":0.97961567599080757},0.95377657165525653,0.88758314306910346,0.80396924309115236,0.71090735629815471,0.43560449042492078,0.19297673675498442,9.758455010539166E-2,4.665293477791236E-2,2.5313482902766183E-2,1.3915085555489483E-2,7.9983810529689441E-3,4.4622278820623338E-3,2.0912490012043963E-3,1.2426647296258284E-3,5.9578725666266862E-4,3.0819023890633153E-4,1.699171028897075E-4,9.0305609913729707E-5,8.0108028211349545E-4,1.0691567656125039E-3,5.8892247434396631E-4,2.8344980133157804E-4,1.4408081748490723E-4,6.959987867209237E-5,3.1287409283238655E-5,1.2753741025204848E-5,4.6707711961395118E-6,1.4623205277092601E-6,3.8848182604182008E-7,8.4625786245708096E-8,1.4883558356537243E-8,2.0042570290149582E-9,2.0226349639595307E-10,1.4189880689415985E-11,6.3538771215343018E-13,1.5641119271183215E-14,4.3681247613768912E-16,1.656851762146719E-17,5.8280125093978559E-19,1.3211181114437848E-20,1.4732547584750601E-22,2.1844039471303773E-25,1.5626183285067487E-29,1.1817408358657416E-35,0.70380062259167275,0.70008626695964327,0.69804299427278516,0.69259370645511698,0.68881628323419142,0.685018634381381,0.68293966113896909,0.67736432247870892,0.67350851258334754,0.6696341830274245,0.66752342650999652,0.66183176344687589,0.65790459268135426,0.65396074037150409,0.65182235240716302,0.64602491322188582,0.64203391732086101,0.63802819729203875,0.6971700444427914]
["Maroondah (C)",null,0.99971277808550441,0.99992093557771278,0.99951069642206214,0.99927813013569722,0.9999681338863381,0.9999702881284066,0.99991073736835212,0.9999602491946411,0.9996875374505545,0.99987011553205696,0.9999740803118996,0.9999776384153799,0.99990747568621707,0.99971262396983684,0.99841218109159491,0.99581532491556468,0.98077026275135393,0.95636340392075292,0.89354047026887218,0.81345356132153179,0.72339314587967718,0.45115824317965331,0.20321944157667543,0.10348296126921645,4.9676339182199741E-2,2.7010575256377244E-2,1.4868614875154352E-2,8.5544843406974019E-3,4.7762495532074952E-3,2.2407684340319928E-3,1.3327311984011466E-3,6.3982381378244061E-4,3.3133709969739467E-4,1.828624823190093E-4,9.7288864073493685E-5,8.5988768762026763E-4,1.1469359772429517E-3,6.3238430356164646E-4,3.0474401048169583E-4,1.5508443201975493E-4,7.500624902159514E-5,3.3763282553715209E-5,1.3783928474574598E-5,5.0567628395029478E-6,1.586293171631489E-6,4.2237833150008273E-7,9.2252583456085984E-8,1.6274306214553739E-8,2.1992190283198086E-9,2.2283777852413085E-10,1.5707167854165829E-11,7.0725148539434429E-13,1.7526286718055078E-14,4.9267153946699133E-16,1.8800090748799033E-17,6.6537433267182042E-19,1.5187584993620129E-20,1.7076639102864218E-22,2.5623170340797972E-25,1.8655265156460603E-29,1.4482984590065998E-35,0.71555003597940714,0.71192448990634694,0.70993026686296523,0.70460658397966758,0.70091493380102821,0.69720197422917263,0.69516961126052457,0.68971364847188354,0.68593906567545659,0.68214473998886804,0.68007787359850114,0.67449852312696179,0.67064748465795421,0.66677840837093205,0.66468092574764648,0.65898793689776247,0.65506745829233337,0.65113077462809488,0.70899767566756267]
["Melbourne (C)",null,0.99808733555593177,0.9988316942645985,0.99645812749059004,0.99597918578225442,0.9986948972411156,0.99879806434954332,0.99822403446051944,0.99910449367451815,0.9977391112901669,0.99832903605808487,0.99899802287652784,0.99901894337485908,0.99828416944634524,0.99732735348979806,0.99487194602605411,0.99249533618375041,0.986312748599112,0.98145190491674739,0.97330807918743767,0.96527770040772165,0.95714011831462542,0.93495105679998514,0.90171317874102763,0.86999078440312982,0.82939137649759098,0.7887910493803757,0.74268056136150207,0.69445849419422723,0.6377837441991443,0.5626272572489972,0.51353993361793981,0.44714859067726831,0.38641768123246362,0.33493581540578155,0.28421191969837051,0.4821672697108379,0.50603114943710537,0.4478917467966026,0.38065243467985882,0.32331172254199975,0.26611836438800346,0.21172966053972617,0.16102446153719441,0.11676362535508192,7.8813251323906694E-2,4.9686481979704059E-2,2.8879881672412126E-2,1.5463750744685334E-2,7.4491952643583907E-3,3.2359106767480966E-3,1.2337096953795195E-3,4.0228856276130923E-4,1.0579112143287115E-4,2.9727979099737472E-5,9.3773982834058846E-6,2.8743534263718807E-6,7.4841930248657547E-7,1.5216682126609418E-7,1.5061546712924676E-8,5.2058536237261184E-10,3.7505478882993578E-12,0.9535548250356809,0.95326885818535256,0.95322445644265608,0.95269337509785268,0.95240385251342519,0.95211313832151945,0.95206966652381342,0.95152812231864103,0.95123381408634788,0.9509383014040188,0.95089578735830482,0.95034364974630747,0.95004450427688136,0.94974414136942342,0.94970261257451349,0.94913975015401697,0.94883571528077404,0.94853044983901069,0.95277652175997285]
["Monash (C)",null,0.99966154901779103,0.99990158668522366,0.99945551191474225,0.99921246026083732,0.99995607834067646,0.99995964063248399,0.99988513257715184,0.99994910823155481,0.99963461121994945,0.99984204120899411,0.99996558860231033,0.99997004176684623,0.99988377249766025,0.99965762837328809,0.99825519260685858,0.99560619394913441,0.98116906129355552,0.9589875809865499,0.90358701988344259,0.83368356018659817,0.75459655866883746,0.50549957968284831,0.25120572787852952,0.13611864305971824,6.8901125210228342E-2,3.8870048247198766E-2,2.2093303919022419E-2,1.3066258910484683E-2,7.4942900585950427E-3,3.6428626498017317E-3,2.2204019588337957E-3,1.1053272209518789E-3,5.9015068534568245E-4,3.3490299851876852E-4,1.835087488953521E-4,1.4713073445378067E-3,1.9318545711933511E-3,1.0939932878905156E-3,5.4535463611103685E-4,2.8655858369344212E-4,1.4332675893894209E-4,6.6970698331833648E-5,2.8513498507561792E-5,1.0969549655818659E-5,3.6331477026680346E-6,1.0299199127390054E-6,2.4181901869576172E-7,4.6363868250398492E-8,6.8949564640035499E-9,7.8032454213868727E-10,6.2565159029543945E-11,3.2791484298791379E-12,9.7417005014059602E-14,3.2733261519816945E-15,1.4720388084634505E-16,6.1610917604458728E-18,1.6980182553321271E-19,2.3898664946011514E-21,4.9608731425621997E-24,5.8332854772866072E-28,9.2425242296685342E-34,0.75027735063799172,0.74709364728661842,0.74541210985054818,0.74065974371573384,0.7374099728822644,0.73413862183132739,0.73242002978784726,0.72753212272111645,0.72419746562247245,0.7208422101488754,0.71908889745522075,0.71407096929395775,0.71065553518652336,0.70722060512755502,0.70543511783386659,0.70029344042289732,0.69680181537436792,0.69329191339841845,0.74422842075003537]
["Nillumbik (S)",null,0.99866702734007262,0.99970898687433063,0.99875357648838303,0.99802842659645308,0.9999341936991355,0.99993903938699313,0.99977043718656033,0.99987825115357853,0.99873343242588508,0.99956530913723129,0.99994108053707842,0.99995236480321881,0.99974513862838699,0.99902959344028031,0.99262049038857481,0.97721973958244901,0.87299716694848239,0.7190988261391642,0.45361864205496266,0.28068371581034923,0.178417197475953,5.2285305274634132E-2,1.3611182201069889E-2,5.426946936157531E-3,2.1549617119453403E-3,1.0318970736126745E-3,5.0803747234661563E-4,2.6569412290156503E-4,1.3439528148381232E-4,5.5105350574011344E-5,2.9327051883404364E-5,1.2036041627611554E-5,5.419280393222609E-6,2.6361783499062736E-6,1.2267100796809055E-6,1.7244476261576329E-5,2.4482323102996632E-5,1.1893441807433434E-5,4.9073426480182342E-6,2.1633565562665798E-6,8.9680674937676995E-7,3.4075210267328688E-7,1.1500966728000306E-7,3.4094471361973484E-8,8.3603336143964025E-9,1.6802313533101974E-9,2.6554086501584979E-10,3.2383754722244064E-11,2.8584646133288836E-12,1.7790016521244024E-13,7.1280346295728767E-15,1.6578669883994287E-16,1.8683537305900519E-18,2.4520506263103835E-20,4.6619413366735898E-22,8.0901100186692102E-24,8.2471859419787266E-26,3.5602620969725172E-28,1.3347437185764381E-31,1.2722894343367621E-36,4.9012856753885853E-44,0.21712208106373909,0.21354286702972636,0.2116173111644265,0.20652713934944888,0.20309023312877617,0.19970034207351411,0.19788499577893265,0.19306063999669298,0.18981030874328012,0.18660595353253065,0.18489771057425655,0.18033398015674484,0.17726573552778596,0.17424221527764677,0.17263754150165544,0.16832797245160258,0.16543653738233252,0.16258840287504459,0.21160172169861421]
["Port Phillip (C)",null,0.99446355812934684,0.99792050939575494,0.99576631222061152,0.99449731234331984,0.99884899522685244,0.99893896006400418,0.99767964612634208,0.99883928318959758,0.99509223688990034,0.99750691064639896,0.99917685132565726,0.99926823369358364,0.99794141625788746,0.99538903476245921,0.98443928832574101,0.96947542262888742,0.91142388077065317,0.85517714668066858,0.75091406243370329,0.65381214497103746,0.56790190436908039,0.36910768092048635,0.20414538613016206,0.12801951792062527,{"$f":"EXP(AA105)/(1+EXP(AA105))","v":7.7059711571170836E-2},5.0472721599028034E-2,3.313930645523154E-2,2.2416496527443409E-2,1.4669930262406627E-2,8.5118092996334486E-3,5.7839026673480983E-3,3.4132702064792715E-3,2.088740628772874E-3,1.3448282553316974E-3,8.4194849319367538E-4,4.4412351458052619E-3,5.3862340126410637E-3,3.4197853695708789E-3,1.9831872577138212E-3,1.206501526296573E-3,7.0136981957516682E-4,3.8810654331397577E-4,1.9996222791899358E-4,9.5674100852521544E-5,4.0540915985802651E-5,1.5312625265130482E-5,5.0142650171393336E-6,1.4148066207431262E-6,3.2764165747727561E-7,6.2113471385105617E-8,9.1106873405121342E-9,9.783157876979136E-10,6.8505571092201183E-11,5.4241704342303987E-12,5.3933924305190537E-13,5.0687311213803729E-14,3.4503139201028248E-15,1.4300326800158504E-16,1.4096780514500943E-18,1.6804198932953628E-21,8.5514713673743425E-26,0.65586980824147778,0.65295081388758647,0.65221803315420079,0.64709308960152889,0.64415476671431549,0.64121040981754351,0.64048603039058583,0.63530441943195537,0.63234320095562435,0.62937677838170125,0.62866167181333144,0.62342915983680036,0.62044838503907418,0.61746324837532762,0.61675824504956245,0.61148073814501636,0.60848379007485087,0.60548333101563911,0.6481955146723114]
["South Gippsland (S)",null,0.99975391951753401,0.99987723657239569,0.99930188501593287,0.99914822127896419,0.99986780676867282,0.99988178131980388,0.9997910986523425,0.99991235675355494,0.99968241575320482,0.99979352466989158,0.99990447137996408,0.99990771211787943,0.99979695644554933,0.99961827389081725,0.99903120832585779,0.99832907961081307,{"$f":"EXP(S106)/(1+EXP(S106))","v":0.99609964066567869},0.9937983718040071,0.98943724028617519,0.98457291217787202,0.97913660056548346,0.96130560332873749,0.92877729733666947,0.89260610025402742,0.84097438004738256,0.78522034769597604,0.71874370154126177,0.64716473914585426,0.56404927128463977,0.45541050332158234,0.38853791805019772,0.30267224589615088,0.23468812326287986,0.18323576319975179,0.13864873265484742,0.33965278458958359,0.37285085770316923,0.30197293898210997,0.22735223781601002,0.17117011095851647,0.12340632802059599,8.4700990934444123E-2,5.4649367327161399E-2,3.306906910367443E-2,1.8263128061234257E-2,9.2182076798011225E-3,4.181427954396081E-3,1.6962938487738812E-3,5.9740467160458667E-4,1.8152947886028204E-4,4.5759778810721656E-5,9.1756072724832602E-6,1.3510873218262045E-6,2.1462984358318951E-7,4.0049823794515863E-8,7.1820954510487377E-9,1.0237720095412714E-9,1.015570553183922E-10,3.5630411927029527E-12,2.6620059401260884E-14,1.962794777637814E-17,0.97265631888911663,0.97240711858108519,0.97230273594518646,0.97190326979692232,0.97164860059000957,0.97139208761179374,0.97128557567839957,0.9708734883898682,0.97061138105894396,0.9703473877822788,0.97023871893173108,0.96981370072699202,0.96954398550459309,0.96927234144892149,0.96916148765217802,0.96872322346029216,0.96844572772736004,0.96816625956126245,0.97207583240744111]
["Stonnington (C)",null,{"$f":"EXP(C107)/(1+EXP(C107))","v":0.99548791344500986},0.99852322852112252,0.99633036811384601,0.99498606662224442,0.99937950898868588,0.999420452289285,0.99853740333987084,0.99923818515574991,0.995929607060836,0.99813122559430956,0.9995143727951552,0.99957964459257775,0.99860149727977021,0.99640080507469264,0.98498749543369291,0.96694209466085623,0.88731953816334586,0.80147204475456468,0.64677388094349397,0.51581594157330524,0.41168514526430788,0.21185289971972773,9.2300691501201168E-2,5.0189598429556462E-2,2.6610042647570571E-2,1.5892031602876826E-2,9.6084947878967639E-3,6.0488657230841738E-3,3.6878887523726913E-3,1.9476982826038278E-3,1.2386951206789652E-3,6.6296969176712808E-4,3.7368726833303259E-4,2.2324247634660695E-4,1.2913551417334035E-4,8.8575355010801565E-4,1.1207820441561766E-3,6.6209571264934765E-4,3.5049722194138694E-4,1.9566055249224532E-4,1.0394032078495924E-4,5.2038923326136135E-5,2.3958561992033297E-5,1.0093208223959428E-5,3.6980705972903228E-6,1.1811176916368706E-6,3.1867366304188332E-7,7.1944315286887786E-8,1.2892597831646742E-8,1.8177157152737044E-9,1.8882656360217704E-10,1.3500991457821985E-11,5.8168511278806709E-13,2.8561058837134048E-14,1.8292793235909395E-15,1.0971434294001523E-16,4.5079840144314479E-18,1.0239882547218152E-19,4.2320215148328403E-22,1.3971385200209836E-25,1.0520220522179919E-30,0.49890444117872351,0.49514274268113773,0.49380000884694614,0.4876382541179306,0.48389623218652339,0.48016153051681298,0.47884301604968188,0.47271557875301179,0.46900506308612616,0.46530333630110948,0.46401072322677134,0.45792766748813479,0.45425442243475395,0.45059136001165112,0.44932616646969448,0.44329712172830771,0.43966660217932269,0.43604757771687896,0.49077365053324445]
["Whitehorse (C)",null,0.99966413943540666,0.99990284544094066,0.99945614267067984,0.99921190486520517,0.9999571926110985,0.99996050605833275,0.999887030226419,0.99994989451215233,0.9996374224866188,0.99984385142783661,0.99996625954159979,0.99997065324593004,0.99988547250861404,0.99966100947203262,0.9982596207869544,0.99559932123971073,0.98102093472114515,0.95851624279935321,0.90217948335073261,0.83107920850355277,0.75074928365030857,0.49905938531114474,0.24544540698353196,0.13214615585202194,6.6534801273721203E-2,3.740140439914031E-2,2.1194399481936309E-2,1.2502794205035367E-2,7.1535365321507846E-3,3.4660207851982261E-3,2.1078035987776357E-3,1.0457552345793783E-3,5.5676851718307189E-4,3.1514614180477407E-4,1.7221347072716967E-4,1.3932548213823517E-3,1.832038515962029E-3,1.0349023540889113E-3,5.1428323136524232E-4,2.6943358328588614E-4,1.3434395358835578E-4,6.2557376565366404E-5,2.6531399588386472E-5,1.0162319195663048E-5,3.3489576608840887E-6,9.4388379078533246E-7,2.2014330717900693E-7,4.1884718114172203E-8,6.1740175644878238E-9,6.916360075150413E-10,5.479856055552205E-11,2.8320975463207929E-12,8.273896799505906E-14,2.7347027342354849E-15,1.2113073127393564E-16,4.9919249018736757E-18,1.352054709435717E-19,1.8638954973791493E-21,3.7548398939478016E-24,4.224002047154014E-28,6.2660645512742383E-34,0.74626023750107817,0.74302837393777954,0.74131462394650549,0.73649809833150415,0.73320014369194231,0.72988062927928088,0.7281297242500121,0.72317792267178049,0.71979525076449791,0.71639205956303631,0.71460645877111195,0.70952524463093081,0.70606220253179119,0.70257980425765043,0.70076218313730165,0.69555818422839444,0.69201960314748512,0.68846294704857658,0.74014924841724061]
["Yarra Ranges (S)",null,0.99971014719176265,0.99992100332553668,0.99949960557681328,0.99925904399632504,0.99996911164272639,0.99997108921108935,0.99991215324415628,0.99996054616642449,0.9996840464184692,0.99986965102766101,0.99997449698486474,0.99997804842094484,0.99990797390752217,0.99971101679030538,0.99837616772170179,0.9956803958184669,0.97987084935762492,0.9539880278718269,0.88721920319002423,0.80252689886170081,0.70815061994045114,0.42979428234001271,0.18774098539520417,9.4046063836466992E-2,4.4581239743128949E-2,2.4040559159244693E-2,1.3142251581338265E-2,7.5172717633524757E-3,4.1735347526152683E-3,1.9434186207775768E-3,1.149761947824643E-3,5.4766605264850116E-4,2.8174391819007203E-4,1.5455748435960921E-4,8.1706718759021966E-5,7.3762647733460491E-4,9.8724525500546107E-4,5.4119892194722343E-4,2.5889602555572133E-4,1.308422950356296E-4,6.2822973532708918E-5,2.8051326425887422E-5,1.1348250899060348E-5,4.1205376695278056E-6,1.2774690699213946E-6,3.3555835621573954E-7,7.2149012868406563E-8,1.2499908822180741E-8,1.6544281040647685E-9,1.6366090608066996E-10,1.1217842767342003E-11,4.8872842541313943E-13,1.164352529865912E-14,3.1486824001087602E-16,1.1594337898580209E-17,3.9567605451262943E-19,8.6693951431314687E-21,9.2838531750877638E-23,1.2982243525311088E-25,8.5173772442943305E-30,5.6633623062276408E-36,0.70008332630539438,0.69630989686561806,0.69421946380736343,0.68869897760917442,0.68486231194153613,0.68100540735194226,0.67887892610469036,0.67323263177196913,0.66931765829159573,0.66538424053667078,0.66322584278929886,0.65746396134328122,0.65347806481949122,0.64947565341055657,0.64728971180581374,0.64142330044278151,0.63737438417192627,0.63331100309079535,0.69338879499853723]
["Weighted Average NPV",null,0.99947616823358454,0.99984524150086806,0.99925488235888194,0.99893119902068261,0.99993197507119846,0.99993718592411274,0.99982432929793474,0.99992014221979997,0.99945280156889393,0.99976176009950846,0.99994674331438937,0.99995370944793627,0.99982444167392082,0.99949320877478498,0.99749111478853791,0.99380134073668547,0.97418597305698307,0.94532443248814735,0.87595647456722325,0.79278312031561105,0.70344095359548875,0.44632050261495321,0.21279317694964214,0.1142156067174578,5.7899694426832793E-2,3.287604676063563E-2,1.8842466055418124E-2,1.1245171258190767E-2,6.5081992575813374E-3,3.2030781281675246E-3,1.9640069256035481E-3,9.880391871447743E-4,5.3159249394518738E-4,3.0389459562816157E-4,1.6781146359984875E-4,1.3167487725854793E-3,1.7193308345394458E-3,9.7930735793109514E-4,4.9235510456829129E-4,2.6097029254060385E-4,1.3165033294908554E-4,6.2125594680699831E-5,2.6748850732541608E-5,1.0426255652984459E-5,3.5035440254784439E-6,1.0103971174985241E-6,2.4204511988171328E-7,4.7520314662517314E-8,7.2604261091146382E-9,8.4837866688183855E-10,7.0639783660245624E-11,3.874495911278069E-12,1.2154229768911949E-13,4.3189147623612766E-15,2.0464770633031122E-16,9.0328801695195614E-18,2.6404032432277487E-19,3.988179317807815E-21,9.1632400547329134E-24,1.2551339904506361E-27,2.5056547243577843E-33,0.71208275142574073,0.70865707123198851,{"$f":"EXP(BN110)/(1+EXP(BN110))","v":0.70693590969355136},0.70174901388123934,0.69826724825149811,0.6947674105301791,0.69301944066199073,0.68771481713827276,0.68416272722470706,0.68059389651319591,0.67882198966288532,0.67340741478523136,0.66979048023137688,0.66615823754253856,0.66436541622349798,0.65884932563676379,0.65517341939574325,0.65148373067034138,0.70542134540258361]
["LGA S curves (number of new connections)",2020,{"$f":"B134+1","v":2021},2022,2023,2024,2025,2026,2027,2028,2029,2030,2031,2032,2033,2034,2035,2036,2037,2038,2039,2040,2041,2042,2043,2044,2045,2046,2047,2048,2049,2050,2051,2052,2053,2054,2055,2056,2057,2058,2059,2060,2061,2062,2063,2064,2065,2066,2067,2068,2069,2070,2071,2072,2073,2074,2075,2076,2077,2078,2079,2080,2081,2082,2083,2084,{"$f":"BN134+1","v":2085},2086,2087,2088,2089,2090,2091,2092,2093,2094,2095,2096,2097,2098,2099,2100]
["Bass Coast (S)",null,{"$f":"INT(C113*C157)*(1-Scenarios!B159)","v":70},{"$f":"INT(D113*D157)*(1-Scenarios!C159)","v":71},{"$f":"INT(E113*E157)*(1-Scenarios!D159)","v":72},{"$f":"INT(F113*F157)*(1-Scenarios!E159)","v":74},{"$f":"INT(G113*G157)*(1-Scenarios!F159)","v":75},{"$f":"INT(H113*H157)*(1-Scenarios!G159)","v":76},{"$f":"INT(I113*I157)*(1-Scenarios!H159)","v":77},{"$f":"INT(J113*J157)*(1-Scenarios!I159)","v":78},{"$f":"INT(K113*K157)*(1-Scenarios!J159)","v":79},{"$f":"INT(L113*L157)*(1-Scenarios!K159)","v":80},{"$f":"INT(M113*M157)*(1-Scenarios!L159)","v":0},{"$f":"INT(N113*N157)*(1-Scenarios!M159)","v":0},{"$f":"INT(O113*O157)*(1-Scenarios!N159)","v":0},{"$f":"INT(P113*P157)*(1-Scenarios!O159)","v":0},{"$f":"INT(Q113*Q157)*(1-Scenarios!P159)","v":0},{"$f":"INT(R113*R157)*(1-Scenarios!Q159)","v":0},{"$f":"INT(S113*S157)*(1-Scenarios!R159)","v":0},{"$f":"INT(T113*T157)*(1-Scenarios!S159)","v":0},{"$f":"INT(U113*U157)*(1-Scenarios!T159)","v":0},{"$f":"INT(V113*V157)*(1-Scenarios!U159)","v":0},{"$f":"INT(W113*W157)*(1-Scenarios!V159)","v":0},{"$f":"INT(X113*X157)*(1-Scenarios!W159)","v":0},{"$f":"INT(Y113*Y157)*(1-Scenarios!X159)","v":0},{"$f":"INT(Z113*Z157)*(1-Scenarios!Y159)","v":0},{"$f":"INT(AA113*AA157)*(1-Scenarios!Z159)","v":0},{"$f":"INT(AB113*AB157)*(1-Scenarios!AA159)","v":0},{"$f":"INT(AC113*AC157)*(1-Scenarios!AB159)","v":0},{"$f":"INT(AD113*AD157)*(1-Scenarios!AC159)","v":0},{"$f":"INT(AE113*AE157)*(1-Scenarios!AD159)","v":0},{"$f":"INT(AF113*AF157)*(1-Scenarios!AE159)","v":0},{"$f":"INT(AG113*AG157)*(1-Scenarios!AF159)","v":0},{"$f":"INT(AH113*AH157)*(1-Scenarios!AG159)","v":0},{"$f":"INT(AI113*AI157)*(1-Scenarios!AH159)","v":0},{"$f":"INT(AJ113*AJ157)*(1-Scenarios!AI159)","v":0},{"$f":"INT(AK113*AK157)*(1-Scenarios!AJ159)","v":0},{"$f":"INT(AL113*AL157)*(1-Scenarios!AK159)","v":0},{"$f":"INT(AM113*AM157)*(1-Scenarios!AL159)","v":0},{"$f":"INT(AN113*AN157)*(1-Scenarios!AM159)","v":0},{"$f":"INT(AO113*AO157)*(1-Scenarios!AN159)","v":0},{"$f":"INT(AP113*AP157)*(1-Scenarios!AO159)","v":0},{"$f":"INT(AQ113*AQ157)*(1-Scenarios!AP159)","v":0},{"$f":"INT(AR113*AR157)*(1-Scenarios!AQ159)","v":0},{"$f":"INT(AS113*AS157)*(1-Scenarios!AR159)","v":0},{"$f":"INT(AT113*AT157)*(1-Scenarios!AS159)","v":0},{"$f":"INT(AU113*AU157)*(1-Scenarios!AT159)","v":0},{"$f":"INT(AV113*AV157)*(1-Scenarios!AU159)","v":0},{"$f":"INT(AW113*AW157)*(1-Scenarios!AV159)","v":0},{"$f":"INT(AX113*AX157)*(1-Scenarios!AW159)","v":0},{"$f":"INT(AY113*AY157)*(1-Scenarios!AX159)","v":0},{"$f":"INT(AZ113*AZ157)*(1-Scenarios!AY159)","v":0},{"$f":"INT(BA113*BA157)*(1-Scenarios!AZ159)","v":0},{"$f":"INT(BB113*BB157)*(1-Scenarios!BA159)","v":0},{"$f":"INT(BC113*BC157)*(1-Scenarios!BB159)","v":0},{"$f":"INT(BD113*BD157)*(1-Scenarios!BC159)","v":0},{"$f":"INT(BE113*BE157)*(1-Scenarios!BD159)","v":0},{"$f":"INT(BF113*BF157)*(1-Scenarios!BE159)","v":0},{"$f":"INT(BG113*BG157)*(1-Scenarios!BF159)","v":0},{"$f":"INT(BH113*BH157)*(1-Scenarios!BG159)","v":0},{"$f":"INT(BI113*BI157)*(1-Scenarios!BH159)","v":0},{"$f":"INT(BJ113*BJ157)*(1-Scenarios!BI159)","v":0},{"$f":"INT(BK113*BK157)*(1-Scenarios!BJ159)","v":0},{"$f":"INT(BL113*BL157)*(1-Scenarios!BK159)","v":0},{"$f":"INT(BM113*BM157)*(1-Scenarios!BL159)","v":0},{"$f":"INT(BN113*BN157)*(1-Scenarios!BM159)","v":0},{"$f":"INT(BO113*BO157)*(1-Scenarios!BN159)","v":0},{"$f":"INT(BP113*BP157)*(1-Scenarios!BO159)","v":0},{"$f":"INT(BQ113*BQ157)*(1-Scenarios!BP159)","v":0},{"$f":"INT(BR113*BR157)*(1-Scenarios!BQ159)","v":0},{"$f":"INT(BS113*BS157)*(1-Scenarios!BR159)","v":0},{"$f":"INT(BT113*BT157)*(1-Scenarios!BS159)","v":0},{"$f":"INT(BU113*BU157)*(1-Scenarios!BT159)","v":0},{"$f":"INT(BV113*BV157)*(1-Scenarios!BU159)","v":0},{"$f":"INT(BW113*BW157)*(1-Scenarios!BV159)","v":0},{"$f":"INT(BX113*BX157)*(1-Scenarios!BW159)","v":0},{"$f":"INT(BY113*BY157)*(1-Scenarios!BX159)","v":0},{"$f":"INT(BZ113*BZ157)*(1-Scenarios!BY159)","v":0},{"$f":"INT(CA113*CA157)*(1-Scenarios!BZ159)","v":0},{"$f":"INT(CB113*CB157)*(1-Scenarios!CA159)","v":0},{"$f":"INT(CC113*CC157)*(1-Scenarios!CB159)","v":0},{"$f":"INT(CD113*CD157)*(1-Scenarios!CC159)","v":0}]
["Bayside (C)",null,{"$f":"INT(C114*C158)*(1-Scenarios!B160)","v":746},{"$f":"INT(D114*D158)*(1-Scenarios!C160)","v":758},{"$f":"INT(E114*E158)*(1-Scenarios!D160)","v":769},{"$f":"INT(F114*F158)*(1-Scenarios!E160)","v":780},{"$f":"INT(G114*G158)*(1-Scenarios!F160)","v":793},{"$f":"INT(H114*H158)*(1-Scenarios!G160)","v":805},{"$f":"INT(I114*I158)*(1-Scenarios!H160)","v":817},{"$f":"INT(J114*J158)*(1-Scenarios!I160)","v":829},{"$f":"INT(K114*K158)*(1-Scenarios!J160)","v":841},{"$f":"INT(L114*L158)*(1-Scenarios!K160)","v":854},{"$f":"INT(M114*M158)*(1-Scenarios!L160)","v":0},{"$f":"INT(N114*N158)*(1-Scenarios!M160)","v":0},{"$f":"INT(O114*O158)*(1-Scenarios!N160)","v":0},{"$f":"INT(P114*P158)*(1-Scenarios!O160)","v":0},{"$f":"INT(Q114*Q158)*(1-Scenarios!P160)","v":0},{"$f":"INT(R114*R158)*(1-Scenarios!Q160)","v":0},{"$f":"INT(S114*S158)*(1-Scenarios!R160)","v":0},{"$f":"INT(T114*T158)*(1-Scenarios!S160)","v":0},{"$f":"INT(U114*U158)*(1-Scenarios!T160)","v":0},{"$f":"INT(V114*V158)*(1-Scenarios!U160)","v":0},{"$f":"INT(W114*W158)*(1-Scenarios!V160)","v":0},{"$f":"INT(X114*X158)*(1-Scenarios!W160)","v":0},{"$f":"INT(Y114*Y158)*(1-Scenarios!X160)","v":0},{"$f":"INT(Z114*Z158)*(1-Scenarios!Y160)","v":0},{"$f":"INT(AA114*AA158)*(1-Scenarios!Z160)","v":0},{"$f":"INT(AB114*AB158)*(1-Scenarios!AA160)","v":0},{"$f":"INT(AC114*AC158)*(1-Scenarios!AB160)","v":0},{"$f":"INT(AD114*AD158)*(1-Scenarios!AC160)","v":0},{"$f":"INT(AE114*AE158)*(1-Scenarios!AD160)","v":0},{"$f":"INT(AF114*AF158)*(1-Scenarios!AE160)","v":0},{"$f":"INT(AG114*AG158)*(1-Scenarios!AF160)","v":0},{"$f":"INT(AH114*AH158)*(1-Scenarios!AG160)","v":0},{"$f":"INT(AI114*AI158)*(1-Scenarios!AH160)","v":0},{"$f":"INT(AJ114*AJ158)*(1-Scenarios!AI160)","v":0},{"$f":"INT(AK114*AK158)*(1-Scenarios!AJ160)","v":0},{"$f":"INT(AL114*AL158)*(1-Scenarios!AK160)","v":0},{"$f":"INT(AM114*AM158)*(1-Scenarios!AL160)","v":0},{"$f":"INT(AN114*AN158)*(1-Scenarios!AM160)","v":0},{"$f":"INT(AO114*AO158)*(1-Scenarios!AN160)","v":0},{"$f":"INT(AP114*AP158)*(1-Scenarios!AO160)","v":0},{"$f":"INT(AQ114*AQ158)*(1-Scenarios!AP160)","v":0},{"$f":"INT(AR114*AR158)*(1-Scenarios!AQ160)","v":0},{"$f":"INT(AS114*AS158)*(1-Scenarios!AR160)","v":0},{"$f":"INT(AT114*AT158)*(1-Scenarios!AS160)","v":0},{"$f":"INT(AU114*AU158)*(1-Scenarios!AT160)","v":0},{"$f":"INT(AV114*AV158)*(1-Scenarios!AU160)","v":0},{"$f":"INT(AW114*AW158)*(1-Scenarios!AV160)","v":0},{"$f":"INT(AX114*AX158)*(1-Scenarios!AW160)","v":0},{"$f":"INT(AY114*AY158)*(1-Scenarios!AX160)","v":0},{"$f":"INT(AZ114*AZ158)*(1-Scenarios!AY160)","v":0},{"$f":"INT(BA114*BA158)*(1-Scenarios!AZ160)","v":0},{"$f":"INT(BB114*BB158)*(1-Scenarios!BA160)","v":0},{"$f":"INT(BC114*BC158)*(1-Scenarios!BB160)","v":0},{"$f":"INT(BD114*BD158)*(1-Scenarios!BC160)","v":0},{"$f":"INT(BE114*BE158)*(1-Scenarios!BD160)","v":0},{"$f":"INT(BF114*BF158)*(1-Scenarios!BE160)","v":0},{"$f":"INT(BG114*BG158)*(1-Scenarios!BF160)","v":0},{"$f":"INT(BH114*BH158)*(1-Scenarios!BG160)","v":0},{"$f":"INT(BI114*BI158)*(1-Scenarios!BH160)","v":0},{"$f":"INT(BJ114*BJ158)*(1-Scenarios!BI160)","v":0},{"$f":"INT(BK114*BK158)*(1-Scenarios!BJ160)","v":0},{"$f":"INT(BL114*BL158)*(1-Scenarios!BK160)","v":0},{"$f":"INT(BM114*BM158)*(1-Scenarios!BL160)","v":0},{"$f":"INT(BN114*BN158)*(1-Scenarios!BM160)","v":0},{"$f":"INT(BO114*BO158)*(1-Scenarios!BN160)","v":0},{"$f":"INT(BP114*BP158)*(1-Scenarios!BO160)","v":0},{"$f":"INT(BQ114*BQ158)*(1-Scenarios!BP160)","v":0},{"$f":"INT(BR114*BR158)*(1-Scenarios!BQ160)","v":0},{"$f":"INT(BS114*BS158)*(1-Scenarios!BR160)","v":0},{"$f":"INT(BT114*BT158)*(1-Scenarios!BS160)","v":0},{"$f":"INT(BU114*BU158)*(1-Scenarios!BT160)","v":0},{"$f":"INT(BV114*BV158)*(1-Scenarios!BU160)","v":0},{"$f":"INT(BW114*BW158)*(1-Scenarios!BV160)","v":0},{"$f":"INT(BX114*BX158)*(1-Scenarios!BW160)","v":0},{"$f":"INT(BY114*BY158)*(1-Scenarios!BX160)","v":0},{"$f":"INT(BZ114*BZ158)*(1-Scenarios!BY160)","v":0},{"$f":"INT(CA114*CA158)*(1-Scenarios!BZ160)","v":0},{"$f":"INT(CB114*CB158)*(1-Scenarios!CA160)","v":0},{"$f":"INT(CC114*CC158)*(1-Scenarios!CB160)","v":0},{"$f":"INT(CD114*CD158)*(1-Scenarios!CC160)","v":0}]
["Boroondara (C)",null,{"$f":"INT(C115*C159)*(1-Scenarios!B161)","v":1267},{"$f":"INT(D115*D159)*(1-Scenarios!C161)","v":1287},{"$f":"INT(E115*E159)*(1-Scenarios!D161)","v":1306},{"$f":"INT(F115*F159)*(1-Scenarios!E161)","v":1325},{"$f":"INT(G115*G159)*(1-Scenarios!F161)","v":1346},{"$f":"INT(H115*H159)*(1-Scenarios!G161)","v":1367},{"$f":"INT(I115*I159)*(1-Scenarios!H161)","v":1387},{"$f":"INT(J115*J159)*(1-Scenarios!I161)","v":1408},{"$f":"INT(K115*K159)*(1-Scenarios!J161)","v":1428},{"$f":"INT(L115*L159)*(1-Scenarios!K161)","v":1450},{"$f":"INT(M115*M159)*(1-Scenarios!L161)","v":0},{"$f":"INT(N115*N159)*(1-Scenarios!M161)","v":0},{"$f":"INT(O115*O159)*(1-Scenarios!N161)","v":0},{"$f":"INT(P115*P159)*(1-Scenarios!O161)","v":0},{"$f":"INT(Q115*Q159)*(1-Scenarios!P161)","v":0},{"$f":"INT(R115*R159)*(1-Scenarios!Q161)","v":0},{"$f":"INT(S115*S159)*(1-Scenarios!R161)","v":0},{"$f":"INT(T115*T159)*(1-Scenarios!S161)","v":0},{"$f":"INT(U115*U159)*(1-Scenarios!T161)","v":0},{"$f":"INT(V115*V159)*(1-Scenarios!U161)","v":0},{"$f":"INT(W115*W159)*(1-Scenarios!V161)","v":0},{"$f":"INT(X115*X159)*(1-Scenarios!W161)","v":0},{"$f":"INT(Y115*Y159)*(1-Scenarios!X161)","v":0},{"$f":"INT(Z115*Z159)*(1-Scenarios!Y161)","v":0},{"$f":"INT(AA115*AA159)*(1-Scenarios!Z161)","v":0},{"$f":"INT(AB115*AB159)*(1-Scenarios!AA161)","v":0},{"$f":"INT(AC115*AC159)*(1-Scenarios!AB161)","v":0},{"$f":"INT(AD115*AD159)*(1-Scenarios!AC161)","v":0},{"$f":"INT(AE115*AE159)*(1-Scenarios!AD161)","v":0},{"$f":"INT(AF115*AF159)*(1-Scenarios!AE161)","v":0},{"$f":"INT(AG115*AG159)*(1-Scenarios!AF161)","v":0},{"$f":"INT(AH115*AH159)*(1-Scenarios!AG161)","v":0},{"$f":"INT(AI115*AI159)*(1-Scenarios!AH161)","v":0},{"$f":"INT(AJ115*AJ159)*(1-Scenarios!AI161)","v":0},{"$f":"INT(AK115*AK159)*(1-Scenarios!AJ161)","v":0},{"$f":"INT(AL115*AL159)*(1-Scenarios!AK161)","v":0},{"$f":"INT(AM115*AM159)*(1-Scenarios!AL161)","v":0},{"$f":"INT(AN115*AN159)*(1-Scenarios!AM161)","v":0},{"$f":"INT(AO115*AO159)*(1-Scenarios!AN161)","v":0},{"$f":"INT(AP115*AP159)*(1-Scenarios!AO161)","v":0},{"$f":"INT(AQ115*AQ159)*(1-Scenarios!AP161)","v":0},{"$f":"INT(AR115*AR159)*(1-Scenarios!AQ161)","v":0},{"$f":"INT(AS115*AS159)*(1-Scenarios!AR161)","v":0},{"$f":"INT(AT115*AT159)*(1-Scenarios!AS161)","v":0},{"$f":"INT(AU115*AU159)*(1-Scenarios!AT161)","v":0},{"$f":"INT(AV115*AV159)*(1-Scenarios!AU161)","v":0},{"$f":"INT(AW115*AW159)*(1-Scenarios!AV161)","v":0},{"$f":"INT(AX115*AX159)*(1-Scenarios!AW161)","v":0},{"$f":"INT(AY115*AY159)*(1-Scenarios!AX161)","v":0},{"$f":"INT(AZ115*AZ159)*(1-Scenarios!AY161)","v":0},{"$f":"INT(BA115*BA159)*(1-Scenarios!AZ161)","v":0},{"$f":"INT(BB115*BB159)*(1-Scenarios!BA161)","v":0},{"$f":"INT(BC115*BC159)*(1-Scenarios!BB161)","v":0},{"$f":"INT(BD115*BD159)*(1-Scenarios!BC161)","v":0},{"$f":"INT(BE115*BE159)*(1-Scenarios!BD161)","v":0},{"$f":"INT(BF115*BF159)*(1-Scenarios!BE161)","v":0},{"$f":"INT(BG115*BG159)*(1-Scenarios!BF161)","v":0},{"$f":"INT(BH115*BH159)*(1-Scenarios!BG161)","v":0},{"$f":"INT(BI115*BI159)*(1-Scenarios!BH161)","v":0},{"$f":"INT(BJ115*BJ159)*(1-Scenarios!BI161)","v":0},{"$f":"INT(BK115*BK159)*(1-Scenarios!BJ161)","v":0},{"$f":"INT(BL115*BL159)*(1-Scenarios!BK161)","v":0},{"$f":"INT(BM115*BM159)*(1-Scenarios!BL161)","v":0},{"$f":"INT(BN115*BN159)*(1-Scenarios!BM161)","v":0},{"$f":"INT(BO115*BO159)*(1-Scenarios!BN161)","v":0},{"$f":"INT(BP115*BP159)*(1-Scenarios!BO161)","v":0},{"$f":"INT(BQ115*BQ159)*(1-Scenarios!BP161)","v":0},{"$f":"INT(BR115*BR159)*(1-Scenarios!BQ161)","v":0},{"$f":"INT(BS115*BS159)*(1-Scenarios!BR161)","v":0},{"$f":"INT(BT115*BT159)*(1-Scenarios!BS161)","v":0},{"$f":"INT(BU115*BU159)*(1-Scenarios!BT161)","v":0},{"$f":"INT(BV115*BV159)*(1-Scenarios!BU161)","v":0},{"$f":"INT(BW115*BW159)*(1-Scenarios!BV161)","v":0},{"$f":"INT(BX115*BX159)*(1-Scenarios!BW161)","v":0},{"$f":"INT(BY115*BY159)*(1-Scenarios!BX161)","v":0},{"$f":"INT(BZ115*BZ159)*(1-Scenarios!BY161)","v":0},{"$f":"INT(CA115*CA159)*(1-Scenarios!BZ161)","v":0},{"$f":"INT(CB115*CB159)*(1-Scenarios!CA161)","v":0},{"$f":"INT(CC115*CC159)*(1-Scenarios!CB161)","v":0},{"$f":"INT(CD115*CD159)*(1-Scenarios!CC161)","v":0}]
["Cardinia (S)",null,{"$f":"INT(C116*C160)*(1-Scenarios!B162)","v":83},{"$f":"INT(D116*D160)*(1-Scenarios!C162)","v":84},{"$f":"INT(E116*E160)*(1-Scenarios!D162)","v":85},{"$f":"INT(F116*F160)*(1-Scenarios!E162)","v":87},{"$f":"INT(G116*G160)*(1-Scenarios!F162)","v":88},{"$f":"INT(H116*H160)*(1-Scenarios!G162)","v":89},{"$f":"INT(I116*I160)*(1-Scenarios!H162)","v":91},{"$f":"INT(J116*J160)*(1-Scenarios!I162)","v":92},{"$f":"INT(K116*K160)*(1-Scenarios!J162)","v":93},{"$f":"INT(L116*L160)*(1-Scenarios!K162)","v":95},{"$f":"INT(M116*M160)*(1-Scenarios!L162)","v":0},{"$f":"INT(N116*N160)*(1-Scenarios!M162)","v":0},{"$f":"INT(O116*O160)*(1-Scenarios!N162)","v":0},{"$f":"INT(P116*P160)*(1-Scenarios!O162)","v":0},{"$f":"INT(Q116*Q160)*(1-Scenarios!P162)","v":0},{"$f":"INT(R116*R160)*(1-Scenarios!Q162)","v":0},{"$f":"INT(S116*S160)*(1-Scenarios!R162)","v":0},{"$f":"INT(T116*T160)*(1-Scenarios!S162)","v":0},{"$f":"INT(U116*U160)*(1-Scenarios!T162)","v":0},{"$f":"INT(V116*V160)*(1-Scenarios!U162)","v":0},{"$f":"INT(W116*W160)*(1-Scenarios!V162)","v":0},{"$f":"INT(X116*X160)*(1-Scenarios!W162)","v":0},{"$f":"INT(Y116*Y160)*(1-Scenarios!X162)","v":0},{"$f":"INT(Z116*Z160)*(1-Scenarios!Y162)","v":0},{"$f":"INT(AA116*AA160)*(1-Scenarios!Z162)","v":0},{"$f":"INT(AB116*AB160)*(1-Scenarios!AA162)","v":0},{"$f":"INT(AC116*AC160)*(1-Scenarios!AB162)","v":0},{"$f":"INT(AD116*AD160)*(1-Scenarios!AC162)","v":0},{"$f":"INT(AE116*AE160)*(1-Scenarios!AD162)","v":0},{"$f":"INT(AF116*AF160)*(1-Scenarios!AE162)","v":0},{"$f":"INT(AG116*AG160)*(1-Scenarios!AF162)","v":0},{"$f":"INT(AH116*AH160)*(1-Scenarios!AG162)","v":0},{"$f":"INT(AI116*AI160)*(1-Scenarios!AH162)","v":0},{"$f":"INT(AJ116*AJ160)*(1-Scenarios!AI162)","v":0},{"$f":"INT(AK116*AK160)*(1-Scenarios!AJ162)","v":0},{"$f":"INT(AL116*AL160)*(1-Scenarios!AK162)","v":0},{"$f":"INT(AM116*AM160)*(1-Scenarios!AL162)","v":0},{"$f":"INT(AN116*AN160)*(1-Scenarios!AM162)","v":0},{"$f":"INT(AO116*AO160)*(1-Scenarios!AN162)","v":0},{"$f":"INT(AP116*AP160)*(1-Scenarios!AO162)","v":0},{"$f":"INT(AQ116*AQ160)*(1-Scenarios!AP162)","v":0},{"$f":"INT(AR116*AR160)*(1-Scenarios!AQ162)","v":0},{"$f":"INT(AS116*AS160)*(1-Scenarios!AR162)","v":0},{"$f":"INT(AT116*AT160)*(1-Scenarios!AS162)","v":0},{"$f":"INT(AU116*AU160)*(1-Scenarios!AT162)","v":0},{"$f":"INT(AV116*AV160)*(1-Scenarios!AU162)","v":0},{"$f":"INT(AW116*AW160)*(1-Scenarios!AV162)","v":0},{"$f":"INT(AX116*AX160)*(1-Scenarios!AW162)","v":0},{"$f":"INT(AY116*AY160)*(1-Scenarios!AX162)","v":0},{"$f":"INT(AZ116*AZ160)*(1-Scenarios!AY162)","v":0},{"$f":"INT(BA116*BA160)*(1-Scenarios!AZ162)","v":0},{"$f":"INT(BB116*BB160)*(1-Scenarios!BA162)","v":0},{"$f":"INT(BC116*BC160)*(1-Scenarios!BB162)","v":0},{"$f":"INT(BD116*BD160)*(1-Scenarios!BC162)","v":0},{"$f":"INT(BE116*BE160)*(1-Scenarios!BD162)","v":0},{"$f":"INT(BF116*BF160)*(1-Scenarios!BE162)","v":0},{"$f":"INT(BG116*BG160)*(1-Scenarios!BF162)","v":0},{"$f":"INT(BH116*BH160)*(1-Scenarios!BG162)","v":0},{"$f":"INT(BI116*BI160)*(1-Scenarios!BH162)","v":0},{"$f":"INT(BJ116*BJ160)*(1-Scenarios!BI162)","v":0},{"$f":"INT(BK116*BK160)*(1-Scenarios!BJ162)","v":0},{"$f":"INT(BL116*BL160)*(1-Scenarios!BK162)","v":0},{"$f":"INT(BM116*BM160)*(1-Scenarios!BL162)","v":0},{"$f":"INT(BN116*BN160)*(1-Scenarios!BM162)","v":0},{"$f":"INT(BO116*BO160)*(1-Scenarios!BN162)","v":0},{"$f":"INT(BP116*BP160)*(1-Scenarios!BO162)","v":0},{"$f":"INT(BQ116*BQ160)*(1-Scenarios!BP162)","v":0},{"$f":"INT(BR116*BR160)*(1-Scenarios!BQ162)","v":0},{"$f":"INT(BS116*BS160)*(1-Scenarios!BR162)","v":0},{"$f":"INT(BT116*BT160)*(1-Scenarios!BS162)","v":0},{"$f":"INT(BU116*BU160)*(1-Scenarios!BT162)","v":0},{"$f":"INT(BV116*BV160)*(1-Scenarios!BU162)","v":0},{"$f":"INT(BW116*BW160)*(1-Scenarios!BV162)","v":0},{"$f":"INT(BX116*BX160)*(1-Scenarios!BW162)","v":0},{"$f":"INT(BY116*BY160)*(1-Scenarios!BX162)","v":0},{"$f":"INT(BZ116*BZ160)*(1-Scenarios!BY162)","v":0},{"$f":"INT(CA116*CA160)*(1-Scenarios!BZ162)","v":0},{"$f":"INT(CB116*CB160)*(1-Scenarios!CA162)","v":0},{"$f":"INT(CC116*CC160)*(1-Scenarios!CB162)","v":0},{"$f":"INT(CD116*CD160)*(1-Scenarios!CC162)","v":0}]
["Casey (C)",null,{"$f":"INT(C117*C161)*(1-Scenarios!B163)","v":261},{"$f":"INT(D117*D161)*(1-Scenarios!C163)","v":265},{"$f":"INT(E117*E161)*(1-Scenarios!D163)","v":269},{"$f":"INT(F117*F161)*(1-Scenarios!E163)","v":273},{"$f":"INT(G117*G161)*(1-Scenarios!F163)","v":277},{"$f":"INT(H117*H161)*(1-Scenarios!G163)","v":281},{"$f":"INT(I117*I161)*(1-Scenarios!H163)","v":285},{"$f":"INT(J117*J161)*(1-Scenarios!I163)","v":290},{"$f":"INT(K117*K161)*(1-Scenarios!J163)","v":294},{"$f":"INT(L117*L161)*(1-Scenarios!K163)","v":298},{"$f":"INT(M117*M161)*(1-Scenarios!L163)","v":0},{"$f":"INT(N117*N161)*(1-Scenarios!M163)","v":0},{"$f":"INT(O117*O161)*(1-Scenarios!N163)","v":0},{"$f":"INT(P117*P161)*(1-Scenarios!O163)","v":0},{"$f":"INT(Q117*Q161)*(1-Scenarios!P163)","v":0},{"$f":"INT(R117*R161)*(1-Scenarios!Q163)","v":0},{"$f":"INT(S117*S161)*(1-Scenarios!R163)","v":0},{"$f":"INT(T117*T161)*(1-Scenarios!S163)","v":0},{"$f":"INT(U117*U161)*(1-Scenarios!T163)","v":0},{"$f":"INT(V117*V161)*(1-Scenarios!U163)","v":0},{"$f":"INT(W117*W161)*(1-Scenarios!V163)","v":0},{"$f":"INT(X117*X161)*(1-Scenarios!W163)","v":0},{"$f":"INT(Y117*Y161)*(1-Scenarios!X163)","v":0},{"$f":"INT(Z117*Z161)*(1-Scenarios!Y163)","v":0},{"$f":"INT(AA117*AA161)*(1-Scenarios!Z163)","v":0},{"$f":"INT(AB117*AB161)*(1-Scenarios!AA163)","v":0},{"$f":"INT(AC117*AC161)*(1-Scenarios!AB163)","v":0},{"$f":"INT(AD117*AD161)*(1-Scenarios!AC163)","v":0},{"$f":"INT(AE117*AE161)*(1-Scenarios!AD163)","v":0},{"$f":"INT(AF117*AF161)*(1-Scenarios!AE163)","v":0},{"$f":"INT(AG117*AG161)*(1-Scenarios!AF163)","v":0},{"$f":"INT(AH117*AH161)*(1-Scenarios!AG163)","v":0},{"$f":"INT(AI117*AI161)*(1-Scenarios!AH163)","v":0},{"$f":"INT(AJ117*AJ161)*(1-Scenarios!AI163)","v":0},{"$f":"INT(AK117*AK161)*(1-Scenarios!AJ163)","v":0},{"$f":"INT(AL117*AL161)*(1-Scenarios!AK163)","v":0},{"$f":"INT(AM117*AM161)*(1-Scenarios!AL163)","v":0},{"$f":"INT(AN117*AN161)*(1-Scenarios!AM163)","v":0},{"$f":"INT(AO117*AO161)*(1-Scenarios!AN163)","v":0},{"$f":"INT(AP117*AP161)*(1-Scenarios!AO163)","v":0},{"$f":"INT(AQ117*AQ161)*(1-Scenarios!AP163)","v":0},{"$f":"INT(AR117*AR161)*(1-Scenarios!AQ163)","v":0},{"$f":"INT(AS117*AS161)*(1-Scenarios!AR163)","v":0},{"$f":"INT(AT117*AT161)*(1-Scenarios!AS163)","v":0},{"$f":"INT(AU117*AU161)*(1-Scenarios!AT163)","v":0},{"$f":"INT(AV117*AV161)*(1-Scenarios!AU163)","v":0},{"$f":"INT(AW117*AW161)*(1-Scenarios!AV163)","v":0},{"$f":"INT(AX117*AX161)*(1-Scenarios!AW163)","v":0},{"$f":"INT(AY117*AY161)*(1-Scenarios!AX163)","v":0},{"$f":"INT(AZ117*AZ161)*(1-Scenarios!AY163)","v":0},{"$f":"INT(BA117*BA161)*(1-Scenarios!AZ163)","v":0},{"$f":"INT(BB117*BB161)*(1-Scenarios!BA163)","v":0},{"$f":"INT(BC117*BC161)*(1-Scenarios!BB163)","v":0},{"$f":"INT(BD117*BD161)*(1-Scenarios!BC163)","v":0},{"$f":"INT(BE117*BE161)*(1-Scenarios!BD163)","v":0},{"$f":"INT(BF117*BF161)*(1-Scenarios!BE163)","v":0},{"$f":"INT(BG117*BG161)*(1-Scenarios!BF163)","v":0},{"$f":"INT(BH117*BH161)*(1-Scenarios!BG163)","v":0},{"$f":"INT(BI117*BI161)*(1-Scenarios!BH163)","v":0},{"$f":"INT(BJ117*BJ161)*(1-Scenarios!BI163)","v":0},{"$f":"INT(BK117*BK161)*(1-Scenarios!BJ163)","v":0},{"$f":"INT(BL117*BL161)*(1-Scenarios!BK163)","v":0},{"$f":"INT(BM117*BM161)*(1-Scenarios!BL163)","v":0},{"$f":"INT(BN117*BN161)*(1-Scenarios!BM163)","v":0},{"$f":"INT(BO117*BO161)*(1-Scenarios!BN163)","v":0},{"$f":"INT(BP117*BP161)*(1-Scenarios!BO163)","v":0},{"$f":"INT(BQ117*BQ161)*(1-Scenarios!BP163)","v":0},{"$f":"INT(BR117*BR161)*(1-Scenarios!BQ163)","v":0},{"$f":"INT(BS117*BS161)*(1-Scenarios!BR163)","v":0},{"$f":"INT(BT117*BT161)*(1-Scenarios!BS163)","v":0},{"$f":"INT(BU117*BU161)*(1-Scenarios!BT163)","v":0},{"$f":"INT(BV117*BV161)*(1-Scenarios!BU163)","v":0},{"$f":"INT(BW117*BW161)*(1-Scenarios!BV163)","v":0},{"$f":"INT(BX117*BX161)*(1-Scenarios!BW163)","v":0},{"$f":"INT(BY117*BY161)*(1-Scenarios!BX163)","v":0},{"$f":"INT(BZ117*BZ161)*(1-Scenarios!BY163)","v":0},{"$f":"INT(CA117*CA161)*(1-Scenarios!BZ163)","v":0},{"$f":"INT(CB117*CB161)*(1-Scenarios!CA163)","v":0},{"$f":"INT(CC117*CC161)*(1-Scenarios!CB163)","v":0},{"$f":"INT(CD117*CD161)*(1-Scenarios!CC163)","v":0}]
["Frankston (C)",null,{"$f":"INT(C118*C162)*(1-Scenarios!B164)","v":0},{"$f":"INT(D118*D162)*(1-Scenarios!C164)","v":0},{"$f":"INT(E118*E162)*(1-Scenarios!D164)","v":0},{"$f":"INT(F118*F162)*(1-Scenarios!E164)","v":0},{"$f":"INT(G118*G162)*(1-Scenarios!F164)","v":0},{"$f":"INT(H118*H162)*(1-Scenarios!G164)","v":0},{"$f":"INT(I118*I162)*(1-Scenarios!H164)","v":0},{"$f":"INT(J118*J162)*(1-Scenarios!I164)","v":0},{"$f":"INT(K118*K162)*(1-Scenarios!J164)","v":0},{"$f":"INT(L118*L162)*(1-Scenarios!K164)","v":0},{"$f":"INT(M118*M162)*(1-Scenarios!L164)","v":0},{"$f":"INT(N118*N162)*(1-Scenarios!M164)","v":0},{"$f":"INT(O118*O162)*(1-Scenarios!N164)","v":0},{"$f":"INT(P118*P162)*(1-Scenarios!O164)","v":0},{"$f":"INT(Q118*Q162)*(1-Scenarios!P164)","v":0},{"$f":"INT(R118*R162)*(1-Scenarios!Q164)","v":0},{"$f":"INT(S118*S162)*(1-Scenarios!R164)","v":0},{"$f":"INT(T118*T162)*(1-Scenarios!S164)","v":0},{"$f":"INT(U118*U162)*(1-Scenarios!T164)","v":0},{"$f":"INT(V118*V162)*(1-Scenarios!U164)","v":0},{"$f":"INT(W118*W162)*(1-Scenarios!V164)","v":0},{"$f":"INT(X118*X162)*(1-Scenarios!W164)","v":0},{"$f":"INT(Y118*Y162)*(1-Scenarios!X164)","v":0},{"$f":"INT(Z118*Z162)*(1-Scenarios!Y164)","v":0},{"$f":"INT(AA118*AA162)*(1-Scenarios!Z164)","v":0},{"$f":"INT(AB118*AB162)*(1-Scenarios!AA164)","v":0},{"$f":"INT(AC118*AC162)*(1-Scenarios!AB164)","v":0},{"$f":"INT(AD118*AD162)*(1-Scenarios!AC164)","v":0},{"$f":"INT(AE118*AE162)*(1-Scenarios!AD164)","v":0},{"$f":"INT(AF118*AF162)*(1-Scenarios!AE164)","v":0},{"$f":"INT(AG118*AG162)*(1-Scenarios!AF164)","v":0},{"$f":"INT(AH118*AH162)*(1-Scenarios!AG164)","v":0},{"$f":"INT(AI118*AI162)*(1-Scenarios!AH164)","v":0},{"$f":"INT(AJ118*AJ162)*(1-Scenarios!AI164)","v":0},{"$f":"INT(AK118*AK162)*(1-Scenarios!AJ164)","v":0},{"$f":"INT(AL118*AL162)*(1-Scenarios!AK164)","v":0},{"$f":"INT(AM118*AM162)*(1-Scenarios!AL164)","v":0},{"$f":"INT(AN118*AN162)*(1-Scenarios!AM164)","v":0},{"$f":"INT(AO118*AO162)*(1-Scenarios!AN164)","v":0},{"$f":"INT(AP118*AP162)*(1-Scenarios!AO164)","v":0},{"$f":"INT(AQ118*AQ162)*(1-Scenarios!AP164)","v":0},{"$f":"INT(AR118*AR162)*(1-Scenarios!AQ164)","v":0},{"$f":"INT(AS118*AS162)*(1-Scenarios!AR164)","v":0},{"$f":"INT(AT118*AT162)*(1-Scenarios!AS164)","v":0},{"$f":"INT(AU118*AU162)*(1-Scenarios!AT164)","v":0},{"$f":"INT(AV118*AV162)*(1-Scenarios!AU164)","v":0},{"$f":"INT(AW118*AW162)*(1-Scenarios!AV164)","v":0},{"$f":"INT(AX118*AX162)*(1-Scenarios!AW164)","v":0},{"$f":"INT(AY118*AY162)*(1-Scenarios!AX164)","v":0},{"$f":"INT(AZ118*AZ162)*(1-Scenarios!AY164)","v":0},{"$f":"INT(BA118*BA162)*(1-Scenarios!AZ164)","v":0},{"$f":"INT(BB118*BB162)*(1-Scenarios!BA164)","v":0},{"$f":"INT(BC118*BC162)*(1-Scenarios!BB164)","v":0},{"$f":"INT(BD118*BD162)*(1-Scenarios!BC164)","v":0},{"$f":"INT(BE118*BE162)*(1-Scenarios!BD164)","v":0},{"$f":"INT(BF118*BF162)*(1-Scenarios!BE164)","v":0},{"$f":"INT(BG118*BG162)*(1-Scenarios!BF164)","v":0},{"$f":"INT(BH118*BH162)*(1-Scenarios!BG164)","v":0},{"$f":"INT(BI118*BI162)*(1-Scenarios!BH164)","v":0},{"$f":"INT(BJ118*BJ162)*(1-Scenarios!BI164)","v":0},{"$f":"INT(BK118*BK162)*(1-Scenarios!BJ164)","v":0},{"$f":"INT(BL118*BL162)*(1-Scenarios!BK164)","v":0},{"$f":"INT(BM118*BM162)*(1-Scenarios!BL164)","v":0},{"$f":"INT(BN118*BN162)*(1-Scenarios!BM164)","v":0},{"$f":"INT(BO118*BO162)*(1-Scenarios!BN164)","v":0},{"$f":"INT(BP118*BP162)*(1-Scenarios!BO164)","v":0},{"$f":"INT(BQ118*BQ162)*(1-Scenarios!BP164)","v":0},{"$f":"INT(BR118*BR162)*(1-Scenarios!BQ164)","v":0},{"$f":"INT(BS118*BS162)*(1-Scenarios!BR164)","v":0},{"$f":"INT(BT118*BT162)*(1-Scenarios!BS164)","v":0},{"$f":"INT(BU118*BU162)*(1-Scenarios!BT164)","v":0},{"$f":"INT(BV118*BV162)*(1-Scenarios!BU164)","v":0},{"$f":"INT(BW118*BW162)*(1-Scenarios!BV164)","v":0},{"$f":"INT(BX118*BX162)*(1-Scenarios!BW164)","v":0},{"$f":"INT(BY118*BY162)*(1-Scenarios!BX164)","v":0},{"$f":"INT(BZ118*BZ162)*(1-Scenarios!BY164)","v":0},{"$f":"INT(CA118*CA162)*(1-Scenarios!BZ164)","v":0},{"$f":"INT(CB118*CB162)*(1-Scenarios!CA164)","v":0},{"$f":"INT(CC118*CC162)*(1-Scenarios!CB164)","v":0},{"$f":"INT(CD118*CD162)*(1-Scenarios!CC164)","v":0}]
["Glen Eira (C)",null,{"$f":"INT(C119*C163)*(1-Scenarios!B165)","v":1041},{"$f":"INT(D119*D163)*(1-Scenarios!C165)","v":1058},{"$f":"INT(E119*E163)*(1-Scenarios!D165)","v":1073},{"$f":"INT(F119*F163)*(1-Scenarios!E165)","v":1088},{"$f":"INT(G119*G163)*(1-Scenarios!F165)","v":1106},{"$f":"INT(H119*H163)*(1-Scenarios!G165)","v":1123},{"$f":"INT(I119*I163)*(1-Scenarios!H165)","v":1139},{"$f":"INT(J119*J163)*(1-Scenarios!I165)","v":1157},{"$f":"INT(K119*K163)*(1-Scenarios!J165)","v":1173},{"$f":"INT(L119*L163)*(1-Scenarios!K165)","v":1191},{"$f":"INT(M119*M163)*(1-Scenarios!L165)","v":0},{"$f":"INT(N119*N163)*(1-Scenarios!M165)","v":0},{"$f":"INT(O119*O163)*(1-Scenarios!N165)","v":0},{"$f":"INT(P119*P163)*(1-Scenarios!O165)","v":0},{"$f":"INT(Q119*Q163)*(1-Scenarios!P165)","v":0},{"$f":"INT(R119*R163)*(1-Scenarios!Q165)","v":0},{"$f":"INT(S119*S163)*(1-Scenarios!R165)","v":0},{"$f":"INT(T119*T163)*(1-Scenarios!S165)","v":0},{"$f":"INT(U119*U163)*(1-Scenarios!T165)","v":0},{"$f":"INT(V119*V163)*(1-Scenarios!U165)","v":0},{"$f":"INT(W119*W163)*(1-Scenarios!V165)","v":0},{"$f":"INT(X119*X163)*(1-Scenarios!W165)","v":0},{"$f":"INT(Y119*Y163)*(1-Scenarios!X165)","v":0},{"$f":"INT(Z119*Z163)*(1-Scenarios!Y165)","v":0},{"$f":"INT(AA119*AA163)*(1-Scenarios!Z165)","v":0},{"$f":"INT(AB119*AB163)*(1-Scenarios!AA165)","v":0},{"$f":"INT(AC119*AC163)*(1-Scenarios!AB165)","v":0},{"$f":"INT(AD119*AD163)*(1-Scenarios!AC165)","v":0},{"$f":"INT(AE119*AE163)*(1-Scenarios!AD165)","v":0},{"$f":"INT(AF119*AF163)*(1-Scenarios!AE165)","v":0},{"$f":"INT(AG119*AG163)*(1-Scenarios!AF165)","v":0},{"$f":"INT(AH119*AH163)*(1-Scenarios!AG165)","v":0},{"$f":"INT(AI119*AI163)*(1-Scenarios!AH165)","v":0},{"$f":"INT(AJ119*AJ163)*(1-Scenarios!AI165)","v":0},{"$f":"INT(AK119*AK163)*(1-Scenarios!AJ165)","v":0},{"$f":"INT(AL119*AL163)*(1-Scenarios!AK165)","v":0},{"$f":"INT(AM119*AM163)*(1-Scenarios!AL165)","v":0},{"$f":"INT(AN119*AN163)*(1-Scenarios!AM165)","v":0},{"$f":"INT(AO119*AO163)*(1-Scenarios!AN165)","v":0},{"$f":"INT(AP119*AP163)*(1-Scenarios!AO165)","v":0},{"$f":"INT(AQ119*AQ163)*(1-Scenarios!AP165)","v":0},{"$f":"INT(AR119*AR163)*(1-Scenarios!AQ165)","v":0},{"$f":"INT(AS119*AS163)*(1-Scenarios!AR165)","v":0},{"$f":"INT(AT119*AT163)*(1-Scenarios!AS165)","v":0},{"$f":"INT(AU119*AU163)*(1-Scenarios!AT165)","v":0},{"$f":"INT(AV119*AV163)*(1-Scenarios!AU165)","v":0},{"$f":"INT(AW119*AW163)*(1-Scenarios!AV165)","v":0},{"$f":"INT(AX119*AX163)*(1-Scenarios!AW165)","v":0},{"$f":"INT(AY119*AY163)*(1-Scenarios!AX165)","v":0},{"$f":"INT(AZ119*AZ163)*(1-Scenarios!AY165)","v":0},{"$f":"INT(BA119*BA163)*(1-Scenarios!AZ165)","v":0},{"$f":"INT(BB119*BB163)*(1-Scenarios!BA165)","v":0},{"$f":"INT(BC119*BC163)*(1-Scenarios!BB165)","v":0},{"$f":"INT(BD119*BD163)*(1-Scenarios!BC165)","v":0},{"$f":"INT(BE119*BE163)*(1-Scenarios!BD165)","v":0},{"$f":"INT(BF119*BF163)*(1-Scenarios!BE165)","v":0},{"$f":"INT(BG119*BG163)*(1-Scenarios!BF165)","v":0},{"$f":"INT(BH119*BH163)*(1-Scenarios!BG165)","v":0},{"$f":"INT(BI119*BI163)*(1-Scenarios!BH165)","v":0},{"$f":"INT(BJ119*BJ163)*(1-Scenarios!BI165)","v":0},{"$f":"INT(BK119*BK163)*(1-Scenarios!BJ165)","v":0},{"$f":"INT(BL119*BL163)*(1-Scenarios!BK165)","v":0},{"$f":"INT(BM119*BM163)*(1-Scenarios!BL165)","v":0},{"$f":"INT(BN119*BN163)*(1-Scenarios!BM165)","v":0},{"$f":"INT(BO119*BO163)*(1-Scenarios!BN165)","v":0},{"$f":"INT(BP119*BP163)*(1-Scenarios!BO165)","v":0},{"$f":"INT(BQ119*BQ163)*(1-Scenarios!BP165)","v":0},{"$f":"INT(BR119*BR163)*(1-Scenarios!BQ165)","v":0},{"$f":"INT(BS119*BS163)*(1-Scenarios!BR165)","v":0},{"$f":"INT(BT119*BT163)*(1-Scenarios!BS165)","v":0},{"$f":"INT(BU119*BU163)*(1-Scenarios!BT165)","v":0},{"$f":"INT(BV119*BV163)*(1-Scenarios!BU165)","v":0},{"$f":"INT(BW119*BW163)*(1-Scenarios!BV165)","v":0},{"$f":"INT(BX119*BX163)*(1-Scenarios!BW165)","v":0},{"$f":"INT(BY119*BY163)*(1-Scenarios!BX165)","v":0},{"$f":"INT(BZ119*BZ163)*(1-Scenarios!BY165)","v":0},{"$f":"INT(CA119*CA163)*(1-Scenarios!BZ165)","v":0},{"$f":"INT(CB119*CB163)*(1-Scenarios!CA165)","v":0},{"$f":"INT(CC119*CC163)*(1-Scenarios!CB165)","v":0},{"$f":"INT(CD119*CD163)*(1-Scenarios!CC165)","v":0}]
["Greater Dandenong (C)",null,{"$f":"INT(C120*C164)*(1-Scenarios!B166)","v":1134},{"$f":"INT(D120*D164)*(1-Scenarios!C166)","v":1151},{"$f":"INT(E120*E164)*(1-Scenarios!D166)","v":1168},{"$f":"INT(F120*F164)*(1-Scenarios!E166)","v":1185},{"$f":"INT(G120*G164)*(1-Scenarios!F166)","v":1203},{"$f":"INT(H120*H164)*(1-Scenarios!G166)","v":1221},{"$f":"INT(I120*I164)*(1-Scenarios!H166)","v":1240},{"$f":"INT(J120*J164)*(1-Scenarios!I166)","v":1258},{"$f":"INT(K120*K164)*(1-Scenarios!J166)","v":1277},{"$f":"INT(L120*L164)*(1-Scenarios!K166)","v":1296},{"$f":"INT(M120*M164)*(1-Scenarios!L166)","v":0},{"$f":"INT(N120*N164)*(1-Scenarios!M166)","v":0},{"$f":"INT(O120*O164)*(1-Scenarios!N166)","v":0},{"$f":"INT(P120*P164)*(1-Scenarios!O166)","v":0},{"$f":"INT(Q120*Q164)*(1-Scenarios!P166)","v":0},{"$f":"INT(R120*R164)*(1-Scenarios!Q166)","v":0},{"$f":"INT(S120*S164)*(1-Scenarios!R166)","v":0},{"$f":"INT(T120*T164)*(1-Scenarios!S166)","v":0},{"$f":"INT(U120*U164)*(1-Scenarios!T166)","v":0},{"$f":"INT(V120*V164)*(1-Scenarios!U166)","v":0},{"$f":"INT(W120*W164)*(1-Scenarios!V166)","v":0},{"$f":"INT(X120*X164)*(1-Scenarios!W166)","v":0},{"$f":"INT(Y120*Y164)*(1-Scenarios!X166)","v":0},{"$f":"INT(Z120*Z164)*(1-Scenarios!Y166)","v":0},{"$f":"INT(AA120*AA164)*(1-Scenarios!Z166)","v":0},{"$f":"INT(AB120*AB164)*(1-Scenarios!AA166)","v":0},{"$f":"INT(AC120*AC164)*(1-Scenarios!AB166)","v":0},{"$f":"INT(AD120*AD164)*(1-Scenarios!AC166)","v":0},{"$f":"INT(AE120*AE164)*(1-Scenarios!AD166)","v":0},{"$f":"INT(AF120*AF164)*(1-Scenarios!AE166)","v":0},{"$f":"INT(AG120*AG164)*(1-Scenarios!AF166)","v":0},{"$f":"INT(AH120*AH164)*(1-Scenarios!AG166)","v":0},{"$f":"INT(AI120*AI164)*(1-Scenarios!AH166)","v":0},{"$f":"INT(AJ120*AJ164)*(1-Scenarios!AI166)","v":0},{"$f":"INT(AK120*AK164)*(1-Scenarios!AJ166)","v":0},{"$f":"INT(AL120*AL164)*(1-Scenarios!AK166)","v":0},{"$f":"INT(AM120*AM164)*(1-Scenarios!AL166)","v":0},{"$f":"INT(AN120*AN164)*(1-Scenarios!AM166)","v":0},{"$f":"INT(AO120*AO164)*(1-Scenarios!AN166)","v":0},{"$f":"INT(AP120*AP164)*(1-Scenarios!AO166)","v":0},{"$f":"INT(AQ120*AQ164)*(1-Scenarios!AP166)","v":0},{"$f":"INT(AR120*AR164)*(1-Scenarios!AQ166)","v":0},{"$f":"INT(AS120*AS164)*(1-Scenarios!AR166)","v":0},{"$f":"INT(AT120*AT164)*(1-Scenarios!AS166)","v":0},{"$f":"INT(AU120*AU164)*(1-Scenarios!AT166)","v":0},{"$f":"INT(AV120*AV164)*(1-Scenarios!AU166)","v":0},{"$f":"INT(AW120*AW164)*(1-Scenarios!AV166)","v":0},{"$f":"INT(AX120*AX164)*(1-Scenarios!AW166)","v":0},{"$f":"INT(AY120*AY164)*(1-Scenarios!AX166)","v":0},{"$f":"INT(AZ120*AZ164)*(1-Scenarios!AY166)","v":0},{"$f":"INT(BA120*BA164)*(1-Scenarios!AZ166)","v":0},{"$f":"INT(BB120*BB164)*(1-Scenarios!BA166)","v":0},{"$f":"INT(BC120*BC164)*(1-Scenarios!BB166)","v":0},{"$f":"INT(BD120*BD164)*(1-Scenarios!BC166)","v":0},{"$f":"INT(BE120*BE164)*(1-Scenarios!BD166)","v":0},{"$f":"INT(BF120*BF164)*(1-Scenarios!BE166)","v":0},{"$f":"INT(BG120*BG164)*(1-Scenarios!BF166)","v":0},{"$f":"INT(BH120*BH164)*(1-Scenarios!BG166)","v":0},{"$f":"INT(BI120*BI164)*(1-Scenarios!BH166)","v":0},{"$f":"INT(BJ120*BJ164)*(1-Scenarios!BI166)","v":0},{"$f":"INT(BK120*BK164)*(1-Scenarios!BJ166)","v":0},{"$f":"INT(BL120*BL164)*(1-Scenarios!BK166)","v":0},{"$f":"INT(BM120*BM164)*(1-Scenarios!BL166)","v":0},{"$f":"INT(BN120*BN164)*(1-Scenarios!BM166)","v":0},{"$f":"INT(BO120*BO164)*(1-Scenarios!BN166)","v":0},{"$f":"INT(BP120*BP164)*(1-Scenarios!BO166)","v":0},{"$f":"INT(BQ120*BQ164)*(1-Scenarios!BP166)","v":0},{"$f":"INT(BR120*BR164)*(1-Scenarios!BQ166)","v":0},{"$f":"INT(BS120*BS164)*(1-Scenarios!BR166)","v":0},{"$f":"INT(BT120*BT164)*(1-Scenarios!BS166)","v":0},{"$f":"INT(BU120*BU164)*(1-Scenarios!BT166)","v":0},{"$f":"INT(BV120*BV164)*(1-Scenarios!BU166)","v":0},{"$f":"INT(BW120*BW164)*(1-Scenarios!BV166)","v":0},{"$f":"INT(BX120*BX164)*(1-Scenarios!BW166)","v":0},{"$f":"INT(BY120*BY164)*(1-Scenarios!BX166)","v":0},{"$f":"INT(BZ120*BZ164)*(1-Scenarios!BY166)","v":0},{"$f":"INT(CA120*CA164)*(1-Scenarios!BZ166)","v":0},{"$f":"INT(CB120*CB164)*(1-Scenarios!CA166)","v":0},{"$f":"INT(CC120*CC164)*(1-Scenarios!CB166)","v":0},{"$f":"INT(CD120*CD164)*(1-Scenarios!CC166)","v":0}]
["Kingston (C)",null,{"$f":"INT(C121*C165)*(1-Scenarios!B167)","v":1077},{"$f":"INT(D121*D165)*(1-Scenarios!C167)","v":1094},{"$f":"INT(E121*E165)*(1-Scenarios!D167)","v":1110},{"$f":"INT(F121*F165)*(1-Scenarios!E167)","v":1126},{"$f":"INT(G121*G165)*(1-Scenarios!F167)","v":1144},{"$f":"INT(H121*H165)*(1-Scenarios!G167)","v":1161},{"$f":"INT(I121*I165)*(1-Scenarios!H167)","v":1178},{"$f":"INT(J121*J165)*(1-Scenarios!I167)","v":1196},{"$f":"INT(K121*K165)*(1-Scenarios!J167)","v":1213},{"$f":"INT(L121*L165)*(1-Scenarios!K167)","v":1232},{"$f":"INT(M121*M165)*(1-Scenarios!L167)","v":0},{"$f":"INT(N121*N165)*(1-Scenarios!M167)","v":0},{"$f":"INT(O121*O165)*(1-Scenarios!N167)","v":0},{"$f":"INT(P121*P165)*(1-Scenarios!O167)","v":0},{"$f":"INT(Q121*Q165)*(1-Scenarios!P167)","v":0},{"$f":"INT(R121*R165)*(1-Scenarios!Q167)","v":0},{"$f":"INT(S121*S165)*(1-Scenarios!R167)","v":0},{"$f":"INT(T121*T165)*(1-Scenarios!S167)","v":0},{"$f":"INT(U121*U165)*(1-Scenarios!T167)","v":0},{"$f":"INT(V121*V165)*(1-Scenarios!U167)","v":0},{"$f":"INT(W121*W165)*(1-Scenarios!V167)","v":0},{"$f":"INT(X121*X165)*(1-Scenarios!W167)","v":0},{"$f":"INT(Y121*Y165)*(1-Scenarios!X167)","v":0},{"$f":"INT(Z121*Z165)*(1-Scenarios!Y167)","v":0},{"$f":"INT(AA121*AA165)*(1-Scenarios!Z167)","v":0},{"$f":"INT(AB121*AB165)*(1-Scenarios!AA167)","v":0},{"$f":"INT(AC121*AC165)*(1-Scenarios!AB167)","v":0},{"$f":"INT(AD121*AD165)*(1-Scenarios!AC167)","v":0},{"$f":"INT(AE121*AE165)*(1-Scenarios!AD167)","v":0},{"$f":"INT(AF121*AF165)*(1-Scenarios!AE167)","v":0},{"$f":"INT(AG121*AG165)*(1-Scenarios!AF167)","v":0},{"$f":"INT(AH121*AH165)*(1-Scenarios!AG167)","v":0},{"$f":"INT(AI121*AI165)*(1-Scenarios!AH167)","v":0},{"$f":"INT(AJ121*AJ165)*(1-Scenarios!AI167)","v":0},{"$f":"INT(AK121*AK165)*(1-Scenarios!AJ167)","v":0},{"$f":"INT(AL121*AL165)*(1-Scenarios!AK167)","v":0},{"$f":"INT(AM121*AM165)*(1-Scenarios!AL167)","v":0},{"$f":"INT(AN121*AN165)*(1-Scenarios!AM167)","v":0},{"$f":"INT(AO121*AO165)*(1-Scenarios!AN167)","v":0},{"$f":"INT(AP121*AP165)*(1-Scenarios!AO167)","v":0},{"$f":"INT(AQ121*AQ165)*(1-Scenarios!AP167)","v":0},{"$f":"INT(AR121*AR165)*(1-Scenarios!AQ167)","v":0},{"$f":"INT(AS121*AS165)*(1-Scenarios!AR167)","v":0},{"$f":"INT(AT121*AT165)*(1-Scenarios!AS167)","v":0},{"$f":"INT(AU121*AU165)*(1-Scenarios!AT167)","v":0},{"$f":"INT(AV121*AV165)*(1-Scenarios!AU167)","v":0},{"$f":"INT(AW121*AW165)*(1-Scenarios!AV167)","v":0},{"$f":"INT(AX121*AX165)*(1-Scenarios!AW167)","v":0},{"$f":"INT(AY121*AY165)*(1-Scenarios!AX167)","v":0},{"$f":"INT(AZ121*AZ165)*(1-Scenarios!AY167)","v":0},{"$f":"INT(BA121*BA165)*(1-Scenarios!AZ167)","v":0},{"$f":"INT(BB121*BB165)*(1-Scenarios!BA167)","v":0},{"$f":"INT(BC121*BC165)*(1-Scenarios!BB167)","v":0},{"$f":"INT(BD121*BD165)*(1-Scenarios!BC167)","v":0},{"$f":"INT(BE121*BE165)*(1-Scenarios!BD167)","v":0},{"$f":"INT(BF121*BF165)*(1-Scenarios!BE167)","v":0},{"$f":"INT(BG121*BG165)*(1-Scenarios!BF167)","v":0},{"$f":"INT(BH121*BH165)*(1-Scenarios!BG167)","v":0},{"$f":"INT(BI121*BI165)*(1-Scenarios!BH167)","v":0},{"$f":"INT(BJ121*BJ165)*(1-Scenarios!BI167)","v":0},{"$f":"INT(BK121*BK165)*(1-Scenarios!BJ167)","v":0},{"$f":"INT(BL121*BL165)*(1-Scenarios!BK167)","v":0},{"$f":"INT(BM121*BM165)*(1-Scenarios!BL167)","v":0},{"$f":"INT(BN121*BN165)*(1-Scenarios!BM167)","v":0},{"$f":"INT(BO121*BO165)*(1-Scenarios!BN167)","v":0},{"$f":"INT(BP121*BP165)*(1-Scenarios!BO167)","v":0},{"$f":"INT(BQ121*BQ165)*(1-Scenarios!BP167)","v":0},{"$f":"INT(BR121*BR165)*(1-Scenarios!BQ167)","v":0},{"$f":"INT(BS121*BS165)*(1-Scenarios!BR167)","v":0},{"$f":"INT(BT121*BT165)*(1-Scenarios!BS167)","v":0},{"$f":"INT(BU121*BU165)*(1-Scenarios!BT167)","v":0},{"$f":"INT(BV121*BV165)*(1-Scenarios!BU167)","v":0},{"$f":"INT(BW121*BW165)*(1-Scenarios!BV167)","v":0},{"$f":"INT(BX121*BX165)*(1-Scenarios!BW167)","v":0},{"$f":"INT(BY121*BY165)*(1-Scenarios!BX167)","v":0},{"$f":"INT(BZ121*BZ165)*(1-Scenarios!BY167)","v":0},{"$f":"INT(CA121*CA165)*(1-Scenarios!BZ167)","v":0},{"$f":"INT(CB121*CB165)*(1-Scenarios!CA167)","v":0},{"$f":"INT(CC121*CC165)*(1-Scenarios!CB167)","v":0},{"$f":"INT(CD121*CD165)*(1-Scenarios!CC167)","v":0}]
["Knox (C)",null,{"$f":"INT(C122*C166)*(1-Scenarios!B168)","v":1261},{"$f":"INT(D122*D166)*(1-Scenarios!C168)","v":1280},{"$f":"INT(E122*E166)*(1-Scenarios!D168)","v":1299},{"$f":"INT(F122*F166)*(1-Scenarios!E168)","v":1318},{"$f":"INT(G122*G166)*(1-Scenarios!F168)","v":1339},{"$f":"INT(H122*H166)*(1-Scenarios!G168)","v":1359},{"$f":"INT(I122*I166)*(1-Scenarios!H168)","v":1379},{"$f":"INT(J122*J166)*(1-Scenarios!I168)","v":1400},{"$f":"INT(K122*K166)*(1-Scenarios!J168)","v":1421},{"$f":"INT(L122*L166)*(1-Scenarios!K168)","v":1442},{"$f":"INT(M122*M166)*(1-Scenarios!L168)","v":0},{"$f":"INT(N122*N166)*(1-Scenarios!M168)","v":0},{"$f":"INT(O122*O166)*(1-Scenarios!N168)","v":0},{"$f":"INT(P122*P166)*(1-Scenarios!O168)","v":0},{"$f":"INT(Q122*Q166)*(1-Scenarios!P168)","v":0},{"$f":"INT(R122*R166)*(1-Scenarios!Q168)","v":0},{"$f":"INT(S122*S166)*(1-Scenarios!R168)","v":0},{"$f":"INT(T122*T166)*(1-Scenarios!S168)","v":0},{"$f":"INT(U122*U166)*(1-Scenarios!T168)","v":0},{"$f":"INT(V122*V166)*(1-Scenarios!U168)","v":0},{"$f":"INT(W122*W166)*(1-Scenarios!V168)","v":0},{"$f":"INT(X122*X166)*(1-Scenarios!W168)","v":0},{"$f":"INT(Y122*Y166)*(1-Scenarios!X168)","v":0},{"$f":"INT(Z122*Z166)*(1-Scenarios!Y168)","v":0},{"$f":"INT(AA122*AA166)*(1-Scenarios!Z168)","v":0},{"$f":"INT(AB122*AB166)*(1-Scenarios!AA168)","v":0},{"$f":"INT(AC122*AC166)*(1-Scenarios!AB168)","v":0},{"$f":"INT(AD122*AD166)*(1-Scenarios!AC168)","v":0},{"$f":"INT(AE122*AE166)*(1-Scenarios!AD168)","v":0},{"$f":"INT(AF122*AF166)*(1-Scenarios!AE168)","v":0},{"$f":"INT(AG122*AG166)*(1-Scenarios!AF168)","v":0},{"$f":"INT(AH122*AH166)*(1-Scenarios!AG168)","v":0},{"$f":"INT(AI122*AI166)*(1-Scenarios!AH168)","v":0},{"$f":"INT(AJ122*AJ166)*(1-Scenarios!AI168)","v":0},{"$f":"INT(AK122*AK166)*(1-Scenarios!AJ168)","v":0},{"$f":"INT(AL122*AL166)*(1-Scenarios!AK168)","v":0},{"$f":"INT(AM122*AM166)*(1-Scenarios!AL168)","v":0},{"$f":"INT(AN122*AN166)*(1-Scenarios!AM168)","v":0},{"$f":"INT(AO122*AO166)*(1-Scenarios!AN168)","v":0},{"$f":"INT(AP122*AP166)*(1-Scenarios!AO168)","v":0},{"$f":"INT(AQ122*AQ166)*(1-Scenarios!AP168)","v":0},{"$f":"INT(AR122*AR166)*(1-Scenarios!AQ168)","v":0},{"$f":"INT(AS122*AS166)*(1-Scenarios!AR168)","v":0},{"$f":"INT(AT122*AT166)*(1-Scenarios!AS168)","v":0},{"$f":"INT(AU122*AU166)*(1-Scenarios!AT168)","v":0},{"$f":"INT(AV122*AV166)*(1-Scenarios!AU168)","v":0},{"$f":"INT(AW122*AW166)*(1-Scenarios!AV168)","v":0},{"$f":"INT(AX122*AX166)*(1-Scenarios!AW168)","v":0},{"$f":"INT(AY122*AY166)*(1-Scenarios!AX168)","v":0},{"$f":"INT(AZ122*AZ166)*(1-Scenarios!AY168)","v":0},{"$f":"INT(BA122*BA166)*(1-Scenarios!AZ168)","v":0},{"$f":"INT(BB122*BB166)*(1-Scenarios!BA168)","v":0},{"$f":"INT(BC122*BC166)*(1-Scenarios!BB168)","v":0},{"$f":"INT(BD122*BD166)*(1-Scenarios!BC168)","v":0},{"$f":"INT(BE122*BE166)*(1-Scenarios!BD168)","v":0},{"$f":"INT(BF122*BF166)*(1-Scenarios!BE168)","v":0},{"$f":"INT(BG122*BG166)*(1-Scenarios!BF168)","v":0},{"$f":"INT(BH122*BH166)*(1-Scenarios!BG168)","v":0},{"$f":"INT(BI122*BI166)*(1-Scenarios!BH168)","v":0},{"$f":"INT(BJ122*BJ166)*(1-Scenarios!BI168)","v":0},{"$f":"INT(BK122*BK166)*(1-Scenarios!BJ168)","v":0},{"$f":"INT(BL122*BL166)*(1-Scenarios!BK168)","v":0},{"$f":"INT(BM122*BM166)*(1-Scenarios!BL168)","v":0},{"$f":"INT(BN122*BN166)*(1-Scenarios!BM168)","v":0},{"$f":"INT(BO122*BO166)*(1-Scenarios!BN168)","v":0},{"$f":"INT(BP122*BP166)*(1-Scenarios!BO168)","v":0},{"$f":"INT(BQ122*BQ166)*(1-Scenarios!BP168)","v":0},{"$f":"INT(BR122*BR166)*(1-Scenarios!BQ168)","v":0},{"$f":"INT(BS122*BS166)*(1-Scenarios!BR168)","v":0},{"$f":"INT(BT122*BT166)*(1-Scenarios!BS168)","v":0},{"$f":"INT(BU122*BU166)*(1-Scenarios!BT168)","v":0},{"$f":"INT(BV122*BV166)*(1-Scenarios!BU168)","v":0},{"$f":"INT(BW122*BW166)*(1-Scenarios!BV168)","v":0},{"$f":"INT(BX122*BX166)*(1-Scenarios!BW168)","v":0},{"$f":"INT(BY122*BY166)*(1-Scenarios!BX168)","v":0},{"$f":"INT(BZ122*BZ166)*(1-Scenarios!BY168)","v":0},{"$f":"INT(CA122*CA166)*(1-Scenarios!BZ168)","v":0},{"$f":"INT(CB122*CB166)*(1-Scenarios!CA168)","v":0},{"$f":"INT(CC122*CC166)*(1-Scenarios!CB168)","v":0},{"$f":"INT(CD122*CD166)*(1-Scenarios!CC168)","v":0}]
["Manningham (C)",null,{"$f":"INT(C123*C167)*(1-Scenarios!B169)","v":873},{"$f":"INT(D123*D167)*(1-Scenarios!C169)","v":886},{"$f":"INT(E123*E167)*(1-Scenarios!D169)","v":899},{"$f":"INT(F123*F167)*(1-Scenarios!E169)","v":912},{"$f":"INT(G123*G167)*(1-Scenarios!F169)","v":926},{"$f":"INT(H123*H167)*(1-Scenarios!G169)","v":940},{"$f":"INT(I123*I167)*(1-Scenarios!H169)","v":954},{"$f":"INT(J123*J167)*(1-Scenarios!I169)","v":969},{"$f":"INT(K123*K167)*(1-Scenarios!J169)","v":983},{"$f":"INT(L123*L167)*(1-Scenarios!K169)","v":998},{"$f":"INT(M123*M167)*(1-Scenarios!L169)","v":0},{"$f":"INT(N123*N167)*(1-Scenarios!M169)","v":0},{"$f":"INT(O123*O167)*(1-Scenarios!N169)","v":0},{"$f":"INT(P123*P167)*(1-Scenarios!O169)","v":0},{"$f":"INT(Q123*Q167)*(1-Scenarios!P169)","v":0},{"$f":"INT(R123*R167)*(1-Scenarios!Q169)","v":0},{"$f":"INT(S123*S167)*(1-Scenarios!R169)","v":0},{"$f":"INT(T123*T167)*(1-Scenarios!S169)","v":0},{"$f":"INT(U123*U167)*(1-Scenarios!T169)","v":0},{"$f":"INT(V123*V167)*(1-Scenarios!U169)","v":0},{"$f":"INT(W123*W167)*(1-Scenarios!V169)","v":0},{"$f":"INT(X123*X167)*(1-Scenarios!W169)","v":0},{"$f":"INT(Y123*Y167)*(1-Scenarios!X169)","v":0},{"$f":"INT(Z123*Z167)*(1-Scenarios!Y169)","v":0},{"$f":"INT(AA123*AA167)*(1-Scenarios!Z169)","v":0},{"$f":"INT(AB123*AB167)*(1-Scenarios!AA169)","v":0},{"$f":"INT(AC123*AC167)*(1-Scenarios!AB169)","v":0},{"$f":"INT(AD123*AD167)*(1-Scenarios!AC169)","v":0},{"$f":"INT(AE123*AE167)*(1-Scenarios!AD169)","v":0},{"$f":"INT(AF123*AF167)*(1-Scenarios!AE169)","v":0},{"$f":"INT(AG123*AG167)*(1-Scenarios!AF169)","v":0},{"$f":"INT(AH123*AH167)*(1-Scenarios!AG169)","v":0},{"$f":"INT(AI123*AI167)*(1-Scenarios!AH169)","v":0},{"$f":"INT(AJ123*AJ167)*(1-Scenarios!AI169)","v":0},{"$f":"INT(AK123*AK167)*(1-Scenarios!AJ169)","v":0},{"$f":"INT(AL123*AL167)*(1-Scenarios!AK169)","v":0},{"$f":"INT(AM123*AM167)*(1-Scenarios!AL169)","v":0},{"$f":"INT(AN123*AN167)*(1-Scenarios!AM169)","v":0},{"$f":"INT(AO123*AO167)*(1-Scenarios!AN169)","v":0},{"$f":"INT(AP123*AP167)*(1-Scenarios!AO169)","v":0},{"$f":"INT(AQ123*AQ167)*(1-Scenarios!AP169)","v":0},{"$f":"INT(AR123*AR167)*(1-Scenarios!AQ169)","v":0},{"$f":"INT(AS123*AS167)*(1-Scenarios!AR169)","v":0},{"$f":"INT(AT123*AT167)*(1-Scenarios!AS169)","v":0},{"$f":"INT(AU123*AU167)*(1-Scenarios!AT169)","v":0},{"$f":"INT(AV123*AV167)*(1-Scenarios!AU169)","v":0},{"$f":"INT(AW123*AW167)*(1-Scenarios!AV169)","v":0},{"$f":"INT(AX123*AX167)*(1-Scenarios!AW169)","v":0},{"$f":"INT(AY123*AY167)*(1-Scenarios!AX169)","v":0},{"$f":"INT(AZ123*AZ167)*(1-Scenarios!AY169)","v":0},{"$f":"INT(BA123*BA167)*(1-Scenarios!AZ169)","v":0},{"$f":"INT(BB123*BB167)*(1-Scenarios!BA169)","v":0},{"$f":"INT(BC123*BC167)*(1-Scenarios!BB169)","v":0},{"$f":"INT(BD123*BD167)*(1-Scenarios!BC169)","v":0},{"$f":"INT(BE123*BE167)*(1-Scenarios!BD169)","v":0},{"$f":"INT(BF123*BF167)*(1-Scenarios!BE169)","v":0},{"$f":"INT(BG123*BG167)*(1-Scenarios!BF169)","v":0},{"$f":"INT(BH123*BH167)*(1-Scenarios!BG169)","v":0},{"$f":"INT(BI123*BI167)*(1-Scenarios!BH169)","v":0},{"$f":"INT(BJ123*BJ167)*(1-Scenarios!BI169)","v":0},{"$f":"INT(BK123*BK167)*(1-Scenarios!BJ169)","v":0},{"$f":"INT(BL123*BL167)*(1-Scenarios!BK169)","v":0},{"$f":"INT(BM123*BM167)*(1-Scenarios!BL169)","v":0},{"$f":"INT(BN123*BN167)*(1-Scenarios!BM169)","v":0},{"$f":"INT(BO123*BO167)*(1-Scenarios!BN169)","v":0},{"$f":"INT(BP123*BP167)*(1-Scenarios!BO169)","v":0},{"$f":"INT(BQ123*BQ167)*(1-Scenarios!BP169)","v":0},{"$f":"INT(BR123*BR167)*(1-Scenarios!BQ169)","v":0},{"$f":"INT(BS123*BS167)*(1-Scenarios!BR169)","v":0},{"$f":"INT(BT123*BT167)*(1-Scenarios!BS169)","v":0},{"$f":"INT(BU123*BU167)*(1-Scenarios!BT169)","v":0},{"$f":"INT(BV123*BV167)*(1-Scenarios!BU169)","v":0},{"$f":"INT(BW123*BW167)*(1-Scenarios!BV169)","v":0},{"$f":"INT(BX123*BX167)*(1-Scenarios!BW169)","v":0},{"$f":"INT(BY123*BY167)*(1-Scenarios!BX169)","v":0},{"$f":"INT(BZ123*BZ167)*(1-Scenarios!BY169)","v":0},{"$f":"INT(CA123*CA167)*(1-Scenarios!BZ169)","v":0},{"$f":"INT(CB123*CB167)*(1-Scenarios!CA169)","v":0},{"$f":"INT(CC123*CC167)*(1-Scenarios!CB169)","v":0},{"$f":"INT(CD123*CD167)*(1-Scenarios!CC169)","v":0}]
["Maroondah (C)",null,{"$f":"INT(C124*C168)*(1-Scenarios!B170)","v":777},{"$f":"INT(D124*D168)*(1-Scenarios!C170)","v":789},{"$f":"INT(E124*E168)*(1-Scenarios!D170)","v":800},{"$f":"INT(F124*F168)*(1-Scenarios!E170)","v":812},{"$f":"INT(G124*G168)*(1-Scenarios!F170)","v":825},{"$f":"INT(H124*H168)*(1-Scenarios!G170)","v":837},{"$f":"INT(I124*I168)*(1-Scenarios!H170)","v":850},{"$f":"INT(J124*J168)*(1-Scenarios!I170)","v":863},{"$f":"INT(K124*K168)*(1-Scenarios!J170)","v":875},{"$f":"INT(L124*L168)*(1-Scenarios!K170)","v":889},{"$f":"INT(M124*M168)*(1-Scenarios!L170)","v":0},{"$f":"INT(N124*N168)*(1-Scenarios!M170)","v":0},{"$f":"INT(O124*O168)*(1-Scenarios!N170)","v":0},{"$f":"INT(P124*P168)*(1-Scenarios!O170)","v":0},{"$f":"INT(Q124*Q168)*(1-Scenarios!P170)","v":0},{"$f":"INT(R124*R168)*(1-Scenarios!Q170)","v":0},{"$f":"INT(S124*S168)*(1-Scenarios!R170)","v":0},{"$f":"INT(T124*T168)*(1-Scenarios!S170)","v":0},{"$f":"INT(U124*U168)*(1-Scenarios!T170)","v":0},{"$f":"INT(V124*V168)*(1-Scenarios!U170)","v":0},{"$f":"INT(W124*W168)*(1-Scenarios!V170)","v":0},{"$f":"INT(X124*X168)*(1-Scenarios!W170)","v":0},{"$f":"INT(Y124*Y168)*(1-Scenarios!X170)","v":0},{"$f":"INT(Z124*Z168)*(1-Scenarios!Y170)","v":0},{"$f":"INT(AA124*AA168)*(1-Scenarios!Z170)","v":0},{"$f":"INT(AB124*AB168)*(1-Scenarios!AA170)","v":0},{"$f":"INT(AC124*AC168)*(1-Scenarios!AB170)","v":0},{"$f":"INT(AD124*AD168)*(1-Scenarios!AC170)","v":0},{"$f":"INT(AE124*AE168)*(1-Scenarios!AD170)","v":0},{"$f":"INT(AF124*AF168)*(1-Scenarios!AE170)","v":0},{"$f":"INT(AG124*AG168)*(1-Scenarios!AF170)","v":0},{"$f":"INT(AH124*AH168)*(1-Scenarios!AG170)","v":0},{"$f":"INT(AI124*AI168)*(1-Scenarios!AH170)","v":0},{"$f":"INT(AJ124*AJ168)*(1-Scenarios!AI170)","v":0},{"$f":"INT(AK124*AK168)*(1-Scenarios!AJ170)","v":0},{"$f":"INT(AL124*AL168)*(1-Scenarios!AK170)","v":0},{"$f":"INT(AM124*AM168)*(1-Scenarios!AL170)","v":0},{"$f":"INT(AN124*AN168)*(1-Scenarios!AM170)","v":0},{"$f":"INT(AO124*AO168)*(1-Scenarios!AN170)","v":0},{"$f":"INT(AP124*AP168)*(1-Scenarios!AO170)","v":0},{"$f":"INT(AQ124*AQ168)*(1-Scenarios!AP170)","v":0},{"$f":"INT(AR124*AR168)*(1-Scenarios!AQ170)","v":0},{"$f":"INT(AS124*AS168)*(1-Scenarios!AR170)","v":0},{"$f":"INT(AT124*AT168)*(1-Scenarios!AS170)","v":0},{"$f":"INT(AU124*AU168)*(1-Scenarios!AT170)","v":0},{"$f":"INT(AV124*AV168)*(1-Scenarios!AU170)","v":0},{"$f":"INT(AW124*AW168)*(1-Scenarios!AV170)","v":0},{"$f":"INT(AX124*AX168)*(1-Scenarios!AW170)","v":0},{"$f":"INT(AY124*AY168)*(1-Scenarios!AX170)","v":0},{"$f":"INT(AZ124*AZ168)*(1-Scenarios!AY170)","v":0},{"$f":"INT(BA124*BA168)*(1-Scenarios!AZ170)","v":0},{"$f":"INT(BB124*BB168)*(1-Scenarios!BA170)","v":0},{"$f":"INT(BC124*BC168)*(1-Scenarios!BB170)","v":0},{"$f":"INT(BD124*BD168)*(1-Scenarios!BC170)","v":0},{"$f":"INT(BE124*BE168)*(1-Scenarios!BD170)","v":0},{"$f":"INT(BF124*BF168)*(1-Scenarios!BE170)","v":0},{"$f":"INT(BG124*BG168)*(1-Scenarios!BF170)","v":0},{"$f":"INT(BH124*BH168)*(1-Scenarios!BG170)","v":0},{"$f":"INT(BI124*BI168)*(1-Scenarios!BH170)","v":0},{"$f":"INT(BJ124*BJ168)*(1-Scenarios!BI170)","v":0},{"$f":"INT(BK124*BK168)*(1-Scenarios!BJ170)","v":0},{"$f":"INT(BL124*BL168)*(1-Scenarios!BK170)","v":0},{"$f":"INT(BM124*BM168)*(1-Scenarios!BL170)","v":0},{"$f":"INT(BN124*BN168)*(1-Scenarios!BM170)","v":0},{"$f":"INT(BO124*BO168)*(1-Scenarios!BN170)","v":0},{"$f":"INT(BP124*BP168)*(1-Scenarios!BO170)","v":0},{"$f":"INT(BQ124*BQ168)*(1-Scenarios!BP170)","v":0},{"$f":"INT(BR124*BR168)*(1-Scenarios!BQ170)","v":0},{"$f":"INT(BS124*BS168)*(1-Scenarios!BR170)","v":0},{"$f":"INT(BT124*BT168)*(1-Scenarios!BS170)","v":0},{"$f":"INT(BU124*BU168)*(1-Scenarios!BT170)","v":0},{"$f":"INT(BV124*BV168)*(1-Scenarios!BU170)","v":0},{"$f":"INT(BW124*BW168)*(1-Scenarios!BV170)","v":0},{"$f":"INT(BX124*BX168)*(1-Scenarios!BW170)","v":0},{"$f":"INT(BY124*BY168)*(1-Scenarios!BX170)","v":0},{"$f":"INT(BZ124*BZ168)*(1-Scenarios!BY170)","v":0},{"$f":"INT(CA124*CA168)*(1-Scenarios!BZ170)","v":0},{"$f":"INT(CB124*CB168)*(1-Scenarios!CA170)","v":0},{"$f":"INT(CC124*CC168)*(1-Scenarios!CB170)","v":0},{"$f":"INT(CD124*CD168)*(1-Scenarios!CC170)","v":0}]
["Melbourne (C)",null,{"$f":"INT(C125*C169)*(1-Scenarios!B171)","v":17},{"$f":"INT(D125*D169)*(1-Scenarios!C171)","v":17},{"$f":"INT(E125*E169)*(1-Scenarios!D171)","v":17},{"$f":"INT(F125*F169)*(1-Scenarios!E171)","v":18},{"$f":"INT(G125*G169)*(1-Scenarios!F171)","v":18},{"$f":"INT(H125*H169)*(1-Scenarios!G171)","v":18},{"$f":"INT(I125*I169)*(1-Scenarios!H171)","v":18},{"$f":"INT(J125*J169)*(1-Scenarios!I171)","v":19},{"$f":"INT(K125*K169)*(1-Scenarios!J171)","v":19},{"$f":"INT(L125*L169)*(1-Scenarios!K171)","v":19},{"$f":"INT(M125*M169)*(1-Scenarios!L171)","v":0},{"$f":"INT(N125*N169)*(1-Scenarios!M171)","v":0},{"$f":"INT(O125*O169)*(1-Scenarios!N171)","v":0},{"$f":"INT(P125*P169)*(1-Scenarios!O171)","v":0},{"$f":"INT(Q125*Q169)*(1-Scenarios!P171)","v":0},{"$f":"INT(R125*R169)*(1-Scenarios!Q171)","v":0},{"$f":"INT(S125*S169)*(1-Scenarios!R171)","v":0},{"$f":"INT(T125*T169)*(1-Scenarios!S171)","v":0},{"$f":"INT(U125*U169)*(1-Scenarios!T171)","v":0},{"$f":"INT(V125*V169)*(1-Scenarios!U171)","v":0},{"$f":"INT(W125*W169)*(1-Scenarios!V171)","v":0},{"$f":"INT(X125*X169)*(1-Scenarios!W171)","v":0},{"$f":"INT(Y125*Y169)*(1-Scenarios!X171)","v":0},{"$f":"INT(Z125*Z169)*(1-Scenarios!Y171)","v":0},{"$f":"INT(AA125*AA169)*(1-Scenarios!Z171)","v":0},{"$f":"INT(AB125*AB169)*(1-Scenarios!AA171)","v":0},{"$f":"INT(AC125*AC169)*(1-Scenarios!AB171)","v":0},{"$f":"INT(AD125*AD169)*(1-Scenarios!AC171)","v":0},{"$f":"INT(AE125*AE169)*(1-Scenarios!AD171)","v":0},{"$f":"INT(AF125*AF169)*(1-Scenarios!AE171)","v":0},{"$f":"INT(AG125*AG169)*(1-Scenarios!AF171)","v":0},{"$f":"INT(AH125*AH169)*(1-Scenarios!AG171)","v":0},{"$f":"INT(AI125*AI169)*(1-Scenarios!AH171)","v":0},{"$f":"INT(AJ125*AJ169)*(1-Scenarios!AI171)","v":0},{"$f":"INT(AK125*AK169)*(1-Scenarios!AJ171)","v":0},{"$f":"INT(AL125*AL169)*(1-Scenarios!AK171)","v":0},{"$f":"INT(AM125*AM169)*(1-Scenarios!AL171)","v":0},{"$f":"INT(AN125*AN169)*(1-Scenarios!AM171)","v":0},{"$f":"INT(AO125*AO169)*(1-Scenarios!AN171)","v":0},{"$f":"INT(AP125*AP169)*(1-Scenarios!AO171)","v":0},{"$f":"INT(AQ125*AQ169)*(1-Scenarios!AP171)","v":0},{"$f":"INT(AR125*AR169)*(1-Scenarios!AQ171)","v":0},{"$f":"INT(AS125*AS169)*(1-Scenarios!AR171)","v":0},{"$f":"INT(AT125*AT169)*(1-Scenarios!AS171)","v":0},{"$f":"INT(AU125*AU169)*(1-Scenarios!AT171)","v":0},{"$f":"INT(AV125*AV169)*(1-Scenarios!AU171)","v":0},{"$f":"INT(AW125*AW169)*(1-Scenarios!AV171)","v":0},{"$f":"INT(AX125*AX169)*(1-Scenarios!AW171)","v":0},{"$f":"INT(AY125*AY169)*(1-Scenarios!AX171)","v":0},{"$f":"INT(AZ125*AZ169)*(1-Scenarios!AY171)","v":0},{"$f":"INT(BA125*BA169)*(1-Scenarios!AZ171)","v":0},{"$f":"INT(BB125*BB169)*(1-Scenarios!BA171)","v":0},{"$f":"INT(BC125*BC169)*(1-Scenarios!BB171)","v":0},{"$f":"INT(BD125*BD169)*(1-Scenarios!BC171)","v":0},{"$f":"INT(BE125*BE169)*(1-Scenarios!BD171)","v":0},{"$f":"INT(BF125*BF169)*(1-Scenarios!BE171)","v":0},{"$f":"INT(BG125*BG169)*(1-Scenarios!BF171)","v":0},{"$f":"INT(BH125*BH169)*(1-Scenarios!BG171)","v":0},{"$f":"INT(BI125*BI169)*(1-Scenarios!BH171)","v":0},{"$f":"INT(BJ125*BJ169)*(1-Scenarios!BI171)","v":0},{"$f":"INT(BK125*BK169)*(1-Scenarios!BJ171)","v":0},{"$f":"INT(BL125*BL169)*(1-Scenarios!BK171)","v":0},{"$f":"INT(BM125*BM169)*(1-Scenarios!BL171)","v":0},{"$f":"INT(BN125*BN169)*(1-Scenarios!BM171)","v":0},{"$f":"INT(BO125*BO169)*(1-Scenarios!BN171)","v":0},{"$f":"INT(BP125*BP169)*(1-Scenarios!BO171)","v":0},{"$f":"INT(BQ125*BQ169)*(1-Scenarios!BP171)","v":0},{"$f":"INT(BR125*BR169)*(1-Scenarios!BQ171)","v":0},{"$f":"INT(BS125*BS169)*(1-Scenarios!BR171)","v":0},{"$f":"INT(BT125*BT169)*(1-Scenarios!BS171)","v":0},{"$f":"INT(BU125*BU169)*(1-Scenarios!BT171)","v":0},{"$f":"INT(BV125*BV169)*(1-Scenarios!BU171)","v":0},{"$f":"INT(BW125*BW169)*(1-Scenarios!BV171)","v":0},{"$f":"INT(BX125*BX169)*(1-Scenarios!BW171)","v":0},{"$f":"INT(BY125*BY169)*(1-Scenarios!BX171)","v":0},{"$f":"INT(BZ125*BZ169)*(1-Scenarios!BY171)","v":0},{"$f":"INT(CA125*CA169)*(1-Scenarios!BZ171)","v":0},{"$f":"INT(CB125*CB169)*(1-Scenarios!CA171)","v":0},{"$f":"INT(CC125*CC169)*(1-Scenarios!CB171)","v":0},{"$f":"INT(CD125*CD169)*(1-Scenarios!CC171)","v":0}]
["Monash (C)",null,{"$f":"INT(C126*C170)*(1-Scenarios!B172)","v":1311},{"$f":"INT(D126*D170)*(1-Scenarios!C172)","v":1331},{"$f":"INT(E126*E170)*(1-Scenarios!D172)","v":1351},{"$f":"INT(F126*F170)*(1-Scenarios!E172)","v":1371},{"$f":"INT(G126*G170)*(1-Scenarios!F172)","v":1392},{"$f":"INT(H126*H170)*(1-Scenarios!G172)","v":1413},{"$f":"INT(I126*I170)*(1-Scenarios!H172)","v":1434},{"$f":"INT(J126*J170)*(1-Scenarios!I172)","v":1456},{"$f":"INT(K126*K170)*(1-Scenarios!J172)","v":1477},{"$f":"INT(L126*L170)*(1-Scenarios!K172)","v":1500},{"$f":"INT(M126*M170)*(1-Scenarios!L172)","v":0},{"$f":"INT(N126*N170)*(1-Scenarios!M172)","v":0},{"$f":"INT(O126*O170)*(1-Scenarios!N172)","v":0},{"$f":"INT(P126*P170)*(1-Scenarios!O172)","v":0},{"$f":"INT(Q126*Q170)*(1-Scenarios!P172)","v":0},{"$f":"INT(R126*R170)*(1-Scenarios!Q172)","v":0},{"$f":"INT(S126*S170)*(1-Scenarios!R172)","v":0},{"$f":"INT(T126*T170)*(1-Scenarios!S172)","v":0},{"$f":"INT(U126*U170)*(1-Scenarios!T172)","v":0},{"$f":"INT(V126*V170)*(1-Scenarios!U172)","v":0},{"$f":"INT(W126*W170)*(1-Scenarios!V172)","v":0},{"$f":"INT(X126*X170)*(1-Scenarios!W172)","v":0},{"$f":"INT(Y126*Y170)*(1-Scenarios!X172)","v":0},{"$f":"INT(Z126*Z170)*(1-Scenarios!Y172)","v":0},{"$f":"INT(AA126*AA170)*(1-Scenarios!Z172)","v":0},{"$f":"INT(AB126*AB170)*(1-Scenarios!AA172)","v":0},{"$f":"INT(AC126*AC170)*(1-Scenarios!AB172)","v":0},{"$f":"INT(AD126*AD170)*(1-Scenarios!AC172)","v":0},{"$f":"INT(AE126*AE170)*(1-Scenarios!AD172)","v":0},{"$f":"INT(AF126*AF170)*(1-Scenarios!AE172)","v":0},{"$f":"INT(AG126*AG170)*(1-Scenarios!AF172)","v":0},{"$f":"INT(AH126*AH170)*(1-Scenarios!AG172)","v":0},{"$f":"INT(AI126*AI170)*(1-Scenarios!AH172)","v":0},{"$f":"INT(AJ126*AJ170)*(1-Scenarios!AI172)","v":0},{"$f":"INT(AK126*AK170)*(1-Scenarios!AJ172)","v":0},{"$f":"INT(AL126*AL170)*(1-Scenarios!AK172)","v":0},{"$f":"INT(AM126*AM170)*(1-Scenarios!AL172)","v":0},{"$f":"INT(AN126*AN170)*(1-Scenarios!AM172)","v":0},{"$f":"INT(AO126*AO170)*(1-Scenarios!AN172)","v":0},{"$f":"INT(AP126*AP170)*(1-Scenarios!AO172)","v":0},{"$f":"INT(AQ126*AQ170)*(1-Scenarios!AP172)","v":0},{"$f":"INT(AR126*AR170)*(1-Scenarios!AQ172)","v":0},{"$f":"INT(AS126*AS170)*(1-Scenarios!AR172)","v":0},{"$f":"INT(AT126*AT170)*(1-Scenarios!AS172)","v":0},{"$f":"INT(AU126*AU170)*(1-Scenarios!AT172)","v":0},{"$f":"INT(AV126*AV170)*(1-Scenarios!AU172)","v":0},{"$f":"INT(AW126*AW170)*(1-Scenarios!AV172)","v":0},{"$f":"INT(AX126*AX170)*(1-Scenarios!AW172)","v":0},{"$f":"INT(AY126*AY170)*(1-Scenarios!AX172)","v":0},{"$f":"INT(AZ126*AZ170)*(1-Scenarios!AY172)","v":0},{"$f":"INT(BA126*BA170)*(1-Scenarios!AZ172)","v":0},{"$f":"INT(BB126*BB170)*(1-Scenarios!BA172)","v":0},{"$f":"INT(BC126*BC170)*(1-Scenarios!BB172)","v":0},{"$f":"INT(BD126*BD170)*(1-Scenarios!BC172)","v":0},{"$f":"INT(BE126*BE170)*(1-Scenarios!BD172)","v":0},{"$f":"INT(BF126*BF170)*(1-Scenarios!BE172)","v":0},{"$f":"INT(BG126*BG170)*(1-Scenarios!BF172)","v":0},{"$f":"INT(BH126*BH170)*(1-Scenarios!BG172)","v":0},{"$f":"INT(BI126*BI170)*(1-Scenarios!BH172)","v":0},{"$f":"INT(BJ126*BJ170)*(1-Scenarios!BI172)","v":0},{"$f":"INT(BK126*BK170)*(1-Scenarios!BJ172)","v":0},{"$f":"INT(BL126*BL170)*(1-Scenarios!BK172)","v":0},{"$f":"INT(BM126*BM170)*(1-Scenarios!BL172)","v":0},{"$f":"INT(BN126*BN170)*(1-Scenarios!BM172)","v":0},{"$f":"INT(BO126*BO170)*(1-Scenarios!BN172)","v":0},{"$f":"INT(BP126*BP170)*(1-Scenarios!BO172)","v":0},{"$f":"INT(BQ126*BQ170)*(1-Scenarios!BP172)","v":0},{"$f":"INT(BR126*BR170)*(1-Scenarios!BQ172)","v":0},{"$f":"INT(BS126*BS170)*(1-Scenarios!BR172)","v":0},{"$f":"INT(BT126*BT170)*(1-Scenarios!BS172)","v":0},{"$f":"INT(BU126*BU170)*(1-Scenarios!BT172)","v":0},{"$f":"INT(BV126*BV170)*(1-Scenarios!BU172)","v":0},{"$f":"INT(BW126*BW170)*(1-Scenarios!BV172)","v":0},{"$f":"INT(BX126*BX170)*(1-Scenarios!BW172)","v":0},{"$f":"INT(BY126*BY170)*(1-Scenarios!BX172)","v":0},{"$f":"INT(BZ126*BZ170)*(1-Scenarios!BY172)","v":0},{"$f":"INT(CA126*CA170)*(1-Scenarios!BZ172)","v":0},{"$f":"INT(CB126*CB170)*(1-Scenarios!CA172)","v":0},{"$f":"INT(CC126*CC170)*(1-Scenarios!CB172)","v":0},{"$f":"INT(CD126*CD170)*(1-Scenarios!CC172)","v":0}]
["Nillumbik (S)",null,{"$f":"INT(C127*C171)*(1-Scenarios!B173)","v":0},{"$f":"INT(D127*D171)*(1-Scenarios!C173)","v":0},{"$f":"INT(E127*E171)*(1-Scenarios!D173)","v":0},{"$f":"INT(F127*F171)*(1-Scenarios!E173)","v":0},{"$f":"INT(G127*G171)*(1-Scenarios!F173)","v":0},{"$f":"INT(H127*H171)*(1-Scenarios!G173)","v":0},{"$f":"INT(I127*I171)*(1-Scenarios!H173)","v":0},{"$f":"INT(J127*J171)*(1-Scenarios!I173)","v":0},{"$f":"INT(K127*K171)*(1-Scenarios!J173)","v":0},{"$f":"INT(L127*L171)*(1-Scenarios!K173)","v":0},{"$f":"INT(M127*M171)*(1-Scenarios!L173)","v":0},{"$f":"INT(N127*N171)*(1-Scenarios!M173)","v":0},{"$f":"INT(O127*O171)*(1-Scenarios!N173)","v":0},{"$f":"INT(P127*P171)*(1-Scenarios!O173)","v":0},{"$f":"INT(Q127*Q171)*(1-Scenarios!P173)","v":0},{"$f":"INT(R127*R171)*(1-Scenarios!Q173)","v":0},{"$f":"INT(S127*S171)*(1-Scenarios!R173)","v":0},{"$f":"INT(T127*T171)*(1-Scenarios!S173)","v":0},{"$f":"INT(U127*U171)*(1-Scenarios!T173)","v":0},{"$f":"INT(V127*V171)*(1-Scenarios!U173)","v":0},{"$f":"INT(W127*W171)*(1-Scenarios!V173)","v":0},{"$f":"INT(X127*X171)*(1-Scenarios!W173)","v":0},{"$f":"INT(Y127*Y171)*(1-Scenarios!X173)","v":0},{"$f":"INT(Z127*Z171)*(1-Scenarios!Y173)","v":0},{"$f":"INT(AA127*AA171)*(1-Scenarios!Z173)","v":0},{"$f":"INT(AB127*AB171)*(1-Scenarios!AA173)","v":0},{"$f":"INT(AC127*AC171)*(1-Scenarios!AB173)","v":0},{"$f":"INT(AD127*AD171)*(1-Scenarios!AC173)","v":0},{"$f":"INT(AE127*AE171)*(1-Scenarios!AD173)","v":0},{"$f":"INT(AF127*AF171)*(1-Scenarios!AE173)","v":0},{"$f":"INT(AG127*AG171)*(1-Scenarios!AF173)","v":0},{"$f":"INT(AH127*AH171)*(1-Scenarios!AG173)","v":0},{"$f":"INT(AI127*AI171)*(1-Scenarios!AH173)","v":0},{"$f":"INT(AJ127*AJ171)*(1-Scenarios!AI173)","v":0},{"$f":"INT(AK127*AK171)*(1-Scenarios!AJ173)","v":0},{"$f":"INT(AL127*AL171)*(1-Scenarios!AK173)","v":0},{"$f":"INT(AM127*AM171)*(1-Scenarios!AL173)","v":0},{"$f":"INT(AN127*AN171)*(1-Scenarios!AM173)","v":0},{"$f":"INT(AO127*AO171)*(1-Scenarios!AN173)","v":0},{"$f":"INT(AP127*AP171)*(1-Scenarios!AO173)","v":0},{"$f":"INT(AQ127*AQ171)*(1-Scenarios!AP173)","v":0},{"$f":"INT(AR127*AR171)*(1-Scenarios!AQ173)","v":0},{"$f":"INT(AS127*AS171)*(1-Scenarios!AR173)","v":0},{"$f":"INT(AT127*AT171)*(1-Scenarios!AS173)","v":0},{"$f":"INT(AU127*AU171)*(1-Scenarios!AT173)","v":0},{"$f":"INT(AV127*AV171)*(1-Scenarios!AU173)","v":0},{"$f":"INT(AW127*AW171)*(1-Scenarios!AV173)","v":0},{"$f":"INT(AX127*AX171)*(1-Scenarios!AW173)","v":0},{"$f":"INT(AY127*AY171)*(1-Scenarios!AX173)","v":0},{"$f":"INT(AZ127*AZ171)*(1-Scenarios!AY173)","v":0},{"$f":"INT(BA127*BA171)*(1-Scenarios!AZ173)","v":0},{"$f":"INT(BB127*BB171)*(1-Scenarios!BA173)","v":0},{"$f":"INT(BC127*BC171)*(1-Scenarios!BB173)","v":0},{"$f":"INT(BD127*BD171)*(1-Scenarios!BC173)","v":0},{"$f":"INT(BE127*BE171)*(1-Scenarios!BD173)","v":0},{"$f":"INT(BF127*BF171)*(1-Scenarios!BE173)","v":0},{"$f":"INT(BG127*BG171)*(1-Scenarios!BF173)","v":0},{"$f":"INT(BH127*BH171)*(1-Scenarios!BG173)","v":0},{"$f":"INT(BI127*BI171)*(1-Scenarios!BH173)","v":0},{"$f":"INT(BJ127*BJ171)*(1-Scenarios!BI173)","v":0},{"$f":"INT(BK127*BK171)*(1-Scenarios!BJ173)","v":0},{"$f":"INT(BL127*BL171)*(1-Scenarios!BK173)","v":0},{"$f":"INT(BM127*BM171)*(1-Scenarios!BL173)","v":0},{"$f":"INT(BN127*BN171)*(1-Scenarios!BM173)","v":0},{"$f":"INT(BO127*BO171)*(1-Scenarios!BN173)","v":0},{"$f":"INT(BP127*BP171)*(1-Scenarios!BO173)","v":0},{"$f":"INT(BQ127*BQ171)*(1-Scenarios!BP173)","v":0},{"$f":"INT(BR127*BR171)*(1-Scenarios!BQ173)","v":0},{"$f":"INT(BS127*BS171)*(1-Scenarios!BR173)","v":0},{"$f":"INT(BT127*BT171)*(1-Scenarios!BS173)","v":0},{"$f":"INT(BU127*BU171)*(1-Scenarios!BT173)","v":0},{"$f":"INT(BV127*BV171)*(1-Scenarios!BU173)","v":0},{"$f":"INT(BW127*BW171)*(1-Scenarios!BV173)","v":0},{"$f":"INT(BX127*BX171)*(1-Scenarios!BW173)","v":0},{"$f":"INT(BY127*BY171)*(1-Scenarios!BX173)","v":0},{"$f":"INT(BZ127*BZ171)*(1-Scenarios!BY173)","v":0},{"$f":"INT(CA127*CA171)*(1-Scenarios!BZ173)","v":0},{"$f":"INT(CB127*CB171)*(1-Scenarios!CA173)","v":0},{"$f":"INT(CC127*CC171)*(1-Scenarios!CB173)","v":0},{"$f":"INT(CD127*CD171)*(1-Scenarios!CC173)","v":0}]
["Port Phillip (C)",null,{"$f":"INT(C128*C172)*(1-Scenarios!B174)","v":762},{"$f":"INT(D128*D172)*(1-Scenarios!C174)","v":776},{"$f":"INT(E128*E172)*(1-Scenarios!D174)","v":786},{"$f":"INT(F128*F172)*(1-Scenarios!E174)","v":796},{"$f":"INT(G128*G172)*(1-Scenarios!F174)","v":812},{"$f":"INT(H128*H172)*(1-Scenarios!G174)","v":824},{"$f":"INT(I128*I172)*(1-Scenarios!H174)","v":835},{"$f":"INT(J128*J172)*(1-Scenarios!I174)","v":849},{"$f":"INT(K128*K172)*(1-Scenarios!J174)","v":858},{"$f":"INT(L128*L172)*(1-Scenarios!K174)","v":873},{"$f":"INT(M128*M172)*(1-Scenarios!L174)","v":0},{"$f":"INT(N128*N172)*(1-Scenarios!M174)","v":0},{"$f":"INT(O128*O172)*(1-Scenarios!N174)","v":0},{"$f":"INT(P128*P172)*(1-Scenarios!O174)","v":0},{"$f":"INT(Q128*Q172)*(1-Scenarios!P174)","v":0},{"$f":"INT(R128*R172)*(1-Scenarios!Q174)","v":0},{"$f":"INT(S128*S172)*(1-Scenarios!R174)","v":0},{"$f":"INT(T128*T172)*(1-Scenarios!S174)","v":0},{"$f":"INT(U128*U172)*(1-Scenarios!T174)","v":0},{"$f":"INT(V128*V172)*(1-Scenarios!U174)","v":0},{"$f":"INT(W128*W172)*(1-Scenarios!V174)","v":0},{"$f":"INT(X128*X172)*(1-Scenarios!W174)","v":0},{"$f":"INT(Y128*Y172)*(1-Scenarios!X174)","v":0},{"$f":"INT(Z128*Z172)*(1-Scenarios!Y174)","v":0},{"$f":"INT(AA128*AA172)*(1-Scenarios!Z174)","v":0},{"$f":"INT(AB128*AB172)*(1-Scenarios!AA174)","v":0},{"$f":"INT(AC128*AC172)*(1-Scenarios!AB174)","v":0},{"$f":"INT(AD128*AD172)*(1-Scenarios!AC174)","v":0},{"$f":"INT(AE128*AE172)*(1-Scenarios!AD174)","v":0},{"$f":"INT(AF128*AF172)*(1-Scenarios!AE174)","v":0},{"$f":"INT(AG128*AG172)*(1-Scenarios!AF174)","v":0},{"$f":"INT(AH128*AH172)*(1-Scenarios!AG174)","v":0},{"$f":"INT(AI128*AI172)*(1-Scenarios!AH174)","v":0},{"$f":"INT(AJ128*AJ172)*(1-Scenarios!AI174)","v":0},{"$f":"INT(AK128*AK172)*(1-Scenarios!AJ174)","v":0},{"$f":"INT(AL128*AL172)*(1-Scenarios!AK174)","v":0},{"$f":"INT(AM128*AM172)*(1-Scenarios!AL174)","v":0},{"$f":"INT(AN128*AN172)*(1-Scenarios!AM174)","v":0},{"$f":"INT(AO128*AO172)*(1-Scenarios!AN174)","v":0},{"$f":"INT(AP128*AP172)*(1-Scenarios!AO174)","v":0},{"$f":"INT(AQ128*AQ172)*(1-Scenarios!AP174)","v":0},{"$f":"INT(AR128*AR172)*(1-Scenarios!AQ174)","v":0},{"$f":"INT(AS128*AS172)*(1-Scenarios!AR174)","v":0},{"$f":"INT(AT128*AT172)*(1-Scenarios!AS174)","v":0},{"$f":"INT(AU128*AU172)*(1-Scenarios!AT174)","v":0},{"$f":"INT(AV128*AV172)*(1-Scenarios!AU174)","v":0},{"$f":"INT(AW128*AW172)*(1-Scenarios!AV174)","v":0},{"$f":"INT(AX128*AX172)*(1-Scenarios!AW174)","v":0},{"$f":"INT(AY128*AY172)*(1-Scenarios!AX174)","v":0},{"$f":"INT(AZ128*AZ172)*(1-Scenarios!AY174)","v":0},{"$f":"INT(BA128*BA172)*(1-Scenarios!AZ174)","v":0},{"$f":"INT(BB128*BB172)*(1-Scenarios!BA174)","v":0},{"$f":"INT(BC128*BC172)*(1-Scenarios!BB174)","v":0},{"$f":"INT(BD128*BD172)*(1-Scenarios!BC174)","v":0},{"$f":"INT(BE128*BE172)*(1-Scenarios!BD174)","v":0},{"$f":"INT(BF128*BF172)*(1-Scenarios!BE174)","v":0},{"$f":"INT(BG128*BG172)*(1-Scenarios!BF174)","v":0},{"$f":"INT(BH128*BH172)*(1-Scenarios!BG174)","v":0},{"$f":"INT(BI128*BI172)*(1-Scenarios!BH174)","v":0},{"$f":"INT(BJ128*BJ172)*(1-Scenarios!BI174)","v":0},{"$f":"INT(BK128*BK172)*(1-Scenarios!BJ174)","v":0},{"$f":"INT(BL128*BL172)*(1-Scenarios!BK174)","v":0},{"$f":"INT(BM128*BM172)*(1-Scenarios!BL174)","v":0},{"$f":"INT(BN128*BN172)*(1-Scenarios!BM174)","v":0},{"$f":"INT(BO128*BO172)*(1-Scenarios!BN174)","v":0},{"$f":"INT(BP128*BP172)*(1-Scenarios!BO174)","v":0},{"$f":"INT(BQ128*BQ172)*(1-Scenarios!BP174)","v":0},{"$f":"INT(BR128*BR172)*(1-Scenarios!BQ174)","v":0},{"$f":"INT(BS128*BS172)*(1-Scenarios!BR174)","v":0},{"$f":"INT(BT128*BT172)*(1-Scenarios!BS174)","v":0},{"$f":"INT(BU128*BU172)*(1-Scenarios!BT174)","v":0},{"$f":"INT(BV128*BV172)*(1-Scenarios!BU174)","v":0},{"$f":"INT(BW128*BW172)*(1-Scenarios!BV174)","v":0},{"$f":"INT(BX128*BX172)*(1-Scenarios!BW174)","v":0},{"$f":"INT(BY128*BY172)*(1-Scenarios!BX174)","v":0},{"$f":"INT(BZ128*BZ172)*(1-Scenarios!BY174)","v":0},{"$f":"INT(CA128*CA172)*(1-Scenarios!BZ174)","v":0},{"$f":"INT(CB128*CB172)*(1-Scenarios!CA174)","v":0},{"$f":"INT(CC128*CC172)*(1-Scenarios!CB174)","v":0},{"$f":"INT(CD128*CD172)*(1-Scenarios!CC174)","v":0}]
["South Gippsland (S)",null,{"$f":"INT(C129*C173)*(1-Scenarios!B175)","v":43},{"$f":"INT(D129*D173)*(1-Scenarios!C175)","v":43},{"$f":"INT(E129*E173)*(1-Scenarios!D175)","v":44},{"$f":"INT(F129*F173)*(1-Scenarios!E175)","v":45},{"$f":"INT(G129*G173)*(1-Scenarios!F175)","v":45},{"$f":"INT(H129*H173)*(1-Scenarios!G175)","v":46},{"$f":"INT(I129*I173)*(1-Scenarios!H175)","v":47},{"$f":"INT(J129*J173)*(1-Scenarios!I175)","v":47},{"$f":"INT(K129*K173)*(1-Scenarios!J175)","v":48},{"$f":"INT(L129*L173)*(1-Scenarios!K175)","v":49},{"$f":"INT(M129*M173)*(1-Scenarios!L175)","v":0},{"$f":"INT(N129*N173)*(1-Scenarios!M175)","v":0},{"$f":"INT(O129*O173)*(1-Scenarios!N175)","v":0},{"$f":"INT(P129*P173)*(1-Scenarios!O175)","v":0},{"$f":"INT(Q129*Q173)*(1-Scenarios!P175)","v":0},{"$f":"INT(R129*R173)*(1-Scenarios!Q175)","v":0},{"$f":"INT(S129*S173)*(1-Scenarios!R175)","v":0},{"$f":"INT(T129*T173)*(1-Scenarios!S175)","v":0},{"$f":"INT(U129*U173)*(1-Scenarios!T175)","v":0},{"$f":"INT(V129*V173)*(1-Scenarios!U175)","v":0},{"$f":"INT(W129*W173)*(1-Scenarios!V175)","v":0},{"$f":"INT(X129*X173)*(1-Scenarios!W175)","v":0},{"$f":"INT(Y129*Y173)*(1-Scenarios!X175)","v":0},{"$f":"INT(Z129*Z173)*(1-Scenarios!Y175)","v":0},{"$f":"INT(AA129*AA173)*(1-Scenarios!Z175)","v":0},{"$f":"INT(AB129*AB173)*(1-Scenarios!AA175)","v":0},{"$f":"INT(AC129*AC173)*(1-Scenarios!AB175)","v":0},{"$f":"INT(AD129*AD173)*(1-Scenarios!AC175)","v":0},{"$f":"INT(AE129*AE173)*(1-Scenarios!AD175)","v":0},{"$f":"INT(AF129*AF173)*(1-Scenarios!AE175)","v":0},{"$f":"INT(AG129*AG173)*(1-Scenarios!AF175)","v":0},{"$f":"INT(AH129*AH173)*(1-Scenarios!AG175)","v":0},{"$f":"INT(AI129*AI173)*(1-Scenarios!AH175)","v":0},{"$f":"INT(AJ129*AJ173)*(1-Scenarios!AI175)","v":0},{"$f":"INT(AK129*AK173)*(1-Scenarios!AJ175)","v":0},{"$f":"INT(AL129*AL173)*(1-Scenarios!AK175)","v":0},{"$f":"INT(AM129*AM173)*(1-Scenarios!AL175)","v":0},{"$f":"INT(AN129*AN173)*(1-Scenarios!AM175)","v":0},{"$f":"INT(AO129*AO173)*(1-Scenarios!AN175)","v":0},{"$f":"INT(AP129*AP173)*(1-Scenarios!AO175)","v":0},{"$f":"INT(AQ129*AQ173)*(1-Scenarios!AP175)","v":0},{"$f":"INT(AR129*AR173)*(1-Scenarios!AQ175)","v":0},{"$f":"INT(AS129*AS173)*(1-Scenarios!AR175)","v":0},{"$f":"INT(AT129*AT173)*(1-Scenarios!AS175)","v":0},{"$f":"INT(AU129*AU173)*(1-Scenarios!AT175)","v":0},{"$f":"INT(AV129*AV173)*(1-Scenarios!AU175)","v":0},{"$f":"INT(AW129*AW173)*(1-Scenarios!AV175)","v":0},{"$f":"INT(AX129*AX173)*(1-Scenarios!AW175)","v":0},{"$f":"INT(AY129*AY173)*(1-Scenarios!AX175)","v":0},{"$f":"INT(AZ129*AZ173)*(1-Scenarios!AY175)","v":0},{"$f":"INT(BA129*BA173)*(1-Scenarios!AZ175)","v":0},{"$f":"INT(BB129*BB173)*(1-Scenarios!BA175)","v":0},{"$f":"INT(BC129*BC173)*(1-Scenarios!BB175)","v":0},{"$f":"INT(BD129*BD173)*(1-Scenarios!BC175)","v":0},{"$f":"INT(BE129*BE173)*(1-Scenarios!BD175)","v":0},{"$f":"INT(BF129*BF173)*(1-Scenarios!BE175)","v":0},{"$f":"INT(BG129*BG173)*(1-Scenarios!BF175)","v":0},{"$f":"INT(BH129*BH173)*(1-Scenarios!BG175)","v":0},{"$f":"INT(BI129*BI173)*(1-Scenarios!BH175)","v":0},{"$f":"INT(BJ129*BJ173)*(1-Scenarios!BI175)","v":0},{"$f":"INT(BK129*BK173)*(1-Scenarios!BJ175)","v":0},{"$f":"INT(BL129*BL173)*(1-Scenarios!BK175)","v":0},{"$f":"INT(BM129*BM173)*(1-Scenarios!BL175)","v":0},{"$f":"INT(BN129*BN173)*(1-Scenarios!BM175)","v":0},{"$f":"INT(BO129*BO173)*(1-Scenarios!BN175)","v":0},{"$f":"INT(BP129*BP173)*(1-Scenarios!BO175)","v":0},{"$f":"INT(BQ129*BQ173)*(1-Scenarios!BP175)","v":0},{"$f":"INT(BR129*BR173)*(1-Scenarios!BQ175)","v":0},{"$f":"INT(BS129*BS173)*(1-Scenarios!BR175)","v":0},{"$f":"INT(BT129*BT173)*(1-Scenarios!BS175)","v":0},{"$f":"INT(BU129*BU173)*(1-Scenarios!BT175)","v":0},{"$f":"INT(BV129*BV173)*(1-Scenarios!BU175)","v":0},{"$f":"INT(BW129*BW173)*(1-Scenarios!BV175)","v":0},{"$f":"INT(BX129*BX173)*(1-Scenarios!BW175)","v":0},{"$f":"INT(BY129*BY173)*(1-Scenarios!BX175)","v":0},{"$f":"INT(BZ129*BZ173)*(1-Scenarios!BY175)","v":0},{"$f":"INT(CA129*CA173)*(1-Scenarios!BZ175)","v":0},{"$f":"INT(CB129*CB173)*(1-Scenarios!CA175)","v":0},{"$f":"INT(CC129*CC173)*(1-Scenarios!CB175)","v":0},{"$f":"INT(CD129*CD173)*(1-Scenarios!CC175)","v":0}]
["Stonnington (C)",null,{"$f":"INT(C130*C174)*(1-Scenarios!B176)","v":773},{"$f":"INT(D130*D174)*(1-Scenarios!C176)","v":787},{"$f":"INT(E130*E174)*(1-Scenarios!D176)","v":797},{"$f":"INT(F130*F174)*(1-Scenarios!E176)","v":808},{"$f":"INT(G130*G174)*(1-Scenarios!F176)","v":823},{"$f":"INT(H130*H174)*(1-Scenarios!G176)","v":836},{"$f":"INT(I130*I174)*(1-Scenarios!H176)","v":847},{"$f":"INT(J130*J174)*(1-Scenarios!I176)","v":861},{"$f":"INT(K130*K174)*(1-Scenarios!J176)","v":871},{"$f":"INT(L130*L174)*(1-Scenarios!K176)","v":886},{"$f":"INT(M130*M174)*(1-Scenarios!L176)","v":0},{"$f":"INT(N130*N174)*(1-Scenarios!M176)","v":0},{"$f":"INT(O130*O174)*(1-Scenarios!N176)","v":0},{"$f":"INT(P130*P174)*(1-Scenarios!O176)","v":0},{"$f":"INT(Q130*Q174)*(1-Scenarios!P176)","v":0},{"$f":"INT(R130*R174)*(1-Scenarios!Q176)","v":0},{"$f":"INT(S130*S174)*(1-Scenarios!R176)","v":0},{"$f":"INT(T130*T174)*(1-Scenarios!S176)","v":0},{"$f":"INT(U130*U174)*(1-Scenarios!T176)","v":0},{"$f":"INT(V130*V174)*(1-Scenarios!U176)","v":0},{"$f":"INT(W130*W174)*(1-Scenarios!V176)","v":0},{"$f":"INT(X130*X174)*(1-Scenarios!W176)","v":0},{"$f":"INT(Y130*Y174)*(1-Scenarios!X176)","v":0},{"$f":"INT(Z130*Z174)*(1-Scenarios!Y176)","v":0},{"$f":"INT(AA130*AA174)*(1-Scenarios!Z176)","v":0},{"$f":"INT(AB130*AB174)*(1-Scenarios!AA176)","v":0},{"$f":"INT(AC130*AC174)*(1-Scenarios!AB176)","v":0},{"$f":"INT(AD130*AD174)*(1-Scenarios!AC176)","v":0},{"$f":"INT(AE130*AE174)*(1-Scenarios!AD176)","v":0},{"$f":"INT(AF130*AF174)*(1-Scenarios!AE176)","v":0},{"$f":"INT(AG130*AG174)*(1-Scenarios!AF176)","v":0},{"$f":"INT(AH130*AH174)*(1-Scenarios!AG176)","v":0},{"$f":"INT(AI130*AI174)*(1-Scenarios!AH176)","v":0},{"$f":"INT(AJ130*AJ174)*(1-Scenarios!AI176)","v":0},{"$f":"INT(AK130*AK174)*(1-Scenarios!AJ176)","v":0},{"$f":"INT(AL130*AL174)*(1-Scenarios!AK176)","v":0},{"$f":"INT(AM130*AM174)*(1-Scenarios!AL176)","v":0},{"$f":"INT(AN130*AN174)*(1-Scenarios!AM176)","v":0},{"$f":"INT(AO130*AO174)*(1-Scenarios!AN176)","v":0},{"$f":"INT(AP130*AP174)*(1-Scenarios!AO176)","v":0},{"$f":"INT(AQ130*AQ174)*(1-Scenarios!AP176)","v":0},{"$f":"INT(AR130*AR174)*(1-Scenarios!AQ176)","v":0},{"$f":"INT(AS130*AS174)*(1-Scenarios!AR176)","v":0},{"$f":"INT(AT130*AT174)*(1-Scenarios!AS176)","v":0},{"$f":"INT(AU130*AU174)*(1-Scenarios!AT176)","v":0},{"$f":"INT(AV130*AV174)*(1-Scenarios!AU176)","v":0},{"$f":"INT(AW130*AW174)*(1-Scenarios!AV176)","v":0},{"$f":"INT(AX130*AX174)*(1-Scenarios!AW176)","v":0},{"$f":"INT(AY130*AY174)*(1-Scenarios!AX176)","v":0},{"$f":"INT(AZ130*AZ174)*(1-Scenarios!AY176)","v":0},{"$f":"INT(BA130*BA174)*(1-Scenarios!AZ176)","v":0},{"$f":"INT(BB130*BB174)*(1-Scenarios!BA176)","v":0},{"$f":"INT(BC130*BC174)*(1-Scenarios!BB176)","v":0},{"$f":"INT(BD130*BD174)*(1-Scenarios!BC176)","v":0},{"$f":"INT(BE130*BE174)*(1-Scenarios!BD176)","v":0},{"$f":"INT(BF130*BF174)*(1-Scenarios!BE176)","v":0},{"$f":"INT(BG130*BG174)*(1-Scenarios!BF176)","v":0},{"$f":"INT(BH130*BH174)*(1-Scenarios!BG176)","v":0},{"$f":"INT(BI130*BI174)*(1-Scenarios!BH176)","v":0},{"$f":"INT(BJ130*BJ174)*(1-Scenarios!BI176)","v":0},{"$f":"INT(BK130*BK174)*(1-Scenarios!BJ176)","v":0},{"$f":"INT(BL130*BL174)*(1-Scenarios!BK176)","v":0},{"$f":"INT(BM130*BM174)*(1-Scenarios!BL176)","v":0},{"$f":"INT(BN130*BN174)*(1-Scenarios!BM176)","v":0},{"$f":"INT(BO130*BO174)*(1-Scenarios!BN176)","v":0},{"$f":"INT(BP130*BP174)*(1-Scenarios!BO176)","v":0},{"$f":"INT(BQ130*BQ174)*(1-Scenarios!BP176)","v":0},{"$f":"INT(BR130*BR174)*(1-Scenarios!BQ176)","v":0},{"$f":"INT(BS130*BS174)*(1-Scenarios!BR176)","v":0},{"$f":"INT(BT130*BT174)*(1-Scenarios!BS176)","v":0},{"$f":"INT(BU130*BU174)*(1-Scenarios!BT176)","v":0},{"$f":"INT(BV130*BV174)*(1-Scenarios!BU176)","v":0},{"$f":"INT(BW130*BW174)*(1-Scenarios!BV176)","v":0},{"$f":"INT(BX130*BX174)*(1-Scenarios!BW176)","v":0},{"$f":"INT(BY130*BY174)*(1-Scenarios!BX176)","v":0},{"$f":"INT(BZ130*BZ174)*(1-Scenarios!BY176)","v":0},{"$f":"INT(CA130*CA174)*(1-Scenarios!BZ176)","v":0},{"$f":"INT(CB130*CB174)*(1-Scenarios!CA176)","v":0},{"$f":"INT(CC130*CC174)*(1-Scenarios!CB176)","v":0},{"$f":"INT(CD130*CD174)*(1-Scenarios!CC176)","v":0}]
["Whitehorse (C)",null,{"$f":"INT(C131*C175)*(1-Scenarios!B177)","v":1336},{"$f":"INT(D131*D175)*(1-Scenarios!C177)","v":1357},{"$f":"INT(E131*E175)*(1-Scenarios!D177)","v":1376},{"$f":"INT(F131*F175)*(1-Scenarios!E177)","v":1397},{"$f":"INT(G131*G175)*(1-Scenarios!F177)","v":1419},{"$f":"INT(H131*H175)*(1-Scenarios!G177)","v":1440},{"$f":"INT(I131*I175)*(1-Scenarios!H177)","v":1461},{"$f":"INT(J131*J175)*(1-Scenarios!I177)","v":1483},{"$f":"INT(K131*K175)*(1-Scenarios!J177)","v":1505},{"$f":"INT(L131*L175)*(1-Scenarios!K177)","v":1528},{"$f":"INT(M131*M175)*(1-Scenarios!L177)","v":0},{"$f":"INT(N131*N175)*(1-Scenarios!M177)","v":0},{"$f":"INT(O131*O175)*(1-Scenarios!N177)","v":0},{"$f":"INT(P131*P175)*(1-Scenarios!O177)","v":0},{"$f":"INT(Q131*Q175)*(1-Scenarios!P177)","v":0},{"$f":"INT(R131*R175)*(1-Scenarios!Q177)","v":0},{"$f":"INT(S131*S175)*(1-Scenarios!R177)","v":0},{"$f":"INT(T131*T175)*(1-Scenarios!S177)","v":0},{"$f":"INT(U131*U175)*(1-Scenarios!T177)","v":0},{"$f":"INT(V131*V175)*(1-Scenarios!U177)","v":0},{"$f":"INT(W131*W175)*(1-Scenarios!V177)","v":0},{"$f":"INT(X131*X175)*(1-Scenarios!W177)","v":0},{"$f":"INT(Y131*Y175)*(1-Scenarios!X177)","v":0},{"$f":"INT(Z131*Z175)*(1-Scenarios!Y177)","v":0},{"$f":"INT(AA131*AA175)*(1-Scenarios!Z177)","v":0},{"$f":"INT(AB131*AB175)*(1-Scenarios!AA177)","v":0},{"$f":"INT(AC131*AC175)*(1-Scenarios!AB177)","v":0},{"$f":"INT(AD131*AD175)*(1-Scenarios!AC177)","v":0},{"$f":"INT(AE131*AE175)*(1-Scenarios!AD177)","v":0},{"$f":"INT(AF131*AF175)*(1-Scenarios!AE177)","v":0},{"$f":"INT(AG131*AG175)*(1-Scenarios!AF177)","v":0},{"$f":"INT(AH131*AH175)*(1-Scenarios!AG177)","v":0},{"$f":"INT(AI131*AI175)*(1-Scenarios!AH177)","v":0},{"$f":"INT(AJ131*AJ175)*(1-Scenarios!AI177)","v":0},{"$f":"INT(AK131*AK175)*(1-Scenarios!AJ177)","v":0},{"$f":"INT(AL131*AL175)*(1-Scenarios!AK177)","v":0},{"$f":"INT(AM131*AM175)*(1-Scenarios!AL177)","v":0},{"$f":"INT(AN131*AN175)*(1-Scenarios!AM177)","v":0},{"$f":"INT(AO131*AO175)*(1-Scenarios!AN177)","v":0},{"$f":"INT(AP131*AP175)*(1-Scenarios!AO177)","v":0},{"$f":"INT(AQ131*AQ175)*(1-Scenarios!AP177)","v":0},{"$f":"INT(AR131*AR175)*(1-Scenarios!AQ177)","v":0},{"$f":"INT(AS131*AS175)*(1-Scenarios!AR177)","v":0},{"$f":"INT(AT131*AT175)*(1-Scenarios!AS177)","v":0},{"$f":"INT(AU131*AU175)*(1-Scenarios!AT177)","v":0},{"$f":"INT(AV131*AV175)*(1-Scenarios!AU177)","v":0},{"$f":"INT(AW131*AW175)*(1-Scenarios!AV177)","v":0},{"$f":"INT(AX131*AX175)*(1-Scenarios!AW177)","v":0},{"$f":"INT(AY131*AY175)*(1-Scenarios!AX177)","v":0},{"$f":"INT(AZ131*AZ175)*(1-Scenarios!AY177)","v":0},{"$f":"INT(BA131*BA175)*(1-Scenarios!AZ177)","v":0},{"$f":"INT(BB131*BB175)*(1-Scenarios!BA177)","v":0},{"$f":"INT(BC131*BC175)*(1-Scenarios!BB177)","v":0},{"$f":"INT(BD131*BD175)*(1-Scenarios!BC177)","v":0},{"$f":"INT(BE131*BE175)*(1-Scenarios!BD177)","v":0},{"$f":"INT(BF131*BF175)*(1-Scenarios!BE177)","v":0},{"$f":"INT(BG131*BG175)*(1-Scenarios!BF177)","v":0},{"$f":"INT(BH131*BH175)*(1-Scenarios!BG177)","v":0},{"$f":"INT(BI131*BI175)*(1-Scenarios!BH177)","v":0},{"$f":"INT(BJ131*BJ175)*(1-Scenarios!BI177)","v":0},{"$f":"INT(BK131*BK175)*(1-Scenarios!BJ177)","v":0},{"$f":"INT(BL131*BL175)*(1-Scenarios!BK177)","v":0},{"$f":"INT(BM131*BM175)*(1-Scenarios!BL177)","v":0},{"$f":"INT(BN131*BN175)*(1-Scenarios!BM177)","v":0},{"$f":"INT(BO131*BO175)*(1-Scenarios!BN177)","v":0},{"$f":"INT(BP131*BP175)*(1-Scenarios!BO177)","v":0},{"$f":"INT(BQ131*BQ175)*(1-Scenarios!BP177)","v":0},{"$f":"INT(BR131*BR175)*(1-Scenarios!BQ177)","v":0},{"$f":"INT(BS131*BS175)*(1-Scenarios!BR177)","v":0},{"$f":"INT(BT131*BT175)*(1-Scenarios!BS177)","v":0},{"$f":"INT(BU131*BU175)*(1-Scenarios!BT177)","v":0},{"$f":"INT(BV131*BV175)*(1-Scenarios!BU177)","v":0},{"$f":"INT(BW131*BW175)*(1-Scenarios!BV177)","v":0},{"$f":"INT(BX131*BX175)*(1-Scenarios!BW177)","v":0},{"$f":"INT(BY131*BY175)*(1-Scenarios!BX177)","v":0},{"$f":"INT(BZ131*BZ175)*(1-Scenarios!BY177)","v":0},{"$f":"INT(CA131*CA175)*(1-Scenarios!BZ177)","v":0},{"$f":"INT(CB131*CB175)*(1-Scenarios!CA177)","v":0},{"$f":"INT(CC131*CC175)*(1-Scenarios!CB177)","v":0},{"$f":"INT(CD131*CD175)*(1-Scenarios!CC177)","v":0}]
["Yarra Ranges (S)",null,{"$f":"INT(C132*C176)*(1-Scenarios!B178)","v":963},{"$f":"INT(D132*D176)*(1-Scenarios!C178)","v":977},{"$f":"INT(E132*E176)*(1-Scenarios!D178)","v":992},{"$f":"INT(F132*F176)*(1-Scenarios!E178)","v":1006},{"$f":"INT(G132*G176)*(1-Scenarios!F178)","v":1022},{"$f":"INT(H132*H176)*(1-Scenarios!G178)","v":1037},{"$f":"INT(I132*I176)*(1-Scenarios!H178)","v":1053},{"$f":"INT(J132*J176)*(1-Scenarios!I178)","v":1069},{"$f":"INT(K132*K176)*(1-Scenarios!J178)","v":1084},{"$f":"INT(L132*L176)*(1-Scenarios!K178)","v":1101},{"$f":"INT(M132*M176)*(1-Scenarios!L178)","v":0},{"$f":"INT(N132*N176)*(1-Scenarios!M178)","v":0},{"$f":"INT(O132*O176)*(1-Scenarios!N178)","v":0},{"$f":"INT(P132*P176)*(1-Scenarios!O178)","v":0},{"$f":"INT(Q132*Q176)*(1-Scenarios!P178)","v":0},{"$f":"INT(R132*R176)*(1-Scenarios!Q178)","v":0},{"$f":"INT(S132*S176)*(1-Scenarios!R178)","v":0},{"$f":"INT(T132*T176)*(1-Scenarios!S178)","v":0},{"$f":"INT(U132*U176)*(1-Scenarios!T178)","v":0},{"$f":"INT(V132*V176)*(1-Scenarios!U178)","v":0},{"$f":"INT(W132*W176)*(1-Scenarios!V178)","v":0},{"$f":"INT(X132*X176)*(1-Scenarios!W178)","v":0},{"$f":"INT(Y132*Y176)*(1-Scenarios!X178)","v":0},{"$f":"INT(Z132*Z176)*(1-Scenarios!Y178)","v":0},{"$f":"INT(AA132*AA176)*(1-Scenarios!Z178)","v":0},{"$f":"INT(AB132*AB176)*(1-Scenarios!AA178)","v":0},{"$f":"INT(AC132*AC176)*(1-Scenarios!AB178)","v":0},{"$f":"INT(AD132*AD176)*(1-Scenarios!AC178)","v":0},{"$f":"INT(AE132*AE176)*(1-Scenarios!AD178)","v":0},{"$f":"INT(AF132*AF176)*(1-Scenarios!AE178)","v":0},{"$f":"INT(AG132*AG176)*(1-Scenarios!AF178)","v":0},{"$f":"INT(AH132*AH176)*(1-Scenarios!AG178)","v":0},{"$f":"INT(AI132*AI176)*(1-Scenarios!AH178)","v":0},{"$f":"INT(AJ132*AJ176)*(1-Scenarios!AI178)","v":0},{"$f":"INT(AK132*AK176)*(1-Scenarios!AJ178)","v":0},{"$f":"INT(AL132*AL176)*(1-Scenarios!AK178)","v":0},{"$f":"INT(AM132*AM176)*(1-Scenarios!AL178)","v":0},{"$f":"INT(AN132*AN176)*(1-Scenarios!AM178)","v":0},{"$f":"INT(AO132*AO176)*(1-Scenarios!AN178)","v":0},{"$f":"INT(AP132*AP176)*(1-Scenarios!AO178)","v":0},{"$f":"INT(AQ132*AQ176)*(1-Scenarios!AP178)","v":0},{"$f":"INT(AR132*AR176)*(1-Scenarios!AQ178)","v":0},{"$f":"INT(AS132*AS176)*(1-Scenarios!AR178)","v":0},{"$f":"INT(AT132*AT176)*(1-Scenarios!AS178)","v":0},{"$f":"INT(AU132*AU176)*(1-Scenarios!AT178)","v":0},{"$f":"INT(AV132*AV176)*(1-Scenarios!AU178)","v":0},{"$f":"INT(AW132*AW176)*(1-Scenarios!AV178)","v":0},{"$f":"INT(AX132*AX176)*(1-Scenarios!AW178)","v":0},{"$f":"INT(AY132*AY176)*(1-Scenarios!AX178)","v":0},{"$f":"INT(AZ132*AZ176)*(1-Scenarios!AY178)","v":0},{"$f":"INT(BA132*BA176)*(1-Scenarios!AZ178)","v":0},{"$f":"INT(BB132*BB176)*(1-Scenarios!BA178)","v":0},{"$f":"INT(BC132*BC176)*(1-Scenarios!BB178)","v":0},{"$f":"INT(BD132*BD176)*(1-Scenarios!BC178)","v":0},{"$f":"INT(BE132*BE176)*(1-Scenarios!BD178)","v":0},{"$f":"INT(BF132*BF176)*(1-Scenarios!BE178)","v":0},{"$f":"INT(BG132*BG176)*(1-Scenarios!BF178)","v":0},{"$f":"INT(BH132*BH176)*(1-Scenarios!BG178)","v":0},{"$f":"INT(BI132*BI176)*(1-Scenarios!BH178)","v":0},{"$f":"INT(BJ132*BJ176)*(1-Scenarios!BI178)","v":0},{"$f":"INT(BK132*BK176)*(1-Scenarios!BJ178)","v":0},{"$f":"INT(BL132*BL176)*(1-Scenarios!BK178)","v":0},{"$f":"INT(BM132*BM176)*(1-Scenarios!BL178)","v":0},{"$f":"INT(BN132*BN176)*(1-Scenarios!BM178)","v":0},{"$f":"INT(BO132*BO176)*(1-Scenarios!BN178)","v":0},{"$f":"INT(BP132*BP176)*(1-Scenarios!BO178)","v":0},{"$f":"INT(BQ132*BQ176)*(1-Scenarios!BP178)","v":0},{"$f":"INT(BR132*BR176)*(1-Scenarios!BQ178)","v":0},{"$f":"INT(BS132*BS176)*(1-Scenarios!BR178)","v":0},{"$f":"INT(BT132*BT176)*(1-Scenarios!BS178)","v":0},{"$f":"INT(BU132*BU176)*(1-Scenarios!BT178)","v":0},{"$f":"INT(BV132*BV176)*(1-Scenarios!BU178)","v":0},{"$f":"INT(BW132*BW176)*(1-Scenarios!BV178)","v":0},{"$f":"INT(BX132*BX176)*(1-Scenarios!BW178)","v":0},{"$f":"INT(BY132*BY176)*(1-Scenarios!BX178)","v":0},{"$f":"INT(BZ132*BZ176)*(1-Scenarios!BY178)","v":0},{"$f":"INT(CA132*CA176)*(1-Scenarios!BZ178)","v":0},{"$f":"INT(CB132*CB176)*(1-Scenarios!CA178)","v":0},{"$f":"INT(CC132*CC176)*(1-Scenarios!CB178)","v":0},{"$f":"INT(CD132*CD176)*(1-Scenarios!CC178)","v":0}]
[]
["LGA - New Connections absent Appliance Economics",2020,{"$f":"B156+1","v":2021},{"$f":"C156+1","v":2022},{"$f":"D156+1","v":2023},{"$f":"E156+1","v":2024},{"$f":"F156+1","v":2025},{"$f":"G156+1","v":2026},{"$f":"H156+1","v":2027},{"$f":"I156+1","v":2028},{"$f":"J156+1","v":2029},{"$f":"K156+1","v":2030},{"$f":"L156+1","v":2031},{"$f":"M156+1","v":2032},{"$f":"N156+1","v":2033},{"$f":"O156+1","v":2034},{"$f":"P156+1","v":2035},{"$f":"Q156+1","v":2036},{"$f":"R156+1","v":2037},{"$f":"S156+1","v":2038},{"$f":"T156+1","v":2039},{"$f":"U156+1","v":2040},{"$f":"V156+1","v":2041},{"$f":"W156+1","v":2042},{"$f":"X156+1","v":2043},{"$f":"Y156+1","v":2044},{"$f":"Z156+1","v":2045},{"$f":"AA156+1","v":2046},{"$f":"AB156+1","v":2047},{"$f":"AC156+1","v":2048},{"$f":"AD156+1","v":2049},{"$f":"AE156+1","v":2050},{"$f":"AF156+1","v":2051},{"$f":"AG156+1","v":2052},{"$f":"AH156+1","v":2053},{"$f":"AI156+1","v":2054},{"$f":"AJ156+1","v":2055},{"$f":"AK156+1","v":2056},{"$f":"AL156+1","v":2057},{"$f":"AM156+1","v":2058},{"$f":"AN156+1","v":2059},{"$f":"AO156+1","v":2060},{"$f":"AP156+1","v":2061},{"$f":"AQ156+1","v":2062},{"$f":"AR156+1","v":2063},{"$f":"AS156+1","v":2064},{"$f":"AT156+1","v":2065},{"$f":"AU156+1","v":2066},{"$f":"AV156+1","v":2067},{"$f":"AW156+1","v":2068},{"$f":"AX156+1","v":2069},{"$f":"AY156+1","v":2070},{"$f":"AZ156+1","v":2071},{"$f":"BA156+1","v":2072},{"$f":"BB156+1","v":2073},{"$f":"BC156+1","v":2074},{"$f":"BD156+1","v":2075},{"$f":"BE156+1","v":2076},{"$f":"BF156+1","v":2077},{"$f":"BG156+1","v":2078},{"$f":"BH156+1","v":2079},{"$f":"BI156+1","v":2080},{"$f":"BJ156+1","v":2081},{"$f":"BK156+1","v":2082},{"$f":"BL156+1","v":2083},{"$f":"BM156+1","v":2084},{"$f":"BN156+1","v":2085},{"$f":"BO156+1","v":2086},{"$f":"BP156+1","v":2087},{"$f":"BQ156+1","v":2088},{"$f":"BR156+1","v":2089},{"$f":"BS156+1","v":2090},{"$f":"BT156+1","v":2091},{"$f":"BU156+1","v":2092},{"$f":"BV156+1","v":2093},{"$f":"BW156+1","v":2094},{"$f":"BX156+1","v":2095},{"$f":"BY156+1","v":2096},{"$f":"BZ156+1","v":2097},{"$f":"CA156+1","v":2098},{"$f":"CB156+1","v":2099},{"$f":"CC156+1","v":2100}]
["Bass Coast (S)",null,{"$f":"Control!$K$17*CustomersRes!J3","v":70.960000000000008},{"$f":"Control!$K$17*CustomersRes!K3","v":72.005200000000002},{"$f":"Control!$K$17*CustomersRes!L3","v":73.065174000000013},{"$f":"Control!$K$17*CustomersRes!M3","v":74.139848130000004},{"$f":"Control!$K$17*CustomersRes!N3","v":75.24914888935001},{"$f":"Control!$K$17*CustomersRes!O3","v":76.372903144903262},{"$f":"Control!$K$17*CustomersRes!P3","v":77.511038629178742},{"$f":"Control!$K$17*CustomersRes!Q3","v":78.663483436032848},{"$f":"Control!$K$17*CustomersRes!R3","v":79.830166018852694},{"$f":"Control!$K$17*CustomersRes!S3","v":81.011015188758421},{"$f":"Control!$K$17*CustomersRes!T3","v":82.205960112814623},{"$f":"Control!$K$17*CustomersRes!U3","v":81.794930312250557},{"$f":"Control!$K$17*CustomersRes!V3","v":81.385955660689305},{"$f":"Control!$K$17*CustomersRes!W3","v":80.979025882385855},{"$f":"Control!$K$17*CustomersRes!X3","v":80.574130752973929},{"$f":"Control!$K$17*CustomersRes!Y3","v":80.171260099209064},{"$f":"Control!$K$17*CustomersRes!Z3","v":79.770403798713019},{"$f":"Control!$K$17*CustomersRes!AA3","v":79.371551779719454},{"$f":"Control!$K$17*CustomersRes!AB3","v":78.974694020820849},{"$f":"Control!$K$17*CustomersRes!AC3","v":78.579820550716747},{"$f":"Control!$K$17*CustomersRes!AD3","v":78.186921447963172},{"$f":"Control!$K$17*CustomersRes!AE3","v":77.795986840723359},{"$f":"Control!$K$17*CustomersRes!AF3","v":77.40700690651974},{"$f":"Control!$K$17*CustomersRes!AG3","v":77.019971871987138},{"$f":"Control!$K$17*CustomersRes!AH3","v":76.614872012627202},{"$f":"Control!$K$17*CustomersRes!AI3","v":76.191797652564063},{"$f":"Control!$K$17*CustomersRes!AJ3","v":75.770838664301252},{"$f":"Control!$K$17*CustomersRes!AK3","v":75.331984470979748},{"$f":"Control!$K$17*CustomersRes!AL3","v":74.875324548624846},{"$f":"Control!$K$17*CustomersRes!AM3","v":74.380947925881728},{"$f":"Control!$K$17*CustomersRes!AN3","v":73.829043186252306},{"$f":"Control!$K$17*CustomersRes!AO3","v":73.239897970321053},{"$f":"Control!$K$17*CustomersRes!AP3","v":72.573698480469446},{"$f":"Control!$K$17*CustomersRes!AQ3","v":71.810829988067098},{"$f":"Control!$K$17*CustomersRes!AR3","v":70.951775838126764},{"$f":"Control!$K$17*CustomersRes!AS3","v":69.957016958936137},{"$f":"Control!$K$17*CustomersRes!AT3","v":69.367231874141439},{"$f":"Control!$K$17*CustomersRes!AU3","v":68.800395714770744},{"$f":"Control!$K$17*CustomersRes!AV3","v":68.176393736196886},{"$f":"Control!$K$17*CustomersRes!AW3","v":67.455511767515901},{"$f":"Control!$K$17*CustomersRes!AX3","v":66.618234208678331},{"$f":"Control!$K$17*CustomersRes!AY3","v":65.625143037634942},{"$f":"Control!$K$17*CustomersRes!AZ3","v":64.417017322446767},{"$f":"Control!$K$17*CustomersRes!BA3","v":62.914932235834534},{"$f":"Control!$K$17*CustomersRes!BB3","v":61.040357574655353},{"$f":"Control!$K$17*CustomersRes!BC3","v":58.715155786782077},{"$f":"Control!$K$17*CustomersRes!BD3","v":55.921580007848171},{"$f":"Control!$K$17*CustomersRes!BE3","v":52.741972107808927},{"$f":"Control!$K$17*CustomersRes!BF3","v":49.398262247269876},{"$f":"Control!$K$17*CustomersRes!BG3","v":46.051270936033525},{"$f":"Control!$K$17*CustomersRes!BH3","v":42.82101458135336},{"$f":"Control!$K$17*CustomersRes!BI3","v":39.786909508446591},{"$f":"Control!$K$17*CustomersRes!BJ3","v":36.967974960904357},{"$f":"Control!$K$17*CustomersRes!BK3","v":34.343135086099835},{"$f":"Control!$K$17*CustomersRes!BL3","v":31.911419410669339},{"$f":"Control!$K$17*CustomersRes!BM3","v":29.65186231361599},{"$f":"Control!$K$17*CustomersRes!BN3","v":27.563603002047909},{"$f":"Control!$K$17*CustomersRes!BO3","v":25.625784987037669},{"$f":"Control!$K$17*CustomersRes!BP3","v":23.817656062102479},{"$f":"Control!$K$17*CustomersRes!BQ3","v":22.138567781791966},{"$f":"Control!$K$17*CustomersRes!BR3","v":20.587874942883008},{"$f":"Control!$K$17*CustomersRes!BS3","v":19.144935568168595},{"$f":"Control!$K$17*CustomersRes!BT3","v":19.049210890327753},{"$f":"Control!$K$17*CustomersRes!BU3","v":18.953964835876114},{"$f":"Control!$K$17*CustomersRes!BV3","v":18.859195011696734},{"$f":"Control!$K$17*CustomersRes!BW3","v":18.764899036638251},{"$f":"Control!$K$17*CustomersRes!BX3","v":18.671074541455059},{"$f":"Control!$K$17*CustomersRes!BY3","v":18.577719168747784},{"$f":"Control!$K$17*CustomersRes!BZ3","v":18.484830572904045},{"$f":"Control!$K$17*CustomersRes!CA3","v":18.392406420039521},{"$f":"Control!$K$17*CustomersRes!CB3","v":18.300444387939326},{"$f":"Control!$K$17*CustomersRes!CC3","v":18.208942165999627},{"$f":"Control!$K$17*CustomersRes!CD3","v":18.117897455169629},{"$f":"Control!$K$17*CustomersRes!CE3","v":18.02730796789378},{"$f":"Control!$K$17*CustomersRes!CF3","v":17.937171428054313},{"$f":"Control!$K$17*CustomersRes!CG3","v":17.847485570914042},{"$f":"Control!$K$17*CustomersRes!CH3","v":17.758248143059472},{"$f":"Control!$K$17*CustomersRes!CI3","v":17.669456902344173},{"$f":"Control!$K$17*CustomersRes!CJ3","v":17.58110961783245},{"$f":"Control!$K$17*CustomersRes!CK3","v":17.493204069743289}]
["Bayside (C)",null,{"$f":"Control!$K$17*CustomersRes!J4","v":747.62},{"$f":"Control!$K$17*CustomersRes!K4","v":758.80190000000005},{"$f":"Control!$K$17*CustomersRes!L4","v":770.16789050000011},{"$f":"Control!$K$17*CustomersRes!M4","v":781.69705104750017},{"$f":"Control!$K$17*CustomersRes!N4","v":793.38856579226274},{"$f":"Control!$K$17*CustomersRes!O4","v":805.2816229633014},{"$f":"Control!$K$17*CustomersRes!P4","v":817.35521484848493},{"$f":"Control!$K$17*CustomersRes!Q4","v":829.60843877424259},{"$f":"Control!$K$17*CustomersRes!R4","v":842.04039658037129},{"$f":"Control!$K$17*CustomersRes!S4","v":854.65019459746941},{"$f":"Control!$K$17*CustomersRes!T4","v":867.45694362448205},{"$f":"Control!$K$17*CustomersRes!U4","v":863.11965890635975},{"$f":"Control!$K$17*CustomersRes!V4","v":858.80406061182794},{"$f":"Control!$K$17*CustomersRes!W4","v":854.51004030876879},{"$f":"Control!$K$17*CustomersRes!X4","v":850.23749010722509},{"$f":"Control!$K$17*CustomersRes!Y4","v":845.98630265668896},{"$f":"Control!$K$17*CustomersRes!Z4","v":841.75637114340554},{"$f":"Control!$K$17*CustomersRes!AA4","v":837.50758928768846},{"$f":"Control!$K$17*CustomersRes!AB4","v":833.20005134125006},{"$f":"Control!$K$17*CustomersRes!AC4","v":828.69405108454373},{"$f":"Control!$K$17*CustomersRes!AD4","v":823.87058082912108},{"$f":"Control!$K$17*CustomersRes!AE4","v":818.55122792497536},{"$f":"Control!$K$17*CustomersRes!AF4","v":810.3784717853506},{"$f":"Control!$K$17*CustomersRes!AG4","v":793.96657942642389},{"$f":"Control!$K$17*CustomersRes!AH4","v":767.97674652929174},{"$f":"Control!$K$17*CustomersRes!AI4","v":731.85686279664526},{"$f":"Control!$K$17*CustomersRes!AJ4","v":690.45757848266203},{"$f":"Control!$K$17*CustomersRes!AK4","v":646.98529059024884},{"$f":"Control!$K$17*CustomersRes!AL4","v":603.87036413729754},{"$f":"Control!$K$17*CustomersRes!AM4","v":562.27101231661106},{"$f":"Control!$K$17*CustomersRes!AN4","v":522.65965725502804},{"$f":"Control!$K$17*CustomersRes!AO4","v":485.56635896875287},{"$f":"Control!$K$17*CustomersRes!AP4","v":450.93852717390911},{"$f":"Control!$K$17*CustomersRes!AQ4","v":418.70383453803953},{"$f":"Control!$K$17*CustomersRes!AR4","v":388.75031536534931},{"$f":"Control!$K$17*CustomersRes!AS4","v":360.92656378852257},{"$f":"Control!$K$17*CustomersRes!AT4","v":335.22193096957994},{"$f":"Control!$K$17*CustomersRes!AU4","v":311.40582131473201},{"$f":"Control!$K$17*CustomersRes!AV4","v":289.18879220815836},{"$f":"Control!$K$17*CustomersRes!AW4","v":268.52284824711757},{"$f":"Control!$K$17*CustomersRes!AX4","v":249.300234005882},{"$f":"Control!$K$17*CustomersRes!AY4","v":231.45373283585261},{"$f":"Control!$K$17*CustomersRes!AZ4","v":214.89646417167336},{"$f":"Control!$K$17*CustomersRes!BA4","v":199.521981850815},{"$f":"Control!$K$17*CustomersRes!BB4","v":185.24437194156093},{"$f":"Control!$K$17*CustomersRes!BC4","v":171.99815008185314},{"$f":"Control!$K$17*CustomersRes!BD4","v":159.69815933144386},{"$f":"Control!$K$17*CustomersRes!BE4","v":148.27966853478662},{"$f":"Control!$K$17*CustomersRes!BF4","v":137.67827019211271},{"$f":"Control!$K$17*CustomersRes!BG4","v":127.84987884115215},{"$f":"Control!$K$17*CustomersRes!BH4","v":118.71062944694638},{"$f":"Control!$K$17*CustomersRes!BI4","v":110.23707629971166},{"$f":"Control!$K$17*CustomersRes!BJ4","v":102.3658909182131},{"$f":"Control!$K$17*CustomersRes!BK4","v":95.054061463622034},{"$f":"Control!$K$17*CustomersRes!BL4","v":88.258791156303928},{"$f":"Control!$K$17*CustomersRes!BM4","v":81.937497200522415},{"$f":"Control!$K$17*CustomersRes!BN4","v":76.067809714519797},{"$f":"Control!$K$17*CustomersRes!BO4","v":70.6274706659472},{"$f":"Control!$K$17*CustomersRes!BP4","v":65.574333312617469},{"$f":"Control!$K$17*CustomersRes!BQ4","v":60.886461646054379},{"$f":"Control!$K$17*CustomersRes!BR4","v":56.542029337824104},{"$f":"Control!$K$17*CustomersRes!BS4","v":52.499319191134987},{"$f":"Control!$K$17*CustomersRes!BT4","v":52.17682259517931},{"$f":"Control!$K$17*CustomersRes!BU4","v":51.855938482203413},{"$f":"Control!$K$17*CustomersRes!BV4","v":51.536658789792391},{"$f":"Control!$K$17*CustomersRes!BW4","v":51.218975495843438},{"$f":"Control!$K$17*CustomersRes!BX4","v":50.902880618364215},{"$f":"Control!$K$17*CustomersRes!BY4","v":50.588366215272394},{"$f":"Control!$K$17*CustomersRes!BZ4","v":50.275424384196029},{"$f":"Control!$K$17*CustomersRes!CA4","v":49.964047262275052},{"$f":"Control!$K$17*CustomersRes!CB4","v":49.654227025963678},{"$f":"Control!$K$17*CustomersRes!CC4","v":49.345955890833856},{"$f":"Control!$K$17*CustomersRes!CD4","v":49.039226111379683},{"$f":"Control!$K$17*CustomersRes!CE4","v":48.73402998082279},{"$f":"Control!$K$17*CustomersRes!CF4","v":48.430359830918682},{"$f":"Control!$K$17*CustomersRes!CG4","v":48.128208031764089},{"$f":"Control!$K$17*CustomersRes!CH4","v":47.827566991605273},{"$f":"Control!$K$17*CustomersRes!CI4","v":47.528429156647242},{"$f":"Control!$K$17*CustomersRes!CJ4","v":47.230787010864006},{"$f":"Control!$K$17*CustomersRes!CK4","v":46.934633075809693}]
["Boroondara (C)",null,{"$f":"Control!$K$17*CustomersRes!J5","v":1269.3800000000001},{"$f":"Control!$K$17*CustomersRes!K5","v":1288.3731},{"$f":"Control!$K$17*CustomersRes!L5","v":1307.6712345000001},{"$f":"Control!$K$17*CustomersRes!M5","v":1327.2528783275002},{"$f":"Control!$K$17*CustomersRes!N5","v":1347.1166139358627},{"$f":"Control!$K$17*CustomersRes!O5","v":1367.3010308661833},{"$f":"Control!$K$17*CustomersRes!P5","v":1387.8045257118524},{"$f":"Control!$K$17*CustomersRes!Q5","v":1408.6055030832931},{"$f":"Control!$K$17*CustomersRes!R5","v":1429.7224755678769},{"$f":"Control!$K$17*CustomersRes!S5","v":1451.1338631900373},{"$f":"Control!$K$17*CustomersRes!T5","v":1472.8781938740874},{"$f":"Control!$K$17*CustomersRes!U5","v":1465.5138029047168},{"$f":"Control!$K$17*CustomersRes!V5","v":1458.1862338901935},{"$f":"Control!$K$17*CustomersRes!W5","v":1450.8953027207424},{"$f":"Control!$K$17*CustomersRes!X5","v":1443.6408262071388},{"$f":"Control!$K$17*CustomersRes!Y5","v":1436.4226220761034},{"$f":"Control!$K$17*CustomersRes!Z5","v":1429.2205089657227},{"$f":"Control!$K$17*CustomersRes!AA5","v":1421.9744064208942},{"$f":"Control!$K$17*CustomersRes!AB5","v":1414.5845343887897},{"$f":"Control!$K$17*CustomersRes!AC5","v":1406.7516117168457},{"$f":"Control!$K$17*CustomersRes!AD5","v":1398.2378536582614},{"$f":"Control!$K$17*CustomersRes!AE5","v":1388.74666438997},{"$f":"Control!$K$17*CustomersRes!AF5","v":1373.8829310680201},{"$f":"Control!$K$17*CustomersRes!AG5","v":1344.6335164126801},{"$f":"Control!$K$17*CustomersRes!AH5","v":1299.6903488306166},{"$f":"Control!$K$17*CustomersRes!AI5","v":1238.4918970864635},{"$f":"Control!$K$17*CustomersRes!AJ5","v":1168.839437601031},{"$f":"Control!$K$17*CustomersRes!AK5","v":1095.7752404130258},{"$f":"Control!$K$17*CustomersRes!AL5","v":1023.2163642109608},{"$f":"Control!$K$17*CustomersRes!AM5","v":953.0202823899059},{"$f":"Control!$K$17*CustomersRes!AN5","v":886.07518097795639},{"$f":"Control!$K$17*CustomersRes!AO5","v":823.30480507306652},{"$f":"Control!$K$17*CustomersRes!AP5","v":764.62828104770119},{"$f":"Control!$K$17*CustomersRes!AQ5","v":709.98513964246263},{"$f":"Control!$K$17*CustomersRes!AR5","v":659.19521394425033},{"$f":"Control!$K$17*CustomersRes!AS5","v":611.99923787452906},{"$f":"Control!$K$17*CustomersRes!AT5","v":568.47924168515647},{"$f":"Control!$K$17*CustomersRes!AU5","v":528.15684547673072},{"$f":"Control!$K$17*CustomersRes!AV5","v":490.51606124934705},{"$f":"Control!$K$17*CustomersRes!AW5","v":455.46348094310031},{"$f":"Control!$K$17*CustomersRes!AX5","v":422.8661635383848},{"$f":"Control!$K$17*CustomersRes!AY5","v":392.59183272069282},{"$f":"Control!$K$17*CustomersRes!AZ5","v":364.48887355708939},{"$f":"Control!$K$17*CustomersRes!BA5","v":338.40642918930399},{"$f":"Control!$K$17*CustomersRes!BB5","v":314.17439704335749},{"$f":"Control!$K$17*CustomersRes!BC5","v":291.68352505814067},{"$f":"Control!$K$17*CustomersRes!BD5","v":270.80510743284992},{"$f":"Control!$K$17*CustomersRes!BE5","v":251.43108189568571},{"$f":"Control!$K$17*CustomersRes!BF5","v":233.43392648620727},{"$f":"Control!$K$17*CustomersRes!BG5","v":216.72675685377624},{"$f":"Control!$K$17*CustomersRes!BH5","v":201.22312306950735},{"$f":"Control!$K$17*CustomersRes!BI5","v":186.83700745415979},{"$f":"Control!$K$17*CustomersRes!BJ5","v":173.48282241688901},{"$f":"Control!$K$17*CustomersRes!BK5","v":161.07540830480454},{"$f":"Control!$K$17*CustomersRes!BL5","v":149.55003126328052},{"$f":"Control!$K$17*CustomersRes!BM5","v":138.84228110696412},{"$f":"Control!$K$17*CustomersRes!BN5","v":128.9080697014293},{"$f":"Control!$K$17*CustomersRes!BO5","v":119.68352935292216},{"$f":"Control!$K$17*CustomersRes!BP5","v":111.12511170615755},{"$f":"Control!$K$17*CustomersRes!BQ5","v":103.16948614762676},{"$f":"Control!$K$17*CustomersRes!BR5","v":95.793638716888623},{"$f":"Control!$K$17*CustomersRes!BS5","v":88.934670523304177},{"$f":"Control!$K$17*CustomersRes!BT5","v":88.369997170687654},{"$f":"Control!$K$17*CustomersRes!BU5","v":87.808147184834212},{"$f":"Control!$K$17*CustomersRes!BV5","v":87.249106448910041},{"$f":"Control!$K$17*CustomersRes!BW5","v":86.692860916665481},{"$f":"Control!$K$17*CustomersRes!BX5","v":86.139396612082166},{"$f":"Control!$K$17*CustomersRes!BY5","v":85.588699629021761},{"$f":"Control!$K$17*CustomersRes!BZ5","v":85.040756130876659},{"$f":"Control!$K$17*CustomersRes!CA5","v":84.495552350222269},{"$f":"Control!$K$17*CustomersRes!CB5","v":83.953074588471154},{"$f":"Control!$K$17*CustomersRes!CC5","v":83.393309215528802},{"$f":"Control!$K$17*CustomersRes!CD5","v":82.83634266945117},{"$f":"Control!$K$17*CustomersRes!CE5","v":82.282160956103908},{"$f":"Control!$K$17*CustomersRes!CF5","v":81.730750151323392},{"$f":"Control!$K$17*CustomersRes!CG5","v":81.182096400566778},{"$f":"Control!$K$17*CustomersRes!CH5","v":80.636185918563939},{"$f":"Control!$K$17*CustomersRes!CI5","v":80.093004988971117},{"$f":"Control!$K$17*CustomersRes!CJ5","v":79.552539964026266},{"$f":"Control!$K$17*CustomersRes!CK5","v":79.014777264206131}]
["Cardinia (S)",null,{"$f":"Control!$K$17*CustomersRes!J6","v":83.4},{"$f":"Control!$K$17*CustomersRes!K6","v":84.643000000000001},{"$f":"Control!$K$17*CustomersRes!L6","v":85.899784999999994},{"$f":"Control!$K$17*CustomersRes!M6","v":87.170286074999993},{"$f":"Control!$K$17*CustomersRes!N6","v":88.474434644624978},{"$f":"Control!$K$17*CustomersRes!O6","v":89.792062471401863},{"$f":"Control!$K$17*CustomersRes!P6","v":91.123102159044848},{"$f":"Control!$K$17*CustomersRes!Q6","v":92.487486648249615},{"$f":"Control!$K$17*CustomersRes!R6","v":93.865049215008369},{"$f":"Control!$K$17*CustomersRes!S6","v":95.255723968933324},{"$f":"Control!$K$17*CustomersRes!T6","v":96.679445349088653},{"$f":"Control!$K$17*CustomersRes!U6","v":96.196048122343214},{"$f":"Control!$K$17*CustomersRes!V6","v":95.7150678817315},{"$f":"Control!$K$17*CustomersRes!W6","v":95.23649254232285},{"$f":"Control!$K$17*CustomersRes!X6","v":94.76031007961123},{"$f":"Control!$K$17*CustomersRes!Y6","v":94.286508529213165},{"$f":"Control!$K$17*CustomersRes!Z6","v":93.815075986567095},{"$f":"Control!$K$17*CustomersRes!AA6","v":93.346000606634263},{"$f":"Control!$K$17*CustomersRes!AB6","v":92.879270603601086},{"$f":"Control!$K$17*CustomersRes!AC6","v":92.414874250583097},{"$f":"Control!$K$17*CustomersRes!AD6","v":91.952799879330186},{"$f":"Control!$K$17*CustomersRes!AE6","v":91.493035879933529},{"$f":"Control!$K$17*CustomersRes!AF6","v":91.035570700533867},{"$f":"Control!$K$17*CustomersRes!AG6","v":90.580392847031206},{"$f":"Control!$K$17*CustomersRes!AH6","v":90.127490882796053},{"$f":"Control!$K$17*CustomersRes!AI6","v":89.656853428382078},{"$f":"Control!$K$17*CustomersRes!AJ6","v":89.188569161240153},{"$f":"Control!$K$17*CustomersRes!AK6","v":88.70262631543396},{"$f":"Control!$K$17*CustomersRes!AL6","v":88.179113183856785},{"$f":"Control!$K$17*CustomersRes!AM6","v":87.618217617937503},{"$f":"Control!$K$17*CustomersRes!AN6","v":86.960126529847798},{"$f":"Control!$K$17*CustomersRes!AO6","v":86.205325897198563},{"$f":"Control!$K$17*CustomersRes!AP6","v":85.274299267712578},{"$f":"Control!$K$17*CustomersRes!AQ6","v":84.087927771374012},{"$f":"Control!$K$17*CustomersRes!AR6","v":82.607488132517133},{"$f":"Control!$K$17*CustomersRes!AS6","v":80.734450691854562},{"$f":"Control!$K$17*CustomersRes!AT6","v":79.930778438395279},{"$f":"Control!$K$17*CustomersRes!AU6","v":79.211124546203308},{"$f":"Control!$K$17*CustomersRes!AV6","v":78.355068923472288},{"$f":"Control!$K$17*CustomersRes!AW6","v":77.223293578854936},{"$f":"Control!$K$17*CustomersRes!AX6","v":75.777177110960665},{"$f":"Control!$K$17*CustomersRes!AY6","v":73.87829122540586},{"$f":"Control!$K$17*CustomersRes!AZ6","v":71.388899769278822},{"$f":"Control!$K$17*CustomersRes!BA6","v":68.251955270432433},{"$f":"Control!$K$17*CustomersRes!BB6","v":64.550695494080259},{"$f":"Control!$K$17*CustomersRes!BC6","v":60.527942016609863},{"$f":"Control!$K$17*CustomersRes!BD6","v":56.445302306526813},{"$f":"Control!$K$17*CustomersRes!BE6","v":52.483075794994178},{"$f":"Control!$K$17*CustomersRes!BF6","v":48.780660416019202},{"$f":"Control!$K$17*CustomersRes!BG6","v":45.316757113939104},{"$f":"Control!$K$17*CustomersRes!BH6","v":42.09017332836941},{"$f":"Control!$K$17*CustomersRes!BI6","v":39.099722461727566},{"$f":"Control!$K$17*CustomersRes!BJ6","v":36.324223849418928},{"$f":"Control!$K$17*CustomersRes!BK6","v":33.742602730171832},{"$f":"Control!$K$17*CustomersRes!BL6","v":31.353889716520975},{"$f":"Control!$K$17*CustomersRes!BM6","v":29.137120267938371},{"$f":"Control!$K$17*CustomersRes!BN6","v":27.07143466659868},{"$f":"Control!$K$17*CustomersRes!BO6","v":25.156077493265684},{"$f":"Control!$K$17*CustomersRes!BP6","v":23.390297105799355},{"$f":"Control!$K$17*CustomersRes!BQ6","v":21.753345620270355},{"$f":"Control!$K$17*CustomersRes!BR6","v":20.204578892169003},{"$f":"Control!$K$17*CustomersRes!BS6","v":18.76355599770816},{"$f":"Control!$K$17*CustomersRes!BT6","v":18.669738217719619},{"$f":"Control!$K$17*CustomersRes!BU6","v":18.576389526631022},{"$f":"Control!$K$17*CustomersRes!BV6","v":18.483507578997866},{"$f":"Control!$K$17*CustomersRes!BW6","v":18.391090041102878},{"$f":"Control!$K$17*CustomersRes!BX6","v":18.299134590897363},{"$f":"Control!$K$17*CustomersRes!BY6","v":18.207638917942877},{"$f":"Control!$K$17*CustomersRes!BZ6","v":18.116600723353162},{"$f":"Control!$K$17*CustomersRes!CA6","v":18.026017719736398},{"$f":"Control!$K$17*CustomersRes!CB6","v":17.935887631137714},{"$f":"Control!$K$17*CustomersRes!CC6","v":17.846208192982026},{"$f":"Control!$K$17*CustomersRes!CD6","v":17.756977152017118},{"$f":"Control!$K$17*CustomersRes!CE6","v":17.66819226625703},{"$f":"Control!$K$17*CustomersRes!CF6","v":17.579851304925747},{"$f":"Control!$K$17*CustomersRes!CG6","v":17.491952048401117},{"$f":"Control!$K$17*CustomersRes!CH6","v":17.404492288159112},{"$f":"Control!$K$17*CustomersRes!CI6","v":17.31746982671832},{"$f":"Control!$K$17*CustomersRes!CJ6","v":17.230882477584725},{"$f":"Control!$K$17*CustomersRes!CK6","v":17.144728065196801}]
["Casey (C)",null,{"$f":"Control!$K$17*CustomersRes!J7","v":261.45999999999998},{"$f":"Control!$K$17*CustomersRes!K7","v":265.37270000000001},{"$f":"Control!$K$17*CustomersRes!L7","v":269.34583650000002},{"$f":"Control!$K$17*CustomersRes!M7","v":273.37910731750003},{"$f":"Control!$K$17*CustomersRes!N7","v":277.47221178091252},{"$f":"Control!$K$17*CustomersRes!O7","v":281.62485072200792},{"$f":"Control!$K$17*CustomersRes!P7","v":285.8367264683979},{"$f":"Control!$K$17*CustomersRes!Q7","v":290.10754283605593},{"$f":"Control!$K$17*CustomersRes!R7","v":294.45700512187562},{"$f":"Control!$K$17*CustomersRes!S7","v":298.86472009626624},{"$f":"Control!$K$17*CustomersRes!T7","v":303.3303964957849},{"$f":"Control!$K$17*CustomersRes!U7","v":301.81374451330601},{"$f":"Control!$K$17*CustomersRes!V7","v":300.30467579073951},{"$f":"Control!$K$17*CustomersRes!W7","v":298.80315241178585},{"$f":"Control!$K$17*CustomersRes!X7","v":297.3091366497269},{"$f":"Control!$K$17*CustomersRes!Y7","v":295.82259096647829},{"$f":"Control!$K$17*CustomersRes!Z7","v":294.34347801164591},{"$f":"Control!$K$17*CustomersRes!AA7","v":292.87176062158767},{"$f":"Control!$K$17*CustomersRes!AB7","v":291.40740181847974},{"$f":"Control!$K$17*CustomersRes!AC7","v":289.95036480938734},{"$f":"Control!$K$17*CustomersRes!AD7","v":288.48061298534043},{"$f":"Control!$K$17*CustomersRes!AE7","v":286.99820992041373},{"$f":"Control!$K$17*CustomersRes!AF7","v":285.40321887081166},{"$f":"Control!$K$17*CustomersRes!AG7","v":283.45620277645759},{"$f":"Control!$K$17*CustomersRes!AH7","v":280.91892176257528},{"$f":"Control!$K$17*CustomersRes!AI7","v":277.21432715376244},{"$f":"Control!$K$17*CustomersRes!AJ7","v":271.98825551799359},{"$f":"Control!$K$17*CustomersRes!AK7","v":264.74831424040366},{"$f":"Control!$K$17*CustomersRes!AL7","v":255.40457266920163},{"$f":"Control!$K$17*CustomersRes!AM7","v":243.92754980585565},{"$f":"Control!$K$17*CustomersRes!AN7","v":230.34791205682635},{"$f":"Control!$K$17*CustomersRes!AO7","v":216.2961724965422},{"$f":"Control!$K$17*CustomersRes!AP7","v":202.01469163405949},{"$f":"Control!$K$17*CustomersRes!AQ7","v":188.16461817588919},{"$f":"Control!$K$17*CustomersRes!AR7","v":175.02379508500974},{"$f":"Control!$K$17*CustomersRes!AS7","v":162.66867610958468},{"$f":"Control!$K$17*CustomersRes!AT7","v":152.19533272903678},{"$f":"Control!$K$17*CustomersRes!AU7","v":142.7143560653916},{"$f":"Control!$K$17*CustomersRes!AV7","v":133.30078428506462},{"$f":"Control!$K$17*CustomersRes!AW7","v":124.13428036363931},{"$f":"Control!$K$17*CustomersRes!AX7","v":115.4536089618211},{"$f":"Control!$K$17*CustomersRes!AY7","v":107.296340917012},{"$f":"Control!$K$17*CustomersRes!AZ7","v":99.659859212426952},{"$f":"Control!$K$17*CustomersRes!BA7","v":92.541559916364804},{"$f":"Control!$K$17*CustomersRes!BB7","v":85.938852116782982},{"$f":"Control!$K$17*CustomersRes!BC7","v":79.809157856199079},{"$f":"Control!$K$17*CustomersRes!BD7","v":74.110112066918077},{"$f":"Control!$K$17*CustomersRes!BE7","v":68.819561506583483},{"$f":"Control!$K$17*CustomersRes!BF7","v":63.915463699050569},{"$f":"Control!$K$17*CustomersRes!BG7","v":59.355886380555319},{"$f":"Control!$K$17*CustomersRes!BH7","v":55.139106948652547},{"$f":"Control!$K$17*CustomersRes!BI7","v":51.223411413909282},{"$f":"Control!$K$17*CustomersRes!BJ7","v":47.587294356839728},{"$f":"Control!$K$17*CustomersRes!BK7","v":44.209357885055532},{"$f":"Control!$K$17*CustomersRes!BL7","v":41.06831109563025},{"$f":"Control!$K$17*CustomersRes!BM7","v":38.162969540152098},{"$f":"Control!$K$17*CustomersRes!BN7","v":35.432154692451341},{"$f":"Control!$K$17*CustomersRes!BO7","v":32.894993918989087},{"$f":"Control!$K$17*CustomersRes!BP7","v":30.550518949394142},{"$f":"Control!$K$17*CustomersRes!BQ7","v":28.377766354647171},{"$f":"Control!$K$17*CustomersRes!BR7","v":26.355877522873936},{"$f":"Control!$K$17*CustomersRes!BS7","v":24.484098135259565},{"$f":"Control!$K$17*CustomersRes!BT7","v":24.361677644583267},{"$f":"Control!$K$17*CustomersRes!BU7","v":24.23986925636035},{"$f":"Control!$K$17*CustomersRes!BV7","v":24.118669910078548},{"$f":"Control!$K$17*CustomersRes!BW7","v":23.998076560528158},{"$f":"Control!$K$17*CustomersRes!BX7","v":23.878086177725518},{"$f":"Control!$K$17*CustomersRes!BY7","v":23.758695746836889},{"$f":"Control!$K$17*CustomersRes!BZ7","v":23.639902268102706},{"$f":"Control!$K$17*CustomersRes!CA7","v":23.521702756762192},{"$f":"Control!$K$17*CustomersRes!CB7","v":23.404094242978381},{"$f":"Control!$K$17*CustomersRes!CC7","v":23.287073771763488},{"$f":"Control!$K$17*CustomersRes!CD7","v":23.170638402904675},{"$f":"Control!$K$17*CustomersRes!CE7","v":23.054785210890149},{"$f":"Control!$K$17*CustomersRes!CF7","v":22.939511284835699},{"$f":"Control!$K$17*CustomersRes!CG7","v":22.82481372841152},{"$f":"Control!$K$17*CustomersRes!CH7","v":22.710689659769461},{"$f":"Control!$K$17*CustomersRes!CI7","v":22.597136211470612},{"$f":"Control!$K$17*CustomersRes!CJ7","v":22.48415053041326},{"$f":"Control!$K$17*CustomersRes!CK7","v":22.371729777761193}]
["Frankston (C)",null,{"$f":"Control!$K$17*CustomersRes!J8","v":0.02},{"$f":"Control!$K$17*CustomersRes!K8","v":1.9900000000000001E-2},{"$f":"Control!$K$17*CustomersRes!L8","v":1.9800500000000002E-2},{"$f":"Control!$K$17*CustomersRes!M8","v":1.9701497500000002E-2},{"$f":"Control!$K$17*CustomersRes!N8","v":1.9602990012500002E-2},{"$f":"Control!$K$17*CustomersRes!O8","v":1.9504975062437504E-2},{"$f":"Control!$K$17*CustomersRes!P8","v":1.9407450187125315E-2},{"$f":"Control!$K$17*CustomersRes!Q8","v":1.9310412936189687E-2},{"$f":"Control!$K$17*CustomersRes!R8","v":1.9213860871508739E-2},{"$f":"Control!$K$17*CustomersRes!S8","v":1.9117791567151196E-2},{"$f":"Control!$K$17*CustomersRes!T8","v":1.902220260931544E-2},{"$f":"Control!$K$17*CustomersRes!U8","v":1.8927091596268861E-2},{"$f":"Control!$K$17*CustomersRes!V8","v":1.8832456138287518E-2},{"$f":"Control!$K$17*CustomersRes!W8","v":1.8738293857596081E-2},{"$f":"Control!$K$17*CustomersRes!X8","v":1.8644602388308101E-2},{"$f":"Control!$K$17*CustomersRes!Y8","v":1.8551379376366559E-2},{"$f":"Control!$K$17*CustomersRes!Z8","v":1.8458622479484727E-2},{"$f":"Control!$K$17*CustomersRes!AA8","v":1.8366329367087302E-2},{"$f":"Control!$K$17*CustomersRes!AB8","v":1.8274497720251866E-2},{"$f":"Control!$K$17*CustomersRes!AC8","v":1.8183125231650606E-2},{"$f":"Control!$K$17*CustomersRes!AD8","v":1.8092209605492352E-2},{"$f":"Control!$K$17*CustomersRes!AE8","v":1.8001748557464892E-2},{"$f":"Control!$K$17*CustomersRes!AF8","v":1.7911739814677568E-2},{"$f":"Control!$K$17*CustomersRes!AG8","v":1.7822181115604178E-2},{"$f":"Control!$K$17*CustomersRes!AH8","v":1.773307021002616E-2},{"$f":"Control!$K$17*CustomersRes!AI8","v":1.7644404858976028E-2},{"$f":"Control!$K$17*CustomersRes!AJ8","v":1.7556182834681151E-2},{"$f":"Control!$K$17*CustomersRes!AK8","v":1.7468401920507744E-2},{"$f":"Control!$K$17*CustomersRes!AL8","v":1.7381059910905206E-2},{"$f":"Control!$K$17*CustomersRes!AM8","v":1.7294154611350681E-2},{"$f":"Control!$K$17*CustomersRes!AN8","v":1.7207683838293929E-2},{"$f":"Control!$K$17*CustomersRes!AO8","v":1.7121645419102459E-2},{"$f":"Control!$K$17*CustomersRes!AP8","v":1.7036037192006945E-2},{"$f":"Control!$K$17*CustomersRes!AQ8","v":1.6950857006046913E-2},{"$f":"Control!$K$17*CustomersRes!AR8","v":1.6866102721016678E-2},{"$f":"Control!$K$17*CustomersRes!AS8","v":1.6781772207411592E-2},{"$f":"Control!$K$17*CustomersRes!AT8","v":1.6697863346374534E-2},{"$f":"Control!$K$17*CustomersRes!AU8","v":1.6614374029642661E-2},{"$f":"Control!$K$17*CustomersRes!AV8","v":1.6531302159494447E-2},{"$f":"Control!$K$17*CustomersRes!AW8","v":1.6448645648696976E-2},{"$f":"Control!$K$17*CustomersRes!AX8","v":1.636640242045349E-2},{"$f":"Control!$K$17*CustomersRes!AY8","v":1.6284570408351223E-2},{"$f":"Control!$K$17*CustomersRes!AZ8","v":1.6203147556309465E-2},{"$f":"Control!$K$17*CustomersRes!BA8","v":1.6122131818527917E-2},{"$f":"Control!$K$17*CustomersRes!BB8","v":1.6041521159435281E-2},{"$f":"Control!$K$17*CustomersRes!BC8","v":1.5961313553638105E-2},{"$f":"Control!$K$17*CustomersRes!BD8","v":1.5881506985869914E-2},{"$f":"Control!$K$17*CustomersRes!BE8","v":1.5802099450940563E-2},{"$f":"Control!$K$17*CustomersRes!BF8","v":1.5723088953685859E-2},{"$f":"Control!$K$17*CustomersRes!BG8","v":1.5644473508917432E-2},{"$f":"Control!$K$17*CustomersRes!BH8","v":1.5566251141372845E-2},{"$f":"Control!$K$17*CustomersRes!BI8","v":1.5488419885665981E-2},{"$f":"Control!$K$17*CustomersRes!BJ8","v":1.5410977786237651E-2},{"$f":"Control!$K$17*CustomersRes!BK8","v":1.5333922897306463E-2},{"$f":"Control!$K$17*CustomersRes!BL8","v":1.5257253282819929E-2},{"$f":"Control!$K$17*CustomersRes!BM8","v":1.5180967016405828E-2},{"$f":"Control!$K$17*CustomersRes!BN8","v":1.5105062181323799E-2},{"$f":"Control!$K$17*CustomersRes!BO8","v":1.5029536870417181E-2},{"$f":"Control!$K$17*CustomersRes!BP8","v":1.4954389186065094E-2},{"$f":"Control!$K$17*CustomersRes!BQ8","v":1.4879617240134769E-2},{"$f":"Control!$K$17*CustomersRes!BR8","v":1.4805219153934096E-2},{"$f":"Control!$K$17*CustomersRes!BS8","v":1.4731193058164425E-2},{"$f":"Control!$K$17*CustomersRes!BT8","v":1.4657537092873603E-2},{"$f":"Control!$K$17*CustomersRes!BU8","v":1.4584249407409235E-2},{"$f":"Control!$K$17*CustomersRes!BV8","v":1.451132816037219E-2},{"$f":"Control!$K$17*CustomersRes!BW8","v":1.4438771519570329E-2},{"$f":"Control!$K$17*CustomersRes!BX8","v":1.4366577661972477E-2},{"$f":"Control!$K$17*CustomersRes!BY8","v":1.4294744773662616E-2},{"$f":"Control!$K$17*CustomersRes!BZ8","v":1.4223271049794301E-2},{"$f":"Control!$K$17*CustomersRes!CA8","v":1.4152154694545329E-2},{"$f":"Control!$K$17*CustomersRes!CB8","v":1.4081393921072603E-2},{"$f":"Control!$K$17*CustomersRes!CC8","v":1.401098695146724E-2},{"$f":"Control!$K$17*CustomersRes!CD8","v":1.3940932016709904E-2},{"$f":"Control!$K$17*CustomersRes!CE8","v":1.3871227356626355E-2},{"$f":"Control!$K$17*CustomersRes!CF8","v":1.3801871219843222E-2},{"$f":"Control!$K$17*CustomersRes!CG8","v":1.3732861863744006E-2},{"$f":"Control!$K$17*CustomersRes!CH8","v":1.3664197554425286E-2},{"$f":"Control!$K$17*CustomersRes!CI8","v":1.359587656665316E-2},{"$f":"Control!$K$17*CustomersRes!CJ8","v":1.3527897183819896E-2},{"$f":"Control!$K$17*CustomersRes!CK8","v":1.3460257697900796E-2}]
["Glen Eira (C)",null,{"$f":"Control!$K$17*CustomersRes!J9","v":1043},{"$f":"Control!$K$17*CustomersRes!K9","v":1058.605},{"$f":"Control!$K$17*CustomersRes!L9","v":1074.4719749999999},{"$f":"Control!$K$17*CustomersRes!M9","v":1090.5596151249999},{"$f":"Control!$K$17*CustomersRes!N9","v":1106.866817049375},{"$f":"Control!$K$17*CustomersRes!O9","v":1123.4524829641282},{"$f":"Control!$K$17*CustomersRes!P9","v":1140.2952205493075},{"$f":"Control!$K$17*CustomersRes!Q9","v":1157.373744446561},{"$f":"Control!$K$17*CustomersRes!R9","v":1174.7268757243282},{"$f":"Control!$K$17*CustomersRes!S9","v":1192.3132413457067},{"$f":"Control!$K$17*CustomersRes!T9","v":1210.1716751389781},{"$f":"Control!$K$17*CustomersRes!U9","v":1204.1208167632831},{"$f":"Control!$K$17*CustomersRes!V9","v":1198.1002126794667},{"$f":"Control!$K$17*CustomersRes!W9","v":1192.1097116160693},{"$f":"Control!$K$17*CustomersRes!X9","v":1186.149163057989},{"$f":"Control!$K$17*CustomersRes!Y9","v":1180.2184172426989},{"$f":"Control!$K$17*CustomersRes!Z9","v":1174.2973251564854},{"$f":"Control!$K$17*CustomersRes!AA9","v":1168.3258385307031},{"$f":"Control!$K$17*CustomersRes!AB9","v":1162.2642093380496},{"$f":"Control!$K$17*CustomersRes!AC9","v":1155.8328882913593},{"$f":"Control!$K$17*CustomersRes!AD9","v":1148.8737238499025},{"$f":"Control!$K$17*CustomersRes!AE9","v":1141.1693552306529},{"$f":"Control!$K$17*CustomersRes!AF9","v":1129.4035084544996},{"$f":"Control!$K$17*CustomersRes!AG9","v":1106.9164909122271},{"$f":"Control!$K$17*CustomersRes!AH9","v":1072.4219084576659},{"$f":"Control!$K$17*CustomersRes!AI9","v":1024.7197989153776},{"$f":"Control!$K$17*CustomersRes!AJ9","v":969.43619992080073},{"$f":"Control!$K$17*CustomersRes!AK9","v":910.4890189211967},{"$f":"Control!$K$17*CustomersRes!AL9","v":851.27657382659072},{"$f":"Control!$K$17*CustomersRes!AM9","v":793.52019095745788},{"$f":"Control!$K$17*CustomersRes!AN9","v":738.09259000267048},{"$f":"Control!$K$17*CustomersRes!AO9","v":685.98212705265712},{"$f":"Control!$K$17*CustomersRes!AP9","v":637.17221641739388},{"$f":"Control!$K$17*CustomersRes!AQ9","v":591.68635533530687},{"$f":"Control!$K$17*CustomersRes!AR9","v":549.36792355863042},{"$f":"Control!$K$17*CustomersRes!AS9","v":510.04108394083721},{"$f":"Control!$K$17*CustomersRes!AT9","v":473.85087852113298},{"$f":"Control!$K$17*CustomersRes!AU9","v":440.34162412852731},{"$f":"Control!$K$17*CustomersRes!AV9","v":409.01991600788466},{"$f":"Control!$K$17*CustomersRes!AW9","v":379.81481642784524},{"$f":"Control!$K$17*CustomersRes!AX9","v":352.65574234570602},{"$f":"Control!$K$17*CustomersRes!AY9","v":327.4124636339775},{"$f":"Control!$K$17*CustomersRes!AZ9","v":303.97540131580763},{"$f":"Control!$K$17*CustomersRes!BA9","v":282.21552430922856},{"$f":"Control!$K$17*CustomersRes!BB9","v":262.02444668768243},{"$f":"Control!$K$17*CustomersRes!BC9","v":243.27432445424401},{"$f":"Control!$K$17*CustomersRes!BD9","v":225.87795283197281},{"$f":"Control!$K$17*CustomersRes!BE9","v":209.72856306781296},{"$f":"Control!$K$17*CustomersRes!BF9","v":194.71992025247386},{"$f":"Control!$K$17*CustomersRes!BG9","v":180.7863206512115},{"$f":"Control!$K$17*CustomersRes!BH9","v":167.86238904795545},{"$f":"Control!$K$17*CustomersRes!BI9","v":155.86307710271566},{"$f":"Control!$K$17*CustomersRes!BJ9","v":144.72376171720208},{"$f":"Control!$K$17*CustomersRes!BK9","v":134.38014290861608},{"$f":"Control!$K$17*CustomersRes!BL9","v":124.78824219407299},{"$f":"Control!$K$17*CustomersRes!BM9","v":115.86430098310262},{"$f":"Control!$K$17*CustomersRes!BN9","v":107.56497947818711},{"$f":"Control!$K$17*CustomersRes!BO9","v":99.867154580796182},{"$f":"Control!$K$17*CustomersRes!BP9","v":92.727818807892206},{"$f":"Control!$K$17*CustomersRes!BQ9","v":86.084179713852734},{"$f":"Control!$K$17*CustomersRes!BR9","v":79.933758815283468},{"$f":"Control!$K$17*CustomersRes!BS9","v":74.214090021207056},{"$f":"Control!$K$17*CustomersRes!BT9","v":73.74301957110103},{"$f":"Control!$K$17*CustomersRes!BU9","v":73.274304473245522},{"$f":"Control!$K$17*CustomersRes!BV9","v":72.807932950879291},{"$f":"Control!$K$17*CustomersRes!BW9","v":72.343893286124896},{"$f":"Control!$K$17*CustomersRes!BX9","v":71.882173819694273},{"$f":"Control!$K$17*CustomersRes!BY9","v":71.422762950595796},{"$f":"Control!$K$17*CustomersRes!BZ9","v":70.965649135842824},{"$f":"Control!$K$17*CustomersRes!CA9","v":70.5108208901636},{"$f":"Control!$K$17*CustomersRes!CB9","v":70.058266785712789},{"$f":"Control!$K$17*CustomersRes!CC9","v":69.607975451784228},{"$f":"Control!$K$17*CustomersRes!CD9","v":69.159935574525306},{"$f":"Control!$K$17*CustomersRes!CE9","v":68.714135896652678},{"$f":"Control!$K$17*CustomersRes!CF9","v":68.270565217169406},{"$f":"Control!$K$17*CustomersRes!CG9","v":67.829212391083558},{"$f":"Control!$K$17*CustomersRes!CH9","v":67.390066329128146},{"$f":"Control!$K$17*CustomersRes!CI9","v":66.953115997482499},{"$f":"Control!$K$17*CustomersRes!CJ9","v":66.498350417495089},{"$f":"Control!$K$17*CustomersRes!CK9","v":66.045858665407621}]
["Greater Dandenong (C)",null,{"$f":"Control!$K$17*CustomersRes!J10","v":1134.3800000000001},{"$f":"Control!$K$17*CustomersRes!K10","v":1151.3880999999999},{"$f":"Control!$K$17*CustomersRes!L10","v":1168.6511594999999},{"$f":"Control!$K$17*CustomersRes!M10","v":1186.1679037024999},{"$f":"Control!$K$17*CustomersRes!N10","v":1203.9370641839873},{"$f":"Control!$K$17*CustomersRes!O10","v":1221.9773788630675},{"$f":"Control!$K$17*CustomersRes!P10","v":1240.2874919687522},{"$f":"Control!$K$17*CustomersRes!Q10","v":1258.8860545089085},{"$f":"Control!$K$17*CustomersRes!R10","v":1277.7516242363638},{"$f":"Control!$K$17*CustomersRes!S10","v":1296.902866115182},{"$f":"Control!$K$17*CustomersRes!T10","v":1316.3383517846062},{"$f":"Control!$K$17*CustomersRes!U10","v":1309.756660025683},{"$f":"Control!$K$17*CustomersRes!V10","v":1303.2078767255548},{"$f":"Control!$K$17*CustomersRes!W10","v":1296.6918373419269},{"$f":"Control!$K$17*CustomersRes!X10","v":1290.2083781552171},{"$f":"Control!$K$17*CustomersRes!Y10","v":1283.7573362644412},{"$f":"Control!$K$17*CustomersRes!Z10","v":1277.3385495831189},{"$f":"Control!$K$17*CustomersRes!AA10","v":1270.9518568352032},{"$f":"Control!$K$17*CustomersRes!AB10","v":1264.5970975510272},{"$f":"Control!$K$17*CustomersRes!AC10","v":1258.2741120632722},{"$f":"Control!$K$17*CustomersRes!AD10","v":1251.9827415029558},{"$f":"Control!$K$17*CustomersRes!AE10","v":1245.702827795441},{"$f":"Control!$K$17*CustomersRes!AF10","v":1239.4343136564637},{"$f":"Control!$K$17*CustomersRes!AG10","v":1233.1571420881814},{"$f":"Control!$K$17*CustomersRes!AH10","v":1226.8513563777406},{"$f":"Control!$K$17*CustomersRes!AI10","v":1220.4770995958518},{"$f":"Control!$K$17*CustomersRes!AJ10","v":1213.9947140978725},{"$f":"Control!$K$17*CustomersRes!AK10","v":1207.3647405273832},{"$f":"Control!$K$17*CustomersRes!AL10","v":1200.4879168247462},{"$f":"Control!$K$17*CustomersRes!AM10","v":1193.2454772406224},{"$f":"Control!$K$17*CustomersRes!AN10","v":1185.2592498544193},{"$f":"Control!$K$17*CustomersRes!AO10","v":1176.5929536051472},{"$f":"Control!$K$17*CustomersRes!AP10","v":1166.5299888371214},{"$f":"Control!$K$17*CustomersRes!AQ10","v":1154.637338892936},{"$f":"Control!$K$17*CustomersRes!AR10","v":1140.5241521984713},{"$f":"Control!$K$17*CustomersRes!AS10","v":1123.2615314374791},{"$f":"Control!$K$17*CustomersRes!AT10","v":1114.3052237802915},{"$f":"Control!$K$17*CustomersRes!AU10","v":1105.9336976613902},{"$f":"Control!$K$17*CustomersRes!AV10","v":1096.4440291730832},{"$f":"Control!$K$17*CustomersRes!AW10","v":1085.0018090272176},{"$f":"Control!$K$17*CustomersRes!AX10","v":1070.9967999820815},{"$f":"Control!$K$17*CustomersRes!AY10","v":1053.2418159821711},{"$f":"Control!$K$17*CustomersRes!AZ10","v":1030.0556069022603},{"$f":"Control!$K$17*CustomersRes!BA10","v":999.32532886774891},{"$f":"Control!$K$17*CustomersRes!BB10","v":959.46870222341022},{"$f":"Control!$K$17*CustomersRes!BC10","v":910.49135871229316},{"$f":"Control!$K$17*CustomersRes!BD10","v":855.33890191873172},{"$f":"Control!$K$17*CustomersRes!BE10","v":798.20220740913805},{"$f":"Control!$K$17*CustomersRes!BF10","v":742.43119637209236},{"$f":"Control!$K$17*CustomersRes!BG10","v":689.63904039023203},{"$f":"Control!$K$17*CustomersRes!BH10","v":640.33084518828082},{"$f":"Control!$K$17*CustomersRes!BI10","v":594.46919096233944},{"$f":"Control!$K$17*CustomersRes!BJ10","v":551.89684500752776},{"$f":"Control!$K$17*CustomersRes!BK10","v":512.37736078249009},{"$f":"Control!$K$17*CustomersRes!BL10","v":475.69547397857764},{"$f":"Control!$K$17*CustomersRes!BM10","v":441.6369966086848},{"$f":"Control!$K$17*CustomersRes!BN10","v":410.00881162564139},{"$f":"Control!$K$17*CustomersRes!BO10","v":380.65876756751322},{"$f":"Control!$K$17*CustomersRes!BP10","v":353.41547372967568},{"$f":"Control!$K$17*CustomersRes!BQ10","v":328.10839636102725},{"$f":"Control!$K$17*CustomersRes!BR10","v":304.62785437922213},{"$f":"Control!$K$17*CustomersRes!BS10","v":282.80471510732599},{"$f":"Control!$K$17*CustomersRes!BT10","v":281.3906915317894},{"$f":"Control!$K$17*CustomersRes!BU10","v":279.98373807413043},{"$f":"Control!$K$17*CustomersRes!BV10","v":278.58381938375976},{"$f":"Control!$K$17*CustomersRes!BW10","v":277.19090028684099},{"$f":"Control!$K$17*CustomersRes!BX10","v":275.80494578540674},{"$f":"Control!$K$17*CustomersRes!BY10","v":274.42592105647969},{"$f":"Control!$K$17*CustomersRes!BZ10","v":273.0537914511973},{"$f":"Control!$K$17*CustomersRes!CA10","v":271.68852249394138},{"$f":"Control!$K$17*CustomersRes!CB10","v":270.33007988147165},{"$f":"Control!$K$17*CustomersRes!CC10","v":268.97842948206426},{"$f":"Control!$K$17*CustomersRes!CD10","v":267.63353733465397},{"$f":"Control!$K$17*CustomersRes!CE10","v":266.29536964798069},{"$f":"Control!$K$17*CustomersRes!CF10","v":264.96389279974079},{"$f":"Control!$K$17*CustomersRes!CG10","v":263.63907333574207},{"$f":"Control!$K$17*CustomersRes!CH10","v":262.32087796906336},{"$f":"Control!$K$17*CustomersRes!CI10","v":261.00927357921807},{"$f":"Control!$K$17*CustomersRes!CJ10","v":259.70422721132195},{"$f":"Control!$K$17*CustomersRes!CK10","v":258.40570607526536}]
["Kingston (C)",null,{"$f":"Control!$K$17*CustomersRes!J11","v":1078.26},{"$f":"Control!$K$17*CustomersRes!K11","v":1094.4087},{"$f":"Control!$K$17*CustomersRes!L11","v":1110.8166564999999},{"$f":"Control!$K$17*CustomersRes!M11","v":1127.4625732175},{"$f":"Control!$K$17*CustomersRes!N11","v":1144.3452603514124},{"$f":"Control!$K$17*CustomersRes!O11","v":1161.5035340496554},{"$f":"Control!$K$17*CustomersRes!P11","v":1178.9160163794072},{"$f":"Control!$K$17*CustomersRes!Q11","v":1196.5814362975102},{"$f":"Control!$K$17*CustomersRes!R11","v":1214.5185291160226},{"$f":"Control!$K$17*CustomersRes!S11","v":1232.7059364704423},{"$f":"Control!$K$17*CustomersRes!T11","v":1251.1824067880902},{"$f":"Control!$K$17*CustomersRes!U11","v":1244.9264947541499},{"$f":"Control!$K$17*CustomersRes!V11","v":1238.7018622803789},{"$f":"Control!$K$17*CustomersRes!W11","v":1232.5083529689771},{"$f":"Control!$K$17*CustomersRes!X11","v":1226.3458112041321},{"$f":"Control!$K$17*CustomersRes!Y11","v":1220.2140821481114},{"$f":"Control!$K$17*CustomersRes!Z11","v":1214.1130117373709},{"$f":"Control!$K$17*CustomersRes!AA11","v":1208.022446678684},{"$f":"Control!$K$17*CustomersRes!AB11","v":1201.9423344452907},{"$f":"Control!$K$17*CustomersRes!AC11","v":1195.8326227730643},{"$f":"Control!$K$17*CustomersRes!AD11","v":1189.6734596591989},{"$f":"Control!$K$17*CustomersRes!AE11","v":1183.4250923609029},{"$f":"Control!$K$17*CustomersRes!AF11","v":1176.6879668990985},{"$f":"Control!$K$17*CustomersRes!AG11","v":1168.584527064603},{"$f":"Control!$K$17*CustomersRes!AH11","v":1158.4416044292798},{"$f":"Control!$K$17*CustomersRes!AI11","v":1144.5893964071336},{"$f":"Control!$K$17*CustomersRes!AJ11","v":1125.9864494250978},{"$f":"Control!$K$17*CustomersRes!AK11","v":1101.0365171779722},{"$f":"Control!$K$17*CustomersRes!AL11","v":1068.9913345920825},{"$f":"Control!$K$17*CustomersRes!AM11","v":1028.9263779191219},{"$f":"Control!$K$17*CustomersRes!AN11","v":979.2817460295264},{"$f":"Control!$K$17*CustomersRes!AO11","v":925.80533729937872},{"$f":"Control!$K$17*CustomersRes!AP11","v":868.95631061288179},{"$f":"Control!$K$17*CustomersRes!AQ11","v":812.07152905981741},{"$f":"Control!$K$17*CustomersRes!AR11","v":757.01117141451834},{"$f":"Control!$K$17*CustomersRes!AS11","v":704.48611555744571},{"$f":"Control!$K$17*CustomersRes!AT11","v":663.04368497965856},{"$f":"Control!$K$17*CustomersRes!AU11","v":625.84846655476031},{"$f":"Control!$K$17*CustomersRes!AV11","v":587.37922422198653},{"$f":"Control!$K$17*CustomersRes!AW11","v":548.72232810087667},{"$f":"Control!$K$17*CustomersRes!AX11","v":511.23871646037225},{"$f":"Control!$K$17*CustomersRes!AY11","v":475.54252287807037},{"$f":"Control!$K$17*CustomersRes!AZ11","v":441.90481026368008},{"$f":"Control!$K$17*CustomersRes!BA11","v":410.43528621236169},{"$f":"Control!$K$17*CustomersRes!BB11","v":381.10310978129985},{"$f":"Control!$K$17*CustomersRes!BC11","v":353.83759423239337},{"$f":"Control!$K$17*CustomersRes!BD11","v":328.50840626123141},{"$f":"Control!$K$17*CustomersRes!BE11","v":304.98586422992531},{"$f":"Control!$K$17*CustomersRes!BF11","v":283.16093490877569},{"$f":"Control!$K$17*CustomersRes!BG11","v":262.90513023423182},{"$f":"Control!$K$17*CustomersRes!BH11","v":244.09060458306064},{"$f":"Control!$K$17*CustomersRes!BI11","v":226.63015156014532},{"$f":"Control!$K$17*CustomersRes!BJ11","v":210.4170008023446},{"$f":"Control!$K$17*CustomersRes!BK11","v":195.36491579833287},{"$f":"Control!$K$17*CustomersRes!BL11","v":181.38809121934122},{"$f":"Control!$K$17*CustomersRes!BM11","v":168.42115076324453},{"$f":"Control!$K$17*CustomersRes!BN11","v":156.3790450094283},{"$f":"Control!$K$17*CustomersRes!BO11","v":145.17714978438116},{"$f":"Control!$K$17*CustomersRes!BP11","v":134.79126403545928},{"$f":"Control!$K$17*CustomersRes!BQ11","v":125.13730771528198},{"$f":"Control!$K$17*CustomersRes!BR11","v":116.17162117670556},{"$f":"Control!$K$17*CustomersRes!BS11","v":107.85076307082204},{"$f":"Control!$K$17*CustomersRes!BT11","v":107.29150925546791},{"$f":"Control!$K$17*CustomersRes!BU11","v":106.73505170919057},{"$f":"Control!$K$17*CustomersRes!BV11","v":106.18137645064462},{"$f":"Control!$K$17*CustomersRes!BW11","v":105.6304695683914},{"$f":"Control!$K$17*CustomersRes!BX11","v":105.08231722054946},{"$f":"Control!$K$17*CustomersRes!BY11","v":104.53690563444671},{"$f":"Control!$K$17*CustomersRes!BZ11","v":103.99422110627448},{"$f":"Control!$K$17*CustomersRes!CA11","v":103.4542500007431},{"$f":"Control!$K$17*CustomersRes!CB11","v":102.91697875073939},{"$f":"Control!$K$17*CustomersRes!CC11","v":102.38239385698569},{"$f":"Control!$K$17*CustomersRes!CD11","v":101.85048188770077},{"$f":"Control!$K$17*CustomersRes!CE11","v":101.32122947826227},{"$f":"Control!$K$17*CustomersRes!CF11","v":100.79462333087096},{"$f":"Control!$K$17*CustomersRes!CG11","v":100.2706502142166},{"$f":"Control!$K$17*CustomersRes!CH11","v":99.749296963145525},{"$f":"Control!$K$17*CustomersRes!CI11","v":99.230550478329789},{"$f":"Control!$K$17*CustomersRes!CJ11","v":98.714397725938142},{"$f":"Control!$K$17*CustomersRes!CK11","v":98.200825737308463}]
["Knox (C)",null,{"$f":"Control!$K$17*CustomersRes!J12","v":1261.94},{"$f":"Control!$K$17*CustomersRes!K12","v":1280.8503000000001},{"$f":"Control!$K$17*CustomersRes!L12","v":1300.0460485000001},{"$f":"Control!$K$17*CustomersRes!M12","v":1319.5258182575001},{"$f":"Control!$K$17*CustomersRes!N12","v":1339.2881891662128},{"$f":"Control!$K$17*CustomersRes!O12","v":1359.3717482203815},{"$f":"Control!$K$17*CustomersRes!P12","v":1379.7548894792797},{"$f":"Control!$K$17*CustomersRes!Q12","v":1400.4361150318832},{"$f":"Control!$K$17*CustomersRes!R12","v":1421.4339344567238},{"$f":"Control!$K$17*CustomersRes!S12","v":1442.7467647844403},{"$f":"Control!$K$17*CustomersRes!T12","v":1464.373030960518},{"$f":"Control!$K$17*CustomersRes!U12","v":1457.0511658057155},{"$f":"Control!$K$17*CustomersRes!V12","v":1449.7659099766868},{"$f":"Control!$K$17*CustomersRes!W12","v":1442.5170804268034},{"$f":"Control!$K$17*CustomersRes!X12","v":1435.3044950246694},{"$f":"Control!$K$17*CustomersRes!Y12","v":1428.127972549546},{"$f":"Control!$K$17*CustomersRes!Z12","v":1420.9873326867985},{"$f":"Control!$K$17*CustomersRes!AA12","v":1413.8823960233647},{"$f":"Control!$K$17*CustomersRes!AB12","v":1406.7929840432478},{"$f":"Control!$K$17*CustomersRes!AC12","v":1399.6790191230316},{"$f":"Control!$K$17*CustomersRes!AD12","v":1392.5006240274163},{"$f":"Control!$K$17*CustomersRes!AE12","v":1385.2381209072794},{"$f":"Control!$K$17*CustomersRes!AF12","v":1377.3719303027431},{"$f":"Control!$K$17*CustomersRes!AG12","v":1367.5050706512293},{"$f":"Control!$K$17*CustomersRes!AH12","v":1354.3475452979731},{"$f":"Control!$K$17*CustomersRes!AI12","v":1334.795807571483},{"$f":"Control!$K$17*CustomersRes!AJ12","v":1307.0218285336257},{"$f":"Control!$K$17*CustomersRes!AK12","v":1268.7667193909576},{"$f":"Control!$K$17*CustomersRes!AL12","v":1220.0828857940028},{"$f":"Control!$K$17*CustomersRes!AM12","v":1161.6624713650328},{"$f":"Control!$K$17*CustomersRes!AN12","v":1094.3541590082077},{"$f":"Control!$K$17*CustomersRes!AO12","v":1025.6623882131667},{"$f":"Control!$K$17*CustomersRes!AP12","v":956.87407627210087},{"$f":"Control!$K$17*CustomersRes!AQ12","v":890.64970589074028},{"$f":"Control!$K$17*CustomersRes!AR12","v":828.07645736128666},{"$f":"Control!$K$17*CustomersRes!AS12","v":769.35607507448015},{"$f":"Control!$K$17*CustomersRes!AT12","v":718.86929469910774},{"$f":"Control!$K$17*CustomersRes!AU12","v":672.95494822561216},{"$f":"Control!$K$17*CustomersRes!AV12","v":627.79017348448417},{"$f":"Control!$K$17*CustomersRes!AW12","v":584.23122261706169},{"$f":"Control!$K$17*CustomersRes!AX12","v":543.07006650397648},{"$f":"Control!$K$17*CustomersRes!AY12","v":504.47471617145652},{"$f":"Control!$K$17*CustomersRes!AZ12","v":468.47234259059923},{"$f":"Control!$K$17*CustomersRes!BA12","v":434.96998087764626},{"$f":"Control!$K$17*CustomersRes!BB12","v":403.835130973258},{"$f":"Control!$K$17*CustomersRes!BC12","v":374.9159553183917},{"$f":"Control!$K$17*CustomersRes!BD12","v":348.08137554179979},{"$f":"Control!$K$17*CustomersRes!BE12","v":323.16096866409083},{"$f":"Control!$K$17*CustomersRes!BF12","v":300.02516382077039},{"$f":"Control!$K$17*CustomersRes!BG12","v":278.54503800166651},{"$f":"Control!$K$17*CustomersRes!BH12","v":258.61231281165817},{"$f":"Control!$K$17*CustomersRes!BI12","v":240.09925124759991},{"$f":"Control!$K$17*CustomersRes!BJ12","v":222.91875499136191},{"$f":"Control!$K$17*CustomersRes!BK12","v":206.96416121640507},{"$f":"Control!$K$17*CustomersRes!BL12","v":192.16934041032306},{"$f":"Control!$K$17*CustomersRes!BM12","v":178.42849370827145},{"$f":"Control!$K$17*CustomersRes!BN12","v":165.6563512397301},{"$f":"Control!$K$17*CustomersRes!BO12","v":153.78806948353144},{"$f":"Control!$K$17*CustomersRes!BP12","v":142.77912913611382},{"$f":"Control!$K$17*CustomersRes!BQ12","v":132.56523349043323},{"$f":"Control!$K$17*CustomersRes!BR12","v":123.08240732298107},{"$f":"Control!$K$17*CustomersRes!BS12","v":114.26699528636617},{"$f":"Control!$K$17*CustomersRes!BT12","v":113.67566030993434},{"$f":"Control!$K$17*CustomersRes!BU12","v":113.08728200838466},{"$f":"Control!$K$17*CustomersRes!BV12","v":112.50184559834274},{"$f":"Control!$K$17*CustomersRes!BW12","v":111.91933637035102},{"$f":"Control!$K$17*CustomersRes!BX12","v":111.33973968849925},{"$f":"Control!$K$17*CustomersRes!BY12","v":110.76304099005677},{"$f":"Control!$K$17*CustomersRes!BZ12","v":110.18922578510649},{"$f":"Control!$K$17*CustomersRes!CA12","v":109.61827965618095},{"$f":"Control!$K$17*CustomersRes!CB12","v":109.05018825790005},{"$f":"Control!$K$17*CustomersRes!CC12","v":108.48493731661054},{"$f":"Control!$K$17*CustomersRes!CD12","v":107.92251263002748},{"$f":"Control!$K$17*CustomersRes!CE12","v":107.36290006687736},{"$f":"Control!$K$17*CustomersRes!CF12","v":106.80608556654298},{"$f":"Control!$K$17*CustomersRes!CG12","v":106.25205513871026},{"$f":"Control!$K$17*CustomersRes!CH12","v":105.70079486301671},{"$f":"Control!$K$17*CustomersRes!CI12","v":105.15229088870163},{"$f":"Control!$K$17*CustomersRes!CJ12","v":104.60652943425812},{"$f":"Control!$K$17*CustomersRes!CK12","v":104.06349678708682}]
["Manningham (C)",null,{"$f":"Control!$K$17*CustomersRes!J13","v":873.34},{"$f":"Control!$K$17*CustomersRes!K13","v":886.43330000000003},{"$f":"Control!$K$17*CustomersRes!L13","v":899.72113350000006},{"$f":"Control!$K$17*CustomersRes!M13","v":913.2025278325001},{"$f":"Control!$K$17*CustomersRes!N13","v":926.87651519333758},{"$f":"Control!$K$17*CustomersRes!O13","v":940.76213261737087},{"$f":"Control!$K$17*CustomersRes!P13","v":954.85832195428395},{"$f":"Control!$K$17*CustomersRes!Q13","v":969.16403034451241},{"$f":"Control!$K$17*CustomersRes!R13","v":983.69821019278982},{"$f":"Control!$K$17*CustomersRes!S13","v":998.43971914182589},{"$f":"Control!$K$17*CustomersRes!T13","v":1013.4075205461168},{"$f":"Control!$K$17*CustomersRes!U13","v":1008.3404829433862},{"$f":"Control!$K$17*CustomersRes!V13","v":1003.2987805286692},{"$f":"Control!$K$17*CustomersRes!W13","v":998.28228662602578},{"$f":"Control!$K$17*CustomersRes!X13","v":993.29087519289567},{"$f":"Control!$K$17*CustomersRes!Y13","v":988.32442081693114},{"$f":"Control!$K$17*CustomersRes!Z13","v":983.38279871284647},{"$f":"Control!$K$17*CustomersRes!AA13","v":978.46588471928226},{"$f":"Control!$K$17*CustomersRes!AB13","v":973.55355529568578},{"$f":"Control!$K$17*CustomersRes!AC13","v":968.62578751920739},{"$f":"Control!$K$17*CustomersRes!AD13","v":963.64265858161139},{"$f":"Control!$K$17*CustomersRes!AE13","v":958.60444528870335},{"$f":"Control!$K$17*CustomersRes!AF13","v":953.09142306225976},{"$f":"Control!$K$17*CustomersRes!AG13","v":946.02596594694842},{"$f":"Control!$K$17*CustomersRes!AH13","v":936.43583611721363},{"$f":"Control!$K$17*CustomersRes!AI13","v":922.03365693662749},{"$f":"Control!$K$17*CustomersRes!AJ13","v":901.56348865194434},{"$f":"Control!$K$17*CustomersRes!AK13","v":873.59567120868462},{"$f":"Control!$K$17*CustomersRes!AL13","v":838.46769285264122},{"$f":"Control!$K$17*CustomersRes!AM13","v":796.93535438837807},{"$f":"Control!$K$17*CustomersRes!AN13","v":749.83067761643622},{"$f":"Control!$K$17*CustomersRes!AO13","v":702.16152422835398},{"$f":"Control!$K$17*CustomersRes!AP13","v":654.75071660721221},{"$f":"Control!$K$17*CustomersRes!AQ13","v":609.2769630241761},{"$f":"Control!$K$17*CustomersRes!AR13","v":566.39057820905521},{"$f":"Control!$K$17*CustomersRes!AS13","v":526.19862531800993},{"$f":"Control!$K$17*CustomersRes!AT13","v":491.36763219141983},{"$f":"Control!$K$17*CustomersRes!AU13","v":459.65079403046275},{"$f":"Control!$K$17*CustomersRes!AV13","v":428.59254006031045},{"$f":"Control!$K$17*CustomersRes!AW13","v":398.76957736000884},{"$f":"Control!$K$17*CustomersRes!AX13","v":370.61572947320877},{"$f":"Control!$K$17*CustomersRes!AY13","v":344.26265082584274},{"$f":"Control!$K$17*CustomersRes!AZ13","v":319.68133757171353},{"$f":"Control!$K$17*CustomersRes!BA13","v":296.82293088385495},{"$f":"Control!$K$17*CustomersRes!BB13","v":275.57881622943563},{"$f":"Control!$K$17*CustomersRes!BC13","v":255.86092214828849},{"$f":"Control!$K$17*CustomersRes!BD13","v":237.56161753754702},{"$f":"Control!$K$17*CustomersRes!BE13","v":220.57380944985928},{"$f":"Control!$K$17*CustomersRes!BF13","v":204.79094040261},{"$f":"Control!$K$17*CustomersRes!BG13","v":190.14698570059696},{"$f":"Control!$K$17*CustomersRes!BH13","v":176.55625077209399},{"$f":"Control!$K$17*CustomersRes!BI13","v":163.93346951823352},{"$f":"Control!$K$17*CustomersRes!BJ13","v":152.21380217064234},{"$f":"Control!$K$17*CustomersRes!BK13","v":141.33273315978914},{"$f":"Control!$K$17*CustomersRes!BL13","v":131.2260694939902},{"$f":"Control!$K$17*CustomersRes!BM13","v":121.84993914652023},{"$f":"Control!$K$17*CustomersRes!BN13","v":113.12068945078764},{"$f":"Control!$K$17*CustomersRes!BO13","v":105.0150860035337},{"$f":"Control!$K$17*CustomersRes!BP13","v":97.490010573516017},{"$f":"Control!$K$17*CustomersRes!BQ13","v":90.52256052064844},{"$f":"Control!$K$17*CustomersRes!BR13","v":84.049947718045203},{"$f":"Control!$K$17*CustomersRes!BS13","v":78.02969797945498},{"$f":"Control!$K$17*CustomersRes!BT13","v":77.639549489557709},{"$f":"Control!$K$17*CustomersRes!BU13","v":77.251351742109918},{"$f":"Control!$K$17*CustomersRes!BV13","v":76.845094983399363},{"$f":"Control!$K$17*CustomersRes!BW13","v":76.440869508482379},{"$f":"Control!$K$17*CustomersRes!BX13","v":76.038665160939971},{"$f":"Control!$K$17*CustomersRes!BY13","v":75.638471835135263},{"$f":"Control!$K$17*CustomersRes!BZ13","v":75.240279475959582},{"$f":"Control!$K$17*CustomersRes!CA13","v":74.844078078579784},{"$f":"Control!$K$17*CustomersRes!CB13","v":74.449857688186881},{"$f":"Control!$K$17*CustomersRes!CC13","v":74.057608399745945},{"$f":"Control!$K$17*CustomersRes!CD13","v":73.667320357747229},{"$f":"Control!$K$17*CustomersRes!CE13","v":73.278983755958492},{"$f":"Control!$K$17*CustomersRes!CF13","v":72.892588837178707},{"$f":"Control!$K$17*CustomersRes!CG13","v":72.508125892992808},{"$f":"Control!$K$17*CustomersRes!CH13","v":72.125585263527839},{"$f":"Control!$K$17*CustomersRes!CI13","v":71.744957337210195},{"$f":"Control!$K$17*CustomersRes!CJ13","v":71.366232550524145},{"$f":"Control!$K$17*CustomersRes!CK13","v":70.989401387771522}]
["Maroondah (C)",null,{"$f":"Control!$K$17*CustomersRes!J14","v":777.86},{"$f":"Control!$K$17*CustomersRes!K14","v":789.51070000000004},{"$f":"Control!$K$17*CustomersRes!L14","v":801.34314649999999},{"$f":"Control!$K$17*CustomersRes!M14","v":813.33643076750002},{"$f":"Control!$K$17*CustomersRes!N14","v":825.50974861366251},{"$f":"Control!$K$17*CustomersRes!O14","v":837.88219987059426},{"$f":"Control!$K$17*CustomersRes!P14","v":850.4327888712412},{"$f":"Control!$K$17*CustomersRes!Q14","v":863.18062492688512},{"$f":"Control!$K$17*CustomersRes!R14","v":876.12472180225063},{"$f":"Control!$K$17*CustomersRes!S14","v":889.24409819323932},{"$f":"Control!$K$17*CustomersRes!T14","v":902.5778777022731},{"$f":"Control!$K$17*CustomersRes!U14","v":898.06498831376177},{"$f":"Control!$K$17*CustomersRes!V14","v":893.57466337219284},{"$f":"Control!$K$17*CustomersRes!W14","v":889.106790055332},{"$f":"Control!$K$17*CustomersRes!X14","v":884.66125610505526},{"$f":"Control!$K$17*CustomersRes!Y14","v":880.23794982453001},{"$f":"Control!$K$17*CustomersRes!Z14","v":875.83676007540726},{"$f":"Control!$K$17*CustomersRes!AA14","v":871.45757627503019},{"$f":"Control!$K$17*CustomersRes!AB14","v":867.08028839365511},{"$f":"Control!$K$17*CustomersRes!AC14","v":862.68488695168685},{"$f":"Control!$K$17*CustomersRes!AD14","v":858.2714625169283},{"$f":"Control!$K$17*CustomersRes!AE14","v":853.80010520434371},{"$f":"Control!$K$17*CustomersRes!AF14","v":848.91110467832198},{"$f":"Control!$K$17*CustomersRes!AG14","v":842.74654915493045},{"$f":"Control!$K$17*CustomersRes!AH14","v":834.45281640915584},{"$f":"Control!$K$17*CustomersRes!AI14","v":822.08055232711013},{"$f":"Control!$K$17*CustomersRes!AJ14","v":804.51014956547453},{"$f":"Control!$K$17*CustomersRes!AK14","v":780.38759881764724},{"$f":"Control!$K$17*CustomersRes!AL14","v":749.86566082355898},{"$f":"Control!$K$17*CustomersRes!AM14","v":713.45633251944116},{"$f":"Control!$K$17*CustomersRes!AN14","v":671.78905085684403},{"$f":"Control!$K$17*CustomersRes!AO14","v":629.41010560255984},{"$f":"Control!$K$17*CustomersRes!AP14","v":587.08305507454702},{"$f":"Control!$K$17*CustomersRes!AQ14","v":546.42763979917424},{"$f":"Control!$K$17*CustomersRes!AR14","v":508.01550160017842},{"$f":"Control!$K$17*CustomersRes!AS14","v":471.97542409217749},{"$f":"Control!$K$17*CustomersRes!AT14","v":440.89554697171661},{"$f":"Control!$K$17*CustomersRes!AU14","v":412.63106923685802},{"$f":"Control!$K$17*CustomersRes!AV14","v":384.86791389067372},{"$f":"Control!$K$17*CustomersRes!AW14","v":358.1435743212204},{"$f":"Control!$K$17*CustomersRes!AX14","v":332.91285644961425},{"$f":"Control!$K$17*CustomersRes!AY14","v":309.26829216736621},{"$f":"Control!$K$17*CustomersRes!AZ14","v":287.20195070652937},{"$f":"Control!$K$17*CustomersRes!BA14","v":266.66594095299678},{"$f":"Control!$K$17*CustomersRes!BB14","v":247.59261124823178},{"$f":"Control!$K$17*CustomersRes!BC14","v":229.87464819199062},{"$f":"Control!$K$17*CustomersRes!BD14","v":213.42527495103067},{"$f":"Control!$K$17*CustomersRes!BE14","v":198.15814857627549},{"$f":"Control!$K$17*CustomersRes!BF14","v":183.98735783339413},{"$f":"Control!$K$17*CustomersRes!BG14","v":170.82742104422715},{"$f":"Control!$K$17*CustomersRes!BH14","v":158.61328393900601},{"$f":"Control!$K$17*CustomersRes!BI14","v":147.28021751931098},{"$f":"Control!$K$17*CustomersRes!BJ14","v":136.76381643171445},{"$f":"Control!$K$17*CustomersRes!BK14","v":126.99999734955587},{"$f":"Control!$K$17*CustomersRes!BL14","v":117.9249973628081},{"$f":"Control!$K$17*CustomersRes!BM14","v":109.49537237599407},{"$f":"Control!$K$17*CustomersRes!BN14","v":101.66789551411409},{"$f":"Control!$K$17*CustomersRes!BO14","v":94.39955603654353},{"$f":"Control!$K$17*CustomersRes!BP14","v":87.64755825636081},{"$f":"Control!$K$17*CustomersRes!BQ14","v":81.369320465078999},{"$f":"Control!$K$17*CustomersRes!BR14","v":75.54247386275361},{"$f":"Control!$K$17*CustomersRes!BS14","v":70.144761493439844},{"$f":"Control!$K$17*CustomersRes!BT14","v":69.79403768597264},{"$f":"Control!$K$17*CustomersRes!BU14","v":69.445067497542766},{"$f":"Control!$K$17*CustomersRes!BV14","v":69.097842160055052},{"$f":"Control!$K$17*CustomersRes!BW14","v":68.752352949254771},{"$f":"Control!$K$17*CustomersRes!BX14","v":68.408591184508495},{"$f":"Control!$K$17*CustomersRes!BY14","v":68.066548228585958},{"$f":"Control!$K$17*CustomersRes!BZ14","v":67.726215487443028},{"$f":"Control!$K$17*CustomersRes!CA14","v":67.387584410005815},{"$f":"Control!$K$17*CustomersRes!CB14","v":67.050646487955788},{"$f":"Control!$K$17*CustomersRes!CC14","v":66.715393255516005},{"$f":"Control!$K$17*CustomersRes!CD14","v":66.381816289238429},{"$f":"Control!$K$17*CustomersRes!CE14","v":66.049907207792231},{"$f":"Control!$K$17*CustomersRes!CF14","v":65.719657671753268},{"$f":"Control!$K$17*CustomersRes!CG14","v":65.391059383394506},{"$f":"Control!$K$17*CustomersRes!CH14","v":65.064104086477528},{"$f":"Control!$K$17*CustomersRes!CI14","v":64.718783566045147},{"$f":"Control!$K$17*CustomersRes!CJ14","v":64.375189648214914},{"$f":"Control!$K$17*CustomersRes!CK14","v":64.033313699973846}]
["Melbourne (C)",null,{"$f":"Control!$K$17*CustomersRes!J15","v":17.34},{"$f":"Control!$K$17*CustomersRes!K15","v":17.593299999999999},{"$f":"Control!$K$17*CustomersRes!L15","v":17.845333499999999},{"$f":"Control!$K$17*CustomersRes!M15","v":18.096106832499999},{"$f":"Control!$K$17*CustomersRes!N15","v":18.365626298337499},{"$f":"Control!$K$17*CustomersRes!O15","v":18.633798166845811},{"$f":"Control!$K$17*CustomersRes!P15","v":18.900629176011584},{"$f":"Control!$K$17*CustomersRes!Q15","v":19.166126030131526},{"$f":"Control!$K$17*CustomersRes!R15","v":19.450295399980867},{"$f":"Control!$K$17*CustomersRes!S15","v":19.733043922980961},{"$f":"Control!$K$17*CustomersRes!T15","v":20.014378703366059},{"$f":"Control!$K$17*CustomersRes!U15","v":19.914306809849226},{"$f":"Control!$K$17*CustomersRes!V15","v":19.814735275799983},{"$f":"Control!$K$17*CustomersRes!W15","v":19.715661599420979},{"$f":"Control!$K$17*CustomersRes!X15","v":19.617083291423878},{"$f":"Control!$K$17*CustomersRes!Y15","v":19.518997874966757},{"$f":"Control!$K$17*CustomersRes!Z15","v":19.421402885591924},{"$f":"Control!$K$17*CustomersRes!AA15","v":19.324295871163965},{"$f":"Control!$K$17*CustomersRes!AB15","v":19.227674391808144},{"$f":"Control!$K$17*CustomersRes!AC15","v":19.131536019849104},{"$f":"Control!$K$17*CustomersRes!AD15","v":19.035878339749857},{"$f":"Control!$K$17*CustomersRes!AE15","v":18.940698948051107},{"$f":"Control!$K$17*CustomersRes!AF15","v":18.845995453310849},{"$f":"Control!$K$17*CustomersRes!AG15","v":18.751765476044294},{"$f":"Control!$K$17*CustomersRes!AH15","v":18.658006648664074},{"$f":"Control!$K$17*CustomersRes!AI15","v":18.544716615420754},{"$f":"Control!$K$17*CustomersRes!AJ15","v":18.431993032343648},{"$f":"Control!$K$17*CustomersRes!AK15","v":18.319833067181932},{"$f":"Control!$K$17*CustomersRes!AL15","v":18.188233901846019},{"$f":"Control!$K$17*CustomersRes!AM15","v":18.057292732336791},{"$f":"Control!$K$17*CustomersRes!AN15","v":17.907006268675104},{"$f":"Control!$K$17*CustomersRes!AO15","v":17.737471237331729},{"$f":"Control!$K$17*CustomersRes!AP15","v":17.54878388114507},{"$f":"Control!$K$17*CustomersRes!AQ15","v":17.321039961739345},{"$f":"Control!$K$17*CustomersRes!AR15","v":17.07443476193065},{"$f":"Control!$K$17*CustomersRes!AS15","v":16.789062588120995},{"$f":"Control!$K$17*CustomersRes!AT15","v":16.625117275180394},{"$f":"Control!$K$17*CustomersRes!AU15","v":16.461991688804488},{"$f":"Control!$K$17*CustomersRes!AV15","v":16.279681730360466},{"$f":"Control!$K$17*CustomersRes!AW15","v":16.078283321708664},{"$f":"Control!$K$17*CustomersRes!AX15","v":15.837891905100122},{"$f":"Control!$K$17*CustomersRes!AY15","v":15.558702445574621},{"$f":"Control!$K$17*CustomersRes!AZ15","v":15.240908933346748},{"$f":"Control!$K$17*CustomersRes!BA15","v":14.864704388680014},{"$f":"Control!$K$17*CustomersRes!BB15","v":14.410380866736615},{"$f":"Control!$K$17*CustomersRes!BC15","v":13.858328962402933},{"$f":"Control!$K$17*CustomersRes!BD15","v":13.229037317590917},{"$f":"Control!$K$17*CustomersRes!BE15","v":12.522892131002962},{"$f":"Control!$K$17*CustomersRes!BF15","v":11.780277670347946},{"$f":"Control!$K$17*CustomersRes!BG15","v":11.021376281996206},{"$f":"Control!$K$17*CustomersRes!BH15","v":10.286269400586225},{"$f":"Control!$K$17*CustomersRes!BI15","v":9.574838053583294},{"$f":"Control!$K$17*CustomersRes!BJ15","v":8.9269638633153772},{"$f":"Control!$K$17*CustomersRes!BK15","v":8.3223290439988009},{"$f":"Control!$K$17*CustomersRes!BL15","v":7.760717398778807},{"$f":"Control!$K$17*CustomersRes!BM15","v":7.2419138117849124},{"$f":"Control!$K$17*CustomersRes!BN15","v":6.7457042427259877},{"$f":"Control!$K$17*CustomersRes!BO15","v":6.2919757215123582},{"$f":"Control!$K$17*CustomersRes!BP15","v":5.8805158429047975},{"$f":"Control!$K$17*CustomersRes!BQ15","v":5.4911132636902735},{"$f":"Control!$K$17*CustomersRes!BR15","v":5.1236576973718222},{"$f":"Control!$K$17*CustomersRes!BS15","v":4.7780394088849629},{"$f":"Control!$K$17*CustomersRes!BT15","v":4.754149211840538},{"$f":"Control!$K$17*CustomersRes!BU15","v":4.7303784657813353},{"$f":"Control!$K$17*CustomersRes!BV15","v":4.7067265734524284},{"$f":"Control!$K$17*CustomersRes!BW15","v":4.6831929405851662},{"$f":"Control!$K$17*CustomersRes!BX15","v":4.6597769758822407},{"$f":"Control!$K$17*CustomersRes!BY15","v":4.6364780910028296},{"$f":"Control!$K$17*CustomersRes!BZ15","v":4.6132957005478152},{"$f":"Control!$K$17*CustomersRes!CA15","v":4.5902292220450764},{"$f":"Control!$K$17*CustomersRes!CB15","v":4.5672780759348504},{"$f":"Control!$K$17*CustomersRes!CC15","v":4.544441685555177},{"$f":"Control!$K$17*CustomersRes!CD15","v":4.5217194771274007},{"$f":"Control!$K$17*CustomersRes!CE15","v":4.4991108797417638},{"$f":"Control!$K$17*CustomersRes!CF15","v":4.4766153253430545},{"$f":"Control!$K$17*CustomersRes!CG15","v":4.4542322487163402},{"$f":"Control!$K$17*CustomersRes!CH15","v":4.4319610874727582},{"$f":"Control!$K$17*CustomersRes!CI15","v":4.409801282035394},{"$f":"Control!$K$17*CustomersRes!CJ15","v":4.3877522756252167},{"$f":"Control!$K$17*CustomersRes!CK15","v":4.3658135142470913}]
["Monash (C)",null,{"$f":"Control!$K$17*CustomersRes!J16","v":1312.28},{"$f":"Control!$K$17*CustomersRes!K16","v":1331.9386},{"$f":"Control!$K$17*CustomersRes!L16","v":1351.898907},{"$f":"Control!$K$17*CustomersRes!M16","v":1372.1594124649998},{"$f":"Control!$K$17*CustomersRes!N16","v":1392.7186154026747},{"$f":"Control!$K$17*CustomersRes!O16","v":1413.5950223256614},{"$f":"Control!$K$17*CustomersRes!P16","v":1434.787047214033},{"$f":"Control!$K$17*CustomersRes!Q16","v":1456.2931119779628},{"$f":"Control!$K$17*CustomersRes!R16","v":1478.1316464180729},{"$f":"Control!$K$17*CustomersRes!S16","v":1500.2809881859826},{"$f":"Control!$K$17*CustomersRes!T16","v":1522.7795832450529},{"$f":"Control!$K$17*CustomersRes!U16","v":1515.1656853288275},{"$f":"Control!$K$17*CustomersRes!V16","v":1507.5898569021833},{"$f":"Control!$K$17*CustomersRes!W16","v":1500.0519076176724},{"$f":"Control!$K$17*CustomersRes!X16","v":1492.5516480795841},{"$f":"Control!$K$17*CustomersRes!Y16","v":1485.0888898391861},{"$f":"Control!$K$17*CustomersRes!Z16","v":1477.6634453899903},{"$f":"Control!$K$17*CustomersRes!AA16","v":1470.2551281630401},{"$f":"Control!$K$17*CustomersRes!AB16","v":1462.863852522225},{"$f":"Control!$K$17*CustomersRes!AC16","v":1455.4495332596141},{"$f":"Control!$K$17*CustomersRes!AD16","v":1447.972285593316},{"$f":"Control!$K$17*CustomersRes!AE16","v":1440.4124241653492},{"$f":"Control!$K$17*CustomersRes!AF16","v":1432.2103620445225},{"$f":"Control!$K$17*CustomersRes!AG16","v":1422.0893102343},{"$f":"Control!$K$17*CustomersRes!AH16","v":1408.9188636831284},{"$f":"Control!$K$17*CustomersRes!AI16","v":1389.9342693647129},{"$f":"Control!$K$17*CustomersRes!AJ16","v":1363.4845980178893},{"$f":"Control!$K$17*CustomersRes!AK16","v":1327.3071750278},{"$f":"Control!$K$17*CustomersRes!AL16","v":1280.9506391526611},{"$f":"Control!$K$17*CustomersRes!AM16","v":1224.3458859568977},{"$f":"Control!$K$17*CustomersRes!AN16","v":1157.2841565271133},{"$f":"Control!$K$17*CustomersRes!AO16","v":1087.5577357444777},{"$f":"Control!$K$17*CustomersRes!AP16","v":1016.3799470657552},{"$f":"Control!$K$17*CustomersRes!AQ16","v":947.07804733042656},{"$f":"Control!$K$17*CustomersRes!AR16","v":881.14265709377435},{"$f":"Control!$K$17*CustomersRes!AS16","v":818.99694380830556},{"$f":"Control!$K$17*CustomersRes!AT16","v":766.90195908926398},{"$f":"Control!$K$17*CustomersRes!AU16","v":719.72744929381759},{"$f":"Control!$K$17*CustomersRes!AV16","v":672.58881204734848},{"$f":"Control!$K$17*CustomersRes!AW16","v":626.56586798711169},{"$f":"Control!$K$17*CustomersRes!AX16","v":582.77303864717612},{"$f":"Control!$K$17*CustomersRes!AY16","v":541.53917345394029},{"$f":"Control!$K$17*CustomersRes!AZ16","v":502.97147758667052},{"$f":"Control!$K$17*CustomersRes!BA16","v":467.03662019873718},{"$f":"Control!$K$17*CustomersRes!BB16","v":433.62143709774347},{"$f":"Control!$K$17*CustomersRes!BC16","v":402.57332991225479},{"$f":"Control!$K$17*CustomersRes!BD16","v":373.76046326269352},{"$f":"Control!$K$17*CustomersRes!BE16","v":347.01166094638006},{"$f":"Control!$K$17*CustomersRes!BF16","v":322.17660264164817},{"$f":"Control!$K$17*CustomersRes!BG16","v":299.12571962843992},{"$f":"Control!$K$17*CustomersRes!BH16","v":277.71009103029769},{"$f":"Control!$K$17*CustomersRes!BI16","v":257.84154057514621},{"$f":"Control!$K$17*CustomersRes!BJ16","v":239.39233287227049},{"$f":"Control!$K$17*CustomersRes!BK16","v":222.27537120790913},{"$f":"Control!$K$17*CustomersRes!BL16","v":206.3839943518696},{"$f":"Control!$K$17*CustomersRes!BM16","v":191.63207438011025},{"$f":"Control!$K$17*CustomersRes!BN16","v":177.9139140082097},{"$f":"Control!$K$17*CustomersRes!BO16","v":165.16434443816863},{"$f":"Control!$K$17*CustomersRes!BP16","v":153.33852271597777},{"$f":"Control!$K$17*CustomersRes!BQ16","v":142.35183010239788},{"$f":"Control!$K$17*CustomersRes!BR16","v":132.1600709518859},{"$f":"Control!$K$17*CustomersRes!BS16","v":122.69927059712647},{"$f":"Control!$K$17*CustomersRes!BT16","v":122.06577424414083},{"$f":"Control!$K$17*CustomersRes!BU16","v":121.43544537292013},{"$f":"Control!$K$17*CustomersRes!BV16","v":120.80826814605552},{"$f":"Control!$K$17*CustomersRes!BW16","v":120.18422680532525},{"$f":"Control!$K$17*CustomersRes!BX16","v":119.56330567129862},{"$f":"Control!$K$17*CustomersRes!BY16","v":118.94548914294214},{"$f":"Control!$K$17*CustomersRes!BZ16","v":118.33076169722743},{"$f":"Control!$K$17*CustomersRes!CA16","v":117.71910788874129},{"$f":"Control!$K$17*CustomersRes!CB16","v":117.11051234929759},{"$f":"Control!$K$17*CustomersRes!CC16","v":116.50495978755112},{"$f":"Control!$K$17*CustomersRes!CD16","v":115.90243498861335},{"$f":"Control!$K$17*CustomersRes!CE16","v":115.30292281367029},{"$f":"Control!$K$17*CustomersRes!CF16","v":114.70640819960194},{"$f":"Control!$K$17*CustomersRes!CG16","v":114.11287615860392},{"$f":"Control!$K$17*CustomersRes!CH16","v":113.5223117778109},{"$f":"Control!$K$17*CustomersRes!CI16","v":112.93470021892185},{"$f":"Control!$K$17*CustomersRes!CJ16","v":112.35002671782725},{"$f":"Control!$K$17*CustomersRes!CK16","v":111.76827658423811}]
["Nillumbik (S)",null,{"$f":"Control!$K$17*CustomersRes!J17","v":0.16},{"$f":"Control!$K$17*CustomersRes!K17","v":0.15920000000000001},{"$f":"Control!$K$17*CustomersRes!L17","v":0.15840400000000002},{"$f":"Control!$K$17*CustomersRes!M17","v":0.15761198000000001},{"$f":"Control!$K$17*CustomersRes!N17","v":0.15682392010000001},{"$f":"Control!$K$17*CustomersRes!O17","v":0.15603980049950003},{"$f":"Control!$K$17*CustomersRes!P17","v":0.15525960149700252},{"$f":"Control!$K$17*CustomersRes!Q17","v":0.1544833034895175},{"$f":"Control!$K$17*CustomersRes!R17","v":0.15371088697206992},{"$f":"Control!$K$17*CustomersRes!S17","v":0.15294233253720957},{"$f":"Control!$K$17*CustomersRes!T17","v":0.15217762087452352},{"$f":"Control!$K$17*CustomersRes!U17","v":0.15141673277015089},{"$f":"Control!$K$17*CustomersRes!V17","v":0.15065964910630014},{"$f":"Control!$K$17*CustomersRes!W17","v":0.14990635086076864},{"$f":"Control!$K$17*CustomersRes!X17","v":0.14915681910646481},{"$f":"Control!$K$17*CustomersRes!Y17","v":0.14841103501093247},{"$f":"Control!$K$17*CustomersRes!Z17","v":0.14766897983587782},{"$f":"Control!$K$17*CustomersRes!AA17","v":0.14693063493669842},{"$f":"Control!$K$17*CustomersRes!AB17","v":0.14619598176201493},{"$f":"Control!$K$17*CustomersRes!AC17","v":0.14546500185320485},{"$f":"Control!$K$17*CustomersRes!AD17","v":0.14473767684393882},{"$f":"Control!$K$17*CustomersRes!AE17","v":0.14401398845971913},{"$f":"Control!$K$17*CustomersRes!AF17","v":0.14329391851742054},{"$f":"Control!$K$17*CustomersRes!AG17","v":0.14257744892483343},{"$f":"Control!$K$17*CustomersRes!AH17","v":0.14186456168020928},{"$f":"Control!$K$17*CustomersRes!AI17","v":0.14115523887180823},{"$f":"Control!$K$17*CustomersRes!AJ17","v":0.1404494626774492},{"$f":"Control!$K$17*CustomersRes!AK17","v":0.13974721536406196},{"$f":"Control!$K$17*CustomersRes!AL17","v":0.13904847928724165},{"$f":"Control!$K$17*CustomersRes!AM17","v":0.13835323689080545},{"$f":"Control!$K$17*CustomersRes!AN17","v":0.13766147070635143},{"$f":"Control!$K$17*CustomersRes!AO17","v":0.13697316335281967},{"$f":"Control!$K$17*CustomersRes!AP17","v":0.13628829753605556},{"$f":"Control!$K$17*CustomersRes!AQ17","v":0.1356068560483753},{"$f":"Control!$K$17*CustomersRes!AR17","v":0.13492882176813342},{"$f":"Control!$K$17*CustomersRes!AS17","v":0.13425417765929273},{"$f":"Control!$K$17*CustomersRes!AT17","v":0.13358290677099627},{"$f":"Control!$K$17*CustomersRes!AU17","v":0.13291499223714129},{"$f":"Control!$K$17*CustomersRes!AV17","v":0.13225041727595557},{"$f":"Control!$K$17*CustomersRes!AW17","v":0.13158916518957581},{"$f":"Control!$K$17*CustomersRes!AX17","v":0.13093121936362792},{"$f":"Control!$K$17*CustomersRes!AY17","v":0.13027656326680978},{"$f":"Control!$K$17*CustomersRes!AZ17","v":0.12962518045047572},{"$f":"Control!$K$17*CustomersRes!BA17","v":0.12897705454822334},{"$f":"Control!$K$17*CustomersRes!BB17","v":0.12833216927548224},{"$f":"Control!$K$17*CustomersRes!BC17","v":0.12769050842910484},{"$f":"Control!$K$17*CustomersRes!BD17","v":0.12705205588695931},{"$f":"Control!$K$17*CustomersRes!BE17","v":0.1264167956075245},{"$f":"Control!$K$17*CustomersRes!BF17","v":0.12578471162948687},{"$f":"Control!$K$17*CustomersRes!BG17","v":0.12515578807133945},{"$f":"Control!$K$17*CustomersRes!BH17","v":0.12453000913098276},{"$f":"Control!$K$17*CustomersRes!BI17","v":0.12390735908532785},{"$f":"Control!$K$17*CustomersRes!BJ17","v":0.12328782228990121},{"$f":"Control!$K$17*CustomersRes!BK17","v":0.12267138317845171},{"$f":"Control!$K$17*CustomersRes!BL17","v":0.12205802626255943},{"$f":"Control!$K$17*CustomersRes!BM17","v":0.12144773613124663},{"$f":"Control!$K$17*CustomersRes!BN17","v":0.12084049745059039},{"$f":"Control!$K$17*CustomersRes!BO17","v":0.12023629496333745},{"$f":"Control!$K$17*CustomersRes!BP17","v":0.11963511348852075},{"$f":"Control!$K$17*CustomersRes!BQ17","v":0.11903693792107815},{"$f":"Control!$K$17*CustomersRes!BR17","v":0.11844175323147277},{"$f":"Control!$K$17*CustomersRes!BS17","v":0.1178495444653154},{"$f":"Control!$K$17*CustomersRes!BT17","v":0.11726029674298882},{"$f":"Control!$K$17*CustomersRes!BU17","v":0.11667399525927388},{"$f":"Control!$K$17*CustomersRes!BV17","v":0.11609062528297752},{"$f":"Control!$K$17*CustomersRes!BW17","v":0.11551017215656263},{"$f":"Control!$K$17*CustomersRes!BX17","v":0.11493262129577982},{"$f":"Control!$K$17*CustomersRes!BY17","v":0.11435795818930093},{"$f":"Control!$K$17*CustomersRes!BZ17","v":0.11378616839835441},{"$f":"Control!$K$17*CustomersRes!CA17","v":0.11321723755636263},{"$f":"Control!$K$17*CustomersRes!CB17","v":0.11265115136858082},{"$f":"Control!$K$17*CustomersRes!CC17","v":0.11208789561173792},{"$f":"Control!$K$17*CustomersRes!CD17","v":0.11152745613367923},{"$f":"Control!$K$17*CustomersRes!CE17","v":0.11096981885301084},{"$f":"Control!$K$17*CustomersRes!CF17","v":0.11041496975874578},{"$f":"Control!$K$17*CustomersRes!CG17","v":0.10986289490995205},{"$f":"Control!$K$17*CustomersRes!CH17","v":0.10931358043540229},{"$f":"Control!$K$17*CustomersRes!CI17","v":0.10876701253322528},{"$f":"Control!$K$17*CustomersRes!CJ17","v":0.10822317747055916},{"$f":"Control!$K$17*CustomersRes!CK17","v":0.10768206158320637}]
["Port Phillip (C)",null,{"$f":"Control!$K$17*CustomersRes!J18","v":766.48},{"$f":"Control!$K$17*CustomersRes!K18","v":777.88760000000002},{"$f":"Control!$K$17*CustomersRes!L18","v":789.51816200000007},{"$f":"Control!$K$17*CustomersRes!M18","v":801.29057119000004},{"$f":"Control!$K$17*CustomersRes!N18","v":813.20411833405001},{"$f":"Control!$K$17*CustomersRes!O18","v":825.37809774237974},{"$f":"Control!$K$17*CustomersRes!P18","v":837.73120725366789},{"$f":"Control!$K$17*CustomersRes!Q18","v":850.24255121739952},{"$f":"Control!$K$17*CustomersRes!R18","v":862.97133846131237},{"$f":"Control!$K$17*CustomersRes!S18","v":875.81648176900592},{"$f":"Control!$K$17*CustomersRes!T18","v":888.89739936016099},{"$f":"Control!$K$17*CustomersRes!U18","v":884.45291236336016},{"$f":"Control!$K$17*CustomersRes!V18","v":880.0306478015433},{"$f":"Control!$K$17*CustomersRes!W18","v":875.63049456253543},{"$f":"Control!$K$17*CustomersRes!X18","v":871.25234208972279},{"$f":"Control!$K$17*CustomersRes!Y18","v":866.83608037927422},{"$f":"Control!$K$17*CustomersRes!Z18","v":862.38189997737788},{"$f":"Control!$K$17*CustomersRes!AA18","v":857.70999047749115},{"$f":"Control!$K$17*CustomersRes!AB18","v":852.80144052510366},{"$f":"Control!$K$17*CustomersRes!AC18","v":847.31743332247822},{"$f":"Control!$K$17*CustomersRes!AD18","v":841.16084615586578},{"$f":"Control!$K$17*CustomersRes!AE18","v":834.2550419250864},{"$f":"Control!$K$17*CustomersRes!AF18","v":824.40376671546096},{"$f":"Control!$K$17*CustomersRes!AG18","v":808.94174788188366},{"$f":"Control!$K$17*CustomersRes!AH18","v":788.05703914247431},{"$f":"Control!$K$17*CustomersRes!AI18","v":760.7967539467619},{"$f":"Control!$K$17*CustomersRes!AJ18","v":728.77277017702818},{"$f":"Control!$K$17*CustomersRes!AK18","v":693.04890632614308},{"$f":"Control!$K$17*CustomersRes!AL18","v":655.2036617945123},{"$f":"Control!$K$17*CustomersRes!AM18","v":616.22764348553972},{"$f":"Control!$K$17*CustomersRes!AN18","v":576.76650526811204},{"$f":"Control!$K$17*CustomersRes!AO18","v":538.54267274177141},{"$f":"Control!$K$17*CustomersRes!AP18","v":501.70995937806265},{"$f":"Control!$K$17*CustomersRes!AQ18","v":466.78140958117234},{"$f":"Control!$K$17*CustomersRes!AR18","v":433.96750253326644},{"$f":"Control!$K$17*CustomersRes!AS18","v":403.25766502060014},{"$f":"Control!$K$17*CustomersRes!AT18","v":376.06137669549707},{"$f":"Control!$K$17*CustomersRes!AU18","v":351.02106981201962},{"$f":"Control!$K$17*CustomersRes!AV18","v":327.02596446295951},{"$f":"Control!$K$17*CustomersRes!AW18","v":304.23083464064473},{"$f":"Control!$K$17*CustomersRes!AX18","v":282.80968046744152},{"$f":"Control!$K$17*CustomersRes!AY18","v":262.75563206510429},{"$f":"Control!$K$17*CustomersRes!AZ18","v":244.06185390477876},{"$f":"Control!$K$17*CustomersRes!BA18","v":226.64154463525486},{"$f":"Control!$K$17*CustomersRes!BB18","v":210.44833691207859},{"$f":"Control!$K$17*CustomersRes!BC18","v":195.3960952275182},{"$f":"Control!$K$17*CustomersRes!BD18","v":181.41911475138062},{"$f":"Control!$K$17*CustomersRes!BE18","v":168.45201917762373},{"$f":"Control!$K$17*CustomersRes!BF18","v":156.40975908173561},{"$f":"Control!$K$17*CustomersRes!BG18","v":145.22771028632692},{"$f":"Control!$K$17*CustomersRes!BH18","v":134.8415717348953},{"$f":"Control!$K$17*CustomersRes!BI18","v":125.20736387622082},{"$f":"Control!$K$17*CustomersRes!BJ18","v":116.26132705683973},{"$f":"Control!$K$17*CustomersRes!BK18","v":107.96002042155553},{"$f":"Control!$K$17*CustomersRes!BL18","v":100.26022031944774},{"$f":"Control!$K$17*CustomersRes!BM18","v":93.098919217850508},{"$f":"Control!$K$17*CustomersRes!BN18","v":86.453424621761258},{"$f":"Control!$K$17*CustomersRes!BO18","v":80.281157498652462},{"$f":"Control!$K$17*CustomersRes!BP18","v":74.559751711159194},{"$f":"Control!$K$17*CustomersRes!BQ18","v":69.226952952603412},{"$f":"Control!$K$17*CustomersRes!BR18","v":64.280818187840381},{"$f":"Control!$K$17*CustomersRes!BS18","v":59.679414096901183},{"$f":"Control!$K$17*CustomersRes!BT18","v":59.261017026416674},{"$f":"Control!$K$17*CustomersRes!BU18","v":58.844711941284594},{"$f":"Control!$K$17*CustomersRes!BV18","v":58.430488381578172},{"$f":"Control!$K$17*CustomersRes!BW18","v":58.01833593967028},{"$f":"Control!$K$17*CustomersRes!BX18","v":57.608244259971926},{"$f":"Control!$K$17*CustomersRes!BY18","v":57.200203038672065},{"$f":"Control!$K$17*CustomersRes!BZ18","v":56.794202023478704},{"$f":"Control!$K$17*CustomersRes!CA18","v":56.390231013361308},{"$f":"Control!$K$17*CustomersRes!CB18","v":55.988279858294504},{"$f":"Control!$K$17*CustomersRes!CC18","v":55.56833845900303},{"$f":"Control!$K$17*CustomersRes!CD18","v":55.150496766708009},{"$f":"Control!$K$17*CustomersRes!CE18","v":54.734744282874473},{"$f":"Control!$K$17*CustomersRes!CF18","v":54.321070561460104},{"$f":"Control!$K$17*CustomersRes!CG18","v":53.909465208652804},{"$f":"Control!$K$17*CustomersRes!CH18","v":53.499917882609537},{"$f":"Control!$K$17*CustomersRes!CI18","v":53.092418293196488},{"$f":"Control!$K$17*CustomersRes!CJ18","v":52.68695620173051},{"$f":"Control!$K$17*CustomersRes!CK18","v":52.283521420721854}]
["South Gippsland (S)",null,{"$f":"Control!$K$17*CustomersRes!J19","v":43.24},{"$f":"Control!$K$17*CustomersRes!K19","v":43.883800000000001},{"$f":"Control!$K$17*CustomersRes!L19","v":44.524381000000005},{"$f":"Control!$K$17*CustomersRes!M19","v":45.181759095000011},{"$f":"Control!$K$17*CustomersRes!N19","v":45.855850299525009},{"$f":"Control!$K$17*CustomersRes!O19","v":46.526571048027385},{"$f":"Control!$K$17*CustomersRes!P19","v":47.213938192787246},{"$f":"Control!$K$17*CustomersRes!Q19","v":47.917868501823314},{"$f":"Control!$K$17*CustomersRes!R19","v":48.618279159314199},{"$f":"Control!$K$17*CustomersRes!S19","v":49.335187763517624},{"$f":"Control!$K$17*CustomersRes!T19","v":50.068511824700039},{"$f":"Control!$K$17*CustomersRes!U19","v":49.818169265576536},{"$f":"Control!$K$17*CustomersRes!V19","v":49.569078419248655},{"$f":"Control!$K$17*CustomersRes!W19","v":49.32123302715241},{"$f":"Control!$K$17*CustomersRes!X19","v":49.07462686201665},{"$f":"Control!$K$17*CustomersRes!Y19","v":48.829253727706565},{"$f":"Control!$K$17*CustomersRes!Z19","v":48.585107459068034},{"$f":"Control!$K$17*CustomersRes!AA19","v":48.342181921772692},{"$f":"Control!$K$17*CustomersRes!AB19","v":48.10047101216383},{"$f":"Control!$K$17*CustomersRes!AC19","v":47.859968657103011},{"$f":"Control!$K$17*CustomersRes!AD19","v":47.620668813817495},{"$f":"Control!$K$17*CustomersRes!AE19","v":47.382565469748407},{"$f":"Control!$K$17*CustomersRes!AF19","v":47.145652642399668},{"$f":"Control!$K$17*CustomersRes!AG19","v":46.909924379187672},{"$f":"Control!$K$17*CustomersRes!AH19","v":46.675374757291728},{"$f":"Control!$K$17*CustomersRes!AI19","v":46.441997883505273},{"$f":"Control!$K$17*CustomersRes!AJ19","v":46.18978789408775},{"$f":"Control!$K$17*CustomersRes!AK19","v":45.938838954617317},{"$f":"Control!$K$17*CustomersRes!AL19","v":45.669144759844229},{"$f":"Control!$K$17*CustomersRes!AM19","v":45.400799036045008},{"$f":"Control!$K$17*CustomersRes!AN19","v":45.093795040864791},{"$f":"Control!$K$17*CustomersRes!AO19","v":44.768326065660467},{"$f":"Control!$K$17*CustomersRes!AP19","v":44.384484435332162},{"$f":"Control!$K$17*CustomersRes!AQ19","v":43.962562013155505},{"$f":"Control!$K$17*CustomersRes!AR19","v":43.462749203089729},{"$f":"Control!$K$17*CustomersRes!AS19","v":42.865435457074277},{"$f":"Control!$K$17*CustomersRes!AT19","v":42.531108279788903},{"$f":"Control!$K$17*CustomersRes!AU19","v":42.218452738389963},{"$f":"Control!$K$17*CustomersRes!AV19","v":41.86736047469801},{"$f":"Control!$K$17*CustomersRes!AW19","v":41.458023672324515},{"$f":"Control!$K$17*CustomersRes!AX19","v":40.970733553962894},{"$f":"Control!$K$17*CustomersRes!AY19","v":40.365879886193078},{"$f":"Control!$K$17*CustomersRes!AZ19","v":39.604050486762105},{"$f":"Control!$K$17*CustomersRes!BA19","v":38.626030234328297},{"$f":"Control!$K$17*CustomersRes!BB19","v":37.372900083156658},{"$f":"Control!$K$17*CustomersRes!BC19","v":35.786035582740872},{"$f":"Control!$K$17*CustomersRes!BD19","v":33.887105404827174},{"$f":"Control!$K$17*CustomersRes!BE19","v":31.817669877803038},{"$f":"Control!$K$17*CustomersRes!BF19","v":29.678581528414021},{"$f":"Control!$K$17*CustomersRes!BG19","v":27.63018862077195},{"$f":"Control!$K$17*CustomersRes!BH19","v":25.67203767766809},{"$f":"Control!$K$17*CustomersRes!BI19","v":23.863677489279748},{"$f":"Control!$K$17*CustomersRes!BJ19","v":22.184359101833351},{"$f":"Control!$K$17*CustomersRes!BK19","v":20.633437306324186},{"$f":"Control!$K$17*CustomersRes!BL19","v":19.190270119792565},{"$f":"Control!$K$17*CustomersRes!BM19","v":17.854318769193601},{"$f":"Control!$K$17*CustomersRes!BN19","v":16.605047175347632},{"$f":"Control!$K$17*CustomersRes!BO19","v":15.442021939470896},{"$f":"Control!$K$17*CustomersRes!BP19","v":14.364811829773542},{"$f":"Control!$K$17*CustomersRes!BQ19","v":13.372987770624674},{"$f":"Control!$K$17*CustomersRes!BR19","v":12.44612283177155},{"$f":"Control!$K$17*CustomersRes!BS19","v":11.563892217612693},{"$f":"Control!$K$17*CustomersRes!BT19","v":11.506072756524629},{"$f":"Control!$K$17*CustomersRes!BU19","v":11.448542392742006},{"$f":"Control!$K$17*CustomersRes!BV19","v":11.391299680778296},{"$f":"Control!$K$17*CustomersRes!BW19","v":11.334343182374402},{"$f":"Control!$K$17*CustomersRes!BX19","v":11.277671466462531},{"$f":"Control!$K$17*CustomersRes!BY19","v":11.221283109130217},{"$f":"Control!$K$17*CustomersRes!BZ19","v":11.165176693584568},{"$f":"Control!$K$17*CustomersRes!CA19","v":11.109350810116643},{"$f":"Control!$K$17*CustomersRes!CB19","v":11.05380405606606},{"$f":"Control!$K$17*CustomersRes!CC19","v":10.99853503578573},{"$f":"Control!$K$17*CustomersRes!CD19","v":10.943542360606802},{"$f":"Control!$K$17*CustomersRes!CE19","v":10.888824648803768},{"$f":"Control!$K$17*CustomersRes!CF19","v":10.83438052555975},{"$f":"Control!$K$17*CustomersRes!CG19","v":10.78020862293195},{"$f":"Control!$K$17*CustomersRes!CH19","v":10.72630757981729},{"$f":"Control!$K$17*CustomersRes!CI19","v":10.672676041918203},{"$f":"Control!$K$17*CustomersRes!CJ19","v":10.619312661708612},{"$f":"Control!$K$17*CustomersRes!CK19","v":10.566216098400069}]
["Stonnington (C)",null,{"$f":"Control!$K$17*CustomersRes!J20","v":776.88},{"$f":"Control!$K$17*CustomersRes!K20","v":788.4556},{"$f":"Control!$K$17*CustomersRes!L20","v":800.25332200000003},{"$f":"Control!$K$17*CustomersRes!M20","v":812.19205539000006},{"$f":"Control!$K$17*CustomersRes!N20","v":824.29109511305001},{"$f":"Control!$K$17*CustomersRes!O20","v":836.62963963748462},{"$f":"Control!$K$17*CustomersRes!P20","v":849.16649143929726},{"$f":"Control!$K$17*CustomersRes!Q20","v":861.86065898210074},{"$f":"Control!$K$17*CustomersRes!R20","v":874.77135568719029},{"$f":"Control!$K$17*CustomersRes!S20","v":887.81749890875426},{"$f":"Control!$K$17*CustomersRes!T20","v":901.09841141421043},{"$f":"Control!$K$17*CustomersRes!U20","v":896.59291935713929},{"$f":"Control!$K$17*CustomersRes!V20","v":892.10995476035362},{"$f":"Control!$K$17*CustomersRes!W20","v":887.64940498655187},{"$f":"Control!$K$17*CustomersRes!X20","v":883.21115796161905},{"$f":"Control!$K$17*CustomersRes!Y20","v":878.77510217181089},{"$f":"Control!$K$17*CustomersRes!Z20","v":874.32122666095177},{"$f":"Control!$K$17*CustomersRes!AA20","v":869.66962052764711},{"$f":"Control!$K$17*CustomersRes!AB20","v":864.78127242500886},{"$f":"Control!$K$17*CustomersRes!AC20","v":859.25736606288388},{"$f":"Control!$K$17*CustomersRes!AD20","v":852.94107923256945},{"$f":"Control!$K$17*CustomersRes!AE20","v":845.67637383640658},{"$f":"Control!$K$17*CustomersRes!AF20","v":834.30799196722455},{"$f":"Control!$K$17*CustomersRes!AG20","v":814.69645200738842},{"$f":"Control!$K$17*CustomersRes!AH20","v":787.54296974735144},{"$f":"Control!$K$17*CustomersRes!AI20","v":752.72525489861471},{"$f":"Control!$K$17*CustomersRes!AJ20","v":713.46162862412166},{"$f":"Control!$K$17*CustomersRes!AK20","v":671.79432048100102},{"$f":"Control!$K$17*CustomersRes!AL20","v":629.69534887859606},{"$f":"Control!$K$17*CustomersRes!AM20","v":588.22687213420306},{"$f":"Control!$K$17*CustomersRes!AN20","v":547.96573777353206},{"$f":"Control!$K$17*CustomersRes!AO20","v":509.84590908466447},{"$f":"Control!$K$17*CustomersRes!AP20","v":473.89667953924118},{"$f":"Control!$K$17*CustomersRes!AQ20","v":440.24719614154498},{"$f":"Control!$K$17*CustomersRes!AR20","v":408.88596016083727},{"$f":"Control!$K$17*CustomersRes!AS20","v":379.70153036003308},{"$f":"Control!$K$17*CustomersRes!AT20","v":353.08302270823287},{"$f":"Control!$K$17*CustomersRes!AU20","v":328.45760759469175},{"$f":"Control!$K$17*CustomersRes!AV20","v":305.31531955671829},{"$f":"Control!$K$17*CustomersRes!AW20","v":283.64874295893469},{"$f":"Control!$K$17*CustomersRes!AX20","v":263.43049924414004},{"$f":"Control!$K$17*CustomersRes!AY20","v":244.61334674791931},{"$f":"Control!$K$17*CustomersRes!AZ20","v":227.13028001417973},{"$f":"Control!$K$17*CustomersRes!BA20","v":210.87462861410884},{"$f":"Control!$K$17*CustomersRes!BB20","v":195.8002554710383},{"$f":"Control!$K$17*CustomersRes!BC20","v":181.80125419368309},{"$f":"Control!$K$17*CustomersRes!BD20","v":168.79224792271467},{"$f":"Control!$K$17*CustomersRes!BE20","v":156.72828668310112},{"$f":"Control!$K$17*CustomersRes!BF20","v":145.52464524968559},{"$f":"Control!$K$17*CustomersRes!BG20","v":135.11702202343716},{"$f":"Control!$K$17*CustomersRes!BH20","v":125.46143691331999},{"$f":"Control!$K$17*CustomersRes!BI20","v":116.49412972875338},{"$f":"Control!$K$17*CustomersRes!BJ20","v":108.17165908010961},{"$f":"Control!$K$17*CustomersRes!BK20","v":100.45080078470906},{"$f":"Control!$K$17*CustomersRes!BL20","v":93.288546780785509},{"$f":"Control!$K$17*CustomersRes!BM20","v":86.642104046881585},{"$f":"Control!$K$17*CustomersRes!BN20","v":80.468893526647179},{"$f":"Control!$K$17*CustomersRes!BO20","v":74.706549059013938},{"$f":"Control!$K$17*CustomersRes!BP20","v":69.353016313718868},{"$f":"Control!$K$17*CustomersRes!BQ20","v":64.386251232150272},{"$f":"Control!$K$17*CustomersRes!BR20","v":59.784319975989519},{"$f":"Control!$K$17*CustomersRes!BS20","v":55.505398376109568},{"$f":"Control!$K$17*CustomersRes!BT20","v":55.107871384229021},{"$f":"Control!$K$17*CustomersRes!BU20","v":54.692332027307877},{"$f":"Control!$K$17*CustomersRes!BV20","v":54.278870367171344},{"$f":"Control!$K$17*CustomersRes!BW20","v":53.867476015335477},{"$f":"Control!$K$17*CustomersRes!BX20","v":53.458138635258805},{"$f":"Control!$K$17*CustomersRes!BY20","v":53.050847942082513},{"$f":"Control!$K$17*CustomersRes!BZ20","v":52.645593702372096},{"$f":"Control!$K$17*CustomersRes!CA20","v":52.242365733860233},{"$f":"Control!$K$17*CustomersRes!CB20","v":51.841153905190936},{"$f":"Control!$K$17*CustomersRes!CC20","v":51.44194813566498},{"$f":"Control!$K$17*CustomersRes!CD20","v":51.044738394986652},{"$f":"Control!$K$17*CustomersRes!CE20","v":50.649514703011718},{"$f":"Control!$K$17*CustomersRes!CF20","v":50.256267129496663},{"$f":"Control!$K$17*CustomersRes!CG20","v":49.864985793849186},{"$f":"Control!$K$17*CustomersRes!CH20","v":49.475660864879941},{"$f":"Control!$K$17*CustomersRes!CI20","v":49.088282560555534},{"$f":"Control!$K$17*CustomersRes!CJ20","v":48.702841147752764},{"$f":"Control!$K$17*CustomersRes!CK20","v":48.319326942013994}]
["Whitehorse (C)",null,{"$f":"Control!$K$17*CustomersRes!J21","v":1337.3},{"$f":"Control!$K$17*CustomersRes!K21","v":1357.3335000000002},{"$f":"Control!$K$17*CustomersRes!L21","v":1377.6868325},{"$f":"Control!$K$17*CustomersRes!M21","v":1398.3183983375002},{"$f":"Control!$K$17*CustomersRes!N21","v":1419.2668063458125},{"$f":"Control!$K$17*CustomersRes!O21","v":1440.5504723140834},{"$f":"Control!$K$17*CustomersRes!P21","v":1462.1477199525129},{"$f":"Control!$K$17*CustomersRes!Q21","v":1484.0569813527504},{"$f":"Control!$K$17*CustomersRes!R21","v":1506.2966964459868},{"$f":"Control!$K$17*CustomersRes!S21","v":1528.8652129637569},{"$f":"Control!$K$17*CustomersRes!T21","v":1551.780886898938},{"$f":"Control!$K$17*CustomersRes!U21","v":1544.0219824644435},{"$f":"Control!$K$17*CustomersRes!V21","v":1536.3018725521215},{"$f":"Control!$K$17*CustomersRes!W21","v":1528.6203631893607},{"$f":"Control!$K$17*CustomersRes!X21","v":1520.9772613734137},{"$f":"Control!$K$17*CustomersRes!Y21","v":1513.3723750665467},{"$f":"Control!$K$17*CustomersRes!Z21","v":1505.8055131912138},{"$f":"Control!$K$17*CustomersRes!AA21","v":1498.2564856252577},{"$f":"Control!$K$17*CustomersRes!AB21","v":1490.7252031971313},{"$f":"Control!$K$17*CustomersRes!AC21","v":1483.1715771811455},{"$f":"Control!$K$17*CustomersRes!AD21","v":1475.5557192952399},{"$f":"Control!$K$17*CustomersRes!AE21","v":1467.8379406987638},{"$f":"Control!$K$17*CustomersRes!AF21","v":1459.4587509952698},{"$f":"Control!$K$17*CustomersRes!AG21","v":1449.0414572402933},{"$f":"Control!$K$17*CustomersRes!AH21","v":1435.4162499540919},{"$f":"Control!$K$17*CustomersRes!AI21","v":1415.6591687043215},{"$f":"Control!$K$17*CustomersRes!AJ21","v":1388.0808728608001},{"$f":"Control!$K$17*CustomersRes!AK21","v":1350.380468496496},{"$f":"Control!$K$17*CustomersRes!AL21","v":1302.2085661540136},{"$f":"Control!$K$17*CustomersRes!AM21","v":1243.6575233232436},{"$f":"Control!$K$17*CustomersRes!AN21","v":1174.7592357066274},{"$f":"Control!$K$17*CustomersRes!AO21","v":1103.4054395280943},{"$f":"Control!$K$17*CustomersRes!AP21","v":1030.8484123304538},{"$f":"Control!$K$17*CustomersRes!AQ21","v":960.35417026880157},{"$f":"Control!$K$17*CustomersRes!AR21","v":893.35239941745749},{"$f":"Control!$K$17*CustomersRes!AS21","v":830.28563742037022},{"$f":"Control!$K$17*CustomersRes!AT21","v":777.13420923326839},{"$f":"Control!$K$17*CustomersRes!AU21","v":728.98853818710199},{"$f":"Control!$K$17*CustomersRes!AV21","v":681.02359549616642},{"$f":"Control!$K$17*CustomersRes!AW21","v":634.29847751868556},{"$f":"Control!$K$17*CustomersRes!AX21","v":589.88698513109205},{"$f":"Control!$K$17*CustomersRes!AY21","v":548.1175502054366},{"$f":"Control!$K$17*CustomersRes!AZ21","v":509.05696245440947},{"$f":"Control!$K$17*CustomersRes!BA21","v":472.69167764213739},{"$f":"Control!$K$17*CustomersRes!BB21","v":438.86821925392667},{"$f":"Control!$K$17*CustomersRes!BC21","v":407.45387815765702},{"$f":"Control!$K$17*CustomersRes!BD21","v":378.27660876686872},{"$f":"Control!$K$17*CustomersRes!BE21","v":351.2052257230344},{"$f":"Control!$K$17*CustomersRes!BF21","v":326.06919959441922},{"$f":"Control!$K$17*CustomersRes!BG21","v":302.73885359644714},{"$f":"Control!$K$17*CustomersRes!BH21","v":281.06515932846486},{"$f":"Control!$K$17*CustomersRes!BI21","v":260.95983353182254},{"$f":"Control!$K$17*CustomersRes!BJ21","v":242.29503436416346},{"$f":"Control!$K$17*CustomersRes!BK21","v":224.96355919234261},{"$f":"Control!$K$17*CustomersRes!BL21","v":208.87874139638092},{"$f":"Control!$K$17*CustomersRes!BM21","v":193.934347689399},{"$f":"Control!$K$17*CustomersRes!BN21","v":180.04467595095201},{"$f":"Control!$K$17*CustomersRes!BO21","v":167.14445257119726},{"$f":"Control!$K$17*CustomersRes!BP21","v":155.16873030834128},{"$f":"Control!$K$17*CustomersRes!BQ21","v":144.05288665679956},{"$f":"Control!$K$17*CustomersRes!BR21","v":133.73262222351556},{"$f":"Control!$K$17*CustomersRes!BS21","v":124.16395911239799},{"$f":"Control!$K$17*CustomersRes!BT21","v":123.52313931683601},{"$f":"Control!$K$17*CustomersRes!BU21","v":122.88552362025183},{"$f":"Control!$K$17*CustomersRes!BV21","v":122.25109600215058},{"$f":"Control!$K$17*CustomersRes!BW21","v":121.61984052213982},{"$f":"Control!$K$17*CustomersRes!BX21","v":120.99174131952913},{"$f":"Control!$K$17*CustomersRes!BY21","v":120.36678261293147},{"$f":"Control!$K$17*CustomersRes!BZ21","v":119.74494869986682},{"$f":"Control!$K$17*CustomersRes!CA21","v":119.12622395636748},{"$f":"Control!$K$17*CustomersRes!CB21","v":118.51059283658566},{"$f":"Control!$K$17*CustomersRes!CC21","v":117.89803987240273},{"$f":"Control!$K$17*CustomersRes!CD21","v":117.28854967304073},{"$f":"Control!$K$17*CustomersRes!CE21","v":116.68210692467552},{"$f":"Control!$K$17*CustomersRes!CF21","v":116.07869639005214},{"$f":"Control!$K$17*CustomersRes!CG21","v":115.47830290810187},{"$f":"Control!$K$17*CustomersRes!CH21","v":114.88091139356136},{"$f":"Control!$K$17*CustomersRes!CI21","v":114.28650683659356},{"$f":"Control!$K$17*CustomersRes!CJ21","v":113.6950743024106},{"$f":"Control!$K$17*CustomersRes!CK21","v":113.10659893089854}]
["Yarra Ranges (S)",null,{"$f":"Control!$K$17*CustomersRes!J22","v":963.5},{"$f":"Control!$K$17*CustomersRes!K22","v":977.9425},{"$f":"Control!$K$17*CustomersRes!L22","v":992.59278749999999},{"$f":"Control!$K$17*CustomersRes!M22","v":1007.4698235625},{"$f":"Control!$K$17*CustomersRes!N22","v":1022.5524744446874},{"$f":"Control!$K$17*CustomersRes!O22","v":1037.8797120724641},{"$f":"Control!$K$17*CustomersRes!P22","v":1053.4303135121017},{"$f":"Control!$K$17*CustomersRes!Q22","v":1069.2231619445413},{"$f":"Control!$K$17*CustomersRes!R22","v":1085.2570461348184},{"$f":"Control!$K$17*CustomersRes!S22","v":1101.5107609041445},{"$f":"Control!$K$17*CustomersRes!T22","v":1118.0232070996237},{"$f":"Control!$K$17*CustomersRes!U22","v":1112.4330910641256},{"$f":"Control!$K$17*CustomersRes!V22","v":1106.870925608805},{"$f":"Control!$K$17*CustomersRes!W22","v":1101.3365709807608},{"$f":"Control!$K$17*CustomersRes!X22","v":1095.8298881258572},{"$f":"Control!$K$17*CustomersRes!Y22","v":1090.350738685228},{"$f":"Control!$K$17*CustomersRes!Z22","v":1084.8989849918016},{"$f":"Control!$K$17*CustomersRes!AA22","v":1079.4744900668427},{"$f":"Control!$K$17*CustomersRes!AB22","v":1074.0571176165085},{"$f":"Control!$K$17*CustomersRes!AC22","v":1068.626832028426},{"$f":"Control!$K$17*CustomersRes!AD22","v":1063.1436978682839},{"$f":"Control!$K$17*CustomersRes!AE22","v":1057.5879793789425},{"$f":"Control!$K$17*CustomersRes!AF22","v":1051.5000394820479},{"$f":"Control!$K$17*CustomersRes!AG22","v":1043.7225392846376},{"$f":"Control!$K$17*CustomersRes!AH22","v":1033.1439265882143},{"$f":"Control!$K$17*CustomersRes!AI22","v":1017.1782069552734},{"$f":"Control!$K$17*CustomersRes!AJ22","v":994.43231592049699},{"$f":"Control!$K$17*CustomersRes!AK22","v":963.30015434089444},{"$f":"Control!$K$17*CustomersRes!AL22","v":924.18365356918991},{"$f":"Control!$K$17*CustomersRes!AM22","v":878.02273530134391},{"$f":"Control!$K$17*CustomersRes!AN22","v":825.8326216248372},{"$f":"Control!$K$17*CustomersRes!AO22","v":773.10345851671298},{"$f":"Control!$K$17*CustomersRes!AP22","v":720.75794122412947},{"$f":"Control!$K$17*CustomersRes!AQ22","v":670.63415151800893},{"$f":"Control!$K$17*CustomersRes!AR22","v":623.38098076041888},{"$f":"Control!$K$17*CustomersRes!AS22","v":579.12407585661674},{"$f":"Control!$K$17*CustomersRes!AT22","v":540.66845547733362},{"$f":"Control!$K$17*CustomersRes!AU22","v":505.62511319994695},{"$f":"Control!$K$17*CustomersRes!AV22","v":471.37698763394724},{"$f":"Control!$K$17*CustomersRes!AW22","v":438.5201026957775},{"$f":"Control!$K$17*CustomersRes!AX22","v":407.54750218229856},{"$f":"Control!$K$17*CustomersRes!AY22","v":378.54976467138709},{"$f":"Control!$K$17*CustomersRes!AZ22","v":351.53701584803014},{"$f":"Control!$K$17*CustomersRes!BA22","v":326.39933076878998},{"$f":"Control!$K$17*CustomersRes!BB22","v":303.04733411494601},{"$f":"Control!$K$17*CustomersRes!BC22","v":281.35209744437128},{"$f":"Control!$K$17*CustomersRes!BD22","v":261.22533695714941},{"$f":"Control!$K$17*CustomersRes!BE22","v":242.53921027236368},{"$f":"Control!$K$17*CustomersRes!BF22","v":225.18651422100186},{"$f":"Control!$K$17*CustomersRes!BG22","v":209.08058164989686},{"$f":"Control!$K$17*CustomersRes!BH22","v":194.13517874164737},{"$f":"Control!$K$17*CustomersRes!BI22","v":180.24450284793912},{"$f":"Control!$K$17*CustomersRes!BJ22","v":167.36328033369941},{"$f":"Control!$K$17*CustomersRes!BK22","v":155.4064639320309},{"$f":"Control!$K$17*CustomersRes!BL22","v":144.28943161237075},{"$f":"Control!$K$17*CustomersRes!BM22","v":133.9879844543089},{"$f":"Control!$K$17*CustomersRes!BN22","v":124.39804453203735},{"$f":"Control!$K$17*CustomersRes!BO22","v":115.49605430937716},{"$f":"Control!$K$17*CustomersRes!BP22","v":107.23857403783028},{"$f":"Control!$K$17*CustomersRes!BQ22","v":99.562381167641121},{"$f":"Control!$K$17*CustomersRes!BR22","v":92.444569261802926},{"$f":"Control!$K$17*CustomersRes!BS22","v":85.822346415493911},{"$f":"Control!$K$17*CustomersRes!BT22","v":85.373234683416428},{"$f":"Control!$K$17*CustomersRes!BU22","v":84.926368509999364},{"$f":"Control!$K$17*CustomersRes!BV22","v":84.481736667449368},{"$f":"Control!$K$17*CustomersRes!BW22","v":84.03932798411212},{"$f":"Control!$K$17*CustomersRes!BX22","v":83.599131344191562},{"$f":"Control!$K$17*CustomersRes!BY22","v":83.161135687470605},{"$f":"Control!$K$17*CustomersRes!BZ22","v":82.725330009033243},{"$f":"Control!$K$17*CustomersRes!CA22","v":82.291703358988073},{"$f":"Control!$K$17*CustomersRes!CB22","v":81.86024484219314},{"$f":"Control!$K$17*CustomersRes!CC22","v":81.430943617982166},{"$f":"Control!$K$17*CustomersRes!CD22","v":81.003788899892257},{"$f":"Control!$K$17*CustomersRes!CE22","v":80.578769955392787},{"$f":"Control!$K$17*CustomersRes!CF22","v":80.155876105615832},{"$f":"Control!$K$17*CustomersRes!CG22","v":79.735096725087743},{"$f":"Control!$K$17*CustomersRes!CH22","v":79.316421241462308},{"$f":"Control!$K$17*CustomersRes!CI22","v":78.899839135254993},{"$f":"Control!$K$17*CustomersRes!CJ22","v":78.485339939578722},{"$f":"Control!$K$17*CustomersRes!CK22","v":78.072913239880833}]
["Total (absent appliance economics)",null,{"$f":"SUM(C157:C176)","v":13818.8},{"$f":"SUM(D157:D176)","v":14025.605999999998},14235.697970000001,14448.779480149999,14664.955582749251,14884.690804835505,15107.727350811325,15334.028714057271,15563.838570486983,15796.799377634552,16033.435380746376,15953.268203842643,15873.501862823432,15794.134353509311,15715.163681741766,15636.507863333056,15558.105324016389,15479.374797396311,15399.99792340933,15318.297933792282,15233.266444123319,15143.780111902703,15031.04121134319,14858.906005286477,14616.85147526004,14283.547217883743,13871.769481794325,13383.430634385351,12830.973481213423,12223.058613807356,11564.24332073832,10905.34210413463,10252.475393613957,9624.0330166458862,9027.3328515626563,8462.7761873048457,7980.6823063683214,7540.2988948364764,7109.2574003622958,6692.4311133604833,6294.908957793682,5916.694413004715,5555.8909409396902,5209.3514862349912,4874.2647288038161,4549.3534051597971,4236.5066381339984,3938.984104943328,3659.2891844186111,3398.2327384965192,3155.3615748040356,2929.7847669300163,2720.3958430953662,2525.9938638798881,2345.5238945604892,2177.9562750876871,2022.2064937122491,1877.5554612436874,1743.3476839374689,1618.6909455177813,1502.9974907901928,1395.482503336242,1387.8850908195609,1380.305665365463,1372.7441370386357,{"$f":"SUM(BP157:BP176)","v":1365.2204163534423},1357.7343142716754,1350.2856427003164,1342.8742144868152,1335.4998434143811,1328.162344197309,1320.8215324763225,1313.517424813941,1306.2498376898714,1299.0185885014216,1291.8234955589148,1284.66437808112,1277.5210561907149,1270.3934509097612,1263.3014836552125]
[]
["Weighted Average NPV",null,{"$f":"INT(C133*C177)","v":13811},14023,14225,14433,14663,14883,15105,15332,15555,15793,16032,15952,15870,15786,15675,15539,15156,14633,13489,12144,10715,6758,3198,1697,846,469,261,150,83,39,22,10,{"$f":"INT(AI133*AI177)","v":5},2,1,11,13,7,3,1,0,0,0,0,0,0,0,0,0,0,0,0,0,0,0,0,0,0,0,0,0,993,983,975,{"$f":"INT(BO133*BO177)","v":963},953,943,935,923,913,903,896,884,874,865,858,846,836,827,891]
["Total (aggregated LGA)",null,{"$f":"SUM(C135:C154)","v":13795},14011,14213,14421,14653,14873,15092,15324,15539,15781,0,0,0,0,0,0,0,0,0,0,0,0,0,0,0,0,0,0,0,0,0,0,{"$f":"SUM(AI135:AI154)","v":0},0,0,0,0,0,0,0,0,0,0,0,0,0,0,0,0,0,0,0,0,0,0,0,0,0,0,0,0,0,0,0,{"$f":"SUM(BO135:BO154)","v":0},0,0,0,0,0,0,0,0,0,0,0,0,0,0,0]
[]
[null,null,{"$f":"C180-C177","v":-23.799999999999272}]
[]
[]
[]
[]
[]
[]
[]
[]
[]
[]
["LGA High",2020,{"$f":"B193+1","v":2021},2022,2023,2024,2025,2026,2027,2028,2029,2030,2031,2032,2033,2034,2035,2036,2037,2038,2039,2040,2041,2042,2043,2044,2045,2046,2047,2048,2049,2050,2051,2052,2053,2054,2055,2056,2057,2058,2059,2060,2061,2062,2063,2064,2065,2066,2067,2068,2069,2070,2071,2072,2073,2074,2075,2076,2077,2078,2079,2080,2081,2082,2083,2084,{"$f":"BN193+1","v":2085},2086,2087,2088,2089,2090,2091,2092,2093,2094,2095,2096,2097,2098,2099,2100]
["Bass Coast (S)",null,{"$f":"'Res-Appliance class'!$B27*'RES S curve-connect'!C$3+'Res-Appliance class'!$C27*'RES S curve-connect'!C$8+'Res-Appliance class'!$D27*'RES S curve-connect'!C$13+'Res-Appliance class'!$E27*'RES S curve-connect'!C$18","v":-1982.5502937560536},{"$f":"'Res-Appliance class'!$B27*'RES S curve-connect'!D$3+'Res-Appliance class'!$C27*'RES S curve-connect'!D$8+'Res-Appliance class'!$D27*'RES S curve-connect'!D$13+'Res-Appliance class'!$E27*'RES S curve-connect'!D$18","v":-2421.3045980746469},{"$f":"'Res-Appliance class'!$B27*'RES S curve-connect'!E$3+'Res-Appliance class'!$C27*'RES S curve-connect'!E$8+'Res-Appliance class'!$D27*'RES S curve-connect'!E$13+'Res-Appliance class'!$E27*'RES S curve-connect'!E$18","v":-2092.2712553567576},{"$f":"'Res-Appliance class'!$B27*'RES S curve-connect'!F$3+'Res-Appliance class'!$C27*'RES S curve-connect'!F$8+'Res-Appliance class'!$D27*'RES S curve-connect'!F$13+'Res-Appliance class'!$E27*'RES S curve-connect'!F$18","v":-1971.999440269175},{"$f":"'Res-Appliance class'!$B27*'RES S curve-connect'!G$3+'Res-Appliance class'!$C27*'RES S curve-connect'!G$8+'Res-Appliance class'!$D27*'RES S curve-connect'!G$13+'Res-Appliance class'!$E27*'RES S curve-connect'!G$18","v":-2683.8988148268045},{"$f":"'Res-Appliance class'!$B27*'RES S curve-connect'!H$3+'Res-Appliance class'!$C27*'RES S curve-connect'!H$8+'Res-Appliance class'!$D27*'RES S curve-connect'!H$13+'Res-Appliance class'!$E27*'RES S curve-connect'!H$18","v":-2730.3574479819904},{"$f":"'Res-Appliance class'!$B27*'RES S curve-connect'!I$3+'Res-Appliance class'!$C27*'RES S curve-connect'!I$8+'Res-Appliance class'!$D27*'RES S curve-connect'!I$13+'Res-Appliance class'!$E27*'RES S curve-connect'!I$18","v":-2376.6799628321546},{"$f":"'Res-Appliance class'!$B27*'RES S curve-connect'!J$3+'Res-Appliance class'!$C27*'RES S curve-connect'!J$8+'Res-Appliance class'!$D27*'RES S curve-connect'!J$13+'Res-Appliance class'!$E27*'RES S curve-connect'!J$18","v":-2677.3349642751641},{"$f":"'Res-Appliance class'!$B27*'RES S curve-connect'!K$3+'Res-Appliance class'!$C27*'RES S curve-connect'!K$8+'Res-Appliance class'!$D27*'RES S curve-connect'!K$13+'Res-Appliance class'!$E27*'RES S curve-connect'!K$18","v":-2027.2346518195427},{"$f":"'Res-Appliance class'!$B27*'RES S curve-connect'!L$3+'Res-Appliance class'!$C27*'RES S curve-connect'!L$8+'Res-Appliance class'!$D27*'RES S curve-connect'!L$13+'Res-Appliance class'!$E27*'RES S curve-connect'!L$18","v":-2330.5382608310338},{"$f":"'Res-Appliance class'!$B27*'RES S curve-connect'!M$3+'Res-Appliance class'!$C27*'RES S curve-connect'!M$8+'Res-Appliance class'!$D27*'RES S curve-connect'!M$13+'Res-Appliance class'!$E27*'RES S curve-connect'!M$18","v":-2834.8080548153166},{"$f":"'Res-Appliance class'!$B27*'RES S curve-connect'!N$3+'Res-Appliance class'!$C27*'RES S curve-connect'!N$8+'Res-Appliance class'!$D27*'RES S curve-connect'!N$13+'Res-Appliance class'!$E27*'RES S curve-connect'!N$18","v":-2887.5463926996626},{"$f":"'Res-Appliance class'!$B27*'RES S curve-connect'!O$3+'Res-Appliance class'!$C27*'RES S curve-connect'!O$8+'Res-Appliance class'!$D27*'RES S curve-connect'!O$13+'Res-Appliance class'!$E27*'RES S curve-connect'!O$18","v":-2422.8839807241761},{"$f":"'Res-Appliance class'!$B27*'RES S curve-connect'!P$3+'Res-Appliance class'!$C27*'RES S curve-connect'!P$8+'Res-Appliance class'!$D27*'RES S curve-connect'!P$13+'Res-Appliance class'!$E27*'RES S curve-connect'!P$18","v":-2058.7253196814445},{"$f":"'Res-Appliance class'!$B27*'RES S curve-connect'!Q$3+'Res-Appliance class'!$C27*'RES S curve-connect'!Q$8+'Res-Appliance class'!$D27*'RES S curve-connect'!Q$13+'Res-Appliance class'!$E27*'RES S curve-connect'!Q$18","v":-1506.4106715129988},{"$f":"'Res-Appliance class'!$B27*'RES S curve-connect'!R$3+'Res-Appliance class'!$C27*'RES S curve-connect'!R$8+'Res-Appliance class'!$D27*'RES S curve-connect'!R$13+'Res-Appliance class'!$E27*'RES S curve-connect'!R$18","v":-1195.9509276382983},{"$f":"'Res-Appliance class'!$B27*'RES S curve-connect'!S$3+'Res-Appliance class'!$C27*'RES S curve-connect'!S$8+'Res-Appliance class'!$D27*'RES S curve-connect'!S$13+'Res-Appliance class'!$E27*'RES S curve-connect'!S$18","v":-690.69687676546562},{"$f":"'Res-Appliance class'!$B27*'RES S curve-connect'!T$3+'Res-Appliance class'!$C27*'RES S curve-connect'!T$8+'Res-Appliance class'!$D27*'RES S curve-connect'!T$13+'Res-Appliance class'!$E27*'RES S curve-connect'!T$18","v":-436.87063313699184},{"$f":"'Res-Appliance class'!$B27*'RES S curve-connect'!U$3+'Res-Appliance class'!$C27*'RES S curve-connect'!U$8+'Res-Appliance class'!$D27*'RES S curve-connect'!U$13+'Res-Appliance class'!$E27*'RES S curve-connect'!U$18","v":-133.20804927130757},{"$f":"'Res-Appliance class'!$B27*'RES S curve-connect'!V$3+'Res-Appliance class'!$C27*'RES S curve-connect'!V$8+'Res-Appliance class'!$D27*'RES S curve-connect'!V$13+'Res-Appliance class'!$E27*'RES S curve-connect'!V$18","v":77.114707383943056},{"$f":"'Res-Appliance class'!$B27*'RES S curve-connect'!W$3+'Res-Appliance class'!$C27*'RES S curve-connect'!W$8+'Res-Appliance class'!$D27*'RES S curve-connect'!W$13+'Res-Appliance class'!$E27*'RES S curve-connect'!W$18","v":240.1629182362372},{"$f":"'Res-Appliance class'!$B27*'RES S curve-connect'!X$3+'Res-Appliance class'!$C27*'RES S curve-connect'!X$8+'Res-Appliance class'!$D27*'RES S curve-connect'!X$13+'Res-Appliance class'!$E27*'RES S curve-connect'!X$18","v":605.86579867689693},{"$f":"'Res-Appliance class'!$B27*'RES S curve-connect'!Y$3+'Res-Appliance class'!$C27*'RES S curve-connect'!Y$8+'Res-Appliance class'!$D27*'RES S curve-connect'!Y$13+'Res-Appliance class'!$E27*'RES S curve-connect'!Y$18","v":977.92671545086159},{"$f":"'Res-Appliance class'!$B27*'RES S curve-connect'!Z$3+'Res-Appliance class'!$C27*'RES S curve-connect'!Z$8+'Res-Appliance class'!$D27*'RES S curve-connect'!Z$13+'Res-Appliance class'!$E27*'RES S curve-connect'!Z$18","v":1229.5807853650608},{"$f":"'Res-Appliance class'!$B27*'RES S curve-connect'!AA$3+'Res-Appliance class'!$C27*'RES S curve-connect'!AA$8+'Res-Appliance class'!$D27*'RES S curve-connect'!AA$13+'Res-Appliance class'!$E27*'RES S curve-connect'!AA$18","v":1483.549506719525},{"$f":"'Res-Appliance class'!$B27*'RES S curve-connect'!AB$3+'Res-Appliance class'!$C27*'RES S curve-connect'!AB$8+'Res-Appliance class'!$D27*'RES S curve-connect'!AB$13+'Res-Appliance class'!$E27*'RES S curve-connect'!AB$18","v":1686.4887598305932},{"$f":"'Res-Appliance class'!$B27*'RES S curve-connect'!AC$3+'Res-Appliance class'!$C27*'RES S curve-connect'!AC$8+'Res-Appliance class'!$D27*'RES S curve-connect'!AC$13+'Res-Appliance class'!$E27*'RES S curve-connect'!AC$18","v":1883.3464161822021},{"$f":"'Res-Appliance class'!$B27*'RES S curve-connect'!AD$3+'Res-Appliance class'!$C27*'RES S curve-connect'!AD$8+'Res-Appliance class'!$D27*'RES S curve-connect'!AD$13+'Res-Appliance class'!$E27*'RES S curve-connect'!AD$18","v":2063.6777380157819},{"$f":"'Res-Appliance class'!$B27*'RES S curve-connect'!AE$3+'Res-Appliance class'!$C27*'RES S curve-connect'!AE$8+'Res-Appliance class'!$D27*'RES S curve-connect'!AE$13+'Res-Appliance class'!$E27*'RES S curve-connect'!AE$18","v":2256.6391088356422},{"$f":"'Res-Appliance class'!$B27*'RES S curve-connect'!AF$3+'Res-Appliance class'!$C27*'RES S curve-connect'!AF$8+'Res-Appliance class'!$D27*'RES S curve-connect'!AF$13+'Res-Appliance class'!$E27*'RES S curve-connect'!AF$18","v":2503.5017783612147},{"$f":"'Res-Appliance class'!$B27*'RES S curve-connect'!AG$3+'Res-Appliance class'!$C27*'RES S curve-connect'!AG$8+'Res-Appliance class'!$D27*'RES S curve-connect'!AG$13+'Res-Appliance class'!$E27*'RES S curve-connect'!AG$18","v":2677.4825893695947},{"$f":"'Res-Appliance class'!$B27*'RES S curve-connect'!AH$3+'Res-Appliance class'!$C27*'RES S curve-connect'!AH$8+'Res-Appliance class'!$D27*'RES S curve-connect'!AH$13+'Res-Appliance class'!$E27*'RES S curve-connect'!AH$18","v":2915.8968874319553},{"$f":"'Res-Appliance class'!$B27*'RES S curve-connect'!AI$3+'Res-Appliance class'!$C27*'RES S curve-connect'!AI$8+'Res-Appliance class'!$D27*'RES S curve-connect'!AI$13+'Res-Appliance class'!$E27*'RES S curve-connect'!AI$18","v":3136.0450488883162},{"$f":"'Res-Appliance class'!$B27*'RES S curve-connect'!AJ$3+'Res-Appliance class'!$C27*'RES S curve-connect'!AJ$8+'Res-Appliance class'!$D27*'RES S curve-connect'!AJ$13+'Res-Appliance class'!$E27*'RES S curve-connect'!AJ$18","v":3333.5111782164313},{"$f":"'Res-Appliance class'!$B27*'RES S curve-connect'!AK$3+'Res-Appliance class'!$C27*'RES S curve-connect'!AK$8+'Res-Appliance class'!$D27*'RES S curve-connect'!AK$13+'Res-Appliance class'!$E27*'RES S curve-connect'!AK$18","v":3543.356835259915},{"$f":"'Res-Appliance class'!$B27*'RES S curve-connect'!AL$3+'Res-Appliance class'!$C27*'RES S curve-connect'!AL$8+'Res-Appliance class'!$D27*'RES S curve-connect'!AL$13+'Res-Appliance class'!$E27*'RES S curve-connect'!AL$18","v":2801.2794670588014},{"$f":"'Res-Appliance class'!$B27*'RES S curve-connect'!AM$3+'Res-Appliance class'!$C27*'RES S curve-connect'!AM$8+'Res-Appliance class'!$D27*'RES S curve-connect'!AM$13+'Res-Appliance class'!$E27*'RES S curve-connect'!AM$18","v":2712.8917811924039},{"$f":"'Res-Appliance class'!$B27*'RES S curve-connect'!AN$3+'Res-Appliance class'!$C27*'RES S curve-connect'!AN$8+'Res-Appliance class'!$D27*'RES S curve-connect'!AN$13+'Res-Appliance class'!$E27*'RES S curve-connect'!AN$18","v":2916.0142731049873},{"$f":"'Res-Appliance class'!$B27*'RES S curve-connect'!AO$3+'Res-Appliance class'!$C27*'RES S curve-connect'!AO$8+'Res-Appliance class'!$D27*'RES S curve-connect'!AO$13+'Res-Appliance class'!$E27*'RES S curve-connect'!AO$18","v":3160.2420969598415},{"$f":"'Res-Appliance class'!$B27*'RES S curve-connect'!AP$3+'Res-Appliance class'!$C27*'RES S curve-connect'!AP$8+'Res-Appliance class'!$D27*'RES S curve-connect'!AP$13+'Res-Appliance class'!$E27*'RES S curve-connect'!AP$18","v":3383.3770985835927},{"$f":"'Res-Appliance class'!$B27*'RES S curve-connect'!AQ$3+'Res-Appliance class'!$C27*'RES S curve-connect'!AQ$8+'Res-Appliance class'!$D27*'RES S curve-connect'!AQ$13+'Res-Appliance class'!$E27*'RES S curve-connect'!AQ$18","v":3626.1386733914596},{"$f":"'Res-Appliance class'!$B27*'RES S curve-connect'!AR$3+'Res-Appliance class'!$C27*'RES S curve-connect'!AR$8+'Res-Appliance class'!$D27*'RES S curve-connect'!AR$13+'Res-Appliance class'!$E27*'RES S curve-connect'!AR$18","v":3891.2218789676499},{"$f":"'Res-Appliance class'!$B27*'RES S curve-connect'!AS$3+'Res-Appliance class'!$C27*'RES S curve-connect'!AS$8+'Res-Appliance class'!$D27*'RES S curve-connect'!AS$13+'Res-Appliance class'!$E27*'RES S curve-connect'!AS$18","v":4188.305961555212},{"$f":"'Res-Appliance class'!$B27*'RES S curve-connect'!AT$3+'Res-Appliance class'!$C27*'RES S curve-connect'!AT$8+'Res-Appliance class'!$D27*'RES S curve-connect'!AT$13+'Res-Appliance class'!$E27*'RES S curve-connect'!AT$18","v":4518.9262072917627},{"$f":"'Res-Appliance class'!$B27*'RES S curve-connect'!AU$3+'Res-Appliance class'!$C27*'RES S curve-connect'!AU$8+'Res-Appliance class'!$D27*'RES S curve-connect'!AU$13+'Res-Appliance class'!$E27*'RES S curve-connect'!AU$18","v":4903.4710476464506},{"$f":"'Res-Appliance class'!$B27*'RES S curve-connect'!AV$3+'Res-Appliance class'!$C27*'RES S curve-connect'!AV$8+'Res-Appliance class'!$D27*'RES S curve-connect'!AV$13+'Res-Appliance class'!$E27*'RES S curve-connect'!AV$18","v":5340.0208202151189},{"$f":"'Res-Appliance class'!$B27*'RES S curve-connect'!AW$3+'Res-Appliance class'!$C27*'RES S curve-connect'!AW$8+'Res-Appliance class'!$D27*'RES S curve-connect'!AW$13+'Res-Appliance class'!$E27*'RES S curve-connect'!AW$18","v":5840.8145753286808},{"$f":"'Res-Appliance class'!$B27*'RES S curve-connect'!AX$3+'Res-Appliance class'!$C27*'RES S curve-connect'!AX$8+'Res-Appliance class'!$D27*'RES S curve-connect'!AX$13+'Res-Appliance class'!$E27*'RES S curve-connect'!AX$18","v":6409.0366044385282},{"$f":"'Res-Appliance class'!$B27*'RES S curve-connect'!AY$3+'Res-Appliance class'!$C27*'RES S curve-connect'!AY$8+'Res-Appliance class'!$D27*'RES S curve-connect'!AY$13+'Res-Appliance class'!$E27*'RES S curve-connect'!AY$18","v":7065.7052428618254},{"$f":"'Res-Appliance class'!$B27*'RES S curve-connect'!AZ$3+'Res-Appliance class'!$C27*'RES S curve-connect'!AZ$8+'Res-Appliance class'!$D27*'RES S curve-connect'!AZ$13+'Res-Appliance class'!$E27*'RES S curve-connect'!AZ$18","v":7813.0552850433323},{"$f":"'Res-Appliance class'!$B27*'RES S curve-connect'!BA$3+'Res-Appliance class'!$C27*'RES S curve-connect'!BA$8+'Res-Appliance class'!$D27*'RES S curve-connect'!BA$13+'Res-Appliance class'!$E27*'RES S curve-connect'!BA$18","v":8676.2835715917281},{"$f":"'Res-Appliance class'!$B27*'RES S curve-connect'!BB$3+'Res-Appliance class'!$C27*'RES S curve-connect'!BB$8+'Res-Appliance class'!$D27*'RES S curve-connect'!BB$13+'Res-Appliance class'!$E27*'RES S curve-connect'!BB$18","v":9680.7877793311345},{"$f":"'Res-Appliance class'!$B27*'RES S curve-connect'!BC$3+'Res-Appliance class'!$C27*'RES S curve-connect'!BC$8+'Res-Appliance class'!$D27*'RES S curve-connect'!BC$13+'Res-Appliance class'!$E27*'RES S curve-connect'!BC$18","v":10877.945883732165},{"$f":"'Res-Appliance class'!$B27*'RES S curve-connect'!BD$3+'Res-Appliance class'!$C27*'RES S curve-connect'!BD$8+'Res-Appliance class'!$D27*'RES S curve-connect'!BD$13+'Res-Appliance class'!$E27*'RES S curve-connect'!BD$18","v":12022.469101540981},{"$f":"'Res-Appliance class'!$B27*'RES S curve-connect'!BE$3+'Res-Appliance class'!$C27*'RES S curve-connect'!BE$8+'Res-Appliance class'!$D27*'RES S curve-connect'!BE$13+'Res-Appliance class'!$E27*'RES S curve-connect'!BE$18","v":13065.106527748443},{"$f":"'Res-Appliance class'!$B27*'RES S curve-connect'!BF$3+'Res-Appliance class'!$C27*'RES S curve-connect'!BF$8+'Res-Appliance class'!$D27*'RES S curve-connect'!BF$13+'Res-Appliance class'!$E27*'RES S curve-connect'!BF$18","v":14132.946174957266},{"$f":"'Res-Appliance class'!$B27*'RES S curve-connect'!BG$3+'Res-Appliance class'!$C27*'RES S curve-connect'!BG$8+'Res-Appliance class'!$D27*'RES S curve-connect'!BG$13+'Res-Appliance class'!$E27*'RES S curve-connect'!BG$18","v":15345.409487112804},{"$f":"'Res-Appliance class'!$B27*'RES S curve-connect'!BH$3+'Res-Appliance class'!$C27*'RES S curve-connect'!BH$8+'Res-Appliance class'!$D27*'RES S curve-connect'!BH$13+'Res-Appliance class'!$E27*'RES S curve-connect'!BH$18","v":16782.338389757497},{"$f":"'Res-Appliance class'!$B27*'RES S curve-connect'!BI$3+'Res-Appliance class'!$C27*'RES S curve-connect'!BI$8+'Res-Appliance class'!$D27*'RES S curve-connect'!BI$13+'Res-Appliance class'!$E27*'RES S curve-connect'!BI$18","v":18866.883079217474},{"$f":"'Res-Appliance class'!$B27*'RES S curve-connect'!BJ$3+'Res-Appliance class'!$C27*'RES S curve-connect'!BJ$8+'Res-Appliance class'!$D27*'RES S curve-connect'!BJ$13+'Res-Appliance class'!$E27*'RES S curve-connect'!BJ$18","v":21907.846587862936},{"$f":"'Res-Appliance class'!$B27*'RES S curve-connect'!BK$3+'Res-Appliance class'!$C27*'RES S curve-connect'!BK$8+'Res-Appliance class'!$D27*'RES S curve-connect'!BK$13+'Res-Appliance class'!$E27*'RES S curve-connect'!BK$18","v":26378.05452612328},{"$f":"'Res-Appliance class'!$B27*'RES S curve-connect'!BL$3+'Res-Appliance class'!$C27*'RES S curve-connect'!BL$8+'Res-Appliance class'!$D27*'RES S curve-connect'!BL$13+'Res-Appliance class'!$E27*'RES S curve-connect'!BL$18","v":101.07910269568754},{"$f":"'Res-Appliance class'!$B27*'RES S curve-connect'!BM$3+'Res-Appliance class'!$C27*'RES S curve-connect'!BM$8+'Res-Appliance class'!$D27*'RES S curve-connect'!BM$13+'Res-Appliance class'!$E27*'RES S curve-connect'!BM$18","v":106.89329535009961},{"$f":"'Res-Appliance class'!$B27*'RES S curve-connect'!BN$3+'Res-Appliance class'!$C27*'RES S curve-connect'!BN$8+'Res-Appliance class'!$D27*'RES S curve-connect'!BN$13+'Res-Appliance class'!$E27*'RES S curve-connect'!BN$18","v":108.67578523624206},{"$f":"'Res-Appliance class'!$B27*'RES S curve-connect'!BO$3+'Res-Appliance class'!$C27*'RES S curve-connect'!BO$8+'Res-Appliance class'!$D27*'RES S curve-connect'!BO$13+'Res-Appliance class'!$E27*'RES S curve-connect'!BO$18","v":118.49325453504076},{"$f":"'Res-Appliance class'!$B27*'RES S curve-connect'!BP$3+'Res-Appliance class'!$C27*'RES S curve-connect'!BP$8+'Res-Appliance class'!$D27*'RES S curve-connect'!BP$13+'Res-Appliance class'!$E27*'RES S curve-connect'!BP$18","v":124.27913756541005},{"$f":"'Res-Appliance class'!$B27*'RES S curve-connect'!BQ$3+'Res-Appliance class'!$C27*'RES S curve-connect'!BQ$8+'Res-Appliance class'!$D27*'RES S curve-connect'!BQ$13+'Res-Appliance class'!$E27*'RES S curve-connect'!BQ$18","v":130.05569994458904},{"$f":"'Res-Appliance class'!$B27*'RES S curve-connect'!BR$3+'Res-Appliance class'!$C27*'RES S curve-connect'!BR$8+'Res-Appliance class'!$D27*'RES S curve-connect'!BR$13+'Res-Appliance class'!$E27*'RES S curve-connect'!BR$18","v":131.80079109565582},{"$f":"'Res-Appliance class'!$B27*'RES S curve-connect'!BS$3+'Res-Appliance class'!$C27*'RES S curve-connect'!BS$8+'Res-Appliance class'!$D27*'RES S curve-connect'!BS$13+'Res-Appliance class'!$E27*'RES S curve-connect'!BS$18","v":141.58109174462896},{"$f":"'Res-Appliance class'!$B27*'RES S curve-connect'!BT$3+'Res-Appliance class'!$C27*'RES S curve-connect'!BT$8+'Res-Appliance class'!$D27*'RES S curve-connect'!BT$13+'Res-Appliance class'!$E27*'RES S curve-connect'!BT$18","v":147.33003476475091},{"$f":"'Res-Appliance class'!$B27*'RES S curve-connect'!BU$3+'Res-Appliance class'!$C27*'RES S curve-connect'!BU$8+'Res-Appliance class'!$D27*'RES S curve-connect'!BU$13+'Res-Appliance class'!$E27*'RES S curve-connect'!BU$18","v":153.06988433676503},{"$f":"'Res-Appliance class'!$B27*'RES S curve-connect'!BV$3+'Res-Appliance class'!$C27*'RES S curve-connect'!BV$8+'Res-Appliance class'!$D27*'RES S curve-connect'!BV$13+'Res-Appliance class'!$E27*'RES S curve-connect'!BV$18","v":154.77848845636476},{"$f":"'Res-Appliance class'!$B27*'RES S curve-connect'!BW$3+'Res-Appliance class'!$C27*'RES S curve-connect'!BW$8+'Res-Appliance class'!$D27*'RES S curve-connect'!BW$13+'Res-Appliance class'!$E27*'RES S curve-connect'!BW$18","v":164.52252643124615},{"$f":"'Res-Appliance class'!$B27*'RES S curve-connect'!BX$3+'Res-Appliance class'!$C27*'RES S curve-connect'!BX$8+'Res-Appliance class'!$D27*'RES S curve-connect'!BX$13+'Res-Appliance class'!$E27*'RES S curve-connect'!BX$18","v":170.23542972532715},{"$f":"'Res-Appliance class'!$B27*'RES S curve-connect'!BY$3+'Res-Appliance class'!$C27*'RES S curve-connect'!BY$8+'Res-Appliance class'!$D27*'RES S curve-connect'!BY$13+'Res-Appliance class'!$E27*'RES S curve-connect'!BY$18","v":175.93946111896815},{"$f":"'Res-Appliance class'!$B27*'RES S curve-connect'!BZ$3+'Res-Appliance class'!$C27*'RES S curve-connect'!BZ$8+'Res-Appliance class'!$D27*'RES S curve-connect'!BZ$13+'Res-Appliance class'!$E27*'RES S curve-connect'!BZ$18","v":177.61246721636712},{"$f":"'Res-Appliance class'!$B27*'RES S curve-connect'!CA$3+'Res-Appliance class'!$C27*'RES S curve-connect'!CA$8+'Res-Appliance class'!$D27*'RES S curve-connect'!CA$13+'Res-Appliance class'!$E27*'RES S curve-connect'!CA$18","v":187.3211259425542},{"$f":"'Res-Appliance class'!$B27*'RES S curve-connect'!CB$3+'Res-Appliance class'!$C27*'RES S curve-connect'!CB$8+'Res-Appliance class'!$D27*'RES S curve-connect'!CB$13+'Res-Appliance class'!$E27*'RES S curve-connect'!CB$18","v":192.99886738755191},{"$f":"'Res-Appliance class'!$B27*'RES S curve-connect'!CC$3+'Res-Appliance class'!$C27*'RES S curve-connect'!CC$8+'Res-Appliance class'!$D27*'RES S curve-connect'!CC$13+'Res-Appliance class'!$E27*'RES S curve-connect'!CC$18","v":198.66795296654328},{"$f":"'Res-Appliance class'!$B27*'RES S curve-connect'!CD$3+'Res-Appliance class'!$C27*'RES S curve-connect'!CD$8+'Res-Appliance class'!$D27*'RES S curve-connect'!CD$13+'Res-Appliance class'!$E27*'RES S curve-connect'!CD$18","v":115.65894507806092}]
["Bayside (C)",null,{"$f":"'Res-Appliance class'!$B28*'RES S curve-connect'!C$3+'Res-Appliance class'!$C28*'RES S curve-connect'!C$8+'Res-Appliance class'!$D28*'RES S curve-connect'!C$13+'Res-Appliance class'!$E28*'RES S curve-connect'!C$18","v":-2595.6704914285542},{"$f":"'Res-Appliance class'!$B28*'RES S curve-connect'!D$3+'Res-Appliance class'!$C28*'RES S curve-connect'!D$8+'Res-Appliance class'!$D28*'RES S curve-connect'!D$13+'Res-Appliance class'!$E28*'RES S curve-connect'!D$18","v":-3208.729512206141},{"$f":"'Res-Appliance class'!$B28*'RES S curve-connect'!E$3+'Res-Appliance class'!$C28*'RES S curve-connect'!E$8+'Res-Appliance class'!$D28*'RES S curve-connect'!E$13+'Res-Appliance class'!$E28*'RES S curve-connect'!E$18","v":-2642.3931870854149},{"$f":"'Res-Appliance class'!$B28*'RES S curve-connect'!F$3+'Res-Appliance class'!$C28*'RES S curve-connect'!F$8+'Res-Appliance class'!$D28*'RES S curve-connect'!F$13+'Res-Appliance class'!$E28*'RES S curve-connect'!F$18","v":-2459.5129572898836},{"$f":"'Res-Appliance class'!$B28*'RES S curve-connect'!G$3+'Res-Appliance class'!$C28*'RES S curve-connect'!G$8+'Res-Appliance class'!$D28*'RES S curve-connect'!G$13+'Res-Appliance class'!$E28*'RES S curve-connect'!G$18","v":-3722.9927855906362},{"$f":"'Res-Appliance class'!$B28*'RES S curve-connect'!H$3+'Res-Appliance class'!$C28*'RES S curve-connect'!H$8+'Res-Appliance class'!$D28*'RES S curve-connect'!H$13+'Res-Appliance class'!$E28*'RES S curve-connect'!H$18","v":-3752.7821918265504},{"$f":"'Res-Appliance class'!$B28*'RES S curve-connect'!I$3+'Res-Appliance class'!$C28*'RES S curve-connect'!I$8+'Res-Appliance class'!$D28*'RES S curve-connect'!I$13+'Res-Appliance class'!$E28*'RES S curve-connect'!I$18","v":-3233.7975962281535},{"$f":"'Res-Appliance class'!$B28*'RES S curve-connect'!J$3+'Res-Appliance class'!$C28*'RES S curve-connect'!J$8+'Res-Appliance class'!$D28*'RES S curve-connect'!J$13+'Res-Appliance class'!$E28*'RES S curve-connect'!J$18","v":-3548.8595540115975},{"$f":"'Res-Appliance class'!$B28*'RES S curve-connect'!K$3+'Res-Appliance class'!$C28*'RES S curve-connect'!K$8+'Res-Appliance class'!$D28*'RES S curve-connect'!K$13+'Res-Appliance class'!$E28*'RES S curve-connect'!K$18","v":-2627.7233965339301},{"$f":"'Res-Appliance class'!$B28*'RES S curve-connect'!L$3+'Res-Appliance class'!$C28*'RES S curve-connect'!L$8+'Res-Appliance class'!$D28*'RES S curve-connect'!L$13+'Res-Appliance class'!$E28*'RES S curve-connect'!L$18","v":-3055.4050902773079},{"$f":"'Res-Appliance class'!$B28*'RES S curve-connect'!M$3+'Res-Appliance class'!$C28*'RES S curve-connect'!M$8+'Res-Appliance class'!$D28*'RES S curve-connect'!M$13+'Res-Appliance class'!$E28*'RES S curve-connect'!M$18","v":-3822.8304724379177},{"$f":"'Res-Appliance class'!$B28*'RES S curve-connect'!N$3+'Res-Appliance class'!$C28*'RES S curve-connect'!N$8+'Res-Appliance class'!$D28*'RES S curve-connect'!N$13+'Res-Appliance class'!$E28*'RES S curve-connect'!N$18","v":-3902.9511796109227},{"$f":"'Res-Appliance class'!$B28*'RES S curve-connect'!O$3+'Res-Appliance class'!$C28*'RES S curve-connect'!O$8+'Res-Appliance class'!$D28*'RES S curve-connect'!O$13+'Res-Appliance class'!$E28*'RES S curve-connect'!O$18","v":-3241.144899664956},{"$f":"'Res-Appliance class'!$B28*'RES S curve-connect'!P$3+'Res-Appliance class'!$C28*'RES S curve-connect'!P$8+'Res-Appliance class'!$D28*'RES S curve-connect'!P$13+'Res-Appliance class'!$E28*'RES S curve-connect'!P$18","v":-2715.9941441313867},{"$f":"'Res-Appliance class'!$B28*'RES S curve-connect'!Q$3+'Res-Appliance class'!$C28*'RES S curve-connect'!Q$8+'Res-Appliance class'!$D28*'RES S curve-connect'!Q$13+'Res-Appliance class'!$E28*'RES S curve-connect'!Q$18","v":-1918.1204004577337},{"$f":"'Res-Appliance class'!$B28*'RES S curve-connect'!R$3+'Res-Appliance class'!$C28*'RES S curve-connect'!R$8+'Res-Appliance class'!$D28*'RES S curve-connect'!R$13+'Res-Appliance class'!$E28*'RES S curve-connect'!R$18","v":-1469.5019626218459},{"$f":"'Res-Appliance class'!$B28*'RES S curve-connect'!S$3+'Res-Appliance class'!$C28*'RES S curve-connect'!S$8+'Res-Appliance class'!$D28*'RES S curve-connect'!S$13+'Res-Appliance class'!$E28*'RES S curve-connect'!S$18","v":-750.64151041360185},{"$f":"'Res-Appliance class'!$B28*'RES S curve-connect'!T$3+'Res-Appliance class'!$C28*'RES S curve-connect'!T$8+'Res-Appliance class'!$D28*'RES S curve-connect'!T$13+'Res-Appliance class'!$E28*'RES S curve-connect'!T$18","v":-364.4531855233061},{"$f":"'Res-Appliance class'!$B28*'RES S curve-connect'!U$3+'Res-Appliance class'!$C28*'RES S curve-connect'!U$8+'Res-Appliance class'!$D28*'RES S curve-connect'!U$13+'Res-Appliance class'!$E28*'RES S curve-connect'!U$18","v":78.253331971356545},{"$f":"'Res-Appliance class'!$B28*'RES S curve-connect'!V$3+'Res-Appliance class'!$C28*'RES S curve-connect'!V$8+'Res-Appliance class'!$D28*'RES S curve-connect'!V$13+'Res-Appliance class'!$E28*'RES S curve-connect'!V$18","v":377.9466711252046},{"$f":"'Res-Appliance class'!$B28*'RES S curve-connect'!W$3+'Res-Appliance class'!$C28*'RES S curve-connect'!W$8+'Res-Appliance class'!$D28*'RES S curve-connect'!W$13+'Res-Appliance class'!$E28*'RES S curve-connect'!W$18","v":609.72220077200143},{"$f":"'Res-Appliance class'!$B28*'RES S curve-connect'!X$3+'Res-Appliance class'!$C28*'RES S curve-connect'!X$8+'Res-Appliance class'!$D28*'RES S curve-connect'!X$13+'Res-Appliance class'!$E28*'RES S curve-connect'!X$18","v":1145.4429144080277},{"$f":"'Res-Appliance class'!$B28*'RES S curve-connect'!Y$3+'Res-Appliance class'!$C28*'RES S curve-connect'!Y$8+'Res-Appliance class'!$D28*'RES S curve-connect'!Y$13+'Res-Appliance class'!$E28*'RES S curve-connect'!Y$18","v":1687.6867530313198},{"$f":"'Res-Appliance class'!$B28*'RES S curve-connect'!Z$3+'Res-Appliance class'!$C28*'RES S curve-connect'!Z$8+'Res-Appliance class'!$D28*'RES S curve-connect'!Z$13+'Res-Appliance class'!$E28*'RES S curve-connect'!Z$18","v":2052.0902036034499},{"$f":"'Res-Appliance class'!$B28*'RES S curve-connect'!AA$3+'Res-Appliance class'!$C28*'RES S curve-connect'!AA$8+'Res-Appliance class'!$D28*'RES S curve-connect'!AA$13+'Res-Appliance class'!$E28*'RES S curve-connect'!AA$18","v":2416.6529255413711},{"$f":"'Res-Appliance class'!$B28*'RES S curve-connect'!AB$3+'Res-Appliance class'!$C28*'RES S curve-connect'!AB$8+'Res-Appliance class'!$D28*'RES S curve-connect'!AB$13+'Res-Appliance class'!$E28*'RES S curve-connect'!AB$18","v":2706.1112334633431},{"$f":"'Res-Appliance class'!$B28*'RES S curve-connect'!AC$3+'Res-Appliance class'!$C28*'RES S curve-connect'!AC$8+'Res-Appliance class'!$D28*'RES S curve-connect'!AC$13+'Res-Appliance class'!$E28*'RES S curve-connect'!AC$18","v":2984.7780080876487},{"$f":"'Res-Appliance class'!$B28*'RES S curve-connect'!AD$3+'Res-Appliance class'!$C28*'RES S curve-connect'!AD$8+'Res-Appliance class'!$D28*'RES S curve-connect'!AD$13+'Res-Appliance class'!$E28*'RES S curve-connect'!AD$18","v":3239.7498989673431},{"$f":"'Res-Appliance class'!$B28*'RES S curve-connect'!AE$3+'Res-Appliance class'!$C28*'RES S curve-connect'!AE$8+'Res-Appliance class'!$D28*'RES S curve-connect'!AE$13+'Res-Appliance class'!$E28*'RES S curve-connect'!AE$18","v":3508.3339554306899},{"$f":"'Res-Appliance class'!$B28*'RES S curve-connect'!AF$3+'Res-Appliance class'!$C28*'RES S curve-connect'!AF$8+'Res-Appliance class'!$D28*'RES S curve-connect'!AF$13+'Res-Appliance class'!$E28*'RES S curve-connect'!AF$18","v":3858.1804711189661},{"$f":"'Res-Appliance class'!$B28*'RES S curve-connect'!AG$3+'Res-Appliance class'!$C28*'RES S curve-connect'!AG$8+'Res-Appliance class'!$D28*'RES S curve-connect'!AG$13+'Res-Appliance class'!$E28*'RES S curve-connect'!AG$18","v":4104.7929752671407},{"$f":"'Res-Appliance class'!$B28*'RES S curve-connect'!AH$3+'Res-Appliance class'!$C28*'RES S curve-connect'!AH$8+'Res-Appliance class'!$D28*'RES S curve-connect'!AH$13+'Res-Appliance class'!$E28*'RES S curve-connect'!AH$18","v":4451.6093216950248},{"$f":"'Res-Appliance class'!$B28*'RES S curve-connect'!AI$3+'Res-Appliance class'!$C28*'RES S curve-connect'!AI$8+'Res-Appliance class'!$D28*'RES S curve-connect'!AI$13+'Res-Appliance class'!$E28*'RES S curve-connect'!AI$18","v":4763.5564638861833},{"$f":"'Res-Appliance class'!$B28*'RES S curve-connect'!AJ$3+'Res-Appliance class'!$C28*'RES S curve-connect'!AJ$8+'Res-Appliance class'!$D28*'RES S curve-connect'!AJ$13+'Res-Appliance class'!$E28*'RES S curve-connect'!AJ$18","v":5045.0432037791743},{"$f":"'Res-Appliance class'!$B28*'RES S curve-connect'!AK$3+'Res-Appliance class'!$C28*'RES S curve-connect'!AK$8+'Res-Appliance class'!$D28*'RES S curve-connect'!AK$13+'Res-Appliance class'!$E28*'RES S curve-connect'!AK$18","v":5343.8888478627759},{"$f":"'Res-Appliance class'!$B28*'RES S curve-connect'!AL$3+'Res-Appliance class'!$C28*'RES S curve-connect'!AL$8+'Res-Appliance class'!$D28*'RES S curve-connect'!AL$13+'Res-Appliance class'!$E28*'RES S curve-connect'!AL$18","v":4308.8374484398219},{"$f":"'Res-Appliance class'!$B28*'RES S curve-connect'!AM$3+'Res-Appliance class'!$C28*'RES S curve-connect'!AM$8+'Res-Appliance class'!$D28*'RES S curve-connect'!AM$13+'Res-Appliance class'!$E28*'RES S curve-connect'!AM$18","v":4173.5613623913378},{"$f":"'Res-Appliance class'!$B28*'RES S curve-connect'!AN$3+'Res-Appliance class'!$C28*'RES S curve-connect'!AN$8+'Res-Appliance class'!$D28*'RES S curve-connect'!AN$13+'Res-Appliance class'!$E28*'RES S curve-connect'!AN$18","v":4456.5414340087736},{"$f":"'Res-Appliance class'!$B28*'RES S curve-connect'!AO$3+'Res-Appliance class'!$C28*'RES S curve-connect'!AO$8+'Res-Appliance class'!$D28*'RES S curve-connect'!AO$13+'Res-Appliance class'!$E28*'RES S curve-connect'!AO$18","v":4802.5987497943806},{"$f":"'Res-Appliance class'!$B28*'RES S curve-connect'!AP$3+'Res-Appliance class'!$C28*'RES S curve-connect'!AP$8+'Res-Appliance class'!$D28*'RES S curve-connect'!AP$13+'Res-Appliance class'!$E28*'RES S curve-connect'!AP$18","v":5122.2708841533058},{"$f":"'Res-Appliance class'!$B28*'RES S curve-connect'!AQ$3+'Res-Appliance class'!$C28*'RES S curve-connect'!AQ$8+'Res-Appliance class'!$D28*'RES S curve-connect'!AQ$13+'Res-Appliance class'!$E28*'RES S curve-connect'!AQ$18","v":5466.4638716880991},{"$f":"'Res-Appliance class'!$B28*'RES S curve-connect'!AR$3+'Res-Appliance class'!$C28*'RES S curve-connect'!AR$8+'Res-Appliance class'!$D28*'RES S curve-connect'!AR$13+'Res-Appliance class'!$E28*'RES S curve-connect'!AR$18","v":5844.3789924859939},{"$f":"'Res-Appliance class'!$B28*'RES S curve-connect'!AS$3+'Res-Appliance class'!$C28*'RES S curve-connect'!AS$8+'Res-Appliance class'!$D28*'RES S curve-connect'!AS$13+'Res-Appliance class'!$E28*'RES S curve-connect'!AS$18","v":6268.4542749499087},{"$f":"'Res-Appliance class'!$B28*'RES S curve-connect'!AT$3+'Res-Appliance class'!$C28*'RES S curve-connect'!AT$8+'Res-Appliance class'!$D28*'RES S curve-connect'!AT$13+'Res-Appliance class'!$E28*'RES S curve-connect'!AT$18","v":6742.8099641958488},{"$f":"'Res-Appliance class'!$B28*'RES S curve-connect'!AU$3+'Res-Appliance class'!$C28*'RES S curve-connect'!AU$8+'Res-Appliance class'!$D28*'RES S curve-connect'!AU$13+'Res-Appliance class'!$E28*'RES S curve-connect'!AU$18","v":7291.6020074765056},{"$f":"'Res-Appliance class'!$B28*'RES S curve-connect'!AV$3+'Res-Appliance class'!$C28*'RES S curve-connect'!AV$8+'Res-Appliance class'!$D28*'RES S curve-connect'!AV$13+'Res-Appliance class'!$E28*'RES S curve-connect'!AV$18","v":7917.5959269723135},{"$f":"'Res-Appliance class'!$B28*'RES S curve-connect'!AW$3+'Res-Appliance class'!$C28*'RES S curve-connect'!AW$8+'Res-Appliance class'!$D28*'RES S curve-connect'!AW$13+'Res-Appliance class'!$E28*'RES S curve-connect'!AW$18","v":8637.126573325997},{"$f":"'Res-Appliance class'!$B28*'RES S curve-connect'!AX$3+'Res-Appliance class'!$C28*'RES S curve-connect'!AX$8+'Res-Appliance class'!$D28*'RES S curve-connect'!AX$13+'Res-Appliance class'!$E28*'RES S curve-connect'!AX$18","v":9457.1860104410734},{"$f":"'Res-Appliance class'!$B28*'RES S curve-connect'!AY$3+'Res-Appliance class'!$C28*'RES S curve-connect'!AY$8+'Res-Appliance class'!$D28*'RES S curve-connect'!AY$13+'Res-Appliance class'!$E28*'RES S curve-connect'!AY$18","v":10403.423840428566},{"$f":"'Res-Appliance class'!$B28*'RES S curve-connect'!AZ$3+'Res-Appliance class'!$C28*'RES S curve-connect'!AZ$8+'Res-Appliance class'!$D28*'RES S curve-connect'!AZ$13+'Res-Appliance class'!$E28*'RES S curve-connect'!AZ$18","v":11485.153423628473},{"$f":"'Res-Appliance class'!$B28*'RES S curve-connect'!BA$3+'Res-Appliance class'!$C28*'RES S curve-connect'!BA$8+'Res-Appliance class'!$D28*'RES S curve-connect'!BA$13+'Res-Appliance class'!$E28*'RES S curve-connect'!BA$18","v":12737.924359076742},{"$f":"'Res-Appliance class'!$B28*'RES S curve-connect'!BB$3+'Res-Appliance class'!$C28*'RES S curve-connect'!BB$8+'Res-Appliance class'!$D28*'RES S curve-connect'!BB$13+'Res-Appliance class'!$E28*'RES S curve-connect'!BB$18","v":14201.609469999496},{"$f":"'Res-Appliance class'!$B28*'RES S curve-connect'!BC$3+'Res-Appliance class'!$C28*'RES S curve-connect'!BC$8+'Res-Appliance class'!$D28*'RES S curve-connect'!BC$13+'Res-Appliance class'!$E28*'RES S curve-connect'!BC$18","v":15947.082783265882},{"$f":"'Res-Appliance class'!$B28*'RES S curve-connect'!BD$3+'Res-Appliance class'!$C28*'RES S curve-connect'!BD$8+'Res-Appliance class'!$D28*'RES S curve-connect'!BD$13+'Res-Appliance class'!$E28*'RES S curve-connect'!BD$18","v":17631.075245076569},{"$f":"'Res-Appliance class'!$B28*'RES S curve-connect'!BE$3+'Res-Appliance class'!$C28*'RES S curve-connect'!BE$8+'Res-Appliance class'!$D28*'RES S curve-connect'!BE$13+'Res-Appliance class'!$E28*'RES S curve-connect'!BE$18","v":19170.306073529329},{"$f":"'Res-Appliance class'!$B28*'RES S curve-connect'!BF$3+'Res-Appliance class'!$C28*'RES S curve-connect'!BF$8+'Res-Appliance class'!$D28*'RES S curve-connect'!BF$13+'Res-Appliance class'!$E28*'RES S curve-connect'!BF$18","v":20745.213262372064},{"$f":"'Res-Appliance class'!$B28*'RES S curve-connect'!BG$3+'Res-Appliance class'!$C28*'RES S curve-connect'!BG$8+'Res-Appliance class'!$D28*'RES S curve-connect'!BG$13+'Res-Appliance class'!$E28*'RES S curve-connect'!BG$18","v":22527.598057774965},{"$f":"'Res-Appliance class'!$B28*'RES S curve-connect'!BH$3+'Res-Appliance class'!$C28*'RES S curve-connect'!BH$8+'Res-Appliance class'!$D28*'RES S curve-connect'!BH$13+'Res-Appliance class'!$E28*'RES S curve-connect'!BH$18","v":24643.424731142703},{"$f":"'Res-Appliance class'!$B28*'RES S curve-connect'!BI$3+'Res-Appliance class'!$C28*'RES S curve-connect'!BI$8+'Res-Appliance class'!$D28*'RES S curve-connect'!BI$13+'Res-Appliance class'!$E28*'RES S curve-connect'!BI$18","v":27709.222613755679},{"$f":"'Res-Appliance class'!$B28*'RES S curve-connect'!BJ$3+'Res-Appliance class'!$C28*'RES S curve-connect'!BJ$8+'Res-Appliance class'!$D28*'RES S curve-connect'!BJ$13+'Res-Appliance class'!$E28*'RES S curve-connect'!BJ$18","v":32199.436916859395},{"$f":"'Res-Appliance class'!$B28*'RES S curve-connect'!BK$3+'Res-Appliance class'!$C28*'RES S curve-connect'!BK$8+'Res-Appliance class'!$D28*'RES S curve-connect'!BK$13+'Res-Appliance class'!$E28*'RES S curve-connect'!BK$18","v":38826.3593534213},{"$f":"'Res-Appliance class'!$B28*'RES S curve-connect'!BL$3+'Res-Appliance class'!$C28*'RES S curve-connect'!BL$8+'Res-Appliance class'!$D28*'RES S curve-connect'!BL$13+'Res-Appliance class'!$E28*'RES S curve-connect'!BL$18","v":522.42422404395836},{"$f":"'Res-Appliance class'!$B28*'RES S curve-connect'!BM$3+'Res-Appliance class'!$C28*'RES S curve-connect'!BM$8+'Res-Appliance class'!$D28*'RES S curve-connect'!BM$13+'Res-Appliance class'!$E28*'RES S curve-connect'!BM$18","v":530.81506692693301},{"$f":"'Res-Appliance class'!$B28*'RES S curve-connect'!BN$3+'Res-Appliance class'!$C28*'RES S curve-connect'!BN$8+'Res-Appliance class'!$D28*'RES S curve-connect'!BN$13+'Res-Appliance class'!$E28*'RES S curve-connect'!BN$18","v":535.17202447526915},{"$f":"'Res-Appliance class'!$B28*'RES S curve-connect'!BO$3+'Res-Appliance class'!$C28*'RES S curve-connect'!BO$8+'Res-Appliance class'!$D28*'RES S curve-connect'!BO$13+'Res-Appliance class'!$E28*'RES S curve-connect'!BO$18","v":547.56179076438548},{"$f":"'Res-Appliance class'!$B28*'RES S curve-connect'!BP$3+'Res-Appliance class'!$C28*'RES S curve-connect'!BP$8+'Res-Appliance class'!$D28*'RES S curve-connect'!BP$13+'Res-Appliance class'!$E28*'RES S curve-connect'!BP$18","v":555.91781193757845},{"$f":"'Res-Appliance class'!$B28*'RES S curve-connect'!BQ$3+'Res-Appliance class'!$C28*'RES S curve-connect'!BQ$8+'Res-Appliance class'!$D28*'RES S curve-connect'!BQ$13+'Res-Appliance class'!$E28*'RES S curve-connect'!BQ$18","v":564.26236536678982},{"$f":"'Res-Appliance class'!$B28*'RES S curve-connect'!BR$3+'Res-Appliance class'!$C28*'RES S curve-connect'!BR$8+'Res-Appliance class'!$D28*'RES S curve-connect'!BR$13+'Res-Appliance class'!$E28*'RES S curve-connect'!BR$18","v":568.57331216055059},{"$f":"'Res-Appliance class'!$B28*'RES S curve-connect'!BS$3+'Res-Appliance class'!$C28*'RES S curve-connect'!BS$8+'Res-Appliance class'!$D28*'RES S curve-connect'!BS$13+'Res-Appliance class'!$E28*'RES S curve-connect'!BS$18","v":580.91734466150626},{"$f":"'Res-Appliance class'!$B28*'RES S curve-connect'!BT$3+'Res-Appliance class'!$C28*'RES S curve-connect'!BT$8+'Res-Appliance class'!$D28*'RES S curve-connect'!BT$13+'Res-Appliance class'!$E28*'RES S curve-connect'!BT$18","v":589.2279072911258},{"$f":"'Res-Appliance class'!$B28*'RES S curve-connect'!BU$3+'Res-Appliance class'!$C28*'RES S curve-connect'!BU$8+'Res-Appliance class'!$D28*'RES S curve-connect'!BU$13+'Res-Appliance class'!$E28*'RES S curve-connect'!BU$18","v":597.52727571039918},{"$f":"'Res-Appliance class'!$B28*'RES S curve-connect'!BV$3+'Res-Appliance class'!$C28*'RES S curve-connect'!BV$8+'Res-Appliance class'!$D28*'RES S curve-connect'!BV$13+'Res-Appliance class'!$E28*'RES S curve-connect'!BV$18","v":601.79330932770108},{"$f":"'Res-Appliance class'!$B28*'RES S curve-connect'!BW$3+'Res-Appliance class'!$C28*'RES S curve-connect'!BW$8+'Res-Appliance class'!$D28*'RES S curve-connect'!BW$13+'Res-Appliance class'!$E28*'RES S curve-connect'!BW$18","v":614.09269879626231},{"$f":"'Res-Appliance class'!$B28*'RES S curve-connect'!BX$3+'Res-Appliance class'!$C28*'RES S curve-connect'!BX$8+'Res-Appliance class'!$D28*'RES S curve-connect'!BX$13+'Res-Appliance class'!$E28*'RES S curve-connect'!BX$18","v":622.35888685880036},{"$f":"'Res-Appliance class'!$B28*'RES S curve-connect'!BY$3+'Res-Appliance class'!$C28*'RES S curve-connect'!BY$8+'Res-Appliance class'!$D28*'RES S curve-connect'!BY$13+'Res-Appliance class'!$E28*'RES S curve-connect'!BY$18","v":630.6141475081497},{"$f":"'Res-Appliance class'!$B28*'RES S curve-connect'!BZ$3+'Res-Appliance class'!$C28*'RES S curve-connect'!BZ$8+'Res-Appliance class'!$D28*'RES S curve-connect'!BZ$13+'Res-Appliance class'!$E28*'RES S curve-connect'!BZ$18","v":634.83633849506441},{"$f":"'Res-Appliance class'!$B28*'RES S curve-connect'!CA$3+'Res-Appliance class'!$C28*'RES S curve-connect'!CA$8+'Res-Appliance class'!$D28*'RES S curve-connect'!CA$13+'Res-Appliance class'!$E28*'RES S curve-connect'!CA$18","v":647.09214882562003},{"$f":"'Res-Appliance class'!$B28*'RES S curve-connect'!CB$3+'Res-Appliance class'!$C28*'RES S curve-connect'!CB$8+'Res-Appliance class'!$D28*'RES S curve-connect'!CB$13+'Res-Appliance class'!$E28*'RES S curve-connect'!CB$18","v":655.31501960577225},{"$f":"'Res-Appliance class'!$B28*'RES S curve-connect'!CC$3+'Res-Appliance class'!$C28*'RES S curve-connect'!CC$8+'Res-Appliance class'!$D28*'RES S curve-connect'!CC$13+'Res-Appliance class'!$E28*'RES S curve-connect'!CC$18","v":663.52722320192731},{"$f":"'Res-Appliance class'!$B28*'RES S curve-connect'!CD$3+'Res-Appliance class'!$C28*'RES S curve-connect'!CD$8+'Res-Appliance class'!$D28*'RES S curve-connect'!CD$13+'Res-Appliance class'!$E28*'RES S curve-connect'!CD$18","v":538.27256673456145}]
["Boroondara (C)",null,{"$f":"'Res-Appliance class'!$B29*'RES S curve-connect'!C$3+'Res-Appliance class'!$C29*'RES S curve-connect'!C$8+'Res-Appliance class'!$D29*'RES S curve-connect'!C$13+'Res-Appliance class'!$E29*'RES S curve-connect'!C$18","v":-2446.7050518272681},{"$f":"'Res-Appliance class'!$B29*'RES S curve-connect'!D$3+'Res-Appliance class'!$C29*'RES S curve-connect'!D$8+'Res-Appliance class'!$D29*'RES S curve-connect'!D$13+'Res-Appliance class'!$E29*'RES S curve-connect'!D$18","v":-3031.5170113792847},{"$f":"'Res-Appliance class'!$B29*'RES S curve-connect'!E$3+'Res-Appliance class'!$C29*'RES S curve-connect'!E$8+'Res-Appliance class'!$D29*'RES S curve-connect'!E$13+'Res-Appliance class'!$E29*'RES S curve-connect'!E$18","v":-2500.3580653745189},{"$f":"'Res-Appliance class'!$B29*'RES S curve-connect'!F$3+'Res-Appliance class'!$C29*'RES S curve-connect'!F$8+'Res-Appliance class'!$D29*'RES S curve-connect'!F$13+'Res-Appliance class'!$E29*'RES S curve-connect'!F$18","v":-2327.5326171252887},{"$f":"'Res-Appliance class'!$B29*'RES S curve-connect'!G$3+'Res-Appliance class'!$C29*'RES S curve-connect'!G$8+'Res-Appliance class'!$D29*'RES S curve-connect'!G$13+'Res-Appliance class'!$E29*'RES S curve-connect'!G$18","v":-3520.1210851613309},{"$f":"'Res-Appliance class'!$B29*'RES S curve-connect'!H$3+'Res-Appliance class'!$C29*'RES S curve-connect'!H$8+'Res-Appliance class'!$D29*'RES S curve-connect'!H$13+'Res-Appliance class'!$E29*'RES S curve-connect'!H$18","v":-3549.1267985271184},{"$f":"'Res-Appliance class'!$B29*'RES S curve-connect'!I$3+'Res-Appliance class'!$C29*'RES S curve-connect'!I$8+'Res-Appliance class'!$D29*'RES S curve-connect'!I$13+'Res-Appliance class'!$E29*'RES S curve-connect'!I$18","v":-3055.2871825719612},{"$f":"'Res-Appliance class'!$B29*'RES S curve-connect'!J$3+'Res-Appliance class'!$C29*'RES S curve-connect'!J$8+'Res-Appliance class'!$D29*'RES S curve-connect'!J$13+'Res-Appliance class'!$E29*'RES S curve-connect'!J$18","v":-3359.8027304673569},{"$f":"'Res-Appliance class'!$B29*'RES S curve-connect'!K$3+'Res-Appliance class'!$C29*'RES S curve-connect'!K$8+'Res-Appliance class'!$D29*'RES S curve-connect'!K$13+'Res-Appliance class'!$E29*'RES S curve-connect'!K$18","v":-2480.7294211795588},{"$f":"'Res-Appliance class'!$B29*'RES S curve-connect'!L$3+'Res-Appliance class'!$C29*'RES S curve-connect'!L$8+'Res-Appliance class'!$D29*'RES S curve-connect'!L$13+'Res-Appliance class'!$E29*'RES S curve-connect'!L$18","v":-2888.794564434922},{"$f":"'Res-Appliance class'!$B29*'RES S curve-connect'!M$3+'Res-Appliance class'!$C29*'RES S curve-connect'!M$8+'Res-Appliance class'!$D29*'RES S curve-connect'!M$13+'Res-Appliance class'!$E29*'RES S curve-connect'!M$18","v":-3617.8711950712304},{"$f":"'Res-Appliance class'!$B29*'RES S curve-connect'!N$3+'Res-Appliance class'!$C29*'RES S curve-connect'!N$8+'Res-Appliance class'!$D29*'RES S curve-connect'!N$13+'Res-Appliance class'!$E29*'RES S curve-connect'!N$18","v":-3694.3633222805611},{"$f":"'Res-Appliance class'!$B29*'RES S curve-connect'!O$3+'Res-Appliance class'!$C29*'RES S curve-connect'!O$8+'Res-Appliance class'!$D29*'RES S curve-connect'!O$13+'Res-Appliance class'!$E29*'RES S curve-connect'!O$18","v":-3063.0781714650407},{"$f":"'Res-Appliance class'!$B29*'RES S curve-connect'!P$3+'Res-Appliance class'!$C29*'RES S curve-connect'!P$8+'Res-Appliance class'!$D29*'RES S curve-connect'!P$13+'Res-Appliance class'!$E29*'RES S curve-connect'!P$18","v":-2562.6396666768296},{"$f":"'Res-Appliance class'!$B29*'RES S curve-connect'!Q$3+'Res-Appliance class'!$C29*'RES S curve-connect'!Q$8+'Res-Appliance class'!$D29*'RES S curve-connect'!Q$13+'Res-Appliance class'!$E29*'RES S curve-connect'!Q$18","v":-1802.2485972037905},{"$f":"'Res-Appliance class'!$B29*'RES S curve-connect'!R$3+'Res-Appliance class'!$C29*'RES S curve-connect'!R$8+'Res-Appliance class'!$D29*'RES S curve-connect'!R$13+'Res-Appliance class'!$E29*'RES S curve-connect'!R$18","v":-1374.872391070312},{"$f":"'Res-Appliance class'!$B29*'RES S curve-connect'!S$3+'Res-Appliance class'!$C29*'RES S curve-connect'!S$8+'Res-Appliance class'!$D29*'RES S curve-connect'!S$13+'Res-Appliance class'!$E29*'RES S curve-connect'!S$18","v":-688.57535588078724},{"$f":"'Res-Appliance class'!$B29*'RES S curve-connect'!T$3+'Res-Appliance class'!$C29*'RES S curve-connect'!T$8+'Res-Appliance class'!$D29*'RES S curve-connect'!T$13+'Res-Appliance class'!$E29*'RES S curve-connect'!T$18","v":-322.87312610086195},{"$f":"'Res-Appliance class'!$B29*'RES S curve-connect'!U$3+'Res-Appliance class'!$C29*'RES S curve-connect'!U$8+'Res-Appliance class'!$D29*'RES S curve-connect'!U$13+'Res-Appliance class'!$E29*'RES S curve-connect'!U$18","v":98.302214099068294},{"$f":"'Res-Appliance class'!$B29*'RES S curve-connect'!V$3+'Res-Appliance class'!$C29*'RES S curve-connect'!V$8+'Res-Appliance class'!$D29*'RES S curve-connect'!V$13+'Res-Appliance class'!$E29*'RES S curve-connect'!V$18","v":383.83182010405216},{"$f":"'Res-Appliance class'!$B29*'RES S curve-connect'!W$3+'Res-Appliance class'!$C29*'RES S curve-connect'!W$8+'Res-Appliance class'!$D29*'RES S curve-connect'!W$13+'Res-Appliance class'!$E29*'RES S curve-connect'!W$18","v":604.79688007998914},{"$f":"'Res-Appliance class'!$B29*'RES S curve-connect'!X$3+'Res-Appliance class'!$C29*'RES S curve-connect'!X$8+'Res-Appliance class'!$D29*'RES S curve-connect'!X$13+'Res-Appliance class'!$E29*'RES S curve-connect'!X$18","v":1114.5829781748632},{"$f":"'Res-Appliance class'!$B29*'RES S curve-connect'!Y$3+'Res-Appliance class'!$C29*'RES S curve-connect'!Y$8+'Res-Appliance class'!$D29*'RES S curve-connect'!Y$13+'Res-Appliance class'!$E29*'RES S curve-connect'!Y$18","v":1630.8603664345383},{"$f":"'Res-Appliance class'!$B29*'RES S curve-connect'!Z$3+'Res-Appliance class'!$C29*'RES S curve-connect'!Z$8+'Res-Appliance class'!$D29*'RES S curve-connect'!Z$13+'Res-Appliance class'!$E29*'RES S curve-connect'!Z$18","v":1977.8641651293603},{"$f":"'Res-Appliance class'!$B29*'RES S curve-connect'!AA$3+'Res-Appliance class'!$C29*'RES S curve-connect'!AA$8+'Res-Appliance class'!$D29*'RES S curve-connect'!AA$13+'Res-Appliance class'!$E29*'RES S curve-connect'!AA$18","v":2325.344314392511},{"$f":"'Res-Appliance class'!$B29*'RES S curve-connect'!AB$3+'Res-Appliance class'!$C29*'RES S curve-connect'!AB$8+'Res-Appliance class'!$D29*'RES S curve-connect'!AB$13+'Res-Appliance class'!$E29*'RES S curve-connect'!AB$18","v":2601.5174280146998},{"$f":"'Res-Appliance class'!$B29*'RES S curve-connect'!AC$3+'Res-Appliance class'!$C29*'RES S curve-connect'!AC$8+'Res-Appliance class'!$D29*'RES S curve-connect'!AC$13+'Res-Appliance class'!$E29*'RES S curve-connect'!AC$18","v":2867.6067151544476},{"$f":"'Res-Appliance class'!$B29*'RES S curve-connect'!AD$3+'Res-Appliance class'!$C29*'RES S curve-connect'!AD$8+'Res-Appliance class'!$D29*'RES S curve-connect'!AD$13+'Res-Appliance class'!$E29*'RES S curve-connect'!AD$18","v":3111.0759837536989},{"$f":"'Res-Appliance class'!$B29*'RES S curve-connect'!AE$3+'Res-Appliance class'!$C29*'RES S curve-connect'!AE$8+'Res-Appliance class'!$D29*'RES S curve-connect'!AE$13+'Res-Appliance class'!$E29*'RES S curve-connect'!AE$18","v":3368.0136629382878},{"$f":"'Res-Appliance class'!$B29*'RES S curve-connect'!AF$3+'Res-Appliance class'!$C29*'RES S curve-connect'!AF$8+'Res-Appliance class'!$D29*'RES S curve-connect'!AF$13+'Res-Appliance class'!$E29*'RES S curve-connect'!AF$18","v":3702.1348639139164},{"$f":"'Res-Appliance class'!$B29*'RES S curve-connect'!AG$3+'Res-Appliance class'!$C29*'RES S curve-connect'!AG$8+'Res-Appliance class'!$D29*'RES S curve-connect'!AG$13+'Res-Appliance class'!$E29*'RES S curve-connect'!AG$18","v":3937.8801561931587},{"$f":"'Res-Appliance class'!$B29*'RES S curve-connect'!AH$3+'Res-Appliance class'!$C29*'RES S curve-connect'!AH$8+'Res-Appliance class'!$D29*'RES S curve-connect'!AH$13+'Res-Appliance class'!$E29*'RES S curve-connect'!AH$18","v":4268.4903016816825},{"$f":"'Res-Appliance class'!$B29*'RES S curve-connect'!AI$3+'Res-Appliance class'!$C29*'RES S curve-connect'!AI$8+'Res-Appliance class'!$D29*'RES S curve-connect'!AI$13+'Res-Appliance class'!$E29*'RES S curve-connect'!AI$18","v":4566.7096473796728},{"$f":"'Res-Appliance class'!$B29*'RES S curve-connect'!AJ$3+'Res-Appliance class'!$C29*'RES S curve-connect'!AJ$8+'Res-Appliance class'!$D29*'RES S curve-connect'!AJ$13+'Res-Appliance class'!$E29*'RES S curve-connect'!AJ$18","v":4835.6297964237365},{"$f":"'Res-Appliance class'!$B29*'RES S curve-connect'!AK$3+'Res-Appliance class'!$C29*'RES S curve-connect'!AK$8+'Res-Appliance class'!$D29*'RES S curve-connect'!AK$13+'Res-Appliance class'!$E29*'RES S curve-connect'!AK$18","v":5121.165799247794},{"$f":"'Res-Appliance class'!$B29*'RES S curve-connect'!AL$3+'Res-Appliance class'!$C29*'RES S curve-connect'!AL$8+'Res-Appliance class'!$D29*'RES S curve-connect'!AL$13+'Res-Appliance class'!$E29*'RES S curve-connect'!AL$18","v":4129.8193879012151},{"$f":"'Res-Appliance class'!$B29*'RES S curve-connect'!AM$3+'Res-Appliance class'!$C29*'RES S curve-connect'!AM$8+'Res-Appliance class'!$D29*'RES S curve-connect'!AM$13+'Res-Appliance class'!$E29*'RES S curve-connect'!AM$18","v":4001.5170836228476},{"$f":"'Res-Appliance class'!$B29*'RES S curve-connect'!AN$3+'Res-Appliance class'!$C29*'RES S curve-connect'!AN$8+'Res-Appliance class'!$D29*'RES S curve-connect'!AN$13+'Res-Appliance class'!$E29*'RES S curve-connect'!AN$18","v":4272.5526795497262},{"$f":"'Res-Appliance class'!$B29*'RES S curve-connect'!AO$3+'Res-Appliance class'!$C29*'RES S curve-connect'!AO$8+'Res-Appliance class'!$D29*'RES S curve-connect'!AO$13+'Res-Appliance class'!$E29*'RES S curve-connect'!AO$18","v":4603.3861137531885},{"$f":"'Res-Appliance class'!$B29*'RES S curve-connect'!AP$3+'Res-Appliance class'!$C29*'RES S curve-connect'!AP$8+'Res-Appliance class'!$D29*'RES S curve-connect'!AP$13+'Res-Appliance class'!$E29*'RES S curve-connect'!AP$18","v":4908.6244962574274},{"$f":"'Res-Appliance class'!$B29*'RES S curve-connect'!AQ$3+'Res-Appliance class'!$C29*'RES S curve-connect'!AQ$8+'Res-Appliance class'!$D29*'RES S curve-connect'!AQ$13+'Res-Appliance class'!$E29*'RES S curve-connect'!AQ$18","v":5237.6533759170052},{"$f":"'Res-Appliance class'!$B29*'RES S curve-connect'!AR$3+'Res-Appliance class'!$C29*'RES S curve-connect'!AR$8+'Res-Appliance class'!$D29*'RES S curve-connect'!AR$13+'Res-Appliance class'!$E29*'RES S curve-connect'!AR$18","v":5598.7028957490611},{"$f":"'Res-Appliance class'!$B29*'RES S curve-connect'!AS$3+'Res-Appliance class'!$C29*'RES S curve-connect'!AS$8+'Res-Appliance class'!$D29*'RES S curve-connect'!AS$13+'Res-Appliance class'!$E29*'RES S curve-connect'!AS$18","v":6003.7992998917844},{"$f":"'Res-Appliance class'!$B29*'RES S curve-connect'!AT$3+'Res-Appliance class'!$C29*'RES S curve-connect'!AT$8+'Res-Appliance class'!$D29*'RES S curve-connect'!AT$13+'Res-Appliance class'!$E29*'RES S curve-connect'!AT$18","v":6456.6769945092728},{"$f":"'Res-Appliance class'!$B29*'RES S curve-connect'!AU$3+'Res-Appliance class'!$C29*'RES S curve-connect'!AU$8+'Res-Appliance class'!$D29*'RES S curve-connect'!AU$13+'Res-Appliance class'!$E29*'RES S curve-connect'!AU$18","v":6980.9295763723812},{"$f":"'Res-Appliance class'!$B29*'RES S curve-connect'!AV$3+'Res-Appliance class'!$C29*'RES S curve-connect'!AV$8+'Res-Appliance class'!$D29*'RES S curve-connect'!AV$13+'Res-Appliance class'!$E29*'RES S curve-connect'!AV$18","v":7578.6232435296079},{"$f":"'Res-Appliance class'!$B29*'RES S curve-connect'!AW$3+'Res-Appliance class'!$C29*'RES S curve-connect'!AW$8+'Res-Appliance class'!$D29*'RES S curve-connect'!AW$13+'Res-Appliance class'!$E29*'RES S curve-connect'!AW$18","v":8265.4814955453949},{"$f":"'Res-Appliance class'!$B29*'RES S curve-connect'!AX$3+'Res-Appliance class'!$C29*'RES S curve-connect'!AX$8+'Res-Appliance class'!$D29*'RES S curve-connect'!AX$13+'Res-Appliance class'!$E29*'RES S curve-connect'!AX$18","v":9047.9280370481047},{"$f":"'Res-Appliance class'!$B29*'RES S curve-connect'!AY$3+'Res-Appliance class'!$C29*'RES S curve-connect'!AY$8+'Res-Appliance class'!$D29*'RES S curve-connect'!AY$13+'Res-Appliance class'!$E29*'RES S curve-connect'!AY$18","v":9950.9211939507404},{"$f":"'Res-Appliance class'!$B29*'RES S curve-connect'!AZ$3+'Res-Appliance class'!$C29*'RES S curve-connect'!AZ$8+'Res-Appliance class'!$D29*'RES S curve-connect'!AZ$13+'Res-Appliance class'!$E29*'RES S curve-connect'!AZ$18","v":10982.717760104995},{"$f":"'Res-Appliance class'!$B29*'RES S curve-connect'!BA$3+'Res-Appliance class'!$C29*'RES S curve-connect'!BA$8+'Res-Appliance class'!$D29*'RES S curve-connect'!BA$13+'Res-Appliance class'!$E29*'RES S curve-connect'!BA$18","v":12177.322053480835},{"$f":"'Res-Appliance class'!$B29*'RES S curve-connect'!BB$3+'Res-Appliance class'!$C29*'RES S curve-connect'!BB$8+'Res-Appliance class'!$D29*'RES S curve-connect'!BB$13+'Res-Appliance class'!$E29*'RES S curve-connect'!BB$18","v":13572.446297779024},{"$f":"'Res-Appliance class'!$B29*'RES S curve-connect'!BC$3+'Res-Appliance class'!$C29*'RES S curve-connect'!BC$8+'Res-Appliance class'!$D29*'RES S curve-connect'!BC$13+'Res-Appliance class'!$E29*'RES S curve-connect'!BC$18","v":15236.054486871069},{"$f":"'Res-Appliance class'!$B29*'RES S curve-connect'!BD$3+'Res-Appliance class'!$C29*'RES S curve-connect'!BD$8+'Res-Appliance class'!$D29*'RES S curve-connect'!BD$13+'Res-Appliance class'!$E29*'RES S curve-connect'!BD$18","v":16839.502358622914},{"$f":"'Res-Appliance class'!$B29*'RES S curve-connect'!BE$3+'Res-Appliance class'!$C29*'RES S curve-connect'!BE$8+'Res-Appliance class'!$D29*'RES S curve-connect'!BE$13+'Res-Appliance class'!$E29*'RES S curve-connect'!BE$18","v":18304.588518924334},{"$f":"'Res-Appliance class'!$B29*'RES S curve-connect'!BF$3+'Res-Appliance class'!$C29*'RES S curve-connect'!BF$8+'Res-Appliance class'!$D29*'RES S curve-connect'!BF$13+'Res-Appliance class'!$E29*'RES S curve-connect'!BF$18","v":19803.787801992185},{"$f":"'Res-Appliance class'!$B29*'RES S curve-connect'!BG$3+'Res-Appliance class'!$C29*'RES S curve-connect'!BG$8+'Res-Appliance class'!$D29*'RES S curve-connect'!BG$13+'Res-Appliance class'!$E29*'RES S curve-connect'!BG$18","v":21501.083105928985},{"$f":"'Res-Appliance class'!$B29*'RES S curve-connect'!BH$3+'Res-Appliance class'!$C29*'RES S curve-connect'!BH$8+'Res-Appliance class'!$D29*'RES S curve-connect'!BH$13+'Res-Appliance class'!$E29*'RES S curve-connect'!BH$18","v":23515.554358466219},{"$f":"'Res-Appliance class'!$B29*'RES S curve-connect'!BI$3+'Res-Appliance class'!$C29*'RES S curve-connect'!BI$8+'Res-Appliance class'!$D29*'RES S curve-connect'!BI$13+'Res-Appliance class'!$E29*'RES S curve-connect'!BI$18","v":26434.866611743888},{"$f":"'Res-Appliance class'!$B29*'RES S curve-connect'!BJ$3+'Res-Appliance class'!$C29*'RES S curve-connect'!BJ$8+'Res-Appliance class'!$D29*'RES S curve-connect'!BJ$13+'Res-Appliance class'!$E29*'RES S curve-connect'!BJ$18","v":30708.740888858207},{"$f":"'Res-Appliance class'!$B29*'RES S curve-connect'!BK$3+'Res-Appliance class'!$C29*'RES S curve-connect'!BK$8+'Res-Appliance class'!$D29*'RES S curve-connect'!BK$13+'Res-Appliance class'!$E29*'RES S curve-connect'!BK$18","v":37013.725561707179},{"$f":"'Res-Appliance class'!$B29*'RES S curve-connect'!BL$3+'Res-Appliance class'!$C29*'RES S curve-connect'!BL$8+'Res-Appliance class'!$D29*'RES S curve-connect'!BL$13+'Res-Appliance class'!$E29*'RES S curve-connect'!BL$18","v":504.94532243279463},{"$f":"'Res-Appliance class'!$B29*'RES S curve-connect'!BM$3+'Res-Appliance class'!$C29*'RES S curve-connect'!BM$8+'Res-Appliance class'!$D29*'RES S curve-connect'!BM$13+'Res-Appliance class'!$E29*'RES S curve-connect'!BM$18","v":512.93098607736431},{"$f":"'Res-Appliance class'!$B29*'RES S curve-connect'!BN$3+'Res-Appliance class'!$C29*'RES S curve-connect'!BN$8+'Res-Appliance class'!$D29*'RES S curve-connect'!BN$13+'Res-Appliance class'!$E29*'RES S curve-connect'!BN$18","v":516.88324165758445},{"$f":"'Res-Appliance class'!$B29*'RES S curve-connect'!BO$3+'Res-Appliance class'!$C29*'RES S curve-connect'!BO$8+'Res-Appliance class'!$D29*'RES S curve-connect'!BO$13+'Res-Appliance class'!$E29*'RES S curve-connect'!BO$18","v":528.86878044656601},{"$f":"'Res-Appliance class'!$B29*'RES S curve-connect'!BP$3+'Res-Appliance class'!$C29*'RES S curve-connect'!BP$8+'Res-Appliance class'!$D29*'RES S curve-connect'!BP$13+'Res-Appliance class'!$E29*'RES S curve-connect'!BP$18","v":536.82104580249961},{"$f":"'Res-Appliance class'!$B29*'RES S curve-connect'!BQ$3+'Res-Appliance class'!$C29*'RES S curve-connect'!BQ$8+'Res-Appliance class'!$D29*'RES S curve-connect'!BQ$13+'Res-Appliance class'!$E29*'RES S curve-connect'!BQ$18","v":544.76231232931775},{"$f":"'Res-Appliance class'!$B29*'RES S curve-connect'!BR$3+'Res-Appliance class'!$C29*'RES S curve-connect'!BR$8+'Res-Appliance class'!$D29*'RES S curve-connect'!BR$13+'Res-Appliance class'!$E29*'RES S curve-connect'!BR$18","v":548.67043838452969},{"$f":"'Res-Appliance class'!$B29*'RES S curve-connect'!BS$3+'Res-Appliance class'!$C29*'RES S curve-connect'!BS$8+'Res-Appliance class'!$D29*'RES S curve-connect'!BS$13+'Res-Appliance class'!$E29*'RES S curve-connect'!BS$18","v":560.61211357664058},{"$f":"'Res-Appliance class'!$B29*'RES S curve-connect'!BT$3+'Res-Appliance class'!$C29*'RES S curve-connect'!BT$8+'Res-Appliance class'!$D29*'RES S curve-connect'!BT$13+'Res-Appliance class'!$E29*'RES S curve-connect'!BT$18","v":568.52077960975487},{"$f":"'Res-Appliance class'!$B29*'RES S curve-connect'!BU$3+'Res-Appliance class'!$C29*'RES S curve-connect'!BU$8+'Res-Appliance class'!$D29*'RES S curve-connect'!BU$13+'Res-Appliance class'!$E29*'RES S curve-connect'!BU$18","v":576.41870944416758},{"$f":"'Res-Appliance class'!$B29*'RES S curve-connect'!BV$3+'Res-Appliance class'!$C29*'RES S curve-connect'!BV$8+'Res-Appliance class'!$D29*'RES S curve-connect'!BV$13+'Res-Appliance class'!$E29*'RES S curve-connect'!BV$18","v":580.28375980412488},{"$f":"'Res-Appliance class'!$B29*'RES S curve-connect'!BW$3+'Res-Appliance class'!$C29*'RES S curve-connect'!BW$8+'Res-Appliance class'!$D29*'RES S curve-connect'!BW$13+'Res-Appliance class'!$E29*'RES S curve-connect'!BW$18","v":592.18261867519027},{"$f":"'Res-Appliance class'!$B29*'RES S curve-connect'!BX$3+'Res-Appliance class'!$C29*'RES S curve-connect'!BX$8+'Res-Appliance class'!$D29*'RES S curve-connect'!BX$13+'Res-Appliance class'!$E29*'RES S curve-connect'!BX$18","v":600.04872614877263},{"$f":"'Res-Appliance class'!$B29*'RES S curve-connect'!BY$3+'Res-Appliance class'!$C29*'RES S curve-connect'!BY$8+'Res-Appliance class'!$D29*'RES S curve-connect'!BY$13+'Res-Appliance class'!$E29*'RES S curve-connect'!BY$18","v":607.90435358265313},{"$f":"'Res-Appliance class'!$B29*'RES S curve-connect'!BZ$3+'Res-Appliance class'!$C29*'RES S curve-connect'!BZ$8+'Res-Appliance class'!$D29*'RES S curve-connect'!BZ$13+'Res-Appliance class'!$E29*'RES S curve-connect'!BZ$18","v":611.72735610868756},{"$f":"'Res-Appliance class'!$B29*'RES S curve-connect'!CA$3+'Res-Appliance class'!$C29*'RES S curve-connect'!CA$8+'Res-Appliance class'!$D29*'RES S curve-connect'!CA$13+'Res-Appliance class'!$E29*'RES S curve-connect'!CA$18","v":623.58442013010392},{"$f":"'Res-Appliance class'!$B29*'RES S curve-connect'!CB$3+'Res-Appliance class'!$C29*'RES S curve-connect'!CB$8+'Res-Appliance class'!$D29*'RES S curve-connect'!CB$13+'Res-Appliance class'!$E29*'RES S curve-connect'!CB$18","v":631.4089841659636},{"$f":"'Res-Appliance class'!$B29*'RES S curve-connect'!CC$3+'Res-Appliance class'!$C29*'RES S curve-connect'!CC$8+'Res-Appliance class'!$D29*'RES S curve-connect'!CC$13+'Res-Appliance class'!$E29*'RES S curve-connect'!CC$18","v":639.22331801163},{"$f":"'Res-Appliance class'!$B29*'RES S curve-connect'!CD$3+'Res-Appliance class'!$C29*'RES S curve-connect'!CD$8+'Res-Appliance class'!$D29*'RES S curve-connect'!CD$13+'Res-Appliance class'!$E29*'RES S curve-connect'!CD$18","v":520.25621669334578}]
["Cardinia (S)",null,{"$f":"'Res-Appliance class'!$B30*'RES S curve-connect'!C$3+'Res-Appliance class'!$C30*'RES S curve-connect'!C$8+'Res-Appliance class'!$D30*'RES S curve-connect'!C$13+'Res-Appliance class'!$E30*'RES S curve-connect'!C$18","v":-2714.7709020711009},{"$f":"'Res-Appliance class'!$B30*'RES S curve-connect'!D$3+'Res-Appliance class'!$C30*'RES S curve-connect'!D$8+'Res-Appliance class'!$D30*'RES S curve-connect'!D$13+'Res-Appliance class'!$E30*'RES S curve-connect'!D$18","v":-3375.1939457741978},{"$f":"'Res-Appliance class'!$B30*'RES S curve-connect'!E$3+'Res-Appliance class'!$C30*'RES S curve-connect'!E$8+'Res-Appliance class'!$D30*'RES S curve-connect'!E$13+'Res-Appliance class'!$E30*'RES S curve-connect'!E$18","v":-2742.5463037275513},{"$f":"'Res-Appliance class'!$B30*'RES S curve-connect'!F$3+'Res-Appliance class'!$C30*'RES S curve-connect'!F$8+'Res-Appliance class'!$D30*'RES S curve-connect'!F$13+'Res-Appliance class'!$E30*'RES S curve-connect'!F$18","v":-2542.5136441230165},{"$f":"'Res-Appliance class'!$B30*'RES S curve-connect'!G$3+'Res-Appliance class'!$C30*'RES S curve-connect'!G$8+'Res-Appliance class'!$D30*'RES S curve-connect'!G$13+'Res-Appliance class'!$E30*'RES S curve-connect'!G$18","v":-3970.7307675071161},{"$f":"'Res-Appliance class'!$B30*'RES S curve-connect'!H$3+'Res-Appliance class'!$C30*'RES S curve-connect'!H$8+'Res-Appliance class'!$D30*'RES S curve-connect'!H$13+'Res-Appliance class'!$E30*'RES S curve-connect'!H$18","v":-3997.0070197761861},{"$f":"'Res-Appliance class'!$B30*'RES S curve-connect'!I$3+'Res-Appliance class'!$C30*'RES S curve-connect'!I$8+'Res-Appliance class'!$D30*'RES S curve-connect'!I$13+'Res-Appliance class'!$E30*'RES S curve-connect'!I$18","v":-3430.7386700013649},{"$f":"'Res-Appliance class'!$B30*'RES S curve-connect'!J$3+'Res-Appliance class'!$C30*'RES S curve-connect'!J$8+'Res-Appliance class'!$D30*'RES S curve-connect'!J$13+'Res-Appliance class'!$E30*'RES S curve-connect'!J$18","v":-3740.4301783945148},{"$f":"'Res-Appliance class'!$B30*'RES S curve-connect'!K$3+'Res-Appliance class'!$C30*'RES S curve-connect'!K$8+'Res-Appliance class'!$D30*'RES S curve-connect'!K$13+'Res-Appliance class'!$E30*'RES S curve-connect'!K$18","v":-2741.6752704132914},{"$f":"'Res-Appliance class'!$B30*'RES S curve-connect'!L$3+'Res-Appliance class'!$C30*'RES S curve-connect'!L$8+'Res-Appliance class'!$D30*'RES S curve-connect'!L$13+'Res-Appliance class'!$E30*'RES S curve-connect'!L$18","v":-3203.6702541158875},{"$f":"'Res-Appliance class'!$B30*'RES S curve-connect'!M$3+'Res-Appliance class'!$C30*'RES S curve-connect'!M$8+'Res-Appliance class'!$D30*'RES S curve-connect'!M$13+'Res-Appliance class'!$E30*'RES S curve-connect'!M$18","v":-4048.5007134560165},{"$f":"'Res-Appliance class'!$B30*'RES S curve-connect'!N$3+'Res-Appliance class'!$C30*'RES S curve-connect'!N$8+'Res-Appliance class'!$D30*'RES S curve-connect'!N$13+'Res-Appliance class'!$E30*'RES S curve-connect'!N$18","v":-4136.9619556246389},{"$f":"'Res-Appliance class'!$B30*'RES S curve-connect'!O$3+'Res-Appliance class'!$C30*'RES S curve-connect'!O$8+'Res-Appliance class'!$D30*'RES S curve-connect'!O$13+'Res-Appliance class'!$E30*'RES S curve-connect'!O$18","v":-3419.2794057186193},{"$f":"'Res-Appliance class'!$B30*'RES S curve-connect'!P$3+'Res-Appliance class'!$C30*'RES S curve-connect'!P$8+'Res-Appliance class'!$D30*'RES S curve-connect'!P$13+'Res-Appliance class'!$E30*'RES S curve-connect'!P$18","v":-2848.1498094288318},{"$f":"'Res-Appliance class'!$B30*'RES S curve-connect'!Q$3+'Res-Appliance class'!$C30*'RES S curve-connect'!Q$8+'Res-Appliance class'!$D30*'RES S curve-connect'!Q$13+'Res-Appliance class'!$E30*'RES S curve-connect'!Q$18","v":-1979.9794911669951},{"$f":"'Res-Appliance class'!$B30*'RES S curve-connect'!R$3+'Res-Appliance class'!$C30*'RES S curve-connect'!R$8+'Res-Appliance class'!$D30*'RES S curve-connect'!R$13+'Res-Appliance class'!$E30*'RES S curve-connect'!R$18","v":-1491.91964702319},{"$f":"'Res-Appliance class'!$B30*'RES S curve-connect'!S$3+'Res-Appliance class'!$C30*'RES S curve-connect'!S$8+'Res-Appliance class'!$D30*'RES S curve-connect'!S$13+'Res-Appliance class'!$E30*'RES S curve-connect'!S$18","v":-711.81930059272815},{"$f":"'Res-Appliance class'!$B30*'RES S curve-connect'!T$3+'Res-Appliance class'!$C30*'RES S curve-connect'!T$8+'Res-Appliance class'!$D30*'RES S curve-connect'!T$13+'Res-Appliance class'!$E30*'RES S curve-connect'!T$18","v":-288.02961208001875},{"$f":"'Res-Appliance class'!$B30*'RES S curve-connect'!U$3+'Res-Appliance class'!$C30*'RES S curve-connect'!U$8+'Res-Appliance class'!$D30*'RES S curve-connect'!U$13+'Res-Appliance class'!$E30*'RES S curve-connect'!U$18","v":194.14691559322551},{"$f":"'Res-Appliance class'!$B30*'RES S curve-connect'!V$3+'Res-Appliance class'!$C30*'RES S curve-connect'!V$8+'Res-Appliance class'!$D30*'RES S curve-connect'!V$13+'Res-Appliance class'!$E30*'RES S curve-connect'!V$18","v":518.83310167418585},{"$f":"'Res-Appliance class'!$B30*'RES S curve-connect'!W$3+'Res-Appliance class'!$C30*'RES S curve-connect'!W$8+'Res-Appliance class'!$D30*'RES S curve-connect'!W$13+'Res-Appliance class'!$E30*'RES S curve-connect'!W$18","v":770.00128406210888},{"$f":"'Res-Appliance class'!$B30*'RES S curve-connect'!X$3+'Res-Appliance class'!$C30*'RES S curve-connect'!X$8+'Res-Appliance class'!$D30*'RES S curve-connect'!X$13+'Res-Appliance class'!$E30*'RES S curve-connect'!X$18","v":1354.4872197407926},{"$f":"'Res-Appliance class'!$B30*'RES S curve-connect'!Y$3+'Res-Appliance class'!$C30*'RES S curve-connect'!Y$8+'Res-Appliance class'!$D30*'RES S curve-connect'!Y$13+'Res-Appliance class'!$E30*'RES S curve-connect'!Y$18","v":1945.5326212758366},{"$f":"'Res-Appliance class'!$B30*'RES S curve-connect'!Z$3+'Res-Appliance class'!$C30*'RES S curve-connect'!Z$8+'Res-Appliance class'!$D30*'RES S curve-connect'!Z$13+'Res-Appliance class'!$E30*'RES S curve-connect'!Z$18","v":2342.0682142050459},{"$f":"'Res-Appliance class'!$B30*'RES S curve-connect'!AA$3+'Res-Appliance class'!$C30*'RES S curve-connect'!AA$8+'Res-Appliance class'!$D30*'RES S curve-connect'!AA$13+'Res-Appliance class'!$E30*'RES S curve-connect'!AA$18","v":2738.1299879273283},{"$f":"'Res-Appliance class'!$B30*'RES S curve-connect'!AB$3+'Res-Appliance class'!$C30*'RES S curve-connect'!AB$8+'Res-Appliance class'!$D30*'RES S curve-connect'!AB$13+'Res-Appliance class'!$E30*'RES S curve-connect'!AB$18","v":3052.3943350320101},{"$f":"'Res-Appliance class'!$B30*'RES S curve-connect'!AC$3+'Res-Appliance class'!$C30*'RES S curve-connect'!AC$8+'Res-Appliance class'!$D30*'RES S curve-connect'!AC$13+'Res-Appliance class'!$E30*'RES S curve-connect'!AC$18","v":3354.5064131696645},{"$f":"'Res-Appliance class'!$B30*'RES S curve-connect'!AD$3+'Res-Appliance class'!$C30*'RES S curve-connect'!AD$8+'Res-Appliance class'!$D30*'RES S curve-connect'!AD$13+'Res-Appliance class'!$E30*'RES S curve-connect'!AD$18","v":3630.849964694869},{"$f":"'Res-Appliance class'!$B30*'RES S curve-connect'!AE$3+'Res-Appliance class'!$C30*'RES S curve-connect'!AE$8+'Res-Appliance class'!$D30*'RES S curve-connect'!AE$13+'Res-Appliance class'!$E30*'RES S curve-connect'!AE$18","v":3921.0934056022129},{"$f":"'Res-Appliance class'!$B30*'RES S curve-connect'!AF$3+'Res-Appliance class'!$C30*'RES S curve-connect'!AF$8+'Res-Appliance class'!$D30*'RES S curve-connect'!AF$13+'Res-Appliance class'!$E30*'RES S curve-connect'!AF$18","v":4300.5419884295679},{"$f":"'Res-Appliance class'!$B30*'RES S curve-connect'!AG$3+'Res-Appliance class'!$C30*'RES S curve-connect'!AG$8+'Res-Appliance class'!$D30*'RES S curve-connect'!AG$13+'Res-Appliance class'!$E30*'RES S curve-connect'!AG$18","v":4568.1906739710594},{"$f":"'Res-Appliance class'!$B30*'RES S curve-connect'!AH$3+'Res-Appliance class'!$C30*'RES S curve-connect'!AH$8+'Res-Appliance class'!$D30*'RES S curve-connect'!AH$13+'Res-Appliance class'!$E30*'RES S curve-connect'!AH$18","v":4946.4193280518894},{"$f":"'Res-Appliance class'!$B30*'RES S curve-connect'!AI$3+'Res-Appliance class'!$C30*'RES S curve-connect'!AI$8+'Res-Appliance class'!$D30*'RES S curve-connect'!AI$13+'Res-Appliance class'!$E30*'RES S curve-connect'!AI$18","v":5284.9629369702288},{"$f":"'Res-Appliance class'!$B30*'RES S curve-connect'!AJ$3+'Res-Appliance class'!$C30*'RES S curve-connect'!AJ$8+'Res-Appliance class'!$D30*'RES S curve-connect'!AJ$13+'Res-Appliance class'!$E30*'RES S curve-connect'!AJ$18","v":5590.7900824494091},{"$f":"'Res-Appliance class'!$B30*'RES S curve-connect'!AK$3+'Res-Appliance class'!$C30*'RES S curve-connect'!AK$8+'Res-Appliance class'!$D30*'RES S curve-connect'!AK$13+'Res-Appliance class'!$E30*'RES S curve-connect'!AK$18","v":5915.4207108758919},{"$f":"'Res-Appliance class'!$B30*'RES S curve-connect'!AL$3+'Res-Appliance class'!$C30*'RES S curve-connect'!AL$8+'Res-Appliance class'!$D30*'RES S curve-connect'!AL$13+'Res-Appliance class'!$E30*'RES S curve-connect'!AL$18","v":4795.3552501160193},{"$f":"'Res-Appliance class'!$B30*'RES S curve-connect'!AM$3+'Res-Appliance class'!$C30*'RES S curve-connect'!AM$8+'Res-Appliance class'!$D30*'RES S curve-connect'!AM$13+'Res-Appliance class'!$E30*'RES S curve-connect'!AM$18","v":4646.4474023218963},{"$f":"'Res-Appliance class'!$B30*'RES S curve-connect'!AN$3+'Res-Appliance class'!$C30*'RES S curve-connect'!AN$8+'Res-Appliance class'!$D30*'RES S curve-connect'!AN$13+'Res-Appliance class'!$E30*'RES S curve-connect'!AN$18","v":4952.5611418285825},{"$f":"'Res-Appliance class'!$B30*'RES S curve-connect'!AO$3+'Res-Appliance class'!$C30*'RES S curve-connect'!AO$8+'Res-Appliance class'!$D30*'RES S curve-connect'!AO$13+'Res-Appliance class'!$E30*'RES S curve-connect'!AO$18","v":5328.1257259459826},{"$f":"'Res-Appliance class'!$B30*'RES S curve-connect'!AP$3+'Res-Appliance class'!$C30*'RES S curve-connect'!AP$8+'Res-Appliance class'!$D30*'RES S curve-connect'!AP$13+'Res-Appliance class'!$E30*'RES S curve-connect'!AP$18","v":5675.7701768772922},{"$f":"'Res-Appliance class'!$B30*'RES S curve-connect'!AQ$3+'Res-Appliance class'!$C30*'RES S curve-connect'!AQ$8+'Res-Appliance class'!$D30*'RES S curve-connect'!AQ$13+'Res-Appliance class'!$E30*'RES S curve-connect'!AQ$18","v":6049.3553676905649},{"$f":"'Res-Appliance class'!$B30*'RES S curve-connect'!AR$3+'Res-Appliance class'!$C30*'RES S curve-connect'!AR$8+'Res-Appliance class'!$D30*'RES S curve-connect'!AR$13+'Res-Appliance class'!$E30*'RES S curve-connect'!AR$18","v":6459.9698379863166},{"$f":"'Res-Appliance class'!$B30*'RES S curve-connect'!AS$3+'Res-Appliance class'!$C30*'RES S curve-connect'!AS$8+'Res-Appliance class'!$D30*'RES S curve-connect'!AS$13+'Res-Appliance class'!$E30*'RES S curve-connect'!AS$18","v":6920.8518551667548},{"$f":"'Res-Appliance class'!$B30*'RES S curve-connect'!AT$3+'Res-Appliance class'!$C30*'RES S curve-connect'!AT$8+'Res-Appliance class'!$D30*'RES S curve-connect'!AT$13+'Res-Appliance class'!$E30*'RES S curve-connect'!AT$18","v":7436.8714824421086},{"$f":"'Res-Appliance class'!$B30*'RES S curve-connect'!AU$3+'Res-Appliance class'!$C30*'RES S curve-connect'!AU$8+'Res-Appliance class'!$D30*'RES S curve-connect'!AU$13+'Res-Appliance class'!$E30*'RES S curve-connect'!AU$18","v":8033.2775095786346},{"$f":"'Res-Appliance class'!$B30*'RES S curve-connect'!AV$3+'Res-Appliance class'!$C30*'RES S curve-connect'!AV$8+'Res-Appliance class'!$D30*'RES S curve-connect'!AV$13+'Res-Appliance class'!$E30*'RES S curve-connect'!AV$18","v":8714.1944895907818},{"$f":"'Res-Appliance class'!$B30*'RES S curve-connect'!AW$3+'Res-Appliance class'!$C30*'RES S curve-connect'!AW$8+'Res-Appliance class'!$D30*'RES S curve-connect'!AW$13+'Res-Appliance class'!$E30*'RES S curve-connect'!AW$18","v":9497.1453411886196},{"$f":"'Res-Appliance class'!$B30*'RES S curve-connect'!AX$3+'Res-Appliance class'!$C30*'RES S curve-connect'!AX$8+'Res-Appliance class'!$D30*'RES S curve-connect'!AX$13+'Res-Appliance class'!$E30*'RES S curve-connect'!AX$18","v":10390.226648071393},{"$f":"'Res-Appliance class'!$B30*'RES S curve-connect'!AY$3+'Res-Appliance class'!$C30*'RES S curve-connect'!AY$8+'Res-Appliance class'!$D30*'RES S curve-connect'!AY$13+'Res-Appliance class'!$E30*'RES S curve-connect'!AY$18","v":11420.43140326812},{"$f":"'Res-Appliance class'!$B30*'RES S curve-connect'!AZ$3+'Res-Appliance class'!$C30*'RES S curve-connect'!AZ$8+'Res-Appliance class'!$D30*'RES S curve-connect'!AZ$13+'Res-Appliance class'!$E30*'RES S curve-connect'!AZ$18","v":12599.126246423215},{"$f":"'Res-Appliance class'!$B30*'RES S curve-connect'!BA$3+'Res-Appliance class'!$C30*'RES S curve-connect'!BA$8+'Res-Appliance class'!$D30*'RES S curve-connect'!BA$13+'Res-Appliance class'!$E30*'RES S curve-connect'!BA$18","v":13964.863801351661},{"$f":"'Res-Appliance class'!$B30*'RES S curve-connect'!BB$3+'Res-Appliance class'!$C30*'RES S curve-connect'!BB$8+'Res-Appliance class'!$D30*'RES S curve-connect'!BB$13+'Res-Appliance class'!$E30*'RES S curve-connect'!BB$18","v":15561.715697698883},{"$f":"'Res-Appliance class'!$B30*'RES S curve-connect'!BC$3+'Res-Appliance class'!$C30*'RES S curve-connect'!BC$8+'Res-Appliance class'!$D30*'RES S curve-connect'!BC$13+'Res-Appliance class'!$E30*'RES S curve-connect'!BC$18","v":17466.211183346499},{"$f":"'Res-Appliance class'!$B30*'RES S curve-connect'!BD$3+'Res-Appliance class'!$C30*'RES S curve-connect'!BD$8+'Res-Appliance class'!$D30*'RES S curve-connect'!BD$13+'Res-Appliance class'!$E30*'RES S curve-connect'!BD$18","v":19306.660053067142},{"$f":"'Res-Appliance class'!$B30*'RES S curve-connect'!BE$3+'Res-Appliance class'!$C30*'RES S curve-connect'!BE$8+'Res-Appliance class'!$D30*'RES S curve-connect'!BE$13+'Res-Appliance class'!$E30*'RES S curve-connect'!BE$18","v":20989.910472794709},{"$f":"'Res-Appliance class'!$B30*'RES S curve-connect'!BF$3+'Res-Appliance class'!$C30*'RES S curve-connect'!BF$8+'Res-Appliance class'!$D30*'RES S curve-connect'!BF$13+'Res-Appliance class'!$E30*'RES S curve-connect'!BF$18","v":22711.87567125135},{"$f":"'Res-Appliance class'!$B30*'RES S curve-connect'!BG$3+'Res-Appliance class'!$C30*'RES S curve-connect'!BG$8+'Res-Appliance class'!$D30*'RES S curve-connect'!BG$13+'Res-Appliance class'!$E30*'RES S curve-connect'!BG$18","v":24659.550709659863},{"$f":"'Res-Appliance class'!$B30*'RES S curve-connect'!BH$3+'Res-Appliance class'!$C30*'RES S curve-connect'!BH$8+'Res-Appliance class'!$D30*'RES S curve-connect'!BH$13+'Res-Appliance class'!$E30*'RES S curve-connect'!BH$18","v":26972.278573279651},{"$f":"'Res-Appliance class'!$B30*'RES S curve-connect'!BI$3+'Res-Appliance class'!$C30*'RES S curve-connect'!BI$8+'Res-Appliance class'!$D30*'RES S curve-connect'!BI$13+'Res-Appliance class'!$E30*'RES S curve-connect'!BI$18","v":30322.682103798234},{"$f":"'Res-Appliance class'!$B30*'RES S curve-connect'!BJ$3+'Res-Appliance class'!$C30*'RES S curve-connect'!BJ$8+'Res-Appliance class'!$D30*'RES S curve-connect'!BJ$13+'Res-Appliance class'!$E30*'RES S curve-connect'!BJ$18","v":35233.254360309227},{"$f":"'Res-Appliance class'!$B30*'RES S curve-connect'!BK$3+'Res-Appliance class'!$C30*'RES S curve-connect'!BK$8+'Res-Appliance class'!$D30*'RES S curve-connect'!BK$13+'Res-Appliance class'!$E30*'RES S curve-connect'!BK$18","v":42485.749019065239},{"$f":"'Res-Appliance class'!$B30*'RES S curve-connect'!BL$3+'Res-Appliance class'!$C30*'RES S curve-connect'!BL$8+'Res-Appliance class'!$D30*'RES S curve-connect'!BL$13+'Res-Appliance class'!$E30*'RES S curve-connect'!BL$18","v":693.12601105768385},{"$f":"'Res-Appliance class'!$B30*'RES S curve-connect'!BM$3+'Res-Appliance class'!$C30*'RES S curve-connect'!BM$8+'Res-Appliance class'!$D30*'RES S curve-connect'!BM$13+'Res-Appliance class'!$E30*'RES S curve-connect'!BM$18","v":702.23837323507269},{"$f":"'Res-Appliance class'!$B30*'RES S curve-connect'!BN$3+'Res-Appliance class'!$C30*'RES S curve-connect'!BN$8+'Res-Appliance class'!$D30*'RES S curve-connect'!BN$13+'Res-Appliance class'!$E30*'RES S curve-connect'!BN$18","v":707.31639093520926},{"$f":"'Res-Appliance class'!$B30*'RES S curve-connect'!BO$3+'Res-Appliance class'!$C30*'RES S curve-connect'!BO$8+'Res-Appliance class'!$D30*'RES S curve-connect'!BO$13+'Res-Appliance class'!$E30*'RES S curve-connect'!BO$18","v":720.42676054648928},{"$f":"'Res-Appliance class'!$B30*'RES S curve-connect'!BP$3+'Res-Appliance class'!$C30*'RES S curve-connect'!BP$8+'Res-Appliance class'!$D30*'RES S curve-connect'!BP$13+'Res-Appliance class'!$E30*'RES S curve-connect'!BP$18","v":729.50293051219637},{"$f":"'Res-Appliance class'!$B30*'RES S curve-connect'!BQ$3+'Res-Appliance class'!$C30*'RES S curve-connect'!BQ$8+'Res-Appliance class'!$D30*'RES S curve-connect'!BQ$13+'Res-Appliance class'!$E30*'RES S curve-connect'!BQ$18","v":738.56718049134804},{"$f":"'Res-Appliance class'!$B30*'RES S curve-connect'!BR$3+'Res-Appliance class'!$C30*'RES S curve-connect'!BR$8+'Res-Appliance class'!$D30*'RES S curve-connect'!BR$13+'Res-Appliance class'!$E30*'RES S curve-connect'!BR$18","v":743.59737386671827},{"$f":"'Res-Appliance class'!$B30*'RES S curve-connect'!BS$3+'Res-Appliance class'!$C30*'RES S curve-connect'!BS$8+'Res-Appliance class'!$D30*'RES S curve-connect'!BS$13+'Res-Appliance class'!$E30*'RES S curve-connect'!BS$18","v":756.660205242438},{"$f":"'Res-Appliance class'!$B30*'RES S curve-connect'!BT$3+'Res-Appliance class'!$C30*'RES S curve-connect'!BT$8+'Res-Appliance class'!$D30*'RES S curve-connect'!BT$13+'Res-Appliance class'!$E30*'RES S curve-connect'!BT$18","v":765.68912128878128},{"$f":"'Res-Appliance class'!$B30*'RES S curve-connect'!BU$3+'Res-Appliance class'!$C30*'RES S curve-connect'!BU$8+'Res-Appliance class'!$D30*'RES S curve-connect'!BU$13+'Res-Appliance class'!$E30*'RES S curve-connect'!BU$18","v":774.70639990293921},{"$f":"'Res-Appliance class'!$B30*'RES S curve-connect'!BV$3+'Res-Appliance class'!$C30*'RES S curve-connect'!BV$8+'Res-Appliance class'!$D30*'RES S curve-connect'!BV$13+'Res-Appliance class'!$E30*'RES S curve-connect'!BV$18","v":779.68990271695839},{"$f":"'Res-Appliance class'!$B30*'RES S curve-connect'!BW$3+'Res-Appliance class'!$C30*'RES S curve-connect'!BW$8+'Res-Appliance class'!$D30*'RES S curve-connect'!BW$13+'Res-Appliance class'!$E30*'RES S curve-connect'!BW$18","v":792.70632259528691},{"$f":"'Res-Appliance class'!$B30*'RES S curve-connect'!BX$3+'Res-Appliance class'!$C30*'RES S curve-connect'!BX$8+'Res-Appliance class'!$D30*'RES S curve-connect'!BX$13+'Res-Appliance class'!$E30*'RES S curve-connect'!BX$18","v":801.6891044794811},{"$f":"'Res-Appliance class'!$B30*'RES S curve-connect'!BY$3+'Res-Appliance class'!$C30*'RES S curve-connect'!BY$8+'Res-Appliance class'!$D30*'RES S curve-connect'!BY$13+'Res-Appliance class'!$E30*'RES S curve-connect'!BY$18","v":810.6605245489086},{"$f":"'Res-Appliance class'!$B30*'RES S curve-connect'!BZ$3+'Res-Appliance class'!$C30*'RES S curve-connect'!BZ$8+'Res-Appliance class'!$D30*'RES S curve-connect'!BZ$13+'Res-Appliance class'!$E30*'RES S curve-connect'!BZ$18","v":815.59844272862495},{"$f":"'Res-Appliance class'!$B30*'RES S curve-connect'!CA$3+'Res-Appliance class'!$C30*'RES S curve-connect'!CA$8+'Res-Appliance class'!$D30*'RES S curve-connect'!CA$13+'Res-Appliance class'!$E30*'RES S curve-connect'!CA$18","v":828.56955018684857},{"$f":"'Res-Appliance class'!$B30*'RES S curve-connect'!CB$3+'Res-Appliance class'!$C30*'RES S curve-connect'!CB$8+'Res-Appliance class'!$D30*'RES S curve-connect'!CB$13+'Res-Appliance class'!$E30*'RES S curve-connect'!CB$18","v":837.50729017959259},{"$f":"'Res-Appliance class'!$B30*'RES S curve-connect'!CC$3+'Res-Appliance class'!$C30*'RES S curve-connect'!CC$8+'Res-Appliance class'!$D30*'RES S curve-connect'!CC$13+'Res-Appliance class'!$E30*'RES S curve-connect'!CC$18","v":846.43393721130667},{"$f":"'Res-Appliance class'!$B30*'RES S curve-connect'!CD$3+'Res-Appliance class'!$C30*'RES S curve-connect'!CD$8+'Res-Appliance class'!$D30*'RES S curve-connect'!CD$13+'Res-Appliance class'!$E30*'RES S curve-connect'!CD$18","v":708.90199726555579}]
["Casey (C)",null,{"$f":"'Res-Appliance class'!$B31*'RES S curve-connect'!C$3+'Res-Appliance class'!$C31*'RES S curve-connect'!C$8+'Res-Appliance class'!$D31*'RES S curve-connect'!C$13+'Res-Appliance class'!$E31*'RES S curve-connect'!C$18","v":-2750.1490579505162},{"$f":"'Res-Appliance class'!$B31*'RES S curve-connect'!D$3+'Res-Appliance class'!$C31*'RES S curve-connect'!D$8+'Res-Appliance class'!$D31*'RES S curve-connect'!D$13+'Res-Appliance class'!$E31*'RES S curve-connect'!D$18","v":-3392.2615426891543},{"$f":"'Res-Appliance class'!$B31*'RES S curve-connect'!E$3+'Res-Appliance class'!$C31*'RES S curve-connect'!E$8+'Res-Appliance class'!$D31*'RES S curve-connect'!E$13+'Res-Appliance class'!$E31*'RES S curve-connect'!E$18","v":-2791.7335027606182},{"$f":"'Res-Appliance class'!$B31*'RES S curve-connect'!F$3+'Res-Appliance class'!$C31*'RES S curve-connect'!F$8+'Res-Appliance class'!$D31*'RES S curve-connect'!F$13+'Res-Appliance class'!$E31*'RES S curve-connect'!F$18","v":-2598.4376074197248},{"$f":"'Res-Appliance class'!$B31*'RES S curve-connect'!G$3+'Res-Appliance class'!$C31*'RES S curve-connect'!G$8+'Res-Appliance class'!$D31*'RES S curve-connect'!G$13+'Res-Appliance class'!$E31*'RES S curve-connect'!G$18","v":-3930.2102161833282},{"$f":"'Res-Appliance class'!$B31*'RES S curve-connect'!H$3+'Res-Appliance class'!$C31*'RES S curve-connect'!H$8+'Res-Appliance class'!$D31*'RES S curve-connect'!H$13+'Res-Appliance class'!$E31*'RES S curve-connect'!H$18","v":-3967.2247677321125},{"$f":"'Res-Appliance class'!$B31*'RES S curve-connect'!I$3+'Res-Appliance class'!$C31*'RES S curve-connect'!I$8+'Res-Appliance class'!$D31*'RES S curve-connect'!I$13+'Res-Appliance class'!$E31*'RES S curve-connect'!I$18","v":-3421.2698876889654},{"$f":"'Res-Appliance class'!$B31*'RES S curve-connect'!J$3+'Res-Appliance class'!$C31*'RES S curve-connect'!J$8+'Res-Appliance class'!$D31*'RES S curve-connect'!J$13+'Res-Appliance class'!$E31*'RES S curve-connect'!J$18","v":-3745.3208878878299},{"$f":"'Res-Appliance class'!$B31*'RES S curve-connect'!K$3+'Res-Appliance class'!$C31*'RES S curve-connect'!K$8+'Res-Appliance class'!$D31*'RES S curve-connect'!K$13+'Res-Appliance class'!$E31*'RES S curve-connect'!K$18","v":-2777.7859063123883},{"$f":"'Res-Appliance class'!$B31*'RES S curve-connect'!L$3+'Res-Appliance class'!$C31*'RES S curve-connect'!L$8+'Res-Appliance class'!$D31*'RES S curve-connect'!L$13+'Res-Appliance class'!$E31*'RES S curve-connect'!L$18","v":-3225.6292061845802},{"$f":"'Res-Appliance class'!$B31*'RES S curve-connect'!M$3+'Res-Appliance class'!$C31*'RES S curve-connect'!M$8+'Res-Appliance class'!$D31*'RES S curve-connect'!M$13+'Res-Appliance class'!$E31*'RES S curve-connect'!M$18","v":-4034.9808281211508},{"$f":"'Res-Appliance class'!$B31*'RES S curve-connect'!N$3+'Res-Appliance class'!$C31*'RES S curve-connect'!N$8+'Res-Appliance class'!$D31*'RES S curve-connect'!N$13+'Res-Appliance class'!$E31*'RES S curve-connect'!N$18","v":-4118.9953253628128},{"$f":"'Res-Appliance class'!$B31*'RES S curve-connect'!O$3+'Res-Appliance class'!$C31*'RES S curve-connect'!O$8+'Res-Appliance class'!$D31*'RES S curve-connect'!O$13+'Res-Appliance class'!$E31*'RES S curve-connect'!O$18","v":-3424.4668084728469},{"$f":"'Res-Appliance class'!$B31*'RES S curve-connect'!P$3+'Res-Appliance class'!$C31*'RES S curve-connect'!P$8+'Res-Appliance class'!$D31*'RES S curve-connect'!P$13+'Res-Appliance class'!$E31*'RES S curve-connect'!P$18","v":-2872.6054370789352},{"$f":"'Res-Appliance class'!$B31*'RES S curve-connect'!Q$3+'Res-Appliance class'!$C31*'RES S curve-connect'!Q$8+'Res-Appliance class'!$D31*'RES S curve-connect'!Q$13+'Res-Appliance class'!$E31*'RES S curve-connect'!Q$18","v":-2034.2646559629179},{"$f":"'Res-Appliance class'!$B31*'RES S curve-connect'!R$3+'Res-Appliance class'!$C31*'RES S curve-connect'!R$8+'Res-Appliance class'!$D31*'RES S curve-connect'!R$13+'Res-Appliance class'!$E31*'RES S curve-connect'!R$18","v":-1562.6622464667275},{"$f":"'Res-Appliance class'!$B31*'RES S curve-connect'!S$3+'Res-Appliance class'!$C31*'RES S curve-connect'!S$8+'Res-Appliance class'!$D31*'RES S curve-connect'!S$13+'Res-Appliance class'!$E31*'RES S curve-connect'!S$18","v":-808.57144874962955},{"$f":"'Res-Appliance class'!$B31*'RES S curve-connect'!T$3+'Res-Appliance class'!$C31*'RES S curve-connect'!T$8+'Res-Appliance class'!$D31*'RES S curve-connect'!T$13+'Res-Appliance class'!$E31*'RES S curve-connect'!T$18","v":-400.30228569135124},{"$f":"'Res-Appliance class'!$B31*'RES S curve-connect'!U$3+'Res-Appliance class'!$C31*'RES S curve-connect'!U$8+'Res-Appliance class'!$D31*'RES S curve-connect'!U$13+'Res-Appliance class'!$E31*'RES S curve-connect'!U$18","v":65.583498861804856},{"$f":"'Res-Appliance class'!$B31*'RES S curve-connect'!V$3+'Res-Appliance class'!$C31*'RES S curve-connect'!V$8+'Res-Appliance class'!$D31*'RES S curve-connect'!V$13+'Res-Appliance class'!$E31*'RES S curve-connect'!V$18","v":380.42181967298922},{"$f":"'Res-Appliance class'!$B31*'RES S curve-connect'!W$3+'Res-Appliance class'!$C31*'RES S curve-connect'!W$8+'Res-Appliance class'!$D31*'RES S curve-connect'!W$13+'Res-Appliance class'!$E31*'RES S curve-connect'!W$18","v":623.89553994136577},{"$f":"'Res-Appliance class'!$B31*'RES S curve-connect'!X$3+'Res-Appliance class'!$C31*'RES S curve-connect'!X$8+'Res-Appliance class'!$D31*'RES S curve-connect'!X$13+'Res-Appliance class'!$E31*'RES S curve-connect'!X$18","v":1187.7287869810821},{"$f":"'Res-Appliance class'!$B31*'RES S curve-connect'!Y$3+'Res-Appliance class'!$C31*'RES S curve-connect'!Y$8+'Res-Appliance class'!$D31*'RES S curve-connect'!Y$13+'Res-Appliance class'!$E31*'RES S curve-connect'!Y$18","v":1758.1127202125504},{"$f":"'Res-Appliance class'!$B31*'RES S curve-connect'!Z$3+'Res-Appliance class'!$C31*'RES S curve-connect'!Z$8+'Res-Appliance class'!$D31*'RES S curve-connect'!Z$13+'Res-Appliance class'!$E31*'RES S curve-connect'!Z$18","v":2141.349426472686},{"$f":"'Res-Appliance class'!$B31*'RES S curve-connect'!AA$3+'Res-Appliance class'!$C31*'RES S curve-connect'!AA$8+'Res-Appliance class'!$D31*'RES S curve-connect'!AA$13+'Res-Appliance class'!$E31*'RES S curve-connect'!AA$18","v":2524.3960128896911},{"$f":"'Res-Appliance class'!$B31*'RES S curve-connect'!AB$3+'Res-Appliance class'!$C31*'RES S curve-connect'!AB$8+'Res-Appliance class'!$D31*'RES S curve-connect'!AB$13+'Res-Appliance class'!$E31*'RES S curve-connect'!AB$18","v":2828.3602918064062},{"$f":"'Res-Appliance class'!$B31*'RES S curve-connect'!AC$3+'Res-Appliance class'!$C31*'RES S curve-connect'!AC$8+'Res-Appliance class'!$D31*'RES S curve-connect'!AC$13+'Res-Appliance class'!$E31*'RES S curve-connect'!AC$18","v":3120.7662772958643},{"$f":"'Res-Appliance class'!$B31*'RES S curve-connect'!AD$3+'Res-Appliance class'!$C31*'RES S curve-connect'!AD$8+'Res-Appliance class'!$D31*'RES S curve-connect'!AD$13+'Res-Appliance class'!$E31*'RES S curve-connect'!AD$18","v":3388.3121411015304},{"$f":"'Res-Appliance class'!$B31*'RES S curve-connect'!AE$3+'Res-Appliance class'!$C31*'RES S curve-connect'!AE$8+'Res-Appliance class'!$D31*'RES S curve-connect'!AE$13+'Res-Appliance class'!$E31*'RES S curve-connect'!AE$18","v":3669.6265112292194},{"$f":"'Res-Appliance class'!$B31*'RES S curve-connect'!AF$3+'Res-Appliance class'!$C31*'RES S curve-connect'!AF$8+'Res-Appliance class'!$D31*'RES S curve-connect'!AF$13+'Res-Appliance class'!$E31*'RES S curve-connect'!AF$18","v":4036.6336324425738},{"$f":"'Res-Appliance class'!$B31*'RES S curve-connect'!AG$3+'Res-Appliance class'!$C31*'RES S curve-connect'!AG$8+'Res-Appliance class'!$D31*'RES S curve-connect'!AG$13+'Res-Appliance class'!$E31*'RES S curve-connect'!AG$18","v":4295.0331533324843},{"$f":"'Res-Appliance class'!$B31*'RES S curve-connect'!AH$3+'Res-Appliance class'!$C31*'RES S curve-connect'!AH$8+'Res-Appliance class'!$D31*'RES S curve-connect'!AH$13+'Res-Appliance class'!$E31*'RES S curve-connect'!AH$18","v":4659.4329983882244},{"$f":"'Res-Appliance class'!$B31*'RES S curve-connect'!AI$3+'Res-Appliance class'!$C31*'RES S curve-connect'!AI$8+'Res-Appliance class'!$D31*'RES S curve-connect'!AI$13+'Res-Appliance class'!$E31*'RES S curve-connect'!AI$18","v":4986.2729441602414},{"$f":"'Res-Appliance class'!$B31*'RES S curve-connect'!AJ$3+'Res-Appliance class'!$C31*'RES S curve-connect'!AJ$8+'Res-Appliance class'!$D31*'RES S curve-connect'!AJ$13+'Res-Appliance class'!$E31*'RES S curve-connect'!AJ$18","v":5281.3918467920212},{"$f":"'Res-Appliance class'!$B31*'RES S curve-connect'!AK$3+'Res-Appliance class'!$C31*'RES S curve-connect'!AK$8+'Res-Appliance class'!$D31*'RES S curve-connect'!AK$13+'Res-Appliance class'!$E31*'RES S curve-connect'!AK$18","v":5594.6764224585986},{"$f":"'Res-Appliance class'!$B31*'RES S curve-connect'!AL$3+'Res-Appliance class'!$C31*'RES S curve-connect'!AL$8+'Res-Appliance class'!$D31*'RES S curve-connect'!AL$13+'Res-Appliance class'!$E31*'RES S curve-connect'!AL$18","v":4512.1644479397519},{"$f":"'Res-Appliance class'!$B31*'RES S curve-connect'!AM$3+'Res-Appliance class'!$C31*'RES S curve-connect'!AM$8+'Res-Appliance class'!$D31*'RES S curve-connect'!AM$13+'Res-Appliance class'!$E31*'RES S curve-connect'!AM$18","v":4369.3061247022242},{"$f":"'Res-Appliance class'!$B31*'RES S curve-connect'!AN$3+'Res-Appliance class'!$C31*'RES S curve-connect'!AN$8+'Res-Appliance class'!$D31*'RES S curve-connect'!AN$13+'Res-Appliance class'!$E31*'RES S curve-connect'!AN$18","v":4665.2431598863604},{"$f":"'Res-Appliance class'!$B31*'RES S curve-connect'!AO$3+'Res-Appliance class'!$C31*'RES S curve-connect'!AO$8+'Res-Appliance class'!$D31*'RES S curve-connect'!AO$13+'Res-Appliance class'!$E31*'RES S curve-connect'!AO$18","v":5027.8178736697319},{"$f":"'Res-Appliance class'!$B31*'RES S curve-connect'!AP$3+'Res-Appliance class'!$C31*'RES S curve-connect'!AP$8+'Res-Appliance class'!$D31*'RES S curve-connect'!AP$13+'Res-Appliance class'!$E31*'RES S curve-connect'!AP$18","v":5363.1496325440548},{"$f":"'Res-Appliance class'!$B31*'RES S curve-connect'!AQ$3+'Res-Appliance class'!$C31*'RES S curve-connect'!AQ$8+'Res-Appliance class'!$D31*'RES S curve-connect'!AQ$13+'Res-Appliance class'!$E31*'RES S curve-connect'!AQ$18","v":5723.7952296105213},{"$f":"'Res-Appliance class'!$B31*'RES S curve-connect'!AR$3+'Res-Appliance class'!$C31*'RES S curve-connect'!AR$8+'Res-Appliance class'!$D31*'RES S curve-connect'!AR$13+'Res-Appliance class'!$E31*'RES S curve-connect'!AR$18","v":6120.0102873691039},{"$f":"'Res-Appliance class'!$B31*'RES S curve-connect'!AS$3+'Res-Appliance class'!$C31*'RES S curve-connect'!AS$8+'Res-Appliance class'!$D31*'RES S curve-connect'!AS$13+'Res-Appliance class'!$E31*'RES S curve-connect'!AS$18","v":6564.6798992827162},{"$f":"'Res-Appliance class'!$B31*'RES S curve-connect'!AT$3+'Res-Appliance class'!$C31*'RES S curve-connect'!AT$8+'Res-Appliance class'!$D31*'RES S curve-connect'!AT$13+'Res-Appliance class'!$E31*'RES S curve-connect'!AT$18","v":7062.3432072589521},{"$f":"'Res-Appliance class'!$B31*'RES S curve-connect'!AU$3+'Res-Appliance class'!$C31*'RES S curve-connect'!AU$8+'Res-Appliance class'!$D31*'RES S curve-connect'!AU$13+'Res-Appliance class'!$E31*'RES S curve-connect'!AU$18","v":7637.7666901294142},{"$f":"'Res-Appliance class'!$B31*'RES S curve-connect'!AV$3+'Res-Appliance class'!$C31*'RES S curve-connect'!AV$8+'Res-Appliance class'!$D31*'RES S curve-connect'!AV$13+'Res-Appliance class'!$E31*'RES S curve-connect'!AV$18","v":8294.4751110118814},{"$f":"'Res-Appliance class'!$B31*'RES S curve-connect'!AW$3+'Res-Appliance class'!$C31*'RES S curve-connect'!AW$8+'Res-Appliance class'!$D31*'RES S curve-connect'!AW$13+'Res-Appliance class'!$E31*'RES S curve-connect'!AW$18","v":9049.4670510289452},{"$f":"'Res-Appliance class'!$B31*'RES S curve-connect'!AX$3+'Res-Appliance class'!$C31*'RES S curve-connect'!AX$8+'Res-Appliance class'!$D31*'RES S curve-connect'!AX$13+'Res-Appliance class'!$E31*'RES S curve-connect'!AX$18","v":9910.3516292862842},{"$f":"'Res-Appliance class'!$B31*'RES S curve-connect'!AY$3+'Res-Appliance class'!$C31*'RES S curve-connect'!AY$8+'Res-Appliance class'!$D31*'RES S curve-connect'!AY$13+'Res-Appliance class'!$E31*'RES S curve-connect'!AY$18","v":10903.52895136796},{"$f":"'Res-Appliance class'!$B31*'RES S curve-connect'!AZ$3+'Res-Appliance class'!$C31*'RES S curve-connect'!AZ$8+'Res-Appliance class'!$D31*'RES S curve-connect'!AZ$13+'Res-Appliance class'!$E31*'RES S curve-connect'!AZ$18","v":12039.459468929079},{"$f":"'Res-Appliance class'!$B31*'RES S curve-connect'!BA$3+'Res-Appliance class'!$C31*'RES S curve-connect'!BA$8+'Res-Appliance class'!$D31*'RES S curve-connect'!BA$13+'Res-Appliance class'!$E31*'RES S curve-connect'!BA$18","v":13355.370459266731},{"$f":"'Res-Appliance class'!$B31*'RES S curve-connect'!BB$3+'Res-Appliance class'!$C31*'RES S curve-connect'!BB$8+'Res-Appliance class'!$D31*'RES S curve-connect'!BB$13+'Res-Appliance class'!$E31*'RES S curve-connect'!BB$18","v":14893.4804619356},{"$f":"'Res-Appliance class'!$B31*'RES S curve-connect'!BC$3+'Res-Appliance class'!$C31*'RES S curve-connect'!BC$8+'Res-Appliance class'!$D31*'RES S curve-connect'!BC$13+'Res-Appliance class'!$E31*'RES S curve-connect'!BC$18","v":16727.822863996378},{"$f":"'Res-Appliance class'!$B31*'RES S curve-connect'!BD$3+'Res-Appliance class'!$C31*'RES S curve-connect'!BD$8+'Res-Appliance class'!$D31*'RES S curve-connect'!BD$13+'Res-Appliance class'!$E31*'RES S curve-connect'!BD$18","v":18499.250788458015},{"$f":"'Res-Appliance class'!$B31*'RES S curve-connect'!BE$3+'Res-Appliance class'!$C31*'RES S curve-connect'!BE$8+'Res-Appliance class'!$D31*'RES S curve-connect'!BE$13+'Res-Appliance class'!$E31*'RES S curve-connect'!BE$18","v":20118.9688706661},{"$f":"'Res-Appliance class'!$B31*'RES S curve-connect'!BF$3+'Res-Appliance class'!$C31*'RES S curve-connect'!BF$8+'Res-Appliance class'!$D31*'RES S curve-connect'!BF$13+'Res-Appliance class'!$E31*'RES S curve-connect'!BF$18","v":21776.06053575941},{"$f":"'Res-Appliance class'!$B31*'RES S curve-connect'!BG$3+'Res-Appliance class'!$C31*'RES S curve-connect'!BG$8+'Res-Appliance class'!$D31*'RES S curve-connect'!BG$13+'Res-Appliance class'!$E31*'RES S curve-connect'!BG$18","v":23650.815242597986},{"$f":"'Res-Appliance class'!$B31*'RES S curve-connect'!BH$3+'Res-Appliance class'!$C31*'RES S curve-connect'!BH$8+'Res-Appliance class'!$D31*'RES S curve-connect'!BH$13+'Res-Appliance class'!$E31*'RES S curve-connect'!BH$18","v":25876.671446721524},{"$f":"'Res-Appliance class'!$B31*'RES S curve-connect'!BI$3+'Res-Appliance class'!$C31*'RES S curve-connect'!BI$8+'Res-Appliance class'!$D31*'RES S curve-connect'!BI$13+'Res-Appliance class'!$E31*'RES S curve-connect'!BI$18","v":29101.495808478379},{"$f":"'Res-Appliance class'!$B31*'RES S curve-connect'!BJ$3+'Res-Appliance class'!$C31*'RES S curve-connect'!BJ$8+'Res-Appliance class'!$D31*'RES S curve-connect'!BJ$13+'Res-Appliance class'!$E31*'RES S curve-connect'!BJ$18","v":33826.576060112042},{"$f":"'Res-Appliance class'!$B31*'RES S curve-connect'!BK$3+'Res-Appliance class'!$C31*'RES S curve-connect'!BK$8+'Res-Appliance class'!$D31*'RES S curve-connect'!BK$13+'Res-Appliance class'!$E31*'RES S curve-connect'!BK$18","v":40803.009693786866},{"$f":"'Res-Appliance class'!$B31*'RES S curve-connect'!BL$3+'Res-Appliance class'!$C31*'RES S curve-connect'!BL$8+'Res-Appliance class'!$D31*'RES S curve-connect'!BL$13+'Res-Appliance class'!$E31*'RES S curve-connect'!BL$18","v":550.10368151452576},{"$f":"'Res-Appliance class'!$B31*'RES S curve-connect'!BM$3+'Res-Appliance class'!$C31*'RES S curve-connect'!BM$8+'Res-Appliance class'!$D31*'RES S curve-connect'!BM$13+'Res-Appliance class'!$E31*'RES S curve-connect'!BM$18","v":558.9247790035688},{"$f":"'Res-Appliance class'!$B31*'RES S curve-connect'!BN$3+'Res-Appliance class'!$C31*'RES S curve-connect'!BN$8+'Res-Appliance class'!$D31*'RES S curve-connect'!BN$13+'Res-Appliance class'!$E31*'RES S curve-connect'!BN$18","v":563.71151979539741},{"$f":"'Res-Appliance class'!$B31*'RES S curve-connect'!BO$3+'Res-Appliance class'!$C31*'RES S curve-connect'!BO$8+'Res-Appliance class'!$D31*'RES S curve-connect'!BO$13+'Res-Appliance class'!$E31*'RES S curve-connect'!BO$18","v":576.53060075151575},{"$f":"'Res-Appliance class'!$B31*'RES S curve-connect'!BP$3+'Res-Appliance class'!$C31*'RES S curve-connect'!BP$8+'Res-Appliance class'!$D31*'RES S curve-connect'!BP$13+'Res-Appliance class'!$E31*'RES S curve-connect'!BP$18","v":585.31547078414337},{"$f":"'Res-Appliance class'!$B31*'RES S curve-connect'!BQ$3+'Res-Appliance class'!$C31*'RES S curve-connect'!BQ$8+'Res-Appliance class'!$D31*'RES S curve-connect'!BQ$13+'Res-Appliance class'!$E31*'RES S curve-connect'!BQ$18","v":594.08841001709106},{"$f":"'Res-Appliance class'!$B31*'RES S curve-connect'!BR$3+'Res-Appliance class'!$C31*'RES S curve-connect'!BR$8+'Res-Appliance class'!$D31*'RES S curve-connect'!BR$13+'Res-Appliance class'!$E31*'RES S curve-connect'!BR$18","v":598.82728229381166},{"$f":"'Res-Appliance class'!$B31*'RES S curve-connect'!BS$3+'Res-Appliance class'!$C31*'RES S curve-connect'!BS$8+'Res-Appliance class'!$D31*'RES S curve-connect'!BS$13+'Res-Appliance class'!$E31*'RES S curve-connect'!BS$18","v":611.59878267503245},{"$f":"'Res-Appliance class'!$B31*'RES S curve-connect'!BT$3+'Res-Appliance class'!$C31*'RES S curve-connect'!BT$8+'Res-Appliance class'!$D31*'RES S curve-connect'!BT$13+'Res-Appliance class'!$E31*'RES S curve-connect'!BT$18","v":620.33635828356887},{"$f":"'Res-Appliance class'!$B31*'RES S curve-connect'!BU$3+'Res-Appliance class'!$C31*'RES S curve-connect'!BU$8+'Res-Appliance class'!$D31*'RES S curve-connect'!BU$13+'Res-Appliance class'!$E31*'RES S curve-connect'!BU$18","v":629.06228746512897},{"$f":"'Res-Appliance class'!$B31*'RES S curve-connect'!BV$3+'Res-Appliance class'!$C31*'RES S curve-connect'!BV$8+'Res-Appliance class'!$D31*'RES S curve-connect'!BV$13+'Res-Appliance class'!$E31*'RES S curve-connect'!BV$18","v":633.75443229627967},{"$f":"'Res-Appliance class'!$B31*'RES S curve-connect'!BW$3+'Res-Appliance class'!$C31*'RES S curve-connect'!BW$8+'Res-Appliance class'!$D31*'RES S curve-connect'!BW$13+'Res-Appliance class'!$E31*'RES S curve-connect'!BW$18","v":646.4794860820233},{"$f":"'Res-Appliance class'!$B31*'RES S curve-connect'!BX$3+'Res-Appliance class'!$C31*'RES S curve-connect'!BX$8+'Res-Appliance class'!$D31*'RES S curve-connect'!BX$13+'Res-Appliance class'!$E31*'RES S curve-connect'!BX$18","v":655.17089420053094},{"$f":"'Res-Appliance class'!$B31*'RES S curve-connect'!BY$3+'Res-Appliance class'!$C31*'RES S curve-connect'!BY$8+'Res-Appliance class'!$D31*'RES S curve-connect'!BY$13+'Res-Appliance class'!$E31*'RES S curve-connect'!BY$18","v":663.85093326387573},{"$f":"'Res-Appliance class'!$B31*'RES S curve-connect'!BZ$3+'Res-Appliance class'!$C31*'RES S curve-connect'!BZ$8+'Res-Appliance class'!$D31*'RES S curve-connect'!BZ$13+'Res-Appliance class'!$E31*'RES S curve-connect'!BZ$18","v":668.49746362593669},{"$f":"'Res-Appliance class'!$B31*'RES S curve-connect'!CA$3+'Res-Appliance class'!$C31*'RES S curve-connect'!CA$8+'Res-Appliance class'!$D31*'RES S curve-connect'!CA$13+'Res-Appliance class'!$E31*'RES S curve-connect'!CA$18","v":681.17717687990171},{"$f":"'Res-Appliance class'!$B31*'RES S curve-connect'!CB$3+'Res-Appliance class'!$C31*'RES S curve-connect'!CB$8+'Res-Appliance class'!$D31*'RES S curve-connect'!CB$13+'Res-Appliance class'!$E31*'RES S curve-connect'!CB$18","v":689.82351670292815},{"$f":"'Res-Appliance class'!$B31*'RES S curve-connect'!CC$3+'Res-Appliance class'!$C31*'RES S curve-connect'!CC$8+'Res-Appliance class'!$D31*'RES S curve-connect'!CC$13+'Res-Appliance class'!$E31*'RES S curve-connect'!CC$18","v":698.45875801681143},{"$f":"'Res-Appliance class'!$B31*'RES S curve-connect'!CD$3+'Res-Appliance class'!$C31*'RES S curve-connect'!CD$8+'Res-Appliance class'!$D31*'RES S curve-connect'!CD$13+'Res-Appliance class'!$E31*'RES S curve-connect'!CD$18","v":566.36895958998934}]
["Frankston (C)",null,{"$f":"'Res-Appliance class'!$B32*'RES S curve-connect'!C$3+'Res-Appliance class'!$C32*'RES S curve-connect'!C$8+'Res-Appliance class'!$D32*'RES S curve-connect'!C$13+'Res-Appliance class'!$E32*'RES S curve-connect'!C$18","v":-2915.030383623834},{"$f":"'Res-Appliance class'!$B32*'RES S curve-connect'!D$3+'Res-Appliance class'!$C32*'RES S curve-connect'!D$8+'Res-Appliance class'!$D32*'RES S curve-connect'!D$13+'Res-Appliance class'!$E32*'RES S curve-connect'!D$18","v":-3687.7509076082665},{"$f":"'Res-Appliance class'!$B32*'RES S curve-connect'!E$3+'Res-Appliance class'!$C32*'RES S curve-connect'!E$8+'Res-Appliance class'!$D32*'RES S curve-connect'!E$13+'Res-Appliance class'!$E32*'RES S curve-connect'!E$18","v":-2889.3109879506592},{"$f":"'Res-Appliance class'!$B32*'RES S curve-connect'!F$3+'Res-Appliance class'!$C32*'RES S curve-connect'!F$8+'Res-Appliance class'!$D32*'RES S curve-connect'!F$13+'Res-Appliance class'!$E32*'RES S curve-connect'!F$18","v":-2648.5853500392068},{"$f":"'Res-Appliance class'!$B32*'RES S curve-connect'!G$3+'Res-Appliance class'!$C32*'RES S curve-connect'!G$8+'Res-Appliance class'!$D32*'RES S curve-connect'!G$13+'Res-Appliance class'!$E32*'RES S curve-connect'!G$18","v":-4504.8507355688025},{"$f":"'Res-Appliance class'!$B32*'RES S curve-connect'!H$3+'Res-Appliance class'!$C32*'RES S curve-connect'!H$8+'Res-Appliance class'!$D32*'RES S curve-connect'!H$13+'Res-Appliance class'!$E32*'RES S curve-connect'!H$18","v":-4506.5900978467462},{"$f":"'Res-Appliance class'!$B32*'RES S curve-connect'!I$3+'Res-Appliance class'!$C32*'RES S curve-connect'!I$8+'Res-Appliance class'!$D32*'RES S curve-connect'!I$13+'Res-Appliance class'!$E32*'RES S curve-connect'!I$18","v":-3827.3879392477597},{"$f":"'Res-Appliance class'!$B32*'RES S curve-connect'!J$3+'Res-Appliance class'!$C32*'RES S curve-connect'!J$8+'Res-Appliance class'!$D32*'RES S curve-connect'!J$13+'Res-Appliance class'!$E32*'RES S curve-connect'!J$18","v":-4114.1605304763452},{"$f":"'Res-Appliance class'!$B32*'RES S curve-connect'!K$3+'Res-Appliance class'!$C32*'RES S curve-connect'!K$8+'Res-Appliance class'!$D32*'RES S curve-connect'!K$13+'Res-Appliance class'!$E32*'RES S curve-connect'!K$18","v":-2933.5439174381304},{"$f":"'Res-Appliance class'!$B32*'RES S curve-connect'!L$3+'Res-Appliance class'!$C32*'RES S curve-connect'!L$8+'Res-Appliance class'!$D32*'RES S curve-connect'!L$13+'Res-Appliance class'!$E32*'RES S curve-connect'!L$18","v":-3477.7891994297661},{"$f":"'Res-Appliance class'!$B32*'RES S curve-connect'!M$3+'Res-Appliance class'!$C32*'RES S curve-connect'!M$8+'Res-Appliance class'!$D32*'RES S curve-connect'!M$13+'Res-Appliance class'!$E32*'RES S curve-connect'!M$18","v":-4508.9829259233411},{"$f":"'Res-Appliance class'!$B32*'RES S curve-connect'!N$3+'Res-Appliance class'!$C32*'RES S curve-connect'!N$8+'Res-Appliance class'!$D32*'RES S curve-connect'!N$13+'Res-Appliance class'!$E32*'RES S curve-connect'!N$18","v":-4618.2578289871681},{"$f":"'Res-Appliance class'!$B32*'RES S curve-connect'!O$3+'Res-Appliance class'!$C32*'RES S curve-connect'!O$8+'Res-Appliance class'!$D32*'RES S curve-connect'!O$13+'Res-Appliance class'!$E32*'RES S curve-connect'!O$18","v":-3767.9855273199023},{"$f":"'Res-Appliance class'!$B32*'RES S curve-connect'!P$3+'Res-Appliance class'!$C32*'RES S curve-connect'!P$8+'Res-Appliance class'!$D32*'RES S curve-connect'!P$13+'Res-Appliance class'!$E32*'RES S curve-connect'!P$18","v":-3087.7518058863407},{"$f":"'Res-Appliance class'!$B32*'RES S curve-connect'!Q$3+'Res-Appliance class'!$C32*'RES S curve-connect'!Q$8+'Res-Appliance class'!$D32*'RES S curve-connect'!Q$13+'Res-Appliance class'!$E32*'RES S curve-connect'!Q$18","v":-2052.3386933259649},{"$f":"'Res-Appliance class'!$B32*'RES S curve-connect'!R$3+'Res-Appliance class'!$C32*'RES S curve-connect'!R$8+'Res-Appliance class'!$D32*'RES S curve-connect'!R$13+'Res-Appliance class'!$E32*'RES S curve-connect'!R$18","v":-1470.786369885778},{"$f":"'Res-Appliance class'!$B32*'RES S curve-connect'!S$3+'Res-Appliance class'!$C32*'RES S curve-connect'!S$8+'Res-Appliance class'!$D32*'RES S curve-connect'!S$13+'Res-Appliance class'!$E32*'RES S curve-connect'!S$18","v":-545.0419600221901},{"$f":"'Res-Appliance class'!$B32*'RES S curve-connect'!T$3+'Res-Appliance class'!$C32*'RES S curve-connect'!T$8+'Res-Appliance class'!$D32*'RES S curve-connect'!T$13+'Res-Appliance class'!$E32*'RES S curve-connect'!T$18","v":-32.21131666042902},{"$f":"'Res-Appliance class'!$B32*'RES S curve-connect'!U$3+'Res-Appliance class'!$C32*'RES S curve-connect'!U$8+'Res-Appliance class'!$D32*'RES S curve-connect'!U$13+'Res-Appliance class'!$E32*'RES S curve-connect'!U$18","v":543.45876873448287},{"$f":"'Res-Appliance class'!$B32*'RES S curve-connect'!V$3+'Res-Appliance class'!$C32*'RES S curve-connect'!V$8+'Res-Appliance class'!$D32*'RES S curve-connect'!V$13+'Res-Appliance class'!$E32*'RES S curve-connect'!V$18","v":926.96556999365339},{"$f":"'Res-Appliance class'!$B32*'RES S curve-connect'!W$3+'Res-Appliance class'!$C32*'RES S curve-connect'!W$8+'Res-Appliance class'!$D32*'RES S curve-connect'!W$13+'Res-Appliance class'!$E32*'RES S curve-connect'!W$18","v":1223.6857432398635},{"$f":"'Res-Appliance class'!$B32*'RES S curve-connect'!X$3+'Res-Appliance class'!$C32*'RES S curve-connect'!X$8+'Res-Appliance class'!$D32*'RES S curve-connect'!X$13+'Res-Appliance class'!$E32*'RES S curve-connect'!X$18","v":1924.0313981484092},{"$f":"'Res-Appliance class'!$B32*'RES S curve-connect'!Y$3+'Res-Appliance class'!$C32*'RES S curve-connect'!Y$8+'Res-Appliance class'!$D32*'RES S curve-connect'!Y$13+'Res-Appliance class'!$E32*'RES S curve-connect'!Y$18","v":2631.0230271061664},{"$f":"'Res-Appliance class'!$B32*'RES S curve-connect'!Z$3+'Res-Appliance class'!$C32*'RES S curve-connect'!Z$8+'Res-Appliance class'!$D32*'RES S curve-connect'!Z$13+'Res-Appliance class'!$E32*'RES S curve-connect'!Z$18","v":3103.6044669251119},{"$f":"'Res-Appliance class'!$B32*'RES S curve-connect'!AA$3+'Res-Appliance class'!$C32*'RES S curve-connect'!AA$8+'Res-Appliance class'!$D32*'RES S curve-connect'!AA$13+'Res-Appliance class'!$E32*'RES S curve-connect'!AA$18","v":3574.1974398121392},{"$f":"'Res-Appliance class'!$B32*'RES S curve-connect'!AB$3+'Res-Appliance class'!$C32*'RES S curve-connect'!AB$8+'Res-Appliance class'!$D32*'RES S curve-connect'!AB$13+'Res-Appliance class'!$E32*'RES S curve-connect'!AB$18","v":3947.0751389964385},{"$f":"'Res-Appliance class'!$B32*'RES S curve-connect'!AC$3+'Res-Appliance class'!$C32*'RES S curve-connect'!AC$8+'Res-Appliance class'!$D32*'RES S curve-connect'!AC$13+'Res-Appliance class'!$E32*'RES S curve-connect'!AC$18","v":4304.548738671223},{"$f":"'Res-Appliance class'!$B32*'RES S curve-connect'!AD$3+'Res-Appliance class'!$C32*'RES S curve-connect'!AD$8+'Res-Appliance class'!$D32*'RES S curve-connect'!AD$13+'Res-Appliance class'!$E32*'RES S curve-connect'!AD$18","v":4631.2956133010666},{"$f":"'Res-Appliance class'!$B32*'RES S curve-connect'!AE$3+'Res-Appliance class'!$C32*'RES S curve-connect'!AE$8+'Res-Appliance class'!$D32*'RES S curve-connect'!AE$13+'Res-Appliance class'!$E32*'RES S curve-connect'!AE$18","v":4972.6354225503155},{"$f":"'Res-Appliance class'!$B32*'RES S curve-connect'!AF$3+'Res-Appliance class'!$C32*'RES S curve-connect'!AF$8+'Res-Appliance class'!$D32*'RES S curve-connect'!AF$13+'Res-Appliance class'!$E32*'RES S curve-connect'!AF$18","v":5422.197678301538},{"$f":"'Res-Appliance class'!$B32*'RES S curve-connect'!AG$3+'Res-Appliance class'!$C32*'RES S curve-connect'!AG$8+'Res-Appliance class'!$D32*'RES S curve-connect'!AG$13+'Res-Appliance class'!$E32*'RES S curve-connect'!AG$18","v":5740.1742326696512},{"$f":"'Res-Appliance class'!$B32*'RES S curve-connect'!AH$3+'Res-Appliance class'!$C32*'RES S curve-connect'!AH$8+'Res-Appliance class'!$D32*'RES S curve-connect'!AH$13+'Res-Appliance class'!$E32*'RES S curve-connect'!AH$18","v":6193.5676509501382},{"$f":"'Res-Appliance class'!$B32*'RES S curve-connect'!AI$3+'Res-Appliance class'!$C32*'RES S curve-connect'!AI$8+'Res-Appliance class'!$D32*'RES S curve-connect'!AI$13+'Res-Appliance class'!$E32*'RES S curve-connect'!AI$18","v":6595.7488759038533},{"$f":"'Res-Appliance class'!$B32*'RES S curve-connect'!AJ$3+'Res-Appliance class'!$C32*'RES S curve-connect'!AJ$8+'Res-Appliance class'!$D32*'RES S curve-connect'!AJ$13+'Res-Appliance class'!$E32*'RES S curve-connect'!AJ$18","v":6959.8136690846877},{"$f":"'Res-Appliance class'!$B32*'RES S curve-connect'!AK$3+'Res-Appliance class'!$C32*'RES S curve-connect'!AK$8+'Res-Appliance class'!$D32*'RES S curve-connect'!AK$13+'Res-Appliance class'!$E32*'RES S curve-connect'!AK$18","v":7346.1399607342501},{"$f":"'Res-Appliance class'!$B32*'RES S curve-connect'!AL$3+'Res-Appliance class'!$C32*'RES S curve-connect'!AL$8+'Res-Appliance class'!$D32*'RES S curve-connect'!AL$13+'Res-Appliance class'!$E32*'RES S curve-connect'!AL$18","v":6022.557779543773},{"$f":"'Res-Appliance class'!$B32*'RES S curve-connect'!AM$3+'Res-Appliance class'!$C32*'RES S curve-connect'!AM$8+'Res-Appliance class'!$D32*'RES S curve-connect'!AM$13+'Res-Appliance class'!$E32*'RES S curve-connect'!AM$18","v":5840.9966808410545},{"$f":"'Res-Appliance class'!$B32*'RES S curve-connect'!AN$3+'Res-Appliance class'!$C32*'RES S curve-connect'!AN$8+'Res-Appliance class'!$D32*'RES S curve-connect'!AN$13+'Res-Appliance class'!$E32*'RES S curve-connect'!AN$18","v":6202.4604459034081},{"$f":"'Res-Appliance class'!$B32*'RES S curve-connect'!AO$3+'Res-Appliance class'!$C32*'RES S curve-connect'!AO$8+'Res-Appliance class'!$D32*'RES S curve-connect'!AO$13+'Res-Appliance class'!$E32*'RES S curve-connect'!AO$18","v":6648.6313493214384},{"$f":"'Res-Appliance class'!$B32*'RES S curve-connect'!AP$3+'Res-Appliance class'!$C32*'RES S curve-connect'!AP$8+'Res-Appliance class'!$D32*'RES S curve-connect'!AP$13+'Res-Appliance class'!$E32*'RES S curve-connect'!AP$18","v":7063.2082152700341},{"$f":"'Res-Appliance class'!$B32*'RES S curve-connect'!AQ$3+'Res-Appliance class'!$C32*'RES S curve-connect'!AQ$8+'Res-Appliance class'!$D32*'RES S curve-connect'!AQ$13+'Res-Appliance class'!$E32*'RES S curve-connect'!AQ$18","v":7507.1247234636558},{"$f":"'Res-Appliance class'!$B32*'RES S curve-connect'!AR$3+'Res-Appliance class'!$C32*'RES S curve-connect'!AR$8+'Res-Appliance class'!$D32*'RES S curve-connect'!AR$13+'Res-Appliance class'!$E32*'RES S curve-connect'!AR$18","v":7995.9868245815378},{"$f":"'Res-Appliance class'!$B32*'RES S curve-connect'!AS$3+'Res-Appliance class'!$C32*'RES S curve-connect'!AS$8+'Res-Appliance class'!$D32*'RES S curve-connect'!AS$13+'Res-Appliance class'!$E32*'RES S curve-connect'!AS$18","v":8544.9482655117154},{"$f":"'Res-Appliance class'!$B32*'RES S curve-connect'!AT$3+'Res-Appliance class'!$C32*'RES S curve-connect'!AT$8+'Res-Appliance class'!$D32*'RES S curve-connect'!AT$13+'Res-Appliance class'!$E32*'RES S curve-connect'!AT$18","v":9160.6738996591121},{"$f":"'Res-Appliance class'!$B32*'RES S curve-connect'!AU$3+'Res-Appliance class'!$C32*'RES S curve-connect'!AU$8+'Res-Appliance class'!$D32*'RES S curve-connect'!AU$13+'Res-Appliance class'!$E32*'RES S curve-connect'!AU$18","v":9871.0283826469404},{"$f":"'Res-Appliance class'!$B32*'RES S curve-connect'!AV$3+'Res-Appliance class'!$C32*'RES S curve-connect'!AV$8+'Res-Appliance class'!$D32*'RES S curve-connect'!AV$13+'Res-Appliance class'!$E32*'RES S curve-connect'!AV$18","v":10683.389291344478},{"$f":"'Res-Appliance class'!$B32*'RES S curve-connect'!AW$3+'Res-Appliance class'!$C32*'RES S curve-connect'!AW$8+'Res-Appliance class'!$D32*'RES S curve-connect'!AW$13+'Res-Appliance class'!$E32*'RES S curve-connect'!AW$18","v":11618.123345667209},{"$f":"'Res-Appliance class'!$B32*'RES S curve-connect'!AX$3+'Res-Appliance class'!$C32*'RES S curve-connect'!AX$8+'Res-Appliance class'!$D32*'RES S curve-connect'!AX$13+'Res-Appliance class'!$E32*'RES S curve-connect'!AX$18","v":12685.970946366175},{"$f":"'Res-Appliance class'!$B32*'RES S curve-connect'!AY$3+'Res-Appliance class'!$C32*'RES S curve-connect'!AY$8+'Res-Appliance class'!$D32*'RES S curve-connect'!AY$13+'Res-Appliance class'!$E32*'RES S curve-connect'!AY$18","v":13917.140674086628},{"$f":"'Res-Appliance class'!$B32*'RES S curve-connect'!AZ$3+'Res-Appliance class'!$C32*'RES S curve-connect'!AZ$8+'Res-Appliance class'!$D32*'RES S curve-connect'!AZ$13+'Res-Appliance class'!$E32*'RES S curve-connect'!AZ$18","v":15327.913970606598},{"$f":"'Res-Appliance class'!$B32*'RES S curve-connect'!BA$3+'Res-Appliance class'!$C32*'RES S curve-connect'!BA$8+'Res-Appliance class'!$D32*'RES S curve-connect'!BA$13+'Res-Appliance class'!$E32*'RES S curve-connect'!BA$18","v":16964.031606990236},{"$f":"'Res-Appliance class'!$B32*'RES S curve-connect'!BB$3+'Res-Appliance class'!$C32*'RES S curve-connect'!BB$8+'Res-Appliance class'!$D32*'RES S curve-connect'!BB$13+'Res-Appliance class'!$E32*'RES S curve-connect'!BB$18","v":18879.615626309154},{"$f":"'Res-Appliance class'!$B32*'RES S curve-connect'!BC$3+'Res-Appliance class'!$C32*'RES S curve-connect'!BC$8+'Res-Appliance class'!$D32*'RES S curve-connect'!BC$13+'Res-Appliance class'!$E32*'RES S curve-connect'!BC$18","v":21164.731816507181},{"$f":"'Res-Appliance class'!$B32*'RES S curve-connect'!BD$3+'Res-Appliance class'!$C32*'RES S curve-connect'!BD$8+'Res-Appliance class'!$D32*'RES S curve-connect'!BD$13+'Res-Appliance class'!$E32*'RES S curve-connect'!BD$18","v":23379.660075333963},{"$f":"'Res-Appliance class'!$B32*'RES S curve-connect'!BE$3+'Res-Appliance class'!$C32*'RES S curve-connect'!BE$8+'Res-Appliance class'!$D32*'RES S curve-connect'!BE$13+'Res-Appliance class'!$E32*'RES S curve-connect'!BE$18","v":25407.620859981984},{"$f":"'Res-Appliance class'!$B32*'RES S curve-connect'!BF$3+'Res-Appliance class'!$C32*'RES S curve-connect'!BF$8+'Res-Appliance class'!$D32*'RES S curve-connect'!BF$13+'Res-Appliance class'!$E32*'RES S curve-connect'!BF$18","v":27481.56947972277},{"$f":"'Res-Appliance class'!$B32*'RES S curve-connect'!BG$3+'Res-Appliance class'!$C32*'RES S curve-connect'!BG$8+'Res-Appliance class'!$D32*'RES S curve-connect'!BG$13+'Res-Appliance class'!$E32*'RES S curve-connect'!BG$18","v":29824.869459438785},{"$f":"'Res-Appliance class'!$B32*'RES S curve-connect'!BH$3+'Res-Appliance class'!$C32*'RES S curve-connect'!BH$8+'Res-Appliance class'!$D32*'RES S curve-connect'!BH$13+'Res-Appliance class'!$E32*'RES S curve-connect'!BH$18","v":32608.887556206726},{"$f":"'Res-Appliance class'!$B32*'RES S curve-connect'!BI$3+'Res-Appliance class'!$C32*'RES S curve-connect'!BI$8+'Res-Appliance class'!$D32*'RES S curve-connect'!BI$13+'Res-Appliance class'!$E32*'RES S curve-connect'!BI$18","v":36640.514064909374},{"$f":"'Res-Appliance class'!$B32*'RES S curve-connect'!BJ$3+'Res-Appliance class'!$C32*'RES S curve-connect'!BJ$8+'Res-Appliance class'!$D32*'RES S curve-connect'!BJ$13+'Res-Appliance class'!$E32*'RES S curve-connect'!BJ$18","v":42557.251109055003},{"$f":"'Res-Appliance class'!$B32*'RES S curve-connect'!BK$3+'Res-Appliance class'!$C32*'RES S curve-connect'!BK$8+'Res-Appliance class'!$D32*'RES S curve-connect'!BK$13+'Res-Appliance class'!$E32*'RES S curve-connect'!BK$18","v":51307.119030251153},{"$f":"'Res-Appliance class'!$B32*'RES S curve-connect'!BL$3+'Res-Appliance class'!$C32*'RES S curve-connect'!BL$8+'Res-Appliance class'!$D32*'RES S curve-connect'!BL$13+'Res-Appliance class'!$E32*'RES S curve-connect'!BL$18","v":1163.8277377321795},{"$f":"'Res-Appliance class'!$B32*'RES S curve-connect'!BM$3+'Res-Appliance class'!$C32*'RES S curve-connect'!BM$8+'Res-Appliance class'!$D32*'RES S curve-connect'!BM$13+'Res-Appliance class'!$E32*'RES S curve-connect'!BM$18","v":1174.6484877601972},{"$f":"'Res-Appliance class'!$B32*'RES S curve-connect'!BN$3+'Res-Appliance class'!$C32*'RES S curve-connect'!BN$8+'Res-Appliance class'!$D32*'RES S curve-connect'!BN$13+'Res-Appliance class'!$E32*'RES S curve-connect'!BN$18","v":1181.4339718970093},{"$f":"'Res-Appliance class'!$B32*'RES S curve-connect'!BO$3+'Res-Appliance class'!$C32*'RES S curve-connect'!BO$8+'Res-Appliance class'!$D32*'RES S curve-connect'!BO$13+'Res-Appliance class'!$E32*'RES S curve-connect'!BO$18","v":1196.2508907621529},{"$f":"'Res-Appliance class'!$B32*'RES S curve-connect'!BP$3+'Res-Appliance class'!$C32*'RES S curve-connect'!BP$8+'Res-Appliance class'!$D32*'RES S curve-connect'!BP$13+'Res-Appliance class'!$E32*'RES S curve-connect'!BP$18","v":1207.0326970078033},{"$f":"'Res-Appliance class'!$B32*'RES S curve-connect'!BQ$3+'Res-Appliance class'!$C32*'RES S curve-connect'!BQ$8+'Res-Appliance class'!$D32*'RES S curve-connect'!BQ$13+'Res-Appliance class'!$E32*'RES S curve-connect'!BQ$18","v":1217.8016744797503},{"$f":"'Res-Appliance class'!$B32*'RES S curve-connect'!BR$3+'Res-Appliance class'!$C32*'RES S curve-connect'!BR$8+'Res-Appliance class'!$D32*'RES S curve-connect'!BR$13+'Res-Appliance class'!$E32*'RES S curve-connect'!BR$18","v":1224.5356907255484},{"$f":"'Res-Appliance class'!$B32*'RES S curve-connect'!BS$3+'Res-Appliance class'!$C32*'RES S curve-connect'!BS$8+'Res-Appliance class'!$D32*'RES S curve-connect'!BS$13+'Res-Appliance class'!$E32*'RES S curve-connect'!BS$18","v":1239.301444492243},{"$f":"'Res-Appliance class'!$B32*'RES S curve-connect'!BT$3+'Res-Appliance class'!$C32*'RES S curve-connect'!BT$8+'Res-Appliance class'!$D32*'RES S curve-connect'!BT$13+'Res-Appliance class'!$E32*'RES S curve-connect'!BT$18","v":1250.0323865712833},{"$f":"'Res-Appliance class'!$B32*'RES S curve-connect'!BU$3+'Res-Appliance class'!$C32*'RES S curve-connect'!BU$8+'Res-Appliance class'!$D32*'RES S curve-connect'!BU$13+'Res-Appliance class'!$E32*'RES S curve-connect'!BU$18","v":1260.750798959423},{"$f":"'Res-Appliance class'!$B32*'RES S curve-connect'!BV$3+'Res-Appliance class'!$C32*'RES S curve-connect'!BV$8+'Res-Appliance class'!$D32*'RES S curve-connect'!BV$13+'Res-Appliance class'!$E32*'RES S curve-connect'!BV$18","v":1267.4345473667802},{"$f":"'Res-Appliance class'!$B32*'RES S curve-connect'!BW$3+'Res-Appliance class'!$C32*'RES S curve-connect'!BW$8+'Res-Appliance class'!$D32*'RES S curve-connect'!BW$13+'Res-Appliance class'!$E32*'RES S curve-connect'!BW$18","v":1282.150328714509},{"$f":"'Res-Appliance class'!$B32*'RES S curve-connect'!BX$3+'Res-Appliance class'!$C32*'RES S curve-connect'!BX$8+'Res-Appliance class'!$D32*'RES S curve-connect'!BX$13+'Res-Appliance class'!$E32*'RES S curve-connect'!BX$18","v":1292.8315919796294},{"$f":"'Res-Appliance class'!$B32*'RES S curve-connect'!BY$3+'Res-Appliance class'!$C32*'RES S curve-connect'!BY$8+'Res-Appliance class'!$D32*'RES S curve-connect'!BY$13+'Res-Appliance class'!$E32*'RES S curve-connect'!BY$18","v":1303.500617355852},{"$f":"'Res-Appliance class'!$B32*'RES S curve-connect'!BZ$3+'Res-Appliance class'!$C32*'RES S curve-connect'!BZ$8+'Res-Appliance class'!$D32*'RES S curve-connect'!BZ$13+'Res-Appliance class'!$E32*'RES S curve-connect'!BZ$18","v":1310.1352687615761},{"$f":"'Res-Appliance class'!$B32*'RES S curve-connect'!CA$3+'Res-Appliance class'!$C32*'RES S curve-connect'!CA$8+'Res-Appliance class'!$D32*'RES S curve-connect'!CA$13+'Res-Appliance class'!$E32*'RES S curve-connect'!CA$18","v":1324.8022413374867},{"$f":"'Res-Appliance class'!$B32*'RES S curve-connect'!CB$3+'Res-Appliance class'!$C32*'RES S curve-connect'!CB$8+'Res-Appliance class'!$D32*'RES S curve-connect'!CB$13+'Res-Appliance class'!$E32*'RES S curve-connect'!CB$18","v":1335.4349822913048},{"$f":"'Res-Appliance class'!$B32*'RES S curve-connect'!CC$3+'Res-Appliance class'!$C32*'RES S curve-connect'!CC$8+'Res-Appliance class'!$D32*'RES S curve-connect'!CC$13+'Res-Appliance class'!$E32*'RES S curve-connect'!CC$18","v":1346.0557700585484},{"$f":"'Res-Appliance class'!$B32*'RES S curve-connect'!CD$3+'Res-Appliance class'!$C32*'RES S curve-connect'!CD$8+'Res-Appliance class'!$D32*'RES S curve-connect'!CD$13+'Res-Appliance class'!$E32*'RES S curve-connect'!CD$18","v":1179.1206613462402}]
["Glen Eira (C)",null,{"$f":"'Res-Appliance class'!$B33*'RES S curve-connect'!C$3+'Res-Appliance class'!$C33*'RES S curve-connect'!C$8+'Res-Appliance class'!$D33*'RES S curve-connect'!C$13+'Res-Appliance class'!$E33*'RES S curve-connect'!C$18","v":-2420.2663529859519},{"$f":"'Res-Appliance class'!$B33*'RES S curve-connect'!D$3+'Res-Appliance class'!$C33*'RES S curve-connect'!D$8+'Res-Appliance class'!$D33*'RES S curve-connect'!D$13+'Res-Appliance class'!$E33*'RES S curve-connect'!D$18","v":-2990.1469888643642},{"$f":"'Res-Appliance class'!$B33*'RES S curve-connect'!E$3+'Res-Appliance class'!$C33*'RES S curve-connect'!E$8+'Res-Appliance class'!$D33*'RES S curve-connect'!E$13+'Res-Appliance class'!$E33*'RES S curve-connect'!E$18","v":-2480.9941062836724},{"$f":"'Res-Appliance class'!$B33*'RES S curve-connect'!F$3+'Res-Appliance class'!$C33*'RES S curve-connect'!F$8+'Res-Appliance class'!$D33*'RES S curve-connect'!F$13+'Res-Appliance class'!$E33*'RES S curve-connect'!F$18","v":-2313.5816504202658},{"$f":"'Res-Appliance class'!$B33*'RES S curve-connect'!G$3+'Res-Appliance class'!$C33*'RES S curve-connect'!G$8+'Res-Appliance class'!$D33*'RES S curve-connect'!G$13+'Res-Appliance class'!$E33*'RES S curve-connect'!G$18","v":-3449.2956441658002},{"$f":"'Res-Appliance class'!$B33*'RES S curve-connect'!H$3+'Res-Appliance class'!$C33*'RES S curve-connect'!H$8+'Res-Appliance class'!$D33*'RES S curve-connect'!H$13+'Res-Appliance class'!$E33*'RES S curve-connect'!H$18","v":-3481.4094161658231},{"$f":"'Res-Appliance class'!$B33*'RES S curve-connect'!I$3+'Res-Appliance class'!$C33*'RES S curve-connect'!I$8+'Res-Appliance class'!$D33*'RES S curve-connect'!I$13+'Res-Appliance class'!$E33*'RES S curve-connect'!I$18","v":-3002.6224044438582},{"$f":"'Res-Appliance class'!$B33*'RES S curve-connect'!J$3+'Res-Appliance class'!$C33*'RES S curve-connect'!J$8+'Res-Appliance class'!$D33*'RES S curve-connect'!J$13+'Res-Appliance class'!$E33*'RES S curve-connect'!J$18","v":-3310.2712065101941},{"$f":"'Res-Appliance class'!$B33*'RES S curve-connect'!K$3+'Res-Appliance class'!$C33*'RES S curve-connect'!K$8+'Res-Appliance class'!$D33*'RES S curve-connect'!K$13+'Res-Appliance class'!$E33*'RES S curve-connect'!K$18","v":-2455.4699716386249},{"$f":"'Res-Appliance class'!$B33*'RES S curve-connect'!L$3+'Res-Appliance class'!$C33*'RES S curve-connect'!L$8+'Res-Appliance class'!$D33*'RES S curve-connect'!L$13+'Res-Appliance class'!$E33*'RES S curve-connect'!L$18","v":-2852.5969169345549},{"$f":"'Res-Appliance class'!$B33*'RES S curve-connect'!M$3+'Res-Appliance class'!$C33*'RES S curve-connect'!M$8+'Res-Appliance class'!$D33*'RES S curve-connect'!M$13+'Res-Appliance class'!$E33*'RES S curve-connect'!M$18","v":-3556.8093256820925},{"$f":"'Res-Appliance class'!$B33*'RES S curve-connect'!N$3+'Res-Appliance class'!$C33*'RES S curve-connect'!N$8+'Res-Appliance class'!$D33*'RES S curve-connect'!N$13+'Res-Appliance class'!$E33*'RES S curve-connect'!N$18","v":-3630.5261280737241},{"$f":"'Res-Appliance class'!$B33*'RES S curve-connect'!O$3+'Res-Appliance class'!$C33*'RES S curve-connect'!O$8+'Res-Appliance class'!$D33*'RES S curve-connect'!O$13+'Res-Appliance class'!$E33*'RES S curve-connect'!O$18","v":-3016.9119984456811},{"$f":"'Res-Appliance class'!$B33*'RES S curve-connect'!P$3+'Res-Appliance class'!$C33*'RES S curve-connect'!P$8+'Res-Appliance class'!$D33*'RES S curve-connect'!P$13+'Res-Appliance class'!$E33*'RES S curve-connect'!P$18","v":-2531.0206139116285},{"$f":"'Res-Appliance class'!$B33*'RES S curve-connect'!Q$3+'Res-Appliance class'!$C33*'RES S curve-connect'!Q$8+'Res-Appliance class'!$D33*'RES S curve-connect'!Q$13+'Res-Appliance class'!$E33*'RES S curve-connect'!Q$18","v":-1792.9275421625266},{"$f":"'Res-Appliance class'!$B33*'RES S curve-connect'!R$3+'Res-Appliance class'!$C33*'RES S curve-connect'!R$8+'Res-Appliance class'!$D33*'RES S curve-connect'!R$13+'Res-Appliance class'!$E33*'RES S curve-connect'!R$18","v":-1378.0174956404667},{"$f":"'Res-Appliance class'!$B33*'RES S curve-connect'!S$3+'Res-Appliance class'!$C33*'RES S curve-connect'!S$8+'Res-Appliance class'!$D33*'RES S curve-connect'!S$13+'Res-Appliance class'!$E33*'RES S curve-connect'!S$18","v":-711.14079886715103},{"$f":"'Res-Appliance class'!$B33*'RES S curve-connect'!T$3+'Res-Appliance class'!$C33*'RES S curve-connect'!T$8+'Res-Appliance class'!$D33*'RES S curve-connect'!T$13+'Res-Appliance class'!$E33*'RES S curve-connect'!T$18","v":-357.30870425916845},{"$f":"'Res-Appliance class'!$B33*'RES S curve-connect'!U$3+'Res-Appliance class'!$C33*'RES S curve-connect'!U$8+'Res-Appliance class'!$D33*'RES S curve-connect'!U$13+'Res-Appliance class'!$E33*'RES S curve-connect'!U$18","v":51.403681457640857},{"$f":"'Res-Appliance class'!$B33*'RES S curve-connect'!V$3+'Res-Appliance class'!$C33*'RES S curve-connect'!V$8+'Res-Appliance class'!$D33*'RES S curve-connect'!V$13+'Res-Appliance class'!$E33*'RES S curve-connect'!V$18","v":329.09566314405026},{"$f":"'Res-Appliance class'!$B33*'RES S curve-connect'!W$3+'Res-Appliance class'!$C33*'RES S curve-connect'!W$8+'Res-Appliance class'!$D33*'RES S curve-connect'!W$13+'Res-Appliance class'!$E33*'RES S curve-connect'!W$18","v":543.98723107271303},{"$f":"'Res-Appliance class'!$B33*'RES S curve-connect'!X$3+'Res-Appliance class'!$C33*'RES S curve-connect'!X$8+'Res-Appliance class'!$D33*'RES S curve-connect'!X$13+'Res-Appliance class'!$E33*'RES S curve-connect'!X$18","v":1038.3230655825691},{"$f":"'Res-Appliance class'!$B33*'RES S curve-connect'!Y$3+'Res-Appliance class'!$C33*'RES S curve-connect'!Y$8+'Res-Appliance class'!$D33*'RES S curve-connect'!Y$13+'Res-Appliance class'!$E33*'RES S curve-connect'!Y$18","v":1539.138847879371},{"$f":"'Res-Appliance class'!$B33*'RES S curve-connect'!Z$3+'Res-Appliance class'!$C33*'RES S curve-connect'!Z$8+'Res-Appliance class'!$D33*'RES S curve-connect'!Z$13+'Res-Appliance class'!$E33*'RES S curve-connect'!Z$18","v":1876.0027144920696},{"$f":"'Res-Appliance class'!$B33*'RES S curve-connect'!AA$3+'Res-Appliance class'!$C33*'RES S curve-connect'!AA$8+'Res-Appliance class'!$D33*'RES S curve-connect'!AA$13+'Res-Appliance class'!$E33*'RES S curve-connect'!AA$18","v":2213.545082508484},{"$f":"'Res-Appliance class'!$B33*'RES S curve-connect'!AB$3+'Res-Appliance class'!$C33*'RES S curve-connect'!AB$8+'Res-Appliance class'!$D33*'RES S curve-connect'!AB$13+'Res-Appliance class'!$E33*'RES S curve-connect'!AB$18","v":2481.8992620202989},{"$f":"'Res-Appliance class'!$B33*'RES S curve-connect'!AC$3+'Res-Appliance class'!$C33*'RES S curve-connect'!AC$8+'Res-Appliance class'!$D33*'RES S curve-connect'!AC$13+'Res-Appliance class'!$E33*'RES S curve-connect'!AC$18","v":2740.6032627718855},{"$f":"'Res-Appliance class'!$B33*'RES S curve-connect'!AD$3+'Res-Appliance class'!$C33*'RES S curve-connect'!AD$8+'Res-Appliance class'!$D33*'RES S curve-connect'!AD$13+'Res-Appliance class'!$E33*'RES S curve-connect'!AD$18","v":2977.3484667414195},{"$f":"'Res-Appliance class'!$B33*'RES S curve-connect'!AE$3+'Res-Appliance class'!$C33*'RES S curve-connect'!AE$8+'Res-Appliance class'!$D33*'RES S curve-connect'!AE$13+'Res-Appliance class'!$E33*'RES S curve-connect'!AE$18","v":3227.4696390226877},{"$f":"'Res-Appliance class'!$B33*'RES S curve-connect'!AF$3+'Res-Appliance class'!$C33*'RES S curve-connect'!AF$8+'Res-Appliance class'!$D33*'RES S curve-connect'!AF$13+'Res-Appliance class'!$E33*'RES S curve-connect'!AF$18","v":3552.237942462546},{"$f":"'Res-Appliance class'!$B33*'RES S curve-connect'!AG$3+'Res-Appliance class'!$C33*'RES S curve-connect'!AG$8+'Res-Appliance class'!$D33*'RES S curve-connect'!AG$13+'Res-Appliance class'!$E33*'RES S curve-connect'!AG$18","v":3781.2713511766556},{"$f":"'Res-Appliance class'!$B33*'RES S curve-connect'!AH$3+'Res-Appliance class'!$C33*'RES S curve-connect'!AH$8+'Res-Appliance class'!$D33*'RES S curve-connect'!AH$13+'Res-Appliance class'!$E33*'RES S curve-connect'!AH$18","v":4101.8571196624544},{"$f":"'Res-Appliance class'!$B33*'RES S curve-connect'!AI$3+'Res-Appliance class'!$C33*'RES S curve-connect'!AI$8+'Res-Appliance class'!$D33*'RES S curve-connect'!AI$13+'Res-Appliance class'!$E33*'RES S curve-connect'!AI$18","v":4391.5894600478105},{"$f":"'Res-Appliance class'!$B33*'RES S curve-connect'!AJ$3+'Res-Appliance class'!$C33*'RES S curve-connect'!AJ$8+'Res-Appliance class'!$D33*'RES S curve-connect'!AJ$13+'Res-Appliance class'!$E33*'RES S curve-connect'!AJ$18","v":4652.7427947468159},{"$f":"'Res-Appliance class'!$B33*'RES S curve-connect'!AK$3+'Res-Appliance class'!$C33*'RES S curve-connect'!AK$8+'Res-Appliance class'!$D33*'RES S curve-connect'!AK$13+'Res-Appliance class'!$E33*'RES S curve-connect'!AK$18","v":4930.0507866914249},{"$f":"'Res-Appliance class'!$B33*'RES S curve-connect'!AL$3+'Res-Appliance class'!$C33*'RES S curve-connect'!AL$8+'Res-Appliance class'!$D33*'RES S curve-connect'!AL$13+'Res-Appliance class'!$E33*'RES S curve-connect'!AL$18","v":3965.8476846353055},{"$f":"'Res-Appliance class'!$B33*'RES S curve-connect'!AM$3+'Res-Appliance class'!$C33*'RES S curve-connect'!AM$8+'Res-Appliance class'!$D33*'RES S curve-connect'!AM$13+'Res-Appliance class'!$E33*'RES S curve-connect'!AM$18","v":3841.9006616554771},{"$f":"'Res-Appliance class'!$B33*'RES S curve-connect'!AN$3+'Res-Appliance class'!$C33*'RES S curve-connect'!AN$8+'Res-Appliance class'!$D33*'RES S curve-connect'!AN$13+'Res-Appliance class'!$E33*'RES S curve-connect'!AN$18","v":4105.5545580559092},{"$f":"'Res-Appliance class'!$B33*'RES S curve-connect'!AO$3+'Res-Appliance class'!$C33*'RES S curve-connect'!AO$8+'Res-Appliance class'!$D33*'RES S curve-connect'!AO$13+'Res-Appliance class'!$E33*'RES S curve-connect'!AO$18","v":4426.9715622613203},{"$f":"'Res-Appliance class'!$B33*'RES S curve-connect'!AP$3+'Res-Appliance class'!$C33*'RES S curve-connect'!AP$8+'Res-Appliance class'!$D33*'RES S curve-connect'!AP$13+'Res-Appliance class'!$E33*'RES S curve-connect'!AP$18","v":4723.2835009804403},{"$f":"'Res-Appliance class'!$B33*'RES S curve-connect'!AQ$3+'Res-Appliance class'!$C33*'RES S curve-connect'!AQ$8+'Res-Appliance class'!$D33*'RES S curve-connect'!AQ$13+'Res-Appliance class'!$E33*'RES S curve-connect'!AQ$18","v":5042.9326242880934},{"$f":"'Res-Appliance class'!$B33*'RES S curve-connect'!AR$3+'Res-Appliance class'!$C33*'RES S curve-connect'!AR$8+'Res-Appliance class'!$D33*'RES S curve-connect'!AR$13+'Res-Appliance class'!$E33*'RES S curve-connect'!AR$18","v":5393.5465890106607},{"$f":"'Res-Appliance class'!$B33*'RES S curve-connect'!AS$3+'Res-Appliance class'!$C33*'RES S curve-connect'!AS$8+'Res-Appliance class'!$D33*'RES S curve-connect'!AS$13+'Res-Appliance class'!$E33*'RES S curve-connect'!AS$18","v":5786.8961721848091},{"$f":"'Res-Appliance class'!$B33*'RES S curve-connect'!AT$3+'Res-Appliance class'!$C33*'RES S curve-connect'!AT$8+'Res-Appliance class'!$D33*'RES S curve-connect'!AT$13+'Res-Appliance class'!$E33*'RES S curve-connect'!AT$18","v":6226.476409179355},{"$f":"'Res-Appliance class'!$B33*'RES S curve-connect'!AU$3+'Res-Appliance class'!$C33*'RES S curve-connect'!AU$8+'Res-Appliance class'!$D33*'RES S curve-connect'!AU$13+'Res-Appliance class'!$E33*'RES S curve-connect'!AU$18","v":6735.5320192751242},{"$f":"'Res-Appliance class'!$B33*'RES S curve-connect'!AV$3+'Res-Appliance class'!$C33*'RES S curve-connect'!AV$8+'Res-Appliance class'!$D33*'RES S curve-connect'!AV$13+'Res-Appliance class'!$E33*'RES S curve-connect'!AV$18","v":7315.6953453974675},{"$f":"'Res-Appliance class'!$B33*'RES S curve-connect'!AW$3+'Res-Appliance class'!$C33*'RES S curve-connect'!AW$8+'Res-Appliance class'!$D33*'RES S curve-connect'!AW$13+'Res-Appliance class'!$E33*'RES S curve-connect'!AW$18","v":7982.3106099294537},{"$f":"'Res-Appliance class'!$B33*'RES S curve-connect'!AX$3+'Res-Appliance class'!$C33*'RES S curve-connect'!AX$8+'Res-Appliance class'!$D33*'RES S curve-connect'!AX$13+'Res-Appliance class'!$E33*'RES S curve-connect'!AX$18","v":8741.4489121640563},{"$f":"'Res-Appliance class'!$B33*'RES S curve-connect'!AY$3+'Res-Appliance class'!$C33*'RES S curve-connect'!AY$8+'Res-Appliance class'!$D33*'RES S curve-connect'!AY$13+'Res-Appliance class'!$E33*'RES S curve-connect'!AY$18","v":9617.6397157545216},{"$f":"'Res-Appliance class'!$B33*'RES S curve-connect'!AZ$3+'Res-Appliance class'!$C33*'RES S curve-connect'!AZ$8+'Res-Appliance class'!$D33*'RES S curve-connect'!AZ$13+'Res-Appliance class'!$E33*'RES S curve-connect'!AZ$18","v":10618.484328396877},{"$f":"'Res-Appliance class'!$B33*'RES S curve-connect'!BA$3+'Res-Appliance class'!$C33*'RES S curve-connect'!BA$8+'Res-Appliance class'!$D33*'RES S curve-connect'!BA$13+'Res-Appliance class'!$E33*'RES S curve-connect'!BA$18","v":11777.028386327976},{"$f":"'Res-Appliance class'!$B33*'RES S curve-connect'!BB$3+'Res-Appliance class'!$C33*'RES S curve-connect'!BB$8+'Res-Appliance class'!$D33*'RES S curve-connect'!BB$13+'Res-Appliance class'!$E33*'RES S curve-connect'!BB$18","v":13129.643691655407},{"$f":"'Res-Appliance class'!$B33*'RES S curve-connect'!BC$3+'Res-Appliance class'!$C33*'RES S curve-connect'!BC$8+'Res-Appliance class'!$D33*'RES S curve-connect'!BC$13+'Res-Appliance class'!$E33*'RES S curve-connect'!BC$18","v":14742.488872654414},{"$f":"'Res-Appliance class'!$B33*'RES S curve-connect'!BD$3+'Res-Appliance class'!$C33*'RES S curve-connect'!BD$8+'Res-Appliance class'!$D33*'RES S curve-connect'!BD$13+'Res-Appliance class'!$E33*'RES S curve-connect'!BD$18","v":16295.992800780057},{"$f":"'Res-Appliance class'!$B33*'RES S curve-connect'!BE$3+'Res-Appliance class'!$C33*'RES S curve-connect'!BE$8+'Res-Appliance class'!$D33*'RES S curve-connect'!BE$13+'Res-Appliance class'!$E33*'RES S curve-connect'!BE$18","v":17715.105304657711},{"$f":"'Res-Appliance class'!$B33*'RES S curve-connect'!BF$3+'Res-Appliance class'!$C33*'RES S curve-connect'!BF$8+'Res-Appliance class'!$D33*'RES S curve-connect'!BF$13+'Res-Appliance class'!$E33*'RES S curve-connect'!BF$18","v":19167.360923736218},{"$f":"'Res-Appliance class'!$B33*'RES S curve-connect'!BG$3+'Res-Appliance class'!$C33*'RES S curve-connect'!BG$8+'Res-Appliance class'!$D33*'RES S curve-connect'!BG$13+'Res-Appliance class'!$E33*'RES S curve-connect'!BG$18","v":20811.892101498113},{"$f":"'Res-Appliance class'!$B33*'RES S curve-connect'!BH$3+'Res-Appliance class'!$C33*'RES S curve-connect'!BH$8+'Res-Appliance class'!$D33*'RES S curve-connect'!BH$13+'Res-Appliance class'!$E33*'RES S curve-connect'!BH$18","v":22763.507761725436},{"$f":"'Res-Appliance class'!$B33*'RES S curve-connect'!BI$3+'Res-Appliance class'!$C33*'RES S curve-connect'!BI$8+'Res-Appliance class'!$D33*'RES S curve-connect'!BI$13+'Res-Appliance class'!$E33*'RES S curve-connect'!BI$18","v":25591.96573354202},{"$f":"'Res-Appliance class'!$B33*'RES S curve-connect'!BJ$3+'Res-Appliance class'!$C33*'RES S curve-connect'!BJ$8+'Res-Appliance class'!$D33*'RES S curve-connect'!BJ$13+'Res-Appliance class'!$E33*'RES S curve-connect'!BJ$18","v":29731.648304436985},{"$f":"'Res-Appliance class'!$B33*'RES S curve-connect'!BK$3+'Res-Appliance class'!$C33*'RES S curve-connect'!BK$8+'Res-Appliance class'!$D33*'RES S curve-connect'!BK$13+'Res-Appliance class'!$E33*'RES S curve-connect'!BK$18","v":35836.928894850658},{"$f":"'Res-Appliance class'!$B33*'RES S curve-connect'!BL$3+'Res-Appliance class'!$C33*'RES S curve-connect'!BL$8+'Res-Appliance class'!$D33*'RES S curve-connect'!BL$13+'Res-Appliance class'!$E33*'RES S curve-connect'!BL$18","v":441.87587718691606},{"$f":"'Res-Appliance class'!$B33*'RES S curve-connect'!BM$3+'Res-Appliance class'!$C33*'RES S curve-connect'!BM$8+'Res-Appliance class'!$D33*'RES S curve-connect'!BM$13+'Res-Appliance class'!$E33*'RES S curve-connect'!BM$18","v":449.63397672372957},{"$f":"'Res-Appliance class'!$B33*'RES S curve-connect'!BN$3+'Res-Appliance class'!$C33*'RES S curve-connect'!BN$8+'Res-Appliance class'!$D33*'RES S curve-connect'!BN$13+'Res-Appliance class'!$E33*'RES S curve-connect'!BN$18","v":453.35878964007793},{"$f":"'Res-Appliance class'!$B33*'RES S curve-connect'!BO$3+'Res-Appliance class'!$C33*'RES S curve-connect'!BO$8+'Res-Appliance class'!$D33*'RES S curve-connect'!BO$13+'Res-Appliance class'!$E33*'RES S curve-connect'!BO$18","v":465.11700665294603},{"$f":"'Res-Appliance class'!$B33*'RES S curve-connect'!BP$3+'Res-Appliance class'!$C33*'RES S curve-connect'!BP$8+'Res-Appliance class'!$D33*'RES S curve-connect'!BP$13+'Res-Appliance class'!$E33*'RES S curve-connect'!BP$18","v":472.84207056731759},{"$f":"'Res-Appliance class'!$B33*'RES S curve-connect'!BQ$3+'Res-Appliance class'!$C33*'RES S curve-connect'!BQ$8+'Res-Appliance class'!$D33*'RES S curve-connect'!BQ$13+'Res-Appliance class'!$E33*'RES S curve-connect'!BQ$18","v":480.55625543681833},{"$f":"'Res-Appliance class'!$B33*'RES S curve-connect'!BR$3+'Res-Appliance class'!$C33*'RES S curve-connect'!BR$8+'Res-Appliance class'!$D33*'RES S curve-connect'!BR$13+'Res-Appliance class'!$E33*'RES S curve-connect'!BR$18","v":484.23741907153556},{"$f":"'Res-Appliance class'!$B33*'RES S curve-connect'!BS$3+'Res-Appliance class'!$C33*'RES S curve-connect'!BS$8+'Res-Appliance class'!$D33*'RES S curve-connect'!BS$13+'Res-Appliance class'!$E33*'RES S curve-connect'!BS$18","v":495.95225053542072},{"$f":"'Res-Appliance class'!$B33*'RES S curve-connect'!BT$3+'Res-Appliance class'!$C33*'RES S curve-connect'!BT$8+'Res-Appliance class'!$D33*'RES S curve-connect'!BT$13+'Res-Appliance class'!$E33*'RES S curve-connect'!BT$18","v":503.63419099087491},{"$f":"'Res-Appliance class'!$B33*'RES S curve-connect'!BU$3+'Res-Appliance class'!$C33*'RES S curve-connect'!BU$8+'Res-Appliance class'!$D33*'RES S curve-connect'!BU$13+'Res-Appliance class'!$E33*'RES S curve-connect'!BU$18","v":511.30551285932552},{"$f":"'Res-Appliance class'!$B33*'RES S curve-connect'!BV$3+'Res-Appliance class'!$C33*'RES S curve-connect'!BV$8+'Res-Appliance class'!$D33*'RES S curve-connect'!BV$13+'Res-Appliance class'!$E33*'RES S curve-connect'!BV$18","v":514.94407232896981},{"$f":"'Res-Appliance class'!$B33*'RES S curve-connect'!BW$3+'Res-Appliance class'!$C33*'RES S curve-connect'!BW$8+'Res-Appliance class'!$D33*'RES S curve-connect'!BW$13+'Res-Appliance class'!$E33*'RES S curve-connect'!BW$18","v":526.61655685212372},{"$f":"'Res-Appliance class'!$B33*'RES S curve-connect'!BX$3+'Res-Appliance class'!$C33*'RES S curve-connect'!BX$8+'Res-Appliance class'!$D33*'RES S curve-connect'!BX$13+'Res-Appliance class'!$E33*'RES S curve-connect'!BX$18","v":534.25640598973564},{"$f":"'Res-Appliance class'!$B33*'RES S curve-connect'!BY$3+'Res-Appliance class'!$C33*'RES S curve-connect'!BY$8+'Res-Appliance class'!$D33*'RES S curve-connect'!BY$13+'Res-Appliance class'!$E33*'RES S curve-connect'!BY$18","v":541.88589057189688},{"$f":"'Res-Appliance class'!$B33*'RES S curve-connect'!BZ$3+'Res-Appliance class'!$C33*'RES S curve-connect'!BZ$8+'Res-Appliance class'!$D33*'RES S curve-connect'!BZ$13+'Res-Appliance class'!$E33*'RES S curve-connect'!BZ$18","v":545.48286520552665},{"$f":"'Res-Appliance class'!$B33*'RES S curve-connect'!CA$3+'Res-Appliance class'!$C33*'RES S curve-connect'!CA$8+'Res-Appliance class'!$D33*'RES S curve-connect'!CA$13+'Res-Appliance class'!$E33*'RES S curve-connect'!CA$18","v":557.11401577165543},{"$f":"'Res-Appliance class'!$B33*'RES S curve-connect'!CB$3+'Res-Appliance class'!$C33*'RES S curve-connect'!CB$8+'Res-Appliance class'!$D33*'RES S curve-connect'!CB$13+'Res-Appliance class'!$E33*'RES S curve-connect'!CB$18","v":564.71278026987034},{"$f":"'Res-Appliance class'!$B33*'RES S curve-connect'!CC$3+'Res-Appliance class'!$C33*'RES S curve-connect'!CC$8+'Res-Appliance class'!$D33*'RES S curve-connect'!CC$13+'Res-Appliance class'!$E33*'RES S curve-connect'!CC$18","v":572.3014279787667},{"$f":"'Res-Appliance class'!$B33*'RES S curve-connect'!CD$3+'Res-Appliance class'!$C33*'RES S curve-connect'!CD$8+'Res-Appliance class'!$D33*'RES S curve-connect'!CD$13+'Res-Appliance class'!$E33*'RES S curve-connect'!CD$18","v":457.25608107068115}]
["Greater Dandenong (C)",null,{"$f":"'Res-Appliance class'!$B34*'RES S curve-connect'!C$3+'Res-Appliance class'!$C34*'RES S curve-connect'!C$8+'Res-Appliance class'!$D34*'RES S curve-connect'!C$13+'Res-Appliance class'!$E34*'RES S curve-connect'!C$18","v":-2649.9832857187521},{"$f":"'Res-Appliance class'!$B34*'RES S curve-connect'!D$3+'Res-Appliance class'!$C34*'RES S curve-connect'!D$8+'Res-Appliance class'!$D34*'RES S curve-connect'!D$13+'Res-Appliance class'!$E34*'RES S curve-connect'!D$18","v":-3243.3049216829322},{"$f":"'Res-Appliance class'!$B34*'RES S curve-connect'!E$3+'Res-Appliance class'!$C34*'RES S curve-connect'!E$8+'Res-Appliance class'!$D34*'RES S curve-connect'!E$13+'Res-Appliance class'!$E34*'RES S curve-connect'!E$18","v":-2714.0102598088897},{"$f":"'Res-Appliance class'!$B34*'RES S curve-connect'!F$3+'Res-Appliance class'!$C34*'RES S curve-connect'!F$8+'Res-Appliance class'!$D34*'RES S curve-connect'!F$13+'Res-Appliance class'!$E34*'RES S curve-connect'!F$18","v":-2538.3675936918871},{"$f":"'Res-Appliance class'!$B34*'RES S curve-connect'!G$3+'Res-Appliance class'!$C34*'RES S curve-connect'!G$8+'Res-Appliance class'!$D34*'RES S curve-connect'!G$13+'Res-Appliance class'!$E34*'RES S curve-connect'!G$18","v":-3688.9158815013006},{"$f":"'Res-Appliance class'!$B34*'RES S curve-connect'!H$3+'Res-Appliance class'!$C34*'RES S curve-connect'!H$8+'Res-Appliance class'!$D34*'RES S curve-connect'!H$13+'Res-Appliance class'!$E34*'RES S curve-connect'!H$18","v":-3735.8988291711112},{"$f":"'Res-Appliance class'!$B34*'RES S curve-connect'!I$3+'Res-Appliance class'!$C34*'RES S curve-connect'!I$8+'Res-Appliance class'!$D34*'RES S curve-connect'!I$13+'Res-Appliance class'!$E34*'RES S curve-connect'!I$18","v":-3238.5331097216349},{"$f":"'Res-Appliance class'!$B34*'RES S curve-connect'!J$3+'Res-Appliance class'!$C34*'RES S curve-connect'!J$8+'Res-Appliance class'!$D34*'RES S curve-connect'!J$13+'Res-Appliance class'!$E34*'RES S curve-connect'!J$18","v":-3570.2880889107273},{"$f":"'Res-Appliance class'!$B34*'RES S curve-connect'!K$3+'Res-Appliance class'!$C34*'RES S curve-connect'!K$8+'Res-Appliance class'!$D34*'RES S curve-connect'!K$13+'Res-Appliance class'!$E34*'RES S curve-connect'!K$18","v":-2681.1581392282224},{"$f":"'Res-Appliance class'!$B34*'RES S curve-connect'!L$3+'Res-Appliance class'!$C34*'RES S curve-connect'!L$8+'Res-Appliance class'!$D34*'RES S curve-connect'!L$13+'Res-Appliance class'!$E34*'RES S curve-connect'!L$18","v":-3093.4085281817029},{"$f":"'Res-Appliance class'!$B34*'RES S curve-connect'!M$3+'Res-Appliance class'!$C34*'RES S curve-connect'!M$8+'Res-Appliance class'!$D34*'RES S curve-connect'!M$13+'Res-Appliance class'!$E34*'RES S curve-connect'!M$18","v":-3823.0240418827689},{"$f":"'Res-Appliance class'!$B34*'RES S curve-connect'!N$3+'Res-Appliance class'!$C34*'RES S curve-connect'!N$8+'Res-Appliance class'!$D34*'RES S curve-connect'!N$13+'Res-Appliance class'!$E34*'RES S curve-connect'!N$18","v":-3898.2166728488801},{"$f":"'Res-Appliance class'!$B34*'RES S curve-connect'!O$3+'Res-Appliance class'!$C34*'RES S curve-connect'!O$8+'Res-Appliance class'!$D34*'RES S curve-connect'!O$13+'Res-Appliance class'!$E34*'RES S curve-connect'!O$18","v":-3260.8669663205765},{"$f":"'Res-Appliance class'!$B34*'RES S curve-connect'!P$3+'Res-Appliance class'!$C34*'RES S curve-connect'!P$8+'Res-Appliance class'!$D34*'RES S curve-connect'!P$13+'Res-Appliance class'!$E34*'RES S curve-connect'!P$18","v":-2755.994990412898},{"$f":"'Res-Appliance class'!$B34*'RES S curve-connect'!Q$3+'Res-Appliance class'!$C34*'RES S curve-connect'!Q$8+'Res-Appliance class'!$D34*'RES S curve-connect'!Q$13+'Res-Appliance class'!$E34*'RES S curve-connect'!Q$18","v":-1989.6321990543097},{"$f":"'Res-Appliance class'!$B34*'RES S curve-connect'!R$3+'Res-Appliance class'!$C34*'RES S curve-connect'!R$8+'Res-Appliance class'!$D34*'RES S curve-connect'!R$13+'Res-Appliance class'!$E34*'RES S curve-connect'!R$18","v":-1558.3033223878977},{"$f":"'Res-Appliance class'!$B34*'RES S curve-connect'!S$3+'Res-Appliance class'!$C34*'RES S curve-connect'!S$8+'Res-Appliance class'!$D34*'RES S curve-connect'!S$13+'Res-Appliance class'!$E34*'RES S curve-connect'!S$18","v":-866.8817149677086},{"$f":"'Res-Appliance class'!$B34*'RES S curve-connect'!T$3+'Res-Appliance class'!$C34*'RES S curve-connect'!T$8+'Res-Appliance class'!$D34*'RES S curve-connect'!T$13+'Res-Appliance class'!$E34*'RES S curve-connect'!T$18","v":-497.00536080150721},{"$f":"'Res-Appliance class'!$B34*'RES S curve-connect'!U$3+'Res-Appliance class'!$C34*'RES S curve-connect'!U$8+'Res-Appliance class'!$D34*'RES S curve-connect'!U$13+'Res-Appliance class'!$E34*'RES S curve-connect'!U$18","v":-71.436036254863723},{"$f":"'Res-Appliance class'!$B34*'RES S curve-connect'!V$3+'Res-Appliance class'!$C34*'RES S curve-connect'!V$8+'Res-Appliance class'!$D34*'RES S curve-connect'!V$13+'Res-Appliance class'!$E34*'RES S curve-connect'!V$18","v":217.95211063616023},{"$f":"'Res-Appliance class'!$B34*'RES S curve-connect'!W$3+'Res-Appliance class'!$C34*'RES S curve-connect'!W$8+'Res-Appliance class'!$D34*'RES S curve-connect'!W$13+'Res-Appliance class'!$E34*'RES S curve-connect'!W$18","v":441.7427750306839},{"$f":"'Res-Appliance class'!$B34*'RES S curve-connect'!X$3+'Res-Appliance class'!$C34*'RES S curve-connect'!X$8+'Res-Appliance class'!$D34*'RES S curve-connect'!X$13+'Res-Appliance class'!$E34*'RES S curve-connect'!X$18","v":955.72072928595503},{"$f":"'Res-Appliance class'!$B34*'RES S curve-connect'!Y$3+'Res-Appliance class'!$C34*'RES S curve-connect'!Y$8+'Res-Appliance class'!$D34*'RES S curve-connect'!Y$13+'Res-Appliance class'!$E34*'RES S curve-connect'!Y$18","v":1476.2102413731893},{"$f":"'Res-Appliance class'!$B34*'RES S curve-connect'!Z$3+'Res-Appliance class'!$C34*'RES S curve-connect'!Z$8+'Res-Appliance class'!$D34*'RES S curve-connect'!Z$13+'Res-Appliance class'!$E34*'RES S curve-connect'!Z$18","v":1826.6730960478735},{"$f":"'Res-Appliance class'!$B34*'RES S curve-connect'!AA$3+'Res-Appliance class'!$C34*'RES S curve-connect'!AA$8+'Res-Appliance class'!$D34*'RES S curve-connect'!AA$13+'Res-Appliance class'!$E34*'RES S curve-connect'!AA$18","v":2177.5944865255469},{"$f":"'Res-Appliance class'!$B34*'RES S curve-connect'!AB$3+'Res-Appliance class'!$C34*'RES S curve-connect'!AB$8+'Res-Appliance class'!$D34*'RES S curve-connect'!AB$13+'Res-Appliance class'!$E34*'RES S curve-connect'!AB$18","v":2456.3191816379376},{"$f":"'Res-Appliance class'!$B34*'RES S curve-connect'!AC$3+'Res-Appliance class'!$C34*'RES S curve-connect'!AC$8+'Res-Appliance class'!$D34*'RES S curve-connect'!AC$13+'Res-Appliance class'!$E34*'RES S curve-connect'!AC$18","v":2724.8822206046116},{"$f":"'Res-Appliance class'!$B34*'RES S curve-connect'!AD$3+'Res-Appliance class'!$C34*'RES S curve-connect'!AD$8+'Res-Appliance class'!$D34*'RES S curve-connect'!AD$13+'Res-Appliance class'!$E34*'RES S curve-connect'!AD$18","v":2970.7140677249354},{"$f":"'Res-Appliance class'!$B34*'RES S curve-connect'!AE$3+'Res-Appliance class'!$C34*'RES S curve-connect'!AE$8+'Res-Appliance class'!$D34*'RES S curve-connect'!AE$13+'Res-Appliance class'!$E34*'RES S curve-connect'!AE$18","v":3230.0177183740457},{"$f":"'Res-Appliance class'!$B34*'RES S curve-connect'!AF$3+'Res-Appliance class'!$C34*'RES S curve-connect'!AF$8+'Res-Appliance class'!$D34*'RES S curve-connect'!AF$13+'Res-Appliance class'!$E34*'RES S curve-connect'!AF$18","v":3566.8546322812572},{"$f":"'Res-Appliance class'!$B34*'RES S curve-connect'!AG$3+'Res-Appliance class'!$C34*'RES S curve-connect'!AG$8+'Res-Appliance class'!$D34*'RES S curve-connect'!AG$13+'Res-Appliance class'!$E34*'RES S curve-connect'!AG$18","v":3803.6505057704599},{"$f":"'Res-Appliance class'!$B34*'RES S curve-connect'!AH$3+'Res-Appliance class'!$C34*'RES S curve-connect'!AH$8+'Res-Appliance class'!$D34*'RES S curve-connect'!AH$13+'Res-Appliance class'!$E34*'RES S curve-connect'!AH$18","v":4135.7886366111488},{"$f":"'Res-Appliance class'!$B34*'RES S curve-connect'!AI$3+'Res-Appliance class'!$C34*'RES S curve-connect'!AI$8+'Res-Appliance class'!$D34*'RES S curve-connect'!AI$13+'Res-Appliance class'!$E34*'RES S curve-connect'!AI$18","v":4435.3134946872742},{"$f":"'Res-Appliance class'!$B34*'RES S curve-connect'!AJ$3+'Res-Appliance class'!$C34*'RES S curve-connect'!AJ$8+'Res-Appliance class'!$D34*'RES S curve-connect'!AJ$13+'Res-Appliance class'!$E34*'RES S curve-connect'!AJ$18","v":4705.4346142503837},{"$f":"'Res-Appliance class'!$B34*'RES S curve-connect'!AK$3+'Res-Appliance class'!$C34*'RES S curve-connect'!AK$8+'Res-Appliance class'!$D34*'RES S curve-connect'!AK$13+'Res-Appliance class'!$E34*'RES S curve-connect'!AK$18","v":4992.237535300902},{"$f":"'Res-Appliance class'!$B34*'RES S curve-connect'!AL$3+'Res-Appliance class'!$C34*'RES S curve-connect'!AL$8+'Res-Appliance class'!$D34*'RES S curve-connect'!AL$13+'Res-Appliance class'!$E34*'RES S curve-connect'!AL$18","v":3997.0530233381842},{"$f":"'Res-Appliance class'!$B34*'RES S curve-connect'!AM$3+'Res-Appliance class'!$C34*'RES S curve-connect'!AM$8+'Res-Appliance class'!$D34*'RES S curve-connect'!AM$13+'Res-Appliance class'!$E34*'RES S curve-connect'!AM$18","v":3868.2005471706152},{"$f":"'Res-Appliance class'!$B34*'RES S curve-connect'!AN$3+'Res-Appliance class'!$C34*'RES S curve-connect'!AN$8+'Res-Appliance class'!$D34*'RES S curve-connect'!AN$13+'Res-Appliance class'!$E34*'RES S curve-connect'!AN$18","v":4140.3791335231899},{"$f":"'Res-Appliance class'!$B34*'RES S curve-connect'!AO$3+'Res-Appliance class'!$C34*'RES S curve-connect'!AO$8+'Res-Appliance class'!$D34*'RES S curve-connect'!AO$13+'Res-Appliance class'!$E34*'RES S curve-connect'!AO$18","v":4472.6485981519354},{"$f":"'Res-Appliance class'!$B34*'RES S curve-connect'!AP$3+'Res-Appliance class'!$C34*'RES S curve-connect'!AP$8+'Res-Appliance class'!$D34*'RES S curve-connect'!AP$13+'Res-Appliance class'!$E34*'RES S curve-connect'!AP$18","v":4779.2517146614855},{"$f":"'Res-Appliance class'!$B34*'RES S curve-connect'!AQ$3+'Res-Appliance class'!$C34*'RES S curve-connect'!AQ$8+'Res-Appliance class'!$D34*'RES S curve-connect'!AQ$13+'Res-Appliance class'!$E34*'RES S curve-connect'!AQ$18","v":5109.7101628578603},{"$f":"'Res-Appliance class'!$B34*'RES S curve-connect'!AR$3+'Res-Appliance class'!$C34*'RES S curve-connect'!AR$8+'Res-Appliance class'!$D34*'RES S curve-connect'!AR$13+'Res-Appliance class'!$E34*'RES S curve-connect'!AR$18","v":5472.3410342064835},{"$f":"'Res-Appliance class'!$B34*'RES S curve-connect'!AS$3+'Res-Appliance class'!$C34*'RES S curve-connect'!AS$8+'Res-Appliance class'!$D34*'RES S curve-connect'!AS$13+'Res-Appliance class'!$E34*'RES S curve-connect'!AS$18","v":5879.2074431342062},{"$f":"'Res-Appliance class'!$B34*'RES S curve-connect'!AT$3+'Res-Appliance class'!$C34*'RES S curve-connect'!AT$8+'Res-Appliance class'!$D34*'RES S curve-connect'!AT$13+'Res-Appliance class'!$E34*'RES S curve-connect'!AT$18","v":6334.0783432185144},{"$f":"'Res-Appliance class'!$B34*'RES S curve-connect'!AU$3+'Res-Appliance class'!$C34*'RES S curve-connect'!AU$8+'Res-Appliance class'!$D34*'RES S curve-connect'!AU$13+'Res-Appliance class'!$E34*'RES S curve-connect'!AU$18","v":6860.5976814683054},{"$f":"'Res-Appliance class'!$B34*'RES S curve-connect'!AV$3+'Res-Appliance class'!$C34*'RES S curve-connect'!AV$8+'Res-Appliance class'!$D34*'RES S curve-connect'!AV$13+'Res-Appliance class'!$E34*'RES S curve-connect'!AV$18","v":7460.894269219596},{"$f":"'Res-Appliance class'!$B34*'RES S curve-connect'!AW$3+'Res-Appliance class'!$C34*'RES S curve-connect'!AW$8+'Res-Appliance class'!$D34*'RES S curve-connect'!AW$13+'Res-Appliance class'!$E34*'RES S curve-connect'!AW$18","v":8150.7463431860033},{"$f":"'Res-Appliance class'!$B34*'RES S curve-connect'!AX$3+'Res-Appliance class'!$C34*'RES S curve-connect'!AX$8+'Res-Appliance class'!$D34*'RES S curve-connect'!AX$13+'Res-Appliance class'!$E34*'RES S curve-connect'!AX$18","v":8936.6284961201545},{"$f":"'Res-Appliance class'!$B34*'RES S curve-connect'!AY$3+'Res-Appliance class'!$C34*'RES S curve-connect'!AY$8+'Res-Appliance class'!$D34*'RES S curve-connect'!AY$13+'Res-Appliance class'!$E34*'RES S curve-connect'!AY$18","v":9843.5609466286314},{"$f":"'Res-Appliance class'!$B34*'RES S curve-connect'!AZ$3+'Res-Appliance class'!$C34*'RES S curve-connect'!AZ$8+'Res-Appliance class'!$D34*'RES S curve-connect'!AZ$13+'Res-Appliance class'!$E34*'RES S curve-connect'!AZ$18","v":10879.89508520086},{"$f":"'Res-Appliance class'!$B34*'RES S curve-connect'!BA$3+'Res-Appliance class'!$C34*'RES S curve-connect'!BA$8+'Res-Appliance class'!$D34*'RES S curve-connect'!BA$13+'Res-Appliance class'!$E34*'RES S curve-connect'!BA$18","v":12079.773580405961},{"$f":"'Res-Appliance class'!$B34*'RES S curve-connect'!BB$3+'Res-Appliance class'!$C34*'RES S curve-connect'!BB$8+'Res-Appliance class'!$D34*'RES S curve-connect'!BB$13+'Res-Appliance class'!$E34*'RES S curve-connect'!BB$18","v":13481.102095187514},{"$f":"'Res-Appliance class'!$B34*'RES S curve-connect'!BC$3+'Res-Appliance class'!$C34*'RES S curve-connect'!BC$8+'Res-Appliance class'!$D34*'RES S curve-connect'!BC$13+'Res-Appliance class'!$E34*'RES S curve-connect'!BC$18","v":15152.105158447624},{"$f":"'Res-Appliance class'!$B34*'RES S curve-connect'!BD$3+'Res-Appliance class'!$C34*'RES S curve-connect'!BD$8+'Res-Appliance class'!$D34*'RES S curve-connect'!BD$13+'Res-Appliance class'!$E34*'RES S curve-connect'!BD$18","v":16762.829172844435},{"$f":"'Res-Appliance class'!$B34*'RES S curve-connect'!BE$3+'Res-Appliance class'!$C34*'RES S curve-connect'!BE$8+'Res-Appliance class'!$D34*'RES S curve-connect'!BE$13+'Res-Appliance class'!$E34*'RES S curve-connect'!BE$18","v":18234.617996722627},{"$f":"'Res-Appliance class'!$B34*'RES S curve-connect'!BF$3+'Res-Appliance class'!$C34*'RES S curve-connect'!BF$8+'Res-Appliance class'!$D34*'RES S curve-connect'!BF$13+'Res-Appliance class'!$E34*'RES S curve-connect'!BF$18","v":19740.659399155178},{"$f":"'Res-Appliance class'!$B34*'RES S curve-connect'!BG$3+'Res-Appliance class'!$C34*'RES S curve-connect'!BG$8+'Res-Appliance class'!$D34*'RES S curve-connect'!BG$13+'Res-Appliance class'!$E34*'RES S curve-connect'!BG$18","v":21445.636248294457},{"$f":"'Res-Appliance class'!$B34*'RES S curve-connect'!BH$3+'Res-Appliance class'!$C34*'RES S curve-connect'!BH$8+'Res-Appliance class'!$D34*'RES S curve-connect'!BH$13+'Res-Appliance class'!$E34*'RES S curve-connect'!BH$18","v":23469.244821691405},{"$f":"'Res-Appliance class'!$B34*'RES S curve-connect'!BI$3+'Res-Appliance class'!$C34*'RES S curve-connect'!BI$8+'Res-Appliance class'!$D34*'RES S curve-connect'!BI$13+'Res-Appliance class'!$E34*'RES S curve-connect'!BI$18","v":26401.734356529745},{"$f":"'Res-Appliance class'!$B34*'RES S curve-connect'!BJ$3+'Res-Appliance class'!$C34*'RES S curve-connect'!BJ$8+'Res-Appliance class'!$D34*'RES S curve-connect'!BJ$13+'Res-Appliance class'!$E34*'RES S curve-connect'!BJ$18","v":30695.039403925271},{"$f":"'Res-Appliance class'!$B34*'RES S curve-connect'!BK$3+'Res-Appliance class'!$C34*'RES S curve-connect'!BK$8+'Res-Appliance class'!$D34*'RES S curve-connect'!BK$13+'Res-Appliance class'!$E34*'RES S curve-connect'!BK$18","v":37028.908394308775},{"$f":"'Res-Appliance class'!$B34*'RES S curve-connect'!BL$3+'Res-Appliance class'!$C34*'RES S curve-connect'!BL$8+'Res-Appliance class'!$D34*'RES S curve-connect'!BL$13+'Res-Appliance class'!$E34*'RES S curve-connect'!BL$18","v":359.47142183216897},{"$f":"'Res-Appliance class'!$B34*'RES S curve-connect'!BM$3+'Res-Appliance class'!$C34*'RES S curve-connect'!BM$8+'Res-Appliance class'!$D34*'RES S curve-connect'!BM$13+'Res-Appliance class'!$E34*'RES S curve-connect'!BM$18","v":367.55405201457643},{"$f":"'Res-Appliance class'!$B34*'RES S curve-connect'!BN$3+'Res-Appliance class'!$C34*'RES S curve-connect'!BN$8+'Res-Appliance class'!$D34*'RES S curve-connect'!BN$13+'Res-Appliance class'!$E34*'RES S curve-connect'!BN$18","v":371.6027594414968},{"$f":"'Res-Appliance class'!$B34*'RES S curve-connect'!BO$3+'Res-Appliance class'!$C34*'RES S curve-connect'!BO$8+'Res-Appliance class'!$D34*'RES S curve-connect'!BO$13+'Res-Appliance class'!$E34*'RES S curve-connect'!BO$18","v":383.68423889973985},{"$f":"'Res-Appliance class'!$B34*'RES S curve-connect'!BP$3+'Res-Appliance class'!$C34*'RES S curve-connect'!BP$8+'Res-Appliance class'!$D34*'RES S curve-connect'!BP$13+'Res-Appliance class'!$E34*'RES S curve-connect'!BP$18","v":391.73193723807168},{"$f":"'Res-Appliance class'!$B34*'RES S curve-connect'!BQ$3+'Res-Appliance class'!$C34*'RES S curve-connect'!BQ$8+'Res-Appliance class'!$D34*'RES S curve-connect'!BQ$13+'Res-Appliance class'!$E34*'RES S curve-connect'!BQ$18","v":399.76813252802435},{"$f":"'Res-Appliance class'!$B34*'RES S curve-connect'!BR$3+'Res-Appliance class'!$C34*'RES S curve-connect'!BR$8+'Res-Appliance class'!$D34*'RES S curve-connect'!BR$13+'Res-Appliance class'!$E34*'RES S curve-connect'!BR$18","v":403.77068657188124},{"$f":"'Res-Appliance class'!$B34*'RES S curve-connect'!BS$3+'Res-Appliance class'!$C34*'RES S curve-connect'!BS$8+'Res-Appliance class'!$D34*'RES S curve-connect'!BS$13+'Res-Appliance class'!$E34*'RES S curve-connect'!BS$18","v":415.80629240024336},{"$f":"'Res-Appliance class'!$B34*'RES S curve-connect'!BT$3+'Res-Appliance class'!$C34*'RES S curve-connect'!BT$8+'Res-Appliance class'!$D34*'RES S curve-connect'!BT$13+'Res-Appliance class'!$E34*'RES S curve-connect'!BT$18","v":423.80839511677976},{"$f":"'Res-Appliance class'!$B34*'RES S curve-connect'!BU$3+'Res-Appliance class'!$C34*'RES S curve-connect'!BU$8+'Res-Appliance class'!$D34*'RES S curve-connect'!BU$13+'Res-Appliance class'!$E34*'RES S curve-connect'!BU$18","v":431.79927105896519},{"$f":"'Res-Appliance class'!$B34*'RES S curve-connect'!BV$3+'Res-Appliance class'!$C34*'RES S curve-connect'!BV$8+'Res-Appliance class'!$D34*'RES S curve-connect'!BV$13+'Res-Appliance class'!$E34*'RES S curve-connect'!BV$18","v":435.75678030598533},{"$f":"'Res-Appliance class'!$B34*'RES S curve-connect'!BW$3+'Res-Appliance class'!$C34*'RES S curve-connect'!BW$8+'Res-Appliance class'!$D34*'RES S curve-connect'!BW$13+'Res-Appliance class'!$E34*'RES S curve-connect'!BW$18","v":447.74761417624774},{"$f":"'Res-Appliance class'!$B34*'RES S curve-connect'!BX$3+'Res-Appliance class'!$C34*'RES S curve-connect'!BX$8+'Res-Appliance class'!$D34*'RES S curve-connect'!BX$13+'Res-Appliance class'!$E34*'RES S curve-connect'!BX$18","v":455.70521607205188},{"$f":"'Res-Appliance class'!$B34*'RES S curve-connect'!BY$3+'Res-Appliance class'!$C34*'RES S curve-connect'!BY$8+'Res-Appliance class'!$D34*'RES S curve-connect'!BY$13+'Res-Appliance class'!$E34*'RES S curve-connect'!BY$18","v":463.65186064026057},{"$f":"'Res-Appliance class'!$B34*'RES S curve-connect'!BZ$3+'Res-Appliance class'!$C34*'RES S curve-connect'!BZ$8+'Res-Appliance class'!$D34*'RES S curve-connect'!BZ$13+'Res-Appliance class'!$E34*'RES S curve-connect'!BZ$18","v":467.56540628014073},{"$f":"'Res-Appliance class'!$B34*'RES S curve-connect'!CA$3+'Res-Appliance class'!$C34*'RES S curve-connect'!CA$8+'Res-Appliance class'!$D34*'RES S curve-connect'!CA$13+'Res-Appliance class'!$E34*'RES S curve-connect'!CA$18","v":479.5125426408041},{"$f":"'Res-Appliance class'!$B34*'RES S curve-connect'!CB$3+'Res-Appliance class'!$C34*'RES S curve-connect'!CB$8+'Res-Appliance class'!$D34*'RES S curve-connect'!CB$13+'Res-Appliance class'!$E34*'RES S curve-connect'!CB$18","v":487.42671146580665},{"$f":"'Res-Appliance class'!$B34*'RES S curve-connect'!CC$3+'Res-Appliance class'!$C34*'RES S curve-connect'!CC$8+'Res-Appliance class'!$D34*'RES S curve-connect'!CC$13+'Res-Appliance class'!$E34*'RES S curve-connect'!CC$18","v":495.33018575375576},{"$f":"'Res-Appliance class'!$B34*'RES S curve-connect'!CD$3+'Res-Appliance class'!$C34*'RES S curve-connect'!CD$8+'Res-Appliance class'!$D34*'RES S curve-connect'!CD$13+'Res-Appliance class'!$E34*'RES S curve-connect'!CD$18","v":375.85326514719816}]
["Kingston (C)",null,{"$f":"'Res-Appliance class'!$B35*'RES S curve-connect'!C$3+'Res-Appliance class'!$C35*'RES S curve-connect'!C$8+'Res-Appliance class'!$D35*'RES S curve-connect'!C$13+'Res-Appliance class'!$E35*'RES S curve-connect'!C$18","v":-2563.1342224386112},{"$f":"'Res-Appliance class'!$B35*'RES S curve-connect'!D$3+'Res-Appliance class'!$C35*'RES S curve-connect'!D$8+'Res-Appliance class'!$D35*'RES S curve-connect'!D$13+'Res-Appliance class'!$E35*'RES S curve-connect'!D$18","v":-3136.528757939669},{"$f":"'Res-Appliance class'!$B35*'RES S curve-connect'!E$3+'Res-Appliance class'!$C35*'RES S curve-connect'!E$8+'Res-Appliance class'!$D35*'RES S curve-connect'!E$13+'Res-Appliance class'!$E35*'RES S curve-connect'!E$18","v":-2630.8471413534166},{"$f":"'Res-Appliance class'!$B35*'RES S curve-connect'!F$3+'Res-Appliance class'!$C35*'RES S curve-connect'!F$8+'Res-Appliance class'!$D35*'RES S curve-connect'!F$13+'Res-Appliance class'!$E35*'RES S curve-connect'!F$18","v":-2462.4274674043436},{"$f":"'Res-Appliance class'!$B35*'RES S curve-connect'!G$3+'Res-Appliance class'!$C35*'RES S curve-connect'!G$8+'Res-Appliance class'!$D35*'RES S curve-connect'!G$13+'Res-Appliance class'!$E35*'RES S curve-connect'!G$18","v":-3561.4103595344104},{"$f":"'Res-Appliance class'!$B35*'RES S curve-connect'!H$3+'Res-Appliance class'!$C35*'RES S curve-connect'!H$8+'Res-Appliance class'!$D35*'RES S curve-connect'!H$13+'Res-Appliance class'!$E35*'RES S curve-connect'!H$18","v":-3601.1241120901241},{"$f":"'Res-Appliance class'!$B35*'RES S curve-connect'!I$3+'Res-Appliance class'!$C35*'RES S curve-connect'!I$8+'Res-Appliance class'!$D35*'RES S curve-connect'!I$13+'Res-Appliance class'!$E35*'RES S curve-connect'!I$18","v":-3123.5534798019007},{"$f":"'Res-Appliance class'!$B35*'RES S curve-connect'!J$3+'Res-Appliance class'!$C35*'RES S curve-connect'!J$8+'Res-Appliance class'!$D35*'RES S curve-connect'!J$13+'Res-Appliance class'!$E35*'RES S curve-connect'!J$18","v":-3453.4992878042885},{"$f":"'Res-Appliance class'!$B35*'RES S curve-connect'!K$3+'Res-Appliance class'!$C35*'RES S curve-connect'!K$8+'Res-Appliance class'!$D35*'RES S curve-connect'!K$13+'Res-Appliance class'!$E35*'RES S curve-connect'!K$18","v":-2598.7473616004663},{"$f":"'Res-Appliance class'!$B35*'RES S curve-connect'!L$3+'Res-Appliance class'!$C35*'RES S curve-connect'!L$8+'Res-Appliance class'!$D35*'RES S curve-connect'!L$13+'Res-Appliance class'!$E35*'RES S curve-connect'!L$18","v":-2996.9622741435223},{"$f":"'Res-Appliance class'!$B35*'RES S curve-connect'!M$3+'Res-Appliance class'!$C35*'RES S curve-connect'!M$8+'Res-Appliance class'!$D35*'RES S curve-connect'!M$13+'Res-Appliance class'!$E35*'RES S curve-connect'!M$18","v":-3694.6698719712676},{"$f":"'Res-Appliance class'!$B35*'RES S curve-connect'!N$3+'Res-Appliance class'!$C35*'RES S curve-connect'!N$8+'Res-Appliance class'!$D35*'RES S curve-connect'!N$13+'Res-Appliance class'!$E35*'RES S curve-connect'!N$18","v":-3766.7751205793593},{"$f":"'Res-Appliance class'!$B35*'RES S curve-connect'!O$3+'Res-Appliance class'!$C35*'RES S curve-connect'!O$8+'Res-Appliance class'!$D35*'RES S curve-connect'!O$13+'Res-Appliance class'!$E35*'RES S curve-connect'!O$18","v":-3153.2073368273909},{"$f":"'Res-Appliance class'!$B35*'RES S curve-connect'!P$3+'Res-Appliance class'!$C35*'RES S curve-connect'!P$8+'Res-Appliance class'!$D35*'RES S curve-connect'!P$13+'Res-Appliance class'!$E35*'RES S curve-connect'!P$18","v":-2667.9528588959865},{"$f":"'Res-Appliance class'!$B35*'RES S curve-connect'!Q$3+'Res-Appliance class'!$C35*'RES S curve-connect'!Q$8+'Res-Appliance class'!$D35*'RES S curve-connect'!Q$13+'Res-Appliance class'!$E35*'RES S curve-connect'!Q$18","v":-1931.3751035758146},{"$f":"'Res-Appliance class'!$B35*'RES S curve-connect'!R$3+'Res-Appliance class'!$C35*'RES S curve-connect'!R$8+'Res-Appliance class'!$D35*'RES S curve-connect'!R$13+'Res-Appliance class'!$E35*'RES S curve-connect'!R$18","v":-1516.9246582310843},{"$f":"'Res-Appliance class'!$B35*'RES S curve-connect'!S$3+'Res-Appliance class'!$C35*'RES S curve-connect'!S$8+'Res-Appliance class'!$D35*'RES S curve-connect'!S$13+'Res-Appliance class'!$E35*'RES S curve-connect'!S$18","v":-851.49065701471216},{"$f":"'Res-Appliance class'!$B35*'RES S curve-connect'!T$3+'Res-Appliance class'!$C35*'RES S curve-connect'!T$8+'Res-Appliance class'!$D35*'RES S curve-connect'!T$13+'Res-Appliance class'!$E35*'RES S curve-connect'!T$18","v":-497.72761585838941},{"$f":"'Res-Appliance class'!$B35*'RES S curve-connect'!U$3+'Res-Appliance class'!$C35*'RES S curve-connect'!U$8+'Res-Appliance class'!$D35*'RES S curve-connect'!U$13+'Res-Appliance class'!$E35*'RES S curve-connect'!U$18","v":-89.05366096931192},{"$f":"'Res-Appliance class'!$B35*'RES S curve-connect'!V$3+'Res-Appliance class'!$C35*'RES S curve-connect'!V$8+'Res-Appliance class'!$D35*'RES S curve-connect'!V$13+'Res-Appliance class'!$E35*'RES S curve-connect'!V$18","v":189.48609772301342},{"$f":"'Res-Appliance class'!$B35*'RES S curve-connect'!W$3+'Res-Appliance class'!$C35*'RES S curve-connect'!W$8+'Res-Appliance class'!$D35*'RES S curve-connect'!W$13+'Res-Appliance class'!$E35*'RES S curve-connect'!W$18","v":404.78801579065993},{"$f":"'Res-Appliance class'!$B35*'RES S curve-connect'!X$3+'Res-Appliance class'!$C35*'RES S curve-connect'!X$8+'Res-Appliance class'!$D35*'RES S curve-connect'!X$13+'Res-Appliance class'!$E35*'RES S curve-connect'!X$18","v":898.0073189030611},{"$f":"'Res-Appliance class'!$B35*'RES S curve-connect'!Y$3+'Res-Appliance class'!$C35*'RES S curve-connect'!Y$8+'Res-Appliance class'!$D35*'RES S curve-connect'!Y$13+'Res-Appliance class'!$E35*'RES S curve-connect'!Y$18","v":1397.7243005046914},{"$f":"'Res-Appliance class'!$B35*'RES S curve-connect'!Z$3+'Res-Appliance class'!$C35*'RES S curve-connect'!Z$8+'Res-Appliance class'!$D35*'RES S curve-connect'!Z$13+'Res-Appliance class'!$E35*'RES S curve-connect'!Z$18","v":1734.3801992212018},{"$f":"'Res-Appliance class'!$B35*'RES S curve-connect'!AA$3+'Res-Appliance class'!$C35*'RES S curve-connect'!AA$8+'Res-Appliance class'!$D35*'RES S curve-connect'!AA$13+'Res-Appliance class'!$E35*'RES S curve-connect'!AA$18","v":2071.760583677793},{"$f":"'Res-Appliance class'!$B35*'RES S curve-connect'!AB$3+'Res-Appliance class'!$C35*'RES S curve-connect'!AB$8+'Res-Appliance class'!$D35*'RES S curve-connect'!AB$13+'Res-Appliance class'!$E35*'RES S curve-connect'!AB$18","v":2339.755878178039},{"$f":"'Res-Appliance class'!$B35*'RES S curve-connect'!AC$3+'Res-Appliance class'!$C35*'RES S curve-connect'!AC$8+'Res-Appliance class'!$D35*'RES S curve-connect'!AC$13+'Res-Appliance class'!$E35*'RES S curve-connect'!AC$18","v":2598.1600691945177},{"$f":"'Res-Appliance class'!$B35*'RES S curve-connect'!AD$3+'Res-Appliance class'!$C35*'RES S curve-connect'!AD$8+'Res-Appliance class'!$D35*'RES S curve-connect'!AD$13+'Res-Appliance class'!$E35*'RES S curve-connect'!AD$18","v":2834.7014642514964},{"$f":"'Res-Appliance class'!$B35*'RES S curve-connect'!AE$3+'Res-Appliance class'!$C35*'RES S curve-connect'!AE$8+'Res-Appliance class'!$D35*'RES S curve-connect'!AE$13+'Res-Appliance class'!$E35*'RES S curve-connect'!AE$18","v":3084.5963763827226},{"$f":"'Res-Appliance class'!$B35*'RES S curve-connect'!AF$3+'Res-Appliance class'!$C35*'RES S curve-connect'!AF$8+'Res-Appliance class'!$D35*'RES S curve-connect'!AF$13+'Res-Appliance class'!$E35*'RES S curve-connect'!AF$18","v":3408.7082968518243},{"$f":"'Res-Appliance class'!$B35*'RES S curve-connect'!AG$3+'Res-Appliance class'!$C35*'RES S curve-connect'!AG$8+'Res-Appliance class'!$D35*'RES S curve-connect'!AG$13+'Res-Appliance class'!$E35*'RES S curve-connect'!AG$18","v":3636.7066331128744},{"$f":"'Res-Appliance class'!$B35*'RES S curve-connect'!AH$3+'Res-Appliance class'!$C35*'RES S curve-connect'!AH$8+'Res-Appliance class'!$D35*'RES S curve-connect'!AH$13+'Res-Appliance class'!$E35*'RES S curve-connect'!AH$18","v":3955.7123525050729},{"$f":"'Res-Appliance class'!$B35*'RES S curve-connect'!AI$3+'Res-Appliance class'!$C35*'RES S curve-connect'!AI$8+'Res-Appliance class'!$D35*'RES S curve-connect'!AI$13+'Res-Appliance class'!$E35*'RES S curve-connect'!AI$18","v":4244.116862871073},{"$f":"'Res-Appliance class'!$B35*'RES S curve-connect'!AJ$3+'Res-Appliance class'!$C35*'RES S curve-connect'!AJ$8+'Res-Appliance class'!$D35*'RES S curve-connect'!AJ$13+'Res-Appliance class'!$E35*'RES S curve-connect'!AJ$18","v":4504.0602664963571},{"$f":"'Res-Appliance class'!$B35*'RES S curve-connect'!AK$3+'Res-Appliance class'!$C35*'RES S curve-connect'!AK$8+'Res-Appliance class'!$D35*'RES S curve-connect'!AK$13+'Res-Appliance class'!$E35*'RES S curve-connect'!AK$18","v":4780.0820399846652},{"$f":"'Res-Appliance class'!$B35*'RES S curve-connect'!AL$3+'Res-Appliance class'!$C35*'RES S curve-connect'!AL$8+'Res-Appliance class'!$D35*'RES S curve-connect'!AL$13+'Res-Appliance class'!$E35*'RES S curve-connect'!AL$18","v":3820.4063746344782},{"$f":"'Res-Appliance class'!$B35*'RES S curve-connect'!AM$3+'Res-Appliance class'!$C35*'RES S curve-connect'!AM$8+'Res-Appliance class'!$D35*'RES S curve-connect'!AM$13+'Res-Appliance class'!$E35*'RES S curve-connect'!AM$18","v":3697.2405535279959},{"$f":"'Res-Appliance class'!$B35*'RES S curve-connect'!AN$3+'Res-Appliance class'!$C35*'RES S curve-connect'!AN$8+'Res-Appliance class'!$D35*'RES S curve-connect'!AN$13+'Res-Appliance class'!$E35*'RES S curve-connect'!AN$18","v":3959.7459265802386},{"$f":"'Res-Appliance class'!$B35*'RES S curve-connect'!AO$3+'Res-Appliance class'!$C35*'RES S curve-connect'!AO$8+'Res-Appliance class'!$D35*'RES S curve-connect'!AO$13+'Res-Appliance class'!$E35*'RES S curve-connect'!AO$18","v":4279.6794844818914},{"$f":"'Res-Appliance class'!$B35*'RES S curve-connect'!AP$3+'Res-Appliance class'!$C35*'RES S curve-connect'!AP$8+'Res-Appliance class'!$D35*'RES S curve-connect'!AP$13+'Res-Appliance class'!$E35*'RES S curve-connect'!AP$18","v":4574.588055219836},{"$f":"'Res-Appliance class'!$B35*'RES S curve-connect'!AQ$3+'Res-Appliance class'!$C35*'RES S curve-connect'!AQ$8+'Res-Appliance class'!$D35*'RES S curve-connect'!AQ$13+'Res-Appliance class'!$E35*'RES S curve-connect'!AQ$18","v":4892.7588380463249},{"$f":"'Res-Appliance class'!$B35*'RES S curve-connect'!AR$3+'Res-Appliance class'!$C35*'RES S curve-connect'!AR$8+'Res-Appliance class'!$D35*'RES S curve-connect'!AR$13+'Res-Appliance class'!$E35*'RES S curve-connect'!AR$18","v":5241.7204597231103},{"$f":"'Res-Appliance class'!$B35*'RES S curve-connect'!AS$3+'Res-Appliance class'!$C35*'RES S curve-connect'!AS$8+'Res-Appliance class'!$D35*'RES S curve-connect'!AS$13+'Res-Appliance class'!$E35*'RES S curve-connect'!AS$18","v":5633.2017081684726},{"$f":"'Res-Appliance class'!$B35*'RES S curve-connect'!AT$3+'Res-Appliance class'!$C35*'RES S curve-connect'!AT$8+'Res-Appliance class'!$D35*'RES S curve-connect'!AT$13+'Res-Appliance class'!$E35*'RES S curve-connect'!AT$18","v":6070.658275429374},{"$f":"'Res-Appliance class'!$B35*'RES S curve-connect'!AU$3+'Res-Appliance class'!$C35*'RES S curve-connect'!AU$8+'Res-Appliance class'!$D35*'RES S curve-connect'!AU$13+'Res-Appliance class'!$E35*'RES S curve-connect'!AU$18","v":6577.2775373754266},{"$f":"'Res-Appliance class'!$B35*'RES S curve-connect'!AV$3+'Res-Appliance class'!$C35*'RES S curve-connect'!AV$8+'Res-Appliance class'!$D35*'RES S curve-connect'!AV$13+'Res-Appliance class'!$E35*'RES S curve-connect'!AV$18","v":7154.6205253750877},{"$f":"'Res-Appliance class'!$B35*'RES S curve-connect'!AW$3+'Res-Appliance class'!$C35*'RES S curve-connect'!AW$8+'Res-Appliance class'!$D35*'RES S curve-connect'!AW$13+'Res-Appliance class'!$E35*'RES S curve-connect'!AW$18","v":7817.9691214374279},{"$f":"'Res-Appliance class'!$B35*'RES S curve-connect'!AX$3+'Res-Appliance class'!$C35*'RES S curve-connect'!AX$8+'Res-Appliance class'!$D35*'RES S curve-connect'!AX$13+'Res-Appliance class'!$E35*'RES S curve-connect'!AX$18","v":8573.3364686237837},{"$f":"'Res-Appliance class'!$B35*'RES S curve-connect'!AY$3+'Res-Appliance class'!$C35*'RES S curve-connect'!AY$8+'Res-Appliance class'!$D35*'RES S curve-connect'!AY$13+'Res-Appliance class'!$E35*'RES S curve-connect'!AY$18","v":9445.1815396695183},{"$f":"'Res-Appliance class'!$B35*'RES S curve-connect'!AZ$3+'Res-Appliance class'!$C35*'RES S curve-connect'!AZ$8+'Res-Appliance class'!$D35*'RES S curve-connect'!AZ$13+'Res-Appliance class'!$E35*'RES S curve-connect'!AZ$18","v":10440.997900224129},{"$f":"'Res-Appliance class'!$B35*'RES S curve-connect'!BA$3+'Res-Appliance class'!$C35*'RES S curve-connect'!BA$8+'Res-Appliance class'!$D35*'RES S curve-connect'!BA$13+'Res-Appliance class'!$E35*'RES S curve-connect'!BA$18","v":11593.673606944658},{"$f":"'Res-Appliance class'!$B35*'RES S curve-connect'!BB$3+'Res-Appliance class'!$C35*'RES S curve-connect'!BB$8+'Res-Appliance class'!$D35*'RES S curve-connect'!BB$13+'Res-Appliance class'!$E35*'RES S curve-connect'!BB$18","v":12939.360134176328},{"$f":"'Res-Appliance class'!$B35*'RES S curve-connect'!BC$3+'Res-Appliance class'!$C35*'RES S curve-connect'!BC$8+'Res-Appliance class'!$D35*'RES S curve-connect'!BC$13+'Res-Appliance class'!$E35*'RES S curve-connect'!BC$18","v":14543.919357639663},{"$f":"'Res-Appliance class'!$B35*'RES S curve-connect'!BD$3+'Res-Appliance class'!$C35*'RES S curve-connect'!BD$8+'Res-Appliance class'!$D35*'RES S curve-connect'!BD$13+'Res-Appliance class'!$E35*'RES S curve-connect'!BD$18","v":16089.27154022958},{"$f":"'Res-Appliance class'!$B35*'RES S curve-connect'!BE$3+'Res-Appliance class'!$C35*'RES S curve-connect'!BE$8+'Res-Appliance class'!$D35*'RES S curve-connect'!BE$13+'Res-Appliance class'!$E35*'RES S curve-connect'!BE$18","v":17500.884492953392},{"$f":"'Res-Appliance class'!$B35*'RES S curve-connect'!BF$3+'Res-Appliance class'!$C35*'RES S curve-connect'!BF$8+'Res-Appliance class'!$D35*'RES S curve-connect'!BF$13+'Res-Appliance class'!$E35*'RES S curve-connect'!BF$18","v":18945.480701343775},{"$f":"'Res-Appliance class'!$B35*'RES S curve-connect'!BG$3+'Res-Appliance class'!$C35*'RES S curve-connect'!BG$8+'Res-Appliance class'!$D35*'RES S curve-connect'!BG$13+'Res-Appliance class'!$E35*'RES S curve-connect'!BG$18","v":20581.395322346278},{"$f":"'Res-Appliance class'!$B35*'RES S curve-connect'!BH$3+'Res-Appliance class'!$C35*'RES S curve-connect'!BH$8+'Res-Appliance class'!$D35*'RES S curve-connect'!BH$13+'Res-Appliance class'!$E35*'RES S curve-connect'!BH$18","v":22522.735239896752},{"$f":"'Res-Appliance class'!$B35*'RES S curve-connect'!BI$3+'Res-Appliance class'!$C35*'RES S curve-connect'!BI$8+'Res-Appliance class'!$D35*'RES S curve-connect'!BI$13+'Res-Appliance class'!$E35*'RES S curve-connect'!BI$18","v":25336.314801390836},{"$f":"'Res-Appliance class'!$B35*'RES S curve-connect'!BJ$3+'Res-Appliance class'!$C35*'RES S curve-connect'!BJ$8+'Res-Appliance class'!$D35*'RES S curve-connect'!BJ$13+'Res-Appliance class'!$E35*'RES S curve-connect'!BJ$18","v":29453.995005495755},{"$f":"'Res-Appliance class'!$B35*'RES S curve-connect'!BK$3+'Res-Appliance class'!$C35*'RES S curve-connect'!BK$8+'Res-Appliance class'!$D35*'RES S curve-connect'!BK$13+'Res-Appliance class'!$E35*'RES S curve-connect'!BK$18","v":35526.504286669631},{"$f":"'Res-Appliance class'!$B35*'RES S curve-connect'!BL$3+'Res-Appliance class'!$C35*'RES S curve-connect'!BL$8+'Res-Appliance class'!$D35*'RES S curve-connect'!BL$13+'Res-Appliance class'!$E35*'RES S curve-connect'!BL$18","v":314.57370985465815},{"$f":"'Res-Appliance class'!$B35*'RES S curve-connect'!BM$3+'Res-Appliance class'!$C35*'RES S curve-connect'!BM$8+'Res-Appliance class'!$D35*'RES S curve-connect'!BM$13+'Res-Appliance class'!$E35*'RES S curve-connect'!BM$18","v":322.34848749398725},{"$f":"'Res-Appliance class'!$B35*'RES S curve-connect'!BN$3+'Res-Appliance class'!$C35*'RES S curve-connect'!BN$8+'Res-Appliance class'!$D35*'RES S curve-connect'!BN$13+'Res-Appliance class'!$E35*'RES S curve-connect'!BN$18","v":326.08960499081638},{"$f":"'Res-Appliance class'!$B35*'RES S curve-connect'!BO$3+'Res-Appliance class'!$C35*'RES S curve-connect'!BO$8+'Res-Appliance class'!$D35*'RES S curve-connect'!BO$13+'Res-Appliance class'!$E35*'RES S curve-connect'!BO$18","v":337.86375562632679},{"$f":"'Res-Appliance class'!$B35*'RES S curve-connect'!BP$3+'Res-Appliance class'!$C35*'RES S curve-connect'!BP$8+'Res-Appliance class'!$D35*'RES S curve-connect'!BP$13+'Res-Appliance class'!$E35*'RES S curve-connect'!BP$18","v":345.60438475278431},{"$f":"'Res-Appliance class'!$B35*'RES S curve-connect'!BQ$3+'Res-Appliance class'!$C35*'RES S curve-connect'!BQ$8+'Res-Appliance class'!$D35*'RES S curve-connect'!BQ$13+'Res-Appliance class'!$E35*'RES S curve-connect'!BQ$18","v":353.33376895429194},{"$f":"'Res-Appliance class'!$B35*'RES S curve-connect'!BR$3+'Res-Appliance class'!$C35*'RES S curve-connect'!BR$8+'Res-Appliance class'!$D35*'RES S curve-connect'!BR$13+'Res-Appliance class'!$E35*'RES S curve-connect'!BR$18","v":357.02976855471837},{"$f":"'Res-Appliance class'!$B35*'RES S curve-connect'!BS$3+'Res-Appliance class'!$C35*'RES S curve-connect'!BS$8+'Res-Appliance class'!$D35*'RES S curve-connect'!BS$13+'Res-Appliance class'!$E35*'RES S curve-connect'!BS$18","v":368.75907511520927},{"$f":"'Res-Appliance class'!$B35*'RES S curve-connect'!BT$3+'Res-Appliance class'!$C35*'RES S curve-connect'!BT$8+'Res-Appliance class'!$D35*'RES S curve-connect'!BT$13+'Res-Appliance class'!$E35*'RES S curve-connect'!BT$18","v":376.45513227888046},{"$f":"'Res-Appliance class'!$B35*'RES S curve-connect'!BU$3+'Res-Appliance class'!$C35*'RES S curve-connect'!BU$8+'Res-Appliance class'!$D35*'RES S curve-connect'!BU$13+'Res-Appliance class'!$E35*'RES S curve-connect'!BU$18","v":384.14021493150022},{"$f":"'Res-Appliance class'!$B35*'RES S curve-connect'!BV$3+'Res-Appliance class'!$C35*'RES S curve-connect'!BV$8+'Res-Appliance class'!$D35*'RES S curve-connect'!BV$13+'Res-Appliance class'!$E35*'RES S curve-connect'!BV$18","v":387.7921817093403},{"$f":"'Res-Appliance class'!$B35*'RES S curve-connect'!BW$3+'Res-Appliance class'!$C35*'RES S curve-connect'!BW$8+'Res-Appliance class'!$D35*'RES S curve-connect'!BW$13+'Res-Appliance class'!$E35*'RES S curve-connect'!BW$18","v":399.4777224966308},{"$f":"'Res-Appliance class'!$B35*'RES S curve-connect'!BX$3+'Res-Appliance class'!$C35*'RES S curve-connect'!BX$8+'Res-Appliance class'!$D35*'RES S curve-connect'!BX$13+'Res-Appliance class'!$E35*'RES S curve-connect'!BX$18","v":407.13027927017703},{"$f":"'Res-Appliance class'!$B35*'RES S curve-connect'!BY$3+'Res-Appliance class'!$C35*'RES S curve-connect'!BY$8+'Res-Appliance class'!$D35*'RES S curve-connect'!BY$13+'Res-Appliance class'!$E35*'RES S curve-connect'!BY$18","v":414.77212525997544},{"$f":"'Res-Appliance class'!$B35*'RES S curve-connect'!BZ$3+'Res-Appliance class'!$C35*'RES S curve-connect'!BZ$8+'Res-Appliance class'!$D35*'RES S curve-connect'!BZ$13+'Res-Appliance class'!$E35*'RES S curve-connect'!BZ$18","v":418.38111745700206},{"$f":"'Res-Appliance class'!$B35*'RES S curve-connect'!CA$3+'Res-Appliance class'!$C35*'RES S curve-connect'!CA$8+'Res-Appliance class'!$D35*'RES S curve-connect'!CA$13+'Res-Appliance class'!$E35*'RES S curve-connect'!CA$18","v":430.02394411059822},{"$f":"'Res-Appliance class'!$B35*'RES S curve-connect'!CB$3+'Res-Appliance class'!$C35*'RES S curve-connect'!CB$8+'Res-Appliance class'!$D35*'RES S curve-connect'!CB$13+'Res-Appliance class'!$E35*'RES S curve-connect'!CB$18","v":437.634045573018},{"$f":"'Res-Appliance class'!$B35*'RES S curve-connect'!CC$3+'Res-Appliance class'!$C35*'RES S curve-connect'!CC$8+'Res-Appliance class'!$D35*'RES S curve-connect'!CC$13+'Res-Appliance class'!$E35*'RES S curve-connect'!CC$18","v":445.23369345998231},{"$f":"'Res-Appliance class'!$B35*'RES S curve-connect'!CD$3+'Res-Appliance class'!$C35*'RES S curve-connect'!CD$8+'Res-Appliance class'!$D35*'RES S curve-connect'!CD$13+'Res-Appliance class'!$E35*'RES S curve-connect'!CD$18","v":330.88072570784846}]
["Knox (C)",null,{"$f":"'Res-Appliance class'!$B36*'RES S curve-connect'!C$3+'Res-Appliance class'!$C36*'RES S curve-connect'!C$8+'Res-Appliance class'!$D36*'RES S curve-connect'!C$13+'Res-Appliance class'!$E36*'RES S curve-connect'!C$18","v":-2731.0538636933607},{"$f":"'Res-Appliance class'!$B36*'RES S curve-connect'!D$3+'Res-Appliance class'!$C36*'RES S curve-connect'!D$8+'Res-Appliance class'!$D36*'RES S curve-connect'!D$13+'Res-Appliance class'!$E36*'RES S curve-connect'!D$18","v":-3379.4734964882923},{"$f":"'Res-Appliance class'!$B36*'RES S curve-connect'!E$3+'Res-Appliance class'!$C36*'RES S curve-connect'!E$8+'Res-Appliance class'!$D36*'RES S curve-connect'!E$13+'Res-Appliance class'!$E36*'RES S curve-connect'!E$18","v":-2767.0041085689927},{"$f":"'Res-Appliance class'!$B36*'RES S curve-connect'!F$3+'Res-Appliance class'!$C36*'RES S curve-connect'!F$8+'Res-Appliance class'!$D36*'RES S curve-connect'!F$13+'Res-Appliance class'!$E36*'RES S curve-connect'!F$18","v":-2571.3918093678699},{"$f":"'Res-Appliance class'!$B36*'RES S curve-connect'!G$3+'Res-Appliance class'!$C36*'RES S curve-connect'!G$8+'Res-Appliance class'!$D36*'RES S curve-connect'!G$13+'Res-Appliance class'!$E36*'RES S curve-connect'!G$18","v":-3939.8779125415685},{"$f":"'Res-Appliance class'!$B36*'RES S curve-connect'!H$3+'Res-Appliance class'!$C36*'RES S curve-connect'!H$8+'Res-Appliance class'!$D36*'RES S curve-connect'!H$13+'Res-Appliance class'!$E36*'RES S curve-connect'!H$18","v":-3971.3105793563655},{"$f":"'Res-Appliance class'!$B36*'RES S curve-connect'!I$3+'Res-Appliance class'!$C36*'RES S curve-connect'!I$8+'Res-Appliance class'!$D36*'RES S curve-connect'!I$13+'Res-Appliance class'!$E36*'RES S curve-connect'!I$18","v":-3418.3833956900535},{"$f":"'Res-Appliance class'!$B36*'RES S curve-connect'!J$3+'Res-Appliance class'!$C36*'RES S curve-connect'!J$8+'Res-Appliance class'!$D36*'RES S curve-connect'!J$13+'Res-Appliance class'!$E36*'RES S curve-connect'!J$18","v":-3736.800866601694},{"$f":"'Res-Appliance class'!$B36*'RES S curve-connect'!K$3+'Res-Appliance class'!$C36*'RES S curve-connect'!K$8+'Res-Appliance class'!$D36*'RES S curve-connect'!K$13+'Res-Appliance class'!$E36*'RES S curve-connect'!K$18","v":-2758.9555963034118},{"$f":"'Res-Appliance class'!$B36*'RES S curve-connect'!L$3+'Res-Appliance class'!$C36*'RES S curve-connect'!L$8+'Res-Appliance class'!$D36*'RES S curve-connect'!L$13+'Res-Appliance class'!$E36*'RES S curve-connect'!L$18","v":-3211.7489359203314},{"$f":"'Res-Appliance class'!$B36*'RES S curve-connect'!M$3+'Res-Appliance class'!$C36*'RES S curve-connect'!M$8+'Res-Appliance class'!$D36*'RES S curve-connect'!M$13+'Res-Appliance class'!$E36*'RES S curve-connect'!M$18","v":-4033.3476532593027},{"$f":"'Res-Appliance class'!$B36*'RES S curve-connect'!N$3+'Res-Appliance class'!$C36*'RES S curve-connect'!N$8+'Res-Appliance class'!$D36*'RES S curve-connect'!N$13+'Res-Appliance class'!$E36*'RES S curve-connect'!N$18","v":-4118.9662911117539},{"$f":"'Res-Appliance class'!$B36*'RES S curve-connect'!O$3+'Res-Appliance class'!$C36*'RES S curve-connect'!O$8+'Res-Appliance class'!$D36*'RES S curve-connect'!O$13+'Res-Appliance class'!$E36*'RES S curve-connect'!O$18","v":-3416.5650935502008},{"$f":"'Res-Appliance class'!$B36*'RES S curve-connect'!P$3+'Res-Appliance class'!$C36*'RES S curve-connect'!P$8+'Res-Appliance class'!$D36*'RES S curve-connect'!P$13+'Res-Appliance class'!$E36*'RES S curve-connect'!P$18","v":-2858.1680214227708},{"$f":"'Res-Appliance class'!$B36*'RES S curve-connect'!Q$3+'Res-Appliance class'!$C36*'RES S curve-connect'!Q$8+'Res-Appliance class'!$D36*'RES S curve-connect'!Q$13+'Res-Appliance class'!$E36*'RES S curve-connect'!Q$18","v":-2009.6659838705775},{"$f":"'Res-Appliance class'!$B36*'RES S curve-connect'!R$3+'Res-Appliance class'!$C36*'RES S curve-connect'!R$8+'Res-Appliance class'!$D36*'RES S curve-connect'!R$13+'Res-Appliance class'!$E36*'RES S curve-connect'!R$18","v":-1532.4920546146241},{"$f":"'Res-Appliance class'!$B36*'RES S curve-connect'!S$3+'Res-Appliance class'!$C36*'RES S curve-connect'!S$8+'Res-Appliance class'!$D36*'RES S curve-connect'!S$13+'Res-Appliance class'!$E36*'RES S curve-connect'!S$18","v":-769.55133503140019},{"$f":"'Res-Appliance class'!$B36*'RES S curve-connect'!T$3+'Res-Appliance class'!$C36*'RES S curve-connect'!T$8+'Res-Appliance class'!$D36*'RES S curve-connect'!T$13+'Res-Appliance class'!$E36*'RES S curve-connect'!T$18","v":-356.03017970504112},{"$f":"'Res-Appliance class'!$B36*'RES S curve-connect'!U$3+'Res-Appliance class'!$C36*'RES S curve-connect'!U$8+'Res-Appliance class'!$D36*'RES S curve-connect'!U$13+'Res-Appliance class'!$E36*'RES S curve-connect'!U$18","v":115.37275692392024},{"$f":"'Res-Appliance class'!$B36*'RES S curve-connect'!V$3+'Res-Appliance class'!$C36*'RES S curve-connect'!V$8+'Res-Appliance class'!$D36*'RES S curve-connect'!V$13+'Res-Appliance class'!$E36*'RES S curve-connect'!V$18","v":433.51852601974127},{"$f":"'Res-Appliance class'!$B36*'RES S curve-connect'!W$3+'Res-Appliance class'!$C36*'RES S curve-connect'!W$8+'Res-Appliance class'!$D36*'RES S curve-connect'!W$13+'Res-Appliance class'!$E36*'RES S curve-connect'!W$18","v":679.55851657487608},{"$f":"'Res-Appliance class'!$B36*'RES S curve-connect'!X$3+'Res-Appliance class'!$C36*'RES S curve-connect'!X$8+'Res-Appliance class'!$D36*'RES S curve-connect'!X$13+'Res-Appliance class'!$E36*'RES S curve-connect'!X$18","v":1250.4045332680291},{"$f":"'Res-Appliance class'!$B36*'RES S curve-connect'!Y$3+'Res-Appliance class'!$C36*'RES S curve-connect'!Y$8+'Res-Appliance class'!$D36*'RES S curve-connect'!Y$13+'Res-Appliance class'!$E36*'RES S curve-connect'!Y$18","v":1827.8047253057357},{"$f":"'Res-Appliance class'!$B36*'RES S curve-connect'!Z$3+'Res-Appliance class'!$C36*'RES S curve-connect'!Z$8+'Res-Appliance class'!$D36*'RES S curve-connect'!Z$13+'Res-Appliance class'!$E36*'RES S curve-connect'!Z$18","v":2215.5320089536667},{"$f":"'Res-Appliance class'!$B36*'RES S curve-connect'!AA$3+'Res-Appliance class'!$C36*'RES S curve-connect'!AA$8+'Res-Appliance class'!$D36*'RES S curve-connect'!AA$13+'Res-Appliance class'!$E36*'RES S curve-connect'!AA$18","v":2602.9722808408483},{"$f":"'Res-Appliance class'!$B36*'RES S curve-connect'!AB$3+'Res-Appliance class'!$C36*'RES S curve-connect'!AB$8+'Res-Appliance class'!$D36*'RES S curve-connect'!AB$13+'Res-Appliance class'!$E36*'RES S curve-connect'!AB$18","v":2910.397015532651},{"$f":"'Res-Appliance class'!$B36*'RES S curve-connect'!AC$3+'Res-Appliance class'!$C36*'RES S curve-connect'!AC$8+'Res-Appliance class'!$D36*'RES S curve-connect'!AC$13+'Res-Appliance class'!$E36*'RES S curve-connect'!AC$18","v":3206.0600092763652},{"$f":"'Res-Appliance class'!$B36*'RES S curve-connect'!AD$3+'Res-Appliance class'!$C36*'RES S curve-connect'!AD$8+'Res-Appliance class'!$D36*'RES S curve-connect'!AD$13+'Res-Appliance class'!$E36*'RES S curve-connect'!AD$18","v":3476.551547498264},{"$f":"'Res-Appliance class'!$B36*'RES S curve-connect'!AE$3+'Res-Appliance class'!$C36*'RES S curve-connect'!AE$8+'Res-Appliance class'!$D36*'RES S curve-connect'!AE$13+'Res-Appliance class'!$E36*'RES S curve-connect'!AE$18","v":3760.8570337297097},{"$f":"'Res-Appliance class'!$B36*'RES S curve-connect'!AF$3+'Res-Appliance class'!$C36*'RES S curve-connect'!AF$8+'Res-Appliance class'!$D36*'RES S curve-connect'!AF$13+'Res-Appliance class'!$E36*'RES S curve-connect'!AF$18","v":4132.060730998679},{"$f":"'Res-Appliance class'!$B36*'RES S curve-connect'!AG$3+'Res-Appliance class'!$C36*'RES S curve-connect'!AG$8+'Res-Appliance class'!$D36*'RES S curve-connect'!AG$13+'Res-Appliance class'!$E36*'RES S curve-connect'!AG$18","v":4393.6323112932114},{"$f":"'Res-Appliance class'!$B36*'RES S curve-connect'!AH$3+'Res-Appliance class'!$C36*'RES S curve-connect'!AH$8+'Res-Appliance class'!$D36*'RES S curve-connect'!AH$13+'Res-Appliance class'!$E36*'RES S curve-connect'!AH$18","v":4762.7755330397267},{"$f":"'Res-Appliance class'!$B36*'RES S curve-connect'!AI$3+'Res-Appliance class'!$C36*'RES S curve-connect'!AI$8+'Res-Appliance class'!$D36*'RES S curve-connect'!AI$13+'Res-Appliance class'!$E36*'RES S curve-connect'!AI$18","v":5093.6297216297689},{"$f":"'Res-Appliance class'!$B36*'RES S curve-connect'!AJ$3+'Res-Appliance class'!$C36*'RES S curve-connect'!AJ$8+'Res-Appliance class'!$D36*'RES S curve-connect'!AJ$13+'Res-Appliance class'!$E36*'RES S curve-connect'!AJ$18","v":5392.4213482529422},{"$f":"'Res-Appliance class'!$B36*'RES S curve-connect'!AK$3+'Res-Appliance class'!$C36*'RES S curve-connect'!AK$8+'Res-Appliance class'!$D36*'RES S curve-connect'!AK$13+'Res-Appliance class'!$E36*'RES S curve-connect'!AK$18","v":5709.5974993866612},{"$f":"'Res-Appliance class'!$B36*'RES S curve-connect'!AL$3+'Res-Appliance class'!$C36*'RES S curve-connect'!AL$8+'Res-Appliance class'!$D36*'RES S curve-connect'!AL$13+'Res-Appliance class'!$E36*'RES S curve-connect'!AL$18","v":4614.1994101946202},{"$f":"'Res-Appliance class'!$B36*'RES S curve-connect'!AM$3+'Res-Appliance class'!$C36*'RES S curve-connect'!AM$8+'Res-Appliance class'!$D36*'RES S curve-connect'!AM$13+'Res-Appliance class'!$E36*'RES S curve-connect'!AM$18","v":4469.2641728469971},{"$f":"'Res-Appliance class'!$B36*'RES S curve-connect'!AN$3+'Res-Appliance class'!$C36*'RES S curve-connect'!AN$8+'Res-Appliance class'!$D36*'RES S curve-connect'!AN$13+'Res-Appliance class'!$E36*'RES S curve-connect'!AN$18","v":4768.6916187868055},{"$f":"'Res-Appliance class'!$B36*'RES S curve-connect'!AO$3+'Res-Appliance class'!$C36*'RES S curve-connect'!AO$8+'Res-Appliance class'!$D36*'RES S curve-connect'!AO$13+'Res-Appliance class'!$E36*'RES S curve-connect'!AO$18","v":5135.7219711806729},{"$f":"'Res-Appliance class'!$B36*'RES S curve-connect'!AP$3+'Res-Appliance class'!$C36*'RES S curve-connect'!AP$8+'Res-Appliance class'!$D36*'RES S curve-connect'!AP$13+'Res-Appliance class'!$E36*'RES S curve-connect'!AP$18","v":5475.2770397571858},{"$f":"'Res-Appliance class'!$B36*'RES S curve-connect'!AQ$3+'Res-Appliance class'!$C36*'RES S curve-connect'!AQ$8+'Res-Appliance class'!$D36*'RES S curve-connect'!AQ$13+'Res-Appliance class'!$E36*'RES S curve-connect'!AQ$18","v":5840.361054634729},{"$f":"'Res-Appliance class'!$B36*'RES S curve-connect'!AR$3+'Res-Appliance class'!$C36*'RES S curve-connect'!AR$8+'Res-Appliance class'!$D36*'RES S curve-connect'!AR$13+'Res-Appliance class'!$E36*'RES S curve-connect'!AR$18","v":6241.5154167163782},{"$f":"'Res-Appliance class'!$B36*'RES S curve-connect'!AS$3+'Res-Appliance class'!$C36*'RES S curve-connect'!AS$8+'Res-Appliance class'!$D36*'RES S curve-connect'!AS$13+'Res-Appliance class'!$E36*'RES S curve-connect'!AS$18","v":6691.7463953068709},{"$f":"'Res-Appliance class'!$B36*'RES S curve-connect'!AT$3+'Res-Appliance class'!$C36*'RES S curve-connect'!AT$8+'Res-Appliance class'!$D36*'RES S curve-connect'!AT$13+'Res-Appliance class'!$E36*'RES S curve-connect'!AT$18","v":7195.7066731522909},{"$f":"'Res-Appliance class'!$B36*'RES S curve-connect'!AU$3+'Res-Appliance class'!$C36*'RES S curve-connect'!AU$8+'Res-Appliance class'!$D36*'RES S curve-connect'!AU$13+'Res-Appliance class'!$E36*'RES S curve-connect'!AU$18","v":7778.3282125530432},{"$f":"'Res-Appliance class'!$B36*'RES S curve-connect'!AV$3+'Res-Appliance class'!$C36*'RES S curve-connect'!AV$8+'Res-Appliance class'!$D36*'RES S curve-connect'!AV$13+'Res-Appliance class'!$E36*'RES S curve-connect'!AV$18","v":8443.3415677854555},{"$f":"'Res-Appliance class'!$B36*'RES S curve-connect'!AW$3+'Res-Appliance class'!$C36*'RES S curve-connect'!AW$8+'Res-Appliance class'!$D36*'RES S curve-connect'!AW$13+'Res-Appliance class'!$E36*'RES S curve-connect'!AW$18","v":9207.9252230220991},{"$f":"'Res-Appliance class'!$B36*'RES S curve-connect'!AX$3+'Res-Appliance class'!$C36*'RES S curve-connect'!AX$8+'Res-Appliance class'!$D36*'RES S curve-connect'!AX$13+'Res-Appliance class'!$E36*'RES S curve-connect'!AX$18","v":10079.855549088934},{"$f":"'Res-Appliance class'!$B36*'RES S curve-connect'!AY$3+'Res-Appliance class'!$C36*'RES S curve-connect'!AY$8+'Res-Appliance class'!$D36*'RES S curve-connect'!AY$13+'Res-Appliance class'!$E36*'RES S curve-connect'!AY$18","v":11085.736074461036},{"$f":"'Res-Appliance class'!$B36*'RES S curve-connect'!AZ$3+'Res-Appliance class'!$C36*'RES S curve-connect'!AZ$8+'Res-Appliance class'!$D36*'RES S curve-connect'!AZ$13+'Res-Appliance class'!$E36*'RES S curve-connect'!AZ$18","v":12236.338168854481},{"$f":"'Res-Appliance class'!$B36*'RES S curve-connect'!BA$3+'Res-Appliance class'!$C36*'RES S curve-connect'!BA$8+'Res-Appliance class'!$D36*'RES S curve-connect'!BA$13+'Res-Appliance class'!$E36*'RES S curve-connect'!BA$18","v":13569.343843263783},{"$f":"'Res-Appliance class'!$B36*'RES S curve-connect'!BB$3+'Res-Appliance class'!$C36*'RES S curve-connect'!BB$8+'Res-Appliance class'!$D36*'RES S curve-connect'!BB$13+'Res-Appliance class'!$E36*'RES S curve-connect'!BB$18","v":15127.607442713543},{"$f":"'Res-Appliance class'!$B36*'RES S curve-connect'!BC$3+'Res-Appliance class'!$C36*'RES S curve-connect'!BC$8+'Res-Appliance class'!$D36*'RES S curve-connect'!BC$13+'Res-Appliance class'!$E36*'RES S curve-connect'!BC$18","v":16986.018697967953},{"$f":"'Res-Appliance class'!$B36*'RES S curve-connect'!BD$3+'Res-Appliance class'!$C36*'RES S curve-connect'!BD$8+'Res-Appliance class'!$D36*'RES S curve-connect'!BD$13+'Res-Appliance class'!$E36*'RES S curve-connect'!BD$18","v":18781.127045853267},{"$f":"'Res-Appliance class'!$B36*'RES S curve-connect'!BE$3+'Res-Appliance class'!$C36*'RES S curve-connect'!BE$8+'Res-Appliance class'!$D36*'RES S curve-connect'!BE$13+'Res-Appliance class'!$E36*'RES S curve-connect'!BE$18","v":20422.642392588848},{"$f":"'Res-Appliance class'!$B36*'RES S curve-connect'!BF$3+'Res-Appliance class'!$C36*'RES S curve-connect'!BF$8+'Res-Appliance class'!$D36*'RES S curve-connect'!BF$13+'Res-Appliance class'!$E36*'RES S curve-connect'!BF$18","v":22101.991507022743},{"$f":"'Res-Appliance class'!$B36*'RES S curve-connect'!BG$3+'Res-Appliance class'!$C36*'RES S curve-connect'!BG$8+'Res-Appliance class'!$D36*'RES S curve-connect'!BG$13+'Res-Appliance class'!$E36*'RES S curve-connect'!BG$18","v":24001.764577591457},{"$f":"'Res-Appliance class'!$B36*'RES S curve-connect'!BH$3+'Res-Appliance class'!$C36*'RES S curve-connect'!BH$8+'Res-Appliance class'!$D36*'RES S curve-connect'!BH$13+'Res-Appliance class'!$E36*'RES S curve-connect'!BH$18","v":26257.425936907264},{"$f":"'Res-Appliance class'!$B36*'RES S curve-connect'!BI$3+'Res-Appliance class'!$C36*'RES S curve-connect'!BI$8+'Res-Appliance class'!$D36*'RES S curve-connect'!BI$13+'Res-Appliance class'!$E36*'RES S curve-connect'!BI$18","v":29525.336229508714},{"$f":"'Res-Appliance class'!$B36*'RES S curve-connect'!BJ$3+'Res-Appliance class'!$C36*'RES S curve-connect'!BJ$8+'Res-Appliance class'!$D36*'RES S curve-connect'!BJ$13+'Res-Appliance class'!$E36*'RES S curve-connect'!BJ$18","v":34314.058853793402},{"$f":"'Res-Appliance class'!$B36*'RES S curve-connect'!BK$3+'Res-Appliance class'!$C36*'RES S curve-connect'!BK$8+'Res-Appliance class'!$D36*'RES S curve-connect'!BK$13+'Res-Appliance class'!$E36*'RES S curve-connect'!BK$18","v":41385.209610062004},{"$f":"'Res-Appliance class'!$B36*'RES S curve-connect'!BL$3+'Res-Appliance class'!$C36*'RES S curve-connect'!BL$8+'Res-Appliance class'!$D36*'RES S curve-connect'!BL$13+'Res-Appliance class'!$E36*'RES S curve-connect'!BL$18","v":604.01713734248005},{"$f":"'Res-Appliance class'!$B36*'RES S curve-connect'!BM$3+'Res-Appliance class'!$C36*'RES S curve-connect'!BM$8+'Res-Appliance class'!$D36*'RES S curve-connect'!BM$13+'Res-Appliance class'!$E36*'RES S curve-connect'!BM$18","v":612.93723485780515},{"$f":"'Res-Appliance class'!$B36*'RES S curve-connect'!BN$3+'Res-Appliance class'!$C36*'RES S curve-connect'!BN$8+'Res-Appliance class'!$D36*'RES S curve-connect'!BN$13+'Res-Appliance class'!$E36*'RES S curve-connect'!BN$18","v":617.82299209058829},{"$f":"'Res-Appliance class'!$B36*'RES S curve-connect'!BO$3+'Res-Appliance class'!$C36*'RES S curve-connect'!BO$8+'Res-Appliance class'!$D36*'RES S curve-connect'!BO$13+'Res-Appliance class'!$E36*'RES S curve-connect'!BO$18","v":630.74110564368846},{"$f":"'Res-Appliance class'!$B36*'RES S curve-connect'!BP$3+'Res-Appliance class'!$C36*'RES S curve-connect'!BP$8+'Res-Appliance class'!$D36*'RES S curve-connect'!BP$13+'Res-Appliance class'!$E36*'RES S curve-connect'!BP$18","v":639.62502417277983},{"$f":"'Res-Appliance class'!$B36*'RES S curve-connect'!BQ$3+'Res-Appliance class'!$C36*'RES S curve-connect'!BQ$8+'Res-Appliance class'!$D36*'RES S curve-connect'!BQ$13+'Res-Appliance class'!$E36*'RES S curve-connect'!BQ$18","v":648.49702754721432},{"$f":"'Res-Appliance class'!$B36*'RES S curve-connect'!BR$3+'Res-Appliance class'!$C36*'RES S curve-connect'!BR$8+'Res-Appliance class'!$D36*'RES S curve-connect'!BR$13+'Res-Appliance class'!$E36*'RES S curve-connect'!BR$18","v":653.33497935805747},{"$f":"'Res-Appliance class'!$B36*'RES S curve-connect'!BS$3+'Res-Appliance class'!$C36*'RES S curve-connect'!BS$8+'Res-Appliance class'!$D36*'RES S curve-connect'!BS$13+'Res-Appliance class'!$E36*'RES S curve-connect'!BS$18","v":666.20557441570543},{"$f":"'Res-Appliance class'!$B36*'RES S curve-connect'!BT$3+'Res-Appliance class'!$C36*'RES S curve-connect'!BT$8+'Res-Appliance class'!$D36*'RES S curve-connect'!BT$13+'Res-Appliance class'!$E36*'RES S curve-connect'!BT$18","v":675.0422595946859},{"$f":"'Res-Appliance class'!$B36*'RES S curve-connect'!BU$3+'Res-Appliance class'!$C36*'RES S curve-connect'!BU$8+'Res-Appliance class'!$D36*'RES S curve-connect'!BU$13+'Res-Appliance class'!$E36*'RES S curve-connect'!BU$18","v":683.86731299444591},{"$f":"'Res-Appliance class'!$B36*'RES S curve-connect'!BV$3+'Res-Appliance class'!$C36*'RES S curve-connect'!BV$8+'Res-Appliance class'!$D36*'RES S curve-connect'!BV$13+'Res-Appliance class'!$E36*'RES S curve-connect'!BV$18","v":688.65859644730654},{"$f":"'Res-Appliance class'!$B36*'RES S curve-connect'!BW$3+'Res-Appliance class'!$C36*'RES S curve-connect'!BW$8+'Res-Appliance class'!$D36*'RES S curve-connect'!BW$13+'Res-Appliance class'!$E36*'RES S curve-connect'!BW$18","v":701.48280301602279},{"$f":"'Res-Appliance class'!$B36*'RES S curve-connect'!BX$3+'Res-Appliance class'!$C36*'RES S curve-connect'!BX$8+'Res-Appliance class'!$D36*'RES S curve-connect'!BX$13+'Res-Appliance class'!$E36*'RES S curve-connect'!BX$18","v":710.27337783850476},{"$f":"'Res-Appliance class'!$B36*'RES S curve-connect'!BY$3+'Res-Appliance class'!$C36*'RES S curve-connect'!BY$8+'Res-Appliance class'!$D36*'RES S curve-connect'!BY$13+'Res-Appliance class'!$E36*'RES S curve-connect'!BY$18","v":719.05259728853571},{"$f":"'Res-Appliance class'!$B36*'RES S curve-connect'!BZ$3+'Res-Appliance class'!$C36*'RES S curve-connect'!BZ$8+'Res-Appliance class'!$D36*'RES S curve-connect'!BZ$13+'Res-Appliance class'!$E36*'RES S curve-connect'!BZ$18","v":723.79832148366268},{"$f":"'Res-Appliance class'!$B36*'RES S curve-connect'!CA$3+'Res-Appliance class'!$C36*'RES S curve-connect'!CA$8+'Res-Appliance class'!$D36*'RES S curve-connect'!CA$13+'Res-Appliance class'!$E36*'RES S curve-connect'!CA$18","v":736.57724178268563},{"$f":"'Res-Appliance class'!$B36*'RES S curve-connect'!CB$3+'Res-Appliance class'!$C36*'RES S curve-connect'!CB$8+'Res-Appliance class'!$D36*'RES S curve-connect'!CB$13+'Res-Appliance class'!$E36*'RES S curve-connect'!CB$18","v":745.32280163030396},{"$f":"'Res-Appliance class'!$B36*'RES S curve-connect'!CC$3+'Res-Appliance class'!$C36*'RES S curve-connect'!CC$8+'Res-Appliance class'!$D36*'RES S curve-connect'!CC$13+'Res-Appliance class'!$E36*'RES S curve-connect'!CC$18","v":754.0572757177722},{"$f":"'Res-Appliance class'!$B36*'RES S curve-connect'!CD$3+'Res-Appliance class'!$C36*'RES S curve-connect'!CD$8+'Res-Appliance class'!$D36*'RES S curve-connect'!CD$13+'Res-Appliance class'!$E36*'RES S curve-connect'!CD$18","v":620.09950869579541}]
["Manningham (C)",null,{"$f":"'Res-Appliance class'!$B37*'RES S curve-connect'!C$3+'Res-Appliance class'!$C37*'RES S curve-connect'!C$8+'Res-Appliance class'!$D37*'RES S curve-connect'!C$13+'Res-Appliance class'!$E37*'RES S curve-connect'!C$18","v":-2690.7323437186515},{"$f":"'Res-Appliance class'!$B37*'RES S curve-connect'!D$3+'Res-Appliance class'!$C37*'RES S curve-connect'!D$8+'Res-Appliance class'!$D37*'RES S curve-connect'!D$13+'Res-Appliance class'!$E37*'RES S curve-connect'!D$18","v":-3337.8171740853049},{"$f":"'Res-Appliance class'!$B37*'RES S curve-connect'!E$3+'Res-Appliance class'!$C37*'RES S curve-connect'!E$8+'Res-Appliance class'!$D37*'RES S curve-connect'!E$13+'Res-Appliance class'!$E37*'RES S curve-connect'!E$18","v":-2724.5204634563015},{"$f":"'Res-Appliance class'!$B37*'RES S curve-connect'!F$3+'Res-Appliance class'!$C37*'RES S curve-connect'!F$8+'Res-Appliance class'!$D37*'RES S curve-connect'!F$13+'Res-Appliance class'!$E37*'RES S curve-connect'!F$18","v":-2529.3336371726618},{"$f":"'Res-Appliance class'!$B37*'RES S curve-connect'!G$3+'Res-Appliance class'!$C37*'RES S curve-connect'!G$8+'Res-Appliance class'!$D37*'RES S curve-connect'!G$13+'Res-Appliance class'!$E37*'RES S curve-connect'!G$18","v":-3907.509872757922},{"$f":"'Res-Appliance class'!$B37*'RES S curve-connect'!H$3+'Res-Appliance class'!$C37*'RES S curve-connect'!H$8+'Res-Appliance class'!$D37*'RES S curve-connect'!H$13+'Res-Appliance class'!$E37*'RES S curve-connect'!H$18","v":-3935.6054270036971},{"$f":"'Res-Appliance class'!$B37*'RES S curve-connect'!I$3+'Res-Appliance class'!$C37*'RES S curve-connect'!I$8+'Res-Appliance class'!$D37*'RES S curve-connect'!I$13+'Res-Appliance class'!$E37*'RES S curve-connect'!I$18","v":-3382.9380778337832},{"$f":"'Res-Appliance class'!$B37*'RES S curve-connect'!J$3+'Res-Appliance class'!$C37*'RES S curve-connect'!J$8+'Res-Appliance class'!$D37*'RES S curve-connect'!J$13+'Res-Appliance class'!$E37*'RES S curve-connect'!J$18","v":-3695.6617645408278},{"$f":"'Res-Appliance class'!$B37*'RES S curve-connect'!K$3+'Res-Appliance class'!$C37*'RES S curve-connect'!K$8+'Res-Appliance class'!$D37*'RES S curve-connect'!K$13+'Res-Appliance class'!$E37*'RES S curve-connect'!K$18","v":-2719.0397276587005},{"$f":"'Res-Appliance class'!$B37*'RES S curve-connect'!L$3+'Res-Appliance class'!$C37*'RES S curve-connect'!L$8+'Res-Appliance class'!$D37*'RES S curve-connect'!L$13+'Res-Appliance class'!$E37*'RES S curve-connect'!L$18","v":-3171.2683340666244},{"$f":"'Res-Appliance class'!$B37*'RES S curve-connect'!M$3+'Res-Appliance class'!$C37*'RES S curve-connect'!M$8+'Res-Appliance class'!$D37*'RES S curve-connect'!M$13+'Res-Appliance class'!$E37*'RES S curve-connect'!M$18","v":-3993.5441536013914},{"$f":"'Res-Appliance class'!$B37*'RES S curve-connect'!N$3+'Res-Appliance class'!$C37*'RES S curve-connect'!N$8+'Res-Appliance class'!$D37*'RES S curve-connect'!N$13+'Res-Appliance class'!$E37*'RES S curve-connect'!N$18","v":-4079.5063546643078},{"$f":"'Res-Appliance class'!$B37*'RES S curve-connect'!O$3+'Res-Appliance class'!$C37*'RES S curve-connect'!O$8+'Res-Appliance class'!$D37*'RES S curve-connect'!O$13+'Res-Appliance class'!$E37*'RES S curve-connect'!O$18","v":-3377.7974558744809},{"$f":"'Res-Appliance class'!$B37*'RES S curve-connect'!P$3+'Res-Appliance class'!$C37*'RES S curve-connect'!P$8+'Res-Appliance class'!$D37*'RES S curve-connect'!P$13+'Res-Appliance class'!$E37*'RES S curve-connect'!P$18","v":-2819.8457454814743},{"$f":"'Res-Appliance class'!$B37*'RES S curve-connect'!Q$3+'Res-Appliance class'!$C37*'RES S curve-connect'!Q$8+'Res-Appliance class'!$D37*'RES S curve-connect'!Q$13+'Res-Appliance class'!$E37*'RES S curve-connect'!Q$18","v":-1971.8638127937425},{"$f":"'Res-Appliance class'!$B37*'RES S curve-connect'!R$3+'Res-Appliance class'!$C37*'RES S curve-connect'!R$8+'Res-Appliance class'!$D37*'RES S curve-connect'!R$13+'Res-Appliance class'!$E37*'RES S curve-connect'!R$18","v":-1495.1009328016053},{"$f":"'Res-Appliance class'!$B37*'RES S curve-connect'!S$3+'Res-Appliance class'!$C37*'RES S curve-connect'!S$8+'Res-Appliance class'!$D37*'RES S curve-connect'!S$13+'Res-Appliance class'!$E37*'RES S curve-connect'!S$18","v":-732.59364413969979},{"$f":"'Res-Appliance class'!$B37*'RES S curve-connect'!T$3+'Res-Appliance class'!$C37*'RES S curve-connect'!T$8+'Res-Appliance class'!$D37*'RES S curve-connect'!T$13+'Res-Appliance class'!$E37*'RES S curve-connect'!T$18","v":-319.55098494392627},{"$f":"'Res-Appliance class'!$B37*'RES S curve-connect'!U$3+'Res-Appliance class'!$C37*'RES S curve-connect'!U$8+'Res-Appliance class'!$D37*'RES S curve-connect'!U$13+'Res-Appliance class'!$E37*'RES S curve-connect'!U$18","v":151.34568009802291},{"$f":"'Res-Appliance class'!$B37*'RES S curve-connect'!V$3+'Res-Appliance class'!$C37*'RES S curve-connect'!V$8+'Res-Appliance class'!$D37*'RES S curve-connect'!V$13+'Res-Appliance class'!$E37*'RES S curve-connect'!V$18","v":468.94747322778329},{"$f":"'Res-Appliance class'!$B37*'RES S curve-connect'!W$3+'Res-Appliance class'!$C37*'RES S curve-connect'!W$8+'Res-Appliance class'!$D37*'RES S curve-connect'!W$13+'Res-Appliance class'!$E37*'RES S curve-connect'!W$18","v":714.60688430308164},{"$f":"'Res-Appliance class'!$B37*'RES S curve-connect'!X$3+'Res-Appliance class'!$C37*'RES S curve-connect'!X$8+'Res-Appliance class'!$D37*'RES S curve-connect'!X$13+'Res-Appliance class'!$E37*'RES S curve-connect'!X$18","v":1285.0881002694912},{"$f":"'Res-Appliance class'!$B37*'RES S curve-connect'!Y$3+'Res-Appliance class'!$C37*'RES S curve-connect'!Y$8+'Res-Appliance class'!$D37*'RES S curve-connect'!Y$13+'Res-Appliance class'!$E37*'RES S curve-connect'!Y$18","v":1862.1193850740221},{"$f":"'Res-Appliance class'!$B37*'RES S curve-connect'!Z$3+'Res-Appliance class'!$C37*'RES S curve-connect'!Z$8+'Res-Appliance class'!$D37*'RES S curve-connect'!Z$13+'Res-Appliance class'!$E37*'RES S curve-connect'!Z$18","v":2249.4638091461579},{"$f":"'Res-Appliance class'!$B37*'RES S curve-connect'!AA$3+'Res-Appliance class'!$C37*'RES S curve-connect'!AA$8+'Res-Appliance class'!$D37*'RES S curve-connect'!AA$13+'Res-Appliance class'!$E37*'RES S curve-connect'!AA$18","v":2636.5182510543241},{"$f":"'Res-Appliance class'!$B37*'RES S curve-connect'!AB$3+'Res-Appliance class'!$C37*'RES S curve-connect'!AB$8+'Res-Appliance class'!$D37*'RES S curve-connect'!AB$13+'Res-Appliance class'!$E37*'RES S curve-connect'!AB$18","v":2943.6781112869339},{"$f":"'Res-Appliance class'!$B37*'RES S curve-connect'!AC$3+'Res-Appliance class'!$C37*'RES S curve-connect'!AC$8+'Res-Appliance class'!$D37*'RES S curve-connect'!AC$13+'Res-Appliance class'!$E37*'RES S curve-connect'!AC$18","v":3239.0785098508991},{"$f":"'Res-Appliance class'!$B37*'RES S curve-connect'!AD$3+'Res-Appliance class'!$C37*'RES S curve-connect'!AD$8+'Res-Appliance class'!$D37*'RES S curve-connect'!AD$13+'Res-Appliance class'!$E37*'RES S curve-connect'!AD$18","v":3509.3093863407821},{"$f":"'Res-Appliance class'!$B37*'RES S curve-connect'!AE$3+'Res-Appliance class'!$C37*'RES S curve-connect'!AE$8+'Res-Appliance class'!$D37*'RES S curve-connect'!AE$13+'Res-Appliance class'!$E37*'RES S curve-connect'!AE$18","v":3793.3564036540847},{"$f":"'Res-Appliance class'!$B37*'RES S curve-connect'!AF$3+'Res-Appliance class'!$C37*'RES S curve-connect'!AF$8+'Res-Appliance class'!$D37*'RES S curve-connect'!AF$13+'Res-Appliance class'!$E37*'RES S curve-connect'!AF$18","v":4164.3100646433732},{"$f":"'Res-Appliance class'!$B37*'RES S curve-connect'!AG$3+'Res-Appliance class'!$C37*'RES S curve-connect'!AG$8+'Res-Appliance class'!$D37*'RES S curve-connect'!AG$13+'Res-Appliance class'!$E37*'RES S curve-connect'!AG$18","v":4425.8779784552762},{"$f":"'Res-Appliance class'!$B37*'RES S curve-connect'!AH$3+'Res-Appliance class'!$C37*'RES S curve-connect'!AH$8+'Res-Appliance class'!$D37*'RES S curve-connect'!AH$13+'Res-Appliance class'!$E37*'RES S curve-connect'!AH$18","v":4795.0242743997869},{"$f":"'Res-Appliance class'!$B37*'RES S curve-connect'!AI$3+'Res-Appliance class'!$C37*'RES S curve-connect'!AI$8+'Res-Appliance class'!$D37*'RES S curve-connect'!AI$13+'Res-Appliance class'!$E37*'RES S curve-connect'!AI$18","v":5125.8785943735566},{"$f":"'Res-Appliance class'!$B37*'RES S curve-connect'!AJ$3+'Res-Appliance class'!$C37*'RES S curve-connect'!AJ$8+'Res-Appliance class'!$D37*'RES S curve-connect'!AJ$13+'Res-Appliance class'!$E37*'RES S curve-connect'!AJ$18","v":5424.6690401836941},{"$f":"'Res-Appliance class'!$B37*'RES S curve-connect'!AK$3+'Res-Appliance class'!$C37*'RES S curve-connect'!AK$8+'Res-Appliance class'!$D37*'RES S curve-connect'!AK$13+'Res-Appliance class'!$E37*'RES S curve-connect'!AK$18","v":5741.8450560599604},{"$f":"'Res-Appliance class'!$B37*'RES S curve-connect'!AL$3+'Res-Appliance class'!$C37*'RES S curve-connect'!AL$8+'Res-Appliance class'!$D37*'RES S curve-connect'!AL$13+'Res-Appliance class'!$E37*'RES S curve-connect'!AL$18","v":4646.3763376462948},{"$f":"'Res-Appliance class'!$B37*'RES S curve-connect'!AM$3+'Res-Appliance class'!$C37*'RES S curve-connect'!AM$8+'Res-Appliance class'!$D37*'RES S curve-connect'!AM$13+'Res-Appliance class'!$E37*'RES S curve-connect'!AM$18","v":4501.4160898632272},{"$f":"'Res-Appliance class'!$B37*'RES S curve-connect'!AN$3+'Res-Appliance class'!$C37*'RES S curve-connect'!AN$8+'Res-Appliance class'!$D37*'RES S curve-connect'!AN$13+'Res-Appliance class'!$E37*'RES S curve-connect'!AN$18","v":4800.8420801916291},{"$f":"'Res-Appliance class'!$B37*'RES S curve-connect'!AO$3+'Res-Appliance class'!$C37*'RES S curve-connect'!AO$8+'Res-Appliance class'!$D37*'RES S curve-connect'!AO$13+'Res-Appliance class'!$E37*'RES S curve-connect'!AO$18","v":5167.8751606785627},{"$f":"'Res-Appliance class'!$B37*'RES S curve-connect'!AP$3+'Res-Appliance class'!$C37*'RES S curve-connect'!AP$8+'Res-Appliance class'!$D37*'RES S curve-connect'!AP$13+'Res-Appliance class'!$E37*'RES S curve-connect'!AP$18","v":5507.4320996940842},{"$f":"'Res-Appliance class'!$B37*'RES S curve-connect'!AQ$3+'Res-Appliance class'!$C37*'RES S curve-connect'!AQ$8+'Res-Appliance class'!$D37*'RES S curve-connect'!AQ$13+'Res-Appliance class'!$E37*'RES S curve-connect'!AQ$18","v":5872.5190098043604},{"$f":"'Res-Appliance class'!$B37*'RES S curve-connect'!AR$3+'Res-Appliance class'!$C37*'RES S curve-connect'!AR$8+'Res-Appliance class'!$D37*'RES S curve-connect'!AR$13+'Res-Appliance class'!$E37*'RES S curve-connect'!AR$18","v":6273.6784939423769},{"$f":"'Res-Appliance class'!$B37*'RES S curve-connect'!AS$3+'Res-Appliance class'!$C37*'RES S curve-connect'!AS$8+'Res-Appliance class'!$D37*'RES S curve-connect'!AS$13+'Res-Appliance class'!$E37*'RES S curve-connect'!AS$18","v":6723.9173306337607},{"$f":"'Res-Appliance class'!$B37*'RES S curve-connect'!AT$3+'Res-Appliance class'!$C37*'RES S curve-connect'!AT$8+'Res-Appliance class'!$D37*'RES S curve-connect'!AT$13+'Res-Appliance class'!$E37*'RES S curve-connect'!AT$18","v":7227.8886797149826},{"$f":"'Res-Appliance class'!$B37*'RES S curve-connect'!AU$3+'Res-Appliance class'!$C37*'RES S curve-connect'!AU$8+'Res-Appliance class'!$D37*'RES S curve-connect'!AU$13+'Res-Appliance class'!$E37*'RES S curve-connect'!AU$18","v":7810.5251992093563},{"$f":"'Res-Appliance class'!$B37*'RES S curve-connect'!AV$3+'Res-Appliance class'!$C37*'RES S curve-connect'!AV$8+'Res-Appliance class'!$D37*'RES S curve-connect'!AV$13+'Res-Appliance class'!$E37*'RES S curve-connect'!AV$18","v":8475.5583087769901},{"$f":"'Res-Appliance class'!$B37*'RES S curve-connect'!AW$3+'Res-Appliance class'!$C37*'RES S curve-connect'!AW$8+'Res-Appliance class'!$D37*'RES S curve-connect'!AW$13+'Res-Appliance class'!$E37*'RES S curve-connect'!AW$18","v":9240.167249016069},{"$f":"'Res-Appliance class'!$B37*'RES S curve-connect'!AX$3+'Res-Appliance class'!$C37*'RES S curve-connect'!AX$8+'Res-Appliance class'!$D37*'RES S curve-connect'!AX$13+'Res-Appliance class'!$E37*'RES S curve-connect'!AX$18","v":10112.129093933734},{"$f":"'Res-Appliance class'!$B37*'RES S curve-connect'!AY$3+'Res-Appliance class'!$C37*'RES S curve-connect'!AY$8+'Res-Appliance class'!$D37*'RES S curve-connect'!AY$13+'Res-Appliance class'!$E37*'RES S curve-connect'!AY$18","v":11118.04822743636},{"$f":"'Res-Appliance class'!$B37*'RES S curve-connect'!AZ$3+'Res-Appliance class'!$C37*'RES S curve-connect'!AZ$8+'Res-Appliance class'!$D37*'RES S curve-connect'!AZ$13+'Res-Appliance class'!$E37*'RES S curve-connect'!AZ$18","v":12268.697327125052},{"$f":"'Res-Appliance class'!$B37*'RES S curve-connect'!BA$3+'Res-Appliance class'!$C37*'RES S curve-connect'!BA$8+'Res-Appliance class'!$D37*'RES S curve-connect'!BA$13+'Res-Appliance class'!$E37*'RES S curve-connect'!BA$18","v":13601.760317206385},{"$f":"'Res-Appliance class'!$B37*'RES S curve-connect'!BB$3+'Res-Appliance class'!$C37*'RES S curve-connect'!BB$8+'Res-Appliance class'!$D37*'RES S curve-connect'!BB$13+'Res-Appliance class'!$E37*'RES S curve-connect'!BB$18","v":15160.094218055609},{"$f":"'Res-Appliance class'!$B37*'RES S curve-connect'!BC$3+'Res-Appliance class'!$C37*'RES S curve-connect'!BC$8+'Res-Appliance class'!$D37*'RES S curve-connect'!BC$13+'Res-Appliance class'!$E37*'RES S curve-connect'!BC$18","v":17018.592364040975},{"$f":"'Res-Appliance class'!$B37*'RES S curve-connect'!BD$3+'Res-Appliance class'!$C37*'RES S curve-connect'!BD$8+'Res-Appliance class'!$D37*'RES S curve-connect'!BD$13+'Res-Appliance class'!$E37*'RES S curve-connect'!BD$18","v":18813.786076962788},{"$f":"'Res-Appliance class'!$B37*'RES S curve-connect'!BE$3+'Res-Appliance class'!$C37*'RES S curve-connect'!BE$8+'Res-Appliance class'!$D37*'RES S curve-connect'!BE$13+'Res-Appliance class'!$E37*'RES S curve-connect'!BE$18","v":20455.378970957361},{"$f":"'Res-Appliance class'!$B37*'RES S curve-connect'!BF$3+'Res-Appliance class'!$C37*'RES S curve-connect'!BF$8+'Res-Appliance class'!$D37*'RES S curve-connect'!BF$13+'Res-Appliance class'!$E37*'RES S curve-connect'!BF$18","v":22134.807677294652},{"$f":"'Res-Appliance class'!$B37*'RES S curve-connect'!BG$3+'Res-Appliance class'!$C37*'RES S curve-connect'!BG$8+'Res-Appliance class'!$D37*'RES S curve-connect'!BG$13+'Res-Appliance class'!$E37*'RES S curve-connect'!BG$18","v":24034.672067474519},{"$f":"'Res-Appliance class'!$B37*'RES S curve-connect'!BH$3+'Res-Appliance class'!$C37*'RES S curve-connect'!BH$8+'Res-Appliance class'!$D37*'RES S curve-connect'!BH$13+'Res-Appliance class'!$E37*'RES S curve-connect'!BH$18","v":26290.445000319571},{"$f":"'Res-Appliance class'!$B37*'RES S curve-connect'!BI$3+'Res-Appliance class'!$C37*'RES S curve-connect'!BI$8+'Res-Appliance class'!$D37*'RES S curve-connect'!BI$13+'Res-Appliance class'!$E37*'RES S curve-connect'!BI$18","v":29558.522870933146},{"$f":"'Res-Appliance class'!$B37*'RES S curve-connect'!BJ$3+'Res-Appliance class'!$C37*'RES S curve-connect'!BJ$8+'Res-Appliance class'!$D37*'RES S curve-connect'!BJ$13+'Res-Appliance class'!$E37*'RES S curve-connect'!BJ$18","v":34347.499700365464},{"$f":"'Res-Appliance class'!$B37*'RES S curve-connect'!BK$3+'Res-Appliance class'!$C37*'RES S curve-connect'!BK$8+'Res-Appliance class'!$D37*'RES S curve-connect'!BK$13+'Res-Appliance class'!$E37*'RES S curve-connect'!BK$18","v":41419.035559898206},{"$f":"'Res-Appliance class'!$B37*'RES S curve-connect'!BL$3+'Res-Appliance class'!$C37*'RES S curve-connect'!BL$8+'Res-Appliance class'!$D37*'RES S curve-connect'!BL$13+'Res-Appliance class'!$E37*'RES S curve-connect'!BL$18","v":635.60606336989019},{"$f":"'Res-Appliance class'!$B37*'RES S curve-connect'!BM$3+'Res-Appliance class'!$C37*'RES S curve-connect'!BM$8+'Res-Appliance class'!$D37*'RES S curve-connect'!BM$13+'Res-Appliance class'!$E37*'RES S curve-connect'!BM$18","v":644.51322121898886},{"$f":"'Res-Appliance class'!$B37*'RES S curve-connect'!BN$3+'Res-Appliance class'!$C37*'RES S curve-connect'!BN$8+'Res-Appliance class'!$D37*'RES S curve-connect'!BN$13+'Res-Appliance class'!$E37*'RES S curve-connect'!BN$18","v":649.38614080318803},{"$f":"'Res-Appliance class'!$B37*'RES S curve-connect'!BO$3+'Res-Appliance class'!$C37*'RES S curve-connect'!BO$8+'Res-Appliance class'!$D37*'RES S curve-connect'!BO$13+'Res-Appliance class'!$E37*'RES S curve-connect'!BO$18","v":662.29151802403044},{"$f":"'Res-Appliance class'!$B37*'RES S curve-connect'!BP$3+'Res-Appliance class'!$C37*'RES S curve-connect'!BP$8+'Res-Appliance class'!$D37*'RES S curve-connect'!BP$13+'Res-Appliance class'!$E37*'RES S curve-connect'!BP$18","v":671.16280084050322},{"$f":"'Res-Appliance class'!$B37*'RES S curve-connect'!BQ$3+'Res-Appliance class'!$C37*'RES S curve-connect'!BQ$8+'Res-Appliance class'!$D37*'RES S curve-connect'!BQ$13+'Res-Appliance class'!$E37*'RES S curve-connect'!BQ$18","v":680.02226842986943},{"$f":"'Res-Appliance class'!$B37*'RES S curve-connect'!BR$3+'Res-Appliance class'!$C37*'RES S curve-connect'!BR$8+'Res-Appliance class'!$D37*'RES S curve-connect'!BR$13+'Res-Appliance class'!$E37*'RES S curve-connect'!BR$18","v":684.84778369567505},{"$f":"'Res-Appliance class'!$B37*'RES S curve-connect'!BS$3+'Res-Appliance class'!$C37*'RES S curve-connect'!BS$8+'Res-Appliance class'!$D37*'RES S curve-connect'!BS$13+'Res-Appliance class'!$E37*'RES S curve-connect'!BS$18","v":697.70604076533584},{"$f":"'Res-Appliance class'!$B37*'RES S curve-connect'!BT$3+'Res-Appliance class'!$C37*'RES S curve-connect'!BT$8+'Res-Appliance class'!$D37*'RES S curve-connect'!BT$13+'Res-Appliance class'!$E37*'RES S curve-connect'!BT$18","v":706.53048583490863},{"$f":"'Res-Appliance class'!$B37*'RES S curve-connect'!BU$3+'Res-Appliance class'!$C37*'RES S curve-connect'!BU$8+'Res-Appliance class'!$D37*'RES S curve-connect'!BU$13+'Res-Appliance class'!$E37*'RES S curve-connect'!BU$18","v":715.34339632985075},{"$f":"'Res-Appliance class'!$B37*'RES S curve-connect'!BV$3+'Res-Appliance class'!$C37*'RES S curve-connect'!BV$8+'Res-Appliance class'!$D37*'RES S curve-connect'!BV$13+'Res-Appliance class'!$E37*'RES S curve-connect'!BV$18","v":720.12263341294465},{"$f":"'Res-Appliance class'!$B37*'RES S curve-connect'!BW$3+'Res-Appliance class'!$C37*'RES S curve-connect'!BW$8+'Res-Appliance class'!$D37*'RES S curve-connect'!BW$13+'Res-Appliance class'!$E37*'RES S curve-connect'!BW$18","v":732.93488948182926},{"$f":"'Res-Appliance class'!$B37*'RES S curve-connect'!BX$3+'Res-Appliance class'!$C37*'RES S curve-connect'!BX$8+'Res-Appliance class'!$D37*'RES S curve-connect'!BX$13+'Res-Appliance class'!$E37*'RES S curve-connect'!BX$18","v":741.71360901369269},{"$f":"'Res-Appliance class'!$B37*'RES S curve-connect'!BY$3+'Res-Appliance class'!$C37*'RES S curve-connect'!BY$8+'Res-Appliance class'!$D37*'RES S curve-connect'!BY$13+'Res-Appliance class'!$E37*'RES S curve-connect'!BY$18","v":750.48106772596145},{"$f":"'Res-Appliance class'!$B37*'RES S curve-connect'!BZ$3+'Res-Appliance class'!$C37*'RES S curve-connect'!BZ$8+'Res-Appliance class'!$D37*'RES S curve-connect'!BZ$13+'Res-Appliance class'!$E37*'RES S curve-connect'!BZ$18","v":755.21512508416288},{"$f":"'Res-Appliance class'!$B37*'RES S curve-connect'!CA$3+'Res-Appliance class'!$C37*'RES S curve-connect'!CA$8+'Res-Appliance class'!$D37*'RES S curve-connect'!CA$13+'Res-Appliance class'!$E37*'RES S curve-connect'!CA$18","v":767.9824717993863},{"$f":"'Res-Appliance class'!$B37*'RES S curve-connect'!CB$3+'Res-Appliance class'!$C37*'RES S curve-connect'!CB$8+'Res-Appliance class'!$D37*'RES S curve-connect'!CB$13+'Res-Appliance class'!$E37*'RES S curve-connect'!CB$18","v":776.71655067290112},{"$f":"'Res-Appliance class'!$B37*'RES S curve-connect'!CC$3+'Res-Appliance class'!$C37*'RES S curve-connect'!CC$8+'Res-Appliance class'!$D37*'RES S curve-connect'!CC$13+'Res-Appliance class'!$E37*'RES S curve-connect'!CC$18","v":785.43963575678504},{"$f":"'Res-Appliance class'!$B37*'RES S curve-connect'!CD$3+'Res-Appliance class'!$C37*'RES S curve-connect'!CD$8+'Res-Appliance class'!$D37*'RES S curve-connect'!CD$13+'Res-Appliance class'!$E37*'RES S curve-connect'!CD$18","v":651.46229103715132}]
["Maroondah (C)",null,{"$f":"'Res-Appliance class'!$B38*'RES S curve-connect'!C$3+'Res-Appliance class'!$C38*'RES S curve-connect'!C$8+'Res-Appliance class'!$D38*'RES S curve-connect'!C$13+'Res-Appliance class'!$E38*'RES S curve-connect'!C$18","v":-2716.9440767182064},{"$f":"'Res-Appliance class'!$B38*'RES S curve-connect'!D$3+'Res-Appliance class'!$C38*'RES S curve-connect'!D$8+'Res-Appliance class'!$D38*'RES S curve-connect'!D$13+'Res-Appliance class'!$E38*'RES S curve-connect'!D$18","v":-3364.249687428724},{"$f":"'Res-Appliance class'!$B38*'RES S curve-connect'!E$3+'Res-Appliance class'!$C38*'RES S curve-connect'!E$8+'Res-Appliance class'!$D38*'RES S curve-connect'!E$13+'Res-Appliance class'!$E38*'RES S curve-connect'!E$18","v":-2752.1587631125321},{"$f":"'Res-Appliance class'!$B38*'RES S curve-connect'!F$3+'Res-Appliance class'!$C38*'RES S curve-connect'!F$8+'Res-Appliance class'!$D38*'RES S curve-connect'!F$13+'Res-Appliance class'!$E38*'RES S curve-connect'!F$18","v":-2556.9464157002994},{"$f":"'Res-Appliance class'!$B38*'RES S curve-connect'!G$3+'Res-Appliance class'!$C38*'RES S curve-connect'!G$8+'Res-Appliance class'!$D38*'RES S curve-connect'!G$13+'Res-Appliance class'!$E38*'RES S curve-connect'!G$18","v":-3926.7187815234038},{"$f":"'Res-Appliance class'!$B38*'RES S curve-connect'!H$3+'Res-Appliance class'!$C38*'RES S curve-connect'!H$8+'Res-Appliance class'!$D38*'RES S curve-connect'!H$13+'Res-Appliance class'!$E38*'RES S curve-connect'!H$18","v":-3955.9995010378634},{"$f":"'Res-Appliance class'!$B38*'RES S curve-connect'!I$3+'Res-Appliance class'!$C38*'RES S curve-connect'!I$8+'Res-Appliance class'!$D38*'RES S curve-connect'!I$13+'Res-Appliance class'!$E38*'RES S curve-connect'!I$18","v":-3404.0711150808256},{"$f":"'Res-Appliance class'!$B38*'RES S curve-connect'!J$3+'Res-Appliance class'!$C38*'RES S curve-connect'!J$8+'Res-Appliance class'!$D38*'RES S curve-connect'!J$13+'Res-Appliance class'!$E38*'RES S curve-connect'!J$18","v":-3721.2131451932873},{"$f":"'Res-Appliance class'!$B38*'RES S curve-connect'!K$3+'Res-Appliance class'!$C38*'RES S curve-connect'!K$8+'Res-Appliance class'!$D38*'RES S curve-connect'!K$13+'Res-Appliance class'!$E38*'RES S curve-connect'!K$18","v":-2745.4934293432711},{"$f":"'Res-Appliance class'!$B38*'RES S curve-connect'!L$3+'Res-Appliance class'!$C38*'RES S curve-connect'!L$8+'Res-Appliance class'!$D38*'RES S curve-connect'!L$13+'Res-Appliance class'!$E38*'RES S curve-connect'!L$18","v":-3197.6030053868376},{"$f":"'Res-Appliance class'!$B38*'RES S curve-connect'!M$3+'Res-Appliance class'!$C38*'RES S curve-connect'!M$8+'Res-Appliance class'!$D38*'RES S curve-connect'!M$13+'Res-Appliance class'!$E38*'RES S curve-connect'!M$18","v":-4017.7711003425084},{"$f":"'Res-Appliance class'!$B38*'RES S curve-connect'!N$3+'Res-Appliance class'!$C38*'RES S curve-connect'!N$8+'Res-Appliance class'!$D38*'RES S curve-connect'!N$13+'Res-Appliance class'!$E38*'RES S curve-connect'!N$18","v":-4103.3365228492739},{"$f":"'Res-Appliance class'!$B38*'RES S curve-connect'!O$3+'Res-Appliance class'!$C38*'RES S curve-connect'!O$8+'Res-Appliance class'!$D38*'RES S curve-connect'!O$13+'Res-Appliance class'!$E38*'RES S curve-connect'!O$18","v":-3402.2349734445424},{"$f":"'Res-Appliance class'!$B38*'RES S curve-connect'!P$3+'Res-Appliance class'!$C38*'RES S curve-connect'!P$8+'Res-Appliance class'!$D38*'RES S curve-connect'!P$13+'Res-Appliance class'!$E38*'RES S curve-connect'!P$18","v":-2844.907408436356},{"$f":"'Res-Appliance class'!$B38*'RES S curve-connect'!Q$3+'Res-Appliance class'!$C38*'RES S curve-connect'!Q$8+'Res-Appliance class'!$D38*'RES S curve-connect'!Q$13+'Res-Appliance class'!$E38*'RES S curve-connect'!Q$18","v":-1997.9806544951784},{"$f":"'Res-Appliance class'!$B38*'RES S curve-connect'!R$3+'Res-Appliance class'!$C38*'RES S curve-connect'!R$8+'Res-Appliance class'!$D38*'RES S curve-connect'!R$13+'Res-Appliance class'!$E38*'RES S curve-connect'!R$18","v":-1521.7377870940868},{"$f":"'Res-Appliance class'!$B38*'RES S curve-connect'!S$3+'Res-Appliance class'!$C38*'RES S curve-connect'!S$8+'Res-Appliance class'!$D38*'RES S curve-connect'!S$13+'Res-Appliance class'!$E38*'RES S curve-connect'!S$18","v":-760.17658397583784},{"$f":"'Res-Appliance class'!$B38*'RES S curve-connect'!T$3+'Res-Appliance class'!$C38*'RES S curve-connect'!T$8+'Res-Appliance class'!$D38*'RES S curve-connect'!T$13+'Res-Appliance class'!$E38*'RES S curve-connect'!T$18","v":-347.55539565309408},{"$f":"'Res-Appliance class'!$B38*'RES S curve-connect'!U$3+'Res-Appliance class'!$C38*'RES S curve-connect'!U$8+'Res-Appliance class'!$D38*'RES S curve-connect'!U$13+'Res-Appliance class'!$E38*'RES S curve-connect'!U$18","v":122.90666154261316},{"$f":"'Res-Appliance class'!$B38*'RES S curve-connect'!V$3+'Res-Appliance class'!$C38*'RES S curve-connect'!V$8+'Res-Appliance class'!$D38*'RES S curve-connect'!V$13+'Res-Appliance class'!$E38*'RES S curve-connect'!V$18","v":440.40429001294069},{"$f":"'Res-Appliance class'!$B38*'RES S curve-connect'!W$3+'Res-Appliance class'!$C38*'RES S curve-connect'!W$8+'Res-Appliance class'!$D38*'RES S curve-connect'!W$13+'Res-Appliance class'!$E38*'RES S curve-connect'!W$18","v":685.92911464057011},{"$f":"'Res-Appliance class'!$B38*'RES S curve-connect'!X$3+'Res-Appliance class'!$C38*'RES S curve-connect'!X$8+'Res-Appliance class'!$D38*'RES S curve-connect'!X$13+'Res-Appliance class'!$E38*'RES S curve-connect'!X$18","v":1255.6605730769002},{"$f":"'Res-Appliance class'!$B38*'RES S curve-connect'!Y$3+'Res-Appliance class'!$C38*'RES S curve-connect'!Y$8+'Res-Appliance class'!$D38*'RES S curve-connect'!Y$13+'Res-Appliance class'!$E38*'RES S curve-connect'!Y$18","v":1831.9454020455703},{"$f":"'Res-Appliance class'!$B38*'RES S curve-connect'!Z$3+'Res-Appliance class'!$C38*'RES S curve-connect'!Z$8+'Res-Appliance class'!$D38*'RES S curve-connect'!Z$13+'Res-Appliance class'!$E38*'RES S curve-connect'!Z$18","v":2218.8975495293844},{"$f":"'Res-Appliance class'!$B38*'RES S curve-connect'!AA$3+'Res-Appliance class'!$C38*'RES S curve-connect'!AA$8+'Res-Appliance class'!$D38*'RES S curve-connect'!AA$13+'Res-Appliance class'!$E38*'RES S curve-connect'!AA$18","v":2605.5757099845473},{"$f":"'Res-Appliance class'!$B38*'RES S curve-connect'!AB$3+'Res-Appliance class'!$C38*'RES S curve-connect'!AB$8+'Res-Appliance class'!$D38*'RES S curve-connect'!AB$13+'Res-Appliance class'!$E38*'RES S curve-connect'!AB$18","v":2912.3890289071696},{"$f":"'Res-Appliance class'!$B38*'RES S curve-connect'!AC$3+'Res-Appliance class'!$C38*'RES S curve-connect'!AC$8+'Res-Appliance class'!$D38*'RES S curve-connect'!AC$13+'Res-Appliance class'!$E38*'RES S curve-connect'!AC$18","v":3207.4691038993733},{"$f":"'Res-Appliance class'!$B38*'RES S curve-connect'!AD$3+'Res-Appliance class'!$C38*'RES S curve-connect'!AD$8+'Res-Appliance class'!$D38*'RES S curve-connect'!AD$13+'Res-Appliance class'!$E38*'RES S curve-connect'!AD$18","v":3477.4207799635587},{"$f":"'Res-Appliance class'!$B38*'RES S curve-connect'!AE$3+'Res-Appliance class'!$C38*'RES S curve-connect'!AE$8+'Res-Appliance class'!$D38*'RES S curve-connect'!AE$13+'Res-Appliance class'!$E38*'RES S curve-connect'!AE$18","v":3761.1811294003114},{"$f":"'Res-Appliance class'!$B38*'RES S curve-connect'!AF$3+'Res-Appliance class'!$C38*'RES S curve-connect'!AF$8+'Res-Appliance class'!$D38*'RES S curve-connect'!AF$13+'Res-Appliance class'!$E38*'RES S curve-connect'!AF$18","v":4131.6783332183613},{"$f":"'Res-Appliance class'!$B38*'RES S curve-connect'!AG$3+'Res-Appliance class'!$C38*'RES S curve-connect'!AG$8+'Res-Appliance class'!$D38*'RES S curve-connect'!AG$13+'Res-Appliance class'!$E38*'RES S curve-connect'!AG$18","v":4392.817136885792},{"$f":"'Res-Appliance class'!$B38*'RES S curve-connect'!AH$3+'Res-Appliance class'!$C38*'RES S curve-connect'!AH$8+'Res-Appliance class'!$D38*'RES S curve-connect'!AH$13+'Res-Appliance class'!$E38*'RES S curve-connect'!AH$18","v":4761.3158477561337},{"$f":"'Res-Appliance class'!$B38*'RES S curve-connect'!AI$3+'Res-Appliance class'!$C38*'RES S curve-connect'!AI$8+'Res-Appliance class'!$D38*'RES S curve-connect'!AI$13+'Res-Appliance class'!$E38*'RES S curve-connect'!AI$18","v":5091.6238420584823},{"$f":"'Res-Appliance class'!$B38*'RES S curve-connect'!AJ$3+'Res-Appliance class'!$C38*'RES S curve-connect'!AJ$8+'Res-Appliance class'!$D38*'RES S curve-connect'!AJ$13+'Res-Appliance class'!$E38*'RES S curve-connect'!AJ$18","v":5389.915348518045},{"$f":"'Res-Appliance class'!$B38*'RES S curve-connect'!AK$3+'Res-Appliance class'!$C38*'RES S curve-connect'!AK$8+'Res-Appliance class'!$D38*'RES S curve-connect'!AK$13+'Res-Appliance class'!$E38*'RES S curve-connect'!AK$18","v":5706.5619274702758},{"$f":"'Res-Appliance class'!$B38*'RES S curve-connect'!AL$3+'Res-Appliance class'!$C38*'RES S curve-connect'!AL$8+'Res-Appliance class'!$D38*'RES S curve-connect'!AL$13+'Res-Appliance class'!$E38*'RES S curve-connect'!AL$18","v":4612.8955807102038},{"$f":"'Res-Appliance class'!$B38*'RES S curve-connect'!AM$3+'Res-Appliance class'!$C38*'RES S curve-connect'!AM$8+'Res-Appliance class'!$D38*'RES S curve-connect'!AM$13+'Res-Appliance class'!$E38*'RES S curve-connect'!AM$18","v":4468.2352826715742},{"$f":"'Res-Appliance class'!$B38*'RES S curve-connect'!AN$3+'Res-Appliance class'!$C38*'RES S curve-connect'!AN$8+'Res-Appliance class'!$D38*'RES S curve-connect'!AN$13+'Res-Appliance class'!$E38*'RES S curve-connect'!AN$18","v":4767.1873561845932},{"$f":"'Res-Appliance class'!$B38*'RES S curve-connect'!AO$3+'Res-Appliance class'!$C38*'RES S curve-connect'!AO$8+'Res-Appliance class'!$D38*'RES S curve-connect'!AO$13+'Res-Appliance class'!$E38*'RES S curve-connect'!AO$18","v":5133.6122874474995},{"$f":"'Res-Appliance class'!$B38*'RES S curve-connect'!AP$3+'Res-Appliance class'!$C38*'RES S curve-connect'!AP$8+'Res-Appliance class'!$D38*'RES S curve-connect'!AP$13+'Res-Appliance class'!$E38*'RES S curve-connect'!AP$18","v":5472.5932906821563},{"$f":"'Res-Appliance class'!$B38*'RES S curve-connect'!AQ$3+'Res-Appliance class'!$C38*'RES S curve-connect'!AQ$8+'Res-Appliance class'!$D38*'RES S curve-connect'!AQ$13+'Res-Appliance class'!$E38*'RES S curve-connect'!AQ$18","v":5837.0742908469174},{"$f":"'Res-Appliance class'!$B38*'RES S curve-connect'!AR$3+'Res-Appliance class'!$C38*'RES S curve-connect'!AR$8+'Res-Appliance class'!$D38*'RES S curve-connect'!AR$13+'Res-Appliance class'!$E38*'RES S curve-connect'!AR$18","v":6237.5581717787736},{"$f":"'Res-Appliance class'!$B38*'RES S curve-connect'!AS$3+'Res-Appliance class'!$C38*'RES S curve-connect'!AS$8+'Res-Appliance class'!$D38*'RES S curve-connect'!AS$13+'Res-Appliance class'!$E38*'RES S curve-connect'!AS$18","v":6687.0348705908455},{"$f":"'Res-Appliance class'!$B38*'RES S curve-connect'!AT$3+'Res-Appliance class'!$C38*'RES S curve-connect'!AT$8+'Res-Appliance class'!$D38*'RES S curve-connect'!AT$13+'Res-Appliance class'!$E38*'RES S curve-connect'!AT$18","v":7190.1417668732856},{"$f":"'Res-Appliance class'!$B38*'RES S curve-connect'!AU$3+'Res-Appliance class'!$C38*'RES S curve-connect'!AU$8+'Res-Appliance class'!$D38*'RES S curve-connect'!AU$13+'Res-Appliance class'!$E38*'RES S curve-connect'!AU$18","v":7771.7885190271836},{"$f":"'Res-Appliance class'!$B38*'RES S curve-connect'!AV$3+'Res-Appliance class'!$C38*'RES S curve-connect'!AV$8+'Res-Appliance class'!$D38*'RES S curve-connect'!AV$13+'Res-Appliance class'!$E38*'RES S curve-connect'!AV$18","v":8435.6779448250018},{"$f":"'Res-Appliance class'!$B38*'RES S curve-connect'!AW$3+'Res-Appliance class'!$C38*'RES S curve-connect'!AW$8+'Res-Appliance class'!$D38*'RES S curve-connect'!AW$13+'Res-Appliance class'!$E38*'RES S curve-connect'!AW$18","v":9198.9642810957048},{"$f":"'Res-Appliance class'!$B38*'RES S curve-connect'!AX$3+'Res-Appliance class'!$C38*'RES S curve-connect'!AX$8+'Res-Appliance class'!$D38*'RES S curve-connect'!AX$13+'Res-Appliance class'!$E38*'RES S curve-connect'!AX$18","v":10069.401356449798},{"$f":"'Res-Appliance class'!$B38*'RES S curve-connect'!AY$3+'Res-Appliance class'!$C38*'RES S curve-connect'!AY$8+'Res-Appliance class'!$D38*'RES S curve-connect'!AY$13+'Res-Appliance class'!$E38*'RES S curve-connect'!AY$18","v":11073.565282055806},{"$f":"'Res-Appliance class'!$B38*'RES S curve-connect'!AZ$3+'Res-Appliance class'!$C38*'RES S curve-connect'!AZ$8+'Res-Appliance class'!$D38*'RES S curve-connect'!AZ$13+'Res-Appliance class'!$E38*'RES S curve-connect'!AZ$18","v":12222.185522296515},{"$f":"'Res-Appliance class'!$B38*'RES S curve-connect'!BA$3+'Res-Appliance class'!$C38*'RES S curve-connect'!BA$8+'Res-Appliance class'!$D38*'RES S curve-connect'!BA$13+'Res-Appliance class'!$E38*'RES S curve-connect'!BA$18","v":13552.882799591478},{"$f":"'Res-Appliance class'!$B38*'RES S curve-connect'!BB$3+'Res-Appliance class'!$C38*'RES S curve-connect'!BB$8+'Res-Appliance class'!$D38*'RES S curve-connect'!BB$13+'Res-Appliance class'!$E38*'RES S curve-connect'!BB$18","v":15108.42576582567},{"$f":"'Res-Appliance class'!$B38*'RES S curve-connect'!BC$3+'Res-Appliance class'!$C38*'RES S curve-connect'!BC$8+'Res-Appliance class'!$D38*'RES S curve-connect'!BC$13+'Res-Appliance class'!$E38*'RES S curve-connect'!BC$18","v":16963.588734831876},{"$f":"'Res-Appliance class'!$B38*'RES S curve-connect'!BD$3+'Res-Appliance class'!$C38*'RES S curve-connect'!BD$8+'Res-Appliance class'!$D38*'RES S curve-connect'!BD$13+'Res-Appliance class'!$E38*'RES S curve-connect'!BD$18","v":18755.501187159345},{"$f":"'Res-Appliance class'!$B38*'RES S curve-connect'!BE$3+'Res-Appliance class'!$C38*'RES S curve-connect'!BE$8+'Res-Appliance class'!$D38*'RES S curve-connect'!BE$13+'Res-Appliance class'!$E38*'RES S curve-connect'!BE$18","v":20394.074485970788},{"$f":"'Res-Appliance class'!$B38*'RES S curve-connect'!BF$3+'Res-Appliance class'!$C38*'RES S curve-connect'!BF$8+'Res-Appliance class'!$D38*'RES S curve-connect'!BF$13+'Res-Appliance class'!$E38*'RES S curve-connect'!BF$18","v":22070.419567683763},{"$f":"'Res-Appliance class'!$B38*'RES S curve-connect'!BG$3+'Res-Appliance class'!$C38*'RES S curve-connect'!BG$8+'Res-Appliance class'!$D38*'RES S curve-connect'!BG$13+'Res-Appliance class'!$E38*'RES S curve-connect'!BG$18","v":23966.816531771474},{"$f":"'Res-Appliance class'!$B38*'RES S curve-connect'!BH$3+'Res-Appliance class'!$C38*'RES S curve-connect'!BH$8+'Res-Appliance class'!$D38*'RES S curve-connect'!BH$13+'Res-Appliance class'!$E38*'RES S curve-connect'!BH$18","v":26218.456666069727},{"$f":"'Res-Appliance class'!$B38*'RES S curve-connect'!BI$3+'Res-Appliance class'!$C38*'RES S curve-connect'!BI$8+'Res-Appliance class'!$D38*'RES S curve-connect'!BI$13+'Res-Appliance class'!$E38*'RES S curve-connect'!BI$18","v":29480.555809113259},{"$f":"'Res-Appliance class'!$B38*'RES S curve-connect'!BJ$3+'Res-Appliance class'!$C38*'RES S curve-connect'!BJ$8+'Res-Appliance class'!$D38*'RES S curve-connect'!BJ$13+'Res-Appliance class'!$E38*'RES S curve-connect'!BJ$18","v":34260.696756272257},{"$f":"'Res-Appliance class'!$B38*'RES S curve-connect'!BK$3+'Res-Appliance class'!$C38*'RES S curve-connect'!BK$8+'Res-Appliance class'!$D38*'RES S curve-connect'!BK$13+'Res-Appliance class'!$E38*'RES S curve-connect'!BK$18","v":41319.077666673118},{"$f":"'Res-Appliance class'!$B38*'RES S curve-connect'!BL$3+'Res-Appliance class'!$C38*'RES S curve-connect'!BL$8+'Res-Appliance class'!$D38*'RES S curve-connect'!BL$13+'Res-Appliance class'!$E38*'RES S curve-connect'!BL$18","v":609.08282047270268},{"$f":"'Res-Appliance class'!$B38*'RES S curve-connect'!BM$3+'Res-Appliance class'!$C38*'RES S curve-connect'!BM$8+'Res-Appliance class'!$D38*'RES S curve-connect'!BM$13+'Res-Appliance class'!$E38*'RES S curve-connect'!BM$18","v":617.98562560785854},{"$f":"'Res-Appliance class'!$B38*'RES S curve-connect'!BN$3+'Res-Appliance class'!$C38*'RES S curve-connect'!BN$8+'Res-Appliance class'!$D38*'RES S curve-connect'!BN$13+'Res-Appliance class'!$E38*'RES S curve-connect'!BN$18","v":622.85412427254812},{"$f":"'Res-Appliance class'!$B38*'RES S curve-connect'!BO$3+'Res-Appliance class'!$C38*'RES S curve-connect'!BO$8+'Res-Appliance class'!$D38*'RES S curve-connect'!BO$13+'Res-Appliance class'!$E38*'RES S curve-connect'!BO$18","v":635.75501284276254},{"$f":"'Res-Appliance class'!$B38*'RES S curve-connect'!BP$3+'Res-Appliance class'!$C38*'RES S curve-connect'!BP$8+'Res-Appliance class'!$D38*'RES S curve-connect'!BP$13+'Res-Appliance class'!$E38*'RES S curve-connect'!BP$18","v":644.62173974879045},{"$f":"'Res-Appliance class'!$B38*'RES S curve-connect'!BQ$3+'Res-Appliance class'!$C38*'RES S curve-connect'!BQ$8+'Res-Appliance class'!$D38*'RES S curve-connect'!BQ$13+'Res-Appliance class'!$E38*'RES S curve-connect'!BQ$18","v":653.47658463607058},{"$f":"'Res-Appliance class'!$B38*'RES S curve-connect'!BR$3+'Res-Appliance class'!$C38*'RES S curve-connect'!BR$8+'Res-Appliance class'!$D38*'RES S curve-connect'!BR$13+'Res-Appliance class'!$E38*'RES S curve-connect'!BR$18","v":658.29741087321895},{"$f":"'Res-Appliance class'!$B38*'RES S curve-connect'!BS$3+'Res-Appliance class'!$C38*'RES S curve-connect'!BS$8+'Res-Appliance class'!$D38*'RES S curve-connect'!BS$13+'Res-Appliance class'!$E38*'RES S curve-connect'!BS$18","v":671.15091304963596},{"$f":"'Res-Appliance class'!$B38*'RES S curve-connect'!BT$3+'Res-Appliance class'!$C38*'RES S curve-connect'!BT$8+'Res-Appliance class'!$D38*'RES S curve-connect'!BT$13+'Res-Appliance class'!$E38*'RES S curve-connect'!BT$18","v":679.9705378202973},{"$f":"'Res-Appliance class'!$B38*'RES S curve-connect'!BU$3+'Res-Appliance class'!$C38*'RES S curve-connect'!BU$8+'Res-Appliance class'!$D38*'RES S curve-connect'!BU$13+'Res-Appliance class'!$E38*'RES S curve-connect'!BU$18","v":688.77856306653393},{"$f":"'Res-Appliance class'!$B38*'RES S curve-connect'!BV$3+'Res-Appliance class'!$C38*'RES S curve-connect'!BV$8+'Res-Appliance class'!$D38*'RES S curve-connect'!BV$13+'Res-Appliance class'!$E38*'RES S curve-connect'!BV$18","v":693.55285040397621},{"$f":"'Res-Appliance class'!$B38*'RES S curve-connect'!BW$3+'Res-Appliance class'!$C38*'RES S curve-connect'!BW$8+'Res-Appliance class'!$D38*'RES S curve-connect'!BW$13+'Res-Appliance class'!$E38*'RES S curve-connect'!BW$18","v":706.36009268010514},{"$f":"'Res-Appliance class'!$B38*'RES S curve-connect'!BX$3+'Res-Appliance class'!$C38*'RES S curve-connect'!BX$8+'Res-Appliance class'!$D38*'RES S curve-connect'!BX$13+'Res-Appliance class'!$E38*'RES S curve-connect'!BX$18","v":715.13373481896383},{"$f":"'Res-Appliance class'!$B38*'RES S curve-connect'!BY$3+'Res-Appliance class'!$C38*'RES S curve-connect'!BY$8+'Res-Appliance class'!$D38*'RES S curve-connect'!BY$13+'Res-Appliance class'!$E38*'RES S curve-connect'!BY$18","v":723.89605298186734},{"$f":"'Res-Appliance class'!$B38*'RES S curve-connect'!BZ$3+'Res-Appliance class'!$C38*'RES S curve-connect'!BZ$8+'Res-Appliance class'!$D38*'RES S curve-connect'!BZ$13+'Res-Appliance class'!$E38*'RES S curve-connect'!BZ$18","v":728.62490707528355},{"$f":"'Res-Appliance class'!$B38*'RES S curve-connect'!CA$3+'Res-Appliance class'!$C38*'RES S curve-connect'!CA$8+'Res-Appliance class'!$D38*'RES S curve-connect'!CA$13+'Res-Appliance class'!$E38*'RES S curve-connect'!CA$18","v":741.38698824831374},{"$f":"'Res-Appliance class'!$B38*'RES S curve-connect'!CB$3+'Res-Appliance class'!$C38*'RES S curve-connect'!CB$8+'Res-Appliance class'!$D38*'RES S curve-connect'!CB$13+'Res-Appliance class'!$E38*'RES S curve-connect'!CB$18","v":750.11573973733016},{"$f":"'Res-Appliance class'!$B38*'RES S curve-connect'!CC$3+'Res-Appliance class'!$C38*'RES S curve-connect'!CC$8+'Res-Appliance class'!$D38*'RES S curve-connect'!CC$13+'Res-Appliance class'!$E38*'RES S curve-connect'!CC$18","v":758.83343602662217},{"$f":"'Res-Appliance class'!$B38*'RES S curve-connect'!CD$3+'Res-Appliance class'!$C38*'RES S curve-connect'!CD$8+'Res-Appliance class'!$D38*'RES S curve-connect'!CD$13+'Res-Appliance class'!$E38*'RES S curve-connect'!CD$18","v":625.12405953239681}]
["Melbourne (C)",null,{"$f":"'Res-Appliance class'!$B39*'RES S curve-connect'!C$3+'Res-Appliance class'!$C39*'RES S curve-connect'!C$8+'Res-Appliance class'!$D39*'RES S curve-connect'!C$13+'Res-Appliance class'!$E39*'RES S curve-connect'!C$18","v":-1536.7146654922412},{"$f":"'Res-Appliance class'!$B39*'RES S curve-connect'!D$3+'Res-Appliance class'!$C39*'RES S curve-connect'!D$8+'Res-Appliance class'!$D39*'RES S curve-connect'!D$13+'Res-Appliance class'!$E39*'RES S curve-connect'!D$18","v":-1902.348420328872},{"$f":"'Res-Appliance class'!$B39*'RES S curve-connect'!E$3+'Res-Appliance class'!$C39*'RES S curve-connect'!E$8+'Res-Appliance class'!$D39*'RES S curve-connect'!E$13+'Res-Appliance class'!$E39*'RES S curve-connect'!E$18","v":-1658.7156667502591},{"$f":"'Res-Appliance class'!$B39*'RES S curve-connect'!F$3+'Res-Appliance class'!$C39*'RES S curve-connect'!F$8+'Res-Appliance class'!$D39*'RES S curve-connect'!F$13+'Res-Appliance class'!$E39*'RES S curve-connect'!F$18","v":-1564.4280078234619},{"$f":"'Res-Appliance class'!$B39*'RES S curve-connect'!G$3+'Res-Appliance class'!$C39*'RES S curve-connect'!G$8+'Res-Appliance class'!$D39*'RES S curve-connect'!G$13+'Res-Appliance class'!$E39*'RES S curve-connect'!G$18","v":-2118.9283786916985},{"$f":"'Res-Appliance class'!$B39*'RES S curve-connect'!H$3+'Res-Appliance class'!$C39*'RES S curve-connect'!H$8+'Res-Appliance class'!$D39*'RES S curve-connect'!H$13+'Res-Appliance class'!$E39*'RES S curve-connect'!H$18","v":-2153.5520536536096},{"$f":"'Res-Appliance class'!$B39*'RES S curve-connect'!I$3+'Res-Appliance class'!$C39*'RES S curve-connect'!I$8+'Res-Appliance class'!$D39*'RES S curve-connect'!I$13+'Res-Appliance class'!$E39*'RES S curve-connect'!I$18","v":-1863.9813760517616},{"$f":"'Res-Appliance class'!$B39*'RES S curve-connect'!J$3+'Res-Appliance class'!$C39*'RES S curve-connect'!J$8+'Res-Appliance class'!$D39*'RES S curve-connect'!J$13+'Res-Appliance class'!$E39*'RES S curve-connect'!J$18","v":-2129.1872217010859},{"$f":"'Res-Appliance class'!$B39*'RES S curve-connect'!K$3+'Res-Appliance class'!$C39*'RES S curve-connect'!K$8+'Res-Appliance class'!$D39*'RES S curve-connect'!K$13+'Res-Appliance class'!$E39*'RES S curve-connect'!K$18","v":-1588.5157761997534},{"$f":"'Res-Appliance class'!$B39*'RES S curve-connect'!L$3+'Res-Appliance class'!$C39*'RES S curve-connect'!L$8+'Res-Appliance class'!$D39*'RES S curve-connect'!L$13+'Res-Appliance class'!$E39*'RES S curve-connect'!L$18","v":-1841.6960493535826},{"$f":"'Res-Appliance class'!$B39*'RES S curve-connect'!M$3+'Res-Appliance class'!$C39*'RES S curve-connect'!M$8+'Res-Appliance class'!$D39*'RES S curve-connect'!M$13+'Res-Appliance class'!$E39*'RES S curve-connect'!M$18","v":-2249.6300451270463},{"$f":"'Res-Appliance class'!$B39*'RES S curve-connect'!N$3+'Res-Appliance class'!$C39*'RES S curve-connect'!N$8+'Res-Appliance class'!$D39*'RES S curve-connect'!N$13+'Res-Appliance class'!$E39*'RES S curve-connect'!N$18","v":-2293.7969786037861},{"$f":"'Res-Appliance class'!$B39*'RES S curve-connect'!O$3+'Res-Appliance class'!$C39*'RES S curve-connect'!O$8+'Res-Appliance class'!$D39*'RES S curve-connect'!O$13+'Res-Appliance class'!$E39*'RES S curve-connect'!O$18","v":-1907.6122938327981},{"$f":"'Res-Appliance class'!$B39*'RES S curve-connect'!P$3+'Res-Appliance class'!$C39*'RES S curve-connect'!P$8+'Res-Appliance class'!$D39*'RES S curve-connect'!P$13+'Res-Appliance class'!$E39*'RES S curve-connect'!P$18","v":-1606.9211967953984},{"$f":"'Res-Appliance class'!$B39*'RES S curve-connect'!Q$3+'Res-Appliance class'!$C39*'RES S curve-connect'!Q$8+'Res-Appliance class'!$D39*'RES S curve-connect'!Q$13+'Res-Appliance class'!$E39*'RES S curve-connect'!Q$18","v":-1150.5658646572301},{"$f":"'Res-Appliance class'!$B39*'RES S curve-connect'!R$3+'Res-Appliance class'!$C39*'RES S curve-connect'!R$8+'Res-Appliance class'!$D39*'RES S curve-connect'!R$13+'Res-Appliance class'!$E39*'RES S curve-connect'!R$18","v":-894.72679143390815},{"$f":"'Res-Appliance class'!$B39*'RES S curve-connect'!S$3+'Res-Appliance class'!$C39*'RES S curve-connect'!S$8+'Res-Appliance class'!$D39*'RES S curve-connect'!S$13+'Res-Appliance class'!$E39*'RES S curve-connect'!S$18","v":-472.85061163391669},{"$f":"'Res-Appliance class'!$B39*'RES S curve-connect'!T$3+'Res-Appliance class'!$C39*'RES S curve-connect'!T$8+'Res-Appliance class'!$D39*'RES S curve-connect'!T$13+'Res-Appliance class'!$E39*'RES S curve-connect'!T$18","v":-271.79560072891667},{"$f":"'Res-Appliance class'!$B39*'RES S curve-connect'!U$3+'Res-Appliance class'!$C39*'RES S curve-connect'!U$8+'Res-Appliance class'!$D39*'RES S curve-connect'!U$13+'Res-Appliance class'!$E39*'RES S curve-connect'!U$18","v":-23.585279722948599},{"$f":"'Res-Appliance class'!$B39*'RES S curve-connect'!V$3+'Res-Appliance class'!$C39*'RES S curve-connect'!V$8+'Res-Appliance class'!$D39*'RES S curve-connect'!V$13+'Res-Appliance class'!$E39*'RES S curve-connect'!V$18","v":149.94551101733697},{"$f":"'Res-Appliance class'!$B39*'RES S curve-connect'!W$3+'Res-Appliance class'!$C39*'RES S curve-connect'!W$8+'Res-Appliance class'!$D39*'RES S curve-connect'!W$13+'Res-Appliance class'!$E39*'RES S curve-connect'!W$18","v":284.88952044532851},{"$f":"'Res-Appliance class'!$B39*'RES S curve-connect'!X$3+'Res-Appliance class'!$C39*'RES S curve-connect'!X$8+'Res-Appliance class'!$D39*'RES S curve-connect'!X$13+'Res-Appliance class'!$E39*'RES S curve-connect'!X$18","v":584.11957408166381},{"$f":"'Res-Appliance class'!$B39*'RES S curve-connect'!Y$3+'Res-Appliance class'!$C39*'RES S curve-connect'!Y$8+'Res-Appliance class'!$D39*'RES S curve-connect'!Y$13+'Res-Appliance class'!$E39*'RES S curve-connect'!Y$18","v":889.62376536906709},{"$f":"'Res-Appliance class'!$B39*'RES S curve-connect'!Z$3+'Res-Appliance class'!$C39*'RES S curve-connect'!Z$8+'Res-Appliance class'!$D39*'RES S curve-connect'!Z$13+'Res-Appliance class'!$E39*'RES S curve-connect'!Z$18","v":1096.4509892735887},{"$f":"'Res-Appliance class'!$B39*'RES S curve-connect'!AA$3+'Res-Appliance class'!$C39*'RES S curve-connect'!AA$8+'Res-Appliance class'!$D39*'RES S curve-connect'!AA$13+'Res-Appliance class'!$E39*'RES S curve-connect'!AA$18","v":1306.3957579374573},{"$f":"'Res-Appliance class'!$B39*'RES S curve-connect'!AB$3+'Res-Appliance class'!$C39*'RES S curve-connect'!AB$8+'Res-Appliance class'!$D39*'RES S curve-connect'!AB$13+'Res-Appliance class'!$E39*'RES S curve-connect'!AB$18","v":1475.080432406631},{"$f":"'Res-Appliance class'!$B39*'RES S curve-connect'!AC$3+'Res-Appliance class'!$C39*'RES S curve-connect'!AC$8+'Res-Appliance class'!$D39*'RES S curve-connect'!AC$13+'Res-Appliance class'!$E39*'RES S curve-connect'!AC$18","v":1639.483486835351},{"$f":"'Res-Appliance class'!$B39*'RES S curve-connect'!AD$3+'Res-Appliance class'!$C39*'RES S curve-connect'!AD$8+'Res-Appliance class'!$D39*'RES S curve-connect'!AD$13+'Res-Appliance class'!$E39*'RES S curve-connect'!AD$18","v":1790.0916973373799},{"$f":"'Res-Appliance class'!$B39*'RES S curve-connect'!AE$3+'Res-Appliance class'!$C39*'RES S curve-connect'!AE$8+'Res-Appliance class'!$D39*'RES S curve-connect'!AE$13+'Res-Appliance class'!$E39*'RES S curve-connect'!AE$18","v":1952.9687158933007},{"$f":"'Res-Appliance class'!$B39*'RES S curve-connect'!AF$3+'Res-Appliance class'!$C39*'RES S curve-connect'!AF$8+'Res-Appliance class'!$D39*'RES S curve-connect'!AF$13+'Res-Appliance class'!$E39*'RES S curve-connect'!AF$18","v":2159.4045234855794},{"$f":"'Res-Appliance class'!$B39*'RES S curve-connect'!AG$3+'Res-Appliance class'!$C39*'RES S curve-connect'!AG$8+'Res-Appliance class'!$D39*'RES S curve-connect'!AG$13+'Res-Appliance class'!$E39*'RES S curve-connect'!AG$18","v":2305.7937872127441},{"$f":"'Res-Appliance class'!$B39*'RES S curve-connect'!AH$3+'Res-Appliance class'!$C39*'RES S curve-connect'!AH$8+'Res-Appliance class'!$D39*'RES S curve-connect'!AH$13+'Res-Appliance class'!$E39*'RES S curve-connect'!AH$18","v":2503.0728418684685},{"$f":"'Res-Appliance class'!$B39*'RES S curve-connect'!AI$3+'Res-Appliance class'!$C39*'RES S curve-connect'!AI$8+'Res-Appliance class'!$D39*'RES S curve-connect'!AI$13+'Res-Appliance class'!$E39*'RES S curve-connect'!AI$18","v":2688.3731427368575},{"$f":"'Res-Appliance class'!$B39*'RES S curve-connect'!AJ$3+'Res-Appliance class'!$C39*'RES S curve-connect'!AJ$8+'Res-Appliance class'!$D39*'RES S curve-connect'!AJ$13+'Res-Appliance class'!$E39*'RES S curve-connect'!AJ$18","v":2853.9373370973481},{"$f":"'Res-Appliance class'!$B39*'RES S curve-connect'!AK$3+'Res-Appliance class'!$C39*'RES S curve-connect'!AK$8+'Res-Appliance class'!$D39*'RES S curve-connect'!AK$13+'Res-Appliance class'!$E39*'RES S curve-connect'!AK$18","v":3029.9962870403369},{"$f":"'Res-Appliance class'!$B39*'RES S curve-connect'!AL$3+'Res-Appliance class'!$C39*'RES S curve-connect'!AL$8+'Res-Appliance class'!$D39*'RES S curve-connect'!AL$13+'Res-Appliance class'!$E39*'RES S curve-connect'!AL$18","v":2398.7665028592614},{"$f":"'Res-Appliance class'!$B39*'RES S curve-connect'!AM$3+'Res-Appliance class'!$C39*'RES S curve-connect'!AM$8+'Res-Appliance class'!$D39*'RES S curve-connect'!AM$13+'Res-Appliance class'!$E39*'RES S curve-connect'!AM$18","v":2328.0472570216634},{"$f":"'Res-Appliance class'!$B39*'RES S curve-connect'!AN$3+'Res-Appliance class'!$C39*'RES S curve-connect'!AN$8+'Res-Appliance class'!$D39*'RES S curve-connect'!AN$13+'Res-Appliance class'!$E39*'RES S curve-connect'!AN$18","v":2500.8467418740247},{"$f":"'Res-Appliance class'!$B39*'RES S curve-connect'!AO$3+'Res-Appliance class'!$C39*'RES S curve-connect'!AO$8+'Res-Appliance class'!$D39*'RES S curve-connect'!AO$13+'Res-Appliance class'!$E39*'RES S curve-connect'!AO$18","v":2706.4325817591653},{"$f":"'Res-Appliance class'!$B39*'RES S curve-connect'!AP$3+'Res-Appliance class'!$C39*'RES S curve-connect'!AP$8+'Res-Appliance class'!$D39*'RES S curve-connect'!AP$13+'Res-Appliance class'!$E39*'RES S curve-connect'!AP$18","v":2892.9301756576515},{"$f":"'Res-Appliance class'!$B39*'RES S curve-connect'!AQ$3+'Res-Appliance class'!$C39*'RES S curve-connect'!AQ$8+'Res-Appliance class'!$D39*'RES S curve-connect'!AQ$13+'Res-Appliance class'!$E39*'RES S curve-connect'!AQ$18","v":3097.2017656967478},{"$f":"'Res-Appliance class'!$B39*'RES S curve-connect'!AR$3+'Res-Appliance class'!$C39*'RES S curve-connect'!AR$8+'Res-Appliance class'!$D39*'RES S curve-connect'!AR$13+'Res-Appliance class'!$E39*'RES S curve-connect'!AR$18","v":3319.4788380352861},{"$f":"'Res-Appliance class'!$B39*'RES S curve-connect'!AS$3+'Res-Appliance class'!$C39*'RES S curve-connect'!AS$8+'Res-Appliance class'!$D39*'RES S curve-connect'!AS$13+'Res-Appliance class'!$E39*'RES S curve-connect'!AS$18","v":3568.396027717105},{"$f":"'Res-Appliance class'!$B39*'RES S curve-connect'!AT$3+'Res-Appliance class'!$C39*'RES S curve-connect'!AT$8+'Res-Appliance class'!$D39*'RES S curve-connect'!AT$13+'Res-Appliance class'!$E39*'RES S curve-connect'!AT$18","v":3844.5098274813522},{"$f":"'Res-Appliance class'!$B39*'RES S curve-connect'!AU$3+'Res-Appliance class'!$C39*'RES S curve-connect'!AU$8+'Res-Appliance class'!$D39*'RES S curve-connect'!AU$13+'Res-Appliance class'!$E39*'RES S curve-connect'!AU$18","v":4166.782102844847},{"$f":"'Res-Appliance class'!$B39*'RES S curve-connect'!AV$3+'Res-Appliance class'!$C39*'RES S curve-connect'!AV$8+'Res-Appliance class'!$D39*'RES S curve-connect'!AV$13+'Res-Appliance class'!$E39*'RES S curve-connect'!AV$18","v":4531.5191521680899},{"$f":"'Res-Appliance class'!$B39*'RES S curve-connect'!AW$3+'Res-Appliance class'!$C39*'RES S curve-connect'!AW$8+'Res-Appliance class'!$D39*'RES S curve-connect'!AW$13+'Res-Appliance class'!$E39*'RES S curve-connect'!AW$18","v":4949.4091556571557},{"$f":"'Res-Appliance class'!$B39*'RES S curve-connect'!AX$3+'Res-Appliance class'!$C39*'RES S curve-connect'!AX$8+'Res-Appliance class'!$D39*'RES S curve-connect'!AX$13+'Res-Appliance class'!$E39*'RES S curve-connect'!AX$18","v":5422.1945957935313},{"$f":"'Res-Appliance class'!$B39*'RES S curve-connect'!AY$3+'Res-Appliance class'!$C39*'RES S curve-connect'!AY$8+'Res-Appliance class'!$D39*'RES S curve-connect'!AY$13+'Res-Appliance class'!$E39*'RES S curve-connect'!AY$18","v":5969.1401845966902},{"$f":"'Res-Appliance class'!$B39*'RES S curve-connect'!AZ$3+'Res-Appliance class'!$C39*'RES S curve-connect'!AZ$8+'Res-Appliance class'!$D39*'RES S curve-connect'!AZ$13+'Res-Appliance class'!$E39*'RES S curve-connect'!AZ$18","v":6589.8004287181957},{"$f":"'Res-Appliance class'!$B39*'RES S curve-connect'!BA$3+'Res-Appliance class'!$C39*'RES S curve-connect'!BA$8+'Res-Appliance class'!$D39*'RES S curve-connect'!BA$13+'Res-Appliance class'!$E39*'RES S curve-connect'!BA$18","v":7305.4521150650489},{"$f":"'Res-Appliance class'!$B39*'RES S curve-connect'!BB$3+'Res-Appliance class'!$C39*'RES S curve-connect'!BB$8+'Res-Appliance class'!$D39*'RES S curve-connect'!BB$13+'Res-Appliance class'!$E39*'RES S curve-connect'!BB$18","v":8136.0119334773381},{"$f":"'Res-Appliance class'!$B39*'RES S curve-connect'!BC$3+'Res-Appliance class'!$C39*'RES S curve-connect'!BC$8+'Res-Appliance class'!$D39*'RES S curve-connect'!BC$13+'Res-Appliance class'!$E39*'RES S curve-connect'!BC$18","v":9125.4757176280946},{"$f":"'Res-Appliance class'!$B39*'RES S curve-connect'!BD$3+'Res-Appliance class'!$C39*'RES S curve-connect'!BD$8+'Res-Appliance class'!$D39*'RES S curve-connect'!BD$13+'Res-Appliance class'!$E39*'RES S curve-connect'!BD$18","v":10065.6546982441},{"$f":"'Res-Appliance class'!$B39*'RES S curve-connect'!BE$3+'Res-Appliance class'!$C39*'RES S curve-connect'!BE$8+'Res-Appliance class'!$D39*'RES S curve-connect'!BE$13+'Res-Appliance class'!$E39*'RES S curve-connect'!BE$18","v":10920.183305792529},{"$f":"'Res-Appliance class'!$B39*'RES S curve-connect'!BF$3+'Res-Appliance class'!$C39*'RES S curve-connect'!BF$8+'Res-Appliance class'!$D39*'RES S curve-connect'!BF$13+'Res-Appliance class'!$E39*'RES S curve-connect'!BF$18","v":11795.94869372671},{"$f":"'Res-Appliance class'!$B39*'RES S curve-connect'!BG$3+'Res-Appliance class'!$C39*'RES S curve-connect'!BG$8+'Res-Appliance class'!$D39*'RES S curve-connect'!BG$13+'Res-Appliance class'!$E39*'RES S curve-connect'!BG$18","v":12792.538803022777},{"$f":"'Res-Appliance class'!$B39*'RES S curve-connect'!BH$3+'Res-Appliance class'!$C39*'RES S curve-connect'!BH$8+'Res-Appliance class'!$D39*'RES S curve-connect'!BH$13+'Res-Appliance class'!$E39*'RES S curve-connect'!BH$18","v":13972.331428625805},{"$f":"'Res-Appliance class'!$B39*'RES S curve-connect'!BI$3+'Res-Appliance class'!$C39*'RES S curve-connect'!BI$8+'Res-Appliance class'!$D39*'RES S curve-connect'!BI$13+'Res-Appliance class'!$E39*'RES S curve-connect'!BI$18","v":15685.25417092886},{"$f":"'Res-Appliance class'!$B39*'RES S curve-connect'!BJ$3+'Res-Appliance class'!$C39*'RES S curve-connect'!BJ$8+'Res-Appliance class'!$D39*'RES S curve-connect'!BJ$13+'Res-Appliance class'!$E39*'RES S curve-connect'!BJ$18","v":18177.390004948389},{"$f":"'Res-Appliance class'!$B39*'RES S curve-connect'!BK$3+'Res-Appliance class'!$C39*'RES S curve-connect'!BK$8+'Res-Appliance class'!$D39*'RES S curve-connect'!BK$13+'Res-Appliance class'!$E39*'RES S curve-connect'!BK$18","v":21830.891214426629},{"$f":"'Res-Appliance class'!$B39*'RES S curve-connect'!BL$3+'Res-Appliance class'!$C39*'RES S curve-connect'!BL$8+'Res-Appliance class'!$D39*'RES S curve-connect'!BL$13+'Res-Appliance class'!$E39*'RES S curve-connect'!BL$18","v":107.82723322555745},{"$f":"'Res-Appliance class'!$B39*'RES S curve-connect'!BM$3+'Res-Appliance class'!$C39*'RES S curve-connect'!BM$8+'Res-Appliance class'!$D39*'RES S curve-connect'!BM$13+'Res-Appliance class'!$E39*'RES S curve-connect'!BM$18","v":112.59543334522519},{"$f":"'Res-Appliance class'!$B39*'RES S curve-connect'!BN$3+'Res-Appliance class'!$C39*'RES S curve-connect'!BN$8+'Res-Appliance class'!$D39*'RES S curve-connect'!BN$13+'Res-Appliance class'!$E39*'RES S curve-connect'!BN$18","v":113.33329621425889},{"$f":"'Res-Appliance class'!$B39*'RES S curve-connect'!BO$3+'Res-Appliance class'!$C39*'RES S curve-connect'!BO$8+'Res-Appliance class'!$D39*'RES S curve-connect'!BO$13+'Res-Appliance class'!$E39*'RES S curve-connect'!BO$18","v":122.10749580187615},{"$f":"'Res-Appliance class'!$B39*'RES S curve-connect'!BP$3+'Res-Appliance class'!$C39*'RES S curve-connect'!BP$8+'Res-Appliance class'!$D39*'RES S curve-connect'!BP$13+'Res-Appliance class'!$E39*'RES S curve-connect'!BP$18","v":126.85145826630858},{"$f":"'Res-Appliance class'!$B39*'RES S curve-connect'!BQ$3+'Res-Appliance class'!$C39*'RES S curve-connect'!BQ$8+'Res-Appliance class'!$D39*'RES S curve-connect'!BQ$13+'Res-Appliance class'!$E39*'RES S curve-connect'!BQ$18","v":131.58744111481525},{"$f":"'Res-Appliance class'!$B39*'RES S curve-connect'!BR$3+'Res-Appliance class'!$C39*'RES S curve-connect'!BR$8+'Res-Appliance class'!$D39*'RES S curve-connect'!BR$13+'Res-Appliance class'!$E39*'RES S curve-connect'!BR$18","v":132.29328571087649},{"$f":"'Res-Appliance class'!$B39*'RES S curve-connect'!BS$3+'Res-Appliance class'!$C39*'RES S curve-connect'!BS$8+'Res-Appliance class'!$D39*'RES S curve-connect'!BS$13+'Res-Appliance class'!$E39*'RES S curve-connect'!BS$18","v":141.03566477097834},{"$f":"'Res-Appliance class'!$B39*'RES S curve-connect'!BT$3+'Res-Appliance class'!$C39*'RES S curve-connect'!BT$8+'Res-Appliance class'!$D39*'RES S curve-connect'!BT$13+'Res-Appliance class'!$E39*'RES S curve-connect'!BT$18","v":145.74800320857904},{"$f":"'Res-Appliance class'!$B39*'RES S curve-connect'!BU$3+'Res-Appliance class'!$C39*'RES S curve-connect'!BU$8+'Res-Appliance class'!$D39*'RES S curve-connect'!BU$13+'Res-Appliance class'!$E39*'RES S curve-connect'!BU$18","v":150.45255729407171},{"$f":"'Res-Appliance class'!$B39*'RES S curve-connect'!BV$3+'Res-Appliance class'!$C39*'RES S curve-connect'!BV$8+'Res-Appliance class'!$D39*'RES S curve-connect'!BV$13+'Res-Appliance class'!$E39*'RES S curve-connect'!BV$18","v":151.12716716192364},{"$f":"'Res-Appliance class'!$B39*'RES S curve-connect'!BW$3+'Res-Appliance class'!$C39*'RES S curve-connect'!BW$8+'Res-Appliance class'!$D39*'RES S curve-connect'!BW$13+'Res-Appliance class'!$E39*'RES S curve-connect'!BW$18","v":159.83850430741595},{"$f":"'Res-Appliance class'!$B39*'RES S curve-connect'!BX$3+'Res-Appliance class'!$C39*'RES S curve-connect'!BX$8+'Res-Appliance class'!$D39*'RES S curve-connect'!BX$13+'Res-Appliance class'!$E39*'RES S curve-connect'!BX$18","v":164.51999243055678},{"$f":"'Res-Appliance class'!$B39*'RES S curve-connect'!BY$3+'Res-Appliance class'!$C39*'RES S curve-connect'!BY$8+'Res-Appliance class'!$D39*'RES S curve-connect'!BY$13+'Res-Appliance class'!$E39*'RES S curve-connect'!BY$18","v":169.1938865959952},{"$f":"'Res-Appliance class'!$B39*'RES S curve-connect'!BZ$3+'Res-Appliance class'!$C39*'RES S curve-connect'!BZ$8+'Res-Appliance class'!$D39*'RES S curve-connect'!BZ$13+'Res-Appliance class'!$E39*'RES S curve-connect'!BZ$18","v":169.8380257401123},{"$f":"'Res-Appliance class'!$B39*'RES S curve-connect'!CA$3+'Res-Appliance class'!$C39*'RES S curve-connect'!CA$8+'Res-Appliance class'!$D39*'RES S curve-connect'!CA$13+'Res-Appliance class'!$E39*'RES S curve-connect'!CA$18","v":178.51908016771259},{"$f":"'Res-Appliance class'!$B39*'RES S curve-connect'!CB$3+'Res-Appliance class'!$C39*'RES S curve-connect'!CB$8+'Res-Appliance class'!$D39*'RES S curve-connect'!CB$13+'Res-Appliance class'!$E39*'RES S curve-connect'!CB$18","v":183.17047239588572},{"$f":"'Res-Appliance class'!$B39*'RES S curve-connect'!CC$3+'Res-Appliance class'!$C39*'RES S curve-connect'!CC$8+'Res-Appliance class'!$D39*'RES S curve-connect'!CC$13+'Res-Appliance class'!$E39*'RES S curve-connect'!CC$18","v":187.81445631387479},{"$f":"'Res-Appliance class'!$B39*'RES S curve-connect'!CD$3+'Res-Appliance class'!$C39*'RES S curve-connect'!CD$8+'Res-Appliance class'!$D39*'RES S curve-connect'!CD$13+'Res-Appliance class'!$E39*'RES S curve-connect'!CD$18","v":120.73999918482369}]
["Monash (C)",null,{"$f":"'Res-Appliance class'!$B40*'RES S curve-connect'!C$3+'Res-Appliance class'!$C40*'RES S curve-connect'!C$8+'Res-Appliance class'!$D40*'RES S curve-connect'!C$13+'Res-Appliance class'!$E40*'RES S curve-connect'!C$18","v":-2657.201983325861},{"$f":"'Res-Appliance class'!$B40*'RES S curve-connect'!D$3+'Res-Appliance class'!$C40*'RES S curve-connect'!D$8+'Res-Appliance class'!$D40*'RES S curve-connect'!D$13+'Res-Appliance class'!$E40*'RES S curve-connect'!D$18","v":-3277.0354503732688},{"$f":"'Res-Appliance class'!$B40*'RES S curve-connect'!E$3+'Res-Appliance class'!$C40*'RES S curve-connect'!E$8+'Res-Appliance class'!$D40*'RES S curve-connect'!E$13+'Res-Appliance class'!$E40*'RES S curve-connect'!E$18","v":-2705.035046822753},{"$f":"'Res-Appliance class'!$B40*'RES S curve-connect'!F$3+'Res-Appliance class'!$C40*'RES S curve-connect'!F$8+'Res-Appliance class'!$D40*'RES S curve-connect'!F$13+'Res-Appliance class'!$E40*'RES S curve-connect'!F$18","v":-2519.7482621377721},{"$f":"'Res-Appliance class'!$B40*'RES S curve-connect'!G$3+'Res-Appliance class'!$C40*'RES S curve-connect'!G$8+'Res-Appliance class'!$D40*'RES S curve-connect'!G$13+'Res-Appliance class'!$E40*'RES S curve-connect'!G$18","v":-3788.2851240159362},{"$f":"'Res-Appliance class'!$B40*'RES S curve-connect'!H$3+'Res-Appliance class'!$C40*'RES S curve-connect'!H$8+'Res-Appliance class'!$D40*'RES S curve-connect'!H$13+'Res-Appliance class'!$E40*'RES S curve-connect'!H$18","v":-3823.6173498702301},{"$f":"'Res-Appliance class'!$B40*'RES S curve-connect'!I$3+'Res-Appliance class'!$C40*'RES S curve-connect'!I$8+'Res-Appliance class'!$D40*'RES S curve-connect'!I$13+'Res-Appliance class'!$E40*'RES S curve-connect'!I$18","v":-3298.8144860152347},{"$f":"'Res-Appliance class'!$B40*'RES S curve-connect'!J$3+'Res-Appliance class'!$C40*'RES S curve-connect'!J$8+'Res-Appliance class'!$D40*'RES S curve-connect'!J$13+'Res-Appliance class'!$E40*'RES S curve-connect'!J$18","v":-3619.5210129937432},{"$f":"'Res-Appliance class'!$B40*'RES S curve-connect'!K$3+'Res-Appliance class'!$C40*'RES S curve-connect'!K$8+'Res-Appliance class'!$D40*'RES S curve-connect'!K$13+'Res-Appliance class'!$E40*'RES S curve-connect'!K$18","v":-2687.4840370273},{"$f":"'Res-Appliance class'!$B40*'RES S curve-connect'!L$3+'Res-Appliance class'!$C40*'RES S curve-connect'!L$8+'Res-Appliance class'!$D40*'RES S curve-connect'!L$13+'Res-Appliance class'!$E40*'RES S curve-connect'!L$18","v":-3119.588922299532},{"$f":"'Res-Appliance class'!$B40*'RES S curve-connect'!M$3+'Res-Appliance class'!$C40*'RES S curve-connect'!M$8+'Res-Appliance class'!$D40*'RES S curve-connect'!M$13+'Res-Appliance class'!$E40*'RES S curve-connect'!M$18","v":-3895.4261980954407},{"$f":"'Res-Appliance class'!$B40*'RES S curve-connect'!N$3+'Res-Appliance class'!$C40*'RES S curve-connect'!N$8+'Res-Appliance class'!$D40*'RES S curve-connect'!N$13+'Res-Appliance class'!$E40*'RES S curve-connect'!N$18","v":-3976.0982781685002},{"$f":"'Res-Appliance class'!$B40*'RES S curve-connect'!O$3+'Res-Appliance class'!$C40*'RES S curve-connect'!O$8+'Res-Appliance class'!$D40*'RES S curve-connect'!O$13+'Res-Appliance class'!$E40*'RES S curve-connect'!O$18","v":-3306.9502760869177},{"$f":"'Res-Appliance class'!$B40*'RES S curve-connect'!P$3+'Res-Appliance class'!$C40*'RES S curve-connect'!P$8+'Res-Appliance class'!$D40*'RES S curve-connect'!P$13+'Res-Appliance class'!$E40*'RES S curve-connect'!P$18","v":-2775.8464251266705},{"$f":"'Res-Appliance class'!$B40*'RES S curve-connect'!Q$3+'Res-Appliance class'!$C40*'RES S curve-connect'!Q$8+'Res-Appliance class'!$D40*'RES S curve-connect'!Q$13+'Res-Appliance class'!$E40*'RES S curve-connect'!Q$18","v":-1969.0818539371135},{"$f":"'Res-Appliance class'!$B40*'RES S curve-connect'!R$3+'Res-Appliance class'!$C40*'RES S curve-connect'!R$8+'Res-Appliance class'!$D40*'RES S curve-connect'!R$13+'Res-Appliance class'!$E40*'RES S curve-connect'!R$18","v":-1515.3141749506849},{"$f":"'Res-Appliance class'!$B40*'RES S curve-connect'!S$3+'Res-Appliance class'!$C40*'RES S curve-connect'!S$8+'Res-Appliance class'!$D40*'RES S curve-connect'!S$13+'Res-Appliance class'!$E40*'RES S curve-connect'!S$18","v":-788.71072387333049},{"$f":"'Res-Appliance class'!$B40*'RES S curve-connect'!T$3+'Res-Appliance class'!$C40*'RES S curve-connect'!T$8+'Res-Appliance class'!$D40*'RES S curve-connect'!T$13+'Res-Appliance class'!$E40*'RES S curve-connect'!T$18","v":-397.53195148398362},{"$f":"'Res-Appliance class'!$B40*'RES S curve-connect'!U$3+'Res-Appliance class'!$C40*'RES S curve-connect'!U$8+'Res-Appliance class'!$D40*'RES S curve-connect'!U$13+'Res-Appliance class'!$E40*'RES S curve-connect'!U$18","v":50.409707517022866},{"$f":"'Res-Appliance class'!$B40*'RES S curve-connect'!V$3+'Res-Appliance class'!$C40*'RES S curve-connect'!V$8+'Res-Appliance class'!$D40*'RES S curve-connect'!V$13+'Res-Appliance class'!$E40*'RES S curve-connect'!V$18","v":353.66113672202107},{"$f":"'Res-Appliance class'!$B40*'RES S curve-connect'!W$3+'Res-Appliance class'!$C40*'RES S curve-connect'!W$8+'Res-Appliance class'!$D40*'RES S curve-connect'!W$13+'Res-Appliance class'!$E40*'RES S curve-connect'!W$18","v":588.18778028831855},{"$f":"'Res-Appliance class'!$B40*'RES S curve-connect'!X$3+'Res-Appliance class'!$C40*'RES S curve-connect'!X$8+'Res-Appliance class'!$D40*'RES S curve-connect'!X$13+'Res-Appliance class'!$E40*'RES S curve-connect'!X$18","v":1130.1140889304766},{"$f":"'Res-Appliance class'!$B40*'RES S curve-connect'!Y$3+'Res-Appliance class'!$C40*'RES S curve-connect'!Y$8+'Res-Appliance class'!$D40*'RES S curve-connect'!Y$13+'Res-Appliance class'!$E40*'RES S curve-connect'!Y$18","v":1678.5708289622437},{"$f":"'Res-Appliance class'!$B40*'RES S curve-connect'!Z$3+'Res-Appliance class'!$C40*'RES S curve-connect'!Z$8+'Res-Appliance class'!$D40*'RES S curve-connect'!Z$13+'Res-Appliance class'!$E40*'RES S curve-connect'!Z$18","v":2047.2301553119867},{"$f":"'Res-Appliance class'!$B40*'RES S curve-connect'!AA$3+'Res-Appliance class'!$C40*'RES S curve-connect'!AA$8+'Res-Appliance class'!$D40*'RES S curve-connect'!AA$13+'Res-Appliance class'!$E40*'RES S curve-connect'!AA$18","v":2415.9759936536193},{"$f":"'Res-Appliance class'!$B40*'RES S curve-connect'!AB$3+'Res-Appliance class'!$C40*'RES S curve-connect'!AB$8+'Res-Appliance class'!$D40*'RES S curve-connect'!AB$13+'Res-Appliance class'!$E40*'RES S curve-connect'!AB$18","v":2708.7190301120654},{"$f":"'Res-Appliance class'!$B40*'RES S curve-connect'!AC$3+'Res-Appliance class'!$C40*'RES S curve-connect'!AC$8+'Res-Appliance class'!$D40*'RES S curve-connect'!AC$13+'Res-Appliance class'!$E40*'RES S curve-connect'!AC$18","v":2990.507184201379},{"$f":"'Res-Appliance class'!$B40*'RES S curve-connect'!AD$3+'Res-Appliance class'!$C40*'RES S curve-connect'!AD$8+'Res-Appliance class'!$D40*'RES S curve-connect'!AD$13+'Res-Appliance class'!$E40*'RES S curve-connect'!AD$18","v":3248.3532160017376},{"$f":"'Res-Appliance class'!$B40*'RES S curve-connect'!AE$3+'Res-Appliance class'!$C40*'RES S curve-connect'!AE$8+'Res-Appliance class'!$D40*'RES S curve-connect'!AE$13+'Res-Appliance class'!$E40*'RES S curve-connect'!AE$18","v":3519.8428419177676},{"$f":"'Res-Appliance class'!$B40*'RES S curve-connect'!AF$3+'Res-Appliance class'!$C40*'RES S curve-connect'!AF$8+'Res-Appliance class'!$D40*'RES S curve-connect'!AF$13+'Res-Appliance class'!$E40*'RES S curve-connect'!AF$18","v":3873.5249288724904},{"$f":"'Res-Appliance class'!$B40*'RES S curve-connect'!AG$3+'Res-Appliance class'!$C40*'RES S curve-connect'!AG$8+'Res-Appliance class'!$D40*'RES S curve-connect'!AG$13+'Res-Appliance class'!$E40*'RES S curve-connect'!AG$18","v":4122.627757065864},{"$f":"'Res-Appliance class'!$B40*'RES S curve-connect'!AH$3+'Res-Appliance class'!$C40*'RES S curve-connect'!AH$8+'Res-Appliance class'!$D40*'RES S curve-connect'!AH$13+'Res-Appliance class'!$E40*'RES S curve-connect'!AH$18","v":4473.1539151516035},{"$f":"'Res-Appliance class'!$B40*'RES S curve-connect'!AI$3+'Res-Appliance class'!$C40*'RES S curve-connect'!AI$8+'Res-Appliance class'!$D40*'RES S curve-connect'!AI$13+'Res-Appliance class'!$E40*'RES S curve-connect'!AI$18","v":4788.2446673176855},{"$f":"'Res-Appliance class'!$B40*'RES S curve-connect'!AJ$3+'Res-Appliance class'!$C40*'RES S curve-connect'!AJ$8+'Res-Appliance class'!$D40*'RES S curve-connect'!AJ$13+'Res-Appliance class'!$E40*'RES S curve-connect'!AJ$18","v":5072.6096974453667},{"$f":"'Res-Appliance class'!$B40*'RES S curve-connect'!AK$3+'Res-Appliance class'!$C40*'RES S curve-connect'!AK$8+'Res-Appliance class'!$D40*'RES S curve-connect'!AK$13+'Res-Appliance class'!$E40*'RES S curve-connect'!AK$18","v":5374.5032926435988},{"$f":"'Res-Appliance class'!$B40*'RES S curve-connect'!AL$3+'Res-Appliance class'!$C40*'RES S curve-connect'!AL$8+'Res-Appliance class'!$D40*'RES S curve-connect'!AL$13+'Res-Appliance class'!$E40*'RES S curve-connect'!AL$18","v":4329.4761951395531},{"$f":"'Res-Appliance class'!$B40*'RES S curve-connect'!AM$3+'Res-Appliance class'!$C40*'RES S curve-connect'!AM$8+'Res-Appliance class'!$D40*'RES S curve-connect'!AM$13+'Res-Appliance class'!$E40*'RES S curve-connect'!AM$18","v":4192.6146752671657},{"$f":"'Res-Appliance class'!$B40*'RES S curve-connect'!AN$3+'Res-Appliance class'!$C40*'RES S curve-connect'!AN$8+'Res-Appliance class'!$D40*'RES S curve-connect'!AN$13+'Res-Appliance class'!$E40*'RES S curve-connect'!AN$18","v":4478.3306510997581},{"$f":"'Res-Appliance class'!$B40*'RES S curve-connect'!AO$3+'Res-Appliance class'!$C40*'RES S curve-connect'!AO$8+'Res-Appliance class'!$D40*'RES S curve-connect'!AO$13+'Res-Appliance class'!$E40*'RES S curve-connect'!AO$18","v":4827.8729015624085},{"$f":"'Res-Appliance class'!$B40*'RES S curve-connect'!AP$3+'Res-Appliance class'!$C40*'RES S curve-connect'!AP$8+'Res-Appliance class'!$D40*'RES S curve-connect'!AP$13+'Res-Appliance class'!$E40*'RES S curve-connect'!AP$18","v":5150.8494169978203},{"$f":"'Res-Appliance class'!$B40*'RES S curve-connect'!AQ$3+'Res-Appliance class'!$C40*'RES S curve-connect'!AQ$8+'Res-Appliance class'!$D40*'RES S curve-connect'!AQ$13+'Res-Appliance class'!$E40*'RES S curve-connect'!AQ$18","v":5498.5135497921865},{"$f":"'Res-Appliance class'!$B40*'RES S curve-connect'!AR$3+'Res-Appliance class'!$C40*'RES S curve-connect'!AR$8+'Res-Appliance class'!$D40*'RES S curve-connect'!AR$13+'Res-Appliance class'!$E40*'RES S curve-connect'!AR$18","v":5880.2884127215302},{"$f":"'Res-Appliance class'!$B40*'RES S curve-connect'!AS$3+'Res-Appliance class'!$C40*'RES S curve-connect'!AS$8+'Res-Appliance class'!$D40*'RES S curve-connect'!AS$13+'Res-Appliance class'!$E40*'RES S curve-connect'!AS$18","v":6308.7060965877272},{"$f":"'Res-Appliance class'!$B40*'RES S curve-connect'!AT$3+'Res-Appliance class'!$C40*'RES S curve-connect'!AT$8+'Res-Appliance class'!$D40*'RES S curve-connect'!AT$13+'Res-Appliance class'!$E40*'RES S curve-connect'!AT$18","v":6787.9749823387037},{"$f":"'Res-Appliance class'!$B40*'RES S curve-connect'!AU$3+'Res-Appliance class'!$C40*'RES S curve-connect'!AU$8+'Res-Appliance class'!$D40*'RES S curve-connect'!AU$13+'Res-Appliance class'!$E40*'RES S curve-connect'!AU$18","v":7342.3794727405029},{"$f":"'Res-Appliance class'!$B40*'RES S curve-connect'!AV$3+'Res-Appliance class'!$C40*'RES S curve-connect'!AV$8+'Res-Appliance class'!$D40*'RES S curve-connect'!AV$13+'Res-Appliance class'!$E40*'RES S curve-connect'!AV$18","v":7974.8448337195387},{"$f":"'Res-Appliance class'!$B40*'RES S curve-connect'!AW$3+'Res-Appliance class'!$C40*'RES S curve-connect'!AW$8+'Res-Appliance class'!$D40*'RES S curve-connect'!AW$13+'Res-Appliance class'!$E40*'RES S curve-connect'!AW$18","v":8701.845564397323},{"$f":"'Res-Appliance class'!$B40*'RES S curve-connect'!AX$3+'Res-Appliance class'!$C40*'RES S curve-connect'!AX$8+'Res-Appliance class'!$D40*'RES S curve-connect'!AX$13+'Res-Appliance class'!$E40*'RES S curve-connect'!AX$18","v":9530.5035567409432},{"$f":"'Res-Appliance class'!$B40*'RES S curve-connect'!AY$3+'Res-Appliance class'!$C40*'RES S curve-connect'!AY$8+'Res-Appliance class'!$D40*'RES S curve-connect'!AY$13+'Res-Appliance class'!$E40*'RES S curve-connect'!AY$18","v":10486.626318246705},{"$f":"'Res-Appliance class'!$B40*'RES S curve-connect'!AZ$3+'Res-Appliance class'!$C40*'RES S curve-connect'!AZ$8+'Res-Appliance class'!$D40*'RES S curve-connect'!AZ$13+'Res-Appliance class'!$E40*'RES S curve-connect'!AZ$18","v":11579.768556150913},{"$f":"'Res-Appliance class'!$B40*'RES S curve-connect'!BA$3+'Res-Appliance class'!$C40*'RES S curve-connect'!BA$8+'Res-Appliance class'!$D40*'RES S curve-connect'!BA$13+'Res-Appliance class'!$E40*'RES S curve-connect'!BA$18","v":12845.832851116624},{"$f":"'Res-Appliance class'!$B40*'RES S curve-connect'!BB$3+'Res-Appliance class'!$C40*'RES S curve-connect'!BB$8+'Res-Appliance class'!$D40*'RES S curve-connect'!BB$13+'Res-Appliance class'!$E40*'RES S curve-connect'!BB$18","v":14325.185562247165},{"$f":"'Res-Appliance class'!$B40*'RES S curve-connect'!BC$3+'Res-Appliance class'!$C40*'RES S curve-connect'!BC$8+'Res-Appliance class'!$D40*'RES S curve-connect'!BC$13+'Res-Appliance class'!$E40*'RES S curve-connect'!BC$18","v":16089.365441790073},{"$f":"'Res-Appliance class'!$B40*'RES S curve-connect'!BD$3+'Res-Appliance class'!$C40*'RES S curve-connect'!BD$8+'Res-Appliance class'!$D40*'RES S curve-connect'!BD$13+'Res-Appliance class'!$E40*'RES S curve-connect'!BD$18","v":17791.76276517491},{"$f":"'Res-Appliance class'!$B40*'RES S curve-connect'!BE$3+'Res-Appliance class'!$C40*'RES S curve-connect'!BE$8+'Res-Appliance class'!$D40*'RES S curve-connect'!BE$13+'Res-Appliance class'!$E40*'RES S curve-connect'!BE$18","v":19347.936490686032},{"$f":"'Res-Appliance class'!$B40*'RES S curve-connect'!BF$3+'Res-Appliance class'!$C40*'RES S curve-connect'!BF$8+'Res-Appliance class'!$D40*'RES S curve-connect'!BF$13+'Res-Appliance class'!$E40*'RES S curve-connect'!BF$18","v":20940.143598970546},{"$f":"'Res-Appliance class'!$B40*'RES S curve-connect'!BG$3+'Res-Appliance class'!$C40*'RES S curve-connect'!BG$8+'Res-Appliance class'!$D40*'RES S curve-connect'!BG$13+'Res-Appliance class'!$E40*'RES S curve-connect'!BG$18","v":22741.971244504733},{"$f":"'Res-Appliance class'!$B40*'RES S curve-connect'!BH$3+'Res-Appliance class'!$C40*'RES S curve-connect'!BH$8+'Res-Appliance class'!$D40*'RES S curve-connect'!BH$13+'Res-Appliance class'!$E40*'RES S curve-connect'!BH$18","v":24880.956256838919},{"$f":"'Res-Appliance class'!$B40*'RES S curve-connect'!BI$3+'Res-Appliance class'!$C40*'RES S curve-connect'!BI$8+'Res-Appliance class'!$D40*'RES S curve-connect'!BI$13+'Res-Appliance class'!$E40*'RES S curve-connect'!BI$18","v":27980.221296947122},{"$f":"'Res-Appliance class'!$B40*'RES S curve-connect'!BJ$3+'Res-Appliance class'!$C40*'RES S curve-connect'!BJ$8+'Res-Appliance class'!$D40*'RES S curve-connect'!BJ$13+'Res-Appliance class'!$E40*'RES S curve-connect'!BJ$18","v":32519.85920457825},{"$f":"'Res-Appliance class'!$B40*'RES S curve-connect'!BK$3+'Res-Appliance class'!$C40*'RES S curve-connect'!BK$8+'Res-Appliance class'!$D40*'RES S curve-connect'!BK$13+'Res-Appliance class'!$E40*'RES S curve-connect'!BK$18","v":39220.326373608317},{"$f":"'Res-Appliance class'!$B40*'RES S curve-connect'!BL$3+'Res-Appliance class'!$C40*'RES S curve-connect'!BL$8+'Res-Appliance class'!$D40*'RES S curve-connect'!BL$13+'Res-Appliance class'!$E40*'RES S curve-connect'!BL$18","v":506.33856781198631},{"$f":"'Res-Appliance class'!$B40*'RES S curve-connect'!BM$3+'Res-Appliance class'!$C40*'RES S curve-connect'!BM$8+'Res-Appliance class'!$D40*'RES S curve-connect'!BM$13+'Res-Appliance class'!$E40*'RES S curve-connect'!BM$18","v":514.82787710198511},{"$f":"'Res-Appliance class'!$B40*'RES S curve-connect'!BN$3+'Res-Appliance class'!$C40*'RES S curve-connect'!BN$8+'Res-Appliance class'!$D40*'RES S curve-connect'!BN$13+'Res-Appliance class'!$E40*'RES S curve-connect'!BN$18","v":519.28313499609771},{"$f":"'Res-Appliance class'!$B40*'RES S curve-connect'!BO$3+'Res-Appliance class'!$C40*'RES S curve-connect'!BO$8+'Res-Appliance class'!$D40*'RES S curve-connect'!BO$13+'Res-Appliance class'!$E40*'RES S curve-connect'!BO$18","v":531.77103663058915},{"$f":"'Res-Appliance class'!$B40*'RES S curve-connect'!BP$3+'Res-Appliance class'!$C40*'RES S curve-connect'!BP$8+'Res-Appliance class'!$D40*'RES S curve-connect'!BP$13+'Res-Appliance class'!$E40*'RES S curve-connect'!BP$18","v":540.22502920281863},{"$f":"'Res-Appliance class'!$B40*'RES S curve-connect'!BQ$3+'Res-Appliance class'!$C40*'RES S curve-connect'!BQ$8+'Res-Appliance class'!$D40*'RES S curve-connect'!BQ$13+'Res-Appliance class'!$E40*'RES S curve-connect'!BQ$18","v":548.66739113204949},{"$f":"'Res-Appliance class'!$B40*'RES S curve-connect'!BR$3+'Res-Appliance class'!$C40*'RES S curve-connect'!BR$8+'Res-Appliance class'!$D40*'RES S curve-connect'!BR$13+'Res-Appliance class'!$E40*'RES S curve-connect'!BR$18","v":553.07598456743813},{"$f":"'Res-Appliance class'!$B40*'RES S curve-connect'!BS$3+'Res-Appliance class'!$C40*'RES S curve-connect'!BS$8+'Res-Appliance class'!$D40*'RES S curve-connect'!BS$13+'Res-Appliance class'!$E40*'RES S curve-connect'!BS$18","v":565.51750288560038},{"$f":"'Res-Appliance class'!$B40*'RES S curve-connect'!BT$3+'Res-Appliance class'!$C40*'RES S curve-connect'!BT$8+'Res-Appliance class'!$D40*'RES S curve-connect'!BT$13+'Res-Appliance class'!$E40*'RES S curve-connect'!BT$18","v":573.92539153536359},{"$f":"'Res-Appliance class'!$B40*'RES S curve-connect'!BU$3+'Res-Appliance class'!$C40*'RES S curve-connect'!BU$8+'Res-Appliance class'!$D40*'RES S curve-connect'!BU$13+'Res-Appliance class'!$E40*'RES S curve-connect'!BU$18","v":582.32192719850718},{"$f":"'Res-Appliance class'!$B40*'RES S curve-connect'!BV$3+'Res-Appliance class'!$C40*'RES S curve-connect'!BV$8+'Res-Appliance class'!$D40*'RES S curve-connect'!BV$13+'Res-Appliance class'!$E40*'RES S curve-connect'!BV$18","v":586.68497029766741},{"$f":"'Res-Appliance class'!$B40*'RES S curve-connect'!BW$3+'Res-Appliance class'!$C40*'RES S curve-connect'!BW$8+'Res-Appliance class'!$D40*'RES S curve-connect'!BW$13+'Res-Appliance class'!$E40*'RES S curve-connect'!BW$18","v":599.08121249385078},{"$f":"'Res-Appliance class'!$B40*'RES S curve-connect'!BX$3+'Res-Appliance class'!$C40*'RES S curve-connect'!BX$8+'Res-Appliance class'!$D40*'RES S curve-connect'!BX$13+'Res-Appliance class'!$E40*'RES S curve-connect'!BX$18","v":607.44409753110619},{"$f":"'Res-Appliance class'!$B40*'RES S curve-connect'!BY$3+'Res-Appliance class'!$C40*'RES S curve-connect'!BY$8+'Res-Appliance class'!$D40*'RES S curve-connect'!BY$13+'Res-Appliance class'!$E40*'RES S curve-connect'!BY$18","v":615.79590039719699},{"$f":"'Res-Appliance class'!$B40*'RES S curve-connect'!BZ$3+'Res-Appliance class'!$C40*'RES S curve-connect'!BZ$8+'Res-Appliance class'!$D40*'RES S curve-connect'!BZ$13+'Res-Appliance class'!$E40*'RES S curve-connect'!BZ$18","v":620.11447983144387},{"$f":"'Res-Appliance class'!$B40*'RES S curve-connect'!CA$3+'Res-Appliance class'!$C40*'RES S curve-connect'!CA$8+'Res-Appliance class'!$D40*'RES S curve-connect'!CA$13+'Res-Appliance class'!$E40*'RES S curve-connect'!CA$18","v":632.46652582216723},{"$f":"'Res-Appliance class'!$B40*'RES S curve-connect'!CB$3+'Res-Appliance class'!$C40*'RES S curve-connect'!CB$8+'Res-Appliance class'!$D40*'RES S curve-connect'!CB$13+'Res-Appliance class'!$E40*'RES S curve-connect'!CB$18","v":640.7854804512873},{"$f":"'Res-Appliance class'!$B40*'RES S curve-connect'!CC$3+'Res-Appliance class'!$C40*'RES S curve-connect'!CC$8+'Res-Appliance class'!$D40*'RES S curve-connect'!CC$13+'Res-Appliance class'!$E40*'RES S curve-connect'!CC$18","v":649.09361705493347},{"$f":"'Res-Appliance class'!$B40*'RES S curve-connect'!CD$3+'Res-Appliance class'!$C40*'RES S curve-connect'!CD$8+'Res-Appliance class'!$D40*'RES S curve-connect'!CD$13+'Res-Appliance class'!$E40*'RES S curve-connect'!CD$18","v":522.40772331363939}]
["Nillumbik (S)",null,{"$f":"'Res-Appliance class'!$B41*'RES S curve-connect'!C$3+'Res-Appliance class'!$C41*'RES S curve-connect'!C$8+'Res-Appliance class'!$D41*'RES S curve-connect'!C$13+'Res-Appliance class'!$E41*'RES S curve-connect'!C$18","v":-2399.5874526331813},{"$f":"'Res-Appliance class'!$B41*'RES S curve-connect'!D$3+'Res-Appliance class'!$C41*'RES S curve-connect'!D$8+'Res-Appliance class'!$D41*'RES S curve-connect'!D$13+'Res-Appliance class'!$E41*'RES S curve-connect'!D$18","v":-3034.1046378911087},{"$f":"'Res-Appliance class'!$B41*'RES S curve-connect'!E$3+'Res-Appliance class'!$C41*'RES S curve-connect'!E$8+'Res-Appliance class'!$D41*'RES S curve-connect'!E$13+'Res-Appliance class'!$E41*'RES S curve-connect'!E$18","v":-2427.5957576922756},{"$f":"'Res-Appliance class'!$B41*'RES S curve-connect'!F$3+'Res-Appliance class'!$C41*'RES S curve-connect'!F$8+'Res-Appliance class'!$D41*'RES S curve-connect'!F$13+'Res-Appliance class'!$E41*'RES S curve-connect'!F$18","v":-2236.2291056219692},{"$f":"'Res-Appliance class'!$B41*'RES S curve-connect'!G$3+'Res-Appliance class'!$C41*'RES S curve-connect'!G$8+'Res-Appliance class'!$D41*'RES S curve-connect'!G$13+'Res-Appliance class'!$E41*'RES S curve-connect'!G$18","v":-3653.6371491385717},{"$f":"'Res-Appliance class'!$B41*'RES S curve-connect'!H$3+'Res-Appliance class'!$C41*'RES S curve-connect'!H$8+'Res-Appliance class'!$D41*'RES S curve-connect'!H$13+'Res-Appliance class'!$E41*'RES S curve-connect'!H$18","v":-3685.5090117826849},{"$f":"'Res-Appliance class'!$B41*'RES S curve-connect'!I$3+'Res-Appliance class'!$C41*'RES S curve-connect'!I$8+'Res-Appliance class'!$D41*'RES S curve-connect'!I$13+'Res-Appliance class'!$E41*'RES S curve-connect'!I$18","v":-3132.9601166000252},{"$f":"'Res-Appliance class'!$B41*'RES S curve-connect'!J$3+'Res-Appliance class'!$C41*'RES S curve-connect'!J$8+'Res-Appliance class'!$D41*'RES S curve-connect'!J$13+'Res-Appliance class'!$E41*'RES S curve-connect'!J$18","v":-3397.261881152549},{"$f":"'Res-Appliance class'!$B41*'RES S curve-connect'!K$3+'Res-Appliance class'!$C41*'RES S curve-connect'!K$8+'Res-Appliance class'!$D41*'RES S curve-connect'!K$13+'Res-Appliance class'!$E41*'RES S curve-connect'!K$18","v":-2420.9072352463522},{"$f":"'Res-Appliance class'!$B41*'RES S curve-connect'!L$3+'Res-Appliance class'!$C41*'RES S curve-connect'!L$8+'Res-Appliance class'!$D41*'RES S curve-connect'!L$13+'Res-Appliance class'!$E41*'RES S curve-connect'!L$18","v":-2866.8502726866609},{"$f":"'Res-Appliance class'!$B41*'RES S curve-connect'!M$3+'Res-Appliance class'!$C41*'RES S curve-connect'!M$8+'Res-Appliance class'!$D41*'RES S curve-connect'!M$13+'Res-Appliance class'!$E41*'RES S curve-connect'!M$18","v":-3699.7000669151339},{"$f":"'Res-Appliance class'!$B41*'RES S curve-connect'!N$3+'Res-Appliance class'!$C41*'RES S curve-connect'!N$8+'Res-Appliance class'!$D41*'RES S curve-connect'!N$13+'Res-Appliance class'!$E41*'RES S curve-connect'!N$18","v":-3788.2879189426203},{"$f":"'Res-Appliance class'!$B41*'RES S curve-connect'!O$3+'Res-Appliance class'!$C41*'RES S curve-connect'!O$8+'Res-Appliance class'!$D41*'RES S curve-connect'!O$13+'Res-Appliance class'!$E41*'RES S curve-connect'!O$18","v":-3089.3899614630068},{"$f":"'Res-Appliance class'!$B41*'RES S curve-connect'!P$3+'Res-Appliance class'!$C41*'RES S curve-connect'!P$8+'Res-Appliance class'!$D41*'RES S curve-connect'!P$13+'Res-Appliance class'!$E41*'RES S curve-connect'!P$18","v":-2532.0102345159457},{"$f":"'Res-Appliance class'!$B41*'RES S curve-connect'!Q$3+'Res-Appliance class'!$C41*'RES S curve-connect'!Q$8+'Res-Appliance class'!$D41*'RES S curve-connect'!Q$13+'Res-Appliance class'!$E41*'RES S curve-connect'!Q$18","v":-1684.0171741666347},{"$f":"'Res-Appliance class'!$B41*'RES S curve-connect'!R$3+'Res-Appliance class'!$C41*'RES S curve-connect'!R$8+'Res-Appliance class'!$D41*'RES S curve-connect'!R$13+'Res-Appliance class'!$E41*'RES S curve-connect'!R$18","v":-1207.8404789672056},{"$f":"'Res-Appliance class'!$B41*'RES S curve-connect'!S$3+'Res-Appliance class'!$C41*'RES S curve-connect'!S$8+'Res-Appliance class'!$D41*'RES S curve-connect'!S$13+'Res-Appliance class'!$E41*'RES S curve-connect'!S$18","v":-444.88454872564472},{"$f":"'Res-Appliance class'!$B41*'RES S curve-connect'!T$3+'Res-Appliance class'!$C41*'RES S curve-connect'!T$8+'Res-Appliance class'!$D41*'RES S curve-connect'!T$13+'Res-Appliance class'!$E41*'RES S curve-connect'!T$18","v":-33.331618614589331},{"$f":"'Res-Appliance class'!$B41*'RES S curve-connect'!U$3+'Res-Appliance class'!$C41*'RES S curve-connect'!U$8+'Res-Appliance class'!$D41*'RES S curve-connect'!U$13+'Res-Appliance class'!$E41*'RES S curve-connect'!U$18","v":435.85847505740708},{"$f":"'Res-Appliance class'!$B41*'RES S curve-connect'!V$3+'Res-Appliance class'!$C41*'RES S curve-connect'!V$8+'Res-Appliance class'!$D41*'RES S curve-connect'!V$13+'Res-Appliance class'!$E41*'RES S curve-connect'!V$18","v":750.44695277516075},{"$f":"'Res-Appliance class'!$B41*'RES S curve-connect'!W$3+'Res-Appliance class'!$C41*'RES S curve-connect'!W$8+'Res-Appliance class'!$D41*'RES S curve-connect'!W$13+'Res-Appliance class'!$E41*'RES S curve-connect'!W$18","v":994.62838033260789},{"$f":"'Res-Appliance class'!$B41*'RES S curve-connect'!X$3+'Res-Appliance class'!$C41*'RES S curve-connect'!X$8+'Res-Appliance class'!$D41*'RES S curve-connect'!X$13+'Res-Appliance class'!$E41*'RES S curve-connect'!X$18","v":1565.5575584703254},{"$f":"'Res-Appliance class'!$B41*'RES S curve-connect'!Y$3+'Res-Appliance class'!$C41*'RES S curve-connect'!Y$8+'Res-Appliance class'!$D41*'RES S curve-connect'!Y$13+'Res-Appliance class'!$E41*'RES S curve-connect'!Y$18","v":2142.9828915997614},{"$f":"'Res-Appliance class'!$B41*'RES S curve-connect'!Z$3+'Res-Appliance class'!$C41*'RES S curve-connect'!Z$8+'Res-Appliance class'!$D41*'RES S curve-connect'!Z$13+'Res-Appliance class'!$E41*'RES S curve-connect'!Z$18","v":2529.5570147455182},{"$f":"'Res-Appliance class'!$B41*'RES S curve-connect'!AA$3+'Res-Appliance class'!$C41*'RES S curve-connect'!AA$8+'Res-Appliance class'!$D41*'RES S curve-connect'!AA$13+'Res-Appliance class'!$E41*'RES S curve-connect'!AA$18","v":2915.7604315332815},{"$f":"'Res-Appliance class'!$B41*'RES S curve-connect'!AB$3+'Res-Appliance class'!$C41*'RES S curve-connect'!AB$8+'Res-Appliance class'!$D41*'RES S curve-connect'!AB$13+'Res-Appliance class'!$E41*'RES S curve-connect'!AB$18","v":3223.0516341342163},{"$f":"'Res-Appliance class'!$B41*'RES S curve-connect'!AC$3+'Res-Appliance class'!$C41*'RES S curve-connect'!AC$8+'Res-Appliance class'!$D41*'RES S curve-connect'!AC$13+'Res-Appliance class'!$E41*'RES S curve-connect'!AC$18","v":3518.5196591988779},{"$f":"'Res-Appliance class'!$B41*'RES S curve-connect'!AD$3+'Res-Appliance class'!$C41*'RES S curve-connect'!AD$8+'Res-Appliance class'!$D41*'RES S curve-connect'!AD$13+'Res-Appliance class'!$E41*'RES S curve-connect'!AD$18","v":3788.7079563828765},{"$f":"'Res-Appliance class'!$B41*'RES S curve-connect'!AE$3+'Res-Appliance class'!$C41*'RES S curve-connect'!AE$8+'Res-Appliance class'!$D41*'RES S curve-connect'!AE$13+'Res-Appliance class'!$E41*'RES S curve-connect'!AE$18","v":4072.7461809106399},{"$f":"'Res-Appliance class'!$B41*'RES S curve-connect'!AF$3+'Res-Appliance class'!$C41*'RES S curve-connect'!AF$8+'Res-Appliance class'!$D41*'RES S curve-connect'!AF$13+'Res-Appliance class'!$E41*'RES S curve-connect'!AF$18","v":4444.2535971019333},{"$f":"'Res-Appliance class'!$B41*'RES S curve-connect'!AG$3+'Res-Appliance class'!$C41*'RES S curve-connect'!AG$8+'Res-Appliance class'!$D41*'RES S curve-connect'!AG$13+'Res-Appliance class'!$E41*'RES S curve-connect'!AG$18","v":4707.0711949758552},{"$f":"'Res-Appliance class'!$B41*'RES S curve-connect'!AH$3+'Res-Appliance class'!$C41*'RES S curve-connect'!AH$8+'Res-Appliance class'!$D41*'RES S curve-connect'!AH$13+'Res-Appliance class'!$E41*'RES S curve-connect'!AH$18","v":5078.1637102068926},{"$f":"'Res-Appliance class'!$B41*'RES S curve-connect'!AI$3+'Res-Appliance class'!$C41*'RES S curve-connect'!AI$8+'Res-Appliance class'!$D41*'RES S curve-connect'!AI$13+'Res-Appliance class'!$E41*'RES S curve-connect'!AI$18","v":5410.642542004297},{"$f":"'Res-Appliance class'!$B41*'RES S curve-connect'!AJ$3+'Res-Appliance class'!$C41*'RES S curve-connect'!AJ$8+'Res-Appliance class'!$D41*'RES S curve-connect'!AJ$13+'Res-Appliance class'!$E41*'RES S curve-connect'!AJ$18","v":5710.9073533892542},{"$f":"'Res-Appliance class'!$B41*'RES S curve-connect'!AK$3+'Res-Appliance class'!$C41*'RES S curve-connect'!AK$8+'Res-Appliance class'!$D41*'RES S curve-connect'!AK$13+'Res-Appliance class'!$E41*'RES S curve-connect'!AK$18","v":6029.6556155511435},{"$f":"'Res-Appliance class'!$B41*'RES S curve-connect'!AL$3+'Res-Appliance class'!$C41*'RES S curve-connect'!AL$8+'Res-Appliance class'!$D41*'RES S curve-connect'!AL$13+'Res-Appliance class'!$E41*'RES S curve-connect'!AL$18","v":4928.3339324427043},{"$f":"'Res-Appliance class'!$B41*'RES S curve-connect'!AM$3+'Res-Appliance class'!$C41*'RES S curve-connect'!AM$8+'Res-Appliance class'!$D41*'RES S curve-connect'!AM$13+'Res-Appliance class'!$E41*'RES S curve-connect'!AM$18","v":4782.3061350840217},{"$f":"'Res-Appliance class'!$B41*'RES S curve-connect'!AN$3+'Res-Appliance class'!$C41*'RES S curve-connect'!AN$8+'Res-Appliance class'!$D41*'RES S curve-connect'!AN$13+'Res-Appliance class'!$E41*'RES S curve-connect'!AN$18","v":5083.1298020289451},{"$f":"'Res-Appliance class'!$B41*'RES S curve-connect'!AO$3+'Res-Appliance class'!$C41*'RES S curve-connect'!AO$8+'Res-Appliance class'!$D41*'RES S curve-connect'!AO$13+'Res-Appliance class'!$E41*'RES S curve-connect'!AO$18","v":5451.9887781364987},{"$f":"'Res-Appliance class'!$B41*'RES S curve-connect'!AP$3+'Res-Appliance class'!$C41*'RES S curve-connect'!AP$8+'Res-Appliance class'!$D41*'RES S curve-connect'!AP$13+'Res-Appliance class'!$E41*'RES S curve-connect'!AP$18","v":5793.2697574263166},{"$f":"'Res-Appliance class'!$B41*'RES S curve-connect'!AQ$3+'Res-Appliance class'!$C41*'RES S curve-connect'!AQ$8+'Res-Appliance class'!$D41*'RES S curve-connect'!AQ$13+'Res-Appliance class'!$E41*'RES S curve-connect'!AQ$18","v":6160.1768926428167},{"$f":"'Res-Appliance class'!$B41*'RES S curve-connect'!AR$3+'Res-Appliance class'!$C41*'RES S curve-connect'!AR$8+'Res-Appliance class'!$D41*'RES S curve-connect'!AR$13+'Res-Appliance class'!$E41*'RES S curve-connect'!AR$18","v":6563.3792728813905},{"$f":"'Res-Appliance class'!$B41*'RES S curve-connect'!AS$3+'Res-Appliance class'!$C41*'RES S curve-connect'!AS$8+'Res-Appliance class'!$D41*'RES S curve-connect'!AS$13+'Res-Appliance class'!$E41*'RES S curve-connect'!AS$18","v":7015.937305750931},{"$f":"'Res-Appliance class'!$B41*'RES S curve-connect'!AT$3+'Res-Appliance class'!$C41*'RES S curve-connect'!AT$8+'Res-Appliance class'!$D41*'RES S curve-connect'!AT$13+'Res-Appliance class'!$E41*'RES S curve-connect'!AT$18","v":7522.5544007726621},{"$f":"'Res-Appliance class'!$B41*'RES S curve-connect'!AU$3+'Res-Appliance class'!$C41*'RES S curve-connect'!AU$8+'Res-Appliance class'!$D41*'RES S curve-connect'!AU$13+'Res-Appliance class'!$E41*'RES S curve-connect'!AU$18","v":8108.2364567739223},{"$f":"'Res-Appliance class'!$B41*'RES S curve-connect'!AV$3+'Res-Appliance class'!$C41*'RES S curve-connect'!AV$8+'Res-Appliance class'!$D41*'RES S curve-connect'!AV$13+'Res-Appliance class'!$E41*'RES S curve-connect'!AV$18","v":8776.8059754285496},{"$f":"'Res-Appliance class'!$B41*'RES S curve-connect'!AW$3+'Res-Appliance class'!$C41*'RES S curve-connect'!AW$8+'Res-Appliance class'!$D41*'RES S curve-connect'!AW$13+'Res-Appliance class'!$E41*'RES S curve-connect'!AW$18","v":9545.5218206782829},{"$f":"'Res-Appliance class'!$B41*'RES S curve-connect'!AX$3+'Res-Appliance class'!$C41*'RES S curve-connect'!AX$8+'Res-Appliance class'!$D41*'RES S curve-connect'!AX$13+'Res-Appliance class'!$E41*'RES S curve-connect'!AX$18","v":10422.23509012551},{"$f":"'Res-Appliance class'!$B41*'RES S curve-connect'!AY$3+'Res-Appliance class'!$C41*'RES S curve-connect'!AY$8+'Res-Appliance class'!$D41*'RES S curve-connect'!AY$13+'Res-Appliance class'!$E41*'RES S curve-connect'!AY$18","v":11433.640201556284},{"$f":"'Res-Appliance class'!$B41*'RES S curve-connect'!AZ$3+'Res-Appliance class'!$C41*'RES S curve-connect'!AZ$8+'Res-Appliance class'!$D41*'RES S curve-connect'!AZ$13+'Res-Appliance class'!$E41*'RES S curve-connect'!AZ$18","v":12590.647446482351},{"$f":"'Res-Appliance class'!$B41*'RES S curve-connect'!BA$3+'Res-Appliance class'!$C41*'RES S curve-connect'!BA$8+'Res-Appliance class'!$D41*'RES S curve-connect'!BA$13+'Res-Appliance class'!$E41*'RES S curve-connect'!BA$18","v":13931.142019378593},{"$f":"'Res-Appliance class'!$B41*'RES S curve-connect'!BB$3+'Res-Appliance class'!$C41*'RES S curve-connect'!BB$8+'Res-Appliance class'!$D41*'RES S curve-connect'!BB$13+'Res-Appliance class'!$E41*'RES S curve-connect'!BB$18","v":15498.262357723148},{"$f":"'Res-Appliance class'!$B41*'RES S curve-connect'!BC$3+'Res-Appliance class'!$C41*'RES S curve-connect'!BC$8+'Res-Appliance class'!$D41*'RES S curve-connect'!BC$13+'Res-Appliance class'!$E41*'RES S curve-connect'!BC$18","v":17367.280828642597},{"$f":"'Res-Appliance class'!$B41*'RES S curve-connect'!BD$3+'Res-Appliance class'!$C41*'RES S curve-connect'!BD$8+'Res-Appliance class'!$D41*'RES S curve-connect'!BD$13+'Res-Appliance class'!$E41*'RES S curve-connect'!BD$18","v":19172.823831281079},{"$f":"'Res-Appliance class'!$B41*'RES S curve-connect'!BE$3+'Res-Appliance class'!$C41*'RES S curve-connect'!BE$8+'Res-Appliance class'!$D41*'RES S curve-connect'!BE$13+'Res-Appliance class'!$E41*'RES S curve-connect'!BE$18","v":20823.933370262796},{"$f":"'Res-Appliance class'!$B41*'RES S curve-connect'!BF$3+'Res-Appliance class'!$C41*'RES S curve-connect'!BF$8+'Res-Appliance class'!$D41*'RES S curve-connect'!BF$13+'Res-Appliance class'!$E41*'RES S curve-connect'!BF$18","v":22513.083292307543},{"$f":"'Res-Appliance class'!$B41*'RES S curve-connect'!BG$3+'Res-Appliance class'!$C41*'RES S curve-connect'!BG$8+'Res-Appliance class'!$D41*'RES S curve-connect'!BG$13+'Res-Appliance class'!$E41*'RES S curve-connect'!BG$18","v":24423.891822344878},{"$f":"'Res-Appliance class'!$B41*'RES S curve-connect'!BH$3+'Res-Appliance class'!$C41*'RES S curve-connect'!BH$8+'Res-Appliance class'!$D41*'RES S curve-connect'!BH$13+'Res-Appliance class'!$E41*'RES S curve-connect'!BH$18","v":26692.728516222614},{"$f":"'Res-Appliance class'!$B41*'RES S curve-connect'!BI$3+'Res-Appliance class'!$C41*'RES S curve-connect'!BI$8+'Res-Appliance class'!$D41*'RES S curve-connect'!BI$13+'Res-Appliance class'!$E41*'RES S curve-connect'!BI$18","v":29979.749408539923},{"$f":"'Res-Appliance class'!$B41*'RES S curve-connect'!BJ$3+'Res-Appliance class'!$C41*'RES S curve-connect'!BJ$8+'Res-Appliance class'!$D41*'RES S curve-connect'!BJ$13+'Res-Appliance class'!$E41*'RES S curve-connect'!BJ$18","v":34796.768902514188},{"$f":"'Res-Appliance class'!$B41*'RES S curve-connect'!BK$3+'Res-Appliance class'!$C41*'RES S curve-connect'!BK$8+'Res-Appliance class'!$D41*'RES S curve-connect'!BK$13+'Res-Appliance class'!$E41*'RES S curve-connect'!BK$18","v":41910.102724293916},{"$f":"'Res-Appliance class'!$B41*'RES S curve-connect'!BL$3+'Res-Appliance class'!$C41*'RES S curve-connect'!BL$8+'Res-Appliance class'!$D41*'RES S curve-connect'!BL$13+'Res-Appliance class'!$E41*'RES S curve-connect'!BL$18","v":892.71541184419652},{"$f":"'Res-Appliance class'!$B41*'RES S curve-connect'!BM$3+'Res-Appliance class'!$C41*'RES S curve-connect'!BM$8+'Res-Appliance class'!$D41*'RES S curve-connect'!BM$13+'Res-Appliance class'!$E41*'RES S curve-connect'!BM$18","v":901.54192609309166},{"$f":"'Res-Appliance class'!$B41*'RES S curve-connect'!BN$3+'Res-Appliance class'!$C41*'RES S curve-connect'!BN$8+'Res-Appliance class'!$D41*'RES S curve-connect'!BN$13+'Res-Appliance class'!$E41*'RES S curve-connect'!BN$18","v":906.3350459444963},{"$f":"'Res-Appliance class'!$B41*'RES S curve-connect'!BO$3+'Res-Appliance class'!$C41*'RES S curve-connect'!BO$8+'Res-Appliance class'!$D41*'RES S curve-connect'!BO$13+'Res-Appliance class'!$E41*'RES S curve-connect'!BO$18","v":919.16146171511468},{"$f":"'Res-Appliance class'!$B41*'RES S curve-connect'!BP$3+'Res-Appliance class'!$C41*'RES S curve-connect'!BP$8+'Res-Appliance class'!$D41*'RES S curve-connect'!BP$13+'Res-Appliance class'!$E41*'RES S curve-connect'!BP$18","v":927.95461581537154},{"$f":"'Res-Appliance class'!$B41*'RES S curve-connect'!BQ$3+'Res-Appliance class'!$C41*'RES S curve-connect'!BQ$8+'Res-Appliance class'!$D41*'RES S curve-connect'!BQ$13+'Res-Appliance class'!$E41*'RES S curve-connect'!BQ$18","v":936.73678191001045},{"$f":"'Res-Appliance class'!$B41*'RES S curve-connect'!BR$3+'Res-Appliance class'!$C41*'RES S curve-connect'!BR$8+'Res-Appliance class'!$D41*'RES S curve-connect'!BR$13+'Res-Appliance class'!$E41*'RES S curve-connect'!BR$18","v":941.48581742586975},{"$f":"'Res-Appliance class'!$B41*'RES S curve-connect'!BS$3+'Res-Appliance class'!$C41*'RES S curve-connect'!BS$8+'Res-Appliance class'!$D41*'RES S curve-connect'!BS$13+'Res-Appliance class'!$E41*'RES S curve-connect'!BS$18","v":954.26841104923687},{"$f":"'Res-Appliance class'!$B41*'RES S curve-connect'!BT$3+'Res-Appliance class'!$C41*'RES S curve-connect'!BT$8+'Res-Appliance class'!$D41*'RES S curve-connect'!BT$13+'Res-Appliance class'!$E41*'RES S curve-connect'!BT$18","v":963.01800357039133},{"$f":"'Res-Appliance class'!$B41*'RES S curve-connect'!BU$3+'Res-Appliance class'!$C41*'RES S curve-connect'!BU$8+'Res-Appliance class'!$D41*'RES S curve-connect'!BU$13+'Res-Appliance class'!$E41*'RES S curve-connect'!BU$18","v":971.75686704413692},{"$f":"'Res-Appliance class'!$B41*'RES S curve-connect'!BV$3+'Res-Appliance class'!$C41*'RES S curve-connect'!BV$8+'Res-Appliance class'!$D41*'RES S curve-connect'!BV$13+'Res-Appliance class'!$E41*'RES S curve-connect'!BV$18","v":976.46285729749877},{"$f":"'Res-Appliance class'!$B41*'RES S curve-connect'!BW$3+'Res-Appliance class'!$C41*'RES S curve-connect'!BW$8+'Res-Appliance class'!$D41*'RES S curve-connect'!BW$13+'Res-Appliance class'!$E41*'RES S curve-connect'!BW$18","v":989.20266142703053},{"$f":"'Res-Appliance class'!$B41*'RES S curve-connect'!BX$3+'Res-Appliance class'!$C41*'RES S curve-connect'!BX$8+'Res-Appliance class'!$D41*'RES S curve-connect'!BX$13+'Res-Appliance class'!$E41*'RES S curve-connect'!BX$18","v":997.90971864328344},{"$f":"'Res-Appliance class'!$B41*'RES S curve-connect'!BY$3+'Res-Appliance class'!$C41*'RES S curve-connect'!BY$8+'Res-Appliance class'!$D41*'RES S curve-connect'!BY$13+'Res-Appliance class'!$E41*'RES S curve-connect'!BY$18","v":1006.6062994312741},{"$f":"'Res-Appliance class'!$B41*'RES S curve-connect'!BZ$3+'Res-Appliance class'!$C41*'RES S curve-connect'!BZ$8+'Res-Appliance class'!$D41*'RES S curve-connect'!BZ$13+'Res-Appliance class'!$E41*'RES S curve-connect'!BZ$18","v":1011.2702580581257},{"$f":"'Res-Appliance class'!$B41*'RES S curve-connect'!CA$3+'Res-Appliance class'!$C41*'RES S curve-connect'!CA$8+'Res-Appliance class'!$D41*'RES S curve-connect'!CA$13+'Res-Appliance class'!$E41*'RES S curve-connect'!CA$18","v":1023.9682800703104},{"$f":"'Res-Appliance class'!$B41*'RES S curve-connect'!CB$3+'Res-Appliance class'!$C41*'RES S curve-connect'!CB$8+'Res-Appliance class'!$D41*'RES S curve-connect'!CB$13+'Res-Appliance class'!$E41*'RES S curve-connect'!CB$18","v":1032.6338031380492},{"$f":"'Res-Appliance class'!$B41*'RES S curve-connect'!CC$3+'Res-Appliance class'!$C41*'RES S curve-connect'!CC$8+'Res-Appliance class'!$D41*'RES S curve-connect'!CC$13+'Res-Appliance class'!$E41*'RES S curve-connect'!CC$18","v":1041.2890962157244},{"$f":"'Res-Appliance class'!$B41*'RES S curve-connect'!CD$3+'Res-Appliance class'!$C41*'RES S curve-connect'!CD$8+'Res-Appliance class'!$D41*'RES S curve-connect'!CD$13+'Res-Appliance class'!$E41*'RES S curve-connect'!CD$18","v":906.37398123543369}]
["Port Phillip (C)",null,{"$f":"'Res-Appliance class'!$B42*'RES S curve-connect'!C$3+'Res-Appliance class'!$C42*'RES S curve-connect'!C$8+'Res-Appliance class'!$D42*'RES S curve-connect'!C$13+'Res-Appliance class'!$E42*'RES S curve-connect'!C$18","v":-1804.5214255863898},{"$f":"'Res-Appliance class'!$B42*'RES S curve-connect'!D$3+'Res-Appliance class'!$C42*'RES S curve-connect'!D$8+'Res-Appliance class'!$D42*'RES S curve-connect'!D$13+'Res-Appliance class'!$E42*'RES S curve-connect'!D$18","v":-2213.9794422169007},{"$f":"'Res-Appliance class'!$B42*'RES S curve-connect'!E$3+'Res-Appliance class'!$C42*'RES S curve-connect'!E$8+'Res-Appliance class'!$D42*'RES S curve-connect'!E$13+'Res-Appliance class'!$E42*'RES S curve-connect'!E$18","v":-1916.8496562770492},{"$f":"'Res-Appliance class'!$B42*'RES S curve-connect'!F$3+'Res-Appliance class'!$C42*'RES S curve-connect'!F$8+'Res-Appliance class'!$D42*'RES S curve-connect'!F$13+'Res-Appliance class'!$E42*'RES S curve-connect'!F$18","v":-1807.083649182606},{"$f":"'Res-Appliance class'!$B42*'RES S curve-connect'!G$3+'Res-Appliance class'!$C42*'RES S curve-connect'!G$8+'Res-Appliance class'!$D42*'RES S curve-connect'!G$13+'Res-Appliance class'!$E42*'RES S curve-connect'!G$18","v":-2460.820139419196},{"$f":"'Res-Appliance class'!$B42*'RES S curve-connect'!H$3+'Res-Appliance class'!$C42*'RES S curve-connect'!H$8+'Res-Appliance class'!$D42*'RES S curve-connect'!H$13+'Res-Appliance class'!$E42*'RES S curve-connect'!H$18","v":-2494.7684070262412},{"$f":"'Res-Appliance class'!$B42*'RES S curve-connect'!I$3+'Res-Appliance class'!$C42*'RES S curve-connect'!I$8+'Res-Appliance class'!$D42*'RES S curve-connect'!I$13+'Res-Appliance class'!$E42*'RES S curve-connect'!I$18","v":-2168.2135513001431},{"$f":"'Res-Appliance class'!$B42*'RES S curve-connect'!J$3+'Res-Appliance class'!$C42*'RES S curve-connect'!J$8+'Res-Appliance class'!$D42*'RES S curve-connect'!J$13+'Res-Appliance class'!$E42*'RES S curve-connect'!J$18","v":-2457.3150557267627},{"$f":"'Res-Appliance class'!$B42*'RES S curve-connect'!K$3+'Res-Appliance class'!$C42*'RES S curve-connect'!K$8+'Res-Appliance class'!$D42*'RES S curve-connect'!K$13+'Res-Appliance class'!$E42*'RES S curve-connect'!K$18","v":-1855.0071556858711},{"$f":"'Res-Appliance class'!$B42*'RES S curve-connect'!L$3+'Res-Appliance class'!$C42*'RES S curve-connect'!L$8+'Res-Appliance class'!$D42*'RES S curve-connect'!L$13+'Res-Appliance class'!$E42*'RES S curve-connect'!L$18","v":-2138.2235129207452},{"$f":"'Res-Appliance class'!$B42*'RES S curve-connect'!M$3+'Res-Appliance class'!$C42*'RES S curve-connect'!M$8+'Res-Appliance class'!$D42*'RES S curve-connect'!M$13+'Res-Appliance class'!$E42*'RES S curve-connect'!M$18","v":-2600.6459319553755},{"$f":"'Res-Appliance class'!$B42*'RES S curve-connect'!N$3+'Res-Appliance class'!$C42*'RES S curve-connect'!N$8+'Res-Appliance class'!$D42*'RES S curve-connect'!N$13+'Res-Appliance class'!$E42*'RES S curve-connect'!N$18","v":-2649.715547636144},{"$f":"'Res-Appliance class'!$B42*'RES S curve-connect'!O$3+'Res-Appliance class'!$C42*'RES S curve-connect'!O$8+'Res-Appliance class'!$D42*'RES S curve-connect'!O$13+'Res-Appliance class'!$E42*'RES S curve-connect'!O$18","v":-2218.1984712127551},{"$f":"'Res-Appliance class'!$B42*'RES S curve-connect'!P$3+'Res-Appliance class'!$C42*'RES S curve-connect'!P$8+'Res-Appliance class'!$D42*'RES S curve-connect'!P$13+'Res-Appliance class'!$E42*'RES S curve-connect'!P$18","v":-1881.1235151188082},{"$f":"'Res-Appliance class'!$B42*'RES S curve-connect'!Q$3+'Res-Appliance class'!$C42*'RES S curve-connect'!Q$8+'Res-Appliance class'!$D42*'RES S curve-connect'!Q$13+'Res-Appliance class'!$E42*'RES S curve-connect'!Q$18","v":-1369.7179056384452},{"$f":"'Res-Appliance class'!$B42*'RES S curve-connect'!R$3+'Res-Appliance class'!$C42*'RES S curve-connect'!R$8+'Res-Appliance class'!$D42*'RES S curve-connect'!R$13+'Res-Appliance class'!$E42*'RES S curve-connect'!R$18","v":-1082.5928955139011},{"$f":"'Res-Appliance class'!$B42*'RES S curve-connect'!S$3+'Res-Appliance class'!$C42*'RES S curve-connect'!S$8+'Res-Appliance class'!$D42*'RES S curve-connect'!S$13+'Res-Appliance class'!$E42*'RES S curve-connect'!S$18","v":-612.97741423243531},{"$f":"'Res-Appliance class'!$B42*'RES S curve-connect'!T$3+'Res-Appliance class'!$C42*'RES S curve-connect'!T$8+'Res-Appliance class'!$D42*'RES S curve-connect'!T$13+'Res-Appliance class'!$E42*'RES S curve-connect'!T$18","v":-381.58222595292455},{"$f":"'Res-Appliance class'!$B42*'RES S curve-connect'!U$3+'Res-Appliance class'!$C42*'RES S curve-connect'!U$8+'Res-Appliance class'!$D42*'RES S curve-connect'!U$13+'Res-Appliance class'!$E42*'RES S curve-connect'!U$18","v":-101.45551944168477},{"$f":"'Res-Appliance class'!$B42*'RES S curve-connect'!V$3+'Res-Appliance class'!$C42*'RES S curve-connect'!V$8+'Res-Appliance class'!$D42*'RES S curve-connect'!V$13+'Res-Appliance class'!$E42*'RES S curve-connect'!V$18","v":93.400621350794154},{"$f":"'Res-Appliance class'!$B42*'RES S curve-connect'!W$3+'Res-Appliance class'!$C42*'RES S curve-connect'!W$8+'Res-Appliance class'!$D42*'RES S curve-connect'!W$13+'Res-Appliance class'!$E42*'RES S curve-connect'!W$18","v":244.45997310666726},{"$f":"'Res-Appliance class'!$B42*'RES S curve-connect'!X$3+'Res-Appliance class'!$C42*'RES S curve-connect'!X$8+'Res-Appliance class'!$D42*'RES S curve-connect'!X$13+'Res-Appliance class'!$E42*'RES S curve-connect'!X$18","v":581.68615711458597},{"$f":"'Res-Appliance class'!$B42*'RES S curve-connect'!Y$3+'Res-Appliance class'!$C42*'RES S curve-connect'!Y$8+'Res-Appliance class'!$D42*'RES S curve-connect'!Y$13+'Res-Appliance class'!$E42*'RES S curve-connect'!Y$18","v":925.24337756304601},{"$f":"'Res-Appliance class'!$B42*'RES S curve-connect'!Z$3+'Res-Appliance class'!$C42*'RES S curve-connect'!Z$8+'Res-Appliance class'!$D42*'RES S curve-connect'!Z$13+'Res-Appliance class'!$E42*'RES S curve-connect'!Z$18","v":1157.7434602799772},{"$f":"'Res-Appliance class'!$B42*'RES S curve-connect'!AA$3+'Res-Appliance class'!$C42*'RES S curve-connect'!AA$8+'Res-Appliance class'!$D42*'RES S curve-connect'!AA$13+'Res-Appliance class'!$E42*'RES S curve-connect'!AA$18","v":1392.9099763354377},{"$f":"'Res-Appliance class'!$B42*'RES S curve-connect'!AB$3+'Res-Appliance class'!$C42*'RES S curve-connect'!AB$8+'Res-Appliance class'!$D42*'RES S curve-connect'!AB$13+'Res-Appliance class'!$E42*'RES S curve-connect'!AB$18","v":1581.0546812848195},{"$f":"'Res-Appliance class'!$B42*'RES S curve-connect'!AC$3+'Res-Appliance class'!$C42*'RES S curve-connect'!AC$8+'Res-Appliance class'!$D42*'RES S curve-connect'!AC$13+'Res-Appliance class'!$E42*'RES S curve-connect'!AC$18","v":1763.8893085708041},{"$f":"'Res-Appliance class'!$B42*'RES S curve-connect'!AD$3+'Res-Appliance class'!$C42*'RES S curve-connect'!AD$8+'Res-Appliance class'!$D42*'RES S curve-connect'!AD$13+'Res-Appliance class'!$E42*'RES S curve-connect'!AD$18","v":1931.3694057613038},{"$f":"'Res-Appliance class'!$B42*'RES S curve-connect'!AE$3+'Res-Appliance class'!$C42*'RES S curve-connect'!AE$8+'Res-Appliance class'!$D42*'RES S curve-connect'!AE$13+'Res-Appliance class'!$E42*'RES S curve-connect'!AE$18","v":2111.3236845133847},{"$f":"'Res-Appliance class'!$B42*'RES S curve-connect'!AF$3+'Res-Appliance class'!$C42*'RES S curve-connect'!AF$8+'Res-Appliance class'!$D42*'RES S curve-connect'!AF$13+'Res-Appliance class'!$E42*'RES S curve-connect'!AF$18","v":2340.730211962441},{"$f":"'Res-Appliance class'!$B42*'RES S curve-connect'!AG$3+'Res-Appliance class'!$C42*'RES S curve-connect'!AG$8+'Res-Appliance class'!$D42*'RES S curve-connect'!AG$13+'Res-Appliance class'!$E42*'RES S curve-connect'!AG$18","v":2502.8649699875068},{"$f":"'Res-Appliance class'!$B42*'RES S curve-connect'!AH$3+'Res-Appliance class'!$C42*'RES S curve-connect'!AH$8+'Res-Appliance class'!$D42*'RES S curve-connect'!AH$13+'Res-Appliance class'!$E42*'RES S curve-connect'!AH$18","v":2723.6105557095161},{"$f":"'Res-Appliance class'!$B42*'RES S curve-connect'!AI$3+'Res-Appliance class'!$C42*'RES S curve-connect'!AI$8+'Res-Appliance class'!$D42*'RES S curve-connect'!AI$13+'Res-Appliance class'!$E42*'RES S curve-connect'!AI$18","v":2928.7929331245564},{"$f":"'Res-Appliance class'!$B42*'RES S curve-connect'!AJ$3+'Res-Appliance class'!$C42*'RES S curve-connect'!AJ$8+'Res-Appliance class'!$D42*'RES S curve-connect'!AJ$13+'Res-Appliance class'!$E42*'RES S curve-connect'!AJ$18","v":3112.5596799734776},{"$f":"'Res-Appliance class'!$B42*'RES S curve-connect'!AK$3+'Res-Appliance class'!$C42*'RES S curve-connect'!AK$8+'Res-Appliance class'!$D42*'RES S curve-connect'!AK$13+'Res-Appliance class'!$E42*'RES S curve-connect'!AK$18","v":3307.8955893504749},{"$f":"'Res-Appliance class'!$B42*'RES S curve-connect'!AL$3+'Res-Appliance class'!$C42*'RES S curve-connect'!AL$8+'Res-Appliance class'!$D42*'RES S curve-connect'!AL$13+'Res-Appliance class'!$E42*'RES S curve-connect'!AL$18","v":2613.4881785431944},{"$f":"'Res-Appliance class'!$B42*'RES S curve-connect'!AM$3+'Res-Appliance class'!$C42*'RES S curve-connect'!AM$8+'Res-Appliance class'!$D42*'RES S curve-connect'!AM$13+'Res-Appliance class'!$E42*'RES S curve-connect'!AM$18","v":2532.7116854785536},{"$f":"'Res-Appliance class'!$B42*'RES S curve-connect'!AN$3+'Res-Appliance class'!$C42*'RES S curve-connect'!AN$8+'Res-Appliance class'!$D42*'RES S curve-connect'!AN$13+'Res-Appliance class'!$E42*'RES S curve-connect'!AN$18","v":2722.8132671296416},{"$f":"'Res-Appliance class'!$B42*'RES S curve-connect'!AO$3+'Res-Appliance class'!$C42*'RES S curve-connect'!AO$8+'Res-Appliance class'!$D42*'RES S curve-connect'!AO$13+'Res-Appliance class'!$E42*'RES S curve-connect'!AO$18","v":2950.4436858335694},{"$f":"'Res-Appliance class'!$B42*'RES S curve-connect'!AP$3+'Res-Appliance class'!$C42*'RES S curve-connect'!AP$8+'Res-Appliance class'!$D42*'RES S curve-connect'!AP$13+'Res-Appliance class'!$E42*'RES S curve-connect'!AP$18","v":3157.8429907930781},{"$f":"'Res-Appliance class'!$B42*'RES S curve-connect'!AQ$3+'Res-Appliance class'!$C42*'RES S curve-connect'!AQ$8+'Res-Appliance class'!$D42*'RES S curve-connect'!AQ$13+'Res-Appliance class'!$E42*'RES S curve-connect'!AQ$18","v":3384.0723475518585},{"$f":"'Res-Appliance class'!$B42*'RES S curve-connect'!AR$3+'Res-Appliance class'!$C42*'RES S curve-connect'!AR$8+'Res-Appliance class'!$D42*'RES S curve-connect'!AR$13+'Res-Appliance class'!$E42*'RES S curve-connect'!AR$18","v":3630.7676991622661},{"$f":"'Res-Appliance class'!$B42*'RES S curve-connect'!AS$3+'Res-Appliance class'!$C42*'RES S curve-connect'!AS$8+'Res-Appliance class'!$D42*'RES S curve-connect'!AS$13+'Res-Appliance class'!$E42*'RES S curve-connect'!AS$18","v":3907.1592030977545},{"$f":"'Res-Appliance class'!$B42*'RES S curve-connect'!AT$3+'Res-Appliance class'!$C42*'RES S curve-connect'!AT$8+'Res-Appliance class'!$D42*'RES S curve-connect'!AT$13+'Res-Appliance class'!$E42*'RES S curve-connect'!AT$18","v":4214.3613524809389},{"$f":"'Res-Appliance class'!$B42*'RES S curve-connect'!AU$3+'Res-Appliance class'!$C42*'RES S curve-connect'!AU$8+'Res-Appliance class'!$D42*'RES S curve-connect'!AU$13+'Res-Appliance class'!$E42*'RES S curve-connect'!AU$18","v":4572.1492836833986},{"$f":"'Res-Appliance class'!$B42*'RES S curve-connect'!AV$3+'Res-Appliance class'!$C42*'RES S curve-connect'!AV$8+'Res-Appliance class'!$D42*'RES S curve-connect'!AV$13+'Res-Appliance class'!$E42*'RES S curve-connect'!AV$18","v":4977.840656820973},{"$f":"'Res-Appliance class'!$B42*'RES S curve-connect'!AW$3+'Res-Appliance class'!$C42*'RES S curve-connect'!AW$8+'Res-Appliance class'!$D42*'RES S curve-connect'!AW$13+'Res-Appliance class'!$E42*'RES S curve-connect'!AW$18","v":5443.0077874644703},{"$f":"'Res-Appliance class'!$B42*'RES S curve-connect'!AX$3+'Res-Appliance class'!$C42*'RES S curve-connect'!AX$8+'Res-Appliance class'!$D42*'RES S curve-connect'!AX$13+'Res-Appliance class'!$E42*'RES S curve-connect'!AX$18","v":5970.2151188277394},{"$f":"'Res-Appliance class'!$B42*'RES S curve-connect'!AY$3+'Res-Appliance class'!$C42*'RES S curve-connect'!AY$8+'Res-Appliance class'!$D42*'RES S curve-connect'!AY$13+'Res-Appliance class'!$E42*'RES S curve-connect'!AY$18","v":6579.7270857638905},{"$f":"'Res-Appliance class'!$B42*'RES S curve-connect'!AZ$3+'Res-Appliance class'!$C42*'RES S curve-connect'!AZ$8+'Res-Appliance class'!$D42*'RES S curve-connect'!AZ$13+'Res-Appliance class'!$E42*'RES S curve-connect'!AZ$18","v":7272.6261995427212},{"$f":"'Res-Appliance class'!$B42*'RES S curve-connect'!BA$3+'Res-Appliance class'!$C42*'RES S curve-connect'!BA$8+'Res-Appliance class'!$D42*'RES S curve-connect'!BA$13+'Res-Appliance class'!$E42*'RES S curve-connect'!BA$18","v":8072.4240293319108},{"$f":"'Res-Appliance class'!$B42*'RES S curve-connect'!BB$3+'Res-Appliance class'!$C42*'RES S curve-connect'!BB$8+'Res-Appliance class'!$D42*'RES S curve-connect'!BB$13+'Res-Appliance class'!$E42*'RES S curve-connect'!BB$18","v":9002.1619190528891},{"$f":"'Res-Appliance class'!$B42*'RES S curve-connect'!BC$3+'Res-Appliance class'!$C42*'RES S curve-connect'!BC$8+'Res-Appliance class'!$D42*'RES S curve-connect'!BC$13+'Res-Appliance class'!$E42*'RES S curve-connect'!BC$18","v":10110.044185035749},{"$f":"'Res-Appliance class'!$B42*'RES S curve-connect'!BD$3+'Res-Appliance class'!$C42*'RES S curve-connect'!BD$8+'Res-Appliance class'!$D42*'RES S curve-connect'!BD$13+'Res-Appliance class'!$E42*'RES S curve-connect'!BD$18","v":11166.731726474409},{"$f":"'Res-Appliance class'!$B42*'RES S curve-connect'!BE$3+'Res-Appliance class'!$C42*'RES S curve-connect'!BE$8+'Res-Appliance class'!$D42*'RES S curve-connect'!BE$13+'Res-Appliance class'!$E42*'RES S curve-connect'!BE$18","v":12128.513178570356},{"$f":"'Res-Appliance class'!$B42*'RES S curve-connect'!BF$3+'Res-Appliance class'!$C42*'RES S curve-connect'!BF$8+'Res-Appliance class'!$D42*'RES S curve-connect'!BF$13+'Res-Appliance class'!$E42*'RES S curve-connect'!BF$18","v":13113.791994814095},{"$f":"'Res-Appliance class'!$B42*'RES S curve-connect'!BG$3+'Res-Appliance class'!$C42*'RES S curve-connect'!BG$8+'Res-Appliance class'!$D42*'RES S curve-connect'!BG$13+'Res-Appliance class'!$E42*'RES S curve-connect'!BG$18","v":14233.462990280303},{"$f":"'Res-Appliance class'!$B42*'RES S curve-connect'!BH$3+'Res-Appliance class'!$C42*'RES S curve-connect'!BH$8+'Res-Appliance class'!$D42*'RES S curve-connect'!BH$13+'Res-Appliance class'!$E42*'RES S curve-connect'!BH$18","v":15559.860079473379},{"$f":"'Res-Appliance class'!$B42*'RES S curve-connect'!BI$3+'Res-Appliance class'!$C42*'RES S curve-connect'!BI$8+'Res-Appliance class'!$D42*'RES S curve-connect'!BI$13+'Res-Appliance class'!$E42*'RES S curve-connect'!BI$18","v":17484.6543032831},{"$f":"'Res-Appliance class'!$B42*'RES S curve-connect'!BJ$3+'Res-Appliance class'!$C42*'RES S curve-connect'!BJ$8+'Res-Appliance class'!$D42*'RES S curve-connect'!BJ$13+'Res-Appliance class'!$E42*'RES S curve-connect'!BJ$18","v":20289.684689251408},{"$f":"'Res-Appliance class'!$B42*'RES S curve-connect'!BK$3+'Res-Appliance class'!$C42*'RES S curve-connect'!BK$8+'Res-Appliance class'!$D42*'RES S curve-connect'!BK$13+'Res-Appliance class'!$E42*'RES S curve-connect'!BK$18","v":24408.795441646202},{"$f":"'Res-Appliance class'!$B42*'RES S curve-connect'!BL$3+'Res-Appliance class'!$C42*'RES S curve-connect'!BL$8+'Res-Appliance class'!$D42*'RES S curve-connect'!BL$13+'Res-Appliance class'!$E42*'RES S curve-connect'!BL$18","v":89.607393327896091},{"$f":"'Res-Appliance class'!$B42*'RES S curve-connect'!BM$3+'Res-Appliance class'!$C42*'RES S curve-connect'!BM$8+'Res-Appliance class'!$D42*'RES S curve-connect'!BM$13+'Res-Appliance class'!$E42*'RES S curve-connect'!BM$18","v":94.985297283373995},{"$f":"'Res-Appliance class'!$B42*'RES S curve-connect'!BN$3+'Res-Appliance class'!$C42*'RES S curve-connect'!BN$8+'Res-Appliance class'!$D42*'RES S curve-connect'!BN$13+'Res-Appliance class'!$E42*'RES S curve-connect'!BN$18","v":96.332016110635038},{"$f":"'Res-Appliance class'!$B42*'RES S curve-connect'!BO$3+'Res-Appliance class'!$C42*'RES S curve-connect'!BO$8+'Res-Appliance class'!$D42*'RES S curve-connect'!BO$13+'Res-Appliance class'!$E42*'RES S curve-connect'!BO$18","v":105.71422885722126},{"$f":"'Res-Appliance class'!$B42*'RES S curve-connect'!BP$3+'Res-Appliance class'!$C42*'RES S curve-connect'!BP$8+'Res-Appliance class'!$D42*'RES S curve-connect'!BP$13+'Res-Appliance class'!$E42*'RES S curve-connect'!BP$18","v":111.06536672819669},{"$f":"'Res-Appliance class'!$B42*'RES S curve-connect'!BQ$3+'Res-Appliance class'!$C42*'RES S curve-connect'!BQ$8+'Res-Appliance class'!$D42*'RES S curve-connect'!BQ$13+'Res-Appliance class'!$E42*'RES S curve-connect'!BQ$18","v":116.40769224635972},{"$f":"'Res-Appliance class'!$B42*'RES S curve-connect'!BR$3+'Res-Appliance class'!$C42*'RES S curve-connect'!BR$8+'Res-Appliance class'!$D42*'RES S curve-connect'!BR$13+'Res-Appliance class'!$E42*'RES S curve-connect'!BR$18","v":117.71905175963423},{"$f":"'Res-Appliance class'!$B42*'RES S curve-connect'!BS$3+'Res-Appliance class'!$C42*'RES S curve-connect'!BS$8+'Res-Appliance class'!$D42*'RES S curve-connect'!BS$13+'Res-Appliance class'!$E42*'RES S curve-connect'!BS$18","v":127.06612293804983},{"$f":"'Res-Appliance class'!$B42*'RES S curve-connect'!BT$3+'Res-Appliance class'!$C42*'RES S curve-connect'!BT$8+'Res-Appliance class'!$D42*'RES S curve-connect'!BT$13+'Res-Appliance class'!$E42*'RES S curve-connect'!BT$18","v":132.38233561790361},{"$f":"'Res-Appliance class'!$B42*'RES S curve-connect'!BU$3+'Res-Appliance class'!$C42*'RES S curve-connect'!BU$8+'Res-Appliance class'!$D42*'RES S curve-connect'!BU$13+'Res-Appliance class'!$E42*'RES S curve-connect'!BU$18","v":137.68995096191679},{"$f":"'Res-Appliance class'!$B42*'RES S curve-connect'!BV$3+'Res-Appliance class'!$C42*'RES S curve-connect'!BV$8+'Res-Appliance class'!$D42*'RES S curve-connect'!BV$13+'Res-Appliance class'!$E42*'RES S curve-connect'!BV$18","v":138.96681396656498},{"$f":"'Res-Appliance class'!$B42*'RES S curve-connect'!BW$3+'Res-Appliance class'!$C42*'RES S curve-connect'!BW$8+'Res-Appliance class'!$D42*'RES S curve-connect'!BW$13+'Res-Appliance class'!$E42*'RES S curve-connect'!BW$18","v":148.27960095901062},{"$f":"'Res-Appliance class'!$B42*'RES S curve-connect'!BX$3+'Res-Appliance class'!$C42*'RES S curve-connect'!BX$8+'Res-Appliance class'!$D42*'RES S curve-connect'!BX$13+'Res-Appliance class'!$E42*'RES S curve-connect'!BX$18","v":153.56174044120502},{"$f":"'Res-Appliance class'!$B42*'RES S curve-connect'!BY$3+'Res-Appliance class'!$C42*'RES S curve-connect'!BY$8+'Res-Appliance class'!$D42*'RES S curve-connect'!BY$13+'Res-Appliance class'!$E42*'RES S curve-connect'!BY$18","v":158.83549224999149},{"$f":"'Res-Appliance class'!$B42*'RES S curve-connect'!BZ$3+'Res-Appliance class'!$C42*'RES S curve-connect'!BZ$8+'Res-Appliance class'!$D42*'RES S curve-connect'!BZ$13+'Res-Appliance class'!$E42*'RES S curve-connect'!BZ$18","v":160.07870006438395},{"$f":"'Res-Appliance class'!$B42*'RES S curve-connect'!CA$3+'Res-Appliance class'!$C42*'RES S curve-connect'!CA$8+'Res-Appliance class'!$D42*'RES S curve-connect'!CA$13+'Res-Appliance class'!$E42*'RES S curve-connect'!CA$18","v":169.35803890244495},{"$f":"'Res-Appliance class'!$B42*'RES S curve-connect'!CB$3+'Res-Appliance class'!$C42*'RES S curve-connect'!CB$8+'Res-Appliance class'!$D42*'RES S curve-connect'!CB$13+'Res-Appliance class'!$E42*'RES S curve-connect'!CB$18","v":174.60693596533159},{"$f":"'Res-Appliance class'!$B42*'RES S curve-connect'!CC$3+'Res-Appliance class'!$C42*'RES S curve-connect'!CC$8+'Res-Appliance class'!$D42*'RES S curve-connect'!CC$13+'Res-Appliance class'!$E42*'RES S curve-connect'!CC$18","v":179.84764979734877},{"$f":"'Res-Appliance class'!$B42*'RES S curve-connect'!CD$3+'Res-Appliance class'!$C42*'RES S curve-connect'!CD$8+'Res-Appliance class'!$D42*'RES S curve-connect'!CD$13+'Res-Appliance class'!$E42*'RES S curve-connect'!CD$18","v":103.70133785720486}]
["South Gippsland (S)",null,{"$f":"'Res-Appliance class'!$B43*'RES S curve-connect'!C$3+'Res-Appliance class'!$C43*'RES S curve-connect'!C$8+'Res-Appliance class'!$D43*'RES S curve-connect'!C$13+'Res-Appliance class'!$E43*'RES S curve-connect'!C$18","v":-2375.7365888216327},{"$f":"'Res-Appliance class'!$B43*'RES S curve-connect'!D$3+'Res-Appliance class'!$C43*'RES S curve-connect'!D$8+'Res-Appliance class'!$D43*'RES S curve-connect'!D$13+'Res-Appliance class'!$E43*'RES S curve-connect'!D$18","v":-2890.8524952768271},{"$f":"'Res-Appliance class'!$B43*'RES S curve-connect'!E$3+'Res-Appliance class'!$C43*'RES S curve-connect'!E$8+'Res-Appliance class'!$D43*'RES S curve-connect'!E$13+'Res-Appliance class'!$E43*'RES S curve-connect'!E$18","v":-2465.6802441956188},{"$f":"'Res-Appliance class'!$B43*'RES S curve-connect'!F$3+'Res-Appliance class'!$C43*'RES S curve-connect'!F$8+'Res-Appliance class'!$D43*'RES S curve-connect'!F$13+'Res-Appliance class'!$E43*'RES S curve-connect'!F$18","v":-2318.2258539836162},{"$f":"'Res-Appliance class'!$B43*'RES S curve-connect'!G$3+'Res-Appliance class'!$C43*'RES S curve-connect'!G$8+'Res-Appliance class'!$D43*'RES S curve-connect'!G$13+'Res-Appliance class'!$E43*'RES S curve-connect'!G$18","v":-3226.2178790694852},{"$f":"'Res-Appliance class'!$B43*'RES S curve-connect'!H$3+'Res-Appliance class'!$C43*'RES S curve-connect'!H$8+'Res-Appliance class'!$D43*'RES S curve-connect'!H$13+'Res-Appliance class'!$E43*'RES S curve-connect'!H$18","v":-3272.7548681862363},{"$f":"'Res-Appliance class'!$B43*'RES S curve-connect'!I$3+'Res-Appliance class'!$C43*'RES S curve-connect'!I$8+'Res-Appliance class'!$D43*'RES S curve-connect'!I$13+'Res-Appliance class'!$E43*'RES S curve-connect'!I$18","v":-2851.0352968912575},{"$f":"'Res-Appliance class'!$B43*'RES S curve-connect'!J$3+'Res-Appliance class'!$C43*'RES S curve-connect'!J$8+'Res-Appliance class'!$D43*'RES S curve-connect'!J$13+'Res-Appliance class'!$E43*'RES S curve-connect'!J$18","v":-3179.0729792337806},{"$f":"'Res-Appliance class'!$B43*'RES S curve-connect'!K$3+'Res-Appliance class'!$C43*'RES S curve-connect'!K$8+'Res-Appliance class'!$D43*'RES S curve-connect'!K$13+'Res-Appliance class'!$E43*'RES S curve-connect'!K$18","v":-2415.5947367138815},{"$f":"'Res-Appliance class'!$B43*'RES S curve-connect'!L$3+'Res-Appliance class'!$C43*'RES S curve-connect'!L$8+'Res-Appliance class'!$D43*'RES S curve-connect'!L$13+'Res-Appliance class'!$E43*'RES S curve-connect'!L$18","v":-2772.0325036230515},{"$f":"'Res-Appliance class'!$B43*'RES S curve-connect'!M$3+'Res-Appliance class'!$C43*'RES S curve-connect'!M$8+'Res-Appliance class'!$D43*'RES S curve-connect'!M$13+'Res-Appliance class'!$E43*'RES S curve-connect'!M$18","v":-3380.2353243531998},{"$f":"'Res-Appliance class'!$B43*'RES S curve-connect'!N$3+'Res-Appliance class'!$C43*'RES S curve-connect'!N$8+'Res-Appliance class'!$D43*'RES S curve-connect'!N$13+'Res-Appliance class'!$E43*'RES S curve-connect'!N$18","v":-3442.8987235391241},{"$f":"'Res-Appliance class'!$B43*'RES S curve-connect'!O$3+'Res-Appliance class'!$C43*'RES S curve-connect'!O$8+'Res-Appliance class'!$D43*'RES S curve-connect'!O$13+'Res-Appliance class'!$E43*'RES S curve-connect'!O$18","v":-2895.7492077510769},{"$f":"'Res-Appliance class'!$B43*'RES S curve-connect'!P$3+'Res-Appliance class'!$C43*'RES S curve-connect'!P$8+'Res-Appliance class'!$D43*'RES S curve-connect'!P$13+'Res-Appliance class'!$E43*'RES S curve-connect'!P$18","v":-2464.8081264194352},{"$f":"'Res-Appliance class'!$B43*'RES S curve-connect'!Q$3+'Res-Appliance class'!$C43*'RES S curve-connect'!Q$8+'Res-Appliance class'!$D43*'RES S curve-connect'!Q$13+'Res-Appliance class'!$E43*'RES S curve-connect'!Q$18","v":-1811.1486940832278},{"$f":"'Res-Appliance class'!$B43*'RES S curve-connect'!R$3+'Res-Appliance class'!$C43*'RES S curve-connect'!R$8+'Res-Appliance class'!$D43*'RES S curve-connect'!R$13+'Res-Appliance class'!$E43*'RES S curve-connect'!R$18","v":-1443.2959771909855},{"$f":"'Res-Appliance class'!$B43*'RES S curve-connect'!S$3+'Res-Appliance class'!$C43*'RES S curve-connect'!S$8+'Res-Appliance class'!$D43*'RES S curve-connect'!S$13+'Res-Appliance class'!$E43*'RES S curve-connect'!S$18","v":-850.00550152701669},{"$f":"'Res-Appliance class'!$B43*'RES S curve-connect'!T$3+'Res-Appliance class'!$C43*'RES S curve-connect'!T$8+'Res-Appliance class'!$D43*'RES S curve-connect'!T$13+'Res-Appliance class'!$E43*'RES S curve-connect'!T$18","v":-540.83736750046307},{"$f":"'Res-Appliance class'!$B43*'RES S curve-connect'!U$3+'Res-Appliance class'!$C43*'RES S curve-connect'!U$8+'Res-Appliance class'!$D43*'RES S curve-connect'!U$13+'Res-Appliance class'!$E43*'RES S curve-connect'!U$18","v":-179.0057313289883},{"$f":"'Res-Appliance class'!$B43*'RES S curve-connect'!V$3+'Res-Appliance class'!$C43*'RES S curve-connect'!V$8+'Res-Appliance class'!$D43*'RES S curve-connect'!V$13+'Res-Appliance class'!$E43*'RES S curve-connect'!V$18","v":69.541032696076513},{"$f":"'Res-Appliance class'!$B43*'RES S curve-connect'!W$3+'Res-Appliance class'!$C43*'RES S curve-connect'!W$8+'Res-Appliance class'!$D43*'RES S curve-connect'!W$13+'Res-Appliance class'!$E43*'RES S curve-connect'!W$18","v":261.74921343525602},{"$f":"'Res-Appliance class'!$B43*'RES S curve-connect'!X$3+'Res-Appliance class'!$C43*'RES S curve-connect'!X$8+'Res-Appliance class'!$D43*'RES S curve-connect'!X$13+'Res-Appliance class'!$E43*'RES S curve-connect'!X$18","v":697.55244081288947},{"$f":"'Res-Appliance class'!$B43*'RES S curve-connect'!Y$3+'Res-Appliance class'!$C43*'RES S curve-connect'!Y$8+'Res-Appliance class'!$D43*'RES S curve-connect'!Y$13+'Res-Appliance class'!$E43*'RES S curve-connect'!Y$18","v":1139.7999407659206},{"$f":"'Res-Appliance class'!$B43*'RES S curve-connect'!Z$3+'Res-Appliance class'!$C43*'RES S curve-connect'!Z$8+'Res-Appliance class'!$D43*'RES S curve-connect'!Z$13+'Res-Appliance class'!$E43*'RES S curve-connect'!Z$18","v":1438.4508657683659},{"$f":"'Res-Appliance class'!$B43*'RES S curve-connect'!AA$3+'Res-Appliance class'!$C43*'RES S curve-connect'!AA$8+'Res-Appliance class'!$D43*'RES S curve-connect'!AA$13+'Res-Appliance class'!$E43*'RES S curve-connect'!AA$18","v":1738.5583024207979},{"$f":"'Res-Appliance class'!$B43*'RES S curve-connect'!AB$3+'Res-Appliance class'!$C43*'RES S curve-connect'!AB$8+'Res-Appliance class'!$D43*'RES S curve-connect'!AB$13+'Res-Appliance class'!$E43*'RES S curve-connect'!AB$18","v":1977.366858635361},{"$f":"'Res-Appliance class'!$B43*'RES S curve-connect'!AC$3+'Res-Appliance class'!$C43*'RES S curve-connect'!AC$8+'Res-Appliance class'!$D43*'RES S curve-connect'!AC$13+'Res-Appliance class'!$E43*'RES S curve-connect'!AC$18","v":2208.1787012079362},{"$f":"'Res-Appliance class'!$B43*'RES S curve-connect'!AD$3+'Res-Appliance class'!$C43*'RES S curve-connect'!AD$8+'Res-Appliance class'!$D43*'RES S curve-connect'!AD$13+'Res-Appliance class'!$E43*'RES S curve-connect'!AD$18","v":2419.5552213570472},{"$f":"'Res-Appliance class'!$B43*'RES S curve-connect'!AE$3+'Res-Appliance class'!$C43*'RES S curve-connect'!AE$8+'Res-Appliance class'!$D43*'RES S curve-connect'!AE$13+'Res-Appliance class'!$E43*'RES S curve-connect'!AE$18","v":2643.9514433799759},{"$f":"'Res-Appliance class'!$B43*'RES S curve-connect'!AF$3+'Res-Appliance class'!$C43*'RES S curve-connect'!AF$8+'Res-Appliance class'!$D43*'RES S curve-connect'!AF$13+'Res-Appliance class'!$E43*'RES S curve-connect'!AF$18","v":2933.2910390297384},{"$f":"'Res-Appliance class'!$B43*'RES S curve-connect'!AG$3+'Res-Appliance class'!$C43*'RES S curve-connect'!AG$8+'Res-Appliance class'!$D43*'RES S curve-connect'!AG$13+'Res-Appliance class'!$E43*'RES S curve-connect'!AG$18","v":3136.6859695966091},{"$f":"'Res-Appliance class'!$B43*'RES S curve-connect'!AH$3+'Res-Appliance class'!$C43*'RES S curve-connect'!AH$8+'Res-Appliance class'!$D43*'RES S curve-connect'!AH$13+'Res-Appliance class'!$E43*'RES S curve-connect'!AH$18","v":3418.9667603963653},{"$f":"'Res-Appliance class'!$B43*'RES S curve-connect'!AI$3+'Res-Appliance class'!$C43*'RES S curve-connect'!AI$8+'Res-Appliance class'!$D43*'RES S curve-connect'!AI$13+'Res-Appliance class'!$E43*'RES S curve-connect'!AI$18","v":3676.2725370509233},{"$f":"'Res-Appliance class'!$B43*'RES S curve-connect'!AJ$3+'Res-Appliance class'!$C43*'RES S curve-connect'!AJ$8+'Res-Appliance class'!$D43*'RES S curve-connect'!AJ$13+'Res-Appliance class'!$E43*'RES S curve-connect'!AJ$18","v":3907.7529879267649},{"$f":"'Res-Appliance class'!$B43*'RES S curve-connect'!AK$3+'Res-Appliance class'!$C43*'RES S curve-connect'!AK$8+'Res-Appliance class'!$D43*'RES S curve-connect'!AK$13+'Res-Appliance class'!$E43*'RES S curve-connect'!AK$18","v":4153.6243881703022},{"$f":"'Res-Appliance class'!$B43*'RES S curve-connect'!AL$3+'Res-Appliance class'!$C43*'RES S curve-connect'!AL$8+'Res-Appliance class'!$D43*'RES S curve-connect'!AL$13+'Res-Appliance class'!$E43*'RES S curve-connect'!AL$18","v":3293.2373500445101},{"$f":"'Res-Appliance class'!$B43*'RES S curve-connect'!AM$3+'Res-Appliance class'!$C43*'RES S curve-connect'!AM$8+'Res-Appliance class'!$D43*'RES S curve-connect'!AM$13+'Res-Appliance class'!$E43*'RES S curve-connect'!AM$18","v":3185.96935686898},{"$f":"'Res-Appliance class'!$B43*'RES S curve-connect'!AN$3+'Res-Appliance class'!$C43*'RES S curve-connect'!AN$8+'Res-Appliance class'!$D43*'RES S curve-connect'!AN$13+'Res-Appliance class'!$E43*'RES S curve-connect'!AN$18","v":3421.4222396689925},{"$f":"'Res-Appliance class'!$B43*'RES S curve-connect'!AO$3+'Res-Appliance class'!$C43*'RES S curve-connect'!AO$8+'Res-Appliance class'!$D43*'RES S curve-connect'!AO$13+'Res-Appliance class'!$E43*'RES S curve-connect'!AO$18","v":3706.857648895425},{"$f":"'Res-Appliance class'!$B43*'RES S curve-connect'!AP$3+'Res-Appliance class'!$C43*'RES S curve-connect'!AP$8+'Res-Appliance class'!$D43*'RES S curve-connect'!AP$13+'Res-Appliance class'!$E43*'RES S curve-connect'!AP$18","v":3969.0614230575379},{"$f":"'Res-Appliance class'!$B43*'RES S curve-connect'!AQ$3+'Res-Appliance class'!$C43*'RES S curve-connect'!AQ$8+'Res-Appliance class'!$D43*'RES S curve-connect'!AQ$13+'Res-Appliance class'!$E43*'RES S curve-connect'!AQ$18","v":4252.8688279522594},{"$f":"'Res-Appliance class'!$B43*'RES S curve-connect'!AR$3+'Res-Appliance class'!$C43*'RES S curve-connect'!AR$8+'Res-Appliance class'!$D43*'RES S curve-connect'!AR$13+'Res-Appliance class'!$E43*'RES S curve-connect'!AR$18","v":4563.6037351543382},{"$f":"'Res-Appliance class'!$B43*'RES S curve-connect'!AS$3+'Res-Appliance class'!$C43*'RES S curve-connect'!AS$8+'Res-Appliance class'!$D43*'RES S curve-connect'!AS$13+'Res-Appliance class'!$E43*'RES S curve-connect'!AS$18","v":4912.0600678881656},{"$f":"'Res-Appliance class'!$B43*'RES S curve-connect'!AT$3+'Res-Appliance class'!$C43*'RES S curve-connect'!AT$8+'Res-Appliance class'!$D43*'RES S curve-connect'!AT$13+'Res-Appliance class'!$E43*'RES S curve-connect'!AT$18","v":5300.8175567515864},{"$f":"'Res-Appliance class'!$B43*'RES S curve-connect'!AU$3+'Res-Appliance class'!$C43*'RES S curve-connect'!AU$8+'Res-Appliance class'!$D43*'RES S curve-connect'!AU$13+'Res-Appliance class'!$E43*'RES S curve-connect'!AU$18","v":5751.7868845935545},{"$f":"'Res-Appliance class'!$B43*'RES S curve-connect'!AV$3+'Res-Appliance class'!$C43*'RES S curve-connect'!AV$8+'Res-Appliance class'!$D43*'RES S curve-connect'!AV$13+'Res-Appliance class'!$E43*'RES S curve-connect'!AV$18","v":6264.9414204622162},{"$f":"'Res-Appliance class'!$B43*'RES S curve-connect'!AW$3+'Res-Appliance class'!$C43*'RES S curve-connect'!AW$8+'Res-Appliance class'!$D43*'RES S curve-connect'!AW$13+'Res-Appliance class'!$E43*'RES S curve-connect'!AW$18","v":6854.1751079665974},{"$f":"'Res-Appliance class'!$B43*'RES S curve-connect'!AX$3+'Res-Appliance class'!$C43*'RES S curve-connect'!AX$8+'Res-Appliance class'!$D43*'RES S curve-connect'!AX$13+'Res-Appliance class'!$E43*'RES S curve-connect'!AX$18","v":7524.210755411551},{"$f":"'Res-Appliance class'!$B43*'RES S curve-connect'!AY$3+'Res-Appliance class'!$C43*'RES S curve-connect'!AY$8+'Res-Appliance class'!$D43*'RES S curve-connect'!AY$13+'Res-Appliance class'!$E43*'RES S curve-connect'!AY$18","v":8297.9379442594491},{"$f":"'Res-Appliance class'!$B43*'RES S curve-connect'!AZ$3+'Res-Appliance class'!$C43*'RES S curve-connect'!AZ$8+'Res-Appliance class'!$D43*'RES S curve-connect'!AZ$13+'Res-Appliance class'!$E43*'RES S curve-connect'!AZ$18","v":9180.4515356503543},{"$f":"'Res-Appliance class'!$B43*'RES S curve-connect'!BA$3+'Res-Appliance class'!$C43*'RES S curve-connect'!BA$8+'Res-Appliance class'!$D43*'RES S curve-connect'!BA$13+'Res-Appliance class'!$E43*'RES S curve-connect'!BA$18","v":10201.13136013654},{"$f":"'Res-Appliance class'!$B43*'RES S curve-connect'!BB$3+'Res-Appliance class'!$C43*'RES S curve-connect'!BB$8+'Res-Appliance class'!$D43*'RES S curve-connect'!BB$13+'Res-Appliance class'!$E43*'RES S curve-connect'!BB$18","v":11391.223717417621},{"$f":"'Res-Appliance class'!$B43*'RES S curve-connect'!BC$3+'Res-Appliance class'!$C43*'RES S curve-connect'!BC$8+'Res-Appliance class'!$D43*'RES S curve-connect'!BC$13+'Res-Appliance class'!$E43*'RES S curve-connect'!BC$18","v":12809.98388067061},{"$f":"'Res-Appliance class'!$B43*'RES S curve-connect'!BD$3+'Res-Appliance class'!$C43*'RES S curve-connect'!BD$8+'Res-Appliance class'!$D43*'RES S curve-connect'!BD$13+'Res-Appliance class'!$E43*'RES S curve-connect'!BD$18","v":14172.534566844895},{"$f":"'Res-Appliance class'!$B43*'RES S curve-connect'!BE$3+'Res-Appliance class'!$C43*'RES S curve-connect'!BE$8+'Res-Appliance class'!$D43*'RES S curve-connect'!BE$13+'Res-Appliance class'!$E43*'RES S curve-connect'!BE$18","v":15415.875249827404},{"$f":"'Res-Appliance class'!$B43*'RES S curve-connect'!BF$3+'Res-Appliance class'!$C43*'RES S curve-connect'!BF$8+'Res-Appliance class'!$D43*'RES S curve-connect'!BF$13+'Res-Appliance class'!$E43*'RES S curve-connect'!BF$18","v":16688.649773101504},{"$f":"'Res-Appliance class'!$B43*'RES S curve-connect'!BG$3+'Res-Appliance class'!$C43*'RES S curve-connect'!BG$8+'Res-Appliance class'!$D43*'RES S curve-connect'!BG$13+'Res-Appliance class'!$E43*'RES S curve-connect'!BG$18","v":18131.443414897294},{"$f":"'Res-Appliance class'!$B43*'RES S curve-connect'!BH$3+'Res-Appliance class'!$C43*'RES S curve-connect'!BH$8+'Res-Appliance class'!$D43*'RES S curve-connect'!BH$13+'Res-Appliance class'!$E43*'RES S curve-connect'!BH$18","v":19842.733636967183},{"$f":"'Res-Appliance class'!$B43*'RES S curve-connect'!BI$3+'Res-Appliance class'!$C43*'RES S curve-connect'!BI$8+'Res-Appliance class'!$D43*'RES S curve-connect'!BI$13+'Res-Appliance class'!$E43*'RES S curve-connect'!BI$18","v":22323.804637678426},{"$f":"'Res-Appliance class'!$B43*'RES S curve-connect'!BJ$3+'Res-Appliance class'!$C43*'RES S curve-connect'!BJ$8+'Res-Appliance class'!$D43*'RES S curve-connect'!BJ$13+'Res-Appliance class'!$E43*'RES S curve-connect'!BJ$18","v":25950.386454828913},{"$f":"'Res-Appliance class'!$B43*'RES S curve-connect'!BK$3+'Res-Appliance class'!$C43*'RES S curve-connect'!BK$8+'Res-Appliance class'!$D43*'RES S curve-connect'!BK$13+'Res-Appliance class'!$E43*'RES S curve-connect'!BK$18","v":31292.059939872652},{"$f":"'Res-Appliance class'!$B43*'RES S curve-connect'!BL$3+'Res-Appliance class'!$C43*'RES S curve-connect'!BL$8+'Res-Appliance class'!$D43*'RES S curve-connect'!BL$13+'Res-Appliance class'!$E43*'RES S curve-connect'!BL$18","v":155.69772963467699},{"$f":"'Res-Appliance class'!$B43*'RES S curve-connect'!BM$3+'Res-Appliance class'!$C43*'RES S curve-connect'!BM$8+'Res-Appliance class'!$D43*'RES S curve-connect'!BM$13+'Res-Appliance class'!$E43*'RES S curve-connect'!BM$18","v":162.60664350413623},{"$f":"'Res-Appliance class'!$B43*'RES S curve-connect'!BN$3+'Res-Appliance class'!$C43*'RES S curve-connect'!BN$8+'Res-Appliance class'!$D43*'RES S curve-connect'!BN$13+'Res-Appliance class'!$E43*'RES S curve-connect'!BN$18","v":165.4825831788803},{"$f":"'Res-Appliance class'!$B43*'RES S curve-connect'!BO$3+'Res-Appliance class'!$C43*'RES S curve-connect'!BO$8+'Res-Appliance class'!$D43*'RES S curve-connect'!BO$13+'Res-Appliance class'!$E43*'RES S curve-connect'!BO$18","v":176.39223827325316},{"$f":"'Res-Appliance class'!$B43*'RES S curve-connect'!BP$3+'Res-Appliance class'!$C43*'RES S curve-connect'!BP$8+'Res-Appliance class'!$D43*'RES S curve-connect'!BP$13+'Res-Appliance class'!$E43*'RES S curve-connect'!BP$18","v":183.26905049405468},{"$f":"'Res-Appliance class'!$B43*'RES S curve-connect'!BQ$3+'Res-Appliance class'!$C43*'RES S curve-connect'!BQ$8+'Res-Appliance class'!$D43*'RES S curve-connect'!BQ$13+'Res-Appliance class'!$E43*'RES S curve-connect'!BQ$18","v":190.13529280116097},{"$f":"'Res-Appliance class'!$B43*'RES S curve-connect'!BR$3+'Res-Appliance class'!$C43*'RES S curve-connect'!BR$8+'Res-Appliance class'!$D43*'RES S curve-connect'!BR$13+'Res-Appliance class'!$E43*'RES S curve-connect'!BR$18","v":192.96882191532427},{"$f":"'Res-Appliance class'!$B43*'RES S curve-connect'!BS$3+'Res-Appliance class'!$C43*'RES S curve-connect'!BS$8+'Res-Appliance class'!$D43*'RES S curve-connect'!BS$13+'Res-Appliance class'!$E43*'RES S curve-connect'!BS$18","v":203.83632581555406},{"$f":"'Res-Appliance class'!$B43*'RES S curve-connect'!BT$3+'Res-Appliance class'!$C43*'RES S curve-connect'!BT$8+'Res-Appliance class'!$D43*'RES S curve-connect'!BT$13+'Res-Appliance class'!$E43*'RES S curve-connect'!BT$18","v":210.67124458368266},{"$f":"'Res-Appliance class'!$B43*'RES S curve-connect'!BU$3+'Res-Appliance class'!$C43*'RES S curve-connect'!BU$8+'Res-Appliance class'!$D43*'RES S curve-connect'!BU$13+'Res-Appliance class'!$E43*'RES S curve-connect'!BU$18","v":217.49584956491981},{"$f":"'Res-Appliance class'!$B43*'RES S curve-connect'!BV$3+'Res-Appliance class'!$C43*'RES S curve-connect'!BV$8+'Res-Appliance class'!$D43*'RES S curve-connect'!BV$13+'Res-Appliance class'!$E43*'RES S curve-connect'!BV$18","v":220.28799587557739},{"$f":"'Res-Appliance class'!$B43*'RES S curve-connect'!BW$3+'Res-Appliance class'!$C43*'RES S curve-connect'!BW$8+'Res-Appliance class'!$D43*'RES S curve-connect'!BW$13+'Res-Appliance class'!$E43*'RES S curve-connect'!BW$18","v":231.11436990039829},{"$f":"'Res-Appliance class'!$B43*'RES S curve-connect'!BX$3+'Res-Appliance class'!$C43*'RES S curve-connect'!BX$8+'Res-Appliance class'!$D43*'RES S curve-connect'!BX$13+'Res-Appliance class'!$E43*'RES S curve-connect'!BX$18","v":237.90841013704778},{"$f":"'Res-Appliance class'!$B43*'RES S curve-connect'!BY$3+'Res-Appliance class'!$C43*'RES S curve-connect'!BY$8+'Res-Appliance class'!$D43*'RES S curve-connect'!BY$13+'Res-Appliance class'!$E43*'RES S curve-connect'!BY$18","v":244.69238635660599},{"$f":"'Res-Appliance class'!$B43*'RES S curve-connect'!BZ$3+'Res-Appliance class'!$C43*'RES S curve-connect'!BZ$8+'Res-Appliance class'!$D43*'RES S curve-connect'!BZ$13+'Res-Appliance class'!$E43*'RES S curve-connect'!BZ$18","v":247.4441521112318},{"$f":"'Res-Appliance class'!$B43*'RES S curve-connect'!CA$3+'Res-Appliance class'!$C43*'RES S curve-connect'!CA$8+'Res-Appliance class'!$D43*'RES S curve-connect'!CA$13+'Res-Appliance class'!$E43*'RES S curve-connect'!CA$18","v":258.23039223142666},{"$f":"'Res-Appliance class'!$B43*'RES S curve-connect'!CB$3+'Res-Appliance class'!$C43*'RES S curve-connect'!CB$8+'Res-Appliance class'!$D43*'RES S curve-connect'!CB$13+'Res-Appliance class'!$E43*'RES S curve-connect'!CB$18","v":264.98454367045986},{"$f":"'Res-Appliance class'!$B43*'RES S curve-connect'!CC$3+'Res-Appliance class'!$C43*'RES S curve-connect'!CC$8+'Res-Appliance class'!$D43*'RES S curve-connect'!CC$13+'Res-Appliance class'!$E43*'RES S curve-connect'!CC$18","v":271.72887466480154},{"$f":"'Res-Appliance class'!$B43*'RES S curve-connect'!CD$3+'Res-Appliance class'!$C43*'RES S curve-connect'!CD$8+'Res-Appliance class'!$D43*'RES S curve-connect'!CD$13+'Res-Appliance class'!$E43*'RES S curve-connect'!CD$18","v":171.69805610774074}]
["Stonnington (C)",null,{"$f":"'Res-Appliance class'!$B44*'RES S curve-connect'!C$3+'Res-Appliance class'!$C44*'RES S curve-connect'!C$8+'Res-Appliance class'!$D44*'RES S curve-connect'!C$13+'Res-Appliance class'!$E44*'RES S curve-connect'!C$18","v":-1890.1972020590106},{"$f":"'Res-Appliance class'!$B44*'RES S curve-connect'!D$3+'Res-Appliance class'!$C44*'RES S curve-connect'!D$8+'Res-Appliance class'!$D44*'RES S curve-connect'!D$13+'Res-Appliance class'!$E44*'RES S curve-connect'!D$18","v":-2356.8413100865446},{"$f":"'Res-Appliance class'!$B44*'RES S curve-connect'!E$3+'Res-Appliance class'!$C44*'RES S curve-connect'!E$8+'Res-Appliance class'!$D44*'RES S curve-connect'!E$13+'Res-Appliance class'!$E44*'RES S curve-connect'!E$18","v":-1976.661476643319},{"$f":"'Res-Appliance class'!$B44*'RES S curve-connect'!F$3+'Res-Appliance class'!$C44*'RES S curve-connect'!F$8+'Res-Appliance class'!$D44*'RES S curve-connect'!F$13+'Res-Appliance class'!$E44*'RES S curve-connect'!F$18","v":-1846.0450088594162},{"$f":"'Res-Appliance class'!$B44*'RES S curve-connect'!G$3+'Res-Appliance class'!$C44*'RES S curve-connect'!G$8+'Res-Appliance class'!$D44*'RES S curve-connect'!G$13+'Res-Appliance class'!$E44*'RES S curve-connect'!G$18","v":-2718.4911483446385},{"$f":"'Res-Appliance class'!$B44*'RES S curve-connect'!H$3+'Res-Appliance class'!$C44*'RES S curve-connect'!H$8+'Res-Appliance class'!$D44*'RES S curve-connect'!H$13+'Res-Appliance class'!$E44*'RES S curve-connect'!H$18","v":-2746.9511883465284},{"$f":"'Res-Appliance class'!$B44*'RES S curve-connect'!I$3+'Res-Appliance class'!$C44*'RES S curve-connect'!I$8+'Res-Appliance class'!$D44*'RES S curve-connect'!I$13+'Res-Appliance class'!$E44*'RES S curve-connect'!I$18","v":-2360.8659255615025},{"$f":"'Res-Appliance class'!$B44*'RES S curve-connect'!J$3+'Res-Appliance class'!$C44*'RES S curve-connect'!J$8+'Res-Appliance class'!$D44*'RES S curve-connect'!J$13+'Res-Appliance class'!$E44*'RES S curve-connect'!J$18","v":-2632.9353804914595},{"$f":"'Res-Appliance class'!$B44*'RES S curve-connect'!K$3+'Res-Appliance class'!$C44*'RES S curve-connect'!K$8+'Res-Appliance class'!$D44*'RES S curve-connect'!K$13+'Res-Appliance class'!$E44*'RES S curve-connect'!K$18","v":-1933.3070997507416},{"$f":"'Res-Appliance class'!$B44*'RES S curve-connect'!L$3+'Res-Appliance class'!$C44*'RES S curve-connect'!L$8+'Res-Appliance class'!$D44*'RES S curve-connect'!L$13+'Res-Appliance class'!$E44*'RES S curve-connect'!L$18","v":-2258.5841409442551},{"$f":"'Res-Appliance class'!$B44*'RES S curve-connect'!M$3+'Res-Appliance class'!$C44*'RES S curve-connect'!M$8+'Res-Appliance class'!$D44*'RES S curve-connect'!M$13+'Res-Appliance class'!$E44*'RES S curve-connect'!M$18","v":-2820.6598131132732},{"$f":"'Res-Appliance class'!$B44*'RES S curve-connect'!N$3+'Res-Appliance class'!$C44*'RES S curve-connect'!N$8+'Res-Appliance class'!$D44*'RES S curve-connect'!N$13+'Res-Appliance class'!$E44*'RES S curve-connect'!N$18","v":-2880.8289802455674},{"$f":"'Res-Appliance class'!$B44*'RES S curve-connect'!O$3+'Res-Appliance class'!$C44*'RES S curve-connect'!O$8+'Res-Appliance class'!$D44*'RES S curve-connect'!O$13+'Res-Appliance class'!$E44*'RES S curve-connect'!O$18","v":-2379.5640077837452},{"$f":"'Res-Appliance class'!$B44*'RES S curve-connect'!P$3+'Res-Appliance class'!$C44*'RES S curve-connect'!P$8+'Res-Appliance class'!$D44*'RES S curve-connect'!P$13+'Res-Appliance class'!$E44*'RES S curve-connect'!P$18","v":-1984.76641782395},{"$f":"'Res-Appliance class'!$B44*'RES S curve-connect'!Q$3+'Res-Appliance class'!$C44*'RES S curve-connect'!Q$8+'Res-Appliance class'!$D44*'RES S curve-connect'!Q$13+'Res-Appliance class'!$E44*'RES S curve-connect'!Q$18","v":-1384.8939393863659},{"$f":"'Res-Appliance class'!$B44*'RES S curve-connect'!R$3+'Res-Appliance class'!$C44*'RES S curve-connect'!R$8+'Res-Appliance class'!$D44*'RES S curve-connect'!R$13+'Res-Appliance class'!$E44*'RES S curve-connect'!R$18","v":-1048.2824505087815},{"$f":"'Res-Appliance class'!$B44*'RES S curve-connect'!S$3+'Res-Appliance class'!$C44*'RES S curve-connect'!S$8+'Res-Appliance class'!$D44*'RES S curve-connect'!S$13+'Res-Appliance class'!$E44*'RES S curve-connect'!S$18","v":-501.52046739015884},{"$f":"'Res-Appliance class'!$B44*'RES S curve-connect'!T$3+'Res-Appliance class'!$C44*'RES S curve-connect'!T$8+'Res-Appliance class'!$D44*'RES S curve-connect'!T$13+'Res-Appliance class'!$E44*'RES S curve-connect'!T$18","v":-223.13340420834788},{"$f":"'Res-Appliance class'!$B44*'RES S curve-connect'!U$3+'Res-Appliance class'!$C44*'RES S curve-connect'!U$8+'Res-Appliance class'!$D44*'RES S curve-connect'!U$13+'Res-Appliance class'!$E44*'RES S curve-connect'!U$18","v":106.29652951628012},{"$f":"'Res-Appliance class'!$B44*'RES S curve-connect'!V$3+'Res-Appliance class'!$C44*'RES S curve-connect'!V$8+'Res-Appliance class'!$D44*'RES S curve-connect'!V$13+'Res-Appliance class'!$E44*'RES S curve-connect'!V$18","v":331.96463373374246},{"$f":"'Res-Appliance class'!$B44*'RES S curve-connect'!W$3+'Res-Appliance class'!$C44*'RES S curve-connect'!W$8+'Res-Appliance class'!$D44*'RES S curve-connect'!W$13+'Res-Appliance class'!$E44*'RES S curve-connect'!W$18","v":507.08476048187111},{"$f":"'Res-Appliance class'!$B44*'RES S curve-connect'!X$3+'Res-Appliance class'!$C44*'RES S curve-connect'!X$8+'Res-Appliance class'!$D44*'RES S curve-connect'!X$13+'Res-Appliance class'!$E44*'RES S curve-connect'!X$18","v":905.74690972166343},{"$f":"'Res-Appliance class'!$B44*'RES S curve-connect'!Y$3+'Res-Appliance class'!$C44*'RES S curve-connect'!Y$8+'Res-Appliance class'!$D44*'RES S curve-connect'!Y$13+'Res-Appliance class'!$E44*'RES S curve-connect'!Y$18","v":1310.7756384780464},{"$f":"'Res-Appliance class'!$B44*'RES S curve-connect'!Z$3+'Res-Appliance class'!$C44*'RES S curve-connect'!Z$8+'Res-Appliance class'!$D44*'RES S curve-connect'!Z$13+'Res-Appliance class'!$E44*'RES S curve-connect'!Z$18","v":1583.5227436468067},{"$f":"'Res-Appliance class'!$B44*'RES S curve-connect'!AA$3+'Res-Appliance class'!$C44*'RES S curve-connect'!AA$8+'Res-Appliance class'!$D44*'RES S curve-connect'!AA$13+'Res-Appliance class'!$E44*'RES S curve-connect'!AA$18","v":1858.1233719109405},{"$f":"'Res-Appliance class'!$B44*'RES S curve-connect'!AB$3+'Res-Appliance class'!$C44*'RES S curve-connect'!AB$8+'Res-Appliance class'!$D44*'RES S curve-connect'!AB$13+'Res-Appliance class'!$E44*'RES S curve-connect'!AB$18","v":2077.465745191912},{"$f":"'Res-Appliance class'!$B44*'RES S curve-connect'!AC$3+'Res-Appliance class'!$C44*'RES S curve-connect'!AC$8+'Res-Appliance class'!$D44*'RES S curve-connect'!AC$13+'Res-Appliance class'!$E44*'RES S curve-connect'!AC$18","v":2289.7719765925631},{"$f":"'Res-Appliance class'!$B44*'RES S curve-connect'!AD$3+'Res-Appliance class'!$C44*'RES S curve-connect'!AD$8+'Res-Appliance class'!$D44*'RES S curve-connect'!AD$13+'Res-Appliance class'!$E44*'RES S curve-connect'!AD$18","v":2484.0905308680058},{"$f":"'Res-Appliance class'!$B44*'RES S curve-connect'!AE$3+'Res-Appliance class'!$C44*'RES S curve-connect'!AE$8+'Res-Appliance class'!$D44*'RES S curve-connect'!AE$13+'Res-Appliance class'!$E44*'RES S curve-connect'!AE$18","v":2691.2526803004803},{"$f":"'Res-Appliance class'!$B44*'RES S curve-connect'!AF$3+'Res-Appliance class'!$C44*'RES S curve-connect'!AF$8+'Res-Appliance class'!$D44*'RES S curve-connect'!AF$13+'Res-Appliance class'!$E44*'RES S curve-connect'!AF$18","v":2957.9822391547605},{"$f":"'Res-Appliance class'!$B44*'RES S curve-connect'!AG$3+'Res-Appliance class'!$C44*'RES S curve-connect'!AG$8+'Res-Appliance class'!$D44*'RES S curve-connect'!AG$13+'Res-Appliance class'!$E44*'RES S curve-connect'!AG$18","v":3146.8572135584404},{"$f":"'Res-Appliance class'!$B44*'RES S curve-connect'!AH$3+'Res-Appliance class'!$C44*'RES S curve-connect'!AH$8+'Res-Appliance class'!$D44*'RES S curve-connect'!AH$13+'Res-Appliance class'!$E44*'RES S curve-connect'!AH$18","v":3407.5492054354322},{"$f":"'Res-Appliance class'!$B44*'RES S curve-connect'!AI$3+'Res-Appliance class'!$C44*'RES S curve-connect'!AI$8+'Res-Appliance class'!$D44*'RES S curve-connect'!AI$13+'Res-Appliance class'!$E44*'RES S curve-connect'!AI$18","v":3646.5489725687185},{"$f":"'Res-Appliance class'!$B44*'RES S curve-connect'!AJ$3+'Res-Appliance class'!$C44*'RES S curve-connect'!AJ$8+'Res-Appliance class'!$D44*'RES S curve-connect'!AJ$13+'Res-Appliance class'!$E44*'RES S curve-connect'!AJ$18","v":3861.2619883133311},{"$f":"'Res-Appliance class'!$B44*'RES S curve-connect'!AK$3+'Res-Appliance class'!$C44*'RES S curve-connect'!AK$8+'Res-Appliance class'!$D44*'RES S curve-connect'!AK$13+'Res-Appliance class'!$E44*'RES S curve-connect'!AK$18","v":4089.3829431951294},{"$f":"'Res-Appliance class'!$B44*'RES S curve-connect'!AL$3+'Res-Appliance class'!$C44*'RES S curve-connect'!AL$8+'Res-Appliance class'!$D44*'RES S curve-connect'!AL$13+'Res-Appliance class'!$E44*'RES S curve-connect'!AL$18","v":3286.7440250584546},{"$f":"'Res-Appliance class'!$B44*'RES S curve-connect'!AM$3+'Res-Appliance class'!$C44*'RES S curve-connect'!AM$8+'Res-Appliance class'!$D44*'RES S curve-connect'!AM$13+'Res-Appliance class'!$E44*'RES S curve-connect'!AM$18","v":3188.5863220999699},{"$f":"'Res-Appliance class'!$B44*'RES S curve-connect'!AN$3+'Res-Appliance class'!$C44*'RES S curve-connect'!AN$8+'Res-Appliance class'!$D44*'RES S curve-connect'!AN$13+'Res-Appliance class'!$E44*'RES S curve-connect'!AN$18","v":3408.0992151841565},{"$f":"'Res-Appliance class'!$B44*'RES S curve-connect'!AO$3+'Res-Appliance class'!$C44*'RES S curve-connect'!AO$8+'Res-Appliance class'!$D44*'RES S curve-connect'!AO$13+'Res-Appliance class'!$E44*'RES S curve-connect'!AO$18","v":3673.253007853365},{"$f":"'Res-Appliance class'!$B44*'RES S curve-connect'!AP$3+'Res-Appliance class'!$C44*'RES S curve-connect'!AP$8+'Res-Appliance class'!$D44*'RES S curve-connect'!AP$13+'Res-Appliance class'!$E44*'RES S curve-connect'!AP$18","v":3916.2223314608991},{"$f":"'Res-Appliance class'!$B44*'RES S curve-connect'!AQ$3+'Res-Appliance class'!$C44*'RES S curve-connect'!AQ$8+'Res-Appliance class'!$D44*'RES S curve-connect'!AQ$13+'Res-Appliance class'!$E44*'RES S curve-connect'!AQ$18","v":4179.8290485060397},{"$f":"'Res-Appliance class'!$B44*'RES S curve-connect'!AR$3+'Res-Appliance class'!$C44*'RES S curve-connect'!AR$8+'Res-Appliance class'!$D44*'RES S curve-connect'!AR$13+'Res-Appliance class'!$E44*'RES S curve-connect'!AR$18","v":4468.1110640034694},{"$f":"'Res-Appliance class'!$B44*'RES S curve-connect'!AS$3+'Res-Appliance class'!$C44*'RES S curve-connect'!AS$8+'Res-Appliance class'!$D44*'RES S curve-connect'!AS$13+'Res-Appliance class'!$E44*'RES S curve-connect'!AS$18","v":4791.3170186233783},{"$f":"'Res-Appliance class'!$B44*'RES S curve-connect'!AT$3+'Res-Appliance class'!$C44*'RES S curve-connect'!AT$8+'Res-Appliance class'!$D44*'RES S curve-connect'!AT$13+'Res-Appliance class'!$E44*'RES S curve-connect'!AT$18","v":5151.5157167205007},{"$f":"'Res-Appliance class'!$B44*'RES S curve-connect'!AU$3+'Res-Appliance class'!$C44*'RES S curve-connect'!AU$8+'Res-Appliance class'!$D44*'RES S curve-connect'!AU$13+'Res-Appliance class'!$E44*'RES S curve-connect'!AU$18","v":5569.8731818483811},{"$f":"'Res-Appliance class'!$B44*'RES S curve-connect'!AV$3+'Res-Appliance class'!$C44*'RES S curve-connect'!AV$8+'Res-Appliance class'!$D44*'RES S curve-connect'!AV$13+'Res-Appliance class'!$E44*'RES S curve-connect'!AV$18","v":6045.4367459888454},{"$f":"'Res-Appliance class'!$B44*'RES S curve-connect'!AW$3+'Res-Appliance class'!$C44*'RES S curve-connect'!AW$8+'Res-Appliance class'!$D44*'RES S curve-connect'!AW$13+'Res-Appliance class'!$E44*'RES S curve-connect'!AW$18","v":6591.2908079075269},{"$f":"'Res-Appliance class'!$B44*'RES S curve-connect'!AX$3+'Res-Appliance class'!$C44*'RES S curve-connect'!AX$8+'Res-Appliance class'!$D44*'RES S curve-connect'!AX$13+'Res-Appliance class'!$E44*'RES S curve-connect'!AX$18","v":7211.4055600026677},{"$f":"'Res-Appliance class'!$B44*'RES S curve-connect'!AY$3+'Res-Appliance class'!$C44*'RES S curve-connect'!AY$8+'Res-Appliance class'!$D44*'RES S curve-connect'!AY$13+'Res-Appliance class'!$E44*'RES S curve-connect'!AY$18","v":7927.7552036996931},{"$f":"'Res-Appliance class'!$B44*'RES S curve-connect'!AZ$3+'Res-Appliance class'!$C44*'RES S curve-connect'!AZ$8+'Res-Appliance class'!$D44*'RES S curve-connect'!AZ$13+'Res-Appliance class'!$E44*'RES S curve-connect'!AZ$18","v":8744.0355099322951},{"$f":"'Res-Appliance class'!$B44*'RES S curve-connect'!BA$3+'Res-Appliance class'!$C44*'RES S curve-connect'!BA$8+'Res-Appliance class'!$D44*'RES S curve-connect'!BA$13+'Res-Appliance class'!$E44*'RES S curve-connect'!BA$18","v":9687.5800728665818},{"$f":"'Res-Appliance class'!$B44*'RES S curve-connect'!BB$3+'Res-Appliance class'!$C44*'RES S curve-connect'!BB$8+'Res-Appliance class'!$D44*'RES S curve-connect'!BB$13+'Res-Appliance class'!$E44*'RES S curve-connect'!BB$18","v":10786.774163269667},{"$f":"'Res-Appliance class'!$B44*'RES S curve-connect'!BC$3+'Res-Appliance class'!$C44*'RES S curve-connect'!BC$8+'Res-Appliance class'!$D44*'RES S curve-connect'!BC$13+'Res-Appliance class'!$E44*'RES S curve-connect'!BC$18","v":12097.019640381204},{"$f":"'Res-Appliance class'!$B44*'RES S curve-connect'!BD$3+'Res-Appliance class'!$C44*'RES S curve-connect'!BD$8+'Res-Appliance class'!$D44*'RES S curve-connect'!BD$13+'Res-Appliance class'!$E44*'RES S curve-connect'!BD$18","v":13352.805076665483},{"$f":"'Res-Appliance class'!$B44*'RES S curve-connect'!BE$3+'Res-Appliance class'!$C44*'RES S curve-connect'!BE$8+'Res-Appliance class'!$D44*'RES S curve-connect'!BE$13+'Res-Appliance class'!$E44*'RES S curve-connect'!BE$18","v":14497.855965777979},{"$f":"'Res-Appliance class'!$B44*'RES S curve-connect'!BF$3+'Res-Appliance class'!$C44*'RES S curve-connect'!BF$8+'Res-Appliance class'!$D44*'RES S curve-connect'!BF$13+'Res-Appliance class'!$E44*'RES S curve-connect'!BF$18","v":15670.271486754968},{"$f":"'Res-Appliance class'!$B44*'RES S curve-connect'!BG$3+'Res-Appliance class'!$C44*'RES S curve-connect'!BG$8+'Res-Appliance class'!$D44*'RES S curve-connect'!BG$13+'Res-Appliance class'!$E44*'RES S curve-connect'!BG$18","v":17000.284009902531},{"$f":"'Res-Appliance class'!$B44*'RES S curve-connect'!BH$3+'Res-Appliance class'!$C44*'RES S curve-connect'!BH$8+'Res-Appliance class'!$D44*'RES S curve-connect'!BH$13+'Res-Appliance class'!$E44*'RES S curve-connect'!BH$18","v":18577.254879305652},{"$f":"'Res-Appliance class'!$B44*'RES S curve-connect'!BI$3+'Res-Appliance class'!$C44*'RES S curve-connect'!BI$8+'Res-Appliance class'!$D44*'RES S curve-connect'!BI$13+'Res-Appliance class'!$E44*'RES S curve-connect'!BI$18","v":20864.246778116976},{"$f":"'Res-Appliance class'!$B44*'RES S curve-connect'!BJ$3+'Res-Appliance class'!$C44*'RES S curve-connect'!BJ$8+'Res-Appliance class'!$D44*'RES S curve-connect'!BJ$13+'Res-Appliance class'!$E44*'RES S curve-connect'!BJ$18","v":24204.25045589334},{"$f":"'Res-Appliance class'!$B44*'RES S curve-connect'!BK$3+'Res-Appliance class'!$C44*'RES S curve-connect'!BK$8+'Res-Appliance class'!$D44*'RES S curve-connect'!BK$13+'Res-Appliance class'!$E44*'RES S curve-connect'!BK$18","v":29119.516130642151},{"$f":"'Res-Appliance class'!$B44*'RES S curve-connect'!BL$3+'Res-Appliance class'!$C44*'RES S curve-connect'!BL$8+'Res-Appliance class'!$D44*'RES S curve-connect'!BL$13+'Res-Appliance class'!$E44*'RES S curve-connect'!BL$18","v":360.15926762423271},{"$f":"'Res-Appliance class'!$B44*'RES S curve-connect'!BM$3+'Res-Appliance class'!$C44*'RES S curve-connect'!BM$8+'Res-Appliance class'!$D44*'RES S curve-connect'!BM$13+'Res-Appliance class'!$E44*'RES S curve-connect'!BM$18","v":366.42901687257461},{"$f":"'Res-Appliance class'!$B44*'RES S curve-connect'!BN$3+'Res-Appliance class'!$C44*'RES S curve-connect'!BN$8+'Res-Appliance class'!$D44*'RES S curve-connect'!BN$13+'Res-Appliance class'!$E44*'RES S curve-connect'!BN$18","v":368.66718158613247},{"$f":"'Res-Appliance class'!$B44*'RES S curve-connect'!BO$3+'Res-Appliance class'!$C44*'RES S curve-connect'!BO$8+'Res-Appliance class'!$D44*'RES S curve-connect'!BO$13+'Res-Appliance class'!$E44*'RES S curve-connect'!BO$18","v":378.94044252706829},{"$f":"'Res-Appliance class'!$B44*'RES S curve-connect'!BP$3+'Res-Appliance class'!$C44*'RES S curve-connect'!BP$8+'Res-Appliance class'!$D44*'RES S curve-connect'!BP$13+'Res-Appliance class'!$E44*'RES S curve-connect'!BP$18","v":385.18223260653241},{"$f":"'Res-Appliance class'!$B44*'RES S curve-connect'!BQ$3+'Res-Appliance class'!$C44*'RES S curve-connect'!BQ$8+'Res-Appliance class'!$D44*'RES S curve-connect'!BQ$13+'Res-Appliance class'!$E44*'RES S curve-connect'!BQ$18","v":391.41481604492373},{"$f":"'Res-Appliance class'!$B44*'RES S curve-connect'!BR$3+'Res-Appliance class'!$C44*'RES S curve-connect'!BR$8+'Res-Appliance class'!$D44*'RES S curve-connect'!BR$13+'Res-Appliance class'!$E44*'RES S curve-connect'!BR$18","v":393.61604087932943},{"$f":"'Res-Appliance class'!$B44*'RES S curve-connect'!BS$3+'Res-Appliance class'!$C44*'RES S curve-connect'!BS$8+'Res-Appliance class'!$D44*'RES S curve-connect'!BS$13+'Res-Appliance class'!$E44*'RES S curve-connect'!BS$18","v":403.85258646055024},{"$f":"'Res-Appliance class'!$B44*'RES S curve-connect'!BT$3+'Res-Appliance class'!$C44*'RES S curve-connect'!BT$8+'Res-Appliance class'!$D44*'RES S curve-connect'!BT$13+'Res-Appliance class'!$E44*'RES S curve-connect'!BT$18","v":410.05788429731035},{"$f":"'Res-Appliance class'!$B44*'RES S curve-connect'!BU$3+'Res-Appliance class'!$C44*'RES S curve-connect'!BU$8+'Res-Appliance class'!$D44*'RES S curve-connect'!BU$13+'Res-Appliance class'!$E44*'RES S curve-connect'!BU$18","v":416.25419721646028},{"$f":"'Res-Appliance class'!$B44*'RES S curve-connect'!BV$3+'Res-Appliance class'!$C44*'RES S curve-connect'!BV$8+'Res-Appliance class'!$D44*'RES S curve-connect'!BV$13+'Res-Appliance class'!$E44*'RES S curve-connect'!BV$18","v":418.41937187035205},{"$f":"'Res-Appliance class'!$B44*'RES S curve-connect'!BW$3+'Res-Appliance class'!$C44*'RES S curve-connect'!BW$8+'Res-Appliance class'!$D44*'RES S curve-connect'!BW$13+'Res-Appliance class'!$E44*'RES S curve-connect'!BW$18","v":428.62008623381905},{"$f":"'Res-Appliance class'!$B44*'RES S curve-connect'!BX$3+'Res-Appliance class'!$C44*'RES S curve-connect'!BX$8+'Res-Appliance class'!$D44*'RES S curve-connect'!BX$13+'Res-Appliance class'!$E44*'RES S curve-connect'!BX$18","v":434.78977044832277},{"$f":"'Res-Appliance class'!$B44*'RES S curve-connect'!BY$3+'Res-Appliance class'!$C44*'RES S curve-connect'!BY$8+'Res-Appliance class'!$D44*'RES S curve-connect'!BY$13+'Res-Appliance class'!$E44*'RES S curve-connect'!BY$18","v":440.95068598210162},{"$f":"'Res-Appliance class'!$B44*'RES S curve-connect'!BZ$3+'Res-Appliance class'!$C44*'RES S curve-connect'!BZ$8+'Res-Appliance class'!$D44*'RES S curve-connect'!BZ$13+'Res-Appliance class'!$E44*'RES S curve-connect'!BZ$18","v":443.08067813749375},{"$f":"'Res-Appliance class'!$B44*'RES S curve-connect'!CA$3+'Res-Appliance class'!$C44*'RES S curve-connect'!CA$8+'Res-Appliance class'!$D44*'RES S curve-connect'!CA$13+'Res-Appliance class'!$E44*'RES S curve-connect'!CA$18","v":453.24642354786164},{"$f":"'Res-Appliance class'!$B44*'RES S curve-connect'!CB$3+'Res-Appliance class'!$C44*'RES S curve-connect'!CB$8+'Res-Appliance class'!$D44*'RES S curve-connect'!CB$13+'Res-Appliance class'!$E44*'RES S curve-connect'!CB$18","v":459.38135102168064},{"$f":"'Res-Appliance class'!$B44*'RES S curve-connect'!CC$3+'Res-Appliance class'!$C44*'RES S curve-connect'!CC$8+'Res-Appliance class'!$D44*'RES S curve-connect'!CC$13+'Res-Appliance class'!$E44*'RES S curve-connect'!CC$18","v":465.50772070263741},{"$f":"'Res-Appliance class'!$B44*'RES S curve-connect'!CD$3+'Res-Appliance class'!$C44*'RES S curve-connect'!CD$8+'Res-Appliance class'!$D44*'RES S curve-connect'!CD$13+'Res-Appliance class'!$E44*'RES S curve-connect'!CD$18","v":373.71232812977973}]
["Whitehorse (C)",null,{"$f":"'Res-Appliance class'!$B45*'RES S curve-connect'!C$3+'Res-Appliance class'!$C45*'RES S curve-connect'!C$8+'Res-Appliance class'!$D45*'RES S curve-connect'!C$13+'Res-Appliance class'!$E45*'RES S curve-connect'!C$18","v":-2659.6720645462542},{"$f":"'Res-Appliance class'!$B45*'RES S curve-connect'!D$3+'Res-Appliance class'!$C45*'RES S curve-connect'!D$8+'Res-Appliance class'!$D45*'RES S curve-connect'!D$13+'Res-Appliance class'!$E45*'RES S curve-connect'!D$18","v":-3282.108644161422},{"$f":"'Res-Appliance class'!$B45*'RES S curve-connect'!E$3+'Res-Appliance class'!$C45*'RES S curve-connect'!E$8+'Res-Appliance class'!$D45*'RES S curve-connect'!E$13+'Res-Appliance class'!$E45*'RES S curve-connect'!E$18","v":-2705.8347943405042},{"$f":"'Res-Appliance class'!$B45*'RES S curve-connect'!F$3+'Res-Appliance class'!$C45*'RES S curve-connect'!F$8+'Res-Appliance class'!$D45*'RES S curve-connect'!F$13+'Res-Appliance class'!$E45*'RES S curve-connect'!F$18","v":-2519.6121826676826},{"$f":"'Res-Appliance class'!$B45*'RES S curve-connect'!G$3+'Res-Appliance class'!$C45*'RES S curve-connect'!G$8+'Res-Appliance class'!$D45*'RES S curve-connect'!G$13+'Res-Appliance class'!$E45*'RES S curve-connect'!G$18","v":-3799.5057291992825},{"$f":"'Res-Appliance class'!$B45*'RES S curve-connect'!H$3+'Res-Appliance class'!$C45*'RES S curve-connect'!H$8+'Res-Appliance class'!$D45*'RES S curve-connect'!H$13+'Res-Appliance class'!$E45*'RES S curve-connect'!H$18","v":-3833.1645552618666},{"$f":"'Res-Appliance class'!$B45*'RES S curve-connect'!I$3+'Res-Appliance class'!$C45*'RES S curve-connect'!I$8+'Res-Appliance class'!$D45*'RES S curve-connect'!I$13+'Res-Appliance class'!$E45*'RES S curve-connect'!I$18","v":-3305.8446750441794},{"$f":"'Res-Appliance class'!$B45*'RES S curve-connect'!J$3+'Res-Appliance class'!$C45*'RES S curve-connect'!J$8+'Res-Appliance class'!$D45*'RES S curve-connect'!J$13+'Res-Appliance class'!$E45*'RES S curve-connect'!J$18","v":-3625.9712383856122},{"$f":"'Res-Appliance class'!$B45*'RES S curve-connect'!K$3+'Res-Appliance class'!$C45*'RES S curve-connect'!K$8+'Res-Appliance class'!$D45*'RES S curve-connect'!K$13+'Res-Appliance class'!$E45*'RES S curve-connect'!K$18","v":-2690.1157658162865},{"$f":"'Res-Appliance class'!$B45*'RES S curve-connect'!L$3+'Res-Appliance class'!$C45*'RES S curve-connect'!L$8+'Res-Appliance class'!$D45*'RES S curve-connect'!L$13+'Res-Appliance class'!$E45*'RES S curve-connect'!L$18","v":-3124.1510704529392},{"$f":"'Res-Appliance class'!$B45*'RES S curve-connect'!M$3+'Res-Appliance class'!$C45*'RES S curve-connect'!M$8+'Res-Appliance class'!$D45*'RES S curve-connect'!M$13+'Res-Appliance class'!$E45*'RES S curve-connect'!M$18","v":-3904.1067083808944},{"$f":"'Res-Appliance class'!$B45*'RES S curve-connect'!N$3+'Res-Appliance class'!$C45*'RES S curve-connect'!N$8+'Res-Appliance class'!$D45*'RES S curve-connect'!N$13+'Res-Appliance class'!$E45*'RES S curve-connect'!N$18","v":-3985.269281012992},{"$f":"'Res-Appliance class'!$B45*'RES S curve-connect'!O$3+'Res-Appliance class'!$C45*'RES S curve-connect'!O$8+'Res-Appliance class'!$D45*'RES S curve-connect'!O$13+'Res-Appliance class'!$E45*'RES S curve-connect'!O$18","v":-3313.1907276332172},{"$f":"'Res-Appliance class'!$B45*'RES S curve-connect'!P$3+'Res-Appliance class'!$C45*'RES S curve-connect'!P$8+'Res-Appliance class'!$D45*'RES S curve-connect'!P$13+'Res-Appliance class'!$E45*'RES S curve-connect'!P$18","v":-2779.6971704433245},{"$f":"'Res-Appliance class'!$B45*'RES S curve-connect'!Q$3+'Res-Appliance class'!$C45*'RES S curve-connect'!Q$8+'Res-Appliance class'!$D45*'RES S curve-connect'!Q$13+'Res-Appliance class'!$E45*'RES S curve-connect'!Q$18","v":-1969.251330841824},{"$f":"'Res-Appliance class'!$B45*'RES S curve-connect'!R$3+'Res-Appliance class'!$C45*'RES S curve-connect'!R$8+'Res-Appliance class'!$D45*'RES S curve-connect'!R$13+'Res-Appliance class'!$E45*'RES S curve-connect'!R$18","v":-1513.4413385775965},{"$f":"'Res-Appliance class'!$B45*'RES S curve-connect'!S$3+'Res-Appliance class'!$C45*'RES S curve-connect'!S$8+'Res-Appliance class'!$D45*'RES S curve-connect'!S$13+'Res-Appliance class'!$E45*'RES S curve-connect'!S$18","v":-783.64101550622649},{"$f":"'Res-Appliance class'!$B45*'RES S curve-connect'!T$3+'Res-Appliance class'!$C45*'RES S curve-connect'!T$8+'Res-Appliance class'!$D45*'RES S curve-connect'!T$13+'Res-Appliance class'!$E45*'RES S curve-connect'!T$18","v":-390.51158137671536},{"$f":"'Res-Appliance class'!$B45*'RES S curve-connect'!U$3+'Res-Appliance class'!$C45*'RES S curve-connect'!U$8+'Res-Appliance class'!$D45*'RES S curve-connect'!U$13+'Res-Appliance class'!$E45*'RES S curve-connect'!U$18","v":59.48192579620428},{"$f":"'Res-Appliance class'!$B45*'RES S curve-connect'!V$3+'Res-Appliance class'!$C45*'RES S curve-connect'!V$8+'Res-Appliance class'!$D45*'RES S curve-connect'!V$13+'Res-Appliance class'!$E45*'RES S curve-connect'!V$18","v":364.0228483863574},{"$f":"'Res-Appliance class'!$B45*'RES S curve-connect'!W$3+'Res-Appliance class'!$C45*'RES S curve-connect'!W$8+'Res-Appliance class'!$D45*'RES S curve-connect'!W$13+'Res-Appliance class'!$E45*'RES S curve-connect'!W$18","v":599.53139670425207},{"$f":"'Res-Appliance class'!$B45*'RES S curve-connect'!X$3+'Res-Appliance class'!$C45*'RES S curve-connect'!X$8+'Res-Appliance class'!$D45*'RES S curve-connect'!X$13+'Res-Appliance class'!$E45*'RES S curve-connect'!X$18","v":1143.9918590741763},{"$f":"'Res-Appliance class'!$B45*'RES S curve-connect'!Y$3+'Res-Appliance class'!$C45*'RES S curve-connect'!Y$8+'Res-Appliance class'!$D45*'RES S curve-connect'!Y$13+'Res-Appliance class'!$E45*'RES S curve-connect'!Y$18","v":1694.9853344363864},{"$f":"'Res-Appliance class'!$B45*'RES S curve-connect'!Z$3+'Res-Appliance class'!$C45*'RES S curve-connect'!Z$8+'Res-Appliance class'!$D45*'RES S curve-connect'!Z$13+'Res-Appliance class'!$E45*'RES S curve-connect'!Z$18","v":2065.30139862337},{"$f":"'Res-Appliance class'!$B45*'RES S curve-connect'!AA$3+'Res-Appliance class'!$C45*'RES S curve-connect'!AA$8+'Res-Appliance class'!$D45*'RES S curve-connect'!AA$13+'Res-Appliance class'!$E45*'RES S curve-connect'!AA$18","v":2435.6710751339415},{"$f":"'Res-Appliance class'!$B45*'RES S curve-connect'!AB$3+'Res-Appliance class'!$C45*'RES S curve-connect'!AB$8+'Res-Appliance class'!$D45*'RES S curve-connect'!AB$13+'Res-Appliance class'!$E45*'RES S curve-connect'!AB$18","v":2729.6756494760807},{"$f":"'Res-Appliance class'!$B45*'RES S curve-connect'!AC$3+'Res-Appliance class'!$C45*'RES S curve-connect'!AC$8+'Res-Appliance class'!$D45*'RES S curve-connect'!AC$13+'Res-Appliance class'!$E45*'RES S curve-connect'!AC$18","v":3012.6535841867271},{"$f":"'Res-Appliance class'!$B45*'RES S curve-connect'!AD$3+'Res-Appliance class'!$C45*'RES S curve-connect'!AD$8+'Res-Appliance class'!$D45*'RES S curve-connect'!AD$13+'Res-Appliance class'!$E45*'RES S curve-connect'!AD$18","v":3271.5799687442295},{"$f":"'Res-Appliance class'!$B45*'RES S curve-connect'!AE$3+'Res-Appliance class'!$C45*'RES S curve-connect'!AE$8+'Res-Appliance class'!$D45*'RES S curve-connect'!AE$13+'Res-Appliance class'!$E45*'RES S curve-connect'!AE$18","v":3544.1653525664528},{"$f":"'Res-Appliance class'!$B45*'RES S curve-connect'!AF$3+'Res-Appliance class'!$C45*'RES S curve-connect'!AF$8+'Res-Appliance class'!$D45*'RES S curve-connect'!AF$13+'Res-Appliance class'!$E45*'RES S curve-connect'!AF$18","v":3899.3628923266097},{"$f":"'Res-Appliance class'!$B45*'RES S curve-connect'!AG$3+'Res-Appliance class'!$C45*'RES S curve-connect'!AG$8+'Res-Appliance class'!$D45*'RES S curve-connect'!AG$13+'Res-Appliance class'!$E45*'RES S curve-connect'!AG$18","v":4149.5767701738378},{"$f":"'Res-Appliance class'!$B45*'RES S curve-connect'!AH$3+'Res-Appliance class'!$C45*'RES S curve-connect'!AH$8+'Res-Appliance class'!$D45*'RES S curve-connect'!AH$13+'Res-Appliance class'!$E45*'RES S curve-connect'!AH$18","v":4501.7621264259742},{"$f":"'Res-Appliance class'!$B45*'RES S curve-connect'!AI$3+'Res-Appliance class'!$C45*'RES S curve-connect'!AI$8+'Res-Appliance class'!$D45*'RES S curve-connect'!AI$13+'Res-Appliance class'!$E45*'RES S curve-connect'!AI$18","v":4818.2576756778435},{"$f":"'Res-Appliance class'!$B45*'RES S curve-connect'!AJ$3+'Res-Appliance class'!$C45*'RES S curve-connect'!AJ$8+'Res-Appliance class'!$D45*'RES S curve-connect'!AJ$13+'Res-Appliance class'!$E45*'RES S curve-connect'!AJ$18","v":5103.9083278290409},{"$f":"'Res-Appliance class'!$B45*'RES S curve-connect'!AK$3+'Res-Appliance class'!$C45*'RES S curve-connect'!AK$8+'Res-Appliance class'!$D45*'RES S curve-connect'!AK$13+'Res-Appliance class'!$E45*'RES S curve-connect'!AK$18","v":5407.1638644862624},{"$f":"'Res-Appliance class'!$B45*'RES S curve-connect'!AL$3+'Res-Appliance class'!$C45*'RES S curve-connect'!AL$8+'Res-Appliance class'!$D45*'RES S curve-connect'!AL$13+'Res-Appliance class'!$E45*'RES S curve-connect'!AL$18","v":4357.6455081144532},{"$f":"'Res-Appliance class'!$B45*'RES S curve-connect'!AM$3+'Res-Appliance class'!$C45*'RES S curve-connect'!AM$8+'Res-Appliance class'!$D45*'RES S curve-connect'!AM$13+'Res-Appliance class'!$E45*'RES S curve-connect'!AM$18","v":4220.0636647288975},{"$f":"'Res-Appliance class'!$B45*'RES S curve-connect'!AN$3+'Res-Appliance class'!$C45*'RES S curve-connect'!AN$8+'Res-Appliance class'!$D45*'RES S curve-connect'!AN$13+'Res-Appliance class'!$E45*'RES S curve-connect'!AN$18","v":4507.001539015183},{"$f":"'Res-Appliance class'!$B45*'RES S curve-connect'!AO$3+'Res-Appliance class'!$C45*'RES S curve-connect'!AO$8+'Res-Appliance class'!$D45*'RES S curve-connect'!AO$13+'Res-Appliance class'!$E45*'RES S curve-connect'!AO$18","v":4858.1023937091059},{"$f":"'Res-Appliance class'!$B45*'RES S curve-connect'!AP$3+'Res-Appliance class'!$C45*'RES S curve-connect'!AP$8+'Res-Appliance class'!$D45*'RES S curve-connect'!AP$13+'Res-Appliance class'!$E45*'RES S curve-connect'!AP$18","v":5182.5564321977927},{"$f":"'Res-Appliance class'!$B45*'RES S curve-connect'!AQ$3+'Res-Appliance class'!$C45*'RES S curve-connect'!AQ$8+'Res-Appliance class'!$D45*'RES S curve-connect'!AQ$13+'Res-Appliance class'!$E45*'RES S curve-connect'!AQ$18","v":5531.7731027441059},{"$f":"'Res-Appliance class'!$B45*'RES S curve-connect'!AR$3+'Res-Appliance class'!$C45*'RES S curve-connect'!AR$8+'Res-Appliance class'!$D45*'RES S curve-connect'!AR$13+'Res-Appliance class'!$E45*'RES S curve-connect'!AR$18","v":5915.2752167628078},{"$f":"'Res-Appliance class'!$B45*'RES S curve-connect'!AS$3+'Res-Appliance class'!$C45*'RES S curve-connect'!AS$8+'Res-Appliance class'!$D45*'RES S curve-connect'!AS$13+'Res-Appliance class'!$E45*'RES S curve-connect'!AS$18","v":6345.6371394127355},{"$f":"'Res-Appliance class'!$B45*'RES S curve-connect'!AT$3+'Res-Appliance class'!$C45*'RES S curve-connect'!AT$8+'Res-Appliance class'!$D45*'RES S curve-connect'!AT$13+'Res-Appliance class'!$E45*'RES S curve-connect'!AT$18","v":6827.1068624024301},{"$f":"'Res-Appliance class'!$B45*'RES S curve-connect'!AU$3+'Res-Appliance class'!$C45*'RES S curve-connect'!AU$8+'Res-Appliance class'!$D45*'RES S curve-connect'!AU$13+'Res-Appliance class'!$E45*'RES S curve-connect'!AU$18","v":7384.026520288644},{"$f":"'Res-Appliance class'!$B45*'RES S curve-connect'!AV$3+'Res-Appliance class'!$C45*'RES S curve-connect'!AV$8+'Res-Appliance class'!$D45*'RES S curve-connect'!AV$13+'Res-Appliance class'!$E45*'RES S curve-connect'!AV$18","v":8019.393172780362},{"$f":"'Res-Appliance class'!$B45*'RES S curve-connect'!AW$3+'Res-Appliance class'!$C45*'RES S curve-connect'!AW$8+'Res-Appliance class'!$D45*'RES S curve-connect'!AW$13+'Res-Appliance class'!$E45*'RES S curve-connect'!AW$18","v":8749.7440812927289},{"$f":"'Res-Appliance class'!$B45*'RES S curve-connect'!AX$3+'Res-Appliance class'!$C45*'RES S curve-connect'!AX$8+'Res-Appliance class'!$D45*'RES S curve-connect'!AX$13+'Res-Appliance class'!$E45*'RES S curve-connect'!AX$18","v":9582.2594864631083},{"$f":"'Res-Appliance class'!$B45*'RES S curve-connect'!AY$3+'Res-Appliance class'!$C45*'RES S curve-connect'!AY$8+'Res-Appliance class'!$D45*'RES S curve-connect'!AY$13+'Res-Appliance class'!$E45*'RES S curve-connect'!AY$18","v":10542.817863358045},{"$f":"'Res-Appliance class'!$B45*'RES S curve-connect'!AZ$3+'Res-Appliance class'!$C45*'RES S curve-connect'!AZ$8+'Res-Appliance class'!$D45*'RES S curve-connect'!AZ$13+'Res-Appliance class'!$E45*'RES S curve-connect'!AZ$18","v":11641.082388221144},{"$f":"'Res-Appliance class'!$B45*'RES S curve-connect'!BA$3+'Res-Appliance class'!$C45*'RES S curve-connect'!BA$8+'Res-Appliance class'!$D45*'RES S curve-connect'!BA$13+'Res-Appliance class'!$E45*'RES S curve-connect'!BA$18","v":12913.114283145271},{"$f":"'Res-Appliance class'!$B45*'RES S curve-connect'!BB$3+'Res-Appliance class'!$C45*'RES S curve-connect'!BB$8+'Res-Appliance class'!$D45*'RES S curve-connect'!BB$13+'Res-Appliance class'!$E45*'RES S curve-connect'!BB$18","v":14399.501718495048},{"$f":"'Res-Appliance class'!$B45*'RES S curve-connect'!BC$3+'Res-Appliance class'!$C45*'RES S curve-connect'!BC$8+'Res-Appliance class'!$D45*'RES S curve-connect'!BC$13+'Res-Appliance class'!$E45*'RES S curve-connect'!BC$18","v":16172.082196127614},{"$f":"'Res-Appliance class'!$B45*'RES S curve-connect'!BD$3+'Res-Appliance class'!$C45*'RES S curve-connect'!BD$8+'Res-Appliance class'!$D45*'RES S curve-connect'!BD$13+'Res-Appliance class'!$E45*'RES S curve-connect'!BD$18","v":17882.744580735285},{"$f":"'Res-Appliance class'!$B45*'RES S curve-connect'!BE$3+'Res-Appliance class'!$C45*'RES S curve-connect'!BE$8+'Res-Appliance class'!$D45*'RES S curve-connect'!BE$13+'Res-Appliance class'!$E45*'RES S curve-connect'!BE$18","v":19446.526370216459},{"$f":"'Res-Appliance class'!$B45*'RES S curve-connect'!BF$3+'Res-Appliance class'!$C45*'RES S curve-connect'!BF$8+'Res-Appliance class'!$D45*'RES S curve-connect'!BF$13+'Res-Appliance class'!$E45*'RES S curve-connect'!BF$18","v":21046.502058960079},{"$f":"'Res-Appliance class'!$B45*'RES S curve-connect'!BG$3+'Res-Appliance class'!$C45*'RES S curve-connect'!BG$8+'Res-Appliance class'!$D45*'RES S curve-connect'!BG$13+'Res-Appliance class'!$E45*'RES S curve-connect'!BG$18","v":22857.061448549808},{"$f":"'Res-Appliance class'!$B45*'RES S curve-connect'!BH$3+'Res-Appliance class'!$C45*'RES S curve-connect'!BH$8+'Res-Appliance class'!$D45*'RES S curve-connect'!BH$13+'Res-Appliance class'!$E45*'RES S curve-connect'!BH$18","v":25006.448128876171},{"$f":"'Res-Appliance class'!$B45*'RES S curve-connect'!BI$3+'Res-Appliance class'!$C45*'RES S curve-connect'!BI$8+'Res-Appliance class'!$D45*'RES S curve-connect'!BI$13+'Res-Appliance class'!$E45*'RES S curve-connect'!BI$18","v":28120.748025613939},{"$f":"'Res-Appliance class'!$B45*'RES S curve-connect'!BJ$3+'Res-Appliance class'!$C45*'RES S curve-connect'!BJ$8+'Res-Appliance class'!$D45*'RES S curve-connect'!BJ$13+'Res-Appliance class'!$E45*'RES S curve-connect'!BJ$18","v":32682.592213150689},{"$f":"'Res-Appliance class'!$B45*'RES S curve-connect'!BK$3+'Res-Appliance class'!$C45*'RES S curve-connect'!BK$8+'Res-Appliance class'!$D45*'RES S curve-connect'!BK$13+'Res-Appliance class'!$E45*'RES S curve-connect'!BK$18","v":39416.106568392002},{"$f":"'Res-Appliance class'!$B45*'RES S curve-connect'!BL$3+'Res-Appliance class'!$C45*'RES S curve-connect'!BL$8+'Res-Appliance class'!$D45*'RES S curve-connect'!BL$13+'Res-Appliance class'!$E45*'RES S curve-connect'!BL$18","v":517.82099125488651},{"$f":"'Res-Appliance class'!$B45*'RES S curve-connect'!BM$3+'Res-Appliance class'!$C45*'RES S curve-connect'!BM$8+'Res-Appliance class'!$D45*'RES S curve-connect'!BM$13+'Res-Appliance class'!$E45*'RES S curve-connect'!BM$18","v":526.34836520527836},{"$f":"'Res-Appliance class'!$B45*'RES S curve-connect'!BN$3+'Res-Appliance class'!$C45*'RES S curve-connect'!BN$8+'Res-Appliance class'!$D45*'RES S curve-connect'!BN$13+'Res-Appliance class'!$E45*'RES S curve-connect'!BN$18","v":530.84166840201226},{"$f":"'Res-Appliance class'!$B45*'RES S curve-connect'!BO$3+'Res-Appliance class'!$C45*'RES S curve-connect'!BO$8+'Res-Appliance class'!$D45*'RES S curve-connect'!BO$13+'Res-Appliance class'!$E45*'RES S curve-connect'!BO$18","v":543.36759605894576},{"$f":"'Res-Appliance class'!$B45*'RES S curve-connect'!BP$3+'Res-Appliance class'!$C45*'RES S curve-connect'!BP$8+'Res-Appliance class'!$D45*'RES S curve-connect'!BP$13+'Res-Appliance class'!$E45*'RES S curve-connect'!BP$18","v":551.8595954506676},{"$f":"'Res-Appliance class'!$B45*'RES S curve-connect'!BQ$3+'Res-Appliance class'!$C45*'RES S curve-connect'!BQ$8+'Res-Appliance class'!$D45*'RES S curve-connect'!BQ$13+'Res-Appliance class'!$E45*'RES S curve-connect'!BQ$18","v":560.33994507331067},{"$f":"'Res-Appliance class'!$B45*'RES S curve-connect'!BR$3+'Res-Appliance class'!$C45*'RES S curve-connect'!BR$8+'Res-Appliance class'!$D45*'RES S curve-connect'!BR$13+'Res-Appliance class'!$E45*'RES S curve-connect'!BR$18","v":564.78650715254207},{"$f":"'Res-Appliance class'!$B45*'RES S curve-connect'!BS$3+'Res-Appliance class'!$C45*'RES S curve-connect'!BS$8+'Res-Appliance class'!$D45*'RES S curve-connect'!BS$13+'Res-Appliance class'!$E45*'RES S curve-connect'!BS$18","v":577.26597514113223},{"$f":"'Res-Appliance class'!$B45*'RES S curve-connect'!BT$3+'Res-Appliance class'!$C45*'RES S curve-connect'!BT$8+'Res-Appliance class'!$D45*'RES S curve-connect'!BT$13+'Res-Appliance class'!$E45*'RES S curve-connect'!BT$18","v":585.71179456370805},{"$f":"'Res-Appliance class'!$B45*'RES S curve-connect'!BU$3+'Res-Appliance class'!$C45*'RES S curve-connect'!BU$8+'Res-Appliance class'!$D45*'RES S curve-connect'!BU$13+'Res-Appliance class'!$E45*'RES S curve-connect'!BU$18","v":594.14624217749565},{"$f":"'Res-Appliance class'!$B45*'RES S curve-connect'!BV$3+'Res-Appliance class'!$C45*'RES S curve-connect'!BV$8+'Res-Appliance class'!$D45*'RES S curve-connect'!BV$13+'Res-Appliance class'!$E45*'RES S curve-connect'!BV$18","v":598.54717848022756},{"$f":"'Res-Appliance class'!$B45*'RES S curve-connect'!BW$3+'Res-Appliance class'!$C45*'RES S curve-connect'!BW$8+'Res-Appliance class'!$D45*'RES S curve-connect'!BW$13+'Res-Appliance class'!$E45*'RES S curve-connect'!BW$18","v":610.98129520765667},{"$f":"'Res-Appliance class'!$B45*'RES S curve-connect'!BX$3+'Res-Appliance class'!$C45*'RES S curve-connect'!BX$8+'Res-Appliance class'!$D45*'RES S curve-connect'!BX$13+'Res-Appliance class'!$E45*'RES S curve-connect'!BX$18","v":619.38203617823217},{"$f":"'Res-Appliance class'!$B45*'RES S curve-connect'!BY$3+'Res-Appliance class'!$C45*'RES S curve-connect'!BY$8+'Res-Appliance class'!$D45*'RES S curve-connect'!BY$13+'Res-Appliance class'!$E45*'RES S curve-connect'!BY$18","v":627.77167645377153},{"$f":"'Res-Appliance class'!$B45*'RES S curve-connect'!BZ$3+'Res-Appliance class'!$C45*'RES S curve-connect'!BZ$8+'Res-Appliance class'!$D45*'RES S curve-connect'!BZ$13+'Res-Appliance class'!$E45*'RES S curve-connect'!BZ$18","v":632.12807484730627},{"$f":"'Res-Appliance class'!$B45*'RES S curve-connect'!CA$3+'Res-Appliance class'!$C45*'RES S curve-connect'!CA$8+'Res-Appliance class'!$D45*'RES S curve-connect'!CA$13+'Res-Appliance class'!$E45*'RES S curve-connect'!CA$18","v":644.51792142052579},{"$f":"'Res-Appliance class'!$B45*'RES S curve-connect'!CB$3+'Res-Appliance class'!$C45*'RES S curve-connect'!CB$8+'Res-Appliance class'!$D45*'RES S curve-connect'!CB$13+'Res-Appliance class'!$E45*'RES S curve-connect'!CB$18","v":652.87465832837961},{"$f":"'Res-Appliance class'!$B45*'RES S curve-connect'!CC$3+'Res-Appliance class'!$C45*'RES S curve-connect'!CC$8+'Res-Appliance class'!$D45*'RES S curve-connect'!CC$13+'Res-Appliance class'!$E45*'RES S curve-connect'!CC$18","v":661.22055897968812},{"$f":"'Res-Appliance class'!$B45*'RES S curve-connect'!CD$3+'Res-Appliance class'!$C45*'RES S curve-connect'!CD$8+'Res-Appliance class'!$D45*'RES S curve-connect'!CD$13+'Res-Appliance class'!$E45*'RES S curve-connect'!CD$18","v":533.88611656845319}]
["Yarra Ranges (S)",null,{"$f":"'Res-Appliance class'!$B46*'RES S curve-connect'!C$3+'Res-Appliance class'!$C46*'RES S curve-connect'!C$8+'Res-Appliance class'!$D46*'RES S curve-connect'!C$13+'Res-Appliance class'!$E46*'RES S curve-connect'!C$18","v":-2709.6557837535765},{"$f":"'Res-Appliance class'!$B46*'RES S curve-connect'!D$3+'Res-Appliance class'!$C46*'RES S curve-connect'!D$8+'Res-Appliance class'!$D46*'RES S curve-connect'!D$13+'Res-Appliance class'!$E46*'RES S curve-connect'!D$18","v":-3361.9674674324096},{"$f":"'Res-Appliance class'!$B46*'RES S curve-connect'!E$3+'Res-Appliance class'!$C46*'RES S curve-connect'!E$8+'Res-Appliance class'!$D46*'RES S curve-connect'!E$13+'Res-Appliance class'!$E46*'RES S curve-connect'!E$18","v":-2741.6107275259037},{"$f":"'Res-Appliance class'!$B46*'RES S curve-connect'!F$3+'Res-Appliance class'!$C46*'RES S curve-connect'!F$8+'Res-Appliance class'!$D46*'RES S curve-connect'!F$13+'Res-Appliance class'!$E46*'RES S curve-connect'!F$18","v":-2544.546645776315},{"$f":"'Res-Appliance class'!$B46*'RES S curve-connect'!G$3+'Res-Appliance class'!$C46*'RES S curve-connect'!G$8+'Res-Appliance class'!$D46*'RES S curve-connect'!G$13+'Res-Appliance class'!$E46*'RES S curve-connect'!G$18","v":-3939.018095379121},{"$f":"'Res-Appliance class'!$B46*'RES S curve-connect'!H$3+'Res-Appliance class'!$C46*'RES S curve-connect'!H$8+'Res-Appliance class'!$D46*'RES S curve-connect'!H$13+'Res-Appliance class'!$E46*'RES S curve-connect'!H$18","v":-3966.719286304236},{"$f":"'Res-Appliance class'!$B46*'RES S curve-connect'!I$3+'Res-Appliance class'!$C46*'RES S curve-connect'!I$8+'Res-Appliance class'!$D46*'RES S curve-connect'!I$13+'Res-Appliance class'!$E46*'RES S curve-connect'!I$18","v":-3409.1004284401897},{"$f":"'Res-Appliance class'!$B46*'RES S curve-connect'!J$3+'Res-Appliance class'!$C46*'RES S curve-connect'!J$8+'Res-Appliance class'!$D46*'RES S curve-connect'!J$13+'Res-Appliance class'!$E46*'RES S curve-connect'!J$18","v":-3722.3230671154597},{"$f":"'Res-Appliance class'!$B46*'RES S curve-connect'!K$3+'Res-Appliance class'!$C46*'RES S curve-connect'!K$8+'Res-Appliance class'!$D46*'RES S curve-connect'!K$13+'Res-Appliance class'!$E46*'RES S curve-connect'!K$18","v":-2737.5596450722801},{"$f":"'Res-Appliance class'!$B46*'RES S curve-connect'!L$3+'Res-Appliance class'!$C46*'RES S curve-connect'!L$8+'Res-Appliance class'!$D46*'RES S curve-connect'!L$13+'Res-Appliance class'!$E46*'RES S curve-connect'!L$18","v":-3193.512096720397},{"$f":"'Res-Appliance class'!$B46*'RES S curve-connect'!M$3+'Res-Appliance class'!$C46*'RES S curve-connect'!M$8+'Res-Appliance class'!$D46*'RES S curve-connect'!M$13+'Res-Appliance class'!$E46*'RES S curve-connect'!M$18","v":-4023.6602559833163},{"$f":"'Res-Appliance class'!$B46*'RES S curve-connect'!N$3+'Res-Appliance class'!$C46*'RES S curve-connect'!N$8+'Res-Appliance class'!$D46*'RES S curve-connect'!N$13+'Res-Appliance class'!$E46*'RES S curve-connect'!N$18","v":-4110.4367461678776},{"$f":"'Res-Appliance class'!$B46*'RES S curve-connect'!O$3+'Res-Appliance class'!$C46*'RES S curve-connect'!O$8+'Res-Appliance class'!$D46*'RES S curve-connect'!O$13+'Res-Appliance class'!$E46*'RES S curve-connect'!O$18","v":-3402.8169839852171},{"$f":"'Res-Appliance class'!$B46*'RES S curve-connect'!P$3+'Res-Appliance class'!$C46*'RES S curve-connect'!P$8+'Res-Appliance class'!$D46*'RES S curve-connect'!P$13+'Res-Appliance class'!$E46*'RES S curve-connect'!P$18","v":-2840.0383579660902},{"$f":"'Res-Appliance class'!$B46*'RES S curve-connect'!Q$3+'Res-Appliance class'!$C46*'RES S curve-connect'!Q$8+'Res-Appliance class'!$D46*'RES S curve-connect'!Q$13+'Res-Appliance class'!$E46*'RES S curve-connect'!Q$18","v":-1984.6968386320739},{"$f":"'Res-Appliance class'!$B46*'RES S curve-connect'!R$3+'Res-Appliance class'!$C46*'RES S curve-connect'!R$8+'Res-Appliance class'!$D46*'RES S curve-connect'!R$13+'Res-Appliance class'!$E46*'RES S curve-connect'!R$18","v":-1503.7909962499298},{"$f":"'Res-Appliance class'!$B46*'RES S curve-connect'!S$3+'Res-Appliance class'!$C46*'RES S curve-connect'!S$8+'Res-Appliance class'!$D46*'RES S curve-connect'!S$13+'Res-Appliance class'!$E46*'RES S curve-connect'!S$18","v":-734.88143886345415},{"$f":"'Res-Appliance class'!$B46*'RES S curve-connect'!T$3+'Res-Appliance class'!$C46*'RES S curve-connect'!T$8+'Res-Appliance class'!$D46*'RES S curve-connect'!T$13+'Res-Appliance class'!$E46*'RES S curve-connect'!T$18","v":-317.86904377954841},{"$f":"'Res-Appliance class'!$B46*'RES S curve-connect'!U$3+'Res-Appliance class'!$C46*'RES S curve-connect'!U$8+'Res-Appliance class'!$D46*'RES S curve-connect'!U$13+'Res-Appliance class'!$E46*'RES S curve-connect'!U$18","v":157.19757739899345},{"$f":"'Res-Appliance class'!$B46*'RES S curve-connect'!V$3+'Res-Appliance class'!$C46*'RES S curve-connect'!V$8+'Res-Appliance class'!$D46*'RES S curve-connect'!V$13+'Res-Appliance class'!$E46*'RES S curve-connect'!V$18","v":477.48210966291037},{"$f":"'Res-Appliance class'!$B46*'RES S curve-connect'!W$3+'Res-Appliance class'!$C46*'RES S curve-connect'!W$8+'Res-Appliance class'!$D46*'RES S curve-connect'!W$13+'Res-Appliance class'!$E46*'RES S curve-connect'!W$18","v":725.20517292627846},{"$f":"'Res-Appliance class'!$B46*'RES S curve-connect'!X$3+'Res-Appliance class'!$C46*'RES S curve-connect'!X$8+'Res-Appliance class'!$D46*'RES S curve-connect'!X$13+'Res-Appliance class'!$E46*'RES S curve-connect'!X$18","v":1300.7829649410194},{"$f":"'Res-Appliance class'!$B46*'RES S curve-connect'!Y$3+'Res-Appliance class'!$C46*'RES S curve-connect'!Y$8+'Res-Appliance class'!$D46*'RES S curve-connect'!Y$13+'Res-Appliance class'!$E46*'RES S curve-connect'!Y$18","v":1882.9157745753571},{"$f":"'Res-Appliance class'!$B46*'RES S curve-connect'!Z$3+'Res-Appliance class'!$C46*'RES S curve-connect'!Z$8+'Res-Appliance class'!$D46*'RES S curve-connect'!Z$13+'Res-Appliance class'!$E46*'RES S curve-connect'!Z$18","v":2273.6420015161489},{"$f":"'Res-Appliance class'!$B46*'RES S curve-connect'!AA$3+'Res-Appliance class'!$C46*'RES S curve-connect'!AA$8+'Res-Appliance class'!$D46*'RES S curve-connect'!AA$13+'Res-Appliance class'!$E46*'RES S curve-connect'!AA$18","v":2664.0137049447699},{"$f":"'Res-Appliance class'!$B46*'RES S curve-connect'!AB$3+'Res-Appliance class'!$C46*'RES S curve-connect'!AB$8+'Res-Appliance class'!$D46*'RES S curve-connect'!AB$13+'Res-Appliance class'!$E46*'RES S curve-connect'!AB$18","v":2973.769223678727},{"$f":"'Res-Appliance class'!$B46*'RES S curve-connect'!AC$3+'Res-Appliance class'!$C46*'RES S curve-connect'!AC$8+'Res-Appliance class'!$D46*'RES S curve-connect'!AC$13+'Res-Appliance class'!$E46*'RES S curve-connect'!AC$18","v":3271.6242163734764},{"$f":"'Res-Appliance class'!$B46*'RES S curve-connect'!AD$3+'Res-Appliance class'!$C46*'RES S curve-connect'!AD$8+'Res-Appliance class'!$D46*'RES S curve-connect'!AD$13+'Res-Appliance class'!$E46*'RES S curve-connect'!AD$18","v":3544.0950042613986},{"$f":"'Res-Appliance class'!$B46*'RES S curve-connect'!AE$3+'Res-Appliance class'!$C46*'RES S curve-connect'!AE$8+'Res-Appliance class'!$D46*'RES S curve-connect'!AE$13+'Res-Appliance class'!$E46*'RES S curve-connect'!AE$18","v":3830.4113114660577},{"$f":"'Res-Appliance class'!$B46*'RES S curve-connect'!AF$3+'Res-Appliance class'!$C46*'RES S curve-connect'!AF$8+'Res-Appliance class'!$D46*'RES S curve-connect'!AF$13+'Res-Appliance class'!$E46*'RES S curve-connect'!AF$18","v":4204.453496537215},{"$f":"'Res-Appliance class'!$B46*'RES S curve-connect'!AG$3+'Res-Appliance class'!$C46*'RES S curve-connect'!AG$8+'Res-Appliance class'!$D46*'RES S curve-connect'!AG$13+'Res-Appliance class'!$E46*'RES S curve-connect'!AG$18","v":4468.1963793889672},{"$f":"'Res-Appliance class'!$B46*'RES S curve-connect'!AH$3+'Res-Appliance class'!$C46*'RES S curve-connect'!AH$8+'Res-Appliance class'!$D46*'RES S curve-connect'!AH$13+'Res-Appliance class'!$E46*'RES S curve-connect'!AH$18","v":4840.5887087103029},{"$f":"'Res-Appliance class'!$B46*'RES S curve-connect'!AI$3+'Res-Appliance class'!$C46*'RES S curve-connect'!AI$8+'Res-Appliance class'!$D46*'RES S curve-connect'!AI$13+'Res-Appliance class'!$E46*'RES S curve-connect'!AI$18","v":5174.1919176504352},{"$f":"'Res-Appliance class'!$B46*'RES S curve-connect'!AJ$3+'Res-Appliance class'!$C46*'RES S curve-connect'!AJ$8+'Res-Appliance class'!$D46*'RES S curve-connect'!AJ$13+'Res-Appliance class'!$E46*'RES S curve-connect'!AJ$18","v":5475.4983444871341},{"$f":"'Res-Appliance class'!$B46*'RES S curve-connect'!AK$3+'Res-Appliance class'!$C46*'RES S curve-connect'!AK$8+'Res-Appliance class'!$D46*'RES S curve-connect'!AK$13+'Res-Appliance class'!$E46*'RES S curve-connect'!AK$18","v":5795.3394365634713},{"$f":"'Res-Appliance class'!$B46*'RES S curve-connect'!AL$3+'Res-Appliance class'!$C46*'RES S curve-connect'!AL$8+'Res-Appliance class'!$D46*'RES S curve-connect'!AL$13+'Res-Appliance class'!$E46*'RES S curve-connect'!AL$18","v":4691.0984078877464},{"$f":"'Res-Appliance class'!$B46*'RES S curve-connect'!AM$3+'Res-Appliance class'!$C46*'RES S curve-connect'!AM$8+'Res-Appliance class'!$D46*'RES S curve-connect'!AM$13+'Res-Appliance class'!$E46*'RES S curve-connect'!AM$18","v":4544.7343498320952},{"$f":"'Res-Appliance class'!$B46*'RES S curve-connect'!AN$3+'Res-Appliance class'!$C46*'RES S curve-connect'!AN$8+'Res-Appliance class'!$D46*'RES S curve-connect'!AN$13+'Res-Appliance class'!$E46*'RES S curve-connect'!AN$18","v":4846.5516624060056},{"$f":"'Res-Appliance class'!$B46*'RES S curve-connect'!AO$3+'Res-Appliance class'!$C46*'RES S curve-connect'!AO$8+'Res-Appliance class'!$D46*'RES S curve-connect'!AO$13+'Res-Appliance class'!$E46*'RES S curve-connect'!AO$18","v":5216.6339650480759},{"$f":"'Res-Appliance class'!$B46*'RES S curve-connect'!AP$3+'Res-Appliance class'!$C46*'RES S curve-connect'!AP$8+'Res-Appliance class'!$D46*'RES S curve-connect'!AP$13+'Res-Appliance class'!$E46*'RES S curve-connect'!AP$18","v":5559.0816565584992},{"$f":"'Res-Appliance class'!$B46*'RES S curve-connect'!AQ$3+'Res-Appliance class'!$C46*'RES S curve-connect'!AQ$8+'Res-Appliance class'!$D46*'RES S curve-connect'!AQ$13+'Res-Appliance class'!$E46*'RES S curve-connect'!AQ$18","v":5927.2058663699863},{"$f":"'Res-Appliance class'!$B46*'RES S curve-connect'!AR$3+'Res-Appliance class'!$C46*'RES S curve-connect'!AR$8+'Res-Appliance class'!$D46*'RES S curve-connect'!AR$13+'Res-Appliance class'!$E46*'RES S curve-connect'!AR$18","v":6331.7440121725349},{"$f":"'Res-Appliance class'!$B46*'RES S curve-connect'!AS$3+'Res-Appliance class'!$C46*'RES S curve-connect'!AS$8+'Res-Appliance class'!$D46*'RES S curve-connect'!AS$13+'Res-Appliance class'!$E46*'RES S curve-connect'!AS$18","v":6785.7854782608974},{"$f":"'Res-Appliance class'!$B46*'RES S curve-connect'!AT$3+'Res-Appliance class'!$C46*'RES S curve-connect'!AT$8+'Res-Appliance class'!$D46*'RES S curve-connect'!AT$13+'Res-Appliance class'!$E46*'RES S curve-connect'!AT$18","v":7294.0608254817598},{"$f":"'Res-Appliance class'!$B46*'RES S curve-connect'!AU$3+'Res-Appliance class'!$C46*'RES S curve-connect'!AU$8+'Res-Appliance class'!$D46*'RES S curve-connect'!AU$13+'Res-Appliance class'!$E46*'RES S curve-connect'!AU$18","v":7881.6155219718657},{"$f":"'Res-Appliance class'!$B46*'RES S curve-connect'!AV$3+'Res-Appliance class'!$C46*'RES S curve-connect'!AV$8+'Res-Appliance class'!$D46*'RES S curve-connect'!AV$13+'Res-Appliance class'!$E46*'RES S curve-connect'!AV$18","v":8552.3212751101637},{"$f":"'Res-Appliance class'!$B46*'RES S curve-connect'!AW$3+'Res-Appliance class'!$C46*'RES S curve-connect'!AW$8+'Res-Appliance class'!$D46*'RES S curve-connect'!AW$13+'Res-Appliance class'!$E46*'RES S curve-connect'!AW$18","v":9323.4799653775917},{"$f":"'Res-Appliance class'!$B46*'RES S curve-connect'!AX$3+'Res-Appliance class'!$C46*'RES S curve-connect'!AX$8+'Res-Appliance class'!$D46*'RES S curve-connect'!AX$13+'Res-Appliance class'!$E46*'RES S curve-connect'!AX$18","v":10202.982682293303},{"$f":"'Res-Appliance class'!$B46*'RES S curve-connect'!AY$3+'Res-Appliance class'!$C46*'RES S curve-connect'!AY$8+'Res-Appliance class'!$D46*'RES S curve-connect'!AY$13+'Res-Appliance class'!$E46*'RES S curve-connect'!AY$18","v":11217.572483030805},{"$f":"'Res-Appliance class'!$B46*'RES S curve-connect'!AZ$3+'Res-Appliance class'!$C46*'RES S curve-connect'!AZ$8+'Res-Appliance class'!$D46*'RES S curve-connect'!AZ$13+'Res-Appliance class'!$E46*'RES S curve-connect'!AZ$18","v":12378.233997531423},{"$f":"'Res-Appliance class'!$B46*'RES S curve-connect'!BA$3+'Res-Appliance class'!$C46*'RES S curve-connect'!BA$8+'Res-Appliance class'!$D46*'RES S curve-connect'!BA$13+'Res-Appliance class'!$E46*'RES S curve-connect'!BA$18","v":13722.961140948593},{"$f":"'Res-Appliance class'!$B46*'RES S curve-connect'!BB$3+'Res-Appliance class'!$C46*'RES S curve-connect'!BB$8+'Res-Appliance class'!$D46*'RES S curve-connect'!BB$13+'Res-Appliance class'!$E46*'RES S curve-connect'!BB$18","v":15295.044360587244},{"$f":"'Res-Appliance class'!$B46*'RES S curve-connect'!BC$3+'Res-Appliance class'!$C46*'RES S curve-connect'!BC$8+'Res-Appliance class'!$D46*'RES S curve-connect'!BC$13+'Res-Appliance class'!$E46*'RES S curve-connect'!BC$18","v":17169.960757875029},{"$f":"'Res-Appliance class'!$B46*'RES S curve-connect'!BD$3+'Res-Appliance class'!$C46*'RES S curve-connect'!BD$8+'Res-Appliance class'!$D46*'RES S curve-connect'!BD$13+'Res-Appliance class'!$E46*'RES S curve-connect'!BD$18","v":18981.307847548749},{"$f":"'Res-Appliance class'!$B46*'RES S curve-connect'!BE$3+'Res-Appliance class'!$C46*'RES S curve-connect'!BE$8+'Res-Appliance class'!$D46*'RES S curve-connect'!BE$13+'Res-Appliance class'!$E46*'RES S curve-connect'!BE$18","v":20637.770292765636},{"$f":"'Res-Appliance class'!$B46*'RES S curve-connect'!BF$3+'Res-Appliance class'!$C46*'RES S curve-connect'!BF$8+'Res-Appliance class'!$D46*'RES S curve-connect'!BF$13+'Res-Appliance class'!$E46*'RES S curve-connect'!BF$18","v":22332.382174486927},{"$f":"'Res-Appliance class'!$B46*'RES S curve-connect'!BG$3+'Res-Appliance class'!$C46*'RES S curve-connect'!BG$8+'Res-Appliance class'!$D46*'RES S curve-connect'!BG$13+'Res-Appliance class'!$E46*'RES S curve-connect'!BG$18","v":24249.311763996378},{"$f":"'Res-Appliance class'!$B46*'RES S curve-connect'!BH$3+'Res-Appliance class'!$C46*'RES S curve-connect'!BH$8+'Res-Appliance class'!$D46*'RES S curve-connect'!BH$13+'Res-Appliance class'!$E46*'RES S curve-connect'!BH$18","v":26525.412953917137},{"$f":"'Res-Appliance class'!$B46*'RES S curve-connect'!BI$3+'Res-Appliance class'!$C46*'RES S curve-connect'!BI$8+'Res-Appliance class'!$D46*'RES S curve-connect'!BI$13+'Res-Appliance class'!$E46*'RES S curve-connect'!BI$18","v":29822.872458889509},{"$f":"'Res-Appliance class'!$B46*'RES S curve-connect'!BJ$3+'Res-Appliance class'!$C46*'RES S curve-connect'!BJ$8+'Res-Appliance class'!$D46*'RES S curve-connect'!BJ$13+'Res-Appliance class'!$E46*'RES S curve-connect'!BJ$18","v":34655.244096401715},{"$f":"'Res-Appliance class'!$B46*'RES S curve-connect'!BK$3+'Res-Appliance class'!$C46*'RES S curve-connect'!BK$8+'Res-Appliance class'!$D46*'RES S curve-connect'!BK$13+'Res-Appliance class'!$E46*'RES S curve-connect'!BK$18","v":41791.358231737679},{"$f":"'Res-Appliance class'!$B46*'RES S curve-connect'!BL$3+'Res-Appliance class'!$C46*'RES S curve-connect'!BL$8+'Res-Appliance class'!$D46*'RES S curve-connect'!BL$13+'Res-Appliance class'!$E46*'RES S curve-connect'!BL$18","v":647.80759359403237},{"$f":"'Res-Appliance class'!$B46*'RES S curve-connect'!BM$3+'Res-Appliance class'!$C46*'RES S curve-connect'!BM$8+'Res-Appliance class'!$D46*'RES S curve-connect'!BM$13+'Res-Appliance class'!$E46*'RES S curve-connect'!BM$18","v":656.79203070869062},{"$f":"'Res-Appliance class'!$B46*'RES S curve-connect'!BN$3+'Res-Appliance class'!$C46*'RES S curve-connect'!BN$8+'Res-Appliance class'!$D46*'RES S curve-connect'!BN$13+'Res-Appliance class'!$E46*'RES S curve-connect'!BN$18","v":661.74216301267938},{"$f":"'Res-Appliance class'!$B46*'RES S curve-connect'!BO$3+'Res-Appliance class'!$C46*'RES S curve-connect'!BO$8+'Res-Appliance class'!$D46*'RES S curve-connect'!BO$13+'Res-Appliance class'!$E46*'RES S curve-connect'!BO$18","v":674.72468677243819},{"$f":"'Res-Appliance class'!$B46*'RES S curve-connect'!BP$3+'Res-Appliance class'!$C46*'RES S curve-connect'!BP$8+'Res-Appliance class'!$D46*'RES S curve-connect'!BP$13+'Res-Appliance class'!$E46*'RES S curve-connect'!BP$18","v":683.67305030969203},{"$f":"'Res-Appliance class'!$B46*'RES S curve-connect'!BQ$3+'Res-Appliance class'!$C46*'RES S curve-connect'!BQ$8+'Res-Appliance class'!$D46*'RES S curve-connect'!BQ$13+'Res-Appliance class'!$E46*'RES S curve-connect'!BQ$18","v":692.60953316229734},{"$f":"'Res-Appliance class'!$B46*'RES S curve-connect'!BR$3+'Res-Appliance class'!$C46*'RES S curve-connect'!BR$8+'Res-Appliance class'!$D46*'RES S curve-connect'!BR$13+'Res-Appliance class'!$E46*'RES S curve-connect'!BR$18","v":697.51199859226108},{"$f":"'Res-Appliance class'!$B46*'RES S curve-connect'!BS$3+'Res-Appliance class'!$C46*'RES S curve-connect'!BS$8+'Res-Appliance class'!$D46*'RES S curve-connect'!BS$13+'Res-Appliance class'!$E46*'RES S curve-connect'!BS$18","v":710.44714108334142},{"$f":"'Res-Appliance class'!$B46*'RES S curve-connect'!BT$3+'Res-Appliance class'!$C46*'RES S curve-connect'!BT$8+'Res-Appliance class'!$D46*'RES S curve-connect'!BT$13+'Res-Appliance class'!$E46*'RES S curve-connect'!BT$18","v":719.34840718583177},{"$f":"'Res-Appliance class'!$B46*'RES S curve-connect'!BU$3+'Res-Appliance class'!$C46*'RES S curve-connect'!BU$8+'Res-Appliance class'!$D46*'RES S curve-connect'!BU$13+'Res-Appliance class'!$E46*'RES S curve-connect'!BU$18","v":728.23807467733354},{"$f":"'Res-Appliance class'!$B46*'RES S curve-connect'!BV$3+'Res-Appliance class'!$C46*'RES S curve-connect'!BV$8+'Res-Appliance class'!$D46*'RES S curve-connect'!BV$13+'Res-Appliance class'!$E46*'RES S curve-connect'!BV$18","v":733.09400507069302},{"$f":"'Res-Appliance class'!$B46*'RES S curve-connect'!BW$3+'Res-Appliance class'!$C46*'RES S curve-connect'!BW$8+'Res-Appliance class'!$D46*'RES S curve-connect'!BW$13+'Res-Appliance class'!$E46*'RES S curve-connect'!BW$18","v":745.982891111546},{"$f":"'Res-Appliance class'!$B46*'RES S curve-connect'!BX$3+'Res-Appliance class'!$C46*'RES S curve-connect'!BX$8+'Res-Appliance class'!$D46*'RES S curve-connect'!BX$13+'Res-Appliance class'!$E46*'RES S curve-connect'!BX$18","v":754.83817762302306},{"$f":"'Res-Appliance class'!$B46*'RES S curve-connect'!BY$3+'Res-Appliance class'!$C46*'RES S curve-connect'!BY$8+'Res-Appliance class'!$D46*'RES S curve-connect'!BY$13+'Res-Appliance class'!$E46*'RES S curve-connect'!BY$18","v":763.68214066645157},{"$f":"'Res-Appliance class'!$B46*'RES S curve-connect'!BZ$3+'Res-Appliance class'!$C46*'RES S curve-connect'!BZ$8+'Res-Appliance class'!$D46*'RES S curve-connect'!BZ$13+'Res-Appliance class'!$E46*'RES S curve-connect'!BZ$18","v":768.49264004923066},{"$f":"'Res-Appliance class'!$B46*'RES S curve-connect'!CA$3+'Res-Appliance class'!$C46*'RES S curve-connect'!CA$8+'Res-Appliance class'!$D46*'RES S curve-connect'!CA$13+'Res-Appliance class'!$E46*'RES S curve-connect'!CA$18","v":781.3363668223044},{"$f":"'Res-Appliance class'!$B46*'RES S curve-connect'!CB$3+'Res-Appliance class'!$C46*'RES S curve-connect'!CB$8+'Res-Appliance class'!$D46*'RES S curve-connect'!CB$13+'Res-Appliance class'!$E46*'RES S curve-connect'!CB$18","v":790.14676412479332},{"$f":"'Res-Appliance class'!$B46*'RES S curve-connect'!CC$3+'Res-Appliance class'!$C46*'RES S curve-connect'!CC$8+'Res-Appliance class'!$D46*'RES S curve-connect'!CC$13+'Res-Appliance class'!$E46*'RES S curve-connect'!CC$18","v":798.94610634463379},{"$f":"'Res-Appliance class'!$B46*'RES S curve-connect'!CD$3+'Res-Appliance class'!$C46*'RES S curve-connect'!CD$8+'Res-Appliance class'!$D46*'RES S curve-connect'!CD$13+'Res-Appliance class'!$E46*'RES S curve-connect'!CD$18","v":663.7039150529389}]
[]
["LGA Medium",2020,{"$f":"B215+1","v":2021},2022,2023,2024,2025,2026,2027,2028,2029,2030,2031,2032,2033,2034,2035,2036,2037,2038,2039,2040,2041,2042,2043,2044,2045,2046,2047,2048,2049,2050,2051,2052,2053,2054,2055,2056,2057,2058,2059,2060,2061,2062,2063,2064,2065,2066,2067,2068,2069,2070,2071,2072,2073,2074,2075,2076,2077,2078,2079,2080,2081,2082,2083,2084,{"$f":"BN215+1","v":2085},2086,2087,2088,2089,2090,2091,2092,2093,2094,2095,2096,2097,2098,2099,2100]
["Bass Coast (S)",null,{"$f":"'Res-Appliance class'!$B27*'RES S curve-connect'!C$4+'Res-Appliance class'!$C27*'RES S curve-connect'!C$9+'Res-Appliance class'!$D27*'RES S curve-connect'!C$14+'Res-Appliance class'!$E27*'RES S curve-connect'!C$19","v":-2259.98424126901},{"$f":"'Res-Appliance class'!$B27*'RES S curve-connect'!D$4+'Res-Appliance class'!$C27*'RES S curve-connect'!D$9+'Res-Appliance class'!$D27*'RES S curve-connect'!D$14+'Res-Appliance class'!$E27*'RES S curve-connect'!D$19","v":-2624.3670922664214},{"$f":"'Res-Appliance class'!$B27*'RES S curve-connect'!E$4+'Res-Appliance class'!$C27*'RES S curve-connect'!E$9+'Res-Appliance class'!$D27*'RES S curve-connect'!E$14+'Res-Appliance class'!$E27*'RES S curve-connect'!E$19","v":-2195.3227808834108},{"$f":"'Res-Appliance class'!$B27*'RES S curve-connect'!F$4+'Res-Appliance class'!$C27*'RES S curve-connect'!F$9+'Res-Appliance class'!$D27*'RES S curve-connect'!F$14+'Res-Appliance class'!$E27*'RES S curve-connect'!F$19","v":-2095.4377508224316},{"$f":"'Res-Appliance class'!$B27*'RES S curve-connect'!G$4+'Res-Appliance class'!$C27*'RES S curve-connect'!G$9+'Res-Appliance class'!$D27*'RES S curve-connect'!G$14+'Res-Appliance class'!$E27*'RES S curve-connect'!G$19","v":-2765.788349750736},{"$f":"'Res-Appliance class'!$B27*'RES S curve-connect'!H$4+'Res-Appliance class'!$C27*'RES S curve-connect'!H$9+'Res-Appliance class'!$D27*'RES S curve-connect'!H$14+'Res-Appliance class'!$E27*'RES S curve-connect'!H$19","v":-2812.2080544032788},{"$f":"'Res-Appliance class'!$B27*'RES S curve-connect'!I$4+'Res-Appliance class'!$C27*'RES S curve-connect'!I$9+'Res-Appliance class'!$D27*'RES S curve-connect'!I$14+'Res-Appliance class'!$E27*'RES S curve-connect'!I$19","v":-2518.480997816017},{"$f":"'Res-Appliance class'!$B27*'RES S curve-connect'!J$4+'Res-Appliance class'!$C27*'RES S curve-connect'!J$9+'Res-Appliance class'!$D27*'RES S curve-connect'!J$14+'Res-Appliance class'!$E27*'RES S curve-connect'!J$19","v":-2829.5285818750644},{"$f":"'Res-Appliance class'!$B27*'RES S curve-connect'!K$4+'Res-Appliance class'!$C27*'RES S curve-connect'!K$9+'Res-Appliance class'!$D27*'RES S curve-connect'!K$14+'Res-Appliance class'!$E27*'RES S curve-connect'!K$19","v":-2252.829602499618},{"$f":"'Res-Appliance class'!$B27*'RES S curve-connect'!L$4+'Res-Appliance class'!$C27*'RES S curve-connect'!L$9+'Res-Appliance class'!$D27*'RES S curve-connect'!L$14+'Res-Appliance class'!$E27*'RES S curve-connect'!L$19","v":-2497.4725639310136},{"$f":"'Res-Appliance class'!$B27*'RES S curve-connect'!M$4+'Res-Appliance class'!$C27*'RES S curve-connect'!M$9+'Res-Appliance class'!$D27*'RES S curve-connect'!M$14+'Res-Appliance class'!$E27*'RES S curve-connect'!M$19","v":-2909.0529961077091},{"$f":"'Res-Appliance class'!$B27*'RES S curve-connect'!N$4+'Res-Appliance class'!$C27*'RES S curve-connect'!N$9+'Res-Appliance class'!$D27*'RES S curve-connect'!N$14+'Res-Appliance class'!$E27*'RES S curve-connect'!N$19","v":-2945.675291636283},{"$f":"'Res-Appliance class'!$B27*'RES S curve-connect'!O$4+'Res-Appliance class'!$C27*'RES S curve-connect'!O$9+'Res-Appliance class'!$D27*'RES S curve-connect'!O$14+'Res-Appliance class'!$E27*'RES S curve-connect'!O$19","v":-2552.6352118764607},{"$f":"'Res-Appliance class'!$B27*'RES S curve-connect'!P$4+'Res-Appliance class'!$C27*'RES S curve-connect'!P$9+'Res-Appliance class'!$D27*'RES S curve-connect'!P$14+'Res-Appliance class'!$E27*'RES S curve-connect'!P$19","v":-2243.0986054771975},{"$f":"'Res-Appliance class'!$B27*'RES S curve-connect'!Q$4+'Res-Appliance class'!$C27*'RES S curve-connect'!Q$9+'Res-Appliance class'!$D27*'RES S curve-connect'!Q$14+'Res-Appliance class'!$E27*'RES S curve-connect'!Q$19","v":-1777.3350911934031},{"$f":"'Res-Appliance class'!$B27*'RES S curve-connect'!R$4+'Res-Appliance class'!$C27*'RES S curve-connect'!R$9+'Res-Appliance class'!$D27*'RES S curve-connect'!R$14+'Res-Appliance class'!$E27*'RES S curve-connect'!R$19","v":-1512.4659897720626},{"$f":"'Res-Appliance class'!$B27*'RES S curve-connect'!S$4+'Res-Appliance class'!$C27*'RES S curve-connect'!S$9+'Res-Appliance class'!$D27*'RES S curve-connect'!S$14+'Res-Appliance class'!$E27*'RES S curve-connect'!S$19","v":-1085.8565407692377},{"$f":"'Res-Appliance class'!$B27*'RES S curve-connect'!T$4+'Res-Appliance class'!$C27*'RES S curve-connect'!T$9+'Res-Appliance class'!$D27*'RES S curve-connect'!T$14+'Res-Appliance class'!$E27*'RES S curve-connect'!T$19","v":-868.09139123926991},{"$f":"'Res-Appliance class'!$B27*'RES S curve-connect'!U$4+'Res-Appliance class'!$C27*'RES S curve-connect'!U$9+'Res-Appliance class'!$D27*'RES S curve-connect'!U$14+'Res-Appliance class'!$E27*'RES S curve-connect'!U$19","v":-608.97227611068979},{"$f":"'Res-Appliance class'!$B27*'RES S curve-connect'!V$4+'Res-Appliance class'!$C27*'RES S curve-connect'!V$9+'Res-Appliance class'!$D27*'RES S curve-connect'!V$14+'Res-Appliance class'!$E27*'RES S curve-connect'!V$19","v":-427.40598031822242},{"$f":"'Res-Appliance class'!$B27*'RES S curve-connect'!W$4+'Res-Appliance class'!$C27*'RES S curve-connect'!W$9+'Res-Appliance class'!$D27*'RES S curve-connect'!W$14+'Res-Appliance class'!$E27*'RES S curve-connect'!W$19","v":-285.13538726890607},{"$f":"'Res-Appliance class'!$B27*'RES S curve-connect'!X$4+'Res-Appliance class'!$C27*'RES S curve-connect'!X$9+'Res-Appliance class'!$D27*'RES S curve-connect'!X$14+'Res-Appliance class'!$E27*'RES S curve-connect'!X$19","v":25.404408452774362},{"$f":"'Res-Appliance class'!$B27*'RES S curve-connect'!Y$4+'Res-Appliance class'!$C27*'RES S curve-connect'!Y$9+'Res-Appliance class'!$D27*'RES S curve-connect'!Y$14+'Res-Appliance class'!$E27*'RES S curve-connect'!Y$19","v":341.19038709279397},{"$f":"'Res-Appliance class'!$B27*'RES S curve-connect'!Z$4+'Res-Appliance class'!$C27*'RES S curve-connect'!Z$9+'Res-Appliance class'!$D27*'RES S curve-connect'!Z$14+'Res-Appliance class'!$E27*'RES S curve-connect'!Z$19","v":556.94523462995835},{"$f":"'Res-Appliance class'!$B27*'RES S curve-connect'!AA$4+'Res-Appliance class'!$C27*'RES S curve-connect'!AA$9+'Res-Appliance class'!$D27*'RES S curve-connect'!AA$14+'Res-Appliance class'!$E27*'RES S curve-connect'!AA$19","v":774.58859831350151},{"$f":"'Res-Appliance class'!$B27*'RES S curve-connect'!AB$4+'Res-Appliance class'!$C27*'RES S curve-connect'!AB$9+'Res-Appliance class'!$D27*'RES S curve-connect'!AB$14+'Res-Appliance class'!$E27*'RES S curve-connect'!AB$19","v":949.81867164387609},{"$f":"'Res-Appliance class'!$B27*'RES S curve-connect'!AC$4+'Res-Appliance class'!$C27*'RES S curve-connect'!AC$9+'Res-Appliance class'!$D27*'RES S curve-connect'!AC$14+'Res-Appliance class'!$E27*'RES S curve-connect'!AC$19","v":1119.9645637586343},{"$f":"'Res-Appliance class'!$B27*'RES S curve-connect'!AD$4+'Res-Appliance class'!$C27*'RES S curve-connect'!AD$9+'Res-Appliance class'!$D27*'RES S curve-connect'!AD$14+'Res-Appliance class'!$E27*'RES S curve-connect'!AD$19","v":1276.3521490690446},{"$f":"'Res-Appliance class'!$B27*'RES S curve-connect'!AE$4+'Res-Appliance class'!$C27*'RES S curve-connect'!AE$9+'Res-Appliance class'!$D27*'RES S curve-connect'!AE$14+'Res-Appliance class'!$E27*'RES S curve-connect'!AE$19","v":1443.195797801709},{"$f":"'Res-Appliance class'!$B27*'RES S curve-connect'!AF$4+'Res-Appliance class'!$C27*'RES S curve-connect'!AF$9+'Res-Appliance class'!$D27*'RES S curve-connect'!AF$14+'Res-Appliance class'!$E27*'RES S curve-connect'!AF$19","v":1654.771203986511},{"$f":"'Res-Appliance class'!$B27*'RES S curve-connect'!AG$4+'Res-Appliance class'!$C27*'RES S curve-connect'!AG$9+'Res-Appliance class'!$D27*'RES S curve-connect'!AG$14+'Res-Appliance class'!$E27*'RES S curve-connect'!AG$19","v":1799.2612370416446},{"$f":"'Res-Appliance class'!$B27*'RES S curve-connect'!AH$4+'Res-Appliance class'!$C27*'RES S curve-connect'!AH$9+'Res-Appliance class'!$D27*'RES S curve-connect'!AH$14+'Res-Appliance class'!$E27*'RES S curve-connect'!AH$19","v":1997.2628994559414},{"$f":"'Res-Appliance class'!$B27*'RES S curve-connect'!AI$4+'Res-Appliance class'!$C27*'RES S curve-connect'!AI$9+'Res-Appliance class'!$D27*'RES S curve-connect'!AI$14+'Res-Appliance class'!$E27*'RES S curve-connect'!AI$19","v":2180.0946436091754},{"$f":"'Res-Appliance class'!$B27*'RES S curve-connect'!AJ$4+'Res-Appliance class'!$C27*'RES S curve-connect'!AJ$9+'Res-Appliance class'!$D27*'RES S curve-connect'!AJ$14+'Res-Appliance class'!$E27*'RES S curve-connect'!AJ$19","v":2344.0890944254452},{"$f":"'Res-Appliance class'!$B27*'RES S curve-connect'!AK$4+'Res-Appliance class'!$C27*'RES S curve-connect'!AK$9+'Res-Appliance class'!$D27*'RES S curve-connect'!AK$14+'Res-Appliance class'!$E27*'RES S curve-connect'!AK$19","v":2518.3646696854589},{"$f":"'Res-Appliance class'!$B27*'RES S curve-connect'!AL$4+'Res-Appliance class'!$C27*'RES S curve-connect'!AL$9+'Res-Appliance class'!$D27*'RES S curve-connect'!AL$14+'Res-Appliance class'!$E27*'RES S curve-connect'!AL$19","v":1902.0738107143479},{"$f":"'Res-Appliance class'!$B27*'RES S curve-connect'!AM$4+'Res-Appliance class'!$C27*'RES S curve-connect'!AM$9+'Res-Appliance class'!$D27*'RES S curve-connect'!AM$14+'Res-Appliance class'!$E27*'RES S curve-connect'!AM$19","v":1828.668361122051},{"$f":"'Res-Appliance class'!$B27*'RES S curve-connect'!AN$4+'Res-Appliance class'!$C27*'RES S curve-connect'!AN$9+'Res-Appliance class'!$D27*'RES S curve-connect'!AN$14+'Res-Appliance class'!$E27*'RES S curve-connect'!AN$19","v":1997.3603875621197},{"$f":"'Res-Appliance class'!$B27*'RES S curve-connect'!AO$4+'Res-Appliance class'!$C27*'RES S curve-connect'!AO$9+'Res-Appliance class'!$D27*'RES S curve-connect'!AO$14+'Res-Appliance class'!$E27*'RES S curve-connect'!AO$19","v":2200.1901487136029},{"$f":"'Res-Appliance class'!$B27*'RES S curve-connect'!AP$4+'Res-Appliance class'!$C27*'RES S curve-connect'!AP$9+'Res-Appliance class'!$D27*'RES S curve-connect'!AP$14+'Res-Appliance class'!$E27*'RES S curve-connect'!AP$19","v":2385.5024459348174},{"$f":"'Res-Appliance class'!$B27*'RES S curve-connect'!AQ$4+'Res-Appliance class'!$C27*'RES S curve-connect'!AQ$9+'Res-Appliance class'!$D27*'RES S curve-connect'!AQ$14+'Res-Appliance class'!$E27*'RES S curve-connect'!AQ$19","v":2587.1144959373628},{"$f":"'Res-Appliance class'!$B27*'RES S curve-connect'!AR$4+'Res-Appliance class'!$C27*'RES S curve-connect'!AR$9+'Res-Appliance class'!$D27*'RES S curve-connect'!AR$14+'Res-Appliance class'!$E27*'RES S curve-connect'!AR$19","v":2807.2645280821125},{"$f":"'Res-Appliance class'!$B27*'RES S curve-connect'!AS$4+'Res-Appliance class'!$C27*'RES S curve-connect'!AS$9+'Res-Appliance class'!$D27*'RES S curve-connect'!AS$14+'Res-Appliance class'!$E27*'RES S curve-connect'!AS$19","v":3053.9910990437975},{"$f":"'Res-Appliance class'!$B27*'RES S curve-connect'!AT$4+'Res-Appliance class'!$C27*'RES S curve-connect'!AT$9+'Res-Appliance class'!$D27*'RES S curve-connect'!AT$14+'Res-Appliance class'!$E27*'RES S curve-connect'!AT$19","v":3328.5692548662191},{"$f":"'Res-Appliance class'!$B27*'RES S curve-connect'!AU$4+'Res-Appliance class'!$C27*'RES S curve-connect'!AU$9+'Res-Appliance class'!$D27*'RES S curve-connect'!AU$14+'Res-Appliance class'!$E27*'RES S curve-connect'!AU$19","v":3647.9314671239472},{"$f":"'Res-Appliance class'!$B27*'RES S curve-connect'!AV$4+'Res-Appliance class'!$C27*'RES S curve-connect'!AV$9+'Res-Appliance class'!$D27*'RES S curve-connect'!AV$14+'Res-Appliance class'!$E27*'RES S curve-connect'!AV$19","v":4010.4834675604757},{"$f":"'Res-Appliance class'!$B27*'RES S curve-connect'!AW$4+'Res-Appliance class'!$C27*'RES S curve-connect'!AW$9+'Res-Appliance class'!$D27*'RES S curve-connect'!AW$14+'Res-Appliance class'!$E27*'RES S curve-connect'!AW$19","v":4426.389714983804},{"$f":"'Res-Appliance class'!$B27*'RES S curve-connect'!AX$4+'Res-Appliance class'!$C27*'RES S curve-connect'!AX$9+'Res-Appliance class'!$D27*'RES S curve-connect'!AX$14+'Res-Appliance class'!$E27*'RES S curve-connect'!AX$19","v":4898.2947445837744},{"$f":"'Res-Appliance class'!$B27*'RES S curve-connect'!AY$4+'Res-Appliance class'!$C27*'RES S curve-connect'!AY$9+'Res-Appliance class'!$D27*'RES S curve-connect'!AY$14+'Res-Appliance class'!$E27*'RES S curve-connect'!AY$19","v":5443.6541593498177},{"$f":"'Res-Appliance class'!$B27*'RES S curve-connect'!AZ$4+'Res-Appliance class'!$C27*'RES S curve-connect'!AZ$9+'Res-Appliance class'!$D27*'RES S curve-connect'!AZ$14+'Res-Appliance class'!$E27*'RES S curve-connect'!AZ$19","v":6064.3239428316265},{"$f":"'Res-Appliance class'!$B27*'RES S curve-connect'!BA$4+'Res-Appliance class'!$C27*'RES S curve-connect'!BA$9+'Res-Appliance class'!$D27*'RES S curve-connect'!BA$14+'Res-Appliance class'!$E27*'RES S curve-connect'!BA$19","v":6781.2299219139732},{"$f":"'Res-Appliance class'!$B27*'RES S curve-connect'!BB$4+'Res-Appliance class'!$C27*'RES S curve-connect'!BB$9+'Res-Appliance class'!$D27*'RES S curve-connect'!BB$14+'Res-Appliance class'!$E27*'RES S curve-connect'!BB$19","v":7615.464716769},{"$f":"'Res-Appliance class'!$B27*'RES S curve-connect'!BC$4+'Res-Appliance class'!$C27*'RES S curve-connect'!BC$9+'Res-Appliance class'!$D27*'RES S curve-connect'!BC$14+'Res-Appliance class'!$E27*'RES S curve-connect'!BC$19","v":8609.697431713601},{"$f":"'Res-Appliance class'!$B27*'RES S curve-connect'!BD$4+'Res-Appliance class'!$C27*'RES S curve-connect'!BD$9+'Res-Appliance class'!$D27*'RES S curve-connect'!BD$14+'Res-Appliance class'!$E27*'RES S curve-connect'!BD$19","v":9560.2171850994928},{"$f":"'Res-Appliance class'!$B27*'RES S curve-connect'!BE$4+'Res-Appliance class'!$C27*'RES S curve-connect'!BE$9+'Res-Appliance class'!$D27*'RES S curve-connect'!BE$14+'Res-Appliance class'!$E27*'RES S curve-connect'!BE$19","v":10426.12139202941},{"$f":"'Res-Appliance class'!$B27*'RES S curve-connect'!BF$4+'Res-Appliance class'!$C27*'RES S curve-connect'!BF$9+'Res-Appliance class'!$D27*'RES S curve-connect'!BF$14+'Res-Appliance class'!$E27*'RES S curve-connect'!BF$19","v":11312.955894228351},{"$f":"'Res-Appliance class'!$B27*'RES S curve-connect'!BG$4+'Res-Appliance class'!$C27*'RES S curve-connect'!BG$9+'Res-Appliance class'!$D27*'RES S curve-connect'!BG$14+'Res-Appliance class'!$E27*'RES S curve-connect'!BG$19","v":12319.899493560415},{"$f":"'Res-Appliance class'!$B27*'RES S curve-connect'!BH$4+'Res-Appliance class'!$C27*'RES S curve-connect'!BH$9+'Res-Appliance class'!$D27*'RES S curve-connect'!BH$14+'Res-Appliance class'!$E27*'RES S curve-connect'!BH$19","v":13513.26043628534},{"$f":"'Res-Appliance class'!$B27*'RES S curve-connect'!BI$4+'Res-Appliance class'!$C27*'RES S curve-connect'!BI$9+'Res-Appliance class'!$D27*'RES S curve-connect'!BI$14+'Res-Appliance class'!$E27*'RES S curve-connect'!BI$19","v":15244.462454135843},{"$f":"'Res-Appliance class'!$B27*'RES S curve-connect'!BJ$4+'Res-Appliance class'!$C27*'RES S curve-connect'!BJ$9+'Res-Appliance class'!$D27*'RES S curve-connect'!BJ$14+'Res-Appliance class'!$E27*'RES S curve-connect'!BJ$19","v":17769.964636456811},{"$f":"'Res-Appliance class'!$B27*'RES S curve-connect'!BK$4+'Res-Appliance class'!$C27*'RES S curve-connect'!BK$9+'Res-Appliance class'!$D27*'RES S curve-connect'!BK$14+'Res-Appliance class'!$E27*'RES S curve-connect'!BK$19","v":21482.445852166536},{"$f":"'Res-Appliance class'!$B27*'RES S curve-connect'!BL$4+'Res-Appliance class'!$C27*'RES S curve-connect'!BL$9+'Res-Appliance class'!$D27*'RES S curve-connect'!BL$14+'Res-Appliance class'!$E27*'RES S curve-connect'!BL$19","v":-340.42659861824433},{"$f":"'Res-Appliance class'!$B27*'RES S curve-connect'!BM$4+'Res-Appliance class'!$C27*'RES S curve-connect'!BM$9+'Res-Appliance class'!$D27*'RES S curve-connect'!BM$14+'Res-Appliance class'!$E27*'RES S curve-connect'!BM$19","v":-335.59794605618379},{"$f":"'Res-Appliance class'!$B27*'RES S curve-connect'!BN$4+'Res-Appliance class'!$C27*'RES S curve-connect'!BN$9+'Res-Appliance class'!$D27*'RES S curve-connect'!BN$14+'Res-Appliance class'!$E27*'RES S curve-connect'!BN$19","v":-334.11759876342023},{"$f":"'Res-Appliance class'!$B27*'RES S curve-connect'!BO$4+'Res-Appliance class'!$C27*'RES S curve-connect'!BO$9+'Res-Appliance class'!$D27*'RES S curve-connect'!BO$14+'Res-Appliance class'!$E27*'RES S curve-connect'!BO$19","v":-325.96424865958045},{"$f":"'Res-Appliance class'!$B27*'RES S curve-connect'!BP$4+'Res-Appliance class'!$C27*'RES S curve-connect'!BP$9+'Res-Appliance class'!$D27*'RES S curve-connect'!BP$14+'Res-Appliance class'!$E27*'RES S curve-connect'!BP$19","v":-321.15910707261082},{"$f":"'Res-Appliance class'!$B27*'RES S curve-connect'!BQ$4+'Res-Appliance class'!$C27*'RES S curve-connect'!BQ$9+'Res-Appliance class'!$D27*'RES S curve-connect'!BQ$14+'Res-Appliance class'!$E27*'RES S curve-connect'!BQ$19","v":-316.36170623124735},{"$f":"'Res-Appliance class'!$B27*'RES S curve-connect'!BR$4+'Res-Appliance class'!$C27*'RES S curve-connect'!BR$9+'Res-Appliance class'!$D27*'RES S curve-connect'!BR$14+'Res-Appliance class'!$E27*'RES S curve-connect'!BR$19","v":-314.91241836645145},{"$f":"'Res-Appliance class'!$B27*'RES S curve-connect'!BS$4+'Res-Appliance class'!$C27*'RES S curve-connect'!BS$9+'Res-Appliance class'!$D27*'RES S curve-connect'!BS$14+'Res-Appliance class'!$E27*'RES S curve-connect'!BS$19","v":-306.78993660614253},{"$f":"'Res-Appliance class'!$B27*'RES S curve-connect'!BT$4+'Res-Appliance class'!$C27*'RES S curve-connect'!BT$9+'Res-Appliance class'!$D27*'RES S curve-connect'!BT$14+'Res-Appliance class'!$E27*'RES S curve-connect'!BT$19","v":-302.0154734788872},{"$f":"'Res-Appliance class'!$B27*'RES S curve-connect'!BU$4+'Res-Appliance class'!$C27*'RES S curve-connect'!BU$9+'Res-Appliance class'!$D27*'RES S curve-connect'!BU$14+'Res-Appliance class'!$E27*'RES S curve-connect'!BU$19","v":-297.24856240642475},{"$f":"'Res-Appliance class'!$B27*'RES S curve-connect'!BV$4+'Res-Appliance class'!$C27*'RES S curve-connect'!BV$9+'Res-Appliance class'!$D27*'RES S curve-connect'!BV$14+'Res-Appliance class'!$E27*'RES S curve-connect'!BV$19","v":-295.82957680515017},{"$f":"'Res-Appliance class'!$B27*'RES S curve-connect'!BW$4+'Res-Appliance class'!$C27*'RES S curve-connect'!BW$9+'Res-Appliance class'!$D27*'RES S curve-connect'!BW$14+'Res-Appliance class'!$E27*'RES S curve-connect'!BW$19","v":-287.73721098089004},{"$f":"'Res-Appliance class'!$B27*'RES S curve-connect'!BX$4+'Res-Appliance class'!$C27*'RES S curve-connect'!BX$9+'Res-Appliance class'!$D27*'RES S curve-connect'!BX$14+'Res-Appliance class'!$E27*'RES S curve-connect'!BX$19","v":-282.99267863264907},{"$f":"'Res-Appliance class'!$B27*'RES S curve-connect'!BY$4+'Res-Appliance class'!$C27*'RES S curve-connect'!BY$9+'Res-Appliance class'!$D27*'RES S curve-connect'!BY$14+'Res-Appliance class'!$E27*'RES S curve-connect'!BY$19","v":-278.25551434517502},{"$f":"'Res-Appliance class'!$B27*'RES S curve-connect'!BZ$4+'Res-Appliance class'!$C27*'RES S curve-connect'!BZ$9+'Res-Appliance class'!$D27*'RES S curve-connect'!BZ$14+'Res-Appliance class'!$E27*'RES S curve-connect'!BZ$19","v":-276.86609269049075},{"$f":"'Res-Appliance class'!$B27*'RES S curve-connect'!CA$4+'Res-Appliance class'!$C27*'RES S curve-connect'!CA$9+'Res-Appliance class'!$D27*'RES S curve-connect'!CA$14+'Res-Appliance class'!$E27*'RES S curve-connect'!CA$19","v":-268.80310912272103},{"$f":"'Res-Appliance class'!$B27*'RES S curve-connect'!CB$4+'Res-Appliance class'!$C27*'RES S curve-connect'!CB$9+'Res-Appliance class'!$D27*'RES S curve-connect'!CB$14+'Res-Appliance class'!$E27*'RES S curve-connect'!CB$19","v":-264.08777848187992},{"$f":"'Res-Appliance class'!$B27*'RES S curve-connect'!CC$4+'Res-Appliance class'!$C27*'RES S curve-connect'!CC$9+'Res-Appliance class'!$D27*'RES S curve-connect'!CC$14+'Res-Appliance class'!$E27*'RES S curve-connect'!CC$19","v":-259.37963648648838},{"$f":"'Res-Appliance class'!$B27*'RES S curve-connect'!CD$4+'Res-Appliance class'!$C27*'RES S curve-connect'!CD$9+'Res-Appliance class'!$D27*'RES S curve-connect'!CD$14+'Res-Appliance class'!$E27*'RES S curve-connect'!CD$19","v":-328.31812587600416}]
["Bayside (C)",null,{"$f":"'Res-Appliance class'!$B28*'RES S curve-connect'!C$4+'Res-Appliance class'!$C28*'RES S curve-connect'!C$9+'Res-Appliance class'!$D28*'RES S curve-connect'!C$14+'Res-Appliance class'!$E28*'RES S curve-connect'!C$19","v":-2909.9897415106389},{"$f":"'Res-Appliance class'!$B28*'RES S curve-connect'!D$4+'Res-Appliance class'!$C28*'RES S curve-connect'!D$9+'Res-Appliance class'!$D28*'RES S curve-connect'!D$14+'Res-Appliance class'!$E28*'RES S curve-connect'!D$19","v":-3419.1316271214268},{"$f":"'Res-Appliance class'!$B28*'RES S curve-connect'!E$4+'Res-Appliance class'!$C28*'RES S curve-connect'!E$9+'Res-Appliance class'!$D28*'RES S curve-connect'!E$14+'Res-Appliance class'!$E28*'RES S curve-connect'!E$19","v":-2713.1753584376615},{"$f":"'Res-Appliance class'!$B28*'RES S curve-connect'!F$4+'Res-Appliance class'!$C28*'RES S curve-connect'!F$9+'Res-Appliance class'!$D28*'RES S curve-connect'!F$14+'Res-Appliance class'!$E28*'RES S curve-connect'!F$19","v":-2561.2944107910043},{"$f":"'Res-Appliance class'!$B28*'RES S curve-connect'!G$4+'Res-Appliance class'!$C28*'RES S curve-connect'!G$9+'Res-Appliance class'!$D28*'RES S curve-connect'!G$14+'Res-Appliance class'!$E28*'RES S curve-connect'!G$19","v":-3760.0495109972376},{"$f":"'Res-Appliance class'!$B28*'RES S curve-connect'!H$4+'Res-Appliance class'!$C28*'RES S curve-connect'!H$9+'Res-Appliance class'!$D28*'RES S curve-connect'!H$14+'Res-Appliance class'!$E28*'RES S curve-connect'!H$19","v":-3789.7425333490455},{"$f":"'Res-Appliance class'!$B28*'RES S curve-connect'!I$4+'Res-Appliance class'!$C28*'RES S curve-connect'!I$9+'Res-Appliance class'!$D28*'RES S curve-connect'!I$14+'Res-Appliance class'!$E28*'RES S curve-connect'!I$19","v":-3358.7289006473029},{"$f":"'Res-Appliance class'!$B28*'RES S curve-connect'!J$4+'Res-Appliance class'!$C28*'RES S curve-connect'!J$9+'Res-Appliance class'!$D28*'RES S curve-connect'!J$14+'Res-Appliance class'!$E28*'RES S curve-connect'!J$19","v":-3692.1018463583778},{"$f":"'Res-Appliance class'!$B28*'RES S curve-connect'!K$4+'Res-Appliance class'!$C28*'RES S curve-connect'!K$9+'Res-Appliance class'!$D28*'RES S curve-connect'!K$14+'Res-Appliance class'!$E28*'RES S curve-connect'!K$19","v":-2880.2830913329071},{"$f":"'Res-Appliance class'!$B28*'RES S curve-connect'!L$4+'Res-Appliance class'!$C28*'RES S curve-connect'!L$9+'Res-Appliance class'!$D28*'RES S curve-connect'!L$14+'Res-Appliance class'!$E28*'RES S curve-connect'!L$19","v":-3226.2460709264724},{"$f":"'Res-Appliance class'!$B28*'RES S curve-connect'!M$4+'Res-Appliance class'!$C28*'RES S curve-connect'!M$9+'Res-Appliance class'!$D28*'RES S curve-connect'!M$14+'Res-Appliance class'!$E28*'RES S curve-connect'!M$19","v":-3854.4102921201875},{"$f":"'Res-Appliance class'!$B28*'RES S curve-connect'!N$4+'Res-Appliance class'!$C28*'RES S curve-connect'!N$9+'Res-Appliance class'!$D28*'RES S curve-connect'!N$14+'Res-Appliance class'!$E28*'RES S curve-connect'!N$19","v":-3911.817941704443},{"$f":"'Res-Appliance class'!$B28*'RES S curve-connect'!O$4+'Res-Appliance class'!$C28*'RES S curve-connect'!O$9+'Res-Appliance class'!$D28*'RES S curve-connect'!O$14+'Res-Appliance class'!$E28*'RES S curve-connect'!O$19","v":-3353.1052835314431},{"$f":"'Res-Appliance class'!$B28*'RES S curve-connect'!P$4+'Res-Appliance class'!$C28*'RES S curve-connect'!P$9+'Res-Appliance class'!$D28*'RES S curve-connect'!P$14+'Res-Appliance class'!$E28*'RES S curve-connect'!P$19","v":-2907.9296612858302},{"$f":"'Res-Appliance class'!$B28*'RES S curve-connect'!Q$4+'Res-Appliance class'!$C28*'RES S curve-connect'!Q$9+'Res-Appliance class'!$D28*'RES S curve-connect'!Q$14+'Res-Appliance class'!$E28*'RES S curve-connect'!Q$19","v":-2236.3044178777391},{"$f":"'Res-Appliance class'!$B28*'RES S curve-connect'!R$4+'Res-Appliance class'!$C28*'RES S curve-connect'!R$9+'Res-Appliance class'!$D28*'RES S curve-connect'!R$14+'Res-Appliance class'!$E28*'RES S curve-connect'!R$19","v":-1854.7786164562224},{"$f":"'Res-Appliance class'!$B28*'RES S curve-connect'!S$4+'Res-Appliance class'!$C28*'RES S curve-connect'!S$9+'Res-Appliance class'!$D28*'RES S curve-connect'!S$14+'Res-Appliance class'!$E28*'RES S curve-connect'!S$19","v":-1248.8631769701501},{"$f":"'Res-Appliance class'!$B28*'RES S curve-connect'!T$4+'Res-Appliance class'!$C28*'RES S curve-connect'!T$9+'Res-Appliance class'!$D28*'RES S curve-connect'!T$14+'Res-Appliance class'!$E28*'RES S curve-connect'!T$19","v":-919.27449926523684},{"$f":"'Res-Appliance class'!$B28*'RES S curve-connect'!U$4+'Res-Appliance class'!$C28*'RES S curve-connect'!U$9+'Res-Appliance class'!$D28*'RES S curve-connect'!U$14+'Res-Appliance class'!$E28*'RES S curve-connect'!U$19","v":-542.79210516569378},{"$f":"'Res-Appliance class'!$B28*'RES S curve-connect'!V$4+'Res-Appliance class'!$C28*'RES S curve-connect'!V$9+'Res-Appliance class'!$D28*'RES S curve-connect'!V$14+'Res-Appliance class'!$E28*'RES S curve-connect'!V$19","v":-285.12539487931957},{"$f":"'Res-Appliance class'!$B28*'RES S curve-connect'!W$4+'Res-Appliance class'!$C28*'RES S curve-connect'!W$9+'Res-Appliance class'!$D28*'RES S curve-connect'!W$14+'Res-Appliance class'!$E28*'RES S curve-connect'!W$19","v":-83.907888947767873},{"$f":"'Res-Appliance class'!$B28*'RES S curve-connect'!X$4+'Res-Appliance class'!$C28*'RES S curve-connect'!X$9+'Res-Appliance class'!$D28*'RES S curve-connect'!X$14+'Res-Appliance class'!$E28*'RES S curve-connect'!X$19","v":369.69064551446593},{"$f":"'Res-Appliance class'!$B28*'RES S curve-connect'!Y$4+'Res-Appliance class'!$C28*'RES S curve-connect'!Y$9+'Res-Appliance class'!$D28*'RES S curve-connect'!Y$14+'Res-Appliance class'!$E28*'RES S curve-connect'!Y$19","v":828.66316836790247},{"$f":"'Res-Appliance class'!$B28*'RES S curve-connect'!Z$4+'Res-Appliance class'!$C28*'RES S curve-connect'!Z$9+'Res-Appliance class'!$D28*'RES S curve-connect'!Z$14+'Res-Appliance class'!$E28*'RES S curve-connect'!Z$19","v":1139.8970911595077},{"$f":"'Res-Appliance class'!$B28*'RES S curve-connect'!AA$4+'Res-Appliance class'!$C28*'RES S curve-connect'!AA$9+'Res-Appliance class'!$D28*'RES S curve-connect'!AA$14+'Res-Appliance class'!$E28*'RES S curve-connect'!AA$19","v":1451.2202927997844},{"$f":"'Res-Appliance class'!$B28*'RES S curve-connect'!AB$4+'Res-Appliance class'!$C28*'RES S curve-connect'!AB$9+'Res-Appliance class'!$D28*'RES S curve-connect'!AB$14+'Res-Appliance class'!$E28*'RES S curve-connect'!AB$19","v":1700.1269433409518},{"$f":"'Res-Appliance class'!$B28*'RES S curve-connect'!AC$4+'Res-Appliance class'!$C28*'RES S curve-connect'!AC$9+'Res-Appliance class'!$D28*'RES S curve-connect'!AC$14+'Res-Appliance class'!$E28*'RES S curve-connect'!AC$19","v":1940.0287231952368},{"$f":"'Res-Appliance class'!$B28*'RES S curve-connect'!AD$4+'Res-Appliance class'!$C28*'RES S curve-connect'!AD$9+'Res-Appliance class'!$D28*'RES S curve-connect'!AD$14+'Res-Appliance class'!$E28*'RES S curve-connect'!AD$19","v":2160.2096890739276},{"$f":"'Res-Appliance class'!$B28*'RES S curve-connect'!AE$4+'Res-Appliance class'!$C28*'RES S curve-connect'!AE$9+'Res-Appliance class'!$D28*'RES S curve-connect'!AE$14+'Res-Appliance class'!$E28*'RES S curve-connect'!AE$19","v":2391.6533362415644},{"$f":"'Res-Appliance class'!$B28*'RES S curve-connect'!AF$4+'Res-Appliance class'!$C28*'RES S curve-connect'!AF$9+'Res-Appliance class'!$D28*'RES S curve-connect'!AF$14+'Res-Appliance class'!$E28*'RES S curve-connect'!AF$19","v":2690.5430435829503},{"$f":"'Res-Appliance class'!$B28*'RES S curve-connect'!AG$4+'Res-Appliance class'!$C28*'RES S curve-connect'!AG$9+'Res-Appliance class'!$D28*'RES S curve-connect'!AG$14+'Res-Appliance class'!$E28*'RES S curve-connect'!AG$19","v":2895.3532675935899},{"$f":"'Res-Appliance class'!$B28*'RES S curve-connect'!AH$4+'Res-Appliance class'!$C28*'RES S curve-connect'!AH$9+'Res-Appliance class'!$D28*'RES S curve-connect'!AH$14+'Res-Appliance class'!$E28*'RES S curve-connect'!AH$19","v":3183.3821891107546},{"$f":"'Res-Appliance class'!$B28*'RES S curve-connect'!AI$4+'Res-Appliance class'!$C28*'RES S curve-connect'!AI$9+'Res-Appliance class'!$D28*'RES S curve-connect'!AI$14+'Res-Appliance class'!$E28*'RES S curve-connect'!AI$19","v":3442.4524430394117},{"$f":"'Res-Appliance class'!$B28*'RES S curve-connect'!AJ$4+'Res-Appliance class'!$C28*'RES S curve-connect'!AJ$9+'Res-Appliance class'!$D28*'RES S curve-connect'!AJ$14+'Res-Appliance class'!$E28*'RES S curve-connect'!AJ$19","v":3676.2255132762261},{"$f":"'Res-Appliance class'!$B28*'RES S curve-connect'!AK$4+'Res-Appliance class'!$C28*'RES S curve-connect'!AK$9+'Res-Appliance class'!$D28*'RES S curve-connect'!AK$14+'Res-Appliance class'!$E28*'RES S curve-connect'!AK$19","v":3924.4150506266556},{"$f":"'Res-Appliance class'!$B28*'RES S curve-connect'!AL$4+'Res-Appliance class'!$C28*'RES S curve-connect'!AL$9+'Res-Appliance class'!$D28*'RES S curve-connect'!AL$14+'Res-Appliance class'!$E28*'RES S curve-connect'!AL$19","v":3064.8109940092791},{"$f":"'Res-Appliance class'!$B28*'RES S curve-connect'!AM$4+'Res-Appliance class'!$C28*'RES S curve-connect'!AM$9+'Res-Appliance class'!$D28*'RES S curve-connect'!AM$14+'Res-Appliance class'!$E28*'RES S curve-connect'!AM$19","v":2952.4650057854806},{"$f":"'Res-Appliance class'!$B28*'RES S curve-connect'!AN$4+'Res-Appliance class'!$C28*'RES S curve-connect'!AN$9+'Res-Appliance class'!$D28*'RES S curve-connect'!AN$14+'Res-Appliance class'!$E28*'RES S curve-connect'!AN$19","v":3187.4782791744506},{"$f":"'Res-Appliance class'!$B28*'RES S curve-connect'!AO$4+'Res-Appliance class'!$C28*'RES S curve-connect'!AO$9+'Res-Appliance class'!$D28*'RES S curve-connect'!AO$14+'Res-Appliance class'!$E28*'RES S curve-connect'!AO$19","v":3474.8768302389394},{"$f":"'Res-Appliance class'!$B28*'RES S curve-connect'!AP$4+'Res-Appliance class'!$C28*'RES S curve-connect'!AP$9+'Res-Appliance class'!$D28*'RES S curve-connect'!AP$14+'Res-Appliance class'!$E28*'RES S curve-connect'!AP$19","v":3740.3626444078427},{"$f":"'Res-Appliance class'!$B28*'RES S curve-connect'!AQ$4+'Res-Appliance class'!$C28*'RES S curve-connect'!AQ$9+'Res-Appliance class'!$D28*'RES S curve-connect'!AQ$14+'Res-Appliance class'!$E28*'RES S curve-connect'!AQ$19","v":4026.2128819024347},{"$f":"'Res-Appliance class'!$B28*'RES S curve-connect'!AR$4+'Res-Appliance class'!$C28*'RES S curve-connect'!AR$9+'Res-Appliance class'!$D28*'RES S curve-connect'!AR$14+'Res-Appliance class'!$E28*'RES S curve-connect'!AR$19","v":4340.0691513360371},{"$f":"'Res-Appliance class'!$B28*'RES S curve-connect'!AS$4+'Res-Appliance class'!$C28*'RES S curve-connect'!AS$9+'Res-Appliance class'!$D28*'RES S curve-connect'!AS$14+'Res-Appliance class'!$E28*'RES S curve-connect'!AS$19","v":4692.2611616268969},{"$f":"'Res-Appliance class'!$B28*'RES S curve-connect'!AT$4+'Res-Appliance class'!$C28*'RES S curve-connect'!AT$9+'Res-Appliance class'!$D28*'RES S curve-connect'!AT$14+'Res-Appliance class'!$E28*'RES S curve-connect'!AT$19","v":5086.2107519396759},{"$f":"'Res-Appliance class'!$B28*'RES S curve-connect'!AU$4+'Res-Appliance class'!$C28*'RES S curve-connect'!AU$9+'Res-Appliance class'!$D28*'RES S curve-connect'!AU$14+'Res-Appliance class'!$E28*'RES S curve-connect'!AU$19","v":5541.9792933921981},{"$f":"'Res-Appliance class'!$B28*'RES S curve-connect'!AV$4+'Res-Appliance class'!$C28*'RES S curve-connect'!AV$9+'Res-Appliance class'!$D28*'RES S curve-connect'!AV$14+'Res-Appliance class'!$E28*'RES S curve-connect'!AV$19","v":6061.86353577514},{"$f":"'Res-Appliance class'!$B28*'RES S curve-connect'!AW$4+'Res-Appliance class'!$C28*'RES S curve-connect'!AW$9+'Res-Appliance class'!$D28*'RES S curve-connect'!AW$14+'Res-Appliance class'!$E28*'RES S curve-connect'!AW$19","v":6659.4294757960624},{"$f":"'Res-Appliance class'!$B28*'RES S curve-connect'!AX$4+'Res-Appliance class'!$C28*'RES S curve-connect'!AX$9+'Res-Appliance class'!$D28*'RES S curve-connect'!AX$14+'Res-Appliance class'!$E28*'RES S curve-connect'!AX$19","v":7340.4839811128813},{"$f":"'Res-Appliance class'!$B28*'RES S curve-connect'!AY$4+'Res-Appliance class'!$C28*'RES S curve-connect'!AY$9+'Res-Appliance class'!$D28*'RES S curve-connect'!AY$14+'Res-Appliance class'!$E28*'RES S curve-connect'!AY$19","v":8126.3288943563593},{"$f":"'Res-Appliance class'!$B28*'RES S curve-connect'!AZ$4+'Res-Appliance class'!$C28*'RES S curve-connect'!AZ$9+'Res-Appliance class'!$D28*'RES S curve-connect'!AZ$14+'Res-Appliance class'!$E28*'RES S curve-connect'!AZ$19","v":9024.698906125881},{"$f":"'Res-Appliance class'!$B28*'RES S curve-connect'!BA$4+'Res-Appliance class'!$C28*'RES S curve-connect'!BA$9+'Res-Appliance class'!$D28*'RES S curve-connect'!BA$14+'Res-Appliance class'!$E28*'RES S curve-connect'!BA$19","v":10065.117747860739},{"$f":"'Res-Appliance class'!$B28*'RES S curve-connect'!BB$4+'Res-Appliance class'!$C28*'RES S curve-connect'!BB$9+'Res-Appliance class'!$D28*'RES S curve-connect'!BB$14+'Res-Appliance class'!$E28*'RES S curve-connect'!BB$19","v":11280.69956308373},{"$f":"'Res-Appliance class'!$B28*'RES S curve-connect'!BC$4+'Res-Appliance class'!$C28*'RES S curve-connect'!BC$9+'Res-Appliance class'!$D28*'RES S curve-connect'!BC$14+'Res-Appliance class'!$E28*'RES S curve-connect'!BC$19","v":12730.304811323234},{"$f":"'Res-Appliance class'!$B28*'RES S curve-connect'!BD$4+'Res-Appliance class'!$C28*'RES S curve-connect'!BD$9+'Res-Appliance class'!$D28*'RES S curve-connect'!BD$14+'Res-Appliance class'!$E28*'RES S curve-connect'!BD$19","v":14128.8505765795},{"$f":"'Res-Appliance class'!$B28*'RES S curve-connect'!BE$4+'Res-Appliance class'!$C28*'RES S curve-connect'!BE$9+'Res-Appliance class'!$D28*'RES S curve-connect'!BE$14+'Res-Appliance class'!$E28*'RES S curve-connect'!BE$19","v":15407.172662754325},{"$f":"'Res-Appliance class'!$B28*'RES S curve-connect'!BF$4+'Res-Appliance class'!$C28*'RES S curve-connect'!BF$9+'Res-Appliance class'!$D28*'RES S curve-connect'!BF$14+'Res-Appliance class'!$E28*'RES S curve-connect'!BF$19","v":16715.123754922141},{"$f":"'Res-Appliance class'!$B28*'RES S curve-connect'!BG$4+'Res-Appliance class'!$C28*'RES S curve-connect'!BG$9+'Res-Appliance class'!$D28*'RES S curve-connect'!BG$14+'Res-Appliance class'!$E28*'RES S curve-connect'!BG$19","v":18195.383770449524},{"$f":"'Res-Appliance class'!$B28*'RES S curve-connect'!BH$4+'Res-Appliance class'!$C28*'RES S curve-connect'!BH$9+'Res-Appliance class'!$D28*'RES S curve-connect'!BH$14+'Res-Appliance class'!$E28*'RES S curve-connect'!BH$19","v":19952.565290652412},{"$f":"'Res-Appliance class'!$B28*'RES S curve-connect'!BI$4+'Res-Appliance class'!$C28*'RES S curve-connect'!BI$9+'Res-Appliance class'!$D28*'RES S curve-connect'!BI$14+'Res-Appliance class'!$E28*'RES S curve-connect'!BI$19","v":22498.692273459554},{"$f":"'Res-Appliance class'!$B28*'RES S curve-connect'!BJ$4+'Res-Appliance class'!$C28*'RES S curve-connect'!BJ$9+'Res-Appliance class'!$D28*'RES S curve-connect'!BJ$14+'Res-Appliance class'!$E28*'RES S curve-connect'!BJ$19","v":26227.788656674114},{"$f":"'Res-Appliance class'!$B28*'RES S curve-connect'!BK$4+'Res-Appliance class'!$C28*'RES S curve-connect'!BK$9+'Res-Appliance class'!$D28*'RES S curve-connect'!BK$14+'Res-Appliance class'!$E28*'RES S curve-connect'!BK$19","v":31731.408489015928},{"$f":"'Res-Appliance class'!$B28*'RES S curve-connect'!BL$4+'Res-Appliance class'!$C28*'RES S curve-connect'!BL$9+'Res-Appliance class'!$D28*'RES S curve-connect'!BL$14+'Res-Appliance class'!$E28*'RES S curve-connect'!BL$19","v":-79.782761948090979},{"$f":"'Res-Appliance class'!$B28*'RES S curve-connect'!BM$4+'Res-Appliance class'!$C28*'RES S curve-connect'!BM$9+'Res-Appliance class'!$D28*'RES S curve-connect'!BM$14+'Res-Appliance class'!$E28*'RES S curve-connect'!BM$19","v":-72.814216632693103},{"$f":"'Res-Appliance class'!$B28*'RES S curve-connect'!BN$4+'Res-Appliance class'!$C28*'RES S curve-connect'!BN$9+'Res-Appliance class'!$D28*'RES S curve-connect'!BN$14+'Res-Appliance class'!$E28*'RES S curve-connect'!BN$19","v":-69.195789195034877},{"$f":"'Res-Appliance class'!$B28*'RES S curve-connect'!BO$4+'Res-Appliance class'!$C28*'RES S curve-connect'!BO$9+'Res-Appliance class'!$D28*'RES S curve-connect'!BO$14+'Res-Appliance class'!$E28*'RES S curve-connect'!BO$19","v":-58.90616167643617},{"$f":"'Res-Appliance class'!$B28*'RES S curve-connect'!BP$4+'Res-Appliance class'!$C28*'RES S curve-connect'!BP$9+'Res-Appliance class'!$D28*'RES S curve-connect'!BP$14+'Res-Appliance class'!$E28*'RES S curve-connect'!BP$19","v":-51.96653558476487},{"$f":"'Res-Appliance class'!$B28*'RES S curve-connect'!BQ$4+'Res-Appliance class'!$C28*'RES S curve-connect'!BQ$9+'Res-Appliance class'!$D28*'RES S curve-connect'!BQ$14+'Res-Appliance class'!$E28*'RES S curve-connect'!BQ$19","v":-45.036433386545298},{"$f":"'Res-Appliance class'!$B28*'RES S curve-connect'!BR$4+'Res-Appliance class'!$C28*'RES S curve-connect'!BR$9+'Res-Appliance class'!$D28*'RES S curve-connect'!BR$14+'Res-Appliance class'!$E28*'RES S curve-connect'!BR$19","v":-41.456217608040276},{"$f":"'Res-Appliance class'!$B28*'RES S curve-connect'!BS$4+'Res-Appliance class'!$C28*'RES S curve-connect'!BS$9+'Res-Appliance class'!$D28*'RES S curve-connect'!BS$14+'Res-Appliance class'!$E28*'RES S curve-connect'!BS$19","v":-31.204571729628526},{"$f":"'Res-Appliance class'!$B28*'RES S curve-connect'!BT$4+'Res-Appliance class'!$C28*'RES S curve-connect'!BT$9+'Res-Appliance class'!$D28*'RES S curve-connect'!BT$14+'Res-Appliance class'!$E28*'RES S curve-connect'!BT$19","v":-24.302698689143313},{"$f":"'Res-Appliance class'!$B28*'RES S curve-connect'!BU$4+'Res-Appliance class'!$C28*'RES S curve-connect'!BU$9+'Res-Appliance class'!$D28*'RES S curve-connect'!BU$14+'Res-Appliance class'!$E28*'RES S curve-connect'!BU$19","v":-17.410122374047205},{"$f":"'Res-Appliance class'!$B28*'RES S curve-connect'!BV$4+'Res-Appliance class'!$C28*'RES S curve-connect'!BV$9+'Res-Appliance class'!$D28*'RES S curve-connect'!BV$14+'Res-Appliance class'!$E28*'RES S curve-connect'!BV$19","v":-13.867206722571098},{"$f":"'Res-Appliance class'!$B28*'RES S curve-connect'!BW$4+'Res-Appliance class'!$C28*'RES S curve-connect'!BW$9+'Res-Appliance class'!$D28*'RES S curve-connect'!BW$14+'Res-Appliance class'!$E28*'RES S curve-connect'!BW$19","v":-3.6526366181416279},{"$f":"'Res-Appliance class'!$B28*'RES S curve-connect'!BX$4+'Res-Appliance class'!$C28*'RES S curve-connect'!BX$9+'Res-Appliance class'!$D28*'RES S curve-connect'!BX$14+'Res-Appliance class'!$E28*'RES S curve-connect'!BX$19","v":3.2123836072121321},{"$f":"'Res-Appliance class'!$B28*'RES S curve-connect'!BY$4+'Res-Appliance class'!$C28*'RES S curve-connect'!BY$9+'Res-Appliance class'!$D28*'RES S curve-connect'!BY$14+'Res-Appliance class'!$E28*'RES S curve-connect'!BY$19","v":10.068328680635943},{"$f":"'Res-Appliance class'!$B28*'RES S curve-connect'!BZ$4+'Res-Appliance class'!$C28*'RES S curve-connect'!BZ$9+'Res-Appliance class'!$D28*'RES S curve-connect'!BZ$14+'Res-Appliance class'!$E28*'RES S curve-connect'!BZ$19","v":13.574833287255899},{"$f":"'Res-Appliance class'!$B28*'RES S curve-connect'!CA$4+'Res-Appliance class'!$C28*'RES S curve-connect'!CA$9+'Res-Appliance class'!$D28*'RES S curve-connect'!CA$14+'Res-Appliance class'!$E28*'RES S curve-connect'!CA$19","v":23.753211175689557},{"$f":"'Res-Appliance class'!$B28*'RES S curve-connect'!CB$4+'Res-Appliance class'!$C28*'RES S curve-connect'!CB$9+'Res-Appliance class'!$D28*'RES S curve-connect'!CB$14+'Res-Appliance class'!$E28*'RES S curve-connect'!CB$19","v":30.582256654590253},{"$f":"'Res-Appliance class'!$B28*'RES S curve-connect'!CC$4+'Res-Appliance class'!$C28*'RES S curve-connect'!CC$9+'Res-Appliance class'!$D28*'RES S curve-connect'!CC$14+'Res-Appliance class'!$E28*'RES S curve-connect'!CC$19","v":37.4024431003632},{"$f":"'Res-Appliance class'!$B28*'RES S curve-connect'!CD$4+'Res-Appliance class'!$C28*'RES S curve-connect'!CD$9+'Res-Appliance class'!$D28*'RES S curve-connect'!CD$14+'Res-Appliance class'!$E28*'RES S curve-connect'!CD$19","v":-66.620807213185856}]
["Boroondara (C)",null,{"$f":"'Res-Appliance class'!$B29*'RES S curve-connect'!C$4+'Res-Appliance class'!$C29*'RES S curve-connect'!C$9+'Res-Appliance class'!$D29*'RES S curve-connect'!C$14+'Res-Appliance class'!$E29*'RES S curve-connect'!C$19","v":-2759.3469661653753},{"$f":"'Res-Appliance class'!$B29*'RES S curve-connect'!D$4+'Res-Appliance class'!$C29*'RES S curve-connect'!D$9+'Res-Appliance class'!$D29*'RES S curve-connect'!D$14+'Res-Appliance class'!$E29*'RES S curve-connect'!D$19","v":-3245.0298347355065},{"$f":"'Res-Appliance class'!$B29*'RES S curve-connect'!E$4+'Res-Appliance class'!$C29*'RES S curve-connect'!E$9+'Res-Appliance class'!$D29*'RES S curve-connect'!E$14+'Res-Appliance class'!$E29*'RES S curve-connect'!E$19","v":-2580.1502515168904},{"$f":"'Res-Appliance class'!$B29*'RES S curve-connect'!F$4+'Res-Appliance class'!$C29*'RES S curve-connect'!F$9+'Res-Appliance class'!$D29*'RES S curve-connect'!F$14+'Res-Appliance class'!$E29*'RES S curve-connect'!F$19","v":-2436.6197403900242},{"$f":"'Res-Appliance class'!$B29*'RES S curve-connect'!G$4+'Res-Appliance class'!$C29*'RES S curve-connect'!G$9+'Res-Appliance class'!$D29*'RES S curve-connect'!G$14+'Res-Appliance class'!$E29*'RES S curve-connect'!G$19","v":-3567.9479895993059},{"$f":"'Res-Appliance class'!$B29*'RES S curve-connect'!H$4+'Res-Appliance class'!$C29*'RES S curve-connect'!H$9+'Res-Appliance class'!$D29*'RES S curve-connect'!H$14+'Res-Appliance class'!$E29*'RES S curve-connect'!H$19","v":-3596.8391384898623},{"$f":"'Res-Appliance class'!$B29*'RES S curve-connect'!I$4+'Res-Appliance class'!$C29*'RES S curve-connect'!I$9+'Res-Appliance class'!$D29*'RES S curve-connect'!I$14+'Res-Appliance class'!$E29*'RES S curve-connect'!I$19","v":-3186.7082624482628},{"$f":"'Res-Appliance class'!$B29*'RES S curve-connect'!J$4+'Res-Appliance class'!$C29*'RES S curve-connect'!J$9+'Res-Appliance class'!$D29*'RES S curve-connect'!J$14+'Res-Appliance class'!$E29*'RES S curve-connect'!J$19","v":-3508.5201782545882},{"$f":"'Res-Appliance class'!$B29*'RES S curve-connect'!K$4+'Res-Appliance class'!$C29*'RES S curve-connect'!K$9+'Res-Appliance class'!$D29*'RES S curve-connect'!K$14+'Res-Appliance class'!$E29*'RES S curve-connect'!K$19","v":-2733.3916106417164},{"$f":"'Res-Appliance class'!$B29*'RES S curve-connect'!L$4+'Res-Appliance class'!$C29*'RES S curve-connect'!L$9+'Res-Appliance class'!$D29*'RES S curve-connect'!L$14+'Res-Appliance class'!$E29*'RES S curve-connect'!L$19","v":-3063.4093553623934},{"$f":"'Res-Appliance class'!$B29*'RES S curve-connect'!M$4+'Res-Appliance class'!$C29*'RES S curve-connect'!M$9+'Res-Appliance class'!$D29*'RES S curve-connect'!M$14+'Res-Appliance class'!$E29*'RES S curve-connect'!M$19","v":-3660.0696287027085},{"$f":"'Res-Appliance class'!$B29*'RES S curve-connect'!N$4+'Res-Appliance class'!$C29*'RES S curve-connect'!N$9+'Res-Appliance class'!$D29*'RES S curve-connect'!N$14+'Res-Appliance class'!$E29*'RES S curve-connect'!N$19","v":-3714.8065049515503},{"$f":"'Res-Appliance class'!$B29*'RES S curve-connect'!O$4+'Res-Appliance class'!$C29*'RES S curve-connect'!O$9+'Res-Appliance class'!$D29*'RES S curve-connect'!O$14+'Res-Appliance class'!$E29*'RES S curve-connect'!O$19","v":-3181.782490873115},{"$f":"'Res-Appliance class'!$B29*'RES S curve-connect'!P$4+'Res-Appliance class'!$C29*'RES S curve-connect'!P$9+'Res-Appliance class'!$D29*'RES S curve-connect'!P$14+'Res-Appliance class'!$E29*'RES S curve-connect'!P$19","v":-2757.4695684935623},{"$f":"'Res-Appliance class'!$B29*'RES S curve-connect'!Q$4+'Res-Appliance class'!$C29*'RES S curve-connect'!Q$9+'Res-Appliance class'!$D29*'RES S curve-connect'!Q$14+'Res-Appliance class'!$E29*'RES S curve-connect'!Q$19","v":-2117.3110893820158},{"$f":"'Res-Appliance class'!$B29*'RES S curve-connect'!R$4+'Res-Appliance class'!$C29*'RES S curve-connect'!R$9+'Res-Appliance class'!$D29*'RES S curve-connect'!R$14+'Res-Appliance class'!$E29*'RES S curve-connect'!R$19","v":-1753.7627728274174},{"$f":"'Res-Appliance class'!$B29*'RES S curve-connect'!S$4+'Res-Appliance class'!$C29*'RES S curve-connect'!S$9+'Res-Appliance class'!$D29*'RES S curve-connect'!S$14+'Res-Appliance class'!$E29*'RES S curve-connect'!S$19","v":-1175.2253158718661},{"$f":"'Res-Appliance class'!$B29*'RES S curve-connect'!T$4+'Res-Appliance class'!$C29*'RES S curve-connect'!T$9+'Res-Appliance class'!$D29*'RES S curve-connect'!T$14+'Res-Appliance class'!$E29*'RES S curve-connect'!T$19","v":-862.98280509865003},{"$f":"'Res-Appliance class'!$B29*'RES S curve-connect'!U$4+'Res-Appliance class'!$C29*'RES S curve-connect'!U$9+'Res-Appliance class'!$D29*'RES S curve-connect'!U$14+'Res-Appliance class'!$E29*'RES S curve-connect'!U$19","v":-504.71284956349336},{"$f":"'Res-Appliance class'!$B29*'RES S curve-connect'!V$4+'Res-Appliance class'!$C29*'RES S curve-connect'!V$9+'Res-Appliance class'!$D29*'RES S curve-connect'!V$14+'Res-Appliance class'!$E29*'RES S curve-connect'!V$19","v":-259.13830449893982},{"$f":"'Res-Appliance class'!$B29*'RES S curve-connect'!W$4+'Res-Appliance class'!$C29*'RES S curve-connect'!W$9+'Res-Appliance class'!$D29*'RES S curve-connect'!W$14+'Res-Appliance class'!$E29*'RES S curve-connect'!W$19","v":-67.226451988419228},{"$f":"'Res-Appliance class'!$B29*'RES S curve-connect'!X$4+'Res-Appliance class'!$C29*'RES S curve-connect'!X$9+'Res-Appliance class'!$D29*'RES S curve-connect'!X$14+'Res-Appliance class'!$E29*'RES S curve-connect'!X$19","v":364.50755359968196},{"$f":"'Res-Appliance class'!$B29*'RES S curve-connect'!Y$4+'Res-Appliance class'!$C29*'RES S curve-connect'!Y$9+'Res-Appliance class'!$D29*'RES S curve-connect'!Y$14+'Res-Appliance class'!$E29*'RES S curve-connect'!Y$19","v":801.59073886887506},{"$f":"'Res-Appliance class'!$B29*'RES S curve-connect'!Z$4+'Res-Appliance class'!$C29*'RES S curve-connect'!Z$9+'Res-Appliance class'!$D29*'RES S curve-connect'!Z$14+'Res-Appliance class'!$E29*'RES S curve-connect'!Z$19","v":1098.0516212498012},{"$f":"'Res-Appliance class'!$B29*'RES S curve-connect'!AA$4+'Res-Appliance class'!$C29*'RES S curve-connect'!AA$9+'Res-Appliance class'!$D29*'RES S curve-connect'!AA$14+'Res-Appliance class'!$E29*'RES S curve-connect'!AA$19","v":1394.8667285419713},{"$f":"'Res-Appliance class'!$B29*'RES S curve-connect'!AB$4+'Res-Appliance class'!$C29*'RES S curve-connect'!AB$9+'Res-Appliance class'!$D29*'RES S curve-connect'!AB$14+'Res-Appliance class'!$E29*'RES S curve-connect'!AB$19","v":1632.4205905782169},{"$f":"'Res-Appliance class'!$B29*'RES S curve-connect'!AC$4+'Res-Appliance class'!$C29*'RES S curve-connect'!AC$9+'Res-Appliance class'!$D29*'RES S curve-connect'!AC$14+'Res-Appliance class'!$E29*'RES S curve-connect'!AC$19","v":1861.5589258125176},{"$f":"'Res-Appliance class'!$B29*'RES S curve-connect'!AD$4+'Res-Appliance class'!$C29*'RES S curve-connect'!AD$9+'Res-Appliance class'!$D29*'RES S curve-connect'!AD$14+'Res-Appliance class'!$E29*'RES S curve-connect'!AD$19","v":2071.8707058356231},{"$f":"'Res-Appliance class'!$B29*'RES S curve-connect'!AE$4+'Res-Appliance class'!$C29*'RES S curve-connect'!AE$9+'Res-Appliance class'!$D29*'RES S curve-connect'!AE$14+'Res-Appliance class'!$E29*'RES S curve-connect'!AE$19","v":2293.3273611039417},{"$f":"'Res-Appliance class'!$B29*'RES S curve-connect'!AF$4+'Res-Appliance class'!$C29*'RES S curve-connect'!AF$9+'Res-Appliance class'!$D29*'RES S curve-connect'!AF$14+'Res-Appliance class'!$E29*'RES S curve-connect'!AF$19","v":2578.844116889441},{"$f":"'Res-Appliance class'!$B29*'RES S curve-connect'!AG$4+'Res-Appliance class'!$C29*'RES S curve-connect'!AG$9+'Res-Appliance class'!$D29*'RES S curve-connect'!AG$14+'Res-Appliance class'!$E29*'RES S curve-connect'!AG$19","v":2774.6291858093646},{"$f":"'Res-Appliance class'!$B29*'RES S curve-connect'!AH$4+'Res-Appliance class'!$C29*'RES S curve-connect'!AH$9+'Res-Appliance class'!$D29*'RES S curve-connect'!AH$14+'Res-Appliance class'!$E29*'RES S curve-connect'!AH$19","v":3049.1989534356244},{"$f":"'Res-Appliance class'!$B29*'RES S curve-connect'!AI$4+'Res-Appliance class'!$C29*'RES S curve-connect'!AI$9+'Res-Appliance class'!$D29*'RES S curve-connect'!AI$14+'Res-Appliance class'!$E29*'RES S curve-connect'!AI$19","v":3296.8683536863637},{"$f":"'Res-Appliance class'!$B29*'RES S curve-connect'!AJ$4+'Res-Appliance class'!$C29*'RES S curve-connect'!AJ$9+'Res-Appliance class'!$D29*'RES S curve-connect'!AJ$14+'Res-Appliance class'!$E29*'RES S curve-connect'!AJ$19","v":3520.2049446549872},{"$f":"'Res-Appliance class'!$B29*'RES S curve-connect'!AK$4+'Res-Appliance class'!$C29*'RES S curve-connect'!AK$9+'Res-Appliance class'!$D29*'RES S curve-connect'!AK$14+'Res-Appliance class'!$E29*'RES S curve-connect'!AK$19","v":3757.3409037722927},{"$f":"'Res-Appliance class'!$B29*'RES S curve-connect'!AL$4+'Res-Appliance class'!$C29*'RES S curve-connect'!AL$9+'Res-Appliance class'!$D29*'RES S curve-connect'!AL$14+'Res-Appliance class'!$E29*'RES S curve-connect'!AL$19","v":2934.0335808879572},{"$f":"'Res-Appliance class'!$B29*'RES S curve-connect'!AM$4+'Res-Appliance class'!$C29*'RES S curve-connect'!AM$9+'Res-Appliance class'!$D29*'RES S curve-connect'!AM$14+'Res-Appliance class'!$E29*'RES S curve-connect'!AM$19","v":2827.4792771185716},{"$f":"'Res-Appliance class'!$B29*'RES S curve-connect'!AN$4+'Res-Appliance class'!$C29*'RES S curve-connect'!AN$9+'Res-Appliance class'!$D29*'RES S curve-connect'!AN$14+'Res-Appliance class'!$E29*'RES S curve-connect'!AN$19","v":3052.5727341935944},{"$f":"'Res-Appliance class'!$B29*'RES S curve-connect'!AO$4+'Res-Appliance class'!$C29*'RES S curve-connect'!AO$9+'Res-Appliance class'!$D29*'RES S curve-connect'!AO$14+'Res-Appliance class'!$E29*'RES S curve-connect'!AO$19","v":3327.3279417750718},{"$f":"'Res-Appliance class'!$B29*'RES S curve-connect'!AP$4+'Res-Appliance class'!$C29*'RES S curve-connect'!AP$9+'Res-Appliance class'!$D29*'RES S curve-connect'!AP$14+'Res-Appliance class'!$E29*'RES S curve-connect'!AP$19","v":3580.8266105196872},{"$f":"'Res-Appliance class'!$B29*'RES S curve-connect'!AQ$4+'Res-Appliance class'!$C29*'RES S curve-connect'!AQ$9+'Res-Appliance class'!$D29*'RES S curve-connect'!AQ$14+'Res-Appliance class'!$E29*'RES S curve-connect'!AQ$19","v":3854.083146240836},{"$f":"'Res-Appliance class'!$B29*'RES S curve-connect'!AR$4+'Res-Appliance class'!$C29*'RES S curve-connect'!AR$9+'Res-Appliance class'!$D29*'RES S curve-connect'!AR$14+'Res-Appliance class'!$E29*'RES S curve-connect'!AR$19","v":4153.9326339671634},{"$f":"'Res-Appliance class'!$B29*'RES S curve-connect'!AS$4+'Res-Appliance class'!$C29*'RES S curve-connect'!AS$9+'Res-Appliance class'!$D29*'RES S curve-connect'!AS$14+'Res-Appliance class'!$E29*'RES S curve-connect'!AS$19","v":4490.3627982240605},{"$f":"'Res-Appliance class'!$B29*'RES S curve-connect'!AT$4+'Res-Appliance class'!$C29*'RES S curve-connect'!AT$9+'Res-Appliance class'!$D29*'RES S curve-connect'!AT$14+'Res-Appliance class'!$E29*'RES S curve-connect'!AT$19","v":4866.4750412119465},{"$f":"'Res-Appliance class'!$B29*'RES S curve-connect'!AU$4+'Res-Appliance class'!$C29*'RES S curve-connect'!AU$9+'Res-Appliance class'!$D29*'RES S curve-connect'!AU$14+'Res-Appliance class'!$E29*'RES S curve-connect'!AU$19","v":5301.8637053042812},{"$f":"'Res-Appliance class'!$B29*'RES S curve-connect'!AV$4+'Res-Appliance class'!$C29*'RES S curve-connect'!AV$9+'Res-Appliance class'!$D29*'RES S curve-connect'!AV$14+'Res-Appliance class'!$E29*'RES S curve-connect'!AV$19","v":5798.2447557422611},{"$f":"'Res-Appliance class'!$B29*'RES S curve-connect'!AW$4+'Res-Appliance class'!$C29*'RES S curve-connect'!AW$9+'Res-Appliance class'!$D29*'RES S curve-connect'!AW$14+'Res-Appliance class'!$E29*'RES S curve-connect'!AW$19","v":6368.6764657839594},{"$f":"'Res-Appliance class'!$B29*'RES S curve-connect'!AX$4+'Res-Appliance class'!$C29*'RES S curve-connect'!AX$9+'Res-Appliance class'!$D29*'RES S curve-connect'!AX$14+'Res-Appliance class'!$E29*'RES S curve-connect'!AX$19","v":7018.49368407567},{"$f":"'Res-Appliance class'!$B29*'RES S curve-connect'!AY$4+'Res-Appliance class'!$C29*'RES S curve-connect'!AY$9+'Res-Appliance class'!$D29*'RES S curve-connect'!AY$14+'Res-Appliance class'!$E29*'RES S curve-connect'!AY$19","v":7768.4241524601202},{"$f":"'Res-Appliance class'!$B29*'RES S curve-connect'!AZ$4+'Res-Appliance class'!$C29*'RES S curve-connect'!AZ$9+'Res-Appliance class'!$D29*'RES S curve-connect'!AZ$14+'Res-Appliance class'!$E29*'RES S curve-connect'!AZ$19","v":8625.3250893261957},{"$f":"'Res-Appliance class'!$B29*'RES S curve-connect'!BA$4+'Res-Appliance class'!$C29*'RES S curve-connect'!BA$9+'Res-Appliance class'!$D29*'RES S curve-connect'!BA$14+'Res-Appliance class'!$E29*'RES S curve-connect'!BA$19","v":9617.4368793405847},{"$f":"'Res-Appliance class'!$B29*'RES S curve-connect'!BB$4+'Res-Appliance class'!$C29*'RES S curve-connect'!BB$9+'Res-Appliance class'!$D29*'RES S curve-connect'!BB$14+'Res-Appliance class'!$E29*'RES S curve-connect'!BB$19","v":10776.079300917487},{"$f":"'Res-Appliance class'!$B29*'RES S curve-connect'!BC$4+'Res-Appliance class'!$C29*'RES S curve-connect'!BC$9+'Res-Appliance class'!$D29*'RES S curve-connect'!BC$14+'Res-Appliance class'!$E29*'RES S curve-connect'!BC$19","v":12157.696048416848},{"$f":"'Res-Appliance class'!$B29*'RES S curve-connect'!BD$4+'Res-Appliance class'!$C29*'RES S curve-connect'!BD$9+'Res-Appliance class'!$D29*'RES S curve-connect'!BD$14+'Res-Appliance class'!$E29*'RES S curve-connect'!BD$19","v":13489.350008694386},{"$f":"'Res-Appliance class'!$B29*'RES S curve-connect'!BE$4+'Res-Appliance class'!$C29*'RES S curve-connect'!BE$9+'Res-Appliance class'!$D29*'RES S curve-connect'!BE$14+'Res-Appliance class'!$E29*'RES S curve-connect'!BE$19","v":14706.095387127954},{"$f":"'Res-Appliance class'!$B29*'RES S curve-connect'!BF$4+'Res-Appliance class'!$C29*'RES S curve-connect'!BF$9+'Res-Appliance class'!$D29*'RES S curve-connect'!BF$14+'Res-Appliance class'!$E29*'RES S curve-connect'!BF$19","v":15951.171511967212},{"$f":"'Res-Appliance class'!$B29*'RES S curve-connect'!BG$4+'Res-Appliance class'!$C29*'RES S curve-connect'!BG$9+'Res-Appliance class'!$D29*'RES S curve-connect'!BG$14+'Res-Appliance class'!$E29*'RES S curve-connect'!BG$19","v":17360.765208816563},{"$f":"'Res-Appliance class'!$B29*'RES S curve-connect'!BH$4+'Res-Appliance class'!$C29*'RES S curve-connect'!BH$9+'Res-Appliance class'!$D29*'RES S curve-connect'!BH$14+'Res-Appliance class'!$E29*'RES S curve-connect'!BH$19","v":19033.771652347281},{"$f":"'Res-Appliance class'!$B29*'RES S curve-connect'!BI$4+'Res-Appliance class'!$C29*'RES S curve-connect'!BI$9+'Res-Appliance class'!$D29*'RES S curve-connect'!BI$14+'Res-Appliance class'!$E29*'RES S curve-connect'!BI$19","v":21458.243187624972},{"$f":"'Res-Appliance class'!$B29*'RES S curve-connect'!BJ$4+'Res-Appliance class'!$C29*'RES S curve-connect'!BJ$9+'Res-Appliance class'!$D29*'RES S curve-connect'!BJ$14+'Res-Appliance class'!$E29*'RES S curve-connect'!BJ$19","v":25007.670460636054},{"$f":"'Res-Appliance class'!$B29*'RES S curve-connect'!BK$4+'Res-Appliance class'!$C29*'RES S curve-connect'!BK$9+'Res-Appliance class'!$D29*'RES S curve-connect'!BK$14+'Res-Appliance class'!$E29*'RES S curve-connect'!BK$19","v":30243.922887049768},{"$f":"'Res-Appliance class'!$B29*'RES S curve-connect'!BL$4+'Res-Appliance class'!$C29*'RES S curve-connect'!BL$9+'Res-Appliance class'!$D29*'RES S curve-connect'!BL$14+'Res-Appliance class'!$E29*'RES S curve-connect'!BL$19","v":-76.402860375665199},{"$f":"'Res-Appliance class'!$B29*'RES S curve-connect'!BM$4+'Res-Appliance class'!$C29*'RES S curve-connect'!BM$9+'Res-Appliance class'!$D29*'RES S curve-connect'!BM$14+'Res-Appliance class'!$E29*'RES S curve-connect'!BM$19","v":-69.770814017888597},{"$f":"'Res-Appliance class'!$B29*'RES S curve-connect'!BN$4+'Res-Appliance class'!$C29*'RES S curve-connect'!BN$9+'Res-Appliance class'!$D29*'RES S curve-connect'!BN$14+'Res-Appliance class'!$E29*'RES S curve-connect'!BN$19","v":-66.488489167703136},{"$f":"'Res-Appliance class'!$B29*'RES S curve-connect'!BO$4+'Res-Appliance class'!$C29*'RES S curve-connect'!BO$9+'Res-Appliance class'!$D29*'RES S curve-connect'!BO$14+'Res-Appliance class'!$E29*'RES S curve-connect'!BO$19","v":-56.534570193729451},{"$f":"'Res-Appliance class'!$B29*'RES S curve-connect'!BP$4+'Res-Appliance class'!$C29*'RES S curve-connect'!BP$9+'Res-Appliance class'!$D29*'RES S curve-connect'!BP$14+'Res-Appliance class'!$E29*'RES S curve-connect'!BP$19","v":-49.930260916848454},{"$f":"'Res-Appliance class'!$B29*'RES S curve-connect'!BQ$4+'Res-Appliance class'!$C29*'RES S curve-connect'!BQ$9+'Res-Appliance class'!$D29*'RES S curve-connect'!BQ$14+'Res-Appliance class'!$E29*'RES S curve-connect'!BQ$19","v":-43.335086102400567},{"$f":"'Res-Appliance class'!$B29*'RES S curve-connect'!BR$4+'Res-Appliance class'!$C29*'RES S curve-connect'!BR$9+'Res-Appliance class'!$D29*'RES S curve-connect'!BR$14+'Res-Appliance class'!$E29*'RES S curve-connect'!BR$19","v":-40.089410561355464},{"$f":"'Res-Appliance class'!$B29*'RES S curve-connect'!BS$4+'Res-Appliance class'!$C29*'RES S curve-connect'!BS$9+'Res-Appliance class'!$D29*'RES S curve-connect'!BS$14+'Res-Appliance class'!$E29*'RES S curve-connect'!BS$19","v":-30.171920044779256},{"$f":"'Res-Appliance class'!$B29*'RES S curve-connect'!BT$4+'Res-Appliance class'!$C29*'RES S curve-connect'!BT$9+'Res-Appliance class'!$D29*'RES S curve-connect'!BT$14+'Res-Appliance class'!$E29*'RES S curve-connect'!BT$19","v":-23.603819747260616},{"$f":"'Res-Appliance class'!$B29*'RES S curve-connect'!BU$4+'Res-Appliance class'!$C29*'RES S curve-connect'!BU$9+'Res-Appliance class'!$D29*'RES S curve-connect'!BU$14+'Res-Appliance class'!$E29*'RES S curve-connect'!BU$19","v":-17.044635799172852},{"$f":"'Res-Appliance class'!$B29*'RES S curve-connect'!BV$4+'Res-Appliance class'!$C29*'RES S curve-connect'!BV$9+'Res-Appliance class'!$D29*'RES S curve-connect'!BV$14+'Res-Appliance class'!$E29*'RES S curve-connect'!BV$19","v":-13.834734367899955},{"$f":"'Res-Appliance class'!$B29*'RES S curve-connect'!BW$4+'Res-Appliance class'!$C29*'RES S curve-connect'!BW$9+'Res-Appliance class'!$D29*'RES S curve-connect'!BW$14+'Res-Appliance class'!$E29*'RES S curve-connect'!BW$19","v":-3.9528025523503629},{"$f":"'Res-Appliance class'!$B29*'RES S curve-connect'!BX$4+'Res-Appliance class'!$C29*'RES S curve-connect'!BX$9+'Res-Appliance class'!$D29*'RES S curve-connect'!BX$14+'Res-Appliance class'!$E29*'RES S curve-connect'!BX$19","v":2.57995311355063},{"$f":"'Res-Appliance class'!$B29*'RES S curve-connect'!BY$4+'Res-Appliance class'!$C29*'RES S curve-connect'!BY$9+'Res-Appliance class'!$D29*'RES S curve-connect'!BY$14+'Res-Appliance class'!$E29*'RES S curve-connect'!BY$19","v":9.1040051685529306},{"$f":"'Res-Appliance class'!$B29*'RES S curve-connect'!BZ$4+'Res-Appliance class'!$C29*'RES S curve-connect'!BZ$9+'Res-Appliance class'!$D29*'RES S curve-connect'!BZ$14+'Res-Appliance class'!$E29*'RES S curve-connect'!BZ$19","v":12.278986122802507},{"$f":"'Res-Appliance class'!$B29*'RES S curve-connect'!CA$4+'Res-Appliance class'!$C29*'RES S curve-connect'!CA$9+'Res-Appliance class'!$D29*'RES S curve-connect'!CA$14+'Res-Appliance class'!$E29*'RES S curve-connect'!CA$19","v":22.126207563268224},{"$f":"'Res-Appliance class'!$B29*'RES S curve-connect'!CB$4+'Res-Appliance class'!$C29*'RES S curve-connect'!CB$9+'Res-Appliance class'!$D29*'RES S curve-connect'!CB$14+'Res-Appliance class'!$E29*'RES S curve-connect'!CB$19","v":28.624461650202534},{"$f":"'Res-Appliance class'!$B29*'RES S curve-connect'!CC$4+'Res-Appliance class'!$C29*'RES S curve-connect'!CC$9+'Res-Appliance class'!$D29*'RES S curve-connect'!CC$14+'Res-Appliance class'!$E29*'RES S curve-connect'!CC$19","v":35.114219624774705},{"$f":"'Res-Appliance class'!$B29*'RES S curve-connect'!CD$4+'Res-Appliance class'!$C29*'RES S curve-connect'!CD$9+'Res-Appliance class'!$D29*'RES S curve-connect'!CD$14+'Res-Appliance class'!$E29*'RES S curve-connect'!CD$19","v":-63.687253378614287}]
["Cardinia (S)",null,{"$f":"'Res-Appliance class'!$B30*'RES S curve-connect'!C$4+'Res-Appliance class'!$C30*'RES S curve-connect'!C$9+'Res-Appliance class'!$D30*'RES S curve-connect'!C$14+'Res-Appliance class'!$E30*'RES S curve-connect'!C$19","v":-3045.0465903917839},{"$f":"'Res-Appliance class'!$B30*'RES S curve-connect'!D$4+'Res-Appliance class'!$C30*'RES S curve-connect'!D$9+'Res-Appliance class'!$D30*'RES S curve-connect'!D$14+'Res-Appliance class'!$E30*'RES S curve-connect'!D$19","v":-3593.5240165053779},{"$f":"'Res-Appliance class'!$B30*'RES S curve-connect'!E$4+'Res-Appliance class'!$C30*'RES S curve-connect'!E$9+'Res-Appliance class'!$D30*'RES S curve-connect'!E$14+'Res-Appliance class'!$E30*'RES S curve-connect'!E$19","v":-2809.7498488593164},{"$f":"'Res-Appliance class'!$B30*'RES S curve-connect'!F$4+'Res-Appliance class'!$C30*'RES S curve-connect'!F$9+'Res-Appliance class'!$D30*'RES S curve-connect'!F$14+'Res-Appliance class'!$E30*'RES S curve-connect'!F$19","v":-2643.6239098500232},{"$f":"'Res-Appliance class'!$B30*'RES S curve-connect'!G$4+'Res-Appliance class'!$C30*'RES S curve-connect'!G$9+'Res-Appliance class'!$D30*'RES S curve-connect'!G$14+'Res-Appliance class'!$E30*'RES S curve-connect'!G$19","v":-4000.4022328807005},{"$f":"'Res-Appliance class'!$B30*'RES S curve-connect'!H$4+'Res-Appliance class'!$C30*'RES S curve-connect'!H$9+'Res-Appliance class'!$D30*'RES S curve-connect'!H$14+'Res-Appliance class'!$E30*'RES S curve-connect'!H$19","v":-4026.5282836721162},{"$f":"'Res-Appliance class'!$B30*'RES S curve-connect'!I$4+'Res-Appliance class'!$C30*'RES S curve-connect'!I$9+'Res-Appliance class'!$D30*'RES S curve-connect'!I$14+'Res-Appliance class'!$E30*'RES S curve-connect'!I$19","v":-3556.2457731882523},{"$f":"'Res-Appliance class'!$B30*'RES S curve-connect'!J$4+'Res-Appliance class'!$C30*'RES S curve-connect'!J$9+'Res-Appliance class'!$D30*'RES S curve-connect'!J$14+'Res-Appliance class'!$E30*'RES S curve-connect'!J$19","v":-3886.7855752059704},{"$f":"'Res-Appliance class'!$B30*'RES S curve-connect'!K$4+'Res-Appliance class'!$C30*'RES S curve-connect'!K$9+'Res-Appliance class'!$D30*'RES S curve-connect'!K$14+'Res-Appliance class'!$E30*'RES S curve-connect'!K$19","v":-3007.7505527938856},{"$f":"'Res-Appliance class'!$B30*'RES S curve-connect'!L$4+'Res-Appliance class'!$C30*'RES S curve-connect'!L$9+'Res-Appliance class'!$D30*'RES S curve-connect'!L$14+'Res-Appliance class'!$E30*'RES S curve-connect'!L$19","v":-3381.6678809475525},{"$f":"'Res-Appliance class'!$B30*'RES S curve-connect'!M$4+'Res-Appliance class'!$C30*'RES S curve-connect'!M$9+'Res-Appliance class'!$D30*'RES S curve-connect'!M$14+'Res-Appliance class'!$E30*'RES S curve-connect'!M$19","v":-4073.5766379329934},{"$f":"'Res-Appliance class'!$B30*'RES S curve-connect'!N$4+'Res-Appliance class'!$C30*'RES S curve-connect'!N$9+'Res-Appliance class'!$D30*'RES S curve-connect'!N$14+'Res-Appliance class'!$E30*'RES S curve-connect'!N$19","v":-4137.3738297058035},{"$f":"'Res-Appliance class'!$B30*'RES S curve-connect'!O$4+'Res-Appliance class'!$C30*'RES S curve-connect'!O$9+'Res-Appliance class'!$D30*'RES S curve-connect'!O$14+'Res-Appliance class'!$E30*'RES S curve-connect'!O$19","v":-3531.7217236750562},{"$f":"'Res-Appliance class'!$B30*'RES S curve-connect'!P$4+'Res-Appliance class'!$C30*'RES S curve-connect'!P$9+'Res-Appliance class'!$D30*'RES S curve-connect'!P$14+'Res-Appliance class'!$E30*'RES S curve-connect'!P$19","v":-3047.8290825861195},{"$f":"'Res-Appliance class'!$B30*'RES S curve-connect'!Q$4+'Res-Appliance class'!$C30*'RES S curve-connect'!Q$9+'Res-Appliance class'!$D30*'RES S curve-connect'!Q$14+'Res-Appliance class'!$E30*'RES S curve-connect'!Q$19","v":-2317.2937457406915},{"$f":"'Res-Appliance class'!$B30*'RES S curve-connect'!R$4+'Res-Appliance class'!$C30*'RES S curve-connect'!R$9+'Res-Appliance class'!$D30*'RES S curve-connect'!R$14+'Res-Appliance class'!$E30*'RES S curve-connect'!R$19","v":-1902.4855314066576},{"$f":"'Res-Appliance class'!$B30*'RES S curve-connect'!S$4+'Res-Appliance class'!$C30*'RES S curve-connect'!S$9+'Res-Appliance class'!$D30*'RES S curve-connect'!S$14+'Res-Appliance class'!$E30*'RES S curve-connect'!S$19","v":-1245.1867967004828},{"$f":"'Res-Appliance class'!$B30*'RES S curve-connect'!T$4+'Res-Appliance class'!$C30*'RES S curve-connect'!T$9+'Res-Appliance class'!$D30*'RES S curve-connect'!T$14+'Res-Appliance class'!$E30*'RES S curve-connect'!T$19","v":-883.84910305668632},{"$f":"'Res-Appliance class'!$B30*'RES S curve-connect'!U$4+'Res-Appliance class'!$C30*'RES S curve-connect'!U$9+'Res-Appliance class'!$D30*'RES S curve-connect'!U$14+'Res-Appliance class'!$E30*'RES S curve-connect'!U$19","v":-474.06839965216085},{"$f":"'Res-Appliance class'!$B30*'RES S curve-connect'!V$4+'Res-Appliance class'!$C30*'RES S curve-connect'!V$9+'Res-Appliance class'!$D30*'RES S curve-connect'!V$14+'Res-Appliance class'!$E30*'RES S curve-connect'!V$19","v":-195.1291718911578},{"$f":"'Res-Appliance class'!$B30*'RES S curve-connect'!W$4+'Res-Appliance class'!$C30*'RES S curve-connect'!W$9+'Res-Appliance class'!$D30*'RES S curve-connect'!W$14+'Res-Appliance class'!$E30*'RES S curve-connect'!W$19","v":22.707342882807893},{"$f":"'Res-Appliance class'!$B30*'RES S curve-connect'!X$4+'Res-Appliance class'!$C30*'RES S curve-connect'!X$9+'Res-Appliance class'!$D30*'RES S curve-connect'!X$14+'Res-Appliance class'!$E30*'RES S curve-connect'!X$19","v":517.31606339080383},{"$f":"'Res-Appliance class'!$B30*'RES S curve-connect'!Y$4+'Res-Appliance class'!$C30*'RES S curve-connect'!Y$9+'Res-Appliance class'!$D30*'RES S curve-connect'!Y$14+'Res-Appliance class'!$E30*'RES S curve-connect'!Y$19","v":1017.3263983766616},{"$f":"'Res-Appliance class'!$B30*'RES S curve-connect'!Z$4+'Res-Appliance class'!$C30*'RES S curve-connect'!Z$9+'Res-Appliance class'!$D30*'RES S curve-connect'!Z$14+'Res-Appliance class'!$E30*'RES S curve-connect'!Z$19","v":1355.7517362469844},{"$f":"'Res-Appliance class'!$B30*'RES S curve-connect'!AA$4+'Res-Appliance class'!$C30*'RES S curve-connect'!AA$9+'Res-Appliance class'!$D30*'RES S curve-connect'!AA$14+'Res-Appliance class'!$E30*'RES S curve-connect'!AA$19","v":1693.7380456892804},{"$f":"'Res-Appliance class'!$B30*'RES S curve-connect'!AB$4+'Res-Appliance class'!$C30*'RES S curve-connect'!AB$9+'Res-Appliance class'!$D30*'RES S curve-connect'!AB$14+'Res-Appliance class'!$E30*'RES S curve-connect'!AB$19","v":1963.7467800501511},{"$f":"'Res-Appliance class'!$B30*'RES S curve-connect'!AC$4+'Res-Appliance class'!$C30*'RES S curve-connect'!AC$9+'Res-Appliance class'!$D30*'RES S curve-connect'!AC$14+'Res-Appliance class'!$E30*'RES S curve-connect'!AC$19","v":2223.6180567343417},{"$f":"'Res-Appliance class'!$B30*'RES S curve-connect'!AD$4+'Res-Appliance class'!$C30*'RES S curve-connect'!AD$9+'Res-Appliance class'!$D30*'RES S curve-connect'!AD$14+'Res-Appliance class'!$E30*'RES S curve-connect'!AD$19","v":2462.0438797677307},{"$f":"'Res-Appliance class'!$B30*'RES S curve-connect'!AE$4+'Res-Appliance class'!$C30*'RES S curve-connect'!AE$9+'Res-Appliance class'!$D30*'RES S curve-connect'!AE$14+'Res-Appliance class'!$E30*'RES S curve-connect'!AE$19","v":2711.9688579026583},{"$f":"'Res-Appliance class'!$B30*'RES S curve-connect'!AF$4+'Res-Appliance class'!$C30*'RES S curve-connect'!AF$9+'Res-Appliance class'!$D30*'RES S curve-connect'!AF$14+'Res-Appliance class'!$E30*'RES S curve-connect'!AF$19","v":3035.9337804427628},{"$f":"'Res-Appliance class'!$B30*'RES S curve-connect'!AG$4+'Res-Appliance class'!$C30*'RES S curve-connect'!AG$9+'Res-Appliance class'!$D30*'RES S curve-connect'!AG$14+'Res-Appliance class'!$E30*'RES S curve-connect'!AG$19","v":3258.2144285033728},{"$f":"'Res-Appliance class'!$B30*'RES S curve-connect'!AH$4+'Res-Appliance class'!$C30*'RES S curve-connect'!AH$9+'Res-Appliance class'!$D30*'RES S curve-connect'!AH$14+'Res-Appliance class'!$E30*'RES S curve-connect'!AH$19","v":3572.3310854713941},{"$f":"'Res-Appliance class'!$B30*'RES S curve-connect'!AI$4+'Res-Appliance class'!$C30*'RES S curve-connect'!AI$9+'Res-Appliance class'!$D30*'RES S curve-connect'!AI$14+'Res-Appliance class'!$E30*'RES S curve-connect'!AI$19","v":3853.4895474862587},{"$f":"'Res-Appliance class'!$B30*'RES S curve-connect'!AJ$4+'Res-Appliance class'!$C30*'RES S curve-connect'!AJ$9+'Res-Appliance class'!$D30*'RES S curve-connect'!AJ$14+'Res-Appliance class'!$E30*'RES S curve-connect'!AJ$19","v":4107.4771803943213},{"$f":"'Res-Appliance class'!$B30*'RES S curve-connect'!AK$4+'Res-Appliance class'!$C30*'RES S curve-connect'!AK$9+'Res-Appliance class'!$D30*'RES S curve-connect'!AK$14+'Res-Appliance class'!$E30*'RES S curve-connect'!AK$19","v":4377.0809945172023},{"$f":"'Res-Appliance class'!$B30*'RES S curve-connect'!AL$4+'Res-Appliance class'!$C30*'RES S curve-connect'!AL$9+'Res-Appliance class'!$D30*'RES S curve-connect'!AL$14+'Res-Appliance class'!$E30*'RES S curve-connect'!AL$19","v":3446.8732634973044},{"$f":"'Res-Appliance class'!$B30*'RES S curve-connect'!AM$4+'Res-Appliance class'!$C30*'RES S curve-connect'!AM$9+'Res-Appliance class'!$D30*'RES S curve-connect'!AM$14+'Res-Appliance class'!$E30*'RES S curve-connect'!AM$19","v":3323.2061778845969},{"$f":"'Res-Appliance class'!$B30*'RES S curve-connect'!AN$4+'Res-Appliance class'!$C30*'RES S curve-connect'!AN$9+'Res-Appliance class'!$D30*'RES S curve-connect'!AN$14+'Res-Appliance class'!$E30*'RES S curve-connect'!AN$19","v":3577.4318254350114},{"$f":"'Res-Appliance class'!$B30*'RES S curve-connect'!AO$4+'Res-Appliance class'!$C30*'RES S curve-connect'!AO$9+'Res-Appliance class'!$D30*'RES S curve-connect'!AO$14+'Res-Appliance class'!$E30*'RES S curve-connect'!AO$19","v":3889.3359880776757},{"$f":"'Res-Appliance class'!$B30*'RES S curve-connect'!AP$4+'Res-Appliance class'!$C30*'RES S curve-connect'!AP$9+'Res-Appliance class'!$D30*'RES S curve-connect'!AP$14+'Res-Appliance class'!$E30*'RES S curve-connect'!AP$19","v":4178.0526454800765},{"$f":"'Res-Appliance class'!$B30*'RES S curve-connect'!AQ$4+'Res-Appliance class'!$C30*'RES S curve-connect'!AQ$9+'Res-Appliance class'!$D30*'RES S curve-connect'!AQ$14+'Res-Appliance class'!$E30*'RES S curve-connect'!AQ$19","v":4488.3129337075979},{"$f":"'Res-Appliance class'!$B30*'RES S curve-connect'!AR$4+'Res-Appliance class'!$C30*'RES S curve-connect'!AR$9+'Res-Appliance class'!$D30*'RES S curve-connect'!AR$14+'Res-Appliance class'!$E30*'RES S curve-connect'!AR$19","v":4829.3258192211133},{"$f":"'Res-Appliance class'!$B30*'RES S curve-connect'!AS$4+'Res-Appliance class'!$C30*'RES S curve-connect'!AS$9+'Res-Appliance class'!$D30*'RES S curve-connect'!AS$14+'Res-Appliance class'!$E30*'RES S curve-connect'!AS$19","v":5212.0856046879735},{"$f":"'Res-Appliance class'!$B30*'RES S curve-connect'!AT$4+'Res-Appliance class'!$C30*'RES S curve-connect'!AT$9+'Res-Appliance class'!$D30*'RES S curve-connect'!AT$14+'Res-Appliance class'!$E30*'RES S curve-connect'!AT$19","v":5640.6368487589179},{"$f":"'Res-Appliance class'!$B30*'RES S curve-connect'!AU$4+'Res-Appliance class'!$C30*'RES S curve-connect'!AU$9+'Res-Appliance class'!$D30*'RES S curve-connect'!AU$14+'Res-Appliance class'!$E30*'RES S curve-connect'!AU$19","v":6135.9485217863903},{"$f":"'Res-Appliance class'!$B30*'RES S curve-connect'!AV$4+'Res-Appliance class'!$C30*'RES S curve-connect'!AV$9+'Res-Appliance class'!$D30*'RES S curve-connect'!AV$14+'Res-Appliance class'!$E30*'RES S curve-connect'!AV$19","v":6701.4460406191884},{"$f":"'Res-Appliance class'!$B30*'RES S curve-connect'!AW$4+'Res-Appliance class'!$C30*'RES S curve-connect'!AW$9+'Res-Appliance class'!$D30*'RES S curve-connect'!AW$14+'Res-Appliance class'!$E30*'RES S curve-connect'!AW$19","v":7351.6820854578737},{"$f":"'Res-Appliance class'!$B30*'RES S curve-connect'!AX$4+'Res-Appliance class'!$C30*'RES S curve-connect'!AX$9+'Res-Appliance class'!$D30*'RES S curve-connect'!AX$14+'Res-Appliance class'!$E30*'RES S curve-connect'!AX$19","v":8093.3808211086571},{"$f":"'Res-Appliance class'!$B30*'RES S curve-connect'!AY$4+'Res-Appliance class'!$C30*'RES S curve-connect'!AY$9+'Res-Appliance class'!$D30*'RES S curve-connect'!AY$14+'Res-Appliance class'!$E30*'RES S curve-connect'!AY$19","v":8948.9597684027976},{"$f":"'Res-Appliance class'!$B30*'RES S curve-connect'!AZ$4+'Res-Appliance class'!$C30*'RES S curve-connect'!AZ$9+'Res-Appliance class'!$D30*'RES S curve-connect'!AZ$14+'Res-Appliance class'!$E30*'RES S curve-connect'!AZ$19","v":9927.8588542404359},{"$f":"'Res-Appliance class'!$B30*'RES S curve-connect'!BA$4+'Res-Appliance class'!$C30*'RES S curve-connect'!BA$9+'Res-Appliance class'!$D30*'RES S curve-connect'!BA$14+'Res-Appliance class'!$E30*'RES S curve-connect'!BA$19","v":11062.095804352954},{"$f":"'Res-Appliance class'!$B30*'RES S curve-connect'!BB$4+'Res-Appliance class'!$C30*'RES S curve-connect'!BB$9+'Res-Appliance class'!$D30*'RES S curve-connect'!BB$14+'Res-Appliance class'!$E30*'RES S curve-connect'!BB$19","v":12388.271846124873},{"$f":"'Res-Appliance class'!$B30*'RES S curve-connect'!BC$4+'Res-Appliance class'!$C30*'RES S curve-connect'!BC$9+'Res-Appliance class'!$D30*'RES S curve-connect'!BC$14+'Res-Appliance class'!$E30*'RES S curve-connect'!BC$19","v":13969.944066639591},{"$f":"'Res-Appliance class'!$B30*'RES S curve-connect'!BD$4+'Res-Appliance class'!$C30*'RES S curve-connect'!BD$9+'Res-Appliance class'!$D30*'RES S curve-connect'!BD$14+'Res-Appliance class'!$E30*'RES S curve-connect'!BD$19","v":15498.425951974687},{"$f":"'Res-Appliance class'!$B30*'RES S curve-connect'!BE$4+'Res-Appliance class'!$C30*'RES S curve-connect'!BE$9+'Res-Appliance class'!$D30*'RES S curve-connect'!BE$14+'Res-Appliance class'!$E30*'RES S curve-connect'!BE$19","v":16896.355455676039},{"$f":"'Res-Appliance class'!$B30*'RES S curve-connect'!BF$4+'Res-Appliance class'!$C30*'RES S curve-connect'!BF$9+'Res-Appliance class'!$D30*'RES S curve-connect'!BF$14+'Res-Appliance class'!$E30*'RES S curve-connect'!BF$19","v":18326.437353804471},{"$f":"'Res-Appliance class'!$B30*'RES S curve-connect'!BG$4+'Res-Appliance class'!$C30*'RES S curve-connect'!BG$9+'Res-Appliance class'!$D30*'RES S curve-connect'!BG$14+'Res-Appliance class'!$E30*'RES S curve-connect'!BG$19","v":19943.969937134876},{"$f":"'Res-Appliance class'!$B30*'RES S curve-connect'!BH$4+'Res-Appliance class'!$C30*'RES S curve-connect'!BH$9+'Res-Appliance class'!$D30*'RES S curve-connect'!BH$14+'Res-Appliance class'!$E30*'RES S curve-connect'!BH$19","v":21864.67672959749},{"$f":"'Res-Appliance class'!$B30*'RES S curve-connect'!BI$4+'Res-Appliance class'!$C30*'RES S curve-connect'!BI$9+'Res-Appliance class'!$D30*'RES S curve-connect'!BI$14+'Res-Appliance class'!$E30*'RES S curve-connect'!BI$19","v":24647.167017272644},{"$f":"'Res-Appliance class'!$B30*'RES S curve-connect'!BJ$4+'Res-Appliance class'!$C30*'RES S curve-connect'!BJ$9+'Res-Appliance class'!$D30*'RES S curve-connect'!BJ$14+'Res-Appliance class'!$E30*'RES S curve-connect'!BJ$19","v":28725.368191014255},{"$f":"'Res-Appliance class'!$B30*'RES S curve-connect'!BK$4+'Res-Appliance class'!$C30*'RES S curve-connect'!BK$9+'Res-Appliance class'!$D30*'RES S curve-connect'!BK$14+'Res-Appliance class'!$E30*'RES S curve-connect'!BK$19","v":34748.522048627659},{"$f":"'Res-Appliance class'!$B30*'RES S curve-connect'!BL$4+'Res-Appliance class'!$C30*'RES S curve-connect'!BL$9+'Res-Appliance class'!$D30*'RES S curve-connect'!BL$14+'Res-Appliance class'!$E30*'RES S curve-connect'!BL$19","v":39.996177939159963},{"$f":"'Res-Appliance class'!$B30*'RES S curve-connect'!BM$4+'Res-Appliance class'!$C30*'RES S curve-connect'!BM$9+'Res-Appliance class'!$D30*'RES S curve-connect'!BM$14+'Res-Appliance class'!$E30*'RES S curve-connect'!BM$19","v":47.563940755014244},{"$f":"'Res-Appliance class'!$B30*'RES S curve-connect'!BN$4+'Res-Appliance class'!$C30*'RES S curve-connect'!BN$9+'Res-Appliance class'!$D30*'RES S curve-connect'!BN$14+'Res-Appliance class'!$E30*'RES S curve-connect'!BN$19","v":51.781204377907642},{"$f":"'Res-Appliance class'!$B30*'RES S curve-connect'!BO$4+'Res-Appliance class'!$C30*'RES S curve-connect'!BO$9+'Res-Appliance class'!$D30*'RES S curve-connect'!BO$14+'Res-Appliance class'!$E30*'RES S curve-connect'!BO$19","v":62.669288687434062},{"$f":"'Res-Appliance class'!$B30*'RES S curve-connect'!BP$4+'Res-Appliance class'!$C30*'RES S curve-connect'!BP$9+'Res-Appliance class'!$D30*'RES S curve-connect'!BP$14+'Res-Appliance class'!$E30*'RES S curve-connect'!BP$19","v":70.206994085851193},{"$f":"'Res-Appliance class'!$B30*'RES S curve-connect'!BQ$4+'Res-Appliance class'!$C30*'RES S curve-connect'!BQ$9+'Res-Appliance class'!$D30*'RES S curve-connect'!BQ$14+'Res-Appliance class'!$E30*'RES S curve-connect'!BQ$19","v":77.734800006037801},{"$f":"'Res-Appliance class'!$B30*'RES S curve-connect'!BR$4+'Res-Appliance class'!$C30*'RES S curve-connect'!BR$9+'Res-Appliance class'!$D30*'RES S curve-connect'!BR$14+'Res-Appliance class'!$E30*'RES S curve-connect'!BR$19","v":81.912345810476154},{"$f":"'Res-Appliance class'!$B30*'RES S curve-connect'!BS$4+'Res-Appliance class'!$C30*'RES S curve-connect'!BS$9+'Res-Appliance class'!$D30*'RES S curve-connect'!BS$14+'Res-Appliance class'!$E30*'RES S curve-connect'!BS$19","v":92.760949896937973},{"$f":"'Res-Appliance class'!$B30*'RES S curve-connect'!BT$4+'Res-Appliance class'!$C30*'RES S curve-connect'!BT$9+'Res-Appliance class'!$D30*'RES S curve-connect'!BT$14+'Res-Appliance class'!$E30*'RES S curve-connect'!BT$19","v":100.25941119520911},{"$f":"'Res-Appliance class'!$B30*'RES S curve-connect'!BU$4+'Res-Appliance class'!$C30*'RES S curve-connect'!BU$9+'Res-Appliance class'!$D30*'RES S curve-connect'!BU$14+'Res-Appliance class'!$E30*'RES S curve-connect'!BU$19","v":107.74820767497903},{"$f":"'Res-Appliance class'!$B30*'RES S curve-connect'!BV$4+'Res-Appliance class'!$C30*'RES S curve-connect'!BV$9+'Res-Appliance class'!$D30*'RES S curve-connect'!BV$14+'Res-Appliance class'!$E30*'RES S curve-connect'!BV$19","v":111.8869772447627},{"$f":"'Res-Appliance class'!$B30*'RES S curve-connect'!BW$4+'Res-Appliance class'!$C30*'RES S curve-connect'!BW$9+'Res-Appliance class'!$D30*'RES S curve-connect'!BW$14+'Res-Appliance class'!$E30*'RES S curve-connect'!BW$19","v":122.69703685753717},{"$f":"'Res-Appliance class'!$B30*'RES S curve-connect'!BX$4+'Res-Appliance class'!$C30*'RES S curve-connect'!BX$9+'Res-Appliance class'!$D30*'RES S curve-connect'!BX$14+'Res-Appliance class'!$E30*'RES S curve-connect'!BX$19","v":130.15718400739541},{"$f":"'Res-Appliance class'!$B30*'RES S curve-connect'!BY$4+'Res-Appliance class'!$C30*'RES S curve-connect'!BY$9+'Res-Appliance class'!$D30*'RES S curve-connect'!BY$14+'Res-Appliance class'!$E30*'RES S curve-connect'!BY$19","v":137.60789523738612},{"$f":"'Res-Appliance class'!$B30*'RES S curve-connect'!BZ$4+'Res-Appliance class'!$C30*'RES S curve-connect'!BZ$9+'Res-Appliance class'!$D30*'RES S curve-connect'!BZ$14+'Res-Appliance class'!$E30*'RES S curve-connect'!BZ$19","v":141.70880703837969},{"$f":"'Res-Appliance class'!$B30*'RES S curve-connect'!CA$4+'Res-Appliance class'!$C30*'RES S curve-connect'!CA$9+'Res-Appliance class'!$D30*'RES S curve-connect'!CA$14+'Res-Appliance class'!$E30*'RES S curve-connect'!CA$19","v":152.481234954641},{"$f":"'Res-Appliance class'!$B30*'RES S curve-connect'!CB$4+'Res-Appliance class'!$C30*'RES S curve-connect'!CB$9+'Res-Appliance class'!$D30*'RES S curve-connect'!CB$14+'Res-Appliance class'!$E30*'RES S curve-connect'!CB$19","v":159.90397508043299},{"$f":"'Res-Appliance class'!$B30*'RES S curve-connect'!CC$4+'Res-Appliance class'!$C30*'RES S curve-connect'!CC$9+'Res-Appliance class'!$D30*'RES S curve-connect'!CC$14+'Res-Appliance class'!$E30*'RES S curve-connect'!CC$19","v":167.31750256779338},{"$f":"'Res-Appliance class'!$B30*'RES S curve-connect'!CD$4+'Res-Appliance class'!$C30*'RES S curve-connect'!CD$9+'Res-Appliance class'!$D30*'RES S curve-connect'!CD$14+'Res-Appliance class'!$E30*'RES S curve-connect'!CD$19","v":53.098041043723924}]
["Casey (C)",null,{"$f":"'Res-Appliance class'!$B31*'RES S curve-connect'!C$4+'Res-Appliance class'!$C31*'RES S curve-connect'!C$9+'Res-Appliance class'!$D31*'RES S curve-connect'!C$14+'Res-Appliance class'!$E31*'RES S curve-connect'!C$19","v":-3068.724333172072},{"$f":"'Res-Appliance class'!$B31*'RES S curve-connect'!D$4+'Res-Appliance class'!$C31*'RES S curve-connect'!D$9+'Res-Appliance class'!$D31*'RES S curve-connect'!D$14+'Res-Appliance class'!$E31*'RES S curve-connect'!D$19","v":-3601.9949485190159},{"$f":"'Res-Appliance class'!$B31*'RES S curve-connect'!E$4+'Res-Appliance class'!$C31*'RES S curve-connect'!E$9+'Res-Appliance class'!$D31*'RES S curve-connect'!E$14+'Res-Appliance class'!$E31*'RES S curve-connect'!E$19","v":-2855.4346652891436},{"$f":"'Res-Appliance class'!$B31*'RES S curve-connect'!F$4+'Res-Appliance class'!$C31*'RES S curve-connect'!F$9+'Res-Appliance class'!$D31*'RES S curve-connect'!F$14+'Res-Appliance class'!$E31*'RES S curve-connect'!F$19","v":-2694.9035690989895},{"$f":"'Res-Appliance class'!$B31*'RES S curve-connect'!G$4+'Res-Appliance class'!$C31*'RES S curve-connect'!G$9+'Res-Appliance class'!$D31*'RES S curve-connect'!G$14+'Res-Appliance class'!$E31*'RES S curve-connect'!G$19","v":-3958.1954977614741},{"$f":"'Res-Appliance class'!$B31*'RES S curve-connect'!H$4+'Res-Appliance class'!$C31*'RES S curve-connect'!H$9+'Res-Appliance class'!$D31*'RES S curve-connect'!H$14+'Res-Appliance class'!$E31*'RES S curve-connect'!H$19","v":-3995.1157912655535},{"$f":"'Res-Appliance class'!$B31*'RES S curve-connect'!I$4+'Res-Appliance class'!$C31*'RES S curve-connect'!I$9+'Res-Appliance class'!$D31*'RES S curve-connect'!I$14+'Res-Appliance class'!$E31*'RES S curve-connect'!I$19","v":-3541.7034970772829},{"$f":"'Res-Appliance class'!$B31*'RES S curve-connect'!J$4+'Res-Appliance class'!$C31*'RES S curve-connect'!J$9+'Res-Appliance class'!$D31*'RES S curve-connect'!J$14+'Res-Appliance class'!$E31*'RES S curve-connect'!J$19","v":-3885.2889602735645},{"$f":"'Res-Appliance class'!$B31*'RES S curve-connect'!K$4+'Res-Appliance class'!$C31*'RES S curve-connect'!K$9+'Res-Appliance class'!$D31*'RES S curve-connect'!K$14+'Res-Appliance class'!$E31*'RES S curve-connect'!K$19","v":-3032.8975074220698},{"$f":"'Res-Appliance class'!$B31*'RES S curve-connect'!L$4+'Res-Appliance class'!$C31*'RES S curve-connect'!L$9+'Res-Appliance class'!$D31*'RES S curve-connect'!L$14+'Res-Appliance class'!$E31*'RES S curve-connect'!L$19","v":-3395.202927451272},{"$f":"'Res-Appliance class'!$B31*'RES S curve-connect'!M$4+'Res-Appliance class'!$C31*'RES S curve-connect'!M$9+'Res-Appliance class'!$D31*'RES S curve-connect'!M$14+'Res-Appliance class'!$E31*'RES S curve-connect'!M$19","v":-4057.7869966829676},{"$f":"'Res-Appliance class'!$B31*'RES S curve-connect'!N$4+'Res-Appliance class'!$C31*'RES S curve-connect'!N$9+'Res-Appliance class'!$D31*'RES S curve-connect'!N$14+'Res-Appliance class'!$E31*'RES S curve-connect'!N$19","v":-4118.0307683181009},{"$f":"'Res-Appliance class'!$B31*'RES S curve-connect'!O$4+'Res-Appliance class'!$C31*'RES S curve-connect'!O$9+'Res-Appliance class'!$D31*'RES S curve-connect'!O$14+'Res-Appliance class'!$E31*'RES S curve-connect'!O$19","v":-3531.7468268761731},{"$f":"'Res-Appliance class'!$B31*'RES S curve-connect'!P$4+'Res-Appliance class'!$C31*'RES S curve-connect'!P$9+'Res-Appliance class'!$D31*'RES S curve-connect'!P$14+'Res-Appliance class'!$E31*'RES S curve-connect'!P$19","v":-3063.9945153613153},{"$f":"'Res-Appliance class'!$B31*'RES S curve-connect'!Q$4+'Res-Appliance class'!$C31*'RES S curve-connect'!Q$9+'Res-Appliance class'!$D31*'RES S curve-connect'!Q$14+'Res-Appliance class'!$E31*'RES S curve-connect'!Q$19","v":-2358.3699244443351},{"$f":"'Res-Appliance class'!$B31*'RES S curve-connect'!R$4+'Res-Appliance class'!$C31*'RES S curve-connect'!R$9+'Res-Appliance class'!$D31*'RES S curve-connect'!R$14+'Res-Appliance class'!$E31*'RES S curve-connect'!R$19","v":-1957.3663166568303},{"$f":"'Res-Appliance class'!$B31*'RES S curve-connect'!S$4+'Res-Appliance class'!$C31*'RES S curve-connect'!S$9+'Res-Appliance class'!$D31*'RES S curve-connect'!S$14+'Res-Appliance class'!$E31*'RES S curve-connect'!S$19","v":-1321.8044786289288},{"$f":"'Res-Appliance class'!$B31*'RES S curve-connect'!T$4+'Res-Appliance class'!$C31*'RES S curve-connect'!T$9+'Res-Appliance class'!$D31*'RES S curve-connect'!T$14+'Res-Appliance class'!$E31*'RES S curve-connect'!T$19","v":-973.49192937065413},{"$f":"'Res-Appliance class'!$B31*'RES S curve-connect'!U$4+'Res-Appliance class'!$C31*'RES S curve-connect'!U$9+'Res-Appliance class'!$D31*'RES S curve-connect'!U$14+'Res-Appliance class'!$E31*'RES S curve-connect'!U$19","v":-577.37535436136602},{"$f":"'Res-Appliance class'!$B31*'RES S curve-connect'!V$4+'Res-Appliance class'!$C31*'RES S curve-connect'!V$9+'Res-Appliance class'!$D31*'RES S curve-connect'!V$14+'Res-Appliance class'!$E31*'RES S curve-connect'!V$19","v":-306.74880928842384},{"$f":"'Res-Appliance class'!$B31*'RES S curve-connect'!W$4+'Res-Appliance class'!$C31*'RES S curve-connect'!W$9+'Res-Appliance class'!$D31*'RES S curve-connect'!W$14+'Res-Appliance class'!$E31*'RES S curve-connect'!W$19","v":-95.435918196295972},{"$f":"'Res-Appliance class'!$B31*'RES S curve-connect'!X$4+'Res-Appliance class'!$C31*'RES S curve-connect'!X$9+'Res-Appliance class'!$D31*'RES S curve-connect'!X$14+'Res-Appliance class'!$E31*'RES S curve-connect'!X$19","v":381.88811534931222},{"$f":"'Res-Appliance class'!$B31*'RES S curve-connect'!Y$4+'Res-Appliance class'!$C31*'RES S curve-connect'!Y$9+'Res-Appliance class'!$D31*'RES S curve-connect'!Y$14+'Res-Appliance class'!$E31*'RES S curve-connect'!Y$19","v":864.60713567019377},{"$f":"'Res-Appliance class'!$B31*'RES S curve-connect'!Z$4+'Res-Appliance class'!$C31*'RES S curve-connect'!Z$9+'Res-Appliance class'!$D31*'RES S curve-connect'!Z$14+'Res-Appliance class'!$E31*'RES S curve-connect'!Z$19","v":1191.8563997525503},{"$f":"'Res-Appliance class'!$B31*'RES S curve-connect'!AA$4+'Res-Appliance class'!$C31*'RES S curve-connect'!AA$9+'Res-Appliance class'!$D31*'RES S curve-connect'!AA$14+'Res-Appliance class'!$E31*'RES S curve-connect'!AA$19","v":1518.902903184055},{"$f":"'Res-Appliance class'!$B31*'RES S curve-connect'!AB$4+'Res-Appliance class'!$C31*'RES S curve-connect'!AB$9+'Res-Appliance class'!$D31*'RES S curve-connect'!AB$14+'Res-Appliance class'!$E31*'RES S curve-connect'!AB$19","v":1780.2273757296396},{"$f":"'Res-Appliance class'!$B31*'RES S curve-connect'!AC$4+'Res-Appliance class'!$C31*'RES S curve-connect'!AC$9+'Res-Appliance class'!$D31*'RES S curve-connect'!AC$14+'Res-Appliance class'!$E31*'RES S curve-connect'!AC$19","v":2031.9083343471723},{"$f":"'Res-Appliance class'!$B31*'RES S curve-connect'!AD$4+'Res-Appliance class'!$C31*'RES S curve-connect'!AD$9+'Res-Appliance class'!$D31*'RES S curve-connect'!AD$14+'Res-Appliance class'!$E31*'RES S curve-connect'!AD$19","v":2262.8989115547338},{"$f":"'Res-Appliance class'!$B31*'RES S curve-connect'!AE$4+'Res-Appliance class'!$C31*'RES S curve-connect'!AE$9+'Res-Appliance class'!$D31*'RES S curve-connect'!AE$14+'Res-Appliance class'!$E31*'RES S curve-connect'!AE$19","v":2505.2801751020052},{"$f":"'Res-Appliance class'!$B31*'RES S curve-connect'!AF$4+'Res-Appliance class'!$C31*'RES S curve-connect'!AF$9+'Res-Appliance class'!$D31*'RES S curve-connect'!AF$14+'Res-Appliance class'!$E31*'RES S curve-connect'!AF$19","v":2818.7850041413594},{"$f":"'Res-Appliance class'!$B31*'RES S curve-connect'!AG$4+'Res-Appliance class'!$C31*'RES S curve-connect'!AG$9+'Res-Appliance class'!$D31*'RES S curve-connect'!AG$14+'Res-Appliance class'!$E31*'RES S curve-connect'!AG$19","v":3033.3842757415796},{"$f":"'Res-Appliance class'!$B31*'RES S curve-connect'!AH$4+'Res-Appliance class'!$C31*'RES S curve-connect'!AH$9+'Res-Appliance class'!$D31*'RES S curve-connect'!AH$14+'Res-Appliance class'!$E31*'RES S curve-connect'!AH$19","v":3336.0161887222189},{"$f":"'Res-Appliance class'!$B31*'RES S curve-connect'!AI$4+'Res-Appliance class'!$C31*'RES S curve-connect'!AI$9+'Res-Appliance class'!$D31*'RES S curve-connect'!AI$14+'Res-Appliance class'!$E31*'RES S curve-connect'!AI$19","v":3607.4548278147909},{"$f":"'Res-Appliance class'!$B31*'RES S curve-connect'!AJ$4+'Res-Appliance class'!$C31*'RES S curve-connect'!AJ$9+'Res-Appliance class'!$D31*'RES S curve-connect'!AJ$14+'Res-Appliance class'!$E31*'RES S curve-connect'!AJ$19","v":3852.5493284629483},{"$f":"'Res-Appliance class'!$B31*'RES S curve-connect'!AK$4+'Res-Appliance class'!$C31*'RES S curve-connect'!AK$9+'Res-Appliance class'!$D31*'RES S curve-connect'!AK$14+'Res-Appliance class'!$E31*'RES S curve-connect'!AK$19","v":4112.7303129713318},{"$f":"'Res-Appliance class'!$B31*'RES S curve-connect'!AL$4+'Res-Appliance class'!$C31*'RES S curve-connect'!AL$9+'Res-Appliance class'!$D31*'RES S curve-connect'!AL$14+'Res-Appliance class'!$E31*'RES S curve-connect'!AL$19","v":3213.7105298455253},{"$f":"'Res-Appliance class'!$B31*'RES S curve-connect'!AM$4+'Res-Appliance class'!$C31*'RES S curve-connect'!AM$9+'Res-Appliance class'!$D31*'RES S curve-connect'!AM$14+'Res-Appliance class'!$E31*'RES S curve-connect'!AM$19","v":3095.067538545773},{"$f":"'Res-Appliance class'!$B31*'RES S curve-connect'!AN$4+'Res-Appliance class'!$C31*'RES S curve-connect'!AN$9+'Res-Appliance class'!$D31*'RES S curve-connect'!AN$14+'Res-Appliance class'!$E31*'RES S curve-connect'!AN$19","v":3340.8414934328689},{"$f":"'Res-Appliance class'!$B31*'RES S curve-connect'!AO$4+'Res-Appliance class'!$C31*'RES S curve-connect'!AO$9+'Res-Appliance class'!$D31*'RES S curve-connect'!AO$14+'Res-Appliance class'!$E31*'RES S curve-connect'!AO$19","v":3641.9576457020485},{"$f":"'Res-Appliance class'!$B31*'RES S curve-connect'!AP$4+'Res-Appliance class'!$C31*'RES S curve-connect'!AP$9+'Res-Appliance class'!$D31*'RES S curve-connect'!AP$14+'Res-Appliance class'!$E31*'RES S curve-connect'!AP$19","v":3920.4486852791251},{"$f":"'Res-Appliance class'!$B31*'RES S curve-connect'!AQ$4+'Res-Appliance class'!$C31*'RES S curve-connect'!AQ$9+'Res-Appliance class'!$D31*'RES S curve-connect'!AQ$14+'Res-Appliance class'!$E31*'RES S curve-connect'!AQ$19","v":4219.9627175410624},{"$f":"'Res-Appliance class'!$B31*'RES S curve-connect'!AR$4+'Res-Appliance class'!$C31*'RES S curve-connect'!AR$9+'Res-Appliance class'!$D31*'RES S curve-connect'!AR$14+'Res-Appliance class'!$E31*'RES S curve-connect'!AR$19","v":4549.0169762300957},{"$f":"'Res-Appliance class'!$B31*'RES S curve-connect'!AS$4+'Res-Appliance class'!$C31*'RES S curve-connect'!AS$9+'Res-Appliance class'!$D31*'RES S curve-connect'!AS$14+'Res-Appliance class'!$E31*'RES S curve-connect'!AS$19","v":4918.3124551488372},{"$f":"'Res-Appliance class'!$B31*'RES S curve-connect'!AT$4+'Res-Appliance class'!$C31*'RES S curve-connect'!AT$9+'Res-Appliance class'!$D31*'RES S curve-connect'!AT$14+'Res-Appliance class'!$E31*'RES S curve-connect'!AT$19","v":5331.618884766237},{"$f":"'Res-Appliance class'!$B31*'RES S curve-connect'!AU$4+'Res-Appliance class'!$C31*'RES S curve-connect'!AU$9+'Res-Appliance class'!$D31*'RES S curve-connect'!AU$14+'Res-Appliance class'!$E31*'RES S curve-connect'!AU$19","v":5809.50467906023},{"$f":"'Res-Appliance class'!$B31*'RES S curve-connect'!AV$4+'Res-Appliance class'!$C31*'RES S curve-connect'!AV$9+'Res-Appliance class'!$D31*'RES S curve-connect'!AV$14+'Res-Appliance class'!$E31*'RES S curve-connect'!AV$19","v":6354.8971329229826},{"$f":"'Res-Appliance class'!$B31*'RES S curve-connect'!AW$4+'Res-Appliance class'!$C31*'RES S curve-connect'!AW$9+'Res-Appliance class'!$D31*'RES S curve-connect'!AW$14+'Res-Appliance class'!$E31*'RES S curve-connect'!AW$19","v":6981.9134672943055},{"$f":"'Res-Appliance class'!$B31*'RES S curve-connect'!AX$4+'Res-Appliance class'!$C31*'RES S curve-connect'!AX$9+'Res-Appliance class'!$D31*'RES S curve-connect'!AX$14+'Res-Appliance class'!$E31*'RES S curve-connect'!AX$19","v":7696.8730105227005},{"$f":"'Res-Appliance class'!$B31*'RES S curve-connect'!AY$4+'Res-Appliance class'!$C31*'RES S curve-connect'!AY$9+'Res-Appliance class'!$D31*'RES S curve-connect'!AY$14+'Res-Appliance class'!$E31*'RES S curve-connect'!AY$19","v":8521.7008939280622},{"$f":"'Res-Appliance class'!$B31*'RES S curve-connect'!AZ$4+'Res-Appliance class'!$C31*'RES S curve-connect'!AZ$9+'Res-Appliance class'!$D31*'RES S curve-connect'!AZ$14+'Res-Appliance class'!$E31*'RES S curve-connect'!AZ$19","v":9465.0844606527517},{"$f":"'Res-Appliance class'!$B31*'RES S curve-connect'!BA$4+'Res-Appliance class'!$C31*'RES S curve-connect'!BA$9+'Res-Appliance class'!$D31*'RES S curve-connect'!BA$14+'Res-Appliance class'!$E31*'RES S curve-connect'!BA$19","v":10557.940743995068},{"$f":"'Res-Appliance class'!$B31*'RES S curve-connect'!BB$4+'Res-Appliance class'!$C31*'RES S curve-connect'!BB$9+'Res-Appliance class'!$D31*'RES S curve-connect'!BB$14+'Res-Appliance class'!$E31*'RES S curve-connect'!BB$19","v":11835.331990995008},{"$f":"'Res-Appliance class'!$B31*'RES S curve-connect'!BC$4+'Res-Appliance class'!$C31*'RES S curve-connect'!BC$9+'Res-Appliance class'!$D31*'RES S curve-connect'!BC$14+'Res-Appliance class'!$E31*'RES S curve-connect'!BC$19","v":13358.742491107161},{"$f":"'Res-Appliance class'!$B31*'RES S curve-connect'!BD$4+'Res-Appliance class'!$C31*'RES S curve-connect'!BD$9+'Res-Appliance class'!$D31*'RES S curve-connect'!BD$14+'Res-Appliance class'!$E31*'RES S curve-connect'!BD$19","v":14829.902890215308},{"$f":"'Res-Appliance class'!$B31*'RES S curve-connect'!BE$4+'Res-Appliance class'!$C31*'RES S curve-connect'!BE$9+'Res-Appliance class'!$D31*'RES S curve-connect'!BE$14+'Res-Appliance class'!$E31*'RES S curve-connect'!BE$19","v":16175.069163908393},{"$f":"'Res-Appliance class'!$B31*'RES S curve-connect'!BF$4+'Res-Appliance class'!$C31*'RES S curve-connect'!BF$9+'Res-Appliance class'!$D31*'RES S curve-connect'!BF$14+'Res-Appliance class'!$E31*'RES S curve-connect'!BF$19","v":17551.273976824137},{"$f":"'Res-Appliance class'!$B31*'RES S curve-connect'!BG$4+'Res-Appliance class'!$C31*'RES S curve-connect'!BG$9+'Res-Appliance class'!$D31*'RES S curve-connect'!BG$14+'Res-Appliance class'!$E31*'RES S curve-connect'!BG$19","v":19108.246656692405},{"$f":"'Res-Appliance class'!$B31*'RES S curve-connect'!BH$4+'Res-Appliance class'!$C31*'RES S curve-connect'!BH$9+'Res-Appliance class'!$D31*'RES S curve-connect'!BH$14+'Res-Appliance class'!$E31*'RES S curve-connect'!BH$19","v":20956.807050483716},{"$f":"'Res-Appliance class'!$B31*'RES S curve-connect'!BI$4+'Res-Appliance class'!$C31*'RES S curve-connect'!BI$9+'Res-Appliance class'!$D31*'RES S curve-connect'!BI$14+'Res-Appliance class'!$E31*'RES S curve-connect'!BI$19","v":23635.004582306945},{"$f":"'Res-Appliance class'!$B31*'RES S curve-connect'!BJ$4+'Res-Appliance class'!$C31*'RES S curve-connect'!BJ$9+'Res-Appliance class'!$D31*'RES S curve-connect'!BJ$14+'Res-Appliance class'!$E31*'RES S curve-connect'!BJ$19","v":27559.155744665994},{"$f":"'Res-Appliance class'!$B31*'RES S curve-connect'!BK$4+'Res-Appliance class'!$C31*'RES S curve-connect'!BK$9+'Res-Appliance class'!$D31*'RES S curve-connect'!BK$14+'Res-Appliance class'!$E31*'RES S curve-connect'!BK$19","v":33353.042556057298},{"$f":"'Res-Appliance class'!$B31*'RES S curve-connect'!BL$4+'Res-Appliance class'!$C31*'RES S curve-connect'!BL$9+'Res-Appliance class'!$D31*'RES S curve-connect'!BL$14+'Res-Appliance class'!$E31*'RES S curve-connect'!BL$19","v":-76.757469407865301},{"$f":"'Res-Appliance class'!$B31*'RES S curve-connect'!BM$4+'Res-Appliance class'!$C31*'RES S curve-connect'!BM$9+'Res-Appliance class'!$D31*'RES S curve-connect'!BM$14+'Res-Appliance class'!$E31*'RES S curve-connect'!BM$19","v":-69.431600190523284},{"$f":"'Res-Appliance class'!$B31*'RES S curve-connect'!BN$4+'Res-Appliance class'!$C31*'RES S curve-connect'!BN$9+'Res-Appliance class'!$D31*'RES S curve-connect'!BN$14+'Res-Appliance class'!$E31*'RES S curve-connect'!BN$19","v":-65.4562403147483},{"$f":"'Res-Appliance class'!$B31*'RES S curve-connect'!BO$4+'Res-Appliance class'!$C31*'RES S curve-connect'!BO$9+'Res-Appliance class'!$D31*'RES S curve-connect'!BO$14+'Res-Appliance class'!$E31*'RES S curve-connect'!BO$19","v":-54.810069508032598},{"$f":"'Res-Appliance class'!$B31*'RES S curve-connect'!BP$4+'Res-Appliance class'!$C31*'RES S curve-connect'!BP$9+'Res-Appliance class'!$D31*'RES S curve-connect'!BP$14+'Res-Appliance class'!$E31*'RES S curve-connect'!BP$19","v":-47.5142869786701},{"$f":"'Res-Appliance class'!$B31*'RES S curve-connect'!BQ$4+'Res-Appliance class'!$C31*'RES S curve-connect'!BQ$9+'Res-Appliance class'!$D31*'RES S curve-connect'!BQ$14+'Res-Appliance class'!$E31*'RES S curve-connect'!BQ$19","v":-40.228412907774214},{"$f":"'Res-Appliance class'!$B31*'RES S curve-connect'!BR$4+'Res-Appliance class'!$C31*'RES S curve-connect'!BR$9+'Res-Appliance class'!$D31*'RES S curve-connect'!BR$14+'Res-Appliance class'!$E31*'RES S curve-connect'!BR$19","v":-36.29280755027105},{"$f":"'Res-Appliance class'!$B31*'RES S curve-connect'!BS$4+'Res-Appliance class'!$C31*'RES S curve-connect'!BS$9+'Res-Appliance class'!$D31*'RES S curve-connect'!BS$14+'Res-Appliance class'!$E31*'RES S curve-connect'!BS$19","v":-25.68615212918894},{"$f":"'Res-Appliance class'!$B31*'RES S curve-connect'!BT$4+'Res-Appliance class'!$C31*'RES S curve-connect'!BT$9+'Res-Appliance class'!$D31*'RES S curve-connect'!BT$14+'Res-Appliance class'!$E31*'RES S curve-connect'!BT$19","v":-18.42964733890858},{"$f":"'Res-Appliance class'!$B31*'RES S curve-connect'!BU$4+'Res-Appliance class'!$C31*'RES S curve-connect'!BU$9+'Res-Appliance class'!$D31*'RES S curve-connect'!BU$14+'Res-Appliance class'!$E31*'RES S curve-connect'!BU$19","v":-11.182814837250248},{"$f":"'Res-Appliance class'!$B31*'RES S curve-connect'!BV$4+'Res-Appliance class'!$C31*'RES S curve-connect'!BV$9+'Res-Appliance class'!$D31*'RES S curve-connect'!BV$14+'Res-Appliance class'!$E31*'RES S curve-connect'!BV$19","v":-7.2860163465270489},{"$f":"'Res-Appliance class'!$B31*'RES S curve-connect'!BW$4+'Res-Appliance class'!$C31*'RES S curve-connect'!BW$9+'Res-Appliance class'!$D31*'RES S curve-connect'!BW$14+'Res-Appliance class'!$E31*'RES S curve-connect'!BW$19","v":3.2820654521152619},{"$f":"'Res-Appliance class'!$B31*'RES S curve-connect'!BX$4+'Res-Appliance class'!$C31*'RES S curve-connect'!BX$9+'Res-Appliance class'!$D31*'RES S curve-connect'!BX$14+'Res-Appliance class'!$E31*'RES S curve-connect'!BX$19","v":10.500228415376057},{"$f":"'Res-Appliance class'!$B31*'RES S curve-connect'!BY$4+'Res-Appliance class'!$C31*'RES S curve-connect'!BY$9+'Res-Appliance class'!$D31*'RES S curve-connect'!BY$14+'Res-Appliance class'!$E31*'RES S curve-connect'!BY$19","v":17.708949445663052},{"$f":"'Res-Appliance class'!$B31*'RES S curve-connect'!BZ$4+'Res-Appliance class'!$C31*'RES S curve-connect'!BZ$9+'Res-Appliance class'!$D31*'RES S curve-connect'!BZ$14+'Res-Appliance class'!$E31*'RES S curve-connect'!BZ$19","v":21.567865389981989},{"$f":"'Res-Appliance class'!$B31*'RES S curve-connect'!CA$4+'Res-Appliance class'!$C31*'RES S curve-connect'!CA$9+'Res-Appliance class'!$D31*'RES S curve-connect'!CA$14+'Res-Appliance class'!$E31*'RES S curve-connect'!CA$19","v":32.09829214553281},{"$f":"'Res-Appliance class'!$B31*'RES S curve-connect'!CB$4+'Res-Appliance class'!$C31*'RES S curve-connect'!CB$9+'Res-Appliance class'!$D31*'RES S curve-connect'!CB$14+'Res-Appliance class'!$E31*'RES S curve-connect'!CB$19","v":39.279026156335817},{"$f":"'Res-Appliance class'!$B31*'RES S curve-connect'!CC$4+'Res-Appliance class'!$C31*'RES S curve-connect'!CC$9+'Res-Appliance class'!$D31*'RES S curve-connect'!CC$14+'Res-Appliance class'!$E31*'RES S curve-connect'!CC$19","v":46.450542921032024},{"$f":"'Res-Appliance class'!$B31*'RES S curve-connect'!CD$4+'Res-Appliance class'!$C31*'RES S curve-connect'!CD$9+'Res-Appliance class'!$D31*'RES S curve-connect'!CD$14+'Res-Appliance class'!$E31*'RES S curve-connect'!CD$19","v":-63.249252305339269}]
["Frankston (C)",null,{"$f":"'Res-Appliance class'!$B32*'RES S curve-connect'!C$4+'Res-Appliance class'!$C32*'RES S curve-connect'!C$9+'Res-Appliance class'!$D32*'RES S curve-connect'!C$14+'Res-Appliance class'!$E32*'RES S curve-connect'!C$19","v":-3285.9036043686101},{"$f":"'Res-Appliance class'!$B32*'RES S curve-connect'!D$4+'Res-Appliance class'!$C32*'RES S curve-connect'!D$9+'Res-Appliance class'!$D32*'RES S curve-connect'!D$14+'Res-Appliance class'!$E32*'RES S curve-connect'!D$19","v":-3927.6434227185337},{"$f":"'Res-Appliance class'!$B32*'RES S curve-connect'!E$4+'Res-Appliance class'!$C32*'RES S curve-connect'!E$9+'Res-Appliance class'!$D32*'RES S curve-connect'!E$14+'Res-Appliance class'!$E32*'RES S curve-connect'!E$19","v":-2950.5253280099196},{"$f":"'Res-Appliance class'!$B32*'RES S curve-connect'!F$4+'Res-Appliance class'!$C32*'RES S curve-connect'!F$9+'Res-Appliance class'!$D32*'RES S curve-connect'!F$14+'Res-Appliance class'!$E32*'RES S curve-connect'!F$19","v":-2750.6041115410044},{"$f":"'Res-Appliance class'!$B32*'RES S curve-connect'!G$4+'Res-Appliance class'!$C32*'RES S curve-connect'!G$9+'Res-Appliance class'!$D32*'RES S curve-connect'!G$14+'Res-Appliance class'!$E32*'RES S curve-connect'!G$19","v":-4519.3594563864735},{"$f":"'Res-Appliance class'!$B32*'RES S curve-connect'!H$4+'Res-Appliance class'!$C32*'RES S curve-connect'!H$9+'Res-Appliance class'!$D32*'RES S curve-connect'!H$14+'Res-Appliance class'!$E32*'RES S curve-connect'!H$19","v":-4520.8039864560733},{"$f":"'Res-Appliance class'!$B32*'RES S curve-connect'!I$4+'Res-Appliance class'!$C32*'RES S curve-connect'!I$9+'Res-Appliance class'!$D32*'RES S curve-connect'!I$14+'Res-Appliance class'!$E32*'RES S curve-connect'!I$19","v":-3956.7306166500298},{"$f":"'Res-Appliance class'!$B32*'RES S curve-connect'!J$4+'Res-Appliance class'!$C32*'RES S curve-connect'!J$9+'Res-Appliance class'!$D32*'RES S curve-connect'!J$14+'Res-Appliance class'!$E32*'RES S curve-connect'!J$19","v":-4270.5041138614861},{"$f":"'Res-Appliance class'!$B32*'RES S curve-connect'!K$4+'Res-Appliance class'!$C32*'RES S curve-connect'!K$9+'Res-Appliance class'!$D32*'RES S curve-connect'!K$14+'Res-Appliance class'!$E32*'RES S curve-connect'!K$19","v":-3234.4987686106338},{"$f":"'Res-Appliance class'!$B32*'RES S curve-connect'!L$4+'Res-Appliance class'!$C32*'RES S curve-connect'!L$9+'Res-Appliance class'!$D32*'RES S curve-connect'!L$14+'Res-Appliance class'!$E32*'RES S curve-connect'!L$19","v":-3675.5551777954561},{"$f":"'Res-Appliance class'!$B32*'RES S curve-connect'!M$4+'Res-Appliance class'!$C32*'RES S curve-connect'!M$9+'Res-Appliance class'!$D32*'RES S curve-connect'!M$14+'Res-Appliance class'!$E32*'RES S curve-connect'!M$19","v":-4521.074066316085},{"$f":"'Res-Appliance class'!$B32*'RES S curve-connect'!N$4+'Res-Appliance class'!$C32*'RES S curve-connect'!N$9+'Res-Appliance class'!$D32*'RES S curve-connect'!N$14+'Res-Appliance class'!$E32*'RES S curve-connect'!N$19","v":-4600.9992394660003},{"$f":"'Res-Appliance class'!$B32*'RES S curve-connect'!O$4+'Res-Appliance class'!$C32*'RES S curve-connect'!O$9+'Res-Appliance class'!$D32*'RES S curve-connect'!O$14+'Res-Appliance class'!$E32*'RES S curve-connect'!O$19","v":-3884.080277412279},{"$f":"'Res-Appliance class'!$B32*'RES S curve-connect'!P$4+'Res-Appliance class'!$C32*'RES S curve-connect'!P$9+'Res-Appliance class'!$D32*'RES S curve-connect'!P$14+'Res-Appliance class'!$E32*'RES S curve-connect'!P$19","v":-3308.4312133635167},{"$f":"'Res-Appliance class'!$B32*'RES S curve-connect'!Q$4+'Res-Appliance class'!$C32*'RES S curve-connect'!Q$9+'Res-Appliance class'!$D32*'RES S curve-connect'!Q$14+'Res-Appliance class'!$E32*'RES S curve-connect'!Q$19","v":-2437.8613636464825},{"$f":"'Res-Appliance class'!$B32*'RES S curve-connect'!R$4+'Res-Appliance class'!$C32*'RES S curve-connect'!R$9+'Res-Appliance class'!$D32*'RES S curve-connect'!R$14+'Res-Appliance class'!$E32*'RES S curve-connect'!R$19","v":-1944.2735380413742},{"$f":"'Res-Appliance class'!$B32*'RES S curve-connect'!S$4+'Res-Appliance class'!$C32*'RES S curve-connect'!S$9+'Res-Appliance class'!$D32*'RES S curve-connect'!S$14+'Res-Appliance class'!$E32*'RES S curve-connect'!S$19","v":-1164.8892836369409},{"$f":"'Res-Appliance class'!$B32*'RES S curve-connect'!T$4+'Res-Appliance class'!$C32*'RES S curve-connect'!T$9+'Res-Appliance class'!$D32*'RES S curve-connect'!T$14+'Res-Appliance class'!$E32*'RES S curve-connect'!T$19","v":-728.48026165240867},{"$f":"'Res-Appliance class'!$B32*'RES S curve-connect'!U$4+'Res-Appliance class'!$C32*'RES S curve-connect'!U$9+'Res-Appliance class'!$D32*'RES S curve-connect'!U$14+'Res-Appliance class'!$E32*'RES S curve-connect'!U$19","v":-239.93598630781867},{"$f":"'Res-Appliance class'!$B32*'RES S curve-connect'!V$4+'Res-Appliance class'!$C32*'RES S curve-connect'!V$9+'Res-Appliance class'!$D32*'RES S curve-connect'!V$14+'Res-Appliance class'!$E32*'RES S curve-connect'!V$19","v":88.965551348473355},{"$f":"'Res-Appliance class'!$B32*'RES S curve-connect'!W$4+'Res-Appliance class'!$C32*'RES S curve-connect'!W$9+'Res-Appliance class'!$D32*'RES S curve-connect'!W$14+'Res-Appliance class'!$E32*'RES S curve-connect'!W$19","v":345.73930142309655},{"$f":"'Res-Appliance class'!$B32*'RES S curve-connect'!X$4+'Res-Appliance class'!$C32*'RES S curve-connect'!X$9+'Res-Appliance class'!$D32*'RES S curve-connect'!X$14+'Res-Appliance class'!$E32*'RES S curve-connect'!X$19","v":937.66987632859355},{"$f":"'Res-Appliance class'!$B32*'RES S curve-connect'!Y$4+'Res-Appliance class'!$C32*'RES S curve-connect'!Y$9+'Res-Appliance class'!$D32*'RES S curve-connect'!Y$14+'Res-Appliance class'!$E32*'RES S curve-connect'!Y$19","v":1535.0684050346601},{"$f":"'Res-Appliance class'!$B32*'RES S curve-connect'!Z$4+'Res-Appliance class'!$C32*'RES S curve-connect'!Z$9+'Res-Appliance class'!$D32*'RES S curve-connect'!Z$14+'Res-Appliance class'!$E32*'RES S curve-connect'!Z$19","v":1937.7394292293029},{"$f":"'Res-Appliance class'!$B32*'RES S curve-connect'!AA$4+'Res-Appliance class'!$C32*'RES S curve-connect'!AA$9+'Res-Appliance class'!$D32*'RES S curve-connect'!AA$14+'Res-Appliance class'!$E32*'RES S curve-connect'!AA$19","v":2338.7080687270554},{"$f":"'Res-Appliance class'!$B32*'RES S curve-connect'!AB$4+'Res-Appliance class'!$C32*'RES S curve-connect'!AB$9+'Res-Appliance class'!$D32*'RES S curve-connect'!AB$14+'Res-Appliance class'!$E32*'RES S curve-connect'!AB$19","v":2658.4740323675142},{"$f":"'Res-Appliance class'!$B32*'RES S curve-connect'!AC$4+'Res-Appliance class'!$C32*'RES S curve-connect'!AC$9+'Res-Appliance class'!$D32*'RES S curve-connect'!AC$14+'Res-Appliance class'!$E32*'RES S curve-connect'!AC$19","v":2965.396516388611},{"$f":"'Res-Appliance class'!$B32*'RES S curve-connect'!AD$4+'Res-Appliance class'!$C32*'RES S curve-connect'!AD$9+'Res-Appliance class'!$D32*'RES S curve-connect'!AD$14+'Res-Appliance class'!$E32*'RES S curve-connect'!AD$19","v":3246.7504233700715},{"$f":"'Res-Appliance class'!$B32*'RES S curve-connect'!AE$4+'Res-Appliance class'!$C32*'RES S curve-connect'!AE$9+'Res-Appliance class'!$D32*'RES S curve-connect'!AE$14+'Res-Appliance class'!$E32*'RES S curve-connect'!AE$19","v":3540.1737133044753},{"$f":"'Res-Appliance class'!$B32*'RES S curve-connect'!AF$4+'Res-Appliance class'!$C32*'RES S curve-connect'!AF$9+'Res-Appliance class'!$D32*'RES S curve-connect'!AF$14+'Res-Appliance class'!$E32*'RES S curve-connect'!AF$19","v":3923.4253910573166},{"$f":"'Res-Appliance class'!$B32*'RES S curve-connect'!AG$4+'Res-Appliance class'!$C32*'RES S curve-connect'!AG$9+'Res-Appliance class'!$D32*'RES S curve-connect'!AG$14+'Res-Appliance class'!$E32*'RES S curve-connect'!AG$19","v":4187.5030360867631},{"$f":"'Res-Appliance class'!$B32*'RES S curve-connect'!AH$4+'Res-Appliance class'!$C32*'RES S curve-connect'!AH$9+'Res-Appliance class'!$D32*'RES S curve-connect'!AH$14+'Res-Appliance class'!$E32*'RES S curve-connect'!AH$19","v":4564.0435845221409},{"$f":"'Res-Appliance class'!$B32*'RES S curve-connect'!AI$4+'Res-Appliance class'!$C32*'RES S curve-connect'!AI$9+'Res-Appliance class'!$D32*'RES S curve-connect'!AI$14+'Res-Appliance class'!$E32*'RES S curve-connect'!AI$19","v":4898.052709729157},{"$f":"'Res-Appliance class'!$B32*'RES S curve-connect'!AJ$4+'Res-Appliance class'!$C32*'RES S curve-connect'!AJ$9+'Res-Appliance class'!$D32*'RES S curve-connect'!AJ$14+'Res-Appliance class'!$E32*'RES S curve-connect'!AJ$19","v":5200.4063641121975},{"$f":"'Res-Appliance class'!$B32*'RES S curve-connect'!AK$4+'Res-Appliance class'!$C32*'RES S curve-connect'!AK$9+'Res-Appliance class'!$D32*'RES S curve-connect'!AK$14+'Res-Appliance class'!$E32*'RES S curve-connect'!AK$19","v":5521.248061118793},{"$f":"'Res-Appliance class'!$B32*'RES S curve-connect'!AL$4+'Res-Appliance class'!$C32*'RES S curve-connect'!AL$9+'Res-Appliance class'!$D32*'RES S curve-connect'!AL$14+'Res-Appliance class'!$E32*'RES S curve-connect'!AL$19","v":4422.0208992096232},{"$f":"'Res-Appliance class'!$B32*'RES S curve-connect'!AM$4+'Res-Appliance class'!$C32*'RES S curve-connect'!AM$9+'Res-Appliance class'!$D32*'RES S curve-connect'!AM$14+'Res-Appliance class'!$E32*'RES S curve-connect'!AM$19","v":4271.2354821223416},{"$f":"'Res-Appliance class'!$B32*'RES S curve-connect'!AN$4+'Res-Appliance class'!$C32*'RES S curve-connect'!AN$9+'Res-Appliance class'!$D32*'RES S curve-connect'!AN$14+'Res-Appliance class'!$E32*'RES S curve-connect'!AN$19","v":4571.4289980588592},{"$f":"'Res-Appliance class'!$B32*'RES S curve-connect'!AO$4+'Res-Appliance class'!$C32*'RES S curve-connect'!AO$9+'Res-Appliance class'!$D32*'RES S curve-connect'!AO$14+'Res-Appliance class'!$E32*'RES S curve-connect'!AO$19","v":4941.9712906798804},{"$f":"'Res-Appliance class'!$B32*'RES S curve-connect'!AP$4+'Res-Appliance class'!$C32*'RES S curve-connect'!AP$9+'Res-Appliance class'!$D32*'RES S curve-connect'!AP$14+'Res-Appliance class'!$E32*'RES S curve-connect'!AP$19","v":5286.2749223138344},{"$f":"'Res-Appliance class'!$B32*'RES S curve-connect'!AQ$4+'Res-Appliance class'!$C32*'RES S curve-connect'!AQ$9+'Res-Appliance class'!$D32*'RES S curve-connect'!AQ$14+'Res-Appliance class'!$E32*'RES S curve-connect'!AQ$19","v":5654.944953053754},{"$f":"'Res-Appliance class'!$B32*'RES S curve-connect'!AR$4+'Res-Appliance class'!$C32*'RES S curve-connect'!AR$9+'Res-Appliance class'!$D32*'RES S curve-connect'!AR$14+'Res-Appliance class'!$E32*'RES S curve-connect'!AR$19","v":6060.9420325047895},{"$f":"'Res-Appliance class'!$B32*'RES S curve-connect'!AS$4+'Res-Appliance class'!$C32*'RES S curve-connect'!AS$9+'Res-Appliance class'!$D32*'RES S curve-connect'!AS$14+'Res-Appliance class'!$E32*'RES S curve-connect'!AS$19","v":6516.8512577018946},{"$f":"'Res-Appliance class'!$B32*'RES S curve-connect'!AT$4+'Res-Appliance class'!$C32*'RES S curve-connect'!AT$9+'Res-Appliance class'!$D32*'RES S curve-connect'!AT$14+'Res-Appliance class'!$E32*'RES S curve-connect'!AT$19","v":7028.2077499219758},{"$f":"'Res-Appliance class'!$B32*'RES S curve-connect'!AU$4+'Res-Appliance class'!$C32*'RES S curve-connect'!AU$9+'Res-Appliance class'!$D32*'RES S curve-connect'!AU$14+'Res-Appliance class'!$E32*'RES S curve-connect'!AU$19","v":7618.1529406179179},{"$f":"'Res-Appliance class'!$B32*'RES S curve-connect'!AV$4+'Res-Appliance class'!$C32*'RES S curve-connect'!AV$9+'Res-Appliance class'!$D32*'RES S curve-connect'!AV$14+'Res-Appliance class'!$E32*'RES S curve-connect'!AV$19","v":8292.8138636823096},{"$f":"'Res-Appliance class'!$B32*'RES S curve-connect'!AW$4+'Res-Appliance class'!$C32*'RES S curve-connect'!AW$9+'Res-Appliance class'!$D32*'RES S curve-connect'!AW$14+'Res-Appliance class'!$E32*'RES S curve-connect'!AW$19","v":9069.1049593729967},{"$f":"'Res-Appliance class'!$B32*'RES S curve-connect'!AX$4+'Res-Appliance class'!$C32*'RES S curve-connect'!AX$9+'Res-Appliance class'!$D32*'RES S curve-connect'!AX$14+'Res-Appliance class'!$E32*'RES S curve-connect'!AX$19","v":9955.946066898392},{"$f":"'Res-Appliance class'!$B32*'RES S curve-connect'!AY$4+'Res-Appliance class'!$C32*'RES S curve-connect'!AY$9+'Res-Appliance class'!$D32*'RES S curve-connect'!AY$14+'Res-Appliance class'!$E32*'RES S curve-connect'!AY$19","v":10978.42523355913},{"$f":"'Res-Appliance class'!$B32*'RES S curve-connect'!AZ$4+'Res-Appliance class'!$C32*'RES S curve-connect'!AZ$9+'Res-Appliance class'!$D32*'RES S curve-connect'!AZ$14+'Res-Appliance class'!$E32*'RES S curve-connect'!AZ$19","v":12150.064100316973},{"$f":"'Res-Appliance class'!$B32*'RES S curve-connect'!BA$4+'Res-Appliance class'!$C32*'RES S curve-connect'!BA$9+'Res-Appliance class'!$D32*'RES S curve-connect'!BA$14+'Res-Appliance class'!$E32*'RES S curve-connect'!BA$19","v":13508.850106618387},{"$f":"'Res-Appliance class'!$B32*'RES S curve-connect'!BB$4+'Res-Appliance class'!$C32*'RES S curve-connect'!BB$9+'Res-Appliance class'!$D32*'RES S curve-connect'!BB$14+'Res-Appliance class'!$E32*'RES S curve-connect'!BB$19","v":15099.731288669798},{"$f":"'Res-Appliance class'!$B32*'RES S curve-connect'!BC$4+'Res-Appliance class'!$C32*'RES S curve-connect'!BC$9+'Res-Appliance class'!$D32*'RES S curve-connect'!BC$14+'Res-Appliance class'!$E32*'RES S curve-connect'!BC$19","v":16997.506749899425},{"$f":"'Res-Appliance class'!$B32*'RES S curve-connect'!BD$4+'Res-Appliance class'!$C32*'RES S curve-connect'!BD$9+'Res-Appliance class'!$D32*'RES S curve-connect'!BD$14+'Res-Appliance class'!$E32*'RES S curve-connect'!BD$19","v":18836.991549847935},{"$f":"'Res-Appliance class'!$B32*'RES S curve-connect'!BE$4+'Res-Appliance class'!$C32*'RES S curve-connect'!BE$9+'Res-Appliance class'!$D32*'RES S curve-connect'!BE$14+'Res-Appliance class'!$E32*'RES S curve-connect'!BE$19","v":20521.200969898247},{"$f":"'Res-Appliance class'!$B32*'RES S curve-connect'!BF$4+'Res-Appliance class'!$C32*'RES S curve-connect'!BF$9+'Res-Appliance class'!$D32*'RES S curve-connect'!BF$14+'Res-Appliance class'!$E32*'RES S curve-connect'!BF$19","v":22243.603014607415},{"$f":"'Res-Appliance class'!$B32*'RES S curve-connect'!BG$4+'Res-Appliance class'!$C32*'RES S curve-connect'!BG$9+'Res-Appliance class'!$D32*'RES S curve-connect'!BG$14+'Res-Appliance class'!$E32*'RES S curve-connect'!BG$19","v":24189.699768409486},{"$f":"'Res-Appliance class'!$B32*'RES S curve-connect'!BH$4+'Res-Appliance class'!$C32*'RES S curve-connect'!BH$9+'Res-Appliance class'!$D32*'RES S curve-connect'!BH$14+'Res-Appliance class'!$E32*'RES S curve-connect'!BH$19","v":26501.810308052347},{"$f":"'Res-Appliance class'!$B32*'RES S curve-connect'!BI$4+'Res-Appliance class'!$C32*'RES S curve-connect'!BI$9+'Res-Appliance class'!$D32*'RES S curve-connect'!BI$14+'Res-Appliance class'!$E32*'RES S curve-connect'!BI$19","v":29850.052244229653},{"$f":"'Res-Appliance class'!$B32*'RES S curve-connect'!BJ$4+'Res-Appliance class'!$C32*'RES S curve-connect'!BJ$9+'Res-Appliance class'!$D32*'RES S curve-connect'!BJ$14+'Res-Appliance class'!$E32*'RES S curve-connect'!BJ$19","v":34763.86731459367},{"$f":"'Res-Appliance class'!$B32*'RES S curve-connect'!BK$4+'Res-Appliance class'!$C32*'RES S curve-connect'!BK$9+'Res-Appliance class'!$D32*'RES S curve-connect'!BK$14+'Res-Appliance class'!$E32*'RES S curve-connect'!BK$19","v":42030.580797730523},{"$f":"'Res-Appliance class'!$B32*'RES S curve-connect'!BL$4+'Res-Appliance class'!$C32*'RES S curve-connect'!BL$9+'Res-Appliance class'!$D32*'RES S curve-connect'!BL$14+'Res-Appliance class'!$E32*'RES S curve-connect'!BL$19","v":386.87437771473037},{"$f":"'Res-Appliance class'!$B32*'RES S curve-connect'!BM$4+'Res-Appliance class'!$C32*'RES S curve-connect'!BM$9+'Res-Appliance class'!$D32*'RES S curve-connect'!BM$14+'Res-Appliance class'!$E32*'RES S curve-connect'!BM$19","v":395.86094652176075},{"$f":"'Res-Appliance class'!$B32*'RES S curve-connect'!BN$4+'Res-Appliance class'!$C32*'RES S curve-connect'!BN$9+'Res-Appliance class'!$D32*'RES S curve-connect'!BN$14+'Res-Appliance class'!$E32*'RES S curve-connect'!BN$19","v":401.49625090699942},{"$f":"'Res-Appliance class'!$B32*'RES S curve-connect'!BO$4+'Res-Appliance class'!$C32*'RES S curve-connect'!BO$9+'Res-Appliance class'!$D32*'RES S curve-connect'!BO$14+'Res-Appliance class'!$E32*'RES S curve-connect'!BO$19","v":413.80161426397831},{"$f":"'Res-Appliance class'!$B32*'RES S curve-connect'!BP$4+'Res-Appliance class'!$C32*'RES S curve-connect'!BP$9+'Res-Appliance class'!$D32*'RES S curve-connect'!BP$14+'Res-Appliance class'!$E32*'RES S curve-connect'!BP$19","v":422.75584049041458},{"$f":"'Res-Appliance class'!$B32*'RES S curve-connect'!BQ$4+'Res-Appliance class'!$C32*'RES S curve-connect'!BQ$9+'Res-Appliance class'!$D32*'RES S curve-connect'!BQ$14+'Res-Appliance class'!$E32*'RES S curve-connect'!BQ$19","v":431.69941249627686},{"$f":"'Res-Appliance class'!$B32*'RES S curve-connect'!BR$4+'Res-Appliance class'!$C32*'RES S curve-connect'!BR$9+'Res-Appliance class'!$D32*'RES S curve-connect'!BR$14+'Res-Appliance class'!$E32*'RES S curve-connect'!BR$19","v":437.29197310287259},{"$f":"'Res-Appliance class'!$B32*'RES S curve-connect'!BS$4+'Res-Appliance class'!$C32*'RES S curve-connect'!BS$9+'Res-Appliance class'!$D32*'RES S curve-connect'!BS$14+'Res-Appliance class'!$E32*'RES S curve-connect'!BS$19","v":449.55484414863963},{"$f":"'Res-Appliance class'!$B32*'RES S curve-connect'!BT$4+'Res-Appliance class'!$C32*'RES S curve-connect'!BT$9+'Res-Appliance class'!$D32*'RES S curve-connect'!BT$14+'Res-Appliance class'!$E32*'RES S curve-connect'!BT$19","v":458.46682798597544},{"$f":"'Res-Appliance class'!$B32*'RES S curve-connect'!BU$4+'Res-Appliance class'!$C32*'RES S curve-connect'!BU$9+'Res-Appliance class'!$D32*'RES S curve-connect'!BU$14+'Res-Appliance class'!$E32*'RES S curve-connect'!BU$19","v":467.36840598923186},{"$f":"'Res-Appliance class'!$B32*'RES S curve-connect'!BV$4+'Res-Appliance class'!$C32*'RES S curve-connect'!BV$9+'Res-Appliance class'!$D32*'RES S curve-connect'!BV$14+'Res-Appliance class'!$E32*'RES S curve-connect'!BV$19","v":472.91921945373792},{"$f":"'Res-Appliance class'!$B32*'RES S curve-connect'!BW$4+'Res-Appliance class'!$C32*'RES S curve-connect'!BW$9+'Res-Appliance class'!$D32*'RES S curve-connect'!BW$14+'Res-Appliance class'!$E32*'RES S curve-connect'!BW$19","v":485.14058870154145},{"$f":"'Res-Appliance class'!$B32*'RES S curve-connect'!BX$4+'Res-Appliance class'!$C32*'RES S curve-connect'!BX$9+'Res-Appliance class'!$D32*'RES S curve-connect'!BX$14+'Res-Appliance class'!$E32*'RES S curve-connect'!BX$19","v":494.01131457816359},{"$f":"'Res-Appliance class'!$B32*'RES S curve-connect'!BY$4+'Res-Appliance class'!$C32*'RES S curve-connect'!BY$9+'Res-Appliance class'!$D32*'RES S curve-connect'!BY$14+'Res-Appliance class'!$E32*'RES S curve-connect'!BY$19","v":502.87187696054139},{"$f":"'Res-Appliance class'!$B32*'RES S curve-connect'!BZ$4+'Res-Appliance class'!$C32*'RES S curve-connect'!BZ$9+'Res-Appliance class'!$D32*'RES S curve-connect'!BZ$14+'Res-Appliance class'!$E32*'RES S curve-connect'!BZ$19","v":508.38191565599323},{"$f":"'Res-Appliance class'!$B32*'RES S curve-connect'!CA$4+'Res-Appliance class'!$C32*'RES S curve-connect'!CA$9+'Res-Appliance class'!$D32*'RES S curve-connect'!CA$14+'Res-Appliance class'!$E32*'RES S curve-connect'!CA$19","v":520.56274950789452},{"$f":"'Res-Appliance class'!$B32*'RES S curve-connect'!CB$4+'Res-Appliance class'!$C32*'RES S curve-connect'!CB$9+'Res-Appliance class'!$D32*'RES S curve-connect'!CB$14+'Res-Appliance class'!$E32*'RES S curve-connect'!CB$19","v":529.39317789237771},{"$f":"'Res-Appliance class'!$B32*'RES S curve-connect'!CC$4+'Res-Appliance class'!$C32*'RES S curve-connect'!CC$9+'Res-Appliance class'!$D32*'RES S curve-connect'!CC$14+'Res-Appliance class'!$E32*'RES S curve-connect'!CC$19","v":538.21367922620971},{"$f":"'Res-Appliance class'!$B32*'RES S curve-connect'!CD$4+'Res-Appliance class'!$C32*'RES S curve-connect'!CD$9+'Res-Appliance class'!$D32*'RES S curve-connect'!CD$14+'Res-Appliance class'!$E32*'RES S curve-connect'!CD$19","v":399.57506019631114}]
["Glen Eira (C)",null,{"$f":"'Res-Appliance class'!$B33*'RES S curve-connect'!C$4+'Res-Appliance class'!$C33*'RES S curve-connect'!C$9+'Res-Appliance class'!$D33*'RES S curve-connect'!C$14+'Res-Appliance class'!$E33*'RES S curve-connect'!C$19","v":-2727.4240954465949},{"$f":"'Res-Appliance class'!$B33*'RES S curve-connect'!D$4+'Res-Appliance class'!$C33*'RES S curve-connect'!D$9+'Res-Appliance class'!$D33*'RES S curve-connect'!D$14+'Res-Appliance class'!$E33*'RES S curve-connect'!D$19","v":-3200.7065881439398},{"$f":"'Res-Appliance class'!$B33*'RES S curve-connect'!E$4+'Res-Appliance class'!$C33*'RES S curve-connect'!E$9+'Res-Appliance class'!$D33*'RES S curve-connect'!E$14+'Res-Appliance class'!$E33*'RES S curve-connect'!E$19","v":-2561.5078436138915},{"$f":"'Res-Appliance class'!$B33*'RES S curve-connect'!F$4+'Res-Appliance class'!$C33*'RES S curve-connect'!F$9+'Res-Appliance class'!$D33*'RES S curve-connect'!F$14+'Res-Appliance class'!$E33*'RES S curve-connect'!F$19","v":-2422.47279060233},{"$f":"'Res-Appliance class'!$B33*'RES S curve-connect'!G$4+'Res-Appliance class'!$C33*'RES S curve-connect'!G$9+'Res-Appliance class'!$D33*'RES S curve-connect'!G$14+'Res-Appliance class'!$E33*'RES S curve-connect'!G$19","v":-3499.0698337180684},{"$f":"'Res-Appliance class'!$B33*'RES S curve-connect'!H$4+'Res-Appliance class'!$C33*'RES S curve-connect'!H$9+'Res-Appliance class'!$D33*'RES S curve-connect'!H$14+'Res-Appliance class'!$E33*'RES S curve-connect'!H$19","v":-3531.0888334039937},{"$f":"'Res-Appliance class'!$B33*'RES S curve-connect'!I$4+'Res-Appliance class'!$C33*'RES S curve-connect'!I$9+'Res-Appliance class'!$D33*'RES S curve-connect'!I$14+'Res-Appliance class'!$E33*'RES S curve-connect'!I$19","v":-3133.4590560215729},{"$f":"'Res-Appliance class'!$B33*'RES S curve-connect'!J$4+'Res-Appliance class'!$C33*'RES S curve-connect'!J$9+'Res-Appliance class'!$D33*'RES S curve-connect'!J$14+'Res-Appliance class'!$E33*'RES S curve-connect'!J$19","v":-3457.5801969993172},{"$f":"'Res-Appliance class'!$B33*'RES S curve-connect'!K$4+'Res-Appliance class'!$C33*'RES S curve-connect'!K$9+'Res-Appliance class'!$D33*'RES S curve-connect'!K$14+'Res-Appliance class'!$E33*'RES S curve-connect'!K$19","v":-2703.404142717819},{"$f":"'Res-Appliance class'!$B33*'RES S curve-connect'!L$4+'Res-Appliance class'!$C33*'RES S curve-connect'!L$9+'Res-Appliance class'!$D33*'RES S curve-connect'!L$14+'Res-Appliance class'!$E33*'RES S curve-connect'!L$19","v":-3024.4943425474435},{"$f":"'Res-Appliance class'!$B33*'RES S curve-connect'!M$4+'Res-Appliance class'!$C33*'RES S curve-connect'!M$9+'Res-Appliance class'!$D33*'RES S curve-connect'!M$14+'Res-Appliance class'!$E33*'RES S curve-connect'!M$19","v":-3600.6608077885116},{"$f":"'Res-Appliance class'!$B33*'RES S curve-connect'!N$4+'Res-Appliance class'!$C33*'RES S curve-connect'!N$9+'Res-Appliance class'!$D33*'RES S curve-connect'!N$14+'Res-Appliance class'!$E33*'RES S curve-connect'!N$19","v":-3653.2477952186809},{"$f":"'Res-Appliance class'!$B33*'RES S curve-connect'!O$4+'Res-Appliance class'!$C33*'RES S curve-connect'!O$9+'Res-Appliance class'!$D33*'RES S curve-connect'!O$14+'Res-Appliance class'!$E33*'RES S curve-connect'!O$19","v":-3135.053686565263},{"$f":"'Res-Appliance class'!$B33*'RES S curve-connect'!P$4+'Res-Appliance class'!$C33*'RES S curve-connect'!P$9+'Res-Appliance class'!$D33*'RES S curve-connect'!P$14+'Res-Appliance class'!$E33*'RES S curve-connect'!P$19","v":-2722.9755172534824},{"$f":"'Res-Appliance class'!$B33*'RES S curve-connect'!Q$4+'Res-Appliance class'!$C33*'RES S curve-connect'!Q$9+'Res-Appliance class'!$D33*'RES S curve-connect'!Q$14+'Res-Appliance class'!$E33*'RES S curve-connect'!Q$19","v":-2101.4880817606613},{"$f":"'Res-Appliance class'!$B33*'RES S curve-connect'!R$4+'Res-Appliance class'!$C33*'RES S curve-connect'!R$9+'Res-Appliance class'!$D33*'RES S curve-connect'!R$14+'Res-Appliance class'!$E33*'RES S curve-connect'!R$19","v":-1748.4447620633616},{"$f":"'Res-Appliance class'!$B33*'RES S curve-connect'!S$4+'Res-Appliance class'!$C33*'RES S curve-connect'!S$9+'Res-Appliance class'!$D33*'RES S curve-connect'!S$14+'Res-Appliance class'!$E33*'RES S curve-connect'!S$19","v":-1186.1869466472424},{"$f":"'Res-Appliance class'!$B33*'RES S curve-connect'!T$4+'Res-Appliance class'!$C33*'RES S curve-connect'!T$9+'Res-Appliance class'!$D33*'RES S curve-connect'!T$14+'Res-Appliance class'!$E33*'RES S curve-connect'!T$19","v":-883.95292251134788},{"$f":"'Res-Appliance class'!$B33*'RES S curve-connect'!U$4+'Res-Appliance class'!$C33*'RES S curve-connect'!U$9+'Res-Appliance class'!$D33*'RES S curve-connect'!U$14+'Res-Appliance class'!$E33*'RES S curve-connect'!U$19","v":-536.18303449176233},{"$f":"'Res-Appliance class'!$B33*'RES S curve-connect'!V$4+'Res-Appliance class'!$C33*'RES S curve-connect'!V$9+'Res-Appliance class'!$D33*'RES S curve-connect'!V$14+'Res-Appliance class'!$E33*'RES S curve-connect'!V$19","v":-297.2664993487507},{"$f":"'Res-Appliance class'!$B33*'RES S curve-connect'!W$4+'Res-Appliance class'!$C33*'RES S curve-connect'!W$9+'Res-Appliance class'!$D33*'RES S curve-connect'!W$14+'Res-Appliance class'!$E33*'RES S curve-connect'!W$19","v":-110.54681081066667},{"$f":"'Res-Appliance class'!$B33*'RES S curve-connect'!X$4+'Res-Appliance class'!$C33*'RES S curve-connect'!X$9+'Res-Appliance class'!$D33*'RES S curve-connect'!X$14+'Res-Appliance class'!$E33*'RES S curve-connect'!X$19","v":308.20841840546717},{"$f":"'Res-Appliance class'!$B33*'RES S curve-connect'!Y$4+'Res-Appliance class'!$C33*'RES S curve-connect'!Y$9+'Res-Appliance class'!$D33*'RES S curve-connect'!Y$14+'Res-Appliance class'!$E33*'RES S curve-connect'!Y$19","v":732.30414464494686},{"$f":"'Res-Appliance class'!$B33*'RES S curve-connect'!Z$4+'Res-Appliance class'!$C33*'RES S curve-connect'!Z$9+'Res-Appliance class'!$D33*'RES S curve-connect'!Z$14+'Res-Appliance class'!$E33*'RES S curve-connect'!Z$19","v":1020.1979200681617},{"$f":"'Res-Appliance class'!$B33*'RES S curve-connect'!AA$4+'Res-Appliance class'!$C33*'RES S curve-connect'!AA$9+'Res-Appliance class'!$D33*'RES S curve-connect'!AA$14+'Res-Appliance class'!$E33*'RES S curve-connect'!AA$19","v":1308.6145352411829},{"$f":"'Res-Appliance class'!$B33*'RES S curve-connect'!AB$4+'Res-Appliance class'!$C33*'RES S curve-connect'!AB$9+'Res-Appliance class'!$D33*'RES S curve-connect'!AB$14+'Res-Appliance class'!$E33*'RES S curve-connect'!AB$19","v":1539.530321273385},{"$f":"'Res-Appliance class'!$B33*'RES S curve-connect'!AC$4+'Res-Appliance class'!$C33*'RES S curve-connect'!AC$9+'Res-Appliance class'!$D33*'RES S curve-connect'!AC$14+'Res-Appliance class'!$E33*'RES S curve-connect'!AC$19","v":1762.3914448561316},{"$f":"'Res-Appliance class'!$B33*'RES S curve-connect'!AD$4+'Res-Appliance class'!$C33*'RES S curve-connect'!AD$9+'Res-Appliance class'!$D33*'RES S curve-connect'!AD$14+'Res-Appliance class'!$E33*'RES S curve-connect'!AD$19","v":1966.9758728569041},{"$f":"'Res-Appliance class'!$B33*'RES S curve-connect'!AE$4+'Res-Appliance class'!$C33*'RES S curve-connect'!AE$9+'Res-Appliance class'!$D33*'RES S curve-connect'!AE$14+'Res-Appliance class'!$E33*'RES S curve-connect'!AE$19","v":2182.6291186230665},{"$f":"'Res-Appliance class'!$B33*'RES S curve-connect'!AF$4+'Res-Appliance class'!$C33*'RES S curve-connect'!AF$9+'Res-Appliance class'!$D33*'RES S curve-connect'!AF$14+'Res-Appliance class'!$E33*'RES S curve-connect'!AF$19","v":2460.2367192136526},{"$f":"'Res-Appliance class'!$B33*'RES S curve-connect'!AG$4+'Res-Appliance class'!$C33*'RES S curve-connect'!AG$9+'Res-Appliance class'!$D33*'RES S curve-connect'!AG$14+'Res-Appliance class'!$E33*'RES S curve-connect'!AG$19","v":2650.4476085871802},{"$f":"'Res-Appliance class'!$B33*'RES S curve-connect'!AH$4+'Res-Appliance class'!$C33*'RES S curve-connect'!AH$9+'Res-Appliance class'!$D33*'RES S curve-connect'!AH$14+'Res-Appliance class'!$E33*'RES S curve-connect'!AH$19","v":2916.6921904870028},{"$f":"'Res-Appliance class'!$B33*'RES S curve-connect'!AI$4+'Res-Appliance class'!$C33*'RES S curve-connect'!AI$9+'Res-Appliance class'!$D33*'RES S curve-connect'!AI$14+'Res-Appliance class'!$E33*'RES S curve-connect'!AI$19","v":3157.3131830940833},{"$f":"'Res-Appliance class'!$B33*'RES S curve-connect'!AJ$4+'Res-Appliance class'!$C33*'RES S curve-connect'!AJ$9+'Res-Appliance class'!$D33*'RES S curve-connect'!AJ$14+'Res-Appliance class'!$E33*'RES S curve-connect'!AJ$19","v":3374.1994807519318},{"$f":"'Res-Appliance class'!$B33*'RES S curve-connect'!AK$4+'Res-Appliance class'!$C33*'RES S curve-connect'!AK$9+'Res-Appliance class'!$D33*'RES S curve-connect'!AK$14+'Res-Appliance class'!$E33*'RES S curve-connect'!AK$19","v":3604.5021255683146},{"$f":"'Res-Appliance class'!$B33*'RES S curve-connect'!AL$4+'Res-Appliance class'!$C33*'RES S curve-connect'!AL$9+'Res-Appliance class'!$D33*'RES S curve-connect'!AL$14+'Res-Appliance class'!$E33*'RES S curve-connect'!AL$19","v":2803.7371602800445},{"$f":"'Res-Appliance class'!$B33*'RES S curve-connect'!AM$4+'Res-Appliance class'!$C33*'RES S curve-connect'!AM$9+'Res-Appliance class'!$D33*'RES S curve-connect'!AM$14+'Res-Appliance class'!$E33*'RES S curve-connect'!AM$19","v":2700.7998918327899},{"$f":"'Res-Appliance class'!$B33*'RES S curve-connect'!AN$4+'Res-Appliance class'!$C33*'RES S curve-connect'!AN$9+'Res-Appliance class'!$D33*'RES S curve-connect'!AN$14+'Res-Appliance class'!$E33*'RES S curve-connect'!AN$19","v":2919.7628911728616},{"$f":"'Res-Appliance class'!$B33*'RES S curve-connect'!AO$4+'Res-Appliance class'!$C33*'RES S curve-connect'!AO$9+'Res-Appliance class'!$D33*'RES S curve-connect'!AO$14+'Res-Appliance class'!$E33*'RES S curve-connect'!AO$19","v":3186.6978094144188},{"$f":"'Res-Appliance class'!$B33*'RES S curve-connect'!AP$4+'Res-Appliance class'!$C33*'RES S curve-connect'!AP$9+'Res-Appliance class'!$D33*'RES S curve-connect'!AP$14+'Res-Appliance class'!$E33*'RES S curve-connect'!AP$19","v":3432.783119466766},{"$f":"'Res-Appliance class'!$B33*'RES S curve-connect'!AQ$4+'Res-Appliance class'!$C33*'RES S curve-connect'!AQ$9+'Res-Appliance class'!$D33*'RES S curve-connect'!AQ$14+'Res-Appliance class'!$E33*'RES S curve-connect'!AQ$19","v":3698.2498230938827},{"$f":"'Res-Appliance class'!$B33*'RES S curve-connect'!AR$4+'Res-Appliance class'!$C33*'RES S curve-connect'!AR$9+'Res-Appliance class'!$D33*'RES S curve-connect'!AR$14+'Res-Appliance class'!$E33*'RES S curve-connect'!AR$19","v":3989.4326441115127},{"$f":"'Res-Appliance class'!$B33*'RES S curve-connect'!AS$4+'Res-Appliance class'!$C33*'RES S curve-connect'!AS$9+'Res-Appliance class'!$D33*'RES S curve-connect'!AS$14+'Res-Appliance class'!$E33*'RES S curve-connect'!AS$19","v":4316.1071431303599},{"$f":"'Res-Appliance class'!$B33*'RES S curve-connect'!AT$4+'Res-Appliance class'!$C33*'RES S curve-connect'!AT$9+'Res-Appliance class'!$D33*'RES S curve-connect'!AT$14+'Res-Appliance class'!$E33*'RES S curve-connect'!AT$19","v":4681.1759263231561},{"$f":"'Res-Appliance class'!$B33*'RES S curve-connect'!AU$4+'Res-Appliance class'!$C33*'RES S curve-connect'!AU$9+'Res-Appliance class'!$D33*'RES S curve-connect'!AU$14+'Res-Appliance class'!$E33*'RES S curve-connect'!AU$19","v":5103.9435953742905},{"$f":"'Res-Appliance class'!$B33*'RES S curve-connect'!AV$4+'Res-Appliance class'!$C33*'RES S curve-connect'!AV$9+'Res-Appliance class'!$D33*'RES S curve-connect'!AV$14+'Res-Appliance class'!$E33*'RES S curve-connect'!AV$19","v":5585.7658014149083},{"$f":"'Res-Appliance class'!$B33*'RES S curve-connect'!AW$4+'Res-Appliance class'!$C33*'RES S curve-connect'!AW$9+'Res-Appliance class'!$D33*'RES S curve-connect'!AW$14+'Res-Appliance class'!$E33*'RES S curve-connect'!AW$19","v":6139.3858302504068},{"$f":"'Res-Appliance class'!$B33*'RES S curve-connect'!AX$4+'Res-Appliance class'!$C33*'RES S curve-connect'!AX$9+'Res-Appliance class'!$D33*'RES S curve-connect'!AX$14+'Res-Appliance class'!$E33*'RES S curve-connect'!AX$19","v":6769.8456938845175},{"$f":"'Res-Appliance class'!$B33*'RES S curve-connect'!AY$4+'Res-Appliance class'!$C33*'RES S curve-connect'!AY$9+'Res-Appliance class'!$D33*'RES S curve-connect'!AY$14+'Res-Appliance class'!$E33*'RES S curve-connect'!AY$19","v":7497.5169665933918},{"$f":"'Res-Appliance class'!$B33*'RES S curve-connect'!AZ$4+'Res-Appliance class'!$C33*'RES S curve-connect'!AZ$9+'Res-Appliance class'!$D33*'RES S curve-connect'!AZ$14+'Res-Appliance class'!$E33*'RES S curve-connect'!AZ$19","v":8328.7124893960754},{"$f":"'Res-Appliance class'!$B33*'RES S curve-connect'!BA$4+'Res-Appliance class'!$C33*'RES S curve-connect'!BA$9+'Res-Appliance class'!$D33*'RES S curve-connect'!BA$14+'Res-Appliance class'!$E33*'RES S curve-connect'!BA$19","v":9290.8764674581707},{"$f":"'Res-Appliance class'!$B33*'RES S curve-connect'!BB$4+'Res-Appliance class'!$C33*'RES S curve-connect'!BB$9+'Res-Appliance class'!$D33*'RES S curve-connect'!BB$14+'Res-Appliance class'!$E33*'RES S curve-connect'!BB$19","v":10414.215467000053},{"$f":"'Res-Appliance class'!$B33*'RES S curve-connect'!BC$4+'Res-Appliance class'!$C33*'RES S curve-connect'!BC$9+'Res-Appliance class'!$D33*'RES S curve-connect'!BC$14+'Res-Appliance class'!$E33*'RES S curve-connect'!BC$19","v":11753.673836947151},{"$f":"'Res-Appliance class'!$B33*'RES S curve-connect'!BD$4+'Res-Appliance class'!$C33*'RES S curve-connect'!BD$9+'Res-Appliance class'!$D33*'RES S curve-connect'!BD$14+'Res-Appliance class'!$E33*'RES S curve-connect'!BD$19","v":13043.849647860812},{"$f":"'Res-Appliance class'!$B33*'RES S curve-connect'!BE$4+'Res-Appliance class'!$C33*'RES S curve-connect'!BE$9+'Res-Appliance class'!$D33*'RES S curve-connect'!BE$14+'Res-Appliance class'!$E33*'RES S curve-connect'!BE$19","v":14222.414176936141},{"$f":"'Res-Appliance class'!$B33*'RES S curve-connect'!BF$4+'Res-Appliance class'!$C33*'RES S curve-connect'!BF$9+'Res-Appliance class'!$D33*'RES S curve-connect'!BF$14+'Res-Appliance class'!$E33*'RES S curve-connect'!BF$19","v":15428.503866879297},{"$f":"'Res-Appliance class'!$B33*'RES S curve-connect'!BG$4+'Res-Appliance class'!$C33*'RES S curve-connect'!BG$9+'Res-Appliance class'!$D33*'RES S curve-connect'!BG$14+'Res-Appliance class'!$E33*'RES S curve-connect'!BG$19","v":16794.277269461996},{"$f":"'Res-Appliance class'!$B33*'RES S curve-connect'!BH$4+'Res-Appliance class'!$C33*'RES S curve-connect'!BH$9+'Res-Appliance class'!$D33*'RES S curve-connect'!BH$14+'Res-Appliance class'!$E33*'RES S curve-connect'!BH$19","v":18415.08251587264},{"$f":"'Res-Appliance class'!$B33*'RES S curve-connect'!BI$4+'Res-Appliance class'!$C33*'RES S curve-connect'!BI$9+'Res-Appliance class'!$D33*'RES S curve-connect'!BI$14+'Res-Appliance class'!$E33*'RES S curve-connect'!BI$19","v":20764.100108526283},{"$f":"'Res-Appliance class'!$B33*'RES S curve-connect'!BJ$4+'Res-Appliance class'!$C33*'RES S curve-connect'!BJ$9+'Res-Appliance class'!$D33*'RES S curve-connect'!BJ$14+'Res-Appliance class'!$E33*'RES S curve-connect'!BJ$19","v":24202.081964338882},{"$f":"'Res-Appliance class'!$B33*'RES S curve-connect'!BK$4+'Res-Appliance class'!$C33*'RES S curve-connect'!BK$9+'Res-Appliance class'!$D33*'RES S curve-connect'!BK$14+'Res-Appliance class'!$E33*'RES S curve-connect'!BK$19","v":29272.481333136187},{"$f":"'Res-Appliance class'!$B33*'RES S curve-connect'!BL$4+'Res-Appliance class'!$C33*'RES S curve-connect'!BL$9+'Res-Appliance class'!$D33*'RES S curve-connect'!BL$14+'Res-Appliance class'!$E33*'RES S curve-connect'!BL$19","v":-122.9005533414269},{"$f":"'Res-Appliance class'!$B33*'RES S curve-connect'!BM$4+'Res-Appliance class'!$C33*'RES S curve-connect'!BM$9+'Res-Appliance class'!$D33*'RES S curve-connect'!BM$14+'Res-Appliance class'!$E33*'RES S curve-connect'!BM$19","v":-116.45749762728093},{"$f":"'Res-Appliance class'!$B33*'RES S curve-connect'!BN$4+'Res-Appliance class'!$C33*'RES S curve-connect'!BN$9+'Res-Appliance class'!$D33*'RES S curve-connect'!BN$14+'Res-Appliance class'!$E33*'RES S curve-connect'!BN$19","v":-113.36406256229955},{"$f":"'Res-Appliance class'!$B33*'RES S curve-connect'!BO$4+'Res-Appliance class'!$C33*'RES S curve-connect'!BO$9+'Res-Appliance class'!$D33*'RES S curve-connect'!BO$14+'Res-Appliance class'!$E33*'RES S curve-connect'!BO$19","v":-103.59893297696229},{"$f":"'Res-Appliance class'!$B33*'RES S curve-connect'!BP$4+'Res-Appliance class'!$C33*'RES S curve-connect'!BP$9+'Res-Appliance class'!$D33*'RES S curve-connect'!BP$14+'Res-Appliance class'!$E33*'RES S curve-connect'!BP$19","v":-97.183313151585878},{"$f":"'Res-Appliance class'!$B33*'RES S curve-connect'!BQ$4+'Res-Appliance class'!$C33*'RES S curve-connect'!BQ$9+'Res-Appliance class'!$D33*'RES S curve-connect'!BQ$14+'Res-Appliance class'!$E33*'RES S curve-connect'!BQ$19","v":-90.776728308536832},{"$f":"'Res-Appliance class'!$B33*'RES S curve-connect'!BR$4+'Res-Appliance class'!$C33*'RES S curve-connect'!BR$9+'Res-Appliance class'!$D33*'RES S curve-connect'!BR$14+'Res-Appliance class'!$E33*'RES S curve-connect'!BR$19","v":-87.719543713415362},{"$f":"'Res-Appliance class'!$B33*'RES S curve-connect'!BS$4+'Res-Appliance class'!$C33*'RES S curve-connect'!BS$9+'Res-Appliance class'!$D33*'RES S curve-connect'!BS$14+'Res-Appliance class'!$E33*'RES S curve-connect'!BS$19","v":-77.990445569536746},{"$f":"'Res-Appliance class'!$B33*'RES S curve-connect'!BT$4+'Res-Appliance class'!$C33*'RES S curve-connect'!BT$9+'Res-Appliance class'!$D33*'RES S curve-connect'!BT$14+'Res-Appliance class'!$E33*'RES S curve-connect'!BT$19","v":-71.610639521370388},{"$f":"'Res-Appliance class'!$B33*'RES S curve-connect'!BU$4+'Res-Appliance class'!$C33*'RES S curve-connect'!BU$9+'Res-Appliance class'!$D33*'RES S curve-connect'!BU$14+'Res-Appliance class'!$E33*'RES S curve-connect'!BU$19","v":-65.239652146816411},{"$f":"'Res-Appliance class'!$B33*'RES S curve-connect'!BV$4+'Res-Appliance class'!$C33*'RES S curve-connect'!BV$9+'Res-Appliance class'!$D33*'RES S curve-connect'!BV$14+'Res-Appliance class'!$E33*'RES S curve-connect'!BV$19","v":-62.217850058444469},{"$f":"'Res-Appliance class'!$B33*'RES S curve-connect'!BW$4+'Res-Appliance class'!$C33*'RES S curve-connect'!BW$9+'Res-Appliance class'!$D33*'RES S curve-connect'!BW$14+'Res-Appliance class'!$E33*'RES S curve-connect'!BW$19","v":-52.523920798021436},{"$f":"'Res-Appliance class'!$B33*'RES S curve-connect'!BX$4+'Res-Appliance class'!$C33*'RES S curve-connect'!BX$9+'Res-Appliance class'!$D33*'RES S curve-connect'!BX$14+'Res-Appliance class'!$E33*'RES S curve-connect'!BX$19","v":-46.179071340016833},{"$f":"'Res-Appliance class'!$B33*'RES S curve-connect'!BY$4+'Res-Appliance class'!$C33*'RES S curve-connect'!BY$9+'Res-Appliance class'!$D33*'RES S curve-connect'!BY$14+'Res-Appliance class'!$E33*'RES S curve-connect'!BY$19","v":-39.842829583924754},{"$f":"'Res-Appliance class'!$B33*'RES S curve-connect'!BZ$4+'Res-Appliance class'!$C33*'RES S curve-connect'!BZ$9+'Res-Appliance class'!$D33*'RES S curve-connect'!BZ$14+'Res-Appliance class'!$E33*'RES S curve-connect'!BZ$19","v":-36.855563455555398},{"$f":"'Res-Appliance class'!$B33*'RES S curve-connect'!CA$4+'Res-Appliance class'!$C33*'RES S curve-connect'!CA$9+'Res-Appliance class'!$D33*'RES S curve-connect'!CA$14+'Res-Appliance class'!$E33*'RES S curve-connect'!CA$19","v":-27.195961801621763},{"$f":"'Res-Appliance class'!$B33*'RES S curve-connect'!CB$4+'Res-Appliance class'!$C33*'RES S curve-connect'!CB$9+'Res-Appliance class'!$D33*'RES S curve-connect'!CB$14+'Res-Appliance class'!$E33*'RES S curve-connect'!CB$19","v":-20.885232893292198},{"$f":"'Res-Appliance class'!$B33*'RES S curve-connect'!CC$4+'Res-Appliance class'!$C33*'RES S curve-connect'!CC$9+'Res-Appliance class'!$D33*'RES S curve-connect'!CC$14+'Res-Appliance class'!$E33*'RES S curve-connect'!CC$19","v":-14.582905918569793},{"$f":"'Res-Appliance class'!$B33*'RES S curve-connect'!CD$4+'Res-Appliance class'!$C33*'RES S curve-connect'!CD$9+'Res-Appliance class'!$D33*'RES S curve-connect'!CD$14+'Res-Appliance class'!$E33*'RES S curve-connect'!CD$19","v":-110.12738511281736}]
["Greater Dandenong (C)",null,{"$f":"'Res-Appliance class'!$B34*'RES S curve-connect'!C$4+'Res-Appliance class'!$C34*'RES S curve-connect'!C$9+'Res-Appliance class'!$D34*'RES S curve-connect'!C$14+'Res-Appliance class'!$E34*'RES S curve-connect'!C$19","v":-2952.1571132957856},{"$f":"'Res-Appliance class'!$B34*'RES S curve-connect'!D$4+'Res-Appliance class'!$C34*'RES S curve-connect'!D$9+'Res-Appliance class'!$D34*'RES S curve-connect'!D$14+'Res-Appliance class'!$E34*'RES S curve-connect'!D$19","v":-3444.9072177234548},{"$f":"'Res-Appliance class'!$B34*'RES S curve-connect'!E$4+'Res-Appliance class'!$C34*'RES S curve-connect'!E$9+'Res-Appliance class'!$D34*'RES S curve-connect'!E$14+'Res-Appliance class'!$E34*'RES S curve-connect'!E$19","v":-2781.3999974477056},{"$f":"'Res-Appliance class'!$B34*'RES S curve-connect'!F$4+'Res-Appliance class'!$C34*'RES S curve-connect'!F$9+'Res-Appliance class'!$D34*'RES S curve-connect'!F$14+'Res-Appliance class'!$E34*'RES S curve-connect'!F$19","v":-2635.5298035680198},{"$f":"'Res-Appliance class'!$B34*'RES S curve-connect'!G$4+'Res-Appliance class'!$C34*'RES S curve-connect'!G$9+'Res-Appliance class'!$D34*'RES S curve-connect'!G$14+'Res-Appliance class'!$E34*'RES S curve-connect'!G$19","v":-3724.495433918124},{"$f":"'Res-Appliance class'!$B34*'RES S curve-connect'!H$4+'Res-Appliance class'!$C34*'RES S curve-connect'!H$9+'Res-Appliance class'!$D34*'RES S curve-connect'!H$14+'Res-Appliance class'!$E34*'RES S curve-connect'!H$19","v":-3771.4390377086934},{"$f":"'Res-Appliance class'!$B34*'RES S curve-connect'!I$4+'Res-Appliance class'!$C34*'RES S curve-connect'!I$9+'Res-Appliance class'!$D34*'RES S curve-connect'!I$14+'Res-Appliance class'!$E34*'RES S curve-connect'!I$19","v":-3358.3797536001521},{"$f":"'Res-Appliance class'!$B34*'RES S curve-connect'!J$4+'Res-Appliance class'!$C34*'RES S curve-connect'!J$9+'Res-Appliance class'!$D34*'RES S curve-connect'!J$14+'Res-Appliance class'!$E34*'RES S curve-connect'!J$19","v":-3707.0741036436602},{"$f":"'Res-Appliance class'!$B34*'RES S curve-connect'!K$4+'Res-Appliance class'!$C34*'RES S curve-connect'!K$9+'Res-Appliance class'!$D34*'RES S curve-connect'!K$14+'Res-Appliance class'!$E34*'RES S curve-connect'!K$19","v":-2922.4030825826094},{"$f":"'Res-Appliance class'!$B34*'RES S curve-connect'!L$4+'Res-Appliance class'!$C34*'RES S curve-connect'!L$9+'Res-Appliance class'!$D34*'RES S curve-connect'!L$14+'Res-Appliance class'!$E34*'RES S curve-connect'!L$19","v":-3255.6621139182621},{"$f":"'Res-Appliance class'!$B34*'RES S curve-connect'!M$4+'Res-Appliance class'!$C34*'RES S curve-connect'!M$9+'Res-Appliance class'!$D34*'RES S curve-connect'!M$14+'Res-Appliance class'!$E34*'RES S curve-connect'!M$19","v":-3852.5365639796719},{"$f":"'Res-Appliance class'!$B34*'RES S curve-connect'!N$4+'Res-Appliance class'!$C34*'RES S curve-connect'!N$9+'Res-Appliance class'!$D34*'RES S curve-connect'!N$14+'Res-Appliance class'!$E34*'RES S curve-connect'!N$19","v":-3905.9620206354066},{"$f":"'Res-Appliance class'!$B34*'RES S curve-connect'!O$4+'Res-Appliance class'!$C34*'RES S curve-connect'!O$9+'Res-Appliance class'!$D34*'RES S curve-connect'!O$14+'Res-Appliance class'!$E34*'RES S curve-connect'!O$19","v":-3367.6703942761101},{"$f":"'Res-Appliance class'!$B34*'RES S curve-connect'!P$4+'Res-Appliance class'!$C34*'RES S curve-connect'!P$9+'Res-Appliance class'!$D34*'RES S curve-connect'!P$14+'Res-Appliance class'!$E34*'RES S curve-connect'!P$19","v":-2939.4456208829506},{"$f":"'Res-Appliance class'!$B34*'RES S curve-connect'!Q$4+'Res-Appliance class'!$C34*'RES S curve-connect'!Q$9+'Res-Appliance class'!$D34*'RES S curve-connect'!Q$14+'Res-Appliance class'!$E34*'RES S curve-connect'!Q$19","v":-2294.0989320051563},{"$f":"'Res-Appliance class'!$B34*'RES S curve-connect'!R$4+'Res-Appliance class'!$C34*'RES S curve-connect'!R$9+'Res-Appliance class'!$D34*'RES S curve-connect'!R$14+'Res-Appliance class'!$E34*'RES S curve-connect'!R$19","v":-1927.0403595243824},{"$f":"'Res-Appliance class'!$B34*'RES S curve-connect'!S$4+'Res-Appliance class'!$C34*'RES S curve-connect'!S$9+'Res-Appliance class'!$D34*'RES S curve-connect'!S$14+'Res-Appliance class'!$E34*'RES S curve-connect'!S$19","v":-1344.0205271561586},{"$f":"'Res-Appliance class'!$B34*'RES S curve-connect'!T$4+'Res-Appliance class'!$C34*'RES S curve-connect'!T$9+'Res-Appliance class'!$D34*'RES S curve-connect'!T$14+'Res-Appliance class'!$E34*'RES S curve-connect'!T$19","v":-1028.0861145181768},{"$f":"'Res-Appliance class'!$B34*'RES S curve-connect'!U$4+'Res-Appliance class'!$C34*'RES S curve-connect'!U$9+'Res-Appliance class'!$D34*'RES S curve-connect'!U$14+'Res-Appliance class'!$E34*'RES S curve-connect'!U$19","v":-665.94279130476718},{"$f":"'Res-Appliance class'!$B34*'RES S curve-connect'!V$4+'Res-Appliance class'!$C34*'RES S curve-connect'!V$9+'Res-Appliance class'!$D34*'RES S curve-connect'!V$14+'Res-Appliance class'!$E34*'RES S curve-connect'!V$19","v":-416.94068213314023},{"$f":"'Res-Appliance class'!$B34*'RES S curve-connect'!W$4+'Res-Appliance class'!$C34*'RES S curve-connect'!W$9+'Res-Appliance class'!$D34*'RES S curve-connect'!W$14+'Res-Appliance class'!$E34*'RES S curve-connect'!W$19","v":-222.46022847746653},{"$f":"'Res-Appliance class'!$B34*'RES S curve-connect'!X$4+'Res-Appliance class'!$C34*'RES S curve-connect'!X$9+'Res-Appliance class'!$D34*'RES S curve-connect'!X$14+'Res-Appliance class'!$E34*'RES S curve-connect'!X$19","v":212.97593246800267},{"$f":"'Res-Appliance class'!$B34*'RES S curve-connect'!Y$4+'Res-Appliance class'!$C34*'RES S curve-connect'!Y$9+'Res-Appliance class'!$D34*'RES S curve-connect'!Y$14+'Res-Appliance class'!$E34*'RES S curve-connect'!Y$19","v":653.77700105387396},{"$f":"'Res-Appliance class'!$B34*'RES S curve-connect'!Z$4+'Res-Appliance class'!$C34*'RES S curve-connect'!Z$9+'Res-Appliance class'!$D34*'RES S curve-connect'!Z$14+'Res-Appliance class'!$E34*'RES S curve-connect'!Z$19","v":953.32924966725102},{"$f":"'Res-Appliance class'!$B34*'RES S curve-connect'!AA$4+'Res-Appliance class'!$C34*'RES S curve-connect'!AA$9+'Res-Appliance class'!$D34*'RES S curve-connect'!AA$14+'Res-Appliance class'!$E34*'RES S curve-connect'!AA$19","v":1253.2198349311288},{"$f":"'Res-Appliance class'!$B34*'RES S curve-connect'!AB$4+'Res-Appliance class'!$C34*'RES S curve-connect'!AB$9+'Res-Appliance class'!$D34*'RES S curve-connect'!AB$14+'Res-Appliance class'!$E34*'RES S curve-connect'!AB$19","v":1493.1092300698554},{"$f":"'Res-Appliance class'!$B34*'RES S curve-connect'!AC$4+'Res-Appliance class'!$C34*'RES S curve-connect'!AC$9+'Res-Appliance class'!$D34*'RES S curve-connect'!AC$14+'Res-Appliance class'!$E34*'RES S curve-connect'!AC$19","v":1724.5173790333315},{"$f":"'Res-Appliance class'!$B34*'RES S curve-connect'!AD$4+'Res-Appliance class'!$C34*'RES S curve-connect'!AD$9+'Res-Appliance class'!$D34*'RES S curve-connect'!AD$14+'Res-Appliance class'!$E34*'RES S curve-connect'!AD$19","v":1937.0055671261357},{"$f":"'Res-Appliance class'!$B34*'RES S curve-connect'!AE$4+'Res-Appliance class'!$C34*'RES S curve-connect'!AE$9+'Res-Appliance class'!$D34*'RES S curve-connect'!AE$14+'Res-Appliance class'!$E34*'RES S curve-connect'!AE$19","v":2160.6403767805837},{"$f":"'Res-Appliance class'!$B34*'RES S curve-connect'!AF$4+'Res-Appliance class'!$C34*'RES S curve-connect'!AF$9+'Res-Appliance class'!$D34*'RES S curve-connect'!AF$14+'Res-Appliance class'!$E34*'RES S curve-connect'!AF$19","v":2448.6246790235978},{"$f":"'Res-Appliance class'!$B34*'RES S curve-connect'!AG$4+'Res-Appliance class'!$C34*'RES S curve-connect'!AG$9+'Res-Appliance class'!$D34*'RES S curve-connect'!AG$14+'Res-Appliance class'!$E34*'RES S curve-connect'!AG$19","v":2645.2822494158063},{"$f":"'Res-Appliance class'!$B34*'RES S curve-connect'!AH$4+'Res-Appliance class'!$C34*'RES S curve-connect'!AH$9+'Res-Appliance class'!$D34*'RES S curve-connect'!AH$14+'Res-Appliance class'!$E34*'RES S curve-connect'!AH$19","v":2921.1209998267914},{"$f":"'Res-Appliance class'!$B34*'RES S curve-connect'!AI$4+'Res-Appliance class'!$C34*'RES S curve-connect'!AI$9+'Res-Appliance class'!$D34*'RES S curve-connect'!AI$14+'Res-Appliance class'!$E34*'RES S curve-connect'!AI$19","v":3169.8746203750302},{"$f":"'Res-Appliance class'!$B34*'RES S curve-connect'!AJ$4+'Res-Appliance class'!$C34*'RES S curve-connect'!AJ$9+'Res-Appliance class'!$D34*'RES S curve-connect'!AJ$14+'Res-Appliance class'!$E34*'RES S curve-connect'!AJ$19","v":3394.2086102463795},{"$f":"'Res-Appliance class'!$B34*'RES S curve-connect'!AK$4+'Res-Appliance class'!$C34*'RES S curve-connect'!AK$9+'Res-Appliance class'!$D34*'RES S curve-connect'!AK$14+'Res-Appliance class'!$E34*'RES S curve-connect'!AK$19","v":3632.3967374468102},{"$f":"'Res-Appliance class'!$B34*'RES S curve-connect'!AL$4+'Res-Appliance class'!$C34*'RES S curve-connect'!AL$9+'Res-Appliance class'!$D34*'RES S curve-connect'!AL$14+'Res-Appliance class'!$E34*'RES S curve-connect'!AL$19","v":2805.90189473382},{"$f":"'Res-Appliance class'!$B34*'RES S curve-connect'!AM$4+'Res-Appliance class'!$C34*'RES S curve-connect'!AM$9+'Res-Appliance class'!$D34*'RES S curve-connect'!AM$14+'Res-Appliance class'!$E34*'RES S curve-connect'!AM$19","v":2698.8906764691174},{"$f":"'Res-Appliance class'!$B34*'RES S curve-connect'!AN$4+'Res-Appliance class'!$C34*'RES S curve-connect'!AN$9+'Res-Appliance class'!$D34*'RES S curve-connect'!AN$14+'Res-Appliance class'!$E34*'RES S curve-connect'!AN$19","v":2924.9333803227555},{"$f":"'Res-Appliance class'!$B34*'RES S curve-connect'!AO$4+'Res-Appliance class'!$C34*'RES S curve-connect'!AO$9+'Res-Appliance class'!$D34*'RES S curve-connect'!AO$14+'Res-Appliance class'!$E34*'RES S curve-connect'!AO$19","v":3200.8812026668311},{"$f":"'Res-Appliance class'!$B34*'RES S curve-connect'!AP$4+'Res-Appliance class'!$C34*'RES S curve-connect'!AP$9+'Res-Appliance class'!$D34*'RES S curve-connect'!AP$14+'Res-Appliance class'!$E34*'RES S curve-connect'!AP$19","v":3455.5132749195454},{"$f":"'Res-Appliance class'!$B34*'RES S curve-connect'!AQ$4+'Res-Appliance class'!$C34*'RES S curve-connect'!AQ$9+'Res-Appliance class'!$D34*'RES S curve-connect'!AQ$14+'Res-Appliance class'!$E34*'RES S curve-connect'!AQ$19","v":3729.9570588431775},{"$f":"'Res-Appliance class'!$B34*'RES S curve-connect'!AR$4+'Res-Appliance class'!$C34*'RES S curve-connect'!AR$9+'Res-Appliance class'!$D34*'RES S curve-connect'!AR$14+'Res-Appliance class'!$E34*'RES S curve-connect'!AR$19","v":4031.1198496376792},{"$f":"'Res-Appliance class'!$B34*'RES S curve-connect'!AS$4+'Res-Appliance class'!$C34*'RES S curve-connect'!AS$9+'Res-Appliance class'!$D34*'RES S curve-connect'!AS$14+'Res-Appliance class'!$E34*'RES S curve-connect'!AS$19","v":4369.0199923847904},{"$f":"'Res-Appliance class'!$B34*'RES S curve-connect'!AT$4+'Res-Appliance class'!$C34*'RES S curve-connect'!AT$9+'Res-Appliance class'!$D34*'RES S curve-connect'!AT$14+'Res-Appliance class'!$E34*'RES S curve-connect'!AT$19","v":4746.787580707125},{"$f":"'Res-Appliance class'!$B34*'RES S curve-connect'!AU$4+'Res-Appliance class'!$C34*'RES S curve-connect'!AU$9+'Res-Appliance class'!$D34*'RES S curve-connect'!AU$14+'Res-Appliance class'!$E34*'RES S curve-connect'!AU$19","v":5184.0587725526148},{"$f":"'Res-Appliance class'!$B34*'RES S curve-connect'!AV$4+'Res-Appliance class'!$C34*'RES S curve-connect'!AV$9+'Res-Appliance class'!$D34*'RES S curve-connect'!AV$14+'Res-Appliance class'!$E34*'RES S curve-connect'!AV$19","v":5682.6015331268818},{"$f":"'Res-Appliance class'!$B34*'RES S curve-connect'!AW$4+'Res-Appliance class'!$C34*'RES S curve-connect'!AW$9+'Res-Appliance class'!$D34*'RES S curve-connect'!AW$14+'Res-Appliance class'!$E34*'RES S curve-connect'!AW$19","v":6255.5195945661808},{"$f":"'Res-Appliance class'!$B34*'RES S curve-connect'!AX$4+'Res-Appliance class'!$C34*'RES S curve-connect'!AX$9+'Res-Appliance class'!$D34*'RES S curve-connect'!AX$14+'Res-Appliance class'!$E34*'RES S curve-connect'!AX$19","v":6908.1900678025959},{"$f":"'Res-Appliance class'!$B34*'RES S curve-connect'!AY$4+'Res-Appliance class'!$C34*'RES S curve-connect'!AY$9+'Res-Appliance class'!$D34*'RES S curve-connect'!AY$14+'Res-Appliance class'!$E34*'RES S curve-connect'!AY$19","v":7661.3920961942849},{"$f":"'Res-Appliance class'!$B34*'RES S curve-connect'!AZ$4+'Res-Appliance class'!$C34*'RES S curve-connect'!AZ$9+'Res-Appliance class'!$D34*'RES S curve-connect'!AZ$14+'Res-Appliance class'!$E34*'RES S curve-connect'!AZ$19","v":8522.0614600774716},{"$f":"'Res-Appliance class'!$B34*'RES S curve-connect'!BA$4+'Res-Appliance class'!$C34*'RES S curve-connect'!BA$9+'Res-Appliance class'!$D34*'RES S curve-connect'!BA$14+'Res-Appliance class'!$E34*'RES S curve-connect'!BA$19","v":9518.5534434719957},{"$f":"'Res-Appliance class'!$B34*'RES S curve-connect'!BB$4+'Res-Appliance class'!$C34*'RES S curve-connect'!BB$9+'Res-Appliance class'!$D34*'RES S curve-connect'!BB$14+'Res-Appliance class'!$E34*'RES S curve-connect'!BB$19","v":10682.348474937473},{"$f":"'Res-Appliance class'!$B34*'RES S curve-connect'!BC$4+'Res-Appliance class'!$C34*'RES S curve-connect'!BC$9+'Res-Appliance class'!$D34*'RES S curve-connect'!BC$14+'Res-Appliance class'!$E34*'RES S curve-connect'!BC$19","v":12070.106621633618},{"$f":"'Res-Appliance class'!$B34*'RES S curve-connect'!BD$4+'Res-Appliance class'!$C34*'RES S curve-connect'!BD$9+'Res-Appliance class'!$D34*'RES S curve-connect'!BD$14+'Res-Appliance class'!$E34*'RES S curve-connect'!BD$19","v":13407.803375281248},{"$f":"'Res-Appliance class'!$B34*'RES S curve-connect'!BE$4+'Res-Appliance class'!$C34*'RES S curve-connect'!BE$9+'Res-Appliance class'!$D34*'RES S curve-connect'!BE$14+'Res-Appliance class'!$E34*'RES S curve-connect'!BE$19","v":14630.115276115488},{"$f":"'Res-Appliance class'!$B34*'RES S curve-connect'!BF$4+'Res-Appliance class'!$C34*'RES S curve-connect'!BF$9+'Res-Appliance class'!$D34*'RES S curve-connect'!BF$14+'Res-Appliance class'!$E34*'RES S curve-connect'!BF$19","v":15880.873740561296},{"$f":"'Res-Appliance class'!$B34*'RES S curve-connect'!BG$4+'Res-Appliance class'!$C34*'RES S curve-connect'!BG$9+'Res-Appliance class'!$D34*'RES S curve-connect'!BG$14+'Res-Appliance class'!$E34*'RES S curve-connect'!BG$19","v":17296.846915203558},{"$f":"'Res-Appliance class'!$B34*'RES S curve-connect'!BH$4+'Res-Appliance class'!$C34*'RES S curve-connect'!BH$9+'Res-Appliance class'!$D34*'RES S curve-connect'!BH$14+'Res-Appliance class'!$E34*'RES S curve-connect'!BH$19","v":18977.441849587973},{"$f":"'Res-Appliance class'!$B34*'RES S curve-connect'!BI$4+'Res-Appliance class'!$C34*'RES S curve-connect'!BI$9+'Res-Appliance class'!$D34*'RES S curve-connect'!BI$14+'Res-Appliance class'!$E34*'RES S curve-connect'!BI$19","v":21412.857039152837},{"$f":"'Res-Appliance class'!$B34*'RES S curve-connect'!BJ$4+'Res-Appliance class'!$C34*'RES S curve-connect'!BJ$9+'Res-Appliance class'!$D34*'RES S curve-connect'!BJ$14+'Res-Appliance class'!$E34*'RES S curve-connect'!BJ$19","v":24978.421451794125},{"$f":"'Res-Appliance class'!$B34*'RES S curve-connect'!BK$4+'Res-Appliance class'!$C34*'RES S curve-connect'!BK$9+'Res-Appliance class'!$D34*'RES S curve-connect'!BK$14+'Res-Appliance class'!$E34*'RES S curve-connect'!BK$19","v":30238.662132838625},{"$f":"'Res-Appliance class'!$B34*'RES S curve-connect'!BL$4+'Res-Appliance class'!$C34*'RES S curve-connect'!BL$9+'Res-Appliance class'!$D34*'RES S curve-connect'!BL$14+'Res-Appliance class'!$E34*'RES S curve-connect'!BL$19","v":-215.08807994236338},{"$f":"'Res-Appliance class'!$B34*'RES S curve-connect'!BM$4+'Res-Appliance class'!$C34*'RES S curve-connect'!BM$9+'Res-Appliance class'!$D34*'RES S curve-connect'!BM$14+'Res-Appliance class'!$E34*'RES S curve-connect'!BM$19","v":-208.37550344924469},{"$f":"'Res-Appliance class'!$B34*'RES S curve-connect'!BN$4+'Res-Appliance class'!$C34*'RES S curve-connect'!BN$9+'Res-Appliance class'!$D34*'RES S curve-connect'!BN$14+'Res-Appliance class'!$E34*'RES S curve-connect'!BN$19","v":-205.01307591165852},{"$f":"'Res-Appliance class'!$B34*'RES S curve-connect'!BO$4+'Res-Appliance class'!$C34*'RES S curve-connect'!BO$9+'Res-Appliance class'!$D34*'RES S curve-connect'!BO$14+'Res-Appliance class'!$E34*'RES S curve-connect'!BO$19","v":-194.97947878011905},{"$f":"'Res-Appliance class'!$B34*'RES S curve-connect'!BP$4+'Res-Appliance class'!$C34*'RES S curve-connect'!BP$9+'Res-Appliance class'!$D34*'RES S curve-connect'!BP$14+'Res-Appliance class'!$E34*'RES S curve-connect'!BP$19","v":-188.29591297660542},{"$f":"'Res-Appliance class'!$B34*'RES S curve-connect'!BQ$4+'Res-Appliance class'!$C34*'RES S curve-connect'!BQ$9+'Res-Appliance class'!$D34*'RES S curve-connect'!BQ$14+'Res-Appliance class'!$E34*'RES S curve-connect'!BQ$19","v":-181.62190038663675},{"$f":"'Res-Appliance class'!$B34*'RES S curve-connect'!BR$4+'Res-Appliance class'!$C34*'RES S curve-connect'!BR$9+'Res-Appliance class'!$D34*'RES S curve-connect'!BR$14+'Res-Appliance class'!$E34*'RES S curve-connect'!BR$19","v":-178.29780296031851},{"$f":"'Res-Appliance class'!$B34*'RES S curve-connect'!BS$4+'Res-Appliance class'!$C34*'RES S curve-connect'!BS$9+'Res-Appliance class'!$D34*'RES S curve-connect'!BS$14+'Res-Appliance class'!$E34*'RES S curve-connect'!BS$19","v":-168.30230360668628},{"$f":"'Res-Appliance class'!$B34*'RES S curve-connect'!BT$4+'Res-Appliance class'!$C34*'RES S curve-connect'!BT$9+'Res-Appliance class'!$D34*'RES S curve-connect'!BT$14+'Res-Appliance class'!$E34*'RES S curve-connect'!BT$19","v":-161.65660469701044},{"$f":"'Res-Appliance class'!$B34*'RES S curve-connect'!BU$4+'Res-Appliance class'!$C34*'RES S curve-connect'!BU$9+'Res-Appliance class'!$D34*'RES S curve-connect'!BU$14+'Res-Appliance class'!$E34*'RES S curve-connect'!BU$19","v":-155.02022955693667},{"$f":"'Res-Appliance class'!$B34*'RES S curve-connect'!BV$4+'Res-Appliance class'!$C34*'RES S curve-connect'!BV$9+'Res-Appliance class'!$D34*'RES S curve-connect'!BV$14+'Res-Appliance class'!$E34*'RES S curve-connect'!BV$19","v":-151.7335415675916},{"$f":"'Res-Appliance class'!$B34*'RES S curve-connect'!BW$4+'Res-Appliance class'!$C34*'RES S curve-connect'!BW$9+'Res-Appliance class'!$D34*'RES S curve-connect'!BW$14+'Res-Appliance class'!$E34*'RES S curve-connect'!BW$19","v":-141.77522505997632},{"$f":"'Res-Appliance class'!$B34*'RES S curve-connect'!BX$4+'Res-Appliance class'!$C34*'RES S curve-connect'!BX$9+'Res-Appliance class'!$D34*'RES S curve-connect'!BX$14+'Res-Appliance class'!$E34*'RES S curve-connect'!BX$19","v":-135.16648381834085},{"$f":"'Res-Appliance class'!$B34*'RES S curve-connect'!BY$4+'Res-Appliance class'!$C34*'RES S curve-connect'!BY$9+'Res-Appliance class'!$D34*'RES S curve-connect'!BY$14+'Res-Appliance class'!$E34*'RES S curve-connect'!BY$19","v":-128.5668425723731},{"$f":"'Res-Appliance class'!$B34*'RES S curve-connect'!BZ$4+'Res-Appliance class'!$C34*'RES S curve-connect'!BZ$9+'Res-Appliance class'!$D34*'RES S curve-connect'!BZ$14+'Res-Appliance class'!$E34*'RES S curve-connect'!BZ$19","v":-125.31666609836088},{"$f":"'Res-Appliance class'!$B34*'RES S curve-connect'!CA$4+'Res-Appliance class'!$C34*'RES S curve-connect'!CA$9+'Res-Appliance class'!$D34*'RES S curve-connect'!CA$14+'Res-Appliance class'!$E34*'RES S curve-connect'!CA$19","v":-115.39464011364851},{"$f":"'Res-Appliance class'!$B34*'RES S curve-connect'!CB$4+'Res-Appliance class'!$C34*'RES S curve-connect'!CB$9+'Res-Appliance class'!$D34*'RES S curve-connect'!CB$14+'Res-Appliance class'!$E34*'RES S curve-connect'!CB$19","v":-108.82196978005976},{"$f":"'Res-Appliance class'!$B34*'RES S curve-connect'!CC$4+'Res-Appliance class'!$C34*'RES S curve-connect'!CC$9+'Res-Appliance class'!$D34*'RES S curve-connect'!CC$14+'Res-Appliance class'!$E34*'RES S curve-connect'!CC$19","v":-102.25818119615008},{"$f":"'Res-Appliance class'!$B34*'RES S curve-connect'!CD$4+'Res-Appliance class'!$C34*'RES S curve-connect'!CD$9+'Res-Appliance class'!$D34*'RES S curve-connect'!CD$14+'Res-Appliance class'!$E34*'RES S curve-connect'!CD$19","v":-201.48305609879338}]
["Kingston (C)",null,{"$f":"'Res-Appliance class'!$B35*'RES S curve-connect'!C$4+'Res-Appliance class'!$C35*'RES S curve-connect'!C$9+'Res-Appliance class'!$D35*'RES S curve-connect'!C$14+'Res-Appliance class'!$E35*'RES S curve-connect'!C$19","v":-2859.2082697284641},{"$f":"'Res-Appliance class'!$B35*'RES S curve-connect'!D$4+'Res-Appliance class'!$C35*'RES S curve-connect'!D$9+'Res-Appliance class'!$D35*'RES S curve-connect'!D$14+'Res-Appliance class'!$E35*'RES S curve-connect'!D$19","v":-3335.40903524961},{"$f":"'Res-Appliance class'!$B35*'RES S curve-connect'!E$4+'Res-Appliance class'!$C35*'RES S curve-connect'!E$9+'Res-Appliance class'!$D35*'RES S curve-connect'!E$14+'Res-Appliance class'!$E35*'RES S curve-connect'!E$19","v":-2700.3196113668705},{"$f":"'Res-Appliance class'!$B35*'RES S curve-connect'!F$4+'Res-Appliance class'!$C35*'RES S curve-connect'!F$9+'Res-Appliance class'!$D35*'RES S curve-connect'!F$14+'Res-Appliance class'!$E35*'RES S curve-connect'!F$19","v":-2560.4480697009094},{"$f":"'Res-Appliance class'!$B35*'RES S curve-connect'!G$4+'Res-Appliance class'!$C35*'RES S curve-connect'!G$9+'Res-Appliance class'!$D35*'RES S curve-connect'!G$14+'Res-Appliance class'!$E35*'RES S curve-connect'!G$19","v":-3600.6520663806882},{"$f":"'Res-Appliance class'!$B35*'RES S curve-connect'!H$4+'Res-Appliance class'!$C35*'RES S curve-connect'!H$9+'Res-Appliance class'!$D35*'RES S curve-connect'!H$14+'Res-Appliance class'!$E35*'RES S curve-connect'!H$19","v":-3640.3455790662347},{"$f":"'Res-Appliance class'!$B35*'RES S curve-connect'!I$4+'Res-Appliance class'!$C35*'RES S curve-connect'!I$9+'Res-Appliance class'!$D35*'RES S curve-connect'!I$14+'Res-Appliance class'!$E35*'RES S curve-connect'!I$19","v":-3243.7259975989291},{"$f":"'Res-Appliance class'!$B35*'RES S curve-connect'!J$4+'Res-Appliance class'!$C35*'RES S curve-connect'!J$9+'Res-Appliance class'!$D35*'RES S curve-connect'!J$14+'Res-Appliance class'!$E35*'RES S curve-connect'!J$19","v":-3589.5607540449646},{"$f":"'Res-Appliance class'!$B35*'RES S curve-connect'!K$4+'Res-Appliance class'!$C35*'RES S curve-connect'!K$9+'Res-Appliance class'!$D35*'RES S curve-connect'!K$14+'Res-Appliance class'!$E35*'RES S curve-connect'!K$19","v":-2834.919451769535},{"$f":"'Res-Appliance class'!$B35*'RES S curve-connect'!L$4+'Res-Appliance class'!$C35*'RES S curve-connect'!L$9+'Res-Appliance class'!$D35*'RES S curve-connect'!L$14+'Res-Appliance class'!$E35*'RES S curve-connect'!L$19","v":-3156.8134757648095},{"$f":"'Res-Appliance class'!$B35*'RES S curve-connect'!M$4+'Res-Appliance class'!$C35*'RES S curve-connect'!M$9+'Res-Appliance class'!$D35*'RES S curve-connect'!M$14+'Res-Appliance class'!$E35*'RES S curve-connect'!M$19","v":-3727.4785065068295},{"$f":"'Res-Appliance class'!$B35*'RES S curve-connect'!N$4+'Res-Appliance class'!$C35*'RES S curve-connect'!N$9+'Res-Appliance class'!$D35*'RES S curve-connect'!N$14+'Res-Appliance class'!$E35*'RES S curve-connect'!N$19","v":-3778.6283766446631},{"$f":"'Res-Appliance class'!$B35*'RES S curve-connect'!O$4+'Res-Appliance class'!$C35*'RES S curve-connect'!O$9+'Res-Appliance class'!$D35*'RES S curve-connect'!O$14+'Res-Appliance class'!$E35*'RES S curve-connect'!O$19","v":-3260.374520203593},{"$f":"'Res-Appliance class'!$B35*'RES S curve-connect'!P$4+'Res-Appliance class'!$C35*'RES S curve-connect'!P$9+'Res-Appliance class'!$D35*'RES S curve-connect'!P$14+'Res-Appliance class'!$E35*'RES S curve-connect'!P$19","v":-2848.7275514785078},{"$f":"'Res-Appliance class'!$B35*'RES S curve-connect'!Q$4+'Res-Appliance class'!$C35*'RES S curve-connect'!Q$9+'Res-Appliance class'!$D35*'RES S curve-connect'!Q$14+'Res-Appliance class'!$E35*'RES S curve-connect'!Q$19","v":-2228.4013194631634},{"$f":"'Res-Appliance class'!$B35*'RES S curve-connect'!R$4+'Res-Appliance class'!$C35*'RES S curve-connect'!R$9+'Res-Appliance class'!$D35*'RES S curve-connect'!R$14+'Res-Appliance class'!$E35*'RES S curve-connect'!R$19","v":-1875.6429242690901},{"$f":"'Res-Appliance class'!$B35*'RES S curve-connect'!S$4+'Res-Appliance class'!$C35*'RES S curve-connect'!S$9+'Res-Appliance class'!$D35*'RES S curve-connect'!S$14+'Res-Appliance class'!$E35*'RES S curve-connect'!S$19","v":-1314.486971273366},{"$f":"'Res-Appliance class'!$B35*'RES S curve-connect'!T$4+'Res-Appliance class'!$C35*'RES S curve-connect'!T$9+'Res-Appliance class'!$D35*'RES S curve-connect'!T$14+'Res-Appliance class'!$E35*'RES S curve-connect'!T$19","v":-1012.2144893639754},{"$f":"'Res-Appliance class'!$B35*'RES S curve-connect'!U$4+'Res-Appliance class'!$C35*'RES S curve-connect'!U$9+'Res-Appliance class'!$D35*'RES S curve-connect'!U$14+'Res-Appliance class'!$E35*'RES S curve-connect'!U$19","v":-664.38119069437971},{"$f":"'Res-Appliance class'!$B35*'RES S curve-connect'!V$4+'Res-Appliance class'!$C35*'RES S curve-connect'!V$9+'Res-Appliance class'!$D35*'RES S curve-connect'!V$14+'Res-Appliance class'!$E35*'RES S curve-connect'!V$19","v":-424.6657311806415},{"$f":"'Res-Appliance class'!$B35*'RES S curve-connect'!W$4+'Res-Appliance class'!$C35*'RES S curve-connect'!W$9+'Res-Appliance class'!$D35*'RES S curve-connect'!W$14+'Res-Appliance class'!$E35*'RES S curve-connect'!W$19","v":-237.51087294688475},{"$f":"'Res-Appliance class'!$B35*'RES S curve-connect'!X$4+'Res-Appliance class'!$C35*'RES S curve-connect'!X$9+'Res-Appliance class'!$D35*'RES S curve-connect'!X$14+'Res-Appliance class'!$E35*'RES S curve-connect'!X$19","v":180.41098801094131},{"$f":"'Res-Appliance class'!$B35*'RES S curve-connect'!Y$4+'Res-Appliance class'!$C35*'RES S curve-connect'!Y$9+'Res-Appliance class'!$D35*'RES S curve-connect'!Y$14+'Res-Appliance class'!$E35*'RES S curve-connect'!Y$19","v":603.68760171307042},{"$f":"'Res-Appliance class'!$B35*'RES S curve-connect'!Z$4+'Res-Appliance class'!$C35*'RES S curve-connect'!Z$9+'Res-Appliance class'!$D35*'RES S curve-connect'!Z$14+'Res-Appliance class'!$E35*'RES S curve-connect'!Z$19","v":891.5016287874339},{"$f":"'Res-Appliance class'!$B35*'RES S curve-connect'!AA$4+'Res-Appliance class'!$C35*'RES S curve-connect'!AA$9+'Res-Appliance class'!$D35*'RES S curve-connect'!AA$14+'Res-Appliance class'!$E35*'RES S curve-connect'!AA$19","v":1179.8762204918039},{"$f":"'Res-Appliance class'!$B35*'RES S curve-connect'!AB$4+'Res-Appliance class'!$C35*'RES S curve-connect'!AB$9+'Res-Appliance class'!$D35*'RES S curve-connect'!AB$14+'Res-Appliance class'!$E35*'RES S curve-connect'!AB$19","v":1410.585995051335},{"$f":"'Res-Appliance class'!$B35*'RES S curve-connect'!AC$4+'Res-Appliance class'!$C35*'RES S curve-connect'!AC$9+'Res-Appliance class'!$D35*'RES S curve-connect'!AC$14+'Res-Appliance class'!$E35*'RES S curve-connect'!AC$19","v":1633.2897086265889},{"$f":"'Res-Appliance class'!$B35*'RES S curve-connect'!AD$4+'Res-Appliance class'!$C35*'RES S curve-connect'!AD$9+'Res-Appliance class'!$D35*'RES S curve-connect'!AD$14+'Res-Appliance class'!$E35*'RES S curve-connect'!AD$19","v":1837.7959968333785},{"$f":"'Res-Appliance class'!$B35*'RES S curve-connect'!AE$4+'Res-Appliance class'!$C35*'RES S curve-connect'!AE$9+'Res-Appliance class'!$D35*'RES S curve-connect'!AE$14+'Res-Appliance class'!$E35*'RES S curve-connect'!AE$19","v":2053.3520015743002},{"$f":"'Res-Appliance class'!$B35*'RES S curve-connect'!AF$4+'Res-Appliance class'!$C35*'RES S curve-connect'!AF$9+'Res-Appliance class'!$D35*'RES S curve-connect'!AF$14+'Res-Appliance class'!$E35*'RES S curve-connect'!AF$19","v":2330.5046933512103},{"$f":"'Res-Appliance class'!$B35*'RES S curve-connect'!AG$4+'Res-Appliance class'!$C35*'RES S curve-connect'!AG$9+'Res-Appliance class'!$D35*'RES S curve-connect'!AG$14+'Res-Appliance class'!$E35*'RES S curve-connect'!AG$19","v":2519.8559611832006},{"$f":"'Res-Appliance class'!$B35*'RES S curve-connect'!AH$4+'Res-Appliance class'!$C35*'RES S curve-connect'!AH$9+'Res-Appliance class'!$D35*'RES S curve-connect'!AH$14+'Res-Appliance class'!$E35*'RES S curve-connect'!AH$19","v":2784.7883216694099},{"$f":"'Res-Appliance class'!$B35*'RES S curve-connect'!AI$4+'Res-Appliance class'!$C35*'RES S curve-connect'!AI$9+'Res-Appliance class'!$D35*'RES S curve-connect'!AI$14+'Res-Appliance class'!$E35*'RES S curve-connect'!AI$19","v":3024.3065593101446},{"$f":"'Res-Appliance class'!$B35*'RES S curve-connect'!AJ$4+'Res-Appliance class'!$C35*'RES S curve-connect'!AJ$9+'Res-Appliance class'!$D35*'RES S curve-connect'!AJ$14+'Res-Appliance class'!$E35*'RES S curve-connect'!AJ$19","v":3240.1880163776823},{"$f":"'Res-Appliance class'!$B35*'RES S curve-connect'!AK$4+'Res-Appliance class'!$C35*'RES S curve-connect'!AK$9+'Res-Appliance class'!$D35*'RES S curve-connect'!AK$14+'Res-Appliance class'!$E35*'RES S curve-connect'!AK$19","v":3469.4224643843722},{"$f":"'Res-Appliance class'!$B35*'RES S curve-connect'!AL$4+'Res-Appliance class'!$C35*'RES S curve-connect'!AL$9+'Res-Appliance class'!$D35*'RES S curve-connect'!AL$14+'Res-Appliance class'!$E35*'RES S curve-connect'!AL$19","v":2672.4175084643975},{"$f":"'Res-Appliance class'!$B35*'RES S curve-connect'!AM$4+'Res-Appliance class'!$C35*'RES S curve-connect'!AM$9+'Res-Appliance class'!$D35*'RES S curve-connect'!AM$14+'Res-Appliance class'!$E35*'RES S curve-connect'!AM$19","v":2570.1290235459023},{"$f":"'Res-Appliance class'!$B35*'RES S curve-connect'!AN$4+'Res-Appliance class'!$C35*'RES S curve-connect'!AN$9+'Res-Appliance class'!$D35*'RES S curve-connect'!AN$14+'Res-Appliance class'!$E35*'RES S curve-connect'!AN$19","v":2788.1381810479998},{"$f":"'Res-Appliance class'!$B35*'RES S curve-connect'!AO$4+'Res-Appliance class'!$C35*'RES S curve-connect'!AO$9+'Res-Appliance class'!$D35*'RES S curve-connect'!AO$14+'Res-Appliance class'!$E35*'RES S curve-connect'!AO$19","v":3053.8411059207292},{"$f":"'Res-Appliance class'!$B35*'RES S curve-connect'!AP$4+'Res-Appliance class'!$C35*'RES S curve-connect'!AP$9+'Res-Appliance class'!$D35*'RES S curve-connect'!AP$14+'Res-Appliance class'!$E35*'RES S curve-connect'!AP$19","v":3298.7609271768506},{"$f":"'Res-Appliance class'!$B35*'RES S curve-connect'!AQ$4+'Res-Appliance class'!$C35*'RES S curve-connect'!AQ$9+'Res-Appliance class'!$D35*'RES S curve-connect'!AQ$14+'Res-Appliance class'!$E35*'RES S curve-connect'!AQ$19","v":3562.999877790563},{"$f":"'Res-Appliance class'!$B35*'RES S curve-connect'!AR$4+'Res-Appliance class'!$C35*'RES S curve-connect'!AR$9+'Res-Appliance class'!$D35*'RES S curve-connect'!AR$14+'Res-Appliance class'!$E35*'RES S curve-connect'!AR$19","v":3852.8104376954889},{"$f":"'Res-Appliance class'!$B35*'RES S curve-connect'!AS$4+'Res-Appliance class'!$C35*'RES S curve-connect'!AS$9+'Res-Appliance class'!$D35*'RES S curve-connect'!AS$14+'Res-Appliance class'!$E35*'RES S curve-connect'!AS$19","v":4177.9332957882152},{"$f":"'Res-Appliance class'!$B35*'RES S curve-connect'!AT$4+'Res-Appliance class'!$C35*'RES S curve-connect'!AT$9+'Res-Appliance class'!$D35*'RES S curve-connect'!AT$14+'Res-Appliance class'!$E35*'RES S curve-connect'!AT$19","v":4541.2383838457026},{"$f":"'Res-Appliance class'!$B35*'RES S curve-connect'!AU$4+'Res-Appliance class'!$C35*'RES S curve-connect'!AU$9+'Res-Appliance class'!$D35*'RES S curve-connect'!AU$14+'Res-Appliance class'!$E35*'RES S curve-connect'!AU$19","v":4961.9826801889731},{"$f":"'Res-Appliance class'!$B35*'RES S curve-connect'!AV$4+'Res-Appliance class'!$C35*'RES S curve-connect'!AV$9+'Res-Appliance class'!$D35*'RES S curve-connect'!AV$14+'Res-Appliance class'!$E35*'RES S curve-connect'!AV$19","v":5441.4626121235488},{"$f":"'Res-Appliance class'!$B35*'RES S curve-connect'!AW$4+'Res-Appliance class'!$C35*'RES S curve-connect'!AW$9+'Res-Appliance class'!$D35*'RES S curve-connect'!AW$14+'Res-Appliance class'!$E35*'RES S curve-connect'!AW$19","v":5992.3696921434648},{"$f":"'Res-Appliance class'!$B35*'RES S curve-connect'!AX$4+'Res-Appliance class'!$C35*'RES S curve-connect'!AX$9+'Res-Appliance class'!$D35*'RES S curve-connect'!AX$14+'Res-Appliance class'!$E35*'RES S curve-connect'!AX$19","v":6619.6977999453511},{"$f":"'Res-Appliance class'!$B35*'RES S curve-connect'!AY$4+'Res-Appliance class'!$C35*'RES S curve-connect'!AY$9+'Res-Appliance class'!$D35*'RES S curve-connect'!AY$14+'Res-Appliance class'!$E35*'RES S curve-connect'!AY$19","v":7343.7599675155761},{"$f":"'Res-Appliance class'!$B35*'RES S curve-connect'!AZ$4+'Res-Appliance class'!$C35*'RES S curve-connect'!AZ$9+'Res-Appliance class'!$D35*'RES S curve-connect'!AZ$14+'Res-Appliance class'!$E35*'RES S curve-connect'!AZ$19","v":8170.7795567416952},{"$f":"'Res-Appliance class'!$B35*'RES S curve-connect'!BA$4+'Res-Appliance class'!$C35*'RES S curve-connect'!BA$9+'Res-Appliance class'!$D35*'RES S curve-connect'!BA$14+'Res-Appliance class'!$E35*'RES S curve-connect'!BA$19","v":9128.0699038816201},{"$f":"'Res-Appliance class'!$B35*'RES S curve-connect'!BB$4+'Res-Appliance class'!$C35*'RES S curve-connect'!BB$9+'Res-Appliance class'!$D35*'RES S curve-connect'!BB$14+'Res-Appliance class'!$E35*'RES S curve-connect'!BB$19","v":10245.654594254087},{"$f":"'Res-Appliance class'!$B35*'RES S curve-connect'!BC$4+'Res-Appliance class'!$C35*'RES S curve-connect'!BC$9+'Res-Appliance class'!$D35*'RES S curve-connect'!BC$14+'Res-Appliance class'!$E35*'RES S curve-connect'!BC$19","v":11578.231525545487},{"$f":"'Res-Appliance class'!$B35*'RES S curve-connect'!BD$4+'Res-Appliance class'!$C35*'RES S curve-connect'!BD$9+'Res-Appliance class'!$D35*'RES S curve-connect'!BD$14+'Res-Appliance class'!$E35*'RES S curve-connect'!BD$19","v":12861.637360074468},{"$f":"'Res-Appliance class'!$B35*'RES S curve-connect'!BE$4+'Res-Appliance class'!$C35*'RES S curve-connect'!BE$9+'Res-Appliance class'!$D35*'RES S curve-connect'!BE$14+'Res-Appliance class'!$E35*'RES S curve-connect'!BE$19","v":14033.973556336328},{"$f":"'Res-Appliance class'!$B35*'RES S curve-connect'!BF$4+'Res-Appliance class'!$C35*'RES S curve-connect'!BF$9+'Res-Appliance class'!$D35*'RES S curve-connect'!BF$14+'Res-Appliance class'!$E35*'RES S curve-connect'!BF$19","v":15233.702151069643},{"$f":"'Res-Appliance class'!$B35*'RES S curve-connect'!BG$4+'Res-Appliance class'!$C35*'RES S curve-connect'!BG$9+'Res-Appliance class'!$D35*'RES S curve-connect'!BG$14+'Res-Appliance class'!$E35*'RES S curve-connect'!BG$19","v":16592.319554299484},{"$f":"'Res-Appliance class'!$B35*'RES S curve-connect'!BH$4+'Res-Appliance class'!$C35*'RES S curve-connect'!BH$9+'Res-Appliance class'!$D35*'RES S curve-connect'!BH$14+'Res-Appliance class'!$E35*'RES S curve-connect'!BH$19","v":18204.590857280171},{"$f":"'Res-Appliance class'!$B35*'RES S curve-connect'!BI$4+'Res-Appliance class'!$C35*'RES S curve-connect'!BI$9+'Res-Appliance class'!$D35*'RES S curve-connect'!BI$14+'Res-Appliance class'!$E35*'RES S curve-connect'!BI$19","v":20541.252018285712},{"$f":"'Res-Appliance class'!$B35*'RES S curve-connect'!BJ$4+'Res-Appliance class'!$C35*'RES S curve-connect'!BJ$9+'Res-Appliance class'!$D35*'RES S curve-connect'!BJ$14+'Res-Appliance class'!$E35*'RES S curve-connect'!BJ$19","v":23960.961038799065},{"$f":"'Res-Appliance class'!$B35*'RES S curve-connect'!BK$4+'Res-Appliance class'!$C35*'RES S curve-connect'!BK$9+'Res-Appliance class'!$D35*'RES S curve-connect'!BK$14+'Res-Appliance class'!$E35*'RES S curve-connect'!BK$19","v":29004.144029376992},{"$f":"'Res-Appliance class'!$B35*'RES S curve-connect'!BL$4+'Res-Appliance class'!$C35*'RES S curve-connect'!BL$9+'Res-Appliance class'!$D35*'RES S curve-connect'!BL$14+'Res-Appliance class'!$E35*'RES S curve-connect'!BL$19","v":-239.15575460886353},{"$f":"'Res-Appliance class'!$B35*'RES S curve-connect'!BM$4+'Res-Appliance class'!$C35*'RES S curve-connect'!BM$9+'Res-Appliance class'!$D35*'RES S curve-connect'!BM$14+'Res-Appliance class'!$E35*'RES S curve-connect'!BM$19","v":-232.69884782936262},{"$f":"'Res-Appliance class'!$B35*'RES S curve-connect'!BN$4+'Res-Appliance class'!$C35*'RES S curve-connect'!BN$9+'Res-Appliance class'!$D35*'RES S curve-connect'!BN$14+'Res-Appliance class'!$E35*'RES S curve-connect'!BN$19","v":-229.59187190686382},{"$f":"'Res-Appliance class'!$B35*'RES S curve-connect'!BO$4+'Res-Appliance class'!$C35*'RES S curve-connect'!BO$9+'Res-Appliance class'!$D35*'RES S curve-connect'!BO$14+'Res-Appliance class'!$E35*'RES S curve-connect'!BO$19","v":-219.81350954229694},{"$f":"'Res-Appliance class'!$B35*'RES S curve-connect'!BP$4+'Res-Appliance class'!$C35*'RES S curve-connect'!BP$9+'Res-Appliance class'!$D35*'RES S curve-connect'!BP$14+'Res-Appliance class'!$E35*'RES S curve-connect'!BP$19","v":-213.38496290047584},{"$f":"'Res-Appliance class'!$B35*'RES S curve-connect'!BQ$4+'Res-Appliance class'!$C35*'RES S curve-connect'!BQ$9+'Res-Appliance class'!$D35*'RES S curve-connect'!BQ$14+'Res-Appliance class'!$E35*'RES S curve-connect'!BQ$19","v":-206.96575510222064},{"$f":"'Res-Appliance class'!$B35*'RES S curve-connect'!BR$4+'Res-Appliance class'!$C35*'RES S curve-connect'!BR$9+'Res-Appliance class'!$D35*'RES S curve-connect'!BR$14+'Res-Appliance class'!$E35*'RES S curve-connect'!BR$19","v":-203.89624932545095},{"$f":"'Res-Appliance class'!$B35*'RES S curve-connect'!BS$4+'Res-Appliance class'!$C35*'RES S curve-connect'!BS$9+'Res-Appliance class'!$D35*'RES S curve-connect'!BS$14+'Res-Appliance class'!$E35*'RES S curve-connect'!BS$19","v":-194.15512969957703},{"$f":"'Res-Appliance class'!$B35*'RES S curve-connect'!BT$4+'Res-Appliance class'!$C35*'RES S curve-connect'!BT$9+'Res-Appliance class'!$D35*'RES S curve-connect'!BT$14+'Res-Appliance class'!$E35*'RES S curve-connect'!BT$19","v":-187.76359980884979},{"$f":"'Res-Appliance class'!$B35*'RES S curve-connect'!BU$4+'Res-Appliance class'!$C35*'RES S curve-connect'!BU$9+'Res-Appliance class'!$D35*'RES S curve-connect'!BU$14+'Res-Appliance class'!$E35*'RES S curve-connect'!BU$19","v":-181.38118418454843},{"$f":"'Res-Appliance class'!$B35*'RES S curve-connect'!BV$4+'Res-Appliance class'!$C35*'RES S curve-connect'!BV$9+'Res-Appliance class'!$D35*'RES S curve-connect'!BV$14+'Res-Appliance class'!$E35*'RES S curve-connect'!BV$19","v":-178.34824740613118},{"$f":"'Res-Appliance class'!$B35*'RES S curve-connect'!BW$4+'Res-Appliance class'!$C35*'RES S curve-connect'!BW$9+'Res-Appliance class'!$D35*'RES S curve-connect'!BW$14+'Res-Appliance class'!$E35*'RES S curve-connect'!BW$19","v":-168.64347499567492},{"$f":"'Res-Appliance class'!$B35*'RES S curve-connect'!BX$4+'Res-Appliance class'!$C35*'RES S curve-connect'!BX$9+'Res-Appliance class'!$D35*'RES S curve-connect'!BX$14+'Res-Appliance class'!$E35*'RES S curve-connect'!BX$19","v":-162.2880719212942},{"$f":"'Res-Appliance class'!$B35*'RES S curve-connect'!BY$4+'Res-Appliance class'!$C35*'RES S curve-connect'!BY$9+'Res-Appliance class'!$D35*'RES S curve-connect'!BY$14+'Res-Appliance class'!$E35*'RES S curve-connect'!BY$19","v":-155.94156408937585},{"$f":"'Res-Appliance class'!$B35*'RES S curve-connect'!BZ$4+'Res-Appliance class'!$C35*'RES S curve-connect'!BZ$9+'Res-Appliance class'!$D35*'RES S curve-connect'!BZ$14+'Res-Appliance class'!$E35*'RES S curve-connect'!BZ$19","v":-152.94431744578543},{"$f":"'Res-Appliance class'!$B35*'RES S curve-connect'!CA$4+'Res-Appliance class'!$C35*'RES S curve-connect'!CA$9+'Res-Appliance class'!$D35*'RES S curve-connect'!CA$14+'Res-Appliance class'!$E35*'RES S curve-connect'!CA$19","v":-143.27501887036766},{"$f":"'Res-Appliance class'!$B35*'RES S curve-connect'!CB$4+'Res-Appliance class'!$C35*'RES S curve-connect'!CB$9+'Res-Appliance class'!$D35*'RES S curve-connect'!CB$14+'Res-Appliance class'!$E35*'RES S curve-connect'!CB$19","v":-136.95487468041478},{"$f":"'Res-Appliance class'!$B35*'RES S curve-connect'!CC$4+'Res-Appliance class'!$C35*'RES S curve-connect'!CC$9+'Res-Appliance class'!$D35*'RES S curve-connect'!CC$14+'Res-Appliance class'!$E35*'RES S curve-connect'!CC$19","v":-130.64341212296091},{"$f":"'Res-Appliance class'!$B35*'RES S curve-connect'!CD$4+'Res-Appliance class'!$C35*'RES S curve-connect'!CD$9+'Res-Appliance class'!$D35*'RES S curve-connect'!CD$14+'Res-Appliance class'!$E35*'RES S curve-connect'!CD$19","v":-225.61287452914806}]
["Knox (C)",null,{"$f":"'Res-Appliance class'!$B36*'RES S curve-connect'!C$4+'Res-Appliance class'!$C36*'RES S curve-connect'!C$9+'Res-Appliance class'!$D36*'RES S curve-connect'!C$14+'Res-Appliance class'!$E36*'RES S curve-connect'!C$19","v":-3053.6754435612402},{"$f":"'Res-Appliance class'!$B36*'RES S curve-connect'!D$4+'Res-Appliance class'!$C36*'RES S curve-connect'!D$9+'Res-Appliance class'!$D36*'RES S curve-connect'!D$14+'Res-Appliance class'!$E36*'RES S curve-connect'!D$19","v":-3592.1841080117351},{"$f":"'Res-Appliance class'!$B36*'RES S curve-connect'!E$4+'Res-Appliance class'!$C36*'RES S curve-connect'!E$9+'Res-Appliance class'!$D36*'RES S curve-connect'!E$14+'Res-Appliance class'!$E36*'RES S curve-connect'!E$19","v":-2831.9343576492033},{"$f":"'Res-Appliance class'!$B36*'RES S curve-connect'!F$4+'Res-Appliance class'!$C36*'RES S curve-connect'!F$9+'Res-Appliance class'!$D36*'RES S curve-connect'!F$14+'Res-Appliance class'!$E36*'RES S curve-connect'!F$19","v":-2669.4795017731753},{"$f":"'Res-Appliance class'!$B36*'RES S curve-connect'!G$4+'Res-Appliance class'!$C36*'RES S curve-connect'!G$9+'Res-Appliance class'!$D36*'RES S curve-connect'!G$14+'Res-Appliance class'!$E36*'RES S curve-connect'!G$19","v":-3968.4695603417895},{"$f":"'Res-Appliance class'!$B36*'RES S curve-connect'!H$4+'Res-Appliance class'!$C36*'RES S curve-connect'!H$9+'Res-Appliance class'!$D36*'RES S curve-connect'!H$14+'Res-Appliance class'!$E36*'RES S curve-connect'!H$19","v":-3999.7886835201589},{"$f":"'Res-Appliance class'!$B36*'RES S curve-connect'!I$4+'Res-Appliance class'!$C36*'RES S curve-connect'!I$9+'Res-Appliance class'!$D36*'RES S curve-connect'!I$14+'Res-Appliance class'!$E36*'RES S curve-connect'!I$19","v":-3540.585932469764},{"$f":"'Res-Appliance class'!$B36*'RES S curve-connect'!J$4+'Res-Appliance class'!$C36*'RES S curve-connect'!J$9+'Res-Appliance class'!$D36*'RES S curve-connect'!J$14+'Res-Appliance class'!$E36*'RES S curve-connect'!J$19","v":-3878.9866089327193},{"$f":"'Res-Appliance class'!$B36*'RES S curve-connect'!K$4+'Res-Appliance class'!$C36*'RES S curve-connect'!K$9+'Res-Appliance class'!$D36*'RES S curve-connect'!K$14+'Res-Appliance class'!$E36*'RES S curve-connect'!K$19","v":-3017.854809181722},{"$f":"'Res-Appliance class'!$B36*'RES S curve-connect'!L$4+'Res-Appliance class'!$C36*'RES S curve-connect'!L$9+'Res-Appliance class'!$D36*'RES S curve-connect'!L$14+'Res-Appliance class'!$E36*'RES S curve-connect'!L$19","v":-3384.2361966212497},{"$f":"'Res-Appliance class'!$B36*'RES S curve-connect'!M$4+'Res-Appliance class'!$C36*'RES S curve-connect'!M$9+'Res-Appliance class'!$D36*'RES S curve-connect'!M$14+'Res-Appliance class'!$E36*'RES S curve-connect'!M$19","v":-4056.9565698229444},{"$f":"'Res-Appliance class'!$B36*'RES S curve-connect'!N$4+'Res-Appliance class'!$C36*'RES S curve-connect'!N$9+'Res-Appliance class'!$D36*'RES S curve-connect'!N$14+'Res-Appliance class'!$E36*'RES S curve-connect'!N$19","v":-4118.4979086929125},{"$f":"'Res-Appliance class'!$B36*'RES S curve-connect'!O$4+'Res-Appliance class'!$C36*'RES S curve-connect'!O$9+'Res-Appliance class'!$D36*'RES S curve-connect'!O$14+'Res-Appliance class'!$E36*'RES S curve-connect'!O$19","v":-3525.6412638521688},{"$f":"'Res-Appliance class'!$B36*'RES S curve-connect'!P$4+'Res-Appliance class'!$C36*'RES S curve-connect'!P$9+'Res-Appliance class'!$D36*'RES S curve-connect'!P$14+'Res-Appliance class'!$E36*'RES S curve-connect'!P$19","v":-3052.4267753017916},{"$f":"'Res-Appliance class'!$B36*'RES S curve-connect'!Q$4+'Res-Appliance class'!$C36*'RES S curve-connect'!Q$9+'Res-Appliance class'!$D36*'RES S curve-connect'!Q$14+'Res-Appliance class'!$E36*'RES S curve-connect'!Q$19","v":-2338.3291763938164},{"$f":"'Res-Appliance class'!$B36*'RES S curve-connect'!R$4+'Res-Appliance class'!$C36*'RES S curve-connect'!R$9+'Res-Appliance class'!$D36*'RES S curve-connect'!R$14+'Res-Appliance class'!$E36*'RES S curve-connect'!R$19","v":-1932.6644804636228},{"$f":"'Res-Appliance class'!$B36*'RES S curve-connect'!S$4+'Res-Appliance class'!$C36*'RES S curve-connect'!S$9+'Res-Appliance class'!$D36*'RES S curve-connect'!S$14+'Res-Appliance class'!$E36*'RES S curve-connect'!S$19","v":-1289.7190306315661},{"$f":"'Res-Appliance class'!$B36*'RES S curve-connect'!T$4+'Res-Appliance class'!$C36*'RES S curve-connect'!T$9+'Res-Appliance class'!$D36*'RES S curve-connect'!T$14+'Res-Appliance class'!$E36*'RES S curve-connect'!T$19","v":-937.01109781035882},{"$f":"'Res-Appliance class'!$B36*'RES S curve-connect'!U$4+'Res-Appliance class'!$C36*'RES S curve-connect'!U$9+'Res-Appliance class'!$D36*'RES S curve-connect'!U$14+'Res-Appliance class'!$E36*'RES S curve-connect'!U$19","v":-536.27909376382195},{"$f":"'Res-Appliance class'!$B36*'RES S curve-connect'!V$4+'Res-Appliance class'!$C36*'RES S curve-connect'!V$9+'Res-Appliance class'!$D36*'RES S curve-connect'!V$14+'Res-Appliance class'!$E36*'RES S curve-connect'!V$19","v":-262.87243289871554},{"$f":"'Res-Appliance class'!$B36*'RES S curve-connect'!W$4+'Res-Appliance class'!$C36*'RES S curve-connect'!W$9+'Res-Appliance class'!$D36*'RES S curve-connect'!W$14+'Res-Appliance class'!$E36*'RES S curve-connect'!W$19","v":-49.395136449577279},{"$f":"'Res-Appliance class'!$B36*'RES S curve-connect'!X$4+'Res-Appliance class'!$C36*'RES S curve-connect'!X$9+'Res-Appliance class'!$D36*'RES S curve-connect'!X$14+'Res-Appliance class'!$E36*'RES S curve-connect'!X$19","v":433.78592817505859},{"$f":"'Res-Appliance class'!$B36*'RES S curve-connect'!Y$4+'Res-Appliance class'!$C36*'RES S curve-connect'!Y$9+'Res-Appliance class'!$D36*'RES S curve-connect'!Y$14+'Res-Appliance class'!$E36*'RES S curve-connect'!Y$19","v":922.36471245861117},{"$f":"'Res-Appliance class'!$B36*'RES S curve-connect'!Z$4+'Res-Appliance class'!$C36*'RES S curve-connect'!Z$9+'Res-Appliance class'!$D36*'RES S curve-connect'!Z$14+'Res-Appliance class'!$E36*'RES S curve-connect'!Z$19","v":1253.3760130323112},{"$f":"'Res-Appliance class'!$B36*'RES S curve-connect'!AA$4+'Res-Appliance class'!$C36*'RES S curve-connect'!AA$9+'Res-Appliance class'!$D36*'RES S curve-connect'!AA$14+'Res-Appliance class'!$E36*'RES S curve-connect'!AA$19","v":1584.103921598625},{"$f":"'Res-Appliance class'!$B36*'RES S curve-connect'!AB$4+'Res-Appliance class'!$C36*'RES S curve-connect'!AB$9+'Res-Appliance class'!$D36*'RES S curve-connect'!AB$14+'Res-Appliance class'!$E36*'RES S curve-connect'!AB$19","v":1848.3345951678834},{"$f":"'Res-Appliance class'!$B36*'RES S curve-connect'!AC$4+'Res-Appliance class'!$C36*'RES S curve-connect'!AC$9+'Res-Appliance class'!$D36*'RES S curve-connect'!AC$14+'Res-Appliance class'!$E36*'RES S curve-connect'!AC$19","v":2102.7526312830646},{"$f":"'Res-Appliance class'!$B36*'RES S curve-connect'!AD$4+'Res-Appliance class'!$C36*'RES S curve-connect'!AD$9+'Res-Appliance class'!$D36*'RES S curve-connect'!AD$14+'Res-Appliance class'!$E36*'RES S curve-connect'!AD$19","v":2336.2215643226559},{"$f":"'Res-Appliance class'!$B36*'RES S curve-connect'!AE$4+'Res-Appliance class'!$C36*'RES S curve-connect'!AE$9+'Res-Appliance class'!$D36*'RES S curve-connect'!AE$14+'Res-Appliance class'!$E36*'RES S curve-connect'!AE$19","v":2581.118762800912},{"$f":"'Res-Appliance class'!$B36*'RES S curve-connect'!AF$4+'Res-Appliance class'!$C36*'RES S curve-connect'!AF$9+'Res-Appliance class'!$D36*'RES S curve-connect'!AF$14+'Res-Appliance class'!$E36*'RES S curve-connect'!AF$19","v":2898.1404949677203},{"$f":"'Res-Appliance class'!$B36*'RES S curve-connect'!AG$4+'Res-Appliance class'!$C36*'RES S curve-connect'!AG$9+'Res-Appliance class'!$D36*'RES S curve-connect'!AG$14+'Res-Appliance class'!$E36*'RES S curve-connect'!AG$19","v":3115.3741431153894},{"$f":"'Res-Appliance class'!$B36*'RES S curve-connect'!AH$4+'Res-Appliance class'!$C36*'RES S curve-connect'!AH$9+'Res-Appliance class'!$D36*'RES S curve-connect'!AH$14+'Res-Appliance class'!$E36*'RES S curve-connect'!AH$19","v":3421.9454023427256},{"$f":"'Res-Appliance class'!$B36*'RES S curve-connect'!AI$4+'Res-Appliance class'!$C36*'RES S curve-connect'!AI$9+'Res-Appliance class'!$D36*'RES S curve-connect'!AI$14+'Res-Appliance class'!$E36*'RES S curve-connect'!AI$19","v":3696.7178463193309},{"$f":"'Res-Appliance class'!$B36*'RES S curve-connect'!AJ$4+'Res-Appliance class'!$C36*'RES S curve-connect'!AJ$9+'Res-Appliance class'!$D36*'RES S curve-connect'!AJ$14+'Res-Appliance class'!$E36*'RES S curve-connect'!AJ$19","v":3944.8625224888178},{"$f":"'Res-Appliance class'!$B36*'RES S curve-connect'!AK$4+'Res-Appliance class'!$C36*'RES S curve-connect'!AK$9+'Res-Appliance class'!$D36*'RES S curve-connect'!AK$14+'Res-Appliance class'!$E36*'RES S curve-connect'!AK$19","v":4208.275437372884},{"$f":"'Res-Appliance class'!$B36*'RES S curve-connect'!AL$4+'Res-Appliance class'!$C36*'RES S curve-connect'!AL$9+'Res-Appliance class'!$D36*'RES S curve-connect'!AL$14+'Res-Appliance class'!$E36*'RES S curve-connect'!AL$19","v":3298.5538123353717},{"$f":"'Res-Appliance class'!$B36*'RES S curve-connect'!AM$4+'Res-Appliance class'!$C36*'RES S curve-connect'!AM$9+'Res-Appliance class'!$D36*'RES S curve-connect'!AM$14+'Res-Appliance class'!$E36*'RES S curve-connect'!AM$19","v":3178.1859561687343},{"$f":"'Res-Appliance class'!$B36*'RES S curve-connect'!AN$4+'Res-Appliance class'!$C36*'RES S curve-connect'!AN$9+'Res-Appliance class'!$D36*'RES S curve-connect'!AN$14+'Res-Appliance class'!$E36*'RES S curve-connect'!AN$19","v":3426.8586765147334},{"$f":"'Res-Appliance class'!$B36*'RES S curve-connect'!AO$4+'Res-Appliance class'!$C36*'RES S curve-connect'!AO$9+'Res-Appliance class'!$D36*'RES S curve-connect'!AO$14+'Res-Appliance class'!$E36*'RES S curve-connect'!AO$19","v":3731.6752102592081},{"$f":"'Res-Appliance class'!$B36*'RES S curve-connect'!AP$4+'Res-Appliance class'!$C36*'RES S curve-connect'!AP$9+'Res-Appliance class'!$D36*'RES S curve-connect'!AP$14+'Res-Appliance class'!$E36*'RES S curve-connect'!AP$19","v":4013.673683529315},{"$f":"'Res-Appliance class'!$B36*'RES S curve-connect'!AQ$4+'Res-Appliance class'!$C36*'RES S curve-connect'!AQ$9+'Res-Appliance class'!$D36*'RES S curve-connect'!AQ$14+'Res-Appliance class'!$E36*'RES S curve-connect'!AQ$19","v":4316.8737954946291},{"$f":"'Res-Appliance class'!$B36*'RES S curve-connect'!AR$4+'Res-Appliance class'!$C36*'RES S curve-connect'!AR$9+'Res-Appliance class'!$D36*'RES S curve-connect'!AR$14+'Res-Appliance class'!$E36*'RES S curve-connect'!AR$19","v":4650.0301171684978},{"$f":"'Res-Appliance class'!$B36*'RES S curve-connect'!AS$4+'Res-Appliance class'!$C36*'RES S curve-connect'!AS$9+'Res-Appliance class'!$D36*'RES S curve-connect'!AS$14+'Res-Appliance class'!$E36*'RES S curve-connect'!AS$19","v":5023.9442781724465},{"$f":"'Res-Appliance class'!$B36*'RES S curve-connect'!AT$4+'Res-Appliance class'!$C36*'RES S curve-connect'!AT$9+'Res-Appliance class'!$D36*'RES S curve-connect'!AT$14+'Res-Appliance class'!$E36*'RES S curve-connect'!AT$19","v":5442.4803039692888},{"$f":"'Res-Appliance class'!$B36*'RES S curve-connect'!AU$4+'Res-Appliance class'!$C36*'RES S curve-connect'!AU$9+'Res-Appliance class'!$D36*'RES S curve-connect'!AU$14+'Res-Appliance class'!$E36*'RES S curve-connect'!AU$19","v":5926.3440415776422},{"$f":"'Res-Appliance class'!$B36*'RES S curve-connect'!AV$4+'Res-Appliance class'!$C36*'RES S curve-connect'!AV$9+'Res-Appliance class'!$D36*'RES S curve-connect'!AV$14+'Res-Appliance class'!$E36*'RES S curve-connect'!AV$19","v":6478.6336942279459},{"$f":"'Res-Appliance class'!$B36*'RES S curve-connect'!AW$4+'Res-Appliance class'!$C36*'RES S curve-connect'!AW$9+'Res-Appliance class'!$D36*'RES S curve-connect'!AW$14+'Res-Appliance class'!$E36*'RES S curve-connect'!AW$19","v":7113.6158912774572},{"$f":"'Res-Appliance class'!$B36*'RES S curve-connect'!AX$4+'Res-Appliance class'!$C36*'RES S curve-connect'!AX$9+'Res-Appliance class'!$D36*'RES S curve-connect'!AX$14+'Res-Appliance class'!$E36*'RES S curve-connect'!AX$19","v":7837.7488626377381},{"$f":"'Res-Appliance class'!$B36*'RES S curve-connect'!AY$4+'Res-Appliance class'!$C36*'RES S curve-connect'!AY$9+'Res-Appliance class'!$D36*'RES S curve-connect'!AY$14+'Res-Appliance class'!$E36*'RES S curve-connect'!AY$19","v":8673.1266811347996},{"$f":"'Res-Appliance class'!$B36*'RES S curve-connect'!AZ$4+'Res-Appliance class'!$C36*'RES S curve-connect'!AZ$9+'Res-Appliance class'!$D36*'RES S curve-connect'!AZ$14+'Res-Appliance class'!$E36*'RES S curve-connect'!AZ$19","v":9628.6949055190744},{"$f":"'Res-Appliance class'!$B36*'RES S curve-connect'!BA$4+'Res-Appliance class'!$C36*'RES S curve-connect'!BA$9+'Res-Appliance class'!$D36*'RES S curve-connect'!BA$14+'Res-Appliance class'!$E36*'RES S curve-connect'!BA$19","v":10735.748222731181},{"$f":"'Res-Appliance class'!$B36*'RES S curve-connect'!BB$4+'Res-Appliance class'!$C36*'RES S curve-connect'!BB$9+'Res-Appliance class'!$D36*'RES S curve-connect'!BB$14+'Res-Appliance class'!$E36*'RES S curve-connect'!BB$19","v":12029.876912488013},{"$f":"'Res-Appliance class'!$B36*'RES S curve-connect'!BC$4+'Res-Appliance class'!$C36*'RES S curve-connect'!BC$9+'Res-Appliance class'!$D36*'RES S curve-connect'!BC$14+'Res-Appliance class'!$E36*'RES S curve-connect'!BC$19","v":13573.276452617802},{"$f":"'Res-Appliance class'!$B36*'RES S curve-connect'!BD$4+'Res-Appliance class'!$C36*'RES S curve-connect'!BD$9+'Res-Appliance class'!$D36*'RES S curve-connect'!BD$14+'Res-Appliance class'!$E36*'RES S curve-connect'!BD$19","v":15064.103303120301},{"$f":"'Res-Appliance class'!$B36*'RES S curve-connect'!BE$4+'Res-Appliance class'!$C36*'RES S curve-connect'!BE$9+'Res-Appliance class'!$D36*'RES S curve-connect'!BE$14+'Res-Appliance class'!$E36*'RES S curve-connect'!BE$19","v":16427.372075898402},{"$f":"'Res-Appliance class'!$B36*'RES S curve-connect'!BF$4+'Res-Appliance class'!$C36*'RES S curve-connect'!BF$9+'Res-Appliance class'!$D36*'RES S curve-connect'!BF$14+'Res-Appliance class'!$E36*'RES S curve-connect'!BF$19","v":17822.06156866076},{"$f":"'Res-Appliance class'!$B36*'RES S curve-connect'!BG$4+'Res-Appliance class'!$C36*'RES S curve-connect'!BG$9+'Res-Appliance class'!$D36*'RES S curve-connect'!BG$14+'Res-Appliance class'!$E36*'RES S curve-connect'!BG$19","v":19399.811851423288},{"$f":"'Res-Appliance class'!$B36*'RES S curve-connect'!BH$4+'Res-Appliance class'!$C36*'RES S curve-connect'!BH$9+'Res-Appliance class'!$D36*'RES S curve-connect'!BH$14+'Res-Appliance class'!$E36*'RES S curve-connect'!BH$19","v":21273.125250066019},{"$f":"'Res-Appliance class'!$B36*'RES S curve-connect'!BI$4+'Res-Appliance class'!$C36*'RES S curve-connect'!BI$9+'Res-Appliance class'!$D36*'RES S curve-connect'!BI$14+'Res-Appliance class'!$E36*'RES S curve-connect'!BI$19","v":23987.105392257967},{"$f":"'Res-Appliance class'!$B36*'RES S curve-connect'!BJ$4+'Res-Appliance class'!$C36*'RES S curve-connect'!BJ$9+'Res-Appliance class'!$D36*'RES S curve-connect'!BJ$14+'Res-Appliance class'!$E36*'RES S curve-connect'!BJ$19","v":27964.111168150281},{"$f":"'Res-Appliance class'!$B36*'RES S curve-connect'!BK$4+'Res-Appliance class'!$C36*'RES S curve-connect'!BK$9+'Res-Appliance class'!$D36*'RES S curve-connect'!BK$14+'Res-Appliance class'!$E36*'RES S curve-connect'!BK$19","v":33836.659988846768},{"$f":"'Res-Appliance class'!$B36*'RES S curve-connect'!BL$4+'Res-Appliance class'!$C36*'RES S curve-connect'!BL$9+'Res-Appliance class'!$D36*'RES S curve-connect'!BL$14+'Res-Appliance class'!$E36*'RES S curve-connect'!BL$19","v":-31.878812982170246},{"$f":"'Res-Appliance class'!$B36*'RES S curve-connect'!BM$4+'Res-Appliance class'!$C36*'RES S curve-connect'!BM$9+'Res-Appliance class'!$D36*'RES S curve-connect'!BM$14+'Res-Appliance class'!$E36*'RES S curve-connect'!BM$19","v":-24.470724829377446},{"$f":"'Res-Appliance class'!$B36*'RES S curve-connect'!BN$4+'Res-Appliance class'!$C36*'RES S curve-connect'!BN$9+'Res-Appliance class'!$D36*'RES S curve-connect'!BN$14+'Res-Appliance class'!$E36*'RES S curve-connect'!BN$19","v":-20.413132385863491},{"$f":"'Res-Appliance class'!$B36*'RES S curve-connect'!BO$4+'Res-Appliance class'!$C36*'RES S curve-connect'!BO$9+'Res-Appliance class'!$D36*'RES S curve-connect'!BO$14+'Res-Appliance class'!$E36*'RES S curve-connect'!BO$19","v":-9.6847155939239542},{"$f":"'Res-Appliance class'!$B36*'RES S curve-connect'!BP$4+'Res-Appliance class'!$C36*'RES S curve-connect'!BP$9+'Res-Appliance class'!$D36*'RES S curve-connect'!BP$14+'Res-Appliance class'!$E36*'RES S curve-connect'!BP$19","v":-2.3066738749119509},{"$f":"'Res-Appliance class'!$B36*'RES S curve-connect'!BQ$4+'Res-Appliance class'!$C36*'RES S curve-connect'!BQ$9+'Res-Appliance class'!$D36*'RES S curve-connect'!BQ$14+'Res-Appliance class'!$E36*'RES S curve-connect'!BQ$19","v":5.0614723787323896},{"$f":"'Res-Appliance class'!$B36*'RES S curve-connect'!BR$4+'Res-Appliance class'!$C36*'RES S curve-connect'!BR$9+'Res-Appliance class'!$D36*'RES S curve-connect'!BR$14+'Res-Appliance class'!$E36*'RES S curve-connect'!BR$19","v":9.0793627024767716},{"$f":"'Res-Appliance class'!$B36*'RES S curve-connect'!BS$4+'Res-Appliance class'!$C36*'RES S curve-connect'!BS$9+'Res-Appliance class'!$D36*'RES S curve-connect'!BS$14+'Res-Appliance class'!$E36*'RES S curve-connect'!BS$19","v":19.768315665394596},{"$f":"'Res-Appliance class'!$B36*'RES S curve-connect'!BT$4+'Res-Appliance class'!$C36*'RES S curve-connect'!BT$9+'Res-Appliance class'!$D36*'RES S curve-connect'!BT$14+'Res-Appliance class'!$E36*'RES S curve-connect'!BT$19","v":27.10713036690305},{"$f":"'Res-Appliance class'!$B36*'RES S curve-connect'!BU$4+'Res-Appliance class'!$C36*'RES S curve-connect'!BU$9+'Res-Appliance class'!$D36*'RES S curve-connect'!BU$14+'Res-Appliance class'!$E36*'RES S curve-connect'!BU$19","v":34.436284944664351},{"$f":"'Res-Appliance class'!$B36*'RES S curve-connect'!BV$4+'Res-Appliance class'!$C36*'RES S curve-connect'!BV$9+'Res-Appliance class'!$D36*'RES S curve-connect'!BV$14+'Res-Appliance class'!$E36*'RES S curve-connect'!BV$19","v":38.415417473520108},{"$f":"'Res-Appliance class'!$B36*'RES S curve-connect'!BW$4+'Res-Appliance class'!$C36*'RES S curve-connect'!BW$9+'Res-Appliance class'!$D36*'RES S curve-connect'!BW$14+'Res-Appliance class'!$E36*'RES S curve-connect'!BW$19","v":49.065845071139904},{"$f":"'Res-Appliance class'!$B36*'RES S curve-connect'!BX$4+'Res-Appliance class'!$C36*'RES S curve-connect'!BX$9+'Res-Appliance class'!$D36*'RES S curve-connect'!BX$14+'Res-Appliance class'!$E36*'RES S curve-connect'!BX$19","v":56.366365394687534},{"$f":"'Res-Appliance class'!$B36*'RES S curve-connect'!BY$4+'Res-Appliance class'!$C36*'RES S curve-connect'!BY$9+'Res-Appliance class'!$D36*'RES S curve-connect'!BY$14+'Res-Appliance class'!$E36*'RES S curve-connect'!BY$19","v":63.657455148672511},{"$f":"'Res-Appliance class'!$B36*'RES S curve-connect'!BZ$4+'Res-Appliance class'!$C36*'RES S curve-connect'!BZ$9+'Res-Appliance class'!$D36*'RES S curve-connect'!BZ$14+'Res-Appliance class'!$E36*'RES S curve-connect'!BZ$19","v":67.598750983828381},{"$f":"'Res-Appliance class'!$B36*'RES S curve-connect'!CA$4+'Res-Appliance class'!$C36*'RES S curve-connect'!CA$9+'Res-Appliance class'!$D36*'RES S curve-connect'!CA$14+'Res-Appliance class'!$E36*'RES S curve-connect'!CA$19","v":78.211568602697071},{"$f":"'Res-Appliance class'!$B36*'RES S curve-connect'!CB$4+'Res-Appliance class'!$C36*'RES S curve-connect'!CB$9+'Res-Appliance class'!$D36*'RES S curve-connect'!CB$14+'Res-Appliance class'!$E36*'RES S curve-connect'!CB$19","v":85.474704256244024},{"$f":"'Res-Appliance class'!$B36*'RES S curve-connect'!CC$4+'Res-Appliance class'!$C36*'RES S curve-connect'!CC$9+'Res-Appliance class'!$D36*'RES S curve-connect'!CC$14+'Res-Appliance class'!$E36*'RES S curve-connect'!CC$19","v":92.728633251647409},{"$f":"'Res-Appliance class'!$B36*'RES S curve-connect'!CD$4+'Res-Appliance class'!$C36*'RES S curve-connect'!CD$9+'Res-Appliance class'!$D36*'RES S curve-connect'!CD$14+'Res-Appliance class'!$E36*'RES S curve-connect'!CD$19","v":-18.522498829032997}]
["Manningham (C)",null,{"$f":"'Res-Appliance class'!$B37*'RES S curve-connect'!C$4+'Res-Appliance class'!$C37*'RES S curve-connect'!C$9+'Res-Appliance class'!$D37*'RES S curve-connect'!C$14+'Res-Appliance class'!$E37*'RES S curve-connect'!C$19","v":-3015.7586372898963},{"$f":"'Res-Appliance class'!$B37*'RES S curve-connect'!D$4+'Res-Appliance class'!$C37*'RES S curve-connect'!D$9+'Res-Appliance class'!$D37*'RES S curve-connect'!D$14+'Res-Appliance class'!$E37*'RES S curve-connect'!D$19","v":-3553.1587562297336},{"$f":"'Res-Appliance class'!$B37*'RES S curve-connect'!E$4+'Res-Appliance class'!$C37*'RES S curve-connect'!E$9+'Res-Appliance class'!$D37*'RES S curve-connect'!E$14+'Res-Appliance class'!$E37*'RES S curve-connect'!E$19","v":-2792.0662287774658},{"$f":"'Res-Appliance class'!$B37*'RES S curve-connect'!F$4+'Res-Appliance class'!$C37*'RES S curve-connect'!F$9+'Res-Appliance class'!$D37*'RES S curve-connect'!F$14+'Res-Appliance class'!$E37*'RES S curve-connect'!F$19","v":-2629.9647256393346},{"$f":"'Res-Appliance class'!$B37*'RES S curve-connect'!G$4+'Res-Appliance class'!$C37*'RES S curve-connect'!G$9+'Res-Appliance class'!$D37*'RES S curve-connect'!G$14+'Res-Appliance class'!$E37*'RES S curve-connect'!G$19","v":-3938.6435764945945},{"$f":"'Res-Appliance class'!$B37*'RES S curve-connect'!H$4+'Res-Appliance class'!$C37*'RES S curve-connect'!H$9+'Res-Appliance class'!$D37*'RES S curve-connect'!H$14+'Res-Appliance class'!$E37*'RES S curve-connect'!H$19","v":-3966.6089073190251},{"$f":"'Res-Appliance class'!$B37*'RES S curve-connect'!I$4+'Res-Appliance class'!$C37*'RES S curve-connect'!I$9+'Res-Appliance class'!$D37*'RES S curve-connect'!I$14+'Res-Appliance class'!$E37*'RES S curve-connect'!I$19","v":-3507.6219472788898},{"$f":"'Res-Appliance class'!$B37*'RES S curve-connect'!J$4+'Res-Appliance class'!$C37*'RES S curve-connect'!J$9+'Res-Appliance class'!$D37*'RES S curve-connect'!J$14+'Res-Appliance class'!$E37*'RES S curve-connect'!J$19","v":-3840.4327390968306},{"$f":"'Res-Appliance class'!$B37*'RES S curve-connect'!K$4+'Res-Appliance class'!$C37*'RES S curve-connect'!K$9+'Res-Appliance class'!$D37*'RES S curve-connect'!K$14+'Res-Appliance class'!$E37*'RES S curve-connect'!K$19","v":-2980.5233709047479},{"$f":"'Res-Appliance class'!$B37*'RES S curve-connect'!L$4+'Res-Appliance class'!$C37*'RES S curve-connect'!L$9+'Res-Appliance class'!$D37*'RES S curve-connect'!L$14+'Res-Appliance class'!$E37*'RES S curve-connect'!L$19","v":-3346.4764418897548},{"$f":"'Res-Appliance class'!$B37*'RES S curve-connect'!M$4+'Res-Appliance class'!$C37*'RES S curve-connect'!M$9+'Res-Appliance class'!$D37*'RES S curve-connect'!M$14+'Res-Appliance class'!$E37*'RES S curve-connect'!M$19","v":-4019.7996321295686},{"$f":"'Res-Appliance class'!$B37*'RES S curve-connect'!N$4+'Res-Appliance class'!$C37*'RES S curve-connect'!N$9+'Res-Appliance class'!$D37*'RES S curve-connect'!N$14+'Res-Appliance class'!$E37*'RES S curve-connect'!N$19","v":-4081.6665834475152},{"$f":"'Res-Appliance class'!$B37*'RES S curve-connect'!O$4+'Res-Appliance class'!$C37*'RES S curve-connect'!O$9+'Res-Appliance class'!$D37*'RES S curve-connect'!O$14+'Res-Appliance class'!$E37*'RES S curve-connect'!O$19","v":-3489.4249724466345},{"$f":"'Res-Appliance class'!$B37*'RES S curve-connect'!P$4+'Res-Appliance class'!$C37*'RES S curve-connect'!P$9+'Res-Appliance class'!$D37*'RES S curve-connect'!P$14+'Res-Appliance class'!$E37*'RES S curve-connect'!P$19","v":-3016.6202375701951},{"$f":"'Res-Appliance class'!$B37*'RES S curve-connect'!Q$4+'Res-Appliance class'!$C37*'RES S curve-connect'!Q$9+'Res-Appliance class'!$D37*'RES S curve-connect'!Q$14+'Res-Appliance class'!$E37*'RES S curve-connect'!Q$19","v":-2302.9942666459942},{"$f":"'Res-Appliance class'!$B37*'RES S curve-connect'!R$4+'Res-Appliance class'!$C37*'RES S curve-connect'!R$9+'Res-Appliance class'!$D37*'RES S curve-connect'!R$14+'Res-Appliance class'!$E37*'RES S curve-connect'!R$19","v":-1897.710430249303},{"$f":"'Res-Appliance class'!$B37*'RES S curve-connect'!S$4+'Res-Appliance class'!$C37*'RES S curve-connect'!S$9+'Res-Appliance class'!$D37*'RES S curve-connect'!S$14+'Res-Appliance class'!$E37*'RES S curve-connect'!S$19","v":-1255.1642303569647},{"$f":"'Res-Appliance class'!$B37*'RES S curve-connect'!T$4+'Res-Appliance class'!$C37*'RES S curve-connect'!T$9+'Res-Appliance class'!$D37*'RES S curve-connect'!T$14+'Res-Appliance class'!$E37*'RES S curve-connect'!T$19","v":-902.89277742421768},{"$f":"'Res-Appliance class'!$B37*'RES S curve-connect'!U$4+'Res-Appliance class'!$C37*'RES S curve-connect'!U$9+'Res-Appliance class'!$D37*'RES S curve-connect'!U$14+'Res-Appliance class'!$E37*'RES S curve-connect'!U$19","v":-502.62012515975863},{"$f":"'Res-Appliance class'!$B37*'RES S curve-connect'!V$4+'Res-Appliance class'!$C37*'RES S curve-connect'!V$9+'Res-Appliance class'!$D37*'RES S curve-connect'!V$14+'Res-Appliance class'!$E37*'RES S curve-connect'!V$19","v":-229.70393485906845},{"$f":"'Res-Appliance class'!$B37*'RES S curve-connect'!W$4+'Res-Appliance class'!$C37*'RES S curve-connect'!W$9+'Res-Appliance class'!$D37*'RES S curve-connect'!W$14+'Res-Appliance class'!$E37*'RES S curve-connect'!W$19","v":-16.581215651600786},{"$f":"'Res-Appliance class'!$B37*'RES S curve-connect'!X$4+'Res-Appliance class'!$C37*'RES S curve-connect'!X$9+'Res-Appliance class'!$D37*'RES S curve-connect'!X$14+'Res-Appliance class'!$E37*'RES S curve-connect'!X$19","v":466.25856843353961},{"$f":"'Res-Appliance class'!$B37*'RES S curve-connect'!Y$4+'Res-Appliance class'!$C37*'RES S curve-connect'!Y$9+'Res-Appliance class'!$D37*'RES S curve-connect'!Y$14+'Res-Appliance class'!$E37*'RES S curve-connect'!Y$19","v":954.4928533268112},{"$f":"'Res-Appliance class'!$B37*'RES S curve-connect'!Z$4+'Res-Appliance class'!$C37*'RES S curve-connect'!Z$9+'Res-Appliance class'!$D37*'RES S curve-connect'!Z$14+'Res-Appliance class'!$E37*'RES S curve-connect'!Z$19","v":1285.1482577929153},{"$f":"'Res-Appliance class'!$B37*'RES S curve-connect'!AA$4+'Res-Appliance class'!$C37*'RES S curve-connect'!AA$9+'Res-Appliance class'!$D37*'RES S curve-connect'!AA$14+'Res-Appliance class'!$E37*'RES S curve-connect'!AA$19","v":1615.5179930168401},{"$f":"'Res-Appliance class'!$B37*'RES S curve-connect'!AB$4+'Res-Appliance class'!$C37*'RES S curve-connect'!AB$9+'Res-Appliance class'!$D37*'RES S curve-connect'!AB$14+'Res-Appliance class'!$E37*'RES S curve-connect'!AB$19","v":1879.4911348056535},{"$f":"'Res-Appliance class'!$B37*'RES S curve-connect'!AC$4+'Res-Appliance class'!$C37*'RES S curve-connect'!AC$9+'Res-Appliance class'!$D37*'RES S curve-connect'!AC$14+'Res-Appliance class'!$E37*'RES S curve-connect'!AC$19","v":2133.6537198440224},{"$f":"'Res-Appliance class'!$B37*'RES S curve-connect'!AD$4+'Res-Appliance class'!$C37*'RES S curve-connect'!AD$9+'Res-Appliance class'!$D37*'RES S curve-connect'!AD$14+'Res-Appliance class'!$E37*'RES S curve-connect'!AD$19","v":2366.8689943603695},{"$f":"'Res-Appliance class'!$B37*'RES S curve-connect'!AE$4+'Res-Appliance class'!$C37*'RES S curve-connect'!AE$9+'Res-Appliance class'!$D37*'RES S curve-connect'!AE$14+'Res-Appliance class'!$E37*'RES S curve-connect'!AE$19","v":2611.5145413368073},{"$f":"'Res-Appliance class'!$B37*'RES S curve-connect'!AF$4+'Res-Appliance class'!$C37*'RES S curve-connect'!AF$9+'Res-Appliance class'!$D37*'RES S curve-connect'!AF$14+'Res-Appliance class'!$E37*'RES S curve-connect'!AF$19","v":2928.2918102310764},{"$f":"'Res-Appliance class'!$B37*'RES S curve-connect'!AG$4+'Res-Appliance class'!$C37*'RES S curve-connect'!AG$9+'Res-Appliance class'!$D37*'RES S curve-connect'!AG$14+'Res-Appliance class'!$E37*'RES S curve-connect'!AG$19","v":3145.5224133866382},{"$f":"'Res-Appliance class'!$B37*'RES S curve-connect'!AH$4+'Res-Appliance class'!$C37*'RES S curve-connect'!AH$9+'Res-Appliance class'!$D37*'RES S curve-connect'!AH$14+'Res-Appliance class'!$E37*'RES S curve-connect'!AH$19","v":3452.0962257172005},{"$f":"'Res-Appliance class'!$B37*'RES S curve-connect'!AI$4+'Res-Appliance class'!$C37*'RES S curve-connect'!AI$9+'Res-Appliance class'!$D37*'RES S curve-connect'!AI$14+'Res-Appliance class'!$E37*'RES S curve-connect'!AI$19","v":3726.8687788072129},{"$f":"'Res-Appliance class'!$B37*'RES S curve-connect'!AJ$4+'Res-Appliance class'!$C37*'RES S curve-connect'!AJ$9+'Res-Appliance class'!$D37*'RES S curve-connect'!AJ$14+'Res-Appliance class'!$E37*'RES S curve-connect'!AJ$19","v":3975.0124743184679},{"$f":"'Res-Appliance class'!$B37*'RES S curve-connect'!AK$4+'Res-Appliance class'!$C37*'RES S curve-connect'!AK$9+'Res-Appliance class'!$D37*'RES S curve-connect'!AK$14+'Res-Appliance class'!$E37*'RES S curve-connect'!AK$19","v":4238.4252768720198},{"$f":"'Res-Appliance class'!$B37*'RES S curve-connect'!AL$4+'Res-Appliance class'!$C37*'RES S curve-connect'!AL$9+'Res-Appliance class'!$D37*'RES S curve-connect'!AL$14+'Res-Appliance class'!$E37*'RES S curve-connect'!AL$19","v":3328.6449946842854},{"$f":"'Res-Appliance class'!$B37*'RES S curve-connect'!AM$4+'Res-Appliance class'!$C37*'RES S curve-connect'!AM$9+'Res-Appliance class'!$D37*'RES S curve-connect'!AM$14+'Res-Appliance class'!$E37*'RES S curve-connect'!AM$19","v":3208.2563674991484},{"$f":"'Res-Appliance class'!$B37*'RES S curve-connect'!AN$4+'Res-Appliance class'!$C37*'RES S curve-connect'!AN$9+'Res-Appliance class'!$D37*'RES S curve-connect'!AN$14+'Res-Appliance class'!$E37*'RES S curve-connect'!AN$19","v":3456.9278789684959},{"$f":"'Res-Appliance class'!$B37*'RES S curve-connect'!AO$4+'Res-Appliance class'!$C37*'RES S curve-connect'!AO$9+'Res-Appliance class'!$D37*'RES S curve-connect'!AO$14+'Res-Appliance class'!$E37*'RES S curve-connect'!AO$19","v":3761.7466783781042},{"$f":"'Res-Appliance class'!$B37*'RES S curve-connect'!AP$4+'Res-Appliance class'!$C37*'RES S curve-connect'!AP$9+'Res-Appliance class'!$D37*'RES S curve-connect'!AP$14+'Res-Appliance class'!$E37*'RES S curve-connect'!AP$19","v":4043.7467050367291},{"$f":"'Res-Appliance class'!$B37*'RES S curve-connect'!AQ$4+'Res-Appliance class'!$C37*'RES S curve-connect'!AQ$9+'Res-Appliance class'!$D37*'RES S curve-connect'!AQ$14+'Res-Appliance class'!$E37*'RES S curve-connect'!AQ$19","v":4346.9492214756783},{"$f":"'Res-Appliance class'!$B37*'RES S curve-connect'!AR$4+'Res-Appliance class'!$C37*'RES S curve-connect'!AR$9+'Res-Appliance class'!$D37*'RES S curve-connect'!AR$14+'Res-Appliance class'!$E37*'RES S curve-connect'!AR$19","v":4680.1097969870234},{"$f":"'Res-Appliance class'!$B37*'RES S curve-connect'!AS$4+'Res-Appliance class'!$C37*'RES S curve-connect'!AS$9+'Res-Appliance class'!$D37*'RES S curve-connect'!AS$14+'Res-Appliance class'!$E37*'RES S curve-connect'!AS$19","v":5054.0304840972176},{"$f":"'Res-Appliance class'!$B37*'RES S curve-connect'!AT$4+'Res-Appliance class'!$C37*'RES S curve-connect'!AT$9+'Res-Appliance class'!$D37*'RES S curve-connect'!AT$14+'Res-Appliance class'!$E37*'RES S curve-connect'!AT$19","v":5472.5757044898182},{"$f":"'Res-Appliance class'!$B37*'RES S curve-connect'!AU$4+'Res-Appliance class'!$C37*'RES S curve-connect'!AU$9+'Res-Appliance class'!$D37*'RES S curve-connect'!AU$14+'Res-Appliance class'!$E37*'RES S curve-connect'!AU$19","v":5956.4518829771969},{"$f":"'Res-Appliance class'!$B37*'RES S curve-connect'!AV$4+'Res-Appliance class'!$C37*'RES S curve-connect'!AV$9+'Res-Appliance class'!$D37*'RES S curve-connect'!AV$14+'Res-Appliance class'!$E37*'RES S curve-connect'!AV$19","v":6508.7579414858974},{"$f":"'Res-Appliance class'!$B37*'RES S curve-connect'!AW$4+'Res-Appliance class'!$C37*'RES S curve-connect'!AW$9+'Res-Appliance class'!$D37*'RES S curve-connect'!AW$14+'Res-Appliance class'!$E37*'RES S curve-connect'!AW$19","v":7143.7611375801671},{"$f":"'Res-Appliance class'!$B37*'RES S curve-connect'!AX$4+'Res-Appliance class'!$C37*'RES S curve-connect'!AX$9+'Res-Appliance class'!$D37*'RES S curve-connect'!AX$14+'Res-Appliance class'!$E37*'RES S curve-connect'!AX$19","v":7867.9202851593791},{"$f":"'Res-Appliance class'!$B37*'RES S curve-connect'!AY$4+'Res-Appliance class'!$C37*'RES S curve-connect'!AY$9+'Res-Appliance class'!$D37*'RES S curve-connect'!AY$14+'Res-Appliance class'!$E37*'RES S curve-connect'!AY$19","v":8703.3301674801642},{"$f":"'Res-Appliance class'!$B37*'RES S curve-connect'!AZ$4+'Res-Appliance class'!$C37*'RES S curve-connect'!AZ$9+'Res-Appliance class'!$D37*'RES S curve-connect'!AZ$14+'Res-Appliance class'!$E37*'RES S curve-connect'!AZ$19","v":9658.9374294837289},{"$f":"'Res-Appliance class'!$B37*'RES S curve-connect'!BA$4+'Res-Appliance class'!$C37*'RES S curve-connect'!BA$9+'Res-Appliance class'!$D37*'RES S curve-connect'!BA$14+'Res-Appliance class'!$E37*'RES S curve-connect'!BA$19","v":10766.038347021975},{"$f":"'Res-Appliance class'!$B37*'RES S curve-connect'!BB$4+'Res-Appliance class'!$C37*'RES S curve-connect'!BB$9+'Res-Appliance class'!$D37*'RES S curve-connect'!BB$14+'Res-Appliance class'!$E37*'RES S curve-connect'!BB$19","v":12060.225421674673},{"$f":"'Res-Appliance class'!$B37*'RES S curve-connect'!BC$4+'Res-Appliance class'!$C37*'RES S curve-connect'!BC$9+'Res-Appliance class'!$D37*'RES S curve-connect'!BC$14+'Res-Appliance class'!$E37*'RES S curve-connect'!BC$19","v":13603.697124041864},{"$f":"'Res-Appliance class'!$B37*'RES S curve-connect'!BD$4+'Res-Appliance class'!$C37*'RES S curve-connect'!BD$9+'Res-Appliance class'!$D37*'RES S curve-connect'!BD$14+'Res-Appliance class'!$E37*'RES S curve-connect'!BD$19","v":15094.594869701561},{"$f":"'Res-Appliance class'!$B37*'RES S curve-connect'!BE$4+'Res-Appliance class'!$C37*'RES S curve-connect'!BE$9+'Res-Appliance class'!$D37*'RES S curve-connect'!BE$14+'Res-Appliance class'!$E37*'RES S curve-connect'!BE$19","v":16457.928045018944},{"$f":"'Res-Appliance class'!$B37*'RES S curve-connect'!BF$4+'Res-Appliance class'!$C37*'RES S curve-connect'!BF$9+'Res-Appliance class'!$D37*'RES S curve-connect'!BF$14+'Res-Appliance class'!$E37*'RES S curve-connect'!BF$19","v":17852.68363838565},{"$f":"'Res-Appliance class'!$B37*'RES S curve-connect'!BG$4+'Res-Appliance class'!$C37*'RES S curve-connect'!BG$9+'Res-Appliance class'!$D37*'RES S curve-connect'!BG$14+'Res-Appliance class'!$E37*'RES S curve-connect'!BG$19","v":19430.509761544352},{"$f":"'Res-Appliance class'!$B37*'RES S curve-connect'!BH$4+'Res-Appliance class'!$C37*'RES S curve-connect'!BH$9+'Res-Appliance class'!$D37*'RES S curve-connect'!BH$14+'Res-Appliance class'!$E37*'RES S curve-connect'!BH$19","v":21303.915821342271},{"$f":"'Res-Appliance class'!$B37*'RES S curve-connect'!BI$4+'Res-Appliance class'!$C37*'RES S curve-connect'!BI$9+'Res-Appliance class'!$D37*'RES S curve-connect'!BI$14+'Res-Appliance class'!$E37*'RES S curve-connect'!BI$19","v":24018.035136080722},{"$f":"'Res-Appliance class'!$B37*'RES S curve-connect'!BJ$4+'Res-Appliance class'!$C37*'RES S curve-connect'!BJ$9+'Res-Appliance class'!$D37*'RES S curve-connect'!BJ$14+'Res-Appliance class'!$E37*'RES S curve-connect'!BJ$19","v":27995.252027842493},{"$f":"'Res-Appliance class'!$B37*'RES S curve-connect'!BK$4+'Res-Appliance class'!$C37*'RES S curve-connect'!BK$9+'Res-Appliance class'!$D37*'RES S curve-connect'!BK$14+'Res-Appliance class'!$E37*'RES S curve-connect'!BK$19","v":33868.120674518876},{"$f":"'Res-Appliance class'!$B37*'RES S curve-connect'!BL$4+'Res-Appliance class'!$C37*'RES S curve-connect'!BL$9+'Res-Appliance class'!$D37*'RES S curve-connect'!BL$14+'Res-Appliance class'!$E37*'RES S curve-connect'!BL$19","v":-2.2759623333787999},{"$f":"'Res-Appliance class'!$B37*'RES S curve-connect'!BM$4+'Res-Appliance class'!$C37*'RES S curve-connect'!BM$9+'Res-Appliance class'!$D37*'RES S curve-connect'!BM$14+'Res-Appliance class'!$E37*'RES S curve-connect'!BM$19","v":5.1213795032543317},{"$f":"'Res-Appliance class'!$B37*'RES S curve-connect'!BN$4+'Res-Appliance class'!$C37*'RES S curve-connect'!BN$9+'Res-Appliance class'!$D37*'RES S curve-connect'!BN$14+'Res-Appliance class'!$E37*'RES S curve-connect'!BN$19","v":9.1683103556567289},{"$f":"'Res-Appliance class'!$B37*'RES S curve-connect'!BO$4+'Res-Appliance class'!$C37*'RES S curve-connect'!BO$9+'Res-Appliance class'!$D37*'RES S curve-connect'!BO$14+'Res-Appliance class'!$E37*'RES S curve-connect'!BO$19","v":19.886149699093437},{"$f":"'Res-Appliance class'!$B37*'RES S curve-connect'!BP$4+'Res-Appliance class'!$C37*'RES S curve-connect'!BP$9+'Res-Appliance class'!$D37*'RES S curve-connect'!BP$14+'Res-Appliance class'!$E37*'RES S curve-connect'!BP$19","v":27.253697533616958},{"$f":"'Res-Appliance class'!$B37*'RES S curve-connect'!BQ$4+'Res-Appliance class'!$C37*'RES S curve-connect'!BQ$9+'Res-Appliance class'!$D37*'RES S curve-connect'!BQ$14+'Res-Appliance class'!$E37*'RES S curve-connect'!BQ$19","v":34.611432892011578},{"$f":"'Res-Appliance class'!$B37*'RES S curve-connect'!BR$4+'Res-Appliance class'!$C37*'RES S curve-connect'!BR$9+'Res-Appliance class'!$D37*'RES S curve-connect'!BR$14+'Res-Appliance class'!$E37*'RES S curve-connect'!BR$19","v":38.618994738763831},{"$f":"'Res-Appliance class'!$B37*'RES S curve-connect'!BS$4+'Res-Appliance class'!$C37*'RES S curve-connect'!BS$9+'Res-Appliance class'!$D37*'RES S curve-connect'!BS$14+'Res-Appliance class'!$E37*'RES S curve-connect'!BS$19","v":49.297701075736086},{"$f":"'Res-Appliance class'!$B37*'RES S curve-connect'!BT$4+'Res-Appliance class'!$C37*'RES S curve-connect'!BT$9+'Res-Appliance class'!$D37*'RES S curve-connect'!BT$14+'Res-Appliance class'!$E37*'RES S curve-connect'!BT$19","v":56.62635043887974},{"$f":"'Res-Appliance class'!$B37*'RES S curve-connect'!BU$4+'Res-Appliance class'!$C37*'RES S curve-connect'!BU$9+'Res-Appliance class'!$D37*'RES S curve-connect'!BU$14+'Res-Appliance class'!$E37*'RES S curve-connect'!BU$19","v":63.945420406112078},{"$f":"'Res-Appliance class'!$B37*'RES S curve-connect'!BV$4+'Res-Appliance class'!$C37*'RES S curve-connect'!BV$9+'Res-Appliance class'!$D37*'RES S curve-connect'!BV$14+'Res-Appliance class'!$E37*'RES S curve-connect'!BV$19","v":67.914548496227098},{"$f":"'Res-Appliance class'!$B37*'RES S curve-connect'!BW$4+'Res-Appliance class'!$C37*'RES S curve-connect'!BW$9+'Res-Appliance class'!$D37*'RES S curve-connect'!BW$14+'Res-Appliance class'!$E37*'RES S curve-connect'!BW$19","v":78.555051274519428},{"$f":"'Res-Appliance class'!$B37*'RES S curve-connect'!BX$4+'Res-Appliance class'!$C37*'RES S curve-connect'!BX$9+'Res-Appliance class'!$D37*'RES S curve-connect'!BX$14+'Res-Appliance class'!$E37*'RES S curve-connect'!BX$19","v":85.845725849427083},{"$f":"'Res-Appliance class'!$B37*'RES S curve-connect'!BY$4+'Res-Appliance class'!$C37*'RES S curve-connect'!BY$9+'Res-Appliance class'!$D37*'RES S curve-connect'!BY$14+'Res-Appliance class'!$E37*'RES S curve-connect'!BY$19","v":93.12704838035944},{"$f":"'Res-Appliance class'!$B37*'RES S curve-connect'!BZ$4+'Res-Appliance class'!$C37*'RES S curve-connect'!BZ$9+'Res-Appliance class'!$D37*'RES S curve-connect'!BZ$14+'Res-Appliance class'!$E37*'RES S curve-connect'!BZ$19","v":97.058654976551225},{"$f":"'Res-Appliance class'!$B37*'RES S curve-connect'!CA$4+'Res-Appliance class'!$C37*'RES S curve-connect'!CA$9+'Res-Appliance class'!$D37*'RES S curve-connect'!CA$14+'Res-Appliance class'!$E37*'RES S curve-connect'!CA$19","v":107.66186080262463},{"$f":"'Res-Appliance class'!$B37*'RES S curve-connect'!CB$4+'Res-Appliance class'!$C37*'RES S curve-connect'!CB$9+'Res-Appliance class'!$D37*'RES S curve-connect'!CB$14+'Res-Appliance class'!$E37*'RES S curve-connect'!CB$19","v":114.91546157518042},{"$f":"'Res-Appliance class'!$B37*'RES S curve-connect'!CC$4+'Res-Appliance class'!$C37*'RES S curve-connect'!CC$9+'Res-Appliance class'!$D37*'RES S curve-connect'!CC$14+'Res-Appliance class'!$E37*'RES S curve-connect'!CC$19","v":122.15993207056403},{"$f":"'Res-Appliance class'!$B37*'RES S curve-connect'!CD$4+'Res-Appliance class'!$C37*'RES S curve-connect'!CD$9+'Res-Appliance class'!$D37*'RES S curve-connect'!CD$14+'Res-Appliance class'!$E37*'RES S curve-connect'!CD$19","v":10.892540827938092}]
["Maroondah (C)",null,{"$f":"'Res-Appliance class'!$B38*'RES S curve-connect'!C$4+'Res-Appliance class'!$C38*'RES S curve-connect'!C$9+'Res-Appliance class'!$D38*'RES S curve-connect'!C$14+'Res-Appliance class'!$E38*'RES S curve-connect'!C$19","v":-3039.5700652401988},{"$f":"'Res-Appliance class'!$B38*'RES S curve-connect'!D$4+'Res-Appliance class'!$C38*'RES S curve-connect'!D$9+'Res-Appliance class'!$D38*'RES S curve-connect'!D$14+'Res-Appliance class'!$E38*'RES S curve-connect'!D$19","v":-3577.1535409479343},{"$f":"'Res-Appliance class'!$B38*'RES S curve-connect'!E$4+'Res-Appliance class'!$C38*'RES S curve-connect'!E$9+'Res-Appliance class'!$D38*'RES S curve-connect'!E$14+'Res-Appliance class'!$E38*'RES S curve-connect'!E$19","v":-2817.515843337339},{"$f":"'Res-Appliance class'!$B38*'RES S curve-connect'!F$4+'Res-Appliance class'!$C38*'RES S curve-connect'!F$9+'Res-Appliance class'!$D38*'RES S curve-connect'!F$14+'Res-Appliance class'!$E38*'RES S curve-connect'!F$19","v":-2655.3931450530722},{"$f":"'Res-Appliance class'!$B38*'RES S curve-connect'!G$4+'Res-Appliance class'!$C38*'RES S curve-connect'!G$9+'Res-Appliance class'!$D38*'RES S curve-connect'!G$14+'Res-Appliance class'!$E38*'RES S curve-connect'!G$19","v":-3955.8064640868729},{"$f":"'Res-Appliance class'!$B38*'RES S curve-connect'!H$4+'Res-Appliance class'!$C38*'RES S curve-connect'!H$9+'Res-Appliance class'!$D38*'RES S curve-connect'!H$14+'Res-Appliance class'!$E38*'RES S curve-connect'!H$19","v":-3984.9725678166046},{"$f":"'Res-Appliance class'!$B38*'RES S curve-connect'!I$4+'Res-Appliance class'!$C38*'RES S curve-connect'!I$9+'Res-Appliance class'!$D38*'RES S curve-connect'!I$14+'Res-Appliance class'!$E38*'RES S curve-connect'!I$19","v":-3526.5993123478884},{"$f":"'Res-Appliance class'!$B38*'RES S curve-connect'!J$4+'Res-Appliance class'!$C38*'RES S curve-connect'!J$9+'Res-Appliance class'!$D38*'RES S curve-connect'!J$14+'Res-Appliance class'!$E38*'RES S curve-connect'!J$19","v":-3863.6836270305894},{"$f":"'Res-Appliance class'!$B38*'RES S curve-connect'!K$4+'Res-Appliance class'!$C38*'RES S curve-connect'!K$9+'Res-Appliance class'!$D38*'RES S curve-connect'!K$14+'Res-Appliance class'!$E38*'RES S curve-connect'!K$19","v":-3004.4639276533057},{"$f":"'Res-Appliance class'!$B38*'RES S curve-connect'!L$4+'Res-Appliance class'!$C38*'RES S curve-connect'!L$9+'Res-Appliance class'!$D38*'RES S curve-connect'!L$14+'Res-Appliance class'!$E38*'RES S curve-connect'!L$19","v":-3370.3063824459919},{"$f":"'Res-Appliance class'!$B38*'RES S curve-connect'!M$4+'Res-Appliance class'!$C38*'RES S curve-connect'!M$9+'Res-Appliance class'!$D38*'RES S curve-connect'!M$14+'Res-Appliance class'!$E38*'RES S curve-connect'!M$19","v":-4041.8674165380694},{"$f":"'Res-Appliance class'!$B38*'RES S curve-connect'!N$4+'Res-Appliance class'!$C38*'RES S curve-connect'!N$9+'Res-Appliance class'!$D38*'RES S curve-connect'!N$14+'Res-Appliance class'!$E38*'RES S curve-connect'!N$19","v":-4103.3932007632538},{"$f":"'Res-Appliance class'!$B38*'RES S curve-connect'!O$4+'Res-Appliance class'!$C38*'RES S curve-connect'!O$9+'Res-Appliance class'!$D38*'RES S curve-connect'!O$14+'Res-Appliance class'!$E38*'RES S curve-connect'!O$19","v":-3511.6444032016343},{"$f":"'Res-Appliance class'!$B38*'RES S curve-connect'!P$4+'Res-Appliance class'!$C38*'RES S curve-connect'!P$9+'Res-Appliance class'!$D38*'RES S curve-connect'!P$14+'Res-Appliance class'!$E38*'RES S curve-connect'!P$19","v":-3039.3464886758829},{"$f":"'Res-Appliance class'!$B38*'RES S curve-connect'!Q$4+'Res-Appliance class'!$C38*'RES S curve-connect'!Q$9+'Res-Appliance class'!$D38*'RES S curve-connect'!Q$14+'Res-Appliance class'!$E38*'RES S curve-connect'!Q$19","v":-2326.585366399755},{"$f":"'Res-Appliance class'!$B38*'RES S curve-connect'!R$4+'Res-Appliance class'!$C38*'RES S curve-connect'!R$9+'Res-Appliance class'!$D38*'RES S curve-connect'!R$14+'Res-Appliance class'!$E38*'RES S curve-connect'!R$19","v":-1921.7219836840284},{"$f":"'Res-Appliance class'!$B38*'RES S curve-connect'!S$4+'Res-Appliance class'!$C38*'RES S curve-connect'!S$9+'Res-Appliance class'!$D38*'RES S curve-connect'!S$14+'Res-Appliance class'!$E38*'RES S curve-connect'!S$19","v":-1279.9501456046501},{"$f":"'Res-Appliance class'!$B38*'RES S curve-connect'!T$4+'Res-Appliance class'!$C38*'RES S curve-connect'!T$9+'Res-Appliance class'!$D38*'RES S curve-connect'!T$14+'Res-Appliance class'!$E38*'RES S curve-connect'!T$19","v":-928.01742189133381},{"$f":"'Res-Appliance class'!$B38*'RES S curve-connect'!U$4+'Res-Appliance class'!$C38*'RES S curve-connect'!U$9+'Res-Appliance class'!$D38*'RES S curve-connect'!U$14+'Res-Appliance class'!$E38*'RES S curve-connect'!U$19","v":-528.09446552396923},{"$f":"'Res-Appliance class'!$B38*'RES S curve-connect'!V$4+'Res-Appliance class'!$C38*'RES S curve-connect'!V$9+'Res-Appliance class'!$D38*'RES S curve-connect'!V$14+'Res-Appliance class'!$E38*'RES S curve-connect'!V$19","v":-255.25359622766692},{"$f":"'Res-Appliance class'!$B38*'RES S curve-connect'!W$4+'Res-Appliance class'!$C38*'RES S curve-connect'!W$9+'Res-Appliance class'!$D38*'RES S curve-connect'!W$14+'Res-Appliance class'!$E38*'RES S curve-connect'!W$19","v":-42.231519075170809},{"$f":"'Res-Appliance class'!$B38*'RES S curve-connect'!X$4+'Res-Appliance class'!$C38*'RES S curve-connect'!X$9+'Res-Appliance class'!$D38*'RES S curve-connect'!X$14+'Res-Appliance class'!$E38*'RES S curve-connect'!X$19","v":439.99667135874802},{"$f":"'Res-Appliance class'!$B38*'RES S curve-connect'!Y$4+'Res-Appliance class'!$C38*'RES S curve-connect'!Y$9+'Res-Appliance class'!$D38*'RES S curve-connect'!Y$14+'Res-Appliance class'!$E38*'RES S curve-connect'!Y$19","v":927.62204926060667},{"$f":"'Res-Appliance class'!$B38*'RES S curve-connect'!Z$4+'Res-Appliance class'!$C38*'RES S curve-connect'!Z$9+'Res-Appliance class'!$D38*'RES S curve-connect'!Z$14+'Res-Appliance class'!$E38*'RES S curve-connect'!Z$19","v":1257.9626354017823},{"$f":"'Res-Appliance class'!$B38*'RES S curve-connect'!AA$4+'Res-Appliance class'!$C38*'RES S curve-connect'!AA$9+'Res-Appliance class'!$D38*'RES S curve-connect'!AA$14+'Res-Appliance class'!$E38*'RES S curve-connect'!AA$19","v":1588.0307813406312},{"$f":"'Res-Appliance class'!$B38*'RES S curve-connect'!AB$4+'Res-Appliance class'!$C38*'RES S curve-connect'!AB$9+'Res-Appliance class'!$D38*'RES S curve-connect'!AB$14+'Res-Appliance class'!$E38*'RES S curve-connect'!AB$19","v":1851.7269783058275},{"$f":"'Res-Appliance class'!$B38*'RES S curve-connect'!AC$4+'Res-Appliance class'!$C38*'RES S curve-connect'!AC$9+'Res-Appliance class'!$D38*'RES S curve-connect'!AC$14+'Res-Appliance class'!$E38*'RES S curve-connect'!AC$19","v":2105.6343379184791},{"$f":"'Res-Appliance class'!$B38*'RES S curve-connect'!AD$4+'Res-Appliance class'!$C38*'RES S curve-connect'!AD$9+'Res-Appliance class'!$D38*'RES S curve-connect'!AD$14+'Res-Appliance class'!$E38*'RES S curve-connect'!AD$19","v":2338.6284855313261},{"$f":"'Res-Appliance class'!$B38*'RES S curve-connect'!AE$4+'Res-Appliance class'!$C38*'RES S curve-connect'!AE$9+'Res-Appliance class'!$D38*'RES S curve-connect'!AE$14+'Res-Appliance class'!$E38*'RES S curve-connect'!AE$19","v":2583.0466501935803},{"$f":"'Res-Appliance class'!$B38*'RES S curve-connect'!AF$4+'Res-Appliance class'!$C38*'RES S curve-connect'!AF$9+'Res-Appliance class'!$D38*'RES S curve-connect'!AF$14+'Res-Appliance class'!$E38*'RES S curve-connect'!AF$19","v":2899.4554743017889},{"$f":"'Res-Appliance class'!$B38*'RES S curve-connect'!AG$4+'Res-Appliance class'!$C38*'RES S curve-connect'!AG$9+'Res-Appliance class'!$D38*'RES S curve-connect'!AG$14+'Res-Appliance class'!$E38*'RES S curve-connect'!AG$19","v":3116.329704023984},{"$f":"'Res-Appliance class'!$B38*'RES S curve-connect'!AH$4+'Res-Appliance class'!$C38*'RES S curve-connect'!AH$9+'Res-Appliance class'!$D38*'RES S curve-connect'!AH$14+'Res-Appliance class'!$E38*'RES S curve-connect'!AH$19","v":3422.3657007860911},{"$f":"'Res-Appliance class'!$B38*'RES S curve-connect'!AI$4+'Res-Appliance class'!$C38*'RES S curve-connect'!AI$9+'Res-Appliance class'!$D38*'RES S curve-connect'!AI$14+'Res-Appliance class'!$E38*'RES S curve-connect'!AI$19","v":3696.6845336418733},{"$f":"'Res-Appliance class'!$B38*'RES S curve-connect'!AJ$4+'Res-Appliance class'!$C38*'RES S curve-connect'!AJ$9+'Res-Appliance class'!$D38*'RES S curve-connect'!AJ$14+'Res-Appliance class'!$E38*'RES S curve-connect'!AJ$19","v":3944.4138629776908},{"$f":"'Res-Appliance class'!$B38*'RES S curve-connect'!AK$4+'Res-Appliance class'!$C38*'RES S curve-connect'!AK$9+'Res-Appliance class'!$D38*'RES S curve-connect'!AK$14+'Res-Appliance class'!$E38*'RES S curve-connect'!AK$19","v":4207.386971301682},{"$f":"'Res-Appliance class'!$B38*'RES S curve-connect'!AL$4+'Res-Appliance class'!$C38*'RES S curve-connect'!AL$9+'Res-Appliance class'!$D38*'RES S curve-connect'!AL$14+'Res-Appliance class'!$E38*'RES S curve-connect'!AL$19","v":3299.1035480968212},{"$f":"'Res-Appliance class'!$B38*'RES S curve-connect'!AM$4+'Res-Appliance class'!$C38*'RES S curve-connect'!AM$9+'Res-Appliance class'!$D38*'RES S curve-connect'!AM$14+'Res-Appliance class'!$E38*'RES S curve-connect'!AM$19","v":3178.9640273978393},{"$f":"'Res-Appliance class'!$B38*'RES S curve-connect'!AN$4+'Res-Appliance class'!$C38*'RES S curve-connect'!AN$9+'Res-Appliance class'!$D38*'RES S curve-connect'!AN$14+'Res-Appliance class'!$E38*'RES S curve-connect'!AN$19","v":3427.2419537590167},{"$f":"'Res-Appliance class'!$B38*'RES S curve-connect'!AO$4+'Res-Appliance class'!$C38*'RES S curve-connect'!AO$9+'Res-Appliance class'!$D38*'RES S curve-connect'!AO$14+'Res-Appliance class'!$E38*'RES S curve-connect'!AO$19","v":3731.5556888401352},{"$f":"'Res-Appliance class'!$B38*'RES S curve-connect'!AP$4+'Res-Appliance class'!$C38*'RES S curve-connect'!AP$9+'Res-Appliance class'!$D38*'RES S curve-connect'!AP$14+'Res-Appliance class'!$E38*'RES S curve-connect'!AP$19","v":4013.0774042440153},{"$f":"'Res-Appliance class'!$B38*'RES S curve-connect'!AQ$4+'Res-Appliance class'!$C38*'RES S curve-connect'!AQ$9+'Res-Appliance class'!$D38*'RES S curve-connect'!AQ$14+'Res-Appliance class'!$E38*'RES S curve-connect'!AQ$19","v":4315.7767160620169},{"$f":"'Res-Appliance class'!$B38*'RES S curve-connect'!AR$4+'Res-Appliance class'!$C38*'RES S curve-connect'!AR$9+'Res-Appliance class'!$D38*'RES S curve-connect'!AR$14+'Res-Appliance class'!$E38*'RES S curve-connect'!AR$19","v":4648.3762071122392},{"$f":"'Res-Appliance class'!$B38*'RES S curve-connect'!AS$4+'Res-Appliance class'!$C38*'RES S curve-connect'!AS$9+'Res-Appliance class'!$D38*'RES S curve-connect'!AS$14+'Res-Appliance class'!$E38*'RES S curve-connect'!AS$19","v":5021.6639432278034},{"$f":"'Res-Appliance class'!$B38*'RES S curve-connect'!AT$4+'Res-Appliance class'!$C38*'RES S curve-connect'!AT$9+'Res-Appliance class'!$D38*'RES S curve-connect'!AT$14+'Res-Appliance class'!$E38*'RES S curve-connect'!AT$19","v":5439.4912406911653},{"$f":"'Res-Appliance class'!$B38*'RES S curve-connect'!AU$4+'Res-Appliance class'!$C38*'RES S curve-connect'!AU$9+'Res-Appliance class'!$D38*'RES S curve-connect'!AU$14+'Res-Appliance class'!$E38*'RES S curve-connect'!AU$19","v":5922.5454232646644},{"$f":"'Res-Appliance class'!$B38*'RES S curve-connect'!AV$4+'Res-Appliance class'!$C38*'RES S curve-connect'!AV$9+'Res-Appliance class'!$D38*'RES S curve-connect'!AV$14+'Res-Appliance class'!$E38*'RES S curve-connect'!AV$19","v":6473.9016591765649},{"$f":"'Res-Appliance class'!$B38*'RES S curve-connect'!AW$4+'Res-Appliance class'!$C38*'RES S curve-connect'!AW$9+'Res-Appliance class'!$D38*'RES S curve-connect'!AW$14+'Res-Appliance class'!$E38*'RES S curve-connect'!AW$19","v":7107.8064405088744},{"$f":"'Res-Appliance class'!$B38*'RES S curve-connect'!AX$4+'Res-Appliance class'!$C38*'RES S curve-connect'!AX$9+'Res-Appliance class'!$D38*'RES S curve-connect'!AX$14+'Res-Appliance class'!$E38*'RES S curve-connect'!AX$19","v":7830.6992759967407},{"$f":"'Res-Appliance class'!$B38*'RES S curve-connect'!AY$4+'Res-Appliance class'!$C38*'RES S curve-connect'!AY$9+'Res-Appliance class'!$D38*'RES S curve-connect'!AY$14+'Res-Appliance class'!$E38*'RES S curve-connect'!AY$19","v":8664.6514685554703},{"$f":"'Res-Appliance class'!$B38*'RES S curve-connect'!AZ$4+'Res-Appliance class'!$C38*'RES S curve-connect'!AZ$9+'Res-Appliance class'!$D38*'RES S curve-connect'!AZ$14+'Res-Appliance class'!$E38*'RES S curve-connect'!AZ$19","v":9618.5737748044085},{"$f":"'Res-Appliance class'!$B38*'RES S curve-connect'!BA$4+'Res-Appliance class'!$C38*'RES S curve-connect'!BA$9+'Res-Appliance class'!$D38*'RES S curve-connect'!BA$14+'Res-Appliance class'!$E38*'RES S curve-connect'!BA$19","v":10723.709981885677},{"$f":"'Res-Appliance class'!$B38*'RES S curve-connect'!BB$4+'Res-Appliance class'!$C38*'RES S curve-connect'!BB$9+'Res-Appliance class'!$D38*'RES S curve-connect'!BB$14+'Res-Appliance class'!$E38*'RES S curve-connect'!BB$19","v":12015.579201871278},{"$f":"'Res-Appliance class'!$B38*'RES S curve-connect'!BC$4+'Res-Appliance class'!$C38*'RES S curve-connect'!BC$9+'Res-Appliance class'!$D38*'RES S curve-connect'!BC$14+'Res-Appliance class'!$E38*'RES S curve-connect'!BC$19","v":13556.281059511513},{"$f":"'Res-Appliance class'!$B38*'RES S curve-connect'!BD$4+'Res-Appliance class'!$C38*'RES S curve-connect'!BD$9+'Res-Appliance class'!$D38*'RES S curve-connect'!BD$14+'Res-Appliance class'!$E38*'RES S curve-connect'!BD$19","v":15044.453737682494},{"$f":"'Res-Appliance class'!$B38*'RES S curve-connect'!BE$4+'Res-Appliance class'!$C38*'RES S curve-connect'!BE$9+'Res-Appliance class'!$D38*'RES S curve-connect'!BE$14+'Res-Appliance class'!$E38*'RES S curve-connect'!BE$19","v":16405.27915708533},{"$f":"'Res-Appliance class'!$B38*'RES S curve-connect'!BF$4+'Res-Appliance class'!$C38*'RES S curve-connect'!BF$9+'Res-Appliance class'!$D38*'RES S curve-connect'!BF$14+'Res-Appliance class'!$E38*'RES S curve-connect'!BF$19","v":17797.473818465834},{"$f":"'Res-Appliance class'!$B38*'RES S curve-connect'!BG$4+'Res-Appliance class'!$C38*'RES S curve-connect'!BG$9+'Res-Appliance class'!$D38*'RES S curve-connect'!BG$14+'Res-Appliance class'!$E38*'RES S curve-connect'!BG$19","v":19372.420264792545},{"$f":"'Res-Appliance class'!$B38*'RES S curve-connect'!BH$4+'Res-Appliance class'!$C38*'RES S curve-connect'!BH$9+'Res-Appliance class'!$D38*'RES S curve-connect'!BH$14+'Res-Appliance class'!$E38*'RES S curve-connect'!BH$19","v":21242.394059875889},{"$f":"'Res-Appliance class'!$B38*'RES S curve-connect'!BI$4+'Res-Appliance class'!$C38*'RES S curve-connect'!BI$9+'Res-Appliance class'!$D38*'RES S curve-connect'!BI$14+'Res-Appliance class'!$E38*'RES S curve-connect'!BI$19","v":23951.548076779389},{"$f":"'Res-Appliance class'!$B38*'RES S curve-connect'!BJ$4+'Res-Appliance class'!$C38*'RES S curve-connect'!BJ$9+'Res-Appliance class'!$D38*'RES S curve-connect'!BJ$14+'Res-Appliance class'!$E38*'RES S curve-connect'!BJ$19","v":27921.426820648048},{"$f":"'Res-Appliance class'!$B38*'RES S curve-connect'!BK$4+'Res-Appliance class'!$C38*'RES S curve-connect'!BK$9+'Res-Appliance class'!$D38*'RES S curve-connect'!BK$14+'Res-Appliance class'!$E38*'RES S curve-connect'!BK$19","v":33783.370359987093},{"$f":"'Res-Appliance class'!$B38*'RES S curve-connect'!BL$4+'Res-Appliance class'!$C38*'RES S curve-connect'!BL$9+'Res-Appliance class'!$D38*'RES S curve-connect'!BL$14+'Res-Appliance class'!$E38*'RES S curve-connect'!BL$19","v":-26.039234720849322},{"$f":"'Res-Appliance class'!$B38*'RES S curve-connect'!BM$4+'Res-Appliance class'!$C38*'RES S curve-connect'!BM$9+'Res-Appliance class'!$D38*'RES S curve-connect'!BM$14+'Res-Appliance class'!$E38*'RES S curve-connect'!BM$19","v":-18.645507787364465},{"$f":"'Res-Appliance class'!$B38*'RES S curve-connect'!BN$4+'Res-Appliance class'!$C38*'RES S curve-connect'!BN$9+'Res-Appliance class'!$D38*'RES S curve-connect'!BN$14+'Res-Appliance class'!$E38*'RES S curve-connect'!BN$19","v":-14.602248482429673},{"$f":"'Res-Appliance class'!$B38*'RES S curve-connect'!BO$4+'Res-Appliance class'!$C38*'RES S curve-connect'!BO$9+'Res-Appliance class'!$D38*'RES S curve-connect'!BO$14+'Res-Appliance class'!$E38*'RES S curve-connect'!BO$19","v":-3.8881369367533694},{"$f":"'Res-Appliance class'!$B38*'RES S curve-connect'!BP$4+'Res-Appliance class'!$C38*'RES S curve-connect'!BP$9+'Res-Appliance class'!$D38*'RES S curve-connect'!BP$14+'Res-Appliance class'!$E38*'RES S curve-connect'!BP$19","v":3.4756272411303826},{"$f":"'Res-Appliance class'!$B38*'RES S curve-connect'!BQ$4+'Res-Appliance class'!$C38*'RES S curve-connect'!BQ$9+'Res-Appliance class'!$D38*'RES S curve-connect'!BQ$14+'Res-Appliance class'!$E38*'RES S curve-connect'!BQ$19","v":10.829523472822757},{"$f":"'Res-Appliance class'!$B38*'RES S curve-connect'!BR$4+'Res-Appliance class'!$C38*'RES S curve-connect'!BR$9+'Res-Appliance class'!$D38*'RES S curve-connect'!BR$14+'Res-Appliance class'!$E38*'RES S curve-connect'!BR$19","v":14.833191109048244},{"$f":"'Res-Appliance class'!$B38*'RES S curve-connect'!BS$4+'Res-Appliance class'!$C38*'RES S curve-connect'!BS$9+'Res-Appliance class'!$D38*'RES S curve-connect'!BS$14+'Res-Appliance class'!$E38*'RES S curve-connect'!BS$19","v":25.507948535344667},{"$f":"'Res-Appliance class'!$B38*'RES S curve-connect'!BT$4+'Res-Appliance class'!$C38*'RES S curve-connect'!BT$9+'Res-Appliance class'!$D38*'RES S curve-connect'!BT$14+'Res-Appliance class'!$E38*'RES S curve-connect'!BT$19","v":32.832594668792979},{"$f":"'Res-Appliance class'!$B38*'RES S curve-connect'!BU$4+'Res-Appliance class'!$C38*'RES S curve-connect'!BU$9+'Res-Appliance class'!$D38*'RES S curve-connect'!BU$14+'Res-Appliance class'!$E38*'RES S curve-connect'!BU$19","v":40.14760746591088},{"$f":"'Res-Appliance class'!$B38*'RES S curve-connect'!BV$4+'Res-Appliance class'!$C38*'RES S curve-connect'!BV$9+'Res-Appliance class'!$D38*'RES S curve-connect'!BV$14+'Res-Appliance class'!$E38*'RES S curve-connect'!BV$19","v":44.112624821579459},{"$f":"'Res-Appliance class'!$B38*'RES S curve-connect'!BW$4+'Res-Appliance class'!$C38*'RES S curve-connect'!BW$9+'Res-Appliance class'!$D38*'RES S curve-connect'!BW$14+'Res-Appliance class'!$E38*'RES S curve-connect'!BW$19","v":54.748963674684774},{"$f":"'Res-Appliance class'!$B38*'RES S curve-connect'!BX$4+'Res-Appliance class'!$C38*'RES S curve-connect'!BX$9+'Res-Appliance class'!$D38*'RES S curve-connect'!BX$14+'Res-Appliance class'!$E38*'RES S curve-connect'!BX$19","v":62.0354215047754},{"$f":"'Res-Appliance class'!$B38*'RES S curve-connect'!BY$4+'Res-Appliance class'!$C38*'RES S curve-connect'!BY$9+'Res-Appliance class'!$D38*'RES S curve-connect'!BY$14+'Res-Appliance class'!$E38*'RES S curve-connect'!BY$19","v":69.312474839907281},{"$f":"'Res-Appliance class'!$B38*'RES S curve-connect'!BZ$4+'Res-Appliance class'!$C38*'RES S curve-connect'!BZ$9+'Res-Appliance class'!$D38*'RES S curve-connect'!BZ$14+'Res-Appliance class'!$E38*'RES S curve-connect'!BZ$19","v":73.23976015551392},{"$f":"'Res-Appliance class'!$B38*'RES S curve-connect'!CA$4+'Res-Appliance class'!$C38*'RES S curve-connect'!CA$9+'Res-Appliance class'!$D38*'RES S curve-connect'!CA$14+'Res-Appliance class'!$E38*'RES S curve-connect'!CA$19","v":83.838592979983673},{"$f":"'Res-Appliance class'!$B38*'RES S curve-connect'!CB$4+'Res-Appliance class'!$C38*'RES S curve-connect'!CB$9+'Res-Appliance class'!$D38*'RES S curve-connect'!CB$14+'Res-Appliance class'!$E38*'RES S curve-connect'!CB$19","v":91.0877693912675},{"$f":"'Res-Appliance class'!$B38*'RES S curve-connect'!CC$4+'Res-Appliance class'!$C38*'RES S curve-connect'!CC$9+'Res-Appliance class'!$D38*'RES S curve-connect'!CC$14+'Res-Appliance class'!$E38*'RES S curve-connect'!CC$19","v":98.327764524660381},{"$f":"'Res-Appliance class'!$B38*'RES S curve-connect'!CD$4+'Res-Appliance class'!$C38*'RES S curve-connect'!CD$9+'Res-Appliance class'!$D38*'RES S curve-connect'!CD$14+'Res-Appliance class'!$E38*'RES S curve-connect'!CD$19","v":-12.717080693938044}]
["Melbourne (C)",null,{"$f":"'Res-Appliance class'!$B39*'RES S curve-connect'!C$4+'Res-Appliance class'!$C39*'RES S curve-connect'!C$9+'Res-Appliance class'!$D39*'RES S curve-connect'!C$14+'Res-Appliance class'!$E39*'RES S curve-connect'!C$19","v":-1812.7019685094169},{"$f":"'Res-Appliance class'!$B39*'RES S curve-connect'!D$4+'Res-Appliance class'!$C39*'RES S curve-connect'!D$9+'Res-Appliance class'!$D39*'RES S curve-connect'!D$14+'Res-Appliance class'!$E39*'RES S curve-connect'!D$19","v":-2116.3586362546457},{"$f":"'Res-Appliance class'!$B39*'RES S curve-connect'!E$4+'Res-Appliance class'!$C39*'RES S curve-connect'!E$9+'Res-Appliance class'!$D39*'RES S curve-connect'!E$14+'Res-Appliance class'!$E39*'RES S curve-connect'!E$19","v":-1787.6702564869083},{"$f":"'Res-Appliance class'!$B39*'RES S curve-connect'!F$4+'Res-Appliance class'!$C39*'RES S curve-connect'!F$9+'Res-Appliance class'!$D39*'RES S curve-connect'!F$14+'Res-Appliance class'!$E39*'RES S curve-connect'!F$19","v":-1709.3649142134559},{"$f":"'Res-Appliance class'!$B39*'RES S curve-connect'!G$4+'Res-Appliance class'!$C39*'RES S curve-connect'!G$9+'Res-Appliance class'!$D39*'RES S curve-connect'!G$14+'Res-Appliance class'!$E39*'RES S curve-connect'!G$19","v":-2231.1072261821027},{"$f":"'Res-Appliance class'!$B39*'RES S curve-connect'!H$4+'Res-Appliance class'!$C39*'RES S curve-connect'!H$9+'Res-Appliance class'!$D39*'RES S curve-connect'!H$14+'Res-Appliance class'!$E39*'RES S curve-connect'!H$19","v":-2265.6267468105179},{"$f":"'Res-Appliance class'!$B39*'RES S curve-connect'!I$4+'Res-Appliance class'!$C39*'RES S curve-connect'!I$9+'Res-Appliance class'!$D39*'RES S curve-connect'!I$14+'Res-Appliance class'!$E39*'RES S curve-connect'!I$19","v":-2025.140014187614},{"$f":"'Res-Appliance class'!$B39*'RES S curve-connect'!J$4+'Res-Appliance class'!$C39*'RES S curve-connect'!J$9+'Res-Appliance class'!$D39*'RES S curve-connect'!J$14+'Res-Appliance class'!$E39*'RES S curve-connect'!J$19","v":-2298.2736368871101},{"$f":"'Res-Appliance class'!$B39*'RES S curve-connect'!K$4+'Res-Appliance class'!$C39*'RES S curve-connect'!K$9+'Res-Appliance class'!$D39*'RES S curve-connect'!K$14+'Res-Appliance class'!$E39*'RES S curve-connect'!K$19","v":-1817.3650735793835},{"$f":"'Res-Appliance class'!$B39*'RES S curve-connect'!L$4+'Res-Appliance class'!$C39*'RES S curve-connect'!L$9+'Res-Appliance class'!$D39*'RES S curve-connect'!L$14+'Res-Appliance class'!$E39*'RES S curve-connect'!L$19","v":-2021.3482975588704},{"$f":"'Res-Appliance class'!$B39*'RES S curve-connect'!M$4+'Res-Appliance class'!$C39*'RES S curve-connect'!M$9+'Res-Appliance class'!$D39*'RES S curve-connect'!M$14+'Res-Appliance class'!$E39*'RES S curve-connect'!M$19","v":-2353.8849790350168},{"$f":"'Res-Appliance class'!$B39*'RES S curve-connect'!N$4+'Res-Appliance class'!$C39*'RES S curve-connect'!N$9+'Res-Appliance class'!$D39*'RES S curve-connect'!N$14+'Res-Appliance class'!$E39*'RES S curve-connect'!N$19","v":-2384.346520293032},{"$f":"'Res-Appliance class'!$B39*'RES S curve-connect'!O$4+'Res-Appliance class'!$C39*'RES S curve-connect'!O$9+'Res-Appliance class'!$D39*'RES S curve-connect'!O$14+'Res-Appliance class'!$E39*'RES S curve-connect'!O$19","v":-2057.4346857433998},{"$f":"'Res-Appliance class'!$B39*'RES S curve-connect'!P$4+'Res-Appliance class'!$C39*'RES S curve-connect'!P$9+'Res-Appliance class'!$D39*'RES S curve-connect'!P$14+'Res-Appliance class'!$E39*'RES S curve-connect'!P$19","v":-1801.5557081345767},{"$f":"'Res-Appliance class'!$B39*'RES S curve-connect'!Q$4+'Res-Appliance class'!$C39*'RES S curve-connect'!Q$9+'Res-Appliance class'!$D39*'RES S curve-connect'!Q$14+'Res-Appliance class'!$E39*'RES S curve-connect'!Q$19","v":-1416.4292892854728},{"$f":"'Res-Appliance class'!$B39*'RES S curve-connect'!R$4+'Res-Appliance class'!$C39*'RES S curve-connect'!R$9+'Res-Appliance class'!$D39*'RES S curve-connect'!R$14+'Res-Appliance class'!$E39*'RES S curve-connect'!R$19","v":-1197.8610659010121},{"$f":"'Res-Appliance class'!$B39*'RES S curve-connect'!S$4+'Res-Appliance class'!$C39*'RES S curve-connect'!S$9+'Res-Appliance class'!$D39*'RES S curve-connect'!S$14+'Res-Appliance class'!$E39*'RES S curve-connect'!S$19","v":-841.43048588346733},{"$f":"'Res-Appliance class'!$B39*'RES S curve-connect'!T$4+'Res-Appliance class'!$C39*'RES S curve-connect'!T$9+'Res-Appliance class'!$D39*'RES S curve-connect'!T$14+'Res-Appliance class'!$E39*'RES S curve-connect'!T$19","v":-668.42090326804055},{"$f":"'Res-Appliance class'!$B39*'RES S curve-connect'!U$4+'Res-Appliance class'!$C39*'RES S curve-connect'!U$9+'Res-Appliance class'!$D39*'RES S curve-connect'!U$14+'Res-Appliance class'!$E39*'RES S curve-connect'!U$19","v":-456.27928784891776},{"$f":"'Res-Appliance class'!$B39*'RES S curve-connect'!V$4+'Res-Appliance class'!$C39*'RES S curve-connect'!V$9+'Res-Appliance class'!$D39*'RES S curve-connect'!V$14+'Res-Appliance class'!$E39*'RES S curve-connect'!V$19","v":-306.1886020588824},{"$f":"'Res-Appliance class'!$B39*'RES S curve-connect'!W$4+'Res-Appliance class'!$C39*'RES S curve-connect'!W$9+'Res-Appliance class'!$D39*'RES S curve-connect'!W$14+'Res-Appliance class'!$E39*'RES S curve-connect'!W$19","v":-188.17388155893792},{"$f":"'Res-Appliance class'!$B39*'RES S curve-connect'!X$4+'Res-Appliance class'!$C39*'RES S curve-connect'!X$9+'Res-Appliance class'!$D39*'RES S curve-connect'!X$14+'Res-Appliance class'!$E39*'RES S curve-connect'!X$19","v":66.249702991044131},{"$f":"'Res-Appliance class'!$B39*'RES S curve-connect'!Y$4+'Res-Appliance class'!$C39*'RES S curve-connect'!Y$9+'Res-Appliance class'!$D39*'RES S curve-connect'!Y$14+'Res-Appliance class'!$E39*'RES S curve-connect'!Y$19","v":325.85434771184288},{"$f":"'Res-Appliance class'!$B39*'RES S curve-connect'!Z$4+'Res-Appliance class'!$C39*'RES S curve-connect'!Z$9+'Res-Appliance class'!$D39*'RES S curve-connect'!Z$14+'Res-Appliance class'!$E39*'RES S curve-connect'!Z$19","v":503.47892936747843},{"$f":"'Res-Appliance class'!$B39*'RES S curve-connect'!AA$4+'Res-Appliance class'!$C39*'RES S curve-connect'!AA$9+'Res-Appliance class'!$D39*'RES S curve-connect'!AA$14+'Res-Appliance class'!$E39*'RES S curve-connect'!AA$19","v":683.66333449435558},{"$f":"'Res-Appliance class'!$B39*'RES S curve-connect'!AB$4+'Res-Appliance class'!$C39*'RES S curve-connect'!AB$9+'Res-Appliance class'!$D39*'RES S curve-connect'!AB$14+'Res-Appliance class'!$E39*'RES S curve-connect'!AB$19","v":829.55234318456939},{"$f":"'Res-Appliance class'!$B39*'RES S curve-connect'!AC$4+'Res-Appliance class'!$C39*'RES S curve-connect'!AC$9+'Res-Appliance class'!$D39*'RES S curve-connect'!AC$14+'Res-Appliance class'!$E39*'RES S curve-connect'!AC$19","v":971.85650486288762},{"$f":"'Res-Appliance class'!$B39*'RES S curve-connect'!AD$4+'Res-Appliance class'!$C39*'RES S curve-connect'!AD$9+'Res-Appliance class'!$D39*'RES S curve-connect'!AD$14+'Res-Appliance class'!$E39*'RES S curve-connect'!AD$19","v":1102.6752883732008},{"$f":"'Res-Appliance class'!$B39*'RES S curve-connect'!AE$4+'Res-Appliance class'!$C39*'RES S curve-connect'!AE$9+'Res-Appliance class'!$D39*'RES S curve-connect'!AE$14+'Res-Appliance class'!$E39*'RES S curve-connect'!AE$19","v":1243.6545465204931},{"$f":"'Res-Appliance class'!$B39*'RES S curve-connect'!AF$4+'Res-Appliance class'!$C39*'RES S curve-connect'!AF$9+'Res-Appliance class'!$D39*'RES S curve-connect'!AF$14+'Res-Appliance class'!$E39*'RES S curve-connect'!AF$19","v":1420.7805666692461},{"$f":"'Res-Appliance class'!$B39*'RES S curve-connect'!AG$4+'Res-Appliance class'!$C39*'RES S curve-connect'!AG$9+'Res-Appliance class'!$D39*'RES S curve-connect'!AG$14+'Res-Appliance class'!$E39*'RES S curve-connect'!AG$19","v":1542.3559831319035},{"$f":"'Res-Appliance class'!$B39*'RES S curve-connect'!AH$4+'Res-Appliance class'!$C39*'RES S curve-connect'!AH$9+'Res-Appliance class'!$D39*'RES S curve-connect'!AH$14+'Res-Appliance class'!$E39*'RES S curve-connect'!AH$19","v":1706.1950695407954},{"$f":"'Res-Appliance class'!$B39*'RES S curve-connect'!AI$4+'Res-Appliance class'!$C39*'RES S curve-connect'!AI$9+'Res-Appliance class'!$D39*'RES S curve-connect'!AI$14+'Res-Appliance class'!$E39*'RES S curve-connect'!AI$19","v":1860.0858718793934},{"$f":"'Res-Appliance class'!$B39*'RES S curve-connect'!AJ$4+'Res-Appliance class'!$C39*'RES S curve-connect'!AJ$9+'Res-Appliance class'!$D39*'RES S curve-connect'!AJ$14+'Res-Appliance class'!$E39*'RES S curve-connect'!AJ$19","v":1997.5859546600254},{"$f":"'Res-Appliance class'!$B39*'RES S curve-connect'!AK$4+'Res-Appliance class'!$C39*'RES S curve-connect'!AK$9+'Res-Appliance class'!$D39*'RES S curve-connect'!AK$14+'Res-Appliance class'!$E39*'RES S curve-connect'!AK$19","v":2143.8018697915463},{"$f":"'Res-Appliance class'!$B39*'RES S curve-connect'!AL$4+'Res-Appliance class'!$C39*'RES S curve-connect'!AL$9+'Res-Appliance class'!$D39*'RES S curve-connect'!AL$14+'Res-Appliance class'!$E39*'RES S curve-connect'!AL$19","v":1619.5692727994845},{"$f":"'Res-Appliance class'!$B39*'RES S curve-connect'!AM$4+'Res-Appliance class'!$C39*'RES S curve-connect'!AM$9+'Res-Appliance class'!$D39*'RES S curve-connect'!AM$14+'Res-Appliance class'!$E39*'RES S curve-connect'!AM$19","v":1560.8373580010393},{"$f":"'Res-Appliance class'!$B39*'RES S curve-connect'!AN$4+'Res-Appliance class'!$C39*'RES S curve-connect'!AN$9+'Res-Appliance class'!$D39*'RES S curve-connect'!AN$14+'Res-Appliance class'!$E39*'RES S curve-connect'!AN$19","v":1704.3463066805866},{"$f":"'Res-Appliance class'!$B39*'RES S curve-connect'!AO$4+'Res-Appliance class'!$C39*'RES S curve-connect'!AO$9+'Res-Appliance class'!$D39*'RES S curve-connect'!AO$14+'Res-Appliance class'!$E39*'RES S curve-connect'!AO$19","v":1875.0841290214685},{"$f":"'Res-Appliance class'!$B39*'RES S curve-connect'!AP$4+'Res-Appliance class'!$C39*'RES S curve-connect'!AP$9+'Res-Appliance class'!$D39*'RES S curve-connect'!AP$14+'Res-Appliance class'!$E39*'RES S curve-connect'!AP$19","v":2029.9692761300021},{"$f":"'Res-Appliance class'!$B39*'RES S curve-connect'!AQ$4+'Res-Appliance class'!$C39*'RES S curve-connect'!AQ$9+'Res-Appliance class'!$D39*'RES S curve-connect'!AQ$14+'Res-Appliance class'!$E39*'RES S curve-connect'!AQ$19","v":2199.6156217580378},{"$f":"'Res-Appliance class'!$B39*'RES S curve-connect'!AR$4+'Res-Appliance class'!$C39*'RES S curve-connect'!AR$9+'Res-Appliance class'!$D39*'RES S curve-connect'!AR$14+'Res-Appliance class'!$E39*'RES S curve-connect'!AR$19","v":2384.215413789394},{"$f":"'Res-Appliance class'!$B39*'RES S curve-connect'!AS$4+'Res-Appliance class'!$C39*'RES S curve-connect'!AS$9+'Res-Appliance class'!$D39*'RES S curve-connect'!AS$14+'Res-Appliance class'!$E39*'RES S curve-connect'!AS$19","v":2590.9396654850843},{"$f":"'Res-Appliance class'!$B39*'RES S curve-connect'!AT$4+'Res-Appliance class'!$C39*'RES S curve-connect'!AT$9+'Res-Appliance class'!$D39*'RES S curve-connect'!AT$14+'Res-Appliance class'!$E39*'RES S curve-connect'!AT$19","v":2820.25054076887},{"$f":"'Res-Appliance class'!$B39*'RES S curve-connect'!AU$4+'Res-Appliance class'!$C39*'RES S curve-connect'!AU$9+'Res-Appliance class'!$D39*'RES S curve-connect'!AU$14+'Res-Appliance class'!$E39*'RES S curve-connect'!AU$19","v":3087.8957566414492},{"$f":"'Res-Appliance class'!$B39*'RES S curve-connect'!AV$4+'Res-Appliance class'!$C39*'RES S curve-connect'!AV$9+'Res-Appliance class'!$D39*'RES S curve-connect'!AV$14+'Res-Appliance class'!$E39*'RES S curve-connect'!AV$19","v":3390.8077157689918},{"$f":"'Res-Appliance class'!$B39*'RES S curve-connect'!AW$4+'Res-Appliance class'!$C39*'RES S curve-connect'!AW$9+'Res-Appliance class'!$D39*'RES S curve-connect'!AW$14+'Res-Appliance class'!$E39*'RES S curve-connect'!AW$19","v":3737.8628885066128},{"$f":"'Res-Appliance class'!$B39*'RES S curve-connect'!AX$4+'Res-Appliance class'!$C39*'RES S curve-connect'!AX$9+'Res-Appliance class'!$D39*'RES S curve-connect'!AX$14+'Res-Appliance class'!$E39*'RES S curve-connect'!AX$19","v":4130.5083962344761},{"$f":"'Res-Appliance class'!$B39*'RES S curve-connect'!AY$4+'Res-Appliance class'!$C39*'RES S curve-connect'!AY$9+'Res-Appliance class'!$D39*'RES S curve-connect'!AY$14+'Res-Appliance class'!$E39*'RES S curve-connect'!AY$19","v":4584.7434681799732},{"$f":"'Res-Appliance class'!$B39*'RES S curve-connect'!AZ$4+'Res-Appliance class'!$C39*'RES S curve-connect'!AZ$9+'Res-Appliance class'!$D39*'RES S curve-connect'!AZ$14+'Res-Appliance class'!$E39*'RES S curve-connect'!AZ$19","v":5100.1981247558851},{"$f":"'Res-Appliance class'!$B39*'RES S curve-connect'!BA$4+'Res-Appliance class'!$C39*'RES S curve-connect'!BA$9+'Res-Appliance class'!$D39*'RES S curve-connect'!BA$14+'Res-Appliance class'!$E39*'RES S curve-connect'!BA$19","v":5694.5426114661914},{"$f":"'Res-Appliance class'!$B39*'RES S curve-connect'!BB$4+'Res-Appliance class'!$C39*'RES S curve-connect'!BB$9+'Res-Appliance class'!$D39*'RES S curve-connect'!BB$14+'Res-Appliance class'!$E39*'RES S curve-connect'!BB$19","v":6384.3176212566486},{"$f":"'Res-Appliance class'!$B39*'RES S curve-connect'!BC$4+'Res-Appliance class'!$C39*'RES S curve-connect'!BC$9+'Res-Appliance class'!$D39*'RES S curve-connect'!BC$14+'Res-Appliance class'!$E39*'RES S curve-connect'!BC$19","v":7206.0614334056427},{"$f":"'Res-Appliance class'!$B39*'RES S curve-connect'!BD$4+'Res-Appliance class'!$C39*'RES S curve-connect'!BD$9+'Res-Appliance class'!$D39*'RES S curve-connect'!BD$14+'Res-Appliance class'!$E39*'RES S curve-connect'!BD$19","v":7986.8745081326269},{"$f":"'Res-Appliance class'!$B39*'RES S curve-connect'!BE$4+'Res-Appliance class'!$C39*'RES S curve-connect'!BE$9+'Res-Appliance class'!$D39*'RES S curve-connect'!BE$14+'Res-Appliance class'!$E39*'RES S curve-connect'!BE$19","v":8696.5554553336515},{"$f":"'Res-Appliance class'!$B39*'RES S curve-connect'!BF$4+'Res-Appliance class'!$C39*'RES S curve-connect'!BF$9+'Res-Appliance class'!$D39*'RES S curve-connect'!BF$14+'Res-Appliance class'!$E39*'RES S curve-connect'!BF$19","v":9423.873422859715},{"$f":"'Res-Appliance class'!$B39*'RES S curve-connect'!BG$4+'Res-Appliance class'!$C39*'RES S curve-connect'!BG$9+'Res-Appliance class'!$D39*'RES S curve-connect'!BG$14+'Res-Appliance class'!$E39*'RES S curve-connect'!BG$19","v":10251.535605832709},{"$f":"'Res-Appliance class'!$B39*'RES S curve-connect'!BH$4+'Res-Appliance class'!$C39*'RES S curve-connect'!BH$9+'Res-Appliance class'!$D39*'RES S curve-connect'!BH$14+'Res-Appliance class'!$E39*'RES S curve-connect'!BH$19","v":11231.346393491196},{"$f":"'Res-Appliance class'!$B39*'RES S curve-connect'!BI$4+'Res-Appliance class'!$C39*'RES S curve-connect'!BI$9+'Res-Appliance class'!$D39*'RES S curve-connect'!BI$14+'Res-Appliance class'!$E39*'RES S curve-connect'!BI$19","v":12653.918585342493},{"$f":"'Res-Appliance class'!$B39*'RES S curve-connect'!BJ$4+'Res-Appliance class'!$C39*'RES S curve-connect'!BJ$9+'Res-Appliance class'!$D39*'RES S curve-connect'!BJ$14+'Res-Appliance class'!$E39*'RES S curve-connect'!BJ$19","v":14723.622634589734},{"$f":"'Res-Appliance class'!$B39*'RES S curve-connect'!BK$4+'Res-Appliance class'!$C39*'RES S curve-connect'!BK$9+'Res-Appliance class'!$D39*'RES S curve-connect'!BK$14+'Res-Appliance class'!$E39*'RES S curve-connect'!BK$19","v":17757.833749395104},{"$f":"'Res-Appliance class'!$B39*'RES S curve-connect'!BL$4+'Res-Appliance class'!$C39*'RES S curve-connect'!BL$9+'Res-Appliance class'!$D39*'RES S curve-connect'!BL$14+'Res-Appliance class'!$E39*'RES S curve-connect'!BL$19","v":-283.04222141140417},{"$f":"'Res-Appliance class'!$B39*'RES S curve-connect'!BM$4+'Res-Appliance class'!$C39*'RES S curve-connect'!BM$9+'Res-Appliance class'!$D39*'RES S curve-connect'!BM$14+'Res-Appliance class'!$E39*'RES S curve-connect'!BM$19","v":-279.08225945404115},{"$f":"'Res-Appliance class'!$B39*'RES S curve-connect'!BN$4+'Res-Appliance class'!$C39*'RES S curve-connect'!BN$9+'Res-Appliance class'!$D39*'RES S curve-connect'!BN$14+'Res-Appliance class'!$E39*'RES S curve-connect'!BN$19","v":-278.46946871166671},{"$f":"'Res-Appliance class'!$B39*'RES S curve-connect'!BO$4+'Res-Appliance class'!$C39*'RES S curve-connect'!BO$9+'Res-Appliance class'!$D39*'RES S curve-connect'!BO$14+'Res-Appliance class'!$E39*'RES S curve-connect'!BO$19","v":-271.18254792368271},{"$f":"'Res-Appliance class'!$B39*'RES S curve-connect'!BP$4+'Res-Appliance class'!$C39*'RES S curve-connect'!BP$9+'Res-Appliance class'!$D39*'RES S curve-connect'!BP$14+'Res-Appliance class'!$E39*'RES S curve-connect'!BP$19","v":-267.24271519543413},{"$f":"'Res-Appliance class'!$B39*'RES S curve-connect'!BQ$4+'Res-Appliance class'!$C39*'RES S curve-connect'!BQ$9+'Res-Appliance class'!$D39*'RES S curve-connect'!BQ$14+'Res-Appliance class'!$E39*'RES S curve-connect'!BQ$19","v":-263.30950949094773},{"$f":"'Res-Appliance class'!$B39*'RES S curve-connect'!BR$4+'Res-Appliance class'!$C39*'RES S curve-connect'!BR$9+'Res-Appliance class'!$D39*'RES S curve-connect'!BR$14+'Res-Appliance class'!$E39*'RES S curve-connect'!BR$19","v":-262.72330973463261},{"$f":"'Res-Appliance class'!$B39*'RES S curve-connect'!BS$4+'Res-Appliance class'!$C39*'RES S curve-connect'!BS$9+'Res-Appliance class'!$D39*'RES S curve-connect'!BS$14+'Res-Appliance class'!$E39*'RES S curve-connect'!BS$19","v":-255.46281570627775},{"$f":"'Res-Appliance class'!$B39*'RES S curve-connect'!BT$4+'Res-Appliance class'!$C39*'RES S curve-connect'!BT$9+'Res-Appliance class'!$D39*'RES S curve-connect'!BT$14+'Res-Appliance class'!$E39*'RES S curve-connect'!BT$19","v":-251.54924654500346},{"$f":"'Res-Appliance class'!$B39*'RES S curve-connect'!BU$4+'Res-Appliance class'!$C39*'RES S curve-connect'!BU$9+'Res-Appliance class'!$D39*'RES S curve-connect'!BU$14+'Res-Appliance class'!$E39*'RES S curve-connect'!BU$19","v":-247.64214224204784},{"$f":"'Res-Appliance class'!$B39*'RES S curve-connect'!BV$4+'Res-Appliance class'!$C39*'RES S curve-connect'!BV$9+'Res-Appliance class'!$D39*'RES S curve-connect'!BV$14+'Res-Appliance class'!$E39*'RES S curve-connect'!BV$19","v":-247.08188274250799},{"$f":"'Res-Appliance class'!$B39*'RES S curve-connect'!BW$4+'Res-Appliance class'!$C39*'RES S curve-connect'!BW$9+'Res-Appliance class'!$D39*'RES S curve-connect'!BW$14+'Res-Appliance class'!$E39*'RES S curve-connect'!BW$19","v":-239.84716884037465},{"$f":"'Res-Appliance class'!$B39*'RES S curve-connect'!BX$4+'Res-Appliance class'!$C39*'RES S curve-connect'!BX$9+'Res-Appliance class'!$D39*'RES S curve-connect'!BX$14+'Res-Appliance class'!$E39*'RES S curve-connect'!BX$19","v":-235.95922068253324},{"$f":"'Res-Appliance class'!$B39*'RES S curve-connect'!BY$4+'Res-Appliance class'!$C39*'RES S curve-connect'!BY$9+'Res-Appliance class'!$D39*'RES S curve-connect'!BY$14+'Res-Appliance class'!$E39*'RES S curve-connect'!BY$19","v":-232.07757926158467},{"$f":"'Res-Appliance class'!$B39*'RES S curve-connect'!BZ$4+'Res-Appliance class'!$C39*'RES S curve-connect'!BZ$9+'Res-Appliance class'!$D39*'RES S curve-connect'!BZ$14+'Res-Appliance class'!$E39*'RES S curve-connect'!BZ$19","v":-231.54262551762807},{"$f":"'Res-Appliance class'!$B39*'RES S curve-connect'!CA$4+'Res-Appliance class'!$C39*'RES S curve-connect'!CA$9+'Res-Appliance class'!$D39*'RES S curve-connect'!CA$14+'Res-Appliance class'!$E39*'RES S curve-connect'!CA$19","v":-224.33306123334037},{"$f":"'Res-Appliance class'!$B39*'RES S curve-connect'!CB$4+'Res-Appliance class'!$C39*'RES S curve-connect'!CB$9+'Res-Appliance class'!$D39*'RES S curve-connect'!CB$14+'Res-Appliance class'!$E39*'RES S curve-connect'!CB$19","v":-220.47010753801175},{"$f":"'Res-Appliance class'!$B39*'RES S curve-connect'!CC$4+'Res-Appliance class'!$C39*'RES S curve-connect'!CC$9+'Res-Appliance class'!$D39*'RES S curve-connect'!CC$14+'Res-Appliance class'!$E39*'RES S curve-connect'!CC$19","v":-216.6133064004114},{"$f":"'Res-Appliance class'!$B39*'RES S curve-connect'!CD$4+'Res-Appliance class'!$C39*'RES S curve-connect'!CD$9+'Res-Appliance class'!$D39*'RES S curve-connect'!CD$14+'Res-Appliance class'!$E39*'RES S curve-connect'!CD$19","v":-272.31824576447053}]
["Monash (C)",null,{"$f":"'Res-Appliance class'!$B40*'RES S curve-connect'!C$4+'Res-Appliance class'!$C40*'RES S curve-connect'!C$9+'Res-Appliance class'!$D40*'RES S curve-connect'!C$14+'Res-Appliance class'!$E40*'RES S curve-connect'!C$19","v":-2971.1636569434145},{"$f":"'Res-Appliance class'!$B40*'RES S curve-connect'!D$4+'Res-Appliance class'!$C40*'RES S curve-connect'!D$9+'Res-Appliance class'!$D40*'RES S curve-connect'!D$14+'Res-Appliance class'!$E40*'RES S curve-connect'!D$19","v":-3485.9316800562842},{"$f":"'Res-Appliance class'!$B40*'RES S curve-connect'!E$4+'Res-Appliance class'!$C40*'RES S curve-connect'!E$9+'Res-Appliance class'!$D40*'RES S curve-connect'!E$14+'Res-Appliance class'!$E40*'RES S curve-connect'!E$19","v":-2772.966608935601},{"$f":"'Res-Appliance class'!$B40*'RES S curve-connect'!F$4+'Res-Appliance class'!$C40*'RES S curve-connect'!F$9+'Res-Appliance class'!$D40*'RES S curve-connect'!F$14+'Res-Appliance class'!$E40*'RES S curve-connect'!F$19","v":-2619.0870317072677},{"$f":"'Res-Appliance class'!$B40*'RES S curve-connect'!G$4+'Res-Appliance class'!$C40*'RES S curve-connect'!G$9+'Res-Appliance class'!$D40*'RES S curve-connect'!G$14+'Res-Appliance class'!$E40*'RES S curve-connect'!G$19","v":-3822.1079409420231},{"$f":"'Res-Appliance class'!$B40*'RES S curve-connect'!H$4+'Res-Appliance class'!$C40*'RES S curve-connect'!H$9+'Res-Appliance class'!$D40*'RES S curve-connect'!H$14+'Res-Appliance class'!$E40*'RES S curve-connect'!H$19","v":-3857.3527806169968},{"$f":"'Res-Appliance class'!$B40*'RES S curve-connect'!I$4+'Res-Appliance class'!$C40*'RES S curve-connect'!I$9+'Res-Appliance class'!$D40*'RES S curve-connect'!I$14+'Res-Appliance class'!$E40*'RES S curve-connect'!I$19","v":-3421.5071105897177},{"$f":"'Res-Appliance class'!$B40*'RES S curve-connect'!J$4+'Res-Appliance class'!$C40*'RES S curve-connect'!J$9+'Res-Appliance class'!$D40*'RES S curve-connect'!J$14+'Res-Appliance class'!$E40*'RES S curve-connect'!J$19","v":-3760.7326977313746},{"$f":"'Res-Appliance class'!$B40*'RES S curve-connect'!K$4+'Res-Appliance class'!$C40*'RES S curve-connect'!K$9+'Res-Appliance class'!$D40*'RES S curve-connect'!K$14+'Res-Appliance class'!$E40*'RES S curve-connect'!K$19","v":-2939.2429853659187},{"$f":"'Res-Appliance class'!$B40*'RES S curve-connect'!L$4+'Res-Appliance class'!$C40*'RES S curve-connect'!L$9+'Res-Appliance class'!$D40*'RES S curve-connect'!L$14+'Res-Appliance class'!$E40*'RES S curve-connect'!L$19","v":-3288.7576683776497},{"$f":"'Res-Appliance class'!$B40*'RES S curve-connect'!M$4+'Res-Appliance class'!$C40*'RES S curve-connect'!M$9+'Res-Appliance class'!$D40*'RES S curve-connect'!M$14+'Res-Appliance class'!$E40*'RES S curve-connect'!M$19","v":-3923.7867951186145},{"$f":"'Res-Appliance class'!$B40*'RES S curve-connect'!N$4+'Res-Appliance class'!$C40*'RES S curve-connect'!N$9+'Res-Appliance class'!$D40*'RES S curve-connect'!N$14+'Res-Appliance class'!$E40*'RES S curve-connect'!N$19","v":-3981.5318399487833},{"$f":"'Res-Appliance class'!$B40*'RES S curve-connect'!O$4+'Res-Appliance class'!$C40*'RES S curve-connect'!O$9+'Res-Appliance class'!$D40*'RES S curve-connect'!O$14+'Res-Appliance class'!$E40*'RES S curve-connect'!O$19","v":-3416.6020109287383},{"$f":"'Res-Appliance class'!$B40*'RES S curve-connect'!P$4+'Res-Appliance class'!$C40*'RES S curve-connect'!P$9+'Res-Appliance class'!$D40*'RES S curve-connect'!P$14+'Res-Appliance class'!$E40*'RES S curve-connect'!P$19","v":-2966.3630636635166},{"$f":"'Res-Appliance class'!$B40*'RES S curve-connect'!Q$4+'Res-Appliance class'!$C40*'RES S curve-connect'!Q$9+'Res-Appliance class'!$D40*'RES S curve-connect'!Q$14+'Res-Appliance class'!$E40*'RES S curve-connect'!Q$19","v":-2287.2353227085241},{"$f":"'Res-Appliance class'!$B40*'RES S curve-connect'!R$4+'Res-Appliance class'!$C40*'RES S curve-connect'!R$9+'Res-Appliance class'!$D40*'RES S curve-connect'!R$14+'Res-Appliance class'!$E40*'RES S curve-connect'!R$19","v":-1901.3149826449219},{"$f":"'Res-Appliance class'!$B40*'RES S curve-connect'!S$4+'Res-Appliance class'!$C40*'RES S curve-connect'!S$9+'Res-Appliance class'!$D40*'RES S curve-connect'!S$14+'Res-Appliance class'!$E40*'RES S curve-connect'!S$19","v":-1288.8514947161316},{"$f":"'Res-Appliance class'!$B40*'RES S curve-connect'!T$4+'Res-Appliance class'!$C40*'RES S curve-connect'!T$9+'Res-Appliance class'!$D40*'RES S curve-connect'!T$14+'Res-Appliance class'!$E40*'RES S curve-connect'!T$19","v":-955.00133384670721},{"$f":"'Res-Appliance class'!$B40*'RES S curve-connect'!U$4+'Res-Appliance class'!$C40*'RES S curve-connect'!U$9+'Res-Appliance class'!$D40*'RES S curve-connect'!U$14+'Res-Appliance class'!$E40*'RES S curve-connect'!U$19","v":-574.05482438929221},{"$f":"'Res-Appliance class'!$B40*'RES S curve-connect'!V$4+'Res-Appliance class'!$C40*'RES S curve-connect'!V$9+'Res-Appliance class'!$D40*'RES S curve-connect'!V$14+'Res-Appliance class'!$E40*'RES S curve-connect'!V$19","v":-313.31736185214118},{"$f":"'Res-Appliance class'!$B40*'RES S curve-connect'!W$4+'Res-Appliance class'!$C40*'RES S curve-connect'!W$9+'Res-Appliance class'!$D40*'RES S curve-connect'!W$14+'Res-Appliance class'!$E40*'RES S curve-connect'!W$19","v":-109.69987146512216},{"$f":"'Res-Appliance class'!$B40*'RES S curve-connect'!X$4+'Res-Appliance class'!$C40*'RES S curve-connect'!X$9+'Res-Appliance class'!$D40*'RES S curve-connect'!X$14+'Res-Appliance class'!$E40*'RES S curve-connect'!X$19","v":349.16699753095429},{"$f":"'Res-Appliance class'!$B40*'RES S curve-connect'!Y$4+'Res-Appliance class'!$C40*'RES S curve-connect'!Y$9+'Res-Appliance class'!$D40*'RES S curve-connect'!Y$14+'Res-Appliance class'!$E40*'RES S curve-connect'!Y$19","v":813.41334971891911},{"$f":"'Res-Appliance class'!$B40*'RES S curve-connect'!Z$4+'Res-Appliance class'!$C40*'RES S curve-connect'!Z$9+'Res-Appliance class'!$D40*'RES S curve-connect'!Z$14+'Res-Appliance class'!$E40*'RES S curve-connect'!Z$19","v":1128.2952333925039},{"$f":"'Res-Appliance class'!$B40*'RES S curve-connect'!AA$4+'Res-Appliance class'!$C40*'RES S curve-connect'!AA$9+'Res-Appliance class'!$D40*'RES S curve-connect'!AA$14+'Res-Appliance class'!$E40*'RES S curve-connect'!AA$19","v":1443.2054022794073},{"$f":"'Res-Appliance class'!$B40*'RES S curve-connect'!AB$4+'Res-Appliance class'!$C40*'RES S curve-connect'!AB$9+'Res-Appliance class'!$D40*'RES S curve-connect'!AB$14+'Res-Appliance class'!$E40*'RES S curve-connect'!AB$19","v":1694.952349695357},{"$f":"'Res-Appliance class'!$B40*'RES S curve-connect'!AC$4+'Res-Appliance class'!$C40*'RES S curve-connect'!AC$9+'Res-Appliance class'!$D40*'RES S curve-connect'!AC$14+'Res-Appliance class'!$E40*'RES S curve-connect'!AC$19","v":1937.558204241685},{"$f":"'Res-Appliance class'!$B40*'RES S curve-connect'!AD$4+'Res-Appliance class'!$C40*'RES S curve-connect'!AD$9+'Res-Appliance class'!$D40*'RES S curve-connect'!AD$14+'Res-Appliance class'!$E40*'RES S curve-connect'!AD$19","v":2160.2373557280616},{"$f":"'Res-Appliance class'!$B40*'RES S curve-connect'!AE$4+'Res-Appliance class'!$C40*'RES S curve-connect'!AE$9+'Res-Appliance class'!$D40*'RES S curve-connect'!AE$14+'Res-Appliance class'!$E40*'RES S curve-connect'!AE$19","v":2394.2047335700922},{"$f":"'Res-Appliance class'!$B40*'RES S curve-connect'!AF$4+'Res-Appliance class'!$C40*'RES S curve-connect'!AF$9+'Res-Appliance class'!$D40*'RES S curve-connect'!AF$14+'Res-Appliance class'!$E40*'RES S curve-connect'!AF$19","v":2696.3899792215393},{"$f":"'Res-Appliance class'!$B40*'RES S curve-connect'!AG$4+'Res-Appliance class'!$C40*'RES S curve-connect'!AG$9+'Res-Appliance class'!$D40*'RES S curve-connect'!AG$14+'Res-Appliance class'!$E40*'RES S curve-connect'!AG$19","v":2903.2684026015413},{"$f":"'Res-Appliance class'!$B40*'RES S curve-connect'!AH$4+'Res-Appliance class'!$C40*'RES S curve-connect'!AH$9+'Res-Appliance class'!$D40*'RES S curve-connect'!AH$14+'Res-Appliance class'!$E40*'RES S curve-connect'!AH$19","v":3194.3783007273623},{"$f":"'Res-Appliance class'!$B40*'RES S curve-connect'!AI$4+'Res-Appliance class'!$C40*'RES S curve-connect'!AI$9+'Res-Appliance class'!$D40*'RES S curve-connect'!AI$14+'Res-Appliance class'!$E40*'RES S curve-connect'!AI$19","v":3456.0593041206102},{"$f":"'Res-Appliance class'!$B40*'RES S curve-connect'!AJ$4+'Res-Appliance class'!$C40*'RES S curve-connect'!AJ$9+'Res-Appliance class'!$D40*'RES S curve-connect'!AJ$14+'Res-Appliance class'!$E40*'RES S curve-connect'!AJ$19","v":3692.2227773492386},{"$f":"'Res-Appliance class'!$B40*'RES S curve-connect'!AK$4+'Res-Appliance class'!$C40*'RES S curve-connect'!AK$9+'Res-Appliance class'!$D40*'RES S curve-connect'!AK$14+'Res-Appliance class'!$E40*'RES S curve-connect'!AK$19","v":3942.9436200473715},{"$f":"'Res-Appliance class'!$B40*'RES S curve-connect'!AL$4+'Res-Appliance class'!$C40*'RES S curve-connect'!AL$9+'Res-Appliance class'!$D40*'RES S curve-connect'!AL$14+'Res-Appliance class'!$E40*'RES S curve-connect'!AL$19","v":3075.0548052596496},{"$f":"'Res-Appliance class'!$B40*'RES S curve-connect'!AM$4+'Res-Appliance class'!$C40*'RES S curve-connect'!AM$9+'Res-Appliance class'!$D40*'RES S curve-connect'!AM$14+'Res-Appliance class'!$E40*'RES S curve-connect'!AM$19","v":2961.3921236356146},{"$f":"'Res-Appliance class'!$B40*'RES S curve-connect'!AN$4+'Res-Appliance class'!$C40*'RES S curve-connect'!AN$9+'Res-Appliance class'!$D40*'RES S curve-connect'!AN$14+'Res-Appliance class'!$E40*'RES S curve-connect'!AN$19","v":3198.6775492705278},{"$f":"'Res-Appliance class'!$B40*'RES S curve-connect'!AO$4+'Res-Appliance class'!$C40*'RES S curve-connect'!AO$9+'Res-Appliance class'!$D40*'RES S curve-connect'!AO$14+'Res-Appliance class'!$E40*'RES S curve-connect'!AO$19","v":3488.9703179430535},{"$f":"'Res-Appliance class'!$B40*'RES S curve-connect'!AP$4+'Res-Appliance class'!$C40*'RES S curve-connect'!AP$9+'Res-Appliance class'!$D40*'RES S curve-connect'!AP$14+'Res-Appliance class'!$E40*'RES S curve-connect'!AP$19","v":3757.200401024149},{"$f":"'Res-Appliance class'!$B40*'RES S curve-connect'!AQ$4+'Res-Appliance class'!$C40*'RES S curve-connect'!AQ$9+'Res-Appliance class'!$D40*'RES S curve-connect'!AQ$14+'Res-Appliance class'!$E40*'RES S curve-connect'!AQ$19","v":4045.9334040972435},{"$f":"'Res-Appliance class'!$B40*'RES S curve-connect'!AR$4+'Res-Appliance class'!$C40*'RES S curve-connect'!AR$9+'Res-Appliance class'!$D40*'RES S curve-connect'!AR$14+'Res-Appliance class'!$E40*'RES S curve-connect'!AR$19","v":4362.9951665097833},{"$f":"'Res-Appliance class'!$B40*'RES S curve-connect'!AS$4+'Res-Appliance class'!$C40*'RES S curve-connect'!AS$9+'Res-Appliance class'!$D40*'RES S curve-connect'!AS$14+'Res-Appliance class'!$E40*'RES S curve-connect'!AS$19","v":4718.7935154452207},{"$f":"'Res-Appliance class'!$B40*'RES S curve-connect'!AT$4+'Res-Appliance class'!$C40*'RES S curve-connect'!AT$9+'Res-Appliance class'!$D40*'RES S curve-connect'!AT$14+'Res-Appliance class'!$E40*'RES S curve-connect'!AT$19","v":5116.8234863545986},{"$f":"'Res-Appliance class'!$B40*'RES S curve-connect'!AU$4+'Res-Appliance class'!$C40*'RES S curve-connect'!AU$9+'Res-Appliance class'!$D40*'RES S curve-connect'!AU$14+'Res-Appliance class'!$E40*'RES S curve-connect'!AU$19","v":5577.2531318987385},{"$f":"'Res-Appliance class'!$B40*'RES S curve-connect'!AV$4+'Res-Appliance class'!$C40*'RES S curve-connect'!AV$9+'Res-Appliance class'!$D40*'RES S curve-connect'!AV$14+'Res-Appliance class'!$E40*'RES S curve-connect'!AV$19","v":6102.5118681031918},{"$f":"'Res-Appliance class'!$B40*'RES S curve-connect'!AW$4+'Res-Appliance class'!$C40*'RES S curve-connect'!AW$9+'Res-Appliance class'!$D40*'RES S curve-connect'!AW$14+'Res-Appliance class'!$E40*'RES S curve-connect'!AW$19","v":6706.2816689100137},{"$f":"'Res-Appliance class'!$B40*'RES S curve-connect'!AX$4+'Res-Appliance class'!$C40*'RES S curve-connect'!AX$9+'Res-Appliance class'!$D40*'RES S curve-connect'!AX$14+'Res-Appliance class'!$E40*'RES S curve-connect'!AX$19","v":7394.477223414945},{"$f":"'Res-Appliance class'!$B40*'RES S curve-connect'!AY$4+'Res-Appliance class'!$C40*'RES S curve-connect'!AY$9+'Res-Appliance class'!$D40*'RES S curve-connect'!AY$14+'Res-Appliance class'!$E40*'RES S curve-connect'!AY$19","v":8188.5315137359548},{"$f":"'Res-Appliance class'!$B40*'RES S curve-connect'!AZ$4+'Res-Appliance class'!$C40*'RES S curve-connect'!AZ$9+'Res-Appliance class'!$D40*'RES S curve-connect'!AZ$14+'Res-Appliance class'!$E40*'RES S curve-connect'!AZ$19","v":9096.3796676403108},{"$f":"'Res-Appliance class'!$B40*'RES S curve-connect'!BA$4+'Res-Appliance class'!$C40*'RES S curve-connect'!BA$9+'Res-Appliance class'!$D40*'RES S curve-connect'!BA$14+'Res-Appliance class'!$E40*'RES S curve-connect'!BA$19","v":10147.838565717915},{"$f":"'Res-Appliance class'!$B40*'RES S curve-connect'!BB$4+'Res-Appliance class'!$C40*'RES S curve-connect'!BB$9+'Res-Appliance class'!$D40*'RES S curve-connect'!BB$14+'Res-Appliance class'!$E40*'RES S curve-connect'!BB$19","v":11376.432230114367},{"$f":"'Res-Appliance class'!$B40*'RES S curve-connect'!BC$4+'Res-Appliance class'!$C40*'RES S curve-connect'!BC$9+'Res-Appliance class'!$D40*'RES S curve-connect'!BC$14+'Res-Appliance class'!$E40*'RES S curve-connect'!BC$19","v":12841.57317084764},{"$f":"'Res-Appliance class'!$B40*'RES S curve-connect'!BD$4+'Res-Appliance class'!$C40*'RES S curve-connect'!BD$9+'Res-Appliance class'!$D40*'RES S curve-connect'!BD$14+'Res-Appliance class'!$E40*'RES S curve-connect'!BD$19","v":14255.404064629351},{"$f":"'Res-Appliance class'!$B40*'RES S curve-connect'!BE$4+'Res-Appliance class'!$C40*'RES S curve-connect'!BE$9+'Res-Appliance class'!$D40*'RES S curve-connect'!BE$14+'Res-Appliance class'!$E40*'RES S curve-connect'!BE$19","v":15547.797126458461},{"$f":"'Res-Appliance class'!$B40*'RES S curve-connect'!BF$4+'Res-Appliance class'!$C40*'RES S curve-connect'!BF$9+'Res-Appliance class'!$D40*'RES S curve-connect'!BF$14+'Res-Appliance class'!$E40*'RES S curve-connect'!BF$19","v":16870.115699255352},{"$f":"'Res-Appliance class'!$B40*'RES S curve-connect'!BG$4+'Res-Appliance class'!$C40*'RES S curve-connect'!BG$9+'Res-Appliance class'!$D40*'RES S curve-connect'!BG$14+'Res-Appliance class'!$E40*'RES S curve-connect'!BG$19","v":18366.522886656883},{"$f":"'Res-Appliance class'!$B40*'RES S curve-connect'!BH$4+'Res-Appliance class'!$C40*'RES S curve-connect'!BH$9+'Res-Appliance class'!$D40*'RES S curve-connect'!BH$14+'Res-Appliance class'!$E40*'RES S curve-connect'!BH$19","v":20142.937270204704},{"$f":"'Res-Appliance class'!$B40*'RES S curve-connect'!BI$4+'Res-Appliance class'!$C40*'RES S curve-connect'!BI$9+'Res-Appliance class'!$D40*'RES S curve-connect'!BI$14+'Res-Appliance class'!$E40*'RES S curve-connect'!BI$19","v":22716.858529085846},{"$f":"'Res-Appliance class'!$B40*'RES S curve-connect'!BJ$4+'Res-Appliance class'!$C40*'RES S curve-connect'!BJ$9+'Res-Appliance class'!$D40*'RES S curve-connect'!BJ$14+'Res-Appliance class'!$E40*'RES S curve-connect'!BJ$19","v":26487.00092312471},{"$f":"'Res-Appliance class'!$B40*'RES S curve-connect'!BK$4+'Res-Appliance class'!$C40*'RES S curve-connect'!BK$9+'Res-Appliance class'!$D40*'RES S curve-connect'!BK$14+'Res-Appliance class'!$E40*'RES S curve-connect'!BK$19","v":32051.699220176306},{"$f":"'Res-Appliance class'!$B40*'RES S curve-connect'!BL$4+'Res-Appliance class'!$C40*'RES S curve-connect'!BL$9+'Res-Appliance class'!$D40*'RES S curve-connect'!BL$14+'Res-Appliance class'!$E40*'RES S curve-connect'!BL$19","v":-100.03834981407545},{"$f":"'Res-Appliance class'!$B40*'RES S curve-connect'!BM$4+'Res-Appliance class'!$C40*'RES S curve-connect'!BM$9+'Res-Appliance class'!$D40*'RES S curve-connect'!BM$14+'Res-Appliance class'!$E40*'RES S curve-connect'!BM$19","v":-92.988028730860094},{"$f":"'Res-Appliance class'!$B40*'RES S curve-connect'!BN$4+'Res-Appliance class'!$C40*'RES S curve-connect'!BN$9+'Res-Appliance class'!$D40*'RES S curve-connect'!BN$14+'Res-Appliance class'!$E40*'RES S curve-connect'!BN$19","v":-89.287963438266956},{"$f":"'Res-Appliance class'!$B40*'RES S curve-connect'!BO$4+'Res-Appliance class'!$C40*'RES S curve-connect'!BO$9+'Res-Appliance class'!$D40*'RES S curve-connect'!BO$14+'Res-Appliance class'!$E40*'RES S curve-connect'!BO$19","v":-78.916835096589239},{"$f":"'Res-Appliance class'!$B40*'RES S curve-connect'!BP$4+'Res-Appliance class'!$C40*'RES S curve-connect'!BP$9+'Res-Appliance class'!$D40*'RES S curve-connect'!BP$14+'Res-Appliance class'!$E40*'RES S curve-connect'!BP$19","v":-71.895844338302197},{"$f":"'Res-Appliance class'!$B40*'RES S curve-connect'!BQ$4+'Res-Appliance class'!$C40*'RES S curve-connect'!BQ$9+'Res-Appliance class'!$D40*'RES S curve-connect'!BQ$14+'Res-Appliance class'!$E40*'RES S curve-connect'!BQ$19","v":-64.884512760135522},{"$f":"'Res-Appliance class'!$B40*'RES S curve-connect'!BR$4+'Res-Appliance class'!$C40*'RES S curve-connect'!BR$9+'Res-Appliance class'!$D40*'RES S curve-connect'!BR$14+'Res-Appliance class'!$E40*'RES S curve-connect'!BR$19","v":-61.223202024119018},{"$f":"'Res-Appliance class'!$B40*'RES S curve-connect'!BS$4+'Res-Appliance class'!$C40*'RES S curve-connect'!BS$9+'Res-Appliance class'!$D40*'RES S curve-connect'!BS$14+'Res-Appliance class'!$E40*'RES S curve-connect'!BS$19","v":-50.890594751925164},{"$f":"'Res-Appliance class'!$B40*'RES S curve-connect'!BT$4+'Res-Appliance class'!$C40*'RES S curve-connect'!BT$9+'Res-Appliance class'!$D40*'RES S curve-connect'!BT$14+'Res-Appliance class'!$E40*'RES S curve-connect'!BT$19","v":-43.907893028172055},{"$f":"'Res-Appliance class'!$B40*'RES S curve-connect'!BU$4+'Res-Appliance class'!$C40*'RES S curve-connect'!BU$9+'Res-Appliance class'!$D40*'RES S curve-connect'!BU$14+'Res-Appliance class'!$E40*'RES S curve-connect'!BU$19","v":-36.934619892562694},{"$f":"'Res-Appliance class'!$B40*'RES S curve-connect'!BV$4+'Res-Appliance class'!$C40*'RES S curve-connect'!BV$9+'Res-Appliance class'!$D40*'RES S curve-connect'!BV$14+'Res-Appliance class'!$E40*'RES S curve-connect'!BV$19","v":-33.311138440990021},{"$f":"'Res-Appliance class'!$B40*'RES S curve-connect'!BW$4+'Res-Appliance class'!$C40*'RES S curve-connect'!BW$9+'Res-Appliance class'!$D40*'RES S curve-connect'!BW$14+'Res-Appliance class'!$E40*'RES S curve-connect'!BW$19","v":-23.016132719928521},{"$f":"'Res-Appliance class'!$B40*'RES S curve-connect'!BX$4+'Res-Appliance class'!$C40*'RES S curve-connect'!BX$9+'Res-Appliance class'!$D40*'RES S curve-connect'!BX$14+'Res-Appliance class'!$E40*'RES S curve-connect'!BX$19","v":-16.070806229807431},{"$f":"'Res-Appliance class'!$B40*'RES S curve-connect'!BY$4+'Res-Appliance class'!$C40*'RES S curve-connect'!BY$9+'Res-Appliance class'!$D40*'RES S curve-connect'!BY$14+'Res-Appliance class'!$E40*'RES S curve-connect'!BY$19","v":-9.1346834171987439},{"$f":"'Res-Appliance class'!$B40*'RES S curve-connect'!BZ$4+'Res-Appliance class'!$C40*'RES S curve-connect'!BZ$9+'Res-Appliance class'!$D40*'RES S curve-connect'!BZ$14+'Res-Appliance class'!$E40*'RES S curve-connect'!BZ$19","v":-5.5481287759777729},{"$f":"'Res-Appliance class'!$B40*'RES S curve-connect'!CA$4+'Res-Appliance class'!$C40*'RES S curve-connect'!CA$9+'Res-Appliance class'!$D40*'RES S curve-connect'!CA$14+'Res-Appliance class'!$E40*'RES S curve-connect'!CA$19","v":4.7101722582220305},{"$f":"'Res-Appliance class'!$B40*'RES S curve-connect'!CB$4+'Res-Appliance class'!$C40*'RES S curve-connect'!CB$9+'Res-Appliance class'!$D40*'RES S curve-connect'!CB$14+'Res-Appliance class'!$E40*'RES S curve-connect'!CB$19","v":11.6190148045863},{"$f":"'Res-Appliance class'!$B40*'RES S curve-connect'!CC$4+'Res-Appliance class'!$C40*'RES S curve-connect'!CC$9+'Res-Appliance class'!$D40*'RES S curve-connect'!CC$14+'Res-Appliance class'!$E40*'RES S curve-connect'!CC$19","v":18.51887304487002},{"$f":"'Res-Appliance class'!$B40*'RES S curve-connect'!CD$4+'Res-Appliance class'!$C40*'RES S curve-connect'!CD$9+'Res-Appliance class'!$D40*'RES S curve-connect'!CD$14+'Res-Appliance class'!$E40*'RES S curve-connect'!CD$19","v":-86.693011347466324}]
["Nillumbik (S)",null,{"$f":"'Res-Appliance class'!$B41*'RES S curve-connect'!C$4+'Res-Appliance class'!$C41*'RES S curve-connect'!C$9+'Res-Appliance class'!$D41*'RES S curve-connect'!C$14+'Res-Appliance class'!$E41*'RES S curve-connect'!C$19","v":-2751.6689376801937},{"$f":"'Res-Appliance class'!$B41*'RES S curve-connect'!D$4+'Res-Appliance class'!$C41*'RES S curve-connect'!D$9+'Res-Appliance class'!$D41*'RES S curve-connect'!D$14+'Res-Appliance class'!$E41*'RES S curve-connect'!D$19","v":-3278.6317017953215},{"$f":"'Res-Appliance class'!$B41*'RES S curve-connect'!E$4+'Res-Appliance class'!$C41*'RES S curve-connect'!E$9+'Res-Appliance class'!$D41*'RES S curve-connect'!E$14+'Res-Appliance class'!$E41*'RES S curve-connect'!E$19","v":-2523.4705717859847},{"$f":"'Res-Appliance class'!$B41*'RES S curve-connect'!F$4+'Res-Appliance class'!$C41*'RES S curve-connect'!F$9+'Res-Appliance class'!$D41*'RES S curve-connect'!F$14+'Res-Appliance class'!$E41*'RES S curve-connect'!F$19","v":-2364.5417007051574},{"$f":"'Res-Appliance class'!$B41*'RES S curve-connect'!G$4+'Res-Appliance class'!$C41*'RES S curve-connect'!G$9+'Res-Appliance class'!$D41*'RES S curve-connect'!G$14+'Res-Appliance class'!$E41*'RES S curve-connect'!G$19","v":-3712.044138155265},{"$f":"'Res-Appliance class'!$B41*'RES S curve-connect'!H$4+'Res-Appliance class'!$C41*'RES S curve-connect'!H$9+'Res-Appliance class'!$D41*'RES S curve-connect'!H$14+'Res-Appliance class'!$E41*'RES S curve-connect'!H$19","v":-3743.5987089941696},{"$f":"'Res-Appliance class'!$B41*'RES S curve-connect'!I$4+'Res-Appliance class'!$C41*'RES S curve-connect'!I$9+'Res-Appliance class'!$D41*'RES S curve-connect'!I$14+'Res-Appliance class'!$E41*'RES S curve-connect'!I$19","v":-3284.7101242888466},{"$f":"'Res-Appliance class'!$B41*'RES S curve-connect'!J$4+'Res-Appliance class'!$C41*'RES S curve-connect'!J$9+'Res-Appliance class'!$D41*'RES S curve-connect'!J$14+'Res-Appliance class'!$E41*'RES S curve-connect'!J$19","v":-3570.4527786387562},{"$f":"'Res-Appliance class'!$B41*'RES S curve-connect'!K$4+'Res-Appliance class'!$C41*'RES S curve-connect'!K$9+'Res-Appliance class'!$D41*'RES S curve-connect'!K$14+'Res-Appliance class'!$E41*'RES S curve-connect'!K$19","v":-2711.4302581920956},{"$f":"'Res-Appliance class'!$B41*'RES S curve-connect'!L$4+'Res-Appliance class'!$C41*'RES S curve-connect'!L$9+'Res-Appliance class'!$D41*'RES S curve-connect'!L$14+'Res-Appliance class'!$E41*'RES S curve-connect'!L$19","v":-3072.2941699246617},{"$f":"'Res-Appliance class'!$B41*'RES S curve-connect'!M$4+'Res-Appliance class'!$C41*'RES S curve-connect'!M$9+'Res-Appliance class'!$D41*'RES S curve-connect'!M$14+'Res-Appliance class'!$E41*'RES S curve-connect'!M$19","v":-3754.5292972210564},{"$f":"'Res-Appliance class'!$B41*'RES S curve-connect'!N$4+'Res-Appliance class'!$C41*'RES S curve-connect'!N$9+'Res-Appliance class'!$D41*'RES S curve-connect'!N$14+'Res-Appliance class'!$E41*'RES S curve-connect'!N$19","v":-3818.7064982478946},{"$f":"'Res-Appliance class'!$B41*'RES S curve-connect'!O$4+'Res-Appliance class'!$C41*'RES S curve-connect'!O$9+'Res-Appliance class'!$D41*'RES S curve-connect'!O$14+'Res-Appliance class'!$E41*'RES S curve-connect'!O$19","v":-3228.9283711798171},{"$f":"'Res-Appliance class'!$B41*'RES S curve-connect'!P$4+'Res-Appliance class'!$C41*'RES S curve-connect'!P$9+'Res-Appliance class'!$D41*'RES S curve-connect'!P$14+'Res-Appliance class'!$E41*'RES S curve-connect'!P$19","v":-2756.7270339221209},{"$f":"'Res-Appliance class'!$B41*'RES S curve-connect'!Q$4+'Res-Appliance class'!$C41*'RES S curve-connect'!Q$9+'Res-Appliance class'!$D41*'RES S curve-connect'!Q$14+'Res-Appliance class'!$E41*'RES S curve-connect'!Q$19","v":-2043.2195484518538},{"$f":"'Res-Appliance class'!$B41*'RES S curve-connect'!R$4+'Res-Appliance class'!$C41*'RES S curve-connect'!R$9+'Res-Appliance class'!$D41*'RES S curve-connect'!R$14+'Res-Appliance class'!$E41*'RES S curve-connect'!R$19","v":-1638.5496233299493},{"$f":"'Res-Appliance class'!$B41*'RES S curve-connect'!S$4+'Res-Appliance class'!$C41*'RES S curve-connect'!S$9+'Res-Appliance class'!$D41*'RES S curve-connect'!S$14+'Res-Appliance class'!$E41*'RES S curve-connect'!S$19","v":-995.75728209803833},{"$f":"'Res-Appliance class'!$B41*'RES S curve-connect'!T$4+'Res-Appliance class'!$C41*'RES S curve-connect'!T$9+'Res-Appliance class'!$D41*'RES S curve-connect'!T$14+'Res-Appliance class'!$E41*'RES S curve-connect'!T$19","v":-644.84886091734734},{"$f":"'Res-Appliance class'!$B41*'RES S curve-connect'!U$4+'Res-Appliance class'!$C41*'RES S curve-connect'!U$9+'Res-Appliance class'!$D41*'RES S curve-connect'!U$14+'Res-Appliance class'!$E41*'RES S curve-connect'!U$19","v":-246.11869753562178},{"$f":"'Res-Appliance class'!$B41*'RES S curve-connect'!V$4+'Res-Appliance class'!$C41*'RES S curve-connect'!V$9+'Res-Appliance class'!$D41*'RES S curve-connect'!V$14+'Res-Appliance class'!$E41*'RES S curve-connect'!V$19","v":24.170386652586274},{"$f":"'Res-Appliance class'!$B41*'RES S curve-connect'!W$4+'Res-Appliance class'!$C41*'RES S curve-connect'!W$9+'Res-Appliance class'!$D41*'RES S curve-connect'!W$14+'Res-Appliance class'!$E41*'RES S curve-connect'!W$19","v":235.9417066194593},{"$f":"'Res-Appliance class'!$B41*'RES S curve-connect'!X$4+'Res-Appliance class'!$C41*'RES S curve-connect'!X$9+'Res-Appliance class'!$D41*'RES S curve-connect'!X$14+'Res-Appliance class'!$E41*'RES S curve-connect'!X$19","v":719.03019766490229},{"$f":"'Res-Appliance class'!$B41*'RES S curve-connect'!Y$4+'Res-Appliance class'!$C41*'RES S curve-connect'!Y$9+'Res-Appliance class'!$D41*'RES S curve-connect'!Y$14+'Res-Appliance class'!$E41*'RES S curve-connect'!Y$19","v":1207.469031003219},{"$f":"'Res-Appliance class'!$B41*'RES S curve-connect'!Z$4+'Res-Appliance class'!$C41*'RES S curve-connect'!Z$9+'Res-Appliance class'!$D41*'RES S curve-connect'!Z$14+'Res-Appliance class'!$E41*'RES S curve-connect'!Z$19","v":1537.3626122893843},{"$f":"'Res-Appliance class'!$B41*'RES S curve-connect'!AA$4+'Res-Appliance class'!$C41*'RES S curve-connect'!AA$9+'Res-Appliance class'!$D41*'RES S curve-connect'!AA$14+'Res-Appliance class'!$E41*'RES S curve-connect'!AA$19","v":1866.9040938324783},{"$f":"'Res-Appliance class'!$B41*'RES S curve-connect'!AB$4+'Res-Appliance class'!$C41*'RES S curve-connect'!AB$9+'Res-Appliance class'!$D41*'RES S curve-connect'!AB$14+'Res-Appliance class'!$E41*'RES S curve-connect'!AB$19","v":2130.8654397330874},{"$f":"'Res-Appliance class'!$B41*'RES S curve-connect'!AC$4+'Res-Appliance class'!$C41*'RES S curve-connect'!AC$9+'Res-Appliance class'!$D41*'RES S curve-connect'!AC$14+'Res-Appliance class'!$E41*'RES S curve-connect'!AC$19","v":2384.9639176073097},{"$f":"'Res-Appliance class'!$B41*'RES S curve-connect'!AD$4+'Res-Appliance class'!$C41*'RES S curve-connect'!AD$9+'Res-Appliance class'!$D41*'RES S curve-connect'!AD$14+'Res-Appliance class'!$E41*'RES S curve-connect'!AD$19","v":2618.0241610427565},{"$f":"'Res-Appliance class'!$B41*'RES S curve-connect'!AE$4+'Res-Appliance class'!$C41*'RES S curve-connect'!AE$9+'Res-Appliance class'!$D41*'RES S curve-connect'!AE$14+'Res-Appliance class'!$E41*'RES S curve-connect'!AE$19","v":2862.5433347894214},{"$f":"'Res-Appliance class'!$B41*'RES S curve-connect'!AF$4+'Res-Appliance class'!$C41*'RES S curve-connect'!AF$9+'Res-Appliance class'!$D41*'RES S curve-connect'!AF$14+'Res-Appliance class'!$E41*'RES S curve-connect'!AF$19","v":3179.6620185799702},{"$f":"'Res-Appliance class'!$B41*'RES S curve-connect'!AG$4+'Res-Appliance class'!$C41*'RES S curve-connect'!AG$9+'Res-Appliance class'!$D41*'RES S curve-connect'!AG$14+'Res-Appliance class'!$E41*'RES S curve-connect'!AG$19","v":3397.9304769471673},{"$f":"'Res-Appliance class'!$B41*'RES S curve-connect'!AH$4+'Res-Appliance class'!$C41*'RES S curve-connect'!AH$9+'Res-Appliance class'!$D41*'RES S curve-connect'!AH$14+'Res-Appliance class'!$E41*'RES S curve-connect'!AH$19","v":3706.1206128677459},{"$f":"'Res-Appliance class'!$B41*'RES S curve-connect'!AI$4+'Res-Appliance class'!$C41*'RES S curve-connect'!AI$9+'Res-Appliance class'!$D41*'RES S curve-connect'!AI$14+'Res-Appliance class'!$E41*'RES S curve-connect'!AI$19","v":3982.2423134053129},{"$f":"'Res-Appliance class'!$B41*'RES S curve-connect'!AJ$4+'Res-Appliance class'!$C41*'RES S curve-connect'!AJ$9+'Res-Appliance class'!$D41*'RES S curve-connect'!AJ$14+'Res-Appliance class'!$E41*'RES S curve-connect'!AJ$19","v":4231.6104607937959},{"$f":"'Res-Appliance class'!$B41*'RES S curve-connect'!AK$4+'Res-Appliance class'!$C41*'RES S curve-connect'!AK$9+'Res-Appliance class'!$D41*'RES S curve-connect'!AK$14+'Res-Appliance class'!$E41*'RES S curve-connect'!AK$19","v":4496.3290045751528},{"$f":"'Res-Appliance class'!$B41*'RES S curve-connect'!AL$4+'Res-Appliance class'!$C41*'RES S curve-connect'!AL$9+'Res-Appliance class'!$D41*'RES S curve-connect'!AL$14+'Res-Appliance class'!$E41*'RES S curve-connect'!AL$19","v":3581.6878698754845},{"$f":"'Res-Appliance class'!$B41*'RES S curve-connect'!AM$4+'Res-Appliance class'!$C41*'RES S curve-connect'!AM$9+'Res-Appliance class'!$D41*'RES S curve-connect'!AM$14+'Res-Appliance class'!$E41*'RES S curve-connect'!AM$19","v":3460.4126490908884},{"$f":"'Res-Appliance class'!$B41*'RES S curve-connect'!AN$4+'Res-Appliance class'!$C41*'RES S curve-connect'!AN$9+'Res-Appliance class'!$D41*'RES S curve-connect'!AN$14+'Res-Appliance class'!$E41*'RES S curve-connect'!AN$19","v":3710.2449227118273},{"$f":"'Res-Appliance class'!$B41*'RES S curve-connect'!AO$4+'Res-Appliance class'!$C41*'RES S curve-connect'!AO$9+'Res-Appliance class'!$D41*'RES S curve-connect'!AO$14+'Res-Appliance class'!$E41*'RES S curve-connect'!AO$19","v":4016.580117619591},{"$f":"'Res-Appliance class'!$B41*'RES S curve-connect'!AP$4+'Res-Appliance class'!$C41*'RES S curve-connect'!AP$9+'Res-Appliance class'!$D41*'RES S curve-connect'!AP$14+'Res-Appliance class'!$E41*'RES S curve-connect'!AP$19","v":4300.0119495145391},{"$f":"'Res-Appliance class'!$B41*'RES S curve-connect'!AQ$4+'Res-Appliance class'!$C41*'RES S curve-connect'!AQ$9+'Res-Appliance class'!$D41*'RES S curve-connect'!AQ$14+'Res-Appliance class'!$E41*'RES S curve-connect'!AQ$19","v":4604.7261521230248},{"$f":"'Res-Appliance class'!$B41*'RES S curve-connect'!AR$4+'Res-Appliance class'!$C41*'RES S curve-connect'!AR$9+'Res-Appliance class'!$D41*'RES S curve-connect'!AR$14+'Res-Appliance class'!$E41*'RES S curve-connect'!AR$19","v":4939.5833407458204},{"$f":"'Res-Appliance class'!$B41*'RES S curve-connect'!AS$4+'Res-Appliance class'!$C41*'RES S curve-connect'!AS$9+'Res-Appliance class'!$D41*'RES S curve-connect'!AS$14+'Res-Appliance class'!$E41*'RES S curve-connect'!AS$19","v":5315.4301065453892},{"$f":"'Res-Appliance class'!$B41*'RES S curve-connect'!AT$4+'Res-Appliance class'!$C41*'RES S curve-connect'!AT$9+'Res-Appliance class'!$D41*'RES S curve-connect'!AT$14+'Res-Appliance class'!$E41*'RES S curve-connect'!AT$19","v":5736.1726032708448},{"$f":"'Res-Appliance class'!$B41*'RES S curve-connect'!AU$4+'Res-Appliance class'!$C41*'RES S curve-connect'!AU$9+'Res-Appliance class'!$D41*'RES S curve-connect'!AU$14+'Res-Appliance class'!$E41*'RES S curve-connect'!AU$19","v":6222.5780817884979},{"$f":"'Res-Appliance class'!$B41*'RES S curve-connect'!AV$4+'Res-Appliance class'!$C41*'RES S curve-connect'!AV$9+'Res-Appliance class'!$D41*'RES S curve-connect'!AV$14+'Res-Appliance class'!$E41*'RES S curve-connect'!AV$19","v":6777.8211070978159},{"$f":"'Res-Appliance class'!$B41*'RES S curve-connect'!AW$4+'Res-Appliance class'!$C41*'RES S curve-connect'!AW$9+'Res-Appliance class'!$D41*'RES S curve-connect'!AW$14+'Res-Appliance class'!$E41*'RES S curve-connect'!AW$19","v":7416.2350634782588},{"$f":"'Res-Appliance class'!$B41*'RES S curve-connect'!AX$4+'Res-Appliance class'!$C41*'RES S curve-connect'!AX$9+'Res-Appliance class'!$D41*'RES S curve-connect'!AX$14+'Res-Appliance class'!$E41*'RES S curve-connect'!AX$19","v":8144.3402409866121},{"$f":"'Res-Appliance class'!$B41*'RES S curve-connect'!AY$4+'Res-Appliance class'!$C41*'RES S curve-connect'!AY$9+'Res-Appliance class'!$D41*'RES S curve-connect'!AY$14+'Res-Appliance class'!$E41*'RES S curve-connect'!AY$19","v":8984.3061954833083},{"$f":"'Res-Appliance class'!$B41*'RES S curve-connect'!AZ$4+'Res-Appliance class'!$C41*'RES S curve-connect'!AZ$9+'Res-Appliance class'!$D41*'RES S curve-connect'!AZ$14+'Res-Appliance class'!$E41*'RES S curve-connect'!AZ$19","v":9945.1938594472576},{"$f":"'Res-Appliance class'!$B41*'RES S curve-connect'!BA$4+'Res-Appliance class'!$C41*'RES S curve-connect'!BA$9+'Res-Appliance class'!$D41*'RES S curve-connect'!BA$14+'Res-Appliance class'!$E41*'RES S curve-connect'!BA$19","v":11058.466662496065},{"$f":"'Res-Appliance class'!$B41*'RES S curve-connect'!BB$4+'Res-Appliance class'!$C41*'RES S curve-connect'!BB$9+'Res-Appliance class'!$D41*'RES S curve-connect'!BB$14+'Res-Appliance class'!$E41*'RES S curve-connect'!BB$19","v":12359.950821446613},{"$f":"'Res-Appliance class'!$B41*'RES S curve-connect'!BC$4+'Res-Appliance class'!$C41*'RES S curve-connect'!BC$9+'Res-Appliance class'!$D41*'RES S curve-connect'!BC$14+'Res-Appliance class'!$E41*'RES S curve-connect'!BC$19","v":13912.159591359739},{"$f":"'Res-Appliance class'!$B41*'RES S curve-connect'!BD$4+'Res-Appliance class'!$C41*'RES S curve-connect'!BD$9+'Res-Appliance class'!$D41*'RES S curve-connect'!BD$14+'Res-Appliance class'!$E41*'RES S curve-connect'!BD$19","v":15411.652360830345},{"$f":"'Res-Appliance class'!$B41*'RES S curve-connect'!BE$4+'Res-Appliance class'!$C41*'RES S curve-connect'!BE$9+'Res-Appliance class'!$D41*'RES S curve-connect'!BE$14+'Res-Appliance class'!$E41*'RES S curve-connect'!BE$19","v":16782.889053442519},{"$f":"'Res-Appliance class'!$B41*'RES S curve-connect'!BF$4+'Res-Appliance class'!$C41*'RES S curve-connect'!BF$9+'Res-Appliance class'!$D41*'RES S curve-connect'!BF$14+'Res-Appliance class'!$E41*'RES S curve-connect'!BF$19","v":18185.718058875562},{"$f":"'Res-Appliance class'!$B41*'RES S curve-connect'!BG$4+'Res-Appliance class'!$C41*'RES S curve-connect'!BG$9+'Res-Appliance class'!$D41*'RES S curve-connect'!BG$14+'Res-Appliance class'!$E41*'RES S curve-connect'!BG$19","v":19772.633225363817},{"$f":"'Res-Appliance class'!$B41*'RES S curve-connect'!BH$4+'Res-Appliance class'!$C41*'RES S curve-connect'!BH$9+'Res-Appliance class'!$D41*'RES S curve-connect'!BH$14+'Res-Appliance class'!$E41*'RES S curve-connect'!BH$19","v":21656.888661322802},{"$f":"'Res-Appliance class'!$B41*'RES S curve-connect'!BI$4+'Res-Appliance class'!$C41*'RES S curve-connect'!BI$9+'Res-Appliance class'!$D41*'RES S curve-connect'!BI$14+'Res-Appliance class'!$E41*'RES S curve-connect'!BI$19","v":24386.740043386795},{"$f":"'Res-Appliance class'!$B41*'RES S curve-connect'!BJ$4+'Res-Appliance class'!$C41*'RES S curve-connect'!BJ$9+'Res-Appliance class'!$D41*'RES S curve-connect'!BJ$14+'Res-Appliance class'!$E41*'RES S curve-connect'!BJ$19","v":28387.246201954124},{"$f":"'Res-Appliance class'!$B41*'RES S curve-connect'!BK$4+'Res-Appliance class'!$C41*'RES S curve-connect'!BK$9+'Res-Appliance class'!$D41*'RES S curve-connect'!BK$14+'Res-Appliance class'!$E41*'RES S curve-connect'!BK$19","v":34294.827808707545},{"$f":"'Res-Appliance class'!$B41*'RES S curve-connect'!BL$4+'Res-Appliance class'!$C41*'RES S curve-connect'!BL$9+'Res-Appliance class'!$D41*'RES S curve-connect'!BL$14+'Res-Appliance class'!$E41*'RES S curve-connect'!BL$19","v":230.130591463331},{"$f":"'Res-Appliance class'!$B41*'RES S curve-connect'!BM$4+'Res-Appliance class'!$C41*'RES S curve-connect'!BM$9+'Res-Appliance class'!$D41*'RES S curve-connect'!BM$14+'Res-Appliance class'!$E41*'RES S curve-connect'!BM$19","v":237.46095926764676},{"$f":"'Res-Appliance class'!$B41*'RES S curve-connect'!BN$4+'Res-Appliance class'!$C41*'RES S curve-connect'!BN$9+'Res-Appliance class'!$D41*'RES S curve-connect'!BN$14+'Res-Appliance class'!$E41*'RES S curve-connect'!BN$19","v":241.44161691461679},{"$f":"'Res-Appliance class'!$B41*'RES S curve-connect'!BO$4+'Res-Appliance class'!$C41*'RES S curve-connect'!BO$9+'Res-Appliance class'!$D41*'RES S curve-connect'!BO$14+'Res-Appliance class'!$E41*'RES S curve-connect'!BO$19","v":252.09387924133054},{"$f":"'Res-Appliance class'!$B41*'RES S curve-connect'!BP$4+'Res-Appliance class'!$C41*'RES S curve-connect'!BP$9+'Res-Appliance class'!$D41*'RES S curve-connect'!BP$14+'Res-Appliance class'!$E41*'RES S curve-connect'!BP$19","v":259.39654163979264},{"$f":"'Res-Appliance class'!$B41*'RES S curve-connect'!BQ$4+'Res-Appliance class'!$C41*'RES S curve-connect'!BQ$9+'Res-Appliance class'!$D41*'RES S curve-connect'!BQ$14+'Res-Appliance class'!$E41*'RES S curve-connect'!BQ$19","v":266.6900785646726},{"$f":"'Res-Appliance class'!$B41*'RES S curve-connect'!BR$4+'Res-Appliance class'!$C41*'RES S curve-connect'!BR$9+'Res-Appliance class'!$D41*'RES S curve-connect'!BR$14+'Res-Appliance class'!$E41*'RES S curve-connect'!BR$19","v":270.63412443208347},{"$f":"'Res-Appliance class'!$B41*'RES S curve-connect'!BS$4+'Res-Appliance class'!$C41*'RES S curve-connect'!BS$9+'Res-Appliance class'!$D41*'RES S curve-connect'!BS$14+'Res-Appliance class'!$E41*'RES S curve-connect'!BS$19","v":281.24999272506295},{"$f":"'Res-Appliance class'!$B41*'RES S curve-connect'!BT$4+'Res-Appliance class'!$C41*'RES S curve-connect'!BT$9+'Res-Appliance class'!$D41*'RES S curve-connect'!BT$14+'Res-Appliance class'!$E41*'RES S curve-connect'!BT$19","v":288.51647749009646},{"$f":"'Res-Appliance class'!$B41*'RES S curve-connect'!BU$4+'Res-Appliance class'!$C41*'RES S curve-connect'!BU$9+'Res-Appliance class'!$D41*'RES S curve-connect'!BU$14+'Res-Appliance class'!$E41*'RES S curve-connect'!BU$19","v":295.77405184480517},{"$f":"'Res-Appliance class'!$B41*'RES S curve-connect'!BV$4+'Res-Appliance class'!$C41*'RES S curve-connect'!BV$9+'Res-Appliance class'!$D41*'RES S curve-connect'!BV$14+'Res-Appliance class'!$E41*'RES S curve-connect'!BV$19","v":299.68234887666824},{"$f":"'Res-Appliance class'!$B41*'RES S curve-connect'!BW$4+'Res-Appliance class'!$C41*'RES S curve-connect'!BW$9+'Res-Appliance class'!$D41*'RES S curve-connect'!BW$14+'Res-Appliance class'!$E41*'RES S curve-connect'!BW$19","v":310.2626807484603},{"$f":"'Res-Appliance class'!$B41*'RES S curve-connect'!BX$4+'Res-Appliance class'!$C41*'RES S curve-connect'!BX$9+'Res-Appliance class'!$D41*'RES S curve-connect'!BX$14+'Res-Appliance class'!$E41*'RES S curve-connect'!BX$19","v":317.49384019470904},{"$f":"'Res-Appliance class'!$B41*'RES S curve-connect'!BY$4+'Res-Appliance class'!$C41*'RES S curve-connect'!BY$9+'Res-Appliance class'!$D41*'RES S curve-connect'!BY$14+'Res-Appliance class'!$E41*'RES S curve-connect'!BY$19","v":324.71629902933796},{"$f":"'Res-Appliance class'!$B41*'RES S curve-connect'!BZ$4+'Res-Appliance class'!$C41*'RES S curve-connect'!BZ$9+'Res-Appliance class'!$D41*'RES S curve-connect'!BZ$14+'Res-Appliance class'!$E41*'RES S curve-connect'!BZ$19","v":328.58968904433812},{"$f":"'Res-Appliance class'!$B41*'RES S curve-connect'!CA$4+'Res-Appliance class'!$C41*'RES S curve-connect'!CA$9+'Res-Appliance class'!$D41*'RES S curve-connect'!CA$14+'Res-Appliance class'!$E41*'RES S curve-connect'!CA$19","v":339.13532111514758},{"$f":"'Res-Appliance class'!$B41*'RES S curve-connect'!CB$4+'Res-Appliance class'!$C41*'RES S curve-connect'!CB$9+'Res-Appliance class'!$D41*'RES S curve-connect'!CB$14+'Res-Appliance class'!$E41*'RES S curve-connect'!CB$19","v":346.33198669706206},{"$f":"'Res-Appliance class'!$B41*'RES S curve-connect'!CC$4+'Res-Appliance class'!$C41*'RES S curve-connect'!CC$9+'Res-Appliance class'!$D41*'RES S curve-connect'!CC$14+'Res-Appliance class'!$E41*'RES S curve-connect'!CC$19","v":353.5201563328211},{"$f":"'Res-Appliance class'!$B41*'RES S curve-connect'!CD$4+'Res-Appliance class'!$C41*'RES S curve-connect'!CD$9+'Res-Appliance class'!$D41*'RES S curve-connect'!CD$14+'Res-Appliance class'!$E41*'RES S curve-connect'!CD$19","v":241.47395244312719}]
["Port Phillip (C)",null,{"$f":"'Res-Appliance class'!$B42*'RES S curve-connect'!C$4+'Res-Appliance class'!$C42*'RES S curve-connect'!C$9+'Res-Appliance class'!$D42*'RES S curve-connect'!C$14+'Res-Appliance class'!$E42*'RES S curve-connect'!C$19","v":-2078.0665546433224},{"$f":"'Res-Appliance class'!$B42*'RES S curve-connect'!D$4+'Res-Appliance class'!$C42*'RES S curve-connect'!D$9+'Res-Appliance class'!$D42*'RES S curve-connect'!D$14+'Res-Appliance class'!$E42*'RES S curve-connect'!D$19","v":-2418.1190122375219},{"$f":"'Res-Appliance class'!$B42*'RES S curve-connect'!E$4+'Res-Appliance class'!$C42*'RES S curve-connect'!E$9+'Res-Appliance class'!$D42*'RES S curve-connect'!E$14+'Res-Appliance class'!$E42*'RES S curve-connect'!E$19","v":-2027.4179253930247},{"$f":"'Res-Appliance class'!$B42*'RES S curve-connect'!F$4+'Res-Appliance class'!$C42*'RES S curve-connect'!F$9+'Res-Appliance class'!$D42*'RES S curve-connect'!F$14+'Res-Appliance class'!$E42*'RES S curve-connect'!F$19","v":-1936.257906644508},{"$f":"'Res-Appliance class'!$B42*'RES S curve-connect'!G$4+'Res-Appliance class'!$C42*'RES S curve-connect'!G$9+'Res-Appliance class'!$D42*'RES S curve-connect'!G$14+'Res-Appliance class'!$E42*'RES S curve-connect'!G$19","v":-2552.217886328518},{"$f":"'Res-Appliance class'!$B42*'RES S curve-connect'!H$4+'Res-Appliance class'!$C42*'RES S curve-connect'!H$9+'Res-Appliance class'!$D42*'RES S curve-connect'!H$14+'Res-Appliance class'!$E42*'RES S curve-connect'!H$19","v":-2586.1227345758753},{"$f":"'Res-Appliance class'!$B42*'RES S curve-connect'!I$4+'Res-Appliance class'!$C42*'RES S curve-connect'!I$9+'Res-Appliance class'!$D42*'RES S curve-connect'!I$14+'Res-Appliance class'!$E42*'RES S curve-connect'!I$19","v":-2314.9208610778528},{"$f":"'Res-Appliance class'!$B42*'RES S curve-connect'!J$4+'Res-Appliance class'!$C42*'RES S curve-connect'!J$9+'Res-Appliance class'!$D42*'RES S curve-connect'!J$14+'Res-Appliance class'!$E42*'RES S curve-connect'!J$19","v":-2613.1937956448783},{"$f":"'Res-Appliance class'!$B42*'RES S curve-connect'!K$4+'Res-Appliance class'!$C42*'RES S curve-connect'!K$9+'Res-Appliance class'!$D42*'RES S curve-connect'!K$14+'Res-Appliance class'!$E42*'RES S curve-connect'!K$19","v":-2078.4331967403364},{"$f":"'Res-Appliance class'!$B42*'RES S curve-connect'!L$4+'Res-Appliance class'!$C42*'RES S curve-connect'!L$9+'Res-Appliance class'!$D42*'RES S curve-connect'!L$14+'Res-Appliance class'!$E42*'RES S curve-connect'!L$19","v":-2306.8365088865221},{"$f":"'Res-Appliance class'!$B42*'RES S curve-connect'!M$4+'Res-Appliance class'!$C42*'RES S curve-connect'!M$9+'Res-Appliance class'!$D42*'RES S curve-connect'!M$14+'Res-Appliance class'!$E42*'RES S curve-connect'!M$19","v":-2684.1034248961905},{"$f":"'Res-Appliance class'!$B42*'RES S curve-connect'!N$4+'Res-Appliance class'!$C42*'RES S curve-connect'!N$9+'Res-Appliance class'!$D42*'RES S curve-connect'!N$14+'Res-Appliance class'!$E42*'RES S curve-connect'!N$19","v":-2718.1171468270823},{"$f":"'Res-Appliance class'!$B42*'RES S curve-connect'!O$4+'Res-Appliance class'!$C42*'RES S curve-connect'!O$9+'Res-Appliance class'!$D42*'RES S curve-connect'!O$14+'Res-Appliance class'!$E42*'RES S curve-connect'!O$19","v":-2353.0401589939038},{"$f":"'Res-Appliance class'!$B42*'RES S curve-connect'!P$4+'Res-Appliance class'!$C42*'RES S curve-connect'!P$9+'Res-Appliance class'!$D42*'RES S curve-connect'!P$14+'Res-Appliance class'!$E42*'RES S curve-connect'!P$19","v":-2066.4303157728846},{"$f":"'Res-Appliance class'!$B42*'RES S curve-connect'!Q$4+'Res-Appliance class'!$C42*'RES S curve-connect'!Q$9+'Res-Appliance class'!$D42*'RES S curve-connect'!Q$14+'Res-Appliance class'!$E42*'RES S curve-connect'!Q$19","v":-1635.0732529172756},{"$f":"'Res-Appliance class'!$B42*'RES S curve-connect'!R$4+'Res-Appliance class'!$C42*'RES S curve-connect'!R$9+'Res-Appliance class'!$D42*'RES S curve-connect'!R$14+'Res-Appliance class'!$E42*'RES S curve-connect'!R$19","v":-1390.0130880801696},{"$f":"'Res-Appliance class'!$B42*'RES S curve-connect'!S$4+'Res-Appliance class'!$C42*'RES S curve-connect'!S$9+'Res-Appliance class'!$D42*'RES S curve-connect'!S$14+'Res-Appliance class'!$E42*'RES S curve-connect'!S$19","v":-993.42869056007544},{"$f":"'Res-Appliance class'!$B42*'RES S curve-connect'!T$4+'Res-Appliance class'!$C42*'RES S curve-connect'!T$9+'Res-Appliance class'!$D42*'RES S curve-connect'!T$14+'Res-Appliance class'!$E42*'RES S curve-connect'!T$19","v":-794.71769300993105},{"$f":"'Res-Appliance class'!$B42*'RES S curve-connect'!U$4+'Res-Appliance class'!$C42*'RES S curve-connect'!U$9+'Res-Appliance class'!$D42*'RES S curve-connect'!U$14+'Res-Appliance class'!$E42*'RES S curve-connect'!U$19","v":-555.56815152601462},{"$f":"'Res-Appliance class'!$B42*'RES S curve-connect'!V$4+'Res-Appliance class'!$C42*'RES S curve-connect'!V$9+'Res-Appliance class'!$D42*'RES S curve-connect'!V$14+'Res-Appliance class'!$E42*'RES S curve-connect'!V$19","v":-387.26783966904213},{"$f":"'Res-Appliance class'!$B42*'RES S curve-connect'!W$4+'Res-Appliance class'!$C42*'RES S curve-connect'!W$9+'Res-Appliance class'!$D42*'RES S curve-connect'!W$14+'Res-Appliance class'!$E42*'RES S curve-connect'!W$19","v":-255.37286890414885},{"$f":"'Res-Appliance class'!$B42*'RES S curve-connect'!X$4+'Res-Appliance class'!$C42*'RES S curve-connect'!X$9+'Res-Appliance class'!$D42*'RES S curve-connect'!X$14+'Res-Appliance class'!$E42*'RES S curve-connect'!X$19","v":31.10034801173299},{"$f":"'Res-Appliance class'!$B42*'RES S curve-connect'!Y$4+'Res-Appliance class'!$C42*'RES S curve-connect'!Y$9+'Res-Appliance class'!$D42*'RES S curve-connect'!Y$14+'Res-Appliance class'!$E42*'RES S curve-connect'!Y$19","v":322.79940885036251},{"$f":"'Res-Appliance class'!$B42*'RES S curve-connect'!Z$4+'Res-Appliance class'!$C42*'RES S curve-connect'!Z$9+'Res-Appliance class'!$D42*'RES S curve-connect'!Z$14+'Res-Appliance class'!$E42*'RES S curve-connect'!Z$19","v":522.23429047301647},{"$f":"'Res-Appliance class'!$B42*'RES S curve-connect'!AA$4+'Res-Appliance class'!$C42*'RES S curve-connect'!AA$9+'Res-Appliance class'!$D42*'RES S curve-connect'!AA$14+'Res-Appliance class'!$E42*'RES S curve-connect'!AA$19","v":723.85190448993569},{"$f":"'Res-Appliance class'!$B42*'RES S curve-connect'!AB$4+'Res-Appliance class'!$C42*'RES S curve-connect'!AB$9+'Res-Appliance class'!$D42*'RES S curve-connect'!AB$14+'Res-Appliance class'!$E42*'RES S curve-connect'!AB$19","v":886.38661681655503},{"$f":"'Res-Appliance class'!$B42*'RES S curve-connect'!AC$4+'Res-Appliance class'!$C42*'RES S curve-connect'!AC$9+'Res-Appliance class'!$D42*'RES S curve-connect'!AC$14+'Res-Appliance class'!$E42*'RES S curve-connect'!AC$19","v":1044.4799328490512},{"$f":"'Res-Appliance class'!$B42*'RES S curve-connect'!AD$4+'Res-Appliance class'!$C42*'RES S curve-connect'!AD$9+'Res-Appliance class'!$D42*'RES S curve-connect'!AD$14+'Res-Appliance class'!$E42*'RES S curve-connect'!AD$19","v":1189.79015137704},{"$f":"'Res-Appliance class'!$B42*'RES S curve-connect'!AE$4+'Res-Appliance class'!$C42*'RES S curve-connect'!AE$9+'Res-Appliance class'!$D42*'RES S curve-connect'!AE$14+'Res-Appliance class'!$E42*'RES S curve-connect'!AE$19","v":1345.429008858443},{"$f":"'Res-Appliance class'!$B42*'RES S curve-connect'!AF$4+'Res-Appliance class'!$C42*'RES S curve-connect'!AF$9+'Res-Appliance class'!$D42*'RES S curve-connect'!AF$14+'Res-Appliance class'!$E42*'RES S curve-connect'!AF$19","v":1542.1067265030733},{"$f":"'Res-Appliance class'!$B42*'RES S curve-connect'!AG$4+'Res-Appliance class'!$C42*'RES S curve-connect'!AG$9+'Res-Appliance class'!$D42*'RES S curve-connect'!AG$14+'Res-Appliance class'!$E42*'RES S curve-connect'!AG$19","v":1676.7586827196674},{"$f":"'Res-Appliance class'!$B42*'RES S curve-connect'!AH$4+'Res-Appliance class'!$C42*'RES S curve-connect'!AH$9+'Res-Appliance class'!$D42*'RES S curve-connect'!AH$14+'Res-Appliance class'!$E42*'RES S curve-connect'!AH$19","v":1860.086584186982},{"$f":"'Res-Appliance class'!$B42*'RES S curve-connect'!AI$4+'Res-Appliance class'!$C42*'RES S curve-connect'!AI$9+'Res-Appliance class'!$D42*'RES S curve-connect'!AI$14+'Res-Appliance class'!$E42*'RES S curve-connect'!AI$19","v":2030.4893333361506},{"$f":"'Res-Appliance class'!$B42*'RES S curve-connect'!AJ$4+'Res-Appliance class'!$C42*'RES S curve-connect'!AJ$9+'Res-Appliance class'!$D42*'RES S curve-connect'!AJ$14+'Res-Appliance class'!$E42*'RES S curve-connect'!AJ$19","v":2183.1065281448123},{"$f":"'Res-Appliance class'!$B42*'RES S curve-connect'!AK$4+'Res-Appliance class'!$C42*'RES S curve-connect'!AK$9+'Res-Appliance class'!$D42*'RES S curve-connect'!AK$14+'Res-Appliance class'!$E42*'RES S curve-connect'!AK$19","v":2345.3318439089599},{"$f":"'Res-Appliance class'!$B42*'RES S curve-connect'!AL$4+'Res-Appliance class'!$C42*'RES S curve-connect'!AL$9+'Res-Appliance class'!$D42*'RES S curve-connect'!AL$14+'Res-Appliance class'!$E42*'RES S curve-connect'!AL$19","v":1768.6306022045476},{"$f":"'Res-Appliance class'!$B42*'RES S curve-connect'!AM$4+'Res-Appliance class'!$C42*'RES S curve-connect'!AM$9+'Res-Appliance class'!$D42*'RES S curve-connect'!AM$14+'Res-Appliance class'!$E42*'RES S curve-connect'!AM$19","v":1701.5462031530601},{"$f":"'Res-Appliance class'!$B42*'RES S curve-connect'!AN$4+'Res-Appliance class'!$C42*'RES S curve-connect'!AN$9+'Res-Appliance class'!$D42*'RES S curve-connect'!AN$14+'Res-Appliance class'!$E42*'RES S curve-connect'!AN$19","v":1859.424440743732},{"$f":"'Res-Appliance class'!$B42*'RES S curve-connect'!AO$4+'Res-Appliance class'!$C42*'RES S curve-connect'!AO$9+'Res-Appliance class'!$D42*'RES S curve-connect'!AO$14+'Res-Appliance class'!$E42*'RES S curve-connect'!AO$19","v":2048.4701552237048},{"$f":"'Res-Appliance class'!$B42*'RES S curve-connect'!AP$4+'Res-Appliance class'!$C42*'RES S curve-connect'!AP$9+'Res-Appliance class'!$D42*'RES S curve-connect'!AP$14+'Res-Appliance class'!$E42*'RES S curve-connect'!AP$19","v":2220.7140495677049},{"$f":"'Res-Appliance class'!$B42*'RES S curve-connect'!AQ$4+'Res-Appliance class'!$C42*'RES S curve-connect'!AQ$9+'Res-Appliance class'!$D42*'RES S curve-connect'!AQ$14+'Res-Appliance class'!$E42*'RES S curve-connect'!AQ$19","v":2408.5961904007145},{"$f":"'Res-Appliance class'!$B42*'RES S curve-connect'!AR$4+'Res-Appliance class'!$C42*'RES S curve-connect'!AR$9+'Res-Appliance class'!$D42*'RES S curve-connect'!AR$14+'Res-Appliance class'!$E42*'RES S curve-connect'!AR$19","v":2613.4752187380327},{"$f":"'Res-Appliance class'!$B42*'RES S curve-connect'!AS$4+'Res-Appliance class'!$C42*'RES S curve-connect'!AS$9+'Res-Appliance class'!$D42*'RES S curve-connect'!AS$14+'Res-Appliance class'!$E42*'RES S curve-connect'!AS$19","v":2843.0167256911932},{"$f":"'Res-Appliance class'!$B42*'RES S curve-connect'!AT$4+'Res-Appliance class'!$C42*'RES S curve-connect'!AT$9+'Res-Appliance class'!$D42*'RES S curve-connect'!AT$14+'Res-Appliance class'!$E42*'RES S curve-connect'!AT$19","v":3098.1462911973936},{"$f":"'Res-Appliance class'!$B42*'RES S curve-connect'!AU$4+'Res-Appliance class'!$C42*'RES S curve-connect'!AU$9+'Res-Appliance class'!$D42*'RES S curve-connect'!AU$14+'Res-Appliance class'!$E42*'RES S curve-connect'!AU$19","v":3395.2870488852113},{"$f":"'Res-Appliance class'!$B42*'RES S curve-connect'!AV$4+'Res-Appliance class'!$C42*'RES S curve-connect'!AV$9+'Res-Appliance class'!$D42*'RES S curve-connect'!AV$14+'Res-Appliance class'!$E42*'RES S curve-connect'!AV$19","v":3732.2113313683353},{"$f":"'Res-Appliance class'!$B42*'RES S curve-connect'!AW$4+'Res-Appliance class'!$C42*'RES S curve-connect'!AW$9+'Res-Appliance class'!$D42*'RES S curve-connect'!AW$14+'Res-Appliance class'!$E42*'RES S curve-connect'!AW$19","v":4118.5298781855636},{"$f":"'Res-Appliance class'!$B42*'RES S curve-connect'!AX$4+'Res-Appliance class'!$C42*'RES S curve-connect'!AX$9+'Res-Appliance class'!$D42*'RES S curve-connect'!AX$14+'Res-Appliance class'!$E42*'RES S curve-connect'!AX$19","v":4556.3724442368175},{"$f":"'Res-Appliance class'!$B42*'RES S curve-connect'!AY$4+'Res-Appliance class'!$C42*'RES S curve-connect'!AY$9+'Res-Appliance class'!$D42*'RES S curve-connect'!AY$14+'Res-Appliance class'!$E42*'RES S curve-connect'!AY$19","v":5062.5685226414735},{"$f":"'Res-Appliance class'!$B42*'RES S curve-connect'!AZ$4+'Res-Appliance class'!$C42*'RES S curve-connect'!AZ$9+'Res-Appliance class'!$D42*'RES S curve-connect'!AZ$14+'Res-Appliance class'!$E42*'RES S curve-connect'!AZ$19","v":5638.0171325973915},{"$f":"'Res-Appliance class'!$B42*'RES S curve-connect'!BA$4+'Res-Appliance class'!$C42*'RES S curve-connect'!BA$9+'Res-Appliance class'!$D42*'RES S curve-connect'!BA$14+'Res-Appliance class'!$E42*'RES S curve-connect'!BA$19","v":6302.2444930394422},{"$f":"'Res-Appliance class'!$B42*'RES S curve-connect'!BB$4+'Res-Appliance class'!$C42*'RES S curve-connect'!BB$9+'Res-Appliance class'!$D42*'RES S curve-connect'!BB$14+'Res-Appliance class'!$E42*'RES S curve-connect'!BB$19","v":7074.3863036206276},{"$f":"'Res-Appliance class'!$B42*'RES S curve-connect'!BC$4+'Res-Appliance class'!$C42*'RES S curve-connect'!BC$9+'Res-Appliance class'!$D42*'RES S curve-connect'!BC$14+'Res-Appliance class'!$E42*'RES S curve-connect'!BC$19","v":7994.4759635392084},{"$f":"'Res-Appliance class'!$B42*'RES S curve-connect'!BD$4+'Res-Appliance class'!$C42*'RES S curve-connect'!BD$9+'Res-Appliance class'!$D42*'RES S curve-connect'!BD$14+'Res-Appliance class'!$E42*'RES S curve-connect'!BD$19","v":8872.0487079498835},{"$f":"'Res-Appliance class'!$B42*'RES S curve-connect'!BE$4+'Res-Appliance class'!$C42*'RES S curve-connect'!BE$9+'Res-Appliance class'!$D42*'RES S curve-connect'!BE$14+'Res-Appliance class'!$E42*'RES S curve-connect'!BE$19","v":9670.8025072896507},{"$f":"'Res-Appliance class'!$B42*'RES S curve-connect'!BF$4+'Res-Appliance class'!$C42*'RES S curve-connect'!BF$9+'Res-Appliance class'!$D42*'RES S curve-connect'!BF$14+'Res-Appliance class'!$E42*'RES S curve-connect'!BF$19","v":10489.070728379407},{"$f":"'Res-Appliance class'!$B42*'RES S curve-connect'!BG$4+'Res-Appliance class'!$C42*'RES S curve-connect'!BG$9+'Res-Appliance class'!$D42*'RES S curve-connect'!BG$14+'Res-Appliance class'!$E42*'RES S curve-connect'!BG$19","v":11418.95085830933},{"$f":"'Res-Appliance class'!$B42*'RES S curve-connect'!BH$4+'Res-Appliance class'!$C42*'RES S curve-connect'!BH$9+'Res-Appliance class'!$D42*'RES S curve-connect'!BH$14+'Res-Appliance class'!$E42*'RES S curve-connect'!BH$19","v":12520.515784641977},{"$f":"'Res-Appliance class'!$B42*'RES S curve-connect'!BI$4+'Res-Appliance class'!$C42*'RES S curve-connect'!BI$9+'Res-Appliance class'!$D42*'RES S curve-connect'!BI$14+'Res-Appliance class'!$E42*'RES S curve-connect'!BI$19","v":14119.045986971012},{"$f":"'Res-Appliance class'!$B42*'RES S curve-connect'!BJ$4+'Res-Appliance class'!$C42*'RES S curve-connect'!BJ$9+'Res-Appliance class'!$D42*'RES S curve-connect'!BJ$14+'Res-Appliance class'!$E42*'RES S curve-connect'!BJ$19","v":16448.607108339107},{"$f":"'Res-Appliance class'!$B42*'RES S curve-connect'!BK$4+'Res-Appliance class'!$C42*'RES S curve-connect'!BK$9+'Res-Appliance class'!$D42*'RES S curve-connect'!BK$14+'Res-Appliance class'!$E42*'RES S curve-connect'!BK$19","v":19869.504190734078},{"$f":"'Res-Appliance class'!$B42*'RES S curve-connect'!BL$4+'Res-Appliance class'!$C42*'RES S curve-connect'!BL$9+'Res-Appliance class'!$D42*'RES S curve-connect'!BL$14+'Res-Appliance class'!$E42*'RES S curve-connect'!BL$19","v":-327.4374409856199},{"$f":"'Res-Appliance class'!$B42*'RES S curve-connect'!BM$4+'Res-Appliance class'!$C42*'RES S curve-connect'!BM$9+'Res-Appliance class'!$D42*'RES S curve-connect'!BM$14+'Res-Appliance class'!$E42*'RES S curve-connect'!BM$19","v":-322.97112360388883},{"$f":"'Res-Appliance class'!$B42*'RES S curve-connect'!BN$4+'Res-Appliance class'!$C42*'RES S curve-connect'!BN$9+'Res-Appliance class'!$D42*'RES S curve-connect'!BN$14+'Res-Appliance class'!$E42*'RES S curve-connect'!BN$19","v":-321.85268159445684},{"$f":"'Res-Appliance class'!$B42*'RES S curve-connect'!BO$4+'Res-Appliance class'!$C42*'RES S curve-connect'!BO$9+'Res-Appliance class'!$D42*'RES S curve-connect'!BO$14+'Res-Appliance class'!$E42*'RES S curve-connect'!BO$19","v":-314.06080947920753},{"$f":"'Res-Appliance class'!$B42*'RES S curve-connect'!BP$4+'Res-Appliance class'!$C42*'RES S curve-connect'!BP$9+'Res-Appliance class'!$D42*'RES S curve-connect'!BP$14+'Res-Appliance class'!$E42*'RES S curve-connect'!BP$19","v":-309.6167211721214},{"$f":"'Res-Appliance class'!$B42*'RES S curve-connect'!BQ$4+'Res-Appliance class'!$C42*'RES S curve-connect'!BQ$9+'Res-Appliance class'!$D42*'RES S curve-connect'!BQ$14+'Res-Appliance class'!$E42*'RES S curve-connect'!BQ$19","v":-305.17995147184939},{"$f":"'Res-Appliance class'!$B42*'RES S curve-connect'!BR$4+'Res-Appliance class'!$C42*'RES S curve-connect'!BR$9+'Res-Appliance class'!$D42*'RES S curve-connect'!BR$14+'Res-Appliance class'!$E42*'RES S curve-connect'!BR$19","v":-304.09087516325008},{"$f":"'Res-Appliance class'!$B42*'RES S curve-connect'!BS$4+'Res-Appliance class'!$C42*'RES S curve-connect'!BS$9+'Res-Appliance class'!$D42*'RES S curve-connect'!BS$14+'Res-Appliance class'!$E42*'RES S curve-connect'!BS$19","v":-296.32818791222348},{"$f":"'Res-Appliance class'!$B42*'RES S curve-connect'!BT$4+'Res-Appliance class'!$C42*'RES S curve-connect'!BT$9+'Res-Appliance class'!$D42*'RES S curve-connect'!BT$14+'Res-Appliance class'!$E42*'RES S curve-connect'!BT$19","v":-291.91310476950162},{"$f":"'Res-Appliance class'!$B42*'RES S curve-connect'!BU$4+'Res-Appliance class'!$C42*'RES S curve-connect'!BU$9+'Res-Appliance class'!$D42*'RES S curve-connect'!BU$14+'Res-Appliance class'!$E42*'RES S curve-connect'!BU$19","v":-287.50516166327304},{"$f":"'Res-Appliance class'!$B42*'RES S curve-connect'!BV$4+'Res-Appliance class'!$C42*'RES S curve-connect'!BV$9+'Res-Appliance class'!$D42*'RES S curve-connect'!BV$14+'Res-Appliance class'!$E42*'RES S curve-connect'!BV$19","v":-286.44473450076566},{"$f":"'Res-Appliance class'!$B42*'RES S curve-connect'!BW$4+'Res-Appliance class'!$C42*'RES S curve-connect'!BW$9+'Res-Appliance class'!$D42*'RES S curve-connect'!BW$14+'Res-Appliance class'!$E42*'RES S curve-connect'!BW$19","v":-278.71052006312152},{"$f":"'Res-Appliance class'!$B42*'RES S curve-connect'!BX$4+'Res-Appliance class'!$C42*'RES S curve-connect'!BX$9+'Res-Appliance class'!$D42*'RES S curve-connect'!BX$14+'Res-Appliance class'!$E42*'RES S curve-connect'!BX$19","v":-274.32373450924058},{"$f":"'Res-Appliance class'!$B42*'RES S curve-connect'!BY$4+'Res-Appliance class'!$C42*'RES S curve-connect'!BY$9+'Res-Appliance class'!$D42*'RES S curve-connect'!BY$14+'Res-Appliance class'!$E42*'RES S curve-connect'!BY$19","v":-269.94391486844478},{"$f":"'Res-Appliance class'!$B42*'RES S curve-connect'!BZ$4+'Res-Appliance class'!$C42*'RES S curve-connect'!BZ$9+'Res-Appliance class'!$D42*'RES S curve-connect'!BZ$14+'Res-Appliance class'!$E42*'RES S curve-connect'!BZ$19","v":-268.91143814210466},{"$f":"'Res-Appliance class'!$B42*'RES S curve-connect'!CA$4+'Res-Appliance class'!$C42*'RES S curve-connect'!CA$9+'Res-Appliance class'!$D42*'RES S curve-connect'!CA$14+'Res-Appliance class'!$E42*'RES S curve-connect'!CA$19","v":-261.20500219856456},{"$f":"'Res-Appliance class'!$B42*'RES S curve-connect'!CB$4+'Res-Appliance class'!$C42*'RES S curve-connect'!CB$9+'Res-Appliance class'!$D42*'RES S curve-connect'!CB$14+'Res-Appliance class'!$E42*'RES S curve-connect'!CB$19","v":-256.84582427702395},{"$f":"'Res-Appliance class'!$B42*'RES S curve-connect'!CC$4+'Res-Appliance class'!$C42*'RES S curve-connect'!CC$9+'Res-Appliance class'!$D42*'RES S curve-connect'!CC$14+'Res-Appliance class'!$E42*'RES S curve-connect'!CC$19","v":-252.4934424802511},{"$f":"'Res-Appliance class'!$B42*'RES S curve-connect'!CD$4+'Res-Appliance class'!$C42*'RES S curve-connect'!CD$9+'Res-Appliance class'!$D42*'RES S curve-connect'!CD$14+'Res-Appliance class'!$E42*'RES S curve-connect'!CD$19","v":-315.73250353237984}]
["South Gippsland (S)",null,{"$f":"'Res-Appliance class'!$B43*'RES S curve-connect'!C$4+'Res-Appliance class'!$C43*'RES S curve-connect'!C$9+'Res-Appliance class'!$D43*'RES S curve-connect'!C$14+'Res-Appliance class'!$E43*'RES S curve-connect'!C$19","v":-2657.9581544261682},{"$f":"'Res-Appliance class'!$B43*'RES S curve-connect'!D$4+'Res-Appliance class'!$C43*'RES S curve-connect'!D$9+'Res-Appliance class'!$D43*'RES S curve-connect'!D$14+'Res-Appliance class'!$E43*'RES S curve-connect'!D$19","v":-3085.7588637087038},{"$f":"'Res-Appliance class'!$B43*'RES S curve-connect'!E$4+'Res-Appliance class'!$C43*'RES S curve-connect'!E$9+'Res-Appliance class'!$D43*'RES S curve-connect'!E$14+'Res-Appliance class'!$E43*'RES S curve-connect'!E$19","v":-2544.6055875151114},{"$f":"'Res-Appliance class'!$B43*'RES S curve-connect'!F$4+'Res-Appliance class'!$C43*'RES S curve-connect'!F$9+'Res-Appliance class'!$D43*'RES S curve-connect'!F$14+'Res-Appliance class'!$E43*'RES S curve-connect'!F$19","v":-2422.145589815535},{"$f":"'Res-Appliance class'!$B43*'RES S curve-connect'!G$4+'Res-Appliance class'!$C43*'RES S curve-connect'!G$9+'Res-Appliance class'!$D43*'RES S curve-connect'!G$14+'Res-Appliance class'!$E43*'RES S curve-connect'!G$19","v":-3279.2104902856718},{"$f":"'Res-Appliance class'!$B43*'RES S curve-connect'!H$4+'Res-Appliance class'!$C43*'RES S curve-connect'!H$9+'Res-Appliance class'!$D43*'RES S curve-connect'!H$14+'Res-Appliance class'!$E43*'RES S curve-connect'!H$19","v":-3325.7561659330172},{"$f":"'Res-Appliance class'!$B43*'RES S curve-connect'!I$4+'Res-Appliance class'!$C43*'RES S curve-connect'!I$9+'Res-Appliance class'!$D43*'RES S curve-connect'!I$14+'Res-Appliance class'!$E43*'RES S curve-connect'!I$19","v":-2975.5205598150924},{"$f":"'Res-Appliance class'!$B43*'RES S curve-connect'!J$4+'Res-Appliance class'!$C43*'RES S curve-connect'!J$9+'Res-Appliance class'!$D43*'RES S curve-connect'!J$14+'Res-Appliance class'!$E43*'RES S curve-connect'!J$19","v":-3316.7047859608019},{"$f":"'Res-Appliance class'!$B43*'RES S curve-connect'!K$4+'Res-Appliance class'!$C43*'RES S curve-connect'!K$9+'Res-Appliance class'!$D43*'RES S curve-connect'!K$14+'Res-Appliance class'!$E43*'RES S curve-connect'!K$19","v":-2641.1704821002927},{"$f":"'Res-Appliance class'!$B43*'RES S curve-connect'!L$4+'Res-Appliance class'!$C43*'RES S curve-connect'!L$9+'Res-Appliance class'!$D43*'RES S curve-connect'!L$14+'Res-Appliance class'!$E43*'RES S curve-connect'!L$19","v":-2929.0199019339925},{"$f":"'Res-Appliance class'!$B43*'RES S curve-connect'!M$4+'Res-Appliance class'!$C43*'RES S curve-connect'!M$9+'Res-Appliance class'!$D43*'RES S curve-connect'!M$14+'Res-Appliance class'!$E43*'RES S curve-connect'!M$19","v":-3425.9995579350998},{"$f":"'Res-Appliance class'!$B43*'RES S curve-connect'!N$4+'Res-Appliance class'!$C43*'RES S curve-connect'!N$9+'Res-Appliance class'!$D43*'RES S curve-connect'!N$14+'Res-Appliance class'!$E43*'RES S curve-connect'!N$19","v":-3469.9526014917014},{"$f":"'Res-Appliance class'!$B43*'RES S curve-connect'!O$4+'Res-Appliance class'!$C43*'RES S curve-connect'!O$9+'Res-Appliance class'!$D43*'RES S curve-connect'!O$14+'Res-Appliance class'!$E43*'RES S curve-connect'!O$19","v":-3007.500073772313},{"$f":"'Res-Appliance class'!$B43*'RES S curve-connect'!P$4+'Res-Appliance class'!$C43*'RES S curve-connect'!P$9+'Res-Appliance class'!$D43*'RES S curve-connect'!P$14+'Res-Appliance class'!$E43*'RES S curve-connect'!P$19","v":-2641.5982030451964},{"$f":"'Res-Appliance class'!$B43*'RES S curve-connect'!Q$4+'Res-Appliance class'!$C43*'RES S curve-connect'!Q$9+'Res-Appliance class'!$D43*'RES S curve-connect'!Q$14+'Res-Appliance class'!$E43*'RES S curve-connect'!Q$19","v":-2090.7701002439899},{"$f":"'Res-Appliance class'!$B43*'RES S curve-connect'!R$4+'Res-Appliance class'!$C43*'RES S curve-connect'!R$9+'Res-Appliance class'!$D43*'RES S curve-connect'!R$14+'Res-Appliance class'!$E43*'RES S curve-connect'!R$19","v":-1777.3426208668279},{"$f":"'Res-Appliance class'!$B43*'RES S curve-connect'!S$4+'Res-Appliance class'!$C43*'RES S curve-connect'!S$9+'Res-Appliance class'!$D43*'RES S curve-connect'!S$14+'Res-Appliance class'!$E43*'RES S curve-connect'!S$19","v":-1276.7300579802118},{"$f":"'Res-Appliance class'!$B43*'RES S curve-connect'!T$4+'Res-Appliance class'!$C43*'RES S curve-connect'!T$9+'Res-Appliance class'!$D43*'RES S curve-connect'!T$14+'Res-Appliance class'!$E43*'RES S curve-connect'!T$19","v":-1012.11885865302},{"$f":"'Res-Appliance class'!$B43*'RES S curve-connect'!U$4+'Res-Appliance class'!$C43*'RES S curve-connect'!U$9+'Res-Appliance class'!$D43*'RES S curve-connect'!U$14+'Res-Appliance class'!$E43*'RES S curve-connect'!U$19","v":-703.81017719618205},{"$f":"'Res-Appliance class'!$B43*'RES S curve-connect'!V$4+'Res-Appliance class'!$C43*'RES S curve-connect'!V$9+'Res-Appliance class'!$D43*'RES S curve-connect'!V$14+'Res-Appliance class'!$E43*'RES S curve-connect'!V$19","v":-489.62295932501718},{"$f":"'Res-Appliance class'!$B43*'RES S curve-connect'!W$4+'Res-Appliance class'!$C43*'RES S curve-connect'!W$9+'Res-Appliance class'!$D43*'RES S curve-connect'!W$14+'Res-Appliance class'!$E43*'RES S curve-connect'!W$19","v":-322.26345419212782},{"$f":"'Res-Appliance class'!$B43*'RES S curve-connect'!X$4+'Res-Appliance class'!$C43*'RES S curve-connect'!X$9+'Res-Appliance class'!$D43*'RES S curve-connect'!X$14+'Res-Appliance class'!$E43*'RES S curve-connect'!X$19","v":47.361635614575903},{"$f":"'Res-Appliance class'!$B43*'RES S curve-connect'!Y$4+'Res-Appliance class'!$C43*'RES S curve-connect'!Y$9+'Res-Appliance class'!$D43*'RES S curve-connect'!Y$14+'Res-Appliance class'!$E43*'RES S curve-connect'!Y$19","v":422.30019017211089},{"$f":"'Res-Appliance class'!$B43*'RES S curve-connect'!Z$4+'Res-Appliance class'!$C43*'RES S curve-connect'!Z$9+'Res-Appliance class'!$D43*'RES S curve-connect'!Z$14+'Res-Appliance class'!$E43*'RES S curve-connect'!Z$19","v":677.94436662847863},{"$f":"'Res-Appliance class'!$B43*'RES S curve-connect'!AA$4+'Res-Appliance class'!$C43*'RES S curve-connect'!AA$9+'Res-Appliance class'!$D43*'RES S curve-connect'!AA$14+'Res-Appliance class'!$E43*'RES S curve-connect'!AA$19","v":934.76008562250252},{"$f":"'Res-Appliance class'!$B43*'RES S curve-connect'!AB$4+'Res-Appliance class'!$C43*'RES S curve-connect'!AB$9+'Res-Appliance class'!$D43*'RES S curve-connect'!AB$14+'Res-Appliance class'!$E43*'RES S curve-connect'!AB$19","v":1140.6295561338432},{"$f":"'Res-Appliance class'!$B43*'RES S curve-connect'!AC$4+'Res-Appliance class'!$C43*'RES S curve-connect'!AC$9+'Res-Appliance class'!$D43*'RES S curve-connect'!AC$14+'Res-Appliance class'!$E43*'RES S curve-connect'!AC$19","v":1339.8201014348169},{"$f":"'Res-Appliance class'!$B43*'RES S curve-connect'!AD$4+'Res-Appliance class'!$C43*'RES S curve-connect'!AD$9+'Res-Appliance class'!$D43*'RES S curve-connect'!AD$14+'Res-Appliance class'!$E43*'RES S curve-connect'!AD$19","v":1522.8322131926966},{"$f":"'Res-Appliance class'!$B43*'RES S curve-connect'!AE$4+'Res-Appliance class'!$C43*'RES S curve-connect'!AE$9+'Res-Appliance class'!$D43*'RES S curve-connect'!AE$14+'Res-Appliance class'!$E43*'RES S curve-connect'!AE$19","v":1716.6197844223839},{"$f":"'Res-Appliance class'!$B43*'RES S curve-connect'!AF$4+'Res-Appliance class'!$C43*'RES S curve-connect'!AF$9+'Res-Appliance class'!$D43*'RES S curve-connect'!AF$14+'Res-Appliance class'!$E43*'RES S curve-connect'!AF$19","v":1964.3053036002477},{"$f":"'Res-Appliance class'!$B43*'RES S curve-connect'!AG$4+'Res-Appliance class'!$C43*'RES S curve-connect'!AG$9+'Res-Appliance class'!$D43*'RES S curve-connect'!AG$14+'Res-Appliance class'!$E43*'RES S curve-connect'!AG$19","v":2133.2235887290508},{"$f":"'Res-Appliance class'!$B43*'RES S curve-connect'!AH$4+'Res-Appliance class'!$C43*'RES S curve-connect'!AH$9+'Res-Appliance class'!$D43*'RES S curve-connect'!AH$14+'Res-Appliance class'!$E43*'RES S curve-connect'!AH$19","v":2367.6561135407737},{"$f":"'Res-Appliance class'!$B43*'RES S curve-connect'!AI$4+'Res-Appliance class'!$C43*'RES S curve-connect'!AI$9+'Res-Appliance class'!$D43*'RES S curve-connect'!AI$14+'Res-Appliance class'!$E43*'RES S curve-connect'!AI$19","v":2581.3470370317732},{"$f":"'Res-Appliance class'!$B43*'RES S curve-connect'!AJ$4+'Res-Appliance class'!$C43*'RES S curve-connect'!AJ$9+'Res-Appliance class'!$D43*'RES S curve-connect'!AJ$14+'Res-Appliance class'!$E43*'RES S curve-connect'!AJ$19","v":2773.5901804268024},{"$f":"'Res-Appliance class'!$B43*'RES S curve-connect'!AK$4+'Res-Appliance class'!$C43*'RES S curve-connect'!AK$9+'Res-Appliance class'!$D43*'RES S curve-connect'!AK$14+'Res-Appliance class'!$E43*'RES S curve-connect'!AK$19","v":2977.7849220341936},{"$f":"'Res-Appliance class'!$B43*'RES S curve-connect'!AL$4+'Res-Appliance class'!$C43*'RES S curve-connect'!AL$9+'Res-Appliance class'!$D43*'RES S curve-connect'!AL$14+'Res-Appliance class'!$E43*'RES S curve-connect'!AL$19","v":2263.2385829381205},{"$f":"'Res-Appliance class'!$B43*'RES S curve-connect'!AM$4+'Res-Appliance class'!$C43*'RES S curve-connect'!AM$9+'Res-Appliance class'!$D43*'RES S curve-connect'!AM$14+'Res-Appliance class'!$E43*'RES S curve-connect'!AM$19","v":2174.1531499535395},{"$f":"'Res-Appliance class'!$B43*'RES S curve-connect'!AN$4+'Res-Appliance class'!$C43*'RES S curve-connect'!AN$9+'Res-Appliance class'!$D43*'RES S curve-connect'!AN$14+'Res-Appliance class'!$E43*'RES S curve-connect'!AN$19","v":2369.6953745329015},{"$f":"'Res-Appliance class'!$B43*'RES S curve-connect'!AO$4+'Res-Appliance class'!$C43*'RES S curve-connect'!AO$9+'Res-Appliance class'!$D43*'RES S curve-connect'!AO$14+'Res-Appliance class'!$E43*'RES S curve-connect'!AO$19","v":2606.747791263193},{"$f":"'Res-Appliance class'!$B43*'RES S curve-connect'!AP$4+'Res-Appliance class'!$C43*'RES S curve-connect'!AP$9+'Res-Appliance class'!$D43*'RES S curve-connect'!AP$14+'Res-Appliance class'!$E43*'RES S curve-connect'!AP$19","v":2824.5064726734054},{"$f":"'Res-Appliance class'!$B43*'RES S curve-connect'!AQ$4+'Res-Appliance class'!$C43*'RES S curve-connect'!AQ$9+'Res-Appliance class'!$D43*'RES S curve-connect'!AQ$14+'Res-Appliance class'!$E43*'RES S curve-connect'!AQ$19","v":3060.2068414488717},{"$f":"'Res-Appliance class'!$B43*'RES S curve-connect'!AR$4+'Res-Appliance class'!$C43*'RES S curve-connect'!AR$9+'Res-Appliance class'!$D43*'RES S curve-connect'!AR$14+'Res-Appliance class'!$E43*'RES S curve-connect'!AR$19","v":3318.2703413991608},{"$f":"'Res-Appliance class'!$B43*'RES S curve-connect'!AS$4+'Res-Appliance class'!$C43*'RES S curve-connect'!AS$9+'Res-Appliance class'!$D43*'RES S curve-connect'!AS$14+'Res-Appliance class'!$E43*'RES S curve-connect'!AS$19","v":3607.6612618297813},{"$f":"'Res-Appliance class'!$B43*'RES S curve-connect'!AT$4+'Res-Appliance class'!$C43*'RES S curve-connect'!AT$9+'Res-Appliance class'!$D43*'RES S curve-connect'!AT$14+'Res-Appliance class'!$E43*'RES S curve-connect'!AT$19","v":3930.5220537225177},{"$f":"'Res-Appliance class'!$B43*'RES S curve-connect'!AU$4+'Res-Appliance class'!$C43*'RES S curve-connect'!AU$9+'Res-Appliance class'!$D43*'RES S curve-connect'!AU$14+'Res-Appliance class'!$E43*'RES S curve-connect'!AU$19","v":4305.0494094065798},{"$f":"'Res-Appliance class'!$B43*'RES S curve-connect'!AV$4+'Res-Appliance class'!$C43*'RES S curve-connect'!AV$9+'Res-Appliance class'!$D43*'RES S curve-connect'!AV$14+'Res-Appliance class'!$E43*'RES S curve-connect'!AV$19","v":4731.2212120341874},{"$f":"'Res-Appliance class'!$B43*'RES S curve-connect'!AW$4+'Res-Appliance class'!$C43*'RES S curve-connect'!AW$9+'Res-Appliance class'!$D43*'RES S curve-connect'!AW$14+'Res-Appliance class'!$E43*'RES S curve-connect'!AW$19","v":5220.5762994788893},{"$f":"'Res-Appliance class'!$B43*'RES S curve-connect'!AX$4+'Res-Appliance class'!$C43*'RES S curve-connect'!AX$9+'Res-Appliance class'!$D43*'RES S curve-connect'!AX$14+'Res-Appliance class'!$E43*'RES S curve-connect'!AX$19","v":5777.0369360647001},{"$f":"'Res-Appliance class'!$B43*'RES S curve-connect'!AY$4+'Res-Appliance class'!$C43*'RES S curve-connect'!AY$9+'Res-Appliance class'!$D43*'RES S curve-connect'!AY$14+'Res-Appliance class'!$E43*'RES S curve-connect'!AY$19","v":6419.6127836212636},{"$f":"'Res-Appliance class'!$B43*'RES S curve-connect'!AZ$4+'Res-Appliance class'!$C43*'RES S curve-connect'!AZ$9+'Res-Appliance class'!$D43*'RES S curve-connect'!AZ$14+'Res-Appliance class'!$E43*'RES S curve-connect'!AZ$19","v":7152.5350941485658},{"$f":"'Res-Appliance class'!$B43*'RES S curve-connect'!BA$4+'Res-Appliance class'!$C43*'RES S curve-connect'!BA$9+'Res-Appliance class'!$D43*'RES S curve-connect'!BA$14+'Res-Appliance class'!$E43*'RES S curve-connect'!BA$19","v":8000.2036429037089},{"$f":"'Res-Appliance class'!$B43*'RES S curve-connect'!BB$4+'Res-Appliance class'!$C43*'RES S curve-connect'!BB$9+'Res-Appliance class'!$D43*'RES S curve-connect'!BB$14+'Res-Appliance class'!$E43*'RES S curve-connect'!BB$19","v":8988.5682967155717},{"$f":"'Res-Appliance class'!$B43*'RES S curve-connect'!BC$4+'Res-Appliance class'!$C43*'RES S curve-connect'!BC$9+'Res-Appliance class'!$D43*'RES S curve-connect'!BC$14+'Res-Appliance class'!$E43*'RES S curve-connect'!BC$19","v":10166.840208989026},{"$f":"'Res-Appliance class'!$B43*'RES S curve-connect'!BD$4+'Res-Appliance class'!$C43*'RES S curve-connect'!BD$9+'Res-Appliance class'!$D43*'RES S curve-connect'!BD$14+'Res-Appliance class'!$E43*'RES S curve-connect'!BD$19","v":11298.430483477019},{"$f":"'Res-Appliance class'!$B43*'RES S curve-connect'!BE$4+'Res-Appliance class'!$C43*'RES S curve-connect'!BE$9+'Res-Appliance class'!$D43*'RES S curve-connect'!BE$14+'Res-Appliance class'!$E43*'RES S curve-connect'!BE$19","v":12331.017556394396},{"$f":"'Res-Appliance class'!$B43*'RES S curve-connect'!BF$4+'Res-Appliance class'!$C43*'RES S curve-connect'!BF$9+'Res-Appliance class'!$D43*'RES S curve-connect'!BF$14+'Res-Appliance class'!$E43*'RES S curve-connect'!BF$19","v":13388.049259337473},{"$f":"'Res-Appliance class'!$B43*'RES S curve-connect'!BG$4+'Res-Appliance class'!$C43*'RES S curve-connect'!BG$9+'Res-Appliance class'!$D43*'RES S curve-connect'!BG$14+'Res-Appliance class'!$E43*'RES S curve-connect'!BG$19","v":14586.280833190573},{"$f":"'Res-Appliance class'!$B43*'RES S curve-connect'!BH$4+'Res-Appliance class'!$C43*'RES S curve-connect'!BH$9+'Res-Appliance class'!$D43*'RES S curve-connect'!BH$14+'Res-Appliance class'!$E43*'RES S curve-connect'!BH$19","v":16007.497226657635},{"$f":"'Res-Appliance class'!$B43*'RES S curve-connect'!BI$4+'Res-Appliance class'!$C43*'RES S curve-connect'!BI$9+'Res-Appliance class'!$D43*'RES S curve-connect'!BI$14+'Res-Appliance class'!$E43*'RES S curve-connect'!BI$19","v":18068.011997379286},{"$f":"'Res-Appliance class'!$B43*'RES S curve-connect'!BJ$4+'Res-Appliance class'!$C43*'RES S curve-connect'!BJ$9+'Res-Appliance class'!$D43*'RES S curve-connect'!BJ$14+'Res-Appliance class'!$E43*'RES S curve-connect'!BJ$19","v":21079.866716299861},{"$f":"'Res-Appliance class'!$B43*'RES S curve-connect'!BK$4+'Res-Appliance class'!$C43*'RES S curve-connect'!BK$9+'Res-Appliance class'!$D43*'RES S curve-connect'!BK$14+'Res-Appliance class'!$E43*'RES S curve-connect'!BK$19","v":25516.094906927858},{"$f":"'Res-Appliance class'!$B43*'RES S curve-connect'!BL$4+'Res-Appliance class'!$C43*'RES S curve-connect'!BL$9+'Res-Appliance class'!$D43*'RES S curve-connect'!BL$14+'Res-Appliance class'!$E43*'RES S curve-connect'!BL$19","v":-342.46948818341491},{"$f":"'Res-Appliance class'!$B43*'RES S curve-connect'!BM$4+'Res-Appliance class'!$C43*'RES S curve-connect'!BM$9+'Res-Appliance class'!$D43*'RES S curve-connect'!BM$14+'Res-Appliance class'!$E43*'RES S curve-connect'!BM$19","v":-336.73167613628488},{"$f":"'Res-Appliance class'!$B43*'RES S curve-connect'!BN$4+'Res-Appliance class'!$C43*'RES S curve-connect'!BN$9+'Res-Appliance class'!$D43*'RES S curve-connect'!BN$14+'Res-Appliance class'!$E43*'RES S curve-connect'!BN$19","v":-334.34322527058453},{"$f":"'Res-Appliance class'!$B43*'RES S curve-connect'!BO$4+'Res-Appliance class'!$C43*'RES S curve-connect'!BO$9+'Res-Appliance class'!$D43*'RES S curve-connect'!BO$14+'Res-Appliance class'!$E43*'RES S curve-connect'!BO$19","v":-325.28282133253026},{"$f":"'Res-Appliance class'!$B43*'RES S curve-connect'!BP$4+'Res-Appliance class'!$C43*'RES S curve-connect'!BP$9+'Res-Appliance class'!$D43*'RES S curve-connect'!BP$14+'Res-Appliance class'!$E43*'RES S curve-connect'!BP$19","v":-319.57166951447402},{"$f":"'Res-Appliance class'!$B43*'RES S curve-connect'!BQ$4+'Res-Appliance class'!$C43*'RES S curve-connect'!BQ$9+'Res-Appliance class'!$D43*'RES S curve-connect'!BQ$14+'Res-Appliance class'!$E43*'RES S curve-connect'!BQ$19","v":-313.86929594713473},{"$f":"'Res-Appliance class'!$B43*'RES S curve-connect'!BR$4+'Res-Appliance class'!$C43*'RES S curve-connect'!BR$9+'Res-Appliance class'!$D43*'RES S curve-connect'!BR$14+'Res-Appliance class'!$E43*'RES S curve-connect'!BR$19","v":-311.51606680079908},{"$f":"'Res-Appliance class'!$B43*'RES S curve-connect'!BS$4+'Res-Appliance class'!$C43*'RES S curve-connect'!BS$9+'Res-Appliance class'!$D43*'RES S curve-connect'!BS$14+'Res-Appliance class'!$E43*'RES S curve-connect'!BS$19","v":-302.49066917981986},{"$f":"'Res-Appliance class'!$B43*'RES S curve-connect'!BT$4+'Res-Appliance class'!$C43*'RES S curve-connect'!BT$9+'Res-Appliance class'!$D43*'RES S curve-connect'!BT$14+'Res-Appliance class'!$E43*'RES S curve-connect'!BT$19","v":-296.814309626073},{"$f":"'Res-Appliance class'!$B43*'RES S curve-connect'!BU$4+'Res-Appliance class'!$C43*'RES S curve-connect'!BU$9+'Res-Appliance class'!$D43*'RES S curve-connect'!BU$14+'Res-Appliance class'!$E43*'RES S curve-connect'!BU$19","v":-291.14651561125072},{"$f":"'Res-Appliance class'!$B43*'RES S curve-connect'!BV$4+'Res-Appliance class'!$C43*'RES S curve-connect'!BV$9+'Res-Appliance class'!$D43*'RES S curve-connect'!BV$14+'Res-Appliance class'!$E43*'RES S curve-connect'!BV$19","v":-288.82765463811677},{"$f":"'Res-Appliance class'!$B43*'RES S curve-connect'!BW$4+'Res-Appliance class'!$C43*'RES S curve-connect'!BW$9+'Res-Appliance class'!$D43*'RES S curve-connect'!BW$14+'Res-Appliance class'!$E43*'RES S curve-connect'!BW$19","v":-279.83641513505188},{"$f":"'Res-Appliance class'!$B43*'RES S curve-connect'!BX$4+'Res-Appliance class'!$C43*'RES S curve-connect'!BX$9+'Res-Appliance class'!$D43*'RES S curve-connect'!BX$14+'Res-Appliance class'!$E43*'RES S curve-connect'!BX$19","v":-274.19400495957552},{"$f":"'Res-Appliance class'!$B43*'RES S curve-connect'!BY$4+'Res-Appliance class'!$C43*'RES S curve-connect'!BY$9+'Res-Appliance class'!$D43*'RES S curve-connect'!BY$14+'Res-Appliance class'!$E43*'RES S curve-connect'!BY$19","v":-268.55995289068414},{"$f":"'Res-Appliance class'!$B43*'RES S curve-connect'!BZ$4+'Res-Appliance class'!$C43*'RES S curve-connect'!BZ$9+'Res-Appliance class'!$D43*'RES S curve-connect'!BZ$14+'Res-Appliance class'!$E43*'RES S curve-connect'!BZ$19","v":-266.27462773016009},{"$f":"'Res-Appliance class'!$B43*'RES S curve-connect'!CA$4+'Res-Appliance class'!$C43*'RES S curve-connect'!CA$9+'Res-Appliance class'!$D43*'RES S curve-connect'!CA$14+'Res-Appliance class'!$E43*'RES S curve-connect'!CA$19","v":-257.31671919717525},{"$f":"'Res-Appliance class'!$B43*'RES S curve-connect'!CB$4+'Res-Appliance class'!$C43*'RES S curve-connect'!CB$9+'Res-Appliance class'!$D43*'RES S curve-connect'!CB$14+'Res-Appliance class'!$E43*'RES S curve-connect'!CB$19","v":-251.70743643185784},{"$f":"'Res-Appliance class'!$B43*'RES S curve-connect'!CC$4+'Res-Appliance class'!$C43*'RES S curve-connect'!CC$9+'Res-Appliance class'!$D43*'RES S curve-connect'!CC$14+'Res-Appliance class'!$E43*'RES S curve-connect'!CC$19","v":-246.10630948769011},{"$f":"'Res-Appliance class'!$B43*'RES S curve-connect'!CD$4+'Res-Appliance class'!$C43*'RES S curve-connect'!CD$9+'Res-Appliance class'!$D43*'RES S curve-connect'!CD$14+'Res-Appliance class'!$E43*'RES S curve-connect'!CD$19","v":-329.18131181737522}]
["Stonnington (C)",null,{"$f":"'Res-Appliance class'!$B44*'RES S curve-connect'!C$4+'Res-Appliance class'!$C44*'RES S curve-connect'!C$9+'Res-Appliance class'!$D44*'RES S curve-connect'!C$14+'Res-Appliance class'!$E44*'RES S curve-connect'!C$19","v":-2189.2292479377711},{"$f":"'Res-Appliance class'!$B44*'RES S curve-connect'!D$4+'Res-Appliance class'!$C44*'RES S curve-connect'!D$9+'Res-Appliance class'!$D44*'RES S curve-connect'!D$14+'Res-Appliance class'!$E44*'RES S curve-connect'!D$19","v":-2576.7744157243128},{"$f":"'Res-Appliance class'!$B44*'RES S curve-connect'!E$4+'Res-Appliance class'!$C44*'RES S curve-connect'!E$9+'Res-Appliance class'!$D44*'RES S curve-connect'!E$14+'Res-Appliance class'!$E44*'RES S curve-connect'!E$19","v":-2088.3614472484314},{"$f":"'Res-Appliance class'!$B44*'RES S curve-connect'!F$4+'Res-Appliance class'!$C44*'RES S curve-connect'!F$9+'Res-Appliance class'!$D44*'RES S curve-connect'!F$14+'Res-Appliance class'!$E44*'RES S curve-connect'!F$19","v":-1979.8852443944752},{"$f":"'Res-Appliance class'!$B44*'RES S curve-connect'!G$4+'Res-Appliance class'!$C44*'RES S curve-connect'!G$9+'Res-Appliance class'!$D44*'RES S curve-connect'!G$14+'Res-Appliance class'!$E44*'RES S curve-connect'!G$19","v":-2806.017582896623},{"$f":"'Res-Appliance class'!$B44*'RES S curve-connect'!H$4+'Res-Appliance class'!$C44*'RES S curve-connect'!H$9+'Res-Appliance class'!$D44*'RES S curve-connect'!H$14+'Res-Appliance class'!$E44*'RES S curve-connect'!H$19","v":-2834.3292736939375},{"$f":"'Res-Appliance class'!$B44*'RES S curve-connect'!I$4+'Res-Appliance class'!$C44*'RES S curve-connect'!I$9+'Res-Appliance class'!$D44*'RES S curve-connect'!I$14+'Res-Appliance class'!$E44*'RES S curve-connect'!I$19","v":-2513.6877497317273},{"$f":"'Res-Appliance class'!$B44*'RES S curve-connect'!J$4+'Res-Appliance class'!$C44*'RES S curve-connect'!J$9+'Res-Appliance class'!$D44*'RES S curve-connect'!J$14+'Res-Appliance class'!$E44*'RES S curve-connect'!J$19","v":-2798.3905030521073},{"$f":"'Res-Appliance class'!$B44*'RES S curve-connect'!K$4+'Res-Appliance class'!$C44*'RES S curve-connect'!K$9+'Res-Appliance class'!$D44*'RES S curve-connect'!K$14+'Res-Appliance class'!$E44*'RES S curve-connect'!K$19","v":-2179.5334009713511},{"$f":"'Res-Appliance class'!$B44*'RES S curve-connect'!L$4+'Res-Appliance class'!$C44*'RES S curve-connect'!L$9+'Res-Appliance class'!$D44*'RES S curve-connect'!L$14+'Res-Appliance class'!$E44*'RES S curve-connect'!L$19","v":-2442.2231460369262},{"$f":"'Res-Appliance class'!$B44*'RES S curve-connect'!M$4+'Res-Appliance class'!$C44*'RES S curve-connect'!M$9+'Res-Appliance class'!$D44*'RES S curve-connect'!M$14+'Res-Appliance class'!$E44*'RES S curve-connect'!M$19","v":-2901.6100061259085},{"$f":"'Res-Appliance class'!$B44*'RES S curve-connect'!N$4+'Res-Appliance class'!$C44*'RES S curve-connect'!N$9+'Res-Appliance class'!$D44*'RES S curve-connect'!N$14+'Res-Appliance class'!$E44*'RES S curve-connect'!N$19","v":-2944.2035548535691},{"$f":"'Res-Appliance class'!$B44*'RES S curve-connect'!O$4+'Res-Appliance class'!$C44*'RES S curve-connect'!O$9+'Res-Appliance class'!$D44*'RES S curve-connect'!O$14+'Res-Appliance class'!$E44*'RES S curve-connect'!O$19","v":-2520.5662589604144},{"$f":"'Res-Appliance class'!$B44*'RES S curve-connect'!P$4+'Res-Appliance class'!$C44*'RES S curve-connect'!P$9+'Res-Appliance class'!$D44*'RES S curve-connect'!P$14+'Res-Appliance class'!$E44*'RES S curve-connect'!P$19","v":-2185.3861921557746},{"$f":"'Res-Appliance class'!$B44*'RES S curve-connect'!Q$4+'Res-Appliance class'!$C44*'RES S curve-connect'!Q$9+'Res-Appliance class'!$D44*'RES S curve-connect'!Q$14+'Res-Appliance class'!$E44*'RES S curve-connect'!Q$19","v":-1679.9291601613293},{"$f":"'Res-Appliance class'!$B44*'RES S curve-connect'!R$4+'Res-Appliance class'!$C44*'RES S curve-connect'!R$9+'Res-Appliance class'!$D44*'RES S curve-connect'!R$14+'Res-Appliance class'!$E44*'RES S curve-connect'!R$19","v":-1393.145153161629},{"$f":"'Res-Appliance class'!$B44*'RES S curve-connect'!S$4+'Res-Appliance class'!$C44*'RES S curve-connect'!S$9+'Res-Appliance class'!$D44*'RES S curve-connect'!S$14+'Res-Appliance class'!$E44*'RES S curve-connect'!S$19","v":-931.86855621106815},{"$f":"'Res-Appliance class'!$B44*'RES S curve-connect'!T$4+'Res-Appliance class'!$C44*'RES S curve-connect'!T$9+'Res-Appliance class'!$D44*'RES S curve-connect'!T$14+'Res-Appliance class'!$E44*'RES S curve-connect'!T$19","v":-693.51171072714158},{"$f":"'Res-Appliance class'!$B44*'RES S curve-connect'!U$4+'Res-Appliance class'!$C44*'RES S curve-connect'!U$9+'Res-Appliance class'!$D44*'RES S curve-connect'!U$14+'Res-Appliance class'!$E44*'RES S curve-connect'!U$19","v":-412.79985377601054},{"$f":"'Res-Appliance class'!$B44*'RES S curve-connect'!V$4+'Res-Appliance class'!$C44*'RES S curve-connect'!V$9+'Res-Appliance class'!$D44*'RES S curve-connect'!V$14+'Res-Appliance class'!$E44*'RES S curve-connect'!V$19","v":-218.29719289089255},{"$f":"'Res-Appliance class'!$B44*'RES S curve-connect'!W$4+'Res-Appliance class'!$C44*'RES S curve-connect'!W$9+'Res-Appliance class'!$D44*'RES S curve-connect'!W$14+'Res-Appliance class'!$E44*'RES S curve-connect'!W$19","v":-65.809761083498358},{"$f":"'Res-Appliance class'!$B44*'RES S curve-connect'!X$4+'Res-Appliance class'!$C44*'RES S curve-connect'!X$9+'Res-Appliance class'!$D44*'RES S curve-connect'!X$14+'Res-Appliance class'!$E44*'RES S curve-connect'!X$19","v":272.29274034623745},{"$f":"'Res-Appliance class'!$B44*'RES S curve-connect'!Y$4+'Res-Appliance class'!$C44*'RES S curve-connect'!Y$9+'Res-Appliance class'!$D44*'RES S curve-connect'!Y$14+'Res-Appliance class'!$E44*'RES S curve-connect'!Y$19","v":615.64756861649016},{"$f":"'Res-Appliance class'!$B44*'RES S curve-connect'!Z$4+'Res-Appliance class'!$C44*'RES S curve-connect'!Z$9+'Res-Appliance class'!$D44*'RES S curve-connect'!Z$14+'Res-Appliance class'!$E44*'RES S curve-connect'!Z$19","v":849.10838766040092},{"$f":"'Res-Appliance class'!$B44*'RES S curve-connect'!AA$4+'Res-Appliance class'!$C44*'RES S curve-connect'!AA$9+'Res-Appliance class'!$D44*'RES S curve-connect'!AA$14+'Res-Appliance class'!$E44*'RES S curve-connect'!AA$19","v":1084.073816838209},{"$f":"'Res-Appliance class'!$B44*'RES S curve-connect'!AB$4+'Res-Appliance class'!$C44*'RES S curve-connect'!AB$9+'Res-Appliance class'!$D44*'RES S curve-connect'!AB$14+'Res-Appliance class'!$E44*'RES S curve-connect'!AB$19","v":1273.1130363775105},{"$f":"'Res-Appliance class'!$B44*'RES S curve-connect'!AC$4+'Res-Appliance class'!$C44*'RES S curve-connect'!AC$9+'Res-Appliance class'!$D44*'RES S curve-connect'!AC$14+'Res-Appliance class'!$E44*'RES S curve-connect'!AC$19","v":1456.2743983717673},{"$f":"'Res-Appliance class'!$B44*'RES S curve-connect'!AD$4+'Res-Appliance class'!$C44*'RES S curve-connect'!AD$9+'Res-Appliance class'!$D44*'RES S curve-connect'!AD$14+'Res-Appliance class'!$E44*'RES S curve-connect'!AD$19","v":1624.4628895829233},{"$f":"'Res-Appliance class'!$B44*'RES S curve-connect'!AE$4+'Res-Appliance class'!$C44*'RES S curve-connect'!AE$9+'Res-Appliance class'!$D44*'RES S curve-connect'!AE$14+'Res-Appliance class'!$E44*'RES S curve-connect'!AE$19","v":1803.2838700852888},{"$f":"'Res-Appliance class'!$B44*'RES S curve-connect'!AF$4+'Res-Appliance class'!$C44*'RES S curve-connect'!AF$9+'Res-Appliance class'!$D44*'RES S curve-connect'!AF$14+'Res-Appliance class'!$E44*'RES S curve-connect'!AF$19","v":2031.5413610829514},{"$f":"'Res-Appliance class'!$B44*'RES S curve-connect'!AG$4+'Res-Appliance class'!$C44*'RES S curve-connect'!AG$9+'Res-Appliance class'!$D44*'RES S curve-connect'!AG$14+'Res-Appliance class'!$E44*'RES S curve-connect'!AG$19","v":2188.4009086198394},{"$f":"'Res-Appliance class'!$B44*'RES S curve-connect'!AH$4+'Res-Appliance class'!$C44*'RES S curve-connect'!AH$9+'Res-Appliance class'!$D44*'RES S curve-connect'!AH$14+'Res-Appliance class'!$E44*'RES S curve-connect'!AH$19","v":2404.9040637965363},{"$f":"'Res-Appliance class'!$B44*'RES S curve-connect'!AI$4+'Res-Appliance class'!$C44*'RES S curve-connect'!AI$9+'Res-Appliance class'!$D44*'RES S curve-connect'!AI$14+'Res-Appliance class'!$E44*'RES S curve-connect'!AI$19","v":2603.3919548065073},{"$f":"'Res-Appliance class'!$B44*'RES S curve-connect'!AJ$4+'Res-Appliance class'!$C44*'RES S curve-connect'!AJ$9+'Res-Appliance class'!$D44*'RES S curve-connect'!AJ$14+'Res-Appliance class'!$E44*'RES S curve-connect'!AJ$19","v":2781.7098426384709},{"$f":"'Res-Appliance class'!$B44*'RES S curve-connect'!AK$4+'Res-Appliance class'!$C44*'RES S curve-connect'!AK$9+'Res-Appliance class'!$D44*'RES S curve-connect'!AK$14+'Res-Appliance class'!$E44*'RES S curve-connect'!AK$19","v":2971.1629445087219},{"$f":"'Res-Appliance class'!$B44*'RES S curve-connect'!AL$4+'Res-Appliance class'!$C44*'RES S curve-connect'!AL$9+'Res-Appliance class'!$D44*'RES S curve-connect'!AL$14+'Res-Appliance class'!$E44*'RES S curve-connect'!AL$19","v":2304.5760770218335},{"$f":"'Res-Appliance class'!$B44*'RES S curve-connect'!AM$4+'Res-Appliance class'!$C44*'RES S curve-connect'!AM$9+'Res-Appliance class'!$D44*'RES S curve-connect'!AM$14+'Res-Appliance class'!$E44*'RES S curve-connect'!AM$19","v":2223.0566861023131},{"$f":"'Res-Appliance class'!$B44*'RES S curve-connect'!AN$4+'Res-Appliance class'!$C44*'RES S curve-connect'!AN$9+'Res-Appliance class'!$D44*'RES S curve-connect'!AN$14+'Res-Appliance class'!$E44*'RES S curve-connect'!AN$19","v":2405.3608436351469},{"$f":"'Res-Appliance class'!$B44*'RES S curve-connect'!AO$4+'Res-Appliance class'!$C44*'RES S curve-connect'!AO$9+'Res-Appliance class'!$D44*'RES S curve-connect'!AO$14+'Res-Appliance class'!$E44*'RES S curve-connect'!AO$19","v":2625.5694979425612},{"$f":"'Res-Appliance class'!$B44*'RES S curve-connect'!AP$4+'Res-Appliance class'!$C44*'RES S curve-connect'!AP$9+'Res-Appliance class'!$D44*'RES S curve-connect'!AP$14+'Res-Appliance class'!$E44*'RES S curve-connect'!AP$19","v":2827.3540820927346},{"$f":"'Res-Appliance class'!$B44*'RES S curve-connect'!AQ$4+'Res-Appliance class'!$C44*'RES S curve-connect'!AQ$9+'Res-Appliance class'!$D44*'RES S curve-connect'!AQ$14+'Res-Appliance class'!$E44*'RES S curve-connect'!AQ$19","v":3046.2778992576791},{"$f":"'Res-Appliance class'!$B44*'RES S curve-connect'!AR$4+'Res-Appliance class'!$C44*'RES S curve-connect'!AR$9+'Res-Appliance class'!$D44*'RES S curve-connect'!AR$14+'Res-Appliance class'!$E44*'RES S curve-connect'!AR$19","v":3285.6944056356033},{"$f":"'Res-Appliance class'!$B44*'RES S curve-connect'!AS$4+'Res-Appliance class'!$C44*'RES S curve-connect'!AS$9+'Res-Appliance class'!$D44*'RES S curve-connect'!AS$14+'Res-Appliance class'!$E44*'RES S curve-connect'!AS$19","v":3554.1150366004563},{"$f":"'Res-Appliance class'!$B44*'RES S curve-connect'!AT$4+'Res-Appliance class'!$C44*'RES S curve-connect'!AT$9+'Res-Appliance class'!$D44*'RES S curve-connect'!AT$14+'Res-Appliance class'!$E44*'RES S curve-connect'!AT$19","v":3853.2579219153331},{"$f":"'Res-Appliance class'!$B44*'RES S curve-connect'!AU$4+'Res-Appliance class'!$C44*'RES S curve-connect'!AU$9+'Res-Appliance class'!$D44*'RES S curve-connect'!AU$14+'Res-Appliance class'!$E44*'RES S curve-connect'!AU$19","v":4200.7013187752182},{"$f":"'Res-Appliance class'!$B44*'RES S curve-connect'!AV$4+'Res-Appliance class'!$C44*'RES S curve-connect'!AV$9+'Res-Appliance class'!$D44*'RES S curve-connect'!AV$14+'Res-Appliance class'!$E44*'RES S curve-connect'!AV$19","v":4595.6540420336632},{"$f":"'Res-Appliance class'!$B44*'RES S curve-connect'!AW$4+'Res-Appliance class'!$C44*'RES S curve-connect'!AW$9+'Res-Appliance class'!$D44*'RES S curve-connect'!AW$14+'Res-Appliance class'!$E44*'RES S curve-connect'!AW$19","v":5048.98260736671},{"$f":"'Res-Appliance class'!$B44*'RES S curve-connect'!AX$4+'Res-Appliance class'!$C44*'RES S curve-connect'!AX$9+'Res-Appliance class'!$D44*'RES S curve-connect'!AX$14+'Res-Appliance class'!$E44*'RES S curve-connect'!AX$19","v":5563.9842360456732},{"$f":"'Res-Appliance class'!$B44*'RES S curve-connect'!AY$4+'Res-Appliance class'!$C44*'RES S curve-connect'!AY$9+'Res-Appliance class'!$D44*'RES S curve-connect'!AY$14+'Res-Appliance class'!$E44*'RES S curve-connect'!AY$19","v":6158.9083722013002},{"$f":"'Res-Appliance class'!$B44*'RES S curve-connect'!AZ$4+'Res-Appliance class'!$C44*'RES S curve-connect'!AZ$9+'Res-Appliance class'!$D44*'RES S curve-connect'!AZ$14+'Res-Appliance class'!$E44*'RES S curve-connect'!AZ$19","v":6836.8243317039924},{"$f":"'Res-Appliance class'!$B44*'RES S curve-connect'!BA$4+'Res-Appliance class'!$C44*'RES S curve-connect'!BA$9+'Res-Appliance class'!$D44*'RES S curve-connect'!BA$14+'Res-Appliance class'!$E44*'RES S curve-connect'!BA$19","v":7620.4325026119877},{"$f":"'Res-Appliance class'!$B44*'RES S curve-connect'!BB$4+'Res-Appliance class'!$C44*'RES S curve-connect'!BB$9+'Res-Appliance class'!$D44*'RES S curve-connect'!BB$14+'Res-Appliance class'!$E44*'RES S curve-connect'!BB$19","v":8533.3066841715772},{"$f":"'Res-Appliance class'!$B44*'RES S curve-connect'!BC$4+'Res-Appliance class'!$C44*'RES S curve-connect'!BC$9+'Res-Appliance class'!$D44*'RES S curve-connect'!BC$14+'Res-Appliance class'!$E44*'RES S curve-connect'!BC$19","v":9621.4577923364086},{"$f":"'Res-Appliance class'!$B44*'RES S curve-connect'!BD$4+'Res-Appliance class'!$C44*'RES S curve-connect'!BD$9+'Res-Appliance class'!$D44*'RES S curve-connect'!BD$14+'Res-Appliance class'!$E44*'RES S curve-connect'!BD$19","v":10664.380159160701},{"$f":"'Res-Appliance class'!$B44*'RES S curve-connect'!BE$4+'Res-Appliance class'!$C44*'RES S curve-connect'!BE$9+'Res-Appliance class'!$D44*'RES S curve-connect'!BE$14+'Res-Appliance class'!$E44*'RES S curve-connect'!BE$19","v":11615.338140438909},{"$f":"'Res-Appliance class'!$B44*'RES S curve-connect'!BF$4+'Res-Appliance class'!$C44*'RES S curve-connect'!BF$9+'Res-Appliance class'!$D44*'RES S curve-connect'!BF$14+'Res-Appliance class'!$E44*'RES S curve-connect'!BF$19","v":12589.022286400017},{"$f":"'Res-Appliance class'!$B44*'RES S curve-connect'!BG$4+'Res-Appliance class'!$C44*'RES S curve-connect'!BG$9+'Res-Appliance class'!$D44*'RES S curve-connect'!BG$14+'Res-Appliance class'!$E44*'RES S curve-connect'!BG$19","v":13693.589809217672},{"$f":"'Res-Appliance class'!$B44*'RES S curve-connect'!BH$4+'Res-Appliance class'!$C44*'RES S curve-connect'!BH$9+'Res-Appliance class'!$D44*'RES S curve-connect'!BH$14+'Res-Appliance class'!$E44*'RES S curve-connect'!BH$19","v":15003.254775867723},{"$f":"'Res-Appliance class'!$B44*'RES S curve-connect'!BI$4+'Res-Appliance class'!$C44*'RES S curve-connect'!BI$9+'Res-Appliance class'!$D44*'RES S curve-connect'!BI$14+'Res-Appliance class'!$E44*'RES S curve-connect'!BI$19","v":16902.588001990876},{"$f":"'Res-Appliance class'!$B44*'RES S curve-connect'!BJ$4+'Res-Appliance class'!$C44*'RES S curve-connect'!BJ$9+'Res-Appliance class'!$D44*'RES S curve-connect'!BJ$14+'Res-Appliance class'!$E44*'RES S curve-connect'!BJ$19","v":19676.441273561886},{"$f":"'Res-Appliance class'!$B44*'RES S curve-connect'!BK$4+'Res-Appliance class'!$C44*'RES S curve-connect'!BK$9+'Res-Appliance class'!$D44*'RES S curve-connect'!BK$14+'Res-Appliance class'!$E44*'RES S curve-connect'!BK$19","v":23758.540303350914},{"$f":"'Res-Appliance class'!$B44*'RES S curve-connect'!BL$4+'Res-Appliance class'!$C44*'RES S curve-connect'!BL$9+'Res-Appliance class'!$D44*'RES S curve-connect'!BL$14+'Res-Appliance class'!$E44*'RES S curve-connect'!BL$19","v":-125.9352298828768},{"$f":"'Res-Appliance class'!$B44*'RES S curve-connect'!BM$4+'Res-Appliance class'!$C44*'RES S curve-connect'!BM$9+'Res-Appliance class'!$D44*'RES S curve-connect'!BM$14+'Res-Appliance class'!$E44*'RES S curve-connect'!BM$19","v":-120.72824026781652},{"$f":"'Res-Appliance class'!$B44*'RES S curve-connect'!BN$4+'Res-Appliance class'!$C44*'RES S curve-connect'!BN$9+'Res-Appliance class'!$D44*'RES S curve-connect'!BN$14+'Res-Appliance class'!$E44*'RES S curve-connect'!BN$19","v":-118.86945772984387},{"$f":"'Res-Appliance class'!$B44*'RES S curve-connect'!BO$4+'Res-Appliance class'!$C44*'RES S curve-connect'!BO$9+'Res-Appliance class'!$D44*'RES S curve-connect'!BO$14+'Res-Appliance class'!$E44*'RES S curve-connect'!BO$19","v":-110.33757536686048},{"$f":"'Res-Appliance class'!$B44*'RES S curve-connect'!BP$4+'Res-Appliance class'!$C44*'RES S curve-connect'!BP$9+'Res-Appliance class'!$D44*'RES S curve-connect'!BP$14+'Res-Appliance class'!$E44*'RES S curve-connect'!BP$19","v":-105.15380567595236},{"$f":"'Res-Appliance class'!$B44*'RES S curve-connect'!BQ$4+'Res-Appliance class'!$C44*'RES S curve-connect'!BQ$9+'Res-Appliance class'!$D44*'RES S curve-connect'!BQ$14+'Res-Appliance class'!$E44*'RES S curve-connect'!BQ$19","v":-99.977682045923103},{"$f":"'Res-Appliance class'!$B44*'RES S curve-connect'!BR$4+'Res-Appliance class'!$C44*'RES S curve-connect'!BR$9+'Res-Appliance class'!$D44*'RES S curve-connect'!BR$14+'Res-Appliance class'!$E44*'RES S curve-connect'!BR$19","v":-98.149577858791446},{"$f":"'Res-Appliance class'!$B44*'RES S curve-connect'!BS$4+'Res-Appliance class'!$C44*'RES S curve-connect'!BS$9+'Res-Appliance class'!$D44*'RES S curve-connect'!BS$14+'Res-Appliance class'!$E44*'RES S curve-connect'!BS$19","v":-89.648187384586777},{"$f":"'Res-Appliance class'!$B44*'RES S curve-connect'!BT$4+'Res-Appliance class'!$C44*'RES S curve-connect'!BT$9+'Res-Appliance class'!$D44*'RES S curve-connect'!BT$14+'Res-Appliance class'!$E44*'RES S curve-connect'!BT$19","v":-84.494724285100432},{"$f":"'Res-Appliance class'!$B44*'RES S curve-connect'!BU$4+'Res-Appliance class'!$C44*'RES S curve-connect'!BU$9+'Res-Appliance class'!$D44*'RES S curve-connect'!BU$14+'Res-Appliance class'!$E44*'RES S curve-connect'!BU$19","v":-79.348723106471368},{"$f":"'Res-Appliance class'!$B44*'RES S curve-connect'!BV$4+'Res-Appliance class'!$C44*'RES S curve-connect'!BV$9+'Res-Appliance class'!$D44*'RES S curve-connect'!BV$14+'Res-Appliance class'!$E44*'RES S curve-connect'!BV$19","v":-77.550558380731957},{"$f":"'Res-Appliance class'!$B44*'RES S curve-connect'!BW$4+'Res-Appliance class'!$C44*'RES S curve-connect'!BW$9+'Res-Appliance class'!$D44*'RES S curve-connect'!BW$14+'Res-Appliance class'!$E44*'RES S curve-connect'!BW$19","v":-69.078925520643025},{"$f":"'Res-Appliance class'!$B44*'RES S curve-connect'!BX$4+'Res-Appliance class'!$C44*'RES S curve-connect'!BX$9+'Res-Appliance class'!$D44*'RES S curve-connect'!BX$14+'Res-Appliance class'!$E44*'RES S curve-connect'!BX$19","v":-63.955039323501609},{"$f":"'Res-Appliance class'!$B44*'RES S curve-connect'!BY$4+'Res-Appliance class'!$C44*'RES S curve-connect'!BY$9+'Res-Appliance class'!$D44*'RES S curve-connect'!BY$14+'Res-Appliance class'!$E44*'RES S curve-connect'!BY$19","v":-58.838435463765165},{"$f":"'Res-Appliance class'!$B44*'RES S curve-connect'!BZ$4+'Res-Appliance class'!$C44*'RES S curve-connect'!BZ$9+'Res-Appliance class'!$D44*'RES S curve-connect'!BZ$14+'Res-Appliance class'!$E44*'RES S curve-connect'!BZ$19","v":-57.069489594643386},{"$f":"'Res-Appliance class'!$B44*'RES S curve-connect'!CA$4+'Res-Appliance class'!$C44*'RES S curve-connect'!CA$9+'Res-Appliance class'!$D44*'RES S curve-connect'!CA$14+'Res-Appliance class'!$E44*'RES S curve-connect'!CA$19","v":-48.626898242983202},{"$f":"'Res-Appliance class'!$B44*'RES S curve-connect'!CB$4+'Res-Appliance class'!$C44*'RES S curve-connect'!CB$9+'Res-Appliance class'!$D44*'RES S curve-connect'!CB$14+'Res-Appliance class'!$E44*'RES S curve-connect'!CB$19","v":-43.531877313116183},{"$f":"'Res-Appliance class'!$B44*'RES S curve-connect'!CC$4+'Res-Appliance class'!$C44*'RES S curve-connect'!CC$9+'Res-Appliance class'!$D44*'RES S curve-connect'!CC$14+'Res-Appliance class'!$E44*'RES S curve-connect'!CC$19","v":-38.443963579533431},{"$f":"'Res-Appliance class'!$B44*'RES S curve-connect'!CD$4+'Res-Appliance class'!$C44*'RES S curve-connect'!CD$9+'Res-Appliance class'!$D44*'RES S curve-connect'!CD$14+'Res-Appliance class'!$E44*'RES S curve-connect'!CD$19","v":-114.67949340771781}]
["Whitehorse (C)",null,{"$f":"'Res-Appliance class'!$B45*'RES S curve-connect'!C$4+'Res-Appliance class'!$C45*'RES S curve-connect'!C$9+'Res-Appliance class'!$D45*'RES S curve-connect'!C$14+'Res-Appliance class'!$E45*'RES S curve-connect'!C$19","v":-2974.3660639511463},{"$f":"'Res-Appliance class'!$B45*'RES S curve-connect'!D$4+'Res-Appliance class'!$C45*'RES S curve-connect'!D$9+'Res-Appliance class'!$D45*'RES S curve-connect'!D$14+'Res-Appliance class'!$E45*'RES S curve-connect'!D$19","v":-3491.2959566333202},{"$f":"'Res-Appliance class'!$B45*'RES S curve-connect'!E$4+'Res-Appliance class'!$C45*'RES S curve-connect'!E$9+'Res-Appliance class'!$D45*'RES S curve-connect'!E$14+'Res-Appliance class'!$E45*'RES S curve-connect'!E$19","v":-2773.4498343794908},{"$f":"'Res-Appliance class'!$B45*'RES S curve-connect'!F$4+'Res-Appliance class'!$C45*'RES S curve-connect'!F$9+'Res-Appliance class'!$D45*'RES S curve-connect'!F$14+'Res-Appliance class'!$E45*'RES S curve-connect'!F$19","v":-2618.7930583806528},{"$f":"'Res-Appliance class'!$B45*'RES S curve-connect'!G$4+'Res-Appliance class'!$C45*'RES S curve-connect'!G$9+'Res-Appliance class'!$D45*'RES S curve-connect'!G$14+'Res-Appliance class'!$E45*'RES S curve-connect'!G$19","v":-3832.8154267026753},{"$f":"'Res-Appliance class'!$B45*'RES S curve-connect'!H$4+'Res-Appliance class'!$C45*'RES S curve-connect'!H$9+'Res-Appliance class'!$D45*'RES S curve-connect'!H$14+'Res-Appliance class'!$E45*'RES S curve-connect'!H$19","v":-3866.3849077549239},{"$f":"'Res-Appliance class'!$B45*'RES S curve-connect'!I$4+'Res-Appliance class'!$C45*'RES S curve-connect'!I$9+'Res-Appliance class'!$D45*'RES S curve-connect'!I$14+'Res-Appliance class'!$E45*'RES S curve-connect'!I$19","v":-3428.448870546702},{"$f":"'Res-Appliance class'!$B45*'RES S curve-connect'!J$4+'Res-Appliance class'!$C45*'RES S curve-connect'!J$9+'Res-Appliance class'!$D45*'RES S curve-connect'!J$14+'Res-Appliance class'!$E45*'RES S curve-connect'!J$19","v":-3767.2207963550104},{"$f":"'Res-Appliance class'!$B45*'RES S curve-connect'!K$4+'Res-Appliance class'!$C45*'RES S curve-connect'!K$9+'Res-Appliance class'!$D45*'RES S curve-connect'!K$14+'Res-Appliance class'!$E45*'RES S curve-connect'!K$19","v":-2942.4623471876912},{"$f":"'Res-Appliance class'!$B45*'RES S curve-connect'!L$4+'Res-Appliance class'!$C45*'RES S curve-connect'!L$9+'Res-Appliance class'!$D45*'RES S curve-connect'!L$14+'Res-Appliance class'!$E45*'RES S curve-connect'!L$19","v":-3293.561023966246},{"$f":"'Res-Appliance class'!$B45*'RES S curve-connect'!M$4+'Res-Appliance class'!$C45*'RES S curve-connect'!M$9+'Res-Appliance class'!$D45*'RES S curve-connect'!M$14+'Res-Appliance class'!$E45*'RES S curve-connect'!M$19","v":-3931.9913140237823},{"$f":"'Res-Appliance class'!$B45*'RES S curve-connect'!N$4+'Res-Appliance class'!$C45*'RES S curve-connect'!N$9+'Res-Appliance class'!$D45*'RES S curve-connect'!N$14+'Res-Appliance class'!$E45*'RES S curve-connect'!N$19","v":-3990.1246935381951},{"$f":"'Res-Appliance class'!$B45*'RES S curve-connect'!O$4+'Res-Appliance class'!$C45*'RES S curve-connect'!O$9+'Res-Appliance class'!$D45*'RES S curve-connect'!O$14+'Res-Appliance class'!$E45*'RES S curve-connect'!O$19","v":-3422.7421376241914},{"$f":"'Res-Appliance class'!$B45*'RES S curve-connect'!P$4+'Res-Appliance class'!$C45*'RES S curve-connect'!P$9+'Res-Appliance class'!$D45*'RES S curve-connect'!P$14+'Res-Appliance class'!$E45*'RES S curve-connect'!P$19","v":-2970.499726698009},{"$f":"'Res-Appliance class'!$B45*'RES S curve-connect'!Q$4+'Res-Appliance class'!$C45*'RES S curve-connect'!Q$9+'Res-Appliance class'!$D45*'RES S curve-connect'!Q$14+'Res-Appliance class'!$E45*'RES S curve-connect'!Q$19","v":-2288.2959814735304},{"$f":"'Res-Appliance class'!$B45*'RES S curve-connect'!R$4+'Res-Appliance class'!$C45*'RES S curve-connect'!R$9+'Res-Appliance class'!$D45*'RES S curve-connect'!R$14+'Res-Appliance class'!$E45*'RES S curve-connect'!R$19","v":-1900.660873335115},{"$f":"'Res-Appliance class'!$B45*'RES S curve-connect'!S$4+'Res-Appliance class'!$C45*'RES S curve-connect'!S$9+'Res-Appliance class'!$D45*'RES S curve-connect'!S$14+'Res-Appliance class'!$E45*'RES S curve-connect'!S$19","v":-1285.5238563511084},{"$f":"'Res-Appliance class'!$B45*'RES S curve-connect'!T$4+'Res-Appliance class'!$C45*'RES S curve-connect'!T$9+'Res-Appliance class'!$D45*'RES S curve-connect'!T$14+'Res-Appliance class'!$E45*'RES S curve-connect'!T$19","v":-950.03522938999163},{"$f":"'Res-Appliance class'!$B45*'RES S curve-connect'!U$4+'Res-Appliance class'!$C45*'RES S curve-connect'!U$9+'Res-Appliance class'!$D45*'RES S curve-connect'!U$14+'Res-Appliance class'!$E45*'RES S curve-connect'!U$19","v":-567.3663113739949},{"$f":"'Res-Appliance class'!$B45*'RES S curve-connect'!V$4+'Res-Appliance class'!$C45*'RES S curve-connect'!V$9+'Res-Appliance class'!$D45*'RES S curve-connect'!V$14+'Res-Appliance class'!$E45*'RES S curve-connect'!V$19","v":-305.53966321726642},{"$f":"'Res-Appliance class'!$B45*'RES S curve-connect'!W$4+'Res-Appliance class'!$C45*'RES S curve-connect'!W$9+'Res-Appliance class'!$D45*'RES S curve-connect'!W$14+'Res-Appliance class'!$E45*'RES S curve-connect'!W$19","v":-101.08852909399815},{"$f":"'Res-Appliance class'!$B45*'RES S curve-connect'!X$4+'Res-Appliance class'!$C45*'RES S curve-connect'!X$9+'Res-Appliance class'!$D45*'RES S curve-connect'!X$14+'Res-Appliance class'!$E45*'RES S curve-connect'!X$19","v":359.90102633079499},{"$f":"'Res-Appliance class'!$B45*'RES S curve-connect'!Y$4+'Res-Appliance class'!$C45*'RES S curve-connect'!Y$9+'Res-Appliance class'!$D45*'RES S curve-connect'!Y$14+'Res-Appliance class'!$E45*'RES S curve-connect'!Y$19","v":826.27211851937068},{"$f":"'Res-Appliance class'!$B45*'RES S curve-connect'!Z$4+'Res-Appliance class'!$C45*'RES S curve-connect'!Z$9+'Res-Appliance class'!$D45*'RES S curve-connect'!Z$14+'Res-Appliance class'!$E45*'RES S curve-connect'!Z$19","v":1142.5478195060134},{"$f":"'Res-Appliance class'!$B45*'RES S curve-connect'!AA$4+'Res-Appliance class'!$C45*'RES S curve-connect'!AA$9+'Res-Appliance class'!$D45*'RES S curve-connect'!AA$14+'Res-Appliance class'!$E45*'RES S curve-connect'!AA$19","v":1458.824393194554},{"$f":"'Res-Appliance class'!$B45*'RES S curve-connect'!AB$4+'Res-Appliance class'!$C45*'RES S curve-connect'!AB$9+'Res-Appliance class'!$D45*'RES S curve-connect'!AB$14+'Res-Appliance class'!$E45*'RES S curve-connect'!AB$19","v":1711.6367680870458},{"$f":"'Res-Appliance class'!$B45*'RES S curve-connect'!AC$4+'Res-Appliance class'!$C45*'RES S curve-connect'!AC$9+'Res-Appliance class'!$D45*'RES S curve-connect'!AC$14+'Res-Appliance class'!$E45*'RES S curve-connect'!AC$19","v":1955.2483674898615},{"$f":"'Res-Appliance class'!$B45*'RES S curve-connect'!AD$4+'Res-Appliance class'!$C45*'RES S curve-connect'!AD$9+'Res-Appliance class'!$D45*'RES S curve-connect'!AD$14+'Res-Appliance class'!$E45*'RES S curve-connect'!AD$19","v":2178.8422964441706},{"$f":"'Res-Appliance class'!$B45*'RES S curve-connect'!AE$4+'Res-Appliance class'!$C45*'RES S curve-connect'!AE$9+'Res-Appliance class'!$D45*'RES S curve-connect'!AE$14+'Res-Appliance class'!$E45*'RES S curve-connect'!AE$19","v":2413.7371578846632},{"$f":"'Res-Appliance class'!$B45*'RES S curve-connect'!AF$4+'Res-Appliance class'!$C45*'RES S curve-connect'!AF$9+'Res-Appliance class'!$D45*'RES S curve-connect'!AF$14+'Res-Appliance class'!$E45*'RES S curve-connect'!AF$19","v":2717.1983539468047},{"$f":"'Res-Appliance class'!$B45*'RES S curve-connect'!AG$4+'Res-Appliance class'!$C45*'RES S curve-connect'!AG$9+'Res-Appliance class'!$D45*'RES S curve-connect'!AG$14+'Res-Appliance class'!$E45*'RES S curve-connect'!AG$19","v":2924.9994974835927},{"$f":"'Res-Appliance class'!$B45*'RES S curve-connect'!AH$4+'Res-Appliance class'!$C45*'RES S curve-connect'!AH$9+'Res-Appliance class'!$D45*'RES S curve-connect'!AH$14+'Res-Appliance class'!$E45*'RES S curve-connect'!AH$19","v":3217.4873498591855},{"$f":"'Res-Appliance class'!$B45*'RES S curve-connect'!AI$4+'Res-Appliance class'!$C45*'RES S curve-connect'!AI$9+'Res-Appliance class'!$D45*'RES S curve-connect'!AI$14+'Res-Appliance class'!$E45*'RES S curve-connect'!AI$19","v":3480.3350289115747},{"$f":"'Res-Appliance class'!$B45*'RES S curve-connect'!AJ$4+'Res-Appliance class'!$C45*'RES S curve-connect'!AJ$9+'Res-Appliance class'!$D45*'RES S curve-connect'!AJ$14+'Res-Appliance class'!$E45*'RES S curve-connect'!AJ$19","v":3717.5662036160006},{"$f":"'Res-Appliance class'!$B45*'RES S curve-connect'!AK$4+'Res-Appliance class'!$C45*'RES S curve-connect'!AK$9+'Res-Appliance class'!$D45*'RES S curve-connect'!AK$14+'Res-Appliance class'!$E45*'RES S curve-connect'!AK$19","v":3969.4181306290534},{"$f":"'Res-Appliance class'!$B45*'RES S curve-connect'!AL$4+'Res-Appliance class'!$C45*'RES S curve-connect'!AL$9+'Res-Appliance class'!$D45*'RES S curve-connect'!AL$14+'Res-Appliance class'!$E45*'RES S curve-connect'!AL$19","v":3097.7993519533547},{"$f":"'Res-Appliance class'!$B45*'RES S curve-connect'!AM$4+'Res-Appliance class'!$C45*'RES S curve-connect'!AM$9+'Res-Appliance class'!$D45*'RES S curve-connect'!AM$14+'Res-Appliance class'!$E45*'RES S curve-connect'!AM$19","v":2983.538445918105},{"$f":"'Res-Appliance class'!$B45*'RES S curve-connect'!AN$4+'Res-Appliance class'!$C45*'RES S curve-connect'!AN$9+'Res-Appliance class'!$D45*'RES S curve-connect'!AN$14+'Res-Appliance class'!$E45*'RES S curve-connect'!AN$19","v":3221.8386509815132},{"$f":"'Res-Appliance class'!$B45*'RES S curve-connect'!AO$4+'Res-Appliance class'!$C45*'RES S curve-connect'!AO$9+'Res-Appliance class'!$D45*'RES S curve-connect'!AO$14+'Res-Appliance class'!$E45*'RES S curve-connect'!AO$19","v":3513.4258312365059},{"$f":"'Res-Appliance class'!$B45*'RES S curve-connect'!AP$4+'Res-Appliance class'!$C45*'RES S curve-connect'!AP$9+'Res-Appliance class'!$D45*'RES S curve-connect'!AP$14+'Res-Appliance class'!$E45*'RES S curve-connect'!AP$19","v":3782.8829884619859},{"$f":"'Res-Appliance class'!$B45*'RES S curve-connect'!AQ$4+'Res-Appliance class'!$C45*'RES S curve-connect'!AQ$9+'Res-Appliance class'!$D45*'RES S curve-connect'!AQ$14+'Res-Appliance class'!$E45*'RES S curve-connect'!AQ$19","v":4072.9053649424004},{"$f":"'Res-Appliance class'!$B45*'RES S curve-connect'!AR$4+'Res-Appliance class'!$C45*'RES S curve-connect'!AR$9+'Res-Appliance class'!$D45*'RES S curve-connect'!AR$14+'Res-Appliance class'!$E45*'RES S curve-connect'!AR$19","v":4391.4015991541546},{"$f":"'Res-Appliance class'!$B45*'RES S curve-connect'!AS$4+'Res-Appliance class'!$C45*'RES S curve-connect'!AS$9+'Res-Appliance class'!$D45*'RES S curve-connect'!AS$14+'Res-Appliance class'!$E45*'RES S curve-connect'!AS$19","v":4748.8146268837663},{"$f":"'Res-Appliance class'!$B45*'RES S curve-connect'!AT$4+'Res-Appliance class'!$C45*'RES S curve-connect'!AT$9+'Res-Appliance class'!$D45*'RES S curve-connect'!AT$14+'Res-Appliance class'!$E45*'RES S curve-connect'!AT$19","v":5148.6723800843538},{"$f":"'Res-Appliance class'!$B45*'RES S curve-connect'!AU$4+'Res-Appliance class'!$C45*'RES S curve-connect'!AU$9+'Res-Appliance class'!$D45*'RES S curve-connect'!AU$14+'Res-Appliance class'!$E45*'RES S curve-connect'!AU$19","v":5611.1908573269757},{"$f":"'Res-Appliance class'!$B45*'RES S curve-connect'!AV$4+'Res-Appliance class'!$C45*'RES S curve-connect'!AV$9+'Res-Appliance class'!$D45*'RES S curve-connect'!AV$14+'Res-Appliance class'!$E45*'RES S curve-connect'!AV$19","v":6138.8590989483782},{"$f":"'Res-Appliance class'!$B45*'RES S curve-connect'!AW$4+'Res-Appliance class'!$C45*'RES S curve-connect'!AW$9+'Res-Appliance class'!$D45*'RES S curve-connect'!AW$14+'Res-Appliance class'!$E45*'RES S curve-connect'!AW$19","v":6745.4112026037365},{"$f":"'Res-Appliance class'!$B45*'RES S curve-connect'!AX$4+'Res-Appliance class'!$C45*'RES S curve-connect'!AX$9+'Res-Appliance class'!$D45*'RES S curve-connect'!AX$14+'Res-Appliance class'!$E45*'RES S curve-connect'!AX$19","v":7436.8103156138586},{"$f":"'Res-Appliance class'!$B45*'RES S curve-connect'!AY$4+'Res-Appliance class'!$C45*'RES S curve-connect'!AY$9+'Res-Appliance class'!$D45*'RES S curve-connect'!AY$14+'Res-Appliance class'!$E45*'RES S curve-connect'!AY$19","v":8234.5483582434535},{"$f":"'Res-Appliance class'!$B45*'RES S curve-connect'!AZ$4+'Res-Appliance class'!$C45*'RES S curve-connect'!AZ$9+'Res-Appliance class'!$D45*'RES S curve-connect'!AZ$14+'Res-Appliance class'!$E45*'RES S curve-connect'!AZ$19","v":9146.6505411278958},{"$f":"'Res-Appliance class'!$B45*'RES S curve-connect'!BA$4+'Res-Appliance class'!$C45*'RES S curve-connect'!BA$9+'Res-Appliance class'!$D45*'RES S curve-connect'!BA$14+'Res-Appliance class'!$E45*'RES S curve-connect'!BA$19","v":10203.065495624904},{"$f":"'Res-Appliance class'!$B45*'RES S curve-connect'!BB$4+'Res-Appliance class'!$C45*'RES S curve-connect'!BB$9+'Res-Appliance class'!$D45*'RES S curve-connect'!BB$14+'Res-Appliance class'!$E45*'RES S curve-connect'!BB$19","v":11437.501456818802},{"$f":"'Res-Appliance class'!$B45*'RES S curve-connect'!BC$4+'Res-Appliance class'!$C45*'RES S curve-connect'!BC$9+'Res-Appliance class'!$D45*'RES S curve-connect'!BC$14+'Res-Appliance class'!$E45*'RES S curve-connect'!BC$19","v":12909.619044508843},{"$f":"'Res-Appliance class'!$B45*'RES S curve-connect'!BD$4+'Res-Appliance class'!$C45*'RES S curve-connect'!BD$9+'Res-Appliance class'!$D45*'RES S curve-connect'!BD$14+'Res-Appliance class'!$E45*'RES S curve-connect'!BD$19","v":14330.314022682207},{"$f":"'Res-Appliance class'!$B45*'RES S curve-connect'!BE$4+'Res-Appliance class'!$C45*'RES S curve-connect'!BE$9+'Res-Appliance class'!$D45*'RES S curve-connect'!BE$14+'Res-Appliance class'!$E45*'RES S curve-connect'!BE$19","v":15629.025536575929},{"$f":"'Res-Appliance class'!$B45*'RES S curve-connect'!BF$4+'Res-Appliance class'!$C45*'RES S curve-connect'!BF$9+'Res-Appliance class'!$D45*'RES S curve-connect'!BF$14+'Res-Appliance class'!$E45*'RES S curve-connect'!BF$19","v":16957.795869430847},{"$f":"'Res-Appliance class'!$B45*'RES S curve-connect'!BG$4+'Res-Appliance class'!$C45*'RES S curve-connect'!BG$9+'Res-Appliance class'!$D45*'RES S curve-connect'!BG$14+'Res-Appliance class'!$E45*'RES S curve-connect'!BG$19","v":18461.454718552435},{"$f":"'Res-Appliance class'!$B45*'RES S curve-connect'!BH$4+'Res-Appliance class'!$C45*'RES S curve-connect'!BH$9+'Res-Appliance class'!$D45*'RES S curve-connect'!BH$14+'Res-Appliance class'!$E45*'RES S curve-connect'!BH$19","v":20246.507625758743},{"$f":"'Res-Appliance class'!$B45*'RES S curve-connect'!BI$4+'Res-Appliance class'!$C45*'RES S curve-connect'!BI$9+'Res-Appliance class'!$D45*'RES S curve-connect'!BI$14+'Res-Appliance class'!$E45*'RES S curve-connect'!BI$19","v":22832.915244019372},{"$f":"'Res-Appliance class'!$B45*'RES S curve-connect'!BJ$4+'Res-Appliance class'!$C45*'RES S curve-connect'!BJ$9+'Res-Appliance class'!$D45*'RES S curve-connect'!BJ$14+'Res-Appliance class'!$E45*'RES S curve-connect'!BJ$19","v":26621.499821992184},{"$f":"'Res-Appliance class'!$B45*'RES S curve-connect'!BK$4+'Res-Appliance class'!$C45*'RES S curve-connect'!BK$9+'Res-Appliance class'!$D45*'RES S curve-connect'!BK$14+'Res-Appliance class'!$E45*'RES S curve-connect'!BK$19","v":32213.643611453932},{"$f":"'Res-Appliance class'!$B45*'RES S curve-connect'!BL$4+'Res-Appliance class'!$C45*'RES S curve-connect'!BL$9+'Res-Appliance class'!$D45*'RES S curve-connect'!BL$14+'Res-Appliance class'!$E45*'RES S curve-connect'!BL$19","v":-91.152166040347936},{"$f":"'Res-Appliance class'!$B45*'RES S curve-connect'!BM$4+'Res-Appliance class'!$C45*'RES S curve-connect'!BM$9+'Res-Appliance class'!$D45*'RES S curve-connect'!BM$14+'Res-Appliance class'!$E45*'RES S curve-connect'!BM$19","v":-84.070232482132951},{"$f":"'Res-Appliance class'!$B45*'RES S curve-connect'!BN$4+'Res-Appliance class'!$C45*'RES S curve-connect'!BN$9+'Res-Appliance class'!$D45*'RES S curve-connect'!BN$14+'Res-Appliance class'!$E45*'RES S curve-connect'!BN$19","v":-80.338570791054849},{"$f":"'Res-Appliance class'!$B45*'RES S curve-connect'!BO$4+'Res-Appliance class'!$C45*'RES S curve-connect'!BO$9+'Res-Appliance class'!$D45*'RES S curve-connect'!BO$14+'Res-Appliance class'!$E45*'RES S curve-connect'!BO$19","v":-69.935862062966919},{"$f":"'Res-Appliance class'!$B45*'RES S curve-connect'!BP$4+'Res-Appliance class'!$C45*'RES S curve-connect'!BP$9+'Res-Appliance class'!$D45*'RES S curve-connect'!BP$14+'Res-Appliance class'!$E45*'RES S curve-connect'!BP$19","v":-62.883306866205601},{"$f":"'Res-Appliance class'!$B45*'RES S curve-connect'!BQ$4+'Res-Appliance class'!$C45*'RES S curve-connect'!BQ$9+'Res-Appliance class'!$D45*'RES S curve-connect'!BQ$14+'Res-Appliance class'!$E45*'RES S curve-connect'!BQ$19","v":-55.840426733661047},{"$f":"'Res-Appliance class'!$B45*'RES S curve-connect'!BR$4+'Res-Appliance class'!$C45*'RES S curve-connect'!BR$9+'Res-Appliance class'!$D45*'RES S curve-connect'!BR$14+'Res-Appliance class'!$E45*'RES S curve-connect'!BR$19","v":-52.147583263821161},{"$f":"'Res-Appliance class'!$B45*'RES S curve-connect'!BS$4+'Res-Appliance class'!$C45*'RES S curve-connect'!BS$9+'Res-Appliance class'!$D45*'RES S curve-connect'!BS$14+'Res-Appliance class'!$E45*'RES S curve-connect'!BS$19","v":-41.783459015112612},{"$f":"'Res-Appliance class'!$B45*'RES S curve-connect'!BT$4+'Res-Appliance class'!$C45*'RES S curve-connect'!BT$9+'Res-Appliance class'!$D45*'RES S curve-connect'!BT$14+'Res-Appliance class'!$E45*'RES S curve-connect'!BT$19","v":-34.769256009202422},{"$f":"'Res-Appliance class'!$B45*'RES S curve-connect'!BU$4+'Res-Appliance class'!$C45*'RES S curve-connect'!BU$9+'Res-Appliance class'!$D45*'RES S curve-connect'!BU$14+'Res-Appliance class'!$E45*'RES S curve-connect'!BU$19","v":-27.764497223135493},{"$f":"'Res-Appliance class'!$B45*'RES S curve-connect'!BV$4+'Res-Appliance class'!$C45*'RES S curve-connect'!BV$9+'Res-Appliance class'!$D45*'RES S curve-connect'!BV$14+'Res-Appliance class'!$E45*'RES S curve-connect'!BV$19","v":-24.109545690437869},{"$f":"'Res-Appliance class'!$B45*'RES S curve-connect'!BW$4+'Res-Appliance class'!$C45*'RES S curve-connect'!BW$9+'Res-Appliance class'!$D45*'RES S curve-connect'!BW$14+'Res-Appliance class'!$E45*'RES S curve-connect'!BW$19","v":-13.783085395507158},{"$f":"'Res-Appliance class'!$B45*'RES S curve-connect'!BX$4+'Res-Appliance class'!$C45*'RES S curve-connect'!BX$9+'Res-Appliance class'!$D45*'RES S curve-connect'!BX$14+'Res-Appliance class'!$E45*'RES S curve-connect'!BX$19","v":-6.8063197769842532},{"$f":"'Res-Appliance class'!$B45*'RES S curve-connect'!BY$4+'Res-Appliance class'!$C45*'RES S curve-connect'!BY$9+'Res-Appliance class'!$D45*'RES S curve-connect'!BY$14+'Res-Appliance class'!$E45*'RES S curve-connect'!BY$19","v":0.16122678006070146},{"$f":"'Res-Appliance class'!$B45*'RES S curve-connect'!BZ$4+'Res-Appliance class'!$C45*'RES S curve-connect'!BZ$9+'Res-Appliance class'!$D45*'RES S curve-connect'!BZ$14+'Res-Appliance class'!$E45*'RES S curve-connect'!BZ$19","v":3.7791898429686626},{"$f":"'Res-Appliance class'!$B45*'RES S curve-connect'!CA$4+'Res-Appliance class'!$C45*'RES S curve-connect'!CA$9+'Res-Appliance class'!$D45*'RES S curve-connect'!CA$14+'Res-Appliance class'!$E45*'RES S curve-connect'!CA$19","v":14.068884037038856},{"$f":"'Res-Appliance class'!$B45*'RES S curve-connect'!CB$4+'Res-Appliance class'!$C45*'RES S curve-connect'!CB$9+'Res-Appliance class'!$D45*'RES S curve-connect'!CB$14+'Res-Appliance class'!$E45*'RES S curve-connect'!CB$19","v":21.009104542107366},{"$f":"'Res-Appliance class'!$B45*'RES S curve-connect'!CC$4+'Res-Appliance class'!$C45*'RES S curve-connect'!CC$9+'Res-Appliance class'!$D45*'RES S curve-connect'!CC$14+'Res-Appliance class'!$E45*'RES S curve-connect'!CC$19","v":27.940325600298479},{"$f":"'Res-Appliance class'!$B45*'RES S curve-connect'!CD$4+'Res-Appliance class'!$C45*'RES S curve-connect'!CD$9+'Res-Appliance class'!$D45*'RES S curve-connect'!CD$14+'Res-Appliance class'!$E45*'RES S curve-connect'!CD$19","v":-77.81017462107377}]
["Yarra Ranges (S)",null,{"$f":"'Res-Appliance class'!$B46*'RES S curve-connect'!C$4+'Res-Appliance class'!$C46*'RES S curve-connect'!C$9+'Res-Appliance class'!$D46*'RES S curve-connect'!C$14+'Res-Appliance class'!$E46*'RES S curve-connect'!C$19","v":-3035.7697611722001},{"$f":"'Res-Appliance class'!$B46*'RES S curve-connect'!D$4+'Res-Appliance class'!$C46*'RES S curve-connect'!D$9+'Res-Appliance class'!$D46*'RES S curve-connect'!D$14+'Res-Appliance class'!$E46*'RES S curve-connect'!D$19","v":-3577.5107508291808},{"$f":"'Res-Appliance class'!$B46*'RES S curve-connect'!E$4+'Res-Appliance class'!$C46*'RES S curve-connect'!E$9+'Res-Appliance class'!$D46*'RES S curve-connect'!E$14+'Res-Appliance class'!$E46*'RES S curve-connect'!E$19","v":-2808.1722518675424},{"$f":"'Res-Appliance class'!$B46*'RES S curve-connect'!F$4+'Res-Appliance class'!$C46*'RES S curve-connect'!F$9+'Res-Appliance class'!$D46*'RES S curve-connect'!F$14+'Res-Appliance class'!$E46*'RES S curve-connect'!F$19","v":-2644.5116991839136},{"$f":"'Res-Appliance class'!$B46*'RES S curve-connect'!G$4+'Res-Appliance class'!$C46*'RES S curve-connect'!G$9+'Res-Appliance class'!$D46*'RES S curve-connect'!G$14+'Res-Appliance class'!$E46*'RES S curve-connect'!G$19","v":-3968.7918097870179},{"$f":"'Res-Appliance class'!$B46*'RES S curve-connect'!H$4+'Res-Appliance class'!$C46*'RES S curve-connect'!H$9+'Res-Appliance class'!$D46*'RES S curve-connect'!H$14+'Res-Appliance class'!$E46*'RES S curve-connect'!H$19","v":-3996.3611677482213},{"$f":"'Res-Appliance class'!$B46*'RES S curve-connect'!I$4+'Res-Appliance class'!$C46*'RES S curve-connect'!I$9+'Res-Appliance class'!$D46*'RES S curve-connect'!I$14+'Res-Appliance class'!$E46*'RES S curve-connect'!I$19","v":-3533.2620090653659},{"$f":"'Res-Appliance class'!$B46*'RES S curve-connect'!J$4+'Res-Appliance class'!$C46*'RES S curve-connect'!J$9+'Res-Appliance class'!$D46*'RES S curve-connect'!J$14+'Res-Appliance class'!$E46*'RES S curve-connect'!J$19","v":-3866.8082855123521},{"$f":"'Res-Appliance class'!$B46*'RES S curve-connect'!K$4+'Res-Appliance class'!$C46*'RES S curve-connect'!K$9+'Res-Appliance class'!$D46*'RES S curve-connect'!K$14+'Res-Appliance class'!$E46*'RES S curve-connect'!K$19","v":-2999.8330189799753},{"$f":"'Res-Appliance class'!$B46*'RES S curve-connect'!L$4+'Res-Appliance class'!$C46*'RES S curve-connect'!L$9+'Res-Appliance class'!$D46*'RES S curve-connect'!L$14+'Res-Appliance class'!$E46*'RES S curve-connect'!L$19","v":-3368.8187266692539},{"$f":"'Res-Appliance class'!$B46*'RES S curve-connect'!M$4+'Res-Appliance class'!$C46*'RES S curve-connect'!M$9+'Res-Appliance class'!$D46*'RES S curve-connect'!M$14+'Res-Appliance class'!$E46*'RES S curve-connect'!M$19","v":-4048.6201536876397},{"$f":"'Res-Appliance class'!$B46*'RES S curve-connect'!N$4+'Res-Appliance class'!$C46*'RES S curve-connect'!N$9+'Res-Appliance class'!$D46*'RES S curve-connect'!N$14+'Res-Appliance class'!$E46*'RES S curve-connect'!N$19","v":-4111.1039710339346},{"$f":"'Res-Appliance class'!$B46*'RES S curve-connect'!O$4+'Res-Appliance class'!$C46*'RES S curve-connect'!O$9+'Res-Appliance class'!$D46*'RES S curve-connect'!O$14+'Res-Appliance class'!$E46*'RES S curve-connect'!O$19","v":-3513.8943237124868},{"$f":"'Res-Appliance class'!$B46*'RES S curve-connect'!P$4+'Res-Appliance class'!$C46*'RES S curve-connect'!P$9+'Res-Appliance class'!$D46*'RES S curve-connect'!P$14+'Res-Appliance class'!$E46*'RES S curve-connect'!P$19","v":-3037.0220602119352},{"$f":"'Res-Appliance class'!$B46*'RES S curve-connect'!Q$4+'Res-Appliance class'!$C46*'RES S curve-connect'!Q$9+'Res-Appliance class'!$D46*'RES S curve-connect'!Q$14+'Res-Appliance class'!$E46*'RES S curve-connect'!Q$19","v":-2317.2254864013021},{"$f":"'Res-Appliance class'!$B46*'RES S curve-connect'!R$4+'Res-Appliance class'!$C46*'RES S curve-connect'!R$9+'Res-Appliance class'!$D46*'RES S curve-connect'!R$14+'Res-Appliance class'!$E46*'RES S curve-connect'!R$19","v":-1908.4427270598085},{"$f":"'Res-Appliance class'!$B46*'RES S curve-connect'!S$4+'Res-Appliance class'!$C46*'RES S curve-connect'!S$9+'Res-Appliance class'!$D46*'RES S curve-connect'!S$14+'Res-Appliance class'!$E46*'RES S curve-connect'!S$19","v":-1260.5215547797645},{"$f":"'Res-Appliance class'!$B46*'RES S curve-connect'!T$4+'Res-Appliance class'!$C46*'RES S curve-connect'!T$9+'Res-Appliance class'!$D46*'RES S curve-connect'!T$14+'Res-Appliance class'!$E46*'RES S curve-connect'!T$19","v":-904.89562320275832},{"$f":"'Res-Appliance class'!$B46*'RES S curve-connect'!U$4+'Res-Appliance class'!$C46*'RES S curve-connect'!U$9+'Res-Appliance class'!$D46*'RES S curve-connect'!U$14+'Res-Appliance class'!$E46*'RES S curve-connect'!U$19","v":-501.10249874610645},{"$f":"'Res-Appliance class'!$B46*'RES S curve-connect'!V$4+'Res-Appliance class'!$C46*'RES S curve-connect'!V$9+'Res-Appliance class'!$D46*'RES S curve-connect'!V$14+'Res-Appliance class'!$E46*'RES S curve-connect'!V$19","v":-225.90124790656606},{"$f":"'Res-Appliance class'!$B46*'RES S curve-connect'!W$4+'Res-Appliance class'!$C46*'RES S curve-connect'!W$9+'Res-Appliance class'!$D46*'RES S curve-connect'!W$14+'Res-Appliance class'!$E46*'RES S curve-connect'!W$19","v":-11.007901510013824},{"$f":"'Res-Appliance class'!$B46*'RES S curve-connect'!X$4+'Res-Appliance class'!$C46*'RES S curve-connect'!X$9+'Res-Appliance class'!$D46*'RES S curve-connect'!X$14+'Res-Appliance class'!$E46*'RES S curve-connect'!X$19","v":476.12105118481884},{"$f":"'Res-Appliance class'!$B46*'RES S curve-connect'!Y$4+'Res-Appliance class'!$C46*'RES S curve-connect'!Y$9+'Res-Appliance class'!$D46*'RES S curve-connect'!Y$14+'Res-Appliance class'!$E46*'RES S curve-connect'!Y$19","v":968.64833215954366},{"$f":"'Res-Appliance class'!$B46*'RES S curve-connect'!Z$4+'Res-Appliance class'!$C46*'RES S curve-connect'!Z$9+'Res-Appliance class'!$D46*'RES S curve-connect'!Z$14+'Res-Appliance class'!$E46*'RES S curve-connect'!Z$19","v":1302.1682327546346},{"$f":"'Res-Appliance class'!$B46*'RES S curve-connect'!AA$4+'Res-Appliance class'!$C46*'RES S curve-connect'!AA$9+'Res-Appliance class'!$D46*'RES S curve-connect'!AA$14+'Res-Appliance class'!$E46*'RES S curve-connect'!AA$19","v":1635.3485832557596},{"$f":"'Res-Appliance class'!$B46*'RES S curve-connect'!AB$4+'Res-Appliance class'!$C46*'RES S curve-connect'!AB$9+'Res-Appliance class'!$D46*'RES S curve-connect'!AB$14+'Res-Appliance class'!$E46*'RES S curve-connect'!AB$19","v":1901.5327750422919},{"$f":"'Res-Appliance class'!$B46*'RES S curve-connect'!AC$4+'Res-Appliance class'!$C46*'RES S curve-connect'!AC$9+'Res-Appliance class'!$D46*'RES S curve-connect'!AC$14+'Res-Appliance class'!$E46*'RES S curve-connect'!AC$19","v":2157.7889800992175},{"$f":"'Res-Appliance class'!$B46*'RES S curve-connect'!AD$4+'Res-Appliance class'!$C46*'RES S curve-connect'!AD$9+'Res-Appliance class'!$D46*'RES S curve-connect'!AD$14+'Res-Appliance class'!$E46*'RES S curve-connect'!AD$19","v":2392.9193064254837},{"$f":"'Res-Appliance class'!$B46*'RES S curve-connect'!AE$4+'Res-Appliance class'!$C46*'RES S curve-connect'!AE$9+'Res-Appliance class'!$D46*'RES S curve-connect'!AE$14+'Res-Appliance class'!$E46*'RES S curve-connect'!AE$19","v":2639.5040297832284},{"$f":"'Res-Appliance class'!$B46*'RES S curve-connect'!AF$4+'Res-Appliance class'!$C46*'RES S curve-connect'!AF$9+'Res-Appliance class'!$D46*'RES S curve-connect'!AF$14+'Res-Appliance class'!$E46*'RES S curve-connect'!AF$19","v":2958.9005714788677},{"$f":"'Res-Appliance class'!$B46*'RES S curve-connect'!AG$4+'Res-Appliance class'!$C46*'RES S curve-connect'!AG$9+'Res-Appliance class'!$D46*'RES S curve-connect'!AG$14+'Res-Appliance class'!$E46*'RES S curve-connect'!AG$19","v":3177.9374735396955},{"$f":"'Res-Appliance class'!$B46*'RES S curve-connect'!AH$4+'Res-Appliance class'!$C46*'RES S curve-connect'!AH$9+'Res-Appliance class'!$D46*'RES S curve-connect'!AH$14+'Res-Appliance class'!$E46*'RES S curve-connect'!AH$19","v":3487.2070973634745},{"$f":"'Res-Appliance class'!$B46*'RES S curve-connect'!AI$4+'Res-Appliance class'!$C46*'RES S curve-connect'!AI$9+'Res-Appliance class'!$D46*'RES S curve-connect'!AI$14+'Res-Appliance class'!$E46*'RES S curve-connect'!AI$19","v":3764.2625864583979},{"$f":"'Res-Appliance class'!$B46*'RES S curve-connect'!AJ$4+'Res-Appliance class'!$C46*'RES S curve-connect'!AJ$9+'Res-Appliance class'!$D46*'RES S curve-connect'!AJ$14+'Res-Appliance class'!$E46*'RES S curve-connect'!AJ$19","v":4014.4957893100709},{"$f":"'Res-Appliance class'!$B46*'RES S curve-connect'!AK$4+'Res-Appliance class'!$C46*'RES S curve-connect'!AK$9+'Res-Appliance class'!$D46*'RES S curve-connect'!AK$14+'Res-Appliance class'!$E46*'RES S curve-connect'!AK$19","v":4280.1219218625511},{"$f":"'Res-Appliance class'!$B46*'RES S curve-connect'!AL$4+'Res-Appliance class'!$C46*'RES S curve-connect'!AL$9+'Res-Appliance class'!$D46*'RES S curve-connect'!AL$14+'Res-Appliance class'!$E46*'RES S curve-connect'!AL$19","v":3363.0562879605191},{"$f":"'Res-Appliance class'!$B46*'RES S curve-connect'!AM$4+'Res-Appliance class'!$C46*'RES S curve-connect'!AM$9+'Res-Appliance class'!$D46*'RES S curve-connect'!AM$14+'Res-Appliance class'!$E46*'RES S curve-connect'!AM$19","v":3241.5018046587606},{"$f":"'Res-Appliance class'!$B46*'RES S curve-connect'!AN$4+'Res-Appliance class'!$C46*'RES S curve-connect'!AN$9+'Res-Appliance class'!$D46*'RES S curve-connect'!AN$14+'Res-Appliance class'!$E46*'RES S curve-connect'!AN$19","v":3492.1592950892159},{"$f":"'Res-Appliance class'!$B46*'RES S curve-connect'!AO$4+'Res-Appliance class'!$C46*'RES S curve-connect'!AO$9+'Res-Appliance class'!$D46*'RES S curve-connect'!AO$14+'Res-Appliance class'!$E46*'RES S curve-connect'!AO$19","v":3799.5104554381396},{"$f":"'Res-Appliance class'!$B46*'RES S curve-connect'!AP$4+'Res-Appliance class'!$C46*'RES S curve-connect'!AP$9+'Res-Appliance class'!$D46*'RES S curve-connect'!AP$14+'Res-Appliance class'!$E46*'RES S curve-connect'!AP$19","v":4083.9112349218703},{"$f":"'Res-Appliance class'!$B46*'RES S curve-connect'!AQ$4+'Res-Appliance class'!$C46*'RES S curve-connect'!AQ$9+'Res-Appliance class'!$D46*'RES S curve-connect'!AQ$14+'Res-Appliance class'!$E46*'RES S curve-connect'!AQ$19","v":4389.6362107727673},{"$f":"'Res-Appliance class'!$B46*'RES S curve-connect'!AR$4+'Res-Appliance class'!$C46*'RES S curve-connect'!AR$9+'Res-Appliance class'!$D46*'RES S curve-connect'!AR$14+'Res-Appliance class'!$E46*'RES S curve-connect'!AR$19","v":4725.6027447847127},{"$f":"'Res-Appliance class'!$B46*'RES S curve-connect'!AS$4+'Res-Appliance class'!$C46*'RES S curve-connect'!AS$9+'Res-Appliance class'!$D46*'RES S curve-connect'!AS$14+'Res-Appliance class'!$E46*'RES S curve-connect'!AS$19","v":5102.6814930861474},{"$f":"'Res-Appliance class'!$B46*'RES S curve-connect'!AT$4+'Res-Appliance class'!$C46*'RES S curve-connect'!AT$9+'Res-Appliance class'!$D46*'RES S curve-connect'!AT$14+'Res-Appliance class'!$E46*'RES S curve-connect'!AT$19","v":5524.8011584411634},{"$f":"'Res-Appliance class'!$B46*'RES S curve-connect'!AU$4+'Res-Appliance class'!$C46*'RES S curve-connect'!AU$9+'Res-Appliance class'!$D46*'RES S curve-connect'!AU$14+'Res-Appliance class'!$E46*'RES S curve-connect'!AU$19","v":6012.761853793163},{"$f":"'Res-Appliance class'!$B46*'RES S curve-connect'!AV$4+'Res-Appliance class'!$C46*'RES S curve-connect'!AV$9+'Res-Appliance class'!$D46*'RES S curve-connect'!AV$14+'Res-Appliance class'!$E46*'RES S curve-connect'!AV$19","v":6569.7790091882653},{"$f":"'Res-Appliance class'!$B46*'RES S curve-connect'!AW$4+'Res-Appliance class'!$C46*'RES S curve-connect'!AW$9+'Res-Appliance class'!$D46*'RES S curve-connect'!AW$14+'Res-Appliance class'!$E46*'RES S curve-connect'!AW$19","v":7210.2217338869486},{"$f":"'Res-Appliance class'!$B46*'RES S curve-connect'!AX$4+'Res-Appliance class'!$C46*'RES S curve-connect'!AX$9+'Res-Appliance class'!$D46*'RES S curve-connect'!AX$14+'Res-Appliance class'!$E46*'RES S curve-connect'!AX$19","v":7940.6435309959961},{"$f":"'Res-Appliance class'!$B46*'RES S curve-connect'!AY$4+'Res-Appliance class'!$C46*'RES S curve-connect'!AY$9+'Res-Appliance class'!$D46*'RES S curve-connect'!AY$14+'Res-Appliance class'!$E46*'RES S curve-connect'!AY$19","v":8783.2543510990345},{"$f":"'Res-Appliance class'!$B46*'RES S curve-connect'!AZ$4+'Res-Appliance class'!$C46*'RES S curve-connect'!AZ$9+'Res-Appliance class'!$D46*'RES S curve-connect'!AZ$14+'Res-Appliance class'!$E46*'RES S curve-connect'!AZ$19","v":9747.176864300427},{"$f":"'Res-Appliance class'!$B46*'RES S curve-connect'!BA$4+'Res-Appliance class'!$C46*'RES S curve-connect'!BA$9+'Res-Appliance class'!$D46*'RES S curve-connect'!BA$14+'Res-Appliance class'!$E46*'RES S curve-connect'!BA$19","v":10863.964792097378},{"$f":"'Res-Appliance class'!$B46*'RES S curve-connect'!BB$4+'Res-Appliance class'!$C46*'RES S curve-connect'!BB$9+'Res-Appliance class'!$D46*'RES S curve-connect'!BB$14+'Res-Appliance class'!$E46*'RES S curve-connect'!BB$19","v":12169.570594567556},{"$f":"'Res-Appliance class'!$B46*'RES S curve-connect'!BC$4+'Res-Appliance class'!$C46*'RES S curve-connect'!BC$9+'Res-Appliance class'!$D46*'RES S curve-connect'!BC$14+'Res-Appliance class'!$E46*'RES S curve-connect'!BC$19","v":13726.677557396202},{"$f":"'Res-Appliance class'!$B46*'RES S curve-connect'!BD$4+'Res-Appliance class'!$C46*'RES S curve-connect'!BD$9+'Res-Appliance class'!$D46*'RES S curve-connect'!BD$14+'Res-Appliance class'!$E46*'RES S curve-connect'!BD$19","v":15230.990586772004},{"$f":"'Res-Appliance class'!$B46*'RES S curve-connect'!BE$4+'Res-Appliance class'!$C46*'RES S curve-connect'!BE$9+'Res-Appliance class'!$D46*'RES S curve-connect'!BE$14+'Res-Appliance class'!$E46*'RES S curve-connect'!BE$19","v":16606.672836307251},{"$f":"'Res-Appliance class'!$B46*'RES S curve-connect'!BF$4+'Res-Appliance class'!$C46*'RES S curve-connect'!BF$9+'Res-Appliance class'!$D46*'RES S curve-connect'!BF$14+'Res-Appliance class'!$E46*'RES S curve-connect'!BF$19","v":18014.037966900509},{"$f":"'Res-Appliance class'!$B46*'RES S curve-connect'!BG$4+'Res-Appliance class'!$C46*'RES S curve-connect'!BG$9+'Res-Appliance class'!$D46*'RES S curve-connect'!BG$14+'Res-Appliance class'!$E46*'RES S curve-connect'!BG$19","v":19606.036637025358},{"$f":"'Res-Appliance class'!$B46*'RES S curve-connect'!BH$4+'Res-Appliance class'!$C46*'RES S curve-connect'!BH$9+'Res-Appliance class'!$D46*'RES S curve-connect'!BH$14+'Res-Appliance class'!$E46*'RES S curve-connect'!BH$19","v":21496.325193920504},{"$f":"'Res-Appliance class'!$B46*'RES S curve-connect'!BI$4+'Res-Appliance class'!$C46*'RES S curve-connect'!BI$9+'Res-Appliance class'!$D46*'RES S curve-connect'!BI$14+'Res-Appliance class'!$E46*'RES S curve-connect'!BI$19","v":24234.845781966687},{"$f":"'Res-Appliance class'!$B46*'RES S curve-connect'!BJ$4+'Res-Appliance class'!$C46*'RES S curve-connect'!BJ$9+'Res-Appliance class'!$D46*'RES S curve-connect'!BJ$14+'Res-Appliance class'!$E46*'RES S curve-connect'!BJ$19","v":28248.101804811606},{"$f":"'Res-Appliance class'!$B46*'RES S curve-connect'!BK$4+'Res-Appliance class'!$C46*'RES S curve-connect'!BK$9+'Res-Appliance class'!$D46*'RES S curve-connect'!BK$14+'Res-Appliance class'!$E46*'RES S curve-connect'!BK$19","v":34174.602327045817},{"$f":"'Res-Appliance class'!$B46*'RES S curve-connect'!BL$4+'Res-Appliance class'!$C46*'RES S curve-connect'!BL$9+'Res-Appliance class'!$D46*'RES S curve-connect'!BL$14+'Res-Appliance class'!$E46*'RES S curve-connect'!BL$19","v":5.1272150774472038},{"$f":"'Res-Appliance class'!$B46*'RES S curve-connect'!BM$4+'Res-Appliance class'!$C46*'RES S curve-connect'!BM$9+'Res-Appliance class'!$D46*'RES S curve-connect'!BM$14+'Res-Appliance class'!$E46*'RES S curve-connect'!BM$19","v":12.588736886403183},{"$f":"'Res-Appliance class'!$B46*'RES S curve-connect'!BN$4+'Res-Appliance class'!$C46*'RES S curve-connect'!BN$9+'Res-Appliance class'!$D46*'RES S curve-connect'!BN$14+'Res-Appliance class'!$E46*'RES S curve-connect'!BN$19","v":16.6997924452603},{"$f":"'Res-Appliance class'!$B46*'RES S curve-connect'!BO$4+'Res-Appliance class'!$C46*'RES S curve-connect'!BO$9+'Res-Appliance class'!$D46*'RES S curve-connect'!BO$14+'Res-Appliance class'!$E46*'RES S curve-connect'!BO$19","v":27.481701532328486},{"$f":"'Res-Appliance class'!$B46*'RES S curve-connect'!BP$4+'Res-Appliance class'!$C46*'RES S curve-connect'!BP$9+'Res-Appliance class'!$D46*'RES S curve-connect'!BP$14+'Res-Appliance class'!$E46*'RES S curve-connect'!BP$19","v":34.913264448912059},{"$f":"'Res-Appliance class'!$B46*'RES S curve-connect'!BQ$4+'Res-Appliance class'!$C46*'RES S curve-connect'!BQ$9+'Res-Appliance class'!$D46*'RES S curve-connect'!BQ$14+'Res-Appliance class'!$E46*'RES S curve-connect'!BQ$19","v":42.334960527265821},{"$f":"'Res-Appliance class'!$B46*'RES S curve-connect'!BR$4+'Res-Appliance class'!$C46*'RES S curve-connect'!BR$9+'Res-Appliance class'!$D46*'RES S curve-connect'!BR$14+'Res-Appliance class'!$E46*'RES S curve-connect'!BR$19","v":46.406429029575918},{"$f":"'Res-Appliance class'!$B46*'RES S curve-connect'!BS$4+'Res-Appliance class'!$C46*'RES S curve-connect'!BS$9+'Res-Appliance class'!$D46*'RES S curve-connect'!BS$14+'Res-Appliance class'!$E46*'RES S curve-connect'!BS$19","v":57.148988253645314},{"$f":"'Res-Appliance class'!$B46*'RES S curve-connect'!BT$4+'Res-Appliance class'!$C46*'RES S curve-connect'!BT$9+'Res-Appliance class'!$D46*'RES S curve-connect'!BT$14+'Res-Appliance class'!$E46*'RES S curve-connect'!BT$19","v":64.541437029616532},{"$f":"'Res-Appliance class'!$B46*'RES S curve-connect'!BU$4+'Res-Appliance class'!$C46*'RES S curve-connect'!BU$9+'Res-Appliance class'!$D46*'RES S curve-connect'!BU$14+'Res-Appliance class'!$E46*'RES S curve-connect'!BU$19","v":71.92425322786039},{"$f":"'Res-Appliance class'!$B46*'RES S curve-connect'!BV$4+'Res-Appliance class'!$C46*'RES S curve-connect'!BV$9+'Res-Appliance class'!$D46*'RES S curve-connect'!BV$14+'Res-Appliance class'!$E46*'RES S curve-connect'!BV$19","v":75.957074657896896},{"$f":"'Res-Appliance class'!$B46*'RES S curve-connect'!BW$4+'Res-Appliance class'!$C46*'RES S curve-connect'!BW$9+'Res-Appliance class'!$D46*'RES S curve-connect'!BW$14+'Res-Appliance class'!$E46*'RES S curve-connect'!BW$19","v":86.661218174030125},{"$f":"'Res-Appliance class'!$B46*'RES S curve-connect'!BX$4+'Res-Appliance class'!$C46*'RES S curve-connect'!BX$9+'Res-Appliance class'!$D46*'RES S curve-connect'!BX$14+'Res-Appliance class'!$E46*'RES S curve-connect'!BX$19","v":94.015481172001103},{"$f":"'Res-Appliance class'!$B46*'RES S curve-connect'!BY$4+'Res-Appliance class'!$C46*'RES S curve-connect'!BY$9+'Res-Appliance class'!$D46*'RES S curve-connect'!BY$14+'Res-Appliance class'!$E46*'RES S curve-connect'!BY$19","v":101.36034009682697},{"$f":"'Res-Appliance class'!$B46*'RES S curve-connect'!BZ$4+'Res-Appliance class'!$C46*'RES S curve-connect'!BZ$9+'Res-Appliance class'!$D46*'RES S curve-connect'!BZ$14+'Res-Appliance class'!$E46*'RES S curve-connect'!BZ$19","v":105.35543134166477},{"$f":"'Res-Appliance class'!$B46*'RES S curve-connect'!CA$4+'Res-Appliance class'!$C46*'RES S curve-connect'!CA$9+'Res-Appliance class'!$D46*'RES S curve-connect'!CA$14+'Res-Appliance class'!$E46*'RES S curve-connect'!CA$19","v":116.02207035338421},{"$f":"'Res-Appliance class'!$B46*'RES S curve-connect'!CB$4+'Res-Appliance class'!$C46*'RES S curve-connect'!CB$9+'Res-Appliance class'!$D46*'RES S curve-connect'!CB$14+'Res-Appliance class'!$E46*'RES S curve-connect'!CB$19","v":123.33905312916932},{"$f":"'Res-Appliance class'!$B46*'RES S curve-connect'!CC$4+'Res-Appliance class'!$C46*'RES S curve-connect'!CC$9+'Res-Appliance class'!$D46*'RES S curve-connect'!CC$14+'Res-Appliance class'!$E46*'RES S curve-connect'!CC$19","v":130.64685472429431},{"$f":"'Res-Appliance class'!$B46*'RES S curve-connect'!CD$4+'Res-Appliance class'!$C46*'RES S curve-connect'!CD$9+'Res-Appliance class'!$D46*'RES S curve-connect'!CD$14+'Res-Appliance class'!$E46*'RES S curve-connect'!CD$19","v":18.329015895250564}]
[]
["LGA Low",2020,{"$f":"B237+1","v":2021},2022,2023,2024,2025,2026,2027,2028,2029,2030,2031,2032,2033,2034,2035,2036,2037,2038,2039,2040,2041,2042,2043,2044,2045,2046,2047,2048,2049,2050,2051,2052,2053,2054,2055,2056,2057,2058,2059,2060,2061,2062,2063,2064,2065,2066,2067,2068,2069,2070,2071,2072,2073,2074,2075,2076,2077,2078,2079,2080,2081,2082,2083,2084,{"$f":"BN237+1","v":2085},2086,2087,2088,2089,2090,2091,2092,2093,2094,2095,2096,2097,2098,2099,2100]
["Bass Coast (S)",null,{"$f":"'Res-Appliance class'!$B27*'RES S curve-connect'!C$5+'Res-Appliance class'!$C27*'RES S curve-connect'!C$10+'Res-Appliance class'!$D27*'RES S curve-connect'!C$15+'Res-Appliance class'!$E27*'RES S curve-connect'!C$20","v":-2698.4617906577619},{"$f":"'Res-Appliance class'!$B27*'RES S curve-connect'!D$5+'Res-Appliance class'!$C27*'RES S curve-connect'!D$10+'Res-Appliance class'!$D27*'RES S curve-connect'!D$15+'Res-Appliance class'!$E27*'RES S curve-connect'!D$20","v":-2945.3023837985406},{"$f":"'Res-Appliance class'!$B27*'RES S curve-connect'!E$5+'Res-Appliance class'!$C27*'RES S curve-connect'!E$10+'Res-Appliance class'!$D27*'RES S curve-connect'!E$15+'Res-Appliance class'!$E27*'RES S curve-connect'!E$20","v":-2358.1931894212457},{"$f":"'Res-Appliance class'!$B27*'RES S curve-connect'!F$5+'Res-Appliance class'!$C27*'RES S curve-connect'!F$10+'Res-Appliance class'!$D27*'RES S curve-connect'!F$15+'Res-Appliance class'!$E27*'RES S curve-connect'!F$20","v":-2290.5289730657073},{"$f":"'Res-Appliance class'!$B27*'RES S curve-connect'!G$5+'Res-Appliance class'!$C27*'RES S curve-connect'!G$10+'Res-Appliance class'!$D27*'RES S curve-connect'!G$15+'Res-Appliance class'!$E27*'RES S curve-connect'!G$20","v":-2895.2127511836306},{"$f":"'Res-Appliance class'!$B27*'RES S curve-connect'!H$5+'Res-Appliance class'!$C27*'RES S curve-connect'!H$10+'Res-Appliance class'!$D27*'RES S curve-connect'!H$15+'Res-Appliance class'!$E27*'RES S curve-connect'!H$20","v":-2941.5709302925511},{"$f":"'Res-Appliance class'!$B27*'RES S curve-connect'!I$5+'Res-Appliance class'!$C27*'RES S curve-connect'!I$10+'Res-Appliance class'!$D27*'RES S curve-connect'!I$15+'Res-Appliance class'!$E27*'RES S curve-connect'!I$20","v":-2742.5940556371361},{"$f":"'Res-Appliance class'!$B27*'RES S curve-connect'!J$5+'Res-Appliance class'!$C27*'RES S curve-connect'!J$10+'Res-Appliance class'!$D27*'RES S curve-connect'!J$15+'Res-Appliance class'!$E27*'RES S curve-connect'!J$20","v":-3070.0668616207195},{"$f":"'Res-Appliance class'!$B27*'RES S curve-connect'!K$5+'Res-Appliance class'!$C27*'RES S curve-connect'!K$10+'Res-Appliance class'!$D27*'RES S curve-connect'!K$15+'Res-Appliance class'!$E27*'RES S curve-connect'!K$20","v":-2609.376888855254},{"$f":"'Res-Appliance class'!$B27*'RES S curve-connect'!L$5+'Res-Appliance class'!$C27*'RES S curve-connect'!L$10+'Res-Appliance class'!$D27*'RES S curve-connect'!L$15+'Res-Appliance class'!$E27*'RES S curve-connect'!L$20","v":-2761.3081355629961},{"$f":"'Res-Appliance class'!$B27*'RES S curve-connect'!M$5+'Res-Appliance class'!$C27*'RES S curve-connect'!M$10+'Res-Appliance class'!$D27*'RES S curve-connect'!M$15+'Res-Appliance class'!$E27*'RES S curve-connect'!M$20","v":-3026.3953048058174},{"$f":"'Res-Appliance class'!$B27*'RES S curve-connect'!N$5+'Res-Appliance class'!$C27*'RES S curve-connect'!N$10+'Res-Appliance class'!$D27*'RES S curve-connect'!N$15+'Res-Appliance class'!$E27*'RES S curve-connect'!N$20","v":-3037.5465906711838},{"$f":"'Res-Appliance class'!$B27*'RES S curve-connect'!O$5+'Res-Appliance class'!$C27*'RES S curve-connect'!O$10+'Res-Appliance class'!$D27*'RES S curve-connect'!O$15+'Res-Appliance class'!$E27*'RES S curve-connect'!O$20","v":-2757.7038502887453},{"$f":"'Res-Appliance class'!$B27*'RES S curve-connect'!P$5+'Res-Appliance class'!$C27*'RES S curve-connect'!P$10+'Res-Appliance class'!$D27*'RES S curve-connect'!P$15+'Res-Appliance class'!$E27*'RES S curve-connect'!P$20","v":-2534.4960615318414},{"$f":"'Res-Appliance class'!$B27*'RES S curve-connect'!Q$5+'Res-Appliance class'!$C27*'RES S curve-connect'!Q$10+'Res-Appliance class'!$D27*'RES S curve-connect'!Q$15+'Res-Appliance class'!$E27*'RES S curve-connect'!Q$20","v":-2205.5244915027724},{"$f":"'Res-Appliance class'!$B27*'RES S curve-connect'!R$5+'Res-Appliance class'!$C27*'RES S curve-connect'!R$10+'Res-Appliance class'!$D27*'RES S curve-connect'!R$15+'Res-Appliance class'!$E27*'RES S curve-connect'!R$20","v":-2012.7102822718489},{"$f":"'Res-Appliance class'!$B27*'RES S curve-connect'!S$5+'Res-Appliance class'!$C27*'RES S curve-connect'!S$10+'Res-Appliance class'!$D27*'RES S curve-connect'!S$15+'Res-Appliance class'!$E27*'RES S curve-connect'!S$20","v":-1710.3966975990552},{"$f":"'Res-Appliance class'!$B27*'RES S curve-connect'!T$5+'Res-Appliance class'!$C27*'RES S curve-connect'!T$10+'Res-Appliance class'!$D27*'RES S curve-connect'!T$15+'Res-Appliance class'!$E27*'RES S curve-connect'!T$20","v":-1549.6252228170242},{"$f":"'Res-Appliance class'!$B27*'RES S curve-connect'!U$5+'Res-Appliance class'!$C27*'RES S curve-connect'!U$10+'Res-Appliance class'!$D27*'RES S curve-connect'!U$15+'Res-Appliance class'!$E27*'RES S curve-connect'!U$20","v":-1360.9059675044741},{"$f":"'Res-Appliance class'!$B27*'RES S curve-connect'!V$5+'Res-Appliance class'!$C27*'RES S curve-connect'!V$10+'Res-Appliance class'!$D27*'RES S curve-connect'!V$15+'Res-Appliance class'!$E27*'RES S curve-connect'!V$20","v":-1224.7885527924948},{"$f":"'Res-Appliance class'!$B27*'RES S curve-connect'!W$5+'Res-Appliance class'!$C27*'RES S curve-connect'!W$10+'Res-Appliance class'!$D27*'RES S curve-connect'!W$15+'Res-Appliance class'!$E27*'RES S curve-connect'!W$20","v":-1115.3564750656781},{"$f":"'Res-Appliance class'!$B27*'RES S curve-connect'!X$5+'Res-Appliance class'!$C27*'RES S curve-connect'!X$10+'Res-Appliance class'!$D27*'RES S curve-connect'!X$15+'Res-Appliance class'!$E27*'RES S curve-connect'!X$20","v":-892.00058175079528},{"$f":"'Res-Appliance class'!$B27*'RES S curve-connect'!Y$5+'Res-Appliance class'!$C27*'RES S curve-connect'!Y$10+'Res-Appliance class'!$D27*'RES S curve-connect'!Y$15+'Res-Appliance class'!$E27*'RES S curve-connect'!Y$20","v":-665.15576256936686},{"$f":"'Res-Appliance class'!$B27*'RES S curve-connect'!Z$5+'Res-Appliance class'!$C27*'RES S curve-connect'!Z$10+'Res-Appliance class'!$D27*'RES S curve-connect'!Z$15+'Res-Appliance class'!$E27*'RES S curve-connect'!Z$20","v":-506.13875549460181},{"$f":"'Res-Appliance class'!$B27*'RES S curve-connect'!AA$5+'Res-Appliance class'!$C27*'RES S curve-connect'!AA$10+'Res-Appliance class'!$D27*'RES S curve-connect'!AA$15+'Res-Appliance class'!$E27*'RES S curve-connect'!AA$20","v":-345.90672865357556},{"$f":"'Res-Appliance class'!$B27*'RES S curve-connect'!AB$5+'Res-Appliance class'!$C27*'RES S curve-connect'!AB$10+'Res-Appliance class'!$D27*'RES S curve-connect'!AB$15+'Res-Appliance class'!$E27*'RES S curve-connect'!AB$20","v":-214.47033434023365},{"$f":"'Res-Appliance class'!$B27*'RES S curve-connect'!AC$5+'Res-Appliance class'!$C27*'RES S curve-connect'!AC$10+'Res-Appliance class'!$D27*'RES S curve-connect'!AC$15+'Res-Appliance class'!$E27*'RES S curve-connect'!AC$20","v":-86.541730439195135},{"$f":"'Res-Appliance class'!$B27*'RES S curve-connect'!AD$5+'Res-Appliance class'!$C27*'RES S curve-connect'!AD$10+'Res-Appliance class'!$D27*'RES S curve-connect'!AD$15+'Res-Appliance class'!$E27*'RES S curve-connect'!AD$20","v":32.003366567222599},{"$f":"'Res-Appliance class'!$B27*'RES S curve-connect'!AE$5+'Res-Appliance class'!$C27*'RES S curve-connect'!AE$10+'Res-Appliance class'!$D27*'RES S curve-connect'!AE$15+'Res-Appliance class'!$E27*'RES S curve-connect'!AE$20","v":157.5685961335551},{"$f":"'Res-Appliance class'!$B27*'RES S curve-connect'!AF$5+'Res-Appliance class'!$C27*'RES S curve-connect'!AF$10+'Res-Appliance class'!$D27*'RES S curve-connect'!AF$15+'Res-Appliance class'!$E27*'RES S curve-connect'!AF$20","v":313.37334810318089},{"$f":"'Res-Appliance class'!$B27*'RES S curve-connect'!AG$5+'Res-Appliance class'!$C27*'RES S curve-connect'!AG$10+'Res-Appliance class'!$D27*'RES S curve-connect'!AG$15+'Res-Appliance class'!$E27*'RES S curve-connect'!AG$20","v":411.25392992703109},{"$f":"'Res-Appliance class'!$B27*'RES S curve-connect'!AH$5+'Res-Appliance class'!$C27*'RES S curve-connect'!AH$10+'Res-Appliance class'!$D27*'RES S curve-connect'!AH$15+'Res-Appliance class'!$E27*'RES S curve-connect'!AH$20","v":545.3844129050907},{"$f":"'Res-Appliance class'!$B27*'RES S curve-connect'!AI$5+'Res-Appliance class'!$C27*'RES S curve-connect'!AI$10+'Res-Appliance class'!$D27*'RES S curve-connect'!AI$15+'Res-Appliance class'!$E27*'RES S curve-connect'!AI$20","v":669.23847477494508},{"$f":"'Res-Appliance class'!$B27*'RES S curve-connect'!AJ$5+'Res-Appliance class'!$C27*'RES S curve-connect'!AJ$10+'Res-Appliance class'!$D27*'RES S curve-connect'!AJ$15+'Res-Appliance class'!$E27*'RES S curve-connect'!AJ$20","v":780.33175866708893},{"$f":"'Res-Appliance class'!$B27*'RES S curve-connect'!AK$5+'Res-Appliance class'!$C27*'RES S curve-connect'!AK$10+'Res-Appliance class'!$D27*'RES S curve-connect'!AK$15+'Res-Appliance class'!$E27*'RES S curve-connect'!AK$20","v":898.38969209996026},{"$f":"'Res-Appliance class'!$B27*'RES S curve-connect'!AL$5+'Res-Appliance class'!$C27*'RES S curve-connect'!AL$10+'Res-Appliance class'!$D27*'RES S curve-connect'!AL$15+'Res-Appliance class'!$E27*'RES S curve-connect'!AL$20","v":480.90132578617431},{"$f":"'Res-Appliance class'!$B27*'RES S curve-connect'!AM$5+'Res-Appliance class'!$C27*'RES S curve-connect'!AM$10+'Res-Appliance class'!$D27*'RES S curve-connect'!AM$15+'Res-Appliance class'!$E27*'RES S curve-connect'!AM$20","v":431.174933154001},{"$f":"'Res-Appliance class'!$B27*'RES S curve-connect'!AN$5+'Res-Appliance class'!$C27*'RES S curve-connect'!AN$10+'Res-Appliance class'!$D27*'RES S curve-connect'!AN$15+'Res-Appliance class'!$E27*'RES S curve-connect'!AN$20","v":545.45045339488684},{"$f":"'Res-Appliance class'!$B27*'RES S curve-connect'!AO$5+'Res-Appliance class'!$C27*'RES S curve-connect'!AO$10+'Res-Appliance class'!$D27*'RES S curve-connect'!AO$15+'Res-Appliance class'!$E27*'RES S curve-connect'!AO$20","v":682.85159181890754},{"$f":"'Res-Appliance class'!$B27*'RES S curve-connect'!AP$5+'Res-Appliance class'!$C27*'RES S curve-connect'!AP$10+'Res-Appliance class'!$D27*'RES S curve-connect'!AP$15+'Res-Appliance class'!$E27*'RES S curve-connect'!AP$20","v":808.38603241388944},{"$f":"'Res-Appliance class'!$B27*'RES S curve-connect'!AQ$5+'Res-Appliance class'!$C27*'RES S curve-connect'!AQ$10+'Res-Appliance class'!$D27*'RES S curve-connect'!AQ$15+'Res-Appliance class'!$E27*'RES S curve-connect'!AQ$20","v":944.96226774091974},{"$f":"'Res-Appliance class'!$B27*'RES S curve-connect'!AR$5+'Res-Appliance class'!$C27*'RES S curve-connect'!AR$10+'Res-Appliance class'!$D27*'RES S curve-connect'!AR$15+'Res-Appliance class'!$E27*'RES S curve-connect'!AR$20","v":1094.0965213585725},{"$f":"'Res-Appliance class'!$B27*'RES S curve-connect'!AS$5+'Res-Appliance class'!$C27*'RES S curve-connect'!AS$10+'Res-Appliance class'!$D27*'RES S curve-connect'!AS$15+'Res-Appliance class'!$E27*'RES S curve-connect'!AS$20","v":1261.2342803202459},{"$f":"'Res-Appliance class'!$B27*'RES S curve-connect'!AT$5+'Res-Appliance class'!$C27*'RES S curve-connect'!AT$10+'Res-Appliance class'!$D27*'RES S curve-connect'!AT$15+'Res-Appliance class'!$E27*'RES S curve-connect'!AT$20","v":1447.239287584403},{"$f":"'Res-Appliance class'!$B27*'RES S curve-connect'!AU$5+'Res-Appliance class'!$C27*'RES S curve-connect'!AU$10+'Res-Appliance class'!$D27*'RES S curve-connect'!AU$15+'Res-Appliance class'!$E27*'RES S curve-connect'!AU$20","v":1663.5819548769664},{"$f":"'Res-Appliance class'!$B27*'RES S curve-connect'!AV$5+'Res-Appliance class'!$C27*'RES S curve-connect'!AV$10+'Res-Appliance class'!$D27*'RES S curve-connect'!AV$15+'Res-Appliance class'!$E27*'RES S curve-connect'!AV$20","v":1909.182291410817},{"$f":"'Res-Appliance class'!$B27*'RES S curve-connect'!AW$5+'Res-Appliance class'!$C27*'RES S curve-connect'!AW$10+'Res-Appliance class'!$D27*'RES S curve-connect'!AW$15+'Res-Appliance class'!$E27*'RES S curve-connect'!AW$20","v":2190.9259149757449},{"$f":"'Res-Appliance class'!$B27*'RES S curve-connect'!AX$5+'Res-Appliance class'!$C27*'RES S curve-connect'!AX$10+'Res-Appliance class'!$D27*'RES S curve-connect'!AX$15+'Res-Appliance class'!$E27*'RES S curve-connect'!AX$20","v":2510.604289228876},{"$f":"'Res-Appliance class'!$B27*'RES S curve-connect'!AY$5+'Res-Appliance class'!$C27*'RES S curve-connect'!AY$10+'Res-Appliance class'!$D27*'RES S curve-connect'!AY$15+'Res-Appliance class'!$E27*'RES S curve-connect'!AY$20","v":2880.0422060992114},{"$f":"'Res-Appliance class'!$B27*'RES S curve-connect'!AZ$5+'Res-Appliance class'!$C27*'RES S curve-connect'!AZ$10+'Res-Appliance class'!$D27*'RES S curve-connect'!AZ$15+'Res-Appliance class'!$E27*'RES S curve-connect'!AZ$20","v":3300.4969478079447},{"$f":"'Res-Appliance class'!$B27*'RES S curve-connect'!BA$5+'Res-Appliance class'!$C27*'RES S curve-connect'!BA$10+'Res-Appliance class'!$D27*'RES S curve-connect'!BA$15+'Res-Appliance class'!$E27*'RES S curve-connect'!BA$20","v":3786.1441088048659},{"$f":"'Res-Appliance class'!$B27*'RES S curve-connect'!BB$5+'Res-Appliance class'!$C27*'RES S curve-connect'!BB$10+'Res-Appliance class'!$D27*'RES S curve-connect'!BB$15+'Res-Appliance class'!$E27*'RES S curve-connect'!BB$20","v":4351.2722728142999},{"$f":"'Res-Appliance class'!$B27*'RES S curve-connect'!BC$5+'Res-Appliance class'!$C27*'RES S curve-connect'!BC$10+'Res-Appliance class'!$D27*'RES S curve-connect'!BC$15+'Res-Appliance class'!$E27*'RES S curve-connect'!BC$20","v":5024.7863868982131},{"$f":"'Res-Appliance class'!$B27*'RES S curve-connect'!BD$5+'Res-Appliance class'!$C27*'RES S curve-connect'!BD$10+'Res-Appliance class'!$D27*'RES S curve-connect'!BD$15+'Res-Appliance class'!$E27*'RES S curve-connect'!BD$20","v":5668.6884231097547},{"$f":"'Res-Appliance class'!$B27*'RES S curve-connect'!BE$5+'Res-Appliance class'!$C27*'RES S curve-connect'!BE$10+'Res-Appliance class'!$D27*'RES S curve-connect'!BE$15+'Res-Appliance class'!$E27*'RES S curve-connect'!BE$20","v":6255.2701117282304},{"$f":"'Res-Appliance class'!$B27*'RES S curve-connect'!BF$5+'Res-Appliance class'!$C27*'RES S curve-connect'!BF$10+'Res-Appliance class'!$D27*'RES S curve-connect'!BF$15+'Res-Appliance class'!$E27*'RES S curve-connect'!BF$20","v":6856.0304217737985},{"$f":"'Res-Appliance class'!$B27*'RES S curve-connect'!BG$5+'Res-Appliance class'!$C27*'RES S curve-connect'!BG$10+'Res-Appliance class'!$D27*'RES S curve-connect'!BG$15+'Res-Appliance class'!$E27*'RES S curve-connect'!BG$20","v":7538.155155794836},{"$f":"'Res-Appliance class'!$B27*'RES S curve-connect'!BH$5+'Res-Appliance class'!$C27*'RES S curve-connect'!BH$10+'Res-Appliance class'!$D27*'RES S curve-connect'!BH$15+'Res-Appliance class'!$E27*'RES S curve-connect'!BH$20","v":8346.5629118869347},{"$f":"'Res-Appliance class'!$B27*'RES S curve-connect'!BI$5+'Res-Appliance class'!$C27*'RES S curve-connect'!BI$10+'Res-Appliance class'!$D27*'RES S curve-connect'!BI$15+'Res-Appliance class'!$E27*'RES S curve-connect'!BI$20","v":9519.3155037364522},{"$f":"'Res-Appliance class'!$B27*'RES S curve-connect'!BJ$5+'Res-Appliance class'!$C27*'RES S curve-connect'!BJ$10+'Res-Appliance class'!$D27*'RES S curve-connect'!BJ$15+'Res-Appliance class'!$E27*'RES S curve-connect'!BJ$20","v":11230.143702582911},{"$f":"'Res-Appliance class'!$B27*'RES S curve-connect'!BK$5+'Res-Appliance class'!$C27*'RES S curve-connect'!BK$10+'Res-Appliance class'!$D27*'RES S curve-connect'!BK$15+'Res-Appliance class'!$E27*'RES S curve-connect'!BK$20","v":13745.056418154962},{"$f":"'Res-Appliance class'!$B27*'RES S curve-connect'!BL$5+'Res-Appliance class'!$C27*'RES S curve-connect'!BL$10+'Res-Appliance class'!$D27*'RES S curve-connect'!BL$15+'Res-Appliance class'!$E27*'RES S curve-connect'!BL$20","v":-1038.2155306819902},{"$f":"'Res-Appliance class'!$B27*'RES S curve-connect'!BM$5+'Res-Appliance class'!$C27*'RES S curve-connect'!BM$10+'Res-Appliance class'!$D27*'RES S curve-connect'!BM$15+'Res-Appliance class'!$E27*'RES S curve-connect'!BM$20","v":-1034.9445000634332},{"$f":"'Res-Appliance class'!$B27*'RES S curve-connect'!BN$5+'Res-Appliance class'!$C27*'RES S curve-connect'!BN$10+'Res-Appliance class'!$D27*'RES S curve-connect'!BN$15+'Res-Appliance class'!$E27*'RES S curve-connect'!BN$20","v":-1033.9416817288163},{"$f":"'Res-Appliance class'!$B27*'RES S curve-connect'!BO$5+'Res-Appliance class'!$C27*'RES S curve-connect'!BO$10+'Res-Appliance class'!$D27*'RES S curve-connect'!BO$15+'Res-Appliance class'!$E27*'RES S curve-connect'!BO$20","v":-1028.418431196561},{"$f":"'Res-Appliance class'!$B27*'RES S curve-connect'!BP$5+'Res-Appliance class'!$C27*'RES S curve-connect'!BP$10+'Res-Appliance class'!$D27*'RES S curve-connect'!BP$15+'Res-Appliance class'!$E27*'RES S curve-connect'!BP$20","v":-1025.1633274061207},{"$f":"'Res-Appliance class'!$B27*'RES S curve-connect'!BQ$5+'Res-Appliance class'!$C27*'RES S curve-connect'!BQ$10+'Res-Appliance class'!$D27*'RES S curve-connect'!BQ$15+'Res-Appliance class'!$E27*'RES S curve-connect'!BQ$20","v":-1021.9134673592642},{"$f":"'Res-Appliance class'!$B27*'RES S curve-connect'!BR$5+'Res-Appliance class'!$C27*'RES S curve-connect'!BR$10+'Res-Appliance class'!$D27*'RES S curve-connect'!BR$15+'Res-Appliance class'!$E27*'RES S curve-connect'!BR$20","v":-1020.9316893332162},{"$f":"'Res-Appliance class'!$B27*'RES S curve-connect'!BS$5+'Res-Appliance class'!$C27*'RES S curve-connect'!BS$10+'Res-Appliance class'!$D27*'RES S curve-connect'!BS$15+'Res-Appliance class'!$E27*'RES S curve-connect'!BS$20","v":-1015.4293496649203},{"$f":"'Res-Appliance class'!$B27*'RES S curve-connect'!BT$5+'Res-Appliance class'!$C27*'RES S curve-connect'!BT$10+'Res-Appliance class'!$D27*'RES S curve-connect'!BT$15+'Res-Appliance class'!$E27*'RES S curve-connect'!BT$20","v":-1012.1950281071561},{"$f":"'Res-Appliance class'!$B27*'RES S curve-connect'!BU$5+'Res-Appliance class'!$C27*'RES S curve-connect'!BU$10+'Res-Appliance class'!$D27*'RES S curve-connect'!BU$15+'Res-Appliance class'!$E27*'RES S curve-connect'!BU$20","v":-1008.9658224698576},{"$f":"'Res-Appliance class'!$B27*'RES S curve-connect'!BV$5+'Res-Appliance class'!$C27*'RES S curve-connect'!BV$10+'Res-Appliance class'!$D27*'RES S curve-connect'!BV$15+'Res-Appliance class'!$E27*'RES S curve-connect'!BV$20","v":-1008.0045718332859},{"$f":"'Res-Appliance class'!$B27*'RES S curve-connect'!BW$5+'Res-Appliance class'!$C27*'RES S curve-connect'!BW$10+'Res-Appliance class'!$D27*'RES S curve-connect'!BW$15+'Res-Appliance class'!$E27*'RES S curve-connect'!BW$20","v":-1002.5226333323258},{"$f":"'Res-Appliance class'!$B27*'RES S curve-connect'!BX$5+'Res-Appliance class'!$C27*'RES S curve-connect'!BX$10+'Res-Appliance class'!$D27*'RES S curve-connect'!BX$15+'Res-Appliance class'!$E27*'RES S curve-connect'!BX$20","v":-999.30858751263429},{"$f":"'Res-Appliance class'!$B27*'RES S curve-connect'!BY$5+'Res-Appliance class'!$C27*'RES S curve-connect'!BY$10+'Res-Appliance class'!$D27*'RES S curve-connect'!BY$15+'Res-Appliance class'!$E27*'RES S curve-connect'!BY$20","v":-996.09953297199161},{"$f":"'Res-Appliance class'!$B27*'RES S curve-connect'!BZ$5+'Res-Appliance class'!$C27*'RES S curve-connect'!BZ$10+'Res-Appliance class'!$D27*'RES S curve-connect'!BZ$15+'Res-Appliance class'!$E27*'RES S curve-connect'!BZ$20","v":-995.15830957350818},{"$f":"'Res-Appliance class'!$B27*'RES S curve-connect'!CA$5+'Res-Appliance class'!$C27*'RES S curve-connect'!CA$10+'Res-Appliance class'!$D27*'RES S curve-connect'!CA$15+'Res-Appliance class'!$E27*'RES S curve-connect'!CA$20","v":-989.69627522994722},{"$f":"'Res-Appliance class'!$B27*'RES S curve-connect'!CB$5+'Res-Appliance class'!$C27*'RES S curve-connect'!CB$10+'Res-Appliance class'!$D27*'RES S curve-connect'!CB$15+'Res-Appliance class'!$E27*'RES S curve-connect'!CB$20","v":-986.502011259911},{"$f":"'Res-Appliance class'!$B27*'RES S curve-connect'!CC$5+'Res-Appliance class'!$C27*'RES S curve-connect'!CC$10+'Res-Appliance class'!$D27*'RES S curve-connect'!CC$15+'Res-Appliance class'!$E27*'RES S curve-connect'!CC$20","v":-983.31261702922086},{"$f":"'Res-Appliance class'!$B27*'RES S curve-connect'!CD$5+'Res-Appliance class'!$C27*'RES S curve-connect'!CD$10+'Res-Appliance class'!$D27*'RES S curve-connect'!CD$15+'Res-Appliance class'!$E27*'RES S curve-connect'!CD$20","v":-1030.0129970404041}]
["Bayside (C)",null,{"$f":"'Res-Appliance class'!$B28*'RES S curve-connect'!C$5+'Res-Appliance class'!$C28*'RES S curve-connect'!C$10+'Res-Appliance class'!$D28*'RES S curve-connect'!C$15+'Res-Appliance class'!$E28*'RES S curve-connect'!C$20","v":-3406.7636069196869},{"$f":"'Res-Appliance class'!$B28*'RES S curve-connect'!D$5+'Res-Appliance class'!$C28*'RES S curve-connect'!D$10+'Res-Appliance class'!$D28*'RES S curve-connect'!D$15+'Res-Appliance class'!$E28*'RES S curve-connect'!D$20","v":-3751.6670091873048},{"$f":"'Res-Appliance class'!$B28*'RES S curve-connect'!E$5+'Res-Appliance class'!$C28*'RES S curve-connect'!E$10+'Res-Appliance class'!$D28*'RES S curve-connect'!E$15+'Res-Appliance class'!$E28*'RES S curve-connect'!E$20","v":-2825.0448441771391},{"$f":"'Res-Appliance class'!$B28*'RES S curve-connect'!F$5+'Res-Appliance class'!$C28*'RES S curve-connect'!F$10+'Res-Appliance class'!$D28*'RES S curve-connect'!F$15+'Res-Appliance class'!$E28*'RES S curve-connect'!F$20","v":-2722.1575016436936},{"$f":"'Res-Appliance class'!$B28*'RES S curve-connect'!G$5+'Res-Appliance class'!$C28*'RES S curve-connect'!G$10+'Res-Appliance class'!$D28*'RES S curve-connect'!G$15+'Res-Appliance class'!$E28*'RES S curve-connect'!G$20","v":-3818.616756607651},{"$f":"'Res-Appliance class'!$B28*'RES S curve-connect'!H$5+'Res-Appliance class'!$C28*'RES S curve-connect'!H$10+'Res-Appliance class'!$D28*'RES S curve-connect'!H$15+'Res-Appliance class'!$E28*'RES S curve-connect'!H$20","v":-3848.1574465946492},{"$f":"'Res-Appliance class'!$B28*'RES S curve-connect'!I$5+'Res-Appliance class'!$C28*'RES S curve-connect'!I$10+'Res-Appliance class'!$D28*'RES S curve-connect'!I$15+'Res-Appliance class'!$E28*'RES S curve-connect'!I$20","v":-3556.1797630767828},{"$f":"'Res-Appliance class'!$B28*'RES S curve-connect'!J$5+'Res-Appliance class'!$C28*'RES S curve-connect'!J$10+'Res-Appliance class'!$D28*'RES S curve-connect'!J$15+'Res-Appliance class'!$E28*'RES S curve-connect'!J$20","v":-3918.4927760916985},{"$f":"'Res-Appliance class'!$B28*'RES S curve-connect'!K$5+'Res-Appliance class'!$C28*'RES S curve-connect'!K$10+'Res-Appliance class'!$D28*'RES S curve-connect'!K$15+'Res-Appliance class'!$E28*'RES S curve-connect'!K$20","v":-3279.4474944009762},{"$f":"'Res-Appliance class'!$B28*'RES S curve-connect'!L$5+'Res-Appliance class'!$C28*'RES S curve-connect'!L$10+'Res-Appliance class'!$D28*'RES S curve-connect'!L$15+'Res-Appliance class'!$E28*'RES S curve-connect'!L$20","v":-3496.2560506053946},{"$f":"'Res-Appliance class'!$B28*'RES S curve-connect'!M$5+'Res-Appliance class'!$C28*'RES S curve-connect'!M$10+'Res-Appliance class'!$D28*'RES S curve-connect'!M$15+'Res-Appliance class'!$E28*'RES S curve-connect'!M$20","v":-3904.3214225660176},{"$f":"'Res-Appliance class'!$B28*'RES S curve-connect'!N$5+'Res-Appliance class'!$C28*'RES S curve-connect'!N$10+'Res-Appliance class'!$D28*'RES S curve-connect'!N$15+'Res-Appliance class'!$E28*'RES S curve-connect'!N$20","v":-3925.8316417171227},{"$f":"'Res-Appliance class'!$B28*'RES S curve-connect'!O$5+'Res-Appliance class'!$C28*'RES S curve-connect'!O$10+'Res-Appliance class'!$D28*'RES S curve-connect'!O$15+'Res-Appliance class'!$E28*'RES S curve-connect'!O$20","v":-3530.0559241667552},{"$f":"'Res-Appliance class'!$B28*'RES S curve-connect'!P$5+'Res-Appliance class'!$C28*'RES S curve-connect'!P$10+'Res-Appliance class'!$D28*'RES S curve-connect'!P$15+'Res-Appliance class'!$E28*'RES S curve-connect'!P$20","v":-3211.2790385231347},{"$f":"'Res-Appliance class'!$B28*'RES S curve-connect'!Q$5+'Res-Appliance class'!$C28*'RES S curve-connect'!Q$10+'Res-Appliance class'!$D28*'RES S curve-connect'!Q$15+'Res-Appliance class'!$E28*'RES S curve-connect'!Q$20","v":-2739.1864532727659},{"$f":"'Res-Appliance class'!$B28*'RES S curve-connect'!R$5+'Res-Appliance class'!$C28*'RES S curve-connect'!R$10+'Res-Appliance class'!$D28*'RES S curve-connect'!R$15+'Res-Appliance class'!$E28*'RES S curve-connect'!R$20","v":-2463.6989181150761},{"$f":"'Res-Appliance class'!$B28*'RES S curve-connect'!S$5+'Res-Appliance class'!$C28*'RES S curve-connect'!S$10+'Res-Appliance class'!$D28*'RES S curve-connect'!S$15+'Res-Appliance class'!$E28*'RES S curve-connect'!S$20","v":-2036.2903010206187},{"$f":"'Res-Appliance class'!$B28*'RES S curve-connect'!T$5+'Res-Appliance class'!$C28*'RES S curve-connect'!T$10+'Res-Appliance class'!$D28*'RES S curve-connect'!T$15+'Res-Appliance class'!$E28*'RES S curve-connect'!T$20","v":-1796.1559774659117},{"$f":"'Res-Appliance class'!$B28*'RES S curve-connect'!U$5+'Res-Appliance class'!$C28*'RES S curve-connect'!U$10+'Res-Appliance class'!$D28*'RES S curve-connect'!U$15+'Res-Appliance class'!$E28*'RES S curve-connect'!U$20","v":-1524.3391861053938},{"$f":"'Res-Appliance class'!$B28*'RES S curve-connect'!V$5+'Res-Appliance class'!$C28*'RES S curve-connect'!V$10+'Res-Appliance class'!$D28*'RES S curve-connect'!V$15+'Res-Appliance class'!$E28*'RES S curve-connect'!V$20","v":-1333.0945319519292},{"$f":"'Res-Appliance class'!$B28*'RES S curve-connect'!W$5+'Res-Appliance class'!$C28*'RES S curve-connect'!W$10+'Res-Appliance class'!$D28*'RES S curve-connect'!W$15+'Res-Appliance class'!$E28*'RES S curve-connect'!W$20","v":-1180.1732330020352},{"$f":"'Res-Appliance class'!$B28*'RES S curve-connect'!X$5+'Res-Appliance class'!$C28*'RES S curve-connect'!X$10+'Res-Appliance class'!$D28*'RES S curve-connect'!X$15+'Res-Appliance class'!$E28*'RES S curve-connect'!X$20","v":-856.36678850351041},{"$f":"'Res-Appliance class'!$B28*'RES S curve-connect'!Y$5+'Res-Appliance class'!$C28*'RES S curve-connect'!Y$10+'Res-Appliance class'!$D28*'RES S curve-connect'!Y$15+'Res-Appliance class'!$E28*'RES S curve-connect'!Y$20","v":-529.00253781885237},{"$f":"'Res-Appliance class'!$B28*'RES S curve-connect'!Z$5+'Res-Appliance class'!$C28*'RES S curve-connect'!Z$10+'Res-Appliance class'!$D28*'RES S curve-connect'!Z$15+'Res-Appliance class'!$E28*'RES S curve-connect'!Z$20","v":-301.80174958902512},{"$f":"'Res-Appliance class'!$B28*'RES S curve-connect'!AA$5+'Res-Appliance class'!$C28*'RES S curve-connect'!AA$10+'Res-Appliance class'!$D28*'RES S curve-connect'!AA$15+'Res-Appliance class'!$E28*'RES S curve-connect'!AA$20","v":-74.622303967119478},{"$f":"'Res-Appliance class'!$B28*'RES S curve-connect'!AB$5+'Res-Appliance class'!$C28*'RES S curve-connect'!AB$10+'Res-Appliance class'!$D28*'RES S curve-connect'!AB$15+'Res-Appliance class'!$E28*'RES S curve-connect'!AB$20","v":110.19344669901687},{"$f":"'Res-Appliance class'!$B28*'RES S curve-connect'!AC$5+'Res-Appliance class'!$C28*'RES S curve-connect'!AC$10+'Res-Appliance class'!$D28*'RES S curve-connect'!AC$15+'Res-Appliance class'!$E28*'RES S curve-connect'!AC$20","v":288.82810311292889},{"$f":"'Res-Appliance class'!$B28*'RES S curve-connect'!AD$5+'Res-Appliance class'!$C28*'RES S curve-connect'!AD$10+'Res-Appliance class'!$D28*'RES S curve-connect'!AD$15+'Res-Appliance class'!$E28*'RES S curve-connect'!AD$20","v":454.02286534869518},{"$f":"'Res-Appliance class'!$B28*'RES S curve-connect'!AE$5+'Res-Appliance class'!$C28*'RES S curve-connect'!AE$10+'Res-Appliance class'!$D28*'RES S curve-connect'!AE$15+'Res-Appliance class'!$E28*'RES S curve-connect'!AE$20","v":626.76700657170431},{"$f":"'Res-Appliance class'!$B28*'RES S curve-connect'!AF$5+'Res-Appliance class'!$C28*'RES S curve-connect'!AF$10+'Res-Appliance class'!$D28*'RES S curve-connect'!AF$15+'Res-Appliance class'!$E28*'RES S curve-connect'!AF$20","v":845.12072814453836},{"$f":"'Res-Appliance class'!$B28*'RES S curve-connect'!AG$5+'Res-Appliance class'!$C28*'RES S curve-connect'!AG$10+'Res-Appliance class'!$D28*'RES S curve-connect'!AG$15+'Res-Appliance class'!$E28*'RES S curve-connect'!AG$20","v":983.86347368730617},{"$f":"'Res-Appliance class'!$B28*'RES S curve-connect'!AH$5+'Res-Appliance class'!$C28*'RES S curve-connect'!AH$10+'Res-Appliance class'!$D28*'RES S curve-connect'!AH$15+'Res-Appliance class'!$E28*'RES S curve-connect'!AH$20","v":1178.9803120192528},{"$f":"'Res-Appliance class'!$B28*'RES S curve-connect'!AI$5+'Res-Appliance class'!$C28*'RES S curve-connect'!AI$10+'Res-Appliance class'!$D28*'RES S curve-connect'!AI$15+'Res-Appliance class'!$E28*'RES S curve-connect'!AI$20","v":1354.479940966763},{"$f":"'Res-Appliance class'!$B28*'RES S curve-connect'!AJ$5+'Res-Appliance class'!$C28*'RES S curve-connect'!AJ$10+'Res-Appliance class'!$D28*'RES S curve-connect'!AJ$15+'Res-Appliance class'!$E28*'RES S curve-connect'!AJ$20","v":1512.8427265908485},{"$f":"'Res-Appliance class'!$B28*'RES S curve-connect'!AK$5+'Res-Appliance class'!$C28*'RES S curve-connect'!AK$10+'Res-Appliance class'!$D28*'RES S curve-connect'!AK$15+'Res-Appliance class'!$E28*'RES S curve-connect'!AK$20","v":1680.9715296978602},{"$f":"'Res-Appliance class'!$B28*'RES S curve-connect'!AL$5+'Res-Appliance class'!$C28*'RES S curve-connect'!AL$10+'Res-Appliance class'!$D28*'RES S curve-connect'!AL$15+'Res-Appliance class'!$E28*'RES S curve-connect'!AL$20","v":1098.6576951668276},{"$f":"'Res-Appliance class'!$B28*'RES S curve-connect'!AM$5+'Res-Appliance class'!$C28*'RES S curve-connect'!AM$10+'Res-Appliance class'!$D28*'RES S curve-connect'!AM$15+'Res-Appliance class'!$E28*'RES S curve-connect'!AM$20","v":1022.552164145703},{"$f":"'Res-Appliance class'!$B28*'RES S curve-connect'!AN$5+'Res-Appliance class'!$C28*'RES S curve-connect'!AN$10+'Res-Appliance class'!$D28*'RES S curve-connect'!AN$15+'Res-Appliance class'!$E28*'RES S curve-connect'!AN$20","v":1181.7550894219571},{"$f":"'Res-Appliance class'!$B28*'RES S curve-connect'!AO$5+'Res-Appliance class'!$C28*'RES S curve-connect'!AO$10+'Res-Appliance class'!$D28*'RES S curve-connect'!AO$15+'Res-Appliance class'!$E28*'RES S curve-connect'!AO$20","v":1376.4449015752264},{"$f":"'Res-Appliance class'!$B28*'RES S curve-connect'!AP$5+'Res-Appliance class'!$C28*'RES S curve-connect'!AP$10+'Res-Appliance class'!$D28*'RES S curve-connect'!AP$15+'Res-Appliance class'!$E28*'RES S curve-connect'!AP$20","v":1556.2905657181311},{"$f":"'Res-Appliance class'!$B28*'RES S curve-connect'!AQ$5+'Res-Appliance class'!$C28*'RES S curve-connect'!AQ$10+'Res-Appliance class'!$D28*'RES S curve-connect'!AQ$15+'Res-Appliance class'!$E28*'RES S curve-connect'!AQ$20","v":1749.931517753766},{"$f":"'Res-Appliance class'!$B28*'RES S curve-connect'!AR$5+'Res-Appliance class'!$C28*'RES S curve-connect'!AR$10+'Res-Appliance class'!$D28*'RES S curve-connect'!AR$15+'Res-Appliance class'!$E28*'RES S curve-connect'!AR$20","v":1962.5443437851764},{"$f":"'Res-Appliance class'!$B28*'RES S curve-connect'!AS$5+'Res-Appliance class'!$C28*'RES S curve-connect'!AS$10+'Res-Appliance class'!$D28*'RES S curve-connect'!AS$15+'Res-Appliance class'!$E28*'RES S curve-connect'!AS$20","v":2201.1266054961065},{"$f":"'Res-Appliance class'!$B28*'RES S curve-connect'!AT$5+'Res-Appliance class'!$C28*'RES S curve-connect'!AT$10+'Res-Appliance class'!$D28*'RES S curve-connect'!AT$15+'Res-Appliance class'!$E28*'RES S curve-connect'!AT$20","v":2467.9963285749895},{"$f":"'Res-Appliance class'!$B28*'RES S curve-connect'!AU$5+'Res-Appliance class'!$C28*'RES S curve-connect'!AU$10+'Res-Appliance class'!$D28*'RES S curve-connect'!AU$15+'Res-Appliance class'!$E28*'RES S curve-connect'!AU$20","v":2776.7435069866515},{"$f":"'Res-Appliance class'!$B28*'RES S curve-connect'!AV$5+'Res-Appliance class'!$C28*'RES S curve-connect'!AV$10+'Res-Appliance class'!$D28*'RES S curve-connect'!AV$15+'Res-Appliance class'!$E28*'RES S curve-connect'!AV$20","v":3128.9240072573989},{"$f":"'Res-Appliance class'!$B28*'RES S curve-connect'!AW$5+'Res-Appliance class'!$C28*'RES S curve-connect'!AW$10+'Res-Appliance class'!$D28*'RES S curve-connect'!AW$15+'Res-Appliance class'!$E28*'RES S curve-connect'!AW$20","v":3533.7277203622702},{"$f":"'Res-Appliance class'!$B28*'RES S curve-connect'!AX$5+'Res-Appliance class'!$C28*'RES S curve-connect'!AX$10+'Res-Appliance class'!$D28*'RES S curve-connect'!AX$15+'Res-Appliance class'!$E28*'RES S curve-connect'!AX$20","v":3995.0883403624607},{"$f":"'Res-Appliance class'!$B28*'RES S curve-connect'!AY$5+'Res-Appliance class'!$C28*'RES S curve-connect'!AY$10+'Res-Appliance class'!$D28*'RES S curve-connect'!AY$15+'Res-Appliance class'!$E28*'RES S curve-connect'!AY$20","v":4527.4361826681943},{"$f":"'Res-Appliance class'!$B28*'RES S curve-connect'!AZ$5+'Res-Appliance class'!$C28*'RES S curve-connect'!AZ$10+'Res-Appliance class'!$D28*'RES S curve-connect'!AZ$15+'Res-Appliance class'!$E28*'RES S curve-connect'!AZ$20","v":5136.0108890740476},{"$f":"'Res-Appliance class'!$B28*'RES S curve-connect'!BA$5+'Res-Appliance class'!$C28*'RES S curve-connect'!BA$10+'Res-Appliance class'!$D28*'RES S curve-connect'!BA$15+'Res-Appliance class'!$E28*'RES S curve-connect'!BA$20","v":5840.8124550799585},{"$f":"'Res-Appliance class'!$B28*'RES S curve-connect'!BB$5+'Res-Appliance class'!$C28*'RES S curve-connect'!BB$10+'Res-Appliance class'!$D28*'RES S curve-connect'!BB$15+'Res-Appliance class'!$E28*'RES S curve-connect'!BB$20","v":6664.273096708559},{"$f":"'Res-Appliance class'!$B28*'RES S curve-connect'!BC$5+'Res-Appliance class'!$C28*'RES S curve-connect'!BC$10+'Res-Appliance class'!$D28*'RES S curve-connect'!BC$15+'Res-Appliance class'!$E28*'RES S curve-connect'!BC$20","v":7646.2661249643425},{"$f":"'Res-Appliance class'!$B28*'RES S curve-connect'!BD$5+'Res-Appliance class'!$C28*'RES S curve-connect'!BD$10+'Res-Appliance class'!$D28*'RES S curve-connect'!BD$15+'Res-Appliance class'!$E28*'RES S curve-connect'!BD$20","v":8593.6703875014773},{"$f":"'Res-Appliance class'!$B28*'RES S curve-connect'!BE$5+'Res-Appliance class'!$C28*'RES S curve-connect'!BE$10+'Res-Appliance class'!$D28*'RES S curve-connect'!BE$15+'Res-Appliance class'!$E28*'RES S curve-connect'!BE$20","v":9459.6326058458071},{"$f":"'Res-Appliance class'!$B28*'RES S curve-connect'!BF$5+'Res-Appliance class'!$C28*'RES S curve-connect'!BF$10+'Res-Appliance class'!$D28*'RES S curve-connect'!BF$15+'Res-Appliance class'!$E28*'RES S curve-connect'!BF$20","v":10345.666134882897},{"$f":"'Res-Appliance class'!$B28*'RES S curve-connect'!BG$5+'Res-Appliance class'!$C28*'RES S curve-connect'!BG$10+'Res-Appliance class'!$D28*'RES S curve-connect'!BG$15+'Res-Appliance class'!$E28*'RES S curve-connect'!BG$20","v":11348.425346067488},{"$f":"'Res-Appliance class'!$B28*'RES S curve-connect'!BH$5+'Res-Appliance class'!$C28*'RES S curve-connect'!BH$10+'Res-Appliance class'!$D28*'RES S curve-connect'!BH$15+'Res-Appliance class'!$E28*'RES S curve-connect'!BH$20","v":12538.776998225721},{"$f":"'Res-Appliance class'!$B28*'RES S curve-connect'!BI$5+'Res-Appliance class'!$C28*'RES S curve-connect'!BI$10+'Res-Appliance class'!$D28*'RES S curve-connect'!BI$15+'Res-Appliance class'!$E28*'RES S curve-connect'!BI$20","v":14263.576869919794},{"$f":"'Res-Appliance class'!$B28*'RES S curve-connect'!BJ$5+'Res-Appliance class'!$C28*'RES S curve-connect'!BJ$10+'Res-Appliance class'!$D28*'RES S curve-connect'!BJ$15+'Res-Appliance class'!$E28*'RES S curve-connect'!BJ$20","v":16789.745048779434},{"$f":"'Res-Appliance class'!$B28*'RES S curve-connect'!BK$5+'Res-Appliance class'!$C28*'RES S curve-connect'!BK$10+'Res-Appliance class'!$D28*'RES S curve-connect'!BK$15+'Res-Appliance class'!$E28*'RES S curve-connect'!BK$20","v":20518.012666528146},{"$f":"'Res-Appliance class'!$B28*'RES S curve-connect'!BL$5+'Res-Appliance class'!$C28*'RES S curve-connect'!BL$10+'Res-Appliance class'!$D28*'RES S curve-connect'!BL$15+'Res-Appliance class'!$E28*'RES S curve-connect'!BL$20","v":-1031.5561329060511},{"$f":"'Res-Appliance class'!$B28*'RES S curve-connect'!BM$5+'Res-Appliance class'!$C28*'RES S curve-connect'!BM$10+'Res-Appliance class'!$D28*'RES S curve-connect'!BM$15+'Res-Appliance class'!$E28*'RES S curve-connect'!BM$20","v":-1026.8354940113484},{"$f":"'Res-Appliance class'!$B28*'RES S curve-connect'!BN$5+'Res-Appliance class'!$C28*'RES S curve-connect'!BN$10+'Res-Appliance class'!$D28*'RES S curve-connect'!BN$15+'Res-Appliance class'!$E28*'RES S curve-connect'!BN$20","v":-1024.3842952995988},{"$f":"'Res-Appliance class'!$B28*'RES S curve-connect'!BO$5+'Res-Appliance class'!$C28*'RES S curve-connect'!BO$10+'Res-Appliance class'!$D28*'RES S curve-connect'!BO$15+'Res-Appliance class'!$E28*'RES S curve-connect'!BO$20","v":-1017.4138855974512},{"$f":"'Res-Appliance class'!$B28*'RES S curve-connect'!BP$5+'Res-Appliance class'!$C28*'RES S curve-connect'!BP$10+'Res-Appliance class'!$D28*'RES S curve-connect'!BP$15+'Res-Appliance class'!$E28*'RES S curve-connect'!BP$20","v":-1012.7128371920321},{"$f":"'Res-Appliance class'!$B28*'RES S curve-connect'!BQ$5+'Res-Appliance class'!$C28*'RES S curve-connect'!BQ$10+'Res-Appliance class'!$D28*'RES S curve-connect'!BQ$15+'Res-Appliance class'!$E28*'RES S curve-connect'!BQ$20","v":-1008.0182404719828},{"$f":"'Res-Appliance class'!$B28*'RES S curve-connect'!BR$5+'Res-Appliance class'!$C28*'RES S curve-connect'!BR$10+'Res-Appliance class'!$D28*'RES S curve-connect'!BR$15+'Res-Appliance class'!$E28*'RES S curve-connect'!BR$20","v":-1005.5929271403614},{"$f":"'Res-Appliance class'!$B28*'RES S curve-connect'!BS$5+'Res-Appliance class'!$C28*'RES S curve-connect'!BS$10+'Res-Appliance class'!$D28*'RES S curve-connect'!BS$15+'Res-Appliance class'!$E28*'RES S curve-connect'!BS$20","v":-998.64824699866517},{"$f":"'Res-Appliance class'!$B28*'RES S curve-connect'!BT$5+'Res-Appliance class'!$C28*'RES S curve-connect'!BT$10+'Res-Appliance class'!$D28*'RES S curve-connect'!BT$15+'Res-Appliance class'!$E28*'RES S curve-connect'!BT$20","v":-993.97277330270981},{"$f":"'Res-Appliance class'!$B28*'RES S curve-connect'!BU$5+'Res-Appliance class'!$C28*'RES S curve-connect'!BU$10+'Res-Appliance class'!$D28*'RES S curve-connect'!BU$15+'Res-Appliance class'!$E28*'RES S curve-connect'!BU$20","v":-989.30359740370932},{"$f":"'Res-Appliance class'!$B28*'RES S curve-connect'!BV$5+'Res-Appliance class'!$C28*'RES S curve-connect'!BV$10+'Res-Appliance class'!$D28*'RES S curve-connect'!BV$15+'Res-Appliance class'!$E28*'RES S curve-connect'!BV$20","v":-986.90355196121789},{"$f":"'Res-Appliance class'!$B28*'RES S curve-connect'!BW$5+'Res-Appliance class'!$C28*'RES S curve-connect'!BW$10+'Res-Appliance class'!$D28*'RES S curve-connect'!BW$15+'Res-Appliance class'!$E28*'RES S curve-connect'!BW$20","v":-979.98398772718895},{"$f":"'Res-Appliance class'!$B28*'RES S curve-connect'!BX$5+'Res-Appliance class'!$C28*'RES S curve-connect'!BX$10+'Res-Appliance class'!$D28*'RES S curve-connect'!BX$15+'Res-Appliance class'!$E28*'RES S curve-connect'!BX$20","v":-975.33347890189339},{"$f":"'Res-Appliance class'!$B28*'RES S curve-connect'!BY$5+'Res-Appliance class'!$C28*'RES S curve-connect'!BY$10+'Res-Appliance class'!$D28*'RES S curve-connect'!BY$15+'Res-Appliance class'!$E28*'RES S curve-connect'!BY$20","v":-970.68911777503899},{"$f":"'Res-Appliance class'!$B28*'RES S curve-connect'!BZ$5+'Res-Appliance class'!$C28*'RES S curve-connect'!BZ$10+'Res-Appliance class'!$D28*'RES S curve-connect'!BZ$15+'Res-Appliance class'!$E28*'RES S curve-connect'!BZ$20","v":-968.31373793874968},{"$f":"'Res-Appliance class'!$B28*'RES S curve-connect'!CA$5+'Res-Appliance class'!$C28*'RES S curve-connect'!CA$10+'Res-Appliance class'!$D28*'RES S curve-connect'!CA$15+'Res-Appliance class'!$E28*'RES S curve-connect'!CA$20","v":-961.41869107165758},{"$f":"'Res-Appliance class'!$B28*'RES S curve-connect'!CB$5+'Res-Appliance class'!$C28*'RES S curve-connect'!CB$10+'Res-Appliance class'!$D28*'RES S curve-connect'!CB$15+'Res-Appliance class'!$E28*'RES S curve-connect'!CB$20","v":-956.79255229486512},{"$f":"'Res-Appliance class'!$B28*'RES S curve-connect'!CC$5+'Res-Appliance class'!$C28*'RES S curve-connect'!CC$10+'Res-Appliance class'!$D28*'RES S curve-connect'!CC$15+'Res-Appliance class'!$E28*'RES S curve-connect'!CC$20","v":-952.17241481310043},{"$f":"'Res-Appliance class'!$B28*'RES S curve-connect'!CD$5+'Res-Appliance class'!$C28*'RES S curve-connect'!CD$10+'Res-Appliance class'!$D28*'RES S curve-connect'!CD$15+'Res-Appliance class'!$E28*'RES S curve-connect'!CD$20","v":-1022.6399484457705}]
["Boroondara (C)",null,{"$f":"'Res-Appliance class'!$B29*'RES S curve-connect'!C$5+'Res-Appliance class'!$C29*'RES S curve-connect'!C$10+'Res-Appliance class'!$D29*'RES S curve-connect'!C$15+'Res-Appliance class'!$E29*'RES S curve-connect'!C$20","v":-3253.4698435712826},{"$f":"'Res-Appliance class'!$B29*'RES S curve-connect'!D$5+'Res-Appliance class'!$C29*'RES S curve-connect'!D$10+'Res-Appliance class'!$D29*'RES S curve-connect'!D$15+'Res-Appliance class'!$E29*'RES S curve-connect'!D$20","v":-3582.481615195567},{"$f":"'Res-Appliance class'!$B29*'RES S curve-connect'!E$5+'Res-Appliance class'!$C29*'RES S curve-connect'!E$10+'Res-Appliance class'!$D29*'RES S curve-connect'!E$15+'Res-Appliance class'!$E29*'RES S curve-connect'!E$20","v":-2706.2598446424549},{"$f":"'Res-Appliance class'!$B29*'RES S curve-connect'!F$5+'Res-Appliance class'!$C29*'RES S curve-connect'!F$10+'Res-Appliance class'!$D29*'RES S curve-connect'!F$15+'Res-Appliance class'!$E29*'RES S curve-connect'!F$20","v":-2609.0292631170732},{"$f":"'Res-Appliance class'!$B29*'RES S curve-connect'!G$5+'Res-Appliance class'!$C29*'RES S curve-connect'!G$10+'Res-Appliance class'!$D29*'RES S curve-connect'!G$15+'Res-Appliance class'!$E29*'RES S curve-connect'!G$20","v":-3643.5372390073426},{"$f":"'Res-Appliance class'!$B29*'RES S curve-connect'!H$5+'Res-Appliance class'!$C29*'RES S curve-connect'!H$10+'Res-Appliance class'!$D29*'RES S curve-connect'!H$15+'Res-Appliance class'!$E29*'RES S curve-connect'!H$20","v":-3672.2473215547325},{"$f":"'Res-Appliance class'!$B29*'RES S curve-connect'!I$5+'Res-Appliance class'!$C29*'RES S curve-connect'!I$10+'Res-Appliance class'!$D29*'RES S curve-connect'!I$15+'Res-Appliance class'!$E29*'RES S curve-connect'!I$20","v":-3394.4160558122758},{"$f":"'Res-Appliance class'!$B29*'RES S curve-connect'!J$5+'Res-Appliance class'!$C29*'RES S curve-connect'!J$10+'Res-Appliance class'!$D29*'RES S curve-connect'!J$15+'Res-Appliance class'!$E29*'RES S curve-connect'!J$20","v":-3743.5644568717516},{"$f":"'Res-Appliance class'!$B29*'RES S curve-connect'!K$5+'Res-Appliance class'!$C29*'RES S curve-connect'!K$10+'Res-Appliance class'!$D29*'RES S curve-connect'!K$15+'Res-Appliance class'!$E29*'RES S curve-connect'!K$20","v":-3132.7180040110443},{"$f":"'Res-Appliance class'!$B29*'RES S curve-connect'!L$5+'Res-Appliance class'!$C29*'RES S curve-connect'!L$10+'Res-Appliance class'!$D29*'RES S curve-connect'!L$15+'Res-Appliance class'!$E29*'RES S curve-connect'!L$20","v":-3339.3837496254864},{"$f":"'Res-Appliance class'!$B29*'RES S curve-connect'!M$5+'Res-Appliance class'!$C29*'RES S curve-connect'!M$10+'Res-Appliance class'!$D29*'RES S curve-connect'!M$15+'Res-Appliance class'!$E29*'RES S curve-connect'!M$20","v":-3726.7632180512533},{"$f":"'Res-Appliance class'!$B29*'RES S curve-connect'!N$5+'Res-Appliance class'!$C29*'RES S curve-connect'!N$10+'Res-Appliance class'!$D29*'RES S curve-connect'!N$15+'Res-Appliance class'!$E29*'RES S curve-connect'!N$20","v":-3747.1164537506729},{"$f":"'Res-Appliance class'!$B29*'RES S curve-connect'!O$5+'Res-Appliance class'!$C29*'RES S curve-connect'!O$10+'Res-Appliance class'!$D29*'RES S curve-connect'!O$15+'Res-Appliance class'!$E29*'RES S curve-connect'!O$20","v":-3369.3917562225952},{"$f":"'Res-Appliance class'!$B29*'RES S curve-connect'!P$5+'Res-Appliance class'!$C29*'RES S curve-connect'!P$10+'Res-Appliance class'!$D29*'RES S curve-connect'!P$15+'Res-Appliance class'!$E29*'RES S curve-connect'!P$20","v":-3065.3934496986985},{"$f":"'Res-Appliance class'!$B29*'RES S curve-connect'!Q$5+'Res-Appliance class'!$C29*'RES S curve-connect'!Q$10+'Res-Appliance class'!$D29*'RES S curve-connect'!Q$15+'Res-Appliance class'!$E29*'RES S curve-connect'!Q$20","v":-2615.2596306944306},{"$f":"'Res-Appliance class'!$B29*'RES S curve-connect'!R$5+'Res-Appliance class'!$C29*'RES S curve-connect'!R$10+'Res-Appliance class'!$D29*'RES S curve-connect'!R$15+'Res-Appliance class'!$E29*'RES S curve-connect'!R$20","v":-2352.5897281050002},{"$f":"'Res-Appliance class'!$B29*'RES S curve-connect'!S$5+'Res-Appliance class'!$C29*'RES S curve-connect'!S$10+'Res-Appliance class'!$D29*'RES S curve-connect'!S$15+'Res-Appliance class'!$E29*'RES S curve-connect'!S$20","v":-1944.3636415162355},{"$f":"'Res-Appliance class'!$B29*'RES S curve-connect'!T$5+'Res-Appliance class'!$C29*'RES S curve-connect'!T$10+'Res-Appliance class'!$D29*'RES S curve-connect'!T$15+'Res-Appliance class'!$E29*'RES S curve-connect'!T$20","v":-1716.6129054202254},{"$f":"'Res-Appliance class'!$B29*'RES S curve-connect'!U$5+'Res-Appliance class'!$C29*'RES S curve-connect'!U$10+'Res-Appliance class'!$D29*'RES S curve-connect'!U$15+'Res-Appliance class'!$E29*'RES S curve-connect'!U$20","v":-1457.7633674598815},{"$f":"'Res-Appliance class'!$B29*'RES S curve-connect'!V$5+'Res-Appliance class'!$C29*'RES S curve-connect'!V$10+'Res-Appliance class'!$D29*'RES S curve-connect'!V$15+'Res-Appliance class'!$E29*'RES S curve-connect'!V$20","v":-1275.336816229139},{"$f":"'Res-Appliance class'!$B29*'RES S curve-connect'!W$5+'Res-Appliance class'!$C29*'RES S curve-connect'!W$10+'Res-Appliance class'!$D29*'RES S curve-connect'!W$15+'Res-Appliance class'!$E29*'RES S curve-connect'!W$20","v":-1129.3428455262292},{"$f":"'Res-Appliance class'!$B29*'RES S curve-connect'!X$5+'Res-Appliance class'!$C29*'RES S curve-connect'!X$10+'Res-Appliance class'!$D29*'RES S curve-connect'!X$15+'Res-Appliance class'!$E29*'RES S curve-connect'!X$20","v":-820.96825775211289},{"$f":"'Res-Appliance class'!$B29*'RES S curve-connect'!Y$5+'Res-Appliance class'!$C29*'RES S curve-connect'!Y$10+'Res-Appliance class'!$D29*'RES S curve-connect'!Y$15+'Res-Appliance class'!$E29*'RES S curve-connect'!Y$20","v":-509.04956790372887},{"$f":"'Res-Appliance class'!$B29*'RES S curve-connect'!Z$5+'Res-Appliance class'!$C29*'RES S curve-connect'!Z$10+'Res-Appliance class'!$D29*'RES S curve-connect'!Z$15+'Res-Appliance class'!$E29*'RES S curve-connect'!Z$20","v":-292.47052508478606},{"$f":"'Res-Appliance class'!$B29*'RES S curve-connect'!AA$5+'Res-Appliance class'!$C29*'RES S curve-connect'!AA$10+'Res-Appliance class'!$D29*'RES S curve-connect'!AA$15+'Res-Appliance class'!$E29*'RES S curve-connect'!AA$20","v":-75.730273960231983},{"$f":"'Res-Appliance class'!$B29*'RES S curve-connect'!AB$5+'Res-Appliance class'!$C29*'RES S curve-connect'!AB$10+'Res-Appliance class'!$D29*'RES S curve-connect'!AB$15+'Res-Appliance class'!$E29*'RES S curve-connect'!AB$20","v":100.78680816341489},{"$f":"'Res-Appliance class'!$B29*'RES S curve-connect'!AC$5+'Res-Appliance class'!$C29*'RES S curve-connect'!AC$10+'Res-Appliance class'!$D29*'RES S curve-connect'!AC$15+'Res-Appliance class'!$E29*'RES S curve-connect'!AC$20","v":271.52507021155492},{"$f":"'Res-Appliance class'!$B29*'RES S curve-connect'!AD$5+'Res-Appliance class'!$C29*'RES S curve-connect'!AD$10+'Res-Appliance class'!$D29*'RES S curve-connect'!AD$15+'Res-Appliance class'!$E29*'RES S curve-connect'!AD$20","v":429.43225279773367},{"$f":"'Res-Appliance class'!$B29*'RES S curve-connect'!AE$5+'Res-Appliance class'!$C29*'RES S curve-connect'!AE$10+'Res-Appliance class'!$D29*'RES S curve-connect'!AE$15+'Res-Appliance class'!$E29*'RES S curve-connect'!AE$20","v":594.81202001368729},{"$f":"'Res-Appliance class'!$B29*'RES S curve-connect'!AF$5+'Res-Appliance class'!$C29*'RES S curve-connect'!AF$10+'Res-Appliance class'!$D29*'RES S curve-connect'!AF$15+'Res-Appliance class'!$E29*'RES S curve-connect'!AF$20","v":803.51064230320367},{"$f":"'Res-Appliance class'!$B29*'RES S curve-connect'!AG$5+'Res-Appliance class'!$C29*'RES S curve-connect'!AG$10+'Res-Appliance class'!$D29*'RES S curve-connect'!AG$15+'Res-Appliance class'!$E29*'RES S curve-connect'!AG$20","v":936.13955831288035},{"$f":"'Res-Appliance class'!$B29*'RES S curve-connect'!AH$5+'Res-Appliance class'!$C29*'RES S curve-connect'!AH$10+'Res-Appliance class'!$D29*'RES S curve-connect'!AH$15+'Res-Appliance class'!$E29*'RES S curve-connect'!AH$20","v":1122.1388832368548},{"$f":"'Res-Appliance class'!$B29*'RES S curve-connect'!AI$5+'Res-Appliance class'!$C29*'RES S curve-connect'!AI$10+'Res-Appliance class'!$D29*'RES S curve-connect'!AI$15+'Res-Appliance class'!$E29*'RES S curve-connect'!AI$20","v":1289.915334552747},{"$f":"'Res-Appliance class'!$B29*'RES S curve-connect'!AJ$5+'Res-Appliance class'!$C29*'RES S curve-connect'!AJ$10+'Res-Appliance class'!$D29*'RES S curve-connect'!AJ$15+'Res-Appliance class'!$E29*'RES S curve-connect'!AJ$20","v":1441.2082300164971},{"$f":"'Res-Appliance class'!$B29*'RES S curve-connect'!AK$5+'Res-Appliance class'!$C29*'RES S curve-connect'!AK$10+'Res-Appliance class'!$D29*'RES S curve-connect'!AK$15+'Res-Appliance class'!$E29*'RES S curve-connect'!AK$20","v":1601.8491071689152},{"$f":"'Res-Appliance class'!$B29*'RES S curve-connect'!AL$5+'Res-Appliance class'!$C29*'RES S curve-connect'!AL$10+'Res-Appliance class'!$D29*'RES S curve-connect'!AL$15+'Res-Appliance class'!$E29*'RES S curve-connect'!AL$20","v":1044.1234420844203},{"$f":"'Res-Appliance class'!$B29*'RES S curve-connect'!AM$5+'Res-Appliance class'!$C29*'RES S curve-connect'!AM$10+'Res-Appliance class'!$D29*'RES S curve-connect'!AM$15+'Res-Appliance class'!$E29*'RES S curve-connect'!AM$20","v":971.94131970368062},{"$f":"'Res-Appliance class'!$B29*'RES S curve-connect'!AN$5+'Res-Appliance class'!$C29*'RES S curve-connect'!AN$10+'Res-Appliance class'!$D29*'RES S curve-connect'!AN$15+'Res-Appliance class'!$E29*'RES S curve-connect'!AN$20","v":1124.4243531516563},{"$f":"'Res-Appliance class'!$B29*'RES S curve-connect'!AO$5+'Res-Appliance class'!$C29*'RES S curve-connect'!AO$10+'Res-Appliance class'!$D29*'RES S curve-connect'!AO$15+'Res-Appliance class'!$E29*'RES S curve-connect'!AO$20","v":1310.549298994433},{"$f":"'Res-Appliance class'!$B29*'RES S curve-connect'!AP$5+'Res-Appliance class'!$C29*'RES S curve-connect'!AP$10+'Res-Appliance class'!$D29*'RES S curve-connect'!AP$15+'Res-Appliance class'!$E29*'RES S curve-connect'!AP$20","v":1482.2746191680844},{"$f":"'Res-Appliance class'!$B29*'RES S curve-connect'!AQ$5+'Res-Appliance class'!$C29*'RES S curve-connect'!AQ$10+'Res-Appliance class'!$D29*'RES S curve-connect'!AQ$15+'Res-Appliance class'!$E29*'RES S curve-connect'!AQ$20","v":1667.3843332294684},{"$f":"'Res-Appliance class'!$B29*'RES S curve-connect'!AR$5+'Res-Appliance class'!$C29*'RES S curve-connect'!AR$10+'Res-Appliance class'!$D29*'RES S curve-connect'!AR$15+'Res-Appliance class'!$E29*'RES S curve-connect'!AR$20","v":1870.5086712731679},{"$f":"'Res-Appliance class'!$B29*'RES S curve-connect'!AS$5+'Res-Appliance class'!$C29*'RES S curve-connect'!AS$10+'Res-Appliance class'!$D29*'RES S curve-connect'!AS$15+'Res-Appliance class'!$E29*'RES S curve-connect'!AS$20","v":2098.413527575563},{"$f":"'Res-Appliance class'!$B29*'RES S curve-connect'!AT$5+'Res-Appliance class'!$C29*'RES S curve-connect'!AT$10+'Res-Appliance class'!$D29*'RES S curve-connect'!AT$15+'Res-Appliance class'!$E29*'RES S curve-connect'!AT$20","v":2353.1998570982387},{"$f":"'Res-Appliance class'!$B29*'RES S curve-connect'!AU$5+'Res-Appliance class'!$C29*'RES S curve-connect'!AU$10+'Res-Appliance class'!$D29*'RES S curve-connect'!AU$15+'Res-Appliance class'!$E29*'RES S curve-connect'!AU$20","v":2648.1412787297581},{"$f":"'Res-Appliance class'!$B29*'RES S curve-connect'!AV$5+'Res-Appliance class'!$C29*'RES S curve-connect'!AV$10+'Res-Appliance class'!$D29*'RES S curve-connect'!AV$15+'Res-Appliance class'!$E29*'RES S curve-connect'!AV$20","v":2984.4002233495853},{"$f":"'Res-Appliance class'!$B29*'RES S curve-connect'!AW$5+'Res-Appliance class'!$C29*'RES S curve-connect'!AW$10+'Res-Appliance class'!$D29*'RES S curve-connect'!AW$15+'Res-Appliance class'!$E29*'RES S curve-connect'!AW$20","v":3370.8226394089024},{"$f":"'Res-Appliance class'!$B29*'RES S curve-connect'!AX$5+'Res-Appliance class'!$C29*'RES S curve-connect'!AX$10+'Res-Appliance class'!$D29*'RES S curve-connect'!AX$15+'Res-Appliance class'!$E29*'RES S curve-connect'!AX$20","v":3811.0224653808318},{"$f":"'Res-Appliance class'!$B29*'RES S curve-connect'!AY$5+'Res-Appliance class'!$C29*'RES S curve-connect'!AY$10+'Res-Appliance class'!$D29*'RES S curve-connect'!AY$15+'Res-Appliance class'!$E29*'RES S curve-connect'!AY$20","v":4319.0411087490802},{"$f":"'Res-Appliance class'!$B29*'RES S curve-connect'!AZ$5+'Res-Appliance class'!$C29*'RES S curve-connect'!AZ$10+'Res-Appliance class'!$D29*'RES S curve-connect'!AZ$15+'Res-Appliance class'!$E29*'RES S curve-connect'!AZ$20","v":4899.5237932111258},{"$f":"'Res-Appliance class'!$B29*'RES S curve-connect'!BA$5+'Res-Appliance class'!$C29*'RES S curve-connect'!BA$10+'Res-Appliance class'!$D29*'RES S curve-connect'!BA$15+'Res-Appliance class'!$E29*'RES S curve-connect'!BA$20","v":5571.6011482204885},{"$f":"'Res-Appliance class'!$B29*'RES S curve-connect'!BB$5+'Res-Appliance class'!$C29*'RES S curve-connect'!BB$10+'Res-Appliance class'!$D29*'RES S curve-connect'!BB$15+'Res-Appliance class'!$E29*'RES S curve-connect'!BB$20","v":6356.4898492042294},{"$f":"'Res-Appliance class'!$B29*'RES S curve-connect'!BC$5+'Res-Appliance class'!$C29*'RES S curve-connect'!BC$10+'Res-Appliance class'!$D29*'RES S curve-connect'!BC$15+'Res-Appliance class'!$E29*'RES S curve-connect'!BC$20","v":7292.4260397040371},{"$f":"'Res-Appliance class'!$B29*'RES S curve-connect'!BD$5+'Res-Appliance class'!$C29*'RES S curve-connect'!BD$10+'Res-Appliance class'!$D29*'RES S curve-connect'!BD$15+'Res-Appliance class'!$E29*'RES S curve-connect'!BD$20","v":8194.5163892180663},{"$f":"'Res-Appliance class'!$B29*'RES S curve-connect'!BE$5+'Res-Appliance class'!$C29*'RES S curve-connect'!BE$10+'Res-Appliance class'!$D29*'RES S curve-connect'!BE$15+'Res-Appliance class'!$E29*'RES S curve-connect'!BE$20","v":9018.7652529934276},{"$f":"'Res-Appliance class'!$B29*'RES S curve-connect'!BF$5+'Res-Appliance class'!$C29*'RES S curve-connect'!BF$10+'Res-Appliance class'!$D29*'RES S curve-connect'!BF$15+'Res-Appliance class'!$E29*'RES S curve-connect'!BF$20","v":9862.205959161367},{"$f":"'Res-Appliance class'!$B29*'RES S curve-connect'!BG$5+'Res-Appliance class'!$C29*'RES S curve-connect'!BG$10+'Res-Appliance class'!$D29*'RES S curve-connect'!BG$15+'Res-Appliance class'!$E29*'RES S curve-connect'!BG$20","v":10817.094322500583},{"$f":"'Res-Appliance class'!$B29*'RES S curve-connect'!BH$5+'Res-Appliance class'!$C29*'RES S curve-connect'!BH$10+'Res-Appliance class'!$D29*'RES S curve-connect'!BH$15+'Res-Appliance class'!$E29*'RES S curve-connect'!BH$20","v":11950.424010544548},{"$f":"'Res-Appliance class'!$B29*'RES S curve-connect'!BI$5+'Res-Appliance class'!$C29*'RES S curve-connect'!BI$10+'Res-Appliance class'!$D29*'RES S curve-connect'!BI$15+'Res-Appliance class'!$E29*'RES S curve-connect'!BI$20","v":13592.811928040512},{"$f":"'Res-Appliance class'!$B29*'RES S curve-connect'!BJ$5+'Res-Appliance class'!$C29*'RES S curve-connect'!BJ$10+'Res-Appliance class'!$D29*'RES S curve-connect'!BJ$15+'Res-Appliance class'!$E29*'RES S curve-connect'!BJ$20","v":15997.268479664383},{"$f":"'Res-Appliance class'!$B29*'RES S curve-connect'!BK$5+'Res-Appliance class'!$C29*'RES S curve-connect'!BK$10+'Res-Appliance class'!$D29*'RES S curve-connect'!BK$15+'Res-Appliance class'!$E29*'RES S curve-connect'!BK$20","v":19544.415803510263},{"$f":"'Res-Appliance class'!$B29*'RES S curve-connect'!BL$5+'Res-Appliance class'!$C29*'RES S curve-connect'!BL$10+'Res-Appliance class'!$D29*'RES S curve-connect'!BL$15+'Res-Appliance class'!$E29*'RES S curve-connect'!BL$20","v":-995.20940450831222},{"$f":"'Res-Appliance class'!$B29*'RES S curve-connect'!BM$5+'Res-Appliance class'!$C29*'RES S curve-connect'!BM$10+'Res-Appliance class'!$D29*'RES S curve-connect'!BM$15+'Res-Appliance class'!$E29*'RES S curve-connect'!BM$20","v":-990.71671707198129},{"$f":"'Res-Appliance class'!$B29*'RES S curve-connect'!BN$5+'Res-Appliance class'!$C29*'RES S curve-connect'!BN$10+'Res-Appliance class'!$D29*'RES S curve-connect'!BN$15+'Res-Appliance class'!$E29*'RES S curve-connect'!BN$20","v":-988.49320130914339},{"$f":"'Res-Appliance class'!$B29*'RES S curve-connect'!BO$5+'Res-Appliance class'!$C29*'RES S curve-connect'!BO$10+'Res-Appliance class'!$D29*'RES S curve-connect'!BO$15+'Res-Appliance class'!$E29*'RES S curve-connect'!BO$20","v":-981.75020762300983},{"$f":"'Res-Appliance class'!$B29*'RES S curve-connect'!BP$5+'Res-Appliance class'!$C29*'RES S curve-connect'!BP$10+'Res-Appliance class'!$D29*'RES S curve-connect'!BP$15+'Res-Appliance class'!$E29*'RES S curve-connect'!BP$20","v":-977.27630986759073},{"$f":"'Res-Appliance class'!$B29*'RES S curve-connect'!BQ$5+'Res-Appliance class'!$C29*'RES S curve-connect'!BQ$10+'Res-Appliance class'!$D29*'RES S curve-connect'!BQ$15+'Res-Appliance class'!$E29*'RES S curve-connect'!BQ$20","v":-972.80859998879373},{"$f":"'Res-Appliance class'!$B29*'RES S curve-connect'!BR$5+'Res-Appliance class'!$C29*'RES S curve-connect'!BR$10+'Res-Appliance class'!$D29*'RES S curve-connect'!BR$15+'Res-Appliance class'!$E29*'RES S curve-connect'!BR$20","v":-970.60991123738518},{"$f":"'Res-Appliance class'!$B29*'RES S curve-connect'!BS$5+'Res-Appliance class'!$C29*'RES S curve-connect'!BS$10+'Res-Appliance class'!$D29*'RES S curve-connect'!BS$15+'Res-Appliance class'!$E29*'RES S curve-connect'!BS$20","v":-963.89159495307388},{"$f":"'Res-Appliance class'!$B29*'RES S curve-connect'!BT$5+'Res-Appliance class'!$C29*'RES S curve-connect'!BT$10+'Res-Appliance class'!$D29*'RES S curve-connect'!BT$15+'Res-Appliance class'!$E29*'RES S curve-connect'!BT$20","v":-959.44222592044866},{"$f":"'Res-Appliance class'!$B29*'RES S curve-connect'!BU$5+'Res-Appliance class'!$C29*'RES S curve-connect'!BU$10+'Res-Appliance class'!$D29*'RES S curve-connect'!BU$15+'Res-Appliance class'!$E29*'RES S curve-connect'!BU$20","v":-954.99889701011864},{"$f":"'Res-Appliance class'!$B29*'RES S curve-connect'!BV$5+'Res-Appliance class'!$C29*'RES S curve-connect'!BV$10+'Res-Appliance class'!$D29*'RES S curve-connect'!BV$15+'Res-Appliance class'!$E29*'RES S curve-connect'!BV$20","v":-952.82444239171309},{"$f":"'Res-Appliance class'!$B29*'RES S curve-connect'!BW$5+'Res-Appliance class'!$C29*'RES S curve-connect'!BW$10+'Res-Appliance class'!$D29*'RES S curve-connect'!BW$15+'Res-Appliance class'!$E29*'RES S curve-connect'!BW$20","v":-946.13021431799939},{"$f":"'Res-Appliance class'!$B29*'RES S curve-connect'!BX$5+'Res-Appliance class'!$C29*'RES S curve-connect'!BX$10+'Res-Appliance class'!$D29*'RES S curve-connect'!BX$15+'Res-Appliance class'!$E29*'RES S curve-connect'!BX$20","v":-941.70478848085895},{"$f":"'Res-Appliance class'!$B29*'RES S curve-connect'!BY$5+'Res-Appliance class'!$C29*'RES S curve-connect'!BY$10+'Res-Appliance class'!$D29*'RES S curve-connect'!BY$15+'Res-Appliance class'!$E29*'RES S curve-connect'!BY$20","v":-937.28525865246502},{"$f":"'Res-Appliance class'!$B29*'RES S curve-connect'!BZ$5+'Res-Appliance class'!$C29*'RES S curve-connect'!BZ$10+'Res-Appliance class'!$D29*'RES S curve-connect'!BZ$15+'Res-Appliance class'!$E29*'RES S curve-connect'!BZ$20","v":-935.13445989831848},{"$f":"'Res-Appliance class'!$B29*'RES S curve-connect'!CA$5+'Res-Appliance class'!$C29*'RES S curve-connect'!CA$10+'Res-Appliance class'!$D29*'RES S curve-connect'!CA$15+'Res-Appliance class'!$E29*'RES S curve-connect'!CA$20","v":-928.46374536139786},{"$f":"'Res-Appliance class'!$B29*'RES S curve-connect'!CB$5+'Res-Appliance class'!$C29*'RES S curve-connect'!CB$10+'Res-Appliance class'!$D29*'RES S curve-connect'!CB$15+'Res-Appliance class'!$E29*'RES S curve-connect'!CB$20","v":-924.06169161817775},{"$f":"'Res-Appliance class'!$B29*'RES S curve-connect'!CC$5+'Res-Appliance class'!$C29*'RES S curve-connect'!CC$10+'Res-Appliance class'!$D29*'RES S curve-connect'!CC$15+'Res-Appliance class'!$E29*'RES S curve-connect'!CC$20","v":-919.66539331983927},{"$f":"'Res-Appliance class'!$B29*'RES S curve-connect'!CD$5+'Res-Appliance class'!$C29*'RES S curve-connect'!CD$10+'Res-Appliance class'!$D29*'RES S curve-connect'!CD$15+'Res-Appliance class'!$E29*'RES S curve-connect'!CD$20","v":-986.59558537630505}]
["Cardinia (S)",null,{"$f":"'Res-Appliance class'!$B30*'RES S curve-connect'!C$5+'Res-Appliance class'!$C30*'RES S curve-connect'!C$10+'Res-Appliance class'!$D30*'RES S curve-connect'!C$15+'Res-Appliance class'!$E30*'RES S curve-connect'!C$20","v":-3567.039215071477},{"$f":"'Res-Appliance class'!$B30*'RES S curve-connect'!D$5+'Res-Appliance class'!$C30*'RES S curve-connect'!D$10+'Res-Appliance class'!$D30*'RES S curve-connect'!D$15+'Res-Appliance class'!$E30*'RES S curve-connect'!D$20","v":-3938.5893382883592},{"$f":"'Res-Appliance class'!$B30*'RES S curve-connect'!E$5+'Res-Appliance class'!$C30*'RES S curve-connect'!E$10+'Res-Appliance class'!$D30*'RES S curve-connect'!E$15+'Res-Appliance class'!$E30*'RES S curve-connect'!E$20","v":-2915.9634036307134},{"$f":"'Res-Appliance class'!$B30*'RES S curve-connect'!F$5+'Res-Appliance class'!$C30*'RES S curve-connect'!F$10+'Res-Appliance class'!$D30*'RES S curve-connect'!F$15+'Res-Appliance class'!$E30*'RES S curve-connect'!F$20","v":-2803.4262048880264},{"$f":"'Res-Appliance class'!$B30*'RES S curve-connect'!G$5+'Res-Appliance class'!$C30*'RES S curve-connect'!G$10+'Res-Appliance class'!$D30*'RES S curve-connect'!G$15+'Res-Appliance class'!$E30*'RES S curve-connect'!G$20","v":-4047.2972561480842},{"$f":"'Res-Appliance class'!$B30*'RES S curve-connect'!H$5+'Res-Appliance class'!$C30*'RES S curve-connect'!H$10+'Res-Appliance class'!$D30*'RES S curve-connect'!H$15+'Res-Appliance class'!$E30*'RES S curve-connect'!H$20","v":-4073.1859171880765},{"$f":"'Res-Appliance class'!$B30*'RES S curve-connect'!I$5+'Res-Appliance class'!$C30*'RES S curve-connect'!I$10+'Res-Appliance class'!$D30*'RES S curve-connect'!I$15+'Res-Appliance class'!$E30*'RES S curve-connect'!I$20","v":-3754.6066714474573},{"$f":"'Res-Appliance class'!$B30*'RES S curve-connect'!J$5+'Res-Appliance class'!$C30*'RES S curve-connect'!J$10+'Res-Appliance class'!$D30*'RES S curve-connect'!J$15+'Res-Appliance class'!$E30*'RES S curve-connect'!J$20","v":-4118.0966901902248},{"$f":"'Res-Appliance class'!$B30*'RES S curve-connect'!K$5+'Res-Appliance class'!$C30*'RES S curve-connect'!K$10+'Res-Appliance class'!$D30*'RES S curve-connect'!K$15+'Res-Appliance class'!$E30*'RES S curve-connect'!K$20","v":-3428.2760105362745},{"$f":"'Res-Appliance class'!$B30*'RES S curve-connect'!L$5+'Res-Appliance class'!$C30*'RES S curve-connect'!L$10+'Res-Appliance class'!$D30*'RES S curve-connect'!L$15+'Res-Appliance class'!$E30*'RES S curve-connect'!L$20","v":-3662.9887643860029},{"$f":"'Res-Appliance class'!$B30*'RES S curve-connect'!M$5+'Res-Appliance class'!$C30*'RES S curve-connect'!M$10+'Res-Appliance class'!$D30*'RES S curve-connect'!M$15+'Res-Appliance class'!$E30*'RES S curve-connect'!M$20","v":-4113.2085215286697},{"$f":"'Res-Appliance class'!$B30*'RES S curve-connect'!N$5+'Res-Appliance class'!$C30*'RES S curve-connect'!N$10+'Res-Appliance class'!$D30*'RES S curve-connect'!N$15+'Res-Appliance class'!$E30*'RES S curve-connect'!N$20","v":-4138.0247865890005},{"$f":"'Res-Appliance class'!$B30*'RES S curve-connect'!O$5+'Res-Appliance class'!$C30*'RES S curve-connect'!O$10+'Res-Appliance class'!$D30*'RES S curve-connect'!O$15+'Res-Appliance class'!$E30*'RES S curve-connect'!O$20","v":-3709.4340493190803},{"$f":"'Res-Appliance class'!$B30*'RES S curve-connect'!P$5+'Res-Appliance class'!$C30*'RES S curve-connect'!P$10+'Res-Appliance class'!$D30*'RES S curve-connect'!P$15+'Res-Appliance class'!$E30*'RES S curve-connect'!P$20","v":-3363.4172762538942},{"$f":"'Res-Appliance class'!$B30*'RES S curve-connect'!Q$5+'Res-Appliance class'!$C30*'RES S curve-connect'!Q$10+'Res-Appliance class'!$D30*'RES S curve-connect'!Q$15+'Res-Appliance class'!$E30*'RES S curve-connect'!Q$20","v":-2850.4106517475211},{"$f":"'Res-Appliance class'!$B30*'RES S curve-connect'!R$5+'Res-Appliance class'!$C30*'RES S curve-connect'!R$10+'Res-Appliance class'!$D30*'RES S curve-connect'!R$15+'Res-Appliance class'!$E30*'RES S curve-connect'!R$20","v":-2551.3748416763792},{"$f":"'Res-Appliance class'!$B30*'RES S curve-connect'!S$5+'Res-Appliance class'!$C30*'RES S curve-connect'!S$10+'Res-Appliance class'!$D30*'RES S curve-connect'!S$15+'Res-Appliance class'!$E30*'RES S curve-connect'!S$20","v":-2088.1610423306856},{"$f":"'Res-Appliance class'!$B30*'RES S curve-connect'!T$5+'Res-Appliance class'!$C30*'RES S curve-connect'!T$10+'Res-Appliance class'!$D30*'RES S curve-connect'!T$15+'Res-Appliance class'!$E30*'RES S curve-connect'!T$20","v":-1825.5271948096865},{"$f":"'Res-Appliance class'!$B30*'RES S curve-connect'!U$5+'Res-Appliance class'!$C30*'RES S curve-connect'!U$10+'Res-Appliance class'!$D30*'RES S curve-connect'!U$15+'Res-Appliance class'!$E30*'RES S curve-connect'!U$20","v":-1530.166316000867},{"$f":"'Res-Appliance class'!$B30*'RES S curve-connect'!V$5+'Res-Appliance class'!$C30*'RES S curve-connect'!V$10+'Res-Appliance class'!$D30*'RES S curve-connect'!V$15+'Res-Appliance class'!$E30*'RES S curve-connect'!V$20","v":-1323.5290338234604},{"$f":"'Res-Appliance class'!$B30*'RES S curve-connect'!W$5+'Res-Appliance class'!$C30*'RES S curve-connect'!W$10+'Res-Appliance class'!$D30*'RES S curve-connect'!W$15+'Res-Appliance class'!$E30*'RES S curve-connect'!W$20","v":-1158.3724021835726},{"$f":"'Res-Appliance class'!$B30*'RES S curve-connect'!X$5+'Res-Appliance class'!$C30*'RES S curve-connect'!X$10+'Res-Appliance class'!$D30*'RES S curve-connect'!X$15+'Res-Appliance class'!$E30*'RES S curve-connect'!X$20","v":-805.81241582368705},{"$f":"'Res-Appliance class'!$B30*'RES S curve-connect'!Y$5+'Res-Appliance class'!$C30*'RES S curve-connect'!Y$10+'Res-Appliance class'!$D30*'RES S curve-connect'!Y$15+'Res-Appliance class'!$E30*'RES S curve-connect'!Y$20","v":-449.68077069090043},{"$f":"'Res-Appliance class'!$B30*'RES S curve-connect'!Z$5+'Res-Appliance class'!$C30*'RES S curve-connect'!Z$10+'Res-Appliance class'!$D30*'RES S curve-connect'!Z$15+'Res-Appliance class'!$E30*'RES S curve-connect'!Z$20","v":-203.09726566399888},{"$f":"'Res-Appliance class'!$B30*'RES S curve-connect'!AA$5+'Res-Appliance class'!$C30*'RES S curve-connect'!AA$10+'Res-Appliance class'!$D30*'RES S curve-connect'!AA$15+'Res-Appliance class'!$E30*'RES S curve-connect'!AA$20","v":43.10219690760826},{"$f":"'Res-Appliance class'!$B30*'RES S curve-connect'!AB$5+'Res-Appliance class'!$C30*'RES S curve-connect'!AB$10+'Res-Appliance class'!$D30*'RES S curve-connect'!AB$15+'Res-Appliance class'!$E30*'RES S curve-connect'!AB$20","v":243.16602078957004},{"$f":"'Res-Appliance class'!$B30*'RES S curve-connect'!AC$5+'Res-Appliance class'!$C30*'RES S curve-connect'!AC$10+'Res-Appliance class'!$D30*'RES S curve-connect'!AC$15+'Res-Appliance class'!$E30*'RES S curve-connect'!AC$20","v":436.27674682173063},{"$f":"'Res-Appliance class'!$B30*'RES S curve-connect'!AD$5+'Res-Appliance class'!$C30*'RES S curve-connect'!AD$10+'Res-Appliance class'!$D30*'RES S curve-connect'!AD$15+'Res-Appliance class'!$E30*'RES S curve-connect'!AD$20","v":614.77452998644799},{"$f":"'Res-Appliance class'!$B30*'RES S curve-connect'!AE$5+'Res-Appliance class'!$C30*'RES S curve-connect'!AE$10+'Res-Appliance class'!$D30*'RES S curve-connect'!AE$15+'Res-Appliance class'!$E30*'RES S curve-connect'!AE$20","v":800.97716660531012},{"$f":"'Res-Appliance class'!$B30*'RES S curve-connect'!AF$5+'Res-Appliance class'!$C30*'RES S curve-connect'!AF$10+'Res-Appliance class'!$D30*'RES S curve-connect'!AF$15+'Res-Appliance class'!$E30*'RES S curve-connect'!AF$20","v":1037.2515249157598},{"$f":"'Res-Appliance class'!$B30*'RES S curve-connect'!AG$5+'Res-Appliance class'!$C30*'RES S curve-connect'!AG$10+'Res-Appliance class'!$D30*'RES S curve-connect'!AG$15+'Res-Appliance class'!$E30*'RES S curve-connect'!AG$20","v":1187.8291024850937},{"$f":"'Res-Appliance class'!$B30*'RES S curve-connect'!AH$5+'Res-Appliance class'!$C30*'RES S curve-connect'!AH$10+'Res-Appliance class'!$D30*'RES S curve-connect'!AH$15+'Res-Appliance class'!$E30*'RES S curve-connect'!AH$20","v":1400.618320498912},{"$f":"'Res-Appliance class'!$B30*'RES S curve-connect'!AI$5+'Res-Appliance class'!$C30*'RES S curve-connect'!AI$10+'Res-Appliance class'!$D30*'RES S curve-connect'!AI$15+'Res-Appliance class'!$E30*'RES S curve-connect'!AI$20","v":1591.0809653251667},{"$f":"'Res-Appliance class'!$B30*'RES S curve-connect'!AJ$5+'Res-Appliance class'!$C30*'RES S curve-connect'!AJ$10+'Res-Appliance class'!$D30*'RES S curve-connect'!AJ$15+'Res-Appliance class'!$E30*'RES S curve-connect'!AJ$20","v":1763.1375200884806},{"$f":"'Res-Appliance class'!$B30*'RES S curve-connect'!AK$5+'Res-Appliance class'!$C30*'RES S curve-connect'!AK$10+'Res-Appliance class'!$D30*'RES S curve-connect'!AK$15+'Res-Appliance class'!$E30*'RES S curve-connect'!AK$20","v":1945.7728038537443},{"$f":"'Res-Appliance class'!$B30*'RES S curve-connect'!AL$5+'Res-Appliance class'!$C30*'RES S curve-connect'!AL$10+'Res-Appliance class'!$D30*'RES S curve-connect'!AL$15+'Res-Appliance class'!$E30*'RES S curve-connect'!AL$20","v":1315.630558024726},{"$f":"'Res-Appliance class'!$B30*'RES S curve-connect'!AM$5+'Res-Appliance class'!$C30*'RES S curve-connect'!AM$10+'Res-Appliance class'!$D30*'RES S curve-connect'!AM$15+'Res-Appliance class'!$E30*'RES S curve-connect'!AM$20","v":1231.855877956566},{"$f":"'Res-Appliance class'!$B30*'RES S curve-connect'!AN$5+'Res-Appliance class'!$C30*'RES S curve-connect'!AN$10+'Res-Appliance class'!$D30*'RES S curve-connect'!AN$15+'Res-Appliance class'!$E30*'RES S curve-connect'!AN$20","v":1404.0736688355023},{"$f":"'Res-Appliance class'!$B30*'RES S curve-connect'!AO$5+'Res-Appliance class'!$C30*'RES S curve-connect'!AO$10+'Res-Appliance class'!$D30*'RES S curve-connect'!AO$15+'Res-Appliance class'!$E30*'RES S curve-connect'!AO$20","v":1615.364096744087},{"$f":"'Res-Appliance class'!$B30*'RES S curve-connect'!AP$5+'Res-Appliance class'!$C30*'RES S curve-connect'!AP$10+'Res-Appliance class'!$D30*'RES S curve-connect'!AP$15+'Res-Appliance class'!$E30*'RES S curve-connect'!AP$20","v":1810.9468218030602},{"$f":"'Res-Appliance class'!$B30*'RES S curve-connect'!AQ$5+'Res-Appliance class'!$C30*'RES S curve-connect'!AQ$10+'Res-Appliance class'!$D30*'RES S curve-connect'!AQ$15+'Res-Appliance class'!$E30*'RES S curve-connect'!AQ$20","v":2021.123654671231},{"$f":"'Res-Appliance class'!$B30*'RES S curve-connect'!AR$5+'Res-Appliance class'!$C30*'RES S curve-connect'!AR$10+'Res-Appliance class'!$D30*'RES S curve-connect'!AR$15+'Res-Appliance class'!$E30*'RES S curve-connect'!AR$20","v":2252.1329425627791},{"$f":"'Res-Appliance class'!$B30*'RES S curve-connect'!AS$5+'Res-Appliance class'!$C30*'RES S curve-connect'!AS$10+'Res-Appliance class'!$D30*'RES S curve-connect'!AS$15+'Res-Appliance class'!$E30*'RES S curve-connect'!AS$20","v":2511.4224569196117},{"$f":"'Res-Appliance class'!$B30*'RES S curve-connect'!AT$5+'Res-Appliance class'!$C30*'RES S curve-connect'!AT$10+'Res-Appliance class'!$D30*'RES S curve-connect'!AT$15+'Res-Appliance class'!$E30*'RES S curve-connect'!AT$20","v":2801.7320666834426},{"$f":"'Res-Appliance class'!$B30*'RES S curve-connect'!AU$5+'Res-Appliance class'!$C30*'RES S curve-connect'!AU$10+'Res-Appliance class'!$D30*'RES S curve-connect'!AU$15+'Res-Appliance class'!$E30*'RES S curve-connect'!AU$20","v":3137.2665925948199},{"$f":"'Res-Appliance class'!$B30*'RES S curve-connect'!AV$5+'Res-Appliance class'!$C30*'RES S curve-connect'!AV$10+'Res-Appliance class'!$D30*'RES S curve-connect'!AV$15+'Res-Appliance class'!$E30*'RES S curve-connect'!AV$20","v":3520.3464839405233},{"$f":"'Res-Appliance class'!$B30*'RES S curve-connect'!AW$5+'Res-Appliance class'!$C30*'RES S curve-connect'!AW$10+'Res-Appliance class'!$D30*'RES S curve-connect'!AW$15+'Res-Appliance class'!$E30*'RES S curve-connect'!AW$20","v":3960.8300318082447},{"$f":"'Res-Appliance class'!$B30*'RES S curve-connect'!AX$5+'Res-Appliance class'!$C30*'RES S curve-connect'!AX$10+'Res-Appliance class'!$D30*'RES S curve-connect'!AX$15+'Res-Appliance class'!$E30*'RES S curve-connect'!AX$20","v":4463.2723266052217},{"$f":"'Res-Appliance class'!$B30*'RES S curve-connect'!AY$5+'Res-Appliance class'!$C30*'RES S curve-connect'!AY$10+'Res-Appliance class'!$D30*'RES S curve-connect'!AY$15+'Res-Appliance class'!$E30*'RES S curve-connect'!AY$20","v":5042.8594675773111},{"$f":"'Res-Appliance class'!$B30*'RES S curve-connect'!AZ$5+'Res-Appliance class'!$C30*'RES S curve-connect'!AZ$10+'Res-Appliance class'!$D30*'RES S curve-connect'!AZ$15+'Res-Appliance class'!$E30*'RES S curve-connect'!AZ$20","v":5705.9862593890521},{"$f":"'Res-Appliance class'!$B30*'RES S curve-connect'!BA$5+'Res-Appliance class'!$C30*'RES S curve-connect'!BA$10+'Res-Appliance class'!$D30*'RES S curve-connect'!BA$15+'Res-Appliance class'!$E30*'RES S curve-connect'!BA$20","v":6474.3421816329064},{"$f":"'Res-Appliance class'!$B30*'RES S curve-connect'!BB$5+'Res-Appliance class'!$C30*'RES S curve-connect'!BB$10+'Res-Appliance class'!$D30*'RES S curve-connect'!BB$15+'Res-Appliance class'!$E30*'RES S curve-connect'!BB$20","v":7372.7216741474876},{"$f":"'Res-Appliance class'!$B30*'RES S curve-connect'!BC$5+'Res-Appliance class'!$C30*'RES S curve-connect'!BC$10+'Res-Appliance class'!$D30*'RES S curve-connect'!BC$15+'Res-Appliance class'!$E30*'RES S curve-connect'!BC$20","v":8444.1796420443316},{"$f":"'Res-Appliance class'!$B30*'RES S curve-connect'!BD$5+'Res-Appliance class'!$C30*'RES S curve-connect'!BD$10+'Res-Appliance class'!$D30*'RES S curve-connect'!BD$15+'Res-Appliance class'!$E30*'RES S curve-connect'!BD$20","v":9479.6053602094544},{"$f":"'Res-Appliance class'!$B30*'RES S curve-connect'!BE$5+'Res-Appliance class'!$C30*'RES S curve-connect'!BE$10+'Res-Appliance class'!$D30*'RES S curve-connect'!BE$15+'Res-Appliance class'!$E30*'RES S curve-connect'!BE$20","v":10426.592154231457},{"$f":"'Res-Appliance class'!$B30*'RES S curve-connect'!BF$5+'Res-Appliance class'!$C30*'RES S curve-connect'!BF$10+'Res-Appliance class'!$D30*'RES S curve-connect'!BF$15+'Res-Appliance class'!$E30*'RES S curve-connect'!BF$20","v":11395.359655247634},{"$f":"'Res-Appliance class'!$B30*'RES S curve-connect'!BG$5+'Res-Appliance class'!$C30*'RES S curve-connect'!BG$10+'Res-Appliance class'!$D30*'RES S curve-connect'!BG$15+'Res-Appliance class'!$E30*'RES S curve-connect'!BG$20","v":12491.110185770402},{"$f":"'Res-Appliance class'!$B30*'RES S curve-connect'!BH$5+'Res-Appliance class'!$C30*'RES S curve-connect'!BH$10+'Res-Appliance class'!$D30*'RES S curve-connect'!BH$15+'Res-Appliance class'!$E30*'RES S curve-connect'!BH$20","v":13792.237290416615},{"$f":"'Res-Appliance class'!$B30*'RES S curve-connect'!BI$5+'Res-Appliance class'!$C30*'RES S curve-connect'!BI$10+'Res-Appliance class'!$D30*'RES S curve-connect'!BI$15+'Res-Appliance class'!$E30*'RES S curve-connect'!BI$20","v":15677.154627053487},{"$f":"'Res-Appliance class'!$B30*'RES S curve-connect'!BJ$5+'Res-Appliance class'!$C30*'RES S curve-connect'!BJ$10+'Res-Appliance class'!$D30*'RES S curve-connect'!BJ$15+'Res-Appliance class'!$E30*'RES S curve-connect'!BJ$20","v":18439.813720142774},{"$f":"'Res-Appliance class'!$B30*'RES S curve-connect'!BK$5+'Res-Appliance class'!$C30*'RES S curve-connect'!BK$10+'Res-Appliance class'!$D30*'RES S curve-connect'!BK$15+'Res-Appliance class'!$E30*'RES S curve-connect'!BK$20","v":22520.024593738523},{"$f":"'Res-Appliance class'!$B30*'RES S curve-connect'!BL$5+'Res-Appliance class'!$C30*'RES S curve-connect'!BL$10+'Res-Appliance class'!$D30*'RES S curve-connect'!BL$15+'Res-Appliance class'!$E30*'RES S curve-connect'!BL$20","v":-992.25950391145625},{"$f":"'Res-Appliance class'!$B30*'RES S curve-connect'!BM$5+'Res-Appliance class'!$C30*'RES S curve-connect'!BM$10+'Res-Appliance class'!$D30*'RES S curve-connect'!BM$15+'Res-Appliance class'!$E30*'RES S curve-connect'!BM$20","v":-987.1329425019369},{"$f":"'Res-Appliance class'!$B30*'RES S curve-connect'!BN$5+'Res-Appliance class'!$C30*'RES S curve-connect'!BN$10+'Res-Appliance class'!$D30*'RES S curve-connect'!BN$15+'Res-Appliance class'!$E30*'RES S curve-connect'!BN$20","v":-984.27607958630654},{"$f":"'Res-Appliance class'!$B30*'RES S curve-connect'!BO$5+'Res-Appliance class'!$C30*'RES S curve-connect'!BO$10+'Res-Appliance class'!$D30*'RES S curve-connect'!BO$15+'Res-Appliance class'!$E30*'RES S curve-connect'!BO$20","v":-976.90026268994734},{"$f":"'Res-Appliance class'!$B30*'RES S curve-connect'!BP$5+'Res-Appliance class'!$C30*'RES S curve-connect'!BP$10+'Res-Appliance class'!$D30*'RES S curve-connect'!BP$15+'Res-Appliance class'!$E30*'RES S curve-connect'!BP$20","v":-971.79406280602632},{"$f":"'Res-Appliance class'!$B30*'RES S curve-connect'!BQ$5+'Res-Appliance class'!$C30*'RES S curve-connect'!BQ$10+'Res-Appliance class'!$D30*'RES S curve-connect'!BQ$15+'Res-Appliance class'!$E30*'RES S curve-connect'!BQ$20","v":-966.69456903648927},{"$f":"'Res-Appliance class'!$B30*'RES S curve-connect'!BR$5+'Res-Appliance class'!$C30*'RES S curve-connect'!BR$10+'Res-Appliance class'!$D30*'RES S curve-connect'!BR$15+'Res-Appliance class'!$E30*'RES S curve-connect'!BR$20","v":-963.86461180491881},{"$f":"'Res-Appliance class'!$B30*'RES S curve-connect'!BS$5+'Res-Appliance class'!$C30*'RES S curve-connect'!BS$10+'Res-Appliance class'!$D30*'RES S curve-connect'!BS$15+'Res-Appliance class'!$E30*'RES S curve-connect'!BS$20","v":-956.51553964051345},{"$f":"'Res-Appliance class'!$B30*'RES S curve-connect'!BT$5+'Res-Appliance class'!$C30*'RES S curve-connect'!BT$10+'Res-Appliance class'!$D30*'RES S curve-connect'!BT$15+'Res-Appliance class'!$E30*'RES S curve-connect'!BT$20","v":-951.43592453392466},{"$f":"'Res-Appliance class'!$B30*'RES S curve-connect'!BU$5+'Res-Appliance class'!$C30*'RES S curve-connect'!BU$10+'Res-Appliance class'!$D30*'RES S curve-connect'!BU$15+'Res-Appliance class'!$E30*'RES S curve-connect'!BU$20","v":-946.36285657829262},{"$f":"'Res-Appliance class'!$B30*'RES S curve-connect'!BV$5+'Res-Appliance class'!$C30*'RES S curve-connect'!BV$10+'Res-Appliance class'!$D30*'RES S curve-connect'!BV$15+'Res-Appliance class'!$E30*'RES S curve-connect'!BV$20","v":-943.55916718214712},{"$f":"'Res-Appliance class'!$B30*'RES S curve-connect'!BW$5+'Res-Appliance class'!$C30*'RES S curve-connect'!BW$10+'Res-Appliance class'!$D30*'RES S curve-connect'!BW$15+'Res-Appliance class'!$E30*'RES S curve-connect'!BW$20","v":-936.23620585342348},{"$f":"'Res-Appliance class'!$B30*'RES S curve-connect'!BX$5+'Res-Appliance class'!$C30*'RES S curve-connect'!BX$10+'Res-Appliance class'!$D30*'RES S curve-connect'!BX$15+'Res-Appliance class'!$E30*'RES S curve-connect'!BX$20","v":-931.18254555533872},{"$f":"'Res-Appliance class'!$B30*'RES S curve-connect'!BY$5+'Res-Appliance class'!$C30*'RES S curve-connect'!BY$10+'Res-Appliance class'!$D30*'RES S curve-connect'!BY$15+'Res-Appliance class'!$E30*'RES S curve-connect'!BY$20","v":-926.13527734747004},{"$f":"'Res-Appliance class'!$B30*'RES S curve-connect'!BZ$5+'Res-Appliance class'!$C30*'RES S curve-connect'!BZ$10+'Res-Appliance class'!$D30*'RES S curve-connect'!BZ$15+'Res-Appliance class'!$E30*'RES S curve-connect'!BZ$20","v":-923.35723359869212},{"$f":"'Res-Appliance class'!$B30*'RES S curve-connect'!CA$5+'Res-Appliance class'!$C30*'RES S curve-connect'!CA$10+'Res-Appliance class'!$D30*'RES S curve-connect'!CA$15+'Res-Appliance class'!$E30*'RES S curve-connect'!CA$20","v":-916.05976477122817},{"$f":"'Res-Appliance class'!$B30*'RES S curve-connect'!CB$5+'Res-Appliance class'!$C30*'RES S curve-connect'!CB$10+'Res-Appliance class'!$D30*'RES S curve-connect'!CB$15+'Res-Appliance class'!$E30*'RES S curve-connect'!CB$20","v":-911.03144477657122},{"$f":"'Res-Appliance class'!$B30*'RES S curve-connect'!CC$5+'Res-Appliance class'!$C30*'RES S curve-connect'!CC$10+'Res-Appliance class'!$D30*'RES S curve-connect'!CC$15+'Res-Appliance class'!$E30*'RES S curve-connect'!CC$20","v":-906.00936561659819},{"$f":"'Res-Appliance class'!$B30*'RES S curve-connect'!CD$5+'Res-Appliance class'!$C30*'RES S curve-connect'!CD$10+'Res-Appliance class'!$D30*'RES S curve-connect'!CD$15+'Res-Appliance class'!$E30*'RES S curve-connect'!CD$20","v":-983.38402678313628}]
["Casey (C)",null,{"$f":"'Res-Appliance class'!$B31*'RES S curve-connect'!C$5+'Res-Appliance class'!$C31*'RES S curve-connect'!C$10+'Res-Appliance class'!$D31*'RES S curve-connect'!C$15+'Res-Appliance class'!$E31*'RES S curve-connect'!C$20","v":-3572.2247419260193},{"$f":"'Res-Appliance class'!$B31*'RES S curve-connect'!D$5+'Res-Appliance class'!$C31*'RES S curve-connect'!D$10+'Res-Appliance class'!$D31*'RES S curve-connect'!D$15+'Res-Appliance class'!$E31*'RES S curve-connect'!D$20","v":-3933.4734522768886},{"$f":"'Res-Appliance class'!$B31*'RES S curve-connect'!E$5+'Res-Appliance class'!$C31*'RES S curve-connect'!E$10+'Res-Appliance class'!$D31*'RES S curve-connect'!E$15+'Res-Appliance class'!$E31*'RES S curve-connect'!E$20","v":-2956.1127902594762},{"$f":"'Res-Appliance class'!$B31*'RES S curve-connect'!F$5+'Res-Appliance class'!$C31*'RES S curve-connect'!F$10+'Res-Appliance class'!$D31*'RES S curve-connect'!F$15+'Res-Appliance class'!$E31*'RES S curve-connect'!F$20","v":-2847.3656555009356},{"$f":"'Res-Appliance class'!$B31*'RES S curve-connect'!G$5+'Res-Appliance class'!$C31*'RES S curve-connect'!G$10+'Res-Appliance class'!$D31*'RES S curve-connect'!G$15+'Res-Appliance class'!$E31*'RES S curve-connect'!G$20","v":-4002.4255488973963},{"$f":"'Res-Appliance class'!$B31*'RES S curve-connect'!H$5+'Res-Appliance class'!$C31*'RES S curve-connect'!H$10+'Res-Appliance class'!$D31*'RES S curve-connect'!H$15+'Res-Appliance class'!$E31*'RES S curve-connect'!H$20","v":-4039.1968698737001},{"$f":"'Res-Appliance class'!$B31*'RES S curve-connect'!I$5+'Res-Appliance class'!$C31*'RES S curve-connect'!I$10+'Res-Appliance class'!$D31*'RES S curve-connect'!I$15+'Res-Appliance class'!$E31*'RES S curve-connect'!I$20","v":-3732.0458628260344},{"$f":"'Res-Appliance class'!$B31*'RES S curve-connect'!J$5+'Res-Appliance class'!$C31*'RES S curve-connect'!J$10+'Res-Appliance class'!$D31*'RES S curve-connect'!J$15+'Res-Appliance class'!$E31*'RES S curve-connect'!J$20","v":-4106.505065665634},{"$f":"'Res-Appliance class'!$B31*'RES S curve-connect'!K$5+'Res-Appliance class'!$C31*'RES S curve-connect'!K$10+'Res-Appliance class'!$D31*'RES S curve-connect'!K$15+'Res-Appliance class'!$E31*'RES S curve-connect'!K$20","v":-3436.0951358232969},{"$f":"'Res-Appliance class'!$B31*'RES S curve-connect'!L$5+'Res-Appliance class'!$C31*'RES S curve-connect'!L$10+'Res-Appliance class'!$D31*'RES S curve-connect'!L$15+'Res-Appliance class'!$E31*'RES S curve-connect'!L$20","v":-3663.2100347584183},{"$f":"'Res-Appliance class'!$B31*'RES S curve-connect'!M$5+'Res-Appliance class'!$C31*'RES S curve-connect'!M$10+'Res-Appliance class'!$D31*'RES S curve-connect'!M$15+'Res-Appliance class'!$E31*'RES S curve-connect'!M$20","v":-4093.8315867253086},{"$f":"'Res-Appliance class'!$B31*'RES S curve-connect'!N$5+'Res-Appliance class'!$C31*'RES S curve-connect'!N$10+'Res-Appliance class'!$D31*'RES S curve-connect'!N$15+'Res-Appliance class'!$E31*'RES S curve-connect'!N$20","v":-4116.5063095667401},{"$f":"'Res-Appliance class'!$B31*'RES S curve-connect'!O$5+'Res-Appliance class'!$C31*'RES S curve-connect'!O$10+'Res-Appliance class'!$D31*'RES S curve-connect'!O$15+'Res-Appliance class'!$E31*'RES S curve-connect'!O$20","v":-3701.3002646928408},{"$f":"'Res-Appliance class'!$B31*'RES S curve-connect'!P$5+'Res-Appliance class'!$C31*'RES S curve-connect'!P$10+'Res-Appliance class'!$D31*'RES S curve-connect'!P$15+'Res-Appliance class'!$E31*'RES S curve-connect'!P$20","v":-3366.4802593638951},{"$f":"'Res-Appliance class'!$B31*'RES S curve-connect'!Q$5+'Res-Appliance class'!$C31*'RES S curve-connect'!Q$10+'Res-Appliance class'!$D31*'RES S curve-connect'!Q$15+'Res-Appliance class'!$E31*'RES S curve-connect'!Q$20","v":-2870.6103519106928},{"$f":"'Res-Appliance class'!$B31*'RES S curve-connect'!R$5+'Res-Appliance class'!$C31*'RES S curve-connect'!R$10+'Res-Appliance class'!$D31*'RES S curve-connect'!R$15+'Res-Appliance class'!$E31*'RES S curve-connect'!R$20","v":-2581.1864186385455},{"$f":"'Res-Appliance class'!$B31*'RES S curve-connect'!S$5+'Res-Appliance class'!$C31*'RES S curve-connect'!S$10+'Res-Appliance class'!$D31*'RES S curve-connect'!S$15+'Res-Appliance class'!$E31*'RES S curve-connect'!S$20","v":-2132.9566942255092},{"$f":"'Res-Appliance class'!$B31*'RES S curve-connect'!T$5+'Res-Appliance class'!$C31*'RES S curve-connect'!T$10+'Res-Appliance class'!$D31*'RES S curve-connect'!T$15+'Res-Appliance class'!$E31*'RES S curve-connect'!T$20","v":-1879.4041025151298},{"$f":"'Res-Appliance class'!$B31*'RES S curve-connect'!U$5+'Res-Appliance class'!$C31*'RES S curve-connect'!U$10+'Res-Appliance class'!$D31*'RES S curve-connect'!U$15+'Res-Appliance class'!$E31*'RES S curve-connect'!U$20","v":-1593.5560519522128},{"$f":"'Res-Appliance class'!$B31*'RES S curve-connect'!V$5+'Res-Appliance class'!$C31*'RES S curve-connect'!V$10+'Res-Appliance class'!$D31*'RES S curve-connect'!V$15+'Res-Appliance class'!$E31*'RES S curve-connect'!V$20","v":-1392.8051340460725},{"$f":"'Res-Appliance class'!$B31*'RES S curve-connect'!W$5+'Res-Appliance class'!$C31*'RES S curve-connect'!W$10+'Res-Appliance class'!$D31*'RES S curve-connect'!W$15+'Res-Appliance class'!$E31*'RES S curve-connect'!W$20","v":-1232.3216446545177},{"$f":"'Res-Appliance class'!$B31*'RES S curve-connect'!X$5+'Res-Appliance class'!$C31*'RES S curve-connect'!X$10+'Res-Appliance class'!$D31*'RES S curve-connect'!X$15+'Res-Appliance class'!$E31*'RES S curve-connect'!X$20","v":-891.72330121456434},{"$f":"'Res-Appliance class'!$B31*'RES S curve-connect'!Y$5+'Res-Appliance class'!$C31*'RES S curve-connect'!Y$10+'Res-Appliance class'!$D31*'RES S curve-connect'!Y$15+'Res-Appliance class'!$E31*'RES S curve-connect'!Y$20","v":-547.55652558110626},{"$f":"'Res-Appliance class'!$B31*'RES S curve-connect'!Z$5+'Res-Appliance class'!$C31*'RES S curve-connect'!Z$10+'Res-Appliance class'!$D31*'RES S curve-connect'!Z$15+'Res-Appliance class'!$E31*'RES S curve-connect'!Z$20","v":-308.79404065006634},{"$f":"'Res-Appliance class'!$B31*'RES S curve-connect'!AA$5+'Res-Appliance class'!$C31*'RES S curve-connect'!AA$10+'Res-Appliance class'!$D31*'RES S curve-connect'!AA$15+'Res-Appliance class'!$E31*'RES S curve-connect'!AA$20","v":-70.254294856438719},{"$f":"'Res-Appliance class'!$B31*'RES S curve-connect'!AB$5+'Res-Appliance class'!$C31*'RES S curve-connect'!AB$10+'Res-Appliance class'!$D31*'RES S curve-connect'!AB$15+'Res-Appliance class'!$E31*'RES S curve-connect'!AB$20","v":123.67900955118347},{"$f":"'Res-Appliance class'!$B31*'RES S curve-connect'!AC$5+'Res-Appliance class'!$C31*'RES S curve-connect'!AC$10+'Res-Appliance class'!$D31*'RES S curve-connect'!AC$15+'Res-Appliance class'!$E31*'RES S curve-connect'!AC$20","v":310.99506206522324},{"$f":"'Res-Appliance class'!$B31*'RES S curve-connect'!AD$5+'Res-Appliance class'!$C31*'RES S curve-connect'!AD$10+'Res-Appliance class'!$D31*'RES S curve-connect'!AD$15+'Res-Appliance class'!$E31*'RES S curve-connect'!AD$20","v":484.21090540034874},{"$f":"'Res-Appliance class'!$B31*'RES S curve-connect'!AE$5+'Res-Appliance class'!$C31*'RES S curve-connect'!AE$10+'Res-Appliance class'!$D31*'RES S curve-connect'!AE$15+'Res-Appliance class'!$E31*'RES S curve-connect'!AE$20","v":665.05934891421202},{"$f":"'Res-Appliance class'!$B31*'RES S curve-connect'!AF$5+'Res-Appliance class'!$C31*'RES S curve-connect'!AF$10+'Res-Appliance class'!$D31*'RES S curve-connect'!AF$15+'Res-Appliance class'!$E31*'RES S curve-connect'!AF$20","v":894.00511742965227},{"$f":"'Res-Appliance class'!$B31*'RES S curve-connect'!AG$5+'Res-Appliance class'!$C31*'RES S curve-connect'!AG$10+'Res-Appliance class'!$D31*'RES S curve-connect'!AG$15+'Res-Appliance class'!$E31*'RES S curve-connect'!AG$20","v":1039.3791693214466},{"$f":"'Res-Appliance class'!$B31*'RES S curve-connect'!AH$5+'Res-Appliance class'!$C31*'RES S curve-connect'!AH$10+'Res-Appliance class'!$D31*'RES S curve-connect'!AH$15+'Res-Appliance class'!$E31*'RES S curve-connect'!AH$20","v":1244.3883806468175},{"$f":"'Res-Appliance class'!$B31*'RES S curve-connect'!AI$5+'Res-Appliance class'!$C31*'RES S curve-connect'!AI$10+'Res-Appliance class'!$D31*'RES S curve-connect'!AI$15+'Res-Appliance class'!$E31*'RES S curve-connect'!AI$20","v":1428.2666133669736},{"$f":"'Res-Appliance class'!$B31*'RES S curve-connect'!AJ$5+'Res-Appliance class'!$C31*'RES S curve-connect'!AJ$10+'Res-Appliance class'!$D31*'RES S curve-connect'!AJ$15+'Res-Appliance class'!$E31*'RES S curve-connect'!AJ$20","v":1594.2987736344826},{"$f":"'Res-Appliance class'!$B31*'RES S curve-connect'!AK$5+'Res-Appliance class'!$C31*'RES S curve-connect'!AK$10+'Res-Appliance class'!$D31*'RES S curve-connect'!AK$15+'Res-Appliance class'!$E31*'RES S curve-connect'!AK$20","v":1770.5508347954437},{"$f":"'Res-Appliance class'!$B31*'RES S curve-connect'!AL$5+'Res-Appliance class'!$C31*'RES S curve-connect'!AL$10+'Res-Appliance class'!$D31*'RES S curve-connect'!AL$15+'Res-Appliance class'!$E31*'RES S curve-connect'!AL$20","v":1161.5359596315066},{"$f":"'Res-Appliance class'!$B31*'RES S curve-connect'!AM$5+'Res-Appliance class'!$C31*'RES S curve-connect'!AM$10+'Res-Appliance class'!$D31*'RES S curve-connect'!AM$15+'Res-Appliance class'!$E31*'RES S curve-connect'!AM$20","v":1081.1647065270756},{"$f":"'Res-Appliance class'!$B31*'RES S curve-connect'!AN$5+'Res-Appliance class'!$C31*'RES S curve-connect'!AN$10+'Res-Appliance class'!$D31*'RES S curve-connect'!AN$15+'Res-Appliance class'!$E31*'RES S curve-connect'!AN$20","v":1247.6571433605436},{"$f":"'Res-Appliance class'!$B31*'RES S curve-connect'!AO$5+'Res-Appliance class'!$C31*'RES S curve-connect'!AO$10+'Res-Appliance class'!$D31*'RES S curve-connect'!AO$15+'Res-Appliance class'!$E31*'RES S curve-connect'!AO$20","v":1451.6395465580024},{"$f":"'Res-Appliance class'!$B31*'RES S curve-connect'!AP$5+'Res-Appliance class'!$C31*'RES S curve-connect'!AP$10+'Res-Appliance class'!$D31*'RES S curve-connect'!AP$15+'Res-Appliance class'!$E31*'RES S curve-connect'!AP$20","v":1640.2952234248748},{"$f":"'Res-Appliance class'!$B31*'RES S curve-connect'!AQ$5+'Res-Appliance class'!$C31*'RES S curve-connect'!AQ$10+'Res-Appliance class'!$D31*'RES S curve-connect'!AQ$15+'Res-Appliance class'!$E31*'RES S curve-connect'!AQ$20","v":1843.1923168944254},{"$f":"'Res-Appliance class'!$B31*'RES S curve-connect'!AR$5+'Res-Appliance class'!$C31*'RES S curve-connect'!AR$10+'Res-Appliance class'!$D31*'RES S curve-connect'!AR$15+'Res-Appliance class'!$E31*'RES S curve-connect'!AR$20","v":2066.1005799149502},{"$f":"'Res-Appliance class'!$B31*'RES S curve-connect'!AS$5+'Res-Appliance class'!$C31*'RES S curve-connect'!AS$10+'Res-Appliance class'!$D31*'RES S curve-connect'!AS$15+'Res-Appliance class'!$E31*'RES S curve-connect'!AS$20","v":2316.2690903456391},{"$f":"'Res-Appliance class'!$B31*'RES S curve-connect'!AT$5+'Res-Appliance class'!$C31*'RES S curve-connect'!AT$10+'Res-Appliance class'!$D31*'RES S curve-connect'!AT$15+'Res-Appliance class'!$E31*'RES S curve-connect'!AT$20","v":2596.2515427481026},{"$f":"'Res-Appliance class'!$B31*'RES S curve-connect'!AU$5+'Res-Appliance class'!$C31*'RES S curve-connect'!AU$10+'Res-Appliance class'!$D31*'RES S curve-connect'!AU$15+'Res-Appliance class'!$E31*'RES S curve-connect'!AU$20","v":2919.9814125654925},{"$f":"'Res-Appliance class'!$B31*'RES S curve-connect'!AV$5+'Res-Appliance class'!$C31*'RES S curve-connect'!AV$10+'Res-Appliance class'!$D31*'RES S curve-connect'!AV$15+'Res-Appliance class'!$E31*'RES S curve-connect'!AV$20","v":3289.4417108135631},{"$f":"'Res-Appliance class'!$B31*'RES S curve-connect'!AW$5+'Res-Appliance class'!$C31*'RES S curve-connect'!AW$10+'Res-Appliance class'!$D31*'RES S curve-connect'!AW$15+'Res-Appliance class'!$E31*'RES S curve-connect'!AW$20","v":3714.1957393347175},{"$f":"'Res-Appliance class'!$B31*'RES S curve-connect'!AX$5+'Res-Appliance class'!$C31*'RES S curve-connect'!AX$10+'Res-Appliance class'!$D31*'RES S curve-connect'!AX$15+'Res-Appliance class'!$E31*'RES S curve-connect'!AX$20","v":4198.5243438205816},{"$f":"'Res-Appliance class'!$B31*'RES S curve-connect'!AY$5+'Res-Appliance class'!$C31*'RES S curve-connect'!AY$10+'Res-Appliance class'!$D31*'RES S curve-connect'!AY$15+'Res-Appliance class'!$E31*'RES S curve-connect'!AY$20","v":4757.2800685247566},{"$f":"'Res-Appliance class'!$B31*'RES S curve-connect'!AZ$5+'Res-Appliance class'!$C31*'RES S curve-connect'!AZ$10+'Res-Appliance class'!$D31*'RES S curve-connect'!AZ$15+'Res-Appliance class'!$E31*'RES S curve-connect'!AZ$20","v":5396.3479020744762},{"$f":"'Res-Appliance class'!$B31*'RES S curve-connect'!BA$5+'Res-Appliance class'!$C31*'RES S curve-connect'!BA$10+'Res-Appliance class'!$D31*'RES S curve-connect'!BA$15+'Res-Appliance class'!$E31*'RES S curve-connect'!BA$20","v":6136.6716919000301},{"$f":"'Res-Appliance class'!$B31*'RES S curve-connect'!BB$5+'Res-Appliance class'!$C31*'RES S curve-connect'!BB$10+'Res-Appliance class'!$D31*'RES S curve-connect'!BB$15+'Res-Appliance class'!$E31*'RES S curve-connect'!BB$20","v":7002.0033402452036},{"$f":"'Res-Appliance class'!$B31*'RES S curve-connect'!BC$5+'Res-Appliance class'!$C31*'RES S curve-connect'!BC$10+'Res-Appliance class'!$D31*'RES S curve-connect'!BC$15+'Res-Appliance class'!$E31*'RES S curve-connect'!BC$20","v":8033.9935955913461},{"$f":"'Res-Appliance class'!$B31*'RES S curve-connect'!BD$5+'Res-Appliance class'!$C31*'RES S curve-connect'!BD$10+'Res-Appliance class'!$D31*'RES S curve-connect'!BD$15+'Res-Appliance class'!$E31*'RES S curve-connect'!BD$20","v":9030.58853557566},{"$f":"'Res-Appliance class'!$B31*'RES S curve-connect'!BE$5+'Res-Appliance class'!$C31*'RES S curve-connect'!BE$10+'Res-Appliance class'!$D31*'RES S curve-connect'!BE$15+'Res-Appliance class'!$E31*'RES S curve-connect'!BE$20","v":9941.8324098756912},{"$f":"'Res-Appliance class'!$B31*'RES S curve-connect'!BF$5+'Res-Appliance class'!$C31*'RES S curve-connect'!BF$10+'Res-Appliance class'!$D31*'RES S curve-connect'!BF$15+'Res-Appliance class'!$E31*'RES S curve-connect'!BF$20","v":10874.102442270079},{"$f":"'Res-Appliance class'!$B31*'RES S curve-connect'!BG$5+'Res-Appliance class'!$C31*'RES S curve-connect'!BG$10+'Res-Appliance class'!$D31*'RES S curve-connect'!BG$15+'Res-Appliance class'!$E31*'RES S curve-connect'!BG$20","v":11928.828422789398},{"$f":"'Res-Appliance class'!$B31*'RES S curve-connect'!BH$5+'Res-Appliance class'!$C31*'RES S curve-connect'!BH$10+'Res-Appliance class'!$D31*'RES S curve-connect'!BH$15+'Res-Appliance class'!$E31*'RES S curve-connect'!BH$20","v":13181.082042329908},{"$f":"'Res-Appliance class'!$B31*'RES S curve-connect'!BI$5+'Res-Appliance class'!$C31*'RES S curve-connect'!BI$10+'Res-Appliance class'!$D31*'RES S curve-connect'!BI$15+'Res-Appliance class'!$E31*'RES S curve-connect'!BI$20","v":14995.349276624398},{"$f":"'Res-Appliance class'!$B31*'RES S curve-connect'!BJ$5+'Res-Appliance class'!$C31*'RES S curve-connect'!BJ$10+'Res-Appliance class'!$D31*'RES S curve-connect'!BJ$15+'Res-Appliance class'!$E31*'RES S curve-connect'!BJ$20","v":17653.651657868086},{"$f":"'Res-Appliance class'!$B31*'RES S curve-connect'!BK$5+'Res-Appliance class'!$C31*'RES S curve-connect'!BK$10+'Res-Appliance class'!$D31*'RES S curve-connect'!BK$15+'Res-Appliance class'!$E31*'RES S curve-connect'!BK$20","v":21578.552221107057},{"$f":"'Res-Appliance class'!$B31*'RES S curve-connect'!BL$5+'Res-Appliance class'!$C31*'RES S curve-connect'!BL$10+'Res-Appliance class'!$D31*'RES S curve-connect'!BL$15+'Res-Appliance class'!$E31*'RES S curve-connect'!BL$20","v":-1067.496143342591},{"$f":"'Res-Appliance class'!$B31*'RES S curve-connect'!BM$5+'Res-Appliance class'!$C31*'RES S curve-connect'!BM$10+'Res-Appliance class'!$D31*'RES S curve-connect'!BM$15+'Res-Appliance class'!$E31*'RES S curve-connect'!BM$20","v":-1062.533445735032},{"$f":"'Res-Appliance class'!$B31*'RES S curve-connect'!BN$5+'Res-Appliance class'!$C31*'RES S curve-connect'!BN$10+'Res-Appliance class'!$D31*'RES S curve-connect'!BN$15+'Res-Appliance class'!$E31*'RES S curve-connect'!BN$20","v":-1059.8404534962415},{"$f":"'Res-Appliance class'!$B31*'RES S curve-connect'!BO$5+'Res-Appliance class'!$C31*'RES S curve-connect'!BO$10+'Res-Appliance class'!$D31*'RES S curve-connect'!BO$15+'Res-Appliance class'!$E31*'RES S curve-connect'!BO$20","v":-1052.6285138854328},{"$f":"'Res-Appliance class'!$B31*'RES S curve-connect'!BP$5+'Res-Appliance class'!$C31*'RES S curve-connect'!BP$10+'Res-Appliance class'!$D31*'RES S curve-connect'!BP$15+'Res-Appliance class'!$E31*'RES S curve-connect'!BP$20","v":-1047.6861976319522},{"$f":"'Res-Appliance class'!$B31*'RES S curve-connect'!BQ$5+'Res-Appliance class'!$C31*'RES S curve-connect'!BQ$10+'Res-Appliance class'!$D31*'RES S curve-connect'!BQ$15+'Res-Appliance class'!$E31*'RES S curve-connect'!BQ$20","v":-1042.7505935762561},{"$f":"'Res-Appliance class'!$B31*'RES S curve-connect'!BR$5+'Res-Appliance class'!$C31*'RES S curve-connect'!BR$10+'Res-Appliance class'!$D31*'RES S curve-connect'!BR$15+'Res-Appliance class'!$E31*'RES S curve-connect'!BR$20","v":-1040.0845318827517},{"$f":"'Res-Appliance class'!$B31*'RES S curve-connect'!BS$5+'Res-Appliance class'!$C31*'RES S curve-connect'!BS$10+'Res-Appliance class'!$D31*'RES S curve-connect'!BS$15+'Res-Appliance class'!$E31*'RES S curve-connect'!BS$20","v":-1032.8993608237593},{"$f":"'Res-Appliance class'!$B31*'RES S curve-connect'!BT$5+'Res-Appliance class'!$C31*'RES S curve-connect'!BT$10+'Res-Appliance class'!$D31*'RES S curve-connect'!BT$15+'Res-Appliance class'!$E31*'RES S curve-connect'!BT$20","v":-1027.9836521353322},{"$f":"'Res-Appliance class'!$B31*'RES S curve-connect'!BU$5+'Res-Appliance class'!$C31*'RES S curve-connect'!BU$10+'Res-Appliance class'!$D31*'RES S curve-connect'!BU$15+'Res-Appliance class'!$E31*'RES S curve-connect'!BU$20","v":-1023.0744956582794},{"$f":"'Res-Appliance class'!$B31*'RES S curve-connect'!BV$5+'Res-Appliance class'!$C31*'RES S curve-connect'!BV$10+'Res-Appliance class'!$D31*'RES S curve-connect'!BV$15+'Res-Appliance class'!$E31*'RES S curve-connect'!BV$20","v":-1020.4347225510447},{"$f":"'Res-Appliance class'!$B31*'RES S curve-connect'!BW$5+'Res-Appliance class'!$C31*'RES S curve-connect'!BW$10+'Res-Appliance class'!$D31*'RES S curve-connect'!BW$15+'Res-Appliance class'!$E31*'RES S curve-connect'!BW$20","v":-1013.2756820737106},{"$f":"'Res-Appliance class'!$B31*'RES S curve-connect'!BX$5+'Res-Appliance class'!$C31*'RES S curve-connect'!BX$10+'Res-Appliance class'!$D31*'RES S curve-connect'!BX$15+'Res-Appliance class'!$E31*'RES S curve-connect'!BX$20","v":-1008.3859469438573},{"$f":"'Res-Appliance class'!$B31*'RES S curve-connect'!BY$5+'Res-Appliance class'!$C31*'RES S curve-connect'!BY$10+'Res-Appliance class'!$D31*'RES S curve-connect'!BY$15+'Res-Appliance class'!$E31*'RES S curve-connect'!BY$20","v":-1003.5026079776245},{"$f":"'Res-Appliance class'!$B31*'RES S curve-connect'!BZ$5+'Res-Appliance class'!$C31*'RES S curve-connect'!BZ$10+'Res-Appliance class'!$D31*'RES S curve-connect'!BZ$15+'Res-Appliance class'!$E31*'RES S curve-connect'!BZ$20","v":-1000.8884973026333},{"$f":"'Res-Appliance class'!$B31*'RES S curve-connect'!CA$5+'Res-Appliance class'!$C31*'RES S curve-connect'!CA$10+'Res-Appliance class'!$D31*'RES S curve-connect'!CA$15+'Res-Appliance class'!$E31*'RES S curve-connect'!CA$20","v":-993.75496514202132},{"$f":"'Res-Appliance class'!$B31*'RES S curve-connect'!CB$5+'Res-Appliance class'!$C31*'RES S curve-connect'!CB$10+'Res-Appliance class'!$D31*'RES S curve-connect'!CB$15+'Res-Appliance class'!$E31*'RES S curve-connect'!CB$20","v":-988.89058517034869},{"$f":"'Res-Appliance class'!$B31*'RES S curve-connect'!CC$5+'Res-Appliance class'!$C31*'RES S curve-connect'!CC$10+'Res-Appliance class'!$D31*'RES S curve-connect'!CC$15+'Res-Appliance class'!$E31*'RES S curve-connect'!CC$20","v":-984.03244915469577},{"$f":"'Res-Appliance class'!$B31*'RES S curve-connect'!CD$5+'Res-Appliance class'!$C31*'RES S curve-connect'!CD$10+'Res-Appliance class'!$D31*'RES S curve-connect'!CD$15+'Res-Appliance class'!$E31*'RES S curve-connect'!CD$20","v":-1058.3453934850313}]
["Frankston (C)",null,{"$f":"'Res-Appliance class'!$B32*'RES S curve-connect'!C$5+'Res-Appliance class'!$C32*'RES S curve-connect'!C$10+'Res-Appliance class'!$D32*'RES S curve-connect'!C$15+'Res-Appliance class'!$E32*'RES S curve-connect'!C$20","v":-3872.0596333040685},{"$f":"'Res-Appliance class'!$B32*'RES S curve-connect'!D$5+'Res-Appliance class'!$C32*'RES S curve-connect'!D$10+'Res-Appliance class'!$D32*'RES S curve-connect'!D$15+'Res-Appliance class'!$E32*'RES S curve-connect'!D$20","v":-4306.7876589780208},{"$f":"'Res-Appliance class'!$B32*'RES S curve-connect'!E$5+'Res-Appliance class'!$C32*'RES S curve-connect'!E$10+'Res-Appliance class'!$D32*'RES S curve-connect'!E$15+'Res-Appliance class'!$E32*'RES S curve-connect'!E$20","v":-3047.2730910621704},{"$f":"'Res-Appliance class'!$B32*'RES S curve-connect'!F$5+'Res-Appliance class'!$C32*'RES S curve-connect'!F$10+'Res-Appliance class'!$D32*'RES S curve-connect'!F$15+'Res-Appliance class'!$E32*'RES S curve-connect'!F$20","v":-2911.8422618682807},{"$f":"'Res-Appliance class'!$B32*'RES S curve-connect'!G$5+'Res-Appliance class'!$C32*'RES S curve-connect'!G$10+'Res-Appliance class'!$D32*'RES S curve-connect'!G$15+'Res-Appliance class'!$E32*'RES S curve-connect'!G$20","v":-4542.2901337816775},{"$f":"'Res-Appliance class'!$B32*'RES S curve-connect'!H$5+'Res-Appliance class'!$C32*'RES S curve-connect'!H$10+'Res-Appliance class'!$D32*'RES S curve-connect'!H$15+'Res-Appliance class'!$E32*'RES S curve-connect'!H$20","v":-4543.2686887773743},{"$f":"'Res-Appliance class'!$B32*'RES S curve-connect'!I$5+'Res-Appliance class'!$C32*'RES S curve-connect'!I$10+'Res-Appliance class'!$D32*'RES S curve-connect'!I$15+'Res-Appliance class'!$E32*'RES S curve-connect'!I$20","v":-4161.1535458810613},{"$f":"'Res-Appliance class'!$B32*'RES S curve-connect'!J$5+'Res-Appliance class'!$C32*'RES S curve-connect'!J$10+'Res-Appliance class'!$D32*'RES S curve-connect'!J$15+'Res-Appliance class'!$E32*'RES S curve-connect'!J$20","v":-4517.6013127440083},{"$f":"'Res-Appliance class'!$B32*'RES S curve-connect'!K$5+'Res-Appliance class'!$C32*'RES S curve-connect'!K$10+'Res-Appliance class'!$D32*'RES S curve-connect'!K$15+'Res-Appliance class'!$E32*'RES S curve-connect'!K$20","v":-3710.1505293332966},{"$f":"'Res-Appliance class'!$B32*'RES S curve-connect'!L$5+'Res-Appliance class'!$C32*'RES S curve-connect'!L$10+'Res-Appliance class'!$D32*'RES S curve-connect'!L$15+'Res-Appliance class'!$E32*'RES S curve-connect'!L$20","v":-3988.119455972721},{"$f":"'Res-Appliance class'!$B32*'RES S curve-connect'!M$5+'Res-Appliance class'!$C32*'RES S curve-connect'!M$10+'Res-Appliance class'!$D32*'RES S curve-connect'!M$15+'Res-Appliance class'!$E32*'RES S curve-connect'!M$20","v":-4540.1838171459785},{"$f":"'Res-Appliance class'!$B32*'RES S curve-connect'!N$5+'Res-Appliance class'!$C32*'RES S curve-connect'!N$10+'Res-Appliance class'!$D32*'RES S curve-connect'!N$15+'Res-Appliance class'!$E32*'RES S curve-connect'!N$20","v":-4573.7224620312772},{"$f":"'Res-Appliance class'!$B32*'RES S curve-connect'!O$5+'Res-Appliance class'!$C32*'RES S curve-connect'!O$10+'Res-Appliance class'!$D32*'RES S curve-connect'!O$15+'Res-Appliance class'!$E32*'RES S curve-connect'!O$20","v":-4067.5651824635165},{"$f":"'Res-Appliance class'!$B32*'RES S curve-connect'!P$5+'Res-Appliance class'!$C32*'RES S curve-connect'!P$10+'Res-Appliance class'!$D32*'RES S curve-connect'!P$15+'Res-Appliance class'!$E32*'RES S curve-connect'!P$20","v":-3657.209604251078},{"$f":"'Res-Appliance class'!$B32*'RES S curve-connect'!Q$5+'Res-Appliance class'!$C32*'RES S curve-connect'!Q$10+'Res-Appliance class'!$D32*'RES S curve-connect'!Q$15+'Res-Appliance class'!$E32*'RES S curve-connect'!Q$20","v":-3047.1704883276088},{"$f":"'Res-Appliance class'!$B32*'RES S curve-connect'!R$5+'Res-Appliance class'!$C32*'RES S curve-connect'!R$10+'Res-Appliance class'!$D32*'RES S curve-connect'!R$15+'Res-Appliance class'!$E32*'RES S curve-connect'!R$20","v":-2692.6083940351241},{"$f":"'Res-Appliance class'!$B32*'RES S curve-connect'!S$5+'Res-Appliance class'!$C32*'RES S curve-connect'!S$10+'Res-Appliance class'!$D32*'RES S curve-connect'!S$15+'Res-Appliance class'!$E32*'RES S curve-connect'!S$20","v":-2144.5427755409219},{"$f":"'Res-Appliance class'!$B32*'RES S curve-connect'!T$5+'Res-Appliance class'!$C32*'RES S curve-connect'!T$10+'Res-Appliance class'!$D32*'RES S curve-connect'!T$15+'Res-Appliance class'!$E32*'RES S curve-connect'!T$20","v":-1828.9162517408868},{"$f":"'Res-Appliance class'!$B32*'RES S curve-connect'!U$5+'Res-Appliance class'!$C32*'RES S curve-connect'!U$10+'Res-Appliance class'!$D32*'RES S curve-connect'!U$15+'Res-Appliance class'!$E32*'RES S curve-connect'!U$20","v":-1478.0721822357107},{"$f":"'Res-Appliance class'!$B32*'RES S curve-connect'!V$5+'Res-Appliance class'!$C32*'RES S curve-connect'!V$10+'Res-Appliance class'!$D32*'RES S curve-connect'!V$15+'Res-Appliance class'!$E32*'RES S curve-connect'!V$20","v":-1235.472924393963},{"$f":"'Res-Appliance class'!$B32*'RES S curve-connect'!W$5+'Res-Appliance class'!$C32*'RES S curve-connect'!W$10+'Res-Appliance class'!$D32*'RES S curve-connect'!W$15+'Res-Appliance class'!$E32*'RES S curve-connect'!W$20","v":-1041.8335163713539},{"$f":"'Res-Appliance class'!$B32*'RES S curve-connect'!X$5+'Res-Appliance class'!$C32*'RES S curve-connect'!X$10+'Res-Appliance class'!$D32*'RES S curve-connect'!X$15+'Res-Appliance class'!$E32*'RES S curve-connect'!X$20","v":-621.25031630109493},{"$f":"'Res-Appliance class'!$B32*'RES S curve-connect'!Y$5+'Res-Appliance class'!$C32*'RES S curve-connect'!Y$10+'Res-Appliance class'!$D32*'RES S curve-connect'!Y$15+'Res-Appliance class'!$E32*'RES S curve-connect'!Y$20","v":-197.0609945398046},{"$f":"'Res-Appliance class'!$B32*'RES S curve-connect'!Z$5+'Res-Appliance class'!$C32*'RES S curve-connect'!Z$10+'Res-Appliance class'!$D32*'RES S curve-connect'!Z$15+'Res-Appliance class'!$E32*'RES S curve-connect'!Z$20","v":95.118332461719774},{"$f":"'Res-Appliance class'!$B32*'RES S curve-connect'!AA$5+'Res-Appliance class'!$C32*'RES S curve-connect'!AA$10+'Res-Appliance class'!$D32*'RES S curve-connect'!AA$15+'Res-Appliance class'!$E32*'RES S curve-connect'!AA$20","v":386.04742072204158},{"$f":"'Res-Appliance class'!$B32*'RES S curve-connect'!AB$5+'Res-Appliance class'!$C32*'RES S curve-connect'!AB$10+'Res-Appliance class'!$D32*'RES S curve-connect'!AB$15+'Res-Appliance class'!$E32*'RES S curve-connect'!AB$20","v":621.87158901332464},{"$f":"'Res-Appliance class'!$B32*'RES S curve-connect'!AC$5+'Res-Appliance class'!$C32*'RES S curve-connect'!AC$10+'Res-Appliance class'!$D32*'RES S curve-connect'!AC$15+'Res-Appliance class'!$E32*'RES S curve-connect'!AC$20","v":848.89927461700336},{"$f":"'Res-Appliance class'!$B32*'RES S curve-connect'!AD$5+'Res-Appliance class'!$C32*'RES S curve-connect'!AD$10+'Res-Appliance class'!$D32*'RES S curve-connect'!AD$15+'Res-Appliance class'!$E32*'RES S curve-connect'!AD$20","v":1058.5107095889175},{"$f":"'Res-Appliance class'!$B32*'RES S curve-connect'!AE$5+'Res-Appliance class'!$C32*'RES S curve-connect'!AE$10+'Res-Appliance class'!$D32*'RES S curve-connect'!AE$15+'Res-Appliance class'!$E32*'RES S curve-connect'!AE$20","v":1276.2031160003851},{"$f":"'Res-Appliance class'!$B32*'RES S curve-connect'!AF$5+'Res-Appliance class'!$C32*'RES S curve-connect'!AF$10+'Res-Appliance class'!$D32*'RES S curve-connect'!AF$15+'Res-Appliance class'!$E32*'RES S curve-connect'!AF$20","v":1554.6525516342303},{"$f":"'Res-Appliance class'!$B32*'RES S curve-connect'!AG$5+'Res-Appliance class'!$C32*'RES S curve-connect'!AG$10+'Res-Appliance class'!$D32*'RES S curve-connect'!AG$15+'Res-Appliance class'!$E32*'RES S curve-connect'!AG$20","v":1733.5442924388813},{"$f":"'Res-Appliance class'!$B32*'RES S curve-connect'!AH$5+'Res-Appliance class'!$C32*'RES S curve-connect'!AH$10+'Res-Appliance class'!$D32*'RES S curve-connect'!AH$15+'Res-Appliance class'!$E32*'RES S curve-connect'!AH$20","v":1988.6207650635577},{"$f":"'Res-Appliance class'!$B32*'RES S curve-connect'!AI$5+'Res-Appliance class'!$C32*'RES S curve-connect'!AI$10+'Res-Appliance class'!$D32*'RES S curve-connect'!AI$15+'Res-Appliance class'!$E32*'RES S curve-connect'!AI$20","v":2214.8855586861255},{"$f":"'Res-Appliance class'!$B32*'RES S curve-connect'!AJ$5+'Res-Appliance class'!$C32*'RES S curve-connect'!AJ$10+'Res-Appliance class'!$D32*'RES S curve-connect'!AJ$15+'Res-Appliance class'!$E32*'RES S curve-connect'!AJ$20","v":2419.7062717957056},{"$f":"'Res-Appliance class'!$B32*'RES S curve-connect'!AK$5+'Res-Appliance class'!$C32*'RES S curve-connect'!AK$10+'Res-Appliance class'!$D32*'RES S curve-connect'!AK$15+'Res-Appliance class'!$E32*'RES S curve-connect'!AK$20","v":2637.0511731175425},{"$f":"'Res-Appliance class'!$B32*'RES S curve-connect'!AL$5+'Res-Appliance class'!$C32*'RES S curve-connect'!AL$10+'Res-Appliance class'!$D32*'RES S curve-connect'!AL$15+'Res-Appliance class'!$E32*'RES S curve-connect'!AL$20","v":1892.4116164001996},{"$f":"'Res-Appliance class'!$B32*'RES S curve-connect'!AM$5+'Res-Appliance class'!$C32*'RES S curve-connect'!AM$10+'Res-Appliance class'!$D32*'RES S curve-connect'!AM$15+'Res-Appliance class'!$E32*'RES S curve-connect'!AM$20","v":1790.2664092673078},{"$f":"'Res-Appliance class'!$B32*'RES S curve-connect'!AN$5+'Res-Appliance class'!$C32*'RES S curve-connect'!AN$10+'Res-Appliance class'!$D32*'RES S curve-connect'!AN$15+'Res-Appliance class'!$E32*'RES S curve-connect'!AN$20","v":1993.6237992431388},{"$f":"'Res-Appliance class'!$B32*'RES S curve-connect'!AO$5+'Res-Appliance class'!$C32*'RES S curve-connect'!AO$10+'Res-Appliance class'!$D32*'RES S curve-connect'!AO$15+'Res-Appliance class'!$E32*'RES S curve-connect'!AO$20","v":2244.6369274514327},{"$f":"'Res-Appliance class'!$B32*'RES S curve-connect'!AP$5+'Res-Appliance class'!$C32*'RES S curve-connect'!AP$10+'Res-Appliance class'!$D32*'RES S curve-connect'!AP$15+'Res-Appliance class'!$E32*'RES S curve-connect'!AP$20","v":2477.8754358510855},{"$f":"'Res-Appliance class'!$B32*'RES S curve-connect'!AQ$5+'Res-Appliance class'!$C32*'RES S curve-connect'!AQ$10+'Res-Appliance class'!$D32*'RES S curve-connect'!AQ$15+'Res-Appliance class'!$E32*'RES S curve-connect'!AQ$20","v":2727.6202545547449},{"$f":"'Res-Appliance class'!$B32*'RES S curve-connect'!AR$5+'Res-Appliance class'!$C32*'RES S curve-connect'!AR$10+'Res-Appliance class'!$D32*'RES S curve-connect'!AR$15+'Res-Appliance class'!$E32*'RES S curve-connect'!AR$20","v":3002.6511997015814},{"$f":"'Res-Appliance class'!$B32*'RES S curve-connect'!AS$5+'Res-Appliance class'!$C32*'RES S curve-connect'!AS$10+'Res-Appliance class'!$D32*'RES S curve-connect'!AS$15+'Res-Appliance class'!$E32*'RES S curve-connect'!AS$20","v":3311.4936802353477},{"$f":"'Res-Appliance class'!$B32*'RES S curve-connect'!AT$5+'Res-Appliance class'!$C32*'RES S curve-connect'!AT$10+'Res-Appliance class'!$D32*'RES S curve-connect'!AT$15+'Res-Appliance class'!$E32*'RES S curve-connect'!AT$20","v":3657.8973035136823},{"$f":"'Res-Appliance class'!$B32*'RES S curve-connect'!AU$5+'Res-Appliance class'!$C32*'RES S curve-connect'!AU$10+'Res-Appliance class'!$D32*'RES S curve-connect'!AU$15+'Res-Appliance class'!$E32*'RES S curve-connect'!AU$20","v":4057.5385610353496},{"$f":"'Res-Appliance class'!$B32*'RES S curve-connect'!AV$5+'Res-Appliance class'!$C32*'RES S curve-connect'!AV$10+'Res-Appliance class'!$D32*'RES S curve-connect'!AV$15+'Res-Appliance class'!$E32*'RES S curve-connect'!AV$20","v":4514.5680341905017},{"$f":"'Res-Appliance class'!$B32*'RES S curve-connect'!AW$5+'Res-Appliance class'!$C32*'RES S curve-connect'!AW$10+'Res-Appliance class'!$D32*'RES S curve-connect'!AW$15+'Res-Appliance class'!$E32*'RES S curve-connect'!AW$20","v":5040.4439199125645},{"$f":"'Res-Appliance class'!$B32*'RES S curve-connect'!AX$5+'Res-Appliance class'!$C32*'RES S curve-connect'!AX$10+'Res-Appliance class'!$D32*'RES S curve-connect'!AX$15+'Res-Appliance class'!$E32*'RES S curve-connect'!AX$20","v":5641.2087045449462},{"$f":"'Res-Appliance class'!$B32*'RES S curve-connect'!AY$5+'Res-Appliance class'!$C32*'RES S curve-connect'!AY$10+'Res-Appliance class'!$D32*'RES S curve-connect'!AY$15+'Res-Appliance class'!$E32*'RES S curve-connect'!AY$20","v":6333.8575580290471},{"$f":"'Res-Appliance class'!$B32*'RES S curve-connect'!AZ$5+'Res-Appliance class'!$C32*'RES S curve-connect'!AZ$10+'Res-Appliance class'!$D32*'RES S curve-connect'!AZ$15+'Res-Appliance class'!$E32*'RES S curve-connect'!AZ$20","v":7127.5503238264992},{"$f":"'Res-Appliance class'!$B32*'RES S curve-connect'!BA$5+'Res-Appliance class'!$C32*'RES S curve-connect'!BA$10+'Res-Appliance class'!$D32*'RES S curve-connect'!BA$15+'Res-Appliance class'!$E32*'RES S curve-connect'!BA$20","v":8048.0204909288832},{"$f":"'Res-Appliance class'!$B32*'RES S curve-connect'!BB$5+'Res-Appliance class'!$C32*'RES S curve-connect'!BB$10+'Res-Appliance class'!$D32*'RES S curve-connect'!BB$15+'Res-Appliance class'!$E32*'RES S curve-connect'!BB$20","v":9125.7168027041662},{"$f":"'Res-Appliance class'!$B32*'RES S curve-connect'!BC$5+'Res-Appliance class'!$C32*'RES S curve-connect'!BC$10+'Res-Appliance class'!$D32*'RES S curve-connect'!BC$15+'Res-Appliance class'!$E32*'RES S curve-connect'!BC$20","v":10411.309742151427},{"$f":"'Res-Appliance class'!$B32*'RES S curve-connect'!BD$5+'Res-Appliance class'!$C32*'RES S curve-connect'!BD$10+'Res-Appliance class'!$D32*'RES S curve-connect'!BD$15+'Res-Appliance class'!$E32*'RES S curve-connect'!BD$20","v":11657.415363889268},{"$f":"'Res-Appliance class'!$B32*'RES S curve-connect'!BE$5+'Res-Appliance class'!$C32*'RES S curve-connect'!BE$10+'Res-Appliance class'!$D32*'RES S curve-connect'!BE$15+'Res-Appliance class'!$E32*'RES S curve-connect'!BE$20","v":12798.334183423556},{"$f":"'Res-Appliance class'!$B32*'RES S curve-connect'!BF$5+'Res-Appliance class'!$C32*'RES S curve-connect'!BF$10+'Res-Appliance class'!$D32*'RES S curve-connect'!BF$15+'Res-Appliance class'!$E32*'RES S curve-connect'!BF$20","v":13965.125488719976},{"$f":"'Res-Appliance class'!$B32*'RES S curve-connect'!BG$5+'Res-Appliance class'!$C32*'RES S curve-connect'!BG$10+'Res-Appliance class'!$D32*'RES S curve-connect'!BG$15+'Res-Appliance class'!$E32*'RES S curve-connect'!BG$20","v":15283.452286215883},{"$f":"'Res-Appliance class'!$B32*'RES S curve-connect'!BH$5+'Res-Appliance class'!$C32*'RES S curve-connect'!BH$10+'Res-Appliance class'!$D32*'RES S curve-connect'!BH$15+'Res-Appliance class'!$E32*'RES S curve-connect'!BH$20","v":16849.724506355418},{"$f":"'Res-Appliance class'!$B32*'RES S curve-connect'!BI$5+'Res-Appliance class'!$C32*'RES S curve-connect'!BI$10+'Res-Appliance class'!$D32*'RES S curve-connect'!BI$15+'Res-Appliance class'!$E32*'RES S curve-connect'!BI$20","v":19117.89388711123},{"$f":"'Res-Appliance class'!$B32*'RES S curve-connect'!BJ$5+'Res-Appliance class'!$C32*'RES S curve-connect'!BJ$10+'Res-Appliance class'!$D32*'RES S curve-connect'!BJ$15+'Res-Appliance class'!$E32*'RES S curve-connect'!BJ$20","v":22446.61537670012},{"$f":"'Res-Appliance class'!$B32*'RES S curve-connect'!BK$5+'Res-Appliance class'!$C32*'RES S curve-connect'!BK$10+'Res-Appliance class'!$D32*'RES S curve-connect'!BK$15+'Res-Appliance class'!$E32*'RES S curve-connect'!BK$20","v":27369.239647989805},{"$f":"'Res-Appliance class'!$B32*'RES S curve-connect'!BL$5+'Res-Appliance class'!$C32*'RES S curve-connect'!BL$10+'Res-Appliance class'!$D32*'RES S curve-connect'!BL$15+'Res-Appliance class'!$E32*'RES S curve-connect'!BL$20","v":-841.08135136524447},{"$f":"'Res-Appliance class'!$B32*'RES S curve-connect'!BM$5+'Res-Appliance class'!$C32*'RES S curve-connect'!BM$10+'Res-Appliance class'!$D32*'RES S curve-connect'!BM$15+'Res-Appliance class'!$E32*'RES S curve-connect'!BM$20","v":-834.99366099080544},{"$f":"'Res-Appliance class'!$B32*'RES S curve-connect'!BN$5+'Res-Appliance class'!$C32*'RES S curve-connect'!BN$10+'Res-Appliance class'!$D32*'RES S curve-connect'!BN$15+'Res-Appliance class'!$E32*'RES S curve-connect'!BN$20","v":-831.17618749233077},{"$f":"'Res-Appliance class'!$B32*'RES S curve-connect'!BO$5+'Res-Appliance class'!$C32*'RES S curve-connect'!BO$10+'Res-Appliance class'!$D32*'RES S curve-connect'!BO$15+'Res-Appliance class'!$E32*'RES S curve-connect'!BO$20","v":-822.84027601478715},{"$f":"'Res-Appliance class'!$B32*'RES S curve-connect'!BP$5+'Res-Appliance class'!$C32*'RES S curve-connect'!BP$10+'Res-Appliance class'!$D32*'RES S curve-connect'!BP$15+'Res-Appliance class'!$E32*'RES S curve-connect'!BP$20","v":-816.77449518344383},{"$f":"'Res-Appliance class'!$B32*'RES S curve-connect'!BQ$5+'Res-Appliance class'!$C32*'RES S curve-connect'!BQ$10+'Res-Appliance class'!$D32*'RES S curve-connect'!BQ$15+'Res-Appliance class'!$E32*'RES S curve-connect'!BQ$20","v":-810.71593174479312},{"$f":"'Res-Appliance class'!$B32*'RES S curve-connect'!BR$5+'Res-Appliance class'!$C32*'RES S curve-connect'!BR$10+'Res-Appliance class'!$D32*'RES S curve-connect'!BR$15+'Res-Appliance class'!$E32*'RES S curve-connect'!BR$20","v":-806.92741377933669},{"$f":"'Res-Appliance class'!$B32*'RES S curve-connect'!BS$5+'Res-Appliance class'!$C32*'RES S curve-connect'!BS$10+'Res-Appliance class'!$D32*'RES S curve-connect'!BS$15+'Res-Appliance class'!$E32*'RES S curve-connect'!BS$20","v":-798.62028748549392},{"$f":"'Res-Appliance class'!$B32*'RES S curve-connect'!BT$5+'Res-Appliance class'!$C32*'RES S curve-connect'!BT$10+'Res-Appliance class'!$D32*'RES S curve-connect'!BT$15+'Res-Appliance class'!$E32*'RES S curve-connect'!BT$20","v":-792.58312253536678},{"$f":"'Res-Appliance class'!$B32*'RES S curve-connect'!BU$5+'Res-Appliance class'!$C32*'RES S curve-connect'!BU$10+'Res-Appliance class'!$D32*'RES S curve-connect'!BU$15+'Res-Appliance class'!$E32*'RES S curve-connect'!BU$20","v":-786.55300671570626},{"$f":"'Res-Appliance class'!$B32*'RES S curve-connect'!BV$5+'Res-Appliance class'!$C32*'RES S curve-connect'!BV$10+'Res-Appliance class'!$D32*'RES S curve-connect'!BV$15+'Res-Appliance class'!$E32*'RES S curve-connect'!BV$20","v":-782.79276914074273},{"$f":"'Res-Appliance class'!$B32*'RES S curve-connect'!BW$5+'Res-Appliance class'!$C32*'RES S curve-connect'!BW$10+'Res-Appliance class'!$D32*'RES S curve-connect'!BW$15+'Res-Appliance class'!$E32*'RES S curve-connect'!BW$20","v":-774.51375703613257},{"$f":"'Res-Appliance class'!$B32*'RES S curve-connect'!BX$5+'Res-Appliance class'!$C32*'RES S curve-connect'!BX$10+'Res-Appliance class'!$D32*'RES S curve-connect'!BX$15+'Res-Appliance class'!$E32*'RES S curve-connect'!BX$20","v":-768.50454109476459},{"$f":"'Res-Appliance class'!$B32*'RES S curve-connect'!BY$5+'Res-Appliance class'!$C32*'RES S curve-connect'!BY$10+'Res-Appliance class'!$D32*'RES S curve-connect'!BY$15+'Res-Appliance class'!$E32*'RES S curve-connect'!BY$20","v":-762.50221011777035},{"$f":"'Res-Appliance class'!$B32*'RES S curve-connect'!BZ$5+'Res-Appliance class'!$C32*'RES S curve-connect'!BZ$10+'Res-Appliance class'!$D32*'RES S curve-connect'!BZ$15+'Res-Appliance class'!$E32*'RES S curve-connect'!BZ$20","v":-758.76959422739299},{"$f":"'Res-Appliance class'!$B32*'RES S curve-connect'!CA$5+'Res-Appliance class'!$C32*'RES S curve-connect'!CA$10+'Res-Appliance class'!$D32*'RES S curve-connect'!CA$15+'Res-Appliance class'!$E32*'RES S curve-connect'!CA$20","v":-750.51804165096905},{"$f":"'Res-Appliance class'!$B32*'RES S curve-connect'!CB$5+'Res-Appliance class'!$C32*'RES S curve-connect'!CB$10+'Res-Appliance class'!$D32*'RES S curve-connect'!CB$15+'Res-Appliance class'!$E32*'RES S curve-connect'!CB$20","v":-744.53612407678406},{"$f":"'Res-Appliance class'!$B32*'RES S curve-connect'!CC$5+'Res-Appliance class'!$C32*'RES S curve-connect'!CC$10+'Res-Appliance class'!$D32*'RES S curve-connect'!CC$15+'Res-Appliance class'!$E32*'RES S curve-connect'!CC$20","v":-738.56093129511896},{"$f":"'Res-Appliance class'!$B32*'RES S curve-connect'!CD$5+'Res-Appliance class'!$C32*'RES S curve-connect'!CD$10+'Res-Appliance class'!$D32*'RES S curve-connect'!CD$15+'Res-Appliance class'!$E32*'RES S curve-connect'!CD$20","v":-832.47764241334312}]
["Glen Eira (C)",null,{"$f":"'Res-Appliance class'!$B33*'RES S curve-connect'!C$5+'Res-Appliance class'!$C33*'RES S curve-connect'!C$10+'Res-Appliance class'!$D33*'RES S curve-connect'!C$15+'Res-Appliance class'!$E33*'RES S curve-connect'!C$20","v":-3212.8793737111059},{"$f":"'Res-Appliance class'!$B33*'RES S curve-connect'!D$5+'Res-Appliance class'!$C33*'RES S curve-connect'!D$10+'Res-Appliance class'!$D33*'RES S curve-connect'!D$15+'Res-Appliance class'!$E33*'RES S curve-connect'!D$20","v":-3533.4908703849405},{"$f":"'Res-Appliance class'!$B33*'RES S curve-connect'!E$5+'Res-Appliance class'!$C33*'RES S curve-connect'!E$10+'Res-Appliance class'!$D33*'RES S curve-connect'!E$15+'Res-Appliance class'!$E33*'RES S curve-connect'!E$20","v":-2688.7578306942769},{"$f":"'Res-Appliance class'!$B33*'RES S curve-connect'!F$5+'Res-Appliance class'!$C33*'RES S curve-connect'!F$10+'Res-Appliance class'!$D33*'RES S curve-connect'!F$15+'Res-Appliance class'!$E33*'RES S curve-connect'!F$20","v":-2594.572566874117},{"$f":"'Res-Appliance class'!$B33*'RES S curve-connect'!G$5+'Res-Appliance class'!$C33*'RES S curve-connect'!G$10+'Res-Appliance class'!$D33*'RES S curve-connect'!G$15+'Res-Appliance class'!$E33*'RES S curve-connect'!G$20","v":-3577.7367194879516},{"$f":"'Res-Appliance class'!$B33*'RES S curve-connect'!H$5+'Res-Appliance class'!$C33*'RES S curve-connect'!H$10+'Res-Appliance class'!$D33*'RES S curve-connect'!H$15+'Res-Appliance class'!$E33*'RES S curve-connect'!H$20","v":-3609.6059338559371},{"$f":"'Res-Appliance class'!$B33*'RES S curve-connect'!I$5+'Res-Appliance class'!$C33*'RES S curve-connect'!I$10+'Res-Appliance class'!$D33*'RES S curve-connect'!I$15+'Res-Appliance class'!$E33*'RES S curve-connect'!I$20","v":-3340.2431747940136},{"$f":"'Res-Appliance class'!$B33*'RES S curve-connect'!J$5+'Res-Appliance class'!$C33*'RES S curve-connect'!J$10+'Res-Appliance class'!$D33*'RES S curve-connect'!J$15+'Res-Appliance class'!$E33*'RES S curve-connect'!J$20","v":-3690.3984434022204},{"$f":"'Res-Appliance class'!$B33*'RES S curve-connect'!K$5+'Res-Appliance class'!$C33*'RES S curve-connect'!K$10+'Res-Appliance class'!$D33*'RES S curve-connect'!K$15+'Res-Appliance class'!$E33*'RES S curve-connect'!K$20","v":-3095.258018997542},{"$f":"'Res-Appliance class'!$B33*'RES S curve-connect'!L$5+'Res-Appliance class'!$C33*'RES S curve-connect'!L$10+'Res-Appliance class'!$D33*'RES S curve-connect'!L$15+'Res-Appliance class'!$E33*'RES S curve-connect'!L$20","v":-3296.1740075799808},{"$f":"'Res-Appliance class'!$B33*'RES S curve-connect'!M$5+'Res-Appliance class'!$C33*'RES S curve-connect'!M$10+'Res-Appliance class'!$D33*'RES S curve-connect'!M$15+'Res-Appliance class'!$E33*'RES S curve-connect'!M$20","v":-3669.9669997071851},{"$f":"'Res-Appliance class'!$B33*'RES S curve-connect'!N$5+'Res-Appliance class'!$C33*'RES S curve-connect'!N$10+'Res-Appliance class'!$D33*'RES S curve-connect'!N$15+'Res-Appliance class'!$E33*'RES S curve-connect'!N$20","v":-3689.1588328442499},{"$f":"'Res-Appliance class'!$B33*'RES S curve-connect'!O$5+'Res-Appliance class'!$C33*'RES S curve-connect'!O$10+'Res-Appliance class'!$D33*'RES S curve-connect'!O$15+'Res-Appliance class'!$E33*'RES S curve-connect'!O$20","v":-3321.7737269630056},{"$f":"'Res-Appliance class'!$B33*'RES S curve-connect'!P$5+'Res-Appliance class'!$C33*'RES S curve-connect'!P$10+'Res-Appliance class'!$D33*'RES S curve-connect'!P$15+'Res-Appliance class'!$E33*'RES S curve-connect'!P$20","v":-3026.3555338845031},{"$f":"'Res-Appliance class'!$B33*'RES S curve-connect'!Q$5+'Res-Appliance class'!$C33*'RES S curve-connect'!Q$10+'Res-Appliance class'!$D33*'RES S curve-connect'!Q$15+'Res-Appliance class'!$E33*'RES S curve-connect'!Q$20","v":-2589.160446494408},{"$f":"'Res-Appliance class'!$B33*'RES S curve-connect'!R$5+'Res-Appliance class'!$C33*'RES S curve-connect'!R$10+'Res-Appliance class'!$D33*'RES S curve-connect'!R$15+'Res-Appliance class'!$E33*'RES S curve-connect'!R$20","v":-2333.8959711310627},{"$f":"'Res-Appliance class'!$B33*'RES S curve-connect'!S$5+'Res-Appliance class'!$C33*'RES S curve-connect'!S$10+'Res-Appliance class'!$D33*'RES S curve-connect'!S$15+'Res-Appliance class'!$E33*'RES S curve-connect'!S$20","v":-1936.98573170023},{"$f":"'Res-Appliance class'!$B33*'RES S curve-connect'!T$5+'Res-Appliance class'!$C33*'RES S curve-connect'!T$10+'Res-Appliance class'!$D33*'RES S curve-connect'!T$15+'Res-Appliance class'!$E33*'RES S curve-connect'!T$20","v":-1716.3011923934482},{"$f":"'Res-Appliance class'!$B33*'RES S curve-connect'!U$5+'Res-Appliance class'!$C33*'RES S curve-connect'!U$10+'Res-Appliance class'!$D33*'RES S curve-connect'!U$15+'Res-Appliance class'!$E33*'RES S curve-connect'!U$20","v":-1464.8494272404255},{"$f":"'Res-Appliance class'!$B33*'RES S curve-connect'!V$5+'Res-Appliance class'!$C33*'RES S curve-connect'!V$10+'Res-Appliance class'!$D33*'RES S curve-connect'!V$15+'Res-Appliance class'!$E33*'RES S curve-connect'!V$20","v":-1287.2165343092579},{"$f":"'Res-Appliance class'!$B33*'RES S curve-connect'!W$5+'Res-Appliance class'!$C33*'RES S curve-connect'!W$10+'Res-Appliance class'!$D33*'RES S curve-connect'!W$15+'Res-Appliance class'!$E33*'RES S curve-connect'!W$20","v":-1145.021810172942},{"$f":"'Res-Appliance class'!$B33*'RES S curve-connect'!X$5+'Res-Appliance class'!$C33*'RES S curve-connect'!X$10+'Res-Appliance class'!$D33*'RES S curve-connect'!X$15+'Res-Appliance class'!$E33*'RES S curve-connect'!X$20","v":-845.71987384902832},{"$f":"'Res-Appliance class'!$B33*'RES S curve-connect'!Y$5+'Res-Appliance class'!$C33*'RES S curve-connect'!Y$10+'Res-Appliance class'!$D33*'RES S curve-connect'!Y$15+'Res-Appliance class'!$E33*'RES S curve-connect'!Y$20","v":-542.87831448619477},{"$f":"'Res-Appliance class'!$B33*'RES S curve-connect'!Z$5+'Res-Appliance class'!$C33*'RES S curve-connect'!Z$10+'Res-Appliance class'!$D33*'RES S curve-connect'!Z$15+'Res-Appliance class'!$E33*'RES S curve-connect'!Z$20","v":-332.38056709269864},{"$f":"'Res-Appliance class'!$B33*'RES S curve-connect'!AA$5+'Res-Appliance class'!$C33*'RES S curve-connect'!AA$10+'Res-Appliance class'!$D33*'RES S curve-connect'!AA$15+'Res-Appliance class'!$E33*'RES S curve-connect'!AA$20","v":-121.60599937546959},{"$f":"'Res-Appliance class'!$B33*'RES S curve-connect'!AB$5+'Res-Appliance class'!$C33*'RES S curve-connect'!AB$10+'Res-Appliance class'!$D33*'RES S curve-connect'!AB$15+'Res-Appliance class'!$E33*'RES S curve-connect'!AB$20","v":50.139324018141679},{"$f":"'Res-Appliance class'!$B33*'RES S curve-connect'!AC$5+'Res-Appliance class'!$C33*'RES S curve-connect'!AC$10+'Res-Appliance class'!$D33*'RES S curve-connect'!AC$15+'Res-Appliance class'!$E33*'RES S curve-connect'!AC$20","v":216.35165935805361},{"$f":"'Res-Appliance class'!$B33*'RES S curve-connect'!AD$5+'Res-Appliance class'!$C33*'RES S curve-connect'!AD$10+'Res-Appliance class'!$D33*'RES S curve-connect'!AD$15+'Res-Appliance class'!$E33*'RES S curve-connect'!AD$20","v":370.10676975138068},{"$f":"'Res-Appliance class'!$B33*'RES S curve-connect'!AE$5+'Res-Appliance class'!$C33*'RES S curve-connect'!AE$10+'Res-Appliance class'!$D33*'RES S curve-connect'!AE$15+'Res-Appliance class'!$E33*'RES S curve-connect'!AE$20","v":531.28430305935819},{"$f":"'Res-Appliance class'!$B33*'RES S curve-connect'!AF$5+'Res-Appliance class'!$C33*'RES S curve-connect'!AF$10+'Res-Appliance class'!$D33*'RES S curve-connect'!AF$15+'Res-Appliance class'!$E33*'RES S curve-connect'!AF$20","v":734.35556951284536},{"$f":"'Res-Appliance class'!$B33*'RES S curve-connect'!AG$5+'Res-Appliance class'!$C33*'RES S curve-connect'!AG$10+'Res-Appliance class'!$D33*'RES S curve-connect'!AG$15+'Res-Appliance class'!$E33*'RES S curve-connect'!AG$20","v":863.20841927313836},{"$f":"'Res-Appliance class'!$B33*'RES S curve-connect'!AH$5+'Res-Appliance class'!$C33*'RES S curve-connect'!AH$10+'Res-Appliance class'!$D33*'RES S curve-connect'!AH$15+'Res-Appliance class'!$E33*'RES S curve-connect'!AH$20","v":1043.5680886065825},{"$f":"'Res-Appliance class'!$B33*'RES S curve-connect'!AI$5+'Res-Appliance class'!$C33*'RES S curve-connect'!AI$10+'Res-Appliance class'!$D33*'RES S curve-connect'!AI$15+'Res-Appliance class'!$E33*'RES S curve-connect'!AI$20","v":1206.5698006099733},{"$f":"'Res-Appliance class'!$B33*'RES S curve-connect'!AJ$5+'Res-Appliance class'!$C33*'RES S curve-connect'!AJ$10+'Res-Appliance class'!$D33*'RES S curve-connect'!AJ$15+'Res-Appliance class'!$E33*'RES S curve-connect'!AJ$20","v":1353.4931319671648},{"$f":"'Res-Appliance class'!$B33*'RES S curve-connect'!AK$5+'Res-Appliance class'!$C33*'RES S curve-connect'!AK$10+'Res-Appliance class'!$D33*'RES S curve-connect'!AK$15+'Res-Appliance class'!$E33*'RES S curve-connect'!AK$20","v":1509.5049785531335},{"$f":"'Res-Appliance class'!$B33*'RES S curve-connect'!AL$5+'Res-Appliance class'!$C33*'RES S curve-connect'!AL$10+'Res-Appliance class'!$D33*'RES S curve-connect'!AL$15+'Res-Appliance class'!$E33*'RES S curve-connect'!AL$20","v":967.049979759802},{"$f":"'Res-Appliance class'!$B33*'RES S curve-connect'!AM$5+'Res-Appliance class'!$C33*'RES S curve-connect'!AM$10+'Res-Appliance class'!$D33*'RES S curve-connect'!AM$15+'Res-Appliance class'!$E33*'RES S curve-connect'!AM$20","v":897.31811304252756},{"$f":"'Res-Appliance class'!$B33*'RES S curve-connect'!AN$5+'Res-Appliance class'!$C33*'RES S curve-connect'!AN$10+'Res-Appliance class'!$D33*'RES S curve-connect'!AN$15+'Res-Appliance class'!$E33*'RES S curve-connect'!AN$20","v":1045.6482457176548},{"$f":"'Res-Appliance class'!$B33*'RES S curve-connect'!AO$5+'Res-Appliance class'!$C33*'RES S curve-connect'!AO$10+'Res-Appliance class'!$D33*'RES S curve-connect'!AO$15+'Res-Appliance class'!$E33*'RES S curve-connect'!AO$20","v":1226.4755633819525},{"$f":"'Res-Appliance class'!$B33*'RES S curve-connect'!AP$5+'Res-Appliance class'!$C33*'RES S curve-connect'!AP$10+'Res-Appliance class'!$D33*'RES S curve-connect'!AP$15+'Res-Appliance class'!$E33*'RES S curve-connect'!AP$20","v":1393.1789187409709},{"$f":"'Res-Appliance class'!$B33*'RES S curve-connect'!AQ$5+'Res-Appliance class'!$C33*'RES S curve-connect'!AQ$10+'Res-Appliance class'!$D33*'RES S curve-connect'!AQ$15+'Res-Appliance class'!$E33*'RES S curve-connect'!AQ$20","v":1573.0116370016617},{"$f":"'Res-Appliance class'!$B33*'RES S curve-connect'!AR$5+'Res-Appliance class'!$C33*'RES S curve-connect'!AR$10+'Res-Appliance class'!$D33*'RES S curve-connect'!AR$15+'Res-Appliance class'!$E33*'RES S curve-connect'!AR$20","v":1770.2649930683754},{"$f":"'Res-Appliance class'!$B33*'RES S curve-connect'!AS$5+'Res-Appliance class'!$C33*'RES S curve-connect'!AS$10+'Res-Appliance class'!$D33*'RES S curve-connect'!AS$15+'Res-Appliance class'!$E33*'RES S curve-connect'!AS$20","v":1991.5611569275025},{"$f":"'Res-Appliance class'!$B33*'RES S curve-connect'!AT$5+'Res-Appliance class'!$C33*'RES S curve-connect'!AT$10+'Res-Appliance class'!$D33*'RES S curve-connect'!AT$15+'Res-Appliance class'!$E33*'RES S curve-connect'!AT$20","v":2238.8664149379356},{"$f":"'Res-Appliance class'!$B33*'RES S curve-connect'!AU$5+'Res-Appliance class'!$C33*'RES S curve-connect'!AU$10+'Res-Appliance class'!$D33*'RES S curve-connect'!AU$15+'Res-Appliance class'!$E33*'RES S curve-connect'!AU$20","v":2525.2581095626306},{"$f":"'Res-Appliance class'!$B33*'RES S curve-connect'!AV$5+'Res-Appliance class'!$C33*'RES S curve-connect'!AV$10+'Res-Appliance class'!$D33*'RES S curve-connect'!AV$15+'Res-Appliance class'!$E33*'RES S curve-connect'!AV$20","v":2851.6545873384439},{"$f":"'Res-Appliance class'!$B33*'RES S curve-connect'!AW$5+'Res-Appliance class'!$C33*'RES S curve-connect'!AW$10+'Res-Appliance class'!$D33*'RES S curve-connect'!AW$15+'Res-Appliance class'!$E33*'RES S curve-connect'!AW$20","v":3226.6884176032504},{"$f":"'Res-Appliance class'!$B33*'RES S curve-connect'!AX$5+'Res-Appliance class'!$C33*'RES S curve-connect'!AX$10+'Res-Appliance class'!$D33*'RES S curve-connect'!AX$15+'Res-Appliance class'!$E33*'RES S curve-connect'!AX$20","v":3653.7751651406738},{"$f":"'Res-Appliance class'!$B33*'RES S curve-connect'!AY$5+'Res-Appliance class'!$C33*'RES S curve-connect'!AY$10+'Res-Appliance class'!$D33*'RES S curve-connect'!AY$15+'Res-Appliance class'!$E33*'RES S curve-connect'!AY$20","v":4146.7149620474156},{"$f":"'Res-Appliance class'!$B33*'RES S curve-connect'!AZ$5+'Res-Appliance class'!$C33*'RES S curve-connect'!AZ$10+'Res-Appliance class'!$D33*'RES S curve-connect'!AZ$15+'Res-Appliance class'!$E33*'RES S curve-connect'!AZ$20","v":4709.7842593619362},{"$f":"'Res-Appliance class'!$B33*'RES S curve-connect'!BA$5+'Res-Appliance class'!$C33*'RES S curve-connect'!BA$10+'Res-Appliance class'!$D33*'RES S curve-connect'!BA$15+'Res-Appliance class'!$E33*'RES S curve-connect'!BA$20","v":5361.5743378286788},{"$f":"'Res-Appliance class'!$B33*'RES S curve-connect'!BB$5+'Res-Appliance class'!$C33*'RES S curve-connect'!BB$10+'Res-Appliance class'!$D33*'RES S curve-connect'!BB$15+'Res-Appliance class'!$E33*'RES S curve-connect'!BB$20","v":6122.5477595637676},{"$f":"'Res-Appliance class'!$B33*'RES S curve-connect'!BC$5+'Res-Appliance class'!$C33*'RES S curve-connect'!BC$10+'Res-Appliance class'!$D33*'RES S curve-connect'!BC$15+'Res-Appliance class'!$E33*'RES S curve-connect'!BC$20","v":7029.9249800341968},{"$f":"'Res-Appliance class'!$B33*'RES S curve-connect'!BD$5+'Res-Appliance class'!$C33*'RES S curve-connect'!BD$10+'Res-Appliance class'!$D33*'RES S curve-connect'!BD$15+'Res-Appliance class'!$E33*'RES S curve-connect'!BD$20","v":7903.9171603744162},{"$f":"'Res-Appliance class'!$B33*'RES S curve-connect'!BE$5+'Res-Appliance class'!$C33*'RES S curve-connect'!BE$10+'Res-Appliance class'!$D33*'RES S curve-connect'!BE$15+'Res-Appliance class'!$E33*'RES S curve-connect'!BE$20","v":8702.3015152234948},{"$f":"'Res-Appliance class'!$B33*'RES S curve-connect'!BF$5+'Res-Appliance class'!$C33*'RES S curve-connect'!BF$10+'Res-Appliance class'!$D33*'RES S curve-connect'!BF$15+'Res-Appliance class'!$E33*'RES S curve-connect'!BF$20","v":9519.3319919092955},{"$f":"'Res-Appliance class'!$B33*'RES S curve-connect'!BG$5+'Res-Appliance class'!$C33*'RES S curve-connect'!BG$10+'Res-Appliance class'!$D33*'RES S curve-connect'!BG$15+'Res-Appliance class'!$E33*'RES S curve-connect'!BG$20","v":10444.535567946432},{"$f":"'Res-Appliance class'!$B33*'RES S curve-connect'!BH$5+'Res-Appliance class'!$C33*'RES S curve-connect'!BH$10+'Res-Appliance class'!$D33*'RES S curve-connect'!BH$15+'Res-Appliance class'!$E33*'RES S curve-connect'!BH$20","v":11542.503069146238},{"$f":"'Res-Appliance class'!$B33*'RES S curve-connect'!BI$5+'Res-Appliance class'!$C33*'RES S curve-connect'!BI$10+'Res-Appliance class'!$D33*'RES S curve-connect'!BI$15+'Res-Appliance class'!$E33*'RES S curve-connect'!BI$20","v":13133.776901824131},{"$f":"'Res-Appliance class'!$B33*'RES S curve-connect'!BJ$5+'Res-Appliance class'!$C33*'RES S curve-connect'!BJ$10+'Res-Appliance class'!$D33*'RES S curve-connect'!BJ$15+'Res-Appliance class'!$E33*'RES S curve-connect'!BJ$20","v":15462.737988146069},{"$f":"'Res-Appliance class'!$B33*'RES S curve-connect'!BK$5+'Res-Appliance class'!$C33*'RES S curve-connect'!BK$10+'Res-Appliance class'!$D33*'RES S curve-connect'!BK$15+'Res-Appliance class'!$E33*'RES S curve-connect'!BK$20","v":18897.532968833693},{"$f":"'Res-Appliance class'!$B33*'RES S curve-connect'!BL$5+'Res-Appliance class'!$C33*'RES S curve-connect'!BL$10+'Res-Appliance class'!$D33*'RES S curve-connect'!BL$15+'Res-Appliance class'!$E33*'RES S curve-connect'!BL$20","v":-1015.5158494526913},{"$f":"'Res-Appliance class'!$B33*'RES S curve-connect'!BM$5+'Res-Appliance class'!$C33*'RES S curve-connect'!BM$10+'Res-Appliance class'!$D33*'RES S curve-connect'!BM$15+'Res-Appliance class'!$E33*'RES S curve-connect'!BM$20","v":-1011.1511882460364},{"$f":"'Res-Appliance class'!$B33*'RES S curve-connect'!BN$5+'Res-Appliance class'!$C33*'RES S curve-connect'!BN$10+'Res-Appliance class'!$D33*'RES S curve-connect'!BN$15+'Res-Appliance class'!$E33*'RES S curve-connect'!BN$20","v":-1009.055630389259},{"$f":"'Res-Appliance class'!$B33*'RES S curve-connect'!BO$5+'Res-Appliance class'!$C33*'RES S curve-connect'!BO$10+'Res-Appliance class'!$D33*'RES S curve-connect'!BO$15+'Res-Appliance class'!$E33*'RES S curve-connect'!BO$20","v":-1002.4405265984435},{"$f":"'Res-Appliance class'!$B33*'RES S curve-connect'!BP$5+'Res-Appliance class'!$C33*'RES S curve-connect'!BP$10+'Res-Appliance class'!$D33*'RES S curve-connect'!BP$15+'Res-Appliance class'!$E33*'RES S curve-connect'!BP$20","v":-998.09445103883127},{"$f":"'Res-Appliance class'!$B33*'RES S curve-connect'!BQ$5+'Res-Appliance class'!$C33*'RES S curve-connect'!BQ$10+'Res-Appliance class'!$D33*'RES S curve-connect'!BQ$15+'Res-Appliance class'!$E33*'RES S curve-connect'!BQ$20","v":-993.75449596592864},{"$f":"'Res-Appliance class'!$B33*'RES S curve-connect'!BR$5+'Res-Appliance class'!$C33*'RES S curve-connect'!BR$10+'Res-Appliance class'!$D33*'RES S curve-connect'!BR$15+'Res-Appliance class'!$E33*'RES S curve-connect'!BR$20","v":-991.68349493847904},{"$f":"'Res-Appliance class'!$B33*'RES S curve-connect'!BS$5+'Res-Appliance class'!$C33*'RES S curve-connect'!BS$10+'Res-Appliance class'!$D33*'RES S curve-connect'!BS$15+'Res-Appliance class'!$E33*'RES S curve-connect'!BS$20","v":-985.09279960255355},{"$f":"'Res-Appliance class'!$B33*'RES S curve-connect'!BT$5+'Res-Appliance class'!$C33*'RES S curve-connect'!BT$10+'Res-Appliance class'!$D33*'RES S curve-connect'!BT$15+'Res-Appliance class'!$E33*'RES S curve-connect'!BT$20","v":-980.77098504750006},{"$f":"'Res-Appliance class'!$B33*'RES S curve-connect'!BU$5+'Res-Appliance class'!$C33*'RES S curve-connect'!BU$10+'Res-Appliance class'!$D33*'RES S curve-connect'!BU$15+'Res-Appliance class'!$E33*'RES S curve-connect'!BU$20","v":-976.45514444709193},{"$f":"'Res-Appliance class'!$B33*'RES S curve-connect'!BV$5+'Res-Appliance class'!$C33*'RES S curve-connect'!BV$10+'Res-Appliance class'!$D33*'RES S curve-connect'!BV$15+'Res-Appliance class'!$E33*'RES S curve-connect'!BV$20","v":-974.4081122725363},{"$f":"'Res-Appliance class'!$B33*'RES S curve-connect'!BW$5+'Res-Appliance class'!$C33*'RES S curve-connect'!BW$10+'Res-Appliance class'!$D33*'RES S curve-connect'!BW$15+'Res-Appliance class'!$E33*'RES S curve-connect'!BW$20","v":-967.84124107660205},{"$f":"'Res-Appliance class'!$B33*'RES S curve-connect'!BX$5+'Res-Appliance class'!$C33*'RES S curve-connect'!BX$10+'Res-Appliance class'!$D33*'RES S curve-connect'!BX$15+'Res-Appliance class'!$E33*'RES S curve-connect'!BX$20","v":-963.54310684960467},{"$f":"'Res-Appliance class'!$B33*'RES S curve-connect'!BY$5+'Res-Appliance class'!$C33*'RES S curve-connect'!BY$10+'Res-Appliance class'!$D33*'RES S curve-connect'!BY$15+'Res-Appliance class'!$E33*'RES S curve-connect'!BY$20","v":-959.25080366059296},{"$f":"'Res-Appliance class'!$B33*'RES S curve-connect'!BZ$5+'Res-Appliance class'!$C33*'RES S curve-connect'!BZ$10+'Res-Appliance class'!$D33*'RES S curve-connect'!BZ$15+'Res-Appliance class'!$E33*'RES S curve-connect'!BZ$20","v":-957.22716687039383},{"$f":"'Res-Appliance class'!$B33*'RES S curve-connect'!CA$5+'Res-Appliance class'!$C33*'RES S curve-connect'!CA$10+'Res-Appliance class'!$D33*'RES S curve-connect'!CA$15+'Res-Appliance class'!$E33*'RES S curve-connect'!CA$20","v":-950.68354991577098},{"$f":"'Res-Appliance class'!$B33*'RES S curve-connect'!CB$5+'Res-Appliance class'!$C33*'RES S curve-connect'!CB$10+'Res-Appliance class'!$D33*'RES S curve-connect'!CB$15+'Res-Appliance class'!$E33*'RES S curve-connect'!CB$20","v":-946.40852966545231},{"$f":"'Res-Appliance class'!$B33*'RES S curve-connect'!CC$5+'Res-Appliance class'!$C33*'RES S curve-connect'!CC$10+'Res-Appliance class'!$D33*'RES S curve-connect'!CC$15+'Res-Appliance class'!$E33*'RES S curve-connect'!CC$20","v":-942.1392010613497},{"$f":"'Res-Appliance class'!$B33*'RES S curve-connect'!CD$5+'Res-Appliance class'!$C33*'RES S curve-connect'!CD$10+'Res-Appliance class'!$D33*'RES S curve-connect'!CD$15+'Res-Appliance class'!$E33*'RES S curve-connect'!CD$20","v":-1006.8630371339824}]
["Greater Dandenong (C)",null,{"$f":"'Res-Appliance class'!$B34*'RES S curve-connect'!C$5+'Res-Appliance class'!$C34*'RES S curve-connect'!C$10+'Res-Appliance class'!$D34*'RES S curve-connect'!C$15+'Res-Appliance class'!$E34*'RES S curve-connect'!C$20","v":-3429.7354363278273},{"$f":"'Res-Appliance class'!$B34*'RES S curve-connect'!D$5+'Res-Appliance class'!$C34*'RES S curve-connect'!D$10+'Res-Appliance class'!$D34*'RES S curve-connect'!D$15+'Res-Appliance class'!$E34*'RES S curve-connect'!D$20","v":-3763.5347018919747},{"$f":"'Res-Appliance class'!$B34*'RES S curve-connect'!E$5+'Res-Appliance class'!$C34*'RES S curve-connect'!E$10+'Res-Appliance class'!$D34*'RES S curve-connect'!E$15+'Res-Appliance class'!$E34*'RES S curve-connect'!E$20","v":-2887.9078249097311},{"$f":"'Res-Appliance class'!$B34*'RES S curve-connect'!F$5+'Res-Appliance class'!$C34*'RES S curve-connect'!F$10+'Res-Appliance class'!$D34*'RES S curve-connect'!F$15+'Res-Appliance class'!$E34*'RES S curve-connect'!F$20","v":-2789.0922931681516},{"$f":"'Res-Appliance class'!$B34*'RES S curve-connect'!G$5+'Res-Appliance class'!$C34*'RES S curve-connect'!G$10+'Res-Appliance class'!$D34*'RES S curve-connect'!G$15+'Res-Appliance class'!$E34*'RES S curve-connect'!G$20","v":-3780.728043848992},{"$f":"'Res-Appliance class'!$B34*'RES S curve-connect'!H$5+'Res-Appliance class'!$C34*'RES S curve-connect'!H$10+'Res-Appliance class'!$D34*'RES S curve-connect'!H$15+'Res-Appliance class'!$E34*'RES S curve-connect'!H$20","v":-3827.6094656034134},{"$f":"'Res-Appliance class'!$B34*'RES S curve-connect'!I$5+'Res-Appliance class'!$C34*'RES S curve-connect'!I$10+'Res-Appliance class'!$D34*'RES S curve-connect'!I$15+'Res-Appliance class'!$E34*'RES S curve-connect'!I$20","v":-3547.7944347572379},{"$f":"'Res-Appliance class'!$B34*'RES S curve-connect'!J$5+'Res-Appliance class'!$C34*'RES S curve-connect'!J$10+'Res-Appliance class'!$D34*'RES S curve-connect'!J$15+'Res-Appliance class'!$E34*'RES S curve-connect'!J$20","v":-3923.2610449621834},{"$f":"'Res-Appliance class'!$B34*'RES S curve-connect'!K$5+'Res-Appliance class'!$C34*'RES S curve-connect'!K$10+'Res-Appliance class'!$D34*'RES S curve-connect'!K$15+'Res-Appliance class'!$E34*'RES S curve-connect'!K$20","v":-3303.6847985107606},{"$f":"'Res-Appliance class'!$B34*'RES S curve-connect'!L$5+'Res-Appliance class'!$C34*'RES S curve-connect'!L$10+'Res-Appliance class'!$D34*'RES S curve-connect'!L$15+'Res-Appliance class'!$E34*'RES S curve-connect'!L$20","v":-3512.0999265618702},{"$f":"'Res-Appliance class'!$B34*'RES S curve-connect'!M$5+'Res-Appliance class'!$C34*'RES S curve-connect'!M$10+'Res-Appliance class'!$D34*'RES S curve-connect'!M$15+'Res-Appliance class'!$E34*'RES S curve-connect'!M$20","v":-3899.180381296685},{"$f":"'Res-Appliance class'!$B34*'RES S curve-connect'!N$5+'Res-Appliance class'!$C34*'RES S curve-connect'!N$10+'Res-Appliance class'!$D34*'RES S curve-connect'!N$15+'Res-Appliance class'!$E34*'RES S curve-connect'!N$20","v":-3918.2033528409447},{"$f":"'Res-Appliance class'!$B34*'RES S curve-connect'!O$5+'Res-Appliance class'!$C34*'RES S curve-connect'!O$10+'Res-Appliance class'!$D34*'RES S curve-connect'!O$15+'Res-Appliance class'!$E34*'RES S curve-connect'!O$20","v":-3536.4705925794324},{"$f":"'Res-Appliance class'!$B34*'RES S curve-connect'!P$5+'Res-Appliance class'!$C34*'RES S curve-connect'!P$10+'Res-Appliance class'!$D34*'RES S curve-connect'!P$15+'Res-Appliance class'!$E34*'RES S curve-connect'!P$20","v":-3229.3848428254005},{"$f":"'Res-Appliance class'!$B34*'RES S curve-connect'!Q$5+'Res-Appliance class'!$C34*'RES S curve-connect'!Q$10+'Res-Appliance class'!$D34*'RES S curve-connect'!Q$15+'Res-Appliance class'!$E34*'RES S curve-connect'!Q$20","v":-2775.3011357421474},{"$f":"'Res-Appliance class'!$B34*'RES S curve-connect'!R$5+'Res-Appliance class'!$C34*'RES S curve-connect'!R$10+'Res-Appliance class'!$D34*'RES S curve-connect'!R$15+'Res-Appliance class'!$E34*'RES S curve-connect'!R$20","v":-2509.8202026613676},{"$f":"'Res-Appliance class'!$B34*'RES S curve-connect'!S$5+'Res-Appliance class'!$C34*'RES S curve-connect'!S$10+'Res-Appliance class'!$D34*'RES S curve-connect'!S$15+'Res-Appliance class'!$E34*'RES S curve-connect'!S$20","v":-2098.1267169795283},{"$f":"'Res-Appliance class'!$B34*'RES S curve-connect'!T$5+'Res-Appliance class'!$C34*'RES S curve-connect'!T$10+'Res-Appliance class'!$D34*'RES S curve-connect'!T$15+'Res-Appliance class'!$E34*'RES S curve-connect'!T$20","v":-1867.4462198864701},{"$f":"'Res-Appliance class'!$B34*'RES S curve-connect'!U$5+'Res-Appliance class'!$C34*'RES S curve-connect'!U$10+'Res-Appliance class'!$D34*'RES S curve-connect'!U$15+'Res-Appliance class'!$E34*'RES S curve-connect'!U$20","v":-1605.5461361231476},{"$f":"'Res-Appliance class'!$B34*'RES S curve-connect'!V$5+'Res-Appliance class'!$C34*'RES S curve-connect'!V$10+'Res-Appliance class'!$D34*'RES S curve-connect'!V$15+'Res-Appliance class'!$E34*'RES S curve-connect'!V$20","v":-1420.3731690138702},{"$f":"'Res-Appliance class'!$B34*'RES S curve-connect'!W$5+'Res-Appliance class'!$C34*'RES S curve-connect'!W$10+'Res-Appliance class'!$D34*'RES S curve-connect'!W$15+'Res-Appliance class'!$E34*'RES S curve-connect'!W$20","v":-1272.2167845359186},{"$f":"'Res-Appliance class'!$B34*'RES S curve-connect'!X$5+'Res-Appliance class'!$C34*'RES S curve-connect'!X$10+'Res-Appliance class'!$D34*'RES S curve-connect'!X$15+'Res-Appliance class'!$E34*'RES S curve-connect'!X$20","v":-960.91400151267226},{"$f":"'Res-Appliance class'!$B34*'RES S curve-connect'!Y$5+'Res-Appliance class'!$C34*'RES S curve-connect'!Y$10+'Res-Appliance class'!$D34*'RES S curve-connect'!Y$15+'Res-Appliance class'!$E34*'RES S curve-connect'!Y$20","v":-646.05856335276133},{"$f":"'Res-Appliance class'!$B34*'RES S curve-connect'!Z$5+'Res-Appliance class'!$C34*'RES S curve-connect'!Z$10+'Res-Appliance class'!$D34*'RES S curve-connect'!Z$15+'Res-Appliance class'!$E34*'RES S curve-connect'!Z$20","v":-426.96927892878074},{"$f":"'Res-Appliance class'!$B34*'RES S curve-connect'!AA$5+'Res-Appliance class'!$C34*'RES S curve-connect'!AA$10+'Res-Appliance class'!$D34*'RES S curve-connect'!AA$15+'Res-Appliance class'!$E34*'RES S curve-connect'!AA$20","v":-207.73162966666973},{"$f":"'Res-Appliance class'!$B34*'RES S curve-connect'!AB$5+'Res-Appliance class'!$C34*'RES S curve-connect'!AB$10+'Res-Appliance class'!$D34*'RES S curve-connect'!AB$15+'Res-Appliance class'!$E34*'RES S curve-connect'!AB$20","v":-29.220473618290328},{"$f":"'Res-Appliance class'!$B34*'RES S curve-connect'!AC$5+'Res-Appliance class'!$C34*'RES S curve-connect'!AC$10+'Res-Appliance class'!$D34*'RES S curve-connect'!AC$15+'Res-Appliance class'!$E34*'RES S curve-connect'!AC$20","v":143.46528299754482},{"$f":"'Res-Appliance class'!$B34*'RES S curve-connect'!AD$5+'Res-Appliance class'!$C34*'RES S curve-connect'!AD$10+'Res-Appliance class'!$D34*'RES S curve-connect'!AD$15+'Res-Appliance class'!$E34*'RES S curve-connect'!AD$20","v":303.25463582125042},{"$f":"'Res-Appliance class'!$B34*'RES S curve-connect'!AE$5+'Res-Appliance class'!$C34*'RES S curve-connect'!AE$10+'Res-Appliance class'!$D34*'RES S curve-connect'!AE$15+'Res-Appliance class'!$E34*'RES S curve-connect'!AE$20","v":470.51571713754595},{"$f":"'Res-Appliance class'!$B34*'RES S curve-connect'!AF$5+'Res-Appliance class'!$C34*'RES S curve-connect'!AF$10+'Res-Appliance class'!$D34*'RES S curve-connect'!AF$15+'Res-Appliance class'!$E34*'RES S curve-connect'!AF$20","v":681.28966485912031},{"$f":"'Res-Appliance class'!$B34*'RES S curve-connect'!AG$5+'Res-Appliance class'!$C34*'RES S curve-connect'!AG$10+'Res-Appliance class'!$D34*'RES S curve-connect'!AG$15+'Res-Appliance class'!$E34*'RES S curve-connect'!AG$20","v":814.50963168347084},{"$f":"'Res-Appliance class'!$B34*'RES S curve-connect'!AH$5+'Res-Appliance class'!$C34*'RES S curve-connect'!AH$10+'Res-Appliance class'!$D34*'RES S curve-connect'!AH$15+'Res-Appliance class'!$E34*'RES S curve-connect'!AH$20","v":1001.3685921869177},{"$f":"'Res-Appliance class'!$B34*'RES S curve-connect'!AI$5+'Res-Appliance class'!$C34*'RES S curve-connect'!AI$10+'Res-Appliance class'!$D34*'RES S curve-connect'!AI$15+'Res-Appliance class'!$E34*'RES S curve-connect'!AI$20","v":1169.8795170945214},{"$f":"'Res-Appliance class'!$B34*'RES S curve-connect'!AJ$5+'Res-Appliance class'!$C34*'RES S curve-connect'!AJ$10+'Res-Appliance class'!$D34*'RES S curve-connect'!AJ$15+'Res-Appliance class'!$E34*'RES S curve-connect'!AJ$20","v":1321.848071514429},{"$f":"'Res-Appliance class'!$B34*'RES S curve-connect'!AK$5+'Res-Appliance class'!$C34*'RES S curve-connect'!AK$10+'Res-Appliance class'!$D34*'RES S curve-connect'!AK$15+'Res-Appliance class'!$E34*'RES S curve-connect'!AK$20","v":1483.2017094156354},{"$f":"'Res-Appliance class'!$B34*'RES S curve-connect'!AL$5+'Res-Appliance class'!$C34*'RES S curve-connect'!AL$10+'Res-Appliance class'!$D34*'RES S curve-connect'!AL$15+'Res-Appliance class'!$E34*'RES S curve-connect'!AL$20","v":923.31675148022953},{"$f":"'Res-Appliance class'!$B34*'RES S curve-connect'!AM$5+'Res-Appliance class'!$C34*'RES S curve-connect'!AM$10+'Res-Appliance class'!$D34*'RES S curve-connect'!AM$15+'Res-Appliance class'!$E34*'RES S curve-connect'!AM$20","v":850.82510562787263},{"$f":"'Res-Appliance class'!$B34*'RES S curve-connect'!AN$5+'Res-Appliance class'!$C34*'RES S curve-connect'!AN$10+'Res-Appliance class'!$D34*'RES S curve-connect'!AN$15+'Res-Appliance class'!$E34*'RES S curve-connect'!AN$20","v":1003.9511787722249},{"$f":"'Res-Appliance class'!$B34*'RES S curve-connect'!AO$5+'Res-Appliance class'!$C34*'RES S curve-connect'!AO$10+'Res-Appliance class'!$D34*'RES S curve-connect'!AO$15+'Res-Appliance class'!$E34*'RES S curve-connect'!AO$20","v":1190.8840268930103},{"$f":"'Res-Appliance class'!$B34*'RES S curve-connect'!AP$5+'Res-Appliance class'!$C34*'RES S curve-connect'!AP$10+'Res-Appliance class'!$D34*'RES S curve-connect'!AP$15+'Res-Appliance class'!$E34*'RES S curve-connect'!AP$20","v":1363.3771383977885},{"$f":"'Res-Appliance class'!$B34*'RES S curve-connect'!AQ$5+'Res-Appliance class'!$C34*'RES S curve-connect'!AQ$10+'Res-Appliance class'!$D34*'RES S curve-connect'!AQ$15+'Res-Appliance class'!$E34*'RES S curve-connect'!AQ$20","v":1549.291119316694},{"$f":"'Res-Appliance class'!$B34*'RES S curve-connect'!AR$5+'Res-Appliance class'!$C34*'RES S curve-connect'!AR$10+'Res-Appliance class'!$D34*'RES S curve-connect'!AR$15+'Res-Appliance class'!$E34*'RES S curve-connect'!AR$20","v":1753.3051164303367},{"$f":"'Res-Appliance class'!$B34*'RES S curve-connect'!AS$5+'Res-Appliance class'!$C34*'RES S curve-connect'!AS$10+'Res-Appliance class'!$D34*'RES S curve-connect'!AS$15+'Res-Appliance class'!$E34*'RES S curve-connect'!AS$20","v":1982.2057670228182},{"$f":"'Res-Appliance class'!$B34*'RES S curve-connect'!AT$5+'Res-Appliance class'!$C34*'RES S curve-connect'!AT$10+'Res-Appliance class'!$D34*'RES S curve-connect'!AT$15+'Res-Appliance class'!$E34*'RES S curve-connect'!AT$20","v":2238.1134622274676},{"$f":"'Res-Appliance class'!$B34*'RES S curve-connect'!AU$5+'Res-Appliance class'!$C34*'RES S curve-connect'!AU$10+'Res-Appliance class'!$D34*'RES S curve-connect'!AU$15+'Res-Appliance class'!$E34*'RES S curve-connect'!AU$20","v":2534.3301476808733},{"$f":"'Res-Appliance class'!$B34*'RES S curve-connect'!AV$5+'Res-Appliance class'!$C34*'RES S curve-connect'!AV$10+'Res-Appliance class'!$D34*'RES S curve-connect'!AV$15+'Res-Appliance class'!$E34*'RES S curve-connect'!AV$20","v":2872.0534801300928},{"$f":"'Res-Appliance class'!$B34*'RES S curve-connect'!AW$5+'Res-Appliance class'!$C34*'RES S curve-connect'!AW$10+'Res-Appliance class'!$D34*'RES S curve-connect'!AW$15+'Res-Appliance class'!$E34*'RES S curve-connect'!AW$20","v":3260.1602028247512},{"$f":"'Res-Appliance class'!$B34*'RES S curve-connect'!AX$5+'Res-Appliance class'!$C34*'RES S curve-connect'!AX$10+'Res-Appliance class'!$D34*'RES S curve-connect'!AX$15+'Res-Appliance class'!$E34*'RES S curve-connect'!AX$20","v":3702.2928835976277},{"$f":"'Res-Appliance class'!$B34*'RES S curve-connect'!AY$5+'Res-Appliance class'!$C34*'RES S curve-connect'!AY$10+'Res-Appliance class'!$D34*'RES S curve-connect'!AY$15+'Res-Appliance class'!$E34*'RES S curve-connect'!AY$20","v":4212.5277503981033},{"$f":"'Res-Appliance class'!$B34*'RES S curve-connect'!AZ$5+'Res-Appliance class'!$C34*'RES S curve-connect'!AZ$10+'Res-Appliance class'!$D34*'RES S curve-connect'!AZ$15+'Res-Appliance class'!$E34*'RES S curve-connect'!AZ$20","v":4795.5632464361206},{"$f":"'Res-Appliance class'!$B34*'RES S curve-connect'!BA$5+'Res-Appliance class'!$C34*'RES S curve-connect'!BA$10+'Res-Appliance class'!$D34*'RES S curve-connect'!BA$15+'Res-Appliance class'!$E34*'RES S curve-connect'!BA$20","v":5470.6078363992256},{"$f":"'Res-Appliance class'!$B34*'RES S curve-connect'!BB$5+'Res-Appliance class'!$C34*'RES S curve-connect'!BB$10+'Res-Appliance class'!$D34*'RES S curve-connect'!BB$15+'Res-Appliance class'!$E34*'RES S curve-connect'!BB$20","v":6258.9870234956852},{"$f":"'Res-Appliance class'!$B34*'RES S curve-connect'!BC$5+'Res-Appliance class'!$C34*'RES S curve-connect'!BC$10+'Res-Appliance class'!$D34*'RES S curve-connect'!BC$15+'Res-Appliance class'!$E34*'RES S curve-connect'!BC$20","v":7199.0835267442899},{"$f":"'Res-Appliance class'!$B34*'RES S curve-connect'!BD$5+'Res-Appliance class'!$C34*'RES S curve-connect'!BD$10+'Res-Appliance class'!$D34*'RES S curve-connect'!BD$15+'Res-Appliance class'!$E34*'RES S curve-connect'!BD$20","v":8105.2673913499821},{"$f":"'Res-Appliance class'!$B34*'RES S curve-connect'!BE$5+'Res-Appliance class'!$C34*'RES S curve-connect'!BE$10+'Res-Appliance class'!$D34*'RES S curve-connect'!BE$15+'Res-Appliance class'!$E34*'RES S curve-connect'!BE$20","v":8933.2871342634589},{"$f":"'Res-Appliance class'!$B34*'RES S curve-connect'!BF$5+'Res-Appliance class'!$C34*'RES S curve-connect'!BF$10+'Res-Appliance class'!$D34*'RES S curve-connect'!BF$15+'Res-Appliance class'!$E34*'RES S curve-connect'!BF$20","v":9780.5771765762493},{"$f":"'Res-Appliance class'!$B34*'RES S curve-connect'!BG$5+'Res-Appliance class'!$C34*'RES S curve-connect'!BG$10+'Res-Appliance class'!$D34*'RES S curve-connect'!BG$15+'Res-Appliance class'!$E34*'RES S curve-connect'!BG$20","v":10739.787132103518},{"$f":"'Res-Appliance class'!$B34*'RES S curve-connect'!BH$5+'Res-Appliance class'!$C34*'RES S curve-connect'!BH$10+'Res-Appliance class'!$D34*'RES S curve-connect'!BH$15+'Res-Appliance class'!$E34*'RES S curve-connect'!BH$20","v":11878.257423165003},{"$f":"'Res-Appliance class'!$B34*'RES S curve-connect'!BI$5+'Res-Appliance class'!$C34*'RES S curve-connect'!BI$10+'Res-Appliance class'!$D34*'RES S curve-connect'!BI$15+'Res-Appliance class'!$E34*'RES S curve-connect'!BI$20","v":13528.058801826823},{"$f":"'Res-Appliance class'!$B34*'RES S curve-connect'!BJ$5+'Res-Appliance class'!$C34*'RES S curve-connect'!BJ$10+'Res-Appliance class'!$D34*'RES S curve-connect'!BJ$15+'Res-Appliance class'!$E34*'RES S curve-connect'!BJ$20","v":15943.446990620258},{"$f":"'Res-Appliance class'!$B34*'RES S curve-connect'!BK$5+'Res-Appliance class'!$C34*'RES S curve-connect'!BK$10+'Res-Appliance class'!$D34*'RES S curve-connect'!BK$15+'Res-Appliance class'!$E34*'RES S curve-connect'!BK$20","v":19506.844461763867},{"$f":"'Res-Appliance class'!$B34*'RES S curve-connect'!BL$5+'Res-Appliance class'!$C34*'RES S curve-connect'!BL$10+'Res-Appliance class'!$D34*'RES S curve-connect'!BL$15+'Res-Appliance class'!$E34*'RES S curve-connect'!BL$20","v":-1123.1652802076765},{"$f":"'Res-Appliance class'!$B34*'RES S curve-connect'!BM$5+'Res-Appliance class'!$C34*'RES S curve-connect'!BM$10+'Res-Appliance class'!$D34*'RES S curve-connect'!BM$15+'Res-Appliance class'!$E34*'RES S curve-connect'!BM$20","v":-1118.6180399670102},{"$f":"'Res-Appliance class'!$B34*'RES S curve-connect'!BN$5+'Res-Appliance class'!$C34*'RES S curve-connect'!BN$10+'Res-Appliance class'!$D34*'RES S curve-connect'!BN$15+'Res-Appliance class'!$E34*'RES S curve-connect'!BN$20","v":-1116.3402609620464},{"$f":"'Res-Appliance class'!$B34*'RES S curve-connect'!BO$5+'Res-Appliance class'!$C34*'RES S curve-connect'!BO$10+'Res-Appliance class'!$D34*'RES S curve-connect'!BO$15+'Res-Appliance class'!$E34*'RES S curve-connect'!BO$20","v":-1109.5432916192099},{"$f":"'Res-Appliance class'!$B34*'RES S curve-connect'!BP$5+'Res-Appliance class'!$C34*'RES S curve-connect'!BP$10+'Res-Appliance class'!$D34*'RES S curve-connect'!BP$15+'Res-Appliance class'!$E34*'RES S curve-connect'!BP$20","v":-1105.0157038287336},{"$f":"'Res-Appliance class'!$B34*'RES S curve-connect'!BQ$5+'Res-Appliance class'!$C34*'RES S curve-connect'!BQ$10+'Res-Appliance class'!$D34*'RES S curve-connect'!BQ$15+'Res-Appliance class'!$E34*'RES S curve-connect'!BQ$20","v":-1100.494587585674},{"$f":"'Res-Appliance class'!$B34*'RES S curve-connect'!BR$5+'Res-Appliance class'!$C34*'RES S curve-connect'!BR$10+'Res-Appliance class'!$D34*'RES S curve-connect'!BR$15+'Res-Appliance class'!$E34*'RES S curve-connect'!BR$20","v":-1098.2427742027878},{"$f":"'Res-Appliance class'!$B34*'RES S curve-connect'!BS$5+'Res-Appliance class'!$C34*'RES S curve-connect'!BS$10+'Res-Appliance class'!$D34*'RES S curve-connect'!BS$15+'Res-Appliance class'!$E34*'RES S curve-connect'!BS$20","v":-1091.4716130945324},{"$f":"'Res-Appliance class'!$B34*'RES S curve-connect'!BT$5+'Res-Appliance class'!$C34*'RES S curve-connect'!BT$10+'Res-Appliance class'!$D34*'RES S curve-connect'!BT$15+'Res-Appliance class'!$E34*'RES S curve-connect'!BT$20","v":-1086.969677132922},{"$f":"'Res-Appliance class'!$B34*'RES S curve-connect'!BU$5+'Res-Appliance class'!$C34*'RES S curve-connect'!BU$10+'Res-Appliance class'!$D34*'RES S curve-connect'!BU$15+'Res-Appliance class'!$E34*'RES S curve-connect'!BU$20","v":-1082.4740572885844},{"$f":"'Res-Appliance class'!$B34*'RES S curve-connect'!BV$5+'Res-Appliance class'!$C34*'RES S curve-connect'!BV$10+'Res-Appliance class'!$D34*'RES S curve-connect'!BV$15+'Res-Appliance class'!$E34*'RES S curve-connect'!BV$20","v":-1080.2475858436792},{"$f":"'Res-Appliance class'!$B34*'RES S curve-connect'!BW$5+'Res-Appliance class'!$C34*'RES S curve-connect'!BW$10+'Res-Appliance class'!$D34*'RES S curve-connect'!BW$15+'Res-Appliance class'!$E34*'RES S curve-connect'!BW$20","v":-1073.5016131759353},{"$f":"'Res-Appliance class'!$B34*'RES S curve-connect'!BX$5+'Res-Appliance class'!$C34*'RES S curve-connect'!BX$10+'Res-Appliance class'!$D34*'RES S curve-connect'!BX$15+'Res-Appliance class'!$E34*'RES S curve-connect'!BX$20","v":-1069.0247131145468},{"$f":"'Res-Appliance class'!$B34*'RES S curve-connect'!BY$5+'Res-Appliance class'!$C34*'RES S curve-connect'!BY$10+'Res-Appliance class'!$D34*'RES S curve-connect'!BY$15+'Res-Appliance class'!$E34*'RES S curve-connect'!BY$20","v":-1064.5539775812688},{"$f":"'Res-Appliance class'!$B34*'RES S curve-connect'!BZ$5+'Res-Appliance class'!$C34*'RES S curve-connect'!BZ$10+'Res-Appliance class'!$D34*'RES S curve-connect'!BZ$15+'Res-Appliance class'!$E34*'RES S curve-connect'!BZ$20","v":-1062.3522398033758},{"$f":"'Res-Appliance class'!$B34*'RES S curve-connect'!CA$5+'Res-Appliance class'!$C34*'RES S curve-connect'!CA$10+'Res-Appliance class'!$D34*'RES S curve-connect'!CA$15+'Res-Appliance class'!$E34*'RES S curve-connect'!CA$20","v":-1055.6308510977315},{"$f":"'Res-Appliance class'!$B34*'RES S curve-connect'!CB$5+'Res-Appliance class'!$C34*'RES S curve-connect'!CB$10+'Res-Appliance class'!$D34*'RES S curve-connect'!CB$15+'Res-Appliance class'!$E34*'RES S curve-connect'!CB$20","v":-1051.1783862267287},{"$f":"'Res-Appliance class'!$B34*'RES S curve-connect'!CC$5+'Res-Appliance class'!$C34*'RES S curve-connect'!CC$10+'Res-Appliance class'!$D34*'RES S curve-connect'!CC$15+'Res-Appliance class'!$E34*'RES S curve-connect'!CC$20","v":-1046.7319380394219},{"$f":"'Res-Appliance class'!$B34*'RES S curve-connect'!CD$5+'Res-Appliance class'!$C34*'RES S curve-connect'!CD$10+'Res-Appliance class'!$D34*'RES S curve-connect'!CD$15+'Res-Appliance class'!$E34*'RES S curve-connect'!CD$20","v":-1113.9489514313673}]
["Kingston (C)",null,{"$f":"'Res-Appliance class'!$B35*'RES S curve-connect'!C$5+'Res-Appliance class'!$C35*'RES S curve-connect'!C$10+'Res-Appliance class'!$D35*'RES S curve-connect'!C$15+'Res-Appliance class'!$E35*'RES S curve-connect'!C$20","v":-3327.1460396266539},{"$f":"'Res-Appliance class'!$B35*'RES S curve-connect'!D$5+'Res-Appliance class'!$C35*'RES S curve-connect'!D$10+'Res-Appliance class'!$D35*'RES S curve-connect'!D$15+'Res-Appliance class'!$E35*'RES S curve-connect'!D$20","v":-3649.7344355777232},{"$f":"'Res-Appliance class'!$B35*'RES S curve-connect'!E$5+'Res-Appliance class'!$C35*'RES S curve-connect'!E$10+'Res-Appliance class'!$D35*'RES S curve-connect'!E$15+'Res-Appliance class'!$E35*'RES S curve-connect'!E$20","v":-2810.119146263587},{"$f":"'Res-Appliance class'!$B35*'RES S curve-connect'!F$5+'Res-Appliance class'!$C35*'RES S curve-connect'!F$10+'Res-Appliance class'!$D35*'RES S curve-connect'!F$15+'Res-Appliance class'!$E35*'RES S curve-connect'!F$20","v":-2715.3672274676437},{"$f":"'Res-Appliance class'!$B35*'RES S curve-connect'!G$5+'Res-Appliance class'!$C35*'RES S curve-connect'!G$10+'Res-Appliance class'!$D35*'RES S curve-connect'!G$15+'Res-Appliance class'!$E35*'RES S curve-connect'!G$20","v":-3662.6726215652116},{"$f":"'Res-Appliance class'!$B35*'RES S curve-connect'!H$5+'Res-Appliance class'!$C35*'RES S curve-connect'!H$10+'Res-Appliance class'!$D35*'RES S curve-connect'!H$15+'Res-Appliance class'!$E35*'RES S curve-connect'!H$20","v":-3702.3341456323847},{"$f":"'Res-Appliance class'!$B35*'RES S curve-connect'!I$5+'Res-Appliance class'!$C35*'RES S curve-connect'!I$10+'Res-Appliance class'!$D35*'RES S curve-connect'!I$15+'Res-Appliance class'!$E35*'RES S curve-connect'!I$20","v":-3433.6557144914723},{"$f":"'Res-Appliance class'!$B35*'RES S curve-connect'!J$5+'Res-Appliance class'!$C35*'RES S curve-connect'!J$10+'Res-Appliance class'!$D35*'RES S curve-connect'!J$15+'Res-Appliance class'!$E35*'RES S curve-connect'!J$20","v":-3804.6025642425643},{"$f":"'Res-Appliance class'!$B35*'RES S curve-connect'!K$5+'Res-Appliance class'!$C35*'RES S curve-connect'!K$10+'Res-Appliance class'!$D35*'RES S curve-connect'!K$15+'Res-Appliance class'!$E35*'RES S curve-connect'!K$20","v":-3208.1836476607655},{"$f":"'Res-Appliance class'!$B35*'RES S curve-connect'!L$5+'Res-Appliance class'!$C35*'RES S curve-connect'!L$10+'Res-Appliance class'!$D35*'RES S curve-connect'!L$15+'Res-Appliance class'!$E35*'RES S curve-connect'!L$20","v":-3409.4543792377926},{"$f":"'Res-Appliance class'!$B35*'RES S curve-connect'!M$5+'Res-Appliance class'!$C35*'RES S curve-connect'!M$10+'Res-Appliance class'!$D35*'RES S curve-connect'!M$15+'Res-Appliance class'!$E35*'RES S curve-connect'!M$20","v":-3779.3317486889996},{"$f":"'Res-Appliance class'!$B35*'RES S curve-connect'!N$5+'Res-Appliance class'!$C35*'RES S curve-connect'!N$10+'Res-Appliance class'!$D35*'RES S curve-connect'!N$15+'Res-Appliance class'!$E35*'RES S curve-connect'!N$20","v":-3797.3621571296553},{"$f":"'Res-Appliance class'!$B35*'RES S curve-connect'!O$5+'Res-Appliance class'!$C35*'RES S curve-connect'!O$10+'Res-Appliance class'!$D35*'RES S curve-connect'!O$15+'Res-Appliance class'!$E35*'RES S curve-connect'!O$20","v":-3429.7496250274089},{"$f":"'Res-Appliance class'!$B35*'RES S curve-connect'!P$5+'Res-Appliance class'!$C35*'RES S curve-connect'!P$10+'Res-Appliance class'!$D35*'RES S curve-connect'!P$15+'Res-Appliance class'!$E35*'RES S curve-connect'!P$20","v":-3134.4375192227621},{"$f":"'Res-Appliance class'!$B35*'RES S curve-connect'!Q$5+'Res-Appliance class'!$C35*'RES S curve-connect'!Q$10+'Res-Appliance class'!$D35*'RES S curve-connect'!Q$15+'Res-Appliance class'!$E35*'RES S curve-connect'!Q$20","v":-2697.8439684757445},{"$f":"'Res-Appliance class'!$B35*'RES S curve-connect'!R$5+'Res-Appliance class'!$C35*'RES S curve-connect'!R$10+'Res-Appliance class'!$D35*'RES S curve-connect'!R$15+'Res-Appliance class'!$E35*'RES S curve-connect'!R$20","v":-2442.588345416521},{"$f":"'Res-Appliance class'!$B35*'RES S curve-connect'!S$5+'Res-Appliance class'!$C35*'RES S curve-connect'!S$10+'Res-Appliance class'!$D35*'RES S curve-connect'!S$15+'Res-Appliance class'!$E35*'RES S curve-connect'!S$20","v":-2046.2412899934234},{"$f":"'Res-Appliance class'!$B35*'RES S curve-connect'!T$5+'Res-Appliance class'!$C35*'RES S curve-connect'!T$10+'Res-Appliance class'!$D35*'RES S curve-connect'!T$15+'Res-Appliance class'!$E35*'RES S curve-connect'!T$20","v":-1825.3483740587276},{"$f":"'Res-Appliance class'!$B35*'RES S curve-connect'!U$5+'Res-Appliance class'!$C35*'RES S curve-connect'!U$10+'Res-Appliance class'!$D35*'RES S curve-connect'!U$15+'Res-Appliance class'!$E35*'RES S curve-connect'!U$20","v":-1573.6722402980017},{"$f":"'Res-Appliance class'!$B35*'RES S curve-connect'!V$5+'Res-Appliance class'!$C35*'RES S curve-connect'!V$10+'Res-Appliance class'!$D35*'RES S curve-connect'!V$15+'Res-Appliance class'!$E35*'RES S curve-connect'!V$20","v":-1395.3176333878098},{"$f":"'Res-Appliance class'!$B35*'RES S curve-connect'!W$5+'Res-Appliance class'!$C35*'RES S curve-connect'!W$10+'Res-Appliance class'!$D35*'RES S curve-connect'!W$15+'Res-Appliance class'!$E35*'RES S curve-connect'!W$20","v":-1252.6485128552263},{"$f":"'Res-Appliance class'!$B35*'RES S curve-connect'!X$5+'Res-Appliance class'!$C35*'RES S curve-connect'!X$10+'Res-Appliance class'!$D35*'RES S curve-connect'!X$15+'Res-Appliance class'!$E35*'RES S curve-connect'!X$20","v":-953.73241239337449},{"$f":"'Res-Appliance class'!$B35*'RES S curve-connect'!Y$5+'Res-Appliance class'!$C35*'RES S curve-connect'!Y$10+'Res-Appliance class'!$D35*'RES S curve-connect'!Y$15+'Res-Appliance class'!$E35*'RES S curve-connect'!Y$20","v":-651.26792529440058},{"$f":"'Res-Appliance class'!$B35*'RES S curve-connect'!Z$5+'Res-Appliance class'!$C35*'RES S curve-connect'!Z$10+'Res-Appliance class'!$D35*'RES S curve-connect'!Z$15+'Res-Appliance class'!$E35*'RES S curve-connect'!Z$20","v":-440.64727840004622},{"$f":"'Res-Appliance class'!$B35*'RES S curve-connect'!AA$5+'Res-Appliance class'!$C35*'RES S curve-connect'!AA$10+'Res-Appliance class'!$D35*'RES S curve-connect'!AA$15+'Res-Appliance class'!$E35*'RES S curve-connect'!AA$20","v":-229.72514016964587},{"$f":"'Res-Appliance class'!$B35*'RES S curve-connect'!AB$5+'Res-Appliance class'!$C35*'RES S curve-connect'!AB$10+'Res-Appliance class'!$D35*'RES S curve-connect'!AB$15+'Res-Appliance class'!$E35*'RES S curve-connect'!AB$20","v":-57.944215370025859},{"$f":"'Res-Appliance class'!$B35*'RES S curve-connect'!AC$5+'Res-Appliance class'!$C35*'RES S curve-connect'!AC$10+'Res-Appliance class'!$D35*'RES S curve-connect'!AC$15+'Res-Appliance class'!$E35*'RES S curve-connect'!AC$20","v":108.33576923923562},{"$f":"'Res-Appliance class'!$B35*'RES S curve-connect'!AD$5+'Res-Appliance class'!$C35*'RES S curve-connect'!AD$10+'Res-Appliance class'!$D35*'RES S curve-connect'!AD$15+'Res-Appliance class'!$E35*'RES S curve-connect'!AD$20","v":262.21135679818178},{"$f":"'Res-Appliance class'!$B35*'RES S curve-connect'!AE$5+'Res-Appliance class'!$C35*'RES S curve-connect'!AE$10+'Res-Appliance class'!$D35*'RES S curve-connect'!AE$15+'Res-Appliance class'!$E35*'RES S curve-connect'!AE$20","v":423.4955606431995},{"$f":"'Res-Appliance class'!$B35*'RES S curve-connect'!AF$5+'Res-Appliance class'!$C35*'RES S curve-connect'!AF$10+'Res-Appliance class'!$D35*'RES S curve-connect'!AF$15+'Res-Appliance class'!$E35*'RES S curve-connect'!AF$20","v":626.43034324669702},{"$f":"'Res-Appliance class'!$B35*'RES S curve-connect'!AG$5+'Res-Appliance class'!$C35*'RES S curve-connect'!AG$10+'Res-Appliance class'!$D35*'RES S curve-connect'!AG$15+'Res-Appliance class'!$E35*'RES S curve-connect'!AG$20","v":754.70086732780692},{"$f":"'Res-Appliance class'!$B35*'RES S curve-connect'!AH$5+'Res-Appliance class'!$C35*'RES S curve-connect'!AH$10+'Res-Appliance class'!$D35*'RES S curve-connect'!AH$15+'Res-Appliance class'!$E35*'RES S curve-connect'!AH$20","v":934.17161032681588},{"$f":"'Res-Appliance class'!$B35*'RES S curve-connect'!AI$5+'Res-Appliance class'!$C35*'RES S curve-connect'!AI$10+'Res-Appliance class'!$D35*'RES S curve-connect'!AI$15+'Res-Appliance class'!$E35*'RES S curve-connect'!AI$20","v":1096.4262929647007},{"$f":"'Res-Appliance class'!$B35*'RES S curve-connect'!AJ$5+'Res-Appliance class'!$C35*'RES S curve-connect'!AJ$10+'Res-Appliance class'!$D35*'RES S curve-connect'!AJ$15+'Res-Appliance class'!$E35*'RES S curve-connect'!AJ$20","v":1242.668924210333},{"$f":"'Res-Appliance class'!$B35*'RES S curve-connect'!AK$5+'Res-Appliance class'!$C35*'RES S curve-connect'!AK$10+'Res-Appliance class'!$D35*'RES S curve-connect'!AK$15+'Res-Appliance class'!$E35*'RES S curve-connect'!AK$20","v":1397.9571518516282},{"$f":"'Res-Appliance class'!$B35*'RES S curve-connect'!AL$5+'Res-Appliance class'!$C35*'RES S curve-connect'!AL$10+'Res-Appliance class'!$D35*'RES S curve-connect'!AL$15+'Res-Appliance class'!$E35*'RES S curve-connect'!AL$20","v":858.04926234223888},{"$f":"'Res-Appliance class'!$B35*'RES S curve-connect'!AM$5+'Res-Appliance class'!$C35*'RES S curve-connect'!AM$10+'Res-Appliance class'!$D35*'RES S curve-connect'!AM$15+'Res-Appliance class'!$E35*'RES S curve-connect'!AM$20","v":788.75689520794617},{"$f":"'Res-Appliance class'!$B35*'RES S curve-connect'!AN$5+'Res-Appliance class'!$C35*'RES S curve-connect'!AN$10+'Res-Appliance class'!$D35*'RES S curve-connect'!AN$15+'Res-Appliance class'!$E35*'RES S curve-connect'!AN$20","v":936.44087539701786},{"$f":"'Res-Appliance class'!$B35*'RES S curve-connect'!AO$5+'Res-Appliance class'!$C35*'RES S curve-connect'!AO$10+'Res-Appliance class'!$D35*'RES S curve-connect'!AO$15+'Res-Appliance class'!$E35*'RES S curve-connect'!AO$20","v":1116.4336148887298},{"$f":"'Res-Appliance class'!$B35*'RES S curve-connect'!AP$5+'Res-Appliance class'!$C35*'RES S curve-connect'!AP$10+'Res-Appliance class'!$D35*'RES S curve-connect'!AP$15+'Res-Appliance class'!$E35*'RES S curve-connect'!AP$20","v":1282.3474436688439},{"$f":"'Res-Appliance class'!$B35*'RES S curve-connect'!AQ$5+'Res-Appliance class'!$C35*'RES S curve-connect'!AQ$10+'Res-Appliance class'!$D35*'RES S curve-connect'!AQ$15+'Res-Appliance class'!$E35*'RES S curve-connect'!AQ$20","v":1461.3484562627357},{"$f":"'Res-Appliance class'!$B35*'RES S curve-connect'!AR$5+'Res-Appliance class'!$C35*'RES S curve-connect'!AR$10+'Res-Appliance class'!$D35*'RES S curve-connect'!AR$15+'Res-Appliance class'!$E35*'RES S curve-connect'!AR$20","v":1657.6722138423727},{"$f":"'Res-Appliance class'!$B35*'RES S curve-connect'!AS$5+'Res-Appliance class'!$C35*'RES S curve-connect'!AS$10+'Res-Appliance class'!$D35*'RES S curve-connect'!AS$15+'Res-Appliance class'!$E35*'RES S curve-connect'!AS$20","v":1877.9172635629034},{"$f":"'Res-Appliance class'!$B35*'RES S curve-connect'!AT$5+'Res-Appliance class'!$C35*'RES S curve-connect'!AT$10+'Res-Appliance class'!$D35*'RES S curve-connect'!AT$15+'Res-Appliance class'!$E35*'RES S curve-connect'!AT$20","v":2124.0277574615593},{"$f":"'Res-Appliance class'!$B35*'RES S curve-connect'!AU$5+'Res-Appliance class'!$C35*'RES S curve-connect'!AU$10+'Res-Appliance class'!$D35*'RES S curve-connect'!AU$15+'Res-Appliance class'!$E35*'RES S curve-connect'!AU$20","v":2409.0487769351403},{"$f":"'Res-Appliance class'!$B35*'RES S curve-connect'!AV$5+'Res-Appliance class'!$C35*'RES S curve-connect'!AV$10+'Res-Appliance class'!$D35*'RES S curve-connect'!AV$15+'Res-Appliance class'!$E35*'RES S curve-connect'!AV$20","v":2733.8585490576797},{"$f":"'Res-Appliance class'!$B35*'RES S curve-connect'!AW$5+'Res-Appliance class'!$C35*'RES S curve-connect'!AW$10+'Res-Appliance class'!$D35*'RES S curve-connect'!AW$15+'Res-Appliance class'!$E35*'RES S curve-connect'!AW$20","v":3107.0545708390027},{"$f":"'Res-Appliance class'!$B35*'RES S curve-connect'!AX$5+'Res-Appliance class'!$C35*'RES S curve-connect'!AX$10+'Res-Appliance class'!$D35*'RES S curve-connect'!AX$15+'Res-Appliance class'!$E35*'RES S curve-connect'!AX$20","v":3532.0198012274104},{"$f":"'Res-Appliance class'!$B35*'RES S curve-connect'!AY$5+'Res-Appliance class'!$C35*'RES S curve-connect'!AY$10+'Res-Appliance class'!$D35*'RES S curve-connect'!AY$15+'Res-Appliance class'!$E35*'RES S curve-connect'!AY$20","v":4022.5147145434639},{"$f":"'Res-Appliance class'!$B35*'RES S curve-connect'!AZ$5+'Res-Appliance class'!$C35*'RES S curve-connect'!AZ$10+'Res-Appliance class'!$D35*'RES S curve-connect'!AZ$15+'Res-Appliance class'!$E35*'RES S curve-connect'!AZ$20","v":4582.7551467834237},{"$f":"'Res-Appliance class'!$B35*'RES S curve-connect'!BA$5+'Res-Appliance class'!$C35*'RES S curve-connect'!BA$10+'Res-Appliance class'!$D35*'RES S curve-connect'!BA$15+'Res-Appliance class'!$E35*'RES S curve-connect'!BA$20","v":5231.2437253461931},{"$f":"'Res-Appliance class'!$B35*'RES S curve-connect'!BB$5+'Res-Appliance class'!$C35*'RES S curve-connect'!BB$10+'Res-Appliance class'!$D35*'RES S curve-connect'!BB$15+'Res-Appliance class'!$E35*'RES S curve-connect'!BB$20","v":5988.3190572436115},{"$f":"'Res-Appliance class'!$B35*'RES S curve-connect'!BC$5+'Res-Appliance class'!$C35*'RES S curve-connect'!BC$10+'Res-Appliance class'!$D35*'RES S curve-connect'!BC$15+'Res-Appliance class'!$E35*'RES S curve-connect'!BC$20","v":6891.0346466993415},{"$f":"'Res-Appliance class'!$B35*'RES S curve-connect'!BD$5+'Res-Appliance class'!$C35*'RES S curve-connect'!BD$10+'Res-Appliance class'!$D35*'RES S curve-connect'!BD$15+'Res-Appliance class'!$E35*'RES S curve-connect'!BD$20","v":7760.4407029072936},{"$f":"'Res-Appliance class'!$B35*'RES S curve-connect'!BE$5+'Res-Appliance class'!$C35*'RES S curve-connect'!BE$10+'Res-Appliance class'!$D35*'RES S curve-connect'!BE$15+'Res-Appliance class'!$E35*'RES S curve-connect'!BE$20","v":8554.6058543505387},{"$f":"'Res-Appliance class'!$B35*'RES S curve-connect'!BF$5+'Res-Appliance class'!$C35*'RES S curve-connect'!BF$10+'Res-Appliance class'!$D35*'RES S curve-connect'!BF$15+'Res-Appliance class'!$E35*'RES S curve-connect'!BF$20","v":9367.3271915959831},{"$f":"'Res-Appliance class'!$B35*'RES S curve-connect'!BG$5+'Res-Appliance class'!$C35*'RES S curve-connect'!BG$10+'Res-Appliance class'!$D35*'RES S curve-connect'!BG$15+'Res-Appliance class'!$E35*'RES S curve-connect'!BG$20","v":10287.683143438022},{"$f":"'Res-Appliance class'!$B35*'RES S curve-connect'!BH$5+'Res-Appliance class'!$C35*'RES S curve-connect'!BH$10+'Res-Appliance class'!$D35*'RES S curve-connect'!BH$15+'Res-Appliance class'!$E35*'RES S curve-connect'!BH$20","v":11379.869572196261},{"$f":"'Res-Appliance class'!$B35*'RES S curve-connect'!BI$5+'Res-Appliance class'!$C35*'RES S curve-connect'!BI$10+'Res-Appliance class'!$D35*'RES S curve-connect'!BI$15+'Res-Appliance class'!$E35*'RES S curve-connect'!BI$20","v":12962.772898664072},{"$f":"'Res-Appliance class'!$B35*'RES S curve-connect'!BJ$5+'Res-Appliance class'!$C35*'RES S curve-connect'!BJ$10+'Res-Appliance class'!$D35*'RES S curve-connect'!BJ$15+'Res-Appliance class'!$E35*'RES S curve-connect'!BJ$20","v":15279.355582733318},{"$f":"'Res-Appliance class'!$B35*'RES S curve-connect'!BK$5+'Res-Appliance class'!$C35*'RES S curve-connect'!BK$10+'Res-Appliance class'!$D35*'RES S curve-connect'!BK$15+'Res-Appliance class'!$E35*'RES S curve-connect'!BK$20","v":18695.713617432877},{"$f":"'Res-Appliance class'!$B35*'RES S curve-connect'!BL$5+'Res-Appliance class'!$C35*'RES S curve-connect'!BL$10+'Res-Appliance class'!$D35*'RES S curve-connect'!BL$15+'Res-Appliance class'!$E35*'RES S curve-connect'!BL$20","v":-1114.3115918049302},{"$f":"'Res-Appliance class'!$B35*'RES S curve-connect'!BM$5+'Res-Appliance class'!$C35*'RES S curve-connect'!BM$10+'Res-Appliance class'!$D35*'RES S curve-connect'!BM$15+'Res-Appliance class'!$E35*'RES S curve-connect'!BM$20","v":-1109.9375475958138},{"$f":"'Res-Appliance class'!$B35*'RES S curve-connect'!BN$5+'Res-Appliance class'!$C35*'RES S curve-connect'!BN$10+'Res-Appliance class'!$D35*'RES S curve-connect'!BN$15+'Res-Appliance class'!$E35*'RES S curve-connect'!BN$20","v":-1107.8328168778764},{"$f":"'Res-Appliance class'!$B35*'RES S curve-connect'!BO$5+'Res-Appliance class'!$C35*'RES S curve-connect'!BO$10+'Res-Appliance class'!$D35*'RES S curve-connect'!BO$15+'Res-Appliance class'!$E35*'RES S curve-connect'!BO$20","v":-1101.208748924601},{"$f":"'Res-Appliance class'!$B35*'RES S curve-connect'!BP$5+'Res-Appliance class'!$C35*'RES S curve-connect'!BP$10+'Res-Appliance class'!$D35*'RES S curve-connect'!BP$15+'Res-Appliance class'!$E35*'RES S curve-connect'!BP$20","v":-1096.8539164681429},{"$f":"'Res-Appliance class'!$B35*'RES S curve-connect'!BQ$5+'Res-Appliance class'!$C35*'RES S curve-connect'!BQ$10+'Res-Appliance class'!$D35*'RES S curve-connect'!BQ$15+'Res-Appliance class'!$E35*'RES S curve-connect'!BQ$20","v":-1092.5054103403766},{"$f":"'Res-Appliance class'!$B35*'RES S curve-connect'!BR$5+'Res-Appliance class'!$C35*'RES S curve-connect'!BR$10+'Res-Appliance class'!$D35*'RES S curve-connect'!BR$15+'Res-Appliance class'!$E35*'RES S curve-connect'!BR$20","v":-1090.4260626858068},{"$f":"'Res-Appliance class'!$B35*'RES S curve-connect'!BS$5+'Res-Appliance class'!$C35*'RES S curve-connect'!BS$10+'Res-Appliance class'!$D35*'RES S curve-connect'!BS$15+'Res-Appliance class'!$E35*'RES S curve-connect'!BS$20","v":-1083.8272237455981},{"$f":"'Res-Appliance class'!$B35*'RES S curve-connect'!BT$5+'Res-Appliance class'!$C35*'RES S curve-connect'!BT$10+'Res-Appliance class'!$D35*'RES S curve-connect'!BT$15+'Res-Appliance class'!$E35*'RES S curve-connect'!BT$20","v":-1079.4974672134629},{"$f":"'Res-Appliance class'!$B35*'RES S curve-connect'!BU$5+'Res-Appliance class'!$C35*'RES S curve-connect'!BU$10+'Res-Appliance class'!$D35*'RES S curve-connect'!BU$15+'Res-Appliance class'!$E35*'RES S curve-connect'!BU$20","v":-1075.1738848767504},{"$f":"'Res-Appliance class'!$B35*'RES S curve-connect'!BV$5+'Res-Appliance class'!$C35*'RES S curve-connect'!BV$10+'Res-Appliance class'!$D35*'RES S curve-connect'!BV$15+'Res-Appliance class'!$E35*'RES S curve-connect'!BV$20","v":-1073.1193098293957},{"$f":"'Res-Appliance class'!$B35*'RES S curve-connect'!BW$5+'Res-Appliance class'!$C35*'RES S curve-connect'!BW$10+'Res-Appliance class'!$D35*'RES S curve-connect'!BW$15+'Res-Appliance class'!$E35*'RES S curve-connect'!BW$20","v":-1066.5450932559872},{"$f":"'Res-Appliance class'!$B35*'RES S curve-connect'!BX$5+'Res-Appliance class'!$C35*'RES S curve-connect'!BX$10+'Res-Appliance class'!$D35*'RES S curve-connect'!BX$15+'Res-Appliance class'!$E35*'RES S curve-connect'!BX$20","v":-1062.2398097876933},{"$f":"'Res-Appliance class'!$B35*'RES S curve-connect'!BY$5+'Res-Appliance class'!$C35*'RES S curve-connect'!BY$10+'Res-Appliance class'!$D35*'RES S curve-connect'!BY$15+'Res-Appliance class'!$E35*'RES S curve-connect'!BY$20","v":-1057.9405521433905},{"$f":"'Res-Appliance class'!$B35*'RES S curve-connect'!BZ$5+'Res-Appliance class'!$C35*'RES S curve-connect'!BZ$10+'Res-Appliance class'!$D35*'RES S curve-connect'!BZ$15+'Res-Appliance class'!$E35*'RES S curve-connect'!BZ$20","v":-1055.9101543426491},{"$f":"'Res-Appliance class'!$B35*'RES S curve-connect'!CA$5+'Res-Appliance class'!$C35*'RES S curve-connect'!CA$10+'Res-Appliance class'!$D35*'RES S curve-connect'!CA$15+'Res-Appliance class'!$E35*'RES S curve-connect'!CA$20","v":-1049.3599684898352},{"$f":"'Res-Appliance class'!$B35*'RES S curve-connect'!CB$5+'Res-Appliance class'!$C35*'RES S curve-connect'!CB$10+'Res-Appliance class'!$D35*'RES S curve-connect'!CB$15+'Res-Appliance class'!$E35*'RES S curve-connect'!CB$20","v":-1045.0785701300797},{"$f":"'Res-Appliance class'!$B35*'RES S curve-connect'!CC$5+'Res-Appliance class'!$C35*'RES S curve-connect'!CC$10+'Res-Appliance class'!$D35*'RES S curve-connect'!CC$15+'Res-Appliance class'!$E35*'RES S curve-connect'!CC$20","v":-1040.8030528904419},{"$f":"'Res-Appliance class'!$B35*'RES S curve-connect'!CD$5+'Res-Appliance class'!$C35*'RES S curve-connect'!CD$10+'Res-Appliance class'!$D35*'RES S curve-connect'!CD$15+'Res-Appliance class'!$E35*'RES S curve-connect'!CD$20","v":-1105.137360518906}]
["Knox (C)",null,{"$f":"'Res-Appliance class'!$B36*'RES S curve-connect'!C$5+'Res-Appliance class'!$C36*'RES S curve-connect'!C$10+'Res-Appliance class'!$D36*'RES S curve-connect'!C$15+'Res-Appliance class'!$E36*'RES S curve-connect'!C$20","v":-3563.5709375645069},{"$f":"'Res-Appliance class'!$B36*'RES S curve-connect'!D$5+'Res-Appliance class'!$C36*'RES S curve-connect'!D$10+'Res-Appliance class'!$D36*'RES S curve-connect'!D$15+'Res-Appliance class'!$E36*'RES S curve-connect'!D$20","v":-3928.3680123460335},{"$f":"'Res-Appliance class'!$B36*'RES S curve-connect'!E$5+'Res-Appliance class'!$C36*'RES S curve-connect'!E$10+'Res-Appliance class'!$D36*'RES S curve-connect'!E$15+'Res-Appliance class'!$E36*'RES S curve-connect'!E$20","v":-2934.5550237685225},{"$f":"'Res-Appliance class'!$B36*'RES S curve-connect'!F$5+'Res-Appliance class'!$C36*'RES S curve-connect'!F$10+'Res-Appliance class'!$D36*'RES S curve-connect'!F$15+'Res-Appliance class'!$E36*'RES S curve-connect'!F$20","v":-2824.5046938112459},{"$f":"'Res-Appliance class'!$B36*'RES S curve-connect'!G$5+'Res-Appliance class'!$C36*'RES S curve-connect'!G$10+'Res-Appliance class'!$D36*'RES S curve-connect'!G$15+'Res-Appliance class'!$E36*'RES S curve-connect'!G$20","v":-4013.6579584192855},{"$f":"'Res-Appliance class'!$B36*'RES S curve-connect'!H$5+'Res-Appliance class'!$C36*'RES S curve-connect'!H$10+'Res-Appliance class'!$D36*'RES S curve-connect'!H$15+'Res-Appliance class'!$E36*'RES S curve-connect'!H$20","v":-4044.797628665181},{"$f":"'Res-Appliance class'!$B36*'RES S curve-connect'!I$5+'Res-Appliance class'!$C36*'RES S curve-connect'!I$10+'Res-Appliance class'!$D36*'RES S curve-connect'!I$15+'Res-Appliance class'!$E36*'RES S curve-connect'!I$20","v":-3733.7240445739189},{"$f":"'Res-Appliance class'!$B36*'RES S curve-connect'!J$5+'Res-Appliance class'!$C36*'RES S curve-connect'!J$10+'Res-Appliance class'!$D36*'RES S curve-connect'!J$15+'Res-Appliance class'!$E36*'RES S curve-connect'!J$20","v":-4103.7076872802654},{"$f":"'Res-Appliance class'!$B36*'RES S curve-connect'!K$5+'Res-Appliance class'!$C36*'RES S curve-connect'!K$10+'Res-Appliance class'!$D36*'RES S curve-connect'!K$15+'Res-Appliance class'!$E36*'RES S curve-connect'!K$20","v":-3427.0386650840619},{"$f":"'Res-Appliance class'!$B36*'RES S curve-connect'!L$5+'Res-Appliance class'!$C36*'RES S curve-connect'!L$10+'Res-Appliance class'!$D36*'RES S curve-connect'!L$15+'Res-Appliance class'!$E36*'RES S curve-connect'!L$20","v":-3656.8480815434627},{"$f":"'Res-Appliance class'!$B36*'RES S curve-connect'!M$5+'Res-Appliance class'!$C36*'RES S curve-connect'!M$10+'Res-Appliance class'!$D36*'RES S curve-connect'!M$15+'Res-Appliance class'!$E36*'RES S curve-connect'!M$20","v":-4094.2698833930731},{"$f":"'Res-Appliance class'!$B36*'RES S curve-connect'!N$5+'Res-Appliance class'!$C36*'RES S curve-connect'!N$10+'Res-Appliance class'!$D36*'RES S curve-connect'!N$15+'Res-Appliance class'!$E36*'RES S curve-connect'!N$20","v":-4117.7576417680066},{"$f":"'Res-Appliance class'!$B36*'RES S curve-connect'!O$5+'Res-Appliance class'!$C36*'RES S curve-connect'!O$10+'Res-Appliance class'!$D36*'RES S curve-connect'!O$15+'Res-Appliance class'!$E36*'RES S curve-connect'!O$20","v":-3698.0334756902084},{"$f":"'Res-Appliance class'!$B36*'RES S curve-connect'!P$5+'Res-Appliance class'!$C36*'RES S curve-connect'!P$10+'Res-Appliance class'!$D36*'RES S curve-connect'!P$15+'Res-Appliance class'!$E36*'RES S curve-connect'!P$20","v":-3359.4479711999875},{"$f":"'Res-Appliance class'!$B36*'RES S curve-connect'!Q$5+'Res-Appliance class'!$C36*'RES S curve-connect'!Q$10+'Res-Appliance class'!$D36*'RES S curve-connect'!Q$15+'Res-Appliance class'!$E36*'RES S curve-connect'!Q$20","v":-2857.7732910155273},{"$f":"'Res-Appliance class'!$B36*'RES S curve-connect'!R$5+'Res-Appliance class'!$C36*'RES S curve-connect'!R$10+'Res-Appliance class'!$D36*'RES S curve-connect'!R$15+'Res-Appliance class'!$E36*'RES S curve-connect'!R$20","v":-2565.1271844412122},{"$f":"'Res-Appliance class'!$B36*'RES S curve-connect'!S$5+'Res-Appliance class'!$C36*'RES S curve-connect'!S$10+'Res-Appliance class'!$D36*'RES S curve-connect'!S$15+'Res-Appliance class'!$E36*'RES S curve-connect'!S$20","v":-2111.8313153126041},{"$f":"'Res-Appliance class'!$B36*'RES S curve-connect'!T$5+'Res-Appliance class'!$C36*'RES S curve-connect'!T$10+'Res-Appliance class'!$D36*'RES S curve-connect'!T$15+'Res-Appliance class'!$E36*'RES S curve-connect'!T$20","v":-1855.2371890876352},{"$f":"'Res-Appliance class'!$B36*'RES S curve-connect'!U$5+'Res-Appliance class'!$C36*'RES S curve-connect'!U$10+'Res-Appliance class'!$D36*'RES S curve-connect'!U$15+'Res-Appliance class'!$E36*'RES S curve-connect'!U$20","v":-1566.1988606332395},{"$f":"'Res-Appliance class'!$B36*'RES S curve-connect'!V$5+'Res-Appliance class'!$C36*'RES S curve-connect'!V$10+'Res-Appliance class'!$D36*'RES S curve-connect'!V$15+'Res-Appliance class'!$E36*'RES S curve-connect'!V$20","v":-1363.5012630053407},{"$f":"'Res-Appliance class'!$B36*'RES S curve-connect'!W$5+'Res-Appliance class'!$C36*'RES S curve-connect'!W$10+'Res-Appliance class'!$D36*'RES S curve-connect'!W$15+'Res-Appliance class'!$E36*'RES S curve-connect'!W$20","v":-1201.4885059216531},{"$f":"'Res-Appliance class'!$B36*'RES S curve-connect'!X$5+'Res-Appliance class'!$C36*'RES S curve-connect'!X$10+'Res-Appliance class'!$D36*'RES S curve-connect'!X$15+'Res-Appliance class'!$E36*'RES S curve-connect'!X$20","v":-856.85974787258806},{"$f":"'Res-Appliance class'!$B36*'RES S curve-connect'!Y$5+'Res-Appliance class'!$C36*'RES S curve-connect'!Y$10+'Res-Appliance class'!$D36*'RES S curve-connect'!Y$15+'Res-Appliance class'!$E36*'RES S curve-connect'!Y$20","v":-508.66102001123033},{"$f":"'Res-Appliance class'!$B36*'RES S curve-connect'!Z$5+'Res-Appliance class'!$C36*'RES S curve-connect'!Z$10+'Res-Appliance class'!$D36*'RES S curve-connect'!Z$15+'Res-Appliance class'!$E36*'RES S curve-connect'!Z$20","v":-267.28793960667952},{"$f":"'Res-Appliance class'!$B36*'RES S curve-connect'!AA$5+'Res-Appliance class'!$C36*'RES S curve-connect'!AA$10+'Res-Appliance class'!$D36*'RES S curve-connect'!AA$15+'Res-Appliance class'!$E36*'RES S curve-connect'!AA$20","v":-26.192530278106119},{"$f":"'Res-Appliance class'!$B36*'RES S curve-connect'!AB$5+'Res-Appliance class'!$C36*'RES S curve-connect'!AB$10+'Res-Appliance class'!$D36*'RES S curve-connect'!AB$15+'Res-Appliance class'!$E36*'RES S curve-connect'!AB$20","v":169.7709891128531},{"$f":"'Res-Appliance class'!$B36*'RES S curve-connect'!AC$5+'Res-Appliance class'!$C36*'RES S curve-connect'!AC$10+'Res-Appliance class'!$D36*'RES S curve-connect'!AC$15+'Res-Appliance class'!$E36*'RES S curve-connect'!AC$20","v":359.00238131612605},{"$f":"'Res-Appliance class'!$B36*'RES S curve-connect'!AD$5+'Res-Appliance class'!$C36*'RES S curve-connect'!AD$10+'Res-Appliance class'!$D36*'RES S curve-connect'!AD$15+'Res-Appliance class'!$E36*'RES S curve-connect'!AD$20","v":533.95799492292667},{"$f":"'Res-Appliance class'!$B36*'RES S curve-connect'!AE$5+'Res-Appliance class'!$C36*'RES S curve-connect'!AE$10+'Res-Appliance class'!$D36*'RES S curve-connect'!AE$15+'Res-Appliance class'!$E36*'RES S curve-connect'!AE$20","v":716.5713611790336},{"$f":"'Res-Appliance class'!$B36*'RES S curve-connect'!AF$5+'Res-Appliance class'!$C36*'RES S curve-connect'!AF$10+'Res-Appliance class'!$D36*'RES S curve-connect'!AF$15+'Res-Appliance class'!$E36*'RES S curve-connect'!AF$20","v":947.9598264293902},{"$f":"'Res-Appliance class'!$B36*'RES S curve-connect'!AG$5+'Res-Appliance class'!$C36*'RES S curve-connect'!AG$10+'Res-Appliance class'!$D36*'RES S curve-connect'!AG$15+'Res-Appliance class'!$E36*'RES S curve-connect'!AG$20","v":1095.1184603006832},{"$f":"'Res-Appliance class'!$B36*'RES S curve-connect'!AH$5+'Res-Appliance class'!$C36*'RES S curve-connect'!AH$10+'Res-Appliance class'!$D36*'RES S curve-connect'!AH$15+'Res-Appliance class'!$E36*'RES S curve-connect'!AH$20","v":1302.7962674764347},{"$f":"'Res-Appliance class'!$B36*'RES S curve-connect'!AI$5+'Res-Appliance class'!$C36*'RES S curve-connect'!AI$10+'Res-Appliance class'!$D36*'RES S curve-connect'!AI$15+'Res-Appliance class'!$E36*'RES S curve-connect'!AI$20","v":1488.9328896151319},{"$f":"'Res-Appliance class'!$B36*'RES S curve-connect'!AJ$5+'Res-Appliance class'!$C36*'RES S curve-connect'!AJ$10+'Res-Appliance class'!$D36*'RES S curve-connect'!AJ$15+'Res-Appliance class'!$E36*'RES S curve-connect'!AJ$20","v":1657.031302816355},{"$f":"'Res-Appliance class'!$B36*'RES S curve-connect'!AK$5+'Res-Appliance class'!$C36*'RES S curve-connect'!AK$10+'Res-Appliance class'!$D36*'RES S curve-connect'!AK$15+'Res-Appliance class'!$E36*'RES S curve-connect'!AK$20","v":1835.4727414651409},{"$f":"'Res-Appliance class'!$B36*'RES S curve-connect'!AL$5+'Res-Appliance class'!$C36*'RES S curve-connect'!AL$10+'Res-Appliance class'!$D36*'RES S curve-connect'!AL$15+'Res-Appliance class'!$E36*'RES S curve-connect'!AL$20","v":1219.2082139151119},{"$f":"'Res-Appliance class'!$B36*'RES S curve-connect'!AM$5+'Res-Appliance class'!$C36*'RES S curve-connect'!AM$10+'Res-Appliance class'!$D36*'RES S curve-connect'!AM$15+'Res-Appliance class'!$E36*'RES S curve-connect'!AM$20","v":1137.6685011379382},{"$f":"'Res-Appliance class'!$B36*'RES S curve-connect'!AN$5+'Res-Appliance class'!$C36*'RES S curve-connect'!AN$10+'Res-Appliance class'!$D36*'RES S curve-connect'!AN$15+'Res-Appliance class'!$E36*'RES S curve-connect'!AN$20","v":1306.1246225501211},{"$f":"'Res-Appliance class'!$B36*'RES S curve-connect'!AO$5+'Res-Appliance class'!$C36*'RES S curve-connect'!AO$10+'Res-Appliance class'!$D36*'RES S curve-connect'!AO$15+'Res-Appliance class'!$E36*'RES S curve-connect'!AO$20","v":1512.6137418449719},{"$f":"'Res-Appliance class'!$B36*'RES S curve-connect'!AP$5+'Res-Appliance class'!$C36*'RES S curve-connect'!AP$10+'Res-Appliance class'!$D36*'RES S curve-connect'!AP$15+'Res-Appliance class'!$E36*'RES S curve-connect'!AP$20","v":1703.6454279307741},{"$f":"'Res-Appliance class'!$B36*'RES S curve-connect'!AQ$5+'Res-Appliance class'!$C36*'RES S curve-connect'!AQ$10+'Res-Appliance class'!$D36*'RES S curve-connect'!AQ$15+'Res-Appliance class'!$E36*'RES S curve-connect'!AQ$20","v":1909.0395491771671},{"$f":"'Res-Appliance class'!$B36*'RES S curve-connect'!AR$5+'Res-Appliance class'!$C36*'RES S curve-connect'!AR$10+'Res-Appliance class'!$D36*'RES S curve-connect'!AR$15+'Res-Appliance class'!$E36*'RES S curve-connect'!AR$20","v":2134.7266357825729},{"$f":"'Res-Appliance class'!$B36*'RES S curve-connect'!AS$5+'Res-Appliance class'!$C36*'RES S curve-connect'!AS$10+'Res-Appliance class'!$D36*'RES S curve-connect'!AS$15+'Res-Appliance class'!$E36*'RES S curve-connect'!AS$20","v":2388.0239384226657},{"$f":"'Res-Appliance class'!$B36*'RES S curve-connect'!AT$5+'Res-Appliance class'!$C36*'RES S curve-connect'!AT$10+'Res-Appliance class'!$D36*'RES S curve-connect'!AT$15+'Res-Appliance class'!$E36*'RES S curve-connect'!AT$20","v":2671.5490290675348},{"$f":"'Res-Appliance class'!$B36*'RES S curve-connect'!AU$5+'Res-Appliance class'!$C36*'RES S curve-connect'!AU$10+'Res-Appliance class'!$D36*'RES S curve-connect'!AU$15+'Res-Appliance class'!$E36*'RES S curve-connect'!AU$20","v":2999.3284831873675},{"$f":"'Res-Appliance class'!$B36*'RES S curve-connect'!AV$5+'Res-Appliance class'!$C36*'RES S curve-connect'!AV$10+'Res-Appliance class'!$D36*'RES S curve-connect'!AV$15+'Res-Appliance class'!$E36*'RES S curve-connect'!AV$20","v":3373.4610886943251},{"$f":"'Res-Appliance class'!$B36*'RES S curve-connect'!AW$5+'Res-Appliance class'!$C36*'RES S curve-connect'!AW$10+'Res-Appliance class'!$D36*'RES S curve-connect'!AW$15+'Res-Appliance class'!$E36*'RES S curve-connect'!AW$20","v":3803.6113598294769},{"$f":"'Res-Appliance class'!$B36*'RES S curve-connect'!AX$5+'Res-Appliance class'!$C36*'RES S curve-connect'!AX$10+'Res-Appliance class'!$D36*'RES S curve-connect'!AX$15+'Res-Appliance class'!$E36*'RES S curve-connect'!AX$20","v":4294.1542371193736},{"$f":"'Res-Appliance class'!$B36*'RES S curve-connect'!AY$5+'Res-Appliance class'!$C36*'RES S curve-connect'!AY$10+'Res-Appliance class'!$D36*'RES S curve-connect'!AY$15+'Res-Appliance class'!$E36*'RES S curve-connect'!AY$20","v":4860.056709340628},{"$f":"'Res-Appliance class'!$B36*'RES S curve-connect'!AZ$5+'Res-Appliance class'!$C36*'RES S curve-connect'!AZ$10+'Res-Appliance class'!$D36*'RES S curve-connect'!AZ$15+'Res-Appliance class'!$E36*'RES S curve-connect'!AZ$20","v":5507.3786857943742},{"$f":"'Res-Appliance class'!$B36*'RES S curve-connect'!BA$5+'Res-Appliance class'!$C36*'RES S curve-connect'!BA$10+'Res-Appliance class'!$D36*'RES S curve-connect'!BA$15+'Res-Appliance class'!$E36*'RES S curve-connect'!BA$20","v":6257.3198444166919},{"$f":"'Res-Appliance class'!$B36*'RES S curve-connect'!BB$5+'Res-Appliance class'!$C36*'RES S curve-connect'!BB$10+'Res-Appliance class'!$D36*'RES S curve-connect'!BB$15+'Res-Appliance class'!$E36*'RES S curve-connect'!BB$20","v":7133.9897878722495},{"$f":"'Res-Appliance class'!$B36*'RES S curve-connect'!BC$5+'Res-Appliance class'!$C36*'RES S curve-connect'!BC$10+'Res-Appliance class'!$D36*'RES S curve-connect'!BC$15+'Res-Appliance class'!$E36*'RES S curve-connect'!BC$20","v":8179.5210385774262},{"$f":"'Res-Appliance class'!$B36*'RES S curve-connect'!BD$5+'Res-Appliance class'!$C36*'RES S curve-connect'!BD$10+'Res-Appliance class'!$D36*'RES S curve-connect'!BD$15+'Res-Appliance class'!$E36*'RES S curve-connect'!BD$20","v":9189.4384456149219},{"$f":"'Res-Appliance class'!$B36*'RES S curve-connect'!BE$5+'Res-Appliance class'!$C36*'RES S curve-connect'!BE$10+'Res-Appliance class'!$D36*'RES S curve-connect'!BE$15+'Res-Appliance class'!$E36*'RES S curve-connect'!BE$20","v":10112.945332840076},{"$f":"'Res-Appliance class'!$B36*'RES S curve-connect'!BF$5+'Res-Appliance class'!$C36*'RES S curve-connect'!BF$10+'Res-Appliance class'!$D36*'RES S curve-connect'!BF$15+'Res-Appliance class'!$E36*'RES S curve-connect'!BF$20","v":11057.737275431022},{"$f":"'Res-Appliance class'!$B36*'RES S curve-connect'!BG$5+'Res-Appliance class'!$C36*'RES S curve-connect'!BG$10+'Res-Appliance class'!$D36*'RES S curve-connect'!BG$15+'Res-Appliance class'!$E36*'RES S curve-connect'!BG$20","v":12126.538440357141},{"$f":"'Res-Appliance class'!$B36*'RES S curve-connect'!BH$5+'Res-Appliance class'!$C36*'RES S curve-connect'!BH$10+'Res-Appliance class'!$D36*'RES S curve-connect'!BH$15+'Res-Appliance class'!$E36*'RES S curve-connect'!BH$20","v":13395.560265050046},{"$f":"'Res-Appliance class'!$B36*'RES S curve-connect'!BI$5+'Res-Appliance class'!$C36*'RES S curve-connect'!BI$10+'Res-Appliance class'!$D36*'RES S curve-connect'!BI$15+'Res-Appliance class'!$E36*'RES S curve-connect'!BI$20","v":15234.067390830545},{"$f":"'Res-Appliance class'!$B36*'RES S curve-connect'!BJ$5+'Res-Appliance class'!$C36*'RES S curve-connect'!BJ$10+'Res-Appliance class'!$D36*'RES S curve-connect'!BJ$15+'Res-Appliance class'!$E36*'RES S curve-connect'!BJ$20","v":17928.174596914552},{"$f":"'Res-Appliance class'!$B36*'RES S curve-connect'!BK$5+'Res-Appliance class'!$C36*'RES S curve-connect'!BK$10+'Res-Appliance class'!$D36*'RES S curve-connect'!BK$15+'Res-Appliance class'!$E36*'RES S curve-connect'!BK$20","v":21906.362456691728},{"$f":"'Res-Appliance class'!$B36*'RES S curve-connect'!BL$5+'Res-Appliance class'!$C36*'RES S curve-connect'!BL$10+'Res-Appliance class'!$D36*'RES S curve-connect'!BL$15+'Res-Appliance class'!$E36*'RES S curve-connect'!BL$20","v":-1036.8967657745654},{"$f":"'Res-Appliance class'!$B36*'RES S curve-connect'!BM$5+'Res-Appliance class'!$C36*'RES S curve-connect'!BM$10+'Res-Appliance class'!$D36*'RES S curve-connect'!BM$15+'Res-Appliance class'!$E36*'RES S curve-connect'!BM$20","v":-1031.8783713340231},{"$f":"'Res-Appliance class'!$B36*'RES S curve-connect'!BN$5+'Res-Appliance class'!$C36*'RES S curve-connect'!BN$10+'Res-Appliance class'!$D36*'RES S curve-connect'!BN$15+'Res-Appliance class'!$E36*'RES S curve-connect'!BN$20","v":-1029.1296730274505},{"$f":"'Res-Appliance class'!$B36*'RES S curve-connect'!BO$5+'Res-Appliance class'!$C36*'RES S curve-connect'!BO$10+'Res-Appliance class'!$D36*'RES S curve-connect'!BO$15+'Res-Appliance class'!$E36*'RES S curve-connect'!BO$20","v":-1021.8620182595741},{"$f":"'Res-Appliance class'!$B36*'RES S curve-connect'!BP$5+'Res-Appliance class'!$C36*'RES S curve-connect'!BP$10+'Res-Appliance class'!$D36*'RES S curve-connect'!BP$15+'Res-Appliance class'!$E36*'RES S curve-connect'!BP$20","v":-1016.8639779040709},{"$f":"'Res-Appliance class'!$B36*'RES S curve-connect'!BQ$5+'Res-Appliance class'!$C36*'RES S curve-connect'!BQ$10+'Res-Appliance class'!$D36*'RES S curve-connect'!BQ$15+'Res-Appliance class'!$E36*'RES S curve-connect'!BQ$20","v":-1011.872640944554},{"$f":"'Res-Appliance class'!$B36*'RES S curve-connect'!BR$5+'Res-Appliance class'!$C36*'RES S curve-connect'!BR$10+'Res-Appliance class'!$D36*'RES S curve-connect'!BR$15+'Res-Appliance class'!$E36*'RES S curve-connect'!BR$20","v":-1009.1508376874223},{"$f":"'Res-Appliance class'!$B36*'RES S curve-connect'!BS$5+'Res-Appliance class'!$C36*'RES S curve-connect'!BS$10+'Res-Appliance class'!$D36*'RES S curve-connect'!BS$15+'Res-Appliance class'!$E36*'RES S curve-connect'!BS$20","v":-1001.9099165458307},{"$f":"'Res-Appliance class'!$B36*'RES S curve-connect'!BT$5+'Res-Appliance class'!$C36*'RES S curve-connect'!BT$10+'Res-Appliance class'!$D36*'RES S curve-connect'!BT$15+'Res-Appliance class'!$E36*'RES S curve-connect'!BT$20","v":-996.93844939551889},{"$f":"'Res-Appliance class'!$B36*'RES S curve-connect'!BU$5+'Res-Appliance class'!$C36*'RES S curve-connect'!BU$10+'Res-Appliance class'!$D36*'RES S curve-connect'!BU$15+'Res-Appliance class'!$E36*'RES S curve-connect'!BU$20","v":-991.97352621583912},{"$f":"'Res-Appliance class'!$B36*'RES S curve-connect'!BV$5+'Res-Appliance class'!$C36*'RES S curve-connect'!BV$10+'Res-Appliance class'!$D36*'RES S curve-connect'!BV$15+'Res-Appliance class'!$E36*'RES S curve-connect'!BV$20","v":-989.27797830264785},{"$f":"'Res-Appliance class'!$B36*'RES S curve-connect'!BW$5+'Res-Appliance class'!$C36*'RES S curve-connect'!BW$10+'Res-Appliance class'!$D36*'RES S curve-connect'!BW$15+'Res-Appliance class'!$E36*'RES S curve-connect'!BW$20","v":-982.06315505231396},{"$f":"'Res-Appliance class'!$B36*'RES S curve-connect'!BX$5+'Res-Appliance class'!$C36*'RES S curve-connect'!BX$10+'Res-Appliance class'!$D36*'RES S curve-connect'!BX$15+'Res-Appliance class'!$E36*'RES S curve-connect'!BX$20","v":-977.11762931758699},{"$f":"'Res-Appliance class'!$B36*'RES S curve-connect'!BY$5+'Res-Appliance class'!$C36*'RES S curve-connect'!BY$10+'Res-Appliance class'!$D36*'RES S curve-connect'!BY$15+'Res-Appliance class'!$E36*'RES S curve-connect'!BY$20","v":-972.17849204866729},{"$f":"'Res-Appliance class'!$B36*'RES S curve-connect'!BZ$5+'Res-Appliance class'!$C36*'RES S curve-connect'!BZ$10+'Res-Appliance class'!$D36*'RES S curve-connect'!BZ$15+'Res-Appliance class'!$E36*'RES S curve-connect'!BZ$20","v":-969.50857550613489},{"$f":"'Res-Appliance class'!$B36*'RES S curve-connect'!CA$5+'Res-Appliance class'!$C36*'RES S curve-connect'!CA$10+'Res-Appliance class'!$D36*'RES S curve-connect'!CA$15+'Res-Appliance class'!$E36*'RES S curve-connect'!CA$20","v":-962.31923004499276},{"$f":"'Res-Appliance class'!$B36*'RES S curve-connect'!CB$5+'Res-Appliance class'!$C36*'RES S curve-connect'!CB$10+'Res-Appliance class'!$D36*'RES S curve-connect'!CB$15+'Res-Appliance class'!$E36*'RES S curve-connect'!CB$20","v":-957.39902947058022},{"$f":"'Res-Appliance class'!$B36*'RES S curve-connect'!CC$5+'Res-Appliance class'!$C36*'RES S curve-connect'!CC$10+'Res-Appliance class'!$D36*'RES S curve-connect'!CC$15+'Res-Appliance class'!$E36*'RES S curve-connect'!CC$20","v":-952.48506567967911},{"$f":"'Res-Appliance class'!$B36*'RES S curve-connect'!CD$5+'Res-Appliance class'!$C36*'RES S curve-connect'!CD$10+'Res-Appliance class'!$D36*'RES S curve-connect'!CD$15+'Res-Appliance class'!$E36*'RES S curve-connect'!CD$20","v":-1027.8489181639816}]
["Manningham (C)",null,{"$f":"'Res-Appliance class'!$B37*'RES S curve-connect'!C$5+'Res-Appliance class'!$C37*'RES S curve-connect'!C$10+'Res-Appliance class'!$D37*'RES S curve-connect'!C$15+'Res-Appliance class'!$E37*'RES S curve-connect'!C$20","v":-3529.4547223206323},{"$f":"'Res-Appliance class'!$B37*'RES S curve-connect'!D$5+'Res-Appliance class'!$C37*'RES S curve-connect'!D$10+'Res-Appliance class'!$D37*'RES S curve-connect'!D$15+'Res-Appliance class'!$E37*'RES S curve-connect'!D$20","v":-3893.50084510037},{"$f":"'Res-Appliance class'!$B37*'RES S curve-connect'!E$5+'Res-Appliance class'!$C37*'RES S curve-connect'!E$10+'Res-Appliance class'!$D37*'RES S curve-connect'!E$15+'Res-Appliance class'!$E37*'RES S curve-connect'!E$20","v":-2898.820654164535},{"$f":"'Res-Appliance class'!$B37*'RES S curve-connect'!F$5+'Res-Appliance class'!$C37*'RES S curve-connect'!F$10+'Res-Appliance class'!$D37*'RES S curve-connect'!F$15+'Res-Appliance class'!$E37*'RES S curve-connect'!F$20","v":-2789.009692770217},{"$f":"'Res-Appliance class'!$B37*'RES S curve-connect'!G$5+'Res-Appliance class'!$C37*'RES S curve-connect'!G$10+'Res-Appliance class'!$D37*'RES S curve-connect'!G$15+'Res-Appliance class'!$E37*'RES S curve-connect'!G$20","v":-3987.849631630344},{"$f":"'Res-Appliance class'!$B37*'RES S curve-connect'!H$5+'Res-Appliance class'!$C37*'RES S curve-connect'!H$10+'Res-Appliance class'!$D37*'RES S curve-connect'!H$15+'Res-Appliance class'!$E37*'RES S curve-connect'!H$20","v":-4015.6091475313451},{"$f":"'Res-Appliance class'!$B37*'RES S curve-connect'!I$5+'Res-Appliance class'!$C37*'RES S curve-connect'!I$10+'Res-Appliance class'!$D37*'RES S curve-connect'!I$15+'Res-Appliance class'!$E37*'RES S curve-connect'!I$20","v":-3704.6817448007623},{"$f":"'Res-Appliance class'!$B37*'RES S curve-connect'!J$5+'Res-Appliance class'!$C37*'RES S curve-connect'!J$10+'Res-Appliance class'!$D37*'RES S curve-connect'!J$15+'Res-Appliance class'!$E37*'RES S curve-connect'!J$20","v":-4069.2397135676561},{"$f":"'Res-Appliance class'!$B37*'RES S curve-connect'!K$5+'Res-Appliance class'!$C37*'RES S curve-connect'!K$10+'Res-Appliance class'!$D37*'RES S curve-connect'!K$15+'Res-Appliance class'!$E37*'RES S curve-connect'!K$20","v":-3393.7918556146665},{"$f":"'Res-Appliance class'!$B37*'RES S curve-connect'!L$5+'Res-Appliance class'!$C37*'RES S curve-connect'!L$10+'Res-Appliance class'!$D37*'RES S curve-connect'!L$15+'Res-Appliance class'!$E37*'RES S curve-connect'!L$20","v":-3623.3885589540814},{"$f":"'Res-Appliance class'!$B37*'RES S curve-connect'!M$5+'Res-Appliance class'!$C37*'RES S curve-connect'!M$10+'Res-Appliance class'!$D37*'RES S curve-connect'!M$15+'Res-Appliance class'!$E37*'RES S curve-connect'!M$20","v":-4061.2957719721066},{"$f":"'Res-Appliance class'!$B37*'RES S curve-connect'!N$5+'Res-Appliance class'!$C37*'RES S curve-connect'!N$10+'Res-Appliance class'!$D37*'RES S curve-connect'!N$15+'Res-Appliance class'!$E37*'RES S curve-connect'!N$20","v":-4085.0807720551866},{"$f":"'Res-Appliance class'!$B37*'RES S curve-connect'!O$5+'Res-Appliance class'!$C37*'RES S curve-connect'!O$10+'Res-Appliance class'!$D37*'RES S curve-connect'!O$15+'Res-Appliance class'!$E37*'RES S curve-connect'!O$20","v":-3665.8495244875285},{"$f":"'Res-Appliance class'!$B37*'RES S curve-connect'!P$5+'Res-Appliance class'!$C37*'RES S curve-connect'!P$10+'Res-Appliance class'!$D37*'RES S curve-connect'!P$15+'Res-Appliance class'!$E37*'RES S curve-connect'!P$20","v":-3327.6174960050107},{"$f":"'Res-Appliance class'!$B37*'RES S curve-connect'!Q$5+'Res-Appliance class'!$C37*'RES S curve-connect'!Q$10+'Res-Appliance class'!$D37*'RES S curve-connect'!Q$15+'Res-Appliance class'!$E37*'RES S curve-connect'!Q$20","v":-2826.3378272833979},{"$f":"'Res-Appliance class'!$B37*'RES S curve-connect'!R$5+'Res-Appliance class'!$C37*'RES S curve-connect'!R$10+'Res-Appliance class'!$D37*'RES S curve-connect'!R$15+'Res-Appliance class'!$E37*'RES S curve-connect'!R$20","v":-2534.0248661142914},{"$f":"'Res-Appliance class'!$B37*'RES S curve-connect'!S$5+'Res-Appliance class'!$C37*'RES S curve-connect'!S$10+'Res-Appliance class'!$D37*'RES S curve-connect'!S$15+'Res-Appliance class'!$E37*'RES S curve-connect'!S$20","v":-2081.0742247223438},{"$f":"'Res-Appliance class'!$B37*'RES S curve-connect'!T$5+'Res-Appliance class'!$C37*'RES S curve-connect'!T$10+'Res-Appliance class'!$D37*'RES S curve-connect'!T$15+'Res-Appliance class'!$E37*'RES S curve-connect'!T$20","v":-1824.8501727456928},{"$f":"'Res-Appliance class'!$B37*'RES S curve-connect'!U$5+'Res-Appliance class'!$C37*'RES S curve-connect'!U$10+'Res-Appliance class'!$D37*'RES S curve-connect'!U$15+'Res-Appliance class'!$E37*'RES S curve-connect'!U$20","v":-1536.1970404724839},{"$f":"'Res-Appliance class'!$B37*'RES S curve-connect'!V$5+'Res-Appliance class'!$C37*'RES S curve-connect'!V$10+'Res-Appliance class'!$D37*'RES S curve-connect'!V$15+'Res-Appliance class'!$E37*'RES S curve-connect'!V$20","v":-1333.905349434036},{"$f":"'Res-Appliance class'!$B37*'RES S curve-connect'!W$5+'Res-Appliance class'!$C37*'RES S curve-connect'!W$10+'Res-Appliance class'!$D37*'RES S curve-connect'!W$15+'Res-Appliance class'!$E37*'RES S curve-connect'!W$20","v":-1172.2060736923579},{"$f":"'Res-Appliance class'!$B37*'RES S curve-connect'!X$5+'Res-Appliance class'!$C37*'RES S curve-connect'!X$10+'Res-Appliance class'!$D37*'RES S curve-connect'!X$15+'Res-Appliance class'!$E37*'RES S curve-connect'!X$20","v":-827.88142310372473},{"$f":"'Res-Appliance class'!$B37*'RES S curve-connect'!Y$5+'Res-Appliance class'!$C37*'RES S curve-connect'!Y$10+'Res-Appliance class'!$D37*'RES S curve-connect'!Y$15+'Res-Appliance class'!$E37*'RES S curve-connect'!Y$20","v":-479.98861863560717},{"$f":"'Res-Appliance class'!$B37*'RES S curve-connect'!Z$5+'Res-Appliance class'!$C37*'RES S curve-connect'!Z$10+'Res-Appliance class'!$D37*'RES S curve-connect'!Z$15+'Res-Appliance class'!$E37*'RES S curve-connect'!Z$20","v":-238.92881923850001},{"$f":"'Res-Appliance class'!$B37*'RES S curve-connect'!AA$5+'Res-Appliance class'!$C37*'RES S curve-connect'!AA$10+'Res-Appliance class'!$D37*'RES S curve-connect'!AA$15+'Res-Appliance class'!$E37*'RES S curve-connect'!AA$20","v":1.8521273835348211},{"$f":"'Res-Appliance class'!$B37*'RES S curve-connect'!AB$5+'Res-Appliance class'!$C37*'RES S curve-connect'!AB$10+'Res-Appliance class'!$D37*'RES S curve-connect'!AB$15+'Res-Appliance class'!$E37*'RES S curve-connect'!AB$20","v":197.56971991771587},{"$f":"'Res-Appliance class'!$B37*'RES S curve-connect'!AC$5+'Res-Appliance class'!$C37*'RES S curve-connect'!AC$10+'Res-Appliance class'!$D37*'RES S curve-connect'!AC$15+'Res-Appliance class'!$E37*'RES S curve-connect'!AC$20","v":386.55695212364401},{"$f":"'Res-Appliance class'!$B37*'RES S curve-connect'!AD$5+'Res-Appliance class'!$C37*'RES S curve-connect'!AD$10+'Res-Appliance class'!$D37*'RES S curve-connect'!AD$15+'Res-Appliance class'!$E37*'RES S curve-connect'!AD$20","v":561.26997560689449},{"$f":"'Res-Appliance class'!$B37*'RES S curve-connect'!AE$5+'Res-Appliance class'!$C37*'RES S curve-connect'!AE$10+'Res-Appliance class'!$D37*'RES S curve-connect'!AE$15+'Res-Appliance class'!$E37*'RES S curve-connect'!AE$20","v":743.6424651204743},{"$f":"'Res-Appliance class'!$B37*'RES S curve-connect'!AF$5+'Res-Appliance class'!$C37*'RES S curve-connect'!AF$10+'Res-Appliance class'!$D37*'RES S curve-connect'!AF$15+'Res-Appliance class'!$E37*'RES S curve-connect'!AF$20","v":974.79527509938657},{"$f":"'Res-Appliance class'!$B37*'RES S curve-connect'!AG$5+'Res-Appliance class'!$C37*'RES S curve-connect'!AG$10+'Res-Appliance class'!$D37*'RES S curve-connect'!AG$15+'Res-Appliance class'!$E37*'RES S curve-connect'!AG$20","v":1121.9518462290994},{"$f":"'Res-Appliance class'!$B37*'RES S curve-connect'!AH$5+'Res-Appliance class'!$C37*'RES S curve-connect'!AH$10+'Res-Appliance class'!$D37*'RES S curve-connect'!AH$15+'Res-Appliance class'!$E37*'RES S curve-connect'!AH$20","v":1329.6313829305764},{"$f":"'Res-Appliance class'!$B37*'RES S curve-connect'!AI$5+'Res-Appliance class'!$C37*'RES S curve-connect'!AI$10+'Res-Appliance class'!$D37*'RES S curve-connect'!AI$15+'Res-Appliance class'!$E37*'RES S curve-connect'!AI$20","v":1515.7680789849867},{"$f":"'Res-Appliance class'!$B37*'RES S curve-connect'!AJ$5+'Res-Appliance class'!$C37*'RES S curve-connect'!AJ$10+'Res-Appliance class'!$D37*'RES S curve-connect'!AJ$15+'Res-Appliance class'!$E37*'RES S curve-connect'!AJ$20","v":1683.8658278677351},{"$f":"'Res-Appliance class'!$B37*'RES S curve-connect'!AK$5+'Res-Appliance class'!$C37*'RES S curve-connect'!AK$10+'Res-Appliance class'!$D37*'RES S curve-connect'!AK$15+'Res-Appliance class'!$E37*'RES S curve-connect'!AK$20","v":1862.3071904214726},{"$f":"'Res-Appliance class'!$B37*'RES S curve-connect'!AL$5+'Res-Appliance class'!$C37*'RES S curve-connect'!AL$10+'Res-Appliance class'!$D37*'RES S curve-connect'!AL$15+'Res-Appliance class'!$E37*'RES S curve-connect'!AL$20","v":1246.002927286431},{"$f":"'Res-Appliance class'!$B37*'RES S curve-connect'!AM$5+'Res-Appliance class'!$C37*'RES S curve-connect'!AM$10+'Res-Appliance class'!$D37*'RES S curve-connect'!AM$15+'Res-Appliance class'!$E37*'RES S curve-connect'!AM$20","v":1164.4491437852575},{"$f":"'Res-Appliance class'!$B37*'RES S curve-connect'!AN$5+'Res-Appliance class'!$C37*'RES S curve-connect'!AN$10+'Res-Appliance class'!$D37*'RES S curve-connect'!AN$15+'Res-Appliance class'!$E37*'RES S curve-connect'!AN$20","v":1332.9044462790177},{"$f":"'Res-Appliance class'!$B37*'RES S curve-connect'!AO$5+'Res-Appliance class'!$C37*'RES S curve-connect'!AO$10+'Res-Appliance class'!$D37*'RES S curve-connect'!AO$15+'Res-Appliance class'!$E37*'RES S curve-connect'!AO$20","v":1539.3951003829957},{"$f":"'Res-Appliance class'!$B37*'RES S curve-connect'!AP$5+'Res-Appliance class'!$C37*'RES S curve-connect'!AP$10+'Res-Appliance class'!$D37*'RES S curve-connect'!AP$15+'Res-Appliance class'!$E37*'RES S curve-connect'!AP$20","v":1730.4278387667914},{"$f":"'Res-Appliance class'!$B37*'RES S curve-connect'!AQ$5+'Res-Appliance class'!$C37*'RES S curve-connect'!AQ$10+'Res-Appliance class'!$D37*'RES S curve-connect'!AQ$15+'Res-Appliance class'!$E37*'RES S curve-connect'!AQ$20","v":1935.8235888541051},{"$f":"'Res-Appliance class'!$B37*'RES S curve-connect'!AR$5+'Res-Appliance class'!$C37*'RES S curve-connect'!AR$10+'Res-Appliance class'!$D37*'RES S curve-connect'!AR$15+'Res-Appliance class'!$E37*'RES S curve-connect'!AR$20","v":2161.5135570983221},{"$f":"'Res-Appliance class'!$B37*'RES S curve-connect'!AS$5+'Res-Appliance class'!$C37*'RES S curve-connect'!AS$10+'Res-Appliance class'!$D37*'RES S curve-connect'!AS$15+'Res-Appliance class'!$E37*'RES S curve-connect'!AS$20","v":2414.8152806597959},{"$f":"'Res-Appliance class'!$B37*'RES S curve-connect'!AT$5+'Res-Appliance class'!$C37*'RES S curve-connect'!AT$10+'Res-Appliance class'!$D37*'RES S curve-connect'!AT$15+'Res-Appliance class'!$E37*'RES S curve-connect'!AT$20","v":2698.3465999168629},{"$f":"'Res-Appliance class'!$B37*'RES S curve-connect'!AU$5+'Res-Appliance class'!$C37*'RES S curve-connect'!AU$10+'Res-Appliance class'!$D37*'RES S curve-connect'!AU$15+'Res-Appliance class'!$E37*'RES S curve-connect'!AU$20","v":3026.1344817493318},{"$f":"'Res-Appliance class'!$B37*'RES S curve-connect'!AV$5+'Res-Appliance class'!$C37*'RES S curve-connect'!AV$10+'Res-Appliance class'!$D37*'RES S curve-connect'!AV$15+'Res-Appliance class'!$E37*'RES S curve-connect'!AV$20","v":3400.2782009291936},{"$f":"'Res-Appliance class'!$B37*'RES S curve-connect'!AW$5+'Res-Appliance class'!$C37*'RES S curve-connect'!AW$10+'Res-Appliance class'!$D37*'RES S curve-connect'!AW$15+'Res-Appliance class'!$E37*'RES S curve-connect'!AW$20","v":3830.4426972581196},{"$f":"'Res-Appliance class'!$B37*'RES S curve-connect'!AX$5+'Res-Appliance class'!$C37*'RES S curve-connect'!AX$10+'Res-Appliance class'!$D37*'RES S curve-connect'!AX$15+'Res-Appliance class'!$E37*'RES S curve-connect'!AX$20","v":4321.003306868266},{"$f":"'Res-Appliance class'!$B37*'RES S curve-connect'!AY$5+'Res-Appliance class'!$C37*'RES S curve-connect'!AY$10+'Res-Appliance class'!$D37*'RES S curve-connect'!AY$15+'Res-Appliance class'!$E37*'RES S curve-connect'!AY$20","v":4886.9274997968596},{"$f":"'Res-Appliance class'!$B37*'RES S curve-connect'!AZ$5+'Res-Appliance class'!$C37*'RES S curve-connect'!AZ$10+'Res-Appliance class'!$D37*'RES S curve-connect'!AZ$15+'Res-Appliance class'!$E37*'RES S curve-connect'!AZ$20","v":5534.2759211534712},{"$f":"'Res-Appliance class'!$B37*'RES S curve-connect'!BA$5+'Res-Appliance class'!$C37*'RES S curve-connect'!BA$10+'Res-Appliance class'!$D37*'RES S curve-connect'!BA$15+'Res-Appliance class'!$E37*'RES S curve-connect'!BA$20","v":6284.2493252360428},{"$f":"'Res-Appliance class'!$B37*'RES S curve-connect'!BB$5+'Res-Appliance class'!$C37*'RES S curve-connect'!BB$10+'Res-Appliance class'!$D37*'RES S curve-connect'!BB$15+'Res-Appliance class'!$E37*'RES S curve-connect'!BB$20","v":7160.9588198457914},{"$f":"'Res-Appliance class'!$B37*'RES S curve-connect'!BC$5+'Res-Appliance class'!$C37*'RES S curve-connect'!BC$10+'Res-Appliance class'!$D37*'RES S curve-connect'!BC$15+'Res-Appliance class'!$E37*'RES S curve-connect'!BC$20","v":8206.5389547655632},{"$f":"'Res-Appliance class'!$B37*'RES S curve-connect'!BD$5+'Res-Appliance class'!$C37*'RES S curve-connect'!BD$10+'Res-Appliance class'!$D37*'RES S curve-connect'!BD$15+'Res-Appliance class'!$E37*'RES S curve-connect'!BD$20","v":9216.5043876709206},{"$f":"'Res-Appliance class'!$B37*'RES S curve-connect'!BE$5+'Res-Appliance class'!$C37*'RES S curve-connect'!BE$10+'Res-Appliance class'!$D37*'RES S curve-connect'!BE$15+'Res-Appliance class'!$E37*'RES S curve-connect'!BE$20","v":10140.054902528256},{"$f":"'Res-Appliance class'!$B37*'RES S curve-connect'!BF$5+'Res-Appliance class'!$C37*'RES S curve-connect'!BF$10+'Res-Appliance class'!$D37*'RES S curve-connect'!BF$15+'Res-Appliance class'!$E37*'RES S curve-connect'!BF$20","v":11084.891623056308},{"$f":"'Res-Appliance class'!$B37*'RES S curve-connect'!BG$5+'Res-Appliance class'!$C37*'RES S curve-connect'!BG$10+'Res-Appliance class'!$D37*'RES S curve-connect'!BG$15+'Res-Appliance class'!$E37*'RES S curve-connect'!BG$20","v":12153.744163858992},{"$f":"'Res-Appliance class'!$B37*'RES S curve-connect'!BH$5+'Res-Appliance class'!$C37*'RES S curve-connect'!BH$10+'Res-Appliance class'!$D37*'RES S curve-connect'!BH$15+'Res-Appliance class'!$E37*'RES S curve-connect'!BH$20","v":13422.828759163756},{"$f":"'Res-Appliance class'!$B37*'RES S curve-connect'!BI$5+'Res-Appliance class'!$C37*'RES S curve-connect'!BI$10+'Res-Appliance class'!$D37*'RES S curve-connect'!BI$15+'Res-Appliance class'!$E37*'RES S curve-connect'!BI$20","v":15261.430163349058},{"$f":"'Res-Appliance class'!$B37*'RES S curve-connect'!BJ$5+'Res-Appliance class'!$C37*'RES S curve-connect'!BJ$10+'Res-Appliance class'!$D37*'RES S curve-connect'!BJ$15+'Res-Appliance class'!$E37*'RES S curve-connect'!BJ$20","v":17955.680383755211},{"$f":"'Res-Appliance class'!$B37*'RES S curve-connect'!BK$5+'Res-Appliance class'!$C37*'RES S curve-connect'!BK$10+'Res-Appliance class'!$D37*'RES S curve-connect'!BK$15+'Res-Appliance class'!$E37*'RES S curve-connect'!BK$20","v":21934.084900365611},{"$f":"'Res-Appliance class'!$B37*'RES S curve-connect'!BL$5+'Res-Appliance class'!$C37*'RES S curve-connect'!BL$10+'Res-Appliance class'!$D37*'RES S curve-connect'!BL$15+'Res-Appliance class'!$E37*'RES S curve-connect'!BL$20","v":-1010.4328585489736},{"$f":"'Res-Appliance class'!$B37*'RES S curve-connect'!BM$5+'Res-Appliance class'!$C37*'RES S curve-connect'!BM$10+'Res-Appliance class'!$D37*'RES S curve-connect'!BM$15+'Res-Appliance class'!$E37*'RES S curve-connect'!BM$20","v":-1005.4217438886064},{"$f":"'Res-Appliance class'!$B37*'RES S curve-connect'!BN$5+'Res-Appliance class'!$C37*'RES S curve-connect'!BN$10+'Res-Appliance class'!$D37*'RES S curve-connect'!BN$15+'Res-Appliance class'!$E37*'RES S curve-connect'!BN$20","v":-1002.6802679676831},{"$f":"'Res-Appliance class'!$B37*'RES S curve-connect'!BO$5+'Res-Appliance class'!$C37*'RES S curve-connect'!BO$10+'Res-Appliance class'!$D37*'RES S curve-connect'!BO$15+'Res-Appliance class'!$E37*'RES S curve-connect'!BO$20","v":-995.41977858548603},{"$f":"'Res-Appliance class'!$B37*'RES S curve-connect'!BP$5+'Res-Appliance class'!$C37*'RES S curve-connect'!BP$10+'Res-Appliance class'!$D37*'RES S curve-connect'!BP$15+'Res-Appliance class'!$E37*'RES S curve-connect'!BP$20","v":-990.42884700764444},{"$f":"'Res-Appliance class'!$B37*'RES S curve-connect'!BQ$5+'Res-Appliance class'!$C37*'RES S curve-connect'!BQ$10+'Res-Appliance class'!$D37*'RES S curve-connect'!BQ$15+'Res-Appliance class'!$E37*'RES S curve-connect'!BQ$20","v":-985.44456260713673},{"$f":"'Res-Appliance class'!$B37*'RES S curve-connect'!BR$5+'Res-Appliance class'!$C37*'RES S curve-connect'!BR$10+'Res-Appliance class'!$D37*'RES S curve-connect'!BR$15+'Res-Appliance class'!$E37*'RES S curve-connect'!BR$20","v":-982.72975607715603},{"$f":"'Res-Appliance class'!$B37*'RES S curve-connect'!BS$5+'Res-Appliance class'!$C37*'RES S curve-connect'!BS$10+'Res-Appliance class'!$D37*'RES S curve-connect'!BS$15+'Res-Appliance class'!$E37*'RES S curve-connect'!BS$20","v":-975.49577621509843},{"$f":"'Res-Appliance class'!$B37*'RES S curve-connect'!BT$5+'Res-Appliance class'!$C37*'RES S curve-connect'!BT$10+'Res-Appliance class'!$D37*'RES S curve-connect'!BT$15+'Res-Appliance class'!$E37*'RES S curve-connect'!BT$20","v":-970.5311952784067},{"$f":"'Res-Appliance class'!$B37*'RES S curve-connect'!BU$5+'Res-Appliance class'!$C37*'RES S curve-connect'!BU$10+'Res-Appliance class'!$D37*'RES S curve-connect'!BU$15+'Res-Appliance class'!$E37*'RES S curve-connect'!BU$20","v":-965.57310362561611},{"$f":"'Res-Appliance class'!$B37*'RES S curve-connect'!BV$5+'Res-Appliance class'!$C37*'RES S curve-connect'!BV$10+'Res-Appliance class'!$D37*'RES S curve-connect'!BV$15+'Res-Appliance class'!$E37*'RES S curve-connect'!BV$20","v":-962.88433292926152},{"$f":"'Res-Appliance class'!$B37*'RES S curve-connect'!BW$5+'Res-Appliance class'!$C37*'RES S curve-connect'!BW$10+'Res-Appliance class'!$D37*'RES S curve-connect'!BW$15+'Res-Appliance class'!$E37*'RES S curve-connect'!BW$20","v":-955.67623295990222},{"$f":"'Res-Appliance class'!$B37*'RES S curve-connect'!BX$5+'Res-Appliance class'!$C37*'RES S curve-connect'!BX$10+'Res-Appliance class'!$D37*'RES S curve-connect'!BX$15+'Res-Appliance class'!$E37*'RES S curve-connect'!BX$20","v":-950.73737694200622},{"$f":"'Res-Appliance class'!$B37*'RES S curve-connect'!BY$5+'Res-Appliance class'!$C37*'RES S curve-connect'!BY$10+'Res-Appliance class'!$D37*'RES S curve-connect'!BY$15+'Res-Appliance class'!$E37*'RES S curve-connect'!BY$20","v":-945.80485619503611},{"$f":"'Res-Appliance class'!$B37*'RES S curve-connect'!BZ$5+'Res-Appliance class'!$C37*'RES S curve-connect'!BZ$10+'Res-Appliance class'!$D37*'RES S curve-connect'!BZ$15+'Res-Appliance class'!$E37*'RES S curve-connect'!BZ$20","v":-943.14150334639442},{"$f":"'Res-Appliance class'!$B37*'RES S curve-connect'!CA$5+'Res-Appliance class'!$C37*'RES S curve-connect'!CA$10+'Res-Appliance class'!$D37*'RES S curve-connect'!CA$15+'Res-Appliance class'!$E37*'RES S curve-connect'!CA$20","v":-935.95866911548228},{"$f":"'Res-Appliance class'!$B37*'RES S curve-connect'!CB$5+'Res-Appliance class'!$C37*'RES S curve-connect'!CB$10+'Res-Appliance class'!$D37*'RES S curve-connect'!CB$15+'Res-Appliance class'!$E37*'RES S curve-connect'!CB$20","v":-931.04492766962903},{"$f":"'Res-Appliance class'!$B37*'RES S curve-connect'!CC$5+'Res-Appliance class'!$C37*'RES S curve-connect'!CC$10+'Res-Appliance class'!$D37*'RES S curve-connect'!CC$15+'Res-Appliance class'!$E37*'RES S curve-connect'!CC$20","v":-926.13737126521369},{"$f":"'Res-Appliance class'!$B37*'RES S curve-connect'!CD$5+'Res-Appliance class'!$C37*'RES S curve-connect'!CD$10+'Res-Appliance class'!$D37*'RES S curve-connect'!CD$15+'Res-Appliance class'!$E37*'RES S curve-connect'!CD$20","v":-1001.5122380471638}]
["Maroondah (C)",null,{"$f":"'Res-Appliance class'!$B38*'RES S curve-connect'!C$5+'Res-Appliance class'!$C38*'RES S curve-connect'!C$10+'Res-Appliance class'!$D38*'RES S curve-connect'!C$15+'Res-Appliance class'!$E38*'RES S curve-connect'!C$20","v":-3549.4725270131594},{"$f":"'Res-Appliance class'!$B38*'RES S curve-connect'!D$5+'Res-Appliance class'!$C38*'RES S curve-connect'!D$10+'Res-Appliance class'!$D38*'RES S curve-connect'!D$15+'Res-Appliance class'!$E38*'RES S curve-connect'!D$20","v":-3913.6428595168736},{"$f":"'Res-Appliance class'!$B38*'RES S curve-connect'!E$5+'Res-Appliance class'!$C38*'RES S curve-connect'!E$10+'Res-Appliance class'!$D38*'RES S curve-connect'!E$15+'Res-Appliance class'!$E38*'RES S curve-connect'!E$20","v":-2920.8111056117546},{"$f":"'Res-Appliance class'!$B38*'RES S curve-connect'!F$5+'Res-Appliance class'!$C38*'RES S curve-connect'!F$10+'Res-Appliance class'!$D38*'RES S curve-connect'!F$15+'Res-Appliance class'!$E38*'RES S curve-connect'!F$20","v":-2810.985786180473},{"$f":"'Res-Appliance class'!$B38*'RES S curve-connect'!G$5+'Res-Appliance class'!$C38*'RES S curve-connect'!G$10+'Res-Appliance class'!$D38*'RES S curve-connect'!G$15+'Res-Appliance class'!$E38*'RES S curve-connect'!G$20","v":-4001.7788329413793},{"$f":"'Res-Appliance class'!$B38*'RES S curve-connect'!H$5+'Res-Appliance class'!$C38*'RES S curve-connect'!H$10+'Res-Appliance class'!$D38*'RES S curve-connect'!H$15+'Res-Appliance class'!$E38*'RES S curve-connect'!H$20","v":-4030.7637892345447},{"$f":"'Res-Appliance class'!$B38*'RES S curve-connect'!I$5+'Res-Appliance class'!$C38*'RES S curve-connect'!I$10+'Res-Appliance class'!$D38*'RES S curve-connect'!I$15+'Res-Appliance class'!$E38*'RES S curve-connect'!I$20","v":-3720.2521228647911},{"$f":"'Res-Appliance class'!$B38*'RES S curve-connect'!J$5+'Res-Appliance class'!$C38*'RES S curve-connect'!J$10+'Res-Appliance class'!$D38*'RES S curve-connect'!J$15+'Res-Appliance class'!$E38*'RES S curve-connect'!J$20","v":-4088.8547291839659},{"$f":"'Res-Appliance class'!$B38*'RES S curve-connect'!K$5+'Res-Appliance class'!$C38*'RES S curve-connect'!K$10+'Res-Appliance class'!$D38*'RES S curve-connect'!K$15+'Res-Appliance class'!$E38*'RES S curve-connect'!K$20","v":-3413.76044843206},{"$f":"'Res-Appliance class'!$B38*'RES S curve-connect'!L$5+'Res-Appliance class'!$C38*'RES S curve-connect'!L$10+'Res-Appliance class'!$D38*'RES S curve-connect'!L$15+'Res-Appliance class'!$E38*'RES S curve-connect'!L$20","v":-3643.2598339716851},{"$f":"'Res-Appliance class'!$B38*'RES S curve-connect'!M$5+'Res-Appliance class'!$C38*'RES S curve-connect'!M$10+'Res-Appliance class'!$D38*'RES S curve-connect'!M$15+'Res-Appliance class'!$E38*'RES S curve-connect'!M$20","v":-4079.9510532719369},{"$f":"'Res-Appliance class'!$B38*'RES S curve-connect'!N$5+'Res-Appliance class'!$C38*'RES S curve-connect'!N$10+'Res-Appliance class'!$D38*'RES S curve-connect'!N$15+'Res-Appliance class'!$E38*'RES S curve-connect'!N$20","v":-4103.4827788161556},{"$f":"'Res-Appliance class'!$B38*'RES S curve-connect'!O$5+'Res-Appliance class'!$C38*'RES S curve-connect'!O$10+'Res-Appliance class'!$D38*'RES S curve-connect'!O$15+'Res-Appliance class'!$E38*'RES S curve-connect'!O$20","v":-3684.5633234346033},{"$f":"'Res-Appliance class'!$B38*'RES S curve-connect'!P$5+'Res-Appliance class'!$C38*'RES S curve-connect'!P$10+'Res-Appliance class'!$D38*'RES S curve-connect'!P$15+'Res-Appliance class'!$E38*'RES S curve-connect'!P$20","v":-3346.6526859639721},{"$f":"'Res-Appliance class'!$B38*'RES S curve-connect'!Q$5+'Res-Appliance class'!$C38*'RES S curve-connect'!Q$10+'Res-Appliance class'!$D38*'RES S curve-connect'!Q$15+'Res-Appliance class'!$E38*'RES S curve-connect'!Q$20","v":-2845.9370538380317},{"$f":"'Res-Appliance class'!$B38*'RES S curve-connect'!R$5+'Res-Appliance class'!$C38*'RES S curve-connect'!R$10+'Res-Appliance class'!$D38*'RES S curve-connect'!R$15+'Res-Appliance class'!$E38*'RES S curve-connect'!R$20","v":-2553.8871959343996},{"$f":"'Res-Appliance class'!$B38*'RES S curve-connect'!S$5+'Res-Appliance class'!$C38*'RES S curve-connect'!S$10+'Res-Appliance class'!$D38*'RES S curve-connect'!S$15+'Res-Appliance class'!$E38*'RES S curve-connect'!S$20","v":-2101.4395112109346},{"$f":"'Res-Appliance class'!$B38*'RES S curve-connect'!T$5+'Res-Appliance class'!$C38*'RES S curve-connect'!T$10+'Res-Appliance class'!$D38*'RES S curve-connect'!T$15+'Res-Appliance class'!$E38*'RES S curve-connect'!T$20","v":-1845.4234172996157},{"$f":"'Res-Appliance class'!$B38*'RES S curve-connect'!U$5+'Res-Appliance class'!$C38*'RES S curve-connect'!U$10+'Res-Appliance class'!$D38*'RES S curve-connect'!U$15+'Res-Appliance class'!$E38*'RES S curve-connect'!U$20","v":-1556.9857796705196},{"$f":"'Res-Appliance class'!$B38*'RES S curve-connect'!V$5+'Res-Appliance class'!$C38*'RES S curve-connect'!V$10+'Res-Appliance class'!$D38*'RES S curve-connect'!V$15+'Res-Appliance class'!$E38*'RES S curve-connect'!V$20","v":-1354.7238229471125},{"$f":"'Res-Appliance class'!$B38*'RES S curve-connect'!W$5+'Res-Appliance class'!$C38*'RES S curve-connect'!W$10+'Res-Appliance class'!$D38*'RES S curve-connect'!W$15+'Res-Appliance class'!$E38*'RES S curve-connect'!W$20","v":-1193.0715409803056},{"$f":"'Res-Appliance class'!$B38*'RES S curve-connect'!X$5+'Res-Appliance class'!$C38*'RES S curve-connect'!X$10+'Res-Appliance class'!$D38*'RES S curve-connect'!X$15+'Res-Appliance class'!$E38*'RES S curve-connect'!X$20","v":-849.14011942112165},{"$f":"'Res-Appliance class'!$B38*'RES S curve-connect'!Y$5+'Res-Appliance class'!$C38*'RES S curve-connect'!Y$10+'Res-Appliance class'!$D38*'RES S curve-connect'!Y$15+'Res-Appliance class'!$E38*'RES S curve-connect'!Y$20","v":-501.63882936944367},{"$f":"'Res-Appliance class'!$B38*'RES S curve-connect'!Z$5+'Res-Appliance class'!$C38*'RES S curve-connect'!Z$10+'Res-Appliance class'!$D38*'RES S curve-connect'!Z$15+'Res-Appliance class'!$E38*'RES S curve-connect'!Z$20","v":-260.77142741179921},{"$f":"'Res-Appliance class'!$B38*'RES S curve-connect'!AA$5+'Res-Appliance class'!$C38*'RES S curve-connect'!AA$10+'Res-Appliance class'!$D38*'RES S curve-connect'!AA$15+'Res-Appliance class'!$E38*'RES S curve-connect'!AA$20","v":-20.174020935416024},{"$f":"'Res-Appliance class'!$B38*'RES S curve-connect'!AB$5+'Res-Appliance class'!$C38*'RES S curve-connect'!AB$10+'Res-Appliance class'!$D38*'RES S curve-connect'!AB$15+'Res-Appliance class'!$E38*'RES S curve-connect'!AB$20","v":175.37662231485461},{"$f":"'Res-Appliance class'!$B38*'RES S curve-connect'!AC$5+'Res-Appliance class'!$C38*'RES S curve-connect'!AC$10+'Res-Appliance class'!$D38*'RES S curve-connect'!AC$15+'Res-Appliance class'!$E38*'RES S curve-connect'!AC$20","v":364.21151511821949},{"$f":"'Res-Appliance class'!$B38*'RES S curve-connect'!AD$5+'Res-Appliance class'!$C38*'RES S curve-connect'!AD$10+'Res-Appliance class'!$D38*'RES S curve-connect'!AD$15+'Res-Appliance class'!$E38*'RES S curve-connect'!AD$20","v":538.79519547542759},{"$f":"'Res-Appliance class'!$B38*'RES S curve-connect'!AE$5+'Res-Appliance class'!$C38*'RES S curve-connect'!AE$10+'Res-Appliance class'!$D38*'RES S curve-connect'!AE$15+'Res-Appliance class'!$E38*'RES S curve-connect'!AE$20","v":721.03400205203764},{"$f":"'Res-Appliance class'!$B38*'RES S curve-connect'!AF$5+'Res-Appliance class'!$C38*'RES S curve-connect'!AF$10+'Res-Appliance class'!$D38*'RES S curve-connect'!AF$15+'Res-Appliance class'!$E38*'RES S curve-connect'!AF$20","v":951.95746866097602},{"$f":"'Res-Appliance class'!$B38*'RES S curve-connect'!AG$5+'Res-Appliance class'!$C38*'RES S curve-connect'!AG$10+'Res-Appliance class'!$D38*'RES S curve-connect'!AG$15+'Res-Appliance class'!$E38*'RES S curve-connect'!AG$20","v":1098.8726249452006},{"$f":"'Res-Appliance class'!$B38*'RES S curve-connect'!AH$5+'Res-Appliance class'!$C38*'RES S curve-connect'!AH$10+'Res-Appliance class'!$D38*'RES S curve-connect'!AH$15+'Res-Appliance class'!$E38*'RES S curve-connect'!AH$20","v":1306.1878340896747},{"$f":"'Res-Appliance class'!$B38*'RES S curve-connect'!AI$5+'Res-Appliance class'!$C38*'RES S curve-connect'!AI$10+'Res-Appliance class'!$D38*'RES S curve-connect'!AI$15+'Res-Appliance class'!$E38*'RES S curve-connect'!AI$20","v":1492.0171705319874},{"$f":"'Res-Appliance class'!$B38*'RES S curve-connect'!AJ$5+'Res-Appliance class'!$C38*'RES S curve-connect'!AJ$10+'Res-Appliance class'!$D38*'RES S curve-connect'!AJ$15+'Res-Appliance class'!$E38*'RES S curve-connect'!AJ$20","v":1659.8342190682667},{"$f":"'Res-Appliance class'!$B38*'RES S curve-connect'!AK$5+'Res-Appliance class'!$C38*'RES S curve-connect'!AK$10+'Res-Appliance class'!$D38*'RES S curve-connect'!AK$15+'Res-Appliance class'!$E38*'RES S curve-connect'!AK$20","v":1837.9777235199335},{"$f":"'Res-Appliance class'!$B38*'RES S curve-connect'!AL$5+'Res-Appliance class'!$C38*'RES S curve-connect'!AL$10+'Res-Appliance class'!$D38*'RES S curve-connect'!AL$15+'Res-Appliance class'!$E38*'RES S curve-connect'!AL$20","v":1222.6874640850363},{"$f":"'Res-Appliance class'!$B38*'RES S curve-connect'!AM$5+'Res-Appliance class'!$C38*'RES S curve-connect'!AM$10+'Res-Appliance class'!$D38*'RES S curve-connect'!AM$15+'Res-Appliance class'!$E38*'RES S curve-connect'!AM$20","v":1141.3024305473409},{"$f":"'Res-Appliance class'!$B38*'RES S curve-connect'!AN$5+'Res-Appliance class'!$C38*'RES S curve-connect'!AN$10+'Res-Appliance class'!$D38*'RES S curve-connect'!AN$15+'Res-Appliance class'!$E38*'RES S curve-connect'!AN$20","v":1309.4911102258775},{"$f":"'Res-Appliance class'!$B38*'RES S curve-connect'!AO$5+'Res-Appliance class'!$C38*'RES S curve-connect'!AO$10+'Res-Appliance class'!$D38*'RES S curve-connect'!AO$15+'Res-Appliance class'!$E38*'RES S curve-connect'!AO$20","v":1515.6396231503857},{"$f":"'Res-Appliance class'!$B38*'RES S curve-connect'!AP$5+'Res-Appliance class'!$C38*'RES S curve-connect'!AP$10+'Res-Appliance class'!$D38*'RES S curve-connect'!AP$15+'Res-Appliance class'!$E38*'RES S curve-connect'!AP$20","v":1706.3483434485231},{"$f":"'Res-Appliance class'!$B38*'RES S curve-connect'!AQ$5+'Res-Appliance class'!$C38*'RES S curve-connect'!AQ$10+'Res-Appliance class'!$D38*'RES S curve-connect'!AQ$15+'Res-Appliance class'!$E38*'RES S curve-connect'!AQ$20","v":1911.4032121612986},{"$f":"'Res-Appliance class'!$B38*'RES S curve-connect'!AR$5+'Res-Appliance class'!$C38*'RES S curve-connect'!AR$10+'Res-Appliance class'!$D38*'RES S curve-connect'!AR$15+'Res-Appliance class'!$E38*'RES S curve-connect'!AR$20","v":2136.7130900121115},{"$f":"'Res-Appliance class'!$B38*'RES S curve-connect'!AS$5+'Res-Appliance class'!$C38*'RES S curve-connect'!AS$10+'Res-Appliance class'!$D38*'RES S curve-connect'!AS$15+'Res-Appliance class'!$E38*'RES S curve-connect'!AS$20","v":2389.5860392816116},{"$f":"'Res-Appliance class'!$B38*'RES S curve-connect'!AT$5+'Res-Appliance class'!$C38*'RES S curve-connect'!AT$10+'Res-Appliance class'!$D38*'RES S curve-connect'!AT$15+'Res-Appliance class'!$E38*'RES S curve-connect'!AT$20","v":2672.6310224742961},{"$f":"'Res-Appliance class'!$B38*'RES S curve-connect'!AU$5+'Res-Appliance class'!$C38*'RES S curve-connect'!AU$10+'Res-Appliance class'!$D38*'RES S curve-connect'!AU$15+'Res-Appliance class'!$E38*'RES S curve-connect'!AU$20","v":2999.8620670176724},{"$f":"'Res-Appliance class'!$B38*'RES S curve-connect'!AV$5+'Res-Appliance class'!$C38*'RES S curve-connect'!AV$10+'Res-Appliance class'!$D38*'RES S curve-connect'!AV$15+'Res-Appliance class'!$E38*'RES S curve-connect'!AV$20","v":3373.3623564298296},{"$f":"'Res-Appliance class'!$B38*'RES S curve-connect'!AW$5+'Res-Appliance class'!$C38*'RES S curve-connect'!AW$10+'Res-Appliance class'!$D38*'RES S curve-connect'!AW$15+'Res-Appliance class'!$E38*'RES S curve-connect'!AW$20","v":3802.7827635388194},{"$f":"'Res-Appliance class'!$B38*'RES S curve-connect'!AX$5+'Res-Appliance class'!$C38*'RES S curve-connect'!AX$10+'Res-Appliance class'!$D38*'RES S curve-connect'!AX$15+'Res-Appliance class'!$E38*'RES S curve-connect'!AX$20","v":4292.485546753257},{"$f":"'Res-Appliance class'!$B38*'RES S curve-connect'!AY$5+'Res-Appliance class'!$C38*'RES S curve-connect'!AY$10+'Res-Appliance class'!$D38*'RES S curve-connect'!AY$15+'Res-Appliance class'!$E38*'RES S curve-connect'!AY$20","v":4857.4222700342098},{"$f":"'Res-Appliance class'!$B38*'RES S curve-connect'!AZ$5+'Res-Appliance class'!$C38*'RES S curve-connect'!AZ$10+'Res-Appliance class'!$D38*'RES S curve-connect'!AZ$15+'Res-Appliance class'!$E38*'RES S curve-connect'!AZ$20","v":5503.6292669885761},{"$f":"'Res-Appliance class'!$B38*'RES S curve-connect'!BA$5+'Res-Appliance class'!$C38*'RES S curve-connect'!BA$10+'Res-Appliance class'!$D38*'RES S curve-connect'!BA$15+'Res-Appliance class'!$E38*'RES S curve-connect'!BA$20","v":6252.2717349603436},{"$f":"'Res-Appliance class'!$B38*'RES S curve-connect'!BB$5+'Res-Appliance class'!$C38*'RES S curve-connect'!BB$10+'Res-Appliance class'!$D38*'RES S curve-connect'!BB$15+'Res-Appliance class'!$E38*'RES S curve-connect'!BB$20","v":7127.4110661574232},{"$f":"'Res-Appliance class'!$B38*'RES S curve-connect'!BC$5+'Res-Appliance class'!$C38*'RES S curve-connect'!BC$10+'Res-Appliance class'!$D38*'RES S curve-connect'!BC$15+'Res-Appliance class'!$E38*'RES S curve-connect'!BC$20","v":8171.114850108871},{"$f":"'Res-Appliance class'!$B38*'RES S curve-connect'!BD$5+'Res-Appliance class'!$C38*'RES S curve-connect'!BD$10+'Res-Appliance class'!$D38*'RES S curve-connect'!BD$15+'Res-Appliance class'!$E38*'RES S curve-connect'!BD$20","v":9179.2342650871451},{"$f":"'Res-Appliance class'!$B38*'RES S curve-connect'!BE$5+'Res-Appliance class'!$C38*'RES S curve-connect'!BE$10+'Res-Appliance class'!$D38*'RES S curve-connect'!BE$15+'Res-Appliance class'!$E38*'RES S curve-connect'!BE$20","v":10101.085973439989},{"$f":"'Res-Appliance class'!$B38*'RES S curve-connect'!BF$5+'Res-Appliance class'!$C38*'RES S curve-connect'!BF$10+'Res-Appliance class'!$D38*'RES S curve-connect'!BF$15+'Res-Appliance class'!$E38*'RES S curve-connect'!BF$20","v":11044.18786487623},{"$f":"'Res-Appliance class'!$B38*'RES S curve-connect'!BG$5+'Res-Appliance class'!$C38*'RES S curve-connect'!BG$10+'Res-Appliance class'!$D38*'RES S curve-connect'!BG$15+'Res-Appliance class'!$E38*'RES S curve-connect'!BG$20","v":12111.089652136816},{"$f":"'Res-Appliance class'!$B38*'RES S curve-connect'!BH$5+'Res-Appliance class'!$C38*'RES S curve-connect'!BH$10+'Res-Appliance class'!$D38*'RES S curve-connect'!BH$15+'Res-Appliance class'!$E38*'RES S curve-connect'!BH$20","v":13377.849159266763},{"$f":"'Res-Appliance class'!$B38*'RES S curve-connect'!BI$5+'Res-Appliance class'!$C38*'RES S curve-connect'!BI$10+'Res-Appliance class'!$D38*'RES S curve-connect'!BI$15+'Res-Appliance class'!$E38*'RES S curve-connect'!BI$20","v":15213.086966456909},{"$f":"'Res-Appliance class'!$B38*'RES S curve-connect'!BJ$5+'Res-Appliance class'!$C38*'RES S curve-connect'!BJ$10+'Res-Appliance class'!$D38*'RES S curve-connect'!BJ$15+'Res-Appliance class'!$E38*'RES S curve-connect'!BJ$20","v":17902.366171422756},{"$f":"'Res-Appliance class'!$B38*'RES S curve-connect'!BK$5+'Res-Appliance class'!$C38*'RES S curve-connect'!BK$10+'Res-Appliance class'!$D38*'RES S curve-connect'!BK$15+'Res-Appliance class'!$E38*'RES S curve-connect'!BK$20","v":21873.3697909605},{"$f":"'Res-Appliance class'!$B38*'RES S curve-connect'!BL$5+'Res-Appliance class'!$C38*'RES S curve-connect'!BL$10+'Res-Appliance class'!$D38*'RES S curve-connect'!BL$15+'Res-Appliance class'!$E38*'RES S curve-connect'!BL$20","v":-1029.8340652399615},{"$f":"'Res-Appliance class'!$B38*'RES S curve-connect'!BM$5+'Res-Appliance class'!$C38*'RES S curve-connect'!BM$10+'Res-Appliance class'!$D38*'RES S curve-connect'!BM$15+'Res-Appliance class'!$E38*'RES S curve-connect'!BM$20","v":-1024.8253993908788},{"$f":"'Res-Appliance class'!$B38*'RES S curve-connect'!BN$5+'Res-Appliance class'!$C38*'RES S curve-connect'!BN$10+'Res-Appliance class'!$D38*'RES S curve-connect'!BN$15+'Res-Appliance class'!$E38*'RES S curve-connect'!BN$20","v":-1022.0864106532905},{"$f":"'Res-Appliance class'!$B38*'RES S curve-connect'!BO$5+'Res-Appliance class'!$C38*'RES S curve-connect'!BO$10+'Res-Appliance class'!$D38*'RES S curve-connect'!BO$15+'Res-Appliance class'!$E38*'RES S curve-connect'!BO$20","v":-1014.828446559558},{"$f":"'Res-Appliance class'!$B38*'RES S curve-connect'!BP$5+'Res-Appliance class'!$C38*'RES S curve-connect'!BP$10+'Res-Appliance class'!$D38*'RES S curve-connect'!BP$15+'Res-Appliance class'!$E38*'RES S curve-connect'!BP$20","v":-1009.8400781101584},{"$f":"'Res-Appliance class'!$B38*'RES S curve-connect'!BQ$5+'Res-Appliance class'!$C38*'RES S curve-connect'!BQ$10+'Res-Appliance class'!$D38*'RES S curve-connect'!BQ$15+'Res-Appliance class'!$E38*'RES S curve-connect'!BQ$20","v":-1004.8583944146776},{"$f":"'Res-Appliance class'!$B38*'RES S curve-connect'!BR$5+'Res-Appliance class'!$C38*'RES S curve-connect'!BR$10+'Res-Appliance class'!$D38*'RES S curve-connect'!BR$15+'Res-Appliance class'!$E38*'RES S curve-connect'!BR$20","v":-1002.1462259046631},{"$f":"'Res-Appliance class'!$B38*'RES S curve-connect'!BS$5+'Res-Appliance class'!$C38*'RES S curve-connect'!BS$10+'Res-Appliance class'!$D38*'RES S curve-connect'!BS$15+'Res-Appliance class'!$E38*'RES S curve-connect'!BS$20","v":-994.9149211176009},{"$f":"'Res-Appliance class'!$B38*'RES S curve-connect'!BT$5+'Res-Appliance class'!$C38*'RES S curve-connect'!BT$10+'Res-Appliance class'!$D38*'RES S curve-connect'!BT$15+'Res-Appliance class'!$E38*'RES S curve-connect'!BT$20","v":-989.95305205274883},{"$f":"'Res-Appliance class'!$B38*'RES S curve-connect'!BU$5+'Res-Appliance class'!$C38*'RES S curve-connect'!BU$10+'Res-Appliance class'!$D38*'RES S curve-connect'!BU$15+'Res-Appliance class'!$E38*'RES S curve-connect'!BU$20","v":-984.99770881217046},{"$f":"'Res-Appliance class'!$B38*'RES S curve-connect'!BV$5+'Res-Appliance class'!$C38*'RES S curve-connect'!BV$10+'Res-Appliance class'!$D38*'RES S curve-connect'!BV$15+'Res-Appliance class'!$E38*'RES S curve-connect'!BV$20","v":-982.31172281363069},{"$f":"'Res-Appliance class'!$B38*'RES S curve-connect'!BW$5+'Res-Appliance class'!$C38*'RES S curve-connect'!BW$10+'Res-Appliance class'!$D38*'RES S curve-connect'!BW$15+'Res-Appliance class'!$E38*'RES S curve-connect'!BW$20","v":-975.10644357461081},{"$f":"'Res-Appliance class'!$B38*'RES S curve-connect'!BX$5+'Res-Appliance class'!$C38*'RES S curve-connect'!BX$10+'Res-Appliance class'!$D38*'RES S curve-connect'!BX$15+'Res-Appliance class'!$E38*'RES S curve-connect'!BX$20","v":-970.17044406818047},{"$f":"'Res-Appliance class'!$B38*'RES S curve-connect'!BY$5+'Res-Appliance class'!$C38*'RES S curve-connect'!BY$10+'Res-Appliance class'!$D38*'RES S curve-connect'!BY$15+'Res-Appliance class'!$E38*'RES S curve-connect'!BY$20","v":-965.24081536407323},{"$f":"'Res-Appliance class'!$B38*'RES S curve-connect'!BZ$5+'Res-Appliance class'!$C38*'RES S curve-connect'!BZ$10+'Res-Appliance class'!$D38*'RES S curve-connect'!BZ$15+'Res-Appliance class'!$E38*'RES S curve-connect'!BZ$20","v":-962.58038984162124},{"$f":"'Res-Appliance class'!$B38*'RES S curve-connect'!CA$5+'Res-Appliance class'!$C38*'RES S curve-connect'!CA$10+'Res-Appliance class'!$D38*'RES S curve-connect'!CA$15+'Res-Appliance class'!$E38*'RES S curve-connect'!CA$20","v":-955.40051797380249},{"$f":"'Res-Appliance class'!$B38*'RES S curve-connect'!CB$5+'Res-Appliance class'!$C38*'RES S curve-connect'!CB$10+'Res-Appliance class'!$D38*'RES S curve-connect'!CB$15+'Res-Appliance class'!$E38*'RES S curve-connect'!CB$20","v":-950.48977368316014},{"$f":"'Res-Appliance class'!$B38*'RES S curve-connect'!CC$5+'Res-Appliance class'!$C38*'RES S curve-connect'!CC$10+'Res-Appliance class'!$D38*'RES S curve-connect'!CC$15+'Res-Appliance class'!$E38*'RES S curve-connect'!CC$20","v":-945.5852489829133},{"$f":"'Res-Appliance class'!$B38*'RES S curve-connect'!CD$5+'Res-Appliance class'!$C38*'RES S curve-connect'!CD$10+'Res-Appliance class'!$D38*'RES S curve-connect'!CD$15+'Res-Appliance class'!$E38*'RES S curve-connect'!CD$20","v":-1020.8093584160428}]
["Melbourne (C)",null,{"$f":"'Res-Appliance class'!$B39*'RES S curve-connect'!C$5+'Res-Appliance class'!$C39*'RES S curve-connect'!C$10+'Res-Appliance class'!$D39*'RES S curve-connect'!C$15+'Res-Appliance class'!$E39*'RES S curve-connect'!C$20","v":-2248.8931317546098},{"$f":"'Res-Appliance class'!$B39*'RES S curve-connect'!D$5+'Res-Appliance class'!$C39*'RES S curve-connect'!D$10+'Res-Appliance class'!$D39*'RES S curve-connect'!D$15+'Res-Appliance class'!$E39*'RES S curve-connect'!D$20","v":-2454.596533471276},{"$f":"'Res-Appliance class'!$B39*'RES S curve-connect'!E$5+'Res-Appliance class'!$C39*'RES S curve-connect'!E$10+'Res-Appliance class'!$D39*'RES S curve-connect'!E$15+'Res-Appliance class'!$E39*'RES S curve-connect'!E$20","v":-1991.4798226811004},{"$f":"'Res-Appliance class'!$B39*'RES S curve-connect'!F$5+'Res-Appliance class'!$C39*'RES S curve-connect'!F$10+'Res-Appliance class'!$D39*'RES S curve-connect'!F$15+'Res-Appliance class'!$E39*'RES S curve-connect'!F$20","v":-1938.4341398780753},{"$f":"'Res-Appliance class'!$B39*'RES S curve-connect'!G$5+'Res-Appliance class'!$C39*'RES S curve-connect'!G$10+'Res-Appliance class'!$D39*'RES S curve-connect'!G$15+'Res-Appliance class'!$E39*'RES S curve-connect'!G$20","v":-2408.4031432167312},{"$f":"'Res-Appliance class'!$B39*'RES S curve-connect'!H$5+'Res-Appliance class'!$C39*'RES S curve-connect'!H$10+'Res-Appliance class'!$D39*'RES S curve-connect'!H$15+'Res-Appliance class'!$E39*'RES S curve-connect'!H$20","v":-2442.7580504756634},{"$f":"'Res-Appliance class'!$B39*'RES S curve-connect'!I$5+'Res-Appliance class'!$C39*'RES S curve-connect'!I$10+'Res-Appliance class'!$D39*'RES S curve-connect'!I$15+'Res-Appliance class'!$E39*'RES S curve-connect'!I$20","v":-2279.8472890042149},{"$f":"'Res-Appliance class'!$B39*'RES S curve-connect'!J$5+'Res-Appliance class'!$C39*'RES S curve-connect'!J$10+'Res-Appliance class'!$D39*'RES S curve-connect'!J$15+'Res-Appliance class'!$E39*'RES S curve-connect'!J$20","v":-2565.5105688859758},{"$f":"'Res-Appliance class'!$B39*'RES S curve-connect'!K$5+'Res-Appliance class'!$C39*'RES S curve-connect'!K$10+'Res-Appliance class'!$D39*'RES S curve-connect'!K$15+'Res-Appliance class'!$E39*'RES S curve-connect'!K$20","v":-2179.0557750739154},{"$f":"'Res-Appliance class'!$B39*'RES S curve-connect'!L$5+'Res-Appliance class'!$C39*'RES S curve-connect'!L$10+'Res-Appliance class'!$D39*'RES S curve-connect'!L$15+'Res-Appliance class'!$E39*'RES S curve-connect'!L$20","v":-2305.2842694952387},{"$f":"'Res-Appliance class'!$B39*'RES S curve-connect'!M$5+'Res-Appliance class'!$C39*'RES S curve-connect'!M$10+'Res-Appliance class'!$D39*'RES S curve-connect'!M$15+'Res-Appliance class'!$E39*'RES S curve-connect'!M$20","v":-2518.6573450033834},{"$f":"'Res-Appliance class'!$B39*'RES S curve-connect'!N$5+'Res-Appliance class'!$C39*'RES S curve-connect'!N$10+'Res-Appliance class'!$D39*'RES S curve-connect'!N$15+'Res-Appliance class'!$E39*'RES S curve-connect'!N$20","v":-2527.457850013493},{"$f":"'Res-Appliance class'!$B39*'RES S curve-connect'!O$5+'Res-Appliance class'!$C39*'RES S curve-connect'!O$10+'Res-Appliance class'!$D39*'RES S curve-connect'!O$15+'Res-Appliance class'!$E39*'RES S curve-connect'!O$20","v":-2294.2253014464541},{"$f":"'Res-Appliance class'!$B39*'RES S curve-connect'!P$5+'Res-Appliance class'!$C39*'RES S curve-connect'!P$10+'Res-Appliance class'!$D39*'RES S curve-connect'!P$15+'Res-Appliance class'!$E39*'RES S curve-connect'!P$20","v":-2109.1707794823042},{"$f":"'Res-Appliance class'!$B39*'RES S curve-connect'!Q$5+'Res-Appliance class'!$C39*'RES S curve-connect'!Q$10+'Res-Appliance class'!$D39*'RES S curve-connect'!Q$15+'Res-Appliance class'!$E39*'RES S curve-connect'!Q$20","v":-1836.6199110465288},{"$f":"'Res-Appliance class'!$B39*'RES S curve-connect'!R$5+'Res-Appliance class'!$C39*'RES S curve-connect'!R$10+'Res-Appliance class'!$D39*'RES S curve-connect'!R$15+'Res-Appliance class'!$E39*'RES S curve-connect'!R$20","v":-1676.957351685814},{"$f":"'Res-Appliance class'!$B39*'RES S curve-connect'!S$5+'Res-Appliance class'!$C39*'RES S curve-connect'!S$10+'Res-Appliance class'!$D39*'RES S curve-connect'!S$15+'Res-Appliance class'!$E39*'RES S curve-connect'!S$20","v":-1423.9619369324073},{"$f":"'Res-Appliance class'!$B39*'RES S curve-connect'!T$5+'Res-Appliance class'!$C39*'RES S curve-connect'!T$10+'Res-Appliance class'!$D39*'RES S curve-connect'!T$15+'Res-Appliance class'!$E39*'RES S curve-connect'!T$20","v":-1295.2774658550888},{"$f":"'Res-Appliance class'!$B39*'RES S curve-connect'!U$5+'Res-Appliance class'!$C39*'RES S curve-connect'!U$10+'Res-Appliance class'!$D39*'RES S curve-connect'!U$15+'Res-Appliance class'!$E39*'RES S curve-connect'!U$20","v":-1140.141554954537},{"$f":"'Res-Appliance class'!$B39*'RES S curve-connect'!V$5+'Res-Appliance class'!$C39*'RES S curve-connect'!V$10+'Res-Appliance class'!$D39*'RES S curve-connect'!V$15+'Res-Appliance class'!$E39*'RES S curve-connect'!V$20","v":-1027.0973801201262},{"$f":"'Res-Appliance class'!$B39*'RES S curve-connect'!W$5+'Res-Appliance class'!$C39*'RES S curve-connect'!W$10+'Res-Appliance class'!$D39*'RES S curve-connect'!W$15+'Res-Appliance class'!$E39*'RES S curve-connect'!W$20","v":-935.83898554427378},{"$f":"'Res-Appliance class'!$B39*'RES S curve-connect'!X$5+'Res-Appliance class'!$C39*'RES S curve-connect'!X$10+'Res-Appliance class'!$D39*'RES S curve-connect'!X$15+'Res-Appliance class'!$E39*'RES S curve-connect'!X$20","v":-752.23092641166954},{"$f":"'Res-Appliance class'!$B39*'RES S curve-connect'!Y$5+'Res-Appliance class'!$C39*'RES S curve-connect'!Y$10+'Res-Appliance class'!$D39*'RES S curve-connect'!Y$15+'Res-Appliance class'!$E39*'RES S curve-connect'!Y$20","v":-565.16938925574436},{"$f":"'Res-Appliance class'!$B39*'RES S curve-connect'!Z$5+'Res-Appliance class'!$C39*'RES S curve-connect'!Z$10+'Res-Appliance class'!$D39*'RES S curve-connect'!Z$15+'Res-Appliance class'!$E39*'RES S curve-connect'!Z$20","v":-433.69886741778788},{"$f":"'Res-Appliance class'!$B39*'RES S curve-connect'!AA$5+'Res-Appliance class'!$C39*'RES S curve-connect'!AA$10+'Res-Appliance class'!$D39*'RES S curve-connect'!AA$15+'Res-Appliance class'!$E39*'RES S curve-connect'!AA$20","v":-300.54998692514437},{"$f":"'Res-Appliance class'!$B39*'RES S curve-connect'!AB$5+'Res-Appliance class'!$C39*'RES S curve-connect'!AB$10+'Res-Appliance class'!$D39*'RES S curve-connect'!AB$15+'Res-Appliance class'!$E39*'RES S curve-connect'!AB$20","v":-190.68896888656684},{"$f":"'Res-Appliance class'!$B39*'RES S curve-connect'!AC$5+'Res-Appliance class'!$C39*'RES S curve-connect'!AC$10+'Res-Appliance class'!$D39*'RES S curve-connect'!AC$15+'Res-Appliance class'!$E39*'RES S curve-connect'!AC$20","v":-83.31156517808418},{"$f":"'Res-Appliance class'!$B39*'RES S curve-connect'!AD$5+'Res-Appliance class'!$C39*'RES S curve-connect'!AD$10+'Res-Appliance class'!$D39*'RES S curve-connect'!AD$15+'Res-Appliance class'!$E39*'RES S curve-connect'!AD$20","v":16.230514349454893},{"$f":"'Res-Appliance class'!$B39*'RES S curve-connect'!AE$5+'Res-Appliance class'!$C39*'RES S curve-connect'!AE$10+'Res-Appliance class'!$D39*'RES S curve-connect'!AE$15+'Res-Appliance class'!$E39*'RES S curve-connect'!AE$20","v":122.60089925988746},{"$f":"'Res-Appliance class'!$B39*'RES S curve-connect'!AF$5+'Res-Appliance class'!$C39*'RES S curve-connect'!AF$10+'Res-Appliance class'!$D39*'RES S curve-connect'!AF$15+'Res-Appliance class'!$E39*'RES S curve-connect'!AF$20","v":253.4035192387966},{"$f":"'Res-Appliance class'!$B39*'RES S curve-connect'!AG$5+'Res-Appliance class'!$C39*'RES S curve-connect'!AG$10+'Res-Appliance class'!$D39*'RES S curve-connect'!AG$15+'Res-Appliance class'!$E39*'RES S curve-connect'!AG$20","v":335.76125871208694},{"$f":"'Res-Appliance class'!$B39*'RES S curve-connect'!AH$5+'Res-Appliance class'!$C39*'RES S curve-connect'!AH$10+'Res-Appliance class'!$D39*'RES S curve-connect'!AH$15+'Res-Appliance class'!$E39*'RES S curve-connect'!AH$20","v":446.74929549294359},{"$f":"'Res-Appliance class'!$B39*'RES S curve-connect'!AI$5+'Res-Appliance class'!$C39*'RES S curve-connect'!AI$10+'Res-Appliance class'!$D39*'RES S curve-connect'!AI$15+'Res-Appliance class'!$E39*'RES S curve-connect'!AI$20","v":550.99815578971879},{"$f":"'Res-Appliance class'!$B39*'RES S curve-connect'!AJ$5+'Res-Appliance class'!$C39*'RES S curve-connect'!AJ$10+'Res-Appliance class'!$D39*'RES S curve-connect'!AJ$15+'Res-Appliance class'!$E39*'RES S curve-connect'!AJ$20","v":644.14359855019165},{"$f":"'Res-Appliance class'!$B39*'RES S curve-connect'!AK$5+'Res-Appliance class'!$C39*'RES S curve-connect'!AK$10+'Res-Appliance class'!$D39*'RES S curve-connect'!AK$15+'Res-Appliance class'!$E39*'RES S curve-connect'!AK$20","v":743.19332912585708},{"$f":"'Res-Appliance class'!$B39*'RES S curve-connect'!AL$5+'Res-Appliance class'!$C39*'RES S curve-connect'!AL$10+'Res-Appliance class'!$D39*'RES S curve-connect'!AL$15+'Res-Appliance class'!$E39*'RES S curve-connect'!AL$20","v":388.06716215327759},{"$f":"'Res-Appliance class'!$B39*'RES S curve-connect'!AM$5+'Res-Appliance class'!$C39*'RES S curve-connect'!AM$10+'Res-Appliance class'!$D39*'RES S curve-connect'!AM$15+'Res-Appliance class'!$E39*'RES S curve-connect'!AM$20","v":348.28093004751668},{"$f":"'Res-Appliance class'!$B39*'RES S curve-connect'!AN$5+'Res-Appliance class'!$C39*'RES S curve-connect'!AN$10+'Res-Appliance class'!$D39*'RES S curve-connect'!AN$15+'Res-Appliance class'!$E39*'RES S curve-connect'!AN$20","v":445.4969047184012},{"$f":"'Res-Appliance class'!$B39*'RES S curve-connect'!AO$5+'Res-Appliance class'!$C39*'RES S curve-connect'!AO$10+'Res-Appliance class'!$D39*'RES S curve-connect'!AO$15+'Res-Appliance class'!$E39*'RES S curve-connect'!AO$20","v":561.15829005205831},{"$f":"'Res-Appliance class'!$B39*'RES S curve-connect'!AP$5+'Res-Appliance class'!$C39*'RES S curve-connect'!AP$10+'Res-Appliance class'!$D39*'RES S curve-connect'!AP$15+'Res-Appliance class'!$E39*'RES S curve-connect'!AP$20","v":666.08074037132087},{"$f":"'Res-Appliance class'!$B39*'RES S curve-connect'!AQ$5+'Res-Appliance class'!$C39*'RES S curve-connect'!AQ$10+'Res-Appliance class'!$D39*'RES S curve-connect'!AQ$15+'Res-Appliance class'!$E39*'RES S curve-connect'!AQ$20","v":781.00273646516939},{"$f":"'Res-Appliance class'!$B39*'RES S curve-connect'!AR$5+'Res-Appliance class'!$C39*'RES S curve-connect'!AR$10+'Res-Appliance class'!$D39*'RES S curve-connect'!AR$15+'Res-Appliance class'!$E39*'RES S curve-connect'!AR$20","v":906.05451108616546},{"$f":"'Res-Appliance class'!$B39*'RES S curve-connect'!AS$5+'Res-Appliance class'!$C39*'RES S curve-connect'!AS$10+'Res-Appliance class'!$D39*'RES S curve-connect'!AS$15+'Res-Appliance class'!$E39*'RES S curve-connect'!AS$20","v":1046.0938591659967},{"$f":"'Res-Appliance class'!$B39*'RES S curve-connect'!AT$5+'Res-Appliance class'!$C39*'RES S curve-connect'!AT$10+'Res-Appliance class'!$D39*'RES S curve-connect'!AT$15+'Res-Appliance class'!$E39*'RES S curve-connect'!AT$20","v":1201.4338602493156},{"$f":"'Res-Appliance class'!$B39*'RES S curve-connect'!AU$5+'Res-Appliance class'!$C39*'RES S curve-connect'!AU$10+'Res-Appliance class'!$D39*'RES S curve-connect'!AU$15+'Res-Appliance class'!$E39*'RES S curve-connect'!AU$20","v":1382.7423484408973},{"$f":"'Res-Appliance class'!$B39*'RES S curve-connect'!AV$5+'Res-Appliance class'!$C39*'RES S curve-connect'!AV$10+'Res-Appliance class'!$D39*'RES S curve-connect'!AV$15+'Res-Appliance class'!$E39*'RES S curve-connect'!AV$20","v":1587.9412689054852},{"$f":"'Res-Appliance class'!$B39*'RES S curve-connect'!AW$5+'Res-Appliance class'!$C39*'RES S curve-connect'!AW$10+'Res-Appliance class'!$D39*'RES S curve-connect'!AW$15+'Res-Appliance class'!$E39*'RES S curve-connect'!AW$20","v":1823.0437290147797},{"$f":"'Res-Appliance class'!$B39*'RES S curve-connect'!AX$5+'Res-Appliance class'!$C39*'RES S curve-connect'!AX$10+'Res-Appliance class'!$D39*'RES S curve-connect'!AX$15+'Res-Appliance class'!$E39*'RES S curve-connect'!AX$20","v":2089.0300391726532},{"$f":"'Res-Appliance class'!$B39*'RES S curve-connect'!AY$5+'Res-Appliance class'!$C39*'RES S curve-connect'!AY$10+'Res-Appliance class'!$D39*'RES S curve-connect'!AY$15+'Res-Appliance class'!$E39*'RES S curve-connect'!AY$20","v":2396.7384131465078},{"$f":"'Res-Appliance class'!$B39*'RES S curve-connect'!AZ$5+'Res-Appliance class'!$C39*'RES S curve-connect'!AZ$10+'Res-Appliance class'!$D39*'RES S curve-connect'!AZ$15+'Res-Appliance class'!$E39*'RES S curve-connect'!AZ$20","v":2745.9182189965868},{"$f":"'Res-Appliance class'!$B39*'RES S curve-connect'!BA$5+'Res-Appliance class'!$C39*'RES S curve-connect'!BA$10+'Res-Appliance class'!$D39*'RES S curve-connect'!BA$15+'Res-Appliance class'!$E39*'RES S curve-connect'!BA$20","v":3148.5396519974656},{"$f":"'Res-Appliance class'!$B39*'RES S curve-connect'!BB$5+'Res-Appliance class'!$C39*'RES S curve-connect'!BB$10+'Res-Appliance class'!$D39*'RES S curve-connect'!BB$15+'Res-Appliance class'!$E39*'RES S curve-connect'!BB$20","v":3615.8077248068853},{"$f":"'Res-Appliance class'!$B39*'RES S curve-connect'!BC$5+'Res-Appliance class'!$C39*'RES S curve-connect'!BC$10+'Res-Appliance class'!$D39*'RES S curve-connect'!BC$15+'Res-Appliance class'!$E39*'RES S curve-connect'!BC$20","v":4172.4742348948239},{"$f":"'Res-Appliance class'!$B39*'RES S curve-connect'!BD$5+'Res-Appliance class'!$C39*'RES S curve-connect'!BD$10+'Res-Appliance class'!$D39*'RES S curve-connect'!BD$15+'Res-Appliance class'!$E39*'RES S curve-connect'!BD$20","v":4701.4134041507687},{"$f":"'Res-Appliance class'!$B39*'RES S curve-connect'!BE$5+'Res-Appliance class'!$C39*'RES S curve-connect'!BE$10+'Res-Appliance class'!$D39*'RES S curve-connect'!BE$15+'Res-Appliance class'!$E39*'RES S curve-connect'!BE$20","v":5182.1661768685353},{"$f":"'Res-Appliance class'!$B39*'RES S curve-connect'!BF$5+'Res-Appliance class'!$C39*'RES S curve-connect'!BF$10+'Res-Appliance class'!$D39*'RES S curve-connect'!BF$15+'Res-Appliance class'!$E39*'RES S curve-connect'!BF$20","v":5674.8666374271306},{"$f":"'Res-Appliance class'!$B39*'RES S curve-connect'!BG$5+'Res-Appliance class'!$C39*'RES S curve-connect'!BG$10+'Res-Appliance class'!$D39*'RES S curve-connect'!BG$15+'Res-Appliance class'!$E39*'RES S curve-connect'!BG$20","v":6235.5423761618731},{"$f":"'Res-Appliance class'!$B39*'RES S curve-connect'!BH$5+'Res-Appliance class'!$C39*'RES S curve-connect'!BH$10+'Res-Appliance class'!$D39*'RES S curve-connect'!BH$15+'Res-Appliance class'!$E39*'RES S curve-connect'!BH$20","v":6899.286773927377},{"$f":"'Res-Appliance class'!$B39*'RES S curve-connect'!BI$5+'Res-Appliance class'!$C39*'RES S curve-connect'!BI$10+'Res-Appliance class'!$D39*'RES S curve-connect'!BI$15+'Res-Appliance class'!$E39*'RES S curve-connect'!BI$20","v":7862.9670422522067},{"$f":"'Res-Appliance class'!$B39*'RES S curve-connect'!BJ$5+'Res-Appliance class'!$C39*'RES S curve-connect'!BJ$10+'Res-Appliance class'!$D39*'RES S curve-connect'!BJ$15+'Res-Appliance class'!$E39*'RES S curve-connect'!BJ$20","v":9265.028016701548},{"$f":"'Res-Appliance class'!$B39*'RES S curve-connect'!BK$5+'Res-Appliance class'!$C39*'RES S curve-connect'!BK$10+'Res-Appliance class'!$D39*'RES S curve-connect'!BK$15+'Res-Appliance class'!$E39*'RES S curve-connect'!BK$20","v":11320.466326278362},{"$f":"'Res-Appliance class'!$B39*'RES S curve-connect'!BL$5+'Res-Appliance class'!$C39*'RES S curve-connect'!BL$10+'Res-Appliance class'!$D39*'RES S curve-connect'!BL$15+'Res-Appliance class'!$E39*'RES S curve-connect'!BL$20","v":-900.80180756345203},{"$f":"'Res-Appliance class'!$B39*'RES S curve-connect'!BM$5+'Res-Appliance class'!$C39*'RES S curve-connect'!BM$10+'Res-Appliance class'!$D39*'RES S curve-connect'!BM$15+'Res-Appliance class'!$E39*'RES S curve-connect'!BM$20","v":-898.11924619785907},{"$f":"'Res-Appliance class'!$B39*'RES S curve-connect'!BN$5+'Res-Appliance class'!$C39*'RES S curve-connect'!BN$10+'Res-Appliance class'!$D39*'RES S curve-connect'!BN$15+'Res-Appliance class'!$E39*'RES S curve-connect'!BN$20","v":-897.70412888400915},{"$f":"'Res-Appliance class'!$B39*'RES S curve-connect'!BO$5+'Res-Appliance class'!$C39*'RES S curve-connect'!BO$10+'Res-Appliance class'!$D39*'RES S curve-connect'!BO$15+'Res-Appliance class'!$E39*'RES S curve-connect'!BO$20","v":-892.76781576018288},{"$f":"'Res-Appliance class'!$B39*'RES S curve-connect'!BP$5+'Res-Appliance class'!$C39*'RES S curve-connect'!BP$10+'Res-Appliance class'!$D39*'RES S curve-connect'!BP$15+'Res-Appliance class'!$E39*'RES S curve-connect'!BP$20","v":-890.09889035698575},{"$f":"'Res-Appliance class'!$B39*'RES S curve-connect'!BQ$5+'Res-Appliance class'!$C39*'RES S curve-connect'!BQ$10+'Res-Appliance class'!$D39*'RES S curve-connect'!BQ$15+'Res-Appliance class'!$E39*'RES S curve-connect'!BQ$20","v":-887.4344542388136},{"$f":"'Res-Appliance class'!$B39*'RES S curve-connect'!BR$5+'Res-Appliance class'!$C39*'RES S curve-connect'!BR$10+'Res-Appliance class'!$D39*'RES S curve-connect'!BR$15+'Res-Appliance class'!$E39*'RES S curve-connect'!BR$20","v":-887.0373502171733},{"$f":"'Res-Appliance class'!$B39*'RES S curve-connect'!BS$5+'Res-Appliance class'!$C39*'RES S curve-connect'!BS$10+'Res-Appliance class'!$D39*'RES S curve-connect'!BS$15+'Res-Appliance class'!$E39*'RES S curve-connect'!BS$20","v":-882.11893913512438},{"$f":"'Res-Appliance class'!$B39*'RES S curve-connect'!BT$5+'Res-Appliance class'!$C39*'RES S curve-connect'!BT$10+'Res-Appliance class'!$D39*'RES S curve-connect'!BT$15+'Res-Appliance class'!$E39*'RES S curve-connect'!BT$20","v":-879.46780522357483},{"$f":"'Res-Appliance class'!$B39*'RES S curve-connect'!BU$5+'Res-Appliance class'!$C39*'RES S curve-connect'!BU$10+'Res-Appliance class'!$D39*'RES S curve-connect'!BU$15+'Res-Appliance class'!$E39*'RES S curve-connect'!BU$20","v":-876.82105074277422},{"$f":"'Res-Appliance class'!$B39*'RES S curve-connect'!BV$5+'Res-Appliance class'!$C39*'RES S curve-connect'!BV$10+'Res-Appliance class'!$D39*'RES S curve-connect'!BV$15+'Res-Appliance class'!$E39*'RES S curve-connect'!BV$20","v":-876.44151919566434},{"$f":"'Res-Appliance class'!$B39*'RES S curve-connect'!BW$5+'Res-Appliance class'!$C39*'RES S curve-connect'!BW$10+'Res-Appliance class'!$D39*'RES S curve-connect'!BW$15+'Res-Appliance class'!$E39*'RES S curve-connect'!BW$20","v":-871.54057211234795},{"$f":"'Res-Appliance class'!$B39*'RES S curve-connect'!BX$5+'Res-Appliance class'!$C39*'RES S curve-connect'!BX$10+'Res-Appliance class'!$D39*'RES S curve-connect'!BX$15+'Res-Appliance class'!$E39*'RES S curve-connect'!BX$20","v":-868.90679440641236},{"$f":"'Res-Appliance class'!$B39*'RES S curve-connect'!BY$5+'Res-Appliance class'!$C39*'RES S curve-connect'!BY$10+'Res-Appliance class'!$D39*'RES S curve-connect'!BY$15+'Res-Appliance class'!$E39*'RES S curve-connect'!BY$20","v":-866.27728901645196},{"$f":"'Res-Appliance class'!$B39*'RES S curve-connect'!BZ$5+'Res-Appliance class'!$C39*'RES S curve-connect'!BZ$10+'Res-Appliance class'!$D39*'RES S curve-connect'!BZ$15+'Res-Appliance class'!$E39*'RES S curve-connect'!BZ$20","v":-865.91490011944518},{"$f":"'Res-Appliance class'!$B39*'RES S curve-connect'!CA$5+'Res-Appliance class'!$C39*'RES S curve-connect'!CA$10+'Res-Appliance class'!$D39*'RES S curve-connect'!CA$15+'Res-Appliance class'!$E39*'RES S curve-connect'!CA$20","v":-861.03098991524985},{"$f":"'Res-Appliance class'!$B39*'RES S curve-connect'!CB$5+'Res-Appliance class'!$C39*'RES S curve-connect'!CB$10+'Res-Appliance class'!$D39*'RES S curve-connect'!CB$15+'Res-Appliance class'!$E39*'RES S curve-connect'!CB$20","v":-858.41414398295569},{"$f":"'Res-Appliance class'!$B39*'RES S curve-connect'!CC$5+'Res-Appliance class'!$C39*'RES S curve-connect'!CC$10+'Res-Appliance class'!$D39*'RES S curve-connect'!CC$15+'Res-Appliance class'!$E39*'RES S curve-connect'!CC$20","v":-855.80146592243364},{"$f":"'Res-Appliance class'!$B39*'RES S curve-connect'!CD$5+'Res-Appliance class'!$C39*'RES S curve-connect'!CD$10+'Res-Appliance class'!$D39*'RES S curve-connect'!CD$15+'Res-Appliance class'!$E39*'RES S curve-connect'!CD$20","v":-893.53716132044042}]
["Monash (C)",null,{"$f":"'Res-Appliance class'!$B40*'RES S curve-connect'!C$5+'Res-Appliance class'!$C40*'RES S curve-connect'!C$10+'Res-Appliance class'!$D40*'RES S curve-connect'!C$15+'Res-Appliance class'!$E40*'RES S curve-connect'!C$20","v":-3467.372381520594},{"$f":"'Res-Appliance class'!$B40*'RES S curve-connect'!D$5+'Res-Appliance class'!$C40*'RES S curve-connect'!D$10+'Res-Appliance class'!$D40*'RES S curve-connect'!D$15+'Res-Appliance class'!$E40*'RES S curve-connect'!D$20","v":-3816.0870474475842},{"$f":"'Res-Appliance class'!$B40*'RES S curve-connect'!E$5+'Res-Appliance class'!$C40*'RES S curve-connect'!E$10+'Res-Appliance class'!$D40*'RES S curve-connect'!E$15+'Res-Appliance class'!$E40*'RES S curve-connect'!E$20","v":-2880.3307766894422},{"$f":"'Res-Appliance class'!$B40*'RES S curve-connect'!F$5+'Res-Appliance class'!$C40*'RES S curve-connect'!F$10+'Res-Appliance class'!$D40*'RES S curve-connect'!F$15+'Res-Appliance class'!$E40*'RES S curve-connect'!F$20","v":-2776.0895205180204},{"$f":"'Res-Appliance class'!$B40*'RES S curve-connect'!G$5+'Res-Appliance class'!$C40*'RES S curve-connect'!G$10+'Res-Appliance class'!$D40*'RES S curve-connect'!G$15+'Res-Appliance class'!$E40*'RES S curve-connect'!G$20","v":-3875.5640735174425},{"$f":"'Res-Appliance class'!$B40*'RES S curve-connect'!H$5+'Res-Appliance class'!$C40*'RES S curve-connect'!H$10+'Res-Appliance class'!$D40*'RES S curve-connect'!H$15+'Res-Appliance class'!$E40*'RES S curve-connect'!H$20","v":-3910.6708014793321},{"$f":"'Res-Appliance class'!$B40*'RES S curve-connect'!I$5+'Res-Appliance class'!$C40*'RES S curve-connect'!I$10+'Res-Appliance class'!$D40*'RES S curve-connect'!I$15+'Res-Appliance class'!$E40*'RES S curve-connect'!I$20","v":-3615.4197944330699},{"$f":"'Res-Appliance class'!$B40*'RES S curve-connect'!J$5+'Res-Appliance class'!$C40*'RES S curve-connect'!J$10+'Res-Appliance class'!$D40*'RES S curve-connect'!J$15+'Res-Appliance class'!$E40*'RES S curve-connect'!J$20","v":-3983.9143019433886},{"$f":"'Res-Appliance class'!$B40*'RES S curve-connect'!K$5+'Res-Appliance class'!$C40*'RES S curve-connect'!K$10+'Res-Appliance class'!$D40*'RES S curve-connect'!K$15+'Res-Appliance class'!$E40*'RES S curve-connect'!K$20","v":-3337.1418282933951},{"$f":"'Res-Appliance class'!$B40*'RES S curve-connect'!L$5+'Res-Appliance class'!$C40*'RES S curve-connect'!L$10+'Res-Appliance class'!$D40*'RES S curve-connect'!L$15+'Res-Appliance class'!$E40*'RES S curve-connect'!L$20","v":-3556.1247223321307},{"$f":"'Res-Appliance class'!$B40*'RES S curve-connect'!M$5+'Res-Appliance class'!$C40*'RES S curve-connect'!M$10+'Res-Appliance class'!$D40*'RES S curve-connect'!M$15+'Res-Appliance class'!$E40*'RES S curve-connect'!M$20","v":-3968.6100231100017},{"$f":"'Res-Appliance class'!$B40*'RES S curve-connect'!N$5+'Res-Appliance class'!$C40*'RES S curve-connect'!N$10+'Res-Appliance class'!$D40*'RES S curve-connect'!N$15+'Res-Appliance class'!$E40*'RES S curve-connect'!N$20","v":-3990.119451072906},{"$f":"'Res-Appliance class'!$B40*'RES S curve-connect'!O$5+'Res-Appliance class'!$C40*'RES S curve-connect'!O$10+'Res-Appliance class'!$D40*'RES S curve-connect'!O$15+'Res-Appliance class'!$E40*'RES S curve-connect'!O$20","v":-3589.9038884050742},{"$f":"'Res-Appliance class'!$B40*'RES S curve-connect'!P$5+'Res-Appliance class'!$C40*'RES S curve-connect'!P$10+'Res-Appliance class'!$D40*'RES S curve-connect'!P$15+'Res-Appliance class'!$E40*'RES S curve-connect'!P$20","v":-3267.4699380467132},{"$f":"'Res-Appliance class'!$B40*'RES S curve-connect'!Q$5+'Res-Appliance class'!$C40*'RES S curve-connect'!Q$10+'Res-Appliance class'!$D40*'RES S curve-connect'!Q$15+'Res-Appliance class'!$E40*'RES S curve-connect'!Q$20","v":-2790.0690767137166},{"$f":"'Res-Appliance class'!$B40*'RES S curve-connect'!R$5+'Res-Appliance class'!$C40*'RES S curve-connect'!R$10+'Res-Appliance class'!$D40*'RES S curve-connect'!R$15+'Res-Appliance class'!$E40*'RES S curve-connect'!R$20","v":-2511.3797917178772},{"$f":"'Res-Appliance class'!$B40*'RES S curve-connect'!S$5+'Res-Appliance class'!$C40*'RES S curve-connect'!S$10+'Res-Appliance class'!$D40*'RES S curve-connect'!S$15+'Res-Appliance class'!$E40*'RES S curve-connect'!S$20","v":-2079.3117160209235},{"$f":"'Res-Appliance class'!$B40*'RES S curve-connect'!T$5+'Res-Appliance class'!$C40*'RES S curve-connect'!T$10+'Res-Appliance class'!$D40*'RES S curve-connect'!T$15+'Res-Appliance class'!$E40*'RES S curve-connect'!T$20","v":-1836.0680195530508},{"$f":"'Res-Appliance class'!$B40*'RES S curve-connect'!U$5+'Res-Appliance class'!$C40*'RES S curve-connect'!U$10+'Res-Appliance class'!$D40*'RES S curve-connect'!U$15+'Res-Appliance class'!$E40*'RES S curve-connect'!U$20","v":-1561.0057007512701},{"$f":"'Res-Appliance class'!$B40*'RES S curve-connect'!V$5+'Res-Appliance class'!$C40*'RES S curve-connect'!V$10+'Res-Appliance class'!$D40*'RES S curve-connect'!V$15+'Res-Appliance class'!$E40*'RES S curve-connect'!V$20","v":-1367.4605197875271},{"$f":"'Res-Appliance class'!$B40*'RES S curve-connect'!W$5+'Res-Appliance class'!$C40*'RES S curve-connect'!W$10+'Res-Appliance class'!$D40*'RES S curve-connect'!W$15+'Res-Appliance class'!$E40*'RES S curve-connect'!W$20","v":-1212.6941878878756},{"$f":"'Res-Appliance class'!$B40*'RES S curve-connect'!X$5+'Res-Appliance class'!$C40*'RES S curve-connect'!X$10+'Res-Appliance class'!$D40*'RES S curve-connect'!X$15+'Res-Appliance class'!$E40*'RES S curve-connect'!X$20","v":-885.10072604366223},{"$f":"'Res-Appliance class'!$B40*'RES S curve-connect'!Y$5+'Res-Appliance class'!$C40*'RES S curve-connect'!Y$10+'Res-Appliance class'!$D40*'RES S curve-connect'!Y$15+'Res-Appliance class'!$E40*'RES S curve-connect'!Y$20","v":-553.94682640461656},{"$f":"'Res-Appliance class'!$B40*'RES S curve-connect'!Z$5+'Res-Appliance class'!$C40*'RES S curve-connect'!Z$10+'Res-Appliance class'!$D40*'RES S curve-connect'!Z$15+'Res-Appliance class'!$E40*'RES S curve-connect'!Z$20","v":-324.05887187495699},{"$f":"'Res-Appliance class'!$B40*'RES S curve-connect'!AA$5+'Res-Appliance class'!$C40*'RES S curve-connect'!AA$10+'Res-Appliance class'!$D40*'RES S curve-connect'!AA$15+'Res-Appliance class'!$E40*'RES S curve-connect'!AA$20","v":-94.234658127375411},{"$f":"'Res-Appliance class'!$B40*'RES S curve-connect'!AB$5+'Res-Appliance class'!$C40*'RES S curve-connect'!AB$10+'Res-Appliance class'!$D40*'RES S curve-connect'!AB$15+'Res-Appliance class'!$E40*'RES S curve-connect'!AB$20","v":92.718976072868543},{"$f":"'Res-Appliance class'!$B40*'RES S curve-connect'!AC$5+'Res-Appliance class'!$C40*'RES S curve-connect'!AC$10+'Res-Appliance class'!$D40*'RES S curve-connect'!AC$15+'Res-Appliance class'!$E40*'RES S curve-connect'!AC$20","v":273.39816722043497},{"$f":"'Res-Appliance class'!$B40*'RES S curve-connect'!AD$5+'Res-Appliance class'!$C40*'RES S curve-connect'!AD$10+'Res-Appliance class'!$D40*'RES S curve-connect'!AD$15+'Res-Appliance class'!$E40*'RES S curve-connect'!AD$20","v":440.49692691282593},{"$f":"'Res-Appliance class'!$B40*'RES S curve-connect'!AE$5+'Res-Appliance class'!$C40*'RES S curve-connect'!AE$10+'Res-Appliance class'!$D40*'RES S curve-connect'!AE$15+'Res-Appliance class'!$E40*'RES S curve-connect'!AE$20","v":615.16131198654762},{"$f":"'Res-Appliance class'!$B40*'RES S curve-connect'!AF$5+'Res-Appliance class'!$C40*'RES S curve-connect'!AF$10+'Res-Appliance class'!$D40*'RES S curve-connect'!AF$15+'Res-Appliance class'!$E40*'RES S curve-connect'!AF$20","v":835.95706302732742},{"$f":"'Res-Appliance class'!$B40*'RES S curve-connect'!AG$5+'Res-Appliance class'!$C40*'RES S curve-connect'!AG$10+'Res-Appliance class'!$D40*'RES S curve-connect'!AG$15+'Res-Appliance class'!$E40*'RES S curve-connect'!AG$20","v":976.1008502428017},{"$f":"'Res-Appliance class'!$B40*'RES S curve-connect'!AH$5+'Res-Appliance class'!$C40*'RES S curve-connect'!AH$10+'Res-Appliance class'!$D40*'RES S curve-connect'!AH$15+'Res-Appliance class'!$E40*'RES S curve-connect'!AH$20","v":1173.3048068116568},{"$f":"'Res-Appliance class'!$B40*'RES S curve-connect'!AI$5+'Res-Appliance class'!$C40*'RES S curve-connect'!AI$10+'Res-Appliance class'!$D40*'RES S curve-connect'!AI$15+'Res-Appliance class'!$E40*'RES S curve-connect'!AI$20","v":1350.5730122567102},{"$f":"'Res-Appliance class'!$B40*'RES S curve-connect'!AJ$5+'Res-Appliance class'!$C40*'RES S curve-connect'!AJ$10+'Res-Appliance class'!$D40*'RES S curve-connect'!AJ$15+'Res-Appliance class'!$E40*'RES S curve-connect'!AJ$20","v":1510.555107051712},{"$f":"'Res-Appliance class'!$B40*'RES S curve-connect'!AK$5+'Res-Appliance class'!$C40*'RES S curve-connect'!AK$10+'Res-Appliance class'!$D40*'RES S curve-connect'!AK$15+'Res-Appliance class'!$E40*'RES S curve-connect'!AK$20","v":1680.3986695436324},{"$f":"'Res-Appliance class'!$B40*'RES S curve-connect'!AL$5+'Res-Appliance class'!$C40*'RES S curve-connect'!AL$10+'Res-Appliance class'!$D40*'RES S curve-connect'!AL$15+'Res-Appliance class'!$E40*'RES S curve-connect'!AL$20","v":1092.4725658973048},{"$f":"'Res-Appliance class'!$B40*'RES S curve-connect'!AM$5+'Res-Appliance class'!$C40*'RES S curve-connect'!AM$10+'Res-Appliance class'!$D40*'RES S curve-connect'!AM$15+'Res-Appliance class'!$E40*'RES S curve-connect'!AM$20","v":1015.4750791241208},{"$f":"'Res-Appliance class'!$B40*'RES S curve-connect'!AN$5+'Res-Appliance class'!$C40*'RES S curve-connect'!AN$10+'Res-Appliance class'!$D40*'RES S curve-connect'!AN$15+'Res-Appliance class'!$E40*'RES S curve-connect'!AN$20","v":1176.2172080334753},{"$f":"'Res-Appliance class'!$B40*'RES S curve-connect'!AO$5+'Res-Appliance class'!$C40*'RES S curve-connect'!AO$10+'Res-Appliance class'!$D40*'RES S curve-connect'!AO$15+'Res-Appliance class'!$E40*'RES S curve-connect'!AO$20","v":1372.8676239558047},{"$f":"'Res-Appliance class'!$B40*'RES S curve-connect'!AP$5+'Res-Appliance class'!$C40*'RES S curve-connect'!AP$10+'Res-Appliance class'!$D40*'RES S curve-connect'!AP$15+'Res-Appliance class'!$E40*'RES S curve-connect'!AP$20","v":1554.5723134731722},{"$f":"'Res-Appliance class'!$B40*'RES S curve-connect'!AQ$5+'Res-Appliance class'!$C40*'RES S curve-connect'!AQ$10+'Res-Appliance class'!$D40*'RES S curve-connect'!AQ$15+'Res-Appliance class'!$E40*'RES S curve-connect'!AQ$20","v":1750.1661114326357},{"$f":"'Res-Appliance class'!$B40*'RES S curve-connect'!AR$5+'Res-Appliance class'!$C40*'RES S curve-connect'!AR$10+'Res-Appliance class'!$D40*'RES S curve-connect'!AR$15+'Res-Appliance class'!$E40*'RES S curve-connect'!AR$20","v":1964.9504057042882},{"$f":"'Res-Appliance class'!$B40*'RES S curve-connect'!AS$5+'Res-Appliance class'!$C40*'RES S curve-connect'!AS$10+'Res-Appliance class'!$D40*'RES S curve-connect'!AS$15+'Res-Appliance class'!$E40*'RES S curve-connect'!AS$20","v":2205.9756769247415},{"$f":"'Res-Appliance class'!$B40*'RES S curve-connect'!AT$5+'Res-Appliance class'!$C40*'RES S curve-connect'!AT$10+'Res-Appliance class'!$D40*'RES S curve-connect'!AT$15+'Res-Appliance class'!$E40*'RES S curve-connect'!AT$20","v":2475.609535483512},{"$f":"'Res-Appliance class'!$B40*'RES S curve-connect'!AU$5+'Res-Appliance class'!$C40*'RES S curve-connect'!AU$10+'Res-Appliance class'!$D40*'RES S curve-connect'!AU$15+'Res-Appliance class'!$E40*'RES S curve-connect'!AU$20","v":2787.514243662331},{"$f":"'Res-Appliance class'!$B40*'RES S curve-connect'!AV$5+'Res-Appliance class'!$C40*'RES S curve-connect'!AV$10+'Res-Appliance class'!$D40*'RES S curve-connect'!AV$15+'Res-Appliance class'!$E40*'RES S curve-connect'!AV$20","v":3143.3355388802111},{"$f":"'Res-Appliance class'!$B40*'RES S curve-connect'!AW$5+'Res-Appliance class'!$C40*'RES S curve-connect'!AW$10+'Res-Appliance class'!$D40*'RES S curve-connect'!AW$15+'Res-Appliance class'!$E40*'RES S curve-connect'!AW$20","v":3552.3418775256714},{"$f":"'Res-Appliance class'!$B40*'RES S curve-connect'!AX$5+'Res-Appliance class'!$C40*'RES S curve-connect'!AX$10+'Res-Appliance class'!$D40*'RES S curve-connect'!AX$15+'Res-Appliance class'!$E40*'RES S curve-connect'!AX$20","v":4018.5399941654987},{"$f":"'Res-Appliance class'!$B40*'RES S curve-connect'!AY$5+'Res-Appliance class'!$C40*'RES S curve-connect'!AY$10+'Res-Appliance class'!$D40*'RES S curve-connect'!AY$15+'Res-Appliance class'!$E40*'RES S curve-connect'!AY$20","v":4556.4490408516995},{"$f":"'Res-Appliance class'!$B40*'RES S curve-connect'!AZ$5+'Res-Appliance class'!$C40*'RES S curve-connect'!AZ$10+'Res-Appliance class'!$D40*'RES S curve-connect'!AZ$15+'Res-Appliance class'!$E40*'RES S curve-connect'!AZ$20","v":5171.4444397243678},{"$f":"'Res-Appliance class'!$B40*'RES S curve-connect'!BA$5+'Res-Appliance class'!$C40*'RES S curve-connect'!BA$10+'Res-Appliance class'!$D40*'RES S curve-connect'!BA$15+'Res-Appliance class'!$E40*'RES S curve-connect'!BA$20","v":5883.7247716724496},{"$f":"'Res-Appliance class'!$B40*'RES S curve-connect'!BB$5+'Res-Appliance class'!$C40*'RES S curve-connect'!BB$10+'Res-Appliance class'!$D40*'RES S curve-connect'!BB$15+'Res-Appliance class'!$E40*'RES S curve-connect'!BB$20","v":6715.9999131026843},{"$f":"'Res-Appliance class'!$B40*'RES S curve-connect'!BC$5+'Res-Appliance class'!$C40*'RES S curve-connect'!BC$10+'Res-Appliance class'!$D40*'RES S curve-connect'!BC$15+'Res-Appliance class'!$E40*'RES S curve-connect'!BC$20","v":7708.5171456109947},{"$f":"'Res-Appliance class'!$B40*'RES S curve-connect'!BD$5+'Res-Appliance class'!$C40*'RES S curve-connect'!BD$10+'Res-Appliance class'!$D40*'RES S curve-connect'!BD$15+'Res-Appliance class'!$E40*'RES S curve-connect'!BD$20","v":8666.2758751081565},{"$f":"'Res-Appliance class'!$B40*'RES S curve-connect'!BE$5+'Res-Appliance class'!$C40*'RES S curve-connect'!BE$10+'Res-Appliance class'!$D40*'RES S curve-connect'!BE$15+'Res-Appliance class'!$E40*'RES S curve-connect'!BE$20","v":9541.7700677675984},{"$f":"'Res-Appliance class'!$B40*'RES S curve-connect'!BF$5+'Res-Appliance class'!$C40*'RES S curve-connect'!BF$10+'Res-Appliance class'!$D40*'RES S curve-connect'!BF$15+'Res-Appliance class'!$E40*'RES S curve-connect'!BF$20","v":10437.536429814561},{"$f":"'Res-Appliance class'!$B40*'RES S curve-connect'!BG$5+'Res-Appliance class'!$C40*'RES S curve-connect'!BG$10+'Res-Appliance class'!$D40*'RES S curve-connect'!BG$15+'Res-Appliance class'!$E40*'RES S curve-connect'!BG$20","v":11451.234074221382},{"$f":"'Res-Appliance class'!$B40*'RES S curve-connect'!BH$5+'Res-Appliance class'!$C40*'RES S curve-connect'!BH$10+'Res-Appliance class'!$D40*'RES S curve-connect'!BH$15+'Res-Appliance class'!$E40*'RES S curve-connect'!BH$20","v":12654.61447178534},{"$f":"'Res-Appliance class'!$B40*'RES S curve-connect'!BI$5+'Res-Appliance class'!$C40*'RES S curve-connect'!BI$10+'Res-Appliance class'!$D40*'RES S curve-connect'!BI$15+'Res-Appliance class'!$E40*'RES S curve-connect'!BI$20","v":14398.242769606621},{"$f":"'Res-Appliance class'!$B40*'RES S curve-connect'!BJ$5+'Res-Appliance class'!$C40*'RES S curve-connect'!BJ$10+'Res-Appliance class'!$D40*'RES S curve-connect'!BJ$15+'Res-Appliance class'!$E40*'RES S curve-connect'!BJ$20","v":16952.21637792102},{"$f":"'Res-Appliance class'!$B40*'RES S curve-connect'!BK$5+'Res-Appliance class'!$C40*'RES S curve-connect'!BK$10+'Res-Appliance class'!$D40*'RES S curve-connect'!BK$15+'Res-Appliance class'!$E40*'RES S curve-connect'!BK$20","v":20721.85982994904},{"$f":"'Res-Appliance class'!$B40*'RES S curve-connect'!BL$5+'Res-Appliance class'!$C40*'RES S curve-connect'!BL$10+'Res-Appliance class'!$D40*'RES S curve-connect'!BL$15+'Res-Appliance class'!$E40*'RES S curve-connect'!BL$20","v":-1058.4021954431823},{"$f":"'Res-Appliance class'!$B40*'RES S curve-connect'!BM$5+'Res-Appliance class'!$C40*'RES S curve-connect'!BM$10+'Res-Appliance class'!$D40*'RES S curve-connect'!BM$15+'Res-Appliance class'!$E40*'RES S curve-connect'!BM$20","v":-1053.6261599265549},{"$f":"'Res-Appliance class'!$B40*'RES S curve-connect'!BN$5+'Res-Appliance class'!$C40*'RES S curve-connect'!BN$10+'Res-Appliance class'!$D40*'RES S curve-connect'!BN$15+'Res-Appliance class'!$E40*'RES S curve-connect'!BN$20","v":-1051.1196580179624},{"$f":"'Res-Appliance class'!$B40*'RES S curve-connect'!BO$5+'Res-Appliance class'!$C40*'RES S curve-connect'!BO$10+'Res-Appliance class'!$D40*'RES S curve-connect'!BO$15+'Res-Appliance class'!$E40*'RES S curve-connect'!BO$20","v":-1044.0940379472281},{"$f":"'Res-Appliance class'!$B40*'RES S curve-connect'!BP$5+'Res-Appliance class'!$C40*'RES S curve-connect'!BP$10+'Res-Appliance class'!$D40*'RES S curve-connect'!BP$15+'Res-Appliance class'!$E40*'RES S curve-connect'!BP$20","v":-1039.3378714084688},{"$f":"'Res-Appliance class'!$B40*'RES S curve-connect'!BQ$5+'Res-Appliance class'!$C40*'RES S curve-connect'!BQ$10+'Res-Appliance class'!$D40*'RES S curve-connect'!BQ$15+'Res-Appliance class'!$E40*'RES S curve-connect'!BQ$20","v":-1034.5882482011089},{"$f":"'Res-Appliance class'!$B40*'RES S curve-connect'!BR$5+'Res-Appliance class'!$C40*'RES S curve-connect'!BR$10+'Res-Appliance class'!$D40*'RES S curve-connect'!BR$15+'Res-Appliance class'!$E40*'RES S curve-connect'!BR$20","v":-1032.1079994427571},{"$f":"'Res-Appliance class'!$B40*'RES S curve-connect'!BS$5+'Res-Appliance class'!$C40*'RES S curve-connect'!BS$10+'Res-Appliance class'!$D40*'RES S curve-connect'!BS$15+'Res-Appliance class'!$E40*'RES S curve-connect'!BS$20","v":-1025.1084743532047},{"$f":"'Res-Appliance class'!$B40*'RES S curve-connect'!BT$5+'Res-Appliance class'!$C40*'RES S curve-connect'!BT$10+'Res-Appliance class'!$D40*'RES S curve-connect'!BT$15+'Res-Appliance class'!$E40*'RES S curve-connect'!BT$20","v":-1020.3782456102811},{"$f":"'Res-Appliance class'!$B40*'RES S curve-connect'!BU$5+'Res-Appliance class'!$C40*'RES S curve-connect'!BU$10+'Res-Appliance class'!$D40*'RES S curve-connect'!BU$15+'Res-Appliance class'!$E40*'RES S curve-connect'!BU$20","v":-1015.6544039909112},{"$f":"'Res-Appliance class'!$B40*'RES S curve-connect'!BV$5+'Res-Appliance class'!$C40*'RES S curve-connect'!BV$10+'Res-Appliance class'!$D40*'RES S curve-connect'!BV$15+'Res-Appliance class'!$E40*'RES S curve-connect'!BV$20","v":-1013.1997815840313},{"$f":"'Res-Appliance class'!$B40*'RES S curve-connect'!BW$5+'Res-Appliance class'!$C40*'RES S curve-connect'!BW$10+'Res-Appliance class'!$D40*'RES S curve-connect'!BW$15+'Res-Appliance class'!$E40*'RES S curve-connect'!BW$20","v":-1006.2257285746257},{"$f":"'Res-Appliance class'!$B40*'RES S curve-connect'!BX$5+'Res-Appliance class'!$C40*'RES S curve-connect'!BX$10+'Res-Appliance class'!$D40*'RES S curve-connect'!BX$15+'Res-Appliance class'!$E40*'RES S curve-connect'!BX$20","v":-1001.5208185996222},{"$f":"'Res-Appliance class'!$B40*'RES S curve-connect'!BY$5+'Res-Appliance class'!$C40*'RES S curve-connect'!BY$10+'Res-Appliance class'!$D40*'RES S curve-connect'!BY$15+'Res-Appliance class'!$E40*'RES S curve-connect'!BY$20","v":-996.8221433889878},{"$f":"'Res-Appliance class'!$B40*'RES S curve-connect'!BZ$5+'Res-Appliance class'!$C40*'RES S curve-connect'!BZ$10+'Res-Appliance class'!$D40*'RES S curve-connect'!BZ$15+'Res-Appliance class'!$E40*'RES S curve-connect'!BZ$20","v":-994.39253597868446},{"$f":"'Res-Appliance class'!$B40*'RES S curve-connect'!CA$5+'Res-Appliance class'!$C40*'RES S curve-connect'!CA$10+'Res-Appliance class'!$D40*'RES S curve-connect'!CA$15+'Res-Appliance class'!$E40*'RES S curve-connect'!CA$20","v":-987.44334749473921},{"$f":"'Res-Appliance class'!$B40*'RES S curve-connect'!CB$5+'Res-Appliance class'!$C40*'RES S curve-connect'!CB$10+'Res-Appliance class'!$D40*'RES S curve-connect'!CB$15+'Res-Appliance class'!$E40*'RES S curve-connect'!CB$20","v":-982.76315250918276},{"$f":"'Res-Appliance class'!$B40*'RES S curve-connect'!CC$5+'Res-Appliance class'!$C40*'RES S curve-connect'!CC$10+'Res-Appliance class'!$D40*'RES S curve-connect'!CC$15+'Res-Appliance class'!$E40*'RES S curve-connect'!CC$20","v":-978.08904368118215},{"$f":"'Res-Appliance class'!$B40*'RES S curve-connect'!CD$5+'Res-Appliance class'!$C40*'RES S curve-connect'!CD$10+'Res-Appliance class'!$D40*'RES S curve-connect'!CD$15+'Res-Appliance class'!$E40*'RES S curve-connect'!CD$20","v":-1049.3617829930768}]
["Nillumbik (S)",null,{"$f":"'Res-Appliance class'!$B41*'RES S curve-connect'!C$5+'Res-Appliance class'!$C41*'RES S curve-connect'!C$10+'Res-Appliance class'!$D41*'RES S curve-connect'!C$15+'Res-Appliance class'!$E41*'RES S curve-connect'!C$20","v":-3308.1250892524763},{"$f":"'Res-Appliance class'!$B41*'RES S curve-connect'!D$5+'Res-Appliance class'!$C41*'RES S curve-connect'!D$10+'Res-Appliance class'!$D41*'RES S curve-connect'!D$15+'Res-Appliance class'!$E41*'RES S curve-connect'!D$20","v":-3665.1007287515113},{"$f":"'Res-Appliance class'!$B41*'RES S curve-connect'!E$5+'Res-Appliance class'!$C41*'RES S curve-connect'!E$10+'Res-Appliance class'!$D41*'RES S curve-connect'!E$15+'Res-Appliance class'!$E41*'RES S curve-connect'!E$20","v":-2674.9983639281077},{"$f":"'Res-Appliance class'!$B41*'RES S curve-connect'!F$5+'Res-Appliance class'!$C41*'RES S curve-connect'!F$10+'Res-Appliance class'!$D41*'RES S curve-connect'!F$15+'Res-Appliance class'!$E41*'RES S curve-connect'!F$20","v":-2567.3366100958328},{"$f":"'Res-Appliance class'!$B41*'RES S curve-connect'!G$5+'Res-Appliance class'!$C41*'RES S curve-connect'!G$10+'Res-Appliance class'!$D41*'RES S curve-connect'!G$15+'Res-Appliance class'!$E41*'RES S curve-connect'!G$20","v":-3804.354951740971},{"$f":"'Res-Appliance class'!$B41*'RES S curve-connect'!H$5+'Res-Appliance class'!$C41*'RES S curve-connect'!H$10+'Res-Appliance class'!$D41*'RES S curve-connect'!H$15+'Res-Appliance class'!$E41*'RES S curve-connect'!H$20","v":-3835.4080506639975},{"$f":"'Res-Appliance class'!$B41*'RES S curve-connect'!I$5+'Res-Appliance class'!$C41*'RES S curve-connect'!I$10+'Res-Appliance class'!$D41*'RES S curve-connect'!I$15+'Res-Appliance class'!$E41*'RES S curve-connect'!I$20","v":-3524.5472894505137},{"$f":"'Res-Appliance class'!$B41*'RES S curve-connect'!J$5+'Res-Appliance class'!$C41*'RES S curve-connect'!J$10+'Res-Appliance class'!$D41*'RES S curve-connect'!J$15+'Res-Appliance class'!$E41*'RES S curve-connect'!J$20","v":-3844.1767442419341},{"$f":"'Res-Appliance class'!$B41*'RES S curve-connect'!K$5+'Res-Appliance class'!$C41*'RES S curve-connect'!K$10+'Res-Appliance class'!$D41*'RES S curve-connect'!K$15+'Res-Appliance class'!$E41*'RES S curve-connect'!K$20","v":-3170.5947702650587},{"$f":"'Res-Appliance class'!$B41*'RES S curve-connect'!L$5+'Res-Appliance class'!$C41*'RES S curve-connect'!L$10+'Res-Appliance class'!$D41*'RES S curve-connect'!L$15+'Res-Appliance class'!$E41*'RES S curve-connect'!L$20","v":-3396.9932105623843},{"$f":"'Res-Appliance class'!$B41*'RES S curve-connect'!M$5+'Res-Appliance class'!$C41*'RES S curve-connect'!M$10+'Res-Appliance class'!$D41*'RES S curve-connect'!M$15+'Res-Appliance class'!$E41*'RES S curve-connect'!M$20","v":-3841.1855509165066},{"$f":"'Res-Appliance class'!$B41*'RES S curve-connect'!N$5+'Res-Appliance class'!$C41*'RES S curve-connect'!N$10+'Res-Appliance class'!$D41*'RES S curve-connect'!N$15+'Res-Appliance class'!$E41*'RES S curve-connect'!N$20","v":-3866.7823167597644},{"$f":"'Res-Appliance class'!$B41*'RES S curve-connect'!O$5+'Res-Appliance class'!$C41*'RES S curve-connect'!O$10+'Res-Appliance class'!$D41*'RES S curve-connect'!O$15+'Res-Appliance class'!$E41*'RES S curve-connect'!O$20","v":-3449.4654052620399},{"$f":"'Res-Appliance class'!$B41*'RES S curve-connect'!P$5+'Res-Appliance class'!$C41*'RES S curve-connect'!P$10+'Res-Appliance class'!$D41*'RES S curve-connect'!P$15+'Res-Appliance class'!$E41*'RES S curve-connect'!P$20","v":-3111.8864237278731},{"$f":"'Res-Appliance class'!$B41*'RES S curve-connect'!Q$5+'Res-Appliance class'!$C41*'RES S curve-connect'!Q$10+'Res-Appliance class'!$D41*'RES S curve-connect'!Q$15+'Res-Appliance class'!$E41*'RES S curve-connect'!Q$20","v":-2610.9300908102264},{"$f":"'Res-Appliance class'!$B41*'RES S curve-connect'!R$5+'Res-Appliance class'!$C41*'RES S curve-connect'!R$10+'Res-Appliance class'!$D41*'RES S curve-connect'!R$15+'Res-Appliance class'!$E41*'RES S curve-connect'!R$20","v":-2319.2748619407803},{"$f":"'Res-Appliance class'!$B41*'RES S curve-connect'!S$5+'Res-Appliance class'!$C41*'RES S curve-connect'!S$10+'Res-Appliance class'!$D41*'RES S curve-connect'!S$15+'Res-Appliance class'!$E41*'RES S curve-connect'!S$20","v":-1866.3981258719637},{"$f":"'Res-Appliance class'!$B41*'RES S curve-connect'!T$5+'Res-Appliance class'!$C41*'RES S curve-connect'!T$10+'Res-Appliance class'!$D41*'RES S curve-connect'!T$15+'Res-Appliance class'!$E41*'RES S curve-connect'!T$20","v":-1611.3368636206169},{"$f":"'Res-Appliance class'!$B41*'RES S curve-connect'!U$5+'Res-Appliance class'!$C41*'RES S curve-connect'!U$10+'Res-Appliance class'!$D41*'RES S curve-connect'!U$15+'Res-Appliance class'!$E41*'RES S curve-connect'!U$20","v":-1323.9668918835623},{"$f":"'Res-Appliance class'!$B41*'RES S curve-connect'!V$5+'Res-Appliance class'!$C41*'RES S curve-connect'!V$10+'Res-Appliance class'!$D41*'RES S curve-connect'!V$15+'Res-Appliance class'!$E41*'RES S curve-connect'!V$20","v":-1123.6919126322996},{"$f":"'Res-Appliance class'!$B41*'RES S curve-connect'!W$5+'Res-Appliance class'!$C41*'RES S curve-connect'!W$10+'Res-Appliance class'!$D41*'RES S curve-connect'!W$15+'Res-Appliance class'!$E41*'RES S curve-connect'!W$20","v":-963.14397278575962},{"$f":"'Res-Appliance class'!$B41*'RES S curve-connect'!X$5+'Res-Appliance class'!$C41*'RES S curve-connect'!X$10+'Res-Appliance class'!$D41*'RES S curve-connect'!X$15+'Res-Appliance class'!$E41*'RES S curve-connect'!X$20","v":-618.88553321066127},{"$f":"'Res-Appliance class'!$B41*'RES S curve-connect'!Y$5+'Res-Appliance class'!$C41*'RES S curve-connect'!Y$10+'Res-Appliance class'!$D41*'RES S curve-connect'!Y$15+'Res-Appliance class'!$E41*'RES S curve-connect'!Y$20","v":-271.08768020973162},{"$f":"'Res-Appliance class'!$B41*'RES S curve-connect'!Z$5+'Res-Appliance class'!$C41*'RES S curve-connect'!Z$10+'Res-Appliance class'!$D41*'RES S curve-connect'!Z$15+'Res-Appliance class'!$E41*'RES S curve-connect'!Z$20","v":-30.77630512224853},{"$f":"'Res-Appliance class'!$B41*'RES S curve-connect'!AA$5+'Res-Appliance class'!$C41*'RES S curve-connect'!AA$10+'Res-Appliance class'!$D41*'RES S curve-connect'!AA$15+'Res-Appliance class'!$E41*'RES S curve-connect'!AA$20","v":209.21237752068072},{"$f":"'Res-Appliance class'!$B41*'RES S curve-connect'!AB$5+'Res-Appliance class'!$C41*'RES S curve-connect'!AB$10+'Res-Appliance class'!$D41*'RES S curve-connect'!AB$15+'Res-Appliance class'!$E41*'RES S curve-connect'!AB$20","v":404.69194766298108},{"$f":"'Res-Appliance class'!$B41*'RES S curve-connect'!AC$5+'Res-Appliance class'!$C41*'RES S curve-connect'!AC$10+'Res-Appliance class'!$D41*'RES S curve-connect'!AC$15+'Res-Appliance class'!$E41*'RES S curve-connect'!AC$20","v":593.40687087852757},{"$f":"'Res-Appliance class'!$B41*'RES S curve-connect'!AD$5+'Res-Appliance class'!$C41*'RES S curve-connect'!AD$10+'Res-Appliance class'!$D41*'RES S curve-connect'!AD$15+'Res-Appliance class'!$E41*'RES S curve-connect'!AD$20","v":767.78713600858237},{"$f":"'Res-Appliance class'!$B41*'RES S curve-connect'!AE$5+'Res-Appliance class'!$C41*'RES S curve-connect'!AE$10+'Res-Appliance class'!$D41*'RES S curve-connect'!AE$15+'Res-Appliance class'!$E41*'RES S curve-connect'!AE$20","v":949.84741928418612},{"$f":"'Res-Appliance class'!$B41*'RES S curve-connect'!AF$5+'Res-Appliance class'!$C41*'RES S curve-connect'!AF$10+'Res-Appliance class'!$D41*'RES S curve-connect'!AF$15+'Res-Appliance class'!$E41*'RES S curve-connect'!AF$20","v":1181.006045514278},{"$f":"'Res-Appliance class'!$B41*'RES S curve-connect'!AG$5+'Res-Appliance class'!$C41*'RES S curve-connect'!AG$10+'Res-Appliance class'!$D41*'RES S curve-connect'!AG$15+'Res-Appliance class'!$E41*'RES S curve-connect'!AG$20","v":1328.865681553146},{"$f":"'Res-Appliance class'!$B41*'RES S curve-connect'!AH$5+'Res-Appliance class'!$C41*'RES S curve-connect'!AH$10+'Res-Appliance class'!$D41*'RES S curve-connect'!AH$15+'Res-Appliance class'!$E41*'RES S curve-connect'!AH$20","v":1537.6401497876927},{"$f":"'Res-Appliance class'!$B41*'RES S curve-connect'!AI$5+'Res-Appliance class'!$C41*'RES S curve-connect'!AI$10+'Res-Appliance class'!$D41*'RES S curve-connect'!AI$15+'Res-Appliance class'!$E41*'RES S curve-connect'!AI$20","v":1724.6907866471577},{"$f":"'Res-Appliance class'!$B41*'RES S curve-connect'!AJ$5+'Res-Appliance class'!$C41*'RES S curve-connect'!AJ$10+'Res-Appliance class'!$D41*'RES S curve-connect'!AJ$15+'Res-Appliance class'!$E41*'RES S curve-connect'!AJ$20","v":1893.6180049377563},{"$f":"'Res-Appliance class'!$B41*'RES S curve-connect'!AK$5+'Res-Appliance class'!$C41*'RES S curve-connect'!AK$10+'Res-Appliance class'!$D41*'RES S curve-connect'!AK$15+'Res-Appliance class'!$E41*'RES S curve-connect'!AK$20","v":2072.9439040120169},{"$f":"'Res-Appliance class'!$B41*'RES S curve-connect'!AL$5+'Res-Appliance class'!$C41*'RES S curve-connect'!AL$10+'Res-Appliance class'!$D41*'RES S curve-connect'!AL$15+'Res-Appliance class'!$E41*'RES S curve-connect'!AL$20","v":1453.3467973363665},{"$f":"'Res-Appliance class'!$B41*'RES S curve-connect'!AM$5+'Res-Appliance class'!$C41*'RES S curve-connect'!AM$10+'Res-Appliance class'!$D41*'RES S curve-connect'!AM$15+'Res-Appliance class'!$E41*'RES S curve-connect'!AM$20","v":1371.1924167177212},{"$f":"'Res-Appliance class'!$B41*'RES S curve-connect'!AN$5+'Res-Appliance class'!$C41*'RES S curve-connect'!AN$10+'Res-Appliance class'!$D41*'RES S curve-connect'!AN$15+'Res-Appliance class'!$E41*'RES S curve-connect'!AN$20","v":1540.4340438620782},{"$f":"'Res-Appliance class'!$B41*'RES S curve-connect'!AO$5+'Res-Appliance class'!$C41*'RES S curve-connect'!AO$10+'Res-Appliance class'!$D41*'RES S curve-connect'!AO$15+'Res-Appliance class'!$E41*'RES S curve-connect'!AO$20","v":1747.9519361118034},{"$f":"'Res-Appliance class'!$B41*'RES S curve-connect'!AP$5+'Res-Appliance class'!$C41*'RES S curve-connect'!AP$10+'Res-Appliance class'!$D41*'RES S curve-connect'!AP$15+'Res-Appliance class'!$E41*'RES S curve-connect'!AP$20","v":1939.9546094220884},{"$f":"'Res-Appliance class'!$B41*'RES S curve-connect'!AQ$5+'Res-Appliance class'!$C41*'RES S curve-connect'!AQ$10+'Res-Appliance class'!$D41*'RES S curve-connect'!AQ$15+'Res-Appliance class'!$E41*'RES S curve-connect'!AQ$20","v":2146.3744074570745},{"$f":"'Res-Appliance class'!$B41*'RES S curve-connect'!AR$5+'Res-Appliance class'!$C41*'RES S curve-connect'!AR$10+'Res-Appliance class'!$D41*'RES S curve-connect'!AR$15+'Res-Appliance class'!$E41*'RES S curve-connect'!AR$20","v":2373.2136970417851},{"$f":"'Res-Appliance class'!$B41*'RES S curve-connect'!AS$5+'Res-Appliance class'!$C41*'RES S curve-connect'!AS$10+'Res-Appliance class'!$D41*'RES S curve-connect'!AS$15+'Res-Appliance class'!$E41*'RES S curve-connect'!AS$20","v":2627.8201867436505},{"$f":"'Res-Appliance class'!$B41*'RES S curve-connect'!AT$5+'Res-Appliance class'!$C41*'RES S curve-connect'!AT$10+'Res-Appliance class'!$D41*'RES S curve-connect'!AT$15+'Res-Appliance class'!$E41*'RES S curve-connect'!AT$20","v":2912.8399871183428},{"$f":"'Res-Appliance class'!$B41*'RES S curve-connect'!AU$5+'Res-Appliance class'!$C41*'RES S curve-connect'!AU$10+'Res-Appliance class'!$D41*'RES S curve-connect'!AU$15+'Res-Appliance class'!$E41*'RES S curve-connect'!AU$20","v":3242.3412698915945},{"$f":"'Res-Appliance class'!$B41*'RES S curve-connect'!AV$5+'Res-Appliance class'!$C41*'RES S curve-connect'!AV$10+'Res-Appliance class'!$D41*'RES S curve-connect'!AV$15+'Res-Appliance class'!$E41*'RES S curve-connect'!AV$20","v":3618.4745520410488},{"$f":"'Res-Appliance class'!$B41*'RES S curve-connect'!AW$5+'Res-Appliance class'!$C41*'RES S curve-connect'!AW$10+'Res-Appliance class'!$D41*'RES S curve-connect'!AW$15+'Res-Appliance class'!$E41*'RES S curve-connect'!AW$20","v":4050.9495689935329},{"$f":"'Res-Appliance class'!$B41*'RES S curve-connect'!AX$5+'Res-Appliance class'!$C41*'RES S curve-connect'!AX$10+'Res-Appliance class'!$D41*'RES S curve-connect'!AX$15+'Res-Appliance class'!$E41*'RES S curve-connect'!AX$20","v":4544.1833021208649},{"$f":"'Res-Appliance class'!$B41*'RES S curve-connect'!AY$5+'Res-Appliance class'!$C41*'RES S curve-connect'!AY$10+'Res-Appliance class'!$D41*'RES S curve-connect'!AY$15+'Res-Appliance class'!$E41*'RES S curve-connect'!AY$20","v":5113.1938739918696},{"$f":"'Res-Appliance class'!$B41*'RES S curve-connect'!AZ$5+'Res-Appliance class'!$C41*'RES S curve-connect'!AZ$10+'Res-Appliance class'!$D41*'RES S curve-connect'!AZ$15+'Res-Appliance class'!$E41*'RES S curve-connect'!AZ$20","v":5764.1193504935163},{"$f":"'Res-Appliance class'!$B41*'RES S curve-connect'!BA$5+'Res-Appliance class'!$C41*'RES S curve-connect'!BA$10+'Res-Appliance class'!$D41*'RES S curve-connect'!BA$15+'Res-Appliance class'!$E41*'RES S curve-connect'!BA$20","v":6518.2737193938701},{"$f":"'Res-Appliance class'!$B41*'RES S curve-connect'!BB$5+'Res-Appliance class'!$C41*'RES S curve-connect'!BB$10+'Res-Appliance class'!$D41*'RES S curve-connect'!BB$15+'Res-Appliance class'!$E41*'RES S curve-connect'!BB$20","v":7399.9264121024044},{"$f":"'Res-Appliance class'!$B41*'RES S curve-connect'!BC$5+'Res-Appliance class'!$C41*'RES S curve-connect'!BC$10+'Res-Appliance class'!$D41*'RES S curve-connect'!BC$15+'Res-Appliance class'!$E41*'RES S curve-connect'!BC$20","v":8451.4252200043065},{"$f":"'Res-Appliance class'!$B41*'RES S curve-connect'!BD$5+'Res-Appliance class'!$C41*'RES S curve-connect'!BD$10+'Res-Appliance class'!$D41*'RES S curve-connect'!BD$15+'Res-Appliance class'!$E41*'RES S curve-connect'!BD$20","v":9467.2131024836108},{"$f":"'Res-Appliance class'!$B41*'RES S curve-connect'!BE$5+'Res-Appliance class'!$C41*'RES S curve-connect'!BE$10+'Res-Appliance class'!$D41*'RES S curve-connect'!BE$15+'Res-Appliance class'!$E41*'RES S curve-connect'!BE$20","v":10396.117625883348},{"$f":"'Res-Appliance class'!$B41*'RES S curve-connect'!BF$5+'Res-Appliance class'!$C41*'RES S curve-connect'!BF$10+'Res-Appliance class'!$D41*'RES S curve-connect'!BF$15+'Res-Appliance class'!$E41*'RES S curve-connect'!BF$20","v":11346.423445238828},{"$f":"'Res-Appliance class'!$B41*'RES S curve-connect'!BG$5+'Res-Appliance class'!$C41*'RES S curve-connect'!BG$10+'Res-Appliance class'!$D41*'RES S curve-connect'!BG$15+'Res-Appliance class'!$E41*'RES S curve-connect'!BG$20","v":12421.433094808861},{"$f":"'Res-Appliance class'!$B41*'RES S curve-connect'!BH$5+'Res-Appliance class'!$C41*'RES S curve-connect'!BH$10+'Res-Appliance class'!$D41*'RES S curve-connect'!BH$15+'Res-Appliance class'!$E41*'RES S curve-connect'!BH$20","v":13697.86728529758},{"$f":"'Res-Appliance class'!$B41*'RES S curve-connect'!BI$5+'Res-Appliance class'!$C41*'RES S curve-connect'!BI$10+'Res-Appliance class'!$D41*'RES S curve-connect'!BI$15+'Res-Appliance class'!$E41*'RES S curve-connect'!BI$20","v":15547.125922169153},{"$f":"'Res-Appliance class'!$B41*'RES S curve-connect'!BJ$5+'Res-Appliance class'!$C41*'RES S curve-connect'!BJ$10+'Res-Appliance class'!$D41*'RES S curve-connect'!BJ$15+'Res-Appliance class'!$E41*'RES S curve-connect'!BJ$20","v":18257.152780845634},{"$f":"'Res-Appliance class'!$B41*'RES S curve-connect'!BK$5+'Res-Appliance class'!$C41*'RES S curve-connect'!BK$10+'Res-Appliance class'!$D41*'RES S curve-connect'!BK$15+'Res-Appliance class'!$E41*'RES S curve-connect'!BK$20","v":22259.072585378162},{"$f":"'Res-Appliance class'!$B41*'RES S curve-connect'!BL$5+'Res-Appliance class'!$C41*'RES S curve-connect'!BL$10+'Res-Appliance class'!$D41*'RES S curve-connect'!BL$15+'Res-Appliance class'!$E41*'RES S curve-connect'!BL$20","v":-817.06846585181745},{"$f":"'Res-Appliance class'!$B41*'RES S curve-connect'!BM$5+'Res-Appliance class'!$C41*'RES S curve-connect'!BM$10+'Res-Appliance class'!$D41*'RES S curve-connect'!BM$15+'Res-Appliance class'!$E41*'RES S curve-connect'!BM$20","v":-812.10272080699906},{"$f":"'Res-Appliance class'!$B41*'RES S curve-connect'!BN$5+'Res-Appliance class'!$C41*'RES S curve-connect'!BN$10+'Res-Appliance class'!$D41*'RES S curve-connect'!BN$15+'Res-Appliance class'!$E41*'RES S curve-connect'!BN$20","v":-809.40613974677922},{"$f":"'Res-Appliance class'!$B41*'RES S curve-connect'!BO$5+'Res-Appliance class'!$C41*'RES S curve-connect'!BO$10+'Res-Appliance class'!$D41*'RES S curve-connect'!BO$15+'Res-Appliance class'!$E41*'RES S curve-connect'!BO$20","v":-802.1900736124378},{"$f":"'Res-Appliance class'!$B41*'RES S curve-connect'!BP$5+'Res-Appliance class'!$C41*'RES S curve-connect'!BP$10+'Res-Appliance class'!$D41*'RES S curve-connect'!BP$15+'Res-Appliance class'!$E41*'RES S curve-connect'!BP$20","v":-797.24309679119312},{"$f":"'Res-Appliance class'!$B41*'RES S curve-connect'!BQ$5+'Res-Appliance class'!$C41*'RES S curve-connect'!BQ$10+'Res-Appliance class'!$D41*'RES S curve-connect'!BQ$15+'Res-Appliance class'!$E41*'RES S curve-connect'!BQ$20","v":-792.30230175733391},{"$f":"'Res-Appliance class'!$B41*'RES S curve-connect'!BR$5+'Res-Appliance class'!$C41*'RES S curve-connect'!BR$10+'Res-Appliance class'!$D41*'RES S curve-connect'!BR$15+'Res-Appliance class'!$E41*'RES S curve-connect'!BR$20","v":-789.63052228521724},{"$f":"'Res-Appliance class'!$B41*'RES S curve-connect'!BS$5+'Res-Appliance class'!$C41*'RES S curve-connect'!BS$10+'Res-Appliance class'!$D41*'RES S curve-connect'!BS$15+'Res-Appliance class'!$E41*'RES S curve-connect'!BS$20","v":-782.43911023338603},{"$f":"'Res-Appliance class'!$B41*'RES S curve-connect'!BT$5+'Res-Appliance class'!$C41*'RES S curve-connect'!BT$10+'Res-Appliance class'!$D41*'RES S curve-connect'!BT$15+'Res-Appliance class'!$E41*'RES S curve-connect'!BT$20","v":-777.51664090054123},{"$f":"'Res-Appliance class'!$B41*'RES S curve-connect'!BU$5+'Res-Appliance class'!$C41*'RES S curve-connect'!BU$10+'Res-Appliance class'!$D41*'RES S curve-connect'!BU$15+'Res-Appliance class'!$E41*'RES S curve-connect'!BU$20","v":-772.60020766671687},{"$f":"'Res-Appliance class'!$B41*'RES S curve-connect'!BV$5+'Res-Appliance class'!$C41*'RES S curve-connect'!BV$10+'Res-Appliance class'!$D41*'RES S curve-connect'!BV$15+'Res-Appliance class'!$E41*'RES S curve-connect'!BV$20","v":-769.95264520631304},{"$f":"'Res-Appliance class'!$B41*'RES S curve-connect'!BW$5+'Res-Appliance class'!$C41*'RES S curve-connect'!BW$10+'Res-Appliance class'!$D41*'RES S curve-connect'!BW$15+'Res-Appliance class'!$E41*'RES S curve-connect'!BW$20","v":-762.78530627224848},{"$f":"'Res-Appliance class'!$B41*'RES S curve-connect'!BX$5+'Res-Appliance class'!$C41*'RES S curve-connect'!BX$10+'Res-Appliance class'!$D41*'RES S curve-connect'!BX$15+'Res-Appliance class'!$E41*'RES S curve-connect'!BX$20","v":-757.88676705197008},{"$f":"'Res-Appliance class'!$B41*'RES S curve-connect'!BY$5+'Res-Appliance class'!$C41*'RES S curve-connect'!BY$10+'Res-Appliance class'!$D41*'RES S curve-connect'!BY$15+'Res-Appliance class'!$E41*'RES S curve-connect'!BY$20","v":-752.99412180866398},{"$f":"'Res-Appliance class'!$B41*'RES S curve-connect'!BZ$5+'Res-Appliance class'!$C41*'RES S curve-connect'!BZ$10+'Res-Appliance class'!$D41*'RES S curve-connect'!BZ$15+'Res-Appliance class'!$E41*'RES S curve-connect'!BZ$20","v":-750.37020609432363},{"$f":"'Res-Appliance class'!$B41*'RES S curve-connect'!CA$5+'Res-Appliance class'!$C41*'RES S curve-connect'!CA$10+'Res-Appliance class'!$D41*'RES S curve-connect'!CA$15+'Res-Appliance class'!$E41*'RES S curve-connect'!CA$20","v":-743.22637353393418},{"$f":"'Res-Appliance class'!$B41*'RES S curve-connect'!CB$5+'Res-Appliance class'!$C41*'RES S curve-connect'!CB$10+'Res-Appliance class'!$D41*'RES S curve-connect'!CB$15+'Res-Appliance class'!$E41*'RES S curve-connect'!CB$20","v":-738.35120118152213},{"$f":"'Res-Appliance class'!$B41*'RES S curve-connect'!CC$5+'Res-Appliance class'!$C41*'RES S curve-connect'!CC$10+'Res-Appliance class'!$D41*'RES S curve-connect'!CC$15+'Res-Appliance class'!$E41*'RES S curve-connect'!CC$20","v":-733.48178416140001},{"$f":"'Res-Appliance class'!$B41*'RES S curve-connect'!CD$5+'Res-Appliance class'!$C41*'RES S curve-connect'!CD$10+'Res-Appliance class'!$D41*'RES S curve-connect'!CD$15+'Res-Appliance class'!$E41*'RES S curve-connect'!CD$20","v":-809.38423498091265}]
["Port Phillip (C)",null,{"$f":"'Res-Appliance class'!$B42*'RES S curve-connect'!C$5+'Res-Appliance class'!$C42*'RES S curve-connect'!C$10+'Res-Appliance class'!$D42*'RES S curve-connect'!C$15+'Res-Appliance class'!$E42*'RES S curve-connect'!C$20","v":-2510.3979218438431},{"$f":"'Res-Appliance class'!$B42*'RES S curve-connect'!D$5+'Res-Appliance class'!$C42*'RES S curve-connect'!D$10+'Res-Appliance class'!$D42*'RES S curve-connect'!D$15+'Res-Appliance class'!$E42*'RES S curve-connect'!D$20","v":-2740.7565956995677},{"$f":"'Res-Appliance class'!$B42*'RES S curve-connect'!E$5+'Res-Appliance class'!$C42*'RES S curve-connect'!E$10+'Res-Appliance class'!$D42*'RES S curve-connect'!E$15+'Res-Appliance class'!$E42*'RES S curve-connect'!E$20","v":-2202.1683628097171},{"$f":"'Res-Appliance class'!$B42*'RES S curve-connect'!F$5+'Res-Appliance class'!$C42*'RES S curve-connect'!F$10+'Res-Appliance class'!$D42*'RES S curve-connect'!F$15+'Res-Appliance class'!$E42*'RES S curve-connect'!F$20","v":-2140.4146522906449},{"$f":"'Res-Appliance class'!$B42*'RES S curve-connect'!G$5+'Res-Appliance class'!$C42*'RES S curve-connect'!G$10+'Res-Appliance class'!$D42*'RES S curve-connect'!G$15+'Res-Appliance class'!$E42*'RES S curve-connect'!G$20","v":-2696.6697835952759},{"$f":"'Res-Appliance class'!$B42*'RES S curve-connect'!H$5+'Res-Appliance class'!$C42*'RES S curve-connect'!H$10+'Res-Appliance class'!$D42*'RES S curve-connect'!H$15+'Res-Appliance class'!$E42*'RES S curve-connect'!H$20","v":-2730.5060086095996},{"$f":"'Res-Appliance class'!$B42*'RES S curve-connect'!I$5+'Res-Appliance class'!$C42*'RES S curve-connect'!I$10+'Res-Appliance class'!$D42*'RES S curve-connect'!I$15+'Res-Appliance class'!$E42*'RES S curve-connect'!I$20","v":-2546.7881658738611},{"$f":"'Res-Appliance class'!$B42*'RES S curve-connect'!J$5+'Res-Appliance class'!$C42*'RES S curve-connect'!J$10+'Res-Appliance class'!$D42*'RES S curve-connect'!J$15+'Res-Appliance class'!$E42*'RES S curve-connect'!J$20","v":-2859.5563208290387},{"$f":"'Res-Appliance class'!$B42*'RES S curve-connect'!K$5+'Res-Appliance class'!$C42*'RES S curve-connect'!K$10+'Res-Appliance class'!$D42*'RES S curve-connect'!K$15+'Res-Appliance class'!$E42*'RES S curve-connect'!K$20","v":-2431.5525746297999},{"$f":"'Res-Appliance class'!$B42*'RES S curve-connect'!L$5+'Res-Appliance class'!$C42*'RES S curve-connect'!L$10+'Res-Appliance class'!$D42*'RES S curve-connect'!L$15+'Res-Appliance class'!$E42*'RES S curve-connect'!L$20","v":-2573.3252134193967},{"$f":"'Res-Appliance class'!$B42*'RES S curve-connect'!M$5+'Res-Appliance class'!$C42*'RES S curve-connect'!M$10+'Res-Appliance class'!$D42*'RES S curve-connect'!M$15+'Res-Appliance class'!$E42*'RES S curve-connect'!M$20","v":-2816.0059455172809},{"$f":"'Res-Appliance class'!$B42*'RES S curve-connect'!N$5+'Res-Appliance class'!$C42*'RES S curve-connect'!N$10+'Res-Appliance class'!$D42*'RES S curve-connect'!N$15+'Res-Appliance class'!$E42*'RES S curve-connect'!N$20","v":-2826.2241966541901},{"$f":"'Res-Appliance class'!$B42*'RES S curve-connect'!O$5+'Res-Appliance class'!$C42*'RES S curve-connect'!O$10+'Res-Appliance class'!$D42*'RES S curve-connect'!O$15+'Res-Appliance class'!$E42*'RES S curve-connect'!O$20","v":-2566.1541392538729},{"$f":"'Res-Appliance class'!$B42*'RES S curve-connect'!P$5+'Res-Appliance class'!$C42*'RES S curve-connect'!P$10+'Res-Appliance class'!$D42*'RES S curve-connect'!P$15+'Res-Appliance class'!$E42*'RES S curve-connect'!P$20","v":-2359.3031691646788},{"$f":"'Res-Appliance class'!$B42*'RES S curve-connect'!Q$5+'Res-Appliance class'!$C42*'RES S curve-connect'!Q$10+'Res-Appliance class'!$D42*'RES S curve-connect'!Q$15+'Res-Appliance class'!$E42*'RES S curve-connect'!Q$20","v":-2054.4608708892592},{"$f":"'Res-Appliance class'!$B42*'RES S curve-connect'!R$5+'Res-Appliance class'!$C42*'RES S curve-connect'!R$10+'Res-Appliance class'!$D42*'RES S curve-connect'!R$15+'Res-Appliance class'!$E42*'RES S curve-connect'!R$20","v":-1875.8831622994776},{"$f":"'Res-Appliance class'!$B42*'RES S curve-connect'!S$5+'Res-Appliance class'!$C42*'RES S curve-connect'!S$10+'Res-Appliance class'!$D42*'RES S curve-connect'!S$15+'Res-Appliance class'!$E42*'RES S curve-connect'!S$20","v":-1594.722601422143},{"$f":"'Res-Appliance class'!$B42*'RES S curve-connect'!T$5+'Res-Appliance class'!$C42*'RES S curve-connect'!T$10+'Res-Appliance class'!$D42*'RES S curve-connect'!T$15+'Res-Appliance class'!$E42*'RES S curve-connect'!T$20","v":-1447.668165670721},{"$f":"'Res-Appliance class'!$B42*'RES S curve-connect'!U$5+'Res-Appliance class'!$C42*'RES S curve-connect'!U$10+'Res-Appliance class'!$D42*'RES S curve-connect'!U$15+'Res-Appliance class'!$E42*'RES S curve-connect'!U$20","v":-1273.2820284606819},{"$f":"'Res-Appliance class'!$B42*'RES S curve-connect'!V$5+'Res-Appliance class'!$C42*'RES S curve-connect'!V$10+'Res-Appliance class'!$D42*'RES S curve-connect'!V$15+'Res-Appliance class'!$E42*'RES S curve-connect'!V$20","v":-1146.9525528982981},{"$f":"'Res-Appliance class'!$B42*'RES S curve-connect'!W$5+'Res-Appliance class'!$C42*'RES S curve-connect'!W$10+'Res-Appliance class'!$D42*'RES S curve-connect'!W$15+'Res-Appliance class'!$E42*'RES S curve-connect'!W$20","v":-1045.346416242593},{"$f":"'Res-Appliance class'!$B42*'RES S curve-connect'!X$5+'Res-Appliance class'!$C42*'RES S curve-connect'!X$10+'Res-Appliance class'!$D42*'RES S curve-connect'!X$15+'Res-Appliance class'!$E42*'RES S curve-connect'!X$20","v":-839.08701899160678},{"$f":"'Res-Appliance class'!$B42*'RES S curve-connect'!Y$5+'Res-Appliance class'!$C42*'RES S curve-connect'!Y$10+'Res-Appliance class'!$D42*'RES S curve-connect'!Y$15+'Res-Appliance class'!$E42*'RES S curve-connect'!Y$20","v":-629.34850748505812},{"$f":"'Res-Appliance class'!$B42*'RES S curve-connect'!Z$5+'Res-Appliance class'!$C42*'RES S curve-connect'!Z$10+'Res-Appliance class'!$D42*'RES S curve-connect'!Z$15+'Res-Appliance class'!$E42*'RES S curve-connect'!Z$20","v":-482.17236519778317},{"$f":"'Res-Appliance class'!$B42*'RES S curve-connect'!AA$5+'Res-Appliance class'!$C42*'RES S curve-connect'!AA$10+'Res-Appliance class'!$D42*'RES S curve-connect'!AA$15+'Res-Appliance class'!$E42*'RES S curve-connect'!AA$20","v":-333.57796799486181},{"$f":"'Res-Appliance class'!$B42*'RES S curve-connect'!AB$5+'Res-Appliance class'!$C42*'RES S curve-connect'!AB$10+'Res-Appliance class'!$D42*'RES S curve-connect'!AB$15+'Res-Appliance class'!$E42*'RES S curve-connect'!AB$20","v":-211.51922086917901},{"$f":"'Res-Appliance class'!$B42*'RES S curve-connect'!AC$5+'Res-Appliance class'!$C42*'RES S curve-connect'!AC$10+'Res-Appliance class'!$D42*'RES S curve-connect'!AC$15+'Res-Appliance class'!$E42*'RES S curve-connect'!AC$20","v":-92.528940439732708},{"$f":"'Res-Appliance class'!$B42*'RES S curve-connect'!AD$5+'Res-Appliance class'!$C42*'RES S curve-connect'!AD$10+'Res-Appliance class'!$D42*'RES S curve-connect'!AD$15+'Res-Appliance class'!$E42*'RES S curve-connect'!AD$20","v":17.742328625411631},{"$f":"'Res-Appliance class'!$B42*'RES S curve-connect'!AE$5+'Res-Appliance class'!$C42*'RES S curve-connect'!AE$10+'Res-Appliance class'!$D42*'RES S curve-connect'!AE$15+'Res-Appliance class'!$E42*'RES S curve-connect'!AE$20","v":134.95125917574114},{"$f":"'Res-Appliance class'!$B42*'RES S curve-connect'!AF$5+'Res-Appliance class'!$C42*'RES S curve-connect'!AF$10+'Res-Appliance class'!$D42*'RES S curve-connect'!AF$15+'Res-Appliance class'!$E42*'RES S curve-connect'!AF$20","v":279.90189566789371},{"$f":"'Res-Appliance class'!$B42*'RES S curve-connect'!AG$5+'Res-Appliance class'!$C42*'RES S curve-connect'!AG$10+'Res-Appliance class'!$D42*'RES S curve-connect'!AG$15+'Res-Appliance class'!$E42*'RES S curve-connect'!AG$20","v":371.11795770015021},{"$f":"'Res-Appliance class'!$B42*'RES S curve-connect'!AH$5+'Res-Appliance class'!$C42*'RES S curve-connect'!AH$10+'Res-Appliance class'!$D42*'RES S curve-connect'!AH$15+'Res-Appliance class'!$E42*'RES S curve-connect'!AH$20","v":495.30812695091879},{"$f":"'Res-Appliance class'!$B42*'RES S curve-connect'!AI$5+'Res-Appliance class'!$C42*'RES S curve-connect'!AI$10+'Res-Appliance class'!$D42*'RES S curve-connect'!AI$15+'Res-Appliance class'!$E42*'RES S curve-connect'!AI$20","v":610.74252666996267},{"$f":"'Res-Appliance class'!$B42*'RES S curve-connect'!AJ$5+'Res-Appliance class'!$C42*'RES S curve-connect'!AJ$10+'Res-Appliance class'!$D42*'RES S curve-connect'!AJ$15+'Res-Appliance class'!$E42*'RES S curve-connect'!AJ$20","v":714.1286184877672},{"$f":"'Res-Appliance class'!$B42*'RES S curve-connect'!AK$5+'Res-Appliance class'!$C42*'RES S curve-connect'!AK$10+'Res-Appliance class'!$D42*'RES S curve-connect'!AK$15+'Res-Appliance class'!$E42*'RES S curve-connect'!AK$20","v":824.02345315427783},{"$f":"'Res-Appliance class'!$B42*'RES S curve-connect'!AL$5+'Res-Appliance class'!$C42*'RES S curve-connect'!AL$10+'Res-Appliance class'!$D42*'RES S curve-connect'!AL$15+'Res-Appliance class'!$E42*'RES S curve-connect'!AL$20","v":433.35392472372098},{"$f":"'Res-Appliance class'!$B42*'RES S curve-connect'!AM$5+'Res-Appliance class'!$C42*'RES S curve-connect'!AM$10+'Res-Appliance class'!$D42*'RES S curve-connect'!AM$15+'Res-Appliance class'!$E42*'RES S curve-connect'!AM$20","v":387.90954443240082},{"$f":"'Res-Appliance class'!$B42*'RES S curve-connect'!AN$5+'Res-Appliance class'!$C42*'RES S curve-connect'!AN$10+'Res-Appliance class'!$D42*'RES S curve-connect'!AN$15+'Res-Appliance class'!$E42*'RES S curve-connect'!AN$20","v":494.85957708138233},{"$f":"'Res-Appliance class'!$B42*'RES S curve-connect'!AO$5+'Res-Appliance class'!$C42*'RES S curve-connect'!AO$10+'Res-Appliance class'!$D42*'RES S curve-connect'!AO$15+'Res-Appliance class'!$E42*'RES S curve-connect'!AO$20","v":622.92311290703037},{"$f":"'Res-Appliance class'!$B42*'RES S curve-connect'!AP$5+'Res-Appliance class'!$C42*'RES S curve-connect'!AP$10+'Res-Appliance class'!$D42*'RES S curve-connect'!AP$15+'Res-Appliance class'!$E42*'RES S curve-connect'!AP$20","v":739.60474303416458},{"$f":"'Res-Appliance class'!$B42*'RES S curve-connect'!AQ$5+'Res-Appliance class'!$C42*'RES S curve-connect'!AQ$10+'Res-Appliance class'!$D42*'RES S curve-connect'!AQ$15+'Res-Appliance class'!$E42*'RES S curve-connect'!AQ$20","v":866.88004964322568},{"$f":"'Res-Appliance class'!$B42*'RES S curve-connect'!AR$5+'Res-Appliance class'!$C42*'RES S curve-connect'!AR$10+'Res-Appliance class'!$D42*'RES S curve-connect'!AR$15+'Res-Appliance class'!$E42*'RES S curve-connect'!AR$20","v":1005.6694046813672},{"$f":"'Res-Appliance class'!$B42*'RES S curve-connect'!AS$5+'Res-Appliance class'!$C42*'RES S curve-connect'!AS$10+'Res-Appliance class'!$D42*'RES S curve-connect'!AS$15+'Res-Appliance class'!$E42*'RES S curve-connect'!AS$20","v":1161.1656404994155},{"$f":"'Res-Appliance class'!$B42*'RES S curve-connect'!AT$5+'Res-Appliance class'!$C42*'RES S curve-connect'!AT$10+'Res-Appliance class'!$D42*'RES S curve-connect'!AT$15+'Res-Appliance class'!$E42*'RES S curve-connect'!AT$20","v":1333.9957643785081},{"$f":"'Res-Appliance class'!$B42*'RES S curve-connect'!AU$5+'Res-Appliance class'!$C42*'RES S curve-connect'!AU$10+'Res-Appliance class'!$D42*'RES S curve-connect'!AU$15+'Res-Appliance class'!$E42*'RES S curve-connect'!AU$20","v":1535.2851518268826},{"$f":"'Res-Appliance class'!$B42*'RES S curve-connect'!AV$5+'Res-Appliance class'!$C42*'RES S curve-connect'!AV$10+'Res-Appliance class'!$D42*'RES S curve-connect'!AV$15+'Res-Appliance class'!$E42*'RES S curve-connect'!AV$20","v":1763.52473418927},{"$f":"'Res-Appliance class'!$B42*'RES S curve-connect'!AW$5+'Res-Appliance class'!$C42*'RES S curve-connect'!AW$10+'Res-Appliance class'!$D42*'RES S curve-connect'!AW$15+'Res-Appliance class'!$E42*'RES S curve-connect'!AW$20","v":2025.225028197689},{"$f":"'Res-Appliance class'!$B42*'RES S curve-connect'!AX$5+'Res-Appliance class'!$C42*'RES S curve-connect'!AX$10+'Res-Appliance class'!$D42*'RES S curve-connect'!AX$15+'Res-Appliance class'!$E42*'RES S curve-connect'!AX$20","v":2321.8287745335438},{"$f":"'Res-Appliance class'!$B42*'RES S curve-connect'!AY$5+'Res-Appliance class'!$C42*'RES S curve-connect'!AY$10+'Res-Appliance class'!$D42*'RES S curve-connect'!AY$15+'Res-Appliance class'!$E42*'RES S curve-connect'!AY$20","v":2664.7366251552758},{"$f":"'Res-Appliance class'!$B42*'RES S curve-connect'!AZ$5+'Res-Appliance class'!$C42*'RES S curve-connect'!AZ$10+'Res-Appliance class'!$D42*'RES S curve-connect'!AZ$15+'Res-Appliance class'!$E42*'RES S curve-connect'!AZ$20","v":3054.5575945415781},{"$f":"'Res-Appliance class'!$B42*'RES S curve-connect'!BA$5+'Res-Appliance class'!$C42*'RES S curve-connect'!BA$10+'Res-Appliance class'!$D42*'RES S curve-connect'!BA$15+'Res-Appliance class'!$E42*'RES S curve-connect'!BA$20","v":3504.5191533335264},{"$f":"'Res-Appliance class'!$B42*'RES S curve-connect'!BB$5+'Res-Appliance class'!$C42*'RES S curve-connect'!BB$10+'Res-Appliance class'!$D42*'RES S curve-connect'!BB$15+'Res-Appliance class'!$E42*'RES S curve-connect'!BB$20","v":4027.584226212075},{"$f":"'Res-Appliance class'!$B42*'RES S curve-connect'!BC$5+'Res-Appliance class'!$C42*'RES S curve-connect'!BC$10+'Res-Appliance class'!$D42*'RES S curve-connect'!BC$15+'Res-Appliance class'!$E42*'RES S curve-connect'!BC$20","v":4650.872278257677},{"$f":"'Res-Appliance class'!$B42*'RES S curve-connect'!BD$5+'Res-Appliance class'!$C42*'RES S curve-connect'!BD$10+'Res-Appliance class'!$D42*'RES S curve-connect'!BD$15+'Res-Appliance class'!$E42*'RES S curve-connect'!BD$20","v":5245.3584791355843},{"$f":"'Res-Appliance class'!$B42*'RES S curve-connect'!BE$5+'Res-Appliance class'!$C42*'RES S curve-connect'!BE$10+'Res-Appliance class'!$D42*'RES S curve-connect'!BE$15+'Res-Appliance class'!$E42*'RES S curve-connect'!BE$20","v":5786.4510718928632},{"$f":"'Res-Appliance class'!$B42*'RES S curve-connect'!BF$5+'Res-Appliance class'!$C42*'RES S curve-connect'!BF$10+'Res-Appliance class'!$D42*'RES S curve-connect'!BF$15+'Res-Appliance class'!$E42*'RES S curve-connect'!BF$20","v":6340.7631436305082},{"$f":"'Res-Appliance class'!$B42*'RES S curve-connect'!BG$5+'Res-Appliance class'!$C42*'RES S curve-connect'!BG$10+'Res-Appliance class'!$D42*'RES S curve-connect'!BG$15+'Res-Appliance class'!$E42*'RES S curve-connect'!BG$20","v":6970.6834656034998},{"$f":"'Res-Appliance class'!$B42*'RES S curve-connect'!BH$5+'Res-Appliance class'!$C42*'RES S curve-connect'!BH$10+'Res-Appliance class'!$D42*'RES S curve-connect'!BH$15+'Res-Appliance class'!$E42*'RES S curve-connect'!BH$20","v":7716.9066730204695},{"$f":"'Res-Appliance class'!$B42*'RES S curve-connect'!BI$5+'Res-Appliance class'!$C42*'RES S curve-connect'!BI$10+'Res-Appliance class'!$D42*'RES S curve-connect'!BI$15+'Res-Appliance class'!$E42*'RES S curve-connect'!BI$20","v":8799.7845917158011},{"$f":"'Res-Appliance class'!$B42*'RES S curve-connect'!BJ$5+'Res-Appliance class'!$C42*'RES S curve-connect'!BJ$10+'Res-Appliance class'!$D42*'RES S curve-connect'!BJ$15+'Res-Appliance class'!$E42*'RES S curve-connect'!BJ$20","v":10377.878202274558},{"$f":"'Res-Appliance class'!$B42*'RES S curve-connect'!BK$5+'Res-Appliance class'!$C42*'RES S curve-connect'!BK$10+'Res-Appliance class'!$D42*'RES S curve-connect'!BK$15+'Res-Appliance class'!$E42*'RES S curve-connect'!BK$20","v":12695.265704404646},{"$f":"'Res-Appliance class'!$B42*'RES S curve-connect'!BL$5+'Res-Appliance class'!$C42*'RES S curve-connect'!BL$10+'Res-Appliance class'!$D42*'RES S curve-connect'!BL$15+'Res-Appliance class'!$E42*'RES S curve-connect'!BL$20","v":-986.56657270980691},{"$f":"'Res-Appliance class'!$B42*'RES S curve-connect'!BM$5+'Res-Appliance class'!$C42*'RES S curve-connect'!BM$10+'Res-Appliance class'!$D42*'RES S curve-connect'!BM$15+'Res-Appliance class'!$E42*'RES S curve-connect'!BM$20","v":-983.54099554929121},{"$f":"'Res-Appliance class'!$B42*'RES S curve-connect'!BN$5+'Res-Appliance class'!$C42*'RES S curve-connect'!BN$10+'Res-Appliance class'!$D42*'RES S curve-connect'!BN$15+'Res-Appliance class'!$E42*'RES S curve-connect'!BN$20","v":-982.78333945146414},{"$f":"'Res-Appliance class'!$B42*'RES S curve-connect'!BO$5+'Res-Appliance class'!$C42*'RES S curve-connect'!BO$10+'Res-Appliance class'!$D42*'RES S curve-connect'!BO$15+'Res-Appliance class'!$E42*'RES S curve-connect'!BO$20","v":-977.50496169757025},{"$f":"'Res-Appliance class'!$B42*'RES S curve-connect'!BP$5+'Res-Appliance class'!$C42*'RES S curve-connect'!BP$10+'Res-Appliance class'!$D42*'RES S curve-connect'!BP$15+'Res-Appliance class'!$E42*'RES S curve-connect'!BP$20","v":-974.49444297889704},{"$f":"'Res-Appliance class'!$B42*'RES S curve-connect'!BQ$5+'Res-Appliance class'!$C42*'RES S curve-connect'!BQ$10+'Res-Appliance class'!$D42*'RES S curve-connect'!BQ$15+'Res-Appliance class'!$E42*'RES S curve-connect'!BQ$20","v":-971.48888203812749},{"$f":"'Res-Appliance class'!$B42*'RES S curve-connect'!BR$5+'Res-Appliance class'!$C42*'RES S curve-connect'!BR$10+'Res-Appliance class'!$D42*'RES S curve-connect'!BR$15+'Res-Appliance class'!$E42*'RES S curve-connect'!BR$20","v":-970.75111888254969},{"$f":"'Res-Appliance class'!$B42*'RES S curve-connect'!BS$5+'Res-Appliance class'!$C42*'RES S curve-connect'!BS$10+'Res-Appliance class'!$D42*'RES S curve-connect'!BS$15+'Res-Appliance class'!$E42*'RES S curve-connect'!BS$20","v":-965.49251156838886},{"$f":"'Res-Appliance class'!$B42*'RES S curve-connect'!BT$5+'Res-Appliance class'!$C42*'RES S curve-connect'!BT$10+'Res-Appliance class'!$D42*'RES S curve-connect'!BT$15+'Res-Appliance class'!$E42*'RES S curve-connect'!BT$20","v":-962.50164155699235},{"$f":"'Res-Appliance class'!$B42*'RES S curve-connect'!BU$5+'Res-Appliance class'!$C42*'RES S curve-connect'!BU$10+'Res-Appliance class'!$D42*'RES S curve-connect'!BU$15+'Res-Appliance class'!$E42*'RES S curve-connect'!BU$20","v":-959.51560835621524},{"$f":"'Res-Appliance class'!$B42*'RES S curve-connect'!BV$5+'Res-Appliance class'!$C42*'RES S curve-connect'!BV$10+'Res-Appliance class'!$D42*'RES S curve-connect'!BV$15+'Res-Appliance class'!$E42*'RES S curve-connect'!BV$20","v":-958.79725273366171},{"$f":"'Res-Appliance class'!$B42*'RES S curve-connect'!BW$5+'Res-Appliance class'!$C42*'RES S curve-connect'!BW$10+'Res-Appliance class'!$D42*'RES S curve-connect'!BW$15+'Res-Appliance class'!$E42*'RES S curve-connect'!BW$20","v":-953.55793350104648},{"$f":"'Res-Appliance class'!$B42*'RES S curve-connect'!BX$5+'Res-Appliance class'!$C42*'RES S curve-connect'!BX$10+'Res-Appliance class'!$D42*'RES S curve-connect'!BX$15+'Res-Appliance class'!$E42*'RES S curve-connect'!BX$20","v":-950.586232870412},{"$f":"'Res-Appliance class'!$B42*'RES S curve-connect'!BY$5+'Res-Appliance class'!$C42*'RES S curve-connect'!BY$10+'Res-Appliance class'!$D42*'RES S curve-connect'!BY$15+'Res-Appliance class'!$E42*'RES S curve-connect'!BY$20","v":-947.61925109554386},{"$f":"'Res-Appliance class'!$B42*'RES S curve-connect'!BZ$5+'Res-Appliance class'!$C42*'RES S curve-connect'!BZ$10+'Res-Appliance class'!$D42*'RES S curve-connect'!BZ$15+'Res-Appliance class'!$E42*'RES S curve-connect'!BZ$20","v":-946.9198296852436},{"$f":"'Res-Appliance class'!$B42*'RES S curve-connect'!CA$5+'Res-Appliance class'!$C42*'RES S curve-connect'!CA$10+'Res-Appliance class'!$D42*'RES S curve-connect'!CA$15+'Res-Appliance class'!$E42*'RES S curve-connect'!CA$20","v":-941.69932818771781},{"$f":"'Res-Appliance class'!$B42*'RES S curve-connect'!CB$5+'Res-Appliance class'!$C42*'RES S curve-connect'!CB$10+'Res-Appliance class'!$D42*'RES S curve-connect'!CB$15+'Res-Appliance class'!$E42*'RES S curve-connect'!CB$20","v":-938.74632954682681},{"$f":"'Res-Appliance class'!$B42*'RES S curve-connect'!CC$5+'Res-Appliance class'!$C42*'RES S curve-connect'!CC$10+'Res-Appliance class'!$D42*'RES S curve-connect'!CC$15+'Res-Appliance class'!$E42*'RES S curve-connect'!CC$20","v":-935.79793474353175},{"$f":"'Res-Appliance class'!$B42*'RES S curve-connect'!CD$5+'Res-Appliance class'!$C42*'RES S curve-connect'!CD$10+'Res-Appliance class'!$D42*'RES S curve-connect'!CD$15+'Res-Appliance class'!$E42*'RES S curve-connect'!CD$20","v":-978.63740234483316}]
["South Gippsland (S)",null,{"$f":"'Res-Appliance class'!$B43*'RES S curve-connect'!C$5+'Res-Appliance class'!$C43*'RES S curve-connect'!C$10+'Res-Appliance class'!$D43*'RES S curve-connect'!C$15+'Res-Appliance class'!$E43*'RES S curve-connect'!C$20","v":-3104.0024167821821},{"$f":"'Res-Appliance class'!$B43*'RES S curve-connect'!D$5+'Res-Appliance class'!$C43*'RES S curve-connect'!D$10+'Res-Appliance class'!$D43*'RES S curve-connect'!D$15+'Res-Appliance class'!$E43*'RES S curve-connect'!D$20","v":-3393.8035985235729},{"$f":"'Res-Appliance class'!$B43*'RES S curve-connect'!E$5+'Res-Appliance class'!$C43*'RES S curve-connect'!E$10+'Res-Appliance class'!$D43*'RES S curve-connect'!E$15+'Res-Appliance class'!$E43*'RES S curve-connect'!E$20","v":-2669.345156820274},{"$f":"'Res-Appliance class'!$B43*'RES S curve-connect'!F$5+'Res-Appliance class'!$C43*'RES S curve-connect'!F$10+'Res-Appliance class'!$D43*'RES S curve-connect'!F$15+'Res-Appliance class'!$E43*'RES S curve-connect'!F$20","v":-2586.388183446144},{"$f":"'Res-Appliance class'!$B43*'RES S curve-connect'!G$5+'Res-Appliance class'!$C43*'RES S curve-connect'!G$10+'Res-Appliance class'!$D43*'RES S curve-connect'!G$15+'Res-Appliance class'!$E43*'RES S curve-connect'!G$20","v":-3362.9640125567657},{"$f":"'Res-Appliance class'!$B43*'RES S curve-connect'!H$5+'Res-Appliance class'!$C43*'RES S curve-connect'!H$10+'Res-Appliance class'!$D43*'RES S curve-connect'!H$15+'Res-Appliance class'!$E43*'RES S curve-connect'!H$20","v":-3409.5234170526601},{"$f":"'Res-Appliance class'!$B43*'RES S curve-connect'!I$5+'Res-Appliance class'!$C43*'RES S curve-connect'!I$10+'Res-Appliance class'!$D43*'RES S curve-connect'!I$15+'Res-Appliance class'!$E43*'RES S curve-connect'!I$20","v":-3172.2664646013418},{"$f":"'Res-Appliance class'!$B43*'RES S curve-connect'!J$5+'Res-Appliance class'!$C43*'RES S curve-connect'!J$10+'Res-Appliance class'!$D43*'RES S curve-connect'!J$15+'Res-Appliance class'!$E43*'RES S curve-connect'!J$20","v":-3534.228480781142},{"$f":"'Res-Appliance class'!$B43*'RES S curve-connect'!K$5+'Res-Appliance class'!$C43*'RES S curve-connect'!K$10+'Res-Appliance class'!$D43*'RES S curve-connect'!K$15+'Res-Appliance class'!$E43*'RES S curve-connect'!K$20","v":-2997.6874149603427},{"$f":"'Res-Appliance class'!$B43*'RES S curve-connect'!L$5+'Res-Appliance class'!$C43*'RES S curve-connect'!L$10+'Res-Appliance class'!$D43*'RES S curve-connect'!L$15+'Res-Appliance class'!$E43*'RES S curve-connect'!L$20","v":-3177.1346345158181},{"$f":"'Res-Appliance class'!$B43*'RES S curve-connect'!M$5+'Res-Appliance class'!$C43*'RES S curve-connect'!M$10+'Res-Appliance class'!$D43*'RES S curve-connect'!M$15+'Res-Appliance class'!$E43*'RES S curve-connect'!M$20","v":-3498.3288066464866},{"$f":"'Res-Appliance class'!$B43*'RES S curve-connect'!N$5+'Res-Appliance class'!$C43*'RES S curve-connect'!N$10+'Res-Appliance class'!$D43*'RES S curve-connect'!N$15+'Res-Appliance class'!$E43*'RES S curve-connect'!N$20","v":-3512.7105920420645},{"$f":"'Res-Appliance class'!$B43*'RES S curve-connect'!O$5+'Res-Appliance class'!$C43*'RES S curve-connect'!O$10+'Res-Appliance class'!$D43*'RES S curve-connect'!O$15+'Res-Appliance class'!$E43*'RES S curve-connect'!O$20","v":-3184.1195765920761},{"$f":"'Res-Appliance class'!$B43*'RES S curve-connect'!P$5+'Res-Appliance class'!$C43*'RES S curve-connect'!P$10+'Res-Appliance class'!$D43*'RES S curve-connect'!P$15+'Res-Appliance class'!$E43*'RES S curve-connect'!P$20","v":-2921.0105830009425},{"$f":"'Res-Appliance class'!$B43*'RES S curve-connect'!Q$5+'Res-Appliance class'!$C43*'RES S curve-connect'!Q$10+'Res-Appliance class'!$D43*'RES S curve-connect'!Q$15+'Res-Appliance class'!$E43*'RES S curve-connect'!Q$20","v":-2532.7048743735413},{"$f":"'Res-Appliance class'!$B43*'RES S curve-connect'!R$5+'Res-Appliance class'!$C43*'RES S curve-connect'!R$10+'Res-Appliance class'!$D43*'RES S curve-connect'!R$15+'Res-Appliance class'!$E43*'RES S curve-connect'!R$20","v":-2305.2951479946796},{"$f":"'Res-Appliance class'!$B43*'RES S curve-connect'!S$5+'Res-Appliance class'!$C43*'RES S curve-connect'!S$10+'Res-Appliance class'!$D43*'RES S curve-connect'!S$15+'Res-Appliance class'!$E43*'RES S curve-connect'!S$20","v":-1951.1577531304658},{"$f":"'Res-Appliance class'!$B43*'RES S curve-connect'!T$5+'Res-Appliance class'!$C43*'RES S curve-connect'!T$10+'Res-Appliance class'!$D43*'RES S curve-connect'!T$15+'Res-Appliance class'!$E43*'RES S curve-connect'!T$20","v":-1756.9676962423691},{"$f":"'Res-Appliance class'!$B43*'RES S curve-connect'!U$5+'Res-Appliance class'!$C43*'RES S curve-connect'!U$10+'Res-Appliance class'!$D43*'RES S curve-connect'!U$15+'Res-Appliance class'!$E43*'RES S curve-connect'!U$20","v":-1533.2507319481294},{"$f":"'Res-Appliance class'!$B43*'RES S curve-connect'!V$5+'Res-Appliance class'!$C43*'RES S curve-connect'!V$10+'Res-Appliance class'!$D43*'RES S curve-connect'!V$15+'Res-Appliance class'!$E43*'RES S curve-connect'!V$20","v":-1373.367934032522},{"$f":"'Res-Appliance class'!$B43*'RES S curve-connect'!W$5+'Res-Appliance class'!$C43*'RES S curve-connect'!W$10+'Res-Appliance class'!$D43*'RES S curve-connect'!W$15+'Res-Appliance class'!$E43*'RES S curve-connect'!W$20","v":-1245.2811512289477},{"$f":"'Res-Appliance class'!$B43*'RES S curve-connect'!X$5+'Res-Appliance class'!$C43*'RES S curve-connect'!X$10+'Res-Appliance class'!$D43*'RES S curve-connect'!X$15+'Res-Appliance class'!$E43*'RES S curve-connect'!X$20","v":-980.24898469403615},{"$f":"'Res-Appliance class'!$B43*'RES S curve-connect'!Y$5+'Res-Appliance class'!$C43*'RES S curve-connect'!Y$10+'Res-Appliance class'!$D43*'RES S curve-connect'!Y$15+'Res-Appliance class'!$E43*'RES S curve-connect'!Y$20","v":-711.69056743956344},{"$f":"'Res-Appliance class'!$B43*'RES S curve-connect'!Z$5+'Res-Appliance class'!$C43*'RES S curve-connect'!Z$10+'Res-Appliance class'!$D43*'RES S curve-connect'!Z$15+'Res-Appliance class'!$E43*'RES S curve-connect'!Z$20","v":-524.01750222862688},{"$f":"'Res-Appliance class'!$B43*'RES S curve-connect'!AA$5+'Res-Appliance class'!$C43*'RES S curve-connect'!AA$10+'Res-Appliance class'!$D43*'RES S curve-connect'!AA$15+'Res-Appliance class'!$E43*'RES S curve-connect'!AA$20","v":-335.62328117260085},{"$f":"'Res-Appliance class'!$B43*'RES S curve-connect'!AB$5+'Res-Appliance class'!$C43*'RES S curve-connect'!AB$10+'Res-Appliance class'!$D43*'RES S curve-connect'!AB$15+'Res-Appliance class'!$E43*'RES S curve-connect'!AB$20","v":-181.81322771432514},{"$f":"'Res-Appliance class'!$B43*'RES S curve-connect'!AC$5+'Res-Appliance class'!$C43*'RES S curve-connect'!AC$10+'Res-Appliance class'!$D43*'RES S curve-connect'!AC$15+'Res-Appliance class'!$E43*'RES S curve-connect'!AC$20","v":-32.599367171792778},{"$f":"'Res-Appliance class'!$B43*'RES S curve-connect'!AD$5+'Res-Appliance class'!$C43*'RES S curve-connect'!AD$10+'Res-Appliance class'!$D43*'RES S curve-connect'!AD$15+'Res-Appliance class'!$E43*'RES S curve-connect'!AD$20","v":105.58349282096833},{"$f":"'Res-Appliance class'!$B43*'RES S curve-connect'!AE$5+'Res-Appliance class'!$C43*'RES S curve-connect'!AE$10+'Res-Appliance class'!$D43*'RES S curve-connect'!AE$15+'Res-Appliance class'!$E43*'RES S curve-connect'!AE$20","v":250.99484221396153},{"$f":"'Res-Appliance class'!$B43*'RES S curve-connect'!AF$5+'Res-Appliance class'!$C43*'RES S curve-connect'!AF$10+'Res-Appliance class'!$D43*'RES S curve-connect'!AF$15+'Res-Appliance class'!$E43*'RES S curve-connect'!AF$20","v":432.84711518248616},{"$f":"'Res-Appliance class'!$B43*'RES S curve-connect'!AG$5+'Res-Appliance class'!$C43*'RES S curve-connect'!AG$10+'Res-Appliance class'!$D43*'RES S curve-connect'!AG$15+'Res-Appliance class'!$E43*'RES S curve-connect'!AG$20","v":547.27590780920923},{"$f":"'Res-Appliance class'!$B43*'RES S curve-connect'!AH$5+'Res-Appliance class'!$C43*'RES S curve-connect'!AH$10+'Res-Appliance class'!$D43*'RES S curve-connect'!AH$15+'Res-Appliance class'!$E43*'RES S curve-connect'!AH$20","v":706.08542180696634},{"$f":"'Res-Appliance class'!$B43*'RES S curve-connect'!AI$5+'Res-Appliance class'!$C43*'RES S curve-connect'!AI$10+'Res-Appliance class'!$D43*'RES S curve-connect'!AI$15+'Res-Appliance class'!$E43*'RES S curve-connect'!AI$20","v":850.84413961965947},{"$f":"'Res-Appliance class'!$B43*'RES S curve-connect'!AJ$5+'Res-Appliance class'!$C43*'RES S curve-connect'!AJ$10+'Res-Appliance class'!$D43*'RES S curve-connect'!AJ$15+'Res-Appliance class'!$E43*'RES S curve-connect'!AJ$20","v":981.07368091937826},{"$f":"'Res-Appliance class'!$B43*'RES S curve-connect'!AK$5+'Res-Appliance class'!$C43*'RES S curve-connect'!AK$10+'Res-Appliance class'!$D43*'RES S curve-connect'!AK$15+'Res-Appliance class'!$E43*'RES S curve-connect'!AK$20","v":1119.3994857607115},{"$f":"'Res-Appliance class'!$B43*'RES S curve-connect'!AL$5+'Res-Appliance class'!$C43*'RES S curve-connect'!AL$10+'Res-Appliance class'!$D43*'RES S curve-connect'!AL$15+'Res-Appliance class'!$E43*'RES S curve-connect'!AL$20","v":635.35079442891333},{"$f":"'Res-Appliance class'!$B43*'RES S curve-connect'!AM$5+'Res-Appliance class'!$C43*'RES S curve-connect'!AM$10+'Res-Appliance class'!$D43*'RES S curve-connect'!AM$15+'Res-Appliance class'!$E43*'RES S curve-connect'!AM$20","v":575.00245186030747},{"$f":"'Res-Appliance class'!$B43*'RES S curve-connect'!AN$5+'Res-Appliance class'!$C43*'RES S curve-connect'!AN$10+'Res-Appliance class'!$D43*'RES S curve-connect'!AN$15+'Res-Appliance class'!$E43*'RES S curve-connect'!AN$20","v":707.46686001539899},{"$f":"'Res-Appliance class'!$B43*'RES S curve-connect'!AO$5+'Res-Appliance class'!$C43*'RES S curve-connect'!AO$10+'Res-Appliance class'!$D43*'RES S curve-connect'!AO$15+'Res-Appliance class'!$E43*'RES S curve-connect'!AO$20","v":868.05114380096052},{"$f":"'Res-Appliance class'!$B43*'RES S curve-connect'!AP$5+'Res-Appliance class'!$C43*'RES S curve-connect'!AP$10+'Res-Appliance class'!$D43*'RES S curve-connect'!AP$15+'Res-Appliance class'!$E43*'RES S curve-connect'!AP$20","v":1015.5654462268792},{"$f":"'Res-Appliance class'!$B43*'RES S curve-connect'!AQ$5+'Res-Appliance class'!$C43*'RES S curve-connect'!AQ$10+'Res-Appliance class'!$D43*'RES S curve-connect'!AQ$15+'Res-Appliance class'!$E43*'RES S curve-connect'!AQ$20","v":1175.2338243428671},{"$f":"'Res-Appliance class'!$B43*'RES S curve-connect'!AR$5+'Res-Appliance class'!$C43*'RES S curve-connect'!AR$10+'Res-Appliance class'!$D43*'RES S curve-connect'!AR$15+'Res-Appliance class'!$E43*'RES S curve-connect'!AR$20","v":1350.0514570095781},{"$f":"'Res-Appliance class'!$B43*'RES S curve-connect'!AS$5+'Res-Appliance class'!$C43*'RES S curve-connect'!AS$10+'Res-Appliance class'!$D43*'RES S curve-connect'!AS$15+'Res-Appliance class'!$E43*'RES S curve-connect'!AS$20","v":1546.0909419993857},{"$f":"'Res-Appliance class'!$B43*'RES S curve-connect'!AT$5+'Res-Appliance class'!$C43*'RES S curve-connect'!AT$10+'Res-Appliance class'!$D43*'RES S curve-connect'!AT$15+'Res-Appliance class'!$E43*'RES S curve-connect'!AT$20","v":1764.8036205860922},{"$f":"'Res-Appliance class'!$B43*'RES S curve-connect'!AU$5+'Res-Appliance class'!$C43*'RES S curve-connect'!AU$10+'Res-Appliance class'!$D43*'RES S curve-connect'!AU$15+'Res-Appliance class'!$E43*'RES S curve-connect'!AU$20","v":2018.516314175939},{"$f":"'Res-Appliance class'!$B43*'RES S curve-connect'!AV$5+'Res-Appliance class'!$C43*'RES S curve-connect'!AV$10+'Res-Appliance class'!$D43*'RES S curve-connect'!AV$15+'Res-Appliance class'!$E43*'RES S curve-connect'!AV$20","v":2307.2140403519179},{"$f":"'Res-Appliance class'!$B43*'RES S curve-connect'!AW$5+'Res-Appliance class'!$C43*'RES S curve-connect'!AW$10+'Res-Appliance class'!$D43*'RES S curve-connect'!AW$15+'Res-Appliance class'!$E43*'RES S curve-connect'!AW$20","v":2638.7134501366172},{"$f":"'Res-Appliance class'!$B43*'RES S curve-connect'!AX$5+'Res-Appliance class'!$C43*'RES S curve-connect'!AX$10+'Res-Appliance class'!$D43*'RES S curve-connect'!AX$15+'Res-Appliance class'!$E43*'RES S curve-connect'!AX$20","v":3015.6715677273714},{"$f":"'Res-Appliance class'!$B43*'RES S curve-connect'!AY$5+'Res-Appliance class'!$C43*'RES S curve-connect'!AY$10+'Res-Appliance class'!$D43*'RES S curve-connect'!AY$15+'Res-Appliance class'!$E43*'RES S curve-connect'!AY$20","v":3450.9659371375474},{"$f":"'Res-Appliance class'!$B43*'RES S curve-connect'!AZ$5+'Res-Appliance class'!$C43*'RES S curve-connect'!AZ$10+'Res-Appliance class'!$D43*'RES S curve-connect'!AZ$15+'Res-Appliance class'!$E43*'RES S curve-connect'!AZ$20","v":3947.4628973030922},{"$f":"'Res-Appliance class'!$B43*'RES S curve-connect'!BA$5+'Res-Appliance class'!$C43*'RES S curve-connect'!BA$10+'Res-Appliance class'!$D43*'RES S curve-connect'!BA$15+'Res-Appliance class'!$E43*'RES S curve-connect'!BA$20","v":4521.6913682334898},{"$f":"'Res-Appliance class'!$B43*'RES S curve-connect'!BB$5+'Res-Appliance class'!$C43*'RES S curve-connect'!BB$10+'Res-Appliance class'!$D43*'RES S curve-connect'!BB$15+'Res-Appliance class'!$E43*'RES S curve-connect'!BB$20","v":5191.2303345116616},{"$f":"'Res-Appliance class'!$B43*'RES S curve-connect'!BC$5+'Res-Appliance class'!$C43*'RES S curve-connect'!BC$10+'Res-Appliance class'!$D43*'RES S curve-connect'!BC$15+'Res-Appliance class'!$E43*'RES S curve-connect'!BC$20","v":5989.4164645959363},{"$f":"'Res-Appliance class'!$B43*'RES S curve-connect'!BD$5+'Res-Appliance class'!$C43*'RES S curve-connect'!BD$10+'Res-Appliance class'!$D43*'RES S curve-connect'!BD$15+'Res-Appliance class'!$E43*'RES S curve-connect'!BD$20","v":6755.9794732072733},{"$f":"'Res-Appliance class'!$B43*'RES S curve-connect'!BE$5+'Res-Appliance class'!$C43*'RES S curve-connect'!BE$10+'Res-Appliance class'!$D43*'RES S curve-connect'!BE$15+'Res-Appliance class'!$E43*'RES S curve-connect'!BE$20","v":7455.4756345956057},{"$f":"'Res-Appliance class'!$B43*'RES S curve-connect'!BF$5+'Res-Appliance class'!$C43*'RES S curve-connect'!BF$10+'Res-Appliance class'!$D43*'RES S curve-connect'!BF$15+'Res-Appliance class'!$E43*'RES S curve-connect'!BF$20","v":8171.5311015553534},{"$f":"'Res-Appliance class'!$B43*'RES S curve-connect'!BG$5+'Res-Appliance class'!$C43*'RES S curve-connect'!BG$10+'Res-Appliance class'!$D43*'RES S curve-connect'!BG$15+'Res-Appliance class'!$E43*'RES S curve-connect'!BG$20","v":8983.2383254279939},{"$f":"'Res-Appliance class'!$B43*'RES S curve-connect'!BH$5+'Res-Appliance class'!$C43*'RES S curve-connect'!BH$10+'Res-Appliance class'!$D43*'RES S curve-connect'!BH$15+'Res-Appliance class'!$E43*'RES S curve-connect'!BH$20","v":9946.0001474636301},{"$f":"'Res-Appliance class'!$B43*'RES S curve-connect'!BI$5+'Res-Appliance class'!$C43*'RES S curve-connect'!BI$10+'Res-Appliance class'!$D43*'RES S curve-connect'!BI$15+'Res-Appliance class'!$E43*'RES S curve-connect'!BI$20","v":11341.836111719484},{"$f":"'Res-Appliance class'!$B43*'RES S curve-connect'!BJ$5+'Res-Appliance class'!$C43*'RES S curve-connect'!BJ$10+'Res-Appliance class'!$D43*'RES S curve-connect'!BJ$15+'Res-Appliance class'!$E43*'RES S curve-connect'!BJ$20","v":13382.129729372442},{"$f":"'Res-Appliance class'!$B43*'RES S curve-connect'!BK$5+'Res-Appliance class'!$C43*'RES S curve-connect'!BK$10+'Res-Appliance class'!$D43*'RES S curve-connect'!BK$15+'Res-Appliance class'!$E43*'RES S curve-connect'!BK$20","v":16387.32384014094},{"$f":"'Res-Appliance class'!$B43*'RES S curve-connect'!BL$5+'Res-Appliance class'!$C43*'RES S curve-connect'!BL$10+'Res-Appliance class'!$D43*'RES S curve-connect'!BL$15+'Res-Appliance class'!$E43*'RES S curve-connect'!BL$20","v":-1129.8105573382213},{"$f":"'Res-Appliance class'!$B43*'RES S curve-connect'!BM$5+'Res-Appliance class'!$C43*'RES S curve-connect'!BM$10+'Res-Appliance class'!$D43*'RES S curve-connect'!BM$15+'Res-Appliance class'!$E43*'RES S curve-connect'!BM$20","v":-1125.9236429975301},{"$f":"'Res-Appliance class'!$B43*'RES S curve-connect'!BN$5+'Res-Appliance class'!$C43*'RES S curve-connect'!BN$10+'Res-Appliance class'!$D43*'RES S curve-connect'!BN$15+'Res-Appliance class'!$E43*'RES S curve-connect'!BN$20","v":-1124.3056562378258},{"$f":"'Res-Appliance class'!$B43*'RES S curve-connect'!BO$5+'Res-Appliance class'!$C43*'RES S curve-connect'!BO$10+'Res-Appliance class'!$D43*'RES S curve-connect'!BO$15+'Res-Appliance class'!$E43*'RES S curve-connect'!BO$20","v":-1118.1679483955315},{"$f":"'Res-Appliance class'!$B43*'RES S curve-connect'!BP$5+'Res-Appliance class'!$C43*'RES S curve-connect'!BP$10+'Res-Appliance class'!$D43*'RES S curve-connect'!BP$15+'Res-Appliance class'!$E43*'RES S curve-connect'!BP$20","v":-1114.299094253721},{"$f":"'Res-Appliance class'!$B43*'RES S curve-connect'!BQ$5+'Res-Appliance class'!$C43*'RES S curve-connect'!BQ$10+'Res-Appliance class'!$D43*'RES S curve-connect'!BQ$15+'Res-Appliance class'!$E43*'RES S curve-connect'!BQ$20","v":-1110.4361866832376},{"$f":"'Res-Appliance class'!$B43*'RES S curve-connect'!BR$5+'Res-Appliance class'!$C43*'RES S curve-connect'!BR$10+'Res-Appliance class'!$D43*'RES S curve-connect'!BR$15+'Res-Appliance class'!$E43*'RES S curve-connect'!BR$20","v":-1108.8420598556777},{"$f":"'Res-Appliance class'!$B43*'RES S curve-connect'!BS$5+'Res-Appliance class'!$C43*'RES S curve-connect'!BS$10+'Res-Appliance class'!$D43*'RES S curve-connect'!BS$15+'Res-Appliance class'!$E43*'RES S curve-connect'!BS$20","v":-1102.7280660274946},{"$f":"'Res-Appliance class'!$B43*'RES S curve-connect'!BT$5+'Res-Appliance class'!$C43*'RES S curve-connect'!BT$10+'Res-Appliance class'!$D43*'RES S curve-connect'!BT$15+'Res-Appliance class'!$E43*'RES S curve-connect'!BT$20","v":-1098.8827808959584},{"$f":"'Res-Appliance class'!$B43*'RES S curve-connect'!BU$5+'Res-Appliance class'!$C43*'RES S curve-connect'!BU$10+'Res-Appliance class'!$D43*'RES S curve-connect'!BU$15+'Res-Appliance class'!$E43*'RES S curve-connect'!BU$20","v":-1095.0432982403154},{"$f":"'Res-Appliance class'!$B43*'RES S curve-connect'!BV$5+'Res-Appliance class'!$C43*'RES S curve-connect'!BV$10+'Res-Appliance class'!$D43*'RES S curve-connect'!BV$15+'Res-Appliance class'!$E43*'RES S curve-connect'!BV$20","v":-1093.4724531348095},{"$f":"'Res-Appliance class'!$B43*'RES S curve-connect'!BW$5+'Res-Appliance class'!$C43*'RES S curve-connect'!BW$10+'Res-Appliance class'!$D43*'RES S curve-connect'!BW$15+'Res-Appliance class'!$E43*'RES S curve-connect'!BW$20","v":-1087.3815987328198},{"$f":"'Res-Appliance class'!$B43*'RES S curve-connect'!BX$5+'Res-Appliance class'!$C43*'RES S curve-connect'!BX$10+'Res-Appliance class'!$D43*'RES S curve-connect'!BX$15+'Res-Appliance class'!$E43*'RES S curve-connect'!BX$20","v":-1083.5593116228588},{"$f":"'Res-Appliance class'!$B43*'RES S curve-connect'!BY$5+'Res-Appliance class'!$C43*'RES S curve-connect'!BY$10+'Res-Appliance class'!$D43*'RES S curve-connect'!BY$15+'Res-Appliance class'!$E43*'RES S curve-connect'!BY$20","v":-1079.7426864697691},{"$f":"'Res-Appliance class'!$B43*'RES S curve-connect'!BZ$5+'Res-Appliance class'!$C43*'RES S curve-connect'!BZ$10+'Res-Appliance class'!$D43*'RES S curve-connect'!BZ$15+'Res-Appliance class'!$E43*'RES S curve-connect'!BZ$20","v":-1078.1945592277784},{"$f":"'Res-Appliance class'!$B43*'RES S curve-connect'!CA$5+'Res-Appliance class'!$C43*'RES S curve-connect'!CA$10+'Res-Appliance class'!$D43*'RES S curve-connect'!CA$15+'Res-Appliance class'!$E43*'RES S curve-connect'!CA$20","v":-1072.1262839246731},{"$f":"'Res-Appliance class'!$B43*'RES S curve-connect'!CB$5+'Res-Appliance class'!$C43*'RES S curve-connect'!CB$10+'Res-Appliance class'!$D43*'RES S curve-connect'!CB$15+'Res-Appliance class'!$E43*'RES S curve-connect'!CB$20","v":-1068.3264380178327},{"$f":"'Res-Appliance class'!$B43*'RES S curve-connect'!CC$5+'Res-Appliance class'!$C43*'RES S curve-connect'!CC$10+'Res-Appliance class'!$D43*'RES S curve-connect'!CC$15+'Res-Appliance class'!$E43*'RES S curve-connect'!CC$20","v":-1064.5321170354628},{"$f":"'Res-Appliance class'!$B43*'RES S curve-connect'!CD$5+'Res-Appliance class'!$C43*'RES S curve-connect'!CD$10+'Res-Appliance class'!$D43*'RES S curve-connect'!CD$15+'Res-Appliance class'!$E43*'RES S curve-connect'!CD$20","v":-1120.8088676951058}]
["Stonnington (C)",null,{"$f":"'Res-Appliance class'!$B44*'RES S curve-connect'!C$5+'Res-Appliance class'!$C44*'RES S curve-connect'!C$10+'Res-Appliance class'!$D44*'RES S curve-connect'!C$15+'Res-Appliance class'!$E44*'RES S curve-connect'!C$20","v":-2661.8420620545448},{"$f":"'Res-Appliance class'!$B44*'RES S curve-connect'!D$5+'Res-Appliance class'!$C44*'RES S curve-connect'!D$10+'Res-Appliance class'!$D44*'RES S curve-connect'!D$15+'Res-Appliance class'!$E44*'RES S curve-connect'!D$20","v":-2924.3732948593297},{"$f":"'Res-Appliance class'!$B44*'RES S curve-connect'!E$5+'Res-Appliance class'!$C44*'RES S curve-connect'!E$10+'Res-Appliance class'!$D44*'RES S curve-connect'!E$15+'Res-Appliance class'!$E44*'RES S curve-connect'!E$20","v":-2264.9005111113274},{"$f":"'Res-Appliance class'!$B44*'RES S curve-connect'!F$5+'Res-Appliance class'!$C44*'RES S curve-connect'!F$10+'Res-Appliance class'!$D44*'RES S curve-connect'!F$15+'Res-Appliance class'!$E44*'RES S curve-connect'!F$20","v":-2191.4164539422372},{"$f":"'Res-Appliance class'!$B44*'RES S curve-connect'!G$5+'Res-Appliance class'!$C44*'RES S curve-connect'!G$10+'Res-Appliance class'!$D44*'RES S curve-connect'!G$15+'Res-Appliance class'!$E44*'RES S curve-connect'!G$20","v":-2944.3509659347478},{"$f":"'Res-Appliance class'!$B44*'RES S curve-connect'!H$5+'Res-Appliance class'!$C44*'RES S curve-connect'!H$10+'Res-Appliance class'!$D44*'RES S curve-connect'!H$15+'Res-Appliance class'!$E44*'RES S curve-connect'!H$20","v":-2972.4281944528093},{"$f":"'Res-Appliance class'!$B44*'RES S curve-connect'!I$5+'Res-Appliance class'!$C44*'RES S curve-connect'!I$10+'Res-Appliance class'!$D44*'RES S curve-connect'!I$15+'Res-Appliance class'!$E44*'RES S curve-connect'!I$20","v":-2755.2188945536841},{"$f":"'Res-Appliance class'!$B44*'RES S curve-connect'!J$5+'Res-Appliance class'!$C44*'RES S curve-connect'!J$10+'Res-Appliance class'!$D44*'RES S curve-connect'!J$15+'Res-Appliance class'!$E44*'RES S curve-connect'!J$20","v":-3059.8882661217121},{"$f":"'Res-Appliance class'!$B44*'RES S curve-connect'!K$5+'Res-Appliance class'!$C44*'RES S curve-connect'!K$10+'Res-Appliance class'!$D44*'RES S curve-connect'!K$15+'Res-Appliance class'!$E44*'RES S curve-connect'!K$20","v":-2568.6880308287082},{"$f":"'Res-Appliance class'!$B44*'RES S curve-connect'!L$5+'Res-Appliance class'!$C44*'RES S curve-connect'!L$10+'Res-Appliance class'!$D44*'RES S curve-connect'!L$15+'Res-Appliance class'!$E44*'RES S curve-connect'!L$20","v":-2732.4600894501418},{"$f":"'Res-Appliance class'!$B44*'RES S curve-connect'!M$5+'Res-Appliance class'!$C44*'RES S curve-connect'!M$10+'Res-Appliance class'!$D44*'RES S curve-connect'!M$15+'Res-Appliance class'!$E44*'RES S curve-connect'!M$20","v":-3029.5498007073534},{"$f":"'Res-Appliance class'!$B44*'RES S curve-connect'!N$5+'Res-Appliance class'!$C44*'RES S curve-connect'!N$10+'Res-Appliance class'!$D44*'RES S curve-connect'!N$15+'Res-Appliance class'!$E44*'RES S curve-connect'!N$20","v":-3044.3655156257773},{"$f":"'Res-Appliance class'!$B44*'RES S curve-connect'!O$5+'Res-Appliance class'!$C44*'RES S curve-connect'!O$10+'Res-Appliance class'!$D44*'RES S curve-connect'!O$15+'Res-Appliance class'!$E44*'RES S curve-connect'!O$20","v":-2743.4168585661309},{"$f":"'Res-Appliance class'!$B44*'RES S curve-connect'!P$5+'Res-Appliance class'!$C44*'RES S curve-connect'!P$10+'Res-Appliance class'!$D44*'RES S curve-connect'!P$15+'Res-Appliance class'!$E44*'RES S curve-connect'!P$20","v":-2502.4608248621207},{"$f":"'Res-Appliance class'!$B44*'RES S curve-connect'!Q$5+'Res-Appliance class'!$C44*'RES S curve-connect'!Q$10+'Res-Appliance class'!$D44*'RES S curve-connect'!Q$15+'Res-Appliance class'!$E44*'RES S curve-connect'!Q$20","v":-2146.2250902321593},{"$f":"'Res-Appliance class'!$B44*'RES S curve-connect'!R$5+'Res-Appliance class'!$C44*'RES S curve-connect'!R$10+'Res-Appliance class'!$D44*'RES S curve-connect'!R$15+'Res-Appliance class'!$E44*'RES S curve-connect'!R$20","v":-1938.1921962158704},{"$f":"'Res-Appliance class'!$B44*'RES S curve-connect'!S$5+'Res-Appliance class'!$C44*'RES S curve-connect'!S$10+'Res-Appliance class'!$D44*'RES S curve-connect'!S$15+'Res-Appliance class'!$E44*'RES S curve-connect'!S$20","v":-1612.0231553936844},{"$f":"'Res-Appliance class'!$B44*'RES S curve-connect'!T$5+'Res-Appliance class'!$C44*'RES S curve-connect'!T$10+'Res-Appliance class'!$D44*'RES S curve-connect'!T$15+'Res-Appliance class'!$E44*'RES S curve-connect'!T$20","v":-1436.9330871553448},{"$f":"'Res-Appliance class'!$B44*'RES S curve-connect'!U$5+'Res-Appliance class'!$C44*'RES S curve-connect'!U$10+'Res-Appliance class'!$D44*'RES S curve-connect'!U$15+'Res-Appliance class'!$E44*'RES S curve-connect'!U$20","v":-1233.2189556306539},{"$f":"'Res-Appliance class'!$B44*'RES S curve-connect'!V$5+'Res-Appliance class'!$C44*'RES S curve-connect'!V$10+'Res-Appliance class'!$D44*'RES S curve-connect'!V$15+'Res-Appliance class'!$E44*'RES S curve-connect'!V$20","v":-1087.9725135337656},{"$f":"'Res-Appliance class'!$B44*'RES S curve-connect'!W$5+'Res-Appliance class'!$C44*'RES S curve-connect'!W$10+'Res-Appliance class'!$D44*'RES S curve-connect'!W$15+'Res-Appliance class'!$E44*'RES S curve-connect'!W$20","v":-971.25550096539746},{"$f":"'Res-Appliance class'!$B44*'RES S curve-connect'!X$5+'Res-Appliance class'!$C44*'RES S curve-connect'!X$10+'Res-Appliance class'!$D44*'RES S curve-connect'!X$15+'Res-Appliance class'!$E44*'RES S curve-connect'!X$20","v":-728.86603754576129},{"$f":"'Res-Appliance class'!$B44*'RES S curve-connect'!Y$5+'Res-Appliance class'!$C44*'RES S curve-connect'!Y$10+'Res-Appliance class'!$D44*'RES S curve-connect'!Y$15+'Res-Appliance class'!$E44*'RES S curve-connect'!Y$20","v":-482.98529631073552},{"$f":"'Res-Appliance class'!$B44*'RES S curve-connect'!Z$5+'Res-Appliance class'!$C44*'RES S curve-connect'!Z$10+'Res-Appliance class'!$D44*'RES S curve-connect'!Z$15+'Res-Appliance class'!$E44*'RES S curve-connect'!Z$20","v":-311.61548890772985},{"$f":"'Res-Appliance class'!$B44*'RES S curve-connect'!AA$5+'Res-Appliance class'!$C44*'RES S curve-connect'!AA$10+'Res-Appliance class'!$D44*'RES S curve-connect'!AA$15+'Res-Appliance class'!$E44*'RES S curve-connect'!AA$20","v":-139.29251974861023},{"$f":"'Res-Appliance class'!$B44*'RES S curve-connect'!AB$5+'Res-Appliance class'!$C44*'RES S curve-connect'!AB$10+'Res-Appliance class'!$D44*'RES S curve-connect'!AB$15+'Res-Appliance class'!$E44*'RES S curve-connect'!AB$20","v":1.8533085510425735},{"$f":"'Res-Appliance class'!$B44*'RES S curve-connect'!AC$5+'Res-Appliance class'!$C44*'RES S curve-connect'!AC$10+'Res-Appliance class'!$D44*'RES S curve-connect'!AC$15+'Res-Appliance class'!$E44*'RES S curve-connect'!AC$20","v":138.95191928817769},{"$f":"'Res-Appliance class'!$B44*'RES S curve-connect'!AD$5+'Res-Appliance class'!$C44*'RES S curve-connect'!AD$10+'Res-Appliance class'!$D44*'RES S curve-connect'!AD$15+'Res-Appliance class'!$E44*'RES S curve-connect'!AD$20","v":265.8424867213958},{"$f":"'Res-Appliance class'!$B44*'RES S curve-connect'!AE$5+'Res-Appliance class'!$C44*'RES S curve-connect'!AE$10+'Res-Appliance class'!$D44*'RES S curve-connect'!AE$15+'Res-Appliance class'!$E44*'RES S curve-connect'!AE$20","v":399.87094485695059},{"$f":"'Res-Appliance class'!$B44*'RES S curve-connect'!AF$5+'Res-Appliance class'!$C44*'RES S curve-connect'!AF$10+'Res-Appliance class'!$D44*'RES S curve-connect'!AF$15+'Res-Appliance class'!$E44*'RES S curve-connect'!AF$20","v":567.32427621622071},{"$f":"'Res-Appliance class'!$B44*'RES S curve-connect'!AG$5+'Res-Appliance class'!$C44*'RES S curve-connect'!AG$10+'Res-Appliance class'!$D44*'RES S curve-connect'!AG$15+'Res-Appliance class'!$E44*'RES S curve-connect'!AG$20","v":673.58422683633},{"$f":"'Res-Appliance class'!$B44*'RES S curve-connect'!AH$5+'Res-Appliance class'!$C44*'RES S curve-connect'!AH$10+'Res-Appliance class'!$D44*'RES S curve-connect'!AH$15+'Res-Appliance class'!$E44*'RES S curve-connect'!AH$20","v":820.24800943307378},{"$f":"'Res-Appliance class'!$B44*'RES S curve-connect'!AI$5+'Res-Appliance class'!$C44*'RES S curve-connect'!AI$10+'Res-Appliance class'!$D44*'RES S curve-connect'!AI$15+'Res-Appliance class'!$E44*'RES S curve-connect'!AI$20","v":954.70787386975462},{"$f":"'Res-Appliance class'!$B44*'RES S curve-connect'!AJ$5+'Res-Appliance class'!$C44*'RES S curve-connect'!AJ$10+'Res-Appliance class'!$D44*'RES S curve-connect'!AJ$15+'Res-Appliance class'!$E44*'RES S curve-connect'!AJ$20","v":1075.5041547034139},{"$f":"'Res-Appliance class'!$B44*'RES S curve-connect'!AK$5+'Res-Appliance class'!$C44*'RES S curve-connect'!AK$10+'Res-Appliance class'!$D44*'RES S curve-connect'!AK$15+'Res-Appliance class'!$E44*'RES S curve-connect'!AK$20","v":1203.8436632999515},{"$f":"'Res-Appliance class'!$B44*'RES S curve-connect'!AL$5+'Res-Appliance class'!$C44*'RES S curve-connect'!AL$10+'Res-Appliance class'!$D44*'RES S curve-connect'!AL$15+'Res-Appliance class'!$E44*'RES S curve-connect'!AL$20","v":752.28372490019956},{"$f":"'Res-Appliance class'!$B44*'RES S curve-connect'!AM$5+'Res-Appliance class'!$C44*'RES S curve-connect'!AM$10+'Res-Appliance class'!$D44*'RES S curve-connect'!AM$15+'Res-Appliance class'!$E44*'RES S curve-connect'!AM$20","v":697.06077806840051},{"$f":"'Res-Appliance class'!$B44*'RES S curve-connect'!AN$5+'Res-Appliance class'!$C44*'RES S curve-connect'!AN$10+'Res-Appliance class'!$D44*'RES S curve-connect'!AN$15+'Res-Appliance class'!$E44*'RES S curve-connect'!AN$20","v":820.55744168541128},{"$f":"'Res-Appliance class'!$B44*'RES S curve-connect'!AO$5+'Res-Appliance class'!$C44*'RES S curve-connect'!AO$10+'Res-Appliance class'!$D44*'RES S curve-connect'!AO$15+'Res-Appliance class'!$E44*'RES S curve-connect'!AO$20","v":969.73140718677053},{"$f":"'Res-Appliance class'!$B44*'RES S curve-connect'!AP$5+'Res-Appliance class'!$C44*'RES S curve-connect'!AP$10+'Res-Appliance class'!$D44*'RES S curve-connect'!AP$15+'Res-Appliance class'!$E44*'RES S curve-connect'!AP$20","v":1106.4245207675956},{"$f":"'Res-Appliance class'!$B44*'RES S curve-connect'!AQ$5+'Res-Appliance class'!$C44*'RES S curve-connect'!AQ$10+'Res-Appliance class'!$D44*'RES S curve-connect'!AQ$15+'Res-Appliance class'!$E44*'RES S curve-connect'!AQ$20","v":1254.7281106146995},{"$f":"'Res-Appliance class'!$B44*'RES S curve-connect'!AR$5+'Res-Appliance class'!$C44*'RES S curve-connect'!AR$10+'Res-Appliance class'!$D44*'RES S curve-connect'!AR$15+'Res-Appliance class'!$E44*'RES S curve-connect'!AR$20","v":1416.913878359404},{"$f":"'Res-Appliance class'!$B44*'RES S curve-connect'!AS$5+'Res-Appliance class'!$C44*'RES S curve-connect'!AS$10+'Res-Appliance class'!$D44*'RES S curve-connect'!AS$15+'Res-Appliance class'!$E44*'RES S curve-connect'!AS$20","v":1598.7476490136028},{"$f":"'Res-Appliance class'!$B44*'RES S curve-connect'!AT$5+'Res-Appliance class'!$C44*'RES S curve-connect'!AT$10+'Res-Appliance class'!$D44*'RES S curve-connect'!AT$15+'Res-Appliance class'!$E44*'RES S curve-connect'!AT$20","v":1801.3933197493334},{"$f":"'Res-Appliance class'!$B44*'RES S curve-connect'!AU$5+'Res-Appliance class'!$C44*'RES S curve-connect'!AU$10+'Res-Appliance class'!$D44*'RES S curve-connect'!AU$15+'Res-Appliance class'!$E44*'RES S curve-connect'!AU$20","v":2036.7587710294488},{"$f":"'Res-Appliance class'!$B44*'RES S curve-connect'!AV$5+'Res-Appliance class'!$C44*'RES S curve-connect'!AV$10+'Res-Appliance class'!$D44*'RES S curve-connect'!AV$15+'Res-Appliance class'!$E44*'RES S curve-connect'!AV$20","v":2304.3080374255574},{"$f":"'Res-Appliance class'!$B44*'RES S curve-connect'!AW$5+'Res-Appliance class'!$C44*'RES S curve-connect'!AW$10+'Res-Appliance class'!$D44*'RES S curve-connect'!AW$15+'Res-Appliance class'!$E44*'RES S curve-connect'!AW$20","v":2611.4023247888849},{"$f":"'Res-Appliance class'!$B44*'RES S curve-connect'!AX$5+'Res-Appliance class'!$C44*'RES S curve-connect'!AX$10+'Res-Appliance class'!$D44*'RES S curve-connect'!AX$15+'Res-Appliance class'!$E44*'RES S curve-connect'!AX$20","v":2960.2752400306758},{"$f":"'Res-Appliance class'!$B44*'RES S curve-connect'!AY$5+'Res-Appliance class'!$C44*'RES S curve-connect'!AY$10+'Res-Appliance class'!$D44*'RES S curve-connect'!AY$15+'Res-Appliance class'!$E44*'RES S curve-connect'!AY$20","v":3363.2893397350094},{"$f":"'Res-Appliance class'!$B44*'RES S curve-connect'!AZ$5+'Res-Appliance class'!$C44*'RES S curve-connect'!AZ$10+'Res-Appliance class'!$D44*'RES S curve-connect'!AZ$15+'Res-Appliance class'!$E44*'RES S curve-connect'!AZ$20","v":3822.5238429098958},{"$f":"'Res-Appliance class'!$B44*'RES S curve-connect'!BA$5+'Res-Appliance class'!$C44*'RES S curve-connect'!BA$10+'Res-Appliance class'!$D44*'RES S curve-connect'!BA$15+'Res-Appliance class'!$E44*'RES S curve-connect'!BA$20","v":4353.3564689992727},{"$f":"'Res-Appliance class'!$B44*'RES S curve-connect'!BB$5+'Res-Appliance class'!$C44*'RES S curve-connect'!BB$10+'Res-Appliance class'!$D44*'RES S curve-connect'!BB$15+'Res-Appliance class'!$E44*'RES S curve-connect'!BB$20","v":4971.7566045223139},{"$f":"'Res-Appliance class'!$B44*'RES S curve-connect'!BC$5+'Res-Appliance class'!$C44*'RES S curve-connect'!BC$10+'Res-Appliance class'!$D44*'RES S curve-connect'!BC$15+'Res-Appliance class'!$E44*'RES S curve-connect'!BC$20","v":5708.8930099019135},{"$f":"'Res-Appliance class'!$B44*'RES S curve-connect'!BD$5+'Res-Appliance class'!$C44*'RES S curve-connect'!BD$10+'Res-Appliance class'!$D44*'RES S curve-connect'!BD$15+'Res-Appliance class'!$E44*'RES S curve-connect'!BD$20","v":6415.3905163625623},{"$f":"'Res-Appliance class'!$B44*'RES S curve-connect'!BE$5+'Res-Appliance class'!$C44*'RES S curve-connect'!BE$10+'Res-Appliance class'!$D44*'RES S curve-connect'!BE$15+'Res-Appliance class'!$E44*'RES S curve-connect'!BE$20","v":7059.5894173485403},{"$f":"'Res-Appliance class'!$B44*'RES S curve-connect'!BF$5+'Res-Appliance class'!$C44*'RES S curve-connect'!BF$10+'Res-Appliance class'!$D44*'RES S curve-connect'!BF$15+'Res-Appliance class'!$E44*'RES S curve-connect'!BF$20","v":7719.1834994051615},{"$f":"'Res-Appliance class'!$B44*'RES S curve-connect'!BG$5+'Res-Appliance class'!$C44*'RES S curve-connect'!BG$10+'Res-Appliance class'!$D44*'RES S curve-connect'!BG$15+'Res-Appliance class'!$E44*'RES S curve-connect'!BG$20","v":8467.4407287177637},{"$f":"'Res-Appliance class'!$B44*'RES S curve-connect'!BH$5+'Res-Appliance class'!$C44*'RES S curve-connect'!BH$10+'Res-Appliance class'!$D44*'RES S curve-connect'!BH$15+'Res-Appliance class'!$E44*'RES S curve-connect'!BH$20","v":9354.6352723103009},{"$f":"'Res-Appliance class'!$B44*'RES S curve-connect'!BI$5+'Res-Appliance class'!$C44*'RES S curve-connect'!BI$10+'Res-Appliance class'!$D44*'RES S curve-connect'!BI$15+'Res-Appliance class'!$E44*'RES S curve-connect'!BI$20","v":10641.283474400248},{"$f":"'Res-Appliance class'!$B44*'RES S curve-connect'!BJ$5+'Res-Appliance class'!$C44*'RES S curve-connect'!BJ$10+'Res-Appliance class'!$D44*'RES S curve-connect'!BJ$15+'Res-Appliance class'!$E44*'RES S curve-connect'!BJ$20","v":12520.349915002143},{"$f":"'Res-Appliance class'!$B44*'RES S curve-connect'!BK$5+'Res-Appliance class'!$C44*'RES S curve-connect'!BK$10+'Res-Appliance class'!$D44*'RES S curve-connect'!BK$15+'Res-Appliance class'!$E44*'RES S curve-connect'!BK$20","v":15285.649497609767},{"$f":"'Res-Appliance class'!$B44*'RES S curve-connect'!BL$5+'Res-Appliance class'!$C44*'RES S curve-connect'!BL$10+'Res-Appliance class'!$D44*'RES S curve-connect'!BL$15+'Res-Appliance class'!$E44*'RES S curve-connect'!BL$20","v":-894.19566069522466},{"$f":"'Res-Appliance class'!$B44*'RES S curve-connect'!BM$5+'Res-Appliance class'!$C44*'RES S curve-connect'!BM$10+'Res-Appliance class'!$D44*'RES S curve-connect'!BM$15+'Res-Appliance class'!$E44*'RES S curve-connect'!BM$20","v":-890.66833661413534},{"$f":"'Res-Appliance class'!$B44*'RES S curve-connect'!BN$5+'Res-Appliance class'!$C44*'RES S curve-connect'!BN$10+'Res-Appliance class'!$D44*'RES S curve-connect'!BN$15+'Res-Appliance class'!$E44*'RES S curve-connect'!BN$20","v":-889.40915829952178},{"$f":"'Res-Appliance class'!$B44*'RES S curve-connect'!BO$5+'Res-Appliance class'!$C44*'RES S curve-connect'!BO$10+'Res-Appliance class'!$D44*'RES S curve-connect'!BO$15+'Res-Appliance class'!$E44*'RES S curve-connect'!BO$20","v":-883.62948206799388},{"$f":"'Res-Appliance class'!$B44*'RES S curve-connect'!BP$5+'Res-Appliance class'!$C44*'RES S curve-connect'!BP$10+'Res-Appliance class'!$D44*'RES S curve-connect'!BP$15+'Res-Appliance class'!$E44*'RES S curve-connect'!BP$20","v":-880.11788765100505},{"$f":"'Res-Appliance class'!$B44*'RES S curve-connect'!BQ$5+'Res-Appliance class'!$C44*'RES S curve-connect'!BQ$10+'Res-Appliance class'!$D44*'RES S curve-connect'!BQ$15+'Res-Appliance class'!$E44*'RES S curve-connect'!BQ$20","v":-876.61147283617765},{"$f":"'Res-Appliance class'!$B44*'RES S curve-connect'!BR$5+'Res-Appliance class'!$C44*'RES S curve-connect'!BR$10+'Res-Appliance class'!$D44*'RES S curve-connect'!BR$15+'Res-Appliance class'!$E44*'RES S curve-connect'!BR$20","v":-875.37307668048697},{"$f":"'Res-Appliance class'!$B44*'RES S curve-connect'!BS$5+'Res-Appliance class'!$C44*'RES S curve-connect'!BS$10+'Res-Appliance class'!$D44*'RES S curve-connect'!BS$15+'Res-Appliance class'!$E44*'RES S curve-connect'!BS$20","v":-869.61405629456624},{"$f":"'Res-Appliance class'!$B44*'RES S curve-connect'!BT$5+'Res-Appliance class'!$C44*'RES S curve-connect'!BT$10+'Res-Appliance class'!$D44*'RES S curve-connect'!BT$15+'Res-Appliance class'!$E44*'RES S curve-connect'!BT$20","v":-866.12299219886495},{"$f":"'Res-Appliance class'!$B44*'RES S curve-connect'!BU$5+'Res-Appliance class'!$C44*'RES S curve-connect'!BU$10+'Res-Appliance class'!$D44*'RES S curve-connect'!BU$15+'Res-Appliance class'!$E44*'RES S curve-connect'!BU$20","v":-862.636982965009},{"$f":"'Res-Appliance class'!$B44*'RES S curve-connect'!BV$5+'Res-Appliance class'!$C44*'RES S curve-connect'!BV$10+'Res-Appliance class'!$D44*'RES S curve-connect'!BV$15+'Res-Appliance class'!$E44*'RES S curve-connect'!BV$20","v":-861.4188684290159},{"$f":"'Res-Appliance class'!$B44*'RES S curve-connect'!BW$5+'Res-Appliance class'!$C44*'RES S curve-connect'!BW$10+'Res-Appliance class'!$D44*'RES S curve-connect'!BW$15+'Res-Appliance class'!$E44*'RES S curve-connect'!BW$20","v":-855.68000647563076},{"$f":"'Res-Appliance class'!$B44*'RES S curve-connect'!BX$5+'Res-Appliance class'!$C44*'RES S curve-connect'!BX$10+'Res-Appliance class'!$D44*'RES S curve-connect'!BX$15+'Res-Appliance class'!$E44*'RES S curve-connect'!BX$20","v":-852.20897839451698},{"$f":"'Res-Appliance class'!$B44*'RES S curve-connect'!BY$5+'Res-Appliance class'!$C44*'RES S curve-connect'!BY$10+'Res-Appliance class'!$D44*'RES S curve-connect'!BY$15+'Res-Appliance class'!$E44*'RES S curve-connect'!BY$20","v":-848.74288352164695},{"$f":"'Res-Appliance class'!$B44*'RES S curve-connect'!BZ$5+'Res-Appliance class'!$C44*'RES S curve-connect'!BZ$10+'Res-Appliance class'!$D44*'RES S curve-connect'!BZ$15+'Res-Appliance class'!$E44*'RES S curve-connect'!BZ$20","v":-847.5445624525496},{"$f":"'Res-Appliance class'!$B44*'RES S curve-connect'!CA$5+'Res-Appliance class'!$C44*'RES S curve-connect'!CA$10+'Res-Appliance class'!$D44*'RES S curve-connect'!CA$15+'Res-Appliance class'!$E44*'RES S curve-connect'!CA$20","v":-841.82537382667306},{"$f":"'Res-Appliance class'!$B44*'RES S curve-connect'!CB$5+'Res-Appliance class'!$C44*'RES S curve-connect'!CB$10+'Res-Appliance class'!$D44*'RES S curve-connect'!CB$15+'Res-Appliance class'!$E44*'RES S curve-connect'!CB$20","v":-838.37389968361026},{"$f":"'Res-Appliance class'!$B44*'RES S curve-connect'!CC$5+'Res-Appliance class'!$C44*'RES S curve-connect'!CC$10+'Res-Appliance class'!$D44*'RES S curve-connect'!CC$15+'Res-Appliance class'!$E44*'RES S curve-connect'!CC$20","v":-834.92724010451911},{"$f":"'Res-Appliance class'!$B44*'RES S curve-connect'!CD$5+'Res-Appliance class'!$C44*'RES S curve-connect'!CD$10+'Res-Appliance class'!$D44*'RES S curve-connect'!CD$15+'Res-Appliance class'!$E44*'RES S curve-connect'!CD$20","v":-886.57078850335517}]
["Whitehorse (C)",null,{"$f":"'Res-Appliance class'!$B45*'RES S curve-connect'!C$5+'Res-Appliance class'!$C45*'RES S curve-connect'!C$10+'Res-Appliance class'!$D45*'RES S curve-connect'!C$15+'Res-Appliance class'!$E45*'RES S curve-connect'!C$20","v":-3471.7322114733724},{"$f":"'Res-Appliance class'!$B45*'RES S curve-connect'!D$5+'Res-Appliance class'!$C45*'RES S curve-connect'!D$10+'Res-Appliance class'!$D45*'RES S curve-connect'!D$15+'Res-Appliance class'!$E45*'RES S curve-connect'!D$20","v":-3821.911373233027},{"$f":"'Res-Appliance class'!$B45*'RES S curve-connect'!E$5+'Res-Appliance class'!$C45*'RES S curve-connect'!E$10+'Res-Appliance class'!$D45*'RES S curve-connect'!E$15+'Res-Appliance class'!$E45*'RES S curve-connect'!E$20","v":-2880.3137467589677},{"$f":"'Res-Appliance class'!$B45*'RES S curve-connect'!F$5+'Res-Appliance class'!$C45*'RES S curve-connect'!F$10+'Res-Appliance class'!$D45*'RES S curve-connect'!F$15+'Res-Appliance class'!$E45*'RES S curve-connect'!F$20","v":-2775.5459998238493},{"$f":"'Res-Appliance class'!$B45*'RES S curve-connect'!G$5+'Res-Appliance class'!$C45*'RES S curve-connect'!G$10+'Res-Appliance class'!$D45*'RES S curve-connect'!G$15+'Res-Appliance class'!$E45*'RES S curve-connect'!G$20","v":-3885.4605866158681},{"$f":"'Res-Appliance class'!$B45*'RES S curve-connect'!H$5+'Res-Appliance class'!$C45*'RES S curve-connect'!H$10+'Res-Appliance class'!$D45*'RES S curve-connect'!H$15+'Res-Appliance class'!$E45*'RES S curve-connect'!H$20","v":-3918.8888600706568},{"$f":"'Res-Appliance class'!$B45*'RES S curve-connect'!I$5+'Res-Appliance class'!$C45*'RES S curve-connect'!I$10+'Res-Appliance class'!$D45*'RES S curve-connect'!I$15+'Res-Appliance class'!$E45*'RES S curve-connect'!I$20","v":-3622.2217944107315},{"$f":"'Res-Appliance class'!$B45*'RES S curve-connect'!J$5+'Res-Appliance class'!$C45*'RES S curve-connect'!J$10+'Res-Appliance class'!$D45*'RES S curve-connect'!J$15+'Res-Appliance class'!$E45*'RES S curve-connect'!J$20","v":-3990.4622582809102},{"$f":"'Res-Appliance class'!$B45*'RES S curve-connect'!K$5+'Res-Appliance class'!$C45*'RES S curve-connect'!K$10+'Res-Appliance class'!$D45*'RES S curve-connect'!K$15+'Res-Appliance class'!$E45*'RES S curve-connect'!K$20","v":-3341.2899297105396},{"$f":"'Res-Appliance class'!$B45*'RES S curve-connect'!L$5+'Res-Appliance class'!$C45*'RES S curve-connect'!L$10+'Res-Appliance class'!$D45*'RES S curve-connect'!L$15+'Res-Appliance class'!$E45*'RES S curve-connect'!L$20","v":-3561.3093003559184},{"$f":"'Res-Appliance class'!$B45*'RES S curve-connect'!M$5+'Res-Appliance class'!$C45*'RES S curve-connect'!M$10+'Res-Appliance class'!$D45*'RES S curve-connect'!M$15+'Res-Appliance class'!$E45*'RES S curve-connect'!M$20","v":-3976.0622493133251},{"$f":"'Res-Appliance class'!$B45*'RES S curve-connect'!N$5+'Res-Appliance class'!$C45*'RES S curve-connect'!N$10+'Res-Appliance class'!$D45*'RES S curve-connect'!N$15+'Res-Appliance class'!$E45*'RES S curve-connect'!N$20","v":-3997.7985539450001},{"$f":"'Res-Appliance class'!$B45*'RES S curve-connect'!O$5+'Res-Appliance class'!$C45*'RES S curve-connect'!O$10+'Res-Appliance class'!$D45*'RES S curve-connect'!O$15+'Res-Appliance class'!$E45*'RES S curve-connect'!O$20","v":-3595.8854541344444},{"$f":"'Res-Appliance class'!$B45*'RES S curve-connect'!P$5+'Res-Appliance class'!$C45*'RES S curve-connect'!P$10+'Res-Appliance class'!$D45*'RES S curve-connect'!P$15+'Res-Appliance class'!$E45*'RES S curve-connect'!P$20","v":-3272.0584870215121},{"$f":"'Res-Appliance class'!$B45*'RES S curve-connect'!Q$5+'Res-Appliance class'!$C45*'RES S curve-connect'!Q$10+'Res-Appliance class'!$D45*'RES S curve-connect'!Q$15+'Res-Appliance class'!$E45*'RES S curve-connect'!Q$20","v":-2792.5382265507969},{"$f":"'Res-Appliance class'!$B45*'RES S curve-connect'!R$5+'Res-Appliance class'!$C45*'RES S curve-connect'!R$10+'Res-Appliance class'!$D45*'RES S curve-connect'!R$15+'Res-Appliance class'!$E45*'RES S curve-connect'!R$20","v":-2512.6518506397224},{"$f":"'Res-Appliance class'!$B45*'RES S curve-connect'!S$5+'Res-Appliance class'!$C45*'RES S curve-connect'!S$10+'Res-Appliance class'!$D45*'RES S curve-connect'!S$15+'Res-Appliance class'!$E45*'RES S curve-connect'!S$20","v":-2078.737376566231},{"$f":"'Res-Appliance class'!$B45*'RES S curve-connect'!T$5+'Res-Appliance class'!$C45*'RES S curve-connect'!T$10+'Res-Appliance class'!$D45*'RES S curve-connect'!T$15+'Res-Appliance class'!$E45*'RES S curve-connect'!T$20","v":-1834.3486315718158},{"$f":"'Res-Appliance class'!$B45*'RES S curve-connect'!U$5+'Res-Appliance class'!$C45*'RES S curve-connect'!U$10+'Res-Appliance class'!$D45*'RES S curve-connect'!U$15+'Res-Appliance class'!$E45*'RES S curve-connect'!U$20","v":-1558.0845754401191},{"$f":"'Res-Appliance class'!$B45*'RES S curve-connect'!V$5+'Res-Appliance class'!$C45*'RES S curve-connect'!V$10+'Res-Appliance class'!$D45*'RES S curve-connect'!V$15+'Res-Appliance class'!$E45*'RES S curve-connect'!V$20","v":-1363.7667903673209},{"$f":"'Res-Appliance class'!$B45*'RES S curve-connect'!W$5+'Res-Appliance class'!$C45*'RES S curve-connect'!W$10+'Res-Appliance class'!$D45*'RES S curve-connect'!W$15+'Res-Appliance class'!$E45*'RES S curve-connect'!W$20","v":-1208.4011376297622},{"$f":"'Res-Appliance class'!$B45*'RES S curve-connect'!X$5+'Res-Appliance class'!$C45*'RES S curve-connect'!X$10+'Res-Appliance class'!$D45*'RES S curve-connect'!X$15+'Res-Appliance class'!$E45*'RES S curve-connect'!X$20","v":-879.33530333087219},{"$f":"'Res-Appliance class'!$B45*'RES S curve-connect'!Y$5+'Res-Appliance class'!$C45*'RES S curve-connect'!Y$10+'Res-Appliance class'!$D45*'RES S curve-connect'!Y$15+'Res-Appliance class'!$E45*'RES S curve-connect'!Y$20","v":-546.70781220495644},{"$f":"'Res-Appliance class'!$B45*'RES S curve-connect'!Z$5+'Res-Appliance class'!$C45*'RES S curve-connect'!Z$10+'Res-Appliance class'!$D45*'RES S curve-connect'!Z$15+'Res-Appliance class'!$E45*'RES S curve-connect'!Z$20","v":-315.84157980202696},{"$f":"'Res-Appliance class'!$B45*'RES S curve-connect'!AA$5+'Res-Appliance class'!$C45*'RES S curve-connect'!AA$10+'Res-Appliance class'!$D45*'RES S curve-connect'!AA$15+'Res-Appliance class'!$E45*'RES S curve-connect'!AA$20","v":-85.057828375729741},{"$f":"'Res-Appliance class'!$B45*'RES S curve-connect'!AB$5+'Res-Appliance class'!$C45*'RES S curve-connect'!AB$10+'Res-Appliance class'!$D45*'RES S curve-connect'!AB$15+'Res-Appliance class'!$E45*'RES S curve-connect'!AB$20","v":102.65128561257643},{"$f":"'Res-Appliance class'!$B45*'RES S curve-connect'!AC$5+'Res-Appliance class'!$C45*'RES S curve-connect'!AC$10+'Res-Appliance class'!$D45*'RES S curve-connect'!AC$15+'Res-Appliance class'!$E45*'RES S curve-connect'!AC$20","v":284.0453576041607},{"$f":"'Res-Appliance class'!$B45*'RES S curve-connect'!AD$5+'Res-Appliance class'!$C45*'RES S curve-connect'!AD$10+'Res-Appliance class'!$D45*'RES S curve-connect'!AD$15+'Res-Appliance class'!$E45*'RES S curve-connect'!AD$20","v":451.79720708096954},{"$f":"'Res-Appliance class'!$B45*'RES S curve-connect'!AE$5+'Res-Appliance class'!$C45*'RES S curve-connect'!AE$10+'Res-Appliance class'!$D45*'RES S curve-connect'!AE$15+'Res-Appliance class'!$E45*'RES S curve-connect'!AE$20","v":627.12312233706973},{"$f":"'Res-Appliance class'!$B45*'RES S curve-connect'!AF$5+'Res-Appliance class'!$C45*'RES S curve-connect'!AF$10+'Res-Appliance class'!$D45*'RES S curve-connect'!AF$15+'Res-Appliance class'!$E45*'RES S curve-connect'!AF$20","v":848.81629612796132},{"$f":"'Res-Appliance class'!$B45*'RES S curve-connect'!AG$5+'Res-Appliance class'!$C45*'RES S curve-connect'!AG$10+'Res-Appliance class'!$D45*'RES S curve-connect'!AG$15+'Res-Appliance class'!$E45*'RES S curve-connect'!AG$20","v":989.58515334928347},{"$f":"'Res-Appliance class'!$B45*'RES S curve-connect'!AH$5+'Res-Appliance class'!$C45*'RES S curve-connect'!AH$10+'Res-Appliance class'!$D45*'RES S curve-connect'!AH$15+'Res-Appliance class'!$E45*'RES S curve-connect'!AH$20","v":1187.7225650557878},{"$f":"'Res-Appliance class'!$B45*'RES S curve-connect'!AI$5+'Res-Appliance class'!$C45*'RES S curve-connect'!AI$10+'Res-Appliance class'!$D45*'RES S curve-connect'!AI$15+'Res-Appliance class'!$E45*'RES S curve-connect'!AI$20","v":1365.7811010856005},{"$f":"'Res-Appliance class'!$B45*'RES S curve-connect'!AJ$5+'Res-Appliance class'!$C45*'RES S curve-connect'!AJ$10+'Res-Appliance class'!$D45*'RES S curve-connect'!AJ$15+'Res-Appliance class'!$E45*'RES S curve-connect'!AJ$20","v":1526.486479275696},{"$f":"'Res-Appliance class'!$B45*'RES S curve-connect'!AK$5+'Res-Appliance class'!$C45*'RES S curve-connect'!AK$10+'Res-Appliance class'!$D45*'RES S curve-connect'!AK$15+'Res-Appliance class'!$E45*'RES S curve-connect'!AK$20","v":1697.0962620285939},{"$f":"'Res-Appliance class'!$B45*'RES S curve-connect'!AL$5+'Res-Appliance class'!$C45*'RES S curve-connect'!AL$10+'Res-Appliance class'!$D45*'RES S curve-connect'!AL$15+'Res-Appliance class'!$E45*'RES S curve-connect'!AL$20","v":1106.6434025374681},{"$f":"'Res-Appliance class'!$B45*'RES S curve-connect'!AM$5+'Res-Appliance class'!$C45*'RES S curve-connect'!AM$10+'Res-Appliance class'!$D45*'RES S curve-connect'!AM$15+'Res-Appliance class'!$E45*'RES S curve-connect'!AM$20","v":1029.2406659889684},{"$f":"'Res-Appliance class'!$B45*'RES S curve-connect'!AN$5+'Res-Appliance class'!$C45*'RES S curve-connect'!AN$10+'Res-Appliance class'!$D45*'RES S curve-connect'!AN$15+'Res-Appliance class'!$E45*'RES S curve-connect'!AN$20","v":1190.6702277875252},{"$f":"'Res-Appliance class'!$B45*'RES S curve-connect'!AO$5+'Res-Appliance class'!$C45*'RES S curve-connect'!AO$10+'Res-Appliance class'!$D45*'RES S curve-connect'!AO$15+'Res-Appliance class'!$E45*'RES S curve-connect'!AO$20","v":1388.197505290771},{"$f":"'Res-Appliance class'!$B45*'RES S curve-connect'!AP$5+'Res-Appliance class'!$C45*'RES S curve-connect'!AP$10+'Res-Appliance class'!$D45*'RES S curve-connect'!AP$15+'Res-Appliance class'!$E45*'RES S curve-connect'!AP$20","v":1570.7334405948116},{"$f":"'Res-Appliance class'!$B45*'RES S curve-connect'!AQ$5+'Res-Appliance class'!$C45*'RES S curve-connect'!AQ$10+'Res-Appliance class'!$D45*'RES S curve-connect'!AQ$15+'Res-Appliance class'!$E45*'RES S curve-connect'!AQ$20","v":1767.2006871695755},{"$f":"'Res-Appliance class'!$B45*'RES S curve-connect'!AR$5+'Res-Appliance class'!$C45*'RES S curve-connect'!AR$10+'Res-Appliance class'!$D45*'RES S curve-connect'!AR$15+'Res-Appliance class'!$E45*'RES S curve-connect'!AR$20","v":1982.9567227534014},{"$f":"'Res-Appliance class'!$B45*'RES S curve-connect'!AS$5+'Res-Appliance class'!$C45*'RES S curve-connect'!AS$10+'Res-Appliance class'!$D45*'RES S curve-connect'!AS$15+'Res-Appliance class'!$E45*'RES S curve-connect'!AS$20","v":2225.0758112876902},{"$f":"'Res-Appliance class'!$B45*'RES S curve-connect'!AT$5+'Res-Appliance class'!$C45*'RES S curve-connect'!AT$10+'Res-Appliance class'!$D45*'RES S curve-connect'!AT$15+'Res-Appliance class'!$E45*'RES S curve-connect'!AT$20","v":2495.9478479430959},{"$f":"'Res-Appliance class'!$B45*'RES S curve-connect'!AU$5+'Res-Appliance class'!$C45*'RES S curve-connect'!AU$10+'Res-Appliance class'!$D45*'RES S curve-connect'!AU$15+'Res-Appliance class'!$E45*'RES S curve-connect'!AU$20","v":2809.2675745675238},{"$f":"'Res-Appliance class'!$B45*'RES S curve-connect'!AV$5+'Res-Appliance class'!$C45*'RES S curve-connect'!AV$10+'Res-Appliance class'!$D45*'RES S curve-connect'!AV$15+'Res-Appliance class'!$E45*'RES S curve-connect'!AV$20","v":3166.7211193401445},{"$f":"'Res-Appliance class'!$B45*'RES S curve-connect'!AW$5+'Res-Appliance class'!$C45*'RES S curve-connect'!AW$10+'Res-Appliance class'!$D45*'RES S curve-connect'!AW$15+'Res-Appliance class'!$E45*'RES S curve-connect'!AW$20","v":3577.6122483470344},{"$f":"'Res-Appliance class'!$B45*'RES S curve-connect'!AX$5+'Res-Appliance class'!$C45*'RES S curve-connect'!AX$10+'Res-Appliance class'!$D45*'RES S curve-connect'!AX$15+'Res-Appliance class'!$E45*'RES S curve-connect'!AX$20","v":4045.9805227739739},{"$f":"'Res-Appliance class'!$B45*'RES S curve-connect'!AY$5+'Res-Appliance class'!$C45*'RES S curve-connect'!AY$10+'Res-Appliance class'!$D45*'RES S curve-connect'!AY$15+'Res-Appliance class'!$E45*'RES S curve-connect'!AY$20","v":4586.3850206109246},{"$f":"'Res-Appliance class'!$B45*'RES S curve-connect'!AZ$5+'Res-Appliance class'!$C45*'RES S curve-connect'!AZ$10+'Res-Appliance class'!$D45*'RES S curve-connect'!AZ$15+'Res-Appliance class'!$E45*'RES S curve-connect'!AZ$20","v":5204.2621880240386},{"$f":"'Res-Appliance class'!$B45*'RES S curve-connect'!BA$5+'Res-Appliance class'!$C45*'RES S curve-connect'!BA$10+'Res-Appliance class'!$D45*'RES S curve-connect'!BA$15+'Res-Appliance class'!$E45*'RES S curve-connect'!BA$20","v":5919.8998566383661},{"$f":"'Res-Appliance class'!$B45*'RES S curve-connect'!BB$5+'Res-Appliance class'!$C45*'RES S curve-connect'!BB$10+'Res-Appliance class'!$D45*'RES S curve-connect'!BB$15+'Res-Appliance class'!$E45*'RES S curve-connect'!BB$20","v":6756.1326925727153},{"$f":"'Res-Appliance class'!$B45*'RES S curve-connect'!BC$5+'Res-Appliance class'!$C45*'RES S curve-connect'!BC$10+'Res-Appliance class'!$D45*'RES S curve-connect'!BC$15+'Res-Appliance class'!$E45*'RES S curve-connect'!BC$20","v":7753.3760521976801},{"$f":"'Res-Appliance class'!$B45*'RES S curve-connect'!BD$5+'Res-Appliance class'!$C45*'RES S curve-connect'!BD$10+'Res-Appliance class'!$D45*'RES S curve-connect'!BD$15+'Res-Appliance class'!$E45*'RES S curve-connect'!BD$20","v":8715.7846565667423},{"$f":"'Res-Appliance class'!$B45*'RES S curve-connect'!BE$5+'Res-Appliance class'!$C45*'RES S curve-connect'!BE$10+'Res-Appliance class'!$D45*'RES S curve-connect'!BE$15+'Res-Appliance class'!$E45*'RES S curve-connect'!BE$20","v":9595.5591013047051},{"$f":"'Res-Appliance class'!$B45*'RES S curve-connect'!BF$5+'Res-Appliance class'!$C45*'RES S curve-connect'!BF$10+'Res-Appliance class'!$D45*'RES S curve-connect'!BF$15+'Res-Appliance class'!$E45*'RES S curve-connect'!BF$20","v":10495.69602106361},{"$f":"'Res-Appliance class'!$B45*'RES S curve-connect'!BG$5+'Res-Appliance class'!$C45*'RES S curve-connect'!BG$10+'Res-Appliance class'!$D45*'RES S curve-connect'!BG$15+'Res-Appliance class'!$E45*'RES S curve-connect'!BG$20","v":11514.306093361412},{"$f":"'Res-Appliance class'!$B45*'RES S curve-connect'!BH$5+'Res-Appliance class'!$C45*'RES S curve-connect'!BH$10+'Res-Appliance class'!$D45*'RES S curve-connect'!BH$15+'Res-Appliance class'!$E45*'RES S curve-connect'!BH$20","v":12723.538408209308},{"$f":"'Res-Appliance class'!$B45*'RES S curve-connect'!BI$5+'Res-Appliance class'!$C45*'RES S curve-connect'!BI$10+'Res-Appliance class'!$D45*'RES S curve-connect'!BI$15+'Res-Appliance class'!$E45*'RES S curve-connect'!BI$20","v":14475.62522801362},{"$f":"'Res-Appliance class'!$B45*'RES S curve-connect'!BJ$5+'Res-Appliance class'!$C45*'RES S curve-connect'!BJ$10+'Res-Appliance class'!$D45*'RES S curve-connect'!BJ$15+'Res-Appliance class'!$E45*'RES S curve-connect'!BJ$20","v":17042.091958901179},{"$f":"'Res-Appliance class'!$B45*'RES S curve-connect'!BK$5+'Res-Appliance class'!$C45*'RES S curve-connect'!BK$10+'Res-Appliance class'!$D45*'RES S curve-connect'!BK$15+'Res-Appliance class'!$E45*'RES S curve-connect'!BK$20","v":20830.327563680126},{"$f":"'Res-Appliance class'!$B45*'RES S curve-connect'!BL$5+'Res-Appliance class'!$C45*'RES S curve-connect'!BL$10+'Res-Appliance class'!$D45*'RES S curve-connect'!BL$15+'Res-Appliance class'!$E45*'RES S curve-connect'!BL$20","v":-1053.6193047883028},{"$f":"'Res-Appliance class'!$B45*'RES S curve-connect'!BM$5+'Res-Appliance class'!$C45*'RES S curve-connect'!BM$10+'Res-Appliance class'!$D45*'RES S curve-connect'!BM$15+'Res-Appliance class'!$E45*'RES S curve-connect'!BM$20","v":-1048.8218543174362},{"$f":"'Res-Appliance class'!$B45*'RES S curve-connect'!BN$5+'Res-Appliance class'!$C45*'RES S curve-connect'!BN$10+'Res-Appliance class'!$D45*'RES S curve-connect'!BN$15+'Res-Appliance class'!$E45*'RES S curve-connect'!BN$20","v":-1046.2939483451732},{"$f":"'Res-Appliance class'!$B45*'RES S curve-connect'!BO$5+'Res-Appliance class'!$C45*'RES S curve-connect'!BO$10+'Res-Appliance class'!$D45*'RES S curve-connect'!BO$15+'Res-Appliance class'!$E45*'RES S curve-connect'!BO$20","v":-1039.2469350576844},{"$f":"'Res-Appliance class'!$B45*'RES S curve-connect'!BP$5+'Res-Appliance class'!$C45*'RES S curve-connect'!BP$10+'Res-Appliance class'!$D45*'RES S curve-connect'!BP$15+'Res-Appliance class'!$E45*'RES S curve-connect'!BP$20","v":-1034.4693861056371},{"$f":"'Res-Appliance class'!$B45*'RES S curve-connect'!BQ$5+'Res-Appliance class'!$C45*'RES S curve-connect'!BQ$10+'Res-Appliance class'!$D45*'RES S curve-connect'!BQ$15+'Res-Appliance class'!$E45*'RES S curve-connect'!BQ$20","v":-1029.6983912452092},{"$f":"'Res-Appliance class'!$B45*'RES S curve-connect'!BR$5+'Res-Appliance class'!$C45*'RES S curve-connect'!BR$10+'Res-Appliance class'!$D45*'RES S curve-connect'!BR$15+'Res-Appliance class'!$E45*'RES S curve-connect'!BR$20","v":-1027.1967815509654},{"$f":"'Res-Appliance class'!$B45*'RES S curve-connect'!BS$5+'Res-Appliance class'!$C45*'RES S curve-connect'!BS$10+'Res-Appliance class'!$D45*'RES S curve-connect'!BS$15+'Res-Appliance class'!$E45*'RES S curve-connect'!BS$20","v":-1020.1759061998525},{"$f":"'Res-Appliance class'!$B45*'RES S curve-connect'!BT$5+'Res-Appliance class'!$C45*'RES S curve-connect'!BT$10+'Res-Appliance class'!$D45*'RES S curve-connect'!BT$15+'Res-Appliance class'!$E45*'RES S curve-connect'!BT$20","v":-1015.4243378270562},{"$f":"'Res-Appliance class'!$B45*'RES S curve-connect'!BU$5+'Res-Appliance class'!$C45*'RES S curve-connect'!BU$10+'Res-Appliance class'!$D45*'RES S curve-connect'!BU$15+'Res-Appliance class'!$E45*'RES S curve-connect'!BU$20","v":-1010.6791671670545},{"$f":"'Res-Appliance class'!$B45*'RES S curve-connect'!BV$5+'Res-Appliance class'!$C45*'RES S curve-connect'!BV$10+'Res-Appliance class'!$D45*'RES S curve-connect'!BV$15+'Res-Appliance class'!$E45*'RES S curve-connect'!BV$20","v":-1008.2032262665358},{"$f":"'Res-Appliance class'!$B45*'RES S curve-connect'!BW$5+'Res-Appliance class'!$C45*'RES S curve-connect'!BW$10+'Res-Appliance class'!$D45*'RES S curve-connect'!BW$15+'Res-Appliance class'!$E45*'RES S curve-connect'!BW$20","v":-1001.2078652684321},{"$f":"'Res-Appliance class'!$B45*'RES S curve-connect'!BX$5+'Res-Appliance class'!$C45*'RES S curve-connect'!BX$10+'Res-Appliance class'!$D45*'RES S curve-connect'!BX$15+'Res-Appliance class'!$E45*'RES S curve-connect'!BX$20","v":-996.48165776781434},{"$f":"'Res-Appliance class'!$B45*'RES S curve-connect'!BY$5+'Res-Appliance class'!$C45*'RES S curve-connect'!BY$10+'Res-Appliance class'!$D45*'RES S curve-connect'!BY$15+'Res-Appliance class'!$E45*'RES S curve-connect'!BY$20","v":-991.76169545298683},{"$f":"'Res-Appliance class'!$B45*'RES S curve-connect'!BZ$5+'Res-Appliance class'!$C45*'RES S curve-connect'!BZ$10+'Res-Appliance class'!$D45*'RES S curve-connect'!BZ$15+'Res-Appliance class'!$E45*'RES S curve-connect'!BZ$20","v":-989.31081131844246},{"$f":"'Res-Appliance class'!$B45*'RES S curve-connect'!CA$5+'Res-Appliance class'!$C45*'RES S curve-connect'!CA$10+'Res-Appliance class'!$D45*'RES S curve-connect'!CA$15+'Res-Appliance class'!$E45*'RES S curve-connect'!CA$20","v":-982.34035644893106},{"$f":"'Res-Appliance class'!$B45*'RES S curve-connect'!CB$5+'Res-Appliance class'!$C45*'RES S curve-connect'!CB$10+'Res-Appliance class'!$D45*'RES S curve-connect'!CB$15+'Res-Appliance class'!$E45*'RES S curve-connect'!CB$20","v":-977.6389053753976},{"$f":"'Res-Appliance class'!$B45*'RES S curve-connect'!CC$5+'Res-Appliance class'!$C45*'RES S curve-connect'!CC$10+'Res-Appliance class'!$D45*'RES S curve-connect'!CC$15+'Res-Appliance class'!$E45*'RES S curve-connect'!CC$20","v":-972.94355071611369},{"$f":"'Res-Appliance class'!$B45*'RES S curve-connect'!CD$5+'Res-Appliance class'!$C45*'RES S curve-connect'!CD$10+'Res-Appliance class'!$D45*'RES S curve-connect'!CD$15+'Res-Appliance class'!$E45*'RES S curve-connect'!CD$20","v":-1044.5811596983299}]
["Yarra Ranges (S)",null,{"$f":"'Res-Appliance class'!$B46*'RES S curve-connect'!C$5+'Res-Appliance class'!$C46*'RES S curve-connect'!C$10+'Res-Appliance class'!$D46*'RES S curve-connect'!C$15+'Res-Appliance class'!$E46*'RES S curve-connect'!C$20","v":-3551.1849038459668},{"$f":"'Res-Appliance class'!$B46*'RES S curve-connect'!D$5+'Res-Appliance class'!$C46*'RES S curve-connect'!D$10+'Res-Appliance class'!$D46*'RES S curve-connect'!D$15+'Res-Appliance class'!$E46*'RES S curve-connect'!D$20","v":-3918.171623581994},{"$f":"'Res-Appliance class'!$B46*'RES S curve-connect'!E$5+'Res-Appliance class'!$C46*'RES S curve-connect'!E$10+'Res-Appliance class'!$D46*'RES S curve-connect'!E$15+'Res-Appliance class'!$E46*'RES S curve-connect'!E$20","v":-2913.371108527067},{"$f":"'Res-Appliance class'!$B46*'RES S curve-connect'!F$5+'Res-Appliance class'!$C46*'RES S curve-connect'!F$10+'Res-Appliance class'!$D46*'RES S curve-connect'!F$15+'Res-Appliance class'!$E46*'RES S curve-connect'!F$20","v":-2802.5040142398511},{"$f":"'Res-Appliance class'!$B46*'RES S curve-connect'!G$5+'Res-Appliance class'!$C46*'RES S curve-connect'!G$10+'Res-Appliance class'!$D46*'RES S curve-connect'!G$15+'Res-Appliance class'!$E46*'RES S curve-connect'!G$20","v":-4015.8484351452585},{"$f":"'Res-Appliance class'!$B46*'RES S curve-connect'!H$5+'Res-Appliance class'!$C46*'RES S curve-connect'!H$10+'Res-Appliance class'!$D46*'RES S curve-connect'!H$15+'Res-Appliance class'!$E46*'RES S curve-connect'!H$20","v":-4043.2094343404815},{"$f":"'Res-Appliance class'!$B46*'RES S curve-connect'!I$5+'Res-Appliance class'!$C46*'RES S curve-connect'!I$10+'Res-Appliance class'!$D46*'RES S curve-connect'!I$15+'Res-Appliance class'!$E46*'RES S curve-connect'!I$20","v":-3729.4963419175783},{"$f":"'Res-Appliance class'!$B46*'RES S curve-connect'!J$5+'Res-Appliance class'!$C46*'RES S curve-connect'!J$10+'Res-Appliance class'!$D46*'RES S curve-connect'!J$15+'Res-Appliance class'!$E46*'RES S curve-connect'!J$20","v":-4095.1636293824772},{"$f":"'Res-Appliance class'!$B46*'RES S curve-connect'!K$5+'Res-Appliance class'!$C46*'RES S curve-connect'!K$10+'Res-Appliance class'!$D46*'RES S curve-connect'!K$15+'Res-Appliance class'!$E46*'RES S curve-connect'!K$20","v":-3414.3496536308098},{"$f":"'Res-Appliance class'!$B46*'RES S curve-connect'!L$5+'Res-Appliance class'!$C46*'RES S curve-connect'!L$10+'Res-Appliance class'!$D46*'RES S curve-connect'!L$15+'Res-Appliance class'!$E46*'RES S curve-connect'!L$20","v":-3645.8865555368288},{"$f":"'Res-Appliance class'!$B46*'RES S curve-connect'!M$5+'Res-Appliance class'!$C46*'RES S curve-connect'!M$10+'Res-Appliance class'!$D46*'RES S curve-connect'!M$15+'Res-Appliance class'!$E46*'RES S curve-connect'!M$20","v":-4088.0686598149414},{"$f":"'Res-Appliance class'!$B46*'RES S curve-connect'!N$5+'Res-Appliance class'!$C46*'RES S curve-connect'!N$10+'Res-Appliance class'!$D46*'RES S curve-connect'!N$15+'Res-Appliance class'!$E46*'RES S curve-connect'!N$20","v":-4112.1585035696344},{"$f":"'Res-Appliance class'!$B46*'RES S curve-connect'!O$5+'Res-Appliance class'!$C46*'RES S curve-connect'!O$10+'Res-Appliance class'!$D46*'RES S curve-connect'!O$15+'Res-Appliance class'!$E46*'RES S curve-connect'!O$20","v":-3689.4493347442958},{"$f":"'Res-Appliance class'!$B46*'RES S curve-connect'!P$5+'Res-Appliance class'!$C46*'RES S curve-connect'!P$10+'Res-Appliance class'!$D46*'RES S curve-connect'!P$15+'Res-Appliance class'!$E46*'RES S curve-connect'!P$20","v":-3348.3499701687624},{"$f":"'Res-Appliance class'!$B46*'RES S curve-connect'!Q$5+'Res-Appliance class'!$C46*'RES S curve-connect'!Q$10+'Res-Appliance class'!$D46*'RES S curve-connect'!Q$15+'Res-Appliance class'!$E46*'RES S curve-connect'!Q$20","v":-2842.7788582308185},{"$f":"'Res-Appliance class'!$B46*'RES S curve-connect'!R$5+'Res-Appliance class'!$C46*'RES S curve-connect'!R$10+'Res-Appliance class'!$D46*'RES S curve-connect'!R$15+'Res-Appliance class'!$E46*'RES S curve-connect'!R$20","v":-2547.9848626636226},{"$f":"'Res-Appliance class'!$B46*'RES S curve-connect'!S$5+'Res-Appliance class'!$C46*'RES S curve-connect'!S$10+'Res-Appliance class'!$D46*'RES S curve-connect'!S$15+'Res-Appliance class'!$E46*'RES S curve-connect'!S$20","v":-2091.2828655477642},{"$f":"'Res-Appliance class'!$B46*'RES S curve-connect'!T$5+'Res-Appliance class'!$C46*'RES S curve-connect'!T$10+'Res-Appliance class'!$D46*'RES S curve-connect'!T$15+'Res-Appliance class'!$E46*'RES S curve-connect'!T$20","v":-1832.6767339103078},{"$f":"'Res-Appliance class'!$B46*'RES S curve-connect'!U$5+'Res-Appliance class'!$C46*'RES S curve-connect'!U$10+'Res-Appliance class'!$D46*'RES S curve-connect'!U$15+'Res-Appliance class'!$E46*'RES S curve-connect'!U$20","v":-1541.5296228890602},{"$f":"'Res-Appliance class'!$B46*'RES S curve-connect'!V$5+'Res-Appliance class'!$C46*'RES S curve-connect'!V$10+'Res-Appliance class'!$D46*'RES S curve-connect'!V$15+'Res-Appliance class'!$E46*'RES S curve-connect'!V$20","v":-1337.5813925777331},{"$f":"'Res-Appliance class'!$B46*'RES S curve-connect'!W$5+'Res-Appliance class'!$C46*'RES S curve-connect'!W$10+'Res-Appliance class'!$D46*'RES S curve-connect'!W$15+'Res-Appliance class'!$E46*'RES S curve-connect'!W$20","v":-1174.5746084708076},{"$f":"'Res-Appliance class'!$B46*'RES S curve-connect'!X$5+'Res-Appliance class'!$C46*'RES S curve-connect'!X$10+'Res-Appliance class'!$D46*'RES S curve-connect'!X$15+'Res-Appliance class'!$E46*'RES S curve-connect'!X$20","v":-827.23687692587305},{"$f":"'Res-Appliance class'!$B46*'RES S curve-connect'!Y$5+'Res-Appliance class'!$C46*'RES S curve-connect'!Y$10+'Res-Appliance class'!$D46*'RES S curve-connect'!Y$15+'Res-Appliance class'!$E46*'RES S curve-connect'!Y$20","v":-476.32893623219434},{"$f":"'Res-Appliance class'!$B46*'RES S curve-connect'!Z$5+'Res-Appliance class'!$C46*'RES S curve-connect'!Z$10+'Res-Appliance class'!$D46*'RES S curve-connect'!Z$15+'Res-Appliance class'!$E46*'RES S curve-connect'!Z$20","v":-233.22223132010186},{"$f":"'Res-Appliance class'!$B46*'RES S curve-connect'!AA$5+'Res-Appliance class'!$C46*'RES S curve-connect'!AA$10+'Res-Appliance class'!$D46*'RES S curve-connect'!AA$15+'Res-Appliance class'!$E46*'RES S curve-connect'!AA$20","v":9.5685886182408808},{"$f":"'Res-Appliance class'!$B46*'RES S curve-connect'!AB$5+'Res-Appliance class'!$C46*'RES S curve-connect'!AB$10+'Res-Appliance class'!$D46*'RES S curve-connect'!AB$15+'Res-Appliance class'!$E46*'RES S curve-connect'!AB$20","v":206.88936684349358},{"$f":"'Res-Appliance class'!$B46*'RES S curve-connect'!AC$5+'Res-Appliance class'!$C46*'RES S curve-connect'!AC$10+'Res-Appliance class'!$D46*'RES S curve-connect'!AC$15+'Res-Appliance class'!$E46*'RES S curve-connect'!AC$20","v":397.39970833725869},{"$f":"'Res-Appliance class'!$B46*'RES S curve-connect'!AD$5+'Res-Appliance class'!$C46*'RES S curve-connect'!AD$10+'Res-Appliance class'!$D46*'RES S curve-connect'!AD$15+'Res-Appliance class'!$E46*'RES S curve-connect'!AD$20","v":573.51435101927518},{"$f":"'Res-Appliance class'!$B46*'RES S curve-connect'!AE$5+'Res-Appliance class'!$C46*'RES S curve-connect'!AE$10+'Res-Appliance class'!$D46*'RES S curve-connect'!AE$15+'Res-Appliance class'!$E46*'RES S curve-connect'!AE$20","v":757.30428060826137},{"$f":"'Res-Appliance class'!$B46*'RES S curve-connect'!AF$5+'Res-Appliance class'!$C46*'RES S curve-connect'!AF$10+'Res-Appliance class'!$D46*'RES S curve-connect'!AF$15+'Res-Appliance class'!$E46*'RES S curve-connect'!AF$20","v":990.33472324909803},{"$f":"'Res-Appliance class'!$B46*'RES S curve-connect'!AG$5+'Res-Appliance class'!$C46*'RES S curve-connect'!AG$10+'Res-Appliance class'!$D46*'RES S curve-connect'!AG$15+'Res-Appliance class'!$E46*'RES S curve-connect'!AG$20","v":1138.7149191787837},{"$f":"'Res-Appliance class'!$B46*'RES S curve-connect'!AH$5+'Res-Appliance class'!$C46*'RES S curve-connect'!AH$10+'Res-Appliance class'!$D46*'RES S curve-connect'!AH$15+'Res-Appliance class'!$E46*'RES S curve-connect'!AH$20","v":1348.2206551817919},{"$f":"'Res-Appliance class'!$B46*'RES S curve-connect'!AI$5+'Res-Appliance class'!$C46*'RES S curve-connect'!AI$10+'Res-Appliance class'!$D46*'RES S curve-connect'!AI$15+'Res-Appliance class'!$E46*'RES S curve-connect'!AI$20","v":1535.9038600140225},{"$f":"'Res-Appliance class'!$B46*'RES S curve-connect'!AJ$5+'Res-Appliance class'!$C46*'RES S curve-connect'!AJ$10+'Res-Appliance class'!$D46*'RES S curve-connect'!AJ$15+'Res-Appliance class'!$E46*'RES S curve-connect'!AJ$20","v":1705.417085036411},{"$f":"'Res-Appliance class'!$B46*'RES S curve-connect'!AK$5+'Res-Appliance class'!$C46*'RES S curve-connect'!AK$10+'Res-Appliance class'!$D46*'RES S curve-connect'!AK$15+'Res-Appliance class'!$E46*'RES S curve-connect'!AK$20","v":1885.3578037982031},{"$f":"'Res-Appliance class'!$B46*'RES S curve-connect'!AL$5+'Res-Appliance class'!$C46*'RES S curve-connect'!AL$10+'Res-Appliance class'!$D46*'RES S curve-connect'!AL$15+'Res-Appliance class'!$E46*'RES S curve-connect'!AL$20","v":1264.1182904627919},{"$f":"'Res-Appliance class'!$B46*'RES S curve-connect'!AM$5+'Res-Appliance class'!$C46*'RES S curve-connect'!AM$10+'Res-Appliance class'!$D46*'RES S curve-connect'!AM$15+'Res-Appliance class'!$E46*'RES S curve-connect'!AM$20","v":1181.7747315521665},{"$f":"'Res-Appliance class'!$B46*'RES S curve-connect'!AN$5+'Res-Appliance class'!$C46*'RES S curve-connect'!AN$10+'Res-Appliance class'!$D46*'RES S curve-connect'!AN$15+'Res-Appliance class'!$E46*'RES S curve-connect'!AN$20","v":1351.5753778879409},{"$f":"'Res-Appliance class'!$B46*'RES S curve-connect'!AO$5+'Res-Appliance class'!$C46*'RES S curve-connect'!AO$10+'Res-Appliance class'!$D46*'RES S curve-connect'!AO$15+'Res-Appliance class'!$E46*'RES S curve-connect'!AO$20","v":1559.7815064567465},{"$f":"'Res-Appliance class'!$B46*'RES S curve-connect'!AP$5+'Res-Appliance class'!$C46*'RES S curve-connect'!AP$10+'Res-Appliance class'!$D46*'RES S curve-connect'!AP$15+'Res-Appliance class'!$E46*'RES S curve-connect'!AP$20","v":1752.4405652058158},{"$f":"'Res-Appliance class'!$B46*'RES S curve-connect'!AQ$5+'Res-Appliance class'!$C46*'RES S curve-connect'!AQ$10+'Res-Appliance class'!$D46*'RES S curve-connect'!AQ$15+'Res-Appliance class'!$E46*'RES S curve-connect'!AQ$20","v":1959.5450822554449},{"$f":"'Res-Appliance class'!$B46*'RES S curve-connect'!AR$5+'Res-Appliance class'!$C46*'RES S curve-connect'!AR$10+'Res-Appliance class'!$D46*'RES S curve-connect'!AR$15+'Res-Appliance class'!$E46*'RES S curve-connect'!AR$20","v":2187.135865696428},{"$f":"'Res-Appliance class'!$B46*'RES S curve-connect'!AS$5+'Res-Appliance class'!$C46*'RES S curve-connect'!AS$10+'Res-Appliance class'!$D46*'RES S curve-connect'!AS$15+'Res-Appliance class'!$E46*'RES S curve-connect'!AS$20","v":2442.5769262093709},{"$f":"'Res-Appliance class'!$B46*'RES S curve-connect'!AT$5+'Res-Appliance class'!$C46*'RES S curve-connect'!AT$10+'Res-Appliance class'!$D46*'RES S curve-connect'!AT$15+'Res-Appliance class'!$E46*'RES S curve-connect'!AT$20","v":2728.5296495260877},{"$f":"'Res-Appliance class'!$B46*'RES S curve-connect'!AU$5+'Res-Appliance class'!$C46*'RES S curve-connect'!AU$10+'Res-Appliance class'!$D46*'RES S curve-connect'!AU$15+'Res-Appliance class'!$E46*'RES S curve-connect'!AU$20","v":3059.0844688332395},{"$f":"'Res-Appliance class'!$B46*'RES S curve-connect'!AV$5+'Res-Appliance class'!$C46*'RES S curve-connect'!AV$10+'Res-Appliance class'!$D46*'RES S curve-connect'!AV$15+'Res-Appliance class'!$E46*'RES S curve-connect'!AV$20","v":3436.4195839489967},{"$f":"'Res-Appliance class'!$B46*'RES S curve-connect'!AW$5+'Res-Appliance class'!$C46*'RES S curve-connect'!AW$10+'Res-Appliance class'!$D46*'RES S curve-connect'!AW$15+'Res-Appliance class'!$E46*'RES S curve-connect'!AW$20","v":3870.2689311523377},{"$f":"'Res-Appliance class'!$B46*'RES S curve-connect'!AX$5+'Res-Appliance class'!$C46*'RES S curve-connect'!AX$10+'Res-Appliance class'!$D46*'RES S curve-connect'!AX$15+'Res-Appliance class'!$E46*'RES S curve-connect'!AX$20","v":4365.0719910324287},{"$f":"'Res-Appliance class'!$B46*'RES S curve-connect'!AY$5+'Res-Appliance class'!$C46*'RES S curve-connect'!AY$10+'Res-Appliance class'!$D46*'RES S curve-connect'!AY$15+'Res-Appliance class'!$E46*'RES S curve-connect'!AY$20","v":4935.8742503916346},{"$f":"'Res-Appliance class'!$B46*'RES S curve-connect'!AZ$5+'Res-Appliance class'!$C46*'RES S curve-connect'!AZ$10+'Res-Appliance class'!$D46*'RES S curve-connect'!AZ$15+'Res-Appliance class'!$E46*'RES S curve-connect'!AZ$20","v":5588.8555974805313},{"$f":"'Res-Appliance class'!$B46*'RES S curve-connect'!BA$5+'Res-Appliance class'!$C46*'RES S curve-connect'!BA$10+'Res-Appliance class'!$D46*'RES S curve-connect'!BA$15+'Res-Appliance class'!$E46*'RES S curve-connect'!BA$20","v":6345.3911856820141},{"$f":"'Res-Appliance class'!$B46*'RES S curve-connect'!BB$5+'Res-Appliance class'!$C46*'RES S curve-connect'!BB$10+'Res-Appliance class'!$D46*'RES S curve-connect'!BB$15+'Res-Appliance class'!$E46*'RES S curve-connect'!BB$20","v":7229.8359662407729},{"$f":"'Res-Appliance class'!$B46*'RES S curve-connect'!BC$5+'Res-Appliance class'!$C46*'RES S curve-connect'!BC$10+'Res-Appliance class'!$D46*'RES S curve-connect'!BC$15+'Res-Appliance class'!$E46*'RES S curve-connect'!BC$20","v":8284.6529128565999},{"$f":"'Res-Appliance class'!$B46*'RES S curve-connect'!BD$5+'Res-Appliance class'!$C46*'RES S curve-connect'!BD$10+'Res-Appliance class'!$D46*'RES S curve-connect'!BD$15+'Res-Appliance class'!$E46*'RES S curve-connect'!BD$20","v":9303.7061405925051},{"$f":"'Res-Appliance class'!$B46*'RES S curve-connect'!BE$5+'Res-Appliance class'!$C46*'RES S curve-connect'!BE$10+'Res-Appliance class'!$D46*'RES S curve-connect'!BE$15+'Res-Appliance class'!$E46*'RES S curve-connect'!BE$20","v":10235.62217758222},{"$f":"'Res-Appliance class'!$B46*'RES S curve-connect'!BF$5+'Res-Appliance class'!$C46*'RES S curve-connect'!BF$10+'Res-Appliance class'!$D46*'RES S curve-connect'!BF$15+'Res-Appliance class'!$E46*'RES S curve-connect'!BF$20","v":11189.000863352905},{"$f":"'Res-Appliance class'!$B46*'RES S curve-connect'!BG$5+'Res-Appliance class'!$C46*'RES S curve-connect'!BG$10+'Res-Appliance class'!$D46*'RES S curve-connect'!BG$15+'Res-Appliance class'!$E46*'RES S curve-connect'!BG$20","v":12267.454185009745},{"$f":"'Res-Appliance class'!$B46*'RES S curve-connect'!BH$5+'Res-Appliance class'!$C46*'RES S curve-connect'!BH$10+'Res-Appliance class'!$D46*'RES S curve-connect'!BH$15+'Res-Appliance class'!$E46*'RES S curve-connect'!BH$20","v":13547.975338280316},{"$f":"'Res-Appliance class'!$B46*'RES S curve-connect'!BI$5+'Res-Appliance class'!$C46*'RES S curve-connect'!BI$10+'Res-Appliance class'!$D46*'RES S curve-connect'!BI$15+'Res-Appliance class'!$E46*'RES S curve-connect'!BI$20","v":15403.10667728605},{"$f":"'Res-Appliance class'!$B46*'RES S curve-connect'!BJ$5+'Res-Appliance class'!$C46*'RES S curve-connect'!BJ$10+'Res-Appliance class'!$D46*'RES S curve-connect'!BJ$15+'Res-Appliance class'!$E46*'RES S curve-connect'!BJ$20","v":18121.770561695579},{"$f":"'Res-Appliance class'!$B46*'RES S curve-connect'!BK$5+'Res-Appliance class'!$C46*'RES S curve-connect'!BK$10+'Res-Appliance class'!$D46*'RES S curve-connect'!BK$15+'Res-Appliance class'!$E46*'RES S curve-connect'!BK$20","v":22136.506436759624},{"$f":"'Res-Appliance class'!$B46*'RES S curve-connect'!BL$5+'Res-Appliance class'!$C46*'RES S curve-connect'!BL$10+'Res-Appliance class'!$D46*'RES S curve-connect'!BL$15+'Res-Appliance class'!$E46*'RES S curve-connect'!BL$20","v":-1010.6133600698223},{"$f":"'Res-Appliance class'!$B46*'RES S curve-connect'!BM$5+'Res-Appliance class'!$C46*'RES S curve-connect'!BM$10+'Res-Appliance class'!$D46*'RES S curve-connect'!BM$15+'Res-Appliance class'!$E46*'RES S curve-connect'!BM$20","v":-1005.5587685488058},{"$f":"'Res-Appliance class'!$B46*'RES S curve-connect'!BN$5+'Res-Appliance class'!$C46*'RES S curve-connect'!BN$10+'Res-Appliance class'!$D46*'RES S curve-connect'!BN$15+'Res-Appliance class'!$E46*'RES S curve-connect'!BN$20","v":-1002.7738532054921},{"$f":"'Res-Appliance class'!$B46*'RES S curve-connect'!BO$5+'Res-Appliance class'!$C46*'RES S curve-connect'!BO$10+'Res-Appliance class'!$D46*'RES S curve-connect'!BO$15+'Res-Appliance class'!$E46*'RES S curve-connect'!BO$20","v":-995.46996163387496},{"$f":"'Res-Appliance class'!$B46*'RES S curve-connect'!BP$5+'Res-Appliance class'!$C46*'RES S curve-connect'!BP$10+'Res-Appliance class'!$D46*'RES S curve-connect'!BP$15+'Res-Appliance class'!$E46*'RES S curve-connect'!BP$20","v":-990.43566489550949},{"$f":"'Res-Appliance class'!$B46*'RES S curve-connect'!BQ$5+'Res-Appliance class'!$C46*'RES S curve-connect'!BQ$10+'Res-Appliance class'!$D46*'RES S curve-connect'!BQ$15+'Res-Appliance class'!$E46*'RES S curve-connect'!BQ$20","v":-985.40805216050637},{"$f":"'Res-Appliance class'!$B46*'RES S curve-connect'!BR$5+'Res-Appliance class'!$C46*'RES S curve-connect'!BR$10+'Res-Appliance class'!$D46*'RES S curve-connect'!BR$15+'Res-Appliance class'!$E46*'RES S curve-connect'!BR$20","v":-982.64995392039066},{"$f":"'Res-Appliance class'!$B46*'RES S curve-connect'!BS$5+'Res-Appliance class'!$C46*'RES S curve-connect'!BS$10+'Res-Appliance class'!$D46*'RES S curve-connect'!BS$15+'Res-Appliance class'!$E46*'RES S curve-connect'!BS$20","v":-975.37271877208218},{"$f":"'Res-Appliance class'!$B46*'RES S curve-connect'!BT$5+'Res-Appliance class'!$C46*'RES S curve-connect'!BT$10+'Res-Appliance class'!$D46*'RES S curve-connect'!BT$15+'Res-Appliance class'!$E46*'RES S curve-connect'!BT$20","v":-970.36491877373237},{"$f":"'Res-Appliance class'!$B46*'RES S curve-connect'!BU$5+'Res-Appliance class'!$C46*'RES S curve-connect'!BU$10+'Res-Appliance class'!$D46*'RES S curve-connect'!BU$15+'Res-Appliance class'!$E46*'RES S curve-connect'!BU$20","v":-965.36364408576242},{"$f":"'Res-Appliance class'!$B46*'RES S curve-connect'!BV$5+'Res-Appliance class'!$C46*'RES S curve-connect'!BV$10+'Res-Appliance class'!$D46*'RES S curve-connect'!BV$15+'Res-Appliance class'!$E46*'RES S curve-connect'!BV$20","v":-962.63172618376336},{"$f":"'Res-Appliance class'!$B46*'RES S curve-connect'!BW$5+'Res-Appliance class'!$C46*'RES S curve-connect'!BW$10+'Res-Appliance class'!$D46*'RES S curve-connect'!BW$15+'Res-Appliance class'!$E46*'RES S curve-connect'!BW$20","v":-955.38051464251316},{"$f":"'Res-Appliance class'!$B46*'RES S curve-connect'!BX$5+'Res-Appliance class'!$C46*'RES S curve-connect'!BX$10+'Res-Appliance class'!$D46*'RES S curve-connect'!BX$15+'Res-Appliance class'!$E46*'RES S curve-connect'!BX$20","v":-950.398582491855},{"$f":"'Res-Appliance class'!$B46*'RES S curve-connect'!BY$5+'Res-Appliance class'!$C46*'RES S curve-connect'!BY$10+'Res-Appliance class'!$D46*'RES S curve-connect'!BY$15+'Res-Appliance class'!$E46*'RES S curve-connect'!BY$20","v":-945.42302085777453},{"$f":"'Res-Appliance class'!$B46*'RES S curve-connect'!BZ$5+'Res-Appliance class'!$C46*'RES S curve-connect'!BZ$10+'Res-Appliance class'!$D46*'RES S curve-connect'!BZ$15+'Res-Appliance class'!$E46*'RES S curve-connect'!BZ$20","v":-942.71666217533948},{"$f":"'Res-Appliance class'!$B46*'RES S curve-connect'!CA$5+'Res-Appliance class'!$C46*'RES S curve-connect'!CA$10+'Res-Appliance class'!$D46*'RES S curve-connect'!CA$15+'Res-Appliance class'!$E46*'RES S curve-connect'!CA$20","v":-935.49085697275075},{"$f":"'Res-Appliance class'!$B46*'RES S curve-connect'!CB$5+'Res-Appliance class'!$C46*'RES S curve-connect'!CB$10+'Res-Appliance class'!$D46*'RES S curve-connect'!CB$15+'Res-Appliance class'!$E46*'RES S curve-connect'!CB$20","v":-930.53417922726453},{"$f":"'Res-Appliance class'!$B46*'RES S curve-connect'!CC$5+'Res-Appliance class'!$C46*'RES S curve-connect'!CC$10+'Res-Appliance class'!$D46*'RES S curve-connect'!CC$15+'Res-Appliance class'!$E46*'RES S curve-connect'!CC$20","v":-925.58372100630743},{"$f":"'Res-Appliance class'!$B46*'RES S curve-connect'!CD$5+'Res-Appliance class'!$C46*'RES S curve-connect'!CD$10+'Res-Appliance class'!$D46*'RES S curve-connect'!CD$15+'Res-Appliance class'!$E46*'RES S curve-connect'!CD$20","v":-1001.6701830364557}]

{"sheet":"COM-Appliance class","index":18,"n_rows":90,"n_cols":55,"rows_kept":90,"cut":false,"hidden":false,"merged":[]}
["0-150 GJ",null,null,null,null,null,null,null,null,null,null,"150-500 GJ",null,null,null,null,null,null,null,null,null,null,"500-900GJ",null,null,null,null,null,null,null,null,null,null,">900 GJ",null,null,null,null,null,null,null,null,null,null,"TOTAL"]
["LGA",2012,2013,2014,2015,2016,2017,2018,2019,2020,null,"LGA",2012,2013,2014,2015,2016,2017,2018,2019,2020,null,"LGA",2012,2013,2014,2015,2016,2017,2018,2019,2020,null,"LGA",2012,2013,2014,2015,2016,2017,2018,2019,2020,null,"LGA",2012,2013,2014,2015,2016,2017,2018,2019,2020]
["Bass Coast (S)",1140.2508687756999,951.16863774616934,1310.856,1291.519,1148.134,989.82899999999995,940.78099999999995,1310.172,1027.644,null,"Bass Coast (S)",2739.2594735750768,3396.2709014378106,3168.652,3213.25,3647.2950000000001,4107.5940000000001,3936.7869999999998,4056.366,5122.143,null,"Bass Coast (S)",1131.9477580818966,3891.1879669733048,4865.84,3928.902,3372.373,3021.9870000000001,2695.4450000000002,2934.4859999999999,1275.386,null,"Bass Coast (S)",10028.312162176719,24000.149068414092,23930.588,31225.992999999999,31368.956999999999,33440.449999999997,35451.190999999999,34503.222999999998,35733.872000000003,null,"Bass Coast (S)",{"$f":"B3+M3+X3+AI3","v":15039.770262609392},{"$f":"C3+N3+Y3+AJ3","v":32238.776574571377},{"$f":"D3+O3+Z3+AK3","v":33275.936000000002},{"$f":"E3+P3+AA3+AL3","v":39659.663999999997},{"$f":"F3+Q3+AB3+AM3","v":39536.758999999998},{"$f":"G3+R3+AC3+AN3","v":41559.86},{"$f":"H3+S3+AD3+AO3","v":43024.203999999998},{"$f":"I3+T3+AE3+AP3","v":42804.247000000003},{"$f":"J3+U3+AF3+AQ3","v":43159.045000000006}]
["Bayside (C)",21040.492759475856,22360.431771465064,21774.044000000002,19795.786,21803.698,20609.205999999998,21182.75,19986.213,21487.003000000001,null,"Bayside (C)",24596.013822775218,36121.216198932518,39478.144,44984.025999999998,39592.78,45258.398000000001,41820.584000000003,41835.741999999998,40098.968999999997,null,"Bayside (C)",17699.379479523104,22168.298315854139,25560.827000000001,22902.772000000001,26243.37,28524.859,29185.871999999999,31441.687000000002,35106.525000000001,null,"Bayside (C)",31062.301010826373,99194.797595629221,146665.24299999999,145079.05900000001,147520.73499999999,140835.03200000001,125730.022,103590.443,84703.07,null,"Bayside (C)",94398.187072600544,179844.74388188095,233478.25799999997,232761.64300000001,235160.58299999998,235227.495,217919.228,196854.08500000002,181395.56700000001]
["Boroondara (C)",38447.247134003723,39882.856948231602,42407.177000000003,42305.313999999998,41161.546000000002,41535.832000000002,38772.317000000003,39641.088000000003,37844.392,null,"Boroondara (C)",52720.123611782132,78568.751266951134,79073.903000000006,79242.566000000006,80913.744000000006,87329.873000000007,98489.811000000002,93631.468999999997,92114.392000000007,null,"Boroondara (C)",36711.200538412704,45897.284353817457,48268.68,52774.078000000001,51140.324999999997,58229.402000000002,60583.902000000002,57648.737000000001,61757.457000000002,null,"Boroondara (C)",66759.287612391519,279239.87225209508,455341.79300000001,401472.288,378045.212,409032.08899999998,260905.59299999999,245735.128,230918.72200000001,null,"Boroondara (C)",194637.85889659007,443588.76482109528,625091.55300000007,575794.24600000004,551260.82700000005,596127.196,458751.62300000002,436656.42200000002,422634.96299999999]
["Cardinia (S)",2479.3997042092205,2955.8851759819822,3827.6590000000001,3580.7510000000002,3551.22,3346.386,3241.2339999999999,2993.1950000000002,3062.5929999999998,null,"Cardinia (S)",2177.7398911868268,3597.1281929764496,3476.1309999999999,3290.6030000000001,3208.4009999999998,3918.373,3575.2779999999998,3869.8090000000002,3383.933,null,"Cardinia (S)",1519.1554330133229,1376.8855090694069,2582.692,2888.5030000000002,1325.5329999999999,3001.6559999999999,1136.8779999999999,2594.9450000000002,2114.7139999999999,null,"Cardinia (S)",0,3762.077018917129,8363.2489999999998,9039.3639999999996,11449.331,10619.569,11871.255999999999,6369.9390000000003,5752.9229999999998,null,"Cardinia (S)",6176.2950284093704,11691.975896944969,18249.731,18799.220999999998,19534.485000000001,20885.984,19824.646000000001,15827.888000000001,14314.163]
["Casey (C)",3799.0652570094644,4525.3428706667091,4897.8,5117.915,4981.7449999999999,4944.2150000000001,4187.0519999999997,4345.3649999999998,4709.0209999999997,null,"Casey (C)",3206.450657717312,6041.3962787183482,7388.39,6970.6409999999996,7155.6419999999998,7917.8370000000004,6469.5469999999996,6787.5330000000004,6308.6,null,"Casey (C)",2663.1926225296229,3497.4423691518505,3155.65,3800.9969999999998,4262.3419999999996,3455.3530000000001,6133.9070000000002,4395.5320000000002,4769.8729999999996,null,"Casey (C)",5545.4653596007565,14373.370262195307,27093.374,29101.341,21766.518,23926.726999999999,10687.35,12859.255999999999,11334.272000000001,null,"Casey (C)",15214.173896857155,28437.551780732218,42535.214,44990.894,38166.247000000003,40244.131999999998,27477.856,28387.686000000002,27121.766]
["Frankston (C)",0,0,0,0,0,0,0,0,0,null,"Frankston (C)",0,0,0,0,0,0,0,0,0,null,"Frankston (C)",0,0,0,0,0,0,720.24,0,0,null,"Frankston (C)",0,4491.04,14461.07,13651.09,9912.83,8542.9599999999991,0,0,0,null,"Frankston (C)",0,4491.04,14461.07,13651.09,9912.83,8542.9599999999991,720.24,0,0]
["Glen Eira (C)",28724.341757572398,27965.851881144921,28395.773000000001,28129.17,28420.539000000001,30281.23,30484.309000000001,28496.715,27936.955000000002,null,"Glen Eira (C)",26801.549772653518,48058.162550656998,53501.802000000003,56959.87,55916.65,59676.188999999998,62764.682000000001,61449.078000000001,63210.593999999997,null,"Glen Eira (C)",13337.393782106588,22860.273322899939,27881.491000000002,23504.102999999999,23644.986000000001,24792.976999999999,29812.361000000001,36563.040999999997,36763.230000000003,null,"Glen Eira (C)",30661.356794597483,108776.07088594079,224780.28099999999,186279.815,175089.848,185424.024,96695.48,80691.687000000005,68031.880999999994,null,"Glen Eira (C)",99524.642106929983,207660.35864064266,334559.34700000001,294872.95799999998,283072.02299999999,300174.42,219756.83199999999,207200.52100000001,195942.66]
["Greater Dandenong (C)",36200.39446222454,33455.217470547846,34058.355000000003,31355.605,34292.81,32617.942999999999,32059.780999999999,31453.395,32112.525000000001,null,"Greater Dandenong (C)",56150.539500131257,85557.221159980298,87003.732999999993,89949.968999999997,85152.493000000002,81803.929000000004,87957.745999999999,85244.346999999994,84765.115000000005,null,"Greater Dandenong (C)",52912.305444292768,55248.760823207653,57359.254000000001,63126.506097560981,67200.914999999994,73111.070000000007,72812.058000000005,70960.694000000003,71427.322,null,"Greater Dandenong (C)",190743.32833447837,1949036.249544898,4367099.1540000001,4133868.0699940999,4412655.7781833233,3879313.4539999999,1396223.182,465836.054,375196.46299999999,null,"Greater Dandenong (C)",336006.56774112693,2123297.4489986338,4545520.4960000003,4318300.1500916611,4599301.9961833237,4066846.3959999997,1589052.767,653494.49,563501.42500000005]
["Kingston (C)",34836.123926066663,36477.50481452782,35519.904999999999,36444.718999999997,36125.546999999999,37194.232000000004,37211,34378.491000000002,36705.919999999998,null,"Kingston (C)",40465.100387119295,59957.068773064231,65609.087,66024.816999999995,65015.576000000001,69229.156000000003,74764.350000000006,74115.478000000003,72005.42,null,"Kingston (C)",29646.455573545929,42991.971620415461,48792.447,46006.747000000003,49263.639000000003,50612.421000000002,46514.625,42981.671999999999,44990.298000000003,null,"Kingston (C)",106836.14691165953,502319.18601029966,1047733.755,1013107.4463432835,948207.8716865672,866558.29099999997,300135.86599999998,261506.72399999999,253615.247,null,"Kingston (C)",211783.82679839141,641745.73121830716,1197655.1940000001,1161583.7293432835,1098612.6336865672,1023594.1,458625.84100000001,412982.36499999999,407316.88500000001]
["Knox (C)",31919.554168979925,34171.617969674764,33945.800000000003,33469.012000000002,35060.684000000001,35286.699999999997,34917.917000000001,32795.063000000002,31868.339,null,"Knox (C)",41936.353233369678,63490.229051932023,64945.321000000004,62233.712,62818.432999999997,61753.472000000002,62952.762000000002,63436.868999999999,61959.709000000003,null,"Knox (C)",28491.680274558246,39452.42807990346,43940.216999999997,46798.49,42947.252,45769.659,42244.313999999998,39737.029000000002,43032.398000000001,null,"Knox (C)",106962.7537915165,615947.64234954119,1324393.2169999999,1267112.6869999999,1203464.7350000001,1207751.0430000001,351608.902,252362.80799999999,224619.29199999999,null,"Knox (C)",209310.34146842436,753061.91745105141,1467224.5549999999,1409613.9009999998,1344291.1040000001,1350560.8740000001,491723.89500000002,388331.76899999997,361479.73800000001]
["Manningham (C)",15466.296793967036,14196.358041477828,14355.303,14612.629000000001,14863.800999999999,15574.085999999999,15130.609,15295.748,15667.513000000001,null,"Manningham (C)",21353.076437756892,33565.59058190506,32708.57,34553.646999999997,35898.917000000001,38130.474000000002,41338.480000000003,39022.728000000003,38210.021000000001,null,"Manningham (C)",16711.803428148341,20033.363581804053,27280.955000000002,25635.598999999998,23802.550999999999,23993.885999999999,23835.518,21446.35,24453.975999999999,null,"Manningham (C)",46742.917724499966,135545.17763378637,180331.35,166717.61199999999,160587.52299999999,191453.72,140816.91099999999,141011.59,125057.781,null,"Manningham (C)",100274.09438437223,203340.48983897333,254676.17800000001,241519.48699999999,235152.79199999999,269152.16599999997,221121.51799999998,216776.416,203389.291]
["Maroondah (C)",18024.658165356374,17801.933225433302,17345.670999999998,17406.162,17549.805,16946.521000000001,16304.16,16320.93,15449.324000000001,null,"Maroondah (C)",19834.569458568447,34991.397041583958,40023.389000000003,37238.591,37111.777999999998,42436.33,43150.862000000001,41625.921999999999,37748.701000000001,null,"Maroondah (C)",20003.798359650846,21003.318009307433,14319.547,16883.496999999999,16434.666000000001,18855.235000000001,25948.22,16622.36,20586.683000000001,null,"Maroondah (C)",41769.751931215935,198384.43869113855,334332.424,316863.38980514708,306614.36961029412,265547.929,123550.448,111124.485,104031.749,null,"Maroondah (C)",99632.777914791601,272181.08696746326,406021.03100000002,388391.63980514708,377710.61861029413,343786.01500000001,208953.69,185693.69699999999,177816.45699999999]
["Melbourne (C)",2906.9005401450545,2917.9603954455224,2356.8409999999999,2582.88,2643.35,1941.123,2753.2890000000002,2955.0590000000002,2818.2719999999999,null,"Melbourne (C)",13454.866816544545,6390.911886280016,7987.1009999999997,8412.8279999999995,7802.5730000000003,10831.86,8493.6080000000002,7018.9780000000001,9525.8160000000007,null,"Melbourne (C)",13885.061935504578,16684.824132118047,12390.626,12786.798000000001,12475.985000000001,13814.111999999999,16040.786,17294.681,16702.037,null,"Melbourne (C)",45932.784975612783,445093.99716183729,1131242.45,838901.03799999994,845032.91700000002,728018.76800000004,259463.41800000001,199361.30300000001,201666.19200000001,null,"Melbourne (C)",76179.614267806959,471087.6935756809,1153977.0179999999,862683.54399999999,867954.82500000007,754605.86300000001,286751.10100000002,226630.02100000001,230712.31700000001]
["Monash (C)",35259.398391977767,37553.763942423844,36873.673999999999,36243.084000000003,34892.631000000001,33727.955000000002,33581.822,33969.68,34377.341,null,"Monash (C)",53319.253074572225,76028.785969266333,74209.710999999996,74815.656000000003,74605.11,84636.290999999997,77166.858999999997,77401.226999999999,74805.971000000005,null,"Monash (C)",37019.052468183341,47061.851995100922,51774.74,59294.760999999999,54080.919000000002,64049.946000000004,70428.001000000004,68357.040999999997,60608.680999999997,null,"Monash (C)",150876.83852156557,751114.03106157901,1493436.814,1448230.5642777546,1451419.6685555091,1355106.5730000001,477023.74300000002,331530.35700000002,312779.234,null,"Monash (C)",276474.54245629889,911758.43296837015,1656294.939,1618584.0652777546,1614998.328555509,1537520.7650000001,658200.42500000005,511258.30500000005,482571.22700000001]
["Port Phillip (C)",36999.59039907025,35562.589978782977,34702.148000000001,35147.07,36165.894,34316.661,33819.858999999997,34095.027999999998,31690.236000000001,null,"Port Phillip (C)",86670.458061463898,97049.766929960853,97831.94,92929.767000000007,89744.248000000007,98199.184999999998,101573.27,90933.112999999998,93035.494999999995,null,"Port Phillip (C)",51695.783165407345,85621.418993062034,94818.445000000007,96940.459000000003,100301.967,93546.573000000004,88983.418999999994,97572.388999999996,89983.517999999996,null,"Port Phillip (C)",139627.15086017796,687048.40390591382,1497474.111,1403427.4102858605,1373826.2935717213,1306327.916,514117.08299999998,428424.67,390419.913,null,"Port Phillip (C)",314992.98248611949,905282.17980771966,1724826.6440000001,1628444.7062858606,1600038.4025717212,1532390.335,738493.63100000005,651025.19999999995,605129.16200000001]
["South Gippsland (S)",1099.8041643424731,1180.6940570198929,1028.973,1079.7370000000001,993.92600000000004,1112.9100000000001,1179.3879999999999,982.84199999999998,1036.5550000000001,null,"South Gippsland (S)",1955.8109434894341,2517.6832222417379,3025.4549999999999,3378.3319999999999,3827.2930000000001,2762.498,2433.5859999999998,3705.73,3637.9079999999999,null,"South Gippsland (S)",2979.9089874504434,2516.2596713505077,2540.0410000000002,3781.3339999999998,3106.4720000000002,3817.36,3470.6489999999999,4409.1890000000003,4368.7219999999998,null,"South Gippsland (S)",4923.3770844816381,116332.80784994093,290721.283,321403.59899999999,323959.37300000002,146749.26500000001,16855.187999999998,15377.446,16180.254999999999,null,"South Gippsland (S)",10958.901179763989,122547.44480055307,297315.75199999998,329643.00199999998,331887.06400000001,154442.03300000002,23938.810999999998,24475.207000000002,25223.439999999999]
["Stonnington (C)",32892.037406546828,31797.113288810451,33729.411999999997,34192.523000000001,35259.419000000002,32094.708999999999,32759.577000000001,33408.478999999999,33234.502,null,"Stonnington (C)",62616.426746755045,78904.940418100989,79553.914999999994,81068.463000000003,87786.407000000007,91452.47,97458.842999999993,97099.284,98109.769,null,"Stonnington (C)",31268.849714257274,57702.524031539389,64399.663,63731.385000000002,64538.656000000003,68573.118000000002,71328.27,66892.857000000004,65775.410999999993,null,"Stonnington (C)",83649.360793400367,445054.03286003106,879196.07299999997,754475.00199999998,695173.61699999997,729986.20400000003,289779.72200000001,243672.43799999999,219288.61499999999,null,"Stonnington (C)",210426.67466095951,613458.61059848196,1056879.0630000001,933467.37300000002,882758.09899999993,922106.50100000005,491326.41200000001,441073.05799999996,416408.29700000002]
["Whitehorse (C)",32704.809918422026,32683.139138199633,32700.095000000001,33031.514999999999,32920.184000000001,31320.435000000001,31999.539000000001,31280.825000000001,31460.919000000002,null,"Whitehorse (C)",45944.231528061377,63220.238844258209,69621.150999999998,69450.061000000002,67143.354000000007,75642.089000000007,79286.260999999999,74119.710000000006,77485.33,null,"Whitehorse (C)",37399.971472034456,49901.657514987724,45427.703999999998,55598.175000000003,59310.652999999998,64106.921999999999,58705.476999999999,59028.275999999998,56237.525999999998,null,"Whitehorse (C)",75900.467279405537,700045.28014669917,1643239.399,1392747.596892857,1487530.6727857145,1272554.048,335392.20199999999,253399.864,242331.10399999999,null,"Whitehorse (C)",191949.4801979234,845850.31564414478,1790988.3489999999,1550827.3478928569,1646904.8637857144,1443623.4939999999,505383.47899999999,417828.67499999999,407514.87900000002]
["Yarra Ranges (S)",26389.669147271885,26555.984458412662,27365.776999999998,27045.659,27028.727999999999,27894,28310.917000000001,29072.484,29007.481,null,"Yarra Ranges (S)",33705.485474990979,55662.650517749011,58205.063000000002,58637.2,59822.247000000003,61309.095000000001,60383.677000000003,56698.18,60839.383999999998,null,"Yarra Ranges (S)",18150.427694740618,32679.22848935597,32229.578000000001,29704.635999999999,29100.575000000001,31428.793000000001,36478.008999999998,34543.552000000003,26854.19,null,"Yarra Ranges (S)",72723.183090438077,287720.83423938998,581978.27800000005,581518.63803124998,464013.74606249999,370387.44699999999,205706.315,170472.21799999999,153884.73300000001,null,"Yarra Ranges (S)",150968.76540744156,402618.69770490762,699778.696,696906.13303124998,579965.29606249998,491019.33499999996,330878.91800000001,290786.43400000001,270585.788]
["Multinet",400330.03496541723,402995.41406599287,406595.26299999998,402831.05,408863.66100000002,401733.973,398836.30099999998,392780.772,391496.53499999997,null,"Multinet",589647.30889251316,833119.40978599596,866811.45799999998,873353.99899999995,867162.94099999999,926395.11300000001,954016.99300000002,922051.56299999997,922367.27,null,"Multinet",413227.36813144141,570588.97877991863,607588.397,630087.74209756101,632553.179,672705.32900000003,687057.951,675424.51800000004,666807.94700000004,null,"Multinet",1210744.7842380449,7367479.4585382482,15671813.905999999,14454222.003630253,14447639.996455632,13131575.509,4952013.8720000004,3357829.6329999999,3055545.318,null,"Multinet",2613949.4962274167,9174183.2611701563,17552809.024,16360494.794727813,16356219.777455632,15132409.923999999,6991925.1170000006,5348086.4859999996,5036217.07]
[]
["LGA",2012,2013,2014,2015,2016,2017,2018,2019,2020,null,"LGA",2012,2013,2014,2015,2016,2017,2018,2019,2020,null,"LGA",2012,2013,2014,2015,2016,2017,2018,2019,2020,null,"LGA",2012,2013,2014,2015,2016,2017,2018,2019,2020,null,"LGA",2012,2013,2014,2015,2016,2017,2018,2019,2020]
["Bass Coast (S)",26,21,23,21,21,23,24,27,25,null,"Bass Coast (S)",11,12,12,11,12,13,14,14,19,null,"Bass Coast (S)",2,6,7,6,5,4,4,4,2,null,"Bass Coast (S)",5,7,7,9,10,11,12,12,12,null,"Bass Coast (S)",{"$f":"B25+M25+X25+AI25","v":44},{"$f":"C25+N25+Y25+AJ25","v":46},{"$f":"D25+O25+Z25+AK25","v":49},{"$f":"E25+P25+AA25+AL25","v":47},{"$f":"F25+Q25+AB25+AM25","v":48},{"$f":"G25+R25+AC25+AN25","v":51},{"$f":"H25+S25+AD25+AO25","v":54},{"$f":"I25+T25+AE25+AP25","v":57},{"$f":"J25+U25+AF25+AQ25","v":58}]
["Bayside (C)",616,543,513,486,506,488,495,476,485,null,"Bayside (C)",89,132,147,168,147,168,159,160,149,null,"Bayside (C)",26,33,39,33,39,42,44,48,55,null,"Bayside (C)",20,50,54,56,57,56,57,51,41,null,"Bayside (C)",751,758,753,743,749,754,755,735,730]
["Boroondara (C)",1078,924,899,908,901,883,860,894,875,null,"Boroondara (C)",192,276,283,286,298,314,349,333,340,null,"Boroondara (C)",54,66,73,77,76,85,89,87,91,null,"Boroondara (C)",39,108,125,124,129,138,130,126,118,null,"Boroondara (C)",1363,1374,1380,1395,1404,1420,1428,1440,1424]
["Cardinia (S)",86,80,78,79,80,74,73,66,68,null,"Cardinia (S)",9,14,14,13,14,15,14,15,13,null,"Cardinia (S)",2,2,4,4,2,4,2,4,3,null,"Cardinia (S)",0,3,4,4,5,4,6,4,5,null,"Cardinia (S)",97,99,100,100,101,97,95,89,89]
["Casey (C)",122,111,103,103,97,102,101,107,107,null,"Casey (C)",13,22,26,24,24,26,25,25,25,null,"Casey (C)",4,5,5,6,6,5,9,6,7,null,"Casey (C)",3,7,8,8,7,8,6,7,6,null,"Casey (C)",142,145,142,141,134,141,141,145,145]
["Frankston (C)",0,0,0,0,0,0,0,0,0,null,"Frankston (C)",0,0,0,0,0,0,0,0,0,null,"Frankston (C)",0,0,0,0,0,0,1,0,0,null,"Frankston (C)",0,1,1,1,1,1,0,0,0,null,"Frankston (C)",0,1,1,1,1,1,1,0,0]
["Glen Eira (C)",823,708,686,677,677,680,690,683,669,null,"Glen Eira (C)",104,184,200,211,216,224,238,231,235,null,"Glen Eira (C)",20,35,43,34,36,38,44,56,57,null,"Glen Eira (C)",18,47,48,50,50,55,46,41,32,null,"Glen Eira (C)",965,974,977,972,979,997,1018,1011,993]
["Greater Dandenong (C)",901,727,691,683,721,701,698,694,691,null,"Greater Dandenong (C)",221,311,313,322,303,290,315,302,306,null,"Greater Dandenong (C)",76,82,86,93,98,109,109,108,111,null,"Greater Dandenong (C)",89,230,234,226,215,222,198,154,147,null,"Greater Dandenong (C)",1287,1350,1324,1324,1337,1322,1320,1258,1255]
["Kingston (C)",985,852,795,809,812,791,788,770,769,null,"Kingston (C)",145,222,242,247,249,256,271,268,257,null,"Kingston (C)",45,64,73,67,73,75,71,65,69,null,"Kingston (C)",44,116,131,133,125,126,113,96,95,null,"Kingston (C)",1219,1254,1241,1256,1259,1248,1243,1199,1190]
["Knox (C)",854,749,712,719,735,711,715,701,691,null,"Knox (C)",160,220,225,222,219,217,220,225,226,null,"Knox (C)",44,59,67,70,64,68,65,61,66,null,"Knox (C)",54,121,136,130,123,134,130,106,99,null,"Knox (C)",1112,1149,1140,1141,1141,1130,1130,1093,1082]
["Manningham (C)",405,330,312,315,317,314,311,309,315,null,"Manningham (C)",80,116,116,126,127,134,141,137,136,null,"Manningham (C)",24,29,41,38,36,36,36,34,38,null,"Manningham (C)",30,56,65,60,62,68,67,71,63,null,"Manningham (C)",539,531,534,539,542,552,555,551,552]
["Maroondah (C)",454,380,358,355,359,341,331,349,342,null,"Maroondah (C)",79,127,142,134,138,153,153,149,142,null,"Maroondah (C)",29,31,23,27,24,28,38,26,33,null,"Maroondah (C)",23,54,61,60,56,57,54,55,54,null,"Maroondah (C)",585,592,584,576,577,579,576,579,571]
["Melbourne (C)",64,55,46,45,49,41,46,53,51,null,"Melbourne (C)",38,24,29,30,29,38,30,25,32,null,"Melbourne (C)",20,24,17,18,17,18,23,25,24,null,"Melbourne (C)",30,70,84,82,86,93,97,84,79,null,"Melbourne (C)",152,173,176,175,181,190,196,187,186]
["Monash (C)",955,830,778,767,775,754,760,750,758,null,"Monash (C)",199,271,267,269,273,292,275,268,263,null,"Monash (C)",56,69,78,85,81,93,108,104,94,null,"Monash (C)",80,169,189,178,177,178,170,133,136,null,"Monash (C)",1290,1339,1312,1299,1306,1317,1313,1255,1251]
["Port Phillip (C)",1051,915,870,884,896,866,859,855,855,null,"Port Phillip (C)",310,326,331,322,315,338,351,312,331,null,"Port Phillip (C)",75,128,140,144,153,141,132,146,138,null,"Port Phillip (C)",81,183,215,210,191,212,212,193,177,null,"Port Phillip (C)",1517,1552,1556,1560,1555,1557,1554,1506,1501]
["South Gippsland (S)",24,22,22,20,20,22,23,23,24,null,"South Gippsland (S)",8,8,10,12,12,9,9,12,11,null,"South Gippsland (S)",4,4,4,6,5,6,6,6,7,null,"South Gippsland (S)",3,8,10,8,7,8,8,6,7,null,"South Gippsland (S)",39,42,46,46,44,45,46,47,49]
["Stonnington (C)",933,801,788,785,814,777,794,821,800,null,"Stonnington (C)",233,272,270,282,298,323,337,331,339,null,"Stonnington (C)",49,86,98,94,94,104,107,99,100,null,"Stonnington (C)",46,116,139,124,110,129,118,112,102,null,"Stonnington (C)",1261,1275,1295,1285,1316,1333,1356,1363,1341]
["Whitehorse (C)",860,718,693,687,700,670,676,689,686,null,"Whitehorse (C)",166,237,261,253,247,276,281,261,271,null,"Whitehorse (C)",55,72,68,82,89,95,87,89,85,null,"Whitehorse (C)",47,115,139,132,125,134,139,131,126,null,"Whitehorse (C)",1128,1142,1161,1154,1161,1175,1183,1170,1168]
["Yarra Ranges (S)",684,572,554,551,546,540,546,555,538,null,"Yarra Ranges (S)",133,202,204,211,217,215,216,206,214,null,"Yarra Ranges (S)",28,47,48,44,43,47,54,53,42,null,"Yarra Ranges (S)",31,68,79,80,74,76,70,61,60,null,"Yarra Ranges (S)",876,889,885,886,880,878,886,875,854]
["Multinet",10921,9338,8921,8894,9026,8778,8790,8822,8749,null,"Multinet",2190,2976,3092,3143,3138,3301,3398,3274,3309,null,"Multinet",613,842,914,928,941,998,1029,1021,1022,null,"Multinet",643,1529,1729,1675,1610,1710,1633,1443,1359,null,"Multinet",14367,14685,14656,14640,14715,14787,14850,14560,14439]
[]
["LGA",2012,2013,2014,2015,2016,2017,2018,2019,2020,null,"LGA",2012,2013,2014,2015,2016,2017,2018,2019,2020,null,"LGA",2012,2013,2014,2015,2016,2017,2018,2019,2020,null,"LGA",2012,2013,2014,2015,2016,2017,2018,2019,2020,null,"LGA",2012,2013,2014,2015,2016,2017,2018,2019,2020]
["Bass Coast (S)",{"$f":"IFERROR(B3/B25,0)","v":43.855802645219228},{"$f":"IFERROR(C3/C25,0)","v":45.293744654579491},56.993739130434783,61.500904761904764,54.673047619047622,43.036043478260865,39.199208333333331,48.524888888888889,41.105760000000004,null,"Bass Coast (S)",{"$f":"IFERROR(M3/M25,0)","v":249.02358850682515},{"$f":"IFERROR(N3/N25,0)","v":283.02257511981753},264.05433333333332,292.11363636363637,303.94125000000003,315.96876923076923,281.19907142857141,289.74042857142859,269.58647368421055,null,"Bass Coast (S)",{"$f":"IFERROR(X3/X25,0)","v":565.9738790409483},{"$f":"IFERROR(Y3/Y25,0)","v":648.53132782888417},695.12,654.81700000000001,674.47460000000001,755.49675000000002,673.86125000000004,733.62149999999997,637.69299999999998,null,"Bass Coast (S)",{"$f":"IFERROR(AI3/AI25,0)","v":2005.6624324353438},{"$f":"IFERROR(AJ3/AJ25,0)","v":3428.5927240591559},3418.6554285714287,3469.5547777777774,3136.8957,3040.0409090909088,2954.2659166666667,2875.268583333333,2977.8226666666669,null,"Bass Coast (S)",{"$f":"IFERROR(AT3/AT25,0)","v":341.81296051384982},{"$f":"IFERROR(AU3/AU25,0)","v":700.84296901242124},679.1007346938776,843.82263829787223,823.68247916666667,814.89921568627449,796.74451851851848,750.95170175438602,744.12146551724152,{"$f":"BB47*Prices!$J$11","v":10942.291462825588}]
["Bayside (C)",{"$f":"IFERROR(B4/B26,0)","v":34.156644090058208},41.179432359972495,42.444530214424958,40.732069958847738,43.090312252964431,42.231979508196716,42.793434343434342,41.987842436974788,44.303098969072167,null,"Bayside (C)",{"$f":"IFERROR(M4/M26,0)","v":276.35970587387885},273.64557726464028,268.55880272108845,267.76205952380951,269.3386394557823,269.39522619047619,263.02254088050319,261.4733875,269.12059731543621,null,"Bayside (C)",{"$f":"IFERROR(X4/X26,0)","v":680.74536459704245},671.76661563194364,655.40582051282058,694.02339393939394,672.90692307692302,679.16330952380952,663.31527272727271,655.03514583333333,638.30045454545461,null,"Bayside (C)",{"$f":"IFERROR(AI4/AI26,0)","v":1553.1150505413186},1983.8959519125845,2716.0230185185183,2590.6974821428571,2588.0830701754385,2514.9112857142859,2205.7898596491227,2031.1851568627451,2065.9285365853661,null,"Bayside (C)",{"$f":"IFERROR(AT4/AT26,0)","v":125.6966538916119},237.26219509482974,310.06408764940238,313.27273620457606,313.96606542056071,311.97280503978777,288.63473907284771,267.82868707482999,248.4870780821918,{"$f":"BB48*Prices!$J$11","v":3653.997578515281}]
["Boroondara (C)",{"$f":"IFERROR(B5/B27,0)","v":35.665349846014585},43.163265095488747,47.171498331479427,46.591755506607925,45.684290788013321,47.039447338618352,45.084089534883724,44.341261744966445,43.250733714285715,null,"Boroondara (C)",{"$f":"IFERROR(M5/M27,0)","v":274.58397714469862},284.66938864837368,279.41308480565374,277.07190909090912,271.52263087248326,278.12061464968156,282.20576217765046,281.17558258258259,270.9246823529412,null,"Boroondara (C)",{"$f":"IFERROR(X5/X27,0)","v":679.8370470076427},695.41339930026447,661.21479452054791,685.37763636363638,672.89901315789473,685.05178823529411,680.71800000000007,662.62916091954025,678.65337362637365,null,"Boroondara (C)",{"$f":"IFERROR(AI5/AI27,0)","v":1711.7766054459364},2585.5543727045842,3642.734344,3237.6797419354839,2930.5830387596898,2964.0006449275361,2006.9660999999999,1950.2787936507937,1956.9383220338984,null,"Boroondara (C)",{"$f":"IFERROR(AT5/AT27,0)","v":142.8010703569993},322.84480700225276,452.96489347826093,412.7557318996416,392.63591666666667,419.80788450704227,321.25463795518209,303.23362638888892,296.79421558988764,{"$f":"BB49*Prices!$J$11","v":4364.353082070842}]
["Cardinia (S)",{"$f":"IFERROR(B6/B28,0)","v":28.830229118711866},36.948564699774778,49.072551282051286,45.325962025316457,44.390249999999995,45.221432432432429,44.400465753424655,45.351439393939394,45.038132352941176,null,"Cardinia (S)",{"$f":"IFERROR(M6/M28,0)","v":241.97109902075852},256.93772806974641,248.29507142857142,253.12330769230769,229.17149999999998,261.22486666666668,255.37699999999998,257.9872666666667,260.30253846153846,null,"Cardinia (S)",{"$f":"IFERROR(X6/X28,0)","v":759.57771650666143},688.44275453470345,645.673,722.12575000000004,662.76649999999995,750.41399999999999,568.43899999999996,648.73625000000004,704.90466666666669,null,"Cardinia (S)",{"$f":"IFERROR(AI6/AI28,0)","v":0},1254.0256729723762,2090.8122499999999,2259.8409999999999,2289.8661999999999,2654.8922499999999,1978.5426666666665,1592.4847500000001,1150.5845999999999,null,"Cardinia (S)",{"$f":"IFERROR(AT6/AT28,0)","v":63.673144622777016},118.10076663580776,182.49731,187.99220999999997,193.41074257425743,215.31942268041237,208.68048421052632,177.84143820224719,160.83329213483145,{"$f":"BB50*Prices!$J$11","v":2365.0503862857895}]
["Casey (C)",{"$f":"IFERROR(B7/B29,0)","v":31.139879155815283},40.768854690691072,47.551456310679612,49.688495145631066,51.358195876288661,48.472696078431376,41.4559603960396,40.610887850467286,44.009542056074764,null,"Casey (C)",{"$f":"IFERROR(M7/M29,0)","v":246.65005059363938},274.6089217599249,284.16884615384618,290.443375,298.15174999999999,304.5321923076923,258.78188,271.50132000000002,252.34400000000002,null,"Casey (C)",{"$f":"IFERROR(X7/X29,0)","v":665.79815563240572},699.48847383037014,631.13,633.49950000000001,710.39033333333327,691.07060000000001,681.54522222222226,732.58866666666665,681.4104285714285,null,"Casey (C)",{"$f":"IFERROR(AI7/AI29,0)","v":1848.4884532002523},2053.3386088850439,3386.67175,3637.667625,3109.5025714285716,2990.8408749999999,1781.2250000000001,1837.0365714285713,1889.0453333333335,null,"Casey (C)",{"$f":"IFERROR(AT7/AT29,0)","v":107.14206969617715},196.12104676367048,299.54376056338026,319.08435460992911,284.82273880597018,285.41937588652479,194.87841134751773,195.77714482758623,187.0466620689655,{"$f":"BB51*Prices!$J$11","v":2750.5174737629454}]
["Frankston (C)",{"$f":"IFERROR(B8/B30,0)","v":0},0,0,0,0,0,0,0,0,null,"Frankston (C)",{"$f":"IFERROR(M8/M30,0)","v":0},0,0,0,0,0,0,0,0,null,"Frankston (C)",{"$f":"IFERROR(X8/X30,0)","v":0},0,0,0,0,0,720.24,0,0,null,"Frankston (C)",{"$f":"IFERROR(AI8/AI30,0)","v":0},4491.04,14461.07,13651.09,9912.83,8542.9599999999991,0,0,0,null,"Frankston (C)",{"$f":"IFERROR(AT8/AT30,0)","v":0},4491.04,14461.07,13651.09,9912.83,8542.9599999999991,720.24,0,0,{"$f":"BB52*Prices!$J$11","v":0}]
["Glen Eira (C)",{"$f":"IFERROR(B9/B31,0)","v":34.901994845166946},39.499790792577571,41.393255102040818,41.549734121122597,41.980116691285083,44.531220588235293,44.180157971014495,41.722862371888723,41.759275037369207,null,"Glen Eira (C)",{"$f":"IFERROR(M9/M31,0)","v":257.70720935243764},261.18566603617933,267.50900999999999,269.95199052132705,258.87337962962965,266.41155803571428,263.71715126050418,266.01332467532467,268.9812510638298,null,"Glen Eira (C)",{"$f":"IFERROR(X9/X31,0)","v":666.86968910532937},653.15066636856966,648.40676744186055,691.2971470588235,656.80516666666665,652.44676315789468,677.55365909090915,652.91144642857137,644.96894736842114,null,"Glen Eira (C)",{"$f":"IFERROR(AI9/AI31,0)","v":1703.4087108109713},2314.3844869349105,4682.9225208333328,3725.5963000000002,3501.7969600000001,3371.3458909090909,2102.0756521739131,1968.0899268292685,2125.9962812499998,null,"Glen Eira (C)",{"$f":"IFERROR(AT9/AT31,0)","v":103.13434415225905},213.20365363515674,342.43536028659162,303.36724074074073,289.14404800817158,301.07765295887663,215.87115127701375,204.94611374876362,197.32392749244713,{"$f":"BB53*Prices!$J$11","v":2901.6444589606999}]
["Greater Dandenong (C)",{"$f":"IFERROR(B10/B32,0)","v":40.178018271059422},46.018180839818221,49.288502170767011,45.908645680819909,47.562843273231621,46.530589158345222,45.930918338108881,45.321894812680114,46.472539797395079,null,"Greater Dandenong (C)",{"$f":"IFERROR(M10/M32,0)","v":254.07483936710977},275.10360501601383,277.96719808306705,279.34772981366461,281.03133003300331,282.08251379310349,279.23093968253966,282.26604966887413,277.0101797385621,null,"Greater Dandenong (C)",{"$f":"IFERROR(X10/X32,0)","v":696.21454531964173},673.76537589277621,666.96806976744188,678.77963545764499,685.72362244897954,670.74376146788995,668.00053211009174,657.04346296296296,643.48938738738741,null,"Greater Dandenong (C)",{"$f":"IFERROR(AI10/AI32,0)","v":2143.1834644323412},8474.0706501952081,18662.8168974359,18291.451637142036,20523.980363643364,17474.384927927927,7051.6322323232325,3024.9094415584414,2552.3568911564626,null,"Greater Dandenong (C)",{"$f":"IFERROR(AT10/AT32,0)","v":261.07736421221983},1572.8129251841731,3433.1725800604231,3261.5560046009527,3440.0164518947822,3076.283204236006,1203.8278537878789,519.47097774244833,449.00511952191238,{"$f":"BB54*Prices!$J$11","v":6602.611420024632}]
["Kingston (C)",{"$f":"IFERROR(B11/B33,0)","v":35.366623275194584},42.813972787004481,44.679125786163517,45.049096415327561,44.489589901477828,47.021785082174468,47.222081218274113,44.647390909090909,47.732015604681401,null,"Kingston (C)",{"$f":"IFERROR(M11/M33,0)","v":279.06965784220205},270.07688636515417,271.11192975206609,267.30695141700403,261.10673092369478,270.42639062500001,275.88321033210332,276.55029104477615,280.17673151750972,null,"Kingston (C)",{"$f":"IFERROR(X11/X33,0)","v":658.81012385657618},671.74955656899158,668.38968493150685,686.66786567164183,674.84436986301375,674.83228000000008,655.13556338028172,661.25649230769227,652.03330434782617,null,"Kingston (C)",{"$f":"IFERROR(AI11/AI33,0)","v":2428.0942479922619},4330.337810433618,7997.9675954198474,7617.3492206261917,7585.6629734925373,6877.4467539682537,2656.0696106194687,2724.0283749999999,2669.6341789473686,null,"Kingston (C)",{"$f":"IFERROR(AT11/AT33,0)","v":173.73570697160903},511.7589563144395,965.07267848509275,924.82780998669068,872.6073341434211,820.18758012820513,368.96688736926791,344.43900333611344,342.28309663865548,{"$f":"BB55*Prices!$J$11","v":5033.2661800251271}]
["Knox (C)",{"$f":"IFERROR(B12/B34,0)","v":37.376527129953075},45.622987943491005,47.676685393258431,46.549390820584151,47.701610884353741,49.62967651195499,48.836247552447553,46.783256776034243,46.119159189580316,null,"Knox (C)",{"$f":"IFERROR(M12/M34,0)","v":262.10220770856051},288.59195023605463,288.64587111111115,280.33203603603602,286.84215981735156,284.57821198156682,286.1489181818182,281.94164000000001,274.15800442477877,null,"Knox (C)",{"$f":"IFERROR(X12/X34,0)","v":647.53818805814194},668.685221693279,655.82413432835813,668.54985714285715,671.05081250000001,673.08322058823524,649.91252307692309,651.42670491803278,652.00603030303034,null,"Knox (C)",{"$f":"IFERROR(AI12/AI34,0)","v":1980.7917368799351},5090.4763830540596,9738.1854191176462,9747.0206692307693,9784.2661382113838,9013.0674850746273,2704.6838615384618,2380.7812075471697,2268.8817373737375,null,"Knox (C)",{"$f":"IFERROR(AT12/AT34,0)","v":188.22872434210825},655.40636853877413,1287.0390833333333,1235.4197204206835,1178.169241016652,1195.186614159292,435.15388938053098,355.28981610247024,334.08478558225511,{"$f":"BB56*Prices!$J$11","v":4912.7101777605212}]
["Manningham (C)",{"$f":"IFERROR(B13/B35,0)","v":38.188387145597623},43.019266792357051,46.010586538461538,46.389298412698416,46.888962145110412,49.598999999999997,48.651475884244377,49.500802588996763,49.73813650793651,null,"Manningham (C)",{"$f":"IFERROR(M13/M35,0)","v":266.91345547196113},289.35853949918157,281.97043103448277,274.23529365079361,282.66863779527563,284.55577611940299,293.18070921985816,284.83743065693432,280.95603676470591,null,"Manningham (C)",{"$f":"IFERROR(X13/X35,0)","v":696.32514283951423},690.80564075186385,665.3891463414634,674.62102631578944,661.18197222222216,666.49683333333326,662.09772222222227,630.77499999999998,643.52568421052626,null,"Manningham (C)",{"$f":"IFERROR(AI13/AI35,0)","v":1558.0972574833322},2420.4496006033282,2774.3284615384619,2778.6268666666665,2590.1213387096773,2815.4958823529414,2101.7449402985076,1986.0787323943662,1985.0441428571428,null,"Manningham (C)",{"$f":"IFERROR(AT13/AT35,0)","v":186.03728086154405},382.93877559128686,476.92168164794009,448.0881020408163,433.86123985239851,487.59450362318836,398.41714954954949,393.42362250453721,368.45886050724636,{"$f":"BB57*Prices!$J$11","v":5418.1802710507463}]
["Maroondah (C)",{"$f":"IFERROR(B14/B36,0)","v":39.701890232062496},46.847192698508692,48.451594972067035,49.031442253521128,48.885250696378833,49.696542521994139,49.257280966767368,46.764842406876795,45.173461988304098,null,"Maroondah (C)",{"$f":"IFERROR(M14/M36,0)","v":251.07049947554995},275.52281135105477,281.8548521126761,277.89993283582089,268.92592753623188,277.3616339869281,282.03177777777779,279.36860402684562,265.8359225352113,null,"Maroondah (C)",{"$f":"IFERROR(X14/X36,0)","v":689.78615033278777},677.52638739701399,622.58900000000006,625.31470370370369,684.77775000000008,673.40125,682.84789473684214,639.32153846153847,623.8388787878788,null,"Maroondah (C)",{"$f":"IFERROR(AI14/AI36,0)","v":1816.0761709224319},3673.785901687751,5480.8594098360654,5281.0564967524515,5475.2566001838231,4658.7355964912285,2287.9712592592591,2020.4451818181819,1926.5138703703703,null,"Maroondah (C)",{"$f":"IFERROR(AT14/AT36,0)","v":170.31244087998564},459.76534960720147,695.24149143835621,674.29104132838029,654.61112410796204,593.75822970639035,362.76682291666668,320.71450259067353,311.41235901926444,{"$f":"BB58*Prices!$J$11","v":4579.3125926642415}]
["Melbourne (C)",{"$f":"IFERROR(B15/B37,0)","v":45.420320939766476},53.053825371736771,51.235673913043478,57.397333333333336,53.945918367346934,47.344463414634149,59.85410869565218,55.755830188679248,55.260235294117649,null,"Melbourne (C)",{"$f":"IFERROR(M15/M37,0)","v":354.07544254064595},266.28799526166733,275.41727586206895,280.42759999999998,269.05424137931038,285.04894736842107,283.12026666666668,280.75912,297.68175000000002,null,"Melbourne (C)",{"$f":"IFERROR(X15/X37,0)","v":694.25309677522887},695.20100550491861,728.86035294117653,710.37766666666676,733.88147058823529,767.45066666666662,697.42547826086957,691.78724,695.91820833333338,null,"Melbourne (C)",{"$f":"IFERROR(AI15/AI37,0)","v":1531.0928325204261},6358.4856737405325,13467.172023809524,10230.500463414633,9825.9641511627906,7828.1587956989251,2674.8805979381445,2373.3488452380952,2552.7366075949367,null,"Melbourne (C)",{"$f":"IFERROR(AT15/AT37,0)","v":501.18167281451946},2723.0502518825483,6556.6876022727265,4929.6202514285715,4795.330524861879,3971.6098052631578,1463.0158214285716,1211.9252459893048,1240.3888010752689,{"$f":"BB59*Prices!$J$11","v":18239.892836791038}]
["Monash (C)",{"$f":"IFERROR(B16/B38,0)","v":36.920836012542168},45.245498725811863,47.395467866323905,47.253043024771841,45.022749677419355,44.732035809018569,44.186607894736845,45.292906666666667,45.352692612137204,null,"Monash (C)",{"$f":"IFERROR(M16/M38,0)","v":267.93594509835287},280.54902571684994,277.93899250936329,278.12511524163568,273.27879120879123,289.8503116438356,280.60676000000001,288.81054850746267,284.43334980988595,null,"Monash (C)",{"$f":"IFERROR(X16/X38,0)","v":661.05450836041678},682.0558260159554,663.77871794871794,697.58542352941174,667.66566666666665,688.70909677419354,652.11112037037037,657.27924038461538,644.77320212765949,null,"Monash (C)",{"$f":"IFERROR(AI16/AI38,0)","v":1885.9604815195696},4444.4617222578636,7901.7820846560844,8136.1267656053633,8200.1111217825364,7612.9582752808992,2806.0220176470589,2492.7094511278196,2299.8473088235296,null,"Monash (C)",{"$f":"IFERROR(AT16/AT38,0)","v":214.32135074131696},680.92489392708751,1262.4199230182926,1246.0231449405346,1236.5990264590421,1167.4417350037966,501.2950685453161,407.37713545816734,385.74838289368506,{"$f":"BB60*Prices!$J$11","v":5672.4223564795757}]
["Port Phillip (C)",{"$f":"IFERROR(B17/B39,0)","v":35.204177354015464},38.866218556046967,39.887526436781613,39.759128959276019,40.363720982142858,39.62662933025404,39.371197904540161,39.877225730994148,37.064603508771931,null,"Port Phillip (C)",{"$f":"IFERROR(M17/M39,0)","v":279.58212277891579},297.69867156429711,295.56477341389729,288.60176086956523,284.90237460317462,290.53013313609466,289.38253561253561,291.45228525641022,281.07400302114803,null,"Port Phillip (C)",{"$f":"IFERROR(X17/X39,0)","v":689.27710887209798},668.91733588329714,677.27460714285723,673.19763194444442,655.56841176470596,663.45087234042558,674.11681060606054,668.30403424657527,652.05447826086959,null,"Port Phillip (C)",{"$f":"IFERROR(AI17/AI39,0)","v":1723.791985928123},3754.3628628738461,6964.9958651162797,6682.9876680279076,7192.8078197472323,6161.9241320754718,2425.0805801886791,2219.8169430051812,2205.7622203389828,null,"Port Phillip (C)",{"$f":"IFERROR(AT17/AT39,0)","v":207.64204514576105},583.30037358744823,1108.500413881748,1043.8748117217056,1028.9636029400137,984.19417790622992,475.22112676962678,432.2876494023904,403.15067421718857,{"$f":"BB61*Prices!$J$11","v":5928.3227069020886}]
["South Gippsland (S)",{"$f":"IFERROR(B18/B40,0)","v":45.825173514269714},53.667911682722405,46.771499999999996,53.986850000000004,49.696300000000001,50.586818181818188,51.277739130434782,42.732260869565216,43.189791666666672,null,"South Gippsland (S)",{"$f":"IFERROR(M18/M40,0)","v":244.47636793617926},314.71040278021724,302.5455,281.52766666666668,318.94108333333332,306.94422222222221,270.39844444444441,308.81083333333333,330.71890909090911,null,"South Gippsland (S)",{"$f":"IFERROR(X18/X40,0)","v":744.97724686261085},629.06491783762692,635.01025000000004,630.22233333333327,621.2944,636.22666666666669,578.44150000000002,734.86483333333342,624.10314285714287,null,"South Gippsland (S)",{"$f":"IFERROR(AI18/AI40,0)","v":1641.1256948272128},14541.600981242616,29072.1283,40175.449874999998,46279.910428571435,18343.658125000002,2106.8984999999998,2562.9076666666665,2311.4649999999997,null,"South Gippsland (S)",{"$f":"IFERROR(AT18/AT40,0)","v":280.99746614779457},2917.7963047750732,6463.3859130434776,7166.1522173913036,7542.8878181818181,3432.0451777777785,520.40893478260864,520.74908510638306,514.76408163265307,{"$f":"BB62*Prices!$J$11","v":7569.5956599006649}]
["Stonnington (C)",{"$f":"IFERROR(B19/B41,0)","v":35.254059385366375},39.696770647703431,42.803822335025373,43.557354140127387,43.316239557739557,41.305931788931787,41.258913098236775,40.692422655298415,41.543127499999997,null,"Stonnington (C)",{"$f":"IFERROR(M19/M41,0)","v":268.74002895603024},290.09169271360656,294.64412962962962,287.47681914893616,294.58525838926175,283.13458204334364,289.19537982195845,293.35131117824773,289.4093480825959,null,"Stonnington (C)",{"$f":"IFERROR(X19/X41,0)","v":638.13979008688318},670.95958176208592,657.13941836734693,677.99345744680852,686.58144680851069,659.35690384615384,666.61934579439253,675.68542424242423,657.75410999999997,null,"Stonnington (C)",{"$f":"IFERROR(AI19/AI41,0)","v":1818.464365073921},3836.6726970692334,6325.1516043165466,6084.4758225806454,6319.7601545454545,5658.807782945737,2455.7603559322033,2175.646767857143,2149.8883823529409,null,"Stonnington (C)",{"$f":"IFERROR(AT19/AT41,0)","v":166.87285857332236},481.14400831253488,816.12282857142861,726.43375330739298,670.78882902735552,691.75281395348838,362.3351120943953,323.60459134262652,310.52072856077558,{"$f":"BB63*Prices!$J$11","v":4566.2011843713281}]
["Whitehorse (C)",{"$f":"IFERROR(B20/B42,0)","v":38.028848742351194},45.519692393035697,47.186284271284272,48.080807860262006,47.028834285714289,46.746917910447763,47.336596153846152,45.400326560232223,45.861397959183677,null,"Whitehorse (C)",{"$f":"IFERROR(M20/M42,0)","v":276.77247908470707},266.75206263400088,266.74770498084291,274.50616996047432,271.83544129554656,274.06553985507247,282.15751245551598,283.98356321839083,285.92372693726941,null,"Whitehorse (C)",{"$f":"IFERROR(X20/X42,0)","v":679.99948130971734},693.07857659705178,668.05447058823529,678.02652439024394,666.41183146067419,674.80970526315787,674.77559770114942,663.23905617977528,661.61795294117644,null,"Whitehorse (C)",{"$f":"IFERROR(AI20/AI42,0)","v":1614.9035591362881},6087.3502621452099,11821.866179856115,10551.11815827922,11900.245382285717,9496.6720000000005,2412.8935395683452,1934.350106870229,1923.2627301587302,null,"Whitehorse (C)",{"$f":"IFERROR(AT20/AT42,0)","v":170.16797889886826},740.67453208769246,1542.6256236003444,1343.8711853490961,1418.522707825766,1228.6157395744681,427.20496956889264,357.11852564102566,348.89972517123289,{"$f":"BB64*Prices!$J$11","v":5130.5635719964548}]
["Yarra Ranges (S)",{"$f":"IFERROR(B21/B43,0)","v":38.581387642210359},46.426546255966194,49.396709386281586,49.084680580762253,49.503164835164831,51.655555555555559,51.851496336996341,52.382854054054057,53.917250929368031,null,"Yarra Ranges (S)",{"$f":"IFERROR(M21/M43,0)","v":253.42470281948104},275.55767583044064,285.31893627450984,277.90142180094784,275.67855760368667,285.15858139534885,279.55406018518522,275.23388349514562,284.29618691588786,null,"Yarra Ranges (S)",{"$f":"IFERROR(X21/X43,0)","v":648.22956052645065},695.30273381608447,671.44954166666673,675.10536363636356,676.75755813953492,668.69772340425538,675.51868518518518,651.7651320754718,639.3854761904762,null,"Yarra Ranges (S)",{"$f":"IFERROR(AI21/AI43,0)","v":2345.9091319496156},4231.1887388145587,7366.8136455696213,7268.9829753906251,6270.4560278716217,4873.5190394736837,2938.6616428571429,2794.6265245901636,2564.7455500000001,null,"Yarra Ranges (S)",{"$f":"IFERROR(AT21/AT43,0)","v":172.33877329616618},452.88942374005359,790.71039096045195,786.57577091563201,659.05147279829544,559.24753416856493,373.45250338600454,332.32735314285713,316.84518501170959,{"$f":"BB65*Prices!$J$11","v":4659.2021916490357}]
["Multinet",{"$f":"IFERROR(B22/B44,0)","v":36.656902752991229},43.156501827585444,45.577319022531107,45.292449966269395,45.298433525371152,45.76600284802916,45.373868145620023,44.52287145771934,44.747575151445879,null,"Multinet",{"$f":"IFERROR(M22/M44,0)","v":269.2453465262617},279.94603823454167,280.3400575679172,277.87273273942094,276.34255608667939,280.64074916691914,280.75838522660388,281.6284554062309,278.7450196433968,null,"Multinet",{"$f":"IFERROR(X22/X44,0)","v":674.1066364297576},677.65911969111471,664.75754595185992,678.97386001892346,672.21379277364508,674.05343587174355,667.69480174927116,661.53233888344766,652.45395988258326,null,"Multinet",{"$f":"IFERROR(AI22/AI44,0)","v":1882.9623394059795},4818.4953947274353,9064.0913279352226,8629.3862708240322,8973.6894387923185,7679.283923391813,3032.4640979791798,2326.9782626472625,2248.3777174392935,null,"Multinet",{"$f":"IFERROR(AT22/AT44,0)","v":181.94121919867868},624.7315806040283,1197.6534541484716,1117.5201362518999,1111.5337939147557,1023.359026442145,470.83670821548827,367.31363228021974,348.79264976798947,{"$f":"AVERAGE(BC47:BC65)","v":5541.5860837913988}]
[]
[]
[]
["Weights"]
["LGA","0-150 GJ","150-500 GJ","500-900GJ",">900 GJ"]
["Bass Coast (S)",{"$f":"IFERROR(J25/$BB25,0)","v":0.43103448275862066},{"$f":"IFERROR(U25/$BB25,0)","v":0.32758620689655171},{"$f":"IFERROR(AF25/$BB25,0)","v":3.4482758620689655E-2},{"$f":"IFERROR(AQ25/$BB25,0)","v":0.20689655172413793}]
["Bayside (C)",{"$f":"IFERROR(J26/$BB26,0)","v":0.66438356164383561},{"$f":"IFERROR(U26/$BB26,0)","v":0.20410958904109588},{"$f":"IFERROR(AF26/$BB26,0)","v":7.5342465753424653E-2},{"$f":"IFERROR(AQ26/$BB26,0)","v":5.6164383561643834E-2}]
["Boroondara (C)",0.6144662921348315,0.23876404494382023,6.3904494382022475E-2,8.2865168539325837E-2]
["Cardinia (S)",0.7640449438202247,0.14606741573033707,3.3707865168539325E-2,5.6179775280898875E-2]
["Casey (C)",0.73793103448275865,0.17241379310344829,4.8275862068965517E-2,4.1379310344827586E-2]
["Frankston (C)",0,0,0,0]
["Glen Eira (C)",0.6737160120845922,0.2366565961732125,5.7401812688821753E-2,3.2225579053373615E-2]
["Greater Dandenong (C)",0.55059760956175297,0.24382470119521912,8.844621513944223E-2,0.11713147410358565]
["Kingston (C)",0.64621848739495802,0.21596638655462186,5.7983193277310927E-2,7.9831932773109238E-2]
["Knox (C)",0.6386321626617375,0.20887245841035121,6.0998151571164512E-2,9.1497227356746771E-2]
["Manningham (C)",0.57065217391304346,0.24637681159420291,6.8840579710144928E-2,0.11413043478260869]
["Maroondah (C)",0.59894921190893169,0.24868651488616461,5.7793345008756568E-2,9.4570928196147111E-2]
["Melbourne (C)",0.27419354838709675,0.17204301075268819,0.12903225806451613,0.42473118279569894]
["Monash (C)",0.60591526778577143,0.21023181454836132,7.5139888089528373E-2,0.10871302957633892]
["Port Phillip (C)",0.569620253164557,0.22051965356429049,9.1938707528314456E-2,0.11792138574283811]
["South Gippsland (S)",0.48979591836734693,0.22448979591836735,0.14285714285714285,0.14285714285714285]
["Stonnington (C)",0.59656972408650266,0.25279642058165547,7.4571215510812833E-2,{"$f":"IFERROR(AQ41/$BB41,0)","v":7.6062639821029079E-2}]
["Whitehorse (C)",0.58732876712328763,0.23202054794520549,7.2773972602739725E-2,0.10787671232876712]
["Yarra Ranges (S)",0.62997658079625296,0.25058548009367682,4.9180327868852458E-2,7.0257611241217793E-2]

{"sheet":"CustomersCOM","index":19,"n_rows":161,"n_cols":90,"rows_kept":161,"cut":false,"hidden":false,"merged":[]}
["Commercial Customers",2012,{"$f":"B1+1","v":2013},{"$f":"C1+1","v":2014},2015,2016,2017,2018,2019,2020,{"$f":"J1+1","v":2021},{"$f":"K1+1","v":2022},2023,2024,2025,2026,2027,2028,2029,2030,2031,2032,2033,2034,2035,2036,2037,2038,2039,2040,2041,2042,2043,2044,2045,2046,2047,2048,2049,2050,2051,2052,2053,2054,2055,2056,2057,2058,2059,2060,2061,2062,2063,2064,2065,2066,2067,2068,2069,2070,2071,2072,2073,2074,2075,2076,2077,2078,2079,2080,2081,2082,2083,2084,2085,{"$f":"BW1+1","v":2086},{"$f":"BX1+1","v":2087},{"$f":"BY1+1","v":2088},{"$f":"BZ1+1","v":2089},{"$f":"CA1+1","v":2090},{"$f":"CB1+1","v":2091},{"$f":"CC1+1","v":2092},{"$f":"CD1+1","v":2093},{"$f":"CE1+1","v":2094},{"$f":"CF1+1","v":2095},{"$f":"CG1+1","v":2096},{"$f":"CH1+1","v":2097},{"$f":"CI1+1","v":2098},{"$f":"CJ1+1","v":2099},2100]
["LGA"]
["Bass Coast (S)",{"$f":"Customers!B212","v":44},{"$f":"Customers!C212","v":46},{"$f":"Customers!D212","v":49},{"$f":"Customers!E212","v":47},{"$f":"Customers!F212","v":48},{"$f":"Customers!G212","v":51},{"$f":"Customers!H212","v":54},{"$f":"Customers!I212","v":57},{"$f":"Customers!J212","v":58},{"$f":"J3+K26-K49","v":58.333333333333336},59.041666666666671,56.746458333333337,54.46272604166667,55.19041241145834,54.914460349401047,52.63988804765404,50.376688607415772,48.124805164378692,45.884181138556798,43.654760232864014,42.436486431699691,41.224303999541192,40.018182479543484,38.818091567145764,37.624001109310036,36.435881103763485,35.253701698244669,34.077433189753442,32.907046023804675,31.742510793685653,30.583798239717225,29.430879248518639,29.283724852276045,29.137306228014666,27.991619696874594,26.851661598390219,25.717403290398266,24.588816273946275,23.465872192576544,22.34854283161366,21.236800117455591,{"$f":"AP3+AQ26-AQ49","v":20.130616116868314},19.029963036283974,17.934813221102555,16.845139154997042,15.760913459222056,14.682108891925946,14.608698347466316,14.535654855728984,14.46297658145034,14.390661698543088,14.318708390050373,14.247114848100122,14.175879273859621,14.104999877490323,14.034474878102872,13.964302503712357,13.894480991193795,13.825008586237827,13.755883543306638,13.687104125590105,13.618668604962155,13.550575261937343,13.482822385627657,13.415408273699517,13.34833123233102,13.281589576169365,13.215181628288518,13.149105720147075,13.083360191546339,13.017943390588607,12.952853673635664,12.888089405267486,12.823648958241149,12.759530713449942,{"$f":"BX3+BY26-BY49","v":12.695733059882693},{"$f":"BY3+BZ26-BZ49","v":12.632254394583279},{"$f":"BZ3+CA26-CA49","v":12.569093122610363},{"$f":"CA3+CB26-CB49","v":12.506247656997312},{"$f":"CB3+CC26-CC49","v":12.443716418712325},{"$f":"CC3+CD26-CD49","v":12.381497836618763},{"$f":"CD3+CE26-CE49","v":12.319590347435669},{"$f":"CE3+CF26-CF49","v":12.257992395698491},{"$f":"CF3+CG26-CG49","v":12.196702433719999},{"$f":"CG3+CH26-CH49","v":12.135718921551399},{"$f":"CH3+CI26-CI49","v":12.075040326943643},{"$f":"CI3+CJ26-CJ49","v":12.014665125308925},{"$f":"CJ3+CK26-CK49","v":11.95459179968238},11.894818840683968]
["Bayside (C)",{"$f":"Customers!B213","v":751},{"$f":"Customers!C213","v":758},{"$f":"Customers!D213","v":753},{"$f":"Customers!E213","v":743},{"$f":"Customers!F213","v":749},{"$f":"Customers!G213","v":754},{"$f":"Customers!H213","v":755},{"$f":"Customers!I213","v":735},{"$f":"Customers!J213","v":730},{"$f":"J4+K27-K50","v":718.33333333333337},707.74166666666667,662.2029583333333,616.89194354166659,609.80748382395825,599.75844640483842,572.75965417281418,545.89585590195009,508.16637662244034,473.62554473932812,446.25741701563146,420.02612993055328,390.9259992809005,363.97136928449601,351.15151243807355,334.3957548758832,313.7237761015038,293.15515722099627,273.68938143489129,255.32093452771684,238.04432985507827,222.85410820580287,208.73983766477386,195.69613847644999,182.71765778406774,170.80406949514739,159.95004914767165,150.1502989019333,140.39954740742363,131.69754967038651,124.03906192203458,116.41886661242441,{"$f":"AP4+AQ27-AQ50","v":109.83677227936229},103.28758841796548,97.771150475875658,92.282294723496278,86.82088324987879,82.386778833629393,77.974844939461249,73.584970714763941,70.217045861190115,66.865960631884164,63.531630828724744,60.213972674581122,56.912902811208212,54.628338297152169,52.355196605666407,50.093420622638078,47.84295351952489,45.603738751927267,43.37572005816763,42.15884145787679,40.948047250587408,39.743307014334469,38.544590479262794,37.351867526866478,36.165108189232143,34.984282648285983,33.809361235044555,32.640314428869331,31.477112856724986,30.31972729244136,29.168128655979153,29.022288012699256,28.877176572635761,28.732790689772582,28.58912673632372,28.4461811026421,28.303950197128891,28.162430446143247,28.021618293912532,27.881510202442968,27.742102651430752,27.6033921381736,27.465375177482731,27.328048301595317,27.19140806008734,27.055451019786904,26.92017376468797,26.785572895864529]
["Boroondara (C)",{"$f":"Customers!B214","v":1363},{"$f":"Customers!C214","v":1374},{"$f":"Customers!D214","v":1380},{"$f":"Customers!E214","v":1395},{"$f":"Customers!F214","v":1404},{"$f":"Customers!G214","v":1420},{"$f":"Customers!H214","v":1428},{"$f":"Customers!I214","v":1440},{"$f":"Customers!J214","v":1424},{"$f":"J5+K28-K51","v":1406.6666666666667},1392.6333333333334,1299.6701666666668,1209.1718158333335,1201.125956754167,1187.120326970396,1130.184725335544,1074.5338017088663,999.16113270032201,929.16532703682037,872.51950040163626,818.15690289962811,761.06611838512993,708.26078779320426,682.71948385423821,647.30588643496696,605.06935700279212,563.04401021777812,524.22879016668924,488.60764621585577,455.16460798477647,423.8887849448526,394.76934102012837,367.79549431502772,342.95651684345256,320.24173425923527,298.64052558793912,279.14732295999943,260.75158634519943,243.44782841347342,227.23058927140605,212.094436325049,{"$f":"AP5+AQ28-AQ51","v":198.03396414342376},185.04379432270665,173.11857535109311,162.25298247433764,152.44171756196596,142.67950897415614,133.96611142928535,126.29628087213892,118.66479946777822,112.07147547043934,105.51111809308715,98.983562502621709,93.4886446901086,88.021201466658056,83.581095459324771,79.163189982028143,74.767374032117999,71.393537161957411,68.036569476147619,64.696386628766888,61.372904695623056,58.066040172144938,55.775709971284215,53.496831421427792,51.229347264320651,48.973200527999047,46.728334525359053,44.494692852732257,43.272219388468599,42.055858291526256,40.845579000068625,39.641351105068281,38.443144349542941,37.250928627795226,36.064673984656253,34.884350614732973,33.709928861659307,32.541379217351007,31.378672321264254,30.221778959657932,29.070670064859641,28.925316714535342,28.780690130962665,28.63678668030785,28.493602746906312,28.351134733171779,28.20937905950592,28.068332164208392]
["Cardinia (S)",{"$f":"Customers!B215","v":97},{"$f":"Customers!C215","v":99},{"$f":"Customers!D215","v":100},{"$f":"Customers!E215","v":100},{"$f":"Customers!F215","v":101},{"$f":"Customers!G215","v":97},{"$f":"Customers!H215","v":95},{"$f":"Customers!I215","v":89},{"$f":"Customers!J215","v":89},{"$f":"J6+K29-K52","v":85.666666666666671},84.238333333333344,79.817141666666672,75.418055958333341,74.040965678541667,72.670760850148952,70.307407045898202,67.955870010668718,64.61609066061537,61.293010207312292,57.986545156275731,55.696612430494355,53.41812936834188,51.151038721500171,49.895283527892673,48.645807110253209,46.402578074701943,44.170565184328431,42.949712358406792,41.734963796614757,40.52628897763168,39.323657532743525,38.127039245079807,36.936404048854406,35.751722028610132,34.572963418467083,33.400098601374751,32.233098108367876,31.071932617826036,29.916572954736907,29.766990089963222,29.618155139513405,{"$f":"AP6+AQ29-AQ52","v":29.470064363815837},29.322714041996758,29.176100471786775,29.03021996942784,28.885068869580699,28.740643525232795,28.59694030760663,28.453955606068597,28.311685828038254,28.170127398898064,28.029276761903574,27.889130378094055,27.749684726203586,27.610936302572568,27.472881621059706,27.335517212954407,27.198839626889637,27.062845428755189,26.927531201611412,26.792893545603356,26.658929077875339,26.525634432485962,26.393006260323531,26.261041229021913,26.129736022876802,25.999087342762419,25.869091906048606,25.739746446518364,25.611047714285771,25.482992475714344,25.355577513335771,25.228799625769092,25.102655627640246,24.977142349502046,24.852256637754536,24.727995354565763,24.604355377792935,24.481333600903969,24.35892693289945,24.237132298234954,24.115946636743779,23.995366903560061,23.875390069042261,23.756013118697052,23.637233053103568,23.519046887838051,23.401451653398862,23.284444395131867]
["Casey (C)",{"$f":"Customers!B216","v":142},{"$f":"Customers!C216","v":145},{"$f":"Customers!D216","v":142},{"$f":"Customers!E216","v":141},{"$f":"Customers!F216","v":134},{"$f":"Customers!G216","v":141},{"$f":"Customers!H216","v":141},{"$f":"Customers!I216","v":145},{"$f":"Customers!J216","v":145},{"$f":"J7+K30-K53","v":142.66666666666666},140.95333333333332,133.24856666666665,125.58232383333332,122.95441221416665,120.33964015309581,114.73794195233033,110.16425224256868,103.61343098135583,98.095363826449059,93.604887007316819,89.136862572280236,84.691178259418834,80.267722368121738,77.866383756281124,75.477051837499715,72.099666578312224,68.739168245420657,65.395472404193555,62.068495042172586,58.758152566961726,56.464361804126916,54.18203999510628,51.911129795130748,49.651574146155092,47.403316275424316,45.166299694047197,42.940468195576962,41.725765854599075,40.517137025326079,39.314551340199451,38.117978583498456,{"$f":"AP7+AQ30-AQ53","v":36.927388690580962},35.742751747128054,34.564037988392414,33.391217798450455,32.224261709458204,31.063140400910914,29.90782469890636,29.758285575411829,29.609494147534772,29.461446676797099,29.314139443413115,29.16756874619605,29.02173090246507,28.876622247952746,28.73223913671298,28.588577941029417,28.44563505132427,28.303406876067648,28.161889841687309,28.021080392478872,27.880974990516478,27.741570115563896,27.602862264986076,27.464847953661145,27.327523713892841,27.190886095323378,27.054931664846762,26.919657006522527,26.785058721489914,26.651133427882463,26.517877760743051,26.385288371939335,26.253361930079638,26.12209512042924,25.991484644827093,25.861527221602959,25.732219585494946,25.603558487567472,25.475540695129634,25.348162991653986,25.221422176695715,25.095315065812237,24.969838490483177,24.844989298030761,24.720764351540605,24.597160529782901,24.474174727133985,24.351803853498314]
["Frankston (C)",{"$f":"Customers!B217","v":0},{"$f":"Customers!C217","v":1},{"$f":"Customers!D217","v":1},{"$f":"Customers!E217","v":1},{"$f":"Customers!F217","v":1},{"$f":"Customers!G217","v":1},{"$f":"Customers!H217","v":1},{"$f":"Customers!I217","v":0},{"$f":"Customers!J217","v":0},{"$f":"J8+K31-K54","v":-0.33333333333333331},-0.33333333333333331,-0.33333333333333331,-0.33333333333333331,-0.33333333333333331,-0.33333333333333331,-0.33333333333333331,-0.33333333333333331,-0.33333333333333331,-0.33333333333333331,-0.33333333333333331,-0.33333333333333331,-0.33333333333333331,-0.33333333333333331,-0.33333333333333331,-0.33333333333333331,-0.33333333333333331,-0.33333333333333331,-0.33333333333333331,-0.33333333333333331,-0.33333333333333331,-0.33333333333333331,-0.33333333333333331,-0.33333333333333331,-0.33333333333333331,-0.33333333333333331,-0.33333333333333331,-0.33333333333333331,-0.33333333333333331,-0.33333333333333331,-0.33333333333333331,-0.33333333333333331,{"$f":"AP8+AQ31-AQ54","v":-0.33333333333333331},-0.33333333333333331,-0.33333333333333331,-0.33333333333333331,-0.33333333333333331,-0.33333333333333331,-0.33333333333333331,-0.33333333333333331,-0.33333333333333331,-0.33333333333333331,-0.33333333333333331,-0.33333333333333331,-0.33333333333333331,-0.33333333333333331,-0.33333333333333331,-0.33333333333333331,-0.33333333333333331,-0.33333333333333331,-0.33333333333333331,-0.33333333333333331,-0.33333333333333331,-0.33333333333333331,-0.33333333333333331,-0.33333333333333331,-0.33333333333333331,-0.33333333333333331,-0.33333333333333331,-0.33333333333333331,-0.33333333333333331,-0.33333333333333331,-0.33333333333333331,-0.33333333333333331,-0.33333333333333331,-0.33333333333333331,-0.33333333333333331,-0.33333333333333331,-0.33333333333333331,-0.33333333333333331,-0.33333333333333331,-0.33333333333333331,-0.33333333333333331,-0.33333333333333331,-0.33333333333333331,-0.33333333333333331,-0.33333333333333331,-0.33333333333333331,-0.33333333333333331,-0.33333333333333331]
["Glen Eira (C)",{"$f":"Customers!B218","v":965},{"$f":"Customers!C218","v":974},{"$f":"Customers!D218","v":977},{"$f":"Customers!E218","v":972},{"$f":"Customers!F218","v":979},{"$f":"Customers!G218","v":997},{"$f":"Customers!H218","v":1018},{"$f":"Customers!I218","v":1011},{"$f":"Customers!J218","v":993},{"$f":"J9+K32-K55","v":975.33333333333337},958.45666666666671,899.66438333333338,840.16606141666671,826.96523110958333,810.83040495403543,775.7762529292653,740.89737166461896,690.19288480629587,642.74192038226442,607.52821078035311,573.49056972645133,534.62311687781903,497.95000129342992,481.46025128696277,460.05295003052794,434.75268528037532,406.57892185397344,378.54602724470357,352.65329710848005,328.89003062293767,307.24558046982298,286.70935256747384,267.27580580463649,249.9394267756133,233.68972964173523,218.52128099352655,204.42867458855892,191.40653121561613,179.44949855953806,168.55225106674035,157.70948981140666,{"$f":"AP9+AQ32-AQ55","v":147.92094236234962},139.18133765053787,130.48543096228519,122.83300380747377,115.2188387884364,108.64274459449422,102.09953087152175,96.589033217164143,91.106088051078316,85.650557610822929,81.22230482276882,76.81619329865498,72.432112332161708,69.069951770500893,65.724602011648386,62.395979001590142,59.083999106582191,56.78857911104928,54.504636215494031,52.232113034416564,49.97095246924448,47.721097706898256,45.482492218363767,43.25507975727195,42.038804358485592,40.828610336693167,39.6244672850097,38.426344948584649,37.234213223841728,36.04804215772252,34.867801946933909,33.693462937199243,32.524995622513245,31.362370644400677,30.205558791178674,29.054530997222781,28.909258342236665,28.764712050525482,28.620888490272854,28.477784047821491,28.335395127582384,28.193718151944474,28.052749561184751,27.912485813378826,27.77292338431193,27.634058767390371,27.495888473553418,27.358409031185651]
["Greater Dandenong (C)",{"$f":"Customers!B219","v":1287},{"$f":"Customers!C219","v":1350},{"$f":"Customers!D219","v":1324},{"$f":"Customers!E219","v":1324},{"$f":"Customers!F219","v":1337},{"$f":"Customers!G219","v":1322},{"$f":"Customers!H219","v":1320},{"$f":"Customers!I219","v":1258},{"$f":"Customers!J219","v":1255},{"$f":"J10+K33-K56","v":1213.3333333333333},1212.2666666666667,1128.2053333333333,1048.5643066666667,1051.3214851333332,1049.0648777076665,993.81955331912809,938.85045555253248,873.15620327476984,811.79042225839601,757.73147014710401,706.94281279636846,657.40809873238663,612.12105823872469,587.06045294753108,551.12515068279345,513.36952492937951,477.80267730473258,445.4136639182089,415.18659559861783,387.11066262062474,361.17510930752161,336.369233760984,313.68738759217911,293.11895065421822,273.65335590094713,255.28508912144241,238.00866367583521,222.81862035745604,208.70452725566875,195.66100461939041,182.68269959629345,{"$f":"AP10+AQ33-AQ56","v":170.76928609831197},159.91543966782041,150.1158624694813,140.36528315713389,131.66345674134823,124.00513945764149,116.38511376035328,109.80318819155151,103.25417225059375,97.737901389340792,92.249211882394093,86.787965822982116,82.354025993867211,77.94225586389787,73.552544584578385,70.184781861655495,66.833857952347216,63.499688662585477,60.182190219272549,56.881279268176186,54.596872871835302,52.323888507476127,50.062269064938747,47.81195771961405,45.57289793101598,43.345033441360897,42.128308274154094,40.917666732783324,39.713078399119411,38.514513007123817,37.321940442088199,36.135330739877759,34.954654086178373,33.779880815747482,32.610981411668746,31.4479265046104,30.290686872087349,29.139233437726912,28.993537270538276,28.848569584185586,28.704326736264658,28.560805102583334,28.418001077070418,28.275911071685066,28.134531516326639,27.993858858745007,27.853889564451283,27.714620116629025]
["Kingston (C)",{"$f":"Customers!B220","v":1219},{"$f":"Customers!C220","v":1254},{"$f":"Customers!D220","v":1241},{"$f":"Customers!E220","v":1256},{"$f":"Customers!F220","v":1259},{"$f":"Customers!G220","v":1248},{"$f":"Customers!H220","v":1243},{"$f":"Customers!I220","v":1199},{"$f":"Customers!J220","v":1190},{"$f":"J11+K34-K57","v":1158},1148.21,1070.4689499999999,995.11660524999991,991.14102222374993,981.1853171126312,931.27939052706802,882.62299357443271,821.20987860656055,764.10382921352777,716.28331006746009,670.70189351712281,624.34838404953723,581.22664212928953,559.3205089186431,528.52390637404983,492.88128684217958,459.41688040796868,428.11979600592883,398.97919702589917,371.98430104076965,347.12437953556582,323.38875763788798,301.77181384969856,281.26295478045006,262.85664000654782,245.54235680651507,229.31464502248249,214.16807179737009,200.09723143838323,187.09674528119132,175.16126155478537,{"$f":"AP11+AQ34-AQ57","v":164.28545524701144},154.46402797077639,144.6917078309225,135.96824929176788,127.28840804530904,119.6519660050825,113.05370617505709,106.4884376441818,99.955995455960888,94.456215478681088,88.983934401287684,84.539014729281249,80.11631965563484,75.71573805735666,71.337159367069873,67.980473570234523,64.640571202383356,61.317368346371438,58.010781504639581,55.720727597116387,53.442123959130804,51.174913339335149,48.919038772638473,46.674443578775282,44.441071360881409,43.218866004077,42.002771674056618,40.792757815686336,39.588794026607907,38.390850056474868,37.198895806192496,36.012901327161536,34.832836820525728,33.658672636423098,32.490379273240983,31.327927376874779,30.171287739990404,29.020431301290451,28.875329144783997,28.730952499060077,28.587297736564778,28.444361247881954,28.302139441642545,28.160628744434334,28.019825600712164,27.879726472708604,27.74032784034506,27.601626201143336]
["Knox (C)",{"$f":"Customers!B221","v":1112},{"$f":"Customers!C221","v":1149},{"$f":"Customers!D221","v":1140},{"$f":"Customers!E221","v":1141},{"$f":"Customers!F221","v":1141},{"$f":"Customers!G221","v":1130},{"$f":"Customers!H221","v":1130},{"$f":"Customers!I221","v":1093},{"$f":"Customers!J221","v":1082},{"$f":"J12+K35-K58","v":1060},1051.7,980.44150000000002,911.53929249999999,907.98159603750003,899.44168805731249,854.94447961702588,811.66975721894073,754.61140843284602,701.83835139068174,658.3291596337283,617.03751383555959,573.95232626638176,534.08256463504983,514.41215181187454,486.84009105281518,454.40589059755109,423.13386114456335,394.01819183884055,367.04810087964637,342.21286037524811,319.50179607337185,297.904287093005,278.41476565753999,260.02269182925227,242.72257837010602,226.5089654782555,211.37642065086422,197.31953854760991,184.33294085487185,172.4112761505975,161.54921976984451,{"$f":"AP12+AQ35-AQ58","v":151.74147367099528},141.9827663026403,133.27285247112709,125.60648820877145,117.9784557677276,111.38856348888896,104.83162067144451,99.307462568087288,93.810925255246858,88.341870628970625,83.900161275825766,79.480660469446633,75.083257167099404,70.707840881263905,67.354301676857588,64.0175301684733,60.697442517630932,57.39395530504278,55.106985528517569,52.83145060087498,50.567293347870603,48.31445688113125,46.072884596725594,43.842520173741967,42.623307572873259,41.410191035008893,40.203140079833851,39.002124379434683,37.807113757537508,36.61807818874982,35.434987797806073,34.25781285881704,33.086523794522954,31.921091175550337,30.761485719672585,29.607678291074222,29.45963989961885,29.312341700120754,29.165779991620152,29.019951091662051,28.87485133620374,28.730477079522721,28.586824694125109,28.443890570654485,28.301671117801213,28.160162762212206,28.019361948401144,27.879265138659139]
["Manningham (C)",{"$f":"Customers!B222","v":539},{"$f":"Customers!C222","v":531},{"$f":"Customers!D222","v":534},{"$f":"Customers!E222","v":539},{"$f":"Customers!F222","v":542},{"$f":"Customers!G222","v":552},{"$f":"Customers!H222","v":555},{"$f":"Customers!I222","v":551},{"$f":"Customers!J222","v":552},{"$f":"J13+K36-K59","v":551.33333333333337},547.57666666666671,510.83878333333337,475.28458941666668,473.90816646958336,469.53862563723544,444.19093250904928,419.96997784650404,391.87012795727151,364.91077731748516,342.08622343089775,320.37579231374326,298.77391335217453,279.28004378541368,268.88364356648663,254.53922534865418,238.2665292219109,223.07519657580136,208.95982059292234,195.91502148995772,182.93544638250793,171.02076915059538,160.16566530484241,150.36483697831818,140.61301279342658,131.90994772945945,124.25039799081215,116.62914600085809,110.0460002708538,103.49577026949953,97.978291418152025,92.488399961061262,{"$f":"AP13+AQ36-AQ59","v":87.025957961255955},82.590828171449672,78.17787403059242,73.786984660439458,70.418049737137267,67.065959488451583,63.730629691009327,60.411976542554278,57.10991665984151,54.824367076542302,52.550245241159587,50.287494014953786,48.036056544879017,45.795876262154621,43.566896880843849,42.349062396439628,41.137317084457429,39.931630499035144,38.731972346539969,37.538312484807271,36.350620922383236,35.168867817771321,33.993023478682467,32.823058361289057,31.658943069482611,30.500648354135198,29.34814511236452,29.201404386802697,29.055397364868682,28.91012037804434,28.76556977615412,28.621741927273348,28.478633217636983,28.336240051548799,28.194558851291056,28.0535860570346,27.913318126749427,27.773751536115679,27.634882778435099,27.496708364542922,27.359224822720208,27.222428698606606,27.086316555113573,26.950884972338006,26.816130547476316,26.682049894738935,26.54863964526524,26.415896447038914]
["Maroondah (C)",{"$f":"Customers!B223","v":585},{"$f":"Customers!C223","v":592},{"$f":"Customers!D223","v":584},{"$f":"Customers!E223","v":576},{"$f":"Customers!F223","v":577},{"$f":"Customers!G223","v":579},{"$f":"Customers!H223","v":576},{"$f":"Customers!I223","v":579},{"$f":"Customers!J223","v":571},{"$f":"J14+K37-K60","v":563.66666666666663},558.84833333333324,521.05409166666664,485.4488212083333,483.02157710229164,477.60646921678017,454.21843687069628,430.94734468634277,401.79260796291106,374.78364492309652,351.90972669848105,330.15017806498867,307.49942717466371,286.9619300387904,276.52712038859647,262.14448478665349,245.83376236272022,229.60459355090663,214.45657058315209,200.38428773023634,187.38236629158516,175.44545446012722,164.56822718782658,154.74538605188744,144.97165912162799,136.24680082601986,127.56556682188976,119.92773898778032,113.32810029284141,106.76145979137721,100.22765249242032,94.726514229958212,{"$f":"AP14+AQ37-AQ60","v":89.25288165880842},84.806617250514378,80.3825841642618,75.980671243440497,71.600767887223299,68.242764047787176,64.901550227548242,61.577042476410497,58.269157264028443,55.9778114777083,53.697922420319756,51.429432808218159,49.172285644177066,46.926424215956182,44.691792094876398,43.468333134402016,42.250991468730007,41.039736511386359,39.834537828829426,38.635365139685277,37.442188313986847,36.25497737241691,35.073702485554826,33.898333973127052,32.728842303261416,31.56519809174511,30.407372101286384,29.255335240779953,29.109058564576053,28.963513271753172,28.818695705394404,28.674602226867432,28.531229215733095,28.388573069654431,28.246630204306157,28.105397053284626,27.964870068018204,27.825045717678112,27.685920489089721,27.547490886644272,27.409753432211051,27.272704665049996,27.136341141724746,27.000659436016122,26.865656138836041,26.73132785814186,26.597671218851151,26.464682862756895]
["Melbourne (C)",{"$f":"Customers!B224","v":152},{"$f":"Customers!C224","v":173},{"$f":"Customers!D224","v":176},{"$f":"Customers!E224","v":175},{"$f":"Customers!F224","v":181},{"$f":"Customers!G224","v":190},{"$f":"Customers!H224","v":196},{"$f":"Customers!I224","v":187},{"$f":"Customers!J224","v":186},178,{"$f":"K15+L38-L61","v":180.11},168.20945,157.36840275,159.58156073625,161.78365293256874,151.97473466790589,142.21486099456635,133.50378668959351,125.83626775614555,118.20708641736482,111.61605098527799,105.0579707303516,98.532680876699843,94.04001747231635,88.569817384954774,84.126968298029993,79.706333456539838,75.307801789257141,70.93126278031086,67.576606466409302,63.238723434077258,58.922529816906874,55.627917167822339,52.349777581983226,49.088028694073309,45.84258855060294,42.613375607849925,40.400308729810675,38.198307186161621,36.007315650230815,33.82727907197966,{"$f":"AP15+AQ38-AQ61","v":31.658142676619761},29.499851963236662,28.352352703420479,27.210590939903376,26.074537985203861,24.944165295277841,23.819444468801453,22.700347246457447,21.58684551022516,20.478911282674034,19.376516726260665,18.279634142629362,17.188235971916214,16.102294792056632,15.021783318096348,13.946674401505867,13.876941029498337,13.807556324350845,13.738518542729091,13.669825950015445,13.601476820265368,13.533469436164042,13.465802088983223,13.398473078538306,13.331480713145615,13.264823309579887,13.198499193031987,13.132506697066827,13.066844163581493,13.001509942763585,12.936502393049768,12.871819881084519,12.807460781679097,12.743423477770701,12.679706360381848,12.61630782857994,12.55322628943704,12.490460157989855,12.428007857199905,12.365867817913905,12.304038478824335,12.242518286430213,12.181305694998063,12.120399166523072,12.059797170690457,11.999498184837005,11.939500693912819,11.879803190443255]
["Monash (C)",{"$f":"Customers!B225","v":1290},{"$f":"Customers!C225","v":1339},{"$f":"Customers!D225","v":1312},{"$f":"Customers!E225","v":1299},{"$f":"Customers!F225","v":1306},{"$f":"Customers!G225","v":1317},{"$f":"Customers!H225","v":1313},{"$f":"Customers!I225","v":1255},{"$f":"Customers!J225","v":1251},{"$f":"J16+K39-K62","v":1218.3333333333333},1213.2416666666666,1130.1754583333332,1050.5245810416666,1050.2719581364584,1044.0205983457761,990.80049535404714,937.84649287727689,872.15726041289054,810.79647411082613,758.74249174027204,709.94877928157064,660.39903538516273,614.09704020823688,591.02655500719573,557.07142223215976,519.28606512099896,483.68963479539394,450.27118662141697,419.01983068830987,390.92473153486833,363.97010787719398,339.150257337808,316.45450605111898,294.8722335208634,275.39787235325906,257.02088299149278,239.73577857653532,224.53709968365266,210.41441418523439,196.36234211430821,183.38053040373666,{"$f":"AP16+AQ39-AQ62","v":171.46362775171798},160.60630961295939,150.80327806489458,141.04926167457012,132.34401536619725,124.68229528936627,117.05888381291943,110.47358939385484,103.92122144688557,98.401615339651144,92.909607262952889,87.445059226638122,83.00783393050493,78.592794760852399,74.199830787048143,70.828831633112898,67.474687474947331,64.137314037572594,60.816627467384734,57.51254433004781,55.22498160839757,52.948856700355584,50.684112416853807,48.430691854769535,46.188538395495684,43.957595703518209,42.737807725000614,41.524118686375608,40.316498092943732,39.114915602479016,37.919341024466618,36.729744319344285,35.546095597747566,34.368365119758828,33.196523294160031,32.030540677689231,30.870387974300783,29.71603603442928,29.567455854257133,29.419618574985847,29.272520482110917,29.126157879700362,28.980527090301859,28.83562445485035,28.691446332576099,28.54798910091322,28.405249155408654,28.263222909631612]
["Port Phillip (C)",{"$f":"Customers!B226","v":1517},{"$f":"Customers!C226","v":1552},{"$f":"Customers!D226","v":1556},{"$f":"Customers!E226","v":1560},{"$f":"Customers!F226","v":1555},{"$f":"Customers!G226","v":1557},{"$f":"Customers!H226","v":1554},{"$f":"Customers!I226","v":1506},{"$f":"Customers!J226","v":1501},{"$f":"J17+K40-K63","v":1474.3333333333333},1474.9616666666666,1372.5868583333333,1275.7239240416666,1280.3453044214582,1277.9435778993509,1215.5538600098541,1154.4760907098048,1073.7037102562558,998.33519170497448,934.34351574644961,873.67179816771738,812.30343917687878,755.24192198099445,727.46571237108947,686.82838380923397,640.3942418901878,596.1922706807369,555.2113093273332,516.43525278069649,480.85307651679301,447.44881113420905,417.211567078538,389.1255092431453,363.17988169692956,338.3639822884449,315.67216237700268,294.09380156511764,274.62333255729203,256.25021589450557,238.96896481503305,223.77411999095787,{"$f":"AP17+AQ40-AQ63","v":209.65524939100308},196.60697314404806,183.62393827832781,171.70581858693618,160.8472894940015,151.0430530465315,141.28783778129883,132.58139859239233,124.91849159943037,117.29389914143322,110.70742964572605,104.15389249749742,98.63312303500993,93.139957419834886,87.674257632735717,83.235886344572037,78.819706912849171,74.42560837828492,71.053480336393491,67.69821293471152,64.359721870037959,61.037923260687769,57.732733644384332,55.44406997616241,53.166849626281596,50.901015378150191,48.64651030125944,46.403277749753144,44.171261361004376,42.950405054199351,41.735653028928354,40.526974763783713,39.324339889964797,38.127718190514976,36.937079599562402,35.752394201564591,34.573632230556768,33.400764069403984,32.233760249056964,31.072591447811678,29.917228490572619,29.767642348119754,29.618804136379154,29.470710115697258,29.323356565118772,29.176739782293179,29.030856083381714,28.885701802964807]
["South Gippsland (S)",{"$f":"Customers!B227","v":39},{"$f":"Customers!C227","v":42},{"$f":"Customers!D227","v":46},{"$f":"Customers!E227","v":46},{"$f":"Customers!F227","v":44},{"$f":"Customers!G227","v":45},{"$f":"Customers!H227","v":46},{"$f":"Customers!I227","v":47},{"$f":"Customers!J227","v":49},{"$f":"J18+K41-K64","v":48.333333333333336},48.091666666666669,45.851208333333332,43.621952291666666,43.40384253020833,43.186823317557291,41.970889200969502,40.761034754964655,39.55722958118983,38.359443433283879,37.167646216117461,35.981807985036873,34.801898945111688,33.627889450386128,32.459750003134197,31.297451253118524,30.140963996852932,28.990259176868669,28.845307880984326,28.701081341579403,28.557575934871505,28.414788055197146,28.272714114921161,28.131350544346557,27.990693791624825,27.850740322666699,27.711486621053364,27.572929187948098,27.435064542008359,27.297889219298316,27.161399773201826,27.025592774335816,{"$f":"AP18+AQ41-AQ64","v":26.890464810464138},26.756012486411816,26.622232423979757,26.489121261859857,26.356675655550557,26.224892277272804,26.093767815886441,25.963298976807007,25.833482481922971,25.704315069513356,25.57579349416579,25.447914526694962,25.320674954061488,25.19407157929118,25.068101221394723,24.942760715287751,24.818046911711313,24.693956677152755,24.57048689376699,24.447634459298154,24.325396287001663,24.203769305566656,24.082750459038824,23.962336706743631,23.842525023209912,23.723312398093864,23.604695836103396,23.486672356922877,23.369238995138264,23.252392800162575,23.136130836161762,23.020450181980951,22.905347931071045,22.790821191415692,22.676867085458614,22.563482750031319,22.450665336281162,22.338412009599757,22.226719949551757,22.115586349803998,22.005008418054977,21.894983375964703,21.78550845908488,21.676580916789455,21.568198012205507,21.460357022144478,21.353055237033757,21.246289960848589]
["Stonnington (C)",{"$f":"Customers!B228","v":1261},{"$f":"Customers!C228","v":1275},{"$f":"Customers!D228","v":1295},{"$f":"Customers!E228","v":1285},{"$f":"Customers!F228","v":1316},{"$f":"Customers!G228","v":1333},{"$f":"Customers!H228","v":1356},{"$f":"Customers!I228","v":1363},{"$f":"Customers!J228","v":1341},{"$f":"J19+K42-K65","v":1315},1304.425,1216.902875,1131.818360625,1126.159268821875,1114.5284724777657,1060.9558301153768,1009.6510509647999,938.60279570997591,872.90978173142605,818.54523282276887,767.45250665865501,713.61524412536176,664.04716790473492,639.72693206521126,606.52829740488517,567.49565591786074,528.65817763827147,492.01488675008011,458.55481231632973,427.26203825474806,398.1257280634743,371.13509942315693,346.27942392604115,322.54802680641092,300.93528667237888,280.43061023901697,262.02845718782191,244.71831490188282,228.49472332737341,213.35224971073654,199.28548846218285,{"$f":"AP19+AQ42-AQ65","v":186.28906101987195},174.35761571477258,163.48582763619871,153.66839849801772,143.90005650552763,135.180556223,126.504653441885,118.87213017467558,112.27776952380219,105.71638067618318,99.187798772802267,93.691859778938252,88.223400480043566,83.782283477643347,79.363372060255131,74.966555199953859,71.591722423954096,68.233763811834322,64.892594992775145,61.568132017811266,58.26029135772221,55.9689899009336,53.689144951428929,51.420699226671786,49.163595730538425,46.917777751885737,44.683188863126311,43.459772918810678,42.242474054216622,41.031261683945537,39.826105375525813,38.626974848648182,37.43383997440494,36.246670774532916,35.065437420660253,33.890110233556953,32.720659682389169,31.557056383977223,30.399271102057337,29.247274746547049,29.101038372814315,28.955533180950244,28.810755515045493,28.666701737470266,28.523368228782914,28.380751387638998,28.238847630700803,28.097653392547301]
["Whitehorse (C)",{"$f":"Customers!B229","v":1128},{"$f":"Customers!C229","v":1142},{"$f":"Customers!D229","v":1161},{"$f":"Customers!E229","v":1154},{"$f":"Customers!F229","v":1161},{"$f":"Customers!G229","v":1175},{"$f":"Customers!H229","v":1183},{"$f":"Customers!I229","v":1170},{"$f":"Customers!J229","v":1168},{"$f":"J20+K43-K66","v":1148.3333333333333},1139.5916666666667,1061.8937083333333,987.58423979166662,984.64631859270833,975.72308699974474,925.84447156474607,877.21524920692229,815.82917296088772,758.75002709608327,710.95627696060285,665.4014955757998,619.07448809792083,575.97911565743118,554.09922007914406,523.32872397874837,488.71208035885462,455.26851995706033,423.99217735727501,394.87221647048864,367.89785538813618,343.05836611119548,320.34307428063948,298.74135890923628,279.24765211469008,260.85141385411663,243.54715678484604,227.3294210009218,212.19277389591718,198.13181002643759,185.1411509763054,173.21544522142386,{"$f":"AP20+AQ43-AQ66","v":162.34936799531675},152.53762115534016,142.77493304956346,134.06105838431563,126.39075309239405,118.75879932693208,112.16500533029742,105.60418030364593,99.076159402127701,93.580778605117061,88.112874712091468,83.672310338531005,79.25394878683835,74.857679042904152,71.483390647689632,68.12597369445119,64.785343825978941,61.461417106849048,58.1541100213148,55.863339471208228,53.584022773852183,51.316102659982924,49.059522146683008,46.814224535949592,44.580153413269841,43.357252646203492,42.140466382972477,40.929764051057617,39.725115230802331,38.526489654648316,37.333857206375072,36.1471879203432,34.966451980741482,33.791619720837772,32.622661622233586,31.459548314122419,30.302250572551806,29.150739319689048,29.004985623090604,28.85996069497515,28.715660891500274,28.572082587042772,28.429222174107558,28.28707606323702,28.145640682920835,28.004912479506231,27.8648879171087,27.725563477523156]
["Yarra Ranges (S)",{"$f":"Customers!B230","v":876},{"$f":"Customers!C230","v":889},{"$f":"Customers!D230","v":885},{"$f":"Customers!E230","v":886},{"$f":"Customers!F230","v":880},{"$f":"Customers!G230","v":878},{"$f":"Customers!H230","v":886},{"$f":"Customers!I230","v":875},{"$f":"Customers!J230","v":854},{"$f":"J21+K44-K67","v":841.33333333333337},830.12666666666667,773.97603333333336,720.10615316666667,713.50562240083332,702.93809428882912,666.42340381738495,630.09128679829803,585.94083036430652,545.01112621248501,510.28607058142256,477.73464022851545,445.34596702737286,415.11923719223603,398.04364100627487,376.05342280124347,351.17315568723723,327.41728990880102,305.780203459257,285.25130244196072,265.8250459297509,248.49592070010215,232.25344109660165,217.09217389111865,203.00671302166305,189.99167945655472,178.04172105927194,167.15151245397558,156.31575489170569,146.53417611724717,137.80150523666094,129.11249771047764,{"$f":"AP21+AQ44-AQ67","v":121.46693522192525},113.85960054581562,107.29030254308654,100.75385103037111,95.250081775219257,89.77383136634316,85.32496220951144,80.89833739846388,76.493845711471565,72.11137648291421,68.750819600499639,65.407065502497147,62.080030174984664,58.769630024109738,56.475781873989192,54.193402964619246,51.922435949796153,49.662823770047169,47.41450965119693,45.177437102940942,42.951549917426235,41.736792167839106,40.52810820699991,39.325467665964908,38.128840327635082,36.93819612599691,35.753505145366923,34.574737619640089,33.401863931541889,32.234854611884181,31.073680338824762,29.918311937130639,29.768720377444986,29.61987677555776,29.471777391679971,29.324418504721571,29.177796412197964,29.031907430136975,28.886747892986289,28.742314153521356,28.598602582753749,28.455609569839979,28.313331521990779,28.171764864380826,28.030906040058923,27.890751509858628,27.751297752309334,27.612541263547786]
["Total",{"$f":"Customers!B231","v":14367},{"$f":"Customers!C231","v":14685},{"$f":"Customers!D231","v":14656},{"$f":"Customers!E231","v":14640},{"$f":"Customers!F231","v":14715},{"$f":"Customers!G231","v":14787},{"$f":"Customers!H231","v":14850},{"$f":"Customers!I231","v":14560},{"$f":"Customers!J231","v":14439},{"$f":"SUM(K3:K21)","v":14156.66666666667},14051.881666666666,13111.620591666666,12204.060822041667,12155.03885126479,12042.2619903418,11448.049013723425,10865.807101988141,10115.476399811536,9417.897351145808,8835.8061977234156,8285.6255000681285,7718.195705901122,7191.6030607049488,6924.6433787347578,6556.0184951744177,6134.2367360318804,5723.5638856850537,5340.944399589961,4984.2380109253445,4653.3151542040514,4347.0469117663642,4061.3100105408657,3799.0017938214946,3553.0051181857207,3324.2384259281248,3109.615567131817,2910.0658226294918,2727.5138268496776,2556.8745910487623,2399.0885514268521,2251.0914420030517,{"$f":"SUM(AQ3:AQ21)","v":2114.8343181263695},1989.2584798690709,1872.3105208030588,1762.9473015323767,1661.1308983580482,1568.8235771995912,1481.9777926469267,1403.5662370170253,1328.5467391652735,1260.9023388027808,1197.5961604421002,1137.6065129732228,1081.9168137416902,1029.505563006315,981.35636852461676,939.44792001532699,899.74901374858382,862.24860201317415,826.93569233644143,794.79934720809263,764.8236838053856,736.99789871969199,710.31124255942689,684.75801967996301,661.33256291489647,640.02423343365535,620.82244559982053,603.71666670515492,588.6964167049623,574.75126795477081,560.87584494833027,548.06979905692185,{"$f":"SUM(BW3:BW21)","v":536.32778339497065},524.64447781132924,{"$f":"SUM(BY3:BY21)","v":513.01958875560592},501.452824145161,491.94389335776867,482.48250722431317,477.06842802152494,471.68141921475063,467.32134545201012,464.98307205808351,462.65649003112645,460.34154091430418,458.03816654306593,455.74630904368394,453.46591083179879,{"$f":"SUM(CL3:CL21)","v":451.19691461097324}]
[]
["New Commercial Customers",2012,{"$f":"B24+1","v":2013},{"$f":"C24+1","v":2014},2015,2016,2017,2018,2019,2020,{"$f":"J24+1","v":2021},{"$f":"K24+1","v":2022},2023,2024,2025,2026,2027,2028,2029,2030,2031,2032,2033,2034,2035,2036,2037,2038,2039,2040,2041,2042,2043,2044,2045,2046,2047,2048,2049,2050,2051,2052,2053,2054,2055,2056,2057,2058,2059,2060,2061,2062,2063,2064,2065,2066,2067,2068,2069,2070,2071,2072,2073,2074,2075,2076,2077,2078,2079,2080,2081,2082,2083,2084,2085,{"$f":"BW24+1","v":2086},{"$f":"BX24+1","v":2087},{"$f":"BY24+1","v":2088},{"$f":"BZ24+1","v":2089},{"$f":"CA24+1","v":2090},{"$f":"CB24+1","v":2091},{"$f":"CC24+1","v":2092},{"$f":"CD24+1","v":2093},{"$f":"CE24+1","v":2094},{"$f":"CF24+1","v":2095},{"$f":"CG24+1","v":2096},{"$f":"CH24+1","v":2097},{"$f":"CI24+1","v":2098},{"$f":"CJ24+1","v":2099},2100]
["LGA"]
["Bass Coast (S)",null,{"$f":"Customers!C235","v":2},{"$f":"Customers!D235","v":3},{"$f":"Customers!E235","v":0},{"$f":"Customers!F235","v":2},{"$f":"Customers!G235","v":4},{"$f":"Customers!H235","v":4},{"$f":"Customers!I235","v":3},{"$f":"Customers!J235","v":2},{"$f":"'COM S curve-connect'!C112","v":1},{"$f":"'COM S curve-connect'!D112","v":1},{"$f":"'COM S curve-connect'!E112","v":0},{"$f":"'COM S curve-connect'!F112","v":0},{"$f":"'COM S curve-connect'!G112","v":1},{"$f":"'COM S curve-connect'!H112","v":0},{"$f":"'COM S curve-connect'!I112","v":0},{"$f":"'COM S curve-connect'!J112","v":0},{"$f":"'COM S curve-connect'!K112","v":0},{"$f":"'COM S curve-connect'!L112","v":0},{"$f":"'COM S curve-connect'!M112","v":0},{"$f":"'COM S curve-connect'!N112","v":0},{"$f":"'COM S curve-connect'!O112","v":0},{"$f":"'COM S curve-connect'!P112","v":0},{"$f":"'COM S curve-connect'!Q112","v":0},{"$f":"'COM S curve-connect'!R112","v":0},{"$f":"'COM S curve-connect'!S112","v":0},{"$f":"'COM S curve-connect'!T112","v":0},{"$f":"'COM S curve-connect'!U112","v":0},{"$f":"'COM S curve-connect'!V112","v":0},{"$f":"'COM S curve-connect'!W112","v":0},{"$f":"'COM S curve-connect'!X112","v":0},{"$f":"'COM S curve-connect'!Y112","v":0},{"$f":"'COM S curve-connect'!Z112","v":0},{"$f":"'COM S curve-connect'!AA112","v":0},{"$f":"'COM S curve-connect'!AB112","v":0},{"$f":"'COM S curve-connect'!AC112","v":0},{"$f":"'COM S curve-connect'!AD112","v":0},{"$f":"'COM S curve-connect'!AE112","v":0},{"$f":"'COM S curve-connect'!AF112","v":0},{"$f":"'COM S curve-connect'!AG112","v":0},{"$f":"'COM S curve-connect'!AH112","v":0},{"$f":"'COM S curve-connect'!AI112","v":0},{"$f":"'COM S curve-connect'!AJ112","v":0},{"$f":"'COM S curve-connect'!AK112","v":0},{"$f":"'COM S curve-connect'!AL112","v":0},{"$f":"'COM S curve-connect'!AM112","v":0},{"$f":"'COM S curve-connect'!AN112","v":0},{"$f":"'COM S curve-connect'!AO112","v":0},{"$f":"'COM S curve-connect'!AP112","v":0},{"$f":"'COM S curve-connect'!AQ112","v":0},{"$f":"'COM S curve-connect'!AR112","v":0},{"$f":"'COM S curve-connect'!AS112","v":0},{"$f":"'COM S curve-connect'!AT112","v":0},{"$f":"'COM S curve-connect'!AU112","v":0},{"$f":"'COM S curve-connect'!AV112","v":0},{"$f":"'COM S curve-connect'!AW112","v":0},{"$f":"'COM S curve-connect'!AX112","v":0},{"$f":"'COM S curve-connect'!AY112","v":0},{"$f":"'COM S curve-connect'!AZ112","v":0},{"$f":"'COM S curve-connect'!BA112","v":0},{"$f":"'COM S curve-connect'!BB112","v":0},{"$f":"'COM S curve-connect'!BC112","v":0},{"$f":"'COM S curve-connect'!BD112","v":0},{"$f":"'COM S curve-connect'!BE112","v":0},{"$f":"'COM S curve-connect'!BF112","v":0},{"$f":"'COM S curve-connect'!BG112","v":0},{"$f":"'COM S curve-connect'!BH112","v":0},{"$f":"'COM S curve-connect'!BI112","v":0},{"$f":"'COM S curve-connect'!BJ112","v":0},{"$f":"'COM S curve-connect'!BK112","v":0},{"$f":"'COM S curve-connect'!BL112","v":0},{"$f":"'COM S curve-connect'!BM112","v":0},{"$f":"'COM S curve-connect'!BN112","v":0},{"$f":"'COM S curve-connect'!BO112","v":0},{"$f":"'COM S curve-connect'!BP112","v":0},{"$f":"'COM S curve-connect'!BQ112","v":0},{"$f":"'COM S curve-connect'!BR112","v":0},{"$f":"'COM S curve-connect'!BS112","v":0},{"$f":"'COM S curve-connect'!BT112","v":0},{"$f":"'COM S curve-connect'!BU112","v":0},{"$f":"'COM S curve-connect'!BV112","v":0},{"$f":"'COM S curve-connect'!BW112","v":0},{"$f":"'COM S curve-connect'!BX112","v":0},{"$f":"'COM S curve-connect'!BY112","v":0},{"$f":"'COM S curve-connect'!BZ112","v":0},{"$f":"'COM S curve-connect'!CA112","v":0},{"$f":"'COM S curve-connect'!CB112","v":0},{"$f":"'COM S curve-connect'!CC112","v":0},{"$f":"'COM S curve-connect'!CD112","v":0}]
["Bayside (C)",null,{"$f":"Customers!C236","v":18},{"$f":"Customers!D236","v":24},{"$f":"Customers!E236","v":27},{"$f":"Customers!F236","v":34},{"$f":"Customers!G236","v":26},{"$f":"Customers!H236","v":18},{"$f":"Customers!I236","v":11},{"$f":"Customers!J236","v":12},{"$f":"'COM S curve-connect'!C113","v":12},{"$f":"'COM S curve-connect'!D113","v":5},{"$f":"'COM S curve-connect'!E113","v":0},{"$f":"'COM S curve-connect'!F113","v":0},{"$f":"'COM S curve-connect'!G113","v":5},{"$f":"'COM S curve-connect'!H113","v":4},{"$f":"'COM S curve-connect'!I113","v":1},{"$f":"'COM S curve-connect'!J113","v":1},{"$f":"'COM S curve-connect'!K113","v":0},{"$f":"'COM S curve-connect'!L113","v":0},{"$f":"'COM S curve-connect'!M113","v":0},{"$f":"'COM S curve-connect'!N113","v":0},{"$f":"'COM S curve-connect'!O113","v":0},{"$f":"'COM S curve-connect'!P113","v":0},{"$f":"'COM S curve-connect'!Q113","v":0},{"$f":"'COM S curve-connect'!R113","v":0},{"$f":"'COM S curve-connect'!S113","v":0},{"$f":"'COM S curve-connect'!T113","v":0},{"$f":"'COM S curve-connect'!U113","v":0},{"$f":"'COM S curve-connect'!V113","v":0},{"$f":"'COM S curve-connect'!W113","v":0},{"$f":"'COM S curve-connect'!X113","v":0},{"$f":"'COM S curve-connect'!Y113","v":0},{"$f":"'COM S curve-connect'!Z113","v":0},{"$f":"'COM S curve-connect'!AA113","v":0},{"$f":"'COM S curve-connect'!AB113","v":0},{"$f":"'COM S curve-connect'!AC113","v":0},{"$f":"'COM S curve-connect'!AD113","v":0},{"$f":"'COM S curve-connect'!AE113","v":0},{"$f":"'COM S curve-connect'!AF113","v":0},{"$f":"'COM S curve-connect'!AG113","v":0},{"$f":"'COM S curve-connect'!AH113","v":0},{"$f":"'COM S curve-connect'!AI113","v":0},{"$f":"'COM S curve-connect'!AJ113","v":0},{"$f":"'COM S curve-connect'!AK113","v":0},{"$f":"'COM S curve-connect'!AL113","v":0},{"$f":"'COM S curve-connect'!AM113","v":0},{"$f":"'COM S curve-connect'!AN113","v":0},{"$f":"'COM S curve-connect'!AO113","v":0},{"$f":"'COM S curve-connect'!AP113","v":0},{"$f":"'COM S curve-connect'!AQ113","v":0},{"$f":"'COM S curve-connect'!AR113","v":0},{"$f":"'COM S curve-connect'!AS113","v":0},{"$f":"'COM S curve-connect'!AT113","v":0},{"$f":"'COM S curve-connect'!AU113","v":0},{"$f":"'COM S curve-connect'!AV113","v":0},{"$f":"'COM S curve-connect'!AW113","v":0},{"$f":"'COM S curve-connect'!AX113","v":0},{"$f":"'COM S curve-connect'!AY113","v":0},{"$f":"'COM S curve-connect'!AZ113","v":0},{"$f":"'COM S curve-connect'!BA113","v":0},{"$f":"'COM S curve-connect'!BB113","v":0},{"$f":"'COM S curve-connect'!BC113","v":0},{"$f":"'COM S curve-connect'!BD113","v":0},{"$f":"'COM S curve-connect'!BE113","v":0},{"$f":"'COM S curve-connect'!BF113","v":0},{"$f":"'COM S curve-connect'!BG113","v":0},{"$f":"'COM S curve-connect'!BH113","v":0},{"$f":"'COM S curve-connect'!BI113","v":0},{"$f":"'COM S curve-connect'!BJ113","v":0},{"$f":"'COM S curve-connect'!BK113","v":0},{"$f":"'COM S curve-connect'!BL113","v":0},{"$f":"'COM S curve-connect'!BM113","v":0},{"$f":"'COM S curve-connect'!BN113","v":0},{"$f":"'COM S curve-connect'!BO113","v":0},{"$f":"'COM S curve-connect'!BP113","v":0},{"$f":"'COM S curve-connect'!BQ113","v":0},{"$f":"'COM S curve-connect'!BR113","v":0},{"$f":"'COM S curve-connect'!BS113","v":0},{"$f":"'COM S curve-connect'!BT113","v":0},{"$f":"'COM S curve-connect'!BU113","v":0},{"$f":"'COM S curve-connect'!BV113","v":0},{"$f":"'COM S curve-connect'!BW113","v":0},{"$f":"'COM S curve-connect'!BX113","v":0},{"$f":"'COM S curve-connect'!BY113","v":0},{"$f":"'COM S curve-connect'!BZ113","v":0},{"$f":"'COM S curve-connect'!CA113","v":0},{"$f":"'COM S curve-connect'!CB113","v":0},{"$f":"'COM S curve-connect'!CC113","v":0},{"$f":"'COM S curve-connect'!CD113","v":0}]
["Boroondara (C)",null,{"$f":"Customers!C237","v":34},{"$f":"Customers!D237","v":42},{"$f":"Customers!E237","v":59},{"$f":"Customers!F237","v":62},{"$f":"Customers!G237","v":64},{"$f":"Customers!H237","v":49},{"$f":"Customers!I237","v":59},{"$f":"Customers!J237","v":20},{"$f":"'COM S curve-connect'!C114","v":26},{"$f":"'COM S curve-connect'!D114","v":13},{"$f":"'COM S curve-connect'!E114","v":0},{"$f":"'COM S curve-connect'!F114","v":0},{"$f":"'COM S curve-connect'!G114","v":12},{"$f":"'COM S curve-connect'!H114","v":10},{"$f":"'COM S curve-connect'!I114","v":2},{"$f":"'COM S curve-connect'!J114","v":2},{"$f":"'COM S curve-connect'!K114","v":0},{"$f":"'COM S curve-connect'!L114","v":0},{"$f":"'COM S curve-connect'!M114","v":0},{"$f":"'COM S curve-connect'!N114","v":0},{"$f":"'COM S curve-connect'!O114","v":0},{"$f":"'COM S curve-connect'!P114","v":0},{"$f":"'COM S curve-connect'!Q114","v":0},{"$f":"'COM S curve-connect'!R114","v":0},{"$f":"'COM S curve-connect'!S114","v":0},{"$f":"'COM S curve-connect'!T114","v":0},{"$f":"'COM S curve-connect'!U114","v":0},{"$f":"'COM S curve-connect'!V114","v":0},{"$f":"'COM S curve-connect'!W114","v":0},{"$f":"'COM S curve-connect'!X114","v":0},{"$f":"'COM S curve-connect'!Y114","v":0},{"$f":"'COM S curve-connect'!Z114","v":0},{"$f":"'COM S curve-connect'!AA114","v":0},{"$f":"'COM S curve-connect'!AB114","v":0},{"$f":"'COM S curve-connect'!AC114","v":0},{"$f":"'COM S curve-connect'!AD114","v":0},{"$f":"'COM S curve-connect'!AE114","v":0},{"$f":"'COM S curve-connect'!AF114","v":0},{"$f":"'COM S curve-connect'!AG114","v":0},{"$f":"'COM S curve-connect'!AH114","v":0},{"$f":"'COM S curve-connect'!AI114","v":0},{"$f":"'COM S curve-connect'!AJ114","v":0},{"$f":"'COM S curve-connect'!AK114","v":0},{"$f":"'COM S curve-connect'!AL114","v":0},{"$f":"'COM S curve-connect'!AM114","v":0},{"$f":"'COM S curve-connect'!AN114","v":0},{"$f":"'COM S curve-connect'!AO114","v":0},{"$f":"'COM S curve-connect'!AP114","v":0},{"$f":"'COM S curve-connect'!AQ114","v":0},{"$f":"'COM S curve-connect'!AR114","v":0},{"$f":"'COM S curve-connect'!AS114","v":0},{"$f":"'COM S curve-connect'!AT114","v":0},{"$f":"'COM S curve-connect'!AU114","v":0},{"$f":"'COM S curve-connect'!AV114","v":0},{"$f":"'COM S curve-connect'!AW114","v":0},{"$f":"'COM S curve-connect'!AX114","v":0},{"$f":"'COM S curve-connect'!AY114","v":0},{"$f":"'COM S curve-connect'!AZ114","v":0},{"$f":"'COM S curve-connect'!BA114","v":0},{"$f":"'COM S curve-connect'!BB114","v":0},{"$f":"'COM S curve-connect'!BC114","v":0},{"$f":"'COM S curve-connect'!BD114","v":0},{"$f":"'COM S curve-connect'!BE114","v":0},{"$f":"'COM S curve-connect'!BF114","v":0},{"$f":"'COM S curve-connect'!BG114","v":0},{"$f":"'COM S curve-connect'!BH114","v":0},{"$f":"'COM S curve-connect'!BI114","v":0},{"$f":"'COM S curve-connect'!BJ114","v":0},{"$f":"'COM S curve-connect'!BK114","v":0},{"$f":"'COM S curve-connect'!BL114","v":0},{"$f":"'COM S curve-connect'!BM114","v":0},{"$f":"'COM S curve-connect'!BN114","v":0},{"$f":"'COM S curve-connect'!BO114","v":0},{"$f":"'COM S curve-connect'!BP114","v":0},{"$f":"'COM S curve-connect'!BQ114","v":0},{"$f":"'COM S curve-connect'!BR114","v":0},{"$f":"'COM S curve-connect'!BS114","v":0},{"$f":"'COM S curve-connect'!BT114","v":0},{"$f":"'COM S curve-connect'!BU114","v":0},{"$f":"'COM S curve-connect'!BV114","v":0},{"$f":"'COM S curve-connect'!BW114","v":0},{"$f":"'COM S curve-connect'!BX114","v":0},{"$f":"'COM S curve-connect'!BY114","v":0},{"$f":"'COM S curve-connect'!BZ114","v":0},{"$f":"'COM S curve-connect'!CA114","v":0},{"$f":"'COM S curve-connect'!CB114","v":0},{"$f":"'COM S curve-connect'!CC114","v":0},{"$f":"'COM S curve-connect'!CD114","v":0}]
["Cardinia (S)",null,{"$f":"Customers!C238","v":2},{"$f":"Customers!D238","v":4},{"$f":"Customers!E238","v":1},{"$f":"Customers!F238","v":1},{"$f":"Customers!G238","v":0},{"$f":"Customers!H238","v":3},{"$f":"Customers!I238","v":0},{"$f":"Customers!J238","v":2},{"$f":"'COM S curve-connect'!C115","v":1},{"$f":"'COM S curve-connect'!D115","v":0},{"$f":"'COM S curve-connect'!E115","v":0},{"$f":"'COM S curve-connect'!F115","v":0},{"$f":"'COM S curve-connect'!G115","v":0},{"$f":"'COM S curve-connect'!H115","v":0},{"$f":"'COM S curve-connect'!I115","v":0},{"$f":"'COM S curve-connect'!J115","v":0},{"$f":"'COM S curve-connect'!K115","v":0},{"$f":"'COM S curve-connect'!L115","v":0},{"$f":"'COM S curve-connect'!M115","v":0},{"$f":"'COM S curve-connect'!N115","v":0},{"$f":"'COM S curve-connect'!O115","v":0},{"$f":"'COM S curve-connect'!P115","v":0},{"$f":"'COM S curve-connect'!Q115","v":0},{"$f":"'COM S curve-connect'!R115","v":0},{"$f":"'COM S curve-connect'!S115","v":0},{"$f":"'COM S curve-connect'!T115","v":0},{"$f":"'COM S curve-connect'!U115","v":0},{"$f":"'COM S curve-connect'!V115","v":0},{"$f":"'COM S curve-connect'!W115","v":0},{"$f":"'COM S curve-connect'!X115","v":0},{"$f":"'COM S curve-connect'!Y115","v":0},{"$f":"'COM S curve-connect'!Z115","v":0},{"$f":"'COM S curve-connect'!AA115","v":0},{"$f":"'COM S curve-connect'!AB115","v":0},{"$f":"'COM S curve-connect'!AC115","v":0},{"$f":"'COM S curve-connect'!AD115","v":0},{"$f":"'COM S curve-connect'!AE115","v":0},{"$f":"'COM S curve-connect'!AF115","v":0},{"$f":"'COM S curve-connect'!AG115","v":0},{"$f":"'COM S curve-connect'!AH115","v":0},{"$f":"'COM S curve-connect'!AI115","v":0},{"$f":"'COM S curve-connect'!AJ115","v":0},{"$f":"'COM S curve-connect'!AK115","v":0},{"$f":"'COM S curve-connect'!AL115","v":0},{"$f":"'COM S curve-connect'!AM115","v":0},{"$f":"'COM S curve-connect'!AN115","v":0},{"$f":"'COM S curve-connect'!AO115","v":0},{"$f":"'COM S curve-connect'!AP115","v":0},{"$f":"'COM S curve-connect'!AQ115","v":0},{"$f":"'COM S curve-connect'!AR115","v":0},{"$f":"'COM S curve-connect'!AS115","v":0},{"$f":"'COM S curve-connect'!AT115","v":0},{"$f":"'COM S curve-connect'!AU115","v":0},{"$f":"'COM S curve-connect'!AV115","v":0},{"$f":"'COM S curve-connect'!AW115","v":0},{"$f":"'COM S curve-connect'!AX115","v":0},{"$f":"'COM S curve-connect'!AY115","v":0},{"$f":"'COM S curve-connect'!AZ115","v":0},{"$f":"'COM S curve-connect'!BA115","v":0},{"$f":"'COM S curve-connect'!BB115","v":0},{"$f":"'COM S curve-connect'!BC115","v":0},{"$f":"'COM S curve-connect'!BD115","v":0},{"$f":"'COM S curve-connect'!BE115","v":0},{"$f":"'COM S curve-connect'!BF115","v":0},{"$f":"'COM S curve-connect'!BG115","v":0},{"$f":"'COM S curve-connect'!BH115","v":0},{"$f":"'COM S curve-connect'!BI115","v":0},{"$f":"'COM S curve-connect'!BJ115","v":0},{"$f":"'COM S curve-connect'!BK115","v":0},{"$f":"'COM S curve-connect'!BL115","v":0},{"$f":"'COM S curve-connect'!BM115","v":0},{"$f":"'COM S curve-connect'!BN115","v":0},{"$f":"'COM S curve-connect'!BO115","v":0},{"$f":"'COM S curve-connect'!BP115","v":0},{"$f":"'COM S curve-connect'!BQ115","v":0},{"$f":"'COM S curve-connect'!BR115","v":0},{"$f":"'COM S curve-connect'!BS115","v":0},{"$f":"'COM S curve-connect'!BT115","v":0},{"$f":"'COM S curve-connect'!BU115","v":0},{"$f":"'COM S curve-connect'!BV115","v":0},{"$f":"'COM S curve-connect'!BW115","v":0},{"$f":"'COM S curve-connect'!BX115","v":0},{"$f":"'COM S curve-connect'!BY115","v":0},{"$f":"'COM S curve-connect'!BZ115","v":0},{"$f":"'COM S curve-connect'!CA115","v":0},{"$f":"'COM S curve-connect'!CB115","v":0},{"$f":"'COM S curve-connect'!CC115","v":0},{"$f":"'COM S curve-connect'!CD115","v":0}]
["Casey (C)",null,{"$f":"Customers!C239","v":5},{"$f":"Customers!D239","v":5},{"$f":"Customers!E239","v":2},{"$f":"Customers!F239","v":2},{"$f":"Customers!G239","v":7},{"$f":"Customers!H239","v":3},{"$f":"Customers!I239","v":11},{"$f":"Customers!J239","v":3},{"$f":"'COM S curve-connect'!C116","v":2},{"$f":"'COM S curve-connect'!D116","v":1},{"$f":"'COM S curve-connect'!E116","v":0},{"$f":"'COM S curve-connect'!F116","v":0},{"$f":"'COM S curve-connect'!G116","v":0},{"$f":"'COM S curve-connect'!H116","v":0},{"$f":"'COM S curve-connect'!I116","v":0},{"$f":"'COM S curve-connect'!J116","v":0},{"$f":"'COM S curve-connect'!K116","v":0},{"$f":"'COM S curve-connect'!L116","v":0},{"$f":"'COM S curve-connect'!M116","v":0},{"$f":"'COM S curve-connect'!N116","v":0},{"$f":"'COM S curve-connect'!O116","v":0},{"$f":"'COM S curve-connect'!P116","v":0},{"$f":"'COM S curve-connect'!Q116","v":0},{"$f":"'COM S curve-connect'!R116","v":0},{"$f":"'COM S curve-connect'!S116","v":0},{"$f":"'COM S curve-connect'!T116","v":0},{"$f":"'COM S curve-connect'!U116","v":0},{"$f":"'COM S curve-connect'!V116","v":0},{"$f":"'COM S curve-connect'!W116","v":0},{"$f":"'COM S curve-connect'!X116","v":0},{"$f":"'COM S curve-connect'!Y116","v":0},{"$f":"'COM S curve-connect'!Z116","v":0},{"$f":"'COM S curve-connect'!AA116","v":0},{"$f":"'COM S curve-connect'!AB116","v":0},{"$f":"'COM S curve-connect'!AC116","v":0},{"$f":"'COM S curve-connect'!AD116","v":0},{"$f":"'COM S curve-connect'!AE116","v":0},{"$f":"'COM S curve-connect'!AF116","v":0},{"$f":"'COM S curve-connect'!AG116","v":0},{"$f":"'COM S curve-connect'!AH116","v":0},{"$f":"'COM S curve-connect'!AI116","v":0},{"$f":"'COM S curve-connect'!AJ116","v":0},{"$f":"'COM S curve-connect'!AK116","v":0},{"$f":"'COM S curve-connect'!AL116","v":0},{"$f":"'COM S curve-connect'!AM116","v":0},{"$f":"'COM S curve-connect'!AN116","v":0},{"$f":"'COM S curve-connect'!AO116","v":0},{"$f":"'COM S curve-connect'!AP116","v":0},{"$f":"'COM S curve-connect'!AQ116","v":0},{"$f":"'COM S curve-connect'!AR116","v":0},{"$f":"'COM S curve-connect'!AS116","v":0},{"$f":"'COM S curve-connect'!AT116","v":0},{"$f":"'COM S curve-connect'!AU116","v":0},{"$f":"'COM S curve-connect'!AV116","v":0},{"$f":"'COM S curve-connect'!AW116","v":0},{"$f":"'COM S curve-connect'!AX116","v":0},{"$f":"'COM S curve-connect'!AY116","v":0},{"$f":"'COM S curve-connect'!AZ116","v":0},{"$f":"'COM S curve-connect'!BA116","v":0},{"$f":"'COM S curve-connect'!BB116","v":0},{"$f":"'COM S curve-connect'!BC116","v":0},{"$f":"'COM S curve-connect'!BD116","v":0},{"$f":"'COM S curve-connect'!BE116","v":0},{"$f":"'COM S curve-connect'!BF116","v":0},{"$f":"'COM S curve-connect'!BG116","v":0},{"$f":"'COM S curve-connect'!BH116","v":0},{"$f":"'COM S curve-connect'!BI116","v":0},{"$f":"'COM S curve-connect'!BJ116","v":0},{"$f":"'COM S curve-connect'!BK116","v":0},{"$f":"'COM S curve-connect'!BL116","v":0},{"$f":"'COM S curve-connect'!BM116","v":0},{"$f":"'COM S curve-connect'!BN116","v":0},{"$f":"'COM S curve-connect'!BO116","v":0},{"$f":"'COM S curve-connect'!BP116","v":0},{"$f":"'COM S curve-connect'!BQ116","v":0},{"$f":"'COM S curve-connect'!BR116","v":0},{"$f":"'COM S curve-connect'!BS116","v":0},{"$f":"'COM S curve-connect'!BT116","v":0},{"$f":"'COM S curve-connect'!BU116","v":0},{"$f":"'COM S curve-connect'!BV116","v":0},{"$f":"'COM S curve-connect'!BW116","v":0},{"$f":"'COM S curve-connect'!BX116","v":0},{"$f":"'COM S curve-connect'!BY116","v":0},{"$f":"'COM S curve-connect'!BZ116","v":0},{"$f":"'COM S curve-connect'!CA116","v":0},{"$f":"'COM S curve-connect'!CB116","v":0},{"$f":"'COM S curve-connect'!CC116","v":0},{"$f":"'COM S curve-connect'!CD116","v":0}]
["Frankston (C)",null,{"$f":"Customers!C240","v":1},{"$f":"Customers!D240","v":0},{"$f":"Customers!E240","v":0},{"$f":"Customers!F240","v":0},{"$f":"Customers!G240","v":0},{"$f":"Customers!H240","v":0},{"$f":"Customers!I240","v":0},{"$f":"Customers!J240","v":0},{"$f":"'COM S curve-connect'!C117","v":0},{"$f":"'COM S curve-connect'!D117","v":0},{"$f":"'COM S curve-connect'!E117","v":0},{"$f":"'COM S curve-connect'!F117","v":0},{"$f":"'COM S curve-connect'!G117","v":0},{"$f":"'COM S curve-connect'!H117","v":0},{"$f":"'COM S curve-connect'!I117","v":0},{"$f":"'COM S curve-connect'!J117","v":0},{"$f":"'COM S curve-connect'!K117","v":0},{"$f":"'COM S curve-connect'!L117","v":0},{"$f":"'COM S curve-connect'!M117","v":0},{"$f":"'COM S curve-connect'!N117","v":0},{"$f":"'COM S curve-connect'!O117","v":0},{"$f":"'COM S curve-connect'!P117","v":0},{"$f":"'COM S curve-connect'!Q117","v":0},{"$f":"'COM S curve-connect'!R117","v":0},{"$f":"'COM S curve-connect'!S117","v":0},{"$f":"'COM S curve-connect'!T117","v":0},{"$f":"'COM S curve-connect'!U117","v":0},{"$f":"'COM S curve-connect'!V117","v":0},{"$f":"'COM S curve-connect'!W117","v":0},{"$f":"'COM S curve-connect'!X117","v":0},{"$f":"'COM S curve-connect'!Y117","v":0},{"$f":"'COM S curve-connect'!Z117","v":0},{"$f":"'COM S curve-connect'!AA117","v":0},{"$f":"'COM S curve-connect'!AB117","v":0},{"$f":"'COM S curve-connect'!AC117","v":0},{"$f":"'COM S curve-connect'!AD117","v":0},{"$f":"'COM S curve-connect'!AE117","v":0},{"$f":"'COM S curve-connect'!AF117","v":0},{"$f":"'COM S curve-connect'!AG117","v":0},{"$f":"'COM S curve-connect'!AH117","v":0},{"$f":"'COM S curve-connect'!AI117","v":0},{"$f":"'COM S curve-connect'!AJ117","v":0},{"$f":"'COM S curve-connect'!AK117","v":0},{"$f":"'COM S curve-connect'!AL117","v":0},{"$f":"'COM S curve-connect'!AM117","v":0},{"$f":"'COM S curve-connect'!AN117","v":0},{"$f":"'COM S curve-connect'!AO117","v":0},{"$f":"'COM S curve-connect'!AP117","v":0},{"$f":"'COM S curve-connect'!AQ117","v":0},{"$f":"'COM S curve-connect'!AR117","v":0},{"$f":"'COM S curve-connect'!AS117","v":0},{"$f":"'COM S curve-connect'!AT117","v":0},{"$f":"'COM S curve-connect'!AU117","v":0},{"$f":"'COM S curve-connect'!AV117","v":0},{"$f":"'COM S curve-connect'!AW117","v":0},{"$f":"'COM S curve-connect'!AX117","v":0},{"$f":"'COM S curve-connect'!AY117","v":0},{"$f":"'COM S curve-connect'!AZ117","v":0},{"$f":"'COM S curve-connect'!BA117","v":0},{"$f":"'COM S curve-connect'!BB117","v":0},{"$f":"'COM S curve-connect'!BC117","v":0},{"$f":"'COM S curve-connect'!BD117","v":0},{"$f":"'COM S curve-connect'!BE117","v":0},{"$f":"'COM S curve-connect'!BF117","v":0},{"$f":"'COM S curve-connect'!BG117","v":0},{"$f":"'COM S curve-connect'!BH117","v":0},{"$f":"'COM S curve-connect'!BI117","v":0},{"$f":"'COM S curve-connect'!BJ117","v":0},{"$f":"'COM S curve-connect'!BK117","v":0},{"$f":"'COM S curve-connect'!BL117","v":0},{"$f":"'COM S curve-connect'!BM117","v":0},{"$f":"'COM S curve-connect'!BN117","v":0},{"$f":"'COM S curve-connect'!BO117","v":0},{"$f":"'COM S curve-connect'!BP117","v":0},{"$f":"'COM S curve-connect'!BQ117","v":0},{"$f":"'COM S curve-connect'!BR117","v":0},{"$f":"'COM S curve-connect'!BS117","v":0},{"$f":"'COM S curve-connect'!BT117","v":0},{"$f":"'COM S curve-connect'!BU117","v":0},{"$f":"'COM S curve-connect'!BV117","v":0},{"$f":"'COM S curve-connect'!BW117","v":0},{"$f":"'COM S curve-connect'!BX117","v":0},{"$f":"'COM S curve-connect'!BY117","v":0},{"$f":"'COM S curve-connect'!BZ117","v":0},{"$f":"'COM S curve-connect'!CA117","v":0},{"$f":"'COM S curve-connect'!CB117","v":0},{"$f":"'COM S curve-connect'!CC117","v":0},{"$f":"'COM S curve-connect'!CD117","v":0}]
["Glen Eira (C)",null,{"$f":"Customers!C241","v":29},{"$f":"Customers!D241","v":38},{"$f":"Customers!E241","v":41},{"$f":"Customers!F241","v":48},{"$f":"Customers!G241","v":49},{"$f":"Customers!H241","v":45},{"$f":"Customers!I241","v":23},{"$f":"Customers!J241","v":14},{"$f":"'COM S curve-connect'!C118","v":15},{"$f":"'COM S curve-connect'!D118","v":7},{"$f":"'COM S curve-connect'!E118","v":0},{"$f":"'COM S curve-connect'!F118","v":0},{"$f":"'COM S curve-connect'!G118","v":6},{"$f":"'COM S curve-connect'!H118","v":5},{"$f":"'COM S curve-connect'!I118","v":2},{"$f":"'COM S curve-connect'!J118","v":1},{"$f":"'COM S curve-connect'!K118","v":0},{"$f":"'COM S curve-connect'!L118","v":0},{"$f":"'COM S curve-connect'!M118","v":0},{"$f":"'COM S curve-connect'!N118","v":0},{"$f":"'COM S curve-connect'!O118","v":0},{"$f":"'COM S curve-connect'!P118","v":0},{"$f":"'COM S curve-connect'!Q118","v":0},{"$f":"'COM S curve-connect'!R118","v":0},{"$f":"'COM S curve-connect'!S118","v":0},{"$f":"'COM S curve-connect'!T118","v":0},{"$f":"'COM S curve-connect'!U118","v":0},{"$f":"'COM S curve-connect'!V118","v":0},{"$f":"'COM S curve-connect'!W118","v":0},{"$f":"'COM S curve-connect'!X118","v":0},{"$f":"'COM S curve-connect'!Y118","v":0},{"$f":"'COM S curve-connect'!Z118","v":0},{"$f":"'COM S curve-connect'!AA118","v":0},{"$f":"'COM S curve-connect'!AB118","v":0},{"$f":"'COM S curve-connect'!AC118","v":0},{"$f":"'COM S curve-connect'!AD118","v":0},{"$f":"'COM S curve-connect'!AE118","v":0},{"$f":"'COM S curve-connect'!AF118","v":0},{"$f":"'COM S curve-connect'!AG118","v":0},{"$f":"'COM S curve-connect'!AH118","v":0},{"$f":"'COM S curve-connect'!AI118","v":0},{"$f":"'COM S curve-connect'!AJ118","v":0},{"$f":"'COM S curve-connect'!AK118","v":0},{"$f":"'COM S curve-connect'!AL118","v":0},{"$f":"'COM S curve-connect'!AM118","v":0},{"$f":"'COM S curve-connect'!AN118","v":0},{"$f":"'COM S curve-connect'!AO118","v":0},{"$f":"'COM S curve-connect'!AP118","v":0},{"$f":"'COM S curve-connect'!AQ118","v":0},{"$f":"'COM S curve-connect'!AR118","v":0},{"$f":"'COM S curve-connect'!AS118","v":0},{"$f":"'COM S curve-connect'!AT118","v":0},{"$f":"'COM S curve-connect'!AU118","v":0},{"$f":"'COM S curve-connect'!AV118","v":0},{"$f":"'COM S curve-connect'!AW118","v":0},{"$f":"'COM S curve-connect'!AX118","v":0},{"$f":"'COM S curve-connect'!AY118","v":0},{"$f":"'COM S curve-connect'!AZ118","v":0},{"$f":"'COM S curve-connect'!BA118","v":0},{"$f":"'COM S curve-connect'!BB118","v":0},{"$f":"'COM S curve-connect'!BC118","v":0},{"$f":"'COM S curve-connect'!BD118","v":0},{"$f":"'COM S curve-connect'!BE118","v":0},{"$f":"'COM S curve-connect'!BF118","v":0},{"$f":"'COM S curve-connect'!BG118","v":0},{"$f":"'COM S curve-connect'!BH118","v":0},{"$f":"'COM S curve-connect'!BI118","v":0},{"$f":"'COM S curve-connect'!BJ118","v":0},{"$f":"'COM S curve-connect'!BK118","v":0},{"$f":"'COM S curve-connect'!BL118","v":0},{"$f":"'COM S curve-connect'!BM118","v":0},{"$f":"'COM S curve-connect'!BN118","v":0},{"$f":"'COM S curve-connect'!BO118","v":0},{"$f":"'COM S curve-connect'!BP118","v":0},{"$f":"'COM S curve-connect'!BQ118","v":0},{"$f":"'COM S curve-connect'!BR118","v":0},{"$f":"'COM S curve-connect'!BS118","v":0},{"$f":"'COM S curve-connect'!BT118","v":0},{"$f":"'COM S curve-connect'!BU118","v":0},{"$f":"'COM S curve-connect'!BV118","v":0},{"$f":"'COM S curve-connect'!BW118","v":0},{"$f":"'COM S curve-connect'!BX118","v":0},{"$f":"'COM S curve-connect'!BY118","v":0},{"$f":"'COM S curve-connect'!BZ118","v":0},{"$f":"'COM S curve-connect'!CA118","v":0},{"$f":"'COM S curve-connect'!CB118","v":0},{"$f":"'COM S curve-connect'!CC118","v":0},{"$f":"'COM S curve-connect'!CD118","v":0}]
["Greater Dandenong (C)",null,{"$f":"Customers!C242","v":91},{"$f":"Customers!D242","v":35},{"$f":"Customers!E242","v":54},{"$f":"Customers!F242","v":59},{"$f":"Customers!G242","v":39},{"$f":"Customers!H242","v":43},{"$f":"Customers!I242","v":50},{"$f":"Customers!J242","v":37},{"$f":"'COM S curve-connect'!C119","v":24},{"$f":"'COM S curve-connect'!D119","v":15},{"$f":"'COM S curve-connect'!E119","v":0},{"$f":"'COM S curve-connect'!F119","v":0},{"$f":"'COM S curve-connect'!G119","v":14},{"$f":"'COM S curve-connect'!H119","v":12},{"$f":"'COM S curve-connect'!I119","v":1},{"$f":"'COM S curve-connect'!J119","v":1},{"$f":"'COM S curve-connect'!K119","v":0},{"$f":"'COM S curve-connect'!L119","v":0},{"$f":"'COM S curve-connect'!M119","v":0},{"$f":"'COM S curve-connect'!N119","v":0},{"$f":"'COM S curve-connect'!O119","v":0},{"$f":"'COM S curve-connect'!P119","v":0},{"$f":"'COM S curve-connect'!Q119","v":0},{"$f":"'COM S curve-connect'!R119","v":0},{"$f":"'COM S curve-connect'!S119","v":0},{"$f":"'COM S curve-connect'!T119","v":0},{"$f":"'COM S curve-connect'!U119","v":0},{"$f":"'COM S curve-connect'!V119","v":0},{"$f":"'COM S curve-connect'!W119","v":0},{"$f":"'COM S curve-connect'!X119","v":0},{"$f":"'COM S curve-connect'!Y119","v":0},{"$f":"'COM S curve-connect'!Z119","v":0},{"$f":"'COM S curve-connect'!AA119","v":0},{"$f":"'COM S curve-connect'!AB119","v":0},{"$f":"'COM S curve-connect'!AC119","v":0},{"$f":"'COM S curve-connect'!AD119","v":0},{"$f":"'COM S curve-connect'!AE119","v":0},{"$f":"'COM S curve-connect'!AF119","v":0},{"$f":"'COM S curve-connect'!AG119","v":0},{"$f":"'COM S curve-connect'!AH119","v":0},{"$f":"'COM S curve-connect'!AI119","v":0},{"$f":"'COM S curve-connect'!AJ119","v":0},{"$f":"'COM S curve-connect'!AK119","v":0},{"$f":"'COM S curve-connect'!AL119","v":0},{"$f":"'COM S curve-connect'!AM119","v":0},{"$f":"'COM S curve-connect'!AN119","v":0},{"$f":"'COM S curve-connect'!AO119","v":0},{"$f":"'COM S curve-connect'!AP119","v":0},{"$f":"'COM S curve-connect'!AQ119","v":0},{"$f":"'COM S curve-connect'!AR119","v":0},{"$f":"'COM S curve-connect'!AS119","v":0},{"$f":"'COM S curve-connect'!AT119","v":0},{"$f":"'COM S curve-connect'!AU119","v":0},{"$f":"'COM S curve-connect'!AV119","v":0},{"$f":"'COM S curve-connect'!AW119","v":0},{"$f":"'COM S curve-connect'!AX119","v":0},{"$f":"'COM S curve-connect'!AY119","v":0},{"$f":"'COM S curve-connect'!AZ119","v":0},{"$f":"'COM S curve-connect'!BA119","v":0},{"$f":"'COM S curve-connect'!BB119","v":0},{"$f":"'COM S curve-connect'!BC119","v":0},{"$f":"'COM S curve-connect'!BD119","v":0},{"$f":"'COM S curve-connect'!BE119","v":0},{"$f":"'COM S curve-connect'!BF119","v":0},{"$f":"'COM S curve-connect'!BG119","v":0},{"$f":"'COM S curve-connect'!BH119","v":0},{"$f":"'COM S curve-connect'!BI119","v":0},{"$f":"'COM S curve-connect'!BJ119","v":0},{"$f":"'COM S curve-connect'!BK119","v":0},{"$f":"'COM S curve-connect'!BL119","v":0},{"$f":"'COM S curve-connect'!BM119","v":0},{"$f":"'COM S curve-connect'!BN119","v":0},{"$f":"'COM S curve-connect'!BO119","v":0},{"$f":"'COM S curve-connect'!BP119","v":0},{"$f":"'COM S curve-connect'!BQ119","v":0},{"$f":"'COM S curve-connect'!BR119","v":0},{"$f":"'COM S curve-connect'!BS119","v":0},{"$f":"'COM S curve-connect'!BT119","v":0},{"$f":"'COM S curve-connect'!BU119","v":0},{"$f":"'COM S curve-connect'!BV119","v":0},{"$f":"'COM S curve-connect'!BW119","v":0},{"$f":"'COM S curve-connect'!BX119","v":0},{"$f":"'COM S curve-connect'!BY119","v":0},{"$f":"'COM S curve-connect'!BZ119","v":0},{"$f":"'COM S curve-connect'!CA119","v":0},{"$f":"'COM S curve-connect'!CB119","v":0},{"$f":"'COM S curve-connect'!CC119","v":0},{"$f":"'COM S curve-connect'!CD119","v":0}]
["Kingston (C)",null,{"$f":"Customers!C243","v":57},{"$f":"Customers!D243","v":36},{"$f":"Customers!E243","v":62},{"$f":"Customers!F243","v":67},{"$f":"Customers!G243","v":42},{"$f":"Customers!H243","v":37},{"$f":"Customers!I243","v":33},{"$f":"Customers!J243","v":31},{"$f":"'COM S curve-connect'!C120","v":22},{"$f":"'COM S curve-connect'!D120","v":11},{"$f":"'COM S curve-connect'!E120","v":0},{"$f":"'COM S curve-connect'!F120","v":0},{"$f":"'COM S curve-connect'!G120","v":11},{"$f":"'COM S curve-connect'!H120","v":9},{"$f":"'COM S curve-connect'!I120","v":1},{"$f":"'COM S curve-connect'!J120","v":1},{"$f":"'COM S curve-connect'!K120","v":0},{"$f":"'COM S curve-connect'!L120","v":0},{"$f":"'COM S curve-connect'!M120","v":0},{"$f":"'COM S curve-connect'!N120","v":0},{"$f":"'COM S curve-connect'!O120","v":0},{"$f":"'COM S curve-connect'!P120","v":0},{"$f":"'COM S curve-connect'!Q120","v":0},{"$f":"'COM S curve-connect'!R120","v":0},{"$f":"'COM S curve-connect'!S120","v":0},{"$f":"'COM S curve-connect'!T120","v":0},{"$f":"'COM S curve-connect'!U120","v":0},{"$f":"'COM S curve-connect'!V120","v":0},{"$f":"'COM S curve-connect'!W120","v":0},{"$f":"'COM S curve-connect'!X120","v":0},{"$f":"'COM S curve-connect'!Y120","v":0},{"$f":"'COM S curve-connect'!Z120","v":0},{"$f":"'COM S curve-connect'!AA120","v":0},{"$f":"'COM S curve-connect'!AB120","v":0},{"$f":"'COM S curve-connect'!AC120","v":0},{"$f":"'COM S curve-connect'!AD120","v":0},{"$f":"'COM S curve-connect'!AE120","v":0},{"$f":"'COM S curve-connect'!AF120","v":0},{"$f":"'COM S curve-connect'!AG120","v":0},{"$f":"'COM S curve-connect'!AH120","v":0},{"$f":"'COM S curve-connect'!AI120","v":0},{"$f":"'COM S curve-connect'!AJ120","v":0},{"$f":"'COM S curve-connect'!AK120","v":0},{"$f":"'COM S curve-connect'!AL120","v":0},{"$f":"'COM S curve-connect'!AM120","v":0},{"$f":"'COM S curve-connect'!AN120","v":0},{"$f":"'COM S curve-connect'!AO120","v":0},{"$f":"'COM S curve-connect'!AP120","v":0},{"$f":"'COM S curve-connect'!AQ120","v":0},{"$f":"'COM S curve-connect'!AR120","v":0},{"$f":"'COM S curve-connect'!AS120","v":0},{"$f":"'COM S curve-connect'!AT120","v":0},{"$f":"'COM S curve-connect'!AU120","v":0},{"$f":"'COM S curve-connect'!AV120","v":0},{"$f":"'COM S curve-connect'!AW120","v":0},{"$f":"'COM S curve-connect'!AX120","v":0},{"$f":"'COM S curve-connect'!AY120","v":0},{"$f":"'COM S curve-connect'!AZ120","v":0},{"$f":"'COM S curve-connect'!BA120","v":0},{"$f":"'COM S curve-connect'!BB120","v":0},{"$f":"'COM S curve-connect'!BC120","v":0},{"$f":"'COM S curve-connect'!BD120","v":0},{"$f":"'COM S curve-connect'!BE120","v":0},{"$f":"'COM S curve-connect'!BF120","v":0},{"$f":"'COM S curve-connect'!BG120","v":0},{"$f":"'COM S curve-connect'!BH120","v":0},{"$f":"'COM S curve-connect'!BI120","v":0},{"$f":"'COM S curve-connect'!BJ120","v":0},{"$f":"'COM S curve-connect'!BK120","v":0},{"$f":"'COM S curve-connect'!BL120","v":0},{"$f":"'COM S curve-connect'!BM120","v":0},{"$f":"'COM S curve-connect'!BN120","v":0},{"$f":"'COM S curve-connect'!BO120","v":0},{"$f":"'COM S curve-connect'!BP120","v":0},{"$f":"'COM S curve-connect'!BQ120","v":0},{"$f":"'COM S curve-connect'!BR120","v":0},{"$f":"'COM S curve-connect'!BS120","v":0},{"$f":"'COM S curve-connect'!BT120","v":0},{"$f":"'COM S curve-connect'!BU120","v":0},{"$f":"'COM S curve-connect'!BV120","v":0},{"$f":"'COM S curve-connect'!BW120","v":0},{"$f":"'COM S curve-connect'!BX120","v":0},{"$f":"'COM S curve-connect'!BY120","v":0},{"$f":"'COM S curve-connect'!BZ120","v":0},{"$f":"'COM S curve-connect'!CA120","v":0},{"$f":"'COM S curve-connect'!CB120","v":0},{"$f":"'COM S curve-connect'!CC120","v":0},{"$f":"'COM S curve-connect'!CD120","v":0}]
["Knox (C)",null,{"$f":"Customers!C244","v":56},{"$f":"Customers!D244","v":27},{"$f":"Customers!E244","v":40},{"$f":"Customers!F244","v":34},{"$f":"Customers!G244","v":25},{"$f":"Customers!H244","v":33},{"$f":"Customers!I244","v":22},{"$f":"Customers!J244","v":20},{"$f":"'COM S curve-connect'!C121","v":20},{"$f":"'COM S curve-connect'!D121","v":10},{"$f":"'COM S curve-connect'!E121","v":0},{"$f":"'COM S curve-connect'!F121","v":0},{"$f":"'COM S curve-connect'!G121","v":10},{"$f":"'COM S curve-connect'!H121","v":8},{"$f":"'COM S curve-connect'!I121","v":1},{"$f":"'COM S curve-connect'!J121","v":1},{"$f":"'COM S curve-connect'!K121","v":0},{"$f":"'COM S curve-connect'!L121","v":0},{"$f":"'COM S curve-connect'!M121","v":0},{"$f":"'COM S curve-connect'!N121","v":0},{"$f":"'COM S curve-connect'!O121","v":0},{"$f":"'COM S curve-connect'!P121","v":0},{"$f":"'COM S curve-connect'!Q121","v":0},{"$f":"'COM S curve-connect'!R121","v":0},{"$f":"'COM S curve-connect'!S121","v":0},{"$f":"'COM S curve-connect'!T121","v":0},{"$f":"'COM S curve-connect'!U121","v":0},{"$f":"'COM S curve-connect'!V121","v":0},{"$f":"'COM S curve-connect'!W121","v":0},{"$f":"'COM S curve-connect'!X121","v":0},{"$f":"'COM S curve-connect'!Y121","v":0},{"$f":"'COM S curve-connect'!Z121","v":0},{"$f":"'COM S curve-connect'!AA121","v":0},{"$f":"'COM S curve-connect'!AB121","v":0},{"$f":"'COM S curve-connect'!AC121","v":0},{"$f":"'COM S curve-connect'!AD121","v":0},{"$f":"'COM S curve-connect'!AE121","v":0},{"$f":"'COM S curve-connect'!AF121","v":0},{"$f":"'COM S curve-connect'!AG121","v":0},{"$f":"'COM S curve-connect'!AH121","v":0},{"$f":"'COM S curve-connect'!AI121","v":0},{"$f":"'COM S curve-connect'!AJ121","v":0},{"$f":"'COM S curve-connect'!AK121","v":0},{"$f":"'COM S curve-connect'!AL121","v":0},{"$f":"'COM S curve-connect'!AM121","v":0},{"$f":"'COM S curve-connect'!AN121","v":0},{"$f":"'COM S curve-connect'!AO121","v":0},{"$f":"'COM S curve-connect'!AP121","v":0},{"$f":"'COM S curve-connect'!AQ121","v":0},{"$f":"'COM S curve-connect'!AR121","v":0},{"$f":"'COM S curve-connect'!AS121","v":0},{"$f":"'COM S curve-connect'!AT121","v":0},{"$f":"'COM S curve-connect'!AU121","v":0},{"$f":"'COM S curve-connect'!AV121","v":0},{"$f":"'COM S curve-connect'!AW121","v":0},{"$f":"'COM S curve-connect'!AX121","v":0},{"$f":"'COM S curve-connect'!AY121","v":0},{"$f":"'COM S curve-connect'!AZ121","v":0},{"$f":"'COM S curve-connect'!BA121","v":0},{"$f":"'COM S curve-connect'!BB121","v":0},{"$f":"'COM S curve-connect'!BC121","v":0},{"$f":"'COM S curve-connect'!BD121","v":0},{"$f":"'COM S curve-connect'!BE121","v":0},{"$f":"'COM S curve-connect'!BF121","v":0},{"$f":"'COM S curve-connect'!BG121","v":0},{"$f":"'COM S curve-connect'!BH121","v":0},{"$f":"'COM S curve-connect'!BI121","v":0},{"$f":"'COM S curve-connect'!BJ121","v":0},{"$f":"'COM S curve-connect'!BK121","v":0},{"$f":"'COM S curve-connect'!BL121","v":0},{"$f":"'COM S curve-connect'!BM121","v":0},{"$f":"'COM S curve-connect'!BN121","v":0},{"$f":"'COM S curve-connect'!BO121","v":0},{"$f":"'COM S curve-connect'!BP121","v":0},{"$f":"'COM S curve-connect'!BQ121","v":0},{"$f":"'COM S curve-connect'!BR121","v":0},{"$f":"'COM S curve-connect'!BS121","v":0},{"$f":"'COM S curve-connect'!BT121","v":0},{"$f":"'COM S curve-connect'!BU121","v":0},{"$f":"'COM S curve-connect'!BV121","v":0},{"$f":"'COM S curve-connect'!BW121","v":0},{"$f":"'COM S curve-connect'!BX121","v":0},{"$f":"'COM S curve-connect'!BY121","v":0},{"$f":"'COM S curve-connect'!BZ121","v":0},{"$f":"'COM S curve-connect'!CA121","v":0},{"$f":"'COM S curve-connect'!CB121","v":0},{"$f":"'COM S curve-connect'!CC121","v":0},{"$f":"'COM S curve-connect'!CD121","v":0}]
["Manningham (C)",null,{"$f":"Customers!C245","v":6},{"$f":"Customers!D245","v":15},{"$f":"Customers!E245","v":18},{"$f":"Customers!F245","v":17},{"$f":"Customers!G245","v":25},{"$f":"Customers!H245","v":12},{"$f":"Customers!I245","v":11},{"$f":"Customers!J245","v":9},{"$f":"'COM S curve-connect'!C122","v":10},{"$f":"'COM S curve-connect'!D122","v":5},{"$f":"'COM S curve-connect'!E122","v":0},{"$f":"'COM S curve-connect'!F122","v":0},{"$f":"'COM S curve-connect'!G122","v":5},{"$f":"'COM S curve-connect'!H122","v":4},{"$f":"'COM S curve-connect'!I122","v":0},{"$f":"'COM S curve-connect'!J122","v":0},{"$f":"'COM S curve-connect'!K122","v":0},{"$f":"'COM S curve-connect'!L122","v":0},{"$f":"'COM S curve-connect'!M122","v":0},{"$f":"'COM S curve-connect'!N122","v":0},{"$f":"'COM S curve-connect'!O122","v":0},{"$f":"'COM S curve-connect'!P122","v":0},{"$f":"'COM S curve-connect'!Q122","v":0},{"$f":"'COM S curve-connect'!R122","v":0},{"$f":"'COM S curve-connect'!S122","v":0},{"$f":"'COM S curve-connect'!T122","v":0},{"$f":"'COM S curve-connect'!U122","v":0},{"$f":"'COM S curve-connect'!V122","v":0},{"$f":"'COM S curve-connect'!W122","v":0},{"$f":"'COM S curve-connect'!X122","v":0},{"$f":"'COM S curve-connect'!Y122","v":0},{"$f":"'COM S curve-connect'!Z122","v":0},{"$f":"'COM S curve-connect'!AA122","v":0},{"$f":"'COM S curve-connect'!AB122","v":0},{"$f":"'COM S curve-connect'!AC122","v":0},{"$f":"'COM S curve-connect'!AD122","v":0},{"$f":"'COM S curve-connect'!AE122","v":0},{"$f":"'COM S curve-connect'!AF122","v":0},{"$f":"'COM S curve-connect'!AG122","v":0},{"$f":"'COM S curve-connect'!AH122","v":0},{"$f":"'COM S curve-connect'!AI122","v":0},{"$f":"'COM S curve-connect'!AJ122","v":0},{"$f":"'COM S curve-connect'!AK122","v":0},{"$f":"'COM S curve-connect'!AL122","v":0},{"$f":"'COM S curve-connect'!AM122","v":0},{"$f":"'COM S curve-connect'!AN122","v":0},{"$f":"'COM S curve-connect'!AO122","v":0},{"$f":"'COM S curve-connect'!AP122","v":0},{"$f":"'COM S curve-connect'!AQ122","v":0},{"$f":"'COM S curve-connect'!AR122","v":0},{"$f":"'COM S curve-connect'!AS122","v":0},{"$f":"'COM S curve-connect'!AT122","v":0},{"$f":"'COM S curve-connect'!AU122","v":0},{"$f":"'COM S curve-connect'!AV122","v":0},{"$f":"'COM S curve-connect'!AW122","v":0},{"$f":"'COM S curve-connect'!AX122","v":0},{"$f":"'COM S curve-connect'!AY122","v":0},{"$f":"'COM S curve-connect'!AZ122","v":0},{"$f":"'COM S curve-connect'!BA122","v":0},{"$f":"'COM S curve-connect'!BB122","v":0},{"$f":"'COM S curve-connect'!BC122","v":0},{"$f":"'COM S curve-connect'!BD122","v":0},{"$f":"'COM S curve-connect'!BE122","v":0},{"$f":"'COM S curve-connect'!BF122","v":0},{"$f":"'COM S curve-connect'!BG122","v":0},{"$f":"'COM S curve-connect'!BH122","v":0},{"$f":"'COM S curve-connect'!BI122","v":0},{"$f":"'COM S curve-connect'!BJ122","v":0},{"$f":"'COM S curve-connect'!BK122","v":0},{"$f":"'COM S curve-connect'!BL122","v":0},{"$f":"'COM S curve-connect'!BM122","v":0},{"$f":"'COM S curve-connect'!BN122","v":0},{"$f":"'COM S curve-connect'!BO122","v":0},{"$f":"'COM S curve-connect'!BP122","v":0},{"$f":"'COM S curve-connect'!BQ122","v":0},{"$f":"'COM S curve-connect'!BR122","v":0},{"$f":"'COM S curve-connect'!BS122","v":0},{"$f":"'COM S curve-connect'!BT122","v":0},{"$f":"'COM S curve-connect'!BU122","v":0},{"$f":"'COM S curve-connect'!BV122","v":0},{"$f":"'COM S curve-connect'!BW122","v":0},{"$f":"'COM S curve-connect'!BX122","v":0},{"$f":"'COM S curve-connect'!BY122","v":0},{"$f":"'COM S curve-connect'!BZ122","v":0},{"$f":"'COM S curve-connect'!CA122","v":0},{"$f":"'COM S curve-connect'!CB122","v":0},{"$f":"'COM S curve-connect'!CC122","v":0},{"$f":"'COM S curve-connect'!CD122","v":0}]
["Maroondah (C)",null,{"$f":"Customers!C246","v":14},{"$f":"Customers!D246","v":11},{"$f":"Customers!E246","v":18},{"$f":"Customers!F246","v":20},{"$f":"Customers!G246","v":23},{"$f":"Customers!H246","v":13},{"$f":"Customers!I246","v":18},{"$f":"Customers!J246","v":13},{"$f":"'COM S curve-connect'!C123","v":10},{"$f":"'COM S curve-connect'!D123","v":5},{"$f":"'COM S curve-connect'!E123","v":0},{"$f":"'COM S curve-connect'!F123","v":0},{"$f":"'COM S curve-connect'!G123","v":5},{"$f":"'COM S curve-connect'!H123","v":4},{"$f":"'COM S curve-connect'!I123","v":0},{"$f":"'COM S curve-connect'!J123","v":0},{"$f":"'COM S curve-connect'!K123","v":0},{"$f":"'COM S curve-connect'!L123","v":0},{"$f":"'COM S curve-connect'!M123","v":0},{"$f":"'COM S curve-connect'!N123","v":0},{"$f":"'COM S curve-connect'!O123","v":0},{"$f":"'COM S curve-connect'!P123","v":0},{"$f":"'COM S curve-connect'!Q123","v":0},{"$f":"'COM S curve-connect'!R123","v":0},{"$f":"'COM S curve-connect'!S123","v":0},{"$f":"'COM S curve-connect'!T123","v":0},{"$f":"'COM S curve-connect'!U123","v":0},{"$f":"'COM S curve-connect'!V123","v":0},{"$f":"'COM S curve-connect'!W123","v":0},{"$f":"'COM S curve-connect'!X123","v":0},{"$f":"'COM S curve-connect'!Y123","v":0},{"$f":"'COM S curve-connect'!Z123","v":0},{"$f":"'COM S curve-connect'!AA123","v":0},{"$f":"'COM S curve-connect'!AB123","v":0},{"$f":"'COM S curve-connect'!AC123","v":0},{"$f":"'COM S curve-connect'!AD123","v":0},{"$f":"'COM S curve-connect'!AE123","v":0},{"$f":"'COM S curve-connect'!AF123","v":0},{"$f":"'COM S curve-connect'!AG123","v":0},{"$f":"'COM S curve-connect'!AH123","v":0},{"$f":"'COM S curve-connect'!AI123","v":0},{"$f":"'COM S curve-connect'!AJ123","v":0},{"$f":"'COM S curve-connect'!AK123","v":0},{"$f":"'COM S curve-connect'!AL123","v":0},{"$f":"'COM S curve-connect'!AM123","v":0},{"$f":"'COM S curve-connect'!AN123","v":0},{"$f":"'COM S curve-connect'!AO123","v":0},{"$f":"'COM S curve-connect'!AP123","v":0},{"$f":"'COM S curve-connect'!AQ123","v":0},{"$f":"'COM S curve-connect'!AR123","v":0},{"$f":"'COM S curve-connect'!AS123","v":0},{"$f":"'COM S curve-connect'!AT123","v":0},{"$f":"'COM S curve-connect'!AU123","v":0},{"$f":"'COM S curve-connect'!AV123","v":0},{"$f":"'COM S curve-connect'!AW123","v":0},{"$f":"'COM S curve-connect'!AX123","v":0},{"$f":"'COM S curve-connect'!AY123","v":0},{"$f":"'COM S curve-connect'!AZ123","v":0},{"$f":"'COM S curve-connect'!BA123","v":0},{"$f":"'COM S curve-connect'!BB123","v":0},{"$f":"'COM S curve-connect'!BC123","v":0},{"$f":"'COM S curve-connect'!BD123","v":0},{"$f":"'COM S curve-connect'!BE123","v":0},{"$f":"'COM S curve-connect'!BF123","v":0},{"$f":"'COM S curve-connect'!BG123","v":0},{"$f":"'COM S curve-connect'!BH123","v":0},{"$f":"'COM S curve-connect'!BI123","v":0},{"$f":"'COM S curve-connect'!BJ123","v":0},{"$f":"'COM S curve-connect'!BK123","v":0},{"$f":"'COM S curve-connect'!BL123","v":0},{"$f":"'COM S curve-connect'!BM123","v":0},{"$f":"'COM S curve-connect'!BN123","v":0},{"$f":"'COM S curve-connect'!BO123","v":0},{"$f":"'COM S curve-connect'!BP123","v":0},{"$f":"'COM S curve-connect'!BQ123","v":0},{"$f":"'COM S curve-connect'!BR123","v":0},{"$f":"'COM S curve-connect'!BS123","v":0},{"$f":"'COM S curve-connect'!BT123","v":0},{"$f":"'COM S curve-connect'!BU123","v":0},{"$f":"'COM S curve-connect'!BV123","v":0},{"$f":"'COM S curve-connect'!BW123","v":0},{"$f":"'COM S curve-connect'!BX123","v":0},{"$f":"'COM S curve-connect'!BY123","v":0},{"$f":"'COM S curve-connect'!BZ123","v":0},{"$f":"'COM S curve-connect'!CA123","v":0},{"$f":"'COM S curve-connect'!CB123","v":0},{"$f":"'COM S curve-connect'!CC123","v":0},{"$f":"'COM S curve-connect'!CD123","v":0}]
["Melbourne (C)",null,{"$f":"Customers!C247","v":21},{"$f":"Customers!D247","v":8},{"$f":"Customers!E247","v":5},{"$f":"Customers!F247","v":10},{"$f":"Customers!G247","v":15},{"$f":"Customers!H247","v":11},{"$f":"Customers!I247","v":11},{"$f":"Customers!J247","v":7},{"$f":"'COM S curve-connect'!C124","v":3},{"$f":"'COM S curve-connect'!D124","v":3},{"$f":"'COM S curve-connect'!E124","v":0},{"$f":"'COM S curve-connect'!F124","v":0},{"$f":"'COM S curve-connect'!G124","v":3},{"$f":"'COM S curve-connect'!H124","v":3},{"$f":"'COM S curve-connect'!I124","v":0},{"$f":"'COM S curve-connect'!J124","v":0},{"$f":"'COM S curve-connect'!K124","v":0},{"$f":"'COM S curve-connect'!L124","v":0},{"$f":"'COM S curve-connect'!M124","v":0},{"$f":"'COM S curve-connect'!N124","v":0},{"$f":"'COM S curve-connect'!O124","v":0},{"$f":"'COM S curve-connect'!P124","v":0},{"$f":"'COM S curve-connect'!Q124","v":0},{"$f":"'COM S curve-connect'!R124","v":0},{"$f":"'COM S curve-connect'!S124","v":0},{"$f":"'COM S curve-connect'!T124","v":0},{"$f":"'COM S curve-connect'!U124","v":0},{"$f":"'COM S curve-connect'!V124","v":0},{"$f":"'COM S curve-connect'!W124","v":0},{"$f":"'COM S curve-connect'!X124","v":0},{"$f":"'COM S curve-connect'!Y124","v":0},{"$f":"'COM S curve-connect'!Z124","v":0},{"$f":"'COM S curve-connect'!AA124","v":0},{"$f":"'COM S curve-connect'!AB124","v":0},{"$f":"'COM S curve-connect'!AC124","v":0},{"$f":"'COM S curve-connect'!AD124","v":0},{"$f":"'COM S curve-connect'!AE124","v":0},{"$f":"'COM S curve-connect'!AF124","v":0},{"$f":"'COM S curve-connect'!AG124","v":0},{"$f":"'COM S curve-connect'!AH124","v":0},{"$f":"'COM S curve-connect'!AI124","v":0},{"$f":"'COM S curve-connect'!AJ124","v":0},{"$f":"'COM S curve-connect'!AK124","v":0},{"$f":"'COM S curve-connect'!AL124","v":0},{"$f":"'COM S curve-connect'!AM124","v":0},{"$f":"'COM S curve-connect'!AN124","v":0},{"$f":"'COM S curve-connect'!AO124","v":0},{"$f":"'COM S curve-connect'!AP124","v":0},{"$f":"'COM S curve-connect'!AQ124","v":0},{"$f":"'COM S curve-connect'!AR124","v":0},{"$f":"'COM S curve-connect'!AS124","v":0},{"$f":"'COM S curve-connect'!AT124","v":0},{"$f":"'COM S curve-connect'!AU124","v":0},{"$f":"'COM S curve-connect'!AV124","v":0},{"$f":"'COM S curve-connect'!AW124","v":0},{"$f":"'COM S curve-connect'!AX124","v":0},{"$f":"'COM S curve-connect'!AY124","v":0},{"$f":"'COM S curve-connect'!AZ124","v":0},{"$f":"'COM S curve-connect'!BA124","v":0},{"$f":"'COM S curve-connect'!BB124","v":0},{"$f":"'COM S curve-connect'!BC124","v":0},{"$f":"'COM S curve-connect'!BD124","v":0},{"$f":"'COM S curve-connect'!BE124","v":0},{"$f":"'COM S curve-connect'!BF124","v":0},{"$f":"'COM S curve-connect'!BG124","v":0},{"$f":"'COM S curve-connect'!BH124","v":0},{"$f":"'COM S curve-connect'!BI124","v":0},{"$f":"'COM S curve-connect'!BJ124","v":0},{"$f":"'COM S curve-connect'!BK124","v":0},{"$f":"'COM S curve-connect'!BL124","v":0},{"$f":"'COM S curve-connect'!BM124","v":0},{"$f":"'COM S curve-connect'!BN124","v":0},{"$f":"'COM S curve-connect'!BO124","v":0},{"$f":"'COM S curve-connect'!BP124","v":0},{"$f":"'COM S curve-connect'!BQ124","v":0},{"$f":"'COM S curve-connect'!BR124","v":0},{"$f":"'COM S curve-connect'!BS124","v":0},{"$f":"'COM S curve-connect'!BT124","v":0},{"$f":"'COM S curve-connect'!BU124","v":0},{"$f":"'COM S curve-connect'!BV124","v":0},{"$f":"'COM S curve-connect'!BW124","v":0},{"$f":"'COM S curve-connect'!BX124","v":0},{"$f":"'COM S curve-connect'!BY124","v":0},{"$f":"'COM S curve-connect'!BZ124","v":0},{"$f":"'COM S curve-connect'!CA124","v":0},{"$f":"'COM S curve-connect'!CB124","v":0},{"$f":"'COM S curve-connect'!CC124","v":0},{"$f":"'COM S curve-connect'!CD124","v":0}]
["Monash (C)",null,{"$f":"Customers!C248","v":71},{"$f":"Customers!D248","v":32},{"$f":"Customers!E248","v":36},{"$f":"Customers!F248","v":49},{"$f":"Customers!G248","v":52},{"$f":"Customers!H248","v":33},{"$f":"Customers!I248","v":37},{"$f":"Customers!J248","v":34},{"$f":"'COM S curve-connect'!C125","v":24},{"$f":"'COM S curve-connect'!D125","v":13},{"$f":"'COM S curve-connect'!E125","v":0},{"$f":"'COM S curve-connect'!F125","v":0},{"$f":"'COM S curve-connect'!G125","v":13},{"$f":"'COM S curve-connect'!H125","v":11},{"$f":"'COM S curve-connect'!I125","v":1},{"$f":"'COM S curve-connect'!J125","v":1},{"$f":"'COM S curve-connect'!K125","v":0},{"$f":"'COM S curve-connect'!L125","v":0},{"$f":"'COM S curve-connect'!M125","v":0},{"$f":"'COM S curve-connect'!N125","v":0},{"$f":"'COM S curve-connect'!O125","v":0},{"$f":"'COM S curve-connect'!P125","v":0},{"$f":"'COM S curve-connect'!Q125","v":0},{"$f":"'COM S curve-connect'!R125","v":0},{"$f":"'COM S curve-connect'!S125","v":0},{"$f":"'COM S curve-connect'!T125","v":0},{"$f":"'COM S curve-connect'!U125","v":0},{"$f":"'COM S curve-connect'!V125","v":0},{"$f":"'COM S curve-connect'!W125","v":0},{"$f":"'COM S curve-connect'!X125","v":0},{"$f":"'COM S curve-connect'!Y125","v":0},{"$f":"'COM S curve-connect'!Z125","v":0},{"$f":"'COM S curve-connect'!AA125","v":0},{"$f":"'COM S curve-connect'!AB125","v":0},{"$f":"'COM S curve-connect'!AC125","v":0},{"$f":"'COM S curve-connect'!AD125","v":0},{"$f":"'COM S curve-connect'!AE125","v":0},{"$f":"'COM S curve-connect'!AF125","v":0},{"$f":"'COM S curve-connect'!AG125","v":0},{"$f":"'COM S curve-connect'!AH125","v":0},{"$f":"'COM S curve-connect'!AI125","v":0},{"$f":"'COM S curve-connect'!AJ125","v":0},{"$f":"'COM S curve-connect'!AK125","v":0},{"$f":"'COM S curve-connect'!AL125","v":0},{"$f":"'COM S curve-connect'!AM125","v":0},{"$f":"'COM S curve-connect'!AN125","v":0},{"$f":"'COM S curve-connect'!AO125","v":0},{"$f":"'COM S curve-connect'!AP125","v":0},{"$f":"'COM S curve-connect'!AQ125","v":0},{"$f":"'COM S curve-connect'!AR125","v":0},{"$f":"'COM S curve-connect'!AS125","v":0},{"$f":"'COM S curve-connect'!AT125","v":0},{"$f":"'COM S curve-connect'!AU125","v":0},{"$f":"'COM S curve-connect'!AV125","v":0},{"$f":"'COM S curve-connect'!AW125","v":0},{"$f":"'COM S curve-connect'!AX125","v":0},{"$f":"'COM S curve-connect'!AY125","v":0},{"$f":"'COM S curve-connect'!AZ125","v":0},{"$f":"'COM S curve-connect'!BA125","v":0},{"$f":"'COM S curve-connect'!BB125","v":0},{"$f":"'COM S curve-connect'!BC125","v":0},{"$f":"'COM S curve-connect'!BD125","v":0},{"$f":"'COM S curve-connect'!BE125","v":0},{"$f":"'COM S curve-connect'!BF125","v":0},{"$f":"'COM S curve-connect'!BG125","v":0},{"$f":"'COM S curve-connect'!BH125","v":0},{"$f":"'COM S curve-connect'!BI125","v":0},{"$f":"'COM S curve-connect'!BJ125","v":0},{"$f":"'COM S curve-connect'!BK125","v":0},{"$f":"'COM S curve-connect'!BL125","v":0},{"$f":"'COM S curve-connect'!BM125","v":0},{"$f":"'COM S curve-connect'!BN125","v":0},{"$f":"'COM S curve-connect'!BO125","v":0},{"$f":"'COM S curve-connect'!BP125","v":0},{"$f":"'COM S curve-connect'!BQ125","v":0},{"$f":"'COM S curve-connect'!BR125","v":0},{"$f":"'COM S curve-connect'!BS125","v":0},{"$f":"'COM S curve-connect'!BT125","v":0},{"$f":"'COM S curve-connect'!BU125","v":0},{"$f":"'COM S curve-connect'!BV125","v":0},{"$f":"'COM S curve-connect'!BW125","v":0},{"$f":"'COM S curve-connect'!BX125","v":0},{"$f":"'COM S curve-connect'!BY125","v":0},{"$f":"'COM S curve-connect'!BZ125","v":0},{"$f":"'COM S curve-connect'!CA125","v":0},{"$f":"'COM S curve-connect'!CB125","v":0},{"$f":"'COM S curve-connect'!CC125","v":0},{"$f":"'COM S curve-connect'!CD125","v":0}]
["Port Phillip (C)",null,{"$f":"Customers!C249","v":56},{"$f":"Customers!D249","v":51},{"$f":"Customers!E249","v":58},{"$f":"Customers!F249","v":55},{"$f":"Customers!G249","v":66},{"$f":"Customers!H249","v":50},{"$f":"Customers!I249","v":34},{"$f":"Customers!J249","v":27},{"$f":"'COM S curve-connect'!C126","v":29},{"$f":"'COM S curve-connect'!D126","v":19},{"$f":"'COM S curve-connect'!E126","v":0},{"$f":"'COM S curve-connect'!F126","v":0},{"$f":"'COM S curve-connect'!G126","v":18},{"$f":"'COM S curve-connect'!H126","v":15},{"$f":"'COM S curve-connect'!I126","v":2},{"$f":"'COM S curve-connect'!J126","v":2},{"$f":"'COM S curve-connect'!K126","v":0},{"$f":"'COM S curve-connect'!L126","v":0},{"$f":"'COM S curve-connect'!M126","v":0},{"$f":"'COM S curve-connect'!N126","v":0},{"$f":"'COM S curve-connect'!O126","v":0},{"$f":"'COM S curve-connect'!P126","v":0},{"$f":"'COM S curve-connect'!Q126","v":0},{"$f":"'COM S curve-connect'!R126","v":0},{"$f":"'COM S curve-connect'!S126","v":0},{"$f":"'COM S curve-connect'!T126","v":0},{"$f":"'COM S curve-connect'!U126","v":0},{"$f":"'COM S curve-connect'!V126","v":0},{"$f":"'COM S curve-connect'!W126","v":0},{"$f":"'COM S curve-connect'!X126","v":0},{"$f":"'COM S curve-connect'!Y126","v":0},{"$f":"'COM S curve-connect'!Z126","v":0},{"$f":"'COM S curve-connect'!AA126","v":0},{"$f":"'COM S curve-connect'!AB126","v":0},{"$f":"'COM S curve-connect'!AC126","v":0},{"$f":"'COM S curve-connect'!AD126","v":0},{"$f":"'COM S curve-connect'!AE126","v":0},{"$f":"'COM S curve-connect'!AF126","v":0},{"$f":"'COM S curve-connect'!AG126","v":0},{"$f":"'COM S curve-connect'!AH126","v":0},{"$f":"'COM S curve-connect'!AI126","v":0},{"$f":"'COM S curve-connect'!AJ126","v":0},{"$f":"'COM S curve-connect'!AK126","v":0},{"$f":"'COM S curve-connect'!AL126","v":0},{"$f":"'COM S curve-connect'!AM126","v":0},{"$f":"'COM S curve-connect'!AN126","v":0},{"$f":"'COM S curve-connect'!AO126","v":0},{"$f":"'COM S curve-connect'!AP126","v":0},{"$f":"'COM S curve-connect'!AQ126","v":0},{"$f":"'COM S curve-connect'!AR126","v":0},{"$f":"'COM S curve-connect'!AS126","v":0},{"$f":"'COM S curve-connect'!AT126","v":0},{"$f":"'COM S curve-connect'!AU126","v":0},{"$f":"'COM S curve-connect'!AV126","v":0},{"$f":"'COM S curve-connect'!AW126","v":0},{"$f":"'COM S curve-connect'!AX126","v":0},{"$f":"'COM S curve-connect'!AY126","v":0},{"$f":"'COM S curve-connect'!AZ126","v":0},{"$f":"'COM S curve-connect'!BA126","v":0},{"$f":"'COM S curve-connect'!BB126","v":0},{"$f":"'COM S curve-connect'!BC126","v":0},{"$f":"'COM S curve-connect'!BD126","v":0},{"$f":"'COM S curve-connect'!BE126","v":0},{"$f":"'COM S curve-connect'!BF126","v":0},{"$f":"'COM S curve-connect'!BG126","v":0},{"$f":"'COM S curve-connect'!BH126","v":0},{"$f":"'COM S curve-connect'!BI126","v":0},{"$f":"'COM S curve-connect'!BJ126","v":0},{"$f":"'COM S curve-connect'!BK126","v":0},{"$f":"'COM S curve-connect'!BL126","v":0},{"$f":"'COM S curve-connect'!BM126","v":0},{"$f":"'COM S curve-connect'!BN126","v":0},{"$f":"'COM S curve-connect'!BO126","v":0},{"$f":"'COM S curve-connect'!BP126","v":0},{"$f":"'COM S curve-connect'!BQ126","v":0},{"$f":"'COM S curve-connect'!BR126","v":0},{"$f":"'COM S curve-connect'!BS126","v":0},{"$f":"'COM S curve-connect'!BT126","v":0},{"$f":"'COM S curve-connect'!BU126","v":0},{"$f":"'COM S curve-connect'!BV126","v":0},{"$f":"'COM S curve-connect'!BW126","v":0},{"$f":"'COM S curve-connect'!BX126","v":0},{"$f":"'COM S curve-connect'!BY126","v":0},{"$f":"'COM S curve-connect'!BZ126","v":0},{"$f":"'COM S curve-connect'!CA126","v":0},{"$f":"'COM S curve-connect'!CB126","v":0},{"$f":"'COM S curve-connect'!CC126","v":0},{"$f":"'COM S curve-connect'!CD126","v":0}]
["South Gippsland (S)",null,{"$f":"Customers!C250","v":3},{"$f":"Customers!D250","v":4},{"$f":"Customers!E250","v":1},{"$f":"Customers!F250","v":0},{"$f":"Customers!G250","v":1},{"$f":"Customers!H250","v":2},{"$f":"Customers!I250","v":1},{"$f":"Customers!J250","v":3},{"$f":"'COM S curve-connect'!C127","v":0},{"$f":"'COM S curve-connect'!D127","v":0},{"$f":"'COM S curve-connect'!E127","v":0},{"$f":"'COM S curve-connect'!F127","v":0},{"$f":"'COM S curve-connect'!G127","v":0},{"$f":"'COM S curve-connect'!H127","v":0},{"$f":"'COM S curve-connect'!I127","v":0},{"$f":"'COM S curve-connect'!J127","v":0},{"$f":"'COM S curve-connect'!K127","v":0},{"$f":"'COM S curve-connect'!L127","v":0},{"$f":"'COM S curve-connect'!M127","v":0},{"$f":"'COM S curve-connect'!N127","v":0},{"$f":"'COM S curve-connect'!O127","v":0},{"$f":"'COM S curve-connect'!P127","v":0},{"$f":"'COM S curve-connect'!Q127","v":0},{"$f":"'COM S curve-connect'!R127","v":0},{"$f":"'COM S curve-connect'!S127","v":0},{"$f":"'COM S curve-connect'!T127","v":0},{"$f":"'COM S curve-connect'!U127","v":0},{"$f":"'COM S curve-connect'!V127","v":0},{"$f":"'COM S curve-connect'!W127","v":0},{"$f":"'COM S curve-connect'!X127","v":0},{"$f":"'COM S curve-connect'!Y127","v":0},{"$f":"'COM S curve-connect'!Z127","v":0},{"$f":"'COM S curve-connect'!AA127","v":0},{"$f":"'COM S curve-connect'!AB127","v":0},{"$f":"'COM S curve-connect'!AC127","v":0},{"$f":"'COM S curve-connect'!AD127","v":0},{"$f":"'COM S curve-connect'!AE127","v":0},{"$f":"'COM S curve-connect'!AF127","v":0},{"$f":"'COM S curve-connect'!AG127","v":0},{"$f":"'COM S curve-connect'!AH127","v":0},{"$f":"'COM S curve-connect'!AI127","v":0},{"$f":"'COM S curve-connect'!AJ127","v":0},{"$f":"'COM S curve-connect'!AK127","v":0},{"$f":"'COM S curve-connect'!AL127","v":0},{"$f":"'COM S curve-connect'!AM127","v":0},{"$f":"'COM S curve-connect'!AN127","v":0},{"$f":"'COM S curve-connect'!AO127","v":0},{"$f":"'COM S curve-connect'!AP127","v":0},{"$f":"'COM S curve-connect'!AQ127","v":0},{"$f":"'COM S curve-connect'!AR127","v":0},{"$f":"'COM S curve-connect'!AS127","v":0},{"$f":"'COM S curve-connect'!AT127","v":0},{"$f":"'COM S curve-connect'!AU127","v":0},{"$f":"'COM S curve-connect'!AV127","v":0},{"$f":"'COM S curve-connect'!AW127","v":0},{"$f":"'COM S curve-connect'!AX127","v":0},{"$f":"'COM S curve-connect'!AY127","v":0},{"$f":"'COM S curve-connect'!AZ127","v":0},{"$f":"'COM S curve-connect'!BA127","v":0},{"$f":"'COM S curve-connect'!BB127","v":0},{"$f":"'COM S curve-connect'!BC127","v":0},{"$f":"'COM S curve-connect'!BD127","v":0},{"$f":"'COM S curve-connect'!BE127","v":0},{"$f":"'COM S curve-connect'!BF127","v":0},{"$f":"'COM S curve-connect'!BG127","v":0},{"$f":"'COM S curve-connect'!BH127","v":0},{"$f":"'COM S curve-connect'!BI127","v":0},{"$f":"'COM S curve-connect'!BJ127","v":0},{"$f":"'COM S curve-connect'!BK127","v":0},{"$f":"'COM S curve-connect'!BL127","v":0},{"$f":"'COM S curve-connect'!BM127","v":0},{"$f":"'COM S curve-connect'!BN127","v":0},{"$f":"'COM S curve-connect'!BO127","v":0},{"$f":"'COM S curve-connect'!BP127","v":0},{"$f":"'COM S curve-connect'!BQ127","v":0},{"$f":"'COM S curve-connect'!BR127","v":0},{"$f":"'COM S curve-connect'!BS127","v":0},{"$f":"'COM S curve-connect'!BT127","v":0},{"$f":"'COM S curve-connect'!BU127","v":0},{"$f":"'COM S curve-connect'!BV127","v":0},{"$f":"'COM S curve-connect'!BW127","v":0},{"$f":"'COM S curve-connect'!BX127","v":0},{"$f":"'COM S curve-connect'!BY127","v":0},{"$f":"'COM S curve-connect'!BZ127","v":0},{"$f":"'COM S curve-connect'!CA127","v":0},{"$f":"'COM S curve-connect'!CB127","v":0},{"$f":"'COM S curve-connect'!CC127","v":0},{"$f":"'COM S curve-connect'!CD127","v":0}]
["Stonnington (C)",null,{"$f":"Customers!C251","v":37},{"$f":"Customers!D251","v":48},{"$f":"Customers!E251","v":61},{"$f":"Customers!F251","v":89},{"$f":"Customers!G251","v":63},{"$f":"Customers!H251","v":60},{"$f":"Customers!I251","v":67},{"$f":"Customers!J251","v":31},{"$f":"'COM S curve-connect'!C128","v":25},{"$f":"'COM S curve-connect'!D128","v":13},{"$f":"'COM S curve-connect'!E128","v":0},{"$f":"'COM S curve-connect'!F128","v":0},{"$f":"'COM S curve-connect'!G128","v":12},{"$f":"'COM S curve-connect'!H128","v":10},{"$f":"'COM S curve-connect'!I128","v":2},{"$f":"'COM S curve-connect'!J128","v":2},{"$f":"'COM S curve-connect'!K128","v":0},{"$f":"'COM S curve-connect'!L128","v":0},{"$f":"'COM S curve-connect'!M128","v":0},{"$f":"'COM S curve-connect'!N128","v":0},{"$f":"'COM S curve-connect'!O128","v":0},{"$f":"'COM S curve-connect'!P128","v":0},{"$f":"'COM S curve-connect'!Q128","v":0},{"$f":"'COM S curve-connect'!R128","v":0},{"$f":"'COM S curve-connect'!S128","v":0},{"$f":"'COM S curve-connect'!T128","v":0},{"$f":"'COM S curve-connect'!U128","v":0},{"$f":"'COM S curve-connect'!V128","v":0},{"$f":"'COM S curve-connect'!W128","v":0},{"$f":"'COM S curve-connect'!X128","v":0},{"$f":"'COM S curve-connect'!Y128","v":0},{"$f":"'COM S curve-connect'!Z128","v":0},{"$f":"'COM S curve-connect'!AA128","v":0},{"$f":"'COM S curve-connect'!AB128","v":0},{"$f":"'COM S curve-connect'!AC128","v":0},{"$f":"'COM S curve-connect'!AD128","v":0},{"$f":"'COM S curve-connect'!AE128","v":0},{"$f":"'COM S curve-connect'!AF128","v":0},{"$f":"'COM S curve-connect'!AG128","v":0},{"$f":"'COM S curve-connect'!AH128","v":0},{"$f":"'COM S curve-connect'!AI128","v":0},{"$f":"'COM S curve-connect'!AJ128","v":0},{"$f":"'COM S curve-connect'!AK128","v":0},{"$f":"'COM S curve-connect'!AL128","v":0},{"$f":"'COM S curve-connect'!AM128","v":0},{"$f":"'COM S curve-connect'!AN128","v":0},{"$f":"'COM S curve-connect'!AO128","v":0},{"$f":"'COM S curve-connect'!AP128","v":0},{"$f":"'COM S curve-connect'!AQ128","v":0},{"$f":"'COM S curve-connect'!AR128","v":0},{"$f":"'COM S curve-connect'!AS128","v":0},{"$f":"'COM S curve-connect'!AT128","v":0},{"$f":"'COM S curve-connect'!AU128","v":0},{"$f":"'COM S curve-connect'!AV128","v":0},{"$f":"'COM S curve-connect'!AW128","v":0},{"$f":"'COM S curve-connect'!AX128","v":0},{"$f":"'COM S curve-connect'!AY128","v":0},{"$f":"'COM S curve-connect'!AZ128","v":0},{"$f":"'COM S curve-connect'!BA128","v":0},{"$f":"'COM S curve-connect'!BB128","v":0},{"$f":"'COM S curve-connect'!BC128","v":0},{"$f":"'COM S curve-connect'!BD128","v":0},{"$f":"'COM S curve-connect'!BE128","v":0},{"$f":"'COM S curve-connect'!BF128","v":0},{"$f":"'COM S curve-connect'!BG128","v":0},{"$f":"'COM S curve-connect'!BH128","v":0},{"$f":"'COM S curve-connect'!BI128","v":0},{"$f":"'COM S curve-connect'!BJ128","v":0},{"$f":"'COM S curve-connect'!BK128","v":0},{"$f":"'COM S curve-connect'!BL128","v":0},{"$f":"'COM S curve-connect'!BM128","v":0},{"$f":"'COM S curve-connect'!BN128","v":0},{"$f":"'COM S curve-connect'!BO128","v":0},{"$f":"'COM S curve-connect'!BP128","v":0},{"$f":"'COM S curve-connect'!BQ128","v":0},{"$f":"'COM S curve-connect'!BR128","v":0},{"$f":"'COM S curve-connect'!BS128","v":0},{"$f":"'COM S curve-connect'!BT128","v":0},{"$f":"'COM S curve-connect'!BU128","v":0},{"$f":"'COM S curve-connect'!BV128","v":0},{"$f":"'COM S curve-connect'!BW128","v":0},{"$f":"'COM S curve-connect'!BX128","v":0},{"$f":"'COM S curve-connect'!BY128","v":0},{"$f":"'COM S curve-connect'!BZ128","v":0},{"$f":"'COM S curve-connect'!CA128","v":0},{"$f":"'COM S curve-connect'!CB128","v":0},{"$f":"'COM S curve-connect'!CC128","v":0},{"$f":"'COM S curve-connect'!CD128","v":0}]
["Whitehorse (C)",null,{"$f":"Customers!C252","v":42},{"$f":"Customers!D252","v":53},{"$f":"Customers!E252","v":34},{"$f":"Customers!F252","v":49},{"$f":"Customers!G252","v":55},{"$f":"Customers!H252","v":43},{"$f":"Customers!I252","v":36},{"$f":"Customers!J252","v":39},{"$f":"'COM S curve-connect'!C129","v":22},{"$f":"'COM S curve-connect'!D129","v":11},{"$f":"'COM S curve-connect'!E129","v":0},{"$f":"'COM S curve-connect'!F129","v":0},{"$f":"'COM S curve-connect'!G129","v":11},{"$f":"'COM S curve-connect'!H129","v":9},{"$f":"'COM S curve-connect'!I129","v":1},{"$f":"'COM S curve-connect'!J129","v":1},{"$f":"'COM S curve-connect'!K129","v":0},{"$f":"'COM S curve-connect'!L129","v":0},{"$f":"'COM S curve-connect'!M129","v":0},{"$f":"'COM S curve-connect'!N129","v":0},{"$f":"'COM S curve-connect'!O129","v":0},{"$f":"'COM S curve-connect'!P129","v":0},{"$f":"'COM S curve-connect'!Q129","v":0},{"$f":"'COM S curve-connect'!R129","v":0},{"$f":"'COM S curve-connect'!S129","v":0},{"$f":"'COM S curve-connect'!T129","v":0},{"$f":"'COM S curve-connect'!U129","v":0},{"$f":"'COM S curve-connect'!V129","v":0},{"$f":"'COM S curve-connect'!W129","v":0},{"$f":"'COM S curve-connect'!X129","v":0},{"$f":"'COM S curve-connect'!Y129","v":0},{"$f":"'COM S curve-connect'!Z129","v":0},{"$f":"'COM S curve-connect'!AA129","v":0},{"$f":"'COM S curve-connect'!AB129","v":0},{"$f":"'COM S curve-connect'!AC129","v":0},{"$f":"'COM S curve-connect'!AD129","v":0},{"$f":"'COM S curve-connect'!AE129","v":0},{"$f":"'COM S curve-connect'!AF129","v":0},{"$f":"'COM S curve-connect'!AG129","v":0},{"$f":"'COM S curve-connect'!AH129","v":0},{"$f":"'COM S curve-connect'!AI129","v":0},{"$f":"'COM S curve-connect'!AJ129","v":0},{"$f":"'COM S curve-connect'!AK129","v":0},{"$f":"'COM S curve-connect'!AL129","v":0},{"$f":"'COM S curve-connect'!AM129","v":0},{"$f":"'COM S curve-connect'!AN129","v":0},{"$f":"'COM S curve-connect'!AO129","v":0},{"$f":"'COM S curve-connect'!AP129","v":0},{"$f":"'COM S curve-connect'!AQ129","v":0},{"$f":"'COM S curve-connect'!AR129","v":0},{"$f":"'COM S curve-connect'!AS129","v":0},{"$f":"'COM S curve-connect'!AT129","v":0},{"$f":"'COM S curve-connect'!AU129","v":0},{"$f":"'COM S curve-connect'!AV129","v":0},{"$f":"'COM S curve-connect'!AW129","v":0},{"$f":"'COM S curve-connect'!AX129","v":0},{"$f":"'COM S curve-connect'!AY129","v":0},{"$f":"'COM S curve-connect'!AZ129","v":0},{"$f":"'COM S curve-connect'!BA129","v":0},{"$f":"'COM S curve-connect'!BB129","v":0},{"$f":"'COM S curve-connect'!BC129","v":0},{"$f":"'COM S curve-connect'!BD129","v":0},{"$f":"'COM S curve-connect'!BE129","v":0},{"$f":"'COM S curve-connect'!BF129","v":0},{"$f":"'COM S curve-connect'!BG129","v":0},{"$f":"'COM S curve-connect'!BH129","v":0},{"$f":"'COM S curve-connect'!BI129","v":0},{"$f":"'COM S curve-connect'!BJ129","v":0},{"$f":"'COM S curve-connect'!BK129","v":0},{"$f":"'COM S curve-connect'!BL129","v":0},{"$f":"'COM S curve-connect'!BM129","v":0},{"$f":"'COM S curve-connect'!BN129","v":0},{"$f":"'COM S curve-connect'!BO129","v":0},{"$f":"'COM S curve-connect'!BP129","v":0},{"$f":"'COM S curve-connect'!BQ129","v":0},{"$f":"'COM S curve-connect'!BR129","v":0},{"$f":"'COM S curve-connect'!BS129","v":0},{"$f":"'COM S curve-connect'!BT129","v":0},{"$f":"'COM S curve-connect'!BU129","v":0},{"$f":"'COM S curve-connect'!BV129","v":0},{"$f":"'COM S curve-connect'!BW129","v":0},{"$f":"'COM S curve-connect'!BX129","v":0},{"$f":"'COM S curve-connect'!BY129","v":0},{"$f":"'COM S curve-connect'!BZ129","v":0},{"$f":"'COM S curve-connect'!CA129","v":0},{"$f":"'COM S curve-connect'!CB129","v":0},{"$f":"'COM S curve-connect'!CC129","v":0},{"$f":"'COM S curve-connect'!CD129","v":0}]
["Yarra Ranges (S)",null,{"$f":"Customers!C253","v":25},{"$f":"Customers!D253","v":21},{"$f":"Customers!E253","v":33},{"$f":"Customers!F253","v":19},{"$f":"Customers!G253","v":21},{"$f":"Customers!H253","v":25},{"$f":"Customers!I253","v":21},{"$f":"Customers!J253","v":10},{"$f":"'COM S curve-connect'!C130","v":15},{"$f":"'COM S curve-connect'!D130","v":7},{"$f":"'COM S curve-connect'!E130","v":0},{"$f":"'COM S curve-connect'!F130","v":0},{"$f":"'COM S curve-connect'!G130","v":7},{"$f":"'COM S curve-connect'!H130","v":5},{"$f":"'COM S curve-connect'!I130","v":1},{"$f":"'COM S curve-connect'!J130","v":0},{"$f":"'COM S curve-connect'!K130","v":0},{"$f":"'COM S curve-connect'!L130","v":0},{"$f":"'COM S curve-connect'!M130","v":0},{"$f":"'COM S curve-connect'!N130","v":0},{"$f":"'COM S curve-connect'!O130","v":0},{"$f":"'COM S curve-connect'!P130","v":0},{"$f":"'COM S curve-connect'!Q130","v":0},{"$f":"'COM S curve-connect'!R130","v":0},{"$f":"'COM S curve-connect'!S130","v":0},{"$f":"'COM S curve-connect'!T130","v":0},{"$f":"'COM S curve-connect'!U130","v":0},{"$f":"'COM S curve-connect'!V130","v":0},{"$f":"'COM S curve-connect'!W130","v":0},{"$f":"'COM S curve-connect'!X130","v":0},{"$f":"'COM S curve-connect'!Y130","v":0},{"$f":"'COM S curve-connect'!Z130","v":0},{"$f":"'COM S curve-connect'!AA130","v":0},{"$f":"'COM S curve-connect'!AB130","v":0},{"$f":"'COM S curve-connect'!AC130","v":0},{"$f":"'COM S curve-connect'!AD130","v":0},{"$f":"'COM S curve-connect'!AE130","v":0},{"$f":"'COM S curve-connect'!AF130","v":0},{"$f":"'COM S curve-connect'!AG130","v":0},{"$f":"'COM S curve-connect'!AH130","v":0},{"$f":"'COM S curve-connect'!AI130","v":0},{"$f":"'COM S curve-connect'!AJ130","v":0},{"$f":"'COM S curve-connect'!AK130","v":0},{"$f":"'COM S curve-connect'!AL130","v":0},{"$f":"'COM S curve-connect'!AM130","v":0},{"$f":"'COM S curve-connect'!AN130","v":0},{"$f":"'COM S curve-connect'!AO130","v":0},{"$f":"'COM S curve-connect'!AP130","v":0},{"$f":"'COM S curve-connect'!AQ130","v":0},{"$f":"'COM S curve-connect'!AR130","v":0},{"$f":"'COM S curve-connect'!AS130","v":0},{"$f":"'COM S curve-connect'!AT130","v":0},{"$f":"'COM S curve-connect'!AU130","v":0},{"$f":"'COM S curve-connect'!AV130","v":0},{"$f":"'COM S curve-connect'!AW130","v":0},{"$f":"'COM S curve-connect'!AX130","v":0},{"$f":"'COM S curve-connect'!AY130","v":0},{"$f":"'COM S curve-connect'!AZ130","v":0},{"$f":"'COM S curve-connect'!BA130","v":0},{"$f":"'COM S curve-connect'!BB130","v":0},{"$f":"'COM S curve-connect'!BC130","v":0},{"$f":"'COM S curve-connect'!BD130","v":0},{"$f":"'COM S curve-connect'!BE130","v":0},{"$f":"'COM S curve-connect'!BF130","v":0},{"$f":"'COM S curve-connect'!BG130","v":0},{"$f":"'COM S curve-connect'!BH130","v":0},{"$f":"'COM S curve-connect'!BI130","v":0},{"$f":"'COM S curve-connect'!BJ130","v":0},{"$f":"'COM S curve-connect'!BK130","v":0},{"$f":"'COM S curve-connect'!BL130","v":0},{"$f":"'COM S curve-connect'!BM130","v":0},{"$f":"'COM S curve-connect'!BN130","v":0},{"$f":"'COM S curve-connect'!BO130","v":0},{"$f":"'COM S curve-connect'!BP130","v":0},{"$f":"'COM S curve-connect'!BQ130","v":0},{"$f":"'COM S curve-connect'!BR130","v":0},{"$f":"'COM S curve-connect'!BS130","v":0},{"$f":"'COM S curve-connect'!BT130","v":0},{"$f":"'COM S curve-connect'!BU130","v":0},{"$f":"'COM S curve-connect'!BV130","v":0},{"$f":"'COM S curve-connect'!BW130","v":0},{"$f":"'COM S curve-connect'!BX130","v":0},{"$f":"'COM S curve-connect'!BY130","v":0},{"$f":"'COM S curve-connect'!BZ130","v":0},{"$f":"'COM S curve-connect'!CA130","v":0},{"$f":"'COM S curve-connect'!CB130","v":0},{"$f":"'COM S curve-connect'!CC130","v":0},{"$f":"'COM S curve-connect'!CD130","v":0}]
["Total",null,{"$f":"Customers!C254","v":570},{"$f":"Customers!D254","v":457},{"$f":"Customers!E254","v":550},{"$f":"Customers!F254","v":617},{"$f":"Customers!G254","v":577},{"$f":"Customers!H254","v":484},{"$f":"Customers!I254","v":448},{"$f":"Customers!J254","v":314},{"$f":"SUM(K26:K44)","v":261},139,0,0,133,109,15,13,0,0,0,0,0,0,0,0,0,0,0,0,0,0,0,0,0,0,0,0,0,0,0,0,{"$f":"SUM(AQ26:AQ44)","v":0},0,0,0,0,0,0,0,0,0,0,0,0,0,0,0,0,0,0,0,0,0,0,0,0,0,0,0,0,0,0,0,{"$f":"SUM(BW26:BW44)","v":0},0,{"$f":"SUM(BY26:BY44)","v":0},0,0,0,0,0,0,0,0,0,0,0,0,{"$f":"SUM(CL26:CL44)","v":0}]
[]
["New Commercial Disconnections",2012,{"$f":"B47+1","v":2013},{"$f":"C47+1","v":2014},2015,2016,2017,2018,2019,2020,2021,{"$f":"K47+1","v":2022},{"$f":"L47+1","v":2023},2024,2025,2026,2027,2028,2029,2030,2031,2032,2033,2034,2035,2036,2037,2038,2039,2040,2041,2042,2043,2044,2045,2046,2047,2048,2049,2050,2051,2052,2053,2054,2055,2056,2057,2058,2059,2060,2061,2062,2063,2064,2065,2066,2067,2068,2069,2070,2071,2072,2073,2074,2075,2076,2077,2078,2079,2080,2081,2082,2083,2084,2085,2086,{"$f":"BX47+1","v":2087},{"$f":"BY47+1","v":2088},{"$f":"BZ47+1","v":2089},{"$f":"CA47+1","v":2090},{"$f":"CB47+1","v":2091},{"$f":"CC47+1","v":2092},{"$f":"CD47+1","v":2093},{"$f":"CE47+1","v":2094},{"$f":"CF47+1","v":2095},{"$f":"CG47+1","v":2096},{"$f":"CH47+1","v":2097},{"$f":"CI47+1","v":2098},{"$f":"CJ47+1","v":2099},2100]
["LGA"]
["Bass Coast (S)",null,{"$f":"Customers!C258","v":0},{"$f":"Customers!D258","v":0},{"$f":"Customers!E258","v":2},{"$f":"Customers!F258","v":1},{"$f":"Customers!G258","v":1},{"$f":"Customers!H258","v":1},{"$f":"Customers!I258","v":0},{"$f":"Customers!J258","v":1},{"$f":"'COM S curve-disconnect'!C115","v":0.66666666666666663},{"$f":"'COM S curve-disconnect'!D115","v":0.29166666666666669},{"$f":"'COM S curve-disconnect'!E115","v":2.2952083333333335},{"$f":"'COM S curve-disconnect'!F115","v":2.2837322916666665},{"$f":"'COM S curve-disconnect'!G115","v":0.27231363020833338},{"$f":"'COM S curve-disconnect'!H115","v":0.27595206205729172},{"$f":"'COM S curve-disconnect'!I115","v":2.2745723017470052},{"$f":"'COM S curve-disconnect'!J115","v":2.26319944023827},{"$f":"'COM S curve-disconnect'!K115","v":2.2518834430370789},{"$f":"'COM S curve-disconnect'!L115","v":2.2406240258218935},{"$f":"'COM S curve-disconnect'!M115","v":2.2294209056927841},{"$f":"'COM S curve-disconnect'!N115","v":1.2182738011643202},{"$f":"'COM S curve-disconnect'!O115","v":1.2121824321584984},{"$f":"'COM S curve-disconnect'!P115","v":1.206121519997706},{"$f":"'COM S curve-disconnect'!Q115","v":1.2000909123977175},{"$f":"'COM S curve-disconnect'!R115","v":1.1940904578357288},{"$f":"'COM S curve-disconnect'!S115","v":1.1881200055465502},{"$f":"'COM S curve-disconnect'!T115","v":1.1821794055188175},{"$f":"'COM S curve-disconnect'!U115","v":1.1762685084912234},{"$f":"'COM S curve-disconnect'!V115","v":1.1703871659487672},{"$f":"'COM S curve-disconnect'!W115","v":1.1645352301190233},{"$f":"'COM S curve-disconnect'!X115","v":1.1587125539684282},{"$f":"'COM S curve-disconnect'!Y115","v":1.1529189911985862},{"$f":"'COM S curve-disconnect'!Z115","v":0.14715439624259319},{"$f":"'COM S curve-disconnect'!AA115","v":0.14641862426138022},{"$f":"'COM S curve-disconnect'!AB115","v":1.1456865311400732},{"$f":"'COM S curve-disconnect'!AC115","v":1.1399580984843729},{"$f":"'COM S curve-disconnect'!AD115","v":1.134258307991951},{"$f":"'COM S curve-disconnect'!AE115","v":1.1285870164519913},{"$f":"'COM S curve-disconnect'!AF115","v":1.1229440813697313},{"$f":"'COM S curve-disconnect'!AG115","v":1.1173293609628827},{"$f":"'COM S curve-disconnect'!AH115","v":1.1117427141580682},{"$f":"'COM S curve-disconnect'!AI115","v":1.1061840005872781},{"$f":"'COM S curve-disconnect'!AJ115","v":1.1006530805843415},{"$f":"'COM S curve-disconnect'!AK115","v":1.0951498151814199},{"$f":"'COM S curve-disconnect'!AL115","v":1.0896740661055129},{"$f":"'COM S curve-disconnect'!AM115","v":1.0842256957749852},{"$f":"'COM S curve-disconnect'!AN115","v":1.0788045672961102},{"$f":"'COM S curve-disconnect'!AO115","v":7.3410544459629731E-2},{"$f":"'COM S curve-disconnect'!AP115","v":7.3043491737331587E-2},{"$f":"'COM S curve-disconnect'!AQ115","v":7.2678274278644914E-2},{"$f":"'COM S curve-disconnect'!AR115","v":7.2314882907251701E-2},{"$f":"'COM S curve-disconnect'!AS115","v":7.1953308492715445E-2},{"$f":"'COM S curve-disconnect'!AT115","v":7.1593541950251874E-2},{"$f":"'COM S curve-disconnect'!AU115","v":7.1235574240500615E-2},{"$f":"'COM S curve-disconnect'!AV115","v":7.0879396369298103E-2},{"$f":"'COM S curve-disconnect'!AW115","v":7.0524999387451617E-2},{"$f":"'COM S curve-disconnect'!AX115","v":7.0172374390514367E-2},{"$f":"'COM S curve-disconnect'!AY115","v":6.9821512518561793E-2},{"$f":"'COM S curve-disconnect'!AZ115","v":6.9472404955968972E-2},{"$f":"'COM S curve-disconnect'!BA115","v":6.9125042931189137E-2},{"$f":"'COM S curve-disconnect'!BB115","v":6.8779417716533189E-2},{"$f":"'COM S curve-disconnect'!BC115","v":6.8435520627950525E-2},{"$f":"'COM S curve-disconnect'!BD115","v":6.8093343024810779E-2},{"$f":"'COM S curve-disconnect'!BE115","v":6.7752876309686724E-2},{"$f":"'COM S curve-disconnect'!BF115","v":6.7414111928138287E-2},{"$f":"'COM S curve-disconnect'!BG115","v":6.7077041368497584E-2},{"$f":"'COM S curve-disconnect'!BH115","v":6.6741656161655102E-2},{"$f":"'COM S curve-disconnect'!BI115","v":6.6407947880846821E-2},{"$f":"'COM S curve-disconnect'!BJ115","v":6.6075908141442583E-2},{"$f":"'COM S curve-disconnect'!BK115","v":6.5745528600735376E-2},{"$f":"'COM S curve-disconnect'!BL115","v":6.5416800957731697E-2},{"$f":"'COM S curve-disconnect'!BM115","v":6.5089716952943036E-2},{"$f":"'COM S curve-disconnect'!BN115","v":6.4764268368178321E-2},{"$f":"'COM S curve-disconnect'!BO115","v":6.444044702633743E-2},{"$f":"'COM S curve-disconnect'!BP115","v":6.4118244791205745E-2},{"$f":"'COM S curve-disconnect'!BQ115","v":6.3797653567249715E-2},{"$f":"'COM S curve-disconnect'!BR115","v":6.347866529941347E-2},{"$f":"'COM S curve-disconnect'!BS115","v":6.3161271972916405E-2},{"$f":"'COM S curve-disconnect'!BT115","v":6.2845465613051821E-2},{"$f":"'COM S curve-disconnect'!BU115","v":6.2531238284986565E-2},{"$f":"'COM S curve-disconnect'!BV115","v":6.2218582093561632E-2},{"$f":"'COM S curve-disconnect'!BW115","v":6.1907489183093814E-2},{"$f":"'COM S curve-disconnect'!BX115","v":6.1597951737178351E-2},{"$f":"'COM S curve-disconnect'!BY115","v":6.1289961978492458E-2},{"$f":"'COM S curve-disconnect'!BZ115","v":6.0983512168599992E-2},{"$f":"'COM S curve-disconnect'!CA115","v":6.0678594607757E-2},{"$f":"'COM S curve-disconnect'!CB115","v":6.0375201634718219E-2},{"$f":"'COM S curve-disconnect'!CC115","v":6.0073325626544626E-2},{"$f":"'COM S curve-disconnect'!CD115","v":5.9772958998411896E-2}]
["Bayside (C)",null,{"$f":"Customers!C259","v":11},{"$f":"Customers!D259","v":29},{"$f":"Customers!E259","v":37},{"$f":"Customers!F259","v":28},{"$f":"Customers!G259","v":21},{"$f":"Customers!H259","v":17},{"$f":"Customers!I259","v":31},{"$f":"Customers!J259","v":17},{"$f":"'COM S curve-disconnect'!C116","v":23.666666666666668},{"$f":"'COM S curve-disconnect'!D116","v":15.591666666666667},{"$f":"'COM S curve-disconnect'!E116","v":45.538708333333332},{"$f":"'COM S curve-disconnect'!F116","v":45.311014791666665},{"$f":"'COM S curve-disconnect'!G116","v":12.084459717708333},{"$f":"'COM S curve-disconnect'!H116","v":14.049037419119792},{"$f":"'COM S curve-disconnect'!I116","v":27.998792232024194},{"$f":"'COM S curve-disconnect'!J116","v":27.86379827086407},{"$f":"'COM S curve-disconnect'!K116","v":37.729479279509754},{"$f":"'COM S curve-disconnect'!L116","v":34.540831883112205},{"$f":"'COM S curve-disconnect'!M116","v":27.368127723696642},{"$f":"'COM S curve-disconnect'!N116","v":26.231287085078158},{"$f":"'COM S curve-disconnect'!O116","v":29.100130649652765},{"$f":"'COM S curve-disconnect'!P116","v":26.954629996404503},{"$f":"'COM S curve-disconnect'!Q116","v":12.81985684642248},{"$f":"'COM S curve-disconnect'!R116","v":16.755757562190368},{"$f":"'COM S curve-disconnect'!S116","v":20.671978774379415},{"$f":"'COM S curve-disconnect'!T116","v":20.568618880507518},{"$f":"'COM S curve-disconnect'!U116","v":19.465775786104981},{"$f":"'COM S curve-disconnect'!V116","v":18.368446907174455},{"$f":"'COM S curve-disconnect'!W116","v":17.276604672638584},{"$f":"'COM S curve-disconnect'!X116","v":15.190221649275392},{"$f":"'COM S curve-disconnect'!Y116","v":14.114270541029015},{"$f":"'COM S curve-disconnect'!Z116","v":13.043699188323869},{"$f":"'COM S curve-disconnect'!AA116","v":12.97848069238225},{"$f":"'COM S curve-disconnect'!AB116","v":11.913588288920339},{"$f":"'COM S curve-disconnect'!AC116","v":10.854020347475737},{"$f":"'COM S curve-disconnect'!AD116","v":9.799750245738359},{"$f":"'COM S curve-disconnect'!AE116","v":9.7507514945096663},{"$f":"'COM S curve-disconnect'!AF116","v":8.701997737037118},{"$f":"'COM S curve-disconnect'!AG116","v":7.6584877483519325},{"$f":"'COM S curve-disconnect'!AH116","v":7.6201953096101729},{"$f":"'COM S curve-disconnect'!AI116","v":6.5820943330621224},{"$f":"'COM S curve-disconnect'!AJ116","v":6.5491838613968119},{"$f":"'COM S curve-disconnect'!AK116","v":5.5164379420898273},{"$f":"'COM S curve-disconnect'!AL116","v":5.4888557523793784},{"$f":"'COM S curve-disconnect'!AM116","v":5.4614114736174812},{"$f":"'COM S curve-disconnect'!AN116","v":4.4341044162493937},{"$f":"'COM S curve-disconnect'!AO116","v":4.411933894168147},{"$f":"'COM S curve-disconnect'!AP116","v":4.3898742246973059},{"$f":"'COM S curve-disconnect'!AQ116","v":3.3679248535738195},{"$f":"'COM S curve-disconnect'!AR116","v":3.3510852293059505},{"$f":"'COM S curve-disconnect'!AS116","v":3.3343298031594211},{"$f":"'COM S curve-disconnect'!AT116","v":3.3176581541436239},{"$f":"'COM S curve-disconnect'!AU116","v":3.3010698633729056},{"$f":"'COM S curve-disconnect'!AV116","v":2.2845645140560409},{"$f":"'COM S curve-disconnect'!AW116","v":2.273141691485761},{"$f":"'COM S curve-disconnect'!AX116","v":2.2617759830283322},{"$f":"'COM S curve-disconnect'!AY116","v":2.2504671031131904},{"$f":"'COM S curve-disconnect'!AZ116","v":2.2392147675976246},{"$f":"'COM S curve-disconnect'!BA116","v":2.2280186937596365},{"$f":"'COM S curve-disconnect'!BB116","v":1.2168786002908383},{"$f":"'COM S curve-disconnect'!BC116","v":1.210794207289384},{"$f":"'COM S curve-disconnect'!BD116","v":1.2047402362529371},{"$f":"'COM S curve-disconnect'!BE116","v":1.1987165350716724},{"$f":"'COM S curve-disconnect'!BF116","v":1.1927229523963141},{"$f":"'COM S curve-disconnect'!BG116","v":1.1867593376343324},{"$f":"'COM S curve-disconnect'!BH116","v":1.1808255409461608},{"$f":"'COM S curve-disconnect'!BI116","v":1.1749214132414298},{"$f":"'COM S curve-disconnect'!BJ116","v":1.1690468061752228},{"$f":"'COM S curve-disconnect'!BK116","v":1.1632015721443467},{"$f":"'COM S curve-disconnect'!BL116","v":1.1573855642836248},{"$f":"'COM S curve-disconnect'!BM116","v":1.1515986364622068},{"$f":"'COM S curve-disconnect'!BN116","v":0.14584064327989577},{"$f":"'COM S curve-disconnect'!BO116","v":0.14511144006349627},{"$f":"'COM S curve-disconnect'!BP116","v":0.1443858828631788},{"$f":"'COM S curve-disconnect'!BQ116","v":0.1436639534488629},{"$f":"'COM S curve-disconnect'!BR116","v":0.14294563368161861},{"$f":"'COM S curve-disconnect'!BS116","v":0.14223090551321049},{"$f":"'COM S curve-disconnect'!BT116","v":0.14151975098564445},{"$f":"'COM S curve-disconnect'!BU116","v":0.14081215223071625},{"$f":"'COM S curve-disconnect'!BV116","v":0.14010809146956266},{"$f":"'COM S curve-disconnect'!BW116","v":0.13940755101221483},{"$f":"'COM S curve-disconnect'!BX116","v":0.13871051325715375},{"$f":"'COM S curve-disconnect'!BY116","v":0.138016960690868},{"$f":"'COM S curve-disconnect'!BZ116","v":0.13732687588741366},{"$f":"'COM S curve-disconnect'!CA116","v":0.13664024150797657},{"$f":"'COM S curve-disconnect'!CB116","v":0.1359570403004367},{"$f":"'COM S curve-disconnect'!CC116","v":0.13527725509893451},{"$f":"'COM S curve-disconnect'!CD116","v":0.13460086882343986}]
["Boroondara (C)",null,{"$f":"Customers!C260","v":23},{"$f":"Customers!D260","v":36},{"$f":"Customers!E260","v":44},{"$f":"Customers!F260","v":53},{"$f":"Customers!G260","v":48},{"$f":"Customers!H260","v":41},{"$f":"Customers!I260","v":47},{"$f":"Customers!J260","v":36},{"$f":"'COM S curve-disconnect'!C117","v":43.333333333333336},{"$f":"'COM S curve-disconnect'!D117","v":27.033333333333335},{"$f":"'COM S curve-disconnect'!E117","v":92.963166666666666},{"$f":"'COM S curve-disconnect'!F117","v":90.498350833333333},{"$f":"'COM S curve-disconnect'!G117","v":20.045859079166668},{"$f":"'COM S curve-disconnect'!H117","v":24.005629783770836},{"$f":"'COM S curve-disconnect'!I117","v":58.935601634851977},{"$f":"'COM S curve-disconnect'!J117","v":57.650923626677724},{"$f":"'COM S curve-disconnect'!K117","v":75.372669008544335},{"$f":"'COM S curve-disconnect'!L117","v":69.995805663501613},{"$f":"'COM S curve-disconnect'!M117","v":56.6458266351841},{"$f":"'COM S curve-disconnect'!N117","v":54.362597502008185},{"$f":"'COM S curve-disconnect'!O117","v":57.090784514498139},{"$f":"'COM S curve-disconnect'!P117","v":52.805330591925653},{"$f":"'COM S curve-disconnect'!Q117","v":25.541303938966021},{"$f":"'COM S curve-disconnect'!R117","v":35.413597419271191},{"$f":"'COM S curve-disconnect'!S117","v":42.236529432174834},{"$f":"'COM S curve-disconnect'!T117","v":42.025346785013959},{"$f":"'COM S curve-disconnect'!U117","v":38.815220051088893},{"$f":"'COM S curve-disconnect'!V117","v":35.621143950833449},{"$f":"'COM S curve-disconnect'!W117","v":33.443038231079278},{"$f":"'COM S curve-disconnect'!X117","v":31.275823039923882},{"$f":"'COM S curve-disconnect'!Y117","v":29.119443924724262},{"$f":"'COM S curve-disconnect'!Z117","v":26.973846705100641},{"$f":"'COM S curve-disconnect'!AA117","v":24.838977471575138},{"$f":"'COM S curve-disconnect'!AB117","v":22.714782584217264},{"$f":"'COM S curve-disconnect'!AC117","v":21.601208671296177},{"$f":"'COM S curve-disconnect'!AD117","v":19.493202627939695},{"$f":"'COM S curve-disconnect'!AE117","v":18.395736614799997},{"$f":"'COM S curve-disconnect'!AF117","v":17.303757931725997},{"$f":"'COM S curve-disconnect'!AG117","v":16.217239142067367},{"$f":"'COM S curve-disconnect'!AH117","v":15.136152946357031},{"$f":"'COM S curve-disconnect'!AI117","v":14.060472181625245},{"$f":"'COM S curve-disconnect'!AJ117","v":12.990169820717119},{"$f":"'COM S curve-disconnect'!AK117","v":11.925218971613534},{"$f":"'COM S curve-disconnect'!AL117","v":10.865592876755466},{"$f":"'COM S curve-disconnect'!AM117","v":9.8112649123716889},{"$f":"'COM S curve-disconnect'!AN117","v":9.7622085878098304},{"$f":"'COM S curve-disconnect'!AO117","v":8.7133975448707801},{"$f":"'COM S curve-disconnect'!AP117","v":7.6698305571464269},{"$f":"'COM S curve-disconnect'!AQ117","v":7.6314814043606951},{"$f":"'COM S curve-disconnect'!AR117","v":6.5933239973388913},{"$f":"'COM S curve-disconnect'!AS117","v":6.5603573773521964},{"$f":"'COM S curve-disconnect'!AT117","v":6.5275555904654361},{"$f":"'COM S curve-disconnect'!AU117","v":5.4949178125131084},{"$f":"'COM S curve-disconnect'!AV117","v":5.4674432234505428},{"$f":"'COM S curve-disconnect'!AW117","v":4.4401060073332905},{"$f":"'COM S curve-disconnect'!AX117","v":4.4179054772966238},{"$f":"'COM S curve-disconnect'!AY117","v":4.3958159499101406},{"$f":"'COM S curve-disconnect'!AZ117","v":3.3738368701605901},{"$f":"'COM S curve-disconnect'!BA117","v":3.3569676858097872},{"$f":"'COM S curve-disconnect'!BB117","v":3.340182847380738},{"$f":"'COM S curve-disconnect'!BC117","v":3.3234819331438343},{"$f":"'COM S curve-disconnect'!BD117","v":3.3068645234781151},{"$f":"'COM S curve-disconnect'!BE117","v":2.2903302008607245},{"$f":"'COM S curve-disconnect'!BF117","v":2.278878549856421},{"$f":"'COM S curve-disconnect'!BG117","v":2.2674841571071389},{"$f":"'COM S curve-disconnect'!BH117","v":2.2561467363216035},{"$f":"'COM S curve-disconnect'!BI117","v":2.2448660026399954},{"$f":"'COM S curve-disconnect'!BJ117","v":2.2336416726267951},{"$f":"'COM S curve-disconnect'!BK117","v":1.2224734642636612},{"$f":"'COM S curve-disconnect'!BL117","v":1.2163610969423431},{"$f":"'COM S curve-disconnect'!BM117","v":1.2102792914576312},{"$f":"'COM S curve-disconnect'!BN117","v":1.2042278950003431},{"$f":"'COM S curve-disconnect'!BO117","v":1.1982067555253415},{"$f":"'COM S curve-disconnect'!BP117","v":1.1922157217477147},{"$f":"'COM S curve-disconnect'!BQ117","v":1.1862546431389762},{"$f":"'COM S curve-disconnect'!BR117","v":1.1803233699232814},{"$f":"'COM S curve-disconnect'!BS117","v":1.1744217530736649},{"$f":"'COM S curve-disconnect'!BT117","v":1.1685496443082966},{"$f":"'COM S curve-disconnect'!BU117","v":1.162706896086755},{"$f":"'COM S curve-disconnect'!BV117","v":1.1568933616063213},{"$f":"'COM S curve-disconnect'!BW117","v":1.1511088947982897},{"$f":"'COM S curve-disconnect'!BX117","v":0.14535335032429822},{"$f":"'COM S curve-disconnect'!BY117","v":0.14462658357267671},{"$f":"'COM S curve-disconnect'!BZ117","v":0.14390345065481333},{"$f":"'COM S curve-disconnect'!CA117","v":0.14318393340153926},{"$f":"'COM S curve-disconnect'!CB117","v":0.14246801373453155},{"$f":"'COM S curve-disconnect'!CC117","v":0.14175567366585889},{"$f":"'COM S curve-disconnect'!CD117","v":0.14104689529752962}]
["Cardinia (S)",null,{"$f":"Customers!C261","v":0},{"$f":"Customers!D261","v":3},{"$f":"Customers!E261","v":1},{"$f":"Customers!F261","v":0},{"$f":"Customers!G261","v":4},{"$f":"Customers!H261","v":5},{"$f":"Customers!I261","v":6},{"$f":"Customers!J261","v":2},{"$f":"'COM S curve-disconnect'!C118","v":4.333333333333333},{"$f":"'COM S curve-disconnect'!D118","v":1.4283333333333332},{"$f":"'COM S curve-disconnect'!E118","v":4.4211916666666671},{"$f":"'COM S curve-disconnect'!F118","v":4.3990857083333337},{"$f":"'COM S curve-disconnect'!G118","v":1.3770902797916666},{"$f":"'COM S curve-disconnect'!H118","v":1.3702048283927084},{"$f":"'COM S curve-disconnect'!I118","v":2.3633538042507447},{"$f":"'COM S curve-disconnect'!J118","v":2.3515370352294909},{"$f":"'COM S curve-disconnect'!K118","v":3.3397793500533437},{"$f":"'COM S curve-disconnect'!L118","v":3.3230804533030769},{"$f":"'COM S curve-disconnect'!M118","v":3.3064650510365614},{"$f":"'COM S curve-disconnect'!N118","v":2.2899327257813789},{"$f":"'COM S curve-disconnect'!O118","v":2.2784830621524716},{"$f":"'COM S curve-disconnect'!P118","v":2.2670906468417096},{"$f":"'COM S curve-disconnect'!Q118","v":1.2557551936075009},{"$f":"'COM S curve-disconnect'!R118","v":1.2494764176394635},{"$f":"'COM S curve-disconnect'!S118","v":2.2432290355512658},{"$f":"'COM S curve-disconnect'!T118","v":2.2320128903735097},{"$f":"'COM S curve-disconnect'!U118","v":1.2208528259216422},{"$f":"'COM S curve-disconnect'!V118","v":1.2147485617920339},{"$f":"'COM S curve-disconnect'!W118","v":1.2086748189830738},{"$f":"'COM S curve-disconnect'!X118","v":1.2026314448881583},{"$f":"'COM S curve-disconnect'!Y118","v":1.1966182876637177},{"$f":"'COM S curve-disconnect'!Z118","v":1.1906351962253989},{"$f":"'COM S curve-disconnect'!AA118","v":1.184682020244272},{"$f":"'COM S curve-disconnect'!AB118","v":1.1787586101430507},{"$f":"'COM S curve-disconnect'!AC118","v":1.1728648170923355},{"$f":"'COM S curve-disconnect'!AD118","v":1.1670004930068738},{"$f":"'COM S curve-disconnect'!AE118","v":1.1611654905418394},{"$f":"'COM S curve-disconnect'!AF118","v":1.1553596630891301},{"$f":"'COM S curve-disconnect'!AG118","v":0.14958286477368454},{"$f":"'COM S curve-disconnect'!AH118","v":0.14883495044981612},{"$f":"'COM S curve-disconnect'!AI118","v":0.14809077569756704},{"$f":"'COM S curve-disconnect'!AJ118","v":0.1473503218190792},{"$f":"'COM S curve-disconnect'!AK118","v":0.14661357020998378},{"$f":"'COM S curve-disconnect'!AL118","v":0.14588050235893388},{"$f":"'COM S curve-disconnect'!AM118","v":0.1451510998471392},{"$f":"'COM S curve-disconnect'!AN118","v":0.14442534434790349},{"$f":"'COM S curve-disconnect'!AO118","v":0.14370321762616398},{"$f":"'COM S curve-disconnect'!AP118","v":0.14298470153803317},{"$f":"'COM S curve-disconnect'!AQ118","v":0.14226977803034299},{"$f":"'COM S curve-disconnect'!AR118","v":0.14155842914019126},{"$f":"'COM S curve-disconnect'!AS118","v":0.14085063699449032},{"$f":"'COM S curve-disconnect'!AT118","v":0.14014638380951788},{"$f":"'COM S curve-disconnect'!AU118","v":0.13944565189047028},{"$f":"'COM S curve-disconnect'!AV118","v":0.13874842363101794},{"$f":"'COM S curve-disconnect'!AW118","v":0.13805468151286285},{"$f":"'COM S curve-disconnect'!AX118","v":0.13736440810529854},{"$f":"'COM S curve-disconnect'!AY118","v":0.13667758606477204},{"$f":"'COM S curve-disconnect'!AZ118","v":0.13599419813444819},{"$f":"'COM S curve-disconnect'!BA118","v":0.13531422714377594},{"$f":"'COM S curve-disconnect'!BB118","v":0.13463765600805708},{"$f":"'COM S curve-disconnect'!BC118","v":0.13396446772801679},{"$f":"'COM S curve-disconnect'!BD118","v":0.13329464538937669},{"$f":"'COM S curve-disconnect'!BE118","v":0.13262817216242981},{"$f":"'COM S curve-disconnect'!BF118","v":0.13196503130161766},{"$f":"'COM S curve-disconnect'!BG118","v":0.13130520614510957},{"$f":"'COM S curve-disconnect'!BH118","v":0.13064868011438402},{"$f":"'COM S curve-disconnect'!BI118","v":0.12999543671381208},{"$f":"'COM S curve-disconnect'!BJ118","v":0.12934545953024304},{"$f":"'COM S curve-disconnect'!BK118","v":0.12869873223259182},{"$f":"'COM S curve-disconnect'!BL118","v":0.12805523857142886},{"$f":"'COM S curve-disconnect'!BM118","v":0.12741496237857172},{"$f":"'COM S curve-disconnect'!BN118","v":0.12677788756667885},{"$f":"'COM S curve-disconnect'!BO118","v":0.12614399812884547},{"$f":"'COM S curve-disconnect'!BP118","v":0.12551327813820123},{"$f":"'COM S curve-disconnect'!BQ118","v":0.12488571174751023},{"$f":"'COM S curve-disconnect'!BR118","v":0.12426128318877268},{"$f":"'COM S curve-disconnect'!BS118","v":0.12363997677282881},{"$f":"'COM S curve-disconnect'!BT118","v":0.12302177688896468},{"$f":"'COM S curve-disconnect'!BU118","v":0.12240666800451985},{"$f":"'COM S curve-disconnect'!BV118","v":0.12179463466449726},{"$f":"'COM S curve-disconnect'!BW118","v":0.12118566149117477},{"$f":"'COM S curve-disconnect'!BX118","v":0.1205797331837189},{"$f":"'COM S curve-disconnect'!BY118","v":0.11997683451780031},{"$f":"'COM S curve-disconnect'!BZ118","v":0.11937695034521131},{"$f":"'COM S curve-disconnect'!CA118","v":0.11878006559348527},{"$f":"'COM S curve-disconnect'!CB118","v":0.11818616526551784},{"$f":"'COM S curve-disconnect'!CC118","v":0.11759523443919026},{"$f":"'COM S curve-disconnect'!CD118","v":0.11700725826699432}]
["Casey (C)",null,{"$f":"Customers!C262","v":2},{"$f":"Customers!D262","v":8},{"$f":"Customers!E262","v":3},{"$f":"Customers!F262","v":9},{"$f":"Customers!G262","v":0},{"$f":"Customers!H262","v":3},{"$f":"Customers!I262","v":7},{"$f":"Customers!J262","v":3},{"$f":"'COM S curve-disconnect'!C119","v":4.333333333333333},{"$f":"'COM S curve-disconnect'!D119","v":2.7133333333333334},{"$f":"'COM S curve-disconnect'!E119","v":7.704766666666667},{"$f":"'COM S curve-disconnect'!F119","v":7.6662428333333335},{"$f":"'COM S curve-disconnect'!G119","v":2.6279116191666665},{"$f":"'COM S curve-disconnect'!H119","v":2.6147720610708332},{"$f":"'COM S curve-disconnect'!I119","v":5.6016982007654788},{"$f":"'COM S curve-disconnect'!J119","v":4.573689709761652},{"$f":"'COM S curve-disconnect'!K119","v":6.5508212612128434},{"$f":"'COM S curve-disconnect'!L119","v":5.5180671549067792},{"$f":"'COM S curve-disconnect'!M119","v":4.4904768191322457},{"$f":"'COM S curve-disconnect'!N119","v":4.4680244350365843},{"$f":"'COM S curve-disconnect'!O119","v":4.4456843128614008},{"$f":"'COM S curve-disconnect'!P119","v":4.4234558912970945},{"$f":"'COM S curve-disconnect'!Q119","v":2.4013386118406088},{"$f":"'COM S curve-disconnect'!R119","v":2.3893319187814055},{"$f":"'COM S curve-disconnect'!S119","v":3.3773852591874984},{"$f":"'COM S curve-disconnect'!T119","v":3.3604983328915612},{"$f":"'COM S curve-disconnect'!U119","v":3.3436958412271034},{"$f":"'COM S curve-disconnect'!V119","v":3.3269773620209677},{"$f":"'COM S curve-disconnect'!W119","v":3.310342475210863},{"$f":"'COM S curve-disconnect'!X119","v":2.2937907628348086},{"$f":"'COM S curve-disconnect'!Y119","v":2.2823218090206345},{"$f":"'COM S curve-disconnect'!Z119","v":2.2709101999755315},{"$f":"'COM S curve-disconnect'!AA119","v":2.2595556489756539},{"$f":"'COM S curve-disconnect'!AB119","v":2.2482578707307757},{"$f":"'COM S curve-disconnect'!AC119","v":2.2370165813771217},{"$f":"'COM S curve-disconnect'!AD119","v":2.2258314984702361},{"$f":"'COM S curve-disconnect'!AE119","v":1.2147023409778848},{"$f":"'COM S curve-disconnect'!AF119","v":1.2086288292729954},{"$f":"'COM S curve-disconnect'!AG119","v":1.2025856851266303},{"$f":"'COM S curve-disconnect'!AH119","v":1.1965727567009972},{"$f":"'COM S curve-disconnect'!AI119","v":1.1905898929174923},{"$f":"'COM S curve-disconnect'!AJ119","v":1.1846369434529049},{"$f":"'COM S curve-disconnect'!AK119","v":1.1787137587356402},{"$f":"'COM S curve-disconnect'!AL119","v":1.1728201899419621},{"$f":"'COM S curve-disconnect'!AM119","v":1.1669560889922523},{"$f":"'COM S curve-disconnect'!AN119","v":1.1611213085472911},{"$f":"'COM S curve-disconnect'!AO119","v":1.1553157020045546},{"$f":"'COM S curve-disconnect'!AP119","v":0.1495391234945318},{"$f":"'COM S curve-disconnect'!AQ119","v":0.14879142787705915},{"$f":"'COM S curve-disconnect'!AR119","v":0.14804747073767385},{"$f":"'COM S curve-disconnect'!AS119","v":0.14730723338398549},{"$f":"'COM S curve-disconnect'!AT119","v":0.14657069721706559},{"$f":"'COM S curve-disconnect'!AU119","v":0.14583784373098024},{"$f":"'COM S curve-disconnect'!AV119","v":0.14510865451232535},{"$f":"'COM S curve-disconnect'!AW119","v":0.14438311123976375},{"$f":"'COM S curve-disconnect'!AX119","v":0.14366119568356492},{"$f":"'COM S curve-disconnect'!AY119","v":0.1429428897051471},{"$f":"'COM S curve-disconnect'!AZ119","v":0.14222817525662135},{"$f":"'COM S curve-disconnect'!BA119","v":0.14151703438033825},{"$f":"'COM S curve-disconnect'!BB119","v":0.14080944920843655},{"$f":"'COM S curve-disconnect'!BC119","v":0.14010540196239438},{"$f":"'COM S curve-disconnect'!BD119","v":0.13940487495258239},{"$f":"'COM S curve-disconnect'!BE119","v":0.13870785057781948},{"$f":"'COM S curve-disconnect'!BF119","v":0.13801431132493039},{"$f":"'COM S curve-disconnect'!BG119","v":0.13732423976830574},{"$f":"'COM S curve-disconnect'!BH119","v":0.13663761856946421},{"$f":"'COM S curve-disconnect'!BI119","v":0.1359544304766169},{"$f":"'COM S curve-disconnect'!BJ119","v":0.13527465832423383},{"$f":"'COM S curve-disconnect'!BK119","v":0.13459828503261265},{"$f":"'COM S curve-disconnect'!BL119","v":0.13392529360744956},{"$f":"'COM S curve-disconnect'!BM119","v":0.13325566713941231},{"$f":"'COM S curve-disconnect'!BN119","v":0.13258938880371526},{"$f":"'COM S curve-disconnect'!BO119","v":0.13192644185969668},{"$f":"'COM S curve-disconnect'!BP119","v":0.13126680965039819},{"$f":"'COM S curve-disconnect'!BQ119","v":0.1306104756021462},{"$f":"'COM S curve-disconnect'!BR119","v":0.12995742322413548},{"$f":"'COM S curve-disconnect'!BS119","v":0.1293076361080148},{"$f":"'COM S curve-disconnect'!BT119","v":0.12866109792747474},{"$f":"'COM S curve-disconnect'!BU119","v":0.12801779243783737},{"$f":"'COM S curve-disconnect'!BV119","v":0.12737770347564817},{"$f":"'COM S curve-disconnect'!BW119","v":0.12674081495826994},{"$f":"'COM S curve-disconnect'!BX119","v":0.12610711088347856},{"$f":"'COM S curve-disconnect'!BY119","v":0.12547657532906117},{"$f":"'COM S curve-disconnect'!BZ119","v":0.12484919245241589},{"$f":"'COM S curve-disconnect'!CA119","v":0.12422494649015381},{"$f":"'COM S curve-disconnect'!CB119","v":0.12360382175770303},{"$f":"'COM S curve-disconnect'!CC119","v":0.12298580264891451},{"$f":"'COM S curve-disconnect'!CD119","v":0.12237087363566992}]
["Frankston (C)",null,{"$f":"Customers!C263","v":0},{"$f":"Customers!D263","v":0},{"$f":"Customers!E263","v":0},{"$f":"Customers!F263","v":0},{"$f":"Customers!G263","v":0},{"$f":"Customers!H263","v":0},{"$f":"Customers!I263","v":1},{"$f":"Customers!J263","v":0},{"$f":"'COM S curve-disconnect'!C120","v":0.33333333333333331},{"$f":"'COM S curve-disconnect'!D120","v":0},{"$f":"'COM S curve-disconnect'!E120","v":0},{"$f":"'COM S curve-disconnect'!F120","v":0},{"$f":"'COM S curve-disconnect'!G120","v":0},{"$f":"'COM S curve-disconnect'!H120","v":0},{"$f":"'COM S curve-disconnect'!I120","v":0},{"$f":"'COM S curve-disconnect'!J120","v":0},{"$f":"'COM S curve-disconnect'!K120","v":0},{"$f":"'COM S curve-disconnect'!L120","v":0},{"$f":"'COM S curve-disconnect'!M120","v":0},{"$f":"'COM S curve-disconnect'!N120","v":0},{"$f":"'COM S curve-disconnect'!O120","v":0},{"$f":"'COM S curve-disconnect'!P120","v":0},{"$f":"'COM S curve-disconnect'!Q120","v":0},{"$f":"'COM S curve-disconnect'!R120","v":0},{"$f":"'COM S curve-disconnect'!S120","v":0},{"$f":"'COM S curve-disconnect'!T120","v":0},{"$f":"'COM S curve-disconnect'!U120","v":0},{"$f":"'COM S curve-disconnect'!V120","v":0},{"$f":"'COM S curve-disconnect'!W120","v":0},{"$f":"'COM S curve-disconnect'!X120","v":0},{"$f":"'COM S curve-disconnect'!Y120","v":0},{"$f":"'COM S curve-disconnect'!Z120","v":0},{"$f":"'COM S curve-disconnect'!AA120","v":0},{"$f":"'COM S curve-disconnect'!AB120","v":0},{"$f":"'COM S curve-disconnect'!AC120","v":0},{"$f":"'COM S curve-disconnect'!AD120","v":0},{"$f":"'COM S curve-disconnect'!AE120","v":0},{"$f":"'COM S curve-disconnect'!AF120","v":0},{"$f":"'COM S curve-disconnect'!AG120","v":0},{"$f":"'COM S curve-disconnect'!AH120","v":0},{"$f":"'COM S curve-disconnect'!AI120","v":0},{"$f":"'COM S curve-disconnect'!AJ120","v":0},{"$f":"'COM S curve-disconnect'!AK120","v":0},{"$f":"'COM S curve-disconnect'!AL120","v":0},{"$f":"'COM S curve-disconnect'!AM120","v":0},{"$f":"'COM S curve-disconnect'!AN120","v":0},{"$f":"'COM S curve-disconnect'!AO120","v":0},{"$f":"'COM S curve-disconnect'!AP120","v":0},{"$f":"'COM S curve-disconnect'!AQ120","v":0},{"$f":"'COM S curve-disconnect'!AR120","v":0},{"$f":"'COM S curve-disconnect'!AS120","v":0},{"$f":"'COM S curve-disconnect'!AT120","v":0},{"$f":"'COM S curve-disconnect'!AU120","v":0},{"$f":"'COM S curve-disconnect'!AV120","v":0},{"$f":"'COM S curve-disconnect'!AW120","v":0},{"$f":"'COM S curve-disconnect'!AX120","v":0},{"$f":"'COM S curve-disconnect'!AY120","v":0},{"$f":"'COM S curve-disconnect'!AZ120","v":0},{"$f":"'COM S curve-disconnect'!BA120","v":0},{"$f":"'COM S curve-disconnect'!BB120","v":0},{"$f":"'COM S curve-disconnect'!BC120","v":0},{"$f":"'COM S curve-disconnect'!BD120","v":0},{"$f":"'COM S curve-disconnect'!BE120","v":0},{"$f":"'COM S curve-disconnect'!BF120","v":0},{"$f":"'COM S curve-disconnect'!BG120","v":0},{"$f":"'COM S curve-disconnect'!BH120","v":0},{"$f":"'COM S curve-disconnect'!BI120","v":0},{"$f":"'COM S curve-disconnect'!BJ120","v":0},{"$f":"'COM S curve-disconnect'!BK120","v":0},{"$f":"'COM S curve-disconnect'!BL120","v":0},{"$f":"'COM S curve-disconnect'!BM120","v":0},{"$f":"'COM S curve-disconnect'!BN120","v":0},{"$f":"'COM S curve-disconnect'!BO120","v":0},{"$f":"'COM S curve-disconnect'!BP120","v":0},{"$f":"'COM S curve-disconnect'!BQ120","v":0},{"$f":"'COM S curve-disconnect'!BR120","v":0},{"$f":"'COM S curve-disconnect'!BS120","v":0},{"$f":"'COM S curve-disconnect'!BT120","v":0},{"$f":"'COM S curve-disconnect'!BU120","v":0},{"$f":"'COM S curve-disconnect'!BV120","v":0},{"$f":"'COM S curve-disconnect'!BW120","v":0},{"$f":"'COM S curve-disconnect'!BX120","v":0},{"$f":"'COM S curve-disconnect'!BY120","v":0},{"$f":"'COM S curve-disconnect'!BZ120","v":0},{"$f":"'COM S curve-disconnect'!CA120","v":0},{"$f":"'COM S curve-disconnect'!CB120","v":0},{"$f":"'COM S curve-disconnect'!CC120","v":0},{"$f":"'COM S curve-disconnect'!CD120","v":0}]
["Glen Eira (C)",null,{"$f":"Customers!C264","v":20},{"$f":"Customers!D264","v":35},{"$f":"Customers!E264","v":46},{"$f":"Customers!F264","v":41},{"$f":"Customers!G264","v":31},{"$f":"Customers!H264","v":24},{"$f":"Customers!I264","v":30},{"$f":"Customers!J264","v":32},{"$f":"'COM S curve-disconnect'!C121","v":32.666666666666671},{"$f":"'COM S curve-disconnect'!D121","v":23.876666666666665},{"$f":"'COM S curve-disconnect'!E121","v":58.79228333333333},{"$f":"'COM S curve-disconnect'!F121","v":59.498321916666669},{"$f":"'COM S curve-disconnect'!G121","v":19.200830307083333},{"$f":"'COM S curve-disconnect'!H121","v":21.134826155547916},{"$f":"'COM S curve-disconnect'!I121","v":37.054152024770175},{"$f":"'COM S curve-disconnect'!J121","v":35.878881264646324},{"$f":"'COM S curve-disconnect'!K121","v":50.704486858323094},{"$f":"'COM S curve-disconnect'!L121","v":47.450964424031483},{"$f":"'COM S curve-disconnect'!M121","v":35.213709601911319},{"$f":"'COM S curve-disconnect'!N121","v":34.037641053901766},{"$f":"'COM S curve-disconnect'!O121","v":38.867452848632254},{"$f":"'COM S curve-disconnect'!P121","v":36.673115584389095},{"$f":"'COM S curve-disconnect'!Q121","v":16.489750006467151},{"$f":"'COM S curve-disconnect'!R121","v":21.407301256434813},{"$f":"'COM S curve-disconnect'!S121","v":25.300264750152639},{"$f":"'COM S curve-disconnect'!T121","v":28.173763426401877},{"$f":"'COM S curve-disconnect'!U121","v":28.032894609269867},{"$f":"'COM S curve-disconnect'!V121","v":25.892730136223516},{"$f":"'COM S curve-disconnect'!W121","v":23.763266485542399},{"$f":"'COM S curve-disconnect'!X121","v":21.64445015311469},{"$f":"'COM S curve-disconnect'!Y121","v":20.536227902349115},{"$f":"'COM S curve-disconnect'!Z121","v":19.43354676283737},{"$f":"'COM S curve-disconnect'!AA121","v":17.336379029023181},{"$f":"'COM S curve-disconnect'!AB121","v":16.249697133878065},{"$f":"'COM S curve-disconnect'!AC121","v":15.168448648208676},{"$f":"'COM S curve-disconnect'!AD121","v":14.092606404967633},{"$f":"'COM S curve-disconnect'!AE121","v":13.022143372942795},{"$f":"'COM S curve-disconnect'!AF121","v":11.957032656078081},{"$f":"'COM S curve-disconnect'!AG121","v":10.897247492797691},{"$f":"'COM S curve-disconnect'!AH121","v":10.842761255333702},{"$f":"'COM S curve-disconnect'!AI121","v":9.7885474490570328},{"$f":"'COM S curve-disconnect'!AJ121","v":8.7396047118117473},{"$f":"'COM S curve-disconnect'!AK121","v":8.6959066882526894},{"$f":"'COM S curve-disconnect'!AL121","v":7.6524271548114262},{"$f":"'COM S curve-disconnect'!AM121","v":7.6141650190373689},{"$f":"'COM S curve-disconnect'!AN121","v":6.5760941939421818},{"$f":"'COM S curve-disconnect'!AO121","v":6.5432137229724709},{"$f":"'COM S curve-disconnect'!AP121","v":5.510497654357609},{"$f":"'COM S curve-disconnect'!AQ121","v":5.4829451660858206},{"$f":"'COM S curve-disconnect'!AR121","v":5.4555304402553917},{"$f":"'COM S curve-disconnect'!AS121","v":4.4282527880541149},{"$f":"'COM S curve-disconnect'!AT121","v":4.406111524113844},{"$f":"'COM S curve-disconnect'!AU121","v":4.3840809664932747},{"$f":"'COM S curve-disconnect'!AV121","v":3.3621605616608088},{"$f":"'COM S curve-disconnect'!AW121","v":3.3453497588525045},{"$f":"'COM S curve-disconnect'!AX121","v":3.3286230100582421},{"$f":"'COM S curve-disconnect'!AY121","v":3.3119798950079509},{"$f":"'COM S curve-disconnect'!AZ121","v":2.2954199955329111},{"$f":"'COM S curve-disconnect'!BA121","v":2.2839428955552465},{"$f":"'COM S curve-disconnect'!BB121","v":2.27252318107747},{"$f":"'COM S curve-disconnect'!BC121","v":2.2611605651720827},{"$f":"'COM S curve-disconnect'!BD121","v":2.2498547623462226},{"$f":"'COM S curve-disconnect'!BE121","v":2.2386054885344913},{"$f":"'COM S curve-disconnect'!BF121","v":2.2274124610918187},{"$f":"'COM S curve-disconnect'!BG121","v":1.2162753987863597},{"$f":"'COM S curve-disconnect'!BH121","v":1.2101940217924279},{"$f":"'COM S curve-disconnect'!BI121","v":1.2041430516834659},{"$f":"'COM S curve-disconnect'!BJ121","v":1.1981223364250484},{"$f":"'COM S curve-disconnect'!BK121","v":1.1921317247429233},{"$f":"'COM S curve-disconnect'!BL121","v":1.1861710661192086},{"$f":"'COM S curve-disconnect'!BM121","v":1.1802402107886125},{"$f":"'COM S curve-disconnect'!BN121","v":1.1743390097346695},{"$f":"'COM S curve-disconnect'!BO121","v":1.1684673146859963},{"$f":"'COM S curve-disconnect'!BP121","v":1.1626249781125662},{"$f":"'COM S curve-disconnect'!BQ121","v":1.1568118532220033},{"$f":"'COM S curve-disconnect'!BR121","v":1.1510277939558935},{"$f":"'COM S curve-disconnect'!BS121","v":0.14527265498611391},{"$f":"'COM S curve-disconnect'!BT121","v":0.14454629171118333},{"$f":"'COM S curve-disconnect'!BU121","v":0.14382356025262741},{"$f":"'COM S curve-disconnect'!BV121","v":0.14310444245136428},{"$f":"'COM S curve-disconnect'!BW121","v":0.14238892023910746},{"$f":"'COM S curve-disconnect'!BX121","v":0.14167697563791193},{"$f":"'COM S curve-disconnect'!BY121","v":0.14096859075972237},{"$f":"'COM S curve-disconnect'!BZ121","v":0.14026374780592377},{"$f":"'COM S curve-disconnect'!CA121","v":0.13956242906689414},{"$f":"'COM S curve-disconnect'!CB121","v":0.13886461692155966},{"$f":"'COM S curve-disconnect'!CC121","v":0.13817029383695187},{"$f":"'COM S curve-disconnect'!CD121","v":0.1374794423677671}]
["Greater Dandenong (C)",null,{"$f":"Customers!C265","v":28},{"$f":"Customers!D265","v":61},{"$f":"Customers!E265","v":54},{"$f":"Customers!F265","v":46},{"$f":"Customers!G265","v":54},{"$f":"Customers!H265","v":45},{"$f":"Customers!I265","v":112},{"$f":"Customers!J265","v":40},{"$f":"'COM S curve-disconnect'!C122","v":65.666666666666671},{"$f":"'COM S curve-disconnect'!D122","v":16.066666666666666},{"$f":"'COM S curve-disconnect'!E122","v":84.061333333333337},{"$f":"'COM S curve-disconnect'!F122","v":79.641026666666662},{"$f":"'COM S curve-disconnect'!G122","v":11.242821533333334},{"$f":"'COM S curve-disconnect'!H122","v":14.256607425666665},{"$f":"'COM S curve-disconnect'!I122","v":56.245324388538336},{"$f":"'COM S curve-disconnect'!J122","v":55.969097766595638},{"$f":"'COM S curve-disconnect'!K122","v":65.694252277762658},{"$f":"'COM S curve-disconnect'!L122","v":61.365781016373852},{"$f":"'COM S curve-disconnect'!M122","v":54.05895211129198},{"$f":"'COM S curve-disconnect'!N122","v":50.788657350735519},{"$f":"'COM S curve-disconnect'!O122","v":49.534714063981845},{"$f":"'COM S curve-disconnect'!P122","v":45.287040493661934},{"$f":"'COM S curve-disconnect'!Q122","v":25.060605291193625},{"$f":"'COM S curve-disconnect'!R122","v":35.935302264737658},{"$f":"'COM S curve-disconnect'!S122","v":37.755625753413966},{"$f":"'COM S curve-disconnect'!T122","v":35.566847624646897},{"$f":"'COM S curve-disconnect'!U122","v":32.389013386523665},{"$f":"'COM S curve-disconnect'!V122","v":30.227068319591044},{"$f":"'COM S curve-disconnect'!W122","v":28.075932977993091},{"$f":"'COM S curve-disconnect'!X122","v":25.935553313103124},{"$f":"'COM S curve-disconnect'!Y122","v":24.805875546537607},{"$f":"'COM S curve-disconnect'!Z122","v":22.68184616880492},{"$f":"'COM S curve-disconnect'!AA122","v":20.568436937960897},{"$f":"'COM S curve-disconnect'!AB122","v":19.465594753271091},{"$f":"'COM S curve-disconnect'!AC122","v":18.368266779504737},{"$f":"'COM S curve-disconnect'!AD122","v":17.276425445607213},{"$f":"'COM S curve-disconnect'!AE122","v":15.190043318379177},{"$f":"'COM S curve-disconnect'!AF122","v":14.114093101787279},{"$f":"'COM S curve-disconnect'!AG122","v":13.043522636278343},{"$f":"'COM S curve-disconnect'!AH122","v":12.978305023096953},{"$f":"'COM S curve-disconnect'!AI122","v":11.913413497981468},{"$f":"'COM S curve-disconnect'!AJ122","v":10.85384643049156},{"$f":"'COM S curve-disconnect'!AK122","v":9.7995771983391027},{"$f":"'COM S curve-disconnect'!AL122","v":9.7505793123474067},{"$f":"'COM S curve-disconnect'!AM122","v":8.7018264157856695},{"$f":"'COM S curve-disconnect'!AN122","v":7.658317283706741},{"$f":"'COM S curve-disconnect'!AO122","v":7.6200256972882077},{"$f":"'COM S curve-disconnect'!AP122","v":6.5819255688017666},{"$f":"'COM S curve-disconnect'!AQ122","v":6.5490159409577577},{"$f":"'COM S curve-disconnect'!AR122","v":5.5162708612529689},{"$f":"'COM S curve-disconnect'!AS122","v":5.4886895069467041},{"$f":"'COM S curve-disconnect'!AT122","v":5.4612460594119705},{"$f":"'COM S curve-disconnect'!AU122","v":4.4339398291149106},{"$f":"'COM S curve-disconnect'!AV122","v":4.4117701299693364},{"$f":"'COM S curve-disconnect'!AW122","v":4.3897112793194895},{"$f":"'COM S curve-disconnect'!AX122","v":3.3677627229228921},{"$f":"'COM S curve-disconnect'!AY122","v":3.3509239093082774},{"$f":"'COM S curve-disconnect'!AZ122","v":3.3341692897617361},{"$f":"'COM S curve-disconnect'!BA122","v":3.3174984433129273},{"$f":"'COM S curve-disconnect'!BB122","v":3.3009109510963626},{"$f":"'COM S curve-disconnect'!BC122","v":2.2844063963408807},{"$f":"'COM S curve-disconnect'!BD122","v":2.2729843643591767},{"$f":"'COM S curve-disconnect'!BE122","v":2.2616194425373806},{"$f":"'COM S curve-disconnect'!BF122","v":2.2503113453246937},{"$f":"'COM S curve-disconnect'!BG122","v":2.2390597885980701},{"$f":"'COM S curve-disconnect'!BH122","v":2.2278644896550799},{"$f":"'COM S curve-disconnect'!BI122","v":1.2167251672068045},{"$f":"'COM S curve-disconnect'!BJ122","v":1.2106415413707705},{"$f":"'COM S curve-disconnect'!BK122","v":1.2045883336639167},{"$f":"'COM S curve-disconnect'!BL122","v":1.198565391995597},{"$f":"'COM S curve-disconnect'!BM122","v":1.1925725650356191},{"$f":"'COM S curve-disconnect'!BN122","v":1.1866097022104409},{"$f":"'COM S curve-disconnect'!BO122","v":1.1806766536993889},{"$f":"'COM S curve-disconnect'!BP122","v":1.174773270430892},{"$f":"'COM S curve-disconnect'!BQ122","v":1.1688994040787375},{"$f":"'COM S curve-disconnect'!BR122","v":1.1630549070583438},{"$f":"'COM S curve-disconnect'!BS122","v":1.1572396325230521},{"$f":"'COM S curve-disconnect'!BT122","v":1.1514534343604368},{"$f":"'COM S curve-disconnect'!BU122","v":0.14569616718863457},{"$f":"'COM S curve-disconnect'!BV122","v":0.14496768635269139},{"$f":"'COM S curve-disconnect'!BW122","v":0.14424284792092792},{"$f":"'COM S curve-disconnect'!BX122","v":0.14352163368132329},{"$f":"'COM S curve-disconnect'!BY122","v":0.14280402551291668},{"$f":"'COM S curve-disconnect'!BZ122","v":0.1420900053853521},{"$f":"'COM S curve-disconnect'!CA122","v":0.14137955535842534},{"$f":"'COM S curve-disconnect'!CB122","v":0.14067265758163319},{"$f":"'COM S curve-disconnect'!CC122","v":0.13996929429372504},{"$f":"'COM S curve-disconnect'!CD122","v":0.13926944782225642}]
["Kingston (C)",null,{"$f":"Customers!C266","v":22},{"$f":"Customers!D266","v":49},{"$f":"Customers!E266","v":47},{"$f":"Customers!F266","v":64},{"$f":"Customers!G266","v":53},{"$f":"Customers!H266","v":42},{"$f":"Customers!I266","v":77},{"$f":"Customers!J266","v":40},{"$f":"'COM S curve-disconnect'!C123","v":54},{"$f":"'COM S curve-disconnect'!D123","v":20.79},{"$f":"'COM S curve-disconnect'!E123","v":77.741050000000001},{"$f":"'COM S curve-disconnect'!F123","v":75.35234475},{"$f":"'COM S curve-disconnect'!G123","v":14.97558302625},{"$f":"'COM S curve-disconnect'!H123","v":18.95570511111875},{"$f":"'COM S curve-disconnect'!I123","v":50.905926585563158},{"$f":"'COM S curve-disconnect'!J123","v":49.65639695263534},{"$f":"'COM S curve-disconnect'!K123","v":61.413114967872161},{"$f":"'COM S curve-disconnect'!L123","v":57.106049393032805},{"$f":"'COM S curve-disconnect'!M123","v":47.820519146067639},{"$f":"'COM S curve-disconnect'!N123","v":45.581416550337302},{"$f":"'COM S curve-disconnect'!O123","v":46.353509467585617},{"$f":"'COM S curve-disconnect'!P123","v":43.121741920247686},{"$f":"'COM S curve-disconnect'!Q123","v":21.906133210646448},{"$f":"'COM S curve-disconnect'!R123","v":30.796602544593217},{"$f":"'COM S curve-disconnect'!S123","v":35.642619531870253},{"$f":"'COM S curve-disconnect'!T123","v":33.4644064342109},{"$f":"'COM S curve-disconnect'!U123","v":31.297084402039843},{"$f":"'COM S curve-disconnect'!V123","v":29.140598980029644},{"$f":"'COM S curve-disconnect'!W123","v":26.994895985129496},{"$f":"'COM S curve-disconnect'!X123","v":24.859921505203847},{"$f":"'COM S curve-disconnect'!Y123","v":23.735621897677831},{"$f":"'COM S curve-disconnect'!Z123","v":21.616943788189438},{"$f":"'COM S curve-disconnect'!AA123","v":20.508859069248494},{"$f":"'COM S curve-disconnect'!AB123","v":18.406314773902249},{"$f":"'COM S curve-disconnect'!AC123","v":17.31428320003274},{"$f":"'COM S curve-disconnect'!AD123","v":16.227711784032575},{"$f":"'COM S curve-disconnect'!AE123","v":15.146573225112412},{"$f":"'COM S curve-disconnect'!AF123","v":14.07084035898685},{"$f":"'COM S curve-disconnect'!AG123","v":13.000486157191917},{"$f":"'COM S curve-disconnect'!AH123","v":11.935483726405957},{"$f":"'COM S curve-disconnect'!AI123","v":10.875806307773926},{"$f":"'COM S curve-disconnect'!AJ123","v":9.8214272762350578},{"$f":"'COM S curve-disconnect'!AK123","v":9.7723201398538819},{"$f":"'COM S curve-disconnect'!AL123","v":8.7234585391546133},{"$f":"'COM S curve-disconnect'!AM123","v":8.6798412464588388},{"$f":"'COM S curve-disconnect'!AN123","v":7.6364420402265454},{"$f":"'COM S curve-disconnect'!AO123","v":6.5982598300254125},{"$f":"'COM S curve-disconnect'!AP123","v":6.5652685308752856},{"$f":"'COM S curve-disconnect'!AQ123","v":6.5324421882209087},{"$f":"'COM S curve-disconnect'!AR123","v":5.4997799772798048},{"$f":"'COM S curve-disconnect'!AS123","v":5.4722810773934052},{"$f":"'COM S curve-disconnect'!AT123","v":4.4449196720064386},{"$f":"'COM S curve-disconnect'!AU123","v":4.4226950736464063},{"$f":"'COM S curve-disconnect'!AV123","v":4.4005815982781744},{"$f":"'COM S curve-disconnect'!AW123","v":4.3785786902867834},{"$f":"'COM S curve-disconnect'!AX123","v":3.3566857968353494},{"$f":"'COM S curve-disconnect'!AY123","v":3.3399023678511726},{"$f":"'COM S curve-disconnect'!AZ123","v":3.3232028560119167},{"$f":"'COM S curve-disconnect'!BA123","v":3.3065868417318574},{"$f":"'COM S curve-disconnect'!BB123","v":2.2900539075231978},{"$f":"'COM S curve-disconnect'!BC123","v":2.2786036379855821},{"$f":"'COM S curve-disconnect'!BD123","v":2.2672106197956539},{"$f":"'COM S curve-disconnect'!BE123","v":2.2558745666966757},{"$f":"'COM S curve-disconnect'!BF123","v":2.2445951938631925},{"$f":"'COM S curve-disconnect'!BG123","v":2.2333722178938764},{"$f":"'COM S curve-disconnect'!BH123","v":1.2222053568044071},{"$f":"'COM S curve-disconnect'!BI123","v":1.216094330020385},{"$f":"'COM S curve-disconnect'!BJ123","v":1.2100138583702831},{"$f":"'COM S curve-disconnect'!BK123","v":1.2039637890784316},{"$f":"'COM S curve-disconnect'!BL123","v":1.1979439701330397},{"$f":"'COM S curve-disconnect'!BM123","v":1.1919542502823743},{"$f":"'COM S curve-disconnect'!BN123","v":1.1859944790309624},{"$f":"'COM S curve-disconnect'!BO123","v":1.1800645066358078},{"$f":"'COM S curve-disconnect'!BP123","v":1.1741641841026287},{"$f":"'COM S curve-disconnect'!BQ123","v":1.1682933631821155},{"$f":"'COM S curve-disconnect'!BR123","v":1.1624518963662049},{"$f":"'COM S curve-disconnect'!BS123","v":1.1566396368843739},{"$f":"'COM S curve-disconnect'!BT123","v":1.150856438699952},{"$f":"'COM S curve-disconnect'!BU123","v":0.14510215650645225},{"$f":"'COM S curve-disconnect'!BV123","v":0.14437664572391998},{"$f":"'COM S curve-disconnect'!BW123","v":0.14365476249530038},{"$f":"'COM S curve-disconnect'!BX123","v":0.14293648868282391},{"$f":"'COM S curve-disconnect'!BY123","v":0.14222180623940978},{"$f":"'COM S curve-disconnect'!BZ123","v":0.14151069720821272},{"$f":"'COM S curve-disconnect'!CA123","v":0.14080314372217168},{"$f":"'COM S curve-disconnect'!CB123","v":0.14009912800356081},{"$f":"'COM S curve-disconnect'!CC123","v":0.13939863236354302},{"$f":"'COM S curve-disconnect'!CD123","v":0.13870163920172529}]
["Knox (C)",null,{"$f":"Customers!C267","v":19},{"$f":"Customers!D267","v":36},{"$f":"Customers!E267","v":39},{"$f":"Customers!F267","v":34},{"$f":"Customers!G267","v":36},{"$f":"Customers!H267","v":33},{"$f":"Customers!I267","v":59},{"$f":"Customers!J267","v":31},{"$f":"'COM S curve-disconnect'!C124","v":42},{"$f":"'COM S curve-disconnect'!D124","v":18.3},{"$f":"'COM S curve-disconnect'!E124","v":71.258499999999998},{"$f":"'COM S curve-disconnect'!F124","v":68.902207500000003},{"$f":"'COM S curve-disconnect'!G124","v":13.557696462500001},{"$f":"'COM S curve-disconnect'!H124","v":16.5399079801875},{"$f":"'COM S curve-disconnect'!I124","v":45.497208440286563},{"$f":"'COM S curve-disconnect'!J124","v":44.274722398085132},{"$f":"'COM S curve-disconnect'!K124","v":57.058348786094705},{"$f":"'COM S curve-disconnect'!L124","v":52.773057042164233},{"$f":"'COM S curve-disconnect'!M124","v":43.509191756953406},{"$f":"'COM S curve-disconnect'!N124","v":41.291645798168645},{"$f":"'COM S curve-disconnect'!O124","v":43.085187569177798},{"$f":"'COM S curve-disconnect'!P124","v":39.869761631331912},{"$f":"'COM S curve-disconnect'!Q124","v":19.670412823175248},{"$f":"'COM S curve-disconnect'!R124","v":27.572060759059372},{"$f":"'COM S curve-disconnect'!S124","v":32.434200455264076},{"$f":"'COM S curve-disconnect'!T124","v":31.272029452987756},{"$f":"'COM S curve-disconnect'!U124","v":29.115669305722818},{"$f":"'COM S curve-disconnect'!V124","v":26.970090959194202},{"$f":"'COM S curve-disconnect'!W124","v":24.835240504398232},{"$f":"'COM S curve-disconnect'!X124","v":22.711064301876242},{"$f":"'COM S curve-disconnect'!Y124","v":21.597508980366861},{"$f":"'COM S curve-disconnect'!Z124","v":19.489521435465026},{"$f":"'COM S curve-disconnect'!AA124","v":18.3920738282877},{"$f":"'COM S curve-disconnect'!AB124","v":17.30011345914626},{"$f":"'COM S curve-disconnect'!AC124","v":16.213612891850531},{"$f":"'COM S curve-disconnect'!AD124","v":15.132544827391278},{"$f":"'COM S curve-disconnect'!AE124","v":14.056882103254321},{"$f":"'COM S curve-disconnect'!AF124","v":12.98659769273805},{"$f":"'COM S curve-disconnect'!AG124","v":11.92166470427436},{"$f":"'COM S curve-disconnect'!AH124","v":10.862056380752987},{"$f":"'COM S curve-disconnect'!AI124","v":9.807746098849222},{"$f":"'COM S curve-disconnect'!AJ124","v":9.7587073683549761},{"$f":"'COM S curve-disconnect'!AK124","v":8.7099138315132016},{"$f":"'COM S curve-disconnect'!AL124","v":7.6663642623556356},{"$f":"'COM S curve-disconnect'!AM124","v":7.6280324410438576},{"$f":"'COM S curve-disconnect'!AN124","v":6.5898922788386383},{"$f":"'COM S curve-disconnect'!AO124","v":6.5569428174444448},{"$f":"'COM S curve-disconnect'!AP124","v":5.5241581033572222},{"$f":"'COM S curve-disconnect'!AQ124","v":5.4965373128404362},{"$f":"'COM S curve-disconnect'!AR124","v":5.4690546262762343},{"$f":"'COM S curve-disconnect'!AS124","v":4.4417093531448533},{"$f":"'COM S curve-disconnect'!AT124","v":4.419500806379129},{"$f":"'COM S curve-disconnect'!AU124","v":4.3974033023472332},{"$f":"'COM S curve-disconnect'!AV124","v":4.375416285835497},{"$f":"'COM S curve-disconnect'!AW124","v":3.3535392044063195},{"$f":"'COM S curve-disconnect'!AX124","v":3.3367715083842882},{"$f":"'COM S curve-disconnect'!AY124","v":3.3200876508423667},{"$f":"'COM S curve-disconnect'!AZ124","v":3.3034872125881547},{"$f":"'COM S curve-disconnect'!BA124","v":2.2869697765252139},{"$f":"'COM S curve-disconnect'!BB124","v":2.275534927642588},{"$f":"'COM S curve-disconnect'!BC124","v":2.2641572530043748},{"$f":"'COM S curve-disconnect'!BD124","v":2.2528364667393532},{"$f":"'COM S curve-disconnect'!BE124","v":2.241572284405656},{"$f":"'COM S curve-disconnect'!BF124","v":2.2303644229836279},{"$f":"'COM S curve-disconnect'!BG124","v":1.2192126008687099},{"$f":"'COM S curve-disconnect'!BH124","v":1.2131165378643662},{"$f":"'COM S curve-disconnect'!BI124","v":1.2070509551750446},{"$f":"'COM S curve-disconnect'!BJ124","v":1.2010157003991693},{"$f":"'COM S curve-disconnect'!BK124","v":1.1950106218971734},{"$f":"'COM S curve-disconnect'!BL124","v":1.1890355687876875},{"$f":"'COM S curve-disconnect'!BM124","v":1.1830903909437491},{"$f":"'COM S curve-disconnect'!BN124","v":1.1771749389890305},{"$f":"'COM S curve-disconnect'!BO124","v":1.1712890642940852},{"$f":"'COM S curve-disconnect'!BP124","v":1.1654326189726147},{"$f":"'COM S curve-disconnect'!BQ124","v":1.1596054558777518},{"$f":"'COM S curve-disconnect'!BR124","v":1.153807428598363},{"$f":"'COM S curve-disconnect'!BS124","v":0.14803839145537112},{"$f":"'COM S curve-disconnect'!BT124","v":0.14729819949809425},{"$f":"'COM S curve-disconnect'!BU124","v":0.14656170850060377},{"$f":"'COM S curve-disconnect'!BV124","v":0.14582889995810075},{"$f":"'COM S curve-disconnect'!BW124","v":0.14509975545831025},{"$f":"'COM S curve-disconnect'!BX124","v":0.14437425668101869},{"$f":"'COM S curve-disconnect'!BY124","v":0.1436523853976136},{"$f":"'COM S curve-disconnect'!BZ124","v":0.14293412347062556},{"$f":"'COM S curve-disconnect'!CA124","v":0.14221945285327242},{"$f":"'COM S curve-disconnect'!CB124","v":0.14150835558900607},{"$f":"'COM S curve-disconnect'!CC124","v":0.14080081381106102},{"$f":"'COM S curve-disconnect'!CD124","v":0.14009680974200572}]
["Manningham (C)",null,{"$f":"Customers!C268","v":14},{"$f":"Customers!D268","v":12},{"$f":"Customers!E268","v":13},{"$f":"Customers!F268","v":14},{"$f":"Customers!G268","v":15},{"$f":"Customers!H268","v":9},{"$f":"Customers!I268","v":15},{"$f":"Customers!J268","v":8},{"$f":"'COM S curve-disconnect'!C125","v":10.666666666666666},{"$f":"'COM S curve-disconnect'!D125","v":8.7566666666666677},{"$f":"'COM S curve-disconnect'!E125","v":36.737883333333336},{"$f":"'COM S curve-disconnect'!F125","v":35.554193916666669},{"$f":"'COM S curve-disconnect'!G125","v":6.3764229470833333},{"$f":"'COM S curve-disconnect'!H125","v":8.3695408323479175},{"$f":"'COM S curve-disconnect'!I125","v":25.347693128186176},{"$f":"'COM S curve-disconnect'!J125","v":24.220954662545246},{"$f":"'COM S curve-disconnect'!K125","v":28.099849889232519},{"$f":"'COM S curve-disconnect'!L125","v":26.959350639786358},{"$f":"'COM S curve-disconnect'!M125","v":22.824553886587427},{"$f":"'COM S curve-disconnect'!N125","v":21.710431117154489},{"$f":"'COM S curve-disconnect'!O125","v":21.601878961568715},{"$f":"'COM S curve-disconnect'!P125","v":19.493869566760871},{"$f":"'COM S curve-disconnect'!Q125","v":10.396400218927068},{"$f":"'COM S curve-disconnect'!R125","v":14.344418217832434},{"$f":"'COM S curve-disconnect'!S125","v":16.27269612674327},{"$f":"'COM S curve-disconnect'!T125","v":15.191332646109554},{"$f":"'COM S curve-disconnect'!U125","v":14.115375982879007},{"$f":"'COM S curve-disconnect'!V125","v":13.044799102964612},{"$f":"'COM S curve-disconnect'!W125","v":12.979575107449788},{"$f":"'COM S curve-disconnect'!X125","v":11.91467723191254},{"$f":"'COM S curve-disconnect'!Y125","v":10.855103845752977},{"$f":"'COM S curve-disconnect'!Z125","v":9.8008283265242113},{"$f":"'COM S curve-disconnect'!AA125","v":9.751824184891591},{"$f":"'COM S curve-disconnect'!AB125","v":8.7030650639671325},{"$f":"'COM S curve-disconnect'!AC125","v":7.6595497386472973},{"$f":"'COM S curve-disconnect'!AD125","v":7.6212519899540609},{"$f":"'COM S curve-disconnect'!AE125","v":6.5831457300042908},{"$f":"'COM S curve-disconnect'!AF125","v":6.5502300013542687},{"$f":"'COM S curve-disconnect'!AG125","v":5.5174788513474979},{"$f":"'COM S curve-disconnect'!AH125","v":5.48989145709076},{"$f":"'COM S curve-disconnect'!AI125","v":5.4624419998053062},{"$f":"'COM S curve-disconnect'!AJ125","v":4.4351297898062798},{"$f":"'COM S curve-disconnect'!AK125","v":4.4129541408572486},{"$f":"'COM S curve-disconnect'!AL125","v":4.3908893701529621},{"$f":"'COM S curve-disconnect'!AM125","v":3.3689349233021972},{"$f":"'COM S curve-disconnect'!AN125","v":3.3520902486856863},{"$f":"'COM S curve-disconnect'!AO125","v":3.3353297974422578},{"$f":"'COM S curve-disconnect'!AP125","v":3.3186531484550468},{"$f":"'COM S curve-disconnect'!AQ125","v":3.3020598827127712},{"$f":"'COM S curve-disconnect'!AR125","v":2.2855495832992077},{"$f":"'COM S curve-disconnect'!AS125","v":2.2741218353827115},{"$f":"'COM S curve-disconnect'!AT125","v":2.2627512262057978},{"$f":"'COM S curve-disconnect'!AU125","v":2.251437470074769},{"$f":"'COM S curve-disconnect'!AV125","v":2.2401802827243951},{"$f":"'COM S curve-disconnect'!AW125","v":2.228979381310773},{"$f":"'COM S curve-disconnect'!AX125","v":1.2178344844042193},{"$f":"'COM S curve-disconnect'!AY125","v":1.2117453119821981},{"$f":"'COM S curve-disconnect'!AZ125","v":1.2056865854222871},{"$f":"'COM S curve-disconnect'!BA125","v":1.1996581524951757},{"$f":"'COM S curve-disconnect'!BB125","v":1.1936598617326999},{"$f":"'COM S curve-disconnect'!BC125","v":1.1876915624240363},{"$f":"'COM S curve-disconnect'!BD125","v":1.1817531046119161},{"$f":"'COM S curve-disconnect'!BE125","v":1.1758443390888567},{"$f":"'COM S curve-disconnect'!BF125","v":1.1699651173934122},{"$f":"'COM S curve-disconnect'!BG125","v":1.1641152918064452},{"$f":"'COM S curve-disconnect'!BH125","v":1.158294715347413},{"$f":"'COM S curve-disconnect'!BI125","v":1.152503241770676},{"$f":"'COM S curve-disconnect'!BJ125","v":0.1467407255618226},{"$f":"'COM S curve-disconnect'!BK125","v":0.14600702193401349},{"$f":"'COM S curve-disconnect'!BL125","v":0.14527698682434342},{"$f":"'COM S curve-disconnect'!BM125","v":0.1445506018902217},{"$f":"'COM S curve-disconnect'!BN125","v":0.1438278488807706},{"$f":"'COM S curve-disconnect'!BO125","v":0.14310870963636674},{"$f":"'COM S curve-disconnect'!BP125","v":0.14239316608818492},{"$f":"'COM S curve-disconnect'!BQ125","v":0.141681200257744},{"$f":"'COM S curve-disconnect'!BR125","v":0.14097279425645529},{"$f":"'COM S curve-disconnect'!BS125","v":0.14026793028517301},{"$f":"'COM S curve-disconnect'!BT125","v":0.13956659063374713},{"$f":"'COM S curve-disconnect'!BU125","v":0.13886875768057841},{"$f":"'COM S curve-disconnect'!BV125","v":0.1381744138921755},{"$f":"'COM S curve-disconnect'!BW125","v":0.13748354182271461},{"$f":"'COM S curve-disconnect'!BX125","v":0.13679612411360104},{"$f":"'COM S curve-disconnect'!BY125","v":0.13611214349303302},{"$f":"'COM S curve-disconnect'!BZ125","v":0.13543158277556785},{"$f":"'COM S curve-disconnect'!CA125","v":0.13475442486169004},{"$f":"'COM S curve-disconnect'!CB125","v":0.13408065273738159},{"$f":"'COM S curve-disconnect'!CC125","v":0.13341024947369468},{"$f":"'COM S curve-disconnect'!CD125","v":0.13274319822632621}]
["Maroondah (C)",null,{"$f":"Customers!C269","v":7},{"$f":"Customers!D269","v":19},{"$f":"Customers!E269","v":26},{"$f":"Customers!F269","v":19},{"$f":"Customers!G269","v":21},{"$f":"Customers!H269","v":16},{"$f":"Customers!I269","v":15},{"$f":"Customers!J269","v":21},{"$f":"'COM S curve-disconnect'!C126","v":17.333333333333332},{"$f":"'COM S curve-disconnect'!D126","v":9.8183333333333334},{"$f":"'COM S curve-disconnect'!E126","v":37.794241666666665},{"$f":"'COM S curve-disconnect'!F126","v":35.605270458333337},{"$f":"'COM S curve-disconnect'!G126","v":7.4272441060416661},{"$f":"'COM S curve-disconnect'!H126","v":9.4151078855114587},{"$f":"'COM S curve-disconnect'!I126","v":23.3880323460839},{"$f":"'COM S curve-disconnect'!J126","v":23.271092184353481},{"$f":"'COM S curve-disconnect'!K126","v":29.154736723431714},{"$f":"'COM S curve-disconnect'!L126","v":27.008963039814557},{"$f":"'COM S curve-disconnect'!M126","v":22.873918224615483},{"$f":"'COM S curve-disconnect'!N126","v":21.759548633492404},{"$f":"'COM S curve-disconnect'!O126","v":22.650750890324943},{"$f":"'COM S curve-disconnect'!P126","v":20.53749713587332},{"$f":"'COM S curve-disconnect'!Q126","v":10.434809650193952},{"$f":"'COM S curve-disconnect'!R126","v":14.382635601942983},{"$f":"'COM S curve-disconnect'!S126","v":16.310722423933267},{"$f":"'COM S curve-disconnect'!T126","v":16.229168811813601},{"$f":"'COM S curve-disconnect'!U126","v":15.148022967754533},{"$f":"'COM S curve-disconnect'!V126","v":14.072282852915761},{"$f":"'COM S curve-disconnect'!W126","v":13.001921438651182},{"$f":"'COM S curve-disconnect'!X126","v":11.936911831457925},{"$f":"'COM S curve-disconnect'!Y126","v":10.877227272300637},{"$f":"'COM S curve-disconnect'!Z126","v":9.8228411359391323},{"$f":"'COM S curve-disconnect'!AA126","v":9.7737269302594374},{"$f":"'COM S curve-disconnect'!AB126","v":8.72485829560814},{"$f":"'COM S curve-disconnect'!AC126","v":8.6812340041300988},{"$f":"'COM S curve-disconnect'!AD126","v":7.6378278341094488},{"$f":"'COM S curve-disconnect'!AE126","v":6.5996386949389017},{"$f":"'COM S curve-disconnect'!AF126","v":6.5666405014642066},{"$f":"'COM S curve-disconnect'!AG126","v":6.5338072989568863},{"$f":"'COM S curve-disconnect'!AH126","v":5.5011382624621019},{"$f":"'COM S curve-disconnect'!AI126","v":5.4736325711497908},{"$f":"'COM S curve-disconnect'!AJ126","v":4.4462644082940423},{"$f":"'COM S curve-disconnect'!AK126","v":4.4240330862525719},{"$f":"'COM S curve-disconnect'!AL126","v":4.4019129208213092},{"$f":"'COM S curve-disconnect'!AM126","v":4.3799033562172021},{"$f":"'COM S curve-disconnect'!AN126","v":3.3580038394361167},{"$f":"'COM S curve-disconnect'!AO126","v":3.3412138202389361},{"$f":"'COM S curve-disconnect'!AP126","v":3.324507751137741},{"$f":"'COM S curve-disconnect'!AQ126","v":3.3078852123820526},{"$f":"'COM S curve-disconnect'!AR126","v":2.2913457863201421},{"$f":"'COM S curve-disconnect'!AS126","v":2.2798890573885418},{"$f":"'COM S curve-disconnect'!AT126","v":2.2684896121015989},{"$f":"'COM S curve-disconnect'!AU126","v":2.2571471640410907},{"$f":"'COM S curve-disconnect'!AV126","v":2.2458614282208855},{"$f":"'COM S curve-disconnect'!AW126","v":2.2346321210797808},{"$f":"'COM S curve-disconnect'!AX126","v":1.223458960474382},{"$f":"'COM S curve-disconnect'!AY126","v":1.2173416656720102},{"$f":"'COM S curve-disconnect'!AZ126","v":1.21125495734365},{"$f":"'COM S curve-disconnect'!BA126","v":1.2051986825569319},{"$f":"'COM S curve-disconnect'!BB126","v":1.1991726891441472},{"$f":"'COM S curve-disconnect'!BC126","v":1.1931768256984263},{"$f":"'COM S curve-disconnect'!BD126","v":1.1872109415699343},{"$f":"'COM S curve-disconnect'!BE126","v":1.1812748868620846},{"$f":"'COM S curve-disconnect'!BF126","v":1.1753685124277742},{"$f":"'COM S curve-disconnect'!BG126","v":1.1694916698656352},{"$f":"'COM S curve-disconnect'!BH126","v":1.163644211516307},{"$f":"'COM S curve-disconnect'!BI126","v":1.1578259904587256},{"$f":"'COM S curve-disconnect'!BJ126","v":1.1520368605064319},{"$f":"'COM S curve-disconnect'!BK126","v":0.14627667620389978},{"$f":"'COM S curve-disconnect'!BL126","v":0.14554529282288026},{"$f":"'COM S curve-disconnect'!BM126","v":0.14481756635876586},{"$f":"'COM S curve-disconnect'!BN126","v":0.14409347852697202},{"$f":"'COM S curve-disconnect'!BO126","v":0.14337301113433717},{"$f":"'COM S curve-disconnect'!BP126","v":0.14265614607866547},{"$f":"'COM S curve-disconnect'!BQ126","v":0.14194286534827216},{"$f":"'COM S curve-disconnect'!BR126","v":0.14123315102153078},{"$f":"'COM S curve-disconnect'!BS126","v":0.14052698526642313},{"$f":"'COM S curve-disconnect'!BT126","v":0.13982435034009102},{"$f":"'COM S curve-disconnect'!BU126","v":0.13912522858839058},{"$f":"'COM S curve-disconnect'!BV126","v":0.13842960244544861},{"$f":"'COM S curve-disconnect'!BW126","v":0.13773745443322136},{"$f":"'COM S curve-disconnect'!BX126","v":0.13704876716105527},{"$f":"'COM S curve-disconnect'!BY126","v":0.13636352332524998},{"$f":"'COM S curve-disconnect'!BZ126","v":0.13568170570862373},{"$f":"'COM S curve-disconnect'!CA126","v":0.13500329718008061},{"$f":"'COM S curve-disconnect'!CB126","v":0.13432828069418021},{"$f":"'COM S curve-disconnect'!CC126","v":0.13365663929070931},{"$f":"'COM S curve-disconnect'!CD126","v":0.13298835609425574}]
["Melbourne (C)",null,{"$f":"Customers!C270","v":0},{"$f":"Customers!D270","v":5},{"$f":"Customers!E270","v":6},{"$f":"Customers!F270","v":4},{"$f":"Customers!G270","v":6},{"$f":"Customers!H270","v":5},{"$f":"Customers!I270","v":20},{"$f":"Customers!J270","v":8},{"$f":"'COM S curve-disconnect'!C127","v":11},{"$f":"'COM S curve-disconnect'!D127","v":0.89},{"$f":"'COM S curve-disconnect'!E127","v":11.900550000000001},{"$f":"'COM S curve-disconnect'!F127","v":10.841047250000001},{"$f":"'COM S curve-disconnect'!G127","v":0.78684201375000007},{"$f":"'COM S curve-disconnect'!H127","v":0.79790780368125003},{"$f":"'COM S curve-disconnect'!I127","v":9.808918264662843},{"$f":"'COM S curve-disconnect'!J127","v":9.7598736733395288},{"$f":"'COM S curve-disconnect'!K127","v":8.711074304972831},{"$f":"'COM S curve-disconnect'!L127","v":7.6675189334479672},{"$f":"'COM S curve-disconnect'!M127","v":7.6291813387807279},{"$f":"'COM S curve-disconnect'!N127","v":6.5910354320868239},{"$f":"'COM S curve-disconnect'!O127","v":6.5580802549263897},{"$f":"'COM S curve-disconnect'!P127","v":6.5252898536517581},{"$f":"'COM S curve-disconnect'!Q127","v":4.4926634043834994},{"$f":"'COM S curve-disconnect'!R127","v":5.4702000873615821},{"$f":"'COM S curve-disconnect'!S127","v":4.4428490869247739},{"$f":"'COM S curve-disconnect'!T127","v":4.4206348414901502},{"$f":"'COM S curve-disconnect'!U127","v":4.3985316672826995},{"$f":"'COM S curve-disconnect'!V127","v":4.3765390089462857},{"$f":"'COM S curve-disconnect'!W127","v":3.3546563139015544},{"$f":"'COM S curve-disconnect'!X127","v":4.3378830323320461},{"$f":"'COM S curve-disconnect'!Y127","v":4.3161936171703861},{"$f":"'COM S curve-disconnect'!Z127","v":3.2946126490845344},{"$f":"'COM S curve-disconnect'!AA127","v":3.2781395858391118},{"$f":"'COM S curve-disconnect'!AB127","v":3.2617488879099161},{"$f":"'COM S curve-disconnect'!AC127","v":3.2454401434703666},{"$f":"'COM S curve-disconnect'!AD127","v":3.2292129427530147},{"$f":"'COM S curve-disconnect'!AE127","v":2.2130668780392497},{"$f":"'COM S curve-disconnect'!AF127","v":2.2020015436490534},{"$f":"'COM S curve-disconnect'!AG127","v":2.1909915359308081},{"$f":"'COM S curve-disconnect'!AH127","v":2.1800365782511539},{"$f":"'COM S curve-disconnect'!AI127","v":2.1691363953598981},{"$f":"'COM S curve-disconnect'!AJ127","v":2.1582907133830989},{"$f":"'COM S curve-disconnect'!AK127","v":1.1474992598161833},{"$f":"'COM S curve-disconnect'!AL127","v":1.1417617635171025},{"$f":"'COM S curve-disconnect'!AM127","v":1.1360529546995168},{"$f":"'COM S curve-disconnect'!AN127","v":1.1303726899260194},{"$f":"'COM S curve-disconnect'!AO127","v":1.1247208264763893},{"$f":"'COM S curve-disconnect'!AP127","v":1.1190972223440072},{"$f":"'COM S curve-disconnect'!AQ127","v":1.1135017362322872},{"$f":"'COM S curve-disconnect'!AR127","v":1.1079342275511257},{"$f":"'COM S curve-disconnect'!AS127","v":1.1023945564133701},{"$f":"'COM S curve-disconnect'!AT127","v":1.0968825836313034},{"$f":"'COM S curve-disconnect'!AU127","v":1.0913981707131468},{"$f":"'COM S curve-disconnect'!AV127","v":1.0859411798595811},{"$f":"'COM S curve-disconnect'!AW127","v":1.0805114739602832},{"$f":"'COM S curve-disconnect'!AX127","v":1.0751089165904817},{"$f":"'COM S curve-disconnect'!AY127","v":6.973337200752934E-2},{"$f":"'COM S curve-disconnect'!AZ127","v":6.938470514749169E-2},{"$f":"'COM S curve-disconnect'!BA127","v":6.9037781621754224E-2},{"$f":"'COM S curve-disconnect'!BB127","v":6.8692592713645459E-2},{"$f":"'COM S curve-disconnect'!BC127","v":6.8349129750077231E-2},{"$f":"'COM S curve-disconnect'!BD127","v":6.800738410132684E-2},{"$f":"'COM S curve-disconnect'!BE127","v":6.7667347180820209E-2},{"$f":"'COM S curve-disconnect'!BF127","v":6.7329010444916113E-2},{"$f":"'COM S curve-disconnect'!BG127","v":6.699236539269153E-2},{"$f":"'COM S curve-disconnect'!BH127","v":6.6657403565728079E-2},{"$f":"'COM S curve-disconnect'!BI127","v":6.6324116547899437E-2},{"$f":"'COM S curve-disconnect'!BJ127","v":6.5992495965159936E-2},{"$f":"'COM S curve-disconnect'!BK127","v":6.5662533485334129E-2},{"$f":"'COM S curve-disconnect'!BL127","v":6.5334220817907462E-2},{"$f":"'COM S curve-disconnect'!BM127","v":6.5007549713817919E-2},{"$f":"'COM S curve-disconnect'!BN127","v":6.4682511965248837E-2},{"$f":"'COM S curve-disconnect'!BO127","v":6.4359099405422601E-2},{"$f":"'COM S curve-disconnect'!BP127","v":6.4037303908395488E-2},{"$f":"'COM S curve-disconnect'!BQ127","v":6.3717117388853509E-2},{"$f":"'COM S curve-disconnect'!BR127","v":6.3398531801909241E-2},{"$f":"'COM S curve-disconnect'!BS127","v":6.3081539142899698E-2},{"$f":"'COM S curve-disconnect'!BT127","v":6.2766131447185208E-2},{"$f":"'COM S curve-disconnect'!BU127","v":6.2452300789949275E-2},{"$f":"'COM S curve-disconnect'!BV127","v":6.2140039285999524E-2},{"$f":"'COM S curve-disconnect'!BW127","v":6.1829339089569529E-2},{"$f":"'COM S curve-disconnect'!BX127","v":6.1520192394121674E-2},{"$f":"'COM S curve-disconnect'!BY127","v":6.1212591432151069E-2},{"$f":"'COM S curve-disconnect'!BZ127","v":6.0906528474990312E-2},{"$f":"'COM S curve-disconnect'!CA127","v":6.0601995832615357E-2},{"$f":"'COM S curve-disconnect'!CB127","v":6.0298985853452287E-2},{"$f":"'COM S curve-disconnect'!CC127","v":5.9997490924185028E-2},{"$f":"'COM S curve-disconnect'!CD127","v":5.9697503469564095E-2}]
["Monash (C)",null,{"$f":"Customers!C271","v":22},{"$f":"Customers!D271","v":59},{"$f":"Customers!E271","v":49},{"$f":"Customers!F271","v":42},{"$f":"Customers!G271","v":41},{"$f":"Customers!H271","v":37},{"$f":"Customers!I271","v":95},{"$f":"Customers!J271","v":38},{"$f":"'COM S curve-disconnect'!C128","v":56.666666666666664},{"$f":"'COM S curve-disconnect'!D128","v":18.091666666666669},{"$f":"'COM S curve-disconnect'!E128","v":83.066208333333336},{"$f":"'COM S curve-disconnect'!F128","v":79.65087729166666},{"$f":"'COM S curve-disconnect'!G128","v":13.252622905208334},{"$f":"'COM S curve-disconnect'!H128","v":17.251359790682294},{"$f":"'COM S curve-disconnect'!I128","v":54.220102991728879},{"$f":"'COM S curve-disconnect'!J128","v":53.954002476770235},{"$f":"'COM S curve-disconnect'!K128","v":65.689232464386379},{"$f":"'COM S curve-disconnect'!L128","v":61.360786302064454},{"$f":"'COM S curve-disconnect'!M128","v":52.053982370554131},{"$f":"'COM S curve-disconnect'!N128","v":48.793712458701357},{"$f":"'COM S curve-disconnect'!O128","v":49.549743896407854},{"$f":"'COM S curve-disconnect'!P128","v":46.301995176925814},{"$f":"'COM S curve-disconnect'!Q128","v":23.070485201041183},{"$f":"'COM S curve-disconnect'!R128","v":33.955132775035977},{"$f":"'COM S curve-disconnect'!S128","v":37.785357111160799},{"$f":"'COM S curve-disconnect'!T128","v":35.596430325604992},{"$f":"'COM S curve-disconnect'!U128","v":33.418448173976969},{"$f":"'COM S curve-disconnect'!V128","v":31.251355933107085},{"$f":"'COM S curve-disconnect'!W128","v":28.095099153441549},{"$f":"'COM S curve-disconnect'!X128","v":26.954623657674343},{"$f":"'COM S curve-disconnect'!Y128","v":24.819850539385971},{"$f":"'COM S curve-disconnect'!Z128","v":22.695751286689038},{"$f":"'COM S curve-disconnect'!AA128","v":21.582272530255594},{"$f":"'COM S curve-disconnect'!AB128","v":19.474361167604318},{"$f":"'COM S curve-disconnect'!AC128","v":18.376989361766295},{"$f":"'COM S curve-disconnect'!AD128","v":17.285104414957463},{"$f":"'COM S curve-disconnect'!AE128","v":15.198678892882677},{"$f":"'COM S curve-disconnect'!AF128","v":14.122685498418264},{"$f":"'COM S curve-disconnect'!AG128","v":14.052072070926172},{"$f":"'COM S curve-disconnect'!AH128","v":12.981811710571542},{"$f":"'COM S curve-disconnect'!AI128","v":11.916902652018683},{"$f":"'COM S curve-disconnect'!AJ128","v":10.85731813875859},{"$f":"'COM S curve-disconnect'!AK128","v":9.8030315480647978},{"$f":"'COM S curve-disconnect'!AL128","v":9.7540163903244732},{"$f":"'COM S curve-disconnect'!AM128","v":8.7052463083728497},{"$f":"'COM S curve-disconnect'!AN128","v":7.6617200768309868},{"$f":"'COM S curve-disconnect'!AO128","v":7.6234114764468313},{"$f":"'COM S curve-disconnect'!AP128","v":6.5852944190645974},{"$f":"'COM S curve-disconnect'!AQ128","v":6.5523679469692739},{"$f":"'COM S curve-disconnect'!AR128","v":5.519606107234428},{"$f":"'COM S curve-disconnect'!AS128","v":5.492008076698256},{"$f":"'COM S curve-disconnect'!AT128","v":5.4645480363147643},{"$f":"'COM S curve-disconnect'!AU128","v":4.4372252961331906},{"$f":"'COM S curve-disconnect'!AV128","v":4.4150391696525251},{"$f":"'COM S curve-disconnect'!AW128","v":4.3929639738042621},{"$f":"'COM S curve-disconnect'!AX128","v":3.3709991539352409},{"$f":"'COM S curve-disconnect'!AY128","v":3.3541441581655644},{"$f":"'COM S curve-disconnect'!AZ128","v":3.3373734373747368},{"$f":"'COM S curve-disconnect'!BA128","v":3.320686570187863},{"$f":"'COM S curve-disconnect'!BB128","v":3.3040831373369235},{"$f":"'COM S curve-disconnect'!BC128","v":2.287562721650239},{"$f":"'COM S curve-disconnect'!BD128","v":2.2761249080419876},{"$f":"'COM S curve-disconnect'!BE128","v":2.2647442835017779},{"$f":"'COM S curve-disconnect'!BF128","v":2.2534205620842691},{"$f":"'COM S curve-disconnect'!BG128","v":2.2421534592738475},{"$f":"'COM S curve-disconnect'!BH128","v":2.2309426919774786},{"$f":"'COM S curve-disconnect'!BI128","v":1.2197879785175911},{"$f":"'COM S curve-disconnect'!BJ128","v":1.213689038625003},{"$f":"'COM S curve-disconnect'!BK128","v":1.207620593431878},{"$f":"'COM S curve-disconnect'!BL128","v":1.2015824904647188},{"$f":"'COM S curve-disconnect'!BM128","v":1.195574578012395},{"$f":"'COM S curve-disconnect'!BN128","v":1.1895967051223331},{"$f":"'COM S curve-disconnect'!BO128","v":1.1836487215967215},{"$f":"'COM S curve-disconnect'!BP128","v":1.1777304779887379},{"$f":"'COM S curve-disconnect'!BQ128","v":1.1718418255987941},{"$f":"'COM S curve-disconnect'!BR128","v":1.1659826164708003},{"$f":"'COM S curve-disconnect'!BS128","v":1.1601527033884462},{"$f":"'COM S curve-disconnect'!BT128","v":1.1543519398715039},{"$f":"'COM S curve-disconnect'!BU128","v":0.14858018017214641},{"$f":"'COM S curve-disconnect'!BV128","v":0.14783727927128568},{"$f":"'COM S curve-disconnect'!BW128","v":0.14709809287492923},{"$f":"'COM S curve-disconnect'!BX128","v":0.1463626024105546},{"$f":"'COM S curve-disconnect'!BY128","v":0.1456307893985018},{"$f":"'COM S curve-disconnect'!BZ128","v":0.1449026354515093},{"$f":"'COM S curve-disconnect'!CA128","v":0.14417812227425175},{"$f":"'COM S curve-disconnect'!CB128","v":0.14345723166288049},{"$f":"'COM S curve-disconnect'!CC128","v":0.14273994550456612},{"$f":"'COM S curve-disconnect'!CD128","v":0.14202624577704329}]
["Port Phillip (C)",null,{"$f":"Customers!C272","v":21},{"$f":"Customers!D272","v":47},{"$f":"Customers!E272","v":54},{"$f":"Customers!F272","v":60},{"$f":"Customers!G272","v":64},{"$f":"Customers!H272","v":53},{"$f":"Customers!I272","v":82},{"$f":"Customers!J272","v":32},{"$f":"'COM S curve-disconnect'!C129","v":55.666666666666664},{"$f":"'COM S curve-disconnect'!D129","v":18.371666666666666},{"$f":"'COM S curve-disconnect'!E129","v":102.37480833333333},{"$f":"'COM S curve-disconnect'!F129","v":96.862934291666662},{"$f":"'COM S curve-disconnect'!G129","v":13.378619620208333},{"$f":"'COM S curve-disconnect'!H129","v":17.401726522107289},{"$f":"'COM S curve-disconnect'!I129","v":64.389717889496751},{"$f":"'COM S curve-disconnect'!J129","v":63.077769300049269},{"$f":"'COM S curve-disconnect'!K129","v":80.772380453549019},{"$f":"'COM S curve-disconnect'!L129","v":75.368518551281284},{"$f":"'COM S curve-disconnect'!M129","v":63.991675958524873},{"$f":"'COM S curve-disconnect'!N129","v":60.671717578732249},{"$f":"'COM S curve-disconnect'!O129","v":61.368358990838587},{"$f":"'COM S curve-disconnect'!P129","v":57.061517195884392},{"$f":"'COM S curve-disconnect'!Q129","v":27.776209609904974},{"$f":"'COM S curve-disconnect'!R129","v":40.637328561855448},{"$f":"'COM S curve-disconnect'!S129","v":46.434141919046169},{"$f":"'COM S curve-disconnect'!T129","v":44.201971209450939},{"$f":"'COM S curve-disconnect'!U129","v":40.980961353403686},{"$f":"'COM S curve-disconnect'!V129","v":38.776056546636667},{"$f":"'COM S curve-disconnect'!W129","v":35.582176263903484},{"$f":"'COM S curve-disconnect'!X129","v":33.404265382583965},{"$f":"'COM S curve-disconnect'!Y129","v":30.237244055671045},{"$f":"'COM S curve-disconnect'!Z129","v":28.08605783539269},{"$f":"'COM S curve-disconnect'!AA129","v":25.945627546215725},{"$f":"'COM S curve-disconnect'!AB129","v":24.815899408484647},{"$f":"'COM S curve-disconnect'!AC129","v":22.691819911442224},{"$f":"'COM S curve-disconnect'!AD129","v":21.578360811885013},{"$f":"'COM S curve-disconnect'!AE129","v":19.470469007825589},{"$f":"'COM S curve-disconnect'!AF129","v":18.373116662786462},{"$f":"'COM S curve-disconnect'!AG129","v":17.281251079472529},{"$f":"'COM S curve-disconnect'!AH129","v":15.194844824075165},{"$f":"'COM S curve-disconnect'!AI129","v":14.118870599954789},{"$f":"'COM S curve-disconnect'!AJ129","v":13.048276246955016},{"$f":"'COM S curve-disconnect'!AK129","v":12.98303486572024},{"$f":"'COM S curve-disconnect'!AL129","v":11.91811969139164},{"$f":"'COM S curve-disconnect'!AM129","v":10.858529092934681},{"$f":"'COM S curve-disconnect'!AN129","v":9.8042364474700072},{"$f":"'COM S curve-disconnect'!AO129","v":9.7552152652326569},{"$f":"'COM S curve-disconnect'!AP129","v":8.7064391889064936},{"$f":"'COM S curve-disconnect'!AQ129","v":7.662906992961962},{"$f":"'COM S curve-disconnect'!AR129","v":7.624592457997152},{"$f":"'COM S curve-disconnect'!AS129","v":6.5864694957071661},{"$f":"'COM S curve-disconnect'!AT129","v":6.5535371482286306},{"$f":"'COM S curve-disconnect'!AU129","v":5.520769462487487},{"$f":"'COM S curve-disconnect'!AV129","v":5.4931656151750499},{"$f":"'COM S curve-disconnect'!AW129","v":5.4656997870991741},{"$f":"'COM S curve-disconnect'!AX129","v":4.4383712881636788},{"$f":"'COM S curve-disconnect'!AY129","v":4.4161794317228598},{"$f":"'COM S curve-disconnect'!AZ129","v":4.3940985345642458},{"$f":"'COM S curve-disconnect'!BA129","v":3.3721280418914246},{"$f":"'COM S curve-disconnect'!BB129","v":3.3552674016819672},{"$f":"'COM S curve-disconnect'!BC129","v":3.3384910646735575},{"$f":"'COM S curve-disconnect'!BD129","v":3.3217986093501897},{"$f":"'COM S curve-disconnect'!BE129","v":3.3051896163034389},{"$f":"'COM S curve-disconnect'!BF129","v":2.2886636682219219},{"$f":"'COM S curve-disconnect'!BG129","v":2.2772203498808121},{"$f":"'COM S curve-disconnect'!BH129","v":2.2658342481314078},{"$f":"'COM S curve-disconnect'!BI129","v":2.2545050768907511},{"$f":"'COM S curve-disconnect'!BJ129","v":2.2432325515062974},{"$f":"'COM S curve-disconnect'!BK129","v":2.2320163887487658},{"$f":"'COM S curve-disconnect'!BL129","v":1.2208563068050218},{"$f":"'COM S curve-disconnect'!BM129","v":1.2147520252709967},{"$f":"'COM S curve-disconnect'!BN129","v":1.2086782651446417},{"$f":"'COM S curve-disconnect'!BO129","v":1.2026348738189185},{"$f":"'COM S curve-disconnect'!BP129","v":1.196621699449824},{"$f":"'COM S curve-disconnect'!BQ129","v":1.190638590952575},{"$f":"'COM S curve-disconnect'!BR129","v":1.184685397997812},{"$f":"'COM S curve-disconnect'!BS129","v":1.178761971007823},{"$f":"'COM S curve-disconnect'!BT129","v":1.1728681611527838},{"$f":"'COM S curve-disconnect'!BU129","v":1.1670038203470199},{"$f":"'COM S curve-disconnect'!BV129","v":1.1611688012452848},{"$f":"'COM S curve-disconnect'!BW129","v":1.1553629572390585},{"$f":"'COM S curve-disconnect'!BX129","v":0.14958614245286309},{"$f":"'COM S curve-disconnect'!BY129","v":0.14883821174059877},{"$f":"'COM S curve-disconnect'!BZ129","v":0.14809402068189578},{"$f":"'COM S curve-disconnect'!CA129","v":0.14735355057848629},{"$f":"'COM S curve-disconnect'!CB129","v":0.14661678282559387},{"$f":"'COM S curve-disconnect'!CC129","v":0.14588369891146591},{"$f":"'COM S curve-disconnect'!CD129","v":0.14515428041690856}]
["South Gippsland (S)",null,{"$f":"Customers!C273","v":0},{"$f":"Customers!D273","v":0},{"$f":"Customers!E273","v":1},{"$f":"Customers!F273","v":2},{"$f":"Customers!G273","v":0},{"$f":"Customers!H273","v":1},{"$f":"Customers!I273","v":0},{"$f":"Customers!J273","v":1},{"$f":"'COM S curve-disconnect'!C130","v":0.66666666666666663},{"$f":"'COM S curve-disconnect'!D130","v":0.2416666666666667},{"$f":"'COM S curve-disconnect'!E130","v":2.2404583333333332},{"$f":"'COM S curve-disconnect'!F130","v":2.2292560416666665},{"$f":"'COM S curve-disconnect'!G130","v":0.21810976145833333},{"$f":"'COM S curve-disconnect'!H130","v":0.21701921265104165},{"$f":"'COM S curve-disconnect'!I130","v":1.2159341165877864},{"$f":"'COM S curve-disconnect'!J130","v":1.2098544460048475},{"$f":"'COM S curve-disconnect'!K130","v":1.2038051737748232},{"$f":"'COM S curve-disconnect'!L130","v":1.1977861479059491},{"$f":"'COM S curve-disconnect'!M130","v":1.1917972171664193},{"$f":"'COM S curve-disconnect'!N130","v":1.1858382310805873},{"$f":"'COM S curve-disconnect'!O130","v":1.1799090399251844},{"$f":"'COM S curve-disconnect'!P130","v":1.1740094947255584},{"$f":"'COM S curve-disconnect'!Q130","v":1.1681394472519306},{"$f":"'COM S curve-disconnect'!R130","v":1.162298750015671},{"$f":"'COM S curve-disconnect'!S130","v":1.1564872562655926},{"$f":"'COM S curve-disconnect'!T130","v":1.1507048199842647},{"$f":"'COM S curve-disconnect'!U130","v":0.14495129588434336},{"$f":"'COM S curve-disconnect'!V130","v":0.14422653940492164},{"$f":"'COM S curve-disconnect'!W130","v":0.14350540670789702},{"$f":"'COM S curve-disconnect'!X130","v":0.14278787967435752},{"$f":"'COM S curve-disconnect'!Y130","v":0.14207394027598574},{"$f":"'COM S curve-disconnect'!Z130","v":0.1413635705746058},{"$f":"'COM S curve-disconnect'!AA130","v":0.14065675272173278},{"$f":"'COM S curve-disconnect'!AB130","v":0.13995346895812413},{"$f":"'COM S curve-disconnect'!AC130","v":0.1392537016133335},{"$f":"'COM S curve-disconnect'!AD130","v":0.13855743310526683},{"$f":"'COM S curve-disconnect'!AE130","v":0.13786464593974049},{"$f":"'COM S curve-disconnect'!AF130","v":0.13717532271004179},{"$f":"'COM S curve-disconnect'!AG130","v":0.13648944609649158},{"$f":"'COM S curve-disconnect'!AH130","v":0.13580699886600914},{"$f":"'COM S curve-disconnect'!AI130","v":0.13512796387167908},{"$f":"'COM S curve-disconnect'!AJ130","v":0.13445232405232069},{"$f":"'COM S curve-disconnect'!AK130","v":0.13378006243205909},{"$f":"'COM S curve-disconnect'!AL130","v":0.13311116211989879},{"$f":"'COM S curve-disconnect'!AM130","v":0.1324456063092993},{"$f":"'COM S curve-disconnect'!AN130","v":0.1317833782777528},{"$f":"'COM S curve-disconnect'!AO130","v":0.13112446138636402},{"$f":"'COM S curve-disconnect'!AP130","v":0.13046883907943221},{"$f":"'COM S curve-disconnect'!AQ130","v":0.12981649488403504},{"$f":"'COM S curve-disconnect'!AR130","v":0.12916741240961485},{"$f":"'COM S curve-disconnect'!AS130","v":0.12852157534756678},{"$f":"'COM S curve-disconnect'!AT130","v":0.12787896747082894},{"$f":"'COM S curve-disconnect'!AU130","v":0.12723957263347482},{"$f":"'COM S curve-disconnect'!AV130","v":0.12660337477030745},{"$f":"'COM S curve-disconnect'!AW130","v":0.12597035789645589},{"$f":"'COM S curve-disconnect'!AX130","v":0.12534050610697361},{"$f":"'COM S curve-disconnect'!AY130","v":0.12471380357643876},{"$f":"'COM S curve-disconnect'!AZ130","v":0.12409023455855657},{"$f":"'COM S curve-disconnect'!BA130","v":0.12346978338576378},{"$f":"'COM S curve-disconnect'!BB130","v":0.12285243446883495},{"$f":"'COM S curve-disconnect'!BC130","v":0.12223817229649077},{"$f":"'COM S curve-disconnect'!BD130","v":0.12162698143500832},{"$f":"'COM S curve-disconnect'!BE130","v":0.12101884652783328},{"$f":"'COM S curve-disconnect'!BF130","v":0.12041375229519412},{"$f":"'COM S curve-disconnect'!BG130","v":0.11981168353371816},{"$f":"'COM S curve-disconnect'!BH130","v":0.11921262511604956},{"$f":"'COM S curve-disconnect'!BI130","v":0.11861656199046933},{"$f":"'COM S curve-disconnect'!BJ130","v":0.11802347918051698},{"$f":"'COM S curve-disconnect'!BK130","v":0.11743336178461439},{"$f":"'COM S curve-disconnect'!BL130","v":0.11684619497569132},{"$f":"'COM S curve-disconnect'!BM130","v":0.11626196400081287},{"$f":"'COM S curve-disconnect'!BN130","v":0.11568065418080881},{"$f":"'COM S curve-disconnect'!BO130","v":0.11510225090990477},{"$f":"'COM S curve-disconnect'!BP130","v":0.11452673965535523},{"$f":"'COM S curve-disconnect'!BQ130","v":0.11395410595707846},{"$f":"'COM S curve-disconnect'!BR130","v":0.11338433542729308},{"$f":"'COM S curve-disconnect'!BS130","v":0.11281741375015659},{"$f":"'COM S curve-disconnect'!BT130","v":0.11225332668140581},{"$f":"'COM S curve-disconnect'!BU130","v":0.1116920600479988},{"$f":"'COM S curve-disconnect'!BV130","v":0.11113359974775879},{"$f":"'COM S curve-disconnect'!BW130","v":0.11057793174901999},{"$f":"'COM S curve-disconnect'!BX130","v":0.11002504209027489},{"$f":"'COM S curve-disconnect'!BY130","v":0.10947491687982351},{"$f":"'COM S curve-disconnect'!BZ130","v":0.10892754229542441},{"$f":"'COM S curve-disconnect'!CA130","v":0.10838290458394728},{"$f":"'COM S curve-disconnect'!CB130","v":0.10784099006102754},{"$f":"'COM S curve-disconnect'!CC130","v":0.1073017851107224},{"$f":"'COM S curve-disconnect'!CD130","v":0.10676527618516879}]
["Stonnington (C)",null,{"$f":"Customers!C274","v":23},{"$f":"Customers!D274","v":28},{"$f":"Customers!E274","v":71},{"$f":"Customers!F274","v":58},{"$f":"Customers!G274","v":46},{"$f":"Customers!H274","v":37},{"$f":"Customers!I274","v":60},{"$f":"Customers!J274","v":53},{"$f":"'COM S curve-disconnect'!C131","v":51},{"$f":"'COM S curve-disconnect'!D131","v":23.574999999999999},{"$f":"'COM S curve-disconnect'!E131","v":87.522125000000003},{"$f":"'COM S curve-disconnect'!F131","v":85.084514374999998},{"$f":"'COM S curve-disconnect'!G131","v":17.659091803125001},{"$f":"'COM S curve-disconnect'!H131","v":21.630796344109374},{"$f":"'COM S curve-disconnect'!I131","v":55.572642362388827},{"$f":"'COM S curve-disconnect'!J131","v":53.304779150576884},{"$f":"'COM S curve-disconnect'!K131","v":71.048255254823999},{"$f":"'COM S curve-disconnect'!L131","v":65.693013978549885},{"$f":"'COM S curve-disconnect'!M131","v":54.364548908657127},{"$f":"'COM S curve-disconnect'!N131","v":51.092726164113841},{"$f":"'COM S curve-disconnect'!O131","v":53.837262533293277},{"$f":"'COM S curve-disconnect'!P131","v":49.568076220626807},{"$f":"'COM S curve-disconnect'!Q131","v":24.320235839523676},{"$f":"'COM S curve-disconnect'!R131","v":33.198634660326057},{"$f":"'COM S curve-disconnect'!S131","v":39.032641487024428},{"$f":"'COM S curve-disconnect'!T131","v":38.837478279589305},{"$f":"'COM S curve-disconnect'!U131","v":36.643290888191359},{"$f":"'COM S curve-disconnect'!V131","v":33.4600744337504},{"$f":"'COM S curve-disconnect'!W131","v":31.29277406158165},{"$f":"'COM S curve-disconnect'!X131","v":29.13631019127374},{"$f":"'COM S curve-disconnect'!Y131","v":26.990628640317372},{"$f":"'COM S curve-disconnect'!Z131","v":24.855675497115783},{"$f":"'COM S curve-disconnect'!AA131","v":23.731397119630206},{"$f":"'COM S curve-disconnect'!AB131","v":21.612740134032055},{"$f":"'COM S curve-disconnect'!AC131","v":20.504676433361894},{"$f":"'COM S curve-disconnect'!AD131","v":18.402153051195086},{"$f":"'COM S curve-disconnect'!AE131","v":17.310142285939108},{"$f":"'COM S curve-disconnect'!AF131","v":16.223591574509413},{"$f":"'COM S curve-disconnect'!AG131","v":15.142473616636867},{"$f":"'COM S curve-disconnect'!AH131","v":14.066761248553682},{"$f":"'COM S curve-disconnect'!AI131","v":12.996427442310914},{"$f":"'COM S curve-disconnect'!AJ131","v":11.931445305099359},{"$f":"'COM S curve-disconnect'!AK131","v":10.871788078573863},{"$f":"'COM S curve-disconnect'!AL131","v":9.8174291381809944},{"$f":"'COM S curve-disconnect'!AM131","v":9.7683419924900878},{"$f":"'COM S curve-disconnect'!AN131","v":8.7195002825276386},{"$f":"'COM S curve-disconnect'!AO131","v":8.6759027811149991},{"$f":"'COM S curve-disconnect'!AP131","v":7.6325232672094252},{"$f":"'COM S curve-disconnect'!AQ131","v":6.5943606508733783},{"$f":"'COM S curve-disconnect'!AR131","v":6.5613888476190105},{"$f":"'COM S curve-disconnect'!AS131","v":6.5285819033809158},{"$f":"'COM S curve-disconnect'!AT131","v":5.4959389938640113},{"$f":"'COM S curve-disconnect'!AU131","v":5.4684592988946914},{"$f":"'COM S curve-disconnect'!AV131","v":4.441117002400218},{"$f":"'COM S curve-disconnect'!AW131","v":4.4189114173882169},{"$f":"'COM S curve-disconnect'!AX131","v":4.3968168603012758},{"$f":"'COM S curve-disconnect'!AY131","v":3.3748327759997694},{"$f":"'COM S curve-disconnect'!AZ131","v":3.3579586121197704},{"$f":"'COM S curve-disconnect'!BA131","v":3.3411688190591717},{"$f":"'COM S curve-disconnect'!BB131","v":3.3244629749638759},{"$f":"'COM S curve-disconnect'!BC131","v":3.3078406600890564},{"$f":"'COM S curve-disconnect'!BD131","v":2.2913014567886112},{"$f":"'COM S curve-disconnect'!BE131","v":2.279844949504668},{"$f":"'COM S curve-disconnect'!BF131","v":2.2684457247571448},{"$f":"'COM S curve-disconnect'!BG131","v":2.2571034961333591},{"$f":"'COM S curve-disconnect'!BH131","v":2.2458179786526919},{"$f":"'COM S curve-disconnect'!BI131","v":2.2345888887594287},{"$f":"'COM S curve-disconnect'!BJ131","v":1.2234159443156316},{"$f":"'COM S curve-disconnect'!BK131","v":1.2172988645940535},{"$f":"'COM S curve-disconnect'!BL131","v":1.2112123702710831},{"$f":"'COM S curve-disconnect'!BM131","v":1.2051563084197277},{"$f":"'COM S curve-disconnect'!BN131","v":1.1991305268776291},{"$f":"'COM S curve-disconnect'!BO131","v":1.1931348742432408},{"$f":"'COM S curve-disconnect'!BP131","v":1.1871691998720246},{"$f":"'COM S curve-disconnect'!BQ131","v":1.1812333538726647},{"$f":"'COM S curve-disconnect'!BR131","v":1.1753271871033013},{"$f":"'COM S curve-disconnect'!BS131","v":1.1694505511677848},{"$f":"'COM S curve-disconnect'!BT131","v":1.1636032984119458},{"$f":"'COM S curve-disconnect'!BU131","v":1.1577852819198862},{"$f":"'COM S curve-disconnect'!BV131","v":1.1519963555102868},{"$f":"'COM S curve-disconnect'!BW131","v":0.14623637373273524},{"$f":"'COM S curve-disconnect'!BX131","v":0.14550519186407157},{"$f":"'COM S curve-disconnect'!BY131","v":0.14477766590475122},{"$f":"'COM S curve-disconnect'!BZ131","v":0.14405377757522747},{"$f":"'COM S curve-disconnect'!CA131","v":0.14333350868735134},{"$f":"'COM S curve-disconnect'!CB131","v":0.14261684114391457},{"$f":"'COM S curve-disconnect'!CC131","v":0.14190375693819499},{"$f":"'COM S curve-disconnect'!CD131","v":0.14119423815350401}]
["Whitehorse (C)",null,{"$f":"Customers!C275","v":28},{"$f":"Customers!D275","v":34},{"$f":"Customers!E275","v":41},{"$f":"Customers!F275","v":42},{"$f":"Customers!G275","v":41},{"$f":"Customers!H275","v":35},{"$f":"Customers!I275","v":49},{"$f":"Customers!J275","v":41},{"$f":"'COM S curve-disconnect'!C132","v":41.666666666666664},{"$f":"'COM S curve-disconnect'!D132","v":19.741666666666667},{"$f":"'COM S curve-disconnect'!E132","v":77.697958333333332},{"$f":"'COM S curve-disconnect'!F132","v":74.309468541666661},{"$f":"'COM S curve-disconnect'!G132","v":13.937921198958334},{"$f":"'COM S curve-disconnect'!H132","v":17.923231592963543},{"$f":"'COM S curve-disconnect'!I132","v":50.878615434998721},{"$f":"'COM S curve-disconnect'!J132","v":49.629222357823728},{"$f":"'COM S curve-disconnect'!K132","v":61.386076246034612},{"$f":"'COM S curve-disconnect'!L132","v":57.079145864804438},{"$f":"'COM S curve-disconnect'!M132","v":47.793750135480416},{"$f":"'COM S curve-disconnect'!N132","v":45.554781384803015},{"$f":"'COM S curve-disconnect'!O132","v":46.327007477879},{"$f":"'COM S curve-disconnect'!P132","v":43.095372440489605},{"$f":"'COM S curve-disconnect'!Q132","v":21.879895578287154},{"$f":"'COM S curve-disconnect'!R132","v":30.770496100395722},{"$f":"'COM S curve-disconnect'!S132","v":34.616643619893743},{"$f":"'COM S curve-disconnect'!T132","v":33.443560401794272},{"$f":"'COM S curve-disconnect'!U132","v":31.276342599785302},{"$f":"'COM S curve-disconnect'!V132","v":29.119960886786377},{"$f":"'COM S curve-disconnect'!W132","v":26.974361082352445},{"$f":"'COM S curve-disconnect'!X132","v":24.839489276940682},{"$f":"'COM S curve-disconnect'!Y132","v":22.715291830555977},{"$f":"'COM S curve-disconnect'!Z132","v":21.601715371403198},{"$f":"'COM S curve-disconnect'!AA132","v":19.493706794546181},{"$f":"'COM S curve-disconnect'!AB132","v":18.396238260573451},{"$f":"'COM S curve-disconnect'!AC132","v":17.304257069270584},{"$f":"'COM S curve-disconnect'!AD132","v":16.21773578392423},{"$f":"'COM S curve-disconnect'!AE132","v":15.136647105004609},{"$f":"'COM S curve-disconnect'!AF132","v":14.060963869479586},{"$f":"'COM S curve-disconnect'!AG132","v":12.990659050132187},{"$f":"'COM S curve-disconnect'!AH132","v":11.925705754881527},{"$f":"'COM S curve-disconnect'!AI132","v":10.866077226107119},{"$f":"'COM S curve-disconnect'!AJ132","v":9.8117468399765837},{"$f":"'COM S curve-disconnect'!AK132","v":9.7626881057767001},{"$f":"'COM S curve-disconnect'!AL132","v":8.7138746652478165},{"$f":"'COM S curve-disconnect'!AM132","v":7.6703052919215784},{"$f":"'COM S curve-disconnect'!AN132","v":7.6319537654619705},{"$f":"'COM S curve-disconnect'!AO132","v":6.5937939966346608},{"$f":"'COM S curve-disconnect'!AP132","v":6.5608250266514876},{"$f":"'COM S curve-disconnect'!AQ132","v":6.5280209015182296},{"$f":"'COM S curve-disconnect'!AR132","v":5.4953807970106388},{"$f":"'COM S curve-disconnect'!AS132","v":5.4679038930255857},{"$f":"'COM S curve-disconnect'!AT132","v":4.4405643735604574},{"$f":"'COM S curve-disconnect'!AU132","v":4.4183615516926551},{"$f":"'COM S curve-disconnect'!AV132","v":4.3962697439341918},{"$f":"'COM S curve-disconnect'!AW132","v":3.3742883952145206},{"$f":"'COM S curve-disconnect'!AX132","v":3.3574169532384484},{"$f":"'COM S curve-disconnect'!AY132","v":3.3406298684722557},{"$f":"'COM S curve-disconnect'!AZ132","v":3.3239267191298949},{"$f":"'COM S curve-disconnect'!BA132","v":3.3073070855342452},{"$f":"'COM S curve-disconnect'!BB132","v":2.2907705501065738},{"$f":"'COM S curve-disconnect'!BC132","v":2.279316697356041},{"$f":"'COM S curve-disconnect'!BD132","v":2.2679201138692608},{"$f":"'COM S curve-disconnect'!BE132","v":2.2565805132999146},{"$f":"'COM S curve-disconnect'!BF132","v":2.2452976107334148},{"$f":"'COM S curve-disconnect'!BG132","v":2.2340711226797478},{"$f":"'COM S curve-disconnect'!BH132","v":1.2229007670663492},{"$f":"'COM S curve-disconnect'!BI132","v":1.2167862632310174},{"$f":"'COM S curve-disconnect'!BJ132","v":1.2107023319148624},{"$f":"'COM S curve-disconnect'!BK132","v":1.2046488202552881},{"$f":"'COM S curve-disconnect'!BL132","v":1.1986255761540117},{"$f":"'COM S curve-disconnect'!BM132","v":1.1926324482732416},{"$f":"'COM S curve-disconnect'!BN132","v":1.1866692860318753},{"$f":"'COM S curve-disconnect'!BO132","v":1.1807359396017161},{"$f":"'COM S curve-disconnect'!BP132","v":1.1748322599037073},{"$f":"'COM S curve-disconnect'!BQ132","v":1.1689580986041888},{"$f":"'COM S curve-disconnect'!BR132","v":1.163113308111168},{"$f":"'COM S curve-disconnect'!BS132","v":1.157297741570612},{"$f":"'COM S curve-disconnect'!BT132","v":1.1515112528627591},{"$f":"'COM S curve-disconnect'!BU132","v":0.14575369659844525},{"$f":"'COM S curve-disconnect'!BV132","v":0.14502492811545303},{"$f":"'COM S curve-disconnect'!BW132","v":0.14429980347487575},{"$f":"'COM S curve-disconnect'!BX132","v":0.14357830445750139},{"$f":"'COM S curve-disconnect'!BY132","v":0.14286041293521387},{"$f":"'COM S curve-disconnect'!BZ132","v":0.1421461108705378},{"$f":"'COM S curve-disconnect'!CA132","v":0.14143538031618511},{"$f":"'COM S curve-disconnect'!CB132","v":0.14072820341460418},{"$f":"'COM S curve-disconnect'!CC132","v":0.14002456239753117},{"$f":"'COM S curve-disconnect'!CD132","v":0.1393244395855435}]
["Yarra Ranges (S)",null,{"$f":"Customers!C276","v":12},{"$f":"Customers!D276","v":25},{"$f":"Customers!E276","v":32},{"$f":"Customers!F276","v":25},{"$f":"Customers!G276","v":23},{"$f":"Customers!H276","v":17},{"$f":"Customers!I276","v":32},{"$f":"Customers!J276","v":31},{"$f":"'COM S curve-disconnect'!C133","v":27.666666666666668},{"$f":"'COM S curve-disconnect'!D133","v":18.206666666666667},{"$f":"'COM S curve-disconnect'!E133","v":56.150633333333332},{"$f":"'COM S curve-disconnect'!F133","v":53.869880166666668},{"$f":"'COM S curve-disconnect'!G133","v":13.600530765833334},{"$f":"'COM S curve-disconnect'!H133","v":15.567528112004167},{"$f":"'COM S curve-disconnect'!I133","v":37.514690471444148},{"$f":"'COM S curve-disconnect'!J133","v":36.332117019086922},{"$f":"'COM S curve-disconnect'!K133","v":44.150456433991494},{"$f":"'COM S curve-disconnect'!L133","v":40.929704151821532},{"$f":"'COM S curve-disconnect'!M133","v":34.725055631062425},{"$f":"'COM S curve-disconnect'!N133","v":32.551430352907111},{"$f":"'COM S curve-disconnect'!O133","v":32.388673201142581},{"$f":"'COM S curve-disconnect'!P133","v":30.226729835136865},{"$f":"'COM S curve-disconnect'!Q133","v":17.075596185961182},{"$f":"'COM S curve-disconnect'!R133","v":21.990218205031375},{"$f":"'COM S curve-disconnect'!S133","v":24.880267114006216},{"$f":"'COM S curve-disconnect'!T133","v":23.755865778436185},{"$f":"'COM S curve-disconnect'!U133","v":21.637086449544004},{"$f":"'COM S curve-disconnect'!V133","v":20.528901017296285},{"$f":"'COM S curve-disconnect'!W133","v":19.426256512209804},{"$f":"'COM S curve-disconnect'!X133","v":17.329125229648753},{"$f":"'COM S curve-disconnect'!Y133","v":16.242479603500509},{"$f":"'COM S curve-disconnect'!Z133","v":15.161267205483009},{"$f":"'COM S curve-disconnect'!AA133","v":14.085460869455593},{"$f":"'COM S curve-disconnect'!AB133","v":13.015033565108315},{"$f":"'COM S curve-disconnect'!AC133","v":11.949958397282774},{"$f":"'COM S curve-disconnect'!AD133","v":10.89020860529636},{"$f":"'COM S curve-disconnect'!AE133","v":10.835757562269878},{"$f":"'COM S curve-disconnect'!AF133","v":9.781578774458529},{"$f":"'COM S curve-disconnect'!AG133","v":8.7326708805862356},{"$f":"'COM S curve-disconnect'!AH133","v":8.6890075261833051},{"$f":"'COM S curve-disconnect'!AI133","v":7.6455624885523878},{"$f":"'COM S curve-disconnect'!AJ133","v":7.6073346761096268},{"$f":"'COM S curve-disconnect'!AK133","v":6.5692980027290782},{"$f":"'COM S curve-disconnect'!AL133","v":6.5364515127154323},{"$f":"'COM S curve-disconnect'!AM133","v":5.5037692551518553},{"$f":"'COM S curve-disconnect'!AN133","v":5.4762504088760959},{"$f":"'COM S curve-disconnect'!AO133","v":4.4488691568317158},{"$f":"'COM S curve-disconnect'!AP133","v":4.4266248110475575},{"$f":"'COM S curve-disconnect'!AQ133","v":4.4044916869923192},{"$f":"'COM S curve-disconnect'!AR133","v":4.3824692285573574},{"$f":"'COM S curve-disconnect'!AS133","v":3.3605568824145711},{"$f":"'COM S curve-disconnect'!AT133","v":3.3437540980024982},{"$f":"'COM S curve-disconnect'!AU133","v":3.327035327512486},{"$f":"'COM S curve-disconnect'!AV133","v":3.3104001508749232},{"$f":"'COM S curve-disconnect'!AW133","v":2.2938481501205485},{"$f":"'COM S curve-disconnect'!AX133","v":2.282378909369946},{"$f":"'COM S curve-disconnect'!AY133","v":2.2709670148230963},{"$f":"'COM S curve-disconnect'!AZ133","v":2.2596121797489808},{"$f":"'COM S curve-disconnect'!BA133","v":2.248314118850236},{"$f":"'COM S curve-disconnect'!BB133","v":2.2370725482559846},{"$f":"'COM S curve-disconnect'!BC133","v":2.2258871855147047},{"$f":"'COM S curve-disconnect'!BD133","v":1.2147577495871311},{"$f":"'COM S curve-disconnect'!BE133","v":1.2086839608391955},{"$f":"'COM S curve-disconnect'!BF133","v":1.2026405410349996},{"$f":"'COM S curve-disconnect'!BG133","v":1.1966273383298245},{"$f":"'COM S curve-disconnect'!BH133","v":1.1906442016381753},{"$f":"'COM S curve-disconnect'!BI133","v":1.1846909806299846},{"$f":"'COM S curve-disconnect'!BJ133","v":1.1787675257268346},{"$f":"'COM S curve-disconnect'!BK133","v":1.1728736880982005},{"$f":"'COM S curve-disconnect'!BL133","v":1.1670093196577094},{"$f":"'COM S curve-disconnect'!BM133","v":1.161174273059421},{"$f":"'COM S curve-disconnect'!BN133","v":1.1553684016941239},{"$f":"'COM S curve-disconnect'!BO133","v":0.14959155968565319},{"$f":"'COM S curve-disconnect'!BP133","v":0.14884360188722492},{"$f":"'COM S curve-disconnect'!BQ133","v":0.14809938387778881},{"$f":"'COM S curve-disconnect'!BR133","v":0.14735888695839985},{"$f":"'COM S curve-disconnect'!BS133","v":0.14662209252360786},{"$f":"'COM S curve-disconnect'!BT133","v":0.14588898206098982},{"$f":"'COM S curve-disconnect'!BU133","v":0.14515953715068489},{"$f":"'COM S curve-disconnect'!BV133","v":0.14443373946493146},{"$f":"'COM S curve-disconnect'!BW133","v":0.14371157076760679},{"$f":"'COM S curve-disconnect'!BX133","v":0.14299301291376876},{"$f":"'COM S curve-disconnect'!BY133","v":0.1422780478491999},{"$f":"'COM S curve-disconnect'!BZ133","v":0.14156665760995391},{"$f":"'COM S curve-disconnect'!CA133","v":0.14085882432190414},{"$f":"'COM S curve-disconnect'!CB133","v":0.14015453020029461},{"$f":"'COM S curve-disconnect'!CC133","v":0.13945375754929315},{"$f":"'COM S curve-disconnect'!CD133","v":0.13875648876154667}]
["Total",null,{"$f":"Customers!C277","v":252},{"$f":"Customers!D277","v":486},{"$f":"Customers!E277","v":566},{"$f":"Customers!F277","v":542},{"$f":"Customers!G277","v":505},{"$f":"Customers!H277","v":421},{"$f":"Customers!I277","v":738},{"$f":"Customers!J277","v":435},{"$f":"SUM(K49:K67)","v":543.33333333333337},243.785,940.26107499999989,907.55976962500006,182.02197077687495,221.77686092299061,609.21297661837582,595.24191173528391,750.33070217660736,697.57904866572437,582.09115342239568,550.18069765528367,567.42979416700723,526.59264519617227,266.95968197019141,368.62488356034049,421.78175914253882,410.67285034682607,382.61948609509204,356.70638866461644,330.92285672129344,306.26824243768698,285.73690122549851,262.30821671937105,245.99667563577412,228.76669225759525,214.62285879630736,199.54974450232575,182.55199577981418,170.63923580091503,157.78603962191048,147.99710942380094,{"$f":"SUM(AQ49:AQ67)","v":136.25712387668193},125.5758382572985,116.94795906601203,109.36321927068197,101.81640317432854,92.307321158456915,86.845784552664625,78.411555629901301,75.019497851751794,67.644400362493045,63.306178360680569,59.989647468877166,55.689699231532778,52.41125073537512,48.149194481698238,41.908448509289748,39.698906266743307,37.500411735409585,35.312909676732545,32.136345128348886,29.975663402707131,27.825785085693592,26.686656160265127,25.553222879463799,23.425456765066482,21.308329481241149,19.201787833834945,17.105778894665768,15.020250000192441,13.945148750191475,13.875423006440522,12.806045891408319,{"$f":"SUM(BW49:BW67)","v":11.742015661951276},11.683305583641522,{"$f":"SUM(BY49:BY67)","v":11.624889055723315},11.566764610444697,9.5089307873924724,9.4613861334555125,5.4140792027882325,5.3870088067742916,4.3600737627404209,2.338273393926718,2.3265820269570843,2.3149491168222989,2.303374371238188,2.2918574993819965,2.2803982118850863,{"$f":"SUM(CL49:CL67)","v":2.2689962208256613}]
[]
["New Commercial Customers",2012,{"$f":"B70+1","v":2013},{"$f":"C70+1","v":2014},2015,2016,2017,2018,2019,2020,"2 year average"]
["LGA"]
["Bass Coast (S)",null,{"$f":"IFERROR(C26/Households!E53,0)","v":8.4615384615384075E-3},{"$f":"IFERROR(D26/Households!F53,0)","v":1.1262798634812301E-2},{"$f":"IFERROR(E26/Households!G53,0)","v":0},{"$f":"IFERROR(F26/Households!H53,0)","v":4.9549549549549512E-3},{"$f":"IFERROR(G26/Households!I53,0)","v":9.5444685466377667E-3},{"$f":"IFERROR(H26/Households!J53,0)","v":9.3617021276595595E-3},{"$f":"IFERROR(I26/Households!K53,0)","v":6.6734074823053659E-3},{"$f":"IFERROR(J26/Households!L53,0)","v":3.8938053097345108E-3},{"$f":"IF(AVERAGE(H72:I72)>=100%,MIN(C72:I72),AVERAGE(H72:I72))","v":8.0175548049824623E-3}]
["Bayside (C)",null,{"$f":"IFERROR(C27/Households!E54,0)","v":3.6533957845433465E-2},{"$f":"IFERROR(D27/Households!F54,0)","v":4.0388349514562841E-2},{"$f":"IFERROR(E27/Households!G54,0)","v":4.7722637661455125E-2},{"$f":"IFERROR(F27/Households!H54,0)","v":5.3771289537712659E-2},{"$f":"IFERROR(G27/Households!I54,0)","v":4.9343065693430554E-2},{"$f":"IFERROR(H27/Households!J54,0)","v":3.1989063568011095E-2},{"$f":"IFERROR(I27/Households!K54,0)","v":2.5742574257425575E-2},{"$f":"IFERROR(J27/Households!L54,0)","v":4.5547445255474356E-2},{"$f":"IF(AVERAGE(H73:I73)>=100%,MIN(C73:I73),AVERAGE(H73:I73))","v":2.8865818912718333E-2}]
["Boroondara (C)",null,{"$f":"IFERROR(C28/Households!E55,0)","v":4.4155844155844157E-2},{"$f":"IFERROR(D28/Households!F55,0)","v":5.0206896551723737E-2},{"$f":"IFERROR(E28/Households!G55,0)","v":7.3291925465838514E-2},{"$f":"IFERROR(F28/Households!H55,0)","v":6.3892191835117296E-2},{"$f":"IFERROR(G28/Households!I55,0)","v":6.9304456476468643E-2},{"$f":"IFERROR(H28/Households!J55,0)","v":7.4985285462035589E-2},{"$f":"IFERROR(I28/Households!K55,0)","v":8.4239428885228576E-2},{"$f":"IFERROR(J28/Households!L55,0)","v":-0.29885057471263871},7.9612357173632076E-2]
["Cardinia (S)",null,{"$f":"IFERROR(C29/Households!E56,0)","v":1.3432477812425033E-3},{"$f":"IFERROR(D29/Households!F56,0)","v":3.2193158953722333E-3},{"$f":"IFERROR(E29/Households!G56,0)","v":6.622516556291407E-4},{"$f":"IFERROR(F29/Households!H56,0)","v":5.3080568720379113E-4},{"$f":"IFERROR(G29/Households!I56,0)","v":0},{"$f":"IFERROR(H29/Households!J56,0)","v":1.7819261773440826E-3},{"$f":"IFERROR(I29/Households!K56,0)","v":0},{"$f":"IFERROR(J29/Households!L56,0)","v":1.3951170901843558E-3},8.9096308867204132E-4]
["Casey (C)",null,{"$f":"IFERROR(C30/Households!E57,0)","v":1.7647728566548965E-3},{"$f":"IFERROR(D30/Households!F57,0)","v":1.5634456324389761E-3},{"$f":"IFERROR(E30/Households!G57,0)","v":5.3489776550772166E-4},{"$f":"IFERROR(F30/Households!H57,0)","v":4.6753638488801827E-4},{"$f":"IFERROR(G30/Households!I57,0)","v":1.5519954226863092E-3},{"$f":"IFERROR(H30/Households!J57,0)","v":6.8022235225278084E-4},{"$f":"IFERROR(I30/Households!K57,0)","v":2.5223759153783559E-3},{"$f":"IFERROR(J30/Households!L57,0)","v":8.742244782853891E-4},1.6012991338155685E-3]
["Frankston (C)",null,{"$f":"IFERROR(C31/Households!E58,0)","v":1.1590171534538673E-3},{"$f":"IFERROR(D31/Households!F58,0)","v":0},{"$f":"IFERROR(E31/Households!G58,0)","v":0},{"$f":"IFERROR(F31/Households!H58,0)","v":0},{"$f":"IFERROR(G31/Households!I58,0)","v":0},{"$f":"IFERROR(H31/Households!J58,0)","v":0},{"$f":"IFERROR(I31/Households!K58,0)","v":0},{"$f":"IFERROR(J31/Households!L58,0)","v":0},0]
["Glen Eira (C)",null,{"$f":"IFERROR(C32/Households!E59,0)","v":3.3815298507462746E-2},{"$f":"IFERROR(D32/Households!F59,0)","v":3.9030402629416656E-2},{"$f":"IFERROR(E32/Households!G59,0)","v":4.5964125560538117E-2},{"$f":"IFERROR(F32/Households!H59,0)","v":4.5129748025573582E-2},{"$f":"IFERROR(G32/Households!I59,0)","v":4.2623521224773621E-2},{"$f":"IFERROR(H32/Households!J59,0)","v":4.5676004872107323E-2},{"$f":"IFERROR(I32/Households!K59,0)","v":2.1988527724665391E-2},{"$f":"IFERROR(J32/Households!L59,0)","v":2.0820939916716196E-2},3.3832266298386357E-2]
["Greater Dandenong (C)",null,{"$f":"IFERROR(C33/Households!E60,0)","v":7.793857058476085E-2},{"$f":"IFERROR(D33/Households!F60,0)","v":2.7938342967244605E-2},{"$f":"IFERROR(E33/Households!G60,0)","v":3.9887926642893548E-2},{"$f":"IFERROR(F33/Households!H60,0)","v":4.1119923095409697E-2},{"$f":"IFERROR(G33/Households!I60,0)","v":3.4314320388349619E-2},{"$f":"IFERROR(H33/Households!J60,0)","v":4.7559115179252334E-2},{"$f":"IFERROR(I33/Households!K60,0)","v":6.8363979255068499E-2},{"$f":"IFERROR(J33/Households!L60,0)","v":1.0623762376237011},5.7961547217160417E-2]
["Kingston (C)",null,{"$f":"IFERROR(C34/Households!E61,0)","v":7.4960547080483816E-2},{"$f":"IFERROR(D34/Households!F61,0)","v":4.8025613660619089E-2},{"$f":"IFERROR(E34/Households!G61,0)","v":7.620452310717811E-2},{"$f":"IFERROR(F34/Households!H61,0)","v":6.2106043752317222E-2},{"$f":"IFERROR(G34/Households!I61,0)","v":4.9763033175355451E-2},{"$f":"IFERROR(H34/Households!J61,0)","v":3.8525614327363539E-2},{"$f":"IFERROR(I34/Households!K61,0)","v":3.5076530612244791E-2},{"$f":"IFERROR(J34/Households!L61,0)","v":5.2048354600403718E-2},3.6801072469804165E-2]
["Knox (C)",null,{"$f":"IFERROR(C35/Households!E62,0)","v":0.16068012752391087},{"$f":"IFERROR(D35/Households!F62,0)","v":6.7065317387304729E-2},{"$f":"IFERROR(E35/Households!G62,0)","v":8.5308056872037616E-2},{"$f":"IFERROR(F35/Households!H62,0)","v":5.5535390199637318E-2},{"$f":"IFERROR(G35/Households!I62,0)","v":4.5793758480325554E-2},{"$f":"IFERROR(H35/Households!J62,0)","v":6.4332129963898851E-2},{"$f":"IFERROR(I35/Households!K62,0)","v":4.4295302013422383E-2},{"$f":"IFERROR(J35/Households!L62,0)","v":9.0909090909090912E-2},5.4313715988660617E-2]
["Manningham (C)",null,{"$f":"IFERROR(C36/Households!E63,0)","v":1.8320610687022901E-2},{"$f":"IFERROR(D36/Households!F63,0)","v":3.8888888888888466E-2},{"$f":"IFERROR(E36/Households!G63,0)","v":3.7388724035608792E-2},{"$f":"IFERROR(F36/Households!H63,0)","v":2.6666666666666668E-2},{"$f":"IFERROR(G36/Households!I63,0)","v":4.117647058823494E-2},{"$f":"IFERROR(H36/Households!J63,0)","v":2.6561264822134632E-2},{"$f":"IFERROR(I36/Households!K63,0)","v":1.5024390243902333E-2},{"$f":"IFERROR(J36/Households!L63,0)","v":1.8749999999999999E-2},2.0792827533018483E-2]
["Maroondah (C)",null,{"$f":"IFERROR(C37/Households!E64,0)","v":2.7023014105419508E-2},{"$f":"IFERROR(D37/Households!F64,0)","v":1.7439024390244012E-2},{"$f":"IFERROR(E37/Households!G64,0)","v":2.9213483146067178E-2},{"$f":"IFERROR(F37/Households!H64,0)","v":2.9262802476083573E-2},{"$f":"IFERROR(G37/Households!I64,0)","v":3.9316239316239315E-2},{"$f":"IFERROR(H37/Households!J64,0)","v":2.8547297297297193E-2},{"$f":"IFERROR(I37/Households!K64,0)","v":4.3984962406014613E-2},{"$f":"IFERROR(J37/Households!L64,0)","v":4.0625000000000001E-2},3.6266129851655907E-2]
["Melbourne (C)",null,{"$f":"IFERROR(C38/Households!E65,0)","v":3.7725680409593102E-3},{"$f":"IFERROR(D38/Households!F65,0)","v":1.7271157167530224E-3},{"$f":"IFERROR(E38/Households!G65,0)","v":1.1239743733842868E-3},{"$f":"IFERROR(F38/Households!H65,0)","v":2.1682567215958368E-3},{"$f":"IFERROR(G38/Households!I65,0)","v":2.2997316979685703E-3},{"$f":"IFERROR(H38/Households!J65,0)","v":1.968503937007874E-3},{"$f":"IFERROR(I38/Households!K65,0)","v":2.5354385156159962E-3},{"$f":"IFERROR(J38/Households!L65,0)","v":2.9399412011759767E-3},2.2519712263119351E-3]
["Monash (C)",null,{"$f":"IFERROR(C39/Households!E66,0)","v":6.5137614678899086E-2},{"$f":"IFERROR(D39/Households!F66,0)","v":2.9844559585492317E-2},{"$f":"IFERROR(E39/Households!G66,0)","v":3.214285714285714E-2},{"$f":"IFERROR(F39/Households!H66,0)","v":3.8336713995943267E-2},{"$f":"IFERROR(G39/Households!I66,0)","v":3.2673958575750367E-2},{"$f":"IFERROR(H39/Households!J66,0)","v":2.7082066869301081E-2},{"$f":"IFERROR(I39/Households!K66,0)","v":3.7220566318927013E-2},{"$f":"IFERROR(J39/Households!L66,0)","v":4.4999999999999617E-2},3.2151316594114049E-2]
["Port Phillip (C)",null,{"$f":"IFERROR(C40/Households!E68,0)","v":4.9491825011047284E-2},{"$f":"IFERROR(D40/Households!F68,0)","v":4.4444444444444446E-2},{"$f":"IFERROR(E40/Households!G68,0)","v":6.0103626943005181E-2},{"$f":"IFERROR(F40/Households!H68,0)","v":4.8975957257346395E-2},{"$f":"IFERROR(G40/Households!I68,0)","v":6.5056678166584531E-2},{"$f":"IFERROR(H40/Households!J68,0)","v":3.8328861632809505E-2},{"$f":"IFERROR(I40/Households!K68,0)","v":2.8874734607218684E-2},{"$f":"IFERROR(J40/Households!L68,0)","v":6.3084112149532703E-2},3.3601798120014098E-2]
["South Gippsland (S)",null,{"$f":"IFERROR(C41/Households!E69,0)","v":2.0749279538904812E-2},{"$f":"IFERROR(D41/Households!F69,0)","v":3.8709677419355291E-2},{"$f":"IFERROR(E41/Households!G69,0)","v":9.2307692307691796E-3},{"$f":"IFERROR(F41/Households!H69,0)","v":0},{"$f":"IFERROR(G41/Households!I69,0)","v":1.2060301507537776E-2},{"$f":"IFERROR(H41/Households!J69,0)","v":1.8897637795275483E-2},{"$f":"IFERROR(I41/Households!K69,0)","v":7.1641791044776745E-3},{"$f":"IFERROR(J41/Households!L69,0)","v":2.1301775147928904E-2},1.3030908449876578E-2]
["Stonnington (C)",null,{"$f":"IFERROR(C42/Households!E70,0)","v":3.9191141068849494E-2},{"$f":"IFERROR(D42/Households!F70,0)","v":4.3872039883672519E-2},{"$f":"IFERROR(E42/Households!G70,0)","v":6.2886597938144329E-2},{"$f":"IFERROR(F42/Households!H70,0)","v":6.5815126050420142E-2},{"$f":"IFERROR(G42/Households!I70,0)","v":5.0054171180931875E-2},{"$f":"IFERROR(H42/Households!J70,0)","v":5.2610601833399821E-2},{"$f":"IFERROR(I42/Households!K70,0)","v":9.8595317725752321E-2},{"$f":"IFERROR(J42/Households!L70,0)","v":8.138424821002288E-2},7.5602959779576068E-2]
["Whitehorse (C)",null,{"$f":"IFERROR(C43/Households!E71,0)","v":4.5123966942148951E-2},{"$f":"IFERROR(D43/Households!F71,0)","v":6.1545332737829028E-2},{"$f":"IFERROR(E43/Households!G71,0)","v":3.7473505722764068E-2},{"$f":"IFERROR(F43/Households!H71,0)","v":4.3011478730587291E-2},{"$f":"IFERROR(G43/Households!I71,0)","v":3.9480949751518737E-2},{"$f":"IFERROR(H43/Households!J71,0)","v":3.7142857142856998E-2},{"$f":"IFERROR(I43/Households!K71,0)","v":3.7350359138068549E-2},{"$f":"IFERROR(J43/Households!L71,0)","v":5.1840490797546324E-2},3.7246608140462774E-2]
["Yarra Ranges (S)",null,{"$f":"IFERROR(C44/Households!E72,0)","v":6.5028901734103903E-2},{"$f":"IFERROR(D44/Households!F72,0)","v":5.318949343339649E-2},{"$f":"IFERROR(E44/Households!G72,0)","v":6.2614195361911512E-2},{"$f":"IFERROR(F44/Households!H72,0)","v":2.7956403269754546E-2},{"$f":"IFERROR(G44/Households!I72,0)","v":3.4510042604990888E-2},{"$f":"IFERROR(H44/Households!J72,0)","v":5.1843317972350575E-2},{"$f":"IFERROR(I44/Households!K72,0)","v":4.3514965464313243E-2},{"$f":"IFERROR(J44/Households!L72,0)","v":5.6133056133054519E-2},4.7679141718331909E-2]
["Total",null,{"$f":"IFERROR(C45/Households!E73,0)","v":2.7226810943439518E-2},{"$f":"IFERROR(D45/Households!F73,0)","v":2.212412882466756E-2},{"$f":"IFERROR(E45/Households!G73,0)","v":2.5802630604827979E-2},{"$f":"IFERROR(F45/Households!H73,0)","v":2.4823071779573377E-2},{"$f":"IFERROR(G45/Households!I73,0)","v":2.2125040280753381E-2},{"$f":"IFERROR(H45/Households!J73,0)","v":2.0540085942432444E-2},{"$f":"IFERROR(I45/Households!K73,0)","v":2.1082560765149437E-2},{"$f":"IFERROR(J45/Households!L73,0)","v":2.3730098580402224E-2},2.0811323353790941E-2]
[]
[]
["New Commercial Disconnections",2012,{"$f":"B94+1","v":2013},{"$f":"C94+1","v":2014},2015,2016,2017,2018,2019,2020]
["LGA"]
["Bass Coast (S)",{"$f":"IFERROR(B49/B3,0)","v":0},{"$f":"IFERROR(C49/C3,0)","v":0},0,4.2553191489361701E-2,2.0833333333333332E-2,1.9607843137254902E-2,1.8518518518518517E-2,0,1.7241379310344827E-2]
["Bayside (C)",{"$f":"IFERROR(B50/B4,0)","v":0},1.4511873350923483E-2,3.851261620185923E-2,4.9798115746971738E-2,3.7383177570093455E-2,2.7851458885941646E-2,2.2516556291390728E-2,4.2176870748299317E-2,2.3287671232876714E-2]
["Boroondara (C)",{"$f":"IFERROR(B51/B5,0)","v":0},1.6739446870451237E-2,2.6086956521739129E-2,3.1541218637992835E-2,3.7749287749287749E-2,3.3802816901408447E-2,2.8711484593837534E-2,3.2638888888888891E-2,2.5280898876404494E-2]
["Cardinia (S)",{"$f":"IFERROR(B52/B6,0)","v":0},0,0.03,0.01,0,4.1237113402061855E-2,5.2631578947368418E-2,6.741573033707865E-2,2.247191011235955E-2]
["Casey (C)",{"$f":"IFERROR(B53/B7,0)","v":0},1.3793103448275862E-2,5.6338028169014086E-2,2.1276595744680851E-2,6.7164179104477612E-2,0,2.1276595744680851E-2,4.8275862068965517E-2,2.0689655172413793E-2]
["Frankston (C)",{"$f":"IFERROR(B54/B8,0)","v":0},0,0,0,0,0,0,0,0]
["Glen Eira (C)",{"$f":"IFERROR(B55/B9,0)","v":0},2.0533880903490759E-2,3.5823950870010238E-2,4.7325102880658436E-2,4.1879468845760978E-2,3.1093279839518557E-2,2.3575638506876228E-2,2.967359050445104E-2,3.2225579053373615E-2]
["Greater Dandenong (C)",{"$f":"IFERROR(B56/B10,0)","v":0},2.074074074074074E-2,4.6072507552870089E-2,4.0785498489425982E-2,3.4405385190725501E-2,4.084720121028744E-2,3.4090909090909088E-2,8.9030206677265494E-2,3.1872509960159362E-2]
["Kingston (C)",{"$f":"IFERROR(B57/B11,0)","v":0},1.7543859649122806E-2,3.9484286865431102E-2,3.7420382165605094E-2,5.0833995234312944E-2,4.246794871794872E-2,3.3789219629927592E-2,6.4220183486238536E-2,3.3613445378151259E-2]
["Knox (C)",{"$f":"IFERROR(B58/B12,0)","v":0},1.6536118363794605E-2,3.1578947368421054E-2,3.4180543382997371E-2,2.9798422436459245E-2,3.1858407079646017E-2,2.9203539823008849E-2,5.3979871912168347E-2,2.865064695009242E-2]
["Manningham (C)",{"$f":"IFERROR(B59/B13,0)","v":0},2.6365348399246705E-2,2.247191011235955E-2,2.4118738404452691E-2,2.5830258302583026E-2,2.717391304347826E-2,1.6216216216216217E-2,2.7223230490018149E-2,1.4492753623188406E-2]
["Maroondah (C)",{"$f":"IFERROR(B60/B14,0)","v":0},1.1824324324324325E-2,3.2534246575342464E-2,4.5138888888888888E-2,3.292894280762565E-2,3.6269430051813469E-2,2.7777777777777776E-2,2.5906735751295335E-2,3.6777583187390543E-2]
["Melbourne (C)",{"$f":"IFERROR(B61/B15,0)","v":0},0,2.8409090909090908E-2,3.4285714285714287E-2,2.2099447513812154E-2,3.1578947368421054E-2,2.5510204081632654E-2,0.10695187165775401,4.3010752688172046E-2]
["Monash (C)",{"$f":"IFERROR(B62/B16,0)","v":0},1.6430171769977596E-2,4.496951219512195E-2,3.7721324095458045E-2,3.2159264931087291E-2,3.1131359149582385E-2,2.8179741051028179E-2,7.5697211155378488E-2,3.0375699440447643E-2]
["Port Phillip (C)",{"$f":"IFERROR(B63/B17,0)","v":0},1.3530927835051547E-2,3.0205655526992288E-2,3.4615384615384617E-2,3.8585209003215437E-2,4.1104688503532431E-2,3.4105534105534102E-2,5.4448871181938911E-2,2.1319120586275817E-2]
["South Gippsland (S)",{"$f":"IFERROR(B64/B18,0)","v":0},0,0,2.1739130434782608E-2,4.5454545454545456E-2,0,2.1739130434782608E-2,0,2.0408163265306121E-2]
["Stonnington (C)",{"$f":"IFERROR(B65/B19,0)","v":0},1.803921568627451E-2,2.1621621621621623E-2,5.5252918287937741E-2,4.4072948328267476E-2,3.45086271567892E-2,2.7286135693215339E-2,4.4020542920029347E-2,3.95227442207308E-2]
["Whitehorse (C)",{"$f":"IFERROR(B66/B20,0)","v":0},2.4518388791593695E-2,2.9285099052540915E-2,3.5528596187175042E-2,3.6175710594315243E-2,3.4893617021276593E-2,2.9585798816568046E-2,4.1880341880341877E-2,3.5102739726027399E-2]
["Yarra Ranges (S)",{"$f":"IFERROR(B67/B21,0)","v":0},1.3498312710911136E-2,2.8248587570621469E-2,3.6117381489841983E-2,2.8409090909090908E-2,2.6195899772209569E-2,1.9187358916478554E-2,3.6571428571428574E-2,3.6299765807962528E-2]
["Total",{"$f":"IFERROR(B68/B22,0)","v":0},1.7160367722165476E-2,3.3160480349344976E-2,3.8661202185792352E-2,3.6833163438668028E-2,3.4151619665922769E-2,2.8350168350168351E-2,5.0686813186813187E-2,3.0126740078952836E-2]
[]
["Commercial Customers decision points",2012,{"$f":"B117+1","v":2013},{"$f":"C117+1","v":2014},2015,2016,2017,2018,2019,2020,{"$f":"J117+1","v":2021},{"$f":"K117+1","v":2022},2023,2024,2025,2026,2027,2028,2029,2030,2031,2032,2033,2034,2035,2036,2037,2038,2039,2040,2041,2042,2043,2044,2045,2046,2047,2048,2049,2050,2051,2052,2053,2054,2055,2056,2057,2058,2059,2060,2061,2062,2063,2064,2065,2066,2067,2068,2069,2070,2071,2072,2073,2074,2075,2076,2077,2078,2079,2080,2081,2082,2083,2084,2085,{"$f":"BW117+1","v":2086},{"$f":"BX117+1","v":2087},{"$f":"BY117+1","v":2088},{"$f":"BZ117+1","v":2089},{"$f":"CA117+1","v":2090},{"$f":"CB117+1","v":2091},{"$f":"CC117+1","v":2092},{"$f":"CD117+1","v":2093},{"$f":"CE117+1","v":2094},{"$f":"CF117+1","v":2095},{"$f":"CG117+1","v":2096},{"$f":"CH117+1","v":2097},{"$f":"CI117+1","v":2098},{"$f":"CJ117+1","v":2099},{"$f":"CK117+1","v":2100}]
["LGA"]
["Bass Coast (S)",null,null,null,null,null,null,null,null,null,{"$f":"INT((J3/Control!$H$9))","v":3},{"$f":"INT((K3/Control!$H$9))","v":3},{"$f":"INT((L3/Control!$H$9))","v":3},{"$f":"INT((M3/Control!$H$9))","v":3},{"$f":"INT((N3/Control!$H$9))","v":3},{"$f":"INT((O3/Control!$H$9))","v":3},{"$f":"INT((P3/Control!$H$9))","v":3},{"$f":"INT((Q3/Control!$H$9))","v":3},{"$f":"INT((R3/Control!$H$9))","v":3},{"$f":"INT((S3/Control!$H$9))","v":3},{"$f":"INT((T3/Control!$H$9))","v":3},{"$f":"INT((U3/Control!$H$9))","v":2},{"$f":"INT((V3/Control!$H$9))","v":2},{"$f":"INT((W3/Control!$H$9))","v":2},{"$f":"INT((X3/Control!$H$9))","v":2},{"$f":"INT((Y3/Control!$H$9))","v":2},{"$f":"INT((Z3/Control!$H$9))","v":2},{"$f":"INT((AA3/Control!$H$9))","v":2},{"$f":"INT((AB3/Control!$H$9))","v":2},{"$f":"INT((AC3/Control!$H$9))","v":2},{"$f":"INT((AD3/Control!$H$9))","v":2},{"$f":"INT((AE3/Control!$H$9))","v":2},{"$f":"INT((AF3/Control!$H$9))","v":2},{"$f":"INT((AG3/Control!$H$9))","v":1},{"$f":"INT((AH3/Control!$H$9))","v":1},{"$f":"INT((AI3/Control!$H$9))","v":1},{"$f":"INT((AJ3/Control!$H$9))","v":1},{"$f":"INT((AK3/Control!$H$9))","v":1},{"$f":"INT((AL3/Control!$H$9))","v":1},{"$f":"INT((AM3/Control!$H$9))","v":1},{"$f":"INT((AN3/Control!$H$9))","v":1},{"$f":"INT((AO3/Control!$H$9))","v":1},{"$f":"INT((AP3/Control!$H$9))","v":1},{"$f":"INT((AQ3/Control!$H$9))","v":1},{"$f":"INT((AR3/Control!$H$9))","v":1},{"$f":"INT((AS3/Control!$H$9))","v":1},{"$f":"INT((AT3/Control!$H$9))","v":1},{"$f":"INT((AU3/Control!$H$9))","v":1},{"$f":"INT((AV3/Control!$H$9))","v":0},{"$f":"INT((AW3/Control!$H$9))","v":0},{"$f":"INT((AX3/Control!$H$9))","v":0},{"$f":"INT((AY3/Control!$H$9))","v":0},{"$f":"INT((AZ3/Control!$H$9))","v":0},{"$f":"INT((BA3/Control!$H$9))","v":0},{"$f":"INT((BB3/Control!$H$9))","v":0},{"$f":"INT((BC3/Control!$H$9))","v":0},{"$f":"INT((BD3/Control!$H$9))","v":0},{"$f":"INT((BE3/Control!$H$9))","v":0},{"$f":"INT((BF3/Control!$H$9))","v":0},{"$f":"INT((BG3/Control!$H$9))","v":0},{"$f":"INT((BH3/Control!$H$9))","v":0},{"$f":"INT((BI3/Control!$H$9))","v":0},{"$f":"INT((BJ3/Control!$H$9))","v":0},{"$f":"INT((BK3/Control!$H$9))","v":0},{"$f":"INT((BL3/Control!$H$9))","v":0},{"$f":"INT((BM3/Control!$H$9))","v":0},{"$f":"INT((BN3/Control!$H$9))","v":0},{"$f":"INT((BO3/Control!$H$9))","v":0},{"$f":"INT((BP3/Control!$H$9))","v":0},{"$f":"INT((BQ3/Control!$H$9))","v":0},{"$f":"INT((BR3/Control!$H$9))","v":0},{"$f":"INT((BS3/Control!$H$9))","v":0},{"$f":"INT((BT3/Control!$H$9))","v":0},{"$f":"INT((BU3/Control!$H$9))","v":0},{"$f":"INT((BV3/Control!$H$9))","v":0},{"$f":"INT((BW3/Control!$H$9))","v":0},{"$f":"INT((BX3/Control!$H$9))","v":0},{"$f":"INT((BY3/Control!$H$9))","v":0},{"$f":"INT((BZ3/Control!$H$9))","v":0},{"$f":"INT((CA3/Control!$H$9))","v":0},{"$f":"INT((CB3/Control!$H$9))","v":0},{"$f":"INT((CC3/Control!$H$9))","v":0},{"$f":"INT((CD3/Control!$H$9))","v":0},{"$f":"INT((CE3/Control!$H$9))","v":0},{"$f":"INT((CF3/Control!$H$9))","v":0},{"$f":"INT((CG3/Control!$H$9))","v":0},{"$f":"INT((CH3/Control!$H$9))","v":0},{"$f":"INT((CI3/Control!$H$9))","v":0},{"$f":"INT((CJ3/Control!$H$9))","v":0},{"$f":"INT((CK3/Control!$H$9))","v":0}]
["Bayside (C)",null,null,null,null,null,null,null,null,null,{"$f":"INT((J4/Control!$H$9))","v":48},{"$f":"INT((K4/Control!$H$9))","v":47},{"$f":"INT((L4/Control!$H$9))","v":47},{"$f":"INT((M4/Control!$H$9))","v":44},{"$f":"INT((N4/Control!$H$9))","v":41},{"$f":"INT((O4/Control!$H$9))","v":40},{"$f":"INT((P4/Control!$H$9))","v":39},{"$f":"INT((Q4/Control!$H$9))","v":38},{"$f":"INT((R4/Control!$H$9))","v":36},{"$f":"INT((S4/Control!$H$9))","v":33},{"$f":"INT((T4/Control!$H$9))","v":31},{"$f":"INT((U4/Control!$H$9))","v":29},{"$f":"INT((V4/Control!$H$9))","v":28},{"$f":"INT((W4/Control!$H$9))","v":26},{"$f":"INT((X4/Control!$H$9))","v":24},{"$f":"INT((Y4/Control!$H$9))","v":23},{"$f":"INT((Z4/Control!$H$9))","v":22},{"$f":"INT((AA4/Control!$H$9))","v":20},{"$f":"INT((AB4/Control!$H$9))","v":19},{"$f":"INT((AC4/Control!$H$9))","v":18},{"$f":"INT((AD4/Control!$H$9))","v":17},{"$f":"INT((AE4/Control!$H$9))","v":15},{"$f":"INT((AF4/Control!$H$9))","v":14},{"$f":"INT((AG4/Control!$H$9))","v":13},{"$f":"INT((AH4/Control!$H$9))","v":13},{"$f":"INT((AI4/Control!$H$9))","v":12},{"$f":"INT((AJ4/Control!$H$9))","v":11},{"$f":"INT((AK4/Control!$H$9))","v":10},{"$f":"INT((AL4/Control!$H$9))","v":10},{"$f":"INT((AM4/Control!$H$9))","v":9},{"$f":"INT((AN4/Control!$H$9))","v":8},{"$f":"INT((AO4/Control!$H$9))","v":8},{"$f":"INT((AP4/Control!$H$9))","v":7},{"$f":"INT((AQ4/Control!$H$9))","v":7},{"$f":"INT((AR4/Control!$H$9))","v":6},{"$f":"INT((AS4/Control!$H$9))","v":6},{"$f":"INT((AT4/Control!$H$9))","v":6},{"$f":"INT((AU4/Control!$H$9))","v":5},{"$f":"INT((AV4/Control!$H$9))","v":5},{"$f":"INT((AW4/Control!$H$9))","v":5},{"$f":"INT((AX4/Control!$H$9))","v":4},{"$f":"INT((AY4/Control!$H$9))","v":4},{"$f":"INT((AZ4/Control!$H$9))","v":4},{"$f":"INT((BA4/Control!$H$9))","v":4},{"$f":"INT((BB4/Control!$H$9))","v":4},{"$f":"INT((BC4/Control!$H$9))","v":3},{"$f":"INT((BD4/Control!$H$9))","v":3},{"$f":"INT((BE4/Control!$H$9))","v":3},{"$f":"INT((BF4/Control!$H$9))","v":3},{"$f":"INT((BG4/Control!$H$9))","v":3},{"$f":"INT((BH4/Control!$H$9))","v":3},{"$f":"INT((BI4/Control!$H$9))","v":2},{"$f":"INT((BJ4/Control!$H$9))","v":2},{"$f":"INT((BK4/Control!$H$9))","v":2},{"$f":"INT((BL4/Control!$H$9))","v":2},{"$f":"INT((BM4/Control!$H$9))","v":2},{"$f":"INT((BN4/Control!$H$9))","v":2},{"$f":"INT((BO4/Control!$H$9))","v":2},{"$f":"INT((BP4/Control!$H$9))","v":2},{"$f":"INT((BQ4/Control!$H$9))","v":2},{"$f":"INT((BR4/Control!$H$9))","v":2},{"$f":"INT((BS4/Control!$H$9))","v":2},{"$f":"INT((BT4/Control!$H$9))","v":2},{"$f":"INT((BU4/Control!$H$9))","v":1},{"$f":"INT((BV4/Control!$H$9))","v":1},{"$f":"INT((BW4/Control!$H$9))","v":1},{"$f":"INT((BX4/Control!$H$9))","v":1},{"$f":"INT((BY4/Control!$H$9))","v":1},{"$f":"INT((BZ4/Control!$H$9))","v":1},{"$f":"INT((CA4/Control!$H$9))","v":1},{"$f":"INT((CB4/Control!$H$9))","v":1},{"$f":"INT((CC4/Control!$H$9))","v":1},{"$f":"INT((CD4/Control!$H$9))","v":1},{"$f":"INT((CE4/Control!$H$9))","v":1},{"$f":"INT((CF4/Control!$H$9))","v":1},{"$f":"INT((CG4/Control!$H$9))","v":1},{"$f":"INT((CH4/Control!$H$9))","v":1},{"$f":"INT((CI4/Control!$H$9))","v":1},{"$f":"INT((CJ4/Control!$H$9))","v":1},{"$f":"INT((CK4/Control!$H$9))","v":1}]
["Boroondara (C)",null,null,null,null,null,null,null,null,null,{"$f":"INT((J5/Control!$H$9))","v":94},{"$f":"INT((K5/Control!$H$9))","v":93},{"$f":"INT((L5/Control!$H$9))","v":92},{"$f":"INT((M5/Control!$H$9))","v":86},{"$f":"INT((N5/Control!$H$9))","v":80},{"$f":"INT((O5/Control!$H$9))","v":80},{"$f":"INT((P5/Control!$H$9))","v":79},{"$f":"INT((Q5/Control!$H$9))","v":75},{"$f":"INT((R5/Control!$H$9))","v":71},{"$f":"INT((S5/Control!$H$9))","v":66},{"$f":"INT((T5/Control!$H$9))","v":61},{"$f":"INT((U5/Control!$H$9))","v":58},{"$f":"INT((V5/Control!$H$9))","v":54},{"$f":"INT((W5/Control!$H$9))","v":50},{"$f":"INT((X5/Control!$H$9))","v":47},{"$f":"INT((Y5/Control!$H$9))","v":45},{"$f":"INT((Z5/Control!$H$9))","v":43},{"$f":"INT((AA5/Control!$H$9))","v":40},{"$f":"INT((AB5/Control!$H$9))","v":37},{"$f":"INT((AC5/Control!$H$9))","v":34},{"$f":"INT((AD5/Control!$H$9))","v":32},{"$f":"INT((AE5/Control!$H$9))","v":30},{"$f":"INT((AF5/Control!$H$9))","v":28},{"$f":"INT((AG5/Control!$H$9))","v":26},{"$f":"INT((AH5/Control!$H$9))","v":24},{"$f":"INT((AI5/Control!$H$9))","v":22},{"$f":"INT((AJ5/Control!$H$9))","v":21},{"$f":"INT((AK5/Control!$H$9))","v":19},{"$f":"INT((AL5/Control!$H$9))","v":18},{"$f":"INT((AM5/Control!$H$9))","v":17},{"$f":"INT((AN5/Control!$H$9))","v":16},{"$f":"INT((AO5/Control!$H$9))","v":15},{"$f":"INT((AP5/Control!$H$9))","v":14},{"$f":"INT((AQ5/Control!$H$9))","v":13},{"$f":"INT((AR5/Control!$H$9))","v":12},{"$f":"INT((AS5/Control!$H$9))","v":11},{"$f":"INT((AT5/Control!$H$9))","v":10},{"$f":"INT((AU5/Control!$H$9))","v":10},{"$f":"INT((AV5/Control!$H$9))","v":9},{"$f":"INT((AW5/Control!$H$9))","v":8},{"$f":"INT((AX5/Control!$H$9))","v":8},{"$f":"INT((AY5/Control!$H$9))","v":7},{"$f":"INT((AZ5/Control!$H$9))","v":7},{"$f":"INT((BA5/Control!$H$9))","v":7},{"$f":"INT((BB5/Control!$H$9))","v":6},{"$f":"INT((BC5/Control!$H$9))","v":6},{"$f":"INT((BD5/Control!$H$9))","v":5},{"$f":"INT((BE5/Control!$H$9))","v":5},{"$f":"INT((BF5/Control!$H$9))","v":5},{"$f":"INT((BG5/Control!$H$9))","v":4},{"$f":"INT((BH5/Control!$H$9))","v":4},{"$f":"INT((BI5/Control!$H$9))","v":4},{"$f":"INT((BJ5/Control!$H$9))","v":4},{"$f":"INT((BK5/Control!$H$9))","v":4},{"$f":"INT((BL5/Control!$H$9))","v":3},{"$f":"INT((BM5/Control!$H$9))","v":3},{"$f":"INT((BN5/Control!$H$9))","v":3},{"$f":"INT((BO5/Control!$H$9))","v":3},{"$f":"INT((BP5/Control!$H$9))","v":3},{"$f":"INT((BQ5/Control!$H$9))","v":3},{"$f":"INT((BR5/Control!$H$9))","v":2},{"$f":"INT((BS5/Control!$H$9))","v":2},{"$f":"INT((BT5/Control!$H$9))","v":2},{"$f":"INT((BU5/Control!$H$9))","v":2},{"$f":"INT((BV5/Control!$H$9))","v":2},{"$f":"INT((BW5/Control!$H$9))","v":2},{"$f":"INT((BX5/Control!$H$9))","v":2},{"$f":"INT((BY5/Control!$H$9))","v":2},{"$f":"INT((BZ5/Control!$H$9))","v":2},{"$f":"INT((CA5/Control!$H$9))","v":2},{"$f":"INT((CB5/Control!$H$9))","v":2},{"$f":"INT((CC5/Control!$H$9))","v":2},{"$f":"INT((CD5/Control!$H$9))","v":2},{"$f":"INT((CE5/Control!$H$9))","v":1},{"$f":"INT((CF5/Control!$H$9))","v":1},{"$f":"INT((CG5/Control!$H$9))","v":1},{"$f":"INT((CH5/Control!$H$9))","v":1},{"$f":"INT((CI5/Control!$H$9))","v":1},{"$f":"INT((CJ5/Control!$H$9))","v":1},{"$f":"INT((CK5/Control!$H$9))","v":1}]
["Cardinia (S)",null,null,null,null,null,null,null,null,null,{"$f":"INT((J6/Control!$H$9))","v":5},{"$f":"INT((K6/Control!$H$9))","v":5},{"$f":"INT((L6/Control!$H$9))","v":5},{"$f":"INT((M6/Control!$H$9))","v":5},{"$f":"INT((N6/Control!$H$9))","v":5},{"$f":"INT((O6/Control!$H$9))","v":4},{"$f":"INT((P6/Control!$H$9))","v":4},{"$f":"INT((Q6/Control!$H$9))","v":4},{"$f":"INT((R6/Control!$H$9))","v":4},{"$f":"INT((S6/Control!$H$9))","v":4},{"$f":"INT((T6/Control!$H$9))","v":4},{"$f":"INT((U6/Control!$H$9))","v":3},{"$f":"INT((V6/Control!$H$9))","v":3},{"$f":"INT((W6/Control!$H$9))","v":3},{"$f":"INT((X6/Control!$H$9))","v":3},{"$f":"INT((Y6/Control!$H$9))","v":3},{"$f":"INT((Z6/Control!$H$9))","v":3},{"$f":"INT((AA6/Control!$H$9))","v":3},{"$f":"INT((AB6/Control!$H$9))","v":2},{"$f":"INT((AC6/Control!$H$9))","v":2},{"$f":"INT((AD6/Control!$H$9))","v":2},{"$f":"INT((AE6/Control!$H$9))","v":2},{"$f":"INT((AF6/Control!$H$9))","v":2},{"$f":"INT((AG6/Control!$H$9))","v":2},{"$f":"INT((AH6/Control!$H$9))","v":2},{"$f":"INT((AI6/Control!$H$9))","v":2},{"$f":"INT((AJ6/Control!$H$9))","v":2},{"$f":"INT((AK6/Control!$H$9))","v":2},{"$f":"INT((AL6/Control!$H$9))","v":2},{"$f":"INT((AM6/Control!$H$9))","v":2},{"$f":"INT((AN6/Control!$H$9))","v":1},{"$f":"INT((AO6/Control!$H$9))","v":1},{"$f":"INT((AP6/Control!$H$9))","v":1},{"$f":"INT((AQ6/Control!$H$9))","v":1},{"$f":"INT((AR6/Control!$H$9))","v":1},{"$f":"INT((AS6/Control!$H$9))","v":1},{"$f":"INT((AT6/Control!$H$9))","v":1},{"$f":"INT((AU6/Control!$H$9))","v":1},{"$f":"INT((AV6/Control!$H$9))","v":1},{"$f":"INT((AW6/Control!$H$9))","v":1},{"$f":"INT((AX6/Control!$H$9))","v":1},{"$f":"INT((AY6/Control!$H$9))","v":1},{"$f":"INT((AZ6/Control!$H$9))","v":1},{"$f":"INT((BA6/Control!$H$9))","v":1},{"$f":"INT((BB6/Control!$H$9))","v":1},{"$f":"INT((BC6/Control!$H$9))","v":1},{"$f":"INT((BD6/Control!$H$9))","v":1},{"$f":"INT((BE6/Control!$H$9))","v":1},{"$f":"INT((BF6/Control!$H$9))","v":1},{"$f":"INT((BG6/Control!$H$9))","v":1},{"$f":"INT((BH6/Control!$H$9))","v":1},{"$f":"INT((BI6/Control!$H$9))","v":1},{"$f":"INT((BJ6/Control!$H$9))","v":1},{"$f":"INT((BK6/Control!$H$9))","v":1},{"$f":"INT((BL6/Control!$H$9))","v":1},{"$f":"INT((BM6/Control!$H$9))","v":1},{"$f":"INT((BN6/Control!$H$9))","v":1},{"$f":"INT((BO6/Control!$H$9))","v":1},{"$f":"INT((BP6/Control!$H$9))","v":1},{"$f":"INT((BQ6/Control!$H$9))","v":1},{"$f":"INT((BR6/Control!$H$9))","v":1},{"$f":"INT((BS6/Control!$H$9))","v":1},{"$f":"INT((BT6/Control!$H$9))","v":1},{"$f":"INT((BU6/Control!$H$9))","v":1},{"$f":"INT((BV6/Control!$H$9))","v":1},{"$f":"INT((BW6/Control!$H$9))","v":1},{"$f":"INT((BX6/Control!$H$9))","v":1},{"$f":"INT((BY6/Control!$H$9))","v":1},{"$f":"INT((BZ6/Control!$H$9))","v":1},{"$f":"INT((CA6/Control!$H$9))","v":1},{"$f":"INT((CB6/Control!$H$9))","v":1},{"$f":"INT((CC6/Control!$H$9))","v":1},{"$f":"INT((CD6/Control!$H$9))","v":1},{"$f":"INT((CE6/Control!$H$9))","v":1},{"$f":"INT((CF6/Control!$H$9))","v":1},{"$f":"INT((CG6/Control!$H$9))","v":1},{"$f":"INT((CH6/Control!$H$9))","v":1},{"$f":"INT((CI6/Control!$H$9))","v":1},{"$f":"INT((CJ6/Control!$H$9))","v":1},{"$f":"INT((CK6/Control!$H$9))","v":1}]
["Casey (C)",null,null,null,null,null,null,null,null,null,{"$f":"INT((J7/Control!$H$9))","v":9},{"$f":"INT((K7/Control!$H$9))","v":9},{"$f":"INT((L7/Control!$H$9))","v":9},{"$f":"INT((M7/Control!$H$9))","v":8},{"$f":"INT((N7/Control!$H$9))","v":8},{"$f":"INT((O7/Control!$H$9))","v":8},{"$f":"INT((P7/Control!$H$9))","v":8},{"$f":"INT((Q7/Control!$H$9))","v":7},{"$f":"INT((R7/Control!$H$9))","v":7},{"$f":"INT((S7/Control!$H$9))","v":6},{"$f":"INT((T7/Control!$H$9))","v":6},{"$f":"INT((U7/Control!$H$9))","v":6},{"$f":"INT((V7/Control!$H$9))","v":5},{"$f":"INT((W7/Control!$H$9))","v":5},{"$f":"INT((X7/Control!$H$9))","v":5},{"$f":"INT((Y7/Control!$H$9))","v":5},{"$f":"INT((Z7/Control!$H$9))","v":5},{"$f":"INT((AA7/Control!$H$9))","v":4},{"$f":"INT((AB7/Control!$H$9))","v":4},{"$f":"INT((AC7/Control!$H$9))","v":4},{"$f":"INT((AD7/Control!$H$9))","v":4},{"$f":"INT((AE7/Control!$H$9))","v":3},{"$f":"INT((AF7/Control!$H$9))","v":3},{"$f":"INT((AG7/Control!$H$9))","v":3},{"$f":"INT((AH7/Control!$H$9))","v":3},{"$f":"INT((AI7/Control!$H$9))","v":3},{"$f":"INT((AJ7/Control!$H$9))","v":3},{"$f":"INT((AK7/Control!$H$9))","v":3},{"$f":"INT((AL7/Control!$H$9))","v":2},{"$f":"INT((AM7/Control!$H$9))","v":2},{"$f":"INT((AN7/Control!$H$9))","v":2},{"$f":"INT((AO7/Control!$H$9))","v":2},{"$f":"INT((AP7/Control!$H$9))","v":2},{"$f":"INT((AQ7/Control!$H$9))","v":2},{"$f":"INT((AR7/Control!$H$9))","v":2},{"$f":"INT((AS7/Control!$H$9))","v":2},{"$f":"INT((AT7/Control!$H$9))","v":2},{"$f":"INT((AU7/Control!$H$9))","v":2},{"$f":"INT((AV7/Control!$H$9))","v":2},{"$f":"INT((AW7/Control!$H$9))","v":1},{"$f":"INT((AX7/Control!$H$9))","v":1},{"$f":"INT((AY7/Control!$H$9))","v":1},{"$f":"INT((AZ7/Control!$H$9))","v":1},{"$f":"INT((BA7/Control!$H$9))","v":1},{"$f":"INT((BB7/Control!$H$9))","v":1},{"$f":"INT((BC7/Control!$H$9))","v":1},{"$f":"INT((BD7/Control!$H$9))","v":1},{"$f":"INT((BE7/Control!$H$9))","v":1},{"$f":"INT((BF7/Control!$H$9))","v":1},{"$f":"INT((BG7/Control!$H$9))","v":1},{"$f":"INT((BH7/Control!$H$9))","v":1},{"$f":"INT((BI7/Control!$H$9))","v":1},{"$f":"INT((BJ7/Control!$H$9))","v":1},{"$f":"INT((BK7/Control!$H$9))","v":1},{"$f":"INT((BL7/Control!$H$9))","v":1},{"$f":"INT((BM7/Control!$H$9))","v":1},{"$f":"INT((BN7/Control!$H$9))","v":1},{"$f":"INT((BO7/Control!$H$9))","v":1},{"$f":"INT((BP7/Control!$H$9))","v":1},{"$f":"INT((BQ7/Control!$H$9))","v":1},{"$f":"INT((BR7/Control!$H$9))","v":1},{"$f":"INT((BS7/Control!$H$9))","v":1},{"$f":"INT((BT7/Control!$H$9))","v":1},{"$f":"INT((BU7/Control!$H$9))","v":1},{"$f":"INT((BV7/Control!$H$9))","v":1},{"$f":"INT((BW7/Control!$H$9))","v":1},{"$f":"INT((BX7/Control!$H$9))","v":1},{"$f":"INT((BY7/Control!$H$9))","v":1},{"$f":"INT((BZ7/Control!$H$9))","v":1},{"$f":"INT((CA7/Control!$H$9))","v":1},{"$f":"INT((CB7/Control!$H$9))","v":1},{"$f":"INT((CC7/Control!$H$9))","v":1},{"$f":"INT((CD7/Control!$H$9))","v":1},{"$f":"INT((CE7/Control!$H$9))","v":1},{"$f":"INT((CF7/Control!$H$9))","v":1},{"$f":"INT((CG7/Control!$H$9))","v":1},{"$f":"INT((CH7/Control!$H$9))","v":1},{"$f":"INT((CI7/Control!$H$9))","v":1},{"$f":"INT((CJ7/Control!$H$9))","v":1},{"$f":"INT((CK7/Control!$H$9))","v":1}]
["Frankston (C)",null,null,null,null,null,null,null,null,null,{"$f":"INT((J8/Control!$H$9))","v":0},{"$f":"INT((K8/Control!$H$9))","v":-1},{"$f":"INT((L8/Control!$H$9))","v":-1},{"$f":"INT((M8/Control!$H$9))","v":-1},{"$f":"INT((N8/Control!$H$9))","v":-1},{"$f":"INT((O8/Control!$H$9))","v":-1},{"$f":"INT((P8/Control!$H$9))","v":-1},{"$f":"INT((Q8/Control!$H$9))","v":-1},{"$f":"INT((R8/Control!$H$9))","v":-1},{"$f":"INT((S8/Control!$H$9))","v":-1},{"$f":"INT((T8/Control!$H$9))","v":-1},{"$f":"INT((U8/Control!$H$9))","v":-1},{"$f":"INT((V8/Control!$H$9))","v":-1},{"$f":"INT((W8/Control!$H$9))","v":-1},{"$f":"INT((X8/Control!$H$9))","v":-1},{"$f":"INT((Y8/Control!$H$9))","v":-1},{"$f":"INT((Z8/Control!$H$9))","v":-1},{"$f":"INT((AA8/Control!$H$9))","v":-1},{"$f":"INT((AB8/Control!$H$9))","v":-1},{"$f":"INT((AC8/Control!$H$9))","v":-1},{"$f":"INT((AD8/Control!$H$9))","v":-1},{"$f":"INT((AE8/Control!$H$9))","v":-1},{"$f":"INT((AF8/Control!$H$9))","v":-1},{"$f":"INT((AG8/Control!$H$9))","v":-1},{"$f":"INT((AH8/Control!$H$9))","v":-1},{"$f":"INT((AI8/Control!$H$9))","v":-1},{"$f":"INT((AJ8/Control!$H$9))","v":-1},{"$f":"INT((AK8/Control!$H$9))","v":-1},{"$f":"INT((AL8/Control!$H$9))","v":-1},{"$f":"INT((AM8/Control!$H$9))","v":-1},{"$f":"INT((AN8/Control!$H$9))","v":-1},{"$f":"INT((AO8/Control!$H$9))","v":-1},{"$f":"INT((AP8/Control!$H$9))","v":-1},{"$f":"INT((AQ8/Control!$H$9))","v":-1},{"$f":"INT((AR8/Control!$H$9))","v":-1},{"$f":"INT((AS8/Control!$H$9))","v":-1},{"$f":"INT((AT8/Control!$H$9))","v":-1},{"$f":"INT((AU8/Control!$H$9))","v":-1},{"$f":"INT((AV8/Control!$H$9))","v":-1},{"$f":"INT((AW8/Control!$H$9))","v":-1},{"$f":"INT((AX8/Control!$H$9))","v":-1},{"$f":"INT((AY8/Control!$H$9))","v":-1},{"$f":"INT((AZ8/Control!$H$9))","v":-1},{"$f":"INT((BA8/Control!$H$9))","v":-1},{"$f":"INT((BB8/Control!$H$9))","v":-1},{"$f":"INT((BC8/Control!$H$9))","v":-1},{"$f":"INT((BD8/Control!$H$9))","v":-1},{"$f":"INT((BE8/Control!$H$9))","v":-1},{"$f":"INT((BF8/Control!$H$9))","v":-1},{"$f":"INT((BG8/Control!$H$9))","v":-1},{"$f":"INT((BH8/Control!$H$9))","v":-1},{"$f":"INT((BI8/Control!$H$9))","v":-1},{"$f":"INT((BJ8/Control!$H$9))","v":-1},{"$f":"INT((BK8/Control!$H$9))","v":-1},{"$f":"INT((BL8/Control!$H$9))","v":-1},{"$f":"INT((BM8/Control!$H$9))","v":-1},{"$f":"INT((BN8/Control!$H$9))","v":-1},{"$f":"INT((BO8/Control!$H$9))","v":-1},{"$f":"INT((BP8/Control!$H$9))","v":-1},{"$f":"INT((BQ8/Control!$H$9))","v":-1},{"$f":"INT((BR8/Control!$H$9))","v":-1},{"$f":"INT((BS8/Control!$H$9))","v":-1},{"$f":"INT((BT8/Control!$H$9))","v":-1},{"$f":"INT((BU8/Control!$H$9))","v":-1},{"$f":"INT((BV8/Control!$H$9))","v":-1},{"$f":"INT((BW8/Control!$H$9))","v":-1},{"$f":"INT((BX8/Control!$H$9))","v":-1},{"$f":"INT((BY8/Control!$H$9))","v":-1},{"$f":"INT((BZ8/Control!$H$9))","v":-1},{"$f":"INT((CA8/Control!$H$9))","v":-1},{"$f":"INT((CB8/Control!$H$9))","v":-1},{"$f":"INT((CC8/Control!$H$9))","v":-1},{"$f":"INT((CD8/Control!$H$9))","v":-1},{"$f":"INT((CE8/Control!$H$9))","v":-1},{"$f":"INT((CF8/Control!$H$9))","v":-1},{"$f":"INT((CG8/Control!$H$9))","v":-1},{"$f":"INT((CH8/Control!$H$9))","v":-1},{"$f":"INT((CI8/Control!$H$9))","v":-1},{"$f":"INT((CJ8/Control!$H$9))","v":-1},{"$f":"INT((CK8/Control!$H$9))","v":-1}]
["Glen Eira (C)",null,null,null,null,null,null,null,null,null,{"$f":"INT((J9/Control!$H$9))","v":66},{"$f":"INT((K9/Control!$H$9))","v":65},{"$f":"INT((L9/Control!$H$9))","v":63},{"$f":"INT((M9/Control!$H$9))","v":59},{"$f":"INT((N9/Control!$H$9))","v":56},{"$f":"INT((O9/Control!$H$9))","v":55},{"$f":"INT((P9/Control!$H$9))","v":54},{"$f":"INT((Q9/Control!$H$9))","v":51},{"$f":"INT((R9/Control!$H$9))","v":49},{"$f":"INT((S9/Control!$H$9))","v":46},{"$f":"INT((T9/Control!$H$9))","v":42},{"$f":"INT((U9/Control!$H$9))","v":40},{"$f":"INT((V9/Control!$H$9))","v":38},{"$f":"INT((W9/Control!$H$9))","v":35},{"$f":"INT((X9/Control!$H$9))","v":33},{"$f":"INT((Y9/Control!$H$9))","v":32},{"$f":"INT((Z9/Control!$H$9))","v":30},{"$f":"INT((AA9/Control!$H$9))","v":28},{"$f":"INT((AB9/Control!$H$9))","v":27},{"$f":"INT((AC9/Control!$H$9))","v":25},{"$f":"INT((AD9/Control!$H$9))","v":23},{"$f":"INT((AE9/Control!$H$9))","v":21},{"$f":"INT((AF9/Control!$H$9))","v":20},{"$f":"INT((AG9/Control!$H$9))","v":19},{"$f":"INT((AH9/Control!$H$9))","v":17},{"$f":"INT((AI9/Control!$H$9))","v":16},{"$f":"INT((AJ9/Control!$H$9))","v":15},{"$f":"INT((AK9/Control!$H$9))","v":14},{"$f":"INT((AL9/Control!$H$9))","v":13},{"$f":"INT((AM9/Control!$H$9))","v":12},{"$f":"INT((AN9/Control!$H$9))","v":11},{"$f":"INT((AO9/Control!$H$9))","v":11},{"$f":"INT((AP9/Control!$H$9))","v":10},{"$f":"INT((AQ9/Control!$H$9))","v":9},{"$f":"INT((AR9/Control!$H$9))","v":9},{"$f":"INT((AS9/Control!$H$9))","v":8},{"$f":"INT((AT9/Control!$H$9))","v":8},{"$f":"INT((AU9/Control!$H$9))","v":7},{"$f":"INT((AV9/Control!$H$9))","v":7},{"$f":"INT((AW9/Control!$H$9))","v":6},{"$f":"INT((AX9/Control!$H$9))","v":6},{"$f":"INT((AY9/Control!$H$9))","v":6},{"$f":"INT((AZ9/Control!$H$9))","v":5},{"$f":"INT((BA9/Control!$H$9))","v":5},{"$f":"INT((BB9/Control!$H$9))","v":5},{"$f":"INT((BC9/Control!$H$9))","v":4},{"$f":"INT((BD9/Control!$H$9))","v":4},{"$f":"INT((BE9/Control!$H$9))","v":4},{"$f":"INT((BF9/Control!$H$9))","v":4},{"$f":"INT((BG9/Control!$H$9))","v":3},{"$f":"INT((BH9/Control!$H$9))","v":3},{"$f":"INT((BI9/Control!$H$9))","v":3},{"$f":"INT((BJ9/Control!$H$9))","v":3},{"$f":"INT((BK9/Control!$H$9))","v":3},{"$f":"INT((BL9/Control!$H$9))","v":3},{"$f":"INT((BM9/Control!$H$9))","v":3},{"$f":"INT((BN9/Control!$H$9))","v":2},{"$f":"INT((BO9/Control!$H$9))","v":2},{"$f":"INT((BP9/Control!$H$9))","v":2},{"$f":"INT((BQ9/Control!$H$9))","v":2},{"$f":"INT((BR9/Control!$H$9))","v":2},{"$f":"INT((BS9/Control!$H$9))","v":2},{"$f":"INT((BT9/Control!$H$9))","v":2},{"$f":"INT((BU9/Control!$H$9))","v":2},{"$f":"INT((BV9/Control!$H$9))","v":2},{"$f":"INT((BW9/Control!$H$9))","v":2},{"$f":"INT((BX9/Control!$H$9))","v":2},{"$f":"INT((BY9/Control!$H$9))","v":2},{"$f":"INT((BZ9/Control!$H$9))","v":1},{"$f":"INT((CA9/Control!$H$9))","v":1},{"$f":"INT((CB9/Control!$H$9))","v":1},{"$f":"INT((CC9/Control!$H$9))","v":1},{"$f":"INT((CD9/Control!$H$9))","v":1},{"$f":"INT((CE9/Control!$H$9))","v":1},{"$f":"INT((CF9/Control!$H$9))","v":1},{"$f":"INT((CG9/Control!$H$9))","v":1},{"$f":"INT((CH9/Control!$H$9))","v":1},{"$f":"INT((CI9/Control!$H$9))","v":1},{"$f":"INT((CJ9/Control!$H$9))","v":1},{"$f":"INT((CK9/Control!$H$9))","v":1}]
["Greater Dandenong (C)",null,null,null,null,null,null,null,null,null,{"$f":"INT((J10/Control!$H$9))","v":83},{"$f":"INT((K10/Control!$H$9))","v":80},{"$f":"INT((L10/Control!$H$9))","v":80},{"$f":"INT((M10/Control!$H$9))","v":75},{"$f":"INT((N10/Control!$H$9))","v":69},{"$f":"INT((O10/Control!$H$9))","v":70},{"$f":"INT((P10/Control!$H$9))","v":69},{"$f":"INT((Q10/Control!$H$9))","v":66},{"$f":"INT((R10/Control!$H$9))","v":62},{"$f":"INT((S10/Control!$H$9))","v":58},{"$f":"INT((T10/Control!$H$9))","v":54},{"$f":"INT((U10/Control!$H$9))","v":50},{"$f":"INT((V10/Control!$H$9))","v":47},{"$f":"INT((W10/Control!$H$9))","v":43},{"$f":"INT((X10/Control!$H$9))","v":40},{"$f":"INT((Y10/Control!$H$9))","v":39},{"$f":"INT((Z10/Control!$H$9))","v":36},{"$f":"INT((AA10/Control!$H$9))","v":34},{"$f":"INT((AB10/Control!$H$9))","v":31},{"$f":"INT((AC10/Control!$H$9))","v":29},{"$f":"INT((AD10/Control!$H$9))","v":27},{"$f":"INT((AE10/Control!$H$9))","v":25},{"$f":"INT((AF10/Control!$H$9))","v":24},{"$f":"INT((AG10/Control!$H$9))","v":22},{"$f":"INT((AH10/Control!$H$9))","v":20},{"$f":"INT((AI10/Control!$H$9))","v":19},{"$f":"INT((AJ10/Control!$H$9))","v":18},{"$f":"INT((AK10/Control!$H$9))","v":17},{"$f":"INT((AL10/Control!$H$9))","v":15},{"$f":"INT((AM10/Control!$H$9))","v":14},{"$f":"INT((AN10/Control!$H$9))","v":13},{"$f":"INT((AO10/Control!$H$9))","v":13},{"$f":"INT((AP10/Control!$H$9))","v":12},{"$f":"INT((AQ10/Control!$H$9))","v":11},{"$f":"INT((AR10/Control!$H$9))","v":10},{"$f":"INT((AS10/Control!$H$9))","v":10},{"$f":"INT((AT10/Control!$H$9))","v":9},{"$f":"INT((AU10/Control!$H$9))","v":8},{"$f":"INT((AV10/Control!$H$9))","v":8},{"$f":"INT((AW10/Control!$H$9))","v":7},{"$f":"INT((AX10/Control!$H$9))","v":7},{"$f":"INT((AY10/Control!$H$9))","v":6},{"$f":"INT((AZ10/Control!$H$9))","v":6},{"$f":"INT((BA10/Control!$H$9))","v":6},{"$f":"INT((BB10/Control!$H$9))","v":5},{"$f":"INT((BC10/Control!$H$9))","v":5},{"$f":"INT((BD10/Control!$H$9))","v":5},{"$f":"INT((BE10/Control!$H$9))","v":4},{"$f":"INT((BF10/Control!$H$9))","v":4},{"$f":"INT((BG10/Control!$H$9))","v":4},{"$f":"INT((BH10/Control!$H$9))","v":4},{"$f":"INT((BI10/Control!$H$9))","v":4},{"$f":"INT((BJ10/Control!$H$9))","v":3},{"$f":"INT((BK10/Control!$H$9))","v":3},{"$f":"INT((BL10/Control!$H$9))","v":3},{"$f":"INT((BM10/Control!$H$9))","v":3},{"$f":"INT((BN10/Control!$H$9))","v":3},{"$f":"INT((BO10/Control!$H$9))","v":3},{"$f":"INT((BP10/Control!$H$9))","v":2},{"$f":"INT((BQ10/Control!$H$9))","v":2},{"$f":"INT((BR10/Control!$H$9))","v":2},{"$f":"INT((BS10/Control!$H$9))","v":2},{"$f":"INT((BT10/Control!$H$9))","v":2},{"$f":"INT((BU10/Control!$H$9))","v":2},{"$f":"INT((BV10/Control!$H$9))","v":2},{"$f":"INT((BW10/Control!$H$9))","v":2},{"$f":"INT((BX10/Control!$H$9))","v":2},{"$f":"INT((BY10/Control!$H$9))","v":2},{"$f":"INT((BZ10/Control!$H$9))","v":2},{"$f":"INT((CA10/Control!$H$9))","v":2},{"$f":"INT((CB10/Control!$H$9))","v":1},{"$f":"INT((CC10/Control!$H$9))","v":1},{"$f":"INT((CD10/Control!$H$9))","v":1},{"$f":"INT((CE10/Control!$H$9))","v":1},{"$f":"INT((CF10/Control!$H$9))","v":1},{"$f":"INT((CG10/Control!$H$9))","v":1},{"$f":"INT((CH10/Control!$H$9))","v":1},{"$f":"INT((CI10/Control!$H$9))","v":1},{"$f":"INT((CJ10/Control!$H$9))","v":1},{"$f":"INT((CK10/Control!$H$9))","v":1}]
["Kingston (C)",null,null,null,null,null,null,null,null,null,{"$f":"INT((J11/Control!$H$9))","v":79},{"$f":"INT((K11/Control!$H$9))","v":77},{"$f":"INT((L11/Control!$H$9))","v":76},{"$f":"INT((M11/Control!$H$9))","v":71},{"$f":"INT((N11/Control!$H$9))","v":66},{"$f":"INT((O11/Control!$H$9))","v":66},{"$f":"INT((P11/Control!$H$9))","v":65},{"$f":"INT((Q11/Control!$H$9))","v":62},{"$f":"INT((R11/Control!$H$9))","v":58},{"$f":"INT((S11/Control!$H$9))","v":54},{"$f":"INT((T11/Control!$H$9))","v":50},{"$f":"INT((U11/Control!$H$9))","v":47},{"$f":"INT((V11/Control!$H$9))","v":44},{"$f":"INT((W11/Control!$H$9))","v":41},{"$f":"INT((X11/Control!$H$9))","v":38},{"$f":"INT((Y11/Control!$H$9))","v":37},{"$f":"INT((Z11/Control!$H$9))","v":35},{"$f":"INT((AA11/Control!$H$9))","v":32},{"$f":"INT((AB11/Control!$H$9))","v":30},{"$f":"INT((AC11/Control!$H$9))","v":28},{"$f":"INT((AD11/Control!$H$9))","v":26},{"$f":"INT((AE11/Control!$H$9))","v":24},{"$f":"INT((AF11/Control!$H$9))","v":23},{"$f":"INT((AG11/Control!$H$9))","v":21},{"$f":"INT((AH11/Control!$H$9))","v":20},{"$f":"INT((AI11/Control!$H$9))","v":18},{"$f":"INT((AJ11/Control!$H$9))","v":17},{"$f":"INT((AK11/Control!$H$9))","v":16},{"$f":"INT((AL11/Control!$H$9))","v":15},{"$f":"INT((AM11/Control!$H$9))","v":14},{"$f":"INT((AN11/Control!$H$9))","v":13},{"$f":"INT((AO11/Control!$H$9))","v":12},{"$f":"INT((AP11/Control!$H$9))","v":11},{"$f":"INT((AQ11/Control!$H$9))","v":10},{"$f":"INT((AR11/Control!$H$9))","v":10},{"$f":"INT((AS11/Control!$H$9))","v":9},{"$f":"INT((AT11/Control!$H$9))","v":9},{"$f":"INT((AU11/Control!$H$9))","v":8},{"$f":"INT((AV11/Control!$H$9))","v":7},{"$f":"INT((AW11/Control!$H$9))","v":7},{"$f":"INT((AX11/Control!$H$9))","v":7},{"$f":"INT((AY11/Control!$H$9))","v":6},{"$f":"INT((AZ11/Control!$H$9))","v":6},{"$f":"INT((BA11/Control!$H$9))","v":5},{"$f":"INT((BB11/Control!$H$9))","v":5},{"$f":"INT((BC11/Control!$H$9))","v":5},{"$f":"INT((BD11/Control!$H$9))","v":5},{"$f":"INT((BE11/Control!$H$9))","v":4},{"$f":"INT((BF11/Control!$H$9))","v":4},{"$f":"INT((BG11/Control!$H$9))","v":4},{"$f":"INT((BH11/Control!$H$9))","v":4},{"$f":"INT((BI11/Control!$H$9))","v":3},{"$f":"INT((BJ11/Control!$H$9))","v":3},{"$f":"INT((BK11/Control!$H$9))","v":3},{"$f":"INT((BL11/Control!$H$9))","v":3},{"$f":"INT((BM11/Control!$H$9))","v":3},{"$f":"INT((BN11/Control!$H$9))","v":3},{"$f":"INT((BO11/Control!$H$9))","v":2},{"$f":"INT((BP11/Control!$H$9))","v":2},{"$f":"INT((BQ11/Control!$H$9))","v":2},{"$f":"INT((BR11/Control!$H$9))","v":2},{"$f":"INT((BS11/Control!$H$9))","v":2},{"$f":"INT((BT11/Control!$H$9))","v":2},{"$f":"INT((BU11/Control!$H$9))","v":2},{"$f":"INT((BV11/Control!$H$9))","v":2},{"$f":"INT((BW11/Control!$H$9))","v":2},{"$f":"INT((BX11/Control!$H$9))","v":2},{"$f":"INT((BY11/Control!$H$9))","v":2},{"$f":"INT((BZ11/Control!$H$9))","v":2},{"$f":"INT((CA11/Control!$H$9))","v":2},{"$f":"INT((CB11/Control!$H$9))","v":1},{"$f":"INT((CC11/Control!$H$9))","v":1},{"$f":"INT((CD11/Control!$H$9))","v":1},{"$f":"INT((CE11/Control!$H$9))","v":1},{"$f":"INT((CF11/Control!$H$9))","v":1},{"$f":"INT((CG11/Control!$H$9))","v":1},{"$f":"INT((CH11/Control!$H$9))","v":1},{"$f":"INT((CI11/Control!$H$9))","v":1},{"$f":"INT((CJ11/Control!$H$9))","v":1},{"$f":"INT((CK11/Control!$H$9))","v":1}]
["Knox (C)",null,null,null,null,null,null,null,null,null,{"$f":"INT((J12/Control!$H$9))","v":72},{"$f":"INT((K12/Control!$H$9))","v":70},{"$f":"INT((L12/Control!$H$9))","v":70},{"$f":"INT((M12/Control!$H$9))","v":65},{"$f":"INT((N12/Control!$H$9))","v":60},{"$f":"INT((O12/Control!$H$9))","v":60},{"$f":"INT((P12/Control!$H$9))","v":59},{"$f":"INT((Q12/Control!$H$9))","v":56},{"$f":"INT((R12/Control!$H$9))","v":54},{"$f":"INT((S12/Control!$H$9))","v":50},{"$f":"INT((T12/Control!$H$9))","v":46},{"$f":"INT((U12/Control!$H$9))","v":43},{"$f":"INT((V12/Control!$H$9))","v":41},{"$f":"INT((W12/Control!$H$9))","v":38},{"$f":"INT((X12/Control!$H$9))","v":35},{"$f":"INT((Y12/Control!$H$9))","v":34},{"$f":"INT((Z12/Control!$H$9))","v":32},{"$f":"INT((AA12/Control!$H$9))","v":30},{"$f":"INT((AB12/Control!$H$9))","v":28},{"$f":"INT((AC12/Control!$H$9))","v":26},{"$f":"INT((AD12/Control!$H$9))","v":24},{"$f":"INT((AE12/Control!$H$9))","v":22},{"$f":"INT((AF12/Control!$H$9))","v":21},{"$f":"INT((AG12/Control!$H$9))","v":19},{"$f":"INT((AH12/Control!$H$9))","v":18},{"$f":"INT((AI12/Control!$H$9))","v":17},{"$f":"INT((AJ12/Control!$H$9))","v":16},{"$f":"INT((AK12/Control!$H$9))","v":15},{"$f":"INT((AL12/Control!$H$9))","v":14},{"$f":"INT((AM12/Control!$H$9))","v":13},{"$f":"INT((AN12/Control!$H$9))","v":12},{"$f":"INT((AO12/Control!$H$9))","v":11},{"$f":"INT((AP12/Control!$H$9))","v":10},{"$f":"INT((AQ12/Control!$H$9))","v":10},{"$f":"INT((AR12/Control!$H$9))","v":9},{"$f":"INT((AS12/Control!$H$9))","v":8},{"$f":"INT((AT12/Control!$H$9))","v":8},{"$f":"INT((AU12/Control!$H$9))","v":7},{"$f":"INT((AV12/Control!$H$9))","v":7},{"$f":"INT((AW12/Control!$H$9))","v":6},{"$f":"INT((AX12/Control!$H$9))","v":6},{"$f":"INT((AY12/Control!$H$9))","v":6},{"$f":"INT((AZ12/Control!$H$9))","v":5},{"$f":"INT((BA12/Control!$H$9))","v":5},{"$f":"INT((BB12/Control!$H$9))","v":5},{"$f":"INT((BC12/Control!$H$9))","v":5},{"$f":"INT((BD12/Control!$H$9))","v":4},{"$f":"INT((BE12/Control!$H$9))","v":4},{"$f":"INT((BF12/Control!$H$9))","v":4},{"$f":"INT((BG12/Control!$H$9))","v":4},{"$f":"INT((BH12/Control!$H$9))","v":3},{"$f":"INT((BI12/Control!$H$9))","v":3},{"$f":"INT((BJ12/Control!$H$9))","v":3},{"$f":"INT((BK12/Control!$H$9))","v":3},{"$f":"INT((BL12/Control!$H$9))","v":3},{"$f":"INT((BM12/Control!$H$9))","v":3},{"$f":"INT((BN12/Control!$H$9))","v":2},{"$f":"INT((BO12/Control!$H$9))","v":2},{"$f":"INT((BP12/Control!$H$9))","v":2},{"$f":"INT((BQ12/Control!$H$9))","v":2},{"$f":"INT((BR12/Control!$H$9))","v":2},{"$f":"INT((BS12/Control!$H$9))","v":2},{"$f":"INT((BT12/Control!$H$9))","v":2},{"$f":"INT((BU12/Control!$H$9))","v":2},{"$f":"INT((BV12/Control!$H$9))","v":2},{"$f":"INT((BW12/Control!$H$9))","v":2},{"$f":"INT((BX12/Control!$H$9))","v":2},{"$f":"INT((BY12/Control!$H$9))","v":2},{"$f":"INT((BZ12/Control!$H$9))","v":1},{"$f":"INT((CA12/Control!$H$9))","v":1},{"$f":"INT((CB12/Control!$H$9))","v":1},{"$f":"INT((CC12/Control!$H$9))","v":1},{"$f":"INT((CD12/Control!$H$9))","v":1},{"$f":"INT((CE12/Control!$H$9))","v":1},{"$f":"INT((CF12/Control!$H$9))","v":1},{"$f":"INT((CG12/Control!$H$9))","v":1},{"$f":"INT((CH12/Control!$H$9))","v":1},{"$f":"INT((CI12/Control!$H$9))","v":1},{"$f":"INT((CJ12/Control!$H$9))","v":1},{"$f":"INT((CK12/Control!$H$9))","v":1}]
["Manningham (C)",null,null,null,null,null,null,null,null,null,{"$f":"INT((J13/Control!$H$9))","v":36},{"$f":"INT((K13/Control!$H$9))","v":36},{"$f":"INT((L13/Control!$H$9))","v":36},{"$f":"INT((M13/Control!$H$9))","v":34},{"$f":"INT((N13/Control!$H$9))","v":31},{"$f":"INT((O13/Control!$H$9))","v":31},{"$f":"INT((P13/Control!$H$9))","v":31},{"$f":"INT((Q13/Control!$H$9))","v":29},{"$f":"INT((R13/Control!$H$9))","v":27},{"$f":"INT((S13/Control!$H$9))","v":26},{"$f":"INT((T13/Control!$H$9))","v":24},{"$f":"INT((U13/Control!$H$9))","v":22},{"$f":"INT((V13/Control!$H$9))","v":21},{"$f":"INT((W13/Control!$H$9))","v":19},{"$f":"INT((X13/Control!$H$9))","v":18},{"$f":"INT((Y13/Control!$H$9))","v":17},{"$f":"INT((Z13/Control!$H$9))","v":16},{"$f":"INT((AA13/Control!$H$9))","v":15},{"$f":"INT((AB13/Control!$H$9))","v":14},{"$f":"INT((AC13/Control!$H$9))","v":13},{"$f":"INT((AD13/Control!$H$9))","v":13},{"$f":"INT((AE13/Control!$H$9))","v":12},{"$f":"INT((AF13/Control!$H$9))","v":11},{"$f":"INT((AG13/Control!$H$9))","v":10},{"$f":"INT((AH13/Control!$H$9))","v":10},{"$f":"INT((AI13/Control!$H$9))","v":9},{"$f":"INT((AJ13/Control!$H$9))","v":8},{"$f":"INT((AK13/Control!$H$9))","v":8},{"$f":"INT((AL13/Control!$H$9))","v":7},{"$f":"INT((AM13/Control!$H$9))","v":7},{"$f":"INT((AN13/Control!$H$9))","v":6},{"$f":"INT((AO13/Control!$H$9))","v":6},{"$f":"INT((AP13/Control!$H$9))","v":6},{"$f":"INT((AQ13/Control!$H$9))","v":5},{"$f":"INT((AR13/Control!$H$9))","v":5},{"$f":"INT((AS13/Control!$H$9))","v":5},{"$f":"INT((AT13/Control!$H$9))","v":4},{"$f":"INT((AU13/Control!$H$9))","v":4},{"$f":"INT((AV13/Control!$H$9))","v":4},{"$f":"INT((AW13/Control!$H$9))","v":4},{"$f":"INT((AX13/Control!$H$9))","v":4},{"$f":"INT((AY13/Control!$H$9))","v":3},{"$f":"INT((AZ13/Control!$H$9))","v":3},{"$f":"INT((BA13/Control!$H$9))","v":3},{"$f":"INT((BB13/Control!$H$9))","v":3},{"$f":"INT((BC13/Control!$H$9))","v":3},{"$f":"INT((BD13/Control!$H$9))","v":3},{"$f":"INT((BE13/Control!$H$9))","v":2},{"$f":"INT((BF13/Control!$H$9))","v":2},{"$f":"INT((BG13/Control!$H$9))","v":2},{"$f":"INT((BH13/Control!$H$9))","v":2},{"$f":"INT((BI13/Control!$H$9))","v":2},{"$f":"INT((BJ13/Control!$H$9))","v":2},{"$f":"INT((BK13/Control!$H$9))","v":2},{"$f":"INT((BL13/Control!$H$9))","v":2},{"$f":"INT((BM13/Control!$H$9))","v":2},{"$f":"INT((BN13/Control!$H$9))","v":2},{"$f":"INT((BO13/Control!$H$9))","v":2},{"$f":"INT((BP13/Control!$H$9))","v":2},{"$f":"INT((BQ13/Control!$H$9))","v":1},{"$f":"INT((BR13/Control!$H$9))","v":1},{"$f":"INT((BS13/Control!$H$9))","v":1},{"$f":"INT((BT13/Control!$H$9))","v":1},{"$f":"INT((BU13/Control!$H$9))","v":1},{"$f":"INT((BV13/Control!$H$9))","v":1},{"$f":"INT((BW13/Control!$H$9))","v":1},{"$f":"INT((BX13/Control!$H$9))","v":1},{"$f":"INT((BY13/Control!$H$9))","v":1},{"$f":"INT((BZ13/Control!$H$9))","v":1},{"$f":"INT((CA13/Control!$H$9))","v":1},{"$f":"INT((CB13/Control!$H$9))","v":1},{"$f":"INT((CC13/Control!$H$9))","v":1},{"$f":"INT((CD13/Control!$H$9))","v":1},{"$f":"INT((CE13/Control!$H$9))","v":1},{"$f":"INT((CF13/Control!$H$9))","v":1},{"$f":"INT((CG13/Control!$H$9))","v":1},{"$f":"INT((CH13/Control!$H$9))","v":1},{"$f":"INT((CI13/Control!$H$9))","v":1},{"$f":"INT((CJ13/Control!$H$9))","v":1},{"$f":"INT((CK13/Control!$H$9))","v":1}]
["Maroondah (C)",null,null,null,null,null,null,null,null,null,{"$f":"INT((J14/Control!$H$9))","v":38},{"$f":"INT((K14/Control!$H$9))","v":37},{"$f":"INT((L14/Control!$H$9))","v":37},{"$f":"INT((M14/Control!$H$9))","v":34},{"$f":"INT((N14/Control!$H$9))","v":32},{"$f":"INT((O14/Control!$H$9))","v":32},{"$f":"INT((P14/Control!$H$9))","v":31},{"$f":"INT((Q14/Control!$H$9))","v":30},{"$f":"INT((R14/Control!$H$9))","v":28},{"$f":"INT((S14/Control!$H$9))","v":26},{"$f":"INT((T14/Control!$H$9))","v":24},{"$f":"INT((U14/Control!$H$9))","v":23},{"$f":"INT((V14/Control!$H$9))","v":22},{"$f":"INT((W14/Control!$H$9))","v":20},{"$f":"INT((X14/Control!$H$9))","v":19},{"$f":"INT((Y14/Control!$H$9))","v":18},{"$f":"INT((Z14/Control!$H$9))","v":17},{"$f":"INT((AA14/Control!$H$9))","v":16},{"$f":"INT((AB14/Control!$H$9))","v":15},{"$f":"INT((AC14/Control!$H$9))","v":14},{"$f":"INT((AD14/Control!$H$9))","v":13},{"$f":"INT((AE14/Control!$H$9))","v":12},{"$f":"INT((AF14/Control!$H$9))","v":11},{"$f":"INT((AG14/Control!$H$9))","v":10},{"$f":"INT((AH14/Control!$H$9))","v":10},{"$f":"INT((AI14/Control!$H$9))","v":9},{"$f":"INT((AJ14/Control!$H$9))","v":9},{"$f":"INT((AK14/Control!$H$9))","v":8},{"$f":"INT((AL14/Control!$H$9))","v":7},{"$f":"INT((AM14/Control!$H$9))","v":7},{"$f":"INT((AN14/Control!$H$9))","v":7},{"$f":"INT((AO14/Control!$H$9))","v":6},{"$f":"INT((AP14/Control!$H$9))","v":6},{"$f":"INT((AQ14/Control!$H$9))","v":5},{"$f":"INT((AR14/Control!$H$9))","v":5},{"$f":"INT((AS14/Control!$H$9))","v":5},{"$f":"INT((AT14/Control!$H$9))","v":5},{"$f":"INT((AU14/Control!$H$9))","v":4},{"$f":"INT((AV14/Control!$H$9))","v":4},{"$f":"INT((AW14/Control!$H$9))","v":4},{"$f":"INT((AX14/Control!$H$9))","v":4},{"$f":"INT((AY14/Control!$H$9))","v":3},{"$f":"INT((AZ14/Control!$H$9))","v":3},{"$f":"INT((BA14/Control!$H$9))","v":3},{"$f":"INT((BB14/Control!$H$9))","v":3},{"$f":"INT((BC14/Control!$H$9))","v":3},{"$f":"INT((BD14/Control!$H$9))","v":3},{"$f":"INT((BE14/Control!$H$9))","v":2},{"$f":"INT((BF14/Control!$H$9))","v":2},{"$f":"INT((BG14/Control!$H$9))","v":2},{"$f":"INT((BH14/Control!$H$9))","v":2},{"$f":"INT((BI14/Control!$H$9))","v":2},{"$f":"INT((BJ14/Control!$H$9))","v":2},{"$f":"INT((BK14/Control!$H$9))","v":2},{"$f":"INT((BL14/Control!$H$9))","v":2},{"$f":"INT((BM14/Control!$H$9))","v":2},{"$f":"INT((BN14/Control!$H$9))","v":2},{"$f":"INT((BO14/Control!$H$9))","v":2},{"$f":"INT((BP14/Control!$H$9))","v":2},{"$f":"INT((BQ14/Control!$H$9))","v":2},{"$f":"INT((BR14/Control!$H$9))","v":1},{"$f":"INT((BS14/Control!$H$9))","v":1},{"$f":"INT((BT14/Control!$H$9))","v":1},{"$f":"INT((BU14/Control!$H$9))","v":1},{"$f":"INT((BV14/Control!$H$9))","v":1},{"$f":"INT((BW14/Control!$H$9))","v":1},{"$f":"INT((BX14/Control!$H$9))","v":1},{"$f":"INT((BY14/Control!$H$9))","v":1},{"$f":"INT((BZ14/Control!$H$9))","v":1},{"$f":"INT((CA14/Control!$H$9))","v":1},{"$f":"INT((CB14/Control!$H$9))","v":1},{"$f":"INT((CC14/Control!$H$9))","v":1},{"$f":"INT((CD14/Control!$H$9))","v":1},{"$f":"INT((CE14/Control!$H$9))","v":1},{"$f":"INT((CF14/Control!$H$9))","v":1},{"$f":"INT((CG14/Control!$H$9))","v":1},{"$f":"INT((CH14/Control!$H$9))","v":1},{"$f":"INT((CI14/Control!$H$9))","v":1},{"$f":"INT((CJ14/Control!$H$9))","v":1},{"$f":"INT((CK14/Control!$H$9))","v":1}]
["Melbourne (C)",null,null,null,null,null,null,null,null,null,{"$f":"INT((J15/Control!$H$9))","v":12},{"$f":"INT((K15/Control!$H$9))","v":11},{"$f":"INT((L15/Control!$H$9))","v":12},{"$f":"INT((M15/Control!$H$9))","v":11},{"$f":"INT((N15/Control!$H$9))","v":10},{"$f":"INT((O15/Control!$H$9))","v":10},{"$f":"INT((P15/Control!$H$9))","v":10},{"$f":"INT((Q15/Control!$H$9))","v":10},{"$f":"INT((R15/Control!$H$9))","v":9},{"$f":"INT((S15/Control!$H$9))","v":8},{"$f":"INT((T15/Control!$H$9))","v":8},{"$f":"INT((U15/Control!$H$9))","v":7},{"$f":"INT((V15/Control!$H$9))","v":7},{"$f":"INT((W15/Control!$H$9))","v":7},{"$f":"INT((X15/Control!$H$9))","v":6},{"$f":"INT((Y15/Control!$H$9))","v":6},{"$f":"INT((Z15/Control!$H$9))","v":5},{"$f":"INT((AA15/Control!$H$9))","v":5},{"$f":"INT((AB15/Control!$H$9))","v":5},{"$f":"INT((AC15/Control!$H$9))","v":5},{"$f":"INT((AD15/Control!$H$9))","v":4},{"$f":"INT((AE15/Control!$H$9))","v":4},{"$f":"INT((AF15/Control!$H$9))","v":4},{"$f":"INT((AG15/Control!$H$9))","v":3},{"$f":"INT((AH15/Control!$H$9))","v":3},{"$f":"INT((AI15/Control!$H$9))","v":3},{"$f":"INT((AJ15/Control!$H$9))","v":3},{"$f":"INT((AK15/Control!$H$9))","v":3},{"$f":"INT((AL15/Control!$H$9))","v":2},{"$f":"INT((AM15/Control!$H$9))","v":2},{"$f":"INT((AN15/Control!$H$9))","v":2},{"$f":"INT((AO15/Control!$H$9))","v":2},{"$f":"INT((AP15/Control!$H$9))","v":2},{"$f":"INT((AQ15/Control!$H$9))","v":2},{"$f":"INT((AR15/Control!$H$9))","v":1},{"$f":"INT((AS15/Control!$H$9))","v":1},{"$f":"INT((AT15/Control!$H$9))","v":1},{"$f":"INT((AU15/Control!$H$9))","v":1},{"$f":"INT((AV15/Control!$H$9))","v":1},{"$f":"INT((AW15/Control!$H$9))","v":1},{"$f":"INT((AX15/Control!$H$9))","v":1},{"$f":"INT((AY15/Control!$H$9))","v":1},{"$f":"INT((AZ15/Control!$H$9))","v":1},{"$f":"INT((BA15/Control!$H$9))","v":1},{"$f":"INT((BB15/Control!$H$9))","v":1},{"$f":"INT((BC15/Control!$H$9))","v":1},{"$f":"INT((BD15/Control!$H$9))","v":1},{"$f":"INT((BE15/Control!$H$9))","v":1},{"$f":"INT((BF15/Control!$H$9))","v":0},{"$f":"INT((BG15/Control!$H$9))","v":0},{"$f":"INT((BH15/Control!$H$9))","v":0},{"$f":"INT((BI15/Control!$H$9))","v":0},{"$f":"INT((BJ15/Control!$H$9))","v":0},{"$f":"INT((BK15/Control!$H$9))","v":0},{"$f":"INT((BL15/Control!$H$9))","v":0},{"$f":"INT((BM15/Control!$H$9))","v":0},{"$f":"INT((BN15/Control!$H$9))","v":0},{"$f":"INT((BO15/Control!$H$9))","v":0},{"$f":"INT((BP15/Control!$H$9))","v":0},{"$f":"INT((BQ15/Control!$H$9))","v":0},{"$f":"INT((BR15/Control!$H$9))","v":0},{"$f":"INT((BS15/Control!$H$9))","v":0},{"$f":"INT((BT15/Control!$H$9))","v":0},{"$f":"INT((BU15/Control!$H$9))","v":0},{"$f":"INT((BV15/Control!$H$9))","v":0},{"$f":"INT((BW15/Control!$H$9))","v":0},{"$f":"INT((BX15/Control!$H$9))","v":0},{"$f":"INT((BY15/Control!$H$9))","v":0},{"$f":"INT((BZ15/Control!$H$9))","v":0},{"$f":"INT((CA15/Control!$H$9))","v":0},{"$f":"INT((CB15/Control!$H$9))","v":0},{"$f":"INT((CC15/Control!$H$9))","v":0},{"$f":"INT((CD15/Control!$H$9))","v":0},{"$f":"INT((CE15/Control!$H$9))","v":0},{"$f":"INT((CF15/Control!$H$9))","v":0},{"$f":"INT((CG15/Control!$H$9))","v":0},{"$f":"INT((CH15/Control!$H$9))","v":0},{"$f":"INT((CI15/Control!$H$9))","v":0},{"$f":"INT((CJ15/Control!$H$9))","v":0},{"$f":"INT((CK15/Control!$H$9))","v":0}]
["Monash (C)",null,null,null,null,null,null,null,null,null,{"$f":"INT((J16/Control!$H$9))","v":83},{"$f":"INT((K16/Control!$H$9))","v":81},{"$f":"INT((L16/Control!$H$9))","v":80},{"$f":"INT((M16/Control!$H$9))","v":75},{"$f":"INT((N16/Control!$H$9))","v":70},{"$f":"INT((O16/Control!$H$9))","v":70},{"$f":"INT((P16/Control!$H$9))","v":69},{"$f":"INT((Q16/Control!$H$9))","v":66},{"$f":"INT((R16/Control!$H$9))","v":62},{"$f":"INT((S16/Control!$H$9))","v":58},{"$f":"INT((T16/Control!$H$9))","v":54},{"$f":"INT((U16/Control!$H$9))","v":50},{"$f":"INT((V16/Control!$H$9))","v":47},{"$f":"INT((W16/Control!$H$9))","v":44},{"$f":"INT((X16/Control!$H$9))","v":40},{"$f":"INT((Y16/Control!$H$9))","v":39},{"$f":"INT((Z16/Control!$H$9))","v":37},{"$f":"INT((AA16/Control!$H$9))","v":34},{"$f":"INT((AB16/Control!$H$9))","v":32},{"$f":"INT((AC16/Control!$H$9))","v":30},{"$f":"INT((AD16/Control!$H$9))","v":27},{"$f":"INT((AE16/Control!$H$9))","v":26},{"$f":"INT((AF16/Control!$H$9))","v":24},{"$f":"INT((AG16/Control!$H$9))","v":22},{"$f":"INT((AH16/Control!$H$9))","v":21},{"$f":"INT((AI16/Control!$H$9))","v":19},{"$f":"INT((AJ16/Control!$H$9))","v":18},{"$f":"INT((AK16/Control!$H$9))","v":17},{"$f":"INT((AL16/Control!$H$9))","v":15},{"$f":"INT((AM16/Control!$H$9))","v":14},{"$f":"INT((AN16/Control!$H$9))","v":14},{"$f":"INT((AO16/Control!$H$9))","v":13},{"$f":"INT((AP16/Control!$H$9))","v":12},{"$f":"INT((AQ16/Control!$H$9))","v":11},{"$f":"INT((AR16/Control!$H$9))","v":10},{"$f":"INT((AS16/Control!$H$9))","v":10},{"$f":"INT((AT16/Control!$H$9))","v":9},{"$f":"INT((AU16/Control!$H$9))","v":8},{"$f":"INT((AV16/Control!$H$9))","v":8},{"$f":"INT((AW16/Control!$H$9))","v":7},{"$f":"INT((AX16/Control!$H$9))","v":7},{"$f":"INT((AY16/Control!$H$9))","v":6},{"$f":"INT((AZ16/Control!$H$9))","v":6},{"$f":"INT((BA16/Control!$H$9))","v":6},{"$f":"INT((BB16/Control!$H$9))","v":5},{"$f":"INT((BC16/Control!$H$9))","v":5},{"$f":"INT((BD16/Control!$H$9))","v":5},{"$f":"INT((BE16/Control!$H$9))","v":4},{"$f":"INT((BF16/Control!$H$9))","v":4},{"$f":"INT((BG16/Control!$H$9))","v":4},{"$f":"INT((BH16/Control!$H$9))","v":4},{"$f":"INT((BI16/Control!$H$9))","v":4},{"$f":"INT((BJ16/Control!$H$9))","v":3},{"$f":"INT((BK16/Control!$H$9))","v":3},{"$f":"INT((BL16/Control!$H$9))","v":3},{"$f":"INT((BM16/Control!$H$9))","v":3},{"$f":"INT((BN16/Control!$H$9))","v":3},{"$f":"INT((BO16/Control!$H$9))","v":3},{"$f":"INT((BP16/Control!$H$9))","v":2},{"$f":"INT((BQ16/Control!$H$9))","v":2},{"$f":"INT((BR16/Control!$H$9))","v":2},{"$f":"INT((BS16/Control!$H$9))","v":2},{"$f":"INT((BT16/Control!$H$9))","v":2},{"$f":"INT((BU16/Control!$H$9))","v":2},{"$f":"INT((BV16/Control!$H$9))","v":2},{"$f":"INT((BW16/Control!$H$9))","v":2},{"$f":"INT((BX16/Control!$H$9))","v":2},{"$f":"INT((BY16/Control!$H$9))","v":2},{"$f":"INT((BZ16/Control!$H$9))","v":2},{"$f":"INT((CA16/Control!$H$9))","v":2},{"$f":"INT((CB16/Control!$H$9))","v":1},{"$f":"INT((CC16/Control!$H$9))","v":1},{"$f":"INT((CD16/Control!$H$9))","v":1},{"$f":"INT((CE16/Control!$H$9))","v":1},{"$f":"INT((CF16/Control!$H$9))","v":1},{"$f":"INT((CG16/Control!$H$9))","v":1},{"$f":"INT((CH16/Control!$H$9))","v":1},{"$f":"INT((CI16/Control!$H$9))","v":1},{"$f":"INT((CJ16/Control!$H$9))","v":1},{"$f":"INT((CK16/Control!$H$9))","v":1}]
["Port Phillip (C)",null,null,null,null,null,null,null,null,null,{"$f":"INT((J17/Control!$H$9))","v":100},{"$f":"INT((K17/Control!$H$9))","v":98},{"$f":"INT((L17/Control!$H$9))","v":98},{"$f":"INT((M17/Control!$H$9))","v":91},{"$f":"INT((N17/Control!$H$9))","v":85},{"$f":"INT((O17/Control!$H$9))","v":85},{"$f":"INT((P17/Control!$H$9))","v":85},{"$f":"INT((Q17/Control!$H$9))","v":81},{"$f":"INT((R17/Control!$H$9))","v":76},{"$f":"INT((S17/Control!$H$9))","v":71},{"$f":"INT((T17/Control!$H$9))","v":66},{"$f":"INT((U17/Control!$H$9))","v":62},{"$f":"INT((V17/Control!$H$9))","v":58},{"$f":"INT((W17/Control!$H$9))","v":54},{"$f":"INT((X17/Control!$H$9))","v":50},{"$f":"INT((Y17/Control!$H$9))","v":48},{"$f":"INT((Z17/Control!$H$9))","v":45},{"$f":"INT((AA17/Control!$H$9))","v":42},{"$f":"INT((AB17/Control!$H$9))","v":39},{"$f":"INT((AC17/Control!$H$9))","v":37},{"$f":"INT((AD17/Control!$H$9))","v":34},{"$f":"INT((AE17/Control!$H$9))","v":32},{"$f":"INT((AF17/Control!$H$9))","v":29},{"$f":"INT((AG17/Control!$H$9))","v":27},{"$f":"INT((AH17/Control!$H$9))","v":25},{"$f":"INT((AI17/Control!$H$9))","v":24},{"$f":"INT((AJ17/Control!$H$9))","v":22},{"$f":"INT((AK17/Control!$H$9))","v":21},{"$f":"INT((AL17/Control!$H$9))","v":19},{"$f":"INT((AM17/Control!$H$9))","v":18},{"$f":"INT((AN17/Control!$H$9))","v":17},{"$f":"INT((AO17/Control!$H$9))","v":15},{"$f":"INT((AP17/Control!$H$9))","v":14},{"$f":"INT((AQ17/Control!$H$9))","v":13},{"$f":"INT((AR17/Control!$H$9))","v":13},{"$f":"INT((AS17/Control!$H$9))","v":12},{"$f":"INT((AT17/Control!$H$9))","v":11},{"$f":"INT((AU17/Control!$H$9))","v":10},{"$f":"INT((AV17/Control!$H$9))","v":10},{"$f":"INT((AW17/Control!$H$9))","v":9},{"$f":"INT((AX17/Control!$H$9))","v":8},{"$f":"INT((AY17/Control!$H$9))","v":8},{"$f":"INT((AZ17/Control!$H$9))","v":7},{"$f":"INT((BA17/Control!$H$9))","v":7},{"$f":"INT((BB17/Control!$H$9))","v":6},{"$f":"INT((BC17/Control!$H$9))","v":6},{"$f":"INT((BD17/Control!$H$9))","v":6},{"$f":"INT((BE17/Control!$H$9))","v":5},{"$f":"INT((BF17/Control!$H$9))","v":5},{"$f":"INT((BG17/Control!$H$9))","v":5},{"$f":"INT((BH17/Control!$H$9))","v":4},{"$f":"INT((BI17/Control!$H$9))","v":4},{"$f":"INT((BJ17/Control!$H$9))","v":4},{"$f":"INT((BK17/Control!$H$9))","v":4},{"$f":"INT((BL17/Control!$H$9))","v":4},{"$f":"INT((BM17/Control!$H$9))","v":3},{"$f":"INT((BN17/Control!$H$9))","v":3},{"$f":"INT((BO17/Control!$H$9))","v":3},{"$f":"INT((BP17/Control!$H$9))","v":3},{"$f":"INT((BQ17/Control!$H$9))","v":3},{"$f":"INT((BR17/Control!$H$9))","v":3},{"$f":"INT((BS17/Control!$H$9))","v":2},{"$f":"INT((BT17/Control!$H$9))","v":2},{"$f":"INT((BU17/Control!$H$9))","v":2},{"$f":"INT((BV17/Control!$H$9))","v":2},{"$f":"INT((BW17/Control!$H$9))","v":2},{"$f":"INT((BX17/Control!$H$9))","v":2},{"$f":"INT((BY17/Control!$H$9))","v":2},{"$f":"INT((BZ17/Control!$H$9))","v":2},{"$f":"INT((CA17/Control!$H$9))","v":2},{"$f":"INT((CB17/Control!$H$9))","v":2},{"$f":"INT((CC17/Control!$H$9))","v":2},{"$f":"INT((CD17/Control!$H$9))","v":2},{"$f":"INT((CE17/Control!$H$9))","v":1},{"$f":"INT((CF17/Control!$H$9))","v":1},{"$f":"INT((CG17/Control!$H$9))","v":1},{"$f":"INT((CH17/Control!$H$9))","v":1},{"$f":"INT((CI17/Control!$H$9))","v":1},{"$f":"INT((CJ17/Control!$H$9))","v":1},{"$f":"INT((CK17/Control!$H$9))","v":1}]
["South Gippsland (S)",null,null,null,null,null,null,null,null,null,{"$f":"INT((J18/Control!$H$9))","v":3},{"$f":"INT((K18/Control!$H$9))","v":3},{"$f":"INT((L18/Control!$H$9))","v":3},{"$f":"INT((M18/Control!$H$9))","v":3},{"$f":"INT((N18/Control!$H$9))","v":2},{"$f":"INT((O18/Control!$H$9))","v":2},{"$f":"INT((P18/Control!$H$9))","v":2},{"$f":"INT((Q18/Control!$H$9))","v":2},{"$f":"INT((R18/Control!$H$9))","v":2},{"$f":"INT((S18/Control!$H$9))","v":2},{"$f":"INT((T18/Control!$H$9))","v":2},{"$f":"INT((U18/Control!$H$9))","v":2},{"$f":"INT((V18/Control!$H$9))","v":2},{"$f":"INT((W18/Control!$H$9))","v":2},{"$f":"INT((X18/Control!$H$9))","v":2},{"$f":"INT((Y18/Control!$H$9))","v":2},{"$f":"INT((Z18/Control!$H$9))","v":2},{"$f":"INT((AA18/Control!$H$9))","v":2},{"$f":"INT((AB18/Control!$H$9))","v":1},{"$f":"INT((AC18/Control!$H$9))","v":1},{"$f":"INT((AD18/Control!$H$9))","v":1},{"$f":"INT((AE18/Control!$H$9))","v":1},{"$f":"INT((AF18/Control!$H$9))","v":1},{"$f":"INT((AG18/Control!$H$9))","v":1},{"$f":"INT((AH18/Control!$H$9))","v":1},{"$f":"INT((AI18/Control!$H$9))","v":1},{"$f":"INT((AJ18/Control!$H$9))","v":1},{"$f":"INT((AK18/Control!$H$9))","v":1},{"$f":"INT((AL18/Control!$H$9))","v":1},{"$f":"INT((AM18/Control!$H$9))","v":1},{"$f":"INT((AN18/Control!$H$9))","v":1},{"$f":"INT((AO18/Control!$H$9))","v":1},{"$f":"INT((AP18/Control!$H$9))","v":1},{"$f":"INT((AQ18/Control!$H$9))","v":1},{"$f":"INT((AR18/Control!$H$9))","v":1},{"$f":"INT((AS18/Control!$H$9))","v":1},{"$f":"INT((AT18/Control!$H$9))","v":1},{"$f":"INT((AU18/Control!$H$9))","v":1},{"$f":"INT((AV18/Control!$H$9))","v":1},{"$f":"INT((AW18/Control!$H$9))","v":1},{"$f":"INT((AX18/Control!$H$9))","v":1},{"$f":"INT((AY18/Control!$H$9))","v":1},{"$f":"INT((AZ18/Control!$H$9))","v":1},{"$f":"INT((BA18/Control!$H$9))","v":1},{"$f":"INT((BB18/Control!$H$9))","v":1},{"$f":"INT((BC18/Control!$H$9))","v":1},{"$f":"INT((BD18/Control!$H$9))","v":1},{"$f":"INT((BE18/Control!$H$9))","v":1},{"$f":"INT((BF18/Control!$H$9))","v":1},{"$f":"INT((BG18/Control!$H$9))","v":1},{"$f":"INT((BH18/Control!$H$9))","v":1},{"$f":"INT((BI18/Control!$H$9))","v":1},{"$f":"INT((BJ18/Control!$H$9))","v":1},{"$f":"INT((BK18/Control!$H$9))","v":1},{"$f":"INT((BL18/Control!$H$9))","v":1},{"$f":"INT((BM18/Control!$H$9))","v":1},{"$f":"INT((BN18/Control!$H$9))","v":1},{"$f":"INT((BO18/Control!$H$9))","v":1},{"$f":"INT((BP18/Control!$H$9))","v":1},{"$f":"INT((BQ18/Control!$H$9))","v":1},{"$f":"INT((BR18/Control!$H$9))","v":1},{"$f":"INT((BS18/Control!$H$9))","v":1},{"$f":"INT((BT18/Control!$H$9))","v":1},{"$f":"INT((BU18/Control!$H$9))","v":1},{"$f":"INT((BV18/Control!$H$9))","v":1},{"$f":"INT((BW18/Control!$H$9))","v":1},{"$f":"INT((BX18/Control!$H$9))","v":1},{"$f":"INT((BY18/Control!$H$9))","v":1},{"$f":"INT((BZ18/Control!$H$9))","v":1},{"$f":"INT((CA18/Control!$H$9))","v":1},{"$f":"INT((CB18/Control!$H$9))","v":1},{"$f":"INT((CC18/Control!$H$9))","v":1},{"$f":"INT((CD18/Control!$H$9))","v":1},{"$f":"INT((CE18/Control!$H$9))","v":1},{"$f":"INT((CF18/Control!$H$9))","v":1},{"$f":"INT((CG18/Control!$H$9))","v":1},{"$f":"INT((CH18/Control!$H$9))","v":1},{"$f":"INT((CI18/Control!$H$9))","v":1},{"$f":"INT((CJ18/Control!$H$9))","v":1},{"$f":"INT((CK18/Control!$H$9))","v":1}]
["Stonnington (C)",null,null,null,null,null,null,null,null,null,{"$f":"INT((J19/Control!$H$9))","v":89},{"$f":"INT((K19/Control!$H$9))","v":87},{"$f":"INT((L19/Control!$H$9))","v":86},{"$f":"INT((M19/Control!$H$9))","v":81},{"$f":"INT((N19/Control!$H$9))","v":75},{"$f":"INT((O19/Control!$H$9))","v":75},{"$f":"INT((P19/Control!$H$9))","v":74},{"$f":"INT((Q19/Control!$H$9))","v":70},{"$f":"INT((R19/Control!$H$9))","v":67},{"$f":"INT((S19/Control!$H$9))","v":62},{"$f":"INT((T19/Control!$H$9))","v":58},{"$f":"INT((U19/Control!$H$9))","v":54},{"$f":"INT((V19/Control!$H$9))","v":51},{"$f":"INT((W19/Control!$H$9))","v":47},{"$f":"INT((X19/Control!$H$9))","v":44},{"$f":"INT((Y19/Control!$H$9))","v":42},{"$f":"INT((Z19/Control!$H$9))","v":40},{"$f":"INT((AA19/Control!$H$9))","v":37},{"$f":"INT((AB19/Control!$H$9))","v":35},{"$f":"INT((AC19/Control!$H$9))","v":32},{"$f":"INT((AD19/Control!$H$9))","v":30},{"$f":"INT((AE19/Control!$H$9))","v":28},{"$f":"INT((AF19/Control!$H$9))","v":26},{"$f":"INT((AG19/Control!$H$9))","v":24},{"$f":"INT((AH19/Control!$H$9))","v":23},{"$f":"INT((AI19/Control!$H$9))","v":21},{"$f":"INT((AJ19/Control!$H$9))","v":20},{"$f":"INT((AK19/Control!$H$9))","v":18},{"$f":"INT((AL19/Control!$H$9))","v":17},{"$f":"INT((AM19/Control!$H$9))","v":16},{"$f":"INT((AN19/Control!$H$9))","v":15},{"$f":"INT((AO19/Control!$H$9))","v":14},{"$f":"INT((AP19/Control!$H$9))","v":13},{"$f":"INT((AQ19/Control!$H$9))","v":12},{"$f":"INT((AR19/Control!$H$9))","v":11},{"$f":"INT((AS19/Control!$H$9))","v":10},{"$f":"INT((AT19/Control!$H$9))","v":10},{"$f":"INT((AU19/Control!$H$9))","v":9},{"$f":"INT((AV19/Control!$H$9))","v":9},{"$f":"INT((AW19/Control!$H$9))","v":8},{"$f":"INT((AX19/Control!$H$9))","v":7},{"$f":"INT((AY19/Control!$H$9))","v":7},{"$f":"INT((AZ19/Control!$H$9))","v":7},{"$f":"INT((BA19/Control!$H$9))","v":6},{"$f":"INT((BB19/Control!$H$9))","v":6},{"$f":"INT((BC19/Control!$H$9))","v":5},{"$f":"INT((BD19/Control!$H$9))","v":5},{"$f":"INT((BE19/Control!$H$9))","v":5},{"$f":"INT((BF19/Control!$H$9))","v":4},{"$f":"INT((BG19/Control!$H$9))","v":4},{"$f":"INT((BH19/Control!$H$9))","v":4},{"$f":"INT((BI19/Control!$H$9))","v":4},{"$f":"INT((BJ19/Control!$H$9))","v":4},{"$f":"INT((BK19/Control!$H$9))","v":3},{"$f":"INT((BL19/Control!$H$9))","v":3},{"$f":"INT((BM19/Control!$H$9))","v":3},{"$f":"INT((BN19/Control!$H$9))","v":3},{"$f":"INT((BO19/Control!$H$9))","v":3},{"$f":"INT((BP19/Control!$H$9))","v":3},{"$f":"INT((BQ19/Control!$H$9))","v":2},{"$f":"INT((BR19/Control!$H$9))","v":2},{"$f":"INT((BS19/Control!$H$9))","v":2},{"$f":"INT((BT19/Control!$H$9))","v":2},{"$f":"INT((BU19/Control!$H$9))","v":2},{"$f":"INT((BV19/Control!$H$9))","v":2},{"$f":"INT((BW19/Control!$H$9))","v":2},{"$f":"INT((BX19/Control!$H$9))","v":2},{"$f":"INT((BY19/Control!$H$9))","v":2},{"$f":"INT((BZ19/Control!$H$9))","v":2},{"$f":"INT((CA19/Control!$H$9))","v":2},{"$f":"INT((CB19/Control!$H$9))","v":2},{"$f":"INT((CC19/Control!$H$9))","v":2},{"$f":"INT((CD19/Control!$H$9))","v":1},{"$f":"INT((CE19/Control!$H$9))","v":1},{"$f":"INT((CF19/Control!$H$9))","v":1},{"$f":"INT((CG19/Control!$H$9))","v":1},{"$f":"INT((CH19/Control!$H$9))","v":1},{"$f":"INT((CI19/Control!$H$9))","v":1},{"$f":"INT((CJ19/Control!$H$9))","v":1},{"$f":"INT((CK19/Control!$H$9))","v":1}]
["Whitehorse (C)",null,null,null,null,null,null,null,null,null,{"$f":"INT((J20/Control!$H$9))","v":77},{"$f":"INT((K20/Control!$H$9))","v":76},{"$f":"INT((L20/Control!$H$9))","v":75},{"$f":"INT((M20/Control!$H$9))","v":70},{"$f":"INT((N20/Control!$H$9))","v":65},{"$f":"INT((O20/Control!$H$9))","v":65},{"$f":"INT((P20/Control!$H$9))","v":65},{"$f":"INT((Q20/Control!$H$9))","v":61},{"$f":"INT((R20/Control!$H$9))","v":58},{"$f":"INT((S20/Control!$H$9))","v":54},{"$f":"INT((T20/Control!$H$9))","v":50},{"$f":"INT((U20/Control!$H$9))","v":47},{"$f":"INT((V20/Control!$H$9))","v":44},{"$f":"INT((W20/Control!$H$9))","v":41},{"$f":"INT((X20/Control!$H$9))","v":38},{"$f":"INT((Y20/Control!$H$9))","v":36},{"$f":"INT((Z20/Control!$H$9))","v":34},{"$f":"INT((AA20/Control!$H$9))","v":32},{"$f":"INT((AB20/Control!$H$9))","v":30},{"$f":"INT((AC20/Control!$H$9))","v":28},{"$f":"INT((AD20/Control!$H$9))","v":26},{"$f":"INT((AE20/Control!$H$9))","v":24},{"$f":"INT((AF20/Control!$H$9))","v":22},{"$f":"INT((AG20/Control!$H$9))","v":21},{"$f":"INT((AH20/Control!$H$9))","v":19},{"$f":"INT((AI20/Control!$H$9))","v":18},{"$f":"INT((AJ20/Control!$H$9))","v":17},{"$f":"INT((AK20/Control!$H$9))","v":16},{"$f":"INT((AL20/Control!$H$9))","v":15},{"$f":"INT((AM20/Control!$H$9))","v":14},{"$f":"INT((AN20/Control!$H$9))","v":13},{"$f":"INT((AO20/Control!$H$9))","v":12},{"$f":"INT((AP20/Control!$H$9))","v":11},{"$f":"INT((AQ20/Control!$H$9))","v":10},{"$f":"INT((AR20/Control!$H$9))","v":10},{"$f":"INT((AS20/Control!$H$9))","v":9},{"$f":"INT((AT20/Control!$H$9))","v":8},{"$f":"INT((AU20/Control!$H$9))","v":8},{"$f":"INT((AV20/Control!$H$9))","v":7},{"$f":"INT((AW20/Control!$H$9))","v":7},{"$f":"INT((AX20/Control!$H$9))","v":7},{"$f":"INT((AY20/Control!$H$9))","v":6},{"$f":"INT((AZ20/Control!$H$9))","v":6},{"$f":"INT((BA20/Control!$H$9))","v":5},{"$f":"INT((BB20/Control!$H$9))","v":5},{"$f":"INT((BC20/Control!$H$9))","v":5},{"$f":"INT((BD20/Control!$H$9))","v":4},{"$f":"INT((BE20/Control!$H$9))","v":4},{"$f":"INT((BF20/Control!$H$9))","v":4},{"$f":"INT((BG20/Control!$H$9))","v":4},{"$f":"INT((BH20/Control!$H$9))","v":4},{"$f":"INT((BI20/Control!$H$9))","v":3},{"$f":"INT((BJ20/Control!$H$9))","v":3},{"$f":"INT((BK20/Control!$H$9))","v":3},{"$f":"INT((BL20/Control!$H$9))","v":3},{"$f":"INT((BM20/Control!$H$9))","v":3},{"$f":"INT((BN20/Control!$H$9))","v":3},{"$f":"INT((BO20/Control!$H$9))","v":2},{"$f":"INT((BP20/Control!$H$9))","v":2},{"$f":"INT((BQ20/Control!$H$9))","v":2},{"$f":"INT((BR20/Control!$H$9))","v":2},{"$f":"INT((BS20/Control!$H$9))","v":2},{"$f":"INT((BT20/Control!$H$9))","v":2},{"$f":"INT((BU20/Control!$H$9))","v":2},{"$f":"INT((BV20/Control!$H$9))","v":2},{"$f":"INT((BW20/Control!$H$9))","v":2},{"$f":"INT((BX20/Control!$H$9))","v":2},{"$f":"INT((BY20/Control!$H$9))","v":2},{"$f":"INT((BZ20/Control!$H$9))","v":2},{"$f":"INT((CA20/Control!$H$9))","v":2},{"$f":"INT((CB20/Control!$H$9))","v":1},{"$f":"INT((CC20/Control!$H$9))","v":1},{"$f":"INT((CD20/Control!$H$9))","v":1},{"$f":"INT((CE20/Control!$H$9))","v":1},{"$f":"INT((CF20/Control!$H$9))","v":1},{"$f":"INT((CG20/Control!$H$9))","v":1},{"$f":"INT((CH20/Control!$H$9))","v":1},{"$f":"INT((CI20/Control!$H$9))","v":1},{"$f":"INT((CJ20/Control!$H$9))","v":1},{"$f":"INT((CK20/Control!$H$9))","v":1}]
["Yarra Ranges (S)",null,null,null,null,null,null,null,null,null,{"$f":"INT((J21/Control!$H$9))","v":56},{"$f":"INT((K21/Control!$H$9))","v":56},{"$f":"INT((L21/Control!$H$9))","v":55},{"$f":"INT((M21/Control!$H$9))","v":51},{"$f":"INT((N21/Control!$H$9))","v":48},{"$f":"INT((O21/Control!$H$9))","v":47},{"$f":"INT((P21/Control!$H$9))","v":46},{"$f":"INT((Q21/Control!$H$9))","v":44},{"$f":"INT((R21/Control!$H$9))","v":42},{"$f":"INT((S21/Control!$H$9))","v":39},{"$f":"INT((T21/Control!$H$9))","v":36},{"$f":"INT((U21/Control!$H$9))","v":34},{"$f":"INT((V21/Control!$H$9))","v":31},{"$f":"INT((W21/Control!$H$9))","v":29},{"$f":"INT((X21/Control!$H$9))","v":27},{"$f":"INT((Y21/Control!$H$9))","v":26},{"$f":"INT((Z21/Control!$H$9))","v":25},{"$f":"INT((AA21/Control!$H$9))","v":23},{"$f":"INT((AB21/Control!$H$9))","v":21},{"$f":"INT((AC21/Control!$H$9))","v":20},{"$f":"INT((AD21/Control!$H$9))","v":19},{"$f":"INT((AE21/Control!$H$9))","v":17},{"$f":"INT((AF21/Control!$H$9))","v":16},{"$f":"INT((AG21/Control!$H$9))","v":15},{"$f":"INT((AH21/Control!$H$9))","v":14},{"$f":"INT((AI21/Control!$H$9))","v":13},{"$f":"INT((AJ21/Control!$H$9))","v":12},{"$f":"INT((AK21/Control!$H$9))","v":11},{"$f":"INT((AL21/Control!$H$9))","v":11},{"$f":"INT((AM21/Control!$H$9))","v":10},{"$f":"INT((AN21/Control!$H$9))","v":9},{"$f":"INT((AO21/Control!$H$9))","v":9},{"$f":"INT((AP21/Control!$H$9))","v":8},{"$f":"INT((AQ21/Control!$H$9))","v":8},{"$f":"INT((AR21/Control!$H$9))","v":7},{"$f":"INT((AS21/Control!$H$9))","v":7},{"$f":"INT((AT21/Control!$H$9))","v":6},{"$f":"INT((AU21/Control!$H$9))","v":6},{"$f":"INT((AV21/Control!$H$9))","v":5},{"$f":"INT((AW21/Control!$H$9))","v":5},{"$f":"INT((AX21/Control!$H$9))","v":5},{"$f":"INT((AY21/Control!$H$9))","v":5},{"$f":"INT((AZ21/Control!$H$9))","v":4},{"$f":"INT((BA21/Control!$H$9))","v":4},{"$f":"INT((BB21/Control!$H$9))","v":4},{"$f":"INT((BC21/Control!$H$9))","v":4},{"$f":"INT((BD21/Control!$H$9))","v":3},{"$f":"INT((BE21/Control!$H$9))","v":3},{"$f":"INT((BF21/Control!$H$9))","v":3},{"$f":"INT((BG21/Control!$H$9))","v":3},{"$f":"INT((BH21/Control!$H$9))","v":3},{"$f":"INT((BI21/Control!$H$9))","v":3},{"$f":"INT((BJ21/Control!$H$9))","v":3},{"$f":"INT((BK21/Control!$H$9))","v":2},{"$f":"INT((BL21/Control!$H$9))","v":2},{"$f":"INT((BM21/Control!$H$9))","v":2},{"$f":"INT((BN21/Control!$H$9))","v":2},{"$f":"INT((BO21/Control!$H$9))","v":2},{"$f":"INT((BP21/Control!$H$9))","v":2},{"$f":"INT((BQ21/Control!$H$9))","v":2},{"$f":"INT((BR21/Control!$H$9))","v":2},{"$f":"INT((BS21/Control!$H$9))","v":2},{"$f":"INT((BT21/Control!$H$9))","v":2},{"$f":"INT((BU21/Control!$H$9))","v":2},{"$f":"INT((BV21/Control!$H$9))","v":1},{"$f":"INT((BW21/Control!$H$9))","v":1},{"$f":"INT((BX21/Control!$H$9))","v":1},{"$f":"INT((BY21/Control!$H$9))","v":1},{"$f":"INT((BZ21/Control!$H$9))","v":1},{"$f":"INT((CA21/Control!$H$9))","v":1},{"$f":"INT((CB21/Control!$H$9))","v":1},{"$f":"INT((CC21/Control!$H$9))","v":1},{"$f":"INT((CD21/Control!$H$9))","v":1},{"$f":"INT((CE21/Control!$H$9))","v":1},{"$f":"INT((CF21/Control!$H$9))","v":1},{"$f":"INT((CG21/Control!$H$9))","v":1},{"$f":"INT((CH21/Control!$H$9))","v":1},{"$f":"INT((CI21/Control!$H$9))","v":1},{"$f":"INT((CJ21/Control!$H$9))","v":1},{"$f":"INT((CK21/Control!$H$9))","v":1}]
[]
[]
[]
["Commercial Customers decision points (departure rate)",2012,{"$f":"B141+1","v":2013},{"$f":"C141+1","v":2014},2015,2016,2017,2018,2019,2020,{"$f":"J141+1","v":2021}]
["LGA"]
["Bass Coast (S)",null,null,null,null,null,null,null,null,null,{"$f":"IFERROR(J49/K119,0)","v":0.33333333333333331}]
["Bayside (C)",null,null,null,null,null,null,null,null,null,0.35416666666666669]
["Boroondara (C)",null,null,null,null,null,null,null,null,null,0.38297872340425532]
["Cardinia (S)",null,null,null,null,null,null,null,null,null,0.4]
["Casey (C)",null,null,null,null,null,null,null,null,null,0.33333333333333331]
["Frankston (C)",null,null,null,null,null,null,null,null,null,0]
["Glen Eira (C)",null,null,null,null,null,null,null,null,null,0.48484848484848486]
["Greater Dandenong (C)",null,null,null,null,null,null,null,null,null,0.48192771084337349]
["Kingston (C)",null,null,null,null,null,null,null,null,null,0.50632911392405067]
["Knox (C)",null,null,null,null,null,null,null,null,null,0.43055555555555558]
["Manningham (C)",null,null,null,null,null,null,null,null,null,0.22222222222222221]
["Maroondah (C)",null,null,null,null,null,null,null,null,null,0.55263157894736847]
["Melbourne (C)",null,null,null,null,null,null,null,null,null,0.66666666666666663]
["Monash (C)",null,null,null,null,null,null,null,null,null,0.45783132530120479]
["Port Phillip (C)",null,null,null,null,null,null,null,null,null,0.32]
["South Gippsland (S)",null,null,null,null,null,null,null,null,null,0.33333333333333331]
["Stonnington (C)",null,null,null,null,null,null,null,null,null,0.5955056179775281]
["Whitehorse (C)",null,null,null,null,null,null,null,null,null,0.53246753246753242]
["Yarra Ranges (S)",null,null,null,null,null,null,null,null,null,0.5535714285714286]

{"sheet":"COM S curve-disconnect","index":20,"n_rows":351,"n_cols":82,"rows_kept":351,"cut":false,"hidden":false,"merged":[]}
["By customer class",2020,2021,{"$f":"C1+1","v":2022},2023,2024,2025,2026,2027,2028,2029,2030,2031,2032,2033,2034,2035,2036,2037,2038,2039,2040,2041,2042,2043,2044,2045,2046,2047,2048,2049,2050,2051,2052,2053,2054,2055,2056,2057,2058,2059,2060,2061,2062,2063,2064,2065,2066,2067,2068,2069,2070,2071,2072,2073,2074,2075,2076,2077,2078,2079,2080,2081,2082,2083,2084,2085,{"$f":"BO1+1","v":2086},2087,2088,2089,2090,2091,2092,2093,2094,2095,2096,2097,2098,2099,2100]
[]
["Unweighted Capital costs NPV",null,{"$f":"SUM('Appliance costs'!B80:B81,'Appliance costs'!B83)","v":-5102.9965277777774},{"$f":"SUM('Appliance costs'!C80:C81,'Appliance costs'!C83)","v":-5102.9965277777774},{"$f":"SUM('Appliance costs'!D80:D81,'Appliance costs'!D83)","v":-3250.4449175383061},{"$f":"SUM('Appliance costs'!E80:E81,'Appliance costs'!E83)","v":-3250.4449175383061},{"$f":"SUM('Appliance costs'!F80:F81,'Appliance costs'!F83)","v":-4590.4449175383043},{"$f":"SUM('Appliance costs'!G80:G81,'Appliance costs'!G83)","v":-4590.4449175383043},{"$f":"SUM('Appliance costs'!H80:H81,'Appliance costs'!H83)","v":-4590.4449175383043},{"$f":"SUM('Appliance costs'!I80:I81,'Appliance costs'!I83)","v":-5036.509322916666},{"$f":"SUM('Appliance costs'!J80:J81,'Appliance costs'!J83)","v":-4709.0267197876547},{"$f":"SUM('Appliance costs'!K80:K81,'Appliance costs'!K83)","v":-4644.5093639664938},{"$f":"SUM('Appliance costs'!L80:L81,'Appliance costs'!L83)","v":-4580.314594924439},{"$f":"SUM('Appliance costs'!M80:M81,'Appliance costs'!M83)","v":-4516.4407997275948},{"$f":"SUM('Appliance costs'!N80:N81,'Appliance costs'!N83)","v":-4452.8863735067334},{"$f":"SUM('Appliance costs'!O80:O81,'Appliance costs'!O83)","v":-4389.6497194169788},{"$f":"SUM('Appliance costs'!P80:P81,'Appliance costs'!P83)","v":-4326.7292485976704},{"$f":"SUM('Appliance costs'!Q80:Q81,'Appliance costs'!Q83)","v":-4264.1233801324606},{"$f":"SUM('Appliance costs'!R80:R81,'Appliance costs'!R83)","v":-4201.8305410095763},{"$f":"SUM('Appliance costs'!S80:S81,'Appliance costs'!S83)","v":-4139.8491660823065},{"$f":"SUM('Appliance costs'!T80:T81,'Appliance costs'!T83)","v":-4078.1776980296722},{"$f":"SUM('Appliance costs'!U80:U81,'Appliance costs'!U83)","v":-4016.8145873173012},{"$f":"SUM('Appliance costs'!V80:V81,'Appliance costs'!V83)","v":-3955.7582921584917},{"$f":"SUM('Appliance costs'!W80:W81,'Appliance costs'!W83)","v":-3895.0072784754771},{"$f":"SUM('Appliance costs'!X80:X81,'Appliance costs'!X83)","v":-3834.5600198608777},{"$f":"SUM('Appliance costs'!Y80:Y81,'Appliance costs'!Y83)","v":-3774.4149975393507},{"$f":"SUM('Appliance costs'!Z80:Z81,'Appliance costs'!Z83)","v":-3714.570700329431},{"$f":"SUM('Appliance costs'!AA80:AA81,'Appliance costs'!AA83)","v":-3655.0256246055615},{"$f":"SUM('Appliance costs'!AB80:AB81,'Appliance costs'!AB83)","v":-3595.7782742603122},{"$f":"SUM('Appliance costs'!AC80:AC81,'Appliance costs'!AC83)","v":-3536.8271606667886},{"$f":"SUM('Appliance costs'!AD80:AD81,'Appliance costs'!AD83)","v":-3478.1708026412325},{"$f":"SUM('Appliance costs'!AE80:AE81,'Appliance costs'!AE83)","v":-3419.8077264058038},{"$f":"SUM('Appliance costs'!AF80:AF81,'Appliance costs'!AF83)","v":-3419.8077264058038},{"$f":"SUM('Appliance costs'!AG80:AG81,'Appliance costs'!AG83)","v":-3419.8077264058038},{"$f":"SUM('Appliance costs'!AH80:AH81,'Appliance costs'!AH83)","v":-3419.8077264058038},{"$f":"SUM('Appliance costs'!AI80:AI81,'Appliance costs'!AI83)","v":-3419.8077264058038},{"$f":"SUM('Appliance costs'!AJ80:AJ81,'Appliance costs'!AJ83)","v":-3419.8077264058038},{"$f":"SUM('Appliance costs'!AK80:AK81,'Appliance costs'!AK83)","v":-3419.8077264058038},{"$f":"SUM('Appliance costs'!AL80:AL81,'Appliance costs'!AL83)","v":-3419.8077264058038},{"$f":"SUM('Appliance costs'!AM80:AM81,'Appliance costs'!AM83)","v":-3419.8077264058038},{"$f":"SUM('Appliance costs'!AN80:AN81,'Appliance costs'!AN83)","v":-3419.8077264058038},{"$f":"SUM('Appliance costs'!AO80:AO81,'Appliance costs'!AO83)","v":-3419.8077264058038},{"$f":"SUM('Appliance costs'!AP80:AP81,'Appliance costs'!AP83)","v":-3419.8077264058038},{"$f":"SUM('Appliance costs'!AQ80:AQ81,'Appliance costs'!AQ83)","v":-3419.8077264058038},{"$f":"SUM('Appliance costs'!AR80:AR81,'Appliance costs'!AR83)","v":-3419.8077264058038},{"$f":"SUM('Appliance costs'!AS80:AS81,'Appliance costs'!AS83)","v":-3419.8077264058038},{"$f":"SUM('Appliance costs'!AT80:AT81,'Appliance costs'!AT83)","v":-3419.8077264058038},{"$f":"SUM('Appliance costs'!AU80:AU81,'Appliance costs'!AU83)","v":-3419.8077264058038},{"$f":"SUM('Appliance costs'!AV80:AV81,'Appliance costs'!AV83)","v":-3419.8077264058038},{"$f":"SUM('Appliance costs'!AW80:AW81,'Appliance costs'!AW83)","v":-3419.8077264058038},{"$f":"SUM('Appliance costs'!AX80:AX81,'Appliance costs'!AX83)","v":-3419.8077264058038},{"$f":"SUM('Appliance costs'!AY80:AY81,'Appliance costs'!AY83)","v":-3419.8077264058038},{"$f":"SUM('Appliance costs'!AZ80:AZ81,'Appliance costs'!AZ83)","v":-3419.8077264058038},{"$f":"SUM('Appliance costs'!BA80:BA81,'Appliance costs'!BA83)","v":-3419.8077264058038},{"$f":"SUM('Appliance costs'!BB80:BB81,'Appliance costs'!BB83)","v":-3419.8077264058038},{"$f":"SUM('Appliance costs'!BC80:BC81,'Appliance costs'!BC83)","v":-3419.8077264058038},{"$f":"SUM('Appliance costs'!BD80:BD81,'Appliance costs'!BD83)","v":-3419.8077264058038},{"$f":"SUM('Appliance costs'!BE80:BE81,'Appliance costs'!BE83)","v":-3419.8077264058038},{"$f":"SUM('Appliance costs'!BF80:BF81,'Appliance costs'!BF83)","v":-3419.8077264058038},{"$f":"SUM('Appliance costs'!BG80:BG81,'Appliance costs'!BG83)","v":-3419.8077264058038},{"$f":"SUM('Appliance costs'!BH80:BH81,'Appliance costs'!BH83)","v":-3419.8077264058038},{"$f":"SUM('Appliance costs'!BI80:BI81,'Appliance costs'!BI83)","v":-3419.8077264058038},{"$f":"SUM('Appliance costs'!BJ80:BJ81,'Appliance costs'!BJ83)","v":-3419.8077264058038},{"$f":"SUM('Appliance costs'!BK80:BK81,'Appliance costs'!BK83)","v":-3419.8077264058038},{"$f":"SUM('Appliance costs'!BL80:BL81,'Appliance costs'!BL83)","v":-3419.8077264058038},{"$f":"SUM('Appliance costs'!BM80:BM81,'Appliance costs'!BM83)","v":-3419.8077264058038},{"$f":"SUM('Appliance costs'!BN80:BN81,'Appliance costs'!BN83)","v":-3419.8077264058038},{"$f":"SUM('Appliance costs'!BO80:BO81,'Appliance costs'!BO83)","v":-3419.8077264058038},{"$f":"SUM('Appliance costs'!BP80:BP81,'Appliance costs'!BP83)","v":-3419.8077264058038},{"$f":"SUM('Appliance costs'!BQ80:BQ81,'Appliance costs'!BQ83)","v":-3419.8077264058038},{"$f":"SUM('Appliance costs'!BR80:BR81,'Appliance costs'!BR83)","v":-3419.8077264058038},{"$f":"SUM('Appliance costs'!BS80:BS81,'Appliance costs'!BS83)","v":-3419.8077264058038},{"$f":"SUM('Appliance costs'!BT80:BT81,'Appliance costs'!BT83)","v":-3419.8077264058038},{"$f":"SUM('Appliance costs'!BU80:BU81,'Appliance costs'!BU83)","v":-3419.8077264058038},{"$f":"SUM('Appliance costs'!BV80:BV81,'Appliance costs'!BV83)","v":-3419.8077264058038},{"$f":"SUM('Appliance costs'!BW80:BW81,'Appliance costs'!BW83)","v":-3419.8077264058038},{"$f":"SUM('Appliance costs'!BX80:BX81,'Appliance costs'!BX83)","v":-3419.8077264058038},{"$f":"SUM('Appliance costs'!BY80:BY81,'Appliance costs'!BY83)","v":-3419.8077264058038},{"$f":"SUM('Appliance costs'!BZ80:BZ81,'Appliance costs'!BZ83)","v":-3419.8077264058038},{"$f":"SUM('Appliance costs'!CA80:CA81,'Appliance costs'!CA83)","v":-3419.8077264058038},{"$f":"SUM('Appliance costs'!CB80:CB81,'Appliance costs'!CB83)","v":-3419.8077264058038},{"$f":"SUM('Appliance costs'!CC80:CC81,'Appliance costs'!CC83)","v":-3419.8077264058038}]
["Unweighted Running costs NPV",null,{"$f":"SUM('Appliance costs'!B124+'Appliance costs'!B125+'Appliance costs'!B126)","v":3718.8498275771876},{"$f":"SUM('Appliance costs'!C124+'Appliance costs'!C125+'Appliance costs'!C126)","v":4570.9461900900733},{"$f":"SUM('Appliance costs'!D124+'Appliance costs'!D125+'Appliance costs'!D126)","v":4061.8405489352212},{"$f":"SUM('Appliance costs'!E124+'Appliance costs'!E125+'Appliance costs'!E126)","v":4518.3422366367795},{"$f":"SUM('Appliance costs'!F124+'Appliance costs'!F125+'Appliance costs'!F126)","v":3978.1159807477507},{"$f":"SUM('Appliance costs'!G124+'Appliance costs'!G125+'Appliance costs'!G126)","v":4083.6263601468695},{"$f":"SUM('Appliance costs'!H124+'Appliance costs'!H125+'Appliance costs'!H126)","v":4735.7622436929232},{"$f":"SUM('Appliance costs'!I124+'Appliance costs'!I125+'Appliance costs'!I126)","v":5211.4033022789572},{"$f":"SUM('Appliance costs'!J124+'Appliance costs'!J125+'Appliance costs'!J126)","v":6238.7458571541729},{"$f":"SUM('Appliance costs'!K124+'Appliance costs'!K125+'Appliance costs'!K126)","v":6185.7456850561148},{"$f":"SUM('Appliance costs'!L124+'Appliance costs'!L125+'Appliance costs'!L126)","v":5026.1317991171472},{"$f":"SUM('Appliance costs'!M124+'Appliance costs'!M125+'Appliance costs'!M126)","v":5002.6644944487134},{"$f":"SUM('Appliance costs'!N124+'Appliance costs'!N125+'Appliance costs'!N126)","v":5693.033816985313},{"$f":"SUM('Appliance costs'!O124+'Appliance costs'!O125+'Appliance costs'!O126)","v":6361.2193991099321},{"$f":"SUM('Appliance costs'!P124+'Appliance costs'!P125+'Appliance costs'!P126)","v":4429.4790924744757},{"$f":"SUM('Appliance costs'!Q124+'Appliance costs'!Q125+'Appliance costs'!Q126)","v":4705.1378963682446},{"$f":"SUM('Appliance costs'!R124+'Appliance costs'!R125+'Appliance costs'!R126)","v":5114.1597490887007},{"$f":"SUM('Appliance costs'!S124+'Appliance costs'!S125+'Appliance costs'!S126)","v":5712.9145341921576},{"$f":"SUM('Appliance costs'!T124+'Appliance costs'!T125+'Appliance costs'!T126)","v":6158.4700524273194},{"$f":"SUM('Appliance costs'!U124+'Appliance costs'!U125+'Appliance costs'!U126)","v":6321.9626113483255},{"$f":"SUM('Appliance costs'!V124+'Appliance costs'!V125+'Appliance costs'!V126)","v":6588.3269805392465},{"$f":"SUM('Appliance costs'!W124+'Appliance costs'!W125+'Appliance costs'!W126)","v":7248.2566451217781},{"$f":"SUM('Appliance costs'!X124+'Appliance costs'!X125+'Appliance costs'!X126)","v":7796.5662039697254},{"$f":"SUM('Appliance costs'!Y124+'Appliance costs'!Y125+'Appliance costs'!Y126)","v":8106.1288853555761},{"$f":"SUM('Appliance costs'!Z124+'Appliance costs'!Z125+'Appliance costs'!Z126)","v":8457.8922875661556},{"$f":"SUM('Appliance costs'!AA124+'Appliance costs'!AA125+'Appliance costs'!AA126)","v":8678.5952940635434},{"$f":"SUM('Appliance costs'!AB124+'Appliance costs'!AB125+'Appliance costs'!AB126)","v":8838.3483159745647},{"$f":"SUM('Appliance costs'!AC124+'Appliance costs'!AC125+'Appliance costs'!AC126)","v":8952.7318743373289},{"$f":"SUM('Appliance costs'!AD124+'Appliance costs'!AD125+'Appliance costs'!AD126)","v":9048.5899422683033},{"$f":"SUM('Appliance costs'!AE124+'Appliance costs'!AE125+'Appliance costs'!AE126)","v":9226.9688992411302},{"$f":"SUM('Appliance costs'!AF124+'Appliance costs'!AF125+'Appliance costs'!AF126)","v":9235.5387869217193},{"$f":"SUM('Appliance costs'!AG124+'Appliance costs'!AG125+'Appliance costs'!AG126)","v":9422.6624751963172},{"$f":"SUM('Appliance costs'!AH124+'Appliance costs'!AH125+'Appliance costs'!AH126)","v":9434.7045224904141},{"$f":"SUM('Appliance costs'!AI124+'Appliance costs'!AI125+'Appliance costs'!AI126)","v":9446.7295889942707},{"$f":"SUM('Appliance costs'!AJ124+'Appliance costs'!AJ125+'Appliance costs'!AJ126)","v":9458.7377790545434},{"$f":"SUM('Appliance costs'!AK124+'Appliance costs'!AK125+'Appliance costs'!AK126)","v":9470.72919637017},{"$f":"SUM('Appliance costs'!AL124+'Appliance costs'!AL125+'Appliance costs'!AL126)","v":9482.7039439964665},{"$f":"SUM('Appliance costs'!AM124+'Appliance costs'!AM125+'Appliance costs'!AM126)","v":9494.6621243491336},{"$f":"SUM('Appliance costs'!AN124+'Appliance costs'!AN125+'Appliance costs'!AN126)","v":9506.6038392083501},{"$f":"SUM('Appliance costs'!AO124+'Appliance costs'!AO125+'Appliance costs'!AO126)","v":9518.5291897227071},{"$f":"SUM('Appliance costs'!AP124+'Appliance costs'!AP125+'Appliance costs'!AP126)","v":9530.4382764132515},{"$f":"SUM('Appliance costs'!AQ124+'Appliance costs'!AQ125+'Appliance costs'!AQ126)","v":9542.3311991773771},{"$f":"SUM('Appliance costs'!AR124+'Appliance costs'!AR125+'Appliance costs'!AR126)","v":9554.2080572928044},{"$f":"SUM('Appliance costs'!AS124+'Appliance costs'!AS125+'Appliance costs'!AS126)","v":9566.0689494214257},{"$f":"SUM('Appliance costs'!AT124+'Appliance costs'!AT125+'Appliance costs'!AT126)","v":9577.9139736132456},{"$f":"SUM('Appliance costs'!AU124+'Appliance costs'!AU125+'Appliance costs'!AU126)","v":9589.7432273101731},{"$f":"SUM('Appliance costs'!AV124+'Appliance costs'!AV125+'Appliance costs'!AV126)","v":9601.556807349898},{"$f":"SUM('Appliance costs'!AW124+'Appliance costs'!AW125+'Appliance costs'!AW126)","v":9613.3548099696563},{"$f":"SUM('Appliance costs'!AX124+'Appliance costs'!AX125+'Appliance costs'!AX126)","v":9625.1373308100392},{"$f":"SUM('Appliance costs'!AY124+'Appliance costs'!AY125+'Appliance costs'!AY126)","v":9636.9044649187199},{"$f":"SUM('Appliance costs'!AZ124+'Appliance costs'!AZ125+'Appliance costs'!AZ126)","v":9648.6563067542302},{"$f":"SUM('Appliance costs'!BA124+'Appliance costs'!BA125+'Appliance costs'!BA126)","v":9660.3929501895946},{"$f":"SUM('Appliance costs'!BB124+'Appliance costs'!BB125+'Appliance costs'!BB126)","v":9672.1144885161048},{"$f":"SUM('Appliance costs'!BC124+'Appliance costs'!BC125+'Appliance costs'!BC126)","v":9683.821014446894},{"$f":"SUM('Appliance costs'!BD124+'Appliance costs'!BD125+'Appliance costs'!BD126)","v":9695.5126201206513},{"$f":"SUM('Appliance costs'!BE124+'Appliance costs'!BE125+'Appliance costs'!BE126)","v":9707.1893971051722},{"$f":"SUM('Appliance costs'!BF124+'Appliance costs'!BF125+'Appliance costs'!BF126)","v":9718.8514364009861},{"$f":"SUM('Appliance costs'!BG124+'Appliance costs'!BG125+'Appliance costs'!BG126)","v":9730.4988284449209},{"$f":"SUM('Appliance costs'!BH124+'Appliance costs'!BH125+'Appliance costs'!BH126)","v":9742.1316631136506},{"$f":"SUM('Appliance costs'!BI124+'Appliance costs'!BI125+'Appliance costs'!BI126)","v":9753.750029727189},{"$f":"SUM('Appliance costs'!BJ124+'Appliance costs'!BJ125+'Appliance costs'!BJ126)","v":9765.3540170524466},{"$f":"SUM('Appliance costs'!BK124+'Appliance costs'!BK125+'Appliance costs'!BK126)","v":9776.9437133066476},{"$f":"SUM('Appliance costs'!BL124+'Appliance costs'!BL125+'Appliance costs'!BL126)","v":9788.5192061608541},{"$f":"SUM('Appliance costs'!BM124+'Appliance costs'!BM125+'Appliance costs'!BM126)","v":9800.0805827433196},{"$f":"SUM('Appliance costs'!BN124+'Appliance costs'!BN125+'Appliance costs'!BN126)","v":9811.6279296429893},{"$f":"SUM('Appliance costs'!BO124+'Appliance costs'!BO125+'Appliance costs'!BO126)","v":9823.1613329128159},{"$f":"SUM('Appliance costs'!BP124+'Appliance costs'!BP125+'Appliance costs'!BP126)","v":9834.6808780731917},{"$f":"SUM('Appliance costs'!BQ124+'Appliance costs'!BQ125+'Appliance costs'!BQ126)","v":9846.1866501152417},{"$f":"SUM('Appliance costs'!BR124+'Appliance costs'!BR125+'Appliance costs'!BR126)","v":9857.6787335042027},{"$f":"SUM('Appliance costs'!BS124+'Appliance costs'!BS125+'Appliance costs'!BS126)","v":9869.1572121826812},{"$f":"SUM('Appliance costs'!BT124+'Appliance costs'!BT125+'Appliance costs'!BT126)","v":9880.6221695739878},{"$f":"SUM('Appliance costs'!BU124+'Appliance costs'!BU125+'Appliance costs'!BU126)","v":9892.0736885853457},{"$f":"SUM('Appliance costs'!BV124+'Appliance costs'!BV125+'Appliance costs'!BV126)","v":9903.5118516112052},{"$f":"SUM('Appliance costs'!BW124+'Appliance costs'!BW125+'Appliance costs'!BW126)","v":9914.9367405363719},{"$f":"SUM('Appliance costs'!BX124+'Appliance costs'!BX125+'Appliance costs'!BX126)","v":9926.348436739323},{"$f":"SUM('Appliance costs'!BY124+'Appliance costs'!BY125+'Appliance costs'!BY126)","v":9937.7470210952761},{"$f":"SUM('Appliance costs'!BZ124+'Appliance costs'!BZ125+'Appliance costs'!BZ126)","v":9949.1325739794556},{"$f":"SUM('Appliance costs'!CA124+'Appliance costs'!CA125+'Appliance costs'!CA126)","v":9960.505175270142},{"$f":"SUM('Appliance costs'!CB124+'Appliance costs'!CB125+'Appliance costs'!CB126)","v":9971.8649043518744},{"$f":"SUM('Appliance costs'!CC124+'Appliance costs'!CC125+'Appliance costs'!CC126)","v":9983.2118401184798}]
["Gas disconnection cost NPV",null,{"$f":"'Appliance costs'!B84","v":-100},{"$f":"'Appliance costs'!C84","v":-100},{"$f":"'Appliance costs'!D84","v":-100},{"$f":"'Appliance costs'!E84","v":-100},{"$f":"'Appliance costs'!F84","v":-100},{"$f":"'Appliance costs'!G84","v":-100},{"$f":"'Appliance costs'!H84","v":-100},{"$f":"'Appliance costs'!I84","v":-100},{"$f":"'Appliance costs'!J84","v":-100},{"$f":"'Appliance costs'!K84","v":-100},{"$f":"'Appliance costs'!L84","v":-100},{"$f":"'Appliance costs'!M84","v":-100},{"$f":"'Appliance costs'!N84","v":-100},{"$f":"'Appliance costs'!O84","v":-100},{"$f":"'Appliance costs'!P84","v":-100},{"$f":"'Appliance costs'!Q84","v":-100},{"$f":"'Appliance costs'!R84","v":-100},{"$f":"'Appliance costs'!S84","v":-100},{"$f":"'Appliance costs'!T84","v":-100},{"$f":"'Appliance costs'!U84","v":-100},{"$f":"'Appliance costs'!V84","v":-100},{"$f":"'Appliance costs'!W84","v":-100},{"$f":"'Appliance costs'!X84","v":-100},{"$f":"'Appliance costs'!Y84","v":-100},{"$f":"'Appliance costs'!Z84","v":-100},{"$f":"'Appliance costs'!AA84","v":-100},{"$f":"'Appliance costs'!AB84","v":-100},{"$f":"'Appliance costs'!AC84","v":-100},{"$f":"'Appliance costs'!AD84","v":-100},{"$f":"'Appliance costs'!AE84","v":-100},{"$f":"'Appliance costs'!AF84","v":-100},{"$f":"'Appliance costs'!AG84","v":-100},{"$f":"'Appliance costs'!AH84","v":-100},{"$f":"'Appliance costs'!AI84","v":-100},{"$f":"'Appliance costs'!AJ84","v":-100},{"$f":"'Appliance costs'!AK84","v":-100},{"$f":"'Appliance costs'!AL84","v":-100},{"$f":"'Appliance costs'!AM84","v":-100},{"$f":"'Appliance costs'!AN84","v":-100},{"$f":"'Appliance costs'!AO84","v":-100},{"$f":"'Appliance costs'!AP84","v":-100},{"$f":"'Appliance costs'!AQ84","v":-100},{"$f":"'Appliance costs'!AR84","v":-100},{"$f":"'Appliance costs'!AS84","v":-100},{"$f":"'Appliance costs'!AT84","v":-100},{"$f":"'Appliance costs'!AU84","v":-100},{"$f":"'Appliance costs'!AV84","v":-100},{"$f":"'Appliance costs'!AW84","v":-100},{"$f":"'Appliance costs'!AX84","v":-100},{"$f":"'Appliance costs'!AY84","v":-100},{"$f":"'Appliance costs'!AZ84","v":-100},{"$f":"'Appliance costs'!BA84","v":-100},{"$f":"'Appliance costs'!BB84","v":-100},{"$f":"'Appliance costs'!BC84","v":-100},{"$f":"'Appliance costs'!BD84","v":-100},{"$f":"'Appliance costs'!BE84","v":-100},{"$f":"'Appliance costs'!BF84","v":-100},{"$f":"'Appliance costs'!BG84","v":-100},{"$f":"'Appliance costs'!BH84","v":-100},{"$f":"'Appliance costs'!BI84","v":-100},{"$f":"'Appliance costs'!BJ84","v":-100},{"$f":"'Appliance costs'!BK84","v":-100},{"$f":"'Appliance costs'!BL84","v":-100},{"$f":"'Appliance costs'!BM84","v":-100},{"$f":"'Appliance costs'!BN84","v":-100},{"$f":"'Appliance costs'!BO84","v":-100},{"$f":"'Appliance costs'!BP84","v":-100},{"$f":"'Appliance costs'!BQ84","v":-100},{"$f":"'Appliance costs'!BR84","v":-100},{"$f":"'Appliance costs'!BS84","v":-100},{"$f":"'Appliance costs'!BT84","v":-100},{"$f":"'Appliance costs'!BU84","v":-100},{"$f":"'Appliance costs'!BV84","v":-100},{"$f":"'Appliance costs'!BW84","v":-100},{"$f":"'Appliance costs'!BX84","v":-100},{"$f":"'Appliance costs'!BY84","v":-100},{"$f":"'Appliance costs'!BZ84","v":-100},{"$f":"'Appliance costs'!CA84","v":-100},{"$f":"'Appliance costs'!CB84","v":-100},{"$f":"'Appliance costs'!CC84","v":-100}]
["Gas service charge NPV",null,{"$f":"'Appliance costs'!B127","v":2893.5486356193251},{"$f":"'Appliance costs'!C127","v":2893.5486356193251},{"$f":"'Appliance costs'!D127","v":2677.182661370658},{"$f":"'Appliance costs'!E127","v":2694.2084046323748},{"$f":"'Appliance costs'!F127","v":2837.7051631565455},{"$f":"'Appliance costs'!G127","v":2845.213088285941},{"$f":"'Appliance costs'!H127","v":2888.4633522748877},{"$f":"'Appliance costs'!I127","v":2995.6047897969102},{"$f":"'Appliance costs'!J127","v":3102.8044922900658},{"$f":"'Appliance costs'!K127","v":3163.9114174535907},{"$f":"'Appliance costs'!L127","v":3195.1265891590001},{"$f":"'Appliance costs'!M127","v":3203.064036568077},{"$f":"'Appliance costs'!N127","v":3350.4787934960395},{"$f":"'Appliance costs'!O127","v":3486.2077311829285},{"$f":"'Appliance costs'!P127","v":1695.7547562067134},{"$f":"'Appliance costs'!Q127","v":1691.1215464903019},{"$f":"'Appliance costs'!R127","v":1695.7547562067134},{"$f":"'Appliance costs'!S127","v":1695.7547562067134},{"$f":"'Appliance costs'!T127","v":1695.7547562067134},{"$f":"'Appliance costs'!U127","v":1691.1215464903019},{"$f":"'Appliance costs'!V127","v":1695.7547562067134},{"$f":"'Appliance costs'!W127","v":1695.7547562067134},{"$f":"'Appliance costs'!X127","v":1695.7547562067134},{"$f":"'Appliance costs'!Y127","v":1691.1215464903019},{"$f":"'Appliance costs'!Z127","v":1695.7547562067134},{"$f":"'Appliance costs'!AA127","v":1695.7547562067134},{"$f":"'Appliance costs'!AB127","v":1695.7547562067134},{"$f":"'Appliance costs'!AC127","v":1691.1215464903019},{"$f":"'Appliance costs'!AD127","v":1695.7547562067134},{"$f":"'Appliance costs'!AE127","v":1695.7547562067134},{"$f":"'Appliance costs'!AF127","v":1695.7547562067134},{"$f":"'Appliance costs'!AG127","v":1691.1215464903019},{"$f":"'Appliance costs'!AH127","v":1695.7547562067134},{"$f":"'Appliance costs'!AI127","v":1695.7547562067134},{"$f":"'Appliance costs'!AJ127","v":1695.7547562067134},{"$f":"'Appliance costs'!AK127","v":1691.1215464903019},{"$f":"'Appliance costs'!AL127","v":1695.7547562067134},{"$f":"'Appliance costs'!AM127","v":1695.7547562067134},{"$f":"'Appliance costs'!AN127","v":1695.7547562067134},{"$f":"'Appliance costs'!AO127","v":1691.1215464903019},{"$f":"'Appliance costs'!AP127","v":1695.7547562067134},{"$f":"'Appliance costs'!AQ127","v":1695.7547562067134},{"$f":"'Appliance costs'!AR127","v":1695.7547562067134},{"$f":"'Appliance costs'!AS127","v":1691.1215464903019},{"$f":"'Appliance costs'!AT127","v":1695.7547562067134},{"$f":"'Appliance costs'!AU127","v":1695.7547562067134},{"$f":"'Appliance costs'!AV127","v":1695.7547562067134},{"$f":"'Appliance costs'!AW127","v":1691.1215464903019},{"$f":"'Appliance costs'!AX127","v":1695.7547562067134},{"$f":"'Appliance costs'!AY127","v":1695.7547562067134},{"$f":"'Appliance costs'!AZ127","v":1695.7547562067134},{"$f":"'Appliance costs'!BA127","v":1691.1215464903019},{"$f":"'Appliance costs'!BB127","v":1695.7547562067134},{"$f":"'Appliance costs'!BC127","v":1695.7547562067134},{"$f":"'Appliance costs'!BD127","v":1695.7547562067134},{"$f":"'Appliance costs'!BE127","v":1691.1215464903019},{"$f":"'Appliance costs'!BF127","v":1695.7547562067134},{"$f":"'Appliance costs'!BG127","v":1695.7547562067134},{"$f":"'Appliance costs'!BH127","v":1695.7547562067134},{"$f":"'Appliance costs'!BI127","v":1691.1215464903019},{"$f":"'Appliance costs'!BJ127","v":1695.7547562067134},{"$f":"'Appliance costs'!BK127","v":1695.7547562067134},{"$f":"'Appliance costs'!BL127","v":1695.7547562067134},{"$f":"'Appliance costs'!BM127","v":1691.1215464903019},{"$f":"'Appliance costs'!BN127","v":1695.7547562067134},{"$f":"'Appliance costs'!BO127","v":1695.7547562067134},{"$f":"'Appliance costs'!BP127","v":1695.7547562067134},{"$f":"'Appliance costs'!BQ127","v":1691.1215464903019},{"$f":"'Appliance costs'!BR127","v":1695.7547562067134},{"$f":"'Appliance costs'!BS127","v":1695.7547562067134},{"$f":"'Appliance costs'!BT127","v":1695.7547562067134},{"$f":"'Appliance costs'!BU127","v":1691.1215464903019},{"$f":"'Appliance costs'!BV127","v":1695.7547562067134},{"$f":"'Appliance costs'!BW127","v":1695.7547562067134},{"$f":"'Appliance costs'!BX127","v":1695.7547562067134},{"$f":"'Appliance costs'!BY127","v":1691.1215464903019},{"$f":"'Appliance costs'!BZ127","v":1695.7547562067134},{"$f":"'Appliance costs'!CA127","v":1695.7547562067134},{"$f":"'Appliance costs'!CB127","v":1695.7547562067134},{"$f":"'Appliance costs'!CC127","v":1695.7547562067134}]
[]
["LGA",null,2021,{"$f":"C8+1","v":2022},2023,2024,2025,2026,2027,2028,2029,2030,2031,2032,2033,2034,2035,2036,2037,2038,2039,2040,2041,2042,2043,2044,2045,2046,2047,2048,2049,2050,2051,2052,2053,2054,2055,2056,2057,2058,2059,2060,2061,2062,2063,2064,2065,2066,2067,2068,2069,2070,2071,2072,2073,2074,2075,2076,2077,2078,2079,2080,2081,2082,2083,2084,2085,{"$f":"BO8+1","v":2086},2087,2088,2089,2090,2091,2092,2093,2094,2095,2096,2097,2098,2099,2100]
["Bass Coast (S)",null,{"$f":"C$5+C$6+C311+C333","v":-15039.378227584835},{"$f":"D$5+D$6+D311+D333","v":-4489.1686640143234},12180.669244322424,17849.859089273079,-5469.1578610442666,-4155.2758416636498,3962.3783724196692,4374.957812281471,21301.501865602171,21513.997308140686,7991.0532406976272,8507.9837588387963,17998.743969290961,27199.173163874031,2278.5459174530333,6470.656602414485,12319.34651627679,20508.677909625425,26797.297133721462,29585.067826300969,33651.969031025648,42583.334356481617,50128.875851211407,54709.96240786773,59819.058155346422,63297.054153660014,66016.672622673374,68166.208814066238,70091.948872276989,73031.114808528248,73137.222656119411,75449.456660556112,75603.188174309995,75752.076231122483,75900.755332675588,76044.59355319856,76197.491797817522,76345.551705440594,76493.407745972887,76636.427962066751,76788.513227470219,76935.765149911051,77082.818168310332,77225.040294531296,77376.332371726894,77522.795977222384,77669.065519727592,77810.508981085004,77961.027174615447,78106.721648000006,78252.226780491037,78392.910524658626,78542.673664735747,78687.617719498463,78832.377039476094,78972.319548696541,79121.346003029787,79265.557893067889,79409.589541333029,79548.808844022307,79697.116529350198,79840.614060426771,79983.935732465528,80122.449414526316,80270.055807857163,{"$f":"BP$5+BP$6+BP311+BP333","v":80412.85634877134},80555.485305853828,80693.31052170365,80840.232671274222,80982.353164749627,81124.306244749867,81261.459728072194,81407.714264030627,81549.171237330651,81690.464865274203,81826.962939499295,81972.566084319027,82113.37565959504,82254.025857941422,82394.517656180076]
["Bayside (C)",null,{"$f":"C$5+C$6+C312+C334","v":-3820.4428781097795},-297.37457664080648,5364.3593511164181,7268.8319798049288,-595.63244713342647,-151.88246125778096,2587.6816947375009,2739.216185698966,8505.2480073907427,8625.2401348002459,4138.557454347454,4324.7131338266736,7600.3910053050495,10771.293058728925,1265.0255524102649,2669.9103433908931,4634.1140463299307,7376.8100806923339,9484.754646488489,10420.522797813062,11789.567896177055,14779.895027507957,17307.40994461775,18841.869022460061,20558.781269474497,21727.890018394661,22643.71266506541,23366.041466470502,24019.771232165323,25008.79393930074,25044.226903180075,25813.27324852012,25867.695375280506,25917.41408373486,25967.063015030137,26012.00938820243,26066.153258492348,26115.595420197504,26164.969503853506,26209.642717951807,26263.515107254869,26312.68745564812,26361.793383320561,26406.200088482154,26459.807605678616,26508.716708642947,26557.561007475633,26601.707690361676,26655.056781884843,26703.709045878997,26752.298082607733,26796.191070481029,26849.288024369285,26897.689698453964,26946.02968340709,26989.675148107468,27042.526097954113,27090.683277716926,27138.780268715418,27182.184230534738,27234.795159338813,27282.71379072038,27330.57369687967,27373.742028339781,27426.118772259673,27473.804655283697,27521.433240719947,27564.371670255379,27616.519922268279,27663.9787146776,27711.381602120855,27754.095717668934,27806.021031138254,27853.258251939616,27900.440926255993,27942.936178756747,27994.643970909659,28041.665003829352,28088.632815454665,28135.547731979175]
["Boroondara (C)",null,-4920.9526886899985,{"$f":"D$5+D$6+D313+D335","v":-712.98219350705767},6024.2200899183445,8295.6218842459111,-1076.9767475615845,-548.41911141392484,2715.3220237238274,2891.6827861483362,9745.9295452549886,9875.0267078828329,4507.7111350325249,4726.1941576778918,8607.7145277974232,12366.373453893037,1357.8282400436183,3034.457277686146,5377.3495635004147,8650.9890327918147,11166.489408480807,12282.848295717951,13914.92504880498,17484.38101841211,20501.062781046654,22332.545348721476,24380.160379546462,25774.387741216713,26866.099718734429,27727.613149726047,28505.400811182306,29684.575415891792,29726.896726125524,30646.350267451206,30710.451610050761,30769.835885441418,30829.136818642401,30883.721712041428,30947.49070371344,31006.54467027622,31065.517324074761,31119.775954902223,31183.220688318375,31241.952388504658,31300.604755447996,31354.545066661311,31417.673435501398,31476.090714023645,31534.430590165175,31588.060329465028,31650.880033381451,31708.990542146166,31767.02553194714,31820.352256648061,31882.870806105457,31940.68200902221,31998.419530130028,32051.45061190852,32113.675332901577,32171.194510570836,32228.641798477336,32281.384428000289,32343.322466653139,32400.556720936285,32457.720833518637,32510.182024955699,32571.84035200526,32628.796610479774,32685.684432427319,32737.871027849455,32799.25644301634,32855.941463318719,32912.559710448499,32964.478384116162,33025.597520365547,33082.017894425189,33138.373117888877,33190.030380432268,33250.889708127492,33307.051866294154,33363.150456679206,33419.185868889865]
["Cardinia (S)",null,-1887.6858780121693,392.62051745239296,4126.1872398130909,5364.8632139669626,220.08372931340455,509.94938241404816,2298.3891477130801,2399.270451096032,6194.8408018967111,6299.1225378423696,3411.1638134427594,3539.4639029718783,5716.6331640648586,7821.8391635542557,1042.2603567970109,1954.8492490350309,3232.7015477690984,5012.7743062832196,6381.9797859234441,6990.8353811468296,7883.3741928949312,9823.6296883989689,11464.306091354125,12460.568904621845,13578.169690845787,14339.54675698859,14936.961005592209,15407.478735041506,15836.841334980254,16481.564960917007,16504.498951186404,17000.629929521579,17037.489021975292,17069.669462194244,17101.804739138315,17129.261920601224,17165.94091151988,17197.942356821077,17229.899738596512,17257.180117814867,17293.683392631079,17325.510201232661,17357.294019014451,17384.401900290439,17420.733736602771,17452.390159567803,17484.004638050581,17510.944219876437,17547.10879013966,17578.598974049353,17610.04823410367,17636.823611801032,17672.824985948755,17704.152975508441,17735.441036770077,17762.05620506304,17797.898353064294,17829.0680936438,17860.198877038136,17886.657732561354,17922.344526913002,17953.359867023137,17984.337197225861,18010.643540969839,18046.178759126131,18077.043452832957,18107.871060668978,18134.028600363665,18169.415927104797,18200.133636383056,18230.815161165097,18256.827513603625,18292.070543344751,18322.644840372261,18353.183832180592,18379.054525484571,18414.156764526648,18444.591133920905,18474.991055825776,18505.356741370088]
["Casey (C)",null,-2522.4555689494082,129.50593792936161,4460.3106278996402,5898.0969293211365,-74.926656031026141,260.9589937931014,2333.8379905210131,2444.9052406816554,6833.3964866252845,6943.0942199740894,3577.7420069946675,3724.0546992641175,6230.4462945277664,8655.0583090342898,1060.7474796797305,2121.2567482935883,3605.0593586193918,5673.6996595634755,7264.5153766961866,7971.818681505365,9007.5386570986593,11262.499944165565,13169.062953672228,14326.945536954952,15624.439599522995,16508.41357645957,17201.70878069038,17748.187856074343,18245.301264641894,18993.638767249853,19020.310647622835,19598.058539576617,19640.169958675098,19677.595319102453,19714.968155330993,19747.655580384315,19789.557544148534,19826.774736220643,19863.940683085355,19896.422489828874,19938.120098449959,19975.134190707948,20012.09828529918,20044.379479570576,20085.877707830339,20122.693644195606,20159.460799768705,20191.546264350334,20232.849964749919,20269.472567633085,20306.047576697543,20337.942074385908,20379.055980195939,20415.489953527518,20451.877490858358,20483.585667456558,20524.514395690385,20560.764327875229,20596.968953448762,20628.495340683388,20669.243394995712,20705.313761793099,20741.339923648753,20772.688942013694,20813.260715526092,20849.155882857507,20885.007919887663,20916.183881416218,20956.583659471784,20992.307886157934,21027.990030827685,21058.997141795015,21099.22910464368,21134.786545072784,21170.302926071257,21201.145289628912,21241.213515045114,21276.608221774099,21311.962866599111,21347.277695059733]
["Frankston (C)",null,2793.5486356193251,2793.5486356193251,2577.182661370658,2594.2084046323748,2737.7051631565455,2745.213088285941,2788.4633522748877,2895.6047897969102,3002.8044922900658,3063.9114174535907,3095.1265891590001,3103.064036568077,3250.4787934960395,3386.2077311829285,1595.7547562067134,1591.1215464903019,1595.7547562067134,1595.7547562067134,1595.7547562067134,1591.1215464903019,1595.7547562067134,1595.7547562067134,1595.7547562067134,1591.1215464903019,1595.7547562067134,1595.7547562067134,1595.7547562067134,1591.1215464903019,1595.7547562067134,1595.7547562067134,1595.7547562067134,1591.1215464903019,1595.7547562067134,1595.7547562067134,1595.7547562067134,1591.1215464903019,1595.7547562067134,1595.7547562067134,1595.7547562067134,1591.1215464903019,1595.7547562067134,1595.7547562067134,1595.7547562067134,1591.1215464903019,1595.7547562067134,1595.7547562067134,1595.7547562067134,1591.1215464903019,1595.7547562067134,1595.7547562067134,1595.7547562067134,1591.1215464903019,1595.7547562067134,1595.7547562067134,1595.7547562067134,1591.1215464903019,1595.7547562067134,1595.7547562067134,1595.7547562067134,1591.1215464903019,1595.7547562067134,1595.7547562067134,1595.7547562067134,1591.1215464903019,{"$f":"BO$5+BO$6+BO316+BO338","v":1595.7547562067134},1595.7547562067134,1595.7547562067134,1591.1215464903019,1595.7547562067134,1595.7547562067134,1595.7547562067134,1591.1215464903019,1595.7547562067134,1595.7547562067134,1595.7547562067134,1591.1215464903019,1595.7547562067134,1595.7547562067134,1595.7547562067134,1595.7547562067134]
["Glen Eira (C)",null,-2800.1457593597297,{"$f":"D$5+D$6+D317+D339","v":-2.4724178105243482},4572.9495633203842,6088.7994516453346,-216.51531183060615,137.41302850997818,2321.8098302965664,2434.3512825021971,7057.1538458609866,7169.3393723970512,3617.1818930749323,3770.9173936633197,6406.7434934799676,8956.9396123861079,1043.5587098233682,2162.4155231374079,3727.3152408559272,5909.441964252519,7587.4909407246723,8333.7384201414734,9425.9391236286756,11804.627697623988,13815.776132698005,15037.363373346392,16405.72474168639,17338.100608547618,18069.321711205317,18645.915290512752,19169.922498837845,19959.212689843102,19987.350054769006,20597.096834557931,20641.267491181185,20680.749185351298,20720.175469384252,20754.913474036584,20798.863166817267,20838.125254836792,20877.333281984662,20911.854370643916,20955.588480002807,20994.636308903486,21033.631393019212,21067.940846568461,21111.464620626371,21150.303405973042,21189.090730270414,21223.19369977613,21266.51225765454,21305.147086824807,21343.731707137413,21377.633217087627,21420.751552126385,21459.187387507889,21497.574235465923,21531.279186927044,21574.202169820965,21612.443851928132,21650.637738055491,21684.150911749501,21726.883293606268,21764.935544118649,21802.941160851951,21836.267220156464,21878.813635477403,21916.681060201736,21954.502984833489,21987.646478706163,22030.011448292244,22067.698540049823,22105.341237597626,22138.306603427103,22180.494537211773,22218.00567865339,22255.473504656897,22288.2650710421,22330.28027085284,22367.619737202862,22404.916940450457,22442.172139626389]
["Greater Dandenong (C)",null,-8184.5113514134573,-1818.4833229390642,8233.3391867107348,11660.8976664152,-2410.1012021780152,-1614.3232384711482,3301.0465364907323,3573.4676525484101,13843.475654443151,13998.682222619285,5854.0147422046939,6171.8040456665804,11959.731708942039,17567.824655847879,1823.2385535471331,4353.6030138063616,7887.214024087556,12831.324309288095,16628.525966488058,18311.45447430612,20769.876111703154,26161.679423459987,30717.259534139885,33482.228256233793,36569.461514168834,38670.634023935781,40314.186566052311,41611.899605345279,42778.235852320358,44554.22628320854,44618.252076036268,46011.623477951536,46106.223050590052,46196.062549707334,46285.775964595639,46370.730860275304,46464.827635823749,46554.167427241395,46643.384204646267,46727.845514005021,46821.451735461509,46910.303986201819,46999.036217648099,47083.015957188793,47176.143566506566,47264.520144442533,47352.779624189323,47436.289515020719,47528.950160618624,47616.862641936779,47704.660874393056,47787.712349598194,47879.917393682437,47967.377070158094,48054.725277111487,48137.329488930933,48229.090014632326,48316.107900721705,48403.017028385788,48485.184855219704,48576.511673551926,48663.098513305798,48749.579239189858,48831.321292424545,48922.224949066731,49008.391222870414,49094.453962476488,49175.780593138828,49266.271375048062,49352.027306191754,49437.682219543436,49518.603524788137,49608.69146664557,49694.047027729452,49779.304025736317,49859.829855170043,49949.524745664676,50034.489664843146,50119.358415505238,50204.131587068245]
["Kingston (C)",null,-5768.1403305157728,-915.22509160979098,6766.0464090757159,9382.9705843644642,-1360.116486008872,-751.69890960632983,3005.638523778558,3221.90841481393,11088.746678004056,11224.026659301086,5025.0755759033709,5271.632777518058,9721.2952294117749,14031.077510186653,1605.5661872689307,3535.7656253390487,6232.9450761713597,10004.255500476316,12901.249171515705,14185.388935157513,16062.889220083038,20175.435991028542,23650.506235754168,25759.454845954315,28116.261495612438,29720.267214266129,30975.411355330547,31965.804593189798,32858.238750691205,34214.308773565928,34263.116561452967,35324.202486729759,35397.418356098417,35465.904305637428,35534.294139345111,35597.955238098075,35670.78781797296,35738.892833105172,35806.904072876285,35870.188903638016,35942.647527033645,36010.380882856152,36078.022746234965,36140.940469359368,36213.034239799417,36280.404983363456,36347.686461284269,36410.246011942087,36481.98380918472,36549.000765184697,36615.930627624875,36678.140721420656,36749.531207039974,36816.202983359544,36882.789784850087,36944.658923298135,37015.710546125083,37082.045539243503,37148.297624241342,37209.834100103399,37280.555101530059,37346.561501792625,37412.48700991751,37473.69891240685,37544.09733155695,37609.783128313,37675.389999452767,37736.285219306897,37806.368898076602,37871.741884688083,37937.037863975682,37997.624098401662,38067.400686373541,38132.468465097809,38197.46110776296,38257.745865258403,38327.22282449167,38391.992811241544,38456.689487340474,38521.313302109804]
["Knox (C)",null,-5658.8175734406796,-922.13859933891217,6604.7286088645269,9159.3804246060954,-1348.0947788997728,-754.07009623434351,2914.3081036846925,3119.5948398178334,10806.719881574762,10941.433794699336,4892.9111371461113,5134.9513941938858,9482.759530119667,13693.752023709414,1524.1505021556477,3409.1817808192318,6043.0385618327418,9725.1820818893175,12553.944531792462,13808.367138674741,15642.154379849489,19657.337922308114,23050.307977104188,25109.760883889143,27411.351478678906,28978.055524229847,30204.248283890352,31171.914880379205,32044.185114486536,33368.869803782683,33416.508555187916,34452.068542861503,34523.641731120806,34590.487315935898,34657.239087070993,34719.264411256918,34790.46349051228,34856.937265001776,34923.319510222907,34984.9775787295,35055.811658452556,35121.922675557857,35187.944391632118,35249.244145405952,35319.72211107421,35385.479201152979,35451.149163665206,35512.099323863215,35582.229842548259,35647.641618927228,35712.968387797679,35773.577461269611,35843.368987084876,35908.443851473014,35973.4357763359,36033.712060969112,36103.172840380474,36167.918988145888,36232.584213593014,36292.53580352234,36361.673880525341,36426.099305839467,36490.445776531677,36550.080567218822,{"$f":"BO$5+BO$6+BO320+BO342","v":36618.90378838536},36683.016289237872,36747.051754888089,36806.377448072839,36874.893467471222,36938.700650558691,37002.432670789611,37061.45677931673,37129.673063307928,37193.182348799644,37256.618297879337,37315.348150404076,37383.271982317237,37446.490608501219,37509.637679959487,37572.713635251275]
["Manningham (C)",null,-6194.4342347157108,{"$f":"D$5+D$6+D321+D343","v":-970.39706599385681},7231.9027860932874,10047.651642201454,-1467.9866204793434,-813.61506828147321,3227.7535360499169,3472.3384965185614,11917.926639038858,12055.990594898794,5377.7197665578678,5639.6656537306335,10415.493047178541,15041.650958410588,1800.0171393590572,3875.3782422287004,6775.6787750379954,10832.621657180458,13948.399144509851,15328.34942969296,17346.341994950722,21770.672019695729,25508.788725174411,27776.678835752649,30310.68650872961,32034.691254193858,33383.168904007289,34447.016667346135,35404.718581198656,36861.879908090195,36914.420223651614,38057.005973786174,38135.466634738666,38209.189980050505,38282.809859167159,38351.693698130264,38429.741757901123,38503.055037221304,38576.267369801688,38644.746166048215,38722.391671385107,38795.304869114669,38868.11957760567,38936.203192018627,39013.455942628265,39085.978797682765,39158.405560591593,39226.10361165012,39302.973166361437,39375.115178295178,39447.163436274583,39514.485306100541,39590.980988873052,39662.751423849099,39734.430385629457,39801.385225882084,39877.516131662793,39948.924028272901,40020.242676445312,40086.839414067217,40162.614414500524,40233.668589438661,40304.635686092282,40370.883028911368,40446.310777905121,40517.019831498241,40587.643923716052,40653.550365906209,40728.639305057892,40799.011626657652,40869.301051874034,40934.874879278686,41009.633243165183,41079.677016404137,41149.63990762757,41214.889202949344,41289.32502428352,41359.0482321991,41428.692523103688,41498.258380679967]
["Maroondah (C)",null,-5137.6398318181564,-722.41221026935455,6298.0019631678842,8680.4395888128984,-1117.9842054142209,-563.76306570278393,2858.5984029676911,3052.6410220441612,10228.724880307811,10359.106458674225,4723.8405248784329,4950.6498993450405,9014.0543800725463,12949.131799704683,1484.5503608382496,3241.9842114423664,5698.050696238879,9130.9450555267867,11768.369260086445,12937.977478273828,14648.257867833025,18391.578082435008,21554.907764301628,23474.900956641704,25621.225103714911,27082.217750831653,28225.804609206152,29128.09252527649,29942.083915501738,31177.469532297553,31221.87531369218,32186.843329217005,32253.873683402031,32316.182840106099,32378.404549728912,32435.90613988107,32502.587773703854,32564.550352725848,32626.427614048247,32683.586872066775,32749.928276791143,32811.55271670103,32873.093915930898,32929.919175991381,32995.928634088203,33057.22316597771,33118.436483151083,33174.935874555333,33240.621464911543,33301.594117570101,33362.487531694293,33418.668983980751,33484.038586977411,33544.697191937965,33605.278486005212,33661.149733931001,33726.211036393412,33786.563232851251,33846.839998726435,33902.408587123689,33967.169087147347,34027.222326755138,34087.201969940346,34142.475258450839,34206.942270105646,34266.703821648043,34326.393565927407,34381.37873361785,34445.559391534181,34505.036345484703,34564.44323745252,34619.147287313812,34683.04855115337,34742.247824116777,34801.378737591636,34855.808500925064,34919.437159739005,34978.365498782048,35037.227139109986,35096.02248951955]
["Melbourne (C)",null,-25886.372934986211,-8300.0481236817868,19251.724030162506,28690.43881004049,-10001.436484480044,-7816.311232591077,5686.301110266606,6394.0233978812175,34470.5436091109,34770.776901804464,12195.172544042405,13038.465433539212,28747.434223931064,43980.303891575706,3620.8693311286916,10599.026419629721,20332.44800087648,33970.678722722543,44440.643342225128,49078.136831654934,55841.717816795921,70717.109812593117,83282.510625000214,90909.562709919046,99410.644061569314,105195.96864273869,109717.20177846905,113291.30570674581,116486.24052178598,121373.62235846893,121550.4953448795,125407.88773069727,125661.05545414232,125909.23950317489,126157.07524111074,126399.93159846465,126651.71033133335,126898.51392431431,127144.97768775396,127386.47049953077,127636.89406343696,127882.35081209491,128127.47600420316,128367.63846631737,128616.73985123028,128860.88254088566,129104.70174362265,129343.56623595465,129591.37762094672,129834.23823112839,130076.7832257354,130314.38133248665,130560.93410596017,130802.54383050317,131043.84561747244,131280.20814700943,131525.53292641358,131765.92219305137,132006.01101159438,132241.16801579215,132485.29466684477,132724.4931563086,132963.39850333374,133197.3792964344,133440.33695185964,133678.37361649785,133916.12426511163,134148.95744210714,134390.7745199026,134627.67760183103,134864.30161937373,135096.01507392735,135336.71929517138,135572.51634396822,135808.04110959591,136038.66205151286,136278.28045772389,136512.99834767904,136747.45056950359,136981.63875147875]
["Monash (C)",null,-6849.2719138062639,-1380.1026088891776,7301.8516893789565,10248.927516010739,-1875.0090882631739,-1190.2841795310669,3038.6916829181391,3269.3514060159578,12121.167386222292,12265.789386560831,5275.6155738628113,5552.3980505028885,10548.311499374286,15388.066221360303,1611.9724537155962,3787.79458870702,6826.8164047548998,11076.957908101605,14341.756721412225,15789.479894520591,17904.735941673905,22539.447622350435,26455.7323122261,28833.005261940056,31488.434492331762,33296.056049227918,34710.515719983734,35827.193440468865,36832.296255683992,38360.499073763945,38415.504785220146,39611.922509597862,39693.847441620201,39771.030172947118,39848.104583042681,39920.438127780741,40001.931097769724,40078.684521214222,40155.332261105395,40227.241756947726,40308.313283083466,40384.647851553498,40460.879309286975,40532.375079827543,40613.035421657107,40688.961331056038,40764.786639292186,40835.878754346588,40916.137919236338,40991.665114874464,41067.094157258201,41137.792439193916,41217.660188619782,41292.798371464589,41367.840788835711,41438.154818743438,41517.640674422692,41592.39930719183,41667.064503639529,41737.003627348706,41816.116877217828,41890.505190318778,41964.802339083515,42034.375673027185,{"$f":"BO$5+BO$6+BO324+BO346","v":42113.125377069024},42187.152374389545,42261.090423616668,42330.306860548415,42408.701856473017,42482.376321025753,42555.963999374486,42624.832213941714,42702.881122724342,42776.211622149705,42849.457444260901,42917.985898438041,42995.697129717679,43068.692021648276,43141.604293474862,43214.434451576431]
["Port Phillip (C)",null,-7605.4763903655366,{"$f":"D$5+D$6+D325+D347","v":-1889.5761028639718},7310.4099876934924,10389.669350029984,-2372.0295893065231,-1656.7533477354518,2761.0534197670349,2969.2097267490899,12236.134193646787,12388.584596661069,5085.6948941577793,5378.6260691760035,10597.270321910113,15653.218231420127,1340.3757610115463,3618.505387608162,6798.3385384312351,11244.118110450931,14660.083659186475,16177.189328822587,18391.504977669949,23239.126425810904,27335.891322013467,29824.404938823413,32603.186353802164,34496.103078815715,35978.102441412644,37149.076370553856,38203.005319873773,39803.823474605248,39861.310662219657,41111.911473750399,41197.323272155372,41277.987952947944,41358.539425806564,41434.345176631905,41519.305525872827,41599.521531389189,41679.627085643362,41754.989657428174,41839.509550192524,41919.287804903317,41998.95829723635,42073.888479303569,42157.978637977969,42237.329797755017,42316.575817942634,42391.08413438806,42474.755017801872,42553.689476618863,42632.521354187462,42706.618070495679,42789.879880494904,42868.407776959699,42946.835587676913,43020.530717170972,43103.393405026698,43181.524628749139,43259.558200951418,43332.861511079769,43415.334783735765,43493.078981535262,43570.727902296087,43643.648920761974,43725.742246924652,43803.108828881959,43880.382450024859,43952.930470761232,44034.653086836857,44111.651232193224,44188.558676154018,44260.742765148199,44342.103681030596,44418.742343938909,44495.292509480016,44567.121510452038,44648.129515164779,44724.417430296075,44800.618998077363,44876.734747731942]
["South Gippsland (S)",null,-9765.1706661218777,-2466.8071748222501,9078.9917679493374,13006.039191637286,-3139.6168127972487,-2228.3929057233181,3400.5222351849516,3699.5208888735506,15456.180024864727,15624.824927879301,6282.4187629574299,6645.2477734304921,13258.917824327829,19668.128632543288,1879.558011151159,4780.8522399371359,8830.967860005745,14498.837378404358,18851.829624493992,20781.583431659077,23599.049591369738,29780.185477403655,35002.630862343773,38172.901360198521,41711.278074231275,44119.860841480157,46003.804575849252,47491.939077522649,48828.100478284498,50863.882969346814,50937.285647874975,52535.401557792349,52643.17713754838,52746.17406396805,52849.026440516187,52947.101945677081,53054.301091287809,53156.725125408659,53259.00812952219,53356.517760268405,53463.154507777959,53565.019598541359,53666.747092607126,53763.704625316233,53869.792665634421,53971.112419020486,54072.29792462365,54168.716797017267,54274.26948452997,54375.05717211352,54475.713878539143,54571.607198130361,54676.637559093593,54776.906126384813,54877.046898905392,54972.427451234114,55076.948191956588,55176.710266531838,55276.347654486643,55371.227911147122,55475.251425967508,55574.519325395537,55673.665570066514,55768.057696533673,55871.596075596623,55970.381815165674,56069.048857455273,56162.964720713753,56266.029757550757,56364.345057801096,56462.54454571729,56555.995721698702,56658.598920618286,56756.455214685426,56854.198510638234,56947.196291471606,57049.34887476344,57146.757315536815,57244.055503451484,57341.24411424766]
["Stonnington (C)",null,-5297.980622824125,-895.39460432837222,6170.7520953046806,8546.4171147247926,-1271.6081916481999,-718.95239171876165,2693.734064430686,2871.5271244173819,10039.118581909606,10171.616111857264,4554.8770744384965,4783.3509910514767,8837.8230343900614,12764.290583029484,1329.6649565989574,3084.2994181311078,5535.5815038271176,8960.8701891714481,11592.955179472887,12761.402481854529,14468.989438127908,18203.771038665836,21360.211829312993,23276.851922656602,25419.190688035851,26878.136183629496,28020.574001537017,28922.379868068259,29736.157976128699,30970.099996111734,31014.378635644207,31976.570505778607,32043.422205543146,32105.552959751789,32167.596517256112,32224.920204128288,32291.424181980678,32353.209350822435,32414.909446244747,32471.891781142727,32538.056504034736,32599.504501918418,32660.869497455351,32717.518790692437,32783.352517380728,32844.471551830946,32905.509604097591,32961.8339616999,33027.344747940086,33088.142824758368,33148.861889916705,33204.869218718988,33270.064922329126,33330.549850625335,33390.957689383446,33446.655701996788,33511.543987793433,33571.723384890429,33631.827567376298,33687.223787030613,33751.812131640829,33811.693427855833,33871.501338368238,33926.60310363333,33990.898800185474,34050.489243491291,34110.008085131369,34164.822554518934,34228.832717215671,34288.139377784479,34347.376176970851,34401.910333420936,34465.641901997165,34524.671676630242,34583.633287500488,34637.893942755138,34701.353686823728,34760.11330326974,34818.806411971251,34877.433420554538]
["Whitehorse (C)",null,-5951.9727825847949,-1005.2464915080891,6835.3466826185795,9502.5291450272307,-1455.8176716564813,-835.78399155742954,2993.3499616639274,3210.1273439909746,11228.142302588189,11365.08782964099,5045.9327975997585,5297.3321306154066,9830.389012388674,14221.086473968473,1590.2162487639944,3558.0425278777075,6307.4949551209138,10151.930682623421,13105.147244184118,14414.420492735651,16328.34420520284,20520.608254408784,24063.071713406822,26213.093702653696,28615.584833829649,30250.811229682531,31530.431182391265,32540.270867781353,33450.07765246489,34832.571295737187,34882.322580411288,35964.009779036249,36038.55141058001,36108.361252803894,36178.073121194248,36243.054408044336,36317.205340776629,36386.626884801924,36455.952840707207,36520.550585980105,36594.320333330696,36663.363033550122,36732.312472697726,36796.536013824894,36869.933855296476,36938.606933648596,37007.18902077536,37071.04746565214,37144.082452656265,37212.394904424495,37280.618579039001,37344.120811750123,37416.80177329664,37484.762372762445,37552.636354762224,37615.791041163597,37688.12658940666,37755.743895360531,37823.276690508079,37886.092283667749,37958.09081931266,38025.373180426337,38092.573085687298,38155.057831190017,{"$f":"BO$5+BO$6+BO328+BO350","v":38226.727548763738},38293.683108827609,38360.55821757474,38422.720158692784,38494.06905168212,38560.705754710572,38627.263961796911,38689.110944531029,38760.146810391598,38826.472405600216,38892.721412304614,38954.261090298183,39024.991535337278,39091.013581994855,39156.960900843151,39222.83394988926]
["Yarra Ranges (S)",null,-4834.3742243327797,{"$f":"D$5+D$6+D329+D351","v":-342.11959120211395},6644.2194078061984,9067.9234468906852,-787.9764253290632,-224.21745683026165,3257.0951826992386,3491.2578389151749,10762.322275607308,10888.328844612355,5148.6511876757468,5373.7510872572275,9499.9727706857411,13495.859998755157,1857.0606557972169,3639.8169778232768,6133.2595438197786,9620.6792762936057,12298.778091232809,13483.561267204965,15218.313945876856,19021.681629129969,22234.966690707995,24183.331296370787,26361.83973886013,27843.167276502078,29001.577405658601,29914.585415764494,30737.620349254528,31989.507264337321,32034.687738438864,33016.571186464149,33084.690106399699,33148.086293840686,33211.393508619425,33269.979087720581,33337.743203601356,33400.786767048412,33463.743524363563,33521.980799086072,33589.398750312444,33652.098275552817,33714.713107916046,33772.610557831533,33839.690771368405,33902.054633091488,33964.335863245804,34021.901759477929,34088.652455154581,34150.688822218151,34212.644568370742,34269.886978794792,34336.316174471525,34398.033015035617,34459.671195958937,34516.597990270777,34582.713506875421,34644.1185934069,34705.446933411695,34762.065788068809,34827.875254506864,34888.976168658141,34950.002202441137,35006.320605479879,35071.831463420749,35132.635600785972,35193.366678155726,35249.391933887076,35314.611442430229,35375.126017181625,35435.569307665639,35491.308541253005,35556.243781476725,35616.475830884527,35676.638328220397,35732.098490142322,35796.756369537965,35856.712758376634,35916.601284890254,35976.422365007362]
[]
["LGA Number of decision points",2020,{"$f":"B29+1","v":2021},2022,2023,2024,2025,2026,2027,2028,2029,2030,2031,2032,2033,2034,2035,2036,2037,2038,2039,2040,2041,2042,2043,2044,2045,2046,2047,2048,2049,2050,2051,2052,2053,2054,2055,2056,2057,2058,2059,2060,2061,2062,2063,2064,2065,2066,2067,2068,2069,2070,2071,2072,2073,2074,2075,2076,2077,2078,2079,2080,2081,2082,2083,2084,{"$f":"BN29+1","v":2085},2086,2087,2088,2089,2090,2091,2092,2093,2094,2095,2096,2097,2098,2099,2100]
["Bass Coast (S)",null,{"$f":"CustomersCOM!K119","v":3},{"$f":"CustomersCOM!L119","v":3},{"$f":"CustomersCOM!M119","v":3},{"$f":"CustomersCOM!N119","v":3},{"$f":"CustomersCOM!O119","v":3},{"$f":"CustomersCOM!P119","v":3},{"$f":"CustomersCOM!Q119","v":3},{"$f":"CustomersCOM!R119","v":3},{"$f":"CustomersCOM!S119","v":3},{"$f":"CustomersCOM!T119","v":3},{"$f":"CustomersCOM!U119","v":3},{"$f":"CustomersCOM!V119","v":2},{"$f":"CustomersCOM!W119","v":2},{"$f":"CustomersCOM!X119","v":2},{"$f":"CustomersCOM!Y119","v":2},{"$f":"CustomersCOM!Z119","v":2},{"$f":"CustomersCOM!AA119","v":2},{"$f":"CustomersCOM!AB119","v":2},{"$f":"CustomersCOM!AC119","v":2},{"$f":"CustomersCOM!AD119","v":2},{"$f":"CustomersCOM!AE119","v":2},{"$f":"CustomersCOM!AF119","v":2},{"$f":"CustomersCOM!AG119","v":2},{"$f":"CustomersCOM!AH119","v":1},{"$f":"CustomersCOM!AI119","v":1},{"$f":"CustomersCOM!AJ119","v":1},{"$f":"CustomersCOM!AK119","v":1},{"$f":"CustomersCOM!AL119","v":1},{"$f":"CustomersCOM!AM119","v":1},{"$f":"CustomersCOM!AN119","v":1},{"$f":"CustomersCOM!AO119","v":1},{"$f":"CustomersCOM!AP119","v":1},{"$f":"CustomersCOM!AQ119","v":1},{"$f":"CustomersCOM!AR119","v":1},{"$f":"CustomersCOM!AS119","v":1},{"$f":"CustomersCOM!AT119","v":1},{"$f":"CustomersCOM!AU119","v":1},{"$f":"CustomersCOM!AV119","v":1},{"$f":"CustomersCOM!AW119","v":0},{"$f":"CustomersCOM!AX119","v":0},{"$f":"CustomersCOM!AY119","v":0},{"$f":"CustomersCOM!AZ119","v":0},{"$f":"CustomersCOM!BA119","v":0},{"$f":"CustomersCOM!BB119","v":0},{"$f":"CustomersCOM!BC119","v":0},{"$f":"CustomersCOM!BD119","v":0},{"$f":"CustomersCOM!BE119","v":0},{"$f":"CustomersCOM!BF119","v":0},{"$f":"CustomersCOM!BG119","v":0},{"$f":"CustomersCOM!BH119","v":0},{"$f":"CustomersCOM!BI119","v":0},{"$f":"CustomersCOM!BJ119","v":0},{"$f":"CustomersCOM!BK119","v":0},{"$f":"CustomersCOM!BL119","v":0},{"$f":"CustomersCOM!BM119","v":0},{"$f":"CustomersCOM!BN119","v":0},{"$f":"CustomersCOM!BO119","v":0},{"$f":"CustomersCOM!BP119","v":0},{"$f":"CustomersCOM!BQ119","v":0},{"$f":"CustomersCOM!BR119","v":0},{"$f":"CustomersCOM!BS119","v":0},{"$f":"CustomersCOM!BT119","v":0},{"$f":"CustomersCOM!BU119","v":0},{"$f":"CustomersCOM!BV119","v":0},{"$f":"CustomersCOM!BW119","v":0},{"$f":"CustomersCOM!BX119","v":0},{"$f":"CustomersCOM!BY119","v":0},{"$f":"CustomersCOM!BZ119","v":0},{"$f":"CustomersCOM!CA119","v":0},{"$f":"CustomersCOM!CB119","v":0},{"$f":"CustomersCOM!CC119","v":0},{"$f":"CustomersCOM!CD119","v":0},{"$f":"CustomersCOM!CE119","v":0},{"$f":"CustomersCOM!CF119","v":0},{"$f":"CustomersCOM!CG119","v":0},{"$f":"CustomersCOM!CH119","v":0},{"$f":"CustomersCOM!CI119","v":0},{"$f":"CustomersCOM!CJ119","v":0},{"$f":"CustomersCOM!CK119","v":0},{"$f":"CustomersCOM!CL119","v":0}]
["Bayside (C)",null,{"$f":"CustomersCOM!K120","v":48},{"$f":"CustomersCOM!L120","v":47},{"$f":"CustomersCOM!M120","v":47},{"$f":"CustomersCOM!N120","v":44},{"$f":"CustomersCOM!O120","v":41},{"$f":"CustomersCOM!P120","v":40},{"$f":"CustomersCOM!Q120","v":39},{"$f":"CustomersCOM!R120","v":38},{"$f":"CustomersCOM!S120","v":36},{"$f":"CustomersCOM!T120","v":33},{"$f":"CustomersCOM!U120","v":31},{"$f":"CustomersCOM!V120","v":29},{"$f":"CustomersCOM!W120","v":28},{"$f":"CustomersCOM!X120","v":26},{"$f":"CustomersCOM!Y120","v":24},{"$f":"CustomersCOM!Z120","v":23},{"$f":"CustomersCOM!AA120","v":22},{"$f":"CustomersCOM!AB120","v":20},{"$f":"CustomersCOM!AC120","v":19},{"$f":"CustomersCOM!AD120","v":18},{"$f":"CustomersCOM!AE120","v":17},{"$f":"CustomersCOM!AF120","v":15},{"$f":"CustomersCOM!AG120","v":14},{"$f":"CustomersCOM!AH120","v":13},{"$f":"CustomersCOM!AI120","v":13},{"$f":"CustomersCOM!AJ120","v":12},{"$f":"CustomersCOM!AK120","v":11},{"$f":"CustomersCOM!AL120","v":10},{"$f":"CustomersCOM!AM120","v":10},{"$f":"CustomersCOM!AN120","v":9},{"$f":"CustomersCOM!AO120","v":8},{"$f":"CustomersCOM!AP120","v":8},{"$f":"CustomersCOM!AQ120","v":7},{"$f":"CustomersCOM!AR120","v":7},{"$f":"CustomersCOM!AS120","v":6},{"$f":"CustomersCOM!AT120","v":6},{"$f":"CustomersCOM!AU120","v":6},{"$f":"CustomersCOM!AV120","v":5},{"$f":"CustomersCOM!AW120","v":5},{"$f":"CustomersCOM!AX120","v":5},{"$f":"CustomersCOM!AY120","v":4},{"$f":"CustomersCOM!AZ120","v":4},{"$f":"CustomersCOM!BA120","v":4},{"$f":"CustomersCOM!BB120","v":4},{"$f":"CustomersCOM!BC120","v":4},{"$f":"CustomersCOM!BD120","v":3},{"$f":"CustomersCOM!BE120","v":3},{"$f":"CustomersCOM!BF120","v":3},{"$f":"CustomersCOM!BG120","v":3},{"$f":"CustomersCOM!BH120","v":3},{"$f":"CustomersCOM!BI120","v":3},{"$f":"CustomersCOM!BJ120","v":2},{"$f":"CustomersCOM!BK120","v":2},{"$f":"CustomersCOM!BL120","v":2},{"$f":"CustomersCOM!BM120","v":2},{"$f":"CustomersCOM!BN120","v":2},{"$f":"CustomersCOM!BO120","v":2},{"$f":"CustomersCOM!BP120","v":2},{"$f":"CustomersCOM!BQ120","v":2},{"$f":"CustomersCOM!BR120","v":2},{"$f":"CustomersCOM!BS120","v":2},{"$f":"CustomersCOM!BT120","v":2},{"$f":"CustomersCOM!BU120","v":2},{"$f":"CustomersCOM!BV120","v":1},{"$f":"CustomersCOM!BW120","v":1},{"$f":"CustomersCOM!BX120","v":1},{"$f":"CustomersCOM!BY120","v":1},{"$f":"CustomersCOM!BZ120","v":1},{"$f":"CustomersCOM!CA120","v":1},{"$f":"CustomersCOM!CB120","v":1},{"$f":"CustomersCOM!CC120","v":1},{"$f":"CustomersCOM!CD120","v":1},{"$f":"CustomersCOM!CE120","v":1},{"$f":"CustomersCOM!CF120","v":1},{"$f":"CustomersCOM!CG120","v":1},{"$f":"CustomersCOM!CH120","v":1},{"$f":"CustomersCOM!CI120","v":1},{"$f":"CustomersCOM!CJ120","v":1},{"$f":"CustomersCOM!CK120","v":1},{"$f":"CustomersCOM!CL120","v":1}]
["Boroondara (C)",null,{"$f":"CustomersCOM!K121","v":94},{"$f":"CustomersCOM!L121","v":93},{"$f":"CustomersCOM!M121","v":92},{"$f":"CustomersCOM!N121","v":86},{"$f":"CustomersCOM!O121","v":80},{"$f":"CustomersCOM!P121","v":80},{"$f":"CustomersCOM!Q121","v":79},{"$f":"CustomersCOM!R121","v":75},{"$f":"CustomersCOM!S121","v":71},{"$f":"CustomersCOM!T121","v":66},{"$f":"CustomersCOM!U121","v":61},{"$f":"CustomersCOM!V121","v":58},{"$f":"CustomersCOM!W121","v":54},{"$f":"CustomersCOM!X121","v":50},{"$f":"CustomersCOM!Y121","v":47},{"$f":"CustomersCOM!Z121","v":45},{"$f":"CustomersCOM!AA121","v":43},{"$f":"CustomersCOM!AB121","v":40},{"$f":"CustomersCOM!AC121","v":37},{"$f":"CustomersCOM!AD121","v":34},{"$f":"CustomersCOM!AE121","v":32},{"$f":"CustomersCOM!AF121","v":30},{"$f":"CustomersCOM!AG121","v":28},{"$f":"CustomersCOM!AH121","v":26},{"$f":"CustomersCOM!AI121","v":24},{"$f":"CustomersCOM!AJ121","v":22},{"$f":"CustomersCOM!AK121","v":21},{"$f":"CustomersCOM!AL121","v":19},{"$f":"CustomersCOM!AM121","v":18},{"$f":"CustomersCOM!AN121","v":17},{"$f":"CustomersCOM!AO121","v":16},{"$f":"CustomersCOM!AP121","v":15},{"$f":"CustomersCOM!AQ121","v":14},{"$f":"CustomersCOM!AR121","v":13},{"$f":"CustomersCOM!AS121","v":12},{"$f":"CustomersCOM!AT121","v":11},{"$f":"CustomersCOM!AU121","v":10},{"$f":"CustomersCOM!AV121","v":10},{"$f":"CustomersCOM!AW121","v":9},{"$f":"CustomersCOM!AX121","v":8},{"$f":"CustomersCOM!AY121","v":8},{"$f":"CustomersCOM!AZ121","v":7},{"$f":"CustomersCOM!BA121","v":7},{"$f":"CustomersCOM!BB121","v":7},{"$f":"CustomersCOM!BC121","v":6},{"$f":"CustomersCOM!BD121","v":6},{"$f":"CustomersCOM!BE121","v":5},{"$f":"CustomersCOM!BF121","v":5},{"$f":"CustomersCOM!BG121","v":5},{"$f":"CustomersCOM!BH121","v":4},{"$f":"CustomersCOM!BI121","v":4},{"$f":"CustomersCOM!BJ121","v":4},{"$f":"CustomersCOM!BK121","v":4},{"$f":"CustomersCOM!BL121","v":4},{"$f":"CustomersCOM!BM121","v":3},{"$f":"CustomersCOM!BN121","v":3},{"$f":"CustomersCOM!BO121","v":3},{"$f":"CustomersCOM!BP121","v":3},{"$f":"CustomersCOM!BQ121","v":3},{"$f":"CustomersCOM!BR121","v":3},{"$f":"CustomersCOM!BS121","v":2},{"$f":"CustomersCOM!BT121","v":2},{"$f":"CustomersCOM!BU121","v":2},{"$f":"CustomersCOM!BV121","v":2},{"$f":"CustomersCOM!BW121","v":2},{"$f":"CustomersCOM!BX121","v":2},{"$f":"CustomersCOM!BY121","v":2},{"$f":"CustomersCOM!BZ121","v":2},{"$f":"CustomersCOM!CA121","v":2},{"$f":"CustomersCOM!CB121","v":2},{"$f":"CustomersCOM!CC121","v":2},{"$f":"CustomersCOM!CD121","v":2},{"$f":"CustomersCOM!CE121","v":2},{"$f":"CustomersCOM!CF121","v":1},{"$f":"CustomersCOM!CG121","v":1},{"$f":"CustomersCOM!CH121","v":1},{"$f":"CustomersCOM!CI121","v":1},{"$f":"CustomersCOM!CJ121","v":1},{"$f":"CustomersCOM!CK121","v":1},{"$f":"CustomersCOM!CL121","v":1}]
["Cardinia (S)",null,{"$f":"CustomersCOM!K122","v":5},{"$f":"CustomersCOM!L122","v":5},{"$f":"CustomersCOM!M122","v":5},{"$f":"CustomersCOM!N122","v":5},{"$f":"CustomersCOM!O122","v":5},{"$f":"CustomersCOM!P122","v":4},{"$f":"CustomersCOM!Q122","v":4},{"$f":"CustomersCOM!R122","v":4},{"$f":"CustomersCOM!S122","v":4},{"$f":"CustomersCOM!T122","v":4},{"$f":"CustomersCOM!U122","v":4},{"$f":"CustomersCOM!V122","v":3},{"$f":"CustomersCOM!W122","v":3},{"$f":"CustomersCOM!X122","v":3},{"$f":"CustomersCOM!Y122","v":3},{"$f":"CustomersCOM!Z122","v":3},{"$f":"CustomersCOM!AA122","v":3},{"$f":"CustomersCOM!AB122","v":3},{"$f":"CustomersCOM!AC122","v":2},{"$f":"CustomersCOM!AD122","v":2},{"$f":"CustomersCOM!AE122","v":2},{"$f":"CustomersCOM!AF122","v":2},{"$f":"CustomersCOM!AG122","v":2},{"$f":"CustomersCOM!AH122","v":2},{"$f":"CustomersCOM!AI122","v":2},{"$f":"CustomersCOM!AJ122","v":2},{"$f":"CustomersCOM!AK122","v":2},{"$f":"CustomersCOM!AL122","v":2},{"$f":"CustomersCOM!AM122","v":2},{"$f":"CustomersCOM!AN122","v":2},{"$f":"CustomersCOM!AO122","v":1},{"$f":"CustomersCOM!AP122","v":1},{"$f":"CustomersCOM!AQ122","v":1},{"$f":"CustomersCOM!AR122","v":1},{"$f":"CustomersCOM!AS122","v":1},{"$f":"CustomersCOM!AT122","v":1},{"$f":"CustomersCOM!AU122","v":1},{"$f":"CustomersCOM!AV122","v":1},{"$f":"CustomersCOM!AW122","v":1},{"$f":"CustomersCOM!AX122","v":1},{"$f":"CustomersCOM!AY122","v":1},{"$f":"CustomersCOM!AZ122","v":1},{"$f":"CustomersCOM!BA122","v":1},{"$f":"CustomersCOM!BB122","v":1},{"$f":"CustomersCOM!BC122","v":1},{"$f":"CustomersCOM!BD122","v":1},{"$f":"CustomersCOM!BE122","v":1},{"$f":"CustomersCOM!BF122","v":1},{"$f":"CustomersCOM!BG122","v":1},{"$f":"CustomersCOM!BH122","v":1},{"$f":"CustomersCOM!BI122","v":1},{"$f":"CustomersCOM!BJ122","v":1},{"$f":"CustomersCOM!BK122","v":1},{"$f":"CustomersCOM!BL122","v":1},{"$f":"CustomersCOM!BM122","v":1},{"$f":"CustomersCOM!BN122","v":1},{"$f":"CustomersCOM!BO122","v":1},{"$f":"CustomersCOM!BP122","v":1},{"$f":"CustomersCOM!BQ122","v":1},{"$f":"CustomersCOM!BR122","v":1},{"$f":"CustomersCOM!BS122","v":1},{"$f":"CustomersCOM!BT122","v":1},{"$f":"CustomersCOM!BU122","v":1},{"$f":"CustomersCOM!BV122","v":1},{"$f":"CustomersCOM!BW122","v":1},{"$f":"CustomersCOM!BX122","v":1},{"$f":"CustomersCOM!BY122","v":1},{"$f":"CustomersCOM!BZ122","v":1},{"$f":"CustomersCOM!CA122","v":1},{"$f":"CustomersCOM!CB122","v":1},{"$f":"CustomersCOM!CC122","v":1},{"$f":"CustomersCOM!CD122","v":1},{"$f":"CustomersCOM!CE122","v":1},{"$f":"CustomersCOM!CF122","v":1},{"$f":"CustomersCOM!CG122","v":1},{"$f":"CustomersCOM!CH122","v":1},{"$f":"CustomersCOM!CI122","v":1},{"$f":"CustomersCOM!CJ122","v":1},{"$f":"CustomersCOM!CK122","v":1},{"$f":"CustomersCOM!CL122","v":1}]
["Casey (C)",null,{"$f":"CustomersCOM!K123","v":9},{"$f":"CustomersCOM!L123","v":9},{"$f":"CustomersCOM!M123","v":9},{"$f":"CustomersCOM!N123","v":8},{"$f":"CustomersCOM!O123","v":8},{"$f":"CustomersCOM!P123","v":8},{"$f":"CustomersCOM!Q123","v":8},{"$f":"CustomersCOM!R123","v":7},{"$f":"CustomersCOM!S123","v":7},{"$f":"CustomersCOM!T123","v":6},{"$f":"CustomersCOM!U123","v":6},{"$f":"CustomersCOM!V123","v":6},{"$f":"CustomersCOM!W123","v":5},{"$f":"CustomersCOM!X123","v":5},{"$f":"CustomersCOM!Y123","v":5},{"$f":"CustomersCOM!Z123","v":5},{"$f":"CustomersCOM!AA123","v":5},{"$f":"CustomersCOM!AB123","v":4},{"$f":"CustomersCOM!AC123","v":4},{"$f":"CustomersCOM!AD123","v":4},{"$f":"CustomersCOM!AE123","v":4},{"$f":"CustomersCOM!AF123","v":3},{"$f":"CustomersCOM!AG123","v":3},{"$f":"CustomersCOM!AH123","v":3},{"$f":"CustomersCOM!AI123","v":3},{"$f":"CustomersCOM!AJ123","v":3},{"$f":"CustomersCOM!AK123","v":3},{"$f":"CustomersCOM!AL123","v":3},{"$f":"CustomersCOM!AM123","v":2},{"$f":"CustomersCOM!AN123","v":2},{"$f":"CustomersCOM!AO123","v":2},{"$f":"CustomersCOM!AP123","v":2},{"$f":"CustomersCOM!AQ123","v":2},{"$f":"CustomersCOM!AR123","v":2},{"$f":"CustomersCOM!AS123","v":2},{"$f":"CustomersCOM!AT123","v":2},{"$f":"CustomersCOM!AU123","v":2},{"$f":"CustomersCOM!AV123","v":2},{"$f":"CustomersCOM!AW123","v":2},{"$f":"CustomersCOM!AX123","v":1},{"$f":"CustomersCOM!AY123","v":1},{"$f":"CustomersCOM!AZ123","v":1},{"$f":"CustomersCOM!BA123","v":1},{"$f":"CustomersCOM!BB123","v":1},{"$f":"CustomersCOM!BC123","v":1},{"$f":"CustomersCOM!BD123","v":1},{"$f":"CustomersCOM!BE123","v":1},{"$f":"CustomersCOM!BF123","v":1},{"$f":"CustomersCOM!BG123","v":1},{"$f":"CustomersCOM!BH123","v":1},{"$f":"CustomersCOM!BI123","v":1},{"$f":"CustomersCOM!BJ123","v":1},{"$f":"CustomersCOM!BK123","v":1},{"$f":"CustomersCOM!BL123","v":1},{"$f":"CustomersCOM!BM123","v":1},{"$f":"CustomersCOM!BN123","v":1},{"$f":"CustomersCOM!BO123","v":1},{"$f":"CustomersCOM!BP123","v":1},{"$f":"CustomersCOM!BQ123","v":1},{"$f":"CustomersCOM!BR123","v":1},{"$f":"CustomersCOM!BS123","v":1},{"$f":"CustomersCOM!BT123","v":1},{"$f":"CustomersCOM!BU123","v":1},{"$f":"CustomersCOM!BV123","v":1},{"$f":"CustomersCOM!BW123","v":1},{"$f":"CustomersCOM!BX123","v":1},{"$f":"CustomersCOM!BY123","v":1},{"$f":"CustomersCOM!BZ123","v":1},{"$f":"CustomersCOM!CA123","v":1},{"$f":"CustomersCOM!CB123","v":1},{"$f":"CustomersCOM!CC123","v":1},{"$f":"CustomersCOM!CD123","v":1},{"$f":"CustomersCOM!CE123","v":1},{"$f":"CustomersCOM!CF123","v":1},{"$f":"CustomersCOM!CG123","v":1},{"$f":"CustomersCOM!CH123","v":1},{"$f":"CustomersCOM!CI123","v":1},{"$f":"CustomersCOM!CJ123","v":1},{"$f":"CustomersCOM!CK123","v":1},{"$f":"CustomersCOM!CL123","v":1}]
["Frankston (C)",null,{"$f":"CustomersCOM!K124","v":0},{"$f":"CustomersCOM!L124","v":-1},{"$f":"CustomersCOM!M124","v":-1},{"$f":"CustomersCOM!N124","v":-1},{"$f":"CustomersCOM!O124","v":-1},{"$f":"CustomersCOM!P124","v":-1},{"$f":"CustomersCOM!Q124","v":-1},{"$f":"CustomersCOM!R124","v":-1},{"$f":"CustomersCOM!S124","v":-1},{"$f":"CustomersCOM!T124","v":-1},{"$f":"CustomersCOM!U124","v":-1},{"$f":"CustomersCOM!V124","v":-1},{"$f":"CustomersCOM!W124","v":-1},{"$f":"CustomersCOM!X124","v":-1},{"$f":"CustomersCOM!Y124","v":-1},{"$f":"CustomersCOM!Z124","v":-1},{"$f":"CustomersCOM!AA124","v":-1},{"$f":"CustomersCOM!AB124","v":-1},{"$f":"CustomersCOM!AC124","v":-1},{"$f":"CustomersCOM!AD124","v":-1},{"$f":"CustomersCOM!AE124","v":-1},{"$f":"CustomersCOM!AF124","v":-1},{"$f":"CustomersCOM!AG124","v":-1},{"$f":"CustomersCOM!AH124","v":-1},{"$f":"CustomersCOM!AI124","v":-1},{"$f":"CustomersCOM!AJ124","v":-1},{"$f":"CustomersCOM!AK124","v":-1},{"$f":"CustomersCOM!AL124","v":-1},{"$f":"CustomersCOM!AM124","v":-1},{"$f":"CustomersCOM!AN124","v":-1},{"$f":"CustomersCOM!AO124","v":-1},{"$f":"CustomersCOM!AP124","v":-1},{"$f":"CustomersCOM!AQ124","v":-1},{"$f":"CustomersCOM!AR124","v":-1},{"$f":"CustomersCOM!AS124","v":-1},{"$f":"CustomersCOM!AT124","v":-1},{"$f":"CustomersCOM!AU124","v":-1},{"$f":"CustomersCOM!AV124","v":-1},{"$f":"CustomersCOM!AW124","v":-1},{"$f":"CustomersCOM!AX124","v":-1},{"$f":"CustomersCOM!AY124","v":-1},{"$f":"CustomersCOM!AZ124","v":-1},{"$f":"CustomersCOM!BA124","v":-1},{"$f":"CustomersCOM!BB124","v":-1},{"$f":"CustomersCOM!BC124","v":-1},{"$f":"CustomersCOM!BD124","v":-1},{"$f":"CustomersCOM!BE124","v":-1},{"$f":"CustomersCOM!BF124","v":-1},{"$f":"CustomersCOM!BG124","v":-1},{"$f":"CustomersCOM!BH124","v":-1},{"$f":"CustomersCOM!BI124","v":-1},{"$f":"CustomersCOM!BJ124","v":-1},{"$f":"CustomersCOM!BK124","v":-1},{"$f":"CustomersCOM!BL124","v":-1},{"$f":"CustomersCOM!BM124","v":-1},{"$f":"CustomersCOM!BN124","v":-1},{"$f":"CustomersCOM!BO124","v":-1},{"$f":"CustomersCOM!BP124","v":-1},{"$f":"CustomersCOM!BQ124","v":-1},{"$f":"CustomersCOM!BR124","v":-1},{"$f":"CustomersCOM!BS124","v":-1},{"$f":"CustomersCOM!BT124","v":-1},{"$f":"CustomersCOM!BU124","v":-1},{"$f":"CustomersCOM!BV124","v":-1},{"$f":"CustomersCOM!BW124","v":-1},{"$f":"CustomersCOM!BX124","v":-1},{"$f":"CustomersCOM!BY124","v":-1},{"$f":"CustomersCOM!BZ124","v":-1},{"$f":"CustomersCOM!CA124","v":-1},{"$f":"CustomersCOM!CB124","v":-1},{"$f":"CustomersCOM!CC124","v":-1},{"$f":"CustomersCOM!CD124","v":-1},{"$f":"CustomersCOM!CE124","v":-1},{"$f":"CustomersCOM!CF124","v":-1},{"$f":"CustomersCOM!CG124","v":-1},{"$f":"CustomersCOM!CH124","v":-1},{"$f":"CustomersCOM!CI124","v":-1},{"$f":"CustomersCOM!CJ124","v":-1},{"$f":"CustomersCOM!CK124","v":-1},{"$f":"CustomersCOM!CL124","v":-1}]
["Glen Eira (C)",null,{"$f":"CustomersCOM!K125","v":66},{"$f":"CustomersCOM!L125","v":65},{"$f":"CustomersCOM!M125","v":63},{"$f":"CustomersCOM!N125","v":59},{"$f":"CustomersCOM!O125","v":56},{"$f":"CustomersCOM!P125","v":55},{"$f":"CustomersCOM!Q125","v":54},{"$f":"CustomersCOM!R125","v":51},{"$f":"CustomersCOM!S125","v":49},{"$f":"CustomersCOM!T125","v":46},{"$f":"CustomersCOM!U125","v":42},{"$f":"CustomersCOM!V125","v":40},{"$f":"CustomersCOM!W125","v":38},{"$f":"CustomersCOM!X125","v":35},{"$f":"CustomersCOM!Y125","v":33},{"$f":"CustomersCOM!Z125","v":32},{"$f":"CustomersCOM!AA125","v":30},{"$f":"CustomersCOM!AB125","v":28},{"$f":"CustomersCOM!AC125","v":27},{"$f":"CustomersCOM!AD125","v":25},{"$f":"CustomersCOM!AE125","v":23},{"$f":"CustomersCOM!AF125","v":21},{"$f":"CustomersCOM!AG125","v":20},{"$f":"CustomersCOM!AH125","v":19},{"$f":"CustomersCOM!AI125","v":17},{"$f":"CustomersCOM!AJ125","v":16},{"$f":"CustomersCOM!AK125","v":15},{"$f":"CustomersCOM!AL125","v":14},{"$f":"CustomersCOM!AM125","v":13},{"$f":"CustomersCOM!AN125","v":12},{"$f":"CustomersCOM!AO125","v":11},{"$f":"CustomersCOM!AP125","v":11},{"$f":"CustomersCOM!AQ125","v":10},{"$f":"CustomersCOM!AR125","v":9},{"$f":"CustomersCOM!AS125","v":9},{"$f":"CustomersCOM!AT125","v":8},{"$f":"CustomersCOM!AU125","v":8},{"$f":"CustomersCOM!AV125","v":7},{"$f":"CustomersCOM!AW125","v":7},{"$f":"CustomersCOM!AX125","v":6},{"$f":"CustomersCOM!AY125","v":6},{"$f":"CustomersCOM!AZ125","v":6},{"$f":"CustomersCOM!BA125","v":5},{"$f":"CustomersCOM!BB125","v":5},{"$f":"CustomersCOM!BC125","v":5},{"$f":"CustomersCOM!BD125","v":4},{"$f":"CustomersCOM!BE125","v":4},{"$f":"CustomersCOM!BF125","v":4},{"$f":"CustomersCOM!BG125","v":4},{"$f":"CustomersCOM!BH125","v":3},{"$f":"CustomersCOM!BI125","v":3},{"$f":"CustomersCOM!BJ125","v":3},{"$f":"CustomersCOM!BK125","v":3},{"$f":"CustomersCOM!BL125","v":3},{"$f":"CustomersCOM!BM125","v":3},{"$f":"CustomersCOM!BN125","v":3},{"$f":"CustomersCOM!BO125","v":2},{"$f":"CustomersCOM!BP125","v":2},{"$f":"CustomersCOM!BQ125","v":2},{"$f":"CustomersCOM!BR125","v":2},{"$f":"CustomersCOM!BS125","v":2},{"$f":"CustomersCOM!BT125","v":2},{"$f":"CustomersCOM!BU125","v":2},{"$f":"CustomersCOM!BV125","v":2},{"$f":"CustomersCOM!BW125","v":2},{"$f":"CustomersCOM!BX125","v":2},{"$f":"CustomersCOM!BY125","v":2},{"$f":"CustomersCOM!BZ125","v":2},{"$f":"CustomersCOM!CA125","v":1},{"$f":"CustomersCOM!CB125","v":1},{"$f":"CustomersCOM!CC125","v":1},{"$f":"CustomersCOM!CD125","v":1},{"$f":"CustomersCOM!CE125","v":1},{"$f":"CustomersCOM!CF125","v":1},{"$f":"CustomersCOM!CG125","v":1},{"$f":"CustomersCOM!CH125","v":1},{"$f":"CustomersCOM!CI125","v":1},{"$f":"CustomersCOM!CJ125","v":1},{"$f":"CustomersCOM!CK125","v":1},{"$f":"CustomersCOM!CL125","v":1}]
["Greater Dandenong (C)",null,{"$f":"CustomersCOM!K126","v":83},{"$f":"CustomersCOM!L126","v":80},{"$f":"CustomersCOM!M126","v":80},{"$f":"CustomersCOM!N126","v":75},{"$f":"CustomersCOM!O126","v":69},{"$f":"CustomersCOM!P126","v":70},{"$f":"CustomersCOM!Q126","v":69},{"$f":"CustomersCOM!R126","v":66},{"$f":"CustomersCOM!S126","v":62},{"$f":"CustomersCOM!T126","v":58},{"$f":"CustomersCOM!U126","v":54},{"$f":"CustomersCOM!V126","v":50},{"$f":"CustomersCOM!W126","v":47},{"$f":"CustomersCOM!X126","v":43},{"$f":"CustomersCOM!Y126","v":40},{"$f":"CustomersCOM!Z126","v":39},{"$f":"CustomersCOM!AA126","v":36},{"$f":"CustomersCOM!AB126","v":34},{"$f":"CustomersCOM!AC126","v":31},{"$f":"CustomersCOM!AD126","v":29},{"$f":"CustomersCOM!AE126","v":27},{"$f":"CustomersCOM!AF126","v":25},{"$f":"CustomersCOM!AG126","v":24},{"$f":"CustomersCOM!AH126","v":22},{"$f":"CustomersCOM!AI126","v":20},{"$f":"CustomersCOM!AJ126","v":19},{"$f":"CustomersCOM!AK126","v":18},{"$f":"CustomersCOM!AL126","v":17},{"$f":"CustomersCOM!AM126","v":15},{"$f":"CustomersCOM!AN126","v":14},{"$f":"CustomersCOM!AO126","v":13},{"$f":"CustomersCOM!AP126","v":13},{"$f":"CustomersCOM!AQ126","v":12},{"$f":"CustomersCOM!AR126","v":11},{"$f":"CustomersCOM!AS126","v":10},{"$f":"CustomersCOM!AT126","v":10},{"$f":"CustomersCOM!AU126","v":9},{"$f":"CustomersCOM!AV126","v":8},{"$f":"CustomersCOM!AW126","v":8},{"$f":"CustomersCOM!AX126","v":7},{"$f":"CustomersCOM!AY126","v":7},{"$f":"CustomersCOM!AZ126","v":6},{"$f":"CustomersCOM!BA126","v":6},{"$f":"CustomersCOM!BB126","v":6},{"$f":"CustomersCOM!BC126","v":5},{"$f":"CustomersCOM!BD126","v":5},{"$f":"CustomersCOM!BE126","v":5},{"$f":"CustomersCOM!BF126","v":4},{"$f":"CustomersCOM!BG126","v":4},{"$f":"CustomersCOM!BH126","v":4},{"$f":"CustomersCOM!BI126","v":4},{"$f":"CustomersCOM!BJ126","v":4},{"$f":"CustomersCOM!BK126","v":3},{"$f":"CustomersCOM!BL126","v":3},{"$f":"CustomersCOM!BM126","v":3},{"$f":"CustomersCOM!BN126","v":3},{"$f":"CustomersCOM!BO126","v":3},{"$f":"CustomersCOM!BP126","v":3},{"$f":"CustomersCOM!BQ126","v":2},{"$f":"CustomersCOM!BR126","v":2},{"$f":"CustomersCOM!BS126","v":2},{"$f":"CustomersCOM!BT126","v":2},{"$f":"CustomersCOM!BU126","v":2},{"$f":"CustomersCOM!BV126","v":2},{"$f":"CustomersCOM!BW126","v":2},{"$f":"CustomersCOM!BX126","v":2},{"$f":"CustomersCOM!BY126","v":2},{"$f":"CustomersCOM!BZ126","v":2},{"$f":"CustomersCOM!CA126","v":2},{"$f":"CustomersCOM!CB126","v":2},{"$f":"CustomersCOM!CC126","v":1},{"$f":"CustomersCOM!CD126","v":1},{"$f":"CustomersCOM!CE126","v":1},{"$f":"CustomersCOM!CF126","v":1},{"$f":"CustomersCOM!CG126","v":1},{"$f":"CustomersCOM!CH126","v":1},{"$f":"CustomersCOM!CI126","v":1},{"$f":"CustomersCOM!CJ126","v":1},{"$f":"CustomersCOM!CK126","v":1},{"$f":"CustomersCOM!CL126","v":1}]
["Kingston (C)",null,{"$f":"CustomersCOM!K127","v":79},{"$f":"CustomersCOM!L127","v":77},{"$f":"CustomersCOM!M127","v":76},{"$f":"CustomersCOM!N127","v":71},{"$f":"CustomersCOM!O127","v":66},{"$f":"CustomersCOM!P127","v":66},{"$f":"CustomersCOM!Q127","v":65},{"$f":"CustomersCOM!R127","v":62},{"$f":"CustomersCOM!S127","v":58},{"$f":"CustomersCOM!T127","v":54},{"$f":"CustomersCOM!U127","v":50},{"$f":"CustomersCOM!V127","v":47},{"$f":"CustomersCOM!W127","v":44},{"$f":"CustomersCOM!X127","v":41},{"$f":"CustomersCOM!Y127","v":38},{"$f":"CustomersCOM!Z127","v":37},{"$f":"CustomersCOM!AA127","v":35},{"$f":"CustomersCOM!AB127","v":32},{"$f":"CustomersCOM!AC127","v":30},{"$f":"CustomersCOM!AD127","v":28},{"$f":"CustomersCOM!AE127","v":26},{"$f":"CustomersCOM!AF127","v":24},{"$f":"CustomersCOM!AG127","v":23},{"$f":"CustomersCOM!AH127","v":21},{"$f":"CustomersCOM!AI127","v":20},{"$f":"CustomersCOM!AJ127","v":18},{"$f":"CustomersCOM!AK127","v":17},{"$f":"CustomersCOM!AL127","v":16},{"$f":"CustomersCOM!AM127","v":15},{"$f":"CustomersCOM!AN127","v":14},{"$f":"CustomersCOM!AO127","v":13},{"$f":"CustomersCOM!AP127","v":12},{"$f":"CustomersCOM!AQ127","v":11},{"$f":"CustomersCOM!AR127","v":10},{"$f":"CustomersCOM!AS127","v":10},{"$f":"CustomersCOM!AT127","v":9},{"$f":"CustomersCOM!AU127","v":9},{"$f":"CustomersCOM!AV127","v":8},{"$f":"CustomersCOM!AW127","v":7},{"$f":"CustomersCOM!AX127","v":7},{"$f":"CustomersCOM!AY127","v":7},{"$f":"CustomersCOM!AZ127","v":6},{"$f":"CustomersCOM!BA127","v":6},{"$f":"CustomersCOM!BB127","v":5},{"$f":"CustomersCOM!BC127","v":5},{"$f":"CustomersCOM!BD127","v":5},{"$f":"CustomersCOM!BE127","v":5},{"$f":"CustomersCOM!BF127","v":4},{"$f":"CustomersCOM!BG127","v":4},{"$f":"CustomersCOM!BH127","v":4},{"$f":"CustomersCOM!BI127","v":4},{"$f":"CustomersCOM!BJ127","v":3},{"$f":"CustomersCOM!BK127","v":3},{"$f":"CustomersCOM!BL127","v":3},{"$f":"CustomersCOM!BM127","v":3},{"$f":"CustomersCOM!BN127","v":3},{"$f":"CustomersCOM!BO127","v":3},{"$f":"CustomersCOM!BP127","v":2},{"$f":"CustomersCOM!BQ127","v":2},{"$f":"CustomersCOM!BR127","v":2},{"$f":"CustomersCOM!BS127","v":2},{"$f":"CustomersCOM!BT127","v":2},{"$f":"CustomersCOM!BU127","v":2},{"$f":"CustomersCOM!BV127","v":2},{"$f":"CustomersCOM!BW127","v":2},{"$f":"CustomersCOM!BX127","v":2},{"$f":"CustomersCOM!BY127","v":2},{"$f":"CustomersCOM!BZ127","v":2},{"$f":"CustomersCOM!CA127","v":2},{"$f":"CustomersCOM!CB127","v":2},{"$f":"CustomersCOM!CC127","v":1},{"$f":"CustomersCOM!CD127","v":1},{"$f":"CustomersCOM!CE127","v":1},{"$f":"CustomersCOM!CF127","v":1},{"$f":"CustomersCOM!CG127","v":1},{"$f":"CustomersCOM!CH127","v":1},{"$f":"CustomersCOM!CI127","v":1},{"$f":"CustomersCOM!CJ127","v":1},{"$f":"CustomersCOM!CK127","v":1},{"$f":"CustomersCOM!CL127","v":1}]
["Knox (C)",null,{"$f":"CustomersCOM!K128","v":72},{"$f":"CustomersCOM!L128","v":70},{"$f":"CustomersCOM!M128","v":70},{"$f":"CustomersCOM!N128","v":65},{"$f":"CustomersCOM!O128","v":60},{"$f":"CustomersCOM!P128","v":60},{"$f":"CustomersCOM!Q128","v":59},{"$f":"CustomersCOM!R128","v":56},{"$f":"CustomersCOM!S128","v":54},{"$f":"CustomersCOM!T128","v":50},{"$f":"CustomersCOM!U128","v":46},{"$f":"CustomersCOM!V128","v":43},{"$f":"CustomersCOM!W128","v":41},{"$f":"CustomersCOM!X128","v":38},{"$f":"CustomersCOM!Y128","v":35},{"$f":"CustomersCOM!Z128","v":34},{"$f":"CustomersCOM!AA128","v":32},{"$f":"CustomersCOM!AB128","v":30},{"$f":"CustomersCOM!AC128","v":28},{"$f":"CustomersCOM!AD128","v":26},{"$f":"CustomersCOM!AE128","v":24},{"$f":"CustomersCOM!AF128","v":22},{"$f":"CustomersCOM!AG128","v":21},{"$f":"CustomersCOM!AH128","v":19},{"$f":"CustomersCOM!AI128","v":18},{"$f":"CustomersCOM!AJ128","v":17},{"$f":"CustomersCOM!AK128","v":16},{"$f":"CustomersCOM!AL128","v":15},{"$f":"CustomersCOM!AM128","v":14},{"$f":"CustomersCOM!AN128","v":13},{"$f":"CustomersCOM!AO128","v":12},{"$f":"CustomersCOM!AP128","v":11},{"$f":"CustomersCOM!AQ128","v":10},{"$f":"CustomersCOM!AR128","v":10},{"$f":"CustomersCOM!AS128","v":9},{"$f":"CustomersCOM!AT128","v":8},{"$f":"CustomersCOM!AU128","v":8},{"$f":"CustomersCOM!AV128","v":7},{"$f":"CustomersCOM!AW128","v":7},{"$f":"CustomersCOM!AX128","v":6},{"$f":"CustomersCOM!AY128","v":6},{"$f":"CustomersCOM!AZ128","v":6},{"$f":"CustomersCOM!BA128","v":5},{"$f":"CustomersCOM!BB128","v":5},{"$f":"CustomersCOM!BC128","v":5},{"$f":"CustomersCOM!BD128","v":5},{"$f":"CustomersCOM!BE128","v":4},{"$f":"CustomersCOM!BF128","v":4},{"$f":"CustomersCOM!BG128","v":4},{"$f":"CustomersCOM!BH128","v":4},{"$f":"CustomersCOM!BI128","v":3},{"$f":"CustomersCOM!BJ128","v":3},{"$f":"CustomersCOM!BK128","v":3},{"$f":"CustomersCOM!BL128","v":3},{"$f":"CustomersCOM!BM128","v":3},{"$f":"CustomersCOM!BN128","v":3},{"$f":"CustomersCOM!BO128","v":2},{"$f":"CustomersCOM!BP128","v":2},{"$f":"CustomersCOM!BQ128","v":2},{"$f":"CustomersCOM!BR128","v":2},{"$f":"CustomersCOM!BS128","v":2},{"$f":"CustomersCOM!BT128","v":2},{"$f":"CustomersCOM!BU128","v":2},{"$f":"CustomersCOM!BV128","v":2},{"$f":"CustomersCOM!BW128","v":2},{"$f":"CustomersCOM!BX128","v":2},{"$f":"CustomersCOM!BY128","v":2},{"$f":"CustomersCOM!BZ128","v":2},{"$f":"CustomersCOM!CA128","v":1},{"$f":"CustomersCOM!CB128","v":1},{"$f":"CustomersCOM!CC128","v":1},{"$f":"CustomersCOM!CD128","v":1},{"$f":"CustomersCOM!CE128","v":1},{"$f":"CustomersCOM!CF128","v":1},{"$f":"CustomersCOM!CG128","v":1},{"$f":"CustomersCOM!CH128","v":1},{"$f":"CustomersCOM!CI128","v":1},{"$f":"CustomersCOM!CJ128","v":1},{"$f":"CustomersCOM!CK128","v":1},{"$f":"CustomersCOM!CL128","v":1}]
["Manningham (C)",null,{"$f":"CustomersCOM!K129","v":36},{"$f":"CustomersCOM!L129","v":36},{"$f":"CustomersCOM!M129","v":36},{"$f":"CustomersCOM!N129","v":34},{"$f":"CustomersCOM!O129","v":31},{"$f":"CustomersCOM!P129","v":31},{"$f":"CustomersCOM!Q129","v":31},{"$f":"CustomersCOM!R129","v":29},{"$f":"CustomersCOM!S129","v":27},{"$f":"CustomersCOM!T129","v":26},{"$f":"CustomersCOM!U129","v":24},{"$f":"CustomersCOM!V129","v":22},{"$f":"CustomersCOM!W129","v":21},{"$f":"CustomersCOM!X129","v":19},{"$f":"CustomersCOM!Y129","v":18},{"$f":"CustomersCOM!Z129","v":17},{"$f":"CustomersCOM!AA129","v":16},{"$f":"CustomersCOM!AB129","v":15},{"$f":"CustomersCOM!AC129","v":14},{"$f":"CustomersCOM!AD129","v":13},{"$f":"CustomersCOM!AE129","v":13},{"$f":"CustomersCOM!AF129","v":12},{"$f":"CustomersCOM!AG129","v":11},{"$f":"CustomersCOM!AH129","v":10},{"$f":"CustomersCOM!AI129","v":10},{"$f":"CustomersCOM!AJ129","v":9},{"$f":"CustomersCOM!AK129","v":8},{"$f":"CustomersCOM!AL129","v":8},{"$f":"CustomersCOM!AM129","v":7},{"$f":"CustomersCOM!AN129","v":7},{"$f":"CustomersCOM!AO129","v":6},{"$f":"CustomersCOM!AP129","v":6},{"$f":"CustomersCOM!AQ129","v":6},{"$f":"CustomersCOM!AR129","v":5},{"$f":"CustomersCOM!AS129","v":5},{"$f":"CustomersCOM!AT129","v":5},{"$f":"CustomersCOM!AU129","v":4},{"$f":"CustomersCOM!AV129","v":4},{"$f":"CustomersCOM!AW129","v":4},{"$f":"CustomersCOM!AX129","v":4},{"$f":"CustomersCOM!AY129","v":4},{"$f":"CustomersCOM!AZ129","v":3},{"$f":"CustomersCOM!BA129","v":3},{"$f":"CustomersCOM!BB129","v":3},{"$f":"CustomersCOM!BC129","v":3},{"$f":"CustomersCOM!BD129","v":3},{"$f":"CustomersCOM!BE129","v":3},{"$f":"CustomersCOM!BF129","v":2},{"$f":"CustomersCOM!BG129","v":2},{"$f":"CustomersCOM!BH129","v":2},{"$f":"CustomersCOM!BI129","v":2},{"$f":"CustomersCOM!BJ129","v":2},{"$f":"CustomersCOM!BK129","v":2},{"$f":"CustomersCOM!BL129","v":2},{"$f":"CustomersCOM!BM129","v":2},{"$f":"CustomersCOM!BN129","v":2},{"$f":"CustomersCOM!BO129","v":2},{"$f":"CustomersCOM!BP129","v":2},{"$f":"CustomersCOM!BQ129","v":2},{"$f":"CustomersCOM!BR129","v":1},{"$f":"CustomersCOM!BS129","v":1},{"$f":"CustomersCOM!BT129","v":1},{"$f":"CustomersCOM!BU129","v":1},{"$f":"CustomersCOM!BV129","v":1},{"$f":"CustomersCOM!BW129","v":1},{"$f":"CustomersCOM!BX129","v":1},{"$f":"CustomersCOM!BY129","v":1},{"$f":"CustomersCOM!BZ129","v":1},{"$f":"CustomersCOM!CA129","v":1},{"$f":"CustomersCOM!CB129","v":1},{"$f":"CustomersCOM!CC129","v":1},{"$f":"CustomersCOM!CD129","v":1},{"$f":"CustomersCOM!CE129","v":1},{"$f":"CustomersCOM!CF129","v":1},{"$f":"CustomersCOM!CG129","v":1},{"$f":"CustomersCOM!CH129","v":1},{"$f":"CustomersCOM!CI129","v":1},{"$f":"CustomersCOM!CJ129","v":1},{"$f":"CustomersCOM!CK129","v":1},{"$f":"CustomersCOM!CL129","v":1}]
["Maroondah (C)",null,{"$f":"CustomersCOM!K130","v":38},{"$f":"CustomersCOM!L130","v":37},{"$f":"CustomersCOM!M130","v":37},{"$f":"CustomersCOM!N130","v":34},{"$f":"CustomersCOM!O130","v":32},{"$f":"CustomersCOM!P130","v":32},{"$f":"CustomersCOM!Q130","v":31},{"$f":"CustomersCOM!R130","v":30},{"$f":"CustomersCOM!S130","v":28},{"$f":"CustomersCOM!T130","v":26},{"$f":"CustomersCOM!U130","v":24},{"$f":"CustomersCOM!V130","v":23},{"$f":"CustomersCOM!W130","v":22},{"$f":"CustomersCOM!X130","v":20},{"$f":"CustomersCOM!Y130","v":19},{"$f":"CustomersCOM!Z130","v":18},{"$f":"CustomersCOM!AA130","v":17},{"$f":"CustomersCOM!AB130","v":16},{"$f":"CustomersCOM!AC130","v":15},{"$f":"CustomersCOM!AD130","v":14},{"$f":"CustomersCOM!AE130","v":13},{"$f":"CustomersCOM!AF130","v":12},{"$f":"CustomersCOM!AG130","v":11},{"$f":"CustomersCOM!AH130","v":10},{"$f":"CustomersCOM!AI130","v":10},{"$f":"CustomersCOM!AJ130","v":9},{"$f":"CustomersCOM!AK130","v":9},{"$f":"CustomersCOM!AL130","v":8},{"$f":"CustomersCOM!AM130","v":7},{"$f":"CustomersCOM!AN130","v":7},{"$f":"CustomersCOM!AO130","v":7},{"$f":"CustomersCOM!AP130","v":6},{"$f":"CustomersCOM!AQ130","v":6},{"$f":"CustomersCOM!AR130","v":5},{"$f":"CustomersCOM!AS130","v":5},{"$f":"CustomersCOM!AT130","v":5},{"$f":"CustomersCOM!AU130","v":5},{"$f":"CustomersCOM!AV130","v":4},{"$f":"CustomersCOM!AW130","v":4},{"$f":"CustomersCOM!AX130","v":4},{"$f":"CustomersCOM!AY130","v":4},{"$f":"CustomersCOM!AZ130","v":3},{"$f":"CustomersCOM!BA130","v":3},{"$f":"CustomersCOM!BB130","v":3},{"$f":"CustomersCOM!BC130","v":3},{"$f":"CustomersCOM!BD130","v":3},{"$f":"CustomersCOM!BE130","v":3},{"$f":"CustomersCOM!BF130","v":2},{"$f":"CustomersCOM!BG130","v":2},{"$f":"CustomersCOM!BH130","v":2},{"$f":"CustomersCOM!BI130","v":2},{"$f":"CustomersCOM!BJ130","v":2},{"$f":"CustomersCOM!BK130","v":2},{"$f":"CustomersCOM!BL130","v":2},{"$f":"CustomersCOM!BM130","v":2},{"$f":"CustomersCOM!BN130","v":2},{"$f":"CustomersCOM!BO130","v":2},{"$f":"CustomersCOM!BP130","v":2},{"$f":"CustomersCOM!BQ130","v":2},{"$f":"CustomersCOM!BR130","v":2},{"$f":"CustomersCOM!BS130","v":1},{"$f":"CustomersCOM!BT130","v":1},{"$f":"CustomersCOM!BU130","v":1},{"$f":"CustomersCOM!BV130","v":1},{"$f":"CustomersCOM!BW130","v":1},{"$f":"CustomersCOM!BX130","v":1},{"$f":"CustomersCOM!BY130","v":1},{"$f":"CustomersCOM!BZ130","v":1},{"$f":"CustomersCOM!CA130","v":1},{"$f":"CustomersCOM!CB130","v":1},{"$f":"CustomersCOM!CC130","v":1},{"$f":"CustomersCOM!CD130","v":1},{"$f":"CustomersCOM!CE130","v":1},{"$f":"CustomersCOM!CF130","v":1},{"$f":"CustomersCOM!CG130","v":1},{"$f":"CustomersCOM!CH130","v":1},{"$f":"CustomersCOM!CI130","v":1},{"$f":"CustomersCOM!CJ130","v":1},{"$f":"CustomersCOM!CK130","v":1},{"$f":"CustomersCOM!CL130","v":1}]
["Melbourne (C)",null,{"$f":"CustomersCOM!K131","v":12},{"$f":"CustomersCOM!L131","v":11},{"$f":"CustomersCOM!M131","v":12},{"$f":"CustomersCOM!N131","v":11},{"$f":"CustomersCOM!O131","v":10},{"$f":"CustomersCOM!P131","v":10},{"$f":"CustomersCOM!Q131","v":10},{"$f":"CustomersCOM!R131","v":10},{"$f":"CustomersCOM!S131","v":9},{"$f":"CustomersCOM!T131","v":8},{"$f":"CustomersCOM!U131","v":8},{"$f":"CustomersCOM!V131","v":7},{"$f":"CustomersCOM!W131","v":7},{"$f":"CustomersCOM!X131","v":7},{"$f":"CustomersCOM!Y131","v":6},{"$f":"CustomersCOM!Z131","v":6},{"$f":"CustomersCOM!AA131","v":5},{"$f":"CustomersCOM!AB131","v":5},{"$f":"CustomersCOM!AC131","v":5},{"$f":"CustomersCOM!AD131","v":5},{"$f":"CustomersCOM!AE131","v":4},{"$f":"CustomersCOM!AF131","v":4},{"$f":"CustomersCOM!AG131","v":4},{"$f":"CustomersCOM!AH131","v":3},{"$f":"CustomersCOM!AI131","v":3},{"$f":"CustomersCOM!AJ131","v":3},{"$f":"CustomersCOM!AK131","v":3},{"$f":"CustomersCOM!AL131","v":3},{"$f":"CustomersCOM!AM131","v":2},{"$f":"CustomersCOM!AN131","v":2},{"$f":"CustomersCOM!AO131","v":2},{"$f":"CustomersCOM!AP131","v":2},{"$f":"CustomersCOM!AQ131","v":2},{"$f":"CustomersCOM!AR131","v":2},{"$f":"CustomersCOM!AS131","v":1},{"$f":"CustomersCOM!AT131","v":1},{"$f":"CustomersCOM!AU131","v":1},{"$f":"CustomersCOM!AV131","v":1},{"$f":"CustomersCOM!AW131","v":1},{"$f":"CustomersCOM!AX131","v":1},{"$f":"CustomersCOM!AY131","v":1},{"$f":"CustomersCOM!AZ131","v":1},{"$f":"CustomersCOM!BA131","v":1},{"$f":"CustomersCOM!BB131","v":1},{"$f":"CustomersCOM!BC131","v":1},{"$f":"CustomersCOM!BD131","v":1},{"$f":"CustomersCOM!BE131","v":1},{"$f":"CustomersCOM!BF131","v":1},{"$f":"CustomersCOM!BG131","v":0},{"$f":"CustomersCOM!BH131","v":0},{"$f":"CustomersCOM!BI131","v":0},{"$f":"CustomersCOM!BJ131","v":0},{"$f":"CustomersCOM!BK131","v":0},{"$f":"CustomersCOM!BL131","v":0},{"$f":"CustomersCOM!BM131","v":0},{"$f":"CustomersCOM!BN131","v":0},{"$f":"CustomersCOM!BO131","v":0},{"$f":"CustomersCOM!BP131","v":0},{"$f":"CustomersCOM!BQ131","v":0},{"$f":"CustomersCOM!BR131","v":0},{"$f":"CustomersCOM!BS131","v":0},{"$f":"CustomersCOM!BT131","v":0},{"$f":"CustomersCOM!BU131","v":0},{"$f":"CustomersCOM!BV131","v":0},{"$f":"CustomersCOM!BW131","v":0},{"$f":"CustomersCOM!BX131","v":0},{"$f":"CustomersCOM!BY131","v":0},{"$f":"CustomersCOM!BZ131","v":0},{"$f":"CustomersCOM!CA131","v":0},{"$f":"CustomersCOM!CB131","v":0},{"$f":"CustomersCOM!CC131","v":0},{"$f":"CustomersCOM!CD131","v":0},{"$f":"CustomersCOM!CE131","v":0},{"$f":"CustomersCOM!CF131","v":0},{"$f":"CustomersCOM!CG131","v":0},{"$f":"CustomersCOM!CH131","v":0},{"$f":"CustomersCOM!CI131","v":0},{"$f":"CustomersCOM!CJ131","v":0},{"$f":"CustomersCOM!CK131","v":0},{"$f":"CustomersCOM!CL131","v":0}]
["Monash (C)",null,{"$f":"CustomersCOM!K132","v":83},{"$f":"CustomersCOM!L132","v":81},{"$f":"CustomersCOM!M132","v":80},{"$f":"CustomersCOM!N132","v":75},{"$f":"CustomersCOM!O132","v":70},{"$f":"CustomersCOM!P132","v":70},{"$f":"CustomersCOM!Q132","v":69},{"$f":"CustomersCOM!R132","v":66},{"$f":"CustomersCOM!S132","v":62},{"$f":"CustomersCOM!T132","v":58},{"$f":"CustomersCOM!U132","v":54},{"$f":"CustomersCOM!V132","v":50},{"$f":"CustomersCOM!W132","v":47},{"$f":"CustomersCOM!X132","v":44},{"$f":"CustomersCOM!Y132","v":40},{"$f":"CustomersCOM!Z132","v":39},{"$f":"CustomersCOM!AA132","v":37},{"$f":"CustomersCOM!AB132","v":34},{"$f":"CustomersCOM!AC132","v":32},{"$f":"CustomersCOM!AD132","v":30},{"$f":"CustomersCOM!AE132","v":27},{"$f":"CustomersCOM!AF132","v":26},{"$f":"CustomersCOM!AG132","v":24},{"$f":"CustomersCOM!AH132","v":22},{"$f":"CustomersCOM!AI132","v":21},{"$f":"CustomersCOM!AJ132","v":19},{"$f":"CustomersCOM!AK132","v":18},{"$f":"CustomersCOM!AL132","v":17},{"$f":"CustomersCOM!AM132","v":15},{"$f":"CustomersCOM!AN132","v":14},{"$f":"CustomersCOM!AO132","v":14},{"$f":"CustomersCOM!AP132","v":13},{"$f":"CustomersCOM!AQ132","v":12},{"$f":"CustomersCOM!AR132","v":11},{"$f":"CustomersCOM!AS132","v":10},{"$f":"CustomersCOM!AT132","v":10},{"$f":"CustomersCOM!AU132","v":9},{"$f":"CustomersCOM!AV132","v":8},{"$f":"CustomersCOM!AW132","v":8},{"$f":"CustomersCOM!AX132","v":7},{"$f":"CustomersCOM!AY132","v":7},{"$f":"CustomersCOM!AZ132","v":6},{"$f":"CustomersCOM!BA132","v":6},{"$f":"CustomersCOM!BB132","v":6},{"$f":"CustomersCOM!BC132","v":5},{"$f":"CustomersCOM!BD132","v":5},{"$f":"CustomersCOM!BE132","v":5},{"$f":"CustomersCOM!BF132","v":4},{"$f":"CustomersCOM!BG132","v":4},{"$f":"CustomersCOM!BH132","v":4},{"$f":"CustomersCOM!BI132","v":4},{"$f":"CustomersCOM!BJ132","v":4},{"$f":"CustomersCOM!BK132","v":3},{"$f":"CustomersCOM!BL132","v":3},{"$f":"CustomersCOM!BM132","v":3},{"$f":"CustomersCOM!BN132","v":3},{"$f":"CustomersCOM!BO132","v":3},{"$f":"CustomersCOM!BP132","v":3},{"$f":"CustomersCOM!BQ132","v":2},{"$f":"CustomersCOM!BR132","v":2},{"$f":"CustomersCOM!BS132","v":2},{"$f":"CustomersCOM!BT132","v":2},{"$f":"CustomersCOM!BU132","v":2},{"$f":"CustomersCOM!BV132","v":2},{"$f":"CustomersCOM!BW132","v":2},{"$f":"CustomersCOM!BX132","v":2},{"$f":"CustomersCOM!BY132","v":2},{"$f":"CustomersCOM!BZ132","v":2},{"$f":"CustomersCOM!CA132","v":2},{"$f":"CustomersCOM!CB132","v":2},{"$f":"CustomersCOM!CC132","v":1},{"$f":"CustomersCOM!CD132","v":1},{"$f":"CustomersCOM!CE132","v":1},{"$f":"CustomersCOM!CF132","v":1},{"$f":"CustomersCOM!CG132","v":1},{"$f":"CustomersCOM!CH132","v":1},{"$f":"CustomersCOM!CI132","v":1},{"$f":"CustomersCOM!CJ132","v":1},{"$f":"CustomersCOM!CK132","v":1},{"$f":"CustomersCOM!CL132","v":1}]
["Port Phillip (C)",null,{"$f":"CustomersCOM!K133","v":100},{"$f":"CustomersCOM!L133","v":98},{"$f":"CustomersCOM!M133","v":98},{"$f":"CustomersCOM!N133","v":91},{"$f":"CustomersCOM!O133","v":85},{"$f":"CustomersCOM!P133","v":85},{"$f":"CustomersCOM!Q133","v":85},{"$f":"CustomersCOM!R133","v":81},{"$f":"CustomersCOM!S133","v":76},{"$f":"CustomersCOM!T133","v":71},{"$f":"CustomersCOM!U133","v":66},{"$f":"CustomersCOM!V133","v":62},{"$f":"CustomersCOM!W133","v":58},{"$f":"CustomersCOM!X133","v":54},{"$f":"CustomersCOM!Y133","v":50},{"$f":"CustomersCOM!Z133","v":48},{"$f":"CustomersCOM!AA133","v":45},{"$f":"CustomersCOM!AB133","v":42},{"$f":"CustomersCOM!AC133","v":39},{"$f":"CustomersCOM!AD133","v":37},{"$f":"CustomersCOM!AE133","v":34},{"$f":"CustomersCOM!AF133","v":32},{"$f":"CustomersCOM!AG133","v":29},{"$f":"CustomersCOM!AH133","v":27},{"$f":"CustomersCOM!AI133","v":25},{"$f":"CustomersCOM!AJ133","v":24},{"$f":"CustomersCOM!AK133","v":22},{"$f":"CustomersCOM!AL133","v":21},{"$f":"CustomersCOM!AM133","v":19},{"$f":"CustomersCOM!AN133","v":18},{"$f":"CustomersCOM!AO133","v":17},{"$f":"CustomersCOM!AP133","v":15},{"$f":"CustomersCOM!AQ133","v":14},{"$f":"CustomersCOM!AR133","v":13},{"$f":"CustomersCOM!AS133","v":13},{"$f":"CustomersCOM!AT133","v":12},{"$f":"CustomersCOM!AU133","v":11},{"$f":"CustomersCOM!AV133","v":10},{"$f":"CustomersCOM!AW133","v":10},{"$f":"CustomersCOM!AX133","v":9},{"$f":"CustomersCOM!AY133","v":8},{"$f":"CustomersCOM!AZ133","v":8},{"$f":"CustomersCOM!BA133","v":7},{"$f":"CustomersCOM!BB133","v":7},{"$f":"CustomersCOM!BC133","v":6},{"$f":"CustomersCOM!BD133","v":6},{"$f":"CustomersCOM!BE133","v":6},{"$f":"CustomersCOM!BF133","v":5},{"$f":"CustomersCOM!BG133","v":5},{"$f":"CustomersCOM!BH133","v":5},{"$f":"CustomersCOM!BI133","v":4},{"$f":"CustomersCOM!BJ133","v":4},{"$f":"CustomersCOM!BK133","v":4},{"$f":"CustomersCOM!BL133","v":4},{"$f":"CustomersCOM!BM133","v":4},{"$f":"CustomersCOM!BN133","v":3},{"$f":"CustomersCOM!BO133","v":3},{"$f":"CustomersCOM!BP133","v":3},{"$f":"CustomersCOM!BQ133","v":3},{"$f":"CustomersCOM!BR133","v":3},{"$f":"CustomersCOM!BS133","v":3},{"$f":"CustomersCOM!BT133","v":2},{"$f":"CustomersCOM!BU133","v":2},{"$f":"CustomersCOM!BV133","v":2},{"$f":"CustomersCOM!BW133","v":2},{"$f":"CustomersCOM!BX133","v":2},{"$f":"CustomersCOM!BY133","v":2},{"$f":"CustomersCOM!BZ133","v":2},{"$f":"CustomersCOM!CA133","v":2},{"$f":"CustomersCOM!CB133","v":2},{"$f":"CustomersCOM!CC133","v":2},{"$f":"CustomersCOM!CD133","v":2},{"$f":"CustomersCOM!CE133","v":2},{"$f":"CustomersCOM!CF133","v":1},{"$f":"CustomersCOM!CG133","v":1},{"$f":"CustomersCOM!CH133","v":1},{"$f":"CustomersCOM!CI133","v":1},{"$f":"CustomersCOM!CJ133","v":1},{"$f":"CustomersCOM!CK133","v":1},{"$f":"CustomersCOM!CL133","v":1}]
["South Gippsland (S)",null,{"$f":"CustomersCOM!K134","v":3},{"$f":"CustomersCOM!L134","v":3},{"$f":"CustomersCOM!M134","v":3},{"$f":"CustomersCOM!N134","v":3},{"$f":"CustomersCOM!O134","v":2},{"$f":"CustomersCOM!P134","v":2},{"$f":"CustomersCOM!Q134","v":2},{"$f":"CustomersCOM!R134","v":2},{"$f":"CustomersCOM!S134","v":2},{"$f":"CustomersCOM!T134","v":2},{"$f":"CustomersCOM!U134","v":2},{"$f":"CustomersCOM!V134","v":2},{"$f":"CustomersCOM!W134","v":2},{"$f":"CustomersCOM!X134","v":2},{"$f":"CustomersCOM!Y134","v":2},{"$f":"CustomersCOM!Z134","v":2},{"$f":"CustomersCOM!AA134","v":2},{"$f":"CustomersCOM!AB134","v":2},{"$f":"CustomersCOM!AC134","v":1},{"$f":"CustomersCOM!AD134","v":1},{"$f":"CustomersCOM!AE134","v":1},{"$f":"CustomersCOM!AF134","v":1},{"$f":"CustomersCOM!AG134","v":1},{"$f":"CustomersCOM!AH134","v":1},{"$f":"CustomersCOM!AI134","v":1},{"$f":"CustomersCOM!AJ134","v":1},{"$f":"CustomersCOM!AK134","v":1},{"$f":"CustomersCOM!AL134","v":1},{"$f":"CustomersCOM!AM134","v":1},{"$f":"CustomersCOM!AN134","v":1},{"$f":"CustomersCOM!AO134","v":1},{"$f":"CustomersCOM!AP134","v":1},{"$f":"CustomersCOM!AQ134","v":1},{"$f":"CustomersCOM!AR134","v":1},{"$f":"CustomersCOM!AS134","v":1},{"$f":"CustomersCOM!AT134","v":1},{"$f":"CustomersCOM!AU134","v":1},{"$f":"CustomersCOM!AV134","v":1},{"$f":"CustomersCOM!AW134","v":1},{"$f":"CustomersCOM!AX134","v":1},{"$f":"CustomersCOM!AY134","v":1},{"$f":"CustomersCOM!AZ134","v":1},{"$f":"CustomersCOM!BA134","v":1},{"$f":"CustomersCOM!BB134","v":1},{"$f":"CustomersCOM!BC134","v":1},{"$f":"CustomersCOM!BD134","v":1},{"$f":"CustomersCOM!BE134","v":1},{"$f":"CustomersCOM!BF134","v":1},{"$f":"CustomersCOM!BG134","v":1},{"$f":"CustomersCOM!BH134","v":1},{"$f":"CustomersCOM!BI134","v":1},{"$f":"CustomersCOM!BJ134","v":1},{"$f":"CustomersCOM!BK134","v":1},{"$f":"CustomersCOM!BL134","v":1},{"$f":"CustomersCOM!BM134","v":1},{"$f":"CustomersCOM!BN134","v":1},{"$f":"CustomersCOM!BO134","v":1},{"$f":"CustomersCOM!BP134","v":1},{"$f":"CustomersCOM!BQ134","v":1},{"$f":"CustomersCOM!BR134","v":1},{"$f":"CustomersCOM!BS134","v":1},{"$f":"CustomersCOM!BT134","v":1},{"$f":"CustomersCOM!BU134","v":1},{"$f":"CustomersCOM!BV134","v":1},{"$f":"CustomersCOM!BW134","v":1},{"$f":"CustomersCOM!BX134","v":1},{"$f":"CustomersCOM!BY134","v":1},{"$f":"CustomersCOM!BZ134","v":1},{"$f":"CustomersCOM!CA134","v":1},{"$f":"CustomersCOM!CB134","v":1},{"$f":"CustomersCOM!CC134","v":1},{"$f":"CustomersCOM!CD134","v":1},{"$f":"CustomersCOM!CE134","v":1},{"$f":"CustomersCOM!CF134","v":1},{"$f":"CustomersCOM!CG134","v":1},{"$f":"CustomersCOM!CH134","v":1},{"$f":"CustomersCOM!CI134","v":1},{"$f":"CustomersCOM!CJ134","v":1},{"$f":"CustomersCOM!CK134","v":1},{"$f":"CustomersCOM!CL134","v":1}]
["Stonnington (C)",null,{"$f":"CustomersCOM!K135","v":89},{"$f":"CustomersCOM!L135","v":87},{"$f":"CustomersCOM!M135","v":86},{"$f":"CustomersCOM!N135","v":81},{"$f":"CustomersCOM!O135","v":75},{"$f":"CustomersCOM!P135","v":75},{"$f":"CustomersCOM!Q135","v":74},{"$f":"CustomersCOM!R135","v":70},{"$f":"CustomersCOM!S135","v":67},{"$f":"CustomersCOM!T135","v":62},{"$f":"CustomersCOM!U135","v":58},{"$f":"CustomersCOM!V135","v":54},{"$f":"CustomersCOM!W135","v":51},{"$f":"CustomersCOM!X135","v":47},{"$f":"CustomersCOM!Y135","v":44},{"$f":"CustomersCOM!Z135","v":42},{"$f":"CustomersCOM!AA135","v":40},{"$f":"CustomersCOM!AB135","v":37},{"$f":"CustomersCOM!AC135","v":35},{"$f":"CustomersCOM!AD135","v":32},{"$f":"CustomersCOM!AE135","v":30},{"$f":"CustomersCOM!AF135","v":28},{"$f":"CustomersCOM!AG135","v":26},{"$f":"CustomersCOM!AH135","v":24},{"$f":"CustomersCOM!AI135","v":23},{"$f":"CustomersCOM!AJ135","v":21},{"$f":"CustomersCOM!AK135","v":20},{"$f":"CustomersCOM!AL135","v":18},{"$f":"CustomersCOM!AM135","v":17},{"$f":"CustomersCOM!AN135","v":16},{"$f":"CustomersCOM!AO135","v":15},{"$f":"CustomersCOM!AP135","v":14},{"$f":"CustomersCOM!AQ135","v":13},{"$f":"CustomersCOM!AR135","v":12},{"$f":"CustomersCOM!AS135","v":11},{"$f":"CustomersCOM!AT135","v":10},{"$f":"CustomersCOM!AU135","v":10},{"$f":"CustomersCOM!AV135","v":9},{"$f":"CustomersCOM!AW135","v":9},{"$f":"CustomersCOM!AX135","v":8},{"$f":"CustomersCOM!AY135","v":7},{"$f":"CustomersCOM!AZ135","v":7},{"$f":"CustomersCOM!BA135","v":7},{"$f":"CustomersCOM!BB135","v":6},{"$f":"CustomersCOM!BC135","v":6},{"$f":"CustomersCOM!BD135","v":5},{"$f":"CustomersCOM!BE135","v":5},{"$f":"CustomersCOM!BF135","v":5},{"$f":"CustomersCOM!BG135","v":4},{"$f":"CustomersCOM!BH135","v":4},{"$f":"CustomersCOM!BI135","v":4},{"$f":"CustomersCOM!BJ135","v":4},{"$f":"CustomersCOM!BK135","v":4},{"$f":"CustomersCOM!BL135","v":3},{"$f":"CustomersCOM!BM135","v":3},{"$f":"CustomersCOM!BN135","v":3},{"$f":"CustomersCOM!BO135","v":3},{"$f":"CustomersCOM!BP135","v":3},{"$f":"CustomersCOM!BQ135","v":3},{"$f":"CustomersCOM!BR135","v":2},{"$f":"CustomersCOM!BS135","v":2},{"$f":"CustomersCOM!BT135","v":2},{"$f":"CustomersCOM!BU135","v":2},{"$f":"CustomersCOM!BV135","v":2},{"$f":"CustomersCOM!BW135","v":2},{"$f":"CustomersCOM!BX135","v":2},{"$f":"CustomersCOM!BY135","v":2},{"$f":"CustomersCOM!BZ135","v":2},{"$f":"CustomersCOM!CA135","v":2},{"$f":"CustomersCOM!CB135","v":2},{"$f":"CustomersCOM!CC135","v":2},{"$f":"CustomersCOM!CD135","v":2},{"$f":"CustomersCOM!CE135","v":1},{"$f":"CustomersCOM!CF135","v":1},{"$f":"CustomersCOM!CG135","v":1},{"$f":"CustomersCOM!CH135","v":1},{"$f":"CustomersCOM!CI135","v":1},{"$f":"CustomersCOM!CJ135","v":1},{"$f":"CustomersCOM!CK135","v":1},{"$f":"CustomersCOM!CL135","v":1}]
["Whitehorse (C)",null,{"$f":"CustomersCOM!K136","v":77},{"$f":"CustomersCOM!L136","v":76},{"$f":"CustomersCOM!M136","v":75},{"$f":"CustomersCOM!N136","v":70},{"$f":"CustomersCOM!O136","v":65},{"$f":"CustomersCOM!P136","v":65},{"$f":"CustomersCOM!Q136","v":65},{"$f":"CustomersCOM!R136","v":61},{"$f":"CustomersCOM!S136","v":58},{"$f":"CustomersCOM!T136","v":54},{"$f":"CustomersCOM!U136","v":50},{"$f":"CustomersCOM!V136","v":47},{"$f":"CustomersCOM!W136","v":44},{"$f":"CustomersCOM!X136","v":41},{"$f":"CustomersCOM!Y136","v":38},{"$f":"CustomersCOM!Z136","v":36},{"$f":"CustomersCOM!AA136","v":34},{"$f":"CustomersCOM!AB136","v":32},{"$f":"CustomersCOM!AC136","v":30},{"$f":"CustomersCOM!AD136","v":28},{"$f":"CustomersCOM!AE136","v":26},{"$f":"CustomersCOM!AF136","v":24},{"$f":"CustomersCOM!AG136","v":22},{"$f":"CustomersCOM!AH136","v":21},{"$f":"CustomersCOM!AI136","v":19},{"$f":"CustomersCOM!AJ136","v":18},{"$f":"CustomersCOM!AK136","v":17},{"$f":"CustomersCOM!AL136","v":16},{"$f":"CustomersCOM!AM136","v":15},{"$f":"CustomersCOM!AN136","v":14},{"$f":"CustomersCOM!AO136","v":13},{"$f":"CustomersCOM!AP136","v":12},{"$f":"CustomersCOM!AQ136","v":11},{"$f":"CustomersCOM!AR136","v":10},{"$f":"CustomersCOM!AS136","v":10},{"$f":"CustomersCOM!AT136","v":9},{"$f":"CustomersCOM!AU136","v":8},{"$f":"CustomersCOM!AV136","v":8},{"$f":"CustomersCOM!AW136","v":7},{"$f":"CustomersCOM!AX136","v":7},{"$f":"CustomersCOM!AY136","v":7},{"$f":"CustomersCOM!AZ136","v":6},{"$f":"CustomersCOM!BA136","v":6},{"$f":"CustomersCOM!BB136","v":5},{"$f":"CustomersCOM!BC136","v":5},{"$f":"CustomersCOM!BD136","v":5},{"$f":"CustomersCOM!BE136","v":4},{"$f":"CustomersCOM!BF136","v":4},{"$f":"CustomersCOM!BG136","v":4},{"$f":"CustomersCOM!BH136","v":4},{"$f":"CustomersCOM!BI136","v":4},{"$f":"CustomersCOM!BJ136","v":3},{"$f":"CustomersCOM!BK136","v":3},{"$f":"CustomersCOM!BL136","v":3},{"$f":"CustomersCOM!BM136","v":3},{"$f":"CustomersCOM!BN136","v":3},{"$f":"CustomersCOM!BO136","v":3},{"$f":"CustomersCOM!BP136","v":2},{"$f":"CustomersCOM!BQ136","v":2},{"$f":"CustomersCOM!BR136","v":2},{"$f":"CustomersCOM!BS136","v":2},{"$f":"CustomersCOM!BT136","v":2},{"$f":"CustomersCOM!BU136","v":2},{"$f":"CustomersCOM!BV136","v":2},{"$f":"CustomersCOM!BW136","v":2},{"$f":"CustomersCOM!BX136","v":2},{"$f":"CustomersCOM!BY136","v":2},{"$f":"CustomersCOM!BZ136","v":2},{"$f":"CustomersCOM!CA136","v":2},{"$f":"CustomersCOM!CB136","v":2},{"$f":"CustomersCOM!CC136","v":1},{"$f":"CustomersCOM!CD136","v":1},{"$f":"CustomersCOM!CE136","v":1},{"$f":"CustomersCOM!CF136","v":1},{"$f":"CustomersCOM!CG136","v":1},{"$f":"CustomersCOM!CH136","v":1},{"$f":"CustomersCOM!CI136","v":1},{"$f":"CustomersCOM!CJ136","v":1},{"$f":"CustomersCOM!CK136","v":1},{"$f":"CustomersCOM!CL136","v":1}]
["Yarra Ranges (S)",null,{"$f":"CustomersCOM!K137","v":56},{"$f":"CustomersCOM!L137","v":56},{"$f":"CustomersCOM!M137","v":55},{"$f":"CustomersCOM!N137","v":51},{"$f":"CustomersCOM!O137","v":48},{"$f":"CustomersCOM!P137","v":47},{"$f":"CustomersCOM!Q137","v":46},{"$f":"CustomersCOM!R137","v":44},{"$f":"CustomersCOM!S137","v":42},{"$f":"CustomersCOM!T137","v":39},{"$f":"CustomersCOM!U137","v":36},{"$f":"CustomersCOM!V137","v":34},{"$f":"CustomersCOM!W137","v":31},{"$f":"CustomersCOM!X137","v":29},{"$f":"CustomersCOM!Y137","v":27},{"$f":"CustomersCOM!Z137","v":26},{"$f":"CustomersCOM!AA137","v":25},{"$f":"CustomersCOM!AB137","v":23},{"$f":"CustomersCOM!AC137","v":21},{"$f":"CustomersCOM!AD137","v":20},{"$f":"CustomersCOM!AE137","v":19},{"$f":"CustomersCOM!AF137","v":17},{"$f":"CustomersCOM!AG137","v":16},{"$f":"CustomersCOM!AH137","v":15},{"$f":"CustomersCOM!AI137","v":14},{"$f":"CustomersCOM!AJ137","v":13},{"$f":"CustomersCOM!AK137","v":12},{"$f":"CustomersCOM!AL137","v":11},{"$f":"CustomersCOM!AM137","v":11},{"$f":"CustomersCOM!AN137","v":10},{"$f":"CustomersCOM!AO137","v":9},{"$f":"CustomersCOM!AP137","v":9},{"$f":"CustomersCOM!AQ137","v":8},{"$f":"CustomersCOM!AR137","v":8},{"$f":"CustomersCOM!AS137","v":7},{"$f":"CustomersCOM!AT137","v":7},{"$f":"CustomersCOM!AU137","v":6},{"$f":"CustomersCOM!AV137","v":6},{"$f":"CustomersCOM!AW137","v":5},{"$f":"CustomersCOM!AX137","v":5},{"$f":"CustomersCOM!AY137","v":5},{"$f":"CustomersCOM!AZ137","v":5},{"$f":"CustomersCOM!BA137","v":4},{"$f":"CustomersCOM!BB137","v":4},{"$f":"CustomersCOM!BC137","v":4},{"$f":"CustomersCOM!BD137","v":4},{"$f":"CustomersCOM!BE137","v":3},{"$f":"CustomersCOM!BF137","v":3},{"$f":"CustomersCOM!BG137","v":3},{"$f":"CustomersCOM!BH137","v":3},{"$f":"CustomersCOM!BI137","v":3},{"$f":"CustomersCOM!BJ137","v":3},{"$f":"CustomersCOM!BK137","v":3},{"$f":"CustomersCOM!BL137","v":2},{"$f":"CustomersCOM!BM137","v":2},{"$f":"CustomersCOM!BN137","v":2},{"$f":"CustomersCOM!BO137","v":2},{"$f":"CustomersCOM!BP137","v":2},{"$f":"CustomersCOM!BQ137","v":2},{"$f":"CustomersCOM!BR137","v":2},{"$f":"CustomersCOM!BS137","v":2},{"$f":"CustomersCOM!BT137","v":2},{"$f":"CustomersCOM!BU137","v":2},{"$f":"CustomersCOM!BV137","v":2},{"$f":"CustomersCOM!BW137","v":1},{"$f":"CustomersCOM!BX137","v":1},{"$f":"CustomersCOM!BY137","v":1},{"$f":"CustomersCOM!BZ137","v":1},{"$f":"CustomersCOM!CA137","v":1},{"$f":"CustomersCOM!CB137","v":1},{"$f":"CustomersCOM!CC137","v":1},{"$f":"CustomersCOM!CD137","v":1},{"$f":"CustomersCOM!CE137","v":1},{"$f":"CustomersCOM!CF137","v":1},{"$f":"CustomersCOM!CG137","v":1},{"$f":"CustomersCOM!CH137","v":1},{"$f":"CustomersCOM!CI137","v":1},{"$f":"CustomersCOM!CJ137","v":1},{"$f":"CustomersCOM!CK137","v":1},{"$f":"CustomersCOM!CL137","v":1}]
[]
["LGA S curves","Constant","NPV coefficient",null,null,null,null,null,null,null,null,null,"Relative U","P(Disconnect)","Average Decision Points","Economic Disconnection Estimate","Economic Stay Estimate","Natural Attrition"]
["Bass Coast (S)",{"$f":"Scenarios!L32","v":0.86},{"$f":"Scenarios!M32","v":-5.942857142857143E-4},null,null,null,null,null,null,null,"Against Gas",{"$f":"-L52*Scenarios!J52","v":6596.403959053262},{"$f":"$B51+$C51*L51","v":-3.0601486385230818},{"$f":"1-EXP(M51)/(1+EXP(M51))","v":0.95521865553828689},{"$f":"O55","v":953},{"$f":"N51*O51","v":910.32337872798735},{"$f":"O51-P51","v":42.676621272012653},{"$f":"AVERAGE([17]CustomersCOM!$H$110:$J$110)","v":566},{"$f":"Q51/R51","v":7.5400390939951684E-2}]
["Bayside (C)",{"$f":"B51","v":0.86},{"$f":"C51","v":-5.942857142857143E-4},null,null,null,null,null,null,null,"For Gas (status quo)",{"$f":"AVERAGE(C9:C27)","v":-6596.403959053262},{"$f":"$B52+$C52*L52","v":4.780148638523082},{"$f":"1-EXP(M52)/(1+EXP(M52))","v":8.3248659141307302E-3},{"$f":"O51","v":953},{"$f":"N52*O52","v":7.9335972161665858},{"$f":"O52-P52","v":945.06640278383338},{"$f":"R51","v":566},{"$f":"Q52/R52","v":1.6697286268265608}]
["Boroondara (C)",{"$f":"B52","v":0.86},{"$f":"C52","v":-5.942857142857143E-4}]
["Cardinia (S)",0.86,-5.942857142857143E-4,null,null,null,null,null,null,null,null,null,null,null,null,null,"Less than one person disconnects","Solve for 0"]
["Casey (C)",0.86,-5.942857142857143E-4,null,null,null,null,null,null,null,"Relative U where less than 1 person disconnects (Constant)",null,13.854288054176966,{"$f":"1-EXP(M55)/(1+EXP(M55))","v":9.6196380072743892E-7},{"$f":"SUM(C30:C48)","v":953},{"$f":"N55*O55","v":9.1675150209324929E-4},9.9999999999999995E-8,{"$f":"(P55-Q55)","v":9.1665150209324934E-4}]
["Frankston (C)",0.86,-5.942857142857143E-4]
["Glen Eira (C)",0.86,-5.942857142857143E-4,null,null,null,null,null,null,null,"Current Economics (where businesses don't switch)",{"$f":"L52","v":-6596.403959053262},{"$f":"M55/L57","v":-2.1002789004700949E-3}]
["Greater Dandenong (C)",0.86,-5.942857142857143E-4,null,null,null,null,null,null,null,"Difference in NPV to reach almost 100% disconnections",{"$f":"L51-L57","v":13192.807918106524}]
["Kingston (C)",0.86,-5.942857142857143E-4,null,null,null,null,null,null,null,"Difference in RU to reach almost 100% disconnections",{"$f":"-2*M55","v":-27.708576108353931}]
["Knox (C)",0.86,-5.942857142857143E-4,null,null,null,null,null,null,null,"Implied NPV Coefficient",{"$f":"L59/L58","v":-2.1002789004700949E-3}]
["Manningham (C)",0.86,-5.942857142857143E-4,null,null,null,null,null,null,null,"Intercept",{"$f":"M55-L60*L57","v":0}]
["Maroondah (C)",0.86,-5.942857142857143E-4]
["Melbourne (C)",0.86,-5.942857142857143E-4,null,null,null,null,null,null,null,"NPV per year of appliance life",{"$f":"L51/15","v":439.76026393688414}]
["Monash (C)",0.86,-5.942857142857143E-4]
["Port Phillip (C)",0.86,-5.942857142857143E-4,null,null,null,null,null,null,null,"Consider replacing with simpler weighted average. LGA level may produce arbitrarily difference results"]
["South Gippsland (S)",0.86,-5.942857142857143E-4]
["Stonnington (C)",0.86,-5.942857142857143E-4]
["Whitehorse (C)",0.86,-5.942857142857143E-4]
["Yarra Ranges (S)",0.86,-5.942857142857143E-4]
[]
["LGA S curves (Relative utility)",2020,{"$f":"B71+1","v":2021},2022,2023,2024,2025,2026,2027,2028,2029,2030,2031,2032,2033,2034,2035,2036,2037,2038,2039,2040,2041,2042,2043,2044,2045,2046,2047,2048,2049,2050,2051,2052,2053,2054,2055,2056,2057,2058,2059,2060,2061,2062,2063,2064,2065,2066,2067,2068,2069,2070,2071,2072,2073,2074,2075,2076,2077,2078,2079,2080,2081,2082,2083,2084,{"$f":"BN71+1","v":2085},2086,2087,2088,2089,2090,2091,2092,2093,2094,2095,2096,2097,2098,2099,2100]
["Bass Coast (S)",null,{"$f":"$B51+$C51*C9","v":9.7976876323932736},{"$f":"$B51+$C51*D9","v":3.5278488060427979},-6.3787977223401828,-9.7479162587680026,4.1102423859920219,3.3294210716172548,-1.4947848613236894,-1.7399749284415602,-11.799178251557862,-11.925461257409323,-3.8889687830431616,-4.1961732052527703,-9.8363964160357718,-15.304080051673711,-0.49410728808637405,-2.9854187808634656,-6.4612116439587775,-11.328014300577395,-15.065250868040184,-16.721983165344575,-19.138884452723815,-24.446667274709075,-28.930874791577065,-31.65334908810425,-34.689611703748731,-36.756535039889378,-38.372765444331606,-39.650204095216509,-40.794643901238899,-42.54134822906822,-42.604406607065251,-43.978534243987632,-44.069894686447086,-44.158376731638505,-44.246734597704354,-44.33221559732943,-44.423080839845845,-44.5110707278047,-44.598939460463889,-44.683934331742527,-44.774316432325158,-44.861826146232858,-44.949217654310139,-45.0337382321786,-45.123648952340552,-45.210690180749303,-45.297616080295256,-45.38167390875909,-45.471124720914325,-45.557708865097148,-45.644180486691816,-45.727786826082841,-45.816788920757247,-45.902927101873374,-45.988955497745792,-46.072121331796801,-46.160685624657702,-46.24638869073749,-46.331984641706484,-46.414720684447545,-46.502857823156688,-46.58813635591077,-46.673310378150944,-46.755627080632784,-46.843347451526547,{"$f":"$B51+$C51*BP9","v":-46.928211772984113},-47.012974124621707,-47.094881681469602,-47.182195416071536,-47.266655595051212,-47.351016282594209,-47.43252463839719,-47.519441619766773,-47.603507478185072,-47.687476262791527,-47.768595118331014,-47.855124987252452,-47.938806106273624,-48.022392509862335,-48.105884778529877]
["Bayside (C)",null,{"$f":"$B52+$C52*C10","v":3.1304346247052401},1.0367254626893936,-2.3279621286634713,-3.4597630051412147,1.2139758542964363,0.95026157697605274,-0.67782226430114345,-0.76787704750109975,-4.1945473872493553,-4.2658569943955742,-1.5994855728693445,-1.7101152338169947,-3.6568037974384295,-5.5412255891874747,0.10821338599618535,-0.72668957550087365,-1.8939877761046446,-3.5239328479543013,-4.7766541899131587,-5.3327678341289051,-6.1463717782995069,-7.923480473490442,-9.4255464813728356,-10.337453590490551,-11.357790011573416,-12.052574639503113,-12.596834955238872,-13.026104642931042,-13.414606903686822,-14.002368969641584,-14.023426273889873,-14.480459530549101,-14.512801823023844,-14.542348941191003,-14.571854591789339,-14.598565579274588,-14.630742507904024,-14.660125278288803,-14.689467590861513,-14.71601624381136,-14.748031835168609,-14.777254259356598,-14.806437210659077,-14.832827481155109,-14.864685662803293,-14.893751643993523,-14.922779113014091,-14.949014855986368,-14.980719458948707,-15.00963280440809,-15.038508574806881,-15.064593550457298,-15.096148311625177,-15.124912735081214,-15.153640497567643,-15.17957837373244,-15.210986938212731,-15.239606062186059,-15.268189416836591,-15.293983771289216,-15.325249694692783,-15.353727052770971,-15.382169511288492,-15.407823833984786,-15.438950584657178,-15.467289623711455,-15.495594611627855,-15.521112306894626,-15.552103268090864,-15.580307350436975,-15.608478209260394,-15.633862597928967,-15.664721069933591,-15.6927934754384,-15.72083346474642,-15.746087786232582,-15.776816988426312,-15.804760916561445,-15.832673216041631,-15.860554080719055]
["Boroondara (C)",null,3.7844518835643419,{"$f":"$B53+$C53*D11","v":1.2837151321413371},-2.7201079391514735,-4.0699695769232838,1.5000318956937417,1.1859176433545611,-0.75367708838444603,-0.85848577005386828,-4.9318667011801072,-5.0085873006846544,-1.8188683316764722,-1.9487096708485758,-4.2554417765196115,-6.4891590811707189,5.3062074488363975E-2,-0.94333461073919544,-2.335682026308818,-4.281159196630564,-5.7760851341828801,-6.4395212728838107,-7.4094411718612454,-9.5307178623706257,-11.323488738450584,-12.411912664383049,-13.628781025559041,-14.457350429065933,-15.106139261419319,-15.618124386122908,-16.080352482074058,-16.781119104301407,-16.80627005438317,-17.352688158942431,-17.390782671115883,-17.426073897633756,-17.461315595078915,-17.493754617441763,-17.531651618206844,-17.566746546907012,-17.601793152593,-17.634038281770465,-17.671742580486349,-17.70664599088277,-17.741502254666237,-17.773558211044438,-17.81107449881226,-17.845791052905483,-17.880461607869591,-17.912332995796362,-17.949665848409548,-17.984200093618295,-18.01868945898573,-18.050380769665136,-18.08753465048553,-18.121891022504627,-18.156203606477273,-18.187719220791351,-18.224698483552938,-18.258881309139241,-18.293021411666533,-18.324365602925887,-18.361174494468152,-18.395187994156423,-18.429159809633934,-18.460336746259387,-18.496979409191699,-18.530827699942268,-18.564635319842523,-18.595649067979107,-18.632129543278282,-18.665816641057983,-18.69946405649511,-18.730318582560464,-18.766640812102956,-18.800170634401255,-18.833661738631104,-18.86436091179975,-18.900528740830055,-18.933905109111954,-18.967243699969359,-19.000544744940264]
["Cardinia (S)",null,1.9818247503615178,0.62667123534257785,-1.5921341310889225,-2.3282615671575093,0.72920738372231964,0.55694436702250849,-0.50589983635520197,-0.56585215379421328,-2.8215053908414744,-2.8834785367748941,-1.1672059234174115,-1.243452833766145,-2.5373134232156875,-3.7884072743408148,0.24059955938920496,-0.30173898228367546,-1.0611483483884929,-2.1190201591625994,-2.9327194156345042,-3.2945535979386871,-3.8249766632061308,-4.9780427862485297,-5.9530733342904512,-6.5451380918895534,-7.2093122734169244,-7.6617877870103621,-8.0168225404662277,-8.2964445053960958,-8.5516085647882658,-8.9347586053449639,-8.9483879481336359,-9.2432315009728256,-9.265136333059603,-9.2842607089611509,-9.3033582449736283,-9.3196756556715847,-9.3414734559889574,-9.3604914577679548,-9.3794832732230713,-9.3956956128728368,-9.4173889876207557,-9.4363032053039824,-9.4551918741571601,-9.4713017007440321,-9.4928931920382187,-9.5117061519717243,-9.5304941848986324,-9.546503993526569,-9.5679960809972844,-9.586710247435045,-9.6054000934101822,-9.6213123178703288,-9.6427074202209759,-9.6613251968735891,-9.6799192447090743,-9.6957362590088927,-9.7170367355353537,-9.7355604670797451,-9.7540610469255213,-9.7697851667793199,-9.7909933188511573,-9.809425292402322,-9.8278346772085126,-9.8434681614906481,-9.8645862339949577,-9.8829286805407293,-9.9012490874832793,-9.9167941396446935,-9.9378243223937091,-9.9560794181933598,-9.9743130100638293,-9.9897717795130117,-10.01071620861631,-10.028886076564087,-10.047034963124467,-10.062409546573688,-10.083270305775837,-10.101357016730139,-10.119423256033604,-10.137469149157081]
["Casey (C)",null,2.3590593095470771,0.78303647117340791,-1.7906988874375007,-2.6451547465679899,0.90452784129843833,0.70491579797438542,-0.52696657722391638,-0.59297225731938374,-3.2009899120515981,-3.2661817078703161,-1.2662009641568313,-1.3531525069912473,-2.8426652264622159,-4.283577509368949,0.22961292636176012,-0.40063258184304684,-1.2824352759795246,-2.5117986548262943,-3.4571977095794479,-3.8775379592946169,-4.4930515447900605,-5.8331428239612499,-6.9661859838966382,-7.6542990619618001,-8.4253812477165244,-8.9507143540102589,-9.3627297896674264,-9.687494497324181,-9.9829218944157549,-10.427648181679913,-10.443498899158714,-10.786846217805534,-10.811872432584059,-10.83411378963803,-10.856323932310991,-10.875749602056965,-10.900651340522558,-10.922768986096839,-10.94485617737644,-10.964159651098303,-10.988939944221691,-11.010936890477867,-11.032904123834943,-11.052088376430515,-11.076750180653459,-11.098629365693389,-11.120479561005403,-11.139547494242485,-11.164093693337096,-11.18585798305052,-11.207593988437399,-11.226548432777912,-11.250981839659302,-11.272634029524927,-11.294258623138683,-11.313102339517041,-11.337425698010287,-11.358968514851565,-11.38048440662098,-11.399220088177557,-11.423436074740311,-11.444872178437043,-11.466282011768403,-11.484912285539567,-11.509023510941221,-11.530355496098176,-11.551661849533241,-11.570189278098782,-11.594198289057518,-11.615428686631002,-11.636634075463311,-11.655061158552467,-11.678970439331103,-11.700101718214684,-11.721208596065205,-11.739537772122326,-11.763349746083954,-11.784384314654321,-11.805395075007473,-11.82638217306407]
["Frankston (C)",null,-0.80016604631091315,-0.80016604631091315,-0.67158283875741975,-0.68170099475295431,-0.76697906839017571,-0.77144092103850215,-0.79714393506621894,-0.86081656079359237,-0.92452381256095351,-0.96083878522956245,-0.97938951584306289,-0.9841066274461715,-1.0717131115633607,-1.1523748802458549,-8.8334255117132554E-2,-8.5580804771379415E-2,-8.8334255117132554E-2,-8.8334255117132554E-2,-8.8334255117132554E-2,-8.5580804771379415E-2,-8.8334255117132554E-2,-8.8334255117132554E-2,-8.8334255117132554E-2,-8.5580804771379415E-2,-8.8334255117132554E-2,-8.8334255117132554E-2,-8.8334255117132554E-2,-8.5580804771379415E-2,-8.8334255117132554E-2,-8.8334255117132554E-2,-8.8334255117132554E-2,-8.5580804771379415E-2,-8.8334255117132554E-2,-8.8334255117132554E-2,-8.8334255117132554E-2,-8.5580804771379415E-2,-8.8334255117132554E-2,-8.8334255117132554E-2,-8.8334255117132554E-2,-8.5580804771379415E-2,-8.8334255117132554E-2,-8.8334255117132554E-2,-8.8334255117132554E-2,-8.5580804771379415E-2,-8.8334255117132554E-2,-8.8334255117132554E-2,-8.8334255117132554E-2,-8.5580804771379415E-2,-8.8334255117132554E-2,-8.8334255117132554E-2,-8.8334255117132554E-2,-8.5580804771379415E-2,-8.8334255117132554E-2,-8.8334255117132554E-2,-8.8334255117132554E-2,-8.5580804771379415E-2,-8.8334255117132554E-2,-8.8334255117132554E-2,-8.8334255117132554E-2,-8.5580804771379415E-2,-8.8334255117132554E-2,-8.8334255117132554E-2,-8.8334255117132554E-2,-8.5580804771379415E-2,{"$f":"$B56+$C56*BO14","v":-8.8334255117132554E-2},-8.8334255117132554E-2,-8.8334255117132554E-2,-8.5580804771379415E-2,-8.8334255117132554E-2,-8.8334255117132554E-2,-8.8334255117132554E-2,-8.5580804771379415E-2,-8.8334255117132554E-2,-8.8334255117132554E-2,-8.8334255117132554E-2,-8.5580804771379415E-2,-8.8334255117132554E-2,-8.8334255117132554E-2,-8.8334255117132554E-2,-8.8334255117132554E-2]
["Glen Eira (C)",null,2.524086622705211,{"$f":"$B57+$C57*D15","v":0.86146932258454012},-1.8576385976304,-2.7584865312635132,0.98867195674504593,0.77833740019978437,-0.51981841343338797,-0.5867001907441628,-3.3339657141116725,-3.4006359698816762,-1.2896395250273884,-1.3810023368056301,-2.9474361332680954,-4.4629812553608872,0.23982796673354112,-0.42509265375023098,-1.355090200280094,-2.6518969387557831,-3.6491374733449482,-4.0926216896840755,-4.7417009648993274,-6.1553216031593987,-7.3505183874319568,-8.0764902333029998,-8.889687846487913,-9.4437855045083001,-9.8783397598020173,-10.221001086933294,-10.532411085023634,-11.001474969963901,-11.01819660397701,-11.380560404537286,-11.406810394759106,-11.430273801580201,-11.453704278948356,-11.474348578856029,-11.500467253422833,-11.523800151445865,-11.547100921865171,-11.567616311696957,-11.593606868115955,-11.616812435005501,-11.639986656422847,-11.660376274532116,-11.68624183168653,-11.709323166978265,-11.732373919703562,-11.752640827295529,-11.778384427406127,-11.801344554455886,-11.824274843098806,-11.844422026154934,-11.870046636692253,-11.892888504576117,-11.915701259934036,-11.935731631088073,-11.96124014663646,-11.983966632003005,-12.00666471290155,-12.026581113268275,-12.051976357343154,-12.074590266219083,-12.097176461306303,-12.116981662264413,-12.142266389083714,-12.164770458634175,-12.187247488129618,-12.206944193059664,-12.232121089270819,-12.254517989515325,-12.276888506915162,-12.296479352893822,-12.321551039257283,-12.343843374742587,-12.366109968481814,-12.385597527933593,-12.410566560963973,-12.432756872394844,-12.454922067467701,-12.477062300120826]
["Greater Dandenong (C)",null,5.7239381745542834,1.9406986604895011,-4.0329558595309507,-6.0699048988981756,2.2922887144372206,1.819369238862854,-1.101764798828778,-1.2636607763716268,-7.3669798174976444,-7.4592168637280318,-2.6189573325102184,-2.8078149757104249,-6.247497701314126,-9.5803072240467397,-0.22352462610801049,-1.727284076776352,-3.8272586200291765,-6.7654727323769244,-9.0220954315129038,-10.022235801873352,-11.483240660669303,-14.687512343084794,-17.394828523145989,-19.038009935133225,-20.872708556991764,-22.121405362796121,-23.098145159253946,-23.869357479748054,-24.562494449378956,-25.617940191163932,-25.655989805187268,-26.48405052403977,-26.540269698636376,-26.593660029540359,-26.646975430388267,-26.697462911249325,-26.753383280718115,-26.806476642474887,-26.859496898761211,-26.909691048322983,-26.96531988850284,-27.018123511799939,-27.070855809345158,-27.120763768843627,-27.176108176666759,-27.228629114411564,-27.281080462375371,-27.330709197498027,-27.385776095453355,-27.438021227208143,-27.490198462496444,-27.539554767761214,-27.594350908245563,-27.646326944551099,-27.698236736111969,-27.747327239136098,-27.801859208695785,-27.853572695286044,-27.905221548297842,-27.95405271395914,-28.008326937425146,-28.05978425933602,-28.111178519289975,-28.159756653783731,-28.213779398302517,-28.264986783877276,-28.316132640557456,-28.364463895351076,-28.418241274314276,-28.469204799108244,-28.52010829047153,-28.568198666159809,-28.621736643035081,-28.672462233622074,-28.723129249580442,-28.770984599643914,-28.824288991709295,-28.8747824293925,-28.925218715500257,-28.975598200314845]
["Kingston (C)",null,4.2879233964208021,1.4039051972995329,-3.1609647231078539,-4.7161653758508812,1.6682977973995583,1.3067239234231902,-0.92620803698840015,-1.0547341436608497,-5.7298837400709814,-5.8102787003846448,-2.1263306279654319,-2.2728560506393034,-4.9172268791932829,-7.4784689203394956,-9.4165048434107446E-2,-1.2412550002014919,-2.8441502166961223,-5.0853861259973536,-6.8070280790721904,-7.5701739957507508,-8.6859455936493486,-11.129973388954106,-13.195157991533906,-14.448476022738564,-15.849092545963963,-16.802330230192442,-17.54824446259644,-18.136821015381365,-18.667181886125061,-19.473074928290611,-19.502080699377764,-20.132668906399399,-20.176180051624204,-20.216880273064529,-20.25752337423938,-20.295356255784,-20.338639617538217,-20.379113455102502,-20.419531563309334,-20.457140834162022,-20.500201958922855,-20.540454924668801,-20.580653517762496,-20.618044621790713,-20.660888919652226,-20.700926390113139,-20.740910811277509,-20.778089058525584,-20.820721806601206,-20.860549026166908,-20.900324487274212,-20.937295057301419,-20.979721403040898,-21.019343487253671,-21.058915072139481,-21.095683017274322,-21.137907981697193,-21.177329920464711,-21.216702588120569,-21.253272836632878,-21.295301317480721,-21.33452797820819,-21.373706565893833,-21.410083925087498,-21.451920699896704,-21.490956830540298,-21.529946056817646,-21.566135216045243,-21.607784945142669,-21.646635177186063,-21.685439644876979,-21.721445178478703,-21.76291240790199,-21.801581259258128,-21.840205458327702,-21.876031828496423,-21.917320992840764,-21.955812870680688,-21.994261181048053,-22.032666190968111]
["Knox (C)",null,4.2229544436447473,1.4080137961785535,-3.0650958589823478,-4.5832889380516217,1.6611534686032936,1.3081330857621241,-0.871931673046903,-0.99393064766316963,-5.5622792439072866,-5.6423377979927487,-2.0477871900754034,-2.191628257120938,-4.7754685207568306,-7.2780012026615948,-4.5780869852499184E-2,-1.1660280297440009,-2.7312914881748869,-4.9195367800942229,-6.6006298931795202,-7.3461153281267029,-8.4359088885962681,-10.822075108114538,-12.838468740679062,-14.062372182425548,-15.430174593043464,-16.361244425828023,-17.089953265854838,-17.665023700339642,-18.183401439466284,-18.970642626247997,-18.998953655654535,-19.614372162614838,-19.656907085923223,-19.696632462041904,-19.736302086030761,-19.773162850118396,-19.815475445790156,-19.854979860343914,-19.894429880361042,-19.93107238964496,-19.973168071308947,-20.012456904331525,-20.051692667027087,-20.088122234984109,-20.130006283152674,-20.169084782399487,-20.208111502978181,-20.244333312467283,-20.286010877857251,-20.324884162105324,-20.363706927605477,-20.399726034125941,-20.441202140896156,-20.479875203161107,-20.518498975651049,-20.554320310518786,-20.595599859426112,-20.634077570098128,-20.67250718979242,-20.708135563236134,-20.749223334712202,-20.787510444613169,-20.825750632910253,-20.861190737090045,{"$f":"$B60+$C60*BO18","v":-20.902091394240443},-20.940192537604222,-20.97824790004778,-21.013504311997576,-21.054222403525756,-21.092142100903452,-21.130017130069255,-21.165094314565373,-21.205634277622998,-21.243376938715219,-21.281076017025434,-21.315978329382993,-21.35634449234853,-21.393914418766439,-21.431441821233069,-21.468926960377903]
["Manningham (C)",null,4.5412637737739079,{"$f":"$B61+$C61*D19","v":1.4366931135049206},-3.4378165128782965,-5.111175833079721,1.7324034773134382,1.3435198120072755,-1.058207815709665,-1.2035611636453165,-6.22265354548595,-6.3047029821112837,-2.3359020326972475,-2.4915727313599194,-5.3297787251803896,-8.0790382838554358,-0.20972447139052541,-1.4430819268101991,-3.166689100594009,-5.5776722991243863,-7.4293343487372825,-8.2494190896461035,-9.4486832427135727,-12.077999371704891,-14.29950872810365,-15.647283422390146,-17.153207982330741,-18.177759373920921,-18.979140377238618,-19.611369905165706,-20.180518471112347,-21.046488631093602,-21.077712590055818,-21.756734978707211,-21.803363028644693,-21.847175759572874,-21.890927002019342,-21.931863683460271,-21.978246530409812,-22.021815564977231,-22.065324608339289,-22.106020578680084,-22.152164193280292,-22.195495465073861,-22.238768206119943,-22.279229325542499,-22.325139531619083,-22.368238828337187,-22.411281018865861,-22.451513003494931,-22.49719548172337,-22.540068448815422,-22.582885699271753,-22.622894124768322,-22.668354416244558,-22.711006560458895,-22.753604343459791,-22.79339464852421,-22.838638158245317,-22.881074851087895,-22.923458504858928,-22.963035994645661,-23.008067994903168,-23.050294476009263,-23.092469207734844,-23.131839057181615,-23.17666469086933,-23.218686071290385,-23.260656960379826,-23.299824217452834,-23.344448501291549,-23.386269766699407,-23.428041767970857,-23.467011356828479,-23.511439184509594,-23.553065198320173,-23.594643145104385,-23.633419869181324,-23.677656014431349,-23.719091520849751,-23.760480128015907,-23.801822123375523]
["Maroondah (C)",null,3.9132259571947898,1.2893192563886449,-2.8828125952540571,-4.2986612413516649,1.5244020420747368,1.195036336189083,-0.83882419376365636,-0.95414095024338719,-5.2187850717257849,-5.2962689811549675,-1.9473109404991833,-2.0821005116107671,-4.4969237458716842,-6.8354840409673541,-2.2247071583874067E-2,-1.066664902800035,-2.526270128050534,-4.5663902044273472,-6.1337737317085157,-6.828855187088446,-7.8452503900264832,-10.069852117561377,-11.949773757070682,-13.090798282804213,-14.36632806163629,-15.234575120494242,-15.914192453471085,-16.450409272164315,-16.934152726926747,-17.668324750622546,-17.694714472137068,-18.268181178506108,-18.308016360421778,-18.345045802120197,-18.382023275267468,-18.416195648843608,-18.45582359122972,-18.492647066762789,-18.529419839205815,-18.5633887696854,-18.602814518778736,-18.639437043068042,-18.676010098610362,-18.709780538874877,-18.749009016829561,-18.785435481495327,-18.821813681415502,-18.855390462592883,-18.894426470576004,-18.930661647013089,-18.96684973312118,-19.000237567622847,-19.039085788832292,-19.075134331208847,-19.111136928825957,-19.144340413307567,-19.183005415913801,-19.21887186409446,-19.254693484957425,-19.287717103204937,-19.326203343218996,-19.361892125614482,-19.397537170707405,-19.430385296450787,-19.468697120519927,-19.504212556865124,-19.539685319179718,-19.572362218835753,-19.610503866968887,-19.645850171030911,-19.681154838257498,-19.713664673603638,-19.751640281828291,-19.786821564046544,-19.821962221197317,-19.854309051978326,-19.89212265493061,-19.927142924990477,-19.962123556956794,-19.997064793771617]
["Melbourne (C)",null,16.243901629934662,5.7926000277880334,-10.581024566496575,-16.190317921395494,6.8037108250624261,5.5051221039398408,-2.5192875169584403,-2.9398767621694093,-19.625351630557336,-19.803775987358083,-6.387416826173772,-6.8885737433604453,-16.224189481650463,-25.276866312707849,-1.291830916785051,-5.4388499865228059,-11.223283383378023,-19.328289069503683,-25.550439471950934,-28.306435602812076,-32.32593515969586,-41.166168117198197,-48.633606314285842,-53.166254410466181,-58.218325613732624,-61.656461364827564,-64.343365628347328,-66.467404534294658,-68.366108652947091,-71.27060985874725,-71.375722947814097,-73.6681161371001,-73.81857009846172,-73.966062333315364,-74.113347571860103,-74.257673635658989,-74.407302139763814,-74.553973989306783,-74.700443883008063,-74.843959611149714,-74.992782757699686,-75.138654196902124,-75.284328596783595,-75.427053717125744,-75.575091111588279,-75.720181624297766,-75.865079893352885,-76.007033648795911,-76.154304414734057,-76.298633005927726,-76.442774031294178,-76.583975191877784,-76.730497982970618,-76.874083190699025,-77.017485395526478,-77.157952270222751,-77.303745281982927,-77.446605189013397,-77.589286544033229,-77.7290369922422,-77.874117973439184,-78.016270218606252,-78.158248253409766,-78.297299696166732,-78.4416859599623,-78.583147749233007,-78.724439563266344,-78.862808994166528,-79.006517428970682,-79.14730554623101,-79.287927819513527,-79.425631815362536,-79.568678895416141,-79.708809712986834,-79.848778716559863,-79.985833447756221,-80.128235243447335,-80.267724732334969,-80.407056338447845,-80.546231029450226]
["Monash (C)",null,4.9304244516334368,1.6801752647112829,-3.4793861468309228,-5.2307912095149529,1.9742911153106864,1.5673688838356055,-0.94585105727706564,-1.0829288355751978,-6.3434366180978197,-6.4293834068704365,-2.2752229696098993,-2.4397108414417166,-5.4087108339138608,-8.2849079258369809,-9.7972201065268605E-2,-1.3910322127173149,-3.197079463397198,-5.7228778425289537,-7.6631011372964073,-8.5234623373150953,-9.7805287881947791,-12.534871729853974,-14.86226377412294,-16.275043127095806,-17.853126784014304,-18.927370452112591,-19.76796362787605,-20.431589244621499,-21.028907489092202,-21.937096592408288,-21.969785700930831,-22.680799662846731,-22.729486479591433,-22.775355074208573,-22.821159295065367,-22.864146087366841,-22.912576195246007,-22.958189658321597,-23.003740315171207,-23.046475101271792,-23.094654751089603,-23.140019294637508,-23.185322560947689,-23.227811476011798,-23.275746764870512,-23.320868448170447,-23.3659303456365,-23.408179374011688,-23.455876249146169,-23.500760982553967,-23.545587384884875,-23.587602363863812,-23.635066626379757,-23.679720175041815,-23.724316811650937,-23.766103435138959,-23.813340743656916,-23.857768731131145,-23.902141190734351,-23.943705012824374,-23.99072088703231,-24.034928798818019,-24.079082532941062,-24.120428971399015,{"$f":"$B64+$C64*BO22","v":-24.167228795515307},-24.211221982494358,-24.255162308892192,-24.296296648554488,-24.342885674703965,-24.386669356495304,-24.43040146248541,-24.471328858571077,-24.51771221007618,-24.56129147830611,-24.604820424017909,-24.645545905357466,-24.691728579946506,-24.73510840143669,-24.778439122979346,-24.82172104550828]
["Port Phillip (C)",null,5.3798259691315193,{"$f":"$B65+$C65*D23","v":1.9829480839877318},-3.4844722212578474,-5.3144320708749619,2.2696632987878766,1.8445848466542114,-0.78085460374726645,-0.90455892332517351,-6.4117597493672331,-6.5023588460157207,-2.1623558228137663,-2.3364406353960252,-5.4378063627351532,-8.4424839775296761,6.3433833455995292E-2,-1.290426058921422,-3.1801554742677056,-5.822218762782267,-7.8522782888879616,-8.7538725154145673,-10.069808672443855,-12.950680847339052,-15.385329699939433,-16.864217792215058,-18.515607890259574,-19.640541258267625,-20.521272308039514,-21.21716538592915,-21.843500304382129,-22.794843664908264,-22.829007479261968,-23.572221675828811,-23.622980687452337,-23.670918554894779,-23.718789144479331,-23.763839419255532,-23.814330141090139,-23.862001367225577,-23.909606953753769,-23.954393853557317,-24.004622818400129,-24.052033895485401,-24.09938093092903,-24.143910867700406,-24.193884447712623,-24.241041708380127,-24.288136486091624,-24.332415714150621,-24.382140124865114,-24.429049746104926,-24.475898404774263,-24.519933024751719,-24.569414328979828,-24.616082336021766,-24.662690863533708,-24.706486826204465,-24.75573093784444,-24.802163207942346,-24.848537445136845,-24.892100555155977,-24.941113242905828,-24.987315509026672,-25.033461153364531,-25.076797072909976,-25.125583963886651,-25.171561818306994,-25.217484427443345,-25.260598679766677,-25.309165263034476,-25.354924160846259,-25.400629156114388,-25.443527129002359,-25.491878759012469,-25.53742402154084,-25.582916691348125,-25.625603640497211,-25.673745540440784,-25.719082358575953,-25.764367861714547,-25.809602364366413]
["South Gippsland (S)",null,6.6633014244381448,2.3259882638943656,-4.5355151078098919,-6.8693032910301586,2.7258294201766509,2.1843020696870004,-1.1608817854813429,-1.3385724139591386,-8.3253869862053236,-8.4256102428539847,-2.87355172198613,-3.0891758196386925,-7.0195854498862529,-10.828487873054298,-0.25699447519840313,-1.9811921883054979,-4.3881180425177,-7.7564519277374471,-10.343373033985001,-11.490198153671681,-13.16457804287116,-16.837938797999886,-19.941563483907156,-21.825609951203692,-23.928416684114588,-25.359803014365351,-26.479403862218984,-27.363780937499175,-28.157842569951931,-29.36767902178325,-29.411301185022843,-30.361038640059455,-30.425088127457325,-30.486297729443869,-30.547421427506762,-30.605706299145236,-30.669413219965328,-30.73028236024286,-30.79106768840176,-30.84901626895951,-30.91238896462233,-30.972925932847438,-31.033381129320809,-31.091001605902221,-31.154048212719886,-31.214261094732173,-31.274394195204913,-31.331694553655979,-31.394423007949243,-31.454319690856039,-31.514138533531835,-31.571126563460332,-31.633544606547048,-31.69313278368012,-31.752645014206635,-31.809328313876271,-31.871443496934205,-31.930730672681776,-31.989943748952065,-32.046329730053145,-32.108149418860691,-32.167142913377923,-32.226064110210956,-32.282160002511439,-32.343691382068855,-32.40239833586989,-32.461034749573422,-32.516847605452746,-32.578097684487311,-32.636525062921798,-32.694883615740565,-32.750420314609514,-32.811395929967439,-32.869550527584479,-32.927637972036436,-32.982905224645982,-33.0436130455737,-33.101501490376165,-33.159324413479737,-33.217082216467183]
["Stonnington (C)",null,4.0085141987069086,1.3921202220008611,-2.8071898166382105,-4.2190135996078766,1.6156985824652159,1.2872631356500071,-0.74084767257595063,-0.84650754822518703,-5.1061047572491374,-5.1848461464751736,-1.8468983756663064,-1.9826771603963063,-4.3921919747232359,-6.7256355464860933,6.979911150690532E-2,-0.97295508277505849,-2.4297170079886872,-4.4653171409933172,-6.0295276495153152,-6.7239191892164056,-7.7387137232303003,-9.9582410744071268,-11.834068744277436,-12.973100571178781,-14.246261894604164,-15.113292360556958,-15.792226835199141,-16.328157178737708,-16.811773882956484,-17.545087997689262,-17.571402160611417,-18.143219043434144,-18.182948053579928,-18.219871473223922,-18.256743073112204,-18.290809721310527,-18.330332085291374,-18.367050128488764,-18.403717613768308,-18.43758140136482,-18.476902150969217,-18.513419818282948,-18.549888158487754,-18.583554024182934,-18.622678067471977,-18.659000236516679,-18.695274279006568,-18.728747040095943,-18.767679164490108,-18.803810592999259,-18.839895066007642,-18.873179421410143,-18.911924296698452,-18.947869625514485,-18.983769141119307,-19.01686967432952,-19.055431855602954,-19.091195611592028,-19.126914668612201,-19.159835850578194,-19.198219781089406,-19.233806379982894,-19.269349366801698,-19.302095558730667,-19.340305572681654,-19.375719321846255,-19.411090519163785,-19.443665975256966,-19.481706300516741,-19.516951401654776,-19.552154985171249,-19.584563855290156,-19.622438616044029,-19.657519167825974,-19.692559210857436,-19.724805543123054,-19.762518762455244,-19.797438763086017,-19.832319239114344,-19.867160432786697]
["Whitehorse (C)",null,4.3971723965075356,1.4574036292390931,-3.2021488856704701,-4.7872173204733253,1.7251716448701373,1.3566944864112724,-0.91890512007456271,-1.0477328215717794,-5.8127245683952662,-5.8941093387580743,-2.1387257768592853,-2.2881288090514418,-4.9820597559338404,-7.5913885331012638,-8.5042799265459545E-2,-1.254493845138752,-2.888454144757572,-5.1731473771019179,-6.9282017908294184,-7.7062841785400442,-8.8437016990919748,-11.335104334048649,-13.440339761110341,-14.718067114719911,-16.145833272675908,-17.117624959354192,-17.878084816963952,-18.478218115710064,-19.018903290607707,-19.840499512895242,-19.870065990644424,-20.51289724011297,-20.557196266858977,-20.598683258809171,-20.640112026309726,-20.678729476780635,-20.722796316804398,-20.764052548682287,-20.805251973906,-20.843641491096751,-20.88748179809367,-20.928512888509786,-20.96948855520322,-21.007655688215937,-21.051274976861908,-21.092086406282593,-21.132843760917929,-21.170793922444702,-21.214197571864297,-21.254794686057988,-21.295339041257463,-21.333077510982932,-21.376270768130574,-21.416658781527396,-21.45699531940155,-21.494527247320082,-21.537515230275957,-21.577699229242832,-21.617833004644801,-21.655163414293977,-21.697951115477238,-21.73793606151051,-21.777872005208451,-21.815005796821495,{"$f":"$B68+$C68*BO26","v":-21.857598086122451},-21.897388818960408,-21.937131740730134,-21.974073694308856,-22.016475322142519,-22.056076562799426,-22.095631154439307,-22.13238593274987,-22.174601533032721,-22.2140178867567,-22.253388725026742,-22.289960876520063,-22.33199496957187,-22.371230928728373,-22.410422478215359,-22.449569890219905]
["Yarra Ranges (S)",null,3.7329995390320518,{"$f":"$B69+$C69*D27","v":1.0633167856286849},-3.0885646766391126,-4.5289373627236067,1.3282831327669862,0.99324923148769839,-1.0756451371469762,-1.2148046585553041,-5.5358943809323433,-5.6107782847981991,-2.1997698486758726,-2.3335435032842953,-4.7856981037218116,-7.1603967992602078,-0.24362461830234616,-1.3030912325349759,-2.7849085288986113,-4.8574322556259144,-6.4489881227897836,-7.1530878387960923,-8.1840265735496747,-10.444313653882954,-12.353923061906467,-13.511808313271782,-14.806464759094021,-15.686796552892663,-16.375223143934257,-16.917810761368614,-17.406928664699834,-18.150907174234753,-18.177757284557956,-18.761276590812979,-18.801758691803251,-18.839434140339609,-18.877056713693829,-18.911873286416803,-18.952144532425951,-18.989610421560201,-19.027024723050346,-19.061634303456866,-19.101699828757109,-19.138961260899961,-19.176172361275821,-19.210579988654167,-19.250444801270369,-19.287506753380086,-19.324519598728937,-19.358730188489741,-19.398399173349009,-19.435266500061072,-19.472085914917471,-19.506104261683763,-19.545582183685937,-19.582259620364024,-19.618890310741314,-19.65272109136092,-19.692012598371679,-19.728504764081816,-19.764951320427521,-19.798599096909463,-19.837708722678364,-19.874020123088268,-19.910287023165019,-19.943756245542328,-19.982688412547191,-20.018823442752808,-20.054915054446834,-20.088210063567178,-20.12696908578711,-20.162932033067939,-20.19885261712701,-20.231977647373217,-20.270567732991882,-20.306362779497093,-20.342116492199551,-20.375075674141723,-20.413500928182565,-20.449132153549545,-20.484723049306208,-20.520273862632948]
[]
[]
["LGA S curves",2020,{"$f":"B93+1","v":2021},2022,2023,2024,2025,2026,2027,2028,2029,2030,2031,2032,2033,2034,2035,2036,2037,2038,2039,2040,2041,2042,2043,2044,2045,2046,2047,2048,2049,2050,2051,2052,2053,2054,2055,2056,2057,2058,2059,2060,2061,2062,2063,2064,2065,2066,2067,2068,2069,2070,2071,2072,2073,2074,2075,2076,2077,2078,2079,2080,2081,2082,2083,2084,{"$f":"BN93+1","v":2085},2086,2087,2088,2089,2090,2091,2092,2093,2094,2095,2096,2097,2098,2099,2100]
["Bass Coast (S)",null,{"$f":"1-EXP(C72)/(1+EXP(C72))","v":5.55768833182535E-5},2.8530150137894061E-2,0.99830571328864492,0.99994158715088999,1.6139056176213695E-2,3.4575549756531543E-2,0.81679536817408871,0.85068388088735236,0.99999248932910223,0.99999338034879248,0.97994403374005601,0.98517016284720549,0.99994653321212712,0.99999977430476772,0.62107352601592325,0.9519110319778924,0.99843953796420937,0.99998796902918363,0.99999971342087324,0.9999999453317765,0.99999999512372617,0.99999999997584832,0.99999999999972744,0.99999999999998213,0.99999999999999911,0.99999999999999989,1,1,1,1,1,1,{"$f":"1-EXP(AI72)/(1+EXP(AI72))","v":1},1,1,1,1,1,1,1,1,1,1,1,1,1,1,1,1,1,1,1,1,1,1,1,1,1,1,1,1,1,1,1,1,1,{"$f":"1-EXP(BQ72)/(1+EXP(BQ72))","v":1},1,1,1,1,1,1,1,1,1,1,1,1,1]
["Bayside (C)",null,{"$f":"1-EXP(C73)/(1+EXP(C73))","v":4.1869168119807787E-2},0.26178231208455216,0.91116652533656517,0.96952096430131374,0.22899832546801424,0.27883221977696104,0.66325247617553318,0.68306147765982284,0.98514639104156143,0.98615455773426808,0.83194647456678461,0.84685122999276685,0.97483474761049782,0.99609360231086974,0.47297302248888351,0.67407840275172404,0.86920954599755063,0.97136111384463486,0.99164623582522882,0.99519254232646615,0.99786333852324005,0.99963799138484344,0.99991936897973188,0.99996760433649878,0.99998832197502729,0.9999941705066715,0.99999661730672196,0.99999779791703891,0.99999850682882885,0.99999917043950393,0.99999918772516405,0.99999948570049413,{"$f":"1-EXP(AI73)/(1+EXP(AI73))","v":0.9999995020680027},0.99999951656522101,0.99999953062089142,0.99999954299250071,0.99999955746352676,0.9999995702772948,0.99999958270315426,0.99999959363604995,0.99999960643997077,0.99999961777432922,0.99999962876760984,0.99999963843638751,0.99999964977359246,0.9999996598067451,0.99999966953974551,0.99999967809687085,0.99999968814258933,0.99999969703032154,0.99999970565369922,0.99999971323243786,0.99999972214003952,0.99999973001866371,0.99999973766427486,0.99999974438121653,0.99999975228505966,0.99999975927395746,0.99999976605730645,0.99999977201454393,0.99999977903243609,0.99999978523625377,0.99999979125861005,0.99999979654562066,0.99999980278094702,0.99999980829149382,{"$f":"1-EXP(BQ73)/(1+EXP(BQ73))","v":0.99999981364172341},0.99999981833699525,0.99999982388056152,0.99999982877845284,0.99999983353460309,0.99999983770704326,0.99999984263867259,0.99999984699475397,0.99999985122542756,0.99999985493558208,0.9999998593255004,0.99999986320208234,0.99999986696762921,0.99999987062545759]
["Boroondara (C)",null,{"$f":"1-EXP(C74)/(1+EXP(C74))","v":2.2216524672226234E-2},0.21691848952290915,0.93820279216232683,0.98320884965968003,0.18242076672498453,0.23398985691904484,0.67997938988399864,0.70234419125830672,0.99283862901415076,0.99336399677108966,0.86043028039934644,0.87530587638101909,0.98601162857866154,0.9984824798457882,0.48673759301669184,0.71977274086022391,0.9117894097441066,0.98636194328012816,0.99690875441556193,0.99840537578098887,0.99939485744378964,0.99992741777111049,0.99998791445954982,0.9999959302001401,0.99999879470020669,0.99999947367711117,0.99999972490230193,0.99999983513263768,0.99999989615356188,0.99999994847090079,0.99999994975074447,0.99999997090467097,{"$f":"1-EXP(AI74)/(1+EXP(AI74))","v":0.99999997199219737},0.99999997296338894,0.99999997389961104,0.99999997473269686,0.99999997567233467,0.99999997651130446,0.99999997732024537,0.99999997803989205,0.99999997885246739,0.99999997957785547,0.99999998027743198,0.99999998089963194,0.99999998160293169,0.99999998223065523,0.99999998283617086,0.9999999833745804,0.99999998398381185,0.99999998452747718,0.99999998505201715,0.9999999855183106,0.99999998604648888,0.99999998651773925,0.99999998697250381,0.99999998737667106,0.99999998783494692,0.9999999882437558,0.99999998863834128,0.99999998898893994,0.99999998938687618,0.99999998974179538,0.9999999900844323,0.99999999038880005,0.99999999073460566,0.9999999910429751,{"$f":"1-EXP(BQ74)/(1+EXP(BQ74))","v":0.99999999134072926},0.99999999160516395,0.99999999190589284,0.99999999217401825,0.99999999243296156,0.99999999266287376,0.99999999292459263,0.99999999315789667,0.99999999338325152,0.99999999358329394,0.99999999381122551,0.99999999401437523,0.99999999421063779,0.99999999440025489]
["Cardinia (S)",null,{"$f":"1-EXP(C75)/(1+EXP(C75))","v":0.12112445282321593},0.3482657077150173,0.83091614853564799,0.91119075952975992,0.32536868569741195,0.36425476859000161,0.62384480963356026,0.63780553146717911,0.94382693206394974,0.94702365290223578,0.76263960197514047,0.77616445805768652,0.92671658223588915,0.97786923590273389,0.44013860404039162,0.57486757035269709,0.74290993500513614,0.89273813923541567,0.9494403757893275,0.96424149376422996,0.97864695617331354,0.99315958382779146,0.99740888711419295,0.99856497663244004,0.99926088103259847,0.99952975566749369,0.99967024227920975,0.99975066018582137,0.99980680331218375,0.99986828766929148,0.99987007041214948,0.99990324497221961,{"$f":"1-EXP(AI75)/(1+EXP(AI75))","v":0.99990534113240337},0.99990713405712683,0.99990889058021448,0.99991036505426301,0.99991229758853784,0.99991394961075653,0.9999155683062495,0.99991692599245852,0.99991870859628218,0.99992023158843268,0.99992172404992508,0.99992297486253845,0.99992462000035831,0.99992602476108028,0.999927401535464,0.9999285544860621,0.99993007350995622,0.99993136986815334,0.99993264055686903,0.99993370384233515,0.99993510709843703,0.99993630400657274,0.99993747735640448,0.99993845843774998,0.99993975536179425,0.99994086097960511,0.99994194496416622,0.99994285063722188,0.99994404984039509,0.99994507161006763,0.99994607350299269,0.99994690996185853,0.99994801930800059,0.99994896402173705,{"$f":"1-EXP(BQ75)/(1+EXP(BQ75))","v":0.99994989046247729},0.99995066335651772,0.99995169003160111,0.9999525638923944,0.99995342094541051,0.99995413543049294,0.99995508600520155,0.99995589468154322,0.99995668788960101,0.99995734867419483,0.99995822916033239,0.99995897783549859,0.99995971226769176,0.99996043274664148]
["Casey (C)",null,{"$f":"1-EXP(C76)/(1+EXP(C76))","v":8.634837889157021E-2},0.31366582627250239,0.85701294078739332,0.93371172719603923,0.28812091407236406,0.33072323468597553,0.62877533680926412,0.64404682856097673,0.96087151235567303,0.96325024602610898,0.78009172205402577,0.79464454662880368,0.94493829827009834,0.98639443633513135,0.44284764736309368,0.59883963520523276,0.78286402912676623,0.92496482143634484,0.96944506828097221,0.97971813864357749,0.98893729673775899,0.99707969553946441,0.99905764526978746,0.99952622259280255,0.99978081631938731,0.99987037229064168,0.99991414198816808,0.99993794916255352,0.9999538201995547,0.99997039827093104,0.99997086376693545,0.99997933082064328,{"$f":"1-EXP(AI76)/(1+EXP(AI76))","v":0.99997984166265497},0.99998028505350933,0.99998071809013711,0.99998108903250016,0.99998155412494205,0.99998195761829778,0.99998235174816708,0.99998268914786526,0.99998311283735564,0.99998348024152894,0.9999838391722623,0.99998414624584231,0.99998453244027663,0.99998486717751467,0.99998519424152732,0.99998547387812187,0.99998582609368658,0.99998613124170144,0.99998642943649374,0.99998668423316617,0.99998700563601484,0.99998728396478587,0.99998755598865474,0.99998778828170587,0.99998808172493792,0.9999883357293512,0.99998858401307,0.99998879590579381,0.99998906396229581,0.99998929589111862,0.999989522626065,0.99998971601337971,0.9999899610050168,0.99999017288664171,{"$f":"1-EXP(BQ76)/(1+EXP(BQ76))","v":0.99999038004979535},0.99999055664011871,0.99999078066370584,0.99999097432904394,0.99999116370522079,0.99999132503991717,0.9999915299903448,0.99999170709320173,0.9999918802948482,0.99999202776553031,0.99999221535637417,0.99999237739160129,0.99999253587643055,0.99999269089321274]
["Frankston (C)",null,{"$f":"1-EXP(C77)/(1+EXP(C77))","v":0.69000999892311321},0.69000999892311321,0.66185749262748894,0.66411823600906028,0.68286704356414307,0.68383251143506363,0.68936320989669142,0.70283122905948514,0.71596296629890488,0.72328971246765783,0.72698706614716424,0.72792230059058938,0.74492256574312421,0.75994443114325194,0.52206921524716976,0.52138215241312702,0.52206921524716976,0.52206921524716976,0.52206921524716976,0.52138215241312702,0.52206921524716976,0.52206921524716976,0.52206921524716976,0.52138215241312702,0.52206921524716976,0.52206921524716976,0.52206921524716976,0.52138215241312702,0.52206921524716976,0.52206921524716976,0.52206921524716976,0.52138215241312702,{"$f":"1-EXP(AI77)/(1+EXP(AI77))","v":0.52206921524716976},0.52206921524716976,0.52206921524716976,0.52138215241312702,0.52206921524716976,0.52206921524716976,0.52206921524716976,0.52138215241312702,0.52206921524716976,0.52206921524716976,0.52206921524716976,0.52138215241312702,0.52206921524716976,0.52206921524716976,0.52206921524716976,0.52138215241312702,0.52206921524716976,0.52206921524716976,0.52206921524716976,0.52138215241312702,0.52206921524716976,0.52206921524716976,0.52206921524716976,0.52138215241312702,0.52206921524716976,0.52206921524716976,0.52206921524716976,0.52138215241312702,0.52206921524716976,0.52206921524716976,0.52206921524716976,0.52138215241312702,0.52206921524716976,0.52206921524716976,{"$f":"1-EXP(BQ77)/(1+EXP(BQ77))","v":0.52206921524716976},0.52138215241312702,0.52206921524716976,0.52206921524716976,0.52206921524716976,0.52138215241312702,0.52206921524716976,0.52206921524716976,0.52206921524716976,0.52138215241312702,0.52206921524716976,0.52206921524716976,0.52206921524716976,0.52206921524716976]
["Glen Eira (C)",null,{"$f":"1-EXP(C78)/(1+EXP(C78))","v":7.4186774378167453E-2},0.29703245349745699,0.86502146987751538,0.94039085169988479,0.27117447085120105,0.31467832495611392,0.62710530432040468,0.64260765856158875,0.96557583032074323,0.96772440501887069,0.78408616879895388,0.79915193168949783,0.95014217296197689,0.98860343470807754,0.44032874606238992,0.60470123266374287,0.79496056779082092,0.93412781109235643,0.97464599144289188,0.98357875341909295,0.99135165172519168,0.99788233563646156,0.99935815289741559,0.99968933672358862,0.99986221632010353,0.99992082616512579,0.99994872929552758,0.99996360348334212,0.99997334243927105,0.99998332319367866,0.99998359973401019,0.99998858488061837,{"$f":"1-EXP(AI78)/(1+EXP(AI78))","v":0.99998888062542746},0.99998913848405213,0.99998939001361953,0.99998960680166593,0.99998987474113854,0.9999901082555559,0.99999033607411358,0.99999053231161628,0.99999077520963497,0.9999909868095519,0.99999119327975028,0.99999137102562041,0.99999159135521598,0.99999178321367854,0.99999197044901922,0.99999213154394451,0.99999233151968547,0.99999250558175801,0.99999267547438531,0.99999282156528269,0.99999300317185358,0.9999931611799151,0.99999331542513326,0.99999344798671064,0.99999361300415324,0.99999375652022959,0.99999389663815386,0.99999401699193935,0.99999416701796651,0.99999429744346513,0.99999442479815848,0.99999453412931139,0.99999467059905145,0.99999478919221674,{"$f":"1-EXP(BQ78)/(1+EXP(BQ78))","v":0.99999490500861998},0.99999500438079558,0.99999512858427919,0.99999523647564537,0.99999534185456829,0.99999543222307319,0.99999554532073465,0.99999564352681836,0.99999573945822706,0.999995821681672,0.99999592471810206,0.999996014153546,0.99999610152834884,0.99999618689260972]
["Greater Dandenong (C)",null,{"$f":"1-EXP(C79)/(1+EXP(C79))","v":3.2561828638010271E-3},0.12557112141654103,0.98258672664827973,0.99769393720127519,9.1763623158406249E-2,0.13950957650976215,0.75059062967445733,0.77965564629942641,0.99936862551407057,0.99942422454307922,0.93207172067719102,0.94309667258780705,0.99806844735808808,0.99993092904838299,0.55564964610412182,0.84906469413532593,0.97869459038427453,0.99884842530200968,0.9998793016544576,0.99995560040465659,0.99998969880821265,0.99999958188643767,0.9999999721052838,0.99999999460616895,0.99999999913881221,0.99999999975294385,0.9999999999069743,0.99999999995698008,0.99999999997848976,0.99999999999251366,0.99999999999279321,0.99999999999685141,{"$f":"1-EXP(AI79)/(1+EXP(AI79))","v":0.99999999999702349},0.99999999999717826,0.9999999999973247,0.99999999999745648,0.99999999999759481,0.99999999999771916,0.99999999999783695,0.99999999999794287,0.99999999999805411,0.99999999999815425,0.99999999999824907,0.99999999999833433,0.99999999999842393,0.99999999999850464,0.99999999999858102,0.99999999999864975,0.99999999999872202,0.99999999999878708,0.99999999999884881,0.99999999999890421,0.99999999999896261,0.99999999999901523,0.99999999999906497,0.99999999999910982,0.99999999999915701,0.99999999999919953,0.99999999999923983,0.99999999999927602,0.99999999999931433,0.99999999999934863,0.99999999999938127,0.99999999999941069,0.99999999999944167,0.99999999999946954,{"$f":"1-EXP(BQ79)/(1+EXP(BQ79))","v":0.99999999999949596},0.99999999999951972,0.99999999999954492,0.99999999999956746,0.999999999999589,0.99999999999960831,0.99999999999962874,0.99999999999964706,0.99999999999966449,0.99999999999968014,0.9999999999996968,0.99999999999971168,0.99999999999972589,0.99999999999973932]
["Kingston (C)",null,{"$f":"1-EXP(C80)/(1+EXP(C80))","v":1.3547363012009539E-2},0.19719714682740275,0.95933859508114994,0.9911299513471048,0.1586512586144988,0.21303556663857737,0.71630534555915659,0.74168294796034062,0.99676305706521862,0.99701235794883425,0.89343615880550842,0.9066038999008692,0.99273378403314572,0.99943519718216811,0.52352388237760406,0.77578238966900748,0.94501551114842808,0.99385153957585781,0.99889524693858955,0.99948466298104954,0.99983108493156214,0.99998533413766366,0.99999814041990498,0.99999946898552372,0.99999986913409666,0.9999999495523807,0.99999997607266933,0.9999999867175341,0.99999999218469537,0.99999999650899063,0.99999999660879557,0.99999999819493446,{"$f":"1-EXP(AI80)/(1+EXP(AI80))","v":0.99999999827179076},0.99999999834071707,0.99999999840680331,0.99999999846595267,0.99999999853093491,0.99999999858920641,0.99999999864509104,0.99999999869510181,0.99999999875009959,0.99999999879941259,0.99999999884671742,0.99999999888904367,0.99999999893563651,0.99999999897740921,0.99999999901749026,0.99999999905334747,0.99999999909285775,0.99999999912827664,0.99999999916226934,0.99999999919267524,0.99999999922621063,0.99999999925627037,0.99999999928512617,0.99999999931093331,0.99999999933942341,0.99999999936495798,0.99999999938947548,0.99999999941139917,0.99999999943562445,0.99999999945733453,0.9999999994781843,0.99999999949682539,0.99999999951744234,0.99999999953591656,{"$f":"1-EXP(BQ80)/(1+EXP(BQ80))","v":0.9999999995536627},0.99999999956952645,0.9999999995870873,0.99999999960282149,0.99999999961793851,0.99999999963145014,0.99999999964642039,0.99999999965983188,0.99999999967272013,0.99999999968423781,0.99999999969700992,0.99999999970845099,0.99999999971944775,0.99999999973001807]
["Knox (C)",null,{"$f":"1-EXP(C81)/(1+EXP(C81))","v":1.4443607135586678E-2},0.19654752187279201,0.95542980177405767,0.98988219239652186,0.15960721826912949,0.21279941411423109,0.70514747994831706,0.72986359939171241,0.99617467521409442,0.99646794739675626,0.88572383556434986,0.89949520249470161,0.99163640803931763,0.99930991206662256,0.51144321889079825,0.76242631318604071,0.93884802666588507,0.99275042736377306,0.99864233434115257,0.99935532240162794,0.99978311120493457,0.99998004628191928,0.99999734342111724,0.99999921875181852,0.99999980104253761,0.99999992158452189,0.99999996216205134,0.99999997870990132,0.99999998732204842,0.99999999423028196,0.99999999439133802,0.99999999696899677,{"$f":"1-EXP(AI81)/(1+EXP(AI81))","v":0.99999999709521681},0.99999999720834842,0.99999999731692435,0.99999999741402401,0.99999999752116076,0.99999999761717684,0.99999999770934922,0.99999999779176529,0.99999999788279303,0.99999999796436267,0.99999999804268591,0.9999999981127069,0.99999999819012175,0.99999999825948493,0.9999999983261032,0.99999999838564979,0.99999999845154919,0.99999999851058763,0.99999999856730271,0.99999999861798883,0.9999999986741368,0.99999999872443324,0.99999999877276113,0.99999999881594437,0.99999999886382662,0.99999999890671354,0.99999999894793101,0.99999999898475467,0.99999999902562353,0.99999999906222437,0.99999999909740811,0.99999999912883586,0.99999999916374827,0.99999999919501104,{"$f":"1-EXP(BQ81)/(1+EXP(BQ81))","v":0.99999999922506966},0.99999999925191485,0.99999999928176364,0.99999999930848904,0.99999999933419026,0.99999999935714012,0.99999999938268047,0.99999999940554551,0.9999999994275387,0.99999999944717433,0.99999999946904539,0.99999999948862317,0.99999999950745821,0.9999999995255795]
["Manningham (C)",null,{"$f":"1-EXP(C82)/(1+EXP(C82))","v":1.0547490827141903E-2},0.19205796128750685,0.96886571847359693,0.99400714121501532,0.1502804067671889,0.20693182265913956,0.74234790761911795,0.7691576888223981,0.99801995469588489,0.99817564540827264,0.91180710314094193,0.92354892140446954,0.99517822020623625,0.99969012705669869,0.55223978031911036,0.80893145181802195,0.95956130570376919,0.99623288764620865,0.99940676963179353,0.99973865794832928,0.9999212129593088,0.9999943168508717,0.99999938368605013,0.99999983987059748,0.9999999644813532,0.99999998725031647,0.99999999427910391,0.99999999695988318,0.99999999827927211,0.99999999927618743,0.99999999929843852,0.99999999964422936,{"$f":"1-EXP(AI82)/(1+EXP(AI82))","v":0.99999999966043751},0.99999999967499342,0.99999999968890629,0.99999999970138431,0.9999999997149186,0.99999999972707265,0.9999999997386928,0.99999999974911358,0.9999999997604273,0.99999999977058662,0.99999999978030218,0.99999999978901399,0.99999999979848142,0.99999999980698218,0.99999999981511389,0.99999999982240462,0.99999999983033505,0.99999999983745536,0.99999999984426813,0.9999999998503758,0.99999999985702548,0.99999999986299537,0.99999999986870891,0.99999999987383048,0.99999999987941157,0.9999999998844219,0.99999999988921817,0.99999999989351707,0.99999999989820576,0.99999999990241473,0.99999999990644473,0.9999999999100565,0.99999999991399924,0.99999999991753818,{"$f":"1-EXP(BQ82)/(1+EXP(BQ82))","v":0.99999999992092758},0.99999999992396471,0.99999999992728317,0.99999999993026156,0.99999999993311472,0.99999999993567101,0.99999999993846644,0.99999999994097533,0.99999999994337907,0.99999999994553268,0.99999999994788957,0.99999999995000466,0.9999999999520317,0.99999999995397437]
["Maroondah (C)",null,{"$f":"1-EXP(C83)/(1+EXP(C83))","v":1.958473170220798E-2},0.21596805602896063,0.94699023276587291,0.98659538871478669,0.17881421075188519,0.23235940138343991,0.69821751984614733,0.72194719356283832,0.99461524987703676,0.9950147250620035,0.87515313109985815,0.88915123177443811,0.98897957975043127,0.99892620739901583,0.50556153851582231,0.7439621553392356,0.92596305616422436,0.98971153548172675,0.9978363091026583,0.99891907346002162,0.9996085457552103,0.99995766491798299,0.99999353934736213,0.99999793586714969,0.99999942352198778,0.99999975805982755,0.99999987738206997,0.99999992827377127,0.99999995578283485,0.99999997878006508,0.99999997933272888,0.99999998835258053,{"$f":"1-EXP(AI83)/(1+EXP(AI83))","v":0.99999998880743779},0.99999998921431255,0.99999998960585623,0.99999998995504846,0.99999999034532516,0.99999999069437773,0.99999999103035597,0.99999999132992834,0.99999999166510178,0.99999999196482492,0.99999999225338687,0.99999999251062544,0.99999999279873419,0.99999999305633069,0.9999999933043896,0.9999999935254742,0.99999999377334448,0.99999999399492956,0.9999999942083565,0.99999999439853449,0.99999999461196887,0.99999999480274038,0.99999999498652692,0.99999999515025839,0.99999999533419481,0.99999999549857521,0.99999999565696962,0.99999999579804988,0.99999999595669475,0.99999999609845081,0.9999999962350723,0.99999999635673398,0.99999999649367421,0.99999999661601746,{"$f":"1-EXP(BQ83)/(1+EXP(BQ83))","v":0.99999999673395257},0.99999999683895202,0.99999999695724917,0.99999999706292064,0.99999999716480426,0.99999999725549382,0.9999999973577639,0.99999999744910506,0.99999999753718838,0.9999999976155779,0.99999999770405812,0.99999999778307103,0.99999999785927984,0.9999999979327876]
["Melbourne (C)",null,{"$f":"1-EXP(C84)/(1+EXP(C84))","v":8.817858376808374E-8},3.0407671983888607E-3,0.99997460732876153,0.99999990696759977,1.1084198242850007E-3,4.049427553669771E-3,0.92548293385205838,0.94978284925932566,0.99999999700209352,0.99999999749198942,0.99832022934409181,0.99898167136709459,0.99999991006598221,0.99999999998947076,0.78445692960995839,0.99567431622632296,0.99998664068605747,0.99999999596511924,0.99999999999199085,0.99999999999949107,0.9999999999999909,1,1,1,1,1,1,1,1,1,1,1,{"$f":"1-EXP(AI84)/(1+EXP(AI84))","v":1},1,1,1,1,1,1,1,1,1,1,1,1,1,1,1,1,1,1,1,1,1,1,1,1,1,1,1,1,1,1,1,1,1,{"$f":"1-EXP(BQ84)/(1+EXP(BQ84))","v":1},1,1,1,1,1,1,1,1,1,1,1,1,1]
["Monash (C)",null,{"$f":"1-EXP(C85)/(1+EXP(C85))","v":7.1716327960789084E-3},0.15707226234362193,0.97009551732826793,0.99467917144372031,0.12192872512280939,0.17259180169589117,0.72028002716136352,0.74704783803351227,0.99824483660458441,0.99838915364541558,0.90680412187978199,0.91980576117792034,0.99554254921288321,0.99974776773033003,0.52447347756797025,0.8007569789034692,0.96072422420429915,0.99674037393037906,0.99953037256779076,0.99980128940091095,0.99994346130734724,0.9999964010748581,0.99999964892435544,0.99999991452511205,0.99999998236052945,0.99999999397513317,0.99999999740054402,0.99999999866132994,0.99999999926334948,0.99999999970294284,0.99999999971249642,0.99999999985879373,{"$f":"1-EXP(AI85)/(1+EXP(AI85))","v":0.99999999986550403},0.99999999987153376,0.99999999987728538,0.9999999998824487,0.99999999988800603,0.9999999998929997,0.99999999989776434,0.99999999990204125,0.99999999990664901,0.99999999991078925,0.99999999991474053,0.99999999991828725,0.99999999992211186,0.99999999992554811,0.9999999999288286,0.99999999993177291,0.9999999999349507,0.99999999993780586,0.99999999994053224,0.99999999994297906,0.99999999994562228,0.99999999994799704,0.99999999995026523,0.9999999999523006,0.99999999995450151,0.99999999995647859,0.99999999995836752,0.9999999999600625,0.9999999999618967,0.99999999996354449,0.99999999996511912,0.99999999996653188,0.9999999999680621,0.99999999996943667,{"$f":"1-EXP(BQ85)/(1+EXP(BQ85))","v":0.99999999997075062},0.99999999997192934,0.9999999999732071,0.99999999997435496,0.9999999999754523,0.99999999997643663,0.99999999997750466,0.99999999997846389,0.99999999997938127,0.99999999998020406,0.99999999998109756,0.99999999998190003,0.99999999998266753,0.99999999998340172]
["Port Phillip (C)",null,{"$f":"1-EXP(C86)/(1+EXP(C86))","v":4.587481924176573E-3},0.12100492111521666,0.97024271313417898,0.99510401637864077,9.3666792012505384E-2,0.1365099526230501,0.68586427137833983,0.71188546103477091,0.99836055996046758,0.99850234933090742,0.89681775007275077,0.91185040522291705,0.99566981904167295,0.9997845322838006,0.48414685717021499,0.78421929533973622,0.96008062515197679,0.9970477137701278,0.99961128614578731,0.99984217604450054,0.99995766307876832,0.99999762540395665,0.99999979191723087,0.99999995257981422,0.9999999909056082,0.99999999704728648,0.99999999877615986,0.99999999938975792,0.99999999967379671,0.99999999987401311,0.99999999987824462,0.99999999994209521,{"$f":"1-EXP(AI86)/(1+EXP(AI86))","v":0.99999999994496114},0.9999999999475373,0.99999999994998956,0.99999999995219258,0.99999999995454647,0.99999999995666244,0.99999999995867717,0.99999999996048705,0.99999999996242273,0.99999999996416278,0.99999999996582001,0.99999999996730871,0.99999999996890221,0.99999999997033462,0.9999999999716993,0.9999999999729251,0.9999999999742385,0.99999999997541911,0.9999999999765441,0.99999999997755451,0.9999999999786382,0.9999999999796122,0.99999999998054057,0.99999999998137445,0.99999999998226941,0.99999999998307387,0.99999999998384093,0.99999999998452971,0.99999999998526967,0.99999999998593481,0.99999999998656908,0.99999999998713873,0.99999999998775113,0.99999999998830147,{"$f":"1-EXP(BQ86)/(1+EXP(BQ86))","v":0.9999999999888266},0.99999999998929812,0.99999999998980538,0.99999999999026146,0.99999999999069644,0.99999999999108713,0.9999999999915079,0.99999999999188594,0.99999999999224676,0.99999999999257083,0.99999999999292,0.99999999999323386,0.99999999999353339,0.99999999999381939]
["South Gippsland (S)",null,{"$f":"1-EXP(C87)/(1+EXP(C87))","v":1.2752952818201324E-3},8.8993373119761521E-2,0.98939234559138756,0.99896187798426361,6.1466316523394182E-2,0.10116905225470285,0.76149290293684446,0.79225507740955958,0.99975777154398415,0.99978086649464049,0.94652341032707121,0.95644404356438451,0.99910660276720387,0.99998017382848592,0.56389732423508909,0.87880819270589083,0.9877283749205964,0.99957221071507263,0.99996779552819015,0.99998977022920565,0.99999808267574331,0.99999995131714137,0.99999999781481097,0.99999999966790831,0.99999999995944722,0.99999999999030875,0.99999999999683664,0.9999999999986936,0.99999999999940947,0.99999999999982392,0.99999999999983136,0.99999999999993483,{"$f":"1-EXP(AI87)/(1+EXP(AI87))","v":0.99999999999993883},0.99999999999994249,0.99999999999994582,0.99999999999994893,0.99999999999995204,0.99999999999995492,0.99999999999995759,0.99999999999995992,0.99999999999996247,0.99999999999996458,0.99999999999996669,0.99999999999996858,0.99999999999997047,0.99999999999997224,0.9999999999999738,0.99999999999997524,0.9999999999999768,0.99999999999997813,0.99999999999997946,0.99999999999998057,0.99999999999998168,0.99999999999998279,0.99999999999998379,0.99999999999998468,0.99999999999998557,0.99999999999998646,0.99999999999998723,0.9999999999999879,0.99999999999998868,0.99999999999998923,0.9999999999999899,0.99999999999999045,0.99999999999999101,0.99999999999999156,{"$f":"1-EXP(BQ87)/(1+EXP(BQ87))","v":0.99999999999999201},0.99999999999999245,0.99999999999999289,0.99999999999999334,0.99999999999999367,0.999999999999994,0.99999999999999434,0.99999999999999467,0.999999999999995,0.99999999999999523,0.99999999999999556,0.99999999999999578,0.999999999999996,0.99999999999999623]
["Stonnington (C)",null,{"$f":"1-EXP(C88)/(1+EXP(C88))","v":1.7836441719488283E-2},0.19906949119533646,0.94306311391957298,0.98550018751521562,0.16579894284080166,0.21631641375017574,0.67718119107408459,0.69983400821755137,0.99397685729731144,0.99443039597689775,0.86376252531517528,0.87896625975299392,0.98777765719376232,0.99880167985869805,0.48255730316109335,0.72570811646426181,0.91906548516927267,0.98862972237776203,0.99759914748159728,0.99879962381813503,0.99956455813461009,0.9999526663173538,0.99999274685940553,0.99999767804926876,0.99999934997989559,0.99999972686308125,0.99999986147665554,0.99999991894656914,0.99999995002654807,0.99999997599702417,0.99999997662040452,0.99999998680224444,{"$f":"1-EXP(AI88)/(1+EXP(AI88))","v":0.99999998731629913},0.99999998777608412,0.99999998821859137,0.99999998861318506,0.99999998905444165,0.99999998944905222,0.99999998982892191,0.99999999016758656,0.99999999054670197,0.99999999088568725,0.99999999121208338,0.99999999150301155,0.99999999182902888,0.99999999212049095,0.99999999240119075,0.9999999926513341,0.99999999293193564,0.99999999318275634,0.99999999342436752,0.99999999363963088,0.99999999388134975,0.99999999409738072,0.99999999430552333,0.99999999449092813,0.99999999469932599,0.99999999488554814,0.99999999506500747,0.99999999522482808,0.99999999540464479,0.99999999556530228,0.99999999572015641,0.99999999585803512,0.99999999601331424,0.99999999615202706,{"$f":"1-EXP(BQ88)/(1+EXP(BQ88))","v":0.99999999628575542},0.9999999964047992,0.99999999653899319,0.99999999665885209,0.99999999677442619,0.99999999687728758,0.99999999699334785,0.99999999709699428,0.9999999971969542,0.99999999728590028,0.9999999973863517,0.99999999747604507,0.99999999756256419,0.99999999764602499]
["Whitehorse (C)",null,{"$f":"1-EXP(C89)/(1+EXP(C89))","v":1.2162360229452163E-2},0.18886475459097984,0.96091506354010148,0.99173328767698854,0.15120622178972665,0.2047780600933663,0.71481896385401567,0.74033930109704604,0.99701963464575005,0.99725194304417564,0.89461053389378742,0.90788908832170978,0.99318681962205801,0.99949547501010172,0.52124789546963468,0.7780767977988654,0.94727272392580542,0.9943652251458639,0.99902119789154675,0.99955021194173654,0.99985573316846976,0.9999880540264775,0.99999854476217387,0.99999959446859554,0.99999990273565609,0.99999996319473738,0.99999998279532754,0.99999999055913402,0.99999999450212007,0.99999999758242175,0.99999999765285463,0.99999999876586709,{"$f":"1-EXP(AI89)/(1+EXP(AI89))","v":0.99999999881934476},0.99999999886732449,0.99999999891329105,0.99999999895445701,0.9999999989995304,0.99999999903996617,0.99999999907871528,0.99999999911341264,0.99999999915144122,0.99999999918555393,0.99999999921825189,0.99999999924752681,0.99999999927964356,0.99999999930845052,0.99999999933606953,0.99999999936079376,0.99999999938794415,0.99999999941229423,0.99999999943564577,0.99999999945654683,0.99999999947952056,0.99999999950012286,0.99999999951988494,0.99999999953757057,0.99999999955702834,0.99999999957447572,0.99999999959121555,0.99999999960619423,0.99999999962268893,0.99999999963747799,0.99999999965167041,0.99999999966436803,0.99999999967836317,0.99999999969091002,{"$f":"1-EXP(BQ89)/(1+EXP(BQ89))","v":0.99999999970295328},0.99999999971372655,0.99999999972561127,0.99999999973626508,0.99999999974649334,0.9999999997556418,0.99999999976574283,0.99999999977479681,0.99999999978349097,0.99999999979126608,0.99999999979985821,0.99999999980755894,0.99999999981495502,0.99999999982205912]
["Yarra Ranges (S)",null,{"$f":"1-EXP(C90)/(1+EXP(C90))","v":2.3362131230360683E-2},0.25667612303695775,0.95641857695576216,0.98932308859257811,0.20944349699102016,0.27027077152045187,0.74566898168037232,0.7711479737626491,0.99607280288458677,0.99635511269207755,0.90022884131173209,0.91161725791001569,0.99172082326105337,0.99922385658679758,0.56060668520345103,0.78635477272527754,0.94185484034740352,0.99228950300345398,0.99842037688439667,0.99921816745496361,0.99972100190679869,0.99997088749546015,0.9999956872179494,0.99999864513625802,0.99999962877783655,0.9999998460744367,0.99999992267304383,0.99999995505430284,0.99999997244077998,0.99999998690332148,0.99999998725028982,0.99999999288653663,{"$f":"1-EXP(AI90)/(1+EXP(AI90))","v":0.99999999316875365},0.99999999342133594,0.99999999366424419,0.99999999388103755,0.99999999412256002,0.99999999433868947,0.99999999454658994,0.99999999473210144,0.99999999493899028,0.99999999512410065,0.99999999530220396,0.99999999546109475,0.99999999563847819,0.99999999579716592,0.99999999594988109,0.9999999960860948,0.99999999623831626,0.99999999637447412,0.99999999650553628,0.9999999966224129,0.99999999675315532,0.9999999968700839,0.9999999969826604,0.99999999708303189,0.99999999719542154,0.99999999729592182,0.99999999739270184,0.99999999747897206,0.99999999757566538,0.99999999766211722,0.99999999774538595,0.99999999781959725,0.99999999790285388,0.99999999797728156,{"$f":"1-EXP(BQ90)/(1+EXP(BQ90))","v":0.99999999804898299},0.99999999811287266,0.99999999818461649,0.99999999824874297,0.99999999831053277,0.99999999836557973,0.99999999842745069,0.99999999848274457,0.99999999853603383,0.99999999858349842,0.99999999863689537,0.99999999868460931,0.99999999873060197,0.99999999877493739]
[]
["LGA S curves (number of disconnections)",2020,{"$f":"B114+1","v":2021},2022,2023,2024,2025,2026,2027,2028,2029,2030,2031,2032,2033,2034,2035,2036,2037,2038,2039,2040,2041,2042,2043,2044,2045,2046,2047,2048,2049,2050,2051,2052,2053,2054,2055,2056,2057,2058,2059,2060,2061,2062,2063,2064,2065,2066,2067,2068,2069,2070,2071,2072,2073,2074,2075,2076,2077,2078,2079,2080,2081,2082,2083,2084,{"$f":"BN114+1","v":2085},2086,2087,2088,2089,2090,2091,2092,2093,2094,2095,2096,2097,2098,2099,2100]
["Bass Coast (S)",null,{"$f":"(INT(C94*C30)+AVERAGE(CustomersCOM!$H49:$J49))","v":0.66666666666666663},{"$f":"MAX((INT(D94*D30)+Control!$K$18*CustomersCOM!K3),0)","v":0.29166666666666669},{"$f":"MAX((INT(E94*E30)+Control!$K$18*CustomersCOM!L3),0)","v":2.2952083333333335},{"$f":"MAX((INT(F94*F30)+Control!$K$18*CustomersCOM!M3),0)","v":2.2837322916666665},{"$f":"MAX((INT(G94*G30)+Control!$K$18*CustomersCOM!N3),0)","v":0.27231363020833338},{"$f":"MAX((INT(H94*H30)+Control!$K$18*CustomersCOM!O3),0)","v":0.27595206205729172},{"$f":"MAX((INT(I94*I30)+Control!$K$18*CustomersCOM!P3),0)","v":2.2745723017470052},{"$f":"MAX((INT(J94*J30)+Control!$K$18*CustomersCOM!Q3),0)","v":2.26319944023827},{"$f":"MAX((INT(K94*K30)+Control!$K$18*CustomersCOM!R3),0)","v":2.2518834430370789},{"$f":"MAX((INT(L94*L30)+Control!$K$18*CustomersCOM!S3),0)","v":2.2406240258218935},{"$f":"MAX((INT(M94*M30)+Control!$K$18*CustomersCOM!T3),0)","v":2.2294209056927841},{"$f":"MAX((INT(N94*N30)+Control!$K$18*CustomersCOM!U3),0)","v":1.2182738011643202},{"$f":"MAX((INT(O94*O30)+Control!$K$18*CustomersCOM!V3),0)","v":1.2121824321584984},{"$f":"MAX((INT(P94*P30)+Control!$K$18*CustomersCOM!W3),0)","v":1.206121519997706},{"$f":"MAX((INT(Q94*Q30)+Control!$K$18*CustomersCOM!X3),0)","v":1.2000909123977175},{"$f":"MAX((INT(R94*R30)+Control!$K$18*CustomersCOM!Y3),0)","v":1.1940904578357288},{"$f":"MAX((INT(S94*S30)+Control!$K$18*CustomersCOM!Z3),0)","v":1.1881200055465502},{"$f":"MAX((INT(T94*T30)+Control!$K$18*CustomersCOM!AA3),0)","v":1.1821794055188175},{"$f":"MAX((INT(U94*U30)+Control!$K$18*CustomersCOM!AB3),0)","v":1.1762685084912234},{"$f":"MAX((INT(V94*V30)+Control!$K$18*CustomersCOM!AC3),0)","v":1.1703871659487672},{"$f":"MAX((INT(W94*W30)+Control!$K$18*CustomersCOM!AD3),0)","v":1.1645352301190233},{"$f":"MAX((INT(X94*X30)+Control!$K$18*CustomersCOM!AE3),0)","v":1.1587125539684282},{"$f":"MAX((INT(Y94*Y30)+Control!$K$18*CustomersCOM!AF3),0)","v":1.1529189911985862},{"$f":"MAX((INT(Z94*Z30)+Control!$K$18*CustomersCOM!AG3),0)","v":0.14715439624259319},{"$f":"MAX((INT(AA94*AA30)+Control!$K$18*CustomersCOM!AH3),0)","v":0.14641862426138022},{"$f":"MAX((INT(AB94*AB30)+Control!$K$18*CustomersCOM!AI3),0)","v":1.1456865311400732},{"$f":"MAX((INT(AC94*AC30)+Control!$K$18*CustomersCOM!AJ3),0)","v":1.1399580984843729},{"$f":"MAX((INT(AD94*AD30)+Control!$K$18*CustomersCOM!AK3),0)","v":1.134258307991951},{"$f":"MAX((INT(AE94*AE30)+Control!$K$18*CustomersCOM!AL3),0)","v":1.1285870164519913},{"$f":"MAX((INT(AF94*AF30)+Control!$K$18*CustomersCOM!AM3),0)","v":1.1229440813697313},{"$f":"MAX((INT(AG94*AG30)+Control!$K$18*CustomersCOM!AN3),0)","v":1.1173293609628827},{"$f":"MAX((INT(AH94*AH30)+Control!$K$18*CustomersCOM!AO3),0)","v":1.1117427141580682},{"$f":"MAX((INT(AI94*AI30)+Control!$K$18*CustomersCOM!AP3),0)","v":1.1061840005872781},{"$f":"MAX((INT(AJ94*AJ30)+Control!$K$18*CustomersCOM!AQ3),0)","v":1.1006530805843415},{"$f":"MAX((INT(AK94*AK30)+Control!$K$18*CustomersCOM!AR3),0)","v":1.0951498151814199},{"$f":"MAX((INT(AL94*AL30)+Control!$K$18*CustomersCOM!AS3),0)","v":1.0896740661055129},{"$f":"MAX((INT(AM94*AM30)+Control!$K$18*CustomersCOM!AT3),0)","v":1.0842256957749852},{"$f":"MAX((INT(AN94*AN30)+Control!$K$18*CustomersCOM!AU3),0)","v":1.0788045672961102},{"$f":"MAX((INT(AO94*AO30)+Control!$K$18*CustomersCOM!AV3),0)","v":7.3410544459629731E-2},{"$f":"MAX((INT(AP94*AP30)+Control!$K$18*CustomersCOM!AW3),0)","v":7.3043491737331587E-2},{"$f":"MAX((INT(AQ94*AQ30)+Control!$K$18*CustomersCOM!AX3),0)","v":7.2678274278644914E-2},{"$f":"MAX((INT(AR94*AR30)+Control!$K$18*CustomersCOM!AY3),0)","v":7.2314882907251701E-2},{"$f":"MAX((INT(AS94*AS30)+Control!$K$18*CustomersCOM!AZ3),0)","v":7.1953308492715445E-2},{"$f":"MAX((INT(AT94*AT30)+Control!$K$18*CustomersCOM!BA3),0)","v":7.1593541950251874E-2},{"$f":"MAX((INT(AU94*AU30)+Control!$K$18*CustomersCOM!BB3),0)","v":7.1235574240500615E-2},{"$f":"MAX((INT(AV94*AV30)+Control!$K$18*CustomersCOM!BC3),0)","v":7.0879396369298103E-2},{"$f":"MAX((INT(AW94*AW30)+Control!$K$18*CustomersCOM!BD3),0)","v":7.0524999387451617E-2},{"$f":"MAX((INT(AX94*AX30)+Control!$K$18*CustomersCOM!BE3),0)","v":7.0172374390514367E-2},{"$f":"MAX((INT(AY94*AY30)+Control!$K$18*CustomersCOM!BF3),0)","v":6.9821512518561793E-2},{"$f":"MAX((INT(AZ94*AZ30)+Control!$K$18*CustomersCOM!BG3),0)","v":6.9472404955968972E-2},{"$f":"MAX((INT(BA94*BA30)+Control!$K$18*CustomersCOM!BH3),0)","v":6.9125042931189137E-2},{"$f":"MAX((INT(BB94*BB30)+Control!$K$18*CustomersCOM!BI3),0)","v":6.8779417716533189E-2},{"$f":"MAX((INT(BC94*BC30)+Control!$K$18*CustomersCOM!BJ3),0)","v":6.8435520627950525E-2},{"$f":"MAX((INT(BD94*BD30)+Control!$K$18*CustomersCOM!BK3),0)","v":6.8093343024810779E-2},{"$f":"MAX((INT(BE94*BE30)+Control!$K$18*CustomersCOM!BL3),0)","v":6.7752876309686724E-2},{"$f":"MAX((INT(BF94*BF30)+Control!$K$18*CustomersCOM!BM3),0)","v":6.7414111928138287E-2},{"$f":"MAX((INT(BG94*BG30)+Control!$K$18*CustomersCOM!BN3),0)","v":6.7077041368497584E-2},{"$f":"MAX((INT(BH94*BH30)+Control!$K$18*CustomersCOM!BO3),0)","v":6.6741656161655102E-2},{"$f":"MAX((INT(BI94*BI30)+Control!$K$18*CustomersCOM!BP3),0)","v":6.6407947880846821E-2},{"$f":"MAX((INT(BJ94*BJ30)+Control!$K$18*CustomersCOM!BQ3),0)","v":6.6075908141442583E-2},{"$f":"MAX((INT(BK94*BK30)+Control!$K$18*CustomersCOM!BR3),0)","v":6.5745528600735376E-2},{"$f":"MAX((INT(BL94*BL30)+Control!$K$18*CustomersCOM!BS3),0)","v":6.5416800957731697E-2},{"$f":"MAX((INT(BM94*BM30)+Control!$K$18*CustomersCOM!BT3),0)","v":6.5089716952943036E-2},{"$f":"MAX((INT(BN94*BN30)+Control!$K$18*CustomersCOM!BU3),0)","v":6.4764268368178321E-2},{"$f":"MAX((INT(BO94*BO30)+Control!$K$18*CustomersCOM!BV3),0)","v":6.444044702633743E-2},{"$f":"MAX((INT(BP94*BP30)+Control!$K$18*CustomersCOM!BW3),0)","v":6.4118244791205745E-2},{"$f":"MAX((INT(BQ94*BQ30)+Control!$K$18*CustomersCOM!BX3),0)","v":6.3797653567249715E-2},{"$f":"MAX((INT(BR94*BR30)+Control!$K$18*CustomersCOM!BY3),0)","v":6.347866529941347E-2},{"$f":"MAX((INT(BS94*BS30)+Control!$K$18*CustomersCOM!BZ3),0)","v":6.3161271972916405E-2},{"$f":"MAX((INT(BT94*BT30)+Control!$K$18*CustomersCOM!CA3),0)","v":6.2845465613051821E-2},{"$f":"MAX((INT(BU94*BU30)+Control!$K$18*CustomersCOM!CB3),0)","v":6.2531238284986565E-2},{"$f":"MAX((INT(BV94*BV30)+Control!$K$18*CustomersCOM!CC3),0)","v":6.2218582093561632E-2},{"$f":"MAX((INT(BW94*BW30)+Control!$K$18*CustomersCOM!CD3),0)","v":6.1907489183093814E-2},{"$f":"MAX((INT(BX94*BX30)+Control!$K$18*CustomersCOM!CE3),0)","v":6.1597951737178351E-2},{"$f":"MAX((INT(BY94*BY30)+Control!$K$18*CustomersCOM!CF3),0)","v":6.1289961978492458E-2},{"$f":"MAX((INT(BZ94*BZ30)+Control!$K$18*CustomersCOM!CG3),0)","v":6.0983512168599992E-2},{"$f":"MAX((INT(CA94*CA30)+Control!$K$18*CustomersCOM!CH3),0)","v":6.0678594607757E-2},{"$f":"MAX((INT(CB94*CB30)+Control!$K$18*CustomersCOM!CI3),0)","v":6.0375201634718219E-2},{"$f":"MAX((INT(CC94*CC30)+Control!$K$18*CustomersCOM!CJ3),0)","v":6.0073325626544626E-2},{"$f":"MAX((INT(CD94*CD30)+Control!$K$18*CustomersCOM!CK3),0)","v":5.9772958998411896E-2}]
["Bayside (C)",null,{"$f":"(INT(C95*C31)+AVERAGE(CustomersCOM!$H50:$J50))","v":23.666666666666668},{"$f":"MAX((INT(D95*D31)+Control!$K$18*CustomersCOM!K4),0)","v":15.591666666666667},{"$f":"MAX((INT(E95*E31)+Control!$K$18*CustomersCOM!L4),0)","v":45.538708333333332},{"$f":"MAX((INT(F95*F31)+Control!$K$18*CustomersCOM!M4),0)","v":45.311014791666665},{"$f":"MAX((INT(G95*G31)+Control!$K$18*CustomersCOM!N4),0)","v":12.084459717708333},{"$f":"MAX((INT(H95*H31)+Control!$K$18*CustomersCOM!O4),0)","v":14.049037419119792},{"$f":"MAX((INT(I95*I31)+Control!$K$18*CustomersCOM!P4),0)","v":27.998792232024194},{"$f":"MAX((INT(J95*J31)+Control!$K$18*CustomersCOM!Q4),0)","v":27.86379827086407},{"$f":"MAX((INT(K95*K31)+Control!$K$18*CustomersCOM!R4),0)","v":37.729479279509754},{"$f":"MAX((INT(L95*L31)+Control!$K$18*CustomersCOM!S4),0)","v":34.540831883112205},{"$f":"MAX((INT(M95*M31)+Control!$K$18*CustomersCOM!T4),0)","v":27.368127723696642},{"$f":"MAX((INT(N95*N31)+Control!$K$18*CustomersCOM!U4),0)","v":26.231287085078158},{"$f":"MAX((INT(O95*O31)+Control!$K$18*CustomersCOM!V4),0)","v":29.100130649652765},{"$f":"MAX((INT(P95*P31)+Control!$K$18*CustomersCOM!W4),0)","v":26.954629996404503},{"$f":"MAX((INT(Q95*Q31)+Control!$K$18*CustomersCOM!X4),0)","v":12.81985684642248},{"$f":"MAX((INT(R95*R31)+Control!$K$18*CustomersCOM!Y4),0)","v":16.755757562190368},{"$f":"MAX((INT(S95*S31)+Control!$K$18*CustomersCOM!Z4),0)","v":20.671978774379415},{"$f":"MAX((INT(T95*T31)+Control!$K$18*CustomersCOM!AA4),0)","v":20.568618880507518},{"$f":"MAX((INT(U95*U31)+Control!$K$18*CustomersCOM!AB4),0)","v":19.465775786104981},{"$f":"MAX((INT(V95*V31)+Control!$K$18*CustomersCOM!AC4),0)","v":18.368446907174455},{"$f":"MAX((INT(W95*W31)+Control!$K$18*CustomersCOM!AD4),0)","v":17.276604672638584},{"$f":"MAX((INT(X95*X31)+Control!$K$18*CustomersCOM!AE4),0)","v":15.190221649275392},{"$f":"MAX((INT(Y95*Y31)+Control!$K$18*CustomersCOM!AF4),0)","v":14.114270541029015},{"$f":"MAX((INT(Z95*Z31)+Control!$K$18*CustomersCOM!AG4),0)","v":13.043699188323869},{"$f":"MAX((INT(AA95*AA31)+Control!$K$18*CustomersCOM!AH4),0)","v":12.97848069238225},{"$f":"MAX((INT(AB95*AB31)+Control!$K$18*CustomersCOM!AI4),0)","v":11.913588288920339},{"$f":"MAX((INT(AC95*AC31)+Control!$K$18*CustomersCOM!AJ4),0)","v":10.854020347475737},{"$f":"MAX((INT(AD95*AD31)+Control!$K$18*CustomersCOM!AK4),0)","v":9.799750245738359},{"$f":"MAX((INT(AE95*AE31)+Control!$K$18*CustomersCOM!AL4),0)","v":9.7507514945096663},{"$f":"MAX((INT(AF95*AF31)+Control!$K$18*CustomersCOM!AM4),0)","v":8.701997737037118},{"$f":"MAX((INT(AG95*AG31)+Control!$K$18*CustomersCOM!AN4),0)","v":7.6584877483519325},{"$f":"MAX((INT(AH95*AH31)+Control!$K$18*CustomersCOM!AO4),0)","v":7.6201953096101729},{"$f":"MAX((INT(AI95*AI31)+Control!$K$18*CustomersCOM!AP4),0)","v":6.5820943330621224},{"$f":"MAX((INT(AJ95*AJ31)+Control!$K$18*CustomersCOM!AQ4),0)","v":6.5491838613968119},{"$f":"MAX((INT(AK95*AK31)+Control!$K$18*CustomersCOM!AR4),0)","v":5.5164379420898273},{"$f":"MAX((INT(AL95*AL31)+Control!$K$18*CustomersCOM!AS4),0)","v":5.4888557523793784},{"$f":"MAX((INT(AM95*AM31)+Control!$K$18*CustomersCOM!AT4),0)","v":5.4614114736174812},{"$f":"MAX((INT(AN95*AN31)+Control!$K$18*CustomersCOM!AU4),0)","v":4.4341044162493937},{"$f":"MAX((INT(AO95*AO31)+Control!$K$18*CustomersCOM!AV4),0)","v":4.411933894168147},{"$f":"MAX((INT(AP95*AP31)+Control!$K$18*CustomersCOM!AW4),0)","v":4.3898742246973059},{"$f":"MAX((INT(AQ95*AQ31)+Control!$K$18*CustomersCOM!AX4),0)","v":3.3679248535738195},{"$f":"MAX((INT(AR95*AR31)+Control!$K$18*CustomersCOM!AY4),0)","v":3.3510852293059505},{"$f":"MAX((INT(AS95*AS31)+Control!$K$18*CustomersCOM!AZ4),0)","v":3.3343298031594211},{"$f":"MAX((INT(AT95*AT31)+Control!$K$18*CustomersCOM!BA4),0)","v":3.3176581541436239},{"$f":"MAX((INT(AU95*AU31)+Control!$K$18*CustomersCOM!BB4),0)","v":3.3010698633729056},{"$f":"MAX((INT(AV95*AV31)+Control!$K$18*CustomersCOM!BC4),0)","v":2.2845645140560409},{"$f":"MAX((INT(AW95*AW31)+Control!$K$18*CustomersCOM!BD4),0)","v":2.273141691485761},{"$f":"MAX((INT(AX95*AX31)+Control!$K$18*CustomersCOM!BE4),0)","v":2.2617759830283322},{"$f":"MAX((INT(AY95*AY31)+Control!$K$18*CustomersCOM!BF4),0)","v":2.2504671031131904},{"$f":"MAX((INT(AZ95*AZ31)+Control!$K$18*CustomersCOM!BG4),0)","v":2.2392147675976246},{"$f":"MAX((INT(BA95*BA31)+Control!$K$18*CustomersCOM!BH4),0)","v":2.2280186937596365},{"$f":"MAX((INT(BB95*BB31)+Control!$K$18*CustomersCOM!BI4),0)","v":1.2168786002908383},{"$f":"MAX((INT(BC95*BC31)+Control!$K$18*CustomersCOM!BJ4),0)","v":1.210794207289384},{"$f":"MAX((INT(BD95*BD31)+Control!$K$18*CustomersCOM!BK4),0)","v":1.2047402362529371},{"$f":"MAX((INT(BE95*BE31)+Control!$K$18*CustomersCOM!BL4),0)","v":1.1987165350716724},{"$f":"MAX((INT(BF95*BF31)+Control!$K$18*CustomersCOM!BM4),0)","v":1.1927229523963141},{"$f":"MAX((INT(BG95*BG31)+Control!$K$18*CustomersCOM!BN4),0)","v":1.1867593376343324},{"$f":"MAX((INT(BH95*BH31)+Control!$K$18*CustomersCOM!BO4),0)","v":1.1808255409461608},{"$f":"MAX((INT(BI95*BI31)+Control!$K$18*CustomersCOM!BP4),0)","v":1.1749214132414298},{"$f":"MAX((INT(BJ95*BJ31)+Control!$K$18*CustomersCOM!BQ4),0)","v":1.1690468061752228},{"$f":"MAX((INT(BK95*BK31)+Control!$K$18*CustomersCOM!BR4),0)","v":1.1632015721443467},{"$f":"MAX((INT(BL95*BL31)+Control!$K$18*CustomersCOM!BS4),0)","v":1.1573855642836248},{"$f":"MAX((INT(BM95*BM31)+Control!$K$18*CustomersCOM!BT4),0)","v":1.1515986364622068},{"$f":"MAX((INT(BN95*BN31)+Control!$K$18*CustomersCOM!BU4),0)","v":0.14584064327989577},{"$f":"MAX((INT(BO95*BO31)+Control!$K$18*CustomersCOM!BV4),0)","v":0.14511144006349627},{"$f":"MAX((INT(BP95*BP31)+Control!$K$18*CustomersCOM!BW4),0)","v":0.1443858828631788},{"$f":"MAX((INT(BQ95*BQ31)+Control!$K$18*CustomersCOM!BX4),0)","v":0.1436639534488629},{"$f":"MAX((INT(BR95*BR31)+Control!$K$18*CustomersCOM!BY4),0)","v":0.14294563368161861},{"$f":"MAX((INT(BS95*BS31)+Control!$K$18*CustomersCOM!BZ4),0)","v":0.14223090551321049},{"$f":"MAX((INT(BT95*BT31)+Control!$K$18*CustomersCOM!CA4),0)","v":0.14151975098564445},{"$f":"MAX((INT(BU95*BU31)+Control!$K$18*CustomersCOM!CB4),0)","v":0.14081215223071625},{"$f":"MAX((INT(BV95*BV31)+Control!$K$18*CustomersCOM!CC4),0)","v":0.14010809146956266},{"$f":"MAX((INT(BW95*BW31)+Control!$K$18*CustomersCOM!CD4),0)","v":0.13940755101221483},{"$f":"MAX((INT(BX95*BX31)+Control!$K$18*CustomersCOM!CE4),0)","v":0.13871051325715375},{"$f":"MAX((INT(BY95*BY31)+Control!$K$18*CustomersCOM!CF4),0)","v":0.138016960690868},{"$f":"MAX((INT(BZ95*BZ31)+Control!$K$18*CustomersCOM!CG4),0)","v":0.13732687588741366},{"$f":"MAX((INT(CA95*CA31)+Control!$K$18*CustomersCOM!CH4),0)","v":0.13664024150797657},{"$f":"MAX((INT(CB95*CB31)+Control!$K$18*CustomersCOM!CI4),0)","v":0.1359570403004367},{"$f":"MAX((INT(CC95*CC31)+Control!$K$18*CustomersCOM!CJ4),0)","v":0.13527725509893451},{"$f":"MAX((INT(CD95*CD31)+Control!$K$18*CustomersCOM!CK4),0)","v":0.13460086882343986}]
["Boroondara (C)",null,{"$f":"(INT(C96*C32)+AVERAGE(CustomersCOM!$H51:$J51))","v":43.333333333333336},{"$f":"MAX((INT(D96*D32)+Control!$K$18*CustomersCOM!K5),0)","v":27.033333333333335},{"$f":"MAX((INT(E96*E32)+Control!$K$18*CustomersCOM!L5),0)","v":92.963166666666666},{"$f":"MAX((INT(F96*F32)+Control!$K$18*CustomersCOM!M5),0)","v":90.498350833333333},{"$f":"MAX((INT(G96*G32)+Control!$K$18*CustomersCOM!N5),0)","v":20.045859079166668},{"$f":"MAX((INT(H96*H32)+Control!$K$18*CustomersCOM!O5),0)","v":24.005629783770836},{"$f":"MAX((INT(I96*I32)+Control!$K$18*CustomersCOM!P5),0)","v":58.935601634851977},{"$f":"MAX((INT(J96*J32)+Control!$K$18*CustomersCOM!Q5),0)","v":57.650923626677724},{"$f":"MAX((INT(K96*K32)+Control!$K$18*CustomersCOM!R5),0)","v":75.372669008544335},{"$f":"MAX((INT(L96*L32)+Control!$K$18*CustomersCOM!S5),0)","v":69.995805663501613},{"$f":"MAX((INT(M96*M32)+Control!$K$18*CustomersCOM!T5),0)","v":56.6458266351841},{"$f":"MAX((INT(N96*N32)+Control!$K$18*CustomersCOM!U5),0)","v":54.362597502008185},{"$f":"MAX((INT(O96*O32)+Control!$K$18*CustomersCOM!V5),0)","v":57.090784514498139},{"$f":"MAX((INT(P96*P32)+Control!$K$18*CustomersCOM!W5),0)","v":52.805330591925653},{"$f":"MAX((INT(Q96*Q32)+Control!$K$18*CustomersCOM!X5),0)","v":25.541303938966021},{"$f":"MAX((INT(R96*R32)+Control!$K$18*CustomersCOM!Y5),0)","v":35.413597419271191},{"$f":"MAX((INT(S96*S32)+Control!$K$18*CustomersCOM!Z5),0)","v":42.236529432174834},{"$f":"MAX((INT(T96*T32)+Control!$K$18*CustomersCOM!AA5),0)","v":42.025346785013959},{"$f":"MAX((INT(U96*U32)+Control!$K$18*CustomersCOM!AB5),0)","v":38.815220051088893},{"$f":"MAX((INT(V96*V32)+Control!$K$18*CustomersCOM!AC5),0)","v":35.621143950833449},{"$f":"MAX((INT(W96*W32)+Control!$K$18*CustomersCOM!AD5),0)","v":33.443038231079278},{"$f":"MAX((INT(X96*X32)+Control!$K$18*CustomersCOM!AE5),0)","v":31.275823039923882},{"$f":"MAX((INT(Y96*Y32)+Control!$K$18*CustomersCOM!AF5),0)","v":29.119443924724262},{"$f":"MAX((INT(Z96*Z32)+Control!$K$18*CustomersCOM!AG5),0)","v":26.973846705100641},{"$f":"MAX((INT(AA96*AA32)+Control!$K$18*CustomersCOM!AH5),0)","v":24.838977471575138},{"$f":"MAX((INT(AB96*AB32)+Control!$K$18*CustomersCOM!AI5),0)","v":22.714782584217264},{"$f":"MAX((INT(AC96*AC32)+Control!$K$18*CustomersCOM!AJ5),0)","v":21.601208671296177},{"$f":"MAX((INT(AD96*AD32)+Control!$K$18*CustomersCOM!AK5),0)","v":19.493202627939695},{"$f":"MAX((INT(AE96*AE32)+Control!$K$18*CustomersCOM!AL5),0)","v":18.395736614799997},{"$f":"MAX((INT(AF96*AF32)+Control!$K$18*CustomersCOM!AM5),0)","v":17.303757931725997},{"$f":"MAX((INT(AG96*AG32)+Control!$K$18*CustomersCOM!AN5),0)","v":16.217239142067367},{"$f":"MAX((INT(AH96*AH32)+Control!$K$18*CustomersCOM!AO5),0)","v":15.136152946357031},{"$f":"MAX((INT(AI96*AI32)+Control!$K$18*CustomersCOM!AP5),0)","v":14.060472181625245},{"$f":"MAX((INT(AJ96*AJ32)+Control!$K$18*CustomersCOM!AQ5),0)","v":12.990169820717119},{"$f":"MAX((INT(AK96*AK32)+Control!$K$18*CustomersCOM!AR5),0)","v":11.925218971613534},{"$f":"MAX((INT(AL96*AL32)+Control!$K$18*CustomersCOM!AS5),0)","v":10.865592876755466},{"$f":"MAX((INT(AM96*AM32)+Control!$K$18*CustomersCOM!AT5),0)","v":9.8112649123716889},{"$f":"MAX((INT(AN96*AN32)+Control!$K$18*CustomersCOM!AU5),0)","v":9.7622085878098304},{"$f":"MAX((INT(AO96*AO32)+Control!$K$18*CustomersCOM!AV5),0)","v":8.7133975448707801},{"$f":"MAX((INT(AP96*AP32)+Control!$K$18*CustomersCOM!AW5),0)","v":7.6698305571464269},{"$f":"MAX((INT(AQ96*AQ32)+Control!$K$18*CustomersCOM!AX5),0)","v":7.6314814043606951},{"$f":"MAX((INT(AR96*AR32)+Control!$K$18*CustomersCOM!AY5),0)","v":6.5933239973388913},{"$f":"MAX((INT(AS96*AS32)+Control!$K$18*CustomersCOM!AZ5),0)","v":6.5603573773521964},{"$f":"MAX((INT(AT96*AT32)+Control!$K$18*CustomersCOM!BA5),0)","v":6.5275555904654361},{"$f":"MAX((INT(AU96*AU32)+Control!$K$18*CustomersCOM!BB5),0)","v":5.4949178125131084},{"$f":"MAX((INT(AV96*AV32)+Control!$K$18*CustomersCOM!BC5),0)","v":5.4674432234505428},{"$f":"MAX((INT(AW96*AW32)+Control!$K$18*CustomersCOM!BD5),0)","v":4.4401060073332905},{"$f":"MAX((INT(AX96*AX32)+Control!$K$18*CustomersCOM!BE5),0)","v":4.4179054772966238},{"$f":"MAX((INT(AY96*AY32)+Control!$K$18*CustomersCOM!BF5),0)","v":4.3958159499101406},{"$f":"MAX((INT(AZ96*AZ32)+Control!$K$18*CustomersCOM!BG5),0)","v":3.3738368701605901},{"$f":"MAX((INT(BA96*BA32)+Control!$K$18*CustomersCOM!BH5),0)","v":3.3569676858097872},{"$f":"MAX((INT(BB96*BB32)+Control!$K$18*CustomersCOM!BI5),0)","v":3.340182847380738},{"$f":"MAX((INT(BC96*BC32)+Control!$K$18*CustomersCOM!BJ5),0)","v":3.3234819331438343},{"$f":"MAX((INT(BD96*BD32)+Control!$K$18*CustomersCOM!BK5),0)","v":3.3068645234781151},{"$f":"MAX((INT(BE96*BE32)+Control!$K$18*CustomersCOM!BL5),0)","v":2.2903302008607245},{"$f":"MAX((INT(BF96*BF32)+Control!$K$18*CustomersCOM!BM5),0)","v":2.278878549856421},{"$f":"MAX((INT(BG96*BG32)+Control!$K$18*CustomersCOM!BN5),0)","v":2.2674841571071389},{"$f":"MAX((INT(BH96*BH32)+Control!$K$18*CustomersCOM!BO5),0)","v":2.2561467363216035},{"$f":"MAX((INT(BI96*BI32)+Control!$K$18*CustomersCOM!BP5),0)","v":2.2448660026399954},{"$f":"MAX((INT(BJ96*BJ32)+Control!$K$18*CustomersCOM!BQ5),0)","v":2.2336416726267951},{"$f":"MAX((INT(BK96*BK32)+Control!$K$18*CustomersCOM!BR5),0)","v":1.2224734642636612},{"$f":"MAX((INT(BL96*BL32)+Control!$K$18*CustomersCOM!BS5),0)","v":1.2163610969423431},{"$f":"MAX((INT(BM96*BM32)+Control!$K$18*CustomersCOM!BT5),0)","v":1.2102792914576312},{"$f":"MAX((INT(BN96*BN32)+Control!$K$18*CustomersCOM!BU5),0)","v":1.2042278950003431},{"$f":"MAX((INT(BO96*BO32)+Control!$K$18*CustomersCOM!BV5),0)","v":1.1982067555253415},{"$f":"MAX((INT(BP96*BP32)+Control!$K$18*CustomersCOM!BW5),0)","v":1.1922157217477147},{"$f":"MAX((INT(BQ96*BQ32)+Control!$K$18*CustomersCOM!BX5),0)","v":1.1862546431389762},{"$f":"MAX((INT(BR96*BR32)+Control!$K$18*CustomersCOM!BY5),0)","v":1.1803233699232814},{"$f":"MAX((INT(BS96*BS32)+Control!$K$18*CustomersCOM!BZ5),0)","v":1.1744217530736649},{"$f":"MAX((INT(BT96*BT32)+Control!$K$18*CustomersCOM!CA5),0)","v":1.1685496443082966},{"$f":"MAX((INT(BU96*BU32)+Control!$K$18*CustomersCOM!CB5),0)","v":1.162706896086755},{"$f":"MAX((INT(BV96*BV32)+Control!$K$18*CustomersCOM!CC5),0)","v":1.1568933616063213},{"$f":"MAX((INT(BW96*BW32)+Control!$K$18*CustomersCOM!CD5),0)","v":1.1511088947982897},{"$f":"MAX((INT(BX96*BX32)+Control!$K$18*CustomersCOM!CE5),0)","v":0.14535335032429822},{"$f":"MAX((INT(BY96*BY32)+Control!$K$18*CustomersCOM!CF5),0)","v":0.14462658357267671},{"$f":"MAX((INT(BZ96*BZ32)+Control!$K$18*CustomersCOM!CG5),0)","v":0.14390345065481333},{"$f":"MAX((INT(CA96*CA32)+Control!$K$18*CustomersCOM!CH5),0)","v":0.14318393340153926},{"$f":"MAX((INT(CB96*CB32)+Control!$K$18*CustomersCOM!CI5),0)","v":0.14246801373453155},{"$f":"MAX((INT(CC96*CC32)+Control!$K$18*CustomersCOM!CJ5),0)","v":0.14175567366585889},{"$f":"MAX((INT(CD96*CD32)+Control!$K$18*CustomersCOM!CK5),0)","v":0.14104689529752962}]
["Cardinia (S)",null,{"$f":"(INT(C97*C33)+AVERAGE(CustomersCOM!$H52:$J52))","v":4.333333333333333},{"$f":"MAX((INT(D97*D33)+Control!$K$18*CustomersCOM!K6),0)","v":1.4283333333333332},{"$f":"MAX((INT(E97*E33)+Control!$K$18*CustomersCOM!L6),0)","v":4.4211916666666671},{"$f":"MAX((INT(F97*F33)+Control!$K$18*CustomersCOM!M6),0)","v":4.3990857083333337},{"$f":"MAX((INT(G97*G33)+Control!$K$18*CustomersCOM!N6),0)","v":1.3770902797916666},{"$f":"MAX((INT(H97*H33)+Control!$K$18*CustomersCOM!O6),0)","v":1.3702048283927084},{"$f":"MAX((INT(I97*I33)+Control!$K$18*CustomersCOM!P6),0)","v":2.3633538042507447},{"$f":"MAX((INT(J97*J33)+Control!$K$18*CustomersCOM!Q6),0)","v":2.3515370352294909},{"$f":"MAX((INT(K97*K33)+Control!$K$18*CustomersCOM!R6),0)","v":3.3397793500533437},{"$f":"MAX((INT(L97*L33)+Control!$K$18*CustomersCOM!S6),0)","v":3.3230804533030769},{"$f":"MAX((INT(M97*M33)+Control!$K$18*CustomersCOM!T6),0)","v":3.3064650510365614},{"$f":"MAX((INT(N97*N33)+Control!$K$18*CustomersCOM!U6),0)","v":2.2899327257813789},{"$f":"MAX((INT(O97*O33)+Control!$K$18*CustomersCOM!V6),0)","v":2.2784830621524716},{"$f":"MAX((INT(P97*P33)+Control!$K$18*CustomersCOM!W6),0)","v":2.2670906468417096},{"$f":"MAX((INT(Q97*Q33)+Control!$K$18*CustomersCOM!X6),0)","v":1.2557551936075009},{"$f":"MAX((INT(R97*R33)+Control!$K$18*CustomersCOM!Y6),0)","v":1.2494764176394635},{"$f":"MAX((INT(S97*S33)+Control!$K$18*CustomersCOM!Z6),0)","v":2.2432290355512658},{"$f":"MAX((INT(T97*T33)+Control!$K$18*CustomersCOM!AA6),0)","v":2.2320128903735097},{"$f":"MAX((INT(U97*U33)+Control!$K$18*CustomersCOM!AB6),0)","v":1.2208528259216422},{"$f":"MAX((INT(V97*V33)+Control!$K$18*CustomersCOM!AC6),0)","v":1.2147485617920339},{"$f":"MAX((INT(W97*W33)+Control!$K$18*CustomersCOM!AD6),0)","v":1.2086748189830738},{"$f":"MAX((INT(X97*X33)+Control!$K$18*CustomersCOM!AE6),0)","v":1.2026314448881583},{"$f":"MAX((INT(Y97*Y33)+Control!$K$18*CustomersCOM!AF6),0)","v":1.1966182876637177},{"$f":"MAX((INT(Z97*Z33)+Control!$K$18*CustomersCOM!AG6),0)","v":1.1906351962253989},{"$f":"MAX((INT(AA97*AA33)+Control!$K$18*CustomersCOM!AH6),0)","v":1.184682020244272},{"$f":"MAX((INT(AB97*AB33)+Control!$K$18*CustomersCOM!AI6),0)","v":1.1787586101430507},{"$f":"MAX((INT(AC97*AC33)+Control!$K$18*CustomersCOM!AJ6),0)","v":1.1728648170923355},{"$f":"MAX((INT(AD97*AD33)+Control!$K$18*CustomersCOM!AK6),0)","v":1.1670004930068738},{"$f":"MAX((INT(AE97*AE33)+Control!$K$18*CustomersCOM!AL6),0)","v":1.1611654905418394},{"$f":"MAX((INT(AF97*AF33)+Control!$K$18*CustomersCOM!AM6),0)","v":1.1553596630891301},{"$f":"MAX((INT(AG97*AG33)+Control!$K$18*CustomersCOM!AN6),0)","v":0.14958286477368454},{"$f":"MAX((INT(AH97*AH33)+Control!$K$18*CustomersCOM!AO6),0)","v":0.14883495044981612},{"$f":"MAX((INT(AI97*AI33)+Control!$K$18*CustomersCOM!AP6),0)","v":0.14809077569756704},{"$f":"MAX((INT(AJ97*AJ33)+Control!$K$18*CustomersCOM!AQ6),0)","v":0.1473503218190792},{"$f":"MAX((INT(AK97*AK33)+Control!$K$18*CustomersCOM!AR6),0)","v":0.14661357020998378},{"$f":"MAX((INT(AL97*AL33)+Control!$K$18*CustomersCOM!AS6),0)","v":0.14588050235893388},{"$f":"MAX((INT(AM97*AM33)+Control!$K$18*CustomersCOM!AT6),0)","v":0.1451510998471392},{"$f":"MAX((INT(AN97*AN33)+Control!$K$18*CustomersCOM!AU6),0)","v":0.14442534434790349},{"$f":"MAX((INT(AO97*AO33)+Control!$K$18*CustomersCOM!AV6),0)","v":0.14370321762616398},{"$f":"MAX((INT(AP97*AP33)+Control!$K$18*CustomersCOM!AW6),0)","v":0.14298470153803317},{"$f":"MAX((INT(AQ97*AQ33)+Control!$K$18*CustomersCOM!AX6),0)","v":0.14226977803034299},{"$f":"MAX((INT(AR97*AR33)+Control!$K$18*CustomersCOM!AY6),0)","v":0.14155842914019126},{"$f":"MAX((INT(AS97*AS33)+Control!$K$18*CustomersCOM!AZ6),0)","v":0.14085063699449032},{"$f":"MAX((INT(AT97*AT33)+Control!$K$18*CustomersCOM!BA6),0)","v":0.14014638380951788},{"$f":"MAX((INT(AU97*AU33)+Control!$K$18*CustomersCOM!BB6),0)","v":0.13944565189047028},{"$f":"MAX((INT(AV97*AV33)+Control!$K$18*CustomersCOM!BC6),0)","v":0.13874842363101794},{"$f":"MAX((INT(AW97*AW33)+Control!$K$18*CustomersCOM!BD6),0)","v":0.13805468151286285},{"$f":"MAX((INT(AX97*AX33)+Control!$K$18*CustomersCOM!BE6),0)","v":0.13736440810529854},{"$f":"MAX((INT(AY97*AY33)+Control!$K$18*CustomersCOM!BF6),0)","v":0.13667758606477204},{"$f":"MAX((INT(AZ97*AZ33)+Control!$K$18*CustomersCOM!BG6),0)","v":0.13599419813444819},{"$f":"MAX((INT(BA97*BA33)+Control!$K$18*CustomersCOM!BH6),0)","v":0.13531422714377594},{"$f":"MAX((INT(BB97*BB33)+Control!$K$18*CustomersCOM!BI6),0)","v":0.13463765600805708},{"$f":"MAX((INT(BC97*BC33)+Control!$K$18*CustomersCOM!BJ6),0)","v":0.13396446772801679},{"$f":"MAX((INT(BD97*BD33)+Control!$K$18*CustomersCOM!BK6),0)","v":0.13329464538937669},{"$f":"MAX((INT(BE97*BE33)+Control!$K$18*CustomersCOM!BL6),0)","v":0.13262817216242981},{"$f":"MAX((INT(BF97*BF33)+Control!$K$18*CustomersCOM!BM6),0)","v":0.13196503130161766},{"$f":"MAX((INT(BG97*BG33)+Control!$K$18*CustomersCOM!BN6),0)","v":0.13130520614510957},{"$f":"MAX((INT(BH97*BH33)+Control!$K$18*CustomersCOM!BO6),0)","v":0.13064868011438402},{"$f":"MAX((INT(BI97*BI33)+Control!$K$18*CustomersCOM!BP6),0)","v":0.12999543671381208},{"$f":"MAX((INT(BJ97*BJ33)+Control!$K$18*CustomersCOM!BQ6),0)","v":0.12934545953024304},{"$f":"MAX((INT(BK97*BK33)+Control!$K$18*CustomersCOM!BR6),0)","v":0.12869873223259182},{"$f":"MAX((INT(BL97*BL33)+Control!$K$18*CustomersCOM!BS6),0)","v":0.12805523857142886},{"$f":"MAX((INT(BM97*BM33)+Control!$K$18*CustomersCOM!BT6),0)","v":0.12741496237857172},{"$f":"MAX((INT(BN97*BN33)+Control!$K$18*CustomersCOM!BU6),0)","v":0.12677788756667885},{"$f":"MAX((INT(BO97*BO33)+Control!$K$18*CustomersCOM!BV6),0)","v":0.12614399812884547},{"$f":"MAX((INT(BP97*BP33)+Control!$K$18*CustomersCOM!BW6),0)","v":0.12551327813820123},{"$f":"MAX((INT(BQ97*BQ33)+Control!$K$18*CustomersCOM!BX6),0)","v":0.12488571174751023},{"$f":"MAX((INT(BR97*BR33)+Control!$K$18*CustomersCOM!BY6),0)","v":0.12426128318877268},{"$f":"MAX((INT(BS97*BS33)+Control!$K$18*CustomersCOM!BZ6),0)","v":0.12363997677282881},{"$f":"MAX((INT(BT97*BT33)+Control!$K$18*CustomersCOM!CA6),0)","v":0.12302177688896468},{"$f":"MAX((INT(BU97*BU33)+Control!$K$18*CustomersCOM!CB6),0)","v":0.12240666800451985},{"$f":"MAX((INT(BV97*BV33)+Control!$K$18*CustomersCOM!CC6),0)","v":0.12179463466449726},{"$f":"MAX((INT(BW97*BW33)+Control!$K$18*CustomersCOM!CD6),0)","v":0.12118566149117477},{"$f":"MAX((INT(BX97*BX33)+Control!$K$18*CustomersCOM!CE6),0)","v":0.1205797331837189},{"$f":"MAX((INT(BY97*BY33)+Control!$K$18*CustomersCOM!CF6),0)","v":0.11997683451780031},{"$f":"MAX((INT(BZ97*BZ33)+Control!$K$18*CustomersCOM!CG6),0)","v":0.11937695034521131},{"$f":"MAX((INT(CA97*CA33)+Control!$K$18*CustomersCOM!CH6),0)","v":0.11878006559348527},{"$f":"MAX((INT(CB97*CB33)+Control!$K$18*CustomersCOM!CI6),0)","v":0.11818616526551784},{"$f":"MAX((INT(CC97*CC33)+Control!$K$18*CustomersCOM!CJ6),0)","v":0.11759523443919026},{"$f":"MAX((INT(CD97*CD33)+Control!$K$18*CustomersCOM!CK6),0)","v":0.11700725826699432}]
["Casey (C)",null,{"$f":"(INT(C98*C34)+AVERAGE(CustomersCOM!$H53:$J53))","v":4.333333333333333},{"$f":"MAX((INT(D98*D34)+Control!$K$18*CustomersCOM!K7),0)","v":2.7133333333333334},{"$f":"MAX((INT(E98*E34)+Control!$K$18*CustomersCOM!L7),0)","v":7.704766666666667},{"$f":"MAX((INT(F98*F34)+Control!$K$18*CustomersCOM!M7),0)","v":7.6662428333333335},{"$f":"MAX((INT(G98*G34)+Control!$K$18*CustomersCOM!N7),0)","v":2.6279116191666665},{"$f":"MAX((INT(H98*H34)+Control!$K$18*CustomersCOM!O7),0)","v":2.6147720610708332},{"$f":"MAX((INT(I98*I34)+Control!$K$18*CustomersCOM!P7),0)","v":5.6016982007654788},{"$f":"MAX((INT(J98*J34)+Control!$K$18*CustomersCOM!Q7),0)","v":4.573689709761652},{"$f":"MAX((INT(K98*K34)+Control!$K$18*CustomersCOM!R7),0)","v":6.5508212612128434},{"$f":"MAX((INT(L98*L34)+Control!$K$18*CustomersCOM!S7),0)","v":5.5180671549067792},{"$f":"MAX((INT(M98*M34)+Control!$K$18*CustomersCOM!T7),0)","v":4.4904768191322457},{"$f":"MAX((INT(N98*N34)+Control!$K$18*CustomersCOM!U7),0)","v":4.4680244350365843},{"$f":"MAX((INT(O98*O34)+Control!$K$18*CustomersCOM!V7),0)","v":4.4456843128614008},{"$f":"MAX((INT(P98*P34)+Control!$K$18*CustomersCOM!W7),0)","v":4.4234558912970945},{"$f":"MAX((INT(Q98*Q34)+Control!$K$18*CustomersCOM!X7),0)","v":2.4013386118406088},{"$f":"MAX((INT(R98*R34)+Control!$K$18*CustomersCOM!Y7),0)","v":2.3893319187814055},{"$f":"MAX((INT(S98*S34)+Control!$K$18*CustomersCOM!Z7),0)","v":3.3773852591874984},{"$f":"MAX((INT(T98*T34)+Control!$K$18*CustomersCOM!AA7),0)","v":3.3604983328915612},{"$f":"MAX((INT(U98*U34)+Control!$K$18*CustomersCOM!AB7),0)","v":3.3436958412271034},{"$f":"MAX((INT(V98*V34)+Control!$K$18*CustomersCOM!AC7),0)","v":3.3269773620209677},{"$f":"MAX((INT(W98*W34)+Control!$K$18*CustomersCOM!AD7),0)","v":3.310342475210863},{"$f":"MAX((INT(X98*X34)+Control!$K$18*CustomersCOM!AE7),0)","v":2.2937907628348086},{"$f":"MAX((INT(Y98*Y34)+Control!$K$18*CustomersCOM!AF7),0)","v":2.2823218090206345},{"$f":"MAX((INT(Z98*Z34)+Control!$K$18*CustomersCOM!AG7),0)","v":2.2709101999755315},{"$f":"MAX((INT(AA98*AA34)+Control!$K$18*CustomersCOM!AH7),0)","v":2.2595556489756539},{"$f":"MAX((INT(AB98*AB34)+Control!$K$18*CustomersCOM!AI7),0)","v":2.2482578707307757},{"$f":"MAX((INT(AC98*AC34)+Control!$K$18*CustomersCOM!AJ7),0)","v":2.2370165813771217},{"$f":"MAX((INT(AD98*AD34)+Control!$K$18*CustomersCOM!AK7),0)","v":2.2258314984702361},{"$f":"MAX((INT(AE98*AE34)+Control!$K$18*CustomersCOM!AL7),0)","v":1.2147023409778848},{"$f":"MAX((INT(AF98*AF34)+Control!$K$18*CustomersCOM!AM7),0)","v":1.2086288292729954},{"$f":"MAX((INT(AG98*AG34)+Control!$K$18*CustomersCOM!AN7),0)","v":1.2025856851266303},{"$f":"MAX((INT(AH98*AH34)+Control!$K$18*CustomersCOM!AO7),0)","v":1.1965727567009972},{"$f":"MAX((INT(AI98*AI34)+Control!$K$18*CustomersCOM!AP7),0)","v":1.1905898929174923},{"$f":"MAX((INT(AJ98*AJ34)+Control!$K$18*CustomersCOM!AQ7),0)","v":1.1846369434529049},{"$f":"MAX((INT(AK98*AK34)+Control!$K$18*CustomersCOM!AR7),0)","v":1.1787137587356402},{"$f":"MAX((INT(AL98*AL34)+Control!$K$18*CustomersCOM!AS7),0)","v":1.1728201899419621},{"$f":"MAX((INT(AM98*AM34)+Control!$K$18*CustomersCOM!AT7),0)","v":1.1669560889922523},{"$f":"MAX((INT(AN98*AN34)+Control!$K$18*CustomersCOM!AU7),0)","v":1.1611213085472911},{"$f":"MAX((INT(AO98*AO34)+Control!$K$18*CustomersCOM!AV7),0)","v":1.1553157020045546},{"$f":"MAX((INT(AP98*AP34)+Control!$K$18*CustomersCOM!AW7),0)","v":0.1495391234945318},{"$f":"MAX((INT(AQ98*AQ34)+Control!$K$18*CustomersCOM!AX7),0)","v":0.14879142787705915},{"$f":"MAX((INT(AR98*AR34)+Control!$K$18*CustomersCOM!AY7),0)","v":0.14804747073767385},{"$f":"MAX((INT(AS98*AS34)+Control!$K$18*CustomersCOM!AZ7),0)","v":0.14730723338398549},{"$f":"MAX((INT(AT98*AT34)+Control!$K$18*CustomersCOM!BA7),0)","v":0.14657069721706559},{"$f":"MAX((INT(AU98*AU34)+Control!$K$18*CustomersCOM!BB7),0)","v":0.14583784373098024},{"$f":"MAX((INT(AV98*AV34)+Control!$K$18*CustomersCOM!BC7),0)","v":0.14510865451232535},{"$f":"MAX((INT(AW98*AW34)+Control!$K$18*CustomersCOM!BD7),0)","v":0.14438311123976375},{"$f":"MAX((INT(AX98*AX34)+Control!$K$18*CustomersCOM!BE7),0)","v":0.14366119568356492},{"$f":"MAX((INT(AY98*AY34)+Control!$K$18*CustomersCOM!BF7),0)","v":0.1429428897051471},{"$f":"MAX((INT(AZ98*AZ34)+Control!$K$18*CustomersCOM!BG7),0)","v":0.14222817525662135},{"$f":"MAX((INT(BA98*BA34)+Control!$K$18*CustomersCOM!BH7),0)","v":0.14151703438033825},{"$f":"MAX((INT(BB98*BB34)+Control!$K$18*CustomersCOM!BI7),0)","v":0.14080944920843655},{"$f":"MAX((INT(BC98*BC34)+Control!$K$18*CustomersCOM!BJ7),0)","v":0.14010540196239438},{"$f":"MAX((INT(BD98*BD34)+Control!$K$18*CustomersCOM!BK7),0)","v":0.13940487495258239},{"$f":"MAX((INT(BE98*BE34)+Control!$K$18*CustomersCOM!BL7),0)","v":0.13870785057781948},{"$f":"MAX((INT(BF98*BF34)+Control!$K$18*CustomersCOM!BM7),0)","v":0.13801431132493039},{"$f":"MAX((INT(BG98*BG34)+Control!$K$18*CustomersCOM!BN7),0)","v":0.13732423976830574},{"$f":"MAX((INT(BH98*BH34)+Control!$K$18*CustomersCOM!BO7),0)","v":0.13663761856946421},{"$f":"MAX((INT(BI98*BI34)+Control!$K$18*CustomersCOM!BP7),0)","v":0.1359544304766169},{"$f":"MAX((INT(BJ98*BJ34)+Control!$K$18*CustomersCOM!BQ7),0)","v":0.13527465832423383},{"$f":"MAX((INT(BK98*BK34)+Control!$K$18*CustomersCOM!BR7),0)","v":0.13459828503261265},{"$f":"MAX((INT(BL98*BL34)+Control!$K$18*CustomersCOM!BS7),0)","v":0.13392529360744956},{"$f":"MAX((INT(BM98*BM34)+Control!$K$18*CustomersCOM!BT7),0)","v":0.13325566713941231},{"$f":"MAX((INT(BN98*BN34)+Control!$K$18*CustomersCOM!BU7),0)","v":0.13258938880371526},{"$f":"MAX((INT(BO98*BO34)+Control!$K$18*CustomersCOM!BV7),0)","v":0.13192644185969668},{"$f":"MAX((INT(BP98*BP34)+Control!$K$18*CustomersCOM!BW7),0)","v":0.13126680965039819},{"$f":"MAX((INT(BQ98*BQ34)+Control!$K$18*CustomersCOM!BX7),0)","v":0.1306104756021462},{"$f":"MAX((INT(BR98*BR34)+Control!$K$18*CustomersCOM!BY7),0)","v":0.12995742322413548},{"$f":"MAX((INT(BS98*BS34)+Control!$K$18*CustomersCOM!BZ7),0)","v":0.1293076361080148},{"$f":"MAX((INT(BT98*BT34)+Control!$K$18*CustomersCOM!CA7),0)","v":0.12866109792747474},{"$f":"MAX((INT(BU98*BU34)+Control!$K$18*CustomersCOM!CB7),0)","v":0.12801779243783737},{"$f":"MAX((INT(BV98*BV34)+Control!$K$18*CustomersCOM!CC7),0)","v":0.12737770347564817},{"$f":"MAX((INT(BW98*BW34)+Control!$K$18*CustomersCOM!CD7),0)","v":0.12674081495826994},{"$f":"MAX((INT(BX98*BX34)+Control!$K$18*CustomersCOM!CE7),0)","v":0.12610711088347856},{"$f":"MAX((INT(BY98*BY34)+Control!$K$18*CustomersCOM!CF7),0)","v":0.12547657532906117},{"$f":"MAX((INT(BZ98*BZ34)+Control!$K$18*CustomersCOM!CG7),0)","v":0.12484919245241589},{"$f":"MAX((INT(CA98*CA34)+Control!$K$18*CustomersCOM!CH7),0)","v":0.12422494649015381},{"$f":"MAX((INT(CB98*CB34)+Control!$K$18*CustomersCOM!CI7),0)","v":0.12360382175770303},{"$f":"MAX((INT(CC98*CC34)+Control!$K$18*CustomersCOM!CJ7),0)","v":0.12298580264891451},{"$f":"MAX((INT(CD98*CD34)+Control!$K$18*CustomersCOM!CK7),0)","v":0.12237087363566992}]
["Frankston (C)",null,{"$f":"(INT(C99*C35)+AVERAGE(CustomersCOM!$H54:$J54))","v":0.33333333333333331},{"$f":"MAX((INT(D99*D35)+Control!$K$18*CustomersCOM!K8),0)","v":0},{"$f":"MAX((INT(E99*E35)+Control!$K$18*CustomersCOM!L8),0)","v":0},{"$f":"MAX((INT(F99*F35)+Control!$K$18*CustomersCOM!M8),0)","v":0},{"$f":"MAX((INT(G99*G35)+Control!$K$18*CustomersCOM!N8),0)","v":0},{"$f":"MAX((INT(H99*H35)+Control!$K$18*CustomersCOM!O8),0)","v":0},{"$f":"MAX((INT(I99*I35)+Control!$K$18*CustomersCOM!P8),0)","v":0},{"$f":"MAX((INT(J99*J35)+Control!$K$18*CustomersCOM!Q8),0)","v":0},{"$f":"MAX((INT(K99*K35)+Control!$K$18*CustomersCOM!R8),0)","v":0},{"$f":"MAX((INT(L99*L35)+Control!$K$18*CustomersCOM!S8),0)","v":0},{"$f":"MAX((INT(M99*M35)+Control!$K$18*CustomersCOM!T8),0)","v":0},{"$f":"MAX((INT(N99*N35)+Control!$K$18*CustomersCOM!U8),0)","v":0},{"$f":"MAX((INT(O99*O35)+Control!$K$18*CustomersCOM!V8),0)","v":0},{"$f":"MAX((INT(P99*P35)+Control!$K$18*CustomersCOM!W8),0)","v":0},{"$f":"MAX((INT(Q99*Q35)+Control!$K$18*CustomersCOM!X8),0)","v":0},{"$f":"MAX((INT(R99*R35)+Control!$K$18*CustomersCOM!Y8),0)","v":0},{"$f":"MAX((INT(S99*S35)+Control!$K$18*CustomersCOM!Z8),0)","v":0},{"$f":"MAX((INT(T99*T35)+Control!$K$18*CustomersCOM!AA8),0)","v":0},{"$f":"MAX((INT(U99*U35)+Control!$K$18*CustomersCOM!AB8),0)","v":0},{"$f":"MAX((INT(V99*V35)+Control!$K$18*CustomersCOM!AC8),0)","v":0},{"$f":"MAX((INT(W99*W35)+Control!$K$18*CustomersCOM!AD8),0)","v":0},{"$f":"MAX((INT(X99*X35)+Control!$K$18*CustomersCOM!AE8),0)","v":0},{"$f":"MAX((INT(Y99*Y35)+Control!$K$18*CustomersCOM!AF8),0)","v":0},{"$f":"MAX((INT(Z99*Z35)+Control!$K$18*CustomersCOM!AG8),0)","v":0},{"$f":"MAX((INT(AA99*AA35)+Control!$K$18*CustomersCOM!AH8),0)","v":0},{"$f":"MAX((INT(AB99*AB35)+Control!$K$18*CustomersCOM!AI8),0)","v":0},{"$f":"MAX((INT(AC99*AC35)+Control!$K$18*CustomersCOM!AJ8),0)","v":0},{"$f":"MAX((INT(AD99*AD35)+Control!$K$18*CustomersCOM!AK8),0)","v":0},{"$f":"MAX((INT(AE99*AE35)+Control!$K$18*CustomersCOM!AL8),0)","v":0},{"$f":"MAX((INT(AF99*AF35)+Control!$K$18*CustomersCOM!AM8),0)","v":0},{"$f":"MAX((INT(AG99*AG35)+Control!$K$18*CustomersCOM!AN8),0)","v":0},{"$f":"MAX((INT(AH99*AH35)+Control!$K$18*CustomersCOM!AO8),0)","v":0},{"$f":"MAX((INT(AI99*AI35)+Control!$K$18*CustomersCOM!AP8),0)","v":0},{"$f":"MAX((INT(AJ99*AJ35)+Control!$K$18*CustomersCOM!AQ8),0)","v":0},{"$f":"MAX((INT(AK99*AK35)+Control!$K$18*CustomersCOM!AR8),0)","v":0},{"$f":"MAX((INT(AL99*AL35)+Control!$K$18*CustomersCOM!AS8),0)","v":0},{"$f":"MAX((INT(AM99*AM35)+Control!$K$18*CustomersCOM!AT8),0)","v":0},{"$f":"MAX((INT(AN99*AN35)+Control!$K$18*CustomersCOM!AU8),0)","v":0},{"$f":"MAX((INT(AO99*AO35)+Control!$K$18*CustomersCOM!AV8),0)","v":0},{"$f":"MAX((INT(AP99*AP35)+Control!$K$18*CustomersCOM!AW8),0)","v":0},{"$f":"MAX((INT(AQ99*AQ35)+Control!$K$18*CustomersCOM!AX8),0)","v":0},{"$f":"MAX((INT(AR99*AR35)+Control!$K$18*CustomersCOM!AY8),0)","v":0},{"$f":"MAX((INT(AS99*AS35)+Control!$K$18*CustomersCOM!AZ8),0)","v":0},{"$f":"MAX((INT(AT99*AT35)+Control!$K$18*CustomersCOM!BA8),0)","v":0},{"$f":"MAX((INT(AU99*AU35)+Control!$K$18*CustomersCOM!BB8),0)","v":0},{"$f":"MAX((INT(AV99*AV35)+Control!$K$18*CustomersCOM!BC8),0)","v":0},{"$f":"MAX((INT(AW99*AW35)+Control!$K$18*CustomersCOM!BD8),0)","v":0},{"$f":"MAX((INT(AX99*AX35)+Control!$K$18*CustomersCOM!BE8),0)","v":0},{"$f":"MAX((INT(AY99*AY35)+Control!$K$18*CustomersCOM!BF8),0)","v":0},{"$f":"MAX((INT(AZ99*AZ35)+Control!$K$18*CustomersCOM!BG8),0)","v":0},{"$f":"MAX((INT(BA99*BA35)+Control!$K$18*CustomersCOM!BH8),0)","v":0},{"$f":"MAX((INT(BB99*BB35)+Control!$K$18*CustomersCOM!BI8),0)","v":0},{"$f":"MAX((INT(BC99*BC35)+Control!$K$18*CustomersCOM!BJ8),0)","v":0},{"$f":"MAX((INT(BD99*BD35)+Control!$K$18*CustomersCOM!BK8),0)","v":0},{"$f":"MAX((INT(BE99*BE35)+Control!$K$18*CustomersCOM!BL8),0)","v":0},{"$f":"MAX((INT(BF99*BF35)+Control!$K$18*CustomersCOM!BM8),0)","v":0},{"$f":"MAX((INT(BG99*BG35)+Control!$K$18*CustomersCOM!BN8),0)","v":0},{"$f":"MAX((INT(BH99*BH35)+Control!$K$18*CustomersCOM!BO8),0)","v":0},{"$f":"MAX((INT(BI99*BI35)+Control!$K$18*CustomersCOM!BP8),0)","v":0},{"$f":"MAX((INT(BJ99*BJ35)+Control!$K$18*CustomersCOM!BQ8),0)","v":0},{"$f":"MAX((INT(BK99*BK35)+Control!$K$18*CustomersCOM!BR8),0)","v":0},{"$f":"MAX((INT(BL99*BL35)+Control!$K$18*CustomersCOM!BS8),0)","v":0},{"$f":"MAX((INT(BM99*BM35)+Control!$K$18*CustomersCOM!BT8),0)","v":0},{"$f":"MAX((INT(BN99*BN35)+Control!$K$18*CustomersCOM!BU8),0)","v":0},{"$f":"MAX((INT(BO99*BO35)+Control!$K$18*CustomersCOM!BV8),0)","v":0},{"$f":"MAX((INT(BP99*BP35)+Control!$K$18*CustomersCOM!BW8),0)","v":0},{"$f":"MAX((INT(BQ99*BQ35)+Control!$K$18*CustomersCOM!BX8),0)","v":0},{"$f":"MAX((INT(BR99*BR35)+Control!$K$18*CustomersCOM!BY8),0)","v":0},{"$f":"MAX((INT(BS99*BS35)+Control!$K$18*CustomersCOM!BZ8),0)","v":0},{"$f":"MAX((INT(BT99*BT35)+Control!$K$18*CustomersCOM!CA8),0)","v":0},{"$f":"MAX((INT(BU99*BU35)+Control!$K$18*CustomersCOM!CB8),0)","v":0},{"$f":"MAX((INT(BV99*BV35)+Control!$K$18*CustomersCOM!CC8),0)","v":0},{"$f":"MAX((INT(BW99*BW35)+Control!$K$18*CustomersCOM!CD8),0)","v":0},{"$f":"MAX((INT(BX99*BX35)+Control!$K$18*CustomersCOM!CE8),0)","v":0},{"$f":"MAX((INT(BY99*BY35)+Control!$K$18*CustomersCOM!CF8),0)","v":0},{"$f":"MAX((INT(BZ99*BZ35)+Control!$K$18*CustomersCOM!CG8),0)","v":0},{"$f":"MAX((INT(CA99*CA35)+Control!$K$18*CustomersCOM!CH8),0)","v":0},{"$f":"MAX((INT(CB99*CB35)+Control!$K$18*CustomersCOM!CI8),0)","v":0},{"$f":"MAX((INT(CC99*CC35)+Control!$K$18*CustomersCOM!CJ8),0)","v":0},{"$f":"MAX((INT(CD99*CD35)+Control!$K$18*CustomersCOM!CK8),0)","v":0}]
["Glen Eira (C)",null,{"$f":"(INT(C100*C36)+AVERAGE(CustomersCOM!$H55:$J55))","v":32.666666666666671},{"$f":"MAX((INT(D100*D36)+Control!$K$18*CustomersCOM!K9),0)","v":23.876666666666665},{"$f":"MAX((INT(E100*E36)+Control!$K$18*CustomersCOM!L9),0)","v":58.79228333333333},{"$f":"MAX((INT(F100*F36)+Control!$K$18*CustomersCOM!M9),0)","v":59.498321916666669},{"$f":"MAX((INT(G100*G36)+Control!$K$18*CustomersCOM!N9),0)","v":19.200830307083333},{"$f":"MAX((INT(H100*H36)+Control!$K$18*CustomersCOM!O9),0)","v":21.134826155547916},{"$f":"MAX((INT(I100*I36)+Control!$K$18*CustomersCOM!P9),0)","v":37.054152024770175},{"$f":"MAX((INT(J100*J36)+Control!$K$18*CustomersCOM!Q9),0)","v":35.878881264646324},{"$f":"MAX((INT(K100*K36)+Control!$K$18*CustomersCOM!R9),0)","v":50.704486858323094},{"$f":"MAX((INT(L100*L36)+Control!$K$18*CustomersCOM!S9),0)","v":47.450964424031483},{"$f":"MAX((INT(M100*M36)+Control!$K$18*CustomersCOM!T9),0)","v":35.213709601911319},{"$f":"MAX((INT(N100*N36)+Control!$K$18*CustomersCOM!U9),0)","v":34.037641053901766},{"$f":"MAX((INT(O100*O36)+Control!$K$18*CustomersCOM!V9),0)","v":38.867452848632254},{"$f":"MAX((INT(P100*P36)+Control!$K$18*CustomersCOM!W9),0)","v":36.673115584389095},{"$f":"MAX((INT(Q100*Q36)+Control!$K$18*CustomersCOM!X9),0)","v":16.489750006467151},{"$f":"MAX((INT(R100*R36)+Control!$K$18*CustomersCOM!Y9),0)","v":21.407301256434813},{"$f":"MAX((INT(S100*S36)+Control!$K$18*CustomersCOM!Z9),0)","v":25.300264750152639},{"$f":"MAX((INT(T100*T36)+Control!$K$18*CustomersCOM!AA9),0)","v":28.173763426401877},{"$f":"MAX((INT(U100*U36)+Control!$K$18*CustomersCOM!AB9),0)","v":28.032894609269867},{"$f":"MAX((INT(V100*V36)+Control!$K$18*CustomersCOM!AC9),0)","v":25.892730136223516},{"$f":"MAX((INT(W100*W36)+Control!$K$18*CustomersCOM!AD9),0)","v":23.763266485542399},{"$f":"MAX((INT(X100*X36)+Control!$K$18*CustomersCOM!AE9),0)","v":21.64445015311469},{"$f":"MAX((INT(Y100*Y36)+Control!$K$18*CustomersCOM!AF9),0)","v":20.536227902349115},{"$f":"MAX((INT(Z100*Z36)+Control!$K$18*CustomersCOM!AG9),0)","v":19.43354676283737},{"$f":"MAX((INT(AA100*AA36)+Control!$K$18*CustomersCOM!AH9),0)","v":17.336379029023181},{"$f":"MAX((INT(AB100*AB36)+Control!$K$18*CustomersCOM!AI9),0)","v":16.249697133878065},{"$f":"MAX((INT(AC100*AC36)+Control!$K$18*CustomersCOM!AJ9),0)","v":15.168448648208676},{"$f":"MAX((INT(AD100*AD36)+Control!$K$18*CustomersCOM!AK9),0)","v":14.092606404967633},{"$f":"MAX((INT(AE100*AE36)+Control!$K$18*CustomersCOM!AL9),0)","v":13.022143372942795},{"$f":"MAX((INT(AF100*AF36)+Control!$K$18*CustomersCOM!AM9),0)","v":11.957032656078081},{"$f":"MAX((INT(AG100*AG36)+Control!$K$18*CustomersCOM!AN9),0)","v":10.897247492797691},{"$f":"MAX((INT(AH100*AH36)+Control!$K$18*CustomersCOM!AO9),0)","v":10.842761255333702},{"$f":"MAX((INT(AI100*AI36)+Control!$K$18*CustomersCOM!AP9),0)","v":9.7885474490570328},{"$f":"MAX((INT(AJ100*AJ36)+Control!$K$18*CustomersCOM!AQ9),0)","v":8.7396047118117473},{"$f":"MAX((INT(AK100*AK36)+Control!$K$18*CustomersCOM!AR9),0)","v":8.6959066882526894},{"$f":"MAX((INT(AL100*AL36)+Control!$K$18*CustomersCOM!AS9),0)","v":7.6524271548114262},{"$f":"MAX((INT(AM100*AM36)+Control!$K$18*CustomersCOM!AT9),0)","v":7.6141650190373689},{"$f":"MAX((INT(AN100*AN36)+Control!$K$18*CustomersCOM!AU9),0)","v":6.5760941939421818},{"$f":"MAX((INT(AO100*AO36)+Control!$K$18*CustomersCOM!AV9),0)","v":6.5432137229724709},{"$f":"MAX((INT(AP100*AP36)+Control!$K$18*CustomersCOM!AW9),0)","v":5.510497654357609},{"$f":"MAX((INT(AQ100*AQ36)+Control!$K$18*CustomersCOM!AX9),0)","v":5.4829451660858206},{"$f":"MAX((INT(AR100*AR36)+Control!$K$18*CustomersCOM!AY9),0)","v":5.4555304402553917},{"$f":"MAX((INT(AS100*AS36)+Control!$K$18*CustomersCOM!AZ9),0)","v":4.4282527880541149},{"$f":"MAX((INT(AT100*AT36)+Control!$K$18*CustomersCOM!BA9),0)","v":4.406111524113844},{"$f":"MAX((INT(AU100*AU36)+Control!$K$18*CustomersCOM!BB9),0)","v":4.3840809664932747},{"$f":"MAX((INT(AV100*AV36)+Control!$K$18*CustomersCOM!BC9),0)","v":3.3621605616608088},{"$f":"MAX((INT(AW100*AW36)+Control!$K$18*CustomersCOM!BD9),0)","v":3.3453497588525045},{"$f":"MAX((INT(AX100*AX36)+Control!$K$18*CustomersCOM!BE9),0)","v":3.3286230100582421},{"$f":"MAX((INT(AY100*AY36)+Control!$K$18*CustomersCOM!BF9),0)","v":3.3119798950079509},{"$f":"MAX((INT(AZ100*AZ36)+Control!$K$18*CustomersCOM!BG9),0)","v":2.2954199955329111},{"$f":"MAX((INT(BA100*BA36)+Control!$K$18*CustomersCOM!BH9),0)","v":2.2839428955552465},{"$f":"MAX((INT(BB100*BB36)+Control!$K$18*CustomersCOM!BI9),0)","v":2.27252318107747},{"$f":"MAX((INT(BC100*BC36)+Control!$K$18*CustomersCOM!BJ9),0)","v":2.2611605651720827},{"$f":"MAX((INT(BD100*BD36)+Control!$K$18*CustomersCOM!BK9),0)","v":2.2498547623462226},{"$f":"MAX((INT(BE100*BE36)+Control!$K$18*CustomersCOM!BL9),0)","v":2.2386054885344913},{"$f":"MAX((INT(BF100*BF36)+Control!$K$18*CustomersCOM!BM9),0)","v":2.2274124610918187},{"$f":"MAX((INT(BG100*BG36)+Control!$K$18*CustomersCOM!BN9),0)","v":1.2162753987863597},{"$f":"MAX((INT(BH100*BH36)+Control!$K$18*CustomersCOM!BO9),0)","v":1.2101940217924279},{"$f":"MAX((INT(BI100*BI36)+Control!$K$18*CustomersCOM!BP9),0)","v":1.2041430516834659},{"$f":"MAX((INT(BJ100*BJ36)+Control!$K$18*CustomersCOM!BQ9),0)","v":1.1981223364250484},{"$f":"MAX((INT(BK100*BK36)+Control!$K$18*CustomersCOM!BR9),0)","v":1.1921317247429233},{"$f":"MAX((INT(BL100*BL36)+Control!$K$18*CustomersCOM!BS9),0)","v":1.1861710661192086},{"$f":"MAX((INT(BM100*BM36)+Control!$K$18*CustomersCOM!BT9),0)","v":1.1802402107886125},{"$f":"MAX((INT(BN100*BN36)+Control!$K$18*CustomersCOM!BU9),0)","v":1.1743390097346695},{"$f":"MAX((INT(BO100*BO36)+Control!$K$18*CustomersCOM!BV9),0)","v":1.1684673146859963},{"$f":"MAX((INT(BP100*BP36)+Control!$K$18*CustomersCOM!BW9),0)","v":1.1626249781125662},{"$f":"MAX((INT(BQ100*BQ36)+Control!$K$18*CustomersCOM!BX9),0)","v":1.1568118532220033},{"$f":"MAX((INT(BR100*BR36)+Control!$K$18*CustomersCOM!BY9),0)","v":1.1510277939558935},{"$f":"MAX((INT(BS100*BS36)+Control!$K$18*CustomersCOM!BZ9),0)","v":0.14527265498611391},{"$f":"MAX((INT(BT100*BT36)+Control!$K$18*CustomersCOM!CA9),0)","v":0.14454629171118333},{"$f":"MAX((INT(BU100*BU36)+Control!$K$18*CustomersCOM!CB9),0)","v":0.14382356025262741},{"$f":"MAX((INT(BV100*BV36)+Control!$K$18*CustomersCOM!CC9),0)","v":0.14310444245136428},{"$f":"MAX((INT(BW100*BW36)+Control!$K$18*CustomersCOM!CD9),0)","v":0.14238892023910746},{"$f":"MAX((INT(BX100*BX36)+Control!$K$18*CustomersCOM!CE9),0)","v":0.14167697563791193},{"$f":"MAX((INT(BY100*BY36)+Control!$K$18*CustomersCOM!CF9),0)","v":0.14096859075972237},{"$f":"MAX((INT(BZ100*BZ36)+Control!$K$18*CustomersCOM!CG9),0)","v":0.14026374780592377},{"$f":"MAX((INT(CA100*CA36)+Control!$K$18*CustomersCOM!CH9),0)","v":0.13956242906689414},{"$f":"MAX((INT(CB100*CB36)+Control!$K$18*CustomersCOM!CI9),0)","v":0.13886461692155966},{"$f":"MAX((INT(CC100*CC36)+Control!$K$18*CustomersCOM!CJ9),0)","v":0.13817029383695187},{"$f":"MAX((INT(CD100*CD36)+Control!$K$18*CustomersCOM!CK9),0)","v":0.1374794423677671}]
["Greater Dandenong (C)",null,{"$f":"(INT(C101*C37)+AVERAGE(CustomersCOM!$H56:$J56))","v":65.666666666666671},{"$f":"MAX((INT(D101*D37)+Control!$K$18*CustomersCOM!K10),0)","v":16.066666666666666},{"$f":"MAX((INT(E101*E37)+Control!$K$18*CustomersCOM!L10),0)","v":84.061333333333337},{"$f":"MAX((INT(F101*F37)+Control!$K$18*CustomersCOM!M10),0)","v":79.641026666666662},{"$f":"MAX((INT(G101*G37)+Control!$K$18*CustomersCOM!N10),0)","v":11.242821533333334},{"$f":"MAX((INT(H101*H37)+Control!$K$18*CustomersCOM!O10),0)","v":14.256607425666665},{"$f":"MAX((INT(I101*I37)+Control!$K$18*CustomersCOM!P10),0)","v":56.245324388538336},{"$f":"MAX((INT(J101*J37)+Control!$K$18*CustomersCOM!Q10),0)","v":55.969097766595638},{"$f":"MAX((INT(K101*K37)+Control!$K$18*CustomersCOM!R10),0)","v":65.694252277762658},{"$f":"MAX((INT(L101*L37)+Control!$K$18*CustomersCOM!S10),0)","v":61.365781016373852},{"$f":"MAX((INT(M101*M37)+Control!$K$18*CustomersCOM!T10),0)","v":54.05895211129198},{"$f":"MAX((INT(N101*N37)+Control!$K$18*CustomersCOM!U10),0)","v":50.788657350735519},{"$f":"MAX((INT(O101*O37)+Control!$K$18*CustomersCOM!V10),0)","v":49.534714063981845},{"$f":"MAX((INT(P101*P37)+Control!$K$18*CustomersCOM!W10),0)","v":45.287040493661934},{"$f":"MAX((INT(Q101*Q37)+Control!$K$18*CustomersCOM!X10),0)","v":25.060605291193625},{"$f":"MAX((INT(R101*R37)+Control!$K$18*CustomersCOM!Y10),0)","v":35.935302264737658},{"$f":"MAX((INT(S101*S37)+Control!$K$18*CustomersCOM!Z10),0)","v":37.755625753413966},{"$f":"MAX((INT(T101*T37)+Control!$K$18*CustomersCOM!AA10),0)","v":35.566847624646897},{"$f":"MAX((INT(U101*U37)+Control!$K$18*CustomersCOM!AB10),0)","v":32.389013386523665},{"$f":"MAX((INT(V101*V37)+Control!$K$18*CustomersCOM!AC10),0)","v":30.227068319591044},{"$f":"MAX((INT(W101*W37)+Control!$K$18*CustomersCOM!AD10),0)","v":28.075932977993091},{"$f":"MAX((INT(X101*X37)+Control!$K$18*CustomersCOM!AE10),0)","v":25.935553313103124},{"$f":"MAX((INT(Y101*Y37)+Control!$K$18*CustomersCOM!AF10),0)","v":24.805875546537607},{"$f":"MAX((INT(Z101*Z37)+Control!$K$18*CustomersCOM!AG10),0)","v":22.68184616880492},{"$f":"MAX((INT(AA101*AA37)+Control!$K$18*CustomersCOM!AH10),0)","v":20.568436937960897},{"$f":"MAX((INT(AB101*AB37)+Control!$K$18*CustomersCOM!AI10),0)","v":19.465594753271091},{"$f":"MAX((INT(AC101*AC37)+Control!$K$18*CustomersCOM!AJ10),0)","v":18.368266779504737},{"$f":"MAX((INT(AD101*AD37)+Control!$K$18*CustomersCOM!AK10),0)","v":17.276425445607213},{"$f":"MAX((INT(AE101*AE37)+Control!$K$18*CustomersCOM!AL10),0)","v":15.190043318379177},{"$f":"MAX((INT(AF101*AF37)+Control!$K$18*CustomersCOM!AM10),0)","v":14.114093101787279},{"$f":"MAX((INT(AG101*AG37)+Control!$K$18*CustomersCOM!AN10),0)","v":13.043522636278343},{"$f":"MAX((INT(AH101*AH37)+Control!$K$18*CustomersCOM!AO10),0)","v":12.978305023096953},{"$f":"MAX((INT(AI101*AI37)+Control!$K$18*CustomersCOM!AP10),0)","v":11.913413497981468},{"$f":"MAX((INT(AJ101*AJ37)+Control!$K$18*CustomersCOM!AQ10),0)","v":10.85384643049156},{"$f":"MAX((INT(AK101*AK37)+Control!$K$18*CustomersCOM!AR10),0)","v":9.7995771983391027},{"$f":"MAX((INT(AL101*AL37)+Control!$K$18*CustomersCOM!AS10),0)","v":9.7505793123474067},{"$f":"MAX((INT(AM101*AM37)+Control!$K$18*CustomersCOM!AT10),0)","v":8.7018264157856695},{"$f":"MAX((INT(AN101*AN37)+Control!$K$18*CustomersCOM!AU10),0)","v":7.658317283706741},{"$f":"MAX((INT(AO101*AO37)+Control!$K$18*CustomersCOM!AV10),0)","v":7.6200256972882077},{"$f":"MAX((INT(AP101*AP37)+Control!$K$18*CustomersCOM!AW10),0)","v":6.5819255688017666},{"$f":"MAX((INT(AQ101*AQ37)+Control!$K$18*CustomersCOM!AX10),0)","v":6.5490159409577577},{"$f":"MAX((INT(AR101*AR37)+Control!$K$18*CustomersCOM!AY10),0)","v":5.5162708612529689},{"$f":"MAX((INT(AS101*AS37)+Control!$K$18*CustomersCOM!AZ10),0)","v":5.4886895069467041},{"$f":"MAX((INT(AT101*AT37)+Control!$K$18*CustomersCOM!BA10),0)","v":5.4612460594119705},{"$f":"MAX((INT(AU101*AU37)+Control!$K$18*CustomersCOM!BB10),0)","v":4.4339398291149106},{"$f":"MAX((INT(AV101*AV37)+Control!$K$18*CustomersCOM!BC10),0)","v":4.4117701299693364},{"$f":"MAX((INT(AW101*AW37)+Control!$K$18*CustomersCOM!BD10),0)","v":4.3897112793194895},{"$f":"MAX((INT(AX101*AX37)+Control!$K$18*CustomersCOM!BE10),0)","v":3.3677627229228921},{"$f":"MAX((INT(AY101*AY37)+Control!$K$18*CustomersCOM!BF10),0)","v":3.3509239093082774},{"$f":"MAX((INT(AZ101*AZ37)+Control!$K$18*CustomersCOM!BG10),0)","v":3.3341692897617361},{"$f":"MAX((INT(BA101*BA37)+Control!$K$18*CustomersCOM!BH10),0)","v":3.3174984433129273},{"$f":"MAX((INT(BB101*BB37)+Control!$K$18*CustomersCOM!BI10),0)","v":3.3009109510963626},{"$f":"MAX((INT(BC101*BC37)+Control!$K$18*CustomersCOM!BJ10),0)","v":2.2844063963408807},{"$f":"MAX((INT(BD101*BD37)+Control!$K$18*CustomersCOM!BK10),0)","v":2.2729843643591767},{"$f":"MAX((INT(BE101*BE37)+Control!$K$18*CustomersCOM!BL10),0)","v":2.2616194425373806},{"$f":"MAX((INT(BF101*BF37)+Control!$K$18*CustomersCOM!BM10),0)","v":2.2503113453246937},{"$f":"MAX((INT(BG101*BG37)+Control!$K$18*CustomersCOM!BN10),0)","v":2.2390597885980701},{"$f":"MAX((INT(BH101*BH37)+Control!$K$18*CustomersCOM!BO10),0)","v":2.2278644896550799},{"$f":"MAX((INT(BI101*BI37)+Control!$K$18*CustomersCOM!BP10),0)","v":1.2167251672068045},{"$f":"MAX((INT(BJ101*BJ37)+Control!$K$18*CustomersCOM!BQ10),0)","v":1.2106415413707705},{"$f":"MAX((INT(BK101*BK37)+Control!$K$18*CustomersCOM!BR10),0)","v":1.2045883336639167},{"$f":"MAX((INT(BL101*BL37)+Control!$K$18*CustomersCOM!BS10),0)","v":1.198565391995597},{"$f":"MAX((INT(BM101*BM37)+Control!$K$18*CustomersCOM!BT10),0)","v":1.1925725650356191},{"$f":"MAX((INT(BN101*BN37)+Control!$K$18*CustomersCOM!BU10),0)","v":1.1866097022104409},{"$f":"MAX((INT(BO101*BO37)+Control!$K$18*CustomersCOM!BV10),0)","v":1.1806766536993889},{"$f":"MAX((INT(BP101*BP37)+Control!$K$18*CustomersCOM!BW10),0)","v":1.174773270430892},{"$f":"MAX((INT(BQ101*BQ37)+Control!$K$18*CustomersCOM!BX10),0)","v":1.1688994040787375},{"$f":"MAX((INT(BR101*BR37)+Control!$K$18*CustomersCOM!BY10),0)","v":1.1630549070583438},{"$f":"MAX((INT(BS101*BS37)+Control!$K$18*CustomersCOM!BZ10),0)","v":1.1572396325230521},{"$f":"MAX((INT(BT101*BT37)+Control!$K$18*CustomersCOM!CA10),0)","v":1.1514534343604368},{"$f":"MAX((INT(BU101*BU37)+Control!$K$18*CustomersCOM!CB10),0)","v":0.14569616718863457},{"$f":"MAX((INT(BV101*BV37)+Control!$K$18*CustomersCOM!CC10),0)","v":0.14496768635269139},{"$f":"MAX((INT(BW101*BW37)+Control!$K$18*CustomersCOM!CD10),0)","v":0.14424284792092792},{"$f":"MAX((INT(BX101*BX37)+Control!$K$18*CustomersCOM!CE10),0)","v":0.14352163368132329},{"$f":"MAX((INT(BY101*BY37)+Control!$K$18*CustomersCOM!CF10),0)","v":0.14280402551291668},{"$f":"MAX((INT(BZ101*BZ37)+Control!$K$18*CustomersCOM!CG10),0)","v":0.1420900053853521},{"$f":"MAX((INT(CA101*CA37)+Control!$K$18*CustomersCOM!CH10),0)","v":0.14137955535842534},{"$f":"MAX((INT(CB101*CB37)+Control!$K$18*CustomersCOM!CI10),0)","v":0.14067265758163319},{"$f":"MAX((INT(CC101*CC37)+Control!$K$18*CustomersCOM!CJ10),0)","v":0.13996929429372504},{"$f":"MAX((INT(CD101*CD37)+Control!$K$18*CustomersCOM!CK10),0)","v":0.13926944782225642}]
["Kingston (C)",null,{"$f":"(INT(C102*C38)+AVERAGE(CustomersCOM!$H57:$J57))","v":54},{"$f":"MAX((INT(D102*D38)+Control!$K$18*CustomersCOM!K11),0)","v":20.79},{"$f":"MAX((INT(E102*E38)+Control!$K$18*CustomersCOM!L11),0)","v":77.741050000000001},{"$f":"MAX((INT(F102*F38)+Control!$K$18*CustomersCOM!M11),0)","v":75.35234475},{"$f":"MAX((INT(G102*G38)+Control!$K$18*CustomersCOM!N11),0)","v":14.97558302625},{"$f":"MAX((INT(H102*H38)+Control!$K$18*CustomersCOM!O11),0)","v":18.95570511111875},{"$f":"MAX((INT(I102*I38)+Control!$K$18*CustomersCOM!P11),0)","v":50.905926585563158},{"$f":"MAX((INT(J102*J38)+Control!$K$18*CustomersCOM!Q11),0)","v":49.65639695263534},{"$f":"MAX((INT(K102*K38)+Control!$K$18*CustomersCOM!R11),0)","v":61.413114967872161},{"$f":"MAX((INT(L102*L38)+Control!$K$18*CustomersCOM!S11),0)","v":57.106049393032805},{"$f":"MAX((INT(M102*M38)+Control!$K$18*CustomersCOM!T11),0)","v":47.820519146067639},{"$f":"MAX((INT(N102*N38)+Control!$K$18*CustomersCOM!U11),0)","v":45.581416550337302},{"$f":"MAX((INT(O102*O38)+Control!$K$18*CustomersCOM!V11),0)","v":46.353509467585617},{"$f":"MAX((INT(P102*P38)+Control!$K$18*CustomersCOM!W11),0)","v":43.121741920247686},{"$f":"MAX((INT(Q102*Q38)+Control!$K$18*CustomersCOM!X11),0)","v":21.906133210646448},{"$f":"MAX((INT(R102*R38)+Control!$K$18*CustomersCOM!Y11),0)","v":30.796602544593217},{"$f":"MAX((INT(S102*S38)+Control!$K$18*CustomersCOM!Z11),0)","v":35.642619531870253},{"$f":"MAX((INT(T102*T38)+Control!$K$18*CustomersCOM!AA11),0)","v":33.4644064342109},{"$f":"MAX((INT(U102*U38)+Control!$K$18*CustomersCOM!AB11),0)","v":31.297084402039843},{"$f":"MAX((INT(V102*V38)+Control!$K$18*CustomersCOM!AC11),0)","v":29.140598980029644},{"$f":"MAX((INT(W102*W38)+Control!$K$18*CustomersCOM!AD11),0)","v":26.994895985129496},{"$f":"MAX((INT(X102*X38)+Control!$K$18*CustomersCOM!AE11),0)","v":24.859921505203847},{"$f":"MAX((INT(Y102*Y38)+Control!$K$18*CustomersCOM!AF11),0)","v":23.735621897677831},{"$f":"MAX((INT(Z102*Z38)+Control!$K$18*CustomersCOM!AG11),0)","v":21.616943788189438},{"$f":"MAX((INT(AA102*AA38)+Control!$K$18*CustomersCOM!AH11),0)","v":20.508859069248494},{"$f":"MAX((INT(AB102*AB38)+Control!$K$18*CustomersCOM!AI11),0)","v":18.406314773902249},{"$f":"MAX((INT(AC102*AC38)+Control!$K$18*CustomersCOM!AJ11),0)","v":17.31428320003274},{"$f":"MAX((INT(AD102*AD38)+Control!$K$18*CustomersCOM!AK11),0)","v":16.227711784032575},{"$f":"MAX((INT(AE102*AE38)+Control!$K$18*CustomersCOM!AL11),0)","v":15.146573225112412},{"$f":"MAX((INT(AF102*AF38)+Control!$K$18*CustomersCOM!AM11),0)","v":14.07084035898685},{"$f":"MAX((INT(AG102*AG38)+Control!$K$18*CustomersCOM!AN11),0)","v":13.000486157191917},{"$f":"MAX((INT(AH102*AH38)+Control!$K$18*CustomersCOM!AO11),0)","v":11.935483726405957},{"$f":"MAX((INT(AI102*AI38)+Control!$K$18*CustomersCOM!AP11),0)","v":10.875806307773926},{"$f":"MAX((INT(AJ102*AJ38)+Control!$K$18*CustomersCOM!AQ11),0)","v":9.8214272762350578},{"$f":"MAX((INT(AK102*AK38)+Control!$K$18*CustomersCOM!AR11),0)","v":9.7723201398538819},{"$f":"MAX((INT(AL102*AL38)+Control!$K$18*CustomersCOM!AS11),0)","v":8.7234585391546133},{"$f":"MAX((INT(AM102*AM38)+Control!$K$18*CustomersCOM!AT11),0)","v":8.6798412464588388},{"$f":"MAX((INT(AN102*AN38)+Control!$K$18*CustomersCOM!AU11),0)","v":7.6364420402265454},{"$f":"MAX((INT(AO102*AO38)+Control!$K$18*CustomersCOM!AV11),0)","v":6.5982598300254125},{"$f":"MAX((INT(AP102*AP38)+Control!$K$18*CustomersCOM!AW11),0)","v":6.5652685308752856},{"$f":"MAX((INT(AQ102*AQ38)+Control!$K$18*CustomersCOM!AX11),0)","v":6.5324421882209087},{"$f":"MAX((INT(AR102*AR38)+Control!$K$18*CustomersCOM!AY11),0)","v":5.4997799772798048},{"$f":"MAX((INT(AS102*AS38)+Control!$K$18*CustomersCOM!AZ11),0)","v":5.4722810773934052},{"$f":"MAX((INT(AT102*AT38)+Control!$K$18*CustomersCOM!BA11),0)","v":4.4449196720064386},{"$f":"MAX((INT(AU102*AU38)+Control!$K$18*CustomersCOM!BB11),0)","v":4.4226950736464063},{"$f":"MAX((INT(AV102*AV38)+Control!$K$18*CustomersCOM!BC11),0)","v":4.4005815982781744},{"$f":"MAX((INT(AW102*AW38)+Control!$K$18*CustomersCOM!BD11),0)","v":4.3785786902867834},{"$f":"MAX((INT(AX102*AX38)+Control!$K$18*CustomersCOM!BE11),0)","v":3.3566857968353494},{"$f":"MAX((INT(AY102*AY38)+Control!$K$18*CustomersCOM!BF11),0)","v":3.3399023678511726},{"$f":"MAX((INT(AZ102*AZ38)+Control!$K$18*CustomersCOM!BG11),0)","v":3.3232028560119167},{"$f":"MAX((INT(BA102*BA38)+Control!$K$18*CustomersCOM!BH11),0)","v":3.3065868417318574},{"$f":"MAX((INT(BB102*BB38)+Control!$K$18*CustomersCOM!BI11),0)","v":2.2900539075231978},{"$f":"MAX((INT(BC102*BC38)+Control!$K$18*CustomersCOM!BJ11),0)","v":2.2786036379855821},{"$f":"MAX((INT(BD102*BD38)+Control!$K$18*CustomersCOM!BK11),0)","v":2.2672106197956539},{"$f":"MAX((INT(BE102*BE38)+Control!$K$18*CustomersCOM!BL11),0)","v":2.2558745666966757},{"$f":"MAX((INT(BF102*BF38)+Control!$K$18*CustomersCOM!BM11),0)","v":2.2445951938631925},{"$f":"MAX((INT(BG102*BG38)+Control!$K$18*CustomersCOM!BN11),0)","v":2.2333722178938764},{"$f":"MAX((INT(BH102*BH38)+Control!$K$18*CustomersCOM!BO11),0)","v":1.2222053568044071},{"$f":"MAX((INT(BI102*BI38)+Control!$K$18*CustomersCOM!BP11),0)","v":1.216094330020385},{"$f":"MAX((INT(BJ102*BJ38)+Control!$K$18*CustomersCOM!BQ11),0)","v":1.2100138583702831},{"$f":"MAX((INT(BK102*BK38)+Control!$K$18*CustomersCOM!BR11),0)","v":1.2039637890784316},{"$f":"MAX((INT(BL102*BL38)+Control!$K$18*CustomersCOM!BS11),0)","v":1.1979439701330397},{"$f":"MAX((INT(BM102*BM38)+Control!$K$18*CustomersCOM!BT11),0)","v":1.1919542502823743},{"$f":"MAX((INT(BN102*BN38)+Control!$K$18*CustomersCOM!BU11),0)","v":1.1859944790309624},{"$f":"MAX((INT(BO102*BO38)+Control!$K$18*CustomersCOM!BV11),0)","v":1.1800645066358078},{"$f":"MAX((INT(BP102*BP38)+Control!$K$18*CustomersCOM!BW11),0)","v":1.1741641841026287},{"$f":"MAX((INT(BQ102*BQ38)+Control!$K$18*CustomersCOM!BX11),0)","v":1.1682933631821155},{"$f":"MAX((INT(BR102*BR38)+Control!$K$18*CustomersCOM!BY11),0)","v":1.1624518963662049},{"$f":"MAX((INT(BS102*BS38)+Control!$K$18*CustomersCOM!BZ11),0)","v":1.1566396368843739},{"$f":"MAX((INT(BT102*BT38)+Control!$K$18*CustomersCOM!CA11),0)","v":1.150856438699952},{"$f":"MAX((INT(BU102*BU38)+Control!$K$18*CustomersCOM!CB11),0)","v":0.14510215650645225},{"$f":"MAX((INT(BV102*BV38)+Control!$K$18*CustomersCOM!CC11),0)","v":0.14437664572391998},{"$f":"MAX((INT(BW102*BW38)+Control!$K$18*CustomersCOM!CD11),0)","v":0.14365476249530038},{"$f":"MAX((INT(BX102*BX38)+Control!$K$18*CustomersCOM!CE11),0)","v":0.14293648868282391},{"$f":"MAX((INT(BY102*BY38)+Control!$K$18*CustomersCOM!CF11),0)","v":0.14222180623940978},{"$f":"MAX((INT(BZ102*BZ38)+Control!$K$18*CustomersCOM!CG11),0)","v":0.14151069720821272},{"$f":"MAX((INT(CA102*CA38)+Control!$K$18*CustomersCOM!CH11),0)","v":0.14080314372217168},{"$f":"MAX((INT(CB102*CB38)+Control!$K$18*CustomersCOM!CI11),0)","v":0.14009912800356081},{"$f":"MAX((INT(CC102*CC38)+Control!$K$18*CustomersCOM!CJ11),0)","v":0.13939863236354302},{"$f":"MAX((INT(CD102*CD38)+Control!$K$18*CustomersCOM!CK11),0)","v":0.13870163920172529}]
["Knox (C)",null,{"$f":"(INT(C103*C39)+AVERAGE(CustomersCOM!$H58:$J58))","v":42},{"$f":"MAX((INT(D103*D39)+Control!$K$18*CustomersCOM!K12),0)","v":18.3},{"$f":"MAX((INT(E103*E39)+Control!$K$18*CustomersCOM!L12),0)","v":71.258499999999998},{"$f":"MAX((INT(F103*F39)+Control!$K$18*CustomersCOM!M12),0)","v":68.902207500000003},{"$f":"MAX((INT(G103*G39)+Control!$K$18*CustomersCOM!N12),0)","v":13.557696462500001},{"$f":"MAX((INT(H103*H39)+Control!$K$18*CustomersCOM!O12),0)","v":16.5399079801875},{"$f":"MAX((INT(I103*I39)+Control!$K$18*CustomersCOM!P12),0)","v":45.497208440286563},{"$f":"MAX((INT(J103*J39)+Control!$K$18*CustomersCOM!Q12),0)","v":44.274722398085132},{"$f":"MAX((INT(K103*K39)+Control!$K$18*CustomersCOM!R12),0)","v":57.058348786094705},{"$f":"MAX((INT(L103*L39)+Control!$K$18*CustomersCOM!S12),0)","v":52.773057042164233},{"$f":"MAX((INT(M103*M39)+Control!$K$18*CustomersCOM!T12),0)","v":43.509191756953406},{"$f":"MAX((INT(N103*N39)+Control!$K$18*CustomersCOM!U12),0)","v":41.291645798168645},{"$f":"MAX((INT(O103*O39)+Control!$K$18*CustomersCOM!V12),0)","v":43.085187569177798},{"$f":"MAX((INT(P103*P39)+Control!$K$18*CustomersCOM!W12),0)","v":39.869761631331912},{"$f":"MAX((INT(Q103*Q39)+Control!$K$18*CustomersCOM!X12),0)","v":19.670412823175248},{"$f":"MAX((INT(R103*R39)+Control!$K$18*CustomersCOM!Y12),0)","v":27.572060759059372},{"$f":"MAX((INT(S103*S39)+Control!$K$18*CustomersCOM!Z12),0)","v":32.434200455264076},{"$f":"MAX((INT(T103*T39)+Control!$K$18*CustomersCOM!AA12),0)","v":31.272029452987756},{"$f":"MAX((INT(U103*U39)+Control!$K$18*CustomersCOM!AB12),0)","v":29.115669305722818},{"$f":"MAX((INT(V103*V39)+Control!$K$18*CustomersCOM!AC12),0)","v":26.970090959194202},{"$f":"MAX((INT(W103*W39)+Control!$K$18*CustomersCOM!AD12),0)","v":24.835240504398232},{"$f":"MAX((INT(X103*X39)+Control!$K$18*CustomersCOM!AE12),0)","v":22.711064301876242},{"$f":"MAX((INT(Y103*Y39)+Control!$K$18*CustomersCOM!AF12),0)","v":21.597508980366861},{"$f":"MAX((INT(Z103*Z39)+Control!$K$18*CustomersCOM!AG12),0)","v":19.489521435465026},{"$f":"MAX((INT(AA103*AA39)+Control!$K$18*CustomersCOM!AH12),0)","v":18.3920738282877},{"$f":"MAX((INT(AB103*AB39)+Control!$K$18*CustomersCOM!AI12),0)","v":17.30011345914626},{"$f":"MAX((INT(AC103*AC39)+Control!$K$18*CustomersCOM!AJ12),0)","v":16.213612891850531},{"$f":"MAX((INT(AD103*AD39)+Control!$K$18*CustomersCOM!AK12),0)","v":15.132544827391278},{"$f":"MAX((INT(AE103*AE39)+Control!$K$18*CustomersCOM!AL12),0)","v":14.056882103254321},{"$f":"MAX((INT(AF103*AF39)+Control!$K$18*CustomersCOM!AM12),0)","v":12.98659769273805},{"$f":"MAX((INT(AG103*AG39)+Control!$K$18*CustomersCOM!AN12),0)","v":11.92166470427436},{"$f":"MAX((INT(AH103*AH39)+Control!$K$18*CustomersCOM!AO12),0)","v":10.862056380752987},{"$f":"MAX((INT(AI103*AI39)+Control!$K$18*CustomersCOM!AP12),0)","v":9.807746098849222},{"$f":"MAX((INT(AJ103*AJ39)+Control!$K$18*CustomersCOM!AQ12),0)","v":9.7587073683549761},{"$f":"MAX((INT(AK103*AK39)+Control!$K$18*CustomersCOM!AR12),0)","v":8.7099138315132016},{"$f":"MAX((INT(AL103*AL39)+Control!$K$18*CustomersCOM!AS12),0)","v":7.6663642623556356},{"$f":"MAX((INT(AM103*AM39)+Control!$K$18*CustomersCOM!AT12),0)","v":7.6280324410438576},{"$f":"MAX((INT(AN103*AN39)+Control!$K$18*CustomersCOM!AU12),0)","v":6.5898922788386383},{"$f":"MAX((INT(AO103*AO39)+Control!$K$18*CustomersCOM!AV12),0)","v":6.5569428174444448},{"$f":"MAX((INT(AP103*AP39)+Control!$K$18*CustomersCOM!AW12),0)","v":5.5241581033572222},{"$f":"MAX((INT(AQ103*AQ39)+Control!$K$18*CustomersCOM!AX12),0)","v":5.4965373128404362},{"$f":"MAX((INT(AR103*AR39)+Control!$K$18*CustomersCOM!AY12),0)","v":5.4690546262762343},{"$f":"MAX((INT(AS103*AS39)+Control!$K$18*CustomersCOM!AZ12),0)","v":4.4417093531448533},{"$f":"MAX((INT(AT103*AT39)+Control!$K$18*CustomersCOM!BA12),0)","v":4.419500806379129},{"$f":"MAX((INT(AU103*AU39)+Control!$K$18*CustomersCOM!BB12),0)","v":4.3974033023472332},{"$f":"MAX((INT(AV103*AV39)+Control!$K$18*CustomersCOM!BC12),0)","v":4.375416285835497},{"$f":"MAX((INT(AW103*AW39)+Control!$K$18*CustomersCOM!BD12),0)","v":3.3535392044063195},{"$f":"MAX((INT(AX103*AX39)+Control!$K$18*CustomersCOM!BE12),0)","v":3.3367715083842882},{"$f":"MAX((INT(AY103*AY39)+Control!$K$18*CustomersCOM!BF12),0)","v":3.3200876508423667},{"$f":"MAX((INT(AZ103*AZ39)+Control!$K$18*CustomersCOM!BG12),0)","v":3.3034872125881547},{"$f":"MAX((INT(BA103*BA39)+Control!$K$18*CustomersCOM!BH12),0)","v":2.2869697765252139},{"$f":"MAX((INT(BB103*BB39)+Control!$K$18*CustomersCOM!BI12),0)","v":2.275534927642588},{"$f":"MAX((INT(BC103*BC39)+Control!$K$18*CustomersCOM!BJ12),0)","v":2.2641572530043748},{"$f":"MAX((INT(BD103*BD39)+Control!$K$18*CustomersCOM!BK12),0)","v":2.2528364667393532},{"$f":"MAX((INT(BE103*BE39)+Control!$K$18*CustomersCOM!BL12),0)","v":2.241572284405656},{"$f":"MAX((INT(BF103*BF39)+Control!$K$18*CustomersCOM!BM12),0)","v":2.2303644229836279},{"$f":"MAX((INT(BG103*BG39)+Control!$K$18*CustomersCOM!BN12),0)","v":1.2192126008687099},{"$f":"MAX((INT(BH103*BH39)+Control!$K$18*CustomersCOM!BO12),0)","v":1.2131165378643662},{"$f":"MAX((INT(BI103*BI39)+Control!$K$18*CustomersCOM!BP12),0)","v":1.2070509551750446},{"$f":"MAX((INT(BJ103*BJ39)+Control!$K$18*CustomersCOM!BQ12),0)","v":1.2010157003991693},{"$f":"MAX((INT(BK103*BK39)+Control!$K$18*CustomersCOM!BR12),0)","v":1.1950106218971734},{"$f":"MAX((INT(BL103*BL39)+Control!$K$18*CustomersCOM!BS12),0)","v":1.1890355687876875},{"$f":"MAX((INT(BM103*BM39)+Control!$K$18*CustomersCOM!BT12),0)","v":1.1830903909437491},{"$f":"MAX((INT(BN103*BN39)+Control!$K$18*CustomersCOM!BU12),0)","v":1.1771749389890305},{"$f":"MAX((INT(BO103*BO39)+Control!$K$18*CustomersCOM!BV12),0)","v":1.1712890642940852},{"$f":"MAX((INT(BP103*BP39)+Control!$K$18*CustomersCOM!BW12),0)","v":1.1654326189726147},{"$f":"MAX((INT(BQ103*BQ39)+Control!$K$18*CustomersCOM!BX12),0)","v":1.1596054558777518},{"$f":"MAX((INT(BR103*BR39)+Control!$K$18*CustomersCOM!BY12),0)","v":1.153807428598363},{"$f":"MAX((INT(BS103*BS39)+Control!$K$18*CustomersCOM!BZ12),0)","v":0.14803839145537112},{"$f":"MAX((INT(BT103*BT39)+Control!$K$18*CustomersCOM!CA12),0)","v":0.14729819949809425},{"$f":"MAX((INT(BU103*BU39)+Control!$K$18*CustomersCOM!CB12),0)","v":0.14656170850060377},{"$f":"MAX((INT(BV103*BV39)+Control!$K$18*CustomersCOM!CC12),0)","v":0.14582889995810075},{"$f":"MAX((INT(BW103*BW39)+Control!$K$18*CustomersCOM!CD12),0)","v":0.14509975545831025},{"$f":"MAX((INT(BX103*BX39)+Control!$K$18*CustomersCOM!CE12),0)","v":0.14437425668101869},{"$f":"MAX((INT(BY103*BY39)+Control!$K$18*CustomersCOM!CF12),0)","v":0.1436523853976136},{"$f":"MAX((INT(BZ103*BZ39)+Control!$K$18*CustomersCOM!CG12),0)","v":0.14293412347062556},{"$f":"MAX((INT(CA103*CA39)+Control!$K$18*CustomersCOM!CH12),0)","v":0.14221945285327242},{"$f":"MAX((INT(CB103*CB39)+Control!$K$18*CustomersCOM!CI12),0)","v":0.14150835558900607},{"$f":"MAX((INT(CC103*CC39)+Control!$K$18*CustomersCOM!CJ12),0)","v":0.14080081381106102},{"$f":"MAX((INT(CD103*CD39)+Control!$K$18*CustomersCOM!CK12),0)","v":0.14009680974200572}]
["Manningham (C)",null,{"$f":"(INT(C104*C40)+AVERAGE(CustomersCOM!$H59:$J59))","v":10.666666666666666},{"$f":"MAX((INT(D104*D40)+Control!$K$18*CustomersCOM!K13),0)","v":8.7566666666666677},{"$f":"MAX((INT(E104*E40)+Control!$K$18*CustomersCOM!L13),0)","v":36.737883333333336},{"$f":"MAX((INT(F104*F40)+Control!$K$18*CustomersCOM!M13),0)","v":35.554193916666669},{"$f":"MAX((INT(G104*G40)+Control!$K$18*CustomersCOM!N13),0)","v":6.3764229470833333},{"$f":"MAX((INT(H104*H40)+Control!$K$18*CustomersCOM!O13),0)","v":8.3695408323479175},{"$f":"MAX((INT(I104*I40)+Control!$K$18*CustomersCOM!P13),0)","v":25.347693128186176},{"$f":"MAX((INT(J104*J40)+Control!$K$18*CustomersCOM!Q13),0)","v":24.220954662545246},{"$f":"MAX((INT(K104*K40)+Control!$K$18*CustomersCOM!R13),0)","v":28.099849889232519},{"$f":"MAX((INT(L104*L40)+Control!$K$18*CustomersCOM!S13),0)","v":26.959350639786358},{"$f":"MAX((INT(M104*M40)+Control!$K$18*CustomersCOM!T13),0)","v":22.824553886587427},{"$f":"MAX((INT(N104*N40)+Control!$K$18*CustomersCOM!U13),0)","v":21.710431117154489},{"$f":"MAX((INT(O104*O40)+Control!$K$18*CustomersCOM!V13),0)","v":21.601878961568715},{"$f":"MAX((INT(P104*P40)+Control!$K$18*CustomersCOM!W13),0)","v":19.493869566760871},{"$f":"MAX((INT(Q104*Q40)+Control!$K$18*CustomersCOM!X13),0)","v":10.396400218927068},{"$f":"MAX((INT(R104*R40)+Control!$K$18*CustomersCOM!Y13),0)","v":14.344418217832434},{"$f":"MAX((INT(S104*S40)+Control!$K$18*CustomersCOM!Z13),0)","v":16.27269612674327},{"$f":"MAX((INT(T104*T40)+Control!$K$18*CustomersCOM!AA13),0)","v":15.191332646109554},{"$f":"MAX((INT(U104*U40)+Control!$K$18*CustomersCOM!AB13),0)","v":14.115375982879007},{"$f":"MAX((INT(V104*V40)+Control!$K$18*CustomersCOM!AC13),0)","v":13.044799102964612},{"$f":"MAX((INT(W104*W40)+Control!$K$18*CustomersCOM!AD13),0)","v":12.979575107449788},{"$f":"MAX((INT(X104*X40)+Control!$K$18*CustomersCOM!AE13),0)","v":11.91467723191254},{"$f":"MAX((INT(Y104*Y40)+Control!$K$18*CustomersCOM!AF13),0)","v":10.855103845752977},{"$f":"MAX((INT(Z104*Z40)+Control!$K$18*CustomersCOM!AG13),0)","v":9.8008283265242113},{"$f":"MAX((INT(AA104*AA40)+Control!$K$18*CustomersCOM!AH13),0)","v":9.751824184891591},{"$f":"MAX((INT(AB104*AB40)+Control!$K$18*CustomersCOM!AI13),0)","v":8.7030650639671325},{"$f":"MAX((INT(AC104*AC40)+Control!$K$18*CustomersCOM!AJ13),0)","v":7.6595497386472973},{"$f":"MAX((INT(AD104*AD40)+Control!$K$18*CustomersCOM!AK13),0)","v":7.6212519899540609},{"$f":"MAX((INT(AE104*AE40)+Control!$K$18*CustomersCOM!AL13),0)","v":6.5831457300042908},{"$f":"MAX((INT(AF104*AF40)+Control!$K$18*CustomersCOM!AM13),0)","v":6.5502300013542687},{"$f":"MAX((INT(AG104*AG40)+Control!$K$18*CustomersCOM!AN13),0)","v":5.5174788513474979},{"$f":"MAX((INT(AH104*AH40)+Control!$K$18*CustomersCOM!AO13),0)","v":5.48989145709076},{"$f":"MAX((INT(AI104*AI40)+Control!$K$18*CustomersCOM!AP13),0)","v":5.4624419998053062},{"$f":"MAX((INT(AJ104*AJ40)+Control!$K$18*CustomersCOM!AQ13),0)","v":4.4351297898062798},{"$f":"MAX((INT(AK104*AK40)+Control!$K$18*CustomersCOM!AR13),0)","v":4.4129541408572486},{"$f":"MAX((INT(AL104*AL40)+Control!$K$18*CustomersCOM!AS13),0)","v":4.3908893701529621},{"$f":"MAX((INT(AM104*AM40)+Control!$K$18*CustomersCOM!AT13),0)","v":3.3689349233021972},{"$f":"MAX((INT(AN104*AN40)+Control!$K$18*CustomersCOM!AU13),0)","v":3.3520902486856863},{"$f":"MAX((INT(AO104*AO40)+Control!$K$18*CustomersCOM!AV13),0)","v":3.3353297974422578},{"$f":"MAX((INT(AP104*AP40)+Control!$K$18*CustomersCOM!AW13),0)","v":3.3186531484550468},{"$f":"MAX((INT(AQ104*AQ40)+Control!$K$18*CustomersCOM!AX13),0)","v":3.3020598827127712},{"$f":"MAX((INT(AR104*AR40)+Control!$K$18*CustomersCOM!AY13),0)","v":2.2855495832992077},{"$f":"MAX((INT(AS104*AS40)+Control!$K$18*CustomersCOM!AZ13),0)","v":2.2741218353827115},{"$f":"MAX((INT(AT104*AT40)+Control!$K$18*CustomersCOM!BA13),0)","v":2.2627512262057978},{"$f":"MAX((INT(AU104*AU40)+Control!$K$18*CustomersCOM!BB13),0)","v":2.251437470074769},{"$f":"MAX((INT(AV104*AV40)+Control!$K$18*CustomersCOM!BC13),0)","v":2.2401802827243951},{"$f":"MAX((INT(AW104*AW40)+Control!$K$18*CustomersCOM!BD13),0)","v":2.228979381310773},{"$f":"MAX((INT(AX104*AX40)+Control!$K$18*CustomersCOM!BE13),0)","v":1.2178344844042193},{"$f":"MAX((INT(AY104*AY40)+Control!$K$18*CustomersCOM!BF13),0)","v":1.2117453119821981},{"$f":"MAX((INT(AZ104*AZ40)+Control!$K$18*CustomersCOM!BG13),0)","v":1.2056865854222871},{"$f":"MAX((INT(BA104*BA40)+Control!$K$18*CustomersCOM!BH13),0)","v":1.1996581524951757},{"$f":"MAX((INT(BB104*BB40)+Control!$K$18*CustomersCOM!BI13),0)","v":1.1936598617326999},{"$f":"MAX((INT(BC104*BC40)+Control!$K$18*CustomersCOM!BJ13),0)","v":1.1876915624240363},{"$f":"MAX((INT(BD104*BD40)+Control!$K$18*CustomersCOM!BK13),0)","v":1.1817531046119161},{"$f":"MAX((INT(BE104*BE40)+Control!$K$18*CustomersCOM!BL13),0)","v":1.1758443390888567},{"$f":"MAX((INT(BF104*BF40)+Control!$K$18*CustomersCOM!BM13),0)","v":1.1699651173934122},{"$f":"MAX((INT(BG104*BG40)+Control!$K$18*CustomersCOM!BN13),0)","v":1.1641152918064452},{"$f":"MAX((INT(BH104*BH40)+Control!$K$18*CustomersCOM!BO13),0)","v":1.158294715347413},{"$f":"MAX((INT(BI104*BI40)+Control!$K$18*CustomersCOM!BP13),0)","v":1.152503241770676},{"$f":"MAX((INT(BJ104*BJ40)+Control!$K$18*CustomersCOM!BQ13),0)","v":0.1467407255618226},{"$f":"MAX((INT(BK104*BK40)+Control!$K$18*CustomersCOM!BR13),0)","v":0.14600702193401349},{"$f":"MAX((INT(BL104*BL40)+Control!$K$18*CustomersCOM!BS13),0)","v":0.14527698682434342},{"$f":"MAX((INT(BM104*BM40)+Control!$K$18*CustomersCOM!BT13),0)","v":0.1445506018902217},{"$f":"MAX((INT(BN104*BN40)+Control!$K$18*CustomersCOM!BU13),0)","v":0.1438278488807706},{"$f":"MAX((INT(BO104*BO40)+Control!$K$18*CustomersCOM!BV13),0)","v":0.14310870963636674},{"$f":"MAX((INT(BP104*BP40)+Control!$K$18*CustomersCOM!BW13),0)","v":0.14239316608818492},{"$f":"MAX((INT(BQ104*BQ40)+Control!$K$18*CustomersCOM!BX13),0)","v":0.141681200257744},{"$f":"MAX((INT(BR104*BR40)+Control!$K$18*CustomersCOM!BY13),0)","v":0.14097279425645529},{"$f":"MAX((INT(BS104*BS40)+Control!$K$18*CustomersCOM!BZ13),0)","v":0.14026793028517301},{"$f":"MAX((INT(BT104*BT40)+Control!$K$18*CustomersCOM!CA13),0)","v":0.13956659063374713},{"$f":"MAX((INT(BU104*BU40)+Control!$K$18*CustomersCOM!CB13),0)","v":0.13886875768057841},{"$f":"MAX((INT(BV104*BV40)+Control!$K$18*CustomersCOM!CC13),0)","v":0.1381744138921755},{"$f":"MAX((INT(BW104*BW40)+Control!$K$18*CustomersCOM!CD13),0)","v":0.13748354182271461},{"$f":"MAX((INT(BX104*BX40)+Control!$K$18*CustomersCOM!CE13),0)","v":0.13679612411360104},{"$f":"MAX((INT(BY104*BY40)+Control!$K$18*CustomersCOM!CF13),0)","v":0.13611214349303302},{"$f":"MAX((INT(BZ104*BZ40)+Control!$K$18*CustomersCOM!CG13),0)","v":0.13543158277556785},{"$f":"MAX((INT(CA104*CA40)+Control!$K$18*CustomersCOM!CH13),0)","v":0.13475442486169004},{"$f":"MAX((INT(CB104*CB40)+Control!$K$18*CustomersCOM!CI13),0)","v":0.13408065273738159},{"$f":"MAX((INT(CC104*CC40)+Control!$K$18*CustomersCOM!CJ13),0)","v":0.13341024947369468},{"$f":"MAX((INT(CD104*CD40)+Control!$K$18*CustomersCOM!CK13),0)","v":0.13274319822632621}]
["Maroondah (C)",null,{"$f":"(INT(C105*C41)+AVERAGE(CustomersCOM!$H60:$J60))","v":17.333333333333332},{"$f":"MAX((INT(D105*D41)+Control!$K$18*CustomersCOM!K14),0)","v":9.8183333333333334},{"$f":"MAX((INT(E105*E41)+Control!$K$18*CustomersCOM!L14),0)","v":37.794241666666665},{"$f":"MAX((INT(F105*F41)+Control!$K$18*CustomersCOM!M14),0)","v":35.605270458333337},{"$f":"MAX((INT(G105*G41)+Control!$K$18*CustomersCOM!N14),0)","v":7.4272441060416661},{"$f":"MAX((INT(H105*H41)+Control!$K$18*CustomersCOM!O14),0)","v":9.4151078855114587},{"$f":"MAX((INT(I105*I41)+Control!$K$18*CustomersCOM!P14),0)","v":23.3880323460839},{"$f":"MAX((INT(J105*J41)+Control!$K$18*CustomersCOM!Q14),0)","v":23.271092184353481},{"$f":"MAX((INT(K105*K41)+Control!$K$18*CustomersCOM!R14),0)","v":29.154736723431714},{"$f":"MAX((INT(L105*L41)+Control!$K$18*CustomersCOM!S14),0)","v":27.008963039814557},{"$f":"MAX((INT(M105*M41)+Control!$K$18*CustomersCOM!T14),0)","v":22.873918224615483},{"$f":"MAX((INT(N105*N41)+Control!$K$18*CustomersCOM!U14),0)","v":21.759548633492404},{"$f":"MAX((INT(O105*O41)+Control!$K$18*CustomersCOM!V14),0)","v":22.650750890324943},{"$f":"MAX((INT(P105*P41)+Control!$K$18*CustomersCOM!W14),0)","v":20.53749713587332},{"$f":"MAX((INT(Q105*Q41)+Control!$K$18*CustomersCOM!X14),0)","v":10.434809650193952},{"$f":"MAX((INT(R105*R41)+Control!$K$18*CustomersCOM!Y14),0)","v":14.382635601942983},{"$f":"MAX((INT(S105*S41)+Control!$K$18*CustomersCOM!Z14),0)","v":16.310722423933267},{"$f":"MAX((INT(T105*T41)+Control!$K$18*CustomersCOM!AA14),0)","v":16.229168811813601},{"$f":"MAX((INT(U105*U41)+Control!$K$18*CustomersCOM!AB14),0)","v":15.148022967754533},{"$f":"MAX((INT(V105*V41)+Control!$K$18*CustomersCOM!AC14),0)","v":14.072282852915761},{"$f":"MAX((INT(W105*W41)+Control!$K$18*CustomersCOM!AD14),0)","v":13.001921438651182},{"$f":"MAX((INT(X105*X41)+Control!$K$18*CustomersCOM!AE14),0)","v":11.936911831457925},{"$f":"MAX((INT(Y105*Y41)+Control!$K$18*CustomersCOM!AF14),0)","v":10.877227272300637},{"$f":"MAX((INT(Z105*Z41)+Control!$K$18*CustomersCOM!AG14),0)","v":9.8228411359391323},{"$f":"MAX((INT(AA105*AA41)+Control!$K$18*CustomersCOM!AH14),0)","v":9.7737269302594374},{"$f":"MAX((INT(AB105*AB41)+Control!$K$18*CustomersCOM!AI14),0)","v":8.72485829560814},{"$f":"MAX((INT(AC105*AC41)+Control!$K$18*CustomersCOM!AJ14),0)","v":8.6812340041300988},{"$f":"MAX((INT(AD105*AD41)+Control!$K$18*CustomersCOM!AK14),0)","v":7.6378278341094488},{"$f":"MAX((INT(AE105*AE41)+Control!$K$18*CustomersCOM!AL14),0)","v":6.5996386949389017},{"$f":"MAX((INT(AF105*AF41)+Control!$K$18*CustomersCOM!AM14),0)","v":6.5666405014642066},{"$f":"MAX((INT(AG105*AG41)+Control!$K$18*CustomersCOM!AN14),0)","v":6.5338072989568863},{"$f":"MAX((INT(AH105*AH41)+Control!$K$18*CustomersCOM!AO14),0)","v":5.5011382624621019},{"$f":"MAX((INT(AI105*AI41)+Control!$K$18*CustomersCOM!AP14),0)","v":5.4736325711497908},{"$f":"MAX((INT(AJ105*AJ41)+Control!$K$18*CustomersCOM!AQ14),0)","v":4.4462644082940423},{"$f":"MAX((INT(AK105*AK41)+Control!$K$18*CustomersCOM!AR14),0)","v":4.4240330862525719},{"$f":"MAX((INT(AL105*AL41)+Control!$K$18*CustomersCOM!AS14),0)","v":4.4019129208213092},{"$f":"MAX((INT(AM105*AM41)+Control!$K$18*CustomersCOM!AT14),0)","v":4.3799033562172021},{"$f":"MAX((INT(AN105*AN41)+Control!$K$18*CustomersCOM!AU14),0)","v":3.3580038394361167},{"$f":"MAX((INT(AO105*AO41)+Control!$K$18*CustomersCOM!AV14),0)","v":3.3412138202389361},{"$f":"MAX((INT(AP105*AP41)+Control!$K$18*CustomersCOM!AW14),0)","v":3.324507751137741},{"$f":"MAX((INT(AQ105*AQ41)+Control!$K$18*CustomersCOM!AX14),0)","v":3.3078852123820526},{"$f":"MAX((INT(AR105*AR41)+Control!$K$18*CustomersCOM!AY14),0)","v":2.2913457863201421},{"$f":"MAX((INT(AS105*AS41)+Control!$K$18*CustomersCOM!AZ14),0)","v":2.2798890573885418},{"$f":"MAX((INT(AT105*AT41)+Control!$K$18*CustomersCOM!BA14),0)","v":2.2684896121015989},{"$f":"MAX((INT(AU105*AU41)+Control!$K$18*CustomersCOM!BB14),0)","v":2.2571471640410907},{"$f":"MAX((INT(AV105*AV41)+Control!$K$18*CustomersCOM!BC14),0)","v":2.2458614282208855},{"$f":"MAX((INT(AW105*AW41)+Control!$K$18*CustomersCOM!BD14),0)","v":2.2346321210797808},{"$f":"MAX((INT(AX105*AX41)+Control!$K$18*CustomersCOM!BE14),0)","v":1.223458960474382},{"$f":"MAX((INT(AY105*AY41)+Control!$K$18*CustomersCOM!BF14),0)","v":1.2173416656720102},{"$f":"MAX((INT(AZ105*AZ41)+Control!$K$18*CustomersCOM!BG14),0)","v":1.21125495734365},{"$f":"MAX((INT(BA105*BA41)+Control!$K$18*CustomersCOM!BH14),0)","v":1.2051986825569319},{"$f":"MAX((INT(BB105*BB41)+Control!$K$18*CustomersCOM!BI14),0)","v":1.1991726891441472},{"$f":"MAX((INT(BC105*BC41)+Control!$K$18*CustomersCOM!BJ14),0)","v":1.1931768256984263},{"$f":"MAX((INT(BD105*BD41)+Control!$K$18*CustomersCOM!BK14),0)","v":1.1872109415699343},{"$f":"MAX((INT(BE105*BE41)+Control!$K$18*CustomersCOM!BL14),0)","v":1.1812748868620846},{"$f":"MAX((INT(BF105*BF41)+Control!$K$18*CustomersCOM!BM14),0)","v":1.1753685124277742},{"$f":"MAX((INT(BG105*BG41)+Control!$K$18*CustomersCOM!BN14),0)","v":1.1694916698656352},{"$f":"MAX((INT(BH105*BH41)+Control!$K$18*CustomersCOM!BO14),0)","v":1.163644211516307},{"$f":"MAX((INT(BI105*BI41)+Control!$K$18*CustomersCOM!BP14),0)","v":1.1578259904587256},{"$f":"MAX((INT(BJ105*BJ41)+Control!$K$18*CustomersCOM!BQ14),0)","v":1.1520368605064319},{"$f":"MAX((INT(BK105*BK41)+Control!$K$18*CustomersCOM!BR14),0)","v":0.14627667620389978},{"$f":"MAX((INT(BL105*BL41)+Control!$K$18*CustomersCOM!BS14),0)","v":0.14554529282288026},{"$f":"MAX((INT(BM105*BM41)+Control!$K$18*CustomersCOM!BT14),0)","v":0.14481756635876586},{"$f":"MAX((INT(BN105*BN41)+Control!$K$18*CustomersCOM!BU14),0)","v":0.14409347852697202},{"$f":"MAX((INT(BO105*BO41)+Control!$K$18*CustomersCOM!BV14),0)","v":0.14337301113433717},{"$f":"MAX((INT(BP105*BP41)+Control!$K$18*CustomersCOM!BW14),0)","v":0.14265614607866547},{"$f":"MAX((INT(BQ105*BQ41)+Control!$K$18*CustomersCOM!BX14),0)","v":0.14194286534827216},{"$f":"MAX((INT(BR105*BR41)+Control!$K$18*CustomersCOM!BY14),0)","v":0.14123315102153078},{"$f":"MAX((INT(BS105*BS41)+Control!$K$18*CustomersCOM!BZ14),0)","v":0.14052698526642313},{"$f":"MAX((INT(BT105*BT41)+Control!$K$18*CustomersCOM!CA14),0)","v":0.13982435034009102},{"$f":"MAX((INT(BU105*BU41)+Control!$K$18*CustomersCOM!CB14),0)","v":0.13912522858839058},{"$f":"MAX((INT(BV105*BV41)+Control!$K$18*CustomersCOM!CC14),0)","v":0.13842960244544861},{"$f":"MAX((INT(BW105*BW41)+Control!$K$18*CustomersCOM!CD14),0)","v":0.13773745443322136},{"$f":"MAX((INT(BX105*BX41)+Control!$K$18*CustomersCOM!CE14),0)","v":0.13704876716105527},{"$f":"MAX((INT(BY105*BY41)+Control!$K$18*CustomersCOM!CF14),0)","v":0.13636352332524998},{"$f":"MAX((INT(BZ105*BZ41)+Control!$K$18*CustomersCOM!CG14),0)","v":0.13568170570862373},{"$f":"MAX((INT(CA105*CA41)+Control!$K$18*CustomersCOM!CH14),0)","v":0.13500329718008061},{"$f":"MAX((INT(CB105*CB41)+Control!$K$18*CustomersCOM!CI14),0)","v":0.13432828069418021},{"$f":"MAX((INT(CC105*CC41)+Control!$K$18*CustomersCOM!CJ14),0)","v":0.13365663929070931},{"$f":"MAX((INT(CD105*CD41)+Control!$K$18*CustomersCOM!CK14),0)","v":0.13298835609425574}]
["Melbourne (C)",null,{"$f":"(INT(C106*C42)+AVERAGE(CustomersCOM!$H61:$J61))","v":11},{"$f":"MAX((INT(D106*D42)+Control!$K$18*CustomersCOM!K15),0)","v":0.89},{"$f":"MAX((INT(E106*E42)+Control!$K$18*CustomersCOM!L15),0)","v":11.900550000000001},{"$f":"MAX((INT(F106*F42)+Control!$K$18*CustomersCOM!M15),0)","v":10.841047250000001},{"$f":"MAX((INT(G106*G42)+Control!$K$18*CustomersCOM!N15),0)","v":0.78684201375000007},{"$f":"MAX((INT(H106*H42)+Control!$K$18*CustomersCOM!O15),0)","v":0.79790780368125003},{"$f":"MAX((INT(I106*I42)+Control!$K$18*CustomersCOM!P15),0)","v":9.808918264662843},{"$f":"MAX((INT(J106*J42)+Control!$K$18*CustomersCOM!Q15),0)","v":9.7598736733395288},{"$f":"MAX((INT(K106*K42)+Control!$K$18*CustomersCOM!R15),0)","v":8.711074304972831},{"$f":"MAX((INT(L106*L42)+Control!$K$18*CustomersCOM!S15),0)","v":7.6675189334479672},{"$f":"MAX((INT(M106*M42)+Control!$K$18*CustomersCOM!T15),0)","v":7.6291813387807279},{"$f":"MAX((INT(N106*N42)+Control!$K$18*CustomersCOM!U15),0)","v":6.5910354320868239},{"$f":"MAX((INT(O106*O42)+Control!$K$18*CustomersCOM!V15),0)","v":6.5580802549263897},{"$f":"MAX((INT(P106*P42)+Control!$K$18*CustomersCOM!W15),0)","v":6.5252898536517581},{"$f":"MAX((INT(Q106*Q42)+Control!$K$18*CustomersCOM!X15),0)","v":4.4926634043834994},{"$f":"MAX((INT(R106*R42)+Control!$K$18*CustomersCOM!Y15),0)","v":5.4702000873615821},{"$f":"MAX((INT(S106*S42)+Control!$K$18*CustomersCOM!Z15),0)","v":4.4428490869247739},{"$f":"MAX((INT(T106*T42)+Control!$K$18*CustomersCOM!AA15),0)","v":4.4206348414901502},{"$f":"MAX((INT(U106*U42)+Control!$K$18*CustomersCOM!AB15),0)","v":4.3985316672826995},{"$f":"MAX((INT(V106*V42)+Control!$K$18*CustomersCOM!AC15),0)","v":4.3765390089462857},{"$f":"MAX((INT(W106*W42)+Control!$K$18*CustomersCOM!AD15),0)","v":3.3546563139015544},{"$f":"MAX((INT(X106*X42)+Control!$K$18*CustomersCOM!AE15),0)","v":4.3378830323320461},{"$f":"MAX((INT(Y106*Y42)+Control!$K$18*CustomersCOM!AF15),0)","v":4.3161936171703861},{"$f":"MAX((INT(Z106*Z42)+Control!$K$18*CustomersCOM!AG15),0)","v":3.2946126490845344},{"$f":"MAX((INT(AA106*AA42)+Control!$K$18*CustomersCOM!AH15),0)","v":3.2781395858391118},{"$f":"MAX((INT(AB106*AB42)+Control!$K$18*CustomersCOM!AI15),0)","v":3.2617488879099161},{"$f":"MAX((INT(AC106*AC42)+Control!$K$18*CustomersCOM!AJ15),0)","v":3.2454401434703666},{"$f":"MAX((INT(AD106*AD42)+Control!$K$18*CustomersCOM!AK15),0)","v":3.2292129427530147},{"$f":"MAX((INT(AE106*AE42)+Control!$K$18*CustomersCOM!AL15),0)","v":2.2130668780392497},{"$f":"MAX((INT(AF106*AF42)+Control!$K$18*CustomersCOM!AM15),0)","v":2.2020015436490534},{"$f":"MAX((INT(AG106*AG42)+Control!$K$18*CustomersCOM!AN15),0)","v":2.1909915359308081},{"$f":"MAX((INT(AH106*AH42)+Control!$K$18*CustomersCOM!AO15),0)","v":2.1800365782511539},{"$f":"MAX((INT(AI106*AI42)+Control!$K$18*CustomersCOM!AP15),0)","v":2.1691363953598981},{"$f":"MAX((INT(AJ106*AJ42)+Control!$K$18*CustomersCOM!AQ15),0)","v":2.1582907133830989},{"$f":"MAX((INT(AK106*AK42)+Control!$K$18*CustomersCOM!AR15),0)","v":1.1474992598161833},{"$f":"MAX((INT(AL106*AL42)+Control!$K$18*CustomersCOM!AS15),0)","v":1.1417617635171025},{"$f":"MAX((INT(AM106*AM42)+Control!$K$18*CustomersCOM!AT15),0)","v":1.1360529546995168},{"$f":"MAX((INT(AN106*AN42)+Control!$K$18*CustomersCOM!AU15),0)","v":1.1303726899260194},{"$f":"MAX((INT(AO106*AO42)+Control!$K$18*CustomersCOM!AV15),0)","v":1.1247208264763893},{"$f":"MAX((INT(AP106*AP42)+Control!$K$18*CustomersCOM!AW15),0)","v":1.1190972223440072},{"$f":"MAX((INT(AQ106*AQ42)+Control!$K$18*CustomersCOM!AX15),0)","v":1.1135017362322872},{"$f":"MAX((INT(AR106*AR42)+Control!$K$18*CustomersCOM!AY15),0)","v":1.1079342275511257},{"$f":"MAX((INT(AS106*AS42)+Control!$K$18*CustomersCOM!AZ15),0)","v":1.1023945564133701},{"$f":"MAX((INT(AT106*AT42)+Control!$K$18*CustomersCOM!BA15),0)","v":1.0968825836313034},{"$f":"MAX((INT(AU106*AU42)+Control!$K$18*CustomersCOM!BB15),0)","v":1.0913981707131468},{"$f":"MAX((INT(AV106*AV42)+Control!$K$18*CustomersCOM!BC15),0)","v":1.0859411798595811},{"$f":"MAX((INT(AW106*AW42)+Control!$K$18*CustomersCOM!BD15),0)","v":1.0805114739602832},{"$f":"MAX((INT(AX106*AX42)+Control!$K$18*CustomersCOM!BE15),0)","v":1.0751089165904817},{"$f":"MAX((INT(AY106*AY42)+Control!$K$18*CustomersCOM!BF15),0)","v":6.973337200752934E-2},{"$f":"MAX((INT(AZ106*AZ42)+Control!$K$18*CustomersCOM!BG15),0)","v":6.938470514749169E-2},{"$f":"MAX((INT(BA106*BA42)+Control!$K$18*CustomersCOM!BH15),0)","v":6.9037781621754224E-2},{"$f":"MAX((INT(BB106*BB42)+Control!$K$18*CustomersCOM!BI15),0)","v":6.8692592713645459E-2},{"$f":"MAX((INT(BC106*BC42)+Control!$K$18*CustomersCOM!BJ15),0)","v":6.8349129750077231E-2},{"$f":"MAX((INT(BD106*BD42)+Control!$K$18*CustomersCOM!BK15),0)","v":6.800738410132684E-2},{"$f":"MAX((INT(BE106*BE42)+Control!$K$18*CustomersCOM!BL15),0)","v":6.7667347180820209E-2},{"$f":"MAX((INT(BF106*BF42)+Control!$K$18*CustomersCOM!BM15),0)","v":6.7329010444916113E-2},{"$f":"MAX((INT(BG106*BG42)+Control!$K$18*CustomersCOM!BN15),0)","v":6.699236539269153E-2},{"$f":"MAX((INT(BH106*BH42)+Control!$K$18*CustomersCOM!BO15),0)","v":6.6657403565728079E-2},{"$f":"MAX((INT(BI106*BI42)+Control!$K$18*CustomersCOM!BP15),0)","v":6.6324116547899437E-2},{"$f":"MAX((INT(BJ106*BJ42)+Control!$K$18*CustomersCOM!BQ15),0)","v":6.5992495965159936E-2},{"$f":"MAX((INT(BK106*BK42)+Control!$K$18*CustomersCOM!BR15),0)","v":6.5662533485334129E-2},{"$f":"MAX((INT(BL106*BL42)+Control!$K$18*CustomersCOM!BS15),0)","v":6.5334220817907462E-2},{"$f":"MAX((INT(BM106*BM42)+Control!$K$18*CustomersCOM!BT15),0)","v":6.5007549713817919E-2},{"$f":"MAX((INT(BN106*BN42)+Control!$K$18*CustomersCOM!BU15),0)","v":6.4682511965248837E-2},{"$f":"MAX((INT(BO106*BO42)+Control!$K$18*CustomersCOM!BV15),0)","v":6.4359099405422601E-2},{"$f":"MAX((INT(BP106*BP42)+Control!$K$18*CustomersCOM!BW15),0)","v":6.4037303908395488E-2},{"$f":"MAX((INT(BQ106*BQ42)+Control!$K$18*CustomersCOM!BX15),0)","v":6.3717117388853509E-2},{"$f":"MAX((INT(BR106*BR42)+Control!$K$18*CustomersCOM!BY15),0)","v":6.3398531801909241E-2},{"$f":"MAX((INT(BS106*BS42)+Control!$K$18*CustomersCOM!BZ15),0)","v":6.3081539142899698E-2},{"$f":"MAX((INT(BT106*BT42)+Control!$K$18*CustomersCOM!CA15),0)","v":6.2766131447185208E-2},{"$f":"MAX((INT(BU106*BU42)+Control!$K$18*CustomersCOM!CB15),0)","v":6.2452300789949275E-2},{"$f":"MAX((INT(BV106*BV42)+Control!$K$18*CustomersCOM!CC15),0)","v":6.2140039285999524E-2},{"$f":"MAX((INT(BW106*BW42)+Control!$K$18*CustomersCOM!CD15),0)","v":6.1829339089569529E-2},{"$f":"MAX((INT(BX106*BX42)+Control!$K$18*CustomersCOM!CE15),0)","v":6.1520192394121674E-2},{"$f":"MAX((INT(BY106*BY42)+Control!$K$18*CustomersCOM!CF15),0)","v":6.1212591432151069E-2},{"$f":"MAX((INT(BZ106*BZ42)+Control!$K$18*CustomersCOM!CG15),0)","v":6.0906528474990312E-2},{"$f":"MAX((INT(CA106*CA42)+Control!$K$18*CustomersCOM!CH15),0)","v":6.0601995832615357E-2},{"$f":"MAX((INT(CB106*CB42)+Control!$K$18*CustomersCOM!CI15),0)","v":6.0298985853452287E-2},{"$f":"MAX((INT(CC106*CC42)+Control!$K$18*CustomersCOM!CJ15),0)","v":5.9997490924185028E-2},{"$f":"MAX((INT(CD106*CD42)+Control!$K$18*CustomersCOM!CK15),0)","v":5.9697503469564095E-2}]
["Monash (C)",null,{"$f":"(INT(C107*C43)+AVERAGE(CustomersCOM!$H62:$J62))","v":56.666666666666664},{"$f":"MAX((INT(D107*D43)+Control!$K$18*CustomersCOM!K16),0)","v":18.091666666666669},{"$f":"MAX((INT(E107*E43)+Control!$K$18*CustomersCOM!L16),0)","v":83.066208333333336},{"$f":"MAX((INT(F107*F43)+Control!$K$18*CustomersCOM!M16),0)","v":79.65087729166666},{"$f":"MAX((INT(G107*G43)+Control!$K$18*CustomersCOM!N16),0)","v":13.252622905208334},{"$f":"MAX((INT(H107*H43)+Control!$K$18*CustomersCOM!O16),0)","v":17.251359790682294},{"$f":"MAX((INT(I107*I43)+Control!$K$18*CustomersCOM!P16),0)","v":54.220102991728879},{"$f":"MAX((INT(J107*J43)+Control!$K$18*CustomersCOM!Q16),0)","v":53.954002476770235},{"$f":"MAX((INT(K107*K43)+Control!$K$18*CustomersCOM!R16),0)","v":65.689232464386379},{"$f":"MAX((INT(L107*L43)+Control!$K$18*CustomersCOM!S16),0)","v":61.360786302064454},{"$f":"MAX((INT(M107*M43)+Control!$K$18*CustomersCOM!T16),0)","v":52.053982370554131},{"$f":"MAX((INT(N107*N43)+Control!$K$18*CustomersCOM!U16),0)","v":48.793712458701357},{"$f":"MAX((INT(O107*O43)+Control!$K$18*CustomersCOM!V16),0)","v":49.549743896407854},{"$f":"MAX((INT(P107*P43)+Control!$K$18*CustomersCOM!W16),0)","v":46.301995176925814},{"$f":"MAX((INT(Q107*Q43)+Control!$K$18*CustomersCOM!X16),0)","v":23.070485201041183},{"$f":"MAX((INT(R107*R43)+Control!$K$18*CustomersCOM!Y16),0)","v":33.955132775035977},{"$f":"MAX((INT(S107*S43)+Control!$K$18*CustomersCOM!Z16),0)","v":37.785357111160799},{"$f":"MAX((INT(T107*T43)+Control!$K$18*CustomersCOM!AA16),0)","v":35.596430325604992},{"$f":"MAX((INT(U107*U43)+Control!$K$18*CustomersCOM!AB16),0)","v":33.418448173976969},{"$f":"MAX((INT(V107*V43)+Control!$K$18*CustomersCOM!AC16),0)","v":31.251355933107085},{"$f":"MAX((INT(W107*W43)+Control!$K$18*CustomersCOM!AD16),0)","v":28.095099153441549},{"$f":"MAX((INT(X107*X43)+Control!$K$18*CustomersCOM!AE16),0)","v":26.954623657674343},{"$f":"MAX((INT(Y107*Y43)+Control!$K$18*CustomersCOM!AF16),0)","v":24.819850539385971},{"$f":"MAX((INT(Z107*Z43)+Control!$K$18*CustomersCOM!AG16),0)","v":22.695751286689038},{"$f":"MAX((INT(AA107*AA43)+Control!$K$18*CustomersCOM!AH16),0)","v":21.582272530255594},{"$f":"MAX((INT(AB107*AB43)+Control!$K$18*CustomersCOM!AI16),0)","v":19.474361167604318},{"$f":"MAX((INT(AC107*AC43)+Control!$K$18*CustomersCOM!AJ16),0)","v":18.376989361766295},{"$f":"MAX((INT(AD107*AD43)+Control!$K$18*CustomersCOM!AK16),0)","v":17.285104414957463},{"$f":"MAX((INT(AE107*AE43)+Control!$K$18*CustomersCOM!AL16),0)","v":15.198678892882677},{"$f":"MAX((INT(AF107*AF43)+Control!$K$18*CustomersCOM!AM16),0)","v":14.122685498418264},{"$f":"MAX((INT(AG107*AG43)+Control!$K$18*CustomersCOM!AN16),0)","v":14.052072070926172},{"$f":"MAX((INT(AH107*AH43)+Control!$K$18*CustomersCOM!AO16),0)","v":12.981811710571542},{"$f":"MAX((INT(AI107*AI43)+Control!$K$18*CustomersCOM!AP16),0)","v":11.916902652018683},{"$f":"MAX((INT(AJ107*AJ43)+Control!$K$18*CustomersCOM!AQ16),0)","v":10.85731813875859},{"$f":"MAX((INT(AK107*AK43)+Control!$K$18*CustomersCOM!AR16),0)","v":9.8030315480647978},{"$f":"MAX((INT(AL107*AL43)+Control!$K$18*CustomersCOM!AS16),0)","v":9.7540163903244732},{"$f":"MAX((INT(AM107*AM43)+Control!$K$18*CustomersCOM!AT16),0)","v":8.7052463083728497},{"$f":"MAX((INT(AN107*AN43)+Control!$K$18*CustomersCOM!AU16),0)","v":7.6617200768309868},{"$f":"MAX((INT(AO107*AO43)+Control!$K$18*CustomersCOM!AV16),0)","v":7.6234114764468313},{"$f":"MAX((INT(AP107*AP43)+Control!$K$18*CustomersCOM!AW16),0)","v":6.5852944190645974},{"$f":"MAX((INT(AQ107*AQ43)+Control!$K$18*CustomersCOM!AX16),0)","v":6.5523679469692739},{"$f":"MAX((INT(AR107*AR43)+Control!$K$18*CustomersCOM!AY16),0)","v":5.519606107234428},{"$f":"MAX((INT(AS107*AS43)+Control!$K$18*CustomersCOM!AZ16),0)","v":5.492008076698256},{"$f":"MAX((INT(AT107*AT43)+Control!$K$18*CustomersCOM!BA16),0)","v":5.4645480363147643},{"$f":"MAX((INT(AU107*AU43)+Control!$K$18*CustomersCOM!BB16),0)","v":4.4372252961331906},{"$f":"MAX((INT(AV107*AV43)+Control!$K$18*CustomersCOM!BC16),0)","v":4.4150391696525251},{"$f":"MAX((INT(AW107*AW43)+Control!$K$18*CustomersCOM!BD16),0)","v":4.3929639738042621},{"$f":"MAX((INT(AX107*AX43)+Control!$K$18*CustomersCOM!BE16),0)","v":3.3709991539352409},{"$f":"MAX((INT(AY107*AY43)+Control!$K$18*CustomersCOM!BF16),0)","v":3.3541441581655644},{"$f":"MAX((INT(AZ107*AZ43)+Control!$K$18*CustomersCOM!BG16),0)","v":3.3373734373747368},{"$f":"MAX((INT(BA107*BA43)+Control!$K$18*CustomersCOM!BH16),0)","v":3.320686570187863},{"$f":"MAX((INT(BB107*BB43)+Control!$K$18*CustomersCOM!BI16),0)","v":3.3040831373369235},{"$f":"MAX((INT(BC107*BC43)+Control!$K$18*CustomersCOM!BJ16),0)","v":2.287562721650239},{"$f":"MAX((INT(BD107*BD43)+Control!$K$18*CustomersCOM!BK16),0)","v":2.2761249080419876},{"$f":"MAX((INT(BE107*BE43)+Control!$K$18*CustomersCOM!BL16),0)","v":2.2647442835017779},{"$f":"MAX((INT(BF107*BF43)+Control!$K$18*CustomersCOM!BM16),0)","v":2.2534205620842691},{"$f":"MAX((INT(BG107*BG43)+Control!$K$18*CustomersCOM!BN16),0)","v":2.2421534592738475},{"$f":"MAX((INT(BH107*BH43)+Control!$K$18*CustomersCOM!BO16),0)","v":2.2309426919774786},{"$f":"MAX((INT(BI107*BI43)+Control!$K$18*CustomersCOM!BP16),0)","v":1.2197879785175911},{"$f":"MAX((INT(BJ107*BJ43)+Control!$K$18*CustomersCOM!BQ16),0)","v":1.213689038625003},{"$f":"MAX((INT(BK107*BK43)+Control!$K$18*CustomersCOM!BR16),0)","v":1.207620593431878},{"$f":"MAX((INT(BL107*BL43)+Control!$K$18*CustomersCOM!BS16),0)","v":1.2015824904647188},{"$f":"MAX((INT(BM107*BM43)+Control!$K$18*CustomersCOM!BT16),0)","v":1.195574578012395},{"$f":"MAX((INT(BN107*BN43)+Control!$K$18*CustomersCOM!BU16),0)","v":1.1895967051223331},{"$f":"MAX((INT(BO107*BO43)+Control!$K$18*CustomersCOM!BV16),0)","v":1.1836487215967215},{"$f":"MAX((INT(BP107*BP43)+Control!$K$18*CustomersCOM!BW16),0)","v":1.1777304779887379},{"$f":"MAX((INT(BQ107*BQ43)+Control!$K$18*CustomersCOM!BX16),0)","v":1.1718418255987941},{"$f":"MAX((INT(BR107*BR43)+Control!$K$18*CustomersCOM!BY16),0)","v":1.1659826164708003},{"$f":"MAX((INT(BS107*BS43)+Control!$K$18*CustomersCOM!BZ16),0)","v":1.1601527033884462},{"$f":"MAX((INT(BT107*BT43)+Control!$K$18*CustomersCOM!CA16),0)","v":1.1543519398715039},{"$f":"MAX((INT(BU107*BU43)+Control!$K$18*CustomersCOM!CB16),0)","v":0.14858018017214641},{"$f":"MAX((INT(BV107*BV43)+Control!$K$18*CustomersCOM!CC16),0)","v":0.14783727927128568},{"$f":"MAX((INT(BW107*BW43)+Control!$K$18*CustomersCOM!CD16),0)","v":0.14709809287492923},{"$f":"MAX((INT(BX107*BX43)+Control!$K$18*CustomersCOM!CE16),0)","v":0.1463626024105546},{"$f":"MAX((INT(BY107*BY43)+Control!$K$18*CustomersCOM!CF16),0)","v":0.1456307893985018},{"$f":"MAX((INT(BZ107*BZ43)+Control!$K$18*CustomersCOM!CG16),0)","v":0.1449026354515093},{"$f":"MAX((INT(CA107*CA43)+Control!$K$18*CustomersCOM!CH16),0)","v":0.14417812227425175},{"$f":"MAX((INT(CB107*CB43)+Control!$K$18*CustomersCOM!CI16),0)","v":0.14345723166288049},{"$f":"MAX((INT(CC107*CC43)+Control!$K$18*CustomersCOM!CJ16),0)","v":0.14273994550456612},{"$f":"MAX((INT(CD107*CD43)+Control!$K$18*CustomersCOM!CK16),0)","v":0.14202624577704329}]
["Port Phillip (C)",null,{"$f":"(INT(C108*C44)+AVERAGE(CustomersCOM!$H63:$J63))","v":55.666666666666664},{"$f":"MAX((INT(D108*D44)+Control!$K$18*CustomersCOM!K17),0)","v":18.371666666666666},{"$f":"MAX((INT(E108*E44)+Control!$K$18*CustomersCOM!L17),0)","v":102.37480833333333},{"$f":"MAX((INT(F108*F44)+Control!$K$18*CustomersCOM!M17),0)","v":96.862934291666662},{"$f":"MAX((INT(G108*G44)+Control!$K$18*CustomersCOM!N17),0)","v":13.378619620208333},{"$f":"MAX((INT(H108*H44)+Control!$K$18*CustomersCOM!O17),0)","v":17.401726522107289},{"$f":"MAX((INT(I108*I44)+Control!$K$18*CustomersCOM!P17),0)","v":64.389717889496751},{"$f":"MAX((INT(J108*J44)+Control!$K$18*CustomersCOM!Q17),0)","v":63.077769300049269},{"$f":"MAX((INT(K108*K44)+Control!$K$18*CustomersCOM!R17),0)","v":80.772380453549019},{"$f":"MAX((INT(L108*L44)+Control!$K$18*CustomersCOM!S17),0)","v":75.368518551281284},{"$f":"MAX((INT(M108*M44)+Control!$K$18*CustomersCOM!T17),0)","v":63.991675958524873},{"$f":"MAX((INT(N108*N44)+Control!$K$18*CustomersCOM!U17),0)","v":60.671717578732249},{"$f":"MAX((INT(O108*O44)+Control!$K$18*CustomersCOM!V17),0)","v":61.368358990838587},{"$f":"MAX((INT(P108*P44)+Control!$K$18*CustomersCOM!W17),0)","v":57.061517195884392},{"$f":"MAX((INT(Q108*Q44)+Control!$K$18*CustomersCOM!X17),0)","v":27.776209609904974},{"$f":"MAX((INT(R108*R44)+Control!$K$18*CustomersCOM!Y17),0)","v":40.637328561855448},{"$f":"MAX((INT(S108*S44)+Control!$K$18*CustomersCOM!Z17),0)","v":46.434141919046169},{"$f":"MAX((INT(T108*T44)+Control!$K$18*CustomersCOM!AA17),0)","v":44.201971209450939},{"$f":"MAX((INT(U108*U44)+Control!$K$18*CustomersCOM!AB17),0)","v":40.980961353403686},{"$f":"MAX((INT(V108*V44)+Control!$K$18*CustomersCOM!AC17),0)","v":38.776056546636667},{"$f":"MAX((INT(W108*W44)+Control!$K$18*CustomersCOM!AD17),0)","v":35.582176263903484},{"$f":"MAX((INT(X108*X44)+Control!$K$18*CustomersCOM!AE17),0)","v":33.404265382583965},{"$f":"MAX((INT(Y108*Y44)+Control!$K$18*CustomersCOM!AF17),0)","v":30.237244055671045},{"$f":"MAX((INT(Z108*Z44)+Control!$K$18*CustomersCOM!AG17),0)","v":28.08605783539269},{"$f":"MAX((INT(AA108*AA44)+Control!$K$18*CustomersCOM!AH17),0)","v":25.945627546215725},{"$f":"MAX((INT(AB108*AB44)+Control!$K$18*CustomersCOM!AI17),0)","v":24.815899408484647},{"$f":"MAX((INT(AC108*AC44)+Control!$K$18*CustomersCOM!AJ17),0)","v":22.691819911442224},{"$f":"MAX((INT(AD108*AD44)+Control!$K$18*CustomersCOM!AK17),0)","v":21.578360811885013},{"$f":"MAX((INT(AE108*AE44)+Control!$K$18*CustomersCOM!AL17),0)","v":19.470469007825589},{"$f":"MAX((INT(AF108*AF44)+Control!$K$18*CustomersCOM!AM17),0)","v":18.373116662786462},{"$f":"MAX((INT(AG108*AG44)+Control!$K$18*CustomersCOM!AN17),0)","v":17.281251079472529},{"$f":"MAX((INT(AH108*AH44)+Control!$K$18*CustomersCOM!AO17),0)","v":15.194844824075165},{"$f":"MAX((INT(AI108*AI44)+Control!$K$18*CustomersCOM!AP17),0)","v":14.118870599954789},{"$f":"MAX((INT(AJ108*AJ44)+Control!$K$18*CustomersCOM!AQ17),0)","v":13.048276246955016},{"$f":"MAX((INT(AK108*AK44)+Control!$K$18*CustomersCOM!AR17),0)","v":12.98303486572024},{"$f":"MAX((INT(AL108*AL44)+Control!$K$18*CustomersCOM!AS17),0)","v":11.91811969139164},{"$f":"MAX((INT(AM108*AM44)+Control!$K$18*CustomersCOM!AT17),0)","v":10.858529092934681},{"$f":"MAX((INT(AN108*AN44)+Control!$K$18*CustomersCOM!AU17),0)","v":9.8042364474700072},{"$f":"MAX((INT(AO108*AO44)+Control!$K$18*CustomersCOM!AV17),0)","v":9.7552152652326569},{"$f":"MAX((INT(AP108*AP44)+Control!$K$18*CustomersCOM!AW17),0)","v":8.7064391889064936},{"$f":"MAX((INT(AQ108*AQ44)+Control!$K$18*CustomersCOM!AX17),0)","v":7.662906992961962},{"$f":"MAX((INT(AR108*AR44)+Control!$K$18*CustomersCOM!AY17),0)","v":7.624592457997152},{"$f":"MAX((INT(AS108*AS44)+Control!$K$18*CustomersCOM!AZ17),0)","v":6.5864694957071661},{"$f":"MAX((INT(AT108*AT44)+Control!$K$18*CustomersCOM!BA17),0)","v":6.5535371482286306},{"$f":"MAX((INT(AU108*AU44)+Control!$K$18*CustomersCOM!BB17),0)","v":5.520769462487487},{"$f":"MAX((INT(AV108*AV44)+Control!$K$18*CustomersCOM!BC17),0)","v":5.4931656151750499},{"$f":"MAX((INT(AW108*AW44)+Control!$K$18*CustomersCOM!BD17),0)","v":5.4656997870991741},{"$f":"MAX((INT(AX108*AX44)+Control!$K$18*CustomersCOM!BE17),0)","v":4.4383712881636788},{"$f":"MAX((INT(AY108*AY44)+Control!$K$18*CustomersCOM!BF17),0)","v":4.4161794317228598},{"$f":"MAX((INT(AZ108*AZ44)+Control!$K$18*CustomersCOM!BG17),0)","v":4.3940985345642458},{"$f":"MAX((INT(BA108*BA44)+Control!$K$18*CustomersCOM!BH17),0)","v":3.3721280418914246},{"$f":"MAX((INT(BB108*BB44)+Control!$K$18*CustomersCOM!BI17),0)","v":3.3552674016819672},{"$f":"MAX((INT(BC108*BC44)+Control!$K$18*CustomersCOM!BJ17),0)","v":3.3384910646735575},{"$f":"MAX((INT(BD108*BD44)+Control!$K$18*CustomersCOM!BK17),0)","v":3.3217986093501897},{"$f":"MAX((INT(BE108*BE44)+Control!$K$18*CustomersCOM!BL17),0)","v":3.3051896163034389},{"$f":"MAX((INT(BF108*BF44)+Control!$K$18*CustomersCOM!BM17),0)","v":2.2886636682219219},{"$f":"MAX((INT(BG108*BG44)+Control!$K$18*CustomersCOM!BN17),0)","v":2.2772203498808121},{"$f":"MAX((INT(BH108*BH44)+Control!$K$18*CustomersCOM!BO17),0)","v":2.2658342481314078},{"$f":"MAX((INT(BI108*BI44)+Control!$K$18*CustomersCOM!BP17),0)","v":2.2545050768907511},{"$f":"MAX((INT(BJ108*BJ44)+Control!$K$18*CustomersCOM!BQ17),0)","v":2.2432325515062974},{"$f":"MAX((INT(BK108*BK44)+Control!$K$18*CustomersCOM!BR17),0)","v":2.2320163887487658},{"$f":"MAX((INT(BL108*BL44)+Control!$K$18*CustomersCOM!BS17),0)","v":1.2208563068050218},{"$f":"MAX((INT(BM108*BM44)+Control!$K$18*CustomersCOM!BT17),0)","v":1.2147520252709967},{"$f":"MAX((INT(BN108*BN44)+Control!$K$18*CustomersCOM!BU17),0)","v":1.2086782651446417},{"$f":"MAX((INT(BO108*BO44)+Control!$K$18*CustomersCOM!BV17),0)","v":1.2026348738189185},{"$f":"MAX((INT(BP108*BP44)+Control!$K$18*CustomersCOM!BW17),0)","v":1.196621699449824},{"$f":"MAX((INT(BQ108*BQ44)+Control!$K$18*CustomersCOM!BX17),0)","v":1.190638590952575},{"$f":"MAX((INT(BR108*BR44)+Control!$K$18*CustomersCOM!BY17),0)","v":1.184685397997812},{"$f":"MAX((INT(BS108*BS44)+Control!$K$18*CustomersCOM!BZ17),0)","v":1.178761971007823},{"$f":"MAX((INT(BT108*BT44)+Control!$K$18*CustomersCOM!CA17),0)","v":1.1728681611527838},{"$f":"MAX((INT(BU108*BU44)+Control!$K$18*CustomersCOM!CB17),0)","v":1.1670038203470199},{"$f":"MAX((INT(BV108*BV44)+Control!$K$18*CustomersCOM!CC17),0)","v":1.1611688012452848},{"$f":"MAX((INT(BW108*BW44)+Control!$K$18*CustomersCOM!CD17),0)","v":1.1553629572390585},{"$f":"MAX((INT(BX108*BX44)+Control!$K$18*CustomersCOM!CE17),0)","v":0.14958614245286309},{"$f":"MAX((INT(BY108*BY44)+Control!$K$18*CustomersCOM!CF17),0)","v":0.14883821174059877},{"$f":"MAX((INT(BZ108*BZ44)+Control!$K$18*CustomersCOM!CG17),0)","v":0.14809402068189578},{"$f":"MAX((INT(CA108*CA44)+Control!$K$18*CustomersCOM!CH17),0)","v":0.14735355057848629},{"$f":"MAX((INT(CB108*CB44)+Control!$K$18*CustomersCOM!CI17),0)","v":0.14661678282559387},{"$f":"MAX((INT(CC108*CC44)+Control!$K$18*CustomersCOM!CJ17),0)","v":0.14588369891146591},{"$f":"MAX((INT(CD108*CD44)+Control!$K$18*CustomersCOM!CK17),0)","v":0.14515428041690856}]
["South Gippsland (S)",null,{"$f":"(INT(C109*C45)+AVERAGE(CustomersCOM!$H64:$J64))","v":0.66666666666666663},{"$f":"MAX((INT(D109*D45)+Control!$K$18*CustomersCOM!K18),0)","v":0.2416666666666667},{"$f":"MAX((INT(E109*E45)+Control!$K$18*CustomersCOM!L18),0)","v":2.2404583333333332},{"$f":"MAX((INT(F109*F45)+Control!$K$18*CustomersCOM!M18),0)","v":2.2292560416666665},{"$f":"MAX((INT(G109*G45)+Control!$K$18*CustomersCOM!N18),0)","v":0.21810976145833333},{"$f":"MAX((INT(H109*H45)+Control!$K$18*CustomersCOM!O18),0)","v":0.21701921265104165},{"$f":"MAX((INT(I109*I45)+Control!$K$18*CustomersCOM!P18),0)","v":1.2159341165877864},{"$f":"MAX((INT(J109*J45)+Control!$K$18*CustomersCOM!Q18),0)","v":1.2098544460048475},{"$f":"MAX((INT(K109*K45)+Control!$K$18*CustomersCOM!R18),0)","v":1.2038051737748232},{"$f":"MAX((INT(L109*L45)+Control!$K$18*CustomersCOM!S18),0)","v":1.1977861479059491},{"$f":"MAX((INT(M109*M45)+Control!$K$18*CustomersCOM!T18),0)","v":1.1917972171664193},{"$f":"MAX((INT(N109*N45)+Control!$K$18*CustomersCOM!U18),0)","v":1.1858382310805873},{"$f":"MAX((INT(O109*O45)+Control!$K$18*CustomersCOM!V18),0)","v":1.1799090399251844},{"$f":"MAX((INT(P109*P45)+Control!$K$18*CustomersCOM!W18),0)","v":1.1740094947255584},{"$f":"MAX((INT(Q109*Q45)+Control!$K$18*CustomersCOM!X18),0)","v":1.1681394472519306},{"$f":"MAX((INT(R109*R45)+Control!$K$18*CustomersCOM!Y18),0)","v":1.162298750015671},{"$f":"MAX((INT(S109*S45)+Control!$K$18*CustomersCOM!Z18),0)","v":1.1564872562655926},{"$f":"MAX((INT(T109*T45)+Control!$K$18*CustomersCOM!AA18),0)","v":1.1507048199842647},{"$f":"MAX((INT(U109*U45)+Control!$K$18*CustomersCOM!AB18),0)","v":0.14495129588434336},{"$f":"MAX((INT(V109*V45)+Control!$K$18*CustomersCOM!AC18),0)","v":0.14422653940492164},{"$f":"MAX((INT(W109*W45)+Control!$K$18*CustomersCOM!AD18),0)","v":0.14350540670789702},{"$f":"MAX((INT(X109*X45)+Control!$K$18*CustomersCOM!AE18),0)","v":0.14278787967435752},{"$f":"MAX((INT(Y109*Y45)+Control!$K$18*CustomersCOM!AF18),0)","v":0.14207394027598574},{"$f":"MAX((INT(Z109*Z45)+Control!$K$18*CustomersCOM!AG18),0)","v":0.1413635705746058},{"$f":"MAX((INT(AA109*AA45)+Control!$K$18*CustomersCOM!AH18),0)","v":0.14065675272173278},{"$f":"MAX((INT(AB109*AB45)+Control!$K$18*CustomersCOM!AI18),0)","v":0.13995346895812413},{"$f":"MAX((INT(AC109*AC45)+Control!$K$18*CustomersCOM!AJ18),0)","v":0.1392537016133335},{"$f":"MAX((INT(AD109*AD45)+Control!$K$18*CustomersCOM!AK18),0)","v":0.13855743310526683},{"$f":"MAX((INT(AE109*AE45)+Control!$K$18*CustomersCOM!AL18),0)","v":0.13786464593974049},{"$f":"MAX((INT(AF109*AF45)+Control!$K$18*CustomersCOM!AM18),0)","v":0.13717532271004179},{"$f":"MAX((INT(AG109*AG45)+Control!$K$18*CustomersCOM!AN18),0)","v":0.13648944609649158},{"$f":"MAX((INT(AH109*AH45)+Control!$K$18*CustomersCOM!AO18),0)","v":0.13580699886600914},{"$f":"MAX((INT(AI109*AI45)+Control!$K$18*CustomersCOM!AP18),0)","v":0.13512796387167908},{"$f":"MAX((INT(AJ109*AJ45)+Control!$K$18*CustomersCOM!AQ18),0)","v":0.13445232405232069},{"$f":"MAX((INT(AK109*AK45)+Control!$K$18*CustomersCOM!AR18),0)","v":0.13378006243205909},{"$f":"MAX((INT(AL109*AL45)+Control!$K$18*CustomersCOM!AS18),0)","v":0.13311116211989879},{"$f":"MAX((INT(AM109*AM45)+Control!$K$18*CustomersCOM!AT18),0)","v":0.1324456063092993},{"$f":"MAX((INT(AN109*AN45)+Control!$K$18*CustomersCOM!AU18),0)","v":0.1317833782777528},{"$f":"MAX((INT(AO109*AO45)+Control!$K$18*CustomersCOM!AV18),0)","v":0.13112446138636402},{"$f":"MAX((INT(AP109*AP45)+Control!$K$18*CustomersCOM!AW18),0)","v":0.13046883907943221},{"$f":"MAX((INT(AQ109*AQ45)+Control!$K$18*CustomersCOM!AX18),0)","v":0.12981649488403504},{"$f":"MAX((INT(AR109*AR45)+Control!$K$18*CustomersCOM!AY18),0)","v":0.12916741240961485},{"$f":"MAX((INT(AS109*AS45)+Control!$K$18*CustomersCOM!AZ18),0)","v":0.12852157534756678},{"$f":"MAX((INT(AT109*AT45)+Control!$K$18*CustomersCOM!BA18),0)","v":0.12787896747082894},{"$f":"MAX((INT(AU109*AU45)+Control!$K$18*CustomersCOM!BB18),0)","v":0.12723957263347482},{"$f":"MAX((INT(AV109*AV45)+Control!$K$18*CustomersCOM!BC18),0)","v":0.12660337477030745},{"$f":"MAX((INT(AW109*AW45)+Control!$K$18*CustomersCOM!BD18),0)","v":0.12597035789645589},{"$f":"MAX((INT(AX109*AX45)+Control!$K$18*CustomersCOM!BE18),0)","v":0.12534050610697361},{"$f":"MAX((INT(AY109*AY45)+Control!$K$18*CustomersCOM!BF18),0)","v":0.12471380357643876},{"$f":"MAX((INT(AZ109*AZ45)+Control!$K$18*CustomersCOM!BG18),0)","v":0.12409023455855657},{"$f":"MAX((INT(BA109*BA45)+Control!$K$18*CustomersCOM!BH18),0)","v":0.12346978338576378},{"$f":"MAX((INT(BB109*BB45)+Control!$K$18*CustomersCOM!BI18),0)","v":0.12285243446883495},{"$f":"MAX((INT(BC109*BC45)+Control!$K$18*CustomersCOM!BJ18),0)","v":0.12223817229649077},{"$f":"MAX((INT(BD109*BD45)+Control!$K$18*CustomersCOM!BK18),0)","v":0.12162698143500832},{"$f":"MAX((INT(BE109*BE45)+Control!$K$18*CustomersCOM!BL18),0)","v":0.12101884652783328},{"$f":"MAX((INT(BF109*BF45)+Control!$K$18*CustomersCOM!BM18),0)","v":0.12041375229519412},{"$f":"MAX((INT(BG109*BG45)+Control!$K$18*CustomersCOM!BN18),0)","v":0.11981168353371816},{"$f":"MAX((INT(BH109*BH45)+Control!$K$18*CustomersCOM!BO18),0)","v":0.11921262511604956},{"$f":"MAX((INT(BI109*BI45)+Control!$K$18*CustomersCOM!BP18),0)","v":0.11861656199046933},{"$f":"MAX((INT(BJ109*BJ45)+Control!$K$18*CustomersCOM!BQ18),0)","v":0.11802347918051698},{"$f":"MAX((INT(BK109*BK45)+Control!$K$18*CustomersCOM!BR18),0)","v":0.11743336178461439},{"$f":"MAX((INT(BL109*BL45)+Control!$K$18*CustomersCOM!BS18),0)","v":0.11684619497569132},{"$f":"MAX((INT(BM109*BM45)+Control!$K$18*CustomersCOM!BT18),0)","v":0.11626196400081287},{"$f":"MAX((INT(BN109*BN45)+Control!$K$18*CustomersCOM!BU18),0)","v":0.11568065418080881},{"$f":"MAX((INT(BO109*BO45)+Control!$K$18*CustomersCOM!BV18),0)","v":0.11510225090990477},{"$f":"MAX((INT(BP109*BP45)+Control!$K$18*CustomersCOM!BW18),0)","v":0.11452673965535523},{"$f":"MAX((INT(BQ109*BQ45)+Control!$K$18*CustomersCOM!BX18),0)","v":0.11395410595707846},{"$f":"MAX((INT(BR109*BR45)+Control!$K$18*CustomersCOM!BY18),0)","v":0.11338433542729308},{"$f":"MAX((INT(BS109*BS45)+Control!$K$18*CustomersCOM!BZ18),0)","v":0.11281741375015659},{"$f":"MAX((INT(BT109*BT45)+Control!$K$18*CustomersCOM!CA18),0)","v":0.11225332668140581},{"$f":"MAX((INT(BU109*BU45)+Control!$K$18*CustomersCOM!CB18),0)","v":0.1116920600479988},{"$f":"MAX((INT(BV109*BV45)+Control!$K$18*CustomersCOM!CC18),0)","v":0.11113359974775879},{"$f":"MAX((INT(BW109*BW45)+Control!$K$18*CustomersCOM!CD18),0)","v":0.11057793174901999},{"$f":"MAX((INT(BX109*BX45)+Control!$K$18*CustomersCOM!CE18),0)","v":0.11002504209027489},{"$f":"MAX((INT(BY109*BY45)+Control!$K$18*CustomersCOM!CF18),0)","v":0.10947491687982351},{"$f":"MAX((INT(BZ109*BZ45)+Control!$K$18*CustomersCOM!CG18),0)","v":0.10892754229542441},{"$f":"MAX((INT(CA109*CA45)+Control!$K$18*CustomersCOM!CH18),0)","v":0.10838290458394728},{"$f":"MAX((INT(CB109*CB45)+Control!$K$18*CustomersCOM!CI18),0)","v":0.10784099006102754},{"$f":"MAX((INT(CC109*CC45)+Control!$K$18*CustomersCOM!CJ18),0)","v":0.1073017851107224},{"$f":"MAX((INT(CD109*CD45)+Control!$K$18*CustomersCOM!CK18),0)","v":0.10676527618516879}]
["Stonnington (C)",null,{"$f":"(INT(C110*C46)+AVERAGE(CustomersCOM!$H65:$J65))","v":51},{"$f":"MAX((INT(D110*D46)+Control!$K$18*CustomersCOM!K19),0)","v":23.574999999999999},{"$f":"MAX((INT(E110*E46)+Control!$K$18*CustomersCOM!L19),0)","v":87.522125000000003},{"$f":"MAX((INT(F110*F46)+Control!$K$18*CustomersCOM!M19),0)","v":85.084514374999998},{"$f":"MAX((INT(G110*G46)+Control!$K$18*CustomersCOM!N19),0)","v":17.659091803125001},{"$f":"MAX((INT(H110*H46)+Control!$K$18*CustomersCOM!O19),0)","v":21.630796344109374},{"$f":"MAX((INT(I110*I46)+Control!$K$18*CustomersCOM!P19),0)","v":55.572642362388827},{"$f":"MAX((INT(J110*J46)+Control!$K$18*CustomersCOM!Q19),0)","v":53.304779150576884},{"$f":"MAX((INT(K110*K46)+Control!$K$18*CustomersCOM!R19),0)","v":71.048255254823999},{"$f":"MAX((INT(L110*L46)+Control!$K$18*CustomersCOM!S19),0)","v":65.693013978549885},{"$f":"MAX((INT(M110*M46)+Control!$K$18*CustomersCOM!T19),0)","v":54.364548908657127},{"$f":"MAX((INT(N110*N46)+Control!$K$18*CustomersCOM!U19),0)","v":51.092726164113841},{"$f":"MAX((INT(O110*O46)+Control!$K$18*CustomersCOM!V19),0)","v":53.837262533293277},{"$f":"MAX((INT(P110*P46)+Control!$K$18*CustomersCOM!W19),0)","v":49.568076220626807},{"$f":"MAX((INT(Q110*Q46)+Control!$K$18*CustomersCOM!X19),0)","v":24.320235839523676},{"$f":"MAX((INT(R110*R46)+Control!$K$18*CustomersCOM!Y19),0)","v":33.198634660326057},{"$f":"MAX((INT(S110*S46)+Control!$K$18*CustomersCOM!Z19),0)","v":39.032641487024428},{"$f":"MAX((INT(T110*T46)+Control!$K$18*CustomersCOM!AA19),0)","v":38.837478279589305},{"$f":"MAX((INT(U110*U46)+Control!$K$18*CustomersCOM!AB19),0)","v":36.643290888191359},{"$f":"MAX((INT(V110*V46)+Control!$K$18*CustomersCOM!AC19),0)","v":33.4600744337504},{"$f":"MAX((INT(W110*W46)+Control!$K$18*CustomersCOM!AD19),0)","v":31.29277406158165},{"$f":"MAX((INT(X110*X46)+Control!$K$18*CustomersCOM!AE19),0)","v":29.13631019127374},{"$f":"MAX((INT(Y110*Y46)+Control!$K$18*CustomersCOM!AF19),0)","v":26.990628640317372},{"$f":"MAX((INT(Z110*Z46)+Control!$K$18*CustomersCOM!AG19),0)","v":24.855675497115783},{"$f":"MAX((INT(AA110*AA46)+Control!$K$18*CustomersCOM!AH19),0)","v":23.731397119630206},{"$f":"MAX((INT(AB110*AB46)+Control!$K$18*CustomersCOM!AI19),0)","v":21.612740134032055},{"$f":"MAX((INT(AC110*AC46)+Control!$K$18*CustomersCOM!AJ19),0)","v":20.504676433361894},{"$f":"MAX((INT(AD110*AD46)+Control!$K$18*CustomersCOM!AK19),0)","v":18.402153051195086},{"$f":"MAX((INT(AE110*AE46)+Control!$K$18*CustomersCOM!AL19),0)","v":17.310142285939108},{"$f":"MAX((INT(AF110*AF46)+Control!$K$18*CustomersCOM!AM19),0)","v":16.223591574509413},{"$f":"MAX((INT(AG110*AG46)+Control!$K$18*CustomersCOM!AN19),0)","v":15.142473616636867},{"$f":"MAX((INT(AH110*AH46)+Control!$K$18*CustomersCOM!AO19),0)","v":14.066761248553682},{"$f":"MAX((INT(AI110*AI46)+Control!$K$18*CustomersCOM!AP19),0)","v":12.996427442310914},{"$f":"MAX((INT(AJ110*AJ46)+Control!$K$18*CustomersCOM!AQ19),0)","v":11.931445305099359},{"$f":"MAX((INT(AK110*AK46)+Control!$K$18*CustomersCOM!AR19),0)","v":10.871788078573863},{"$f":"MAX((INT(AL110*AL46)+Control!$K$18*CustomersCOM!AS19),0)","v":9.8174291381809944},{"$f":"MAX((INT(AM110*AM46)+Control!$K$18*CustomersCOM!AT19),0)","v":9.7683419924900878},{"$f":"MAX((INT(AN110*AN46)+Control!$K$18*CustomersCOM!AU19),0)","v":8.7195002825276386},{"$f":"MAX((INT(AO110*AO46)+Control!$K$18*CustomersCOM!AV19),0)","v":8.6759027811149991},{"$f":"MAX((INT(AP110*AP46)+Control!$K$18*CustomersCOM!AW19),0)","v":7.6325232672094252},{"$f":"MAX((INT(AQ110*AQ46)+Control!$K$18*CustomersCOM!AX19),0)","v":6.5943606508733783},{"$f":"MAX((INT(AR110*AR46)+Control!$K$18*CustomersCOM!AY19),0)","v":6.5613888476190105},{"$f":"MAX((INT(AS110*AS46)+Control!$K$18*CustomersCOM!AZ19),0)","v":6.5285819033809158},{"$f":"MAX((INT(AT110*AT46)+Control!$K$18*CustomersCOM!BA19),0)","v":5.4959389938640113},{"$f":"MAX((INT(AU110*AU46)+Control!$K$18*CustomersCOM!BB19),0)","v":5.4684592988946914},{"$f":"MAX((INT(AV110*AV46)+Control!$K$18*CustomersCOM!BC19),0)","v":4.441117002400218},{"$f":"MAX((INT(AW110*AW46)+Control!$K$18*CustomersCOM!BD19),0)","v":4.4189114173882169},{"$f":"MAX((INT(AX110*AX46)+Control!$K$18*CustomersCOM!BE19),0)","v":4.3968168603012758},{"$f":"MAX((INT(AY110*AY46)+Control!$K$18*CustomersCOM!BF19),0)","v":3.3748327759997694},{"$f":"MAX((INT(AZ110*AZ46)+Control!$K$18*CustomersCOM!BG19),0)","v":3.3579586121197704},{"$f":"MAX((INT(BA110*BA46)+Control!$K$18*CustomersCOM!BH19),0)","v":3.3411688190591717},{"$f":"MAX((INT(BB110*BB46)+Control!$K$18*CustomersCOM!BI19),0)","v":3.3244629749638759},{"$f":"MAX((INT(BC110*BC46)+Control!$K$18*CustomersCOM!BJ19),0)","v":3.3078406600890564},{"$f":"MAX((INT(BD110*BD46)+Control!$K$18*CustomersCOM!BK19),0)","v":2.2913014567886112},{"$f":"MAX((INT(BE110*BE46)+Control!$K$18*CustomersCOM!BL19),0)","v":2.279844949504668},{"$f":"MAX((INT(BF110*BF46)+Control!$K$18*CustomersCOM!BM19),0)","v":2.2684457247571448},{"$f":"MAX((INT(BG110*BG46)+Control!$K$18*CustomersCOM!BN19),0)","v":2.2571034961333591},{"$f":"MAX((INT(BH110*BH46)+Control!$K$18*CustomersCOM!BO19),0)","v":2.2458179786526919},{"$f":"MAX((INT(BI110*BI46)+Control!$K$18*CustomersCOM!BP19),0)","v":2.2345888887594287},{"$f":"MAX((INT(BJ110*BJ46)+Control!$K$18*CustomersCOM!BQ19),0)","v":1.2234159443156316},{"$f":"MAX((INT(BK110*BK46)+Control!$K$18*CustomersCOM!BR19),0)","v":1.2172988645940535},{"$f":"MAX((INT(BL110*BL46)+Control!$K$18*CustomersCOM!BS19),0)","v":1.2112123702710831},{"$f":"MAX((INT(BM110*BM46)+Control!$K$18*CustomersCOM!BT19),0)","v":1.2051563084197277},{"$f":"MAX((INT(BN110*BN46)+Control!$K$18*CustomersCOM!BU19),0)","v":1.1991305268776291},{"$f":"MAX((INT(BO110*BO46)+Control!$K$18*CustomersCOM!BV19),0)","v":1.1931348742432408},{"$f":"MAX((INT(BP110*BP46)+Control!$K$18*CustomersCOM!BW19),0)","v":1.1871691998720246},{"$f":"MAX((INT(BQ110*BQ46)+Control!$K$18*CustomersCOM!BX19),0)","v":1.1812333538726647},{"$f":"MAX((INT(BR110*BR46)+Control!$K$18*CustomersCOM!BY19),0)","v":1.1753271871033013},{"$f":"MAX((INT(BS110*BS46)+Control!$K$18*CustomersCOM!BZ19),0)","v":1.1694505511677848},{"$f":"MAX((INT(BT110*BT46)+Control!$K$18*CustomersCOM!CA19),0)","v":1.1636032984119458},{"$f":"MAX((INT(BU110*BU46)+Control!$K$18*CustomersCOM!CB19),0)","v":1.1577852819198862},{"$f":"MAX((INT(BV110*BV46)+Control!$K$18*CustomersCOM!CC19),0)","v":1.1519963555102868},{"$f":"MAX((INT(BW110*BW46)+Control!$K$18*CustomersCOM!CD19),0)","v":0.14623637373273524},{"$f":"MAX((INT(BX110*BX46)+Control!$K$18*CustomersCOM!CE19),0)","v":0.14550519186407157},{"$f":"MAX((INT(BY110*BY46)+Control!$K$18*CustomersCOM!CF19),0)","v":0.14477766590475122},{"$f":"MAX((INT(BZ110*BZ46)+Control!$K$18*CustomersCOM!CG19),0)","v":0.14405377757522747},{"$f":"MAX((INT(CA110*CA46)+Control!$K$18*CustomersCOM!CH19),0)","v":0.14333350868735134},{"$f":"MAX((INT(CB110*CB46)+Control!$K$18*CustomersCOM!CI19),0)","v":0.14261684114391457},{"$f":"MAX((INT(CC110*CC46)+Control!$K$18*CustomersCOM!CJ19),0)","v":0.14190375693819499},{"$f":"MAX((INT(CD110*CD46)+Control!$K$18*CustomersCOM!CK19),0)","v":0.14119423815350401}]
["Whitehorse (C)",null,{"$f":"(INT(C111*C47)+AVERAGE(CustomersCOM!$H66:$J66))","v":41.666666666666664},{"$f":"MAX((INT(D111*D47)+Control!$K$18*CustomersCOM!K20),0)","v":19.741666666666667},{"$f":"MAX((INT(E111*E47)+Control!$K$18*CustomersCOM!L20),0)","v":77.697958333333332},{"$f":"MAX((INT(F111*F47)+Control!$K$18*CustomersCOM!M20),0)","v":74.309468541666661},{"$f":"MAX((INT(G111*G47)+Control!$K$18*CustomersCOM!N20),0)","v":13.937921198958334},{"$f":"MAX((INT(H111*H47)+Control!$K$18*CustomersCOM!O20),0)","v":17.923231592963543},{"$f":"MAX((INT(I111*I47)+Control!$K$18*CustomersCOM!P20),0)","v":50.878615434998721},{"$f":"MAX((INT(J111*J47)+Control!$K$18*CustomersCOM!Q20),0)","v":49.629222357823728},{"$f":"MAX((INT(K111*K47)+Control!$K$18*CustomersCOM!R20),0)","v":61.386076246034612},{"$f":"MAX((INT(L111*L47)+Control!$K$18*CustomersCOM!S20),0)","v":57.079145864804438},{"$f":"MAX((INT(M111*M47)+Control!$K$18*CustomersCOM!T20),0)","v":47.793750135480416},{"$f":"MAX((INT(N111*N47)+Control!$K$18*CustomersCOM!U20),0)","v":45.554781384803015},{"$f":"MAX((INT(O111*O47)+Control!$K$18*CustomersCOM!V20),0)","v":46.327007477879},{"$f":"MAX((INT(P111*P47)+Control!$K$18*CustomersCOM!W20),0)","v":43.095372440489605},{"$f":"MAX((INT(Q111*Q47)+Control!$K$18*CustomersCOM!X20),0)","v":21.879895578287154},{"$f":"MAX((INT(R111*R47)+Control!$K$18*CustomersCOM!Y20),0)","v":30.770496100395722},{"$f":"MAX((INT(S111*S47)+Control!$K$18*CustomersCOM!Z20),0)","v":34.616643619893743},{"$f":"MAX((INT(T111*T47)+Control!$K$18*CustomersCOM!AA20),0)","v":33.443560401794272},{"$f":"MAX((INT(U111*U47)+Control!$K$18*CustomersCOM!AB20),0)","v":31.276342599785302},{"$f":"MAX((INT(V111*V47)+Control!$K$18*CustomersCOM!AC20),0)","v":29.119960886786377},{"$f":"MAX((INT(W111*W47)+Control!$K$18*CustomersCOM!AD20),0)","v":26.974361082352445},{"$f":"MAX((INT(X111*X47)+Control!$K$18*CustomersCOM!AE20),0)","v":24.839489276940682},{"$f":"MAX((INT(Y111*Y47)+Control!$K$18*CustomersCOM!AF20),0)","v":22.715291830555977},{"$f":"MAX((INT(Z111*Z47)+Control!$K$18*CustomersCOM!AG20),0)","v":21.601715371403198},{"$f":"MAX((INT(AA111*AA47)+Control!$K$18*CustomersCOM!AH20),0)","v":19.493706794546181},{"$f":"MAX((INT(AB111*AB47)+Control!$K$18*CustomersCOM!AI20),0)","v":18.396238260573451},{"$f":"MAX((INT(AC111*AC47)+Control!$K$18*CustomersCOM!AJ20),0)","v":17.304257069270584},{"$f":"MAX((INT(AD111*AD47)+Control!$K$18*CustomersCOM!AK20),0)","v":16.21773578392423},{"$f":"MAX((INT(AE111*AE47)+Control!$K$18*CustomersCOM!AL20),0)","v":15.136647105004609},{"$f":"MAX((INT(AF111*AF47)+Control!$K$18*CustomersCOM!AM20),0)","v":14.060963869479586},{"$f":"MAX((INT(AG111*AG47)+Control!$K$18*CustomersCOM!AN20),0)","v":12.990659050132187},{"$f":"MAX((INT(AH111*AH47)+Control!$K$18*CustomersCOM!AO20),0)","v":11.925705754881527},{"$f":"MAX((INT(AI111*AI47)+Control!$K$18*CustomersCOM!AP20),0)","v":10.866077226107119},{"$f":"MAX((INT(AJ111*AJ47)+Control!$K$18*CustomersCOM!AQ20),0)","v":9.8117468399765837},{"$f":"MAX((INT(AK111*AK47)+Control!$K$18*CustomersCOM!AR20),0)","v":9.7626881057767001},{"$f":"MAX((INT(AL111*AL47)+Control!$K$18*CustomersCOM!AS20),0)","v":8.7138746652478165},{"$f":"MAX((INT(AM111*AM47)+Control!$K$18*CustomersCOM!AT20),0)","v":7.6703052919215784},{"$f":"MAX((INT(AN111*AN47)+Control!$K$18*CustomersCOM!AU20),0)","v":7.6319537654619705},{"$f":"MAX((INT(AO111*AO47)+Control!$K$18*CustomersCOM!AV20),0)","v":6.5937939966346608},{"$f":"MAX((INT(AP111*AP47)+Control!$K$18*CustomersCOM!AW20),0)","v":6.5608250266514876},{"$f":"MAX((INT(AQ111*AQ47)+Control!$K$18*CustomersCOM!AX20),0)","v":6.5280209015182296},{"$f":"MAX((INT(AR111*AR47)+Control!$K$18*CustomersCOM!AY20),0)","v":5.4953807970106388},{"$f":"MAX((INT(AS111*AS47)+Control!$K$18*CustomersCOM!AZ20),0)","v":5.4679038930255857},{"$f":"MAX((INT(AT111*AT47)+Control!$K$18*CustomersCOM!BA20),0)","v":4.4405643735604574},{"$f":"MAX((INT(AU111*AU47)+Control!$K$18*CustomersCOM!BB20),0)","v":4.4183615516926551},{"$f":"MAX((INT(AV111*AV47)+Control!$K$18*CustomersCOM!BC20),0)","v":4.3962697439341918},{"$f":"MAX((INT(AW111*AW47)+Control!$K$18*CustomersCOM!BD20),0)","v":3.3742883952145206},{"$f":"MAX((INT(AX111*AX47)+Control!$K$18*CustomersCOM!BE20),0)","v":3.3574169532384484},{"$f":"MAX((INT(AY111*AY47)+Control!$K$18*CustomersCOM!BF20),0)","v":3.3406298684722557},{"$f":"MAX((INT(AZ111*AZ47)+Control!$K$18*CustomersCOM!BG20),0)","v":3.3239267191298949},{"$f":"MAX((INT(BA111*BA47)+Control!$K$18*CustomersCOM!BH20),0)","v":3.3073070855342452},{"$f":"MAX((INT(BB111*BB47)+Control!$K$18*CustomersCOM!BI20),0)","v":2.2907705501065738},{"$f":"MAX((INT(BC111*BC47)+Control!$K$18*CustomersCOM!BJ20),0)","v":2.279316697356041},{"$f":"MAX((INT(BD111*BD47)+Control!$K$18*CustomersCOM!BK20),0)","v":2.2679201138692608},{"$f":"MAX((INT(BE111*BE47)+Control!$K$18*CustomersCOM!BL20),0)","v":2.2565805132999146},{"$f":"MAX((INT(BF111*BF47)+Control!$K$18*CustomersCOM!BM20),0)","v":2.2452976107334148},{"$f":"MAX((INT(BG111*BG47)+Control!$K$18*CustomersCOM!BN20),0)","v":2.2340711226797478},{"$f":"MAX((INT(BH111*BH47)+Control!$K$18*CustomersCOM!BO20),0)","v":1.2229007670663492},{"$f":"MAX((INT(BI111*BI47)+Control!$K$18*CustomersCOM!BP20),0)","v":1.2167862632310174},{"$f":"MAX((INT(BJ111*BJ47)+Control!$K$18*CustomersCOM!BQ20),0)","v":1.2107023319148624},{"$f":"MAX((INT(BK111*BK47)+Control!$K$18*CustomersCOM!BR20),0)","v":1.2046488202552881},{"$f":"MAX((INT(BL111*BL47)+Control!$K$18*CustomersCOM!BS20),0)","v":1.1986255761540117},{"$f":"MAX((INT(BM111*BM47)+Control!$K$18*CustomersCOM!BT20),0)","v":1.1926324482732416},{"$f":"MAX((INT(BN111*BN47)+Control!$K$18*CustomersCOM!BU20),0)","v":1.1866692860318753},{"$f":"MAX((INT(BO111*BO47)+Control!$K$18*CustomersCOM!BV20),0)","v":1.1807359396017161},{"$f":"MAX((INT(BP111*BP47)+Control!$K$18*CustomersCOM!BW20),0)","v":1.1748322599037073},{"$f":"MAX((INT(BQ111*BQ47)+Control!$K$18*CustomersCOM!BX20),0)","v":1.1689580986041888},{"$f":"MAX((INT(BR111*BR47)+Control!$K$18*CustomersCOM!BY20),0)","v":1.163113308111168},{"$f":"MAX((INT(BS111*BS47)+Control!$K$18*CustomersCOM!BZ20),0)","v":1.157297741570612},{"$f":"MAX((INT(BT111*BT47)+Control!$K$18*CustomersCOM!CA20),0)","v":1.1515112528627591},{"$f":"MAX((INT(BU111*BU47)+Control!$K$18*CustomersCOM!CB20),0)","v":0.14575369659844525},{"$f":"MAX((INT(BV111*BV47)+Control!$K$18*CustomersCOM!CC20),0)","v":0.14502492811545303},{"$f":"MAX((INT(BW111*BW47)+Control!$K$18*CustomersCOM!CD20),0)","v":0.14429980347487575},{"$f":"MAX((INT(BX111*BX47)+Control!$K$18*CustomersCOM!CE20),0)","v":0.14357830445750139},{"$f":"MAX((INT(BY111*BY47)+Control!$K$18*CustomersCOM!CF20),0)","v":0.14286041293521387},{"$f":"MAX((INT(BZ111*BZ47)+Control!$K$18*CustomersCOM!CG20),0)","v":0.1421461108705378},{"$f":"MAX((INT(CA111*CA47)+Control!$K$18*CustomersCOM!CH20),0)","v":0.14143538031618511},{"$f":"MAX((INT(CB111*CB47)+Control!$K$18*CustomersCOM!CI20),0)","v":0.14072820341460418},{"$f":"MAX((INT(CC111*CC47)+Control!$K$18*CustomersCOM!CJ20),0)","v":0.14002456239753117},{"$f":"MAX((INT(CD111*CD47)+Control!$K$18*CustomersCOM!CK20),0)","v":0.1393244395855435}]
["Yarra Ranges (S)",null,{"$f":"(INT(C112*C48)+AVERAGE(CustomersCOM!$H67:$J67))","v":27.666666666666668},{"$f":"MAX((INT(D112*D48)+Control!$K$18*CustomersCOM!K21),0)","v":18.206666666666667},{"$f":"MAX((INT(E112*E48)+Control!$K$18*CustomersCOM!L21),0)","v":56.150633333333332},{"$f":"MAX((INT(F112*F48)+Control!$K$18*CustomersCOM!M21),0)","v":53.869880166666668},{"$f":"MAX((INT(G112*G48)+Control!$K$18*CustomersCOM!N21),0)","v":13.600530765833334},{"$f":"MAX((INT(H112*H48)+Control!$K$18*CustomersCOM!O21),0)","v":15.567528112004167},{"$f":"MAX((INT(I112*I48)+Control!$K$18*CustomersCOM!P21),0)","v":37.514690471444148},{"$f":"MAX((INT(J112*J48)+Control!$K$18*CustomersCOM!Q21),0)","v":36.332117019086922},{"$f":"MAX((INT(K112*K48)+Control!$K$18*CustomersCOM!R21),0)","v":44.150456433991494},{"$f":"MAX((INT(L112*L48)+Control!$K$18*CustomersCOM!S21),0)","v":40.929704151821532},{"$f":"MAX((INT(M112*M48)+Control!$K$18*CustomersCOM!T21),0)","v":34.725055631062425},{"$f":"MAX((INT(N112*N48)+Control!$K$18*CustomersCOM!U21),0)","v":32.551430352907111},{"$f":"MAX((INT(O112*O48)+Control!$K$18*CustomersCOM!V21),0)","v":32.388673201142581},{"$f":"MAX((INT(P112*P48)+Control!$K$18*CustomersCOM!W21),0)","v":30.226729835136865},{"$f":"MAX((INT(Q112*Q48)+Control!$K$18*CustomersCOM!X21),0)","v":17.075596185961182},{"$f":"MAX((INT(R112*R48)+Control!$K$18*CustomersCOM!Y21),0)","v":21.990218205031375},{"$f":"MAX((INT(S112*S48)+Control!$K$18*CustomersCOM!Z21),0)","v":24.880267114006216},{"$f":"MAX((INT(T112*T48)+Control!$K$18*CustomersCOM!AA21),0)","v":23.755865778436185},{"$f":"MAX((INT(U112*U48)+Control!$K$18*CustomersCOM!AB21),0)","v":21.637086449544004},{"$f":"MAX((INT(V112*V48)+Control!$K$18*CustomersCOM!AC21),0)","v":20.528901017296285},{"$f":"MAX((INT(W112*W48)+Control!$K$18*CustomersCOM!AD21),0)","v":19.426256512209804},{"$f":"MAX((INT(X112*X48)+Control!$K$18*CustomersCOM!AE21),0)","v":17.329125229648753},{"$f":"MAX((INT(Y112*Y48)+Control!$K$18*CustomersCOM!AF21),0)","v":16.242479603500509},{"$f":"MAX((INT(Z112*Z48)+Control!$K$18*CustomersCOM!AG21),0)","v":15.161267205483009},{"$f":"MAX((INT(AA112*AA48)+Control!$K$18*CustomersCOM!AH21),0)","v":14.085460869455593},{"$f":"MAX((INT(AB112*AB48)+Control!$K$18*CustomersCOM!AI21),0)","v":13.015033565108315},{"$f":"MAX((INT(AC112*AC48)+Control!$K$18*CustomersCOM!AJ21),0)","v":11.949958397282774},{"$f":"MAX((INT(AD112*AD48)+Control!$K$18*CustomersCOM!AK21),0)","v":10.89020860529636},{"$f":"MAX((INT(AE112*AE48)+Control!$K$18*CustomersCOM!AL21),0)","v":10.835757562269878},{"$f":"MAX((INT(AF112*AF48)+Control!$K$18*CustomersCOM!AM21),0)","v":9.781578774458529},{"$f":"MAX((INT(AG112*AG48)+Control!$K$18*CustomersCOM!AN21),0)","v":8.7326708805862356},{"$f":"MAX((INT(AH112*AH48)+Control!$K$18*CustomersCOM!AO21),0)","v":8.6890075261833051},{"$f":"MAX((INT(AI112*AI48)+Control!$K$18*CustomersCOM!AP21),0)","v":7.6455624885523878},{"$f":"MAX((INT(AJ112*AJ48)+Control!$K$18*CustomersCOM!AQ21),0)","v":7.6073346761096268},{"$f":"MAX((INT(AK112*AK48)+Control!$K$18*CustomersCOM!AR21),0)","v":6.5692980027290782},{"$f":"MAX((INT(AL112*AL48)+Control!$K$18*CustomersCOM!AS21),0)","v":6.5364515127154323},{"$f":"MAX((INT(AM112*AM48)+Control!$K$18*CustomersCOM!AT21),0)","v":5.5037692551518553},{"$f":"MAX((INT(AN112*AN48)+Control!$K$18*CustomersCOM!AU21),0)","v":5.4762504088760959},{"$f":"MAX((INT(AO112*AO48)+Control!$K$18*CustomersCOM!AV21),0)","v":4.4488691568317158},{"$f":"MAX((INT(AP112*AP48)+Control!$K$18*CustomersCOM!AW21),0)","v":4.4266248110475575},{"$f":"MAX((INT(AQ112*AQ48)+Control!$K$18*CustomersCOM!AX21),0)","v":4.4044916869923192},{"$f":"MAX((INT(AR112*AR48)+Control!$K$18*CustomersCOM!AY21),0)","v":4.3824692285573574},{"$f":"MAX((INT(AS112*AS48)+Control!$K$18*CustomersCOM!AZ21),0)","v":3.3605568824145711},{"$f":"MAX((INT(AT112*AT48)+Control!$K$18*CustomersCOM!BA21),0)","v":3.3437540980024982},{"$f":"MAX((INT(AU112*AU48)+Control!$K$18*CustomersCOM!BB21),0)","v":3.327035327512486},{"$f":"MAX((INT(AV112*AV48)+Control!$K$18*CustomersCOM!BC21),0)","v":3.3104001508749232},{"$f":"MAX((INT(AW112*AW48)+Control!$K$18*CustomersCOM!BD21),0)","v":2.2938481501205485},{"$f":"MAX((INT(AX112*AX48)+Control!$K$18*CustomersCOM!BE21),0)","v":2.282378909369946},{"$f":"MAX((INT(AY112*AY48)+Control!$K$18*CustomersCOM!BF21),0)","v":2.2709670148230963},{"$f":"MAX((INT(AZ112*AZ48)+Control!$K$18*CustomersCOM!BG21),0)","v":2.2596121797489808},{"$f":"MAX((INT(BA112*BA48)+Control!$K$18*CustomersCOM!BH21),0)","v":2.248314118850236},{"$f":"MAX((INT(BB112*BB48)+Control!$K$18*CustomersCOM!BI21),0)","v":2.2370725482559846},{"$f":"MAX((INT(BC112*BC48)+Control!$K$18*CustomersCOM!BJ21),0)","v":2.2258871855147047},{"$f":"MAX((INT(BD112*BD48)+Control!$K$18*CustomersCOM!BK21),0)","v":1.2147577495871311},{"$f":"MAX((INT(BE112*BE48)+Control!$K$18*CustomersCOM!BL21),0)","v":1.2086839608391955},{"$f":"MAX((INT(BF112*BF48)+Control!$K$18*CustomersCOM!BM21),0)","v":1.2026405410349996},{"$f":"MAX((INT(BG112*BG48)+Control!$K$18*CustomersCOM!BN21),0)","v":1.1966273383298245},{"$f":"MAX((INT(BH112*BH48)+Control!$K$18*CustomersCOM!BO21),0)","v":1.1906442016381753},{"$f":"MAX((INT(BI112*BI48)+Control!$K$18*CustomersCOM!BP21),0)","v":1.1846909806299846},{"$f":"MAX((INT(BJ112*BJ48)+Control!$K$18*CustomersCOM!BQ21),0)","v":1.1787675257268346},{"$f":"MAX((INT(BK112*BK48)+Control!$K$18*CustomersCOM!BR21),0)","v":1.1728736880982005},{"$f":"MAX((INT(BL112*BL48)+Control!$K$18*CustomersCOM!BS21),0)","v":1.1670093196577094},{"$f":"MAX((INT(BM112*BM48)+Control!$K$18*CustomersCOM!BT21),0)","v":1.161174273059421},{"$f":"MAX((INT(BN112*BN48)+Control!$K$18*CustomersCOM!BU21),0)","v":1.1553684016941239},{"$f":"MAX((INT(BO112*BO48)+Control!$K$18*CustomersCOM!BV21),0)","v":0.14959155968565319},{"$f":"MAX((INT(BP112*BP48)+Control!$K$18*CustomersCOM!BW21),0)","v":0.14884360188722492},{"$f":"MAX((INT(BQ112*BQ48)+Control!$K$18*CustomersCOM!BX21),0)","v":0.14809938387778881},{"$f":"MAX((INT(BR112*BR48)+Control!$K$18*CustomersCOM!BY21),0)","v":0.14735888695839985},{"$f":"MAX((INT(BS112*BS48)+Control!$K$18*CustomersCOM!BZ21),0)","v":0.14662209252360786},{"$f":"MAX((INT(BT112*BT48)+Control!$K$18*CustomersCOM!CA21),0)","v":0.14588898206098982},{"$f":"MAX((INT(BU112*BU48)+Control!$K$18*CustomersCOM!CB21),0)","v":0.14515953715068489},{"$f":"MAX((INT(BV112*BV48)+Control!$K$18*CustomersCOM!CC21),0)","v":0.14443373946493146},{"$f":"MAX((INT(BW112*BW48)+Control!$K$18*CustomersCOM!CD21),0)","v":0.14371157076760679},{"$f":"MAX((INT(BX112*BX48)+Control!$K$18*CustomersCOM!CE21),0)","v":0.14299301291376876},{"$f":"MAX((INT(BY112*BY48)+Control!$K$18*CustomersCOM!CF21),0)","v":0.1422780478491999},{"$f":"MAX((INT(BZ112*BZ48)+Control!$K$18*CustomersCOM!CG21),0)","v":0.14156665760995391},{"$f":"MAX((INT(CA112*CA48)+Control!$K$18*CustomersCOM!CH21),0)","v":0.14085882432190414},{"$f":"MAX((INT(CB112*CB48)+Control!$K$18*CustomersCOM!CI21),0)","v":0.14015453020029461},{"$f":"MAX((INT(CC112*CC48)+Control!$K$18*CustomersCOM!CJ21),0)","v":0.13945375754929315},{"$f":"MAX((INT(CD112*CD48)+Control!$K$18*CustomersCOM!CK21),0)","v":0.13875648876154667}]
[]
[]
[]
["Scaled up capital costs"]
["LGA 0-150GJ",2020,{"$f":"B138+1","v":2021},2022,2023,2024,2025,2026,2027,2028,2029,2030,2031,2032,2033,2034,2035,2036,2037,2038,2039,2040,2041,2042,2043,2044,2045,2046,2047,2048,2049,2050,2051,2052,2053,2054,2055,2056,2057,2058,2059,2060,2061,2062,2063,2064,2065,2066,2067,2068,2069,2070,2071,2072,2073,2074,2075,2076,2077,2078,2079,2080,2081,2082,2083,2084,{"$f":"BN138+1","v":2085},2086,2087,2088,2089,2090,2091,2092,2093,2094,2095,2096,2097,2098,2099,2100]
["Bass Coast (S)",null,{"$f":"C$3","v":-5102.9965277777774},{"$f":"D$3","v":-5102.9965277777774},-3250.4449175383061,-3250.4449175383061,-4590.4449175383043,-4590.4449175383043,-4590.4449175383043,-5036.509322916666,-4709.0267197876547,-4644.5093639664938,-4580.314594924439,-4516.4407997275948,-4452.8863735067334,-4389.6497194169788,-4326.7292485976704,-4264.1233801324606,-4201.8305410095763,-4139.8491660823065,-4078.1776980296722,-4016.8145873173012,-3955.7582921584917,-3895.0072784754771,-3834.5600198608777,-3774.4149975393507,-3714.570700329431,-3655.0256246055615,-3595.7782742603122,-3536.8271606667886,-3478.1708026412325,-3419.8077264058038,-3419.8077264058038,-3419.8077264058038,-3419.8077264058038,-3419.8077264058038,-3419.8077264058038,-3419.8077264058038,-3419.8077264058038,-3419.8077264058038,-3419.8077264058038,-3419.8077264058038,-3419.8077264058038,-3419.8077264058038,-3419.8077264058038,-3419.8077264058038,-3419.8077264058038,-3419.8077264058038,-3419.8077264058038,-3419.8077264058038,-3419.8077264058038,-3419.8077264058038,-3419.8077264058038,-3419.8077264058038,-3419.8077264058038,-3419.8077264058038,-3419.8077264058038,-3419.8077264058038,-3419.8077264058038,-3419.8077264058038,-3419.8077264058038,-3419.8077264058038,-3419.8077264058038,-3419.8077264058038,-3419.8077264058038,-3419.8077264058038,-3419.8077264058038,{"$f":"BP$3","v":-3419.8077264058038},-3419.8077264058038,-3419.8077264058038,-3419.8077264058038,-3419.8077264058038,-3419.8077264058038,-3419.8077264058038,-3419.8077264058038,-3419.8077264058038,-3419.8077264058038,-3419.8077264058038,-3419.8077264058038,-3419.8077264058038,-3419.8077264058038,-3419.8077264058038]
["Bayside (C)",null,{"$f":"C$3","v":-5102.9965277777774},-5102.9965277777774,-3250.4449175383061,-3250.4449175383061,-4590.4449175383043,-4590.4449175383043,-4590.4449175383043,-5036.509322916666,-4709.0267197876547,-4644.5093639664938,-4580.314594924439,-4516.4407997275948,-4452.8863735067334,-4389.6497194169788,-4326.7292485976704,-4264.1233801324606,-4201.8305410095763,-4139.8491660823065,-4078.1776980296722,-4016.8145873173012,-3955.7582921584917,-3895.0072784754771,-3834.5600198608777,-3774.4149975393507,-3714.570700329431,-3655.0256246055615,-3595.7782742603122,-3536.8271606667886,-3478.1708026412325,-3419.8077264058038,-3419.8077264058038,-3419.8077264058038,-3419.8077264058038,-3419.8077264058038,-3419.8077264058038,-3419.8077264058038,-3419.8077264058038,-3419.8077264058038,-3419.8077264058038,-3419.8077264058038,-3419.8077264058038,-3419.8077264058038,-3419.8077264058038,-3419.8077264058038,-3419.8077264058038,-3419.8077264058038,-3419.8077264058038,-3419.8077264058038,-3419.8077264058038,-3419.8077264058038,-3419.8077264058038,-3419.8077264058038,-3419.8077264058038,-3419.8077264058038,-3419.8077264058038,-3419.8077264058038,-3419.8077264058038,-3419.8077264058038,-3419.8077264058038,-3419.8077264058038,-3419.8077264058038,-3419.8077264058038,-3419.8077264058038,-3419.8077264058038,-3419.8077264058038,-3419.8077264058038,-3419.8077264058038,-3419.8077264058038,-3419.8077264058038,-3419.8077264058038,-3419.8077264058038,-3419.8077264058038,-3419.8077264058038,-3419.8077264058038,-3419.8077264058038,-3419.8077264058038,-3419.8077264058038,-3419.8077264058038,-3419.8077264058038,-3419.8077264058038]
["Boroondara (C)",null,-5102.9965277777774,{"$f":"D$3","v":-5102.9965277777774},-3250.4449175383061,-3250.4449175383061,-4590.4449175383043,-4590.4449175383043,-4590.4449175383043,-5036.509322916666,-4709.0267197876547,-4644.5093639664938,-4580.314594924439,-4516.4407997275948,-4452.8863735067334,-4389.6497194169788,-4326.7292485976704,-4264.1233801324606,-4201.8305410095763,-4139.8491660823065,-4078.1776980296722,-4016.8145873173012,-3955.7582921584917,-3895.0072784754771,-3834.5600198608777,-3774.4149975393507,-3714.570700329431,-3655.0256246055615,-3595.7782742603122,-3536.8271606667886,-3478.1708026412325,-3419.8077264058038,-3419.8077264058038,-3419.8077264058038,-3419.8077264058038,-3419.8077264058038,-3419.8077264058038,-3419.8077264058038,-3419.8077264058038,-3419.8077264058038,-3419.8077264058038,-3419.8077264058038,-3419.8077264058038,-3419.8077264058038,-3419.8077264058038,-3419.8077264058038,-3419.8077264058038,-3419.8077264058038,-3419.8077264058038,-3419.8077264058038,-3419.8077264058038,-3419.8077264058038,-3419.8077264058038,-3419.8077264058038,-3419.8077264058038,-3419.8077264058038,-3419.8077264058038,-3419.8077264058038,-3419.8077264058038,-3419.8077264058038,-3419.8077264058038,-3419.8077264058038,-3419.8077264058038,-3419.8077264058038,-3419.8077264058038,-3419.8077264058038,-3419.8077264058038,-3419.8077264058038,-3419.8077264058038,-3419.8077264058038,-3419.8077264058038,-3419.8077264058038,-3419.8077264058038,-3419.8077264058038,-3419.8077264058038,-3419.8077264058038,-3419.8077264058038,-3419.8077264058038,-3419.8077264058038,-3419.8077264058038,-3419.8077264058038,-3419.8077264058038]
["Cardinia (S)",null,-5102.9965277777774,-5102.9965277777774,-3250.4449175383061,-3250.4449175383061,-4590.4449175383043,-4590.4449175383043,-4590.4449175383043,-5036.509322916666,-4709.0267197876547,-4644.5093639664938,-4580.314594924439,-4516.4407997275948,-4452.8863735067334,-4389.6497194169788,-4326.7292485976704,-4264.1233801324606,-4201.8305410095763,-4139.8491660823065,-4078.1776980296722,-4016.8145873173012,-3955.7582921584917,-3895.0072784754771,-3834.5600198608777,-3774.4149975393507,-3714.570700329431,-3655.0256246055615,-3595.7782742603122,-3536.8271606667886,-3478.1708026412325,-3419.8077264058038,-3419.8077264058038,-3419.8077264058038,-3419.8077264058038,-3419.8077264058038,-3419.8077264058038,-3419.8077264058038,-3419.8077264058038,-3419.8077264058038,-3419.8077264058038,-3419.8077264058038,-3419.8077264058038,-3419.8077264058038,-3419.8077264058038,-3419.8077264058038,-3419.8077264058038,-3419.8077264058038,-3419.8077264058038,-3419.8077264058038,-3419.8077264058038,-3419.8077264058038,-3419.8077264058038,-3419.8077264058038,-3419.8077264058038,-3419.8077264058038,-3419.8077264058038,-3419.8077264058038,-3419.8077264058038,-3419.8077264058038,-3419.8077264058038,-3419.8077264058038,-3419.8077264058038,-3419.8077264058038,-3419.8077264058038,-3419.8077264058038,-3419.8077264058038,-3419.8077264058038,-3419.8077264058038,-3419.8077264058038,-3419.8077264058038,-3419.8077264058038,-3419.8077264058038,-3419.8077264058038,-3419.8077264058038,-3419.8077264058038,-3419.8077264058038,-3419.8077264058038,-3419.8077264058038,-3419.8077264058038,-3419.8077264058038,-3419.8077264058038]
["Casey (C)",null,-5102.9965277777774,-5102.9965277777774,-3250.4449175383061,-3250.4449175383061,-4590.4449175383043,-4590.4449175383043,-4590.4449175383043,-5036.509322916666,-4709.0267197876547,-4644.5093639664938,-4580.314594924439,-4516.4407997275948,-4452.8863735067334,-4389.6497194169788,-4326.7292485976704,-4264.1233801324606,-4201.8305410095763,-4139.8491660823065,-4078.1776980296722,-4016.8145873173012,-3955.7582921584917,-3895.0072784754771,-3834.5600198608777,-3774.4149975393507,-3714.570700329431,-3655.0256246055615,-3595.7782742603122,-3536.8271606667886,-3478.1708026412325,-3419.8077264058038,-3419.8077264058038,-3419.8077264058038,-3419.8077264058038,-3419.8077264058038,-3419.8077264058038,-3419.8077264058038,-3419.8077264058038,-3419.8077264058038,-3419.8077264058038,-3419.8077264058038,-3419.8077264058038,-3419.8077264058038,-3419.8077264058038,-3419.8077264058038,-3419.8077264058038,-3419.8077264058038,-3419.8077264058038,-3419.8077264058038,-3419.8077264058038,-3419.8077264058038,-3419.8077264058038,-3419.8077264058038,-3419.8077264058038,-3419.8077264058038,-3419.8077264058038,-3419.8077264058038,-3419.8077264058038,-3419.8077264058038,-3419.8077264058038,-3419.8077264058038,-3419.8077264058038,-3419.8077264058038,-3419.8077264058038,-3419.8077264058038,-3419.8077264058038,-3419.8077264058038,-3419.8077264058038,-3419.8077264058038,-3419.8077264058038,-3419.8077264058038,-3419.8077264058038,-3419.8077264058038,-3419.8077264058038,-3419.8077264058038,-3419.8077264058038,-3419.8077264058038,-3419.8077264058038,-3419.8077264058038,-3419.8077264058038,-3419.8077264058038]
["Frankston (C)",null,-5102.9965277777774,-5102.9965277777774,-3250.4449175383061,-3250.4449175383061,-4590.4449175383043,-4590.4449175383043,-4590.4449175383043,-5036.509322916666,-4709.0267197876547,-4644.5093639664938,-4580.314594924439,-4516.4407997275948,-4452.8863735067334,-4389.6497194169788,-4326.7292485976704,-4264.1233801324606,-4201.8305410095763,-4139.8491660823065,-4078.1776980296722,-4016.8145873173012,-3955.7582921584917,-3895.0072784754771,-3834.5600198608777,-3774.4149975393507,-3714.570700329431,-3655.0256246055615,-3595.7782742603122,-3536.8271606667886,-3478.1708026412325,-3419.8077264058038,-3419.8077264058038,-3419.8077264058038,-3419.8077264058038,-3419.8077264058038,-3419.8077264058038,-3419.8077264058038,-3419.8077264058038,-3419.8077264058038,-3419.8077264058038,-3419.8077264058038,-3419.8077264058038,-3419.8077264058038,-3419.8077264058038,-3419.8077264058038,-3419.8077264058038,-3419.8077264058038,-3419.8077264058038,-3419.8077264058038,-3419.8077264058038,-3419.8077264058038,-3419.8077264058038,-3419.8077264058038,-3419.8077264058038,-3419.8077264058038,-3419.8077264058038,-3419.8077264058038,-3419.8077264058038,-3419.8077264058038,-3419.8077264058038,-3419.8077264058038,-3419.8077264058038,-3419.8077264058038,-3419.8077264058038,-3419.8077264058038,{"$f":"BO$3","v":-3419.8077264058038},-3419.8077264058038,-3419.8077264058038,-3419.8077264058038,-3419.8077264058038,-3419.8077264058038,-3419.8077264058038,-3419.8077264058038,-3419.8077264058038,-3419.8077264058038,-3419.8077264058038,-3419.8077264058038,-3419.8077264058038,-3419.8077264058038,-3419.8077264058038,-3419.8077264058038]
["Glen Eira (C)",null,-5102.9965277777774,{"$f":"D$3","v":-5102.9965277777774},-3250.4449175383061,-3250.4449175383061,-4590.4449175383043,-4590.4449175383043,-4590.4449175383043,-5036.509322916666,-4709.0267197876547,-4644.5093639664938,-4580.314594924439,-4516.4407997275948,-4452.8863735067334,-4389.6497194169788,-4326.7292485976704,-4264.1233801324606,-4201.8305410095763,-4139.8491660823065,-4078.1776980296722,-4016.8145873173012,-3955.7582921584917,-3895.0072784754771,-3834.5600198608777,-3774.4149975393507,-3714.570700329431,-3655.0256246055615,-3595.7782742603122,-3536.8271606667886,-3478.1708026412325,-3419.8077264058038,-3419.8077264058038,-3419.8077264058038,-3419.8077264058038,-3419.8077264058038,-3419.8077264058038,-3419.8077264058038,-3419.8077264058038,-3419.8077264058038,-3419.8077264058038,-3419.8077264058038,-3419.8077264058038,-3419.8077264058038,-3419.8077264058038,-3419.8077264058038,-3419.8077264058038,-3419.8077264058038,-3419.8077264058038,-3419.8077264058038,-3419.8077264058038,-3419.8077264058038,-3419.8077264058038,-3419.8077264058038,-3419.8077264058038,-3419.8077264058038,-3419.8077264058038,-3419.8077264058038,-3419.8077264058038,-3419.8077264058038,-3419.8077264058038,-3419.8077264058038,-3419.8077264058038,-3419.8077264058038,-3419.8077264058038,-3419.8077264058038,-3419.8077264058038,-3419.8077264058038,-3419.8077264058038,-3419.8077264058038,-3419.8077264058038,-3419.8077264058038,-3419.8077264058038,-3419.8077264058038,-3419.8077264058038,-3419.8077264058038,-3419.8077264058038,-3419.8077264058038,-3419.8077264058038,-3419.8077264058038,-3419.8077264058038,-3419.8077264058038]
["Greater Dandenong (C)",null,-5102.9965277777774,-5102.9965277777774,-3250.4449175383061,-3250.4449175383061,-4590.4449175383043,-4590.4449175383043,-4590.4449175383043,-5036.509322916666,-4709.0267197876547,-4644.5093639664938,-4580.314594924439,-4516.4407997275948,-4452.8863735067334,-4389.6497194169788,-4326.7292485976704,-4264.1233801324606,-4201.8305410095763,-4139.8491660823065,-4078.1776980296722,-4016.8145873173012,-3955.7582921584917,-3895.0072784754771,-3834.5600198608777,-3774.4149975393507,-3714.570700329431,-3655.0256246055615,-3595.7782742603122,-3536.8271606667886,-3478.1708026412325,-3419.8077264058038,-3419.8077264058038,-3419.8077264058038,-3419.8077264058038,-3419.8077264058038,-3419.8077264058038,-3419.8077264058038,-3419.8077264058038,-3419.8077264058038,-3419.8077264058038,-3419.8077264058038,-3419.8077264058038,-3419.8077264058038,-3419.8077264058038,-3419.8077264058038,-3419.8077264058038,-3419.8077264058038,-3419.8077264058038,-3419.8077264058038,-3419.8077264058038,-3419.8077264058038,-3419.8077264058038,-3419.8077264058038,-3419.8077264058038,-3419.8077264058038,-3419.8077264058038,-3419.8077264058038,-3419.8077264058038,-3419.8077264058038,-3419.8077264058038,-3419.8077264058038,-3419.8077264058038,-3419.8077264058038,-3419.8077264058038,-3419.8077264058038,-3419.8077264058038,-3419.8077264058038,-3419.8077264058038,-3419.8077264058038,-3419.8077264058038,-3419.8077264058038,-3419.8077264058038,-3419.8077264058038,-3419.8077264058038,-3419.8077264058038,-3419.8077264058038,-3419.8077264058038,-3419.8077264058038,-3419.8077264058038,-3419.8077264058038,-3419.8077264058038]
["Kingston (C)",null,-5102.9965277777774,-5102.9965277777774,-3250.4449175383061,-3250.4449175383061,-4590.4449175383043,-4590.4449175383043,-4590.4449175383043,-5036.509322916666,-4709.0267197876547,-4644.5093639664938,-4580.314594924439,-4516.4407997275948,-4452.8863735067334,-4389.6497194169788,-4326.7292485976704,-4264.1233801324606,-4201.8305410095763,-4139.8491660823065,-4078.1776980296722,-4016.8145873173012,-3955.7582921584917,-3895.0072784754771,-3834.5600198608777,-3774.4149975393507,-3714.570700329431,-3655.0256246055615,-3595.7782742603122,-3536.8271606667886,-3478.1708026412325,-3419.8077264058038,-3419.8077264058038,-3419.8077264058038,-3419.8077264058038,-3419.8077264058038,-3419.8077264058038,-3419.8077264058038,-3419.8077264058038,-3419.8077264058038,-3419.8077264058038,-3419.8077264058038,-3419.8077264058038,-3419.8077264058038,-3419.8077264058038,-3419.8077264058038,-3419.8077264058038,-3419.8077264058038,-3419.8077264058038,-3419.8077264058038,-3419.8077264058038,-3419.8077264058038,-3419.8077264058038,-3419.8077264058038,-3419.8077264058038,-3419.8077264058038,-3419.8077264058038,-3419.8077264058038,-3419.8077264058038,-3419.8077264058038,-3419.8077264058038,-3419.8077264058038,-3419.8077264058038,-3419.8077264058038,-3419.8077264058038,-3419.8077264058038,-3419.8077264058038,-3419.8077264058038,-3419.8077264058038,-3419.8077264058038,-3419.8077264058038,-3419.8077264058038,-3419.8077264058038,-3419.8077264058038,-3419.8077264058038,-3419.8077264058038,-3419.8077264058038,-3419.8077264058038,-3419.8077264058038,-3419.8077264058038,-3419.8077264058038,-3419.8077264058038]
["Knox (C)",null,-5102.9965277777774,-5102.9965277777774,-3250.4449175383061,-3250.4449175383061,-4590.4449175383043,-4590.4449175383043,-4590.4449175383043,-5036.509322916666,-4709.0267197876547,-4644.5093639664938,-4580.314594924439,-4516.4407997275948,-4452.8863735067334,-4389.6497194169788,-4326.7292485976704,-4264.1233801324606,-4201.8305410095763,-4139.8491660823065,-4078.1776980296722,-4016.8145873173012,-3955.7582921584917,-3895.0072784754771,-3834.5600198608777,-3774.4149975393507,-3714.570700329431,-3655.0256246055615,-3595.7782742603122,-3536.8271606667886,-3478.1708026412325,-3419.8077264058038,-3419.8077264058038,-3419.8077264058038,-3419.8077264058038,-3419.8077264058038,-3419.8077264058038,-3419.8077264058038,-3419.8077264058038,-3419.8077264058038,-3419.8077264058038,-3419.8077264058038,-3419.8077264058038,-3419.8077264058038,-3419.8077264058038,-3419.8077264058038,-3419.8077264058038,-3419.8077264058038,-3419.8077264058038,-3419.8077264058038,-3419.8077264058038,-3419.8077264058038,-3419.8077264058038,-3419.8077264058038,-3419.8077264058038,-3419.8077264058038,-3419.8077264058038,-3419.8077264058038,-3419.8077264058038,-3419.8077264058038,-3419.8077264058038,-3419.8077264058038,-3419.8077264058038,-3419.8077264058038,-3419.8077264058038,-3419.8077264058038,{"$f":"BO$3","v":-3419.8077264058038},-3419.8077264058038,-3419.8077264058038,-3419.8077264058038,-3419.8077264058038,-3419.8077264058038,-3419.8077264058038,-3419.8077264058038,-3419.8077264058038,-3419.8077264058038,-3419.8077264058038,-3419.8077264058038,-3419.8077264058038,-3419.8077264058038,-3419.8077264058038,-3419.8077264058038]
["Manningham (C)",null,-5102.9965277777774,{"$f":"D$3","v":-5102.9965277777774},-3250.4449175383061,-3250.4449175383061,-4590.4449175383043,-4590.4449175383043,-4590.4449175383043,-5036.509322916666,-4709.0267197876547,-4644.5093639664938,-4580.314594924439,-4516.4407997275948,-4452.8863735067334,-4389.6497194169788,-4326.7292485976704,-4264.1233801324606,-4201.8305410095763,-4139.8491660823065,-4078.1776980296722,-4016.8145873173012,-3955.7582921584917,-3895.0072784754771,-3834.5600198608777,-3774.4149975393507,-3714.570700329431,-3655.0256246055615,-3595.7782742603122,-3536.8271606667886,-3478.1708026412325,-3419.8077264058038,-3419.8077264058038,-3419.8077264058038,-3419.8077264058038,-3419.8077264058038,-3419.8077264058038,-3419.8077264058038,-3419.8077264058038,-3419.8077264058038,-3419.8077264058038,-3419.8077264058038,-3419.8077264058038,-3419.8077264058038,-3419.8077264058038,-3419.8077264058038,-3419.8077264058038,-3419.8077264058038,-3419.8077264058038,-3419.8077264058038,-3419.8077264058038,-3419.8077264058038,-3419.8077264058038,-3419.8077264058038,-3419.8077264058038,-3419.8077264058038,-3419.8077264058038,-3419.8077264058038,-3419.8077264058038,-3419.8077264058038,-3419.8077264058038,-3419.8077264058038,-3419.8077264058038,-3419.8077264058038,-3419.8077264058038,-3419.8077264058038,-3419.8077264058038,-3419.8077264058038,-3419.8077264058038,-3419.8077264058038,-3419.8077264058038,-3419.8077264058038,-3419.8077264058038,-3419.8077264058038,-3419.8077264058038,-3419.8077264058038,-3419.8077264058038,-3419.8077264058038,-3419.8077264058038,-3419.8077264058038,-3419.8077264058038,-3419.8077264058038]
["Maroondah (C)",null,-5102.9965277777774,-5102.9965277777774,-3250.4449175383061,-3250.4449175383061,-4590.4449175383043,-4590.4449175383043,-4590.4449175383043,-5036.509322916666,-4709.0267197876547,-4644.5093639664938,-4580.314594924439,-4516.4407997275948,-4452.8863735067334,-4389.6497194169788,-4326.7292485976704,-4264.1233801324606,-4201.8305410095763,-4139.8491660823065,-4078.1776980296722,-4016.8145873173012,-3955.7582921584917,-3895.0072784754771,-3834.5600198608777,-3774.4149975393507,-3714.570700329431,-3655.0256246055615,-3595.7782742603122,-3536.8271606667886,-3478.1708026412325,-3419.8077264058038,-3419.8077264058038,-3419.8077264058038,-3419.8077264058038,-3419.8077264058038,-3419.8077264058038,-3419.8077264058038,-3419.8077264058038,-3419.8077264058038,-3419.8077264058038,-3419.8077264058038,-3419.8077264058038,-3419.8077264058038,-3419.8077264058038,-3419.8077264058038,-3419.8077264058038,-3419.8077264058038,-3419.8077264058038,-3419.8077264058038,-3419.8077264058038,-3419.8077264058038,-3419.8077264058038,-3419.8077264058038,-3419.8077264058038,-3419.8077264058038,-3419.8077264058038,-3419.8077264058038,-3419.8077264058038,-3419.8077264058038,-3419.8077264058038,-3419.8077264058038,-3419.8077264058038,-3419.8077264058038,-3419.8077264058038,-3419.8077264058038,-3419.8077264058038,-3419.8077264058038,-3419.8077264058038,-3419.8077264058038,-3419.8077264058038,-3419.8077264058038,-3419.8077264058038,-3419.8077264058038,-3419.8077264058038,-3419.8077264058038,-3419.8077264058038,-3419.8077264058038,-3419.8077264058038,-3419.8077264058038,-3419.8077264058038,-3419.8077264058038]
["Melbourne (C)",null,-5102.9965277777774,-5102.9965277777774,-3250.4449175383061,-3250.4449175383061,-4590.4449175383043,-4590.4449175383043,-4590.4449175383043,-5036.509322916666,-4709.0267197876547,-4644.5093639664938,-4580.314594924439,-4516.4407997275948,-4452.8863735067334,-4389.6497194169788,-4326.7292485976704,-4264.1233801324606,-4201.8305410095763,-4139.8491660823065,-4078.1776980296722,-4016.8145873173012,-3955.7582921584917,-3895.0072784754771,-3834.5600198608777,-3774.4149975393507,-3714.570700329431,-3655.0256246055615,-3595.7782742603122,-3536.8271606667886,-3478.1708026412325,-3419.8077264058038,-3419.8077264058038,-3419.8077264058038,-3419.8077264058038,-3419.8077264058038,-3419.8077264058038,-3419.8077264058038,-3419.8077264058038,-3419.8077264058038,-3419.8077264058038,-3419.8077264058038,-3419.8077264058038,-3419.8077264058038,-3419.8077264058038,-3419.8077264058038,-3419.8077264058038,-3419.8077264058038,-3419.8077264058038,-3419.8077264058038,-3419.8077264058038,-3419.8077264058038,-3419.8077264058038,-3419.8077264058038,-3419.8077264058038,-3419.8077264058038,-3419.8077264058038,-3419.8077264058038,-3419.8077264058038,-3419.8077264058038,-3419.8077264058038,-3419.8077264058038,-3419.8077264058038,-3419.8077264058038,-3419.8077264058038,-3419.8077264058038,-3419.8077264058038,-3419.8077264058038,-3419.8077264058038,-3419.8077264058038,-3419.8077264058038,-3419.8077264058038,-3419.8077264058038,-3419.8077264058038,-3419.8077264058038,-3419.8077264058038,-3419.8077264058038,-3419.8077264058038,-3419.8077264058038,-3419.8077264058038,-3419.8077264058038,-3419.8077264058038]
["Monash (C)",null,-5102.9965277777774,-5102.9965277777774,-3250.4449175383061,-3250.4449175383061,-4590.4449175383043,-4590.4449175383043,-4590.4449175383043,-5036.509322916666,-4709.0267197876547,-4644.5093639664938,-4580.314594924439,-4516.4407997275948,-4452.8863735067334,-4389.6497194169788,-4326.7292485976704,-4264.1233801324606,-4201.8305410095763,-4139.8491660823065,-4078.1776980296722,-4016.8145873173012,-3955.7582921584917,-3895.0072784754771,-3834.5600198608777,-3774.4149975393507,-3714.570700329431,-3655.0256246055615,-3595.7782742603122,-3536.8271606667886,-3478.1708026412325,-3419.8077264058038,-3419.8077264058038,-3419.8077264058038,-3419.8077264058038,-3419.8077264058038,-3419.8077264058038,-3419.8077264058038,-3419.8077264058038,-3419.8077264058038,-3419.8077264058038,-3419.8077264058038,-3419.8077264058038,-3419.8077264058038,-3419.8077264058038,-3419.8077264058038,-3419.8077264058038,-3419.8077264058038,-3419.8077264058038,-3419.8077264058038,-3419.8077264058038,-3419.8077264058038,-3419.8077264058038,-3419.8077264058038,-3419.8077264058038,-3419.8077264058038,-3419.8077264058038,-3419.8077264058038,-3419.8077264058038,-3419.8077264058038,-3419.8077264058038,-3419.8077264058038,-3419.8077264058038,-3419.8077264058038,-3419.8077264058038,-3419.8077264058038,{"$f":"BO$3","v":-3419.8077264058038},-3419.8077264058038,-3419.8077264058038,-3419.8077264058038,-3419.8077264058038,-3419.8077264058038,-3419.8077264058038,-3419.8077264058038,-3419.8077264058038,-3419.8077264058038,-3419.8077264058038,-3419.8077264058038,-3419.8077264058038,-3419.8077264058038,-3419.8077264058038,-3419.8077264058038]
["Port Phillip (C)",null,-5102.9965277777774,{"$f":"D$3","v":-5102.9965277777774},-3250.4449175383061,-3250.4449175383061,-4590.4449175383043,-4590.4449175383043,-4590.4449175383043,-5036.509322916666,-4709.0267197876547,-4644.5093639664938,-4580.314594924439,-4516.4407997275948,-4452.8863735067334,-4389.6497194169788,-4326.7292485976704,-4264.1233801324606,-4201.8305410095763,-4139.8491660823065,-4078.1776980296722,-4016.8145873173012,-3955.7582921584917,-3895.0072784754771,-3834.5600198608777,-3774.4149975393507,-3714.570700329431,-3655.0256246055615,-3595.7782742603122,-3536.8271606667886,-3478.1708026412325,-3419.8077264058038,-3419.8077264058038,-3419.8077264058038,-3419.8077264058038,-3419.8077264058038,-3419.8077264058038,-3419.8077264058038,-3419.8077264058038,-3419.8077264058038,-3419.8077264058038,-3419.8077264058038,-3419.8077264058038,-3419.8077264058038,-3419.8077264058038,-3419.8077264058038,-3419.8077264058038,-3419.8077264058038,-3419.8077264058038,-3419.8077264058038,-3419.8077264058038,-3419.8077264058038,-3419.8077264058038,-3419.8077264058038,-3419.8077264058038,-3419.8077264058038,-3419.8077264058038,-3419.8077264058038,-3419.8077264058038,-3419.8077264058038,-3419.8077264058038,-3419.8077264058038,-3419.8077264058038,-3419.8077264058038,-3419.8077264058038,-3419.8077264058038,-3419.8077264058038,-3419.8077264058038,-3419.8077264058038,-3419.8077264058038,-3419.8077264058038,-3419.8077264058038,-3419.8077264058038,-3419.8077264058038,-3419.8077264058038,-3419.8077264058038,-3419.8077264058038,-3419.8077264058038,-3419.8077264058038,-3419.8077264058038,-3419.8077264058038,-3419.8077264058038]
["South Gippsland (S)",null,-5102.9965277777774,-5102.9965277777774,-3250.4449175383061,-3250.4449175383061,-4590.4449175383043,-4590.4449175383043,-4590.4449175383043,-5036.509322916666,-4709.0267197876547,-4644.5093639664938,-4580.314594924439,-4516.4407997275948,-4452.8863735067334,-4389.6497194169788,-4326.7292485976704,-4264.1233801324606,-4201.8305410095763,-4139.8491660823065,-4078.1776980296722,-4016.8145873173012,-3955.7582921584917,-3895.0072784754771,-3834.5600198608777,-3774.4149975393507,-3714.570700329431,-3655.0256246055615,-3595.7782742603122,-3536.8271606667886,-3478.1708026412325,-3419.8077264058038,-3419.8077264058038,-3419.8077264058038,-3419.8077264058038,-3419.8077264058038,-3419.8077264058038,-3419.8077264058038,-3419.8077264058038,-3419.8077264058038,-3419.8077264058038,-3419.8077264058038,-3419.8077264058038,-3419.8077264058038,-3419.8077264058038,-3419.8077264058038,-3419.8077264058038,-3419.8077264058038,-3419.8077264058038,-3419.8077264058038,-3419.8077264058038,-3419.8077264058038,-3419.8077264058038,-3419.8077264058038,-3419.8077264058038,-3419.8077264058038,-3419.8077264058038,-3419.8077264058038,-3419.8077264058038,-3419.8077264058038,-3419.8077264058038,-3419.8077264058038,-3419.8077264058038,-3419.8077264058038,-3419.8077264058038,-3419.8077264058038,-3419.8077264058038,-3419.8077264058038,-3419.8077264058038,-3419.8077264058038,-3419.8077264058038,-3419.8077264058038,-3419.8077264058038,-3419.8077264058038,-3419.8077264058038,-3419.8077264058038,-3419.8077264058038,-3419.8077264058038,-3419.8077264058038,-3419.8077264058038,-3419.8077264058038,-3419.8077264058038]
["Stonnington (C)",null,-5102.9965277777774,-5102.9965277777774,-3250.4449175383061,-3250.4449175383061,-4590.4449175383043,-4590.4449175383043,-4590.4449175383043,-5036.509322916666,-4709.0267197876547,-4644.5093639664938,-4580.314594924439,-4516.4407997275948,-4452.8863735067334,-4389.6497194169788,-4326.7292485976704,-4264.1233801324606,-4201.8305410095763,-4139.8491660823065,-4078.1776980296722,-4016.8145873173012,-3955.7582921584917,-3895.0072784754771,-3834.5600198608777,-3774.4149975393507,-3714.570700329431,-3655.0256246055615,-3595.7782742603122,-3536.8271606667886,-3478.1708026412325,-3419.8077264058038,-3419.8077264058038,-3419.8077264058038,-3419.8077264058038,-3419.8077264058038,-3419.8077264058038,-3419.8077264058038,-3419.8077264058038,-3419.8077264058038,-3419.8077264058038,-3419.8077264058038,-3419.8077264058038,-3419.8077264058038,-3419.8077264058038,-3419.8077264058038,-3419.8077264058038,-3419.8077264058038,-3419.8077264058038,-3419.8077264058038,-3419.8077264058038,-3419.8077264058038,-3419.8077264058038,-3419.8077264058038,-3419.8077264058038,-3419.8077264058038,-3419.8077264058038,-3419.8077264058038,-3419.8077264058038,-3419.8077264058038,-3419.8077264058038,-3419.8077264058038,-3419.8077264058038,-3419.8077264058038,-3419.8077264058038,-3419.8077264058038,-3419.8077264058038,-3419.8077264058038,-3419.8077264058038,-3419.8077264058038,-3419.8077264058038,-3419.8077264058038,-3419.8077264058038,-3419.8077264058038,-3419.8077264058038,-3419.8077264058038,-3419.8077264058038,-3419.8077264058038,-3419.8077264058038,-3419.8077264058038,-3419.8077264058038,-3419.8077264058038]
["Whitehorse (C)",null,-5102.9965277777774,-5102.9965277777774,-3250.4449175383061,-3250.4449175383061,-4590.4449175383043,-4590.4449175383043,-4590.4449175383043,-5036.509322916666,-4709.0267197876547,-4644.5093639664938,-4580.314594924439,-4516.4407997275948,-4452.8863735067334,-4389.6497194169788,-4326.7292485976704,-4264.1233801324606,-4201.8305410095763,-4139.8491660823065,-4078.1776980296722,-4016.8145873173012,-3955.7582921584917,-3895.0072784754771,-3834.5600198608777,-3774.4149975393507,-3714.570700329431,-3655.0256246055615,-3595.7782742603122,-3536.8271606667886,-3478.1708026412325,-3419.8077264058038,-3419.8077264058038,-3419.8077264058038,-3419.8077264058038,-3419.8077264058038,-3419.8077264058038,-3419.8077264058038,-3419.8077264058038,-3419.8077264058038,-3419.8077264058038,-3419.8077264058038,-3419.8077264058038,-3419.8077264058038,-3419.8077264058038,-3419.8077264058038,-3419.8077264058038,-3419.8077264058038,-3419.8077264058038,-3419.8077264058038,-3419.8077264058038,-3419.8077264058038,-3419.8077264058038,-3419.8077264058038,-3419.8077264058038,-3419.8077264058038,-3419.8077264058038,-3419.8077264058038,-3419.8077264058038,-3419.8077264058038,-3419.8077264058038,-3419.8077264058038,-3419.8077264058038,-3419.8077264058038,-3419.8077264058038,-3419.8077264058038,{"$f":"BO$3","v":-3419.8077264058038},-3419.8077264058038,-3419.8077264058038,-3419.8077264058038,-3419.8077264058038,-3419.8077264058038,-3419.8077264058038,-3419.8077264058038,-3419.8077264058038,-3419.8077264058038,-3419.8077264058038,-3419.8077264058038,-3419.8077264058038,-3419.8077264058038,-3419.8077264058038,-3419.8077264058038]
["Yarra Ranges (S)",null,-5102.9965277777774,{"$f":"D$3","v":-5102.9965277777774},-3250.4449175383061,-3250.4449175383061,-4590.4449175383043,-4590.4449175383043,-4590.4449175383043,-5036.509322916666,-4709.0267197876547,-4644.5093639664938,-4580.314594924439,-4516.4407997275948,-4452.8863735067334,-4389.6497194169788,-4326.7292485976704,-4264.1233801324606,-4201.8305410095763,-4139.8491660823065,-4078.1776980296722,-4016.8145873173012,-3955.7582921584917,-3895.0072784754771,-3834.5600198608777,-3774.4149975393507,-3714.570700329431,-3655.0256246055615,-3595.7782742603122,-3536.8271606667886,-3478.1708026412325,-3419.8077264058038,-3419.8077264058038,-3419.8077264058038,-3419.8077264058038,-3419.8077264058038,-3419.8077264058038,-3419.8077264058038,-3419.8077264058038,-3419.8077264058038,-3419.8077264058038,-3419.8077264058038,-3419.8077264058038,-3419.8077264058038,-3419.8077264058038,-3419.8077264058038,-3419.8077264058038,-3419.8077264058038,-3419.8077264058038,-3419.8077264058038,-3419.8077264058038,-3419.8077264058038,-3419.8077264058038,-3419.8077264058038,-3419.8077264058038,-3419.8077264058038,-3419.8077264058038,-3419.8077264058038,-3419.8077264058038,-3419.8077264058038,-3419.8077264058038,-3419.8077264058038,-3419.8077264058038,-3419.8077264058038,-3419.8077264058038,-3419.8077264058038,-3419.8077264058038,-3419.8077264058038,-3419.8077264058038,-3419.8077264058038,-3419.8077264058038,-3419.8077264058038,-3419.8077264058038,-3419.8077264058038,-3419.8077264058038,-3419.8077264058038,-3419.8077264058038,-3419.8077264058038,-3419.8077264058038,-3419.8077264058038,-3419.8077264058038,-3419.8077264058038]
[]
["LGA 150-500GJ",2020,{"$f":"B159+1","v":2021},{"$f":"C159+1","v":2022},{"$f":"D159+1","v":2023},{"$f":"E159+1","v":2024},{"$f":"F159+1","v":2025},{"$f":"G159+1","v":2026},{"$f":"H159+1","v":2027},{"$f":"I159+1","v":2028},{"$f":"J159+1","v":2029},{"$f":"K159+1","v":2030},{"$f":"L159+1","v":2031},{"$f":"M159+1","v":2032},{"$f":"N159+1","v":2033},{"$f":"O159+1","v":2034},{"$f":"P159+1","v":2035},{"$f":"Q159+1","v":2036},{"$f":"R159+1","v":2037},{"$f":"S159+1","v":2038},{"$f":"T159+1","v":2039},{"$f":"U159+1","v":2040},{"$f":"V159+1","v":2041},{"$f":"W159+1","v":2042},{"$f":"X159+1","v":2043},{"$f":"Y159+1","v":2044},{"$f":"Z159+1","v":2045},{"$f":"AA159+1","v":2046},{"$f":"AB159+1","v":2047},{"$f":"AC159+1","v":2048},{"$f":"AD159+1","v":2049},{"$f":"AE159+1","v":2050},{"$f":"AF159+1","v":2051},{"$f":"AG159+1","v":2052},{"$f":"AH159+1","v":2053},{"$f":"AI159+1","v":2054},{"$f":"AJ159+1","v":2055},{"$f":"AK159+1","v":2056},{"$f":"AL159+1","v":2057},{"$f":"AM159+1","v":2058},{"$f":"AN159+1","v":2059},{"$f":"AO159+1","v":2060},{"$f":"AP159+1","v":2061},{"$f":"AQ159+1","v":2062},{"$f":"AR159+1","v":2063},{"$f":"AS159+1","v":2064},{"$f":"AT159+1","v":2065},{"$f":"AU159+1","v":2066},{"$f":"AV159+1","v":2067},{"$f":"AW159+1","v":2068},{"$f":"AX159+1","v":2069},{"$f":"AY159+1","v":2070},{"$f":"AZ159+1","v":2071},{"$f":"BA159+1","v":2072},{"$f":"BB159+1","v":2073},{"$f":"BC159+1","v":2074},{"$f":"BD159+1","v":2075},{"$f":"BE159+1","v":2076},{"$f":"BF159+1","v":2077},{"$f":"BG159+1","v":2078},{"$f":"BH159+1","v":2079},{"$f":"BI159+1","v":2080},{"$f":"BJ159+1","v":2081},{"$f":"BK159+1","v":2082},{"$f":"BL159+1","v":2083},{"$f":"BM159+1","v":2084},{"$f":"BN159+1","v":2085},{"$f":"BO159+1","v":2086},{"$f":"BP159+1","v":2087},{"$f":"BQ159+1","v":2088},{"$f":"BR159+1","v":2089},{"$f":"BS159+1","v":2090},{"$f":"BT159+1","v":2091},{"$f":"BU159+1","v":2092},{"$f":"BV159+1","v":2093},{"$f":"BW159+1","v":2094},{"$f":"BX159+1","v":2095},{"$f":"BY159+1","v":2096},{"$f":"BZ159+1","v":2097},{"$f":"CA159+1","v":2098},{"$f":"CB159+1","v":2099},{"$f":"CC159+1","v":2100}]
["Bass Coast (S)",null,{"$f":"C$3*('COM-Appliance class'!$U47/'Volume per connection'!$J$69)","v":-22890.322582821085},{"$f":"D$3*('COM-Appliance class'!$U47/'Volume per connection'!$J$69)","v":-22890.322582821085},{"$f":"E$3*('COM-Appliance class'!$U47/'Volume per connection'!$J$69)","v":-14580.400416722212},{"$f":"F$3*('COM-Appliance class'!$U47/'Volume per connection'!$J$69)","v":-14580.400416722212},{"$f":"G$3*('COM-Appliance class'!$U47/'Volume per connection'!$J$69)","v":-20591.188802333269},{"$f":"H$3*('COM-Appliance class'!$U47/'Volume per connection'!$J$69)","v":-20591.188802333269},{"$f":"I$3*('COM-Appliance class'!$U47/'Volume per connection'!$J$69)","v":-20591.188802333269},{"$f":"J$3*('COM-Appliance class'!$U47/'Volume per connection'!$J$69)","v":-22592.083389708463},{"$f":"K$3*('COM-Appliance class'!$U47/'Volume per connection'!$J$69)","v":-21123.106802113285},{"$f":"L$3*('COM-Appliance class'!$U47/'Volume per connection'!$J$69)","v":-20833.703687904206},{"$f":"M$3*('COM-Appliance class'!$U47/'Volume per connection'!$J$69)","v":-20545.747589266168},{"$f":"N$3*('COM-Appliance class'!$U47/'Volume per connection'!$J$69)","v":-20259.231271121324},{"$f":"O$3*('COM-Appliance class'!$U47/'Volume per connection'!$J$69)","v":-19974.147534567201},{"$f":"P$3*('COM-Appliance class'!$U47/'Volume per connection'!$J$69)","v":-19690.489216695856},{"$f":"Q$3*('COM-Appliance class'!$U47/'Volume per connection'!$J$69)","v":-19408.249190413855},{"$f":"R$3*('COM-Appliance class'!$U47/'Volume per connection'!$J$69)","v":-19127.420364263275},{"$f":"S$3*('COM-Appliance class'!$U47/'Volume per connection'!$J$69)","v":-18847.995682243447},{"$f":"T$3*('COM-Appliance class'!$U47/'Volume per connection'!$J$69)","v":-18569.968123633716},{"$f":"U$3*('COM-Appliance class'!$U47/'Volume per connection'!$J$69)","v":-18293.330702817031},{"$f":"V$3*('COM-Appliance class'!$U47/'Volume per connection'!$J$69)","v":-18018.076469104428},{"$f":"W$3*('COM-Appliance class'!$U47/'Volume per connection'!$J$69)","v":-17744.198506560391},{"$f":"X$3*('COM-Appliance class'!$U47/'Volume per connection'!$J$69)","v":-17471.689933829075},{"$f":"Y$3*('COM-Appliance class'!$U47/'Volume per connection'!$J$69)","v":-17200.543903961414},{"$f":"Z$3*('COM-Appliance class'!$U47/'Volume per connection'!$J$69)","v":-16930.753604243091},{"$f":"AA$3*('COM-Appliance class'!$U47/'Volume per connection'!$J$69)","v":-16662.312256023361},{"$f":"AB$3*('COM-Appliance class'!$U47/'Volume per connection'!$J$69)","v":-16395.213114544727},{"$f":"AC$3*('COM-Appliance class'!$U47/'Volume per connection'!$J$69)","v":-16129.449468773493},{"$f":"AD$3*('COM-Appliance class'!$U47/'Volume per connection'!$J$69)","v":-15865.014641231113},{"$f":"AE$3*('COM-Appliance class'!$U47/'Volume per connection'!$J$69)","v":-15601.901987826444},{"$f":"AF$3*('COM-Appliance class'!$U47/'Volume per connection'!$J$69)","v":-15340.104897688796},{"$f":"AG$3*('COM-Appliance class'!$U47/'Volume per connection'!$J$69)","v":-15340.104897688796},{"$f":"AH$3*('COM-Appliance class'!$U47/'Volume per connection'!$J$69)","v":-15340.104897688796},{"$f":"AI$3*('COM-Appliance class'!$U47/'Volume per connection'!$J$69)","v":-15340.104897688796},{"$f":"AJ$3*('COM-Appliance class'!$U47/'Volume per connection'!$J$69)","v":-15340.104897688796},{"$f":"AK$3*('COM-Appliance class'!$U47/'Volume per connection'!$J$69)","v":-15340.104897688796},{"$f":"AL$3*('COM-Appliance class'!$U47/'Volume per connection'!$J$69)","v":-15340.104897688796},{"$f":"AM$3*('COM-Appliance class'!$U47/'Volume per connection'!$J$69)","v":-15340.104897688796},{"$f":"AN$3*('COM-Appliance class'!$U47/'Volume per connection'!$J$69)","v":-15340.104897688796},{"$f":"AO$3*('COM-Appliance class'!$U47/'Volume per connection'!$J$69)","v":-15340.104897688796},{"$f":"AP$3*('COM-Appliance class'!$U47/'Volume per connection'!$J$69)","v":-15340.104897688796},{"$f":"AQ$3*('COM-Appliance class'!$U47/'Volume per connection'!$J$69)","v":-15340.104897688796},{"$f":"AR$3*('COM-Appliance class'!$U47/'Volume per connection'!$J$69)","v":-15340.104897688796},{"$f":"AS$3*('COM-Appliance class'!$U47/'Volume per connection'!$J$69)","v":-15340.104897688796},{"$f":"AT$3*('COM-Appliance class'!$U47/'Volume per connection'!$J$69)","v":-15340.104897688796},{"$f":"AU$3*('COM-Appliance class'!$U47/'Volume per connection'!$J$69)","v":-15340.104897688796},{"$f":"AV$3*('COM-Appliance class'!$U47/'Volume per connection'!$J$69)","v":-15340.104897688796},{"$f":"AW$3*('COM-Appliance class'!$U47/'Volume per connection'!$J$69)","v":-15340.104897688796},{"$f":"AX$3*('COM-Appliance class'!$U47/'Volume per connection'!$J$69)","v":-15340.104897688796},{"$f":"AY$3*('COM-Appliance class'!$U47/'Volume per connection'!$J$69)","v":-15340.104897688796},{"$f":"AZ$3*('COM-Appliance class'!$U47/'Volume per connection'!$J$69)","v":-15340.104897688796},{"$f":"BA$3*('COM-Appliance class'!$U47/'Volume per connection'!$J$69)","v":-15340.104897688796},{"$f":"BB$3*('COM-Appliance class'!$U47/'Volume per connection'!$J$69)","v":-15340.104897688796},{"$f":"BC$3*('COM-Appliance class'!$U47/'Volume per connection'!$J$69)","v":-15340.104897688796},{"$f":"BD$3*('COM-Appliance class'!$U47/'Volume per connection'!$J$69)","v":-15340.104897688796},{"$f":"BE$3*('COM-Appliance class'!$U47/'Volume per connection'!$J$69)","v":-15340.104897688796},{"$f":"BF$3*('COM-Appliance class'!$U47/'Volume per connection'!$J$69)","v":-15340.104897688796},{"$f":"BG$3*('COM-Appliance class'!$U47/'Volume per connection'!$J$69)","v":-15340.104897688796},{"$f":"BH$3*('COM-Appliance class'!$U47/'Volume per connection'!$J$69)","v":-15340.104897688796},{"$f":"BI$3*('COM-Appliance class'!$U47/'Volume per connection'!$J$69)","v":-15340.104897688796},{"$f":"BJ$3*('COM-Appliance class'!$U47/'Volume per connection'!$J$69)","v":-15340.104897688796},{"$f":"BK$3*('COM-Appliance class'!$U47/'Volume per connection'!$J$69)","v":-15340.104897688796},{"$f":"BL$3*('COM-Appliance class'!$U47/'Volume per connection'!$J$69)","v":-15340.104897688796},{"$f":"BM$3*('COM-Appliance class'!$U47/'Volume per connection'!$J$69)","v":-15340.104897688796},{"$f":"BN$3*('COM-Appliance class'!$U47/'Volume per connection'!$J$69)","v":-15340.104897688796},{"$f":"BO$3*('COM-Appliance class'!$U47/'Volume per connection'!$J$69)","v":-15340.104897688796},{"$f":"BP$3*('COM-Appliance class'!$U47/'Volume per connection'!$J$69)","v":-15340.104897688796},{"$f":"BQ$3*('COM-Appliance class'!$U47/'Volume per connection'!$J$69)","v":-15340.104897688796},{"$f":"BR$3*('COM-Appliance class'!$U47/'Volume per connection'!$J$69)","v":-15340.104897688796},{"$f":"BS$3*('COM-Appliance class'!$U47/'Volume per connection'!$J$69)","v":-15340.104897688796},{"$f":"BT$3*('COM-Appliance class'!$U47/'Volume per connection'!$J$69)","v":-15340.104897688796},{"$f":"BU$3*('COM-Appliance class'!$U47/'Volume per connection'!$J$69)","v":-15340.104897688796},{"$f":"BV$3*('COM-Appliance class'!$U47/'Volume per connection'!$J$69)","v":-15340.104897688796},{"$f":"BW$3*('COM-Appliance class'!$U47/'Volume per connection'!$J$69)","v":-15340.104897688796},{"$f":"BX$3*('COM-Appliance class'!$U47/'Volume per connection'!$J$69)","v":-15340.104897688796},{"$f":"BY$3*('COM-Appliance class'!$U47/'Volume per connection'!$J$69)","v":-15340.104897688796},{"$f":"BZ$3*('COM-Appliance class'!$U47/'Volume per connection'!$J$69)","v":-15340.104897688796},{"$f":"CA$3*('COM-Appliance class'!$U47/'Volume per connection'!$J$69)","v":-15340.104897688796},{"$f":"CB$3*('COM-Appliance class'!$U47/'Volume per connection'!$J$69)","v":-15340.104897688796},{"$f":"CC$3*('COM-Appliance class'!$U47/'Volume per connection'!$J$69)","v":-15340.104897688796},{"$f":"CD$3*('COM-Appliance class'!$U47/'Volume per connection'!$J$69)","v":-15340.104897688796}]
["Bayside (C)",null,{"$f":"C$3*('COM-Appliance class'!$U48/'Volume per connection'!$J$69)","v":-22850.765478122099},{"$f":"D$3*('COM-Appliance class'!$U48/'Volume per connection'!$J$69)","v":-22850.765478122099},{"$f":"E$3*('COM-Appliance class'!$U48/'Volume per connection'!$J$69)","v":-14555.203811311756},{"$f":"F$3*('COM-Appliance class'!$U48/'Volume per connection'!$J$69)","v":-14555.203811311756},{"$f":"G$3*('COM-Appliance class'!$U48/'Volume per connection'!$J$69)","v":-20555.604864693974},{"$f":"H$3*('COM-Appliance class'!$U48/'Volume per connection'!$J$69)","v":-20555.604864693974},{"$f":"I$3*('COM-Appliance class'!$U48/'Volume per connection'!$J$69)","v":-20555.604864693974},{"$f":"J$3*('COM-Appliance class'!$U48/'Volume per connection'!$J$69)","v":-22553.041676566092},{"$f":"K$3*('COM-Appliance class'!$U48/'Volume per connection'!$J$69)","v":-21086.603649118573},{"$f":"L$3*('COM-Appliance class'!$U48/'Volume per connection'!$J$69)","v":-20797.70065670758},{"$f":"M$3*('COM-Appliance class'!$U48/'Volume per connection'!$J$69)","v":-20510.242179258647},{"$f":"N$3*('COM-Appliance class'!$U48/'Volume per connection'!$J$69)","v":-20224.220994196956},{"$f":"O$3*('COM-Appliance class'!$U48/'Volume per connection'!$J$69)","v":-19939.629915060566},{"$f":"P$3*('COM-Appliance class'!$U48/'Volume per connection'!$J$69)","v":-19656.461791319874},{"$f":"Q$3*('COM-Appliance class'!$U48/'Volume per connection'!$J$69)","v":-19374.70950819787},{"$f":"R$3*('COM-Appliance class'!$U48/'Volume per connection'!$J$69)","v":-19094.365986491488},{"$f":"S$3*('COM-Appliance class'!$U48/'Volume per connection'!$J$69)","v":-18815.424182393632},{"$f":"T$3*('COM-Appliance class'!$U48/'Volume per connection'!$J$69)","v":-18537.877087316268},{"$f":"U$3*('COM-Appliance class'!$U48/'Volume per connection'!$J$69)","v":-18261.717727714287},{"$f":"V$3*('COM-Appliance class'!$U48/'Volume per connection'!$J$69)","v":-17986.939164910316},{"$f":"W$3*('COM-Appliance class'!$U48/'Volume per connection'!$J$69)","v":-17713.534494920365},{"$f":"X$3*('COM-Appliance class'!$U48/'Volume per connection'!$J$69)","v":-17441.496848280363},{"$f":"Y$3*('COM-Appliance class'!$U48/'Volume per connection'!$J$69)","v":-17170.819389873566},{"$f":"Z$3*('COM-Appliance class'!$U48/'Volume per connection'!$J$69)","v":-16901.4953187588},{"$f":"AA$3*('COM-Appliance class'!$U48/'Volume per connection'!$J$69)","v":-16633.517867999602},{"$f":"AB$3*('COM-Appliance class'!$U48/'Volume per connection'!$J$69)","v":-16366.880304494207},{"$f":"AC$3*('COM-Appliance class'!$U48/'Volume per connection'!$J$69)","v":-16101.575928806342},{"$f":"AD$3*('COM-Appliance class'!$U48/'Volume per connection'!$J$69)","v":-15837.598074996913},{"$f":"AE$3*('COM-Appliance class'!$U48/'Volume per connection'!$J$69)","v":-15574.940110456531},{"$f":"AF$3*('COM-Appliance class'!$U48/'Volume per connection'!$J$69)","v":-15313.595435738849},{"$f":"AG$3*('COM-Appliance class'!$U48/'Volume per connection'!$J$69)","v":-15313.595435738849},{"$f":"AH$3*('COM-Appliance class'!$U48/'Volume per connection'!$J$69)","v":-15313.595435738849},{"$f":"AI$3*('COM-Appliance class'!$U48/'Volume per connection'!$J$69)","v":-15313.595435738849},{"$f":"AJ$3*('COM-Appliance class'!$U48/'Volume per connection'!$J$69)","v":-15313.595435738849},{"$f":"AK$3*('COM-Appliance class'!$U48/'Volume per connection'!$J$69)","v":-15313.595435738849},{"$f":"AL$3*('COM-Appliance class'!$U48/'Volume per connection'!$J$69)","v":-15313.595435738849},{"$f":"AM$3*('COM-Appliance class'!$U48/'Volume per connection'!$J$69)","v":-15313.595435738849},{"$f":"AN$3*('COM-Appliance class'!$U48/'Volume per connection'!$J$69)","v":-15313.595435738849},{"$f":"AO$3*('COM-Appliance class'!$U48/'Volume per connection'!$J$69)","v":-15313.595435738849},{"$f":"AP$3*('COM-Appliance class'!$U48/'Volume per connection'!$J$69)","v":-15313.595435738849},{"$f":"AQ$3*('COM-Appliance class'!$U48/'Volume per connection'!$J$69)","v":-15313.595435738849},{"$f":"AR$3*('COM-Appliance class'!$U48/'Volume per connection'!$J$69)","v":-15313.595435738849},{"$f":"AS$3*('COM-Appliance class'!$U48/'Volume per connection'!$J$69)","v":-15313.595435738849},{"$f":"AT$3*('COM-Appliance class'!$U48/'Volume per connection'!$J$69)","v":-15313.595435738849},{"$f":"AU$3*('COM-Appliance class'!$U48/'Volume per connection'!$J$69)","v":-15313.595435738849},{"$f":"AV$3*('COM-Appliance class'!$U48/'Volume per connection'!$J$69)","v":-15313.595435738849},{"$f":"AW$3*('COM-Appliance class'!$U48/'Volume per connection'!$J$69)","v":-15313.595435738849},{"$f":"AX$3*('COM-Appliance class'!$U48/'Volume per connection'!$J$69)","v":-15313.595435738849},{"$f":"AY$3*('COM-Appliance class'!$U48/'Volume per connection'!$J$69)","v":-15313.595435738849},{"$f":"AZ$3*('COM-Appliance class'!$U48/'Volume per connection'!$J$69)","v":-15313.595435738849},{"$f":"BA$3*('COM-Appliance class'!$U48/'Volume per connection'!$J$69)","v":-15313.595435738849},{"$f":"BB$3*('COM-Appliance class'!$U48/'Volume per connection'!$J$69)","v":-15313.595435738849},{"$f":"BC$3*('COM-Appliance class'!$U48/'Volume per connection'!$J$69)","v":-15313.595435738849},{"$f":"BD$3*('COM-Appliance class'!$U48/'Volume per connection'!$J$69)","v":-15313.595435738849},{"$f":"BE$3*('COM-Appliance class'!$U48/'Volume per connection'!$J$69)","v":-15313.595435738849},{"$f":"BF$3*('COM-Appliance class'!$U48/'Volume per connection'!$J$69)","v":-15313.595435738849},{"$f":"BG$3*('COM-Appliance class'!$U48/'Volume per connection'!$J$69)","v":-15313.595435738849},{"$f":"BH$3*('COM-Appliance class'!$U48/'Volume per connection'!$J$69)","v":-15313.595435738849},{"$f":"BI$3*('COM-Appliance class'!$U48/'Volume per connection'!$J$69)","v":-15313.595435738849},{"$f":"BJ$3*('COM-Appliance class'!$U48/'Volume per connection'!$J$69)","v":-15313.595435738849},{"$f":"BK$3*('COM-Appliance class'!$U48/'Volume per connection'!$J$69)","v":-15313.595435738849},{"$f":"BL$3*('COM-Appliance class'!$U48/'Volume per connection'!$J$69)","v":-15313.595435738849},{"$f":"BM$3*('COM-Appliance class'!$U48/'Volume per connection'!$J$69)","v":-15313.595435738849},{"$f":"BN$3*('COM-Appliance class'!$U48/'Volume per connection'!$J$69)","v":-15313.595435738849},{"$f":"BO$3*('COM-Appliance class'!$U48/'Volume per connection'!$J$69)","v":-15313.595435738849},{"$f":"BP$3*('COM-Appliance class'!$U48/'Volume per connection'!$J$69)","v":-15313.595435738849},{"$f":"BQ$3*('COM-Appliance class'!$U48/'Volume per connection'!$J$69)","v":-15313.595435738849},{"$f":"BR$3*('COM-Appliance class'!$U48/'Volume per connection'!$J$69)","v":-15313.595435738849},{"$f":"BS$3*('COM-Appliance class'!$U48/'Volume per connection'!$J$69)","v":-15313.595435738849},{"$f":"BT$3*('COM-Appliance class'!$U48/'Volume per connection'!$J$69)","v":-15313.595435738849},{"$f":"BU$3*('COM-Appliance class'!$U48/'Volume per connection'!$J$69)","v":-15313.595435738849},{"$f":"BV$3*('COM-Appliance class'!$U48/'Volume per connection'!$J$69)","v":-15313.595435738849},{"$f":"BW$3*('COM-Appliance class'!$U48/'Volume per connection'!$J$69)","v":-15313.595435738849},{"$f":"BX$3*('COM-Appliance class'!$U48/'Volume per connection'!$J$69)","v":-15313.595435738849},{"$f":"BY$3*('COM-Appliance class'!$U48/'Volume per connection'!$J$69)","v":-15313.595435738849},{"$f":"BZ$3*('COM-Appliance class'!$U48/'Volume per connection'!$J$69)","v":-15313.595435738849},{"$f":"CA$3*('COM-Appliance class'!$U48/'Volume per connection'!$J$69)","v":-15313.595435738849},{"$f":"CB$3*('COM-Appliance class'!$U48/'Volume per connection'!$J$69)","v":-15313.595435738849},{"$f":"CC$3*('COM-Appliance class'!$U48/'Volume per connection'!$J$69)","v":-15313.595435738849},{"$f":"CD$3*('COM-Appliance class'!$U48/'Volume per connection'!$J$69)","v":-15313.595435738849}]
["Boroondara (C)",null,{"$f":"C$3*('COM-Appliance class'!$U49/'Volume per connection'!$J$69)","v":-23003.94856594906},{"$f":"D$3*('COM-Appliance class'!$U49/'Volume per connection'!$J$69)","v":-23003.94856594906},{"$f":"E$3*('COM-Appliance class'!$U49/'Volume per connection'!$J$69)","v":-14652.776519145205},{"$f":"F$3*('COM-Appliance class'!$U49/'Volume per connection'!$J$69)","v":-14652.776519145205},{"$f":"G$3*('COM-Appliance class'!$U49/'Volume per connection'!$J$69)","v":-20693.402043888669},{"$f":"H$3*('COM-Appliance class'!$U49/'Volume per connection'!$J$69)","v":-20693.402043888669},{"$f":"I$3*('COM-Appliance class'!$U49/'Volume per connection'!$J$69)","v":-20693.402043888669},{"$f":"J$3*('COM-Appliance class'!$U49/'Volume per connection'!$J$69)","v":-22704.228934043927},{"$f":"K$3*('COM-Appliance class'!$U49/'Volume per connection'!$J$69)","v":-21227.960447946509},{"$f":"L$3*('COM-Appliance class'!$U49/'Volume per connection'!$J$69)","v":-20937.12075663139},{"$f":"M$3*('COM-Appliance class'!$U49/'Volume per connection'!$J$69)","v":-20647.735263772847},{"$f":"N$3*('COM-Appliance class'!$U49/'Volume per connection'!$J$69)","v":-20359.796698378595},{"$f":"O$3*('COM-Appliance class'!$U49/'Volume per connection'!$J$69)","v":-20073.297825811314},{"$f":"P$3*('COM-Appliance class'!$U49/'Volume per connection'!$J$69)","v":-19788.231447606875},{"$f":"Q$3*('COM-Appliance class'!$U49/'Volume per connection'!$J$69)","v":-19504.590401293452},{"$f":"R$3*('COM-Appliance class'!$U49/'Volume per connection'!$J$69)","v":-19222.367560211602},{"$f":"S$3*('COM-Appliance class'!$U49/'Volume per connection'!$J$69)","v":-18941.555833335158},{"$f":"T$3*('COM-Appliance class'!$U49/'Volume per connection'!$J$69)","v":-18662.148165093098},{"$f":"U$3*('COM-Appliance class'!$U49/'Volume per connection'!$J$69)","v":-18384.137535192243},{"$f":"V$3*('COM-Appliance class'!$U49/'Volume per connection'!$J$69)","v":-18107.516958440894},{"$f":"W$3*('COM-Appliance class'!$U49/'Volume per connection'!$J$69)","v":-17832.279484573301},{"$f":"X$3*('COM-Appliance class'!$U49/'Volume per connection'!$J$69)","v":-17558.418198075047},{"$f":"Y$3*('COM-Appliance class'!$U49/'Volume per connection'!$J$69)","v":-17285.926218009288},{"$f":"Z$3*('COM-Appliance class'!$U49/'Volume per connection'!$J$69)","v":-17014.796697843853},{"$f":"AA$3*('COM-Appliance class'!$U49/'Volume per connection'!$J$69)","v":-16745.022825279244},{"$f":"AB$3*('COM-Appliance class'!$U49/'Volume per connection'!$J$69)","v":-16476.597822077463},{"$f":"AC$3*('COM-Appliance class'!$U49/'Volume per connection'!$J$69)","v":-16209.514943891692},{"$f":"AD$3*('COM-Appliance class'!$U49/'Volume per connection'!$J$69)","v":-15943.767480096849},{"$f":"AE$3*('COM-Appliance class'!$U49/'Volume per connection'!$J$69)","v":-15679.34875362098},{"$f":"AF$3*('COM-Appliance class'!$U49/'Volume per connection'!$J$69)","v":-15416.252120777486},{"$f":"AG$3*('COM-Appliance class'!$U49/'Volume per connection'!$J$69)","v":-15416.252120777486},{"$f":"AH$3*('COM-Appliance class'!$U49/'Volume per connection'!$J$69)","v":-15416.252120777486},{"$f":"AI$3*('COM-Appliance class'!$U49/'Volume per connection'!$J$69)","v":-15416.252120777486},{"$f":"AJ$3*('COM-Appliance class'!$U49/'Volume per connection'!$J$69)","v":-15416.252120777486},{"$f":"AK$3*('COM-Appliance class'!$U49/'Volume per connection'!$J$69)","v":-15416.252120777486},{"$f":"AL$3*('COM-Appliance class'!$U49/'Volume per connection'!$J$69)","v":-15416.252120777486},{"$f":"AM$3*('COM-Appliance class'!$U49/'Volume per connection'!$J$69)","v":-15416.252120777486},{"$f":"AN$3*('COM-Appliance class'!$U49/'Volume per connection'!$J$69)","v":-15416.252120777486},{"$f":"AO$3*('COM-Appliance class'!$U49/'Volume per connection'!$J$69)","v":-15416.252120777486},{"$f":"AP$3*('COM-Appliance class'!$U49/'Volume per connection'!$J$69)","v":-15416.252120777486},{"$f":"AQ$3*('COM-Appliance class'!$U49/'Volume per connection'!$J$69)","v":-15416.252120777486},{"$f":"AR$3*('COM-Appliance class'!$U49/'Volume per connection'!$J$69)","v":-15416.252120777486},{"$f":"AS$3*('COM-Appliance class'!$U49/'Volume per connection'!$J$69)","v":-15416.252120777486},{"$f":"AT$3*('COM-Appliance class'!$U49/'Volume per connection'!$J$69)","v":-15416.252120777486},{"$f":"AU$3*('COM-Appliance class'!$U49/'Volume per connection'!$J$69)","v":-15416.252120777486},{"$f":"AV$3*('COM-Appliance class'!$U49/'Volume per connection'!$J$69)","v":-15416.252120777486},{"$f":"AW$3*('COM-Appliance class'!$U49/'Volume per connection'!$J$69)","v":-15416.252120777486},{"$f":"AX$3*('COM-Appliance class'!$U49/'Volume per connection'!$J$69)","v":-15416.252120777486},{"$f":"AY$3*('COM-Appliance class'!$U49/'Volume per connection'!$J$69)","v":-15416.252120777486},{"$f":"AZ$3*('COM-Appliance class'!$U49/'Volume per connection'!$J$69)","v":-15416.252120777486},{"$f":"BA$3*('COM-Appliance class'!$U49/'Volume per connection'!$J$69)","v":-15416.252120777486},{"$f":"BB$3*('COM-Appliance class'!$U49/'Volume per connection'!$J$69)","v":-15416.252120777486},{"$f":"BC$3*('COM-Appliance class'!$U49/'Volume per connection'!$J$69)","v":-15416.252120777486},{"$f":"BD$3*('COM-Appliance class'!$U49/'Volume per connection'!$J$69)","v":-15416.252120777486},{"$f":"BE$3*('COM-Appliance class'!$U49/'Volume per connection'!$J$69)","v":-15416.252120777486},{"$f":"BF$3*('COM-Appliance class'!$U49/'Volume per connection'!$J$69)","v":-15416.252120777486},{"$f":"BG$3*('COM-Appliance class'!$U49/'Volume per connection'!$J$69)","v":-15416.252120777486},{"$f":"BH$3*('COM-Appliance class'!$U49/'Volume per connection'!$J$69)","v":-15416.252120777486},{"$f":"BI$3*('COM-Appliance class'!$U49/'Volume per connection'!$J$69)","v":-15416.252120777486},{"$f":"BJ$3*('COM-Appliance class'!$U49/'Volume per connection'!$J$69)","v":-15416.252120777486},{"$f":"BK$3*('COM-Appliance class'!$U49/'Volume per connection'!$J$69)","v":-15416.252120777486},{"$f":"BL$3*('COM-Appliance class'!$U49/'Volume per connection'!$J$69)","v":-15416.252120777486},{"$f":"BM$3*('COM-Appliance class'!$U49/'Volume per connection'!$J$69)","v":-15416.252120777486},{"$f":"BN$3*('COM-Appliance class'!$U49/'Volume per connection'!$J$69)","v":-15416.252120777486},{"$f":"BO$3*('COM-Appliance class'!$U49/'Volume per connection'!$J$69)","v":-15416.252120777486},{"$f":"BP$3*('COM-Appliance class'!$U49/'Volume per connection'!$J$69)","v":-15416.252120777486},{"$f":"BQ$3*('COM-Appliance class'!$U49/'Volume per connection'!$J$69)","v":-15416.252120777486},{"$f":"BR$3*('COM-Appliance class'!$U49/'Volume per connection'!$J$69)","v":-15416.252120777486},{"$f":"BS$3*('COM-Appliance class'!$U49/'Volume per connection'!$J$69)","v":-15416.252120777486},{"$f":"BT$3*('COM-Appliance class'!$U49/'Volume per connection'!$J$69)","v":-15416.252120777486},{"$f":"BU$3*('COM-Appliance class'!$U49/'Volume per connection'!$J$69)","v":-15416.252120777486},{"$f":"BV$3*('COM-Appliance class'!$U49/'Volume per connection'!$J$69)","v":-15416.252120777486},{"$f":"BW$3*('COM-Appliance class'!$U49/'Volume per connection'!$J$69)","v":-15416.252120777486},{"$f":"BX$3*('COM-Appliance class'!$U49/'Volume per connection'!$J$69)","v":-15416.252120777486},{"$f":"BY$3*('COM-Appliance class'!$U49/'Volume per connection'!$J$69)","v":-15416.252120777486},{"$f":"BZ$3*('COM-Appliance class'!$U49/'Volume per connection'!$J$69)","v":-15416.252120777486},{"$f":"CA$3*('COM-Appliance class'!$U49/'Volume per connection'!$J$69)","v":-15416.252120777486},{"$f":"CB$3*('COM-Appliance class'!$U49/'Volume per connection'!$J$69)","v":-15416.252120777486},{"$f":"CC$3*('COM-Appliance class'!$U49/'Volume per connection'!$J$69)","v":-15416.252120777486},{"$f":"CD$3*('COM-Appliance class'!$U49/'Volume per connection'!$J$69)","v":-15416.252120777486}]
["Cardinia (S)",null,{"$f":"C$3*('COM-Appliance class'!$U50/'Volume per connection'!$J$69)","v":-22102.032765528875},{"$f":"D$3*('COM-Appliance class'!$U50/'Volume per connection'!$J$69)","v":-22102.032765528875},{"$f":"E$3*('COM-Appliance class'!$U50/'Volume per connection'!$J$69)","v":-14078.285117168896},{"$f":"F$3*('COM-Appliance class'!$U50/'Volume per connection'!$J$69)","v":-14078.285117168896},{"$f":"G$3*('COM-Appliance class'!$U50/'Volume per connection'!$J$69)","v":-19882.075839853547},{"$f":"H$3*('COM-Appliance class'!$U50/'Volume per connection'!$J$69)","v":-19882.075839853547},{"$f":"I$3*('COM-Appliance class'!$U50/'Volume per connection'!$J$69)","v":-19882.075839853547},{"$f":"J$3*('COM-Appliance class'!$U50/'Volume per connection'!$J$69)","v":-21814.064241088461},{"$f":"K$3*('COM-Appliance class'!$U50/'Volume per connection'!$J$69)","v":-20395.675812819223},{"$f":"L$3*('COM-Appliance class'!$U50/'Volume per connection'!$J$69)","v":-20116.239073142358},{"$f":"M$3*('COM-Appliance class'!$U50/'Volume per connection'!$J$69)","v":-19838.199517163881},{"$f":"N$3*('COM-Appliance class'!$U50/'Volume per connection'!$J$69)","v":-19561.550158965296},{"$f":"O$3*('COM-Appliance class'!$U50/'Volume per connection'!$J$69)","v":-19286.284047557696},{"$f":"P$3*('COM-Appliance class'!$U50/'Volume per connection'!$J$69)","v":-19012.394266707146},{"$f":"Q$3*('COM-Appliance class'!$U50/'Volume per connection'!$J$69)","v":-18739.873934760839},{"$f":"R$3*('COM-Appliance class'!$U50/'Volume per connection'!$J$69)","v":-18468.716204474273},{"$f":"S$3*('COM-Appliance class'!$U50/'Volume per connection'!$J$69)","v":-18198.914262839135},{"$f":"T$3*('COM-Appliance class'!$U50/'Volume per connection'!$J$69)","v":-17930.461330912174},{"$f":"U$3*('COM-Appliance class'!$U50/'Volume per connection'!$J$69)","v":-17663.350663644844},{"$f":"V$3*('COM-Appliance class'!$U50/'Volume per connection'!$J$69)","v":-17397.575549713849},{"$f":"W$3*('COM-Appliance class'!$U50/'Volume per connection'!$J$69)","v":-17133.12931135251},{"$f":"X$3*('COM-Appliance class'!$U50/'Volume per connection'!$J$69)","v":-16870.005304182981},{"$f":"Y$3*('COM-Appliance class'!$U50/'Volume per connection'!$J$69)","v":-16608.196917049299},{"$f":"Z$3*('COM-Appliance class'!$U50/'Volume per connection'!$J$69)","v":-16347.697571851286},{"$f":"AA$3*('COM-Appliance class'!$U50/'Volume per connection'!$J$69)","v":-16088.50072337926},{"$f":"AB$3*('COM-Appliance class'!$U50/'Volume per connection'!$J$69)","v":-15830.599859149595},{"$f":"AC$3*('COM-Appliance class'!$U50/'Volume per connection'!$J$69)","v":-15573.988499241084},{"$f":"AD$3*('COM-Appliance class'!$U50/'Volume per connection'!$J$69)","v":-15318.660196132112},{"$f":"AE$3*('COM-Appliance class'!$U50/'Volume per connection'!$J$69)","v":-15064.608534538685},{"$f":"AF$3*('COM-Appliance class'!$U50/'Volume per connection'!$J$69)","v":-14811.827131253223},{"$f":"AG$3*('COM-Appliance class'!$U50/'Volume per connection'!$J$69)","v":-14811.827131253223},{"$f":"AH$3*('COM-Appliance class'!$U50/'Volume per connection'!$J$69)","v":-14811.827131253223},{"$f":"AI$3*('COM-Appliance class'!$U50/'Volume per connection'!$J$69)","v":-14811.827131253223},{"$f":"AJ$3*('COM-Appliance class'!$U50/'Volume per connection'!$J$69)","v":-14811.827131253223},{"$f":"AK$3*('COM-Appliance class'!$U50/'Volume per connection'!$J$69)","v":-14811.827131253223},{"$f":"AL$3*('COM-Appliance class'!$U50/'Volume per connection'!$J$69)","v":-14811.827131253223},{"$f":"AM$3*('COM-Appliance class'!$U50/'Volume per connection'!$J$69)","v":-14811.827131253223},{"$f":"AN$3*('COM-Appliance class'!$U50/'Volume per connection'!$J$69)","v":-14811.827131253223},{"$f":"AO$3*('COM-Appliance class'!$U50/'Volume per connection'!$J$69)","v":-14811.827131253223},{"$f":"AP$3*('COM-Appliance class'!$U50/'Volume per connection'!$J$69)","v":-14811.827131253223},{"$f":"AQ$3*('COM-Appliance class'!$U50/'Volume per connection'!$J$69)","v":-14811.827131253223},{"$f":"AR$3*('COM-Appliance class'!$U50/'Volume per connection'!$J$69)","v":-14811.827131253223},{"$f":"AS$3*('COM-Appliance class'!$U50/'Volume per connection'!$J$69)","v":-14811.827131253223},{"$f":"AT$3*('COM-Appliance class'!$U50/'Volume per connection'!$J$69)","v":-14811.827131253223},{"$f":"AU$3*('COM-Appliance class'!$U50/'Volume per connection'!$J$69)","v":-14811.827131253223},{"$f":"AV$3*('COM-Appliance class'!$U50/'Volume per connection'!$J$69)","v":-14811.827131253223},{"$f":"AW$3*('COM-Appliance class'!$U50/'Volume per connection'!$J$69)","v":-14811.827131253223},{"$f":"AX$3*('COM-Appliance class'!$U50/'Volume per connection'!$J$69)","v":-14811.827131253223},{"$f":"AY$3*('COM-Appliance class'!$U50/'Volume per connection'!$J$69)","v":-14811.827131253223},{"$f":"AZ$3*('COM-Appliance class'!$U50/'Volume per connection'!$J$69)","v":-14811.827131253223},{"$f":"BA$3*('COM-Appliance class'!$U50/'Volume per connection'!$J$69)","v":-14811.827131253223},{"$f":"BB$3*('COM-Appliance class'!$U50/'Volume per connection'!$J$69)","v":-14811.827131253223},{"$f":"BC$3*('COM-Appliance class'!$U50/'Volume per connection'!$J$69)","v":-14811.827131253223},{"$f":"BD$3*('COM-Appliance class'!$U50/'Volume per connection'!$J$69)","v":-14811.827131253223},{"$f":"BE$3*('COM-Appliance class'!$U50/'Volume per connection'!$J$69)","v":-14811.827131253223},{"$f":"BF$3*('COM-Appliance class'!$U50/'Volume per connection'!$J$69)","v":-14811.827131253223},{"$f":"BG$3*('COM-Appliance class'!$U50/'Volume per connection'!$J$69)","v":-14811.827131253223},{"$f":"BH$3*('COM-Appliance class'!$U50/'Volume per connection'!$J$69)","v":-14811.827131253223},{"$f":"BI$3*('COM-Appliance class'!$U50/'Volume per connection'!$J$69)","v":-14811.827131253223},{"$f":"BJ$3*('COM-Appliance class'!$U50/'Volume per connection'!$J$69)","v":-14811.827131253223},{"$f":"BK$3*('COM-Appliance class'!$U50/'Volume per connection'!$J$69)","v":-14811.827131253223},{"$f":"BL$3*('COM-Appliance class'!$U50/'Volume per connection'!$J$69)","v":-14811.827131253223},{"$f":"BM$3*('COM-Appliance class'!$U50/'Volume per connection'!$J$69)","v":-14811.827131253223},{"$f":"BN$3*('COM-Appliance class'!$U50/'Volume per connection'!$J$69)","v":-14811.827131253223},{"$f":"BO$3*('COM-Appliance class'!$U50/'Volume per connection'!$J$69)","v":-14811.827131253223},{"$f":"BP$3*('COM-Appliance class'!$U50/'Volume per connection'!$J$69)","v":-14811.827131253223},{"$f":"BQ$3*('COM-Appliance class'!$U50/'Volume per connection'!$J$69)","v":-14811.827131253223},{"$f":"BR$3*('COM-Appliance class'!$U50/'Volume per connection'!$J$69)","v":-14811.827131253223},{"$f":"BS$3*('COM-Appliance class'!$U50/'Volume per connection'!$J$69)","v":-14811.827131253223},{"$f":"BT$3*('COM-Appliance class'!$U50/'Volume per connection'!$J$69)","v":-14811.827131253223},{"$f":"BU$3*('COM-Appliance class'!$U50/'Volume per connection'!$J$69)","v":-14811.827131253223},{"$f":"BV$3*('COM-Appliance class'!$U50/'Volume per connection'!$J$69)","v":-14811.827131253223},{"$f":"BW$3*('COM-Appliance class'!$U50/'Volume per connection'!$J$69)","v":-14811.827131253223},{"$f":"BX$3*('COM-Appliance class'!$U50/'Volume per connection'!$J$69)","v":-14811.827131253223},{"$f":"BY$3*('COM-Appliance class'!$U50/'Volume per connection'!$J$69)","v":-14811.827131253223},{"$f":"BZ$3*('COM-Appliance class'!$U50/'Volume per connection'!$J$69)","v":-14811.827131253223},{"$f":"CA$3*('COM-Appliance class'!$U50/'Volume per connection'!$J$69)","v":-14811.827131253223},{"$f":"CB$3*('COM-Appliance class'!$U50/'Volume per connection'!$J$69)","v":-14811.827131253223},{"$f":"CC$3*('COM-Appliance class'!$U50/'Volume per connection'!$J$69)","v":-14811.827131253223},{"$f":"CD$3*('COM-Appliance class'!$U50/'Volume per connection'!$J$69)","v":-14811.827131253223}]
["Casey (C)",null,{"$f":"C$3*('COM-Appliance class'!$U51/'Volume per connection'!$J$69)","v":-21426.281084879647},{"$f":"D$3*('COM-Appliance class'!$U51/'Volume per connection'!$J$69)","v":-21426.281084879647},{"$f":"E$3*('COM-Appliance class'!$U51/'Volume per connection'!$J$69)","v":-13647.85299676125},{"$f":"F$3*('COM-Appliance class'!$U51/'Volume per connection'!$J$69)","v":-13647.85299676125},{"$f":"G$3*('COM-Appliance class'!$U51/'Volume per connection'!$J$69)","v":-19274.197537160475},{"$f":"H$3*('COM-Appliance class'!$U51/'Volume per connection'!$J$69)","v":-19274.197537160475},{"$f":"I$3*('COM-Appliance class'!$U51/'Volume per connection'!$J$69)","v":-19274.197537160475},{"$f":"J$3*('COM-Appliance class'!$U51/'Volume per connection'!$J$69)","v":-21147.116963926874},{"$f":"K$3*('COM-Appliance class'!$U51/'Volume per connection'!$J$69)","v":-19772.094608560721},{"$f":"L$3*('COM-Appliance class'!$U51/'Volume per connection'!$J$69)","v":-19501.201419989542},{"$f":"M$3*('COM-Appliance class'!$U51/'Volume per connection'!$J$69)","v":-19231.662697361218},{"$f":"N$3*('COM-Appliance class'!$U51/'Volume per connection'!$J$69)","v":-18963.471668346036},{"$f":"O$3*('COM-Appliance class'!$U51/'Volume per connection'!$J$69)","v":-18696.621594475924},{"$f":"P$3*('COM-Appliance class'!$U51/'Volume per connection'!$J$69)","v":-18431.105770975173},{"$f":"Q$3*('COM-Appliance class'!$U51/'Volume per connection'!$J$69)","v":-18166.917526591918},{"$f":"R$3*('COM-Appliance class'!$U51/'Volume per connection'!$J$69)","v":-17904.050223430586},{"$f":"S$3*('COM-Appliance class'!$U51/'Volume per connection'!$J$69)","v":-17642.497256785056},{"$f":"T$3*('COM-Appliance class'!$U51/'Volume per connection'!$J$69)","v":-17382.252054972756},{"$f":"U$3*('COM-Appliance class'!$U51/'Volume per connection'!$J$69)","v":-17123.308079169514},{"$f":"V$3*('COM-Appliance class'!$U51/'Volume per connection'!$J$69)","v":-16865.658823245289},{"$f":"W$3*('COM-Appliance class'!$U51/'Volume per connection'!$J$69)","v":-16609.297813600682},{"$f":"X$3*('COM-Appliance class'!$U51/'Volume per connection'!$J$69)","v":-16354.218609004303},{"$f":"Y$3*('COM-Appliance class'!$U51/'Volume per connection'!$J$69)","v":-16100.414800430906},{"$f":"Z$3*('COM-Appliance class'!$U51/'Volume per connection'!$J$69)","v":-15847.880010900373},{"$f":"AA$3*('COM-Appliance class'!$U51/'Volume per connection'!$J$69)","v":-15596.607895317493},{"$f":"AB$3*('COM-Appliance class'!$U51/'Volume per connection'!$J$69)","v":-15346.592140312528},{"$f":"AC$3*('COM-Appliance class'!$U51/'Volume per connection'!$J$69)","v":-15097.826464082593},{"$f":"AD$3*('COM-Appliance class'!$U51/'Volume per connection'!$J$69)","v":-14850.304616233805},{"$f":"AE$3*('COM-Appliance class'!$U51/'Volume per connection'!$J$69)","v":-14604.02037762426},{"$f":"AF$3*('COM-Appliance class'!$U51/'Volume per connection'!$J$69)","v":-14358.96756020776},{"$f":"AG$3*('COM-Appliance class'!$U51/'Volume per connection'!$J$69)","v":-14358.96756020776},{"$f":"AH$3*('COM-Appliance class'!$U51/'Volume per connection'!$J$69)","v":-14358.96756020776},{"$f":"AI$3*('COM-Appliance class'!$U51/'Volume per connection'!$J$69)","v":-14358.96756020776},{"$f":"AJ$3*('COM-Appliance class'!$U51/'Volume per connection'!$J$69)","v":-14358.96756020776},{"$f":"AK$3*('COM-Appliance class'!$U51/'Volume per connection'!$J$69)","v":-14358.96756020776},{"$f":"AL$3*('COM-Appliance class'!$U51/'Volume per connection'!$J$69)","v":-14358.96756020776},{"$f":"AM$3*('COM-Appliance class'!$U51/'Volume per connection'!$J$69)","v":-14358.96756020776},{"$f":"AN$3*('COM-Appliance class'!$U51/'Volume per connection'!$J$69)","v":-14358.96756020776},{"$f":"AO$3*('COM-Appliance class'!$U51/'Volume per connection'!$J$69)","v":-14358.96756020776},{"$f":"AP$3*('COM-Appliance class'!$U51/'Volume per connection'!$J$69)","v":-14358.96756020776},{"$f":"AQ$3*('COM-Appliance class'!$U51/'Volume per connection'!$J$69)","v":-14358.96756020776},{"$f":"AR$3*('COM-Appliance class'!$U51/'Volume per connection'!$J$69)","v":-14358.96756020776},{"$f":"AS$3*('COM-Appliance class'!$U51/'Volume per connection'!$J$69)","v":-14358.96756020776},{"$f":"AT$3*('COM-Appliance class'!$U51/'Volume per connection'!$J$69)","v":-14358.96756020776},{"$f":"AU$3*('COM-Appliance class'!$U51/'Volume per connection'!$J$69)","v":-14358.96756020776},{"$f":"AV$3*('COM-Appliance class'!$U51/'Volume per connection'!$J$69)","v":-14358.96756020776},{"$f":"AW$3*('COM-Appliance class'!$U51/'Volume per connection'!$J$69)","v":-14358.96756020776},{"$f":"AX$3*('COM-Appliance class'!$U51/'Volume per connection'!$J$69)","v":-14358.96756020776},{"$f":"AY$3*('COM-Appliance class'!$U51/'Volume per connection'!$J$69)","v":-14358.96756020776},{"$f":"AZ$3*('COM-Appliance class'!$U51/'Volume per connection'!$J$69)","v":-14358.96756020776},{"$f":"BA$3*('COM-Appliance class'!$U51/'Volume per connection'!$J$69)","v":-14358.96756020776},{"$f":"BB$3*('COM-Appliance class'!$U51/'Volume per connection'!$J$69)","v":-14358.96756020776},{"$f":"BC$3*('COM-Appliance class'!$U51/'Volume per connection'!$J$69)","v":-14358.96756020776},{"$f":"BD$3*('COM-Appliance class'!$U51/'Volume per connection'!$J$69)","v":-14358.96756020776},{"$f":"BE$3*('COM-Appliance class'!$U51/'Volume per connection'!$J$69)","v":-14358.96756020776},{"$f":"BF$3*('COM-Appliance class'!$U51/'Volume per connection'!$J$69)","v":-14358.96756020776},{"$f":"BG$3*('COM-Appliance class'!$U51/'Volume per connection'!$J$69)","v":-14358.96756020776},{"$f":"BH$3*('COM-Appliance class'!$U51/'Volume per connection'!$J$69)","v":-14358.96756020776},{"$f":"BI$3*('COM-Appliance class'!$U51/'Volume per connection'!$J$69)","v":-14358.96756020776},{"$f":"BJ$3*('COM-Appliance class'!$U51/'Volume per connection'!$J$69)","v":-14358.96756020776},{"$f":"BK$3*('COM-Appliance class'!$U51/'Volume per connection'!$J$69)","v":-14358.96756020776},{"$f":"BL$3*('COM-Appliance class'!$U51/'Volume per connection'!$J$69)","v":-14358.96756020776},{"$f":"BM$3*('COM-Appliance class'!$U51/'Volume per connection'!$J$69)","v":-14358.96756020776},{"$f":"BN$3*('COM-Appliance class'!$U51/'Volume per connection'!$J$69)","v":-14358.96756020776},{"$f":"BO$3*('COM-Appliance class'!$U51/'Volume per connection'!$J$69)","v":-14358.96756020776},{"$f":"BP$3*('COM-Appliance class'!$U51/'Volume per connection'!$J$69)","v":-14358.96756020776},{"$f":"BQ$3*('COM-Appliance class'!$U51/'Volume per connection'!$J$69)","v":-14358.96756020776},{"$f":"BR$3*('COM-Appliance class'!$U51/'Volume per connection'!$J$69)","v":-14358.96756020776},{"$f":"BS$3*('COM-Appliance class'!$U51/'Volume per connection'!$J$69)","v":-14358.96756020776},{"$f":"BT$3*('COM-Appliance class'!$U51/'Volume per connection'!$J$69)","v":-14358.96756020776},{"$f":"BU$3*('COM-Appliance class'!$U51/'Volume per connection'!$J$69)","v":-14358.96756020776},{"$f":"BV$3*('COM-Appliance class'!$U51/'Volume per connection'!$J$69)","v":-14358.96756020776},{"$f":"BW$3*('COM-Appliance class'!$U51/'Volume per connection'!$J$69)","v":-14358.96756020776},{"$f":"BX$3*('COM-Appliance class'!$U51/'Volume per connection'!$J$69)","v":-14358.96756020776},{"$f":"BY$3*('COM-Appliance class'!$U51/'Volume per connection'!$J$69)","v":-14358.96756020776},{"$f":"BZ$3*('COM-Appliance class'!$U51/'Volume per connection'!$J$69)","v":-14358.96756020776},{"$f":"CA$3*('COM-Appliance class'!$U51/'Volume per connection'!$J$69)","v":-14358.96756020776},{"$f":"CB$3*('COM-Appliance class'!$U51/'Volume per connection'!$J$69)","v":-14358.96756020776},{"$f":"CC$3*('COM-Appliance class'!$U51/'Volume per connection'!$J$69)","v":-14358.96756020776},{"$f":"CD$3*('COM-Appliance class'!$U51/'Volume per connection'!$J$69)","v":-14358.96756020776}]
["Frankston (C)",null,{"$f":"C$3*('COM-Appliance class'!$U52/'Volume per connection'!$J$69)","v":0},{"$f":"D$3*('COM-Appliance class'!$U52/'Volume per connection'!$J$69)","v":0},{"$f":"E$3*('COM-Appliance class'!$U52/'Volume per connection'!$J$69)","v":0},{"$f":"F$3*('COM-Appliance class'!$U52/'Volume per connection'!$J$69)","v":0},{"$f":"G$3*('COM-Appliance class'!$U52/'Volume per connection'!$J$69)","v":0},{"$f":"H$3*('COM-Appliance class'!$U52/'Volume per connection'!$J$69)","v":0},{"$f":"I$3*('COM-Appliance class'!$U52/'Volume per connection'!$J$69)","v":0},{"$f":"J$3*('COM-Appliance class'!$U52/'Volume per connection'!$J$69)","v":0},{"$f":"K$3*('COM-Appliance class'!$U52/'Volume per connection'!$J$69)","v":0},{"$f":"L$3*('COM-Appliance class'!$U52/'Volume per connection'!$J$69)","v":0},{"$f":"M$3*('COM-Appliance class'!$U52/'Volume per connection'!$J$69)","v":0},{"$f":"N$3*('COM-Appliance class'!$U52/'Volume per connection'!$J$69)","v":0},{"$f":"O$3*('COM-Appliance class'!$U52/'Volume per connection'!$J$69)","v":0},{"$f":"P$3*('COM-Appliance class'!$U52/'Volume per connection'!$J$69)","v":0},{"$f":"Q$3*('COM-Appliance class'!$U52/'Volume per connection'!$J$69)","v":0},{"$f":"R$3*('COM-Appliance class'!$U52/'Volume per connection'!$J$69)","v":0},{"$f":"S$3*('COM-Appliance class'!$U52/'Volume per connection'!$J$69)","v":0},{"$f":"T$3*('COM-Appliance class'!$U52/'Volume per connection'!$J$69)","v":0},{"$f":"U$3*('COM-Appliance class'!$U52/'Volume per connection'!$J$69)","v":0},{"$f":"V$3*('COM-Appliance class'!$U52/'Volume per connection'!$J$69)","v":0},{"$f":"W$3*('COM-Appliance class'!$U52/'Volume per connection'!$J$69)","v":0},{"$f":"X$3*('COM-Appliance class'!$U52/'Volume per connection'!$J$69)","v":0},{"$f":"Y$3*('COM-Appliance class'!$U52/'Volume per connection'!$J$69)","v":0},{"$f":"Z$3*('COM-Appliance class'!$U52/'Volume per connection'!$J$69)","v":0},{"$f":"AA$3*('COM-Appliance class'!$U52/'Volume per connection'!$J$69)","v":0},{"$f":"AB$3*('COM-Appliance class'!$U52/'Volume per connection'!$J$69)","v":0},{"$f":"AC$3*('COM-Appliance class'!$U52/'Volume per connection'!$J$69)","v":0},{"$f":"AD$3*('COM-Appliance class'!$U52/'Volume per connection'!$J$69)","v":0},{"$f":"AE$3*('COM-Appliance class'!$U52/'Volume per connection'!$J$69)","v":0},{"$f":"AF$3*('COM-Appliance class'!$U52/'Volume per connection'!$J$69)","v":0},{"$f":"AG$3*('COM-Appliance class'!$U52/'Volume per connection'!$J$69)","v":0},{"$f":"AH$3*('COM-Appliance class'!$U52/'Volume per connection'!$J$69)","v":0},{"$f":"AI$3*('COM-Appliance class'!$U52/'Volume per connection'!$J$69)","v":0},{"$f":"AJ$3*('COM-Appliance class'!$U52/'Volume per connection'!$J$69)","v":0},{"$f":"AK$3*('COM-Appliance class'!$U52/'Volume per connection'!$J$69)","v":0},{"$f":"AL$3*('COM-Appliance class'!$U52/'Volume per connection'!$J$69)","v":0},{"$f":"AM$3*('COM-Appliance class'!$U52/'Volume per connection'!$J$69)","v":0},{"$f":"AN$3*('COM-Appliance class'!$U52/'Volume per connection'!$J$69)","v":0},{"$f":"AO$3*('COM-Appliance class'!$U52/'Volume per connection'!$J$69)","v":0},{"$f":"AP$3*('COM-Appliance class'!$U52/'Volume per connection'!$J$69)","v":0},{"$f":"AQ$3*('COM-Appliance class'!$U52/'Volume per connection'!$J$69)","v":0},{"$f":"AR$3*('COM-Appliance class'!$U52/'Volume per connection'!$J$69)","v":0},{"$f":"AS$3*('COM-Appliance class'!$U52/'Volume per connection'!$J$69)","v":0},{"$f":"AT$3*('COM-Appliance class'!$U52/'Volume per connection'!$J$69)","v":0},{"$f":"AU$3*('COM-Appliance class'!$U52/'Volume per connection'!$J$69)","v":0},{"$f":"AV$3*('COM-Appliance class'!$U52/'Volume per connection'!$J$69)","v":0},{"$f":"AW$3*('COM-Appliance class'!$U52/'Volume per connection'!$J$69)","v":0},{"$f":"AX$3*('COM-Appliance class'!$U52/'Volume per connection'!$J$69)","v":0},{"$f":"AY$3*('COM-Appliance class'!$U52/'Volume per connection'!$J$69)","v":0},{"$f":"AZ$3*('COM-Appliance class'!$U52/'Volume per connection'!$J$69)","v":0},{"$f":"BA$3*('COM-Appliance class'!$U52/'Volume per connection'!$J$69)","v":0},{"$f":"BB$3*('COM-Appliance class'!$U52/'Volume per connection'!$J$69)","v":0},{"$f":"BC$3*('COM-Appliance class'!$U52/'Volume per connection'!$J$69)","v":0},{"$f":"BD$3*('COM-Appliance class'!$U52/'Volume per connection'!$J$69)","v":0},{"$f":"BE$3*('COM-Appliance class'!$U52/'Volume per connection'!$J$69)","v":0},{"$f":"BF$3*('COM-Appliance class'!$U52/'Volume per connection'!$J$69)","v":0},{"$f":"BG$3*('COM-Appliance class'!$U52/'Volume per connection'!$J$69)","v":0},{"$f":"BH$3*('COM-Appliance class'!$U52/'Volume per connection'!$J$69)","v":0},{"$f":"BI$3*('COM-Appliance class'!$U52/'Volume per connection'!$J$69)","v":0},{"$f":"BJ$3*('COM-Appliance class'!$U52/'Volume per connection'!$J$69)","v":0},{"$f":"BK$3*('COM-Appliance class'!$U52/'Volume per connection'!$J$69)","v":0},{"$f":"BL$3*('COM-Appliance class'!$U52/'Volume per connection'!$J$69)","v":0},{"$f":"BM$3*('COM-Appliance class'!$U52/'Volume per connection'!$J$69)","v":0},{"$f":"BN$3*('COM-Appliance class'!$U52/'Volume per connection'!$J$69)","v":0},{"$f":"BO$3*('COM-Appliance class'!$U52/'Volume per connection'!$J$69)","v":0},{"$f":"BP$3*('COM-Appliance class'!$U52/'Volume per connection'!$J$69)","v":0},{"$f":"BQ$3*('COM-Appliance class'!$U52/'Volume per connection'!$J$69)","v":0},{"$f":"BR$3*('COM-Appliance class'!$U52/'Volume per connection'!$J$69)","v":0},{"$f":"BS$3*('COM-Appliance class'!$U52/'Volume per connection'!$J$69)","v":0},{"$f":"BT$3*('COM-Appliance class'!$U52/'Volume per connection'!$J$69)","v":0},{"$f":"BU$3*('COM-Appliance class'!$U52/'Volume per connection'!$J$69)","v":0},{"$f":"BV$3*('COM-Appliance class'!$U52/'Volume per connection'!$J$69)","v":0},{"$f":"BW$3*('COM-Appliance class'!$U52/'Volume per connection'!$J$69)","v":0},{"$f":"BX$3*('COM-Appliance class'!$U52/'Volume per connection'!$J$69)","v":0},{"$f":"BY$3*('COM-Appliance class'!$U52/'Volume per connection'!$J$69)","v":0},{"$f":"BZ$3*('COM-Appliance class'!$U52/'Volume per connection'!$J$69)","v":0},{"$f":"CA$3*('COM-Appliance class'!$U52/'Volume per connection'!$J$69)","v":0},{"$f":"CB$3*('COM-Appliance class'!$U52/'Volume per connection'!$J$69)","v":0},{"$f":"CC$3*('COM-Appliance class'!$U52/'Volume per connection'!$J$69)","v":0},{"$f":"CD$3*('COM-Appliance class'!$U52/'Volume per connection'!$J$69)","v":0}]
["Glen Eira (C)",null,{"$f":"C$3*('COM-Appliance class'!$U53/'Volume per connection'!$J$69)","v":-22838.933724820876},{"$f":"D$3*('COM-Appliance class'!$U53/'Volume per connection'!$J$69)","v":-22838.933724820876},{"$f":"E$3*('COM-Appliance class'!$U53/'Volume per connection'!$J$69)","v":-14547.667364407631},{"$f":"F$3*('COM-Appliance class'!$U53/'Volume per connection'!$J$69)","v":-14547.667364407631},{"$f":"G$3*('COM-Appliance class'!$U53/'Volume per connection'!$J$69)","v":-20544.961508087414},{"$f":"H$3*('COM-Appliance class'!$U53/'Volume per connection'!$J$69)","v":-20544.961508087414},{"$f":"I$3*('COM-Appliance class'!$U53/'Volume per connection'!$J$69)","v":-20544.961508087414},{"$f":"J$3*('COM-Appliance class'!$U53/'Volume per connection'!$J$69)","v":-22541.364079788651},{"$f":"K$3*('COM-Appliance class'!$U53/'Volume per connection'!$J$69)","v":-21075.685350010564},{"$f":"L$3*('COM-Appliance class'!$U53/'Volume per connection'!$J$69)","v":-20786.931946852394},{"$f":"M$3*('COM-Appliance class'!$U53/'Volume per connection'!$J$69)","v":-20499.622310710009},{"$f":"N$3*('COM-Appliance class'!$U53/'Volume per connection'!$J$69)","v":-20213.749222748342},{"$f":"O$3*('COM-Appliance class'!$U53/'Volume per connection'!$J$69)","v":-19929.305500226474},{"$f":"P$3*('COM-Appliance class'!$U53/'Volume per connection'!$J$69)","v":-19646.283996317226},{"$f":"Q$3*('COM-Appliance class'!$U53/'Volume per connection'!$J$69)","v":-19364.677599927516},{"$f":"R$3*('COM-Appliance class'!$U53/'Volume per connection'!$J$69)","v":-19084.479235519764},{"$f":"S$3*('COM-Appliance class'!$U53/'Volume per connection'!$J$69)","v":-18805.681862934045},{"$f":"T$3*('COM-Appliance class'!$U53/'Volume per connection'!$J$69)","v":-18528.278477211257},{"$f":"U$3*('COM-Appliance class'!$U53/'Volume per connection'!$J$69)","v":-18252.262108417079},{"$f":"V$3*('COM-Appliance class'!$U53/'Volume per connection'!$J$69)","v":-17977.625821466871},{"$f":"W$3*('COM-Appliance class'!$U53/'Volume per connection'!$J$69)","v":-17704.362715951414},{"$f":"X$3*('COM-Appliance class'!$U53/'Volume per connection'!$J$69)","v":-17432.465925963537},{"$f":"Y$3*('COM-Appliance class'!$U53/'Volume per connection'!$J$69)","v":-17161.928619925602},{"$f":"Z$3*('COM-Appliance class'!$U53/'Volume per connection'!$J$69)","v":-16892.744000417853},{"$f":"AA$3*('COM-Appliance class'!$U53/'Volume per connection'!$J$69)","v":-16624.90530400764},{"$f":"AB$3*('COM-Appliance class'!$U53/'Volume per connection'!$J$69)","v":-16358.405801079482},{"$f":"AC$3*('COM-Appliance class'!$U53/'Volume per connection'!$J$69)","v":-16093.238795665968},{"$f":"AD$3*('COM-Appliance class'!$U53/'Volume per connection'!$J$69)","v":-15829.397625279518},{"$f":"AE$3*('COM-Appliance class'!$U53/'Volume per connection'!$J$69)","v":-15566.875660745001},{"$f":"AF$3*('COM-Appliance class'!$U53/'Volume per connection'!$J$69)","v":-15305.666306033156},{"$f":"AG$3*('COM-Appliance class'!$U53/'Volume per connection'!$J$69)","v":-15305.666306033156},{"$f":"AH$3*('COM-Appliance class'!$U53/'Volume per connection'!$J$69)","v":-15305.666306033156},{"$f":"AI$3*('COM-Appliance class'!$U53/'Volume per connection'!$J$69)","v":-15305.666306033156},{"$f":"AJ$3*('COM-Appliance class'!$U53/'Volume per connection'!$J$69)","v":-15305.666306033156},{"$f":"AK$3*('COM-Appliance class'!$U53/'Volume per connection'!$J$69)","v":-15305.666306033156},{"$f":"AL$3*('COM-Appliance class'!$U53/'Volume per connection'!$J$69)","v":-15305.666306033156},{"$f":"AM$3*('COM-Appliance class'!$U53/'Volume per connection'!$J$69)","v":-15305.666306033156},{"$f":"AN$3*('COM-Appliance class'!$U53/'Volume per connection'!$J$69)","v":-15305.666306033156},{"$f":"AO$3*('COM-Appliance class'!$U53/'Volume per connection'!$J$69)","v":-15305.666306033156},{"$f":"AP$3*('COM-Appliance class'!$U53/'Volume per connection'!$J$69)","v":-15305.666306033156},{"$f":"AQ$3*('COM-Appliance class'!$U53/'Volume per connection'!$J$69)","v":-15305.666306033156},{"$f":"AR$3*('COM-Appliance class'!$U53/'Volume per connection'!$J$69)","v":-15305.666306033156},{"$f":"AS$3*('COM-Appliance class'!$U53/'Volume per connection'!$J$69)","v":-15305.666306033156},{"$f":"AT$3*('COM-Appliance class'!$U53/'Volume per connection'!$J$69)","v":-15305.666306033156},{"$f":"AU$3*('COM-Appliance class'!$U53/'Volume per connection'!$J$69)","v":-15305.666306033156},{"$f":"AV$3*('COM-Appliance class'!$U53/'Volume per connection'!$J$69)","v":-15305.666306033156},{"$f":"AW$3*('COM-Appliance class'!$U53/'Volume per connection'!$J$69)","v":-15305.666306033156},{"$f":"AX$3*('COM-Appliance class'!$U53/'Volume per connection'!$J$69)","v":-15305.666306033156},{"$f":"AY$3*('COM-Appliance class'!$U53/'Volume per connection'!$J$69)","v":-15305.666306033156},{"$f":"AZ$3*('COM-Appliance class'!$U53/'Volume per connection'!$J$69)","v":-15305.666306033156},{"$f":"BA$3*('COM-Appliance class'!$U53/'Volume per connection'!$J$69)","v":-15305.666306033156},{"$f":"BB$3*('COM-Appliance class'!$U53/'Volume per connection'!$J$69)","v":-15305.666306033156},{"$f":"BC$3*('COM-Appliance class'!$U53/'Volume per connection'!$J$69)","v":-15305.666306033156},{"$f":"BD$3*('COM-Appliance class'!$U53/'Volume per connection'!$J$69)","v":-15305.666306033156},{"$f":"BE$3*('COM-Appliance class'!$U53/'Volume per connection'!$J$69)","v":-15305.666306033156},{"$f":"BF$3*('COM-Appliance class'!$U53/'Volume per connection'!$J$69)","v":-15305.666306033156},{"$f":"BG$3*('COM-Appliance class'!$U53/'Volume per connection'!$J$69)","v":-15305.666306033156},{"$f":"BH$3*('COM-Appliance class'!$U53/'Volume per connection'!$J$69)","v":-15305.666306033156},{"$f":"BI$3*('COM-Appliance class'!$U53/'Volume per connection'!$J$69)","v":-15305.666306033156},{"$f":"BJ$3*('COM-Appliance class'!$U53/'Volume per connection'!$J$69)","v":-15305.666306033156},{"$f":"BK$3*('COM-Appliance class'!$U53/'Volume per connection'!$J$69)","v":-15305.666306033156},{"$f":"BL$3*('COM-Appliance class'!$U53/'Volume per connection'!$J$69)","v":-15305.666306033156},{"$f":"BM$3*('COM-Appliance class'!$U53/'Volume per connection'!$J$69)","v":-15305.666306033156},{"$f":"BN$3*('COM-Appliance class'!$U53/'Volume per connection'!$J$69)","v":-15305.666306033156},{"$f":"BO$3*('COM-Appliance class'!$U53/'Volume per connection'!$J$69)","v":-15305.666306033156},{"$f":"BP$3*('COM-Appliance class'!$U53/'Volume per connection'!$J$69)","v":-15305.666306033156},{"$f":"BQ$3*('COM-Appliance class'!$U53/'Volume per connection'!$J$69)","v":-15305.666306033156},{"$f":"BR$3*('COM-Appliance class'!$U53/'Volume per connection'!$J$69)","v":-15305.666306033156},{"$f":"BS$3*('COM-Appliance class'!$U53/'Volume per connection'!$J$69)","v":-15305.666306033156},{"$f":"BT$3*('COM-Appliance class'!$U53/'Volume per connection'!$J$69)","v":-15305.666306033156},{"$f":"BU$3*('COM-Appliance class'!$U53/'Volume per connection'!$J$69)","v":-15305.666306033156},{"$f":"BV$3*('COM-Appliance class'!$U53/'Volume per connection'!$J$69)","v":-15305.666306033156},{"$f":"BW$3*('COM-Appliance class'!$U53/'Volume per connection'!$J$69)","v":-15305.666306033156},{"$f":"BX$3*('COM-Appliance class'!$U53/'Volume per connection'!$J$69)","v":-15305.666306033156},{"$f":"BY$3*('COM-Appliance class'!$U53/'Volume per connection'!$J$69)","v":-15305.666306033156},{"$f":"BZ$3*('COM-Appliance class'!$U53/'Volume per connection'!$J$69)","v":-15305.666306033156},{"$f":"CA$3*('COM-Appliance class'!$U53/'Volume per connection'!$J$69)","v":-15305.666306033156},{"$f":"CB$3*('COM-Appliance class'!$U53/'Volume per connection'!$J$69)","v":-15305.666306033156},{"$f":"CC$3*('COM-Appliance class'!$U53/'Volume per connection'!$J$69)","v":-15305.666306033156},{"$f":"CD$3*('COM-Appliance class'!$U53/'Volume per connection'!$J$69)","v":-15305.666306033156}]
["Greater Dandenong (C)",null,{"$f":"C$3*('COM-Appliance class'!$U54/'Volume per connection'!$J$69)","v":-23520.662169306437},{"$f":"D$3*('COM-Appliance class'!$U54/'Volume per connection'!$J$69)","v":-23520.662169306437},{"$f":"E$3*('COM-Appliance class'!$U54/'Volume per connection'!$J$69)","v":-14981.906491449397},{"$f":"F$3*('COM-Appliance class'!$U54/'Volume per connection'!$J$69)","v":-14981.906491449397},{"$f":"G$3*('COM-Appliance class'!$U54/'Volume per connection'!$J$69)","v":-21158.216260681344},{"$f":"H$3*('COM-Appliance class'!$U54/'Volume per connection'!$J$69)","v":-21158.216260681344},{"$f":"I$3*('COM-Appliance class'!$U54/'Volume per connection'!$J$69)","v":-21158.216260681344},{"$f":"J$3*('COM-Appliance class'!$U54/'Volume per connection'!$J$69)","v":-23214.2102492224},{"$f":"K$3*('COM-Appliance class'!$U54/'Volume per connection'!$J$69)","v":-21704.781890297607},{"$f":"L$3*('COM-Appliance class'!$U54/'Volume per connection'!$J$69)","v":-21407.409371608614},{"$f":"M$3*('COM-Appliance class'!$U54/'Volume per connection'!$J$69)","v":-21111.523715513067},{"$f":"N$3*('COM-Appliance class'!$U54/'Volume per connection'!$J$69)","v":-20817.117487698},{"$f":"O$3*('COM-Appliance class'!$U54/'Volume per connection'!$J$69)","v":-20524.183291022004},{"$f":"P$3*('COM-Appliance class'!$U54/'Volume per connection'!$J$69)","v":-20232.713765329398},{"$f":"Q$3*('COM-Appliance class'!$U54/'Volume per connection'!$J$69)","v":-19942.701587265241},{"$f":"R$3*('COM-Appliance class'!$U54/'Volume per connection'!$J$69)","v":-19654.139470091417},{"$f":"S$3*('COM-Appliance class'!$U54/'Volume per connection'!$J$69)","v":-19367.020163503457},{"$f":"T$3*('COM-Appliance class'!$U54/'Volume per connection'!$J$69)","v":-19081.336453448439},{"$f":"U$3*('COM-Appliance class'!$U54/'Volume per connection'!$J$69)","v":-18797.08116194369},{"$f":"V$3*('COM-Appliance class'!$U54/'Volume per connection'!$J$69)","v":-18514.247146896469},{"$f":"W$3*('COM-Appliance class'!$U54/'Volume per connection'!$J$69)","v":-18232.827301924481},{"$f":"X$3*('COM-Appliance class'!$U54/'Volume per connection'!$J$69)","v":-17952.814556177353},{"$f":"Y$3*('COM-Appliance class'!$U54/'Volume per connection'!$J$69)","v":-17674.201874158967},{"$f":"Z$3*('COM-Appliance class'!$U54/'Volume per connection'!$J$69)","v":-17396.982255550665},{"$f":"AA$3*('COM-Appliance class'!$U54/'Volume per connection'!$J$69)","v":-17121.148735035407},{"$f":"AB$3*('COM-Appliance class'!$U54/'Volume per connection'!$J$69)","v":-16846.694382122725},{"$f":"AC$3*('COM-Appliance class'!$U54/'Volume per connection'!$J$69)","v":-16573.612300974615},{"$f":"AD$3*('COM-Appliance class'!$U54/'Volume per connection'!$J$69)","v":-16301.895630232239},{"$f":"AE$3*('COM-Appliance class'!$U54/'Volume per connection'!$J$69)","v":-16031.537542843575},{"$f":"AF$3*('COM-Appliance class'!$U54/'Volume per connection'!$J$69)","v":-15762.531245891852},{"$f":"AG$3*('COM-Appliance class'!$U54/'Volume per connection'!$J$69)","v":-15762.531245891852},{"$f":"AH$3*('COM-Appliance class'!$U54/'Volume per connection'!$J$69)","v":-15762.531245891852},{"$f":"AI$3*('COM-Appliance class'!$U54/'Volume per connection'!$J$69)","v":-15762.531245891852},{"$f":"AJ$3*('COM-Appliance class'!$U54/'Volume per connection'!$J$69)","v":-15762.531245891852},{"$f":"AK$3*('COM-Appliance class'!$U54/'Volume per connection'!$J$69)","v":-15762.531245891852},{"$f":"AL$3*('COM-Appliance class'!$U54/'Volume per connection'!$J$69)","v":-15762.531245891852},{"$f":"AM$3*('COM-Appliance class'!$U54/'Volume per connection'!$J$69)","v":-15762.531245891852},{"$f":"AN$3*('COM-Appliance class'!$U54/'Volume per connection'!$J$69)","v":-15762.531245891852},{"$f":"AO$3*('COM-Appliance class'!$U54/'Volume per connection'!$J$69)","v":-15762.531245891852},{"$f":"AP$3*('COM-Appliance class'!$U54/'Volume per connection'!$J$69)","v":-15762.531245891852},{"$f":"AQ$3*('COM-Appliance class'!$U54/'Volume per connection'!$J$69)","v":-15762.531245891852},{"$f":"AR$3*('COM-Appliance class'!$U54/'Volume per connection'!$J$69)","v":-15762.531245891852},{"$f":"AS$3*('COM-Appliance class'!$U54/'Volume per connection'!$J$69)","v":-15762.531245891852},{"$f":"AT$3*('COM-Appliance class'!$U54/'Volume per connection'!$J$69)","v":-15762.531245891852},{"$f":"AU$3*('COM-Appliance class'!$U54/'Volume per connection'!$J$69)","v":-15762.531245891852},{"$f":"AV$3*('COM-Appliance class'!$U54/'Volume per connection'!$J$69)","v":-15762.531245891852},{"$f":"AW$3*('COM-Appliance class'!$U54/'Volume per connection'!$J$69)","v":-15762.531245891852},{"$f":"AX$3*('COM-Appliance class'!$U54/'Volume per connection'!$J$69)","v":-15762.531245891852},{"$f":"AY$3*('COM-Appliance class'!$U54/'Volume per connection'!$J$69)","v":-15762.531245891852},{"$f":"AZ$3*('COM-Appliance class'!$U54/'Volume per connection'!$J$69)","v":-15762.531245891852},{"$f":"BA$3*('COM-Appliance class'!$U54/'Volume per connection'!$J$69)","v":-15762.531245891852},{"$f":"BB$3*('COM-Appliance class'!$U54/'Volume per connection'!$J$69)","v":-15762.531245891852},{"$f":"BC$3*('COM-Appliance class'!$U54/'Volume per connection'!$J$69)","v":-15762.531245891852},{"$f":"BD$3*('COM-Appliance class'!$U54/'Volume per connection'!$J$69)","v":-15762.531245891852},{"$f":"BE$3*('COM-Appliance class'!$U54/'Volume per connection'!$J$69)","v":-15762.531245891852},{"$f":"BF$3*('COM-Appliance class'!$U54/'Volume per connection'!$J$69)","v":-15762.531245891852},{"$f":"BG$3*('COM-Appliance class'!$U54/'Volume per connection'!$J$69)","v":-15762.531245891852},{"$f":"BH$3*('COM-Appliance class'!$U54/'Volume per connection'!$J$69)","v":-15762.531245891852},{"$f":"BI$3*('COM-Appliance class'!$U54/'Volume per connection'!$J$69)","v":-15762.531245891852},{"$f":"BJ$3*('COM-Appliance class'!$U54/'Volume per connection'!$J$69)","v":-15762.531245891852},{"$f":"BK$3*('COM-Appliance class'!$U54/'Volume per connection'!$J$69)","v":-15762.531245891852},{"$f":"BL$3*('COM-Appliance class'!$U54/'Volume per connection'!$J$69)","v":-15762.531245891852},{"$f":"BM$3*('COM-Appliance class'!$U54/'Volume per connection'!$J$69)","v":-15762.531245891852},{"$f":"BN$3*('COM-Appliance class'!$U54/'Volume per connection'!$J$69)","v":-15762.531245891852},{"$f":"BO$3*('COM-Appliance class'!$U54/'Volume per connection'!$J$69)","v":-15762.531245891852},{"$f":"BP$3*('COM-Appliance class'!$U54/'Volume per connection'!$J$69)","v":-15762.531245891852},{"$f":"BQ$3*('COM-Appliance class'!$U54/'Volume per connection'!$J$69)","v":-15762.531245891852},{"$f":"BR$3*('COM-Appliance class'!$U54/'Volume per connection'!$J$69)","v":-15762.531245891852},{"$f":"BS$3*('COM-Appliance class'!$U54/'Volume per connection'!$J$69)","v":-15762.531245891852},{"$f":"BT$3*('COM-Appliance class'!$U54/'Volume per connection'!$J$69)","v":-15762.531245891852},{"$f":"BU$3*('COM-Appliance class'!$U54/'Volume per connection'!$J$69)","v":-15762.531245891852},{"$f":"BV$3*('COM-Appliance class'!$U54/'Volume per connection'!$J$69)","v":-15762.531245891852},{"$f":"BW$3*('COM-Appliance class'!$U54/'Volume per connection'!$J$69)","v":-15762.531245891852},{"$f":"BX$3*('COM-Appliance class'!$U54/'Volume per connection'!$J$69)","v":-15762.531245891852},{"$f":"BY$3*('COM-Appliance class'!$U54/'Volume per connection'!$J$69)","v":-15762.531245891852},{"$f":"BZ$3*('COM-Appliance class'!$U54/'Volume per connection'!$J$69)","v":-15762.531245891852},{"$f":"CA$3*('COM-Appliance class'!$U54/'Volume per connection'!$J$69)","v":-15762.531245891852},{"$f":"CB$3*('COM-Appliance class'!$U54/'Volume per connection'!$J$69)","v":-15762.531245891852},{"$f":"CC$3*('COM-Appliance class'!$U54/'Volume per connection'!$J$69)","v":-15762.531245891852},{"$f":"CD$3*('COM-Appliance class'!$U54/'Volume per connection'!$J$69)","v":-15762.531245891852}]
["Kingston (C)",null,{"$f":"C$3*('COM-Appliance class'!$U55/'Volume per connection'!$J$69)","v":-23789.530969379186},{"$f":"D$3*('COM-Appliance class'!$U55/'Volume per connection'!$J$69)","v":-23789.530969379186},{"$f":"E$3*('COM-Appliance class'!$U55/'Volume per connection'!$J$69)","v":-15153.167283010562},{"$f":"F$3*('COM-Appliance class'!$U55/'Volume per connection'!$J$69)","v":-15153.167283010562},{"$f":"G$3*('COM-Appliance class'!$U55/'Volume per connection'!$J$69)","v":-21400.07952867695},{"$f":"H$3*('COM-Appliance class'!$U55/'Volume per connection'!$J$69)","v":-21400.07952867695},{"$f":"I$3*('COM-Appliance class'!$U55/'Volume per connection'!$J$69)","v":-21400.07952867695},{"$f":"J$3*('COM-Appliance class'!$U55/'Volume per connection'!$J$69)","v":-23479.575943836644},{"$f":"K$3*('COM-Appliance class'!$U55/'Volume per connection'!$J$69)","v":-21952.893045531175},{"$f":"L$3*('COM-Appliance class'!$U55/'Volume per connection'!$J$69)","v":-21652.121209607871},{"$f":"M$3*('COM-Appliance class'!$U55/'Volume per connection'!$J$69)","v":-21352.853232864185},{"$f":"N$3*('COM-Appliance class'!$U55/'Volume per connection'!$J$69)","v":-21055.08159600422},{"$f":"O$3*('COM-Appliance class'!$U55/'Volume per connection'!$J$69)","v":-20758.798817328548},{"$f":"P$3*('COM-Appliance class'!$U55/'Volume per connection'!$J$69)","v":-20463.997452546264},{"$f":"Q$3*('COM-Appliance class'!$U55/'Volume per connection'!$J$69)","v":-20170.670094587884},{"$f":"R$3*('COM-Appliance class'!$U55/'Volume per connection'!$J$69)","v":-19878.809373419303},{"$f":"S$3*('COM-Appliance class'!$U55/'Volume per connection'!$J$69)","v":-19588.407955856561},{"$f":"T$3*('COM-Appliance class'!$U55/'Volume per connection'!$J$69)","v":-19299.458545381633},{"$f":"U$3*('COM-Appliance class'!$U55/'Volume per connection'!$J$69)","v":-19011.953881959078},{"$f":"V$3*('COM-Appliance class'!$U55/'Volume per connection'!$J$69)","v":-18725.886741853636},{"$f":"W$3*('COM-Appliance class'!$U55/'Volume per connection'!$J$69)","v":-18441.249937448716},{"$f":"X$3*('COM-Appliance class'!$U55/'Volume per connection'!$J$69)","v":-18158.036317065827},{"$f":"Y$3*('COM-Appliance class'!$U55/'Volume per connection'!$J$69)","v":-17876.238764784855},{"$f":"Z$3*('COM-Appliance class'!$U55/'Volume per connection'!$J$69)","v":-17595.850200265282},{"$f":"AA$3*('COM-Appliance class'!$U55/'Volume per connection'!$J$69)","v":-17316.863578568307},{"$f":"AB$3*('COM-Appliance class'!$U55/'Volume per connection'!$J$69)","v":-17039.27188997982},{"$f":"AC$3*('COM-Appliance class'!$U55/'Volume per connection'!$J$69)","v":-16763.068159834278},{"$f":"AD$3*('COM-Appliance class'!$U55/'Volume per connection'!$J$69)","v":-16488.245448339465},{"$f":"AE$3*('COM-Appliance class'!$U55/'Volume per connection'!$J$69)","v":-16214.796850402121},{"$f":"AF$3*('COM-Appliance class'!$U55/'Volume per connection'!$J$69)","v":-15942.715495454464},{"$f":"AG$3*('COM-Appliance class'!$U55/'Volume per connection'!$J$69)","v":-15942.715495454464},{"$f":"AH$3*('COM-Appliance class'!$U55/'Volume per connection'!$J$69)","v":-15942.715495454464},{"$f":"AI$3*('COM-Appliance class'!$U55/'Volume per connection'!$J$69)","v":-15942.715495454464},{"$f":"AJ$3*('COM-Appliance class'!$U55/'Volume per connection'!$J$69)","v":-15942.715495454464},{"$f":"AK$3*('COM-Appliance class'!$U55/'Volume per connection'!$J$69)","v":-15942.715495454464},{"$f":"AL$3*('COM-Appliance class'!$U55/'Volume per connection'!$J$69)","v":-15942.715495454464},{"$f":"AM$3*('COM-Appliance class'!$U55/'Volume per connection'!$J$69)","v":-15942.715495454464},{"$f":"AN$3*('COM-Appliance class'!$U55/'Volume per connection'!$J$69)","v":-15942.715495454464},{"$f":"AO$3*('COM-Appliance class'!$U55/'Volume per connection'!$J$69)","v":-15942.715495454464},{"$f":"AP$3*('COM-Appliance class'!$U55/'Volume per connection'!$J$69)","v":-15942.715495454464},{"$f":"AQ$3*('COM-Appliance class'!$U55/'Volume per connection'!$J$69)","v":-15942.715495454464},{"$f":"AR$3*('COM-Appliance class'!$U55/'Volume per connection'!$J$69)","v":-15942.715495454464},{"$f":"AS$3*('COM-Appliance class'!$U55/'Volume per connection'!$J$69)","v":-15942.715495454464},{"$f":"AT$3*('COM-Appliance class'!$U55/'Volume per connection'!$J$69)","v":-15942.715495454464},{"$f":"AU$3*('COM-Appliance class'!$U55/'Volume per connection'!$J$69)","v":-15942.715495454464},{"$f":"AV$3*('COM-Appliance class'!$U55/'Volume per connection'!$J$69)","v":-15942.715495454464},{"$f":"AW$3*('COM-Appliance class'!$U55/'Volume per connection'!$J$69)","v":-15942.715495454464},{"$f":"AX$3*('COM-Appliance class'!$U55/'Volume per connection'!$J$69)","v":-15942.715495454464},{"$f":"AY$3*('COM-Appliance class'!$U55/'Volume per connection'!$J$69)","v":-15942.715495454464},{"$f":"AZ$3*('COM-Appliance class'!$U55/'Volume per connection'!$J$69)","v":-15942.715495454464},{"$f":"BA$3*('COM-Appliance class'!$U55/'Volume per connection'!$J$69)","v":-15942.715495454464},{"$f":"BB$3*('COM-Appliance class'!$U55/'Volume per connection'!$J$69)","v":-15942.715495454464},{"$f":"BC$3*('COM-Appliance class'!$U55/'Volume per connection'!$J$69)","v":-15942.715495454464},{"$f":"BD$3*('COM-Appliance class'!$U55/'Volume per connection'!$J$69)","v":-15942.715495454464},{"$f":"BE$3*('COM-Appliance class'!$U55/'Volume per connection'!$J$69)","v":-15942.715495454464},{"$f":"BF$3*('COM-Appliance class'!$U55/'Volume per connection'!$J$69)","v":-15942.715495454464},{"$f":"BG$3*('COM-Appliance class'!$U55/'Volume per connection'!$J$69)","v":-15942.715495454464},{"$f":"BH$3*('COM-Appliance class'!$U55/'Volume per connection'!$J$69)","v":-15942.715495454464},{"$f":"BI$3*('COM-Appliance class'!$U55/'Volume per connection'!$J$69)","v":-15942.715495454464},{"$f":"BJ$3*('COM-Appliance class'!$U55/'Volume per connection'!$J$69)","v":-15942.715495454464},{"$f":"BK$3*('COM-Appliance class'!$U55/'Volume per connection'!$J$69)","v":-15942.715495454464},{"$f":"BL$3*('COM-Appliance class'!$U55/'Volume per connection'!$J$69)","v":-15942.715495454464},{"$f":"BM$3*('COM-Appliance class'!$U55/'Volume per connection'!$J$69)","v":-15942.715495454464},{"$f":"BN$3*('COM-Appliance class'!$U55/'Volume per connection'!$J$69)","v":-15942.715495454464},{"$f":"BO$3*('COM-Appliance class'!$U55/'Volume per connection'!$J$69)","v":-15942.715495454464},{"$f":"BP$3*('COM-Appliance class'!$U55/'Volume per connection'!$J$69)","v":-15942.715495454464},{"$f":"BQ$3*('COM-Appliance class'!$U55/'Volume per connection'!$J$69)","v":-15942.715495454464},{"$f":"BR$3*('COM-Appliance class'!$U55/'Volume per connection'!$J$69)","v":-15942.715495454464},{"$f":"BS$3*('COM-Appliance class'!$U55/'Volume per connection'!$J$69)","v":-15942.715495454464},{"$f":"BT$3*('COM-Appliance class'!$U55/'Volume per connection'!$J$69)","v":-15942.715495454464},{"$f":"BU$3*('COM-Appliance class'!$U55/'Volume per connection'!$J$69)","v":-15942.715495454464},{"$f":"BV$3*('COM-Appliance class'!$U55/'Volume per connection'!$J$69)","v":-15942.715495454464},{"$f":"BW$3*('COM-Appliance class'!$U55/'Volume per connection'!$J$69)","v":-15942.715495454464},{"$f":"BX$3*('COM-Appliance class'!$U55/'Volume per connection'!$J$69)","v":-15942.715495454464},{"$f":"BY$3*('COM-Appliance class'!$U55/'Volume per connection'!$J$69)","v":-15942.715495454464},{"$f":"BZ$3*('COM-Appliance class'!$U55/'Volume per connection'!$J$69)","v":-15942.715495454464},{"$f":"CA$3*('COM-Appliance class'!$U55/'Volume per connection'!$J$69)","v":-15942.715495454464},{"$f":"CB$3*('COM-Appliance class'!$U55/'Volume per connection'!$J$69)","v":-15942.715495454464},{"$f":"CC$3*('COM-Appliance class'!$U55/'Volume per connection'!$J$69)","v":-15942.715495454464},{"$f":"CD$3*('COM-Appliance class'!$U55/'Volume per connection'!$J$69)","v":-15942.715495454464}]
["Knox (C)",null,{"$f":"C$3*('COM-Appliance class'!$U56/'Volume per connection'!$J$69)","v":-23278.486765982099},{"$f":"D$3*('COM-Appliance class'!$U56/'Volume per connection'!$J$69)","v":-23278.486765982099},{"$f":"E$3*('COM-Appliance class'!$U56/'Volume per connection'!$J$69)","v":-14827.648536421711},{"$f":"F$3*('COM-Appliance class'!$U56/'Volume per connection'!$J$69)","v":-14827.648536421711},{"$f":"G$3*('COM-Appliance class'!$U56/'Volume per connection'!$J$69)","v":-20940.365269936672},{"$f":"H$3*('COM-Appliance class'!$U56/'Volume per connection'!$J$69)","v":-20940.365269936672},{"$f":"I$3*('COM-Appliance class'!$U56/'Volume per connection'!$J$69)","v":-20940.365269936672},{"$f":"J$3*('COM-Appliance class'!$U56/'Volume per connection'!$J$69)","v":-22975.190161714076},{"$f":"K$3*('COM-Appliance class'!$U56/'Volume per connection'!$J$69)","v":-21481.30330493665},{"$f":"L$3*('COM-Appliance class'!$U56/'Volume per connection'!$J$69)","v":-21186.99261797385},{"$f":"M$3*('COM-Appliance class'!$U56/'Volume per connection'!$J$69)","v":-20894.153484445869},{"$f":"N$3*('COM-Appliance class'!$U56/'Volume per connection'!$J$69)","v":-20602.778546585527},{"$f":"O$3*('COM-Appliance class'!$U56/'Volume per connection'!$J$69)","v":-20312.860483414479},{"$f":"P$3*('COM-Appliance class'!$U56/'Volume per connection'!$J$69)","v":-20024.392010559299},{"$f":"Q$3*('COM-Appliance class'!$U56/'Volume per connection'!$J$69)","v":-19737.365880068384},{"$f":"R$3*('COM-Appliance class'!$U56/'Volume per connection'!$J$69)","v":-19451.774880229932},{"$f":"S$3*('COM-Appliance class'!$U56/'Volume per connection'!$J$69)","v":-19167.611835390671},{"$f":"T$3*('COM-Appliance class'!$U56/'Volume per connection'!$J$69)","v":-18884.869605775606},{"$f":"U$3*('COM-Appliance class'!$U56/'Volume per connection'!$J$69)","v":-18603.541087308611},{"$f":"V$3*('COM-Appliance class'!$U56/'Volume per connection'!$J$69)","v":-18323.619211433954},{"$f":"W$3*('COM-Appliance class'!$U56/'Volume per connection'!$J$69)","v":-18045.096944938668},{"$f":"X$3*('COM-Appliance class'!$U56/'Volume per connection'!$J$69)","v":-17767.967289775861},{"$f":"Y$3*('COM-Appliance class'!$U56/'Volume per connection'!$J$69)","v":-17492.22328288887},{"$f":"Z$3*('COM-Appliance class'!$U56/'Volume per connection'!$J$69)","v":-17217.857996036309},{"$f":"AA$3*('COM-Appliance class'!$U56/'Volume per connection'!$J$69)","v":-16944.864535618013},{"$f":"AB$3*('COM-Appliance class'!$U56/'Volume per connection'!$J$69)","v":-16673.236042501809},{"$f":"AC$3*('COM-Appliance class'!$U56/'Volume per connection'!$J$69)","v":-16402.96569185119},{"$f":"AD$3*('COM-Appliance class'!$U56/'Volume per connection'!$J$69)","v":-16134.046692953822},{"$f":"AE$3*('COM-Appliance class'!$U56/'Volume per connection'!$J$69)","v":-15866.47228905094},{"$f":"AF$3*('COM-Appliance class'!$U56/'Volume per connection'!$J$69)","v":-15600.235757167569},{"$f":"AG$3*('COM-Appliance class'!$U56/'Volume per connection'!$J$69)","v":-15600.235757167569},{"$f":"AH$3*('COM-Appliance class'!$U56/'Volume per connection'!$J$69)","v":-15600.235757167569},{"$f":"AI$3*('COM-Appliance class'!$U56/'Volume per connection'!$J$69)","v":-15600.235757167569},{"$f":"AJ$3*('COM-Appliance class'!$U56/'Volume per connection'!$J$69)","v":-15600.235757167569},{"$f":"AK$3*('COM-Appliance class'!$U56/'Volume per connection'!$J$69)","v":-15600.235757167569},{"$f":"AL$3*('COM-Appliance class'!$U56/'Volume per connection'!$J$69)","v":-15600.235757167569},{"$f":"AM$3*('COM-Appliance class'!$U56/'Volume per connection'!$J$69)","v":-15600.235757167569},{"$f":"AN$3*('COM-Appliance class'!$U56/'Volume per connection'!$J$69)","v":-15600.235757167569},{"$f":"AO$3*('COM-Appliance class'!$U56/'Volume per connection'!$J$69)","v":-15600.235757167569},{"$f":"AP$3*('COM-Appliance class'!$U56/'Volume per connection'!$J$69)","v":-15600.235757167569},{"$f":"AQ$3*('COM-Appliance class'!$U56/'Volume per connection'!$J$69)","v":-15600.235757167569},{"$f":"AR$3*('COM-Appliance class'!$U56/'Volume per connection'!$J$69)","v":-15600.235757167569},{"$f":"AS$3*('COM-Appliance class'!$U56/'Volume per connection'!$J$69)","v":-15600.235757167569},{"$f":"AT$3*('COM-Appliance class'!$U56/'Volume per connection'!$J$69)","v":-15600.235757167569},{"$f":"AU$3*('COM-Appliance class'!$U56/'Volume per connection'!$J$69)","v":-15600.235757167569},{"$f":"AV$3*('COM-Appliance class'!$U56/'Volume per connection'!$J$69)","v":-15600.235757167569},{"$f":"AW$3*('COM-Appliance class'!$U56/'Volume per connection'!$J$69)","v":-15600.235757167569},{"$f":"AX$3*('COM-Appliance class'!$U56/'Volume per connection'!$J$69)","v":-15600.235757167569},{"$f":"AY$3*('COM-Appliance class'!$U56/'Volume per connection'!$J$69)","v":-15600.235757167569},{"$f":"AZ$3*('COM-Appliance class'!$U56/'Volume per connection'!$J$69)","v":-15600.235757167569},{"$f":"BA$3*('COM-Appliance class'!$U56/'Volume per connection'!$J$69)","v":-15600.235757167569},{"$f":"BB$3*('COM-Appliance class'!$U56/'Volume per connection'!$J$69)","v":-15600.235757167569},{"$f":"BC$3*('COM-Appliance class'!$U56/'Volume per connection'!$J$69)","v":-15600.235757167569},{"$f":"BD$3*('COM-Appliance class'!$U56/'Volume per connection'!$J$69)","v":-15600.235757167569},{"$f":"BE$3*('COM-Appliance class'!$U56/'Volume per connection'!$J$69)","v":-15600.235757167569},{"$f":"BF$3*('COM-Appliance class'!$U56/'Volume per connection'!$J$69)","v":-15600.235757167569},{"$f":"BG$3*('COM-Appliance class'!$U56/'Volume per connection'!$J$69)","v":-15600.235757167569},{"$f":"BH$3*('COM-Appliance class'!$U56/'Volume per connection'!$J$69)","v":-15600.235757167569},{"$f":"BI$3*('COM-Appliance class'!$U56/'Volume per connection'!$J$69)","v":-15600.235757167569},{"$f":"BJ$3*('COM-Appliance class'!$U56/'Volume per connection'!$J$69)","v":-15600.235757167569},{"$f":"BK$3*('COM-Appliance class'!$U56/'Volume per connection'!$J$69)","v":-15600.235757167569},{"$f":"BL$3*('COM-Appliance class'!$U56/'Volume per connection'!$J$69)","v":-15600.235757167569},{"$f":"BM$3*('COM-Appliance class'!$U56/'Volume per connection'!$J$69)","v":-15600.235757167569},{"$f":"BN$3*('COM-Appliance class'!$U56/'Volume per connection'!$J$69)","v":-15600.235757167569},{"$f":"BO$3*('COM-Appliance class'!$U56/'Volume per connection'!$J$69)","v":-15600.235757167569},{"$f":"BP$3*('COM-Appliance class'!$U56/'Volume per connection'!$J$69)","v":-15600.235757167569},{"$f":"BQ$3*('COM-Appliance class'!$U56/'Volume per connection'!$J$69)","v":-15600.235757167569},{"$f":"BR$3*('COM-Appliance class'!$U56/'Volume per connection'!$J$69)","v":-15600.235757167569},{"$f":"BS$3*('COM-Appliance class'!$U56/'Volume per connection'!$J$69)","v":-15600.235757167569},{"$f":"BT$3*('COM-Appliance class'!$U56/'Volume per connection'!$J$69)","v":-15600.235757167569},{"$f":"BU$3*('COM-Appliance class'!$U56/'Volume per connection'!$J$69)","v":-15600.235757167569},{"$f":"BV$3*('COM-Appliance class'!$U56/'Volume per connection'!$J$69)","v":-15600.235757167569},{"$f":"BW$3*('COM-Appliance class'!$U56/'Volume per connection'!$J$69)","v":-15600.235757167569},{"$f":"BX$3*('COM-Appliance class'!$U56/'Volume per connection'!$J$69)","v":-15600.235757167569},{"$f":"BY$3*('COM-Appliance class'!$U56/'Volume per connection'!$J$69)","v":-15600.235757167569},{"$f":"BZ$3*('COM-Appliance class'!$U56/'Volume per connection'!$J$69)","v":-15600.235757167569},{"$f":"CA$3*('COM-Appliance class'!$U56/'Volume per connection'!$J$69)","v":-15600.235757167569},{"$f":"CB$3*('COM-Appliance class'!$U56/'Volume per connection'!$J$69)","v":-15600.235757167569},{"$f":"CC$3*('COM-Appliance class'!$U56/'Volume per connection'!$J$69)","v":-15600.235757167569},{"$f":"CD$3*('COM-Appliance class'!$U56/'Volume per connection'!$J$69)","v":-15600.235757167569}]
["Manningham (C)",null,{"$f":"C$3*('COM-Appliance class'!$U57/'Volume per connection'!$J$69)","v":-23855.701012167392},{"$f":"D$3*('COM-Appliance class'!$U57/'Volume per connection'!$J$69)","v":-23855.701012167392},{"$f":"E$3*('COM-Appliance class'!$U57/'Volume per connection'!$J$69)","v":-15195.31547537233},{"$f":"F$3*('COM-Appliance class'!$U57/'Volume per connection'!$J$69)","v":-15195.31547537233},{"$f":"G$3*('COM-Appliance class'!$U57/'Volume per connection'!$J$69)","v":-21459.6033662804},{"$f":"H$3*('COM-Appliance class'!$U57/'Volume per connection'!$J$69)","v":-21459.6033662804},{"$f":"I$3*('COM-Appliance class'!$U57/'Volume per connection'!$J$69)","v":-21459.6033662804},{"$f":"J$3*('COM-Appliance class'!$U57/'Volume per connection'!$J$69)","v":-23544.883853725762},{"$f":"K$3*('COM-Appliance class'!$U57/'Volume per connection'!$J$69)","v":-22013.954521439104},{"$f":"L$3*('COM-Appliance class'!$U57/'Volume per connection'!$J$69)","v":-21712.346095451114},{"$f":"M$3*('COM-Appliance class'!$U57/'Volume per connection'!$J$69)","v":-21412.245711593067},{"$f":"N$3*('COM-Appliance class'!$U57/'Volume per connection'!$J$69)","v":-21113.64582965431},{"$f":"O$3*('COM-Appliance class'!$U57/'Volume per connection'!$J$69)","v":-20816.538947125242},{"$f":"P$3*('COM-Appliance class'!$U57/'Volume per connection'!$J$69)","v":-20520.91759900883},{"$f":"Q$3*('COM-Appliance class'!$U57/'Volume per connection'!$J$69)","v":-20226.774357632985},{"$f":"R$3*('COM-Appliance class'!$U57/'Volume per connection'!$J$69)","v":-19934.101832464032},{"$f":"S$3*('COM-Appliance class'!$U57/'Volume per connection'!$J$69)","v":-19642.892669920922},{"$f":"T$3*('COM-Appliance class'!$U57/'Volume per connection'!$J$69)","v":-19353.139553190525},{"$f":"U$3*('COM-Appliance class'!$U57/'Volume per connection'!$J$69)","v":-19064.835202043778},{"$f":"V$3*('COM-Appliance class'!$U57/'Volume per connection'!$J$69)","v":-18777.972372652766},{"$f":"W$3*('COM-Appliance class'!$U57/'Volume per connection'!$J$69)","v":-18492.543857408706},{"$f":"X$3*('COM-Appliance class'!$U57/'Volume per connection'!$J$69)","v":-18208.542484740869},{"$f":"Y$3*('COM-Appliance class'!$U57/'Volume per connection'!$J$69)","v":-17925.961118936375},{"$f":"Z$3*('COM-Appliance class'!$U57/'Volume per connection'!$J$69)","v":-17644.792659960898},{"$f":"AA$3*('COM-Appliance class'!$U57/'Volume per connection'!$J$69)","v":-17365.030043280298},{"$f":"AB$3*('COM-Appliance class'!$U57/'Volume per connection'!$J$69)","v":-17086.666239683105},{"$f":"AC$3*('COM-Appliance class'!$U57/'Volume per connection'!$J$69)","v":-16809.694255103899},{"$f":"AD$3*('COM-Appliance class'!$U57/'Volume per connection'!$J$69)","v":-16534.107130447588},{"$f":"AE$3*('COM-Appliance class'!$U57/'Volume per connection'!$J$69)","v":-16259.89794141456},{"$f":"AF$3*('COM-Appliance class'!$U57/'Volume per connection'!$J$69)","v":-15987.059798326693},{"$f":"AG$3*('COM-Appliance class'!$U57/'Volume per connection'!$J$69)","v":-15987.059798326693},{"$f":"AH$3*('COM-Appliance class'!$U57/'Volume per connection'!$J$69)","v":-15987.059798326693},{"$f":"AI$3*('COM-Appliance class'!$U57/'Volume per connection'!$J$69)","v":-15987.059798326693},{"$f":"AJ$3*('COM-Appliance class'!$U57/'Volume per connection'!$J$69)","v":-15987.059798326693},{"$f":"AK$3*('COM-Appliance class'!$U57/'Volume per connection'!$J$69)","v":-15987.059798326693},{"$f":"AL$3*('COM-Appliance class'!$U57/'Volume per connection'!$J$69)","v":-15987.059798326693},{"$f":"AM$3*('COM-Appliance class'!$U57/'Volume per connection'!$J$69)","v":-15987.059798326693},{"$f":"AN$3*('COM-Appliance class'!$U57/'Volume per connection'!$J$69)","v":-15987.059798326693},{"$f":"AO$3*('COM-Appliance class'!$U57/'Volume per connection'!$J$69)","v":-15987.059798326693},{"$f":"AP$3*('COM-Appliance class'!$U57/'Volume per connection'!$J$69)","v":-15987.059798326693},{"$f":"AQ$3*('COM-Appliance class'!$U57/'Volume per connection'!$J$69)","v":-15987.059798326693},{"$f":"AR$3*('COM-Appliance class'!$U57/'Volume per connection'!$J$69)","v":-15987.059798326693},{"$f":"AS$3*('COM-Appliance class'!$U57/'Volume per connection'!$J$69)","v":-15987.059798326693},{"$f":"AT$3*('COM-Appliance class'!$U57/'Volume per connection'!$J$69)","v":-15987.059798326693},{"$f":"AU$3*('COM-Appliance class'!$U57/'Volume per connection'!$J$69)","v":-15987.059798326693},{"$f":"AV$3*('COM-Appliance class'!$U57/'Volume per connection'!$J$69)","v":-15987.059798326693},{"$f":"AW$3*('COM-Appliance class'!$U57/'Volume per connection'!$J$69)","v":-15987.059798326693},{"$f":"AX$3*('COM-Appliance class'!$U57/'Volume per connection'!$J$69)","v":-15987.059798326693},{"$f":"AY$3*('COM-Appliance class'!$U57/'Volume per connection'!$J$69)","v":-15987.059798326693},{"$f":"AZ$3*('COM-Appliance class'!$U57/'Volume per connection'!$J$69)","v":-15987.059798326693},{"$f":"BA$3*('COM-Appliance class'!$U57/'Volume per connection'!$J$69)","v":-15987.059798326693},{"$f":"BB$3*('COM-Appliance class'!$U57/'Volume per connection'!$J$69)","v":-15987.059798326693},{"$f":"BC$3*('COM-Appliance class'!$U57/'Volume per connection'!$J$69)","v":-15987.059798326693},{"$f":"BD$3*('COM-Appliance class'!$U57/'Volume per connection'!$J$69)","v":-15987.059798326693},{"$f":"BE$3*('COM-Appliance class'!$U57/'Volume per connection'!$J$69)","v":-15987.059798326693},{"$f":"BF$3*('COM-Appliance class'!$U57/'Volume per connection'!$J$69)","v":-15987.059798326693},{"$f":"BG$3*('COM-Appliance class'!$U57/'Volume per connection'!$J$69)","v":-15987.059798326693},{"$f":"BH$3*('COM-Appliance class'!$U57/'Volume per connection'!$J$69)","v":-15987.059798326693},{"$f":"BI$3*('COM-Appliance class'!$U57/'Volume per connection'!$J$69)","v":-15987.059798326693},{"$f":"BJ$3*('COM-Appliance class'!$U57/'Volume per connection'!$J$69)","v":-15987.059798326693},{"$f":"BK$3*('COM-Appliance class'!$U57/'Volume per connection'!$J$69)","v":-15987.059798326693},{"$f":"BL$3*('COM-Appliance class'!$U57/'Volume per connection'!$J$69)","v":-15987.059798326693},{"$f":"BM$3*('COM-Appliance class'!$U57/'Volume per connection'!$J$69)","v":-15987.059798326693},{"$f":"BN$3*('COM-Appliance class'!$U57/'Volume per connection'!$J$69)","v":-15987.059798326693},{"$f":"BO$3*('COM-Appliance class'!$U57/'Volume per connection'!$J$69)","v":-15987.059798326693},{"$f":"BP$3*('COM-Appliance class'!$U57/'Volume per connection'!$J$69)","v":-15987.059798326693},{"$f":"BQ$3*('COM-Appliance class'!$U57/'Volume per connection'!$J$69)","v":-15987.059798326693},{"$f":"BR$3*('COM-Appliance class'!$U57/'Volume per connection'!$J$69)","v":-15987.059798326693},{"$f":"BS$3*('COM-Appliance class'!$U57/'Volume per connection'!$J$69)","v":-15987.059798326693},{"$f":"BT$3*('COM-Appliance class'!$U57/'Volume per connection'!$J$69)","v":-15987.059798326693},{"$f":"BU$3*('COM-Appliance class'!$U57/'Volume per connection'!$J$69)","v":-15987.059798326693},{"$f":"BV$3*('COM-Appliance class'!$U57/'Volume per connection'!$J$69)","v":-15987.059798326693},{"$f":"BW$3*('COM-Appliance class'!$U57/'Volume per connection'!$J$69)","v":-15987.059798326693},{"$f":"BX$3*('COM-Appliance class'!$U57/'Volume per connection'!$J$69)","v":-15987.059798326693},{"$f":"BY$3*('COM-Appliance class'!$U57/'Volume per connection'!$J$69)","v":-15987.059798326693},{"$f":"BZ$3*('COM-Appliance class'!$U57/'Volume per connection'!$J$69)","v":-15987.059798326693},{"$f":"CA$3*('COM-Appliance class'!$U57/'Volume per connection'!$J$69)","v":-15987.059798326693},{"$f":"CB$3*('COM-Appliance class'!$U57/'Volume per connection'!$J$69)","v":-15987.059798326693},{"$f":"CC$3*('COM-Appliance class'!$U57/'Volume per connection'!$J$69)","v":-15987.059798326693},{"$f":"CD$3*('COM-Appliance class'!$U57/'Volume per connection'!$J$69)","v":-15987.059798326693}]
["Maroondah (C)",null,{"$f":"C$3*('COM-Appliance class'!$U58/'Volume per connection'!$J$69)","v":-22571.866970079449},{"$f":"D$3*('COM-Appliance class'!$U58/'Volume per connection'!$J$69)","v":-22571.866970079449},{"$f":"E$3*('COM-Appliance class'!$U58/'Volume per connection'!$J$69)","v":-14377.554417854099},{"$f":"F$3*('COM-Appliance class'!$U58/'Volume per connection'!$J$69)","v":-14377.554417854099},{"$f":"G$3*('COM-Appliance class'!$U58/'Volume per connection'!$J$69)","v":-20304.719285645591},{"$f":"H$3*('COM-Appliance class'!$U58/'Volume per connection'!$J$69)","v":-20304.719285645591},{"$f":"I$3*('COM-Appliance class'!$U58/'Volume per connection'!$J$69)","v":-20304.719285645591},{"$f":"J$3*('COM-Appliance class'!$U58/'Volume per connection'!$J$69)","v":-22277.776951564199},{"$f":"K$3*('COM-Appliance class'!$U58/'Volume per connection'!$J$69)","v":-20829.237115684209},{"$f":"L$3*('COM-Appliance class'!$U58/'Volume per connection'!$J$69)","v":-20543.860246440938},{"$f":"M$3*('COM-Appliance class'!$U58/'Volume per connection'!$J$69)","v":-20259.910261543879},{"$f":"N$3*('COM-Appliance class'!$U58/'Volume per connection'!$J$69)","v":-19977.380026571307},{"$f":"O$3*('COM-Appliance class'!$U58/'Volume per connection'!$J$69)","v":-19696.262442773594},{"$f":"P$3*('COM-Appliance class'!$U58/'Volume per connection'!$J$69)","v":-19416.550446894878},{"$f":"Q$3*('COM-Appliance class'!$U58/'Volume per connection'!$J$69)","v":-19138.237010995548},{"$f":"R$3*('COM-Appliance class'!$U58/'Volume per connection'!$J$69)","v":-18861.315142275722},{"$f":"S$3*('COM-Appliance class'!$U58/'Volume per connection'!$J$69)","v":-18585.777882899492},{"$f":"T$3*('COM-Appliance class'!$U58/'Volume per connection'!$J$69)","v":-18311.618309820144},{"$f":"U$3*('COM-Appliance class'!$U58/'Volume per connection'!$J$69)","v":-18038.82953460619},{"$f":"V$3*('COM-Appliance class'!$U58/'Volume per connection'!$J$69)","v":-17767.404703268305},{"$f":"W$3*('COM-Appliance class'!$U58/'Volume per connection'!$J$69)","v":-17497.336996087106},{"$f":"X$3*('COM-Appliance class'!$U58/'Volume per connection'!$J$69)","v":-17228.619627441818},{"$f":"Y$3*('COM-Appliance class'!$U58/'Volume per connection'!$J$69)","v":-16961.245845639758},{"$f":"Z$3*('COM-Appliance class'!$U58/'Volume per connection'!$J$69)","v":-16695.208932746707},{"$f":"AA$3*('COM-Appliance class'!$U58/'Volume per connection'!$J$69)","v":-16430.502204418117},{"$f":"AB$3*('COM-Appliance class'!$U58/'Volume per connection'!$J$69)","v":-16167.119009731174},{"$f":"AC$3*('COM-Appliance class'!$U58/'Volume per connection'!$J$69)","v":-15905.052731017669},{"$f":"AD$3*('COM-Appliance class'!$U58/'Volume per connection'!$J$69)","v":-15644.29678369773},{"$f":"AE$3*('COM-Appliance class'!$U58/'Volume per connection'!$J$69)","v":-15384.844616114389},{"$f":"AF$3*('COM-Appliance class'!$U58/'Volume per connection'!$J$69)","v":-15126.689709368964},{"$f":"AG$3*('COM-Appliance class'!$U58/'Volume per connection'!$J$69)","v":-15126.689709368964},{"$f":"AH$3*('COM-Appliance class'!$U58/'Volume per connection'!$J$69)","v":-15126.689709368964},{"$f":"AI$3*('COM-Appliance class'!$U58/'Volume per connection'!$J$69)","v":-15126.689709368964},{"$f":"AJ$3*('COM-Appliance class'!$U58/'Volume per connection'!$J$69)","v":-15126.689709368964},{"$f":"AK$3*('COM-Appliance class'!$U58/'Volume per connection'!$J$69)","v":-15126.689709368964},{"$f":"AL$3*('COM-Appliance class'!$U58/'Volume per connection'!$J$69)","v":-15126.689709368964},{"$f":"AM$3*('COM-Appliance class'!$U58/'Volume per connection'!$J$69)","v":-15126.689709368964},{"$f":"AN$3*('COM-Appliance class'!$U58/'Volume per connection'!$J$69)","v":-15126.689709368964},{"$f":"AO$3*('COM-Appliance class'!$U58/'Volume per connection'!$J$69)","v":-15126.689709368964},{"$f":"AP$3*('COM-Appliance class'!$U58/'Volume per connection'!$J$69)","v":-15126.689709368964},{"$f":"AQ$3*('COM-Appliance class'!$U58/'Volume per connection'!$J$69)","v":-15126.689709368964},{"$f":"AR$3*('COM-Appliance class'!$U58/'Volume per connection'!$J$69)","v":-15126.689709368964},{"$f":"AS$3*('COM-Appliance class'!$U58/'Volume per connection'!$J$69)","v":-15126.689709368964},{"$f":"AT$3*('COM-Appliance class'!$U58/'Volume per connection'!$J$69)","v":-15126.689709368964},{"$f":"AU$3*('COM-Appliance class'!$U58/'Volume per connection'!$J$69)","v":-15126.689709368964},{"$f":"AV$3*('COM-Appliance class'!$U58/'Volume per connection'!$J$69)","v":-15126.689709368964},{"$f":"AW$3*('COM-Appliance class'!$U58/'Volume per connection'!$J$69)","v":-15126.689709368964},{"$f":"AX$3*('COM-Appliance class'!$U58/'Volume per connection'!$J$69)","v":-15126.689709368964},{"$f":"AY$3*('COM-Appliance class'!$U58/'Volume per connection'!$J$69)","v":-15126.689709368964},{"$f":"AZ$3*('COM-Appliance class'!$U58/'Volume per connection'!$J$69)","v":-15126.689709368964},{"$f":"BA$3*('COM-Appliance class'!$U58/'Volume per connection'!$J$69)","v":-15126.689709368964},{"$f":"BB$3*('COM-Appliance class'!$U58/'Volume per connection'!$J$69)","v":-15126.689709368964},{"$f":"BC$3*('COM-Appliance class'!$U58/'Volume per connection'!$J$69)","v":-15126.689709368964},{"$f":"BD$3*('COM-Appliance class'!$U58/'Volume per connection'!$J$69)","v":-15126.689709368964},{"$f":"BE$3*('COM-Appliance class'!$U58/'Volume per connection'!$J$69)","v":-15126.689709368964},{"$f":"BF$3*('COM-Appliance class'!$U58/'Volume per connection'!$J$69)","v":-15126.689709368964},{"$f":"BG$3*('COM-Appliance class'!$U58/'Volume per connection'!$J$69)","v":-15126.689709368964},{"$f":"BH$3*('COM-Appliance class'!$U58/'Volume per connection'!$J$69)","v":-15126.689709368964},{"$f":"BI$3*('COM-Appliance class'!$U58/'Volume per connection'!$J$69)","v":-15126.689709368964},{"$f":"BJ$3*('COM-Appliance class'!$U58/'Volume per connection'!$J$69)","v":-15126.689709368964},{"$f":"BK$3*('COM-Appliance class'!$U58/'Volume per connection'!$J$69)","v":-15126.689709368964},{"$f":"BL$3*('COM-Appliance class'!$U58/'Volume per connection'!$J$69)","v":-15126.689709368964},{"$f":"BM$3*('COM-Appliance class'!$U58/'Volume per connection'!$J$69)","v":-15126.689709368964},{"$f":"BN$3*('COM-Appliance class'!$U58/'Volume per connection'!$J$69)","v":-15126.689709368964},{"$f":"BO$3*('COM-Appliance class'!$U58/'Volume per connection'!$J$69)","v":-15126.689709368964},{"$f":"BP$3*('COM-Appliance class'!$U58/'Volume per connection'!$J$69)","v":-15126.689709368964},{"$f":"BQ$3*('COM-Appliance class'!$U58/'Volume per connection'!$J$69)","v":-15126.689709368964},{"$f":"BR$3*('COM-Appliance class'!$U58/'Volume per connection'!$J$69)","v":-15126.689709368964},{"$f":"BS$3*('COM-Appliance class'!$U58/'Volume per connection'!$J$69)","v":-15126.689709368964},{"$f":"BT$3*('COM-Appliance class'!$U58/'Volume per connection'!$J$69)","v":-15126.689709368964},{"$f":"BU$3*('COM-Appliance class'!$U58/'Volume per connection'!$J$69)","v":-15126.689709368964},{"$f":"BV$3*('COM-Appliance class'!$U58/'Volume per connection'!$J$69)","v":-15126.689709368964},{"$f":"BW$3*('COM-Appliance class'!$U58/'Volume per connection'!$J$69)","v":-15126.689709368964},{"$f":"BX$3*('COM-Appliance class'!$U58/'Volume per connection'!$J$69)","v":-15126.689709368964},{"$f":"BY$3*('COM-Appliance class'!$U58/'Volume per connection'!$J$69)","v":-15126.689709368964},{"$f":"BZ$3*('COM-Appliance class'!$U58/'Volume per connection'!$J$69)","v":-15126.689709368964},{"$f":"CA$3*('COM-Appliance class'!$U58/'Volume per connection'!$J$69)","v":-15126.689709368964},{"$f":"CB$3*('COM-Appliance class'!$U58/'Volume per connection'!$J$69)","v":-15126.689709368964},{"$f":"CC$3*('COM-Appliance class'!$U58/'Volume per connection'!$J$69)","v":-15126.689709368964},{"$f":"CD$3*('COM-Appliance class'!$U58/'Volume per connection'!$J$69)","v":-15126.689709368964}]
["Melbourne (C)",null,{"$f":"C$3*('COM-Appliance class'!$U59/'Volume per connection'!$J$69)","v":-25275.864888164062},{"$f":"D$3*('COM-Appliance class'!$U59/'Volume per connection'!$J$69)","v":-25275.864888164062},{"$f":"E$3*('COM-Appliance class'!$U59/'Volume per connection'!$J$69)","v":-16099.914259180458},{"$f":"F$3*('COM-Appliance class'!$U59/'Volume per connection'!$J$69)","v":-16099.914259180458},{"$f":"G$3*('COM-Appliance class'!$U59/'Volume per connection'!$J$69)","v":-22737.12413494127},{"$f":"H$3*('COM-Appliance class'!$U59/'Volume per connection'!$J$69)","v":-22737.12413494127},{"$f":"I$3*('COM-Appliance class'!$U59/'Volume per connection'!$J$69)","v":-22737.12413494127},{"$f":"J$3*('COM-Appliance class'!$U59/'Volume per connection'!$J$69)","v":-24946.54434136115},{"$f":"K$3*('COM-Appliance class'!$U59/'Volume per connection'!$J$69)","v":-23324.476604325529},{"$f":"L$3*('COM-Appliance class'!$U59/'Volume per connection'!$J$69)","v":-23004.912998941807},{"$f":"M$3*('COM-Appliance class'!$U59/'Volume per connection'!$J$69)","v":-22686.947211585008},{"$f":"N$3*('COM-Appliance class'!$U59/'Volume per connection'!$J$69)","v":-22370.571253164995},{"$f":"O$3*('COM-Appliance class'!$U59/'Volume per connection'!$J$69)","v":-22055.777174537074},{"$f":"P$3*('COM-Appliance class'!$U59/'Volume per connection'!$J$69)","v":-21742.557066302306},{"$f":"Q$3*('COM-Appliance class'!$U59/'Volume per connection'!$J$69)","v":-21430.903058608699},{"$f":"R$3*('COM-Appliance class'!$U59/'Volume per connection'!$J$69)","v":-21120.807320953569},{"$f":"S$3*('COM-Appliance class'!$U59/'Volume per connection'!$J$69)","v":-20812.262061986712},{"$f":"T$3*('COM-Appliance class'!$U59/'Volume per connection'!$J$69)","v":-20505.259529314691},{"$f":"U$3*('COM-Appliance class'!$U59/'Volume per connection'!$J$69)","v":-20199.792009306024},{"$f":"V$3*('COM-Appliance class'!$U59/'Volume per connection'!$J$69)","v":-19895.851826897404},{"$f":"W$3*('COM-Appliance class'!$U59/'Volume per connection'!$J$69)","v":-19593.431345400822},{"$f":"X$3*('COM-Appliance class'!$U59/'Volume per connection'!$J$69)","v":-19292.522966311728},{"$f":"Y$3*('COM-Appliance class'!$U59/'Volume per connection'!$J$69)","v":-18993.11912911808},{"$f":"Z$3*('COM-Appliance class'!$U59/'Volume per connection'!$J$69)","v":-18695.212311110397},{"$f":"AA$3*('COM-Appliance class'!$U59/'Volume per connection'!$J$69)","v":-18398.795027192755},{"$f":"AB$3*('COM-Appliance class'!$U59/'Volume per connection'!$J$69)","v":-18103.859829694698},{"$f":"AC$3*('COM-Appliance class'!$U59/'Volume per connection'!$J$69)","v":-17810.39930818414},{"$f":"AD$3*('COM-Appliance class'!$U59/'Volume per connection'!$J$69)","v":-17518.406089281129},{"$f":"AE$3*('COM-Appliance class'!$U59/'Volume per connection'!$J$69)","v":-17227.872836472634},{"$f":"AF$3*('COM-Appliance class'!$U59/'Volume per connection'!$J$69)","v":-16938.792249928181},{"$f":"AG$3*('COM-Appliance class'!$U59/'Volume per connection'!$J$69)","v":-16938.792249928181},{"$f":"AH$3*('COM-Appliance class'!$U59/'Volume per connection'!$J$69)","v":-16938.792249928181},{"$f":"AI$3*('COM-Appliance class'!$U59/'Volume per connection'!$J$69)","v":-16938.792249928181},{"$f":"AJ$3*('COM-Appliance class'!$U59/'Volume per connection'!$J$69)","v":-16938.792249928181},{"$f":"AK$3*('COM-Appliance class'!$U59/'Volume per connection'!$J$69)","v":-16938.792249928181},{"$f":"AL$3*('COM-Appliance class'!$U59/'Volume per connection'!$J$69)","v":-16938.792249928181},{"$f":"AM$3*('COM-Appliance class'!$U59/'Volume per connection'!$J$69)","v":-16938.792249928181},{"$f":"AN$3*('COM-Appliance class'!$U59/'Volume per connection'!$J$69)","v":-16938.792249928181},{"$f":"AO$3*('COM-Appliance class'!$U59/'Volume per connection'!$J$69)","v":-16938.792249928181},{"$f":"AP$3*('COM-Appliance class'!$U59/'Volume per connection'!$J$69)","v":-16938.792249928181},{"$f":"AQ$3*('COM-Appliance class'!$U59/'Volume per connection'!$J$69)","v":-16938.792249928181},{"$f":"AR$3*('COM-Appliance class'!$U59/'Volume per connection'!$J$69)","v":-16938.792249928181},{"$f":"AS$3*('COM-Appliance class'!$U59/'Volume per connection'!$J$69)","v":-16938.792249928181},{"$f":"AT$3*('COM-Appliance class'!$U59/'Volume per connection'!$J$69)","v":-16938.792249928181},{"$f":"AU$3*('COM-Appliance class'!$U59/'Volume per connection'!$J$69)","v":-16938.792249928181},{"$f":"AV$3*('COM-Appliance class'!$U59/'Volume per connection'!$J$69)","v":-16938.792249928181},{"$f":"AW$3*('COM-Appliance class'!$U59/'Volume per connection'!$J$69)","v":-16938.792249928181},{"$f":"AX$3*('COM-Appliance class'!$U59/'Volume per connection'!$J$69)","v":-16938.792249928181},{"$f":"AY$3*('COM-Appliance class'!$U59/'Volume per connection'!$J$69)","v":-16938.792249928181},{"$f":"AZ$3*('COM-Appliance class'!$U59/'Volume per connection'!$J$69)","v":-16938.792249928181},{"$f":"BA$3*('COM-Appliance class'!$U59/'Volume per connection'!$J$69)","v":-16938.792249928181},{"$f":"BB$3*('COM-Appliance class'!$U59/'Volume per connection'!$J$69)","v":-16938.792249928181},{"$f":"BC$3*('COM-Appliance class'!$U59/'Volume per connection'!$J$69)","v":-16938.792249928181},{"$f":"BD$3*('COM-Appliance class'!$U59/'Volume per connection'!$J$69)","v":-16938.792249928181},{"$f":"BE$3*('COM-Appliance class'!$U59/'Volume per connection'!$J$69)","v":-16938.792249928181},{"$f":"BF$3*('COM-Appliance class'!$U59/'Volume per connection'!$J$69)","v":-16938.792249928181},{"$f":"BG$3*('COM-Appliance class'!$U59/'Volume per connection'!$J$69)","v":-16938.792249928181},{"$f":"BH$3*('COM-Appliance class'!$U59/'Volume per connection'!$J$69)","v":-16938.792249928181},{"$f":"BI$3*('COM-Appliance class'!$U59/'Volume per connection'!$J$69)","v":-16938.792249928181},{"$f":"BJ$3*('COM-Appliance class'!$U59/'Volume per connection'!$J$69)","v":-16938.792249928181},{"$f":"BK$3*('COM-Appliance class'!$U59/'Volume per connection'!$J$69)","v":-16938.792249928181},{"$f":"BL$3*('COM-Appliance class'!$U59/'Volume per connection'!$J$69)","v":-16938.792249928181},{"$f":"BM$3*('COM-Appliance class'!$U59/'Volume per connection'!$J$69)","v":-16938.792249928181},{"$f":"BN$3*('COM-Appliance class'!$U59/'Volume per connection'!$J$69)","v":-16938.792249928181},{"$f":"BO$3*('COM-Appliance class'!$U59/'Volume per connection'!$J$69)","v":-16938.792249928181},{"$f":"BP$3*('COM-Appliance class'!$U59/'Volume per connection'!$J$69)","v":-16938.792249928181},{"$f":"BQ$3*('COM-Appliance class'!$U59/'Volume per connection'!$J$69)","v":-16938.792249928181},{"$f":"BR$3*('COM-Appliance class'!$U59/'Volume per connection'!$J$69)","v":-16938.792249928181},{"$f":"BS$3*('COM-Appliance class'!$U59/'Volume per connection'!$J$69)","v":-16938.792249928181},{"$f":"BT$3*('COM-Appliance class'!$U59/'Volume per connection'!$J$69)","v":-16938.792249928181},{"$f":"BU$3*('COM-Appliance class'!$U59/'Volume per connection'!$J$69)","v":-16938.792249928181},{"$f":"BV$3*('COM-Appliance class'!$U59/'Volume per connection'!$J$69)","v":-16938.792249928181},{"$f":"BW$3*('COM-Appliance class'!$U59/'Volume per connection'!$J$69)","v":-16938.792249928181},{"$f":"BX$3*('COM-Appliance class'!$U59/'Volume per connection'!$J$69)","v":-16938.792249928181},{"$f":"BY$3*('COM-Appliance class'!$U59/'Volume per connection'!$J$69)","v":-16938.792249928181},{"$f":"BZ$3*('COM-Appliance class'!$U59/'Volume per connection'!$J$69)","v":-16938.792249928181},{"$f":"CA$3*('COM-Appliance class'!$U59/'Volume per connection'!$J$69)","v":-16938.792249928181},{"$f":"CB$3*('COM-Appliance class'!$U59/'Volume per connection'!$J$69)","v":-16938.792249928181},{"$f":"CC$3*('COM-Appliance class'!$U59/'Volume per connection'!$J$69)","v":-16938.792249928181},{"$f":"CD$3*('COM-Appliance class'!$U59/'Volume per connection'!$J$69)","v":-16938.792249928181}]
["Monash (C)",null,{"$f":"C$3*('COM-Appliance class'!$U60/'Volume per connection'!$J$69)","v":-24150.956245999569},{"$f":"D$3*('COM-Appliance class'!$U60/'Volume per connection'!$J$69)","v":-24150.956245999569},{"$f":"E$3*('COM-Appliance class'!$U60/'Volume per connection'!$J$69)","v":-15383.383577900377},{"$f":"F$3*('COM-Appliance class'!$U60/'Volume per connection'!$J$69)","v":-15383.383577900377},{"$f":"G$3*('COM-Appliance class'!$U60/'Volume per connection'!$J$69)","v":-21725.202780299936},{"$f":"H$3*('COM-Appliance class'!$U60/'Volume per connection'!$J$69)","v":-21725.202780299936},{"$f":"I$3*('COM-Appliance class'!$U60/'Volume per connection'!$J$69)","v":-21725.202780299936},{"$f":"J$3*('COM-Appliance class'!$U60/'Volume per connection'!$J$69)","v":-23836.292191893546},{"$f":"K$3*('COM-Appliance class'!$U60/'Volume per connection'!$J$69)","v":-22286.414982210441},{"$f":"L$3*('COM-Appliance class'!$U60/'Volume per connection'!$J$69)","v":-21981.073634423363},{"$f":"M$3*('COM-Appliance class'!$U60/'Volume per connection'!$J$69)","v":-21677.258993375224},{"$f":"N$3*('COM-Appliance class'!$U60/'Volume per connection'!$J$69)","v":-21374.963425532325},{"$f":"O$3*('COM-Appliance class'!$U60/'Volume per connection'!$J$69)","v":-21074.179335528635},{"$f":"P$3*('COM-Appliance class'!$U60/'Volume per connection'!$J$69)","v":-20774.899165974974},{"$f":"Q$3*('COM-Appliance class'!$U60/'Volume per connection'!$J$69)","v":-20477.11539726907},{"$f":"R$3*('COM-Appliance class'!$U60/'Volume per connection'!$J$69)","v":-20180.820547406707},{"$f":"S$3*('COM-Appliance class'!$U60/'Volume per connection'!$J$69)","v":-19886.007171793652},{"$f":"T$3*('COM-Appliance class'!$U60/'Volume per connection'!$J$69)","v":-19592.667863058661},{"$f":"U$3*('COM-Appliance class'!$U60/'Volume per connection'!$J$69)","v":-19300.795250867341},{"$f":"V$3*('COM-Appliance class'!$U60/'Volume per connection'!$J$69)","v":-19010.38200173698},{"$f":"W$3*('COM-Appliance class'!$U60/'Volume per connection'!$J$69)","v":-18721.420818852268},{"$f":"X$3*('COM-Appliance class'!$U60/'Volume per connection'!$J$69)","v":-18433.904441881983},{"$f":"Y$3*('COM-Appliance class'!$U60/'Volume per connection'!$J$69)","v":-18147.825646796551},{"$f":"Z$3*('COM-Appliance class'!$U60/'Volume per connection'!$J$69)","v":-17863.177245686544},{"$f":"AA$3*('COM-Appliance class'!$U60/'Volume per connection'!$J$69)","v":-17579.952086582085},{"$f":"AB$3*('COM-Appliance class'!$U60/'Volume per connection'!$J$69)","v":-17298.14305327315},{"$f":"AC$3*('COM-Appliance class'!$U60/'Volume per connection'!$J$69)","v":-17017.743065130762},{"$f":"AD$3*('COM-Appliance class'!$U60/'Volume per connection'!$J$69)","v":-16738.745076929088},{"$f":"AE$3*('COM-Appliance class'!$U60/'Volume per connection'!$J$69)","v":-16461.142078668421},{"$f":"AF$3*('COM-Appliance class'!$U60/'Volume per connection'!$J$69)","v":-16184.927095399053},{"$f":"AG$3*('COM-Appliance class'!$U60/'Volume per connection'!$J$69)","v":-16184.927095399053},{"$f":"AH$3*('COM-Appliance class'!$U60/'Volume per connection'!$J$69)","v":-16184.927095399053},{"$f":"AI$3*('COM-Appliance class'!$U60/'Volume per connection'!$J$69)","v":-16184.927095399053},{"$f":"AJ$3*('COM-Appliance class'!$U60/'Volume per connection'!$J$69)","v":-16184.927095399053},{"$f":"AK$3*('COM-Appliance class'!$U60/'Volume per connection'!$J$69)","v":-16184.927095399053},{"$f":"AL$3*('COM-Appliance class'!$U60/'Volume per connection'!$J$69)","v":-16184.927095399053},{"$f":"AM$3*('COM-Appliance class'!$U60/'Volume per connection'!$J$69)","v":-16184.927095399053},{"$f":"AN$3*('COM-Appliance class'!$U60/'Volume per connection'!$J$69)","v":-16184.927095399053},{"$f":"AO$3*('COM-Appliance class'!$U60/'Volume per connection'!$J$69)","v":-16184.927095399053},{"$f":"AP$3*('COM-Appliance class'!$U60/'Volume per connection'!$J$69)","v":-16184.927095399053},{"$f":"AQ$3*('COM-Appliance class'!$U60/'Volume per connection'!$J$69)","v":-16184.927095399053},{"$f":"AR$3*('COM-Appliance class'!$U60/'Volume per connection'!$J$69)","v":-16184.927095399053},{"$f":"AS$3*('COM-Appliance class'!$U60/'Volume per connection'!$J$69)","v":-16184.927095399053},{"$f":"AT$3*('COM-Appliance class'!$U60/'Volume per connection'!$J$69)","v":-16184.927095399053},{"$f":"AU$3*('COM-Appliance class'!$U60/'Volume per connection'!$J$69)","v":-16184.927095399053},{"$f":"AV$3*('COM-Appliance class'!$U60/'Volume per connection'!$J$69)","v":-16184.927095399053},{"$f":"AW$3*('COM-Appliance class'!$U60/'Volume per connection'!$J$69)","v":-16184.927095399053},{"$f":"AX$3*('COM-Appliance class'!$U60/'Volume per connection'!$J$69)","v":-16184.927095399053},{"$f":"AY$3*('COM-Appliance class'!$U60/'Volume per connection'!$J$69)","v":-16184.927095399053},{"$f":"AZ$3*('COM-Appliance class'!$U60/'Volume per connection'!$J$69)","v":-16184.927095399053},{"$f":"BA$3*('COM-Appliance class'!$U60/'Volume per connection'!$J$69)","v":-16184.927095399053},{"$f":"BB$3*('COM-Appliance class'!$U60/'Volume per connection'!$J$69)","v":-16184.927095399053},{"$f":"BC$3*('COM-Appliance class'!$U60/'Volume per connection'!$J$69)","v":-16184.927095399053},{"$f":"BD$3*('COM-Appliance class'!$U60/'Volume per connection'!$J$69)","v":-16184.927095399053},{"$f":"BE$3*('COM-Appliance class'!$U60/'Volume per connection'!$J$69)","v":-16184.927095399053},{"$f":"BF$3*('COM-Appliance class'!$U60/'Volume per connection'!$J$69)","v":-16184.927095399053},{"$f":"BG$3*('COM-Appliance class'!$U60/'Volume per connection'!$J$69)","v":-16184.927095399053},{"$f":"BH$3*('COM-Appliance class'!$U60/'Volume per connection'!$J$69)","v":-16184.927095399053},{"$f":"BI$3*('COM-Appliance class'!$U60/'Volume per connection'!$J$69)","v":-16184.927095399053},{"$f":"BJ$3*('COM-Appliance class'!$U60/'Volume per connection'!$J$69)","v":-16184.927095399053},{"$f":"BK$3*('COM-Appliance class'!$U60/'Volume per connection'!$J$69)","v":-16184.927095399053},{"$f":"BL$3*('COM-Appliance class'!$U60/'Volume per connection'!$J$69)","v":-16184.927095399053},{"$f":"BM$3*('COM-Appliance class'!$U60/'Volume per connection'!$J$69)","v":-16184.927095399053},{"$f":"BN$3*('COM-Appliance class'!$U60/'Volume per connection'!$J$69)","v":-16184.927095399053},{"$f":"BO$3*('COM-Appliance class'!$U60/'Volume per connection'!$J$69)","v":-16184.927095399053},{"$f":"BP$3*('COM-Appliance class'!$U60/'Volume per connection'!$J$69)","v":-16184.927095399053},{"$f":"BQ$3*('COM-Appliance class'!$U60/'Volume per connection'!$J$69)","v":-16184.927095399053},{"$f":"BR$3*('COM-Appliance class'!$U60/'Volume per connection'!$J$69)","v":-16184.927095399053},{"$f":"BS$3*('COM-Appliance class'!$U60/'Volume per connection'!$J$69)","v":-16184.927095399053},{"$f":"BT$3*('COM-Appliance class'!$U60/'Volume per connection'!$J$69)","v":-16184.927095399053},{"$f":"BU$3*('COM-Appliance class'!$U60/'Volume per connection'!$J$69)","v":-16184.927095399053},{"$f":"BV$3*('COM-Appliance class'!$U60/'Volume per connection'!$J$69)","v":-16184.927095399053},{"$f":"BW$3*('COM-Appliance class'!$U60/'Volume per connection'!$J$69)","v":-16184.927095399053},{"$f":"BX$3*('COM-Appliance class'!$U60/'Volume per connection'!$J$69)","v":-16184.927095399053},{"$f":"BY$3*('COM-Appliance class'!$U60/'Volume per connection'!$J$69)","v":-16184.927095399053},{"$f":"BZ$3*('COM-Appliance class'!$U60/'Volume per connection'!$J$69)","v":-16184.927095399053},{"$f":"CA$3*('COM-Appliance class'!$U60/'Volume per connection'!$J$69)","v":-16184.927095399053},{"$f":"CB$3*('COM-Appliance class'!$U60/'Volume per connection'!$J$69)","v":-16184.927095399053},{"$f":"CC$3*('COM-Appliance class'!$U60/'Volume per connection'!$J$69)","v":-16184.927095399053},{"$f":"CD$3*('COM-Appliance class'!$U60/'Volume per connection'!$J$69)","v":-16184.927095399053}]
["Port Phillip (C)",null,{"$f":"C$3*('COM-Appliance class'!$U61/'Volume per connection'!$J$69)","v":-23865.717411087357},{"$f":"D$3*('COM-Appliance class'!$U61/'Volume per connection'!$J$69)","v":-23865.717411087357},{"$f":"E$3*('COM-Appliance class'!$U61/'Volume per connection'!$J$69)","v":-15201.695599831401},{"$f":"F$3*('COM-Appliance class'!$U61/'Volume per connection'!$J$69)","v":-15201.695599831401},{"$f":"G$3*('COM-Appliance class'!$U61/'Volume per connection'!$J$69)","v":-21468.613705061525},{"$f":"H$3*('COM-Appliance class'!$U61/'Volume per connection'!$J$69)","v":-21468.613705061525},{"$f":"I$3*('COM-Appliance class'!$U61/'Volume per connection'!$J$69)","v":-21468.613705061525},{"$f":"J$3*('COM-Appliance class'!$U61/'Volume per connection'!$J$69)","v":-23554.76974846777},{"$f":"K$3*('COM-Appliance class'!$U61/'Volume per connection'!$J$69)","v":-22023.197618096805},{"$f":"L$3*('COM-Appliance class'!$U61/'Volume per connection'!$J$69)","v":-21721.462554442172},{"$f":"M$3*('COM-Appliance class'!$U61/'Volume per connection'!$J$69)","v":-21421.236166105813},{"$f":"N$3*('COM-Appliance class'!$U61/'Volume per connection'!$J$69)","v":-21122.510909711138},{"$f":"O$3*('COM-Appliance class'!$U61/'Volume per connection'!$J$69)","v":-20825.279279598431},{"$f":"P$3*('COM-Appliance class'!$U61/'Volume per connection'!$J$69)","v":-20529.533807636297},{"$f":"Q$3*('COM-Appliance class'!$U61/'Volume per connection'!$J$69)","v":-20235.267063033963},{"$f":"R$3*('COM-Appliance class'!$U61/'Volume per connection'!$J$69)","v":-19942.471652154651},{"$f":"S$3*('COM-Appliance class'!$U61/'Volume per connection'!$J$69)","v":-19651.140218329732},{"$f":"T$3*('COM-Appliance class'!$U61/'Volume per connection'!$J$69)","v":-19361.265441673939},{"$f":"U$3*('COM-Appliance class'!$U61/'Volume per connection'!$J$69)","v":-19072.840038901417},{"$f":"V$3*('COM-Appliance class'!$U61/'Volume per connection'!$J$69)","v":-18785.856763142761},{"$f":"W$3*('COM-Appliance class'!$U61/'Volume per connection'!$J$69)","v":-18500.308403762898},{"$f":"X$3*('COM-Appliance class'!$U61/'Volume per connection'!$J$69)","v":-18216.187786179937},{"$f":"Y$3*('COM-Appliance class'!$U61/'Volume per connection'!$J$69)","v":-17933.48777168489},{"$f":"Z$3*('COM-Appliance class'!$U61/'Volume per connection'!$J$69)","v":-17652.201257262317},{"$f":"AA$3*('COM-Appliance class'!$U61/'Volume per connection'!$J$69)","v":-17372.321175411857},{"$f":"AB$3*('COM-Appliance class'!$U61/'Volume per connection'!$J$69)","v":-17093.840493970649},{"$f":"AC$3*('COM-Appliance class'!$U61/'Volume per connection'!$J$69)","v":-16816.752215936653},{"$f":"AD$3*('COM-Appliance class'!$U61/'Volume per connection'!$J$69)","v":-16541.049379292825},{"$f":"AE$3*('COM-Appliance class'!$U61/'Volume per connection'!$J$69)","v":-16266.725056832212},{"$f":"AF$3*('COM-Appliance class'!$U61/'Volume per connection'!$J$69)","v":-15993.772355983903},{"$f":"AG$3*('COM-Appliance class'!$U61/'Volume per connection'!$J$69)","v":-15993.772355983903},{"$f":"AH$3*('COM-Appliance class'!$U61/'Volume per connection'!$J$69)","v":-15993.772355983903},{"$f":"AI$3*('COM-Appliance class'!$U61/'Volume per connection'!$J$69)","v":-15993.772355983903},{"$f":"AJ$3*('COM-Appliance class'!$U61/'Volume per connection'!$J$69)","v":-15993.772355983903},{"$f":"AK$3*('COM-Appliance class'!$U61/'Volume per connection'!$J$69)","v":-15993.772355983903},{"$f":"AL$3*('COM-Appliance class'!$U61/'Volume per connection'!$J$69)","v":-15993.772355983903},{"$f":"AM$3*('COM-Appliance class'!$U61/'Volume per connection'!$J$69)","v":-15993.772355983903},{"$f":"AN$3*('COM-Appliance class'!$U61/'Volume per connection'!$J$69)","v":-15993.772355983903},{"$f":"AO$3*('COM-Appliance class'!$U61/'Volume per connection'!$J$69)","v":-15993.772355983903},{"$f":"AP$3*('COM-Appliance class'!$U61/'Volume per connection'!$J$69)","v":-15993.772355983903},{"$f":"AQ$3*('COM-Appliance class'!$U61/'Volume per connection'!$J$69)","v":-15993.772355983903},{"$f":"AR$3*('COM-Appliance class'!$U61/'Volume per connection'!$J$69)","v":-15993.772355983903},{"$f":"AS$3*('COM-Appliance class'!$U61/'Volume per connection'!$J$69)","v":-15993.772355983903},{"$f":"AT$3*('COM-Appliance class'!$U61/'Volume per connection'!$J$69)","v":-15993.772355983903},{"$f":"AU$3*('COM-Appliance class'!$U61/'Volume per connection'!$J$69)","v":-15993.772355983903},{"$f":"AV$3*('COM-Appliance class'!$U61/'Volume per connection'!$J$69)","v":-15993.772355983903},{"$f":"AW$3*('COM-Appliance class'!$U61/'Volume per connection'!$J$69)","v":-15993.772355983903},{"$f":"AX$3*('COM-Appliance class'!$U61/'Volume per connection'!$J$69)","v":-15993.772355983903},{"$f":"AY$3*('COM-Appliance class'!$U61/'Volume per connection'!$J$69)","v":-15993.772355983903},{"$f":"AZ$3*('COM-Appliance class'!$U61/'Volume per connection'!$J$69)","v":-15993.772355983903},{"$f":"BA$3*('COM-Appliance class'!$U61/'Volume per connection'!$J$69)","v":-15993.772355983903},{"$f":"BB$3*('COM-Appliance class'!$U61/'Volume per connection'!$J$69)","v":-15993.772355983903},{"$f":"BC$3*('COM-Appliance class'!$U61/'Volume per connection'!$J$69)","v":-15993.772355983903},{"$f":"BD$3*('COM-Appliance class'!$U61/'Volume per connection'!$J$69)","v":-15993.772355983903},{"$f":"BE$3*('COM-Appliance class'!$U61/'Volume per connection'!$J$69)","v":-15993.772355983903},{"$f":"BF$3*('COM-Appliance class'!$U61/'Volume per connection'!$J$69)","v":-15993.772355983903},{"$f":"BG$3*('COM-Appliance class'!$U61/'Volume per connection'!$J$69)","v":-15993.772355983903},{"$f":"BH$3*('COM-Appliance class'!$U61/'Volume per connection'!$J$69)","v":-15993.772355983903},{"$f":"BI$3*('COM-Appliance class'!$U61/'Volume per connection'!$J$69)","v":-15993.772355983903},{"$f":"BJ$3*('COM-Appliance class'!$U61/'Volume per connection'!$J$69)","v":-15993.772355983903},{"$f":"BK$3*('COM-Appliance class'!$U61/'Volume per connection'!$J$69)","v":-15993.772355983903},{"$f":"BL$3*('COM-Appliance class'!$U61/'Volume per connection'!$J$69)","v":-15993.772355983903},{"$f":"BM$3*('COM-Appliance class'!$U61/'Volume per connection'!$J$69)","v":-15993.772355983903},{"$f":"BN$3*('COM-Appliance class'!$U61/'Volume per connection'!$J$69)","v":-15993.772355983903},{"$f":"BO$3*('COM-Appliance class'!$U61/'Volume per connection'!$J$69)","v":-15993.772355983903},{"$f":"BP$3*('COM-Appliance class'!$U61/'Volume per connection'!$J$69)","v":-15993.772355983903},{"$f":"BQ$3*('COM-Appliance class'!$U61/'Volume per connection'!$J$69)","v":-15993.772355983903},{"$f":"BR$3*('COM-Appliance class'!$U61/'Volume per connection'!$J$69)","v":-15993.772355983903},{"$f":"BS$3*('COM-Appliance class'!$U61/'Volume per connection'!$J$69)","v":-15993.772355983903},{"$f":"BT$3*('COM-Appliance class'!$U61/'Volume per connection'!$J$69)","v":-15993.772355983903},{"$f":"BU$3*('COM-Appliance class'!$U61/'Volume per connection'!$J$69)","v":-15993.772355983903},{"$f":"BV$3*('COM-Appliance class'!$U61/'Volume per connection'!$J$69)","v":-15993.772355983903},{"$f":"BW$3*('COM-Appliance class'!$U61/'Volume per connection'!$J$69)","v":-15993.772355983903},{"$f":"BX$3*('COM-Appliance class'!$U61/'Volume per connection'!$J$69)","v":-15993.772355983903},{"$f":"BY$3*('COM-Appliance class'!$U61/'Volume per connection'!$J$69)","v":-15993.772355983903},{"$f":"BZ$3*('COM-Appliance class'!$U61/'Volume per connection'!$J$69)","v":-15993.772355983903},{"$f":"CA$3*('COM-Appliance class'!$U61/'Volume per connection'!$J$69)","v":-15993.772355983903},{"$f":"CB$3*('COM-Appliance class'!$U61/'Volume per connection'!$J$69)","v":-15993.772355983903},{"$f":"CC$3*('COM-Appliance class'!$U61/'Volume per connection'!$J$69)","v":-15993.772355983903},{"$f":"CD$3*('COM-Appliance class'!$U61/'Volume per connection'!$J$69)","v":-15993.772355983903}]
["South Gippsland (S)",null,{"$f":"C$3*('COM-Appliance class'!$U62/'Volume per connection'!$J$69)","v":-28081.0176040111},{"$f":"D$3*('COM-Appliance class'!$U62/'Volume per connection'!$J$69)","v":-28081.0176040111},{"$f":"E$3*('COM-Appliance class'!$U62/'Volume per connection'!$J$69)","v":-17886.706458334556},{"$f":"F$3*('COM-Appliance class'!$U62/'Volume per connection'!$J$69)","v":-17886.706458334556},{"$f":"G$3*('COM-Appliance class'!$U62/'Volume per connection'!$J$69)","v":-25260.523662509899},{"$f":"H$3*('COM-Appliance class'!$U62/'Volume per connection'!$J$69)","v":-25260.523662509899},{"$f":"I$3*('COM-Appliance class'!$U62/'Volume per connection'!$J$69)","v":-25260.523662509899},{"$f":"J$3*('COM-Appliance class'!$U62/'Volume per connection'!$J$69)","v":-27715.148577845132},{"$f":"K$3*('COM-Appliance class'!$U62/'Volume per connection'!$J$69)","v":-25913.061374098244},{"$f":"L$3*('COM-Appliance class'!$U62/'Volume per connection'!$J$69)","v":-25558.032129081839},{"$f":"M$3*('COM-Appliance class'!$U62/'Volume per connection'!$J$69)","v":-25204.778030290523},{"$f":"N$3*('COM-Appliance class'!$U62/'Volume per connection'!$J$69)","v":-24853.290201993161},{"$f":"O$3*('COM-Appliance class'!$U62/'Volume per connection'!$J$69)","v":-24503.55981283728},{"$f":"P$3*('COM-Appliance class'!$U62/'Volume per connection'!$J$69)","v":-24155.578075627192},{"$f":"Q$3*('COM-Appliance class'!$U62/'Volume per connection'!$J$69)","v":-23809.33624710314},{"$f":"R$3*('COM-Appliance class'!$U62/'Volume per connection'!$J$69)","v":-23464.825627721719},{"$f":"S$3*('COM-Appliance class'!$U62/'Volume per connection'!$J$69)","v":-23122.037561437202},{"$f":"T$3*('COM-Appliance class'!$U62/'Volume per connection'!$J$69)","v":-22780.963435484111},{"$f":"U$3*('COM-Appliance class'!$U62/'Volume per connection'!$J$69)","v":-22441.594680160779},{"$f":"V$3*('COM-Appliance class'!$U62/'Volume per connection'!$J$69)","v":-22103.922768614062},{"$f":"W$3*('COM-Appliance class'!$U62/'Volume per connection'!$J$69)","v":-21767.93921662508},{"$f":"X$3*('COM-Appliance class'!$U62/'Volume per connection'!$J$69)","v":-21433.635582396044},{"$f":"Y$3*('COM-Appliance class'!$U62/'Volume per connection'!$J$69)","v":-21101.003466338156},{"$f":"Z$3*('COM-Appliance class'!$U62/'Volume per connection'!$J$69)","v":-20770.034510860554},{"$f":"AA$3*('COM-Appliance class'!$U62/'Volume per connection'!$J$69)","v":-20440.720400160339},{"$f":"AB$3*('COM-Appliance class'!$U62/'Volume per connection'!$J$69)","v":-20113.052860013628},{"$f":"AC$3*('COM-Appliance class'!$U62/'Volume per connection'!$J$69)","v":-19787.023657567654},{"$f":"AD$3*('COM-Appliance class'!$U62/'Volume per connection'!$J$69)","v":-19462.62460113391},{"$f":"AE$3*('COM-Appliance class'!$U62/'Volume per connection'!$J$69)","v":-19139.847539982329},{"$f":"AF$3*('COM-Appliance class'!$U62/'Volume per connection'!$J$69)","v":-18818.684364136509},{"$f":"AG$3*('COM-Appliance class'!$U62/'Volume per connection'!$J$69)","v":-18818.684364136509},{"$f":"AH$3*('COM-Appliance class'!$U62/'Volume per connection'!$J$69)","v":-18818.684364136509},{"$f":"AI$3*('COM-Appliance class'!$U62/'Volume per connection'!$J$69)","v":-18818.684364136509},{"$f":"AJ$3*('COM-Appliance class'!$U62/'Volume per connection'!$J$69)","v":-18818.684364136509},{"$f":"AK$3*('COM-Appliance class'!$U62/'Volume per connection'!$J$69)","v":-18818.684364136509},{"$f":"AL$3*('COM-Appliance class'!$U62/'Volume per connection'!$J$69)","v":-18818.684364136509},{"$f":"AM$3*('COM-Appliance class'!$U62/'Volume per connection'!$J$69)","v":-18818.684364136509},{"$f":"AN$3*('COM-Appliance class'!$U62/'Volume per connection'!$J$69)","v":-18818.684364136509},{"$f":"AO$3*('COM-Appliance class'!$U62/'Volume per connection'!$J$69)","v":-18818.684364136509},{"$f":"AP$3*('COM-Appliance class'!$U62/'Volume per connection'!$J$69)","v":-18818.684364136509},{"$f":"AQ$3*('COM-Appliance class'!$U62/'Volume per connection'!$J$69)","v":-18818.684364136509},{"$f":"AR$3*('COM-Appliance class'!$U62/'Volume per connection'!$J$69)","v":-18818.684364136509},{"$f":"AS$3*('COM-Appliance class'!$U62/'Volume per connection'!$J$69)","v":-18818.684364136509},{"$f":"AT$3*('COM-Appliance class'!$U62/'Volume per connection'!$J$69)","v":-18818.684364136509},{"$f":"AU$3*('COM-Appliance class'!$U62/'Volume per connection'!$J$69)","v":-18818.684364136509},{"$f":"AV$3*('COM-Appliance class'!$U62/'Volume per connection'!$J$69)","v":-18818.684364136509},{"$f":"AW$3*('COM-Appliance class'!$U62/'Volume per connection'!$J$69)","v":-18818.684364136509},{"$f":"AX$3*('COM-Appliance class'!$U62/'Volume per connection'!$J$69)","v":-18818.684364136509},{"$f":"AY$3*('COM-Appliance class'!$U62/'Volume per connection'!$J$69)","v":-18818.684364136509},{"$f":"AZ$3*('COM-Appliance class'!$U62/'Volume per connection'!$J$69)","v":-18818.684364136509},{"$f":"BA$3*('COM-Appliance class'!$U62/'Volume per connection'!$J$69)","v":-18818.684364136509},{"$f":"BB$3*('COM-Appliance class'!$U62/'Volume per connection'!$J$69)","v":-18818.684364136509},{"$f":"BC$3*('COM-Appliance class'!$U62/'Volume per connection'!$J$69)","v":-18818.684364136509},{"$f":"BD$3*('COM-Appliance class'!$U62/'Volume per connection'!$J$69)","v":-18818.684364136509},{"$f":"BE$3*('COM-Appliance class'!$U62/'Volume per connection'!$J$69)","v":-18818.684364136509},{"$f":"BF$3*('COM-Appliance class'!$U62/'Volume per connection'!$J$69)","v":-18818.684364136509},{"$f":"BG$3*('COM-Appliance class'!$U62/'Volume per connection'!$J$69)","v":-18818.684364136509},{"$f":"BH$3*('COM-Appliance class'!$U62/'Volume per connection'!$J$69)","v":-18818.684364136509},{"$f":"BI$3*('COM-Appliance class'!$U62/'Volume per connection'!$J$69)","v":-18818.684364136509},{"$f":"BJ$3*('COM-Appliance class'!$U62/'Volume per connection'!$J$69)","v":-18818.684364136509},{"$f":"BK$3*('COM-Appliance class'!$U62/'Volume per connection'!$J$69)","v":-18818.684364136509},{"$f":"BL$3*('COM-Appliance class'!$U62/'Volume per connection'!$J$69)","v":-18818.684364136509},{"$f":"BM$3*('COM-Appliance class'!$U62/'Volume per connection'!$J$69)","v":-18818.684364136509},{"$f":"BN$3*('COM-Appliance class'!$U62/'Volume per connection'!$J$69)","v":-18818.684364136509},{"$f":"BO$3*('COM-Appliance class'!$U62/'Volume per connection'!$J$69)","v":-18818.684364136509},{"$f":"BP$3*('COM-Appliance class'!$U62/'Volume per connection'!$J$69)","v":-18818.684364136509},{"$f":"BQ$3*('COM-Appliance class'!$U62/'Volume per connection'!$J$69)","v":-18818.684364136509},{"$f":"BR$3*('COM-Appliance class'!$U62/'Volume per connection'!$J$69)","v":-18818.684364136509},{"$f":"BS$3*('COM-Appliance class'!$U62/'Volume per connection'!$J$69)","v":-18818.684364136509},{"$f":"BT$3*('COM-Appliance class'!$U62/'Volume per connection'!$J$69)","v":-18818.684364136509},{"$f":"BU$3*('COM-Appliance class'!$U62/'Volume per connection'!$J$69)","v":-18818.684364136509},{"$f":"BV$3*('COM-Appliance class'!$U62/'Volume per connection'!$J$69)","v":-18818.684364136509},{"$f":"BW$3*('COM-Appliance class'!$U62/'Volume per connection'!$J$69)","v":-18818.684364136509},{"$f":"BX$3*('COM-Appliance class'!$U62/'Volume per connection'!$J$69)","v":-18818.684364136509},{"$f":"BY$3*('COM-Appliance class'!$U62/'Volume per connection'!$J$69)","v":-18818.684364136509},{"$f":"BZ$3*('COM-Appliance class'!$U62/'Volume per connection'!$J$69)","v":-18818.684364136509},{"$f":"CA$3*('COM-Appliance class'!$U62/'Volume per connection'!$J$69)","v":-18818.684364136509},{"$f":"CB$3*('COM-Appliance class'!$U62/'Volume per connection'!$J$69)","v":-18818.684364136509},{"$f":"CC$3*('COM-Appliance class'!$U62/'Volume per connection'!$J$69)","v":-18818.684364136509},{"$f":"CD$3*('COM-Appliance class'!$U62/'Volume per connection'!$J$69)","v":-18818.684364136509}]
["Stonnington (C)",null,{"$f":"C$3*('COM-Appliance class'!$U63/'Volume per connection'!$J$69)","v":-24573.463369881883},{"$f":"D$3*('COM-Appliance class'!$U63/'Volume per connection'!$J$69)","v":-24573.463369881883},{"$f":"E$3*('COM-Appliance class'!$U63/'Volume per connection'!$J$69)","v":-15652.507047997082},{"$f":"F$3*('COM-Appliance class'!$U63/'Volume per connection'!$J$69)","v":-15652.507047997082},{"$f":"G$3*('COM-Appliance class'!$U63/'Volume per connection'!$J$69)","v":-22105.272738978489},{"$f":"H$3*('COM-Appliance class'!$U63/'Volume per connection'!$J$69)","v":-22105.272738978489},{"$f":"I$3*('COM-Appliance class'!$U63/'Volume per connection'!$J$69)","v":-22105.272738978489},{"$f":"J$3*('COM-Appliance class'!$U63/'Volume per connection'!$J$69)","v":-24253.29444867514},{"$f":"K$3*('COM-Appliance class'!$U63/'Volume per connection'!$J$69)","v":-22676.30302638845},{"$f":"L$3*('COM-Appliance class'!$U63/'Volume per connection'!$J$69)","v":-22365.619906899177},{"$f":"M$3*('COM-Appliance class'!$U63/'Volume per connection'!$J$69)","v":-22056.49020300735},{"$f":"N$3*('COM-Appliance class'!$U63/'Volume per connection'!$J$69)","v":-21748.906147634985},{"$f":"O$3*('COM-Appliance class'!$U63/'Volume per connection'!$J$69)","v":-21442.860012539477},{"$f":"P$3*('COM-Appliance class'!$U63/'Volume per connection'!$J$69)","v":-21138.344108119454},{"$f":"Q$3*('COM-Appliance class'!$U63/'Volume per connection'!$J$69)","v":-20835.350783221522},{"$f":"R$3*('COM-Appliance class'!$U63/'Volume per connection'!$J$69)","v":-20533.872424948087},{"$f":"S$3*('COM-Appliance class'!$U63/'Volume per connection'!$J$69)","v":-20233.901458466018},{"$f":"T$3*('COM-Appliance class'!$U63/'Volume per connection'!$J$69)","v":-19935.43034681636},{"$f":"U$3*('COM-Appliance class'!$U63/'Volume per connection'!$J$69)","v":-19638.451590724944},{"$f":"V$3*('COM-Appliance class'!$U63/'Volume per connection'!$J$69)","v":-19342.957728413989},{"$f":"W$3*('COM-Appliance class'!$U63/'Volume per connection'!$J$69)","v":-19048.941335414587},{"$f":"X$3*('COM-Appliance class'!$U63/'Volume per connection'!$J$69)","v":-18756.395024380185},{"$f":"Y$3*('COM-Appliance class'!$U63/'Volume per connection'!$J$69)","v":-18465.311444900955},{"$f":"Z$3*('COM-Appliance class'!$U63/'Volume per connection'!$J$69)","v":-18175.683283319118},{"$f":"AA$3*('COM-Appliance class'!$U63/'Volume per connection'!$J$69)","v":-17887.50326254519},{"$f":"AB$3*('COM-Appliance class'!$U63/'Volume per connection'!$J$69)","v":-17600.764141875134},{"$f":"AC$3*('COM-Appliance class'!$U63/'Volume per connection'!$J$69)","v":-17315.458716808433},{"$f":"AD$3*('COM-Appliance class'!$U63/'Volume per connection'!$J$69)","v":-17031.57981886706},{"$f":"AE$3*('COM-Appliance class'!$U63/'Volume per connection'!$J$69)","v":-16749.120315415395},{"$f":"AF$3*('COM-Appliance class'!$U63/'Volume per connection'!$J$69)","v":-16468.073109480989},{"$f":"AG$3*('COM-Appliance class'!$U63/'Volume per connection'!$J$69)","v":-16468.073109480989},{"$f":"AH$3*('COM-Appliance class'!$U63/'Volume per connection'!$J$69)","v":-16468.073109480989},{"$f":"AI$3*('COM-Appliance class'!$U63/'Volume per connection'!$J$69)","v":-16468.073109480989},{"$f":"AJ$3*('COM-Appliance class'!$U63/'Volume per connection'!$J$69)","v":-16468.073109480989},{"$f":"AK$3*('COM-Appliance class'!$U63/'Volume per connection'!$J$69)","v":-16468.073109480989},{"$f":"AL$3*('COM-Appliance class'!$U63/'Volume per connection'!$J$69)","v":-16468.073109480989},{"$f":"AM$3*('COM-Appliance class'!$U63/'Volume per connection'!$J$69)","v":-16468.073109480989},{"$f":"AN$3*('COM-Appliance class'!$U63/'Volume per connection'!$J$69)","v":-16468.073109480989},{"$f":"AO$3*('COM-Appliance class'!$U63/'Volume per connection'!$J$69)","v":-16468.073109480989},{"$f":"AP$3*('COM-Appliance class'!$U63/'Volume per connection'!$J$69)","v":-16468.073109480989},{"$f":"AQ$3*('COM-Appliance class'!$U63/'Volume per connection'!$J$69)","v":-16468.073109480989},{"$f":"AR$3*('COM-Appliance class'!$U63/'Volume per connection'!$J$69)","v":-16468.073109480989},{"$f":"AS$3*('COM-Appliance class'!$U63/'Volume per connection'!$J$69)","v":-16468.073109480989},{"$f":"AT$3*('COM-Appliance class'!$U63/'Volume per connection'!$J$69)","v":-16468.073109480989},{"$f":"AU$3*('COM-Appliance class'!$U63/'Volume per connection'!$J$69)","v":-16468.073109480989},{"$f":"AV$3*('COM-Appliance class'!$U63/'Volume per connection'!$J$69)","v":-16468.073109480989},{"$f":"AW$3*('COM-Appliance class'!$U63/'Volume per connection'!$J$69)","v":-16468.073109480989},{"$f":"AX$3*('COM-Appliance class'!$U63/'Volume per connection'!$J$69)","v":-16468.073109480989},{"$f":"AY$3*('COM-Appliance class'!$U63/'Volume per connection'!$J$69)","v":-16468.073109480989},{"$f":"AZ$3*('COM-Appliance class'!$U63/'Volume per connection'!$J$69)","v":-16468.073109480989},{"$f":"BA$3*('COM-Appliance class'!$U63/'Volume per connection'!$J$69)","v":-16468.073109480989},{"$f":"BB$3*('COM-Appliance class'!$U63/'Volume per connection'!$J$69)","v":-16468.073109480989},{"$f":"BC$3*('COM-Appliance class'!$U63/'Volume per connection'!$J$69)","v":-16468.073109480989},{"$f":"BD$3*('COM-Appliance class'!$U63/'Volume per connection'!$J$69)","v":-16468.073109480989},{"$f":"BE$3*('COM-Appliance class'!$U63/'Volume per connection'!$J$69)","v":-16468.073109480989},{"$f":"BF$3*('COM-Appliance class'!$U63/'Volume per connection'!$J$69)","v":-16468.073109480989},{"$f":"BG$3*('COM-Appliance class'!$U63/'Volume per connection'!$J$69)","v":-16468.073109480989},{"$f":"BH$3*('COM-Appliance class'!$U63/'Volume per connection'!$J$69)","v":-16468.073109480989},{"$f":"BI$3*('COM-Appliance class'!$U63/'Volume per connection'!$J$69)","v":-16468.073109480989},{"$f":"BJ$3*('COM-Appliance class'!$U63/'Volume per connection'!$J$69)","v":-16468.073109480989},{"$f":"BK$3*('COM-Appliance class'!$U63/'Volume per connection'!$J$69)","v":-16468.073109480989},{"$f":"BL$3*('COM-Appliance class'!$U63/'Volume per connection'!$J$69)","v":-16468.073109480989},{"$f":"BM$3*('COM-Appliance class'!$U63/'Volume per connection'!$J$69)","v":-16468.073109480989},{"$f":"BN$3*('COM-Appliance class'!$U63/'Volume per connection'!$J$69)","v":-16468.073109480989},{"$f":"BO$3*('COM-Appliance class'!$U63/'Volume per connection'!$J$69)","v":-16468.073109480989},{"$f":"BP$3*('COM-Appliance class'!$U63/'Volume per connection'!$J$69)","v":-16468.073109480989},{"$f":"BQ$3*('COM-Appliance class'!$U63/'Volume per connection'!$J$69)","v":-16468.073109480989},{"$f":"BR$3*('COM-Appliance class'!$U63/'Volume per connection'!$J$69)","v":-16468.073109480989},{"$f":"BS$3*('COM-Appliance class'!$U63/'Volume per connection'!$J$69)","v":-16468.073109480989},{"$f":"BT$3*('COM-Appliance class'!$U63/'Volume per connection'!$J$69)","v":-16468.073109480989},{"$f":"BU$3*('COM-Appliance class'!$U63/'Volume per connection'!$J$69)","v":-16468.073109480989},{"$f":"BV$3*('COM-Appliance class'!$U63/'Volume per connection'!$J$69)","v":-16468.073109480989},{"$f":"BW$3*('COM-Appliance class'!$U63/'Volume per connection'!$J$69)","v":-16468.073109480989},{"$f":"BX$3*('COM-Appliance class'!$U63/'Volume per connection'!$J$69)","v":-16468.073109480989},{"$f":"BY$3*('COM-Appliance class'!$U63/'Volume per connection'!$J$69)","v":-16468.073109480989},{"$f":"BZ$3*('COM-Appliance class'!$U63/'Volume per connection'!$J$69)","v":-16468.073109480989},{"$f":"CA$3*('COM-Appliance class'!$U63/'Volume per connection'!$J$69)","v":-16468.073109480989},{"$f":"CB$3*('COM-Appliance class'!$U63/'Volume per connection'!$J$69)","v":-16468.073109480989},{"$f":"CC$3*('COM-Appliance class'!$U63/'Volume per connection'!$J$69)","v":-16468.073109480989},{"$f":"CD$3*('COM-Appliance class'!$U63/'Volume per connection'!$J$69)","v":-16468.073109480989}]
["Whitehorse (C)",null,{"$f":"C$3*('COM-Appliance class'!$U64/'Volume per connection'!$J$69)","v":-24277.502703429873},{"$f":"D$3*('COM-Appliance class'!$U64/'Volume per connection'!$J$69)","v":-24277.502703429873},{"$f":"E$3*('COM-Appliance class'!$U64/'Volume per connection'!$J$69)","v":-15463.989607543501},{"$f":"F$3*('COM-Appliance class'!$U64/'Volume per connection'!$J$69)","v":-15463.989607543501},{"$f":"G$3*('COM-Appliance class'!$U64/'Volume per connection'!$J$69)","v":-21839.038746909224},{"$f":"H$3*('COM-Appliance class'!$U64/'Volume per connection'!$J$69)","v":-21839.038746909224},{"$f":"I$3*('COM-Appliance class'!$U64/'Volume per connection'!$J$69)","v":-21839.038746909224},{"$f":"J$3*('COM-Appliance class'!$U64/'Volume per connection'!$J$69)","v":-23961.189869005499},{"$f":"K$3*('COM-Appliance class'!$U64/'Volume per connection'!$J$69)","v":-22403.19159494964},{"$f":"L$3*('COM-Appliance class'!$U64/'Volume per connection'!$J$69)","v":-22096.250316067668},{"$f":"M$3*('COM-Appliance class'!$U64/'Volume per connection'!$J$69)","v":-21790.843743580106},{"$f":"N$3*('COM-Appliance class'!$U64/'Volume per connection'!$J$69)","v":-21486.964203954984},{"$f":"O$3*('COM-Appliance class'!$U64/'Volume per connection'!$J$69)","v":-21184.604062027978},{"$f":"P$3*('COM-Appliance class'!$U64/'Volume per connection'!$J$69)","v":-20883.755720810619},{"$f":"Q$3*('COM-Appliance class'!$U64/'Volume per connection'!$J$69)","v":-20584.411621299339},{"$f":"R$3*('COM-Appliance class'!$U64/'Volume per connection'!$J$69)","v":-20286.564242285622},{"$f":"S$3*('COM-Appliance class'!$U64/'Volume per connection'!$J$69)","v":-19990.206100166972},{"$f":"T$3*('COM-Appliance class'!$U64/'Volume per connection'!$J$69)","v":-19695.329748758915},{"$f":"U$3*('COM-Appliance class'!$U64/'Volume per connection'!$J$69)","v":-19401.927779107893},{"$f":"V$3*('COM-Appliance class'!$U64/'Volume per connection'!$J$69)","v":-19109.992819305131},{"$f":"W$3*('COM-Appliance class'!$U64/'Volume per connection'!$J$69)","v":-18819.517534301376},{"$f":"X$3*('COM-Appliance class'!$U64/'Volume per connection'!$J$69)","v":-18530.494625722647},{"$f":"Y$3*('COM-Appliance class'!$U64/'Volume per connection'!$J$69)","v":-18242.916831686813},{"$f":"Z$3*('COM-Appliance class'!$U64/'Volume per connection'!$J$69)","v":-17956.776926621151},{"$f":"AA$3*('COM-Appliance class'!$U64/'Volume per connection'!$J$69)","v":-17672.067721080821},{"$f":"AB$3*('COM-Appliance class'!$U64/'Volume per connection'!$J$69)","v":-17388.782061568192},{"$f":"AC$3*('COM-Appliance class'!$U64/'Volume per connection'!$J$69)","v":-17106.912830353132},{"$f":"AD$3*('COM-Appliance class'!$U64/'Volume per connection'!$J$69)","v":-16826.452945294142},{"$f":"AE$3*('COM-Appliance class'!$U64/'Volume per connection'!$J$69)","v":-16547.395359660448},{"$f":"AF$3*('COM-Appliance class'!$U64/'Volume per connection'!$J$69)","v":-16269.733061954923},{"$f":"AG$3*('COM-Appliance class'!$U64/'Volume per connection'!$J$69)","v":-16269.733061954923},{"$f":"AH$3*('COM-Appliance class'!$U64/'Volume per connection'!$J$69)","v":-16269.733061954923},{"$f":"AI$3*('COM-Appliance class'!$U64/'Volume per connection'!$J$69)","v":-16269.733061954923},{"$f":"AJ$3*('COM-Appliance class'!$U64/'Volume per connection'!$J$69)","v":-16269.733061954923},{"$f":"AK$3*('COM-Appliance class'!$U64/'Volume per connection'!$J$69)","v":-16269.733061954923},{"$f":"AL$3*('COM-Appliance class'!$U64/'Volume per connection'!$J$69)","v":-16269.733061954923},{"$f":"AM$3*('COM-Appliance class'!$U64/'Volume per connection'!$J$69)","v":-16269.733061954923},{"$f":"AN$3*('COM-Appliance class'!$U64/'Volume per connection'!$J$69)","v":-16269.733061954923},{"$f":"AO$3*('COM-Appliance class'!$U64/'Volume per connection'!$J$69)","v":-16269.733061954923},{"$f":"AP$3*('COM-Appliance class'!$U64/'Volume per connection'!$J$69)","v":-16269.733061954923},{"$f":"AQ$3*('COM-Appliance class'!$U64/'Volume per connection'!$J$69)","v":-16269.733061954923},{"$f":"AR$3*('COM-Appliance class'!$U64/'Volume per connection'!$J$69)","v":-16269.733061954923},{"$f":"AS$3*('COM-Appliance class'!$U64/'Volume per connection'!$J$69)","v":-16269.733061954923},{"$f":"AT$3*('COM-Appliance class'!$U64/'Volume per connection'!$J$69)","v":-16269.733061954923},{"$f":"AU$3*('COM-Appliance class'!$U64/'Volume per connection'!$J$69)","v":-16269.733061954923},{"$f":"AV$3*('COM-Appliance class'!$U64/'Volume per connection'!$J$69)","v":-16269.733061954923},{"$f":"AW$3*('COM-Appliance class'!$U64/'Volume per connection'!$J$69)","v":-16269.733061954923},{"$f":"AX$3*('COM-Appliance class'!$U64/'Volume per connection'!$J$69)","v":-16269.733061954923},{"$f":"AY$3*('COM-Appliance class'!$U64/'Volume per connection'!$J$69)","v":-16269.733061954923},{"$f":"AZ$3*('COM-Appliance class'!$U64/'Volume per connection'!$J$69)","v":-16269.733061954923},{"$f":"BA$3*('COM-Appliance class'!$U64/'Volume per connection'!$J$69)","v":-16269.733061954923},{"$f":"BB$3*('COM-Appliance class'!$U64/'Volume per connection'!$J$69)","v":-16269.733061954923},{"$f":"BC$3*('COM-Appliance class'!$U64/'Volume per connection'!$J$69)","v":-16269.733061954923},{"$f":"BD$3*('COM-Appliance class'!$U64/'Volume per connection'!$J$69)","v":-16269.733061954923},{"$f":"BE$3*('COM-Appliance class'!$U64/'Volume per connection'!$J$69)","v":-16269.733061954923},{"$f":"BF$3*('COM-Appliance class'!$U64/'Volume per connection'!$J$69)","v":-16269.733061954923},{"$f":"BG$3*('COM-Appliance class'!$U64/'Volume per connection'!$J$69)","v":-16269.733061954923},{"$f":"BH$3*('COM-Appliance class'!$U64/'Volume per connection'!$J$69)","v":-16269.733061954923},{"$f":"BI$3*('COM-Appliance class'!$U64/'Volume per connection'!$J$69)","v":-16269.733061954923},{"$f":"BJ$3*('COM-Appliance class'!$U64/'Volume per connection'!$J$69)","v":-16269.733061954923},{"$f":"BK$3*('COM-Appliance class'!$U64/'Volume per connection'!$J$69)","v":-16269.733061954923},{"$f":"BL$3*('COM-Appliance class'!$U64/'Volume per connection'!$J$69)","v":-16269.733061954923},{"$f":"BM$3*('COM-Appliance class'!$U64/'Volume per connection'!$J$69)","v":-16269.733061954923},{"$f":"BN$3*('COM-Appliance class'!$U64/'Volume per connection'!$J$69)","v":-16269.733061954923},{"$f":"BO$3*('COM-Appliance class'!$U64/'Volume per connection'!$J$69)","v":-16269.733061954923},{"$f":"BP$3*('COM-Appliance class'!$U64/'Volume per connection'!$J$69)","v":-16269.733061954923},{"$f":"BQ$3*('COM-Appliance class'!$U64/'Volume per connection'!$J$69)","v":-16269.733061954923},{"$f":"BR$3*('COM-Appliance class'!$U64/'Volume per connection'!$J$69)","v":-16269.733061954923},{"$f":"BS$3*('COM-Appliance class'!$U64/'Volume per connection'!$J$69)","v":-16269.733061954923},{"$f":"BT$3*('COM-Appliance class'!$U64/'Volume per connection'!$J$69)","v":-16269.733061954923},{"$f":"BU$3*('COM-Appliance class'!$U64/'Volume per connection'!$J$69)","v":-16269.733061954923},{"$f":"BV$3*('COM-Appliance class'!$U64/'Volume per connection'!$J$69)","v":-16269.733061954923},{"$f":"BW$3*('COM-Appliance class'!$U64/'Volume per connection'!$J$69)","v":-16269.733061954923},{"$f":"BX$3*('COM-Appliance class'!$U64/'Volume per connection'!$J$69)","v":-16269.733061954923},{"$f":"BY$3*('COM-Appliance class'!$U64/'Volume per connection'!$J$69)","v":-16269.733061954923},{"$f":"BZ$3*('COM-Appliance class'!$U64/'Volume per connection'!$J$69)","v":-16269.733061954923},{"$f":"CA$3*('COM-Appliance class'!$U64/'Volume per connection'!$J$69)","v":-16269.733061954923},{"$f":"CB$3*('COM-Appliance class'!$U64/'Volume per connection'!$J$69)","v":-16269.733061954923},{"$f":"CC$3*('COM-Appliance class'!$U64/'Volume per connection'!$J$69)","v":-16269.733061954923},{"$f":"CD$3*('COM-Appliance class'!$U64/'Volume per connection'!$J$69)","v":-16269.733061954923}]
["Yarra Ranges (S)",null,{"$f":"C$3*('COM-Appliance class'!$U65/'Volume per connection'!$J$69)","v":-24139.309879447483},{"$f":"D$3*('COM-Appliance class'!$U65/'Volume per connection'!$J$69)","v":-24139.309879447483},{"$f":"E$3*('COM-Appliance class'!$U65/'Volume per connection'!$J$69)","v":-15375.965216402197},{"$f":"F$3*('COM-Appliance class'!$U65/'Volume per connection'!$J$69)","v":-15375.965216402197},{"$f":"G$3*('COM-Appliance class'!$U65/'Volume per connection'!$J$69)","v":-21714.726189956244},{"$f":"H$3*('COM-Appliance class'!$U65/'Volume per connection'!$J$69)","v":-21714.726189956244},{"$f":"I$3*('COM-Appliance class'!$U65/'Volume per connection'!$J$69)","v":-21714.726189956244},{"$f":"J$3*('COM-Appliance class'!$U65/'Volume per connection'!$J$69)","v":-23824.797566451733},{"$f":"K$3*('COM-Appliance class'!$U65/'Volume per connection'!$J$69)","v":-22275.667757323325},{"$f":"L$3*('COM-Appliance class'!$U65/'Volume per connection'!$J$69)","v":-21970.473654938192},{"$f":"M$3*('COM-Appliance class'!$U65/'Volume per connection'!$J$69)","v":-21666.805523064988},{"$f":"N$3*('COM-Appliance class'!$U65/'Volume per connection'!$J$69)","v":-21364.655731851151},{"$f":"O$3*('COM-Appliance class'!$U65/'Volume per connection'!$J$69)","v":-21064.01668959338},{"$f":"P$3*('COM-Appliance class'!$U65/'Volume per connection'!$J$69)","v":-20764.880842546907},{"$f":"Q$3*('COM-Appliance class'!$U65/'Volume per connection'!$J$69)","v":-20467.240674735654},{"$f":"R$3*('COM-Appliance class'!$U65/'Volume per connection'!$J$69)","v":-20171.088707763465},{"$f":"S$3*('COM-Appliance class'!$U65/'Volume per connection'!$J$69)","v":-19876.417500626139},{"$f":"T$3*('COM-Appliance class'!$U65/'Volume per connection'!$J$69)","v":-19583.219649524497},{"$f":"U$3*('COM-Appliance class'!$U65/'Volume per connection'!$J$69)","v":-19291.487787678358},{"$f":"V$3*('COM-Appliance class'!$U65/'Volume per connection'!$J$69)","v":-19001.214585141453},{"$f":"W$3*('COM-Appliance class'!$U65/'Volume per connection'!$J$69)","v":-18712.392748617229},{"$f":"X$3*('COM-Appliance class'!$U65/'Volume per connection'!$J$69)","v":-18425.015021275631},{"$f":"Y$3*('COM-Appliance class'!$U65/'Volume per connection'!$J$69)","v":-18139.074182570741},{"$f":"Z$3*('COM-Appliance class'!$U65/'Volume per connection'!$J$69)","v":-17854.563048059375},{"$f":"AA$3*('COM-Appliance class'!$U65/'Volume per connection'!$J$69)","v":-17571.47446922056},{"$f":"AB$3*('COM-Appliance class'!$U65/'Volume per connection'!$J$69)","v":-17289.801333275947},{"$f":"AC$3*('COM-Appliance class'!$U65/'Volume per connection'!$J$69)","v":-17009.536563011057},{"$f":"AD$3*('COM-Appliance class'!$U65/'Volume per connection'!$J$69)","v":-16730.673116597492},{"$f":"AE$3*('COM-Appliance class'!$U65/'Volume per connection'!$J$69)","v":-16453.203987415993},{"$f":"AF$3*('COM-Appliance class'!$U65/'Volume per connection'!$J$69)","v":-16177.122203880397},{"$f":"AG$3*('COM-Appliance class'!$U65/'Volume per connection'!$J$69)","v":-16177.122203880397},{"$f":"AH$3*('COM-Appliance class'!$U65/'Volume per connection'!$J$69)","v":-16177.122203880397},{"$f":"AI$3*('COM-Appliance class'!$U65/'Volume per connection'!$J$69)","v":-16177.122203880397},{"$f":"AJ$3*('COM-Appliance class'!$U65/'Volume per connection'!$J$69)","v":-16177.122203880397},{"$f":"AK$3*('COM-Appliance class'!$U65/'Volume per connection'!$J$69)","v":-16177.122203880397},{"$f":"AL$3*('COM-Appliance class'!$U65/'Volume per connection'!$J$69)","v":-16177.122203880397},{"$f":"AM$3*('COM-Appliance class'!$U65/'Volume per connection'!$J$69)","v":-16177.122203880397},{"$f":"AN$3*('COM-Appliance class'!$U65/'Volume per connection'!$J$69)","v":-16177.122203880397},{"$f":"AO$3*('COM-Appliance class'!$U65/'Volume per connection'!$J$69)","v":-16177.122203880397},{"$f":"AP$3*('COM-Appliance class'!$U65/'Volume per connection'!$J$69)","v":-16177.122203880397},{"$f":"AQ$3*('COM-Appliance class'!$U65/'Volume per connection'!$J$69)","v":-16177.122203880397},{"$f":"AR$3*('COM-Appliance class'!$U65/'Volume per connection'!$J$69)","v":-16177.122203880397},{"$f":"AS$3*('COM-Appliance class'!$U65/'Volume per connection'!$J$69)","v":-16177.122203880397},{"$f":"AT$3*('COM-Appliance class'!$U65/'Volume per connection'!$J$69)","v":-16177.122203880397},{"$f":"AU$3*('COM-Appliance class'!$U65/'Volume per connection'!$J$69)","v":-16177.122203880397},{"$f":"AV$3*('COM-Appliance class'!$U65/'Volume per connection'!$J$69)","v":-16177.122203880397},{"$f":"AW$3*('COM-Appliance class'!$U65/'Volume per connection'!$J$69)","v":-16177.122203880397},{"$f":"AX$3*('COM-Appliance class'!$U65/'Volume per connection'!$J$69)","v":-16177.122203880397},{"$f":"AY$3*('COM-Appliance class'!$U65/'Volume per connection'!$J$69)","v":-16177.122203880397},{"$f":"AZ$3*('COM-Appliance class'!$U65/'Volume per connection'!$J$69)","v":-16177.122203880397},{"$f":"BA$3*('COM-Appliance class'!$U65/'Volume per connection'!$J$69)","v":-16177.122203880397},{"$f":"BB$3*('COM-Appliance class'!$U65/'Volume per connection'!$J$69)","v":-16177.122203880397},{"$f":"BC$3*('COM-Appliance class'!$U65/'Volume per connection'!$J$69)","v":-16177.122203880397},{"$f":"BD$3*('COM-Appliance class'!$U65/'Volume per connection'!$J$69)","v":-16177.122203880397},{"$f":"BE$3*('COM-Appliance class'!$U65/'Volume per connection'!$J$69)","v":-16177.122203880397},{"$f":"BF$3*('COM-Appliance class'!$U65/'Volume per connection'!$J$69)","v":-16177.122203880397},{"$f":"BG$3*('COM-Appliance class'!$U65/'Volume per connection'!$J$69)","v":-16177.122203880397},{"$f":"BH$3*('COM-Appliance class'!$U65/'Volume per connection'!$J$69)","v":-16177.122203880397},{"$f":"BI$3*('COM-Appliance class'!$U65/'Volume per connection'!$J$69)","v":-16177.122203880397},{"$f":"BJ$3*('COM-Appliance class'!$U65/'Volume per connection'!$J$69)","v":-16177.122203880397},{"$f":"BK$3*('COM-Appliance class'!$U65/'Volume per connection'!$J$69)","v":-16177.122203880397},{"$f":"BL$3*('COM-Appliance class'!$U65/'Volume per connection'!$J$69)","v":-16177.122203880397},{"$f":"BM$3*('COM-Appliance class'!$U65/'Volume per connection'!$J$69)","v":-16177.122203880397},{"$f":"BN$3*('COM-Appliance class'!$U65/'Volume per connection'!$J$69)","v":-16177.122203880397},{"$f":"BO$3*('COM-Appliance class'!$U65/'Volume per connection'!$J$69)","v":-16177.122203880397},{"$f":"BP$3*('COM-Appliance class'!$U65/'Volume per connection'!$J$69)","v":-16177.122203880397},{"$f":"BQ$3*('COM-Appliance class'!$U65/'Volume per connection'!$J$69)","v":-16177.122203880397},{"$f":"BR$3*('COM-Appliance class'!$U65/'Volume per connection'!$J$69)","v":-16177.122203880397},{"$f":"BS$3*('COM-Appliance class'!$U65/'Volume per connection'!$J$69)","v":-16177.122203880397},{"$f":"BT$3*('COM-Appliance class'!$U65/'Volume per connection'!$J$69)","v":-16177.122203880397},{"$f":"BU$3*('COM-Appliance class'!$U65/'Volume per connection'!$J$69)","v":-16177.122203880397},{"$f":"BV$3*('COM-Appliance class'!$U65/'Volume per connection'!$J$69)","v":-16177.122203880397},{"$f":"BW$3*('COM-Appliance class'!$U65/'Volume per connection'!$J$69)","v":-16177.122203880397},{"$f":"BX$3*('COM-Appliance class'!$U65/'Volume per connection'!$J$69)","v":-16177.122203880397},{"$f":"BY$3*('COM-Appliance class'!$U65/'Volume per connection'!$J$69)","v":-16177.122203880397},{"$f":"BZ$3*('COM-Appliance class'!$U65/'Volume per connection'!$J$69)","v":-16177.122203880397},{"$f":"CA$3*('COM-Appliance class'!$U65/'Volume per connection'!$J$69)","v":-16177.122203880397},{"$f":"CB$3*('COM-Appliance class'!$U65/'Volume per connection'!$J$69)","v":-16177.122203880397},{"$f":"CC$3*('COM-Appliance class'!$U65/'Volume per connection'!$J$69)","v":-16177.122203880397},{"$f":"CD$3*('COM-Appliance class'!$U65/'Volume per connection'!$J$69)","v":-16177.122203880397}]
[]
["LGA 500-900 GJ",2020,{"$f":"B180+1","v":2021},{"$f":"C180+1","v":2022},{"$f":"D180+1","v":2023},{"$f":"E180+1","v":2024},{"$f":"F180+1","v":2025},{"$f":"G180+1","v":2026},{"$f":"H180+1","v":2027},{"$f":"I180+1","v":2028},{"$f":"J180+1","v":2029},{"$f":"K180+1","v":2030},{"$f":"L180+1","v":2031},{"$f":"M180+1","v":2032},{"$f":"N180+1","v":2033},{"$f":"O180+1","v":2034},{"$f":"P180+1","v":2035},{"$f":"Q180+1","v":2036},{"$f":"R180+1","v":2037},{"$f":"S180+1","v":2038},{"$f":"T180+1","v":2039},{"$f":"U180+1","v":2040},{"$f":"V180+1","v":2041},{"$f":"W180+1","v":2042},{"$f":"X180+1","v":2043},{"$f":"Y180+1","v":2044},{"$f":"Z180+1","v":2045},{"$f":"AA180+1","v":2046},{"$f":"AB180+1","v":2047},{"$f":"AC180+1","v":2048},{"$f":"AD180+1","v":2049},{"$f":"AE180+1","v":2050},{"$f":"AF180+1","v":2051},{"$f":"AG180+1","v":2052},{"$f":"AH180+1","v":2053},{"$f":"AI180+1","v":2054},{"$f":"AJ180+1","v":2055},{"$f":"AK180+1","v":2056},{"$f":"AL180+1","v":2057},{"$f":"AM180+1","v":2058},{"$f":"AN180+1","v":2059},{"$f":"AO180+1","v":2060},{"$f":"AP180+1","v":2061},{"$f":"AQ180+1","v":2062},{"$f":"AR180+1","v":2063},{"$f":"AS180+1","v":2064},{"$f":"AT180+1","v":2065},{"$f":"AU180+1","v":2066},{"$f":"AV180+1","v":2067},{"$f":"AW180+1","v":2068},{"$f":"AX180+1","v":2069},{"$f":"AY180+1","v":2070},{"$f":"AZ180+1","v":2071},{"$f":"BA180+1","v":2072},{"$f":"BB180+1","v":2073},{"$f":"BC180+1","v":2074},{"$f":"BD180+1","v":2075},{"$f":"BE180+1","v":2076},{"$f":"BF180+1","v":2077},{"$f":"BG180+1","v":2078},{"$f":"BH180+1","v":2079},{"$f":"BI180+1","v":2080},{"$f":"BJ180+1","v":2081},{"$f":"BK180+1","v":2082},{"$f":"BL180+1","v":2083},{"$f":"BM180+1","v":2084},{"$f":"BN180+1","v":2085},{"$f":"BO180+1","v":2086},{"$f":"BP180+1","v":2087},{"$f":"BQ180+1","v":2088},{"$f":"BR180+1","v":2089},{"$f":"BS180+1","v":2090},{"$f":"BT180+1","v":2091},{"$f":"BU180+1","v":2092},{"$f":"BV180+1","v":2093},{"$f":"BW180+1","v":2094},{"$f":"BX180+1","v":2095},{"$f":"BY180+1","v":2096},{"$f":"BZ180+1","v":2097},{"$f":"CA180+1","v":2098},{"$f":"CB180+1","v":2099},{"$f":"CC180+1","v":2100}]
["Bass Coast (S)",null,{"$f":"C$3*('COM-Appliance class'!$AF47/'Volume per connection'!$J$69)","v":-54145.886028041707},{"$f":"D$3*('COM-Appliance class'!$AF47/'Volume per connection'!$J$69)","v":-54145.886028041707},{"$f":"E$3*('COM-Appliance class'!$AF47/'Volume per connection'!$J$69)","v":-34489.190632880796},{"$f":"F$3*('COM-Appliance class'!$AF47/'Volume per connection'!$J$69)","v":-34489.190632880796},{"$f":"G$3*('COM-Appliance class'!$AF47/'Volume per connection'!$J$69)","v":-48707.402791683067},{"$f":"H$3*('COM-Appliance class'!$AF47/'Volume per connection'!$J$69)","v":-48707.402791683067},{"$f":"I$3*('COM-Appliance class'!$AF47/'Volume per connection'!$J$69)","v":-48707.402791683067},{"$f":"J$3*('COM-Appliance class'!$AF47/'Volume per connection'!$J$69)","v":-53440.416487324517},{"$f":"K$3*('COM-Appliance class'!$AF47/'Volume per connection'!$J$69)","v":-49965.627584634116},{"$f":"L$3*('COM-Appliance class'!$AF47/'Volume per connection'!$J$69)","v":-49281.059336133963},{"$f":"M$3*('COM-Appliance class'!$AF47/'Volume per connection'!$J$69)","v":-48599.913928876318},{"$f":"N$3*('COM-Appliance class'!$AF47/'Volume per connection'!$J$69)","v":-47922.174248654963},{"$f":"O$3*('COM-Appliance class'!$AF47/'Volume per connection'!$J$69)","v":-47247.823266834697},{"$f":"P$3*('COM-Appliance class'!$AF47/'Volume per connection'!$J$69)","v":-46576.844039923555},{"$f":"Q$3*('COM-Appliance class'!$AF47/'Volume per connection'!$J$69)","v":-45909.21970914695},{"$f":"R$3*('COM-Appliance class'!$AF47/'Volume per connection'!$J$69)","v":-45244.93350002425},{"$f":"S$3*('COM-Appliance class'!$AF47/'Volume per connection'!$J$69)","v":-44583.968721947153},{"$f":"T$3*('COM-Appliance class'!$AF47/'Volume per connection'!$J$69)","v":-43926.308767760442},{"$f":"U$3*('COM-Appliance class'!$AF47/'Volume per connection'!$J$69)","v":-43271.937113344655},{"$f":"V$3*('COM-Appliance class'!$AF47/'Volume per connection'!$J$69)","v":-42620.837317200952},{"$f":"W$3*('COM-Appliance class'!$AF47/'Volume per connection'!$J$69)","v":-41972.99302003796},{"$f":"X$3*('COM-Appliance class'!$AF47/'Volume per connection'!$J$69)","v":-41328.387944360795},{"$f":"Y$3*('COM-Appliance class'!$AF47/'Volume per connection'!$J$69)","v":-40687.005894062015},{"$f":"Z$3*('COM-Appliance class'!$AF47/'Volume per connection'!$J$69)","v":-40048.830754014722},{"$f":"AA$3*('COM-Appliance class'!$AF47/'Volume per connection'!$J$69)","v":-39413.846489667667},{"$f":"AB$3*('COM-Appliance class'!$AF47/'Volume per connection'!$J$69)","v":-38782.037146642346},{"$f":"AC$3*('COM-Appliance class'!$AF47/'Volume per connection'!$J$69)","v":-38153.386850332165},{"$f":"AD$3*('COM-Appliance class'!$AF47/'Volume per connection'!$J$69)","v":-37527.879805503529},{"$f":"AE$3*('COM-Appliance class'!$AF47/'Volume per connection'!$J$69)","v":-36905.500295899037},{"$f":"AF$3*('COM-Appliance class'!$AF47/'Volume per connection'!$J$69)","v":-36286.232683842558},{"$f":"AG$3*('COM-Appliance class'!$AF47/'Volume per connection'!$J$69)","v":-36286.232683842558},{"$f":"AH$3*('COM-Appliance class'!$AF47/'Volume per connection'!$J$69)","v":-36286.232683842558},{"$f":"AI$3*('COM-Appliance class'!$AF47/'Volume per connection'!$J$69)","v":-36286.232683842558},{"$f":"AJ$3*('COM-Appliance class'!$AF47/'Volume per connection'!$J$69)","v":-36286.232683842558},{"$f":"AK$3*('COM-Appliance class'!$AF47/'Volume per connection'!$J$69)","v":-36286.232683842558},{"$f":"AL$3*('COM-Appliance class'!$AF47/'Volume per connection'!$J$69)","v":-36286.232683842558},{"$f":"AM$3*('COM-Appliance class'!$AF47/'Volume per connection'!$J$69)","v":-36286.232683842558},{"$f":"AN$3*('COM-Appliance class'!$AF47/'Volume per connection'!$J$69)","v":-36286.232683842558},{"$f":"AO$3*('COM-Appliance class'!$AF47/'Volume per connection'!$J$69)","v":-36286.232683842558},{"$f":"AP$3*('COM-Appliance class'!$AF47/'Volume per connection'!$J$69)","v":-36286.232683842558},{"$f":"AQ$3*('COM-Appliance class'!$AF47/'Volume per connection'!$J$69)","v":-36286.232683842558},{"$f":"AR$3*('COM-Appliance class'!$AF47/'Volume per connection'!$J$69)","v":-36286.232683842558},{"$f":"AS$3*('COM-Appliance class'!$AF47/'Volume per connection'!$J$69)","v":-36286.232683842558},{"$f":"AT$3*('COM-Appliance class'!$AF47/'Volume per connection'!$J$69)","v":-36286.232683842558},{"$f":"AU$3*('COM-Appliance class'!$AF47/'Volume per connection'!$J$69)","v":-36286.232683842558},{"$f":"AV$3*('COM-Appliance class'!$AF47/'Volume per connection'!$J$69)","v":-36286.232683842558},{"$f":"AW$3*('COM-Appliance class'!$AF47/'Volume per connection'!$J$69)","v":-36286.232683842558},{"$f":"AX$3*('COM-Appliance class'!$AF47/'Volume per connection'!$J$69)","v":-36286.232683842558},{"$f":"AY$3*('COM-Appliance class'!$AF47/'Volume per connection'!$J$69)","v":-36286.232683842558},{"$f":"AZ$3*('COM-Appliance class'!$AF47/'Volume per connection'!$J$69)","v":-36286.232683842558},{"$f":"BA$3*('COM-Appliance class'!$AF47/'Volume per connection'!$J$69)","v":-36286.232683842558},{"$f":"BB$3*('COM-Appliance class'!$AF47/'Volume per connection'!$J$69)","v":-36286.232683842558},{"$f":"BC$3*('COM-Appliance class'!$AF47/'Volume per connection'!$J$69)","v":-36286.232683842558},{"$f":"BD$3*('COM-Appliance class'!$AF47/'Volume per connection'!$J$69)","v":-36286.232683842558},{"$f":"BE$3*('COM-Appliance class'!$AF47/'Volume per connection'!$J$69)","v":-36286.232683842558},{"$f":"BF$3*('COM-Appliance class'!$AF47/'Volume per connection'!$J$69)","v":-36286.232683842558},{"$f":"BG$3*('COM-Appliance class'!$AF47/'Volume per connection'!$J$69)","v":-36286.232683842558},{"$f":"BH$3*('COM-Appliance class'!$AF47/'Volume per connection'!$J$69)","v":-36286.232683842558},{"$f":"BI$3*('COM-Appliance class'!$AF47/'Volume per connection'!$J$69)","v":-36286.232683842558},{"$f":"BJ$3*('COM-Appliance class'!$AF47/'Volume per connection'!$J$69)","v":-36286.232683842558},{"$f":"BK$3*('COM-Appliance class'!$AF47/'Volume per connection'!$J$69)","v":-36286.232683842558},{"$f":"BL$3*('COM-Appliance class'!$AF47/'Volume per connection'!$J$69)","v":-36286.232683842558},{"$f":"BM$3*('COM-Appliance class'!$AF47/'Volume per connection'!$J$69)","v":-36286.232683842558},{"$f":"BN$3*('COM-Appliance class'!$AF47/'Volume per connection'!$J$69)","v":-36286.232683842558},{"$f":"BO$3*('COM-Appliance class'!$AF47/'Volume per connection'!$J$69)","v":-36286.232683842558},{"$f":"BP$3*('COM-Appliance class'!$AF47/'Volume per connection'!$J$69)","v":-36286.232683842558},{"$f":"BQ$3*('COM-Appliance class'!$AF47/'Volume per connection'!$J$69)","v":-36286.232683842558},{"$f":"BR$3*('COM-Appliance class'!$AF47/'Volume per connection'!$J$69)","v":-36286.232683842558},{"$f":"BS$3*('COM-Appliance class'!$AF47/'Volume per connection'!$J$69)","v":-36286.232683842558},{"$f":"BT$3*('COM-Appliance class'!$AF47/'Volume per connection'!$J$69)","v":-36286.232683842558},{"$f":"BU$3*('COM-Appliance class'!$AF47/'Volume per connection'!$J$69)","v":-36286.232683842558},{"$f":"BV$3*('COM-Appliance class'!$AF47/'Volume per connection'!$J$69)","v":-36286.232683842558},{"$f":"BW$3*('COM-Appliance class'!$AF47/'Volume per connection'!$J$69)","v":-36286.232683842558},{"$f":"BX$3*('COM-Appliance class'!$AF47/'Volume per connection'!$J$69)","v":-36286.232683842558},{"$f":"BY$3*('COM-Appliance class'!$AF47/'Volume per connection'!$J$69)","v":-36286.232683842558},{"$f":"BZ$3*('COM-Appliance class'!$AF47/'Volume per connection'!$J$69)","v":-36286.232683842558},{"$f":"CA$3*('COM-Appliance class'!$AF47/'Volume per connection'!$J$69)","v":-36286.232683842558},{"$f":"CB$3*('COM-Appliance class'!$AF47/'Volume per connection'!$J$69)","v":-36286.232683842558},{"$f":"CC$3*('COM-Appliance class'!$AF47/'Volume per connection'!$J$69)","v":-36286.232683842558},{"$f":"CD$3*('COM-Appliance class'!$AF47/'Volume per connection'!$J$69)","v":-36286.232683842558}]
["Bayside (C)",null,{"$f":"C$3*('COM-Appliance class'!$AF48/'Volume per connection'!$J$69)","v":-54197.464396606832},{"$f":"D$3*('COM-Appliance class'!$AF48/'Volume per connection'!$J$69)","v":-54197.464396606832},{"$f":"E$3*('COM-Appliance class'!$AF48/'Volume per connection'!$J$69)","v":-34522.044397339545},{"$f":"F$3*('COM-Appliance class'!$AF48/'Volume per connection'!$J$69)","v":-34522.044397339545},{"$f":"G$3*('COM-Appliance class'!$AF48/'Volume per connection'!$J$69)","v":-48753.800561806143},{"$f":"H$3*('COM-Appliance class'!$AF48/'Volume per connection'!$J$69)","v":-48753.800561806143},{"$f":"I$3*('COM-Appliance class'!$AF48/'Volume per connection'!$J$69)","v":-48753.800561806143},{"$f":"J$3*('COM-Appliance class'!$AF48/'Volume per connection'!$J$69)","v":-53491.322838666325},{"$f":"K$3*('COM-Appliance class'!$AF48/'Volume per connection'!$J$69)","v":-50013.223916399991},{"$f":"L$3*('COM-Appliance class'!$AF48/'Volume per connection'!$J$69)","v":-49328.003560860518},{"$f":"M$3*('COM-Appliance class'!$AF48/'Volume per connection'!$J$69)","v":-48646.209307098747},{"$f":"N$3*('COM-Appliance class'!$AF48/'Volume per connection'!$J$69)","v":-47967.82402460579},{"$f":"O$3*('COM-Appliance class'!$AF48/'Volume per connection'!$J$69)","v":-47292.830668525283},{"$f":"P$3*('COM-Appliance class'!$AF48/'Volume per connection'!$J$69)","v":-46621.212279225198},{"$f":"Q$3*('COM-Appliance class'!$AF48/'Volume per connection'!$J$69)","v":-45952.951981871593},{"$f":"R$3*('COM-Appliance class'!$AF48/'Volume per connection'!$J$69)","v":-45288.032986004771},{"$f":"S$3*('COM-Appliance class'!$AF48/'Volume per connection'!$J$69)","v":-44626.438585117285},{"$f":"T$3*('COM-Appliance class'!$AF48/'Volume per connection'!$J$69)","v":-43968.152156234231},{"$f":"U$3*('COM-Appliance class'!$AF48/'Volume per connection'!$J$69)","v":-43313.157159495589},{"$f":"V$3*('COM-Appliance class'!$AF48/'Volume per connection'!$J$69)","v":-42661.437137740635},{"$f":"W$3*('COM-Appliance class'!$AF48/'Volume per connection'!$J$69)","v":-42012.975716094457},{"$f":"X$3*('COM-Appliance class'!$AF48/'Volume per connection'!$J$69)","v":-41367.756601556517},{"$f":"Y$3*('COM-Appliance class'!$AF48/'Volume per connection'!$J$69)","v":-40725.763582591266},{"$f":"Z$3*('COM-Appliance class'!$AF48/'Volume per connection'!$J$69)","v":-40086.980528720836},{"$f":"AA$3*('COM-Appliance class'!$AF48/'Volume per connection'!$J$69)","v":-39451.391390119759},{"$f":"AB$3*('COM-Appliance class'!$AF48/'Volume per connection'!$J$69)","v":-38818.980197211691},{"$f":"AC$3*('COM-Appliance class'!$AF48/'Volume per connection'!$J$69)","v":-38189.731060268168},{"$f":"AD$3*('COM-Appliance class'!$AF48/'Volume per connection'!$J$69)","v":-37563.628169009367},{"$f":"AE$3*('COM-Appliance class'!$AF48/'Volume per connection'!$J$69)","v":-36940.655792206853},{"$f":"AF$3*('COM-Appliance class'!$AF48/'Volume per connection'!$J$69)","v":-36320.798277288341},{"$f":"AG$3*('COM-Appliance class'!$AF48/'Volume per connection'!$J$69)","v":-36320.798277288341},{"$f":"AH$3*('COM-Appliance class'!$AF48/'Volume per connection'!$J$69)","v":-36320.798277288341},{"$f":"AI$3*('COM-Appliance class'!$AF48/'Volume per connection'!$J$69)","v":-36320.798277288341},{"$f":"AJ$3*('COM-Appliance class'!$AF48/'Volume per connection'!$J$69)","v":-36320.798277288341},{"$f":"AK$3*('COM-Appliance class'!$AF48/'Volume per connection'!$J$69)","v":-36320.798277288341},{"$f":"AL$3*('COM-Appliance class'!$AF48/'Volume per connection'!$J$69)","v":-36320.798277288341},{"$f":"AM$3*('COM-Appliance class'!$AF48/'Volume per connection'!$J$69)","v":-36320.798277288341},{"$f":"AN$3*('COM-Appliance class'!$AF48/'Volume per connection'!$J$69)","v":-36320.798277288341},{"$f":"AO$3*('COM-Appliance class'!$AF48/'Volume per connection'!$J$69)","v":-36320.798277288341},{"$f":"AP$3*('COM-Appliance class'!$AF48/'Volume per connection'!$J$69)","v":-36320.798277288341},{"$f":"AQ$3*('COM-Appliance class'!$AF48/'Volume per connection'!$J$69)","v":-36320.798277288341},{"$f":"AR$3*('COM-Appliance class'!$AF48/'Volume per connection'!$J$69)","v":-36320.798277288341},{"$f":"AS$3*('COM-Appliance class'!$AF48/'Volume per connection'!$J$69)","v":-36320.798277288341},{"$f":"AT$3*('COM-Appliance class'!$AF48/'Volume per connection'!$J$69)","v":-36320.798277288341},{"$f":"AU$3*('COM-Appliance class'!$AF48/'Volume per connection'!$J$69)","v":-36320.798277288341},{"$f":"AV$3*('COM-Appliance class'!$AF48/'Volume per connection'!$J$69)","v":-36320.798277288341},{"$f":"AW$3*('COM-Appliance class'!$AF48/'Volume per connection'!$J$69)","v":-36320.798277288341},{"$f":"AX$3*('COM-Appliance class'!$AF48/'Volume per connection'!$J$69)","v":-36320.798277288341},{"$f":"AY$3*('COM-Appliance class'!$AF48/'Volume per connection'!$J$69)","v":-36320.798277288341},{"$f":"AZ$3*('COM-Appliance class'!$AF48/'Volume per connection'!$J$69)","v":-36320.798277288341},{"$f":"BA$3*('COM-Appliance class'!$AF48/'Volume per connection'!$J$69)","v":-36320.798277288341},{"$f":"BB$3*('COM-Appliance class'!$AF48/'Volume per connection'!$J$69)","v":-36320.798277288341},{"$f":"BC$3*('COM-Appliance class'!$AF48/'Volume per connection'!$J$69)","v":-36320.798277288341},{"$f":"BD$3*('COM-Appliance class'!$AF48/'Volume per connection'!$J$69)","v":-36320.798277288341},{"$f":"BE$3*('COM-Appliance class'!$AF48/'Volume per connection'!$J$69)","v":-36320.798277288341},{"$f":"BF$3*('COM-Appliance class'!$AF48/'Volume per connection'!$J$69)","v":-36320.798277288341},{"$f":"BG$3*('COM-Appliance class'!$AF48/'Volume per connection'!$J$69)","v":-36320.798277288341},{"$f":"BH$3*('COM-Appliance class'!$AF48/'Volume per connection'!$J$69)","v":-36320.798277288341},{"$f":"BI$3*('COM-Appliance class'!$AF48/'Volume per connection'!$J$69)","v":-36320.798277288341},{"$f":"BJ$3*('COM-Appliance class'!$AF48/'Volume per connection'!$J$69)","v":-36320.798277288341},{"$f":"BK$3*('COM-Appliance class'!$AF48/'Volume per connection'!$J$69)","v":-36320.798277288341},{"$f":"BL$3*('COM-Appliance class'!$AF48/'Volume per connection'!$J$69)","v":-36320.798277288341},{"$f":"BM$3*('COM-Appliance class'!$AF48/'Volume per connection'!$J$69)","v":-36320.798277288341},{"$f":"BN$3*('COM-Appliance class'!$AF48/'Volume per connection'!$J$69)","v":-36320.798277288341},{"$f":"BO$3*('COM-Appliance class'!$AF48/'Volume per connection'!$J$69)","v":-36320.798277288341},{"$f":"BP$3*('COM-Appliance class'!$AF48/'Volume per connection'!$J$69)","v":-36320.798277288341},{"$f":"BQ$3*('COM-Appliance class'!$AF48/'Volume per connection'!$J$69)","v":-36320.798277288341},{"$f":"BR$3*('COM-Appliance class'!$AF48/'Volume per connection'!$J$69)","v":-36320.798277288341},{"$f":"BS$3*('COM-Appliance class'!$AF48/'Volume per connection'!$J$69)","v":-36320.798277288341},{"$f":"BT$3*('COM-Appliance class'!$AF48/'Volume per connection'!$J$69)","v":-36320.798277288341},{"$f":"BU$3*('COM-Appliance class'!$AF48/'Volume per connection'!$J$69)","v":-36320.798277288341},{"$f":"BV$3*('COM-Appliance class'!$AF48/'Volume per connection'!$J$69)","v":-36320.798277288341},{"$f":"BW$3*('COM-Appliance class'!$AF48/'Volume per connection'!$J$69)","v":-36320.798277288341},{"$f":"BX$3*('COM-Appliance class'!$AF48/'Volume per connection'!$J$69)","v":-36320.798277288341},{"$f":"BY$3*('COM-Appliance class'!$AF48/'Volume per connection'!$J$69)","v":-36320.798277288341},{"$f":"BZ$3*('COM-Appliance class'!$AF48/'Volume per connection'!$J$69)","v":-36320.798277288341},{"$f":"CA$3*('COM-Appliance class'!$AF48/'Volume per connection'!$J$69)","v":-36320.798277288341},{"$f":"CB$3*('COM-Appliance class'!$AF48/'Volume per connection'!$J$69)","v":-36320.798277288341},{"$f":"CC$3*('COM-Appliance class'!$AF48/'Volume per connection'!$J$69)","v":-36320.798277288341},{"$f":"CD$3*('COM-Appliance class'!$AF48/'Volume per connection'!$J$69)","v":-36320.798277288341}]
["Boroondara (C)",null,{"$f":"C$3*('COM-Appliance class'!$AF49/'Volume per connection'!$J$69)","v":-57623.791104684591},{"$f":"D$3*('COM-Appliance class'!$AF49/'Volume per connection'!$J$69)","v":-57623.791104684591},{"$f":"E$3*('COM-Appliance class'!$AF49/'Volume per connection'!$J$69)","v":-36704.504482011995},{"$f":"F$3*('COM-Appliance class'!$AF49/'Volume per connection'!$J$69)","v":-36704.504482011995},{"$f":"G$3*('COM-Appliance class'!$AF49/'Volume per connection'!$J$69)","v":-51835.982557679577},{"$f":"H$3*('COM-Appliance class'!$AF49/'Volume per connection'!$J$69)","v":-51835.982557679577},{"$f":"I$3*('COM-Appliance class'!$AF49/'Volume per connection'!$J$69)","v":-51835.982557679577},{"$f":"J$3*('COM-Appliance class'!$AF49/'Volume per connection'!$J$69)","v":-56873.007759409717},{"$f":"K$3*('COM-Appliance class'!$AF49/'Volume per connection'!$J$69)","v":-53175.025797164053},{"$f":"L$3*('COM-Appliance class'!$AF49/'Volume per connection'!$J$69)","v":-52446.486278426783},{"$f":"M$3*('COM-Appliance class'!$AF49/'Volume per connection'!$J$69)","v":-51721.589457283204},{"$f":"N$3*('COM-Appliance class'!$AF49/'Volume per connection'!$J$69)","v":-51000.317120245345},{"$f":"O$3*('COM-Appliance class'!$AF49/'Volume per connection'!$J$69)","v":-50282.651144892661},{"$f":"P$3*('COM-Appliance class'!$AF49/'Volume per connection'!$J$69)","v":-49568.573499416765},{"$f":"Q$3*('COM-Appliance class'!$AF49/'Volume per connection'!$J$69)","v":-48858.066242168221},{"$f":"R$3*('COM-Appliance class'!$AF49/'Volume per connection'!$J$69)","v":-48151.111521205945},{"$f":"S$3*('COM-Appliance class'!$AF49/'Volume per connection'!$J$69)","v":-47447.691573848475},{"$f":"T$3*('COM-Appliance class'!$AF49/'Volume per connection'!$J$69)","v":-46747.788726227787},{"$f":"U$3*('COM-Appliance class'!$AF49/'Volume per connection'!$J$69)","v":-46051.385392845194},{"$f":"V$3*('COM-Appliance class'!$AF49/'Volume per connection'!$J$69)","v":-45358.464076129523},{"$f":"W$3*('COM-Appliance class'!$AF49/'Volume per connection'!$J$69)","v":-44669.007365997422},{"$f":"X$3*('COM-Appliance class'!$AF49/'Volume per connection'!$J$69)","v":-43982.997939415989},{"$f":"Y$3*('COM-Appliance class'!$AF49/'Volume per connection'!$J$69)","v":-43300.418559967467},{"$f":"Z$3*('COM-Appliance class'!$AF49/'Volume per connection'!$J$69)","v":-42621.252077416175},{"$f":"AA$3*('COM-Appliance class'!$AF49/'Volume per connection'!$J$69)","v":-41945.481427277642},{"$f":"AB$3*('COM-Appliance class'!$AF49/'Volume per connection'!$J$69)","v":-41273.089630389812},{"$f":"AC$3*('COM-Appliance class'!$AF49/'Volume per connection'!$J$69)","v":-40604.05979248642},{"$f":"AD$3*('COM-Appliance class'!$AF49/'Volume per connection'!$J$69)","v":-39938.375103772545},{"$f":"AE$3*('COM-Appliance class'!$AF49/'Volume per connection'!$J$69)","v":-39276.018838502241},{"$f":"AF$3*('COM-Appliance class'!$AF49/'Volume per connection'!$J$69)","v":-38616.974354558282},{"$f":"AG$3*('COM-Appliance class'!$AF49/'Volume per connection'!$J$69)","v":-38616.974354558282},{"$f":"AH$3*('COM-Appliance class'!$AF49/'Volume per connection'!$J$69)","v":-38616.974354558282},{"$f":"AI$3*('COM-Appliance class'!$AF49/'Volume per connection'!$J$69)","v":-38616.974354558282},{"$f":"AJ$3*('COM-Appliance class'!$AF49/'Volume per connection'!$J$69)","v":-38616.974354558282},{"$f":"AK$3*('COM-Appliance class'!$AF49/'Volume per connection'!$J$69)","v":-38616.974354558282},{"$f":"AL$3*('COM-Appliance class'!$AF49/'Volume per connection'!$J$69)","v":-38616.974354558282},{"$f":"AM$3*('COM-Appliance class'!$AF49/'Volume per connection'!$J$69)","v":-38616.974354558282},{"$f":"AN$3*('COM-Appliance class'!$AF49/'Volume per connection'!$J$69)","v":-38616.974354558282},{"$f":"AO$3*('COM-Appliance class'!$AF49/'Volume per connection'!$J$69)","v":-38616.974354558282},{"$f":"AP$3*('COM-Appliance class'!$AF49/'Volume per connection'!$J$69)","v":-38616.974354558282},{"$f":"AQ$3*('COM-Appliance class'!$AF49/'Volume per connection'!$J$69)","v":-38616.974354558282},{"$f":"AR$3*('COM-Appliance class'!$AF49/'Volume per connection'!$J$69)","v":-38616.974354558282},{"$f":"AS$3*('COM-Appliance class'!$AF49/'Volume per connection'!$J$69)","v":-38616.974354558282},{"$f":"AT$3*('COM-Appliance class'!$AF49/'Volume per connection'!$J$69)","v":-38616.974354558282},{"$f":"AU$3*('COM-Appliance class'!$AF49/'Volume per connection'!$J$69)","v":-38616.974354558282},{"$f":"AV$3*('COM-Appliance class'!$AF49/'Volume per connection'!$J$69)","v":-38616.974354558282},{"$f":"AW$3*('COM-Appliance class'!$AF49/'Volume per connection'!$J$69)","v":-38616.974354558282},{"$f":"AX$3*('COM-Appliance class'!$AF49/'Volume per connection'!$J$69)","v":-38616.974354558282},{"$f":"AY$3*('COM-Appliance class'!$AF49/'Volume per connection'!$J$69)","v":-38616.974354558282},{"$f":"AZ$3*('COM-Appliance class'!$AF49/'Volume per connection'!$J$69)","v":-38616.974354558282},{"$f":"BA$3*('COM-Appliance class'!$AF49/'Volume per connection'!$J$69)","v":-38616.974354558282},{"$f":"BB$3*('COM-Appliance class'!$AF49/'Volume per connection'!$J$69)","v":-38616.974354558282},{"$f":"BC$3*('COM-Appliance class'!$AF49/'Volume per connection'!$J$69)","v":-38616.974354558282},{"$f":"BD$3*('COM-Appliance class'!$AF49/'Volume per connection'!$J$69)","v":-38616.974354558282},{"$f":"BE$3*('COM-Appliance class'!$AF49/'Volume per connection'!$J$69)","v":-38616.974354558282},{"$f":"BF$3*('COM-Appliance class'!$AF49/'Volume per connection'!$J$69)","v":-38616.974354558282},{"$f":"BG$3*('COM-Appliance class'!$AF49/'Volume per connection'!$J$69)","v":-38616.974354558282},{"$f":"BH$3*('COM-Appliance class'!$AF49/'Volume per connection'!$J$69)","v":-38616.974354558282},{"$f":"BI$3*('COM-Appliance class'!$AF49/'Volume per connection'!$J$69)","v":-38616.974354558282},{"$f":"BJ$3*('COM-Appliance class'!$AF49/'Volume per connection'!$J$69)","v":-38616.974354558282},{"$f":"BK$3*('COM-Appliance class'!$AF49/'Volume per connection'!$J$69)","v":-38616.974354558282},{"$f":"BL$3*('COM-Appliance class'!$AF49/'Volume per connection'!$J$69)","v":-38616.974354558282},{"$f":"BM$3*('COM-Appliance class'!$AF49/'Volume per connection'!$J$69)","v":-38616.974354558282},{"$f":"BN$3*('COM-Appliance class'!$AF49/'Volume per connection'!$J$69)","v":-38616.974354558282},{"$f":"BO$3*('COM-Appliance class'!$AF49/'Volume per connection'!$J$69)","v":-38616.974354558282},{"$f":"BP$3*('COM-Appliance class'!$AF49/'Volume per connection'!$J$69)","v":-38616.974354558282},{"$f":"BQ$3*('COM-Appliance class'!$AF49/'Volume per connection'!$J$69)","v":-38616.974354558282},{"$f":"BR$3*('COM-Appliance class'!$AF49/'Volume per connection'!$J$69)","v":-38616.974354558282},{"$f":"BS$3*('COM-Appliance class'!$AF49/'Volume per connection'!$J$69)","v":-38616.974354558282},{"$f":"BT$3*('COM-Appliance class'!$AF49/'Volume per connection'!$J$69)","v":-38616.974354558282},{"$f":"BU$3*('COM-Appliance class'!$AF49/'Volume per connection'!$J$69)","v":-38616.974354558282},{"$f":"BV$3*('COM-Appliance class'!$AF49/'Volume per connection'!$J$69)","v":-38616.974354558282},{"$f":"BW$3*('COM-Appliance class'!$AF49/'Volume per connection'!$J$69)","v":-38616.974354558282},{"$f":"BX$3*('COM-Appliance class'!$AF49/'Volume per connection'!$J$69)","v":-38616.974354558282},{"$f":"BY$3*('COM-Appliance class'!$AF49/'Volume per connection'!$J$69)","v":-38616.974354558282},{"$f":"BZ$3*('COM-Appliance class'!$AF49/'Volume per connection'!$J$69)","v":-38616.974354558282},{"$f":"CA$3*('COM-Appliance class'!$AF49/'Volume per connection'!$J$69)","v":-38616.974354558282},{"$f":"CB$3*('COM-Appliance class'!$AF49/'Volume per connection'!$J$69)","v":-38616.974354558282},{"$f":"CC$3*('COM-Appliance class'!$AF49/'Volume per connection'!$J$69)","v":-38616.974354558282},{"$f":"CD$3*('COM-Appliance class'!$AF49/'Volume per connection'!$J$69)","v":-38616.974354558282}]
["Cardinia (S)",null,{"$f":"C$3*('COM-Appliance class'!$AF50/'Volume per connection'!$J$69)","v":-59852.762602017057},{"$f":"D$3*('COM-Appliance class'!$AF50/'Volume per connection'!$J$69)","v":-59852.762602017057},{"$f":"E$3*('COM-Appliance class'!$AF50/'Volume per connection'!$J$69)","v":-38124.287747668481},{"$f":"F$3*('COM-Appliance class'!$AF50/'Volume per connection'!$J$69)","v":-38124.287747668481},{"$f":"G$3*('COM-Appliance class'!$AF50/'Volume per connection'!$J$69)","v":-53841.073257931988},{"$f":"H$3*('COM-Appliance class'!$AF50/'Volume per connection'!$J$69)","v":-53841.073257931988},{"$f":"I$3*('COM-Appliance class'!$AF50/'Volume per connection'!$J$69)","v":-53841.073257931988},{"$f":"J$3*('COM-Appliance class'!$AF50/'Volume per connection'!$J$69)","v":-59072.937872181952},{"$f":"K$3*('COM-Appliance class'!$AF50/'Volume per connection'!$J$69)","v":-55231.912624628647},{"$f":"L$3*('COM-Appliance class'!$AF50/'Volume per connection'!$J$69)","v":-54475.192144680484},{"$f":"M$3*('COM-Appliance class'!$AF50/'Volume per connection'!$J$69)","v":-53722.255267132066},{"$f":"N$3*('COM-Appliance class'!$AF50/'Volume per connection'!$J$69)","v":-52973.083073971393},{"$f":"O$3*('COM-Appliance class'!$AF50/'Volume per connection'!$J$69)","v":-52227.656741776511},{"$f":"P$3*('COM-Appliance class'!$AF50/'Volume per connection'!$J$69)","v":-51485.957541242627},{"$f":"Q$3*('COM-Appliance class'!$AF50/'Volume per connection'!$J$69)","v":-50747.966836711385},{"$f":"R$3*('COM-Appliance class'!$AF50/'Volume per connection'!$J$69)","v":-50013.666085702826},{"$f":"S$3*('COM-Appliance class'!$AF50/'Volume per connection'!$J$69)","v":-49283.036838449298},{"$f":"T$3*('COM-Appliance class'!$AF50/'Volume per connection'!$J$69)","v":-48556.060737432039},{"$f":"U$3*('COM-Appliance class'!$AF50/'Volume per connection'!$J$69)","v":-47832.71951691986},{"$f":"V$3*('COM-Appliance class'!$AF50/'Volume per connection'!$J$69)","v":-47112.995002510237},{"$f":"W$3*('COM-Appliance class'!$AF50/'Volume per connection'!$J$69)","v":-46396.869110672662},{"$f":"X$3*('COM-Appliance class'!$AF50/'Volume per connection'!$J$69)","v":-45684.323848294291},{"$f":"Y$3*('COM-Appliance class'!$AF50/'Volume per connection'!$J$69)","v":-44975.341312227807},{"$f":"Z$3*('COM-Appliance class'!$AF50/'Volume per connection'!$J$69)","v":-44269.903688841645},{"$f":"AA$3*('COM-Appliance class'!$AF50/'Volume per connection'!$J$69)","v":-43567.993253572415},{"$f":"AB$3*('COM-Appliance class'!$AF50/'Volume per connection'!$J$69)","v":-42869.592370479535},{"$f":"AC$3*('COM-Appliance class'!$AF50/'Volume per connection'!$J$69)","v":-42174.683491802134},{"$f":"AD$3*('COM-Appliance class'!$AF50/'Volume per connection'!$J$69)","v":-41483.249157518112},{"$f":"AE$3*('COM-Appliance class'!$AF50/'Volume per connection'!$J$69)","v":-40795.27199490551},{"$f":"AF$3*('COM-Appliance class'!$AF50/'Volume per connection'!$J$69)","v":-40110.734718105959},{"$f":"AG$3*('COM-Appliance class'!$AF50/'Volume per connection'!$J$69)","v":-40110.734718105959},{"$f":"AH$3*('COM-Appliance class'!$AF50/'Volume per connection'!$J$69)","v":-40110.734718105959},{"$f":"AI$3*('COM-Appliance class'!$AF50/'Volume per connection'!$J$69)","v":-40110.734718105959},{"$f":"AJ$3*('COM-Appliance class'!$AF50/'Volume per connection'!$J$69)","v":-40110.734718105959},{"$f":"AK$3*('COM-Appliance class'!$AF50/'Volume per connection'!$J$69)","v":-40110.734718105959},{"$f":"AL$3*('COM-Appliance class'!$AF50/'Volume per connection'!$J$69)","v":-40110.734718105959},{"$f":"AM$3*('COM-Appliance class'!$AF50/'Volume per connection'!$J$69)","v":-40110.734718105959},{"$f":"AN$3*('COM-Appliance class'!$AF50/'Volume per connection'!$J$69)","v":-40110.734718105959},{"$f":"AO$3*('COM-Appliance class'!$AF50/'Volume per connection'!$J$69)","v":-40110.734718105959},{"$f":"AP$3*('COM-Appliance class'!$AF50/'Volume per connection'!$J$69)","v":-40110.734718105959},{"$f":"AQ$3*('COM-Appliance class'!$AF50/'Volume per connection'!$J$69)","v":-40110.734718105959},{"$f":"AR$3*('COM-Appliance class'!$AF50/'Volume per connection'!$J$69)","v":-40110.734718105959},{"$f":"AS$3*('COM-Appliance class'!$AF50/'Volume per connection'!$J$69)","v":-40110.734718105959},{"$f":"AT$3*('COM-Appliance class'!$AF50/'Volume per connection'!$J$69)","v":-40110.734718105959},{"$f":"AU$3*('COM-Appliance class'!$AF50/'Volume per connection'!$J$69)","v":-40110.734718105959},{"$f":"AV$3*('COM-Appliance class'!$AF50/'Volume per connection'!$J$69)","v":-40110.734718105959},{"$f":"AW$3*('COM-Appliance class'!$AF50/'Volume per connection'!$J$69)","v":-40110.734718105959},{"$f":"AX$3*('COM-Appliance class'!$AF50/'Volume per connection'!$J$69)","v":-40110.734718105959},{"$f":"AY$3*('COM-Appliance class'!$AF50/'Volume per connection'!$J$69)","v":-40110.734718105959},{"$f":"AZ$3*('COM-Appliance class'!$AF50/'Volume per connection'!$J$69)","v":-40110.734718105959},{"$f":"BA$3*('COM-Appliance class'!$AF50/'Volume per connection'!$J$69)","v":-40110.734718105959},{"$f":"BB$3*('COM-Appliance class'!$AF50/'Volume per connection'!$J$69)","v":-40110.734718105959},{"$f":"BC$3*('COM-Appliance class'!$AF50/'Volume per connection'!$J$69)","v":-40110.734718105959},{"$f":"BD$3*('COM-Appliance class'!$AF50/'Volume per connection'!$J$69)","v":-40110.734718105959},{"$f":"BE$3*('COM-Appliance class'!$AF50/'Volume per connection'!$J$69)","v":-40110.734718105959},{"$f":"BF$3*('COM-Appliance class'!$AF50/'Volume per connection'!$J$69)","v":-40110.734718105959},{"$f":"BG$3*('COM-Appliance class'!$AF50/'Volume per connection'!$J$69)","v":-40110.734718105959},{"$f":"BH$3*('COM-Appliance class'!$AF50/'Volume per connection'!$J$69)","v":-40110.734718105959},{"$f":"BI$3*('COM-Appliance class'!$AF50/'Volume per connection'!$J$69)","v":-40110.734718105959},{"$f":"BJ$3*('COM-Appliance class'!$AF50/'Volume per connection'!$J$69)","v":-40110.734718105959},{"$f":"BK$3*('COM-Appliance class'!$AF50/'Volume per connection'!$J$69)","v":-40110.734718105959},{"$f":"BL$3*('COM-Appliance class'!$AF50/'Volume per connection'!$J$69)","v":-40110.734718105959},{"$f":"BM$3*('COM-Appliance class'!$AF50/'Volume per connection'!$J$69)","v":-40110.734718105959},{"$f":"BN$3*('COM-Appliance class'!$AF50/'Volume per connection'!$J$69)","v":-40110.734718105959},{"$f":"BO$3*('COM-Appliance class'!$AF50/'Volume per connection'!$J$69)","v":-40110.734718105959},{"$f":"BP$3*('COM-Appliance class'!$AF50/'Volume per connection'!$J$69)","v":-40110.734718105959},{"$f":"BQ$3*('COM-Appliance class'!$AF50/'Volume per connection'!$J$69)","v":-40110.734718105959},{"$f":"BR$3*('COM-Appliance class'!$AF50/'Volume per connection'!$J$69)","v":-40110.734718105959},{"$f":"BS$3*('COM-Appliance class'!$AF50/'Volume per connection'!$J$69)","v":-40110.734718105959},{"$f":"BT$3*('COM-Appliance class'!$AF50/'Volume per connection'!$J$69)","v":-40110.734718105959},{"$f":"BU$3*('COM-Appliance class'!$AF50/'Volume per connection'!$J$69)","v":-40110.734718105959},{"$f":"BV$3*('COM-Appliance class'!$AF50/'Volume per connection'!$J$69)","v":-40110.734718105959},{"$f":"BW$3*('COM-Appliance class'!$AF50/'Volume per connection'!$J$69)","v":-40110.734718105959},{"$f":"BX$3*('COM-Appliance class'!$AF50/'Volume per connection'!$J$69)","v":-40110.734718105959},{"$f":"BY$3*('COM-Appliance class'!$AF50/'Volume per connection'!$J$69)","v":-40110.734718105959},{"$f":"BZ$3*('COM-Appliance class'!$AF50/'Volume per connection'!$J$69)","v":-40110.734718105959},{"$f":"CA$3*('COM-Appliance class'!$AF50/'Volume per connection'!$J$69)","v":-40110.734718105959},{"$f":"CB$3*('COM-Appliance class'!$AF50/'Volume per connection'!$J$69)","v":-40110.734718105959},{"$f":"CC$3*('COM-Appliance class'!$AF50/'Volume per connection'!$J$69)","v":-40110.734718105959},{"$f":"CD$3*('COM-Appliance class'!$AF50/'Volume per connection'!$J$69)","v":-40110.734718105959}]
["Casey (C)",null,{"$f":"C$3*('COM-Appliance class'!$AF51/'Volume per connection'!$J$69)","v":-57857.889930966187},{"$f":"D$3*('COM-Appliance class'!$AF51/'Volume per connection'!$J$69)","v":-57857.889930966187},{"$f":"E$3*('COM-Appliance class'!$AF51/'Volume per connection'!$J$69)","v":-36853.617916823612},{"$f":"F$3*('COM-Appliance class'!$AF51/'Volume per connection'!$J$69)","v":-36853.617916823612},{"$f":"G$3*('COM-Appliance class'!$AF51/'Volume per connection'!$J$69)","v":-52046.56819328729},{"$f":"H$3*('COM-Appliance class'!$AF51/'Volume per connection'!$J$69)","v":-52046.56819328729},{"$f":"I$3*('COM-Appliance class'!$AF51/'Volume per connection'!$J$69)","v":-52046.56819328729},{"$f":"J$3*('COM-Appliance class'!$AF51/'Volume per connection'!$J$69)","v":-57104.056500014005},{"$f":"K$3*('COM-Appliance class'!$AF51/'Volume per connection'!$J$69)","v":-53391.051346472239},{"$f":"L$3*('COM-Appliance class'!$AF51/'Volume per connection'!$J$69)","v":-52659.552108442527},{"$f":"M$3*('COM-Appliance class'!$AF51/'Volume per connection'!$J$69)","v":-51931.710366602972},{"$f":"N$3*('COM-Appliance class'!$AF51/'Volume per connection'!$J$69)","v":-51207.507833472613},{"$f":"O$3*('COM-Appliance class'!$AF51/'Volume per connection'!$J$69)","v":-50486.926313007891},{"$f":"P$3*('COM-Appliance class'!$AF51/'Volume per connection'!$J$69)","v":-49769.947700145523},{"$f":"Q$3*('COM-Appliance class'!$AF51/'Volume per connection'!$J$69)","v":-49056.553980347431},{"$f":"R$3*('COM-Appliance class'!$AF51/'Volume per connection'!$J$69)","v":-48346.72722914836},{"$f":"S$3*('COM-Appliance class'!$AF51/'Volume per connection'!$J$69)","v":-47640.449611705277},{"$f":"T$3*('COM-Appliance class'!$AF51/'Volume per connection'!$J$69)","v":-46937.703382349406},{"$f":"U$3*('COM-Appliance class'!$AF51/'Volume per connection'!$J$69)","v":-46238.470884140304},{"$f":"V$3*('COM-Appliance class'!$AF51/'Volume per connection'!$J$69)","v":-45542.734548422253},{"$f":"W$3*('COM-Appliance class'!$AF51/'Volume per connection'!$J$69)","v":-44850.476894382788},{"$f":"X$3*('COM-Appliance class'!$AF51/'Volume per connection'!$J$69)","v":-44161.680528613528},{"$f":"Y$3*('COM-Appliance class'!$AF51/'Volume per connection'!$J$69)","v":-43476.32814467312},{"$f":"Z$3*('COM-Appliance class'!$AF51/'Volume per connection'!$J$69)","v":-42794.402522652403},{"$f":"AA$3*('COM-Appliance class'!$AF51/'Volume per connection'!$J$69)","v":-42115.886528741787},{"$f":"AB$3*('COM-Appliance class'!$AF51/'Volume per connection'!$J$69)","v":-41440.763114800728},{"$f":"AC$3*('COM-Appliance class'!$AF51/'Volume per connection'!$J$69)","v":-40769.015317929392},{"$f":"AD$3*('COM-Appliance class'!$AF51/'Volume per connection'!$J$69)","v":-40100.626260042402},{"$f":"AE$3*('COM-Appliance class'!$AF51/'Volume per connection'!$J$69)","v":-39435.579147444842},{"$f":"AF$3*('COM-Appliance class'!$AF51/'Volume per connection'!$J$69)","v":-38773.85727041027},{"$f":"AG$3*('COM-Appliance class'!$AF51/'Volume per connection'!$J$69)","v":-38773.85727041027},{"$f":"AH$3*('COM-Appliance class'!$AF51/'Volume per connection'!$J$69)","v":-38773.85727041027},{"$f":"AI$3*('COM-Appliance class'!$AF51/'Volume per connection'!$J$69)","v":-38773.85727041027},{"$f":"AJ$3*('COM-Appliance class'!$AF51/'Volume per connection'!$J$69)","v":-38773.85727041027},{"$f":"AK$3*('COM-Appliance class'!$AF51/'Volume per connection'!$J$69)","v":-38773.85727041027},{"$f":"AL$3*('COM-Appliance class'!$AF51/'Volume per connection'!$J$69)","v":-38773.85727041027},{"$f":"AM$3*('COM-Appliance class'!$AF51/'Volume per connection'!$J$69)","v":-38773.85727041027},{"$f":"AN$3*('COM-Appliance class'!$AF51/'Volume per connection'!$J$69)","v":-38773.85727041027},{"$f":"AO$3*('COM-Appliance class'!$AF51/'Volume per connection'!$J$69)","v":-38773.85727041027},{"$f":"AP$3*('COM-Appliance class'!$AF51/'Volume per connection'!$J$69)","v":-38773.85727041027},{"$f":"AQ$3*('COM-Appliance class'!$AF51/'Volume per connection'!$J$69)","v":-38773.85727041027},{"$f":"AR$3*('COM-Appliance class'!$AF51/'Volume per connection'!$J$69)","v":-38773.85727041027},{"$f":"AS$3*('COM-Appliance class'!$AF51/'Volume per connection'!$J$69)","v":-38773.85727041027},{"$f":"AT$3*('COM-Appliance class'!$AF51/'Volume per connection'!$J$69)","v":-38773.85727041027},{"$f":"AU$3*('COM-Appliance class'!$AF51/'Volume per connection'!$J$69)","v":-38773.85727041027},{"$f":"AV$3*('COM-Appliance class'!$AF51/'Volume per connection'!$J$69)","v":-38773.85727041027},{"$f":"AW$3*('COM-Appliance class'!$AF51/'Volume per connection'!$J$69)","v":-38773.85727041027},{"$f":"AX$3*('COM-Appliance class'!$AF51/'Volume per connection'!$J$69)","v":-38773.85727041027},{"$f":"AY$3*('COM-Appliance class'!$AF51/'Volume per connection'!$J$69)","v":-38773.85727041027},{"$f":"AZ$3*('COM-Appliance class'!$AF51/'Volume per connection'!$J$69)","v":-38773.85727041027},{"$f":"BA$3*('COM-Appliance class'!$AF51/'Volume per connection'!$J$69)","v":-38773.85727041027},{"$f":"BB$3*('COM-Appliance class'!$AF51/'Volume per connection'!$J$69)","v":-38773.85727041027},{"$f":"BC$3*('COM-Appliance class'!$AF51/'Volume per connection'!$J$69)","v":-38773.85727041027},{"$f":"BD$3*('COM-Appliance class'!$AF51/'Volume per connection'!$J$69)","v":-38773.85727041027},{"$f":"BE$3*('COM-Appliance class'!$AF51/'Volume per connection'!$J$69)","v":-38773.85727041027},{"$f":"BF$3*('COM-Appliance class'!$AF51/'Volume per connection'!$J$69)","v":-38773.85727041027},{"$f":"BG$3*('COM-Appliance class'!$AF51/'Volume per connection'!$J$69)","v":-38773.85727041027},{"$f":"BH$3*('COM-Appliance class'!$AF51/'Volume per connection'!$J$69)","v":-38773.85727041027},{"$f":"BI$3*('COM-Appliance class'!$AF51/'Volume per connection'!$J$69)","v":-38773.85727041027},{"$f":"BJ$3*('COM-Appliance class'!$AF51/'Volume per connection'!$J$69)","v":-38773.85727041027},{"$f":"BK$3*('COM-Appliance class'!$AF51/'Volume per connection'!$J$69)","v":-38773.85727041027},{"$f":"BL$3*('COM-Appliance class'!$AF51/'Volume per connection'!$J$69)","v":-38773.85727041027},{"$f":"BM$3*('COM-Appliance class'!$AF51/'Volume per connection'!$J$69)","v":-38773.85727041027},{"$f":"BN$3*('COM-Appliance class'!$AF51/'Volume per connection'!$J$69)","v":-38773.85727041027},{"$f":"BO$3*('COM-Appliance class'!$AF51/'Volume per connection'!$J$69)","v":-38773.85727041027},{"$f":"BP$3*('COM-Appliance class'!$AF51/'Volume per connection'!$J$69)","v":-38773.85727041027},{"$f":"BQ$3*('COM-Appliance class'!$AF51/'Volume per connection'!$J$69)","v":-38773.85727041027},{"$f":"BR$3*('COM-Appliance class'!$AF51/'Volume per connection'!$J$69)","v":-38773.85727041027},{"$f":"BS$3*('COM-Appliance class'!$AF51/'Volume per connection'!$J$69)","v":-38773.85727041027},{"$f":"BT$3*('COM-Appliance class'!$AF51/'Volume per connection'!$J$69)","v":-38773.85727041027},{"$f":"BU$3*('COM-Appliance class'!$AF51/'Volume per connection'!$J$69)","v":-38773.85727041027},{"$f":"BV$3*('COM-Appliance class'!$AF51/'Volume per connection'!$J$69)","v":-38773.85727041027},{"$f":"BW$3*('COM-Appliance class'!$AF51/'Volume per connection'!$J$69)","v":-38773.85727041027},{"$f":"BX$3*('COM-Appliance class'!$AF51/'Volume per connection'!$J$69)","v":-38773.85727041027},{"$f":"BY$3*('COM-Appliance class'!$AF51/'Volume per connection'!$J$69)","v":-38773.85727041027},{"$f":"BZ$3*('COM-Appliance class'!$AF51/'Volume per connection'!$J$69)","v":-38773.85727041027},{"$f":"CA$3*('COM-Appliance class'!$AF51/'Volume per connection'!$J$69)","v":-38773.85727041027},{"$f":"CB$3*('COM-Appliance class'!$AF51/'Volume per connection'!$J$69)","v":-38773.85727041027},{"$f":"CC$3*('COM-Appliance class'!$AF51/'Volume per connection'!$J$69)","v":-38773.85727041027},{"$f":"CD$3*('COM-Appliance class'!$AF51/'Volume per connection'!$J$69)","v":-38773.85727041027}]
["Frankston (C)",null,{"$f":"C$3*('COM-Appliance class'!$AF52/'Volume per connection'!$J$69)","v":0},{"$f":"D$3*('COM-Appliance class'!$AF52/'Volume per connection'!$J$69)","v":0},{"$f":"E$3*('COM-Appliance class'!$AF52/'Volume per connection'!$J$69)","v":0},{"$f":"F$3*('COM-Appliance class'!$AF52/'Volume per connection'!$J$69)","v":0},{"$f":"G$3*('COM-Appliance class'!$AF52/'Volume per connection'!$J$69)","v":0},{"$f":"H$3*('COM-Appliance class'!$AF52/'Volume per connection'!$J$69)","v":0},{"$f":"I$3*('COM-Appliance class'!$AF52/'Volume per connection'!$J$69)","v":0},{"$f":"J$3*('COM-Appliance class'!$AF52/'Volume per connection'!$J$69)","v":0},{"$f":"K$3*('COM-Appliance class'!$AF52/'Volume per connection'!$J$69)","v":0},{"$f":"L$3*('COM-Appliance class'!$AF52/'Volume per connection'!$J$69)","v":0},{"$f":"M$3*('COM-Appliance class'!$AF52/'Volume per connection'!$J$69)","v":0},{"$f":"N$3*('COM-Appliance class'!$AF52/'Volume per connection'!$J$69)","v":0},{"$f":"O$3*('COM-Appliance class'!$AF52/'Volume per connection'!$J$69)","v":0},{"$f":"P$3*('COM-Appliance class'!$AF52/'Volume per connection'!$J$69)","v":0},{"$f":"Q$3*('COM-Appliance class'!$AF52/'Volume per connection'!$J$69)","v":0},{"$f":"R$3*('COM-Appliance class'!$AF52/'Volume per connection'!$J$69)","v":0},{"$f":"S$3*('COM-Appliance class'!$AF52/'Volume per connection'!$J$69)","v":0},{"$f":"T$3*('COM-Appliance class'!$AF52/'Volume per connection'!$J$69)","v":0},{"$f":"U$3*('COM-Appliance class'!$AF52/'Volume per connection'!$J$69)","v":0},{"$f":"V$3*('COM-Appliance class'!$AF52/'Volume per connection'!$J$69)","v":0},{"$f":"W$3*('COM-Appliance class'!$AF52/'Volume per connection'!$J$69)","v":0},{"$f":"X$3*('COM-Appliance class'!$AF52/'Volume per connection'!$J$69)","v":0},{"$f":"Y$3*('COM-Appliance class'!$AF52/'Volume per connection'!$J$69)","v":0},{"$f":"Z$3*('COM-Appliance class'!$AF52/'Volume per connection'!$J$69)","v":0},{"$f":"AA$3*('COM-Appliance class'!$AF52/'Volume per connection'!$J$69)","v":0},{"$f":"AB$3*('COM-Appliance class'!$AF52/'Volume per connection'!$J$69)","v":0},{"$f":"AC$3*('COM-Appliance class'!$AF52/'Volume per connection'!$J$69)","v":0},{"$f":"AD$3*('COM-Appliance class'!$AF52/'Volume per connection'!$J$69)","v":0},{"$f":"AE$3*('COM-Appliance class'!$AF52/'Volume per connection'!$J$69)","v":0},{"$f":"AF$3*('COM-Appliance class'!$AF52/'Volume per connection'!$J$69)","v":0},{"$f":"AG$3*('COM-Appliance class'!$AF52/'Volume per connection'!$J$69)","v":0},{"$f":"AH$3*('COM-Appliance class'!$AF52/'Volume per connection'!$J$69)","v":0},{"$f":"AI$3*('COM-Appliance class'!$AF52/'Volume per connection'!$J$69)","v":0},{"$f":"AJ$3*('COM-Appliance class'!$AF52/'Volume per connection'!$J$69)","v":0},{"$f":"AK$3*('COM-Appliance class'!$AF52/'Volume per connection'!$J$69)","v":0},{"$f":"AL$3*('COM-Appliance class'!$AF52/'Volume per connection'!$J$69)","v":0},{"$f":"AM$3*('COM-Appliance class'!$AF52/'Volume per connection'!$J$69)","v":0},{"$f":"AN$3*('COM-Appliance class'!$AF52/'Volume per connection'!$J$69)","v":0},{"$f":"AO$3*('COM-Appliance class'!$AF52/'Volume per connection'!$J$69)","v":0},{"$f":"AP$3*('COM-Appliance class'!$AF52/'Volume per connection'!$J$69)","v":0},{"$f":"AQ$3*('COM-Appliance class'!$AF52/'Volume per connection'!$J$69)","v":0},{"$f":"AR$3*('COM-Appliance class'!$AF52/'Volume per connection'!$J$69)","v":0},{"$f":"AS$3*('COM-Appliance class'!$AF52/'Volume per connection'!$J$69)","v":0},{"$f":"AT$3*('COM-Appliance class'!$AF52/'Volume per connection'!$J$69)","v":0},{"$f":"AU$3*('COM-Appliance class'!$AF52/'Volume per connection'!$J$69)","v":0},{"$f":"AV$3*('COM-Appliance class'!$AF52/'Volume per connection'!$J$69)","v":0},{"$f":"AW$3*('COM-Appliance class'!$AF52/'Volume per connection'!$J$69)","v":0},{"$f":"AX$3*('COM-Appliance class'!$AF52/'Volume per connection'!$J$69)","v":0},{"$f":"AY$3*('COM-Appliance class'!$AF52/'Volume per connection'!$J$69)","v":0},{"$f":"AZ$3*('COM-Appliance class'!$AF52/'Volume per connection'!$J$69)","v":0},{"$f":"BA$3*('COM-Appliance class'!$AF52/'Volume per connection'!$J$69)","v":0},{"$f":"BB$3*('COM-Appliance class'!$AF52/'Volume per connection'!$J$69)","v":0},{"$f":"BC$3*('COM-Appliance class'!$AF52/'Volume per connection'!$J$69)","v":0},{"$f":"BD$3*('COM-Appliance class'!$AF52/'Volume per connection'!$J$69)","v":0},{"$f":"BE$3*('COM-Appliance class'!$AF52/'Volume per connection'!$J$69)","v":0},{"$f":"BF$3*('COM-Appliance class'!$AF52/'Volume per connection'!$J$69)","v":0},{"$f":"BG$3*('COM-Appliance class'!$AF52/'Volume per connection'!$J$69)","v":0},{"$f":"BH$3*('COM-Appliance class'!$AF52/'Volume per connection'!$J$69)","v":0},{"$f":"BI$3*('COM-Appliance class'!$AF52/'Volume per connection'!$J$69)","v":0},{"$f":"BJ$3*('COM-Appliance class'!$AF52/'Volume per connection'!$J$69)","v":0},{"$f":"BK$3*('COM-Appliance class'!$AF52/'Volume per connection'!$J$69)","v":0},{"$f":"BL$3*('COM-Appliance class'!$AF52/'Volume per connection'!$J$69)","v":0},{"$f":"BM$3*('COM-Appliance class'!$AF52/'Volume per connection'!$J$69)","v":0},{"$f":"BN$3*('COM-Appliance class'!$AF52/'Volume per connection'!$J$69)","v":0},{"$f":"BO$3*('COM-Appliance class'!$AF52/'Volume per connection'!$J$69)","v":0},{"$f":"BP$3*('COM-Appliance class'!$AF52/'Volume per connection'!$J$69)","v":0},{"$f":"BQ$3*('COM-Appliance class'!$AF52/'Volume per connection'!$J$69)","v":0},{"$f":"BR$3*('COM-Appliance class'!$AF52/'Volume per connection'!$J$69)","v":0},{"$f":"BS$3*('COM-Appliance class'!$AF52/'Volume per connection'!$J$69)","v":0},{"$f":"BT$3*('COM-Appliance class'!$AF52/'Volume per connection'!$J$69)","v":0},{"$f":"BU$3*('COM-Appliance class'!$AF52/'Volume per connection'!$J$69)","v":0},{"$f":"BV$3*('COM-Appliance class'!$AF52/'Volume per connection'!$J$69)","v":0},{"$f":"BW$3*('COM-Appliance class'!$AF52/'Volume per connection'!$J$69)","v":0},{"$f":"BX$3*('COM-Appliance class'!$AF52/'Volume per connection'!$J$69)","v":0},{"$f":"BY$3*('COM-Appliance class'!$AF52/'Volume per connection'!$J$69)","v":0},{"$f":"BZ$3*('COM-Appliance class'!$AF52/'Volume per connection'!$J$69)","v":0},{"$f":"CA$3*('COM-Appliance class'!$AF52/'Volume per connection'!$J$69)","v":0},{"$f":"CB$3*('COM-Appliance class'!$AF52/'Volume per connection'!$J$69)","v":0},{"$f":"CC$3*('COM-Appliance class'!$AF52/'Volume per connection'!$J$69)","v":0},{"$f":"CD$3*('COM-Appliance class'!$AF52/'Volume per connection'!$J$69)","v":0}]
["Glen Eira (C)",null,{"$f":"C$3*('COM-Appliance class'!$AF53/'Volume per connection'!$J$69)","v":-54763.679569693501},{"$f":"D$3*('COM-Appliance class'!$AF53/'Volume per connection'!$J$69)","v":-54763.679569693501},{"$f":"E$3*('COM-Appliance class'!$AF53/'Volume per connection'!$J$69)","v":-34882.705279935537},{"$f":"F$3*('COM-Appliance class'!$AF53/'Volume per connection'!$J$69)","v":-34882.705279935537},{"$f":"G$3*('COM-Appliance class'!$AF53/'Volume per connection'!$J$69)","v":-49263.144346263049},{"$f":"H$3*('COM-Appliance class'!$AF53/'Volume per connection'!$J$69)","v":-49263.144346263049},{"$f":"I$3*('COM-Appliance class'!$AF53/'Volume per connection'!$J$69)","v":-49263.144346263049},{"$f":"J$3*('COM-Appliance class'!$AF53/'Volume per connection'!$J$69)","v":-54050.160765069879},{"$f":"K$3*('COM-Appliance class'!$AF53/'Volume per connection'!$J$69)","v":-50535.725228070572},{"$f":"L$3*('COM-Appliance class'!$AF53/'Volume per connection'!$J$69)","v":-49843.346195155071},{"$f":"M$3*('COM-Appliance class'!$AF53/'Volume per connection'!$J$69)","v":-49154.429057404152},{"$f":"N$3*('COM-Appliance class'!$AF53/'Volume per connection'!$J$69)","v":-48468.956505341979},{"$f":"O$3*('COM-Appliance class'!$AF53/'Volume per connection'!$J$69)","v":-47786.91131604011},{"$f":"P$3*('COM-Appliance class'!$AF53/'Volume per connection'!$J$69)","v":-47108.276352684778},{"$f":"Q$3*('COM-Appliance class'!$AF53/'Volume per connection'!$J$69)","v":-46433.03456414619},{"$f":"R$3*('COM-Appliance class'!$AF53/'Volume per connection'!$J$69)","v":-45761.168984550321},{"$f":"S$3*('COM-Appliance class'!$AF53/'Volume per connection'!$J$69)","v":-45092.662732852426},{"$f":"T$3*('COM-Appliance class'!$AF53/'Volume per connection'!$J$69)","v":-44427.49901241302},{"$f":"U$3*('COM-Appliance class'!$AF53/'Volume per connection'!$J$69)","v":-43765.661110575806},{"$f":"V$3*('COM-Appliance class'!$AF53/'Volume per connection'!$J$69)","v":-43107.13239824777},{"$f":"W$3*('COM-Appliance class'!$AF53/'Volume per connection'!$J$69)","v":-42451.89632948138},{"$f":"X$3*('COM-Appliance class'!$AF53/'Volume per connection'!$J$69)","v":-41799.936441058824},{"$f":"Y$3*('COM-Appliance class'!$AF53/'Volume per connection'!$J$69)","v":-41151.236352078384},{"$f":"Z$3*('COM-Appliance class'!$AF53/'Volume per connection'!$J$69)","v":-40505.779763542843},{"$f":"AA$3*('COM-Appliance class'!$AF53/'Volume per connection'!$J$69)","v":-39863.550457949968},{"$f":"AB$3*('COM-Appliance class'!$AF53/'Volume per connection'!$J$69)","v":-39224.532298885075},{"$f":"AC$3*('COM-Appliance class'!$AF53/'Volume per connection'!$J$69)","v":-38588.70923061551},{"$f":"AD$3*('COM-Appliance class'!$AF53/'Volume per connection'!$J$69)","v":-37956.065277687288},{"$f":"AE$3*('COM-Appliance class'!$AF53/'Volume per connection'!$J$69)","v":-37326.584544523699},{"$f":"AF$3*('COM-Appliance class'!$AF53/'Volume per connection'!$J$69)","v":-36700.251215025935},{"$f":"AG$3*('COM-Appliance class'!$AF53/'Volume per connection'!$J$69)","v":-36700.251215025935},{"$f":"AH$3*('COM-Appliance class'!$AF53/'Volume per connection'!$J$69)","v":-36700.251215025935},{"$f":"AI$3*('COM-Appliance class'!$AF53/'Volume per connection'!$J$69)","v":-36700.251215025935},{"$f":"AJ$3*('COM-Appliance class'!$AF53/'Volume per connection'!$J$69)","v":-36700.251215025935},{"$f":"AK$3*('COM-Appliance class'!$AF53/'Volume per connection'!$J$69)","v":-36700.251215025935},{"$f":"AL$3*('COM-Appliance class'!$AF53/'Volume per connection'!$J$69)","v":-36700.251215025935},{"$f":"AM$3*('COM-Appliance class'!$AF53/'Volume per connection'!$J$69)","v":-36700.251215025935},{"$f":"AN$3*('COM-Appliance class'!$AF53/'Volume per connection'!$J$69)","v":-36700.251215025935},{"$f":"AO$3*('COM-Appliance class'!$AF53/'Volume per connection'!$J$69)","v":-36700.251215025935},{"$f":"AP$3*('COM-Appliance class'!$AF53/'Volume per connection'!$J$69)","v":-36700.251215025935},{"$f":"AQ$3*('COM-Appliance class'!$AF53/'Volume per connection'!$J$69)","v":-36700.251215025935},{"$f":"AR$3*('COM-Appliance class'!$AF53/'Volume per connection'!$J$69)","v":-36700.251215025935},{"$f":"AS$3*('COM-Appliance class'!$AF53/'Volume per connection'!$J$69)","v":-36700.251215025935},{"$f":"AT$3*('COM-Appliance class'!$AF53/'Volume per connection'!$J$69)","v":-36700.251215025935},{"$f":"AU$3*('COM-Appliance class'!$AF53/'Volume per connection'!$J$69)","v":-36700.251215025935},{"$f":"AV$3*('COM-Appliance class'!$AF53/'Volume per connection'!$J$69)","v":-36700.251215025935},{"$f":"AW$3*('COM-Appliance class'!$AF53/'Volume per connection'!$J$69)","v":-36700.251215025935},{"$f":"AX$3*('COM-Appliance class'!$AF53/'Volume per connection'!$J$69)","v":-36700.251215025935},{"$f":"AY$3*('COM-Appliance class'!$AF53/'Volume per connection'!$J$69)","v":-36700.251215025935},{"$f":"AZ$3*('COM-Appliance class'!$AF53/'Volume per connection'!$J$69)","v":-36700.251215025935},{"$f":"BA$3*('COM-Appliance class'!$AF53/'Volume per connection'!$J$69)","v":-36700.251215025935},{"$f":"BB$3*('COM-Appliance class'!$AF53/'Volume per connection'!$J$69)","v":-36700.251215025935},{"$f":"BC$3*('COM-Appliance class'!$AF53/'Volume per connection'!$J$69)","v":-36700.251215025935},{"$f":"BD$3*('COM-Appliance class'!$AF53/'Volume per connection'!$J$69)","v":-36700.251215025935},{"$f":"BE$3*('COM-Appliance class'!$AF53/'Volume per connection'!$J$69)","v":-36700.251215025935},{"$f":"BF$3*('COM-Appliance class'!$AF53/'Volume per connection'!$J$69)","v":-36700.251215025935},{"$f":"BG$3*('COM-Appliance class'!$AF53/'Volume per connection'!$J$69)","v":-36700.251215025935},{"$f":"BH$3*('COM-Appliance class'!$AF53/'Volume per connection'!$J$69)","v":-36700.251215025935},{"$f":"BI$3*('COM-Appliance class'!$AF53/'Volume per connection'!$J$69)","v":-36700.251215025935},{"$f":"BJ$3*('COM-Appliance class'!$AF53/'Volume per connection'!$J$69)","v":-36700.251215025935},{"$f":"BK$3*('COM-Appliance class'!$AF53/'Volume per connection'!$J$69)","v":-36700.251215025935},{"$f":"BL$3*('COM-Appliance class'!$AF53/'Volume per connection'!$J$69)","v":-36700.251215025935},{"$f":"BM$3*('COM-Appliance class'!$AF53/'Volume per connection'!$J$69)","v":-36700.251215025935},{"$f":"BN$3*('COM-Appliance class'!$AF53/'Volume per connection'!$J$69)","v":-36700.251215025935},{"$f":"BO$3*('COM-Appliance class'!$AF53/'Volume per connection'!$J$69)","v":-36700.251215025935},{"$f":"BP$3*('COM-Appliance class'!$AF53/'Volume per connection'!$J$69)","v":-36700.251215025935},{"$f":"BQ$3*('COM-Appliance class'!$AF53/'Volume per connection'!$J$69)","v":-36700.251215025935},{"$f":"BR$3*('COM-Appliance class'!$AF53/'Volume per connection'!$J$69)","v":-36700.251215025935},{"$f":"BS$3*('COM-Appliance class'!$AF53/'Volume per connection'!$J$69)","v":-36700.251215025935},{"$f":"BT$3*('COM-Appliance class'!$AF53/'Volume per connection'!$J$69)","v":-36700.251215025935},{"$f":"BU$3*('COM-Appliance class'!$AF53/'Volume per connection'!$J$69)","v":-36700.251215025935},{"$f":"BV$3*('COM-Appliance class'!$AF53/'Volume per connection'!$J$69)","v":-36700.251215025935},{"$f":"BW$3*('COM-Appliance class'!$AF53/'Volume per connection'!$J$69)","v":-36700.251215025935},{"$f":"BX$3*('COM-Appliance class'!$AF53/'Volume per connection'!$J$69)","v":-36700.251215025935},{"$f":"BY$3*('COM-Appliance class'!$AF53/'Volume per connection'!$J$69)","v":-36700.251215025935},{"$f":"BZ$3*('COM-Appliance class'!$AF53/'Volume per connection'!$J$69)","v":-36700.251215025935},{"$f":"CA$3*('COM-Appliance class'!$AF53/'Volume per connection'!$J$69)","v":-36700.251215025935},{"$f":"CB$3*('COM-Appliance class'!$AF53/'Volume per connection'!$J$69)","v":-36700.251215025935},{"$f":"CC$3*('COM-Appliance class'!$AF53/'Volume per connection'!$J$69)","v":-36700.251215025935},{"$f":"CD$3*('COM-Appliance class'!$AF53/'Volume per connection'!$J$69)","v":-36700.251215025935}]
["Greater Dandenong (C)",null,{"$f":"C$3*('COM-Appliance class'!$AF54/'Volume per connection'!$J$69)","v":-54638.051585530746},{"$f":"D$3*('COM-Appliance class'!$AF54/'Volume per connection'!$J$69)","v":-54638.051585530746},{"$f":"E$3*('COM-Appliance class'!$AF54/'Volume per connection'!$J$69)","v":-34802.684288269251},{"$f":"F$3*('COM-Appliance class'!$AF54/'Volume per connection'!$J$69)","v":-34802.684288269251},{"$f":"G$3*('COM-Appliance class'!$AF54/'Volume per connection'!$J$69)","v":-49150.134600271391},{"$f":"H$3*('COM-Appliance class'!$AF54/'Volume per connection'!$J$69)","v":-49150.134600271391},{"$f":"I$3*('COM-Appliance class'!$AF54/'Volume per connection'!$J$69)","v":-49150.134600271391},{"$f":"J$3*('COM-Appliance class'!$AF54/'Volume per connection'!$J$69)","v":-53926.169594389918},{"$f":"K$3*('COM-Appliance class'!$AF54/'Volume per connection'!$J$69)","v":-50419.796179137222},{"$f":"L$3*('COM-Appliance class'!$AF54/'Volume per connection'!$J$69)","v":-49729.005465028364},{"$f":"M$3*('COM-Appliance class'!$AF54/'Volume per connection'!$J$69)","v":-49041.668704490054},{"$f":"N$3*('COM-Appliance class'!$AF54/'Volume per connection'!$J$69)","v":-48357.768627754442},{"$f":"O$3*('COM-Appliance class'!$AF54/'Volume per connection'!$J$69)","v":-47677.288051402487},{"$f":"P$3*('COM-Appliance class'!$AF54/'Volume per connection'!$J$69)","v":-47000.209877932321},{"$f":"Q$3*('COM-Appliance class'!$AF54/'Volume per connection'!$J$69)","v":-46326.51709532948},{"$f":"R$3*('COM-Appliance class'!$AF54/'Volume per connection'!$J$69)","v":-45656.192776639677},{"$f":"S$3*('COM-Appliance class'!$AF54/'Volume per connection'!$J$69)","v":-44989.220079543309},{"$f":"T$3*('COM-Appliance class'!$AF54/'Volume per connection'!$J$69)","v":-44325.582245932434},{"$f":"U$3*('COM-Appliance class'!$AF54/'Volume per connection'!$J$69)","v":-43665.262601489594},{"$f":"V$3*('COM-Appliance class'!$AF54/'Volume per connection'!$J$69)","v":-43008.244555268975},{"$f":"W$3*('COM-Appliance class'!$AF54/'Volume per connection'!$J$69)","v":-42354.51159927946},{"$f":"X$3*('COM-Appliance class'!$AF54/'Volume per connection'!$J$69)","v":-41704.047308069894},{"$f":"Y$3*('COM-Appliance class'!$AF54/'Volume per connection'!$J$69)","v":-41056.835338316378},{"$f":"Z$3*('COM-Appliance class'!$AF54/'Volume per connection'!$J$69)","v":-40412.859428411626},{"$f":"AA$3*('COM-Appliance class'!$AF54/'Volume per connection'!$J$69)","v":-39772.103398056395},{"$f":"AB$3*('COM-Appliance class'!$AF54/'Volume per connection'!$J$69)","v":-39134.551147852944},{"$f":"AC$3*('COM-Appliance class'!$AF54/'Volume per connection'!$J$69)","v":-38500.186658900515},{"$f":"AD$3*('COM-Appliance class'!$AF54/'Volume per connection'!$J$69)","v":-37868.993992392847},{"$f":"AE$3*('COM-Appliance class'!$AF54/'Volume per connection'!$J$69)","v":-37240.957289217717},{"$f":"AF$3*('COM-Appliance class'!$AF54/'Volume per connection'!$J$69)","v":-36616.060769558462},{"$f":"AG$3*('COM-Appliance class'!$AF54/'Volume per connection'!$J$69)","v":-36616.060769558462},{"$f":"AH$3*('COM-Appliance class'!$AF54/'Volume per connection'!$J$69)","v":-36616.060769558462},{"$f":"AI$3*('COM-Appliance class'!$AF54/'Volume per connection'!$J$69)","v":-36616.060769558462},{"$f":"AJ$3*('COM-Appliance class'!$AF54/'Volume per connection'!$J$69)","v":-36616.060769558462},{"$f":"AK$3*('COM-Appliance class'!$AF54/'Volume per connection'!$J$69)","v":-36616.060769558462},{"$f":"AL$3*('COM-Appliance class'!$AF54/'Volume per connection'!$J$69)","v":-36616.060769558462},{"$f":"AM$3*('COM-Appliance class'!$AF54/'Volume per connection'!$J$69)","v":-36616.060769558462},{"$f":"AN$3*('COM-Appliance class'!$AF54/'Volume per connection'!$J$69)","v":-36616.060769558462},{"$f":"AO$3*('COM-Appliance class'!$AF54/'Volume per connection'!$J$69)","v":-36616.060769558462},{"$f":"AP$3*('COM-Appliance class'!$AF54/'Volume per connection'!$J$69)","v":-36616.060769558462},{"$f":"AQ$3*('COM-Appliance class'!$AF54/'Volume per connection'!$J$69)","v":-36616.060769558462},{"$f":"AR$3*('COM-Appliance class'!$AF54/'Volume per connection'!$J$69)","v":-36616.060769558462},{"$f":"AS$3*('COM-Appliance class'!$AF54/'Volume per connection'!$J$69)","v":-36616.060769558462},{"$f":"AT$3*('COM-Appliance class'!$AF54/'Volume per connection'!$J$69)","v":-36616.060769558462},{"$f":"AU$3*('COM-Appliance class'!$AF54/'Volume per connection'!$J$69)","v":-36616.060769558462},{"$f":"AV$3*('COM-Appliance class'!$AF54/'Volume per connection'!$J$69)","v":-36616.060769558462},{"$f":"AW$3*('COM-Appliance class'!$AF54/'Volume per connection'!$J$69)","v":-36616.060769558462},{"$f":"AX$3*('COM-Appliance class'!$AF54/'Volume per connection'!$J$69)","v":-36616.060769558462},{"$f":"AY$3*('COM-Appliance class'!$AF54/'Volume per connection'!$J$69)","v":-36616.060769558462},{"$f":"AZ$3*('COM-Appliance class'!$AF54/'Volume per connection'!$J$69)","v":-36616.060769558462},{"$f":"BA$3*('COM-Appliance class'!$AF54/'Volume per connection'!$J$69)","v":-36616.060769558462},{"$f":"BB$3*('COM-Appliance class'!$AF54/'Volume per connection'!$J$69)","v":-36616.060769558462},{"$f":"BC$3*('COM-Appliance class'!$AF54/'Volume per connection'!$J$69)","v":-36616.060769558462},{"$f":"BD$3*('COM-Appliance class'!$AF54/'Volume per connection'!$J$69)","v":-36616.060769558462},{"$f":"BE$3*('COM-Appliance class'!$AF54/'Volume per connection'!$J$69)","v":-36616.060769558462},{"$f":"BF$3*('COM-Appliance class'!$AF54/'Volume per connection'!$J$69)","v":-36616.060769558462},{"$f":"BG$3*('COM-Appliance class'!$AF54/'Volume per connection'!$J$69)","v":-36616.060769558462},{"$f":"BH$3*('COM-Appliance class'!$AF54/'Volume per connection'!$J$69)","v":-36616.060769558462},{"$f":"BI$3*('COM-Appliance class'!$AF54/'Volume per connection'!$J$69)","v":-36616.060769558462},{"$f":"BJ$3*('COM-Appliance class'!$AF54/'Volume per connection'!$J$69)","v":-36616.060769558462},{"$f":"BK$3*('COM-Appliance class'!$AF54/'Volume per connection'!$J$69)","v":-36616.060769558462},{"$f":"BL$3*('COM-Appliance class'!$AF54/'Volume per connection'!$J$69)","v":-36616.060769558462},{"$f":"BM$3*('COM-Appliance class'!$AF54/'Volume per connection'!$J$69)","v":-36616.060769558462},{"$f":"BN$3*('COM-Appliance class'!$AF54/'Volume per connection'!$J$69)","v":-36616.060769558462},{"$f":"BO$3*('COM-Appliance class'!$AF54/'Volume per connection'!$J$69)","v":-36616.060769558462},{"$f":"BP$3*('COM-Appliance class'!$AF54/'Volume per connection'!$J$69)","v":-36616.060769558462},{"$f":"BQ$3*('COM-Appliance class'!$AF54/'Volume per connection'!$J$69)","v":-36616.060769558462},{"$f":"BR$3*('COM-Appliance class'!$AF54/'Volume per connection'!$J$69)","v":-36616.060769558462},{"$f":"BS$3*('COM-Appliance class'!$AF54/'Volume per connection'!$J$69)","v":-36616.060769558462},{"$f":"BT$3*('COM-Appliance class'!$AF54/'Volume per connection'!$J$69)","v":-36616.060769558462},{"$f":"BU$3*('COM-Appliance class'!$AF54/'Volume per connection'!$J$69)","v":-36616.060769558462},{"$f":"BV$3*('COM-Appliance class'!$AF54/'Volume per connection'!$J$69)","v":-36616.060769558462},{"$f":"BW$3*('COM-Appliance class'!$AF54/'Volume per connection'!$J$69)","v":-36616.060769558462},{"$f":"BX$3*('COM-Appliance class'!$AF54/'Volume per connection'!$J$69)","v":-36616.060769558462},{"$f":"BY$3*('COM-Appliance class'!$AF54/'Volume per connection'!$J$69)","v":-36616.060769558462},{"$f":"BZ$3*('COM-Appliance class'!$AF54/'Volume per connection'!$J$69)","v":-36616.060769558462},{"$f":"CA$3*('COM-Appliance class'!$AF54/'Volume per connection'!$J$69)","v":-36616.060769558462},{"$f":"CB$3*('COM-Appliance class'!$AF54/'Volume per connection'!$J$69)","v":-36616.060769558462},{"$f":"CC$3*('COM-Appliance class'!$AF54/'Volume per connection'!$J$69)","v":-36616.060769558462},{"$f":"CD$3*('COM-Appliance class'!$AF54/'Volume per connection'!$J$69)","v":-36616.060769558462}]
["Kingston (C)",null,{"$f":"C$3*('COM-Appliance class'!$AF55/'Volume per connection'!$J$69)","v":-55363.507179324261},{"$f":"D$3*('COM-Appliance class'!$AF55/'Volume per connection'!$J$69)","v":-55363.507179324261},{"$f":"E$3*('COM-Appliance class'!$AF55/'Volume per connection'!$J$69)","v":-35264.776205226277},{"$f":"F$3*('COM-Appliance class'!$AF55/'Volume per connection'!$J$69)","v":-35264.776205226277},{"$f":"G$3*('COM-Appliance class'!$AF55/'Volume per connection'!$J$69)","v":-49802.72449040784},{"$f":"H$3*('COM-Appliance class'!$AF55/'Volume per connection'!$J$69)","v":-49802.72449040784},{"$f":"I$3*('COM-Appliance class'!$AF55/'Volume per connection'!$J$69)","v":-49802.72449040784},{"$f":"J$3*('COM-Appliance class'!$AF55/'Volume per connection'!$J$69)","v":-54642.173189848807},{"$f":"K$3*('COM-Appliance class'!$AF55/'Volume per connection'!$J$69)","v":-51089.243974485958},{"$f":"L$3*('COM-Appliance class'!$AF55/'Volume per connection'!$J$69)","v":-50389.281301034694},{"$f":"M$3*('COM-Appliance class'!$AF55/'Volume per connection'!$J$69)","v":-49692.818440950687},{"$f":"N$3*('COM-Appliance class'!$AF55/'Volume per connection'!$J$69)","v":-48999.837895167104},{"$f":"O$3*('COM-Appliance class'!$AF55/'Volume per connection'!$J$69)","v":-48310.322252112426},{"$f":"P$3*('COM-Appliance class'!$AF55/'Volume per connection'!$J$69)","v":-47624.254187273043},{"$f":"Q$3*('COM-Appliance class'!$AF55/'Volume per connection'!$J$69)","v":-46941.616462757833},{"$f":"R$3*('COM-Appliance class'!$AF55/'Volume per connection'!$J$69)","v":-46262.391926865224},{"$f":"S$3*('COM-Appliance class'!$AF55/'Volume per connection'!$J$69)","v":-45586.563513652065},{"$f":"T$3*('COM-Appliance class'!$AF55/'Volume per connection'!$J$69)","v":-44914.114242504977},{"$f":"U$3*('COM-Appliance class'!$AF55/'Volume per connection'!$J$69)","v":-44245.027217713614},{"$f":"V$3*('COM-Appliance class'!$AF55/'Volume per connection'!$J$69)","v":-43579.285628046215},{"$f":"W$3*('COM-Appliance class'!$AF55/'Volume per connection'!$J$69)","v":-42916.872746327143},{"$f":"X$3*('COM-Appliance class'!$AF55/'Volume per connection'!$J$69)","v":-42257.771929016671},{"$f":"Y$3*('COM-Appliance class'!$AF55/'Volume per connection'!$J$69)","v":-41601.966615792764},{"$f":"Z$3*('COM-Appliance class'!$AF55/'Volume per connection'!$J$69)","v":-40949.440329134966},{"$f":"AA$3*('COM-Appliance class'!$AF55/'Volume per connection'!$J$69)","v":-40300.17667391045},{"$f":"AB$3*('COM-Appliance class'!$AF55/'Volume per connection'!$J$69)","v":-39654.15933696206},{"$f":"AC$3*('COM-Appliance class'!$AF55/'Volume per connection'!$J$69)","v":-39011.372086698429},{"$f":"AD$3*('COM-Appliance class'!$AF55/'Volume per connection'!$J$69)","v":-38371.79877268611},{"$f":"AE$3*('COM-Appliance class'!$AF55/'Volume per connection'!$J$69)","v":-37735.42332524385},{"$f":"AF$3*('COM-Appliance class'!$AF55/'Volume per connection'!$J$69)","v":-37102.229755038796},{"$f":"AG$3*('COM-Appliance class'!$AF55/'Volume per connection'!$J$69)","v":-37102.229755038796},{"$f":"AH$3*('COM-Appliance class'!$AF55/'Volume per connection'!$J$69)","v":-37102.229755038796},{"$f":"AI$3*('COM-Appliance class'!$AF55/'Volume per connection'!$J$69)","v":-37102.229755038796},{"$f":"AJ$3*('COM-Appliance class'!$AF55/'Volume per connection'!$J$69)","v":-37102.229755038796},{"$f":"AK$3*('COM-Appliance class'!$AF55/'Volume per connection'!$J$69)","v":-37102.229755038796},{"$f":"AL$3*('COM-Appliance class'!$AF55/'Volume per connection'!$J$69)","v":-37102.229755038796},{"$f":"AM$3*('COM-Appliance class'!$AF55/'Volume per connection'!$J$69)","v":-37102.229755038796},{"$f":"AN$3*('COM-Appliance class'!$AF55/'Volume per connection'!$J$69)","v":-37102.229755038796},{"$f":"AO$3*('COM-Appliance class'!$AF55/'Volume per connection'!$J$69)","v":-37102.229755038796},{"$f":"AP$3*('COM-Appliance class'!$AF55/'Volume per connection'!$J$69)","v":-37102.229755038796},{"$f":"AQ$3*('COM-Appliance class'!$AF55/'Volume per connection'!$J$69)","v":-37102.229755038796},{"$f":"AR$3*('COM-Appliance class'!$AF55/'Volume per connection'!$J$69)","v":-37102.229755038796},{"$f":"AS$3*('COM-Appliance class'!$AF55/'Volume per connection'!$J$69)","v":-37102.229755038796},{"$f":"AT$3*('COM-Appliance class'!$AF55/'Volume per connection'!$J$69)","v":-37102.229755038796},{"$f":"AU$3*('COM-Appliance class'!$AF55/'Volume per connection'!$J$69)","v":-37102.229755038796},{"$f":"AV$3*('COM-Appliance class'!$AF55/'Volume per connection'!$J$69)","v":-37102.229755038796},{"$f":"AW$3*('COM-Appliance class'!$AF55/'Volume per connection'!$J$69)","v":-37102.229755038796},{"$f":"AX$3*('COM-Appliance class'!$AF55/'Volume per connection'!$J$69)","v":-37102.229755038796},{"$f":"AY$3*('COM-Appliance class'!$AF55/'Volume per connection'!$J$69)","v":-37102.229755038796},{"$f":"AZ$3*('COM-Appliance class'!$AF55/'Volume per connection'!$J$69)","v":-37102.229755038796},{"$f":"BA$3*('COM-Appliance class'!$AF55/'Volume per connection'!$J$69)","v":-37102.229755038796},{"$f":"BB$3*('COM-Appliance class'!$AF55/'Volume per connection'!$J$69)","v":-37102.229755038796},{"$f":"BC$3*('COM-Appliance class'!$AF55/'Volume per connection'!$J$69)","v":-37102.229755038796},{"$f":"BD$3*('COM-Appliance class'!$AF55/'Volume per connection'!$J$69)","v":-37102.229755038796},{"$f":"BE$3*('COM-Appliance class'!$AF55/'Volume per connection'!$J$69)","v":-37102.229755038796},{"$f":"BF$3*('COM-Appliance class'!$AF55/'Volume per connection'!$J$69)","v":-37102.229755038796},{"$f":"BG$3*('COM-Appliance class'!$AF55/'Volume per connection'!$J$69)","v":-37102.229755038796},{"$f":"BH$3*('COM-Appliance class'!$AF55/'Volume per connection'!$J$69)","v":-37102.229755038796},{"$f":"BI$3*('COM-Appliance class'!$AF55/'Volume per connection'!$J$69)","v":-37102.229755038796},{"$f":"BJ$3*('COM-Appliance class'!$AF55/'Volume per connection'!$J$69)","v":-37102.229755038796},{"$f":"BK$3*('COM-Appliance class'!$AF55/'Volume per connection'!$J$69)","v":-37102.229755038796},{"$f":"BL$3*('COM-Appliance class'!$AF55/'Volume per connection'!$J$69)","v":-37102.229755038796},{"$f":"BM$3*('COM-Appliance class'!$AF55/'Volume per connection'!$J$69)","v":-37102.229755038796},{"$f":"BN$3*('COM-Appliance class'!$AF55/'Volume per connection'!$J$69)","v":-37102.229755038796},{"$f":"BO$3*('COM-Appliance class'!$AF55/'Volume per connection'!$J$69)","v":-37102.229755038796},{"$f":"BP$3*('COM-Appliance class'!$AF55/'Volume per connection'!$J$69)","v":-37102.229755038796},{"$f":"BQ$3*('COM-Appliance class'!$AF55/'Volume per connection'!$J$69)","v":-37102.229755038796},{"$f":"BR$3*('COM-Appliance class'!$AF55/'Volume per connection'!$J$69)","v":-37102.229755038796},{"$f":"BS$3*('COM-Appliance class'!$AF55/'Volume per connection'!$J$69)","v":-37102.229755038796},{"$f":"BT$3*('COM-Appliance class'!$AF55/'Volume per connection'!$J$69)","v":-37102.229755038796},{"$f":"BU$3*('COM-Appliance class'!$AF55/'Volume per connection'!$J$69)","v":-37102.229755038796},{"$f":"BV$3*('COM-Appliance class'!$AF55/'Volume per connection'!$J$69)","v":-37102.229755038796},{"$f":"BW$3*('COM-Appliance class'!$AF55/'Volume per connection'!$J$69)","v":-37102.229755038796},{"$f":"BX$3*('COM-Appliance class'!$AF55/'Volume per connection'!$J$69)","v":-37102.229755038796},{"$f":"BY$3*('COM-Appliance class'!$AF55/'Volume per connection'!$J$69)","v":-37102.229755038796},{"$f":"BZ$3*('COM-Appliance class'!$AF55/'Volume per connection'!$J$69)","v":-37102.229755038796},{"$f":"CA$3*('COM-Appliance class'!$AF55/'Volume per connection'!$J$69)","v":-37102.229755038796},{"$f":"CB$3*('COM-Appliance class'!$AF55/'Volume per connection'!$J$69)","v":-37102.229755038796},{"$f":"CC$3*('COM-Appliance class'!$AF55/'Volume per connection'!$J$69)","v":-37102.229755038796},{"$f":"CD$3*('COM-Appliance class'!$AF55/'Volume per connection'!$J$69)","v":-37102.229755038796}]
["Knox (C)",null,{"$f":"C$3*('COM-Appliance class'!$AF56/'Volume per connection'!$J$69)","v":-55361.191366980325},{"$f":"D$3*('COM-Appliance class'!$AF56/'Volume per connection'!$J$69)","v":-55361.191366980325},{"$f":"E$3*('COM-Appliance class'!$AF56/'Volume per connection'!$J$69)","v":-35263.301107130021},{"$f":"F$3*('COM-Appliance class'!$AF56/'Volume per connection'!$J$69)","v":-35263.301107130021},{"$f":"G$3*('COM-Appliance class'!$AF56/'Volume per connection'!$J$69)","v":-49800.641281268596},{"$f":"H$3*('COM-Appliance class'!$AF56/'Volume per connection'!$J$69)","v":-49800.641281268596},{"$f":"I$3*('COM-Appliance class'!$AF56/'Volume per connection'!$J$69)","v":-49800.641281268596},{"$f":"J$3*('COM-Appliance class'!$AF56/'Volume per connection'!$J$69)","v":-54639.887550343294},{"$f":"K$3*('COM-Appliance class'!$AF56/'Volume per connection'!$J$69)","v":-51087.106951239664},{"$f":"L$3*('COM-Appliance class'!$AF56/'Volume per connection'!$J$69)","v":-50387.173556681344},{"$f":"M$3*('COM-Appliance class'!$AF56/'Volume per connection'!$J$69)","v":-49690.739829095808},{"$f":"N$3*('COM-Appliance class'!$AF56/'Volume per connection'!$J$69)","v":-48997.788270148209},{"$f":"O$3*('COM-Appliance class'!$AF56/'Volume per connection'!$J$69)","v":-48308.301468995334},{"$f":"P$3*('COM-Appliance class'!$AF56/'Volume per connection'!$J$69)","v":-47622.262101848246},{"$f":"Q$3*('COM-Appliance class'!$AF56/'Volume per connection'!$J$69)","v":-46939.652931536868},{"$f":"R$3*('COM-Appliance class'!$AF56/'Volume per connection'!$J$69)","v":-46260.456807077069},{"$f":"S$3*('COM-Appliance class'!$AF56/'Volume per connection'!$J$69)","v":-45584.656663239562},{"$f":"T$3*('COM-Appliance class'!$AF56/'Volume per connection'!$J$69)","v":-44912.235520121249},{"$f":"U$3*('COM-Appliance class'!$AF56/'Volume per connection'!$J$69)","v":-44243.176482718511},{"$f":"V$3*('COM-Appliance class'!$AF56/'Volume per connection'!$J$69)","v":-43577.462740502786},{"$f":"W$3*('COM-Appliance class'!$AF56/'Volume per connection'!$J$69)","v":-42915.077566998145},{"$f":"X$3*('COM-Appliance class'!$AF56/'Volume per connection'!$J$69)","v":-42256.004319361033},{"$f":"Y$3*('COM-Appliance class'!$AF56/'Volume per connection'!$J$69)","v":-41600.226437962105},{"$f":"Z$3*('COM-Appliance class'!$AF56/'Volume per connection'!$J$69)","v":-40947.727445970166},{"$f":"AA$3*('COM-Appliance class'!$AF56/'Volume per connection'!$J$69)","v":-40298.490948938183},{"$f":"AB$3*('COM-Appliance class'!$AF56/'Volume per connection'!$J$69)","v":-39652.50063439137},{"$f":"AC$3*('COM-Appliance class'!$AF56/'Volume per connection'!$J$69)","v":-39009.7402714173},{"$f":"AD$3*('COM-Appliance class'!$AF56/'Volume per connection'!$J$69)","v":-38370.193710258092},{"$f":"AE$3*('COM-Appliance class'!$AF56/'Volume per connection'!$J$69)","v":-37733.844881904675},{"$f":"AF$3*('COM-Appliance class'!$AF56/'Volume per connection'!$J$69)","v":-37100.677797693024},{"$f":"AG$3*('COM-Appliance class'!$AF56/'Volume per connection'!$J$69)","v":-37100.677797693024},{"$f":"AH$3*('COM-Appliance class'!$AF56/'Volume per connection'!$J$69)","v":-37100.677797693024},{"$f":"AI$3*('COM-Appliance class'!$AF56/'Volume per connection'!$J$69)","v":-37100.677797693024},{"$f":"AJ$3*('COM-Appliance class'!$AF56/'Volume per connection'!$J$69)","v":-37100.677797693024},{"$f":"AK$3*('COM-Appliance class'!$AF56/'Volume per connection'!$J$69)","v":-37100.677797693024},{"$f":"AL$3*('COM-Appliance class'!$AF56/'Volume per connection'!$J$69)","v":-37100.677797693024},{"$f":"AM$3*('COM-Appliance class'!$AF56/'Volume per connection'!$J$69)","v":-37100.677797693024},{"$f":"AN$3*('COM-Appliance class'!$AF56/'Volume per connection'!$J$69)","v":-37100.677797693024},{"$f":"AO$3*('COM-Appliance class'!$AF56/'Volume per connection'!$J$69)","v":-37100.677797693024},{"$f":"AP$3*('COM-Appliance class'!$AF56/'Volume per connection'!$J$69)","v":-37100.677797693024},{"$f":"AQ$3*('COM-Appliance class'!$AF56/'Volume per connection'!$J$69)","v":-37100.677797693024},{"$f":"AR$3*('COM-Appliance class'!$AF56/'Volume per connection'!$J$69)","v":-37100.677797693024},{"$f":"AS$3*('COM-Appliance class'!$AF56/'Volume per connection'!$J$69)","v":-37100.677797693024},{"$f":"AT$3*('COM-Appliance class'!$AF56/'Volume per connection'!$J$69)","v":-37100.677797693024},{"$f":"AU$3*('COM-Appliance class'!$AF56/'Volume per connection'!$J$69)","v":-37100.677797693024},{"$f":"AV$3*('COM-Appliance class'!$AF56/'Volume per connection'!$J$69)","v":-37100.677797693024},{"$f":"AW$3*('COM-Appliance class'!$AF56/'Volume per connection'!$J$69)","v":-37100.677797693024},{"$f":"AX$3*('COM-Appliance class'!$AF56/'Volume per connection'!$J$69)","v":-37100.677797693024},{"$f":"AY$3*('COM-Appliance class'!$AF56/'Volume per connection'!$J$69)","v":-37100.677797693024},{"$f":"AZ$3*('COM-Appliance class'!$AF56/'Volume per connection'!$J$69)","v":-37100.677797693024},{"$f":"BA$3*('COM-Appliance class'!$AF56/'Volume per connection'!$J$69)","v":-37100.677797693024},{"$f":"BB$3*('COM-Appliance class'!$AF56/'Volume per connection'!$J$69)","v":-37100.677797693024},{"$f":"BC$3*('COM-Appliance class'!$AF56/'Volume per connection'!$J$69)","v":-37100.677797693024},{"$f":"BD$3*('COM-Appliance class'!$AF56/'Volume per connection'!$J$69)","v":-37100.677797693024},{"$f":"BE$3*('COM-Appliance class'!$AF56/'Volume per connection'!$J$69)","v":-37100.677797693024},{"$f":"BF$3*('COM-Appliance class'!$AF56/'Volume per connection'!$J$69)","v":-37100.677797693024},{"$f":"BG$3*('COM-Appliance class'!$AF56/'Volume per connection'!$J$69)","v":-37100.677797693024},{"$f":"BH$3*('COM-Appliance class'!$AF56/'Volume per connection'!$J$69)","v":-37100.677797693024},{"$f":"BI$3*('COM-Appliance class'!$AF56/'Volume per connection'!$J$69)","v":-37100.677797693024},{"$f":"BJ$3*('COM-Appliance class'!$AF56/'Volume per connection'!$J$69)","v":-37100.677797693024},{"$f":"BK$3*('COM-Appliance class'!$AF56/'Volume per connection'!$J$69)","v":-37100.677797693024},{"$f":"BL$3*('COM-Appliance class'!$AF56/'Volume per connection'!$J$69)","v":-37100.677797693024},{"$f":"BM$3*('COM-Appliance class'!$AF56/'Volume per connection'!$J$69)","v":-37100.677797693024},{"$f":"BN$3*('COM-Appliance class'!$AF56/'Volume per connection'!$J$69)","v":-37100.677797693024},{"$f":"BO$3*('COM-Appliance class'!$AF56/'Volume per connection'!$J$69)","v":-37100.677797693024},{"$f":"BP$3*('COM-Appliance class'!$AF56/'Volume per connection'!$J$69)","v":-37100.677797693024},{"$f":"BQ$3*('COM-Appliance class'!$AF56/'Volume per connection'!$J$69)","v":-37100.677797693024},{"$f":"BR$3*('COM-Appliance class'!$AF56/'Volume per connection'!$J$69)","v":-37100.677797693024},{"$f":"BS$3*('COM-Appliance class'!$AF56/'Volume per connection'!$J$69)","v":-37100.677797693024},{"$f":"BT$3*('COM-Appliance class'!$AF56/'Volume per connection'!$J$69)","v":-37100.677797693024},{"$f":"BU$3*('COM-Appliance class'!$AF56/'Volume per connection'!$J$69)","v":-37100.677797693024},{"$f":"BV$3*('COM-Appliance class'!$AF56/'Volume per connection'!$J$69)","v":-37100.677797693024},{"$f":"BW$3*('COM-Appliance class'!$AF56/'Volume per connection'!$J$69)","v":-37100.677797693024},{"$f":"BX$3*('COM-Appliance class'!$AF56/'Volume per connection'!$J$69)","v":-37100.677797693024},{"$f":"BY$3*('COM-Appliance class'!$AF56/'Volume per connection'!$J$69)","v":-37100.677797693024},{"$f":"BZ$3*('COM-Appliance class'!$AF56/'Volume per connection'!$J$69)","v":-37100.677797693024},{"$f":"CA$3*('COM-Appliance class'!$AF56/'Volume per connection'!$J$69)","v":-37100.677797693024},{"$f":"CB$3*('COM-Appliance class'!$AF56/'Volume per connection'!$J$69)","v":-37100.677797693024},{"$f":"CC$3*('COM-Appliance class'!$AF56/'Volume per connection'!$J$69)","v":-37100.677797693024},{"$f":"CD$3*('COM-Appliance class'!$AF56/'Volume per connection'!$J$69)","v":-37100.677797693024}]
["Manningham (C)",null,{"$f":"C$3*('COM-Appliance class'!$AF57/'Volume per connection'!$J$69)","v":-54641.133513117929},{"$f":"D$3*('COM-Appliance class'!$AF57/'Volume per connection'!$J$69)","v":-54641.133513117929},{"$f":"E$3*('COM-Appliance class'!$AF57/'Volume per connection'!$J$69)","v":-34804.647377173482},{"$f":"F$3*('COM-Appliance class'!$AF57/'Volume per connection'!$J$69)","v":-34804.647377173482},{"$f":"G$3*('COM-Appliance class'!$AF57/'Volume per connection'!$J$69)","v":-49152.906975042133},{"$f":"H$3*('COM-Appliance class'!$AF57/'Volume per connection'!$J$69)","v":-49152.906975042133},{"$f":"I$3*('COM-Appliance class'!$AF57/'Volume per connection'!$J$69)","v":-49152.906975042133},{"$f":"J$3*('COM-Appliance class'!$AF57/'Volume per connection'!$J$69)","v":-53929.211367383672},{"$f":"K$3*('COM-Appliance class'!$AF57/'Volume per connection'!$J$69)","v":-50422.640170756174},{"$f":"L$3*('COM-Appliance class'!$AF57/'Volume per connection'!$J$69)","v":-49731.810491733726},{"$f":"M$3*('COM-Appliance class'!$AF57/'Volume per connection'!$J$69)","v":-49044.434961106388},{"$f":"N$3*('COM-Appliance class'!$AF57/'Volume per connection'!$J$69)","v":-48360.496308132198},{"$f":"O$3*('COM-Appliance class'!$AF57/'Volume per connection'!$J$69)","v":-47679.977348422864},{"$f":"P$3*('COM-Appliance class'!$AF57/'Volume per connection'!$J$69)","v":-47002.860983512095},{"$f":"Q$3*('COM-Appliance class'!$AF57/'Volume per connection'!$J$69)","v":-46329.130200425861},{"$f":"R$3*('COM-Appliance class'!$AF57/'Volume per connection'!$J$69)","v":-45658.768071255079},{"$f":"S$3*('COM-Appliance class'!$AF57/'Volume per connection'!$J$69)","v":-44991.75775273014},{"$f":"T$3*('COM-Appliance class'!$AF57/'Volume per connection'!$J$69)","v":-44328.08248579783},{"$f":"U$3*('COM-Appliance class'!$AF57/'Volume per connection'!$J$69)","v":-43667.725595200172},{"$f":"V$3*('COM-Appliance class'!$AF57/'Volume per connection'!$J$69)","v":-43010.670489055505},{"$f":"W$3*('COM-Appliance class'!$AF57/'Volume per connection'!$J$69)","v":-42356.900658441555},{"$f":"X$3*('COM-Appliance class'!$AF57/'Volume per connection'!$J$69)","v":-41706.399676980684},{"$f":"Y$3*('COM-Appliance class'!$AF57/'Volume per connection'!$J$69)","v":-41059.151200427121},{"$f":"Z$3*('COM-Appliance class'!$AF57/'Volume per connection'!$J$69)","v":-40415.138966256316},{"$f":"AA$3*('COM-Appliance class'!$AF57/'Volume per connection'!$J$69)","v":-39774.346793256365},{"$f":"AB$3*('COM-Appliance class'!$AF57/'Volume per connection'!$J$69)","v":-39136.758581121423},{"$f":"AC$3*('COM-Appliance class'!$AF57/'Volume per connection'!$J$69)","v":-38502.358310047159},{"$f":"AD$3*('COM-Appliance class'!$AF57/'Volume per connection'!$J$69)","v":-37871.130040328266},{"$f":"AE$3*('COM-Appliance class'!$AF57/'Volume per connection'!$J$69)","v":-37243.057911957956},{"$f":"AF$3*('COM-Appliance class'!$AF57/'Volume per connection'!$J$69)","v":-36618.1261442295},{"$f":"AG$3*('COM-Appliance class'!$AF57/'Volume per connection'!$J$69)","v":-36618.1261442295},{"$f":"AH$3*('COM-Appliance class'!$AF57/'Volume per connection'!$J$69)","v":-36618.1261442295},{"$f":"AI$3*('COM-Appliance class'!$AF57/'Volume per connection'!$J$69)","v":-36618.1261442295},{"$f":"AJ$3*('COM-Appliance class'!$AF57/'Volume per connection'!$J$69)","v":-36618.1261442295},{"$f":"AK$3*('COM-Appliance class'!$AF57/'Volume per connection'!$J$69)","v":-36618.1261442295},{"$f":"AL$3*('COM-Appliance class'!$AF57/'Volume per connection'!$J$69)","v":-36618.1261442295},{"$f":"AM$3*('COM-Appliance class'!$AF57/'Volume per connection'!$J$69)","v":-36618.1261442295},{"$f":"AN$3*('COM-Appliance class'!$AF57/'Volume per connection'!$J$69)","v":-36618.1261442295},{"$f":"AO$3*('COM-Appliance class'!$AF57/'Volume per connection'!$J$69)","v":-36618.1261442295},{"$f":"AP$3*('COM-Appliance class'!$AF57/'Volume per connection'!$J$69)","v":-36618.1261442295},{"$f":"AQ$3*('COM-Appliance class'!$AF57/'Volume per connection'!$J$69)","v":-36618.1261442295},{"$f":"AR$3*('COM-Appliance class'!$AF57/'Volume per connection'!$J$69)","v":-36618.1261442295},{"$f":"AS$3*('COM-Appliance class'!$AF57/'Volume per connection'!$J$69)","v":-36618.1261442295},{"$f":"AT$3*('COM-Appliance class'!$AF57/'Volume per connection'!$J$69)","v":-36618.1261442295},{"$f":"AU$3*('COM-Appliance class'!$AF57/'Volume per connection'!$J$69)","v":-36618.1261442295},{"$f":"AV$3*('COM-Appliance class'!$AF57/'Volume per connection'!$J$69)","v":-36618.1261442295},{"$f":"AW$3*('COM-Appliance class'!$AF57/'Volume per connection'!$J$69)","v":-36618.1261442295},{"$f":"AX$3*('COM-Appliance class'!$AF57/'Volume per connection'!$J$69)","v":-36618.1261442295},{"$f":"AY$3*('COM-Appliance class'!$AF57/'Volume per connection'!$J$69)","v":-36618.1261442295},{"$f":"AZ$3*('COM-Appliance class'!$AF57/'Volume per connection'!$J$69)","v":-36618.1261442295},{"$f":"BA$3*('COM-Appliance class'!$AF57/'Volume per connection'!$J$69)","v":-36618.1261442295},{"$f":"BB$3*('COM-Appliance class'!$AF57/'Volume per connection'!$J$69)","v":-36618.1261442295},{"$f":"BC$3*('COM-Appliance class'!$AF57/'Volume per connection'!$J$69)","v":-36618.1261442295},{"$f":"BD$3*('COM-Appliance class'!$AF57/'Volume per connection'!$J$69)","v":-36618.1261442295},{"$f":"BE$3*('COM-Appliance class'!$AF57/'Volume per connection'!$J$69)","v":-36618.1261442295},{"$f":"BF$3*('COM-Appliance class'!$AF57/'Volume per connection'!$J$69)","v":-36618.1261442295},{"$f":"BG$3*('COM-Appliance class'!$AF57/'Volume per connection'!$J$69)","v":-36618.1261442295},{"$f":"BH$3*('COM-Appliance class'!$AF57/'Volume per connection'!$J$69)","v":-36618.1261442295},{"$f":"BI$3*('COM-Appliance class'!$AF57/'Volume per connection'!$J$69)","v":-36618.1261442295},{"$f":"BJ$3*('COM-Appliance class'!$AF57/'Volume per connection'!$J$69)","v":-36618.1261442295},{"$f":"BK$3*('COM-Appliance class'!$AF57/'Volume per connection'!$J$69)","v":-36618.1261442295},{"$f":"BL$3*('COM-Appliance class'!$AF57/'Volume per connection'!$J$69)","v":-36618.1261442295},{"$f":"BM$3*('COM-Appliance class'!$AF57/'Volume per connection'!$J$69)","v":-36618.1261442295},{"$f":"BN$3*('COM-Appliance class'!$AF57/'Volume per connection'!$J$69)","v":-36618.1261442295},{"$f":"BO$3*('COM-Appliance class'!$AF57/'Volume per connection'!$J$69)","v":-36618.1261442295},{"$f":"BP$3*('COM-Appliance class'!$AF57/'Volume per connection'!$J$69)","v":-36618.1261442295},{"$f":"BQ$3*('COM-Appliance class'!$AF57/'Volume per connection'!$J$69)","v":-36618.1261442295},{"$f":"BR$3*('COM-Appliance class'!$AF57/'Volume per connection'!$J$69)","v":-36618.1261442295},{"$f":"BS$3*('COM-Appliance class'!$AF57/'Volume per connection'!$J$69)","v":-36618.1261442295},{"$f":"BT$3*('COM-Appliance class'!$AF57/'Volume per connection'!$J$69)","v":-36618.1261442295},{"$f":"BU$3*('COM-Appliance class'!$AF57/'Volume per connection'!$J$69)","v":-36618.1261442295},{"$f":"BV$3*('COM-Appliance class'!$AF57/'Volume per connection'!$J$69)","v":-36618.1261442295},{"$f":"BW$3*('COM-Appliance class'!$AF57/'Volume per connection'!$J$69)","v":-36618.1261442295},{"$f":"BX$3*('COM-Appliance class'!$AF57/'Volume per connection'!$J$69)","v":-36618.1261442295},{"$f":"BY$3*('COM-Appliance class'!$AF57/'Volume per connection'!$J$69)","v":-36618.1261442295},{"$f":"BZ$3*('COM-Appliance class'!$AF57/'Volume per connection'!$J$69)","v":-36618.1261442295},{"$f":"CA$3*('COM-Appliance class'!$AF57/'Volume per connection'!$J$69)","v":-36618.1261442295},{"$f":"CB$3*('COM-Appliance class'!$AF57/'Volume per connection'!$J$69)","v":-36618.1261442295},{"$f":"CC$3*('COM-Appliance class'!$AF57/'Volume per connection'!$J$69)","v":-36618.1261442295},{"$f":"CD$3*('COM-Appliance class'!$AF57/'Volume per connection'!$J$69)","v":-36618.1261442295}]
["Maroondah (C)",null,{"$f":"C$3*('COM-Appliance class'!$AF58/'Volume per connection'!$J$69)","v":-52969.546209084634},{"$f":"D$3*('COM-Appliance class'!$AF58/'Volume per connection'!$J$69)","v":-52969.546209084634},{"$f":"E$3*('COM-Appliance class'!$AF58/'Volume per connection'!$J$69)","v":-33739.899943574361},{"$f":"F$3*('COM-Appliance class'!$AF58/'Volume per connection'!$J$69)","v":-33739.899943574361},{"$f":"G$3*('COM-Appliance class'!$AF58/'Volume per connection'!$J$69)","v":-47649.216074558077},{"$f":"H$3*('COM-Appliance class'!$AF58/'Volume per connection'!$J$69)","v":-47649.216074558077},{"$f":"I$3*('COM-Appliance class'!$AF58/'Volume per connection'!$J$69)","v":-47649.216074558077},{"$f":"J$3*('COM-Appliance class'!$AF58/'Volume per connection'!$J$69)","v":-52279.403260518455},{"$f":"K$3*('COM-Appliance class'!$AF58/'Volume per connection'!$J$69)","v":-48880.105458787933},{"$f":"L$3*('COM-Appliance class'!$AF58/'Volume per connection'!$J$69)","v":-48210.40971397324},{"$f":"M$3*('COM-Appliance class'!$AF58/'Volume per connection'!$J$69)","v":-47544.062447882621},{"$f":"N$3*('COM-Appliance class'!$AF58/'Volume per connection'!$J$69)","v":-46881.046918122462},{"$f":"O$3*('COM-Appliance class'!$AF58/'Volume per connection'!$J$69)","v":-46221.346466011084},{"$f":"P$3*('COM-Appliance class'!$AF58/'Volume per connection'!$J$69)","v":-45564.944516160293},{"$f":"Q$3*('COM-Appliance class'!$AF58/'Volume per connection'!$J$69)","v":-44911.824576058731},{"$f":"R$3*('COM-Appliance class'!$AF58/'Volume per connection'!$J$69)","v":-44261.970235657696},{"$f":"S$3*('COM-Appliance class'!$AF58/'Volume per connection'!$J$69)","v":-43615.365166958654},{"$f":"T$3*('COM-Appliance class'!$AF58/'Volume per connection'!$J$69)","v":-42971.993123603119},{"$f":"U$3*('COM-Appliance class'!$AF58/'Volume per connection'!$J$69)","v":-42331.837940464342},{"$f":"V$3*('COM-Appliance class'!$AF58/'Volume per connection'!$J$69)","v":-41694.883533241264},{"$f":"W$3*('COM-Appliance class'!$AF58/'Volume per connection'!$J$69)","v":-41061.113898054304},{"$f":"X$3*('COM-Appliance class'!$AF58/'Volume per connection'!$J$69)","v":-40430.513111043278},{"$f":"Y$3*('COM-Appliance class'!$AF58/'Volume per connection'!$J$69)","v":-39803.065327967313},{"$f":"Z$3*('COM-Appliance class'!$AF58/'Volume per connection'!$J$69)","v":-39178.754783806726},{"$f":"AA$3*('COM-Appliance class'!$AF58/'Volume per connection'!$J$69)","v":-38557.565792366935},{"$f":"AB$3*('COM-Appliance class'!$AF58/'Volume per connection'!$J$69)","v":-37939.48274588435},{"$f":"AC$3*('COM-Appliance class'!$AF58/'Volume per connection'!$J$69)","v":-37324.49011463418},{"$f":"AD$3*('COM-Appliance class'!$AF58/'Volume per connection'!$J$69)","v":-36712.57244654026},{"$f":"AE$3*('COM-Appliance class'!$AF58/'Volume per connection'!$J$69)","v":-36103.714366786815},{"$f":"AF$3*('COM-Appliance class'!$AF58/'Volume per connection'!$J$69)","v":-35497.900577432127},{"$f":"AG$3*('COM-Appliance class'!$AF58/'Volume per connection'!$J$69)","v":-35497.900577432127},{"$f":"AH$3*('COM-Appliance class'!$AF58/'Volume per connection'!$J$69)","v":-35497.900577432127},{"$f":"AI$3*('COM-Appliance class'!$AF58/'Volume per connection'!$J$69)","v":-35497.900577432127},{"$f":"AJ$3*('COM-Appliance class'!$AF58/'Volume per connection'!$J$69)","v":-35497.900577432127},{"$f":"AK$3*('COM-Appliance class'!$AF58/'Volume per connection'!$J$69)","v":-35497.900577432127},{"$f":"AL$3*('COM-Appliance class'!$AF58/'Volume per connection'!$J$69)","v":-35497.900577432127},{"$f":"AM$3*('COM-Appliance class'!$AF58/'Volume per connection'!$J$69)","v":-35497.900577432127},{"$f":"AN$3*('COM-Appliance class'!$AF58/'Volume per connection'!$J$69)","v":-35497.900577432127},{"$f":"AO$3*('COM-Appliance class'!$AF58/'Volume per connection'!$J$69)","v":-35497.900577432127},{"$f":"AP$3*('COM-Appliance class'!$AF58/'Volume per connection'!$J$69)","v":-35497.900577432127},{"$f":"AQ$3*('COM-Appliance class'!$AF58/'Volume per connection'!$J$69)","v":-35497.900577432127},{"$f":"AR$3*('COM-Appliance class'!$AF58/'Volume per connection'!$J$69)","v":-35497.900577432127},{"$f":"AS$3*('COM-Appliance class'!$AF58/'Volume per connection'!$J$69)","v":-35497.900577432127},{"$f":"AT$3*('COM-Appliance class'!$AF58/'Volume per connection'!$J$69)","v":-35497.900577432127},{"$f":"AU$3*('COM-Appliance class'!$AF58/'Volume per connection'!$J$69)","v":-35497.900577432127},{"$f":"AV$3*('COM-Appliance class'!$AF58/'Volume per connection'!$J$69)","v":-35497.900577432127},{"$f":"AW$3*('COM-Appliance class'!$AF58/'Volume per connection'!$J$69)","v":-35497.900577432127},{"$f":"AX$3*('COM-Appliance class'!$AF58/'Volume per connection'!$J$69)","v":-35497.900577432127},{"$f":"AY$3*('COM-Appliance class'!$AF58/'Volume per connection'!$J$69)","v":-35497.900577432127},{"$f":"AZ$3*('COM-Appliance class'!$AF58/'Volume per connection'!$J$69)","v":-35497.900577432127},{"$f":"BA$3*('COM-Appliance class'!$AF58/'Volume per connection'!$J$69)","v":-35497.900577432127},{"$f":"BB$3*('COM-Appliance class'!$AF58/'Volume per connection'!$J$69)","v":-35497.900577432127},{"$f":"BC$3*('COM-Appliance class'!$AF58/'Volume per connection'!$J$69)","v":-35497.900577432127},{"$f":"BD$3*('COM-Appliance class'!$AF58/'Volume per connection'!$J$69)","v":-35497.900577432127},{"$f":"BE$3*('COM-Appliance class'!$AF58/'Volume per connection'!$J$69)","v":-35497.900577432127},{"$f":"BF$3*('COM-Appliance class'!$AF58/'Volume per connection'!$J$69)","v":-35497.900577432127},{"$f":"BG$3*('COM-Appliance class'!$AF58/'Volume per connection'!$J$69)","v":-35497.900577432127},{"$f":"BH$3*('COM-Appliance class'!$AF58/'Volume per connection'!$J$69)","v":-35497.900577432127},{"$f":"BI$3*('COM-Appliance class'!$AF58/'Volume per connection'!$J$69)","v":-35497.900577432127},{"$f":"BJ$3*('COM-Appliance class'!$AF58/'Volume per connection'!$J$69)","v":-35497.900577432127},{"$f":"BK$3*('COM-Appliance class'!$AF58/'Volume per connection'!$J$69)","v":-35497.900577432127},{"$f":"BL$3*('COM-Appliance class'!$AF58/'Volume per connection'!$J$69)","v":-35497.900577432127},{"$f":"BM$3*('COM-Appliance class'!$AF58/'Volume per connection'!$J$69)","v":-35497.900577432127},{"$f":"BN$3*('COM-Appliance class'!$AF58/'Volume per connection'!$J$69)","v":-35497.900577432127},{"$f":"BO$3*('COM-Appliance class'!$AF58/'Volume per connection'!$J$69)","v":-35497.900577432127},{"$f":"BP$3*('COM-Appliance class'!$AF58/'Volume per connection'!$J$69)","v":-35497.900577432127},{"$f":"BQ$3*('COM-Appliance class'!$AF58/'Volume per connection'!$J$69)","v":-35497.900577432127},{"$f":"BR$3*('COM-Appliance class'!$AF58/'Volume per connection'!$J$69)","v":-35497.900577432127},{"$f":"BS$3*('COM-Appliance class'!$AF58/'Volume per connection'!$J$69)","v":-35497.900577432127},{"$f":"BT$3*('COM-Appliance class'!$AF58/'Volume per connection'!$J$69)","v":-35497.900577432127},{"$f":"BU$3*('COM-Appliance class'!$AF58/'Volume per connection'!$J$69)","v":-35497.900577432127},{"$f":"BV$3*('COM-Appliance class'!$AF58/'Volume per connection'!$J$69)","v":-35497.900577432127},{"$f":"BW$3*('COM-Appliance class'!$AF58/'Volume per connection'!$J$69)","v":-35497.900577432127},{"$f":"BX$3*('COM-Appliance class'!$AF58/'Volume per connection'!$J$69)","v":-35497.900577432127},{"$f":"BY$3*('COM-Appliance class'!$AF58/'Volume per connection'!$J$69)","v":-35497.900577432127},{"$f":"BZ$3*('COM-Appliance class'!$AF58/'Volume per connection'!$J$69)","v":-35497.900577432127},{"$f":"CA$3*('COM-Appliance class'!$AF58/'Volume per connection'!$J$69)","v":-35497.900577432127},{"$f":"CB$3*('COM-Appliance class'!$AF58/'Volume per connection'!$J$69)","v":-35497.900577432127},{"$f":"CC$3*('COM-Appliance class'!$AF58/'Volume per connection'!$J$69)","v":-35497.900577432127},{"$f":"CD$3*('COM-Appliance class'!$AF58/'Volume per connection'!$J$69)","v":-35497.900577432127}]
["Melbourne (C)",null,{"$f":"C$3*('COM-Appliance class'!$AF59/'Volume per connection'!$J$69)","v":-59089.731255095561},{"$f":"D$3*('COM-Appliance class'!$AF59/'Volume per connection'!$J$69)","v":-59089.731255095561},{"$f":"E$3*('COM-Appliance class'!$AF59/'Volume per connection'!$J$69)","v":-37638.261282625317},{"$f":"F$3*('COM-Appliance class'!$AF59/'Volume per connection'!$J$69)","v":-37638.261282625317},{"$f":"G$3*('COM-Appliance class'!$AF59/'Volume per connection'!$J$69)","v":-53154.681772197728},{"$f":"H$3*('COM-Appliance class'!$AF59/'Volume per connection'!$J$69)","v":-53154.681772197728},{"$f":"I$3*('COM-Appliance class'!$AF59/'Volume per connection'!$J$69)","v":-53154.681772197728},{"$f":"J$3*('COM-Appliance class'!$AF59/'Volume per connection'!$J$69)","v":-58319.848100019924},{"$f":"K$3*('COM-Appliance class'!$AF59/'Volume per connection'!$J$69)","v":-54527.790060341191},{"$f":"L$3*('COM-Appliance class'!$AF59/'Volume per connection'!$J$69)","v":-53780.716611239332},{"$f":"M$3*('COM-Appliance class'!$AF59/'Volume per connection'!$J$69)","v":-53037.378529382979},{"$f":"N$3*('COM-Appliance class'!$AF59/'Volume per connection'!$J$69)","v":-52297.757137935914},{"$f":"O$3*('COM-Appliance class'!$AF59/'Volume per connection'!$J$69)","v":-51561.833853446071},{"$f":"P$3*('COM-Appliance class'!$AF59/'Volume per connection'!$J$69)","v":-50829.5901853787},{"$f":"Q$3*('COM-Appliance class'!$AF59/'Volume per connection'!$J$69)","v":-50101.007735651641},{"$f":"R$3*('COM-Appliance class'!$AF59/'Volume per connection'!$J$69)","v":-49376.068198173241},{"$f":"S$3*('COM-Appliance class'!$AF59/'Volume per connection'!$J$69)","v":-48654.75335838223},{"$f":"T$3*('COM-Appliance class'!$AF59/'Volume per connection'!$J$69)","v":-47937.045092790169},{"$f":"U$3*('COM-Appliance class'!$AF59/'Volume per connection'!$J$69)","v":-47222.925368526056},{"$f":"V$3*('COM-Appliance class'!$AF59/'Volume per connection'!$J$69)","v":-46512.376242883271},{"$f":"W$3*('COM-Appliance class'!$AF59/'Volume per connection'!$J$69)","v":-45805.379862868693},{"$f":"X$3*('COM-Appliance class'!$AF59/'Volume per connection'!$J$69)","v":-45101.918464754199},{"$f":"Y$3*('COM-Appliance class'!$AF59/'Volume per connection'!$J$69)","v":-44401.974373630277},{"$f":"Z$3*('COM-Appliance class'!$AF59/'Volume per connection'!$J$69)","v":-43705.530002961968},{"$f":"AA$3*('COM-Appliance class'!$AF59/'Volume per connection'!$J$69)","v":-43012.567854146997},{"$f":"AB$3*('COM-Appliance class'!$AF59/'Volume per connection'!$J$69)","v":-42323.070516076114},{"$f":"AC$3*('COM-Appliance class'!$AF59/'Volume per connection'!$J$69)","v":-41637.020664695585},{"$f":"AD$3*('COM-Appliance class'!$AF59/'Volume per connection'!$J$69)","v":-40954.40106257196},{"$f":"AE$3*('COM-Appliance class'!$AF59/'Volume per connection'!$J$69)","v":-40275.194558458948},{"$f":"AF$3*('COM-Appliance class'!$AF59/'Volume per connection'!$J$69)","v":-39599.384086866499},{"$f":"AG$3*('COM-Appliance class'!$AF59/'Volume per connection'!$J$69)","v":-39599.384086866499},{"$f":"AH$3*('COM-Appliance class'!$AF59/'Volume per connection'!$J$69)","v":-39599.384086866499},{"$f":"AI$3*('COM-Appliance class'!$AF59/'Volume per connection'!$J$69)","v":-39599.384086866499},{"$f":"AJ$3*('COM-Appliance class'!$AF59/'Volume per connection'!$J$69)","v":-39599.384086866499},{"$f":"AK$3*('COM-Appliance class'!$AF59/'Volume per connection'!$J$69)","v":-39599.384086866499},{"$f":"AL$3*('COM-Appliance class'!$AF59/'Volume per connection'!$J$69)","v":-39599.384086866499},{"$f":"AM$3*('COM-Appliance class'!$AF59/'Volume per connection'!$J$69)","v":-39599.384086866499},{"$f":"AN$3*('COM-Appliance class'!$AF59/'Volume per connection'!$J$69)","v":-39599.384086866499},{"$f":"AO$3*('COM-Appliance class'!$AF59/'Volume per connection'!$J$69)","v":-39599.384086866499},{"$f":"AP$3*('COM-Appliance class'!$AF59/'Volume per connection'!$J$69)","v":-39599.384086866499},{"$f":"AQ$3*('COM-Appliance class'!$AF59/'Volume per connection'!$J$69)","v":-39599.384086866499},{"$f":"AR$3*('COM-Appliance class'!$AF59/'Volume per connection'!$J$69)","v":-39599.384086866499},{"$f":"AS$3*('COM-Appliance class'!$AF59/'Volume per connection'!$J$69)","v":-39599.384086866499},{"$f":"AT$3*('COM-Appliance class'!$AF59/'Volume per connection'!$J$69)","v":-39599.384086866499},{"$f":"AU$3*('COM-Appliance class'!$AF59/'Volume per connection'!$J$69)","v":-39599.384086866499},{"$f":"AV$3*('COM-Appliance class'!$AF59/'Volume per connection'!$J$69)","v":-39599.384086866499},{"$f":"AW$3*('COM-Appliance class'!$AF59/'Volume per connection'!$J$69)","v":-39599.384086866499},{"$f":"AX$3*('COM-Appliance class'!$AF59/'Volume per connection'!$J$69)","v":-39599.384086866499},{"$f":"AY$3*('COM-Appliance class'!$AF59/'Volume per connection'!$J$69)","v":-39599.384086866499},{"$f":"AZ$3*('COM-Appliance class'!$AF59/'Volume per connection'!$J$69)","v":-39599.384086866499},{"$f":"BA$3*('COM-Appliance class'!$AF59/'Volume per connection'!$J$69)","v":-39599.384086866499},{"$f":"BB$3*('COM-Appliance class'!$AF59/'Volume per connection'!$J$69)","v":-39599.384086866499},{"$f":"BC$3*('COM-Appliance class'!$AF59/'Volume per connection'!$J$69)","v":-39599.384086866499},{"$f":"BD$3*('COM-Appliance class'!$AF59/'Volume per connection'!$J$69)","v":-39599.384086866499},{"$f":"BE$3*('COM-Appliance class'!$AF59/'Volume per connection'!$J$69)","v":-39599.384086866499},{"$f":"BF$3*('COM-Appliance class'!$AF59/'Volume per connection'!$J$69)","v":-39599.384086866499},{"$f":"BG$3*('COM-Appliance class'!$AF59/'Volume per connection'!$J$69)","v":-39599.384086866499},{"$f":"BH$3*('COM-Appliance class'!$AF59/'Volume per connection'!$J$69)","v":-39599.384086866499},{"$f":"BI$3*('COM-Appliance class'!$AF59/'Volume per connection'!$J$69)","v":-39599.384086866499},{"$f":"BJ$3*('COM-Appliance class'!$AF59/'Volume per connection'!$J$69)","v":-39599.384086866499},{"$f":"BK$3*('COM-Appliance class'!$AF59/'Volume per connection'!$J$69)","v":-39599.384086866499},{"$f":"BL$3*('COM-Appliance class'!$AF59/'Volume per connection'!$J$69)","v":-39599.384086866499},{"$f":"BM$3*('COM-Appliance class'!$AF59/'Volume per connection'!$J$69)","v":-39599.384086866499},{"$f":"BN$3*('COM-Appliance class'!$AF59/'Volume per connection'!$J$69)","v":-39599.384086866499},{"$f":"BO$3*('COM-Appliance class'!$AF59/'Volume per connection'!$J$69)","v":-39599.384086866499},{"$f":"BP$3*('COM-Appliance class'!$AF59/'Volume per connection'!$J$69)","v":-39599.384086866499},{"$f":"BQ$3*('COM-Appliance class'!$AF59/'Volume per connection'!$J$69)","v":-39599.384086866499},{"$f":"BR$3*('COM-Appliance class'!$AF59/'Volume per connection'!$J$69)","v":-39599.384086866499},{"$f":"BS$3*('COM-Appliance class'!$AF59/'Volume per connection'!$J$69)","v":-39599.384086866499},{"$f":"BT$3*('COM-Appliance class'!$AF59/'Volume per connection'!$J$69)","v":-39599.384086866499},{"$f":"BU$3*('COM-Appliance class'!$AF59/'Volume per connection'!$J$69)","v":-39599.384086866499},{"$f":"BV$3*('COM-Appliance class'!$AF59/'Volume per connection'!$J$69)","v":-39599.384086866499},{"$f":"BW$3*('COM-Appliance class'!$AF59/'Volume per connection'!$J$69)","v":-39599.384086866499},{"$f":"BX$3*('COM-Appliance class'!$AF59/'Volume per connection'!$J$69)","v":-39599.384086866499},{"$f":"BY$3*('COM-Appliance class'!$AF59/'Volume per connection'!$J$69)","v":-39599.384086866499},{"$f":"BZ$3*('COM-Appliance class'!$AF59/'Volume per connection'!$J$69)","v":-39599.384086866499},{"$f":"CA$3*('COM-Appliance class'!$AF59/'Volume per connection'!$J$69)","v":-39599.384086866499},{"$f":"CB$3*('COM-Appliance class'!$AF59/'Volume per connection'!$J$69)","v":-39599.384086866499},{"$f":"CC$3*('COM-Appliance class'!$AF59/'Volume per connection'!$J$69)","v":-39599.384086866499},{"$f":"CD$3*('COM-Appliance class'!$AF59/'Volume per connection'!$J$69)","v":-39599.384086866499}]
["Monash (C)",null,{"$f":"C$3*('COM-Appliance class'!$AF60/'Volume per connection'!$J$69)","v":-54747.059033641177},{"$f":"D$3*('COM-Appliance class'!$AF60/'Volume per connection'!$J$69)","v":-54747.059033641177},{"$f":"E$3*('COM-Appliance class'!$AF60/'Volume per connection'!$J$69)","v":-34872.118532199391},{"$f":"F$3*('COM-Appliance class'!$AF60/'Volume per connection'!$J$69)","v":-34872.118532199391},{"$f":"G$3*('COM-Appliance class'!$AF60/'Volume per connection'!$J$69)","v":-49248.193198475114},{"$f":"H$3*('COM-Appliance class'!$AF60/'Volume per connection'!$J$69)","v":-49248.193198475114},{"$f":"I$3*('COM-Appliance class'!$AF60/'Volume per connection'!$J$69)","v":-49248.193198475114},{"$f":"J$3*('COM-Appliance class'!$AF60/'Volume per connection'!$J$69)","v":-54033.75677883871},{"$f":"K$3*('COM-Appliance class'!$AF60/'Volume per connection'!$J$69)","v":-50520.387857578251},{"$f":"L$3*('COM-Appliance class'!$AF60/'Volume per connection'!$J$69)","v":-49828.2189586561},{"$f":"M$3*('COM-Appliance class'!$AF60/'Volume per connection'!$J$69)","v":-49139.510904228555},{"$f":"N$3*('COM-Appliance class'!$AF60/'Volume per connection'!$J$69)","v":-48454.246390073153},{"$f":"O$3*('COM-Appliance class'!$AF60/'Volume per connection'!$J$69)","v":-47772.40819848852},{"$f":"P$3*('COM-Appliance class'!$AF60/'Volume per connection'!$J$69)","v":-47093.97919786183},{"$f":"Q$3*('COM-Appliance class'!$AF60/'Volume per connection'!$J$69)","v":-46418.942342238246},{"$f":"R$3*('COM-Appliance class'!$AF60/'Volume per connection'!$J$69)","v":-45747.280670892804},{"$f":"S$3*('COM-Appliance class'!$AF60/'Volume per connection'!$J$69)","v":-45078.977307904082},{"$f":"T$3*('COM-Appliance class'!$AF60/'Volume per connection'!$J$69)","v":-44414.015461730305},{"$f":"U$3*('COM-Appliance class'!$AF60/'Volume per connection'!$J$69)","v":-43752.378424787385},{"$f":"V$3*('COM-Appliance class'!$AF60/'Volume per connection'!$J$69)","v":-43094.04957302918},{"$f":"W$3*('COM-Appliance class'!$AF60/'Volume per connection'!$J$69)","v":-42439.012365529765},{"$f":"X$3*('COM-Appliance class'!$AF60/'Volume per connection'!$J$69)","v":-41787.250344067856},{"$f":"Y$3*('COM-Appliance class'!$AF60/'Volume per connection'!$J$69)","v":-41138.747132713259},{"$f":"Z$3*('COM-Appliance class'!$AF60/'Volume per connection'!$J$69)","v":-40493.486437415428},{"$f":"AA$3*('COM-Appliance class'!$AF60/'Volume per connection'!$J$69)","v":-39851.452045594087},{"$f":"AB$3*('COM-Appliance class'!$AF60/'Volume per connection'!$J$69)","v":-39212.627825731855},{"$f":"AC$3*('COM-Appliance class'!$AF60/'Volume per connection'!$J$69)","v":-38576.997726968941},{"$f":"AD$3*('COM-Appliance class'!$AF60/'Volume per connection'!$J$69)","v":-37944.545778699838},{"$f":"AE$3*('COM-Appliance class'!$AF60/'Volume per connection'!$J$69)","v":-37315.256090172079},{"$f":"AF$3*('COM-Appliance class'!$AF60/'Volume per connection'!$J$69)","v":-36689.112850086953},{"$f":"AG$3*('COM-Appliance class'!$AF60/'Volume per connection'!$J$69)","v":-36689.112850086953},{"$f":"AH$3*('COM-Appliance class'!$AF60/'Volume per connection'!$J$69)","v":-36689.112850086953},{"$f":"AI$3*('COM-Appliance class'!$AF60/'Volume per connection'!$J$69)","v":-36689.112850086953},{"$f":"AJ$3*('COM-Appliance class'!$AF60/'Volume per connection'!$J$69)","v":-36689.112850086953},{"$f":"AK$3*('COM-Appliance class'!$AF60/'Volume per connection'!$J$69)","v":-36689.112850086953},{"$f":"AL$3*('COM-Appliance class'!$AF60/'Volume per connection'!$J$69)","v":-36689.112850086953},{"$f":"AM$3*('COM-Appliance class'!$AF60/'Volume per connection'!$J$69)","v":-36689.112850086953},{"$f":"AN$3*('COM-Appliance class'!$AF60/'Volume per connection'!$J$69)","v":-36689.112850086953},{"$f":"AO$3*('COM-Appliance class'!$AF60/'Volume per connection'!$J$69)","v":-36689.112850086953},{"$f":"AP$3*('COM-Appliance class'!$AF60/'Volume per connection'!$J$69)","v":-36689.112850086953},{"$f":"AQ$3*('COM-Appliance class'!$AF60/'Volume per connection'!$J$69)","v":-36689.112850086953},{"$f":"AR$3*('COM-Appliance class'!$AF60/'Volume per connection'!$J$69)","v":-36689.112850086953},{"$f":"AS$3*('COM-Appliance class'!$AF60/'Volume per connection'!$J$69)","v":-36689.112850086953},{"$f":"AT$3*('COM-Appliance class'!$AF60/'Volume per connection'!$J$69)","v":-36689.112850086953},{"$f":"AU$3*('COM-Appliance class'!$AF60/'Volume per connection'!$J$69)","v":-36689.112850086953},{"$f":"AV$3*('COM-Appliance class'!$AF60/'Volume per connection'!$J$69)","v":-36689.112850086953},{"$f":"AW$3*('COM-Appliance class'!$AF60/'Volume per connection'!$J$69)","v":-36689.112850086953},{"$f":"AX$3*('COM-Appliance class'!$AF60/'Volume per connection'!$J$69)","v":-36689.112850086953},{"$f":"AY$3*('COM-Appliance class'!$AF60/'Volume per connection'!$J$69)","v":-36689.112850086953},{"$f":"AZ$3*('COM-Appliance class'!$AF60/'Volume per connection'!$J$69)","v":-36689.112850086953},{"$f":"BA$3*('COM-Appliance class'!$AF60/'Volume per connection'!$J$69)","v":-36689.112850086953},{"$f":"BB$3*('COM-Appliance class'!$AF60/'Volume per connection'!$J$69)","v":-36689.112850086953},{"$f":"BC$3*('COM-Appliance class'!$AF60/'Volume per connection'!$J$69)","v":-36689.112850086953},{"$f":"BD$3*('COM-Appliance class'!$AF60/'Volume per connection'!$J$69)","v":-36689.112850086953},{"$f":"BE$3*('COM-Appliance class'!$AF60/'Volume per connection'!$J$69)","v":-36689.112850086953},{"$f":"BF$3*('COM-Appliance class'!$AF60/'Volume per connection'!$J$69)","v":-36689.112850086953},{"$f":"BG$3*('COM-Appliance class'!$AF60/'Volume per connection'!$J$69)","v":-36689.112850086953},{"$f":"BH$3*('COM-Appliance class'!$AF60/'Volume per connection'!$J$69)","v":-36689.112850086953},{"$f":"BI$3*('COM-Appliance class'!$AF60/'Volume per connection'!$J$69)","v":-36689.112850086953},{"$f":"BJ$3*('COM-Appliance class'!$AF60/'Volume per connection'!$J$69)","v":-36689.112850086953},{"$f":"BK$3*('COM-Appliance class'!$AF60/'Volume per connection'!$J$69)","v":-36689.112850086953},{"$f":"BL$3*('COM-Appliance class'!$AF60/'Volume per connection'!$J$69)","v":-36689.112850086953},{"$f":"BM$3*('COM-Appliance class'!$AF60/'Volume per connection'!$J$69)","v":-36689.112850086953},{"$f":"BN$3*('COM-Appliance class'!$AF60/'Volume per connection'!$J$69)","v":-36689.112850086953},{"$f":"BO$3*('COM-Appliance class'!$AF60/'Volume per connection'!$J$69)","v":-36689.112850086953},{"$f":"BP$3*('COM-Appliance class'!$AF60/'Volume per connection'!$J$69)","v":-36689.112850086953},{"$f":"BQ$3*('COM-Appliance class'!$AF60/'Volume per connection'!$J$69)","v":-36689.112850086953},{"$f":"BR$3*('COM-Appliance class'!$AF60/'Volume per connection'!$J$69)","v":-36689.112850086953},{"$f":"BS$3*('COM-Appliance class'!$AF60/'Volume per connection'!$J$69)","v":-36689.112850086953},{"$f":"BT$3*('COM-Appliance class'!$AF60/'Volume per connection'!$J$69)","v":-36689.112850086953},{"$f":"BU$3*('COM-Appliance class'!$AF60/'Volume per connection'!$J$69)","v":-36689.112850086953},{"$f":"BV$3*('COM-Appliance class'!$AF60/'Volume per connection'!$J$69)","v":-36689.112850086953},{"$f":"BW$3*('COM-Appliance class'!$AF60/'Volume per connection'!$J$69)","v":-36689.112850086953},{"$f":"BX$3*('COM-Appliance class'!$AF60/'Volume per connection'!$J$69)","v":-36689.112850086953},{"$f":"BY$3*('COM-Appliance class'!$AF60/'Volume per connection'!$J$69)","v":-36689.112850086953},{"$f":"BZ$3*('COM-Appliance class'!$AF60/'Volume per connection'!$J$69)","v":-36689.112850086953},{"$f":"CA$3*('COM-Appliance class'!$AF60/'Volume per connection'!$J$69)","v":-36689.112850086953},{"$f":"CB$3*('COM-Appliance class'!$AF60/'Volume per connection'!$J$69)","v":-36689.112850086953},{"$f":"CC$3*('COM-Appliance class'!$AF60/'Volume per connection'!$J$69)","v":-36689.112850086953},{"$f":"CD$3*('COM-Appliance class'!$AF60/'Volume per connection'!$J$69)","v":-36689.112850086953}]
["Port Phillip (C)",null,{"$f":"C$3*('COM-Appliance class'!$AF61/'Volume per connection'!$J$69)","v":-55365.305035475125},{"$f":"D$3*('COM-Appliance class'!$AF61/'Volume per connection'!$J$69)","v":-55365.305035475125},{"$f":"E$3*('COM-Appliance class'!$AF61/'Volume per connection'!$J$69)","v":-35265.921381860484},{"$f":"F$3*('COM-Appliance class'!$AF61/'Volume per connection'!$J$69)","v":-35265.921381860484},{"$f":"G$3*('COM-Appliance class'!$AF61/'Volume per connection'!$J$69)","v":-49804.3417675479},{"$f":"H$3*('COM-Appliance class'!$AF61/'Volume per connection'!$J$69)","v":-49804.3417675479},{"$f":"I$3*('COM-Appliance class'!$AF61/'Volume per connection'!$J$69)","v":-49804.3417675479},{"$f":"J$3*('COM-Appliance class'!$AF61/'Volume per connection'!$J$69)","v":-54643.947621639185},{"$f":"K$3*('COM-Appliance class'!$AF61/'Volume per connection'!$J$69)","v":-51090.903029632616},{"$f":"L$3*('COM-Appliance class'!$AF61/'Volume per connection'!$J$69)","v":-50390.917625825889},{"$f":"M$3*('COM-Appliance class'!$AF61/'Volume per connection'!$J$69)","v":-49694.432149038192},{"$f":"N$3*('COM-Appliance class'!$AF61/'Volume per connection'!$J$69)","v":-49001.429099634443},{"$f":"O$3*('COM-Appliance class'!$AF61/'Volume per connection'!$J$69)","v":-48311.891065477699},{"$f":"P$3*('COM-Appliance class'!$AF61/'Volume per connection'!$J$69)","v":-47625.80072149176},{"$f":"Q$3*('COM-Appliance class'!$AF61/'Volume per connection'!$J$69)","v":-46943.140829225733},{"$f":"R$3*('COM-Appliance class'!$AF61/'Volume per connection'!$J$69)","v":-46263.894236421045},{"$f":"S$3*('COM-Appliance class'!$AF61/'Volume per connection'!$J$69)","v":-45588.043876580385},{"$f":"T$3*('COM-Appliance class'!$AF61/'Volume per connection'!$J$69)","v":-44915.572768538928},{"$f":"U$3*('COM-Appliance class'!$AF61/'Volume per connection'!$J$69)","v":-44246.464016037666},{"$f":"V$3*('COM-Appliance class'!$AF61/'Volume per connection'!$J$69)","v":-43580.700807298912},{"$f":"W$3*('COM-Appliance class'!$AF61/'Volume per connection'!$J$69)","v":-42918.266414603844},{"$f":"X$3*('COM-Appliance class'!$AF61/'Volume per connection'!$J$69)","v":-42259.144193872264},{"$f":"Y$3*('COM-Appliance class'!$AF61/'Volume per connection'!$J$69)","v":-41603.317584244345},{"$f":"Z$3*('COM-Appliance class'!$AF61/'Volume per connection'!$J$69)","v":-40950.770107664561},{"$f":"AA$3*('COM-Appliance class'!$AF61/'Volume per connection'!$J$69)","v":-40301.485368467671},{"$f":"AB$3*('COM-Appliance class'!$AF61/'Volume per connection'!$J$69)","v":-39655.447052966767},{"$f":"AC$3*('COM-Appliance class'!$AF61/'Volume per connection'!$J$69)","v":-39012.63892904338},{"$f":"AD$3*('COM-Appliance class'!$AF61/'Volume per connection'!$J$69)","v":-38373.044845739605},{"$f":"AE$3*('COM-Appliance class'!$AF61/'Volume per connection'!$J$69)","v":-37736.648732852351},{"$f":"AF$3*('COM-Appliance class'!$AF61/'Volume per connection'!$J$69)","v":-37103.434600529523},{"$f":"AG$3*('COM-Appliance class'!$AF61/'Volume per connection'!$J$69)","v":-37103.434600529523},{"$f":"AH$3*('COM-Appliance class'!$AF61/'Volume per connection'!$J$69)","v":-37103.434600529523},{"$f":"AI$3*('COM-Appliance class'!$AF61/'Volume per connection'!$J$69)","v":-37103.434600529523},{"$f":"AJ$3*('COM-Appliance class'!$AF61/'Volume per connection'!$J$69)","v":-37103.434600529523},{"$f":"AK$3*('COM-Appliance class'!$AF61/'Volume per connection'!$J$69)","v":-37103.434600529523},{"$f":"AL$3*('COM-Appliance class'!$AF61/'Volume per connection'!$J$69)","v":-37103.434600529523},{"$f":"AM$3*('COM-Appliance class'!$AF61/'Volume per connection'!$J$69)","v":-37103.434600529523},{"$f":"AN$3*('COM-Appliance class'!$AF61/'Volume per connection'!$J$69)","v":-37103.434600529523},{"$f":"AO$3*('COM-Appliance class'!$AF61/'Volume per connection'!$J$69)","v":-37103.434600529523},{"$f":"AP$3*('COM-Appliance class'!$AF61/'Volume per connection'!$J$69)","v":-37103.434600529523},{"$f":"AQ$3*('COM-Appliance class'!$AF61/'Volume per connection'!$J$69)","v":-37103.434600529523},{"$f":"AR$3*('COM-Appliance class'!$AF61/'Volume per connection'!$J$69)","v":-37103.434600529523},{"$f":"AS$3*('COM-Appliance class'!$AF61/'Volume per connection'!$J$69)","v":-37103.434600529523},{"$f":"AT$3*('COM-Appliance class'!$AF61/'Volume per connection'!$J$69)","v":-37103.434600529523},{"$f":"AU$3*('COM-Appliance class'!$AF61/'Volume per connection'!$J$69)","v":-37103.434600529523},{"$f":"AV$3*('COM-Appliance class'!$AF61/'Volume per connection'!$J$69)","v":-37103.434600529523},{"$f":"AW$3*('COM-Appliance class'!$AF61/'Volume per connection'!$J$69)","v":-37103.434600529523},{"$f":"AX$3*('COM-Appliance class'!$AF61/'Volume per connection'!$J$69)","v":-37103.434600529523},{"$f":"AY$3*('COM-Appliance class'!$AF61/'Volume per connection'!$J$69)","v":-37103.434600529523},{"$f":"AZ$3*('COM-Appliance class'!$AF61/'Volume per connection'!$J$69)","v":-37103.434600529523},{"$f":"BA$3*('COM-Appliance class'!$AF61/'Volume per connection'!$J$69)","v":-37103.434600529523},{"$f":"BB$3*('COM-Appliance class'!$AF61/'Volume per connection'!$J$69)","v":-37103.434600529523},{"$f":"BC$3*('COM-Appliance class'!$AF61/'Volume per connection'!$J$69)","v":-37103.434600529523},{"$f":"BD$3*('COM-Appliance class'!$AF61/'Volume per connection'!$J$69)","v":-37103.434600529523},{"$f":"BE$3*('COM-Appliance class'!$AF61/'Volume per connection'!$J$69)","v":-37103.434600529523},{"$f":"BF$3*('COM-Appliance class'!$AF61/'Volume per connection'!$J$69)","v":-37103.434600529523},{"$f":"BG$3*('COM-Appliance class'!$AF61/'Volume per connection'!$J$69)","v":-37103.434600529523},{"$f":"BH$3*('COM-Appliance class'!$AF61/'Volume per connection'!$J$69)","v":-37103.434600529523},{"$f":"BI$3*('COM-Appliance class'!$AF61/'Volume per connection'!$J$69)","v":-37103.434600529523},{"$f":"BJ$3*('COM-Appliance class'!$AF61/'Volume per connection'!$J$69)","v":-37103.434600529523},{"$f":"BK$3*('COM-Appliance class'!$AF61/'Volume per connection'!$J$69)","v":-37103.434600529523},{"$f":"BL$3*('COM-Appliance class'!$AF61/'Volume per connection'!$J$69)","v":-37103.434600529523},{"$f":"BM$3*('COM-Appliance class'!$AF61/'Volume per connection'!$J$69)","v":-37103.434600529523},{"$f":"BN$3*('COM-Appliance class'!$AF61/'Volume per connection'!$J$69)","v":-37103.434600529523},{"$f":"BO$3*('COM-Appliance class'!$AF61/'Volume per connection'!$J$69)","v":-37103.434600529523},{"$f":"BP$3*('COM-Appliance class'!$AF61/'Volume per connection'!$J$69)","v":-37103.434600529523},{"$f":"BQ$3*('COM-Appliance class'!$AF61/'Volume per connection'!$J$69)","v":-37103.434600529523},{"$f":"BR$3*('COM-Appliance class'!$AF61/'Volume per connection'!$J$69)","v":-37103.434600529523},{"$f":"BS$3*('COM-Appliance class'!$AF61/'Volume per connection'!$J$69)","v":-37103.434600529523},{"$f":"BT$3*('COM-Appliance class'!$AF61/'Volume per connection'!$J$69)","v":-37103.434600529523},{"$f":"BU$3*('COM-Appliance class'!$AF61/'Volume per connection'!$J$69)","v":-37103.434600529523},{"$f":"BV$3*('COM-Appliance class'!$AF61/'Volume per connection'!$J$69)","v":-37103.434600529523},{"$f":"BW$3*('COM-Appliance class'!$AF61/'Volume per connection'!$J$69)","v":-37103.434600529523},{"$f":"BX$3*('COM-Appliance class'!$AF61/'Volume per connection'!$J$69)","v":-37103.434600529523},{"$f":"BY$3*('COM-Appliance class'!$AF61/'Volume per connection'!$J$69)","v":-37103.434600529523},{"$f":"BZ$3*('COM-Appliance class'!$AF61/'Volume per connection'!$J$69)","v":-37103.434600529523},{"$f":"CA$3*('COM-Appliance class'!$AF61/'Volume per connection'!$J$69)","v":-37103.434600529523},{"$f":"CB$3*('COM-Appliance class'!$AF61/'Volume per connection'!$J$69)","v":-37103.434600529523},{"$f":"CC$3*('COM-Appliance class'!$AF61/'Volume per connection'!$J$69)","v":-37103.434600529523},{"$f":"CD$3*('COM-Appliance class'!$AF61/'Volume per connection'!$J$69)","v":-37103.434600529523}]
["South Gippsland (S)",null,{"$f":"C$3*('COM-Appliance class'!$AF62/'Volume per connection'!$J$69)","v":-52991.984611537984},{"$f":"D$3*('COM-Appliance class'!$AF62/'Volume per connection'!$J$69)","v":-52991.984611537984},{"$f":"E$3*('COM-Appliance class'!$AF62/'Volume per connection'!$J$69)","v":-33754.192485380954},{"$f":"F$3*('COM-Appliance class'!$AF62/'Volume per connection'!$J$69)","v":-33754.192485380954},{"$f":"G$3*('COM-Appliance class'!$AF62/'Volume per connection'!$J$69)","v":-47669.400734676688},{"$f":"H$3*('COM-Appliance class'!$AF62/'Volume per connection'!$J$69)","v":-47669.400734676688},{"$f":"I$3*('COM-Appliance class'!$AF62/'Volume per connection'!$J$69)","v":-47669.400734676688},{"$f":"J$3*('COM-Appliance class'!$AF62/'Volume per connection'!$J$69)","v":-52301.549311869356},{"$f":"K$3*('COM-Appliance class'!$AF62/'Volume per connection'!$J$69)","v":-48900.811535330802},{"$f":"L$3*('COM-Appliance class'!$AF62/'Volume per connection'!$J$69)","v":-48230.832101043219},{"$f":"M$3*('COM-Appliance class'!$AF62/'Volume per connection'!$J$69)","v":-47564.202563927072},{"$f":"N$3*('COM-Appliance class'!$AF62/'Volume per connection'!$J$69)","v":-46900.906174496507},{"$f":"O$3*('COM-Appliance class'!$AF62/'Volume per connection'!$J$69)","v":-46240.926267013085},{"$f":"P$3*('COM-Appliance class'!$AF62/'Volume per connection'!$J$69)","v":-45584.246259067098},{"$f":"Q$3*('COM-Appliance class'!$AF62/'Volume per connection'!$J$69)","v":-44930.849651160825},{"$f":"R$3*('COM-Appliance class'!$AF62/'Volume per connection'!$J$69)","v":-44280.720026294097},{"$f":"S$3*('COM-Appliance class'!$AF62/'Volume per connection'!$J$69)","v":-43633.841049551702},{"$f":"T$3*('COM-Appliance class'!$AF62/'Volume per connection'!$J$69)","v":-42990.196467693015},{"$f":"U$3*('COM-Appliance class'!$AF62/'Volume per connection'!$J$69)","v":-42349.770108743614},{"$f":"V$3*('COM-Appliance class'!$AF62/'Volume per connection'!$J$69)","v":-41712.545881588965},{"$f":"W$3*('COM-Appliance class'!$AF62/'Volume per connection'!$J$69)","v":-41078.507775570084},{"$f":"X$3*('COM-Appliance class'!$AF62/'Volume per connection'!$J$69)","v":-40447.639860081305},{"$f":"Y$3*('COM-Appliance class'!$AF62/'Volume per connection'!$J$69)","v":-39819.926284169967},{"$f":"Z$3*('COM-Appliance class'!$AF62/'Volume per connection'!$J$69)","v":-39195.351276138186},{"$f":"AA$3*('COM-Appliance class'!$AF62/'Volume per connection'!$J$69)","v":-38573.899143146555},{"$f":"AB$3*('COM-Appliance class'!$AF62/'Volume per connection'!$J$69)","v":-37955.554270819892},{"$f":"AC$3*('COM-Appliance class'!$AF62/'Volume per connection'!$J$69)","v":-37340.301122854871},{"$f":"AD$3*('COM-Appliance class'!$AF62/'Volume per connection'!$J$69)","v":-36728.124240629673},{"$f":"AE$3*('COM-Appliance class'!$AF62/'Volume per connection'!$J$69)","v":-36119.008242815595},{"$f":"AF$3*('COM-Appliance class'!$AF62/'Volume per connection'!$J$69)","v":-35512.937824990586},{"$f":"AG$3*('COM-Appliance class'!$AF62/'Volume per connection'!$J$69)","v":-35512.937824990586},{"$f":"AH$3*('COM-Appliance class'!$AF62/'Volume per connection'!$J$69)","v":-35512.937824990586},{"$f":"AI$3*('COM-Appliance class'!$AF62/'Volume per connection'!$J$69)","v":-35512.937824990586},{"$f":"AJ$3*('COM-Appliance class'!$AF62/'Volume per connection'!$J$69)","v":-35512.937824990586},{"$f":"AK$3*('COM-Appliance class'!$AF62/'Volume per connection'!$J$69)","v":-35512.937824990586},{"$f":"AL$3*('COM-Appliance class'!$AF62/'Volume per connection'!$J$69)","v":-35512.937824990586},{"$f":"AM$3*('COM-Appliance class'!$AF62/'Volume per connection'!$J$69)","v":-35512.937824990586},{"$f":"AN$3*('COM-Appliance class'!$AF62/'Volume per connection'!$J$69)","v":-35512.937824990586},{"$f":"AO$3*('COM-Appliance class'!$AF62/'Volume per connection'!$J$69)","v":-35512.937824990586},{"$f":"AP$3*('COM-Appliance class'!$AF62/'Volume per connection'!$J$69)","v":-35512.937824990586},{"$f":"AQ$3*('COM-Appliance class'!$AF62/'Volume per connection'!$J$69)","v":-35512.937824990586},{"$f":"AR$3*('COM-Appliance class'!$AF62/'Volume per connection'!$J$69)","v":-35512.937824990586},{"$f":"AS$3*('COM-Appliance class'!$AF62/'Volume per connection'!$J$69)","v":-35512.937824990586},{"$f":"AT$3*('COM-Appliance class'!$AF62/'Volume per connection'!$J$69)","v":-35512.937824990586},{"$f":"AU$3*('COM-Appliance class'!$AF62/'Volume per connection'!$J$69)","v":-35512.937824990586},{"$f":"AV$3*('COM-Appliance class'!$AF62/'Volume per connection'!$J$69)","v":-35512.937824990586},{"$f":"AW$3*('COM-Appliance class'!$AF62/'Volume per connection'!$J$69)","v":-35512.937824990586},{"$f":"AX$3*('COM-Appliance class'!$AF62/'Volume per connection'!$J$69)","v":-35512.937824990586},{"$f":"AY$3*('COM-Appliance class'!$AF62/'Volume per connection'!$J$69)","v":-35512.937824990586},{"$f":"AZ$3*('COM-Appliance class'!$AF62/'Volume per connection'!$J$69)","v":-35512.937824990586},{"$f":"BA$3*('COM-Appliance class'!$AF62/'Volume per connection'!$J$69)","v":-35512.937824990586},{"$f":"BB$3*('COM-Appliance class'!$AF62/'Volume per connection'!$J$69)","v":-35512.937824990586},{"$f":"BC$3*('COM-Appliance class'!$AF62/'Volume per connection'!$J$69)","v":-35512.937824990586},{"$f":"BD$3*('COM-Appliance class'!$AF62/'Volume per connection'!$J$69)","v":-35512.937824990586},{"$f":"BE$3*('COM-Appliance class'!$AF62/'Volume per connection'!$J$69)","v":-35512.937824990586},{"$f":"BF$3*('COM-Appliance class'!$AF62/'Volume per connection'!$J$69)","v":-35512.937824990586},{"$f":"BG$3*('COM-Appliance class'!$AF62/'Volume per connection'!$J$69)","v":-35512.937824990586},{"$f":"BH$3*('COM-Appliance class'!$AF62/'Volume per connection'!$J$69)","v":-35512.937824990586},{"$f":"BI$3*('COM-Appliance class'!$AF62/'Volume per connection'!$J$69)","v":-35512.937824990586},{"$f":"BJ$3*('COM-Appliance class'!$AF62/'Volume per connection'!$J$69)","v":-35512.937824990586},{"$f":"BK$3*('COM-Appliance class'!$AF62/'Volume per connection'!$J$69)","v":-35512.937824990586},{"$f":"BL$3*('COM-Appliance class'!$AF62/'Volume per connection'!$J$69)","v":-35512.937824990586},{"$f":"BM$3*('COM-Appliance class'!$AF62/'Volume per connection'!$J$69)","v":-35512.937824990586},{"$f":"BN$3*('COM-Appliance class'!$AF62/'Volume per connection'!$J$69)","v":-35512.937824990586},{"$f":"BO$3*('COM-Appliance class'!$AF62/'Volume per connection'!$J$69)","v":-35512.937824990586},{"$f":"BP$3*('COM-Appliance class'!$AF62/'Volume per connection'!$J$69)","v":-35512.937824990586},{"$f":"BQ$3*('COM-Appliance class'!$AF62/'Volume per connection'!$J$69)","v":-35512.937824990586},{"$f":"BR$3*('COM-Appliance class'!$AF62/'Volume per connection'!$J$69)","v":-35512.937824990586},{"$f":"BS$3*('COM-Appliance class'!$AF62/'Volume per connection'!$J$69)","v":-35512.937824990586},{"$f":"BT$3*('COM-Appliance class'!$AF62/'Volume per connection'!$J$69)","v":-35512.937824990586},{"$f":"BU$3*('COM-Appliance class'!$AF62/'Volume per connection'!$J$69)","v":-35512.937824990586},{"$f":"BV$3*('COM-Appliance class'!$AF62/'Volume per connection'!$J$69)","v":-35512.937824990586},{"$f":"BW$3*('COM-Appliance class'!$AF62/'Volume per connection'!$J$69)","v":-35512.937824990586},{"$f":"BX$3*('COM-Appliance class'!$AF62/'Volume per connection'!$J$69)","v":-35512.937824990586},{"$f":"BY$3*('COM-Appliance class'!$AF62/'Volume per connection'!$J$69)","v":-35512.937824990586},{"$f":"BZ$3*('COM-Appliance class'!$AF62/'Volume per connection'!$J$69)","v":-35512.937824990586},{"$f":"CA$3*('COM-Appliance class'!$AF62/'Volume per connection'!$J$69)","v":-35512.937824990586},{"$f":"CB$3*('COM-Appliance class'!$AF62/'Volume per connection'!$J$69)","v":-35512.937824990586},{"$f":"CC$3*('COM-Appliance class'!$AF62/'Volume per connection'!$J$69)","v":-35512.937824990586},{"$f":"CD$3*('COM-Appliance class'!$AF62/'Volume per connection'!$J$69)","v":-35512.937824990586}]
["Stonnington (C)",null,{"$f":"C$3*('COM-Appliance class'!$AF63/'Volume per connection'!$J$69)","v":-55849.255165943498},{"$f":"D$3*('COM-Appliance class'!$AF63/'Volume per connection'!$J$69)","v":-55849.255165943498},{"$f":"E$3*('COM-Appliance class'!$AF63/'Volume per connection'!$J$69)","v":-35574.182074055767},{"$f":"F$3*('COM-Appliance class'!$AF63/'Volume per connection'!$J$69)","v":-35574.182074055767},{"$f":"G$3*('COM-Appliance class'!$AF63/'Volume per connection'!$J$69)","v":-50239.683317293762},{"$f":"H$3*('COM-Appliance class'!$AF63/'Volume per connection'!$J$69)","v":-50239.683317293762},{"$f":"I$3*('COM-Appliance class'!$AF63/'Volume per connection'!$J$69)","v":-50239.683317293762},{"$f":"J$3*('COM-Appliance class'!$AF63/'Volume per connection'!$J$69)","v":-55121.592340906143},{"$f":"K$3*('COM-Appliance class'!$AF63/'Volume per connection'!$J$69)","v":-51537.490457826039},{"$f":"L$3*('COM-Appliance class'!$AF63/'Volume per connection'!$J$69)","v":-50831.386456329274},{"$f":"M$3*('COM-Appliance class'!$AF63/'Volume per connection'!$J$69)","v":-50128.812974840002},{"$f":"N$3*('COM-Appliance class'!$AF63/'Volume per connection'!$J$69)","v":-49429.752360758175},{"$f":"O$3*('COM-Appliance class'!$AF63/'Volume per connection'!$J$69)","v":-48734.187049746739},{"$f":"P$3*('COM-Appliance class'!$AF63/'Volume per connection'!$J$69)","v":-48042.099565290388},{"$f":"Q$3*('COM-Appliance class'!$AF63/'Volume per connection'!$J$69)","v":-47353.472518256291},{"$f":"R$3*('COM-Appliance class'!$AF63/'Volume per connection'!$J$69)","v":-46668.28860645739},{"$f":"S$3*('COM-Appliance class'!$AF63/'Volume per connection'!$J$69)","v":-45986.530614217474},{"$f":"T$3*('COM-Appliance class'!$AF63/'Volume per connection'!$J$69)","v":-45308.181411938756},{"$f":"U$3*('COM-Appliance class'!$AF63/'Volume per connection'!$J$69)","v":-44633.223955671427},{"$f":"V$3*('COM-Appliance class'!$AF63/'Volume per connection'!$J$69)","v":-43961.641286685437},{"$f":"W$3*('COM-Appliance class'!$AF63/'Volume per connection'!$J$69)","v":-43293.416531044371},{"$f":"X$3*('COM-Appliance class'!$AF63/'Volume per connection'!$J$69)","v":-42628.532899181519},{"$f":"Y$3*('COM-Appliance class'!$AF63/'Volume per connection'!$J$69)","v":-41966.973685477984},{"$f":"Z$3*('COM-Appliance class'!$AF63/'Volume per connection'!$J$69)","v":-41308.722267842961},{"$f":"AA$3*('COM-Appliance class'!$AF63/'Volume per connection'!$J$69)","v":-40653.762107296112},{"$f":"AB$3*('COM-Appliance class'!$AF63/'Volume per connection'!$J$69)","v":-40002.076747551997},{"$f":"AC$3*('COM-Appliance class'!$AF63/'Volume per connection'!$J$69)","v":-39353.649814606615},{"$f":"AD$3*('COM-Appliance class'!$AF63/'Volume per connection'!$J$69)","v":-38708.46501632595},{"$f":"AE$3*('COM-Appliance class'!$AF63/'Volume per connection'!$J$69)","v":-38066.506142036691},{"$f":"AF$3*('COM-Appliance class'!$AF63/'Volume per connection'!$J$69)","v":-37427.757062118879},{"$f":"AG$3*('COM-Appliance class'!$AF63/'Volume per connection'!$J$69)","v":-37427.757062118879},{"$f":"AH$3*('COM-Appliance class'!$AF63/'Volume per connection'!$J$69)","v":-37427.757062118879},{"$f":"AI$3*('COM-Appliance class'!$AF63/'Volume per connection'!$J$69)","v":-37427.757062118879},{"$f":"AJ$3*('COM-Appliance class'!$AF63/'Volume per connection'!$J$69)","v":-37427.757062118879},{"$f":"AK$3*('COM-Appliance class'!$AF63/'Volume per connection'!$J$69)","v":-37427.757062118879},{"$f":"AL$3*('COM-Appliance class'!$AF63/'Volume per connection'!$J$69)","v":-37427.757062118879},{"$f":"AM$3*('COM-Appliance class'!$AF63/'Volume per connection'!$J$69)","v":-37427.757062118879},{"$f":"AN$3*('COM-Appliance class'!$AF63/'Volume per connection'!$J$69)","v":-37427.757062118879},{"$f":"AO$3*('COM-Appliance class'!$AF63/'Volume per connection'!$J$69)","v":-37427.757062118879},{"$f":"AP$3*('COM-Appliance class'!$AF63/'Volume per connection'!$J$69)","v":-37427.757062118879},{"$f":"AQ$3*('COM-Appliance class'!$AF63/'Volume per connection'!$J$69)","v":-37427.757062118879},{"$f":"AR$3*('COM-Appliance class'!$AF63/'Volume per connection'!$J$69)","v":-37427.757062118879},{"$f":"AS$3*('COM-Appliance class'!$AF63/'Volume per connection'!$J$69)","v":-37427.757062118879},{"$f":"AT$3*('COM-Appliance class'!$AF63/'Volume per connection'!$J$69)","v":-37427.757062118879},{"$f":"AU$3*('COM-Appliance class'!$AF63/'Volume per connection'!$J$69)","v":-37427.757062118879},{"$f":"AV$3*('COM-Appliance class'!$AF63/'Volume per connection'!$J$69)","v":-37427.757062118879},{"$f":"AW$3*('COM-Appliance class'!$AF63/'Volume per connection'!$J$69)","v":-37427.757062118879},{"$f":"AX$3*('COM-Appliance class'!$AF63/'Volume per connection'!$J$69)","v":-37427.757062118879},{"$f":"AY$3*('COM-Appliance class'!$AF63/'Volume per connection'!$J$69)","v":-37427.757062118879},{"$f":"AZ$3*('COM-Appliance class'!$AF63/'Volume per connection'!$J$69)","v":-37427.757062118879},{"$f":"BA$3*('COM-Appliance class'!$AF63/'Volume per connection'!$J$69)","v":-37427.757062118879},{"$f":"BB$3*('COM-Appliance class'!$AF63/'Volume per connection'!$J$69)","v":-37427.757062118879},{"$f":"BC$3*('COM-Appliance class'!$AF63/'Volume per connection'!$J$69)","v":-37427.757062118879},{"$f":"BD$3*('COM-Appliance class'!$AF63/'Volume per connection'!$J$69)","v":-37427.757062118879},{"$f":"BE$3*('COM-Appliance class'!$AF63/'Volume per connection'!$J$69)","v":-37427.757062118879},{"$f":"BF$3*('COM-Appliance class'!$AF63/'Volume per connection'!$J$69)","v":-37427.757062118879},{"$f":"BG$3*('COM-Appliance class'!$AF63/'Volume per connection'!$J$69)","v":-37427.757062118879},{"$f":"BH$3*('COM-Appliance class'!$AF63/'Volume per connection'!$J$69)","v":-37427.757062118879},{"$f":"BI$3*('COM-Appliance class'!$AF63/'Volume per connection'!$J$69)","v":-37427.757062118879},{"$f":"BJ$3*('COM-Appliance class'!$AF63/'Volume per connection'!$J$69)","v":-37427.757062118879},{"$f":"BK$3*('COM-Appliance class'!$AF63/'Volume per connection'!$J$69)","v":-37427.757062118879},{"$f":"BL$3*('COM-Appliance class'!$AF63/'Volume per connection'!$J$69)","v":-37427.757062118879},{"$f":"BM$3*('COM-Appliance class'!$AF63/'Volume per connection'!$J$69)","v":-37427.757062118879},{"$f":"BN$3*('COM-Appliance class'!$AF63/'Volume per connection'!$J$69)","v":-37427.757062118879},{"$f":"BO$3*('COM-Appliance class'!$AF63/'Volume per connection'!$J$69)","v":-37427.757062118879},{"$f":"BP$3*('COM-Appliance class'!$AF63/'Volume per connection'!$J$69)","v":-37427.757062118879},{"$f":"BQ$3*('COM-Appliance class'!$AF63/'Volume per connection'!$J$69)","v":-37427.757062118879},{"$f":"BR$3*('COM-Appliance class'!$AF63/'Volume per connection'!$J$69)","v":-37427.757062118879},{"$f":"BS$3*('COM-Appliance class'!$AF63/'Volume per connection'!$J$69)","v":-37427.757062118879},{"$f":"BT$3*('COM-Appliance class'!$AF63/'Volume per connection'!$J$69)","v":-37427.757062118879},{"$f":"BU$3*('COM-Appliance class'!$AF63/'Volume per connection'!$J$69)","v":-37427.757062118879},{"$f":"BV$3*('COM-Appliance class'!$AF63/'Volume per connection'!$J$69)","v":-37427.757062118879},{"$f":"BW$3*('COM-Appliance class'!$AF63/'Volume per connection'!$J$69)","v":-37427.757062118879},{"$f":"BX$3*('COM-Appliance class'!$AF63/'Volume per connection'!$J$69)","v":-37427.757062118879},{"$f":"BY$3*('COM-Appliance class'!$AF63/'Volume per connection'!$J$69)","v":-37427.757062118879},{"$f":"BZ$3*('COM-Appliance class'!$AF63/'Volume per connection'!$J$69)","v":-37427.757062118879},{"$f":"CA$3*('COM-Appliance class'!$AF63/'Volume per connection'!$J$69)","v":-37427.757062118879},{"$f":"CB$3*('COM-Appliance class'!$AF63/'Volume per connection'!$J$69)","v":-37427.757062118879},{"$f":"CC$3*('COM-Appliance class'!$AF63/'Volume per connection'!$J$69)","v":-37427.757062118879},{"$f":"CD$3*('COM-Appliance class'!$AF63/'Volume per connection'!$J$69)","v":-37427.757062118879}]
["Whitehorse (C)",null,{"$f":"C$3*('COM-Appliance class'!$AF64/'Volume per connection'!$J$69)","v":-56177.330273437532},{"$f":"D$3*('COM-Appliance class'!$AF64/'Volume per connection'!$J$69)","v":-56177.330273437532},{"$f":"E$3*('COM-Appliance class'!$AF64/'Volume per connection'!$J$69)","v":-35783.155382173849},{"$f":"F$3*('COM-Appliance class'!$AF64/'Volume per connection'!$J$69)","v":-35783.155382173849},{"$f":"G$3*('COM-Appliance class'!$AF64/'Volume per connection'!$J$69)","v":-50534.806134165963},{"$f":"H$3*('COM-Appliance class'!$AF64/'Volume per connection'!$J$69)","v":-50534.806134165963},{"$f":"I$3*('COM-Appliance class'!$AF64/'Volume per connection'!$J$69)","v":-50534.806134165963},{"$f":"J$3*('COM-Appliance class'!$AF64/'Volume per connection'!$J$69)","v":-55445.392940909718},{"$f":"K$3*('COM-Appliance class'!$AF64/'Volume per connection'!$J$69)","v":-51840.236979184032},{"$f":"L$3*('COM-Appliance class'!$AF64/'Volume per connection'!$J$69)","v":-51129.985113127485},{"$f":"M$3*('COM-Appliance class'!$AF64/'Volume per connection'!$J$69)","v":-50423.284506401229},{"$f":"N$3*('COM-Appliance class'!$AF64/'Volume per connection'!$J$69)","v":-49720.117402708602},{"$f":"O$3*('COM-Appliance class'!$AF64/'Volume per connection'!$J$69)","v":-49020.466134534421},{"$f":"P$3*('COM-Appliance class'!$AF64/'Volume per connection'!$J$69)","v":-48324.31312270114},{"$f":"Q$3*('COM-Appliance class'!$AF64/'Volume per connection'!$J$69)","v":-47631.640875926998},{"$f":"R$3*('COM-Appliance class'!$AF64/'Volume per connection'!$J$69)","v":-46942.431990386751},{"$f":"S$3*('COM-Appliance class'!$AF64/'Volume per connection'!$J$69)","v":-46256.669149274203},{"$f":"T$3*('COM-Appliance class'!$AF64/'Volume per connection'!$J$69)","v":-45574.335122367207},{"$f":"U$3*('COM-Appliance class'!$AF64/'Volume per connection'!$J$69)","v":-44895.412765594745},{"$f":"V$3*('COM-Appliance class'!$AF64/'Volume per connection'!$J$69)","v":-44219.885020606147},{"$f":"W$3*('COM-Appliance class'!$AF64/'Volume per connection'!$J$69)","v":-43547.734914342487},{"$f":"X$3*('COM-Appliance class'!$AF64/'Volume per connection'!$J$69)","v":-42878.945558610154},{"$f":"Y$3*('COM-Appliance class'!$AF64/'Volume per connection'!$J$69)","v":-42213.50014965648},{"$f":"Z$3*('COM-Appliance class'!$AF64/'Volume per connection'!$J$69)","v":-41551.381967747569},{"$f":"AA$3*('COM-Appliance class'!$AF64/'Volume per connection'!$J$69)","v":-40892.574376748205},{"$f":"AB$3*('COM-Appliance class'!$AF64/'Volume per connection'!$J$69)","v":-40237.06082370384},{"$f":"AC$3*('COM-Appliance class'!$AF64/'Volume per connection'!$J$69)","v":-39584.824838424705},{"$f":"AD$3*('COM-Appliance class'!$AF64/'Volume per connection'!$J$69)","v":-38935.850033071962},{"$f":"AE$3*('COM-Appliance class'!$AF64/'Volume per connection'!$J$69)","v":-38290.120101745983},{"$f":"AF$3*('COM-Appliance class'!$AF64/'Volume per connection'!$J$69)","v":-37647.618820076626},{"$f":"AG$3*('COM-Appliance class'!$AF64/'Volume per connection'!$J$69)","v":-37647.618820076626},{"$f":"AH$3*('COM-Appliance class'!$AF64/'Volume per connection'!$J$69)","v":-37647.618820076626},{"$f":"AI$3*('COM-Appliance class'!$AF64/'Volume per connection'!$J$69)","v":-37647.618820076626},{"$f":"AJ$3*('COM-Appliance class'!$AF64/'Volume per connection'!$J$69)","v":-37647.618820076626},{"$f":"AK$3*('COM-Appliance class'!$AF64/'Volume per connection'!$J$69)","v":-37647.618820076626},{"$f":"AL$3*('COM-Appliance class'!$AF64/'Volume per connection'!$J$69)","v":-37647.618820076626},{"$f":"AM$3*('COM-Appliance class'!$AF64/'Volume per connection'!$J$69)","v":-37647.618820076626},{"$f":"AN$3*('COM-Appliance class'!$AF64/'Volume per connection'!$J$69)","v":-37647.618820076626},{"$f":"AO$3*('COM-Appliance class'!$AF64/'Volume per connection'!$J$69)","v":-37647.618820076626},{"$f":"AP$3*('COM-Appliance class'!$AF64/'Volume per connection'!$J$69)","v":-37647.618820076626},{"$f":"AQ$3*('COM-Appliance class'!$AF64/'Volume per connection'!$J$69)","v":-37647.618820076626},{"$f":"AR$3*('COM-Appliance class'!$AF64/'Volume per connection'!$J$69)","v":-37647.618820076626},{"$f":"AS$3*('COM-Appliance class'!$AF64/'Volume per connection'!$J$69)","v":-37647.618820076626},{"$f":"AT$3*('COM-Appliance class'!$AF64/'Volume per connection'!$J$69)","v":-37647.618820076626},{"$f":"AU$3*('COM-Appliance class'!$AF64/'Volume per connection'!$J$69)","v":-37647.618820076626},{"$f":"AV$3*('COM-Appliance class'!$AF64/'Volume per connection'!$J$69)","v":-37647.618820076626},{"$f":"AW$3*('COM-Appliance class'!$AF64/'Volume per connection'!$J$69)","v":-37647.618820076626},{"$f":"AX$3*('COM-Appliance class'!$AF64/'Volume per connection'!$J$69)","v":-37647.618820076626},{"$f":"AY$3*('COM-Appliance class'!$AF64/'Volume per connection'!$J$69)","v":-37647.618820076626},{"$f":"AZ$3*('COM-Appliance class'!$AF64/'Volume per connection'!$J$69)","v":-37647.618820076626},{"$f":"BA$3*('COM-Appliance class'!$AF64/'Volume per connection'!$J$69)","v":-37647.618820076626},{"$f":"BB$3*('COM-Appliance class'!$AF64/'Volume per connection'!$J$69)","v":-37647.618820076626},{"$f":"BC$3*('COM-Appliance class'!$AF64/'Volume per connection'!$J$69)","v":-37647.618820076626},{"$f":"BD$3*('COM-Appliance class'!$AF64/'Volume per connection'!$J$69)","v":-37647.618820076626},{"$f":"BE$3*('COM-Appliance class'!$AF64/'Volume per connection'!$J$69)","v":-37647.618820076626},{"$f":"BF$3*('COM-Appliance class'!$AF64/'Volume per connection'!$J$69)","v":-37647.618820076626},{"$f":"BG$3*('COM-Appliance class'!$AF64/'Volume per connection'!$J$69)","v":-37647.618820076626},{"$f":"BH$3*('COM-Appliance class'!$AF64/'Volume per connection'!$J$69)","v":-37647.618820076626},{"$f":"BI$3*('COM-Appliance class'!$AF64/'Volume per connection'!$J$69)","v":-37647.618820076626},{"$f":"BJ$3*('COM-Appliance class'!$AF64/'Volume per connection'!$J$69)","v":-37647.618820076626},{"$f":"BK$3*('COM-Appliance class'!$AF64/'Volume per connection'!$J$69)","v":-37647.618820076626},{"$f":"BL$3*('COM-Appliance class'!$AF64/'Volume per connection'!$J$69)","v":-37647.618820076626},{"$f":"BM$3*('COM-Appliance class'!$AF64/'Volume per connection'!$J$69)","v":-37647.618820076626},{"$f":"BN$3*('COM-Appliance class'!$AF64/'Volume per connection'!$J$69)","v":-37647.618820076626},{"$f":"BO$3*('COM-Appliance class'!$AF64/'Volume per connection'!$J$69)","v":-37647.618820076626},{"$f":"BP$3*('COM-Appliance class'!$AF64/'Volume per connection'!$J$69)","v":-37647.618820076626},{"$f":"BQ$3*('COM-Appliance class'!$AF64/'Volume per connection'!$J$69)","v":-37647.618820076626},{"$f":"BR$3*('COM-Appliance class'!$AF64/'Volume per connection'!$J$69)","v":-37647.618820076626},{"$f":"BS$3*('COM-Appliance class'!$AF64/'Volume per connection'!$J$69)","v":-37647.618820076626},{"$f":"BT$3*('COM-Appliance class'!$AF64/'Volume per connection'!$J$69)","v":-37647.618820076626},{"$f":"BU$3*('COM-Appliance class'!$AF64/'Volume per connection'!$J$69)","v":-37647.618820076626},{"$f":"BV$3*('COM-Appliance class'!$AF64/'Volume per connection'!$J$69)","v":-37647.618820076626},{"$f":"BW$3*('COM-Appliance class'!$AF64/'Volume per connection'!$J$69)","v":-37647.618820076626},{"$f":"BX$3*('COM-Appliance class'!$AF64/'Volume per connection'!$J$69)","v":-37647.618820076626},{"$f":"BY$3*('COM-Appliance class'!$AF64/'Volume per connection'!$J$69)","v":-37647.618820076626},{"$f":"BZ$3*('COM-Appliance class'!$AF64/'Volume per connection'!$J$69)","v":-37647.618820076626},{"$f":"CA$3*('COM-Appliance class'!$AF64/'Volume per connection'!$J$69)","v":-37647.618820076626},{"$f":"CB$3*('COM-Appliance class'!$AF64/'Volume per connection'!$J$69)","v":-37647.618820076626},{"$f":"CC$3*('COM-Appliance class'!$AF64/'Volume per connection'!$J$69)","v":-37647.618820076626},{"$f":"CD$3*('COM-Appliance class'!$AF64/'Volume per connection'!$J$69)","v":-37647.618820076626}]
["Yarra Ranges (S)",null,{"$f":"C$3*('COM-Appliance class'!$AF65/'Volume per connection'!$J$69)","v":-54289.592518335143},{"$f":"D$3*('COM-Appliance class'!$AF65/'Volume per connection'!$J$69)","v":-54289.592518335143},{"$f":"E$3*('COM-Appliance class'!$AF65/'Volume per connection'!$J$69)","v":-34580.72705240389},{"$f":"F$3*('COM-Appliance class'!$AF65/'Volume per connection'!$J$69)","v":-34580.72705240389},{"$f":"G$3*('COM-Appliance class'!$AF65/'Volume per connection'!$J$69)","v":-48836.675215129544},{"$f":"H$3*('COM-Appliance class'!$AF65/'Volume per connection'!$J$69)","v":-48836.675215129544},{"$f":"I$3*('COM-Appliance class'!$AF65/'Volume per connection'!$J$69)","v":-48836.675215129544},{"$f":"J$3*('COM-Appliance class'!$AF65/'Volume per connection'!$J$69)","v":-53582.25061834669},{"$f":"K$3*('COM-Appliance class'!$AF65/'Volume per connection'!$J$69)","v":-50098.239413569339},{"$f":"L$3*('COM-Appliance class'!$AF65/'Volume per connection'!$J$69)","v":-49411.854279104715},{"$f":"M$3*('COM-Appliance class'!$AF65/'Volume per connection'!$J$69)","v":-48728.901070312422},{"$f":"N$3*('COM-Appliance class'!$AF65/'Volume per connection'!$J$69)","v":-48049.362627564085},{"$f":"O$3*('COM-Appliance class'!$AF65/'Volume per connection'!$J$69)","v":-47373.221877029478},{"$f":"P$3*('COM-Appliance class'!$AF65/'Volume per connection'!$J$69)","v":-46700.461830247572},{"$f":"Q$3*('COM-Appliance class'!$AF65/'Volume per connection'!$J$69)","v":-46031.065583699543},{"$f":"R$3*('COM-Appliance class'!$AF65/'Volume per connection'!$J$69)","v":-45365.016318384281},{"$f":"S$3*('COM-Appliance class'!$AF65/'Volume per connection'!$J$69)","v":-44702.297299395592},{"$f":"T$3*('COM-Appliance class'!$AF65/'Volume per connection'!$J$69)","v":-44042.891875501839},{"$f":"U$3*('COM-Appliance class'!$AF65/'Volume per connection'!$J$69)","v":-43386.78347872755},{"$f":"V$3*('COM-Appliance class'!$AF65/'Volume per connection'!$J$69)","v":-42733.955623937138},{"$f":"W$3*('COM-Appliance class'!$AF65/'Volume per connection'!$J$69)","v":-42084.391908420672},{"$f":"X$3*('COM-Appliance class'!$AF65/'Volume per connection'!$J$69)","v":-41438.076011481789},{"$f":"Y$3*('COM-Appliance class'!$AF65/'Volume per connection'!$J$69)","v":-40794.991694027609},{"$f":"Z$3*('COM-Appliance class'!$AF65/'Volume per connection'!$J$69)","v":-40155.122798160693},{"$f":"AA$3*('COM-Appliance class'!$AF65/'Volume per connection'!$J$69)","v":-39518.453246773111},{"$f":"AB$3*('COM-Appliance class'!$AF65/'Volume per connection'!$J$69)","v":-38884.967043142467},{"$f":"AC$3*('COM-Appliance class'!$AF65/'Volume per connection'!$J$69)","v":-38254.648270529993},{"$f":"AD$3*('COM-Appliance class'!$AF65/'Volume per connection'!$J$69)","v":-37627.481091780566},{"$f":"AE$3*('COM-Appliance class'!$AF65/'Volume per connection'!$J$69)","v":-37003.449748924897},{"$f":"AF$3*('COM-Appliance class'!$AF65/'Volume per connection'!$J$69)","v":-36382.538562783491},{"$f":"AG$3*('COM-Appliance class'!$AF65/'Volume per connection'!$J$69)","v":-36382.538562783491},{"$f":"AH$3*('COM-Appliance class'!$AF65/'Volume per connection'!$J$69)","v":-36382.538562783491},{"$f":"AI$3*('COM-Appliance class'!$AF65/'Volume per connection'!$J$69)","v":-36382.538562783491},{"$f":"AJ$3*('COM-Appliance class'!$AF65/'Volume per connection'!$J$69)","v":-36382.538562783491},{"$f":"AK$3*('COM-Appliance class'!$AF65/'Volume per connection'!$J$69)","v":-36382.538562783491},{"$f":"AL$3*('COM-Appliance class'!$AF65/'Volume per connection'!$J$69)","v":-36382.538562783491},{"$f":"AM$3*('COM-Appliance class'!$AF65/'Volume per connection'!$J$69)","v":-36382.538562783491},{"$f":"AN$3*('COM-Appliance class'!$AF65/'Volume per connection'!$J$69)","v":-36382.538562783491},{"$f":"AO$3*('COM-Appliance class'!$AF65/'Volume per connection'!$J$69)","v":-36382.538562783491},{"$f":"AP$3*('COM-Appliance class'!$AF65/'Volume per connection'!$J$69)","v":-36382.538562783491},{"$f":"AQ$3*('COM-Appliance class'!$AF65/'Volume per connection'!$J$69)","v":-36382.538562783491},{"$f":"AR$3*('COM-Appliance class'!$AF65/'Volume per connection'!$J$69)","v":-36382.538562783491},{"$f":"AS$3*('COM-Appliance class'!$AF65/'Volume per connection'!$J$69)","v":-36382.538562783491},{"$f":"AT$3*('COM-Appliance class'!$AF65/'Volume per connection'!$J$69)","v":-36382.538562783491},{"$f":"AU$3*('COM-Appliance class'!$AF65/'Volume per connection'!$J$69)","v":-36382.538562783491},{"$f":"AV$3*('COM-Appliance class'!$AF65/'Volume per connection'!$J$69)","v":-36382.538562783491},{"$f":"AW$3*('COM-Appliance class'!$AF65/'Volume per connection'!$J$69)","v":-36382.538562783491},{"$f":"AX$3*('COM-Appliance class'!$AF65/'Volume per connection'!$J$69)","v":-36382.538562783491},{"$f":"AY$3*('COM-Appliance class'!$AF65/'Volume per connection'!$J$69)","v":-36382.538562783491},{"$f":"AZ$3*('COM-Appliance class'!$AF65/'Volume per connection'!$J$69)","v":-36382.538562783491},{"$f":"BA$3*('COM-Appliance class'!$AF65/'Volume per connection'!$J$69)","v":-36382.538562783491},{"$f":"BB$3*('COM-Appliance class'!$AF65/'Volume per connection'!$J$69)","v":-36382.538562783491},{"$f":"BC$3*('COM-Appliance class'!$AF65/'Volume per connection'!$J$69)","v":-36382.538562783491},{"$f":"BD$3*('COM-Appliance class'!$AF65/'Volume per connection'!$J$69)","v":-36382.538562783491},{"$f":"BE$3*('COM-Appliance class'!$AF65/'Volume per connection'!$J$69)","v":-36382.538562783491},{"$f":"BF$3*('COM-Appliance class'!$AF65/'Volume per connection'!$J$69)","v":-36382.538562783491},{"$f":"BG$3*('COM-Appliance class'!$AF65/'Volume per connection'!$J$69)","v":-36382.538562783491},{"$f":"BH$3*('COM-Appliance class'!$AF65/'Volume per connection'!$J$69)","v":-36382.538562783491},{"$f":"BI$3*('COM-Appliance class'!$AF65/'Volume per connection'!$J$69)","v":-36382.538562783491},{"$f":"BJ$3*('COM-Appliance class'!$AF65/'Volume per connection'!$J$69)","v":-36382.538562783491},{"$f":"BK$3*('COM-Appliance class'!$AF65/'Volume per connection'!$J$69)","v":-36382.538562783491},{"$f":"BL$3*('COM-Appliance class'!$AF65/'Volume per connection'!$J$69)","v":-36382.538562783491},{"$f":"BM$3*('COM-Appliance class'!$AF65/'Volume per connection'!$J$69)","v":-36382.538562783491},{"$f":"BN$3*('COM-Appliance class'!$AF65/'Volume per connection'!$J$69)","v":-36382.538562783491},{"$f":"BO$3*('COM-Appliance class'!$AF65/'Volume per connection'!$J$69)","v":-36382.538562783491},{"$f":"BP$3*('COM-Appliance class'!$AF65/'Volume per connection'!$J$69)","v":-36382.538562783491},{"$f":"BQ$3*('COM-Appliance class'!$AF65/'Volume per connection'!$J$69)","v":-36382.538562783491},{"$f":"BR$3*('COM-Appliance class'!$AF65/'Volume per connection'!$J$69)","v":-36382.538562783491},{"$f":"BS$3*('COM-Appliance class'!$AF65/'Volume per connection'!$J$69)","v":-36382.538562783491},{"$f":"BT$3*('COM-Appliance class'!$AF65/'Volume per connection'!$J$69)","v":-36382.538562783491},{"$f":"BU$3*('COM-Appliance class'!$AF65/'Volume per connection'!$J$69)","v":-36382.538562783491},{"$f":"BV$3*('COM-Appliance class'!$AF65/'Volume per connection'!$J$69)","v":-36382.538562783491},{"$f":"BW$3*('COM-Appliance class'!$AF65/'Volume per connection'!$J$69)","v":-36382.538562783491},{"$f":"BX$3*('COM-Appliance class'!$AF65/'Volume per connection'!$J$69)","v":-36382.538562783491},{"$f":"BY$3*('COM-Appliance class'!$AF65/'Volume per connection'!$J$69)","v":-36382.538562783491},{"$f":"BZ$3*('COM-Appliance class'!$AF65/'Volume per connection'!$J$69)","v":-36382.538562783491},{"$f":"CA$3*('COM-Appliance class'!$AF65/'Volume per connection'!$J$69)","v":-36382.538562783491},{"$f":"CB$3*('COM-Appliance class'!$AF65/'Volume per connection'!$J$69)","v":-36382.538562783491},{"$f":"CC$3*('COM-Appliance class'!$AF65/'Volume per connection'!$J$69)","v":-36382.538562783491},{"$f":"CD$3*('COM-Appliance class'!$AF65/'Volume per connection'!$J$69)","v":-36382.538562783491}]
[]
["LGA >900 GJ",2020,{"$f":"B201+1","v":2021},{"$f":"C201+1","v":2022},{"$f":"D201+1","v":2023},{"$f":"E201+1","v":2024},{"$f":"F201+1","v":2025},{"$f":"G201+1","v":2026},{"$f":"H201+1","v":2027},{"$f":"I201+1","v":2028},{"$f":"J201+1","v":2029},{"$f":"K201+1","v":2030},{"$f":"L201+1","v":2031},{"$f":"M201+1","v":2032},{"$f":"N201+1","v":2033},{"$f":"O201+1","v":2034},{"$f":"P201+1","v":2035},{"$f":"Q201+1","v":2036},{"$f":"R201+1","v":2037},{"$f":"S201+1","v":2038},{"$f":"T201+1","v":2039},{"$f":"U201+1","v":2040},{"$f":"V201+1","v":2041},{"$f":"W201+1","v":2042},{"$f":"X201+1","v":2043},{"$f":"Y201+1","v":2044},{"$f":"Z201+1","v":2045},{"$f":"AA201+1","v":2046},{"$f":"AB201+1","v":2047},{"$f":"AC201+1","v":2048},{"$f":"AD201+1","v":2049},{"$f":"AE201+1","v":2050},{"$f":"AF201+1","v":2051},{"$f":"AG201+1","v":2052},{"$f":"AH201+1","v":2053},{"$f":"AI201+1","v":2054},{"$f":"AJ201+1","v":2055},{"$f":"AK201+1","v":2056},{"$f":"AL201+1","v":2057},{"$f":"AM201+1","v":2058},{"$f":"AN201+1","v":2059},{"$f":"AO201+1","v":2060},{"$f":"AP201+1","v":2061},{"$f":"AQ201+1","v":2062},{"$f":"AR201+1","v":2063},{"$f":"AS201+1","v":2064},{"$f":"AT201+1","v":2065},{"$f":"AU201+1","v":2066},{"$f":"AV201+1","v":2067},{"$f":"AW201+1","v":2068},{"$f":"AX201+1","v":2069},{"$f":"AY201+1","v":2070},{"$f":"AZ201+1","v":2071},{"$f":"BA201+1","v":2072},{"$f":"BB201+1","v":2073},{"$f":"BC201+1","v":2074},{"$f":"BD201+1","v":2075},{"$f":"BE201+1","v":2076},{"$f":"BF201+1","v":2077},{"$f":"BG201+1","v":2078},{"$f":"BH201+1","v":2079},{"$f":"BI201+1","v":2080},{"$f":"BJ201+1","v":2081},{"$f":"BK201+1","v":2082},{"$f":"BL201+1","v":2083},{"$f":"BM201+1","v":2084},{"$f":"BN201+1","v":2085},{"$f":"BO201+1","v":2086},{"$f":"BP201+1","v":2087},{"$f":"BQ201+1","v":2088},{"$f":"BR201+1","v":2089},{"$f":"BS201+1","v":2090},{"$f":"BT201+1","v":2091},{"$f":"BU201+1","v":2092},{"$f":"BV201+1","v":2093},{"$f":"BW201+1","v":2094},{"$f":"BX201+1","v":2095},{"$f":"BY201+1","v":2096},{"$f":"BZ201+1","v":2097},{"$f":"CA201+1","v":2098},{"$f":"CB201+1","v":2099},{"$f":"CC201+1","v":2100}]
["Bass Coast (S)",null,{"$f":"C$3*('COM-Appliance class'!$AQ47/'Volume per connection'!$J$69)","v":-252843.99659562294},{"$f":"D$3*('COM-Appliance class'!$AQ47/'Volume per connection'!$J$69)","v":-252843.99659562294},{"$f":"E$3*('COM-Appliance class'!$AQ47/'Volume per connection'!$J$69)","v":-161053.50634487145},{"$f":"F$3*('COM-Appliance class'!$AQ47/'Volume per connection'!$J$69)","v":-161053.50634487145},{"$f":"G$3*('COM-Appliance class'!$AQ47/'Volume per connection'!$J$69)","v":-227448.01662796541},{"$f":"H$3*('COM-Appliance class'!$AQ47/'Volume per connection'!$J$69)","v":-227448.01662796541},{"$f":"I$3*('COM-Appliance class'!$AQ47/'Volume per connection'!$J$69)","v":-227448.01662796541},{"$f":"J$3*('COM-Appliance class'!$AQ47/'Volume per connection'!$J$69)","v":-249549.67912782799},{"$f":"K$3*('COM-Appliance class'!$AQ47/'Volume per connection'!$J$69)","v":-233323.52460470592},{"$f":"L$3*('COM-Appliance class'!$AQ47/'Volume per connection'!$J$69)","v":-230126.80949686555},{"$f":"M$3*('COM-Appliance class'!$AQ47/'Volume per connection'!$J$69)","v":-226946.07796456441},{"$f":"N$3*('COM-Appliance class'!$AQ47/'Volume per connection'!$J$69)","v":-223781.25008992475},{"$f":"O$3*('COM-Appliance class'!$AQ47/'Volume per connection'!$J$69)","v":-220632.24635465824},{"$f":"P$3*('COM-Appliance class'!$AQ47/'Volume per connection'!$J$69)","v":-217498.98763806818},{"$f":"Q$3*('COM-Appliance class'!$AQ47/'Volume per connection'!$J$69)","v":-214381.39521506097},{"$f":"R$3*('COM-Appliance class'!$AQ47/'Volume per connection'!$J$69)","v":-211279.39075416888},{"$f":"S$3*('COM-Appliance class'!$AQ47/'Volume per connection'!$J$69)","v":-208192.89631558122},{"$f":"T$3*('COM-Appliance class'!$AQ47/'Volume per connection'!$J$69)","v":-205121.83434918651},{"$f":"U$3*('COM-Appliance class'!$AQ47/'Volume per connection'!$J$69)","v":-202066.1276926237},{"$f":"V$3*('COM-Appliance class'!$AQ47/'Volume per connection'!$J$69)","v":-199025.69956934373},{"$f":"W$3*('COM-Appliance class'!$AQ47/'Volume per connection'!$J$69)","v":-196000.47358668016},{"$f":"X$3*('COM-Appliance class'!$AQ47/'Volume per connection'!$J$69)","v":-192990.37373392994},{"$f":"Y$3*('COM-Appliance class'!$AQ47/'Volume per connection'!$J$69)","v":-189995.32438044349},{"$f":"Z$3*('COM-Appliance class'!$AQ47/'Volume per connection'!$J$69)","v":-187015.25027372441},{"$f":"AA$3*('COM-Appliance class'!$AQ47/'Volume per connection'!$J$69)","v":-184050.07653753893},{"$f":"AB$3*('COM-Appliance class'!$AQ47/'Volume per connection'!$J$69)","v":-181099.72867003441},{"$f":"AC$3*('COM-Appliance class'!$AQ47/'Volume per connection'!$J$69)","v":-178164.13254186744},{"$f":"AD$3*('COM-Appliance class'!$AQ47/'Volume per connection'!$J$69)","v":-175243.21439434128},{"$f":"AE$3*('COM-Appliance class'!$AQ47/'Volume per connection'!$J$69)","v":-172336.90083755276},{"$f":"AF$3*('COM-Appliance class'!$AQ47/'Volume per connection'!$J$69)","v":-169445.11884854815},{"$f":"AG$3*('COM-Appliance class'!$AQ47/'Volume per connection'!$J$69)","v":-169445.11884854815},{"$f":"AH$3*('COM-Appliance class'!$AQ47/'Volume per connection'!$J$69)","v":-169445.11884854815},{"$f":"AI$3*('COM-Appliance class'!$AQ47/'Volume per connection'!$J$69)","v":-169445.11884854815},{"$f":"AJ$3*('COM-Appliance class'!$AQ47/'Volume per connection'!$J$69)","v":-169445.11884854815},{"$f":"AK$3*('COM-Appliance class'!$AQ47/'Volume per connection'!$J$69)","v":-169445.11884854815},{"$f":"AL$3*('COM-Appliance class'!$AQ47/'Volume per connection'!$J$69)","v":-169445.11884854815},{"$f":"AM$3*('COM-Appliance class'!$AQ47/'Volume per connection'!$J$69)","v":-169445.11884854815},{"$f":"AN$3*('COM-Appliance class'!$AQ47/'Volume per connection'!$J$69)","v":-169445.11884854815},{"$f":"AO$3*('COM-Appliance class'!$AQ47/'Volume per connection'!$J$69)","v":-169445.11884854815},{"$f":"AP$3*('COM-Appliance class'!$AQ47/'Volume per connection'!$J$69)","v":-169445.11884854815},{"$f":"AQ$3*('COM-Appliance class'!$AQ47/'Volume per connection'!$J$69)","v":-169445.11884854815},{"$f":"AR$3*('COM-Appliance class'!$AQ47/'Volume per connection'!$J$69)","v":-169445.11884854815},{"$f":"AS$3*('COM-Appliance class'!$AQ47/'Volume per connection'!$J$69)","v":-169445.11884854815},{"$f":"AT$3*('COM-Appliance class'!$AQ47/'Volume per connection'!$J$69)","v":-169445.11884854815},{"$f":"AU$3*('COM-Appliance class'!$AQ47/'Volume per connection'!$J$69)","v":-169445.11884854815},{"$f":"AV$3*('COM-Appliance class'!$AQ47/'Volume per connection'!$J$69)","v":-169445.11884854815},{"$f":"AW$3*('COM-Appliance class'!$AQ47/'Volume per connection'!$J$69)","v":-169445.11884854815},{"$f":"AX$3*('COM-Appliance class'!$AQ47/'Volume per connection'!$J$69)","v":-169445.11884854815},{"$f":"AY$3*('COM-Appliance class'!$AQ47/'Volume per connection'!$J$69)","v":-169445.11884854815},{"$f":"AZ$3*('COM-Appliance class'!$AQ47/'Volume per connection'!$J$69)","v":-169445.11884854815},{"$f":"BA$3*('COM-Appliance class'!$AQ47/'Volume per connection'!$J$69)","v":-169445.11884854815},{"$f":"BB$3*('COM-Appliance class'!$AQ47/'Volume per connection'!$J$69)","v":-169445.11884854815},{"$f":"BC$3*('COM-Appliance class'!$AQ47/'Volume per connection'!$J$69)","v":-169445.11884854815},{"$f":"BD$3*('COM-Appliance class'!$AQ47/'Volume per connection'!$J$69)","v":-169445.11884854815},{"$f":"BE$3*('COM-Appliance class'!$AQ47/'Volume per connection'!$J$69)","v":-169445.11884854815},{"$f":"BF$3*('COM-Appliance class'!$AQ47/'Volume per connection'!$J$69)","v":-169445.11884854815},{"$f":"BG$3*('COM-Appliance class'!$AQ47/'Volume per connection'!$J$69)","v":-169445.11884854815},{"$f":"BH$3*('COM-Appliance class'!$AQ47/'Volume per connection'!$J$69)","v":-169445.11884854815},{"$f":"BI$3*('COM-Appliance class'!$AQ47/'Volume per connection'!$J$69)","v":-169445.11884854815},{"$f":"BJ$3*('COM-Appliance class'!$AQ47/'Volume per connection'!$J$69)","v":-169445.11884854815},{"$f":"BK$3*('COM-Appliance class'!$AQ47/'Volume per connection'!$J$69)","v":-169445.11884854815},{"$f":"BL$3*('COM-Appliance class'!$AQ47/'Volume per connection'!$J$69)","v":-169445.11884854815},{"$f":"BM$3*('COM-Appliance class'!$AQ47/'Volume per connection'!$J$69)","v":-169445.11884854815},{"$f":"BN$3*('COM-Appliance class'!$AQ47/'Volume per connection'!$J$69)","v":-169445.11884854815},{"$f":"BO$3*('COM-Appliance class'!$AQ47/'Volume per connection'!$J$69)","v":-169445.11884854815},{"$f":"BP$3*('COM-Appliance class'!$AQ47/'Volume per connection'!$J$69)","v":-169445.11884854815},{"$f":"BQ$3*('COM-Appliance class'!$AQ47/'Volume per connection'!$J$69)","v":-169445.11884854815},{"$f":"BR$3*('COM-Appliance class'!$AQ47/'Volume per connection'!$J$69)","v":-169445.11884854815},{"$f":"BS$3*('COM-Appliance class'!$AQ47/'Volume per connection'!$J$69)","v":-169445.11884854815},{"$f":"BT$3*('COM-Appliance class'!$AQ47/'Volume per connection'!$J$69)","v":-169445.11884854815},{"$f":"BU$3*('COM-Appliance class'!$AQ47/'Volume per connection'!$J$69)","v":-169445.11884854815},{"$f":"BV$3*('COM-Appliance class'!$AQ47/'Volume per connection'!$J$69)","v":-169445.11884854815},{"$f":"BW$3*('COM-Appliance class'!$AQ47/'Volume per connection'!$J$69)","v":-169445.11884854815},{"$f":"BX$3*('COM-Appliance class'!$AQ47/'Volume per connection'!$J$69)","v":-169445.11884854815},{"$f":"BY$3*('COM-Appliance class'!$AQ47/'Volume per connection'!$J$69)","v":-169445.11884854815},{"$f":"BZ$3*('COM-Appliance class'!$AQ47/'Volume per connection'!$J$69)","v":-169445.11884854815},{"$f":"CA$3*('COM-Appliance class'!$AQ47/'Volume per connection'!$J$69)","v":-169445.11884854815},{"$f":"CB$3*('COM-Appliance class'!$AQ47/'Volume per connection'!$J$69)","v":-169445.11884854815},{"$f":"CC$3*('COM-Appliance class'!$AQ47/'Volume per connection'!$J$69)","v":-169445.11884854815},{"$f":"CD$3*('COM-Appliance class'!$AQ47/'Volume per connection'!$J$69)","v":-169445.11884854815}]
["Bayside (C)",null,{"$f":"C$3*('COM-Appliance class'!$AQ48/'Volume per connection'!$J$69)","v":-175415.96204447944},{"$f":"D$3*('COM-Appliance class'!$AQ48/'Volume per connection'!$J$69)","v":-175415.96204447944},{"$f":"E$3*('COM-Appliance class'!$AQ48/'Volume per connection'!$J$69)","v":-111734.33475387238},{"$f":"F$3*('COM-Appliance class'!$AQ48/'Volume per connection'!$J$69)","v":-111734.33475387238},{"$f":"G$3*('COM-Appliance class'!$AQ48/'Volume per connection'!$J$69)","v":-157796.954600875},{"$f":"H$3*('COM-Appliance class'!$AQ48/'Volume per connection'!$J$69)","v":-157796.954600875},{"$f":"I$3*('COM-Appliance class'!$AQ48/'Volume per connection'!$J$69)","v":-157796.954600875},{"$f":"J$3*('COM-Appliance class'!$AQ48/'Volume per connection'!$J$69)","v":-173130.458430892},{"$f":"K$3*('COM-Appliance class'!$AQ48/'Volume per connection'!$J$69)","v":-161873.21465892298},{"$f":"L$3*('COM-Appliance class'!$AQ48/'Volume per connection'!$J$69)","v":-159655.42478226332},{"$f":"M$3*('COM-Appliance class'!$AQ48/'Volume per connection'!$J$69)","v":-157448.72385498698},{"$f":"N$3*('COM-Appliance class'!$AQ48/'Volume per connection'!$J$69)","v":-155253.05643234702},{"$f":"O$3*('COM-Appliance class'!$AQ48/'Volume per connection'!$J$69)","v":-153068.36734682022},{"$f":"P$3*('COM-Appliance class'!$AQ48/'Volume per connection'!$J$69)","v":-150894.60170672112},{"$f":"Q$3*('COM-Appliance class'!$AQ48/'Volume per connection'!$J$69)","v":-148731.70489482244},{"$f":"R$3*('COM-Appliance class'!$AQ48/'Volume per connection'!$J$69)","v":-146579.62256698334},{"$f":"S$3*('COM-Appliance class'!$AQ48/'Volume per connection'!$J$69)","v":-144438.30065078341},{"$f":"T$3*('COM-Appliance class'!$AQ48/'Volume per connection'!$J$69)","v":-142307.68534416446},{"$f":"U$3*('COM-Appliance class'!$AQ48/'Volume per connection'!$J$69)","v":-140187.7231140786},{"$f":"V$3*('COM-Appliance class'!$AQ48/'Volume per connection'!$J$69)","v":-138078.36069514314},{"$f":"W$3*('COM-Appliance class'!$AQ48/'Volume per connection'!$J$69)","v":-135979.54508830237},{"$f":"X$3*('COM-Appliance class'!$AQ48/'Volume per connection'!$J$69)","v":-133891.22355949585},{"$f":"Y$3*('COM-Appliance class'!$AQ48/'Volume per connection'!$J$69)","v":-131813.34363833335},{"$f":"Z$3*('COM-Appliance class'!$AQ48/'Volume per connection'!$J$69)","v":-129745.85311677663},{"$f":"AA$3*('COM-Appliance class'!$AQ48/'Volume per connection'!$J$69)","v":-127688.7000478277},{"$f":"AB$3*('COM-Appliance class'!$AQ48/'Volume per connection'!$J$69)","v":-125641.83274422353},{"$f":"AC$3*('COM-Appliance class'!$AQ48/'Volume per connection'!$J$69)","v":-123605.19977713742},{"$f":"AD$3*('COM-Appliance class'!$AQ48/'Volume per connection'!$J$69)","v":-121578.7499748867},{"$f":"AE$3*('COM-Appliance class'!$AQ48/'Volume per connection'!$J$69)","v":-119562.43242164725},{"$f":"AF$3*('COM-Appliance class'!$AQ48/'Volume per connection'!$J$69)","v":-117556.19645617396},{"$f":"AG$3*('COM-Appliance class'!$AQ48/'Volume per connection'!$J$69)","v":-117556.19645617396},{"$f":"AH$3*('COM-Appliance class'!$AQ48/'Volume per connection'!$J$69)","v":-117556.19645617396},{"$f":"AI$3*('COM-Appliance class'!$AQ48/'Volume per connection'!$J$69)","v":-117556.19645617396},{"$f":"AJ$3*('COM-Appliance class'!$AQ48/'Volume per connection'!$J$69)","v":-117556.19645617396},{"$f":"AK$3*('COM-Appliance class'!$AQ48/'Volume per connection'!$J$69)","v":-117556.19645617396},{"$f":"AL$3*('COM-Appliance class'!$AQ48/'Volume per connection'!$J$69)","v":-117556.19645617396},{"$f":"AM$3*('COM-Appliance class'!$AQ48/'Volume per connection'!$J$69)","v":-117556.19645617396},{"$f":"AN$3*('COM-Appliance class'!$AQ48/'Volume per connection'!$J$69)","v":-117556.19645617396},{"$f":"AO$3*('COM-Appliance class'!$AQ48/'Volume per connection'!$J$69)","v":-117556.19645617396},{"$f":"AP$3*('COM-Appliance class'!$AQ48/'Volume per connection'!$J$69)","v":-117556.19645617396},{"$f":"AQ$3*('COM-Appliance class'!$AQ48/'Volume per connection'!$J$69)","v":-117556.19645617396},{"$f":"AR$3*('COM-Appliance class'!$AQ48/'Volume per connection'!$J$69)","v":-117556.19645617396},{"$f":"AS$3*('COM-Appliance class'!$AQ48/'Volume per connection'!$J$69)","v":-117556.19645617396},{"$f":"AT$3*('COM-Appliance class'!$AQ48/'Volume per connection'!$J$69)","v":-117556.19645617396},{"$f":"AU$3*('COM-Appliance class'!$AQ48/'Volume per connection'!$J$69)","v":-117556.19645617396},{"$f":"AV$3*('COM-Appliance class'!$AQ48/'Volume per connection'!$J$69)","v":-117556.19645617396},{"$f":"AW$3*('COM-Appliance class'!$AQ48/'Volume per connection'!$J$69)","v":-117556.19645617396},{"$f":"AX$3*('COM-Appliance class'!$AQ48/'Volume per connection'!$J$69)","v":-117556.19645617396},{"$f":"AY$3*('COM-Appliance class'!$AQ48/'Volume per connection'!$J$69)","v":-117556.19645617396},{"$f":"AZ$3*('COM-Appliance class'!$AQ48/'Volume per connection'!$J$69)","v":-117556.19645617396},{"$f":"BA$3*('COM-Appliance class'!$AQ48/'Volume per connection'!$J$69)","v":-117556.19645617396},{"$f":"BB$3*('COM-Appliance class'!$AQ48/'Volume per connection'!$J$69)","v":-117556.19645617396},{"$f":"BC$3*('COM-Appliance class'!$AQ48/'Volume per connection'!$J$69)","v":-117556.19645617396},{"$f":"BD$3*('COM-Appliance class'!$AQ48/'Volume per connection'!$J$69)","v":-117556.19645617396},{"$f":"BE$3*('COM-Appliance class'!$AQ48/'Volume per connection'!$J$69)","v":-117556.19645617396},{"$f":"BF$3*('COM-Appliance class'!$AQ48/'Volume per connection'!$J$69)","v":-117556.19645617396},{"$f":"BG$3*('COM-Appliance class'!$AQ48/'Volume per connection'!$J$69)","v":-117556.19645617396},{"$f":"BH$3*('COM-Appliance class'!$AQ48/'Volume per connection'!$J$69)","v":-117556.19645617396},{"$f":"BI$3*('COM-Appliance class'!$AQ48/'Volume per connection'!$J$69)","v":-117556.19645617396},{"$f":"BJ$3*('COM-Appliance class'!$AQ48/'Volume per connection'!$J$69)","v":-117556.19645617396},{"$f":"BK$3*('COM-Appliance class'!$AQ48/'Volume per connection'!$J$69)","v":-117556.19645617396},{"$f":"BL$3*('COM-Appliance class'!$AQ48/'Volume per connection'!$J$69)","v":-117556.19645617396},{"$f":"BM$3*('COM-Appliance class'!$AQ48/'Volume per connection'!$J$69)","v":-117556.19645617396},{"$f":"BN$3*('COM-Appliance class'!$AQ48/'Volume per connection'!$J$69)","v":-117556.19645617396},{"$f":"BO$3*('COM-Appliance class'!$AQ48/'Volume per connection'!$J$69)","v":-117556.19645617396},{"$f":"BP$3*('COM-Appliance class'!$AQ48/'Volume per connection'!$J$69)","v":-117556.19645617396},{"$f":"BQ$3*('COM-Appliance class'!$AQ48/'Volume per connection'!$J$69)","v":-117556.19645617396},{"$f":"BR$3*('COM-Appliance class'!$AQ48/'Volume per connection'!$J$69)","v":-117556.19645617396},{"$f":"BS$3*('COM-Appliance class'!$AQ48/'Volume per connection'!$J$69)","v":-117556.19645617396},{"$f":"BT$3*('COM-Appliance class'!$AQ48/'Volume per connection'!$J$69)","v":-117556.19645617396},{"$f":"BU$3*('COM-Appliance class'!$AQ48/'Volume per connection'!$J$69)","v":-117556.19645617396},{"$f":"BV$3*('COM-Appliance class'!$AQ48/'Volume per connection'!$J$69)","v":-117556.19645617396},{"$f":"BW$3*('COM-Appliance class'!$AQ48/'Volume per connection'!$J$69)","v":-117556.19645617396},{"$f":"BX$3*('COM-Appliance class'!$AQ48/'Volume per connection'!$J$69)","v":-117556.19645617396},{"$f":"BY$3*('COM-Appliance class'!$AQ48/'Volume per connection'!$J$69)","v":-117556.19645617396},{"$f":"BZ$3*('COM-Appliance class'!$AQ48/'Volume per connection'!$J$69)","v":-117556.19645617396},{"$f":"CA$3*('COM-Appliance class'!$AQ48/'Volume per connection'!$J$69)","v":-117556.19645617396},{"$f":"CB$3*('COM-Appliance class'!$AQ48/'Volume per connection'!$J$69)","v":-117556.19645617396},{"$f":"CC$3*('COM-Appliance class'!$AQ48/'Volume per connection'!$J$69)","v":-117556.19645617396},{"$f":"CD$3*('COM-Appliance class'!$AQ48/'Volume per connection'!$J$69)","v":-117556.19645617396}]
["Boroondara (C)",null,{"$f":"C$3*('COM-Appliance class'!$AQ49/'Volume per connection'!$J$69)","v":-166161.71002152233},{"$f":"D$3*('COM-Appliance class'!$AQ49/'Volume per connection'!$J$69)","v":-166161.71002152233},{"$f":"E$3*('COM-Appliance class'!$AQ49/'Volume per connection'!$J$69)","v":-105839.67339365023},{"$f":"F$3*('COM-Appliance class'!$AQ49/'Volume per connection'!$J$69)","v":-105839.67339365023},{"$f":"G$3*('COM-Appliance class'!$AQ49/'Volume per connection'!$J$69)","v":-149472.21169086927},{"$f":"H$3*('COM-Appliance class'!$AQ49/'Volume per connection'!$J$69)","v":-149472.21169086927},{"$f":"I$3*('COM-Appliance class'!$AQ49/'Volume per connection'!$J$69)","v":-149472.21169086927},{"$f":"J$3*('COM-Appliance class'!$AQ49/'Volume per connection'!$J$69)","v":-163996.78053467345},{"$f":"K$3*('COM-Appliance class'!$AQ49/'Volume per connection'!$J$69)","v":-153333.42439833048},{"$f":"L$3*('COM-Appliance class'!$AQ49/'Volume per connection'!$J$69)","v":-151232.63633959758},{"$f":"M$3*('COM-Appliance class'!$AQ49/'Volume per connection'!$J$69)","v":-149142.35222115833},{"$f":"N$3*('COM-Appliance class'!$AQ49/'Volume per connection'!$J$69)","v":-147062.51952331129},{"$f":"O$3*('COM-Appliance class'!$AQ49/'Volume per connection'!$J$69)","v":-144993.08598895342},{"$f":"P$3*('COM-Appliance class'!$AQ49/'Volume per connection'!$J$69)","v":-142933.99962226744},{"$f":"Q$3*('COM-Appliance class'!$AQ49/'Volume per connection'!$J$69)","v":-140885.20868741482},{"$f":"R$3*('COM-Appliance class'!$AQ49/'Volume per connection'!$J$69)","v":-138846.66170723652},{"$f":"S$3*('COM-Appliance class'!$AQ49/'Volume per connection'!$J$69)","v":-136818.30746195908},{"$f":"T$3*('COM-Appliance class'!$AQ49/'Volume per connection'!$J$69)","v":-134800.09498790803},{"$f":"U$3*('COM-Appliance class'!$AQ49/'Volume per connection'!$J$69)","v":-132791.97357622723},{"$f":"V$3*('COM-Appliance class'!$AQ49/'Volume per connection'!$J$69)","v":-130793.89277160482},{"$f":"W$3*('COM-Appliance class'!$AQ49/'Volume per connection'!$J$69)","v":-128805.80237100551},{"$f":"X$3*('COM-Appliance class'!$AQ49/'Volume per connection'!$J$69)","v":-126827.65242240923},{"$f":"Y$3*('COM-Appliance class'!$AQ49/'Volume per connection'!$J$69)","v":-124859.39322355593},{"$f":"Z$3*('COM-Appliance class'!$AQ49/'Volume per connection'!$J$69)","v":-122900.97532069689},{"$f":"AA$3*('COM-Appliance class'!$AQ49/'Volume per connection'!$J$69)","v":-120952.34950735213},{"$f":"AB$3*('COM-Appliance class'!$AQ49/'Volume per connection'!$J$69)","v":-119013.46682307411},{"$f":"AC$3*('COM-Appliance class'!$AQ49/'Volume per connection'!$J$69)","v":-117084.27855221751},{"$f":"AD$3*('COM-Appliance class'!$AQ49/'Volume per connection'!$J$69)","v":-115164.73622271518},{"$f":"AE$3*('COM-Appliance class'!$AQ49/'Volume per connection'!$J$69)","v":-113254.79160486034},{"$f":"AF$3*('COM-Appliance class'!$AQ49/'Volume per connection'!$J$69)","v":-111354.39671009478},{"$f":"AG$3*('COM-Appliance class'!$AQ49/'Volume per connection'!$J$69)","v":-111354.39671009478},{"$f":"AH$3*('COM-Appliance class'!$AQ49/'Volume per connection'!$J$69)","v":-111354.39671009478},{"$f":"AI$3*('COM-Appliance class'!$AQ49/'Volume per connection'!$J$69)","v":-111354.39671009478},{"$f":"AJ$3*('COM-Appliance class'!$AQ49/'Volume per connection'!$J$69)","v":-111354.39671009478},{"$f":"AK$3*('COM-Appliance class'!$AQ49/'Volume per connection'!$J$69)","v":-111354.39671009478},{"$f":"AL$3*('COM-Appliance class'!$AQ49/'Volume per connection'!$J$69)","v":-111354.39671009478},{"$f":"AM$3*('COM-Appliance class'!$AQ49/'Volume per connection'!$J$69)","v":-111354.39671009478},{"$f":"AN$3*('COM-Appliance class'!$AQ49/'Volume per connection'!$J$69)","v":-111354.39671009478},{"$f":"AO$3*('COM-Appliance class'!$AQ49/'Volume per connection'!$J$69)","v":-111354.39671009478},{"$f":"AP$3*('COM-Appliance class'!$AQ49/'Volume per connection'!$J$69)","v":-111354.39671009478},{"$f":"AQ$3*('COM-Appliance class'!$AQ49/'Volume per connection'!$J$69)","v":-111354.39671009478},{"$f":"AR$3*('COM-Appliance class'!$AQ49/'Volume per connection'!$J$69)","v":-111354.39671009478},{"$f":"AS$3*('COM-Appliance class'!$AQ49/'Volume per connection'!$J$69)","v":-111354.39671009478},{"$f":"AT$3*('COM-Appliance class'!$AQ49/'Volume per connection'!$J$69)","v":-111354.39671009478},{"$f":"AU$3*('COM-Appliance class'!$AQ49/'Volume per connection'!$J$69)","v":-111354.39671009478},{"$f":"AV$3*('COM-Appliance class'!$AQ49/'Volume per connection'!$J$69)","v":-111354.39671009478},{"$f":"AW$3*('COM-Appliance class'!$AQ49/'Volume per connection'!$J$69)","v":-111354.39671009478},{"$f":"AX$3*('COM-Appliance class'!$AQ49/'Volume per connection'!$J$69)","v":-111354.39671009478},{"$f":"AY$3*('COM-Appliance class'!$AQ49/'Volume per connection'!$J$69)","v":-111354.39671009478},{"$f":"AZ$3*('COM-Appliance class'!$AQ49/'Volume per connection'!$J$69)","v":-111354.39671009478},{"$f":"BA$3*('COM-Appliance class'!$AQ49/'Volume per connection'!$J$69)","v":-111354.39671009478},{"$f":"BB$3*('COM-Appliance class'!$AQ49/'Volume per connection'!$J$69)","v":-111354.39671009478},{"$f":"BC$3*('COM-Appliance class'!$AQ49/'Volume per connection'!$J$69)","v":-111354.39671009478},{"$f":"BD$3*('COM-Appliance class'!$AQ49/'Volume per connection'!$J$69)","v":-111354.39671009478},{"$f":"BE$3*('COM-Appliance class'!$AQ49/'Volume per connection'!$J$69)","v":-111354.39671009478},{"$f":"BF$3*('COM-Appliance class'!$AQ49/'Volume per connection'!$J$69)","v":-111354.39671009478},{"$f":"BG$3*('COM-Appliance class'!$AQ49/'Volume per connection'!$J$69)","v":-111354.39671009478},{"$f":"BH$3*('COM-Appliance class'!$AQ49/'Volume per connection'!$J$69)","v":-111354.39671009478},{"$f":"BI$3*('COM-Appliance class'!$AQ49/'Volume per connection'!$J$69)","v":-111354.39671009478},{"$f":"BJ$3*('COM-Appliance class'!$AQ49/'Volume per connection'!$J$69)","v":-111354.39671009478},{"$f":"BK$3*('COM-Appliance class'!$AQ49/'Volume per connection'!$J$69)","v":-111354.39671009478},{"$f":"BL$3*('COM-Appliance class'!$AQ49/'Volume per connection'!$J$69)","v":-111354.39671009478},{"$f":"BM$3*('COM-Appliance class'!$AQ49/'Volume per connection'!$J$69)","v":-111354.39671009478},{"$f":"BN$3*('COM-Appliance class'!$AQ49/'Volume per connection'!$J$69)","v":-111354.39671009478},{"$f":"BO$3*('COM-Appliance class'!$AQ49/'Volume per connection'!$J$69)","v":-111354.39671009478},{"$f":"BP$3*('COM-Appliance class'!$AQ49/'Volume per connection'!$J$69)","v":-111354.39671009478},{"$f":"BQ$3*('COM-Appliance class'!$AQ49/'Volume per connection'!$J$69)","v":-111354.39671009478},{"$f":"BR$3*('COM-Appliance class'!$AQ49/'Volume per connection'!$J$69)","v":-111354.39671009478},{"$f":"BS$3*('COM-Appliance class'!$AQ49/'Volume per connection'!$J$69)","v":-111354.39671009478},{"$f":"BT$3*('COM-Appliance class'!$AQ49/'Volume per connection'!$J$69)","v":-111354.39671009478},{"$f":"BU$3*('COM-Appliance class'!$AQ49/'Volume per connection'!$J$69)","v":-111354.39671009478},{"$f":"BV$3*('COM-Appliance class'!$AQ49/'Volume per connection'!$J$69)","v":-111354.39671009478},{"$f":"BW$3*('COM-Appliance class'!$AQ49/'Volume per connection'!$J$69)","v":-111354.39671009478},{"$f":"BX$3*('COM-Appliance class'!$AQ49/'Volume per connection'!$J$69)","v":-111354.39671009478},{"$f":"BY$3*('COM-Appliance class'!$AQ49/'Volume per connection'!$J$69)","v":-111354.39671009478},{"$f":"BZ$3*('COM-Appliance class'!$AQ49/'Volume per connection'!$J$69)","v":-111354.39671009478},{"$f":"CA$3*('COM-Appliance class'!$AQ49/'Volume per connection'!$J$69)","v":-111354.39671009478},{"$f":"CB$3*('COM-Appliance class'!$AQ49/'Volume per connection'!$J$69)","v":-111354.39671009478},{"$f":"CC$3*('COM-Appliance class'!$AQ49/'Volume per connection'!$J$69)","v":-111354.39671009478},{"$f":"CD$3*('COM-Appliance class'!$AQ49/'Volume per connection'!$J$69)","v":-111354.39671009478}]
["Cardinia (S)",null,{"$f":"C$3*('COM-Appliance class'!$AQ50/'Volume per connection'!$J$69)","v":-97695.007812881653},{"$f":"D$3*('COM-Appliance class'!$AQ50/'Volume per connection'!$J$69)","v":-97695.007812881653},{"$f":"E$3*('COM-Appliance class'!$AQ50/'Volume per connection'!$J$69)","v":-62228.582732846196},{"$f":"F$3*('COM-Appliance class'!$AQ50/'Volume per connection'!$J$69)","v":-62228.582732846196},{"$f":"G$3*('COM-Appliance class'!$AQ50/'Volume per connection'!$J$69)","v":-87882.394127123145},{"$f":"H$3*('COM-Appliance class'!$AQ50/'Volume per connection'!$J$69)","v":-87882.394127123145},{"$f":"I$3*('COM-Appliance class'!$AQ50/'Volume per connection'!$J$69)","v":-87882.394127123145},{"$f":"J$3*('COM-Appliance class'!$AQ50/'Volume per connection'!$J$69)","v":-96422.134519120751},{"$f":"K$3*('COM-Appliance class'!$AQ50/'Volume per connection'!$J$69)","v":-90152.599492569629},{"$f":"L$3*('COM-Appliance class'!$AQ50/'Volume per connection'!$J$69)","v":-88917.43824041028},{"$f":"M$3*('COM-Appliance class'!$AQ50/'Volume per connection'!$J$69)","v":-87688.452794511744},{"$f":"N$3*('COM-Appliance class'!$AQ50/'Volume per connection'!$J$69)","v":-86465.612275842694},{"$f":"O$3*('COM-Appliance class'!$AQ50/'Volume per connection'!$J$69)","v":-85248.88595976698},{"$f":"P$3*('COM-Appliance class'!$AQ50/'Volume per connection'!$J$69)","v":-84038.24327527167},{"$f":"Q$3*('COM-Appliance class'!$AQ50/'Volume per connection'!$J$69)","v":-82833.65380419881},{"$f":"R$3*('COM-Appliance class'!$AQ50/'Volume per connection'!$J$69)","v":-81635.087280481341},{"$f":"S$3*('COM-Appliance class'!$AQ50/'Volume per connection'!$J$69)","v":-80442.513589382448},{"$f":"T$3*('COM-Appliance class'!$AQ50/'Volume per connection'!$J$69)","v":-79255.902766739062},{"$f":"U$3*('COM-Appliance class'!$AQ50/'Volume per connection'!$J$69)","v":-78075.224998208869},{"$f":"V$3*('COM-Appliance class'!$AQ50/'Volume per connection'!$J$69)","v":-76900.450618521325},{"$f":"W$3*('COM-Appliance class'!$AQ50/'Volume per connection'!$J$69)","v":-75731.55011073222},{"$f":"X$3*('COM-Appliance class'!$AQ50/'Volume per connection'!$J$69)","v":-74568.494105482067},{"$f":"Y$3*('COM-Appliance class'!$AQ50/'Volume per connection'!$J$69)","v":-73411.253380258175},{"$f":"Z$3*('COM-Appliance class'!$AQ50/'Volume per connection'!$J$69)","v":-72259.79885866039},{"$f":"AA$3*('COM-Appliance class'!$AQ50/'Volume per connection'!$J$69)","v":-71114.101609670586},{"$f":"AB$3*('COM-Appliance class'!$AQ50/'Volume per connection'!$J$69)","v":-69974.132846925742},{"$f":"AC$3*('COM-Appliance class'!$AQ50/'Volume per connection'!$J$69)","v":-68839.863927994636},{"$f":"AD$3*('COM-Appliance class'!$AQ50/'Volume per connection'!$J$69)","v":-67711.266353658182},{"$f":"AE$3*('COM-Appliance class'!$AQ50/'Volume per connection'!$J$69)","v":-66588.311767193401},{"$f":"AF$3*('COM-Appliance class'!$AQ50/'Volume per connection'!$J$69)","v":-65470.971953660948},{"$f":"AG$3*('COM-Appliance class'!$AQ50/'Volume per connection'!$J$69)","v":-65470.971953660948},{"$f":"AH$3*('COM-Appliance class'!$AQ50/'Volume per connection'!$J$69)","v":-65470.971953660948},{"$f":"AI$3*('COM-Appliance class'!$AQ50/'Volume per connection'!$J$69)","v":-65470.971953660948},{"$f":"AJ$3*('COM-Appliance class'!$AQ50/'Volume per connection'!$J$69)","v":-65470.971953660948},{"$f":"AK$3*('COM-Appliance class'!$AQ50/'Volume per connection'!$J$69)","v":-65470.971953660948},{"$f":"AL$3*('COM-Appliance class'!$AQ50/'Volume per connection'!$J$69)","v":-65470.971953660948},{"$f":"AM$3*('COM-Appliance class'!$AQ50/'Volume per connection'!$J$69)","v":-65470.971953660948},{"$f":"AN$3*('COM-Appliance class'!$AQ50/'Volume per connection'!$J$69)","v":-65470.971953660948},{"$f":"AO$3*('COM-Appliance class'!$AQ50/'Volume per connection'!$J$69)","v":-65470.971953660948},{"$f":"AP$3*('COM-Appliance class'!$AQ50/'Volume per connection'!$J$69)","v":-65470.971953660948},{"$f":"AQ$3*('COM-Appliance class'!$AQ50/'Volume per connection'!$J$69)","v":-65470.971953660948},{"$f":"AR$3*('COM-Appliance class'!$AQ50/'Volume per connection'!$J$69)","v":-65470.971953660948},{"$f":"AS$3*('COM-Appliance class'!$AQ50/'Volume per connection'!$J$69)","v":-65470.971953660948},{"$f":"AT$3*('COM-Appliance class'!$AQ50/'Volume per connection'!$J$69)","v":-65470.971953660948},{"$f":"AU$3*('COM-Appliance class'!$AQ50/'Volume per connection'!$J$69)","v":-65470.971953660948},{"$f":"AV$3*('COM-Appliance class'!$AQ50/'Volume per connection'!$J$69)","v":-65470.971953660948},{"$f":"AW$3*('COM-Appliance class'!$AQ50/'Volume per connection'!$J$69)","v":-65470.971953660948},{"$f":"AX$3*('COM-Appliance class'!$AQ50/'Volume per connection'!$J$69)","v":-65470.971953660948},{"$f":"AY$3*('COM-Appliance class'!$AQ50/'Volume per connection'!$J$69)","v":-65470.971953660948},{"$f":"AZ$3*('COM-Appliance class'!$AQ50/'Volume per connection'!$J$69)","v":-65470.971953660948},{"$f":"BA$3*('COM-Appliance class'!$AQ50/'Volume per connection'!$J$69)","v":-65470.971953660948},{"$f":"BB$3*('COM-Appliance class'!$AQ50/'Volume per connection'!$J$69)","v":-65470.971953660948},{"$f":"BC$3*('COM-Appliance class'!$AQ50/'Volume per connection'!$J$69)","v":-65470.971953660948},{"$f":"BD$3*('COM-Appliance class'!$AQ50/'Volume per connection'!$J$69)","v":-65470.971953660948},{"$f":"BE$3*('COM-Appliance class'!$AQ50/'Volume per connection'!$J$69)","v":-65470.971953660948},{"$f":"BF$3*('COM-Appliance class'!$AQ50/'Volume per connection'!$J$69)","v":-65470.971953660948},{"$f":"BG$3*('COM-Appliance class'!$AQ50/'Volume per connection'!$J$69)","v":-65470.971953660948},{"$f":"BH$3*('COM-Appliance class'!$AQ50/'Volume per connection'!$J$69)","v":-65470.971953660948},{"$f":"BI$3*('COM-Appliance class'!$AQ50/'Volume per connection'!$J$69)","v":-65470.971953660948},{"$f":"BJ$3*('COM-Appliance class'!$AQ50/'Volume per connection'!$J$69)","v":-65470.971953660948},{"$f":"BK$3*('COM-Appliance class'!$AQ50/'Volume per connection'!$J$69)","v":-65470.971953660948},{"$f":"BL$3*('COM-Appliance class'!$AQ50/'Volume per connection'!$J$69)","v":-65470.971953660948},{"$f":"BM$3*('COM-Appliance class'!$AQ50/'Volume per connection'!$J$69)","v":-65470.971953660948},{"$f":"BN$3*('COM-Appliance class'!$AQ50/'Volume per connection'!$J$69)","v":-65470.971953660948},{"$f":"BO$3*('COM-Appliance class'!$AQ50/'Volume per connection'!$J$69)","v":-65470.971953660948},{"$f":"BP$3*('COM-Appliance class'!$AQ50/'Volume per connection'!$J$69)","v":-65470.971953660948},{"$f":"BQ$3*('COM-Appliance class'!$AQ50/'Volume per connection'!$J$69)","v":-65470.971953660948},{"$f":"BR$3*('COM-Appliance class'!$AQ50/'Volume per connection'!$J$69)","v":-65470.971953660948},{"$f":"BS$3*('COM-Appliance class'!$AQ50/'Volume per connection'!$J$69)","v":-65470.971953660948},{"$f":"BT$3*('COM-Appliance class'!$AQ50/'Volume per connection'!$J$69)","v":-65470.971953660948},{"$f":"BU$3*('COM-Appliance class'!$AQ50/'Volume per connection'!$J$69)","v":-65470.971953660948},{"$f":"BV$3*('COM-Appliance class'!$AQ50/'Volume per connection'!$J$69)","v":-65470.971953660948},{"$f":"BW$3*('COM-Appliance class'!$AQ50/'Volume per connection'!$J$69)","v":-65470.971953660948},{"$f":"BX$3*('COM-Appliance class'!$AQ50/'Volume per connection'!$J$69)","v":-65470.971953660948},{"$f":"BY$3*('COM-Appliance class'!$AQ50/'Volume per connection'!$J$69)","v":-65470.971953660948},{"$f":"BZ$3*('COM-Appliance class'!$AQ50/'Volume per connection'!$J$69)","v":-65470.971953660948},{"$f":"CA$3*('COM-Appliance class'!$AQ50/'Volume per connection'!$J$69)","v":-65470.971953660948},{"$f":"CB$3*('COM-Appliance class'!$AQ50/'Volume per connection'!$J$69)","v":-65470.971953660948},{"$f":"CC$3*('COM-Appliance class'!$AQ50/'Volume per connection'!$J$69)","v":-65470.971953660948},{"$f":"CD$3*('COM-Appliance class'!$AQ50/'Volume per connection'!$J$69)","v":-65470.971953660948}]
["Casey (C)",null,{"$f":"C$3*('COM-Appliance class'!$AQ51/'Volume per connection'!$J$69)","v":-160396.98306312083},{"$f":"D$3*('COM-Appliance class'!$AQ51/'Volume per connection'!$J$69)","v":-160396.98306312083},{"$f":"E$3*('COM-Appliance class'!$AQ51/'Volume per connection'!$J$69)","v":-102167.72744171126},{"$f":"F$3*('COM-Appliance class'!$AQ51/'Volume per connection'!$J$69)","v":-102167.72744171126},{"$f":"G$3*('COM-Appliance class'!$AQ51/'Volume per connection'!$J$69)","v":-144286.50140806922},{"$f":"H$3*('COM-Appliance class'!$AQ51/'Volume per connection'!$J$69)","v":-144286.50140806922},{"$f":"I$3*('COM-Appliance class'!$AQ51/'Volume per connection'!$J$69)","v":-144286.50140806922},{"$f":"J$3*('COM-Appliance class'!$AQ51/'Volume per connection'!$J$69)","v":-158307.16250103121},{"$f":"K$3*('COM-Appliance class'!$AQ51/'Volume per connection'!$J$69)","v":-148013.75523304215},{"$f":"L$3*('COM-Appliance class'!$AQ51/'Volume per connection'!$J$69)","v":-145985.85081010291},{"$f":"M$3*('COM-Appliance class'!$AQ51/'Volume per connection'!$J$69)","v":-143968.08590927839},{"$f":"N$3*('COM-Appliance class'!$AQ51/'Volume per connection'!$J$69)","v":-141960.40983295802},{"$f":"O$3*('COM-Appliance class'!$AQ51/'Volume per connection'!$J$69)","v":-139962.77213701917},{"$f":"P$3*('COM-Appliance class'!$AQ51/'Volume per connection'!$J$69)","v":-137975.12262956012},{"$f":"Q$3*('COM-Appliance class'!$AQ51/'Volume per connection'!$J$69)","v":-135997.41136963828},{"$f":"R$3*('COM-Appliance class'!$AQ51/'Volume per connection'!$J$69)","v":-134029.58866601609},{"$f":"S$3*('COM-Appliance class'!$AQ51/'Volume per connection'!$J$69)","v":-132071.60507591203},{"$f":"T$3*('COM-Appliance class'!$AQ51/'Volume per connection'!$J$69)","v":-130123.41140375847},{"$f":"U$3*('COM-Appliance class'!$AQ51/'Volume per connection'!$J$69)","v":-128184.95869996565},{"$f":"V$3*('COM-Appliance class'!$AQ51/'Volume per connection'!$J$69)","v":-126256.1982596918},{"$f":"W$3*('COM-Appliance class'!$AQ51/'Volume per connection'!$J$69)","v":-124337.08162161931},{"$f":"X$3*('COM-Appliance class'!$AQ51/'Volume per connection'!$J$69)","v":-122427.5605667372},{"$f":"Y$3*('COM-Appliance class'!$AQ51/'Volume per connection'!$J$69)","v":-120527.58711712951},{"$f":"Z$3*('COM-Appliance class'!$AQ51/'Volume per connection'!$J$69)","v":-118637.11353476986},{"$f":"AA$3*('COM-Appliance class'!$AQ51/'Volume per connection'!$J$69)","v":-116756.09232032199},{"$f":"AB$3*('COM-Appliance class'!$AQ51/'Volume per connection'!$J$69)","v":-114884.47621194636},{"$f":"AC$3*('COM-Appliance class'!$AQ51/'Volume per connection'!$J$69)","v":-113022.21818411264},{"$f":"AD$3*('COM-Appliance class'!$AQ51/'Volume per connection'!$J$69)","v":-111169.27144641808},{"$f":"AE$3*('COM-Appliance class'!$AQ51/'Volume per connection'!$J$69)","v":-109325.58944241199},{"$f":"AF$3*('COM-Appliance class'!$AQ51/'Volume per connection'!$J$69)","v":-107491.12584842592},{"$f":"AG$3*('COM-Appliance class'!$AQ51/'Volume per connection'!$J$69)","v":-107491.12584842592},{"$f":"AH$3*('COM-Appliance class'!$AQ51/'Volume per connection'!$J$69)","v":-107491.12584842592},{"$f":"AI$3*('COM-Appliance class'!$AQ51/'Volume per connection'!$J$69)","v":-107491.12584842592},{"$f":"AJ$3*('COM-Appliance class'!$AQ51/'Volume per connection'!$J$69)","v":-107491.12584842592},{"$f":"AK$3*('COM-Appliance class'!$AQ51/'Volume per connection'!$J$69)","v":-107491.12584842592},{"$f":"AL$3*('COM-Appliance class'!$AQ51/'Volume per connection'!$J$69)","v":-107491.12584842592},{"$f":"AM$3*('COM-Appliance class'!$AQ51/'Volume per connection'!$J$69)","v":-107491.12584842592},{"$f":"AN$3*('COM-Appliance class'!$AQ51/'Volume per connection'!$J$69)","v":-107491.12584842592},{"$f":"AO$3*('COM-Appliance class'!$AQ51/'Volume per connection'!$J$69)","v":-107491.12584842592},{"$f":"AP$3*('COM-Appliance class'!$AQ51/'Volume per connection'!$J$69)","v":-107491.12584842592},{"$f":"AQ$3*('COM-Appliance class'!$AQ51/'Volume per connection'!$J$69)","v":-107491.12584842592},{"$f":"AR$3*('COM-Appliance class'!$AQ51/'Volume per connection'!$J$69)","v":-107491.12584842592},{"$f":"AS$3*('COM-Appliance class'!$AQ51/'Volume per connection'!$J$69)","v":-107491.12584842592},{"$f":"AT$3*('COM-Appliance class'!$AQ51/'Volume per connection'!$J$69)","v":-107491.12584842592},{"$f":"AU$3*('COM-Appliance class'!$AQ51/'Volume per connection'!$J$69)","v":-107491.12584842592},{"$f":"AV$3*('COM-Appliance class'!$AQ51/'Volume per connection'!$J$69)","v":-107491.12584842592},{"$f":"AW$3*('COM-Appliance class'!$AQ51/'Volume per connection'!$J$69)","v":-107491.12584842592},{"$f":"AX$3*('COM-Appliance class'!$AQ51/'Volume per connection'!$J$69)","v":-107491.12584842592},{"$f":"AY$3*('COM-Appliance class'!$AQ51/'Volume per connection'!$J$69)","v":-107491.12584842592},{"$f":"AZ$3*('COM-Appliance class'!$AQ51/'Volume per connection'!$J$69)","v":-107491.12584842592},{"$f":"BA$3*('COM-Appliance class'!$AQ51/'Volume per connection'!$J$69)","v":-107491.12584842592},{"$f":"BB$3*('COM-Appliance class'!$AQ51/'Volume per connection'!$J$69)","v":-107491.12584842592},{"$f":"BC$3*('COM-Appliance class'!$AQ51/'Volume per connection'!$J$69)","v":-107491.12584842592},{"$f":"BD$3*('COM-Appliance class'!$AQ51/'Volume per connection'!$J$69)","v":-107491.12584842592},{"$f":"BE$3*('COM-Appliance class'!$AQ51/'Volume per connection'!$J$69)","v":-107491.12584842592},{"$f":"BF$3*('COM-Appliance class'!$AQ51/'Volume per connection'!$J$69)","v":-107491.12584842592},{"$f":"BG$3*('COM-Appliance class'!$AQ51/'Volume per connection'!$J$69)","v":-107491.12584842592},{"$f":"BH$3*('COM-Appliance class'!$AQ51/'Volume per connection'!$J$69)","v":-107491.12584842592},{"$f":"BI$3*('COM-Appliance class'!$AQ51/'Volume per connection'!$J$69)","v":-107491.12584842592},{"$f":"BJ$3*('COM-Appliance class'!$AQ51/'Volume per connection'!$J$69)","v":-107491.12584842592},{"$f":"BK$3*('COM-Appliance class'!$AQ51/'Volume per connection'!$J$69)","v":-107491.12584842592},{"$f":"BL$3*('COM-Appliance class'!$AQ51/'Volume per connection'!$J$69)","v":-107491.12584842592},{"$f":"BM$3*('COM-Appliance class'!$AQ51/'Volume per connection'!$J$69)","v":-107491.12584842592},{"$f":"BN$3*('COM-Appliance class'!$AQ51/'Volume per connection'!$J$69)","v":-107491.12584842592},{"$f":"BO$3*('COM-Appliance class'!$AQ51/'Volume per connection'!$J$69)","v":-107491.12584842592},{"$f":"BP$3*('COM-Appliance class'!$AQ51/'Volume per connection'!$J$69)","v":-107491.12584842592},{"$f":"BQ$3*('COM-Appliance class'!$AQ51/'Volume per connection'!$J$69)","v":-107491.12584842592},{"$f":"BR$3*('COM-Appliance class'!$AQ51/'Volume per connection'!$J$69)","v":-107491.12584842592},{"$f":"BS$3*('COM-Appliance class'!$AQ51/'Volume per connection'!$J$69)","v":-107491.12584842592},{"$f":"BT$3*('COM-Appliance class'!$AQ51/'Volume per connection'!$J$69)","v":-107491.12584842592},{"$f":"BU$3*('COM-Appliance class'!$AQ51/'Volume per connection'!$J$69)","v":-107491.12584842592},{"$f":"BV$3*('COM-Appliance class'!$AQ51/'Volume per connection'!$J$69)","v":-107491.12584842592},{"$f":"BW$3*('COM-Appliance class'!$AQ51/'Volume per connection'!$J$69)","v":-107491.12584842592},{"$f":"BX$3*('COM-Appliance class'!$AQ51/'Volume per connection'!$J$69)","v":-107491.12584842592},{"$f":"BY$3*('COM-Appliance class'!$AQ51/'Volume per connection'!$J$69)","v":-107491.12584842592},{"$f":"BZ$3*('COM-Appliance class'!$AQ51/'Volume per connection'!$J$69)","v":-107491.12584842592},{"$f":"CA$3*('COM-Appliance class'!$AQ51/'Volume per connection'!$J$69)","v":-107491.12584842592},{"$f":"CB$3*('COM-Appliance class'!$AQ51/'Volume per connection'!$J$69)","v":-107491.12584842592},{"$f":"CC$3*('COM-Appliance class'!$AQ51/'Volume per connection'!$J$69)","v":-107491.12584842592},{"$f":"CD$3*('COM-Appliance class'!$AQ51/'Volume per connection'!$J$69)","v":-107491.12584842592}]
["Frankston (C)",null,{"$f":"C$3*('COM-Appliance class'!$AQ52/'Volume per connection'!$J$69)","v":0},{"$f":"D$3*('COM-Appliance class'!$AQ52/'Volume per connection'!$J$69)","v":0},{"$f":"E$3*('COM-Appliance class'!$AQ52/'Volume per connection'!$J$69)","v":0},{"$f":"F$3*('COM-Appliance class'!$AQ52/'Volume per connection'!$J$69)","v":0},{"$f":"G$3*('COM-Appliance class'!$AQ52/'Volume per connection'!$J$69)","v":0},{"$f":"H$3*('COM-Appliance class'!$AQ52/'Volume per connection'!$J$69)","v":0},{"$f":"I$3*('COM-Appliance class'!$AQ52/'Volume per connection'!$J$69)","v":0},{"$f":"J$3*('COM-Appliance class'!$AQ52/'Volume per connection'!$J$69)","v":0},{"$f":"K$3*('COM-Appliance class'!$AQ52/'Volume per connection'!$J$69)","v":0},{"$f":"L$3*('COM-Appliance class'!$AQ52/'Volume per connection'!$J$69)","v":0},{"$f":"M$3*('COM-Appliance class'!$AQ52/'Volume per connection'!$J$69)","v":0},{"$f":"N$3*('COM-Appliance class'!$AQ52/'Volume per connection'!$J$69)","v":0},{"$f":"O$3*('COM-Appliance class'!$AQ52/'Volume per connection'!$J$69)","v":0},{"$f":"P$3*('COM-Appliance class'!$AQ52/'Volume per connection'!$J$69)","v":0},{"$f":"Q$3*('COM-Appliance class'!$AQ52/'Volume per connection'!$J$69)","v":0},{"$f":"R$3*('COM-Appliance class'!$AQ52/'Volume per connection'!$J$69)","v":0},{"$f":"S$3*('COM-Appliance class'!$AQ52/'Volume per connection'!$J$69)","v":0},{"$f":"T$3*('COM-Appliance class'!$AQ52/'Volume per connection'!$J$69)","v":0},{"$f":"U$3*('COM-Appliance class'!$AQ52/'Volume per connection'!$J$69)","v":0},{"$f":"V$3*('COM-Appliance class'!$AQ52/'Volume per connection'!$J$69)","v":0},{"$f":"W$3*('COM-Appliance class'!$AQ52/'Volume per connection'!$J$69)","v":0},{"$f":"X$3*('COM-Appliance class'!$AQ52/'Volume per connection'!$J$69)","v":0},{"$f":"Y$3*('COM-Appliance class'!$AQ52/'Volume per connection'!$J$69)","v":0},{"$f":"Z$3*('COM-Appliance class'!$AQ52/'Volume per connection'!$J$69)","v":0},{"$f":"AA$3*('COM-Appliance class'!$AQ52/'Volume per connection'!$J$69)","v":0},{"$f":"AB$3*('COM-Appliance class'!$AQ52/'Volume per connection'!$J$69)","v":0},{"$f":"AC$3*('COM-Appliance class'!$AQ52/'Volume per connection'!$J$69)","v":0},{"$f":"AD$3*('COM-Appliance class'!$AQ52/'Volume per connection'!$J$69)","v":0},{"$f":"AE$3*('COM-Appliance class'!$AQ52/'Volume per connection'!$J$69)","v":0},{"$f":"AF$3*('COM-Appliance class'!$AQ52/'Volume per connection'!$J$69)","v":0},{"$f":"AG$3*('COM-Appliance class'!$AQ52/'Volume per connection'!$J$69)","v":0},{"$f":"AH$3*('COM-Appliance class'!$AQ52/'Volume per connection'!$J$69)","v":0},{"$f":"AI$3*('COM-Appliance class'!$AQ52/'Volume per connection'!$J$69)","v":0},{"$f":"AJ$3*('COM-Appliance class'!$AQ52/'Volume per connection'!$J$69)","v":0},{"$f":"AK$3*('COM-Appliance class'!$AQ52/'Volume per connection'!$J$69)","v":0},{"$f":"AL$3*('COM-Appliance class'!$AQ52/'Volume per connection'!$J$69)","v":0},{"$f":"AM$3*('COM-Appliance class'!$AQ52/'Volume per connection'!$J$69)","v":0},{"$f":"AN$3*('COM-Appliance class'!$AQ52/'Volume per connection'!$J$69)","v":0},{"$f":"AO$3*('COM-Appliance class'!$AQ52/'Volume per connection'!$J$69)","v":0},{"$f":"AP$3*('COM-Appliance class'!$AQ52/'Volume per connection'!$J$69)","v":0},{"$f":"AQ$3*('COM-Appliance class'!$AQ52/'Volume per connection'!$J$69)","v":0},{"$f":"AR$3*('COM-Appliance class'!$AQ52/'Volume per connection'!$J$69)","v":0},{"$f":"AS$3*('COM-Appliance class'!$AQ52/'Volume per connection'!$J$69)","v":0},{"$f":"AT$3*('COM-Appliance class'!$AQ52/'Volume per connection'!$J$69)","v":0},{"$f":"AU$3*('COM-Appliance class'!$AQ52/'Volume per connection'!$J$69)","v":0},{"$f":"AV$3*('COM-Appliance class'!$AQ52/'Volume per connection'!$J$69)","v":0},{"$f":"AW$3*('COM-Appliance class'!$AQ52/'Volume per connection'!$J$69)","v":0},{"$f":"AX$3*('COM-Appliance class'!$AQ52/'Volume per connection'!$J$69)","v":0},{"$f":"AY$3*('COM-Appliance class'!$AQ52/'Volume per connection'!$J$69)","v":0},{"$f":"AZ$3*('COM-Appliance class'!$AQ52/'Volume per connection'!$J$69)","v":0},{"$f":"BA$3*('COM-Appliance class'!$AQ52/'Volume per connection'!$J$69)","v":0},{"$f":"BB$3*('COM-Appliance class'!$AQ52/'Volume per connection'!$J$69)","v":0},{"$f":"BC$3*('COM-Appliance class'!$AQ52/'Volume per connection'!$J$69)","v":0},{"$f":"BD$3*('COM-Appliance class'!$AQ52/'Volume per connection'!$J$69)","v":0},{"$f":"BE$3*('COM-Appliance class'!$AQ52/'Volume per connection'!$J$69)","v":0},{"$f":"BF$3*('COM-Appliance class'!$AQ52/'Volume per connection'!$J$69)","v":0},{"$f":"BG$3*('COM-Appliance class'!$AQ52/'Volume per connection'!$J$69)","v":0},{"$f":"BH$3*('COM-Appliance class'!$AQ52/'Volume per connection'!$J$69)","v":0},{"$f":"BI$3*('COM-Appliance class'!$AQ52/'Volume per connection'!$J$69)","v":0},{"$f":"BJ$3*('COM-Appliance class'!$AQ52/'Volume per connection'!$J$69)","v":0},{"$f":"BK$3*('COM-Appliance class'!$AQ52/'Volume per connection'!$J$69)","v":0},{"$f":"BL$3*('COM-Appliance class'!$AQ52/'Volume per connection'!$J$69)","v":0},{"$f":"BM$3*('COM-Appliance class'!$AQ52/'Volume per connection'!$J$69)","v":0},{"$f":"BN$3*('COM-Appliance class'!$AQ52/'Volume per connection'!$J$69)","v":0},{"$f":"BO$3*('COM-Appliance class'!$AQ52/'Volume per connection'!$J$69)","v":0},{"$f":"BP$3*('COM-Appliance class'!$AQ52/'Volume per connection'!$J$69)","v":0},{"$f":"BQ$3*('COM-Appliance class'!$AQ52/'Volume per connection'!$J$69)","v":0},{"$f":"BR$3*('COM-Appliance class'!$AQ52/'Volume per connection'!$J$69)","v":0},{"$f":"BS$3*('COM-Appliance class'!$AQ52/'Volume per connection'!$J$69)","v":0},{"$f":"BT$3*('COM-Appliance class'!$AQ52/'Volume per connection'!$J$69)","v":0},{"$f":"BU$3*('COM-Appliance class'!$AQ52/'Volume per connection'!$J$69)","v":0},{"$f":"BV$3*('COM-Appliance class'!$AQ52/'Volume per connection'!$J$69)","v":0},{"$f":"BW$3*('COM-Appliance class'!$AQ52/'Volume per connection'!$J$69)","v":0},{"$f":"BX$3*('COM-Appliance class'!$AQ52/'Volume per connection'!$J$69)","v":0},{"$f":"BY$3*('COM-Appliance class'!$AQ52/'Volume per connection'!$J$69)","v":0},{"$f":"BZ$3*('COM-Appliance class'!$AQ52/'Volume per connection'!$J$69)","v":0},{"$f":"CA$3*('COM-Appliance class'!$AQ52/'Volume per connection'!$J$69)","v":0},{"$f":"CB$3*('COM-Appliance class'!$AQ52/'Volume per connection'!$J$69)","v":0},{"$f":"CC$3*('COM-Appliance class'!$AQ52/'Volume per connection'!$J$69)","v":0},{"$f":"CD$3*('COM-Appliance class'!$AQ52/'Volume per connection'!$J$69)","v":0}]
["Glen Eira (C)",null,{"$f":"C$3*('COM-Appliance class'!$AQ53/'Volume per connection'!$J$69)","v":-180516.25522093388},{"$f":"D$3*('COM-Appliance class'!$AQ53/'Volume per connection'!$J$69)","v":-180516.25522093388},{"$f":"E$3*('COM-Appliance class'!$AQ53/'Volume per connection'!$J$69)","v":-114983.05772342945},{"$f":"F$3*('COM-Appliance class'!$AQ53/'Volume per connection'!$J$69)","v":-114983.05772342945},{"$f":"G$3*('COM-Appliance class'!$AQ53/'Volume per connection'!$J$69)","v":-162384.96769521394},{"$f":"H$3*('COM-Appliance class'!$AQ53/'Volume per connection'!$J$69)","v":-162384.96769521394},{"$f":"I$3*('COM-Appliance class'!$AQ53/'Volume per connection'!$J$69)","v":-162384.96769521394},{"$f":"J$3*('COM-Appliance class'!$AQ53/'Volume per connection'!$J$69)","v":-178164.2996245891},{"$f":"K$3*('COM-Appliance class'!$AQ53/'Volume per connection'!$J$69)","v":-166579.74673589726},{"$f":"L$3*('COM-Appliance class'!$AQ53/'Volume per connection'!$J$69)","v":-164297.47368197766},{"$f":"M$3*('COM-Appliance class'!$AQ53/'Volume per connection'!$J$69)","v":-162026.61199332768},{"$f":"N$3*('COM-Appliance class'!$AQ53/'Volume per connection'!$J$69)","v":-159767.10461312096},{"$f":"O$3*('COM-Appliance class'!$AQ53/'Volume per connection'!$J$69)","v":-157518.8947698152},{"$f":"P$3*('COM-Appliance class'!$AQ53/'Volume per connection'!$J$69)","v":-155281.9259757261},{"$f":"Q$3*('COM-Appliance class'!$AQ53/'Volume per connection'!$J$69)","v":-153056.14202560732},{"$f":"R$3*('COM-Appliance class'!$AQ53/'Volume per connection'!$J$69)","v":-150841.48699523922},{"$f":"S$3*('COM-Appliance class'!$AQ53/'Volume per connection'!$J$69)","v":-148637.90524002293},{"$f":"T$3*('COM-Appliance class'!$AQ53/'Volume per connection'!$J$69)","v":-146445.34139358273},{"$f":"U$3*('COM-Appliance class'!$AQ53/'Volume per connection'!$J$69)","v":-144263.7403663747},{"$f":"V$3*('COM-Appliance class'!$AQ53/'Volume per connection'!$J$69)","v":-142093.04734430273},{"$f":"W$3*('COM-Appliance class'!$AQ53/'Volume per connection'!$J$69)","v":-139933.20778734109},{"$f":"X$3*('COM-Appliance class'!$AQ53/'Volume per connection'!$J$69)","v":-137784.16742816428},{"$f":"Y$3*('COM-Appliance class'!$AQ53/'Volume per connection'!$J$69)","v":-135645.87227078338},{"$f":"Z$3*('COM-Appliance class'!$AQ53/'Volume per connection'!$J$69)","v":-133518.26858918933},{"$f":"AA$3*('COM-Appliance class'!$AQ53/'Volume per connection'!$J$69)","v":-131401.30292600329},{"$f":"AB$3*('COM-Appliance class'!$AQ53/'Volume per connection'!$J$69)","v":-129294.92209113316},{"$f":"AC$3*('COM-Appliance class'!$AQ53/'Volume per connection'!$J$69)","v":-127199.07316043743},{"$f":"AD$3*('COM-Appliance class'!$AQ53/'Volume per connection'!$J$69)","v":-125113.70347439515},{"$f":"AE$3*('COM-Appliance class'!$AQ53/'Volume per connection'!$J$69)","v":-123038.76063678307},{"$f":"AF$3*('COM-Appliance class'!$AQ53/'Volume per connection'!$J$69)","v":-120974.19251335906},{"$f":"AG$3*('COM-Appliance class'!$AQ53/'Volume per connection'!$J$69)","v":-120974.19251335906},{"$f":"AH$3*('COM-Appliance class'!$AQ53/'Volume per connection'!$J$69)","v":-120974.19251335906},{"$f":"AI$3*('COM-Appliance class'!$AQ53/'Volume per connection'!$J$69)","v":-120974.19251335906},{"$f":"AJ$3*('COM-Appliance class'!$AQ53/'Volume per connection'!$J$69)","v":-120974.19251335906},{"$f":"AK$3*('COM-Appliance class'!$AQ53/'Volume per connection'!$J$69)","v":-120974.19251335906},{"$f":"AL$3*('COM-Appliance class'!$AQ53/'Volume per connection'!$J$69)","v":-120974.19251335906},{"$f":"AM$3*('COM-Appliance class'!$AQ53/'Volume per connection'!$J$69)","v":-120974.19251335906},{"$f":"AN$3*('COM-Appliance class'!$AQ53/'Volume per connection'!$J$69)","v":-120974.19251335906},{"$f":"AO$3*('COM-Appliance class'!$AQ53/'Volume per connection'!$J$69)","v":-120974.19251335906},{"$f":"AP$3*('COM-Appliance class'!$AQ53/'Volume per connection'!$J$69)","v":-120974.19251335906},{"$f":"AQ$3*('COM-Appliance class'!$AQ53/'Volume per connection'!$J$69)","v":-120974.19251335906},{"$f":"AR$3*('COM-Appliance class'!$AQ53/'Volume per connection'!$J$69)","v":-120974.19251335906},{"$f":"AS$3*('COM-Appliance class'!$AQ53/'Volume per connection'!$J$69)","v":-120974.19251335906},{"$f":"AT$3*('COM-Appliance class'!$AQ53/'Volume per connection'!$J$69)","v":-120974.19251335906},{"$f":"AU$3*('COM-Appliance class'!$AQ53/'Volume per connection'!$J$69)","v":-120974.19251335906},{"$f":"AV$3*('COM-Appliance class'!$AQ53/'Volume per connection'!$J$69)","v":-120974.19251335906},{"$f":"AW$3*('COM-Appliance class'!$AQ53/'Volume per connection'!$J$69)","v":-120974.19251335906},{"$f":"AX$3*('COM-Appliance class'!$AQ53/'Volume per connection'!$J$69)","v":-120974.19251335906},{"$f":"AY$3*('COM-Appliance class'!$AQ53/'Volume per connection'!$J$69)","v":-120974.19251335906},{"$f":"AZ$3*('COM-Appliance class'!$AQ53/'Volume per connection'!$J$69)","v":-120974.19251335906},{"$f":"BA$3*('COM-Appliance class'!$AQ53/'Volume per connection'!$J$69)","v":-120974.19251335906},{"$f":"BB$3*('COM-Appliance class'!$AQ53/'Volume per connection'!$J$69)","v":-120974.19251335906},{"$f":"BC$3*('COM-Appliance class'!$AQ53/'Volume per connection'!$J$69)","v":-120974.19251335906},{"$f":"BD$3*('COM-Appliance class'!$AQ53/'Volume per connection'!$J$69)","v":-120974.19251335906},{"$f":"BE$3*('COM-Appliance class'!$AQ53/'Volume per connection'!$J$69)","v":-120974.19251335906},{"$f":"BF$3*('COM-Appliance class'!$AQ53/'Volume per connection'!$J$69)","v":-120974.19251335906},{"$f":"BG$3*('COM-Appliance class'!$AQ53/'Volume per connection'!$J$69)","v":-120974.19251335906},{"$f":"BH$3*('COM-Appliance class'!$AQ53/'Volume per connection'!$J$69)","v":-120974.19251335906},{"$f":"BI$3*('COM-Appliance class'!$AQ53/'Volume per connection'!$J$69)","v":-120974.19251335906},{"$f":"BJ$3*('COM-Appliance class'!$AQ53/'Volume per connection'!$J$69)","v":-120974.19251335906},{"$f":"BK$3*('COM-Appliance class'!$AQ53/'Volume per connection'!$J$69)","v":-120974.19251335906},{"$f":"BL$3*('COM-Appliance class'!$AQ53/'Volume per connection'!$J$69)","v":-120974.19251335906},{"$f":"BM$3*('COM-Appliance class'!$AQ53/'Volume per connection'!$J$69)","v":-120974.19251335906},{"$f":"BN$3*('COM-Appliance class'!$AQ53/'Volume per connection'!$J$69)","v":-120974.19251335906},{"$f":"BO$3*('COM-Appliance class'!$AQ53/'Volume per connection'!$J$69)","v":-120974.19251335906},{"$f":"BP$3*('COM-Appliance class'!$AQ53/'Volume per connection'!$J$69)","v":-120974.19251335906},{"$f":"BQ$3*('COM-Appliance class'!$AQ53/'Volume per connection'!$J$69)","v":-120974.19251335906},{"$f":"BR$3*('COM-Appliance class'!$AQ53/'Volume per connection'!$J$69)","v":-120974.19251335906},{"$f":"BS$3*('COM-Appliance class'!$AQ53/'Volume per connection'!$J$69)","v":-120974.19251335906},{"$f":"BT$3*('COM-Appliance class'!$AQ53/'Volume per connection'!$J$69)","v":-120974.19251335906},{"$f":"BU$3*('COM-Appliance class'!$AQ53/'Volume per connection'!$J$69)","v":-120974.19251335906},{"$f":"BV$3*('COM-Appliance class'!$AQ53/'Volume per connection'!$J$69)","v":-120974.19251335906},{"$f":"BW$3*('COM-Appliance class'!$AQ53/'Volume per connection'!$J$69)","v":-120974.19251335906},{"$f":"BX$3*('COM-Appliance class'!$AQ53/'Volume per connection'!$J$69)","v":-120974.19251335906},{"$f":"BY$3*('COM-Appliance class'!$AQ53/'Volume per connection'!$J$69)","v":-120974.19251335906},{"$f":"BZ$3*('COM-Appliance class'!$AQ53/'Volume per connection'!$J$69)","v":-120974.19251335906},{"$f":"CA$3*('COM-Appliance class'!$AQ53/'Volume per connection'!$J$69)","v":-120974.19251335906},{"$f":"CB$3*('COM-Appliance class'!$AQ53/'Volume per connection'!$J$69)","v":-120974.19251335906},{"$f":"CC$3*('COM-Appliance class'!$AQ53/'Volume per connection'!$J$69)","v":-120974.19251335906},{"$f":"CD$3*('COM-Appliance class'!$AQ53/'Volume per connection'!$J$69)","v":-120974.19251335906}]
["Greater Dandenong (C)",null,{"$f":"C$3*('COM-Appliance class'!$AQ54/'Volume per connection'!$J$69)","v":-216718.11566293603},{"$f":"D$3*('COM-Appliance class'!$AQ54/'Volume per connection'!$J$69)","v":-216718.11566293603},{"$f":"E$3*('COM-Appliance class'!$AQ54/'Volume per connection'!$J$69)","v":-138042.48028791629},{"$f":"F$3*('COM-Appliance class'!$AQ54/'Volume per connection'!$J$69)","v":-138042.48028791629},{"$f":"G$3*('COM-Appliance class'!$AQ54/'Volume per connection'!$J$69)","v":-194950.66617586487},{"$f":"H$3*('COM-Appliance class'!$AQ54/'Volume per connection'!$J$69)","v":-194950.66617586487},{"$f":"I$3*('COM-Appliance class'!$AQ54/'Volume per connection'!$J$69)","v":-194950.66617586487},{"$f":"J$3*('COM-Appliance class'!$AQ54/'Volume per connection'!$J$69)","v":-213894.48416039406},{"$f":"K$3*('COM-Appliance class'!$AQ54/'Volume per connection'!$J$69)","v":-199986.69247835292},{"$f":"L$3*('COM-Appliance class'!$AQ54/'Volume per connection'!$J$69)","v":-197246.71809173387},{"$f":"M$3*('COM-Appliance class'!$AQ54/'Volume per connection'!$J$69)","v":-194520.4435770479},{"$f":"N$3*('COM-Appliance class'!$AQ54/'Volume per connection'!$J$69)","v":-191807.8004349354},{"$f":"O$3*('COM-Appliance class'!$AQ54/'Volume per connection'!$J$69)","v":-189108.72050853338},{"$f":"P$3*('COM-Appliance class'!$AQ54/'Volume per connection'!$J$69)","v":-186423.13598176348},{"$f":"Q$3*('COM-Appliance class'!$AQ54/'Volume per connection'!$J$69)","v":-183750.97937762731},{"$f":"R$3*('COM-Appliance class'!$AQ54/'Volume per connection'!$J$69)","v":-181092.18355651194},{"$f":"S$3*('COM-Appliance class'!$AQ54/'Volume per connection'!$J$69)","v":-178446.68171450211},{"$f":"T$3*('COM-Appliance class'!$AQ54/'Volume per connection'!$J$69)","v":-175814.40738170233},{"$f":"U$3*('COM-Appliance class'!$AQ54/'Volume per connection'!$J$69)","v":-173195.2944205665},{"$f":"V$3*('COM-Appliance class'!$AQ54/'Volume per connection'!$J$69)","v":-170589.27702423636},{"$f":"W$3*('COM-Appliance class'!$AQ54/'Volume per connection'!$J$69)","v":-167996.28971488785},{"$f":"X$3*('COM-Appliance class'!$AQ54/'Volume per connection'!$J$69)","v":-165416.26734208612},{"$f":"Y$3*('COM-Appliance class'!$AQ54/'Volume per connection'!$J$69)","v":-162849.14508114842},{"$f":"Z$3*('COM-Appliance class'!$AQ54/'Volume per connection'!$J$69)","v":-160294.8584315154},{"$f":"AA$3*('COM-Appliance class'!$AQ54/'Volume per connection'!$J$69)","v":-157753.3432151305},{"$f":"AB$3*('COM-Appliance class'!$AQ54/'Volume per connection'!$J$69)","v":-155224.53557482755},{"$f":"AC$3*('COM-Appliance class'!$AQ54/'Volume per connection'!$J$69)","v":-152708.37197272616},{"$f":"AD$3*('COM-Appliance class'!$AQ54/'Volume per connection'!$J$69)","v":-150204.78918863524},{"$f":"AE$3*('COM-Appliance class'!$AQ54/'Volume per connection'!$J$69)","v":-147713.72431846478},{"$f":"AF$3*('COM-Appliance class'!$AQ54/'Volume per connection'!$J$69)","v":-145235.11477264517},{"$f":"AG$3*('COM-Appliance class'!$AQ54/'Volume per connection'!$J$69)","v":-145235.11477264517},{"$f":"AH$3*('COM-Appliance class'!$AQ54/'Volume per connection'!$J$69)","v":-145235.11477264517},{"$f":"AI$3*('COM-Appliance class'!$AQ54/'Volume per connection'!$J$69)","v":-145235.11477264517},{"$f":"AJ$3*('COM-Appliance class'!$AQ54/'Volume per connection'!$J$69)","v":-145235.11477264517},{"$f":"AK$3*('COM-Appliance class'!$AQ54/'Volume per connection'!$J$69)","v":-145235.11477264517},{"$f":"AL$3*('COM-Appliance class'!$AQ54/'Volume per connection'!$J$69)","v":-145235.11477264517},{"$f":"AM$3*('COM-Appliance class'!$AQ54/'Volume per connection'!$J$69)","v":-145235.11477264517},{"$f":"AN$3*('COM-Appliance class'!$AQ54/'Volume per connection'!$J$69)","v":-145235.11477264517},{"$f":"AO$3*('COM-Appliance class'!$AQ54/'Volume per connection'!$J$69)","v":-145235.11477264517},{"$f":"AP$3*('COM-Appliance class'!$AQ54/'Volume per connection'!$J$69)","v":-145235.11477264517},{"$f":"AQ$3*('COM-Appliance class'!$AQ54/'Volume per connection'!$J$69)","v":-145235.11477264517},{"$f":"AR$3*('COM-Appliance class'!$AQ54/'Volume per connection'!$J$69)","v":-145235.11477264517},{"$f":"AS$3*('COM-Appliance class'!$AQ54/'Volume per connection'!$J$69)","v":-145235.11477264517},{"$f":"AT$3*('COM-Appliance class'!$AQ54/'Volume per connection'!$J$69)","v":-145235.11477264517},{"$f":"AU$3*('COM-Appliance class'!$AQ54/'Volume per connection'!$J$69)","v":-145235.11477264517},{"$f":"AV$3*('COM-Appliance class'!$AQ54/'Volume per connection'!$J$69)","v":-145235.11477264517},{"$f":"AW$3*('COM-Appliance class'!$AQ54/'Volume per connection'!$J$69)","v":-145235.11477264517},{"$f":"AX$3*('COM-Appliance class'!$AQ54/'Volume per connection'!$J$69)","v":-145235.11477264517},{"$f":"AY$3*('COM-Appliance class'!$AQ54/'Volume per connection'!$J$69)","v":-145235.11477264517},{"$f":"AZ$3*('COM-Appliance class'!$AQ54/'Volume per connection'!$J$69)","v":-145235.11477264517},{"$f":"BA$3*('COM-Appliance class'!$AQ54/'Volume per connection'!$J$69)","v":-145235.11477264517},{"$f":"BB$3*('COM-Appliance class'!$AQ54/'Volume per connection'!$J$69)","v":-145235.11477264517},{"$f":"BC$3*('COM-Appliance class'!$AQ54/'Volume per connection'!$J$69)","v":-145235.11477264517},{"$f":"BD$3*('COM-Appliance class'!$AQ54/'Volume per connection'!$J$69)","v":-145235.11477264517},{"$f":"BE$3*('COM-Appliance class'!$AQ54/'Volume per connection'!$J$69)","v":-145235.11477264517},{"$f":"BF$3*('COM-Appliance class'!$AQ54/'Volume per connection'!$J$69)","v":-145235.11477264517},{"$f":"BG$3*('COM-Appliance class'!$AQ54/'Volume per connection'!$J$69)","v":-145235.11477264517},{"$f":"BH$3*('COM-Appliance class'!$AQ54/'Volume per connection'!$J$69)","v":-145235.11477264517},{"$f":"BI$3*('COM-Appliance class'!$AQ54/'Volume per connection'!$J$69)","v":-145235.11477264517},{"$f":"BJ$3*('COM-Appliance class'!$AQ54/'Volume per connection'!$J$69)","v":-145235.11477264517},{"$f":"BK$3*('COM-Appliance class'!$AQ54/'Volume per connection'!$J$69)","v":-145235.11477264517},{"$f":"BL$3*('COM-Appliance class'!$AQ54/'Volume per connection'!$J$69)","v":-145235.11477264517},{"$f":"BM$3*('COM-Appliance class'!$AQ54/'Volume per connection'!$J$69)","v":-145235.11477264517},{"$f":"BN$3*('COM-Appliance class'!$AQ54/'Volume per connection'!$J$69)","v":-145235.11477264517},{"$f":"BO$3*('COM-Appliance class'!$AQ54/'Volume per connection'!$J$69)","v":-145235.11477264517},{"$f":"BP$3*('COM-Appliance class'!$AQ54/'Volume per connection'!$J$69)","v":-145235.11477264517},{"$f":"BQ$3*('COM-Appliance class'!$AQ54/'Volume per connection'!$J$69)","v":-145235.11477264517},{"$f":"BR$3*('COM-Appliance class'!$AQ54/'Volume per connection'!$J$69)","v":-145235.11477264517},{"$f":"BS$3*('COM-Appliance class'!$AQ54/'Volume per connection'!$J$69)","v":-145235.11477264517},{"$f":"BT$3*('COM-Appliance class'!$AQ54/'Volume per connection'!$J$69)","v":-145235.11477264517},{"$f":"BU$3*('COM-Appliance class'!$AQ54/'Volume per connection'!$J$69)","v":-145235.11477264517},{"$f":"BV$3*('COM-Appliance class'!$AQ54/'Volume per connection'!$J$69)","v":-145235.11477264517},{"$f":"BW$3*('COM-Appliance class'!$AQ54/'Volume per connection'!$J$69)","v":-145235.11477264517},{"$f":"BX$3*('COM-Appliance class'!$AQ54/'Volume per connection'!$J$69)","v":-145235.11477264517},{"$f":"BY$3*('COM-Appliance class'!$AQ54/'Volume per connection'!$J$69)","v":-145235.11477264517},{"$f":"BZ$3*('COM-Appliance class'!$AQ54/'Volume per connection'!$J$69)","v":-145235.11477264517},{"$f":"CA$3*('COM-Appliance class'!$AQ54/'Volume per connection'!$J$69)","v":-145235.11477264517},{"$f":"CB$3*('COM-Appliance class'!$AQ54/'Volume per connection'!$J$69)","v":-145235.11477264517},{"$f":"CC$3*('COM-Appliance class'!$AQ54/'Volume per connection'!$J$69)","v":-145235.11477264517},{"$f":"CD$3*('COM-Appliance class'!$AQ54/'Volume per connection'!$J$69)","v":-145235.11477264517}]
["Kingston (C)",null,{"$f":"C$3*('COM-Appliance class'!$AQ55/'Volume per connection'!$J$69)","v":-226676.01493171309},{"$f":"D$3*('COM-Appliance class'!$AQ55/'Volume per connection'!$J$69)","v":-226676.01493171309},{"$f":"E$3*('COM-Appliance class'!$AQ55/'Volume per connection'!$J$69)","v":-144385.34234775981},{"$f":"F$3*('COM-Appliance class'!$AQ55/'Volume per connection'!$J$69)","v":-144385.34234775981},{"$f":"G$3*('COM-Appliance class'!$AQ55/'Volume per connection'!$J$69)","v":-203908.38108687662},{"$f":"H$3*('COM-Appliance class'!$AQ55/'Volume per connection'!$J$69)","v":-203908.38108687662},{"$f":"I$3*('COM-Appliance class'!$AQ55/'Volume per connection'!$J$69)","v":-203908.38108687662},{"$f":"J$3*('COM-Appliance class'!$AQ55/'Volume per connection'!$J$69)","v":-223722.64144618806},{"$f":"K$3*('COM-Appliance class'!$AQ55/'Volume per connection'!$J$69)","v":-209175.80586974404},{"$f":"L$3*('COM-Appliance class'!$AQ55/'Volume per connection'!$J$69)","v":-206309.93342952887},{"$f":"M$3*('COM-Appliance class'!$AQ55/'Volume per connection'!$J$69)","v":-203458.39035151477},{"$f":"N$3*('COM-Appliance class'!$AQ55/'Volume per connection'!$J$69)","v":-200621.10498889076},{"$f":"O$3*('COM-Appliance class'!$AQ55/'Volume per connection'!$J$69)","v":-197798.00605307982},{"$f":"P$3*('COM-Appliance class'!$AQ55/'Volume per connection'!$J$69)","v":-194989.02261194802},{"$f":"Q$3*('COM-Appliance class'!$AQ55/'Volume per connection'!$J$69)","v":-192194.08408802177},{"$f":"R$3*('COM-Appliance class'!$AQ55/'Volume per connection'!$J$69)","v":-189413.12025671525},{"$f":"S$3*('COM-Appliance class'!$AQ55/'Volume per connection'!$J$69)","v":-186646.06124456524},{"$f":"T$3*('COM-Appliance class'!$AQ55/'Volume per connection'!$J$69)","v":-183892.83752747599},{"$f":"U$3*('COM-Appliance class'!$AQ55/'Volume per connection'!$J$69)","v":-181153.37992897214},{"$f":"V$3*('COM-Appliance class'!$AQ55/'Volume per connection'!$J$69)","v":-178427.6196184608},{"$f":"W$3*('COM-Appliance class'!$AQ55/'Volume per connection'!$J$69)","v":-175715.48810950201},{"$f":"X$3*('COM-Appliance class'!$AQ55/'Volume per connection'!$J$69)","v":-173016.91725808807},{"$f":"Y$3*('COM-Appliance class'!$AQ55/'Volume per connection'!$J$69)","v":-170331.83926093118},{"$f":"Z$3*('COM-Appliance class'!$AQ55/'Volume per connection'!$J$69)","v":-167660.18665376006},{"$f":"AA$3*('COM-Appliance class'!$AQ55/'Volume per connection'!$J$69)","v":-165001.89230962479},{"$f":"AB$3*('COM-Appliance class'!$AQ55/'Volume per connection'!$J$69)","v":-162356.88943721022},{"$f":"AC$3*('COM-Appliance class'!$AQ55/'Volume per connection'!$J$69)","v":-159725.11157915776},{"$f":"AD$3*('COM-Appliance class'!$AQ55/'Volume per connection'!$J$69)","v":-157106.49261039554},{"$f":"AE$3*('COM-Appliance class'!$AQ55/'Volume per connection'!$J$69)","v":-154500.9667364771},{"$f":"AF$3*('COM-Appliance class'!$AQ55/'Volume per connection'!$J$69)","v":-151908.46849192824},{"$f":"AG$3*('COM-Appliance class'!$AQ55/'Volume per connection'!$J$69)","v":-151908.46849192824},{"$f":"AH$3*('COM-Appliance class'!$AQ55/'Volume per connection'!$J$69)","v":-151908.46849192824},{"$f":"AI$3*('COM-Appliance class'!$AQ55/'Volume per connection'!$J$69)","v":-151908.46849192824},{"$f":"AJ$3*('COM-Appliance class'!$AQ55/'Volume per connection'!$J$69)","v":-151908.46849192824},{"$f":"AK$3*('COM-Appliance class'!$AQ55/'Volume per connection'!$J$69)","v":-151908.46849192824},{"$f":"AL$3*('COM-Appliance class'!$AQ55/'Volume per connection'!$J$69)","v":-151908.46849192824},{"$f":"AM$3*('COM-Appliance class'!$AQ55/'Volume per connection'!$J$69)","v":-151908.46849192824},{"$f":"AN$3*('COM-Appliance class'!$AQ55/'Volume per connection'!$J$69)","v":-151908.46849192824},{"$f":"AO$3*('COM-Appliance class'!$AQ55/'Volume per connection'!$J$69)","v":-151908.46849192824},{"$f":"AP$3*('COM-Appliance class'!$AQ55/'Volume per connection'!$J$69)","v":-151908.46849192824},{"$f":"AQ$3*('COM-Appliance class'!$AQ55/'Volume per connection'!$J$69)","v":-151908.46849192824},{"$f":"AR$3*('COM-Appliance class'!$AQ55/'Volume per connection'!$J$69)","v":-151908.46849192824},{"$f":"AS$3*('COM-Appliance class'!$AQ55/'Volume per connection'!$J$69)","v":-151908.46849192824},{"$f":"AT$3*('COM-Appliance class'!$AQ55/'Volume per connection'!$J$69)","v":-151908.46849192824},{"$f":"AU$3*('COM-Appliance class'!$AQ55/'Volume per connection'!$J$69)","v":-151908.46849192824},{"$f":"AV$3*('COM-Appliance class'!$AQ55/'Volume per connection'!$J$69)","v":-151908.46849192824},{"$f":"AW$3*('COM-Appliance class'!$AQ55/'Volume per connection'!$J$69)","v":-151908.46849192824},{"$f":"AX$3*('COM-Appliance class'!$AQ55/'Volume per connection'!$J$69)","v":-151908.46849192824},{"$f":"AY$3*('COM-Appliance class'!$AQ55/'Volume per connection'!$J$69)","v":-151908.46849192824},{"$f":"AZ$3*('COM-Appliance class'!$AQ55/'Volume per connection'!$J$69)","v":-151908.46849192824},{"$f":"BA$3*('COM-Appliance class'!$AQ55/'Volume per connection'!$J$69)","v":-151908.46849192824},{"$f":"BB$3*('COM-Appliance class'!$AQ55/'Volume per connection'!$J$69)","v":-151908.46849192824},{"$f":"BC$3*('COM-Appliance class'!$AQ55/'Volume per connection'!$J$69)","v":-151908.46849192824},{"$f":"BD$3*('COM-Appliance class'!$AQ55/'Volume per connection'!$J$69)","v":-151908.46849192824},{"$f":"BE$3*('COM-Appliance class'!$AQ55/'Volume per connection'!$J$69)","v":-151908.46849192824},{"$f":"BF$3*('COM-Appliance class'!$AQ55/'Volume per connection'!$J$69)","v":-151908.46849192824},{"$f":"BG$3*('COM-Appliance class'!$AQ55/'Volume per connection'!$J$69)","v":-151908.46849192824},{"$f":"BH$3*('COM-Appliance class'!$AQ55/'Volume per connection'!$J$69)","v":-151908.46849192824},{"$f":"BI$3*('COM-Appliance class'!$AQ55/'Volume per connection'!$J$69)","v":-151908.46849192824},{"$f":"BJ$3*('COM-Appliance class'!$AQ55/'Volume per connection'!$J$69)","v":-151908.46849192824},{"$f":"BK$3*('COM-Appliance class'!$AQ55/'Volume per connection'!$J$69)","v":-151908.46849192824},{"$f":"BL$3*('COM-Appliance class'!$AQ55/'Volume per connection'!$J$69)","v":-151908.46849192824},{"$f":"BM$3*('COM-Appliance class'!$AQ55/'Volume per connection'!$J$69)","v":-151908.46849192824},{"$f":"BN$3*('COM-Appliance class'!$AQ55/'Volume per connection'!$J$69)","v":-151908.46849192824},{"$f":"BO$3*('COM-Appliance class'!$AQ55/'Volume per connection'!$J$69)","v":-151908.46849192824},{"$f":"BP$3*('COM-Appliance class'!$AQ55/'Volume per connection'!$J$69)","v":-151908.46849192824},{"$f":"BQ$3*('COM-Appliance class'!$AQ55/'Volume per connection'!$J$69)","v":-151908.46849192824},{"$f":"BR$3*('COM-Appliance class'!$AQ55/'Volume per connection'!$J$69)","v":-151908.46849192824},{"$f":"BS$3*('COM-Appliance class'!$AQ55/'Volume per connection'!$J$69)","v":-151908.46849192824},{"$f":"BT$3*('COM-Appliance class'!$AQ55/'Volume per connection'!$J$69)","v":-151908.46849192824},{"$f":"BU$3*('COM-Appliance class'!$AQ55/'Volume per connection'!$J$69)","v":-151908.46849192824},{"$f":"BV$3*('COM-Appliance class'!$AQ55/'Volume per connection'!$J$69)","v":-151908.46849192824},{"$f":"BW$3*('COM-Appliance class'!$AQ55/'Volume per connection'!$J$69)","v":-151908.46849192824},{"$f":"BX$3*('COM-Appliance class'!$AQ55/'Volume per connection'!$J$69)","v":-151908.46849192824},{"$f":"BY$3*('COM-Appliance class'!$AQ55/'Volume per connection'!$J$69)","v":-151908.46849192824},{"$f":"BZ$3*('COM-Appliance class'!$AQ55/'Volume per connection'!$J$69)","v":-151908.46849192824},{"$f":"CA$3*('COM-Appliance class'!$AQ55/'Volume per connection'!$J$69)","v":-151908.46849192824},{"$f":"CB$3*('COM-Appliance class'!$AQ55/'Volume per connection'!$J$69)","v":-151908.46849192824},{"$f":"CC$3*('COM-Appliance class'!$AQ55/'Volume per connection'!$J$69)","v":-151908.46849192824},{"$f":"CD$3*('COM-Appliance class'!$AQ55/'Volume per connection'!$J$69)","v":-151908.46849192824}]
["Knox (C)",null,{"$f":"C$3*('COM-Appliance class'!$AQ56/'Volume per connection'!$J$69)","v":-192648.51890007206},{"$f":"D$3*('COM-Appliance class'!$AQ56/'Volume per connection'!$J$69)","v":-192648.51890007206},{"$f":"E$3*('COM-Appliance class'!$AQ56/'Volume per connection'!$J$69)","v":-122710.92008810605},{"$f":"F$3*('COM-Appliance class'!$AQ56/'Volume per connection'!$J$69)","v":-122710.92008810605},{"$f":"G$3*('COM-Appliance class'!$AQ56/'Volume per connection'!$J$69)","v":-173298.65102636584},{"$f":"H$3*('COM-Appliance class'!$AQ56/'Volume per connection'!$J$69)","v":-173298.65102636584},{"$f":"I$3*('COM-Appliance class'!$AQ56/'Volume per connection'!$J$69)","v":-173298.65102636584},{"$f":"J$3*('COM-Appliance class'!$AQ56/'Volume per connection'!$J$69)","v":-190138.49141473559},{"$f":"K$3*('COM-Appliance class'!$AQ56/'Volume per connection'!$J$69)","v":-177775.35573260768},{"$f":"L$3*('COM-Appliance class'!$AQ56/'Volume per connection'!$J$69)","v":-175339.69406310856},{"$f":"M$3*('COM-Appliance class'!$AQ56/'Volume per connection'!$J$69)","v":-172916.21070195691},{"$f":"N$3*('COM-Appliance class'!$AQ56/'Volume per connection'!$J$69)","v":-170504.84475761102},{"$f":"O$3*('COM-Appliance class'!$AQ56/'Volume per connection'!$J$69)","v":-168105.53564298683},{"$f":"P$3*('COM-Appliance class'!$AQ56/'Volume per connection'!$J$69)","v":-165718.22307393586},{"$f":"Q$3*('COM-Appliance class'!$AQ56/'Volume per connection'!$J$69)","v":-163342.84706773004},{"$f":"R$3*('COM-Appliance class'!$AQ56/'Volume per connection'!$J$69)","v":-160979.34794155532},{"$f":"S$3*('COM-Appliance class'!$AQ56/'Volume per connection'!$J$69)","v":-158627.66631101145},{"$f":"T$3*('COM-Appliance class'!$AQ56/'Volume per connection'!$J$69)","v":-156287.74308862031},{"$f":"U$3*('COM-Appliance class'!$AQ56/'Volume per connection'!$J$69)","v":-153959.51948234107},{"$f":"V$3*('COM-Appliance class'!$AQ56/'Volume per connection'!$J$69)","v":-151642.93699409327},{"$f":"W$3*('COM-Appliance class'!$AQ56/'Volume per connection'!$J$69)","v":-149337.93741828669},{"$f":"X$3*('COM-Appliance class'!$AQ56/'Volume per connection'!$J$69)","v":-147044.46284035913},{"$f":"Y$3*('COM-Appliance class'!$AQ56/'Volume per connection'!$J$69)","v":-144762.45563532127},{"$f":"Z$3*('COM-Appliance class'!$AQ56/'Volume per connection'!$J$69)","v":-142491.85846630853},{"$f":"AA$3*('COM-Appliance class'!$AQ56/'Volume per connection'!$J$69)","v":-140232.61428314087},{"$f":"AB$3*('COM-Appliance class'!$AQ56/'Volume per connection'!$J$69)","v":-137984.66632088908},{"$f":"AC$3*('COM-Appliance class'!$AQ56/'Volume per connection'!$J$69)","v":-135747.95809844855},{"$f":"AD$3*('COM-Appliance class'!$AQ56/'Volume per connection'!$J$69)","v":-133522.43341712022},{"$f":"AE$3*('COM-Appliance class'!$AQ56/'Volume per connection'!$J$69)","v":-131308.03635919854},{"$f":"AF$3*('COM-Appliance class'!$AQ56/'Volume per connection'!$J$69)","v":-129104.71128656642},{"$f":"AG$3*('COM-Appliance class'!$AQ56/'Volume per connection'!$J$69)","v":-129104.71128656642},{"$f":"AH$3*('COM-Appliance class'!$AQ56/'Volume per connection'!$J$69)","v":-129104.71128656642},{"$f":"AI$3*('COM-Appliance class'!$AQ56/'Volume per connection'!$J$69)","v":-129104.71128656642},{"$f":"AJ$3*('COM-Appliance class'!$AQ56/'Volume per connection'!$J$69)","v":-129104.71128656642},{"$f":"AK$3*('COM-Appliance class'!$AQ56/'Volume per connection'!$J$69)","v":-129104.71128656642},{"$f":"AL$3*('COM-Appliance class'!$AQ56/'Volume per connection'!$J$69)","v":-129104.71128656642},{"$f":"AM$3*('COM-Appliance class'!$AQ56/'Volume per connection'!$J$69)","v":-129104.71128656642},{"$f":"AN$3*('COM-Appliance class'!$AQ56/'Volume per connection'!$J$69)","v":-129104.71128656642},{"$f":"AO$3*('COM-Appliance class'!$AQ56/'Volume per connection'!$J$69)","v":-129104.71128656642},{"$f":"AP$3*('COM-Appliance class'!$AQ56/'Volume per connection'!$J$69)","v":-129104.71128656642},{"$f":"AQ$3*('COM-Appliance class'!$AQ56/'Volume per connection'!$J$69)","v":-129104.71128656642},{"$f":"AR$3*('COM-Appliance class'!$AQ56/'Volume per connection'!$J$69)","v":-129104.71128656642},{"$f":"AS$3*('COM-Appliance class'!$AQ56/'Volume per connection'!$J$69)","v":-129104.71128656642},{"$f":"AT$3*('COM-Appliance class'!$AQ56/'Volume per connection'!$J$69)","v":-129104.71128656642},{"$f":"AU$3*('COM-Appliance class'!$AQ56/'Volume per connection'!$J$69)","v":-129104.71128656642},{"$f":"AV$3*('COM-Appliance class'!$AQ56/'Volume per connection'!$J$69)","v":-129104.71128656642},{"$f":"AW$3*('COM-Appliance class'!$AQ56/'Volume per connection'!$J$69)","v":-129104.71128656642},{"$f":"AX$3*('COM-Appliance class'!$AQ56/'Volume per connection'!$J$69)","v":-129104.71128656642},{"$f":"AY$3*('COM-Appliance class'!$AQ56/'Volume per connection'!$J$69)","v":-129104.71128656642},{"$f":"AZ$3*('COM-Appliance class'!$AQ56/'Volume per connection'!$J$69)","v":-129104.71128656642},{"$f":"BA$3*('COM-Appliance class'!$AQ56/'Volume per connection'!$J$69)","v":-129104.71128656642},{"$f":"BB$3*('COM-Appliance class'!$AQ56/'Volume per connection'!$J$69)","v":-129104.71128656642},{"$f":"BC$3*('COM-Appliance class'!$AQ56/'Volume per connection'!$J$69)","v":-129104.71128656642},{"$f":"BD$3*('COM-Appliance class'!$AQ56/'Volume per connection'!$J$69)","v":-129104.71128656642},{"$f":"BE$3*('COM-Appliance class'!$AQ56/'Volume per connection'!$J$69)","v":-129104.71128656642},{"$f":"BF$3*('COM-Appliance class'!$AQ56/'Volume per connection'!$J$69)","v":-129104.71128656642},{"$f":"BG$3*('COM-Appliance class'!$AQ56/'Volume per connection'!$J$69)","v":-129104.71128656642},{"$f":"BH$3*('COM-Appliance class'!$AQ56/'Volume per connection'!$J$69)","v":-129104.71128656642},{"$f":"BI$3*('COM-Appliance class'!$AQ56/'Volume per connection'!$J$69)","v":-129104.71128656642},{"$f":"BJ$3*('COM-Appliance class'!$AQ56/'Volume per connection'!$J$69)","v":-129104.71128656642},{"$f":"BK$3*('COM-Appliance class'!$AQ56/'Volume per connection'!$J$69)","v":-129104.71128656642},{"$f":"BL$3*('COM-Appliance class'!$AQ56/'Volume per connection'!$J$69)","v":-129104.71128656642},{"$f":"BM$3*('COM-Appliance class'!$AQ56/'Volume per connection'!$J$69)","v":-129104.71128656642},{"$f":"BN$3*('COM-Appliance class'!$AQ56/'Volume per connection'!$J$69)","v":-129104.71128656642},{"$f":"BO$3*('COM-Appliance class'!$AQ56/'Volume per connection'!$J$69)","v":-129104.71128656642},{"$f":"BP$3*('COM-Appliance class'!$AQ56/'Volume per connection'!$J$69)","v":-129104.71128656642},{"$f":"BQ$3*('COM-Appliance class'!$AQ56/'Volume per connection'!$J$69)","v":-129104.71128656642},{"$f":"BR$3*('COM-Appliance class'!$AQ56/'Volume per connection'!$J$69)","v":-129104.71128656642},{"$f":"BS$3*('COM-Appliance class'!$AQ56/'Volume per connection'!$J$69)","v":-129104.71128656642},{"$f":"BT$3*('COM-Appliance class'!$AQ56/'Volume per connection'!$J$69)","v":-129104.71128656642},{"$f":"BU$3*('COM-Appliance class'!$AQ56/'Volume per connection'!$J$69)","v":-129104.71128656642},{"$f":"BV$3*('COM-Appliance class'!$AQ56/'Volume per connection'!$J$69)","v":-129104.71128656642},{"$f":"BW$3*('COM-Appliance class'!$AQ56/'Volume per connection'!$J$69)","v":-129104.71128656642},{"$f":"BX$3*('COM-Appliance class'!$AQ56/'Volume per connection'!$J$69)","v":-129104.71128656642},{"$f":"BY$3*('COM-Appliance class'!$AQ56/'Volume per connection'!$J$69)","v":-129104.71128656642},{"$f":"BZ$3*('COM-Appliance class'!$AQ56/'Volume per connection'!$J$69)","v":-129104.71128656642},{"$f":"CA$3*('COM-Appliance class'!$AQ56/'Volume per connection'!$J$69)","v":-129104.71128656642},{"$f":"CB$3*('COM-Appliance class'!$AQ56/'Volume per connection'!$J$69)","v":-129104.71128656642},{"$f":"CC$3*('COM-Appliance class'!$AQ56/'Volume per connection'!$J$69)","v":-129104.71128656642},{"$f":"CD$3*('COM-Appliance class'!$AQ56/'Volume per connection'!$J$69)","v":-129104.71128656642}]
["Manningham (C)",null,{"$f":"C$3*('COM-Appliance class'!$AQ57/'Volume per connection'!$J$69)","v":-168548.14765063219},{"$f":"D$3*('COM-Appliance class'!$AQ57/'Volume per connection'!$J$69)","v":-168548.14765063219},{"$f":"E$3*('COM-Appliance class'!$AQ57/'Volume per connection'!$J$69)","v":-107359.75752859676},{"$f":"F$3*('COM-Appliance class'!$AQ57/'Volume per connection'!$J$69)","v":-107359.75752859676},{"$f":"G$3*('COM-Appliance class'!$AQ57/'Volume per connection'!$J$69)","v":-151618.95241976017},{"$f":"H$3*('COM-Appliance class'!$AQ57/'Volume per connection'!$J$69)","v":-151618.95241976017},{"$f":"I$3*('COM-Appliance class'!$AQ57/'Volume per connection'!$J$69)","v":-151618.95241976017},{"$f":"J$3*('COM-Appliance class'!$AQ57/'Volume per connection'!$J$69)","v":-166352.12514487351},{"$f":"K$3*('COM-Appliance class'!$AQ57/'Volume per connection'!$J$69)","v":-155535.62040207317},{"$f":"L$3*('COM-Appliance class'!$AQ57/'Volume per connection'!$J$69)","v":-153404.66053255726},{"$f":"M$3*('COM-Appliance class'!$AQ57/'Volume per connection'!$J$69)","v":-151284.35546238898},{"$f":"N$3*('COM-Appliance class'!$AQ57/'Volume per connection'!$J$69)","v":-149174.65191757152},{"$f":"O$3*('COM-Appliance class'!$AQ57/'Volume per connection'!$J$69)","v":-147075.4968904781},{"$f":"P$3*('COM-Appliance class'!$AQ57/'Volume per connection'!$J$69)","v":-144986.83763852023},{"$f":"Q$3*('COM-Appliance class'!$AQ57/'Volume per connection'!$J$69)","v":-142908.62168282206},{"$f":"R$3*('COM-Appliance class'!$AQ57/'Volume per connection'!$J$69)","v":-140840.79680690248},{"$f":"S$3*('COM-Appliance class'!$AQ57/'Volume per connection'!$J$69)","v":-138783.31105536246},{"$f":"T$3*('COM-Appliance class'!$AQ57/'Volume per connection'!$J$69)","v":-136736.11273258014},{"$f":"U$3*('COM-Appliance class'!$AQ57/'Volume per connection'!$J$69)","v":-134699.15040141169},{"$f":"V$3*('COM-Appliance class'!$AQ57/'Volume per connection'!$J$69)","v":-132672.37288189912},{"$f":"W$3*('COM-Appliance class'!$AQ57/'Volume per connection'!$J$69)","v":-130655.72924998407},{"$f":"X$3*('COM-Appliance class'!$AQ57/'Volume per connection'!$J$69)","v":-128649.16883622864},{"$f":"Y$3*('COM-Appliance class'!$AQ57/'Volume per connection'!$J$69)","v":-126652.64122454198},{"$f":"Z$3*('COM-Appliance class'!$AQ57/'Volume per connection'!$J$69)","v":-124666.09625091375},{"$f":"AA$3*('COM-Appliance class'!$AQ57/'Volume per connection'!$J$69)","v":-122689.48400215364},{"$f":"AB$3*('COM-Appliance class'!$AQ57/'Volume per connection'!$J$69)","v":-120722.75481463734},{"$f":"AC$3*('COM-Appliance class'!$AQ57/'Volume per connection'!$J$69)","v":-118765.85927305867},{"$f":"AD$3*('COM-Appliance class'!$AQ57/'Volume per connection'!$J$69)","v":-116818.74820918786},{"$f":"AE$3*('COM-Appliance class'!$AQ57/'Volume per connection'!$J$69)","v":-114881.37270063641},{"$f":"AF$3*('COM-Appliance class'!$AQ57/'Volume per connection'!$J$69)","v":-112953.68406962771},{"$f":"AG$3*('COM-Appliance class'!$AQ57/'Volume per connection'!$J$69)","v":-112953.68406962771},{"$f":"AH$3*('COM-Appliance class'!$AQ57/'Volume per connection'!$J$69)","v":-112953.68406962771},{"$f":"AI$3*('COM-Appliance class'!$AQ57/'Volume per connection'!$J$69)","v":-112953.68406962771},{"$f":"AJ$3*('COM-Appliance class'!$AQ57/'Volume per connection'!$J$69)","v":-112953.68406962771},{"$f":"AK$3*('COM-Appliance class'!$AQ57/'Volume per connection'!$J$69)","v":-112953.68406962771},{"$f":"AL$3*('COM-Appliance class'!$AQ57/'Volume per connection'!$J$69)","v":-112953.68406962771},{"$f":"AM$3*('COM-Appliance class'!$AQ57/'Volume per connection'!$J$69)","v":-112953.68406962771},{"$f":"AN$3*('COM-Appliance class'!$AQ57/'Volume per connection'!$J$69)","v":-112953.68406962771},{"$f":"AO$3*('COM-Appliance class'!$AQ57/'Volume per connection'!$J$69)","v":-112953.68406962771},{"$f":"AP$3*('COM-Appliance class'!$AQ57/'Volume per connection'!$J$69)","v":-112953.68406962771},{"$f":"AQ$3*('COM-Appliance class'!$AQ57/'Volume per connection'!$J$69)","v":-112953.68406962771},{"$f":"AR$3*('COM-Appliance class'!$AQ57/'Volume per connection'!$J$69)","v":-112953.68406962771},{"$f":"AS$3*('COM-Appliance class'!$AQ57/'Volume per connection'!$J$69)","v":-112953.68406962771},{"$f":"AT$3*('COM-Appliance class'!$AQ57/'Volume per connection'!$J$69)","v":-112953.68406962771},{"$f":"AU$3*('COM-Appliance class'!$AQ57/'Volume per connection'!$J$69)","v":-112953.68406962771},{"$f":"AV$3*('COM-Appliance class'!$AQ57/'Volume per connection'!$J$69)","v":-112953.68406962771},{"$f":"AW$3*('COM-Appliance class'!$AQ57/'Volume per connection'!$J$69)","v":-112953.68406962771},{"$f":"AX$3*('COM-Appliance class'!$AQ57/'Volume per connection'!$J$69)","v":-112953.68406962771},{"$f":"AY$3*('COM-Appliance class'!$AQ57/'Volume per connection'!$J$69)","v":-112953.68406962771},{"$f":"AZ$3*('COM-Appliance class'!$AQ57/'Volume per connection'!$J$69)","v":-112953.68406962771},{"$f":"BA$3*('COM-Appliance class'!$AQ57/'Volume per connection'!$J$69)","v":-112953.68406962771},{"$f":"BB$3*('COM-Appliance class'!$AQ57/'Volume per connection'!$J$69)","v":-112953.68406962771},{"$f":"BC$3*('COM-Appliance class'!$AQ57/'Volume per connection'!$J$69)","v":-112953.68406962771},{"$f":"BD$3*('COM-Appliance class'!$AQ57/'Volume per connection'!$J$69)","v":-112953.68406962771},{"$f":"BE$3*('COM-Appliance class'!$AQ57/'Volume per connection'!$J$69)","v":-112953.68406962771},{"$f":"BF$3*('COM-Appliance class'!$AQ57/'Volume per connection'!$J$69)","v":-112953.68406962771},{"$f":"BG$3*('COM-Appliance class'!$AQ57/'Volume per connection'!$J$69)","v":-112953.68406962771},{"$f":"BH$3*('COM-Appliance class'!$AQ57/'Volume per connection'!$J$69)","v":-112953.68406962771},{"$f":"BI$3*('COM-Appliance class'!$AQ57/'Volume per connection'!$J$69)","v":-112953.68406962771},{"$f":"BJ$3*('COM-Appliance class'!$AQ57/'Volume per connection'!$J$69)","v":-112953.68406962771},{"$f":"BK$3*('COM-Appliance class'!$AQ57/'Volume per connection'!$J$69)","v":-112953.68406962771},{"$f":"BL$3*('COM-Appliance class'!$AQ57/'Volume per connection'!$J$69)","v":-112953.68406962771},{"$f":"BM$3*('COM-Appliance class'!$AQ57/'Volume per connection'!$J$69)","v":-112953.68406962771},{"$f":"BN$3*('COM-Appliance class'!$AQ57/'Volume per connection'!$J$69)","v":-112953.68406962771},{"$f":"BO$3*('COM-Appliance class'!$AQ57/'Volume per connection'!$J$69)","v":-112953.68406962771},{"$f":"BP$3*('COM-Appliance class'!$AQ57/'Volume per connection'!$J$69)","v":-112953.68406962771},{"$f":"BQ$3*('COM-Appliance class'!$AQ57/'Volume per connection'!$J$69)","v":-112953.68406962771},{"$f":"BR$3*('COM-Appliance class'!$AQ57/'Volume per connection'!$J$69)","v":-112953.68406962771},{"$f":"BS$3*('COM-Appliance class'!$AQ57/'Volume per connection'!$J$69)","v":-112953.68406962771},{"$f":"BT$3*('COM-Appliance class'!$AQ57/'Volume per connection'!$J$69)","v":-112953.68406962771},{"$f":"BU$3*('COM-Appliance class'!$AQ57/'Volume per connection'!$J$69)","v":-112953.68406962771},{"$f":"BV$3*('COM-Appliance class'!$AQ57/'Volume per connection'!$J$69)","v":-112953.68406962771},{"$f":"BW$3*('COM-Appliance class'!$AQ57/'Volume per connection'!$J$69)","v":-112953.68406962771},{"$f":"BX$3*('COM-Appliance class'!$AQ57/'Volume per connection'!$J$69)","v":-112953.68406962771},{"$f":"BY$3*('COM-Appliance class'!$AQ57/'Volume per connection'!$J$69)","v":-112953.68406962771},{"$f":"BZ$3*('COM-Appliance class'!$AQ57/'Volume per connection'!$J$69)","v":-112953.68406962771},{"$f":"CA$3*('COM-Appliance class'!$AQ57/'Volume per connection'!$J$69)","v":-112953.68406962771},{"$f":"CB$3*('COM-Appliance class'!$AQ57/'Volume per connection'!$J$69)","v":-112953.68406962771},{"$f":"CC$3*('COM-Appliance class'!$AQ57/'Volume per connection'!$J$69)","v":-112953.68406962771},{"$f":"CD$3*('COM-Appliance class'!$AQ57/'Volume per connection'!$J$69)","v":-112953.68406962771}]
["Maroondah (C)",null,{"$f":"C$3*('COM-Appliance class'!$AQ58/'Volume per connection'!$J$69)","v":-163578.39972606816},{"$f":"D$3*('COM-Appliance class'!$AQ58/'Volume per connection'!$J$69)","v":-163578.39972606816},{"$f":"E$3*('COM-Appliance class'!$AQ58/'Volume per connection'!$J$69)","v":-104194.18769234209},{"$f":"F$3*('COM-Appliance class'!$AQ58/'Volume per connection'!$J$69)","v":-104194.18769234209},{"$f":"G$3*('COM-Appliance class'!$AQ58/'Volume per connection'!$J$69)","v":-147148.37244237264},{"$f":"H$3*('COM-Appliance class'!$AQ58/'Volume per connection'!$J$69)","v":-147148.37244237264},{"$f":"I$3*('COM-Appliance class'!$AQ58/'Volume per connection'!$J$69)","v":-147148.37244237264},{"$f":"J$3*('COM-Appliance class'!$AQ58/'Volume per connection'!$J$69)","v":-161447.12832224928},{"$f":"K$3*('COM-Appliance class'!$AQ58/'Volume per connection'!$J$69)","v":-150949.55501088771},{"$f":"L$3*('COM-Appliance class'!$AQ58/'Volume per connection'!$J$69)","v":-148881.42783064471},{"$f":"M$3*('COM-Appliance class'!$AQ58/'Volume per connection'!$J$69)","v":-146823.64128630294},{"$f":"N$3*('COM-Appliance class'!$AQ58/'Volume per connection'!$J$69)","v":-144776.14367468291},{"$f":"O$3*('COM-Appliance class'!$AQ58/'Volume per connection'!$J$69)","v":-142738.8835511209},{"$f":"P$3*('COM-Appliance class'!$AQ58/'Volume per connection'!$J$69)","v":-140711.8097281768},{"$f":"Q$3*('COM-Appliance class'!$AQ58/'Volume per connection'!$J$69)","v":-138694.87127434733},{"$f":"R$3*('COM-Appliance class'!$AQ58/'Volume per connection'!$J$69)","v":-136688.0175127871},{"$f":"S$3*('COM-Appliance class'!$AQ58/'Volume per connection'!$J$69)","v":-134691.19802003462},{"$f":"T$3*('COM-Appliance class'!$AQ58/'Volume per connection'!$J$69)","v":-132704.36262474593},{"$f":"U$3*('COM-Appliance class'!$AQ58/'Volume per connection'!$J$69)","v":-130727.46140643363},{"$f":"V$3*('COM-Appliance class'!$AQ58/'Volume per connection'!$J$69)","v":-128760.44469421291},{"$f":"W$3*('COM-Appliance class'!$AQ58/'Volume per connection'!$J$69)","v":-126803.26306555328},{"$f":"X$3*('COM-Appliance class'!$AQ58/'Volume per connection'!$J$69)","v":-124855.86734503698},{"$f":"Y$3*('COM-Appliance class'!$AQ58/'Volume per connection'!$J$69)","v":-122918.20860312326},{"$f":"Z$3*('COM-Appliance class'!$AQ58/'Volume per connection'!$J$69)","v":-120990.23815491909},{"$f":"AA$3*('COM-Appliance class'!$AQ58/'Volume per connection'!$J$69)","v":-119071.90755895594},{"$f":"AB$3*('COM-Appliance class'!$AQ58/'Volume per connection'!$J$69)","v":-117163.16861597261},{"$f":"AC$3*('COM-Appliance class'!$AQ58/'Volume per connection'!$J$69)","v":-115263.97336770424},{"$f":"AD$3*('COM-Appliance class'!$AQ58/'Volume per connection'!$J$69)","v":-113374.27409567717},{"$f":"AE$3*('COM-Appliance class'!$AQ58/'Volume per connection'!$J$69)","v":-111494.02332001025},{"$f":"AF$3*('COM-Appliance class'!$AQ58/'Volume per connection'!$J$69)","v":-109623.17379822166},{"$f":"AG$3*('COM-Appliance class'!$AQ58/'Volume per connection'!$J$69)","v":-109623.17379822166},{"$f":"AH$3*('COM-Appliance class'!$AQ58/'Volume per connection'!$J$69)","v":-109623.17379822166},{"$f":"AI$3*('COM-Appliance class'!$AQ58/'Volume per connection'!$J$69)","v":-109623.17379822166},{"$f":"AJ$3*('COM-Appliance class'!$AQ58/'Volume per connection'!$J$69)","v":-109623.17379822166},{"$f":"AK$3*('COM-Appliance class'!$AQ58/'Volume per connection'!$J$69)","v":-109623.17379822166},{"$f":"AL$3*('COM-Appliance class'!$AQ58/'Volume per connection'!$J$69)","v":-109623.17379822166},{"$f":"AM$3*('COM-Appliance class'!$AQ58/'Volume per connection'!$J$69)","v":-109623.17379822166},{"$f":"AN$3*('COM-Appliance class'!$AQ58/'Volume per connection'!$J$69)","v":-109623.17379822166},{"$f":"AO$3*('COM-Appliance class'!$AQ58/'Volume per connection'!$J$69)","v":-109623.17379822166},{"$f":"AP$3*('COM-Appliance class'!$AQ58/'Volume per connection'!$J$69)","v":-109623.17379822166},{"$f":"AQ$3*('COM-Appliance class'!$AQ58/'Volume per connection'!$J$69)","v":-109623.17379822166},{"$f":"AR$3*('COM-Appliance class'!$AQ58/'Volume per connection'!$J$69)","v":-109623.17379822166},{"$f":"AS$3*('COM-Appliance class'!$AQ58/'Volume per connection'!$J$69)","v":-109623.17379822166},{"$f":"AT$3*('COM-Appliance class'!$AQ58/'Volume per connection'!$J$69)","v":-109623.17379822166},{"$f":"AU$3*('COM-Appliance class'!$AQ58/'Volume per connection'!$J$69)","v":-109623.17379822166},{"$f":"AV$3*('COM-Appliance class'!$AQ58/'Volume per connection'!$J$69)","v":-109623.17379822166},{"$f":"AW$3*('COM-Appliance class'!$AQ58/'Volume per connection'!$J$69)","v":-109623.17379822166},{"$f":"AX$3*('COM-Appliance class'!$AQ58/'Volume per connection'!$J$69)","v":-109623.17379822166},{"$f":"AY$3*('COM-Appliance class'!$AQ58/'Volume per connection'!$J$69)","v":-109623.17379822166},{"$f":"AZ$3*('COM-Appliance class'!$AQ58/'Volume per connection'!$J$69)","v":-109623.17379822166},{"$f":"BA$3*('COM-Appliance class'!$AQ58/'Volume per connection'!$J$69)","v":-109623.17379822166},{"$f":"BB$3*('COM-Appliance class'!$AQ58/'Volume per connection'!$J$69)","v":-109623.17379822166},{"$f":"BC$3*('COM-Appliance class'!$AQ58/'Volume per connection'!$J$69)","v":-109623.17379822166},{"$f":"BD$3*('COM-Appliance class'!$AQ58/'Volume per connection'!$J$69)","v":-109623.17379822166},{"$f":"BE$3*('COM-Appliance class'!$AQ58/'Volume per connection'!$J$69)","v":-109623.17379822166},{"$f":"BF$3*('COM-Appliance class'!$AQ58/'Volume per connection'!$J$69)","v":-109623.17379822166},{"$f":"BG$3*('COM-Appliance class'!$AQ58/'Volume per connection'!$J$69)","v":-109623.17379822166},{"$f":"BH$3*('COM-Appliance class'!$AQ58/'Volume per connection'!$J$69)","v":-109623.17379822166},{"$f":"BI$3*('COM-Appliance class'!$AQ58/'Volume per connection'!$J$69)","v":-109623.17379822166},{"$f":"BJ$3*('COM-Appliance class'!$AQ58/'Volume per connection'!$J$69)","v":-109623.17379822166},{"$f":"BK$3*('COM-Appliance class'!$AQ58/'Volume per connection'!$J$69)","v":-109623.17379822166},{"$f":"BL$3*('COM-Appliance class'!$AQ58/'Volume per connection'!$J$69)","v":-109623.17379822166},{"$f":"BM$3*('COM-Appliance class'!$AQ58/'Volume per connection'!$J$69)","v":-109623.17379822166},{"$f":"BN$3*('COM-Appliance class'!$AQ58/'Volume per connection'!$J$69)","v":-109623.17379822166},{"$f":"BO$3*('COM-Appliance class'!$AQ58/'Volume per connection'!$J$69)","v":-109623.17379822166},{"$f":"BP$3*('COM-Appliance class'!$AQ58/'Volume per connection'!$J$69)","v":-109623.17379822166},{"$f":"BQ$3*('COM-Appliance class'!$AQ58/'Volume per connection'!$J$69)","v":-109623.17379822166},{"$f":"BR$3*('COM-Appliance class'!$AQ58/'Volume per connection'!$J$69)","v":-109623.17379822166},{"$f":"BS$3*('COM-Appliance class'!$AQ58/'Volume per connection'!$J$69)","v":-109623.17379822166},{"$f":"BT$3*('COM-Appliance class'!$AQ58/'Volume per connection'!$J$69)","v":-109623.17379822166},{"$f":"BU$3*('COM-Appliance class'!$AQ58/'Volume per connection'!$J$69)","v":-109623.17379822166},{"$f":"BV$3*('COM-Appliance class'!$AQ58/'Volume per connection'!$J$69)","v":-109623.17379822166},{"$f":"BW$3*('COM-Appliance class'!$AQ58/'Volume per connection'!$J$69)","v":-109623.17379822166},{"$f":"BX$3*('COM-Appliance class'!$AQ58/'Volume per connection'!$J$69)","v":-109623.17379822166},{"$f":"BY$3*('COM-Appliance class'!$AQ58/'Volume per connection'!$J$69)","v":-109623.17379822166},{"$f":"BZ$3*('COM-Appliance class'!$AQ58/'Volume per connection'!$J$69)","v":-109623.17379822166},{"$f":"CA$3*('COM-Appliance class'!$AQ58/'Volume per connection'!$J$69)","v":-109623.17379822166},{"$f":"CB$3*('COM-Appliance class'!$AQ58/'Volume per connection'!$J$69)","v":-109623.17379822166},{"$f":"CC$3*('COM-Appliance class'!$AQ58/'Volume per connection'!$J$69)","v":-109623.17379822166},{"$f":"CD$3*('COM-Appliance class'!$AQ58/'Volume per connection'!$J$69)","v":-109623.17379822166}]
["Melbourne (C)",null,{"$f":"C$3*('COM-Appliance class'!$AQ59/'Volume per connection'!$J$69)","v":-216750.35701261464},{"$f":"D$3*('COM-Appliance class'!$AQ59/'Volume per connection'!$J$69)","v":-216750.35701261464},{"$f":"E$3*('COM-Appliance class'!$AQ59/'Volume per connection'!$J$69)","v":-138063.01699230692},{"$f":"F$3*('COM-Appliance class'!$AQ59/'Volume per connection'!$J$69)","v":-138063.01699230692},{"$f":"G$3*('COM-Appliance class'!$AQ59/'Volume per connection'!$J$69)","v":-194979.66916243581},{"$f":"H$3*('COM-Appliance class'!$AQ59/'Volume per connection'!$J$69)","v":-194979.66916243581},{"$f":"I$3*('COM-Appliance class'!$AQ59/'Volume per connection'!$J$69)","v":-194979.66916243581},{"$f":"J$3*('COM-Appliance class'!$AQ59/'Volume per connection'!$J$69)","v":-213926.30543586539},{"$f":"K$3*('COM-Appliance class'!$AQ59/'Volume per connection'!$J$69)","v":-200016.44467910245},{"$f":"L$3*('COM-Appliance class'!$AQ59/'Volume per connection'!$J$69)","v":-197276.06266402078},{"$f":"M$3*('COM-Appliance class'!$AQ59/'Volume per connection'!$J$69)","v":-194549.38255901451},{"$f":"N$3*('COM-Appliance class'!$AQ59/'Volume per connection'!$J$69)","v":-191836.33585453327},{"$f":"O$3*('COM-Appliance class'!$AQ59/'Volume per connection'!$J$69)","v":-189136.85438357442},{"$f":"P$3*('COM-Appliance class'!$AQ59/'Volume per connection'!$J$69)","v":-186450.87031997045},{"$f":"Q$3*('COM-Appliance class'!$AQ59/'Volume per connection'!$J$69)","v":-183778.31617668437},{"$f":"R$3*('COM-Appliance class'!$AQ59/'Volume per connection'!$J$69)","v":-181119.12480411484},{"$f":"S$3*('COM-Appliance class'!$AQ59/'Volume per connection'!$J$69)","v":-178473.2293884081},{"$f":"T$3*('COM-Appliance class'!$AQ59/'Volume per connection'!$J$69)","v":-175840.5634497799},{"$f":"U$3*('COM-Appliance class'!$AQ59/'Volume per connection'!$J$69)","v":-173221.06084084485},{"$f":"V$3*('COM-Appliance class'!$AQ59/'Volume per connection'!$J$69)","v":-170614.65574495445},{"$f":"W$3*('COM-Appliance class'!$AQ59/'Volume per connection'!$J$69)","v":-168021.28267454347},{"$f":"X$3*('COM-Appliance class'!$AQ59/'Volume per connection'!$J$69)","v":-165440.87646948462},{"$f":"Y$3*('COM-Appliance class'!$AQ59/'Volume per connection'!$J$69)","v":-162873.37229545103},{"$f":"Z$3*('COM-Appliance class'!$AQ59/'Volume per connection'!$J$69)","v":-160318.70564228759},{"$f":"AA$3*('COM-Appliance class'!$AQ59/'Volume per connection'!$J$69)","v":-157776.81232238997},{"$f":"AB$3*('COM-Appliance class'!$AQ59/'Volume per connection'!$J$69)","v":-155247.62846909187},{"$f":"AC$3*('COM-Appliance class'!$AQ59/'Volume per connection'!$J$69)","v":-152731.09053506027},{"$f":"AD$3*('COM-Appliance class'!$AQ59/'Volume per connection'!$J$69)","v":-150227.13529069882},{"$f":"AE$3*('COM-Appliance class'!$AQ59/'Volume per connection'!$J$69)","v":-147735.6998225592},{"$f":"AF$3*('COM-Appliance class'!$AQ59/'Volume per connection'!$J$69)","v":-145256.72153176021},{"$f":"AG$3*('COM-Appliance class'!$AQ59/'Volume per connection'!$J$69)","v":-145256.72153176021},{"$f":"AH$3*('COM-Appliance class'!$AQ59/'Volume per connection'!$J$69)","v":-145256.72153176021},{"$f":"AI$3*('COM-Appliance class'!$AQ59/'Volume per connection'!$J$69)","v":-145256.72153176021},{"$f":"AJ$3*('COM-Appliance class'!$AQ59/'Volume per connection'!$J$69)","v":-145256.72153176021},{"$f":"AK$3*('COM-Appliance class'!$AQ59/'Volume per connection'!$J$69)","v":-145256.72153176021},{"$f":"AL$3*('COM-Appliance class'!$AQ59/'Volume per connection'!$J$69)","v":-145256.72153176021},{"$f":"AM$3*('COM-Appliance class'!$AQ59/'Volume per connection'!$J$69)","v":-145256.72153176021},{"$f":"AN$3*('COM-Appliance class'!$AQ59/'Volume per connection'!$J$69)","v":-145256.72153176021},{"$f":"AO$3*('COM-Appliance class'!$AQ59/'Volume per connection'!$J$69)","v":-145256.72153176021},{"$f":"AP$3*('COM-Appliance class'!$AQ59/'Volume per connection'!$J$69)","v":-145256.72153176021},{"$f":"AQ$3*('COM-Appliance class'!$AQ59/'Volume per connection'!$J$69)","v":-145256.72153176021},{"$f":"AR$3*('COM-Appliance class'!$AQ59/'Volume per connection'!$J$69)","v":-145256.72153176021},{"$f":"AS$3*('COM-Appliance class'!$AQ59/'Volume per connection'!$J$69)","v":-145256.72153176021},{"$f":"AT$3*('COM-Appliance class'!$AQ59/'Volume per connection'!$J$69)","v":-145256.72153176021},{"$f":"AU$3*('COM-Appliance class'!$AQ59/'Volume per connection'!$J$69)","v":-145256.72153176021},{"$f":"AV$3*('COM-Appliance class'!$AQ59/'Volume per connection'!$J$69)","v":-145256.72153176021},{"$f":"AW$3*('COM-Appliance class'!$AQ59/'Volume per connection'!$J$69)","v":-145256.72153176021},{"$f":"AX$3*('COM-Appliance class'!$AQ59/'Volume per connection'!$J$69)","v":-145256.72153176021},{"$f":"AY$3*('COM-Appliance class'!$AQ59/'Volume per connection'!$J$69)","v":-145256.72153176021},{"$f":"AZ$3*('COM-Appliance class'!$AQ59/'Volume per connection'!$J$69)","v":-145256.72153176021},{"$f":"BA$3*('COM-Appliance class'!$AQ59/'Volume per connection'!$J$69)","v":-145256.72153176021},{"$f":"BB$3*('COM-Appliance class'!$AQ59/'Volume per connection'!$J$69)","v":-145256.72153176021},{"$f":"BC$3*('COM-Appliance class'!$AQ59/'Volume per connection'!$J$69)","v":-145256.72153176021},{"$f":"BD$3*('COM-Appliance class'!$AQ59/'Volume per connection'!$J$69)","v":-145256.72153176021},{"$f":"BE$3*('COM-Appliance class'!$AQ59/'Volume per connection'!$J$69)","v":-145256.72153176021},{"$f":"BF$3*('COM-Appliance class'!$AQ59/'Volume per connection'!$J$69)","v":-145256.72153176021},{"$f":"BG$3*('COM-Appliance class'!$AQ59/'Volume per connection'!$J$69)","v":-145256.72153176021},{"$f":"BH$3*('COM-Appliance class'!$AQ59/'Volume per connection'!$J$69)","v":-145256.72153176021},{"$f":"BI$3*('COM-Appliance class'!$AQ59/'Volume per connection'!$J$69)","v":-145256.72153176021},{"$f":"BJ$3*('COM-Appliance class'!$AQ59/'Volume per connection'!$J$69)","v":-145256.72153176021},{"$f":"BK$3*('COM-Appliance class'!$AQ59/'Volume per connection'!$J$69)","v":-145256.72153176021},{"$f":"BL$3*('COM-Appliance class'!$AQ59/'Volume per connection'!$J$69)","v":-145256.72153176021},{"$f":"BM$3*('COM-Appliance class'!$AQ59/'Volume per connection'!$J$69)","v":-145256.72153176021},{"$f":"BN$3*('COM-Appliance class'!$AQ59/'Volume per connection'!$J$69)","v":-145256.72153176021},{"$f":"BO$3*('COM-Appliance class'!$AQ59/'Volume per connection'!$J$69)","v":-145256.72153176021},{"$f":"BP$3*('COM-Appliance class'!$AQ59/'Volume per connection'!$J$69)","v":-145256.72153176021},{"$f":"BQ$3*('COM-Appliance class'!$AQ59/'Volume per connection'!$J$69)","v":-145256.72153176021},{"$f":"BR$3*('COM-Appliance class'!$AQ59/'Volume per connection'!$J$69)","v":-145256.72153176021},{"$f":"BS$3*('COM-Appliance class'!$AQ59/'Volume per connection'!$J$69)","v":-145256.72153176021},{"$f":"BT$3*('COM-Appliance class'!$AQ59/'Volume per connection'!$J$69)","v":-145256.72153176021},{"$f":"BU$3*('COM-Appliance class'!$AQ59/'Volume per connection'!$J$69)","v":-145256.72153176021},{"$f":"BV$3*('COM-Appliance class'!$AQ59/'Volume per connection'!$J$69)","v":-145256.72153176021},{"$f":"BW$3*('COM-Appliance class'!$AQ59/'Volume per connection'!$J$69)","v":-145256.72153176021},{"$f":"BX$3*('COM-Appliance class'!$AQ59/'Volume per connection'!$J$69)","v":-145256.72153176021},{"$f":"BY$3*('COM-Appliance class'!$AQ59/'Volume per connection'!$J$69)","v":-145256.72153176021},{"$f":"BZ$3*('COM-Appliance class'!$AQ59/'Volume per connection'!$J$69)","v":-145256.72153176021},{"$f":"CA$3*('COM-Appliance class'!$AQ59/'Volume per connection'!$J$69)","v":-145256.72153176021},{"$f":"CB$3*('COM-Appliance class'!$AQ59/'Volume per connection'!$J$69)","v":-145256.72153176021},{"$f":"CC$3*('COM-Appliance class'!$AQ59/'Volume per connection'!$J$69)","v":-145256.72153176021},{"$f":"CD$3*('COM-Appliance class'!$AQ59/'Volume per connection'!$J$69)","v":-145256.72153176021}]
["Monash (C)",null,{"$f":"C$3*('COM-Appliance class'!$AQ60/'Volume per connection'!$J$69)","v":-195277.77514486949},{"$f":"D$3*('COM-Appliance class'!$AQ60/'Volume per connection'!$J$69)","v":-195277.77514486949},{"$f":"E$3*('COM-Appliance class'!$AQ60/'Volume per connection'!$J$69)","v":-124385.67188370043},{"$f":"F$3*('COM-Appliance class'!$AQ60/'Volume per connection'!$J$69)","v":-124385.67188370043},{"$f":"G$3*('COM-Appliance class'!$AQ60/'Volume per connection'!$J$69)","v":-175663.82135327809},{"$f":"H$3*('COM-Appliance class'!$AQ60/'Volume per connection'!$J$69)","v":-175663.82135327809},{"$f":"I$3*('COM-Appliance class'!$AQ60/'Volume per connection'!$J$69)","v":-175663.82135327809},{"$f":"J$3*('COM-Appliance class'!$AQ60/'Volume per connection'!$J$69)","v":-192733.49094436015},{"$f":"K$3*('COM-Appliance class'!$AQ60/'Volume per connection'!$J$69)","v":-180201.62387575131},{"$f":"L$3*('COM-Appliance class'!$AQ60/'Volume per connection'!$J$69)","v":-177732.72043158757},{"$f":"M$3*('COM-Appliance class'!$AQ60/'Volume per connection'!$J$69)","v":-175276.16150464464},{"$f":"N$3*('COM-Appliance class'!$AQ60/'Volume per connection'!$J$69)","v":-172831.88537233646},{"$f":"O$3*('COM-Appliance class'!$AQ60/'Volume per connection'!$J$69)","v":-170399.83062068975},{"$f":"P$3*('COM-Appliance class'!$AQ60/'Volume per connection'!$J$69)","v":-167979.93614280139},{"$f":"Q$3*('COM-Appliance class'!$AQ60/'Volume per connection'!$J$69)","v":-165572.14113730236},{"$f":"R$3*('COM-Appliance class'!$AQ60/'Volume per connection'!$J$69)","v":-163176.38510683089},{"$f":"S$3*('COM-Appliance class'!$AQ60/'Volume per connection'!$J$69)","v":-160792.60785651178},{"$f":"T$3*('COM-Appliance class'!$AQ60/'Volume per connection'!$J$69)","v":-158420.74949244424},{"$f":"U$3*('COM-Appliance class'!$AQ60/'Volume per connection'!$J$69)","v":-156060.75042019703},{"$f":"V$3*('COM-Appliance class'!$AQ60/'Volume per connection'!$J$69)","v":-153712.55134331106},{"$f":"W$3*('COM-Appliance class'!$AQ60/'Volume per connection'!$J$69)","v":-151376.0932618095},{"$f":"X$3*('COM-Appliance class'!$AQ60/'Volume per connection'!$J$69)","v":-149051.31747071547},{"$f":"Y$3*('COM-Appliance class'!$AQ60/'Volume per connection'!$J$69)","v":-146738.16555857693},{"$f":"Z$3*('COM-Appliance class'!$AQ60/'Volume per connection'!$J$69)","v":-144436.57940599907},{"$f":"AA$3*('COM-Appliance class'!$AQ60/'Volume per connection'!$J$69)","v":-142146.50118418408},{"$f":"AB$3*('COM-Appliance class'!$AQ60/'Volume per connection'!$J$69)","v":-139867.87335347818},{"$f":"AC$3*('COM-Appliance class'!$AQ60/'Volume per connection'!$J$69)","v":-137600.63866192583},{"$f":"AD$3*('COM-Appliance class'!$AQ60/'Volume per connection'!$J$69)","v":-135344.74014383124},{"$f":"AE$3*('COM-Appliance class'!$AQ60/'Volume per connection'!$J$69)","v":-133100.12111832711},{"$f":"AF$3*('COM-Appliance class'!$AQ60/'Volume per connection'!$J$69)","v":-130866.72518795049},{"$f":"AG$3*('COM-Appliance class'!$AQ60/'Volume per connection'!$J$69)","v":-130866.72518795049},{"$f":"AH$3*('COM-Appliance class'!$AQ60/'Volume per connection'!$J$69)","v":-130866.72518795049},{"$f":"AI$3*('COM-Appliance class'!$AQ60/'Volume per connection'!$J$69)","v":-130866.72518795049},{"$f":"AJ$3*('COM-Appliance class'!$AQ60/'Volume per connection'!$J$69)","v":-130866.72518795049},{"$f":"AK$3*('COM-Appliance class'!$AQ60/'Volume per connection'!$J$69)","v":-130866.72518795049},{"$f":"AL$3*('COM-Appliance class'!$AQ60/'Volume per connection'!$J$69)","v":-130866.72518795049},{"$f":"AM$3*('COM-Appliance class'!$AQ60/'Volume per connection'!$J$69)","v":-130866.72518795049},{"$f":"AN$3*('COM-Appliance class'!$AQ60/'Volume per connection'!$J$69)","v":-130866.72518795049},{"$f":"AO$3*('COM-Appliance class'!$AQ60/'Volume per connection'!$J$69)","v":-130866.72518795049},{"$f":"AP$3*('COM-Appliance class'!$AQ60/'Volume per connection'!$J$69)","v":-130866.72518795049},{"$f":"AQ$3*('COM-Appliance class'!$AQ60/'Volume per connection'!$J$69)","v":-130866.72518795049},{"$f":"AR$3*('COM-Appliance class'!$AQ60/'Volume per connection'!$J$69)","v":-130866.72518795049},{"$f":"AS$3*('COM-Appliance class'!$AQ60/'Volume per connection'!$J$69)","v":-130866.72518795049},{"$f":"AT$3*('COM-Appliance class'!$AQ60/'Volume per connection'!$J$69)","v":-130866.72518795049},{"$f":"AU$3*('COM-Appliance class'!$AQ60/'Volume per connection'!$J$69)","v":-130866.72518795049},{"$f":"AV$3*('COM-Appliance class'!$AQ60/'Volume per connection'!$J$69)","v":-130866.72518795049},{"$f":"AW$3*('COM-Appliance class'!$AQ60/'Volume per connection'!$J$69)","v":-130866.72518795049},{"$f":"AX$3*('COM-Appliance class'!$AQ60/'Volume per connection'!$J$69)","v":-130866.72518795049},{"$f":"AY$3*('COM-Appliance class'!$AQ60/'Volume per connection'!$J$69)","v":-130866.72518795049},{"$f":"AZ$3*('COM-Appliance class'!$AQ60/'Volume per connection'!$J$69)","v":-130866.72518795049},{"$f":"BA$3*('COM-Appliance class'!$AQ60/'Volume per connection'!$J$69)","v":-130866.72518795049},{"$f":"BB$3*('COM-Appliance class'!$AQ60/'Volume per connection'!$J$69)","v":-130866.72518795049},{"$f":"BC$3*('COM-Appliance class'!$AQ60/'Volume per connection'!$J$69)","v":-130866.72518795049},{"$f":"BD$3*('COM-Appliance class'!$AQ60/'Volume per connection'!$J$69)","v":-130866.72518795049},{"$f":"BE$3*('COM-Appliance class'!$AQ60/'Volume per connection'!$J$69)","v":-130866.72518795049},{"$f":"BF$3*('COM-Appliance class'!$AQ60/'Volume per connection'!$J$69)","v":-130866.72518795049},{"$f":"BG$3*('COM-Appliance class'!$AQ60/'Volume per connection'!$J$69)","v":-130866.72518795049},{"$f":"BH$3*('COM-Appliance class'!$AQ60/'Volume per connection'!$J$69)","v":-130866.72518795049},{"$f":"BI$3*('COM-Appliance class'!$AQ60/'Volume per connection'!$J$69)","v":-130866.72518795049},{"$f":"BJ$3*('COM-Appliance class'!$AQ60/'Volume per connection'!$J$69)","v":-130866.72518795049},{"$f":"BK$3*('COM-Appliance class'!$AQ60/'Volume per connection'!$J$69)","v":-130866.72518795049},{"$f":"BL$3*('COM-Appliance class'!$AQ60/'Volume per connection'!$J$69)","v":-130866.72518795049},{"$f":"BM$3*('COM-Appliance class'!$AQ60/'Volume per connection'!$J$69)","v":-130866.72518795049},{"$f":"BN$3*('COM-Appliance class'!$AQ60/'Volume per connection'!$J$69)","v":-130866.72518795049},{"$f":"BO$3*('COM-Appliance class'!$AQ60/'Volume per connection'!$J$69)","v":-130866.72518795049},{"$f":"BP$3*('COM-Appliance class'!$AQ60/'Volume per connection'!$J$69)","v":-130866.72518795049},{"$f":"BQ$3*('COM-Appliance class'!$AQ60/'Volume per connection'!$J$69)","v":-130866.72518795049},{"$f":"BR$3*('COM-Appliance class'!$AQ60/'Volume per connection'!$J$69)","v":-130866.72518795049},{"$f":"BS$3*('COM-Appliance class'!$AQ60/'Volume per connection'!$J$69)","v":-130866.72518795049},{"$f":"BT$3*('COM-Appliance class'!$AQ60/'Volume per connection'!$J$69)","v":-130866.72518795049},{"$f":"BU$3*('COM-Appliance class'!$AQ60/'Volume per connection'!$J$69)","v":-130866.72518795049},{"$f":"BV$3*('COM-Appliance class'!$AQ60/'Volume per connection'!$J$69)","v":-130866.72518795049},{"$f":"BW$3*('COM-Appliance class'!$AQ60/'Volume per connection'!$J$69)","v":-130866.72518795049},{"$f":"BX$3*('COM-Appliance class'!$AQ60/'Volume per connection'!$J$69)","v":-130866.72518795049},{"$f":"BY$3*('COM-Appliance class'!$AQ60/'Volume per connection'!$J$69)","v":-130866.72518795049},{"$f":"BZ$3*('COM-Appliance class'!$AQ60/'Volume per connection'!$J$69)","v":-130866.72518795049},{"$f":"CA$3*('COM-Appliance class'!$AQ60/'Volume per connection'!$J$69)","v":-130866.72518795049},{"$f":"CB$3*('COM-Appliance class'!$AQ60/'Volume per connection'!$J$69)","v":-130866.72518795049},{"$f":"CC$3*('COM-Appliance class'!$AQ60/'Volume per connection'!$J$69)","v":-130866.72518795049},{"$f":"CD$3*('COM-Appliance class'!$AQ60/'Volume per connection'!$J$69)","v":-130866.72518795049}]
["Port Phillip (C)",null,{"$f":"C$3*('COM-Appliance class'!$AQ61/'Volume per connection'!$J$69)","v":-187289.10273036521},{"$f":"D$3*('COM-Appliance class'!$AQ61/'Volume per connection'!$J$69)","v":-187289.10273036521},{"$f":"E$3*('COM-Appliance class'!$AQ61/'Volume per connection'!$J$69)","v":-119297.14409296885},{"$f":"F$3*('COM-Appliance class'!$AQ61/'Volume per connection'!$J$69)","v":-119297.14409296885},{"$f":"G$3*('COM-Appliance class'!$AQ61/'Volume per connection'!$J$69)","v":-168477.54158933533},{"$f":"H$3*('COM-Appliance class'!$AQ61/'Volume per connection'!$J$69)","v":-168477.54158933533},{"$f":"I$3*('COM-Appliance class'!$AQ61/'Volume per connection'!$J$69)","v":-168477.54158933533},{"$f":"J$3*('COM-Appliance class'!$AQ61/'Volume per connection'!$J$69)","v":-184848.90335462504},{"$f":"K$3*('COM-Appliance class'!$AQ61/'Volume per connection'!$J$69)","v":-172829.7058956477},{"$f":"L$3*('COM-Appliance class'!$AQ61/'Volume per connection'!$J$69)","v":-170461.80350408112},{"$f":"M$3*('COM-Appliance class'!$AQ61/'Volume per connection'!$J$69)","v":-168105.74062447241},{"$f":"N$3*('COM-Appliance class'!$AQ61/'Volume per connection'!$J$69)","v":-165761.45805926173},{"$f":"O$3*('COM-Appliance class'!$AQ61/'Volume per connection'!$J$69)","v":-163428.89690687705},{"$f":"P$3*('COM-Appliance class'!$AQ61/'Volume per connection'!$J$69)","v":-161107.99856025437},{"$f":"Q$3*('COM-Appliance class'!$AQ61/'Volume per connection'!$J$69)","v":-158798.70470536474},{"$f":"R$3*('COM-Appliance class'!$AQ61/'Volume per connection'!$J$69)","v":-156500.95731974964},{"$f":"S$3*('COM-Appliance class'!$AQ61/'Volume per connection'!$J$69)","v":-154214.69867106256},{"$f":"T$3*('COM-Appliance class'!$AQ61/'Volume per connection'!$J$69)","v":-151939.87131561895},{"$f":"U$3*('COM-Appliance class'!$AQ61/'Volume per connection'!$J$69)","v":-149676.41809695252},{"$f":"V$3*('COM-Appliance class'!$AQ61/'Volume per connection'!$J$69)","v":-147424.28214437939},{"$f":"W$3*('COM-Appliance class'!$AQ61/'Volume per connection'!$J$69)","v":-145183.40687156917},{"$f":"X$3*('COM-Appliance class'!$AQ61/'Volume per connection'!$J$69)","v":-142953.73597512301},{"$f":"Y$3*('COM-Appliance class'!$AQ61/'Volume per connection'!$J$69)","v":-140735.21343315908},{"$f":"Z$3*('COM-Appliance class'!$AQ61/'Volume per connection'!$J$69)","v":-138527.78350390494},{"$f":"AA$3*('COM-Appliance class'!$AQ61/'Volume per connection'!$J$69)","v":-136331.39072429706},{"$f":"AB$3*('COM-Appliance class'!$AQ61/'Volume per connection'!$J$69)","v":-134145.97990858724},{"$f":"AC$3*('COM-Appliance class'!$AQ61/'Volume per connection'!$J$69)","v":-131971.49614695602},{"$f":"AD$3*('COM-Appliance class'!$AQ61/'Volume per connection'!$J$69)","v":-129807.88480413292},{"$f":"AE$3*('COM-Appliance class'!$AQ61/'Volume per connection'!$J$69)","v":-127655.09151802394},{"$f":"AF$3*('COM-Appliance class'!$AQ61/'Volume per connection'!$J$69)","v":-125513.06219834549},{"$f":"AG$3*('COM-Appliance class'!$AQ61/'Volume per connection'!$J$69)","v":-125513.06219834549},{"$f":"AH$3*('COM-Appliance class'!$AQ61/'Volume per connection'!$J$69)","v":-125513.06219834549},{"$f":"AI$3*('COM-Appliance class'!$AQ61/'Volume per connection'!$J$69)","v":-125513.06219834549},{"$f":"AJ$3*('COM-Appliance class'!$AQ61/'Volume per connection'!$J$69)","v":-125513.06219834549},{"$f":"AK$3*('COM-Appliance class'!$AQ61/'Volume per connection'!$J$69)","v":-125513.06219834549},{"$f":"AL$3*('COM-Appliance class'!$AQ61/'Volume per connection'!$J$69)","v":-125513.06219834549},{"$f":"AM$3*('COM-Appliance class'!$AQ61/'Volume per connection'!$J$69)","v":-125513.06219834549},{"$f":"AN$3*('COM-Appliance class'!$AQ61/'Volume per connection'!$J$69)","v":-125513.06219834549},{"$f":"AO$3*('COM-Appliance class'!$AQ61/'Volume per connection'!$J$69)","v":-125513.06219834549},{"$f":"AP$3*('COM-Appliance class'!$AQ61/'Volume per connection'!$J$69)","v":-125513.06219834549},{"$f":"AQ$3*('COM-Appliance class'!$AQ61/'Volume per connection'!$J$69)","v":-125513.06219834549},{"$f":"AR$3*('COM-Appliance class'!$AQ61/'Volume per connection'!$J$69)","v":-125513.06219834549},{"$f":"AS$3*('COM-Appliance class'!$AQ61/'Volume per connection'!$J$69)","v":-125513.06219834549},{"$f":"AT$3*('COM-Appliance class'!$AQ61/'Volume per connection'!$J$69)","v":-125513.06219834549},{"$f":"AU$3*('COM-Appliance class'!$AQ61/'Volume per connection'!$J$69)","v":-125513.06219834549},{"$f":"AV$3*('COM-Appliance class'!$AQ61/'Volume per connection'!$J$69)","v":-125513.06219834549},{"$f":"AW$3*('COM-Appliance class'!$AQ61/'Volume per connection'!$J$69)","v":-125513.06219834549},{"$f":"AX$3*('COM-Appliance class'!$AQ61/'Volume per connection'!$J$69)","v":-125513.06219834549},{"$f":"AY$3*('COM-Appliance class'!$AQ61/'Volume per connection'!$J$69)","v":-125513.06219834549},{"$f":"AZ$3*('COM-Appliance class'!$AQ61/'Volume per connection'!$J$69)","v":-125513.06219834549},{"$f":"BA$3*('COM-Appliance class'!$AQ61/'Volume per connection'!$J$69)","v":-125513.06219834549},{"$f":"BB$3*('COM-Appliance class'!$AQ61/'Volume per connection'!$J$69)","v":-125513.06219834549},{"$f":"BC$3*('COM-Appliance class'!$AQ61/'Volume per connection'!$J$69)","v":-125513.06219834549},{"$f":"BD$3*('COM-Appliance class'!$AQ61/'Volume per connection'!$J$69)","v":-125513.06219834549},{"$f":"BE$3*('COM-Appliance class'!$AQ61/'Volume per connection'!$J$69)","v":-125513.06219834549},{"$f":"BF$3*('COM-Appliance class'!$AQ61/'Volume per connection'!$J$69)","v":-125513.06219834549},{"$f":"BG$3*('COM-Appliance class'!$AQ61/'Volume per connection'!$J$69)","v":-125513.06219834549},{"$f":"BH$3*('COM-Appliance class'!$AQ61/'Volume per connection'!$J$69)","v":-125513.06219834549},{"$f":"BI$3*('COM-Appliance class'!$AQ61/'Volume per connection'!$J$69)","v":-125513.06219834549},{"$f":"BJ$3*('COM-Appliance class'!$AQ61/'Volume per connection'!$J$69)","v":-125513.06219834549},{"$f":"BK$3*('COM-Appliance class'!$AQ61/'Volume per connection'!$J$69)","v":-125513.06219834549},{"$f":"BL$3*('COM-Appliance class'!$AQ61/'Volume per connection'!$J$69)","v":-125513.06219834549},{"$f":"BM$3*('COM-Appliance class'!$AQ61/'Volume per connection'!$J$69)","v":-125513.06219834549},{"$f":"BN$3*('COM-Appliance class'!$AQ61/'Volume per connection'!$J$69)","v":-125513.06219834549},{"$f":"BO$3*('COM-Appliance class'!$AQ61/'Volume per connection'!$J$69)","v":-125513.06219834549},{"$f":"BP$3*('COM-Appliance class'!$AQ61/'Volume per connection'!$J$69)","v":-125513.06219834549},{"$f":"BQ$3*('COM-Appliance class'!$AQ61/'Volume per connection'!$J$69)","v":-125513.06219834549},{"$f":"BR$3*('COM-Appliance class'!$AQ61/'Volume per connection'!$J$69)","v":-125513.06219834549},{"$f":"BS$3*('COM-Appliance class'!$AQ61/'Volume per connection'!$J$69)","v":-125513.06219834549},{"$f":"BT$3*('COM-Appliance class'!$AQ61/'Volume per connection'!$J$69)","v":-125513.06219834549},{"$f":"BU$3*('COM-Appliance class'!$AQ61/'Volume per connection'!$J$69)","v":-125513.06219834549},{"$f":"BV$3*('COM-Appliance class'!$AQ61/'Volume per connection'!$J$69)","v":-125513.06219834549},{"$f":"BW$3*('COM-Appliance class'!$AQ61/'Volume per connection'!$J$69)","v":-125513.06219834549},{"$f":"BX$3*('COM-Appliance class'!$AQ61/'Volume per connection'!$J$69)","v":-125513.06219834549},{"$f":"BY$3*('COM-Appliance class'!$AQ61/'Volume per connection'!$J$69)","v":-125513.06219834549},{"$f":"BZ$3*('COM-Appliance class'!$AQ61/'Volume per connection'!$J$69)","v":-125513.06219834549},{"$f":"CA$3*('COM-Appliance class'!$AQ61/'Volume per connection'!$J$69)","v":-125513.06219834549},{"$f":"CB$3*('COM-Appliance class'!$AQ61/'Volume per connection'!$J$69)","v":-125513.06219834549},{"$f":"CC$3*('COM-Appliance class'!$AQ61/'Volume per connection'!$J$69)","v":-125513.06219834549},{"$f":"CD$3*('COM-Appliance class'!$AQ61/'Volume per connection'!$J$69)","v":-125513.06219834549}]
["South Gippsland (S)",null,{"$f":"C$3*('COM-Appliance class'!$AQ62/'Volume per connection'!$J$69)","v":-196264.22188703247},{"$f":"D$3*('COM-Appliance class'!$AQ62/'Volume per connection'!$J$69)","v":-196264.22188703247},{"$f":"E$3*('COM-Appliance class'!$AQ62/'Volume per connection'!$J$69)","v":-125014.00678105577},{"$f":"F$3*('COM-Appliance class'!$AQ62/'Volume per connection'!$J$69)","v":-125014.00678105577},{"$f":"G$3*('COM-Appliance class'!$AQ62/'Volume per connection'!$J$69)","v":-176551.18810129276},{"$f":"H$3*('COM-Appliance class'!$AQ62/'Volume per connection'!$J$69)","v":-176551.18810129276},{"$f":"I$3*('COM-Appliance class'!$AQ62/'Volume per connection'!$J$69)","v":-176551.18810129276},{"$f":"J$3*('COM-Appliance class'!$AQ62/'Volume per connection'!$J$69)","v":-193707.0852210602},{"$f":"K$3*('COM-Appliance class'!$AQ62/'Volume per connection'!$J$69)","v":-181111.91335786387},{"$f":"L$3*('COM-Appliance class'!$AQ62/'Volume per connection'!$J$69)","v":-178630.53823453744},{"$f":"M$3*('COM-Appliance class'!$AQ62/'Volume per connection'!$J$69)","v":-176161.56998682764},{"$f":"N$3*('COM-Appliance class'!$AQ62/'Volume per connection'!$J$69)","v":-173704.94658035642},{"$f":"O$3*('COM-Appliance class'!$AQ62/'Volume per connection'!$J$69)","v":-171260.60629091749},{"$f":"P$3*('COM-Appliance class'!$AQ62/'Volume per connection'!$J$69)","v":-168828.48770292584},{"$f":"Q$3*('COM-Appliance class'!$AQ62/'Volume per connection'!$J$69)","v":-166408.52970787406},{"$f":"R$3*('COM-Appliance class'!$AQ62/'Volume per connection'!$J$69)","v":-164000.67150279763},{"$f":"S$3*('COM-Appliance class'!$AQ62/'Volume per connection'!$J$69)","v":-161604.85258874655},{"$f":"T$3*('COM-Appliance class'!$AQ62/'Volume per connection'!$J$69)","v":-159221.01276926571},{"$f":"U$3*('COM-Appliance class'!$AQ62/'Volume per connection'!$J$69)","v":-156849.09214888228},{"$f":"V$3*('COM-Appliance class'!$AQ62/'Volume per connection'!$J$69)","v":-154489.03113160076},{"$f":"W$3*('COM-Appliance class'!$AQ62/'Volume per connection'!$J$69)","v":-152140.77041940563},{"$f":"X$3*('COM-Appliance class'!$AQ62/'Volume per connection'!$J$69)","v":-149804.25101077149},{"$f":"Y$3*('COM-Appliance class'!$AQ62/'Volume per connection'!$J$69)","v":-147479.41419918055},{"$f":"Z$3*('COM-Appliance class'!$AQ62/'Volume per connection'!$J$69)","v":-145166.20157164751},{"$f":"AA$3*('COM-Appliance class'!$AQ62/'Volume per connection'!$J$69)","v":-142864.55500725217},{"$f":"AB$3*('COM-Appliance class'!$AQ62/'Volume per connection'!$J$69)","v":-140574.4166756788},{"$f":"AC$3*('COM-Appliance class'!$AQ62/'Volume per connection'!$J$69)","v":-138295.72903576333},{"$f":"AD$3*('COM-Appliance class'!$AQ62/'Volume per connection'!$J$69)","v":-136028.43483404742},{"$f":"AE$3*('COM-Appliance class'!$AQ62/'Volume per connection'!$J$69)","v":-133772.47710334009},{"$f":"AF$3*('COM-Appliance class'!$AQ62/'Volume per connection'!$J$69)","v":-131527.79916128627},{"$f":"AG$3*('COM-Appliance class'!$AQ62/'Volume per connection'!$J$69)","v":-131527.79916128627},{"$f":"AH$3*('COM-Appliance class'!$AQ62/'Volume per connection'!$J$69)","v":-131527.79916128627},{"$f":"AI$3*('COM-Appliance class'!$AQ62/'Volume per connection'!$J$69)","v":-131527.79916128627},{"$f":"AJ$3*('COM-Appliance class'!$AQ62/'Volume per connection'!$J$69)","v":-131527.79916128627},{"$f":"AK$3*('COM-Appliance class'!$AQ62/'Volume per connection'!$J$69)","v":-131527.79916128627},{"$f":"AL$3*('COM-Appliance class'!$AQ62/'Volume per connection'!$J$69)","v":-131527.79916128627},{"$f":"AM$3*('COM-Appliance class'!$AQ62/'Volume per connection'!$J$69)","v":-131527.79916128627},{"$f":"AN$3*('COM-Appliance class'!$AQ62/'Volume per connection'!$J$69)","v":-131527.79916128627},{"$f":"AO$3*('COM-Appliance class'!$AQ62/'Volume per connection'!$J$69)","v":-131527.79916128627},{"$f":"AP$3*('COM-Appliance class'!$AQ62/'Volume per connection'!$J$69)","v":-131527.79916128627},{"$f":"AQ$3*('COM-Appliance class'!$AQ62/'Volume per connection'!$J$69)","v":-131527.79916128627},{"$f":"AR$3*('COM-Appliance class'!$AQ62/'Volume per connection'!$J$69)","v":-131527.79916128627},{"$f":"AS$3*('COM-Appliance class'!$AQ62/'Volume per connection'!$J$69)","v":-131527.79916128627},{"$f":"AT$3*('COM-Appliance class'!$AQ62/'Volume per connection'!$J$69)","v":-131527.79916128627},{"$f":"AU$3*('COM-Appliance class'!$AQ62/'Volume per connection'!$J$69)","v":-131527.79916128627},{"$f":"AV$3*('COM-Appliance class'!$AQ62/'Volume per connection'!$J$69)","v":-131527.79916128627},{"$f":"AW$3*('COM-Appliance class'!$AQ62/'Volume per connection'!$J$69)","v":-131527.79916128627},{"$f":"AX$3*('COM-Appliance class'!$AQ62/'Volume per connection'!$J$69)","v":-131527.79916128627},{"$f":"AY$3*('COM-Appliance class'!$AQ62/'Volume per connection'!$J$69)","v":-131527.79916128627},{"$f":"AZ$3*('COM-Appliance class'!$AQ62/'Volume per connection'!$J$69)","v":-131527.79916128627},{"$f":"BA$3*('COM-Appliance class'!$AQ62/'Volume per connection'!$J$69)","v":-131527.79916128627},{"$f":"BB$3*('COM-Appliance class'!$AQ62/'Volume per connection'!$J$69)","v":-131527.79916128627},{"$f":"BC$3*('COM-Appliance class'!$AQ62/'Volume per connection'!$J$69)","v":-131527.79916128627},{"$f":"BD$3*('COM-Appliance class'!$AQ62/'Volume per connection'!$J$69)","v":-131527.79916128627},{"$f":"BE$3*('COM-Appliance class'!$AQ62/'Volume per connection'!$J$69)","v":-131527.79916128627},{"$f":"BF$3*('COM-Appliance class'!$AQ62/'Volume per connection'!$J$69)","v":-131527.79916128627},{"$f":"BG$3*('COM-Appliance class'!$AQ62/'Volume per connection'!$J$69)","v":-131527.79916128627},{"$f":"BH$3*('COM-Appliance class'!$AQ62/'Volume per connection'!$J$69)","v":-131527.79916128627},{"$f":"BI$3*('COM-Appliance class'!$AQ62/'Volume per connection'!$J$69)","v":-131527.79916128627},{"$f":"BJ$3*('COM-Appliance class'!$AQ62/'Volume per connection'!$J$69)","v":-131527.79916128627},{"$f":"BK$3*('COM-Appliance class'!$AQ62/'Volume per connection'!$J$69)","v":-131527.79916128627},{"$f":"BL$3*('COM-Appliance class'!$AQ62/'Volume per connection'!$J$69)","v":-131527.79916128627},{"$f":"BM$3*('COM-Appliance class'!$AQ62/'Volume per connection'!$J$69)","v":-131527.79916128627},{"$f":"BN$3*('COM-Appliance class'!$AQ62/'Volume per connection'!$J$69)","v":-131527.79916128627},{"$f":"BO$3*('COM-Appliance class'!$AQ62/'Volume per connection'!$J$69)","v":-131527.79916128627},{"$f":"BP$3*('COM-Appliance class'!$AQ62/'Volume per connection'!$J$69)","v":-131527.79916128627},{"$f":"BQ$3*('COM-Appliance class'!$AQ62/'Volume per connection'!$J$69)","v":-131527.79916128627},{"$f":"BR$3*('COM-Appliance class'!$AQ62/'Volume per connection'!$J$69)","v":-131527.79916128627},{"$f":"BS$3*('COM-Appliance class'!$AQ62/'Volume per connection'!$J$69)","v":-131527.79916128627},{"$f":"BT$3*('COM-Appliance class'!$AQ62/'Volume per connection'!$J$69)","v":-131527.79916128627},{"$f":"BU$3*('COM-Appliance class'!$AQ62/'Volume per connection'!$J$69)","v":-131527.79916128627},{"$f":"BV$3*('COM-Appliance class'!$AQ62/'Volume per connection'!$J$69)","v":-131527.79916128627},{"$f":"BW$3*('COM-Appliance class'!$AQ62/'Volume per connection'!$J$69)","v":-131527.79916128627},{"$f":"BX$3*('COM-Appliance class'!$AQ62/'Volume per connection'!$J$69)","v":-131527.79916128627},{"$f":"BY$3*('COM-Appliance class'!$AQ62/'Volume per connection'!$J$69)","v":-131527.79916128627},{"$f":"BZ$3*('COM-Appliance class'!$AQ62/'Volume per connection'!$J$69)","v":-131527.79916128627},{"$f":"CA$3*('COM-Appliance class'!$AQ62/'Volume per connection'!$J$69)","v":-131527.79916128627},{"$f":"CB$3*('COM-Appliance class'!$AQ62/'Volume per connection'!$J$69)","v":-131527.79916128627},{"$f":"CC$3*('COM-Appliance class'!$AQ62/'Volume per connection'!$J$69)","v":-131527.79916128627},{"$f":"CD$3*('COM-Appliance class'!$AQ62/'Volume per connection'!$J$69)","v":-131527.79916128627}]
["Stonnington (C)",null,{"$f":"C$3*('COM-Appliance class'!$AQ63/'Volume per connection'!$J$69)","v":-182544.91004902558},{"$f":"D$3*('COM-Appliance class'!$AQ63/'Volume per connection'!$J$69)","v":-182544.91004902558},{"$f":"E$3*('COM-Appliance class'!$AQ63/'Volume per connection'!$J$69)","v":-116275.24570347532},{"$f":"F$3*('COM-Appliance class'!$AQ63/'Volume per connection'!$J$69)","v":-116275.24570347532},{"$f":"G$3*('COM-Appliance class'!$AQ63/'Volume per connection'!$J$69)","v":-164209.86179309577},{"$f":"H$3*('COM-Appliance class'!$AQ63/'Volume per connection'!$J$69)","v":-164209.86179309577},{"$f":"I$3*('COM-Appliance class'!$AQ63/'Volume per connection'!$J$69)","v":-164209.86179309577},{"$f":"J$3*('COM-Appliance class'!$AQ63/'Volume per connection'!$J$69)","v":-180166.52300433206},{"$f":"K$3*('COM-Appliance class'!$AQ63/'Volume per connection'!$J$69)","v":-168451.78206625837},{"$f":"L$3*('COM-Appliance class'!$AQ63/'Volume per connection'!$J$69)","v":-166143.86066147868},{"$f":"M$3*('COM-Appliance class'!$AQ63/'Volume per connection'!$J$69)","v":-163847.47886372291},{"$f":"N$3*('COM-Appliance class'!$AQ63/'Volume per connection'!$J$69)","v":-161562.57897495592},{"$f":"O$3*('COM-Appliance class'!$AQ63/'Volume per connection'!$J$69)","v":-159289.10358563269},{"$f":"P$3*('COM-Appliance class'!$AQ63/'Volume per connection'!$J$69)","v":-157026.99557325619},{"$f":"Q$3*('COM-Appliance class'!$AQ63/'Volume per connection'!$J$69)","v":-154776.19810094149},{"$f":"R$3*('COM-Appliance class'!$AQ63/'Volume per connection'!$J$69)","v":-152536.6546159884},{"$f":"S$3*('COM-Appliance class'!$AQ63/'Volume per connection'!$J$69)","v":-150308.30884846009},{"$f":"T$3*('COM-Appliance class'!$AQ63/'Volume per connection'!$J$69)","v":-148091.1048097694},{"$f":"U$3*('COM-Appliance class'!$AQ63/'Volume per connection'!$J$69)","v":-145884.98679127215},{"$f":"V$3*('COM-Appliance class'!$AQ63/'Volume per connection'!$J$69)","v":-143689.89936286738},{"$f":"W$3*('COM-Appliance class'!$AQ63/'Volume per connection'!$J$69)","v":-141505.78737160465},{"$f":"X$3*('COM-Appliance class'!$AQ63/'Volume per connection'!$J$69)","v":-139332.59594029823},{"$f":"Y$3*('COM-Appliance class'!$AQ63/'Volume per connection'!$J$69)","v":-137170.27046614836},{"$f":"Z$3*('COM-Appliance class'!$AQ63/'Volume per connection'!$J$69)","v":-135018.7566193692},{"$f":"AA$3*('COM-Appliance class'!$AQ63/'Volume per connection'!$J$69)","v":-132878.00034182396},{"$f":"AB$3*('COM-Appliance class'!$AQ63/'Volume per connection'!$J$69)","v":-130747.94784566644},{"$f":"AC$3*('COM-Appliance class'!$AQ63/'Volume per connection'!$J$69)","v":-128628.54561198974},{"$f":"AD$3*('COM-Appliance class'!$AQ63/'Volume per connection'!$J$69)","v":-126519.74038948141},{"$f":"AE$3*('COM-Appliance class'!$AQ63/'Volume per connection'!$J$69)","v":-124421.47919308562},{"$f":"AF$3*('COM-Appliance class'!$AQ63/'Volume per connection'!$J$69)","v":-122333.70930267179},{"$f":"AG$3*('COM-Appliance class'!$AQ63/'Volume per connection'!$J$69)","v":-122333.70930267179},{"$f":"AH$3*('COM-Appliance class'!$AQ63/'Volume per connection'!$J$69)","v":-122333.70930267179},{"$f":"AI$3*('COM-Appliance class'!$AQ63/'Volume per connection'!$J$69)","v":-122333.70930267179},{"$f":"AJ$3*('COM-Appliance class'!$AQ63/'Volume per connection'!$J$69)","v":-122333.70930267179},{"$f":"AK$3*('COM-Appliance class'!$AQ63/'Volume per connection'!$J$69)","v":-122333.70930267179},{"$f":"AL$3*('COM-Appliance class'!$AQ63/'Volume per connection'!$J$69)","v":-122333.70930267179},{"$f":"AM$3*('COM-Appliance class'!$AQ63/'Volume per connection'!$J$69)","v":-122333.70930267179},{"$f":"AN$3*('COM-Appliance class'!$AQ63/'Volume per connection'!$J$69)","v":-122333.70930267179},{"$f":"AO$3*('COM-Appliance class'!$AQ63/'Volume per connection'!$J$69)","v":-122333.70930267179},{"$f":"AP$3*('COM-Appliance class'!$AQ63/'Volume per connection'!$J$69)","v":-122333.70930267179},{"$f":"AQ$3*('COM-Appliance class'!$AQ63/'Volume per connection'!$J$69)","v":-122333.70930267179},{"$f":"AR$3*('COM-Appliance class'!$AQ63/'Volume per connection'!$J$69)","v":-122333.70930267179},{"$f":"AS$3*('COM-Appliance class'!$AQ63/'Volume per connection'!$J$69)","v":-122333.70930267179},{"$f":"AT$3*('COM-Appliance class'!$AQ63/'Volume per connection'!$J$69)","v":-122333.70930267179},{"$f":"AU$3*('COM-Appliance class'!$AQ63/'Volume per connection'!$J$69)","v":-122333.70930267179},{"$f":"AV$3*('COM-Appliance class'!$AQ63/'Volume per connection'!$J$69)","v":-122333.70930267179},{"$f":"AW$3*('COM-Appliance class'!$AQ63/'Volume per connection'!$J$69)","v":-122333.70930267179},{"$f":"AX$3*('COM-Appliance class'!$AQ63/'Volume per connection'!$J$69)","v":-122333.70930267179},{"$f":"AY$3*('COM-Appliance class'!$AQ63/'Volume per connection'!$J$69)","v":-122333.70930267179},{"$f":"AZ$3*('COM-Appliance class'!$AQ63/'Volume per connection'!$J$69)","v":-122333.70930267179},{"$f":"BA$3*('COM-Appliance class'!$AQ63/'Volume per connection'!$J$69)","v":-122333.70930267179},{"$f":"BB$3*('COM-Appliance class'!$AQ63/'Volume per connection'!$J$69)","v":-122333.70930267179},{"$f":"BC$3*('COM-Appliance class'!$AQ63/'Volume per connection'!$J$69)","v":-122333.70930267179},{"$f":"BD$3*('COM-Appliance class'!$AQ63/'Volume per connection'!$J$69)","v":-122333.70930267179},{"$f":"BE$3*('COM-Appliance class'!$AQ63/'Volume per connection'!$J$69)","v":-122333.70930267179},{"$f":"BF$3*('COM-Appliance class'!$AQ63/'Volume per connection'!$J$69)","v":-122333.70930267179},{"$f":"BG$3*('COM-Appliance class'!$AQ63/'Volume per connection'!$J$69)","v":-122333.70930267179},{"$f":"BH$3*('COM-Appliance class'!$AQ63/'Volume per connection'!$J$69)","v":-122333.70930267179},{"$f":"BI$3*('COM-Appliance class'!$AQ63/'Volume per connection'!$J$69)","v":-122333.70930267179},{"$f":"BJ$3*('COM-Appliance class'!$AQ63/'Volume per connection'!$J$69)","v":-122333.70930267179},{"$f":"BK$3*('COM-Appliance class'!$AQ63/'Volume per connection'!$J$69)","v":-122333.70930267179},{"$f":"BL$3*('COM-Appliance class'!$AQ63/'Volume per connection'!$J$69)","v":-122333.70930267179},{"$f":"BM$3*('COM-Appliance class'!$AQ63/'Volume per connection'!$J$69)","v":-122333.70930267179},{"$f":"BN$3*('COM-Appliance class'!$AQ63/'Volume per connection'!$J$69)","v":-122333.70930267179},{"$f":"BO$3*('COM-Appliance class'!$AQ63/'Volume per connection'!$J$69)","v":-122333.70930267179},{"$f":"BP$3*('COM-Appliance class'!$AQ63/'Volume per connection'!$J$69)","v":-122333.70930267179},{"$f":"BQ$3*('COM-Appliance class'!$AQ63/'Volume per connection'!$J$69)","v":-122333.70930267179},{"$f":"BR$3*('COM-Appliance class'!$AQ63/'Volume per connection'!$J$69)","v":-122333.70930267179},{"$f":"BS$3*('COM-Appliance class'!$AQ63/'Volume per connection'!$J$69)","v":-122333.70930267179},{"$f":"BT$3*('COM-Appliance class'!$AQ63/'Volume per connection'!$J$69)","v":-122333.70930267179},{"$f":"BU$3*('COM-Appliance class'!$AQ63/'Volume per connection'!$J$69)","v":-122333.70930267179},{"$f":"BV$3*('COM-Appliance class'!$AQ63/'Volume per connection'!$J$69)","v":-122333.70930267179},{"$f":"BW$3*('COM-Appliance class'!$AQ63/'Volume per connection'!$J$69)","v":-122333.70930267179},{"$f":"BX$3*('COM-Appliance class'!$AQ63/'Volume per connection'!$J$69)","v":-122333.70930267179},{"$f":"BY$3*('COM-Appliance class'!$AQ63/'Volume per connection'!$J$69)","v":-122333.70930267179},{"$f":"BZ$3*('COM-Appliance class'!$AQ63/'Volume per connection'!$J$69)","v":-122333.70930267179},{"$f":"CA$3*('COM-Appliance class'!$AQ63/'Volume per connection'!$J$69)","v":-122333.70930267179},{"$f":"CB$3*('COM-Appliance class'!$AQ63/'Volume per connection'!$J$69)","v":-122333.70930267179},{"$f":"CC$3*('COM-Appliance class'!$AQ63/'Volume per connection'!$J$69)","v":-122333.70930267179},{"$f":"CD$3*('COM-Appliance class'!$AQ63/'Volume per connection'!$J$69)","v":-122333.70930267179}]
["Whitehorse (C)",null,{"$f":"C$3*('COM-Appliance class'!$AQ64/'Volume per connection'!$J$69)","v":-163302.34860529273},{"$f":"D$3*('COM-Appliance class'!$AQ64/'Volume per connection'!$J$69)","v":-163302.34860529273},{"$f":"E$3*('COM-Appliance class'!$AQ64/'Volume per connection'!$J$69)","v":-104018.35199313654},{"$f":"F$3*('COM-Appliance class'!$AQ64/'Volume per connection'!$J$69)","v":-104018.35199313654},{"$f":"G$3*('COM-Appliance class'!$AQ64/'Volume per connection'!$J$69)","v":-146900.0482553099},{"$f":"H$3*('COM-Appliance class'!$AQ64/'Volume per connection'!$J$69)","v":-146900.0482553099},{"$f":"I$3*('COM-Appliance class'!$AQ64/'Volume per connection'!$J$69)","v":-146900.0482553099},{"$f":"J$3*('COM-Appliance class'!$AQ64/'Volume per connection'!$J$69)","v":-161174.67388575908},{"$f":"K$3*('COM-Appliance class'!$AQ64/'Volume per connection'!$J$69)","v":-150694.81603611421},{"$f":"L$3*('COM-Appliance class'!$AQ64/'Volume per connection'!$J$69)","v":-148630.17897942645},{"$f":"M$3*('COM-Appliance class'!$AQ64/'Volume per connection'!$J$69)","v":-146575.86510802215},{"$f":"N$3*('COM-Appliance class'!$AQ64/'Volume per connection'!$J$69)","v":-144531.82280597487},{"$f":"O$3*('COM-Appliance class'!$AQ64/'Volume per connection'!$J$69)","v":-142498.00071543778},{"$f":"P$3*('COM-Appliance class'!$AQ64/'Volume per connection'!$J$69)","v":-140474.34773535348},{"$f":"Q$3*('COM-Appliance class'!$AQ64/'Volume per connection'!$J$69)","v":-138460.8130201695},{"$f":"R$3*('COM-Appliance class'!$AQ64/'Volume per connection'!$J$69)","v":-136457.3459785615},{"$f":"S$3*('COM-Appliance class'!$AQ64/'Volume per connection'!$J$69)","v":-134463.89627216154},{"$f":"T$3*('COM-Appliance class'!$AQ64/'Volume per connection'!$J$69)","v":-132480.41381429357},{"$f":"U$3*('COM-Appliance class'!$AQ64/'Volume per connection'!$J$69)","v":-130506.84876871492},{"$f":"V$3*('COM-Appliance class'!$AQ64/'Volume per connection'!$J$69)","v":-128543.15154836417},{"$f":"W$3*('COM-Appliance class'!$AQ64/'Volume per connection'!$J$69)","v":-126589.27281411516},{"$f":"X$3*('COM-Appliance class'!$AQ64/'Volume per connection'!$J$69)","v":-124645.16347353741},{"$f":"Y$3*('COM-Appliance class'!$AQ64/'Volume per connection'!$J$69)","v":-122710.77467966256},{"$f":"Z$3*('COM-Appliance class'!$AQ64/'Volume per connection'!$J$69)","v":-120786.05782975708},{"$f":"AA$3*('COM-Appliance class'!$AQ64/'Volume per connection'!$J$69)","v":-118870.96456410109},{"$f":"AB$3*('COM-Appliance class'!$AQ64/'Volume per connection'!$J$69)","v":-116965.44676477341},{"$f":"AC$3*('COM-Appliance class'!$AQ64/'Volume per connection'!$J$69)","v":-115069.4565544424},{"$f":"AD$3*('COM-Appliance class'!$AQ64/'Volume per connection'!$J$69)","v":-113182.94629516303},{"$f":"AE$3*('COM-Appliance class'!$AQ64/'Volume per connection'!$J$69)","v":-111305.86858718004},{"$f":"AF$3*('COM-Appliance class'!$AQ64/'Volume per connection'!$J$69)","v":-109438.17626773697},{"$f":"AG$3*('COM-Appliance class'!$AQ64/'Volume per connection'!$J$69)","v":-109438.17626773697},{"$f":"AH$3*('COM-Appliance class'!$AQ64/'Volume per connection'!$J$69)","v":-109438.17626773697},{"$f":"AI$3*('COM-Appliance class'!$AQ64/'Volume per connection'!$J$69)","v":-109438.17626773697},{"$f":"AJ$3*('COM-Appliance class'!$AQ64/'Volume per connection'!$J$69)","v":-109438.17626773697},{"$f":"AK$3*('COM-Appliance class'!$AQ64/'Volume per connection'!$J$69)","v":-109438.17626773697},{"$f":"AL$3*('COM-Appliance class'!$AQ64/'Volume per connection'!$J$69)","v":-109438.17626773697},{"$f":"AM$3*('COM-Appliance class'!$AQ64/'Volume per connection'!$J$69)","v":-109438.17626773697},{"$f":"AN$3*('COM-Appliance class'!$AQ64/'Volume per connection'!$J$69)","v":-109438.17626773697},{"$f":"AO$3*('COM-Appliance class'!$AQ64/'Volume per connection'!$J$69)","v":-109438.17626773697},{"$f":"AP$3*('COM-Appliance class'!$AQ64/'Volume per connection'!$J$69)","v":-109438.17626773697},{"$f":"AQ$3*('COM-Appliance class'!$AQ64/'Volume per connection'!$J$69)","v":-109438.17626773697},{"$f":"AR$3*('COM-Appliance class'!$AQ64/'Volume per connection'!$J$69)","v":-109438.17626773697},{"$f":"AS$3*('COM-Appliance class'!$AQ64/'Volume per connection'!$J$69)","v":-109438.17626773697},{"$f":"AT$3*('COM-Appliance class'!$AQ64/'Volume per connection'!$J$69)","v":-109438.17626773697},{"$f":"AU$3*('COM-Appliance class'!$AQ64/'Volume per connection'!$J$69)","v":-109438.17626773697},{"$f":"AV$3*('COM-Appliance class'!$AQ64/'Volume per connection'!$J$69)","v":-109438.17626773697},{"$f":"AW$3*('COM-Appliance class'!$AQ64/'Volume per connection'!$J$69)","v":-109438.17626773697},{"$f":"AX$3*('COM-Appliance class'!$AQ64/'Volume per connection'!$J$69)","v":-109438.17626773697},{"$f":"AY$3*('COM-Appliance class'!$AQ64/'Volume per connection'!$J$69)","v":-109438.17626773697},{"$f":"AZ$3*('COM-Appliance class'!$AQ64/'Volume per connection'!$J$69)","v":-109438.17626773697},{"$f":"BA$3*('COM-Appliance class'!$AQ64/'Volume per connection'!$J$69)","v":-109438.17626773697},{"$f":"BB$3*('COM-Appliance class'!$AQ64/'Volume per connection'!$J$69)","v":-109438.17626773697},{"$f":"BC$3*('COM-Appliance class'!$AQ64/'Volume per connection'!$J$69)","v":-109438.17626773697},{"$f":"BD$3*('COM-Appliance class'!$AQ64/'Volume per connection'!$J$69)","v":-109438.17626773697},{"$f":"BE$3*('COM-Appliance class'!$AQ64/'Volume per connection'!$J$69)","v":-109438.17626773697},{"$f":"BF$3*('COM-Appliance class'!$AQ64/'Volume per connection'!$J$69)","v":-109438.17626773697},{"$f":"BG$3*('COM-Appliance class'!$AQ64/'Volume per connection'!$J$69)","v":-109438.17626773697},{"$f":"BH$3*('COM-Appliance class'!$AQ64/'Volume per connection'!$J$69)","v":-109438.17626773697},{"$f":"BI$3*('COM-Appliance class'!$AQ64/'Volume per connection'!$J$69)","v":-109438.17626773697},{"$f":"BJ$3*('COM-Appliance class'!$AQ64/'Volume per connection'!$J$69)","v":-109438.17626773697},{"$f":"BK$3*('COM-Appliance class'!$AQ64/'Volume per connection'!$J$69)","v":-109438.17626773697},{"$f":"BL$3*('COM-Appliance class'!$AQ64/'Volume per connection'!$J$69)","v":-109438.17626773697},{"$f":"BM$3*('COM-Appliance class'!$AQ64/'Volume per connection'!$J$69)","v":-109438.17626773697},{"$f":"BN$3*('COM-Appliance class'!$AQ64/'Volume per connection'!$J$69)","v":-109438.17626773697},{"$f":"BO$3*('COM-Appliance class'!$AQ64/'Volume per connection'!$J$69)","v":-109438.17626773697},{"$f":"BP$3*('COM-Appliance class'!$AQ64/'Volume per connection'!$J$69)","v":-109438.17626773697},{"$f":"BQ$3*('COM-Appliance class'!$AQ64/'Volume per connection'!$J$69)","v":-109438.17626773697},{"$f":"BR$3*('COM-Appliance class'!$AQ64/'Volume per connection'!$J$69)","v":-109438.17626773697},{"$f":"BS$3*('COM-Appliance class'!$AQ64/'Volume per connection'!$J$69)","v":-109438.17626773697},{"$f":"BT$3*('COM-Appliance class'!$AQ64/'Volume per connection'!$J$69)","v":-109438.17626773697},{"$f":"BU$3*('COM-Appliance class'!$AQ64/'Volume per connection'!$J$69)","v":-109438.17626773697},{"$f":"BV$3*('COM-Appliance class'!$AQ64/'Volume per connection'!$J$69)","v":-109438.17626773697},{"$f":"BW$3*('COM-Appliance class'!$AQ64/'Volume per connection'!$J$69)","v":-109438.17626773697},{"$f":"BX$3*('COM-Appliance class'!$AQ64/'Volume per connection'!$J$69)","v":-109438.17626773697},{"$f":"BY$3*('COM-Appliance class'!$AQ64/'Volume per connection'!$J$69)","v":-109438.17626773697},{"$f":"BZ$3*('COM-Appliance class'!$AQ64/'Volume per connection'!$J$69)","v":-109438.17626773697},{"$f":"CA$3*('COM-Appliance class'!$AQ64/'Volume per connection'!$J$69)","v":-109438.17626773697},{"$f":"CB$3*('COM-Appliance class'!$AQ64/'Volume per connection'!$J$69)","v":-109438.17626773697},{"$f":"CC$3*('COM-Appliance class'!$AQ64/'Volume per connection'!$J$69)","v":-109438.17626773697},{"$f":"CD$3*('COM-Appliance class'!$AQ64/'Volume per connection'!$J$69)","v":-109438.17626773697}]
["Yarra Ranges (S)",null,{"$f":"C$3*('COM-Appliance class'!$AQ65/'Volume per connection'!$J$69)","v":-217770.02451215105},{"$f":"D$3*('COM-Appliance class'!$AQ65/'Volume per connection'!$J$69)","v":-217770.02451215105},{"$f":"E$3*('COM-Appliance class'!$AQ65/'Volume per connection'!$J$69)","v":-138712.51244530315},{"$f":"F$3*('COM-Appliance class'!$AQ65/'Volume per connection'!$J$69)","v":-138712.51244530315},{"$f":"G$3*('COM-Appliance class'!$AQ65/'Volume per connection'!$J$69)","v":-195896.91993173319},{"$f":"H$3*('COM-Appliance class'!$AQ65/'Volume per connection'!$J$69)","v":-195896.91993173319},{"$f":"I$3*('COM-Appliance class'!$AQ65/'Volume per connection'!$J$69)","v":-195896.91993173319},{"$f":"J$3*('COM-Appliance class'!$AQ65/'Volume per connection'!$J$69)","v":-214932.68763497824},{"$f":"K$3*('COM-Appliance class'!$AQ65/'Volume per connection'!$J$69)","v":-200957.39015583924},{"$f":"L$3*('COM-Appliance class'!$AQ65/'Volume per connection'!$J$69)","v":-198204.116450448},{"$f":"M$3*('COM-Appliance class'!$AQ65/'Volume per connection'!$J$69)","v":-195464.60911358372},{"$f":"N$3*('COM-Appliance class'!$AQ65/'Volume per connection'!$J$69)","v":-192738.79931340378},{"$f":"O$3*('COM-Appliance class'!$AQ65/'Volume per connection'!$J$69)","v":-190026.6185622247},{"$f":"P$3*('COM-Appliance class'!$AQ65/'Volume per connection'!$J$69)","v":-187327.99871480159},{"$f":"Q$3*('COM-Appliance class'!$AQ65/'Volume per connection'!$J$69)","v":-184642.87196661549},{"$f":"R$3*('COM-Appliance class'!$AQ65/'Volume per connection'!$J$69)","v":-181971.17085217041},{"$f":"S$3*('COM-Appliance class'!$AQ65/'Volume per connection'!$J$69)","v":-179312.82824329755},{"$f":"T$3*('COM-Appliance class'!$AQ65/'Volume per connection'!$J$69)","v":-176667.77734746903},{"$f":"U$3*('COM-Appliance class'!$AQ65/'Volume per connection'!$J$69)","v":-174035.95170611964},{"$f":"V$3*('COM-Appliance class'!$AQ65/'Volume per connection'!$J$69)","v":-171417.285192977},{"$f":"W$3*('COM-Appliance class'!$AQ65/'Volume per connection'!$J$69)","v":-168811.71201240004},{"$f":"X$3*('COM-Appliance class'!$AQ65/'Volume per connection'!$J$69)","v":-166219.166697726},{"$f":"Y$3*('COM-Appliance class'!$AQ65/'Volume per connection'!$J$69)","v":-163639.58410962534},{"$f":"Z$3*('COM-Appliance class'!$AQ65/'Volume per connection'!$J$69)","v":-161072.89943446519},{"$f":"AA$3*('COM-Appliance class'!$AQ65/'Volume per connection'!$J$69)","v":-158519.0481826808},{"$f":"AB$3*('COM-Appliance class'!$AQ65/'Volume per connection'!$J$69)","v":-155977.96618715534},{"$f":"AC$3*('COM-Appliance class'!$AQ65/'Volume per connection'!$J$69)","v":-153449.58960160759},{"$f":"AD$3*('COM-Appliance class'!$AQ65/'Volume per connection'!$J$69)","v":-150933.85489898751},{"$f":"AE$3*('COM-Appliance class'!$AQ65/'Volume per connection'!$J$69)","v":-148430.69886988055},{"$f":"AF$3*('COM-Appliance class'!$AQ65/'Volume per connection'!$J$69)","v":-145940.0586209191},{"$f":"AG$3*('COM-Appliance class'!$AQ65/'Volume per connection'!$J$69)","v":-145940.0586209191},{"$f":"AH$3*('COM-Appliance class'!$AQ65/'Volume per connection'!$J$69)","v":-145940.0586209191},{"$f":"AI$3*('COM-Appliance class'!$AQ65/'Volume per connection'!$J$69)","v":-145940.0586209191},{"$f":"AJ$3*('COM-Appliance class'!$AQ65/'Volume per connection'!$J$69)","v":-145940.0586209191},{"$f":"AK$3*('COM-Appliance class'!$AQ65/'Volume per connection'!$J$69)","v":-145940.0586209191},{"$f":"AL$3*('COM-Appliance class'!$AQ65/'Volume per connection'!$J$69)","v":-145940.0586209191},{"$f":"AM$3*('COM-Appliance class'!$AQ65/'Volume per connection'!$J$69)","v":-145940.0586209191},{"$f":"AN$3*('COM-Appliance class'!$AQ65/'Volume per connection'!$J$69)","v":-145940.0586209191},{"$f":"AO$3*('COM-Appliance class'!$AQ65/'Volume per connection'!$J$69)","v":-145940.0586209191},{"$f":"AP$3*('COM-Appliance class'!$AQ65/'Volume per connection'!$J$69)","v":-145940.0586209191},{"$f":"AQ$3*('COM-Appliance class'!$AQ65/'Volume per connection'!$J$69)","v":-145940.0586209191},{"$f":"AR$3*('COM-Appliance class'!$AQ65/'Volume per connection'!$J$69)","v":-145940.0586209191},{"$f":"AS$3*('COM-Appliance class'!$AQ65/'Volume per connection'!$J$69)","v":-145940.0586209191},{"$f":"AT$3*('COM-Appliance class'!$AQ65/'Volume per connection'!$J$69)","v":-145940.0586209191},{"$f":"AU$3*('COM-Appliance class'!$AQ65/'Volume per connection'!$J$69)","v":-145940.0586209191},{"$f":"AV$3*('COM-Appliance class'!$AQ65/'Volume per connection'!$J$69)","v":-145940.0586209191},{"$f":"AW$3*('COM-Appliance class'!$AQ65/'Volume per connection'!$J$69)","v":-145940.0586209191},{"$f":"AX$3*('COM-Appliance class'!$AQ65/'Volume per connection'!$J$69)","v":-145940.0586209191},{"$f":"AY$3*('COM-Appliance class'!$AQ65/'Volume per connection'!$J$69)","v":-145940.0586209191},{"$f":"AZ$3*('COM-Appliance class'!$AQ65/'Volume per connection'!$J$69)","v":-145940.0586209191},{"$f":"BA$3*('COM-Appliance class'!$AQ65/'Volume per connection'!$J$69)","v":-145940.0586209191},{"$f":"BB$3*('COM-Appliance class'!$AQ65/'Volume per connection'!$J$69)","v":-145940.0586209191},{"$f":"BC$3*('COM-Appliance class'!$AQ65/'Volume per connection'!$J$69)","v":-145940.0586209191},{"$f":"BD$3*('COM-Appliance class'!$AQ65/'Volume per connection'!$J$69)","v":-145940.0586209191},{"$f":"BE$3*('COM-Appliance class'!$AQ65/'Volume per connection'!$J$69)","v":-145940.0586209191},{"$f":"BF$3*('COM-Appliance class'!$AQ65/'Volume per connection'!$J$69)","v":-145940.0586209191},{"$f":"BG$3*('COM-Appliance class'!$AQ65/'Volume per connection'!$J$69)","v":-145940.0586209191},{"$f":"BH$3*('COM-Appliance class'!$AQ65/'Volume per connection'!$J$69)","v":-145940.0586209191},{"$f":"BI$3*('COM-Appliance class'!$AQ65/'Volume per connection'!$J$69)","v":-145940.0586209191},{"$f":"BJ$3*('COM-Appliance class'!$AQ65/'Volume per connection'!$J$69)","v":-145940.0586209191},{"$f":"BK$3*('COM-Appliance class'!$AQ65/'Volume per connection'!$J$69)","v":-145940.0586209191},{"$f":"BL$3*('COM-Appliance class'!$AQ65/'Volume per connection'!$J$69)","v":-145940.0586209191},{"$f":"BM$3*('COM-Appliance class'!$AQ65/'Volume per connection'!$J$69)","v":-145940.0586209191},{"$f":"BN$3*('COM-Appliance class'!$AQ65/'Volume per connection'!$J$69)","v":-145940.0586209191},{"$f":"BO$3*('COM-Appliance class'!$AQ65/'Volume per connection'!$J$69)","v":-145940.0586209191},{"$f":"BP$3*('COM-Appliance class'!$AQ65/'Volume per connection'!$J$69)","v":-145940.0586209191},{"$f":"BQ$3*('COM-Appliance class'!$AQ65/'Volume per connection'!$J$69)","v":-145940.0586209191},{"$f":"BR$3*('COM-Appliance class'!$AQ65/'Volume per connection'!$J$69)","v":-145940.0586209191},{"$f":"BS$3*('COM-Appliance class'!$AQ65/'Volume per connection'!$J$69)","v":-145940.0586209191},{"$f":"BT$3*('COM-Appliance class'!$AQ65/'Volume per connection'!$J$69)","v":-145940.0586209191},{"$f":"BU$3*('COM-Appliance class'!$AQ65/'Volume per connection'!$J$69)","v":-145940.0586209191},{"$f":"BV$3*('COM-Appliance class'!$AQ65/'Volume per connection'!$J$69)","v":-145940.0586209191},{"$f":"BW$3*('COM-Appliance class'!$AQ65/'Volume per connection'!$J$69)","v":-145940.0586209191},{"$f":"BX$3*('COM-Appliance class'!$AQ65/'Volume per connection'!$J$69)","v":-145940.0586209191},{"$f":"BY$3*('COM-Appliance class'!$AQ65/'Volume per connection'!$J$69)","v":-145940.0586209191},{"$f":"BZ$3*('COM-Appliance class'!$AQ65/'Volume per connection'!$J$69)","v":-145940.0586209191},{"$f":"CA$3*('COM-Appliance class'!$AQ65/'Volume per connection'!$J$69)","v":-145940.0586209191},{"$f":"CB$3*('COM-Appliance class'!$AQ65/'Volume per connection'!$J$69)","v":-145940.0586209191},{"$f":"CC$3*('COM-Appliance class'!$AQ65/'Volume per connection'!$J$69)","v":-145940.0586209191},{"$f":"CD$3*('COM-Appliance class'!$AQ65/'Volume per connection'!$J$69)","v":-145940.0586209191}]
[]
[]
["Scaled up running costs"]
["LGA 0-150GJ",2020,{"$f":"B224+1","v":2021},{"$f":"C224+1","v":2022},{"$f":"D224+1","v":2023},{"$f":"E224+1","v":2024},{"$f":"F224+1","v":2025},{"$f":"G224+1","v":2026},{"$f":"H224+1","v":2027},{"$f":"I224+1","v":2028},{"$f":"J224+1","v":2029},{"$f":"K224+1","v":2030},{"$f":"L224+1","v":2031},{"$f":"M224+1","v":2032},{"$f":"N224+1","v":2033},{"$f":"O224+1","v":2034},{"$f":"P224+1","v":2035},{"$f":"Q224+1","v":2036},{"$f":"R224+1","v":2037},{"$f":"S224+1","v":2038},{"$f":"T224+1","v":2039},{"$f":"U224+1","v":2040},{"$f":"V224+1","v":2041},{"$f":"W224+1","v":2042},{"$f":"X224+1","v":2043},{"$f":"Y224+1","v":2044},{"$f":"Z224+1","v":2045},{"$f":"AA224+1","v":2046},{"$f":"AB224+1","v":2047},{"$f":"AC224+1","v":2048},{"$f":"AD224+1","v":2049},{"$f":"AE224+1","v":2050},{"$f":"AF224+1","v":2051},{"$f":"AG224+1","v":2052},{"$f":"AH224+1","v":2053},{"$f":"AI224+1","v":2054},{"$f":"AJ224+1","v":2055},{"$f":"AK224+1","v":2056},{"$f":"AL224+1","v":2057},{"$f":"AM224+1","v":2058},{"$f":"AN224+1","v":2059},{"$f":"AO224+1","v":2060},{"$f":"AP224+1","v":2061},{"$f":"AQ224+1","v":2062},{"$f":"AR224+1","v":2063},{"$f":"AS224+1","v":2064},{"$f":"AT224+1","v":2065},{"$f":"AU224+1","v":2066},{"$f":"AV224+1","v":2067},{"$f":"AW224+1","v":2068},{"$f":"AX224+1","v":2069},{"$f":"AY224+1","v":2070},{"$f":"AZ224+1","v":2071},{"$f":"BA224+1","v":2072},{"$f":"BB224+1","v":2073},{"$f":"BC224+1","v":2074},{"$f":"BD224+1","v":2075},{"$f":"BE224+1","v":2076},{"$f":"BF224+1","v":2077},{"$f":"BG224+1","v":2078},{"$f":"BH224+1","v":2079},{"$f":"BI224+1","v":2080},{"$f":"BJ224+1","v":2081},{"$f":"BK224+1","v":2082},{"$f":"BL224+1","v":2083},{"$f":"BM224+1","v":2084},{"$f":"BN224+1","v":2085},{"$f":"BO224+1","v":2086},{"$f":"BP224+1","v":2087},{"$f":"BQ224+1","v":2088},{"$f":"BR224+1","v":2089},{"$f":"BS224+1","v":2090},{"$f":"BT224+1","v":2091},{"$f":"BU224+1","v":2092},{"$f":"BV224+1","v":2093},{"$f":"BW224+1","v":2094},{"$f":"BX224+1","v":2095},{"$f":"BY224+1","v":2096},{"$f":"BZ224+1","v":2097},{"$f":"CA224+1","v":2098},{"$f":"CB224+1","v":2099},{"$f":"CC224+1","v":2100}]
["Bass Coast (S)",null,{"$f":"C$4*('COM-Appliance class'!$J47/'Volume per connection'!$J$69)","v":2543.5475783819033},{"$f":"D$4*('COM-Appliance class'!$J47/'Volume per connection'!$J$69)","v":3126.3481054012195},{"$f":"E$4*('COM-Appliance class'!$J47/'Volume per connection'!$J$69)","v":2778.1397934932247},{"$f":"F$4*('COM-Appliance class'!$J47/'Volume per connection'!$J$69)","v":3090.3690622499639},{"$f":"G$4*('COM-Appliance class'!$J47/'Volume per connection'!$J$69)","v":2720.8754691623194},{"$f":"H$4*('COM-Appliance class'!$J47/'Volume per connection'!$J$69)","v":2793.0404347989197},{"$f":"I$4*('COM-Appliance class'!$J47/'Volume per connection'!$J$69)","v":3239.075828610497},{"$f":"J$4*('COM-Appliance class'!$J47/'Volume per connection'!$J$69)","v":3564.3956771760686},{"$f":"K$4*('COM-Appliance class'!$J47/'Volume per connection'!$J$69)","v":4267.0577336657088},{"$f":"L$4*('COM-Appliance class'!$J47/'Volume per connection'!$J$69)","v":4230.8076924851903},{"$f":"M$4*('COM-Appliance class'!$J47/'Volume per connection'!$J$69)","v":3437.6772279082711},{"$f":"N$4*('COM-Appliance class'!$J47/'Volume per connection'!$J$69)","v":3421.6265109586616},{"$f":"O$4*('COM-Appliance class'!$J47/'Volume per connection'!$J$69)","v":3893.8120790624266},{"$f":"P$4*('COM-Appliance class'!$J47/'Volume per connection'!$J$69)","v":4350.8248378782437},{"$f":"Q$4*('COM-Appliance class'!$J47/'Volume per connection'!$J$69)","v":3029.5901532804974},{"$f":"R$4*('COM-Appliance class'!$J47/'Volume per connection'!$J$69)","v":3218.1299748953015},{"$f":"S$4*('COM-Appliance class'!$J47/'Volume per connection'!$J$69)","v":3497.8848967739805},{"$f":"T$4*('COM-Appliance class'!$J47/'Volume per connection'!$J$69)","v":3907.409710709981},{"$f":"U$4*('COM-Appliance class'!$J47/'Volume per connection'!$J$69)","v":4212.1522284201064},{"$f":"V$4*('COM-Appliance class'!$J47/'Volume per connection'!$J$69)","v":4323.9747331212202},{"$f":"W$4*('COM-Appliance class'!$J47/'Volume per connection'!$J$69)","v":4506.1575255530906},{"$f":"X$4*('COM-Appliance class'!$J47/'Volume per connection'!$J$69)","v":4957.5235602350704},{"$f":"Y$4*('COM-Appliance class'!$J47/'Volume per connection'!$J$69)","v":5332.5458158446645},{"$f":"Z$4*('COM-Appliance class'!$J47/'Volume per connection'!$J$69)","v":5544.2745613179304},{"$f":"AA$4*('COM-Appliance class'!$J47/'Volume per connection'!$J$69)","v":5784.8669464207751},{"$f":"AB$4*('COM-Appliance class'!$J47/'Volume per connection'!$J$69)","v":5935.8191557719565},{"$f":"AC$4*('COM-Appliance class'!$J47/'Volume per connection'!$J$69)","v":6045.0839636724404},{"$f":"AD$4*('COM-Appliance class'!$J47/'Volume per connection'!$J$69)","v":6123.3178360710626},{"$f":"AE$4*('COM-Appliance class'!$J47/'Volume per connection'!$J$69)","v":6188.8809988387957},{"$f":"AF$4*('COM-Appliance class'!$J47/'Volume per connection'!$J$69)","v":6310.8852165617027},{"$f":"AG$4*('COM-Appliance class'!$J47/'Volume per connection'!$J$69)","v":6316.7466839689978},{"$f":"AH$4*('COM-Appliance class'!$J47/'Volume per connection'!$J$69)","v":6444.7319552857552},{"$f":"AI$4*('COM-Appliance class'!$J47/'Volume per connection'!$J$69)","v":6452.9682438302743},{"$f":"AJ$4*('COM-Appliance class'!$J47/'Volume per connection'!$J$69)","v":6461.1929181795722},{"$f":"AK$4*('COM-Appliance class'!$J47/'Volume per connection'!$J$69)","v":6469.406049702674},{"$f":"AL$4*('COM-Appliance class'!$J47/'Volume per connection'!$J$69)","v":6477.6077093255908},{"$f":"AM$4*('COM-Appliance class'!$J47/'Volume per connection'!$J$69)","v":6485.7979675341194},{"$f":"AN$4*('COM-Appliance class'!$J47/'Volume per connection'!$J$69)","v":6493.9768943765885},{"$f":"AO$4*('COM-Appliance class'!$J47/'Volume per connection'!$J$69)","v":6502.1445594666511},{"$f":"AP$4*('COM-Appliance class'!$J47/'Volume per connection'!$J$69)","v":6510.3010319859804},{"$f":"AQ$4*('COM-Appliance class'!$J47/'Volume per connection'!$J$69)","v":6518.4463806870353},{"$f":"AR$4*('COM-Appliance class'!$J47/'Volume per connection'!$J$69)","v":6526.580673895719},{"$f":"AS$4*('COM-Appliance class'!$J47/'Volume per connection'!$J$69)","v":6534.7039795141018},{"$f":"AT$4*('COM-Appliance class'!$J47/'Volume per connection'!$J$69)","v":6542.8163650230535},{"$f":"AU$4*('COM-Appliance class'!$J47/'Volume per connection'!$J$69)","v":6550.9178974849347},{"$f":"AV$4*('COM-Appliance class'!$J47/'Volume per connection'!$J$69)","v":6559.0086435461944},{"$f":"AW$4*('COM-Appliance class'!$J47/'Volume per connection'!$J$69)","v":6567.0886694400169},{"$f":"AX$4*('COM-Appliance class'!$J47/'Volume per connection'!$J$69)","v":6575.1580409889029},{"$f":"AY$4*('COM-Appliance class'!$J47/'Volume per connection'!$J$69)","v":6583.2168236072685},{"$f":"AZ$4*('COM-Appliance class'!$J47/'Volume per connection'!$J$69)","v":6591.2650823039976},{"$f":"BA$4*('COM-Appliance class'!$J47/'Volume per connection'!$J$69)","v":6599.3028816850265},{"$f":"BB$4*('COM-Appliance class'!$J47/'Volume per connection'!$J$69)","v":6607.3302859558262},{"$f":"BC$4*('COM-Appliance class'!$J47/'Volume per connection'!$J$69)","v":6615.3473589239829},{"$f":"BD$4*('COM-Appliance class'!$J47/'Volume per connection'!$J$69)","v":6623.3541640016492},{"$f":"BE$4*('COM-Appliance class'!$J47/'Volume per connection'!$J$69)","v":6631.3507642080785},{"$f":"BF$4*('COM-Appliance class'!$J47/'Volume per connection'!$J$69)","v":6639.3372221720538},{"$f":"BG$4*('COM-Appliance class'!$J47/'Volume per connection'!$J$69)","v":6647.3136001343737},{"$f":"BH$4*('COM-Appliance class'!$J47/'Volume per connection'!$J$69)","v":6655.2799599502832},{"$f":"BI$4*('COM-Appliance class'!$J47/'Volume per connection'!$J$69)","v":6663.2363630919081},{"$f":"BJ$4*('COM-Appliance class'!$J47/'Volume per connection'!$J$69)","v":6671.1828706506367},{"$f":"BK$4*('COM-Appliance class'!$J47/'Volume per connection'!$J$69)","v":6679.1195433395587},{"$f":"BL$4*('COM-Appliance class'!$J47/'Volume per connection'!$J$69)","v":6687.0464414957987},{"$f":"BM$4*('COM-Appliance class'!$J47/'Volume per connection'!$J$69)","v":6694.963625082928},{"$f":"BN$4*('COM-Appliance class'!$J47/'Volume per connection'!$J$69)","v":6702.8711536932587},{"$f":"BO$4*('COM-Appliance class'!$J47/'Volume per connection'!$J$69)","v":6710.7690865502373},{"$f":"BP$4*('COM-Appliance class'!$J47/'Volume per connection'!$J$69)","v":6718.6574825107118},{"$f":"BQ$4*('COM-Appliance class'!$J47/'Volume per connection'!$J$69)","v":6726.5364000672789},{"$f":"BR$4*('COM-Appliance class'!$J47/'Volume per connection'!$J$69)","v":6734.4058973505389},{"$f":"BS$4*('COM-Appliance class'!$J47/'Volume per connection'!$J$69)","v":6742.2660321314042},{"$f":"BT$4*('COM-Appliance class'!$J47/'Volume per connection'!$J$69)","v":6750.1168618233287},{"$f":"BU$4*('COM-Appliance class'!$J47/'Volume per connection'!$J$69)","v":6757.9584434845892},{"$f":"BV$4*('COM-Appliance class'!$J47/'Volume per connection'!$J$69)","v":6765.790833820477},{"$f":"BW$4*('COM-Appliance class'!$J47/'Volume per connection'!$J$69)","v":6773.6140891855684},{"$f":"BX$4*('COM-Appliance class'!$J47/'Volume per connection'!$J$69)","v":6781.4282655858615},{"$f":"BY$4*('COM-Appliance class'!$J47/'Volume per connection'!$J$69)","v":6789.2334186810476},{"$f":"BZ$4*('COM-Appliance class'!$J47/'Volume per connection'!$J$69)","v":6797.0296037866065},{"$f":"CA$4*('COM-Appliance class'!$J47/'Volume per connection'!$J$69)","v":6804.8168758760421},{"$f":"CB$4*('COM-Appliance class'!$J47/'Volume per connection'!$J$69)","v":6812.5952895829687},{"$f":"CC$4*('COM-Appliance class'!$J47/'Volume per connection'!$J$69)","v":6820.3648992033013},{"$f":"CD$4*('COM-Appliance class'!$J47/'Volume per connection'!$J$69)","v":6828.1257586973252}]
["Bayside (C)",null,{"$f":"C$4*('COM-Appliance class'!$J48/'Volume per connection'!$J$69)","v":2741.3929361139972},{"$f":"D$4*('COM-Appliance class'!$J48/'Volume per connection'!$J$69)","v":3369.525573188806},{"$f":"E$4*('COM-Appliance class'!$J48/'Volume per connection'!$J$69)","v":2994.2324925034359},{"$f":"F$4*('COM-Appliance class'!$J48/'Volume per connection'!$J$69)","v":3330.7479636873004},{"$f":"G$4*('COM-Appliance class'!$J48/'Volume per connection'!$J$69)","v":2932.5139638050459},{"$f":"H$4*('COM-Appliance class'!$J48/'Volume per connection'!$J$69)","v":3010.2921538859005},{"$f":"I$4*('COM-Appliance class'!$J48/'Volume per connection'!$J$69)","v":3491.0216233262754},{"$f":"J$4*('COM-Appliance class'!$J48/'Volume per connection'!$J$69)","v":3841.6459019578851},{"$f":"K$4*('COM-Appliance class'!$J48/'Volume per connection'!$J$69)","v":4598.9632859564372},{"$f":"L$4*('COM-Appliance class'!$J48/'Volume per connection'!$J$69)","v":4559.8935993224113},{"$f":"M$4*('COM-Appliance class'!$J48/'Volume per connection'!$J$69)","v":3705.0708818361654},{"$f":"N$4*('COM-Appliance class'!$J48/'Volume per connection'!$J$69)","v":3687.7716882062923},{"$f":"O$4*('COM-Appliance class'!$J48/'Volume per connection'!$J$69)","v":4196.6853770778434},{"$f":"P$4*('COM-Appliance class'!$J48/'Volume per connection'!$J$69)","v":4689.2460664786931},{"$f":"Q$4*('COM-Appliance class'!$J48/'Volume per connection'!$J$69)","v":3265.2414745892638},{"$f":"R$4*('COM-Appliance class'!$J48/'Volume per connection'!$J$69)","v":3468.4465333599055},{"$f":"S$4*('COM-Appliance class'!$J48/'Volume per connection'!$J$69)","v":3769.9616979275029},{"$f":"T$4*('COM-Appliance class'!$J48/'Volume per connection'!$J$69)","v":4211.340676496382},{"$f":"U$4*('COM-Appliance class'!$J48/'Volume per connection'!$J$69)","v":4539.7870529213878},{"$f":"V$4*('COM-Appliance class'!$J48/'Volume per connection'!$J$69)","v":4660.3074737272063},{"$f":"W$4*('COM-Appliance class'!$J48/'Volume per connection'!$J$69)","v":4856.6610330233016},{"$f":"X$4*('COM-Appliance class'!$J48/'Volume per connection'!$J$69)","v":5343.1357778228967},{"$f":"Y$4*('COM-Appliance class'!$J48/'Volume per connection'!$J$69)","v":5747.3284774804752},{"$f":"Z$4*('COM-Appliance class'!$J48/'Volume per connection'!$J$69)","v":5975.5261696116904},{"$f":"AA$4*('COM-Appliance class'!$J48/'Volume per connection'!$J$69)","v":6234.8326086220977},{"$f":"AB$4*('COM-Appliance class'!$J48/'Volume per connection'!$J$69)","v":6397.5263690704023},{"$f":"AC$4*('COM-Appliance class'!$J48/'Volume per connection'!$J$69)","v":6515.2901471455862},{"$f":"AD$4*('COM-Appliance class'!$J48/'Volume per connection'!$J$69)","v":6599.6093031862474},{"$f":"AE$4*('COM-Appliance class'!$J48/'Volume per connection'!$J$69)","v":6670.272180817612},{"$f":"AF$4*('COM-Appliance class'!$J48/'Volume per connection'!$J$69)","v":6801.7662812167337},{"$f":"AG$4*('COM-Appliance class'!$J48/'Volume per connection'!$J$69)","v":6808.0836725178397},{"$f":"AH$4*('COM-Appliance class'!$J48/'Volume per connection'!$J$69)","v":6946.0240522050144},{"$f":"AI$4*('COM-Appliance class'!$J48/'Volume per connection'!$J$69)","v":6954.90098591274},{"$f":"AJ$4*('COM-Appliance class'!$J48/'Volume per connection'!$J$69)","v":6963.7654020355731},{"$f":"AK$4*('COM-Appliance class'!$J48/'Volume per connection'!$J$69)","v":6972.6173774938543},{"$f":"AL$4*('COM-Appliance class'!$J48/'Volume per connection'!$J$69)","v":6981.4569887304478},{"$f":"AM$4*('COM-Appliance class'!$J48/'Volume per connection'!$J$69)","v":6990.2843117137645},{"$f":"AN$4*('COM-Appliance class'!$J48/'Volume per connection'!$J$69)","v":6999.0994219407185},{"$f":"AO$4*('COM-Appliance class'!$J48/'Volume per connection'!$J$69)","v":7007.9023944397368},{"$f":"AP$4*('COM-Appliance class'!$J48/'Volume per connection'!$J$69)","v":7016.6933037736699},{"$f":"AQ$4*('COM-Appliance class'!$J48/'Volume per connection'!$J$69)","v":7025.4722240427618},{"$f":"AR$4*('COM-Appliance class'!$J48/'Volume per connection'!$J$69)","v":7034.2392288875271},{"$f":"AS$4*('COM-Appliance class'!$J48/'Volume per connection'!$J$69)","v":7042.9943914916785},{"$f":"AT$4*('COM-Appliance class'!$J48/'Volume per connection'!$J$69)","v":7051.7377845849669},{"$f":"AU$4*('COM-Appliance class'!$J48/'Volume per connection'!$J$69)","v":7060.4694804460787},{"$f":"AV$4*('COM-Appliance class'!$J48/'Volume per connection'!$J$69)","v":7069.1895509054402},{"$f":"AW$4*('COM-Appliance class'!$J48/'Volume per connection'!$J$69)","v":7077.8980673480683},{"$f":"AX$4*('COM-Appliance class'!$J48/'Volume per connection'!$J$69)","v":7086.5951007163476},{"$f":"AY$4*('COM-Appliance class'!$J48/'Volume per connection'!$J$69)","v":7095.2807215128414},{"$f":"AZ$4*('COM-Appliance class'!$J48/'Volume per connection'!$J$69)","v":7103.9549998030352},{"$f":"BA$4*('COM-Appliance class'!$J48/'Volume per connection'!$J$69)","v":7112.6180052181226},{"$f":"BB$4*('COM-Appliance class'!$J48/'Volume per connection'!$J$69)","v":7121.2698069576827},{"$f":"BC$4*('COM-Appliance class'!$J48/'Volume per connection'!$J$69)","v":7129.9104737924663},{"$f":"BD$4*('COM-Appliance class'!$J48/'Volume per connection'!$J$69)","v":7138.5400740670239},{"$f":"BE$4*('COM-Appliance class'!$J48/'Volume per connection'!$J$69)","v":7147.1586757024525},{"$f":"BF$4*('COM-Appliance class'!$J48/'Volume per connection'!$J$69)","v":7155.7663461990041},{"$f":"BG$4*('COM-Appliance class'!$J48/'Volume per connection'!$J$69)","v":7164.363152638768},{"$f":"BH$4*('COM-Appliance class'!$J48/'Volume per connection'!$J$69)","v":7172.9491616882906},{"$f":"BI$4*('COM-Appliance class'!$J48/'Volume per connection'!$J$69)","v":7181.5244396011967},{"$f":"BJ$4*('COM-Appliance class'!$J48/'Volume per connection'!$J$69)","v":7190.0890522207619},{"$f":"BK$4*('COM-Appliance class'!$J48/'Volume per connection'!$J$69)","v":7198.6430649825361},{"$f":"BL$4*('COM-Appliance class'!$J48/'Volume per connection'!$J$69)","v":7207.1865429168611},{"$f":"BM$4*('COM-Appliance class'!$J48/'Volume per connection'!$J$69)","v":7215.719550651469},{"$f":"BN$4*('COM-Appliance class'!$J48/'Volume per connection'!$J$69)","v":7224.2421524139536},{"$f":"BO$4*('COM-Appliance class'!$J48/'Volume per connection'!$J$69)","v":7232.7544120343518},{"$f":"BP$4*('COM-Appliance class'!$J48/'Volume per connection'!$J$69)","v":7241.2563929475891},{"$f":"BQ$4*('COM-Appliance class'!$J48/'Volume per connection'!$J$69)","v":7249.7481581960064},{"$f":"BR$4*('COM-Appliance class'!$J48/'Volume per connection'!$J$69)","v":7258.229770431788},{"$f":"BS$4*('COM-Appliance class'!$J48/'Volume per connection'!$J$69)","v":7266.7012919194558},{"$f":"BT$4*('COM-Appliance class'!$J48/'Volume per connection'!$J$69)","v":7275.1627845382682},{"$f":"BU$4*('COM-Appliance class'!$J48/'Volume per connection'!$J$69)","v":7283.614309784678},{"$f":"BV$4*('COM-Appliance class'!$J48/'Volume per connection'!$J$69)","v":7292.0559287746992},{"$f":"BW$4*('COM-Appliance class'!$J48/'Volume per connection'!$J$69)","v":7300.4877022463479},{"$f":"BX$4*('COM-Appliance class'!$J48/'Volume per connection'!$J$69)","v":7308.9096905619517},{"$f":"BY$4*('COM-Appliance class'!$J48/'Volume per connection'!$J$69)","v":7317.3219537105906},{"$f":"BZ$4*('COM-Appliance class'!$J48/'Volume per connection'!$J$69)","v":7325.7245513103617},{"$f":"CA$4*('COM-Appliance class'!$J48/'Volume per connection'!$J$69)","v":7334.1175426107866},{"$f":"CB$4*('COM-Appliance class'!$J48/'Volume per connection'!$J$69)","v":7342.5009864950589},{"$f":"CC$4*('COM-Appliance class'!$J48/'Volume per connection'!$J$69)","v":7350.8749414824042},{"$f":"CD$4*('COM-Appliance class'!$J48/'Volume per connection'!$J$69)","v":7359.2394657303157}]
["Boroondara (C)",null,{"$f":"C$4*('COM-Appliance class'!$J49/'Volume per connection'!$J$69)","v":2676.2745416265743},{"$f":"D$4*('COM-Appliance class'!$J49/'Volume per connection'!$J$69)","v":3289.486665734189},{"$f":"E$4*('COM-Appliance class'!$J49/'Volume per connection'!$J$69)","v":2923.1082074491792},{"$f":"F$4*('COM-Appliance class'!$J49/'Volume per connection'!$J$69)","v":3251.6301703274685},{"$f":"G$4*('COM-Appliance class'!$J49/'Volume per connection'!$J$69)","v":2862.8557259729946},{"$f":"H$4*('COM-Appliance class'!$J49/'Volume per connection'!$J$69)","v":2938.786391462434},{"$f":"I$4*('COM-Appliance class'!$J49/'Volume per connection'!$J$69)","v":3408.0967276511119},{"$f":"J$4*('COM-Appliance class'!$J49/'Volume per connection'!$J$69)","v":3750.3923607273832},{"$f":"K$4*('COM-Appliance class'!$J49/'Volume per connection'!$J$69)","v":4489.7206080670712},{"$f":"L$4*('COM-Appliance class'!$J49/'Volume per connection'!$J$69)","v":4451.5789734584287},{"$f":"M$4*('COM-Appliance class'!$J49/'Volume per connection'!$J$69)","v":3617.0615110856606},{"$f":"N$4*('COM-Appliance class'!$J49/'Volume per connection'!$J$69)","v":3600.1732383786016},{"$f":"O$4*('COM-Appliance class'!$J49/'Volume per connection'!$J$69)","v":4096.9983127668302},{"$f":"P$4*('COM-Appliance class'!$J49/'Volume per connection'!$J$69)","v":4577.8588329366066},{"$f":"Q$4*('COM-Appliance class'!$J49/'Volume per connection'!$J$69)","v":3187.6797067602406},{"$f":"R$4*('COM-Appliance class'!$J49/'Volume per connection'!$J$69)","v":3386.0578809918038},{"$f":"S$4*('COM-Appliance class'!$J49/'Volume per connection'!$J$69)","v":3680.4109261960662},{"$f":"T$4*('COM-Appliance class'!$J49/'Volume per connection'!$J$69)","v":4111.3054936955687},{"$f":"U$4*('COM-Appliance class'!$J49/'Volume per connection'!$J$69)","v":4431.9500331689087},{"$f":"V$4*('COM-Appliance class'!$J49/'Volume per connection'!$J$69)","v":4549.6076406208167},{"$f":"W$4*('COM-Appliance class'!$J49/'Volume per connection'!$J$69)","v":4741.2970642635328},{"$f":"X$4*('COM-Appliance class'!$J49/'Volume per connection'!$J$69)","v":5216.2162039097366},{"$f":"Y$4*('COM-Appliance class'!$J49/'Volume per connection'!$J$69)","v":5610.8078065051232},{"$f":"Z$4*('COM-Appliance class'!$J49/'Volume per connection'!$J$69)","v":5833.5849450405503},{"$f":"AA$4*('COM-Appliance class'!$J49/'Volume per connection'!$J$69)","v":6086.7318806955045},{"$f":"AB$4*('COM-Appliance class'!$J49/'Volume per connection'!$J$69)","v":6245.5610523306004},{"$f":"AC$4*('COM-Appliance class'!$J49/'Volume per connection'!$J$69)","v":6360.5274976863466},{"$f":"AD$4*('COM-Appliance class'!$J49/'Volume per connection'!$J$69)","v":6442.8437565889981},{"$f":"AE$4*('COM-Appliance class'!$J49/'Volume per connection'!$J$69)","v":6511.8281250651817},{"$f":"AF$4*('COM-Appliance class'!$J49/'Volume per connection'!$J$69)","v":6640.1987459405336},{"$f":"AG$4*('COM-Appliance class'!$J49/'Volume per connection'!$J$69)","v":6646.3660754342072},{"$f":"AH$4*('COM-Appliance class'!$J49/'Volume per connection'!$J$69)","v":6781.0298522156536},{"$f":"AI$4*('COM-Appliance class'!$J49/'Volume per connection'!$J$69)","v":6789.6959253555979},{"$f":"AJ$4*('COM-Appliance class'!$J49/'Volume per connection'!$J$69)","v":6798.34977825038},{"$f":"AK$4*('COM-Appliance class'!$J49/'Volume per connection'!$J$69)","v":6806.9914859931896},{"$f":"AL$4*('COM-Appliance class'!$J49/'Volume per connection'!$J$69)","v":6815.6211232110873},{"$f":"AM$4*('COM-Appliance class'!$J49/'Volume per connection'!$J$69)","v":6824.2387640679481},{"$f":"AN$4*('COM-Appliance class'!$J49/'Volume per connection'!$J$69)","v":6832.84448226735},{"$f":"AO$4*('COM-Appliance class'!$J49/'Volume per connection'!$J$69)","v":6841.4383510555144},{"$f":"AP$4*('COM-Appliance class'!$J49/'Volume per connection'!$J$69)","v":6850.0204432241399},{"$f":"AQ$4*('COM-Appliance class'!$J49/'Volume per connection'!$J$69)","v":6858.5908311133153},{"$f":"AR$4*('COM-Appliance class'!$J49/'Volume per connection'!$J$69)","v":6867.1495866143132},{"$f":"AS$4*('COM-Appliance class'!$J49/'Volume per connection'!$J$69)","v":6875.6967811724589},{"$f":"AT$4*('COM-Appliance class'!$J49/'Volume per connection'!$J$69)","v":6884.2324857898966},{"$f":"AU$4*('COM-Appliance class'!$J49/'Volume per connection'!$J$69)","v":6892.7567710284247},{"$f":"AV$4*('COM-Appliance class'!$J49/'Volume per connection'!$J$69)","v":6901.269707012224},{"$f":"AW$4*('COM-Appliance class'!$J49/'Volume per connection'!$J$69)","v":6909.7713634306501},{"$f":"AX$4*('COM-Appliance class'!$J49/'Volume per connection'!$J$69)","v":6918.2618095409389},{"$f":"AY$4*('COM-Appliance class'!$J49/'Volume per connection'!$J$69)","v":6926.7411141709526},{"$f":"AZ$4*('COM-Appliance class'!$J49/'Volume per connection'!$J$69)","v":6935.209345721858},{"$f":"BA$4*('COM-Appliance class'!$J49/'Volume per connection'!$J$69)","v":6943.6665721708459},{"$f":"BB$4*('COM-Appliance class'!$J49/'Volume per connection'!$J$69)","v":6952.1128610737451},{"$f":"BC$4*('COM-Appliance class'!$J49/'Volume per connection'!$J$69)","v":6960.5482795677417},{"$f":"BD$4*('COM-Appliance class'!$J49/'Volume per connection'!$J$69)","v":6968.9728943739474},{"$f":"BE$4*('COM-Appliance class'!$J49/'Volume per connection'!$J$69)","v":6977.3867718000756},{"$f":"BF$4*('COM-Appliance class'!$J49/'Volume per connection'!$J$69)","v":6985.7899777429957},{"$f":"BG$4*('COM-Appliance class'!$J49/'Volume per connection'!$J$69)","v":6994.1825776913429},{"$f":"BH$4*('COM-Appliance class'!$J49/'Volume per connection'!$J$69)","v":7002.5646367280842},{"$f":"BI$4*('COM-Appliance class'!$J49/'Volume per connection'!$J$69)","v":7010.9362195330705},{"$f":"BJ$4*('COM-Appliance class'!$J49/'Volume per connection'!$J$69)","v":7019.2973903855527},{"$f":"BK$4*('COM-Appliance class'!$J49/'Volume per connection'!$J$69)","v":7027.6482131667399},{"$f":"BL$4*('COM-Appliance class'!$J49/'Volume per connection'!$J$69)","v":7035.988751362258},{"$f":"BM$4*('COM-Appliance class'!$J49/'Volume per connection'!$J$69)","v":7044.3190680646876},{"$f":"BN$4*('COM-Appliance class'!$J49/'Volume per connection'!$J$69)","v":7052.6392259759759},{"$f":"BO$4*('COM-Appliance class'!$J49/'Volume per connection'!$J$69)","v":7060.9492874099569},{"$f":"BP$4*('COM-Appliance class'!$J49/'Volume per connection'!$J$69)","v":7069.2493142947369},{"$f":"BQ$4*('COM-Appliance class'!$J49/'Volume per connection'!$J$69)","v":7077.5393681751639},{"$f":"BR$4*('COM-Appliance class'!$J49/'Volume per connection'!$J$69)","v":7085.8195102151985},{"$f":"BS$4*('COM-Appliance class'!$J49/'Volume per connection'!$J$69)","v":7094.0898012003445},{"$f":"BT$4*('COM-Appliance class'!$J49/'Volume per connection'!$J$69)","v":7102.3503015399965},{"$f":"BU$4*('COM-Appliance class'!$J49/'Volume per connection'!$J$69)","v":7110.6010712698344},{"$f":"BV$4*('COM-Appliance class'!$J49/'Volume per connection'!$J$69)","v":7118.8421700541376},{"$f":"BW$4*('COM-Appliance class'!$J49/'Volume per connection'!$J$69)","v":7127.0736571881644},{"$f":"BX$4*('COM-Appliance class'!$J49/'Volume per connection'!$J$69)","v":7135.2955916004112},{"$f":"BY$4*('COM-Appliance class'!$J49/'Volume per connection'!$J$69)","v":7143.5080318549917},{"$f":"BZ$4*('COM-Appliance class'!$J49/'Volume per connection'!$J$69)","v":7151.7110361538489},{"$f":"CA$4*('COM-Appliance class'!$J49/'Volume per connection'!$J$69)","v":7159.9046623391059},{"$f":"CB$4*('COM-Appliance class'!$J49/'Volume per connection'!$J$69)","v":7168.0889678952572},{"$f":"CC$4*('COM-Appliance class'!$J49/'Volume per connection'!$J$69)","v":7176.2640099514792},{"$f":"CD$4*('COM-Appliance class'!$J49/'Volume per connection'!$J$69)","v":7184.4298452838029}]
["Cardinia (S)",null,{"$f":"C$4*('COM-Appliance class'!$J50/'Volume per connection'!$J$69)","v":2786.8754277056833},{"$f":"D$4*('COM-Appliance class'!$J50/'Volume per connection'!$J$69)","v":3425.4294228455333},{"$f":"E$4*('COM-Appliance class'!$J50/'Volume per connection'!$J$69)","v":3043.909848992465},{"$f":"F$4*('COM-Appliance class'!$J50/'Volume per connection'!$J$69)","v":3386.0084534393368},{"$f":"G$4*('COM-Appliance class'!$J50/'Volume per connection'!$J$69)","v":2981.1673472526345},{"$f":"H$4*('COM-Appliance class'!$J50/'Volume per connection'!$J$69)","v":3060.2359564593889},{"$f":"I$4*('COM-Appliance class'!$J50/'Volume per connection'!$J$69)","v":3548.9412157851398},{"$f":"J$4*('COM-Appliance class'!$J50/'Volume per connection'!$J$69)","v":3905.3827071171327},{"$f":"K$4*('COM-Appliance class'!$J50/'Volume per connection'!$J$69)","v":4675.2647552673252},{"$f":"L$4*('COM-Appliance class'!$J50/'Volume per connection'!$J$69)","v":4635.546862872493},{"$f":"M$4*('COM-Appliance class'!$J50/'Volume per connection'!$J$69)","v":3766.5417687746103},{"$f":"N$4*('COM-Appliance class'!$J50/'Volume per connection'!$J$69)","v":3748.9555639620462},{"$f":"O$4*('COM-Appliance class'!$J50/'Volume per connection'!$J$69)","v":4266.3126475290719},{"$f":"P$4*('COM-Appliance class'!$J50/'Volume per connection'!$J$69)","v":4767.0454187642845},{"$f":"Q$4*('COM-Appliance class'!$J50/'Volume per connection'!$J$69)","v":3319.4151451916805},{"$f":"R$4*('COM-Appliance class'!$J50/'Volume per connection'!$J$69)","v":3525.9915821603063},{"$f":"S$4*('COM-Appliance class'!$J50/'Volume per connection'!$J$69)","v":3832.5091893754184},{"$f":"T$4*('COM-Appliance class'!$J50/'Volume per connection'!$J$69)","v":4281.2110932415235},{"$f":"U$4*('COM-Appliance class'!$J50/'Volume per connection'!$J$69)","v":4615.1067284565679},{"$f":"V$4*('COM-Appliance class'!$J50/'Volume per connection'!$J$69)","v":4737.6267053835518},{"$f":"W$4*('COM-Appliance class'!$J50/'Volume per connection'!$J$69)","v":4937.2379695464087},{"$f":"X$4*('COM-Appliance class'!$J50/'Volume per connection'!$J$69)","v":5431.7838241816044},{"$f":"Y$4*('COM-Appliance class'!$J50/'Volume per connection'!$J$69)","v":5842.6824910215655},{"$f":"Z$4*('COM-Appliance class'!$J50/'Volume per connection'!$J$69)","v":6074.6662145081809},{"$f":"AA$4*('COM-Appliance class'!$J50/'Volume per connection'!$J$69)","v":6338.2748105631299},{"$f":"AB$4*('COM-Appliance class'!$J50/'Volume per connection'!$J$69)","v":6503.6678256473278},{"$f":"AC$4*('COM-Appliance class'!$J50/'Volume per connection'!$J$69)","v":6623.3854243425149},{"$f":"AD$4*('COM-Appliance class'!$J50/'Volume per connection'!$J$69)","v":6709.1035207740679},{"$f":"AE$4*('COM-Appliance class'!$J50/'Volume per connection'!$J$69)","v":6780.938767275059},{"$f":"AF$4*('COM-Appliance class'!$J50/'Volume per connection'!$J$69)","v":6914.6144882791559},{"$f":"AG$4*('COM-Appliance class'!$J50/'Volume per connection'!$J$69)","v":6921.0366915147169},{"$f":"AH$4*('COM-Appliance class'!$J50/'Volume per connection'!$J$69)","v":7061.265642123858},{"$f":"AI$4*('COM-Appliance class'!$J50/'Volume per connection'!$J$69)","v":7070.2898531727487},{"$f":"AJ$4*('COM-Appliance class'!$J50/'Volume per connection'!$J$69)","v":7079.3013389573089},{"$f":"AK$4*('COM-Appliance class'!$J50/'Volume per connection'!$J$69)","v":7088.3001776740621},{"$f":"AL$4*('COM-Appliance class'!$J50/'Volume per connection'!$J$69)","v":7097.2864470341392},{"$f":"AM$4*('COM-Appliance class'!$J50/'Volume per connection'!$J$69)","v":7106.2602242663443},{"$f":"AN$4*('COM-Appliance class'!$J50/'Volume per connection'!$J$69)","v":7115.2215861201603},{"$f":"AO$4*('COM-Appliance class'!$J50/'Volume per connection'!$J$69)","v":7124.1706088688152},{"$f":"AP$4*('COM-Appliance class'!$J50/'Volume per connection'!$J$69)","v":7133.1073683122286},{"$f":"AQ$4*('COM-Appliance class'!$J50/'Volume per connection'!$J$69)","v":7142.0319397800467},{"$f":"AR$4*('COM-Appliance class'!$J50/'Volume per connection'!$J$69)","v":7150.944398134553},{"$f":"AS$4*('COM-Appliance class'!$J50/'Volume per connection'!$J$69)","v":7159.8448177736527},{"$f":"AT$4*('COM-Appliance class'!$J50/'Volume per connection'!$J$69)","v":7168.7332726337563},{"$f":"AU$4*('COM-Appliance class'!$J50/'Volume per connection'!$J$69)","v":7177.6098361927279},{"$f":"AV$4*('COM-Appliance class'!$J50/'Volume per connection'!$J$69)","v":7186.4745814727339},{"$f":"AW$4*('COM-Appliance class'!$J50/'Volume per connection'!$J$69)","v":7195.3275810431396},{"$f":"AX$4*('COM-Appliance class'!$J50/'Volume per connection'!$J$69)","v":7204.1689070233369},{"$f":"AY$4*('COM-Appliance class'!$J50/'Volume per connection'!$J$69)","v":7212.9986310855975},{"$f":"AZ$4*('COM-Appliance class'!$J50/'Volume per connection'!$J$69)","v":7221.8168244578656},{"$f":"BA$4*('COM-Appliance class'!$J50/'Volume per connection'!$J$69)","v":7230.6235579265849},{"$f":"BB$4*('COM-Appliance class'!$J50/'Volume per connection'!$J$69)","v":7239.4189018394291},{"$f":"BC$4*('COM-Appliance class'!$J50/'Volume per connection'!$J$69)","v":7248.2029261081216},{"$f":"BD$4*('COM-Appliance class'!$J50/'Volume per connection'!$J$69)","v":7256.9757002111219},{"$f":"BE$4*('COM-Appliance class'!$J50/'Volume per connection'!$J$69)","v":7265.7372931964037},{"$f":"BF$4*('COM-Appliance class'!$J50/'Volume per connection'!$J$69)","v":7274.4877736841199},{"$f":"BG$4*('COM-Appliance class'!$J50/'Volume per connection'!$J$69)","v":7283.2272098693174},{"$f":"BH$4*('COM-Appliance class'!$J50/'Volume per connection'!$J$69)","v":7291.9556695246092},{"$f":"BI$4*('COM-Appliance class'!$J50/'Volume per connection'!$J$69)","v":7300.6732200028346},{"$f":"BJ$4*('COM-Appliance class'!$J50/'Volume per connection'!$J$69)","v":7309.3799282396776},{"$f":"BK$4*('COM-Appliance class'!$J50/'Volume per connection'!$J$69)","v":7318.0758607563275},{"$f":"BL$4*('COM-Appliance class'!$J50/'Volume per connection'!$J$69)","v":7326.7610836620479},{"$f":"BM$4*('COM-Appliance class'!$J50/'Volume per connection'!$J$69)","v":7335.4356626568078},{"$f":"BN$4*('COM-Appliance class'!$J50/'Volume per connection'!$J$69)","v":7344.0996630338059},{"$f":"BO$4*('COM-Appliance class'!$J50/'Volume per connection'!$J$69)","v":7352.753149682082},{"$f":"BP$4*('COM-Appliance class'!$J50/'Volume per connection'!$J$69)","v":7361.3961870890107},{"$f":"BQ$4*('COM-Appliance class'!$J50/'Volume per connection'!$J$69)","v":7370.0288393428691},{"$f":"BR$4*('COM-Appliance class'!$J50/'Volume per connection'!$J$69)","v":7378.6511701353074},{"$f":"BS$4*('COM-Appliance class'!$J50/'Volume per connection'!$J$69)","v":7387.2632427638773},{"$f":"BT$4*('COM-Appliance class'!$J50/'Volume per connection'!$J$69)","v":7395.8651201344774},{"$f":"BU$4*('COM-Appliance class'!$J50/'Volume per connection'!$J$69)","v":7404.4568647638489},{"$f":"BV$4*('COM-Appliance class'!$J50/'Volume per connection'!$J$69)","v":7413.0385387819815},{"$f":"BW$4*('COM-Appliance class'!$J50/'Volume per connection'!$J$69)","v":7421.6102039345988},{"$f":"BX$4*('COM-Appliance class'!$J50/'Volume per connection'!$J$69)","v":7430.1719215854991},{"$f":"BY$4*('COM-Appliance class'!$J50/'Volume per connection'!$J$69)","v":7438.7237527190418},{"$f":"BZ$4*('COM-Appliance class'!$J50/'Volume per connection'!$J$69)","v":7447.2657579424504},{"$f":"CA$4*('COM-Appliance class'!$J50/'Volume per connection'!$J$69)","v":7455.7979974882555},{"$f":"CB$4*('COM-Appliance class'!$J50/'Volume per connection'!$J$69)","v":7464.3205312165819},{"$f":"CC$4*('COM-Appliance class'!$J50/'Volume per connection'!$J$69)","v":7472.8334186175498},{"$f":"CD$4*('COM-Appliance class'!$J50/'Volume per connection'!$J$69)","v":7481.3367188135435}]
["Casey (C)",null,{"$f":"C$4*('COM-Appliance class'!$J51/'Volume per connection'!$J$69)","v":2723.2281831652176},{"$f":"D$4*('COM-Appliance class'!$J51/'Volume per connection'!$J$69)","v":3347.1987484621282},{"$f":"E$4*('COM-Appliance class'!$J51/'Volume per connection'!$J$69)","v":2974.3923985201809},{"$f":"F$4*('COM-Appliance class'!$J51/'Volume per connection'!$J$69)","v":3308.678083409286},{"$f":"G$4*('COM-Appliance class'!$J51/'Volume per connection'!$J$69)","v":2913.0828231722571},{"$f":"H$4*('COM-Appliance class'!$J51/'Volume per connection'!$J$69)","v":2990.345646926377},{"$f":"I$4*('COM-Appliance class'!$J51/'Volume per connection'!$J$69)","v":3467.8897532133906},{"$f":"J$4*('COM-Appliance class'!$J51/'Volume per connection'!$J$69)","v":3816.1907591337867},{"$f":"K$4*('COM-Appliance class'!$J51/'Volume per connection'!$J$69)","v":4568.490079868614},{"$f":"L$4*('COM-Appliance class'!$J51/'Volume per connection'!$J$69)","v":4529.6792730165207},{"$f":"M$4*('COM-Appliance class'!$J51/'Volume per connection'!$J$69)","v":3680.5206992119729},{"$f":"N$4*('COM-Appliance class'!$J51/'Volume per connection'!$J$69)","v":3663.3361318271591},{"$f":"O$4*('COM-Appliance class'!$J51/'Volume per connection'!$J$69)","v":4168.8777059942395},{"$f":"P$4*('COM-Appliance class'!$J51/'Volume per connection'!$J$69)","v":4658.1746373553788},{"$f":"Q$4*('COM-Appliance class'!$J51/'Volume per connection'!$J$69)","v":3243.6056470788526},{"$f":"R$4*('COM-Appliance class'!$J51/'Volume per connection'!$J$69)","v":3445.4642481265296},{"$f":"S$4*('COM-Appliance class'!$J51/'Volume per connection'!$J$69)","v":3744.9815420486866},{"$f":"T$4*('COM-Appliance class'!$J51/'Volume per connection'!$J$69)","v":4183.4358978840392},{"$f":"U$4*('COM-Appliance class'!$J51/'Volume per connection'!$J$69)","v":4509.7059546701894},{"$f":"V$4*('COM-Appliance class'!$J51/'Volume per connection'!$J$69)","v":4629.4277947105948},{"$f":"W$4*('COM-Appliance class'!$J51/'Volume per connection'!$J$69)","v":4824.4802950274243},{"$f":"X$4*('COM-Appliance class'!$J51/'Volume per connection'!$J$69)","v":5307.7316078852891},{"$f":"Y$4*('COM-Appliance class'!$J51/'Volume per connection'!$J$69)","v":5709.2460849370318},{"$f":"Z$4*('COM-Appliance class'!$J51/'Volume per connection'!$J$69)","v":5935.9317155733615},{"$f":"AA$4*('COM-Appliance class'!$J51/'Volume per connection'!$J$69)","v":6193.5199633166221},{"$f":"AB$4*('COM-Appliance class'!$J51/'Volume per connection'!$J$69)","v":6355.1356980919481},{"$f":"AC$4*('COM-Appliance class'!$J51/'Volume per connection'!$J$69)","v":6472.1191612013827},{"$f":"AD$4*('COM-Appliance class'!$J51/'Volume per connection'!$J$69)","v":6555.8796097987761},{"$f":"AE$4*('COM-Appliance class'!$J51/'Volume per connection'!$J$69)","v":6626.0742678991446},{"$f":"AF$4*('COM-Appliance class'!$J51/'Volume per connection'!$J$69)","v":6756.6970747976129},{"$f":"AG$4*('COM-Appliance class'!$J51/'Volume per connection'!$J$69)","v":6762.9726064109846},{"$f":"AH$4*('COM-Appliance class'!$J51/'Volume per connection'!$J$69)","v":6899.9989788846469},{"$f":"AI$4*('COM-Appliance class'!$J51/'Volume per connection'!$J$69)","v":6908.8170931120931},{"$f":"AJ$4*('COM-Appliance class'!$J51/'Volume per connection'!$J$69)","v":6917.6227726974585},{"$f":"AK$4*('COM-Appliance class'!$J51/'Volume per connection'!$J$69)","v":6926.4160940514012},{"$f":"AL$4*('COM-Appliance class'!$J51/'Volume per connection'!$J$69)","v":6935.1971331102659},{"$f":"AM$4*('COM-Appliance class'!$J51/'Volume per connection'!$J$69)","v":6943.9659653390918},{"$f":"AN$4*('COM-Appliance class'!$J51/'Volume per connection'!$J$69)","v":6952.72266573454},{"$f":"AO$4*('COM-Appliance class'!$J51/'Volume per connection'!$J$69)","v":6961.4673088278932},{"$f":"AP$4*('COM-Appliance class'!$J51/'Volume per connection'!$J$69)","v":6970.199968687939},{"$f":"AQ$4*('COM-Appliance class'!$J51/'Volume per connection'!$J$69)","v":6978.9207189239269},{"$f":"AR$4*('COM-Appliance class'!$J51/'Volume per connection'!$J$69)","v":6987.6296326884212},{"$f":"AS$4*('COM-Appliance class'!$J51/'Volume per connection'!$J$69)","v":6996.3267826802121},{"$f":"AT$4*('COM-Appliance class'!$J51/'Volume per connection'!$J$69)","v":7005.0122411471348},{"$f":"AU$4*('COM-Appliance class'!$J51/'Volume per connection'!$J$69)","v":7013.686079888952},{"$f":"AV$4*('COM-Appliance class'!$J51/'Volume per connection'!$J$69)","v":7022.3483702601316},{"$f":"AW$4*('COM-Appliance class'!$J51/'Volume per connection'!$J$69)","v":7030.9991831726857},{"$f":"AX$4*('COM-Appliance class'!$J51/'Volume per connection'!$J$69)","v":7039.6385890989304},{"$f":"AY$4*('COM-Appliance class'!$J51/'Volume per connection'!$J$69)","v":7048.2666580742689},{"$f":"AZ$4*('COM-Appliance class'!$J51/'Volume per connection'!$J$69)","v":7056.8834596999268},{"$f":"BA$4*('COM-Appliance class'!$J51/'Volume per connection'!$J$69)","v":7065.4890631457138},{"$f":"BB$4*('COM-Appliance class'!$J51/'Volume per connection'!$J$69)","v":7074.0835371526855},{"$f":"BC$4*('COM-Appliance class'!$J51/'Volume per connection'!$J$69)","v":7082.6669500359103},{"$f":"BD$4*('COM-Appliance class'!$J51/'Volume per connection'!$J$69)","v":7091.2393696870822},{"$f":"BE$4*('COM-Appliance class'!$J51/'Volume per connection'!$J$69)","v":7099.8008635772439},{"$f":"BF$4*('COM-Appliance class'!$J51/'Volume per connection'!$J$69)","v":7108.3514987593853},{"$f":"BG$4*('COM-Appliance class'!$J51/'Volume per connection'!$J$69)","v":7116.8913418711008},{"$f":"BH$4*('COM-Appliance class'!$J51/'Volume per connection'!$J$69)","v":7125.4204591371999},{"$f":"BI$4*('COM-Appliance class'!$J51/'Volume per connection'!$J$69)","v":7133.9389163723026},{"$f":"BJ$4*('COM-Appliance class'!$J51/'Volume per connection'!$J$69)","v":7142.4467789834016},{"$f":"BK$4*('COM-Appliance class'!$J51/'Volume per connection'!$J$69)","v":7150.9441119724615},{"$f":"BL$4*('COM-Appliance class'!$J51/'Volume per connection'!$J$69)","v":7159.4309799389284},{"$f":"BM$4*('COM-Appliance class'!$J51/'Volume per connection'!$J$69)","v":7167.9074470823025},{"$f":"BN$4*('COM-Appliance class'!$J51/'Volume per connection'!$J$69)","v":7176.3735772046011},{"$f":"BO$4*('COM-Appliance class'!$J51/'Volume per connection'!$J$69)","v":7184.8294337129173},{"$f":"BP$4*('COM-Appliance class'!$J51/'Volume per connection'!$J$69)","v":7193.275079621847},{"$f":"BQ$4*('COM-Appliance class'!$J51/'Volume per connection'!$J$69)","v":7201.7105775560067},{"$f":"BR$4*('COM-Appliance class'!$J51/'Volume per connection'!$J$69)","v":7210.1359897524435},{"$f":"BS$4*('COM-Appliance class'!$J51/'Volume per connection'!$J$69)","v":7218.5513780631063},{"$f":"BT$4*('COM-Appliance class'!$J51/'Volume per connection'!$J$69)","v":7226.956803957235},{"$f":"BU$4*('COM-Appliance class'!$J51/'Volume per connection'!$J$69)","v":7235.3523285238016},{"$f":"BV$4*('COM-Appliance class'!$J51/'Volume per connection'!$J$69)","v":7243.7380124738575},{"$f":"BW$4*('COM-Appliance class'!$J51/'Volume per connection'!$J$69)","v":7252.1139161429637},{"$f":"BX$4*('COM-Appliance class'!$J51/'Volume per connection'!$J$69)","v":7260.4800994934794},{"$f":"BY$4*('COM-Appliance class'!$J51/'Volume per connection'!$J$69)","v":7268.8366221169927},{"$f":"BZ$4*('COM-Appliance class'!$J51/'Volume per connection'!$J$69)","v":7277.1835432365642},{"$f":"CA$4*('COM-Appliance class'!$J51/'Volume per connection'!$J$69)","v":7285.5209217091215},{"$f":"CB$4*('COM-Appliance class'!$J51/'Volume per connection'!$J$69)","v":7293.848816027692},{"$f":"CC$4*('COM-Appliance class'!$J51/'Volume per connection'!$J$69)","v":7302.1672843237484},{"$f":"CD$4*('COM-Appliance class'!$J51/'Volume per connection'!$J$69)","v":7310.4763843694245}]
["Frankston (C)",null,{"$f":"C$4*('COM-Appliance class'!$J52/'Volume per connection'!$J$69)","v":0},{"$f":"D$4*('COM-Appliance class'!$J52/'Volume per connection'!$J$69)","v":0},{"$f":"E$4*('COM-Appliance class'!$J52/'Volume per connection'!$J$69)","v":0},{"$f":"F$4*('COM-Appliance class'!$J52/'Volume per connection'!$J$69)","v":0},{"$f":"G$4*('COM-Appliance class'!$J52/'Volume per connection'!$J$69)","v":0},{"$f":"H$4*('COM-Appliance class'!$J52/'Volume per connection'!$J$69)","v":0},{"$f":"I$4*('COM-Appliance class'!$J52/'Volume per connection'!$J$69)","v":0},{"$f":"J$4*('COM-Appliance class'!$J52/'Volume per connection'!$J$69)","v":0},{"$f":"K$4*('COM-Appliance class'!$J52/'Volume per connection'!$J$69)","v":0},{"$f":"L$4*('COM-Appliance class'!$J52/'Volume per connection'!$J$69)","v":0},{"$f":"M$4*('COM-Appliance class'!$J52/'Volume per connection'!$J$69)","v":0},{"$f":"N$4*('COM-Appliance class'!$J52/'Volume per connection'!$J$69)","v":0},{"$f":"O$4*('COM-Appliance class'!$J52/'Volume per connection'!$J$69)","v":0},{"$f":"P$4*('COM-Appliance class'!$J52/'Volume per connection'!$J$69)","v":0},{"$f":"Q$4*('COM-Appliance class'!$J52/'Volume per connection'!$J$69)","v":0},{"$f":"R$4*('COM-Appliance class'!$J52/'Volume per connection'!$J$69)","v":0},{"$f":"S$4*('COM-Appliance class'!$J52/'Volume per connection'!$J$69)","v":0},{"$f":"T$4*('COM-Appliance class'!$J52/'Volume per connection'!$J$69)","v":0},{"$f":"U$4*('COM-Appliance class'!$J52/'Volume per connection'!$J$69)","v":0},{"$f":"V$4*('COM-Appliance class'!$J52/'Volume per connection'!$J$69)","v":0},{"$f":"W$4*('COM-Appliance class'!$J52/'Volume per connection'!$J$69)","v":0},{"$f":"X$4*('COM-Appliance class'!$J52/'Volume per connection'!$J$69)","v":0},{"$f":"Y$4*('COM-Appliance class'!$J52/'Volume per connection'!$J$69)","v":0},{"$f":"Z$4*('COM-Appliance class'!$J52/'Volume per connection'!$J$69)","v":0},{"$f":"AA$4*('COM-Appliance class'!$J52/'Volume per connection'!$J$69)","v":0},{"$f":"AB$4*('COM-Appliance class'!$J52/'Volume per connection'!$J$69)","v":0},{"$f":"AC$4*('COM-Appliance class'!$J52/'Volume per connection'!$J$69)","v":0},{"$f":"AD$4*('COM-Appliance class'!$J52/'Volume per connection'!$J$69)","v":0},{"$f":"AE$4*('COM-Appliance class'!$J52/'Volume per connection'!$J$69)","v":0},{"$f":"AF$4*('COM-Appliance class'!$J52/'Volume per connection'!$J$69)","v":0},{"$f":"AG$4*('COM-Appliance class'!$J52/'Volume per connection'!$J$69)","v":0},{"$f":"AH$4*('COM-Appliance class'!$J52/'Volume per connection'!$J$69)","v":0},{"$f":"AI$4*('COM-Appliance class'!$J52/'Volume per connection'!$J$69)","v":0},{"$f":"AJ$4*('COM-Appliance class'!$J52/'Volume per connection'!$J$69)","v":0},{"$f":"AK$4*('COM-Appliance class'!$J52/'Volume per connection'!$J$69)","v":0},{"$f":"AL$4*('COM-Appliance class'!$J52/'Volume per connection'!$J$69)","v":0},{"$f":"AM$4*('COM-Appliance class'!$J52/'Volume per connection'!$J$69)","v":0},{"$f":"AN$4*('COM-Appliance class'!$J52/'Volume per connection'!$J$69)","v":0},{"$f":"AO$4*('COM-Appliance class'!$J52/'Volume per connection'!$J$69)","v":0},{"$f":"AP$4*('COM-Appliance class'!$J52/'Volume per connection'!$J$69)","v":0},{"$f":"AQ$4*('COM-Appliance class'!$J52/'Volume per connection'!$J$69)","v":0},{"$f":"AR$4*('COM-Appliance class'!$J52/'Volume per connection'!$J$69)","v":0},{"$f":"AS$4*('COM-Appliance class'!$J52/'Volume per connection'!$J$69)","v":0},{"$f":"AT$4*('COM-Appliance class'!$J52/'Volume per connection'!$J$69)","v":0},{"$f":"AU$4*('COM-Appliance class'!$J52/'Volume per connection'!$J$69)","v":0},{"$f":"AV$4*('COM-Appliance class'!$J52/'Volume per connection'!$J$69)","v":0},{"$f":"AW$4*('COM-Appliance class'!$J52/'Volume per connection'!$J$69)","v":0},{"$f":"AX$4*('COM-Appliance class'!$J52/'Volume per connection'!$J$69)","v":0},{"$f":"AY$4*('COM-Appliance class'!$J52/'Volume per connection'!$J$69)","v":0},{"$f":"AZ$4*('COM-Appliance class'!$J52/'Volume per connection'!$J$69)","v":0},{"$f":"BA$4*('COM-Appliance class'!$J52/'Volume per connection'!$J$69)","v":0},{"$f":"BB$4*('COM-Appliance class'!$J52/'Volume per connection'!$J$69)","v":0},{"$f":"BC$4*('COM-Appliance class'!$J52/'Volume per connection'!$J$69)","v":0},{"$f":"BD$4*('COM-Appliance class'!$J52/'Volume per connection'!$J$69)","v":0},{"$f":"BE$4*('COM-Appliance class'!$J52/'Volume per connection'!$J$69)","v":0},{"$f":"BF$4*('COM-Appliance class'!$J52/'Volume per connection'!$J$69)","v":0},{"$f":"BG$4*('COM-Appliance class'!$J52/'Volume per connection'!$J$69)","v":0},{"$f":"BH$4*('COM-Appliance class'!$J52/'Volume per connection'!$J$69)","v":0},{"$f":"BI$4*('COM-Appliance class'!$J52/'Volume per connection'!$J$69)","v":0},{"$f":"BJ$4*('COM-Appliance class'!$J52/'Volume per connection'!$J$69)","v":0},{"$f":"BK$4*('COM-Appliance class'!$J52/'Volume per connection'!$J$69)","v":0},{"$f":"BL$4*('COM-Appliance class'!$J52/'Volume per connection'!$J$69)","v":0},{"$f":"BM$4*('COM-Appliance class'!$J52/'Volume per connection'!$J$69)","v":0},{"$f":"BN$4*('COM-Appliance class'!$J52/'Volume per connection'!$J$69)","v":0},{"$f":"BO$4*('COM-Appliance class'!$J52/'Volume per connection'!$J$69)","v":0},{"$f":"BP$4*('COM-Appliance class'!$J52/'Volume per connection'!$J$69)","v":0},{"$f":"BQ$4*('COM-Appliance class'!$J52/'Volume per connection'!$J$69)","v":0},{"$f":"BR$4*('COM-Appliance class'!$J52/'Volume per connection'!$J$69)","v":0},{"$f":"BS$4*('COM-Appliance class'!$J52/'Volume per connection'!$J$69)","v":0},{"$f":"BT$4*('COM-Appliance class'!$J52/'Volume per connection'!$J$69)","v":0},{"$f":"BU$4*('COM-Appliance class'!$J52/'Volume per connection'!$J$69)","v":0},{"$f":"BV$4*('COM-Appliance class'!$J52/'Volume per connection'!$J$69)","v":0},{"$f":"BW$4*('COM-Appliance class'!$J52/'Volume per connection'!$J$69)","v":0},{"$f":"BX$4*('COM-Appliance class'!$J52/'Volume per connection'!$J$69)","v":0},{"$f":"BY$4*('COM-Appliance class'!$J52/'Volume per connection'!$J$69)","v":0},{"$f":"BZ$4*('COM-Appliance class'!$J52/'Volume per connection'!$J$69)","v":0},{"$f":"CA$4*('COM-Appliance class'!$J52/'Volume per connection'!$J$69)","v":0},{"$f":"CB$4*('COM-Appliance class'!$J52/'Volume per connection'!$J$69)","v":0},{"$f":"CC$4*('COM-Appliance class'!$J52/'Volume per connection'!$J$69)","v":0},{"$f":"CD$4*('COM-Appliance class'!$J52/'Volume per connection'!$J$69)","v":0}]
["Glen Eira (C)",null,{"$f":"C$4*('COM-Appliance class'!$J53/'Volume per connection'!$J$69)","v":2583.9858670970762},{"$f":"D$4*('COM-Appliance class'!$J53/'Volume per connection'!$J$69)","v":3176.0519789929112},{"$f":"E$4*('COM-Appliance class'!$J53/'Volume per connection'!$J$69)","v":2822.3077186443861},{"$f":"F$4*('COM-Appliance class'!$J53/'Volume per connection'!$J$69)","v":3139.5009273024752},{"$f":"G$4*('COM-Appliance class'!$J53/'Volume per connection'!$J$69)","v":2764.1329842625528},{"$f":"H$4*('COM-Appliance class'!$J53/'Volume per connection'!$J$69)","v":2837.4452560240061},{"$f":"I$4*('COM-Appliance class'!$J53/'Volume per connection'!$J$69)","v":3290.5718905048902},{"$f":"J$4*('COM-Appliance class'!$J53/'Volume per connection'!$J$69)","v":3621.0637979982685},{"$f":"K$4*('COM-Appliance class'!$J53/'Volume per connection'!$J$69)","v":4334.8970436376712},{"$f":"L$4*('COM-Appliance class'!$J53/'Volume per connection'!$J$69)","v":4298.0706854880291},{"$f":"M$4*('COM-Appliance class'!$J53/'Volume per connection'!$J$69)","v":3492.3307305332009},{"$f":"N$4*('COM-Appliance class'!$J53/'Volume per connection'!$J$69)","v":3476.0248331687999},{"$f":"O$4*('COM-Appliance class'!$J53/'Volume per connection'!$J$69)","v":3955.7173873782722},{"$f":"P$4*('COM-Appliance class'!$J53/'Volume per connection'!$J$69)","v":4419.9959091955698},{"$f":"Q$4*('COM-Appliance class'!$J53/'Volume per connection'!$J$69)","v":3077.7557320761325},{"$f":"R$4*('COM-Appliance class'!$J53/'Volume per connection'!$J$69)","v":3269.2930316251286},{"$f":"S$4*('COM-Appliance class'!$J53/'Volume per connection'!$J$69)","v":3553.4956038629243},{"$f":"T$4*('COM-Appliance class'!$J53/'Volume per connection'!$J$69)","v":3969.5311993556456},{"$f":"U$4*('COM-Appliance class'!$J53/'Volume per connection'!$J$69)","v":4279.1186297458762},{"$f":"V$4*('COM-Appliance class'!$J53/'Volume per connection'!$J$69)","v":4392.7189312408809},{"$f":"W$4*('COM-Appliance class'!$J53/'Volume per connection'!$J$69)","v":4577.7981351344079},{"$f":"X$4*('COM-Appliance class'!$J53/'Volume per connection'!$J$69)","v":5036.3401590456924},{"$f":"Y$4*('COM-Appliance class'!$J53/'Volume per connection'!$J$69)","v":5417.3246613912424},{"$f":"Z$4*('COM-Appliance class'!$J53/'Volume per connection'!$J$69)","v":5632.4195511472099},{"$f":"AA$4*('COM-Appliance class'!$J53/'Volume per connection'!$J$69)","v":5876.8369656751584},{"$f":"AB$4*('COM-Appliance class'!$J53/'Volume per connection'!$J$69)","v":6030.189070776597},{"$f":"AC$4*('COM-Appliance class'!$J53/'Volume per connection'!$J$69)","v":6141.1910122325298},{"$f":"AD$4*('COM-Appliance class'!$J53/'Volume per connection'!$J$69)","v":6220.6686765484919},{"$f":"AE$4*('COM-Appliance class'!$J53/'Volume per connection'!$J$69)","v":6287.2741874632047},{"$f":"AF$4*('COM-Appliance class'!$J53/'Volume per connection'!$J$69)","v":6411.218074733747},{"$f":"AG$4*('COM-Appliance class'!$J53/'Volume per connection'!$J$69)","v":6417.1727299836148},{"$f":"AH$4*('COM-Appliance class'!$J53/'Volume per connection'!$J$69)","v":6547.1927599173468},{"$f":"AI$4*('COM-Appliance class'!$J53/'Volume per connection'!$J$69)","v":6555.5599921158928},{"$f":"AJ$4*('COM-Appliance class'!$J53/'Volume per connection'!$J$69)","v":6563.9154254723162},{"$f":"AK$4*('COM-Appliance class'!$J53/'Volume per connection'!$J$69)","v":6572.2591324902933},{"$f":"AL$4*('COM-Appliance class'!$J53/'Volume per connection'!$J$69)","v":6580.591185223444},{"$f":"AM$4*('COM-Appliance class'!$J53/'Volume per connection'!$J$69)","v":6588.911655278177},{"$f":"AN$4*('COM-Appliance class'!$J53/'Volume per connection'!$J$69)","v":6597.2206138164738},{"$f":"AO$4*('COM-Appliance class'!$J53/'Volume per connection'!$J$69)","v":6605.5181315587324},{"$f":"AP$4*('COM-Appliance class'!$J53/'Volume per connection'!$J$69)","v":6613.8042787865043},{"$f":"AQ$4*('COM-Appliance class'!$J53/'Volume per connection'!$J$69)","v":6622.079125345299},{"$f":"AR$4*('COM-Appliance class'!$J53/'Volume per connection'!$J$69)","v":6630.3427406472911},{"$f":"AS$4*('COM-Appliance class'!$J53/'Volume per connection'!$J$69)","v":6638.5951936740848},{"$f":"AT$4*('COM-Appliance class'!$J53/'Volume per connection'!$J$69)","v":6646.8365529793855},{"$f":"AU$4*('COM-Appliance class'!$J53/'Volume per connection'!$J$69)","v":6655.0668866917385},{"$f":"AV$4*('COM-Appliance class'!$J53/'Volume per connection'!$J$69)","v":6663.286262517161},{"$f":"AW$4*('COM-Appliance class'!$J53/'Volume per connection'!$J$69)","v":6671.4947477418409},{"$f":"AX$4*('COM-Appliance class'!$J53/'Volume per connection'!$J$69)","v":6679.6924092347472},{"$f":"AY$4*('COM-Appliance class'!$J53/'Volume per connection'!$J$69)","v":6687.8793134502803},{"$f":"AZ$4*('COM-Appliance class'!$J53/'Volume per connection'!$J$69)","v":6696.0555264308605},{"$f":"BA$4*('COM-Appliance class'!$J53/'Volume per connection'!$J$69)","v":6704.2211138095536},{"$f":"BB$4*('COM-Appliance class'!$J53/'Volume per connection'!$J$69)","v":6712.3761408125929},{"$f":"BC$4*('COM-Appliance class'!$J53/'Volume per connection'!$J$69)","v":6720.5206722620042},{"$f":"BD$4*('COM-Appliance class'!$J53/'Volume per connection'!$J$69)","v":6728.6547725780874},{"$f":"BE$4*('COM-Appliance class'!$J53/'Volume per connection'!$J$69)","v":6736.7785057820029},{"$f":"BF$4*('COM-Appliance class'!$J53/'Volume per connection'!$J$69)","v":6744.8919354982281},{"$f":"BG$4*('COM-Appliance class'!$J53/'Volume per connection'!$J$69)","v":6752.9951249570904},{"$f":"BH$4*('COM-Appliance class'!$J53/'Volume per connection'!$J$69)","v":6761.0881369972331},{"$f":"BI$4*('COM-Appliance class'!$J53/'Volume per connection'!$J$69)","v":6769.1710340680884},{"$f":"BJ$4*('COM-Appliance class'!$J53/'Volume per connection'!$J$69)","v":6777.2438782323006},{"$f":"BK$4*('COM-Appliance class'!$J53/'Volume per connection'!$J$69)","v":6785.3067311681971},{"$f":"BL$4*('COM-Appliance class'!$J53/'Volume per connection'!$J$69)","v":6793.3596541721663},{"$f":"BM$4*('COM-Appliance class'!$J53/'Volume per connection'!$J$69)","v":6801.402708161103},{"$f":"BN$4*('COM-Appliance class'!$J53/'Volume per connection'!$J$69)","v":6809.4359536747415},{"$f":"BO$4*('COM-Appliance class'!$J53/'Volume per connection'!$J$69)","v":6817.4594508780829},{"$f":"BP$4*('COM-Appliance class'!$J53/'Volume per connection'!$J$69)","v":6825.4732595637051},{"$f":"BQ$4*('COM-Appliance class'!$J53/'Volume per connection'!$J$69)","v":6833.4774391541432},{"$f":"BR$4*('COM-Appliance class'!$J53/'Volume per connection'!$J$69)","v":6841.4720487041795},{"$f":"BS$4*('COM-Appliance class'!$J53/'Volume per connection'!$J$69)","v":6849.4571469031898},{"$f":"BT$4*('COM-Appliance class'!$J53/'Volume per connection'!$J$69)","v":6857.4327920774094},{"$f":"BU$4*('COM-Appliance class'!$J53/'Volume per connection'!$J$69)","v":6865.3990421922481},{"$f":"BV$4*('COM-Appliance class'!$J53/'Volume per connection'!$J$69)","v":6873.3559548545218},{"$f":"BW$4*('COM-Appliance class'!$J53/'Volume per connection'!$J$69)","v":6881.3035873147519},{"$f":"BX$4*('COM-Appliance class'!$J53/'Volume per connection'!$J$69)","v":6889.2419964693418},{"$f":"BY$4*('COM-Appliance class'!$J53/'Volume per connection'!$J$69)","v":6897.1712388628812},{"$f":"BZ$4*('COM-Appliance class'!$J53/'Volume per connection'!$J$69)","v":6905.0913706902766},{"$f":"CA$4*('COM-Appliance class'!$J53/'Volume per connection'!$J$69)","v":6913.002447799021},{"$f":"CB$4*('COM-Appliance class'!$J53/'Volume per connection'!$J$69)","v":6920.9045256913168},{"$f":"CC$4*('COM-Appliance class'!$J53/'Volume per connection'!$J$69)","v":6928.7976595262935},{"$f":"CD$4*('COM-Appliance class'!$J53/'Volume per connection'!$J$69)","v":6936.6819041221206}]
["Greater Dandenong (C)",null,{"$f":"C$4*('COM-Appliance class'!$J54/'Volume per connection'!$J$69)","v":2875.6338786321153},{"$f":"D$4*('COM-Appliance class'!$J54/'Volume per connection'!$J$69)","v":3534.5250093604609},{"$f":"E$4*('COM-Appliance class'!$J54/'Volume per connection'!$J$69)","v":3140.8545205304763},{"$f":"F$4*('COM-Appliance class'!$J54/'Volume per connection'!$J$69)","v":3493.8485320317623},{"$f":"G$4*('COM-Appliance class'!$J54/'Volume per connection'!$J$69)","v":3076.1137496156716},{"$f":"H$4*('COM-Appliance class'!$J54/'Volume per connection'!$J$69)","v":3157.7005938322618},{"$f":"I$4*('COM-Appliance class'!$J54/'Volume per connection'!$J$69)","v":3661.9704963947088},{"$f":"J$4*('COM-Appliance class'!$J54/'Volume per connection'!$J$69)","v":4029.7641975535257},{"$f":"K$4*('COM-Appliance class'!$J54/'Volume per connection'!$J$69)","v":4824.1660133655751},{"$f":"L$4*('COM-Appliance class'!$J54/'Volume per connection'!$J$69)","v":4783.1831564273043},{"$f":"M$4*('COM-Appliance class'!$J54/'Volume per connection'!$J$69)","v":3886.5013512599185},{"$f":"N$4*('COM-Appliance class'!$J54/'Volume per connection'!$J$69)","v":3868.3550481087923},{"$f":"O$4*('COM-Appliance class'!$J54/'Volume per connection'!$J$69)","v":4402.1892992078556},{"$f":"P$4*('COM-Appliance class'!$J54/'Volume per connection'!$J$69)","v":4918.8697746931739},{"$f":"Q$4*('COM-Appliance class'!$J54/'Volume per connection'!$J$69)","v":3425.1343113014855},{"$f":"R$4*('COM-Appliance class'!$J54/'Volume per connection'!$J$69)","v":3638.2899460200201},{"$f":"S$4*('COM-Appliance class'!$J54/'Volume per connection'!$J$69)","v":3954.5697506149008},{"$f":"T$4*('COM-Appliance class'!$J54/'Volume per connection'!$J$69)","v":4417.56224153738},{"$f":"U$4*('COM-Appliance class'!$J54/'Volume per connection'!$J$69)","v":4762.0920296313643},{"$f":"V$4*('COM-Appliance class'!$J54/'Volume per connection'!$J$69)","v":4888.5141125697874},{"$f":"W$4*('COM-Appliance class'!$J54/'Volume per connection'!$J$69)","v":5094.4827425547492},{"$f":"X$4*('COM-Appliance class'!$J54/'Volume per connection'!$J$69)","v":5604.7792559862173},{"$f":"Y$4*('COM-Appliance class'!$J54/'Volume per connection'!$J$69)","v":6028.7645246864122},{"$f":"Z$4*('COM-Appliance class'!$J54/'Volume per connection'!$J$69)","v":6268.1366358031728},{"$f":"AA$4*('COM-Appliance class'!$J54/'Volume per connection'!$J$69)","v":6540.1408316054685},{"$f":"AB$4*('COM-Appliance class'!$J54/'Volume per connection'!$J$69)","v":6710.8014046389671},{"$f":"AC$4*('COM-Appliance class'!$J54/'Volume per connection'!$J$69)","v":6834.3318571500013},{"$f":"AD$4*('COM-Appliance class'!$J54/'Volume per connection'!$J$69)","v":6922.7799663334672},{"$f":"AE$4*('COM-Appliance class'!$J54/'Volume per connection'!$J$69)","v":6996.9030744080173},{"$f":"AF$4*('COM-Appliance class'!$J54/'Volume per connection'!$J$69)","v":7134.836197736181},{"$f":"AG$4*('COM-Appliance class'!$J54/'Volume per connection'!$J$69)","v":7141.4629400067688},{"$f":"AH$4*('COM-Appliance class'!$J54/'Volume per connection'!$J$69)","v":7286.1580049988379},{"$f":"AI$4*('COM-Appliance class'!$J54/'Volume per connection'!$J$69)","v":7295.4696257344231},{"$f":"AJ$4*('COM-Appliance class'!$J54/'Volume per connection'!$J$69)","v":7304.7681159221338},{"$f":"AK$4*('COM-Appliance class'!$J54/'Volume per connection'!$J$69)","v":7314.053556248954},{"$f":"AL$4*('COM-Appliance class'!$J54/'Volume per connection'!$J$69)","v":7323.3260269010152},{"$f":"AM$4*('COM-Appliance class'!$J54/'Volume per connection'!$J$69)","v":7332.5856075667616},{"$f":"AN$4*('COM-Appliance class'!$J54/'Volume per connection'!$J$69)","v":7341.8323774400487},{"$f":"AO$4*('COM-Appliance class'!$J54/'Volume per connection'!$J$69)","v":7351.0664152233121},{"$f":"AP$4*('COM-Appliance class'!$J54/'Volume per connection'!$J$69)","v":7360.2877991306013},{"$f":"AQ$4*('COM-Appliance class'!$J54/'Volume per connection'!$J$69)","v":7369.496606890717},{"$f":"AR$4*('COM-Appliance class'!$J54/'Volume per connection'!$J$69)","v":7378.6929157502109},{"$f":"AS$4*('COM-Appliance class'!$J54/'Volume per connection'!$J$69)","v":7387.8768024764677},{"$f":"AT$4*('COM-Appliance class'!$J54/'Volume per connection'!$J$69)","v":7397.0483433606787},{"$f":"AU$4*('COM-Appliance class'!$J54/'Volume per connection'!$J$69)","v":7406.2076142208853},{"$f":"AV$4*('COM-Appliance class'!$J54/'Volume per connection'!$J$69)","v":7415.3546904049163},{"$f":"AW$4*('COM-Appliance class'!$J54/'Volume per connection'!$J$69)","v":7424.4896467933804},{"$f":"AX$4*('COM-Appliance class'!$J54/'Volume per connection'!$J$69)","v":7433.6125578025813},{"$f":"AY$4*('COM-Appliance class'!$J54/'Volume per connection'!$J$69)","v":7442.7234973874602},{"$f":"AZ$4*('COM-Appliance class'!$J54/'Volume per connection'!$J$69)","v":7451.8225390444813},{"$f":"BA$4*('COM-Appliance class'!$J54/'Volume per connection'!$J$69)","v":7460.9097558145477},{"$f":"BB$4*('COM-Appliance class'!$J54/'Volume per connection'!$J$69)","v":7469.9852202858165},{"$f":"BC$4*('COM-Appliance class'!$J54/'Volume per connection'!$J$69)","v":7479.0490045966117},{"$f":"BD$4*('COM-Appliance class'!$J54/'Volume per connection'!$J$69)","v":7488.1011804381933},{"$f":"BE$4*('COM-Appliance class'!$J54/'Volume per connection'!$J$69)","v":7497.1418190576251},{"$f":"BF$4*('COM-Appliance class'!$J54/'Volume per connection'!$J$69)","v":7506.1709912605256},{"$f":"BG$4*('COM-Appliance class'!$J54/'Volume per connection'!$J$69)","v":7515.1887674138661},{"$f":"BH$4*('COM-Appliance class'!$J54/'Volume per connection'!$J$69)","v":7524.1952174487342},{"$f":"BI$4*('COM-Appliance class'!$J54/'Volume per connection'!$J$69)","v":7533.1904108630697},{"$f":"BJ$4*('COM-Appliance class'!$J54/'Volume per connection'!$J$69)","v":7542.1744167243723},{"$f":"BK$4*('COM-Appliance class'!$J54/'Volume per connection'!$J$69)","v":7551.1473036724501},{"$f":"BL$4*('COM-Appliance class'!$J54/'Volume per connection'!$J$69)","v":7560.1091399220595},{"$f":"BM$4*('COM-Appliance class'!$J54/'Volume per connection'!$J$69)","v":7569.0599932656341},{"$f":"BN$4*('COM-Appliance class'!$J54/'Volume per connection'!$J$69)","v":7577.999931075874},{"$f":"BO$4*('COM-Appliance class'!$J54/'Volume per connection'!$J$69)","v":7586.9290203084556},{"$f":"BP$4*('COM-Appliance class'!$J54/'Volume per connection'!$J$69)","v":7595.8473275045944},{"$f":"BQ$4*('COM-Appliance class'!$J54/'Volume per connection'!$J$69)","v":7604.7549187936975},{"$f":"BR$4*('COM-Appliance class'!$J54/'Volume per connection'!$J$69)","v":7613.6518598959128},{"$f":"BS$4*('COM-Appliance class'!$J54/'Volume per connection'!$J$69)","v":7622.5382161247389},{"$f":"BT$4*('COM-Appliance class'!$J54/'Volume per connection'!$J$69)","v":7631.4140523895485},{"$f":"BU$4*('COM-Appliance class'!$J54/'Volume per connection'!$J$69)","v":7640.2794331981613},{"$f":"BV$4*('COM-Appliance class'!$J54/'Volume per connection'!$J$69)","v":7649.1344226593283},{"$f":"BW$4*('COM-Appliance class'!$J54/'Volume per connection'!$J$69)","v":7657.979084485296},{"$f":"BX$4*('COM-Appliance class'!$J54/'Volume per connection'!$J$69)","v":7666.8134819942225},{"$f":"BY$4*('COM-Appliance class'!$J54/'Volume per connection'!$J$69)","v":7675.6376781127419},{"$f":"BZ$4*('COM-Appliance class'!$J54/'Volume per connection'!$J$69)","v":7684.4517353783403},{"$f":"CA$4*('COM-Appliance class'!$J54/'Volume per connection'!$J$69)","v":7693.2557159418775},{"$f":"CB$4*('COM-Appliance class'!$J54/'Volume per connection'!$J$69)","v":7702.0496815699489},{"$f":"CC$4*('COM-Appliance class'!$J54/'Volume per connection'!$J$69)","v":7710.8336936473588},{"$f":"CD$4*('COM-Appliance class'!$J54/'Volume per connection'!$J$69)","v":7719.6078131794648}]
["Kingston (C)",null,{"$f":"C$4*('COM-Appliance class'!$J55/'Volume per connection'!$J$69)","v":2953.5678868989303},{"$f":"D$4*('COM-Appliance class'!$J55/'Volume per connection'!$J$69)","v":3630.3159594343256},{"$f":"E$4*('COM-Appliance class'!$J55/'Volume per connection'!$J$69)","v":3225.976407564413},{"$f":"F$4*('COM-Appliance class'!$J55/'Volume per connection'!$J$69)","v":3588.5370883190062},{"$f":"G$4*('COM-Appliance class'!$J55/'Volume per connection'!$J$69)","v":3159.4810642705702},{"$f":"H$4*('COM-Appliance class'!$J55/'Volume per connection'!$J$69)","v":3243.279034819649},{"$f":"I$4*('COM-Appliance class'!$J55/'Volume per connection'!$J$69)","v":3761.2154110757851},{"$f":"J$4*('COM-Appliance class'!$J55/'Volume per connection'!$J$69)","v":4138.976875363137},{"$f":"K$4*('COM-Appliance class'!$J55/'Volume per connection'!$J$69)","v":4954.9081766012368},{"$f":"L$4*('COM-Appliance class'!$J55/'Volume per connection'!$J$69)","v":4912.8146225275768},{"$f":"M$4*('COM-Appliance class'!$J55/'Volume per connection'!$J$69)","v":3991.8313902084642},{"$f":"N$4*('COM-Appliance class'!$J55/'Volume per connection'!$J$69)","v":3973.1932949170723},{"$f":"O$4*('COM-Appliance class'!$J55/'Volume per connection'!$J$69)","v":4521.4952580734343},{"$f":"P$4*('COM-Appliance class'!$J55/'Volume per connection'!$J$69)","v":5052.1785524666066},{"$f":"Q$4*('COM-Appliance class'!$J55/'Volume per connection'!$J$69)","v":3517.960608736435},{"$f":"R$4*('COM-Appliance class'!$J55/'Volume per connection'!$J$69)","v":3736.8930821275526},{"$f":"S$4*('COM-Appliance class'!$J55/'Volume per connection'!$J$69)","v":4061.7445456839869},{"$f":"T$4*('COM-Appliance class'!$J55/'Volume per connection'!$J$69)","v":4537.2848302888069},{"$f":"U$4*('COM-Appliance class'!$J55/'Volume per connection'!$J$69)","v":4891.1518944362551},{"$f":"V$4*('COM-Appliance class'!$J55/'Volume per connection'!$J$69)","v":5021.0002061898422},{"$f":"W$4*('COM-Appliance class'!$J55/'Volume per connection'!$J$69)","v":5232.5508961968499},{"$f":"X$4*('COM-Appliance class'!$J55/'Volume per connection'!$J$69)","v":5756.6772135514839},{"$f":"Y$4*('COM-Appliance class'!$J55/'Volume per connection'!$J$69)","v":6192.1531214743627},{"$f":"Z$4*('COM-Appliance class'!$J55/'Volume per connection'!$J$69)","v":6438.0125772511083},{"$f":"AA$4*('COM-Appliance class'!$J55/'Volume per connection'!$J$69)","v":6717.3884963460605},{"$f":"AB$4*('COM-Appliance class'!$J55/'Volume per connection'!$J$69)","v":6892.6742278910242},{"$f":"AC$4*('COM-Appliance class'!$J55/'Volume per connection'!$J$69)","v":7019.5525416783967},{"$f":"AD$4*('COM-Appliance class'!$J55/'Volume per connection'!$J$69)","v":7110.3977278067086},{"$f":"AE$4*('COM-Appliance class'!$J55/'Volume per connection'!$J$69)","v":7186.5296837253363},{"$f":"AF$4*('COM-Appliance class'!$J55/'Volume per connection'!$J$69)","v":7328.201002396655},{"$f":"AG$4*('COM-Appliance class'!$J55/'Volume per connection'!$J$69)","v":7335.0073393613857},{"$f":"AH$4*('COM-Appliance class'!$J55/'Volume per connection'!$J$69)","v":7483.6238584978973},{"$f":"AI$4*('COM-Appliance class'!$J55/'Volume per connection'!$J$69)","v":7493.1878381769402},{"$f":"AJ$4*('COM-Appliance class'!$J55/'Volume per connection'!$J$69)","v":7502.7383314504896},{"$f":"AK$4*('COM-Appliance class'!$J55/'Volume per connection'!$J$69)","v":7512.2754211922675},{"$f":"AL$4*('COM-Appliance class'!$J55/'Volume per connection'!$J$69)","v":7521.7991897615711},{"$f":"AM$4*('COM-Appliance class'!$J55/'Volume per connection'!$J$69)","v":7531.3097190065209},{"$f":"AN$4*('COM-Appliance class'!$J55/'Volume per connection'!$J$69)","v":7540.8070902672453},{"$f":"AO$4*('COM-Appliance class'!$J55/'Volume per connection'!$J$69)","v":7550.291384379133},{"$f":"AP$4*('COM-Appliance class'!$J55/'Volume per connection'!$J$69)","v":7559.7626816759557},{"$f":"AQ$4*('COM-Appliance class'!$J55/'Volume per connection'!$J$69)","v":7569.2210619930775},{"$f":"AR$4*('COM-Appliance class'!$J55/'Volume per connection'!$J$69)","v":7578.6666046705495},{"$f":"AS$4*('COM-Appliance class'!$J55/'Volume per connection'!$J$69)","v":7588.0993885562684},{"$f":"AT$4*('COM-Appliance class'!$J55/'Volume per connection'!$J$69)","v":7597.5194920090325},{"$f":"AU$4*('COM-Appliance class'!$J55/'Volume per connection'!$J$69)","v":7606.9269929016655},{"$f":"AV$4*('COM-Appliance class'!$J55/'Volume per connection'!$J$69)","v":7616.3219686240345},{"$f":"AW$4*('COM-Appliance class'!$J55/'Volume per connection'!$J$69)","v":7625.7044960861276},{"$f":"AX$4*('COM-Appliance class'!$J55/'Volume per connection'!$J$69)","v":7635.07465172104},{"$f":"AY$4*('COM-Appliance class'!$J55/'Volume per connection'!$J$69)","v":7644.4325114880057},{"$f":"AZ$4*('COM-Appliance class'!$J55/'Volume per connection'!$J$69)","v":7653.7781508753524},{"$f":"BA$4*('COM-Appliance class'!$J55/'Volume per connection'!$J$69)","v":7663.1116449035026},{"$f":"BB$4*('COM-Appliance class'!$J55/'Volume per connection'!$J$69)","v":7672.4330681278598},{"$f":"BC$4*('COM-Appliance class'!$J55/'Volume per connection'!$J$69)","v":7681.7424946418078},{"$f":"BD$4*('COM-Appliance class'!$J55/'Volume per connection'!$J$69)","v":7691.0399980795446},{"$f":"BE$4*('COM-Appliance class'!$J55/'Volume per connection'!$J$69)","v":7700.3256516190404},{"$f":"BF$4*('COM-Appliance class'!$J55/'Volume per connection'!$J$69)","v":7709.5995279848494},{"$f":"BG$4*('COM-Appliance class'!$J55/'Volume per connection'!$J$69)","v":7718.8616994509966},{"$f":"BH$4*('COM-Appliance class'!$J55/'Volume per connection'!$J$69)","v":7728.112237843804},{"$f":"BI$4*('COM-Appliance class'!$J55/'Volume per connection'!$J$69)","v":7737.3512145447121},{"$f":"BJ$4*('COM-Appliance class'!$J55/'Volume per connection'!$J$69)","v":7746.5787004930553},{"$f":"BK$4*('COM-Appliance class'!$J55/'Volume per connection'!$J$69)","v":7755.7947661888811},{"$f":"BL$4*('COM-Appliance class'!$J55/'Volume per connection'!$J$69)","v":7764.9994816956705},{"$f":"BM$4*('COM-Appliance class'!$J55/'Volume per connection'!$J$69)","v":7774.1929166431328},{"$f":"BN$4*('COM-Appliance class'!$J55/'Volume per connection'!$J$69)","v":7783.3751402298712},{"$f":"BO$4*('COM-Appliance class'!$J55/'Volume per connection'!$J$69)","v":7792.54622122616},{"$f":"BP$4*('COM-Appliance class'!$J55/'Volume per connection'!$J$69)","v":7801.7062279765832},{"$f":"BQ$4*('COM-Appliance class'!$J55/'Volume per connection'!$J$69)","v":7810.8552284027537},{"$f":"BR$4*('COM-Appliance class'!$J55/'Volume per connection'!$J$69)","v":7819.9932900059339},{"$f":"BS$4*('COM-Appliance class'!$J55/'Volume per connection'!$J$69)","v":7829.120479869719},{"$f":"BT$4*('COM-Appliance class'!$J55/'Volume per connection'!$J$69)","v":7838.2368646626201},{"$f":"BU$4*('COM-Appliance class'!$J55/'Volume per connection'!$J$69)","v":7847.3425106407176},{"$f":"BV$4*('COM-Appliance class'!$J55/'Volume per connection'!$J$69)","v":7856.4374836502075},{"$f":"BW$4*('COM-Appliance class'!$J55/'Volume per connection'!$J$69)","v":7865.521849130032},{"$f":"BX$4*('COM-Appliance class'!$J55/'Volume per connection'!$J$69)","v":7874.5956721143666},{"$f":"BY$4*('COM-Appliance class'!$J55/'Volume per connection'!$J$69)","v":7883.6590172352535},{"$f":"BZ$4*('COM-Appliance class'!$J55/'Volume per connection'!$J$69)","v":7892.7119487250375},{"$f":"CA$4*('COM-Appliance class'!$J55/'Volume per connection'!$J$69)","v":7901.7545304189616},{"$f":"CB$4*('COM-Appliance class'!$J55/'Volume per connection'!$J$69)","v":7910.7868257575883},{"$f":"CC$4*('COM-Appliance class'!$J55/'Volume per connection'!$J$69)","v":7919.8088977893422},{"$f":"CD$4*('COM-Appliance class'!$J55/'Volume per connection'!$J$69)","v":7928.8208091729175}]
["Knox (C)",null,{"$f":"C$4*('COM-Appliance class'!$J56/'Volume per connection'!$J$69)","v":2853.7673472930919},{"$f":"D$4*('COM-Appliance class'!$J56/'Volume per connection'!$J$69)","v":3507.648221442485},{"$f":"E$4*('COM-Appliance class'!$J56/'Volume per connection'!$J$69)","v":3116.9712319398009},{"$f":"F$4*('COM-Appliance class'!$J56/'Volume per connection'!$J$69)","v":3467.2810510366453},{"$f":"G$4*('COM-Appliance class'!$J56/'Volume per connection'!$J$69)","v":3052.722754604732},{"$f":"H$4*('COM-Appliance class'!$J56/'Volume per connection'!$J$69)","v":3133.6892064622079},{"$f":"I$4*('COM-Appliance class'!$J56/'Volume per connection'!$J$69)","v":3634.1246036275516},{"$f":"J$4*('COM-Appliance class'!$J56/'Volume per connection'!$J$69)","v":3999.1215744541641},{"$f":"K$4*('COM-Appliance class'!$J56/'Volume per connection'!$J$69)","v":4787.4827004794124},{"$f":"L$4*('COM-Appliance class'!$J56/'Volume per connection'!$J$69)","v":4746.8114801970678},{"$f":"M$4*('COM-Appliance class'!$J56/'Volume per connection'!$J$69)","v":3856.9481093719396},{"$f":"N$4*('COM-Appliance class'!$J56/'Volume per connection'!$J$69)","v":3838.9397920435181},{"$f":"O$4*('COM-Appliance class'!$J56/'Volume per connection'!$J$69)","v":4368.7147282665674},{"$f":"P$4*('COM-Appliance class'!$J56/'Volume per connection'!$J$69)","v":4881.4663274462428},{"$f":"Q$4*('COM-Appliance class'!$J56/'Volume per connection'!$J$69)","v":3399.0893382905037},{"$f":"R$4*('COM-Appliance class'!$J56/'Volume per connection'!$J$69)","v":3610.6241218981595},{"$f":"S$4*('COM-Appliance class'!$J56/'Volume per connection'!$J$69)","v":3924.498911615985},{"$f":"T$4*('COM-Appliance class'!$J56/'Volume per connection'!$J$69)","v":4383.9707736128839},{"$f":"U$4*('COM-Appliance class'!$J56/'Volume per connection'!$J$69)","v":4725.8807318792387},{"$f":"V$4*('COM-Appliance class'!$J56/'Volume per connection'!$J$69)","v":4851.3414920084333},{"$f":"W$4*('COM-Appliance class'!$J56/'Volume per connection'!$J$69)","v":5055.7439213946727},{"$f":"X$4*('COM-Appliance class'!$J56/'Volume per connection'!$J$69)","v":5562.1601026371036},{"$f":"Y$4*('COM-Appliance class'!$J56/'Volume per connection'!$J$69)","v":5982.9213561960769},{"$f":"Z$4*('COM-Appliance class'!$J56/'Volume per connection'!$J$69)","v":6220.4732641888177},{"$f":"AA$4*('COM-Appliance class'!$J56/'Volume per connection'!$J$69)","v":6490.4091200970634},{"$f":"AB$4*('COM-Appliance class'!$J56/'Volume per connection'!$J$69)","v":6659.771977591633},{"$f":"AC$4*('COM-Appliance class'!$J56/'Volume per connection'!$J$69)","v":6782.363095463711},{"$f":"AD$4*('COM-Appliance class'!$J56/'Volume per connection'!$J$69)","v":6870.1386387250295},{"$f":"AE$4*('COM-Appliance class'!$J56/'Volume per connection'!$J$69)","v":6943.6981092385886},{"$f":"AF$4*('COM-Appliance class'!$J56/'Volume per connection'!$J$69)","v":7080.582378960471},{"$f":"AG$4*('COM-Appliance class'!$J56/'Volume per connection'!$J$69)","v":7087.1587309958441},{"$f":"AH$4*('COM-Appliance class'!$J56/'Volume per connection'!$J$69)","v":7230.7535240802972},{"$f":"AI$4*('COM-Appliance class'!$J56/'Volume per connection'!$J$69)","v":7239.9943385675124},{"$f":"AJ$4*('COM-Appliance class'!$J56/'Volume per connection'!$J$69)","v":7249.222122352503},{"$f":"AK$4*('COM-Appliance class'!$J56/'Volume per connection'!$J$69)","v":7258.436955508706},{"$f":"AL$4*('COM-Appliance class'!$J56/'Volume per connection'!$J$69)","v":7267.6389176125085},{"$f":"AM$4*('COM-Appliance class'!$J56/'Volume per connection'!$J$69)","v":7276.8280877464003},{"$f":"AN$4*('COM-Appliance class'!$J56/'Volume per connection'!$J$69)","v":7286.0045445020414},{"$f":"AO$4*('COM-Appliance class'!$J56/'Volume per connection'!$J$69)","v":7295.1683659834043},{"$f":"AP$4*('COM-Appliance class'!$J56/'Volume per connection'!$J$69)","v":7304.3196298097982},{"$f":"AQ$4*('COM-Appliance class'!$J56/'Volume per connection'!$J$69)","v":7313.458413118964},{"$f":"AR$4*('COM-Appliance class'!$J56/'Volume per connection'!$J$69)","v":7322.5847925700682},{"$f":"AS$4*('COM-Appliance class'!$J56/'Volume per connection'!$J$69)","v":7331.698844346749},{"$f":"AT$4*('COM-Appliance class'!$J56/'Volume per connection'!$J$69)","v":7340.8006441600737},{"$f":"AU$4*('COM-Appliance class'!$J56/'Volume per connection'!$J$69)","v":7349.8902672515587},{"$f":"AV$4*('COM-Appliance class'!$J56/'Volume per connection'!$J$69)","v":7358.9677883960821},{"$f":"AW$4*('COM-Appliance class'!$J56/'Volume per connection'!$J$69)","v":7368.0332819048544},{"$f":"AX$4*('COM-Appliance class'!$J56/'Volume per connection'!$J$69)","v":7377.0868216283125},{"$f":"AY$4*('COM-Appliance class'!$J56/'Volume per connection'!$J$69)","v":7386.1284809590397},{"$f":"AZ$4*('COM-Appliance class'!$J56/'Volume per connection'!$J$69)","v":7395.158332834626},{"$f":"BA$4*('COM-Appliance class'!$J56/'Volume per connection'!$J$69)","v":7404.1764497405675},{"$f":"BB$4*('COM-Appliance class'!$J56/'Volume per connection'!$J$69)","v":7413.1829037130537},{"$f":"BC$4*('COM-Appliance class'!$J56/'Volume per connection'!$J$69)","v":7422.1777663418661},{"$f":"BD$4*('COM-Appliance class'!$J56/'Volume per connection'!$J$69)","v":7431.161108773118},{"$f":"BE$4*('COM-Appliance class'!$J56/'Volume per connection'!$J$69)","v":7440.1330017121054},{"$f":"BF$4*('COM-Appliance class'!$J56/'Volume per connection'!$J$69)","v":7449.0935154260351},{"$f":"BG$4*('COM-Appliance class'!$J56/'Volume per connection'!$J$69)","v":7458.0427197468034},{"$f":"BH$4*('COM-Appliance class'!$J56/'Volume per connection'!$J$69)","v":7466.9806840737356},{"$f":"BI$4*('COM-Appliance class'!$J56/'Volume per connection'!$J$69)","v":7475.9074773763059},{"$f":"BJ$4*('COM-Appliance class'!$J56/'Volume per connection'!$J$69)","v":7484.8231681968182},{"$f":"BK$4*('COM-Appliance class'!$J56/'Volume per connection'!$J$69)","v":7493.7278246531396},{"$f":"BL$4*('COM-Appliance class'!$J56/'Volume per connection'!$J$69)","v":7502.6215144413154},{"$f":"BM$4*('COM-Appliance class'!$J56/'Volume per connection'!$J$69)","v":7511.5043048382813},{"$f":"BN$4*('COM-Appliance class'!$J56/'Volume per connection'!$J$69)","v":7520.3762627044298},{"$f":"BO$4*('COM-Appliance class'!$J56/'Volume per connection'!$J$69)","v":7529.2374544863014},{"$f":"BP$4*('COM-Appliance class'!$J56/'Volume per connection'!$J$69)","v":7538.0879462191278},{"$f":"BQ$4*('COM-Appliance class'!$J56/'Volume per connection'!$J$69)","v":7546.9278035294637},{"$f":"BR$4*('COM-Appliance class'!$J56/'Volume per connection'!$J$69)","v":7555.7570916377153},{"$f":"BS$4*('COM-Appliance class'!$J56/'Volume per connection'!$J$69)","v":7564.5758753607333},{"$f":"BT$4*('COM-Appliance class'!$J56/'Volume per connection'!$J$69)","v":7573.3842191143131},{"$f":"BU$4*('COM-Appliance class'!$J56/'Volume per connection'!$J$69)","v":7582.1821869157538},{"$f":"BV$4*('COM-Appliance class'!$J56/'Volume per connection'!$J$69)","v":7590.9698423863192},{"$f":"BW$4*('COM-Appliance class'!$J56/'Volume per connection'!$J$69)","v":7599.7472487537816},{"$f":"BX$4*('COM-Appliance class'!$J56/'Volume per connection'!$J$69)","v":7608.5144688548235},{"$f":"BY$4*('COM-Appliance class'!$J56/'Volume per connection'!$J$69)","v":7617.2715651375811},{"$f":"BZ$4*('COM-Appliance class'!$J56/'Volume per connection'!$J$69)","v":7626.0185996640002},{"$f":"CA$4*('COM-Appliance class'!$J56/'Volume per connection'!$J$69)","v":7634.7556341123418},{"$f":"CB$4*('COM-Appliance class'!$J56/'Volume per connection'!$J$69)","v":7643.4827297795227},{"$f":"CC$4*('COM-Appliance class'!$J56/'Volume per connection'!$J$69)","v":7652.1999475835719},{"$f":"CD$4*('COM-Appliance class'!$J56/'Volume per connection'!$J$69)","v":7660.907348065959}]
["Manningham (C)",null,{"$f":"C$4*('COM-Appliance class'!$J57/'Volume per connection'!$J$69)","v":3077.7028977931664},{"$f":"D$4*('COM-Appliance class'!$J57/'Volume per connection'!$J$69)","v":3782.8939019196946},{"$f":"E$4*('COM-Appliance class'!$J57/'Volume per connection'!$J$69)","v":3361.5604306281293},{"$f":"F$4*('COM-Appliance class'!$J57/'Volume per connection'!$J$69)","v":3739.3591136155228},{"$f":"G$4*('COM-Appliance class'!$J57/'Volume per connection'!$J$69)","v":3292.270365668734},{"$f":"H$4*('COM-Appliance class'!$J57/'Volume per connection'!$J$69)","v":3379.5902671113486},{"$f":"I$4*('COM-Appliance class'!$J57/'Volume per connection'!$J$69)","v":3919.2949047283505},{"$f":"J$4*('COM-Appliance class'!$J57/'Volume per connection'!$J$69)","v":4312.9332424380927},{"$f":"K$4*('COM-Appliance class'!$J57/'Volume per connection'!$J$69)","v":5163.1571839156168},{"$f":"L$4*('COM-Appliance class'!$J57/'Volume per connection'!$J$69)","v":5119.294486895662},{"$f":"M$4*('COM-Appliance class'!$J57/'Volume per connection'!$J$69)","v":4159.6034042899664},{"$f":"N$4*('COM-Appliance class'!$J57/'Volume per connection'!$J$69)","v":4140.1819716077844},{"$f":"O$4*('COM-Appliance class'!$J57/'Volume per connection'!$J$69)","v":4711.528426299843},{"$f":"P$4*('COM-Appliance class'!$J57/'Volume per connection'!$J$69)","v":5264.5157201450311},{"$f":"Q$4*('COM-Appliance class'!$J57/'Volume per connection'!$J$69)","v":3665.8163869726686},{"$f":"R$4*('COM-Appliance class'!$J57/'Volume per connection'!$J$69)","v":3893.9503366833446},{"$f":"S$4*('COM-Appliance class'!$J57/'Volume per connection'!$J$69)","v":4232.4549280877818},{"$f":"T$4*('COM-Appliance class'!$J57/'Volume per connection'!$J$69)","v":4727.9816158059039},{"$f":"U$4*('COM-Appliance class'!$J57/'Volume per connection'!$J$69)","v":5096.7212996273074},{"$f":"V$4*('COM-Appliance class'!$J57/'Volume per connection'!$J$69)","v":5232.0269843654896},{"$f":"W$4*('COM-Appliance class'!$J57/'Volume per connection'!$J$69)","v":5452.4689029524079},{"$f":"X$4*('COM-Appliance class'!$J57/'Volume per connection'!$J$69)","v":5998.6236376674051},{"$f":"Y$4*('COM-Appliance class'!$J57/'Volume per connection'!$J$69)","v":6452.4020897146174},{"$f":"Z$4*('COM-Appliance class'!$J57/'Volume per connection'!$J$69)","v":6708.5947314515279},{"$f":"AA$4*('COM-Appliance class'!$J57/'Volume per connection'!$J$69)","v":6999.7124943396329},{"$f":"AB$4*('COM-Appliance class'!$J57/'Volume per connection'!$J$69)","v":7182.3652805886559},{"$f":"AC$4*('COM-Appliance class'!$J57/'Volume per connection'!$J$69)","v":7314.5761418126731},{"$f":"AD$4*('COM-Appliance class'!$J57/'Volume per connection'!$J$69)","v":7409.2394450798347},{"$f":"AE$4*('COM-Appliance class'!$J57/'Volume per connection'!$J$69)","v":7488.5711382448208},{"$f":"AF$4*('COM-Appliance class'!$J57/'Volume per connection'!$J$69)","v":7636.1967370817229},{"$f":"AG$4*('COM-Appliance class'!$J57/'Volume per connection'!$J$69)","v":7643.2891364447523},{"$f":"AH$4*('COM-Appliance class'!$J57/'Volume per connection'!$J$69)","v":7798.1518344159904},{"$f":"AI$4*('COM-Appliance class'!$J57/'Volume per connection'!$J$69)","v":7808.1177769979067},{"$f":"AJ$4*('COM-Appliance class'!$J57/'Volume per connection'!$J$69)","v":7818.0696663564468},{"$f":"AK$4*('COM-Appliance class'!$J57/'Volume per connection'!$J$69)","v":7828.0075888484207},{"$f":"AL$4*('COM-Appliance class'!$J57/'Volume per connection'!$J$69)","v":7837.931630294589},{"$f":"AM$4*('COM-Appliance class'!$J57/'Volume per connection'!$J$69)","v":7847.8418759830538},{"$f":"AN$4*('COM-Appliance class'!$J57/'Volume per connection'!$J$69)","v":7857.7384106725749},{"$f":"AO$4*('COM-Appliance class'!$J57/'Volume per connection'!$J$69)","v":7867.6213185959568},{"$f":"AP$4*('COM-Appliance class'!$J57/'Volume per connection'!$J$69)","v":7877.4906834633048},{"$f":"AQ$4*('COM-Appliance class'!$J57/'Volume per connection'!$J$69)","v":7887.3465884653733},{"$f":"AR$4*('COM-Appliance class'!$J57/'Volume per connection'!$J$69)","v":7897.1891162767815},{"$f":"AS$4*('COM-Appliance class'!$J57/'Volume per connection'!$J$69)","v":7907.0183490593117},{"$f":"AT$4*('COM-Appliance class'!$J57/'Volume per connection'!$J$69)","v":7916.8343684650899},{"$f":"AU$4*('COM-Appliance class'!$J57/'Volume per connection'!$J$69)","v":7926.6372556398437},{"$f":"AV$4*('COM-Appliance class'!$J57/'Volume per connection'!$J$69)","v":7936.4270912260481},{"$f":"AW$4*('COM-Appliance class'!$J57/'Volume per connection'!$J$69)","v":7946.2039553661261},{"$f":"AX$4*('COM-Appliance class'!$J57/'Volume per connection'!$J$69)","v":7955.9679277055675},{"$f":"AY$4*('COM-Appliance class'!$J57/'Volume per connection'!$J$69)","v":7965.7190873960835},{"$f":"AZ$4*('COM-Appliance class'!$J57/'Volume per connection'!$J$69)","v":7975.4575130986896},{"$f":"BA$4*('COM-Appliance class'!$J57/'Volume per connection'!$J$69)","v":7985.1832829868272},{"$f":"BB$4*('COM-Appliance class'!$J57/'Volume per connection'!$J$69)","v":7994.8964747493783},{"$f":"BC$4*('COM-Appliance class'!$J57/'Volume per connection'!$J$69)","v":8004.5971655937828},{"$f":"BD$4*('COM-Appliance class'!$J57/'Volume per connection'!$J$69)","v":8014.2854322490011},{"$f":"BE$4*('COM-Appliance class'!$J57/'Volume per connection'!$J$69)","v":8023.961350968586},{"$f":"BF$4*('COM-Appliance class'!$J57/'Volume per connection'!$J$69)","v":8033.6249975336204},{"$f":"BG$4*('COM-Appliance class'!$J57/'Volume per connection'!$J$69)","v":8043.276447255721},{"$f":"BH$4*('COM-Appliance class'!$J57/'Volume per connection'!$J$69)","v":8052.9157749799879},{"$f":"BI$4*('COM-Appliance class'!$J57/'Volume per connection'!$J$69)","v":8062.543055087941},{"$f":"BJ$4*('COM-Appliance class'!$J57/'Volume per connection'!$J$69)","v":8072.1583615004092},{"$f":"BK$4*('COM-Appliance class'!$J57/'Volume per connection'!$J$69)","v":8081.7617676804775},{"$f":"BL$4*('COM-Appliance class'!$J57/'Volume per connection'!$J$69)","v":8091.3533466363115},{"$f":"BM$4*('COM-Appliance class'!$J57/'Volume per connection'!$J$69)","v":8100.9331709240769},{"$f":"BN$4*('COM-Appliance class'!$J57/'Volume per connection'!$J$69)","v":8110.5013126507129},{"$f":"BO$4*('COM-Appliance class'!$J57/'Volume per connection'!$J$69)","v":8120.0578434768286},{"$f":"BP$4*('COM-Appliance class'!$J57/'Volume per connection'!$J$69)","v":8129.6028346194489},{"$f":"BQ$4*('COM-Appliance class'!$J57/'Volume per connection'!$J$69)","v":8139.1363568548568},{"$f":"BR$4*('COM-Appliance class'!$J57/'Volume per connection'!$J$69)","v":8148.6584805213115},{"$f":"BS$4*('COM-Appliance class'!$J57/'Volume per connection'!$J$69)","v":8158.1692755218528},{"$f":"BT$4*('COM-Appliance class'!$J57/'Volume per connection'!$J$69)","v":8167.6688113269938},{"$f":"BU$4*('COM-Appliance class'!$J57/'Volume per connection'!$J$69)","v":8177.1571569774787},{"$f":"BV$4*('COM-Appliance class'!$J57/'Volume per connection'!$J$69)","v":8186.634381086943},{"$f":"BW$4*('COM-Appliance class'!$J57/'Volume per connection'!$J$69)","v":8196.1005518446509},{"$f":"BX$4*('COM-Appliance class'!$J57/'Volume per connection'!$J$69)","v":8205.5557370180886},{"$f":"BY$4*('COM-Appliance class'!$J57/'Volume per connection'!$J$69)","v":8215.0000039557071},{"$f":"BZ$4*('COM-Appliance class'!$J57/'Volume per connection'!$J$69)","v":8224.4334195894644},{"$f":"CA$4*('COM-Appliance class'!$J57/'Volume per connection'!$J$69)","v":8233.85605043752},{"$f":"CB$4*('COM-Appliance class'!$J57/'Volume per connection'!$J$69)","v":8243.2679626067711},{"$f":"CC$4*('COM-Appliance class'!$J57/'Volume per connection'!$J$69)","v":8252.6692217954951},{"$f":"CD$4*('COM-Appliance class'!$J57/'Volume per connection'!$J$69)","v":8262.0598932958565}]
["Maroondah (C)",null,{"$f":"C$4*('COM-Appliance class'!$J58/'Volume per connection'!$J$69)","v":2795.2493725326531},{"$f":"D$4*('COM-Appliance class'!$J58/'Volume per connection'!$J$69)","v":3435.7220813226299},{"$f":"E$4*('COM-Appliance class'!$J58/'Volume per connection'!$J$69)","v":3053.0561254568988},{"$f":"F$4*('COM-Appliance class'!$J58/'Volume per connection'!$J$69)","v":3396.1826606144664},{"$f":"G$4*('COM-Appliance class'!$J58/'Volume per connection'!$J$69)","v":2990.1250963639427},{"$f":"H$4*('COM-Appliance class'!$J58/'Volume per connection'!$J$69)","v":3069.4312892690791},{"$f":"I$4*('COM-Appliance class'!$J58/'Volume per connection'!$J$69)","v":3559.6049999068468},{"$f":"J$4*('COM-Appliance class'!$J58/'Volume per connection'!$J$69)","v":3917.1175191551879},{"$f":"K$4*('COM-Appliance class'!$J58/'Volume per connection'!$J$69)","v":4689.3128927344223},{"$f":"L$4*('COM-Appliance class'!$J58/'Volume per connection'!$J$69)","v":4649.475656849655},{"$f":"M$4*('COM-Appliance class'!$J58/'Volume per connection'!$J$69)","v":3777.8593944734962},{"$f":"N$4*('COM-Appliance class'!$J58/'Volume per connection'!$J$69)","v":3760.2203470016043},{"$f":"O$4*('COM-Appliance class'!$J58/'Volume per connection'!$J$69)","v":4279.1319742811193},{"$f":"P$4*('COM-Appliance class'!$J58/'Volume per connection'!$J$69)","v":4781.3693368438435},{"$f":"Q$4*('COM-Appliance class'!$J58/'Volume per connection'!$J$69)","v":3329.389254191065},{"$f":"R$4*('COM-Appliance class'!$J58/'Volume per connection'!$J$69)","v":3536.5864077042952},{"$f":"S$4*('COM-Appliance class'!$J58/'Volume per connection'!$J$69)","v":3844.0250325959769},{"$f":"T$4*('COM-Appliance class'!$J58/'Volume per connection'!$J$69)","v":4294.0751865307348},{"$f":"U$4*('COM-Appliance class'!$J58/'Volume per connection'!$J$69)","v":4628.9741043465947},{"$f":"V$4*('COM-Appliance class'!$J58/'Volume per connection'!$J$69)","v":4751.8622267302389},{"$f":"W$4*('COM-Appliance class'!$J58/'Volume per connection'!$J$69)","v":4952.0732786325552},{"$f":"X$4*('COM-Appliance class'!$J58/'Volume per connection'!$J$69)","v":5448.1051342780411},{"$f":"Y$4*('COM-Appliance class'!$J58/'Volume per connection'!$J$69)","v":5860.2384608130096},{"$f":"Z$4*('COM-Appliance class'!$J58/'Volume per connection'!$J$69)","v":6092.9192441258074},{"$f":"AA$4*('COM-Appliance class'!$J58/'Volume per connection'!$J$69)","v":6357.319925760663},{"$f":"AB$4*('COM-Appliance class'!$J58/'Volume per connection'!$J$69)","v":6523.2099103072596},{"$f":"AC$4*('COM-Appliance class'!$J58/'Volume per connection'!$J$69)","v":6643.2872339317801},{"$f":"AD$4*('COM-Appliance class'!$J58/'Volume per connection'!$J$69)","v":6729.262894301447},{"$f":"AE$4*('COM-Appliance class'!$J58/'Volume per connection'!$J$69)","v":6801.3139898442896},{"$f":"AF$4*('COM-Appliance class'!$J58/'Volume per connection'!$J$69)","v":6935.3913768508437},{"$f":"AG$4*('COM-Appliance class'!$J58/'Volume per connection'!$J$69)","v":6941.832877387973},{"$f":"AH$4*('COM-Appliance class'!$J58/'Volume per connection'!$J$69)","v":7082.4831850064265},{"$f":"AI$4*('COM-Appliance class'!$J58/'Volume per connection'!$J$69)","v":7091.5345118153837},{"$f":"AJ$4*('COM-Appliance class'!$J58/'Volume per connection'!$J$69)","v":7100.5730751234014},{"$f":"AK$4*('COM-Appliance class'!$J58/'Volume per connection'!$J$69)","v":7109.5989533619695},{"$f":"AL$4*('COM-Appliance class'!$J58/'Volume per connection'!$J$69)","v":7118.6122244757207},{"$f":"AM$4*('COM-Appliance class'!$J58/'Volume per connection'!$J$69)","v":7127.6129659255175},{"$f":"AN$4*('COM-Appliance class'!$J58/'Volume per connection'!$J$69)","v":7136.6012546914562},{"$f":"AO$4*('COM-Appliance class'!$J58/'Volume per connection'!$J$69)","v":7145.5771672759493},{"$f":"AP$4*('COM-Appliance class'!$J58/'Volume per connection'!$J$69)","v":7154.5407797066791},{"$f":"AQ$4*('COM-Appliance class'!$J58/'Volume per connection'!$J$69)","v":7163.492167539639},{"$f":"AR$4*('COM-Appliance class'!$J58/'Volume per connection'!$J$69)","v":7172.4314058620585},{"$f":"AS$4*('COM-Appliance class'!$J58/'Volume per connection'!$J$69)","v":7181.358569295393},{"$f":"AT$4*('COM-Appliance class'!$J58/'Volume per connection'!$J$69)","v":7190.2737319982134},{"$f":"AU$4*('COM-Appliance class'!$J58/'Volume per connection'!$J$69)","v":7199.1769676691702},{"$f":"AV$4*('COM-Appliance class'!$J58/'Volume per connection'!$J$69)","v":7208.0683495498442},{"$f":"AW$4*('COM-Appliance class'!$J58/'Volume per connection'!$J$69)","v":7216.947950427656},{"$f":"AX$4*('COM-Appliance class'!$J58/'Volume per connection'!$J$69)","v":7225.8158426387008},{"$f":"AY$4*('COM-Appliance class'!$J58/'Volume per connection'!$J$69)","v":7234.6720980706095},{"$f":"AZ$4*('COM-Appliance class'!$J58/'Volume per connection'!$J$69)","v":7243.5167881653497},{"$f":"BA$4*('COM-Appliance class'!$J58/'Volume per connection'!$J$69)","v":7252.349983922064},{"$f":"BB$4*('COM-Appliance class'!$J58/'Volume per connection'!$J$69)","v":7261.1717558998034},{"$f":"BC$4*('COM-Appliance class'!$J58/'Volume per connection'!$J$69)","v":7269.982174220363},{"$f":"BD$4*('COM-Appliance class'!$J58/'Volume per connection'!$J$69)","v":7278.7813085709677},{"$f":"BE$4*('COM-Appliance class'!$J58/'Volume per connection'!$J$69)","v":7287.5692282070668},{"$f":"BF$4*('COM-Appliance class'!$J58/'Volume per connection'!$J$69)","v":7296.3460019550002},{"$f":"BG$4*('COM-Appliance class'!$J58/'Volume per connection'!$J$69)","v":7305.1116982147259},{"$f":"BH$4*('COM-Appliance class'!$J58/'Volume per connection'!$J$69)","v":7313.8663849625},{"$f":"BI$4*('COM-Appliance class'!$J58/'Volume per connection'!$J$69)","v":7322.6101297535406},{"$f":"BJ$4*('COM-Appliance class'!$J58/'Volume per connection'!$J$69)","v":7331.3429997246594},{"$f":"BK$4*('COM-Appliance class'!$J58/'Volume per connection'!$J$69)","v":7340.065061596928},{"$f":"BL$4*('COM-Appliance class'!$J58/'Volume per connection'!$J$69)","v":7348.7763816782517},{"$f":"BM$4*('COM-Appliance class'!$J58/'Volume per connection'!$J$69)","v":7357.4770258660155},{"$f":"BN$4*('COM-Appliance class'!$J58/'Volume per connection'!$J$69)","v":7366.1670596496069},{"$f":"BO$4*('COM-Appliance class'!$J58/'Volume per connection'!$J$69)","v":7374.8465481130461},{"$f":"BP$4*('COM-Appliance class'!$J58/'Volume per connection'!$J$69)","v":7383.5155559374771},{"$f":"BQ$4*('COM-Appliance class'!$J58/'Volume per connection'!$J$69)","v":7392.1741474037472},{"$f":"BR$4*('COM-Appliance class'!$J58/'Volume per connection'!$J$69)","v":7400.822386394887},{"$f":"BS$4*('COM-Appliance class'!$J58/'Volume per connection'!$J$69)","v":7409.4603363986416},{"$f":"BT$4*('COM-Appliance class'!$J58/'Volume per connection'!$J$69)","v":7418.0880605099301},{"$f":"BU$4*('COM-Appliance class'!$J58/'Volume per connection'!$J$69)","v":7426.7056214333406},{"$f":"BV$4*('COM-Appliance class'!$J58/'Volume per connection'!$J$69)","v":7435.3130814855522},{"$f":"BW$4*('COM-Appliance class'!$J58/'Volume per connection'!$J$69)","v":7443.9105025978188},{"$f":"BX$4*('COM-Appliance class'!$J58/'Volume per connection'!$J$69)","v":7452.4979463183236},{"$f":"BY$4*('COM-Appliance class'!$J58/'Volume per connection'!$J$69)","v":7461.0754738146716},{"$f":"BZ$4*('COM-Appliance class'!$J58/'Volume per connection'!$J$69)","v":7469.6431458761963},{"$f":"CA$4*('COM-Appliance class'!$J58/'Volume per connection'!$J$69)","v":7478.2010229164134},{"$f":"CB$4*('COM-Appliance class'!$J58/'Volume per connection'!$J$69)","v":7486.7491649753165},{"$f":"CC$4*('COM-Appliance class'!$J58/'Volume per connection'!$J$69)","v":7495.2876317217779},{"$f":"CD$4*('COM-Appliance class'!$J58/'Volume per connection'!$J$69)","v":7503.8164824558335}]
["Melbourne (C)",null,{"$f":"C$4*('COM-Appliance class'!$J59/'Volume per connection'!$J$69)","v":3419.4000466885204},{"$f":"D$4*('COM-Appliance class'!$J59/'Volume per connection'!$J$69)","v":4202.8837787159346},{"$f":"E$4*('COM-Appliance class'!$J59/'Volume per connection'!$J$69)","v":3734.7724179868469},{"$f":"F$4*('COM-Appliance class'!$J59/'Volume per connection'!$J$69)","v":4154.5156086542302},{"$f":"G$4*('COM-Appliance class'!$J59/'Volume per connection'!$J$69)","v":3657.7895319756285},{"$f":"H$4*('COM-Appliance class'!$J59/'Volume per connection'!$J$69)","v":3754.8039888563781},{"$f":"I$4*('COM-Appliance class'!$J59/'Volume per connection'!$J$69)","v":4354.4284894502653},{"$f":"J$4*('COM-Appliance class'!$J59/'Volume per connection'!$J$69)","v":4791.7699077230382},{"$f":"K$4*('COM-Appliance class'!$J59/'Volume per connection'!$J$69)","v":5736.3886320542788},{"$f":"L$4*('COM-Appliance class'!$J59/'Volume per connection'!$J$69)","v":5687.6561477246623},{"$f":"M$4*('COM-Appliance class'!$J59/'Volume per connection'!$J$69)","v":4621.416864192297},{"$f":"N$4*('COM-Appliance class'!$J59/'Volume per connection'!$J$69)","v":4599.8391973330854},{"$f":"O$4*('COM-Appliance class'!$J59/'Volume per connection'!$J$69)","v":5234.6184982364302},{"$f":"P$4*('COM-Appliance class'!$J59/'Volume per connection'!$J$69)","v":5849.0003411843745},{"$f":"Q$4*('COM-Appliance class'!$J59/'Volume per connection'!$J$69)","v":4072.8079158498035},{"$f":"R$4*('COM-Appliance class'!$J59/'Volume per connection'!$J$69)","v":4326.2700803918297},{"$f":"S$4*('COM-Appliance class'!$J59/'Volume per connection'!$J$69)","v":4702.3566144372608},{"$f":"T$4*('COM-Appliance class'!$J59/'Volume per connection'!$J$69)","v":5252.8983773649652},{"$f":"U$4*('COM-Appliance class'!$J59/'Volume per connection'!$J$69)","v":5662.5768076575414},{"$f":"V$4*('COM-Appliance class'!$J59/'Volume per connection'!$J$69)","v":5812.9045943463443},{"$f":"W$4*('COM-Appliance class'!$J59/'Volume per connection'!$J$69)","v":6057.8207320439451},{"$f":"X$4*('COM-Appliance class'!$J59/'Volume per connection'!$J$69)","v":6664.6114416743976},{"$f":"Y$4*('COM-Appliance class'!$J59/'Volume per connection'!$J$69)","v":7168.7699363845522},{"$f":"Z$4*('COM-Appliance class'!$J59/'Volume per connection'!$J$69)","v":7453.4059653347786},{"$f":"AA$4*('COM-Appliance class'!$J59/'Volume per connection'!$J$69)","v":7776.8446223686387},{"$f":"AB$4*('COM-Appliance class'!$J59/'Volume per connection'!$J$69)","v":7979.7761484348921},{"$f":"AC$4*('COM-Appliance class'!$J59/'Volume per connection'!$J$69)","v":8126.6655136709887},{"$f":"AD$4*('COM-Appliance class'!$J59/'Volume per connection'!$J$69)","v":8231.8386620744695},{"$f":"AE$4*('COM-Appliance class'!$J59/'Volume per connection'!$J$69)","v":8319.978032351808},{"$f":"AF$4*('COM-Appliance class'!$J59/'Volume per connection'!$J$69)","v":8483.9935323265727},{"$f":"AG$4*('COM-Appliance class'!$J59/'Volume per connection'!$J$69)","v":8491.8733542322097},{"$f":"AH$4*('COM-Appliance class'!$J59/'Volume per connection'!$J$69)","v":8663.9294409496324},{"$f":"AI$4*('COM-Appliance class'!$J59/'Volume per connection'!$J$69)","v":8675.0018367141274},{"$f":"AJ$4*('COM-Appliance class'!$J59/'Volume per connection'!$J$69)","v":8686.0586190181093},{"$f":"AK$4*('COM-Appliance class'!$J59/'Volume per connection'!$J$69)","v":8697.099883806015},{"$f":"AL$4*('COM-Appliance class'!$J59/'Volume per connection'!$J$69)","v":8708.1257264267242},{"$f":"AM$4*('COM-Appliance class'!$J59/'Volume per connection'!$J$69)","v":8719.136241637314},{"$f":"AN$4*('COM-Appliance class'!$J59/'Volume per connection'!$J$69)","v":8730.1315236067567},{"$f":"AO$4*('COM-Appliance class'!$J59/'Volume per connection'!$J$69)","v":8741.1116659196687},{"$f":"AP$4*('COM-Appliance class'!$J59/'Volume per connection'!$J$69)","v":8752.0767615799396},{"$f":"AQ$4*('COM-Appliance class'!$J59/'Volume per connection'!$J$69)","v":8763.0269030144482},{"$f":"AR$4*('COM-Appliance class'!$J59/'Volume per connection'!$J$69)","v":8773.9621820766315},{"$f":"AS$4*('COM-Appliance class'!$J59/'Volume per connection'!$J$69)","v":8784.882690050159},{"$f":"AT$4*('COM-Appliance class'!$J59/'Volume per connection'!$J$69)","v":8795.7885176524524},{"$f":"AU$4*('COM-Appliance class'!$J59/'Volume per connection'!$J$69)","v":8806.6797550383199},{"$f":"AV$4*('COM-Appliance class'!$J59/'Volume per connection'!$J$69)","v":8817.5564918034379},{"$f":"AW$4*('COM-Appliance class'!$J59/'Volume per connection'!$J$69)","v":8828.4188169879199},{"$f":"AX$4*('COM-Appliance class'!$J59/'Volume per connection'!$J$69)","v":8839.2668190797685},{"$f":"AY$4*('COM-Appliance class'!$J59/'Volume per connection'!$J$69)","v":8850.1005860183941},{"$f":"AZ$4*('COM-Appliance class'!$J59/'Volume per connection'!$J$69)","v":8860.9202051980228},{"$f":"BA$4*('COM-Appliance class'!$J59/'Volume per connection'!$J$69)","v":8871.7257634711823},{"$f":"BB$4*('COM-Appliance class'!$J59/'Volume per connection'!$J$69)","v":8882.5173471520429},{"$f":"BC$4*('COM-Appliance class'!$J59/'Volume per connection'!$J$69)","v":8893.2950420198795},{"$f":"BD$4*('COM-Appliance class'!$J59/'Volume per connection'!$J$69)","v":8904.0589333223634},{"$f":"BE$4*('COM-Appliance class'!$J59/'Volume per connection'!$J$69)","v":8914.8091057789788},{"$f":"BF$4*('COM-Appliance class'!$J59/'Volume per connection'!$J$69)","v":8925.5456435842843},{"$f":"BG$4*('COM-Appliance class'!$J59/'Volume per connection'!$J$69)","v":8936.2686304112558},{"$f":"BH$4*('COM-Appliance class'!$J59/'Volume per connection'!$J$69)","v":8946.9781494145482},{"$f":"BI$4*('COM-Appliance class'!$J59/'Volume per connection'!$J$69)","v":8957.674283233775},{"$f":"BJ$4*('COM-Appliance class'!$J59/'Volume per connection'!$J$69)","v":8968.3571139967098},{"$f":"BK$4*('COM-Appliance class'!$J59/'Volume per connection'!$J$69)","v":8979.0267233225604},{"$f":"BL$4*('COM-Appliance class'!$J59/'Volume per connection'!$J$69)","v":8989.683192325112},{"$f":"BM$4*('COM-Appliance class'!$J59/'Volume per connection'!$J$69)","v":9000.326601615965},{"$f":"BN$4*('COM-Appliance class'!$J59/'Volume per connection'!$J$69)","v":9010.9570313076147},{"$f":"BO$4*('COM-Appliance class'!$J59/'Volume per connection'!$J$69)","v":9021.5745610166814},{"$f":"BP$4*('COM-Appliance class'!$J59/'Volume per connection'!$J$69)","v":9032.1792698669487},{"$f":"BQ$4*('COM-Appliance class'!$J59/'Volume per connection'!$J$69)","v":9042.7712364925228},{"$f":"BR$4*('COM-Appliance class'!$J59/'Volume per connection'!$J$69)","v":9053.3505390408609},{"$f":"BS$4*('COM-Appliance class'!$J59/'Volume per connection'!$J$69)","v":9063.9172551758766},{"$f":"BT$4*('COM-Appliance class'!$J59/'Volume per connection'!$J$69)","v":9074.4714620809391},{"$f":"BU$4*('COM-Appliance class'!$J59/'Volume per connection'!$J$69)","v":9085.013236461933},{"$f":"BV$4*('COM-Appliance class'!$J59/'Volume per connection'!$J$69)","v":9095.5426545502141},{"$f":"BW$4*('COM-Appliance class'!$J59/'Volume per connection'!$J$69)","v":9106.0597921056542},{"$f":"BX$4*('COM-Appliance class'!$J59/'Volume per connection'!$J$69)","v":9116.5647244195188},{"$f":"BY$4*('COM-Appliance class'!$J59/'Volume per connection'!$J$69)","v":9127.0575263175142},{"$f":"BZ$4*('COM-Appliance class'!$J59/'Volume per connection'!$J$69)","v":9137.5382721626138},{"$f":"CA$4*('COM-Appliance class'!$J59/'Volume per connection'!$J$69)","v":9148.007035858056},{"$f":"CB$4*('COM-Appliance class'!$J59/'Volume per connection'!$J$69)","v":9158.4638908501493},{"$f":"CC$4*('COM-Appliance class'!$J59/'Volume per connection'!$J$69)","v":9168.9089101312184},{"$f":"CD$4*('COM-Appliance class'!$J59/'Volume per connection'!$J$69)","v":9179.3421662423898}]
["Monash (C)",null,{"$f":"C$4*('COM-Appliance class'!$J60/'Volume per connection'!$J$69)","v":2806.3398284498426},{"$f":"D$4*('COM-Appliance class'!$J60/'Volume per connection'!$J$69)","v":3449.3536823744171},{"$f":"E$4*('COM-Appliance class'!$J60/'Volume per connection'!$J$69)","v":3065.169457707254},{"$f":"F$4*('COM-Appliance class'!$J60/'Volume per connection'!$J$69)","v":3409.6573847139985},{"$f":"G$4*('COM-Appliance class'!$J60/'Volume per connection'!$J$69)","v":3001.9887429115347},{"$f":"H$4*('COM-Appliance class'!$J60/'Volume per connection'!$J$69)","v":3081.6095917629409},{"$f":"I$4*('COM-Appliance class'!$J60/'Volume per connection'!$J$69)","v":3573.7281199125246},{"$f":"J$4*('COM-Appliance class'!$J60/'Volume per connection'!$J$69)","v":3932.6591089666472},{"$f":"K$4*('COM-Appliance class'!$J60/'Volume per connection'!$J$69)","v":4707.9182516801466},{"$f":"L$4*('COM-Appliance class'!$J60/'Volume per connection'!$J$69)","v":4667.9229572290187},{"$f":"M$4*('COM-Appliance class'!$J60/'Volume per connection'!$J$69)","v":3792.8484625285537},{"$f":"N$4*('COM-Appliance class'!$J60/'Volume per connection'!$J$69)","v":3775.1394302172657},{"$f":"O$4*('COM-Appliance class'!$J60/'Volume per connection'!$J$69)","v":4296.1098958186176},{"$f":"P$4*('COM-Appliance class'!$J60/'Volume per connection'!$J$69)","v":4800.3399397443},{"$f":"Q$4*('COM-Appliance class'!$J60/'Volume per connection'!$J$69)","v":3342.5989681856754},{"$f":"R$4*('COM-Appliance class'!$J60/'Volume per connection'!$J$69)","v":3550.6181989417396},{"$f":"S$4*('COM-Appliance class'!$J60/'Volume per connection'!$J$69)","v":3859.2766200169413},{"$f":"T$4*('COM-Appliance class'!$J60/'Volume per connection'!$J$69)","v":4311.1123968881657},{"$f":"U$4*('COM-Appliance class'!$J60/'Volume per connection'!$J$69)","v":4647.3400625865042},{"$f":"V$4*('COM-Appliance class'!$J60/'Volume per connection'!$J$69)","v":4770.7157569619121},{"$f":"W$4*('COM-Appliance class'!$J60/'Volume per connection'!$J$69)","v":4971.7211679890625},{"$f":"X$4*('COM-Appliance class'!$J60/'Volume per connection'!$J$69)","v":5469.7210839738564},{"$f":"Y$4*('COM-Appliance class'!$J60/'Volume per connection'!$J$69)","v":5883.4895943084721},{"$f":"Z$4*('COM-Appliance class'!$J60/'Volume per connection'!$J$69)","v":6117.0935639371191},{"$f":"AA$4*('COM-Appliance class'!$J60/'Volume per connection'!$J$69)","v":6382.5432840345038},{"$f":"AB$4*('COM-Appliance class'!$J60/'Volume per connection'!$J$69)","v":6549.0914551381911},{"$f":"AC$4*('COM-Appliance class'!$J60/'Volume per connection'!$J$69)","v":6669.645198604675},{"$f":"AD$4*('COM-Appliance class'!$J60/'Volume per connection'!$J$69)","v":6755.9619767581971},{"$f":"AE$4*('COM-Appliance class'!$J60/'Volume per connection'!$J$69)","v":6828.2989428594074},{"$f":"AF$4*('COM-Appliance class'!$J60/'Volume per connection'!$J$69)","v":6962.9082964821428},{"$f":"AG$4*('COM-Appliance class'!$J60/'Volume per connection'!$J$69)","v":6969.3753543732773},{"$f":"AH$4*('COM-Appliance class'!$J60/'Volume per connection'!$J$69)","v":7110.583707385359},{"$f":"AI$4*('COM-Appliance class'!$J60/'Volume per connection'!$J$69)","v":7119.6709463179186},{"$f":"AJ$4*('COM-Appliance class'!$J60/'Volume per connection'!$J$69)","v":7128.7453711089611},{"$f":"AK$4*('COM-Appliance class'!$J60/'Volume per connection'!$J$69)","v":7137.8070605011599},{"$f":"AL$4*('COM-Appliance class'!$J60/'Volume per connection'!$J$69)","v":7146.856092748405},{"$f":"AM$4*('COM-Appliance class'!$J60/'Volume per connection'!$J$69)","v":7155.892545618889},{"$f":"AN$4*('COM-Appliance class'!$J60/'Volume per connection'!$J$69)","v":7164.9164963981384},{"$f":"AO$4*('COM-Appliance class'!$J60/'Volume per connection'!$J$69)","v":7173.9280218920958},{"$f":"AP$4*('COM-Appliance class'!$J60/'Volume per connection'!$J$69)","v":7182.9271984300922},{"$f":"AQ$4*('COM-Appliance class'!$J60/'Volume per connection'!$J$69)","v":7191.9141018678984},{"$f":"AR$4*('COM-Appliance class'!$J60/'Volume per connection'!$J$69)","v":7200.8888075906589},{"$f":"AS$4*('COM-Appliance class'!$J60/'Volume per connection'!$J$69)","v":7209.8513905158979},{"$f":"AT$4*('COM-Appliance class'!$J60/'Volume per connection'!$J$69)","v":7218.8019250964189},{"$f":"AU$4*('COM-Appliance class'!$J60/'Volume per connection'!$J$69)","v":7227.740485323282},{"$f":"AV$4*('COM-Appliance class'!$J60/'Volume per connection'!$J$69)","v":7236.667144728659},{"$f":"AW$4*('COM-Appliance class'!$J60/'Volume per connection'!$J$69)","v":7245.581976388763},{"$f":"AX$4*('COM-Appliance class'!$J60/'Volume per connection'!$J$69)","v":7254.4850529266923},{"$f":"AY$4*('COM-Appliance class'!$J60/'Volume per connection'!$J$69)","v":7263.3764465152981},{"$f":"AZ$4*('COM-Appliance class'!$J60/'Volume per connection'!$J$69)","v":7272.2562288800018},{"$f":"BA$4*('COM-Appliance class'!$J60/'Volume per connection'!$J$69)","v":7281.1244713016431},{"$f":"BB$4*('COM-Appliance class'!$J60/'Volume per connection'!$J$69)","v":7289.9812446192245},{"$f":"BC$4*('COM-Appliance class'!$J60/'Volume per connection'!$J$69)","v":7298.8266192327565},{"$f":"BD$4*('COM-Appliance class'!$J60/'Volume per connection'!$J$69)","v":7307.6606651059546},{"$f":"BE$4*('COM-Appliance class'!$J60/'Volume per connection'!$J$69)","v":7316.4834517690479},{"$f":"BF$4*('COM-Appliance class'!$J60/'Volume per connection'!$J$69)","v":7325.2950483214527},{"$f":"BG$4*('COM-Appliance class'!$J60/'Volume per connection'!$J$69)","v":7334.0955234345092},{"$f":"BH$4*('COM-Appliance class'!$J60/'Volume per connection'!$J$69)","v":7342.8849453541789},{"$f":"BI$4*('COM-Appliance class'!$J60/'Volume per connection'!$J$69)","v":7351.6633819037115},{"$f":"BJ$4*('COM-Appliance class'!$J60/'Volume per connection'!$J$69)","v":7360.4309004862907},{"$f":"BK$4*('COM-Appliance class'!$J60/'Volume per connection'!$J$69)","v":7369.187568087712},{"$f":"BL$4*('COM-Appliance class'!$J60/'Volume per connection'!$J$69)","v":7377.9334512789646},{"$f":"BM$4*('COM-Appliance class'!$J60/'Volume per connection'!$J$69)","v":7386.6686162188898},{"$f":"BN$4*('COM-Appliance class'!$J60/'Volume per connection'!$J$69)","v":7395.3931286567095},{"$f":"BO$4*('COM-Appliance class'!$J60/'Volume per connection'!$J$69)","v":7404.1070539346711},{"$f":"BP$4*('COM-Appliance class'!$J60/'Volume per connection'!$J$69)","v":7412.810456990549},{"$f":"BQ$4*('COM-Appliance class'!$J60/'Volume per connection'!$J$69)","v":7421.5034023602338},{"$f":"BR$4*('COM-Appliance class'!$J60/'Volume per connection'!$J$69)","v":7430.185954180216},{"$f":"BS$4*('COM-Appliance class'!$J60/'Volume per connection'!$J$69)","v":7438.8581761901378},{"$f":"BT$4*('COM-Appliance class'!$J60/'Volume per connection'!$J$69)","v":7447.5201317352512},{"$f":"BU$4*('COM-Appliance class'!$J60/'Volume per connection'!$J$69)","v":7456.1718837689341},{"$f":"BV$4*('COM-Appliance class'!$J60/'Volume per connection'!$J$69)","v":7464.8134948551133},{"$f":"BW$4*('COM-Appliance class'!$J60/'Volume per connection'!$J$69)","v":7473.4450271707601},{"$f":"BX$4*('COM-Appliance class'!$J60/'Volume per connection'!$J$69)","v":7482.0665425082589},{"$f":"BY$4*('COM-Appliance class'!$J60/'Volume per connection'!$J$69)","v":7490.6781022779032},{"$f":"BZ$4*('COM-Appliance class'!$J60/'Volume per connection'!$J$69)","v":7499.2797675102138},{"$f":"CA$4*('COM-Appliance class'!$J60/'Volume per connection'!$J$69)","v":7507.8715988584054},{"$f":"CB$4*('COM-Appliance class'!$J60/'Volume per connection'!$J$69)","v":7516.4536566006855},{"$f":"CC$4*('COM-Appliance class'!$J60/'Volume per connection'!$J$69)","v":7525.0260006426697},{"$f":"CD$4*('COM-Appliance class'!$J60/'Volume per connection'!$J$69)","v":7533.5886905196712}]
["Port Phillip (C)",null,{"$f":"C$4*('COM-Appliance class'!$J61/'Volume per connection'!$J$69)","v":2293.4883699613447},{"$f":"D$4*('COM-Appliance class'!$J61/'Volume per connection'!$J$69)","v":2818.9930792447708},{"$f":"E$4*('COM-Appliance class'!$J61/'Volume per connection'!$J$69)","v":2505.0175434724451},{"$f":"F$4*('COM-Appliance class'!$J61/'Volume per connection'!$J$69)","v":2786.5511789119146},{"$f":"G$4*('COM-Appliance class'!$J61/'Volume per connection'!$J$69)","v":2453.382943442602},{"$f":"H$4*('COM-Appliance class'!$J61/'Volume per connection'!$J$69)","v":2518.4532848873228},{"$f":"I$4*('COM-Appliance class'!$J61/'Volume per connection'!$J$69)","v":2920.6384049898356},{"$f":"J$4*('COM-Appliance class'!$J61/'Volume per connection'!$J$69)","v":3213.9756696606901},{"$f":"K$4*('COM-Appliance class'!$J61/'Volume per connection'!$J$69)","v":3847.5581779137146},{"$f":"L$4*('COM-Appliance class'!$J61/'Volume per connection'!$J$69)","v":3814.8719216923819},{"$f":"M$4*('COM-Appliance class'!$J61/'Volume per connection'!$J$69)","v":3099.7150628903169},{"$f":"N$4*('COM-Appliance class'!$J61/'Volume per connection'!$J$69)","v":3085.242311145335},{"$f":"O$4*('COM-Appliance class'!$J61/'Volume per connection'!$J$69)","v":3511.006750589595},{"$f":"P$4*('COM-Appliance class'!$J61/'Volume per connection'!$J$69)","v":3923.0900377969906},{"$f":"Q$4*('COM-Appliance class'!$J61/'Volume per connection'!$J$69)","v":2731.7475172681693},{"$f":"R$4*('COM-Appliance class'!$J61/'Volume per connection'!$J$69)","v":2901.7517632367949},{"$f":"S$4*('COM-Appliance class'!$J61/'Volume per connection'!$J$69)","v":3154.0036437289864},{"$f":"T$4*('COM-Appliance class'!$J61/'Volume per connection'!$J$69)","v":3523.2675827862245},{"$f":"U$4*('COM-Appliance class'!$J61/'Volume per connection'!$J$69)","v":3798.0504986401274},{"$f":"V$4*('COM-Appliance class'!$J61/'Volume per connection'!$J$69)","v":3898.8795989925975},{"$f":"W$4*('COM-Appliance class'!$J61/'Volume per connection'!$J$69)","v":4063.1517829300351},{"$f":"X$4*('COM-Appliance class'!$J61/'Volume per connection'!$J$69)","v":4470.1434822153469},{"$f":"Y$4*('COM-Appliance class'!$J61/'Volume per connection'!$J$69)","v":4808.296850773303},{"$f":"Z$4*('COM-Appliance class'!$J61/'Volume per connection'!$J$69)","v":4999.2102897262939},{"$f":"AA$4*('COM-Appliance class'!$J61/'Volume per connection'!$J$69)","v":5216.1497493316319},{"$f":"AB$4*('COM-Appliance class'!$J61/'Volume per connection'!$J$69)","v":5352.2616662107912},{"$f":"AC$4*('COM-Appliance class'!$J61/'Volume per connection'!$J$69)","v":5450.7845199980356},{"$f":"AD$4*('COM-Appliance class'!$J61/'Volume per connection'!$J$69)","v":5521.3271267132704},{"$f":"AE$4*('COM-Appliance class'!$J61/'Volume per connection'!$J$69)","v":5580.4446964350582},{"$f":"AF$4*('COM-Appliance class'!$J61/'Volume per connection'!$J$69)","v":5690.4545334091817},{"$f":"AG$4*('COM-Appliance class'!$J61/'Volume per connection'!$J$69)","v":5695.739752936347},{"$f":"AH$4*('COM-Appliance class'!$J61/'Volume per connection'!$J$69)","v":5811.1426389629823},{"$f":"AI$4*('COM-Appliance class'!$J61/'Volume per connection'!$J$69)","v":5818.5692081174375},{"$f":"AJ$4*('COM-Appliance class'!$J61/'Volume per connection'!$J$69)","v":5825.9853048821124},{"$f":"AK$4*('COM-Appliance class'!$J61/'Volume per connection'!$J$69)","v":5833.390993609657},{"$f":"AL$4*('COM-Appliance class'!$J61/'Volume per connection'!$J$69)","v":5840.7863382532614},{"$f":"AM$4*('COM-Appliance class'!$J61/'Volume per connection'!$J$69)","v":5848.1714023691811},{"$f":"AN$4*('COM-Appliance class'!$J61/'Volume per connection'!$J$69)","v":5855.5462491192075},{"$f":"AO$4*('COM-Appliance class'!$J61/'Volume per connection'!$J$69)","v":5862.9109412731923},{"$f":"AP$4*('COM-Appliance class'!$J61/'Volume per connection'!$J$69)","v":5870.2655412114773},{"$f":"AQ$4*('COM-Appliance class'!$J61/'Volume per connection'!$J$69)","v":5877.6101109273832},{"$f":"AR$4*('COM-Appliance class'!$J61/'Volume per connection'!$J$69)","v":5884.9447120296118},{"$f":"AS$4*('COM-Appliance class'!$J61/'Volume per connection'!$J$69)","v":5892.2694057447006},{"$f":"AT$4*('COM-Appliance class'!$J61/'Volume per connection'!$J$69)","v":5899.5842529193933},{"$f":"AU$4*('COM-Appliance class'!$J61/'Volume per connection'!$J$69)","v":5906.8893140230703},{"$f":"AV$4*('COM-Appliance class'!$J61/'Volume per connection'!$J$69)","v":5914.1846491500874},{"$f":"AW$4*('COM-Appliance class'!$J61/'Volume per connection'!$J$69)","v":5921.4703180221668},{"$f":"AX$4*('COM-Appliance class'!$J61/'Volume per connection'!$J$69)","v":5928.7463799907182},{"$f":"AY$4*('COM-Appliance class'!$J61/'Volume per connection'!$J$69)","v":5936.0128940391896},{"$f":"AZ$4*('COM-Appliance class'!$J61/'Volume per connection'!$J$69)","v":5943.2699187853641},{"$f":"BA$4*('COM-Appliance class'!$J61/'Volume per connection'!$J$69)","v":5950.5175124836896},{"$f":"BB$4*('COM-Appliance class'!$J61/'Volume per connection'!$J$69)","v":5957.7557330275213},{"$f":"BC$4*('COM-Appliance class'!$J61/'Volume per connection'!$J$69)","v":5964.9846379514456},{"$f":"BD$4*('COM-Appliance class'!$J61/'Volume per connection'!$J$69)","v":5972.2042844334883},{"$f":"BE$4*('COM-Appliance class'!$J61/'Volume per connection'!$J$69)","v":5979.4147292974067},{"$f":"BF$4*('COM-Appliance class'!$J61/'Volume per connection'!$J$69)","v":5986.6160290148728},{"$f":"BG$4*('COM-Appliance class'!$J61/'Volume per connection'!$J$69)","v":5993.8082397077169},{"$f":"BH$4*('COM-Appliance class'!$J61/'Volume per connection'!$J$69)","v":6000.9914171501223},{"$f":"BI$4*('COM-Appliance class'!$J61/'Volume per connection'!$J$69)","v":6008.1656167708143},{"$f":"BJ$4*('COM-Appliance class'!$J61/'Volume per connection'!$J$69)","v":6015.3308936552148},{"$f":"BK$4*('COM-Appliance class'!$J61/'Volume per connection'!$J$69)","v":6022.4873025476372},{"$f":"BL$4*('COM-Appliance class'!$J61/'Volume per connection'!$J$69)","v":6029.6348978533915},{"$f":"BM$4*('COM-Appliance class'!$J61/'Volume per connection'!$J$69)","v":6036.7737336409582},{"$f":"BN$4*('COM-Appliance class'!$J61/'Volume per connection'!$J$69)","v":6043.9038636440573},{"$f":"BO$4*('COM-Appliance class'!$J61/'Volume per connection'!$J$69)","v":6051.0253412638067},{"$f":"BP$4*('COM-Appliance class'!$J61/'Volume per connection'!$J$69)","v":6058.1382195707683},{"$f":"BQ$4*('COM-Appliance class'!$J61/'Volume per connection'!$J$69)","v":6065.2425513070621},{"$f":"BR$4*('COM-Appliance class'!$J61/'Volume per connection'!$J$69)","v":6072.3383888883982},{"$f":"BS$4*('COM-Appliance class'!$J61/'Volume per connection'!$J$69)","v":6079.4257844061622},{"$f":"BT$4*('COM-Appliance class'!$J61/'Volume per connection'!$J$69)","v":6086.5047896294227},{"$f":"BU$4*('COM-Appliance class'!$J61/'Volume per connection'!$J$69)","v":6093.5754560069881},{"$f":"BV$4*('COM-Appliance class'!$J61/'Volume per connection'!$J$69)","v":6100.6378346693846},{"$f":"BW$4*('COM-Appliance class'!$J61/'Volume per connection'!$J$69)","v":6107.6919764309041},{"$f":"BX$4*('COM-Appliance class'!$J61/'Volume per connection'!$J$69)","v":6114.7379317915274},{"$f":"BY$4*('COM-Appliance class'!$J61/'Volume per connection'!$J$69)","v":6121.7757509389739},{"$f":"BZ$4*('COM-Appliance class'!$J61/'Volume per connection'!$J$69)","v":6128.8054837505924},{"$f":"CA$4*('COM-Appliance class'!$J61/'Volume per connection'!$J$69)","v":6135.8271797953767},{"$f":"CB$4*('COM-Appliance class'!$J61/'Volume per connection'!$J$69)","v":6142.8408883358452},{"$f":"CC$4*('COM-Appliance class'!$J61/'Volume per connection'!$J$69)","v":6149.8466583300151},{"$f":"CD$4*('COM-Appliance class'!$J61/'Volume per connection'!$J$69)","v":6156.8445384332736}]
["South Gippsland (S)",null,{"$f":"C$4*('COM-Appliance class'!$J62/'Volume per connection'!$J$69)","v":2672.5035616558098},{"$f":"D$4*('COM-Appliance class'!$J62/'Volume per connection'!$J$69)","v":3284.8516448730475},{"$f":"E$4*('COM-Appliance class'!$J62/'Volume per connection'!$J$69)","v":2918.9894287771044},{"$f":"F$4*('COM-Appliance class'!$J62/'Volume per connection'!$J$69)","v":3247.0484908121875},{"$f":"G$4*('COM-Appliance class'!$J62/'Volume per connection'!$J$69)","v":2858.8218455044866},{"$f":"H$4*('COM-Appliance class'!$J62/'Volume per connection'!$J$69)","v":2934.6455215897099},{"$f":"I$4*('COM-Appliance class'!$J62/'Volume per connection'!$J$69)","v":3403.294580375672},{"$f":"J$4*('COM-Appliance class'!$J62/'Volume per connection'!$J$69)","v":3745.1079049457221},{"$f":"K$4*('COM-Appliance class'!$J62/'Volume per connection'!$J$69)","v":4483.3944086342353},{"$f":"L$4*('COM-Appliance class'!$J62/'Volume per connection'!$J$69)","v":4445.3065171442177},{"$f":"M$4*('COM-Appliance class'!$J62/'Volume per connection'!$J$69)","v":3611.9649239085334},{"$f":"N$4*('COM-Appliance class'!$J62/'Volume per connection'!$J$69)","v":3595.1004474664419},{"$f":"O$4*('COM-Appliance class'!$J62/'Volume per connection'!$J$69)","v":4091.2254750637485},{"$f":"P$4*('COM-Appliance class'!$J62/'Volume per connection'!$J$69)","v":4571.4084431505498},{"$f":"Q$4*('COM-Appliance class'!$J62/'Volume per connection'!$J$69)","v":3183.1881360561006},{"$f":"R$4*('COM-Appliance class'!$J62/'Volume per connection'!$J$69)","v":3381.2867873500772},{"$f":"S$4*('COM-Appliance class'!$J62/'Volume per connection'!$J$69)","v":3675.2250771095846},{"$f":"T$4*('COM-Appliance class'!$J62/'Volume per connection'!$J$69)","v":4105.5124965910945},{"$f":"U$4*('COM-Appliance class'!$J62/'Volume per connection'!$J$69)","v":4425.7052348320567},{"$f":"V$4*('COM-Appliance class'!$J62/'Volume per connection'!$J$69)","v":4543.1970579168501},{"$f":"W$4*('COM-Appliance class'!$J62/'Volume per connection'!$J$69)","v":4734.6163833443334},{"$f":"X$4*('COM-Appliance class'!$J62/'Volume per connection'!$J$69)","v":5208.8663425550176},{"$f":"Y$4*('COM-Appliance class'!$J62/'Volume per connection'!$J$69)","v":5602.9019494904387},{"$f":"Z$4*('COM-Appliance class'!$J62/'Volume per connection'!$J$69)","v":5825.3651859525562},{"$f":"AA$4*('COM-Appliance class'!$J62/'Volume per connection'!$J$69)","v":6078.155427251545},{"$f":"AB$4*('COM-Appliance class'!$J62/'Volume per connection'!$J$69)","v":6236.7608021065671},{"$f":"AC$4*('COM-Appliance class'!$J62/'Volume per connection'!$J$69)","v":6351.56525505234},{"$f":"AD$4*('COM-Appliance class'!$J62/'Volume per connection'!$J$69)","v":6433.7655269892439},{"$f":"AE$4*('COM-Appliance class'!$J62/'Volume per connection'!$J$69)","v":6502.6526936769815},{"$f":"AF$4*('COM-Appliance class'!$J62/'Volume per connection'!$J$69)","v":6630.8424351124158},{"$f":"AG$4*('COM-Appliance class'!$J62/'Volume per connection'!$J$69)","v":6637.0010745873215},{"$f":"AH$4*('COM-Appliance class'!$J62/'Volume per connection'!$J$69)","v":6771.4751046155361},{"$f":"AI$4*('COM-Appliance class'!$J62/'Volume per connection'!$J$69)","v":6780.1289669050138},{"$f":"AJ$4*('COM-Appliance class'!$J62/'Volume per connection'!$J$69)","v":6788.7706261681524},{"$f":"AK$4*('COM-Appliance class'!$J62/'Volume per connection'!$J$69)","v":6797.4001573923342},{"$f":"AL$4*('COM-Appliance class'!$J62/'Volume per connection'!$J$69)","v":6806.0176350994652},{"$f":"AM$4*('COM-Appliance class'!$J62/'Volume per connection'!$J$69)","v":6814.6231333489213},{"$f":"AN$4*('COM-Appliance class'!$J62/'Volume per connection'!$J$69)","v":6823.216725740429},{"$f":"AO$4*('COM-Appliance class'!$J62/'Volume per connection'!$J$69)","v":6831.7984854170018},{"$f":"AP$4*('COM-Appliance class'!$J62/'Volume per connection'!$J$69)","v":6840.3684850677746},{"$f":"AQ$4*('COM-Appliance class'!$J62/'Volume per connection'!$J$69)","v":6848.926796930903},{"$f":"AR$4*('COM-Appliance class'!$J62/'Volume per connection'!$J$69)","v":6857.4734927963646},{"$f":"AS$4*('COM-Appliance class'!$J62/'Volume per connection'!$J$69)","v":6866.0086440088126},{"$f":"AT$4*('COM-Appliance class'!$J62/'Volume per connection'!$J$69)","v":6874.5323214703485},{"$f":"AU$4*('COM-Appliance class'!$J62/'Volume per connection'!$J$69)","v":6883.044595643345},{"$f":"AV$4*('COM-Appliance class'!$J62/'Volume per connection'!$J$69)","v":6891.5455365531761},{"$f":"AW$4*('COM-Appliance class'!$J62/'Volume per connection'!$J$69)","v":6900.0352137910013},{"$f":"AX$4*('COM-Appliance class'!$J62/'Volume per connection'!$J$69)","v":6908.5136965164702},{"$f":"AY$4*('COM-Appliance class'!$J62/'Volume per connection'!$J$69)","v":6916.9810534604649},{"$f":"AZ$4*('COM-Appliance class'!$J62/'Volume per connection'!$J$69)","v":6925.43735292777},{"$f":"BA$4*('COM-Appliance class'!$J62/'Volume per connection'!$J$69)","v":6933.882662799796},{"$f":"BB$4*('COM-Appliance class'!$J62/'Volume per connection'!$J$69)","v":6942.3170505371809},{"$f":"BC$4*('COM-Appliance class'!$J62/'Volume per connection'!$J$69)","v":6950.7405831825135},{"$f":"BD$4*('COM-Appliance class'!$J62/'Volume per connection'!$J$69)","v":6959.1533273628911},{"$f":"BE$4*('COM-Appliance class'!$J62/'Volume per connection'!$J$69)","v":6967.5553492925983},{"$f":"BF$4*('COM-Appliance class'!$J62/'Volume per connection'!$J$69)","v":6975.9467147756523},{"$f":"BG$4*('COM-Appliance class'!$J62/'Volume per connection'!$J$69)","v":6984.3274892084128},{"$f":"BH$4*('COM-Appliance class'!$J62/'Volume per connection'!$J$69)","v":6992.6977375821407},{"$f":"BI$4*('COM-Appliance class'!$J62/'Volume per connection'!$J$69)","v":7001.0575244855518},{"$f":"BJ$4*('COM-Appliance class'!$J62/'Volume per connection'!$J$69)","v":7009.4069141073251},{"$f":"BK$4*('COM-Appliance class'!$J62/'Volume per connection'!$J$69)","v":7017.7459702386568},{"$f":"BL$4*('COM-Appliance class'!$J62/'Volume per connection'!$J$69)","v":7026.0747562757206},{"$f":"BM$4*('COM-Appliance class'!$J62/'Volume per connection'!$J$69)","v":7034.3933352221957},{"$f":"BN$4*('COM-Appliance class'!$J62/'Volume per connection'!$J$69)","v":7042.7017696916819},{"$f":"BO$4*('COM-Appliance class'!$J62/'Volume per connection'!$J$69)","v":7051.0001219102078},{"$f":"BP$4*('COM-Appliance class'!$J62/'Volume per connection'!$J$69)","v":7059.2884537186228},{"$f":"BQ$4*('COM-Appliance class'!$J62/'Volume per connection'!$J$69)","v":7067.5668265750537},{"$f":"BR$4*('COM-Appliance class'!$J62/'Volume per connection'!$J$69)","v":7075.8353015572802},{"$f":"BS$4*('COM-Appliance class'!$J62/'Volume per connection'!$J$69)","v":7084.093939365157},{"$f":"BT$4*('COM-Appliance class'!$J62/'Volume per connection'!$J$69)","v":7092.3428003229574},{"$f":"BU$4*('COM-Appliance class'!$J62/'Volume per connection'!$J$69)","v":7100.58194438177},{"$f":"BV$4*('COM-Appliance class'!$J62/'Volume per connection'!$J$69)","v":7108.8114311218033},{"$f":"BW$4*('COM-Appliance class'!$J62/'Volume per connection'!$J$69)","v":7117.0313197547694},{"$f":"BX$4*('COM-Appliance class'!$J62/'Volume per connection'!$J$69)","v":7125.2416691261287},{"$f":"BY$4*('COM-Appliance class'!$J62/'Volume per connection'!$J$69)","v":7133.4425377174784},{"$f":"BZ$4*('COM-Appliance class'!$J62/'Volume per connection'!$J$69)","v":7141.6339836487505},{"$f":"CA$4*('COM-Appliance class'!$J62/'Volume per connection'!$J$69)","v":7149.8160646805654},{"$f":"CB$4*('COM-Appliance class'!$J62/'Volume per connection'!$J$69)","v":7157.9888382164236},{"$f":"CC$4*('COM-Appliance class'!$J62/'Volume per connection'!$J$69)","v":7166.1523613049994},{"$f":"CD$4*('COM-Appliance class'!$J62/'Volume per connection'!$J$69)","v":7174.3066906423282}]
["Stonnington (C)",null,{"$f":"C$4*('COM-Appliance class'!$J63/'Volume per connection'!$J$69)","v":2570.6110615893158},{"$f":"D$4*('COM-Appliance class'!$J63/'Volume per connection'!$J$69)","v":3159.6126176007033},{"$f":"E$4*('COM-Appliance class'!$J63/'Volume per connection'!$J$69)","v":2807.6993505025252},{"$f":"F$4*('COM-Appliance class'!$J63/'Volume per connection'!$J$69)","v":3123.2507554927988},{"$f":"G$4*('COM-Appliance class'!$J63/'Volume per connection'!$J$69)","v":2749.8257306769792},{"$f":"H$4*('COM-Appliance class'!$J63/'Volume per connection'!$J$69)","v":2822.7585354341322},{"$f":"I$4*('COM-Appliance class'!$J63/'Volume per connection'!$J$69)","v":3273.5397698554657},{"$f":"J$4*('COM-Appliance class'!$J63/'Volume per connection'!$J$69)","v":3602.3210391286825},{"$f":"K$4*('COM-Appliance class'!$J63/'Volume per connection'!$J$69)","v":4312.4594577386615},{"$f":"L$4*('COM-Appliance class'!$J63/'Volume per connection'!$J$69)","v":4275.8237141678692},{"$f":"M$4*('COM-Appliance class'!$J63/'Volume per connection'!$J$69)","v":3474.2542987367183},{"$f":"N$4*('COM-Appliance class'!$J63/'Volume per connection'!$J$69)","v":3458.0328012944124},{"$f":"O$4*('COM-Appliance class'!$J63/'Volume per connection'!$J$69)","v":3935.2424492706241},{"$f":"P$4*('COM-Appliance class'!$J63/'Volume per connection'!$J$69)","v":4397.1178484509883},{"$f":"Q$4*('COM-Appliance class'!$J63/'Volume per connection'!$J$69)","v":3061.8251556588716},{"$f":"R$4*('COM-Appliance class'!$J63/'Volume per connection'!$J$69)","v":3252.3710511287782},{"$f":"S$4*('COM-Appliance class'!$J63/'Volume per connection'!$J$69)","v":3535.1025804414221},{"$f":"T$4*('COM-Appliance class'!$J63/'Volume per connection'!$J$69)","v":3948.9847604511588},{"$f":"U$4*('COM-Appliance class'!$J63/'Volume per connection'!$J$69)","v":4256.9697549605116},{"$f":"V$4*('COM-Appliance class'!$J63/'Volume per connection'!$J$69)","v":4369.9820571334358},{"$f":"W$4*('COM-Appliance class'!$J63/'Volume per connection'!$J$69)","v":4554.1032842875675},{"$f":"X$4*('COM-Appliance class'!$J63/'Volume per connection'!$J$69)","v":5010.2718778852268},{"$f":"Y$4*('COM-Appliance class'!$J63/'Volume per connection'!$J$69)","v":5389.2843904899546},{"$f":"Z$4*('COM-Appliance class'!$J63/'Volume per connection'!$J$69)","v":5603.2659412169314},{"$f":"AA$4*('COM-Appliance class'!$J63/'Volume per connection'!$J$69)","v":5846.4182422534914},{"$f":"AB$4*('COM-Appliance class'!$J63/'Volume per connection'!$J$69)","v":5998.9765912411476},{"$f":"AC$4*('COM-Appliance class'!$J63/'Volume per connection'!$J$69)","v":6109.4039825817481},{"$f":"AD$4*('COM-Appliance class'!$J63/'Volume per connection'!$J$69)","v":6188.4702675956905},{"$f":"AE$4*('COM-Appliance class'!$J63/'Volume per connection'!$J$69)","v":6254.7310259459355},{"$f":"AF$4*('COM-Appliance class'!$J63/'Volume per connection'!$J$69)","v":6378.0333751155049},{"$f":"AG$4*('COM-Appliance class'!$J63/'Volume per connection'!$J$69)","v":6383.9572088516607},{"$f":"AH$4*('COM-Appliance class'!$J63/'Volume per connection'!$J$69)","v":6513.3042503474062},{"$f":"AI$4*('COM-Appliance class'!$J63/'Volume per connection'!$J$69)","v":6521.6281734455742},{"$f":"AJ$4*('COM-Appliance class'!$J63/'Volume per connection'!$J$69)","v":6529.9403587728584},{"$f":"AK$4*('COM-Appliance class'!$J63/'Volume per connection'!$J$69)","v":6538.2408784576546},{"$f":"AL$4*('COM-Appliance class'!$J63/'Volume per connection'!$J$69)","v":6546.5298041806282},{"$f":"AM$4*('COM-Appliance class'!$J63/'Volume per connection'!$J$69)","v":6554.8072071775523},{"$f":"AN$4*('COM-Appliance class'!$J63/'Volume per connection'!$J$69)","v":6563.0731582420713},{"$f":"AO$4*('COM-Appliance class'!$J63/'Volume per connection'!$J$69)","v":6571.3277277285315},{"$f":"AP$4*('COM-Appliance class'!$J63/'Volume per connection'!$J$69)","v":6579.5709855547038},{"$f":"AQ$4*('COM-Appliance class'!$J63/'Volume per connection'!$J$69)","v":6587.8030012045765},{"$f":"AR$4*('COM-Appliance class'!$J63/'Volume per connection'!$J$69)","v":6596.0238437310427},{"$f":"AS$4*('COM-Appliance class'!$J63/'Volume per connection'!$J$69)","v":6604.2335817586563},{"$f":"AT$4*('COM-Appliance class'!$J63/'Volume per connection'!$J$69)","v":6612.432283486286},{"$f":"AU$4*('COM-Appliance class'!$J63/'Volume per connection'!$J$69)","v":6620.6200166898398},{"$f":"AV$4*('COM-Appliance class'!$J63/'Volume per connection'!$J$69)","v":6628.7968487248882},{"$f":"AW$4*('COM-Appliance class'!$J63/'Volume per connection'!$J$69)","v":6636.9628465293417},{"$f":"AX$4*('COM-Appliance class'!$J63/'Volume per connection'!$J$69)","v":6645.1180766260541},{"$f":"AY$4*('COM-Appliance class'!$J63/'Volume per connection'!$J$69)","v":6653.2626051254547},{"$f":"AZ$4*('COM-Appliance class'!$J63/'Volume per connection'!$J$69)","v":6661.3964977281275},{"$f":"BA$4*('COM-Appliance class'!$J63/'Volume per connection'!$J$69)","v":6669.5198197274167},{"$f":"BB$4*('COM-Appliance class'!$J63/'Volume per connection'!$J$69)","v":6677.6326360119429},{"$f":"BC$4*('COM-Appliance class'!$J63/'Volume per connection'!$J$69)","v":6685.7350110682119},{"$f":"BD$4*('COM-Appliance class'!$J63/'Volume per connection'!$J$69)","v":6693.8270089830821},{"$f":"BE$4*('COM-Appliance class'!$J63/'Volume per connection'!$J$69)","v":6701.9086934463348},{"$f":"BF$4*('COM-Appliance class'!$J63/'Volume per connection'!$J$69)","v":6709.9801277531287},{"$f":"BG$4*('COM-Appliance class'!$J63/'Volume per connection'!$J$69)","v":6718.0413748065057},{"$f":"BH$4*('COM-Appliance class'!$J63/'Volume per connection'!$J$69)","v":6726.0924971198565},{"$f":"BI$4*('COM-Appliance class'!$J63/'Volume per connection'!$J$69)","v":6734.1335568193699},{"$f":"BJ$4*('COM-Appliance class'!$J63/'Volume per connection'!$J$69)","v":6742.164615646454},{"$f":"BK$4*('COM-Appliance class'!$J63/'Volume per connection'!$J$69)","v":6750.185734960186},{"$f":"BL$4*('COM-Appliance class'!$J63/'Volume per connection'!$J$69)","v":6758.1969757396828},{"$f":"BM$4*('COM-Appliance class'!$J63/'Volume per connection'!$J$69)","v":6766.1983985865299},{"$f":"BN$4*('COM-Appliance class'!$J63/'Volume per connection'!$J$69)","v":6774.1900637271056},{"$f":"BO$4*('COM-Appliance class'!$J63/'Volume per connection'!$J$69)","v":6782.1720310149967},{"$f":"BP$4*('COM-Appliance class'!$J63/'Volume per connection'!$J$69)","v":6790.1443599332906},{"$f":"BQ$4*('COM-Appliance class'!$J63/'Volume per connection'!$J$69)","v":6798.1071095969501},{"$f":"BR$4*('COM-Appliance class'!$J63/'Volume per connection'!$J$69)","v":6806.0603387550873},{"$f":"BS$4*('COM-Appliance class'!$J63/'Volume per connection'!$J$69)","v":6814.0041057932995},{"$f":"BT$4*('COM-Appliance class'!$J63/'Volume per connection'!$J$69)","v":6821.9384687359243},{"$f":"BU$4*('COM-Appliance class'!$J63/'Volume per connection'!$J$69)","v":6829.8634852483392},{"$f":"BV$4*('COM-Appliance class'!$J63/'Volume per connection'!$J$69)","v":6837.779212639186},{"$f":"BW$4*('COM-Appliance class'!$J63/'Volume per connection'!$J$69)","v":6845.6857078626545},{"$f":"BX$4*('COM-Appliance class'!$J63/'Volume per connection'!$J$69)","v":6853.5830275206508},{"$f":"BY$4*('COM-Appliance class'!$J63/'Volume per connection'!$J$69)","v":6861.4712278650877},{"$f":"BZ$4*('COM-Appliance class'!$J63/'Volume per connection'!$J$69)","v":6869.3503648000051},{"$f":"CA$4*('COM-Appliance class'!$J63/'Volume per connection'!$J$69)","v":6877.2204938838267},{"$f":"CB$4*('COM-Appliance class'!$J63/'Volume per connection'!$J$69)","v":6885.0816703314731},{"$f":"CC$4*('COM-Appliance class'!$J63/'Volume per connection'!$J$69)","v":6892.9339490165694},{"$f":"CD$4*('COM-Appliance class'!$J63/'Volume per connection'!$J$69)","v":6900.777384473543}]
["Whitehorse (C)",null,{"$f":"C$4*('COM-Appliance class'!$J64/'Volume per connection'!$J$69)","v":2837.817564260833},{"$f":"D$4*('COM-Appliance class'!$J64/'Volume per connection'!$J$69)","v":3488.043880486463},{"$f":"E$4*('COM-Appliance class'!$J64/'Volume per connection'!$J$69)","v":3099.5503952642434},{"$f":"F$4*('COM-Appliance class'!$J64/'Volume per connection'!$J$69)","v":3447.9023232898467},{"$f":"G$4*('COM-Appliance class'!$J64/'Volume per connection'!$J$69)","v":3035.6610044099343},{"$f":"H$4*('COM-Appliance class'!$J64/'Volume per connection'!$J$69)","v":3116.1749325740393},{"$f":"I$4*('COM-Appliance class'!$J64/'Volume per connection'!$J$69)","v":3613.8133827443799},{"$f":"J$4*('COM-Appliance class'!$J64/'Volume per connection'!$J$69)","v":3976.7703756107571},{"$f":"K$4*('COM-Appliance class'!$J64/'Volume per connection'!$J$69)","v":4760.7253299405111},{"$f":"L$4*('COM-Appliance class'!$J64/'Volume per connection'!$J$69)","v":4720.281422210388},{"$f":"M$4*('COM-Appliance class'!$J64/'Volume per connection'!$J$69)","v":3835.3915218773368},{"$f":"N$4*('COM-Appliance class'!$J64/'Volume per connection'!$J$69)","v":3817.4838535224335},{"$f":"O$4*('COM-Appliance class'!$J64/'Volume per connection'!$J$69)","v":4344.2978632716759},{"$f":"P$4*('COM-Appliance class'!$J64/'Volume per connection'!$J$69)","v":4854.1836798695595},{"$f":"Q$4*('COM-Appliance class'!$J64/'Volume per connection'!$J$69)","v":3380.0917358740271},{"$f":"R$4*('COM-Appliance class'!$J64/'Volume per connection'!$J$69)","v":3590.4442458441631},{"$f":"S$4*('COM-Appliance class'!$J64/'Volume per connection'!$J$69)","v":3902.5647808572235},{"$f":"T$4*('COM-Appliance class'!$J64/'Volume per connection'!$J$69)","v":4359.4686421671604},{"$f":"U$4*('COM-Appliance class'!$J64/'Volume per connection'!$J$69)","v":4699.4676564120655},{"$f":"V$4*('COM-Appliance class'!$J64/'Volume per connection'!$J$69)","v":4824.2272129533012},{"$f":"W$4*('COM-Appliance class'!$J64/'Volume per connection'!$J$69)","v":5027.4872316230294},{"$f":"X$4*('COM-Appliance class'!$J64/'Volume per connection'!$J$69)","v":5531.0730391061888},{"$f":"Y$4*('COM-Appliance class'!$J64/'Volume per connection'!$J$69)","v":5949.4826466176983},{"$f":"Z$4*('COM-Appliance class'!$J64/'Volume per connection'!$J$69)","v":6185.7068705597476},{"$f":"AA$4*('COM-Appliance class'!$J64/'Volume per connection'!$J$69)","v":6454.1340476548985},{"$f":"AB$4*('COM-Appliance class'!$J64/'Volume per connection'!$J$69)","v":6622.5503315497226},{"$f":"AC$4*('COM-Appliance class'!$J64/'Volume per connection'!$J$69)","v":6744.4562843421745},{"$f":"AD$4*('COM-Appliance class'!$J64/'Volume per connection'!$J$69)","v":6831.7412477137614},{"$f":"AE$4*('COM-Appliance class'!$J64/'Volume per connection'!$J$69)","v":6904.8895923533864},{"$f":"AF$4*('COM-Appliance class'!$J64/'Volume per connection'!$J$69)","v":7041.0088121826548},{"$f":"AG$4*('COM-Appliance class'!$J64/'Volume per connection'!$J$69)","v":7047.548408808304},{"$f":"AH$4*('COM-Appliance class'!$J64/'Volume per connection'!$J$69)","v":7190.3406467032346},{"$f":"AI$4*('COM-Appliance class'!$J64/'Volume per connection'!$J$69)","v":7199.5298140278828},{"$f":"AJ$4*('COM-Appliance class'!$J64/'Volume per connection'!$J$69)","v":7208.7060234792552},{"$f":"AK$4*('COM-Appliance class'!$J64/'Volume per connection'!$J$69)","v":7217.8693546832546},{"$f":"AL$4*('COM-Appliance class'!$J64/'Volume per connection'!$J$69)","v":7227.0198867715144},{"$f":"AM$4*('COM-Appliance class'!$J64/'Volume per connection'!$J$69)","v":7236.1576983845298},{"$f":"AN$4*('COM-Appliance class'!$J64/'Volume per connection'!$J$69)","v":7245.2828676747095},{"$f":"AO$4*('COM-Appliance class'!$J64/'Volume per connection'!$J$69)","v":7254.395472309503},{"$f":"AP$4*('COM-Appliance class'!$J64/'Volume per connection'!$J$69)","v":7263.4955894743998},{"$f":"AQ$4*('COM-Appliance class'!$J64/'Volume per connection'!$J$69)","v":7272.5832958760184},{"$f":"AR$4*('COM-Appliance class'!$J64/'Volume per connection'!$J$69)","v":7281.6586677450732},{"$f":"AS$4*('COM-Appliance class'!$J64/'Volume per connection'!$J$69)","v":7290.7217808394116},{"$f":"AT$4*('COM-Appliance class'!$J64/'Volume per connection'!$J$69)","v":7299.7727104469495},{"$f":"AU$4*('COM-Appliance class'!$J64/'Volume per connection'!$J$69)","v":7308.8115313886756},{"$f":"AV$4*('COM-Appliance class'!$J64/'Volume per connection'!$J$69)","v":7317.8383180215496},{"$f":"AW$4*('COM-Appliance class'!$J64/'Volume per connection'!$J$69)","v":7326.8531442414551},{"$f":"AX$4*('COM-Appliance class'!$J64/'Volume per connection'!$J$69)","v":7335.8560834860755},{"$f":"AY$4*('COM-Appliance class'!$J64/'Volume per connection'!$J$69)","v":7344.8472087378022},{"$f":"AZ$4*('COM-Appliance class'!$J64/'Volume per connection'!$J$69)","v":7353.826592526575},{"$f":"BA$4*('COM-Appliance class'!$J64/'Volume per connection'!$J$69)","v":7362.7943069327657},{"$f":"BB$4*('COM-Appliance class'!$J64/'Volume per connection'!$J$69)","v":7371.7504235899542},{"$f":"BC$4*('COM-Appliance class'!$J64/'Volume per connection'!$J$69)","v":7380.6950136878004},{"$f":"BD$4*('COM-Appliance class'!$J64/'Volume per connection'!$J$69)","v":7389.6281479747831},{"$f":"BE$4*('COM-Appliance class'!$J64/'Volume per connection'!$J$69)","v":7398.5498967610247},{"$f":"BF$4*('COM-Appliance class'!$J64/'Volume per connection'!$J$69)","v":7407.4603299210048},{"$f":"BG$4*('COM-Appliance class'!$J64/'Volume per connection'!$J$69)","v":7416.3595168963284},{"$f":"BH$4*('COM-Appliance class'!$J64/'Volume per connection'!$J$69)","v":7425.2475266984466},{"$f":"BI$4*('COM-Appliance class'!$J64/'Volume per connection'!$J$69)","v":7434.1244279113598},{"$f":"BJ$4*('COM-Appliance class'!$J64/'Volume per connection'!$J$69)","v":7442.9902886942891},{"$f":"BK$4*('COM-Appliance class'!$J64/'Volume per connection'!$J$69)","v":7451.8451767843871},{"$f":"BL$4*('COM-Appliance class'!$J64/'Volume per connection'!$J$69)","v":7460.6891594993458},{"$f":"BM$4*('COM-Appliance class'!$J64/'Volume per connection'!$J$69)","v":7469.5223037400865},{"$f":"BN$4*('COM-Appliance class'!$J64/'Volume per connection'!$J$69)","v":7478.3446759933195},{"$f":"BO$4*('COM-Appliance class'!$J64/'Volume per connection'!$J$69)","v":7487.1563423342113},{"$f":"BP$4*('COM-Appliance class'!$J64/'Volume per connection'!$J$69)","v":7495.9573684289226},{"$f":"BQ$4*('COM-Appliance class'!$J64/'Volume per connection'!$J$69)","v":7504.7478195372178},{"$f":"BR$4*('COM-Appliance class'!$J64/'Volume per connection'!$J$69)","v":7513.5277605149859},{"$f":"BS$4*('COM-Appliance class'!$J64/'Volume per connection'!$J$69)","v":7522.297255816814},{"$f":"BT$4*('COM-Appliance class'!$J64/'Volume per connection'!$J$69)","v":7531.0563694984767},{"$f":"BU$4*('COM-Appliance class'!$J64/'Volume per connection'!$J$69)","v":7539.8051652194772},{"$f":"BV$4*('COM-Appliance class'!$J64/'Volume per connection'!$J$69)","v":7548.5437062454994},{"$f":"BW$4*('COM-Appliance class'!$J64/'Volume per connection'!$J$69)","v":7557.2720554509342},{"$f":"BX$4*('COM-Appliance class'!$J64/'Volume per connection'!$J$69)","v":7565.9902753212664},{"$f":"BY$4*('COM-Appliance class'!$J64/'Volume per connection'!$J$69)","v":7574.69842795561},{"$f":"BZ$4*('COM-Appliance class'!$J64/'Volume per connection'!$J$69)","v":7583.3965750690431},{"$f":"CA$4*('COM-Appliance class'!$J64/'Volume per connection'!$J$69)","v":7592.0847779951064},{"$f":"CB$4*('COM-Appliance class'!$J64/'Volume per connection'!$J$69)","v":7600.7630976881255},{"$f":"CC$4*('COM-Appliance class'!$J64/'Volume per connection'!$J$69)","v":7609.4315947256591},{"$f":"CD$4*('COM-Appliance class'!$J64/'Volume per connection'!$J$69)","v":7618.0903293108067}]
["Yarra Ranges (S)",null,{"$f":"C$4*('COM-Appliance class'!$J65/'Volume per connection'!$J$69)","v":3336.2986850116249},{"$f":"D$4*('COM-Appliance class'!$J65/'Volume per connection'!$J$69)","v":4100.7414846841866},{"$f":"E$4*('COM-Appliance class'!$J65/'Volume per connection'!$J$69)","v":3644.0065908679676},{"$f":"F$4*('COM-Appliance class'!$J65/'Volume per connection'!$J$69)","v":4053.5488017661528},{"$f":"G$4*('COM-Appliance class'!$J65/'Volume per connection'!$J$69)","v":3568.8946127838708},{"$f":"H$4*('COM-Appliance class'!$J65/'Volume per connection'!$J$69)","v":3663.5513363315636},{"$f":"I$4*('COM-Appliance class'!$J65/'Volume per connection'!$J$69)","v":4248.6032183918469},{"$f":"J$4*('COM-Appliance class'!$J65/'Volume per connection'!$J$69)","v":4675.315968804779},{"$f":"K$4*('COM-Appliance class'!$J65/'Volume per connection'!$J$69)","v":5596.977712032437},{"$f":"L$4*('COM-Appliance class'!$J65/'Volume per connection'!$J$69)","v":5549.4295687423},{"$f":"M$4*('COM-Appliance class'!$J65/'Volume per connection'!$J$69)","v":4509.1029994653918},{"$f":"N$4*('COM-Appliance class'!$J65/'Volume per connection'!$J$69)","v":4488.0497326393224},{"$f":"O$4*('COM-Appliance class'!$J65/'Volume per connection'!$J$69)","v":5107.4020511629769},{"$f":"P$4*('COM-Appliance class'!$J65/'Volume per connection'!$J$69)","v":5706.852629257025},{"$f":"Q$4*('COM-Appliance class'!$J65/'Volume per connection'!$J$69)","v":3973.826843429415},{"$f":"R$4*('COM-Appliance class'!$J65/'Volume per connection'!$J$69)","v":4221.1291405328784},{"$f":"S$4*('COM-Appliance class'!$J65/'Volume per connection'!$J$69)","v":4588.0756784793484},{"$f":"T$4*('COM-Appliance class'!$J65/'Volume per connection'!$J$69)","v":5125.2376760872285},{"$f":"U$4*('COM-Appliance class'!$J65/'Volume per connection'!$J$69)","v":5524.959729546993},{"$f":"V$4*('COM-Appliance class'!$J65/'Volume per connection'!$J$69)","v":5671.6341140011518},{"$f":"W$4*('COM-Appliance class'!$J65/'Volume per connection'!$J$69)","v":5910.598077556675},{"$f":"X$4*('COM-Appliance class'!$J65/'Volume per connection'!$J$69)","v":6502.6420089410394},{"$f":"Y$4*('COM-Appliance class'!$J65/'Volume per connection'!$J$69)","v":6994.547986589916},{"$f":"Z$4*('COM-Appliance class'!$J65/'Volume per connection'!$J$69)","v":7272.2665325708776},{"$f":"AA$4*('COM-Appliance class'!$J65/'Volume per connection'!$J$69)","v":7587.8446899698702},{"$f":"AB$4*('COM-Appliance class'!$J65/'Volume per connection'!$J$69)","v":7785.8443900102084},{"$f":"AC$4*('COM-Appliance class'!$J65/'Volume per connection'!$J$69)","v":7929.1639166488012},{"$f":"AD$4*('COM-Appliance class'!$J65/'Volume per connection'!$J$69)","v":8031.7810517970793},{"$f":"AE$4*('COM-Appliance class'!$J65/'Volume per connection'!$J$69)","v":8117.7783791466009},{"$f":"AF$4*('COM-Appliance class'!$J65/'Volume per connection'!$J$69)","v":8277.8078256623012},{"$f":"AG$4*('COM-Appliance class'!$J65/'Volume per connection'!$J$69)","v":8285.4961449881921},{"$f":"AH$4*('COM-Appliance class'!$J65/'Volume per connection'!$J$69)","v":8453.3707686139041},{"$f":"AI$4*('COM-Appliance class'!$J65/'Volume per connection'!$J$69)","v":8464.1740729727462},{"$f":"AJ$4*('COM-Appliance class'!$J65/'Volume per connection'!$J$69)","v":8474.9621433235552},{"$f":"AK$4*('COM-Appliance class'!$J65/'Volume per connection'!$J$69)","v":8485.7350732790401},{"$f":"AL$4*('COM-Appliance class'!$J65/'Volume per connection'!$J$69)","v":8496.4929558708245},{"$f":"AM$4*('COM-Appliance class'!$J65/'Volume per connection'!$J$69)","v":8507.235883553114},{"$f":"AN$4*('COM-Appliance class'!$J65/'Volume per connection'!$J$69)","v":8517.9639482062994},{"$f":"AO$4*('COM-Appliance class'!$J65/'Volume per connection'!$J$69)","v":8528.6772411406218},{"$f":"AP$4*('COM-Appliance class'!$J65/'Volume per connection'!$J$69)","v":8539.3758530997056},{"$f":"AQ$4*('COM-Appliance class'!$J65/'Volume per connection'!$J$69)","v":8550.0598742641832},{"$f":"AR$4*('COM-Appliance class'!$J65/'Volume per connection'!$J$69)","v":8560.7293942551933},{"$f":"AS$4*('COM-Appliance class'!$J65/'Volume per connection'!$J$69)","v":8571.3845021379402},{"$f":"AT$4*('COM-Appliance class'!$J65/'Volume per connection'!$J$69)","v":8582.0252864251524},{"$f":"AU$4*('COM-Appliance class'!$J65/'Volume per connection'!$J$69)","v":8592.6518350806127},{"$f":"AV$4*('COM-Appliance class'!$J65/'Volume per connection'!$J$69)","v":8603.2642355225635},{"$f":"AW$4*('COM-Appliance class'!$J65/'Volume per connection'!$J$69)","v":8613.8625746271809},{"$f":"AX$4*('COM-Appliance class'!$J65/'Volume per connection'!$J$69)","v":8624.4469387319587},{"$f":"AY$4*('COM-Appliance class'!$J65/'Volume per connection'!$J$69)","v":8635.0174136391161},{"$f":"AZ$4*('COM-Appliance class'!$J65/'Volume per connection'!$J$69)","v":8645.5740846189492},{"$f":"BA$4*('COM-Appliance class'!$J65/'Volume per connection'!$J$69)","v":8656.1170364132213},{"$f":"BB$4*('COM-Appliance class'!$J65/'Volume per connection'!$J$69)","v":8666.6463532384078},{"$f":"BC$4*('COM-Appliance class'!$J65/'Volume per connection'!$J$69)","v":8677.1621187891051},{"$f":"BD$4*('COM-Appliance class'!$J65/'Volume per connection'!$J$69)","v":8687.6644162412158},{"$f":"BE$4*('COM-Appliance class'!$J65/'Volume per connection'!$J$69)","v":8698.1533282552955},{"$f":"BF$4*('COM-Appliance class'!$J65/'Volume per connection'!$J$69)","v":8708.6289369797305},{"$f":"BG$4*('COM-Appliance class'!$J65/'Volume per connection'!$J$69)","v":8719.0913240539958},{"$f":"BH$4*('COM-Appliance class'!$J65/'Volume per connection'!$J$69)","v":8729.5405706118509},{"$f":"BI$4*('COM-Appliance class'!$J65/'Volume per connection'!$J$69)","v":8739.9767572845267},{"$f":"BJ$4*('COM-Appliance class'!$J65/'Volume per connection'!$J$69)","v":8750.3999642038507},{"$f":"BK$4*('COM-Appliance class'!$J65/'Volume per connection'!$J$69)","v":8760.8102710054482},{"$f":"BL$4*('COM-Appliance class'!$J65/'Volume per connection'!$J$69)","v":8771.2077568318036},{"$f":"BM$4*('COM-Appliance class'!$J65/'Volume per connection'!$J$69)","v":8781.5925003354187},{"$f":"BN$4*('COM-Appliance class'!$J65/'Volume per connection'!$J$69)","v":8791.9645796818259},{"$f":"BO$4*('COM-Appliance class'!$J65/'Volume per connection'!$J$69)","v":8802.3240725527285},{"$f":"BP$4*('COM-Appliance class'!$J65/'Volume per connection'!$J$69)","v":8812.6710561489708},{"$f":"BQ$4*('COM-Appliance class'!$J65/'Volume per connection'!$J$69)","v":8823.0056071936233},{"$f":"BR$4*('COM-Appliance class'!$J65/'Volume per connection'!$J$69)","v":8833.3278019349327},{"$f":"BS$4*('COM-Appliance class'!$J65/'Volume per connection'!$J$69)","v":8843.6377161493529},{"$f":"BT$4*('COM-Appliance class'!$J65/'Volume per connection'!$J$69)","v":8853.9354251444729},{"$f":"BU$4*('COM-Appliance class'!$J65/'Volume per connection'!$J$69)","v":8864.2210037620025},{"$f":"BV$4*('COM-Appliance class'!$J65/'Volume per connection'!$J$69)","v":8874.494526380653},{"$f":"BW$4*('COM-Appliance class'!$J65/'Volume per connection'!$J$69)","v":8884.7560669191116},{"$f":"BX$4*('COM-Appliance class'!$J65/'Volume per connection'!$J$69)","v":8895.005698838846},{"$f":"BY$4*('COM-Appliance class'!$J65/'Volume per connection'!$J$69)","v":8905.2434951470841},{"$f":"BZ$4*('COM-Appliance class'!$J65/'Volume per connection'!$J$69)","v":8915.469528399557},{"$f":"CA$4*('COM-Appliance class'!$J65/'Volume per connection'!$J$69)","v":8925.6838707034422},{"$f":"CB$4*('COM-Appliance class'!$J65/'Volume per connection'!$J$69)","v":8935.8865937200899},{"$f":"CC$4*('COM-Appliance class'!$J65/'Volume per connection'!$J$69)","v":8946.0777686679012},{"$f":"CD$4*('COM-Appliance class'!$J65/'Volume per connection'!$J$69)","v":8956.2574663250398}]
[]
["LGA 150-500GJ",2020,{"$f":"B245+1","v":2021},{"$f":"C245+1","v":2022},{"$f":"D245+1","v":2023},{"$f":"E245+1","v":2024},{"$f":"F245+1","v":2025},{"$f":"G245+1","v":2026},{"$f":"H245+1","v":2027},{"$f":"I245+1","v":2028},{"$f":"J245+1","v":2029},{"$f":"K245+1","v":2030},{"$f":"L245+1","v":2031},{"$f":"M245+1","v":2032},{"$f":"N245+1","v":2033},{"$f":"O245+1","v":2034},{"$f":"P245+1","v":2035},{"$f":"Q245+1","v":2036},{"$f":"R245+1","v":2037},{"$f":"S245+1","v":2038},{"$f":"T245+1","v":2039},{"$f":"U245+1","v":2040},{"$f":"V245+1","v":2041},{"$f":"W245+1","v":2042},{"$f":"X245+1","v":2043},{"$f":"Y245+1","v":2044},{"$f":"Z245+1","v":2045},{"$f":"AA245+1","v":2046},{"$f":"AB245+1","v":2047},{"$f":"AC245+1","v":2048},{"$f":"AD245+1","v":2049},{"$f":"AE245+1","v":2050},{"$f":"AF245+1","v":2051},{"$f":"AG245+1","v":2052},{"$f":"AH245+1","v":2053},{"$f":"AI245+1","v":2054},{"$f":"AJ245+1","v":2055},{"$f":"AK245+1","v":2056},{"$f":"AL245+1","v":2057},{"$f":"AM245+1","v":2058},{"$f":"AN245+1","v":2059},{"$f":"AO245+1","v":2060},{"$f":"AP245+1","v":2061},{"$f":"AQ245+1","v":2062},{"$f":"AR245+1","v":2063},{"$f":"AS245+1","v":2064},{"$f":"AT245+1","v":2065},{"$f":"AU245+1","v":2066},{"$f":"AV245+1","v":2067},{"$f":"AW245+1","v":2068},{"$f":"AX245+1","v":2069},{"$f":"AY245+1","v":2070},{"$f":"AZ245+1","v":2071},{"$f":"BA245+1","v":2072},{"$f":"BB245+1","v":2073},{"$f":"BC245+1","v":2074},{"$f":"BD245+1","v":2075},{"$f":"BE245+1","v":2076},{"$f":"BF245+1","v":2077},{"$f":"BG245+1","v":2078},{"$f":"BH245+1","v":2079},{"$f":"BI245+1","v":2080},{"$f":"BJ245+1","v":2081},{"$f":"BK245+1","v":2082},{"$f":"BL245+1","v":2083},{"$f":"BM245+1","v":2084},{"$f":"BN245+1","v":2085},{"$f":"BO245+1","v":2086},{"$f":"BP245+1","v":2087},{"$f":"BQ245+1","v":2088},{"$f":"BR245+1","v":2089},{"$f":"BS245+1","v":2090},{"$f":"BT245+1","v":2091},{"$f":"BU245+1","v":2092},{"$f":"BV245+1","v":2093},{"$f":"BW245+1","v":2094},{"$f":"BX245+1","v":2095},{"$f":"BY245+1","v":2096},{"$f":"BZ245+1","v":2097},{"$f":"CA245+1","v":2098},{"$f":"CB245+1","v":2099},{"$f":"CC245+1","v":2100}]
["Bass Coast (S)",null,{"$f":"C$4*('COM-Appliance class'!$U47/'Volume per connection'!$J$69)","v":16681.506978681096},{"$f":"D$4*('COM-Appliance class'!$U47/'Volume per connection'!$J$69)","v":20503.724082572058},{"$f":"E$4*('COM-Appliance class'!$U47/'Volume per connection'!$J$69)","v":18220.047758017834},{"$f":"F$4*('COM-Appliance class'!$U47/'Volume per connection'!$J$69)","v":20267.760476262891},{"$f":"G$4*('COM-Appliance class'!$U47/'Volume per connection'!$J$69)","v":17844.487562456976},{"$f":"H$4*('COM-Appliance class'!$U47/'Volume per connection'!$J$69)","v":18317.771564735813},{"$f":"I$4*('COM-Appliance class'!$U47/'Volume per connection'!$J$69)","v":21243.033351794642},{"$f":"J$4*('COM-Appliance class'!$U47/'Volume per connection'!$J$69)","v":23376.598837368289},{"$f":"K$4*('COM-Appliance class'!$U47/'Volume per connection'!$J$69)","v":27984.911297732426},{"$f":"L$4*('COM-Appliance class'!$U47/'Volume per connection'!$J$69)","v":27747.170388118695},{"$f":"M$4*('COM-Appliance class'!$U47/'Volume per connection'!$J$69)","v":22545.533315435667},{"$f":"N$4*('COM-Appliance class'!$U47/'Volume per connection'!$J$69)","v":22440.266895776997},{"$f":"O$4*('COM-Appliance class'!$U47/'Volume per connection'!$J$69)","v":25537.031004497276},{"$f":"P$4*('COM-Appliance class'!$U47/'Volume per connection'!$J$69)","v":28534.286330219235},{"$f":"Q$4*('COM-Appliance class'!$U47/'Volume per connection'!$J$69)","v":19869.150360710908},{"$f":"R$4*('COM-Appliance class'!$U47/'Volume per connection'!$J$69)","v":21105.662850887107},{"$f":"S$4*('COM-Appliance class'!$U47/'Volume per connection'!$J$69)","v":22940.39703132982},{"$f":"T$4*('COM-Appliance class'!$U47/'Volume per connection'!$J$69)","v":25626.209201575275},{"$f":"U$4*('COM-Appliance class'!$U47/'Volume per connection'!$J$69)","v":27624.821092734102},{"$f":"V$4*('COM-Appliance class'!$U47/'Volume per connection'!$J$69)","v":28358.193610865605},{"$f":"W$4*('COM-Appliance class'!$U47/'Volume per connection'!$J$69)","v":29553.014399427848},{"$f":"X$4*('COM-Appliance class'!$U47/'Volume per connection'!$J$69)","v":32513.236461512093},{"$f":"Y$4*('COM-Appliance class'!$U47/'Volume per connection'!$J$69)","v":34972.768348111174},{"$f":"Z$4*('COM-Appliance class'!$U47/'Volume per connection'!$J$69)","v":36361.362206240046},{"$f":"AA$4*('COM-Appliance class'!$U47/'Volume per connection'!$J$69)","v":37939.25427526272},{"$f":"AB$4*('COM-Appliance class'!$U47/'Volume per connection'!$J$69)","v":38929.253579832824},{"$f":"AC$4*('COM-Appliance class'!$U47/'Volume per connection'!$J$69)","v":39645.851795257484},{"$f":"AD$4*('COM-Appliance class'!$U47/'Volume per connection'!$J$69)","v":40158.937887878208},{"$f":"AE$4*('COM-Appliance class'!$U47/'Volume per connection'!$J$69)","v":40588.92487398762},{"$f":"AF$4*('COM-Appliance class'!$U47/'Volume per connection'!$J$69)","v":41389.072756681417},{"$f":"AG$4*('COM-Appliance class'!$U47/'Volume per connection'!$J$69)","v":41427.514384544455},{"$f":"AH$4*('COM-Appliance class'!$U47/'Volume per connection'!$J$69)","v":42266.888184659125},{"$f":"AI$4*('COM-Appliance class'!$U47/'Volume per connection'!$J$69)","v":42320.904750341469},{"$f":"AJ$4*('COM-Appliance class'!$U47/'Volume per connection'!$J$69)","v":42374.845145921754},{"$f":"AK$4*('COM-Appliance class'!$U47/'Volume per connection'!$J$69)","v":42428.709839463918},{"$f":"AL$4*('COM-Appliance class'!$U47/'Volume per connection'!$J$69)","v":42482.499296126443},{"$f":"AM$4*('COM-Appliance class'!$U47/'Volume per connection'!$J$69)","v":42536.213978180742},{"$f":"AN$4*('COM-Appliance class'!$U47/'Volume per connection'!$J$69)","v":42589.85434502914},{"$f":"AO$4*('COM-Appliance class'!$U47/'Volume per connection'!$J$69)","v":42643.420853223215},{"$f":"AP$4*('COM-Appliance class'!$U47/'Volume per connection'!$J$69)","v":42696.913956481454},{"$f":"AQ$4*('COM-Appliance class'!$U47/'Volume per connection'!$J$69)","v":42750.334105707392},{"$f":"AR$4*('COM-Appliance class'!$U47/'Volume per connection'!$J$69)","v":42803.681749007075},{"$f":"AS$4*('COM-Appliance class'!$U47/'Volume per connection'!$J$69)","v":42856.957331706893},{"$f":"AT$4*('COM-Appliance class'!$U47/'Volume per connection'!$J$69)","v":42910.161296370854},{"$f":"AU$4*('COM-Appliance class'!$U47/'Volume per connection'!$J$69)","v":42963.294082818225},{"$f":"AV$4*('COM-Appliance class'!$U47/'Volume per connection'!$J$69)","v":43016.356128140564},{"$f":"AW$4*('COM-Appliance class'!$U47/'Volume per connection'!$J$69)","v":43069.347866719123},{"$f":"AX$4*('COM-Appliance class'!$U47/'Volume per connection'!$J$69)","v":43122.2697302417},{"$f":"AY$4*('COM-Appliance class'!$U47/'Volume per connection'!$J$69)","v":43175.122147719754},{"$f":"AZ$4*('COM-Appliance class'!$U47/'Volume per connection'!$J$69)","v":43227.905545505113},{"$f":"BA$4*('COM-Appliance class'!$U47/'Volume per connection'!$J$69)","v":43280.620347306925},{"$f":"BB$4*('COM-Appliance class'!$U47/'Volume per connection'!$J$69)","v":43333.266974207931},{"$f":"BC$4*('COM-Appliance class'!$U47/'Volume per connection'!$J$69)","v":43385.845844681426},{"$f":"BD$4*('COM-Appliance class'!$U47/'Volume per connection'!$J$69)","v":43438.357374607273},{"$f":"BE$4*('COM-Appliance class'!$U47/'Volume per connection'!$J$69)","v":43490.801977288589},{"$f":"BF$4*('COM-Appliance class'!$U47/'Volume per connection'!$J$69)","v":43543.18006346764},{"$f":"BG$4*('COM-Appliance class'!$U47/'Volume per connection'!$J$69)","v":43595.492041342135},{"$f":"BH$4*('COM-Appliance class'!$U47/'Volume per connection'!$J$69)","v":43647.738316581199},{"$f":"BI$4*('COM-Appliance class'!$U47/'Volume per connection'!$J$69)","v":43699.919292341299},{"$f":"BJ$4*('COM-Appliance class'!$U47/'Volume per connection'!$J$69)","v":43752.035369281912},{"$f":"BK$4*('COM-Appliance class'!$U47/'Volume per connection'!$J$69)","v":43804.08694558149},{"$f":"BL$4*('COM-Appliance class'!$U47/'Volume per connection'!$J$69)","v":43856.074416952768},{"$f":"BM$4*('COM-Appliance class'!$U47/'Volume per connection'!$J$69)","v":43907.998176658584},{"$f":"BN$4*('COM-Appliance class'!$U47/'Volume per connection'!$J$69)","v":43959.858615526908},{"$f":"BO$4*('COM-Appliance class'!$U47/'Volume per connection'!$J$69)","v":44011.656121966582},{"$f":"BP$4*('COM-Appliance class'!$U47/'Volume per connection'!$J$69)","v":44063.391081982132},{"$f":"BQ$4*('COM-Appliance class'!$U47/'Volume per connection'!$J$69)","v":44115.063879189227},{"$f":"BR$4*('COM-Appliance class'!$U47/'Volume per connection'!$J$69)","v":44166.674894829412},{"$f":"BS$4*('COM-Appliance class'!$U47/'Volume per connection'!$J$69)","v":44218.224507785264},{"$f":"BT$4*('COM-Appliance class'!$U47/'Volume per connection'!$J$69)","v":44269.713094595027},{"$f":"BU$4*('COM-Appliance class'!$U47/'Volume per connection'!$J$69)","v":44321.141029467559},{"$f":"BV$4*('COM-Appliance class'!$U47/'Volume per connection'!$J$69)","v":44372.508684296714},{"$f":"BW$4*('COM-Appliance class'!$U47/'Volume per connection'!$J$69)","v":44423.81642867624},{"$f":"BX$4*('COM-Appliance class'!$U47/'Volume per connection'!$J$69)","v":44475.064629913766},{"$f":"BY$4*('COM-Appliance class'!$U47/'Volume per connection'!$J$69)","v":44526.253653045722},{"$f":"BZ$4*('COM-Appliance class'!$U47/'Volume per connection'!$J$69)","v":44577.383860851078},{"$f":"CA$4*('COM-Appliance class'!$U47/'Volume per connection'!$J$69)","v":44628.45561386599},{"$f":"CB$4*('COM-Appliance class'!$U47/'Volume per connection'!$J$69)","v":44679.469270397516},{"$f":"CC$4*('COM-Appliance class'!$U47/'Volume per connection'!$J$69)","v":44730.425186537941},{"$f":"CD$4*('COM-Appliance class'!$U47/'Volume per connection'!$J$69)","v":44781.323716178376}]
["Bayside (C)",null,{"$f":"C$4*('COM-Appliance class'!$U48/'Volume per connection'!$J$69)","v":16652.67941997348},{"$f":"D$4*('COM-Appliance class'!$U48/'Volume per connection'!$J$69)","v":20468.29129400742},{"$f":"E$4*('COM-Appliance class'!$U48/'Volume per connection'!$J$69)","v":18188.56142425488},{"$f":"F$4*('COM-Appliance class'!$U48/'Volume per connection'!$J$69)","v":20232.735459893083},{"$f":"G$4*('COM-Appliance class'!$U48/'Volume per connection'!$J$69)","v":17813.650239817514},{"$f":"H$4*('COM-Appliance class'!$U48/'Volume per connection'!$J$69)","v":18286.116353018431},{"$f":"I$4*('COM-Appliance class'!$U48/'Volume per connection'!$J$69)","v":21206.322951957303},{"$f":"J$4*('COM-Appliance class'!$U48/'Volume per connection'!$J$69)","v":23336.201391488255},{"$f":"K$4*('COM-Appliance class'!$U48/'Volume per connection'!$J$69)","v":27936.550158993949},{"$f":"L$4*('COM-Appliance class'!$U48/'Volume per connection'!$J$69)","v":27699.220092959153},{"$f":"M$4*('COM-Appliance class'!$U48/'Volume per connection'!$J$69)","v":22506.5720461645},{"$f":"N$4*('COM-Appliance class'!$U48/'Volume per connection'!$J$69)","v":22401.487538961133},{"$f":"O$4*('COM-Appliance class'!$U48/'Volume per connection'!$J$69)","v":25492.900083865152},{"$f":"P$4*('COM-Appliance class'!$U48/'Volume per connection'!$J$69)","v":28484.975808369167},{"$f":"Q$4*('COM-Appliance class'!$U48/'Volume per connection'!$J$69)","v":19834.814188371933},{"$f":"R$4*('COM-Appliance class'!$U48/'Volume per connection'!$J$69)","v":21069.18984304227},{"$f":"S$4*('COM-Appliance class'!$U48/'Volume per connection'!$J$69)","v":22900.753392236431},{"$f":"T$4*('COM-Appliance class'!$U48/'Volume per connection'!$J$69)","v":25581.924170783022},{"$f":"U$4*('COM-Appliance class'!$U48/'Volume per connection'!$J$69)","v":27577.082231199834},{"$f":"V$4*('COM-Appliance class'!$U48/'Volume per connection'!$J$69)","v":28309.187397445923},{"$f":"W$4*('COM-Appliance class'!$U48/'Volume per connection'!$J$69)","v":29501.943398547934},{"$f":"X$4*('COM-Appliance class'!$U48/'Volume per connection'!$J$69)","v":32457.049857144353},{"$f":"Y$4*('COM-Appliance class'!$U48/'Volume per connection'!$J$69)","v":34912.331390346415},{"$f":"Z$4*('COM-Appliance class'!$U48/'Volume per connection'!$J$69)","v":36298.525598910208},{"$f":"AA$4*('COM-Appliance class'!$U48/'Volume per connection'!$J$69)","v":37873.690889332356},{"$f":"AB$4*('COM-Appliance class'!$U48/'Volume per connection'!$J$69)","v":38861.979361475307},{"$f":"AC$4*('COM-Appliance class'!$U48/'Volume per connection'!$J$69)","v":39577.339212934923},{"$f":"AD$4*('COM-Appliance class'!$U48/'Volume per connection'!$J$69)","v":40089.53863389726},{"$f":"AE$4*('COM-Appliance class'!$U48/'Volume per connection'!$J$69)","v":40518.782553142191},{"$f":"AF$4*('COM-Appliance class'!$U48/'Volume per connection'!$J$69)","v":41317.547688456354},{"$f":"AG$4*('COM-Appliance class'!$U48/'Volume per connection'!$J$69)","v":41355.922884774242},{"$f":"AH$4*('COM-Appliance class'!$U48/'Volume per connection'!$J$69)","v":42193.84615062175},{"$f":"AI$4*('COM-Appliance class'!$U48/'Volume per connection'!$J$69)","v":42247.769369478752},{"$f":"AJ$4*('COM-Appliance class'!$U48/'Volume per connection'!$J$69)","v":42301.616549864375},{"$f":"AK$4*('COM-Appliance class'!$U48/'Volume per connection'!$J$69)","v":42355.388159033682},{"$f":"AL$4*('COM-Appliance class'!$U48/'Volume per connection'!$J$69)","v":42409.084661341316},{"$f":"AM$4*('COM-Appliance class'!$U48/'Volume per connection'!$J$69)","v":42462.706518259838},{"$f":"AN$4*('COM-Appliance class'!$U48/'Volume per connection'!$J$69)","v":42516.254188397659},{"$f":"AO$4*('COM-Appliance class'!$U48/'Volume per connection'!$J$69)","v":42569.728127517381},{"$f":"AP$4*('COM-Appliance class'!$U48/'Volume per connection'!$J$69)","v":42623.128788553426},{"$f":"AQ$4*('COM-Appliance class'!$U48/'Volume per connection'!$J$69)","v":42676.456621630117},{"$f":"AR$4*('COM-Appliance class'!$U48/'Volume per connection'!$J$69)","v":42729.712074079107},{"$f":"AS$4*('COM-Appliance class'!$U48/'Volume per connection'!$J$69)","v":42782.895590457229},{"$f":"AT$4*('COM-Appliance class'!$U48/'Volume per connection'!$J$69)","v":42836.00761256367},{"$f":"AU$4*('COM-Appliance class'!$U48/'Volume per connection'!$J$69)","v":42889.048579457653},{"$f":"AV$4*('COM-Appliance class'!$U48/'Volume per connection'!$J$69)","v":42942.018927475394},{"$f":"AW$4*('COM-Appliance class'!$U48/'Volume per connection'!$J$69)","v":42994.919090247466},{"$f":"AX$4*('COM-Appliance class'!$U48/'Volume per connection'!$J$69)","v":43047.749498715675},{"$f":"AY$4*('COM-Appliance class'!$U48/'Volume per connection'!$J$69)","v":43100.510581150105},{"$f":"AZ$4*('COM-Appliance class'!$U48/'Volume per connection'!$J$69)","v":43153.202763165791},{"$f":"BA$4*('COM-Appliance class'!$U48/'Volume per connection'!$J$69)","v":43205.826467739651},{"$f":"BB$4*('COM-Appliance class'!$U48/'Volume per connection'!$J$69)","v":43258.382115226763},{"$f":"BC$4*('COM-Appliance class'!$U48/'Volume per connection'!$J$69)","v":43310.870123377252},{"$f":"BD$4*('COM-Appliance class'!$U48/'Volume per connection'!$J$69)","v":43363.29090735229},{"$f":"BE$4*('COM-Appliance class'!$U48/'Volume per connection'!$J$69)","v":43415.644879740757},{"$f":"BF$4*('COM-Appliance class'!$U48/'Volume per connection'!$J$69)","v":43467.932450575106},{"$f":"BG$4*('COM-Appliance class'!$U48/'Volume per connection'!$J$69)","v":43520.154027347635},{"$f":"BH$4*('COM-Appliance class'!$U48/'Volume per connection'!$J$69)","v":43572.310015026429},{"$f":"BI$4*('COM-Appliance class'!$U48/'Volume per connection'!$J$69)","v":43624.400816071255},{"$f":"BJ$4*('COM-Appliance class'!$U48/'Volume per connection'!$J$69)","v":43676.426830449207},{"$f":"BK$4*('COM-Appliance class'!$U48/'Volume per connection'!$J$69)","v":43728.388455650631},{"$f":"BL$4*('COM-Appliance class'!$U48/'Volume per connection'!$J$69)","v":43780.286086704429},{"$f":"BM$4*('COM-Appliance class'!$U48/'Volume per connection'!$J$69)","v":43832.12011619383},{"$f":"BN$4*('COM-Appliance class'!$U48/'Volume per connection'!$J$69)","v":43883.890934271425},{"$f":"BO$4*('COM-Appliance class'!$U48/'Volume per connection'!$J$69)","v":43935.598928674815},{"$f":"BP$4*('COM-Appliance class'!$U48/'Volume per connection'!$J$69)","v":43987.244484741495},{"$f":"BQ$4*('COM-Appliance class'!$U48/'Volume per connection'!$J$69)","v":44038.827985424185},{"$f":"BR$4*('COM-Appliance class'!$U48/'Volume per connection'!$J$69)","v":44090.349811305598},{"$f":"BS$4*('COM-Appliance class'!$U48/'Volume per connection'!$J$69)","v":44141.810340613563},{"$f":"BT$4*('COM-Appliance class'!$U48/'Volume per connection'!$J$69)","v":44193.209949235636},{"$f":"BU$4*('COM-Appliance class'!$U48/'Volume per connection'!$J$69)","v":44244.549010733972},{"$f":"BV$4*('COM-Appliance class'!$U48/'Volume per connection'!$J$69)","v":44295.827896359777},{"$f":"BW$4*('COM-Appliance class'!$U48/'Volume per connection'!$J$69)","v":44347.046975068079},{"$f":"BX$4*('COM-Appliance class'!$U48/'Volume per connection'!$J$69)","v":44398.206613531773},{"$f":"BY$4*('COM-Appliance class'!$U48/'Volume per connection'!$J$69)","v":44449.30717615645},{"$f":"BZ$4*('COM-Appliance class'!$U48/'Volume per connection'!$J$69)","v":44500.349025094154},{"$f":"CA$4*('COM-Appliance class'!$U48/'Volume per connection'!$J$69)","v":44551.332520258009},{"$f":"CB$4*('COM-Appliance class'!$U48/'Volume per connection'!$J$69)","v":44602.258019335874},{"$f":"CC$4*('COM-Appliance class'!$U48/'Volume per connection'!$J$69)","v":44653.125877804647},{"$f":"CD$4*('COM-Appliance class'!$U48/'Volume per connection'!$J$69)","v":44703.936448943903}]
["Boroondara (C)",null,{"$f":"C$4*('COM-Appliance class'!$U49/'Volume per connection'!$J$69)","v":16764.312829216873},{"$f":"D$4*('COM-Appliance class'!$U49/'Volume per connection'!$J$69)","v":20605.503155288818},{"$f":"E$4*('COM-Appliance class'!$U49/'Volume per connection'!$J$69)","v":18310.490818907558},{"$f":"F$4*('COM-Appliance class'!$U49/'Volume per connection'!$J$69)","v":20368.368241906439},{"$f":"G$4*('COM-Appliance class'!$U49/'Volume per connection'!$J$69)","v":17933.066368428928},{"$f":"H$4*('COM-Appliance class'!$U49/'Volume per connection'!$J$69)","v":18408.699719864515},{"$f":"I$4*('COM-Appliance class'!$U49/'Volume per connection'!$J$69)","v":21348.482304752146},{"$f":"J$4*('COM-Appliance class'!$U49/'Volume per connection'!$J$69)","v":23492.638662297522},{"$f":"K$4*('COM-Appliance class'!$U49/'Volume per connection'!$J$69)","v":28123.826467994833},{"$f":"L$4*('COM-Appliance class'!$U49/'Volume per connection'!$J$69)","v":27884.905428896829},{"$f":"M$4*('COM-Appliance class'!$U49/'Volume per connection'!$J$69)","v":22657.447788411835},{"$f":"N$4*('COM-Appliance class'!$U49/'Volume per connection'!$J$69)","v":22551.65883350357},{"$f":"O$4*('COM-Appliance class'!$U49/'Volume per connection'!$J$69)","v":25663.795065753155},{"$f":"P$4*('COM-Appliance class'!$U49/'Volume per connection'!$J$69)","v":28675.928560266249},{"$f":"Q$4*('COM-Appliance class'!$U49/'Volume per connection'!$J$69)","v":19967.779453223029},{"$f":"R$4*('COM-Appliance class'!$U49/'Volume per connection'!$J$69)","v":21210.429906149115},{"$f":"S$4*('COM-Appliance class'!$U49/'Volume per connection'!$J$69)","v":23054.271580567809},{"$f":"T$4*('COM-Appliance class'!$U49/'Volume per connection'!$J$69)","v":25753.415937253059},{"$f":"U$4*('COM-Appliance class'!$U49/'Volume per connection'!$J$69)","v":27761.948800045317},{"$f":"V$4*('COM-Appliance class'!$U49/'Volume per connection'!$J$69)","v":28498.96172879446},{"$f":"W$4*('COM-Appliance class'!$U49/'Volume per connection'!$J$69)","v":29699.713525374216},{"$f":"X$4*('COM-Appliance class'!$U49/'Volume per connection'!$J$69)","v":32674.629925682151},{"$f":"Y$4*('COM-Appliance class'!$U49/'Volume per connection'!$J$69)","v":35146.3707589939},{"$f":"Z$4*('COM-Appliance class'!$U49/'Volume per connection'!$J$69)","v":36541.857501297935},{"$f":"AA$4*('COM-Appliance class'!$U49/'Volume per connection'!$J$69)","v":38127.582117763479},{"$f":"AB$4*('COM-Appliance class'!$U49/'Volume per connection'!$J$69)","v":39122.495710625968},{"$f":"AC$4*('COM-Appliance class'!$U49/'Volume per connection'!$J$69)","v":39842.651070186133},{"$f":"AD$4*('COM-Appliance class'!$U49/'Volume per connection'!$J$69)","v":40358.284086795909},{"$f":"AE$4*('COM-Appliance class'!$U49/'Volume per connection'!$J$69)","v":40790.405498658925},{"$f":"AF$4*('COM-Appliance class'!$U49/'Volume per connection'!$J$69)","v":41594.525260276219},{"$f":"AG$4*('COM-Appliance class'!$U49/'Volume per connection'!$J$69)","v":41633.15770972961},{"$f":"AH$4*('COM-Appliance class'!$U49/'Volume per connection'!$J$69)","v":42476.698103517432},{"$f":"AI$4*('COM-Appliance class'!$U49/'Volume per connection'!$J$69)","v":42530.982803707651},{"$f":"AJ$4*('COM-Appliance class'!$U49/'Volume per connection'!$J$69)","v":42585.190955692677},{"$f":"AK$4*('COM-Appliance class'!$U49/'Volume per connection'!$J$69)","v":42639.323029859879},{"$f":"AL$4*('COM-Appliance class'!$U49/'Volume per connection'!$J$69)","v":42693.379493676759},{"$f":"AM$4*('COM-Appliance class'!$U49/'Volume per connection'!$J$69)","v":42747.360811709426},{"$f":"AN$4*('COM-Appliance class'!$U49/'Volume per connection'!$J$69)","v":42801.267445640624},{"$f":"AO$4*('COM-Appliance class'!$U49/'Volume per connection'!$J$69)","v":42855.09985428823},{"$f":"AP$4*('COM-Appliance class'!$U49/'Volume per connection'!$J$69)","v":42908.85849362296},{"$f":"AQ$4*('COM-Appliance class'!$U49/'Volume per connection'!$J$69)","v":42962.543816786601},{"$f":"AR$4*('COM-Appliance class'!$U49/'Volume per connection'!$J$69)","v":43016.156274109577},{"$f":"AS$4*('COM-Appliance class'!$U49/'Volume per connection'!$J$69)","v":43069.696313128836},{"$f":"AT$4*('COM-Appliance class'!$U49/'Volume per connection'!$J$69)","v":43123.164378605237},{"$f":"AU$4*('COM-Appliance class'!$U49/'Volume per connection'!$J$69)","v":43176.560912541288},{"$f":"AV$4*('COM-Appliance class'!$U49/'Volume per connection'!$J$69)","v":43229.88635419825},{"$f":"AW$4*('COM-Appliance class'!$U49/'Volume per connection'!$J$69)","v":43283.141140113592},{"$f":"AX$4*('COM-Appliance class'!$U49/'Volume per connection'!$J$69)","v":43336.325704117997},{"$f":"AY$4*('COM-Appliance class'!$U49/'Volume per connection'!$J$69)","v":43389.440477352502},{"$f":"AZ$4*('COM-Appliance class'!$U49/'Volume per connection'!$J$69)","v":43442.485888285322},{"$f":"BA$4*('COM-Appliance class'!$U49/'Volume per connection'!$J$69)","v":43495.462362728853},{"$f":"BB$4*('COM-Appliance class'!$U49/'Volume per connection'!$J$69)","v":43548.37032385607},{"$f":"BC$4*('COM-Appliance class'!$U49/'Volume per connection'!$J$69)","v":43601.21019221755},{"$f":"BD$4*('COM-Appliance class'!$U49/'Volume per connection'!$J$69)","v":43653.982385757547},{"$f":"BE$4*('COM-Appliance class'!$U49/'Volume per connection'!$J$69)","v":43706.68731983078},{"$f":"BF$4*('COM-Appliance class'!$U49/'Volume per connection'!$J$69)","v":43759.325407218421},{"$f":"BG$4*('COM-Appliance class'!$U49/'Volume per connection'!$J$69)","v":43811.89705814443},{"$f":"BH$4*('COM-Appliance class'!$U49/'Volume per connection'!$J$69)","v":43864.402680291656},{"$f":"BI$4*('COM-Appliance class'!$U49/'Volume per connection'!$J$69)","v":43916.842678817811},{"$f":"BJ$4*('COM-Appliance class'!$U49/'Volume per connection'!$J$69)","v":43969.217456371225},{"$f":"BK$4*('COM-Appliance class'!$U49/'Volume per connection'!$J$69)","v":44021.527413106858},{"$f":"BL$4*('COM-Appliance class'!$U49/'Volume per connection'!$J$69)","v":44073.772946701749},{"$f":"BM$4*('COM-Appliance class'!$U49/'Volume per connection'!$J$69)","v":44125.954452370854},{"$f":"BN$4*('COM-Appliance class'!$U49/'Volume per connection'!$J$69)","v":44178.07232288221},{"$f":"BO$4*('COM-Appliance class'!$U49/'Volume per connection'!$J$69)","v":44230.126948572666},{"$f":"BP$4*('COM-Appliance class'!$U49/'Volume per connection'!$J$69)","v":44282.118717362871},{"$f":"BQ$4*('COM-Appliance class'!$U49/'Volume per connection'!$J$69)","v":44334.048014772721},{"$f":"BR$4*('COM-Appliance class'!$U49/'Volume per connection'!$J$69)","v":44385.915223936216},{"$f":"BS$4*('COM-Appliance class'!$U49/'Volume per connection'!$J$69)","v":44437.720725616695},{"$f":"BT$4*('COM-Appliance class'!$U49/'Volume per connection'!$J$69)","v":44489.4648982215},{"$f":"BU$4*('COM-Appliance class'!$U49/'Volume per connection'!$J$69)","v":44541.148117817043},{"$f":"BV$4*('COM-Appliance class'!$U49/'Volume per connection'!$J$69)","v":44592.770758143233},{"$f":"BW$4*('COM-Appliance class'!$U49/'Volume per connection'!$J$69)","v":44644.333190628444},{"$f":"BX$4*('COM-Appliance class'!$U49/'Volume per connection'!$J$69)","v":44695.835784403607},{"$f":"BY$4*('COM-Appliance class'!$U49/'Volume per connection'!$J$69)","v":44747.278906317159},{"$f":"BZ$4*('COM-Appliance class'!$U49/'Volume per connection'!$J$69)","v":44798.662920948889},{"$f":"CA$4*('COM-Appliance class'!$U49/'Volume per connection'!$J$69)","v":44849.98819062463},{"$f":"CB$4*('COM-Appliance class'!$U49/'Volume per connection'!$J$69)","v":44901.255075430039},{"$f":"CC$4*('COM-Appliance class'!$U49/'Volume per connection'!$J$69)","v":44952.463933225023},{"$f":"CD$4*('COM-Appliance class'!$U49/'Volume per connection'!$J$69)","v":45003.615119657399}]
["Cardinia (S)",null,{"$f":"C$4*('COM-Appliance class'!$U50/'Volume per connection'!$J$69)","v":16107.034424141735},{"$f":"D$4*('COM-Appliance class'!$U50/'Volume per connection'!$J$69)","v":19797.623202936982},{"$f":"E$4*('COM-Appliance class'!$U50/'Volume per connection'!$J$69)","v":17592.591414130296},{"$f":"F$4*('COM-Appliance class'!$U50/'Volume per connection'!$J$69)","v":19569.785637990142},{"$f":"G$4*('COM-Appliance class'!$U50/'Volume per connection'!$J$69)","v":17229.964643901028},{"$f":"H$4*('COM-Appliance class'!$U50/'Volume per connection'!$J$69)","v":17686.949838754419},{"$f":"I$4*('COM-Appliance class'!$U50/'Volume per connection'!$J$69)","v":20511.47236924274},{"$f":"J$4*('COM-Appliance class'!$U50/'Volume per connection'!$J$69)","v":22571.562789503587},{"$f":"K$4*('COM-Appliance class'!$U50/'Volume per connection'!$J$69)","v":27021.175617118461},{"$f":"L$4*('COM-Appliance class'!$U50/'Volume per connection'!$J$69)","v":26791.621955086073},{"$f":"M$4*('COM-Appliance class'!$U50/'Volume per connection'!$J$69)","v":21769.117243810786},{"$f":"N$4*('COM-Appliance class'!$U50/'Volume per connection'!$J$69)","v":21667.475956407001},{"$f":"O$4*('COM-Appliance class'!$U50/'Volume per connection'!$J$69)","v":24657.594664887605},{"$f":"P$4*('COM-Appliance class'!$U50/'Volume per connection'!$J$69)","v":27551.631442922317},{"$f":"Q$4*('COM-Appliance class'!$U50/'Volume per connection'!$J$69)","v":19184.902733753002},{"$f":"R$4*('COM-Appliance class'!$U50/'Volume per connection'!$J$69)","v":20378.832590965692},{"$f":"S$4*('COM-Appliance class'!$U50/'Volume per connection'!$J$69)","v":22150.38276573754},{"$f":"T$4*('COM-Appliance class'!$U50/'Volume per connection'!$J$69)","v":24743.701770921489},{"$f":"U$4*('COM-Appliance class'!$U50/'Volume per connection'!$J$69)","v":26673.486086723122},{"$f":"V$4*('COM-Appliance class'!$U50/'Volume per connection'!$J$69)","v":27381.602949927383},{"$f":"W$4*('COM-Appliance class'!$U50/'Volume per connection'!$J$69)","v":28535.276871393067},{"$f":"X$4*('COM-Appliance class'!$U50/'Volume per connection'!$J$69)","v":31393.555725817318},{"$f":"Y$4*('COM-Appliance class'!$U50/'Volume per connection'!$J$69)","v":33768.387017459878},{"$f":"Z$4*('COM-Appliance class'!$U50/'Volume per connection'!$J$69)","v":35109.160911725994},{"$f":"AA$4*('COM-Appliance class'!$U50/'Volume per connection'!$J$69)","v":36632.714023912376},{"$f":"AB$4*('COM-Appliance class'!$U50/'Volume per connection'!$J$69)","v":37588.62004001547},{"$f":"AC$4*('COM-Appliance class'!$U50/'Volume per connection'!$J$69)","v":38280.540268737881},{"$f":"AD$4*('COM-Appliance class'!$U50/'Volume per connection'!$J$69)","v":38775.956861912113},{"$f":"AE$4*('COM-Appliance class'!$U50/'Volume per connection'!$J$69)","v":39191.136089786931},{"$f":"AF$4*('COM-Appliance class'!$U50/'Volume per connection'!$J$69)","v":39963.728728295187},{"$f":"AG$4*('COM-Appliance class'!$U50/'Volume per connection'!$J$69)","v":40000.846515321347},{"$f":"AH$4*('COM-Appliance class'!$U50/'Volume per connection'!$J$69)","v":40811.314221293469},{"$f":"AI$4*('COM-Appliance class'!$U50/'Volume per connection'!$J$69)","v":40863.470581269299},{"$f":"AJ$4*('COM-Appliance class'!$U50/'Volume per connection'!$J$69)","v":40915.553394265378},{"$f":"AK$4*('COM-Appliance class'!$U50/'Volume per connection'!$J$69)","v":40967.563112226606},{"$f":"AL$4*('COM-Appliance class'!$U50/'Volume per connection'!$J$69)","v":41019.500184292483},{"$f":"AM$4*('COM-Appliance class'!$U50/'Volume per connection'!$J$69)","v":41071.365056814866},{"$f":"AN$4*('COM-Appliance class'!$U50/'Volume per connection'!$J$69)","v":41123.158173375312},{"$f":"AO$4*('COM-Appliance class'!$U50/'Volume per connection'!$J$69)","v":41174.879974802825},{"$f":"AP$4*('COM-Appliance class'!$U50/'Volume per connection'!$J$69)","v":41226.530899190875},{"$f":"AQ$4*('COM-Appliance class'!$U50/'Volume per connection'!$J$69)","v":41278.111381914925},{"$f":"AR$4*('COM-Appliance class'!$U50/'Volume per connection'!$J$69)","v":41329.621855649282},{"$f":"AS$4*('COM-Appliance class'!$U50/'Volume per connection'!$J$69)","v":41381.062750384328},{"$f":"AT$4*('COM-Appliance class'!$U50/'Volume per connection'!$J$69)","v":41432.434493443172},{"$f":"AU$4*('COM-Appliance class'!$U50/'Volume per connection'!$J$69)","v":41483.737509498744},{"$f":"AV$4*('COM-Appliance class'!$U50/'Volume per connection'!$J$69)","v":41534.972220590163},{"$f":"AW$4*('COM-Appliance class'!$U50/'Volume per connection'!$J$69)","v":41586.139046139608},{"$f":"AX$4*('COM-Appliance class'!$U50/'Volume per connection'!$J$69)","v":41637.238402968535},{"$f":"AY$4*('COM-Appliance class'!$U50/'Volume per connection'!$J$69)","v":41688.270705314244},{"$f":"AZ$4*('COM-Appliance class'!$U50/'Volume per connection'!$J$69)","v":41739.236364845994},{"$f":"BA$4*('COM-Appliance class'!$U50/'Volume per connection'!$J$69)","v":41790.135790681365},{"$f":"BB$4*('COM-Appliance class'!$U50/'Volume per connection'!$J$69)","v":41840.96938940198},{"$f":"BC$4*('COM-Appliance class'!$U50/'Volume per connection'!$J$69)","v":41891.737565069881},{"$f":"BD$4*('COM-Appliance class'!$U50/'Volume per connection'!$J$69)","v":41942.440719243001},{"$f":"BE$4*('COM-Appliance class'!$U50/'Volume per connection'!$J$69)","v":41993.079250991243},{"$f":"BF$4*('COM-Appliance class'!$U50/'Volume per connection'!$J$69)","v":42043.653556911857},{"$f":"BG$4*('COM-Appliance class'!$U50/'Volume per connection'!$J$69)","v":42094.164031145163},{"$f":"BH$4*('COM-Appliance class'!$U50/'Volume per connection'!$J$69)","v":42144.611065389981},{"$f":"BI$4*('COM-Appliance class'!$U50/'Volume per connection'!$J$69)","v":42194.995048919009},{"$f":"BJ$4*('COM-Appliance class'!$U50/'Volume per connection'!$J$69)","v":42245.316368593936},{"$f":"BK$4*('COM-Appliance class'!$U50/'Volume per connection'!$J$69)","v":42295.575408880861},{"$f":"BL$4*('COM-Appliance class'!$U50/'Volume per connection'!$J$69)","v":42345.772551865091},{"$f":"BM$4*('COM-Appliance class'!$U50/'Volume per connection'!$J$69)","v":42395.908177266392},{"$f":"BN$4*('COM-Appliance class'!$U50/'Volume per connection'!$J$69)","v":42445.982662453542},{"$f":"BO$4*('COM-Appliance class'!$U50/'Volume per connection'!$J$69)","v":42495.996382459452},{"$f":"BP$4*('COM-Appliance class'!$U50/'Volume per connection'!$J$69)","v":42545.949709995577},{"$f":"BQ$4*('COM-Appliance class'!$U50/'Volume per connection'!$J$69)","v":42595.843015466722},{"$f":"BR$4*('COM-Appliance class'!$U50/'Volume per connection'!$J$69)","v":42645.67666698536},{"$f":"BS$4*('COM-Appliance class'!$U50/'Volume per connection'!$J$69)","v":42695.451030386233},{"$f":"BT$4*('COM-Appliance class'!$U50/'Volume per connection'!$J$69)","v":42745.166469240474},{"$f":"BU$4*('COM-Appliance class'!$U50/'Volume per connection'!$J$69)","v":42794.823344870056},{"$f":"BV$4*('COM-Appliance class'!$U50/'Volume per connection'!$J$69)","v":42844.422016361677},{"$f":"BW$4*('COM-Appliance class'!$U50/'Volume per connection'!$J$69)","v":42893.962840581102},{"$f":"BX$4*('COM-Appliance class'!$U50/'Volume per connection'!$J$69)","v":42943.446172186763},{"$f":"BY$4*('COM-Appliance class'!$U50/'Volume per connection'!$J$69)","v":42992.87236364407},{"$f":"BZ$4*('COM-Appliance class'!$U50/'Volume per connection'!$J$69)","v":43042.241765238708},{"$f":"CA$4*('COM-Appliance class'!$U50/'Volume per connection'!$J$69)","v":43091.554725090828},{"$f":"CB$4*('COM-Appliance class'!$U50/'Volume per connection'!$J$69)","v":43140.811589168195},{"$f":"CC$4*('COM-Appliance class'!$U50/'Volume per connection'!$J$69)","v":43190.012701300111},{"$f":"CD$4*('COM-Appliance class'!$U50/'Volume per connection'!$J$69)","v":43239.1584031905}]
["Casey (C)",null,{"$f":"C$4*('COM-Appliance class'!$U51/'Volume per connection'!$J$69)","v":15614.574943248903},{"$f":"D$4*('COM-Appliance class'!$U51/'Volume per connection'!$J$69)","v":19192.326970949216},{"$f":"E$4*('COM-Appliance class'!$U51/'Volume per connection'!$J$69)","v":17054.71223617455},{"$f":"F$4*('COM-Appliance class'!$U51/'Volume per connection'!$J$69)","v":18971.455354295966},{"$f":"G$4*('COM-Appliance class'!$U51/'Volume per connection'!$J$69)","v":16703.172484593313},{"$f":"H$4*('COM-Appliance class'!$U51/'Volume per connection'!$J$69)","v":17146.185728688597},{"$f":"I$4*('COM-Appliance class'!$U51/'Volume per connection'!$J$69)","v":19884.350779425738},{"$f":"J$4*('COM-Appliance class'!$U51/'Volume per connection'!$J$69)","v":21881.455610146069},{"$f":"K$4*('COM-Appliance class'!$U51/'Volume per connection'!$J$69)","v":26195.025143535597},{"$f":"L$4*('COM-Appliance class'!$U51/'Volume per connection'!$J$69)","v":25972.489898069827},{"$f":"M$4*('COM-Appliance class'!$U51/'Volume per connection'!$J$69)","v":21103.544184544571},{"$f":"N$4*('COM-Appliance class'!$U51/'Volume per connection'!$J$69)","v":21005.010496858653},{"$f":"O$4*('COM-Appliance class'!$U51/'Volume per connection'!$J$69)","v":23903.708757092172},{"$f":"P$4*('COM-Appliance class'!$U51/'Volume per connection'!$J$69)","v":26709.262713778986},{"$f":"Q$4*('COM-Appliance class'!$U51/'Volume per connection'!$J$69)","v":18598.339931907689},{"$f":"R$4*('COM-Appliance class'!$U51/'Volume per connection'!$J$69)","v":19755.766354520143},{"$f":"S$4*('COM-Appliance class'!$U51/'Volume per connection'!$J$69)","v":21473.152823145305},{"$f":"T$4*('COM-Appliance class'!$U51/'Volume per connection'!$J$69)","v":23987.183208372731},{"$f":"U$4*('COM-Appliance class'!$U51/'Volume per connection'!$J$69)","v":25857.965937825829},{"$f":"V$4*('COM-Appliance class'!$U51/'Volume per connection'!$J$69)","v":26544.432703707251},{"$f":"W$4*('COM-Appliance class'!$U51/'Volume per connection'!$J$69)","v":27662.833983076074},{"$f":"X$4*('COM-Appliance class'!$U51/'Volume per connection'!$J$69)","v":30433.723285592059},{"$f":"Y$4*('COM-Appliance class'!$U51/'Volume per connection'!$J$69)","v":32735.946041467327},{"$f":"Z$4*('COM-Appliance class'!$U51/'Volume per connection'!$J$69)","v":34035.726864099139},{"$f":"AA$4*('COM-Appliance class'!$U51/'Volume per connection'!$J$69)","v":35512.69857868104},{"$f":"AB$4*('COM-Appliance class'!$U51/'Volume per connection'!$J$69)","v":36439.378545588712},{"$f":"AC$4*('COM-Appliance class'!$U51/'Volume per connection'!$J$69)","v":37110.143875918082},{"$f":"AD$4*('COM-Appliance class'!$U51/'Volume per connection'!$J$69)","v":37590.413509579106},{"$f":"AE$4*('COM-Appliance class'!$U51/'Volume per connection'!$J$69)","v":37992.898970143775},{"$f":"AF$4*('COM-Appliance class'!$U51/'Volume per connection'!$J$69)","v":38741.870216924501},{"$f":"AG$4*('COM-Appliance class'!$U51/'Volume per connection'!$J$69)","v":38777.853157792801},{"$f":"AH$4*('COM-Appliance class'!$U51/'Volume per connection'!$J$69)","v":39563.541472645898},{"$f":"AI$4*('COM-Appliance class'!$U51/'Volume per connection'!$J$69)","v":39614.103194323783},{"$f":"AJ$4*('COM-Appliance class'!$U51/'Volume per connection'!$J$69)","v":39664.593617661034},{"$f":"AK$4*('COM-Appliance class'!$U51/'Volume per connection'!$J$69)","v":39715.013180784685},{"$f":"AL$4*('COM-Appliance class'!$U51/'Volume per connection'!$J$69)","v":39765.362319102162},{"$f":"AM$4*('COM-Appliance class'!$U51/'Volume per connection'!$J$69)","v":39815.641465318484},{"$f":"AN$4*('COM-Appliance class'!$U51/'Volume per connection'!$J$69)","v":39865.851049453064},{"$f":"AO$4*('COM-Appliance class'!$U51/'Volume per connection'!$J$69)","v":39915.991498856914},{"$f":"AP$4*('COM-Appliance class'!$U51/'Volume per connection'!$J$69)","v":39966.063238229151},{"$f":"AQ$4*('COM-Appliance class'!$U51/'Volume per connection'!$J$69)","v":40016.06668963399},{"$f":"AR$4*('COM-Appliance class'!$U51/'Volume per connection'!$J$69)","v":40066.002272517071},{"$f":"AS$4*('COM-Appliance class'!$U51/'Volume per connection'!$J$69)","v":40115.870403722169},{"$f":"AT$4*('COM-Appliance class'!$U51/'Volume per connection'!$J$69)","v":40165.671497507348},{"$f":"AU$4*('COM-Appliance class'!$U51/'Volume per connection'!$J$69)","v":40215.405965561484},{"$f":"AV$4*('COM-Appliance class'!$U51/'Volume per connection'!$J$69)","v":40265.074217020214},{"$f":"AW$4*('COM-Appliance class'!$U51/'Volume per connection'!$J$69)","v":40314.676658482211},{"$f":"AX$4*('COM-Appliance class'!$U51/'Volume per connection'!$J$69)","v":40364.213694024969},{"$f":"AY$4*('COM-Appliance class'!$U51/'Volume per connection'!$J$69)","v":40413.685725220814},{"$f":"AZ$4*('COM-Appliance class'!$U51/'Volume per connection'!$J$69)","v":40463.093151152541},{"$f":"BA$4*('COM-Appliance class'!$U51/'Volume per connection'!$J$69)","v":40512.436368429306},{"$f":"BB$4*('COM-Appliance class'!$U51/'Volume per connection'!$J$69)","v":40561.715771201823},{"$f":"BC$4*('COM-Appliance class'!$U51/'Volume per connection'!$J$69)","v":40610.931751178272},{"$f":"BD$4*('COM-Appliance class'!$U51/'Volume per connection'!$J$69)","v":40660.084697639271},{"$f":"BE$4*('COM-Appliance class'!$U51/'Volume per connection'!$J$69)","v":40709.174997453483},{"$f":"BF$4*('COM-Appliance class'!$U51/'Volume per connection'!$J$69)","v":40758.203035092527},{"$f":"BG$4*('COM-Appliance class'!$U51/'Volume per connection'!$J$69)","v":40807.169192646201},{"$f":"BH$4*('COM-Appliance class'!$U51/'Volume per connection'!$J$69)","v":40856.073849837456},{"$f":"BI$4*('COM-Appliance class'!$U51/'Volume per connection'!$J$69)","v":40904.91738403729},{"$f":"BJ$4*('COM-Appliance class'!$U51/'Volume per connection'!$J$69)","v":40953.700170279408},{"$f":"BK$4*('COM-Appliance class'!$U51/'Volume per connection'!$J$69)","v":41002.422581275168},{"$f":"BL$4*('COM-Appliance class'!$U51/'Volume per connection'!$J$69)","v":41051.084987427937},{"$f":"BM$4*('COM-Appliance class'!$U51/'Volume per connection'!$J$69)","v":41099.687756847859},{"$f":"BN$4*('COM-Appliance class'!$U51/'Volume per connection'!$J$69)","v":41148.231255365958},{"$f":"BO$4*('COM-Appliance class'!$U51/'Volume per connection'!$J$69)","v":41196.715846548832},{"$f":"BP$4*('COM-Appliance class'!$U51/'Volume per connection'!$J$69)","v":41245.141891712577},{"$f":"BQ$4*('COM-Appliance class'!$U51/'Volume per connection'!$J$69)","v":41293.509749937177},{"$f":"BR$4*('COM-Appliance class'!$U51/'Volume per connection'!$J$69)","v":41341.81977808036},{"$f":"BS$4*('COM-Appliance class'!$U51/'Volume per connection'!$J$69)","v":41390.072330791772},{"$f":"BT$4*('COM-Appliance class'!$U51/'Volume per connection'!$J$69)","v":41438.267760526658},{"$f":"BU$4*('COM-Appliance class'!$U51/'Volume per connection'!$J$69)","v":41486.406417559854},{"$f":"BV$4*('COM-Appliance class'!$U51/'Volume per connection'!$J$69)","v":41534.488649999279},{"$f":"BW$4*('COM-Appliance class'!$U51/'Volume per connection'!$J$69)","v":41582.514803799837},{"$f":"BX$4*('COM-Appliance class'!$U51/'Volume per connection'!$J$69)","v":41630.485222776537},{"$f":"BY$4*('COM-Appliance class'!$U51/'Volume per connection'!$J$69)","v":41678.400248618454},{"$f":"BZ$4*('COM-Appliance class'!$U51/'Volume per connection'!$J$69)","v":41726.260220901582},{"$f":"CA$4*('COM-Appliance class'!$U51/'Volume per connection'!$J$69)","v":41774.06547710258},{"$f":"CB$4*('COM-Appliance class'!$U51/'Volume per connection'!$J$69)","v":41821.816352611524},{"$f":"CC$4*('COM-Appliance class'!$U51/'Volume per connection'!$J$69)","v":41869.513180745424},{"$f":"CD$4*('COM-Appliance class'!$U51/'Volume per connection'!$J$69)","v":41917.156292760868}]
["Frankston (C)",null,{"$f":"C$4*('COM-Appliance class'!$U52/'Volume per connection'!$J$69)","v":0},{"$f":"D$4*('COM-Appliance class'!$U52/'Volume per connection'!$J$69)","v":0},{"$f":"E$4*('COM-Appliance class'!$U52/'Volume per connection'!$J$69)","v":0},{"$f":"F$4*('COM-Appliance class'!$U52/'Volume per connection'!$J$69)","v":0},{"$f":"G$4*('COM-Appliance class'!$U52/'Volume per connection'!$J$69)","v":0},{"$f":"H$4*('COM-Appliance class'!$U52/'Volume per connection'!$J$69)","v":0},{"$f":"I$4*('COM-Appliance class'!$U52/'Volume per connection'!$J$69)","v":0},{"$f":"J$4*('COM-Appliance class'!$U52/'Volume per connection'!$J$69)","v":0},{"$f":"K$4*('COM-Appliance class'!$U52/'Volume per connection'!$J$69)","v":0},{"$f":"L$4*('COM-Appliance class'!$U52/'Volume per connection'!$J$69)","v":0},{"$f":"M$4*('COM-Appliance class'!$U52/'Volume per connection'!$J$69)","v":0},{"$f":"N$4*('COM-Appliance class'!$U52/'Volume per connection'!$J$69)","v":0},{"$f":"O$4*('COM-Appliance class'!$U52/'Volume per connection'!$J$69)","v":0},{"$f":"P$4*('COM-Appliance class'!$U52/'Volume per connection'!$J$69)","v":0},{"$f":"Q$4*('COM-Appliance class'!$U52/'Volume per connection'!$J$69)","v":0},{"$f":"R$4*('COM-Appliance class'!$U52/'Volume per connection'!$J$69)","v":0},{"$f":"S$4*('COM-Appliance class'!$U52/'Volume per connection'!$J$69)","v":0},{"$f":"T$4*('COM-Appliance class'!$U52/'Volume per connection'!$J$69)","v":0},{"$f":"U$4*('COM-Appliance class'!$U52/'Volume per connection'!$J$69)","v":0},{"$f":"V$4*('COM-Appliance class'!$U52/'Volume per connection'!$J$69)","v":0},{"$f":"W$4*('COM-Appliance class'!$U52/'Volume per connection'!$J$69)","v":0},{"$f":"X$4*('COM-Appliance class'!$U52/'Volume per connection'!$J$69)","v":0},{"$f":"Y$4*('COM-Appliance class'!$U52/'Volume per connection'!$J$69)","v":0},{"$f":"Z$4*('COM-Appliance class'!$U52/'Volume per connection'!$J$69)","v":0},{"$f":"AA$4*('COM-Appliance class'!$U52/'Volume per connection'!$J$69)","v":0},{"$f":"AB$4*('COM-Appliance class'!$U52/'Volume per connection'!$J$69)","v":0},{"$f":"AC$4*('COM-Appliance class'!$U52/'Volume per connection'!$J$69)","v":0},{"$f":"AD$4*('COM-Appliance class'!$U52/'Volume per connection'!$J$69)","v":0},{"$f":"AE$4*('COM-Appliance class'!$U52/'Volume per connection'!$J$69)","v":0},{"$f":"AF$4*('COM-Appliance class'!$U52/'Volume per connection'!$J$69)","v":0},{"$f":"AG$4*('COM-Appliance class'!$U52/'Volume per connection'!$J$69)","v":0},{"$f":"AH$4*('COM-Appliance class'!$U52/'Volume per connection'!$J$69)","v":0},{"$f":"AI$4*('COM-Appliance class'!$U52/'Volume per connection'!$J$69)","v":0},{"$f":"AJ$4*('COM-Appliance class'!$U52/'Volume per connection'!$J$69)","v":0},{"$f":"AK$4*('COM-Appliance class'!$U52/'Volume per connection'!$J$69)","v":0},{"$f":"AL$4*('COM-Appliance class'!$U52/'Volume per connection'!$J$69)","v":0},{"$f":"AM$4*('COM-Appliance class'!$U52/'Volume per connection'!$J$69)","v":0},{"$f":"AN$4*('COM-Appliance class'!$U52/'Volume per connection'!$J$69)","v":0},{"$f":"AO$4*('COM-Appliance class'!$U52/'Volume per connection'!$J$69)","v":0},{"$f":"AP$4*('COM-Appliance class'!$U52/'Volume per connection'!$J$69)","v":0},{"$f":"AQ$4*('COM-Appliance class'!$U52/'Volume per connection'!$J$69)","v":0},{"$f":"AR$4*('COM-Appliance class'!$U52/'Volume per connection'!$J$69)","v":0},{"$f":"AS$4*('COM-Appliance class'!$U52/'Volume per connection'!$J$69)","v":0},{"$f":"AT$4*('COM-Appliance class'!$U52/'Volume per connection'!$J$69)","v":0},{"$f":"AU$4*('COM-Appliance class'!$U52/'Volume per connection'!$J$69)","v":0},{"$f":"AV$4*('COM-Appliance class'!$U52/'Volume per connection'!$J$69)","v":0},{"$f":"AW$4*('COM-Appliance class'!$U52/'Volume per connection'!$J$69)","v":0},{"$f":"AX$4*('COM-Appliance class'!$U52/'Volume per connection'!$J$69)","v":0},{"$f":"AY$4*('COM-Appliance class'!$U52/'Volume per connection'!$J$69)","v":0},{"$f":"AZ$4*('COM-Appliance class'!$U52/'Volume per connection'!$J$69)","v":0},{"$f":"BA$4*('COM-Appliance class'!$U52/'Volume per connection'!$J$69)","v":0},{"$f":"BB$4*('COM-Appliance class'!$U52/'Volume per connection'!$J$69)","v":0},{"$f":"BC$4*('COM-Appliance class'!$U52/'Volume per connection'!$J$69)","v":0},{"$f":"BD$4*('COM-Appliance class'!$U52/'Volume per connection'!$J$69)","v":0},{"$f":"BE$4*('COM-Appliance class'!$U52/'Volume per connection'!$J$69)","v":0},{"$f":"BF$4*('COM-Appliance class'!$U52/'Volume per connection'!$J$69)","v":0},{"$f":"BG$4*('COM-Appliance class'!$U52/'Volume per connection'!$J$69)","v":0},{"$f":"BH$4*('COM-Appliance class'!$U52/'Volume per connection'!$J$69)","v":0},{"$f":"BI$4*('COM-Appliance class'!$U52/'Volume per connection'!$J$69)","v":0},{"$f":"BJ$4*('COM-Appliance class'!$U52/'Volume per connection'!$J$69)","v":0},{"$f":"BK$4*('COM-Appliance class'!$U52/'Volume per connection'!$J$69)","v":0},{"$f":"BL$4*('COM-Appliance class'!$U52/'Volume per connection'!$J$69)","v":0},{"$f":"BM$4*('COM-Appliance class'!$U52/'Volume per connection'!$J$69)","v":0},{"$f":"BN$4*('COM-Appliance class'!$U52/'Volume per connection'!$J$69)","v":0},{"$f":"BO$4*('COM-Appliance class'!$U52/'Volume per connection'!$J$69)","v":0},{"$f":"BP$4*('COM-Appliance class'!$U52/'Volume per connection'!$J$69)","v":0},{"$f":"BQ$4*('COM-Appliance class'!$U52/'Volume per connection'!$J$69)","v":0},{"$f":"BR$4*('COM-Appliance class'!$U52/'Volume per connection'!$J$69)","v":0},{"$f":"BS$4*('COM-Appliance class'!$U52/'Volume per connection'!$J$69)","v":0},{"$f":"BT$4*('COM-Appliance class'!$U52/'Volume per connection'!$J$69)","v":0},{"$f":"BU$4*('COM-Appliance class'!$U52/'Volume per connection'!$J$69)","v":0},{"$f":"BV$4*('COM-Appliance class'!$U52/'Volume per connection'!$J$69)","v":0},{"$f":"BW$4*('COM-Appliance class'!$U52/'Volume per connection'!$J$69)","v":0},{"$f":"BX$4*('COM-Appliance class'!$U52/'Volume per connection'!$J$69)","v":0},{"$f":"BY$4*('COM-Appliance class'!$U52/'Volume per connection'!$J$69)","v":0},{"$f":"BZ$4*('COM-Appliance class'!$U52/'Volume per connection'!$J$69)","v":0},{"$f":"CA$4*('COM-Appliance class'!$U52/'Volume per connection'!$J$69)","v":0},{"$f":"CB$4*('COM-Appliance class'!$U52/'Volume per connection'!$J$69)","v":0},{"$f":"CC$4*('COM-Appliance class'!$U52/'Volume per connection'!$J$69)","v":0},{"$f":"CD$4*('COM-Appliance class'!$U52/'Volume per connection'!$J$69)","v":0}]
["Glen Eira (C)",null,{"$f":"C$4*('COM-Appliance class'!$U53/'Volume per connection'!$J$69)","v":16644.056934442739},{"$f":"D$4*('COM-Appliance class'!$U53/'Volume per connection'!$J$69)","v":20457.693146942278},{"$f":"E$4*('COM-Appliance class'!$U53/'Volume per connection'!$J$69)","v":18179.143684097246},{"$f":"F$4*('COM-Appliance class'!$U53/'Volume per connection'!$J$69)","v":20222.259279793139},{"$f":"G$4*('COM-Appliance class'!$U53/'Volume per connection'!$J$69)","v":17804.426622550352},{"$f":"H$4*('COM-Appliance class'!$U53/'Volume per connection'!$J$69)","v":18276.648100511375},{"$f":"I$4*('COM-Appliance class'!$U53/'Volume per connection'!$J$69)","v":21195.342664148833},{"$f":"J$4*('COM-Appliance class'!$U53/'Volume per connection'!$J$69)","v":23324.118287396355},{"$f":"K$4*('COM-Appliance class'!$U53/'Volume per connection'!$J$69)","v":27922.08506941588},{"$f":"L$4*('COM-Appliance class'!$U53/'Volume per connection'!$J$69)","v":27684.87788901461},{"$f":"M$4*('COM-Appliance class'!$U53/'Volume per connection'!$J$69)","v":22494.918510603016},{"$f":"N$4*('COM-Appliance class'!$U53/'Volume per connection'!$J$69)","v":22389.888414441859},{"$f":"O$4*('COM-Appliance class'!$U53/'Volume per connection'!$J$69)","v":25479.700276400767},{"$f":"P$4*('COM-Appliance class'!$U53/'Volume per connection'!$J$69)","v":28470.22675294349},{"$f":"Q$4*('COM-Appliance class'!$U53/'Volume per connection'!$J$69)","v":19824.544045409886},{"$f":"R$4*('COM-Appliance class'!$U53/'Volume per connection'!$J$69)","v":21058.28056051875},{"$f":"S$4*('COM-Appliance class'!$U53/'Volume per connection'!$J$69)","v":22888.895756009384},{"$f":"T$4*('COM-Appliance class'!$U53/'Volume per connection'!$J$69)","v":25568.678268099844},{"$f":"U$4*('COM-Appliance class'!$U53/'Volume per connection'!$J$69)","v":27562.803268246073},{"$f":"V$4*('COM-Appliance class'!$U53/'Volume per connection'!$J$69)","v":28294.529362389487},{"$f":"W$4*('COM-Appliance class'!$U53/'Volume per connection'!$J$69)","v":29486.667773907153},{"$f":"X$4*('COM-Appliance class'!$U53/'Volume per connection'!$J$69)","v":32440.244126624606},{"$f":"Y$4*('COM-Appliance class'!$U53/'Volume per connection'!$J$69)","v":34894.254355133889},{"$f":"Z$4*('COM-Appliance class'!$U53/'Volume per connection'!$J$69)","v":36279.730814967603},{"$f":"AA$4*('COM-Appliance class'!$U53/'Volume per connection'!$J$69)","v":37854.080510518637},{"$f":"AB$4*('COM-Appliance class'!$U53/'Volume per connection'!$J$69)","v":38841.857263025588},{"$f":"AC$4*('COM-Appliance class'!$U53/'Volume per connection'!$J$69)","v":39556.846712833139},{"$f":"AD$4*('COM-Appliance class'!$U53/'Volume per connection'!$J$69)","v":40068.780925297513},{"$f":"AE$4*('COM-Appliance class'!$U53/'Volume per connection'!$J$69)","v":40497.802589048923},{"$f":"AF$4*('COM-Appliance class'!$U53/'Volume per connection'!$J$69)","v":41296.154136816716},{"$f":"AG$4*('COM-Appliance class'!$U53/'Volume per connection'!$J$69)","v":41334.509463084469},{"$f":"AH$4*('COM-Appliance class'!$U53/'Volume per connection'!$J$69)","v":42171.998865944923},{"$f":"AI$4*('COM-Appliance class'!$U53/'Volume per connection'!$J$69)","v":42225.894164239551},{"$f":"AJ$4*('COM-Appliance class'!$U53/'Volume per connection'!$J$69)","v":42279.713463434287},{"$f":"AK$4*('COM-Appliance class'!$U53/'Volume per connection'!$J$69)","v":42333.457230542248},{"$f":"AL$4*('COM-Appliance class'!$U53/'Volume per connection'!$J$69)","v":42387.125929677641},{"$f":"AM$4*('COM-Appliance class'!$U53/'Volume per connection'!$J$69)","v":42440.720022074078},{"$f":"AN$4*('COM-Appliance class'!$U53/'Volume per connection'!$J$69)","v":42494.239966102527},{"$f":"AO$4*('COM-Appliance class'!$U53/'Volume per connection'!$J$69)","v":42547.686217289593},{"$f":"AP$4*('COM-Appliance class'!$U53/'Volume per connection'!$J$69)","v":42601.05922833518},{"$f":"AQ$4*('COM-Appliance class'!$U53/'Volume per connection'!$J$69)","v":42654.359449130534},{"$f":"AR$4*('COM-Appliance class'!$U53/'Volume per connection'!$J$69)","v":42707.587326775705},{"$f":"AS$4*('COM-Appliance class'!$U53/'Volume per connection'!$J$69)","v":42760.743305597323},{"$f":"AT$4*('COM-Appliance class'!$U53/'Volume per connection'!$J$69)","v":42813.827827165827},{"$f":"AU$4*('COM-Appliance class'!$U53/'Volume per connection'!$J$69)","v":42866.841330313102},{"$f":"AV$4*('COM-Appliance class'!$U53/'Volume per connection'!$J$69)","v":42919.784251149438},{"$f":"AW$4*('COM-Appliance class'!$U53/'Volume per connection'!$J$69)","v":42972.657023080879},{"$f":"AX$4*('COM-Appliance class'!$U53/'Volume per connection'!$J$69)","v":43025.460076826101},{"$f":"AY$4*('COM-Appliance class'!$U53/'Volume per connection'!$J$69)","v":43078.193840433421},{"$f":"AZ$4*('COM-Appliance class'!$U53/'Volume per connection'!$J$69)","v":43130.858739297517},{"$f":"BA$4*('COM-Appliance class'!$U53/'Volume per connection'!$J$69)","v":43183.455196176292},{"$f":"BB$4*('COM-Appliance class'!$U53/'Volume per connection'!$J$69)","v":43235.983631207164},{"$f":"BC$4*('COM-Appliance class'!$U53/'Volume per connection'!$J$69)","v":43288.444461923951},{"$f":"BD$4*('COM-Appliance class'!$U53/'Volume per connection'!$J$69)","v":43340.838103272872},{"$f":"BE$4*('COM-Appliance class'!$U53/'Volume per connection'!$J$69)","v":43393.164967629171},{"$f":"BF$4*('COM-Appliance class'!$U53/'Volume per connection'!$J$69)","v":43445.425464812994},{"$f":"BG$4*('COM-Appliance class'!$U53/'Volume per connection'!$J$69)","v":43497.620002105643},{"$f":"BH$4*('COM-Appliance class'!$U53/'Volume per connection'!$J$69)","v":43549.74898426552},{"$f":"BI$4*('COM-Appliance class'!$U53/'Volume per connection'!$J$69)","v":43601.812813543998},{"$f":"BJ$4*('COM-Appliance class'!$U53/'Volume per connection'!$J$69)","v":43653.811889701094},{"$f":"BK$4*('COM-Appliance class'!$U53/'Volume per connection'!$J$69)","v":43705.746610021313},{"$f":"BL$4*('COM-Appliance class'!$U53/'Volume per connection'!$J$69)","v":43757.61736932904},{"$f":"BM$4*('COM-Appliance class'!$U53/'Volume per connection'!$J$69)","v":43809.42456000422},{"$f":"BN$4*('COM-Appliance class'!$U53/'Volume per connection'!$J$69)","v":43861.168571997419},{"$f":"BO$4*('COM-Appliance class'!$U53/'Volume per connection'!$J$69)","v":43912.849792845504},{"$f":"BP$4*('COM-Appliance class'!$U53/'Volume per connection'!$J$69)","v":43964.468607686424},{"$f":"BQ$4*('COM-Appliance class'!$U53/'Volume per connection'!$J$69)","v":44016.025399274615},{"$f":"BR$4*('COM-Appliance class'!$U53/'Volume per connection'!$J$69)","v":44067.520547995729},{"$f":"BS$4*('COM-Appliance class'!$U53/'Volume per connection'!$J$69)","v":44118.954431881772},{"$f":"BT$4*('COM-Appliance class'!$U53/'Volume per connection'!$J$69)","v":44170.327426625649},{"$f":"BU$4*('COM-Appliance class'!$U53/'Volume per connection'!$J$69)","v":44221.639905596116},{"$f":"BV$4*('COM-Appliance class'!$U53/'Volume per connection'!$J$69)","v":44272.892239852124},{"$f":"BW$4*('COM-Appliance class'!$U53/'Volume per connection'!$J$69)","v":44324.084798157674},{"$f":"BX$4*('COM-Appliance class'!$U53/'Volume per connection'!$J$69)","v":44375.217946995806},{"$f":"BY$4*('COM-Appliance class'!$U53/'Volume per connection'!$J$69)","v":44426.292050583426},{"$f":"BZ$4*('COM-Appliance class'!$U53/'Volume per connection'!$J$69)","v":44477.307470885069},{"$f":"CA$4*('COM-Appliance class'!$U53/'Volume per connection'!$J$69)","v":44528.264567627491},{"$f":"CB$4*('COM-Appliance class'!$U53/'Volume per connection'!$J$69)","v":44579.163698313343},{"$f":"CC$4*('COM-Appliance class'!$U53/'Volume per connection'!$J$69)","v":44630.005218235478},{"$f":"CD$4*('COM-Appliance class'!$U53/'Volume per connection'!$J$69)","v":44680.78948049053}]
["Greater Dandenong (C)",null,{"$f":"C$4*('COM-Appliance class'!$U54/'Volume per connection'!$J$69)","v":17140.872030128023},{"$f":"D$4*('COM-Appliance class'!$U54/'Volume per connection'!$J$69)","v":21068.342991408135},{"$f":"E$4*('COM-Appliance class'!$U54/'Volume per connection'!$J$69)","v":18721.78019660529},{"$f":"F$4*('COM-Appliance class'!$U54/'Volume per connection'!$J$69)","v":20825.88156483067},{"$f":"G$4*('COM-Appliance class'!$U54/'Volume per connection'!$J$69)","v":18335.878055992602},{"$f":"H$4*('COM-Appliance class'!$U54/'Volume per connection'!$J$69)","v":18822.195061244951},{"$f":"I$4*('COM-Appliance class'!$U54/'Volume per connection'!$J$69)","v":21828.010903343613},{"$f":"J$4*('COM-Appliance class'!$U54/'Volume per connection'!$J$69)","v":24020.329199457603},{"$f":"K$4*('COM-Appliance class'!$U54/'Volume per connection'!$J$69)","v":28755.542526340818},{"$f":"L$4*('COM-Appliance class'!$U54/'Volume per connection'!$J$69)","v":28511.254854176485},{"$f":"M$4*('COM-Appliance class'!$U54/'Volume per connection'!$J$69)","v":23166.378307712399},{"$f":"N$4*('COM-Appliance class'!$U54/'Volume per connection'!$J$69)","v":23058.213126308525},{"$f":"O$4*('COM-Appliance class'!$U54/'Volume per connection'!$J$69)","v":26240.254015234528},{"$f":"P$4*('COM-Appliance class'!$U54/'Volume per connection'!$J$69)","v":29320.045909664546},{"$f":"Q$4*('COM-Appliance class'!$U54/'Volume per connection'!$J$69)","v":20416.294769745367},{"$f":"R$4*('COM-Appliance class'!$U54/'Volume per connection'!$J$69)","v":21686.857578300504},{"$f":"S$4*('COM-Appliance class'!$U54/'Volume per connection'!$J$69)","v":23572.115537096553},{"$f":"T$4*('COM-Appliance class'!$U54/'Volume per connection'!$J$69)","v":26331.887946506151},{"$f":"U$4*('COM-Appliance class'!$U54/'Volume per connection'!$J$69)","v":28385.536379350207},{"$f":"V$4*('COM-Appliance class'!$U54/'Volume per connection'!$J$69)","v":29139.104057604342},{"$f":"W$4*('COM-Appliance class'!$U54/'Volume per connection'!$J$69)","v":30366.827084178367},{"$f":"X$4*('COM-Appliance class'!$U54/'Volume per connection'!$J$69)","v":33408.565915795574},{"$f":"Y$4*('COM-Appliance class'!$U54/'Volume per connection'!$J$69)","v":35935.826874658138},{"$f":"Z$4*('COM-Appliance class'!$U54/'Volume per connection'!$J$69)","v":37362.658974085803},{"$f":"AA$4*('COM-Appliance class'!$U54/'Volume per connection'!$J$69)","v":38984.002061795858},{"$f":"AB$4*('COM-Appliance class'!$U54/'Volume per connection'!$J$69)","v":40001.263356668002},{"$f":"AC$4*('COM-Appliance class'!$U54/'Volume per connection'!$J$69)","v":40737.594811812305},{"$f":"AD$4*('COM-Appliance class'!$U54/'Volume per connection'!$J$69)","v":41264.809952823838},{"$f":"AE$4*('COM-Appliance class'!$U54/'Volume per connection'!$J$69)","v":41706.637655377403},{"$f":"AF$4*('COM-Appliance class'!$U54/'Volume per connection'!$J$69)","v":42528.819517001793},{"$f":"AG$4*('COM-Appliance class'!$U54/'Volume per connection'!$J$69)","v":42568.319726705406},{"$f":"AH$4*('COM-Appliance class'!$U54/'Volume per connection'!$J$69)","v":43430.807684873398},{"$f":"AI$4*('COM-Appliance class'!$U54/'Volume per connection'!$J$69)","v":43486.311725428684},{"$f":"AJ$4*('COM-Appliance class'!$U54/'Volume per connection'!$J$69)","v":43541.737498356626},{"$f":"AK$4*('COM-Appliance class'!$U54/'Volume per connection'!$J$69)","v":43597.085484610398},{"$f":"AL$4*('COM-Appliance class'!$U54/'Volume per connection'!$J$69)","v":43652.356162157739},{"$f":"AM$4*('COM-Appliance class'!$U54/'Volume per connection'!$J$69)","v":43707.550005999816},{"$f":"AN$4*('COM-Appliance class'!$U54/'Volume per connection'!$J$69)","v":43762.667488189676},{"$f":"AO$4*('COM-Appliance class'!$U54/'Volume per connection'!$J$69)","v":43817.709077851141},{"$f":"AP$4*('COM-Appliance class'!$U54/'Volume per connection'!$J$69)","v":43872.675241196921},{"$f":"AQ$4*('COM-Appliance class'!$U54/'Volume per connection'!$J$69)","v":43927.566441547249},{"$f":"AR$4*('COM-Appliance class'!$U54/'Volume per connection'!$J$69)","v":43982.383139347839},{"$f":"AS$4*('COM-Appliance class'!$U54/'Volume per connection'!$J$69)","v":44037.125792188206},{"$f":"AT$4*('COM-Appliance class'!$U54/'Volume per connection'!$J$69)","v":44091.794854819404},{"$f":"AU$4*('COM-Appliance class'!$U54/'Volume per connection'!$J$69)","v":44146.390779172187},{"$f":"AV$4*('COM-Appliance class'!$U54/'Volume per connection'!$J$69)","v":44200.914014374466},{"$f":"AW$4*('COM-Appliance class'!$U54/'Volume per connection'!$J$69)","v":44255.365006769214},{"$f":"AX$4*('COM-Appliance class'!$U54/'Volume per connection'!$J$69)","v":44309.744199931774},{"$f":"AY$4*('COM-Appliance class'!$U54/'Volume per connection'!$J$69)","v":44364.052034687476},{"$f":"AZ$4*('COM-Appliance class'!$U54/'Volume per connection'!$J$69)","v":44418.28894912875},{"$f":"BA$4*('COM-Appliance class'!$U54/'Volume per connection'!$J$69)","v":44472.455378632578},{"$f":"BB$4*('COM-Appliance class'!$U54/'Volume per connection'!$J$69)","v":44526.551755877234},{"$f":"BC$4*('COM-Appliance class'!$U54/'Volume per connection'!$J$69)","v":44580.578510859654},{"$f":"BD$4*('COM-Appliance class'!$U54/'Volume per connection'!$J$69)","v":44634.53607091197},{"$f":"BE$4*('COM-Appliance class'!$U54/'Volume per connection'!$J$69)","v":44688.424860718565},{"$f":"BF$4*('COM-Appliance class'!$U54/'Volume per connection'!$J$69)","v":44742.245302332478},{"$f":"BG$4*('COM-Appliance class'!$U54/'Volume per connection'!$J$69)","v":44795.997815192102},{"$f":"BH$4*('COM-Appliance class'!$U54/'Volume per connection'!$J$69)","v":44849.682816137647},{"$f":"BI$4*('COM-Appliance class'!$U54/'Volume per connection'!$J$69)","v":44903.300719427447},{"$f":"BJ$4*('COM-Appliance class'!$U54/'Volume per connection'!$J$69)","v":44956.851936754101},{"$f":"BK$4*('COM-Appliance class'!$U54/'Volume per connection'!$J$69)","v":45010.336877260845},{"$f":"BL$4*('COM-Appliance class'!$U54/'Volume per connection'!$J$69)","v":45063.7559475573},{"$f":"BM$4*('COM-Appliance class'!$U54/'Volume per connection'!$J$69)","v":45117.109551735739},{"$f":"BN$4*('COM-Appliance class'!$U54/'Volume per connection'!$J$69)","v":45170.398091386523},{"$f":"BO$4*('COM-Appliance class'!$U54/'Volume per connection'!$J$69)","v":45223.621965614242},{"$f":"BP$4*('COM-Appliance class'!$U54/'Volume per connection'!$J$69)","v":45276.78157105299},{"$f":"BQ$4*('COM-Appliance class'!$U54/'Volume per connection'!$J$69)","v":45329.877301882196},{"$f":"BR$4*('COM-Appliance class'!$U54/'Volume per connection'!$J$69)","v":45382.909549841803},{"$f":"BS$4*('COM-Appliance class'!$U54/'Volume per connection'!$J$69)","v":45435.878704247822},{"$f":"BT$4*('COM-Appliance class'!$U54/'Volume per connection'!$J$69)","v":45488.785152007382},{"$f":"BU$4*('COM-Appliance class'!$U54/'Volume per connection'!$J$69)","v":45541.629277634063},{"$f":"BV$4*('COM-Appliance class'!$U54/'Volume per connection'!$J$69)","v":45594.411463262717},{"$f":"BW$4*('COM-Appliance class'!$U54/'Volume per connection'!$J$69)","v":45647.132088664715},{"$f":"BX$4*('COM-Appliance class'!$U54/'Volume per connection'!$J$69)","v":45699.791531262403},{"$f":"BY$4*('COM-Appliance class'!$U54/'Volume per connection'!$J$69)","v":45752.390166144338},{"$f":"BZ$4*('COM-Appliance class'!$U54/'Volume per connection'!$J$69)","v":45804.928366079483},{"$f":"CA$4*('COM-Appliance class'!$U54/'Volume per connection'!$J$69)","v":45857.406501532212},{"$f":"CB$4*('COM-Appliance class'!$U54/'Volume per connection'!$J$69)","v":45909.82494067643},{"$f":"CC$4*('COM-Appliance class'!$U54/'Volume per connection'!$J$69)","v":45962.184049410258},{"$f":"CD$4*('COM-Appliance class'!$U54/'Volume per connection'!$J$69)","v":46014.484191370058}]
["Kingston (C)",null,{"$f":"C$4*('COM-Appliance class'!$U55/'Volume per connection'!$J$69)","v":17336.812334094262},{"$f":"D$4*('COM-Appliance class'!$U55/'Volume per connection'!$J$69)","v":21309.17890235511},{"$f":"E$4*('COM-Appliance class'!$U55/'Volume per connection'!$J$69)","v":18935.792138125194},{"$f":"F$4*('COM-Appliance class'!$U55/'Volume per connection'!$J$69)","v":21063.945856834329},{"$f":"G$4*('COM-Appliance class'!$U55/'Volume per connection'!$J$69)","v":18545.478682697252},{"$f":"H$4*('COM-Appliance class'!$U55/'Volume per connection'!$J$69)","v":19037.354862632525},{"$f":"I$4*('COM-Appliance class'!$U55/'Volume per connection'!$J$69)","v":22077.530710962612},{"$f":"J$4*('COM-Appliance class'!$U55/'Volume per connection'!$J$69)","v":24294.909780681141},{"$f":"K$4*('COM-Appliance class'!$U55/'Volume per connection'!$J$69)","v":29084.25215869919},{"$f":"L$4*('COM-Appliance class'!$U55/'Volume per connection'!$J$69)","v":28837.17199145905},{"$f":"M$4*('COM-Appliance class'!$U55/'Volume per connection'!$J$69)","v":23431.197227043431},{"$f":"N$4*('COM-Appliance class'!$U55/'Volume per connection'!$J$69)","v":23321.795590546397},{"$f":"O$4*('COM-Appliance class'!$U55/'Volume per connection'!$J$69)","v":26540.210945013783},{"$f":"P$4*('COM-Appliance class'!$U55/'Volume per connection'!$J$69)","v":29655.208478858571},{"$f":"Q$4*('COM-Appliance class'!$U55/'Volume per connection'!$J$69)","v":20649.677003509023},{"$f":"R$4*('COM-Appliance class'!$U55/'Volume per connection'!$J$69)","v":21934.763837590916},{"$f":"S$4*('COM-Appliance class'!$U55/'Volume per connection'!$J$69)","v":23841.572509609254},{"$f":"T$4*('COM-Appliance class'!$U55/'Volume per connection'!$J$69)","v":26632.892359769059},{"$f":"U$4*('COM-Appliance class'!$U55/'Volume per connection'!$J$69)","v":28710.016406774634},{"$f":"V$4*('COM-Appliance class'!$U55/'Volume per connection'!$J$69)","v":29472.198248863417},{"$f":"W$4*('COM-Appliance class'!$U55/'Volume per connection'!$J$69)","v":30713.955591929065},{"$f":"X$4*('COM-Appliance class'!$U55/'Volume per connection'!$J$69)","v":33790.465071749313},{"$f":"Y$4*('COM-Appliance class'!$U55/'Volume per connection'!$J$69)","v":36346.615592333779},{"$f":"Z$4*('COM-Appliance class'!$U55/'Volume per connection'!$J$69)","v":37789.758058864078},{"$f":"AA$4*('COM-Appliance class'!$U55/'Volume per connection'!$J$69)","v":39429.635002779411},{"$f":"AB$4*('COM-Appliance class'!$U55/'Volume per connection'!$J$69)","v":40458.524789304727},{"$f":"AC$4*('COM-Appliance class'!$U55/'Volume per connection'!$J$69)","v":41203.273378004851},{"$f":"AD$4*('COM-Appliance class'!$U55/'Volume per connection'!$J$69)","v":41736.515207437129},{"$f":"AE$4*('COM-Appliance class'!$U55/'Volume per connection'!$J$69)","v":42183.393519678859},{"$f":"AF$4*('COM-Appliance class'!$U55/'Volume per connection'!$J$69)","v":43014.973885860018},{"$f":"AG$4*('COM-Appliance class'!$U55/'Volume per connection'!$J$69)","v":43054.925629364392},{"$f":"AH$4*('COM-Appliance class'!$U55/'Volume per connection'!$J$69)","v":43927.27283812323},{"$f":"AI$4*('COM-Appliance class'!$U55/'Volume per connection'!$J$69)","v":43983.411355066804},{"$f":"AJ$4*('COM-Appliance class'!$U55/'Volume per connection'!$J$69)","v":44039.470709692097},{"$f":"AK$4*('COM-Appliance class'!$U55/'Volume per connection'!$J$69)","v":44095.451388450165},{"$f":"AL$4*('COM-Appliance class'!$U55/'Volume per connection'!$J$69)","v":44151.353874772467},{"$f":"AM$4*('COM-Appliance class'!$U55/'Volume per connection'!$J$69)","v":44207.17864908999},{"$f":"AN$4*('COM-Appliance class'!$U55/'Volume per connection'!$J$69)","v":44262.926188851903},{"$f":"AO$4*('COM-Appliance class'!$U55/'Volume per connection'!$J$69)","v":44318.596968544662},{"$f":"AP$4*('COM-Appliance class'!$U55/'Volume per connection'!$J$69)","v":44374.191459710331},{"$f":"AQ$4*('COM-Appliance class'!$U55/'Volume per connection'!$J$69)","v":44429.710130965454},{"$f":"AR$4*('COM-Appliance class'!$U55/'Volume per connection'!$J$69)","v":44485.153448019169},{"$f":"AS$4*('COM-Appliance class'!$U55/'Volume per connection'!$J$69)","v":44540.521873691789},{"$f":"AT$4*('COM-Appliance class'!$U55/'Volume per connection'!$J$69)","v":44595.815867932688},{"$f":"AU$4*('COM-Appliance class'!$U55/'Volume per connection'!$J$69)","v":44651.035887838734},{"$f":"AV$4*('COM-Appliance class'!$U55/'Volume per connection'!$J$69)","v":44706.182387671892},{"$f":"AW$4*('COM-Appliance class'!$U55/'Volume per connection'!$J$69)","v":44761.255818877347},{"$f":"AX$4*('COM-Appliance class'!$U55/'Volume per connection'!$J$69)","v":44816.256630101059},{"$f":"AY$4*('COM-Appliance class'!$U55/'Volume per connection'!$J$69)","v":44871.185267207482},{"$f":"AZ$4*('COM-Appliance class'!$U55/'Volume per connection'!$J$69)","v":44926.042173296977},{"$f":"BA$4*('COM-Appliance class'!$U55/'Volume per connection'!$J$69)","v":44980.827788723378},{"$f":"BB$4*('COM-Appliance class'!$U55/'Volume per connection'!$J$69)","v":45035.542551110993},{"$f":"BC$4*('COM-Appliance class'!$U55/'Volume per connection'!$J$69)","v":45090.186895372128},{"$f":"BD$4*('COM-Appliance class'!$U55/'Volume per connection'!$J$69)","v":45144.761253723816},{"$f":"BE$4*('COM-Appliance class'!$U55/'Volume per connection'!$J$69)","v":45199.266055705077},{"$f":"BF$4*('COM-Appliance class'!$U55/'Volume per connection'!$J$69)","v":45253.701728193526},{"$f":"BG$4*('COM-Appliance class'!$U55/'Volume per connection'!$J$69)","v":45308.068695422233},{"$f":"BH$4*('COM-Appliance class'!$U55/'Volume per connection'!$J$69)","v":45362.367378996358},{"$f":"BI$4*('COM-Appliance class'!$U55/'Volume per connection'!$J$69)","v":45416.59819790972},{"$f":"BJ$4*('COM-Appliance class'!$U55/'Volume per connection'!$J$69)","v":45470.761568561029},{"$f":"BK$4*('COM-Appliance class'!$U55/'Volume per connection'!$J$69)","v":45524.857904770513},{"$f":"BL$4*('COM-Appliance class'!$U55/'Volume per connection'!$J$69)","v":45578.88761779583},{"$f":"BM$4*('COM-Appliance class'!$U55/'Volume per connection'!$J$69)","v":45632.851116348487},{"$f":"BN$4*('COM-Appliance class'!$U55/'Volume per connection'!$J$69)","v":45686.74880660951},{"$f":"BO$4*('COM-Appliance class'!$U55/'Volume per connection'!$J$69)","v":45740.581092245702},{"$f":"BP$4*('COM-Appliance class'!$U55/'Volume per connection'!$J$69)","v":45794.348374425172},{"$f":"BQ$4*('COM-Appliance class'!$U55/'Volume per connection'!$J$69)","v":45848.051051833274},{"$f":"BR$4*('COM-Appliance class'!$U55/'Volume per connection'!$J$69)","v":45901.689520688},{"$f":"BS$4*('COM-Appliance class'!$U55/'Volume per connection'!$J$69)","v":45955.264174755699},{"$f":"BT$4*('COM-Appliance class'!$U55/'Volume per connection'!$J$69)","v":46008.775405366301},{"$f":"BU$4*('COM-Appliance class'!$U55/'Volume per connection'!$J$69)","v":46062.223601428843},{"$f":"BV$4*('COM-Appliance class'!$U55/'Volume per connection'!$J$69)","v":46115.609149446398},{"$f":"BW$4*('COM-Appliance class'!$U55/'Volume per connection'!$J$69)","v":46168.932433531605},{"$f":"BX$4*('COM-Appliance class'!$U55/'Volume per connection'!$J$69)","v":46222.19383542116},{"$f":"BY$4*('COM-Appliance class'!$U55/'Volume per connection'!$J$69)","v":46275.393734491336},{"$f":"BZ$4*('COM-Appliance class'!$U55/'Volume per connection'!$J$69)","v":46328.532507772281},{"$f":"CA$4*('COM-Appliance class'!$U55/'Volume per connection'!$J$69)","v":46381.610529963225},{"$f":"CB$4*('COM-Appliance class'!$U55/'Volume per connection'!$J$69)","v":46434.628173446705},{"$f":"CC$4*('COM-Appliance class'!$U55/'Volume per connection'!$J$69)","v":46487.58580830352},{"$f":"CD$4*('COM-Appliance class'!$U55/'Volume per connection'!$J$69)","v":46540.483802326802}]
["Knox (C)",null,{"$f":"C$4*('COM-Appliance class'!$U56/'Volume per connection'!$J$69)","v":16964.384754074879},{"$f":"D$4*('COM-Appliance class'!$U56/'Volume per connection'!$J$69)","v":20851.417361313503},{"$f":"E$4*('COM-Appliance class'!$U56/'Volume per connection'!$J$69)","v":18529.015442049225},{"$f":"F$4*('COM-Appliance class'!$U56/'Volume per connection'!$J$69)","v":20611.452386296343},{"$f":"G$4*('COM-Appliance class'!$U56/'Volume per connection'!$J$69)","v":18147.086659238877},{"$f":"H$4*('COM-Appliance class'!$U56/'Volume per connection'!$J$69)","v":18628.396406785523},{"$f":"I$4*('COM-Appliance class'!$U56/'Volume per connection'!$J$69)","v":21603.263517141891},{"$f":"J$4*('COM-Appliance class'!$U56/'Volume per connection'!$J$69)","v":23773.009082787881},{"$f":"K$4*('COM-Appliance class'!$U56/'Volume per connection'!$J$69)","v":28459.467311323515},{"$f":"L$4*('COM-Appliance class'!$U56/'Volume per connection'!$J$69)","v":28217.694894261596},{"$f":"M$4*('COM-Appliance class'!$U56/'Volume per connection'!$J$69)","v":22927.850711429171},{"$f":"N$4*('COM-Appliance class'!$U56/'Volume per connection'!$J$69)","v":22820.799229386463},{"$f":"O$4*('COM-Appliance class'!$U56/'Volume per connection'!$J$69)","v":25970.076923546811},{"$f":"P$4*('COM-Appliance class'!$U56/'Volume per connection'!$J$69)","v":29018.158407835319},{"$f":"Q$4*('COM-Appliance class'!$U56/'Volume per connection'!$J$69)","v":20206.082812927936},{"$f":"R$4*('COM-Appliance class'!$U56/'Volume per connection'!$J$69)","v":21463.563546735521},{"$f":"S$4*('COM-Appliance class'!$U56/'Volume per connection'!$J$69)","v":23329.410355315838},{"$f":"T$4*('COM-Appliance class'!$U56/'Volume per connection'!$J$69)","v":26060.767365893498},{"$f":"U$4*('COM-Appliance class'!$U56/'Volume per connection'!$J$69)","v":28093.270852480069},{"$f":"V$4*('COM-Appliance class'!$U56/'Volume per connection'!$J$69)","v":28839.079584361873},{"$f":"W$4*('COM-Appliance class'!$U56/'Volume per connection'!$J$69)","v":30054.161626724188},{"$f":"X$4*('COM-Appliance class'!$U56/'Volume per connection'!$J$69)","v":33064.581853318639},{"$f":"Y$4*('COM-Appliance class'!$U56/'Volume per connection'!$J$69)","v":35565.821417136591},{"$f":"Z$4*('COM-Appliance class'!$U56/'Volume per connection'!$J$69)","v":36977.962448912003},{"$f":"AA$4*('COM-Appliance class'!$U56/'Volume per connection'!$J$69)","v":38582.611728711083},{"$f":"AB$4*('COM-Appliance class'!$U56/'Volume per connection'!$J$69)","v":39589.399013004848},{"$f":"AC$4*('COM-Appliance class'!$U56/'Volume per connection'!$J$69)","v":40318.148990814618},{"$f":"AD$4*('COM-Appliance class'!$U56/'Volume per connection'!$J$69)","v":40839.93577532436},{"$f":"AE$4*('COM-Appliance class'!$U56/'Volume per connection'!$J$69)","v":41277.214294640835},{"$f":"AF$4*('COM-Appliance class'!$U56/'Volume per connection'!$J$69)","v":42090.930738816023},{"$f":"AG$4*('COM-Appliance class'!$U56/'Volume per connection'!$J$69)","v":42130.024243166379},{"$f":"AH$4*('COM-Appliance class'!$U56/'Volume per connection'!$J$69)","v":42983.631780892625},{"$f":"AI$4*('COM-Appliance class'!$U56/'Volume per connection'!$J$69)","v":43038.564336116811},{"$f":"AJ$4*('COM-Appliance class'!$U56/'Volume per connection'!$J$69)","v":43093.419429579313},{"$f":"AK$4*('COM-Appliance class'!$U56/'Volume per connection'!$J$69)","v":43148.197537281296},{"$f":"AL$4*('COM-Appliance class'!$U56/'Volume per connection'!$J$69)","v":43202.899132269202},{"$f":"AM$4*('COM-Appliance class'!$U56/'Volume per connection'!$J$69)","v":43257.524684653443},{"$f":"AN$4*('COM-Appliance class'!$U56/'Volume per connection'!$J$69)","v":43312.074661626677},{"$f":"AO$4*('COM-Appliance class'!$U56/'Volume per connection'!$J$69)","v":43366.549527482493},{"$f":"AP$4*('COM-Appliance class'!$U56/'Volume per connection'!$J$69)","v":43420.949743633348},{"$f":"AQ$4*('COM-Appliance class'!$U56/'Volume per connection'!$J$69)","v":43475.275768628999},{"$f":"AR$4*('COM-Appliance class'!$U56/'Volume per connection'!$J$69)","v":43529.528058174277},{"$f":"AS$4*('COM-Appliance class'!$U56/'Volume per connection'!$J$69)","v":43583.707065147231},{"$f":"AT$4*('COM-Appliance class'!$U56/'Volume per connection'!$J$69)","v":43637.813239616662},{"$f":"AU$4*('COM-Appliance class'!$U56/'Volume per connection'!$J$69)","v":43691.847028860117},{"$f":"AV$4*('COM-Appliance class'!$U56/'Volume per connection'!$J$69)","v":43745.808877381161},{"$f":"AW$4*('COM-Appliance class'!$U56/'Volume per connection'!$J$69)","v":43799.699226927092},{"$f":"AX$4*('COM-Appliance class'!$U56/'Volume per connection'!$J$69)","v":43853.518516506083},{"$f":"AY$4*('COM-Appliance class'!$U56/'Volume per connection'!$J$69)","v":43907.26718240459},{"$f":"AZ$4*('COM-Appliance class'!$U56/'Volume per connection'!$J$69)","v":43960.945658204328},{"$f":"BA$4*('COM-Appliance class'!$U56/'Volume per connection'!$J$69)","v":44014.554374799503},{"$f":"BB$4*('COM-Appliance class'!$U56/'Volume per connection'!$J$69)","v":44068.093760413423},{"$f":"BC$4*('COM-Appliance class'!$U56/'Volume per connection'!$J$69)","v":44121.564240615662},{"$f":"BD$4*('COM-Appliance class'!$U56/'Volume per connection'!$J$69)","v":44174.966238338391},{"$f":"BE$4*('COM-Appliance class'!$U56/'Volume per connection'!$J$69)","v":44228.300173893345},{"$f":"BF$4*('COM-Appliance class'!$U56/'Volume per connection'!$J$69)","v":44281.566464987976},{"$f":"BG$4*('COM-Appliance class'!$U56/'Volume per connection'!$J$69)","v":44334.765526742027},{"$f":"BH$4*('COM-Appliance class'!$U56/'Volume per connection'!$J$69)","v":44387.8977717038},{"$f":"BI$4*('COM-Appliance class'!$U56/'Volume per connection'!$J$69)","v":44440.963609866303},{"$f":"BJ$4*('COM-Appliance class'!$U56/'Volume per connection'!$J$69)","v":44493.963448683229},{"$f":"BK$4*('COM-Appliance class'!$U56/'Volume per connection'!$J$69)","v":44546.897693085171},{"$f":"BL$4*('COM-Appliance class'!$U56/'Volume per connection'!$J$69)","v":44599.766745495181},{"$f":"BM$4*('COM-Appliance class'!$U56/'Volume per connection'!$J$69)","v":44652.571005844875},{"$f":"BN$4*('COM-Appliance class'!$U56/'Volume per connection'!$J$69)","v":44705.310871589725},{"$f":"BO$4*('COM-Appliance class'!$U56/'Volume per connection'!$J$69)","v":44757.986737725034},{"$f":"BP$4*('COM-Appliance class'!$U56/'Volume per connection'!$J$69)","v":44810.59899680104},{"$f":"BQ$4*('COM-Appliance class'!$U56/'Volume per connection'!$J$69)","v":44863.148038938583},{"$f":"BR$4*('COM-Appliance class'!$U56/'Volume per connection'!$J$69)","v":44915.634251844145},{"$f":"BS$4*('COM-Appliance class'!$U56/'Volume per connection'!$J$69)","v":44968.058020825229},{"$f":"BT$4*('COM-Appliance class'!$U56/'Volume per connection'!$J$69)","v":45020.419728805246},{"$f":"BU$4*('COM-Appliance class'!$U56/'Volume per connection'!$J$69)","v":45072.719756338738},{"$f":"BV$4*('COM-Appliance class'!$U56/'Volume per connection'!$J$69)","v":45124.958481625974},{"$f":"BW$4*('COM-Appliance class'!$U56/'Volume per connection'!$J$69)","v":45177.136280528095},{"$f":"BX$4*('COM-Appliance class'!$U56/'Volume per connection'!$J$69)","v":45229.253526581393},{"$f":"BY$4*('COM-Appliance class'!$U56/'Volume per connection'!$J$69)","v":45281.310591012414},{"$f":"BZ$4*('COM-Appliance class'!$U56/'Volume per connection'!$J$69)","v":45333.307842751972},{"$f":"CA$4*('COM-Appliance class'!$U56/'Volume per connection'!$J$69)","v":45385.245648450065},{"$f":"CB$4*('COM-Appliance class'!$U56/'Volume per connection'!$J$69)","v":45437.12437248975},{"$f":"CC$4*('COM-Appliance class'!$U56/'Volume per connection'!$J$69)","v":45488.944377001768},{"$f":"CD$4*('COM-Appliance class'!$U56/'Volume per connection'!$J$69)","v":45540.706021878366}]
["Manningham (C)",null,{"$f":"C$4*('COM-Appliance class'!$U57/'Volume per connection'!$J$69)","v":17385.03428581894},{"$f":"D$4*('COM-Appliance class'!$U57/'Volume per connection'!$J$69)","v":21368.449901920649},{"$f":"E$4*('COM-Appliance class'!$U57/'Volume per connection'!$J$69)","v":18988.461616040549},{"$f":"F$4*('COM-Appliance class'!$U57/'Volume per connection'!$J$69)","v":21122.534746225603},{"$f":"G$4*('COM-Appliance class'!$U57/'Volume per connection'!$J$69)","v":18597.062512556757},{"$f":"H$4*('COM-Appliance class'!$U57/'Volume per connection'!$J$69)","v":19090.30683497095},{"$f":"I$4*('COM-Appliance class'!$U57/'Volume per connection'!$J$69)","v":22138.938863720341},{"$f":"J$4*('COM-Appliance class'!$U57/'Volume per connection'!$J$69)","v":24362.485523212275},{"$f":"K$4*('COM-Appliance class'!$U57/'Volume per connection'!$J$69)","v":29165.149348823757},{"$f":"L$4*('COM-Appliance class'!$U57/'Volume per connection'!$J$69)","v":28917.381933682034},{"$f":"M$4*('COM-Appliance class'!$U57/'Volume per connection'!$J$69)","v":23496.370572625066},{"$f":"N$4*('COM-Appliance class'!$U57/'Volume per connection'!$J$69)","v":23386.664637948408},{"$f":"O$4*('COM-Appliance class'!$U57/'Volume per connection'!$J$69)","v":26614.031941993508},{"$f":"P$4*('COM-Appliance class'!$U57/'Volume per connection'!$J$69)","v":29737.693771085014},{"$f":"Q$4*('COM-Appliance class'!$U57/'Volume per connection'!$J$69)","v":20707.113613446545},{"$f":"R$4*('COM-Appliance class'!$U57/'Volume per connection'!$J$69)","v":21995.774887516651},{"$f":"S$4*('COM-Appliance class'!$U57/'Volume per connection'!$J$69)","v":23907.887304765562},{"$f":"T$4*('COM-Appliance class'!$U57/'Volume per connection'!$J$69)","v":26706.971148009481},{"$f":"U$4*('COM-Appliance class'!$U57/'Volume per connection'!$J$69)","v":28789.872668612315},{"$f":"V$4*('COM-Appliance class'!$U57/'Volume per connection'!$J$69)","v":29554.174502270849},{"$f":"W$4*('COM-Appliance class'!$U57/'Volume per connection'!$J$69)","v":30799.385765324623},{"$f":"X$4*('COM-Appliance class'!$U57/'Volume per connection'!$J$69)","v":33884.452486739086},{"$f":"Y$4*('COM-Appliance class'!$U57/'Volume per connection'!$J$69)","v":36447.712882231885},{"$f":"Z$4*('COM-Appliance class'!$U57/'Volume per connection'!$J$69)","v":37894.869416920257},{"$f":"AA$4*('COM-Appliance class'!$U57/'Volume per connection'!$J$69)","v":39539.307641496649},{"$f":"AB$4*('COM-Appliance class'!$U57/'Volume per connection'!$J$69)","v":40571.059261712013},{"$f":"AC$4*('COM-Appliance class'!$U57/'Volume per connection'!$J$69)","v":41317.879351781557},{"$f":"AD$4*('COM-Appliance class'!$U57/'Volume per connection'!$J$69)","v":41852.604381312034},{"$f":"AE$4*('COM-Appliance class'!$U57/'Volume per connection'!$J$69)","v":42300.725675480579},{"$f":"AF$4*('COM-Appliance class'!$U57/'Volume per connection'!$J$69)","v":43134.619063657963},{"$f":"AG$4*('COM-Appliance class'!$U57/'Volume per connection'!$J$69)","v":43174.681932034044},{"$f":"AH$4*('COM-Appliance class'!$U57/'Volume per connection'!$J$69)","v":44049.455554840482},{"$f":"AI$4*('COM-Appliance class'!$U57/'Volume per connection'!$J$69)","v":44105.750219800299},{"$f":"AJ$4*('COM-Appliance class'!$U57/'Volume per connection'!$J$69)","v":44161.965502253632},{"$f":"AK$4*('COM-Appliance class'!$U57/'Volume per connection'!$J$69)","v":44218.101890004596},{"$f":"AL$4*('COM-Appliance class'!$U57/'Volume per connection'!$J$69)","v":44274.159867829301},{"$f":"AM$4*('COM-Appliance class'!$U57/'Volume per connection'!$J$69)","v":44330.139917495042},{"$f":"AN$4*('COM-Appliance class'!$U57/'Volume per connection'!$J$69)","v":44386.042517779002},{"$f":"AO$4*('COM-Appliance class'!$U57/'Volume per connection'!$J$69)","v":44441.868144487409},{"$f":"AP$4*('COM-Appliance class'!$U57/'Volume per connection'!$J$69)","v":44497.617270473915},{"$f":"AQ$4*('COM-Appliance class'!$U57/'Volume per connection'!$J$69)","v":44553.290365658511},{"$f":"AR$4*('COM-Appliance class'!$U57/'Volume per connection'!$J$69)","v":44608.887897045686},{"$f":"AS$4*('COM-Appliance class'!$U57/'Volume per connection'!$J$69)","v":44664.410328743077},{"$f":"AT$4*('COM-Appliance class'!$U57/'Volume per connection'!$J$69)","v":44719.858121979414},{"$f":"AU$4*('COM-Appliance class'!$U57/'Volume per connection'!$J$69)","v":44775.231735122943},{"$f":"AV$4*('COM-Appliance class'!$U57/'Volume per connection'!$J$69)","v":44830.531623699171},{"$f":"AW$4*('COM-Appliance class'!$U57/'Volume per connection'!$J$69)","v":44885.758240408963},{"$f":"AX$4*('COM-Appliance class'!$U57/'Volume per connection'!$J$69)","v":44940.912035146168},{"$f":"AY$4*('COM-Appliance class'!$U57/'Volume per connection'!$J$69)","v":44995.993455015407},{"$f":"AZ$4*('COM-Appliance class'!$U57/'Volume per connection'!$J$69)","v":45051.002944349508},{"$f":"BA$4*('COM-Appliance class'!$U57/'Volume per connection'!$J$69)","v":45105.940944727161},{"$f":"BB$4*('COM-Appliance class'!$U57/'Volume per connection'!$J$69)","v":45160.807894989892},{"$f":"BC$4*('COM-Appliance class'!$U57/'Volume per connection'!$J$69)","v":45215.604231259727},{"$f":"BD$4*('COM-Appliance class'!$U57/'Volume per connection'!$J$69)","v":45270.33038695588},{"$f":"BE$4*('COM-Appliance class'!$U57/'Volume per connection'!$J$69)","v":45324.986792812138},{"$f":"BF$4*('COM-Appliance class'!$U57/'Volume per connection'!$J$69)","v":45379.573876893461},{"$f":"BG$4*('COM-Appliance class'!$U57/'Volume per connection'!$J$69)","v":45434.092064612909},{"$f":"BH$4*('COM-Appliance class'!$U57/'Volume per connection'!$J$69)","v":45488.541778748338},{"$f":"BI$4*('COM-Appliance class'!$U57/'Volume per connection'!$J$69)","v":45542.92343945898},{"$f":"BJ$4*('COM-Appliance class'!$U57/'Volume per connection'!$J$69)","v":45597.237464301754},{"$f":"BK$4*('COM-Appliance class'!$U57/'Volume per connection'!$J$69)","v":45651.484268247921},{"$f":"BL$4*('COM-Appliance class'!$U57/'Volume per connection'!$J$69)","v":45705.664263699036},{"$f":"BM$4*('COM-Appliance class'!$U57/'Volume per connection'!$J$69)","v":45759.77786050344},{"$f":"BN$4*('COM-Appliance class'!$U57/'Volume per connection'!$J$69)","v":45813.825465971924},{"$f":"BO$4*('COM-Appliance class'!$U57/'Volume per connection'!$J$69)","v":45867.807484894096},{"$f":"BP$4*('COM-Appliance class'!$U57/'Volume per connection'!$J$69)","v":45921.724319553898},{"$f":"BQ$4*('COM-Appliance class'!$U57/'Volume per connection'!$J$69)","v":45975.57636974562},{"$f":"BR$4*('COM-Appliance class'!$U57/'Volume per connection'!$J$69)","v":46029.36403278933},{"$f":"BS$4*('COM-Appliance class'!$U57/'Volume per connection'!$J$69)","v":46083.087703546618},{"$f":"BT$4*('COM-Appliance class'!$U57/'Volume per connection'!$J$69)","v":46136.747774435906},{"$f":"BU$4*('COM-Appliance class'!$U57/'Volume per connection'!$J$69)","v":46190.344635447946},{"$f":"BV$4*('COM-Appliance class'!$U57/'Volume per connection'!$J$69)","v":46243.8786741609},{"$f":"BW$4*('COM-Appliance class'!$U57/'Volume per connection'!$J$69)","v":46297.350275755765},{"$f":"BX$4*('COM-Appliance class'!$U57/'Volume per connection'!$J$69)","v":46350.759823031061},{"$f":"BY$4*('COM-Appliance class'!$U57/'Volume per connection'!$J$69)","v":46404.107696418272},{"$f":"BZ$4*('COM-Appliance class'!$U57/'Volume per connection'!$J$69)","v":46457.394273996251},{"$f":"CA$4*('COM-Appliance class'!$U57/'Volume per connection'!$J$69)","v":46510.619931506444},{"$f":"CB$4*('COM-Appliance class'!$U57/'Volume per connection'!$J$69)","v":46563.78504236717},{"$f":"CC$4*('COM-Appliance class'!$U57/'Volume per connection'!$J$69)","v":46616.889977688588},{"$f":"CD$4*('COM-Appliance class'!$U57/'Volume per connection'!$J$69)","v":46669.935106286837}]
["Maroondah (C)",null,{"$f":"C$4*('COM-Appliance class'!$U58/'Volume per connection'!$J$69)","v":16449.429885528352},{"$f":"D$4*('COM-Appliance class'!$U58/'Volume per connection'!$J$69)","v":20218.471395871118},{"$f":"E$4*('COM-Appliance class'!$U58/'Volume per connection'!$J$69)","v":17966.566119567007},{"$f":"F$4*('COM-Appliance class'!$U58/'Volume per connection'!$J$69)","v":19985.790571382087},{"$f":"G$4*('COM-Appliance class'!$U58/'Volume per connection'!$J$69)","v":17596.230806782092},{"$f":"H$4*('COM-Appliance class'!$U58/'Volume per connection'!$J$69)","v":18062.930369440157},{"$f":"I$4*('COM-Appliance class'!$U58/'Volume per connection'!$J$69)","v":20947.495218679218},{"$f":"J$4*('COM-Appliance class'!$U58/'Volume per connection'!$J$69)","v":23051.378033701829},{"$f":"K$4*('COM-Appliance class'!$U58/'Volume per connection'!$J$69)","v":27595.57855492835},{"$f":"L$4*('COM-Appliance class'!$U58/'Volume per connection'!$J$69)","v":27361.145153401103},{"$f":"M$4*('COM-Appliance class'!$U58/'Volume per connection'!$J$69)","v":22231.874492997649},{"$f":"N$4*('COM-Appliance class'!$U58/'Volume per connection'!$J$69)","v":22128.072564809216},{"$f":"O$4*('COM-Appliance class'!$U58/'Volume per connection'!$J$69)","v":25181.753754615151},{"$f":"P$4*('COM-Appliance class'!$U58/'Volume per connection'!$J$69)","v":28137.310551282208},{"$f":"Q$4*('COM-Appliance class'!$U58/'Volume per connection'!$J$69)","v":19592.726014575892},{"$f":"R$4*('COM-Appliance class'!$U58/'Volume per connection'!$J$69)","v":20812.035848856918},{"$f":"S$4*('COM-Appliance class'!$U58/'Volume per connection'!$J$69)","v":22621.244770949215},{"$f":"T$4*('COM-Appliance class'!$U58/'Volume per connection'!$J$69)","v":25269.691283402393},{"$f":"U$4*('COM-Appliance class'!$U58/'Volume per connection'!$J$69)","v":27240.498010517385},{"$f":"V$4*('COM-Appliance class'!$U58/'Volume per connection'!$J$69)","v":27963.667675727771},{"$f":"W$4*('COM-Appliance class'!$U58/'Volume per connection'!$J$69)","v":29141.86583326499},{"$f":"X$4*('COM-Appliance class'!$U58/'Volume per connection'!$J$69)","v":32060.904581867235},{"$f":"Y$4*('COM-Appliance class'!$U58/'Volume per connection'!$J$69)","v":34486.218875805898},{"$f":"Z$4*('COM-Appliance class'!$U58/'Volume per connection'!$J$69)","v":35855.49428587273},{"$f":"AA$4*('COM-Appliance class'!$U58/'Volume per connection'!$J$69)","v":37411.43434509464},{"$f":"AB$4*('COM-Appliance class'!$U58/'Volume per connection'!$J$69)","v":38387.660543846338},{"$f":"AC$4*('COM-Appliance class'!$U58/'Volume per connection'!$J$69)","v":39094.289274439267},{"$f":"AD$4*('COM-Appliance class'!$U58/'Volume per connection'!$J$69)","v":39600.23719129058},{"$f":"AE$4*('COM-Appliance class'!$U58/'Volume per connection'!$J$69)","v":40024.242096167327},{"$f":"AF$4*('COM-Appliance class'!$U58/'Volume per connection'!$J$69)","v":40813.258131184215},{"$f":"AG$4*('COM-Appliance class'!$U58/'Volume per connection'!$J$69)","v":40851.164949976235},{"$f":"AH$4*('COM-Appliance class'!$U58/'Volume per connection'!$J$69)","v":41678.86118212009},{"$f":"AI$4*('COM-Appliance class'!$U58/'Volume per connection'!$J$69)","v":41732.126256491625},{"$f":"AJ$4*('COM-Appliance class'!$U58/'Volume per connection'!$J$69)","v":41785.31622045768},{"$f":"AK$4*('COM-Appliance class'!$U58/'Volume per connection'!$J$69)","v":41838.431535570373},{"$f":"AL$4*('COM-Appliance class'!$U58/'Volume per connection'!$J$69)","v":41891.472660516803},{"$f":"AM$4*('COM-Appliance class'!$U58/'Volume per connection'!$J$69)","v":41944.440051137142},{"$f":"AN$4*('COM-Appliance class'!$U58/'Volume per connection'!$J$69)","v":41997.334160442399},{"$f":"AO$4*('COM-Appliance class'!$U58/'Volume per connection'!$J$69)","v":42050.155438632493},{"$f":"AP$4*('COM-Appliance class'!$U58/'Volume per connection'!$J$69)","v":42102.904333113685},{"$f":"AQ$4*('COM-Appliance class'!$U58/'Volume per connection'!$J$69)","v":42155.581288516427},{"$f":"AR$4*('COM-Appliance class'!$U58/'Volume per connection'!$J$69)","v":42208.186746712614},{"$f":"AS$4*('COM-Appliance class'!$U58/'Volume per connection'!$J$69)","v":42260.721146833137},{"$f":"AT$4*('COM-Appliance class'!$U58/'Volume per connection'!$J$69)","v":42313.18492528495},{"$f":"AU$4*('COM-Appliance class'!$U58/'Volume per connection'!$J$69)","v":42365.578515768451},{"$f":"AV$4*('COM-Appliance class'!$U58/'Volume per connection'!$J$69)","v":42417.902349294294},{"$f":"AW$4*('COM-Appliance class'!$U58/'Volume per connection'!$J$69)","v":42470.156854200482},{"$f":"AX$4*('COM-Appliance class'!$U58/'Volume per connection'!$J$69)","v":42522.342456169099},{"$f":"AY$4*('COM-Appliance class'!$U58/'Volume per connection'!$J$69)","v":42574.459578243084},{"$f":"AZ$4*('COM-Appliance class'!$U58/'Volume per connection'!$J$69)","v":42626.50864084276},{"$f":"BA$4*('COM-Appliance class'!$U58/'Volume per connection'!$J$69)","v":42678.490061782519},{"$f":"BB$4*('COM-Appliance class'!$U58/'Volume per connection'!$J$69)","v":42730.404256286914},{"$f":"BC$4*('COM-Appliance class'!$U58/'Volume per connection'!$J$69)","v":42782.251637007335},{"$f":"BD$4*('COM-Appliance class'!$U58/'Volume per connection'!$J$69)","v":42834.032614037831},{"$f":"BE$4*('COM-Appliance class'!$U58/'Volume per connection'!$J$69)","v":42885.747594931534},{"$f":"BF$4*('COM-Appliance class'!$U58/'Volume per connection'!$J$69)","v":42937.396984716375},{"$f":"BG$4*('COM-Appliance class'!$U58/'Volume per connection'!$J$69)","v":42988.981185911114},{"$f":"BH$4*('COM-Appliance class'!$U58/'Volume per connection'!$J$69)","v":43040.500598541119},{"$f":"BI$4*('COM-Appliance class'!$U58/'Volume per connection'!$J$69)","v":43091.955620154047},{"$f":"BJ$4*('COM-Appliance class'!$U58/'Volume per connection'!$J$69)","v":43143.346645835307},{"$f":"BK$4*('COM-Appliance class'!$U58/'Volume per connection'!$J$69)","v":43194.674068223787},{"$f":"BL$4*('COM-Appliance class'!$U58/'Volume per connection'!$J$69)","v":43245.938277526977},{"$f":"BM$4*('COM-Appliance class'!$U58/'Volume per connection'!$J$69)","v":43297.139661536545},{"$f":"BN$4*('COM-Appliance class'!$U58/'Volume per connection'!$J$69)","v":43348.278605643187},{"$f":"BO$4*('COM-Appliance class'!$U58/'Volume per connection'!$J$69)","v":43399.355492852083},{"$f":"BP$4*('COM-Appliance class'!$U58/'Volume per connection'!$J$69)","v":43450.370703797598},{"$f":"BQ$4*('COM-Appliance class'!$U58/'Volume per connection'!$J$69)","v":43501.324616758429},{"$f":"BR$4*('COM-Appliance class'!$U58/'Volume per connection'!$J$69)","v":43552.217607672203},{"$f":"BS$4*('COM-Appliance class'!$U58/'Volume per connection'!$J$69)","v":43603.050050150399},{"$f":"BT$4*('COM-Appliance class'!$U58/'Volume per connection'!$J$69)","v":43653.822315492769},{"$f":"BU$4*('COM-Appliance class'!$U58/'Volume per connection'!$J$69)","v":43704.534772702078},{"$f":"BV$4*('COM-Appliance class'!$U58/'Volume per connection'!$J$69)","v":43755.187788498326},{"$f":"BW$4*('COM-Appliance class'!$U58/'Volume per connection'!$J$69)","v":43805.781727333357},{"$f":"BX$4*('COM-Appliance class'!$U58/'Volume per connection'!$J$69)","v":43856.316951404748},{"$f":"BY$4*('COM-Appliance class'!$U58/'Volume per connection'!$J$69)","v":43906.793820670457},{"$f":"BZ$4*('COM-Appliance class'!$U58/'Volume per connection'!$J$69)","v":43957.212692862369},{"$f":"CA$4*('COM-Appliance class'!$U58/'Volume per connection'!$J$69)","v":44007.573923500793},{"$f":"CB$4*('COM-Appliance class'!$U58/'Volume per connection'!$J$69)","v":44057.877865907925},{"$f":"CC$4*('COM-Appliance class'!$U58/'Volume per connection'!$J$69)","v":44108.124871222011},{"$f":"CD$4*('COM-Appliance class'!$U58/'Volume per connection'!$J$69)","v":44158.315288410748}]
["Melbourne (C)",null,{"$f":"C$4*('COM-Appliance class'!$U59/'Volume per connection'!$J$69)","v":18419.990150796071},{"$f":"D$4*('COM-Appliance class'!$U59/'Volume per connection'!$J$69)","v":22640.544174953087},{"$f":"E$4*('COM-Appliance class'!$U59/'Volume per connection'!$J$69)","v":20118.871794894483},{"$f":"F$4*('COM-Appliance class'!$U59/'Volume per connection'!$J$69)","v":22379.989339606618},{"$f":"G$4*('COM-Appliance class'!$U59/'Volume per connection'!$J$69)","v":19704.172145030534},{"$f":"H$4*('COM-Appliance class'!$U59/'Volume per connection'!$J$69)","v":20226.78000483882},{"$f":"I$4*('COM-Appliance class'!$U59/'Volume per connection'!$J$69)","v":23456.901442607385},{"$f":"J$4*('COM-Appliance class'!$U59/'Volume per connection'!$J$69)","v":25812.819003327204},{"$f":"K$4*('COM-Appliance class'!$U59/'Volume per connection'!$J$69)","v":30901.392250347453},{"$f":"L$4*('COM-Appliance class'!$U59/'Volume per connection'!$J$69)","v":30638.874887909948},{"$f":"M$4*('COM-Appliance class'!$U59/'Volume per connection'!$J$69)","v":24895.142995504353},{"$f":"N$4*('COM-Appliance class'!$U59/'Volume per connection'!$J$69)","v":24778.906110203745},{"$f":"O$4*('COM-Appliance class'!$U59/'Volume per connection'!$J$69)","v":28198.403188906897},{"$f":"P$4*('COM-Appliance class'!$U59/'Volume per connection'!$J$69)","v":31508.021057950566},{"$f":"Q$4*('COM-Appliance class'!$U59/'Volume per connection'!$J$69)","v":21939.837594811695},{"$f":"R$4*('COM-Appliance class'!$U59/'Volume per connection'!$J$69)","v":23305.21471088941},{"$f":"S$4*('COM-Appliance class'!$U59/'Volume per connection'!$J$69)","v":25331.157905126871},{"$f":"T$4*('COM-Appliance class'!$U59/'Volume per connection'!$J$69)","v":28296.875198296806},{"$f":"U$4*('COM-Appliance class'!$U59/'Volume per connection'!$J$69)","v":30503.77481458796},{"$f":"V$4*('COM-Appliance class'!$U59/'Volume per connection'!$J$69)","v":31313.576625546102},{"$f":"W$4*('COM-Appliance class'!$U59/'Volume per connection'!$J$69)","v":32632.917089534745},{"$f":"X$4*('COM-Appliance class'!$U59/'Volume per connection'!$J$69)","v":35901.642229142737},{"$f":"Y$4*('COM-Appliance class'!$U59/'Volume per connection'!$J$69)","v":38617.497168664864},{"$f":"Z$4*('COM-Appliance class'!$U59/'Volume per connection'!$J$69)","v":40150.80499408365},{"$f":"AA$4*('COM-Appliance class'!$U59/'Volume per connection'!$J$69)","v":41893.138969518935},{"$f":"AB$4*('COM-Appliance class'!$U59/'Volume per connection'!$J$69)","v":42986.312233947712},{"$f":"AC$4*('COM-Appliance class'!$U59/'Volume per connection'!$J$69)","v":43777.591588209259},{"$f":"AD$4*('COM-Appliance class'!$U59/'Volume per connection'!$J$69)","v":44344.149560739112},{"$f":"AE$4*('COM-Appliance class'!$U59/'Volume per connection'!$J$69)","v":44818.94815412927},{"$f":"AF$4*('COM-Appliance class'!$U59/'Volume per connection'!$J$69)","v":45702.484404015806},{"$f":"AG$4*('COM-Appliance class'!$U59/'Volume per connection'!$J$69)","v":45744.932272036531},{"$f":"AH$4*('COM-Appliance class'!$U59/'Volume per connection'!$J$69)","v":46671.782415174552},{"$f":"AI$4*('COM-Appliance class'!$U59/'Volume per connection'!$J$69)","v":46731.428381760197},{"$f":"AJ$4*('COM-Appliance class'!$U59/'Volume per connection'!$J$69)","v":46790.990240085623},{"$f":"AK$4*('COM-Appliance class'!$U59/'Volume per connection'!$J$69)","v":46850.468506994621},{"$f":"AL$4*('COM-Appliance class'!$U59/'Volume per connection'!$J$69)","v":46909.863696122717},{"$f":"AM$4*('COM-Appliance class'!$U59/'Volume per connection'!$J$69)","v":46969.176317917489},{"$f":"AN$4*('COM-Appliance class'!$U59/'Volume per connection'!$J$69)","v":47028.406879658425},{"$f":"AO$4*('COM-Appliance class'!$U59/'Volume per connection'!$J$69)","v":47087.555885477166},{"$f":"AP$4*('COM-Appliance class'!$U59/'Volume per connection'!$J$69)","v":47146.623836377017},{"$f":"AQ$4*('COM-Appliance class'!$U59/'Volume per connection'!$J$69)","v":47205.611230252965},{"$f":"AR$4*('COM-Appliance class'!$U59/'Volume per connection'!$J$69)","v":47264.518561910962},{"$f":"AS$4*('COM-Appliance class'!$U59/'Volume per connection'!$J$69)","v":47323.346323087622},{"$f":"AT$4*('COM-Appliance class'!$U59/'Volume per connection'!$J$69)","v":47382.095002469279},{"$f":"AU$4*('COM-Appliance class'!$U59/'Volume per connection'!$J$69)","v":47440.765085711493},{"$f":"AV$4*('COM-Appliance class'!$U59/'Volume per connection'!$J$69)","v":47499.357055457862},{"$f":"AW$4*('COM-Appliance class'!$U59/'Volume per connection'!$J$69)","v":47557.871391359171},{"$f":"AX$4*('COM-Appliance class'!$U59/'Volume per connection'!$J$69)","v":47616.308570092086},{"$f":"AY$4*('COM-Appliance class'!$U59/'Volume per connection'!$J$69)","v":47674.669065378017},{"$f":"AZ$4*('COM-Appliance class'!$U59/'Volume per connection'!$J$69)","v":47732.953348001553},{"$f":"BA$4*('COM-Appliance class'!$U59/'Volume per connection'!$J$69)","v":47791.161885829184},{"$f":"BB$4*('COM-Appliance class'!$U59/'Volume per connection'!$J$69)","v":47849.295143827308},{"$f":"BC$4*('COM-Appliance class'!$U59/'Volume per connection'!$J$69)","v":47907.353584080905},{"$f":"BD$4*('COM-Appliance class'!$U59/'Volume per connection'!$J$69)","v":47965.337665811268},{"$f":"BE$4*('COM-Appliance class'!$U59/'Volume per connection'!$J$69)","v":48023.247845394377},{"$f":"BF$4*('COM-Appliance class'!$U59/'Volume per connection'!$J$69)","v":48081.084576378496},{"$f":"BG$4*('COM-Appliance class'!$U59/'Volume per connection'!$J$69)","v":48138.848309502144},{"$f":"BH$4*('COM-Appliance class'!$U59/'Volume per connection'!$J$69)","v":48196.539492711738},{"$f":"BI$4*('COM-Appliance class'!$U59/'Volume per connection'!$J$69)","v":48254.158571179192},{"$f":"BJ$4*('COM-Appliance class'!$U59/'Volume per connection'!$J$69)","v":48311.705987319183},{"$f":"BK$4*('COM-Appliance class'!$U59/'Volume per connection'!$J$69)","v":48369.182180806798},{"$f":"BL$4*('COM-Appliance class'!$U59/'Volume per connection'!$J$69)","v":48426.587588594448},{"$f":"BM$4*('COM-Appliance class'!$U59/'Volume per connection'!$J$69)","v":48483.922644929327},{"$f":"BN$4*('COM-Appliance class'!$U59/'Volume per connection'!$J$69)","v":48541.187781370019},{"$f":"BO$4*('COM-Appliance class'!$U59/'Volume per connection'!$J$69)","v":48598.383426803841},{"$f":"BP$4*('COM-Appliance class'!$U59/'Volume per connection'!$J$69)","v":48655.510007463265},{"$f":"BQ$4*('COM-Appliance class'!$U59/'Volume per connection'!$J$69)","v":48712.567946942909},{"$f":"BR$4*('COM-Appliance class'!$U59/'Volume per connection'!$J$69)","v":48769.557666215849},{"$f":"BS$4*('COM-Appliance class'!$U59/'Volume per connection'!$J$69)","v":48826.479583650391},{"$f":"BT$4*('COM-Appliance class'!$U59/'Volume per connection'!$J$69)","v":48883.33411502614},{"$f":"BU$4*('COM-Appliance class'!$U59/'Volume per connection'!$J$69)","v":48940.121673550588},{"$f":"BV$4*('COM-Appliance class'!$U59/'Volume per connection'!$J$69)","v":48996.842669874946},{"$f":"BW$4*('COM-Appliance class'!$U59/'Volume per connection'!$J$69)","v":49053.497512110618},{"$f":"BX$4*('COM-Appliance class'!$U59/'Volume per connection'!$J$69)","v":49110.086605844641},{"$f":"BY$4*('COM-Appliance class'!$U59/'Volume per connection'!$J$69)","v":49166.610354156139},{"$f":"BZ$4*('COM-Appliance class'!$U59/'Volume per connection'!$J$69)","v":49223.069157631529},{"$f":"CA$4*('COM-Appliance class'!$U59/'Volume per connection'!$J$69)","v":49279.463414380691},{"$f":"CB$4*('COM-Appliance class'!$U59/'Volume per connection'!$J$69)","v":49335.793520052059},{"$f":"CC$4*('COM-Appliance class'!$U59/'Volume per connection'!$J$69)","v":49392.059867848504},{"$f":"CD$4*('COM-Appliance class'!$U59/'Volume per connection'!$J$69)","v":49448.262848542341}]
["Monash (C)",null,{"$f":"C$4*('COM-Appliance class'!$U60/'Volume per connection'!$J$69)","v":17600.203915947259},{"$f":"D$4*('COM-Appliance class'!$U60/'Volume per connection'!$J$69)","v":21632.921135409229},{"$f":"E$4*('COM-Appliance class'!$U60/'Volume per connection'!$J$69)","v":19223.476410688494},{"$f":"F$4*('COM-Appliance class'!$U60/'Volume per connection'!$J$69)","v":21383.962357698609},{"$f":"G$4*('COM-Appliance class'!$U60/'Volume per connection'!$J$69)","v":18827.233071700499},{"$f":"H$4*('COM-Appliance class'!$U60/'Volume per connection'!$J$69)","v":19326.582138958558},{"$f":"I$4*('COM-Appliance class'!$U60/'Volume per connection'!$J$69)","v":22412.946220187041},{"$f":"J$4*('COM-Appliance class'!$U60/'Volume per connection'!$J$69)","v":24664.013084956121},{"$f":"K$4*('COM-Appliance class'!$U60/'Volume per connection'!$J$69)","v":29526.118116261998},{"$f":"L$4*('COM-Appliance class'!$U60/'Volume per connection'!$J$69)","v":29275.284154215769},{"$f":"M$4*('COM-Appliance class'!$U60/'Volume per connection'!$J$69)","v":23787.178475695677},{"$f":"N$4*('COM-Appliance class'!$U60/'Volume per connection'!$J$69)","v":23676.114741833859},{"$f":"O$4*('COM-Appliance class'!$U60/'Volume per connection'!$J$69)","v":26943.426254080267},{"$f":"P$4*('COM-Appliance class'!$U60/'Volume per connection'!$J$69)","v":30105.748758173133},{"$f":"Q$4*('COM-Appliance class'!$U60/'Volume per connection'!$J$69)","v":20963.399675583609},{"$f":"R$4*('COM-Appliance class'!$U60/'Volume per connection'!$J$69)","v":22268.010344123908},{"$f":"S$4*('COM-Appliance class'!$U60/'Volume per connection'!$J$69)","v":24203.788433514681},{"$f":"T$4*('COM-Appliance class'!$U60/'Volume per connection'!$J$69)","v":27037.51574224433},{"$f":"U$4*('COM-Appliance class'!$U60/'Volume per connection'!$J$69)","v":29146.196743198689},{"$f":"V$4*('COM-Appliance class'!$U60/'Volume per connection'!$J$69)","v":29919.95812350815},{"$f":"W$4*('COM-Appliance class'!$U60/'Volume per connection'!$J$69)","v":31180.581012590261},{"$f":"X$4*('COM-Appliance class'!$U60/'Volume per connection'!$J$69)","v":34303.830728323548},{"$f":"Y$4*('COM-Appliance class'!$U60/'Volume per connection'!$J$69)","v":36898.815869488586},{"$f":"Z$4*('COM-Appliance class'!$U60/'Volume per connection'!$J$69)","v":38363.883449458051},{"$f":"AA$4*('COM-Appliance class'!$U60/'Volume per connection'!$J$69)","v":40028.674418741975},{"$f":"AB$4*('COM-Appliance class'!$U60/'Volume per connection'!$J$69)","v":41073.19573563186},{"$f":"AC$4*('COM-Appliance class'!$U60/'Volume per connection'!$J$69)","v":41829.259005778629},{"$f":"AD$4*('COM-Appliance class'!$U60/'Volume per connection'!$J$69)","v":42370.602175079955},{"$f":"AE$4*('COM-Appliance class'!$U60/'Volume per connection'!$J$69)","v":42824.269739191579},{"$f":"AF$4*('COM-Appliance class'!$U60/'Volume per connection'!$J$69)","v":43668.483988918648},{"$f":"AG$4*('COM-Appliance class'!$U60/'Volume per connection'!$J$69)","v":43709.042704034451},{"$f":"AH$4*('COM-Appliance class'!$U60/'Volume per connection'!$J$69)","v":44594.643151440177},{"$f":"AI$4*('COM-Appliance class'!$U60/'Volume per connection'!$J$69)","v":44651.634559474434},{"$f":"AJ$4*('COM-Appliance class'!$U60/'Volume per connection'!$J$69)","v":44708.545602507489},{"$f":"AK$4*('COM-Appliance class'!$U60/'Volume per connection'!$J$69)","v":44765.376774380849},{"$f":"AL$4*('COM-Appliance class'!$U60/'Volume per connection'!$J$69)","v":44822.128565870567},{"$f":"AM$4*('COM-Appliance class'!$U60/'Volume per connection'!$J$69)","v":44878.801464706637},{"$f":"AN$4*('COM-Appliance class'!$U60/'Volume per connection'!$J$69)","v":44935.395955591935},{"$f":"AO$4*('COM-Appliance class'!$U60/'Volume per connection'!$J$69)","v":44991.912520221609},{"$f":"AP$4*('COM-Appliance class'!$U60/'Volume per connection'!$J$69)","v":45048.351637301683},{"$f":"AQ$4*('COM-Appliance class'!$U60/'Volume per connection'!$J$69)","v":45104.7137825682},{"$f":"AR$4*('COM-Appliance class'!$U60/'Volume per connection'!$J$69)","v":45160.999428805655},{"$f":"AS$4*('COM-Appliance class'!$U60/'Volume per connection'!$J$69)","v":45217.209045865799},{"$f":"AT$4*('COM-Appliance class'!$U60/'Volume per connection'!$J$69)","v":45273.343100685859},{"$f":"AU$4*('COM-Appliance class'!$U60/'Volume per connection'!$J$69)","v":45329.402057307176},{"$f":"AV$4*('COM-Appliance class'!$U60/'Volume per connection'!$J$69)","v":45385.38637689317},{"$f":"AW$4*('COM-Appliance class'!$U60/'Volume per connection'!$J$69)","v":45441.296517747658},{"$f":"AX$4*('COM-Appliance class'!$U60/'Volume per connection'!$J$69)","v":45497.132935332687},{"$f":"AY$4*('COM-Appliance class'!$U60/'Volume per connection'!$J$69)","v":45552.896082286577},{"$f":"AZ$4*('COM-Appliance class'!$U60/'Volume per connection'!$J$69)","v":45608.586408441537},{"$f":"BA$4*('COM-Appliance class'!$U60/'Volume per connection'!$J$69)","v":45664.204360841541},{"$f":"BB$4*('COM-Appliance class'!$U60/'Volume per connection'!$J$69)","v":45719.750383759529},{"$f":"BC$4*('COM-Appliance class'!$U60/'Volume per connection'!$J$69)","v":45775.224918715299},{"$f":"BD$4*('COM-Appliance class'!$U60/'Volume per connection'!$J$69)","v":45830.62840449236},{"$f":"BE$4*('COM-Appliance class'!$U60/'Volume per connection'!$J$69)","v":45885.961277155584},{"$f":"BF$4*('COM-Appliance class'!$U60/'Volume per connection'!$J$69)","v":45941.223970067949},{"$f":"BG$4*('COM-Appliance class'!$U60/'Volume per connection'!$J$69)","v":45996.416913907749},{"$f":"BH$4*('COM-Appliance class'!$U60/'Volume per connection'!$J$69)","v":46051.540536685439},{"$f":"BI$4*('COM-Appliance class'!$U60/'Volume per connection'!$J$69)","v":46106.595263760428},{"$f":"BJ$4*('COM-Appliance class'!$U60/'Volume per connection'!$J$69)","v":46161.581517857638},{"$f":"BK$4*('COM-Appliance class'!$U60/'Volume per connection'!$J$69)","v":46216.499719084291},{"$f":"BL$4*('COM-Appliance class'!$U60/'Volume per connection'!$J$69)","v":46271.350284946137},{"$f":"BM$4*('COM-Appliance class'!$U60/'Volume per connection'!$J$69)","v":46326.133630364078},{"$f":"BN$4*('COM-Appliance class'!$U60/'Volume per connection'!$J$69)","v":46380.850167690092},{"$f":"BO$4*('COM-Appliance class'!$U60/'Volume per connection'!$J$69)","v":46435.500306723741},{"$f":"BP$4*('COM-Appliance class'!$U60/'Volume per connection'!$J$69)","v":46490.084454727927},{"$f":"BQ$4*('COM-Appliance class'!$U60/'Volume per connection'!$J$69)","v":46544.603016445071},{"$f":"BR$4*('COM-Appliance class'!$U60/'Volume per connection'!$J$69)","v":46599.056394112762},{"$f":"BS$4*('COM-Appliance class'!$U60/'Volume per connection'!$J$69)","v":46653.444987479699},{"$f":"BT$4*('COM-Appliance class'!$U60/'Volume per connection'!$J$69)","v":46707.769193821121},{"$f":"BU$4*('COM-Appliance class'!$U60/'Volume per connection'!$J$69)","v":46762.029407954615},{"$f":"BV$4*('COM-Appliance class'!$U60/'Volume per connection'!$J$69)","v":46816.226022255265},{"$f":"BW$4*('COM-Appliance class'!$U60/'Volume per connection'!$J$69)","v":46870.359426671363},{"$f":"BX$4*('COM-Appliance class'!$U60/'Volume per connection'!$J$69)","v":46924.430008739204},{"$f":"BY$4*('COM-Appliance class'!$U60/'Volume per connection'!$J$69)","v":46978.438153598778},{"$f":"BZ$4*('COM-Appliance class'!$U60/'Volume per connection'!$J$69)","v":47032.384244008295},{"$f":"CA$4*('COM-Appliance class'!$U60/'Volume per connection'!$J$69)","v":47086.268660359659},{"$f":"CB$4*('COM-Appliance class'!$U60/'Volume per connection'!$J$69)","v":47140.09178069287},{"$f":"CC$4*('COM-Appliance class'!$U60/'Volume per connection'!$J$69)","v":47193.853980711217},{"$f":"CD$4*('COM-Appliance class'!$U60/'Volume per connection'!$J$69)","v":47247.555633795586}]
["Port Phillip (C)",null,{"$f":"C$4*('COM-Appliance class'!$U61/'Volume per connection'!$J$69)","v":17392.333817220475},{"$f":"D$4*('COM-Appliance class'!$U61/'Volume per connection'!$J$69)","v":21377.42196769267},{"$f":"E$4*('COM-Appliance class'!$U61/'Volume per connection'!$J$69)","v":18996.434385582121},{"$f":"F$4*('COM-Appliance class'!$U61/'Volume per connection'!$J$69)","v":21131.403558511229},{"$f":"G$4*('COM-Appliance class'!$U61/'Volume per connection'!$J$69)","v":18604.870943621947},{"$f":"H$4*('COM-Appliance class'!$U61/'Volume per connection'!$J$69)","v":19098.322366716005},{"$f":"I$4*('COM-Appliance class'!$U61/'Volume per connection'!$J$69)","v":22148.234438107804},{"$f":"J$4*('COM-Appliance class'!$U61/'Volume per connection'!$J$69)","v":24372.714707991119},{"$f":"K$4*('COM-Appliance class'!$U61/'Volume per connection'!$J$69)","v":29177.39504934998},{"$f":"L$4*('COM-Appliance class'!$U61/'Volume per connection'!$J$69)","v":28929.523603005477},{"$f":"M$4*('COM-Appliance class'!$U61/'Volume per connection'!$J$69)","v":23506.236097880712},{"$f":"N$4*('COM-Appliance class'!$U61/'Volume per connection'!$J$69)","v":23396.48410048701},{"$f":"O$4*('COM-Appliance class'!$U61/'Volume per connection'!$J$69)","v":26625.206493546768},{"$f":"P$4*('COM-Appliance class'!$U61/'Volume per connection'!$J$69)","v":29750.179868375508},{"$f":"Q$4*('COM-Appliance class'!$U61/'Volume per connection'!$J$69)","v":20715.808001019876},{"$f":"R$4*('COM-Appliance class'!$U61/'Volume per connection'!$J$69)","v":22005.010351010875},{"$f":"S$4*('COM-Appliance class'!$U61/'Volume per connection'!$J$69)","v":23917.925615375501},{"$f":"T$4*('COM-Appliance class'!$U61/'Volume per connection'!$J$69)","v":26718.18472235911},{"$f":"U$4*('COM-Appliance class'!$U61/'Volume per connection'!$J$69)","v":28801.960800055476},{"$f":"V$4*('COM-Appliance class'!$U61/'Volume per connection'!$J$69)","v":29566.583544512534},{"$f":"W$4*('COM-Appliance class'!$U61/'Volume per connection'!$J$69)","v":30812.317639938494},{"$f":"X$4*('COM-Appliance class'!$U61/'Volume per connection'!$J$69)","v":33898.679701991263},{"$f":"Y$4*('COM-Appliance class'!$U61/'Volume per connection'!$J$69)","v":36463.016344987496},{"$f":"Z$4*('COM-Appliance class'!$U61/'Volume per connection'!$J$69)","v":37910.780503704344},{"$f":"AA$4*('COM-Appliance class'!$U61/'Volume per connection'!$J$69)","v":39555.909185846751},{"$f":"AB$4*('COM-Appliance class'!$U61/'Volume per connection'!$J$69)","v":40588.094012187947},{"$f":"AC$4*('COM-Appliance class'!$U61/'Volume per connection'!$J$69)","v":41335.227672918852},{"$f":"AD$4*('COM-Appliance class'!$U61/'Volume per connection'!$J$69)","v":41870.177219817546},{"$f":"AE$4*('COM-Appliance class'!$U61/'Volume per connection'!$J$69)","v":42318.486668660087},{"$f":"AF$4*('COM-Appliance class'!$U61/'Volume per connection'!$J$69)","v":43152.73018735044},{"$f":"AG$4*('COM-Appliance class'!$U61/'Volume per connection'!$J$69)","v":43192.809877100648},{"$f":"AH$4*('COM-Appliance class'!$U61/'Volume per connection'!$J$69)","v":44067.950794985358},{"$f":"AI$4*('COM-Appliance class'!$U61/'Volume per connection'!$J$69)","v":44124.269096635668},{"$f":"AJ$4*('COM-Appliance class'!$U61/'Volume per connection'!$J$69)","v":44180.507982448813},{"$f":"AK$4*('COM-Appliance class'!$U61/'Volume per connection'!$J$69)","v":44236.667940433712},{"$f":"AL$4*('COM-Appliance class'!$U61/'Volume per connection'!$J$69)","v":44292.74945557004},{"$f":"AM$4*('COM-Appliance class'!$U61/'Volume per connection'!$J$69)","v":44348.753009827349},{"$f":"AN$4*('COM-Appliance class'!$U61/'Volume per connection'!$J$69)","v":44404.679082183866},{"$f":"AO$4*('COM-Appliance class'!$U61/'Volume per connection'!$J$69)","v":44460.528148645601},{"$f":"AP$4*('COM-Appliance class'!$U61/'Volume per connection'!$J$69)","v":44516.300682264737},{"$f":"AQ$4*('COM-Appliance class'!$U61/'Volume per connection'!$J$69)","v":44571.997153158562},{"$f":"AR$4*('COM-Appliance class'!$U61/'Volume per connection'!$J$69)","v":44627.618028527664},{"$f":"AS$4*('COM-Appliance class'!$U61/'Volume per connection'!$J$69)","v":44683.163772674547},{"$f":"AT$4*('COM-Appliance class'!$U61/'Volume per connection'!$J$69)","v":44738.634847021589},{"$f":"AU$4*('COM-Appliance class'!$U61/'Volume per connection'!$J$69)","v":44794.031710129508},{"$f":"AV$4*('COM-Appliance class'!$U61/'Volume per connection'!$J$69)","v":44849.354817715051},{"$f":"AW$4*('COM-Appliance class'!$U61/'Volume per connection'!$J$69)","v":44904.604622669191},{"$f":"AX$4*('COM-Appliance class'!$U61/'Volume per connection'!$J$69)","v":44959.781575074645},{"$f":"AY$4*('COM-Appliance class'!$U61/'Volume per connection'!$J$69)","v":45014.886122223783},{"$f":"AZ$4*('COM-Appliance class'!$U61/'Volume per connection'!$J$69)","v":45069.918708635996},{"$f":"BA$4*('COM-Appliance class'!$U61/'Volume per connection'!$J$69)","v":45124.879776075373},{"$f":"BB$4*('COM-Appliance class'!$U61/'Volume per connection'!$J$69)","v":45179.769763567696},{"$f":"BC$4*('COM-Appliance class'!$U61/'Volume per connection'!$J$69)","v":45234.589107418113},{"$f":"BD$4*('COM-Appliance class'!$U61/'Volume per connection'!$J$69)","v":45289.338241227815},{"$f":"BE$4*('COM-Appliance class'!$U61/'Volume per connection'!$J$69)","v":45344.017595911457},{"$f":"BF$4*('COM-Appliance class'!$U61/'Volume per connection'!$J$69)","v":45398.62759971372},{"$f":"BG$4*('COM-Appliance class'!$U61/'Volume per connection'!$J$69)","v":45453.168678226291},{"$f":"BH$4*('COM-Appliance class'!$U61/'Volume per connection'!$J$69)","v":45507.641254404531},{"$f":"BI$4*('COM-Appliance class'!$U61/'Volume per connection'!$J$69)","v":45562.045748584096},{"$f":"BJ$4*('COM-Appliance class'!$U61/'Volume per connection'!$J$69)","v":45616.382578497214},{"$f":"BK$4*('COM-Appliance class'!$U61/'Volume per connection'!$J$69)","v":45670.652159289391},{"$f":"BL$4*('COM-Appliance class'!$U61/'Volume per connection'!$J$69)","v":45724.854903535343},{"$f":"BM$4*('COM-Appliance class'!$U61/'Volume per connection'!$J$69)","v":45778.991221255485},{"$f":"BN$4*('COM-Appliance class'!$U61/'Volume per connection'!$J$69)","v":45833.061519931631},{"$f":"BO$4*('COM-Appliance class'!$U61/'Volume per connection'!$J$69)","v":45887.066204523355},{"$f":"BP$4*('COM-Appliance class'!$U61/'Volume per connection'!$J$69)","v":45941.005677483503},{"$f":"BQ$4*('COM-Appliance class'!$U61/'Volume per connection'!$J$69)","v":45994.88033877423},{"$f":"BR$4*('COM-Appliance class'!$U61/'Volume per connection'!$J$69)","v":46048.690585882418},{"$f":"BS$4*('COM-Appliance class'!$U61/'Volume per connection'!$J$69)","v":46102.436813835477},{"$f":"BT$4*('COM-Appliance class'!$U61/'Volume per connection'!$J$69)","v":46156.119415216563},{"$f":"BU$4*('COM-Appliance class'!$U61/'Volume per connection'!$J$69)","v":46209.738780180196},{"$f":"BV$4*('COM-Appliance class'!$U61/'Volume per connection'!$J$69)","v":46263.295296467259},{"$f":"BW$4*('COM-Appliance class'!$U61/'Volume per connection'!$J$69)","v":46316.789349420498},{"$f":"BX$4*('COM-Appliance class'!$U61/'Volume per connection'!$J$69)","v":46370.221321999132},{"$f":"BY$4*('COM-Appliance class'!$U61/'Volume per connection'!$J$69)","v":46423.591594794401},{"$f":"BZ$4*('COM-Appliance class'!$U61/'Volume per connection'!$J$69)","v":46476.900546043886},{"$f":"CA$4*('COM-Appliance class'!$U61/'Volume per connection'!$J$69)","v":46530.148551646809},{"$f":"CB$4*('COM-Appliance class'!$U61/'Volume per connection'!$J$69)","v":46583.335985178281},{"$f":"CC$4*('COM-Appliance class'!$U61/'Volume per connection'!$J$69)","v":46636.46321790426},{"$f":"CD$4*('COM-Appliance class'!$U61/'Volume per connection'!$J$69)","v":46689.530618795776}]
["South Gippsland (S)",null,{"$f":"C$4*('COM-Appliance class'!$U62/'Volume per connection'!$J$69)","v":20464.26778980091},{"$f":"D$4*('COM-Appliance class'!$U62/'Volume per connection'!$J$69)","v":25153.225116302965},{"$f":"E$4*('COM-Appliance class'!$U62/'Volume per connection'!$J$69)","v":22351.693821160898},{"$f":"F$4*('COM-Appliance class'!$U62/'Volume per connection'!$J$69)","v":24863.753521540624},{"$f":"G$4*('COM-Appliance class'!$U62/'Volume per connection'!$J$69)","v":21890.970193315432},{"$f":"H$4*('COM-Appliance class'!$U62/'Volume per connection'!$J$69)","v":22471.577843190276},{"$f":"I$4*('COM-Appliance class'!$U62/'Volume per connection'!$J$69)","v":26060.182915990266},{"$f":"J$4*('COM-Appliance class'!$U62/'Volume per connection'!$J$69)","v":28677.563677791666},{"$f":"K$4*('COM-Appliance class'!$U62/'Volume per connection'!$J$69)","v":34330.874279075491},{"$f":"L$4*('COM-Appliance class'!$U62/'Volume per connection'!$J$69)","v":34039.222353074809},{"$f":"M$4*('COM-Appliance class'!$U62/'Volume per connection'!$J$69)","v":27658.042634912574},{"$f":"N$4*('COM-Appliance class'!$U62/'Volume per connection'!$J$69)","v":27528.905608868004},{"$f":"O$4*('COM-Appliance class'!$U62/'Volume per connection'!$J$69)","v":31327.903510177901},{"$f":"P$4*('COM-Appliance class'!$U62/'Volume per connection'!$J$69)","v":35004.827645291662},{"$f":"Q$4*('COM-Appliance class'!$U62/'Volume per connection'!$J$69)","v":24374.753087778601},{"$f":"R$4*('COM-Appliance class'!$U62/'Volume per connection'!$J$69)","v":25891.661767356418},{"$f":"S$4*('COM-Appliance class'!$U62/'Volume per connection'!$J$69)","v":28142.447121441324},{"$f":"T$4*('COM-Appliance class'!$U62/'Volume per connection'!$J$69)","v":31437.304088216093},{"$f":"U$4*('COM-Appliance class'!$U62/'Volume per connection'!$J$69)","v":33889.128674617365},{"$f":"V$4*('COM-Appliance class'!$U62/'Volume per connection'!$J$69)","v":34788.803483368385},{"$f":"W$4*('COM-Appliance class'!$U62/'Volume per connection'!$J$69)","v":36254.566295397737},{"$f":"X$4*('COM-Appliance class'!$U62/'Volume per connection'!$J$69)","v":39886.059365729336},{"$f":"Y$4*('COM-Appliance class'!$U62/'Volume per connection'!$J$69)","v":42903.323886809027},{"$f":"Z$4*('COM-Appliance class'!$U62/'Volume per connection'!$J$69)","v":44606.800473207266},{"$f":"AA$4*('COM-Appliance class'!$U62/'Volume per connection'!$J$69)","v":46542.501239639823},{"$f":"AB$4*('COM-Appliance class'!$U62/'Volume per connection'!$J$69)","v":47756.996483164949},{"$f":"AC$4*('COM-Appliance class'!$U62/'Volume per connection'!$J$69)","v":48636.093185692182},{"$f":"AD$4*('COM-Appliance class'!$U62/'Volume per connection'!$J$69)","v":49265.528596535572},{"$f":"AE$4*('COM-Appliance class'!$U62/'Volume per connection'!$J$69)","v":49793.021037183651},{"$f":"AF$4*('COM-Appliance class'!$U62/'Volume per connection'!$J$69)","v":50774.613441503869},{"$f":"AG$4*('COM-Appliance class'!$U62/'Volume per connection'!$J$69)","v":50821.77223644191},{"$f":"AH$4*('COM-Appliance class'!$U62/'Volume per connection'!$J$69)","v":51851.485573686667},{"$f":"AI$4*('COM-Appliance class'!$U62/'Volume per connection'!$J$69)","v":51917.751137500629},{"$f":"AJ$4*('COM-Appliance class'!$U62/'Volume per connection'!$J$69)","v":51983.923258595772},{"$f":"AK$4*('COM-Appliance class'!$U62/'Volume per connection'!$J$69)","v":52050.002511175953},{"$f":"AL$4*('COM-Appliance class'!$U62/'Volume per connection'!$J$69)","v":52115.989465880739},{"$f":"AM$4*('COM-Appliance class'!$U62/'Volume per connection'!$J$69)","v":52181.884689807936},{"$f":"AN$4*('COM-Appliance class'!$U62/'Volume per connection'!$J$69)","v":52247.688746535641},{"$f":"AO$4*('COM-Appliance class'!$U62/'Volume per connection'!$J$69)","v":52313.40219614478},{"$f":"AP$4*('COM-Appliance class'!$U62/'Volume per connection'!$J$69)","v":52379.025595240746},{"$f":"AQ$4*('COM-Appliance class'!$U62/'Volume per connection'!$J$69)","v":52444.559496975635},{"$f":"AR$4*('COM-Appliance class'!$U62/'Volume per connection'!$J$69)","v":52510.00445106969},{"$f":"AS$4*('COM-Appliance class'!$U62/'Volume per connection'!$J$69)","v":52575.36100383319},{"$f":"AT$4*('COM-Appliance class'!$U62/'Volume per connection'!$J$69)","v":52640.629698187593},{"$f":"AU$4*('COM-Appliance class'!$U62/'Volume per connection'!$J$69)","v":52705.811073687226},{"$f":"AV$4*('COM-Appliance class'!$U62/'Volume per connection'!$J$69)","v":52770.90566654018},{"$f":"AW$4*('COM-Appliance class'!$U62/'Volume per connection'!$J$69)","v":52835.914009629603},{"$f":"AX$4*('COM-Appliance class'!$U62/'Volume per connection'!$J$69)","v":52900.83663253444},{"$f":"AY$4*('COM-Appliance class'!$U62/'Volume per connection'!$J$69)","v":52965.674061550388},{"$f":"AZ$4*('COM-Appliance class'!$U62/'Volume per connection'!$J$69)","v":53030.42681971041},{"$f":"BA$4*('COM-Appliance class'!$U62/'Volume per connection'!$J$69)","v":53095.095426805507},{"$f":"BB$4*('COM-Appliance class'!$U62/'Volume per connection'!$J$69)","v":53159.680399404737},{"$f":"BC$4*('COM-Appliance class'!$U62/'Volume per connection'!$J$69)","v":53224.182250875943},{"$f":"BD$4*('COM-Appliance class'!$U62/'Volume per connection'!$J$69)","v":53288.601491405483},{"$f":"BE$4*('COM-Appliance class'!$U62/'Volume per connection'!$J$69)","v":53352.938628018601},{"$f":"BF$4*('COM-Appliance class'!$U62/'Volume per connection'!$J$69)","v":53417.194164599037},{"$f":"BG$4*('COM-Appliance class'!$U62/'Volume per connection'!$J$69)","v":53481.368601908915},{"$f":"BH$4*('COM-Appliance class'!$U62/'Volume per connection'!$J$69)","v":53545.462437608425},{"$f":"BI$4*('COM-Appliance class'!$U62/'Volume per connection'!$J$69)","v":53609.476166275294},{"$f":"BJ$4*('COM-Appliance class'!$U62/'Volume per connection'!$J$69)","v":53673.410279424046},{"$f":"BK$4*('COM-Appliance class'!$U62/'Volume per connection'!$J$69)","v":53737.265265525552},{"$f":"BL$4*('COM-Appliance class'!$U62/'Volume per connection'!$J$69)","v":53801.041610025844},{"$f":"BM$4*('COM-Appliance class'!$U62/'Volume per connection'!$J$69)","v":53864.739795365516},{"$f":"BN$4*('COM-Appliance class'!$U62/'Volume per connection'!$J$69)","v":53928.360300998153},{"$f":"BO$4*('COM-Appliance class'!$U62/'Volume per connection'!$J$69)","v":53991.903603409621},{"$f":"BP$4*('COM-Appliance class'!$U62/'Volume per connection'!$J$69)","v":54055.37017613629},{"$f":"BQ$4*('COM-Appliance class'!$U62/'Volume per connection'!$J$69)","v":54118.760489783941},{"$f":"BR$4*('COM-Appliance class'!$U62/'Volume per connection'!$J$69)","v":54182.075012045876},{"$f":"BS$4*('COM-Appliance class'!$U62/'Volume per connection'!$J$69)","v":54245.314207721502},{"$f":"BT$4*('COM-Appliance class'!$U62/'Volume per connection'!$J$69)","v":54308.478538734278},{"$f":"BU$4*('COM-Appliance class'!$U62/'Volume per connection'!$J$69)","v":54371.56846415007},{"$f":"BV$4*('COM-Appliance class'!$U62/'Volume per connection'!$J$69)","v":54434.584440194762},{"$f":"BW$4*('COM-Appliance class'!$U62/'Volume per connection'!$J$69)","v":54497.526920272561},{"$f":"BX$4*('COM-Appliance class'!$U62/'Volume per connection'!$J$69)","v":54560.396354983146},{"$f":"BY$4*('COM-Appliance class'!$U62/'Volume per connection'!$J$69)","v":54623.193192139966},{"$f":"BZ$4*('COM-Appliance class'!$U62/'Volume per connection'!$J$69)","v":54685.917876787113},{"$f":"CA$4*('COM-Appliance class'!$U62/'Volume per connection'!$J$69)","v":54748.570851217271},{"$f":"CB$4*('COM-Appliance class'!$U62/'Volume per connection'!$J$69)","v":54811.152554988526},{"$f":"CC$4*('COM-Appliance class'!$U62/'Volume per connection'!$J$69)","v":54873.663424942002},{"$f":"CD$4*('COM-Appliance class'!$U62/'Volume per connection'!$J$69)","v":54936.103895218468}]
["Stonnington (C)",null,{"$f":"C$4*('COM-Appliance class'!$U63/'Volume per connection'!$J$69)","v":17908.109386046435},{"$f":"D$4*('COM-Appliance class'!$U63/'Volume per connection'!$J$69)","v":22011.376679653305},{"$f":"E$4*('COM-Appliance class'!$U63/'Volume per connection'!$J$69)","v":19559.78010179575},{"$f":"F$4*('COM-Appliance class'!$U63/'Volume per connection'!$J$69)","v":21758.062510956741},{"$f":"G$4*('COM-Appliance class'!$U63/'Volume per connection'!$J$69)","v":19156.604712920867},{"$f":"H$4*('COM-Appliance class'!$U63/'Volume per connection'!$J$69)","v":19664.689605629126},{"$f":"I$4*('COM-Appliance class'!$U63/'Volume per connection'!$J$69)","v":22805.047855781235},{"$f":"J$4*('COM-Appliance class'!$U63/'Volume per connection'!$J$69)","v":25095.495843890221},{"$f":"K$4*('COM-Appliance class'!$U63/'Volume per connection'!$J$69)","v":30042.660613281252},{"$f":"L$4*('COM-Appliance class'!$U63/'Volume per connection'!$J$69)","v":29787.438454974937},{"$f":"M$4*('COM-Appliance class'!$U63/'Volume per connection'!$J$69)","v":24203.321516189411},{"$f":"N$4*('COM-Appliance class'!$U63/'Volume per connection'!$J$69)","v":24090.314786022042},{"$f":"O$4*('COM-Appliance class'!$U63/'Volume per connection'!$J$69)","v":27414.786038686409},{"$f":"P$4*('COM-Appliance class'!$U63/'Volume per connection'!$J$69)","v":30632.431560732814},{"$f":"Q$4*('COM-Appliance class'!$U63/'Volume per connection'!$J$69)","v":21330.142325999092},{"$f":"R$4*('COM-Appliance class'!$U63/'Volume per connection'!$J$69)","v":22657.576409717516},{"$f":"S$4*('COM-Appliance class'!$U63/'Volume per connection'!$J$69)","v":24627.219826207223},{"$f":"T$4*('COM-Appliance class'!$U63/'Volume per connection'!$J$69)","v":27510.521568465832},{"$f":"U$4*('COM-Appliance class'!$U63/'Volume per connection'!$J$69)","v":29656.09273376083},{"$f":"V$4*('COM-Appliance class'!$U63/'Volume per connection'!$J$69)","v":30443.390625504282},{"$f":"W$4*('COM-Appliance class'!$U63/'Volume per connection'!$J$69)","v":31726.067388799118},{"$f":"X$4*('COM-Appliance class'!$U63/'Volume per connection'!$J$69)","v":34903.956566470035},{"$f":"Y$4*('COM-Appliance class'!$U63/'Volume per connection'!$J$69)","v":37544.339483911222},{"$f":"Z$4*('COM-Appliance class'!$U63/'Volume per connection'!$J$69)","v":39035.037580668555},{"$f":"AA$4*('COM-Appliance class'!$U63/'Volume per connection'!$J$69)","v":40728.953112853131},{"$f":"AB$4*('COM-Appliance class'!$U63/'Volume per connection'!$J$69)","v":41791.747730929841},{"$f":"AC$4*('COM-Appliance class'!$U63/'Volume per connection'!$J$69)","v":42561.03789422688},{"$f":"AD$4*('COM-Appliance class'!$U63/'Volume per connection'!$J$69)","v":43111.85155170122},{"$f":"AE$4*('COM-Appliance class'!$U63/'Volume per connection'!$J$69)","v":43573.455769573426},{"$f":"AF$4*('COM-Appliance class'!$U63/'Volume per connection'!$J$69)","v":44432.439063265447},{"$f":"AG$4*('COM-Appliance class'!$U63/'Volume per connection'!$J$69)","v":44473.707329833262},{"$f":"AH$4*('COM-Appliance class'!$U63/'Volume per connection'!$J$69)","v":45374.800848988656},{"$f":"AI$4*('COM-Appliance class'!$U63/'Volume per connection'!$J$69)","v":45432.789289009939},{"$f":"AJ$4*('COM-Appliance class'!$U63/'Volume per connection'!$J$69)","v":45490.695958090429},{"$f":"AK$4*('COM-Appliance class'!$U63/'Volume per connection'!$J$69)","v":45548.521358711114},{"$f":"AL$4*('COM-Appliance class'!$U63/'Volume per connection'!$J$69)","v":45606.265990233886},{"$f":"AM$4*('COM-Appliance class'!$U63/'Volume per connection'!$J$69)","v":45663.930348921291},{"$f":"AN$4*('COM-Appliance class'!$U63/'Volume per connection'!$J$69)","v":45721.514927955817},{"$f":"AO$4*('COM-Appliance class'!$U63/'Volume per connection'!$J$69)","v":45779.020217459569},{"$f":"AP$4*('COM-Appliance class'!$U63/'Volume per connection'!$J$69)","v":45836.446704513284},{"$f":"AQ$4*('COM-Appliance class'!$U63/'Volume per connection'!$J$69)","v":45893.794873175721},{"$f":"AR$4*('COM-Appliance class'!$U63/'Volume per connection'!$J$69)","v":45951.065204502469},{"$f":"AS$4*('COM-Appliance class'!$U63/'Volume per connection'!$J$69)","v":46008.258176565068},{"$f":"AT$4*('COM-Appliance class'!$U63/'Volume per connection'!$J$69)","v":46065.374264469545},{"$f":"AU$4*('COM-Appliance class'!$U63/'Volume per connection'!$J$69)","v":46122.41394037538},{"$f":"AV$4*('COM-Appliance class'!$U63/'Volume per connection'!$J$69)","v":46179.377673513773},{"$f":"AW$4*('COM-Appliance class'!$U63/'Volume per connection'!$J$69)","v":46236.265930206311},{"$f":"AX$4*('COM-Appliance class'!$U63/'Volume per connection'!$J$69)","v":46293.079173883089},{"$f":"AY$4*('COM-Appliance class'!$U63/'Volume per connection'!$J$69)","v":46349.817865101075},{"$f":"AZ$4*('COM-Appliance class'!$U63/'Volume per connection'!$J$69)","v":46406.482461562024},{"$f":"BA$4*('COM-Appliance class'!$U63/'Volume per connection'!$J$69)","v":46463.073418130698},{"$f":"BB$4*('COM-Appliance class'!$U63/'Volume per connection'!$J$69)","v":46519.59118685234},{"$f":"BC$4*('COM-Appliance class'!$U63/'Volume per connection'!$J$69)","v":46576.036216970868},{"$f":"BD$4*('COM-Appliance class'!$U63/'Volume per connection'!$J$69)","v":46632.408954946077},{"$f":"BE$4*('COM-Appliance class'!$U63/'Volume per connection'!$J$69)","v":46688.70984447153},{"$f":"BF$4*('COM-Appliance class'!$U63/'Volume per connection'!$J$69)","v":46744.939326491643},{"$f":"BG$4*('COM-Appliance class'!$U63/'Volume per connection'!$J$69)","v":46801.09783921919},{"$f":"BH$4*('COM-Appliance class'!$U63/'Volume per connection'!$J$69)","v":46857.185818152408},{"$f":"BI$4*('COM-Appliance class'!$U63/'Volume per connection'!$J$69)","v":46913.203696092132},{"$f":"BJ$4*('COM-Appliance class'!$U63/'Volume per connection'!$J$69)","v":46969.151903158614},{"$f":"BK$4*('COM-Appliance class'!$U63/'Volume per connection'!$J$69)","v":47025.030866808622},{"$f":"BL$4*('COM-Appliance class'!$U63/'Volume per connection'!$J$69)","v":47080.84101185191},{"$f":"BM$4*('COM-Appliance class'!$U63/'Volume per connection'!$J$69)","v":47136.582760468191},{"$f":"BN$4*('COM-Appliance class'!$U63/'Volume per connection'!$J$69)","v":47192.256532223306},{"$f":"BO$4*('COM-Appliance class'!$U63/'Volume per connection'!$J$69)","v":47247.862744086029},{"$f":"BP$4*('COM-Appliance class'!$U63/'Volume per connection'!$J$69)","v":47303.401810444084},{"$f":"BQ$4*('COM-Appliance class'!$U63/'Volume per connection'!$J$69)","v":47358.874143120636},{"$f":"BR$4*('COM-Appliance class'!$U63/'Volume per connection'!$J$69)","v":47414.28015139018},{"$f":"BS$4*('COM-Appliance class'!$U63/'Volume per connection'!$J$69)","v":47469.620241994802},{"$f":"BT$4*('COM-Appliance class'!$U63/'Volume per connection'!$J$69)","v":47524.894819159832},{"$f":"BU$4*('COM-Appliance class'!$U63/'Volume per connection'!$J$69)","v":47580.104284609974},{"$f":"BV$4*('COM-Appliance class'!$U63/'Volume per connection'!$J$69)","v":47635.249037584683},{"$f":"BW$4*('COM-Appliance class'!$U63/'Volume per connection'!$J$69)","v":47690.329474854174},{"$f":"BX$4*('COM-Appliance class'!$U63/'Volume per connection'!$J$69)","v":47745.345990734466},{"$f":"BY$4*('COM-Appliance class'!$U63/'Volume per connection'!$J$69)","v":47800.298977103354},{"$f":"BZ$4*('COM-Appliance class'!$U63/'Volume per connection'!$J$69)","v":47855.188823415177},{"$f":"CA$4*('COM-Appliance class'!$U63/'Volume per connection'!$J$69)","v":47910.015916716591},{"$f":"CB$4*('COM-Appliance class'!$U63/'Volume per connection'!$J$69)","v":47964.780641661178},{"$f":"CC$4*('COM-Appliance class'!$U63/'Volume per connection'!$J$69)","v":48019.483380524944},{"$f":"CD$4*('COM-Appliance class'!$U63/'Volume per connection'!$J$69)","v":48074.124513220857}]
["Whitehorse (C)",null,{"$f":"C$4*('COM-Appliance class'!$U64/'Volume per connection'!$J$69)","v":17692.42566621369},{"$f":"D$4*('COM-Appliance class'!$U64/'Volume per connection'!$J$69)","v":21746.273563597602},{"$f":"E$4*('COM-Appliance class'!$U64/'Volume per connection'!$J$69)","v":19324.203802783813},{"$f":"F$4*('COM-Appliance class'!$U64/'Volume per connection'!$J$69)","v":21496.010288829202},{"$f":"G$4*('COM-Appliance class'!$U64/'Volume per connection'!$J$69)","v":18925.884223405228},{"$f":"H$4*('COM-Appliance class'!$U64/'Volume per connection'!$J$69)","v":19427.84978563098},{"$f":"I$4*('COM-Appliance class'!$U64/'Volume per connection'!$J$69)","v":22530.385832757682},{"$f":"J$4*('COM-Appliance class'!$U64/'Volume per connection'!$J$69)","v":24793.247863493427},{"$f":"K$4*('COM-Appliance class'!$U64/'Volume per connection'!$J$69)","v":29680.829408486738},{"$f":"L$4*('COM-Appliance class'!$U64/'Volume per connection'!$J$69)","v":29428.681123770348},{"$f":"M$4*('COM-Appliance class'!$U64/'Volume per connection'!$J$69)","v":23911.818806194406},{"$f":"N$4*('COM-Appliance class'!$U64/'Volume per connection'!$J$69)","v":23800.173119306543},{"$f":"O$4*('COM-Appliance class'!$U64/'Volume per connection'!$J$69)","v":27084.60472787479},{"$f":"P$4*('COM-Appliance class'!$U64/'Volume per connection'!$J$69)","v":30263.497205680869},{"$f":"Q$4*('COM-Appliance class'!$U64/'Volume per connection'!$J$69)","v":21073.243937550676},{"$f":"R$4*('COM-Appliance class'!$U64/'Volume per connection'!$J$69)","v":22384.69052002945},{"$f":"S$4*('COM-Appliance class'!$U64/'Volume per connection'!$J$69)","v":24330.611721646852},{"$f":"T$4*('COM-Appliance class'!$U64/'Volume per connection'!$J$69)","v":27179.187227217677},{"$f":"U$4*('COM-Appliance class'!$U64/'Volume per connection'!$J$69)","v":29298.917319057022},{"$f":"V$4*('COM-Appliance class'!$U64/'Volume per connection'!$J$69)","v":30076.733063118259},{"$f":"W$4*('COM-Appliance class'!$U64/'Volume per connection'!$J$69)","v":31343.96137846772},{"$f":"X$4*('COM-Appliance class'!$U64/'Volume per connection'!$J$69)","v":34483.576333869802},{"$f":"Y$4*('COM-Appliance class'!$U64/'Volume per connection'!$J$69)","v":37092.158707929208},{"$f":"Z$4*('COM-Appliance class'!$U64/'Volume per connection'!$J$69)","v":38564.90296580131},{"$f":"AA$4*('COM-Appliance class'!$U64/'Volume per connection'!$J$69)","v":40238.417125893036},{"$f":"AB$4*('COM-Appliance class'!$U64/'Volume per connection'!$J$69)","v":41288.411537554683},{"$f":"AC$4*('COM-Appliance class'!$U64/'Volume per connection'!$J$69)","v":42048.436436692689},{"$f":"AD$4*('COM-Appliance class'!$U64/'Volume per connection'!$J$69)","v":42592.616142139057},{"$f":"AE$4*('COM-Appliance class'!$U64/'Volume per connection'!$J$69)","v":43048.66083875444},{"$f":"AF$4*('COM-Appliance class'!$U64/'Volume per connection'!$J$69)","v":43897.298611986218},{"$f":"AG$4*('COM-Appliance class'!$U64/'Volume per connection'!$J$69)","v":43938.06984712249},{"$f":"AH$4*('COM-Appliance class'!$U64/'Volume per connection'!$J$69)","v":44828.310673906009},{"$f":"AI$4*('COM-Appliance class'!$U64/'Volume per connection'!$J$69)","v":44885.600706173493},{"$f":"AJ$4*('COM-Appliance class'!$U64/'Volume per connection'!$J$69)","v":44942.809952342323},{"$f":"AK$4*('COM-Appliance class'!$U64/'Volume per connection'!$J$69)","v":44999.938908841636},{"$f":"AL$4*('COM-Appliance class'!$U64/'Volume per connection'!$J$69)","v":45056.988069019069},{"$f":"AM$4*('COM-Appliance class'!$U64/'Volume per connection'!$J$69)","v":45113.957923160218},{"$f":"AN$4*('COM-Appliance class'!$U64/'Volume per connection'!$J$69)","v":45170.848958507719},{"$f":"AO$4*('COM-Appliance class'!$U64/'Volume per connection'!$J$69)","v":45227.661659280704},{"$f":"AP$4*('COM-Appliance class'!$U64/'Volume per connection'!$J$69)","v":45284.396506693527},{"$f":"AQ$4*('COM-Appliance class'!$U64/'Volume per connection'!$J$69)","v":45341.053978975011},{"$f":"AR$4*('COM-Appliance class'!$U64/'Volume per connection'!$J$69)","v":45397.634551386938},{"$f":"AS$4*('COM-Appliance class'!$U64/'Volume per connection'!$J$69)","v":45454.138696243004},{"$f":"AT$4*('COM-Appliance class'!$U64/'Volume per connection'!$J$69)","v":45510.566882927087},{"$f":"AU$4*('COM-Appliance class'!$U64/'Volume per connection'!$J$69)","v":45566.919577912035},{"$f":"AV$4*('COM-Appliance class'!$U64/'Volume per connection'!$J$69)","v":45623.197244777657},{"$f":"AW$4*('COM-Appliance class'!$U64/'Volume per connection'!$J$69)","v":45679.400344229209},{"$f":"AX$4*('COM-Appliance class'!$U64/'Volume per connection'!$J$69)","v":45735.529334115272},{"$f":"AY$4*('COM-Appliance class'!$U64/'Volume per connection'!$J$69)","v":45791.584669445903},{"$f":"AZ$4*('COM-Appliance class'!$U64/'Volume per connection'!$J$69)","v":45847.566802410336},{"$f":"BA$4*('COM-Appliance class'!$U64/'Volume per connection'!$J$69)","v":45903.476182394988},{"$f":"BB$4*('COM-Appliance class'!$U64/'Volume per connection'!$J$69)","v":45959.313256000707},{"$f":"BC$4*('COM-Appliance class'!$U64/'Volume per connection'!$J$69)","v":46015.078467060754},{"$f":"BD$4*('COM-Appliance class'!$U64/'Volume per connection'!$J$69)","v":46070.772256657794},{"$f":"BE$4*('COM-Appliance class'!$U64/'Volume per connection'!$J$69)","v":46126.395063141594},{"$f":"BF$4*('COM-Appliance class'!$U64/'Volume per connection'!$J$69)","v":46181.947322145876},{"$f":"BG$4*('COM-Appliance class'!$U64/'Volume per connection'!$J$69)","v":46237.429466605601},{"$f":"BH$4*('COM-Appliance class'!$U64/'Volume per connection'!$J$69)","v":46292.841926773915},{"$f":"BI$4*('COM-Appliance class'!$U64/'Volume per connection'!$J$69)","v":46348.185130239042},{"$f":"BJ$4*('COM-Appliance class'!$U64/'Volume per connection'!$J$69)","v":46403.459501940888},{"$f":"BK$4*('COM-Appliance class'!$U64/'Volume per connection'!$J$69)","v":46458.665464187972},{"$f":"BL$4*('COM-Appliance class'!$U64/'Volume per connection'!$J$69)","v":46513.803436673683},{"$f":"BM$4*('COM-Appliance class'!$U64/'Volume per connection'!$J$69)","v":46568.873836493047},{"$f":"BN$4*('COM-Appliance class'!$U64/'Volume per connection'!$J$69)","v":46623.877078158665},{"$f":"BO$4*('COM-Appliance class'!$U64/'Volume per connection'!$J$69)","v":46678.813573617394},{"$f":"BP$4*('COM-Appliance class'!$U64/'Volume per connection'!$J$69)","v":46733.683732266101},{"$f":"BQ$4*('COM-Appliance class'!$U64/'Volume per connection'!$J$69)","v":46788.487960967992},{"$f":"BR$4*('COM-Appliance class'!$U64/'Volume per connection'!$J$69)","v":46843.226664068301},{"$f":"BS$4*('COM-Appliance class'!$U64/'Volume per connection'!$J$69)","v":46897.900243410324},{"$f":"BT$4*('COM-Appliance class'!$U64/'Volume per connection'!$J$69)","v":46952.509098350965},{"$f":"BU$4*('COM-Appliance class'!$U64/'Volume per connection'!$J$69)","v":47007.053625776578},{"$f":"BV$4*('COM-Appliance class'!$U64/'Volume per connection'!$J$69)","v":47061.534220118207},{"$f":"BW$4*('COM-Appliance class'!$U64/'Volume per connection'!$J$69)","v":47115.951273367406},{"$f":"BX$4*('COM-Appliance class'!$U64/'Volume per connection'!$J$69)","v":47170.305175091089},{"$f":"BY$4*('COM-Appliance class'!$U64/'Volume per connection'!$J$69)","v":47224.596312447306},{"$f":"BZ$4*('COM-Appliance class'!$U64/'Volume per connection'!$J$69)","v":47278.825070199848},{"$f":"CA$4*('COM-Appliance class'!$U64/'Volume per connection'!$J$69)","v":47332.991830733794},{"$f":"CB$4*('COM-Appliance class'!$U64/'Volume per connection'!$J$69)","v":47387.096974070017},{"$f":"CC$4*('COM-Appliance class'!$U64/'Volume per connection'!$J$69)","v":47441.140877880411},{"$f":"CD$4*('COM-Appliance class'!$U64/'Volume per connection'!$J$69)","v":47495.123917502307}]
["Yarra Ranges (S)",null,{"$f":"C$4*('COM-Appliance class'!$U65/'Volume per connection'!$J$69)","v":17591.71653250336},{"$f":"D$4*('COM-Appliance class'!$U65/'Volume per connection'!$J$69)","v":21622.489046237726},{"$f":"E$4*('COM-Appliance class'!$U65/'Volume per connection'!$J$69)","v":19214.206233126835},{"$f":"F$4*('COM-Appliance class'!$U65/'Volume per connection'!$J$69)","v":21373.650324443402},{"$f":"G$4*('COM-Appliance class'!$U65/'Volume per connection'!$J$69)","v":18818.153975399669},{"$f":"H$4*('COM-Appliance class'!$U65/'Volume per connection'!$J$69)","v":19317.262240504158},{"$f":"I$4*('COM-Appliance class'!$U65/'Volume per connection'!$J$69)","v":22402.137977874248},{"$f":"J$4*('COM-Appliance class'!$U65/'Volume per connection'!$J$69)","v":24652.119305922821},{"$f":"K$4*('COM-Appliance class'!$U65/'Volume per connection'!$J$69)","v":29511.879674067844},{"$f":"L$4*('COM-Appliance class'!$U65/'Volume per connection'!$J$69)","v":29261.16667221201},{"$f":"M$4*('COM-Appliance class'!$U65/'Volume per connection'!$J$69)","v":23775.707534464778},{"$f":"N$4*('COM-Appliance class'!$U65/'Volume per connection'!$J$69)","v":23664.697359101516},{"$f":"O$4*('COM-Appliance class'!$U65/'Volume per connection'!$J$69)","v":26930.433268828343},{"$f":"P$4*('COM-Appliance class'!$U65/'Volume per connection'!$J$69)","v":30091.2307994724},{"$f":"Q$4*('COM-Appliance class'!$U65/'Volume per connection'!$J$69)","v":20953.290451157343},{"$f":"R$4*('COM-Appliance class'!$U65/'Volume per connection'!$J$69)","v":22257.271994544219},{"$f":"S$4*('COM-Appliance class'!$U65/'Volume per connection'!$J$69)","v":24192.116589585414},{"$f":"T$4*('COM-Appliance class'!$U65/'Volume per connection'!$J$69)","v":27024.477384020145},{"$f":"U$4*('COM-Appliance class'!$U65/'Volume per connection'!$J$69)","v":29132.141511289319},{"$f":"V$4*('COM-Appliance class'!$U65/'Volume per connection'!$J$69)","v":29905.529759016903},{"$f":"W$4*('COM-Appliance class'!$U65/'Volume per connection'!$J$69)","v":31165.544735265226},{"$f":"X$4*('COM-Appliance class'!$U65/'Volume per connection'!$J$69)","v":34287.288319702813},{"$f":"Y$4*('COM-Appliance class'!$U65/'Volume per connection'!$J$69)","v":36881.022075711779},{"$f":"Z$4*('COM-Appliance class'!$U65/'Volume per connection'!$J$69)","v":38345.383153053102},{"$f":"AA$4*('COM-Appliance class'!$U65/'Volume per connection'!$J$69)","v":40009.371306677749},{"$f":"AB$4*('COM-Appliance class'!$U65/'Volume per connection'!$J$69)","v":41053.388921850652},{"$f":"AC$4*('COM-Appliance class'!$U65/'Volume per connection'!$J$69)","v":41809.087594012519},{"$f":"AD$4*('COM-Appliance class'!$U65/'Volume per connection'!$J$69)","v":42350.169710255905},{"$f":"AE$4*('COM-Appliance class'!$U65/'Volume per connection'!$J$69)","v":42803.618501301542},{"$f":"AF$4*('COM-Appliance class'!$U65/'Volume per connection'!$J$69)","v":43647.425643810966},{"$f":"AG$4*('COM-Appliance class'!$U65/'Volume per connection'!$J$69)","v":43687.964800212059},{"$f":"AH$4*('COM-Appliance class'!$U65/'Volume per connection'!$J$69)","v":44573.13818264677},{"$f":"AI$4*('COM-Appliance class'!$U65/'Volume per connection'!$J$69)","v":44630.102107594168},{"$f":"AJ$4*('COM-Appliance class'!$U65/'Volume per connection'!$J$69)","v":44686.985706294945},{"$f":"AK$4*('COM-Appliance class'!$U65/'Volume per connection'!$J$69)","v":44743.789472352466},{"$f":"AL$4*('COM-Appliance class'!$U65/'Volume per connection'!$J$69)","v":44800.513896306118},{"$f":"AM$4*('COM-Appliance class'!$U65/'Volume per connection'!$J$69)","v":44857.159465650686},{"$f":"AN$4*('COM-Appliance class'!$U65/'Volume per connection'!$J$69)","v":44913.72666485532},{"$f":"AO$4*('COM-Appliance class'!$U65/'Volume per connection'!$J$69)","v":44970.215975382867},{"$f":"AP$4*('COM-Appliance class'!$U65/'Volume per connection'!$J$69)","v":45026.627875708509},{"$f":"AQ$4*('COM-Appliance class'!$U65/'Volume per connection'!$J$69)","v":45082.962841338878},{"$f":"AR$4*('COM-Appliance class'!$U65/'Volume per connection'!$J$69)","v":45139.221344830468},{"$f":"AS$4*('COM-Appliance class'!$U65/'Volume per connection'!$J$69)","v":45195.403855808458},{"$f":"AT$4*('COM-Appliance class'!$U65/'Volume per connection'!$J$69)","v":45251.510840984905},{"$f":"AU$4*('COM-Appliance class'!$U65/'Volume per connection'!$J$69)","v":45307.542764177379},{"$f":"AV$4*('COM-Appliance class'!$U65/'Volume per connection'!$J$69)","v":45363.500086326894},{"$f":"AW$4*('COM-Appliance class'!$U65/'Volume per connection'!$J$69)","v":45419.38326551627},{"$f":"AX$4*('COM-Appliance class'!$U65/'Volume per connection'!$J$69)","v":45475.192756987926},{"$f":"AY$4*('COM-Appliance class'!$U65/'Volume per connection'!$J$69)","v":45530.929013161884},{"$f":"AZ$4*('COM-Appliance class'!$U65/'Volume per connection'!$J$69)","v":45586.59248365344},{"$f":"BA$4*('COM-Appliance class'!$U65/'Volume per connection'!$J$69)","v":45642.183615290982},{"$f":"BB$4*('COM-Appliance class'!$U65/'Volume per connection'!$J$69)","v":45697.702852133232},{"$f":"BC$4*('COM-Appliance class'!$U65/'Volume per connection'!$J$69)","v":45753.150635487036},{"$f":"BD$4*('COM-Appliance class'!$U65/'Volume per connection'!$J$69)","v":45808.527403924338},{"$f":"BE$4*('COM-Appliance class'!$U65/'Volume per connection'!$J$69)","v":45863.833593299707},{"$f":"BF$4*('COM-Appliance class'!$U65/'Volume per connection'!$J$69)","v":45919.069636767155},{"$f":"BG$4*('COM-Appliance class'!$U65/'Volume per connection'!$J$69)","v":45974.23596479727},{"$f":"BH$4*('COM-Appliance class'!$U65/'Volume per connection'!$J$69)","v":46029.333005194123},{"$f":"BI$4*('COM-Appliance class'!$U65/'Volume per connection'!$J$69)","v":46084.361183111992},{"$f":"BJ$4*('COM-Appliance class'!$U65/'Volume per connection'!$J$69)","v":46139.320921071951},{"$f":"BK$4*('COM-Appliance class'!$U65/'Volume per connection'!$J$69)","v":46194.212638978635},{"$f":"BL$4*('COM-Appliance class'!$U65/'Volume per connection'!$J$69)","v":46249.036754136454},{"$f":"BM$4*('COM-Appliance class'!$U65/'Volume per connection'!$J$69)","v":46303.793681266223},{"$f":"BN$4*('COM-Appliance class'!$U65/'Volume per connection'!$J$69)","v":46358.483832521073},{"$f":"BO$4*('COM-Appliance class'!$U65/'Volume per connection'!$J$69)","v":46413.107617502952},{"$f":"BP$4*('COM-Appliance class'!$U65/'Volume per connection'!$J$69)","v":46467.665443278354},{"$f":"BQ$4*('COM-Appliance class'!$U65/'Volume per connection'!$J$69)","v":46522.157714394532},{"$f":"BR$4*('COM-Appliance class'!$U65/'Volume per connection'!$J$69)","v":46576.584832895096},{"$f":"BS$4*('COM-Appliance class'!$U65/'Volume per connection'!$J$69)","v":46630.947198335976},{"$f":"BT$4*('COM-Appliance class'!$U65/'Volume per connection'!$J$69)","v":46685.245207800835},{"$f":"BU$4*('COM-Appliance class'!$U65/'Volume per connection'!$J$69)","v":46739.479255916856},{"$f":"BV$4*('COM-Appliance class'!$U65/'Volume per connection'!$J$69)","v":46793.649734869927},{"$f":"BW$4*('COM-Appliance class'!$U65/'Volume per connection'!$J$69)","v":46847.757034420276},{"$f":"BX$4*('COM-Appliance class'!$U65/'Volume per connection'!$J$69)","v":46901.801541917317},{"$f":"BY$4*('COM-Appliance class'!$U65/'Volume per connection'!$J$69)","v":46955.78364231532},{"$f":"BZ$4*('COM-Appliance class'!$U65/'Volume per connection'!$J$69)","v":47009.703718187913},{"$f":"CA$4*('COM-Appliance class'!$U65/'Volume per connection'!$J$69)","v":47063.562149743564},{"$f":"CB$4*('COM-Appliance class'!$U65/'Volume per connection'!$J$69)","v":47117.359314839981},{"$f":"CC$4*('COM-Appliance class'!$U65/'Volume per connection'!$J$69)","v":47171.095588999255},{"$f":"CD$4*('COM-Appliance class'!$U65/'Volume per connection'!$J$69)","v":47224.771345422232}]
[]
["LGA 500-900 GJ",2020,{"$f":"B266+1","v":2021},{"$f":"C266+1","v":2022},{"$f":"D266+1","v":2023},{"$f":"E266+1","v":2024},{"$f":"F266+1","v":2025},{"$f":"G266+1","v":2026},{"$f":"H266+1","v":2027},{"$f":"I266+1","v":2028},{"$f":"J266+1","v":2029},{"$f":"K266+1","v":2030},{"$f":"L266+1","v":2031},{"$f":"M266+1","v":2032},{"$f":"N266+1","v":2033},{"$f":"O266+1","v":2034},{"$f":"P266+1","v":2035},{"$f":"Q266+1","v":2036},{"$f":"R266+1","v":2037},{"$f":"S266+1","v":2038},{"$f":"T266+1","v":2039},{"$f":"U266+1","v":2040},{"$f":"V266+1","v":2041},{"$f":"W266+1","v":2042},{"$f":"X266+1","v":2043},{"$f":"Y266+1","v":2044},{"$f":"Z266+1","v":2045},{"$f":"AA266+1","v":2046},{"$f":"AB266+1","v":2047},{"$f":"AC266+1","v":2048},{"$f":"AD266+1","v":2049},{"$f":"AE266+1","v":2050},{"$f":"AF266+1","v":2051},{"$f":"AG266+1","v":2052},{"$f":"AH266+1","v":2053},{"$f":"AI266+1","v":2054},{"$f":"AJ266+1","v":2055},{"$f":"AK266+1","v":2056},{"$f":"AL266+1","v":2057},{"$f":"AM266+1","v":2058},{"$f":"AN266+1","v":2059},{"$f":"AO266+1","v":2060},{"$f":"AP266+1","v":2061},{"$f":"AQ266+1","v":2062},{"$f":"AR266+1","v":2063},{"$f":"AS266+1","v":2064},{"$f":"AT266+1","v":2065},{"$f":"AU266+1","v":2066},{"$f":"AV266+1","v":2067},{"$f":"AW266+1","v":2068},{"$f":"AX266+1","v":2069},{"$f":"AY266+1","v":2070},{"$f":"AZ266+1","v":2071},{"$f":"BA266+1","v":2072},{"$f":"BB266+1","v":2073},{"$f":"BC266+1","v":2074},{"$f":"BD266+1","v":2075},{"$f":"BE266+1","v":2076},{"$f":"BF266+1","v":2077},{"$f":"BG266+1","v":2078},{"$f":"BH266+1","v":2079},{"$f":"BI266+1","v":2080},{"$f":"BJ266+1","v":2081},{"$f":"BK266+1","v":2082},{"$f":"BL266+1","v":2083},{"$f":"BM266+1","v":2084},{"$f":"BN266+1","v":2085},{"$f":"BO266+1","v":2086},{"$f":"BP266+1","v":2087},{"$f":"BQ266+1","v":2088},{"$f":"BR266+1","v":2089},{"$f":"BS266+1","v":2090},{"$f":"BT266+1","v":2091},{"$f":"BU266+1","v":2092},{"$f":"BV266+1","v":2093},{"$f":"BW266+1","v":2094},{"$f":"BX266+1","v":2095},{"$f":"BY266+1","v":2096},{"$f":"BZ266+1","v":2097},{"$f":"CA266+1","v":2098},{"$f":"CB266+1","v":2099},{"$f":"CC266+1","v":2100}]
["Bass Coast (S)",null,{"$f":"C$4*('COM-Appliance class'!$AF47/'Volume per connection'!$J$69)","v":39459.250623296852},{"$f":"D$4*('COM-Appliance class'!$AF47/'Volume per connection'!$J$69)","v":48500.509475499777},{"$f":"E$4*('COM-Appliance class'!$AF47/'Volume per connection'!$J$69)","v":43098.590059691756},{"$f":"F$4*('COM-Appliance class'!$AF47/'Volume per connection'!$J$69)","v":47942.349646700757},{"$f":"G$4*('COM-Appliance class'!$AF47/'Volume per connection'!$J$69)","v":42210.221646711478},{"$f":"H$4*('COM-Appliance class'!$AF47/'Volume per connection'!$J$69)","v":43329.75072078043},{"$f":"I$4*('COM-Appliance class'!$AF47/'Volume per connection'!$J$69)","v":50249.307697366836},{"$f":"J$4*('COM-Appliance class'!$AF47/'Volume per connection'!$J$69)","v":55296.147609615742},{"$f":"K$4*('COM-Appliance class'!$AF47/'Volume per connection'!$J$69)","v":66196.87477751261},{"$f":"L$4*('COM-Appliance class'!$AF47/'Volume per connection'!$J$69)","v":65634.510828749015},{"$f":"M$4*('COM-Appliance class'!$AF47/'Volume per connection'!$J$69)","v":53330.304670112142},{"$f":"N$4*('COM-Appliance class'!$AF47/'Volume per connection'!$J$69)","v":53081.302344312862},{"$f":"O$4*('COM-Appliance class'!$AF47/'Volume per connection'!$J$69)","v":60406.539281442696},{"$f":"P$4*('COM-Appliance class'!$AF47/'Volume per connection'!$J$69)","v":67496.393287487954},{"$f":"Q$4*('COM-Appliance class'!$AF47/'Volume per connection'!$J$69)","v":46999.457828194885},{"$f":"R$4*('COM-Appliance class'!$AF47/'Volume per connection'!$J$69)","v":49924.364811182408},{"$f":"S$4*('COM-Appliance class'!$AF47/'Volume per connection'!$J$69)","v":54264.33457205243},{"$f":"T$4*('COM-Appliance class'!$AF47/'Volume per connection'!$J$69)","v":60617.485740484539},{"$f":"U$4*('COM-Appliance class'!$AF47/'Volume per connection'!$J$69)","v":65345.09983510591},{"$f":"V$4*('COM-Appliance class'!$AF47/'Volume per connection'!$J$69)","v":67079.854976243485},{"$f":"W$4*('COM-Appliance class'!$AF47/'Volume per connection'!$J$69)","v":69906.142373782335},{"$f":"X$4*('COM-Appliance class'!$AF47/'Volume per connection'!$J$69)","v":76908.396090888054},{"$f":"Y$4*('COM-Appliance class'!$AF47/'Volume per connection'!$J$69)","v":82726.292834469699},{"$f":"Z$4*('COM-Appliance class'!$AF47/'Volume per connection'!$J$69)","v":86010.940506403844},{"$f":"AA$4*('COM-Appliance class'!$AF47/'Volume per connection'!$J$69)","v":89743.363403666619},{"$f":"AB$4*('COM-Appliance class'!$AF47/'Volume per connection'!$J$69)","v":92085.156068193028},{"$f":"AC$4*('COM-Appliance class'!$AF47/'Volume per connection'!$J$69)","v":93780.232455163685},{"$f":"AD$4*('COM-Appliance class'!$AF47/'Volume per connection'!$J$69)","v":94993.911335970057},{"$f":"AE$4*('COM-Appliance class'!$AF47/'Volume per connection'!$J$69)","v":96011.023535205473},{"$f":"AF$4*('COM-Appliance class'!$AF47/'Volume per connection'!$J$69)","v":97903.732382149901},{"$f":"AG$4*('COM-Appliance class'!$AF47/'Volume per connection'!$J$69)","v":97994.664084552671},{"$f":"AH$4*('COM-Appliance class'!$AF47/'Volume per connection'!$J$69)","v":99980.159830691351},{"$f":"AI$4*('COM-Appliance class'!$AF47/'Volume per connection'!$J$69)","v":100107.93325103},{"$f":"AJ$4*('COM-Appliance class'!$AF47/'Volume per connection'!$J$69)","v":100235.52649489234},{"$f":"AK$4*('COM-Appliance class'!$AF47/'Volume per connection'!$J$69)","v":100362.94066945964},{"$f":"AL$4*('COM-Appliance class'!$AF47/'Volume per connection'!$J$69)","v":100490.17687504047},{"$f":"AM$4*('COM-Appliance class'!$AF47/'Volume per connection'!$J$69)","v":100617.2362051142},{"$f":"AN$4*('COM-Appliance class'!$AF47/'Volume per connection'!$J$69)","v":100744.11974637349},{"$f":"AO$4*('COM-Appliance class'!$AF47/'Volume per connection'!$J$69)","v":100870.82857876772},{"$f":"AP$4*('COM-Appliance class'!$AF47/'Volume per connection'!$J$69)","v":100997.36377554474},{"$f":"AQ$4*('COM-Appliance class'!$AF47/'Volume per connection'!$J$69)","v":101123.72640329378},{"$f":"AR$4*('COM-Appliance class'!$AF47/'Volume per connection'!$J$69)","v":101249.91752198676},{"$f":"AS$4*('COM-Appliance class'!$AF47/'Volume per connection'!$J$69)","v":101375.93818502045},{"$f":"AT$4*('COM-Appliance class'!$AF47/'Volume per connection'!$J$69)","v":101501.78943925732},{"$f":"AU$4*('COM-Appliance class'!$AF47/'Volume per connection'!$J$69)","v":101627.47232506736},{"$f":"AV$4*('COM-Appliance class'!$AF47/'Volume per connection'!$J$69)","v":101752.98787636825},{"$f":"AW$4*('COM-Appliance class'!$AF47/'Volume per connection'!$J$69)","v":101878.33712066662},{"$f":"AX$4*('COM-Appliance class'!$AF47/'Volume per connection'!$J$69)","v":102003.52107909783},{"$f":"AY$4*('COM-Appliance class'!$AF47/'Volume per connection'!$J$69)","v":102128.54076646654},{"$f":"AZ$4*('COM-Appliance class'!$AF47/'Volume per connection'!$J$69)","v":102253.39719128617},{"$f":"BA$4*('COM-Appliance class'!$AF47/'Volume per connection'!$J$69)","v":102378.09135581898},{"$f":"BB$4*('COM-Appliance class'!$AF47/'Volume per connection'!$J$69)","v":102502.62425611468},{"$f":"BC$4*('COM-Appliance class'!$AF47/'Volume per connection'!$J$69)","v":102626.99688205039},{"$f":"BD$4*('COM-Appliance class'!$AF47/'Volume per connection'!$J$69)","v":102751.21021736866},{"$f":"BE$4*('COM-Appliance class'!$AF47/'Volume per connection'!$J$69)","v":102875.26523971681},{"$f":"BF$4*('COM-Appliance class'!$AF47/'Volume per connection'!$J$69)","v":102999.16292068468},{"$f":"BG$4*('COM-Appliance class'!$AF47/'Volume per connection'!$J$69)","v":103122.90422584303},{"$f":"BH$4*('COM-Appliance class'!$AF47/'Volume per connection'!$J$69)","v":103246.49011478138},{"$f":"BI$4*('COM-Appliance class'!$AF47/'Volume per connection'!$J$69)","v":103369.92154114577},{"$f":"BJ$4*('COM-Appliance class'!$AF47/'Volume per connection'!$J$69)","v":103493.19945267565},{"$f":"BK$4*('COM-Appliance class'!$AF47/'Volume per connection'!$J$69)","v":103616.32479124174},{"$f":"BL$4*('COM-Appliance class'!$AF47/'Volume per connection'!$J$69)","v":103739.29849288227},{"$f":"BM$4*('COM-Appliance class'!$AF47/'Volume per connection'!$J$69)","v":103862.12148784033},{"$f":"BN$4*('COM-Appliance class'!$AF47/'Volume per connection'!$J$69)","v":103984.79470059951},{"$f":"BO$4*('COM-Appliance class'!$AF47/'Volume per connection'!$J$69)","v":104107.319049921},{"$f":"BP$4*('COM-Appliance class'!$AF47/'Volume per connection'!$J$69)","v":104229.69544887877},{"$f":"BQ$4*('COM-Appliance class'!$AF47/'Volume per connection'!$J$69)","v":104351.92480489603},{"$f":"BR$4*('COM-Appliance class'!$AF47/'Volume per connection'!$J$69)","v":104474.00801978013},{"$f":"BS$4*('COM-Appliance class'!$AF47/'Volume per connection'!$J$69)","v":104595.9459897584},{"$f":"BT$4*('COM-Appliance class'!$AF47/'Volume per connection'!$J$69)","v":104717.7396055128},{"$f":"BU$4*('COM-Appliance class'!$AF47/'Volume per connection'!$J$69)","v":104839.38975221521},{"$f":"BV$4*('COM-Appliance class'!$AF47/'Volume per connection'!$J$69)","v":104960.89730956151},{"$f":"BW$4*('COM-Appliance class'!$AF47/'Volume per connection'!$J$69)","v":105082.26315180676},{"$f":"BX$4*('COM-Appliance class'!$AF47/'Volume per connection'!$J$69)","v":105203.48814779839},{"$f":"BY$4*('COM-Appliance class'!$AF47/'Volume per connection'!$J$69)","v":105324.57316101134},{"$f":"BZ$4*('COM-Appliance class'!$AF47/'Volume per connection'!$J$69)","v":105445.5190495807},{"$f":"CA$4*('COM-Appliance class'!$AF47/'Volume per connection'!$J$69)","v":105566.32666633632},{"$f":"CB$4*('COM-Appliance class'!$AF47/'Volume per connection'!$J$69)","v":105686.99685883516},{"$f":"CC$4*('COM-Appliance class'!$AF47/'Volume per connection'!$J$69)","v":105807.53046939529},{"$f":"CD$4*('COM-Appliance class'!$AF47/'Volume per connection'!$J$69)","v":105927.92833512806}]
["Bayside (C)",null,{"$f":"C$4*('COM-Appliance class'!$AF48/'Volume per connection'!$J$69)","v":39496.838774886026},{"$f":"D$4*('COM-Appliance class'!$AF48/'Volume per connection'!$J$69)","v":48546.710162880314},{"$f":"E$4*('COM-Appliance class'!$AF48/'Volume per connection'!$J$69)","v":43139.64497864875},{"$f":"F$4*('COM-Appliance class'!$AF48/'Volume per connection'!$J$69)","v":47988.018641362229},{"$f":"G$4*('COM-Appliance class'!$AF48/'Volume per connection'!$J$69)","v":42250.430322365661},{"$f":"H$4*('COM-Appliance class'!$AF48/'Volume per connection'!$J$69)","v":43371.025839103437},{"$f":"I$4*('COM-Appliance class'!$AF48/'Volume per connection'!$J$69)","v":50297.174257555998},{"$f":"J$4*('COM-Appliance class'!$AF48/'Volume per connection'!$J$69)","v":55348.82169606736},{"$f":"K$4*('COM-Appliance class'!$AF48/'Volume per connection'!$J$69)","v":66259.932694846648},{"$f":"L$4*('COM-Appliance class'!$AF48/'Volume per connection'!$J$69)","v":65697.033048597135},{"$f":"M$4*('COM-Appliance class'!$AF48/'Volume per connection'!$J$69)","v":53381.106130975502},{"$f":"N$4*('COM-Appliance class'!$AF48/'Volume per connection'!$J$69)","v":53131.866610170728},{"$f":"O$4*('COM-Appliance class'!$AF48/'Volume per connection'!$J$69)","v":60464.081432386323},{"$f":"P$4*('COM-Appliance class'!$AF48/'Volume per connection'!$J$69)","v":67560.689102095101},{"$f":"Q$4*('COM-Appliance class'!$AF48/'Volume per connection'!$J$69)","v":47044.228641566893},{"$f":"R$4*('COM-Appliance class'!$AF48/'Volume per connection'!$J$69)","v":49971.921836794238},{"$f":"S$4*('COM-Appliance class'!$AF48/'Volume per connection'!$J$69)","v":54316.025772507601},{"$f":"T$4*('COM-Appliance class'!$AF48/'Volume per connection'!$J$69)","v":60675.228835119553},{"$f":"U$4*('COM-Appliance class'!$AF48/'Volume per connection'!$J$69)","v":65407.346367399688},{"$f":"V$4*('COM-Appliance class'!$AF48/'Volume per connection'!$J$69)","v":67143.754004167189},{"$f":"W$4*('COM-Appliance class'!$AF48/'Volume per connection'!$J$69)","v":69972.73367075462},{"$f":"X$4*('COM-Appliance class'!$AF48/'Volume per connection'!$J$69)","v":76981.657605110464},{"$f":"Y$4*('COM-Appliance class'!$AF48/'Volume per connection'!$J$69)","v":82805.096369416613},{"$f":"Z$4*('COM-Appliance class'!$AF48/'Volume per connection'!$J$69)","v":86092.872935910578},{"$f":"AA$4*('COM-Appliance class'!$AF48/'Volume per connection'!$J$69)","v":89828.851270122643},{"$f":"AB$4*('COM-Appliance class'!$AF48/'Volume per connection'!$J$69)","v":92172.87468298497},{"$f":"AC$4*('COM-Appliance class'!$AF48/'Volume per connection'!$J$69)","v":93869.565768338958},{"$f":"AD$4*('COM-Appliance class'!$AF48/'Volume per connection'!$J$69)","v":95084.400777176939},{"$f":"AE$4*('COM-Appliance class'!$AF48/'Volume per connection'!$J$69)","v":96102.481858662388},{"$f":"AF$4*('COM-Appliance class'!$AF48/'Volume per connection'!$J$69)","v":97996.993665012502},{"$f":"AG$4*('COM-Appliance class'!$AF48/'Volume per connection'!$J$69)","v":98088.011987271471},{"$f":"AH$4*('COM-Appliance class'!$AF48/'Volume per connection'!$J$69)","v":100075.39907989814},{"$f":"AI$4*('COM-Appliance class'!$AF48/'Volume per connection'!$J$69)","v":100203.29421483139},{"$f":"AJ$4*('COM-Appliance class'!$AF48/'Volume per connection'!$J$69)","v":100331.00900165556},{"$f":"AK$4*('COM-Appliance class'!$AF48/'Volume per connection'!$J$69)","v":100458.54454860659},{"$f":"AL$4*('COM-Appliance class'!$AF48/'Volume per connection'!$J$69)","v":100585.90195704118},{"$f":"AM$4*('COM-Appliance class'!$AF48/'Volume per connection'!$J$69)","v":100713.08232148034},{"$f":"AN$4*('COM-Appliance class'!$AF48/'Volume per connection'!$J$69)","v":100840.08672965188},{"$f":"AO$4*('COM-Appliance class'!$AF48/'Volume per connection'!$J$69)","v":100966.91626253395},{"$f":"AP$4*('COM-Appliance class'!$AF48/'Volume per connection'!$J$69)","v":101093.57199439673},{"$f":"AQ$4*('COM-Appliance class'!$AF48/'Volume per connection'!$J$69)","v":101220.05499284547},{"$f":"AR$4*('COM-Appliance class'!$AF48/'Volume per connection'!$J$69)","v":101346.36631886179},{"$f":"AS$4*('COM-Appliance class'!$AF48/'Volume per connection'!$J$69)","v":101472.50702684592},{"$f":"AT$4*('COM-Appliance class'!$AF48/'Volume per connection'!$J$69)","v":101598.47816465756},{"$f":"AU$4*('COM-Appliance class'!$AF48/'Volume per connection'!$J$69)","v":101724.28077365769},{"$f":"AV$4*('COM-Appliance class'!$AF48/'Volume per connection'!$J$69)","v":101849.91588874895},{"$f":"AW$4*('COM-Appliance class'!$AF48/'Volume per connection'!$J$69)","v":101975.38453841669},{"$f":"AX$4*('COM-Appliance class'!$AF48/'Volume per connection'!$J$69)","v":102100.68774476903},{"$f":"AY$4*('COM-Appliance class'!$AF48/'Volume per connection'!$J$69)","v":102225.8265235773},{"$f":"AZ$4*('COM-Appliance class'!$AF48/'Volume per connection'!$J$69)","v":102350.8018843156},{"$f":"BA$4*('COM-Appliance class'!$AF48/'Volume per connection'!$J$69)","v":102475.61483020094},{"$f":"BB$4*('COM-Appliance class'!$AF48/'Volume per connection'!$J$69)","v":102600.26635823183},{"$f":"BC$4*('COM-Appliance class'!$AF48/'Volume per connection'!$J$69)","v":102724.75745922836},{"$f":"BD$4*('COM-Appliance class'!$AF48/'Volume per connection'!$J$69)","v":102849.08911787014},{"$f":"BE$4*('COM-Appliance class'!$AF48/'Volume per connection'!$J$69)","v":102973.26231273582},{"$f":"BF$4*('COM-Appliance class'!$AF48/'Volume per connection'!$J$69)","v":103097.27801634072},{"$f":"BG$4*('COM-Appliance class'!$AF48/'Volume per connection'!$J$69)","v":103221.13719517538},{"$f":"BH$4*('COM-Appliance class'!$AF48/'Volume per connection'!$J$69)","v":103344.84080974347},{"$f":"BI$4*('COM-Appliance class'!$AF48/'Volume per connection'!$J$69)","v":103468.38981459937},{"$f":"BJ$4*('COM-Appliance class'!$AF48/'Volume per connection'!$J$69)","v":103591.78515838539},{"$f":"BK$4*('COM-Appliance class'!$AF48/'Volume per connection'!$J$69)","v":103715.02778386943},{"$f":"BL$4*('COM-Appliance class'!$AF48/'Volume per connection'!$J$69)","v":103838.1186279814},{"$f":"BM$4*('COM-Appliance class'!$AF48/'Volume per connection'!$J$69)","v":103961.05862185049},{"$f":"BN$4*('COM-Appliance class'!$AF48/'Volume per connection'!$J$69)","v":104083.84869084095},{"$f":"BO$4*('COM-Appliance class'!$AF48/'Volume per connection'!$J$69)","v":104206.48975458917},{"$f":"BP$4*('COM-Appliance class'!$AF48/'Volume per connection'!$J$69)","v":104328.98272703891},{"$f":"BQ$4*('COM-Appliance class'!$AF48/'Volume per connection'!$J$69)","v":104451.32851647773},{"$f":"BR$4*('COM-Appliance class'!$AF48/'Volume per connection'!$J$69)","v":104573.52802557206},{"$f":"BS$4*('COM-Appliance class'!$AF48/'Volume per connection'!$J$69)","v":104695.58215140295},{"$f":"BT$4*('COM-Appliance class'!$AF48/'Volume per connection'!$J$69)","v":104817.49178550081},{"$f":"BU$4*('COM-Appliance class'!$AF48/'Volume per connection'!$J$69)","v":104939.25781388073},{"$f":"BV$4*('COM-Appliance class'!$AF48/'Volume per connection'!$J$69)","v":105060.88111707654},{"$f":"BW$4*('COM-Appliance class'!$AF48/'Volume per connection'!$J$69)","v":105182.36257017613},{"$f":"BX$4*('COM-Appliance class'!$AF48/'Volume per connection'!$J$69)","v":105303.70304285455},{"$f":"BY$4*('COM-Appliance class'!$AF48/'Volume per connection'!$J$69)","v":105424.9033994093},{"$f":"BZ$4*('COM-Appliance class'!$AF48/'Volume per connection'!$J$69)","v":105545.96449879292},{"$f":"CA$4*('COM-Appliance class'!$AF48/'Volume per connection'!$J$69)","v":105666.8871946476},{"$f":"CB$4*('COM-Appliance class'!$AF48/'Volume per connection'!$J$69)","v":105787.67233533772},{"$f":"CC$4*('COM-Appliance class'!$AF48/'Volume per connection'!$J$69)","v":105908.32076398369},{"$f":"CD$4*('COM-Appliance class'!$AF48/'Volume per connection'!$J$69)","v":106028.83331849429}]
["Boroondara (C)",null,{"$f":"C$4*('COM-Appliance class'!$AF49/'Volume per connection'!$J$69)","v":41993.801964689897},{"$f":"D$4*('COM-Appliance class'!$AF49/'Volume per connection'!$J$69)","v":51615.800045077842},{"$f":"E$4*('COM-Appliance class'!$AF49/'Volume per connection'!$J$69)","v":45866.903890351467},{"$f":"F$4*('COM-Appliance class'!$AF49/'Volume per connection'!$J$69)","v":51021.78842688982},{"$f":"G$4*('COM-Appliance class'!$AF49/'Volume per connection'!$J$69)","v":44921.473690408595},{"$f":"H$4*('COM-Appliance class'!$AF49/'Volume per connection'!$J$69)","v":46112.912490881085},{"$f":"I$4*('COM-Appliance class'!$AF49/'Volume per connection'!$J$69)","v":53476.927285084988},{"$f":"J$4*('COM-Appliance class'!$AF49/'Volume per connection'!$J$69)","v":58847.936426787906},{"$f":"K$4*('COM-Appliance class'!$AF49/'Volume per connection'!$J$69)","v":70448.840415813771},{"$f":"L$4*('COM-Appliance class'!$AF49/'Volume per connection'!$J$69)","v":69850.35463812096},{"$f":"M$4*('COM-Appliance class'!$AF49/'Volume per connection'!$J$69)","v":56755.823226684239},{"$f":"N$4*('COM-Appliance class'!$AF49/'Volume per connection'!$J$69)","v":56490.826953486168},{"$f":"O$4*('COM-Appliance class'!$AF49/'Volume per connection'!$J$69)","v":64286.579392348896},{"$f":"P$4*('COM-Appliance class'!$AF49/'Volume per connection'!$J$69)","v":71831.82975533088},{"$f":"Q$4*('COM-Appliance class'!$AF49/'Volume per connection'!$J$69)","v":50018.332667466842},{"$f":"R$4*('COM-Appliance class'!$AF49/'Volume per connection'!$J$69)","v":53131.112628275288},{"$f":"S$4*('COM-Appliance class'!$AF49/'Volume per connection'!$J$69)","v":57749.847849848811},{"$f":"T$4*('COM-Appliance class'!$AF49/'Volume per connection'!$J$69)","v":64511.075389769729},{"$f":"U$4*('COM-Appliance class'!$AF49/'Volume per connection'!$J$69)","v":69542.354162656353},{"$f":"V$4*('COM-Appliance class'!$AF49/'Volume per connection'!$J$69)","v":71388.536305080226},{"$f":"W$4*('COM-Appliance class'!$AF49/'Volume per connection'!$J$69)","v":74396.362135342497},{"$f":"X$4*('COM-Appliance class'!$AF49/'Volume per connection'!$J$69)","v":81848.385457068813},{"$f":"Y$4*('COM-Appliance class'!$AF49/'Volume per connection'!$J$69)","v":88039.978045417083},{"$f":"Z$4*('COM-Appliance class'!$AF49/'Volume per connection'!$J$69)","v":91535.605602458047},{"$f":"AA$4*('COM-Appliance class'!$AF49/'Volume per connection'!$J$69)","v":95507.769937063727},{"$f":"AB$4*('COM-Appliance class'!$AF49/'Volume per connection'!$J$69)","v":97999.980910234735},{"$f":"AC$4*('COM-Appliance class'!$AF49/'Volume per connection'!$J$69)","v":99803.935647972248},{"$f":"AD$4*('COM-Appliance class'!$AF49/'Volume per connection'!$J$69)","v":101095.57169691479},{"$f":"AE$4*('COM-Appliance class'!$AF49/'Volume per connection'!$J$69)","v":102178.01516950688},{"$f":"AF$4*('COM-Appliance class'!$AF49/'Volume per connection'!$J$69)","v":104192.29671920449},{"$f":"AG$4*('COM-Appliance class'!$AF49/'Volume per connection'!$J$69)","v":104289.06915767446},{"$f":"AH$4*('COM-Appliance class'!$AF49/'Volume per connection'!$J$69)","v":106402.0975058574},{"$f":"AI$4*('COM-Appliance class'!$AF49/'Volume per connection'!$J$69)","v":106538.07808392962},{"$f":"AJ$4*('COM-Appliance class'!$AF49/'Volume per connection'!$J$69)","v":106673.8669124084},{"$f":"AK$4*('COM-Appliance class'!$AF49/'Volume per connection'!$J$69)","v":106809.46516959157},{"$f":"AL$4*('COM-Appliance class'!$AF49/'Volume per connection'!$J$69)","v":106944.8740264629},{"$f":"AM$4*('COM-Appliance class'!$AF49/'Volume per connection'!$J$69)","v":107080.09464673825},{"$f":"AN$4*('COM-Appliance class'!$AF49/'Volume per connection'!$J$69)","v":107215.12818691084},{"$f":"AO$4*('COM-Appliance class'!$AF49/'Volume per connection'!$J$69)","v":107349.97579629748},{"$f":"AP$4*('COM-Appliance class'!$AF49/'Volume per connection'!$J$69)","v":107484.63861708304},{"$f":"AQ$4*('COM-Appliance class'!$AF49/'Volume per connection'!$J$69)","v":107619.11778436601},{"$f":"AR$4*('COM-Appliance class'!$AF49/'Volume per connection'!$J$69)","v":107753.41442620257},{"$f":"AS$4*('COM-Appliance class'!$AF49/'Volume per connection'!$J$69)","v":107887.52966365137},{"$f":"AT$4*('COM-Appliance class'!$AF49/'Volume per connection'!$J$69)","v":108021.46461081711},{"$f":"AU$4*('COM-Appliance class'!$AF49/'Volume per connection'!$J$69)","v":108155.22037489493},{"$f":"AV$4*('COM-Appliance class'!$AF49/'Volume per connection'!$J$69)","v":108288.79805621327},{"$f":"AW$4*('COM-Appliance class'!$AF49/'Volume per connection'!$J$69)","v":108422.19874827763},{"$f":"AX$4*('COM-Appliance class'!$AF49/'Volume per connection'!$J$69)","v":108555.4235378131},{"$f":"AY$4*('COM-Appliance class'!$AF49/'Volume per connection'!$J$69)","v":108688.47350480739},{"$f":"AZ$4*('COM-Appliance class'!$AF49/'Volume per connection'!$J$69)","v":108821.34972255287},{"$f":"BA$4*('COM-Appliance class'!$AF49/'Volume per connection'!$J$69)","v":108954.05325768924},{"$f":"BB$4*('COM-Appliance class'!$AF49/'Volume per connection'!$J$69)","v":109086.58517024458},{"$f":"BC$4*('COM-Appliance class'!$AF49/'Volume per connection'!$J$69)","v":109218.94651367793},{"$f":"BD$4*('COM-Appliance class'!$AF49/'Volume per connection'!$J$69)","v":109351.1383349197},{"$f":"BE$4*('COM-Appliance class'!$AF49/'Volume per connection'!$J$69)","v":109483.16167441358},{"$f":"BF$4*('COM-Appliance class'!$AF49/'Volume per connection'!$J$69)","v":109615.01756615668},{"$f":"BG$4*('COM-Appliance class'!$AF49/'Volume per connection'!$J$69)","v":109746.70703774039},{"$f":"BH$4*('COM-Appliance class'!$AF49/'Volume per connection'!$J$69)","v":109878.23111039077},{"$f":"BI$4*('COM-Appliance class'!$AF49/'Volume per connection'!$J$69)","v":110009.5907990085},{"$f":"BJ$4*('COM-Appliance class'!$AF49/'Volume per connection'!$J$69)","v":110140.78711220836},{"$f":"BK$4*('COM-Appliance class'!$AF49/'Volume per connection'!$J$69)","v":110271.82105235945},{"$f":"BL$4*('COM-Appliance class'!$AF49/'Volume per connection'!$J$69)","v":110402.69361562369},{"$f":"BM$4*('COM-Appliance class'!$AF49/'Volume per connection'!$J$69)","v":110533.40579199568},{"$f":"BN$4*('COM-Appliance class'!$AF49/'Volume per connection'!$J$69)","v":110663.95856534055},{"$f":"BO$4*('COM-Appliance class'!$AF49/'Volume per connection'!$J$69)","v":110794.35291343345},{"$f":"BP$4*('COM-Appliance class'!$AF49/'Volume per connection'!$J$69)","v":110924.58980799704},{"$f":"BQ$4*('COM-Appliance class'!$AF49/'Volume per connection'!$J$69)","v":111054.67021474024},{"$f":"BR$4*('COM-Appliance class'!$AF49/'Volume per connection'!$J$69)","v":111184.5950933954},{"$f":"BS$4*('COM-Appliance class'!$AF49/'Volume per connection'!$J$69)","v":111314.36539775644},{"$f":"BT$4*('COM-Appliance class'!$AF49/'Volume per connection'!$J$69)","v":111443.98207571571},{"$f":"BU$4*('COM-Appliance class'!$AF49/'Volume per connection'!$J$69)","v":111573.44606930154},{"$f":"BV$4*('COM-Appliance class'!$AF49/'Volume per connection'!$J$69)","v":111702.75831471458},{"$f":"BW$4*('COM-Appliance class'!$AF49/'Volume per connection'!$J$69)","v":111831.91974236509},{"$f":"BX$4*('COM-Appliance class'!$AF49/'Volume per connection'!$J$69)","v":111960.93127690845},{"$f":"BY$4*('COM-Appliance class'!$AF49/'Volume per connection'!$J$69)","v":112089.79383728243},{"$f":"BZ$4*('COM-Appliance class'!$AF49/'Volume per connection'!$J$69)","v":112218.50833674194},{"$f":"CA$4*('COM-Appliance class'!$AF49/'Volume per connection'!$J$69)","v":112347.07568289591},{"$f":"CB$4*('COM-Appliance class'!$AF49/'Volume per connection'!$J$69)","v":112475.49677774169},{"$f":"CC$4*('COM-Appliance class'!$AF49/'Volume per connection'!$J$69)","v":112603.7725177012},{"$f":"CD$4*('COM-Appliance class'!$AF49/'Volume per connection'!$J$69)","v":112731.90379365523}]
["Cardinia (S)",null,{"$f":"C$4*('COM-Appliance class'!$AF50/'Volume per connection'!$J$69)","v":43618.182899187428},{"$f":"D$4*('COM-Appliance class'!$AF50/'Volume per connection'!$J$69)","v":53612.373767613382},{"$f":"E$4*('COM-Appliance class'!$AF50/'Volume per connection'!$J$69)","v":47641.102003362634},{"$f":"F$4*('COM-Appliance class'!$AF50/'Volume per connection'!$J$69)","v":52995.384921779572},{"$f":"G$4*('COM-Appliance class'!$AF50/'Volume per connection'!$J$69)","v":46659.101197286582},{"$f":"H$4*('COM-Appliance class'!$AF50/'Volume per connection'!$J$69)","v":47896.626572004847},{"$f":"I$4*('COM-Appliance class'!$AF50/'Volume per connection'!$J$69)","v":55545.492098302995},{"$f":"J$4*('COM-Appliance class'!$AF50/'Volume per connection'!$J$69)","v":61124.259633878661},{"$f":"K$4*('COM-Appliance class'!$AF50/'Volume per connection'!$J$69)","v":73173.903350699475},{"$f":"L$4*('COM-Appliance class'!$AF50/'Volume per connection'!$J$69)","v":72552.267278406769},{"$f":"M$4*('COM-Appliance class'!$AF50/'Volume per connection'!$J$69)","v":58951.220472417255},{"$f":"N$4*('COM-Appliance class'!$AF50/'Volume per connection'!$J$69)","v":58675.973760493536},{"$f":"O$4*('COM-Appliance class'!$AF50/'Volume per connection'!$J$69)","v":66773.277167339562},{"$f":"P$4*('COM-Appliance class'!$AF50/'Volume per connection'!$J$69)","v":74610.388716073299},{"$f":"Q$4*('COM-Appliance class'!$AF50/'Volume per connection'!$J$69)","v":51953.114043744827},{"$f":"R$4*('COM-Appliance class'!$AF50/'Volume per connection'!$J$69)","v":55186.300830919572},{"$f":"S$4*('COM-Appliance class'!$AF50/'Volume per connection'!$J$69)","v":59983.695404216596},{"$f":"T$4*('COM-Appliance class'!$AF50/'Volume per connection'!$J$69)","v":67006.456994302382},{"$f":"U$4*('COM-Appliance class'!$AF50/'Volume per connection'!$J$69)","v":72232.35289953847},{"$f":"V$4*('COM-Appliance class'!$AF50/'Volume per connection'!$J$69)","v":74149.948034676956},{"$f":"W$4*('COM-Appliance class'!$AF50/'Volume per connection'!$J$69)","v":77274.120913893639},{"$f":"X$4*('COM-Appliance class'!$AF50/'Volume per connection'!$J$69)","v":85014.399264717373},{"$f":"Y$4*('COM-Appliance class'!$AF50/'Volume per connection'!$J$69)","v":91445.491600269903},{"$f":"Z$4*('COM-Appliance class'!$AF50/'Volume per connection'!$J$69)","v":95076.335081854588},{"$f":"AA$4*('COM-Appliance class'!$AF50/'Volume per connection'!$J$69)","v":99202.148472081622},{"$f":"AB$4*('COM-Appliance class'!$AF50/'Volume per connection'!$J$69)","v":101790.76176655159},{"$f":"AC$4*('COM-Appliance class'!$AF50/'Volume per connection'!$J$69)","v":103664.4960799784},{"$f":"AD$4*('COM-Appliance class'!$AF50/'Volume per connection'!$J$69)","v":105006.09447750697},{"$f":"AE$4*('COM-Appliance class'!$AF50/'Volume per connection'!$J$69)","v":106130.40842758115},{"$f":"AF$4*('COM-Appliance class'!$AF50/'Volume per connection'!$J$69)","v":108222.60529794417},{"$f":"AG$4*('COM-Appliance class'!$AF50/'Volume per connection'!$J$69)","v":108323.12103415527},{"$f":"AH$4*('COM-Appliance class'!$AF50/'Volume per connection'!$J$69)","v":110517.88437184278},{"$f":"AI$4*('COM-Appliance class'!$AF50/'Volume per connection'!$J$69)","v":110659.12487514559},{"$f":"AJ$4*('COM-Appliance class'!$AF50/'Volume per connection'!$J$69)","v":110800.16621170363},{"$f":"AK$4*('COM-Appliance class'!$AF50/'Volume per connection'!$J$69)","v":110941.00960539302},{"$f":"AL$4*('COM-Appliance class'!$AF50/'Volume per connection'!$J$69)","v":111081.65627249284},{"$f":"AM$4*('COM-Appliance class'!$AF50/'Volume per connection'!$J$69)","v":111222.10742173318},{"$f":"AN$4*('COM-Appliance class'!$AF50/'Volume per connection'!$J$69)","v":111362.36425434206},{"$f":"AO$4*('COM-Appliance class'!$AF50/'Volume per connection'!$J$69)","v":111502.42796409359},{"$f":"AP$4*('COM-Appliance class'!$AF50/'Volume per connection'!$J$69)","v":111642.29973735393},{"$f":"AQ$4*('COM-Appliance class'!$AF50/'Volume per connection'!$J$69)","v":111781.98075312887},{"$f":"AR$4*('COM-Appliance class'!$AF50/'Volume per connection'!$J$69)","v":111921.47218310938},{"$f":"AS$4*('COM-Appliance class'!$AF50/'Volume per connection'!$J$69)","v":112060.77519171833},{"$f":"AT$4*('COM-Appliance class'!$AF50/'Volume per connection'!$J$69)","v":112199.89093615559},{"$f":"AU$4*('COM-Appliance class'!$AF50/'Volume per connection'!$J$69)","v":112338.82056644418},{"$f":"AV$4*('COM-Appliance class'!$AF50/'Volume per connection'!$J$69)","v":112477.56522547486},{"$f":"AW$4*('COM-Appliance class'!$AF50/'Volume per connection'!$J$69)","v":112616.12604905148},{"$f":"AX$4*('COM-Appliance class'!$AF50/'Volume per connection'!$J$69)","v":112754.50416593527},{"$f":"AY$4*('COM-Appliance class'!$AF50/'Volume per connection'!$J$69)","v":112892.70069788938},{"$f":"AZ$4*('COM-Appliance class'!$AF50/'Volume per connection'!$J$69)","v":113030.71675972269},{"$f":"BA$4*('COM-Appliance class'!$AF50/'Volume per connection'!$J$69)","v":113168.55345933407},{"$f":"BB$4*('COM-Appliance class'!$AF50/'Volume per connection'!$J$69)","v":113306.21189775503},{"$f":"BC$4*('COM-Appliance class'!$AF50/'Volume per connection'!$J$69)","v":113443.6931691939},{"$f":"BD$4*('COM-Appliance class'!$AF50/'Volume per connection'!$J$69)","v":113580.99836107789},{"$f":"BE$4*('COM-Appliance class'!$AF50/'Volume per connection'!$J$69)","v":113718.12855409656},{"$f":"BF$4*('COM-Appliance class'!$AF50/'Volume per connection'!$J$69)","v":113855.0848222435},{"$f":"BG$4*('COM-Appliance class'!$AF50/'Volume per connection'!$J$69)","v":113991.86823285886},{"$f":"BH$4*('COM-Appliance class'!$AF50/'Volume per connection'!$J$69)","v":114128.47984667115},{"$f":"BI$4*('COM-Appliance class'!$AF50/'Volume per connection'!$J$69)","v":114264.9207178389},{"$f":"BJ$4*('COM-Appliance class'!$AF50/'Volume per connection'!$J$69)","v":114401.19189399158},{"$f":"BK$4*('COM-Appliance class'!$AF50/'Volume per connection'!$J$69)","v":114537.29441627134},{"$f":"BL$4*('COM-Appliance class'!$AF50/'Volume per connection'!$J$69)","v":114673.22931937312},{"$f":"BM$4*('COM-Appliance class'!$AF50/'Volume per connection'!$J$69)","v":114808.99763158592},{"$f":"BN$4*('COM-Appliance class'!$AF50/'Volume per connection'!$J$69)","v":114944.60037483218},{"$f":"BO$4*('COM-Appliance class'!$AF50/'Volume per connection'!$J$69)","v":115080.03856470884},{"$f":"BP$4*('COM-Appliance class'!$AF50/'Volume per connection'!$J$69)","v":115215.31321052618},{"$f":"BQ$4*('COM-Appliance class'!$AF50/'Volume per connection'!$J$69)","v":115350.42531534814},{"$f":"BR$4*('COM-Appliance class'!$AF50/'Volume per connection'!$J$69)","v":115485.37587603088},{"$f":"BS$4*('COM-Appliance class'!$AF50/'Volume per connection'!$J$69)","v":115620.1658832625},{"$f":"BT$4*('COM-Appliance class'!$AF50/'Volume per connection'!$J$69)","v":115754.79632160114},{"$f":"BU$4*('COM-Appliance class'!$AF50/'Volume per connection'!$J$69)","v":115889.26816951418},{"$f":"BV$4*('COM-Appliance class'!$AF50/'Volume per connection'!$J$69)","v":116023.58239941584},{"$f":"BW$4*('COM-Appliance class'!$AF50/'Volume per connection'!$J$69)","v":116157.73997770603},{"$f":"BX$4*('COM-Appliance class'!$AF50/'Volume per connection'!$J$69)","v":116291.7418648071},{"$f":"BY$4*('COM-Appliance class'!$AF50/'Volume per connection'!$J$69)","v":116425.58901520268},{"$f":"BZ$4*('COM-Appliance class'!$AF50/'Volume per connection'!$J$69)","v":116559.28237747369},{"$f":"CA$4*('COM-Appliance class'!$AF50/'Volume per connection'!$J$69)","v":116692.82289433668},{"$f":"CB$4*('COM-Appliance class'!$AF50/'Volume per connection'!$J$69)","v":116826.21150267957},{"$f":"CC$4*('COM-Appliance class'!$AF50/'Volume per connection'!$J$69)","v":116959.44913359919},{"$f":"CD$4*('COM-Appliance class'!$AF50/'Volume per connection'!$J$69)","v":117092.53671243686}]
["Casey (C)",null,{"$f":"C$4*('COM-Appliance class'!$AF51/'Volume per connection'!$J$69)","v":42164.403370161061},{"$f":"D$4*('COM-Appliance class'!$AF51/'Volume per connection'!$J$69)","v":51825.49118091767},{"$f":"E$4*('COM-Appliance class'!$AF51/'Volume per connection'!$J$69)","v":46053.239918579733},{"$f":"F$4*('COM-Appliance class'!$AF51/'Volume per connection'!$J$69)","v":51229.066368110733},{"$f":"G$4*('COM-Appliance class'!$AF51/'Volume per connection'!$J$69)","v":45103.968872765829},{"$f":"H$4*('COM-Appliance class'!$AF51/'Volume per connection'!$J$69)","v":46300.247938334207},{"$f":"I$4*('COM-Appliance class'!$AF51/'Volume per connection'!$J$69)","v":53694.179320582654},{"$f":"J$4*('COM-Appliance class'!$AF51/'Volume per connection'!$J$69)","v":59087.008389643976},{"$f":"K$4*('COM-Appliance class'!$AF51/'Volume per connection'!$J$69)","v":70735.041488983028},{"$f":"L$4*('COM-Appliance class'!$AF51/'Volume per connection'!$J$69)","v":70134.124340229435},{"$f":"M$4*('COM-Appliance class'!$AF51/'Volume per connection'!$J$69)","v":56986.395900701391},{"$f":"N$4*('COM-Appliance class'!$AF51/'Volume per connection'!$J$69)","v":56720.323070141581},{"$f":"O$4*('COM-Appliance class'!$AF51/'Volume per connection'!$J$69)","v":64547.746047525528},{"$f":"P$4*('COM-Appliance class'!$AF51/'Volume per connection'!$J$69)","v":72123.649274890675},{"$f":"Q$4*('COM-Appliance class'!$AF51/'Volume per connection'!$J$69)","v":50221.534031791249},{"$f":"R$4*('COM-Appliance class'!$AF51/'Volume per connection'!$J$69)","v":53346.959778677432},{"$f":"S$4*('COM-Appliance class'!$AF51/'Volume per connection'!$J$69)","v":57984.458786415453},{"$f":"T$4*('COM-Appliance class'!$AF51/'Volume per connection'!$J$69)","v":64773.154068409131},{"$f":"U$4*('COM-Appliance class'!$AF51/'Volume per connection'!$J$69)","v":69824.872601208262},{"$f":"V$4*('COM-Appliance class'!$AF51/'Volume per connection'!$J$69)","v":71678.554928266953},{"$f":"W$4*('COM-Appliance class'!$AF51/'Volume per connection'!$J$69)","v":74698.600164490301},{"$f":"X$4*('COM-Appliance class'!$AF51/'Volume per connection'!$J$69)","v":82180.897612225948},{"$f":"Y$4*('COM-Appliance class'!$AF51/'Volume per connection'!$J$69)","v":88397.643779156264},{"$f":"Z$4*('COM-Appliance class'!$AF51/'Volume per connection'!$J$69)","v":91907.472455084629},{"$f":"AA$4*('COM-Appliance class'!$AF51/'Volume per connection'!$J$69)","v":95895.77385722271},{"$f":"AB$4*('COM-Appliance class'!$AF51/'Volume per connection'!$J$69)","v":98398.109531536786},{"$f":"AC$4*('COM-Appliance class'!$AF51/'Volume per connection'!$J$69)","v":100209.39290348376},{"$f":"AD$4*('COM-Appliance class'!$AF51/'Volume per connection'!$J$69)","v":101506.27627262591},{"$f":"AE$4*('COM-Appliance class'!$AF51/'Volume per connection'!$J$69)","v":102593.11721268052},{"$f":"AF$4*('COM-Appliance class'!$AF51/'Volume per connection'!$J$69)","v":104615.58185719964},{"$f":"AG$4*('COM-Appliance class'!$AF51/'Volume per connection'!$J$69)","v":104712.74743735341},{"$f":"AH$4*('COM-Appliance class'!$AF51/'Volume per connection'!$J$69)","v":106834.36004295376},{"$f":"AI$4*('COM-Appliance class'!$AF51/'Volume per connection'!$J$69)","v":106970.89304725677},{"$f":"AJ$4*('COM-Appliance class'!$AF51/'Volume per connection'!$J$69)","v":107107.23352297637},{"$f":"AK$4*('COM-Appliance class'!$AF51/'Volume per connection'!$J$69)","v":107243.3826531973},{"$f":"AL$4*('COM-Appliance class'!$AF51/'Volume per connection'!$J$69)","v":107379.34161366046},{"$f":"AM$4*('COM-Appliance class'!$AF51/'Volume per connection'!$J$69)","v":107515.11157280936},{"$f":"AN$4*('COM-Appliance class'!$AF51/'Volume per connection'!$J$69)","v":107650.69369183552},{"$f":"AO$4*('COM-Appliance class'!$AF51/'Volume per connection'!$J$69)","v":107786.08912472491},{"$f":"AP$4*('COM-Appliance class'!$AF51/'Volume per connection'!$J$69)","v":107921.29901830255},{"$f":"AQ$4*('COM-Appliance class'!$AF51/'Volume per connection'!$J$69)","v":108056.32451227833},{"$f":"AR$4*('COM-Appliance class'!$AF51/'Volume per connection'!$J$69)","v":108191.16673929115},{"$f":"AS$4*('COM-Appliance class'!$AF51/'Volume per connection'!$J$69)","v":108325.82682495406},{"$f":"AT$4*('COM-Appliance class'!$AF51/'Volume per connection'!$J$69)","v":108460.30588789782},{"$f":"AU$4*('COM-Appliance class'!$AF51/'Volume per connection'!$J$69)","v":108594.60503981561},{"$f":"AV$4*('COM-Appliance class'!$AF51/'Volume per connection'!$J$69)","v":108728.72538550597},{"$f":"AW$4*('COM-Appliance class'!$AF51/'Volume per connection'!$J$69)","v":108862.66802291684},{"$f":"AX$4*('COM-Appliance class'!$AF51/'Volume per connection'!$J$69)","v":108996.43404318817},{"$f":"AY$4*('COM-Appliance class'!$AF51/'Volume per connection'!$J$69)","v":109130.02453069513},{"$f":"AZ$4*('COM-Appliance class'!$AF51/'Volume per connection'!$J$69)","v":109263.44056309041},{"$f":"BA$4*('COM-Appliance class'!$AF51/'Volume per connection'!$J$69)","v":109396.68321134696},{"$f":"BB$4*('COM-Appliance class'!$AF51/'Volume per connection'!$J$69)","v":109529.75353979925},{"$f":"BC$4*('COM-Appliance class'!$AF51/'Volume per connection'!$J$69)","v":109662.65260618606},{"$f":"BD$4*('COM-Appliance class'!$AF51/'Volume per connection'!$J$69)","v":109795.38146169099},{"$f":"BE$4*('COM-Appliance class'!$AF51/'Volume per connection'!$J$69)","v":109927.9411509846},{"$f":"BF$4*('COM-Appliance class'!$AF51/'Volume per connection'!$J$69)","v":110060.33271226459},{"$f":"BG$4*('COM-Appliance class'!$AF51/'Volume per connection'!$J$69)","v":110192.55717729701},{"$f":"BH$4*('COM-Appliance class'!$AF51/'Volume per connection'!$J$69)","v":110324.6155714567},{"$f":"BI$4*('COM-Appliance class'!$AF51/'Volume per connection'!$J$69)","v":110456.50891376739},{"$f":"BJ$4*('COM-Appliance class'!$AF51/'Volume per connection'!$J$69)","v":110588.23821694145},{"$f":"BK$4*('COM-Appliance class'!$AF51/'Volume per connection'!$J$69)","v":110719.80448742006},{"$f":"BL$4*('COM-Appliance class'!$AF51/'Volume per connection'!$J$69)","v":110851.20872541214},{"$f":"BM$4*('COM-Appliance class'!$AF51/'Volume per connection'!$J$69)","v":110982.45192493418},{"$f":"BN$4*('COM-Appliance class'!$AF51/'Volume per connection'!$J$69)","v":111113.53507384827},{"$f":"BO$4*('COM-Appliance class'!$AF51/'Volume per connection'!$J$69)","v":111244.45915390181},{"$f":"BP$4*('COM-Appliance class'!$AF51/'Volume per connection'!$J$69)","v":111375.22514076515},{"$f":"BQ$4*('COM-Appliance class'!$AF51/'Volume per connection'!$J$69)","v":111505.83400407044},{"$f":"BR$4*('COM-Appliance class'!$AF51/'Volume per connection'!$J$69)","v":111636.28670744893},{"$f":"BS$4*('COM-Appliance class'!$AF51/'Volume per connection'!$J$69)","v":111766.58420856942},{"$f":"BT$4*('COM-Appliance class'!$AF51/'Volume per connection'!$J$69)","v":111896.72745917508},{"$f":"BU$4*('COM-Appliance class'!$AF51/'Volume per connection'!$J$69)","v":112026.71740512126},{"$f":"BV$4*('COM-Appliance class'!$AF51/'Volume per connection'!$J$69)","v":112156.55498641197},{"$f":"BW$4*('COM-Appliance class'!$AF51/'Volume per connection'!$J$69)","v":112286.24113723732},{"$f":"BX$4*('COM-Appliance class'!$AF51/'Volume per connection'!$J$69)","v":112415.7767860091},{"$f":"BY$4*('COM-Appliance class'!$AF51/'Volume per connection'!$J$69)","v":112545.1628553983},{"$f":"BZ$4*('COM-Appliance class'!$AF51/'Volume per connection'!$J$69)","v":112674.40026236999},{"$f":"CA$4*('COM-Appliance class'!$AF51/'Volume per connection'!$J$69)","v":112803.48991822029},{"$f":"CB$4*('COM-Appliance class'!$AF51/'Volume per connection'!$J$69)","v":112932.43272861092},{"$f":"CC$4*('COM-Appliance class'!$AF51/'Volume per connection'!$J$69)","v":113061.22959360559},{"$f":"CD$4*('COM-Appliance class'!$AF51/'Volume per connection'!$J$69)","v":113189.88140770429}]
["Frankston (C)",null,{"$f":"C$4*('COM-Appliance class'!$AF52/'Volume per connection'!$J$69)","v":0},{"$f":"D$4*('COM-Appliance class'!$AF52/'Volume per connection'!$J$69)","v":0},{"$f":"E$4*('COM-Appliance class'!$AF52/'Volume per connection'!$J$69)","v":0},{"$f":"F$4*('COM-Appliance class'!$AF52/'Volume per connection'!$J$69)","v":0},{"$f":"G$4*('COM-Appliance class'!$AF52/'Volume per connection'!$J$69)","v":0},{"$f":"H$4*('COM-Appliance class'!$AF52/'Volume per connection'!$J$69)","v":0},{"$f":"I$4*('COM-Appliance class'!$AF52/'Volume per connection'!$J$69)","v":0},{"$f":"J$4*('COM-Appliance class'!$AF52/'Volume per connection'!$J$69)","v":0},{"$f":"K$4*('COM-Appliance class'!$AF52/'Volume per connection'!$J$69)","v":0},{"$f":"L$4*('COM-Appliance class'!$AF52/'Volume per connection'!$J$69)","v":0},{"$f":"M$4*('COM-Appliance class'!$AF52/'Volume per connection'!$J$69)","v":0},{"$f":"N$4*('COM-Appliance class'!$AF52/'Volume per connection'!$J$69)","v":0},{"$f":"O$4*('COM-Appliance class'!$AF52/'Volume per connection'!$J$69)","v":0},{"$f":"P$4*('COM-Appliance class'!$AF52/'Volume per connection'!$J$69)","v":0},{"$f":"Q$4*('COM-Appliance class'!$AF52/'Volume per connection'!$J$69)","v":0},{"$f":"R$4*('COM-Appliance class'!$AF52/'Volume per connection'!$J$69)","v":0},{"$f":"S$4*('COM-Appliance class'!$AF52/'Volume per connection'!$J$69)","v":0},{"$f":"T$4*('COM-Appliance class'!$AF52/'Volume per connection'!$J$69)","v":0},{"$f":"U$4*('COM-Appliance class'!$AF52/'Volume per connection'!$J$69)","v":0},{"$f":"V$4*('COM-Appliance class'!$AF52/'Volume per connection'!$J$69)","v":0},{"$f":"W$4*('COM-Appliance class'!$AF52/'Volume per connection'!$J$69)","v":0},{"$f":"X$4*('COM-Appliance class'!$AF52/'Volume per connection'!$J$69)","v":0},{"$f":"Y$4*('COM-Appliance class'!$AF52/'Volume per connection'!$J$69)","v":0},{"$f":"Z$4*('COM-Appliance class'!$AF52/'Volume per connection'!$J$69)","v":0},{"$f":"AA$4*('COM-Appliance class'!$AF52/'Volume per connection'!$J$69)","v":0},{"$f":"AB$4*('COM-Appliance class'!$AF52/'Volume per connection'!$J$69)","v":0},{"$f":"AC$4*('COM-Appliance class'!$AF52/'Volume per connection'!$J$69)","v":0},{"$f":"AD$4*('COM-Appliance class'!$AF52/'Volume per connection'!$J$69)","v":0},{"$f":"AE$4*('COM-Appliance class'!$AF52/'Volume per connection'!$J$69)","v":0},{"$f":"AF$4*('COM-Appliance class'!$AF52/'Volume per connection'!$J$69)","v":0},{"$f":"AG$4*('COM-Appliance class'!$AF52/'Volume per connection'!$J$69)","v":0},{"$f":"AH$4*('COM-Appliance class'!$AF52/'Volume per connection'!$J$69)","v":0},{"$f":"AI$4*('COM-Appliance class'!$AF52/'Volume per connection'!$J$69)","v":0},{"$f":"AJ$4*('COM-Appliance class'!$AF52/'Volume per connection'!$J$69)","v":0},{"$f":"AK$4*('COM-Appliance class'!$AF52/'Volume per connection'!$J$69)","v":0},{"$f":"AL$4*('COM-Appliance class'!$AF52/'Volume per connection'!$J$69)","v":0},{"$f":"AM$4*('COM-Appliance class'!$AF52/'Volume per connection'!$J$69)","v":0},{"$f":"AN$4*('COM-Appliance class'!$AF52/'Volume per connection'!$J$69)","v":0},{"$f":"AO$4*('COM-Appliance class'!$AF52/'Volume per connection'!$J$69)","v":0},{"$f":"AP$4*('COM-Appliance class'!$AF52/'Volume per connection'!$J$69)","v":0},{"$f":"AQ$4*('COM-Appliance class'!$AF52/'Volume per connection'!$J$69)","v":0},{"$f":"AR$4*('COM-Appliance class'!$AF52/'Volume per connection'!$J$69)","v":0},{"$f":"AS$4*('COM-Appliance class'!$AF52/'Volume per connection'!$J$69)","v":0},{"$f":"AT$4*('COM-Appliance class'!$AF52/'Volume per connection'!$J$69)","v":0},{"$f":"AU$4*('COM-Appliance class'!$AF52/'Volume per connection'!$J$69)","v":0},{"$f":"AV$4*('COM-Appliance class'!$AF52/'Volume per connection'!$J$69)","v":0},{"$f":"AW$4*('COM-Appliance class'!$AF52/'Volume per connection'!$J$69)","v":0},{"$f":"AX$4*('COM-Appliance class'!$AF52/'Volume per connection'!$J$69)","v":0},{"$f":"AY$4*('COM-Appliance class'!$AF52/'Volume per connection'!$J$69)","v":0},{"$f":"AZ$4*('COM-Appliance class'!$AF52/'Volume per connection'!$J$69)","v":0},{"$f":"BA$4*('COM-Appliance class'!$AF52/'Volume per connection'!$J$69)","v":0},{"$f":"BB$4*('COM-Appliance class'!$AF52/'Volume per connection'!$J$69)","v":0},{"$f":"BC$4*('COM-Appliance class'!$AF52/'Volume per connection'!$J$69)","v":0},{"$f":"BD$4*('COM-Appliance class'!$AF52/'Volume per connection'!$J$69)","v":0},{"$f":"BE$4*('COM-Appliance class'!$AF52/'Volume per connection'!$J$69)","v":0},{"$f":"BF$4*('COM-Appliance class'!$AF52/'Volume per connection'!$J$69)","v":0},{"$f":"BG$4*('COM-Appliance class'!$AF52/'Volume per connection'!$J$69)","v":0},{"$f":"BH$4*('COM-Appliance class'!$AF52/'Volume per connection'!$J$69)","v":0},{"$f":"BI$4*('COM-Appliance class'!$AF52/'Volume per connection'!$J$69)","v":0},{"$f":"BJ$4*('COM-Appliance class'!$AF52/'Volume per connection'!$J$69)","v":0},{"$f":"BK$4*('COM-Appliance class'!$AF52/'Volume per connection'!$J$69)","v":0},{"$f":"BL$4*('COM-Appliance class'!$AF52/'Volume per connection'!$J$69)","v":0},{"$f":"BM$4*('COM-Appliance class'!$AF52/'Volume per connection'!$J$69)","v":0},{"$f":"BN$4*('COM-Appliance class'!$AF52/'Volume per connection'!$J$69)","v":0},{"$f":"BO$4*('COM-Appliance class'!$AF52/'Volume per connection'!$J$69)","v":0},{"$f":"BP$4*('COM-Appliance class'!$AF52/'Volume per connection'!$J$69)","v":0},{"$f":"BQ$4*('COM-Appliance class'!$AF52/'Volume per connection'!$J$69)","v":0},{"$f":"BR$4*('COM-Appliance class'!$AF52/'Volume per connection'!$J$69)","v":0},{"$f":"BS$4*('COM-Appliance class'!$AF52/'Volume per connection'!$J$69)","v":0},{"$f":"BT$4*('COM-Appliance class'!$AF52/'Volume per connection'!$J$69)","v":0},{"$f":"BU$4*('COM-Appliance class'!$AF52/'Volume per connection'!$J$69)","v":0},{"$f":"BV$4*('COM-Appliance class'!$AF52/'Volume per connection'!$J$69)","v":0},{"$f":"BW$4*('COM-Appliance class'!$AF52/'Volume per connection'!$J$69)","v":0},{"$f":"BX$4*('COM-Appliance class'!$AF52/'Volume per connection'!$J$69)","v":0},{"$f":"BY$4*('COM-Appliance class'!$AF52/'Volume per connection'!$J$69)","v":0},{"$f":"BZ$4*('COM-Appliance class'!$AF52/'Volume per connection'!$J$69)","v":0},{"$f":"CA$4*('COM-Appliance class'!$AF52/'Volume per connection'!$J$69)","v":0},{"$f":"CB$4*('COM-Appliance class'!$AF52/'Volume per connection'!$J$69)","v":0},{"$f":"CC$4*('COM-Appliance class'!$AF52/'Volume per connection'!$J$69)","v":0},{"$f":"CD$4*('COM-Appliance class'!$AF52/'Volume per connection'!$J$69)","v":0}]
["Glen Eira (C)",null,{"$f":"C$4*('COM-Appliance class'!$AF53/'Volume per connection'!$J$69)","v":39909.472643504771},{"$f":"D$4*('COM-Appliance class'!$AF53/'Volume per connection'!$J$69)","v":49053.890419441996},{"$f":"E$4*('COM-Appliance class'!$AF53/'Volume per connection'!$J$69)","v":43590.336202314415},{"$f":"F$4*('COM-Appliance class'!$AF53/'Volume per connection'!$J$69)","v":48489.362100574072},{"$f":"G$4*('COM-Appliance class'!$AF53/'Volume per connection'!$J$69)","v":42691.831686512545},{"$f":"H$4*('COM-Appliance class'!$AF53/'Volume per connection'!$J$69)","v":43824.134359508163},{"$f":"I$4*('COM-Appliance class'!$AF53/'Volume per connection'!$J$69)","v":50822.64207316465},{"$f":"J$4*('COM-Appliance class'!$AF53/'Volume per connection'!$J$69)","v":55927.065401851207},{"$f":"K$4*('COM-Appliance class'!$AF53/'Volume per connection'!$J$69)","v":66952.167648588729},{"$f":"L$4*('COM-Appliance class'!$AF53/'Volume per connection'!$J$69)","v":66383.387241602919},{"$f":"M$4*('COM-Appliance class'!$AF53/'Volume per connection'!$J$69)","v":53938.792594429324},{"$f":"N$4*('COM-Appliance class'!$AF53/'Volume per connection'!$J$69)","v":53686.949202761149},{"$f":"O$4*('COM-Appliance class'!$AF53/'Volume per connection'!$J$69)","v":61095.765602760694},{"$f":"P$4*('COM-Appliance class'!$AF53/'Volume per connection'!$J$69)","v":68266.513400329102},{"$f":"Q$4*('COM-Appliance class'!$AF53/'Volume per connection'!$J$69)","v":47535.712078284305},{"$f":"R$4*('COM-Appliance class'!$AF53/'Volume per connection'!$J$69)","v":50493.99165477018},{"$f":"S$4*('COM-Appliance class'!$AF53/'Volume per connection'!$J$69)","v":54883.479587488771},{"$f":"T$4*('COM-Appliance class'!$AF53/'Volume per connection'!$J$69)","v":61309.11891797556},{"$f":"U$4*('COM-Appliance class'!$AF53/'Volume per connection'!$J$69)","v":66090.674127413411},{"$f":"V$4*('COM-Appliance class'!$AF53/'Volume per connection'!$J$69)","v":67845.22247171303},{"$f":"W$4*('COM-Appliance class'!$AF53/'Volume per connection'!$J$69)","v":70703.757233347962},{"$f":"X$4*('COM-Appliance class'!$AF53/'Volume per connection'!$J$69)","v":77785.905240505483},{"$f":"Y$4*('COM-Appliance class'!$AF53/'Volume per connection'!$J$69)","v":83670.183002071019},{"$f":"Z$4*('COM-Appliance class'!$AF53/'Volume per connection'!$J$69)","v":86992.307835562213},{"$f":"AA$4*('COM-Appliance class'!$AF53/'Volume per connection'!$J$69)","v":90767.316918587065},{"$f":"AB$4*('COM-Appliance class'!$AF53/'Volume per connection'!$J$69)","v":93135.828960893763},{"$f":"AC$4*('COM-Appliance class'!$AF53/'Volume per connection'!$J$69)","v":94850.245824515499},{"$f":"AD$4*('COM-Appliance class'!$AF53/'Volume per connection'!$J$69)","v":96077.772534385236},{"$f":"AE$4*('COM-Appliance class'!$AF53/'Volume per connection'!$J$69)","v":97106.489776845876},{"$f":"AF$4*('COM-Appliance class'!$AF53/'Volume per connection'!$J$69)","v":99020.794046594237},{"$f":"AG$4*('COM-Appliance class'!$AF53/'Volume per connection'!$J$69)","v":99112.763261218104},{"$f":"AH$4*('COM-Appliance class'!$AF53/'Volume per connection'!$J$69)","v":101120.91310979969},{"$f":"AI$4*('COM-Appliance class'!$AF53/'Volume per connection'!$J$69)","v":101250.14439886432},{"$f":"AJ$4*('COM-Appliance class'!$AF53/'Volume per connection'!$J$69)","v":101379.19345567569},{"$f":"AK$4*('COM-Appliance class'!$AF53/'Volume per connection'!$J$69)","v":101508.06140004779},{"$f":"AL$4*('COM-Appliance class'!$AF53/'Volume per connection'!$J$69)","v":101636.74934484353},{"$f":"AM$4*('COM-Appliance class'!$AF53/'Volume per connection'!$J$69)","v":101765.2583960186},{"$f":"AN$4*('COM-Appliance class'!$AF53/'Volume per connection'!$J$69)","v":101893.58965266464},{"$f":"AO$4*('COM-Appliance class'!$AF53/'Volume per connection'!$J$69)","v":102021.74420705301},{"$f":"AP$4*('COM-Appliance class'!$AF53/'Volume per connection'!$J$69)","v":102149.72314467712},{"$f":"AQ$4*('COM-Appliance class'!$AF53/'Volume per connection'!$J$69)","v":102277.52754429576},{"$f":"AR$4*('COM-Appliance class'!$AF53/'Volume per connection'!$J$69)","v":102405.15847797491},{"$f":"AS$4*('COM-Appliance class'!$AF53/'Volume per connection'!$J$69)","v":102532.61701113038},{"$f":"AT$4*('COM-Appliance class'!$AF53/'Volume per connection'!$J$69)","v":102659.90420256912},{"$f":"AU$4*('COM-Appliance class'!$AF53/'Volume per connection'!$J$69)","v":102787.02110453154},{"$f":"AV$4*('COM-Appliance class'!$AF53/'Volume per connection'!$J$69)","v":102913.96876273214},{"$f":"AW$4*('COM-Appliance class'!$AF53/'Volume per connection'!$J$69)","v":103040.74821640113},{"$f":"AX$4*('COM-Appliance class'!$AF53/'Volume per connection'!$J$69)","v":103167.36049832487},{"$f":"AY$4*('COM-Appliance class'!$AF53/'Volume per connection'!$J$69)","v":103293.8066348867},{"$f":"AZ$4*('COM-Appliance class'!$AF53/'Volume per connection'!$J$69)","v":103420.08764610699},{"$f":"BA$4*('COM-Appliance class'!$AF53/'Volume per connection'!$J$69)","v":103546.20454568361},{"$f":"BB$4*('COM-Appliance class'!$AF53/'Volume per connection'!$J$69)","v":103672.15834103097},{"$f":"BC$4*('COM-Appliance class'!$AF53/'Volume per connection'!$J$69)","v":103797.95003332054},{"$f":"BD$4*('COM-Appliance class'!$AF53/'Volume per connection'!$J$69)","v":103923.58061751911},{"$f":"BE$4*('COM-Appliance class'!$AF53/'Volume per connection'!$J$69)","v":104049.05108242881},{"$f":"BF$4*('COM-Appliance class'!$AF53/'Volume per connection'!$J$69)","v":104174.36241072508},{"$f":"BG$4*('COM-Appliance class'!$AF53/'Volume per connection'!$J$69)","v":104299.51557899565},{"$f":"BH$4*('COM-Appliance class'!$AF53/'Volume per connection'!$J$69)","v":104424.51155777881},{"$f":"BI$4*('COM-Appliance class'!$AF53/'Volume per connection'!$J$69)","v":104549.35131160144},{"$f":"BJ$4*('COM-Appliance class'!$AF53/'Volume per connection'!$J$69)","v":104674.03579901655},{"$f":"BK$4*('COM-Appliance class'!$AF53/'Volume per connection'!$J$69)","v":104798.5659726414},{"$f":"BL$4*('COM-Appliance class'!$AF53/'Volume per connection'!$J$69)","v":104922.94277919423},{"$f":"BM$4*('COM-Appliance class'!$AF53/'Volume per connection'!$J$69)","v":105047.16715953201},{"$f":"BN$4*('COM-Appliance class'!$AF53/'Volume per connection'!$J$69)","v":105171.24004868649},{"$f":"BO$4*('COM-Appliance class'!$AF53/'Volume per connection'!$J$69)","v":105295.16237590175},{"$f":"BP$4*('COM-Appliance class'!$AF53/'Volume per connection'!$J$69)","v":105418.93506466976},{"$f":"BQ$4*('COM-Appliance class'!$AF53/'Volume per connection'!$J$69)","v":105542.55903276721},{"$f":"BR$4*('COM-Appliance class'!$AF53/'Volume per connection'!$J$69)","v":105666.0351922909},{"$f":"BS$4*('COM-Appliance class'!$AF53/'Volume per connection'!$J$69)","v":105789.36444969397},{"$f":"BT$4*('COM-Appliance class'!$AF53/'Volume per connection'!$J$69)","v":105912.54770582083},{"$f":"BU$4*('COM-Appliance class'!$AF53/'Volume per connection'!$J$69)","v":106035.58585594302},{"$f":"BV$4*('COM-Appliance class'!$AF53/'Volume per connection'!$J$69)","v":106158.47978979356},{"$f":"BW$4*('COM-Appliance class'!$AF53/'Volume per connection'!$J$69)","v":106281.23039160258},{"$f":"BX$4*('COM-Appliance class'!$AF53/'Volume per connection'!$J$69)","v":106403.83854013089},{"$f":"BY$4*('COM-Appliance class'!$AF53/'Volume per connection'!$J$69)","v":106526.30510870549},{"$f":"BZ$4*('COM-Appliance class'!$AF53/'Volume per connection'!$J$69)","v":106648.63096525264},{"$f":"CA$4*('COM-Appliance class'!$AF53/'Volume per connection'!$J$69)","v":106770.81697233279},{"$f":"CB$4*('COM-Appliance class'!$AF53/'Volume per connection'!$J$69)","v":106892.86398717335},{"$f":"CC$4*('COM-Appliance class'!$AF53/'Volume per connection'!$J$69)","v":107014.77286170308},{"$f":"CD$4*('COM-Appliance class'!$AF53/'Volume per connection'!$J$69)","v":107136.54444258458}]
["Greater Dandenong (C)",null,{"$f":"C$4*('COM-Appliance class'!$AF54/'Volume per connection'!$J$69)","v":39817.920238030965},{"$f":"D$4*('COM-Appliance class'!$AF54/'Volume per connection'!$J$69)","v":48941.360702352904},{"$f":"E$4*('COM-Appliance class'!$AF54/'Volume per connection'!$J$69)","v":43490.339888898248},{"$f":"F$4*('COM-Appliance class'!$AF54/'Volume per connection'!$J$69)","v":48378.1274125126},{"$f":"G$4*('COM-Appliance class'!$AF54/'Volume per connection'!$J$69)","v":42593.896544149313},{"$f":"H$4*('COM-Appliance class'!$AF54/'Volume per connection'!$J$69)","v":43723.601712678683},{"$f":"I$4*('COM-Appliance class'!$AF54/'Volume per connection'!$J$69)","v":50706.054836447809},{"$f":"J$4*('COM-Appliance class'!$AF54/'Volume per connection'!$J$69)","v":55798.768608396487},{"$f":"K$4*('COM-Appliance class'!$AF54/'Volume per connection'!$J$69)","v":66798.579249797607},{"$f":"L$4*('COM-Appliance class'!$AF54/'Volume per connection'!$J$69)","v":66231.10362613757},{"$f":"M$4*('COM-Appliance class'!$AF54/'Volume per connection'!$J$69)","v":53815.056902542747},{"$f":"N$4*('COM-Appliance class'!$AF54/'Volume per connection'!$J$69)","v":53563.791240089784},{"$f":"O$4*('COM-Appliance class'!$AF54/'Volume per connection'!$J$69)","v":60955.61180130206},{"$f":"P$4*('COM-Appliance class'!$AF54/'Volume per connection'!$J$69)","v":68109.909889905946},{"$f":"Q$4*('COM-Appliance class'!$AF54/'Volume per connection'!$J$69)","v":47426.665065171605},{"$f":"R$4*('COM-Appliance class'!$AF54/'Volume per connection'!$J$69)","v":50378.158342732648},{"$f":"S$4*('COM-Appliance class'!$AF54/'Volume per connection'!$J$69)","v":54757.576781859367},{"$f":"T$4*('COM-Appliance class'!$AF54/'Volume per connection'!$J$69)","v":61168.475683609649},{"$f":"U$4*('COM-Appliance class'!$AF54/'Volume per connection'!$J$69)","v":65939.061996383796},{"$f":"V$4*('COM-Appliance class'!$AF54/'Volume per connection'!$J$69)","v":67689.585403474252},{"$f":"W$4*('COM-Appliance class'!$AF54/'Volume per connection'!$J$69)","v":70541.562680977644},{"$f":"X$4*('COM-Appliance class'!$AF54/'Volume per connection'!$J$69)","v":77607.464227256845},{"$f":"Y$4*('COM-Appliance class'!$AF54/'Volume per connection'!$J$69)","v":83478.243444545456},{"$f":"Z$4*('COM-Appliance class'!$AF54/'Volume per connection'!$J$69)","v":86792.747317406393},{"$f":"AA$4*('COM-Appliance class'!$AF54/'Volume per connection'!$J$69)","v":90559.096522478867},{"$f":"AB$4*('COM-Appliance class'!$AF54/'Volume per connection'!$J$69)","v":92922.175193695846},{"$f":"AC$4*('COM-Appliance class'!$AF54/'Volume per connection'!$J$69)","v":94632.659181800758},{"$f":"AD$4*('COM-Appliance class'!$AF54/'Volume per connection'!$J$69)","v":95857.369943084152},{"$f":"AE$4*('COM-Appliance class'!$AF54/'Volume per connection'!$J$69)","v":96883.727306251458},{"$f":"AF$4*('COM-Appliance class'!$AF54/'Volume per connection'!$J$69)","v":98793.640158396534},{"$f":"AG$4*('COM-Appliance class'!$AF54/'Volume per connection'!$J$69)","v":98885.398395468685},{"$f":"AH$4*('COM-Appliance class'!$AF54/'Volume per connection'!$J$69)","v":100888.94154451226},{"$f":"AI$4*('COM-Appliance class'!$AF54/'Volume per connection'!$J$69)","v":101017.87637675616},{"$f":"AJ$4*('COM-Appliance class'!$AF54/'Volume per connection'!$J$69)","v":101146.62939478796},{"$f":"AK$4*('COM-Appliance class'!$AF54/'Volume per connection'!$J$69)","v":101275.20171585276},{"$f":"AL$4*('COM-Appliance class'!$AF54/'Volume per connection'!$J$69)","v":101403.59445026054},{"$f":"AM$4*('COM-Appliance class'!$AF54/'Volume per connection'!$J$69)","v":101531.80870143},{"$f":"AN$4*('COM-Appliance class'!$AF54/'Volume per connection'!$J$69)","v":101659.84556593138},{"$f":"AO$4*('COM-Appliance class'!$AF54/'Volume per connection'!$J$69)","v":101787.7061335304},{"$f":"AP$4*('COM-Appliance class'!$AF54/'Volume per connection'!$J$69)","v":101915.39148723037},{"$f":"AQ$4*('COM-Appliance class'!$AF54/'Volume per connection'!$J$69)","v":102042.90270331538},{"$f":"AR$4*('COM-Appliance class'!$AF54/'Volume per connection'!$J$69)","v":102170.24085139207},{"$f":"AS$4*('COM-Appliance class'!$AF54/'Volume per connection'!$J$69)","v":102297.40699443221},{"$f":"AT$4*('COM-Appliance class'!$AF54/'Volume per connection'!$J$69)","v":102424.40218881387},{"$f":"AU$4*('COM-Appliance class'!$AF54/'Volume per connection'!$J$69)","v":102551.22748436357},{"$f":"AV$4*('COM-Appliance class'!$AF54/'Volume per connection'!$J$69)","v":102677.88392439696},{"$f":"AW$4*('COM-Appliance class'!$AF54/'Volume per connection'!$J$69)","v":102804.37254576024},{"$f":"AX$4*('COM-Appliance class'!$AF54/'Volume per connection'!$J$69)","v":102930.69437887058},{"$f":"AY$4*('COM-Appliance class'!$AF54/'Volume per connection'!$J$69)","v":103056.85044775679},{"$f":"AZ$4*('COM-Appliance class'!$AF54/'Volume per connection'!$J$69)","v":103182.8417700993},{"$f":"BA$4*('COM-Appliance class'!$AF54/'Volume per connection'!$J$69)","v":103308.66935727057},{"$f":"BB$4*('COM-Appliance class'!$AF54/'Volume per connection'!$J$69)","v":103434.33421437399},{"$f":"BC$4*('COM-Appliance class'!$AF54/'Volume per connection'!$J$69)","v":103559.83734028431},{"$f":"BD$4*('COM-Appliance class'!$AF54/'Volume per connection'!$J$69)","v":103685.17972768591},{"$f":"BE$4*('COM-Appliance class'!$AF54/'Volume per connection'!$J$69)","v":103810.36236311261},{"$f":"BF$4*('COM-Appliance class'!$AF54/'Volume per connection'!$J$69)","v":103935.38622698555},{"$f":"BG$4*('COM-Appliance class'!$AF54/'Volume per connection'!$J$69)","v":104060.2522936522},{"$f":"BH$4*('COM-Appliance class'!$AF54/'Volume per connection'!$J$69)","v":104184.9615314244},{"$f":"BI$4*('COM-Appliance class'!$AF54/'Volume per connection'!$J$69)","v":104309.51490261644},{"$f":"BJ$4*('COM-Appliance class'!$AF54/'Volume per connection'!$J$69)","v":104433.9133635824},{"$f":"BK$4*('COM-Appliance class'!$AF54/'Volume per connection'!$J$69)","v":104558.1578647542},{"$f":"BL$4*('COM-Appliance class'!$AF54/'Volume per connection'!$J$69)","v":104682.24935067835},{"$f":"BM$4*('COM-Appliance class'!$AF54/'Volume per connection'!$J$69)","v":104806.18876005347},{"$f":"BN$4*('COM-Appliance class'!$AF54/'Volume per connection'!$J$69)","v":104929.97702576636},{"$f":"BO$4*('COM-Appliance class'!$AF54/'Volume per connection'!$J$69)","v":105053.61507492939},{"$f":"BP$4*('COM-Appliance class'!$AF54/'Volume per connection'!$J$69)","v":105177.10382891605},{"$f":"BQ$4*('COM-Appliance class'!$AF54/'Volume per connection'!$J$69)","v":105300.44420339765},{"$f":"BR$4*('COM-Appliance class'!$AF54/'Volume per connection'!$J$69)","v":105423.63710837865},{"$f":"BS$4*('COM-Appliance class'!$AF54/'Volume per connection'!$J$69)","v":105546.68344823277},{"$f":"BT$4*('COM-Appliance class'!$AF54/'Volume per connection'!$J$69)","v":105669.58412173788},{"$f":"BU$4*('COM-Appliance class'!$AF54/'Volume per connection'!$J$69)","v":105792.34002211175},{"$f":"BV$4*('COM-Appliance class'!$AF54/'Volume per connection'!$J$69)","v":105914.95203704637},{"$f":"BW$4*('COM-Appliance class'!$AF54/'Volume per connection'!$J$69)","v":106037.42104874346},{"$f":"BX$4*('COM-Appliance class'!$AF54/'Volume per connection'!$J$69)","v":106159.74793394792},{"$f":"BY$4*('COM-Appliance class'!$AF54/'Volume per connection'!$J$69)","v":106281.93356398337},{"$f":"BZ$4*('COM-Appliance class'!$AF54/'Volume per connection'!$J$69)","v":106403.97880478502},{"$f":"CA$4*('COM-Appliance class'!$AF54/'Volume per connection'!$J$69)","v":106525.8845169346},{"$f":"CB$4*('COM-Appliance class'!$AF54/'Volume per connection'!$J$69)","v":106647.65155569305},{"$f":"CC$4*('COM-Appliance class'!$AF54/'Volume per connection'!$J$69)","v":106769.28077103483},{"$f":"CD$4*('COM-Appliance class'!$AF54/'Volume per connection'!$J$69)","v":106890.77300768023}]
["Kingston (C)",null,{"$f":"C$4*('COM-Appliance class'!$AF55/'Volume per connection'!$J$69)","v":40346.601846025071},{"$f":"D$4*('COM-Appliance class'!$AF55/'Volume per connection'!$J$69)","v":49591.178601400949},{"$f":"E$4*('COM-Appliance class'!$AF55/'Volume per connection'!$J$69)","v":44067.781972443147},{"$f":"F$4*('COM-Appliance class'!$AF55/'Volume per connection'!$J$69)","v":49020.466993266557},{"$f":"G$4*('COM-Appliance class'!$AF55/'Volume per connection'!$J$69)","v":43159.436119824786},{"$f":"H$4*('COM-Appliance class'!$AF55/'Volume per connection'!$J$69)","v":44304.140925238426},{"$f":"I$4*('COM-Appliance class'!$AF55/'Volume per connection'!$J$69)","v":51379.303425166581},{"$f":"J$4*('COM-Appliance class'!$AF55/'Volume per connection'!$J$69)","v":56539.635598325374},{"$f":"K$4*('COM-Appliance class'!$AF55/'Volume per connection'!$J$69)","v":67685.495996789716},{"$f":"L$4*('COM-Appliance class'!$AF55/'Volume per connection'!$J$69)","v":67110.485727336505},{"$f":"M$4*('COM-Appliance class'!$AF55/'Volume per connection'!$J$69)","v":54529.585201546084},{"$f":"N$4*('COM-Appliance class'!$AF55/'Volume per connection'!$J$69)","v":54274.983364484673},{"$f":"O$4*('COM-Appliance class'!$AF55/'Volume per connection'!$J$69)","v":61764.948669494319},{"$f":"P$4*('COM-Appliance class'!$AF55/'Volume per connection'!$J$69)","v":69014.237802204516},{"$f":"Q$4*('COM-Appliance class'!$AF55/'Volume per connection'!$J$69)","v":48056.371624393265},{"$f":"R$4*('COM-Appliance class'!$AF55/'Volume per connection'!$J$69)","v":51047.053292574332},{"$f":"S$4*('COM-Appliance class'!$AF55/'Volume per connection'!$J$69)","v":55484.61936896175},{"$f":"T$4*('COM-Appliance class'!$AF55/'Volume per connection'!$J$69)","v":61980.638847572998},{"$f":"U$4*('COM-Appliance class'!$AF55/'Volume per connection'!$J$69)","v":66814.566520916327},{"$f":"V$4*('COM-Appliance class'!$AF55/'Volume per connection'!$J$69)","v":68588.332466144377},{"$f":"W$4*('COM-Appliance class'!$AF55/'Volume per connection'!$J$69)","v":71478.176812646343},{"$f":"X$4*('COM-Appliance class'!$AF55/'Volume per connection'!$J$69)","v":78637.895719779233},{"$f":"Y$4*('COM-Appliance class'!$AF55/'Volume per connection'!$J$69)","v":84586.624086049516},{"$f":"Z$4*('COM-Appliance class'!$AF55/'Volume per connection'!$J$69)","v":87945.136215161183},{"$f":"AA$4*('COM-Appliance class'!$AF55/'Volume per connection'!$J$69)","v":91761.493043487251},{"$f":"AB$4*('COM-Appliance class'!$AF55/'Volume per connection'!$J$69)","v":94155.947442623918},{"$f":"AC$4*('COM-Appliance class'!$AF55/'Volume per connection'!$J$69)","v":95889.142346313398},{"$f":"AD$4*('COM-Appliance class'!$AF55/'Volume per connection'!$J$69)","v":97130.114179263328},{"$f":"AE$4*('COM-Appliance class'!$AF55/'Volume per connection'!$J$69)","v":98170.098980978204},{"$f":"AF$4*('COM-Appliance class'!$AF55/'Volume per connection'!$J$69)","v":100105.37066130327},{"$f":"AG$4*('COM-Appliance class'!$AF55/'Volume per connection'!$J$69)","v":100198.34721646016},{"$f":"AH$4*('COM-Appliance class'!$AF55/'Volume per connection'!$J$69)","v":102228.49236800383},{"$f":"AI$4*('COM-Appliance class'!$AF55/'Volume per connection'!$J$69)","v":102359.13912980181},{"$f":"AJ$4*('COM-Appliance class'!$AF55/'Volume per connection'!$J$69)","v":102489.60166335327},{"$f":"AK$4*('COM-Appliance class'!$AF55/'Volume per connection'!$J$69)","v":102619.8811007375},{"$f":"AL$4*('COM-Appliance class'!$AF55/'Volume per connection'!$J$69)","v":102749.97856700662},{"$f":"AM$4*('COM-Appliance class'!$AF55/'Volume per connection'!$J$69)","v":102879.8951802299},{"$f":"AN$4*('COM-Appliance class'!$AF55/'Volume per connection'!$J$69)","v":103009.63205153732},{"$f":"AO$4*('COM-Appliance class'!$AF55/'Volume per connection'!$J$69)","v":103139.19028516395},{"$f":"AP$4*('COM-Appliance class'!$AF55/'Volume per connection'!$J$69)","v":103268.57097849259},{"$f":"AQ$4*('COM-Appliance class'!$AF55/'Volume per connection'!$J$69)","v":103397.77522209773},{"$f":"AR$4*('COM-Appliance class'!$AF55/'Volume per connection'!$J$69)","v":103526.80409978767},{"$f":"AS$4*('COM-Appliance class'!$AF55/'Volume per connection'!$J$69)","v":103655.65868864775},{"$f":"AT$4*('COM-Appliance class'!$AF55/'Volume per connection'!$J$69)","v":103784.34005908208},{"$f":"AU$4*('COM-Appliance class'!$AF55/'Volume per connection'!$J$69)","v":103912.84927485627},{"$f":"AV$4*('COM-Appliance class'!$AF55/'Volume per connection'!$J$69)","v":104041.18739313853},{"$f":"AW$4*('COM-Appliance class'!$AF55/'Volume per connection'!$J$69)","v":104169.35546454179},{"$f":"AX$4*('COM-Appliance class'!$AF55/'Volume per connection'!$J$69)","v":104297.35453316454},{"$f":"AY$4*('COM-Appliance class'!$AF55/'Volume per connection'!$J$69)","v":104425.18563663213},{"$f":"AZ$4*('COM-Appliance class'!$AF55/'Volume per connection'!$J$69)","v":104552.84980613719},{"$f":"BA$4*('COM-Appliance class'!$AF55/'Volume per connection'!$J$69)","v":104680.34806648068},{"$f":"BB$4*('COM-Appliance class'!$AF55/'Volume per connection'!$J$69)","v":104807.68143611125},{"$f":"BC$4*('COM-Appliance class'!$AF55/'Volume per connection'!$J$69)","v":104934.85092716615},{"$f":"BD$4*('COM-Appliance class'!$AF55/'Volume per connection'!$J$69)","v":105061.85754551015},{"$f":"BE$4*('COM-Appliance class'!$AF55/'Volume per connection'!$J$69)","v":105188.70229077568},{"$f":"BF$4*('COM-Appliance class'!$AF55/'Volume per connection'!$J$69)","v":105315.38615640148},{"$f":"BG$4*('COM-Appliance class'!$AF55/'Volume per connection'!$J$69)","v":105441.91012967184},{"$f":"BH$4*('COM-Appliance class'!$AF55/'Volume per connection'!$J$69)","v":105568.2751917554},{"$f":"BI$4*('COM-Appliance class'!$AF55/'Volume per connection'!$J$69)","v":105694.4823177435},{"$f":"BJ$4*('COM-Appliance class'!$AF55/'Volume per connection'!$J$69)","v":105820.53247668821},{"$f":"BK$4*('COM-Appliance class'!$AF55/'Volume per connection'!$J$69)","v":105946.42663164082},{"$f":"BL$4*('COM-Appliance class'!$AF55/'Volume per connection'!$J$69)","v":106072.16573968898},{"$f":"BM$4*('COM-Appliance class'!$AF55/'Volume per connection'!$J$69)","v":106197.7507519949},{"$f":"BN$4*('COM-Appliance class'!$AF55/'Volume per connection'!$J$69)","v":106323.18261383177},{"$f":"BO$4*('COM-Appliance class'!$AF55/'Volume per connection'!$J$69)","v":106448.46226462166},{"$f":"BP$4*('COM-Appliance class'!$AF55/'Volume per connection'!$J$69)","v":106573.59063797157},{"$f":"BQ$4*('COM-Appliance class'!$AF55/'Volume per connection'!$J$69)","v":106698.56866171064},{"$f":"BR$4*('COM-Appliance class'!$AF55/'Volume per connection'!$J$69)","v":106823.39725792587},{"$f":"BS$4*('COM-Appliance class'!$AF55/'Volume per connection'!$J$69)","v":106948.07734299879},{"$f":"BT$4*('COM-Appliance class'!$AF55/'Volume per connection'!$J$69)","v":107072.60982764079},{"$f":"BU$4*('COM-Appliance class'!$AF55/'Volume per connection'!$J$69)","v":107196.99561692931},{"$f":"BV$4*('COM-Appliance class'!$AF55/'Volume per connection'!$J$69)","v":107321.23561034267},{"$f":"BW$4*('COM-Appliance class'!$AF55/'Volume per connection'!$J$69)","v":107445.33070179597},{"$f":"BX$4*('COM-Appliance class'!$AF55/'Volume per connection'!$J$69)","v":107569.28177967509},{"$f":"BY$4*('COM-Appliance class'!$AF55/'Volume per connection'!$J$69)","v":107693.08972687263},{"$f":"BZ$4*('COM-Appliance class'!$AF55/'Volume per connection'!$J$69)","v":107816.75542082122},{"$f":"CA$4*('COM-Appliance class'!$AF55/'Volume per connection'!$J$69)","v":107940.27973352899},{"$f":"CB$4*('COM-Appliance class'!$AF55/'Volume per connection'!$J$69)","v":108063.66353161256},{"$f":"CC$4*('COM-Appliance class'!$AF55/'Volume per connection'!$J$69)","v":108186.90767633189},{"$f":"CD$4*('COM-Appliance class'!$AF55/'Volume per connection'!$J$69)","v":108310.01302362308}]
["Knox (C)",null,{"$f":"C$4*('COM-Appliance class'!$AF56/'Volume per connection'!$J$69)","v":40344.914179124054},{"$f":"D$4*('COM-Appliance class'!$AF56/'Volume per connection'!$J$69)","v":49589.104241061315},{"$f":"E$4*('COM-Appliance class'!$AF56/'Volume per connection'!$J$69)","v":44065.938651478471},{"$f":"F$4*('COM-Appliance class'!$AF56/'Volume per connection'!$J$69)","v":49018.41650534857},{"$f":"G$4*('COM-Appliance class'!$AF56/'Volume per connection'!$J$69)","v":43157.630794258977},{"$f":"H$4*('COM-Appliance class'!$AF56/'Volume per connection'!$J$69)","v":44302.28771756302},{"$f":"I$4*('COM-Appliance class'!$AF56/'Volume per connection'!$J$69)","v":51377.154268959595},{"$f":"J$4*('COM-Appliance class'!$AF56/'Volume per connection'!$J$69)","v":56537.270589446583},{"$f":"K$4*('COM-Appliance class'!$AF56/'Volume per connection'!$J$69)","v":67682.66476525976},{"$f":"L$4*('COM-Appliance class'!$AF56/'Volume per connection'!$J$69)","v":67107.678548037846},{"$f":"M$4*('COM-Appliance class'!$AF56/'Volume per connection'!$J$69)","v":54527.30427150835},{"$f":"N$4*('COM-Appliance class'!$AF56/'Volume per connection'!$J$69)","v":54272.713084243296},{"$f":"O$4*('COM-Appliance class'!$AF56/'Volume per connection'!$J$69)","v":61762.365089843413},{"$f":"P$4*('COM-Appliance class'!$AF56/'Volume per connection'!$J$69)","v":69011.350990440726},{"$f":"Q$4*('COM-Appliance class'!$AF56/'Volume per connection'!$J$69)","v":48054.361463832953},{"$f":"R$4*('COM-Appliance class'!$AF56/'Volume per connection'!$J$69)","v":51044.918034131369},{"$f":"S$4*('COM-Appliance class'!$AF56/'Volume per connection'!$J$69)","v":55482.298490589339},{"$f":"T$4*('COM-Appliance class'!$AF56/'Volume per connection'!$J$69)","v":61978.046245770092},{"$f":"U$4*('COM-Appliance class'!$AF56/'Volume per connection'!$J$69)","v":66811.771719687371},{"$f":"V$4*('COM-Appliance class'!$AF56/'Volume per connection'!$J$69)","v":68585.463469668757},{"$f":"W$4*('COM-Appliance class'!$AF56/'Volume per connection'!$J$69)","v":71475.186936234633},{"$f":"X$4*('COM-Appliance class'!$AF56/'Volume per connection'!$J$69)","v":78634.606357907353},{"$f":"Y$4*('COM-Appliance class'!$AF56/'Volume per connection'!$J$69)","v":84583.085893507698},{"$f":"Z$4*('COM-Appliance class'!$AF56/'Volume per connection'!$J$69)","v":87941.457538675313},{"$f":"AA$4*('COM-Appliance class'!$AF56/'Volume per connection'!$J$69)","v":91757.654731770483},{"$f":"AB$4*('COM-Appliance class'!$AF56/'Volume per connection'!$J$69)","v":94152.008972746335},{"$f":"AC$4*('COM-Appliance class'!$AF56/'Volume per connection'!$J$69)","v":95885.131378244201},{"$f":"AD$4*('COM-Appliance class'!$AF56/'Volume per connection'!$J$69)","v":97126.051302309817},{"$f":"AE$4*('COM-Appliance class'!$AF56/'Volume per connection'!$J$69)","v":98165.992602271217},{"$f":"AF$4*('COM-Appliance class'!$AF56/'Volume per connection'!$J$69)","v":100101.18333169063},{"$f":"AG$4*('COM-Appliance class'!$AF56/'Volume per connection'!$J$69)","v":100194.15599771068},{"$f":"AH$4*('COM-Appliance class'!$AF56/'Volume per connection'!$J$69)","v":102224.21622986539},{"$f":"AI$4*('COM-Appliance class'!$AF56/'Volume per connection'!$J$69)","v":102354.85752681117},{"$f":"AJ$4*('COM-Appliance class'!$AF56/'Volume per connection'!$J$69)","v":102485.31460321655},{"$f":"AK$4*('COM-Appliance class'!$AF56/'Volume per connection'!$J$69)","v":102615.58859111348},{"$f":"AL$4*('COM-Appliance class'!$AF56/'Volume per connection'!$J$69)","v":102745.68061550701},{"$f":"AM$4*('COM-Appliance class'!$AF56/'Volume per connection'!$J$69)","v":102875.59179441964},{"$f":"AN$4*('COM-Appliance class'!$AF56/'Volume per connection'!$J$69)","v":103005.32323893489},{"$f":"AO$4*('COM-Appliance class'!$AF56/'Volume per connection'!$J$69)","v":103134.87605324159},{"$f":"AP$4*('COM-Appliance class'!$AF56/'Volume per connection'!$J$69)","v":103264.25133467671},{"$f":"AQ$4*('COM-Appliance class'!$AF56/'Volume per connection'!$J$69)","v":103393.45017376906},{"$f":"AR$4*('COM-Appliance class'!$AF56/'Volume per connection'!$J$69)","v":103522.47365428162},{"$f":"AS$4*('COM-Appliance class'!$AF56/'Volume per connection'!$J$69)","v":103651.32285325472},{"$f":"AT$4*('COM-Appliance class'!$AF56/'Volume per connection'!$J$69)","v":103779.99884104765},{"$f":"AU$4*('COM-Appliance class'!$AF56/'Volume per connection'!$J$69)","v":103908.50268138153},{"$f":"AV$4*('COM-Appliance class'!$AF56/'Volume per connection'!$J$69)","v":104036.83543138036},{"$f":"AW$4*('COM-Appliance class'!$AF56/'Volume per connection'!$J$69)","v":104164.9981416131},{"$f":"AX$4*('COM-Appliance class'!$AF56/'Volume per connection'!$J$69)","v":104292.9918561346},{"$f":"AY$4*('COM-Appliance class'!$AF56/'Volume per connection'!$J$69)","v":104420.81761252679},{"$f":"AZ$4*('COM-Appliance class'!$AF56/'Volume per connection'!$J$69)","v":104548.47644193917},{"$f":"BA$4*('COM-Appliance class'!$AF56/'Volume per connection'!$J$69)","v":104675.96936912983},{"$f":"BB$4*('COM-Appliance class'!$AF56/'Volume per connection'!$J$69)","v":104803.29741250481},{"$f":"BC$4*('COM-Appliance class'!$AF56/'Volume per connection'!$J$69)","v":104930.46158415904},{"$f":"BD$4*('COM-Appliance class'!$AF56/'Volume per connection'!$J$69)","v":105057.46288991522},{"$f":"BE$4*('COM-Appliance class'!$AF56/'Volume per connection'!$J$69)","v":105184.30232936394},{"$f":"BF$4*('COM-Appliance class'!$AF56/'Volume per connection'!$J$69)","v":105310.98089590239},{"$f":"BG$4*('COM-Appliance class'!$AF56/'Volume per connection'!$J$69)","v":105437.49957677361},{"$f":"BH$4*('COM-Appliance class'!$AF56/'Volume per connection'!$J$69)","v":105563.85935310513},{"$f":"BI$4*('COM-Appliance class'!$AF56/'Volume per connection'!$J$69)","v":105690.06119994754},{"$f":"BJ$4*('COM-Appliance class'!$AF56/'Volume per connection'!$J$69)","v":105816.10608631236},{"$f":"BK$4*('COM-Appliance class'!$AF56/'Volume per connection'!$J$69)","v":105941.99497521062},{"$f":"BL$4*('COM-Appliance class'!$AF56/'Volume per connection'!$J$69)","v":106067.72882368992},{"$f":"BM$4*('COM-Appliance class'!$AF56/'Volume per connection'!$J$69)","v":106193.30858287269},{"$f":"BN$4*('COM-Appliance class'!$AF56/'Volume per connection'!$J$69)","v":106318.73519799256},{"$f":"BO$4*('COM-Appliance class'!$AF56/'Volume per connection'!$J$69)","v":106444.00960843232},{"$f":"BP$4*('COM-Appliance class'!$AF56/'Volume per connection'!$J$69)","v":106569.13274775993},{"$f":"BQ$4*('COM-Appliance class'!$AF56/'Volume per connection'!$J$69)","v":106694.10554376569},{"$f":"BR$4*('COM-Appliance class'!$AF56/'Volume per connection'!$J$69)","v":106818.92891849806},{"$f":"BS$4*('COM-Appliance class'!$AF56/'Volume per connection'!$J$69)","v":106943.60378830023},{"$f":"BT$4*('COM-Appliance class'!$AF56/'Volume per connection'!$J$69)","v":107068.13106384547},{"$f":"BU$4*('COM-Appliance class'!$AF56/'Volume per connection'!$J$69)","v":107192.5116501734},{"$f":"BV$4*('COM-Appliance class'!$AF56/'Volume per connection'!$J$69)","v":107316.74644672469},{"$f":"BW$4*('COM-Appliance class'!$AF56/'Volume per connection'!$J$69)","v":107440.83634737706},{"$f":"BX$4*('COM-Appliance class'!$AF56/'Volume per connection'!$J$69)","v":107564.78224047922},{"$f":"BY$4*('COM-Appliance class'!$AF56/'Volume per connection'!$J$69)","v":107688.58500888686},{"$f":"BZ$4*('COM-Appliance class'!$AF56/'Volume per connection'!$J$69)","v":107812.24552999588},{"$f":"CA$4*('COM-Appliance class'!$AF56/'Volume per connection'!$J$69)","v":107935.76467577794},{"$f":"CB$4*('COM-Appliance class'!$AF56/'Volume per connection'!$J$69)","v":108059.14331281344},{"$f":"CC$4*('COM-Appliance class'!$AF56/'Volume per connection'!$J$69)","v":108182.38230232628},{"$f":"CD$4*('COM-Appliance class'!$AF56/'Volume per connection'!$J$69)","v":108305.48250021675}]
["Manningham (C)",null,{"$f":"C$4*('COM-Appliance class'!$AF57/'Volume per connection'!$J$69)","v":39820.166217587059},{"$f":"D$4*('COM-Appliance class'!$AF57/'Volume per connection'!$J$69)","v":48944.121300971012},{"$f":"E$4*('COM-Appliance class'!$AF57/'Volume per connection'!$J$69)","v":43492.793015874602},{"$f":"F$4*('COM-Appliance class'!$AF57/'Volume per connection'!$J$69)","v":48380.856241253059},{"$f":"G$4*('COM-Appliance class'!$AF57/'Volume per connection'!$J$69)","v":42596.299106118415},{"$f":"H$4*('COM-Appliance class'!$AF57/'Volume per connection'!$J$69)","v":43726.067997079743},{"$f":"I$4*('COM-Appliance class'!$AF57/'Volume per connection'!$J$69)","v":50708.914974844098},{"$f":"J$4*('COM-Appliance class'!$AF57/'Volume per connection'!$J$69)","v":55801.916007678032},{"$f":"K$4*('COM-Appliance class'!$AF57/'Volume per connection'!$J$69)","v":66802.347107146124},{"$f":"L$4*('COM-Appliance class'!$AF57/'Volume per connection'!$J$69)","v":66234.8394743143},{"$f":"M$4*('COM-Appliance class'!$AF57/'Volume per connection'!$J$69)","v":53818.092408086246},{"$f":"N$4*('COM-Appliance class'!$AF57/'Volume per connection'!$J$69)","v":53566.812572679555},{"$f":"O$4*('COM-Appliance class'!$AF57/'Volume per connection'!$J$69)","v":60959.050078769003},{"$f":"P$4*('COM-Appliance class'!$AF57/'Volume per connection'!$J$69)","v":68113.751714498139},{"$f":"Q$4*('COM-Appliance class'!$AF57/'Volume per connection'!$J$69)","v":47429.340225489206},{"$f":"R$4*('COM-Appliance class'!$AF57/'Volume per connection'!$J$69)","v":50380.99998571739},{"$f":"S$4*('COM-Appliance class'!$AF57/'Volume per connection'!$J$69)","v":54760.665451414636},{"$f":"T$4*('COM-Appliance class'!$AF57/'Volume per connection'!$J$69)","v":61171.925967929914},{"$f":"U$4*('COM-Appliance class'!$AF57/'Volume per connection'!$J$69)","v":65942.781371587393},{"$f":"V$4*('COM-Appliance class'!$AF57/'Volume per connection'!$J$69)","v":67693.403519138461},{"$f":"W$4*('COM-Appliance class'!$AF57/'Volume per connection'!$J$69)","v":70545.541665984638},{"$f":"X$4*('COM-Appliance class'!$AF57/'Volume per connection'!$J$69)","v":77611.841773271619},{"$f":"Y$4*('COM-Appliance class'!$AF57/'Volume per connection'!$J$69)","v":83482.952139199377},{"$f":"Z$4*('COM-Appliance class'!$AF57/'Volume per connection'!$J$69)","v":86797.642970793779},{"$f":"AA$4*('COM-Appliance class'!$AF57/'Volume per connection'!$J$69)","v":90564.204621500408},{"$f":"AB$4*('COM-Appliance class'!$AF57/'Volume per connection'!$J$69)","v":92927.416585123268},{"$f":"AC$4*('COM-Appliance class'!$AF57/'Volume per connection'!$J$69)","v":94637.99705521531},{"$f":"AD$4*('COM-Appliance class'!$AF57/'Volume per connection'!$J$69)","v":95862.776897839853},{"$f":"AE$4*('COM-Appliance class'!$AF57/'Volume per connection'!$J$69)","v":96889.192153976983},{"$f":"AF$4*('COM-Appliance class'!$AF57/'Volume per connection'!$J$69)","v":98799.212737143534},{"$f":"AG$4*('COM-Appliance class'!$AF57/'Volume per connection'!$J$69)","v":98890.976149953727},{"$f":"AH$4*('COM-Appliance class'!$AF57/'Volume per connection'!$J$69)","v":100894.63231135267},{"$f":"AI$4*('COM-Appliance class'!$AF57/'Volume per connection'!$J$69)","v":101023.57441632694},{"$f":"AJ$4*('COM-Appliance class'!$AF57/'Volume per connection'!$J$69)","v":101152.33469683363},{"$f":"AK$4*('COM-Appliance class'!$AF57/'Volume per connection'!$J$69)","v":101280.9142701809},{"$f":"AL$4*('COM-Appliance class'!$AF57/'Volume per connection'!$J$69)","v":101409.31424674134},{"$f":"AM$4*('COM-Appliance class'!$AF57/'Volume per connection'!$J$69)","v":101537.53572999587},{"$f":"AN$4*('COM-Appliance class'!$AF57/'Volume per connection'!$J$69)","v":101665.57981657662},{"$f":"AO$4*('COM-Appliance class'!$AF57/'Volume per connection'!$J$69)","v":101793.44759631077},{"$f":"AP$4*('COM-Appliance class'!$AF57/'Volume per connection'!$J$69)","v":101921.14015226268},{"$f":"AQ$4*('COM-Appliance class'!$AF57/'Volume per connection'!$J$69)","v":102048.6585607772},{"$f":"AR$4*('COM-Appliance class'!$AF57/'Volume per connection'!$J$69)","v":102176.00389152129},{"$f":"AS$4*('COM-Appliance class'!$AF57/'Volume per connection'!$J$69)","v":102303.17720752666},{"$f":"AT$4*('COM-Appliance class'!$AF57/'Volume per connection'!$J$69)","v":102430.17956523098},{"$f":"AU$4*('COM-Appliance class'!$AF57/'Volume per connection'!$J$69)","v":102557.01201451998},{"$f":"AV$4*('COM-Appliance class'!$AF57/'Volume per connection'!$J$69)","v":102683.67559876815},{"$f":"AW$4*('COM-Appliance class'!$AF57/'Volume per connection'!$J$69)","v":102810.17135488024},{"$f":"AX$4*('COM-Appliance class'!$AF57/'Volume per connection'!$J$69)","v":102936.50031333145},{"$f":"AY$4*('COM-Appliance class'!$AF57/'Volume per connection'!$J$69)","v":103062.66349820839},{"$f":"AZ$4*('COM-Appliance class'!$AF57/'Volume per connection'!$J$69)","v":103188.6619272489},{"$f":"BA$4*('COM-Appliance class'!$AF57/'Volume per connection'!$J$69)","v":103314.49661188248},{"$f":"BB$4*('COM-Appliance class'!$AF57/'Volume per connection'!$J$69)","v":103440.16855726922},{"$f":"BC$4*('COM-Appliance class'!$AF57/'Volume per connection'!$J$69)","v":103565.67876234022},{"$f":"BD$4*('COM-Appliance class'!$AF57/'Volume per connection'!$J$69)","v":103691.02821983585},{"$f":"BE$4*('COM-Appliance class'!$AF57/'Volume per connection'!$J$69)","v":103816.21791634554},{"$f":"BF$4*('COM-Appliance class'!$AF57/'Volume per connection'!$J$69)","v":103941.24883234578},{"$f":"BG$4*('COM-Appliance class'!$AF57/'Volume per connection'!$J$69)","v":104066.12194223898},{"$f":"BH$4*('COM-Appliance class'!$AF57/'Volume per connection'!$J$69)","v":104190.83821439161},{"$f":"BI$4*('COM-Appliance class'!$AF57/'Volume per connection'!$J$69)","v":104315.39861117222},{"$f":"BJ$4*('COM-Appliance class'!$AF57/'Volume per connection'!$J$69)","v":104439.80408898884},{"$f":"BK$4*('COM-Appliance class'!$AF57/'Volume per connection'!$J$69)","v":104564.05559832702},{"$f":"BL$4*('COM-Appliance class'!$AF57/'Volume per connection'!$J$69)","v":104688.15408378652},{"$f":"BM$4*('COM-Appliance class'!$AF57/'Volume per connection'!$J$69)","v":104812.10048411893},{"$f":"BN$4*('COM-Appliance class'!$AF57/'Volume per connection'!$J$69)","v":104935.89573226366},{"$f":"BO$4*('COM-Appliance class'!$AF57/'Volume per connection'!$J$69)","v":105059.54075538537},{"$f":"BP$4*('COM-Appliance class'!$AF57/'Volume per connection'!$J$69)","v":105183.03647490953},{"$f":"BQ$4*('COM-Appliance class'!$AF57/'Volume per connection'!$J$69)","v":105306.38380655913},{"$f":"BR$4*('COM-Appliance class'!$AF57/'Volume per connection'!$J$69)","v":105429.58366038989},{"$f":"BS$4*('COM-Appliance class'!$AF57/'Volume per connection'!$J$69)","v":105552.63694082659},{"$f":"BT$4*('COM-Appliance class'!$AF57/'Volume per connection'!$J$69)","v":105675.54454669778},{"$f":"BU$4*('COM-Appliance class'!$AF57/'Volume per connection'!$J$69)","v":105798.30737127164},{"$f":"BV$4*('COM-Appliance class'!$AF57/'Volume per connection'!$J$69)","v":105920.92630229022},{"$f":"BW$4*('COM-Appliance class'!$AF57/'Volume per connection'!$J$69)","v":106043.40222200498},{"$f":"BX$4*('COM-Appliance class'!$AF57/'Volume per connection'!$J$69)","v":106165.73600721027},{"$f":"BY$4*('COM-Appliance class'!$AF57/'Volume per connection'!$J$69)","v":106287.9285292789},{"$f":"BZ$4*('COM-Appliance class'!$AF57/'Volume per connection'!$J$69)","v":106409.98065419489},{"$f":"CA$4*('COM-Appliance class'!$AF57/'Volume per connection'!$J$69)","v":106531.89324258853},{"$f":"CB$4*('COM-Appliance class'!$AF57/'Volume per connection'!$J$69)","v":106653.667149769},{"$f":"CC$4*('COM-Appliance class'!$AF57/'Volume per connection'!$J$69)","v":106775.30322575866},{"$f":"CD$4*('COM-Appliance class'!$AF57/'Volume per connection'!$J$69)","v":106896.80231532552}]
["Maroondah (C)",null,{"$f":"C$4*('COM-Appliance class'!$AF58/'Volume per connection'!$J$69)","v":38601.98350404884},{"$f":"D$4*('COM-Appliance class'!$AF58/'Volume per connection'!$J$69)","v":47446.817593789914},{"$f":"E$4*('COM-Appliance class'!$AF58/'Volume per connection'!$J$69)","v":42162.256917006336},{"$f":"F$4*('COM-Appliance class'!$AF58/'Volume per connection'!$J$69)","v":46900.783998027662},{"$f":"G$4*('COM-Appliance class'!$AF58/'Volume per connection'!$J$69)","v":41293.188643237954},{"$f":"H$4*('COM-Appliance class'!$AF58/'Volume per connection'!$J$69)","v":42388.395525448679},{"$f":"I$4*('COM-Appliance class'!$AF58/'Volume per connection'!$J$69)","v":49157.622513956485},{"$f":"J$4*('COM-Appliance class'!$AF58/'Volume per connection'!$J$69)","v":54094.817923470589},{"$f":"K$4*('COM-Appliance class'!$AF58/'Volume per connection'!$J$69)","v":64758.722677628706},{"$f":"L$4*('COM-Appliance class'!$AF58/'Volume per connection'!$J$69)","v":64208.576297995547},{"$f":"M$4*('COM-Appliance class'!$AF58/'Volume per connection'!$J$69)","v":52171.68366411225},{"$f":"N$4*('COM-Appliance class'!$AF58/'Volume per connection'!$J$69)","v":51928.091007861985},{"$f":"O$4*('COM-Appliance class'!$AF58/'Volume per connection'!$J$69)","v":59094.184406589324},{"$f":"P$4*('COM-Appliance class'!$AF58/'Volume per connection'!$J$69)","v":66030.008657288374},{"$f":"Q$4*('COM-Appliance class'!$AF58/'Volume per connection'!$J$69)","v":45978.376860306271},{"$f":"R$4*('COM-Appliance class'!$AF58/'Volume per connection'!$J$69)","v":48839.739134669915},{"$f":"S$4*('COM-Appliance class'!$AF58/'Volume per connection'!$J$69)","v":53085.421413751625},{"$f":"T$4*('COM-Appliance class'!$AF58/'Volume per connection'!$J$69)","v":59300.547974157009},{"$f":"U$4*('COM-Appliance class'!$AF58/'Volume per connection'!$J$69)","v":63925.45286746831},{"$f":"V$4*('COM-Appliance class'!$AF58/'Volume per connection'!$J$69)","v":65622.519798136796},{"$f":"W$4*('COM-Appliance class'!$AF58/'Volume per connection'!$J$69)","v":68387.4050347835},{"$f":"X$4*('COM-Appliance class'!$AF58/'Volume per connection'!$J$69)","v":75237.53214589729},{"$f":"Y$4*('COM-Appliance class'!$AF58/'Volume per connection'!$J$69)","v":80929.032885939334},{"$f":"Z$4*('COM-Appliance class'!$AF58/'Volume per connection'!$J$69)","v":84142.320346947381},{"$f":"AA$4*('COM-Appliance class'!$AF58/'Volume per connection'!$J$69)","v":87793.654947437928},{"$f":"AB$4*('COM-Appliance class'!$AF58/'Volume per connection'!$J$69)","v":90084.571282087723},{"$f":"AC$4*('COM-Appliance class'!$AF58/'Volume per connection'!$J$69)","v":91742.821494505901},{"$f":"AD$4*('COM-Appliance class'!$AF58/'Volume per connection'!$J$69)","v":92930.132743352558},{"$f":"AE$4*('COM-Appliance class'!$AF58/'Volume per connection'!$J$69)","v":93925.147796007208},{"$f":"AF$4*('COM-Appliance class'!$AF58/'Volume per connection'!$J$69)","v":95776.736828581983},{"$f":"AG$4*('COM-Appliance class'!$AF58/'Volume per connection'!$J$69)","v":95865.693005415073},{"$f":"AH$4*('COM-Appliance class'!$AF58/'Volume per connection'!$J$69)","v":97808.053106763604},{"$f":"AI$4*('COM-Appliance class'!$AF58/'Volume per connection'!$J$69)","v":97933.050601299314},{"$f":"AJ$4*('COM-Appliance class'!$AF58/'Volume per connection'!$J$69)","v":98057.871833760684},{"$f":"AK$4*('COM-Appliance class'!$AF58/'Volume per connection'!$J$69)","v":98182.517887275069},{"$f":"AL$4*('COM-Appliance class'!$AF58/'Volume per connection'!$J$69)","v":98306.989838246416},{"$f":"AM$4*('COM-Appliance class'!$AF58/'Volume per connection'!$J$69)","v":98431.288756397844},{"$f":"AN$4*('COM-Appliance class'!$AF58/'Volume per connection'!$J$69)","v":98555.415704813189},{"$f":"AO$4*('COM-Appliance class'!$AF58/'Volume per connection'!$J$69)","v":98679.371739979528},{"$f":"AP$4*('COM-Appliance class'!$AF58/'Volume per connection'!$J$69)","v":98803.157911828021},{"$f":"AQ$4*('COM-Appliance class'!$AF58/'Volume per connection'!$J$69)","v":98926.775263775839},{"$f":"AR$4*('COM-Appliance class'!$AF58/'Volume per connection'!$J$69)","v":99050.224832766587},{"$f":"AS$4*('COM-Appliance class'!$AF58/'Volume per connection'!$J$69)","v":99173.507649311592},{"$f":"AT$4*('COM-Appliance class'!$AF58/'Volume per connection'!$J$69)","v":99296.62473752987},{"$f":"AU$4*('COM-Appliance class'!$AF58/'Volume per connection'!$J$69)","v":99419.577115188964},{"$f":"AV$4*('COM-Appliance class'!$AF58/'Volume per connection'!$J$69)","v":99542.365793744306},{"$f":"AW$4*('COM-Appliance class'!$AF58/'Volume per connection'!$J$69)","v":99664.991778379539},{"$f":"AX$4*('COM-Appliance class'!$AF58/'Volume per connection'!$J$69)","v":99787.456068045518},{"$f":"AY$4*('COM-Appliance class'!$AF58/'Volume per connection'!$J$69)","v":99909.759655499831},{"$f":"AZ$4*('COM-Appliance class'!$AF58/'Volume per connection'!$J$69)","v":100031.9035273456},{"$f":"BA$4*('COM-Appliance class'!$AF58/'Volume per connection'!$J$69)","v":100153.88866407055},{"$f":"BB$4*('COM-Appliance class'!$AF58/'Volume per connection'!$J$69)","v":100275.71604008481},{"$f":"BC$4*('COM-Appliance class'!$AF58/'Volume per connection'!$J$69)","v":100397.38662376009},{"$f":"BD$4*('COM-Appliance class'!$AF58/'Volume per connection'!$J$69)","v":100518.90137746674},{"$f":"BE$4*('COM-Appliance class'!$AF58/'Volume per connection'!$J$69)","v":100640.26125761232},{"$f":"BF$4*('COM-Appliance class'!$AF58/'Volume per connection'!$J$69)","v":100761.46721467852},{"$f":"BG$4*('COM-Appliance class'!$AF58/'Volume per connection'!$J$69)","v":100882.52019325869},{"$f":"BH$4*('COM-Appliance class'!$AF58/'Volume per connection'!$J$69)","v":101003.42113209495},{"$f":"BI$4*('COM-Appliance class'!$AF58/'Volume per connection'!$J$69)","v":101124.17096411498},{"$f":"BJ$4*('COM-Appliance class'!$AF58/'Volume per connection'!$J$69)","v":101244.77061646825},{"$f":"BK$4*('COM-Appliance class'!$AF58/'Volume per connection'!$J$69)","v":101365.22101056296},{"$f":"BL$4*('COM-Appliance class'!$AF58/'Volume per connection'!$J$69)","v":101485.52306210159},{"$f":"BM$4*('COM-Appliance class'!$AF58/'Volume per connection'!$J$69)","v":101605.67768111735},{"$f":"BN$4*('COM-Appliance class'!$AF58/'Volume per connection'!$J$69)","v":101725.68577200903},{"$f":"BO$4*('COM-Appliance class'!$AF58/'Volume per connection'!$J$69)","v":101845.54823357741},{"$f":"BP$4*('COM-Appliance class'!$AF58/'Volume per connection'!$J$69)","v":101965.26595905962},{"$f":"BQ$4*('COM-Appliance class'!$AF58/'Volume per connection'!$J$69)","v":102084.8398361647},{"$f":"BR$4*('COM-Appliance class'!$AF58/'Volume per connection'!$J$69)","v":102204.2707471079},{"$f":"BS$4*('COM-Appliance class'!$AF58/'Volume per connection'!$J$69)","v":102323.55956864574},{"$f":"BT$4*('COM-Appliance class'!$AF58/'Volume per connection'!$J$69)","v":102442.7071721097},{"$f":"BU$4*('COM-Appliance class'!$AF58/'Volume per connection'!$J$69)","v":102561.71442344101},{"$f":"BV$4*('COM-Appliance class'!$AF58/'Volume per connection'!$J$69)","v":102680.5821832238},{"$f":"BW$4*('COM-Appliance class'!$AF58/'Volume per connection'!$J$69)","v":102799.31130671962},{"$f":"BX$4*('COM-Appliance class'!$AF58/'Volume per connection'!$J$69)","v":102917.90264389987},{"$f":"BY$4*('COM-Appliance class'!$AF58/'Volume per connection'!$J$69)","v":103036.35703948016},{"$f":"BZ$4*('COM-Appliance class'!$AF58/'Volume per connection'!$J$69)","v":103154.67533295228},{"$f":"CA$4*('COM-Appliance class'!$AF58/'Volume per connection'!$J$69)","v":103272.85835861802},{"$f":"CB$4*('COM-Appliance class'!$AF58/'Volume per connection'!$J$69)","v":103390.90694562084},{"$f":"CC$4*('COM-Appliance class'!$AF58/'Volume per connection'!$J$69)","v":103508.82191797916},{"$f":"CD$4*('COM-Appliance class'!$AF58/'Volume per connection'!$J$69)","v":103626.60409461772}]
["Melbourne (C)",null,{"$f":"C$4*('COM-Appliance class'!$AF59/'Volume per connection'!$J$69)","v":43062.117658404146},{"$f":"D$4*('COM-Appliance class'!$AF59/'Volume per connection'!$J$69)","v":52928.89785122883},{"$f":"E$4*('COM-Appliance class'!$AF59/'Volume per connection'!$J$69)","v":47033.750685727297},{"$f":"F$4*('COM-Appliance class'!$AF59/'Volume per connection'!$J$69)","v":52319.774671232408},{"$f":"G$4*('COM-Appliance class'!$AF59/'Volume per connection'!$J$69)","v":46064.268890723812},{"$f":"H$4*('COM-Appliance class'!$AF59/'Volume per connection'!$J$69)","v":47286.017706224593},{"$f":"I$4*('COM-Appliance class'!$AF59/'Volume per connection'!$J$69)","v":54837.371874462951},{"$f":"J$4*('COM-Appliance class'!$AF59/'Volume per connection'!$J$69)","v":60345.01864097509},{"$f":"K$4*('COM-Appliance class'!$AF59/'Volume per connection'!$J$69)","v":72241.047796404557},{"$f":"L$4*('COM-Appliance class'!$AF59/'Volume per connection'!$J$69)","v":71627.336634991734},{"$f":"M$4*('COM-Appliance class'!$AF59/'Volume per connection'!$J$69)","v":58199.682411278227},{"$f":"N$4*('COM-Appliance class'!$AF59/'Volume per connection'!$J$69)","v":57927.944674716789},{"$f":"O$4*('COM-Appliance class'!$AF59/'Volume per connection'!$J$69)","v":65922.019825148978},{"$f":"P$4*('COM-Appliance class'!$AF59/'Volume per connection'!$J$69)","v":73659.220166429062},{"$f":"Q$4*('COM-Appliance class'!$AF59/'Volume per connection'!$J$69)","v":51290.791155674349},{"$f":"R$4*('COM-Appliance class'!$AF59/'Volume per connection'!$J$69)","v":54482.759747367112},{"$f":"S$4*('COM-Appliance class'!$AF59/'Volume per connection'!$J$69)","v":59218.99486396007},{"$f":"T$4*('COM-Appliance class'!$AF59/'Volume per connection'!$J$69)","v":66152.226965309936},{"$f":"U$4*('COM-Appliance class'!$AF59/'Volume per connection'!$J$69)","v":71311.500676045849},{"$f":"V$4*('COM-Appliance class'!$AF59/'Volume per connection'!$J$69)","v":73204.649400773109},{"$f":"W$4*('COM-Appliance class'!$AF59/'Volume per connection'!$J$69)","v":76288.993845404475},{"$f":"X$4*('COM-Appliance class'!$AF59/'Volume per connection'!$J$69)","v":83930.595464214217},{"$f":"Y$4*('COM-Appliance class'!$AF59/'Volume per connection'!$J$69)","v":90279.701190734151},{"$f":"Z$4*('COM-Appliance class'!$AF59/'Volume per connection'!$J$69)","v":93864.256961079227},{"$f":"AA$4*('COM-Appliance class'!$AF59/'Volume per connection'!$J$69)","v":97937.472529394101},{"$f":"AB$4*('COM-Appliance class'!$AF59/'Volume per connection'!$J$69)","v":100493.08495635403},{"$f":"AC$4*('COM-Appliance class'!$AF59/'Volume per connection'!$J$69)","v":102342.93201788484},{"$f":"AD$4*('COM-Appliance class'!$AF59/'Volume per connection'!$J$69)","v":103667.4270840417},{"$f":"AE$4*('COM-Appliance class'!$AF59/'Volume per connection'!$J$69)","v":104777.40774772453},{"$f":"AF$4*('COM-Appliance class'!$AF59/'Volume per connection'!$J$69)","v":106842.93230211388},{"$f":"AG$4*('COM-Appliance class'!$AF59/'Volume per connection'!$J$69)","v":106942.16661614405},{"$f":"AH$4*('COM-Appliance class'!$AF59/'Volume per connection'!$J$69)","v":109108.9500719861},{"$f":"AI$4*('COM-Appliance class'!$AF59/'Volume per connection'!$J$69)","v":109248.38997450142},{"$f":"AJ$4*('COM-Appliance class'!$AF59/'Volume per connection'!$J$69)","v":109387.63324934388},{"$f":"AK$4*('COM-Appliance class'!$AF59/'Volume per connection'!$J$69)","v":109526.68110478709},{"$f":"AL$4*('COM-Appliance class'!$AF59/'Volume per connection'!$J$69)","v":109665.53474160441},{"$f":"AM$4*('COM-Appliance class'!$AF59/'Volume per connection'!$J$69)","v":109804.19535311645},{"$f":"AN$4*('COM-Appliance class'!$AF59/'Volume per connection'!$J$69)","v":109942.66412523742},{"$f":"AO$4*('COM-Appliance class'!$AF59/'Volume per connection'!$J$69)","v":110080.94223652263},{"$f":"AP$4*('COM-Appliance class'!$AF59/'Volume per connection'!$J$69)","v":110219.03085821391},{"$f":"AQ$4*('COM-Appliance class'!$AF59/'Volume per connection'!$J$69)","v":110356.93115428649},{"$f":"AR$4*('COM-Appliance class'!$AF59/'Volume per connection'!$J$69)","v":110494.64428149408},{"$f":"AS$4*('COM-Appliance class'!$AF59/'Volume per connection'!$J$69)","v":110632.17138941496},{"$f":"AT$4*('COM-Appliance class'!$AF59/'Volume per connection'!$J$69)","v":110769.51362049641},{"$f":"AU$4*('COM-Appliance class'!$AF59/'Volume per connection'!$J$69)","v":110906.67211010047},{"$f":"AV$4*('COM-Appliance class'!$AF59/'Volume per connection'!$J$69)","v":111043.64798654774},{"$f":"AW$4*('COM-Appliance class'!$AF59/'Volume per connection'!$J$69)","v":111180.44237116237},{"$f":"AX$4*('COM-Appliance class'!$AF59/'Volume per connection'!$J$69)","v":111317.05637831554},{"$f":"AY$4*('COM-Appliance class'!$AF59/'Volume per connection'!$J$69)","v":111453.49111546966},{"$f":"AZ$4*('COM-Appliance class'!$AF59/'Volume per connection'!$J$69)","v":111589.74768322152},{"$f":"BA$4*('COM-Appliance class'!$AF59/'Volume per connection'!$J$69)","v":111725.82717534593},{"$f":"BB$4*('COM-Appliance class'!$AF59/'Volume per connection'!$J$69)","v":111861.73067883795},{"$f":"BC$4*('COM-Appliance class'!$AF59/'Volume per connection'!$J$69)","v":111997.45927395643},{"$f":"BD$4*('COM-Appliance class'!$AF59/'Volume per connection'!$J$69)","v":112133.01403426554},{"$f":"BE$4*('COM-Appliance class'!$AF59/'Volume per connection'!$J$69)","v":112268.3960266777},{"$f":"BF$4*('COM-Appliance class'!$AF59/'Volume per connection'!$J$69)","v":112403.6063114947},{"$f":"BG$4*('COM-Appliance class'!$AF59/'Volume per connection'!$J$69)","v":112538.64594244976},{"$f":"BH$4*('COM-Appliance class'!$AF59/'Volume per connection'!$J$69)","v":112673.5159667487},{"$f":"BI$4*('COM-Appliance class'!$AF59/'Volume per connection'!$J$69)","v":112808.21742511116},{"$f":"BJ$4*('COM-Appliance class'!$AF59/'Volume per connection'!$J$69)","v":112942.7513518109},{"$f":"BK$4*('COM-Appliance class'!$AF59/'Volume per connection'!$J$69)","v":113077.11877471715},{"$f":"BL$4*('COM-Appliance class'!$AF59/'Volume per connection'!$J$69)","v":113211.32071533402},{"$f":"BM$4*('COM-Appliance class'!$AF59/'Volume per connection'!$J$69)","v":113345.35818884142},{"$f":"BN$4*('COM-Appliance class'!$AF59/'Volume per connection'!$J$69)","v":113479.23220413383},{"$f":"BO$4*('COM-Appliance class'!$AF59/'Volume per connection'!$J$69)","v":113612.94376386087},{"$f":"BP$4*('COM-Appliance class'!$AF59/'Volume per connection'!$J$69)","v":113746.49386446568},{"$f":"BQ$4*('COM-Appliance class'!$AF59/'Volume per connection'!$J$69)","v":113879.88349622463},{"$f":"BR$4*('COM-Appliance class'!$AF59/'Volume per connection'!$J$69)","v":114013.11364328554},{"$f":"BS$4*('COM-Appliance class'!$AF59/'Volume per connection'!$J$69)","v":114146.1852837067},{"$f":"BT$4*('COM-Appliance class'!$AF59/'Volume per connection'!$J$69)","v":114279.09938949466},{"$f":"BU$4*('COM-Appliance class'!$AF59/'Volume per connection'!$J$69)","v":114411.85692664282},{"$f":"BV$4*('COM-Appliance class'!$AF59/'Volume per connection'!$J$69)","v":114544.45885516862},{"$f":"BW$4*('COM-Appliance class'!$AF59/'Volume per connection'!$J$69)","v":114676.90612915184},{"$f":"BX$4*('COM-Appliance class'!$AF59/'Volume per connection'!$J$69)","v":114809.1996967709},{"$f":"BY$4*('COM-Appliance class'!$AF59/'Volume per connection'!$J$69)","v":114941.34050034123},{"$f":"BZ$4*('COM-Appliance class'!$AF59/'Volume per connection'!$J$69)","v":115073.32947635082},{"$f":"CA$4*('COM-Appliance class'!$AF59/'Volume per connection'!$J$69)","v":115205.16755549797},{"$f":"CB$4*('COM-Appliance class'!$AF59/'Volume per connection'!$J$69)","v":115336.85566272674},{"$f":"CC$4*('COM-Appliance class'!$AF59/'Volume per connection'!$J$69)","v":115468.39471726389},{"$f":"CD$4*('COM-Appliance class'!$AF59/'Volume per connection'!$J$69)","v":115599.78563265405}]
["Monash (C)",null,{"$f":"C$4*('COM-Appliance class'!$AF60/'Volume per connection'!$J$69)","v":39897.360293967402},{"$f":"D$4*('COM-Appliance class'!$AF60/'Volume per connection'!$J$69)","v":49039.00277930114},{"$f":"E$4*('COM-Appliance class'!$AF60/'Volume per connection'!$J$69)","v":43577.106726865066},{"$f":"F$4*('COM-Appliance class'!$AF60/'Volume per connection'!$J$69)","v":48474.645792296775},{"$f":"G$4*('COM-Appliance class'!$AF60/'Volume per connection'!$J$69)","v":42678.874903234639},{"$f":"H$4*('COM-Appliance class'!$AF60/'Volume per connection'!$J$69)","v":43810.833927345695},{"$f":"I$4*('COM-Appliance class'!$AF60/'Volume per connection'!$J$69)","v":50807.217624670899},{"$f":"J$4*('COM-Appliance class'!$AF60/'Volume per connection'!$J$69)","v":55910.091783312135},{"$f":"K$4*('COM-Appliance class'!$AF60/'Volume per connection'!$J$69)","v":66931.847959975261},{"$f":"L$4*('COM-Appliance class'!$AF60/'Volume per connection'!$J$69)","v":66363.24017534306},{"$f":"M$4*('COM-Appliance class'!$AF60/'Volume per connection'!$J$69)","v":53922.422407948463},{"$f":"N$4*('COM-Appliance class'!$AF60/'Volume per connection'!$J$69)","v":53670.655449642756},{"$f":"O$4*('COM-Appliance class'!$AF60/'Volume per connection'!$J$69)","v":61077.223306428095},{"$f":"P$4*('COM-Appliance class'!$AF60/'Volume per connection'!$J$69)","v":68245.794813556786},{"$f":"Q$4*('COM-Appliance class'!$AF60/'Volume per connection'!$J$69)","v":47521.285198597296},{"$f":"R$4*('COM-Appliance class'!$AF60/'Volume per connection'!$J$69)","v":50478.666950233928},{"$f":"S$4*('COM-Appliance class'!$AF60/'Volume per connection'!$J$69)","v":54866.822692657595},{"$f":"T$4*('COM-Appliance class'!$AF60/'Volume per connection'!$J$69)","v":61290.511869849521},{"$f":"U$4*('COM-Appliance class'!$AF60/'Volume per connection'!$J$69)","v":66070.615898297183},{"$f":"V$4*('COM-Appliance class'!$AF60/'Volume per connection'!$J$69)","v":67824.63174488589},{"$f":"W$4*('COM-Appliance class'!$AF60/'Volume per connection'!$J$69)","v":70682.298953784484},{"$f":"X$4*('COM-Appliance class'!$AF60/'Volume per connection'!$J$69)","v":77762.297560149251},{"$f":"Y$4*('COM-Appliance class'!$AF60/'Volume per connection'!$J$69)","v":83644.789469276715},{"$f":"Z$4*('COM-Appliance class'!$AF60/'Volume per connection'!$J$69)","v":86965.906052482329},{"$f":"AA$4*('COM-Appliance class'!$AF60/'Volume per connection'!$J$69)","v":90739.769436842384},{"$f":"AB$4*('COM-Appliance class'!$AF60/'Volume per connection'!$J$69)","v":93107.562646154314},{"$f":"AC$4*('COM-Appliance class'!$AF60/'Volume per connection'!$J$69)","v":94821.459191793139},{"$f":"AD$4*('COM-Appliance class'!$AF60/'Volume per connection'!$J$69)","v":96048.61335270165},{"$f":"AE$4*('COM-Appliance class'!$AF60/'Volume per connection'!$J$69)","v":97077.018384000621},{"$f":"AF$4*('COM-Appliance class'!$AF60/'Volume per connection'!$J$69)","v":98990.741670816846},{"$f":"AG$4*('COM-Appliance class'!$AF60/'Volume per connection'!$J$69)","v":99082.682973188304},{"$f":"AH$4*('COM-Appliance class'!$AF60/'Volume per connection'!$J$69)","v":101090.22335711705},{"$f":"AI$4*('COM-Appliance class'!$AF60/'Volume per connection'!$J$69)","v":101219.41542505345},{"$f":"AJ$4*('COM-Appliance class'!$AF60/'Volume per connection'!$J$69)","v":101348.42531604327},{"$f":"AK$4*('COM-Appliance class'!$AF60/'Volume per connection'!$J$69)","v":101477.25414956067},{"$f":"AL$4*('COM-Appliance class'!$AF60/'Volume per connection'!$J$69)","v":101605.90303813077},{"$f":"AM$4*('COM-Appliance class'!$AF60/'Volume per connection'!$J$69)","v":101734.37308737363},{"$f":"AN$4*('COM-Appliance class'!$AF60/'Volume per connection'!$J$69)","v":101862.66539604732},{"$f":"AO$4*('COM-Appliance class'!$AF60/'Volume per connection'!$J$69)","v":101990.7810560917},{"$f":"AP$4*('COM-Appliance class'!$AF60/'Volume per connection'!$J$69)","v":102118.72115267073},{"$f":"AQ$4*('COM-Appliance class'!$AF60/'Volume per connection'!$J$69)","v":102246.48676421582},{"$f":"AR$4*('COM-Appliance class'!$AF60/'Volume per connection'!$J$69)","v":102374.07896246755},{"$f":"AS$4*('COM-Appliance class'!$AF60/'Volume per connection'!$J$69)","v":102501.4988125184},{"$f":"AT$4*('COM-Appliance class'!$AF60/'Volume per connection'!$J$69)","v":102628.74737285401},{"$f":"AU$4*('COM-Appliance class'!$AF60/'Volume per connection'!$J$69)","v":102755.82569539538},{"$f":"AV$4*('COM-Appliance class'!$AF60/'Volume per connection'!$J$69)","v":102882.73482553966},{"$f":"AW$4*('COM-Appliance class'!$AF60/'Volume per connection'!$J$69)","v":103009.47580220169},{"$f":"AX$4*('COM-Appliance class'!$AF60/'Volume per connection'!$J$69)","v":103136.04965785435},{"$f":"AY$4*('COM-Appliance class'!$AF60/'Volume per connection'!$J$69)","v":103262.45741856949},{"$f":"AZ$4*('COM-Appliance class'!$AF60/'Volume per connection'!$J$69)","v":103388.70010405791},{"$f":"BA$4*('COM-Appliance class'!$AF60/'Volume per connection'!$J$69)","v":103514.77872770981},{"$f":"BB$4*('COM-Appliance class'!$AF60/'Volume per connection'!$J$69)","v":103640.69429663388},{"$f":"BC$4*('COM-Appliance class'!$AF60/'Volume per connection'!$J$69)","v":103766.44781169771},{"$f":"BD$4*('COM-Appliance class'!$AF60/'Volume per connection'!$J$69)","v":103892.04026756616},{"$f":"BE$4*('COM-Appliance class'!$AF60/'Volume per connection'!$J$69)","v":104017.47265274123},{"$f":"BF$4*('COM-Appliance class'!$AF60/'Volume per connection'!$J$69)","v":104142.74594960012},{"$f":"BG$4*('COM-Appliance class'!$AF60/'Volume per connection'!$J$69)","v":104267.86113443419},{"$f":"BH$4*('COM-Appliance class'!$AF60/'Volume per connection'!$J$69)","v":104392.81917748718},{"$f":"BI$4*('COM-Appliance class'!$AF60/'Volume per connection'!$J$69)","v":104517.62104299323},{"$f":"BJ$4*('COM-Appliance class'!$AF60/'Volume per connection'!$J$69)","v":104642.26768921441},{"$f":"BK$4*('COM-Appliance class'!$AF60/'Volume per connection'!$J$69)","v":104766.76006847891},{"$f":"BL$4*('COM-Appliance class'!$AF60/'Volume per connection'!$J$69)","v":104891.0991272176},{"$f":"BM$4*('COM-Appliance class'!$AF60/'Volume per connection'!$J$69)","v":105015.28580600194},{"$f":"BN$4*('COM-Appliance class'!$AF60/'Volume per connection'!$J$69)","v":105139.32103957988},{"$f":"BO$4*('COM-Appliance class'!$AF60/'Volume per connection'!$J$69)","v":105263.20575691349},{"$f":"BP$4*('COM-Appliance class'!$AF60/'Volume per connection'!$J$69)","v":105386.94088121447},{"$f":"BQ$4*('COM-Appliance class'!$AF60/'Volume per connection'!$J$69)","v":105510.52732998096},{"$f":"BR$4*('COM-Appliance class'!$AF60/'Volume per connection'!$J$69)","v":105633.96601503294},{"$f":"BS$4*('COM-Appliance class'!$AF60/'Volume per connection'!$J$69)","v":105757.25784254844},{"$f":"BT$4*('COM-Appliance class'!$AF60/'Volume per connection'!$J$69)","v":105880.40371309848},{"$f":"BU$4*('COM-Appliance class'!$AF60/'Volume per connection'!$J$69)","v":106003.40452168288},{"$f":"BV$4*('COM-Appliance class'!$AF60/'Volume per connection'!$J$69)","v":106126.26115776465},{"$f":"BW$4*('COM-Appliance class'!$AF60/'Volume per connection'!$J$69)","v":106248.97450530554},{"$f":"BX$4*('COM-Appliance class'!$AF60/'Volume per connection'!$J$69)","v":106371.54544279964},{"$f":"BY$4*('COM-Appliance class'!$AF60/'Volume per connection'!$J$69)","v":106493.97484330896},{"$f":"BZ$4*('COM-Appliance class'!$AF60/'Volume per connection'!$J$69)","v":106616.26357449629},{"$f":"CA$4*('COM-Appliance class'!$AF60/'Volume per connection'!$J$69)","v":106738.41249866031},{"$f":"CB$4*('COM-Appliance class'!$AF60/'Volume per connection'!$J$69)","v":106860.42247276829},{"$f":"CC$4*('COM-Appliance class'!$AF60/'Volume per connection'!$J$69)","v":106982.29434849041},{"$f":"CD$4*('COM-Appliance class'!$AF60/'Volume per connection'!$J$69)","v":107104.02897223232}]
["Port Phillip (C)",null,{"$f":"C$4*('COM-Appliance class'!$AF61/'Volume per connection'!$J$69)","v":40347.912048177917},{"$f":"D$4*('COM-Appliance class'!$AF61/'Volume per connection'!$J$69)","v":49592.789008870051},{"$f":"E$4*('COM-Appliance class'!$AF61/'Volume per connection'!$J$69)","v":44069.213014963949},{"$f":"F$4*('COM-Appliance class'!$AF61/'Volume per connection'!$J$69)","v":49022.058867636377},{"$f":"G$4*('COM-Appliance class'!$AF61/'Volume per connection'!$J$69)","v":43160.837665023944},{"$f":"H$4*('COM-Appliance class'!$AF61/'Volume per connection'!$J$69)","v":44305.579643201381},{"$f":"I$4*('COM-Appliance class'!$AF61/'Volume per connection'!$J$69)","v":51380.971899607532},{"$f":"J$4*('COM-Appliance class'!$AF61/'Volume per connection'!$J$69)","v":56541.471647680031},{"$f":"K$4*('COM-Appliance class'!$AF61/'Volume per connection'!$J$69)","v":67687.693993114401},{"$f":"L$4*('COM-Appliance class'!$AF61/'Volume per connection'!$J$69)","v":67112.665050968615},{"$f":"M$4*('COM-Appliance class'!$AF61/'Volume per connection'!$J$69)","v":54531.355977191517},{"$f":"N$4*('COM-Appliance class'!$AF61/'Volume per connection'!$J$69)","v":54276.74587227458},{"$f":"O$4*('COM-Appliance class'!$AF61/'Volume per connection'!$J$69)","v":61766.954403930795},{"$f":"P$4*('COM-Appliance class'!$AF61/'Volume per connection'!$J$69)","v":69016.478947649448},{"$f":"Q$4*('COM-Appliance class'!$AF61/'Volume per connection'!$J$69)","v":48057.932191050168},{"$f":"R$4*('COM-Appliance class'!$AF61/'Volume per connection'!$J$69)","v":51048.710977634786},{"$f":"S$4*('COM-Appliance class'!$AF61/'Volume per connection'!$J$69)","v":55486.421158069657},{"$f":"T$4*('COM-Appliance class'!$AF61/'Volume per connection'!$J$69)","v":61982.651586260698},{"$f":"U$4*('COM-Appliance class'!$AF61/'Volume per connection'!$J$69)","v":66816.736234966374},{"$f":"V$4*('COM-Appliance class'!$AF61/'Volume per connection'!$J$69)","v":68590.559780880823},{"$f":"W$4*('COM-Appliance class'!$AF61/'Volume per connection'!$J$69)","v":71480.497971228629},{"$f":"X$4*('COM-Appliance class'!$AF61/'Volume per connection'!$J$69)","v":78640.449380696213},{"$f":"Y$4*('COM-Appliance class'!$AF61/'Volume per connection'!$J$69)","v":84589.370923996423},{"$f":"Z$4*('COM-Appliance class'!$AF61/'Volume per connection'!$J$69)","v":87947.992116315916},{"$f":"AA$4*('COM-Appliance class'!$AF61/'Volume per connection'!$J$69)","v":91764.472875746549},{"$f":"AB$4*('COM-Appliance class'!$AF61/'Volume per connection'!$J$69)","v":94159.005031600391},{"$f":"AC$4*('COM-Appliance class'!$AF61/'Volume per connection'!$J$69)","v":95892.256218485738},{"$f":"AD$4*('COM-Appliance class'!$AF61/'Volume per connection'!$J$69)","v":97133.268350342958},{"$f":"AE$4*('COM-Appliance class'!$AF61/'Volume per connection'!$J$69)","v":98173.286924178989},{"$f":"AF$4*('COM-Appliance class'!$AF61/'Volume per connection'!$J$69)","v":100108.62144987407},{"$f":"AG$4*('COM-Appliance class'!$AF61/'Volume per connection'!$J$69)","v":100201.60102432074},{"$f":"AH$4*('COM-Appliance class'!$AF61/'Volume per connection'!$J$69)","v":102231.81210212405},{"$f":"AI$4*('COM-Appliance class'!$AF61/'Volume per connection'!$J$69)","v":102362.4631065016},{"$f":"AJ$4*('COM-Appliance class'!$AF61/'Volume per connection'!$J$69)","v":102492.92987665004},{"$f":"AK$4*('COM-Appliance class'!$AF61/'Volume per connection'!$J$69)","v":102623.21354468547},{"$f":"AL$4*('COM-Appliance class'!$AF61/'Volume per connection'!$J$69)","v":102753.31523569651},{"$f":"AM$4*('COM-Appliance class'!$AF61/'Volume per connection'!$J$69)","v":102883.23606778875},{"$f":"AN$4*('COM-Appliance class'!$AF61/'Volume per connection'!$J$69)","v":103012.97715212827},{"$f":"AO$4*('COM-Appliance class'!$AF61/'Volume per connection'!$J$69)","v":103142.53959298595},{"$f":"AP$4*('COM-Appliance class'!$AF61/'Volume per connection'!$J$69)","v":103271.92448778027},{"$f":"AQ$4*('COM-Appliance class'!$AF61/'Volume per connection'!$J$69)","v":103401.13292712111},{"$f":"AR$4*('COM-Appliance class'!$AF61/'Volume per connection'!$J$69)","v":103530.165994852},{"$f":"AS$4*('COM-Appliance class'!$AF61/'Volume per connection'!$J$69)","v":103659.02476809322},{"$f":"AT$4*('COM-Appliance class'!$AF61/'Volume per connection'!$J$69)","v":103787.71031728367},{"$f":"AU$4*('COM-Appliance class'!$AF61/'Volume per connection'!$J$69)","v":103916.22370622345},{"$f":"AV$4*('COM-Appliance class'!$AF61/'Volume per connection'!$J$69)","v":104044.56599211515},{"$f":"AW$4*('COM-Appliance class'!$AF61/'Volume per connection'!$J$69)","v":104172.7382256058},{"$f":"AX$4*('COM-Appliance class'!$AF61/'Volume per connection'!$J$69)","v":104300.74145082782},{"$f":"AY$4*('COM-Appliance class'!$AF61/'Volume per connection'!$J$69)","v":104428.57670544021},{"$f":"AZ$4*('COM-Appliance class'!$AF61/'Volume per connection'!$J$69)","v":104556.24502066914},{"$f":"BA$4*('COM-Appliance class'!$AF61/'Volume per connection'!$J$69)","v":104683.7474213488},{"$f":"BB$4*('COM-Appliance class'!$AF61/'Volume per connection'!$J$69)","v":104811.08492596092},{"$f":"BC$4*('COM-Appliance class'!$AF61/'Volume per connection'!$J$69)","v":104938.25854667567},{"$f":"BD$4*('COM-Appliance class'!$AF61/'Volume per connection'!$J$69)","v":105065.26928939042},{"$f":"BE$4*('COM-Appliance class'!$AF61/'Volume per connection'!$J$69)","v":105192.1181537701},{"$f":"BF$4*('COM-Appliance class'!$AF61/'Volume per connection'!$J$69)","v":105318.80613328569},{"$f":"BG$4*('COM-Appliance class'!$AF61/'Volume per connection'!$J$69)","v":105445.33421525356},{"$f":"BH$4*('COM-Appliance class'!$AF61/'Volume per connection'!$J$69)","v":105571.70338087418},{"$f":"BI$4*('COM-Appliance class'!$AF61/'Volume per connection'!$J$69)","v":105697.91460527059},{"$f":"BJ$4*('COM-Appliance class'!$AF61/'Volume per connection'!$J$69)","v":105823.96885752631},{"$f":"BK$4*('COM-Appliance class'!$AF61/'Volume per connection'!$J$69)","v":105949.8671007239},{"$f":"BL$4*('COM-Appliance class'!$AF61/'Volume per connection'!$J$69)","v":106075.61029198211},{"$f":"BM$4*('COM-Appliance class'!$AF61/'Volume per connection'!$J$69)","v":106201.19938249404},{"$f":"BN$4*('COM-Appliance class'!$AF61/'Volume per connection'!$J$69)","v":106326.63531756353},{"$f":"BO$4*('COM-Appliance class'!$AF61/'Volume per connection'!$J$69)","v":106451.91903664322},{"$f":"BP$4*('COM-Appliance class'!$AF61/'Volume per connection'!$J$69)","v":106577.05147337037},{"$f":"BQ$4*('COM-Appliance class'!$AF61/'Volume per connection'!$J$69)","v":106702.0335556043},{"$f":"BR$4*('COM-Appliance class'!$AF61/'Volume per connection'!$J$69)","v":106826.86620546192},{"$f":"BS$4*('COM-Appliance class'!$AF61/'Volume per connection'!$J$69)","v":106951.55033935452},{"$f":"BT$4*('COM-Appliance class'!$AF61/'Volume per connection'!$J$69)","v":107076.08686802308},{"$f":"BU$4*('COM-Appliance class'!$AF61/'Volume per connection'!$J$69)","v":107200.47669657443},{"$f":"BV$4*('COM-Appliance class'!$AF61/'Volume per connection'!$J$69)","v":107324.72072451608},{"$f":"BW$4*('COM-Appliance class'!$AF61/'Volume per connection'!$J$69)","v":107448.81984579218},{"$f":"BX$4*('COM-Appliance class'!$AF61/'Volume per connection'!$J$69)","v":107572.77494881744},{"$f":"BY$4*('COM-Appliance class'!$AF61/'Volume per connection'!$J$69)","v":107696.58691651316},{"$f":"BZ$4*('COM-Appliance class'!$AF61/'Volume per connection'!$J$69)","v":107820.25662634046},{"$f":"CA$4*('COM-Appliance class'!$AF61/'Volume per connection'!$J$69)","v":107943.78495033573},{"$f":"CB$4*('COM-Appliance class'!$AF61/'Volume per connection'!$J$69)","v":108067.17275514381},{"$f":"CC$4*('COM-Appliance class'!$AF61/'Volume per connection'!$J$69)","v":108190.42090205257},{"$f":"CD$4*('COM-Appliance class'!$AF61/'Volume per connection'!$J$69)","v":108313.53024702593}]
["South Gippsland (S)",null,{"$f":"C$4*('COM-Appliance class'!$AF62/'Volume per connection'!$J$69)","v":38618.335670592656},{"$f":"D$4*('COM-Appliance class'!$AF62/'Volume per connection'!$J$69)","v":47466.916515991317},{"$f":"E$4*('COM-Appliance class'!$AF62/'Volume per connection'!$J$69)","v":42180.117249154748},{"$f":"F$4*('COM-Appliance class'!$AF62/'Volume per connection'!$J$69)","v":46920.651615216062},{"$f":"G$4*('COM-Appliance class'!$AF62/'Volume per connection'!$J$69)","v":41310.680829818171},{"$f":"H$4*('COM-Appliance class'!$AF62/'Volume per connection'!$J$69)","v":42406.351652057681},{"$f":"I$4*('COM-Appliance class'!$AF62/'Volume per connection'!$J$69)","v":49178.446149357544},{"$f":"J$4*('COM-Appliance class'!$AF62/'Volume per connection'!$J$69)","v":54117.733001700937},{"$f":"K$4*('COM-Appliance class'!$AF62/'Volume per connection'!$J$69)","v":64786.155087113009},{"$f":"L$4*('COM-Appliance class'!$AF62/'Volume per connection'!$J$69)","v":64235.775660252562},{"$f":"M$4*('COM-Appliance class'!$AF62/'Volume per connection'!$J$69)","v":52193.784084419858},{"$f":"N$4*('COM-Appliance class'!$AF62/'Volume per connection'!$J$69)","v":51950.088240008721},{"$f":"O$4*('COM-Appliance class'!$AF62/'Volume per connection'!$J$69)","v":59119.217263905746},{"$f":"P$4*('COM-Appliance class'!$AF62/'Volume per connection'!$J$69)","v":66057.979595578116},{"$f":"Q$4*('COM-Appliance class'!$AF62/'Volume per connection'!$J$69)","v":45997.853737077516},{"$f":"R$4*('COM-Appliance class'!$AF62/'Volume per connection'!$J$69)","v":48860.428111654808},{"$f":"S$4*('COM-Appliance class'!$AF62/'Volume per connection'!$J$69)","v":53107.908902041323},{"$f":"T$4*('COM-Appliance class'!$AF62/'Volume per connection'!$J$69)","v":59325.668249039023},{"$f":"U$4*('COM-Appliance class'!$AF62/'Volume per connection'!$J$69)","v":63952.53229595333},{"$f":"V$4*('COM-Appliance class'!$AF62/'Volume per connection'!$J$69)","v":65650.318120278738},{"$f":"W$4*('COM-Appliance class'!$AF62/'Volume per connection'!$J$69)","v":68416.374588550359},{"$f":"X$4*('COM-Appliance class'!$AF62/'Volume per connection'!$J$69)","v":75269.403478515902},{"$f":"Y$4*('COM-Appliance class'!$AF62/'Volume per connection'!$J$69)","v":80963.315192283553},{"$f":"Z$4*('COM-Appliance class'!$AF62/'Volume per connection'!$J$69)","v":84177.963832354086},{"$f":"AA$4*('COM-Appliance class'!$AF62/'Volume per connection'!$J$69)","v":87830.845172832443},{"$f":"AB$4*('COM-Appliance class'!$AF62/'Volume per connection'!$J$69)","v":90122.731961382306},{"$f":"AC$4*('COM-Appliance class'!$AF62/'Volume per connection'!$J$69)","v":91781.684624327201},{"$f":"AD$4*('COM-Appliance class'!$AF62/'Volume per connection'!$J$69)","v":92969.498829486416},{"$f":"AE$4*('COM-Appliance class'!$AF62/'Volume per connection'!$J$69)","v":93964.935379960036},{"$f":"AF$4*('COM-Appliance class'!$AF62/'Volume per connection'!$J$69)","v":95817.308763220513},{"$f":"AG$4*('COM-Appliance class'!$AF62/'Volume per connection'!$J$69)","v":95906.302622734307},{"$f":"AH$4*('COM-Appliance class'!$AF62/'Volume per connection'!$J$69)","v":97849.485526254706},{"$f":"AI$4*('COM-Appliance class'!$AF62/'Volume per connection'!$J$69)","v":97974.535970915313},{"$f":"AJ$4*('COM-Appliance class'!$AF62/'Volume per connection'!$J$69)","v":98099.41007883531},{"$f":"AK$4*('COM-Appliance class'!$AF62/'Volume per connection'!$J$69)","v":98224.108933600844},{"$f":"AL$4*('COM-Appliance class'!$AF62/'Volume per connection'!$J$69)","v":98348.633612071862},{"$f":"AM$4*('COM-Appliance class'!$AF62/'Volume per connection'!$J$69)","v":98472.9851844246},{"$f":"AN$4*('COM-Appliance class'!$AF62/'Volume per connection'!$J$69)","v":98597.164714193263},{"$f":"AO$4*('COM-Appliance class'!$AF62/'Volume per connection'!$J$69)","v":98721.173258312439},{"$f":"AP$4*('COM-Appliance class'!$AF62/'Volume per connection'!$J$69)","v":98845.011867158057},{"$f":"AQ$4*('COM-Appliance class'!$AF62/'Volume per connection'!$J$69)","v":98968.681584589285},{"$f":"AR$4*('COM-Appliance class'!$AF62/'Volume per connection'!$J$69)","v":99092.18344798898},{"$f":"AS$4*('COM-Appliance class'!$AF62/'Volume per connection'!$J$69)","v":99215.518488305039},{"$f":"AT$4*('COM-Appliance class'!$AF62/'Volume per connection'!$J$69)","v":99338.687730090256},{"$f":"AU$4*('COM-Appliance class'!$AF62/'Volume per connection'!$J$69)","v":99461.692191543334},{"$f":"AV$4*('COM-Appliance class'!$AF62/'Volume per connection'!$J$69)","v":99584.532884548185},{"$f":"AW$4*('COM-Appliance class'!$AF62/'Volume per connection'!$J$69)","v":99707.210814714228},{"$f":"AX$4*('COM-Appliance class'!$AF62/'Volume per connection'!$J$69)","v":99829.726981415472},{"$f":"AY$4*('COM-Appliance class'!$AF62/'Volume per connection'!$J$69)","v":99952.082377830098},{"$f":"AZ$4*('COM-Appliance class'!$AF62/'Volume per connection'!$J$69)","v":100074.27799097911},{"$f":"BA$4*('COM-Appliance class'!$AF62/'Volume per connection'!$J$69)","v":100196.31480176562},{"$f":"BB$4*('COM-Appliance class'!$AF62/'Volume per connection'!$J$69)","v":100318.1937850125},{"$f":"BC$4*('COM-Appliance class'!$AF62/'Volume per connection'!$J$69)","v":100439.91590950167},{"$f":"BD$4*('COM-Appliance class'!$AF62/'Volume per connection'!$J$69)","v":100561.48213801115},{"$f":"BE$4*('COM-Appliance class'!$AF62/'Volume per connection'!$J$69)","v":100682.89342735369},{"$f":"BF$4*('COM-Appliance class'!$AF62/'Volume per connection'!$J$69)","v":100804.15072841353},{"$f":"BG$4*('COM-Appliance class'!$AF62/'Volume per connection'!$J$69)","v":100925.25498618421},{"$f":"BH$4*('COM-Appliance class'!$AF62/'Volume per connection'!$J$69)","v":101046.20713980551},{"$f":"BI$4*('COM-Appliance class'!$AF62/'Volume per connection'!$J$69)","v":101167.00812260029},{"$f":"BJ$4*('COM-Appliance class'!$AF62/'Volume per connection'!$J$69)","v":101287.65886211078},{"$f":"BK$4*('COM-Appliance class'!$AF62/'Volume per connection'!$J$69)","v":101408.16028013552},{"$f":"BL$4*('COM-Appliance class'!$AF62/'Volume per connection'!$J$69)","v":101528.51329276484},{"$f":"BM$4*('COM-Appliance class'!$AF62/'Volume per connection'!$J$69)","v":101648.71881041746},{"$f":"BN$4*('COM-Appliance class'!$AF62/'Volume per connection'!$J$69)","v":101768.77773787532},{"$f":"BO$4*('COM-Appliance class'!$AF62/'Volume per connection'!$J$69)","v":101888.69097431992},{"$f":"BP$4*('COM-Appliance class'!$AF62/'Volume per connection'!$J$69)","v":102008.45941336676},{"$f":"BQ$4*('COM-Appliance class'!$AF62/'Volume per connection'!$J$69)","v":102128.08394310092},{"$f":"BR$4*('COM-Appliance class'!$AF62/'Volume per connection'!$J$69)","v":102247.56544611142},{"$f":"BS$4*('COM-Appliance class'!$AF62/'Volume per connection'!$J$69)","v":102366.90479952609},{"$f":"BT$4*('COM-Appliance class'!$AF62/'Volume per connection'!$J$69)","v":102486.10287504559},{"$f":"BU$4*('COM-Appliance class'!$AF62/'Volume per connection'!$J$69)","v":102605.16053897793},{"$f":"BV$4*('COM-Appliance class'!$AF62/'Volume per connection'!$J$69)","v":102724.07865227181},{"$f":"BW$4*('COM-Appliance class'!$AF62/'Volume per connection'!$J$69)","v":102842.8580705511},{"$f":"BX$4*('COM-Appliance class'!$AF62/'Volume per connection'!$J$69)","v":102961.49964414719},{"$f":"BY$4*('COM-Appliance class'!$AF62/'Volume per connection'!$J$69)","v":103080.00421813357},{"$f":"BZ$4*('COM-Appliance class'!$AF62/'Volume per connection'!$J$69)","v":103198.37263235764},{"$f":"CA$4*('COM-Appliance class'!$AF62/'Volume per connection'!$J$69)","v":103316.60572147461},{"$f":"CB$4*('COM-Appliance class'!$AF62/'Volume per connection'!$J$69)","v":103434.70431497917},{"$f":"CC$4*('COM-Appliance class'!$AF62/'Volume per connection'!$J$69)","v":103552.66923723879},{"$f":"CD$4*('COM-Appliance class'!$AF62/'Volume per connection'!$J$69)","v":103670.50130752513}]
["Stonnington (C)",null,{"$f":"C$4*('COM-Appliance class'!$AF63/'Volume per connection'!$J$69)","v":40700.594604290098},{"$f":"D$4*('COM-Appliance class'!$AF63/'Volume per connection'!$J$69)","v":50026.281368313474},{"$f":"E$4*('COM-Appliance class'!$AF63/'Volume per connection'!$J$69)","v":44454.423597197077},{"$f":"F$4*('COM-Appliance class'!$AF63/'Volume per connection'!$J$69)","v":49450.562454307117},{"$f":"G$4*('COM-Appliance class'!$AF63/'Volume per connection'!$J$69)","v":43538.108105523257},{"$f":"H$4*('COM-Appliance class'!$AF63/'Volume per connection'!$J$69)","v":44692.856314666758},{"$f":"I$4*('COM-Appliance class'!$AF63/'Volume per connection'!$J$69)","v":51830.094830267335},{"$f":"J$4*('COM-Appliance class'!$AF63/'Volume per connection'!$J$69)","v":57035.702692975196},{"$f":"K$4*('COM-Appliance class'!$AF63/'Volume per connection'!$J$69)","v":68279.354570403404},{"$f":"L$4*('COM-Appliance class'!$AF63/'Volume per connection'!$J$69)","v":67699.299279510931},{"$f":"M$4*('COM-Appliance class'!$AF63/'Volume per connection'!$J$69)","v":55008.016528828848},{"$f":"N$4*('COM-Appliance class'!$AF63/'Volume per connection'!$J$69)","v":54751.18086779127},{"$f":"O$4*('COM-Appliance class'!$AF63/'Volume per connection'!$J$69)","v":62306.861582682228},{"$f":"P$4*('COM-Appliance class'!$AF63/'Volume per connection'!$J$69)","v":69619.75448220635},{"$f":"Q$4*('COM-Appliance class'!$AF63/'Volume per connection'!$J$69)","v":48478.008311627782},{"$f":"R$4*('COM-Appliance class'!$AF63/'Volume per connection'!$J$69)","v":51494.92960357821},{"$f":"S$4*('COM-Appliance class'!$AF63/'Volume per connection'!$J$69)","v":55971.42996893893},{"$f":"T$4*('COM-Appliance class'!$AF63/'Volume per connection'!$J$69)","v":62524.444181871368},{"$f":"U$4*('COM-Appliance class'!$AF63/'Volume per connection'!$J$69)","v":67400.783739042497},{"$f":"V$4*('COM-Appliance class'!$AF63/'Volume per connection'!$J$69)","v":69190.112340621738},{"$f":"W$4*('COM-Appliance class'!$AF63/'Volume per connection'!$J$69)","v":72105.311585042466},{"$f":"X$4*('COM-Appliance class'!$AF63/'Volume per connection'!$J$69)","v":79327.848388314669},{"$f":"Y$4*('COM-Appliance class'!$AF63/'Volume per connection'!$J$69)","v":85328.769669630987},{"$f":"Z$4*('COM-Appliance class'!$AF63/'Volume per connection'!$J$69)","v":88716.748691067027},{"$f":"AA$4*('COM-Appliance class'!$AF63/'Volume per connection'!$J$69)","v":92566.589446622907},{"$f":"AB$4*('COM-Appliance class'!$AF63/'Volume per connection'!$J$69)","v":94982.052294513807},{"$f":"AC$4*('COM-Appliance class'!$AF63/'Volume per connection'!$J$69)","v":96730.453892608668},{"$f":"AD$4*('COM-Appliance class'!$AF63/'Volume per connection'!$J$69)","v":97982.31375632144},{"$f":"AE$4*('COM-Appliance class'!$AF63/'Volume per connection'!$J$69)","v":99031.423170064794},{"$f":"AF$4*('COM-Appliance class'!$AF63/'Volume per connection'!$J$69)","v":100983.67452473084},{"$f":"AG$4*('COM-Appliance class'!$AF63/'Volume per connection'!$J$69)","v":101077.46683699508},{"$f":"AH$4*('COM-Appliance class'!$AF63/'Volume per connection'!$J$69)","v":103125.42406313718},{"$f":"AI$4*('COM-Appliance class'!$AF63/'Volume per connection'!$J$69)","v":103257.21709266158},{"$f":"AJ$4*('COM-Appliance class'!$AF63/'Volume per connection'!$J$69)","v":103388.82427755884},{"$f":"AK$4*('COM-Appliance class'!$AF63/'Volume per connection'!$J$69)","v":103520.24675984091},{"$f":"AL$4*('COM-Appliance class'!$AF63/'Volume per connection'!$J$69)","v":103651.48567443083},{"$f":"AM$4*('COM-Appliance class'!$AF63/'Volume per connection'!$J$69)","v":103782.54214920764},{"$f":"AN$4*('COM-Appliance class'!$AF63/'Volume per connection'!$J$69)","v":103913.4173050501},{"$f":"AO$4*('COM-Appliance class'!$AF63/'Volume per connection'!$J$69)","v":104044.11225588163},{"$f":"AP$4*('COM-Appliance class'!$AF63/'Volume per connection'!$J$69)","v":104174.62810871322},{"$f":"AQ$4*('COM-Appliance class'!$AF63/'Volume per connection'!$J$69)","v":104304.96596368786},{"$f":"AR$4*('COM-Appliance class'!$AF63/'Volume per connection'!$J$69)","v":104435.12691412294},{"$f":"AS$4*('COM-Appliance class'!$AF63/'Volume per connection'!$J$69)","v":104565.11204655396},{"$f":"AT$4*('COM-Appliance class'!$AF63/'Volume per connection'!$J$69)","v":104694.92244077651},{"$f":"AU$4*('COM-Appliance class'!$AF63/'Volume per connection'!$J$69)","v":104824.55916988943},{"$f":"AV$4*('COM-Appliance class'!$AF63/'Volume per connection'!$J$69)","v":104954.02330033635},{"$f":"AW$4*('COM-Appliance class'!$AF63/'Volume per connection'!$J$69)","v":105083.31589194805},{"$f":"AX$4*('COM-Appliance class'!$AF63/'Volume per connection'!$J$69)","v":105212.43799798371},{"$f":"AY$4*('COM-Appliance class'!$AF63/'Volume per connection'!$J$69)","v":105341.3906651726},{"$f":"AZ$4*('COM-Appliance class'!$AF63/'Volume per connection'!$J$69)","v":105470.17493375484},{"$f":"BA$4*('COM-Appliance class'!$AF63/'Volume per connection'!$J$69)","v":105598.79183752276},{"$f":"BB$4*('COM-Appliance class'!$AF63/'Volume per connection'!$J$69)","v":105727.24240386066},{"$f":"BC$4*('COM-Appliance class'!$AF63/'Volume per connection'!$J$69)","v":105855.52765378611},{"$f":"BD$4*('COM-Appliance class'!$AF63/'Volume per connection'!$J$69)","v":105983.64860198909},{"$f":"BE$4*('COM-Appliance class'!$AF63/'Volume per connection'!$J$69)","v":106111.60625687262},{"$f":"BF$4*('COM-Appliance class'!$AF63/'Volume per connection'!$J$69)","v":106239.40162059166},{"$f":"BG$4*('COM-Appliance class'!$AF63/'Volume per connection'!$J$69)","v":106367.03568909274},{"$f":"BH$4*('COM-Appliance class'!$AF63/'Volume per connection'!$J$69)","v":106494.50945215304},{"$f":"BI$4*('COM-Appliance class'!$AF63/'Volume per connection'!$J$69)","v":106621.82389341918},{"$f":"BJ$4*('COM-Appliance class'!$AF63/'Volume per connection'!$J$69)","v":106748.97999044548},{"$f":"BK$4*('COM-Appliance class'!$AF63/'Volume per connection'!$J$69)","v":106875.97871473286},{"$f":"BL$4*('COM-Appliance class'!$AF63/'Volume per connection'!$J$69)","v":107002.82103176625},{"$f":"BM$4*('COM-Appliance class'!$AF63/'Volume per connection'!$J$69)","v":107129.50790105315},{"$f":"BN$4*('COM-Appliance class'!$AF63/'Volume per connection'!$J$69)","v":107256.04027616038},{"$f":"BO$4*('COM-Appliance class'!$AF63/'Volume per connection'!$J$69)","v":107382.41910475233},{"$f":"BP$4*('COM-Appliance class'!$AF63/'Volume per connection'!$J$69)","v":107508.64532862726},{"$f":"BQ$4*('COM-Appliance class'!$AF63/'Volume per connection'!$J$69)","v":107634.71988375489},{"$f":"BR$4*('COM-Appliance class'!$AF63/'Volume per connection'!$J$69)","v":107760.64370031243},{"$f":"BS$4*('COM-Appliance class'!$AF63/'Volume per connection'!$J$69)","v":107886.41770272153},{"$f":"BT$4*('COM-Appliance class'!$AF63/'Volume per connection'!$J$69)","v":108012.042809684},{"$f":"BU$4*('COM-Appliance class'!$AF63/'Volume per connection'!$J$69)","v":108137.51993421825},{"$f":"BV$4*('COM-Appliance class'!$AF63/'Volume per connection'!$J$69)","v":108262.84998369438},{"$f":"BW$4*('COM-Appliance class'!$AF63/'Volume per connection'!$J$69)","v":108388.03385987059},{"$f":"BX$4*('COM-Appliance class'!$AF63/'Volume per connection'!$J$69)","v":108513.07245892721},{"$f":"BY$4*('COM-Appliance class'!$AF63/'Volume per connection'!$J$69)","v":108637.96667150321},{"$f":"BZ$4*('COM-Appliance class'!$AF63/'Volume per connection'!$J$69)","v":108762.71738272961},{"$f":"CA$4*('COM-Appliance class'!$AF63/'Volume per connection'!$J$69)","v":108887.32547226535},{"$f":"CB$4*('COM-Appliance class'!$AF63/'Volume per connection'!$J$69)","v":109011.79181433059},{"$f":"CC$4*('COM-Appliance class'!$AF63/'Volume per connection'!$J$69)","v":109136.11727774177},{"$f":"CD$4*('COM-Appliance class'!$AF63/'Volume per connection'!$J$69)","v":109260.30272594483}]
["Whitehorse (C)",null,{"$f":"C$4*('COM-Appliance class'!$AF64/'Volume per connection'!$J$69)","v":40939.681981734953},{"$f":"D$4*('COM-Appliance class'!$AF64/'Volume per connection'!$J$69)","v":50320.150598774482},{"$f":"E$4*('COM-Appliance class'!$AF64/'Volume per connection'!$J$69)","v":44715.562080725671},{"$f":"F$4*('COM-Appliance class'!$AF64/'Volume per connection'!$J$69)","v":49741.049740925941},{"$f":"G$4*('COM-Appliance class'!$AF64/'Volume per connection'!$J$69)","v":43793.863879783195},{"$f":"H$4*('COM-Appliance class'!$AF64/'Volume per connection'!$J$69)","v":44955.395422772737},{"$f":"I$4*('COM-Appliance class'!$AF64/'Volume per connection'!$J$69)","v":52134.560196588551},{"$f":"J$4*('COM-Appliance class'!$AF64/'Volume per connection'!$J$69)","v":57370.747345520642},{"$f":"K$4*('COM-Appliance class'!$AF64/'Volume per connection'!$J$69)","v":68680.447772519517},{"$f":"L$4*('COM-Appliance class'!$AF64/'Volume per connection'!$J$69)","v":68096.985064619497},{"$f":"M$4*('COM-Appliance class'!$AF64/'Volume per connection'!$J$69)","v":55331.149950789579},{"$f":"N$4*('COM-Appliance class'!$AF64/'Volume per connection'!$J$69)","v":55072.805560819928},{"$f":"O$4*('COM-Appliance class'!$AF64/'Volume per connection'!$J$69)","v":62672.870587647791},{"$f":"P$4*('COM-Appliance class'!$AF64/'Volume per connection'!$J$69)","v":70028.72159139326},{"$f":"Q$4*('COM-Appliance class'!$AF64/'Volume per connection'!$J$69)","v":48762.782526443676},{"$f":"R$4*('COM-Appliance class'!$AF64/'Volume per connection'!$J$69)","v":51797.426109841268},{"$f":"S$4*('COM-Appliance class'!$AF64/'Volume per connection'!$J$69)","v":56300.222767501662},{"$f":"T$4*('COM-Appliance class'!$AF64/'Volume per connection'!$J$69)","v":62891.731331628755},{"$f":"U$4*('COM-Appliance class'!$AF64/'Volume per connection'!$J$69)","v":67796.715955231717},{"$f":"V$4*('COM-Appliance class'!$AF64/'Volume per connection'!$J$69)","v":69596.555604300505},{"$f":"W$4*('COM-Appliance class'!$AF64/'Volume per connection'!$J$69)","v":72528.879594658079},{"$f":"X$4*('COM-Appliance class'!$AF64/'Volume per connection'!$J$69)","v":79793.843723613914},{"$f":"Y$4*('COM-Appliance class'!$AF64/'Volume per connection'!$J$69)","v":85830.016198318248},{"$f":"Z$4*('COM-Appliance class'!$AF64/'Volume per connection'!$J$69)","v":89237.897214478158},{"$f":"AA$4*('COM-Appliance class'!$AF64/'Volume per connection'!$J$69)","v":93110.353077719206},{"$f":"AB$4*('COM-Appliance class'!$AF64/'Volume per connection'!$J$69)","v":95540.005071573032},{"$f":"AC$4*('COM-Appliance class'!$AF64/'Volume per connection'!$J$69)","v":97298.677299786999},{"$f":"AD$4*('COM-Appliance class'!$AF64/'Volume per connection'!$J$69)","v":98557.890960038945},{"$f":"AE$4*('COM-Appliance class'!$AF64/'Volume per connection'!$J$69)","v":99613.163153978108},{"$f":"AF$4*('COM-Appliance class'!$AF64/'Volume per connection'!$J$69)","v":101576.88261276003},{"$f":"AG$4*('COM-Appliance class'!$AF64/'Volume per connection'!$J$69)","v":101671.22588891514},{"$f":"AH$4*('COM-Appliance class'!$AF64/'Volume per connection'!$J$69)","v":103731.21342387896},{"$f":"AI$4*('COM-Appliance class'!$AF64/'Volume per connection'!$J$69)","v":103863.78064479052},{"$f":"AJ$4*('COM-Appliance class'!$AF64/'Volume per connection'!$J$69)","v":103996.1609293684},{"$f":"AK$4*('COM-Appliance class'!$AF64/'Volume per connection'!$J$69)","v":104128.3554263331},{"$f":"AL$4*('COM-Appliance class'!$AF64/'Volume per connection'!$J$69)","v":104260.36527727453},{"$f":"AM$4*('COM-Appliance class'!$AF64/'Volume per connection'!$J$69)","v":104392.19161669719},{"$f":"AN$4*('COM-Appliance class'!$AF64/'Volume per connection'!$J$69)","v":104523.83557206427},{"$f":"AO$4*('COM-Appliance class'!$AF64/'Volume per connection'!$J$69)","v":104655.29826384265},{"$f":"AP$4*('COM-Appliance class'!$AF64/'Volume per connection'!$J$69)","v":104786.5808055463},{"$f":"AQ$4*('COM-Appliance class'!$AF64/'Volume per connection'!$J$69)","v":104917.68430378071},{"$f":"AR$4*('COM-Appliance class'!$AF64/'Volume per connection'!$J$69)","v":105048.60985828578},{"$f":"AS$4*('COM-Appliance class'!$AF64/'Volume per connection'!$J$69)","v":105179.35856197962},{"$f":"AT$4*('COM-Appliance class'!$AF64/'Volume per connection'!$J$69)","v":105309.93150100087},{"$f":"AU$4*('COM-Appliance class'!$AF64/'Volume per connection'!$J$69)","v":105440.32975475208},{"$f":"AV$4*('COM-Appliance class'!$AF64/'Volume per connection'!$J$69)","v":105570.55439594148},{"$f":"AW$4*('COM-Appliance class'!$AF64/'Volume per connection'!$J$69)","v":105700.60649062561},{"$f":"AX$4*('COM-Appliance class'!$AF64/'Volume per connection'!$J$69)","v":105830.4870982508},{"$f":"AY$4*('COM-Appliance class'!$AF64/'Volume per connection'!$J$69)","v":105960.19727169513},{"$f":"AZ$4*('COM-Appliance class'!$AF64/'Volume per connection'!$J$69)","v":106089.73805730938},{"$f":"BA$4*('COM-Appliance class'!$AF64/'Volume per connection'!$J$69)","v":106219.11049495872},{"$f":"BB$4*('COM-Appliance class'!$AF64/'Volume per connection'!$J$69)","v":106348.31561806257},{"$f":"BC$4*('COM-Appliance class'!$AF64/'Volume per connection'!$J$69)","v":106477.35445363628},{"$f":"BD$4*('COM-Appliance class'!$AF64/'Volume per connection'!$J$69)","v":106606.22802233041},{"$f":"BE$4*('COM-Appliance class'!$AF64/'Volume per connection'!$J$69)","v":106734.93733847166},{"$f":"BF$4*('COM-Appliance class'!$AF64/'Volume per connection'!$J$69)","v":106863.48341010192},{"$f":"BG$4*('COM-Appliance class'!$AF64/'Volume per connection'!$J$69)","v":106991.86723901823},{"$f":"BH$4*('COM-Appliance class'!$AF64/'Volume per connection'!$J$69)","v":107120.08982081201},{"$f":"BI$4*('COM-Appliance class'!$AF64/'Volume per connection'!$J$69)","v":107248.1521449081},{"$f":"BJ$4*('COM-Appliance class'!$AF64/'Volume per connection'!$J$69)","v":107376.05519460326},{"$f":"BK$4*('COM-Appliance class'!$AF64/'Volume per connection'!$J$69)","v":107503.79994710532},{"$f":"BL$4*('COM-Appliance class'!$AF64/'Volume per connection'!$J$69)","v":107631.38737357072},{"$f":"BM$4*('COM-Appliance class'!$AF64/'Volume per connection'!$J$69)","v":107758.81843914343},{"$f":"BN$4*('COM-Appliance class'!$AF64/'Volume per connection'!$J$69)","v":107886.09410299179},{"$f":"BO$4*('COM-Appliance class'!$AF64/'Volume per connection'!$J$69)","v":108013.21531834702},{"$f":"BP$4*('COM-Appliance class'!$AF64/'Volume per connection'!$J$69)","v":108140.18303253983},{"$f":"BQ$4*('COM-Appliance class'!$AF64/'Volume per connection'!$J$69)","v":108266.9981870381},{"$f":"BR$4*('COM-Appliance class'!$AF64/'Volume per connection'!$J$69)","v":108393.66171748313},{"$f":"BS$4*('COM-Appliance class'!$AF64/'Volume per connection'!$J$69)","v":108520.17455372696},{"$f":"BT$4*('COM-Appliance class'!$AF64/'Volume per connection'!$J$69)","v":108646.53761986809},{"$f":"BU$4*('COM-Appliance class'!$AF64/'Volume per connection'!$J$69)","v":108772.75183428825},{"$f":"BV$4*('COM-Appliance class'!$AF64/'Volume per connection'!$J$69)","v":108898.81810968777},{"$f":"BW$4*('COM-Appliance class'!$AF64/'Volume per connection'!$J$69)","v":109024.73735312196},{"$f":"BX$4*('COM-Appliance class'!$AF64/'Volume per connection'!$J$69)","v":109150.51046603567},{"$f":"BY$4*('COM-Appliance class'!$AF64/'Volume per connection'!$J$69)","v":109276.13834429967},{"$f":"BZ$4*('COM-Appliance class'!$AF64/'Volume per connection'!$J$69)","v":109401.62187824456},{"$f":"CA$4*('COM-Appliance class'!$AF64/'Volume per connection'!$J$69)","v":109526.96195269661},{"$f":"CB$4*('COM-Appliance class'!$AF64/'Volume per connection'!$J$69)","v":109652.15944701144},{"$f":"CC$4*('COM-Appliance class'!$AF64/'Volume per connection'!$J$69)","v":109777.21523510916},{"$f":"CD$4*('COM-Appliance class'!$AF64/'Volume per connection'!$J$69)","v":109902.13018550786}]
["Yarra Ranges (S)",null,{"$f":"C$4*('COM-Appliance class'!$AF65/'Volume per connection'!$J$69)","v":39563.977885747532},{"$f":"D$4*('COM-Appliance class'!$AF65/'Volume per connection'!$J$69)","v":48629.232791442162},{"$f":"E$4*('COM-Appliance class'!$AF65/'Volume per connection'!$J$69)","v":43212.976351401274},{"$f":"F$4*('COM-Appliance class'!$AF65/'Volume per connection'!$J$69)","v":48069.591572349185},{"$f":"G$4*('COM-Appliance class'!$AF65/'Volume per connection'!$J$69)","v":42322.250154366069},{"$f":"H$4*('COM-Appliance class'!$AF65/'Volume per connection'!$J$69)","v":43444.750527010365},{"$f":"I$4*('COM-Appliance class'!$AF65/'Volume per connection'!$J$69)","v":50382.672430656523},{"$f":"J$4*('COM-Appliance class'!$AF65/'Volume per connection'!$J$69)","v":55442.906964437469},{"$f":"K$4*('COM-Appliance class'!$AF65/'Volume per connection'!$J$69)","v":66372.56532836525},{"$f":"L$4*('COM-Appliance class'!$AF65/'Volume per connection'!$J$69)","v":65808.708831316399},{"$f":"M$4*('COM-Appliance class'!$AF65/'Volume per connection'!$J$69)","v":53471.846557642668},{"$f":"N$4*('COM-Appliance class'!$AF65/'Volume per connection'!$J$69)","v":53222.183364454548},{"$f":"O$4*('COM-Appliance class'!$AF65/'Volume per connection'!$J$69)","v":60566.861928049926},{"$f":"P$4*('COM-Appliance class'!$AF65/'Volume per connection'!$J$69)","v":67675.53283987772},{"$f":"Q$4*('COM-Appliance class'!$AF65/'Volume per connection'!$J$69)","v":47124.197261338268},{"$f":"R$4*('COM-Appliance class'!$AF65/'Volume per connection'!$J$69)","v":50056.867126195386},{"$f":"S$4*('COM-Appliance class'!$AF65/'Volume per connection'!$J$69)","v":54408.355432019889},{"$f":"T$4*('COM-Appliance class'!$AF65/'Volume per connection'!$J$69)","v":60778.368251884691},{"$f":"U$4*('COM-Appliance class'!$AF65/'Volume per connection'!$J$69)","v":65518.52972321069},{"$f":"V$4*('COM-Appliance class'!$AF65/'Volume per connection'!$J$69)","v":67257.889010501167},{"$f":"W$4*('COM-Appliance class'!$AF65/'Volume per connection'!$J$69)","v":70091.677547503321},{"$f":"X$4*('COM-Appliance class'!$AF65/'Volume per connection'!$J$69)","v":77112.515673871618},{"$f":"Y$4*('COM-Appliance class'!$AF65/'Volume per connection'!$J$69)","v":82945.853470933798},{"$f":"Z$4*('COM-Appliance class'!$AF65/'Volume per connection'!$J$69)","v":86239.218798509202},{"$f":"AA$4*('COM-Appliance class'!$AF65/'Volume per connection'!$J$69)","v":89981.547774224164},{"$f":"AB$4*('COM-Appliance class'!$AF65/'Volume per connection'!$J$69)","v":92329.555699585704},{"$f":"AC$4*('COM-Appliance class'!$AF65/'Volume per connection'!$J$69)","v":94029.130922871002},{"$f":"AD$4*('COM-Appliance class'!$AF65/'Volume per connection'!$J$69)","v":95246.03098159314},{"$f":"AE$4*('COM-Appliance class'!$AF65/'Volume per connection'!$J$69)","v":96265.842658759575},{"$f":"AF$4*('COM-Appliance class'!$AF65/'Volume per connection'!$J$69)","v":98163.574870644414},{"$f":"AG$4*('COM-Appliance class'!$AF65/'Volume per connection'!$J$69)","v":98254.74791134207},{"$f":"AH$4*('COM-Appliance class'!$AF65/'Volume per connection'!$J$69)","v":100245.5132845217},{"$f":"AI$4*('COM-Appliance class'!$AF65/'Volume per connection'!$J$69)","v":100373.62582332599},{"$f":"AJ$4*('COM-Appliance class'!$AF65/'Volume per connection'!$J$69)","v":100501.55770745457},{"$f":"AK$4*('COM-Appliance class'!$AF65/'Volume per connection'!$J$69)","v":100629.31004702726},{"$f":"AL$4*('COM-Appliance class'!$AF65/'Volume per connection'!$J$69)","v":100756.88394527292},{"$f":"AM$4*('COM-Appliance class'!$AF65/'Volume per connection'!$J$69)","v":100884.28049857308},{"$f":"AN$4*('COM-Appliance class'!$AF65/'Volume per connection'!$J$69)","v":101011.50079650452},{"$f":"AO$4*('COM-Appliance class'!$AF65/'Volume per connection'!$J$69)","v":101138.54592188292},{"$f":"AP$4*('COM-Appliance class'!$AF65/'Volume per connection'!$J$69)","v":101265.41695080456},{"$f":"AQ$4*('COM-Appliance class'!$AF65/'Volume per connection'!$J$69)","v":101392.11495268949},{"$f":"AR$4*('COM-Appliance class'!$AF65/'Volume per connection'!$J$69)","v":101518.64099032283},{"$f":"AS$4*('COM-Appliance class'!$AF65/'Volume per connection'!$J$69)","v":101644.99611989714},{"$f":"AT$4*('COM-Appliance class'!$AF65/'Volume per connection'!$J$69)","v":101771.18139105335},{"$f":"AU$4*('COM-Appliance class'!$AF65/'Volume per connection'!$J$69)","v":101897.19784692262},{"$f":"AV$4*('COM-Appliance class'!$AF65/'Volume per connection'!$J$69)","v":102023.04652416674},{"$f":"AW$4*('COM-Appliance class'!$AF65/'Volume per connection'!$J$69)","v":102148.72845301937},{"$f":"AX$4*('COM-Appliance class'!$AF65/'Volume per connection'!$J$69)","v":102274.24465732607},{"$f":"AY$4*('COM-Appliance class'!$AF65/'Volume per connection'!$J$69)","v":102399.59615458483},{"$f":"AZ$4*('COM-Appliance class'!$AF65/'Volume per connection'!$J$69)","v":102524.78395598571},{"$f":"BA$4*('COM-Appliance class'!$AF65/'Volume per connection'!$J$69)","v":102649.80906645108},{"$f":"BB$4*('COM-Appliance class'!$AF65/'Volume per connection'!$J$69)","v":102774.67248467417},{"$f":"BC$4*('COM-Appliance class'!$AF65/'Volume per connection'!$J$69)","v":102899.37520315935},{"$f":"BD$4*('COM-Appliance class'!$AF65/'Volume per connection'!$J$69)","v":103023.91820826005},{"$f":"BE$4*('COM-Appliance class'!$AF65/'Volume per connection'!$J$69)","v":103148.30248021834},{"$f":"BF$4*('COM-Appliance class'!$AF65/'Volume per connection'!$J$69)","v":103272.52899320269},{"$f":"BG$4*('COM-Appliance class'!$AF65/'Volume per connection'!$J$69)","v":103396.59871534657},{"$f":"BH$4*('COM-Appliance class'!$AF65/'Volume per connection'!$J$69)","v":103520.51260878633},{"$f":"BI$4*('COM-Appliance class'!$AF65/'Volume per connection'!$J$69)","v":103644.271629699},{"$f":"BJ$4*('COM-Appliance class'!$AF65/'Volume per connection'!$J$69)","v":103767.8767283394},{"$f":"BK$4*('COM-Appliance class'!$AF65/'Volume per connection'!$J$69)","v":103891.32884907805},{"$f":"BL$4*('COM-Appliance class'!$AF65/'Volume per connection'!$J$69)","v":104014.62893043748},{"$f":"BM$4*('COM-Appliance class'!$AF65/'Volume per connection'!$J$69)","v":104137.7779051297},{"$f":"BN$4*('COM-Appliance class'!$AF65/'Volume per connection'!$J$69)","v":104260.77670009191},{"$f":"BO$4*('COM-Appliance class'!$AF65/'Volume per connection'!$J$69)","v":104383.62623652379},{"$f":"BP$4*('COM-Appliance class'!$AF65/'Volume per connection'!$J$69)","v":104506.32742992263},{"$f":"BQ$4*('COM-Appliance class'!$AF65/'Volume per connection'!$J$69)","v":104628.88119012002},{"$f":"BR$4*('COM-Appliance class'!$AF65/'Volume per connection'!$J$69)","v":104751.28842131674},{"$f":"BS$4*('COM-Appliance class'!$AF65/'Volume per connection'!$J$69)","v":104873.55002211878},{"$f":"BT$4*('COM-Appliance class'!$AF65/'Volume per connection'!$J$69)","v":104995.66688557203},{"$f":"BU$4*('COM-Appliance class'!$AF65/'Volume per connection'!$J$69)","v":105117.63989919765},{"$f":"BV$4*('COM-Appliance class'!$AF65/'Volume per connection'!$J$69)","v":105239.46994502629},{"$f":"BW$4*('COM-Appliance class'!$AF65/'Volume per connection'!$J$69)","v":105361.15789963336},{"$f":"BX$4*('COM-Appliance class'!$AF65/'Volume per connection'!$J$69)","v":105482.70463417222},{"$f":"BY$4*('COM-Appliance class'!$AF65/'Volume per connection'!$J$69)","v":105604.11101440956},{"$f":"BZ$4*('COM-Appliance class'!$AF65/'Volume per connection'!$J$69)","v":105725.377900758},{"$f":"CA$4*('COM-Appliance class'!$AF65/'Volume per connection'!$J$69)","v":105846.50614831087},{"$f":"CB$4*('COM-Appliance class'!$AF65/'Volume per connection'!$J$69)","v":105967.49660687459},{"$f":"CC$4*('COM-Appliance class'!$AF65/'Volume per connection'!$J$69)","v":106088.35012100278},{"$f":"CD$4*('COM-Appliance class'!$AF65/'Volume per connection'!$J$69)","v":106209.06753002852}]
[]
["LGA >900 GJ",2020,{"$f":"B287+1","v":2021},{"$f":"C287+1","v":2022},{"$f":"D287+1","v":2023},{"$f":"E287+1","v":2024},{"$f":"F287+1","v":2025},{"$f":"G287+1","v":2026},{"$f":"H287+1","v":2027},{"$f":"I287+1","v":2028},{"$f":"J287+1","v":2029},{"$f":"K287+1","v":2030},{"$f":"L287+1","v":2031},{"$f":"M287+1","v":2032},{"$f":"N287+1","v":2033},{"$f":"O287+1","v":2034},{"$f":"P287+1","v":2035},{"$f":"Q287+1","v":2036},{"$f":"R287+1","v":2037},{"$f":"S287+1","v":2038},{"$f":"T287+1","v":2039},{"$f":"U287+1","v":2040},{"$f":"V287+1","v":2041},{"$f":"W287+1","v":2042},{"$f":"X287+1","v":2043},{"$f":"Y287+1","v":2044},{"$f":"Z287+1","v":2045},{"$f":"AA287+1","v":2046},{"$f":"AB287+1","v":2047},{"$f":"AC287+1","v":2048},{"$f":"AD287+1","v":2049},{"$f":"AE287+1","v":2050},{"$f":"AF287+1","v":2051},{"$f":"AG287+1","v":2052},{"$f":"AH287+1","v":2053},{"$f":"AI287+1","v":2054},{"$f":"AJ287+1","v":2055},{"$f":"AK287+1","v":2056},{"$f":"AL287+1","v":2057},{"$f":"AM287+1","v":2058},{"$f":"AN287+1","v":2059},{"$f":"AO287+1","v":2060},{"$f":"AP287+1","v":2061},{"$f":"AQ287+1","v":2062},{"$f":"AR287+1","v":2063},{"$f":"AS287+1","v":2064},{"$f":"AT287+1","v":2065},{"$f":"AU287+1","v":2066},{"$f":"AV287+1","v":2067},{"$f":"AW287+1","v":2068},{"$f":"AX287+1","v":2069},{"$f":"AY287+1","v":2070},{"$f":"AZ287+1","v":2071},{"$f":"BA287+1","v":2072},{"$f":"BB287+1","v":2073},{"$f":"BC287+1","v":2074},{"$f":"BD287+1","v":2075},{"$f":"BE287+1","v":2076},{"$f":"BF287+1","v":2077},{"$f":"BG287+1","v":2078},{"$f":"BH287+1","v":2079},{"$f":"BI287+1","v":2080},{"$f":"BJ287+1","v":2081},{"$f":"BK287+1","v":2082},{"$f":"BL287+1","v":2083},{"$f":"BM287+1","v":2084},{"$f":"BN287+1","v":2085},{"$f":"BO287+1","v":2086},{"$f":"BP287+1","v":2087},{"$f":"BQ287+1","v":2088},{"$f":"BR287+1","v":2089},{"$f":"BS287+1","v":2090},{"$f":"BT287+1","v":2091},{"$f":"BU287+1","v":2092},{"$f":"BV287+1","v":2093},{"$f":"BW287+1","v":2094},{"$f":"BX287+1","v":2095},{"$f":"BY287+1","v":2096},{"$f":"BZ287+1","v":2097},{"$f":"CA287+1","v":2098},{"$f":"CB287+1","v":2099},{"$f":"CC287+1","v":2100}]
["Bass Coast (S)",null,{"$f":"C$4*('COM-Appliance class'!$AQ47/'Volume per connection'!$J$69)","v":184262.09934205672},{"$f":"D$4*('COM-Appliance class'!$AQ47/'Volume per connection'!$J$69)","v":226481.89091149613},{"$f":"E$4*('COM-Appliance class'!$AQ47/'Volume per connection'!$J$69)","v":201256.65230937896},{"$f":"F$4*('COM-Appliance class'!$AQ47/'Volume per connection'!$J$69)","v":223875.46275590948},{"$f":"G$4*('COM-Appliance class'!$AQ47/'Volume per connection'!$J$69)","v":197108.25551574418},{"$f":"H$4*('COM-Appliance class'!$AQ47/'Volume per connection'!$J$69)","v":202336.0987769292},{"$f":"I$4*('COM-Appliance class'!$AQ47/'Volume per connection'!$J$69)","v":234648.2201396703},{"$f":"J$4*('COM-Appliance class'!$AQ47/'Volume per connection'!$J$69)","v":258215.35085261968},{"$f":"K$4*('COM-Appliance class'!$AQ47/'Volume per connection'!$J$69)","v":309118.26564659178},{"$f":"L$4*('COM-Appliance class'!$AQ47/'Volume per connection'!$J$69)","v":306492.20559333038},{"$f":"M$4*('COM-Appliance class'!$AQ47/'Volume per connection'!$J$69)","v":249035.49210497708},{"$f":"N$4*('COM-Appliance class'!$AQ47/'Volume per connection'!$J$69)","v":247872.73076085406},{"$f":"O$4*('COM-Appliance class'!$AQ47/'Volume per connection'!$J$69)","v":282079.24798793538},{"$f":"P$4*('COM-Appliance class'!$AQ47/'Volume per connection'!$J$69)","v":315186.60209494148},{"$f":"Q$4*('COM-Appliance class'!$AQ47/'Volume per connection'!$J$69)","v":219472.45907018401},{"$f":"R$4*('COM-Appliance class'!$AQ47/'Volume per connection'!$J$69)","v":233130.84062969909},{"$f":"S$4*('COM-Appliance class'!$AQ47/'Volume per connection'!$J$69)","v":253397.11347033977},{"$f":"T$4*('COM-Appliance class'!$AQ47/'Volume per connection'!$J$69)","v":283064.30058720784},{"$f":"U$4*('COM-Appliance class'!$AQ47/'Volume per connection'!$J$69)","v":305140.74867463601},{"$f":"V$4*('COM-Appliance class'!$AQ47/'Volume per connection'!$J$69)","v":313241.50120037486},{"$f":"W$4*('COM-Appliance class'!$AQ47/'Volume per connection'!$J$69)","v":326439.3607894021},{"$f":"X$4*('COM-Appliance class'!$AQ47/'Volume per connection'!$J$69)","v":359137.64952167351},{"$f":"Y$4*('COM-Appliance class'!$AQ47/'Volume per connection'!$J$69)","v":386305.36940469494},{"$f":"Z$4*('COM-Appliance class'!$AQ47/'Volume per connection'!$J$69)","v":401643.6251006166},{"$f":"AA$4*('COM-Appliance class'!$AQ47/'Volume per connection'!$J$69)","v":419072.84810456174},{"$f":"AB$4*('COM-Appliance class'!$AQ47/'Volume per connection'!$J$69)","v":430008.27201083081},{"$f":"AC$4*('COM-Appliance class'!$AQ47/'Volume per connection'!$J$69)","v":437923.73742577608},{"$f":"AD$4*('COM-Appliance class'!$AQ47/'Volume per connection'!$J$69)","v":443591.23021826375},{"$f":"AE$4*('COM-Appliance class'!$AQ47/'Volume per connection'!$J$69)","v":448340.81938017462},{"$f":"AF$4*('COM-Appliance class'!$AQ47/'Volume per connection'!$J$69)","v":457179.16527048801},{"$f":"AG$4*('COM-Appliance class'!$AQ47/'Volume per connection'!$J$69)","v":457603.78728222969},{"$f":"AH$4*('COM-Appliance class'!$AQ47/'Volume per connection'!$J$69)","v":466875.41836085526},{"$f":"AI$4*('COM-Appliance class'!$AQ47/'Volume per connection'!$J$69)","v":467472.07943018171},{"$f":"AJ$4*('COM-Appliance class'!$AQ47/'Volume per connection'!$J$69)","v":468067.89913290198},{"$f":"AK$4*('COM-Appliance class'!$AQ47/'Volume per connection'!$J$69)","v":468662.88263919909},{"$f":"AL$4*('COM-Appliance class'!$AQ47/'Volume per connection'!$J$69)","v":469257.03508716269},{"$f":"AM$4*('COM-Appliance class'!$AQ47/'Volume per connection'!$J$69)","v":469850.36158299225},{"$f":"AN$4*('COM-Appliance class'!$AQ47/'Volume per connection'!$J$69)","v":470442.86720119545},{"$f":"AO$4*('COM-Appliance class'!$AQ47/'Volume per connection'!$J$69)","v":471034.55698479095},{"$f":"AP$4*('COM-Appliance class'!$AQ47/'Volume per connection'!$J$69)","v":471625.43594550365},{"$f":"AQ$4*('COM-Appliance class'!$AQ47/'Volume per connection'!$J$69)","v":472215.50906396454},{"$f":"AR$4*('COM-Appliance class'!$AQ47/'Volume per connection'!$J$69)","v":472804.78128990391},{"$f":"AS$4*('COM-Appliance class'!$AQ47/'Volume per connection'!$J$69)","v":473393.25754234841},{"$f":"AT$4*('COM-Appliance class'!$AQ47/'Volume per connection'!$J$69)","v":473980.94270981138},{"$f":"AU$4*('COM-Appliance class'!$AQ47/'Volume per connection'!$J$69)","v":474567.8416504885},{"$f":"AV$4*('COM-Appliance class'!$AQ47/'Volume per connection'!$J$69)","v":475153.95919244515},{"$f":"AW$4*('COM-Appliance class'!$AQ47/'Volume per connection'!$J$69)","v":475739.3001338091},{"$f":"AX$4*('COM-Appliance class'!$AQ47/'Volume per connection'!$J$69)","v":476323.86924295651},{"$f":"AY$4*('COM-Appliance class'!$AQ47/'Volume per connection'!$J$69)","v":476907.67125870095},{"$f":"AZ$4*('COM-Appliance class'!$AQ47/'Volume per connection'!$J$69)","v":477490.71089047811},{"$f":"BA$4*('COM-Appliance class'!$AQ47/'Volume per connection'!$J$69)","v":478072.99281853263},{"$f":"BB$4*('COM-Appliance class'!$AQ47/'Volume per connection'!$J$69)","v":478654.52169409854},{"$f":"BC$4*('COM-Appliance class'!$AQ47/'Volume per connection'!$J$69)","v":479235.30213958595},{"$f":"BD$4*('COM-Appliance class'!$AQ47/'Volume per connection'!$J$69)","v":479815.33874875843},{"$f":"BE$4*('COM-Appliance class'!$AQ47/'Volume per connection'!$J$69)","v":480394.63608691673},{"$f":"BF$4*('COM-Appliance class'!$AQ47/'Volume per connection'!$J$69)","v":480973.19869107509},{"$f":"BG$4*('COM-Appliance class'!$AQ47/'Volume per connection'!$J$69)","v":481551.0310701406},{"$f":"BH$4*('COM-Appliance class'!$AQ47/'Volume per connection'!$J$69)","v":482128.13770509005},{"$f":"BI$4*('COM-Appliance class'!$AQ47/'Volume per connection'!$J$69)","v":482704.52304914565},{"$f":"BJ$4*('COM-Appliance class'!$AQ47/'Volume per connection'!$J$69)","v":483280.19152794813},{"$f":"BK$4*('COM-Appliance class'!$AQ47/'Volume per connection'!$J$69)","v":483855.14753973298},{"$f":"BL$4*('COM-Appliance class'!$AQ47/'Volume per connection'!$J$69)","v":484429.39545549976},{"$f":"BM$4*('COM-Appliance class'!$AQ47/'Volume per connection'!$J$69)","v":485002.93961918668},{"$f":"BN$4*('COM-Appliance class'!$AQ47/'Volume per connection'!$J$69)","v":485575.78434783686},{"$f":"BO$4*('COM-Appliance class'!$AQ47/'Volume per connection'!$J$69)","v":486147.93393177161},{"$f":"BP$4*('COM-Appliance class'!$AQ47/'Volume per connection'!$J$69)","v":486719.39263475488},{"$f":"BQ$4*('COM-Appliance class'!$AQ47/'Volume per connection'!$J$69)","v":487290.16469416319},{"$f":"BR$4*('COM-Appliance class'!$AQ47/'Volume per connection'!$J$69)","v":487860.25432114885},{"$f":"BS$4*('COM-Appliance class'!$AQ47/'Volume per connection'!$J$69)","v":488429.66570080747},{"$f":"BT$4*('COM-Appliance class'!$AQ47/'Volume per connection'!$J$69)","v":488998.40299233922},{"$f":"BU$4*('COM-Appliance class'!$AQ47/'Volume per connection'!$J$69)","v":489566.47032921412},{"$f":"BV$4*('COM-Appliance class'!$AQ47/'Volume per connection'!$J$69)","v":490133.87181933102},{"$f":"BW$4*('COM-Appliance class'!$AQ47/'Volume per connection'!$J$69)","v":490700.61154518183},{"$f":"BX$4*('COM-Appliance class'!$AQ47/'Volume per connection'!$J$69)","v":491266.69356400659},{"$f":"BY$4*('COM-Appliance class'!$AQ47/'Volume per connection'!$J$69)","v":491832.12190795765},{"$f":"BZ$4*('COM-Appliance class'!$AQ47/'Volume per connection'!$J$69)","v":492396.90058425168},{"$f":"CA$4*('COM-Appliance class'!$AQ47/'Volume per connection'!$J$69)","v":492961.03357533185},{"$f":"CB$4*('COM-Appliance class'!$AQ47/'Volume per connection'!$J$69)","v":493524.52483901841},{"$f":"CC$4*('COM-Appliance class'!$AQ47/'Volume per connection'!$J$69)","v":494087.37830866786},{"$f":"CD$4*('COM-Appliance class'!$AQ47/'Volume per connection'!$J$69)","v":494649.5978933227}]
["Bayside (C)",null,{"$f":"C$4*('COM-Appliance class'!$AQ48/'Volume per connection'!$J$69)","v":127835.79542968619},{"$f":"D$4*('COM-Appliance class'!$AQ48/'Volume per connection'!$J$69)","v":157126.68410091367},{"$f":"E$4*('COM-Appliance class'!$AQ48/'Volume per connection'!$J$69)","v":139626.1321527939},{"$f":"F$4*('COM-Appliance class'!$AQ48/'Volume per connection'!$J$69)","v":155318.41849616106},{"$f":"G$4*('COM-Appliance class'!$AQ48/'Volume per connection'!$J$69)","v":136748.09263318649},{"$f":"H$4*('COM-Appliance class'!$AQ48/'Volume per connection'!$J$69)","v":140375.02136167503},{"$f":"I$4*('COM-Appliance class'!$AQ48/'Volume per connection'!$J$69)","v":162792.25068434002},{"$f":"J$4*('COM-Appliance class'!$AQ48/'Volume per connection'!$J$69)","v":179142.45461364929},{"$f":"K$4*('COM-Appliance class'!$AQ48/'Volume per connection'!$J$69)","v":214457.44682101163},{"$f":"L$4*('COM-Appliance class'!$AQ48/'Volume per connection'!$J$69)","v":212635.56116490823},{"$f":"M$4*('COM-Appliance class'!$AQ48/'Volume per connection'!$J$69)","v":172773.73012213793},{"$f":"N$4*('COM-Appliance class'!$AQ48/'Volume per connection'!$J$69)","v":171967.03942529028},{"$f":"O$4*('COM-Appliance class'!$AQ48/'Volume per connection'!$J$69)","v":195698.54663277997},{"$f":"P$4*('COM-Appliance class'!$AQ48/'Volume per connection'!$J$69)","v":218667.48577953706},{"$f":"Q$4*('COM-Appliance class'!$AQ48/'Volume per connection'!$J$69)","v":152263.7399678345},{"$f":"R$4*('COM-Appliance class'!$AQ48/'Volume per connection'!$J$69)","v":161739.53600607192},{"$f":"S$4*('COM-Appliance class'!$AQ48/'Volume per connection'!$J$69)","v":175799.69877545931},{"$f":"T$4*('COM-Appliance class'!$AQ48/'Volume per connection'!$J$69)","v":196381.94806485806},{"$f":"U$4*('COM-Appliance class'!$AQ48/'Volume per connection'!$J$69)","v":211697.95885381367},{"$f":"V$4*('COM-Appliance class'!$AQ48/'Volume per connection'!$J$69)","v":217318.03018918083},{"$f":"W$4*('COM-Appliance class'!$AQ48/'Volume per connection'!$J$69)","v":226474.32920323164},{"$f":"X$4*('COM-Appliance class'!$AQ48/'Volume per connection'!$J$69)","v":249159.47044608623},{"$f":"Y$4*('COM-Appliance class'!$AQ48/'Volume per connection'!$J$69)","v":268007.66057122854},{"$f":"Z$4*('COM-Appliance class'!$AQ48/'Volume per connection'!$J$69)","v":278648.90543055336},{"$f":"AA$4*('COM-Appliance class'!$AQ48/'Volume per connection'!$J$69)","v":290740.8038425789},{"$f":"AB$4*('COM-Appliance class'!$AQ48/'Volume per connection'!$J$69)","v":298327.48943017574},{"$f":"AC$4*('COM-Appliance class'!$AQ48/'Volume per connection'!$J$69)","v":303819.01384636771},{"$f":"AD$4*('COM-Appliance class'!$AQ48/'Volume per connection'!$J$69)","v":307750.95889533148},{"$f":"AE$4*('COM-Appliance class'!$AQ48/'Volume per connection'!$J$69)","v":311046.08855381852},{"$f":"AF$4*('COM-Appliance class'!$AQ48/'Volume per connection'!$J$69)","v":317177.88115362765},{"$f":"AG$4*('COM-Appliance class'!$AQ48/'Volume per connection'!$J$69)","v":317472.47180912201},{"$f":"AH$4*('COM-Appliance class'!$AQ48/'Volume per connection'!$J$69)","v":323904.86532954132},{"$f":"AI$4*('COM-Appliance class'!$AQ48/'Volume per connection'!$J$69)","v":324318.81178229325},{"$f":"AJ$4*('COM-Appliance class'!$AQ48/'Volume per connection'!$J$69)","v":324732.17451886198},{"$f":"AK$4*('COM-Appliance class'!$AQ48/'Volume per connection'!$J$69)","v":325144.95712617307},{"$f":"AL$4*('COM-Appliance class'!$AQ48/'Volume per connection'!$J$69)","v":325557.16316888685},{"$f":"AM$4*('COM-Appliance class'!$AQ48/'Volume per connection'!$J$69)","v":325968.79618953902},{"$f":"AN$4*('COM-Appliance class'!$AQ48/'Volume per connection'!$J$69)","v":326379.85970867844},{"$f":"AO$4*('COM-Appliance class'!$AQ48/'Volume per connection'!$J$69)","v":326790.35722500784},{"$f":"AP$4*('COM-Appliance class'!$AQ48/'Volume per connection'!$J$69)","v":327200.29221551906},{"$f":"AQ$4*('COM-Appliance class'!$AQ48/'Volume per connection'!$J$69)","v":327609.66813563218},{"$f":"AR$4*('COM-Appliance class'!$AQ48/'Volume per connection'!$J$69)","v":328018.48841932893},{"$f":"AS$4*('COM-Appliance class'!$AQ48/'Volume per connection'!$J$69)","v":328426.75647928996},{"$f":"AT$4*('COM-Appliance class'!$AQ48/'Volume per connection'!$J$69)","v":328834.47570702649},{"$f":"AU$4*('COM-Appliance class'!$AQ48/'Volume per connection'!$J$69)","v":329241.64947301632},{"$f":"AV$4*('COM-Appliance class'!$AQ48/'Volume per connection'!$J$69)","v":329648.2811268337},{"$f":"AW$4*('COM-Appliance class'!$AQ48/'Volume per connection'!$J$69)","v":330054.37399728294},{"$f":"AX$4*('COM-Appliance class'!$AQ48/'Volume per connection'!$J$69)","v":330459.93139252765},{"$f":"AY$4*('COM-Appliance class'!$AQ48/'Volume per connection'!$J$69)","v":330864.95660022163},{"$f":"AZ$4*('COM-Appliance class'!$AQ48/'Volume per connection'!$J$69)","v":331269.45288763719},{"$f":"BA$4*('COM-Appliance class'!$AQ48/'Volume per connection'!$J$69)","v":331673.42350179481},{"$f":"BB$4*('COM-Appliance class'!$AQ48/'Volume per connection'!$J$69)","v":332076.87166958809},{"$f":"BC$4*('COM-Appliance class'!$AQ48/'Volume per connection'!$J$69)","v":332479.80059791356},{"$f":"BD$4*('COM-Appliance class'!$AQ48/'Volume per connection'!$J$69)","v":332882.21347379341},{"$f":"BE$4*('COM-Appliance class'!$AQ48/'Volume per connection'!$J$69)","v":333284.11346450337},{"$f":"BF$4*('COM-Appliance class'!$AQ48/'Volume per connection'!$J$69)","v":333685.50371769461},{"$f":"BG$4*('COM-Appliance class'!$AQ48/'Volume per connection'!$J$69)","v":334086.3873615184},{"$f":"BH$4*('COM-Appliance class'!$AQ48/'Volume per connection'!$J$69)","v":334486.76750474883},{"$f":"BI$4*('COM-Appliance class'!$AQ48/'Volume per connection'!$J$69)","v":334886.6472369046},{"$f":"BJ$4*('COM-Appliance class'!$AQ48/'Volume per connection'!$J$69)","v":335286.02962836914},{"$f":"BK$4*('COM-Appliance class'!$AQ48/'Volume per connection'!$J$69)","v":335684.91773051303},{"$f":"BL$4*('COM-Appliance class'!$AQ48/'Volume per connection'!$J$69)","v":336083.31457581115},{"$f":"BM$4*('COM-Appliance class'!$AQ48/'Volume per connection'!$J$69)","v":336481.22317796416},{"$f":"BN$4*('COM-Appliance class'!$AQ48/'Volume per connection'!$J$69)","v":336878.64653201349},{"$f":"BO$4*('COM-Appliance class'!$AQ48/'Volume per connection'!$J$69)","v":337275.58761446195},{"$f":"BP$4*('COM-Appliance class'!$AQ48/'Volume per connection'!$J$69)","v":337672.04938338749},{"$f":"BQ$4*('COM-Appliance class'!$AQ48/'Volume per connection'!$J$69)","v":338068.03477856121},{"$f":"BR$4*('COM-Appliance class'!$AQ48/'Volume per connection'!$J$69)","v":338463.54672156065},{"$f":"BS$4*('COM-Appliance class'!$AQ48/'Volume per connection'!$J$69)","v":338858.5881158858},{"$f":"BT$4*('COM-Appliance class'!$AQ48/'Volume per connection'!$J$69)","v":339253.16184707143},{"$f":"BU$4*('COM-Appliance class'!$AQ48/'Volume per connection'!$J$69)","v":339647.27078280115},{"$f":"BV$4*('COM-Appliance class'!$AQ48/'Volume per connection'!$J$69)","v":340040.91777301824},{"$f":"BW$4*('COM-Appliance class'!$AQ48/'Volume per connection'!$J$69)","v":340434.10565003927},{"$f":"BX$4*('COM-Appliance class'!$AQ48/'Volume per connection'!$J$69)","v":340826.83722866181},{"$f":"BY$4*('COM-Appliance class'!$AQ48/'Volume per connection'!$J$69)","v":341219.11530627823},{"$f":"BZ$4*('COM-Appliance class'!$AQ48/'Volume per connection'!$J$69)","v":341610.9426629814},{"$f":"CA$4*('COM-Appliance class'!$AQ48/'Volume per connection'!$J$69)","v":342002.32206167688},{"$f":"CB$4*('COM-Appliance class'!$AQ48/'Volume per connection'!$J$69)","v":342393.25624818762},{"$f":"CC$4*('COM-Appliance class'!$AQ48/'Volume per connection'!$J$69)","v":342783.74795136432},{"$f":"CD$4*('COM-Appliance class'!$AQ48/'Volume per connection'!$J$69)","v":343173.79988318932}]
["Boroondara (C)",null,{"$f":"C$4*('COM-Appliance class'!$AQ49/'Volume per connection'!$J$69)","v":121091.68471893154},{"$f":"D$4*('COM-Appliance class'!$AQ49/'Volume per connection'!$J$69)","v":148837.30201017376},{"$f":"E$4*('COM-Appliance class'!$AQ49/'Volume per connection'!$J$69)","v":132260.00993180109},{"$f":"F$4*('COM-Appliance class'!$AQ49/'Volume per connection'!$J$69)","v":147124.43334328124},{"$f":"G$4*('COM-Appliance class'!$AQ49/'Volume per connection'!$J$69)","v":129533.80438862352},{"$f":"H$4*('COM-Appliance class'!$AQ49/'Volume per connection'!$J$69)","v":132969.39070943411},{"$f":"I$4*('COM-Appliance class'!$AQ49/'Volume per connection'!$J$69)","v":154203.97571974306},{"$f":"J$4*('COM-Appliance class'!$AQ49/'Volume per connection'!$J$69)","v":169691.60758876169},{"$f":"K$4*('COM-Appliance class'!$AQ49/'Volume per connection'!$J$69)","v":203143.52055141525},{"$f":"L$4*('COM-Appliance class'!$AQ49/'Volume per connection'!$J$69)","v":201417.75037318558},{"$f":"M$4*('COM-Appliance class'!$AQ49/'Volume per connection'!$J$69)","v":163658.8717998878},{"$f":"N$4*('COM-Appliance class'!$AQ49/'Volume per connection'!$J$69)","v":162894.73891206842},{"$f":"O$4*('COM-Appliance class'!$AQ49/'Volume per connection'!$J$69)","v":185374.26570669783},{"$f":"P$4*('COM-Appliance class'!$AQ49/'Volume per connection'!$J$69)","v":207131.45451393817},{"$f":"Q$4*('COM-Appliance class'!$AQ49/'Volume per connection'!$J$69)","v":144230.90756651034},{"$f":"R$4*('COM-Appliance class'!$AQ49/'Volume per connection'!$J$69)","v":153206.7981022271},{"$f":"S$4*('COM-Appliance class'!$AQ49/'Volume per connection'!$J$69)","v":166525.20232105159},{"$f":"T$4*('COM-Appliance class'!$AQ49/'Volume per connection'!$J$69)","v":186021.61358349171},{"$f":"U$4*('COM-Appliance class'!$AQ49/'Volume per connection'!$J$69)","v":200529.61224985964},{"$f":"V$4*('COM-Appliance class'!$AQ49/'Volume per connection'!$J$69)","v":205853.19086062914},{"$f":"W$4*('COM-Appliance class'!$AQ49/'Volume per connection'!$J$69)","v":214526.43977088097},{"$f":"X$4*('COM-Appliance class'!$AQ49/'Volume per connection'!$J$69)","v":236014.8027286185},{"$f":"Y$4*('COM-Appliance class'!$AQ49/'Volume per connection'!$J$69)","v":253868.63692650234},{"$f":"Z$4*('COM-Appliance class'!$AQ49/'Volume per connection'!$J$69)","v":263948.49181527697},{"$f":"AA$4*('COM-Appliance class'!$AQ49/'Volume per connection'!$J$69)","v":275402.4695156599},{"$f":"AB$4*('COM-Appliance class'!$AQ49/'Volume per connection'!$J$69)","v":282588.91159275593},{"$f":"AC$4*('COM-Appliance class'!$AQ49/'Volume per connection'!$J$69)","v":287790.72491113591},{"$f":"AD$4*('COM-Appliance class'!$AQ49/'Volume per connection'!$J$69)","v":291515.23609832657},{"$f":"AE$4*('COM-Appliance class'!$AQ49/'Volume per connection'!$J$69)","v":294636.52775511437},{"$f":"AF$4*('COM-Appliance class'!$AQ49/'Volume per connection'!$J$69)","v":300444.83124133444},{"$f":"AG$4*('COM-Appliance class'!$AQ49/'Volume per connection'!$J$69)","v":300723.88045956293},{"$f":"AH$4*('COM-Appliance class'!$AQ49/'Volume per connection'!$J$69)","v":306816.92635132285},{"$f":"AI$4*('COM-Appliance class'!$AQ49/'Volume per connection'!$J$69)","v":307209.03462724568},{"$f":"AJ$4*('COM-Appliance class'!$AQ49/'Volume per connection'!$J$69)","v":307600.58998154127},{"$f":"AK$4*('COM-Appliance class'!$AQ49/'Volume per connection'!$J$69)","v":307991.5958119033},{"$f":"AL$4*('COM-Appliance class'!$AQ49/'Volume per connection'!$J$69)","v":308382.05549493467},{"$f":"AM$4*('COM-Appliance class'!$AQ49/'Volume per connection'!$J$69)","v":308771.97238628089},{"$f":"AN$4*('COM-Appliance class'!$AQ49/'Volume per connection'!$J$69)","v":309161.3498207606},{"$f":"AO$4*('COM-Appliance class'!$AQ49/'Volume per connection'!$J$69)","v":309550.19111249881},{"$f":"AP$4*('COM-Appliance class'!$AQ49/'Volume per connection'!$J$69)","v":309938.49955505511},{"$f":"AQ$4*('COM-Appliance class'!$AQ49/'Volume per connection'!$J$69)","v":310326.27842155518},{"$f":"AR$4*('COM-Appliance class'!$AQ49/'Volume per connection'!$J$69)","v":310713.53096481756},{"$f":"AS$4*('COM-Appliance class'!$AQ49/'Volume per connection'!$J$69)","v":311100.26041748322},{"$f":"AT$4*('COM-Appliance class'!$AQ49/'Volume per connection'!$J$69)","v":311486.46999214089},{"$f":"AU$4*('COM-Appliance class'!$AQ49/'Volume per connection'!$J$69)","v":311872.16288145509},{"$f":"AV$4*('COM-Appliance class'!$AQ49/'Volume per connection'!$J$69)","v":312257.34225828998},{"$f":"AW$4*('COM-Appliance class'!$AQ49/'Volume per connection'!$J$69)","v":312642.01127583516},{"$f":"AX$4*('COM-Appliance class'!$AQ49/'Volume per connection'!$J$69)","v":313026.1730677287},{"$f":"AY$4*('COM-Appliance class'!$AQ49/'Volume per connection'!$J$69)","v":313409.83074818074},{"$f":"AZ$4*('COM-Appliance class'!$AQ49/'Volume per connection'!$J$69)","v":313792.9874120953},{"$f":"BA$4*('COM-Appliance class'!$AQ49/'Volume per connection'!$J$69)","v":314175.64613519289},{"$f":"BB$4*('COM-Appliance class'!$AQ49/'Volume per connection'!$J$69)","v":314557.80997412896},{"$f":"BC$4*('COM-Appliance class'!$AQ49/'Volume per connection'!$J$69)","v":314939.48196661688},{"$f":"BD$4*('COM-Appliance class'!$AQ49/'Volume per connection'!$J$69)","v":315320.66513154417},{"$f":"BE$4*('COM-Appliance class'!$AQ49/'Volume per connection'!$J$69)","v":315701.36246909358},{"$f":"BF$4*('COM-Appliance class'!$AQ49/'Volume per connection'!$J$69)","v":316081.57696085866},{"$f":"BG$4*('COM-Appliance class'!$AQ49/'Volume per connection'!$J$69)","v":316461.31156996184},{"$f":"BH$4*('COM-Appliance class'!$AQ49/'Volume per connection'!$J$69)","v":316840.56924117054},{"$f":"BI$4*('COM-Appliance class'!$AQ49/'Volume per connection'!$J$69)","v":317219.35290101275},{"$f":"BJ$4*('COM-Appliance class'!$AQ49/'Volume per connection'!$J$69)","v":317597.66545789066},{"$f":"BK$4*('COM-Appliance class'!$AQ49/'Volume per connection'!$J$69)","v":317975.50980219641},{"$f":"BL$4*('COM-Appliance class'!$AQ49/'Volume per connection'!$J$69)","v":318352.8888064237},{"$f":"BM$4*('COM-Appliance class'!$AQ49/'Volume per connection'!$J$69)","v":318729.80532528216},{"$f":"BN$4*('COM-Appliance class'!$AQ49/'Volume per connection'!$J$69)","v":319106.26219580683},{"$f":"BO$4*('COM-Appliance class'!$AQ49/'Volume per connection'!$J$69)","v":319482.26223747182},{"$f":"BP$4*('COM-Appliance class'!$AQ49/'Volume per connection'!$J$69)","v":319857.80825229868},{"$f":"BQ$4*('COM-Appliance class'!$AQ49/'Volume per connection'!$J$69)","v":320232.90302496782},{"$f":"BR$4*('COM-Appliance class'!$AQ49/'Volume per connection'!$J$69)","v":320607.54932292586},{"$f":"BS$4*('COM-Appliance class'!$AQ49/'Volume per connection'!$J$69)","v":320981.74989649578},{"$f":"BT$4*('COM-Appliance class'!$AQ49/'Volume per connection'!$J$69)","v":321355.50747898273},{"$f":"BU$4*('COM-Appliance class'!$AQ49/'Volume per connection'!$J$69)","v":321728.82478678285},{"$f":"BV$4*('COM-Appliance class'!$AQ49/'Volume per connection'!$J$69)","v":322101.70451948763},{"$f":"BW$4*('COM-Appliance class'!$AQ49/'Volume per connection'!$J$69)","v":322474.14935999189},{"$f":"BX$4*('COM-Appliance class'!$AQ49/'Volume per connection'!$J$69)","v":322846.16197459545},{"$f":"BY$4*('COM-Appliance class'!$AQ49/'Volume per connection'!$J$69)","v":323217.7450131115},{"$f":"BZ$4*('COM-Appliance class'!$AQ49/'Volume per connection'!$J$69)","v":323588.90110896615},{"$f":"CA$4*('COM-Appliance class'!$AQ49/'Volume per connection'!$J$69)","v":323959.63287930493},{"$f":"CB$4*('COM-Appliance class'!$AQ49/'Volume per connection'!$J$69)","v":324329.94292509212},{"$f":"CC$4*('COM-Appliance class'!$AQ49/'Volume per connection'!$J$69)","v":324699.83383121504},{"$f":"CD$4*('COM-Appliance class'!$AQ49/'Volume per connection'!$J$69)","v":325069.3081665826}]
["Cardinia (S)",null,{"$f":"C$4*('COM-Appliance class'!$AQ50/'Volume per connection'!$J$69)","v":71196.023940525847},{"$f":"D$4*('COM-Appliance class'!$AQ50/'Volume per connection'!$J$69)","v":87509.09809996991},{"$f":"E$4*('COM-Appliance class'!$AQ50/'Volume per connection'!$J$69)","v":77762.456235828839},{"$f":"F$4*('COM-Appliance class'!$AQ50/'Volume per connection'!$J$69)","v":86502.014592145933},{"$f":"G$4*('COM-Appliance class'!$AQ50/'Volume per connection'!$J$69)","v":76159.579906464176},{"$f":"H$4*('COM-Appliance class'!$AQ50/'Volume per connection'!$J$69)","v":78179.53764769074},{"$f":"I$4*('COM-Appliance class'!$AQ50/'Volume per connection'!$J$69)","v":90664.441349131521},{"$f":"J$4*('COM-Appliance class'!$AQ50/'Volume per connection'!$J$69)","v":99770.415982221341},{"$f":"K$4*('COM-Appliance class'!$AQ50/'Volume per connection'!$J$69)","v":119438.5145942239},{"$f":"L$4*('COM-Appliance class'!$AQ50/'Volume per connection'!$J$69)","v":118423.84562491957},{"$f":"M$4*('COM-Appliance class'!$AQ50/'Volume per connection'!$J$69)","v":96223.460609947273},{"$f":"N$4*('COM-Appliance class'!$AQ50/'Volume per connection'!$J$69)","v":95774.187618980068},{"$f":"O$4*('COM-Appliance class'!$AQ50/'Volume per connection'!$J$69)","v":108991.05656879254},{"$f":"P$4*('COM-Appliance class'!$AQ50/'Volume per connection'!$J$69)","v":121783.22589730012},{"$f":"Q$4*('COM-Appliance class'!$AQ50/'Volume per connection'!$J$69)","v":84800.762099427884},{"$f":"R$4*('COM-Appliance class'!$AQ50/'Volume per connection'!$J$69)","v":90078.149386191115},{"$f":"S$4*('COM-Appliance class'!$AQ50/'Volume per connection'!$J$69)","v":97908.723614421207},{"$f":"T$4*('COM-Appliance class'!$AQ50/'Volume per connection'!$J$69)","v":109371.66565058907},{"$f":"U$4*('COM-Appliance class'!$AQ50/'Volume per connection'!$J$69)","v":117901.66358378621},{"$f":"V$4*('COM-Appliance class'!$AQ50/'Volume per connection'!$J$69)","v":121031.66900985129},{"$f":"W$4*('COM-Appliance class'!$AQ50/'Volume per connection'!$J$69)","v":126131.11773326879},{"$f":"X$4*('COM-Appliance class'!$AQ50/'Volume per connection'!$J$69)","v":138765.23053079771},{"$f":"Y$4*('COM-Appliance class'!$AQ50/'Volume per connection'!$J$69)","v":149262.41710420401},{"$f":"Z$4*('COM-Appliance class'!$AQ50/'Volume per connection'!$J$69)","v":155188.88176314376},{"$f":"AA$4*('COM-Appliance class'!$AQ50/'Volume per connection'!$J$69)","v":161923.26383457615},{"$f":"AB$4*('COM-Appliance class'!$AQ50/'Volume per connection'!$J$69)","v":166148.54241878053},{"$f":"AC$4*('COM-Appliance class'!$AQ50/'Volume per connection'!$J$69)","v":169206.95577234108},{"$f":"AD$4*('COM-Appliance class'!$AQ50/'Volume per connection'!$J$69)","v":171396.78728938932},{"$f":"AE$4*('COM-Appliance class'!$AQ50/'Volume per connection'!$J$69)","v":173231.95504709156},{"$f":"AF$4*('COM-Appliance class'!$AQ50/'Volume per connection'!$J$69)","v":176646.9551358145},{"$f":"AG$4*('COM-Appliance class'!$AQ50/'Volume per connection'!$J$69)","v":176811.02251061151},{"$f":"AH$4*('COM-Appliance class'!$AQ50/'Volume per connection'!$J$69)","v":180393.43729150554},{"$f":"AI$4*('COM-Appliance class'!$AQ50/'Volume per connection'!$J$69)","v":180623.97789604563},{"$f":"AJ$4*('COM-Appliance class'!$AQ50/'Volume per connection'!$J$69)","v":180854.19340954832},{"$f":"AK$4*('COM-Appliance class'!$AQ50/'Volume per connection'!$J$69)","v":181084.08582969222},{"$f":"AL$4*('COM-Appliance class'!$AQ50/'Volume per connection'!$J$69)","v":181313.65714175577},{"$f":"AM$4*('COM-Appliance class'!$AQ50/'Volume per connection'!$J$69)","v":181542.9093186954},{"$f":"AN$4*('COM-Appliance class'!$AQ50/'Volume per connection'!$J$69)","v":181771.84432122231},{"$f":"AO$4*('COM-Appliance class'!$AQ50/'Volume per connection'!$J$69)","v":182000.46409788093},{"$f":"AP$4*('COM-Appliance class'!$AQ50/'Volume per connection'!$J$69)","v":182228.77058512421},{"$f":"AQ$4*('COM-Appliance class'!$AQ50/'Volume per connection'!$J$69)","v":182456.76570739085},{"$f":"AR$4*('COM-Appliance class'!$AQ50/'Volume per connection'!$J$69)","v":182684.45137718008},{"$f":"AS$4*('COM-Appliance class'!$AQ50/'Volume per connection'!$J$69)","v":182911.82949512769},{"$f":"AT$4*('COM-Appliance class'!$AQ50/'Volume per connection'!$J$69)","v":183138.90195007957},{"$f":"AU$4*('COM-Appliance class'!$AQ50/'Volume per connection'!$J$69)","v":183365.6706191673},{"$f":"AV$4*('COM-Appliance class'!$AQ50/'Volume per connection'!$J$69)","v":183592.13736788076},{"$f":"AW$4*('COM-Appliance class'!$AQ50/'Volume per connection'!$J$69)","v":183818.30405014218},{"$f":"AX$4*('COM-Appliance class'!$AQ50/'Volume per connection'!$J$69)","v":184044.17250837837},{"$f":"AY$4*('COM-Appliance class'!$AQ50/'Volume per connection'!$J$69)","v":184269.74457359352},{"$f":"AZ$4*('COM-Appliance class'!$AQ50/'Volume per connection'!$J$69)","v":184495.02206544072},{"$f":"BA$4*('COM-Appliance class'!$AQ50/'Volume per connection'!$J$69)","v":184720.00679229412},{"$f":"BB$4*('COM-Appliance class'!$AQ50/'Volume per connection'!$J$69)","v":184944.70055131853},{"$f":"BC$4*('COM-Appliance class'!$AQ50/'Volume per connection'!$J$69)","v":185169.10512854173},{"$f":"BD$4*('COM-Appliance class'!$AQ50/'Volume per connection'!$J$69)","v":185393.22229892283},{"$f":"BE$4*('COM-Appliance class'!$AQ50/'Volume per connection'!$J$69)","v":185617.05382642345},{"$f":"BF$4*('COM-Appliance class'!$AQ50/'Volume per connection'!$J$69)","v":185840.60146407565},{"$f":"BG$4*('COM-Appliance class'!$AQ50/'Volume per connection'!$J$69)","v":186063.86695405137},{"$f":"BH$4*('COM-Appliance class'!$AQ50/'Volume per connection'!$J$69)","v":186286.8520277307},{"$f":"BI$4*('COM-Appliance class'!$AQ50/'Volume per connection'!$J$69)","v":186509.55840576979},{"$f":"BJ$4*('COM-Appliance class'!$AQ50/'Volume per connection'!$J$69)","v":186731.98779816777},{"$f":"BK$4*('COM-Appliance class'!$AQ50/'Volume per connection'!$J$69)","v":186954.14190433474},{"$f":"BL$4*('COM-Appliance class'!$AQ50/'Volume per connection'!$J$69)","v":187176.0224131573},{"$f":"BM$4*('COM-Appliance class'!$AQ50/'Volume per connection'!$J$69)","v":187397.63100306597},{"$f":"BN$4*('COM-Appliance class'!$AQ50/'Volume per connection'!$J$69)","v":187618.96934209939},{"$f":"BO$4*('COM-Appliance class'!$AQ50/'Volume per connection'!$J$69)","v":187840.03908797132},{"$f":"BP$4*('COM-Appliance class'!$AQ50/'Volume per connection'!$J$69)","v":188060.84188813422},{"$f":"BQ$4*('COM-Appliance class'!$AQ50/'Volume per connection'!$J$69)","v":188281.37937984476},{"$f":"BR$4*('COM-Appliance class'!$AQ50/'Volume per connection'!$J$69)","v":188501.65319022708},{"$f":"BS$4*('COM-Appliance class'!$AQ50/'Volume per connection'!$J$69)","v":188721.6649363373},{"$f":"BT$4*('COM-Appliance class'!$AQ50/'Volume per connection'!$J$69)","v":188941.41622522604},{"$f":"BU$4*('COM-Appliance class'!$AQ50/'Volume per connection'!$J$69)","v":189160.90865400218},{"$f":"BV$4*('COM-Appliance class'!$AQ50/'Volume per connection'!$J$69)","v":189380.14380989425},{"$f":"BW$4*('COM-Appliance class'!$AQ50/'Volume per connection'!$J$69)","v":189599.12327031392},{"$f":"BX$4*('COM-Appliance class'!$AQ50/'Volume per connection'!$J$69)","v":189817.848602916},{"$f":"BY$4*('COM-Appliance class'!$AQ50/'Volume per connection'!$J$69)","v":190036.32136566174},{"$f":"BZ$4*('COM-Appliance class'!$AQ50/'Volume per connection'!$J$69)","v":190254.54310687771},{"$f":"CA$4*('COM-Appliance class'!$AQ50/'Volume per connection'!$J$69)","v":190472.51536531822},{"$f":"CB$4*('COM-Appliance class'!$AQ50/'Volume per connection'!$J$69)","v":190690.23967022388},{"$f":"CC$4*('COM-Appliance class'!$AQ50/'Volume per connection'!$J$69)","v":190907.71754138274},{"$f":"CD$4*('COM-Appliance class'!$AQ50/'Volume per connection'!$J$69)","v":191124.95048918831}]
["Casey (C)",null,{"$f":"C$4*('COM-Appliance class'!$AQ51/'Volume per connection'!$J$69)","v":116890.59350936791},{"$f":"D$4*('COM-Appliance class'!$AQ51/'Volume per connection'!$J$69)","v":143673.61894984258},{"$f":"E$4*('COM-Appliance class'!$AQ51/'Volume per connection'!$J$69)","v":127671.45072238067},{"$f":"F$4*('COM-Appliance class'!$AQ51/'Volume per connection'!$J$69)","v":142020.17564742759},{"$f":"G$4*('COM-Appliance class'!$AQ51/'Volume per connection'!$J$69)","v":125039.82672020231},{"$f":"H$4*('COM-Appliance class'!$AQ51/'Volume per connection'!$J$69)","v":128356.22061648303},{"$f":"I$4*('COM-Appliance class'!$AQ51/'Volume per connection'!$J$69)","v":148854.10410486168},{"$f":"J$4*('COM-Appliance class'!$AQ51/'Volume per connection'!$J$69)","v":163804.41622105901},{"$f":"K$4*('COM-Appliance class'!$AQ51/'Volume per connection'!$J$69)","v":196095.76611270822},{"$f":"L$4*('COM-Appliance class'!$AQ51/'Volume per connection'!$J$69)","v":194429.86889720362},{"$f":"M$4*('COM-Appliance class'!$AQ51/'Volume per connection'!$J$69)","v":157980.97699413387},{"$f":"N$4*('COM-Appliance class'!$AQ51/'Volume per connection'!$J$69)","v":157243.35453075371},{"$f":"O$4*('COM-Appliance class'!$AQ51/'Volume per connection'!$J$69)","v":178942.98844808713},{"$f":"P$4*('COM-Appliance class'!$AQ51/'Volume per connection'!$J$69)","v":199945.34479218128},{"$f":"Q$4*('COM-Appliance class'!$AQ51/'Volume per connection'!$J$69)","v":139227.03633182164},{"$f":"R$4*('COM-Appliance class'!$AQ51/'Volume per connection'!$J$69)","v":147891.52204304424},{"$f":"S$4*('COM-Appliance class'!$AQ51/'Volume per connection'!$J$69)","v":160747.86455202472},{"$f":"T$4*('COM-Appliance class'!$AQ51/'Volume per connection'!$J$69)","v":179567.87757817979},{"$f":"U$4*('COM-Appliance class'!$AQ51/'Volume per connection'!$J$69)","v":193572.54337072477},{"$f":"V$4*('COM-Appliance class'!$AQ51/'Volume per connection'!$J$69)","v":198711.42854563173},{"$f":"W$4*('COM-Appliance class'!$AQ51/'Volume per connection'!$J$69)","v":207083.77232073914},{"$f":"X$4*('COM-Appliance class'!$AQ51/'Volume per connection'!$J$69)","v":227826.62931793771},{"$f":"Y$4*('COM-Appliance class'!$AQ51/'Volume per connection'!$J$69)","v":245061.05198413934},{"$f":"Z$4*('COM-Appliance class'!$AQ51/'Volume per connection'!$J$69)","v":254791.20168989332},{"$f":"AA$4*('COM-Appliance class'!$AQ51/'Volume per connection'!$J$69)","v":265847.80111328472},{"$f":"AB$4*('COM-Appliance class'!$AQ51/'Volume per connection'!$J$69)","v":272784.92054937361},{"$f":"AC$4*('COM-Appliance class'!$AQ51/'Volume per connection'!$J$69)","v":277806.26489289076},{"$f":"AD$4*('COM-Appliance class'!$AQ51/'Volume per connection'!$J$69)","v":281401.55984822579},{"$f":"AE$4*('COM-Appliance class'!$AQ51/'Volume per connection'!$J$69)","v":284414.5630542232},{"$f":"AF$4*('COM-Appliance class'!$AQ51/'Volume per connection'!$J$69)","v":290021.35631474049},{"$f":"AG$4*('COM-Appliance class'!$AQ51/'Volume per connection'!$J$69)","v":290290.7243461851},{"$f":"AH$4*('COM-Appliance class'!$AQ51/'Volume per connection'!$J$69)","v":296172.38130901277},{"$f":"AI$4*('COM-Appliance class'!$AQ51/'Volume per connection'!$J$69)","v":296550.88598667865},{"$f":"AJ$4*('COM-Appliance class'!$AQ51/'Volume per connection'!$J$69)","v":296928.85692548932},{"$f":"AK$4*('COM-Appliance class'!$AQ51/'Volume per connection'!$J$69)","v":297306.29740526073},{"$f":"AL$4*('COM-Appliance class'!$AQ51/'Volume per connection'!$J$69)","v":297683.21068544965},{"$f":"AM$4*('COM-Appliance class'!$AQ51/'Volume per connection'!$J$69)","v":298059.60000528261},{"$f":"AN$4*('COM-Appliance class'!$AQ51/'Volume per connection'!$J$69)","v":298435.46858388186},{"$f":"AO$4*('COM-Appliance class'!$AQ51/'Volume per connection'!$J$69)","v":298810.8196203938},{"$f":"AP$4*('COM-Appliance class'!$AQ51/'Volume per connection'!$J$69)","v":299185.65629411303},{"$f":"AQ$4*('COM-Appliance class'!$AQ51/'Volume per connection'!$J$69)","v":299559.98176460917},{"$f":"AR$4*('COM-Appliance class'!$AQ51/'Volume per connection'!$J$69)","v":299933.79917184915},{"$f":"AS$4*('COM-Appliance class'!$AQ51/'Volume per connection'!$J$69)","v":300307.1116363224},{"$f":"AT$4*('COM-Appliance class'!$AQ51/'Volume per connection'!$J$69)","v":300679.92225916177},{"$f":"AU$4*('COM-Appliance class'!$AQ51/'Volume per connection'!$J$69)","v":301052.23412226723},{"$f":"AV$4*('COM-Appliance class'!$AQ51/'Volume per connection'!$J$69)","v":301424.05028842512},{"$f":"AW$4*('COM-Appliance class'!$AQ51/'Volume per connection'!$J$69)","v":301795.37380143011},{"$f":"AX$4*('COM-Appliance class'!$AQ51/'Volume per connection'!$J$69)","v":302166.2076862033},{"$f":"AY$4*('COM-Appliance class'!$AQ51/'Volume per connection'!$J$69)","v":302536.55494891223},{"$f":"AZ$4*('COM-Appliance class'!$AQ51/'Volume per connection'!$J$69)","v":302906.41857708787},{"$f":"BA$4*('COM-Appliance class'!$AQ51/'Volume per connection'!$J$69)","v":303275.80153974332},{"$f":"BB$4*('COM-Appliance class'!$AQ51/'Volume per connection'!$J$69)","v":303644.70678748796},{"$f":"BC$4*('COM-Appliance class'!$AQ51/'Volume per connection'!$J$69)","v":304013.13725264638},{"$f":"BD$4*('COM-Appliance class'!$AQ51/'Volume per connection'!$J$69)","v":304381.09584937041},{"$f":"BE$4*('COM-Appliance class'!$AQ51/'Volume per connection'!$J$69)","v":304748.58547375607},{"$f":"BF$4*('COM-Appliance class'!$AQ51/'Volume per connection'!$J$69)","v":305115.60900395503},{"$f":"BG$4*('COM-Appliance class'!$AQ51/'Volume per connection'!$J$69)","v":305482.16930028878},{"$f":"BH$4*('COM-Appliance class'!$AQ51/'Volume per connection'!$J$69)","v":305848.26920536044},{"$f":"BI$4*('COM-Appliance class'!$AQ51/'Volume per connection'!$J$69)","v":306213.91154416656},{"$f":"BJ$4*('COM-Appliance class'!$AQ51/'Volume per connection'!$J$69)","v":306579.09912420681},{"$f":"BK$4*('COM-Appliance class'!$AQ51/'Volume per connection'!$J$69)","v":306943.83473559562},{"$f":"BL$4*('COM-Appliance class'!$AQ51/'Volume per connection'!$J$69)","v":307308.12115116982},{"$f":"BM$4*('COM-Appliance class'!$AQ51/'Volume per connection'!$J$69)","v":307671.96112659929},{"$f":"BN$4*('COM-Appliance class'!$AQ51/'Volume per connection'!$J$69)","v":308035.35740049247},{"$f":"BO$4*('COM-Appliance class'!$AQ51/'Volume per connection'!$J$69)","v":308398.31269450614},{"$f":"BP$4*('COM-Appliance class'!$AQ51/'Volume per connection'!$J$69)","v":308760.82971344993},{"$f":"BQ$4*('COM-Appliance class'!$AQ51/'Volume per connection'!$J$69)","v":309122.91114539403},{"$f":"BR$4*('COM-Appliance class'!$AQ51/'Volume per connection'!$J$69)","v":309484.5596617728},{"$f":"BS$4*('COM-Appliance class'!$AQ51/'Volume per connection'!$J$69)","v":309845.77791749086},{"$f":"BT$4*('COM-Appliance class'!$AQ51/'Volume per connection'!$J$69)","v":310206.56855102553},{"$f":"BU$4*('COM-Appliance class'!$AQ51/'Volume per connection'!$J$69)","v":310566.9341845318},{"$f":"BV$4*('COM-Appliance class'!$AQ51/'Volume per connection'!$J$69)","v":310926.87742394285},{"$f":"BW$4*('COM-Appliance class'!$AQ51/'Volume per connection'!$J$69)","v":311286.40085907461},{"$f":"BX$4*('COM-Appliance class'!$AQ51/'Volume per connection'!$J$69)","v":311645.50706372375},{"$f":"BY$4*('COM-Appliance class'!$AQ51/'Volume per connection'!$J$69)","v":312004.19859577215},{"$f":"BZ$4*('COM-Appliance class'!$AQ51/'Volume per connection'!$J$69)","v":312362.47799728322},{"$f":"CA$4*('COM-Appliance class'!$AQ51/'Volume per connection'!$J$69)","v":312720.34779460466},{"$f":"CB$4*('COM-Appliance class'!$AQ51/'Volume per connection'!$J$69)","v":313077.81049846433},{"$f":"CC$4*('COM-Appliance class'!$AQ51/'Volume per connection'!$J$69)","v":313434.86860407074},{"$f":"CD$4*('COM-Appliance class'!$AQ51/'Volume per connection'!$J$69)","v":313791.52459120838}]
["Frankston (C)",null,{"$f":"C$4*('COM-Appliance class'!$AQ52/'Volume per connection'!$J$69)","v":0},{"$f":"D$4*('COM-Appliance class'!$AQ52/'Volume per connection'!$J$69)","v":0},{"$f":"E$4*('COM-Appliance class'!$AQ52/'Volume per connection'!$J$69)","v":0},{"$f":"F$4*('COM-Appliance class'!$AQ52/'Volume per connection'!$J$69)","v":0},{"$f":"G$4*('COM-Appliance class'!$AQ52/'Volume per connection'!$J$69)","v":0},{"$f":"H$4*('COM-Appliance class'!$AQ52/'Volume per connection'!$J$69)","v":0},{"$f":"I$4*('COM-Appliance class'!$AQ52/'Volume per connection'!$J$69)","v":0},{"$f":"J$4*('COM-Appliance class'!$AQ52/'Volume per connection'!$J$69)","v":0},{"$f":"K$4*('COM-Appliance class'!$AQ52/'Volume per connection'!$J$69)","v":0},{"$f":"L$4*('COM-Appliance class'!$AQ52/'Volume per connection'!$J$69)","v":0},{"$f":"M$4*('COM-Appliance class'!$AQ52/'Volume per connection'!$J$69)","v":0},{"$f":"N$4*('COM-Appliance class'!$AQ52/'Volume per connection'!$J$69)","v":0},{"$f":"O$4*('COM-Appliance class'!$AQ52/'Volume per connection'!$J$69)","v":0},{"$f":"P$4*('COM-Appliance class'!$AQ52/'Volume per connection'!$J$69)","v":0},{"$f":"Q$4*('COM-Appliance class'!$AQ52/'Volume per connection'!$J$69)","v":0},{"$f":"R$4*('COM-Appliance class'!$AQ52/'Volume per connection'!$J$69)","v":0},{"$f":"S$4*('COM-Appliance class'!$AQ52/'Volume per connection'!$J$69)","v":0},{"$f":"T$4*('COM-Appliance class'!$AQ52/'Volume per connection'!$J$69)","v":0},{"$f":"U$4*('COM-Appliance class'!$AQ52/'Volume per connection'!$J$69)","v":0},{"$f":"V$4*('COM-Appliance class'!$AQ52/'Volume per connection'!$J$69)","v":0},{"$f":"W$4*('COM-Appliance class'!$AQ52/'Volume per connection'!$J$69)","v":0},{"$f":"X$4*('COM-Appliance class'!$AQ52/'Volume per connection'!$J$69)","v":0},{"$f":"Y$4*('COM-Appliance class'!$AQ52/'Volume per connection'!$J$69)","v":0},{"$f":"Z$4*('COM-Appliance class'!$AQ52/'Volume per connection'!$J$69)","v":0},{"$f":"AA$4*('COM-Appliance class'!$AQ52/'Volume per connection'!$J$69)","v":0},{"$f":"AB$4*('COM-Appliance class'!$AQ52/'Volume per connection'!$J$69)","v":0},{"$f":"AC$4*('COM-Appliance class'!$AQ52/'Volume per connection'!$J$69)","v":0},{"$f":"AD$4*('COM-Appliance class'!$AQ52/'Volume per connection'!$J$69)","v":0},{"$f":"AE$4*('COM-Appliance class'!$AQ52/'Volume per connection'!$J$69)","v":0},{"$f":"AF$4*('COM-Appliance class'!$AQ52/'Volume per connection'!$J$69)","v":0},{"$f":"AG$4*('COM-Appliance class'!$AQ52/'Volume per connection'!$J$69)","v":0},{"$f":"AH$4*('COM-Appliance class'!$AQ52/'Volume per connection'!$J$69)","v":0},{"$f":"AI$4*('COM-Appliance class'!$AQ52/'Volume per connection'!$J$69)","v":0},{"$f":"AJ$4*('COM-Appliance class'!$AQ52/'Volume per connection'!$J$69)","v":0},{"$f":"AK$4*('COM-Appliance class'!$AQ52/'Volume per connection'!$J$69)","v":0},{"$f":"AL$4*('COM-Appliance class'!$AQ52/'Volume per connection'!$J$69)","v":0},{"$f":"AM$4*('COM-Appliance class'!$AQ52/'Volume per connection'!$J$69)","v":0},{"$f":"AN$4*('COM-Appliance class'!$AQ52/'Volume per connection'!$J$69)","v":0},{"$f":"AO$4*('COM-Appliance class'!$AQ52/'Volume per connection'!$J$69)","v":0},{"$f":"AP$4*('COM-Appliance class'!$AQ52/'Volume per connection'!$J$69)","v":0},{"$f":"AQ$4*('COM-Appliance class'!$AQ52/'Volume per connection'!$J$69)","v":0},{"$f":"AR$4*('COM-Appliance class'!$AQ52/'Volume per connection'!$J$69)","v":0},{"$f":"AS$4*('COM-Appliance class'!$AQ52/'Volume per connection'!$J$69)","v":0},{"$f":"AT$4*('COM-Appliance class'!$AQ52/'Volume per connection'!$J$69)","v":0},{"$f":"AU$4*('COM-Appliance class'!$AQ52/'Volume per connection'!$J$69)","v":0},{"$f":"AV$4*('COM-Appliance class'!$AQ52/'Volume per connection'!$J$69)","v":0},{"$f":"AW$4*('COM-Appliance class'!$AQ52/'Volume per connection'!$J$69)","v":0},{"$f":"AX$4*('COM-Appliance class'!$AQ52/'Volume per connection'!$J$69)","v":0},{"$f":"AY$4*('COM-Appliance class'!$AQ52/'Volume per connection'!$J$69)","v":0},{"$f":"AZ$4*('COM-Appliance class'!$AQ52/'Volume per connection'!$J$69)","v":0},{"$f":"BA$4*('COM-Appliance class'!$AQ52/'Volume per connection'!$J$69)","v":0},{"$f":"BB$4*('COM-Appliance class'!$AQ52/'Volume per connection'!$J$69)","v":0},{"$f":"BC$4*('COM-Appliance class'!$AQ52/'Volume per connection'!$J$69)","v":0},{"$f":"BD$4*('COM-Appliance class'!$AQ52/'Volume per connection'!$J$69)","v":0},{"$f":"BE$4*('COM-Appliance class'!$AQ52/'Volume per connection'!$J$69)","v":0},{"$f":"BF$4*('COM-Appliance class'!$AQ52/'Volume per connection'!$J$69)","v":0},{"$f":"BG$4*('COM-Appliance class'!$AQ52/'Volume per connection'!$J$69)","v":0},{"$f":"BH$4*('COM-Appliance class'!$AQ52/'Volume per connection'!$J$69)","v":0},{"$f":"BI$4*('COM-Appliance class'!$AQ52/'Volume per connection'!$J$69)","v":0},{"$f":"BJ$4*('COM-Appliance class'!$AQ52/'Volume per connection'!$J$69)","v":0},{"$f":"BK$4*('COM-Appliance class'!$AQ52/'Volume per connection'!$J$69)","v":0},{"$f":"BL$4*('COM-Appliance class'!$AQ52/'Volume per connection'!$J$69)","v":0},{"$f":"BM$4*('COM-Appliance class'!$AQ52/'Volume per connection'!$J$69)","v":0},{"$f":"BN$4*('COM-Appliance class'!$AQ52/'Volume per connection'!$J$69)","v":0},{"$f":"BO$4*('COM-Appliance class'!$AQ52/'Volume per connection'!$J$69)","v":0},{"$f":"BP$4*('COM-Appliance class'!$AQ52/'Volume per connection'!$J$69)","v":0},{"$f":"BQ$4*('COM-Appliance class'!$AQ52/'Volume per connection'!$J$69)","v":0},{"$f":"BR$4*('COM-Appliance class'!$AQ52/'Volume per connection'!$J$69)","v":0},{"$f":"BS$4*('COM-Appliance class'!$AQ52/'Volume per connection'!$J$69)","v":0},{"$f":"BT$4*('COM-Appliance class'!$AQ52/'Volume per connection'!$J$69)","v":0},{"$f":"BU$4*('COM-Appliance class'!$AQ52/'Volume per connection'!$J$69)","v":0},{"$f":"BV$4*('COM-Appliance class'!$AQ52/'Volume per connection'!$J$69)","v":0},{"$f":"BW$4*('COM-Appliance class'!$AQ52/'Volume per connection'!$J$69)","v":0},{"$f":"BX$4*('COM-Appliance class'!$AQ52/'Volume per connection'!$J$69)","v":0},{"$f":"BY$4*('COM-Appliance class'!$AQ52/'Volume per connection'!$J$69)","v":0},{"$f":"BZ$4*('COM-Appliance class'!$AQ52/'Volume per connection'!$J$69)","v":0},{"$f":"CA$4*('COM-Appliance class'!$AQ52/'Volume per connection'!$J$69)","v":0},{"$f":"CB$4*('COM-Appliance class'!$AQ52/'Volume per connection'!$J$69)","v":0},{"$f":"CC$4*('COM-Appliance class'!$AQ52/'Volume per connection'!$J$69)","v":0},{"$f":"CD$4*('COM-Appliance class'!$AQ52/'Volume per connection'!$J$69)","v":0}]
["Glen Eira (C)",null,{"$f":"C$4*('COM-Appliance class'!$AQ53/'Volume per connection'!$J$69)","v":131552.67516820921},{"$f":"D$4*('COM-Appliance class'!$AQ53/'Volume per connection'!$J$69)","v":161695.20879740393},{"$f":"E$4*('COM-Appliance class'!$AQ53/'Volume per connection'!$J$69)","v":143685.82091072487},{"$f":"F$4*('COM-Appliance class'!$AQ53/'Volume per connection'!$J$69)","v":159834.3671065435},{"$f":"G$4*('COM-Appliance class'!$AQ53/'Volume per connection'!$J$69)","v":140724.10117665844},{"$f":"H$4*('COM-Appliance class'!$AQ53/'Volume per connection'!$J$69)","v":144456.48438961804},{"$f":"I$4*('COM-Appliance class'!$AQ53/'Volume per connection'!$J$69)","v":167525.50412187193},{"$f":"J$4*('COM-Appliance class'!$AQ53/'Volume per connection'!$J$69)","v":184351.09713528946},{"$f":"K$4*('COM-Appliance class'!$AQ53/'Volume per connection'!$J$69)","v":220692.88765497459},{"$f":"L$4*('COM-Appliance class'!$AQ53/'Volume per connection'!$J$69)","v":218818.02990401845},{"$f":"M$4*('COM-Appliance class'!$AQ53/'Volume per connection'!$J$69)","v":177797.19928960787},{"$f":"N$4*('COM-Appliance class'!$AQ53/'Volume per connection'!$J$69)","v":176967.05372007538},{"$f":"O$4*('COM-Appliance class'!$AQ53/'Volume per connection'!$J$69)","v":201388.56452168865},{"$f":"P$4*('COM-Appliance class'!$AQ53/'Volume per connection'!$J$69)","v":225025.33527416302},{"$f":"Q$4*('COM-Appliance class'!$AQ53/'Volume per connection'!$J$69)","v":156690.87250998287},{"$f":"R$4*('COM-Appliance class'!$AQ53/'Volume per connection'!$J$69)","v":166442.18131976068},{"$f":"S$4*('COM-Appliance class'!$AQ53/'Volume per connection'!$J$69)","v":180911.14925942305},{"$f":"T$4*('COM-Appliance class'!$AQ53/'Volume per connection'!$J$69)","v":202091.83613901204},{"$f":"U$4*('COM-Appliance class'!$AQ53/'Volume per connection'!$J$69)","v":217853.16640976947},{"$f":"V$4*('COM-Appliance class'!$AQ53/'Volume per connection'!$J$69)","v":223636.64369262784},{"$f":"W$4*('COM-Appliance class'!$AQ53/'Volume per connection'!$J$69)","v":233059.16596731383},{"$f":"X$4*('COM-Appliance class'!$AQ53/'Volume per connection'!$J$69)","v":256403.88727197886},{"$f":"Y$4*('COM-Appliance class'!$AQ53/'Volume per connection'!$J$69)","v":275800.09648479923},{"$f":"Z$4*('COM-Appliance class'!$AQ53/'Volume per connection'!$J$69)","v":286750.74003231886},{"$f":"AA$4*('COM-Appliance class'!$AQ53/'Volume per connection'!$J$69)","v":299194.21549721033},{"$f":"AB$4*('COM-Appliance class'!$AQ53/'Volume per connection'!$J$69)","v":307001.4871722039},{"$f":"AC$4*('COM-Appliance class'!$AQ53/'Volume per connection'!$J$69)","v":312652.67997992533},{"$f":"AD$4*('COM-Appliance class'!$AQ53/'Volume per connection'!$J$69)","v":316698.94799168961},{"$f":"AE$4*('COM-Appliance class'!$AQ53/'Volume per connection'!$J$69)","v":320089.88493656518},{"$f":"AF$4*('COM-Appliance class'!$AQ53/'Volume per connection'!$J$69)","v":326399.96199573437},{"$f":"AG$4*('COM-Appliance class'!$AQ53/'Volume per connection'!$J$69)","v":326703.11799894605},{"$f":"AH$4*('COM-Appliance class'!$AQ53/'Volume per connection'!$J$69)","v":333322.53607743914},{"$f":"AI$4*('COM-Appliance class'!$AQ53/'Volume per connection'!$J$69)","v":333748.51819811878},{"$f":"AJ$4*('COM-Appliance class'!$AQ53/'Volume per connection'!$J$69)","v":334173.89963082067},{"$f":"AK$4*('COM-Appliance class'!$AQ53/'Volume per connection'!$J$69)","v":334598.68406676181},{"$f":"AL$4*('COM-Appliance class'!$AQ53/'Volume per connection'!$J$69)","v":335022.8751742465},{"$f":"AM$4*('COM-Appliance class'!$AQ53/'Volume per connection'!$J$69)","v":335446.47659881104},{"$f":"AN$4*('COM-Appliance class'!$AQ53/'Volume per connection'!$J$69)","v":335869.49196336593},{"$f":"AO$4*('COM-Appliance class'!$AQ53/'Volume per connection'!$J$69)","v":336291.92486834002},{"$f":"AP$4*('COM-Appliance class'!$AQ53/'Volume per connection'!$J$69)","v":336713.77889182029},{"$f":"AQ$4*('COM-Appliance class'!$AQ53/'Volume per connection'!$J$69)","v":337135.05758969439},{"$f":"AR$4*('COM-Appliance class'!$AQ53/'Volume per connection'!$J$69)","v":337555.76449578878},{"$f":"AS$4*('COM-Appliance class'!$AQ53/'Volume per connection'!$J$69)","v":337975.90312200907},{"$f":"AT$4*('COM-Appliance class'!$AQ53/'Volume per connection'!$J$69)","v":338395.47695847618},{"$f":"AU$4*('COM-Appliance class'!$AQ53/'Volume per connection'!$J$69)","v":338814.48947366595},{"$f":"AV$4*('COM-Appliance class'!$AQ53/'Volume per connection'!$J$69)","v":339232.94411454292},{"$f":"AW$4*('COM-Appliance class'!$AQ53/'Volume per connection'!$J$69)","v":339650.84430669778},{"$f":"AX$4*('COM-Appliance class'!$AQ53/'Volume per connection'!$J$69)","v":340068.19345448032},{"$f":"AY$4*('COM-Appliance class'!$AQ53/'Volume per connection'!$J$69)","v":340484.99494113447},{"$f":"AZ$4*('COM-Appliance class'!$AQ53/'Volume per connection'!$J$69)","v":340901.25212892966},{"$f":"BA$4*('COM-Appliance class'!$AQ53/'Volume per connection'!$J$69)","v":341316.96835929499},{"$f":"BB$4*('COM-Appliance class'!$AQ53/'Volume per connection'!$J$69)","v":341732.14695294725},{"$f":"BC$4*('COM-Appliance class'!$AQ53/'Volume per connection'!$J$69)","v":342146.79121002491},{"$f":"BD$4*('COM-Appliance class'!$AQ53/'Volume per connection'!$J$69)","v":342560.90441021422},{"$f":"BE$4*('COM-Appliance class'!$AQ53/'Volume per connection'!$J$69)","v":342974.4898128807},{"$f":"BF$4*('COM-Appliance class'!$AQ53/'Volume per connection'!$J$69)","v":343387.55065719475},{"$f":"BG$4*('COM-Appliance class'!$AQ53/'Volume per connection'!$J$69)","v":343800.09016226011},{"$f":"BH$4*('COM-Appliance class'!$AQ53/'Volume per connection'!$J$69)","v":344212.11152723973},{"$f":"BI$4*('COM-Appliance class'!$AQ53/'Volume per connection'!$J$69)","v":344623.61793148133},{"$f":"BJ$4*('COM-Appliance class'!$AQ53/'Volume per connection'!$J$69)","v":345034.61253464117},{"$f":"BK$4*('COM-Appliance class'!$AQ53/'Volume per connection'!$J$69)","v":345445.09847680951},{"$f":"BL$4*('COM-Appliance class'!$AQ53/'Volume per connection'!$J$69)","v":345855.07887863187},{"$f":"BM$4*('COM-Appliance class'!$AQ53/'Volume per connection'!$J$69)","v":346264.55684143346},{"$f":"BN$4*('COM-Appliance class'!$AQ53/'Volume per connection'!$J$69)","v":346673.5354473379},{"$f":"BO$4*('COM-Appliance class'!$AQ53/'Volume per connection'!$J$69)","v":347082.01775939093},{"$f":"BP$4*('COM-Appliance class'!$AQ53/'Volume per connection'!$J$69)","v":347490.00682167796},{"$f":"BQ$4*('COM-Appliance class'!$AQ53/'Volume per connection'!$J$69)","v":347897.50565944513},{"$f":"BR$4*('COM-Appliance class'!$AQ53/'Volume per connection'!$J$69)","v":348304.51727921615},{"$f":"BS$4*('COM-Appliance class'!$AQ53/'Volume per connection'!$J$69)","v":348711.04466891149},{"$f":"BT$4*('COM-Appliance class'!$AQ53/'Volume per connection'!$J$69)","v":349117.09079796396},{"$f":"BU$4*('COM-Appliance class'!$AQ53/'Volume per connection'!$J$69)","v":349522.65861743636},{"$f":"BV$4*('COM-Appliance class'!$AQ53/'Volume per connection'!$J$69)","v":349927.75106013531},{"$f":"BW$4*('COM-Appliance class'!$AQ53/'Volume per connection'!$J$69)","v":350332.37104072812},{"$f":"BX$4*('COM-Appliance class'!$AQ53/'Volume per connection'!$J$69)","v":350736.52145585383},{"$f":"BY$4*('COM-Appliance class'!$AQ53/'Volume per connection'!$J$69)","v":351140.20518424013},{"$f":"BZ$4*('COM-Appliance class'!$AQ53/'Volume per connection'!$J$69)","v":351543.42508681223},{"$f":"CA$4*('COM-Appliance class'!$AQ53/'Volume per connection'!$J$69)","v":351946.18400680844},{"$f":"CB$4*('COM-Appliance class'!$AQ53/'Volume per connection'!$J$69)","v":352348.48476988764},{"$f":"CC$4*('COM-Appliance class'!$AQ53/'Volume per connection'!$J$69)","v":352750.33018424298},{"$f":"CD$4*('COM-Appliance class'!$AQ53/'Volume per connection'!$J$69)","v":353151.72304070881}]
["Greater Dandenong (C)",null,{"$f":"C$4*('COM-Appliance class'!$AQ54/'Volume per connection'!$J$69)","v":157935.07259487192},{"$f":"D$4*('COM-Appliance class'!$AQ54/'Volume per connection'!$J$69)","v":194122.57870854967},{"$f":"E$4*('COM-Appliance class'!$AQ54/'Volume per connection'!$J$69)","v":172501.47537762162},{"$f":"F$4*('COM-Appliance class'!$AQ54/'Volume per connection'!$J$69)","v":191888.55217007129},{"$f":"G$4*('COM-Appliance class'!$AQ54/'Volume per connection'!$J$69)","v":168945.79381806878},{"$f":"H$4*('COM-Appliance class'!$AQ54/'Volume per connection'!$J$69)","v":173426.6925374367},{"$f":"I$4*('COM-Appliance class'!$AQ54/'Volume per connection'!$J$69)","v":201122.11797403407},{"$f":"J$4*('COM-Appliance class'!$AQ54/'Volume per connection'!$J$69)","v":221322.02079340324},{"$f":"K$4*('COM-Appliance class'!$AQ54/'Volume per connection'!$J$69)","v":264952.02160193969},{"$f":"L$4*('COM-Appliance class'!$AQ54/'Volume per connection'!$J$69)","v":262701.16813488782},{"$f":"M$4*('COM-Appliance class'!$AQ54/'Volume per connection'!$J$69)","v":213453.76322499136},{"$f":"N$4*('COM-Appliance class'!$AQ54/'Volume per connection'!$J$69)","v":212457.1350635284},{"$f":"O$4*('COM-Appliance class'!$AQ54/'Volume per connection'!$J$69)","v":241776.28859953585},{"$f":"P$4*('COM-Appliance class'!$AQ54/'Volume per connection'!$J$69)","v":270153.32540192018},{"$f":"Q$4*('COM-Appliance class'!$AQ54/'Volume per connection'!$J$69)","v":188114.64147859669},{"$f":"R$4*('COM-Appliance class'!$AQ54/'Volume per connection'!$J$69)","v":199821.53883205651},{"$f":"S$4*('COM-Appliance class'!$AQ54/'Volume per connection'!$J$69)","v":217192.20422522732},{"$f":"T$4*('COM-Appliance class'!$AQ54/'Volume per connection'!$J$69)","v":242620.59871176933},{"$f":"U$4*('COM-Appliance class'!$AQ54/'Volume per connection'!$J$69)","v":261542.80487231252},{"$f":"V$4*('COM-Appliance class'!$AQ54/'Volume per connection'!$J$69)","v":268486.13691288937},{"$f":"W$4*('COM-Appliance class'!$AQ54/'Volume per connection'!$J$69)","v":279798.310820235},{"$f":"X$4*('COM-Appliance class'!$AQ54/'Volume per connection'!$J$69)","v":307824.72874936508},{"$f":"Y$4*('COM-Appliance class'!$AQ54/'Volume per connection'!$J$69)","v":331110.77524119947},{"$f":"Z$4*('COM-Appliance class'!$AQ54/'Volume per connection'!$J$69)","v":344257.52943245159},{"$f":"AA$4*('COM-Appliance class'!$AQ54/'Volume per connection'!$J$69)","v":359196.49740377761},{"$f":"AB$4*('COM-Appliance class'!$AQ54/'Volume per connection'!$J$69)","v":368569.48823943618},{"$f":"AC$4*('COM-Appliance class'!$AQ54/'Volume per connection'!$J$69)","v":375354.00664770033},{"$f":"AD$4*('COM-Appliance class'!$AQ54/'Volume per connection'!$J$69)","v":380211.7385893669},{"$f":"AE$4*('COM-Appliance class'!$AQ54/'Volume per connection'!$J$69)","v":384282.71526748297},{"$f":"AF$4*('COM-Appliance class'!$AQ54/'Volume per connection'!$J$69)","v":391858.25470174267},{"$f":"AG$4*('COM-Appliance class'!$AQ54/'Volume per connection'!$J$69)","v":392222.20750858285},{"$f":"AH$4*('COM-Appliance class'!$AQ54/'Volume per connection'!$J$69)","v":400169.12514766445},{"$f":"AI$4*('COM-Appliance class'!$AQ54/'Volume per connection'!$J$69)","v":400680.53639086144},{"$f":"AJ$4*('COM-Appliance class'!$AQ54/'Volume per connection'!$J$69)","v":401191.2264803513},{"$f":"AK$4*('COM-Appliance class'!$AQ54/'Volume per connection'!$J$69)","v":401701.19984761084},{"$f":"AL$4*('COM-Appliance class'!$AQ54/'Volume per connection'!$J$69)","v":402210.46089660906},{"$f":"AM$4*('COM-Appliance class'!$AQ54/'Volume per connection'!$J$69)","v":402719.01400398114},{"$f":"AN$4*('COM-Appliance class'!$AQ54/'Volume per connection'!$J$69)","v":403226.86351919844},{"$f":"AO$4*('COM-Appliance class'!$AQ54/'Volume per connection'!$J$69)","v":403734.01376474259},{"$f":"AP$4*('COM-Appliance class'!$AQ54/'Volume per connection'!$J$69)","v":404240.46903627244},{"$f":"AQ$4*('COM-Appliance class'!$AQ54/'Volume per connection'!$J$69)","v":404746.23360279569},{"$f":"AR$4*('COM-Appliance class'!$AQ54/'Volume per connection'!$J$69)","v":405251.31170683441},{"$f":"AS$4*('COM-Appliance class'!$AQ54/'Volume per connection'!$J$69)","v":405755.70756459376},{"$f":"AT$4*('COM-Appliance class'!$AQ54/'Volume per connection'!$J$69)","v":406259.42536612548},{"$f":"AU$4*('COM-Appliance class'!$AQ54/'Volume per connection'!$J$69)","v":406762.46927549515},{"$f":"AV$4*('COM-Appliance class'!$AQ54/'Volume per connection'!$J$69)","v":407264.84343094326},{"$f":"AW$4*('COM-Appliance class'!$AQ54/'Volume per connection'!$J$69)","v":407766.55194504984},{"$f":"AX$4*('COM-Appliance class'!$AQ54/'Volume per connection'!$J$69)","v":408267.59890489437},{"$f":"AY$4*('COM-Appliance class'!$AQ54/'Volume per connection'!$J$69)","v":408767.98837221763},{"$f":"AZ$4*('COM-Appliance class'!$AQ54/'Volume per connection'!$J$69)","v":409267.72438357974},{"$f":"BA$4*('COM-Appliance class'!$AQ54/'Volume per connection'!$J$69)","v":409766.81095052074},{"$f":"BB$4*('COM-Appliance class'!$AQ54/'Volume per connection'!$J$69)","v":410265.25205971499},{"$f":"BC$4*('COM-Appliance class'!$AQ54/'Volume per connection'!$J$69)","v":410763.05167313124},{"$f":"BD$4*('COM-Appliance class'!$AQ54/'Volume per connection'!$J$69)","v":411260.21372818458},{"$f":"BE$4*('COM-Appliance class'!$AQ54/'Volume per connection'!$J$69)","v":411756.74213789409},{"$f":"BF$4*('COM-Appliance class'!$AQ54/'Volume per connection'!$J$69)","v":412252.64079103386},{"$f":"BG$4*('COM-Appliance class'!$AQ54/'Volume per connection'!$J$69)","v":412747.91355228663},{"$f":"BH$4*('COM-Appliance class'!$AQ54/'Volume per connection'!$J$69)","v":413242.56426239561},{"$f":"BI$4*('COM-Appliance class'!$AQ54/'Volume per connection'!$J$69)","v":413736.5967383149},{"$f":"BJ$4*('COM-Appliance class'!$AQ54/'Volume per connection'!$J$69)","v":414230.01477335789},{"$f":"BK$4*('COM-Appliance class'!$AQ54/'Volume per connection'!$J$69)","v":414722.8221373483},{"$f":"BL$4*('COM-Appliance class'!$AQ54/'Volume per connection'!$J$69)","v":415215.02257676539},{"$f":"BM$4*('COM-Appliance class'!$AQ54/'Volume per connection'!$J$69)","v":415706.61981489364},{"$f":"BN$4*('COM-Appliance class'!$AQ54/'Volume per connection'!$J$69)","v":416197.61755196488},{"$f":"BO$4*('COM-Appliance class'!$AQ54/'Volume per connection'!$J$69)","v":416688.01946530747},{"$f":"BP$4*('COM-Appliance class'!$AQ54/'Volume per connection'!$J$69)","v":417177.82920948655},{"$f":"BQ$4*('COM-Appliance class'!$AQ54/'Volume per connection'!$J$69)","v":417667.05041645019},{"$f":"BR$4*('COM-Appliance class'!$AQ54/'Volume per connection'!$J$69)","v":418155.68669566908},{"$f":"BS$4*('COM-Appliance class'!$AQ54/'Volume per connection'!$J$69)","v":418643.74163428013},{"$f":"BT$4*('COM-Appliance class'!$AQ54/'Volume per connection'!$J$69)","v":419131.21879722469},{"$f":"BU$4*('COM-Appliance class'!$AQ54/'Volume per connection'!$J$69)","v":419618.12172739027},{"$f":"BV$4*('COM-Appliance class'!$AQ54/'Volume per connection'!$J$69)","v":420104.45394574682},{"$f":"BW$4*('COM-Appliance class'!$AQ54/'Volume per connection'!$J$69)","v":420590.21895148733},{"$f":"BX$4*('COM-Appliance class'!$AQ54/'Volume per connection'!$J$69)","v":421075.42022216087},{"$f":"BY$4*('COM-Appliance class'!$AQ54/'Volume per connection'!$J$69)","v":421560.06121381337},{"$f":"BZ$4*('COM-Appliance class'!$AQ54/'Volume per connection'!$J$69)","v":422044.14536111784},{"$f":"CA$4*('COM-Appliance class'!$AQ54/'Volume per connection'!$J$69)","v":422527.67607751337},{"$f":"CB$4*('COM-Appliance class'!$AQ54/'Volume per connection'!$J$69)","v":423010.65675533417},{"$f":"CC$4*('COM-Appliance class'!$AQ54/'Volume per connection'!$J$69)","v":423493.09076594608},{"$f":"CD$4*('COM-Appliance class'!$AQ54/'Volume per connection'!$J$69)","v":423974.98145987489}]
["Kingston (C)",null,{"$f":"C$4*('COM-Appliance class'!$AQ55/'Volume per connection'!$J$69)","v":165191.97190435452},{"$f":"D$4*('COM-Appliance class'!$AQ55/'Volume per connection'!$J$69)","v":203042.24413966428},{"$f":"E$4*('COM-Appliance class'!$AQ55/'Volume per connection'!$J$69)","v":180427.68085551262},{"$f":"F$4*('COM-Appliance class'!$AQ55/'Volume per connection'!$J$69)","v":200705.56715516344},{"$f":"G$4*('COM-Appliance class'!$AQ55/'Volume per connection'!$J$69)","v":176708.62061996141},{"$f":"H$4*('COM-Appliance class'!$AQ55/'Volume per connection'!$J$69)","v":181395.41047097085},{"$f":"I$4*('COM-Appliance class'!$AQ55/'Volume per connection'!$J$69)","v":210363.40260491113},{"$f":"J$4*('COM-Appliance class'!$AQ55/'Volume per connection'!$J$69)","v":231491.46316918803},{"$f":"K$4*('COM-Appliance class'!$AQ55/'Volume per connection'!$J$69)","v":277126.20249171101},{"$f":"L$4*('COM-Appliance class'!$AQ55/'Volume per connection'!$J$69)","v":274771.92540441803},{"$f":"M$4*('COM-Appliance class'!$AQ55/'Volume per connection'!$J$69)","v":223261.66999011728},{"$f":"N$4*('COM-Appliance class'!$AQ55/'Volume per connection'!$J$69)","v":222219.24813572783},{"$f":"O$4*('COM-Appliance class'!$AQ55/'Volume per connection'!$J$69)","v":252885.57644143223},{"$f":"P$4*('COM-Appliance class'!$AQ55/'Volume per connection'!$J$69)","v":282566.49904570315},{"$f":"Q$4*('COM-Appliance class'!$AQ55/'Volume per connection'!$J$69)","v":196758.25045930335},{"$f":"R$4*('COM-Appliance class'!$AQ55/'Volume per connection'!$J$69)","v":209003.0636406074},{"$f":"S$4*('COM-Appliance class'!$AQ55/'Volume per connection'!$J$69)","v":227171.8872112231},{"$f":"T$4*('COM-Appliance class'!$AQ55/'Volume per connection'!$J$69)","v":253768.68144177884},{"$f":"U$4*('COM-Appliance class'!$AQ55/'Volume per connection'!$J$69)","v":273560.33694352425},{"$f":"V$4*('COM-Appliance class'!$AQ55/'Volume per connection'!$J$69)","v":280822.70553920511},{"$f":"W$4*('COM-Appliance class'!$AQ55/'Volume per connection'!$J$69)","v":292654.65827507945},{"$f":"X$4*('COM-Appliance class'!$AQ55/'Volume per connection'!$J$69)","v":321968.85155122756},{"$f":"Y$4*('COM-Appliance class'!$AQ55/'Volume per connection'!$J$69)","v":346324.85984401446},{"$f":"Z$4*('COM-Appliance class'!$AQ55/'Volume per connection'!$J$69)","v":360075.68930395093},{"$f":"AA$4*('COM-Appliance class'!$AQ55/'Volume per connection'!$J$69)","v":375701.08230155084},{"$f":"AB$4*('COM-Appliance class'!$AQ55/'Volume per connection'!$J$69)","v":385504.74917138933},{"$f":"AC$4*('COM-Appliance class'!$AQ55/'Volume per connection'!$J$69)","v":392601.00686683762},{"$f":"AD$4*('COM-Appliance class'!$AQ55/'Volume per connection'!$J$69)","v":397681.94490828901},{"$f":"AE$4*('COM-Appliance class'!$AQ55/'Volume per connection'!$J$69)","v":401939.97736419371},{"$f":"AF$4*('COM-Appliance class'!$AQ55/'Volume per connection'!$J$69)","v":409863.60241354955},{"$f":"AG$4*('COM-Appliance class'!$AQ55/'Volume per connection'!$J$69)","v":410244.27835116268},{"$f":"AH$4*('COM-Appliance class'!$AQ55/'Volume per connection'!$J$69)","v":418556.34592293529},{"$f":"AI$4*('COM-Appliance class'!$AQ55/'Volume per connection'!$J$69)","v":419091.2558091926},{"$f":"AJ$4*('COM-Appliance class'!$AQ55/'Volume per connection'!$J$69)","v":419625.41140572209},{"$f":"AK$4*('COM-Appliance class'!$AQ55/'Volume per connection'!$J$69)","v":420158.81734762085},{"$f":"AL$4*('COM-Appliance class'!$AQ55/'Volume per connection'!$J$69)","v":420691.47824121406},{"$f":"AM$4*('COM-Appliance class'!$AQ55/'Volume per connection'!$J$69)","v":421223.39866423735},{"$f":"AN$4*('COM-Appliance class'!$AQ55/'Volume per connection'!$J$69)","v":421754.58316601434},{"$f":"AO$4*('COM-Appliance class'!$AQ55/'Volume per connection'!$J$69)","v":422285.03626763867},{"$f":"AP$4*('COM-Appliance class'!$AQ55/'Volume per connection'!$J$69)","v":422814.76246214885},{"$f":"AQ$4*('COM-Appliance class'!$AQ55/'Volume per connection'!$J$69)","v":423343.76621470763},{"$f":"AR$4*('COM-Appliance class'!$AQ55/'Volume per connection'!$J$69)","v":423872.05196277506},{"$f":"AS$4*('COM-Appliance class'!$AQ55/'Volume per connection'!$J$69)","v":424399.62411628518},{"$f":"AT$4*('COM-Appliance class'!$AQ55/'Volume per connection'!$J$69)","v":424926.48705781688},{"$f":"AU$4*('COM-Appliance class'!$AQ55/'Volume per connection'!$J$69)","v":425452.64514276868},{"$f":"AV$4*('COM-Appliance class'!$AQ55/'Volume per connection'!$J$69)","v":425978.10269952769},{"$f":"AW$4*('COM-Appliance class'!$AQ55/'Volume per connection'!$J$69)","v":426502.86402964126},{"$f":"AX$4*('COM-Appliance class'!$AQ55/'Volume per connection'!$J$69)","v":427026.93340798462},{"$f":"AY$4*('COM-Appliance class'!$AQ55/'Volume per connection'!$J$69)","v":427550.3150829298},{"$f":"AZ$4*('COM-Appliance class'!$AQ55/'Volume per connection'!$J$69)","v":428073.01327651145},{"$f":"BA$4*('COM-Appliance class'!$AQ55/'Volume per connection'!$J$69)","v":428595.03218459431},{"$f":"BB$4*('COM-Appliance class'!$AQ55/'Volume per connection'!$J$69)","v":429116.37597703491},{"$f":"BC$4*('COM-Appliance class'!$AQ55/'Volume per connection'!$J$69)","v":429637.04879784904},{"$f":"BD$4*('COM-Appliance class'!$AQ55/'Volume per connection'!$J$69)","v":430157.05476537056},{"$f":"BE$4*('COM-Appliance class'!$AQ55/'Volume per connection'!$J$69)","v":430676.39797241648},{"$f":"BF$4*('COM-Appliance class'!$AQ55/'Volume per connection'!$J$69)","v":431195.08248644462},{"$f":"BG$4*('COM-Appliance class'!$AQ55/'Volume per connection'!$J$69)","v":431713.11234971462},{"$f":"BH$4*('COM-Appliance class'!$AQ55/'Volume per connection'!$J$69)","v":432230.49157944659},{"$f":"BI$4*('COM-Appliance class'!$AQ55/'Volume per connection'!$J$69)","v":432747.22416797833},{"$f":"BJ$4*('COM-Appliance class'!$AQ55/'Volume per connection'!$J$69)","v":433263.31408292078},{"$f":"BK$4*('COM-Appliance class'!$AQ55/'Volume per connection'!$J$69)","v":433778.76526731596},{"$f":"BL$4*('COM-Appliance class'!$AQ55/'Volume per connection'!$J$69)","v":434293.58163978864},{"$f":"BM$4*('COM-Appliance class'!$AQ55/'Volume per connection'!$J$69)","v":434807.76709470304},{"$f":"BN$4*('COM-Appliance class'!$AQ55/'Volume per connection'!$J$69)","v":435321.32550231169},{"$f":"BO$4*('COM-Appliance class'!$AQ55/'Volume per connection'!$J$69)","v":435834.260708911},{"$f":"BP$4*('COM-Appliance class'!$AQ55/'Volume per connection'!$J$69)","v":436346.57653698843},{"$f":"BQ$4*('COM-Appliance class'!$AQ55/'Volume per connection'!$J$69)","v":436858.27678537503},{"$f":"BR$4*('COM-Appliance class'!$AQ55/'Volume per connection'!$J$69)","v":437369.36522939173},{"$f":"BS$4*('COM-Appliance class'!$AQ55/'Volume per connection'!$J$69)","v":437879.8456209994},{"$f":"BT$4*('COM-Appliance class'!$AQ55/'Volume per connection'!$J$69)","v":438389.72168894362},{"$f":"BU$4*('COM-Appliance class'!$AQ55/'Volume per connection'!$J$69)","v":438898.9971389026},{"$f":"BV$4*('COM-Appliance class'!$AQ55/'Volume per connection'!$J$69)","v":439407.67565363005},{"$f":"BW$4*('COM-Appliance class'!$AQ55/'Volume per connection'!$J$69)","v":439915.76089310215},{"$f":"BX$4*('COM-Appliance class'!$AQ55/'Volume per connection'!$J$69)","v":440423.25649465644},{"$f":"BY$4*('COM-Appliance class'!$AQ55/'Volume per connection'!$J$69)","v":440930.16607313952},{"$f":"BZ$4*('COM-Appliance class'!$AQ55/'Volume per connection'!$J$69)","v":441436.49322104285},{"$f":"CA$4*('COM-Appliance class'!$AQ55/'Volume per connection'!$J$69)","v":441942.24150864832},{"$f":"CB$4*('COM-Appliance class'!$AQ55/'Volume per connection'!$J$69)","v":442447.41448416328},{"$f":"CC$4*('COM-Appliance class'!$AQ55/'Volume per connection'!$J$69)","v":442952.01567386312},{"$f":"CD$4*('COM-Appliance class'!$AQ55/'Volume per connection'!$J$69)","v":443456.04858222575}]
["Knox (C)",null,{"$f":"C$4*('COM-Appliance class'!$AQ56/'Volume per connection'!$J$69)","v":140394.16005766334},{"$f":"D$4*('COM-Appliance class'!$AQ56/'Volume per connection'!$J$69)","v":172562.53432652287},{"$f":"E$4*('COM-Appliance class'!$AQ56/'Volume per connection'!$J$69)","v":153342.75880869309},{"$f":"F$4*('COM-Appliance class'!$AQ56/'Volume per connection'!$J$69)","v":170576.62787608709},{"$f":"G$4*('COM-Appliance class'!$AQ56/'Volume per connection'!$J$69)","v":150181.98572780521},{"$f":"H$4*('COM-Appliance class'!$AQ56/'Volume per connection'!$J$69)","v":154165.21758171293},{"$f":"I$4*('COM-Appliance class'!$AQ56/'Volume per connection'!$J$69)","v":178784.67624739363},{"$f":"J$4*('COM-Appliance class'!$AQ56/'Volume per connection'!$J$69)","v":196741.09557197525},{"$f":"K$4*('COM-Appliance class'!$AQ56/'Volume per connection'!$J$69)","v":235525.37075664083},{"$f":"L$4*('COM-Appliance class'!$AQ56/'Volume per connection'!$J$69)","v":233524.50624486618},{"$f":"M$4*('COM-Appliance class'!$AQ56/'Volume per connection'!$J$69)","v":189746.71874176883},{"$f":"N$4*('COM-Appliance class'!$AQ56/'Volume per connection'!$J$69)","v":188860.78016384874},{"$f":"O$4*('COM-Appliance class'!$AQ56/'Volume per connection'!$J$69)","v":214923.62907169224},{"$f":"P$4*('COM-Appliance class'!$AQ56/'Volume per connection'!$J$69)","v":240148.99656821816},{"$f":"Q$4*('COM-Appliance class'!$AQ56/'Volume per connection'!$J$69)","v":167221.86307966139},{"$f":"R$4*('COM-Appliance class'!$AQ56/'Volume per connection'!$J$69)","v":177628.54472304985},{"$f":"S$4*('COM-Appliance class'!$AQ56/'Volume per connection'!$J$69)","v":193069.95325535655},{"$f":"T$4*('COM-Appliance class'!$AQ56/'Volume per connection'!$J$69)","v":215674.16666342318},{"$f":"U$4*('COM-Appliance class'!$AQ56/'Volume per connection'!$J$69)","v":232494.79552501818},{"$f":"V$4*('COM-Appliance class'!$AQ56/'Volume per connection'!$J$69)","v":238666.97282434913},{"$f":"W$4*('COM-Appliance class'!$AQ56/'Volume per connection'!$J$69)","v":248722.77061552048},{"$f":"X$4*('COM-Appliance class'!$AQ56/'Volume per connection'!$J$69)","v":273636.46039916016},{"$f":"Y$4*('COM-Appliance class'!$AQ56/'Volume per connection'!$J$69)","v":294336.26370802283},{"$f":"Z$4*('COM-Appliance class'!$AQ56/'Volume per connection'!$J$69)","v":306022.88582330168},{"$f":"AA$4*('COM-Appliance class'!$AQ56/'Volume per connection'!$J$69)","v":319302.67115535814},{"$f":"AB$4*('COM-Appliance class'!$AQ56/'Volume per connection'!$J$69)","v":327634.65944636927},{"$f":"AC$4*('COM-Appliance class'!$AQ56/'Volume per connection'!$J$69)","v":333665.66160234588},{"$f":"AD$4*('COM-Appliance class'!$AQ56/'Volume per connection'!$J$69)","v":337983.87404579087},{"$f":"AE$4*('COM-Appliance class'!$AQ56/'Volume per connection'!$J$69)","v":341602.7114702338},{"$f":"AF$4*('COM-Appliance class'!$AQ56/'Volume per connection'!$J$69)","v":348336.88063470309},{"$f":"AG$4*('COM-Appliance class'!$AQ56/'Volume per connection'!$J$69)","v":348660.41136019316},{"$f":"AH$4*('COM-Appliance class'!$AQ56/'Volume per connection'!$J$69)","v":355724.71195318585},{"$f":"AI$4*('COM-Appliance class'!$AQ56/'Volume per connection'!$J$69)","v":356179.32378039451},{"$f":"AJ$4*('COM-Appliance class'!$AQ56/'Volume per connection'!$J$69)","v":356633.29454816447},{"$f":"AK$4*('COM-Appliance class'!$AQ56/'Volume per connection'!$J$69)","v":357086.62819579471},{"$f":"AL$4*('COM-Appliance class'!$AQ56/'Volume per connection'!$J$69)","v":357539.32863813156},{"$f":"AM$4*('COM-Appliance class'!$AQ56/'Volume per connection'!$J$69)","v":357991.39976572304},{"$f":"AN$4*('COM-Appliance class'!$AQ56/'Volume per connection'!$J$69)","v":358442.84544497076},{"$f":"AO$4*('COM-Appliance class'!$AQ56/'Volume per connection'!$J$69)","v":358893.6695182838},{"$f":"AP$4*('COM-Appliance class'!$AQ56/'Volume per connection'!$J$69)","v":359343.8758042276},{"$f":"AQ$4*('COM-Appliance class'!$AQ56/'Volume per connection'!$J$69)","v":359793.46809767664},{"$f":"AR$4*('COM-Appliance class'!$AQ56/'Volume per connection'!$J$69)","v":360242.45016996103},{"$f":"AS$4*('COM-Appliance class'!$AQ56/'Volume per connection'!$J$69)","v":360690.8257690171},{"$f":"AT$4*('COM-Appliance class'!$AQ56/'Volume per connection'!$J$69)","v":361138.59861953231},{"$f":"AU$4*('COM-Appliance class'!$AQ56/'Volume per connection'!$J$69)","v":361585.77242309425},{"$f":"AV$4*('COM-Appliance class'!$AQ56/'Volume per connection'!$J$69)","v":362032.35085833346},{"$f":"AW$4*('COM-Appliance class'!$AQ56/'Volume per connection'!$J$69)","v":362478.3375810702},{"$f":"AX$4*('COM-Appliance class'!$AQ56/'Volume per connection'!$J$69)","v":362923.73622445617},{"$f":"AY$4*('COM-Appliance class'!$AQ56/'Volume per connection'!$J$69)","v":363368.55039911869},{"$f":"AZ$4*('COM-Appliance class'!$AQ56/'Volume per connection'!$J$69)","v":363812.78369330103},{"$f":"BA$4*('COM-Appliance class'!$AQ56/'Volume per connection'!$J$69)","v":364256.43967300531},{"$f":"BB$4*('COM-Appliance class'!$AQ56/'Volume per connection'!$J$69)","v":364699.5218821296},{"$f":"BC$4*('COM-Appliance class'!$AQ56/'Volume per connection'!$J$69)","v":365142.0338426102},{"$f":"BD$4*('COM-Appliance class'!$AQ56/'Volume per connection'!$J$69)","v":365583.97905455687},{"$f":"BE$4*('COM-Appliance class'!$AQ56/'Volume per connection'!$J$69)","v":366025.36099639285},{"$f":"BF$4*('COM-Appliance class'!$AQ56/'Volume per connection'!$J$69)","v":366466.18312498915},{"$f":"BG$4*('COM-Appliance class'!$AQ56/'Volume per connection'!$J$69)","v":366906.44887580111},{"$f":"BH$4*('COM-Appliance class'!$AQ56/'Volume per connection'!$J$69)","v":367346.16166300338},{"$f":"BI$4*('COM-Appliance class'!$AQ56/'Volume per connection'!$J$69)","v":367785.32487962348},{"$f":"BJ$4*('COM-Appliance class'!$AQ56/'Volume per connection'!$J$69)","v":368223.94189767406},{"$f":"BK$4*('COM-Appliance class'!$AQ56/'Volume per connection'!$J$69)","v":368662.01606828679},{"$f":"BL$4*('COM-Appliance class'!$AQ56/'Volume per connection'!$J$69)","v":369099.55072184181},{"$f":"BM$4*('COM-Appliance class'!$AQ56/'Volume per connection'!$J$69)","v":369536.54916810023},{"$f":"BN$4*('COM-Appliance class'!$AQ56/'Volume per connection'!$J$69)","v":369973.01469633135},{"$f":"BO$4*('COM-Appliance class'!$AQ56/'Volume per connection'!$J$69)","v":370408.95057544421},{"$f":"BP$4*('COM-Appliance class'!$AQ56/'Volume per connection'!$J$69)","v":370844.3600541132},{"$f":"BQ$4*('COM-Appliance class'!$AQ56/'Volume per connection'!$J$69)","v":371279.24636090739},{"$f":"BR$4*('COM-Appliance class'!$AQ56/'Volume per connection'!$J$69)","v":371713.61270441499},{"$f":"BS$4*('COM-Appliance class'!$AQ56/'Volume per connection'!$J$69)","v":372147.46227337082},{"$f":"BT$4*('COM-Appliance class'!$AQ56/'Volume per connection'!$J$69)","v":372580.79823677934},{"$f":"BU$4*('COM-Appliance class'!$AQ56/'Volume per connection'!$J$69)","v":373013.62374404055},{"$f":"BV$4*('COM-Appliance class'!$AQ56/'Volume per connection'!$J$69)","v":373445.94192507112},{"$f":"BW$4*('COM-Appliance class'!$AQ56/'Volume per connection'!$J$69)","v":373877.75589042943},{"$f":"BX$4*('COM-Appliance class'!$AQ56/'Volume per connection'!$J$69)","v":374309.06873143377},{"$f":"BY$4*('COM-Appliance class'!$AQ56/'Volume per connection'!$J$69)","v":374739.88352028752},{"$f":"BZ$4*('COM-Appliance class'!$AQ56/'Volume per connection'!$J$69)","v":375170.20331019501},{"$f":"CA$4*('COM-Appliance class'!$AQ56/'Volume per connection'!$J$69)","v":375600.03113548475},{"$f":"CB$4*('COM-Appliance class'!$AQ56/'Volume per connection'!$J$69)","v":376029.37001172453},{"$f":"CC$4*('COM-Appliance class'!$AQ56/'Volume per connection'!$J$69)","v":376458.22293584258},{"$f":"CD$4*('COM-Appliance class'!$AQ56/'Volume per connection'!$J$69)","v":376886.59288624168}]
["Manningham (C)",null,{"$f":"C$4*('COM-Appliance class'!$AQ57/'Volume per connection'!$J$69)","v":122830.82036545404},{"$f":"D$4*('COM-Appliance class'!$AQ57/'Volume per connection'!$J$69)","v":150974.9240777744},{"$f":"E$4*('COM-Appliance class'!$AQ57/'Volume per connection'!$J$69)","v":134159.54662101073},{"$f":"F$4*('COM-Appliance class'!$AQ57/'Volume per connection'!$J$69)","v":149237.45495244977},{"$f":"G$4*('COM-Appliance class'!$AQ57/'Volume per connection'!$J$69)","v":131394.18693400495},{"$f":"H$4*('COM-Appliance class'!$AQ57/'Volume per connection'!$J$69)","v":134879.11562420358},{"$f":"I$4*('COM-Appliance class'!$AQ57/'Volume per connection'!$J$69)","v":156418.67470284976},{"$f":"J$4*('COM-Appliance class'!$AQ57/'Volume per connection'!$J$69)","v":172128.74209852034},{"$f":"K$4*('COM-Appliance class'!$AQ57/'Volume per connection'!$J$69)","v":206061.09609569047},{"$f":"L$4*('COM-Appliance class'!$AQ57/'Volume per connection'!$J$69)","v":204310.54016572543},{"$f":"M$4*('COM-Appliance class'!$AQ57/'Volume per connection'!$J$69)","v":166009.36331776113},{"$f":"N$4*('COM-Appliance class'!$AQ57/'Volume per connection'!$J$69)","v":165234.25584694732},{"$f":"O$4*('COM-Appliance class'!$AQ57/'Volume per connection'!$J$69)","v":188036.63673726661},{"$f":"P$4*('COM-Appliance class'!$AQ57/'Volume per connection'!$J$69)","v":210106.30532138527},{"$f":"Q$4*('COM-Appliance class'!$AQ57/'Volume per connection'!$J$69)","v":146302.37195534457},{"$f":"R$4*('COM-Appliance class'!$AQ57/'Volume per connection'!$J$69)","v":155407.17548146346},{"$f":"S$4*('COM-Appliance class'!$AQ57/'Volume per connection'!$J$69)","v":168916.86047720932},{"$f":"T$4*('COM-Appliance class'!$AQ57/'Volume per connection'!$J$69)","v":188693.28191445602},{"$f":"U$4*('COM-Appliance class'!$AQ57/'Volume per connection'!$J$69)","v":203409.64647893616},{"$f":"V$4*('COM-Appliance class'!$AQ57/'Volume per connection'!$J$69)","v":208809.68306739873},{"$f":"W$4*('COM-Appliance class'!$AQ57/'Volume per connection'!$J$69)","v":217607.4983868635},{"$f":"X$4*('COM-Appliance class'!$AQ57/'Volume per connection'!$J$69)","v":239404.48020717574},{"$f":"Y$4*('COM-Appliance class'!$AQ57/'Volume per connection'!$J$69)","v":257514.7336592199},{"$f":"Z$4*('COM-Appliance class'!$AQ57/'Volume per connection'!$J$69)","v":267739.35682824044},{"$f":"AA$4*('COM-Appliance class'!$AQ57/'Volume per connection'!$J$69)","v":279357.83815213351},{"$f":"AB$4*('COM-Appliance class'!$AQ57/'Volume per connection'!$J$69)","v":286647.49291156157},{"$f":"AC$4*('COM-Appliance class'!$AQ57/'Volume per connection'!$J$69)","v":291924.01539754082},{"$f":"AD$4*('COM-Appliance class'!$AQ57/'Volume per connection'!$J$69)","v":295702.01853330381},{"$f":"AE$4*('COM-Appliance class'!$AQ57/'Volume per connection'!$J$69)","v":298868.13861572719},{"$f":"AF$4*('COM-Appliance class'!$AQ57/'Volume per connection'!$J$69)","v":304759.8617658338},{"$f":"AG$4*('COM-Appliance class'!$AQ57/'Volume per connection'!$J$69)","v":305042.91872781183},{"$f":"AH$4*('COM-Appliance class'!$AQ57/'Volume per connection'!$J$69)","v":311223.47379355715},{"$f":"AI$4*('COM-Appliance class'!$AQ57/'Volume per connection'!$J$69)","v":311621.21358316764},{"$f":"AJ$4*('COM-Appliance class'!$AQ57/'Volume per connection'!$J$69)","v":312018.39251001348},{"$f":"AK$4*('COM-Appliance class'!$AQ57/'Volume per connection'!$J$69)","v":312415.01402058639},{"$f":"AL$4*('COM-Appliance class'!$AQ57/'Volume per connection'!$J$69)","v":312811.08153998462},{"$f":"AM$4*('COM-Appliance class'!$AQ57/'Volume per connection'!$J$69)","v":313206.59847204783},{"$f":"AN$4*('COM-Appliance class'!$AQ57/'Volume per connection'!$J$69)","v":313601.56819948991},{"$f":"AO$4*('COM-Appliance class'!$AQ57/'Volume per connection'!$J$69)","v":313995.99408403377},{"$f":"AP$4*('COM-Appliance class'!$AQ57/'Volume per connection'!$J$69)","v":314389.87946654152},{"$f":"AQ$4*('COM-Appliance class'!$AQ57/'Volume per connection'!$J$69)","v":314783.22766714788},{"$f":"AR$4*('COM-Appliance class'!$AQ57/'Volume per connection'!$J$69)","v":315176.04198538896},{"$f":"AS$4*('COM-Appliance class'!$AQ57/'Volume per connection'!$J$69)","v":315568.32570033328},{"$f":"AT$4*('COM-Appliance class'!$AQ57/'Volume per connection'!$J$69)","v":315960.08207070915},{"$f":"AU$4*('COM-Appliance class'!$AQ57/'Volume per connection'!$J$69)","v":316351.31433503475},{"$f":"AV$4*('COM-Appliance class'!$AQ57/'Volume per connection'!$J$69)","v":316742.02571174322},{"$f":"AW$4*('COM-Appliance class'!$AQ57/'Volume per connection'!$J$69)","v":317132.21939931076},{"$f":"AX$4*('COM-Appliance class'!$AQ57/'Volume per connection'!$J$69)","v":317521.89857638121},{"$f":"AY$4*('COM-Appliance class'!$AQ57/'Volume per connection'!$J$69)","v":317911.06640189141},{"$f":"AZ$4*('COM-Appliance class'!$AQ57/'Volume per connection'!$J$69)","v":318299.72601519484},{"$f":"BA$4*('COM-Appliance class'!$AQ57/'Volume per connection'!$J$69)","v":318687.88053618587},{"$f":"BB$4*('COM-Appliance class'!$AQ57/'Volume per connection'!$J$69)","v":319075.53306542011},{"$f":"BC$4*('COM-Appliance class'!$AQ57/'Volume per connection'!$J$69)","v":319462.68668423896},{"$f":"BD$4*('COM-Appliance class'!$AQ57/'Volume per connection'!$J$69)","v":319849.34445488761},{"$f":"BE$4*('COM-Appliance class'!$AQ57/'Volume per connection'!$J$69)","v":320235.50942063797},{"$f":"BF$4*('COM-Appliance class'!$AQ57/'Volume per connection'!$J$69)","v":320621.18460590555},{"$f":"BG$4*('COM-Appliance class'!$AQ57/'Volume per connection'!$J$69)","v":321006.37301636965},{"$f":"BH$4*('COM-Appliance class'!$AQ57/'Volume per connection'!$J$69)","v":321391.07763909071},{"$f":"BI$4*('COM-Appliance class'!$AQ57/'Volume per connection'!$J$69)","v":321775.30144262803},{"$f":"BJ$4*('COM-Appliance class'!$AQ57/'Volume per connection'!$J$69)","v":322159.04737715458},{"$f":"BK$4*('COM-Appliance class'!$AQ57/'Volume per connection'!$J$69)","v":322542.31837457488},{"$f":"BL$4*('COM-Appliance class'!$AQ57/'Volume per connection'!$J$69)","v":322925.11734863761},{"$f":"BM$4*('COM-Appliance class'!$AQ57/'Volume per connection'!$J$69)","v":323307.44719505223},{"$f":"BN$4*('COM-Appliance class'!$AQ57/'Volume per connection'!$J$69)","v":323689.31079159962},{"$f":"BO$4*('COM-Appliance class'!$AQ57/'Volume per connection'!$J$69)","v":324070.71099824761},{"$f":"BP$4*('COM-Appliance class'!$AQ57/'Volume per connection'!$J$69)","v":324451.65065726079},{"$f":"BQ$4*('COM-Appliance class'!$AQ57/'Volume per connection'!$J$69)","v":324832.13259331352},{"$f":"BR$4*('COM-Appliance class'!$AQ57/'Volume per connection'!$J$69)","v":325212.15961359889},{"$f":"BS$4*('COM-Appliance class'!$AQ57/'Volume per connection'!$J$69)","v":325591.7345079403},{"$f":"BT$4*('COM-Appliance class'!$AQ57/'Volume per connection'!$J$69)","v":325970.86004889914},{"$f":"BU$4*('COM-Appliance class'!$AQ57/'Volume per connection'!$J$69)","v":326349.53899188474},{"$f":"BV$4*('COM-Appliance class'!$AQ57/'Volume per connection'!$J$69)","v":326727.77407526056},{"$f":"BW$4*('COM-Appliance class'!$AQ57/'Volume per connection'!$J$69)","v":327105.56802045339},{"$f":"BX$4*('COM-Appliance class'!$AQ57/'Volume per connection'!$J$69)","v":327482.92353205703},{"$f":"BY$4*('COM-Appliance class'!$AQ57/'Volume per connection'!$J$69)","v":327859.84329794144},{"$f":"BZ$4*('COM-Appliance class'!$AQ57/'Volume per connection'!$J$69)","v":328236.32998935453},{"$f":"CA$4*('COM-Appliance class'!$AQ57/'Volume per connection'!$J$69)","v":328612.38626102958},{"$f":"CB$4*('COM-Appliance class'!$AQ57/'Volume per connection'!$J$69)","v":328988.01475128625},{"$f":"CC$4*('COM-Appliance class'!$AQ57/'Volume per connection'!$J$69)","v":329363.21808213642},{"$f":"CD$4*('COM-Appliance class'!$AQ57/'Volume per connection'!$J$69)","v":329737.99885938398}]
["Maroondah (C)",null,{"$f":"C$4*('COM-Appliance class'!$AQ58/'Volume per connection'!$J$69)","v":119209.07653087312},{"$f":"D$4*('COM-Appliance class'!$AQ58/'Volume per connection'!$J$69)","v":146523.33368028174},{"$f":"E$4*('COM-Appliance class'!$AQ58/'Volume per connection'!$J$69)","v":130203.76818218599},{"$f":"F$4*('COM-Appliance class'!$AQ58/'Volume per connection'!$J$69)","v":144837.09492265875},{"$f":"G$4*('COM-Appliance class'!$AQ58/'Volume per connection'!$J$69)","v":127519.94686125976},{"$f":"H$4*('COM-Appliance class'!$AQ58/'Volume per connection'!$J$69)","v":130902.12024167438},{"$f":"I$4*('COM-Appliance class'!$AQ58/'Volume per connection'!$J$69)","v":151806.57190134723},{"$f":"J$4*('COM-Appliance class'!$AQ58/'Volume per connection'!$J$69)","v":167053.41809926115},{"$f":"K$4*('COM-Appliance class'!$AQ58/'Volume per connection'!$J$69)","v":199985.25534081223},{"$f":"L$4*('COM-Appliance class'!$AQ58/'Volume per connection'!$J$69)","v":198286.31565119774},{"$f":"M$4*('COM-Appliance class'!$AQ58/'Volume per connection'!$J$69)","v":161114.4730427475},{"$f":"N$4*('COM-Appliance class'!$AQ58/'Volume per connection'!$J$69)","v":160362.2201022153},{"$f":"O$4*('COM-Appliance class'!$AQ58/'Volume per connection'!$J$69)","v":182492.25847982019},{"$f":"P$4*('COM-Appliance class'!$AQ58/'Volume per connection'!$J$69)","v":203911.1890334677},{"$f":"Q$4*('COM-Appliance class'!$AQ58/'Volume per connection'!$J$69)","v":141988.55468996009},{"$f":"R$4*('COM-Appliance class'!$AQ58/'Volume per connection'!$J$69)","v":150824.89736938206},{"$f":"S$4*('COM-Appliance class'!$AQ58/'Volume per connection'!$J$69)","v":163936.24082352704},{"$f":"T$4*('COM-Appliance class'!$AQ58/'Volume per connection'!$J$69)","v":183129.54206180968},{"$f":"U$4*('COM-Appliance class'!$AQ58/'Volume per connection'!$J$69)","v":197411.98538021921},{"$f":"V$4*('COM-Appliance class'!$AQ58/'Volume per connection'!$J$69)","v":202652.79850047905},{"$f":"W$4*('COM-Appliance class'!$AQ58/'Volume per connection'!$J$69)","v":211191.20471320456},{"$f":"X$4*('COM-Appliance class'!$AQ58/'Volume per connection'!$J$69)","v":232345.48884343126},{"$f":"Y$4*('COM-Appliance class'!$AQ58/'Volume per connection'!$J$69)","v":249921.75010534358},{"$f":"Z$4*('COM-Appliance class'!$AQ58/'Volume per connection'!$J$69)","v":259844.89384262916},{"$f":"AA$4*('COM-Appliance class'!$AQ58/'Volume per connection'!$J$69)","v":271120.79695222061},{"$f":"AB$4*('COM-Appliance class'!$AQ58/'Volume per connection'!$J$69)","v":278195.51166563557},{"$f":"AC$4*('COM-Appliance class'!$AQ58/'Volume per connection'!$J$69)","v":283316.45257424877},{"$f":"AD$4*('COM-Appliance class'!$AQ58/'Volume per connection'!$J$69)","v":286983.05891624885},{"$f":"AE$4*('COM-Appliance class'!$AQ58/'Volume per connection'!$J$69)","v":290055.82396079216},{"$f":"AF$4*('COM-Appliance class'!$AQ58/'Volume per connection'!$J$69)","v":295773.82595581346},{"$f":"AG$4*('COM-Appliance class'!$AQ58/'Volume per connection'!$J$69)","v":296048.53680560377},{"$f":"AH$4*('COM-Appliance class'!$AQ58/'Volume per connection'!$J$69)","v":302046.85432594275},{"$f":"AI$4*('COM-Appliance class'!$AQ58/'Volume per connection'!$J$69)","v":302432.86650821083},{"$f":"AJ$4*('COM-Appliance class'!$AQ58/'Volume per connection'!$J$69)","v":302818.33436510491},{"$f":"AK$4*('COM-Appliance class'!$AQ58/'Volume per connection'!$J$69)","v":303203.26124149479},{"$f":"AL$4*('COM-Appliance class'!$AQ58/'Volume per connection'!$J$69)","v":303587.65046148747},{"$f":"AM$4*('COM-Appliance class'!$AQ58/'Volume per connection'!$J$69)","v":303971.50532855827},{"$f":"AN$4*('COM-Appliance class'!$AQ58/'Volume per connection'!$J$69)","v":304354.82912567968},{"$f":"AO$4*('COM-Appliance class'!$AQ58/'Volume per connection'!$J$69)","v":304737.62511545204},{"$f":"AP$4*('COM-Appliance class'!$AQ58/'Volume per connection'!$J$69)","v":305119.89654023008},{"$f":"AQ$4*('COM-Appliance class'!$AQ58/'Volume per connection'!$J$69)","v":305501.6466222523},{"$f":"AR$4*('COM-Appliance class'!$AQ58/'Volume per connection'!$J$69)","v":305882.87856376579},{"$f":"AS$4*('COM-Appliance class'!$AQ58/'Volume per connection'!$J$69)","v":306263.59554715385},{"$f":"AT$4*('COM-Appliance class'!$AQ58/'Volume per connection'!$J$69)","v":306643.80073505902},{"$f":"AU$4*('COM-Appliance class'!$AQ58/'Volume per connection'!$J$69)","v":307023.49727050978},{"$f":"AV$4*('COM-Appliance class'!$AQ58/'Volume per connection'!$J$69)","v":307402.68827704171},{"$f":"AW$4*('COM-Appliance class'!$AQ58/'Volume per connection'!$J$69)","v":307781.37685882207},{"$f":"AX$4*('COM-Appliance class'!$AQ58/'Volume per connection'!$J$69)","v":308159.56610077014},{"$f":"AY$4*('COM-Appliance class'!$AQ58/'Volume per connection'!$J$69)","v":308537.25906867976},{"$f":"AZ$4*('COM-Appliance class'!$AQ58/'Volume per connection'!$J$69)","v":308914.45880933845},{"$f":"BA$4*('COM-Appliance class'!$AQ58/'Volume per connection'!$J$69)","v":309291.16835064866},{"$f":"BB$4*('COM-Appliance class'!$AQ58/'Volume per connection'!$J$69)","v":309667.39070174407},{"$f":"BC$4*('COM-Appliance class'!$AQ58/'Volume per connection'!$J$69)","v":310043.12885311083},{"$f":"BD$4*('COM-Appliance class'!$AQ58/'Volume per connection'!$J$69)","v":310418.38577670202},{"$f":"BE$4*('COM-Appliance class'!$AQ58/'Volume per connection'!$J$69)","v":310793.16442605655},{"$f":"BF$4*('COM-Appliance class'!$AQ58/'Volume per connection'!$J$69)","v":311167.46773641329},{"$f":"BG$4*('COM-Appliance class'!$AQ58/'Volume per connection'!$J$69)","v":311541.29862482706},{"$f":"BH$4*('COM-Appliance class'!$AQ58/'Volume per connection'!$J$69)","v":311914.65999028319},{"$f":"BI$4*('COM-Appliance class'!$AQ58/'Volume per connection'!$J$69)","v":312287.55471381097},{"$f":"BJ$4*('COM-Appliance class'!$AQ58/'Volume per connection'!$J$69)","v":312659.98565859569},{"$f":"BK$4*('COM-Appliance class'!$AQ58/'Volume per connection'!$J$69)","v":313031.95567009278},{"$f":"BL$4*('COM-Appliance class'!$AQ58/'Volume per connection'!$J$69)","v":313403.46757613734},{"$f":"BM$4*('COM-Appliance class'!$AQ58/'Volume per connection'!$J$69)","v":313774.52418705693},{"$f":"BN$4*('COM-Appliance class'!$AQ58/'Volume per connection'!$J$69)","v":314145.12829577923},{"$f":"BO$4*('COM-Appliance class'!$AQ58/'Volume per connection'!$J$69)","v":314515.28267794423},{"$f":"BP$4*('COM-Appliance class'!$AQ58/'Volume per connection'!$J$69)","v":314884.99009201047},{"$f":"BQ$4*('COM-Appliance class'!$AQ58/'Volume per connection'!$J$69)","v":315254.25327936502},{"$f":"BR$4*('COM-Appliance class'!$AQ58/'Volume per connection'!$J$69)","v":315623.07496442914},{"$f":"BS$4*('COM-Appliance class'!$AQ58/'Volume per connection'!$J$69)","v":315991.45785476657},{"$f":"BT$4*('COM-Appliance class'!$AQ58/'Volume per connection'!$J$69)","v":316359.40464118798},{"$f":"BU$4*('COM-Appliance class'!$AQ58/'Volume per connection'!$J$69)","v":316726.91799785767},{"$f":"BV$4*('COM-Appliance class'!$AQ58/'Volume per connection'!$J$69)","v":317094.00058239675},{"$f":"BW$4*('COM-Appliance class'!$AQ58/'Volume per connection'!$J$69)","v":317460.65503598913},{"$f":"BX$4*('COM-Appliance class'!$AQ58/'Volume per connection'!$J$69)","v":317826.88398348179},{"$f":"BY$4*('COM-Appliance class'!$AQ58/'Volume per connection'!$J$69)","v":318192.69003349135},{"$f":"BZ$4*('COM-Appliance class'!$AQ58/'Volume per connection'!$J$69)","v":318558.0757785021},{"$f":"CA$4*('COM-Appliance class'!$AQ58/'Volume per connection'!$J$69)","v":318923.04379497096},{"$f":"CB$4*('COM-Appliance class'!$AQ58/'Volume per connection'!$J$69)","v":319287.59664342512},{"$f":"CC$4*('COM-Appliance class'!$AQ58/'Volume per connection'!$J$69)","v":319651.73686856468},{"$f":"CD$4*('COM-Appliance class'!$AQ58/'Volume per connection'!$J$69)","v":320015.46699935984}]
["Melbourne (C)",null,{"$f":"C$4*('COM-Appliance class'!$AQ59/'Volume per connection'!$J$69)","v":157958.56873817527},{"$f":"D$4*('COM-Appliance class'!$AQ59/'Volume per connection'!$J$69)","v":194151.45849980068},{"$f":"E$4*('COM-Appliance class'!$AQ59/'Volume per connection'!$J$69)","v":172527.13857781468},{"$f":"F$4*('COM-Appliance class'!$AQ59/'Volume per connection'!$J$69)","v":191917.09960317769},{"$f":"G$4*('COM-Appliance class'!$AQ59/'Volume per connection'!$J$69)","v":168970.92803630684},{"$f":"H$4*('COM-Appliance class'!$AQ59/'Volume per connection'!$J$69)","v":173452.49338302176},{"$f":"I$4*('COM-Appliance class'!$AQ59/'Volume per connection'!$J$69)","v":201152.03909305943},{"$f":"J$4*('COM-Appliance class'!$AQ59/'Volume per connection'!$J$69)","v":221354.94707020363},{"$f":"K$4*('COM-Appliance class'!$AQ59/'Volume per connection'!$J$69)","v":264991.43875334115},{"$f":"L$4*('COM-Appliance class'!$AQ59/'Volume per connection'!$J$69)","v":262740.25042478729},{"$f":"M$4*('COM-Appliance class'!$AQ59/'Volume per connection'!$J$69)","v":213485.51893401131},{"$f":"N$4*('COM-Appliance class'!$AQ59/'Volume per connection'!$J$69)","v":212488.74250327723},{"$f":"O$4*('COM-Appliance class'!$AQ59/'Volume per connection'!$J$69)","v":241812.25787621993},{"$f":"P$4*('COM-Appliance class'!$AQ59/'Volume per connection'!$J$69)","v":270193.51635598269},{"$f":"Q$4*('COM-Appliance class'!$AQ59/'Volume per connection'!$J$69)","v":188142.62746360316},{"$f":"R$4*('COM-Appliance class'!$AQ59/'Volume per connection'!$J$69)","v":199851.26646274902},{"$f":"S$4*('COM-Appliance class'!$AQ59/'Volume per connection'!$J$69)","v":217224.51610548925},{"$f":"T$4*('COM-Appliance class'!$AQ59/'Volume per connection'!$J$69)","v":242656.69359723086},{"$f":"U$4*('COM-Appliance class'!$AQ59/'Volume per connection'!$J$69)","v":261581.71483146391},{"$f":"V$4*('COM-Appliance class'!$AQ59/'Volume per connection'!$J$69)","v":268526.07983781555},{"$f":"W$4*('COM-Appliance class'!$AQ59/'Volume per connection'!$J$69)","v":279839.93666748382},{"$f":"X$4*('COM-Appliance class'!$AQ59/'Volume per connection'!$J$69)","v":307870.52411210607},{"$f":"Y$4*('COM-Appliance class'!$AQ59/'Volume per connection'!$J$69)","v":331160.03489009524},{"$f":"Z$4*('COM-Appliance class'!$AQ59/'Volume per connection'!$J$69)","v":344308.74493583472},{"$f":"AA$4*('COM-Appliance class'!$AQ59/'Volume per connection'!$J$69)","v":359249.9353909099},{"$f":"AB$4*('COM-Appliance class'!$AQ59/'Volume per connection'!$J$69)","v":368624.32065487519},{"$f":"AC$4*('COM-Appliance class'!$AQ59/'Volume per connection'!$J$69)","v":375409.84840206668},{"$f":"AD$4*('COM-Appliance class'!$AQ59/'Volume per connection'!$J$69)","v":380268.30303289887},{"$f":"AE$4*('COM-Appliance class'!$AQ59/'Volume per connection'!$J$69)","v":384339.88535388978},{"$f":"AF$4*('COM-Appliance class'!$AQ59/'Volume per connection'!$J$69)","v":391916.5518079889},{"$f":"AG$4*('COM-Appliance class'!$AQ59/'Volume per connection'!$J$69)","v":392280.55876041664},{"$f":"AH$4*('COM-Appliance class'!$AQ59/'Volume per connection'!$J$69)","v":400228.65866960835},{"$f":"AI$4*('COM-Appliance class'!$AQ59/'Volume per connection'!$J$69)","v":400740.14599591761},{"$f":"AJ$4*('COM-Appliance class'!$AQ59/'Volume per connection'!$J$69)","v":401250.91206123302},{"$f":"AK$4*('COM-Appliance class'!$AQ59/'Volume per connection'!$J$69)","v":401760.96129769075},{"$f":"AL$4*('COM-Appliance class'!$AQ59/'Volume per connection'!$J$69)","v":402270.29810991493},{"$f":"AM$4*('COM-Appliance class'!$AQ59/'Volume per connection'!$J$69)","v":402778.92687519174},{"$f":"AN$4*('COM-Appliance class'!$AQ59/'Volume per connection'!$J$69)","v":403286.85194363986},{"$f":"AO$4*('COM-Appliance class'!$AQ59/'Volume per connection'!$J$69)","v":403794.07763838378},{"$f":"AP$4*('COM-Appliance class'!$AQ59/'Volume per connection'!$J$69)","v":404300.60825572151},{"$f":"AQ$4*('COM-Appliance class'!$AQ59/'Volume per connection'!$J$69)","v":404806.44806529582},{"$f":"AR$4*('COM-Appliance class'!$AQ59/'Volume per connection'!$J$69)","v":405311.60131025995},{"$f":"AS$4*('COM-Appliance class'!$AQ59/'Volume per connection'!$J$69)","v":405816.07220744638},{"$f":"AT$4*('COM-Appliance class'!$AQ59/'Volume per connection'!$J$69)","v":406319.86494753003},{"$f":"AU$4*('COM-Appliance class'!$AQ59/'Volume per connection'!$J$69)","v":406822.98369519616},{"$f":"AV$4*('COM-Appliance class'!$AQ59/'Volume per connection'!$J$69)","v":407325.43258930079},{"$f":"AW$4*('COM-Appliance class'!$AQ59/'Volume per connection'!$J$69)","v":407827.21574303589},{"$f":"AX$4*('COM-Appliance class'!$AQ59/'Volume per connection'!$J$69)","v":408328.33724408894},{"$f":"AY$4*('COM-Appliance class'!$AQ59/'Volume per connection'!$J$69)","v":408828.80115480488},{"$f":"AZ$4*('COM-Appliance class'!$AQ59/'Volume per connection'!$J$69)","v":409328.61151234445},{"$f":"BA$4*('COM-Appliance class'!$AQ59/'Volume per connection'!$J$69)","v":409827.77232884453},{"$f":"BB$4*('COM-Appliance class'!$AQ59/'Volume per connection'!$J$69)","v":410326.2875915725},{"$f":"BC$4*('COM-Appliance class'!$AQ59/'Volume per connection'!$J$69)","v":410824.16126308654},{"$f":"BD$4*('COM-Appliance class'!$AQ59/'Volume per connection'!$J$69)","v":411321.39728138753},{"$f":"BE$4*('COM-Appliance class'!$AQ59/'Volume per connection'!$J$69)","v":411817.99956007674},{"$f":"BF$4*('COM-Appliance class'!$AQ59/'Volume per connection'!$J$69)","v":412313.97198850667},{"$f":"BG$4*('COM-Appliance class'!$AQ59/'Volume per connection'!$J$69)","v":412809.31843193521},{"$f":"BH$4*('COM-Appliance class'!$AQ59/'Volume per connection'!$J$69)","v":413304.04273167683},{"$f":"BI$4*('COM-Appliance class'!$AQ59/'Volume per connection'!$J$69)","v":413798.14870525349},{"$f":"BJ$4*('COM-Appliance class'!$AQ59/'Volume per connection'!$J$69)","v":414291.64014654286},{"$f":"BK$4*('COM-Appliance class'!$AQ59/'Volume per connection'!$J$69)","v":414784.52082592965},{"$f":"BL$4*('COM-Appliance class'!$AQ59/'Volume per connection'!$J$69)","v":415276.79449045041},{"$f":"BM$4*('COM-Appliance class'!$AQ59/'Volume per connection'!$J$69)","v":415768.46486394346},{"$f":"BN$4*('COM-Appliance class'!$AQ59/'Volume per connection'!$J$69)","v":416259.53564719122},{"$f":"BO$4*('COM-Appliance class'!$AQ59/'Volume per connection'!$J$69)","v":416750.01051806909},{"$f":"BP$4*('COM-Appliance class'!$AQ59/'Volume per connection'!$J$69)","v":417239.89313168591},{"$f":"BQ$4*('COM-Appliance class'!$AQ59/'Volume per connection'!$J$69)","v":417729.18712053011},{"$f":"BR$4*('COM-Appliance class'!$AQ59/'Volume per connection'!$J$69)","v":418217.89609460934},{"$f":"BS$4*('COM-Appliance class'!$AQ59/'Volume per connection'!$J$69)","v":418706.0236415941},{"$f":"BT$4*('COM-Appliance class'!$AQ59/'Volume per connection'!$J$69)","v":419193.57332695619},{"$f":"BU$4*('COM-Appliance class'!$AQ59/'Volume per connection'!$J$69)","v":419680.54869411018},{"$f":"BV$4*('COM-Appliance class'!$AQ59/'Volume per connection'!$J$69)","v":420166.95326454978},{"$f":"BW$4*('COM-Appliance class'!$AQ59/'Volume per connection'!$J$69)","v":420652.79053798865},{"$f":"BX$4*('COM-Appliance class'!$AQ59/'Volume per connection'!$J$69)","v":421138.0639924932},{"$f":"BY$4*('COM-Appliance class'!$AQ59/'Volume per connection'!$J$69)","v":421622.77708462346},{"$f":"BZ$4*('COM-Appliance class'!$AQ59/'Volume per connection'!$J$69)","v":422106.9332495635},{"$f":"CA$4*('COM-Appliance class'!$AQ59/'Volume per connection'!$J$69)","v":422590.5359012601},{"$f":"CB$4*('COM-Appliance class'!$AQ59/'Volume per connection'!$J$69)","v":423073.58843255229},{"$f":"CC$4*('COM-Appliance class'!$AQ59/'Volume per connection'!$J$69)","v":423556.09421530744},{"$f":"CD$4*('COM-Appliance class'!$AQ59/'Volume per connection'!$J$69)","v":424038.05660054972}]
["Monash (C)",null,{"$f":"C$4*('COM-Appliance class'!$AQ60/'Volume per connection'!$J$69)","v":142310.2517264302},{"$f":"D$4*('COM-Appliance class'!$AQ60/'Volume per connection'!$J$69)","v":174917.65817375798},{"$f":"E$4*('COM-Appliance class'!$AQ60/'Volume per connection'!$J$69)","v":155435.57223126269},{"$f":"F$4*('COM-Appliance class'!$AQ60/'Volume per connection'!$J$69)","v":172904.64818281119},{"$f":"G$4*('COM-Appliance class'!$AQ60/'Volume per connection'!$J$69)","v":152231.6610955963},{"$f":"H$4*('COM-Appliance class'!$AQ60/'Volume per connection'!$J$69)","v":156269.25587576037},{"$f":"I$4*('COM-Appliance class'!$AQ60/'Volume per connection'!$J$69)","v":181224.71954064819},{"$f":"J$4*('COM-Appliance class'!$AQ60/'Volume per connection'!$J$69)","v":199426.20707500854},{"$f":"K$4*('COM-Appliance class'!$AQ60/'Volume per connection'!$J$69)","v":238739.80788497062},{"$f":"L$4*('COM-Appliance class'!$AQ60/'Volume per connection'!$J$69)","v":236711.63568589781},{"$f":"M$4*('COM-Appliance class'!$AQ60/'Volume per connection'!$J$69)","v":192336.37137979612},{"$f":"N$4*('COM-Appliance class'!$AQ60/'Volume per connection'!$J$69)","v":191438.34156156023},{"$f":"O$4*('COM-Appliance class'!$AQ60/'Volume per connection'!$J$69)","v":217856.89477815942},{"$f":"P$4*('COM-Appliance class'!$AQ60/'Volume per connection'!$J$69)","v":243426.53668383331},{"$f":"Q$4*('COM-Appliance class'!$AQ60/'Volume per connection'!$J$69)","v":169504.09774348937},{"$f":"R$4*('COM-Appliance class'!$AQ60/'Volume per connection'!$J$69)","v":180052.80919772049},{"$f":"S$4*('COM-Appliance class'!$AQ60/'Volume per connection'!$J$69)","v":195704.96121273778},{"$f":"T$4*('COM-Appliance class'!$AQ60/'Volume per connection'!$J$69)","v":218617.67566509597},{"$f":"U$4*('COM-Appliance class'!$AQ60/'Volume per connection'!$J$69)","v":235667.871531557},{"$f":"V$4*('COM-Appliance class'!$AQ60/'Volume per connection'!$J$69)","v":241924.28636253843},{"$f":"W$4*('COM-Appliance class'!$AQ60/'Volume per connection'!$J$69)","v":252117.32512130099},{"$f":"X$4*('COM-Appliance class'!$AQ60/'Volume per connection'!$J$69)","v":277371.03555404081},{"$f":"Y$4*('COM-Appliance class'!$AQ60/'Volume per connection'!$J$69)","v":298353.34862434177},{"$f":"Z$4*('COM-Appliance class'!$AQ60/'Volume per connection'!$J$69)","v":310199.46910666034},{"$f":"AA$4*('COM-Appliance class'!$AQ60/'Volume per connection'!$J$69)","v":323660.49620851205},{"$f":"AB$4*('COM-Appliance class'!$AQ60/'Volume per connection'!$J$69)","v":332106.19901116745},{"$f":"AC$4*('COM-Appliance class'!$AQ60/'Volume per connection'!$J$69)","v":338219.51194830931},{"$f":"AD$4*('COM-Appliance class'!$AQ60/'Volume per connection'!$J$69)","v":342596.65911441977},{"$f":"AE$4*('COM-Appliance class'!$AQ60/'Volume per connection'!$J$69)","v":346264.88623026264},{"$f":"AF$4*('COM-Appliance class'!$AQ60/'Volume per connection'!$J$69)","v":353090.96296002384},{"$f":"AG$4*('COM-Appliance class'!$AQ60/'Volume per connection'!$J$69)","v":353418.90921481693},{"$f":"AH$4*('COM-Appliance class'!$AQ60/'Volume per connection'!$J$69)","v":360579.62298843148},{"$f":"AI$4*('COM-Appliance class'!$AQ60/'Volume per connection'!$J$69)","v":361040.43933251087},{"$f":"AJ$4*('COM-Appliance class'!$AQ60/'Volume per connection'!$J$69)","v":361500.60586800816},{"$f":"AK$4*('COM-Appliance class'!$AQ60/'Volume per connection'!$J$69)","v":361960.12658798561},{"$f":"AL$4*('COM-Appliance class'!$AQ60/'Volume per connection'!$J$69)","v":362419.00546071905},{"$f":"AM$4*('COM-Appliance class'!$AQ60/'Volume per connection'!$J$69)","v":362877.24642985465},{"$f":"AN$4*('COM-Appliance class'!$AQ60/'Volume per connection'!$J$69)","v":363334.8534145623},{"$f":"AO$4*('COM-Appliance class'!$AQ60/'Volume per connection'!$J$69)","v":363791.83030969213},{"$f":"AP$4*('COM-Appliance class'!$AQ60/'Volume per connection'!$J$69)","v":364248.1809859252},{"$f":"AQ$4*('COM-Appliance class'!$AQ60/'Volume per connection'!$J$69)","v":364703.90928992809},{"$f":"AR$4*('COM-Appliance class'!$AQ60/'Volume per connection'!$J$69)","v":365159.01904450194},{"$f":"AS$4*('COM-Appliance class'!$AQ60/'Volume per connection'!$J$69)","v":365613.51404873468},{"$f":"AT$4*('COM-Appliance class'!$AQ60/'Volume per connection'!$J$69)","v":366067.39807814808},{"$f":"AU$4*('COM-Appliance class'!$AQ60/'Volume per connection'!$J$69)","v":366520.67488484876},{"$f":"AV$4*('COM-Appliance class'!$AQ60/'Volume per connection'!$J$69)","v":366973.3481976731},{"$f":"AW$4*('COM-Appliance class'!$AQ60/'Volume per connection'!$J$69)","v":367425.42172233568},{"$f":"AX$4*('COM-Appliance class'!$AQ60/'Volume per connection'!$J$69)","v":367876.89914157329},{"$f":"AY$4*('COM-Appliance class'!$AQ60/'Volume per connection'!$J$69)","v":368327.78411529091},{"$f":"AZ$4*('COM-Appliance class'!$AQ60/'Volume per connection'!$J$69)","v":368778.08028070396},{"$f":"BA$4*('COM-Appliance class'!$AQ60/'Volume per connection'!$J$69)","v":369227.79125248315},{"$f":"BB$4*('COM-Appliance class'!$AQ60/'Volume per connection'!$J$69)","v":369676.92062289343},{"$f":"BC$4*('COM-Appliance class'!$AQ60/'Volume per connection'!$J$69)","v":370125.47196193831},{"$f":"BD$4*('COM-Appliance class'!$AQ60/'Volume per connection'!$J$69)","v":370573.44881749689},{"$f":"BE$4*('COM-Appliance class'!$AQ60/'Volume per connection'!$J$69)","v":371020.85471546574},{"$f":"BF$4*('COM-Appliance class'!$AQ60/'Volume per connection'!$J$69)","v":371467.69315989502},{"$f":"BG$4*('COM-Appliance class'!$AQ60/'Volume per connection'!$J$69)","v":371913.967633127},{"$f":"BH$4*('COM-Appliance class'!$AQ60/'Volume per connection'!$J$69)","v":372359.68159593269},{"$f":"BI$4*('COM-Appliance class'!$AQ60/'Volume per connection'!$J$69)","v":372804.83848764765},{"$f":"BJ$4*('COM-Appliance class'!$AQ60/'Volume per connection'!$J$69)","v":373249.44172630535},{"$f":"BK$4*('COM-Appliance class'!$AQ60/'Volume per connection'!$J$69)","v":373693.49470877374},{"$f":"BL$4*('COM-Appliance class'!$AQ60/'Volume per connection'!$J$69)","v":374137.00081088563},{"$f":"BM$4*('COM-Appliance class'!$AQ60/'Volume per connection'!$J$69)","v":374579.96338757372},{"$f":"BN$4*('COM-Appliance class'!$AQ60/'Volume per connection'!$J$69)","v":375022.38577299891},{"$f":"BO$4*('COM-Appliance class'!$AQ60/'Volume per connection'!$J$69)","v":375464.27128068422},{"$f":"BP$4*('COM-Appliance class'!$AQ60/'Volume per connection'!$J$69)","v":375905.62320364174},{"$f":"BQ$4*('COM-Appliance class'!$AQ60/'Volume per connection'!$J$69)","v":376346.44481450389},{"$f":"BR$4*('COM-Appliance class'!$AQ60/'Volume per connection'!$J$69)","v":376786.73936564953},{"$f":"BS$4*('COM-Appliance class'!$AQ60/'Volume per connection'!$J$69)","v":377226.51008933311},{"$f":"BT$4*('COM-Appliance class'!$AQ60/'Volume per connection'!$J$69)","v":377665.76019780949},{"$f":"BU$4*('COM-Appliance class'!$AQ60/'Volume per connection'!$J$69)","v":378104.49288346159},{"$f":"BV$4*('COM-Appliance class'!$AQ60/'Volume per connection'!$J$69)","v":378542.71131892287},{"$f":"BW$4*('COM-Appliance class'!$AQ60/'Volume per connection'!$J$69)","v":378980.41865720454},{"$f":"BX$4*('COM-Appliance class'!$AQ60/'Volume per connection'!$J$69)","v":379417.61803181499},{"$f":"BY$4*('COM-Appliance class'!$AQ60/'Volume per connection'!$J$69)","v":379854.31255688687},{"$f":"BZ$4*('COM-Appliance class'!$AQ60/'Volume per connection'!$J$69)","v":380290.50532729446},{"$f":"CA$4*('COM-Appliance class'!$AQ60/'Volume per connection'!$J$69)","v":380726.19941877859},{"$f":"CB$4*('COM-Appliance class'!$AQ60/'Volume per connection'!$J$69)","v":381161.39788806345},{"$f":"CC$4*('COM-Appliance class'!$AQ60/'Volume per connection'!$J$69)","v":381596.10377297911},{"$f":"CD$4*('COM-Appliance class'!$AQ60/'Volume per connection'!$J$69)","v":382030.32009257737}]
["Port Phillip (C)",null,{"$f":"C$4*('COM-Appliance class'!$AQ61/'Volume per connection'!$J$69)","v":136488.44235040317},{"$f":"D$4*('COM-Appliance class'!$AQ61/'Volume per connection'!$J$69)","v":167761.9034053224},{"$f":"E$4*('COM-Appliance class'!$AQ61/'Volume per connection'!$J$69)","v":149076.81549514466},{"$f":"F$4*('COM-Appliance class'!$AQ61/'Volume per connection'!$J$69)","v":165831.24419583482},{"$f":"G$4*('COM-Appliance class'!$AQ61/'Volume per connection'!$J$69)","v":146003.9740446436},{"$f":"H$4*('COM-Appliance class'!$AQ61/'Volume per connection'!$J$69)","v":149876.39374527129},{"$f":"I$4*('COM-Appliance class'!$AQ61/'Volume per connection'!$J$69)","v":173810.9474575393},{"$f":"J$4*('COM-Appliance class'!$AQ61/'Volume per connection'!$J$69)","v":191267.82531340027},{"$f":"K$4*('COM-Appliance class'!$AQ61/'Volume per connection'!$J$69)","v":228973.13517436734},{"$f":"L$4*('COM-Appliance class'!$AQ61/'Volume per connection'!$J$69)","v":227027.93403171186},{"$f":"M$4*('COM-Appliance class'!$AQ61/'Volume per connection'!$J$69)","v":184468.02966396211},{"$f":"N$4*('COM-Appliance class'!$AQ61/'Volume per connection'!$J$69)","v":183606.73759548305},{"$f":"O$4*('COM-Appliance class'!$AQ61/'Volume per connection'!$J$69)","v":208944.52692507056},{"$f":"P$4*('COM-Appliance class'!$AQ61/'Volume per connection'!$J$69)","v":233468.13329091371},{"$f":"Q$4*('COM-Appliance class'!$AQ61/'Volume per connection'!$J$69)","v":162569.80781323856},{"$f":"R$4*('COM-Appliance class'!$AQ61/'Volume per connection'!$J$69)","v":172686.97911836431},{"$f":"S$4*('COM-Appliance class'!$AQ61/'Volume per connection'!$J$69)","v":187698.81292544812},{"$f":"T$4*('COM-Appliance class'!$AQ61/'Volume per connection'!$J$69)","v":209674.18481667165},{"$f":"U$4*('COM-Appliance class'!$AQ61/'Volume per connection'!$J$69)","v":226026.86951331707},{"$f":"V$4*('COM-Appliance class'!$AQ61/'Volume per connection'!$J$69)","v":232027.33894274483},{"$f":"W$4*('COM-Appliance class'!$AQ61/'Volume per connection'!$J$69)","v":241803.38786489292},{"$f":"X$4*('COM-Appliance class'!$AQ61/'Volume per connection'!$J$69)","v":266023.98728564871},{"$f":"Y$4*('COM-Appliance class'!$AQ61/'Volume per connection'!$J$69)","v":286147.92911788711},{"$f":"Z$4*('COM-Appliance class'!$AQ61/'Volume per connection'!$J$69)","v":297509.43338698946},{"$f":"AA$4*('COM-Appliance class'!$AQ61/'Volume per connection'!$J$69)","v":310419.77961489285},{"$f":"AB$4*('COM-Appliance class'!$AQ61/'Volume per connection'!$J$69)","v":318519.97482995607},{"$f":"AC$4*('COM-Appliance class'!$AQ61/'Volume per connection'!$J$69)","v":324383.19656042609},{"$f":"AD$4*('COM-Appliance class'!$AQ61/'Volume per connection'!$J$69)","v":328581.27780470188},{"$f":"AE$4*('COM-Appliance class'!$AQ61/'Volume per connection'!$J$69)","v":332099.44040476088},{"$f":"AF$4*('COM-Appliance class'!$AQ61/'Volume per connection'!$J$69)","v":338646.26727708243},{"$f":"AG$4*('COM-Appliance class'!$AQ61/'Volume per connection'!$J$69)","v":338960.79748800077},{"$f":"AH$4*('COM-Appliance class'!$AQ61/'Volume per connection'!$J$69)","v":345828.5716449641},{"$f":"AI$4*('COM-Appliance class'!$AQ61/'Volume per connection'!$J$69)","v":346270.53632600425},{"$f":"AJ$4*('COM-Appliance class'!$AQ61/'Volume per connection'!$J$69)","v":346711.87778166088},{"$f":"AK$4*('COM-Appliance class'!$AQ61/'Volume per connection'!$J$69)","v":347152.59984164307},{"$f":"AL$4*('COM-Appliance class'!$AQ61/'Volume per connection'!$J$69)","v":347592.70631188736},{"$f":"AM$4*('COM-Appliance class'!$AQ61/'Volume per connection'!$J$69)","v":348032.20097470819},{"$f":"AN$4*('COM-Appliance class'!$AQ61/'Volume per connection'!$J$69)","v":348471.08758894505},{"$f":"AO$4*('COM-Appliance class'!$AQ61/'Volume per connection'!$J$69)","v":348909.3698901126},{"$f":"AP$4*('COM-Appliance class'!$AQ61/'Volume per connection'!$J$69)","v":349347.05159054516},{"$f":"AQ$4*('COM-Appliance class'!$AQ61/'Volume per connection'!$J$69)","v":349784.13637954491},{"$f":"AR$4*('COM-Appliance class'!$AQ61/'Volume per connection'!$J$69)","v":350220.62792352494},{"$f":"AS$4*('COM-Appliance class'!$AQ61/'Volume per connection'!$J$69)","v":350656.5298661553},{"$f":"AT$4*('COM-Appliance class'!$AQ61/'Volume per connection'!$J$69)","v":351091.84582850389},{"$f":"AU$4*('COM-Appliance class'!$AQ61/'Volume per connection'!$J$69)","v":351526.57940918131},{"$f":"AV$4*('COM-Appliance class'!$AQ61/'Volume per connection'!$J$69)","v":351960.73418448004},{"$f":"AW$4*('COM-Appliance class'!$AQ61/'Volume per connection'!$J$69)","v":352394.31370851648},{"$f":"AX$4*('COM-Appliance class'!$AQ61/'Volume per connection'!$J$69)","v":352827.32151336939},{"$f":"AY$4*('COM-Appliance class'!$AQ61/'Volume per connection'!$J$69)","v":353259.76110921957},{"$f":"AZ$4*('COM-Appliance class'!$AQ61/'Volume per connection'!$J$69)","v":353691.63598448673},{"$f":"BA$4*('COM-Appliance class'!$AQ61/'Volume per connection'!$J$69)","v":354122.94960596791},{"$f":"BB$4*('COM-Appliance class'!$AQ61/'Volume per connection'!$J$69)","v":354553.70541897113},{"$f":"BC$4*('COM-Appliance class'!$AQ61/'Volume per connection'!$J$69)","v":354983.90684745373},{"$f":"BD$4*('COM-Appliance class'!$AQ61/'Volume per connection'!$J$69)","v":355413.55729415355},{"$f":"BE$4*('COM-Appliance class'!$AQ61/'Volume per connection'!$J$69)","v":355842.66014072532},{"$f":"BF$4*('COM-Appliance class'!$AQ61/'Volume per connection'!$J$69)","v":356271.21874787094},{"$f":"BG$4*('COM-Appliance class'!$AQ61/'Volume per connection'!$J$69)","v":356699.23645547271},{"$f":"BH$4*('COM-Appliance class'!$AQ61/'Volume per connection'!$J$69)","v":357126.71658272401},{"$f":"BI$4*('COM-Appliance class'!$AQ61/'Volume per connection'!$J$69)","v":357553.66242825956},{"$f":"BJ$4*('COM-Appliance class'!$AQ61/'Volume per connection'!$J$69)","v":357980.07727028371},{"$f":"BK$4*('COM-Appliance class'!$AQ61/'Volume per connection'!$J$69)","v":358405.96436670085},{"$f":"BL$4*('COM-Appliance class'!$AQ61/'Volume per connection'!$J$69)","v":358831.32695524092},{"$f":"BM$4*('COM-Appliance class'!$AQ61/'Volume per connection'!$J$69)","v":359256.1682535889},{"$f":"BN$4*('COM-Appliance class'!$AQ61/'Volume per connection'!$J$69)","v":359680.49145950744},{"$f":"BO$4*('COM-Appliance class'!$AQ61/'Volume per connection'!$J$69)","v":360104.29975096579},{"$f":"BP$4*('COM-Appliance class'!$AQ61/'Volume per connection'!$J$69)","v":360527.59628626128},{"$f":"BQ$4*('COM-Appliance class'!$AQ61/'Volume per connection'!$J$69)","v":360950.38420414529},{"$f":"BR$4*('COM-Appliance class'!$AQ61/'Volume per connection'!$J$69)","v":361372.66662394424},{"$f":"BS$4*('COM-Appliance class'!$AQ61/'Volume per connection'!$J$69)","v":361794.44664568343},{"$f":"BT$4*('COM-Appliance class'!$AQ61/'Volume per connection'!$J$69)","v":362215.7273502067},{"$f":"BU$4*('COM-Appliance class'!$AQ61/'Volume per connection'!$J$69)","v":362636.51179929875},{"$f":"BV$4*('COM-Appliance class'!$AQ61/'Volume per connection'!$J$69)","v":363056.80303580308},{"$f":"BW$4*('COM-Appliance class'!$AQ61/'Volume per connection'!$J$69)","v":363476.60408374335},{"$f":"BX$4*('COM-Appliance class'!$AQ61/'Volume per connection'!$J$69)","v":363895.91794843855},{"$f":"BY$4*('COM-Appliance class'!$AQ61/'Volume per connection'!$J$69)","v":364314.74761662429},{"$f":"BZ$4*('COM-Appliance class'!$AQ61/'Volume per connection'!$J$69)","v":364733.09605656582},{"$f":"CA$4*('COM-Appliance class'!$AQ61/'Volume per connection'!$J$69)","v":365150.96621817764},{"$f":"CB$4*('COM-Appliance class'!$AQ61/'Volume per connection'!$J$69)","v":365568.36103313556},{"$f":"CC$4*('COM-Appliance class'!$AQ61/'Volume per connection'!$J$69)","v":365985.28341499425},{"$f":"CD$4*('COM-Appliance class'!$AQ61/'Volume per connection'!$J$69)","v":366401.73625929828}]
["South Gippsland (S)",null,{"$f":"C$4*('COM-Appliance class'!$AQ62/'Volume per connection'!$J$69)","v":143029.13273625216},{"$f":"D$4*('COM-Appliance class'!$AQ62/'Volume per connection'!$J$69)","v":175801.25567441713},{"$f":"E$4*('COM-Appliance class'!$AQ62/'Volume per connection'!$J$69)","v":156220.7558689297},{"$f":"F$4*('COM-Appliance class'!$AQ62/'Volume per connection'!$J$69)","v":173778.0769525636},{"$f":"G$4*('COM-Appliance class'!$AQ62/'Volume per connection'!$J$69)","v":153000.6601587534},{"$f":"H$4*('COM-Appliance class'!$AQ62/'Volume per connection'!$J$69)","v":157058.65087088727},{"$f":"I$4*('COM-Appliance class'!$AQ62/'Volume per connection'!$J$69)","v":182140.17719607084},{"$f":"J$4*('COM-Appliance class'!$AQ62/'Volume per connection'!$J$69)","v":200433.60964360661},{"$f":"K$4*('COM-Appliance class'!$AQ62/'Volume per connection'!$J$69)","v":239945.80332166603},{"$f":"L$4*('COM-Appliance class'!$AQ62/'Volume per connection'!$J$69)","v":237907.38579970977},{"$f":"M$4*('COM-Appliance class'!$AQ62/'Volume per connection'!$J$69)","v":193307.95960485804},{"$f":"N$4*('COM-Appliance class'!$AQ62/'Volume per connection'!$J$69)","v":192405.39338411603},{"$f":"O$4*('COM-Appliance class'!$AQ62/'Volume per connection'!$J$69)","v":218957.40006583094},{"$f":"P$4*('COM-Appliance class'!$AQ62/'Volume per connection'!$J$69)","v":244656.20715652098},{"$f":"Q$4*('COM-Appliance class'!$AQ62/'Volume per connection'!$J$69)","v":170360.34861422106},{"$f":"R$4*('COM-Appliance class'!$AQ62/'Volume per connection'!$J$69)","v":180962.34694167841},{"$f":"S$4*('COM-Appliance class'!$AQ62/'Volume per connection'!$J$69)","v":196693.56588764366},{"$f":"T$4*('COM-Appliance class'!$AQ62/'Volume per connection'!$J$69)","v":219722.02404155146},{"$f":"U$4*('COM-Appliance class'!$AQ62/'Volume per connection'!$J$69)","v":236858.34906507214},{"$f":"V$4*('COM-Appliance class'!$AQ62/'Volume per connection'!$J$69)","v":243146.36820956576},{"$f":"W$4*('COM-Appliance class'!$AQ62/'Volume per connection'!$J$69)","v":253390.89715900089},{"$f":"X$4*('COM-Appliance class'!$AQ62/'Volume per connection'!$J$69)","v":278772.17684720474},{"$f":"Y$4*('COM-Appliance class'!$AQ62/'Volume per connection'!$J$69)","v":299860.48218598519},{"$f":"Z$4*('COM-Appliance class'!$AQ62/'Volume per connection'!$J$69)","v":311766.44341028476},{"$f":"AA$4*('COM-Appliance class'!$AQ62/'Volume per connection'!$J$69)","v":325295.46896368038},{"$f":"AB$4*('COM-Appliance class'!$AQ62/'Volume per connection'!$J$69)","v":333783.83527993213},{"$f":"AC$4*('COM-Appliance class'!$AQ62/'Volume per connection'!$J$69)","v":339928.0296505919},{"$f":"AD$4*('COM-Appliance class'!$AQ62/'Volume per connection'!$J$69)","v":344327.28799939464},{"$f":"AE$4*('COM-Appliance class'!$AQ62/'Volume per connection'!$J$69)","v":348014.04518444405},{"$f":"AF$4*('COM-Appliance class'!$AQ62/'Volume per connection'!$J$69)","v":354874.60387789435},{"$f":"AG$4*('COM-Appliance class'!$AQ62/'Volume per connection'!$J$69)","v":355204.20675497537},{"$f":"AH$4*('COM-Appliance class'!$AQ62/'Volume per connection'!$J$69)","v":362401.09291312424},{"$f":"AI$4*('COM-Appliance class'!$AQ62/'Volume per connection'!$J$69)","v":362864.23707346956},{"$f":"AJ$4*('COM-Appliance class'!$AQ62/'Volume per connection'!$J$69)","v":363326.72814272117},{"$f":"AK$4*('COM-Appliance class'!$AQ62/'Volume per connection'!$J$69)","v":363788.57013411232},{"$f":"AL$4*('COM-Appliance class'!$AQ62/'Volume per connection'!$J$69)","v":364249.76703596464},{"$f":"AM$4*('COM-Appliance class'!$AQ62/'Volume per connection'!$J$69)","v":364710.32281184563},{"$f":"AN$4*('COM-Appliance class'!$AQ62/'Volume per connection'!$J$69)","v":365170.24140072282},{"$f":"AO$4*('COM-Appliance class'!$AQ62/'Volume per connection'!$J$69)","v":365629.52671712136},{"$f":"AP$4*('COM-Appliance class'!$AQ62/'Volume per connection'!$J$69)","v":366088.18265127495},{"$f":"AQ$4*('COM-Appliance class'!$AQ62/'Volume per connection'!$J$69)","v":366546.21306928166},{"$f":"AR$4*('COM-Appliance class'!$AQ62/'Volume per connection'!$J$69)","v":367003.62181325356},{"$f":"AS$4*('COM-Appliance class'!$AQ62/'Volume per connection'!$J$69)","v":367460.41270146961},{"$f":"AT$4*('COM-Appliance class'!$AQ62/'Volume per connection'!$J$69)","v":367916.58952852373},{"$f":"AU$4*('COM-Appliance class'!$AQ62/'Volume per connection'!$J$69)","v":368372.15606547624},{"$f":"AV$4*('COM-Appliance class'!$AQ62/'Volume per connection'!$J$69)","v":368827.11605999985},{"$f":"AW$4*('COM-Appliance class'!$AQ62/'Volume per connection'!$J$69)","v":369281.47323652857},{"$f":"AX$4*('COM-Appliance class'!$AQ62/'Volume per connection'!$J$69)","v":369735.23129640252},{"$f":"AY$4*('COM-Appliance class'!$AQ62/'Volume per connection'!$J$69)","v":370188.39391801466},{"$f":"AZ$4*('COM-Appliance class'!$AQ62/'Volume per connection'!$J$69)","v":370640.96475695394},{"$f":"BA$4*('COM-Appliance class'!$AQ62/'Volume per connection'!$J$69)","v":371092.94744615053},{"$f":"BB$4*('COM-Appliance class'!$AQ62/'Volume per connection'!$J$69)","v":371544.34559601574},{"$f":"BC$4*('COM-Appliance class'!$AQ62/'Volume per connection'!$J$69)","v":371995.16279458697},{"$f":"BD$4*('COM-Appliance class'!$AQ62/'Volume per connection'!$J$69)","v":372445.40260766546},{"$f":"BE$4*('COM-Appliance class'!$AQ62/'Volume per connection'!$J$69)","v":372895.0685789588},{"$f":"BF$4*('COM-Appliance class'!$AQ62/'Volume per connection'!$J$69)","v":373344.16423021798},{"$f":"BG$4*('COM-Appliance class'!$AQ62/'Volume per connection'!$J$69)","v":373792.69306137622},{"$f":"BH$4*('COM-Appliance class'!$AQ62/'Volume per connection'!$J$69)","v":374240.65855068679},{"$f":"BI$4*('COM-Appliance class'!$AQ62/'Volume per connection'!$J$69)","v":374688.06415485893},{"$f":"BJ$4*('COM-Appliance class'!$AQ62/'Volume per connection'!$J$69)","v":375134.91330919246},{"$f":"BK$4*('COM-Appliance class'!$AQ62/'Volume per connection'!$J$69)","v":375581.20942771446},{"$f":"BL$4*('COM-Appliance class'!$AQ62/'Volume per connection'!$J$69)","v":376026.95590331091},{"$f":"BM$4*('COM-Appliance class'!$AQ62/'Volume per connection'!$J$69)","v":376472.15610786196},{"$f":"BN$4*('COM-Appliance class'!$AQ62/'Volume per connection'!$J$69)","v":376916.81339237094},{"$f":"BO$4*('COM-Appliance class'!$AQ62/'Volume per connection'!$J$69)","v":377360.93108709925},{"$f":"BP$4*('COM-Appliance class'!$AQ62/'Volume per connection'!$J$69)","v":377804.51250169362},{"$f":"BQ$4*('COM-Appliance class'!$AQ62/'Volume per connection'!$J$69)","v":378247.56092531822},{"$f":"BR$4*('COM-Appliance class'!$AQ62/'Volume per connection'!$J$69)","v":378690.07962678123},{"$f":"BS$4*('COM-Appliance class'!$AQ62/'Volume per connection'!$J$69)","v":379132.07185466494},{"$f":"BT$4*('COM-Appliance class'!$AQ62/'Volume per connection'!$J$69)","v":379573.54083745094},{"$f":"BU$4*('COM-Appliance class'!$AQ62/'Volume per connection'!$J$69)","v":380014.4897836484},{"$f":"BV$4*('COM-Appliance class'!$AQ62/'Volume per connection'!$J$69)","v":380454.9218819174},{"$f":"BW$4*('COM-Appliance class'!$AQ62/'Volume per connection'!$J$69)","v":380894.84030119661},{"$f":"BX$4*('COM-Appliance class'!$AQ62/'Volume per connection'!$J$69)","v":381334.24819082342},{"$f":"BY$4*('COM-Appliance class'!$AQ62/'Volume per connection'!$J$69)","v":381773.1486806614},{"$f":"BZ$4*('COM-Appliance class'!$AQ62/'Volume per connection'!$J$69)","v":382211.5448812187},{"$f":"CA$4*('COM-Appliance class'!$AQ62/'Volume per connection'!$J$69)","v":382649.43988377327},{"$f":"CB$4*('COM-Appliance class'!$AQ62/'Volume per connection'!$J$69)","v":383086.83676049032},{"$f":"CC$4*('COM-Appliance class'!$AQ62/'Volume per connection'!$J$69)","v":383523.73856454558},{"$f":"CD$4*('COM-Appliance class'!$AQ62/'Volume per connection'!$J$69)","v":383960.14833024156}]
["Stonnington (C)",null,{"$f":"C$4*('COM-Appliance class'!$AQ63/'Volume per connection'!$J$69)","v":133031.07371631637},{"$f":"D$4*('COM-Appliance class'!$AQ63/'Volume per connection'!$J$69)","v":163512.35133453822},{"$f":"E$4*('COM-Appliance class'!$AQ63/'Volume per connection'!$J$69)","v":145300.57263467408},{"$f":"F$4*('COM-Appliance class'!$AQ63/'Volume per connection'!$J$69)","v":161630.59736918009},{"$f":"G$4*('COM-Appliance class'!$AQ63/'Volume per connection'!$J$69)","v":142305.56887845346},{"$f":"H$4*('COM-Appliance class'!$AQ63/'Volume per connection'!$J$69)","v":146079.8968858915},{"$f":"I$4*('COM-Appliance class'!$AQ63/'Volume per connection'!$J$69)","v":169408.16794264191},{"$f":"J$4*('COM-Appliance class'!$AQ63/'Volume per connection'!$J$69)","v":186422.84819621075},{"$f":"K$4*('COM-Appliance class'!$AQ63/'Volume per connection'!$J$69)","v":223173.05040551923},{"$f":"L$4*('COM-Appliance class'!$AQ63/'Volume per connection'!$J$69)","v":221277.12286656085},{"$f":"M$4*('COM-Appliance class'!$AQ63/'Volume per connection'!$J$69)","v":179795.29716904039},{"$f":"N$4*('COM-Appliance class'!$AQ63/'Volume per connection'!$J$69)","v":178955.82236311535},{"$f":"O$4*('COM-Appliance class'!$AQ63/'Volume per connection'!$J$69)","v":203651.78388240142},{"$f":"P$4*('COM-Appliance class'!$AQ63/'Volume per connection'!$J$69)","v":227554.18638670232},{"$f":"Q$4*('COM-Appliance class'!$AQ63/'Volume per connection'!$J$69)","v":158451.77595131693},{"$f":"R$4*('COM-Appliance class'!$AQ63/'Volume per connection'!$J$69)","v":168312.6706799526},{"$f":"S$4*('COM-Appliance class'!$AQ63/'Volume per connection'!$J$69)","v":182944.24193549019},{"$f":"T$4*('COM-Appliance class'!$AQ63/'Volume per connection'!$J$69)","v":204362.95891739873},{"$f":"U$4*('COM-Appliance class'!$AQ63/'Volume per connection'!$J$69)","v":220301.41616606619},{"$f":"V$4*('COM-Appliance class'!$AQ63/'Volume per connection'!$J$69)","v":226149.88858799759},{"$f":"W$4*('COM-Appliance class'!$AQ63/'Volume per connection'!$J$69)","v":235678.30185450561},{"$f":"X$4*('COM-Appliance class'!$AQ63/'Volume per connection'!$J$69)","v":259285.37283802478},{"$f":"Y$4*('COM-Appliance class'!$AQ63/'Volume per connection'!$J$69)","v":278899.55806313339},{"$f":"Z$4*('COM-Appliance class'!$AQ63/'Volume per connection'!$J$69)","v":289973.26574067387},{"$f":"AA$4*('COM-Appliance class'!$AQ63/'Volume per connection'!$J$69)","v":302556.58188943728},{"$f":"AB$4*('COM-Appliance class'!$AQ63/'Volume per connection'!$J$69)","v":310451.59225233074},{"$f":"AC$4*('COM-Appliance class'!$AQ63/'Volume per connection'!$J$69)","v":316166.29357655579},{"$f":"AD$4*('COM-Appliance class'!$AQ63/'Volume per connection'!$J$69)","v":320258.03384303628},{"$f":"AE$4*('COM-Appliance class'!$AQ63/'Volume per connection'!$J$69)","v":323687.07838435267},{"$f":"AF$4*('COM-Appliance class'!$AQ63/'Volume per connection'!$J$69)","v":330068.06854924775},{"$f":"AG$4*('COM-Appliance class'!$AQ63/'Volume per connection'!$J$69)","v":330374.63144171058},{"$f":"AH$4*('COM-Appliance class'!$AQ63/'Volume per connection'!$J$69)","v":337068.43902284245},{"$f":"AI$4*('COM-Appliance class'!$AQ63/'Volume per connection'!$J$69)","v":337499.20836163021},{"$f":"AJ$4*('COM-Appliance class'!$AQ63/'Volume per connection'!$J$69)","v":337929.37026186491},{"$f":"AK$4*('COM-Appliance class'!$AQ63/'Volume per connection'!$J$69)","v":338358.92845624581},{"$f":"AL$4*('COM-Appliance class'!$AQ63/'Volume per connection'!$J$69)","v":338787.88665430172},{"$f":"AM$4*('COM-Appliance class'!$AQ63/'Volume per connection'!$J$69)","v":339216.24854253803},{"$f":"AN$4*('COM-Appliance class'!$AQ63/'Volume per connection'!$J$69)","v":339644.01778457948},{"$f":"AO$4*('COM-Appliance class'!$AQ63/'Volume per connection'!$J$69)","v":340071.19802131696},{"$f":"AP$4*('COM-Appliance class'!$AQ63/'Volume per connection'!$J$69)","v":340497.79287104821},{"$f":"AQ$4*('COM-Appliance class'!$AQ63/'Volume per connection'!$J$69)","v":340923.80592962226},{"$f":"AR$4*('COM-Appliance class'!$AQ63/'Volume per connection'!$J$69)","v":341349.24077057891},{"$f":"AS$4*('COM-Appliance class'!$AQ63/'Volume per connection'!$J$69)","v":341774.10094529076},{"$f":"AT$4*('COM-Appliance class'!$AQ63/'Volume per connection'!$J$69)","v":342198.38998310111},{"$f":"AU$4*('COM-Appliance class'!$AQ63/'Volume per connection'!$J$69)","v":342622.11139146466},{"$f":"AV$4*('COM-Appliance class'!$AQ63/'Volume per connection'!$J$69)","v":343045.26865608327},{"$f":"AW$4*('COM-Appliance class'!$AQ63/'Volume per connection'!$J$69)","v":343467.86524104467},{"$f":"AX$4*('COM-Appliance class'!$AQ63/'Volume per connection'!$J$69)","v":343889.90458895691},{"$f":"AY$4*('COM-Appliance class'!$AQ63/'Volume per connection'!$J$69)","v":344311.39012108505},{"$f":"AZ$4*('COM-Appliance class'!$AQ63/'Volume per connection'!$J$69)","v":344732.32523748407},{"$f":"BA$4*('COM-Appliance class'!$AQ63/'Volume per connection'!$J$69)","v":345152.71331713418},{"$f":"BB$4*('COM-Appliance class'!$AQ63/'Volume per connection'!$J$69)","v":345572.55771807069},{"$f":"BC$4*('COM-Appliance class'!$AQ63/'Volume per connection'!$J$69)","v":345991.86177751923},{"$f":"BD$4*('COM-Appliance class'!$AQ63/'Volume per connection'!$J$69)","v":346410.62881202338},{"$f":"BE$4*('COM-Appliance class'!$AQ63/'Volume per connection'!$J$69)","v":346828.86211757769},{"$f":"BF$4*('COM-Appliance class'!$AQ63/'Volume per connection'!$J$69)","v":347246.56496975466},{"$f":"BG$4*('COM-Appliance class'!$AQ63/'Volume per connection'!$J$69)","v":347663.74062383448},{"$f":"BH$4*('COM-Appliance class'!$AQ63/'Volume per connection'!$J$69)","v":348080.39231493248},{"$f":"BI$4*('COM-Appliance class'!$AQ63/'Volume per connection'!$J$69)","v":348496.52325812617},{"$f":"BJ$4*('COM-Appliance class'!$AQ63/'Volume per connection'!$J$69)","v":348912.1366485802},{"$f":"BK$4*('COM-Appliance class'!$AQ63/'Volume per connection'!$J$69)","v":349327.23566167353},{"$f":"BL$4*('COM-Appliance class'!$AQ63/'Volume per connection'!$J$69)","v":349741.82345312164},{"$f":"BM$4*('COM-Appliance class'!$AQ63/'Volume per connection'!$J$69)","v":350155.9031591026},{"$f":"BN$4*('COM-Appliance class'!$AQ63/'Volume per connection'!$J$69)","v":350569.47789637727},{"$f":"BO$4*('COM-Appliance class'!$AQ63/'Volume per connection'!$J$69)","v":350982.55076241406},{"$f":"BP$4*('COM-Appliance class'!$AQ63/'Volume per connection'!$J$69)","v":351395.12483550806},{"$f":"BQ$4*('COM-Appliance class'!$AQ63/'Volume per connection'!$J$69)","v":351807.20317490329},{"$f":"BR$4*('COM-Appliance class'!$AQ63/'Volume per connection'!$J$69)","v":352218.78882091102},{"$f":"BS$4*('COM-Appliance class'!$AQ63/'Volume per connection'!$J$69)","v":352629.88479503029},{"$f":"BT$4*('COM-Appliance class'!$AQ63/'Volume per connection'!$J$69)","v":353040.49410006439},{"$f":"BU$4*('COM-Appliance class'!$AQ63/'Volume per connection'!$J$69)","v":353450.61972024065},{"$f":"BV$4*('COM-Appliance class'!$AQ63/'Volume per connection'!$J$69)","v":353860.26462132455},{"$f":"BW$4*('COM-Appliance class'!$AQ63/'Volume per connection'!$J$69)","v":354269.43175073876},{"$f":"BX$4*('COM-Appliance class'!$AQ63/'Volume per connection'!$J$69)","v":354678.12403767492},{"$f":"BY$4*('COM-Appliance class'!$AQ63/'Volume per connection'!$J$69)","v":355086.34439321212},{"$f":"BZ$4*('COM-Appliance class'!$AQ63/'Volume per connection'!$J$69)","v":355494.09571042686},{"$f":"CA$4*('COM-Appliance class'!$AQ63/'Volume per connection'!$J$69)","v":355901.38086450985},{"$f":"CB$4*('COM-Appliance class'!$AQ63/'Volume per connection'!$J$69)","v":356308.20271287503},{"$f":"CC$4*('COM-Appliance class'!$AQ63/'Volume per connection'!$J$69)","v":356714.56409527425},{"$f":"CD$4*('COM-Appliance class'!$AQ63/'Volume per connection'!$J$69)","v":357120.46783390548}]
["Whitehorse (C)",null,{"$f":"C$4*('COM-Appliance class'!$AQ64/'Volume per connection'!$J$69)","v":119007.90205283654},{"$f":"D$4*('COM-Appliance class'!$AQ64/'Volume per connection'!$J$69)","v":146276.06429416517},{"$f":"E$4*('COM-Appliance class'!$AQ64/'Volume per connection'!$J$69)","v":129984.03931702979},{"$f":"F$4*('COM-Appliance class'!$AQ64/'Volume per connection'!$J$69)","v":144592.67119403559},{"$f":"G$4*('COM-Appliance class'!$AQ64/'Volume per connection'!$J$69)","v":127304.74715083819},{"$f":"H$4*('COM-Appliance class'!$AQ64/'Volume per connection'!$J$69)","v":130681.21285374841},{"$f":"I$4*('COM-Appliance class'!$AQ64/'Volume per connection'!$J$69)","v":151550.38664470808},{"$f":"J$4*('COM-Appliance class'!$AQ64/'Volume per connection'!$J$69)","v":166771.50261792072},{"$f":"K$4*('COM-Appliance class'!$AQ64/'Volume per connection'!$J$69)","v":199647.76485326717},{"$f":"L$4*('COM-Appliance class'!$AQ64/'Volume per connection'!$J$69)","v":197951.69225494491},{"$f":"M$4*('COM-Appliance class'!$AQ64/'Volume per connection'!$J$69)","v":160842.57998760653},{"$f":"N$4*('COM-Appliance class'!$AQ64/'Volume per connection'!$J$69)","v":160091.59653172319},{"$f":"O$4*('COM-Appliance class'!$AQ64/'Volume per connection'!$J$69)","v":182184.28876884028},{"$f":"P$4*('COM-Appliance class'!$AQ64/'Volume per connection'!$J$69)","v":203567.07323110255},{"$f":"Q$4*('COM-Appliance class'!$AQ64/'Volume per connection'!$J$69)","v":141748.93809189406},{"$f":"R$4*('COM-Appliance class'!$AQ64/'Volume per connection'!$J$69)","v":150570.36876395872},{"$f":"S$4*('COM-Appliance class'!$AQ64/'Volume per connection'!$J$69)","v":163659.58581839903},{"$f":"T$4*('COM-Appliance class'!$AQ64/'Volume per connection'!$J$69)","v":182820.496885809},{"$f":"U$4*('COM-Appliance class'!$AQ64/'Volume per connection'!$J$69)","v":197078.83748349219},{"$f":"V$4*('COM-Appliance class'!$AQ64/'Volume per connection'!$J$69)","v":202310.80632884745},{"$f":"W$4*('COM-Appliance class'!$AQ64/'Volume per connection'!$J$69)","v":210834.80332490007},{"$f":"X$4*('COM-Appliance class'!$AQ64/'Volume per connection'!$J$69)","v":231953.38797491955},{"$f":"Y$4*('COM-Appliance class'!$AQ64/'Volume per connection'!$J$69)","v":249499.98794519118},{"$f":"Z$4*('COM-Appliance class'!$AQ64/'Volume per connection'!$J$69)","v":259406.38561481208},{"$f":"AA$4*('COM-Appliance class'!$AQ64/'Volume per connection'!$J$69)","v":270663.25977133657},{"$f":"AB$4*('COM-Appliance class'!$AQ64/'Volume per connection'!$J$69)","v":277726.03535997053},{"$f":"AC$4*('COM-Appliance class'!$AQ64/'Volume per connection'!$J$69)","v":282838.33428724867},{"$f":"AD$4*('COM-Appliance class'!$AQ64/'Volume per connection'!$J$69)","v":286498.75294926262},{"$f":"AE$4*('COM-Appliance class'!$AQ64/'Volume per connection'!$J$69)","v":289566.3324666468},{"$f":"AF$4*('COM-Appliance class'!$AQ64/'Volume per connection'!$J$69)","v":295274.68489386473},{"$f":"AG$4*('COM-Appliance class'!$AQ64/'Volume per connection'!$J$69)","v":295548.9321479841},{"$f":"AH$4*('COM-Appliance class'!$AQ64/'Volume per connection'!$J$69)","v":301537.1270465281},{"$f":"AI$4*('COM-Appliance class'!$AQ64/'Volume per connection'!$J$69)","v":301922.48780357302},{"$f":"AJ$4*('COM-Appliance class'!$AQ64/'Volume per connection'!$J$69)","v":302307.30515383481},{"$f":"AK$4*('COM-Appliance class'!$AQ64/'Volume per connection'!$J$69)","v":302691.58243653859},{"$f":"AL$4*('COM-Appliance class'!$AQ64/'Volume per connection'!$J$69)","v":303075.32297018165},{"$f":"AM$4*('COM-Appliance class'!$AQ64/'Volume per connection'!$J$69)","v":303458.53005266452},{"$f":"AN$4*('COM-Appliance class'!$AQ64/'Volume per connection'!$J$69)","v":303841.20696141926},{"$f":"AO$4*('COM-Appliance class'!$AQ64/'Volume per connection'!$J$69)","v":304223.35695354047},{"$f":"AP$4*('COM-Appliance class'!$AQ64/'Volume per connection'!$J$69)","v":304604.98326591105},{"$f":"AQ$4*('COM-Appliance class'!$AQ64/'Volume per connection'!$J$69)","v":304986.08911533182},{"$f":"AR$4*('COM-Appliance class'!$AQ64/'Volume per connection'!$J$69)","v":305366.6776986458},{"$f":"AS$4*('COM-Appliance class'!$AQ64/'Volume per connection'!$J$69)","v":305746.75219286571},{"$f":"AT$4*('COM-Appliance class'!$AQ64/'Volume per connection'!$J$69)","v":306126.31575529696},{"$f":"AU$4*('COM-Appliance class'!$AQ64/'Volume per connection'!$J$69)","v":306505.37152366393},{"$f":"AV$4*('COM-Appliance class'!$AQ64/'Volume per connection'!$J$69)","v":306883.92261623096},{"$f":"AW$4*('COM-Appliance class'!$AQ64/'Volume per connection'!$J$69)","v":307261.9721319268},{"$f":"AX$4*('COM-Appliance class'!$AQ64/'Volume per connection'!$J$69)","v":307639.52315046469},{"$f":"AY$4*('COM-Appliance class'!$AQ64/'Volume per connection'!$J$69)","v":308016.5787324647},{"$f":"AZ$4*('COM-Appliance class'!$AQ64/'Volume per connection'!$J$69)","v":308393.14191957272},{"$f":"BA$4*('COM-Appliance class'!$AQ64/'Volume per connection'!$J$69)","v":308769.21573458123},{"$f":"BB$4*('COM-Appliance class'!$AQ64/'Volume per connection'!$J$69)","v":309144.80318154598},{"$f":"BC$4*('COM-Appliance class'!$AQ64/'Volume per connection'!$J$69)","v":309519.9072459063},{"$f":"BD$4*('COM-Appliance class'!$AQ64/'Volume per connection'!$J$69)","v":309894.53089459985},{"$f":"BE$4*('COM-Appliance class'!$AQ64/'Volume per connection'!$J$69)","v":310268.67707618128},{"$f":"BF$4*('COM-Appliance class'!$AQ64/'Volume per connection'!$J$69)","v":310642.34872093605},{"$f":"BG$4*('COM-Appliance class'!$AQ64/'Volume per connection'!$J$69)","v":311015.54874099622},{"$f":"BH$4*('COM-Appliance class'!$AQ64/'Volume per connection'!$J$69)","v":311388.2800304548},{"$f":"BI$4*('COM-Appliance class'!$AQ64/'Volume per connection'!$J$69)","v":311760.54546547908},{"$f":"BJ$4*('COM-Appliance class'!$AQ64/'Volume per connection'!$J$69)","v":312132.34790442261},{"$f":"BK$4*('COM-Appliance class'!$AQ64/'Volume per connection'!$J$69)","v":312503.69018793886},{"$f":"BL$4*('COM-Appliance class'!$AQ64/'Volume per connection'!$J$69)","v":312874.57513909071},{"$f":"BM$4*('COM-Appliance class'!$AQ64/'Volume per connection'!$J$69)","v":313245.00556346314},{"$f":"BN$4*('COM-Appliance class'!$AQ64/'Volume per connection'!$J$69)","v":313614.98424927052},{"$f":"BO$4*('COM-Appliance class'!$AQ64/'Volume per connection'!$J$69)","v":313984.51396746875},{"$f":"BP$4*('COM-Appliance class'!$AQ64/'Volume per connection'!$J$69)","v":314353.59747186117},{"$f":"BQ$4*('COM-Appliance class'!$AQ64/'Volume per connection'!$J$69)","v":314722.23749920866},{"$f":"BR$4*('COM-Appliance class'!$AQ64/'Volume per connection'!$J$69)","v":315090.43676933477},{"$f":"BS$4*('COM-Appliance class'!$AQ64/'Volume per connection'!$J$69)","v":315458.19798523403},{"$f":"BT$4*('COM-Appliance class'!$AQ64/'Volume per connection'!$J$69)","v":315825.52383317606},{"$f":"BU$4*('COM-Appliance class'!$AQ64/'Volume per connection'!$J$69)","v":316192.41698281246},{"$f":"BV$4*('COM-Appliance class'!$AQ64/'Volume per connection'!$J$69)","v":316558.88008727931},{"$f":"BW$4*('COM-Appliance class'!$AQ64/'Volume per connection'!$J$69)","v":316924.91578330327},{"$f":"BX$4*('COM-Appliance class'!$AQ64/'Volume per connection'!$J$69)","v":317290.52669130184},{"$f":"BY$4*('COM-Appliance class'!$AQ64/'Volume per connection'!$J$69)","v":317655.71541548928},{"$f":"BZ$4*('COM-Appliance class'!$AQ64/'Volume per connection'!$J$69)","v":318020.48454397486},{"$f":"CA$4*('COM-Appliance class'!$AQ64/'Volume per connection'!$J$69)","v":318384.83664886764},{"$f":"CB$4*('COM-Appliance class'!$AQ64/'Volume per connection'!$J$69)","v":318748.77428637363},{"$f":"CC$4*('COM-Appliance class'!$AQ64/'Volume per connection'!$J$69)","v":319112.29999689857},{"$f":"CD$4*('COM-Appliance class'!$AQ64/'Volume per connection'!$J$69)","v":319475.41630514478}]
["Yarra Ranges (S)",null,{"$f":"C$4*('COM-Appliance class'!$AQ65/'Volume per connection'!$J$69)","v":158701.65964254795},{"$f":"D$4*('COM-Appliance class'!$AQ65/'Volume per connection'!$J$69)","v":195064.81308407162},{"$f":"E$4*('COM-Appliance class'!$AQ65/'Volume per connection'!$J$69)","v":173338.76499643034},{"$f":"F$4*('COM-Appliance class'!$AQ65/'Volume per connection'!$J$69)","v":192819.94300222807},{"$f":"G$4*('COM-Appliance class'!$AQ65/'Volume per connection'!$J$69)","v":169765.82482937234},{"$f":"H$4*('COM-Appliance class'!$AQ65/'Volume per connection'!$J$69)","v":174268.47298579552},{"$f":"I$4*('COM-Appliance class'!$AQ65/'Volume per connection'!$J$69)","v":202098.32679267661},{"$f":"J$4*('COM-Appliance class'!$AQ65/'Volume per connection'!$J$69)","v":222396.27612958761},{"$f":"K$4*('COM-Appliance class'!$AQ65/'Volume per connection'!$J$69)","v":266238.04873118055},{"$f":"L$4*('COM-Appliance class'!$AQ65/'Volume per connection'!$J$69)","v":263976.27004602662},{"$f":"M$4*('COM-Appliance class'!$AQ65/'Volume per connection'!$J$69)","v":214489.8275232978},{"$f":"N$4*('COM-Appliance class'!$AQ65/'Volume per connection'!$J$69)","v":213488.36191675457},{"$f":"O$4*('COM-Appliance class'!$AQ65/'Volume per connection'!$J$69)","v":242949.82509292144},{"$f":"P$4*('COM-Appliance class'!$AQ65/'Volume per connection'!$J$69)","v":271464.59867857199},{"$f":"Q$4*('COM-Appliance class'!$AQ65/'Volume per connection'!$J$69)","v":189027.71446021125},{"$f":"R$4*('COM-Appliance class'!$AQ65/'Volume per connection'!$J$69)","v":200791.4348849002},{"$f":"S$4*('COM-Appliance class'!$AQ65/'Volume per connection'!$J$69)","v":218246.41421088614},{"$f":"T$4*('COM-Appliance class'!$AQ65/'Volume per connection'!$J$69)","v":243798.23332715925},{"$f":"U$4*('COM-Appliance class'!$AQ65/'Volume per connection'!$J$69)","v":262812.28430670185},{"$f":"V$4*('COM-Appliance class'!$AQ65/'Volume per connection'!$J$69)","v":269789.31797113316},{"$f":"W$4*('COM-Appliance class'!$AQ65/'Volume per connection'!$J$69)","v":281156.39903656568},{"$f":"X$4*('COM-Appliance class'!$AQ65/'Volume per connection'!$J$69)","v":309318.85191109596},{"$f":"Y$4*('COM-Appliance class'!$AQ65/'Volume per connection'!$J$69)","v":332717.92447965249},{"$f":"Z$4*('COM-Appliance class'!$AQ65/'Volume per connection'!$J$69)","v":345928.49053559313},{"$f":"AA$4*('COM-Appliance class'!$AQ65/'Volume per connection'!$J$69)","v":360939.96943919221},{"$f":"AB$4*('COM-Appliance class'!$AQ65/'Volume per connection'!$J$69)","v":370358.45500413765},{"$f":"AC$4*('COM-Appliance class'!$AQ65/'Volume per connection'!$J$69)","v":377175.90418484545},{"$f":"AD$4*('COM-Appliance class'!$AQ65/'Volume per connection'!$J$69)","v":382057.21464093809},{"$f":"AE$4*('COM-Appliance class'!$AQ65/'Volume per connection'!$J$69)","v":386147.95107185357},{"$f":"AF$4*('COM-Appliance class'!$AQ65/'Volume per connection'!$J$69)","v":393760.26074538979},{"$f":"AG$4*('COM-Appliance class'!$AQ65/'Volume per connection'!$J$69)","v":394125.98011049407},{"$f":"AH$4*('COM-Appliance class'!$AQ65/'Volume per connection'!$J$69)","v":402111.47058859729},{"$f":"AI$4*('COM-Appliance class'!$AQ65/'Volume per connection'!$J$69)","v":402625.36412549019},{"$f":"AJ$4*('COM-Appliance class'!$AQ65/'Volume per connection'!$J$69)","v":403138.53300833196},{"$f":"AK$4*('COM-Appliance class'!$AQ65/'Volume per connection'!$J$69)","v":403650.98169010895},{"$f":"AL$4*('COM-Appliance class'!$AQ65/'Volume per connection'!$J$69)","v":404162.7145961661},{"$f":"AM$4*('COM-Appliance class'!$AQ65/'Volume per connection'!$J$69)","v":404673.73612438201},{"$f":"AN$4*('COM-Appliance class'!$AQ65/'Volume per connection'!$J$69)","v":405184.05064533959},{"$f":"AO$4*('COM-Appliance class'!$AQ65/'Volume per connection'!$J$69)","v":405693.66250250093},{"$f":"AP$4*('COM-Appliance class'!$AQ65/'Volume per connection'!$J$69)","v":406202.57601237518},{"$f":"AQ$4*('COM-Appliance class'!$AQ65/'Volume per connection'!$J$69)","v":406710.79546469107},{"$f":"AR$4*('COM-Appliance class'!$AQ65/'Volume per connection'!$J$69)","v":407218.32512256299},{"$f":"AS$4*('COM-Appliance class'!$AQ65/'Volume per connection'!$J$69)","v":407725.16922266083},{"$f":"AT$4*('COM-Appliance class'!$AQ65/'Volume per connection'!$J$69)","v":408231.33197537402},{"$f":"AU$4*('COM-Appliance class'!$AQ65/'Volume per connection'!$J$69)","v":408736.81756497978},{"$f":"AV$4*('COM-Appliance class'!$AQ65/'Volume per connection'!$J$69)","v":409241.6301498047},{"$f":"AW$4*('COM-Appliance class'!$AQ65/'Volume per connection'!$J$69)","v":409745.77386239066},{"$f":"AX$4*('COM-Appliance class'!$AQ65/'Volume per connection'!$J$69)","v":410249.25280965504},{"$f":"AY$4*('COM-Appliance class'!$AQ65/'Volume per connection'!$J$69)","v":410752.0710730534},{"$f":"AZ$4*('COM-Appliance class'!$AQ65/'Volume per connection'!$J$69)","v":411254.23270873865},{"$f":"BA$4*('COM-Appliance class'!$AQ65/'Volume per connection'!$J$69)","v":411755.7417477222},{"$f":"BB$4*('COM-Appliance class'!$AQ65/'Volume per connection'!$J$69)","v":412256.60219602875},{"$f":"BC$4*('COM-Appliance class'!$AQ65/'Volume per connection'!$J$69)","v":412756.81803485786},{"$f":"BD$4*('COM-Appliance class'!$AQ65/'Volume per connection'!$J$69)","v":413256.393220736},{"$f":"BE$4*('COM-Appliance class'!$AQ65/'Volume per connection'!$J$69)","v":413755.33168567537},{"$f":"BF$4*('COM-Appliance class'!$AQ65/'Volume per connection'!$J$69)","v":414253.63733732537},{"$f":"BG$4*('COM-Appliance class'!$AQ65/'Volume per connection'!$J$69)","v":414751.3140591273},{"$f":"BH$4*('COM-Appliance class'!$AQ65/'Volume per connection'!$J$69)","v":415248.36571046658},{"$f":"BI$4*('COM-Appliance class'!$AQ65/'Volume per connection'!$J$69)","v":415744.79612682393},{"$f":"BJ$4*('COM-Appliance class'!$AQ65/'Volume per connection'!$J$69)","v":416240.60911992495},{"$f":"BK$4*('COM-Appliance class'!$AQ65/'Volume per connection'!$J$69)","v":416735.80847789126},{"$f":"BL$4*('COM-Appliance class'!$AQ65/'Volume per connection'!$J$69)","v":417230.39796538692},{"$f":"BM$4*('COM-Appliance class'!$AQ65/'Volume per connection'!$J$69)","v":417724.38132376841},{"$f":"BN$4*('COM-Appliance class'!$AQ65/'Volume per connection'!$J$69)","v":418217.76227122796},{"$f":"BO$4*('COM-Appliance class'!$AQ65/'Volume per connection'!$J$69)","v":418710.54450294282},{"$f":"BP$4*('COM-Appliance class'!$AQ65/'Volume per connection'!$J$69)","v":419202.73169121676},{"$f":"BQ$4*('COM-Appliance class'!$AQ65/'Volume per connection'!$J$69)","v":419694.32748562662},{"$f":"BR$4*('COM-Appliance class'!$AQ65/'Volume per connection'!$J$69)","v":420185.33551316289},{"$f":"BS$4*('COM-Appliance class'!$AQ65/'Volume per connection'!$J$69)","v":420675.75937837362},{"$f":"BT$4*('COM-Appliance class'!$AQ65/'Volume per connection'!$J$69)","v":421165.60266350379},{"$f":"BU$4*('COM-Appliance class'!$AQ65/'Volume per connection'!$J$69)","v":421654.86892863736},{"$f":"BV$4*('COM-Appliance class'!$AQ65/'Volume per connection'!$J$69)","v":422143.56171183445},{"$f":"BW$4*('COM-Appliance class'!$AQ65/'Volume per connection'!$J$69)","v":422631.68452927249},{"$f":"BX$4*('COM-Appliance class'!$AQ65/'Volume per connection'!$J$69)","v":423119.24087537994},{"$f":"BY$4*('COM-Appliance class'!$AQ65/'Volume per connection'!$J$69)","v":423606.2342229776},{"$f":"BZ$4*('COM-Appliance class'!$AQ65/'Volume per connection'!$J$69)","v":424092.6680234099},{"$f":"CA$4*('COM-Appliance class'!$AQ65/'Volume per connection'!$J$69)","v":424578.54570668394},{"$f":"CB$4*('COM-Appliance class'!$AQ65/'Volume per connection'!$J$69)","v":425063.87068159983},{"$f":"CC$4*('COM-Appliance class'!$AQ65/'Volume per connection'!$J$69)","v":425548.64633588732},{"$f":"CD$4*('COM-Appliance class'!$AQ65/'Volume per connection'!$J$69)","v":426032.87603633502}]
[]
[]
["Scaled up capital costs-weighted average"]
[null,2020,{"$f":"B310+1","v":2021},{"$f":"C310+1","v":2022},{"$f":"D310+1","v":2023},{"$f":"E310+1","v":2024},{"$f":"F310+1","v":2025},{"$f":"G310+1","v":2026},{"$f":"H310+1","v":2027},{"$f":"I310+1","v":2028},{"$f":"J310+1","v":2029},{"$f":"K310+1","v":2030},{"$f":"L310+1","v":2031},{"$f":"M310+1","v":2032},{"$f":"N310+1","v":2033},{"$f":"O310+1","v":2034},{"$f":"P310+1","v":2035},{"$f":"Q310+1","v":2036},{"$f":"R310+1","v":2037},{"$f":"S310+1","v":2038},{"$f":"T310+1","v":2039},{"$f":"U310+1","v":2040},{"$f":"V310+1","v":2041},{"$f":"W310+1","v":2042},{"$f":"X310+1","v":2043},{"$f":"Y310+1","v":2044},{"$f":"Z310+1","v":2045},{"$f":"AA310+1","v":2046},{"$f":"AB310+1","v":2047},{"$f":"AC310+1","v":2048},{"$f":"AD310+1","v":2049},{"$f":"AE310+1","v":2050},{"$f":"AF310+1","v":2051},{"$f":"AG310+1","v":2052},{"$f":"AH310+1","v":2053},{"$f":"AI310+1","v":2054},{"$f":"AJ310+1","v":2055},{"$f":"AK310+1","v":2056},{"$f":"AL310+1","v":2057},{"$f":"AM310+1","v":2058},{"$f":"AN310+1","v":2059},{"$f":"AO310+1","v":2060},{"$f":"AP310+1","v":2061},{"$f":"AQ310+1","v":2062},{"$f":"AR310+1","v":2063},{"$f":"AS310+1","v":2064},{"$f":"AT310+1","v":2065},{"$f":"AU310+1","v":2066},{"$f":"AV310+1","v":2067},{"$f":"AW310+1","v":2068},{"$f":"AX310+1","v":2069},{"$f":"AY310+1","v":2070},{"$f":"AZ310+1","v":2071},{"$f":"BA310+1","v":2072},{"$f":"BB310+1","v":2073},{"$f":"BC310+1","v":2074},{"$f":"BD310+1","v":2075},{"$f":"BE310+1","v":2076},{"$f":"BF310+1","v":2077},{"$f":"BG310+1","v":2078},{"$f":"BH310+1","v":2079},{"$f":"BI310+1","v":2080},{"$f":"BJ310+1","v":2081},{"$f":"BK310+1","v":2082},{"$f":"BL310+1","v":2083},{"$f":"BM310+1","v":2084},{"$f":"BN310+1","v":2085},{"$f":"BO310+1","v":2086},{"$f":"BP310+1","v":2087},{"$f":"BQ310+1","v":2088},{"$f":"BR310+1","v":2089},{"$f":"BS310+1","v":2090},{"$f":"BT310+1","v":2091},{"$f":"BU310+1","v":2092},{"$f":"BV310+1","v":2093},{"$f":"BW310+1","v":2094},{"$f":"BX310+1","v":2095},{"$f":"BY310+1","v":2096},{"$f":"BZ310+1","v":2097},{"$f":"CA310+1","v":2098},{"$f":"CB310+1","v":2099},{"$f":"CC310+1","v":2100}]
["Bass Coast (S)",null,{"$f":"C139*'COM-Appliance class'!$B72+'COM S curve-disconnect'!C160*'COM-Appliance class'!$C72+'COM S curve-disconnect'!C181*'COM-Appliance class'!$D72+'COM S curve-disconnect'!C202*'COM-Appliance class'!$E72","v":-63877.771956406963},{"$f":"D139*'COM-Appliance class'!$B72+'COM S curve-disconnect'!D160*'COM-Appliance class'!$C72+'COM S curve-disconnect'!D181*'COM-Appliance class'!$D72+'COM S curve-disconnect'!D202*'COM-Appliance class'!$E72","v":-63877.771956406963},{"$f":"E139*'COM-Appliance class'!$B72+'COM S curve-disconnect'!E160*'COM-Appliance class'!$C72+'COM S curve-disconnect'!E181*'COM-Appliance class'!$D72+'COM S curve-disconnect'!E202*'COM-Appliance class'!$E72","v":-40688.089452765489},{"$f":"F139*'COM-Appliance class'!$B72+'COM S curve-disconnect'!F160*'COM-Appliance class'!$C72+'COM S curve-disconnect'!F181*'COM-Appliance class'!$D72+'COM S curve-disconnect'!F202*'COM-Appliance class'!$E72","v":-40688.089452765489},{"$f":"G139*'COM-Appliance class'!$B72+'COM S curve-disconnect'!G160*'COM-Appliance class'!$C72+'COM S curve-disconnect'!G181*'COM-Appliance class'!$D72+'COM S curve-disconnect'!G202*'COM-Appliance class'!$E72","v":-57461.805436236908},{"$f":"H139*'COM-Appliance class'!$B72+'COM S curve-disconnect'!H160*'COM-Appliance class'!$C72+'COM S curve-disconnect'!H181*'COM-Appliance class'!$D72+'COM S curve-disconnect'!H202*'COM-Appliance class'!$E72","v":-57461.805436236908},{"$f":"I139*'COM-Appliance class'!$B72+'COM S curve-disconnect'!I160*'COM-Appliance class'!$C72+'COM S curve-disconnect'!I181*'COM-Appliance class'!$D72+'COM S curve-disconnect'!I202*'COM-Appliance class'!$E72","v":-57461.805436236908},{"$f":"J139*'COM-Appliance class'!$B72+'COM S curve-disconnect'!J160*'COM-Appliance class'!$C72+'COM S curve-disconnect'!J181*'COM-Appliance class'!$D72+'COM S curve-disconnect'!J202*'COM-Appliance class'!$E72","v":-63045.505172171761},{"$f":"K139*'COM-Appliance class'!$B72+'COM S curve-disconnect'!K160*'COM-Appliance class'!$C72+'COM S curve-disconnect'!K181*'COM-Appliance class'!$D72+'COM S curve-disconnect'!K202*'COM-Appliance class'!$E72","v":-58946.176683803154},{"$f":"L139*'COM-Appliance class'!$B72+'COM S curve-disconnect'!L160*'COM-Appliance class'!$C72+'COM S curve-disconnect'!L181*'COM-Appliance class'!$D72+'COM S curve-disconnect'!L202*'COM-Appliance class'!$E72","v":-58138.567875930974},{"$f":"M139*'COM-Appliance class'!$B72+'COM S curve-disconnect'!M160*'COM-Appliance class'!$C72+'COM S curve-disconnect'!M181*'COM-Appliance class'!$D72+'COM S curve-disconnect'!M202*'COM-Appliance class'!$E72","v":-57334.997112098165},{"$f":"N139*'COM-Appliance class'!$B72+'COM S curve-disconnect'!N160*'COM-Appliance class'!$C72+'COM S curve-disconnect'!N181*'COM-Appliance class'!$D72+'COM S curve-disconnect'!N202*'COM-Appliance class'!$E72","v":-56535.444202084516},{"$f":"O139*'COM-Appliance class'!$B72+'COM S curve-disconnect'!O160*'COM-Appliance class'!$C72+'COM S curve-disconnect'!O181*'COM-Appliance class'!$D72+'COM S curve-disconnect'!O202*'COM-Appliance class'!$E72","v":-55739.889056620916},{"$f":"P139*'COM-Appliance class'!$B72+'COM S curve-disconnect'!P160*'COM-Appliance class'!$C72+'COM S curve-disconnect'!P181*'COM-Appliance class'!$D72+'COM S curve-disconnect'!P202*'COM-Appliance class'!$E72","v":-54948.311686884677},{"$f":"Q139*'COM-Appliance class'!$B72+'COM S curve-disconnect'!Q160*'COM-Appliance class'!$C72+'COM S curve-disconnect'!Q181*'COM-Appliance class'!$D72+'COM S curve-disconnect'!Q202*'COM-Appliance class'!$E72","v":-54160.692203997081},{"$f":"R139*'COM-Appliance class'!$B72+'COM S curve-disconnect'!R160*'COM-Appliance class'!$C72+'COM S curve-disconnect'!R181*'COM-Appliance class'!$D72+'COM S curve-disconnect'!R202*'COM-Appliance class'!$E72","v":-53377.010818523944},{"$f":"S139*'COM-Appliance class'!$B72+'COM S curve-disconnect'!S160*'COM-Appliance class'!$C72+'COM S curve-disconnect'!S181*'COM-Appliance class'!$D72+'COM S curve-disconnect'!S202*'COM-Appliance class'!$E72","v":-52597.247839978168},{"$f":"T139*'COM-Appliance class'!$B72+'COM S curve-disconnect'!T160*'COM-Appliance class'!$C72+'COM S curve-disconnect'!T181*'COM-Appliance class'!$D72+'COM S curve-disconnect'!T202*'COM-Appliance class'!$E72","v":-51821.383676325131},{"$f":"U139*'COM-Appliance class'!$B72+'COM S curve-disconnect'!U160*'COM-Appliance class'!$C72+'COM S curve-disconnect'!U181*'COM-Appliance class'!$D72+'COM S curve-disconnect'!U202*'COM-Appliance class'!$E72","v":-51049.398833490326},{"$f":"V139*'COM-Appliance class'!$B72+'COM S curve-disconnect'!V160*'COM-Appliance class'!$C72+'COM S curve-disconnect'!V181*'COM-Appliance class'!$D72+'COM S curve-disconnect'!V202*'COM-Appliance class'!$E72","v":-50281.273914869715},{"$f":"W139*'COM-Appliance class'!$B72+'COM S curve-disconnect'!W160*'COM-Appliance class'!$C72+'COM S curve-disconnect'!W181*'COM-Appliance class'!$D72+'COM S curve-disconnect'!W202*'COM-Appliance class'!$E72","v":-49516.9896208422},{"$f":"X139*'COM-Appliance class'!$B72+'COM S curve-disconnect'!X160*'COM-Appliance class'!$C72+'COM S curve-disconnect'!X181*'COM-Appliance class'!$D72+'COM S curve-disconnect'!X202*'COM-Appliance class'!$E72","v":-48756.526748284836},{"$f":"Y139*'COM-Appliance class'!$B72+'COM S curve-disconnect'!Y160*'COM-Appliance class'!$C72+'COM S curve-disconnect'!Y181*'COM-Appliance class'!$D72+'COM S curve-disconnect'!Y202*'COM-Appliance class'!$E72","v":-47999.866190090252},{"$f":"Z139*'COM-Appliance class'!$B72+'COM S curve-disconnect'!Z160*'COM-Appliance class'!$C72+'COM S curve-disconnect'!Z181*'COM-Appliance class'!$D72+'COM S curve-disconnect'!Z202*'COM-Appliance class'!$E72","v":-47246.988934686633},{"$f":"AA139*'COM-Appliance class'!$B72+'COM S curve-disconnect'!AA160*'COM-Appliance class'!$C72+'COM S curve-disconnect'!AA181*'COM-Appliance class'!$D72+'COM S curve-disconnect'!AA202*'COM-Appliance class'!$E72","v":-46497.876065560034},{"$f":"AB139*'COM-Appliance class'!$B72+'COM S curve-disconnect'!AB160*'COM-Appliance class'!$C72+'COM S curve-disconnect'!AB181*'COM-Appliance class'!$D72+'COM S curve-disconnect'!AB202*'COM-Appliance class'!$E72","v":-45752.508760779077},{"$f":"AC139*'COM-Appliance class'!$B72+'COM S curve-disconnect'!AC160*'COM-Appliance class'!$C72+'COM S curve-disconnect'!AC181*'COM-Appliance class'!$D72+'COM S curve-disconnect'!AC202*'COM-Appliance class'!$E72","v":-45010.868292522027},{"$f":"AD139*'COM-Appliance class'!$B72+'COM S curve-disconnect'!AD160*'COM-Appliance class'!$C72+'COM S curve-disconnect'!AD181*'COM-Appliance class'!$D72+'COM S curve-disconnect'!AD202*'COM-Appliance class'!$E72","v":-44272.936026606265},{"$f":"AE139*'COM-Appliance class'!$B72+'COM S curve-disconnect'!AE160*'COM-Appliance class'!$C72+'COM S curve-disconnect'!AE181*'COM-Appliance class'!$D72+'COM S curve-disconnect'!AE202*'COM-Appliance class'!$E72","v":-43538.693422020078},{"$f":"AF139*'COM-Appliance class'!$B72+'COM S curve-disconnect'!AF160*'COM-Appliance class'!$C72+'COM S curve-disconnect'!AF181*'COM-Appliance class'!$D72+'COM S curve-disconnect'!AF202*'COM-Appliance class'!$E72","v":-42808.122030456812},{"$f":"AG139*'COM-Appliance class'!$B72+'COM S curve-disconnect'!AG160*'COM-Appliance class'!$C72+'COM S curve-disconnect'!AG181*'COM-Appliance class'!$D72+'COM S curve-disconnect'!AG202*'COM-Appliance class'!$E72","v":-42808.122030456812},{"$f":"AH139*'COM-Appliance class'!$B72+'COM S curve-disconnect'!AH160*'COM-Appliance class'!$C72+'COM S curve-disconnect'!AH181*'COM-Appliance class'!$D72+'COM S curve-disconnect'!AH202*'COM-Appliance class'!$E72","v":-42808.122030456812},{"$f":"AI139*'COM-Appliance class'!$B72+'COM S curve-disconnect'!AI160*'COM-Appliance class'!$C72+'COM S curve-disconnect'!AI181*'COM-Appliance class'!$D72+'COM S curve-disconnect'!AI202*'COM-Appliance class'!$E72","v":-42808.122030456812},{"$f":"AJ139*'COM-Appliance class'!$B72+'COM S curve-disconnect'!AJ160*'COM-Appliance class'!$C72+'COM S curve-disconnect'!AJ181*'COM-Appliance class'!$D72+'COM S curve-disconnect'!AJ202*'COM-Appliance class'!$E72","v":-42808.122030456812},{"$f":"AK139*'COM-Appliance class'!$B72+'COM S curve-disconnect'!AK160*'COM-Appliance class'!$C72+'COM S curve-disconnect'!AK181*'COM-Appliance class'!$D72+'COM S curve-disconnect'!AK202*'COM-Appliance class'!$E72","v":-42808.122030456812},{"$f":"AL139*'COM-Appliance class'!$B72+'COM S curve-disconnect'!AL160*'COM-Appliance class'!$C72+'COM S curve-disconnect'!AL181*'COM-Appliance class'!$D72+'COM S curve-disconnect'!AL202*'COM-Appliance class'!$E72","v":-42808.122030456812},{"$f":"AM139*'COM-Appliance class'!$B72+'COM S curve-disconnect'!AM160*'COM-Appliance class'!$C72+'COM S curve-disconnect'!AM181*'COM-Appliance class'!$D72+'COM S curve-disconnect'!AM202*'COM-Appliance class'!$E72","v":-42808.122030456812},{"$f":"AN139*'COM-Appliance class'!$B72+'COM S curve-disconnect'!AN160*'COM-Appliance class'!$C72+'COM S curve-disconnect'!AN181*'COM-Appliance class'!$D72+'COM S curve-disconnect'!AN202*'COM-Appliance class'!$E72","v":-42808.122030456812},{"$f":"AO139*'COM-Appliance class'!$B72+'COM S curve-disconnect'!AO160*'COM-Appliance class'!$C72+'COM S curve-disconnect'!AO181*'COM-Appliance class'!$D72+'COM S curve-disconnect'!AO202*'COM-Appliance class'!$E72","v":-42808.122030456812},{"$f":"AP139*'COM-Appliance class'!$B72+'COM S curve-disconnect'!AP160*'COM-Appliance class'!$C72+'COM S curve-disconnect'!AP181*'COM-Appliance class'!$D72+'COM S curve-disconnect'!AP202*'COM-Appliance class'!$E72","v":-42808.122030456812},{"$f":"AQ139*'COM-Appliance class'!$B72+'COM S curve-disconnect'!AQ160*'COM-Appliance class'!$C72+'COM S curve-disconnect'!AQ181*'COM-Appliance class'!$D72+'COM S curve-disconnect'!AQ202*'COM-Appliance class'!$E72","v":-42808.122030456812},{"$f":"AR139*'COM-Appliance class'!$B72+'COM S curve-disconnect'!AR160*'COM-Appliance class'!$C72+'COM S curve-disconnect'!AR181*'COM-Appliance class'!$D72+'COM S curve-disconnect'!AR202*'COM-Appliance class'!$E72","v":-42808.122030456812},{"$f":"AS139*'COM-Appliance class'!$B72+'COM S curve-disconnect'!AS160*'COM-Appliance class'!$C72+'COM S curve-disconnect'!AS181*'COM-Appliance class'!$D72+'COM S curve-disconnect'!AS202*'COM-Appliance class'!$E72","v":-42808.122030456812},{"$f":"AT139*'COM-Appliance class'!$B72+'COM S curve-disconnect'!AT160*'COM-Appliance class'!$C72+'COM S curve-disconnect'!AT181*'COM-Appliance class'!$D72+'COM S curve-disconnect'!AT202*'COM-Appliance class'!$E72","v":-42808.122030456812},{"$f":"AU139*'COM-Appliance class'!$B72+'COM S curve-disconnect'!AU160*'COM-Appliance class'!$C72+'COM S curve-disconnect'!AU181*'COM-Appliance class'!$D72+'COM S curve-disconnect'!AU202*'COM-Appliance class'!$E72","v":-42808.122030456812},{"$f":"AV139*'COM-Appliance class'!$B72+'COM S curve-disconnect'!AV160*'COM-Appliance class'!$C72+'COM S curve-disconnect'!AV181*'COM-Appliance class'!$D72+'COM S curve-disconnect'!AV202*'COM-Appliance class'!$E72","v":-42808.122030456812},{"$f":"AW139*'COM-Appliance class'!$B72+'COM S curve-disconnect'!AW160*'COM-Appliance class'!$C72+'COM S curve-disconnect'!AW181*'COM-Appliance class'!$D72+'COM S curve-disconnect'!AW202*'COM-Appliance class'!$E72","v":-42808.122030456812},{"$f":"AX139*'COM-Appliance class'!$B72+'COM S curve-disconnect'!AX160*'COM-Appliance class'!$C72+'COM S curve-disconnect'!AX181*'COM-Appliance class'!$D72+'COM S curve-disconnect'!AX202*'COM-Appliance class'!$E72","v":-42808.122030456812},{"$f":"AY139*'COM-Appliance class'!$B72+'COM S curve-disconnect'!AY160*'COM-Appliance class'!$C72+'COM S curve-disconnect'!AY181*'COM-Appliance class'!$D72+'COM S curve-disconnect'!AY202*'COM-Appliance class'!$E72","v":-42808.122030456812},{"$f":"AZ139*'COM-Appliance class'!$B72+'COM S curve-disconnect'!AZ160*'COM-Appliance class'!$C72+'COM S curve-disconnect'!AZ181*'COM-Appliance class'!$D72+'COM S curve-disconnect'!AZ202*'COM-Appliance class'!$E72","v":-42808.122030456812},{"$f":"BA139*'COM-Appliance class'!$B72+'COM S curve-disconnect'!BA160*'COM-Appliance class'!$C72+'COM S curve-disconnect'!BA181*'COM-Appliance class'!$D72+'COM S curve-disconnect'!BA202*'COM-Appliance class'!$E72","v":-42808.122030456812},{"$f":"BB139*'COM-Appliance class'!$B72+'COM S curve-disconnect'!BB160*'COM-Appliance class'!$C72+'COM S curve-disconnect'!BB181*'COM-Appliance class'!$D72+'COM S curve-disconnect'!BB202*'COM-Appliance class'!$E72","v":-42808.122030456812},{"$f":"BC139*'COM-Appliance class'!$B72+'COM S curve-disconnect'!BC160*'COM-Appliance class'!$C72+'COM S curve-disconnect'!BC181*'COM-Appliance class'!$D72+'COM S curve-disconnect'!BC202*'COM-Appliance class'!$E72","v":-42808.122030456812},{"$f":"BD139*'COM-Appliance class'!$B72+'COM S curve-disconnect'!BD160*'COM-Appliance class'!$C72+'COM S curve-disconnect'!BD181*'COM-Appliance class'!$D72+'COM S curve-disconnect'!BD202*'COM-Appliance class'!$E72","v":-42808.122030456812},{"$f":"BE139*'COM-Appliance class'!$B72+'COM S curve-disconnect'!BE160*'COM-Appliance class'!$C72+'COM S curve-disconnect'!BE181*'COM-Appliance class'!$D72+'COM S curve-disconnect'!BE202*'COM-Appliance class'!$E72","v":-42808.122030456812},{"$f":"BF139*'COM-Appliance class'!$B72+'COM S curve-disconnect'!BF160*'COM-Appliance class'!$C72+'COM S curve-disconnect'!BF181*'COM-Appliance class'!$D72+'COM S curve-disconnect'!BF202*'COM-Appliance class'!$E72","v":-42808.122030456812},{"$f":"BG139*'COM-Appliance class'!$B72+'COM S curve-disconnect'!BG160*'COM-Appliance class'!$C72+'COM S curve-disconnect'!BG181*'COM-Appliance class'!$D72+'COM S curve-disconnect'!BG202*'COM-Appliance class'!$E72","v":-42808.122030456812},{"$f":"BH139*'COM-Appliance class'!$B72+'COM S curve-disconnect'!BH160*'COM-Appliance class'!$C72+'COM S curve-disconnect'!BH181*'COM-Appliance class'!$D72+'COM S curve-disconnect'!BH202*'COM-Appliance class'!$E72","v":-42808.122030456812},{"$f":"BI139*'COM-Appliance class'!$B72+'COM S curve-disconnect'!BI160*'COM-Appliance class'!$C72+'COM S curve-disconnect'!BI181*'COM-Appliance class'!$D72+'COM S curve-disconnect'!BI202*'COM-Appliance class'!$E72","v":-42808.122030456812},{"$f":"BJ139*'COM-Appliance class'!$B72+'COM S curve-disconnect'!BJ160*'COM-Appliance class'!$C72+'COM S curve-disconnect'!BJ181*'COM-Appliance class'!$D72+'COM S curve-disconnect'!BJ202*'COM-Appliance class'!$E72","v":-42808.122030456812},{"$f":"BK139*'COM-Appliance class'!$B72+'COM S curve-disconnect'!BK160*'COM-Appliance class'!$C72+'COM S curve-disconnect'!BK181*'COM-Appliance class'!$D72+'COM S curve-disconnect'!BK202*'COM-Appliance class'!$E72","v":-42808.122030456812},{"$f":"BL139*'COM-Appliance class'!$B72+'COM S curve-disconnect'!BL160*'COM-Appliance class'!$C72+'COM S curve-disconnect'!BL181*'COM-Appliance class'!$D72+'COM S curve-disconnect'!BL202*'COM-Appliance class'!$E72","v":-42808.122030456812},{"$f":"BM139*'COM-Appliance class'!$B72+'COM S curve-disconnect'!BM160*'COM-Appliance class'!$C72+'COM S curve-disconnect'!BM181*'COM-Appliance class'!$D72+'COM S curve-disconnect'!BM202*'COM-Appliance class'!$E72","v":-42808.122030456812},{"$f":"BN139*'COM-Appliance class'!$B72+'COM S curve-disconnect'!BN160*'COM-Appliance class'!$C72+'COM S curve-disconnect'!BN181*'COM-Appliance class'!$D72+'COM S curve-disconnect'!BN202*'COM-Appliance class'!$E72","v":-42808.122030456812},{"$f":"BO139*'COM-Appliance class'!$B72+'COM S curve-disconnect'!BO160*'COM-Appliance class'!$C72+'COM S curve-disconnect'!BO181*'COM-Appliance class'!$D72+'COM S curve-disconnect'!BO202*'COM-Appliance class'!$E72","v":-42808.122030456812},{"$f":"BP139*'COM-Appliance class'!$B72+'COM S curve-disconnect'!BP160*'COM-Appliance class'!$C72+'COM S curve-disconnect'!BP181*'COM-Appliance class'!$D72+'COM S curve-disconnect'!BP202*'COM-Appliance class'!$E72","v":-42808.122030456812},{"$f":"BQ139*'COM-Appliance class'!$B72+'COM S curve-disconnect'!BQ160*'COM-Appliance class'!$C72+'COM S curve-disconnect'!BQ181*'COM-Appliance class'!$D72+'COM S curve-disconnect'!BQ202*'COM-Appliance class'!$E72","v":-42808.122030456812},{"$f":"BR139*'COM-Appliance class'!$B72+'COM S curve-disconnect'!BR160*'COM-Appliance class'!$C72+'COM S curve-disconnect'!BR181*'COM-Appliance class'!$D72+'COM S curve-disconnect'!BR202*'COM-Appliance class'!$E72","v":-42808.122030456812},{"$f":"BS139*'COM-Appliance class'!$B72+'COM S curve-disconnect'!BS160*'COM-Appliance class'!$C72+'COM S curve-disconnect'!BS181*'COM-Appliance class'!$D72+'COM S curve-disconnect'!BS202*'COM-Appliance class'!$E72","v":-42808.122030456812},{"$f":"BT139*'COM-Appliance class'!$B72+'COM S curve-disconnect'!BT160*'COM-Appliance class'!$C72+'COM S curve-disconnect'!BT181*'COM-Appliance class'!$D72+'COM S curve-disconnect'!BT202*'COM-Appliance class'!$E72","v":-42808.122030456812},{"$f":"BU139*'COM-Appliance class'!$B72+'COM S curve-disconnect'!BU160*'COM-Appliance class'!$C72+'COM S curve-disconnect'!BU181*'COM-Appliance class'!$D72+'COM S curve-disconnect'!BU202*'COM-Appliance class'!$E72","v":-42808.122030456812},{"$f":"BV139*'COM-Appliance class'!$B72+'COM S curve-disconnect'!BV160*'COM-Appliance class'!$C72+'COM S curve-disconnect'!BV181*'COM-Appliance class'!$D72+'COM S curve-disconnect'!BV202*'COM-Appliance class'!$E72","v":-42808.122030456812},{"$f":"BW139*'COM-Appliance class'!$B72+'COM S curve-disconnect'!BW160*'COM-Appliance class'!$C72+'COM S curve-disconnect'!BW181*'COM-Appliance class'!$D72+'COM S curve-disconnect'!BW202*'COM-Appliance class'!$E72","v":-42808.122030456812},{"$f":"BX139*'COM-Appliance class'!$B72+'COM S curve-disconnect'!BX160*'COM-Appliance class'!$C72+'COM S curve-disconnect'!BX181*'COM-Appliance class'!$D72+'COM S curve-disconnect'!BX202*'COM-Appliance class'!$E72","v":-42808.122030456812},{"$f":"BY139*'COM-Appliance class'!$B72+'COM S curve-disconnect'!BY160*'COM-Appliance class'!$C72+'COM S curve-disconnect'!BY181*'COM-Appliance class'!$D72+'COM S curve-disconnect'!BY202*'COM-Appliance class'!$E72","v":-42808.122030456812},{"$f":"BZ139*'COM-Appliance class'!$B72+'COM S curve-disconnect'!BZ160*'COM-Appliance class'!$C72+'COM S curve-disconnect'!BZ181*'COM-Appliance class'!$D72+'COM S curve-disconnect'!BZ202*'COM-Appliance class'!$E72","v":-42808.122030456812},{"$f":"CA139*'COM-Appliance class'!$B72+'COM S curve-disconnect'!CA160*'COM-Appliance class'!$C72+'COM S curve-disconnect'!CA181*'COM-Appliance class'!$D72+'COM S curve-disconnect'!CA202*'COM-Appliance class'!$E72","v":-42808.122030456812},{"$f":"CB139*'COM-Appliance class'!$B72+'COM S curve-disconnect'!CB160*'COM-Appliance class'!$C72+'COM S curve-disconnect'!CB181*'COM-Appliance class'!$D72+'COM S curve-disconnect'!CB202*'COM-Appliance class'!$E72","v":-42808.122030456812},{"$f":"CC139*'COM-Appliance class'!$B72+'COM S curve-disconnect'!CC160*'COM-Appliance class'!$C72+'COM S curve-disconnect'!CC181*'COM-Appliance class'!$D72+'COM S curve-disconnect'!CC202*'COM-Appliance class'!$E72","v":-42808.122030456812},{"$f":"CD139*'COM-Appliance class'!$B72+'COM S curve-disconnect'!CD160*'COM-Appliance class'!$C72+'COM S curve-disconnect'!CD181*'COM-Appliance class'!$D72+'COM S curve-disconnect'!CD202*'COM-Appliance class'!$E72","v":-42808.122030456812}]
["Bayside (C)",null,{"$f":"C140*'COM-Appliance class'!$B73+'COM S curve-disconnect'!C161*'COM-Appliance class'!$C73+'COM S curve-disconnect'!C182*'COM-Appliance class'!$D73+'COM S curve-disconnect'!C203*'COM-Appliance class'!$E73","v":-21989.907339519792},{"$f":"D140*'COM-Appliance class'!$B73+'COM S curve-disconnect'!D161*'COM-Appliance class'!$C73+'COM S curve-disconnect'!D182*'COM-Appliance class'!$D73+'COM S curve-disconnect'!D203*'COM-Appliance class'!$E73","v":-21989.907339519792},{"$f":"E140*'COM-Appliance class'!$B73+'COM S curve-disconnect'!E161*'COM-Appliance class'!$C73+'COM S curve-disconnect'!E182*'COM-Appliance class'!$D73+'COM S curve-disconnect'!E203*'COM-Appliance class'!$E73","v":-14006.864821443796},{"$f":"F140*'COM-Appliance class'!$B73+'COM S curve-disconnect'!F161*'COM-Appliance class'!$C73+'COM S curve-disconnect'!F182*'COM-Appliance class'!$D73+'COM S curve-disconnect'!F203*'COM-Appliance class'!$E73","v":-14006.864821443796},{"$f":"G140*'COM-Appliance class'!$B73+'COM S curve-disconnect'!G161*'COM-Appliance class'!$C73+'COM S curve-disconnect'!G182*'COM-Appliance class'!$D73+'COM S curve-disconnect'!G203*'COM-Appliance class'!$E73","v":-19781.212437507798},{"$f":"H140*'COM-Appliance class'!$B73+'COM S curve-disconnect'!H161*'COM-Appliance class'!$C73+'COM S curve-disconnect'!H182*'COM-Appliance class'!$D73+'COM S curve-disconnect'!H203*'COM-Appliance class'!$E73","v":-19781.212437507798},{"$f":"I140*'COM-Appliance class'!$B73+'COM S curve-disconnect'!I161*'COM-Appliance class'!$C73+'COM S curve-disconnect'!I182*'COM-Appliance class'!$D73+'COM S curve-disconnect'!I203*'COM-Appliance class'!$E73","v":-19781.212437507798},{"$f":"J140*'COM-Appliance class'!$B73+'COM S curve-disconnect'!J161*'COM-Appliance class'!$C73+'COM S curve-disconnect'!J182*'COM-Appliance class'!$D73+'COM S curve-disconnect'!J203*'COM-Appliance class'!$E73","v":-21703.399703035822},{"$f":"K140*'COM-Appliance class'!$B73+'COM S curve-disconnect'!K161*'COM-Appliance class'!$C73+'COM S curve-disconnect'!K182*'COM-Appliance class'!$D73+'COM S curve-disconnect'!K203*'COM-Appliance class'!$E73","v":-20292.206875662356},{"$f":"L140*'COM-Appliance class'!$B73+'COM S curve-disconnect'!L161*'COM-Appliance class'!$C73+'COM S curve-disconnect'!L182*'COM-Appliance class'!$D73+'COM S curve-disconnect'!L203*'COM-Appliance class'!$E73","v":-20014.187741497677},{"$f":"M140*'COM-Appliance class'!$B73+'COM S curve-disconnect'!M161*'COM-Appliance class'!$C73+'COM S curve-disconnect'!M182*'COM-Appliance class'!$D73+'COM S curve-disconnect'!M203*'COM-Appliance class'!$E73","v":-19737.558703003819},{"$f":"N140*'COM-Appliance class'!$B73+'COM S curve-disconnect'!N161*'COM-Appliance class'!$C73+'COM S curve-disconnect'!N182*'COM-Appliance class'!$D73+'COM S curve-disconnect'!N203*'COM-Appliance class'!$E73","v":-19462.312809702431},{"$f":"O140*'COM-Appliance class'!$B73+'COM S curve-disconnect'!O161*'COM-Appliance class'!$C73+'COM S curve-disconnect'!O182*'COM-Appliance class'!$D73+'COM S curve-disconnect'!O203*'COM-Appliance class'!$E73","v":-19188.443145867546},{"$f":"P140*'COM-Appliance class'!$B73+'COM S curve-disconnect'!P161*'COM-Appliance class'!$C73+'COM S curve-disconnect'!P182*'COM-Appliance class'!$D73+'COM S curve-disconnect'!P203*'COM-Appliance class'!$E73","v":-18915.942830351843},{"$f":"Q140*'COM-Appliance class'!$B73+'COM S curve-disconnect'!Q161*'COM-Appliance class'!$C73+'COM S curve-disconnect'!Q182*'COM-Appliance class'!$D73+'COM S curve-disconnect'!Q203*'COM-Appliance class'!$E73","v":-18644.805016413713},{"$f":"R140*'COM-Appliance class'!$B73+'COM S curve-disconnect'!R161*'COM-Appliance class'!$C73+'COM S curve-disconnect'!R182*'COM-Appliance class'!$D73+'COM S curve-disconnect'!R203*'COM-Appliance class'!$E73","v":-18375.022891545279},{"$f":"S140*'COM-Appliance class'!$B73+'COM S curve-disconnect'!S161*'COM-Appliance class'!$C73+'COM S curve-disconnect'!S182*'COM-Appliance class'!$D73+'COM S curve-disconnect'!S203*'COM-Appliance class'!$E73","v":-18106.589677301185},{"$f":"T140*'COM-Appliance class'!$B73+'COM S curve-disconnect'!T161*'COM-Appliance class'!$C73+'COM S curve-disconnect'!T182*'COM-Appliance class'!$D73+'COM S curve-disconnect'!T203*'COM-Appliance class'!$E73","v":-17839.498629128313},{"$f":"U140*'COM-Appliance class'!$B73+'COM S curve-disconnect'!U161*'COM-Appliance class'!$C73+'COM S curve-disconnect'!U182*'COM-Appliance class'!$D73+'COM S curve-disconnect'!U203*'COM-Appliance class'!$E73","v":-17573.743036196298},{"$f":"V140*'COM-Appliance class'!$B73+'COM S curve-disconnect'!V161*'COM-Appliance class'!$C73+'COM S curve-disconnect'!V182*'COM-Appliance class'!$D73+'COM S curve-disconnect'!V203*'COM-Appliance class'!$E73","v":-17309.316221228946},{"$f":"W140*'COM-Appliance class'!$B73+'COM S curve-disconnect'!W161*'COM-Appliance class'!$C73+'COM S curve-disconnect'!W182*'COM-Appliance class'!$D73+'COM S curve-disconnect'!W203*'COM-Appliance class'!$E73","v":-17046.21154033643},{"$f":"X140*'COM-Appliance class'!$B73+'COM S curve-disconnect'!X161*'COM-Appliance class'!$C73+'COM S curve-disconnect'!X182*'COM-Appliance class'!$D73+'COM S curve-disconnect'!X203*'COM-Appliance class'!$E73","v":-16784.422382848381},{"$f":"Y140*'COM-Appliance class'!$B73+'COM S curve-disconnect'!Y161*'COM-Appliance class'!$C73+'COM S curve-disconnect'!Y182*'COM-Appliance class'!$D73+'COM S curve-disconnect'!Y203*'COM-Appliance class'!$E73","v":-16523.94217114777},{"$f":"Z140*'COM-Appliance class'!$B73+'COM S curve-disconnect'!Z161*'COM-Appliance class'!$C73+'COM S curve-disconnect'!Z182*'COM-Appliance class'!$D73+'COM S curve-disconnect'!Z203*'COM-Appliance class'!$E73","v":-16264.764360505664},{"$f":"AA140*'COM-Appliance class'!$B73+'COM S curve-disconnect'!AA161*'COM-Appliance class'!$C73+'COM S curve-disconnect'!AA182*'COM-Appliance class'!$D73+'COM S curve-disconnect'!AA203*'COM-Appliance class'!$E73","v":-16006.882438916762},{"$f":"AB140*'COM-Appliance class'!$B73+'COM S curve-disconnect'!AB161*'COM-Appliance class'!$C73+'COM S curve-disconnect'!AB182*'COM-Appliance class'!$D73+'COM S curve-disconnect'!AB203*'COM-Appliance class'!$E73","v":-15750.289926935809},{"$f":"AC140*'COM-Appliance class'!$B73+'COM S curve-disconnect'!AC161*'COM-Appliance class'!$C73+'COM S curve-disconnect'!AC182*'COM-Appliance class'!$D73+'COM S curve-disconnect'!AC203*'COM-Appliance class'!$E73","v":-15494.980377514767},{"$f":"AD140*'COM-Appliance class'!$B73+'COM S curve-disconnect'!AD161*'COM-Appliance class'!$C73+'COM S curve-disconnect'!AD182*'COM-Appliance class'!$D73+'COM S curve-disconnect'!AD203*'COM-Appliance class'!$E73","v":-15240.947375840824},{"$f":"AE140*'COM-Appliance class'!$B73+'COM S curve-disconnect'!AE161*'COM-Appliance class'!$C73+'COM S curve-disconnect'!AE182*'COM-Appliance class'!$D73+'COM S curve-disconnect'!AE203*'COM-Appliance class'!$E73","v":-14988.184539175254},{"$f":"AF140*'COM-Appliance class'!$B73+'COM S curve-disconnect'!AF161*'COM-Appliance class'!$C73+'COM S curve-disconnect'!AF182*'COM-Appliance class'!$D73+'COM S curve-disconnect'!AF203*'COM-Appliance class'!$E73","v":-14736.685516693005},{"$f":"AG140*'COM-Appliance class'!$B73+'COM S curve-disconnect'!AG161*'COM-Appliance class'!$C73+'COM S curve-disconnect'!AG182*'COM-Appliance class'!$D73+'COM S curve-disconnect'!AG203*'COM-Appliance class'!$E73","v":-14736.685516693005},{"$f":"AH140*'COM-Appliance class'!$B73+'COM S curve-disconnect'!AH161*'COM-Appliance class'!$C73+'COM S curve-disconnect'!AH182*'COM-Appliance class'!$D73+'COM S curve-disconnect'!AH203*'COM-Appliance class'!$E73","v":-14736.685516693005},{"$f":"AI140*'COM-Appliance class'!$B73+'COM S curve-disconnect'!AI161*'COM-Appliance class'!$C73+'COM S curve-disconnect'!AI182*'COM-Appliance class'!$D73+'COM S curve-disconnect'!AI203*'COM-Appliance class'!$E73","v":-14736.685516693005},{"$f":"AJ140*'COM-Appliance class'!$B73+'COM S curve-disconnect'!AJ161*'COM-Appliance class'!$C73+'COM S curve-disconnect'!AJ182*'COM-Appliance class'!$D73+'COM S curve-disconnect'!AJ203*'COM-Appliance class'!$E73","v":-14736.685516693005},{"$f":"AK140*'COM-Appliance class'!$B73+'COM S curve-disconnect'!AK161*'COM-Appliance class'!$C73+'COM S curve-disconnect'!AK182*'COM-Appliance class'!$D73+'COM S curve-disconnect'!AK203*'COM-Appliance class'!$E73","v":-14736.685516693005},{"$f":"AL140*'COM-Appliance class'!$B73+'COM S curve-disconnect'!AL161*'COM-Appliance class'!$C73+'COM S curve-disconnect'!AL182*'COM-Appliance class'!$D73+'COM S curve-disconnect'!AL203*'COM-Appliance class'!$E73","v":-14736.685516693005},{"$f":"AM140*'COM-Appliance class'!$B73+'COM S curve-disconnect'!AM161*'COM-Appliance class'!$C73+'COM S curve-disconnect'!AM182*'COM-Appliance class'!$D73+'COM S curve-disconnect'!AM203*'COM-Appliance class'!$E73","v":-14736.685516693005},{"$f":"AN140*'COM-Appliance class'!$B73+'COM S curve-disconnect'!AN161*'COM-Appliance class'!$C73+'COM S curve-disconnect'!AN182*'COM-Appliance class'!$D73+'COM S curve-disconnect'!AN203*'COM-Appliance class'!$E73","v":-14736.685516693005},{"$f":"AO140*'COM-Appliance class'!$B73+'COM S curve-disconnect'!AO161*'COM-Appliance class'!$C73+'COM S curve-disconnect'!AO182*'COM-Appliance class'!$D73+'COM S curve-disconnect'!AO203*'COM-Appliance class'!$E73","v":-14736.685516693005},{"$f":"AP140*'COM-Appliance class'!$B73+'COM S curve-disconnect'!AP161*'COM-Appliance class'!$C73+'COM S curve-disconnect'!AP182*'COM-Appliance class'!$D73+'COM S curve-disconnect'!AP203*'COM-Appliance class'!$E73","v":-14736.685516693005},{"$f":"AQ140*'COM-Appliance class'!$B73+'COM S curve-disconnect'!AQ161*'COM-Appliance class'!$C73+'COM S curve-disconnect'!AQ182*'COM-Appliance class'!$D73+'COM S curve-disconnect'!AQ203*'COM-Appliance class'!$E73","v":-14736.685516693005},{"$f":"AR140*'COM-Appliance class'!$B73+'COM S curve-disconnect'!AR161*'COM-Appliance class'!$C73+'COM S curve-disconnect'!AR182*'COM-Appliance class'!$D73+'COM S curve-disconnect'!AR203*'COM-Appliance class'!$E73","v":-14736.685516693005},{"$f":"AS140*'COM-Appliance class'!$B73+'COM S curve-disconnect'!AS161*'COM-Appliance class'!$C73+'COM S curve-disconnect'!AS182*'COM-Appliance class'!$D73+'COM S curve-disconnect'!AS203*'COM-Appliance class'!$E73","v":-14736.685516693005},{"$f":"AT140*'COM-Appliance class'!$B73+'COM S curve-disconnect'!AT161*'COM-Appliance class'!$C73+'COM S curve-disconnect'!AT182*'COM-Appliance class'!$D73+'COM S curve-disconnect'!AT203*'COM-Appliance class'!$E73","v":-14736.685516693005},{"$f":"AU140*'COM-Appliance class'!$B73+'COM S curve-disconnect'!AU161*'COM-Appliance class'!$C73+'COM S curve-disconnect'!AU182*'COM-Appliance class'!$D73+'COM S curve-disconnect'!AU203*'COM-Appliance class'!$E73","v":-14736.685516693005},{"$f":"AV140*'COM-Appliance class'!$B73+'COM S curve-disconnect'!AV161*'COM-Appliance class'!$C73+'COM S curve-disconnect'!AV182*'COM-Appliance class'!$D73+'COM S curve-disconnect'!AV203*'COM-Appliance class'!$E73","v":-14736.685516693005},{"$f":"AW140*'COM-Appliance class'!$B73+'COM S curve-disconnect'!AW161*'COM-Appliance class'!$C73+'COM S curve-disconnect'!AW182*'COM-Appliance class'!$D73+'COM S curve-disconnect'!AW203*'COM-Appliance class'!$E73","v":-14736.685516693005},{"$f":"AX140*'COM-Appliance class'!$B73+'COM S curve-disconnect'!AX161*'COM-Appliance class'!$C73+'COM S curve-disconnect'!AX182*'COM-Appliance class'!$D73+'COM S curve-disconnect'!AX203*'COM-Appliance class'!$E73","v":-14736.685516693005},{"$f":"AY140*'COM-Appliance class'!$B73+'COM S curve-disconnect'!AY161*'COM-Appliance class'!$C73+'COM S curve-disconnect'!AY182*'COM-Appliance class'!$D73+'COM S curve-disconnect'!AY203*'COM-Appliance class'!$E73","v":-14736.685516693005},{"$f":"AZ140*'COM-Appliance class'!$B73+'COM S curve-disconnect'!AZ161*'COM-Appliance class'!$C73+'COM S curve-disconnect'!AZ182*'COM-Appliance class'!$D73+'COM S curve-disconnect'!AZ203*'COM-Appliance class'!$E73","v":-14736.685516693005},{"$f":"BA140*'COM-Appliance class'!$B73+'COM S curve-disconnect'!BA161*'COM-Appliance class'!$C73+'COM S curve-disconnect'!BA182*'COM-Appliance class'!$D73+'COM S curve-disconnect'!BA203*'COM-Appliance class'!$E73","v":-14736.685516693005},{"$f":"BB140*'COM-Appliance class'!$B73+'COM S curve-disconnect'!BB161*'COM-Appliance class'!$C73+'COM S curve-disconnect'!BB182*'COM-Appliance class'!$D73+'COM S curve-disconnect'!BB203*'COM-Appliance class'!$E73","v":-14736.685516693005},{"$f":"BC140*'COM-Appliance class'!$B73+'COM S curve-disconnect'!BC161*'COM-Appliance class'!$C73+'COM S curve-disconnect'!BC182*'COM-Appliance class'!$D73+'COM S curve-disconnect'!BC203*'COM-Appliance class'!$E73","v":-14736.685516693005},{"$f":"BD140*'COM-Appliance class'!$B73+'COM S curve-disconnect'!BD161*'COM-Appliance class'!$C73+'COM S curve-disconnect'!BD182*'COM-Appliance class'!$D73+'COM S curve-disconnect'!BD203*'COM-Appliance class'!$E73","v":-14736.685516693005},{"$f":"BE140*'COM-Appliance class'!$B73+'COM S curve-disconnect'!BE161*'COM-Appliance class'!$C73+'COM S curve-disconnect'!BE182*'COM-Appliance class'!$D73+'COM S curve-disconnect'!BE203*'COM-Appliance class'!$E73","v":-14736.685516693005},{"$f":"BF140*'COM-Appliance class'!$B73+'COM S curve-disconnect'!BF161*'COM-Appliance class'!$C73+'COM S curve-disconnect'!BF182*'COM-Appliance class'!$D73+'COM S curve-disconnect'!BF203*'COM-Appliance class'!$E73","v":-14736.685516693005},{"$f":"BG140*'COM-Appliance class'!$B73+'COM S curve-disconnect'!BG161*'COM-Appliance class'!$C73+'COM S curve-disconnect'!BG182*'COM-Appliance class'!$D73+'COM S curve-disconnect'!BG203*'COM-Appliance class'!$E73","v":-14736.685516693005},{"$f":"BH140*'COM-Appliance class'!$B73+'COM S curve-disconnect'!BH161*'COM-Appliance class'!$C73+'COM S curve-disconnect'!BH182*'COM-Appliance class'!$D73+'COM S curve-disconnect'!BH203*'COM-Appliance class'!$E73","v":-14736.685516693005},{"$f":"BI140*'COM-Appliance class'!$B73+'COM S curve-disconnect'!BI161*'COM-Appliance class'!$C73+'COM S curve-disconnect'!BI182*'COM-Appliance class'!$D73+'COM S curve-disconnect'!BI203*'COM-Appliance class'!$E73","v":-14736.685516693005},{"$f":"BJ140*'COM-Appliance class'!$B73+'COM S curve-disconnect'!BJ161*'COM-Appliance class'!$C73+'COM S curve-disconnect'!BJ182*'COM-Appliance class'!$D73+'COM S curve-disconnect'!BJ203*'COM-Appliance class'!$E73","v":-14736.685516693005},{"$f":"BK140*'COM-Appliance class'!$B73+'COM S curve-disconnect'!BK161*'COM-Appliance class'!$C73+'COM S curve-disconnect'!BK182*'COM-Appliance class'!$D73+'COM S curve-disconnect'!BK203*'COM-Appliance class'!$E73","v":-14736.685516693005},{"$f":"BL140*'COM-Appliance class'!$B73+'COM S curve-disconnect'!BL161*'COM-Appliance class'!$C73+'COM S curve-disconnect'!BL182*'COM-Appliance class'!$D73+'COM S curve-disconnect'!BL203*'COM-Appliance class'!$E73","v":-14736.685516693005},{"$f":"BM140*'COM-Appliance class'!$B73+'COM S curve-disconnect'!BM161*'COM-Appliance class'!$C73+'COM S curve-disconnect'!BM182*'COM-Appliance class'!$D73+'COM S curve-disconnect'!BM203*'COM-Appliance class'!$E73","v":-14736.685516693005},{"$f":"BN140*'COM-Appliance class'!$B73+'COM S curve-disconnect'!BN161*'COM-Appliance class'!$C73+'COM S curve-disconnect'!BN182*'COM-Appliance class'!$D73+'COM S curve-disconnect'!BN203*'COM-Appliance class'!$E73","v":-14736.685516693005},{"$f":"BO140*'COM-Appliance class'!$B73+'COM S curve-disconnect'!BO161*'COM-Appliance class'!$C73+'COM S curve-disconnect'!BO182*'COM-Appliance class'!$D73+'COM S curve-disconnect'!BO203*'COM-Appliance class'!$E73","v":-14736.685516693005},{"$f":"BP140*'COM-Appliance class'!$B73+'COM S curve-disconnect'!BP161*'COM-Appliance class'!$C73+'COM S curve-disconnect'!BP182*'COM-Appliance class'!$D73+'COM S curve-disconnect'!BP203*'COM-Appliance class'!$E73","v":-14736.685516693005},{"$f":"BQ140*'COM-Appliance class'!$B73+'COM S curve-disconnect'!BQ161*'COM-Appliance class'!$C73+'COM S curve-disconnect'!BQ182*'COM-Appliance class'!$D73+'COM S curve-disconnect'!BQ203*'COM-Appliance class'!$E73","v":-14736.685516693005},{"$f":"BR140*'COM-Appliance class'!$B73+'COM S curve-disconnect'!BR161*'COM-Appliance class'!$C73+'COM S curve-disconnect'!BR182*'COM-Appliance class'!$D73+'COM S curve-disconnect'!BR203*'COM-Appliance class'!$E73","v":-14736.685516693005},{"$f":"BS140*'COM-Appliance class'!$B73+'COM S curve-disconnect'!BS161*'COM-Appliance class'!$C73+'COM S curve-disconnect'!BS182*'COM-Appliance class'!$D73+'COM S curve-disconnect'!BS203*'COM-Appliance class'!$E73","v":-14736.685516693005},{"$f":"BT140*'COM-Appliance class'!$B73+'COM S curve-disconnect'!BT161*'COM-Appliance class'!$C73+'COM S curve-disconnect'!BT182*'COM-Appliance class'!$D73+'COM S curve-disconnect'!BT203*'COM-Appliance class'!$E73","v":-14736.685516693005},{"$f":"BU140*'COM-Appliance class'!$B73+'COM S curve-disconnect'!BU161*'COM-Appliance class'!$C73+'COM S curve-disconnect'!BU182*'COM-Appliance class'!$D73+'COM S curve-disconnect'!BU203*'COM-Appliance class'!$E73","v":-14736.685516693005},{"$f":"BV140*'COM-Appliance class'!$B73+'COM S curve-disconnect'!BV161*'COM-Appliance class'!$C73+'COM S curve-disconnect'!BV182*'COM-Appliance class'!$D73+'COM S curve-disconnect'!BV203*'COM-Appliance class'!$E73","v":-14736.685516693005},{"$f":"BW140*'COM-Appliance class'!$B73+'COM S curve-disconnect'!BW161*'COM-Appliance class'!$C73+'COM S curve-disconnect'!BW182*'COM-Appliance class'!$D73+'COM S curve-disconnect'!BW203*'COM-Appliance class'!$E73","v":-14736.685516693005},{"$f":"BX140*'COM-Appliance class'!$B73+'COM S curve-disconnect'!BX161*'COM-Appliance class'!$C73+'COM S curve-disconnect'!BX182*'COM-Appliance class'!$D73+'COM S curve-disconnect'!BX203*'COM-Appliance class'!$E73","v":-14736.685516693005},{"$f":"BY140*'COM-Appliance class'!$B73+'COM S curve-disconnect'!BY161*'COM-Appliance class'!$C73+'COM S curve-disconnect'!BY182*'COM-Appliance class'!$D73+'COM S curve-disconnect'!BY203*'COM-Appliance class'!$E73","v":-14736.685516693005},{"$f":"BZ140*'COM-Appliance class'!$B73+'COM S curve-disconnect'!BZ161*'COM-Appliance class'!$C73+'COM S curve-disconnect'!BZ182*'COM-Appliance class'!$D73+'COM S curve-disconnect'!BZ203*'COM-Appliance class'!$E73","v":-14736.685516693005},{"$f":"CA140*'COM-Appliance class'!$B73+'COM S curve-disconnect'!CA161*'COM-Appliance class'!$C73+'COM S curve-disconnect'!CA182*'COM-Appliance class'!$D73+'COM S curve-disconnect'!CA203*'COM-Appliance class'!$E73","v":-14736.685516693005},{"$f":"CB140*'COM-Appliance class'!$B73+'COM S curve-disconnect'!CB161*'COM-Appliance class'!$C73+'COM S curve-disconnect'!CB182*'COM-Appliance class'!$D73+'COM S curve-disconnect'!CB203*'COM-Appliance class'!$E73","v":-14736.685516693005},{"$f":"CC140*'COM-Appliance class'!$B73+'COM S curve-disconnect'!CC161*'COM-Appliance class'!$C73+'COM S curve-disconnect'!CC182*'COM-Appliance class'!$D73+'COM S curve-disconnect'!CC203*'COM-Appliance class'!$E73","v":-14736.685516693005},{"$f":"CD140*'COM-Appliance class'!$B73+'COM S curve-disconnect'!CD161*'COM-Appliance class'!$C73+'COM S curve-disconnect'!CD182*'COM-Appliance class'!$D73+'COM S curve-disconnect'!CD203*'COM-Appliance class'!$E73","v":-14736.685516693005}]
["Boroondara (C)",null,{"$f":"C141*'COM-Appliance class'!$B74+'COM S curve-disconnect'!C162*'COM-Appliance class'!$C74+'COM S curve-disconnect'!C183*'COM-Appliance class'!$D74+'COM S curve-disconnect'!C204*'COM-Appliance class'!$E74","v":-26079.572505122309},{"$f":"D141*'COM-Appliance class'!$B74+'COM S curve-disconnect'!D162*'COM-Appliance class'!$C74+'COM S curve-disconnect'!D183*'COM-Appliance class'!$D74+'COM S curve-disconnect'!D204*'COM-Appliance class'!$E74","v":-26079.572505122309},{"$f":"E141*'COM-Appliance class'!$B74+'COM S curve-disconnect'!E162*'COM-Appliance class'!$C74+'COM S curve-disconnect'!E183*'COM-Appliance class'!$D74+'COM S curve-disconnect'!E204*'COM-Appliance class'!$E74","v":-16611.850202014892},{"$f":"F141*'COM-Appliance class'!$B74+'COM S curve-disconnect'!F162*'COM-Appliance class'!$C74+'COM S curve-disconnect'!F183*'COM-Appliance class'!$D74+'COM S curve-disconnect'!F204*'COM-Appliance class'!$E74","v":-16611.850202014892},{"$f":"G141*'COM-Appliance class'!$B74+'COM S curve-disconnect'!G162*'COM-Appliance class'!$C74+'COM S curve-disconnect'!G183*'COM-Appliance class'!$D74+'COM S curve-disconnect'!G204*'COM-Appliance class'!$E74","v":-23460.106313230041},{"$f":"H141*'COM-Appliance class'!$B74+'COM S curve-disconnect'!H162*'COM-Appliance class'!$C74+'COM S curve-disconnect'!H183*'COM-Appliance class'!$D74+'COM S curve-disconnect'!H204*'COM-Appliance class'!$E74","v":-23460.106313230041},{"$f":"I141*'COM-Appliance class'!$B74+'COM S curve-disconnect'!I162*'COM-Appliance class'!$C74+'COM S curve-disconnect'!I183*'COM-Appliance class'!$D74+'COM S curve-disconnect'!I204*'COM-Appliance class'!$E74","v":-23460.106313230041},{"$f":"J141*'COM-Appliance class'!$B74+'COM S curve-disconnect'!J162*'COM-Appliance class'!$C74+'COM S curve-disconnect'!J183*'COM-Appliance class'!$D74+'COM S curve-disconnect'!J204*'COM-Appliance class'!$E74","v":-25739.780410340427},{"$f":"K141*'COM-Appliance class'!$B74+'COM S curve-disconnect'!K162*'COM-Appliance class'!$C74+'COM S curve-disconnect'!K183*'COM-Appliance class'!$D74+'COM S curve-disconnect'!K204*'COM-Appliance class'!$E74","v":-24066.135083329307},{"$f":"L141*'COM-Appliance class'!$B74+'COM S curve-disconnect'!L162*'COM-Appliance class'!$C74+'COM S curve-disconnect'!L183*'COM-Appliance class'!$D74+'COM S curve-disconnect'!L204*'COM-Appliance class'!$E74","v":-23736.410175656394},{"$f":"M141*'COM-Appliance class'!$B74+'COM S curve-disconnect'!M162*'COM-Appliance class'!$C74+'COM S curve-disconnect'!M183*'COM-Appliance class'!$D74+'COM S curve-disconnect'!M204*'COM-Appliance class'!$E74","v":-23408.333892521845},{"$f":"N141*'COM-Appliance class'!$B74+'COM S curve-disconnect'!N162*'COM-Appliance class'!$C74+'COM S curve-disconnect'!N183*'COM-Appliance class'!$D74+'COM S curve-disconnect'!N204*'COM-Appliance class'!$E74","v":-23081.897990802969},{"$f":"O141*'COM-Appliance class'!$B74+'COM S curve-disconnect'!O162*'COM-Appliance class'!$C74+'COM S curve-disconnect'!O183*'COM-Appliance class'!$D74+'COM S curve-disconnect'!O204*'COM-Appliance class'!$E74","v":-22757.094268592678},{"$f":"P141*'COM-Appliance class'!$B74+'COM S curve-disconnect'!P162*'COM-Appliance class'!$C74+'COM S curve-disconnect'!P183*'COM-Appliance class'!$D74+'COM S curve-disconnect'!P204*'COM-Appliance class'!$E74","v":-22433.914564993451},{"$f":"Q141*'COM-Appliance class'!$B74+'COM S curve-disconnect'!Q162*'COM-Appliance class'!$C74+'COM S curve-disconnect'!Q183*'COM-Appliance class'!$D74+'COM S curve-disconnect'!Q204*'COM-Appliance class'!$E74","v":-22112.350759912213},{"$f":"R141*'COM-Appliance class'!$B74+'COM S curve-disconnect'!R162*'COM-Appliance class'!$C74+'COM S curve-disconnect'!R183*'COM-Appliance class'!$D74+'COM S curve-disconnect'!R204*'COM-Appliance class'!$E74","v":-21792.394773856387},{"$f":"S141*'COM-Appliance class'!$B74+'COM S curve-disconnect'!S162*'COM-Appliance class'!$C74+'COM S curve-disconnect'!S183*'COM-Appliance class'!$D74+'COM S curve-disconnect'!S204*'COM-Appliance class'!$E74","v":-21474.038567730837},{"$f":"T141*'COM-Appliance class'!$B74+'COM S curve-disconnect'!T162*'COM-Appliance class'!$C74+'COM S curve-disconnect'!T183*'COM-Appliance class'!$D74+'COM S curve-disconnect'!T204*'COM-Appliance class'!$E74","v":-21157.274142635917},{"$f":"U141*'COM-Appliance class'!$B74+'COM S curve-disconnect'!U162*'COM-Appliance class'!$C74+'COM S curve-disconnect'!U183*'COM-Appliance class'!$D74+'COM S curve-disconnect'!U204*'COM-Appliance class'!$E74","v":-20842.093539666468},{"$f":"V141*'COM-Appliance class'!$B74+'COM S curve-disconnect'!V162*'COM-Appliance class'!$C74+'COM S curve-disconnect'!V183*'COM-Appliance class'!$D74+'COM S curve-disconnect'!V204*'COM-Appliance class'!$E74","v":-20528.488839711867},{"$f":"W141*'COM-Appliance class'!$B74+'COM S curve-disconnect'!W162*'COM-Appliance class'!$C74+'COM S curve-disconnect'!W183*'COM-Appliance class'!$D74+'COM S curve-disconnect'!W204*'COM-Appliance class'!$E74","v":-20216.452163257032},{"$f":"X141*'COM-Appliance class'!$B74+'COM S curve-disconnect'!X162*'COM-Appliance class'!$C74+'COM S curve-disconnect'!X183*'COM-Appliance class'!$D74+'COM S curve-disconnect'!X204*'COM-Appliance class'!$E74","v":-19905.975670184482},{"$f":"Y141*'COM-Appliance class'!$B74+'COM S curve-disconnect'!Y162*'COM-Appliance class'!$C74+'COM S curve-disconnect'!Y183*'COM-Appliance class'!$D74+'COM S curve-disconnect'!Y204*'COM-Appliance class'!$E74","v":-19597.051559577296},{"$f":"Z141*'COM-Appliance class'!$B74+'COM S curve-disconnect'!Z162*'COM-Appliance class'!$C74+'COM S curve-disconnect'!Z183*'COM-Appliance class'!$D74+'COM S curve-disconnect'!Z204*'COM-Appliance class'!$E74","v":-19289.672069523138},{"$f":"AA141*'COM-Appliance class'!$B74+'COM S curve-disconnect'!AA162*'COM-Appliance class'!$C74+'COM S curve-disconnect'!AA183*'COM-Appliance class'!$D74+'COM S curve-disconnect'!AA204*'COM-Appliance class'!$E74","v":-18983.829476919251},{"$f":"AB141*'COM-Appliance class'!$B74+'COM S curve-disconnect'!AB162*'COM-Appliance class'!$C74+'COM S curve-disconnect'!AB183*'COM-Appliance class'!$D74+'COM S curve-disconnect'!AB204*'COM-Appliance class'!$E74","v":-18679.516097278385},{"$f":"AC141*'COM-Appliance class'!$B74+'COM S curve-disconnect'!AC162*'COM-Appliance class'!$C74+'COM S curve-disconnect'!AC183*'COM-Appliance class'!$D74+'COM S curve-disconnect'!AC204*'COM-Appliance class'!$E74","v":-18376.724284535729},{"$f":"AD141*'COM-Appliance class'!$B74+'COM S curve-disconnect'!AD162*'COM-Appliance class'!$C74+'COM S curve-disconnect'!AD183*'COM-Appliance class'!$D74+'COM S curve-disconnect'!AD204*'COM-Appliance class'!$E74","v":-18075.446430856784},{"$f":"AE141*'COM-Appliance class'!$B74+'COM S curve-disconnect'!AE162*'COM-Appliance class'!$C74+'COM S curve-disconnect'!AE183*'COM-Appliance class'!$D74+'COM S curve-disconnect'!AE204*'COM-Appliance class'!$E74","v":-17775.674966446233},{"$f":"AF141*'COM-Appliance class'!$B74+'COM S curve-disconnect'!AF162*'COM-Appliance class'!$C74+'COM S curve-disconnect'!AF183*'COM-Appliance class'!$D74+'COM S curve-disconnect'!AF204*'COM-Appliance class'!$E74","v":-17477.402359357729},{"$f":"AG141*'COM-Appliance class'!$B74+'COM S curve-disconnect'!AG162*'COM-Appliance class'!$C74+'COM S curve-disconnect'!AG183*'COM-Appliance class'!$D74+'COM S curve-disconnect'!AG204*'COM-Appliance class'!$E74","v":-17477.402359357729},{"$f":"AH141*'COM-Appliance class'!$B74+'COM S curve-disconnect'!AH162*'COM-Appliance class'!$C74+'COM S curve-disconnect'!AH183*'COM-Appliance class'!$D74+'COM S curve-disconnect'!AH204*'COM-Appliance class'!$E74","v":-17477.402359357729},{"$f":"AI141*'COM-Appliance class'!$B74+'COM S curve-disconnect'!AI162*'COM-Appliance class'!$C74+'COM S curve-disconnect'!AI183*'COM-Appliance class'!$D74+'COM S curve-disconnect'!AI204*'COM-Appliance class'!$E74","v":-17477.402359357729},{"$f":"AJ141*'COM-Appliance class'!$B74+'COM S curve-disconnect'!AJ162*'COM-Appliance class'!$C74+'COM S curve-disconnect'!AJ183*'COM-Appliance class'!$D74+'COM S curve-disconnect'!AJ204*'COM-Appliance class'!$E74","v":-17477.402359357729},{"$f":"AK141*'COM-Appliance class'!$B74+'COM S curve-disconnect'!AK162*'COM-Appliance class'!$C74+'COM S curve-disconnect'!AK183*'COM-Appliance class'!$D74+'COM S curve-disconnect'!AK204*'COM-Appliance class'!$E74","v":-17477.402359357729},{"$f":"AL141*'COM-Appliance class'!$B74+'COM S curve-disconnect'!AL162*'COM-Appliance class'!$C74+'COM S curve-disconnect'!AL183*'COM-Appliance class'!$D74+'COM S curve-disconnect'!AL204*'COM-Appliance class'!$E74","v":-17477.402359357729},{"$f":"AM141*'COM-Appliance class'!$B74+'COM S curve-disconnect'!AM162*'COM-Appliance class'!$C74+'COM S curve-disconnect'!AM183*'COM-Appliance class'!$D74+'COM S curve-disconnect'!AM204*'COM-Appliance class'!$E74","v":-17477.402359357729},{"$f":"AN141*'COM-Appliance class'!$B74+'COM S curve-disconnect'!AN162*'COM-Appliance class'!$C74+'COM S curve-disconnect'!AN183*'COM-Appliance class'!$D74+'COM S curve-disconnect'!AN204*'COM-Appliance class'!$E74","v":-17477.402359357729},{"$f":"AO141*'COM-Appliance class'!$B74+'COM S curve-disconnect'!AO162*'COM-Appliance class'!$C74+'COM S curve-disconnect'!AO183*'COM-Appliance class'!$D74+'COM S curve-disconnect'!AO204*'COM-Appliance class'!$E74","v":-17477.402359357729},{"$f":"AP141*'COM-Appliance class'!$B74+'COM S curve-disconnect'!AP162*'COM-Appliance class'!$C74+'COM S curve-disconnect'!AP183*'COM-Appliance class'!$D74+'COM S curve-disconnect'!AP204*'COM-Appliance class'!$E74","v":-17477.402359357729},{"$f":"AQ141*'COM-Appliance class'!$B74+'COM S curve-disconnect'!AQ162*'COM-Appliance class'!$C74+'COM S curve-disconnect'!AQ183*'COM-Appliance class'!$D74+'COM S curve-disconnect'!AQ204*'COM-Appliance class'!$E74","v":-17477.402359357729},{"$f":"AR141*'COM-Appliance class'!$B74+'COM S curve-disconnect'!AR162*'COM-Appliance class'!$C74+'COM S curve-disconnect'!AR183*'COM-Appliance class'!$D74+'COM S curve-disconnect'!AR204*'COM-Appliance class'!$E74","v":-17477.402359357729},{"$f":"AS141*'COM-Appliance class'!$B74+'COM S curve-disconnect'!AS162*'COM-Appliance class'!$C74+'COM S curve-disconnect'!AS183*'COM-Appliance class'!$D74+'COM S curve-disconnect'!AS204*'COM-Appliance class'!$E74","v":-17477.402359357729},{"$f":"AT141*'COM-Appliance class'!$B74+'COM S curve-disconnect'!AT162*'COM-Appliance class'!$C74+'COM S curve-disconnect'!AT183*'COM-Appliance class'!$D74+'COM S curve-disconnect'!AT204*'COM-Appliance class'!$E74","v":-17477.402359357729},{"$f":"AU141*'COM-Appliance class'!$B74+'COM S curve-disconnect'!AU162*'COM-Appliance class'!$C74+'COM S curve-disconnect'!AU183*'COM-Appliance class'!$D74+'COM S curve-disconnect'!AU204*'COM-Appliance class'!$E74","v":-17477.402359357729},{"$f":"AV141*'COM-Appliance class'!$B74+'COM S curve-disconnect'!AV162*'COM-Appliance class'!$C74+'COM S curve-disconnect'!AV183*'COM-Appliance class'!$D74+'COM S curve-disconnect'!AV204*'COM-Appliance class'!$E74","v":-17477.402359357729},{"$f":"AW141*'COM-Appliance class'!$B74+'COM S curve-disconnect'!AW162*'COM-Appliance class'!$C74+'COM S curve-disconnect'!AW183*'COM-Appliance class'!$D74+'COM S curve-disconnect'!AW204*'COM-Appliance class'!$E74","v":-17477.402359357729},{"$f":"AX141*'COM-Appliance class'!$B74+'COM S curve-disconnect'!AX162*'COM-Appliance class'!$C74+'COM S curve-disconnect'!AX183*'COM-Appliance class'!$D74+'COM S curve-disconnect'!AX204*'COM-Appliance class'!$E74","v":-17477.402359357729},{"$f":"AY141*'COM-Appliance class'!$B74+'COM S curve-disconnect'!AY162*'COM-Appliance class'!$C74+'COM S curve-disconnect'!AY183*'COM-Appliance class'!$D74+'COM S curve-disconnect'!AY204*'COM-Appliance class'!$E74","v":-17477.402359357729},{"$f":"AZ141*'COM-Appliance class'!$B74+'COM S curve-disconnect'!AZ162*'COM-Appliance class'!$C74+'COM S curve-disconnect'!AZ183*'COM-Appliance class'!$D74+'COM S curve-disconnect'!AZ204*'COM-Appliance class'!$E74","v":-17477.402359357729},{"$f":"BA141*'COM-Appliance class'!$B74+'COM S curve-disconnect'!BA162*'COM-Appliance class'!$C74+'COM S curve-disconnect'!BA183*'COM-Appliance class'!$D74+'COM S curve-disconnect'!BA204*'COM-Appliance class'!$E74","v":-17477.402359357729},{"$f":"BB141*'COM-Appliance class'!$B74+'COM S curve-disconnect'!BB162*'COM-Appliance class'!$C74+'COM S curve-disconnect'!BB183*'COM-Appliance class'!$D74+'COM S curve-disconnect'!BB204*'COM-Appliance class'!$E74","v":-17477.402359357729},{"$f":"BC141*'COM-Appliance class'!$B74+'COM S curve-disconnect'!BC162*'COM-Appliance class'!$C74+'COM S curve-disconnect'!BC183*'COM-Appliance class'!$D74+'COM S curve-disconnect'!BC204*'COM-Appliance class'!$E74","v":-17477.402359357729},{"$f":"BD141*'COM-Appliance class'!$B74+'COM S curve-disconnect'!BD162*'COM-Appliance class'!$C74+'COM S curve-disconnect'!BD183*'COM-Appliance class'!$D74+'COM S curve-disconnect'!BD204*'COM-Appliance class'!$E74","v":-17477.402359357729},{"$f":"BE141*'COM-Appliance class'!$B74+'COM S curve-disconnect'!BE162*'COM-Appliance class'!$C74+'COM S curve-disconnect'!BE183*'COM-Appliance class'!$D74+'COM S curve-disconnect'!BE204*'COM-Appliance class'!$E74","v":-17477.402359357729},{"$f":"BF141*'COM-Appliance class'!$B74+'COM S curve-disconnect'!BF162*'COM-Appliance class'!$C74+'COM S curve-disconnect'!BF183*'COM-Appliance class'!$D74+'COM S curve-disconnect'!BF204*'COM-Appliance class'!$E74","v":-17477.402359357729},{"$f":"BG141*'COM-Appliance class'!$B74+'COM S curve-disconnect'!BG162*'COM-Appliance class'!$C74+'COM S curve-disconnect'!BG183*'COM-Appliance class'!$D74+'COM S curve-disconnect'!BG204*'COM-Appliance class'!$E74","v":-17477.402359357729},{"$f":"BH141*'COM-Appliance class'!$B74+'COM S curve-disconnect'!BH162*'COM-Appliance class'!$C74+'COM S curve-disconnect'!BH183*'COM-Appliance class'!$D74+'COM S curve-disconnect'!BH204*'COM-Appliance class'!$E74","v":-17477.402359357729},{"$f":"BI141*'COM-Appliance class'!$B74+'COM S curve-disconnect'!BI162*'COM-Appliance class'!$C74+'COM S curve-disconnect'!BI183*'COM-Appliance class'!$D74+'COM S curve-disconnect'!BI204*'COM-Appliance class'!$E74","v":-17477.402359357729},{"$f":"BJ141*'COM-Appliance class'!$B74+'COM S curve-disconnect'!BJ162*'COM-Appliance class'!$C74+'COM S curve-disconnect'!BJ183*'COM-Appliance class'!$D74+'COM S curve-disconnect'!BJ204*'COM-Appliance class'!$E74","v":-17477.402359357729},{"$f":"BK141*'COM-Appliance class'!$B74+'COM S curve-disconnect'!BK162*'COM-Appliance class'!$C74+'COM S curve-disconnect'!BK183*'COM-Appliance class'!$D74+'COM S curve-disconnect'!BK204*'COM-Appliance class'!$E74","v":-17477.402359357729},{"$f":"BL141*'COM-Appliance class'!$B74+'COM S curve-disconnect'!BL162*'COM-Appliance class'!$C74+'COM S curve-disconnect'!BL183*'COM-Appliance class'!$D74+'COM S curve-disconnect'!BL204*'COM-Appliance class'!$E74","v":-17477.402359357729},{"$f":"BM141*'COM-Appliance class'!$B74+'COM S curve-disconnect'!BM162*'COM-Appliance class'!$C74+'COM S curve-disconnect'!BM183*'COM-Appliance class'!$D74+'COM S curve-disconnect'!BM204*'COM-Appliance class'!$E74","v":-17477.402359357729},{"$f":"BN141*'COM-Appliance class'!$B74+'COM S curve-disconnect'!BN162*'COM-Appliance class'!$C74+'COM S curve-disconnect'!BN183*'COM-Appliance class'!$D74+'COM S curve-disconnect'!BN204*'COM-Appliance class'!$E74","v":-17477.402359357729},{"$f":"BO141*'COM-Appliance class'!$B74+'COM S curve-disconnect'!BO162*'COM-Appliance class'!$C74+'COM S curve-disconnect'!BO183*'COM-Appliance class'!$D74+'COM S curve-disconnect'!BO204*'COM-Appliance class'!$E74","v":-17477.402359357729},{"$f":"BP141*'COM-Appliance class'!$B74+'COM S curve-disconnect'!BP162*'COM-Appliance class'!$C74+'COM S curve-disconnect'!BP183*'COM-Appliance class'!$D74+'COM S curve-disconnect'!BP204*'COM-Appliance class'!$E74","v":-17477.402359357729},{"$f":"BQ141*'COM-Appliance class'!$B74+'COM S curve-disconnect'!BQ162*'COM-Appliance class'!$C74+'COM S curve-disconnect'!BQ183*'COM-Appliance class'!$D74+'COM S curve-disconnect'!BQ204*'COM-Appliance class'!$E74","v":-17477.402359357729},{"$f":"BR141*'COM-Appliance class'!$B74+'COM S curve-disconnect'!BR162*'COM-Appliance class'!$C74+'COM S curve-disconnect'!BR183*'COM-Appliance class'!$D74+'COM S curve-disconnect'!BR204*'COM-Appliance class'!$E74","v":-17477.402359357729},{"$f":"BS141*'COM-Appliance class'!$B74+'COM S curve-disconnect'!BS162*'COM-Appliance class'!$C74+'COM S curve-disconnect'!BS183*'COM-Appliance class'!$D74+'COM S curve-disconnect'!BS204*'COM-Appliance class'!$E74","v":-17477.402359357729},{"$f":"BT141*'COM-Appliance class'!$B74+'COM S curve-disconnect'!BT162*'COM-Appliance class'!$C74+'COM S curve-disconnect'!BT183*'COM-Appliance class'!$D74+'COM S curve-disconnect'!BT204*'COM-Appliance class'!$E74","v":-17477.402359357729},{"$f":"BU141*'COM-Appliance class'!$B74+'COM S curve-disconnect'!BU162*'COM-Appliance class'!$C74+'COM S curve-disconnect'!BU183*'COM-Appliance class'!$D74+'COM S curve-disconnect'!BU204*'COM-Appliance class'!$E74","v":-17477.402359357729},{"$f":"BV141*'COM-Appliance class'!$B74+'COM S curve-disconnect'!BV162*'COM-Appliance class'!$C74+'COM S curve-disconnect'!BV183*'COM-Appliance class'!$D74+'COM S curve-disconnect'!BV204*'COM-Appliance class'!$E74","v":-17477.402359357729},{"$f":"BW141*'COM-Appliance class'!$B74+'COM S curve-disconnect'!BW162*'COM-Appliance class'!$C74+'COM S curve-disconnect'!BW183*'COM-Appliance class'!$D74+'COM S curve-disconnect'!BW204*'COM-Appliance class'!$E74","v":-17477.402359357729},{"$f":"BX141*'COM-Appliance class'!$B74+'COM S curve-disconnect'!BX162*'COM-Appliance class'!$C74+'COM S curve-disconnect'!BX183*'COM-Appliance class'!$D74+'COM S curve-disconnect'!BX204*'COM-Appliance class'!$E74","v":-17477.402359357729},{"$f":"BY141*'COM-Appliance class'!$B74+'COM S curve-disconnect'!BY162*'COM-Appliance class'!$C74+'COM S curve-disconnect'!BY183*'COM-Appliance class'!$D74+'COM S curve-disconnect'!BY204*'COM-Appliance class'!$E74","v":-17477.402359357729},{"$f":"BZ141*'COM-Appliance class'!$B74+'COM S curve-disconnect'!BZ162*'COM-Appliance class'!$C74+'COM S curve-disconnect'!BZ183*'COM-Appliance class'!$D74+'COM S curve-disconnect'!BZ204*'COM-Appliance class'!$E74","v":-17477.402359357729},{"$f":"CA141*'COM-Appliance class'!$B74+'COM S curve-disconnect'!CA162*'COM-Appliance class'!$C74+'COM S curve-disconnect'!CA183*'COM-Appliance class'!$D74+'COM S curve-disconnect'!CA204*'COM-Appliance class'!$E74","v":-17477.402359357729},{"$f":"CB141*'COM-Appliance class'!$B74+'COM S curve-disconnect'!CB162*'COM-Appliance class'!$C74+'COM S curve-disconnect'!CB183*'COM-Appliance class'!$D74+'COM S curve-disconnect'!CB204*'COM-Appliance class'!$E74","v":-17477.402359357729},{"$f":"CC141*'COM-Appliance class'!$B74+'COM S curve-disconnect'!CC162*'COM-Appliance class'!$C74+'COM S curve-disconnect'!CC183*'COM-Appliance class'!$D74+'COM S curve-disconnect'!CC204*'COM-Appliance class'!$E74","v":-17477.402359357729},{"$f":"CD141*'COM-Appliance class'!$B74+'COM S curve-disconnect'!CD162*'COM-Appliance class'!$C74+'COM S curve-disconnect'!CD183*'COM-Appliance class'!$D74+'COM S curve-disconnect'!CD204*'COM-Appliance class'!$E74","v":-17477.402359357729}]
["Cardinia (S)",null,{"$f":"C142*'COM-Appliance class'!$B75+'COM S curve-disconnect'!C163*'COM-Appliance class'!$C75+'COM S curve-disconnect'!C184*'COM-Appliance class'!$D75+'COM S curve-disconnect'!C205*'COM-Appliance class'!$E75","v":-14633.297940575547},{"$f":"D142*'COM-Appliance class'!$B75+'COM S curve-disconnect'!D163*'COM-Appliance class'!$C75+'COM S curve-disconnect'!D184*'COM-Appliance class'!$D75+'COM S curve-disconnect'!D205*'COM-Appliance class'!$E75","v":-14633.297940575547},{"$f":"E142*'COM-Appliance class'!$B75+'COM S curve-disconnect'!E163*'COM-Appliance class'!$C75+'COM S curve-disconnect'!E184*'COM-Appliance class'!$D75+'COM S curve-disconnect'!E205*'COM-Appliance class'!$E75","v":-9320.9408744161447},{"$f":"F142*'COM-Appliance class'!$B75+'COM S curve-disconnect'!F163*'COM-Appliance class'!$C75+'COM S curve-disconnect'!F184*'COM-Appliance class'!$D75+'COM S curve-disconnect'!F205*'COM-Appliance class'!$E75","v":-9320.9408744161447},{"$f":"G142*'COM-Appliance class'!$B75+'COM S curve-disconnect'!G163*'COM-Appliance class'!$C75+'COM S curve-disconnect'!G184*'COM-Appliance class'!$D75+'COM S curve-disconnect'!G205*'COM-Appliance class'!$E75","v":-13163.510457529355},{"$f":"H142*'COM-Appliance class'!$B75+'COM S curve-disconnect'!H163*'COM-Appliance class'!$C75+'COM S curve-disconnect'!H184*'COM-Appliance class'!$D75+'COM S curve-disconnect'!H205*'COM-Appliance class'!$E75","v":-13163.510457529355},{"$f":"I142*'COM-Appliance class'!$B75+'COM S curve-disconnect'!I163*'COM-Appliance class'!$C75+'COM S curve-disconnect'!I184*'COM-Appliance class'!$D75+'COM S curve-disconnect'!I205*'COM-Appliance class'!$E75","v":-13163.510457529355},{"$f":"J142*'COM-Appliance class'!$B75+'COM S curve-disconnect'!J163*'COM-Appliance class'!$C75+'COM S curve-disconnect'!J184*'COM-Appliance class'!$D75+'COM S curve-disconnect'!J205*'COM-Appliance class'!$E75","v":-14442.639947243064},{"$f":"K142*'COM-Appliance class'!$B75+'COM S curve-disconnect'!K163*'COM-Appliance class'!$C75+'COM S curve-disconnect'!K184*'COM-Appliance class'!$D75+'COM S curve-disconnect'!K205*'COM-Appliance class'!$E75","v":-13503.554357853309},{"$f":"L142*'COM-Appliance class'!$B75+'COM S curve-disconnect'!L163*'COM-Appliance class'!$C75+'COM S curve-disconnect'!L184*'COM-Appliance class'!$D75+'COM S curve-disconnect'!L205*'COM-Appliance class'!$E75","v":-13318.545082434441},{"$f":"M142*'COM-Appliance class'!$B75+'COM S curve-disconnect'!M163*'COM-Appliance class'!$C75+'COM S curve-disconnect'!M184*'COM-Appliance class'!$D75+'COM S curve-disconnect'!M205*'COM-Appliance class'!$E75","v":-13134.460853392666},{"$f":"N142*'COM-Appliance class'!$B75+'COM S curve-disconnect'!N163*'COM-Appliance class'!$C75+'COM S curve-disconnect'!N184*'COM-Appliance class'!$D75+'COM S curve-disconnect'!N205*'COM-Appliance class'!$E75","v":-12951.2970454961},{"$f":"O142*'COM-Appliance class'!$B75+'COM S curve-disconnect'!O163*'COM-Appliance class'!$C75+'COM S curve-disconnect'!O184*'COM-Appliance class'!$D75+'COM S curve-disconnect'!O205*'COM-Appliance class'!$E75","v":-12769.049056639014},{"$f":"P142*'COM-Appliance class'!$B75+'COM S curve-disconnect'!P163*'COM-Appliance class'!$C75+'COM S curve-disconnect'!P184*'COM-Appliance class'!$D75+'COM S curve-disconnect'!P205*'COM-Appliance class'!$E75","v":-12587.712307726222},{"$f":"Q142*'COM-Appliance class'!$B75+'COM S curve-disconnect'!Q163*'COM-Appliance class'!$C75+'COM S curve-disconnect'!Q184*'COM-Appliance class'!$D75+'COM S curve-disconnect'!Q205*'COM-Appliance class'!$E75","v":-12407.282242557985},{"$f":"R142*'COM-Appliance class'!$B75+'COM S curve-disconnect'!R163*'COM-Appliance class'!$C75+'COM S curve-disconnect'!R184*'COM-Appliance class'!$D75+'COM S curve-disconnect'!R205*'COM-Appliance class'!$E75","v":-12227.754327715596},{"$f":"S142*'COM-Appliance class'!$B75+'COM S curve-disconnect'!S163*'COM-Appliance class'!$C75+'COM S curve-disconnect'!S184*'COM-Appliance class'!$D75+'COM S curve-disconnect'!S205*'COM-Appliance class'!$E75","v":-12049.124052447416},{"$f":"T142*'COM-Appliance class'!$B75+'COM S curve-disconnect'!T163*'COM-Appliance class'!$C75+'COM S curve-disconnect'!T184*'COM-Appliance class'!$D75+'COM S curve-disconnect'!T205*'COM-Appliance class'!$E75","v":-11871.386928555577},{"$f":"U142*'COM-Appliance class'!$B75+'COM S curve-disconnect'!U163*'COM-Appliance class'!$C75+'COM S curve-disconnect'!U184*'COM-Appliance class'!$D75+'COM S curve-disconnect'!U205*'COM-Appliance class'!$E75","v":-11694.538490283197},{"$f":"V142*'COM-Appliance class'!$B75+'COM S curve-disconnect'!V163*'COM-Appliance class'!$C75+'COM S curve-disconnect'!V184*'COM-Appliance class'!$D75+'COM S curve-disconnect'!V205*'COM-Appliance class'!$E75","v":-11518.574294202177},{"$f":"W142*'COM-Appliance class'!$B75+'COM S curve-disconnect'!W163*'COM-Appliance class'!$C75+'COM S curve-disconnect'!W184*'COM-Appliance class'!$D75+'COM S curve-disconnect'!W205*'COM-Appliance class'!$E75","v":-11343.489919101563},{"$f":"X142*'COM-Appliance class'!$B75+'COM S curve-disconnect'!X163*'COM-Appliance class'!$C75+'COM S curve-disconnect'!X184*'COM-Appliance class'!$D75+'COM S curve-disconnect'!X205*'COM-Appliance class'!$E75","v":-11169.280965876453},{"$f":"Y142*'COM-Appliance class'!$B75+'COM S curve-disconnect'!Y163*'COM-Appliance class'!$C75+'COM S curve-disconnect'!Y184*'COM-Appliance class'!$D75+'COM S curve-disconnect'!Y205*'COM-Appliance class'!$E75","v":-10995.943057417469},{"$f":"Z142*'COM-Appliance class'!$B75+'COM S curve-disconnect'!Z163*'COM-Appliance class'!$C75+'COM S curve-disconnect'!Z184*'COM-Appliance class'!$D75+'COM S curve-disconnect'!Z205*'COM-Appliance class'!$E75","v":-10823.47183850078},{"$f":"AA142*'COM-Appliance class'!$B75+'COM S curve-disconnect'!AA163*'COM-Appliance class'!$C75+'COM S curve-disconnect'!AA184*'COM-Appliance class'!$D75+'COM S curve-disconnect'!AA205*'COM-Appliance class'!$E75","v":-10651.862975678672},{"$f":"AB142*'COM-Appliance class'!$B75+'COM S curve-disconnect'!AB163*'COM-Appliance class'!$C75+'COM S curve-disconnect'!AB184*'COM-Appliance class'!$D75+'COM S curve-disconnect'!AB205*'COM-Appliance class'!$E75","v":-10481.112157170675},{"$f":"AC142*'COM-Appliance class'!$B75+'COM S curve-disconnect'!AC163*'COM-Appliance class'!$C75+'COM S curve-disconnect'!AC184*'COM-Appliance class'!$D75+'COM S curve-disconnect'!AC205*'COM-Appliance class'!$E75","v":-10311.215092755223},{"$f":"AD142*'COM-Appliance class'!$B75+'COM S curve-disconnect'!AD163*'COM-Appliance class'!$C75+'COM S curve-disconnect'!AD184*'COM-Appliance class'!$D75+'COM S curve-disconnect'!AD205*'COM-Appliance class'!$E75","v":-10142.167513661845},{"$f":"AE142*'COM-Appliance class'!$B75+'COM S curve-disconnect'!AE163*'COM-Appliance class'!$C75+'COM S curve-disconnect'!AE184*'COM-Appliance class'!$D75+'COM S curve-disconnect'!AE205*'COM-Appliance class'!$E75","v":-9973.9651724639352},{"$f":"AF142*'COM-Appliance class'!$B75+'COM S curve-disconnect'!AF163*'COM-Appliance class'!$C75+'COM S curve-disconnect'!AF184*'COM-Appliance class'!$D75+'COM S curve-disconnect'!AF205*'COM-Appliance class'!$E75","v":-9806.6038429720138},{"$f":"AG142*'COM-Appliance class'!$B75+'COM S curve-disconnect'!AG163*'COM-Appliance class'!$C75+'COM S curve-disconnect'!AG184*'COM-Appliance class'!$D75+'COM S curve-disconnect'!AG205*'COM-Appliance class'!$E75","v":-9806.6038429720138},{"$f":"AH142*'COM-Appliance class'!$B75+'COM S curve-disconnect'!AH163*'COM-Appliance class'!$C75+'COM S curve-disconnect'!AH184*'COM-Appliance class'!$D75+'COM S curve-disconnect'!AH205*'COM-Appliance class'!$E75","v":-9806.6038429720138},{"$f":"AI142*'COM-Appliance class'!$B75+'COM S curve-disconnect'!AI163*'COM-Appliance class'!$C75+'COM S curve-disconnect'!AI184*'COM-Appliance class'!$D75+'COM S curve-disconnect'!AI205*'COM-Appliance class'!$E75","v":-9806.6038429720138},{"$f":"AJ142*'COM-Appliance class'!$B75+'COM S curve-disconnect'!AJ163*'COM-Appliance class'!$C75+'COM S curve-disconnect'!AJ184*'COM-Appliance class'!$D75+'COM S curve-disconnect'!AJ205*'COM-Appliance class'!$E75","v":-9806.6038429720138},{"$f":"AK142*'COM-Appliance class'!$B75+'COM S curve-disconnect'!AK163*'COM-Appliance class'!$C75+'COM S curve-disconnect'!AK184*'COM-Appliance class'!$D75+'COM S curve-disconnect'!AK205*'COM-Appliance class'!$E75","v":-9806.6038429720138},{"$f":"AL142*'COM-Appliance class'!$B75+'COM S curve-disconnect'!AL163*'COM-Appliance class'!$C75+'COM S curve-disconnect'!AL184*'COM-Appliance class'!$D75+'COM S curve-disconnect'!AL205*'COM-Appliance class'!$E75","v":-9806.6038429720138},{"$f":"AM142*'COM-Appliance class'!$B75+'COM S curve-disconnect'!AM163*'COM-Appliance class'!$C75+'COM S curve-disconnect'!AM184*'COM-Appliance class'!$D75+'COM S curve-disconnect'!AM205*'COM-Appliance class'!$E75","v":-9806.6038429720138},{"$f":"AN142*'COM-Appliance class'!$B75+'COM S curve-disconnect'!AN163*'COM-Appliance class'!$C75+'COM S curve-disconnect'!AN184*'COM-Appliance class'!$D75+'COM S curve-disconnect'!AN205*'COM-Appliance class'!$E75","v":-9806.6038429720138},{"$f":"AO142*'COM-Appliance class'!$B75+'COM S curve-disconnect'!AO163*'COM-Appliance class'!$C75+'COM S curve-disconnect'!AO184*'COM-Appliance class'!$D75+'COM S curve-disconnect'!AO205*'COM-Appliance class'!$E75","v":-9806.6038429720138},{"$f":"AP142*'COM-Appliance class'!$B75+'COM S curve-disconnect'!AP163*'COM-Appliance class'!$C75+'COM S curve-disconnect'!AP184*'COM-Appliance class'!$D75+'COM S curve-disconnect'!AP205*'COM-Appliance class'!$E75","v":-9806.6038429720138},{"$f":"AQ142*'COM-Appliance class'!$B75+'COM S curve-disconnect'!AQ163*'COM-Appliance class'!$C75+'COM S curve-disconnect'!AQ184*'COM-Appliance class'!$D75+'COM S curve-disconnect'!AQ205*'COM-Appliance class'!$E75","v":-9806.6038429720138},{"$f":"AR142*'COM-Appliance class'!$B75+'COM S curve-disconnect'!AR163*'COM-Appliance class'!$C75+'COM S curve-disconnect'!AR184*'COM-Appliance class'!$D75+'COM S curve-disconnect'!AR205*'COM-Appliance class'!$E75","v":-9806.6038429720138},{"$f":"AS142*'COM-Appliance class'!$B75+'COM S curve-disconnect'!AS163*'COM-Appliance class'!$C75+'COM S curve-disconnect'!AS184*'COM-Appliance class'!$D75+'COM S curve-disconnect'!AS205*'COM-Appliance class'!$E75","v":-9806.6038429720138},{"$f":"AT142*'COM-Appliance class'!$B75+'COM S curve-disconnect'!AT163*'COM-Appliance class'!$C75+'COM S curve-disconnect'!AT184*'COM-Appliance class'!$D75+'COM S curve-disconnect'!AT205*'COM-Appliance class'!$E75","v":-9806.6038429720138},{"$f":"AU142*'COM-Appliance class'!$B75+'COM S curve-disconnect'!AU163*'COM-Appliance class'!$C75+'COM S curve-disconnect'!AU184*'COM-Appliance class'!$D75+'COM S curve-disconnect'!AU205*'COM-Appliance class'!$E75","v":-9806.6038429720138},{"$f":"AV142*'COM-Appliance class'!$B75+'COM S curve-disconnect'!AV163*'COM-Appliance class'!$C75+'COM S curve-disconnect'!AV184*'COM-Appliance class'!$D75+'COM S curve-disconnect'!AV205*'COM-Appliance class'!$E75","v":-9806.6038429720138},{"$f":"AW142*'COM-Appliance class'!$B75+'COM S curve-disconnect'!AW163*'COM-Appliance class'!$C75+'COM S curve-disconnect'!AW184*'COM-Appliance class'!$D75+'COM S curve-disconnect'!AW205*'COM-Appliance class'!$E75","v":-9806.6038429720138},{"$f":"AX142*'COM-Appliance class'!$B75+'COM S curve-disconnect'!AX163*'COM-Appliance class'!$C75+'COM S curve-disconnect'!AX184*'COM-Appliance class'!$D75+'COM S curve-disconnect'!AX205*'COM-Appliance class'!$E75","v":-9806.6038429720138},{"$f":"AY142*'COM-Appliance class'!$B75+'COM S curve-disconnect'!AY163*'COM-Appliance class'!$C75+'COM S curve-disconnect'!AY184*'COM-Appliance class'!$D75+'COM S curve-disconnect'!AY205*'COM-Appliance class'!$E75","v":-9806.6038429720138},{"$f":"AZ142*'COM-Appliance class'!$B75+'COM S curve-disconnect'!AZ163*'COM-Appliance class'!$C75+'COM S curve-disconnect'!AZ184*'COM-Appliance class'!$D75+'COM S curve-disconnect'!AZ205*'COM-Appliance class'!$E75","v":-9806.6038429720138},{"$f":"BA142*'COM-Appliance class'!$B75+'COM S curve-disconnect'!BA163*'COM-Appliance class'!$C75+'COM S curve-disconnect'!BA184*'COM-Appliance class'!$D75+'COM S curve-disconnect'!BA205*'COM-Appliance class'!$E75","v":-9806.6038429720138},{"$f":"BB142*'COM-Appliance class'!$B75+'COM S curve-disconnect'!BB163*'COM-Appliance class'!$C75+'COM S curve-disconnect'!BB184*'COM-Appliance class'!$D75+'COM S curve-disconnect'!BB205*'COM-Appliance class'!$E75","v":-9806.6038429720138},{"$f":"BC142*'COM-Appliance class'!$B75+'COM S curve-disconnect'!BC163*'COM-Appliance class'!$C75+'COM S curve-disconnect'!BC184*'COM-Appliance class'!$D75+'COM S curve-disconnect'!BC205*'COM-Appliance class'!$E75","v":-9806.6038429720138},{"$f":"BD142*'COM-Appliance class'!$B75+'COM S curve-disconnect'!BD163*'COM-Appliance class'!$C75+'COM S curve-disconnect'!BD184*'COM-Appliance class'!$D75+'COM S curve-disconnect'!BD205*'COM-Appliance class'!$E75","v":-9806.6038429720138},{"$f":"BE142*'COM-Appliance class'!$B75+'COM S curve-disconnect'!BE163*'COM-Appliance class'!$C75+'COM S curve-disconnect'!BE184*'COM-Appliance class'!$D75+'COM S curve-disconnect'!BE205*'COM-Appliance class'!$E75","v":-9806.6038429720138},{"$f":"BF142*'COM-Appliance class'!$B75+'COM S curve-disconnect'!BF163*'COM-Appliance class'!$C75+'COM S curve-disconnect'!BF184*'COM-Appliance class'!$D75+'COM S curve-disconnect'!BF205*'COM-Appliance class'!$E75","v":-9806.6038429720138},{"$f":"BG142*'COM-Appliance class'!$B75+'COM S curve-disconnect'!BG163*'COM-Appliance class'!$C75+'COM S curve-disconnect'!BG184*'COM-Appliance class'!$D75+'COM S curve-disconnect'!BG205*'COM-Appliance class'!$E75","v":-9806.6038429720138},{"$f":"BH142*'COM-Appliance class'!$B75+'COM S curve-disconnect'!BH163*'COM-Appliance class'!$C75+'COM S curve-disconnect'!BH184*'COM-Appliance class'!$D75+'COM S curve-disconnect'!BH205*'COM-Appliance class'!$E75","v":-9806.6038429720138},{"$f":"BI142*'COM-Appliance class'!$B75+'COM S curve-disconnect'!BI163*'COM-Appliance class'!$C75+'COM S curve-disconnect'!BI184*'COM-Appliance class'!$D75+'COM S curve-disconnect'!BI205*'COM-Appliance class'!$E75","v":-9806.6038429720138},{"$f":"BJ142*'COM-Appliance class'!$B75+'COM S curve-disconnect'!BJ163*'COM-Appliance class'!$C75+'COM S curve-disconnect'!BJ184*'COM-Appliance class'!$D75+'COM S curve-disconnect'!BJ205*'COM-Appliance class'!$E75","v":-9806.6038429720138},{"$f":"BK142*'COM-Appliance class'!$B75+'COM S curve-disconnect'!BK163*'COM-Appliance class'!$C75+'COM S curve-disconnect'!BK184*'COM-Appliance class'!$D75+'COM S curve-disconnect'!BK205*'COM-Appliance class'!$E75","v":-9806.6038429720138},{"$f":"BL142*'COM-Appliance class'!$B75+'COM S curve-disconnect'!BL163*'COM-Appliance class'!$C75+'COM S curve-disconnect'!BL184*'COM-Appliance class'!$D75+'COM S curve-disconnect'!BL205*'COM-Appliance class'!$E75","v":-9806.6038429720138},{"$f":"BM142*'COM-Appliance class'!$B75+'COM S curve-disconnect'!BM163*'COM-Appliance class'!$C75+'COM S curve-disconnect'!BM184*'COM-Appliance class'!$D75+'COM S curve-disconnect'!BM205*'COM-Appliance class'!$E75","v":-9806.6038429720138},{"$f":"BN142*'COM-Appliance class'!$B75+'COM S curve-disconnect'!BN163*'COM-Appliance class'!$C75+'COM S curve-disconnect'!BN184*'COM-Appliance class'!$D75+'COM S curve-disconnect'!BN205*'COM-Appliance class'!$E75","v":-9806.6038429720138},{"$f":"BO142*'COM-Appliance class'!$B75+'COM S curve-disconnect'!BO163*'COM-Appliance class'!$C75+'COM S curve-disconnect'!BO184*'COM-Appliance class'!$D75+'COM S curve-disconnect'!BO205*'COM-Appliance class'!$E75","v":-9806.6038429720138},{"$f":"BP142*'COM-Appliance class'!$B75+'COM S curve-disconnect'!BP163*'COM-Appliance class'!$C75+'COM S curve-disconnect'!BP184*'COM-Appliance class'!$D75+'COM S curve-disconnect'!BP205*'COM-Appliance class'!$E75","v":-9806.6038429720138},{"$f":"BQ142*'COM-Appliance class'!$B75+'COM S curve-disconnect'!BQ163*'COM-Appliance class'!$C75+'COM S curve-disconnect'!BQ184*'COM-Appliance class'!$D75+'COM S curve-disconnect'!BQ205*'COM-Appliance class'!$E75","v":-9806.6038429720138},{"$f":"BR142*'COM-Appliance class'!$B75+'COM S curve-disconnect'!BR163*'COM-Appliance class'!$C75+'COM S curve-disconnect'!BR184*'COM-Appliance class'!$D75+'COM S curve-disconnect'!BR205*'COM-Appliance class'!$E75","v":-9806.6038429720138},{"$f":"BS142*'COM-Appliance class'!$B75+'COM S curve-disconnect'!BS163*'COM-Appliance class'!$C75+'COM S curve-disconnect'!BS184*'COM-Appliance class'!$D75+'COM S curve-disconnect'!BS205*'COM-Appliance class'!$E75","v":-9806.6038429720138},{"$f":"BT142*'COM-Appliance class'!$B75+'COM S curve-disconnect'!BT163*'COM-Appliance class'!$C75+'COM S curve-disconnect'!BT184*'COM-Appliance class'!$D75+'COM S curve-disconnect'!BT205*'COM-Appliance class'!$E75","v":-9806.6038429720138},{"$f":"BU142*'COM-Appliance class'!$B75+'COM S curve-disconnect'!BU163*'COM-Appliance class'!$C75+'COM S curve-disconnect'!BU184*'COM-Appliance class'!$D75+'COM S curve-disconnect'!BU205*'COM-Appliance class'!$E75","v":-9806.6038429720138},{"$f":"BV142*'COM-Appliance class'!$B75+'COM S curve-disconnect'!BV163*'COM-Appliance class'!$C75+'COM S curve-disconnect'!BV184*'COM-Appliance class'!$D75+'COM S curve-disconnect'!BV205*'COM-Appliance class'!$E75","v":-9806.6038429720138},{"$f":"BW142*'COM-Appliance class'!$B75+'COM S curve-disconnect'!BW163*'COM-Appliance class'!$C75+'COM S curve-disconnect'!BW184*'COM-Appliance class'!$D75+'COM S curve-disconnect'!BW205*'COM-Appliance class'!$E75","v":-9806.6038429720138},{"$f":"BX142*'COM-Appliance class'!$B75+'COM S curve-disconnect'!BX163*'COM-Appliance class'!$C75+'COM S curve-disconnect'!BX184*'COM-Appliance class'!$D75+'COM S curve-disconnect'!BX205*'COM-Appliance class'!$E75","v":-9806.6038429720138},{"$f":"BY142*'COM-Appliance class'!$B75+'COM S curve-disconnect'!BY163*'COM-Appliance class'!$C75+'COM S curve-disconnect'!BY184*'COM-Appliance class'!$D75+'COM S curve-disconnect'!BY205*'COM-Appliance class'!$E75","v":-9806.6038429720138},{"$f":"BZ142*'COM-Appliance class'!$B75+'COM S curve-disconnect'!BZ163*'COM-Appliance class'!$C75+'COM S curve-disconnect'!BZ184*'COM-Appliance class'!$D75+'COM S curve-disconnect'!BZ205*'COM-Appliance class'!$E75","v":-9806.6038429720138},{"$f":"CA142*'COM-Appliance class'!$B75+'COM S curve-disconnect'!CA163*'COM-Appliance class'!$C75+'COM S curve-disconnect'!CA184*'COM-Appliance class'!$D75+'COM S curve-disconnect'!CA205*'COM-Appliance class'!$E75","v":-9806.6038429720138},{"$f":"CB142*'COM-Appliance class'!$B75+'COM S curve-disconnect'!CB163*'COM-Appliance class'!$C75+'COM S curve-disconnect'!CB184*'COM-Appliance class'!$D75+'COM S curve-disconnect'!CB205*'COM-Appliance class'!$E75","v":-9806.6038429720138},{"$f":"CC142*'COM-Appliance class'!$B75+'COM S curve-disconnect'!CC163*'COM-Appliance class'!$C75+'COM S curve-disconnect'!CC184*'COM-Appliance class'!$D75+'COM S curve-disconnect'!CC205*'COM-Appliance class'!$E75","v":-9806.6038429720138},{"$f":"CD142*'COM-Appliance class'!$B75+'COM S curve-disconnect'!CD163*'COM-Appliance class'!$C75+'COM S curve-disconnect'!CD184*'COM-Appliance class'!$D75+'COM S curve-disconnect'!CD205*'COM-Appliance class'!$E75","v":-9806.6038429720138}]
["Casey (C)",null,{"$f":"C143*'COM-Appliance class'!$B76+'COM S curve-disconnect'!C164*'COM-Appliance class'!$C76+'COM S curve-disconnect'!C185*'COM-Appliance class'!$D76+'COM S curve-disconnect'!C206*'COM-Appliance class'!$E76","v":-16890.101955101392},{"$f":"D143*'COM-Appliance class'!$B76+'COM S curve-disconnect'!D164*'COM-Appliance class'!$C76+'COM S curve-disconnect'!D185*'COM-Appliance class'!$D76+'COM S curve-disconnect'!D206*'COM-Appliance class'!$E76","v":-16890.101955101392},{"$f":"E143*'COM-Appliance class'!$B76+'COM S curve-disconnect'!E164*'COM-Appliance class'!$C76+'COM S curve-disconnect'!E185*'COM-Appliance class'!$D76+'COM S curve-disconnect'!E206*'COM-Appliance class'!$E76","v":-10758.452559749399},{"$f":"F143*'COM-Appliance class'!$B76+'COM S curve-disconnect'!F164*'COM-Appliance class'!$C76+'COM S curve-disconnect'!F185*'COM-Appliance class'!$D76+'COM S curve-disconnect'!F206*'COM-Appliance class'!$E76","v":-10758.452559749399},{"$f":"G143*'COM-Appliance class'!$B76+'COM S curve-disconnect'!G164*'COM-Appliance class'!$C76+'COM S curve-disconnect'!G185*'COM-Appliance class'!$D76+'COM S curve-disconnect'!G206*'COM-Appliance class'!$E76","v":-15193.638140738185},{"$f":"H143*'COM-Appliance class'!$B76+'COM S curve-disconnect'!H164*'COM-Appliance class'!$C76+'COM S curve-disconnect'!H185*'COM-Appliance class'!$D76+'COM S curve-disconnect'!H206*'COM-Appliance class'!$E76","v":-15193.638140738185},{"$f":"I143*'COM-Appliance class'!$B76+'COM S curve-disconnect'!I164*'COM-Appliance class'!$C76+'COM S curve-disconnect'!I185*'COM-Appliance class'!$D76+'COM S curve-disconnect'!I206*'COM-Appliance class'!$E76","v":-15193.638140738185},{"$f":"J143*'COM-Appliance class'!$B76+'COM S curve-disconnect'!J164*'COM-Appliance class'!$C76+'COM S curve-disconnect'!J185*'COM-Appliance class'!$D76+'COM S curve-disconnect'!J206*'COM-Appliance class'!$E76","v":-16670.039945907178},{"$f":"K143*'COM-Appliance class'!$B76+'COM S curve-disconnect'!K164*'COM-Appliance class'!$C76+'COM S curve-disconnect'!K185*'COM-Appliance class'!$D76+'COM S curve-disconnect'!K206*'COM-Appliance class'!$E76","v":-15586.124931412798},{"$f":"L143*'COM-Appliance class'!$B76+'COM S curve-disconnect'!L164*'COM-Appliance class'!$C76+'COM S curve-disconnect'!L185*'COM-Appliance class'!$D76+'COM S curve-disconnect'!L206*'COM-Appliance class'!$E76","v":-15372.582807337025},{"$f":"M143*'COM-Appliance class'!$B76+'COM S curve-disconnect'!M164*'COM-Appliance class'!$C76+'COM S curve-disconnect'!M185*'COM-Appliance class'!$D76+'COM S curve-disconnect'!M206*'COM-Appliance class'!$E76","v":-15160.108393881632},{"$f":"N143*'COM-Appliance class'!$B76+'COM S curve-disconnect'!N164*'COM-Appliance class'!$C76+'COM S curve-disconnect'!N185*'COM-Appliance class'!$D76+'COM S curve-disconnect'!N206*'COM-Appliance class'!$E76","v":-14948.696352493516},{"$f":"O143*'COM-Appliance class'!$B76+'COM S curve-disconnect'!O164*'COM-Appliance class'!$C76+'COM S curve-disconnect'!O185*'COM-Appliance class'!$D76+'COM S curve-disconnect'!O206*'COM-Appliance class'!$E76","v":-14738.341371312337},{"$f":"P143*'COM-Appliance class'!$B76+'COM S curve-disconnect'!P164*'COM-Appliance class'!$C76+'COM S curve-disconnect'!P185*'COM-Appliance class'!$D76+'COM S curve-disconnect'!P206*'COM-Appliance class'!$E76","v":-14529.038165037073},{"$f":"Q143*'COM-Appliance class'!$B76+'COM S curve-disconnect'!Q164*'COM-Appliance class'!$C76+'COM S curve-disconnect'!Q185*'COM-Appliance class'!$D76+'COM S curve-disconnect'!Q206*'COM-Appliance class'!$E76","v":-14320.781474793177},{"$f":"R143*'COM-Appliance class'!$B76+'COM S curve-disconnect'!R164*'COM-Appliance class'!$C76+'COM S curve-disconnect'!R185*'COM-Appliance class'!$D76+'COM S curve-disconnect'!R206*'COM-Appliance class'!$E76","v":-14113.566068000504},{"$f":"S143*'COM-Appliance class'!$B76+'COM S curve-disconnect'!S164*'COM-Appliance class'!$C76+'COM S curve-disconnect'!S185*'COM-Appliance class'!$D76+'COM S curve-disconnect'!S206*'COM-Appliance class'!$E76","v":-13907.386738241796},{"$f":"T143*'COM-Appliance class'!$B76+'COM S curve-disconnect'!T164*'COM-Appliance class'!$C76+'COM S curve-disconnect'!T185*'COM-Appliance class'!$D76+'COM S curve-disconnect'!T206*'COM-Appliance class'!$E76","v":-13702.238305131879},{"$f":"U143*'COM-Appliance class'!$B76+'COM S curve-disconnect'!U164*'COM-Appliance class'!$C76+'COM S curve-disconnect'!U185*'COM-Appliance class'!$D76+'COM S curve-disconnect'!U206*'COM-Appliance class'!$E76","v":-13498.115614187511},{"$f":"V143*'COM-Appliance class'!$B76+'COM S curve-disconnect'!V164*'COM-Appliance class'!$C76+'COM S curve-disconnect'!V185*'COM-Appliance class'!$D76+'COM S curve-disconnect'!V206*'COM-Appliance class'!$E76","v":-13295.013536697861},{"$f":"W143*'COM-Appliance class'!$B76+'COM S curve-disconnect'!W164*'COM-Appliance class'!$C76+'COM S curve-disconnect'!W185*'COM-Appliance class'!$D76+'COM S curve-disconnect'!W206*'COM-Appliance class'!$E76","v":-13092.926969595663},{"$f":"X143*'COM-Appliance class'!$B76+'COM S curve-disconnect'!X164*'COM-Appliance class'!$C76+'COM S curve-disconnect'!X185*'COM-Appliance class'!$D76+'COM S curve-disconnect'!X206*'COM-Appliance class'!$E76","v":-12891.850835328976},{"$f":"Y143*'COM-Appliance class'!$B76+'COM S curve-disconnect'!Y164*'COM-Appliance class'!$C76+'COM S curve-disconnect'!Y185*'COM-Appliance class'!$D76+'COM S curve-disconnect'!Y206*'COM-Appliance class'!$E76","v":-12691.780081733625},{"$f":"Z143*'COM-Appliance class'!$B76+'COM S curve-disconnect'!Z164*'COM-Appliance class'!$C76+'COM S curve-disconnect'!Z185*'COM-Appliance class'!$D76+'COM S curve-disconnect'!Z206*'COM-Appliance class'!$E76","v":-12492.709681906246},{"$f":"AA143*'COM-Appliance class'!$B76+'COM S curve-disconnect'!AA164*'COM-Appliance class'!$C76+'COM S curve-disconnect'!AA185*'COM-Appliance class'!$D76+'COM S curve-disconnect'!AA206*'COM-Appliance class'!$E76","v":-12294.634634078007},{"$f":"AB143*'COM-Appliance class'!$B76+'COM S curve-disconnect'!AB164*'COM-Appliance class'!$C76+'COM S curve-disconnect'!AB185*'COM-Appliance class'!$D76+'COM S curve-disconnect'!AB206*'COM-Appliance class'!$E76","v":-12097.549961488909},{"$f":"AC143*'COM-Appliance class'!$B76+'COM S curve-disconnect'!AC164*'COM-Appliance class'!$C76+'COM S curve-disconnect'!AC185*'COM-Appliance class'!$D76+'COM S curve-disconnect'!AC206*'COM-Appliance class'!$E76","v":-11901.450712262758},{"$f":"AD143*'COM-Appliance class'!$B76+'COM S curve-disconnect'!AD164*'COM-Appliance class'!$C76+'COM S curve-disconnect'!AD185*'COM-Appliance class'!$D76+'COM S curve-disconnect'!AD206*'COM-Appliance class'!$E76","v":-11706.331959282737},{"$f":"AE143*'COM-Appliance class'!$B76+'COM S curve-disconnect'!AE164*'COM-Appliance class'!$C76+'COM S curve-disconnect'!AE185*'COM-Appliance class'!$D76+'COM S curve-disconnect'!AE206*'COM-Appliance class'!$E76","v":-11512.188800067615},{"$f":"AF143*'COM-Appliance class'!$B76+'COM S curve-disconnect'!AF164*'COM-Appliance class'!$C76+'COM S curve-disconnect'!AF185*'COM-Appliance class'!$D76+'COM S curve-disconnect'!AF206*'COM-Appliance class'!$E76","v":-11319.016356648568},{"$f":"AG143*'COM-Appliance class'!$B76+'COM S curve-disconnect'!AG164*'COM-Appliance class'!$C76+'COM S curve-disconnect'!AG185*'COM-Appliance class'!$D76+'COM S curve-disconnect'!AG206*'COM-Appliance class'!$E76","v":-11319.016356648568},{"$f":"AH143*'COM-Appliance class'!$B76+'COM S curve-disconnect'!AH164*'COM-Appliance class'!$C76+'COM S curve-disconnect'!AH185*'COM-Appliance class'!$D76+'COM S curve-disconnect'!AH206*'COM-Appliance class'!$E76","v":-11319.016356648568},{"$f":"AI143*'COM-Appliance class'!$B76+'COM S curve-disconnect'!AI164*'COM-Appliance class'!$C76+'COM S curve-disconnect'!AI185*'COM-Appliance class'!$D76+'COM S curve-disconnect'!AI206*'COM-Appliance class'!$E76","v":-11319.016356648568},{"$f":"AJ143*'COM-Appliance class'!$B76+'COM S curve-disconnect'!AJ164*'COM-Appliance class'!$C76+'COM S curve-disconnect'!AJ185*'COM-Appliance class'!$D76+'COM S curve-disconnect'!AJ206*'COM-Appliance class'!$E76","v":-11319.016356648568},{"$f":"AK143*'COM-Appliance class'!$B76+'COM S curve-disconnect'!AK164*'COM-Appliance class'!$C76+'COM S curve-disconnect'!AK185*'COM-Appliance class'!$D76+'COM S curve-disconnect'!AK206*'COM-Appliance class'!$E76","v":-11319.016356648568},{"$f":"AL143*'COM-Appliance class'!$B76+'COM S curve-disconnect'!AL164*'COM-Appliance class'!$C76+'COM S curve-disconnect'!AL185*'COM-Appliance class'!$D76+'COM S curve-disconnect'!AL206*'COM-Appliance class'!$E76","v":-11319.016356648568},{"$f":"AM143*'COM-Appliance class'!$B76+'COM S curve-disconnect'!AM164*'COM-Appliance class'!$C76+'COM S curve-disconnect'!AM185*'COM-Appliance class'!$D76+'COM S curve-disconnect'!AM206*'COM-Appliance class'!$E76","v":-11319.016356648568},{"$f":"AN143*'COM-Appliance class'!$B76+'COM S curve-disconnect'!AN164*'COM-Appliance class'!$C76+'COM S curve-disconnect'!AN185*'COM-Appliance class'!$D76+'COM S curve-disconnect'!AN206*'COM-Appliance class'!$E76","v":-11319.016356648568},{"$f":"AO143*'COM-Appliance class'!$B76+'COM S curve-disconnect'!AO164*'COM-Appliance class'!$C76+'COM S curve-disconnect'!AO185*'COM-Appliance class'!$D76+'COM S curve-disconnect'!AO206*'COM-Appliance class'!$E76","v":-11319.016356648568},{"$f":"AP143*'COM-Appliance class'!$B76+'COM S curve-disconnect'!AP164*'COM-Appliance class'!$C76+'COM S curve-disconnect'!AP185*'COM-Appliance class'!$D76+'COM S curve-disconnect'!AP206*'COM-Appliance class'!$E76","v":-11319.016356648568},{"$f":"AQ143*'COM-Appliance class'!$B76+'COM S curve-disconnect'!AQ164*'COM-Appliance class'!$C76+'COM S curve-disconnect'!AQ185*'COM-Appliance class'!$D76+'COM S curve-disconnect'!AQ206*'COM-Appliance class'!$E76","v":-11319.016356648568},{"$f":"AR143*'COM-Appliance class'!$B76+'COM S curve-disconnect'!AR164*'COM-Appliance class'!$C76+'COM S curve-disconnect'!AR185*'COM-Appliance class'!$D76+'COM S curve-disconnect'!AR206*'COM-Appliance class'!$E76","v":-11319.016356648568},{"$f":"AS143*'COM-Appliance class'!$B76+'COM S curve-disconnect'!AS164*'COM-Appliance class'!$C76+'COM S curve-disconnect'!AS185*'COM-Appliance class'!$D76+'COM S curve-disconnect'!AS206*'COM-Appliance class'!$E76","v":-11319.016356648568},{"$f":"AT143*'COM-Appliance class'!$B76+'COM S curve-disconnect'!AT164*'COM-Appliance class'!$C76+'COM S curve-disconnect'!AT185*'COM-Appliance class'!$D76+'COM S curve-disconnect'!AT206*'COM-Appliance class'!$E76","v":-11319.016356648568},{"$f":"AU143*'COM-Appliance class'!$B76+'COM S curve-disconnect'!AU164*'COM-Appliance class'!$C76+'COM S curve-disconnect'!AU185*'COM-Appliance class'!$D76+'COM S curve-disconnect'!AU206*'COM-Appliance class'!$E76","v":-11319.016356648568},{"$f":"AV143*'COM-Appliance class'!$B76+'COM S curve-disconnect'!AV164*'COM-Appliance class'!$C76+'COM S curve-disconnect'!AV185*'COM-Appliance class'!$D76+'COM S curve-disconnect'!AV206*'COM-Appliance class'!$E76","v":-11319.016356648568},{"$f":"AW143*'COM-Appliance class'!$B76+'COM S curve-disconnect'!AW164*'COM-Appliance class'!$C76+'COM S curve-disconnect'!AW185*'COM-Appliance class'!$D76+'COM S curve-disconnect'!AW206*'COM-Appliance class'!$E76","v":-11319.016356648568},{"$f":"AX143*'COM-Appliance class'!$B76+'COM S curve-disconnect'!AX164*'COM-Appliance class'!$C76+'COM S curve-disconnect'!AX185*'COM-Appliance class'!$D76+'COM S curve-disconnect'!AX206*'COM-Appliance class'!$E76","v":-11319.016356648568},{"$f":"AY143*'COM-Appliance class'!$B76+'COM S curve-disconnect'!AY164*'COM-Appliance class'!$C76+'COM S curve-disconnect'!AY185*'COM-Appliance class'!$D76+'COM S curve-disconnect'!AY206*'COM-Appliance class'!$E76","v":-11319.016356648568},{"$f":"AZ143*'COM-Appliance class'!$B76+'COM S curve-disconnect'!AZ164*'COM-Appliance class'!$C76+'COM S curve-disconnect'!AZ185*'COM-Appliance class'!$D76+'COM S curve-disconnect'!AZ206*'COM-Appliance class'!$E76","v":-11319.016356648568},{"$f":"BA143*'COM-Appliance class'!$B76+'COM S curve-disconnect'!BA164*'COM-Appliance class'!$C76+'COM S curve-disconnect'!BA185*'COM-Appliance class'!$D76+'COM S curve-disconnect'!BA206*'COM-Appliance class'!$E76","v":-11319.016356648568},{"$f":"BB143*'COM-Appliance class'!$B76+'COM S curve-disconnect'!BB164*'COM-Appliance class'!$C76+'COM S curve-disconnect'!BB185*'COM-Appliance class'!$D76+'COM S curve-disconnect'!BB206*'COM-Appliance class'!$E76","v":-11319.016356648568},{"$f":"BC143*'COM-Appliance class'!$B76+'COM S curve-disconnect'!BC164*'COM-Appliance class'!$C76+'COM S curve-disconnect'!BC185*'COM-Appliance class'!$D76+'COM S curve-disconnect'!BC206*'COM-Appliance class'!$E76","v":-11319.016356648568},{"$f":"BD143*'COM-Appliance class'!$B76+'COM S curve-disconnect'!BD164*'COM-Appliance class'!$C76+'COM S curve-disconnect'!BD185*'COM-Appliance class'!$D76+'COM S curve-disconnect'!BD206*'COM-Appliance class'!$E76","v":-11319.016356648568},{"$f":"BE143*'COM-Appliance class'!$B76+'COM S curve-disconnect'!BE164*'COM-Appliance class'!$C76+'COM S curve-disconnect'!BE185*'COM-Appliance class'!$D76+'COM S curve-disconnect'!BE206*'COM-Appliance class'!$E76","v":-11319.016356648568},{"$f":"BF143*'COM-Appliance class'!$B76+'COM S curve-disconnect'!BF164*'COM-Appliance class'!$C76+'COM S curve-disconnect'!BF185*'COM-Appliance class'!$D76+'COM S curve-disconnect'!BF206*'COM-Appliance class'!$E76","v":-11319.016356648568},{"$f":"BG143*'COM-Appliance class'!$B76+'COM S curve-disconnect'!BG164*'COM-Appliance class'!$C76+'COM S curve-disconnect'!BG185*'COM-Appliance class'!$D76+'COM S curve-disconnect'!BG206*'COM-Appliance class'!$E76","v":-11319.016356648568},{"$f":"BH143*'COM-Appliance class'!$B76+'COM S curve-disconnect'!BH164*'COM-Appliance class'!$C76+'COM S curve-disconnect'!BH185*'COM-Appliance class'!$D76+'COM S curve-disconnect'!BH206*'COM-Appliance class'!$E76","v":-11319.016356648568},{"$f":"BI143*'COM-Appliance class'!$B76+'COM S curve-disconnect'!BI164*'COM-Appliance class'!$C76+'COM S curve-disconnect'!BI185*'COM-Appliance class'!$D76+'COM S curve-disconnect'!BI206*'COM-Appliance class'!$E76","v":-11319.016356648568},{"$f":"BJ143*'COM-Appliance class'!$B76+'COM S curve-disconnect'!BJ164*'COM-Appliance class'!$C76+'COM S curve-disconnect'!BJ185*'COM-Appliance class'!$D76+'COM S curve-disconnect'!BJ206*'COM-Appliance class'!$E76","v":-11319.016356648568},{"$f":"BK143*'COM-Appliance class'!$B76+'COM S curve-disconnect'!BK164*'COM-Appliance class'!$C76+'COM S curve-disconnect'!BK185*'COM-Appliance class'!$D76+'COM S curve-disconnect'!BK206*'COM-Appliance class'!$E76","v":-11319.016356648568},{"$f":"BL143*'COM-Appliance class'!$B76+'COM S curve-disconnect'!BL164*'COM-Appliance class'!$C76+'COM S curve-disconnect'!BL185*'COM-Appliance class'!$D76+'COM S curve-disconnect'!BL206*'COM-Appliance class'!$E76","v":-11319.016356648568},{"$f":"BM143*'COM-Appliance class'!$B76+'COM S curve-disconnect'!BM164*'COM-Appliance class'!$C76+'COM S curve-disconnect'!BM185*'COM-Appliance class'!$D76+'COM S curve-disconnect'!BM206*'COM-Appliance class'!$E76","v":-11319.016356648568},{"$f":"BN143*'COM-Appliance class'!$B76+'COM S curve-disconnect'!BN164*'COM-Appliance class'!$C76+'COM S curve-disconnect'!BN185*'COM-Appliance class'!$D76+'COM S curve-disconnect'!BN206*'COM-Appliance class'!$E76","v":-11319.016356648568},{"$f":"BO143*'COM-Appliance class'!$B76+'COM S curve-disconnect'!BO164*'COM-Appliance class'!$C76+'COM S curve-disconnect'!BO185*'COM-Appliance class'!$D76+'COM S curve-disconnect'!BO206*'COM-Appliance class'!$E76","v":-11319.016356648568},{"$f":"BP143*'COM-Appliance class'!$B76+'COM S curve-disconnect'!BP164*'COM-Appliance class'!$C76+'COM S curve-disconnect'!BP185*'COM-Appliance class'!$D76+'COM S curve-disconnect'!BP206*'COM-Appliance class'!$E76","v":-11319.016356648568},{"$f":"BQ143*'COM-Appliance class'!$B76+'COM S curve-disconnect'!BQ164*'COM-Appliance class'!$C76+'COM S curve-disconnect'!BQ185*'COM-Appliance class'!$D76+'COM S curve-disconnect'!BQ206*'COM-Appliance class'!$E76","v":-11319.016356648568},{"$f":"BR143*'COM-Appliance class'!$B76+'COM S curve-disconnect'!BR164*'COM-Appliance class'!$C76+'COM S curve-disconnect'!BR185*'COM-Appliance class'!$D76+'COM S curve-disconnect'!BR206*'COM-Appliance class'!$E76","v":-11319.016356648568},{"$f":"BS143*'COM-Appliance class'!$B76+'COM S curve-disconnect'!BS164*'COM-Appliance class'!$C76+'COM S curve-disconnect'!BS185*'COM-Appliance class'!$D76+'COM S curve-disconnect'!BS206*'COM-Appliance class'!$E76","v":-11319.016356648568},{"$f":"BT143*'COM-Appliance class'!$B76+'COM S curve-disconnect'!BT164*'COM-Appliance class'!$C76+'COM S curve-disconnect'!BT185*'COM-Appliance class'!$D76+'COM S curve-disconnect'!BT206*'COM-Appliance class'!$E76","v":-11319.016356648568},{"$f":"BU143*'COM-Appliance class'!$B76+'COM S curve-disconnect'!BU164*'COM-Appliance class'!$C76+'COM S curve-disconnect'!BU185*'COM-Appliance class'!$D76+'COM S curve-disconnect'!BU206*'COM-Appliance class'!$E76","v":-11319.016356648568},{"$f":"BV143*'COM-Appliance class'!$B76+'COM S curve-disconnect'!BV164*'COM-Appliance class'!$C76+'COM S curve-disconnect'!BV185*'COM-Appliance class'!$D76+'COM S curve-disconnect'!BV206*'COM-Appliance class'!$E76","v":-11319.016356648568},{"$f":"BW143*'COM-Appliance class'!$B76+'COM S curve-disconnect'!BW164*'COM-Appliance class'!$C76+'COM S curve-disconnect'!BW185*'COM-Appliance class'!$D76+'COM S curve-disconnect'!BW206*'COM-Appliance class'!$E76","v":-11319.016356648568},{"$f":"BX143*'COM-Appliance class'!$B76+'COM S curve-disconnect'!BX164*'COM-Appliance class'!$C76+'COM S curve-disconnect'!BX185*'COM-Appliance class'!$D76+'COM S curve-disconnect'!BX206*'COM-Appliance class'!$E76","v":-11319.016356648568},{"$f":"BY143*'COM-Appliance class'!$B76+'COM S curve-disconnect'!BY164*'COM-Appliance class'!$C76+'COM S curve-disconnect'!BY185*'COM-Appliance class'!$D76+'COM S curve-disconnect'!BY206*'COM-Appliance class'!$E76","v":-11319.016356648568},{"$f":"BZ143*'COM-Appliance class'!$B76+'COM S curve-disconnect'!BZ164*'COM-Appliance class'!$C76+'COM S curve-disconnect'!BZ185*'COM-Appliance class'!$D76+'COM S curve-disconnect'!BZ206*'COM-Appliance class'!$E76","v":-11319.016356648568},{"$f":"CA143*'COM-Appliance class'!$B76+'COM S curve-disconnect'!CA164*'COM-Appliance class'!$C76+'COM S curve-disconnect'!CA185*'COM-Appliance class'!$D76+'COM S curve-disconnect'!CA206*'COM-Appliance class'!$E76","v":-11319.016356648568},{"$f":"CB143*'COM-Appliance class'!$B76+'COM S curve-disconnect'!CB164*'COM-Appliance class'!$C76+'COM S curve-disconnect'!CB185*'COM-Appliance class'!$D76+'COM S curve-disconnect'!CB206*'COM-Appliance class'!$E76","v":-11319.016356648568},{"$f":"CC143*'COM-Appliance class'!$B76+'COM S curve-disconnect'!CC164*'COM-Appliance class'!$C76+'COM S curve-disconnect'!CC185*'COM-Appliance class'!$D76+'COM S curve-disconnect'!CC206*'COM-Appliance class'!$E76","v":-11319.016356648568},{"$f":"CD143*'COM-Appliance class'!$B76+'COM S curve-disconnect'!CD164*'COM-Appliance class'!$C76+'COM S curve-disconnect'!CD185*'COM-Appliance class'!$D76+'COM S curve-disconnect'!CD206*'COM-Appliance class'!$E76","v":-11319.016356648568}]
["Frankston (C)",null,{"$f":"C144*'COM-Appliance class'!$B77+'COM S curve-disconnect'!C165*'COM-Appliance class'!$C77+'COM S curve-disconnect'!C186*'COM-Appliance class'!$D77+'COM S curve-disconnect'!C207*'COM-Appliance class'!$E77","v":0},{"$f":"D144*'COM-Appliance class'!$B77+'COM S curve-disconnect'!D165*'COM-Appliance class'!$C77+'COM S curve-disconnect'!D186*'COM-Appliance class'!$D77+'COM S curve-disconnect'!D207*'COM-Appliance class'!$E77","v":0},{"$f":"E144*'COM-Appliance class'!$B77+'COM S curve-disconnect'!E165*'COM-Appliance class'!$C77+'COM S curve-disconnect'!E186*'COM-Appliance class'!$D77+'COM S curve-disconnect'!E207*'COM-Appliance class'!$E77","v":0},{"$f":"F144*'COM-Appliance class'!$B77+'COM S curve-disconnect'!F165*'COM-Appliance class'!$C77+'COM S curve-disconnect'!F186*'COM-Appliance class'!$D77+'COM S curve-disconnect'!F207*'COM-Appliance class'!$E77","v":0},{"$f":"G144*'COM-Appliance class'!$B77+'COM S curve-disconnect'!G165*'COM-Appliance class'!$C77+'COM S curve-disconnect'!G186*'COM-Appliance class'!$D77+'COM S curve-disconnect'!G207*'COM-Appliance class'!$E77","v":0},{"$f":"H144*'COM-Appliance class'!$B77+'COM S curve-disconnect'!H165*'COM-Appliance class'!$C77+'COM S curve-disconnect'!H186*'COM-Appliance class'!$D77+'COM S curve-disconnect'!H207*'COM-Appliance class'!$E77","v":0},{"$f":"I144*'COM-Appliance class'!$B77+'COM S curve-disconnect'!I165*'COM-Appliance class'!$C77+'COM S curve-disconnect'!I186*'COM-Appliance class'!$D77+'COM S curve-disconnect'!I207*'COM-Appliance class'!$E77","v":0},{"$f":"J144*'COM-Appliance class'!$B77+'COM S curve-disconnect'!J165*'COM-Appliance class'!$C77+'COM S curve-disconnect'!J186*'COM-Appliance class'!$D77+'COM S curve-disconnect'!J207*'COM-Appliance class'!$E77","v":0},{"$f":"K144*'COM-Appliance class'!$B77+'COM S curve-disconnect'!K165*'COM-Appliance class'!$C77+'COM S curve-disconnect'!K186*'COM-Appliance class'!$D77+'COM S curve-disconnect'!K207*'COM-Appliance class'!$E77","v":0},{"$f":"L144*'COM-Appliance class'!$B77+'COM S curve-disconnect'!L165*'COM-Appliance class'!$C77+'COM S curve-disconnect'!L186*'COM-Appliance class'!$D77+'COM S curve-disconnect'!L207*'COM-Appliance class'!$E77","v":0},{"$f":"M144*'COM-Appliance class'!$B77+'COM S curve-disconnect'!M165*'COM-Appliance class'!$C77+'COM S curve-disconnect'!M186*'COM-Appliance class'!$D77+'COM S curve-disconnect'!M207*'COM-Appliance class'!$E77","v":0},{"$f":"N144*'COM-Appliance class'!$B77+'COM S curve-disconnect'!N165*'COM-Appliance class'!$C77+'COM S curve-disconnect'!N186*'COM-Appliance class'!$D77+'COM S curve-disconnect'!N207*'COM-Appliance class'!$E77","v":0},{"$f":"O144*'COM-Appliance class'!$B77+'COM S curve-disconnect'!O165*'COM-Appliance class'!$C77+'COM S curve-disconnect'!O186*'COM-Appliance class'!$D77+'COM S curve-disconnect'!O207*'COM-Appliance class'!$E77","v":0},{"$f":"P144*'COM-Appliance class'!$B77+'COM S curve-disconnect'!P165*'COM-Appliance class'!$C77+'COM S curve-disconnect'!P186*'COM-Appliance class'!$D77+'COM S curve-disconnect'!P207*'COM-Appliance class'!$E77","v":0},{"$f":"Q144*'COM-Appliance class'!$B77+'COM S curve-disconnect'!Q165*'COM-Appliance class'!$C77+'COM S curve-disconnect'!Q186*'COM-Appliance class'!$D77+'COM S curve-disconnect'!Q207*'COM-Appliance class'!$E77","v":0},{"$f":"R144*'COM-Appliance class'!$B77+'COM S curve-disconnect'!R165*'COM-Appliance class'!$C77+'COM S curve-disconnect'!R186*'COM-Appliance class'!$D77+'COM S curve-disconnect'!R207*'COM-Appliance class'!$E77","v":0},{"$f":"S144*'COM-Appliance class'!$B77+'COM S curve-disconnect'!S165*'COM-Appliance class'!$C77+'COM S curve-disconnect'!S186*'COM-Appliance class'!$D77+'COM S curve-disconnect'!S207*'COM-Appliance class'!$E77","v":0},{"$f":"T144*'COM-Appliance class'!$B77+'COM S curve-disconnect'!T165*'COM-Appliance class'!$C77+'COM S curve-disconnect'!T186*'COM-Appliance class'!$D77+'COM S curve-disconnect'!T207*'COM-Appliance class'!$E77","v":0},{"$f":"U144*'COM-Appliance class'!$B77+'COM S curve-disconnect'!U165*'COM-Appliance class'!$C77+'COM S curve-disconnect'!U186*'COM-Appliance class'!$D77+'COM S curve-disconnect'!U207*'COM-Appliance class'!$E77","v":0},{"$f":"V144*'COM-Appliance class'!$B77+'COM S curve-disconnect'!V165*'COM-Appliance class'!$C77+'COM S curve-disconnect'!V186*'COM-Appliance class'!$D77+'COM S curve-disconnect'!V207*'COM-Appliance class'!$E77","v":0},{"$f":"W144*'COM-Appliance class'!$B77+'COM S curve-disconnect'!W165*'COM-Appliance class'!$C77+'COM S curve-disconnect'!W186*'COM-Appliance class'!$D77+'COM S curve-disconnect'!W207*'COM-Appliance class'!$E77","v":0},{"$f":"X144*'COM-Appliance class'!$B77+'COM S curve-disconnect'!X165*'COM-Appliance class'!$C77+'COM S curve-disconnect'!X186*'COM-Appliance class'!$D77+'COM S curve-disconnect'!X207*'COM-Appliance class'!$E77","v":0},{"$f":"Y144*'COM-Appliance class'!$B77+'COM S curve-disconnect'!Y165*'COM-Appliance class'!$C77+'COM S curve-disconnect'!Y186*'COM-Appliance class'!$D77+'COM S curve-disconnect'!Y207*'COM-Appliance class'!$E77","v":0},{"$f":"Z144*'COM-Appliance class'!$B77+'COM S curve-disconnect'!Z165*'COM-Appliance class'!$C77+'COM S curve-disconnect'!Z186*'COM-Appliance class'!$D77+'COM S curve-disconnect'!Z207*'COM-Appliance class'!$E77","v":0},{"$f":"AA144*'COM-Appliance class'!$B77+'COM S curve-disconnect'!AA165*'COM-Appliance class'!$C77+'COM S curve-disconnect'!AA186*'COM-Appliance class'!$D77+'COM S curve-disconnect'!AA207*'COM-Appliance class'!$E77","v":0},{"$f":"AB144*'COM-Appliance class'!$B77+'COM S curve-disconnect'!AB165*'COM-Appliance class'!$C77+'COM S curve-disconnect'!AB186*'COM-Appliance class'!$D77+'COM S curve-disconnect'!AB207*'COM-Appliance class'!$E77","v":0},{"$f":"AC144*'COM-Appliance class'!$B77+'COM S curve-disconnect'!AC165*'COM-Appliance class'!$C77+'COM S curve-disconnect'!AC186*'COM-Appliance class'!$D77+'COM S curve-disconnect'!AC207*'COM-Appliance class'!$E77","v":0},{"$f":"AD144*'COM-Appliance class'!$B77+'COM S curve-disconnect'!AD165*'COM-Appliance class'!$C77+'COM S curve-disconnect'!AD186*'COM-Appliance class'!$D77+'COM S curve-disconnect'!AD207*'COM-Appliance class'!$E77","v":0},{"$f":"AE144*'COM-Appliance class'!$B77+'COM S curve-disconnect'!AE165*'COM-Appliance class'!$C77+'COM S curve-disconnect'!AE186*'COM-Appliance class'!$D77+'COM S curve-disconnect'!AE207*'COM-Appliance class'!$E77","v":0},{"$f":"AF144*'COM-Appliance class'!$B77+'COM S curve-disconnect'!AF165*'COM-Appliance class'!$C77+'COM S curve-disconnect'!AF186*'COM-Appliance class'!$D77+'COM S curve-disconnect'!AF207*'COM-Appliance class'!$E77","v":0},{"$f":"AG144*'COM-Appliance class'!$B77+'COM S curve-disconnect'!AG165*'COM-Appliance class'!$C77+'COM S curve-disconnect'!AG186*'COM-Appliance class'!$D77+'COM S curve-disconnect'!AG207*'COM-Appliance class'!$E77","v":0},{"$f":"AH144*'COM-Appliance class'!$B77+'COM S curve-disconnect'!AH165*'COM-Appliance class'!$C77+'COM S curve-disconnect'!AH186*'COM-Appliance class'!$D77+'COM S curve-disconnect'!AH207*'COM-Appliance class'!$E77","v":0},{"$f":"AI144*'COM-Appliance class'!$B77+'COM S curve-disconnect'!AI165*'COM-Appliance class'!$C77+'COM S curve-disconnect'!AI186*'COM-Appliance class'!$D77+'COM S curve-disconnect'!AI207*'COM-Appliance class'!$E77","v":0},{"$f":"AJ144*'COM-Appliance class'!$B77+'COM S curve-disconnect'!AJ165*'COM-Appliance class'!$C77+'COM S curve-disconnect'!AJ186*'COM-Appliance class'!$D77+'COM S curve-disconnect'!AJ207*'COM-Appliance class'!$E77","v":0},{"$f":"AK144*'COM-Appliance class'!$B77+'COM S curve-disconnect'!AK165*'COM-Appliance class'!$C77+'COM S curve-disconnect'!AK186*'COM-Appliance class'!$D77+'COM S curve-disconnect'!AK207*'COM-Appliance class'!$E77","v":0},{"$f":"AL144*'COM-Appliance class'!$B77+'COM S curve-disconnect'!AL165*'COM-Appliance class'!$C77+'COM S curve-disconnect'!AL186*'COM-Appliance class'!$D77+'COM S curve-disconnect'!AL207*'COM-Appliance class'!$E77","v":0},{"$f":"AM144*'COM-Appliance class'!$B77+'COM S curve-disconnect'!AM165*'COM-Appliance class'!$C77+'COM S curve-disconnect'!AM186*'COM-Appliance class'!$D77+'COM S curve-disconnect'!AM207*'COM-Appliance class'!$E77","v":0},{"$f":"AN144*'COM-Appliance class'!$B77+'COM S curve-disconnect'!AN165*'COM-Appliance class'!$C77+'COM S curve-disconnect'!AN186*'COM-Appliance class'!$D77+'COM S curve-disconnect'!AN207*'COM-Appliance class'!$E77","v":0},{"$f":"AO144*'COM-Appliance class'!$B77+'COM S curve-disconnect'!AO165*'COM-Appliance class'!$C77+'COM S curve-disconnect'!AO186*'COM-Appliance class'!$D77+'COM S curve-disconnect'!AO207*'COM-Appliance class'!$E77","v":0},{"$f":"AP144*'COM-Appliance class'!$B77+'COM S curve-disconnect'!AP165*'COM-Appliance class'!$C77+'COM S curve-disconnect'!AP186*'COM-Appliance class'!$D77+'COM S curve-disconnect'!AP207*'COM-Appliance class'!$E77","v":0},{"$f":"AQ144*'COM-Appliance class'!$B77+'COM S curve-disconnect'!AQ165*'COM-Appliance class'!$C77+'COM S curve-disconnect'!AQ186*'COM-Appliance class'!$D77+'COM S curve-disconnect'!AQ207*'COM-Appliance class'!$E77","v":0},{"$f":"AR144*'COM-Appliance class'!$B77+'COM S curve-disconnect'!AR165*'COM-Appliance class'!$C77+'COM S curve-disconnect'!AR186*'COM-Appliance class'!$D77+'COM S curve-disconnect'!AR207*'COM-Appliance class'!$E77","v":0},{"$f":"AS144*'COM-Appliance class'!$B77+'COM S curve-disconnect'!AS165*'COM-Appliance class'!$C77+'COM S curve-disconnect'!AS186*'COM-Appliance class'!$D77+'COM S curve-disconnect'!AS207*'COM-Appliance class'!$E77","v":0},{"$f":"AT144*'COM-Appliance class'!$B77+'COM S curve-disconnect'!AT165*'COM-Appliance class'!$C77+'COM S curve-disconnect'!AT186*'COM-Appliance class'!$D77+'COM S curve-disconnect'!AT207*'COM-Appliance class'!$E77","v":0},{"$f":"AU144*'COM-Appliance class'!$B77+'COM S curve-disconnect'!AU165*'COM-Appliance class'!$C77+'COM S curve-disconnect'!AU186*'COM-Appliance class'!$D77+'COM S curve-disconnect'!AU207*'COM-Appliance class'!$E77","v":0},{"$f":"AV144*'COM-Appliance class'!$B77+'COM S curve-disconnect'!AV165*'COM-Appliance class'!$C77+'COM S curve-disconnect'!AV186*'COM-Appliance class'!$D77+'COM S curve-disconnect'!AV207*'COM-Appliance class'!$E77","v":0},{"$f":"AW144*'COM-Appliance class'!$B77+'COM S curve-disconnect'!AW165*'COM-Appliance class'!$C77+'COM S curve-disconnect'!AW186*'COM-Appliance class'!$D77+'COM S curve-disconnect'!AW207*'COM-Appliance class'!$E77","v":0},{"$f":"AX144*'COM-Appliance class'!$B77+'COM S curve-disconnect'!AX165*'COM-Appliance class'!$C77+'COM S curve-disconnect'!AX186*'COM-Appliance class'!$D77+'COM S curve-disconnect'!AX207*'COM-Appliance class'!$E77","v":0},{"$f":"AY144*'COM-Appliance class'!$B77+'COM S curve-disconnect'!AY165*'COM-Appliance class'!$C77+'COM S curve-disconnect'!AY186*'COM-Appliance class'!$D77+'COM S curve-disconnect'!AY207*'COM-Appliance class'!$E77","v":0},{"$f":"AZ144*'COM-Appliance class'!$B77+'COM S curve-disconnect'!AZ165*'COM-Appliance class'!$C77+'COM S curve-disconnect'!AZ186*'COM-Appliance class'!$D77+'COM S curve-disconnect'!AZ207*'COM-Appliance class'!$E77","v":0},{"$f":"BA144*'COM-Appliance class'!$B77+'COM S curve-disconnect'!BA165*'COM-Appliance class'!$C77+'COM S curve-disconnect'!BA186*'COM-Appliance class'!$D77+'COM S curve-disconnect'!BA207*'COM-Appliance class'!$E77","v":0},{"$f":"BB144*'COM-Appliance class'!$B77+'COM S curve-disconnect'!BB165*'COM-Appliance class'!$C77+'COM S curve-disconnect'!BB186*'COM-Appliance class'!$D77+'COM S curve-disconnect'!BB207*'COM-Appliance class'!$E77","v":0},{"$f":"BC144*'COM-Appliance class'!$B77+'COM S curve-disconnect'!BC165*'COM-Appliance class'!$C77+'COM S curve-disconnect'!BC186*'COM-Appliance class'!$D77+'COM S curve-disconnect'!BC207*'COM-Appliance class'!$E77","v":0},{"$f":"BD144*'COM-Appliance class'!$B77+'COM S curve-disconnect'!BD165*'COM-Appliance class'!$C77+'COM S curve-disconnect'!BD186*'COM-Appliance class'!$D77+'COM S curve-disconnect'!BD207*'COM-Appliance class'!$E77","v":0},{"$f":"BE144*'COM-Appliance class'!$B77+'COM S curve-disconnect'!BE165*'COM-Appliance class'!$C77+'COM S curve-disconnect'!BE186*'COM-Appliance class'!$D77+'COM S curve-disconnect'!BE207*'COM-Appliance class'!$E77","v":0},{"$f":"BF144*'COM-Appliance class'!$B77+'COM S curve-disconnect'!BF165*'COM-Appliance class'!$C77+'COM S curve-disconnect'!BF186*'COM-Appliance class'!$D77+'COM S curve-disconnect'!BF207*'COM-Appliance class'!$E77","v":0},{"$f":"BG144*'COM-Appliance class'!$B77+'COM S curve-disconnect'!BG165*'COM-Appliance class'!$C77+'COM S curve-disconnect'!BG186*'COM-Appliance class'!$D77+'COM S curve-disconnect'!BG207*'COM-Appliance class'!$E77","v":0},{"$f":"BH144*'COM-Appliance class'!$B77+'COM S curve-disconnect'!BH165*'COM-Appliance class'!$C77+'COM S curve-disconnect'!BH186*'COM-Appliance class'!$D77+'COM S curve-disconnect'!BH207*'COM-Appliance class'!$E77","v":0},{"$f":"BI144*'COM-Appliance class'!$B77+'COM S curve-disconnect'!BI165*'COM-Appliance class'!$C77+'COM S curve-disconnect'!BI186*'COM-Appliance class'!$D77+'COM S curve-disconnect'!BI207*'COM-Appliance class'!$E77","v":0},{"$f":"BJ144*'COM-Appliance class'!$B77+'COM S curve-disconnect'!BJ165*'COM-Appliance class'!$C77+'COM S curve-disconnect'!BJ186*'COM-Appliance class'!$D77+'COM S curve-disconnect'!BJ207*'COM-Appliance class'!$E77","v":0},{"$f":"BK144*'COM-Appliance class'!$B77+'COM S curve-disconnect'!BK165*'COM-Appliance class'!$C77+'COM S curve-disconnect'!BK186*'COM-Appliance class'!$D77+'COM S curve-disconnect'!BK207*'COM-Appliance class'!$E77","v":0},{"$f":"BL144*'COM-Appliance class'!$B77+'COM S curve-disconnect'!BL165*'COM-Appliance class'!$C77+'COM S curve-disconnect'!BL186*'COM-Appliance class'!$D77+'COM S curve-disconnect'!BL207*'COM-Appliance class'!$E77","v":0},{"$f":"BM144*'COM-Appliance class'!$B77+'COM S curve-disconnect'!BM165*'COM-Appliance class'!$C77+'COM S curve-disconnect'!BM186*'COM-Appliance class'!$D77+'COM S curve-disconnect'!BM207*'COM-Appliance class'!$E77","v":0},{"$f":"BN144*'COM-Appliance class'!$B77+'COM S curve-disconnect'!BN165*'COM-Appliance class'!$C77+'COM S curve-disconnect'!BN186*'COM-Appliance class'!$D77+'COM S curve-disconnect'!BN207*'COM-Appliance class'!$E77","v":0},{"$f":"BO144*'COM-Appliance class'!$B77+'COM S curve-disconnect'!BO165*'COM-Appliance class'!$C77+'COM S curve-disconnect'!BO186*'COM-Appliance class'!$D77+'COM S curve-disconnect'!BO207*'COM-Appliance class'!$E77","v":0},{"$f":"BP144*'COM-Appliance class'!$B77+'COM S curve-disconnect'!BP165*'COM-Appliance class'!$C77+'COM S curve-disconnect'!BP186*'COM-Appliance class'!$D77+'COM S curve-disconnect'!BP207*'COM-Appliance class'!$E77","v":0},{"$f":"BQ144*'COM-Appliance class'!$B77+'COM S curve-disconnect'!BQ165*'COM-Appliance class'!$C77+'COM S curve-disconnect'!BQ186*'COM-Appliance class'!$D77+'COM S curve-disconnect'!BQ207*'COM-Appliance class'!$E77","v":0},{"$f":"BR144*'COM-Appliance class'!$B77+'COM S curve-disconnect'!BR165*'COM-Appliance class'!$C77+'COM S curve-disconnect'!BR186*'COM-Appliance class'!$D77+'COM S curve-disconnect'!BR207*'COM-Appliance class'!$E77","v":0},{"$f":"BS144*'COM-Appliance class'!$B77+'COM S curve-disconnect'!BS165*'COM-Appliance class'!$C77+'COM S curve-disconnect'!BS186*'COM-Appliance class'!$D77+'COM S curve-disconnect'!BS207*'COM-Appliance class'!$E77","v":0},{"$f":"BT144*'COM-Appliance class'!$B77+'COM S curve-disconnect'!BT165*'COM-Appliance class'!$C77+'COM S curve-disconnect'!BT186*'COM-Appliance class'!$D77+'COM S curve-disconnect'!BT207*'COM-Appliance class'!$E77","v":0},{"$f":"BU144*'COM-Appliance class'!$B77+'COM S curve-disconnect'!BU165*'COM-Appliance class'!$C77+'COM S curve-disconnect'!BU186*'COM-Appliance class'!$D77+'COM S curve-disconnect'!BU207*'COM-Appliance class'!$E77","v":0},{"$f":"BV144*'COM-Appliance class'!$B77+'COM S curve-disconnect'!BV165*'COM-Appliance class'!$C77+'COM S curve-disconnect'!BV186*'COM-Appliance class'!$D77+'COM S curve-disconnect'!BV207*'COM-Appliance class'!$E77","v":0},{"$f":"BW144*'COM-Appliance class'!$B77+'COM S curve-disconnect'!BW165*'COM-Appliance class'!$C77+'COM S curve-disconnect'!BW186*'COM-Appliance class'!$D77+'COM S curve-disconnect'!BW207*'COM-Appliance class'!$E77","v":0},{"$f":"BX144*'COM-Appliance class'!$B77+'COM S curve-disconnect'!BX165*'COM-Appliance class'!$C77+'COM S curve-disconnect'!BX186*'COM-Appliance class'!$D77+'COM S curve-disconnect'!BX207*'COM-Appliance class'!$E77","v":0},{"$f":"BY144*'COM-Appliance class'!$B77+'COM S curve-disconnect'!BY165*'COM-Appliance class'!$C77+'COM S curve-disconnect'!BY186*'COM-Appliance class'!$D77+'COM S curve-disconnect'!BY207*'COM-Appliance class'!$E77","v":0},{"$f":"BZ144*'COM-Appliance class'!$B77+'COM S curve-disconnect'!BZ165*'COM-Appliance class'!$C77+'COM S curve-disconnect'!BZ186*'COM-Appliance class'!$D77+'COM S curve-disconnect'!BZ207*'COM-Appliance class'!$E77","v":0},{"$f":"CA144*'COM-Appliance class'!$B77+'COM S curve-disconnect'!CA165*'COM-Appliance class'!$C77+'COM S curve-disconnect'!CA186*'COM-Appliance class'!$D77+'COM S curve-disconnect'!CA207*'COM-Appliance class'!$E77","v":0},{"$f":"CB144*'COM-Appliance class'!$B77+'COM S curve-disconnect'!CB165*'COM-Appliance class'!$C77+'COM S curve-disconnect'!CB186*'COM-Appliance class'!$D77+'COM S curve-disconnect'!CB207*'COM-Appliance class'!$E77","v":0},{"$f":"CC144*'COM-Appliance class'!$B77+'COM S curve-disconnect'!CC165*'COM-Appliance class'!$C77+'COM S curve-disconnect'!CC186*'COM-Appliance class'!$D77+'COM S curve-disconnect'!CC207*'COM-Appliance class'!$E77","v":0},{"$f":"CD144*'COM-Appliance class'!$B77+'COM S curve-disconnect'!CD165*'COM-Appliance class'!$C77+'COM S curve-disconnect'!CD186*'COM-Appliance class'!$D77+'COM S curve-disconnect'!CD207*'COM-Appliance class'!$E77","v":0}]
["Glen Eira (C)",null,{"$f":"C145*'COM-Appliance class'!$B78+'COM S curve-disconnect'!C166*'COM-Appliance class'!$C78+'COM S curve-disconnect'!C187*'COM-Appliance class'!$D78+'COM S curve-disconnect'!C208*'COM-Appliance class'!$E78","v":-17803.730115769038},{"$f":"D145*'COM-Appliance class'!$B78+'COM S curve-disconnect'!D166*'COM-Appliance class'!$C78+'COM S curve-disconnect'!D187*'COM-Appliance class'!$D78+'COM S curve-disconnect'!D208*'COM-Appliance class'!$E78","v":-17803.730115769038},{"$f":"E145*'COM-Appliance class'!$B78+'COM S curve-disconnect'!E166*'COM-Appliance class'!$C78+'COM S curve-disconnect'!E187*'COM-Appliance class'!$D78+'COM S curve-disconnect'!E208*'COM-Appliance class'!$E78","v":-11340.404359088609},{"$f":"F145*'COM-Appliance class'!$B78+'COM S curve-disconnect'!F166*'COM-Appliance class'!$C78+'COM S curve-disconnect'!F187*'COM-Appliance class'!$D78+'COM S curve-disconnect'!F208*'COM-Appliance class'!$E78","v":-11340.404359088609},{"$f":"G145*'COM-Appliance class'!$B78+'COM S curve-disconnect'!G166*'COM-Appliance class'!$C78+'COM S curve-disconnect'!G187*'COM-Appliance class'!$D78+'COM S curve-disconnect'!G208*'COM-Appliance class'!$E78","v":-16015.500300319745},{"$f":"H145*'COM-Appliance class'!$B78+'COM S curve-disconnect'!H166*'COM-Appliance class'!$C78+'COM S curve-disconnect'!H187*'COM-Appliance class'!$D78+'COM S curve-disconnect'!H208*'COM-Appliance class'!$E78","v":-16015.500300319745},{"$f":"I145*'COM-Appliance class'!$B78+'COM S curve-disconnect'!I166*'COM-Appliance class'!$C78+'COM S curve-disconnect'!I187*'COM-Appliance class'!$D78+'COM S curve-disconnect'!I208*'COM-Appliance class'!$E78","v":-16015.500300319745},{"$f":"J145*'COM-Appliance class'!$B78+'COM S curve-disconnect'!J166*'COM-Appliance class'!$C78+'COM S curve-disconnect'!J187*'COM-Appliance class'!$D78+'COM S curve-disconnect'!J208*'COM-Appliance class'!$E78","v":-17571.764398164571},{"$f":"K145*'COM-Appliance class'!$B78+'COM S curve-disconnect'!K166*'COM-Appliance class'!$C78+'COM S curve-disconnect'!K187*'COM-Appliance class'!$D78+'COM S curve-disconnect'!K208*'COM-Appliance class'!$E78","v":-16429.21769017035},{"$f":"L145*'COM-Appliance class'!$B78+'COM S curve-disconnect'!L166*'COM-Appliance class'!$C78+'COM S curve-disconnect'!L187*'COM-Appliance class'!$D78+'COM S curve-disconnect'!L208*'COM-Appliance class'!$E78","v":-16204.124534693881},{"$f":"M145*'COM-Appliance class'!$B78+'COM S curve-disconnect'!M166*'COM-Appliance class'!$C78+'COM S curve-disconnect'!M187*'COM-Appliance class'!$D78+'COM S curve-disconnect'!M208*'COM-Appliance class'!$E78","v":-15980.156844994788},{"$f":"N145*'COM-Appliance class'!$B78+'COM S curve-disconnect'!N166*'COM-Appliance class'!$C78+'COM S curve-disconnect'!N187*'COM-Appliance class'!$D78+'COM S curve-disconnect'!N208*'COM-Appliance class'!$E78","v":-15757.308993744195},{"$f":"O145*'COM-Appliance class'!$B78+'COM S curve-disconnect'!O166*'COM-Appliance class'!$C78+'COM S curve-disconnect'!O187*'COM-Appliance class'!$D78+'COM S curve-disconnect'!O208*'COM-Appliance class'!$E78","v":-15535.575381749848},{"$f":"P145*'COM-Appliance class'!$B78+'COM S curve-disconnect'!P166*'COM-Appliance class'!$C78+'COM S curve-disconnect'!P187*'COM-Appliance class'!$D78+'COM S curve-disconnect'!P208*'COM-Appliance class'!$E78","v":-15314.950437815483},{"$f":"Q145*'COM-Appliance class'!$B78+'COM S curve-disconnect'!Q166*'COM-Appliance class'!$C78+'COM S curve-disconnect'!Q187*'COM-Appliance class'!$D78+'COM S curve-disconnect'!Q208*'COM-Appliance class'!$E78","v":-15095.428618600781},{"$f":"R145*'COM-Appliance class'!$B78+'COM S curve-disconnect'!R166*'COM-Appliance class'!$C78+'COM S curve-disconnect'!R187*'COM-Appliance class'!$D78+'COM S curve-disconnect'!R208*'COM-Appliance class'!$E78","v":-14877.004408482158},{"$f":"S145*'COM-Appliance class'!$B78+'COM S curve-disconnect'!S166*'COM-Appliance class'!$C78+'COM S curve-disconnect'!S187*'COM-Appliance class'!$D78+'COM S curve-disconnect'!S208*'COM-Appliance class'!$E78","v":-14659.67231941413},{"$f":"T145*'COM-Appliance class'!$B78+'COM S curve-disconnect'!T166*'COM-Appliance class'!$C78+'COM S curve-disconnect'!T187*'COM-Appliance class'!$D78+'COM S curve-disconnect'!T208*'COM-Appliance class'!$E78","v":-14443.426890791437},{"$f":"U145*'COM-Appliance class'!$B78+'COM S curve-disconnect'!U166*'COM-Appliance class'!$C78+'COM S curve-disconnect'!U187*'COM-Appliance class'!$D78+'COM S curve-disconnect'!U208*'COM-Appliance class'!$E78","v":-14228.262689311858},{"$f":"V145*'COM-Appliance class'!$B78+'COM S curve-disconnect'!V166*'COM-Appliance class'!$C78+'COM S curve-disconnect'!V187*'COM-Appliance class'!$D78+'COM S curve-disconnect'!V208*'COM-Appliance class'!$E78","v":-14014.174308839676},{"$f":"W145*'COM-Appliance class'!$B78+'COM S curve-disconnect'!W166*'COM-Appliance class'!$C78+'COM S curve-disconnect'!W187*'COM-Appliance class'!$D78+'COM S curve-disconnect'!W208*'COM-Appliance class'!$E78","v":-13801.156370269857},{"$f":"X145*'COM-Appliance class'!$B78+'COM S curve-disconnect'!X166*'COM-Appliance class'!$C78+'COM S curve-disconnect'!X187*'COM-Appliance class'!$D78+'COM S curve-disconnect'!X208*'COM-Appliance class'!$E78","v":-13589.203521392887},{"$f":"Y145*'COM-Appliance class'!$B78+'COM S curve-disconnect'!Y166*'COM-Appliance class'!$C78+'COM S curve-disconnect'!Y187*'COM-Appliance class'!$D78+'COM S curve-disconnect'!Y208*'COM-Appliance class'!$E78","v":-13378.310436760301},{"$f":"Z145*'COM-Appliance class'!$B78+'COM S curve-disconnect'!Z166*'COM-Appliance class'!$C78+'COM S curve-disconnect'!Z187*'COM-Appliance class'!$D78+'COM S curve-disconnect'!Z208*'COM-Appliance class'!$E78","v":-13168.471817550879},{"$f":"AA145*'COM-Appliance class'!$B78+'COM S curve-disconnect'!AA166*'COM-Appliance class'!$C78+'COM S curve-disconnect'!AA187*'COM-Appliance class'!$D78+'COM S curve-disconnect'!AA208*'COM-Appliance class'!$E78","v":-12959.682391437502},{"$f":"AB145*'COM-Appliance class'!$B78+'COM S curve-disconnect'!AB166*'COM-Appliance class'!$C78+'COM S curve-disconnect'!AB187*'COM-Appliance class'!$D78+'COM S curve-disconnect'!AB208*'COM-Appliance class'!$E78","v":-12751.936912454694},{"$f":"AC145*'COM-Appliance class'!$B78+'COM S curve-disconnect'!AC166*'COM-Appliance class'!$C78+'COM S curve-disconnect'!AC187*'COM-Appliance class'!$D78+'COM S curve-disconnect'!AC208*'COM-Appliance class'!$E78","v":-12545.230160866802},{"$f":"AD145*'COM-Appliance class'!$B78+'COM S curve-disconnect'!AD166*'COM-Appliance class'!$C78+'COM S curve-disconnect'!AD187*'COM-Appliance class'!$D78+'COM S curve-disconnect'!AD208*'COM-Appliance class'!$E78","v":-12339.556943036847},{"$f":"AE145*'COM-Appliance class'!$B78+'COM S curve-disconnect'!AE166*'COM-Appliance class'!$C78+'COM S curve-disconnect'!AE187*'COM-Appliance class'!$D78+'COM S curve-disconnect'!AE208*'COM-Appliance class'!$E78","v":-12134.912091296041},{"$f":"AF145*'COM-Appliance class'!$B78+'COM S curve-disconnect'!AF166*'COM-Appliance class'!$C78+'COM S curve-disconnect'!AF187*'COM-Appliance class'!$D78+'COM S curve-disconnect'!AF208*'COM-Appliance class'!$E78","v":-11931.290463813941},{"$f":"AG145*'COM-Appliance class'!$B78+'COM S curve-disconnect'!AG166*'COM-Appliance class'!$C78+'COM S curve-disconnect'!AG187*'COM-Appliance class'!$D78+'COM S curve-disconnect'!AG208*'COM-Appliance class'!$E78","v":-11931.290463813941},{"$f":"AH145*'COM-Appliance class'!$B78+'COM S curve-disconnect'!AH166*'COM-Appliance class'!$C78+'COM S curve-disconnect'!AH187*'COM-Appliance class'!$D78+'COM S curve-disconnect'!AH208*'COM-Appliance class'!$E78","v":-11931.290463813941},{"$f":"AI145*'COM-Appliance class'!$B78+'COM S curve-disconnect'!AI166*'COM-Appliance class'!$C78+'COM S curve-disconnect'!AI187*'COM-Appliance class'!$D78+'COM S curve-disconnect'!AI208*'COM-Appliance class'!$E78","v":-11931.290463813941},{"$f":"AJ145*'COM-Appliance class'!$B78+'COM S curve-disconnect'!AJ166*'COM-Appliance class'!$C78+'COM S curve-disconnect'!AJ187*'COM-Appliance class'!$D78+'COM S curve-disconnect'!AJ208*'COM-Appliance class'!$E78","v":-11931.290463813941},{"$f":"AK145*'COM-Appliance class'!$B78+'COM S curve-disconnect'!AK166*'COM-Appliance class'!$C78+'COM S curve-disconnect'!AK187*'COM-Appliance class'!$D78+'COM S curve-disconnect'!AK208*'COM-Appliance class'!$E78","v":-11931.290463813941},{"$f":"AL145*'COM-Appliance class'!$B78+'COM S curve-disconnect'!AL166*'COM-Appliance class'!$C78+'COM S curve-disconnect'!AL187*'COM-Appliance class'!$D78+'COM S curve-disconnect'!AL208*'COM-Appliance class'!$E78","v":-11931.290463813941},{"$f":"AM145*'COM-Appliance class'!$B78+'COM S curve-disconnect'!AM166*'COM-Appliance class'!$C78+'COM S curve-disconnect'!AM187*'COM-Appliance class'!$D78+'COM S curve-disconnect'!AM208*'COM-Appliance class'!$E78","v":-11931.290463813941},{"$f":"AN145*'COM-Appliance class'!$B78+'COM S curve-disconnect'!AN166*'COM-Appliance class'!$C78+'COM S curve-disconnect'!AN187*'COM-Appliance class'!$D78+'COM S curve-disconnect'!AN208*'COM-Appliance class'!$E78","v":-11931.290463813941},{"$f":"AO145*'COM-Appliance class'!$B78+'COM S curve-disconnect'!AO166*'COM-Appliance class'!$C78+'COM S curve-disconnect'!AO187*'COM-Appliance class'!$D78+'COM S curve-disconnect'!AO208*'COM-Appliance class'!$E78","v":-11931.290463813941},{"$f":"AP145*'COM-Appliance class'!$B78+'COM S curve-disconnect'!AP166*'COM-Appliance class'!$C78+'COM S curve-disconnect'!AP187*'COM-Appliance class'!$D78+'COM S curve-disconnect'!AP208*'COM-Appliance class'!$E78","v":-11931.290463813941},{"$f":"AQ145*'COM-Appliance class'!$B78+'COM S curve-disconnect'!AQ166*'COM-Appliance class'!$C78+'COM S curve-disconnect'!AQ187*'COM-Appliance class'!$D78+'COM S curve-disconnect'!AQ208*'COM-Appliance class'!$E78","v":-11931.290463813941},{"$f":"AR145*'COM-Appliance class'!$B78+'COM S curve-disconnect'!AR166*'COM-Appliance class'!$C78+'COM S curve-disconnect'!AR187*'COM-Appliance class'!$D78+'COM S curve-disconnect'!AR208*'COM-Appliance class'!$E78","v":-11931.290463813941},{"$f":"AS145*'COM-Appliance class'!$B78+'COM S curve-disconnect'!AS166*'COM-Appliance class'!$C78+'COM S curve-disconnect'!AS187*'COM-Appliance class'!$D78+'COM S curve-disconnect'!AS208*'COM-Appliance class'!$E78","v":-11931.290463813941},{"$f":"AT145*'COM-Appliance class'!$B78+'COM S curve-disconnect'!AT166*'COM-Appliance class'!$C78+'COM S curve-disconnect'!AT187*'COM-Appliance class'!$D78+'COM S curve-disconnect'!AT208*'COM-Appliance class'!$E78","v":-11931.290463813941},{"$f":"AU145*'COM-Appliance class'!$B78+'COM S curve-disconnect'!AU166*'COM-Appliance class'!$C78+'COM S curve-disconnect'!AU187*'COM-Appliance class'!$D78+'COM S curve-disconnect'!AU208*'COM-Appliance class'!$E78","v":-11931.290463813941},{"$f":"AV145*'COM-Appliance class'!$B78+'COM S curve-disconnect'!AV166*'COM-Appliance class'!$C78+'COM S curve-disconnect'!AV187*'COM-Appliance class'!$D78+'COM S curve-disconnect'!AV208*'COM-Appliance class'!$E78","v":-11931.290463813941},{"$f":"AW145*'COM-Appliance class'!$B78+'COM S curve-disconnect'!AW166*'COM-Appliance class'!$C78+'COM S curve-disconnect'!AW187*'COM-Appliance class'!$D78+'COM S curve-disconnect'!AW208*'COM-Appliance class'!$E78","v":-11931.290463813941},{"$f":"AX145*'COM-Appliance class'!$B78+'COM S curve-disconnect'!AX166*'COM-Appliance class'!$C78+'COM S curve-disconnect'!AX187*'COM-Appliance class'!$D78+'COM S curve-disconnect'!AX208*'COM-Appliance class'!$E78","v":-11931.290463813941},{"$f":"AY145*'COM-Appliance class'!$B78+'COM S curve-disconnect'!AY166*'COM-Appliance class'!$C78+'COM S curve-disconnect'!AY187*'COM-Appliance class'!$D78+'COM S curve-disconnect'!AY208*'COM-Appliance class'!$E78","v":-11931.290463813941},{"$f":"AZ145*'COM-Appliance class'!$B78+'COM S curve-disconnect'!AZ166*'COM-Appliance class'!$C78+'COM S curve-disconnect'!AZ187*'COM-Appliance class'!$D78+'COM S curve-disconnect'!AZ208*'COM-Appliance class'!$E78","v":-11931.290463813941},{"$f":"BA145*'COM-Appliance class'!$B78+'COM S curve-disconnect'!BA166*'COM-Appliance class'!$C78+'COM S curve-disconnect'!BA187*'COM-Appliance class'!$D78+'COM S curve-disconnect'!BA208*'COM-Appliance class'!$E78","v":-11931.290463813941},{"$f":"BB145*'COM-Appliance class'!$B78+'COM S curve-disconnect'!BB166*'COM-Appliance class'!$C78+'COM S curve-disconnect'!BB187*'COM-Appliance class'!$D78+'COM S curve-disconnect'!BB208*'COM-Appliance class'!$E78","v":-11931.290463813941},{"$f":"BC145*'COM-Appliance class'!$B78+'COM S curve-disconnect'!BC166*'COM-Appliance class'!$C78+'COM S curve-disconnect'!BC187*'COM-Appliance class'!$D78+'COM S curve-disconnect'!BC208*'COM-Appliance class'!$E78","v":-11931.290463813941},{"$f":"BD145*'COM-Appliance class'!$B78+'COM S curve-disconnect'!BD166*'COM-Appliance class'!$C78+'COM S curve-disconnect'!BD187*'COM-Appliance class'!$D78+'COM S curve-disconnect'!BD208*'COM-Appliance class'!$E78","v":-11931.290463813941},{"$f":"BE145*'COM-Appliance class'!$B78+'COM S curve-disconnect'!BE166*'COM-Appliance class'!$C78+'COM S curve-disconnect'!BE187*'COM-Appliance class'!$D78+'COM S curve-disconnect'!BE208*'COM-Appliance class'!$E78","v":-11931.290463813941},{"$f":"BF145*'COM-Appliance class'!$B78+'COM S curve-disconnect'!BF166*'COM-Appliance class'!$C78+'COM S curve-disconnect'!BF187*'COM-Appliance class'!$D78+'COM S curve-disconnect'!BF208*'COM-Appliance class'!$E78","v":-11931.290463813941},{"$f":"BG145*'COM-Appliance class'!$B78+'COM S curve-disconnect'!BG166*'COM-Appliance class'!$C78+'COM S curve-disconnect'!BG187*'COM-Appliance class'!$D78+'COM S curve-disconnect'!BG208*'COM-Appliance class'!$E78","v":-11931.290463813941},{"$f":"BH145*'COM-Appliance class'!$B78+'COM S curve-disconnect'!BH166*'COM-Appliance class'!$C78+'COM S curve-disconnect'!BH187*'COM-Appliance class'!$D78+'COM S curve-disconnect'!BH208*'COM-Appliance class'!$E78","v":-11931.290463813941},{"$f":"BI145*'COM-Appliance class'!$B78+'COM S curve-disconnect'!BI166*'COM-Appliance class'!$C78+'COM S curve-disconnect'!BI187*'COM-Appliance class'!$D78+'COM S curve-disconnect'!BI208*'COM-Appliance class'!$E78","v":-11931.290463813941},{"$f":"BJ145*'COM-Appliance class'!$B78+'COM S curve-disconnect'!BJ166*'COM-Appliance class'!$C78+'COM S curve-disconnect'!BJ187*'COM-Appliance class'!$D78+'COM S curve-disconnect'!BJ208*'COM-Appliance class'!$E78","v":-11931.290463813941},{"$f":"BK145*'COM-Appliance class'!$B78+'COM S curve-disconnect'!BK166*'COM-Appliance class'!$C78+'COM S curve-disconnect'!BK187*'COM-Appliance class'!$D78+'COM S curve-disconnect'!BK208*'COM-Appliance class'!$E78","v":-11931.290463813941},{"$f":"BL145*'COM-Appliance class'!$B78+'COM S curve-disconnect'!BL166*'COM-Appliance class'!$C78+'COM S curve-disconnect'!BL187*'COM-Appliance class'!$D78+'COM S curve-disconnect'!BL208*'COM-Appliance class'!$E78","v":-11931.290463813941},{"$f":"BM145*'COM-Appliance class'!$B78+'COM S curve-disconnect'!BM166*'COM-Appliance class'!$C78+'COM S curve-disconnect'!BM187*'COM-Appliance class'!$D78+'COM S curve-disconnect'!BM208*'COM-Appliance class'!$E78","v":-11931.290463813941},{"$f":"BN145*'COM-Appliance class'!$B78+'COM S curve-disconnect'!BN166*'COM-Appliance class'!$C78+'COM S curve-disconnect'!BN187*'COM-Appliance class'!$D78+'COM S curve-disconnect'!BN208*'COM-Appliance class'!$E78","v":-11931.290463813941},{"$f":"BO145*'COM-Appliance class'!$B78+'COM S curve-disconnect'!BO166*'COM-Appliance class'!$C78+'COM S curve-disconnect'!BO187*'COM-Appliance class'!$D78+'COM S curve-disconnect'!BO208*'COM-Appliance class'!$E78","v":-11931.290463813941},{"$f":"BP145*'COM-Appliance class'!$B78+'COM S curve-disconnect'!BP166*'COM-Appliance class'!$C78+'COM S curve-disconnect'!BP187*'COM-Appliance class'!$D78+'COM S curve-disconnect'!BP208*'COM-Appliance class'!$E78","v":-11931.290463813941},{"$f":"BQ145*'COM-Appliance class'!$B78+'COM S curve-disconnect'!BQ166*'COM-Appliance class'!$C78+'COM S curve-disconnect'!BQ187*'COM-Appliance class'!$D78+'COM S curve-disconnect'!BQ208*'COM-Appliance class'!$E78","v":-11931.290463813941},{"$f":"BR145*'COM-Appliance class'!$B78+'COM S curve-disconnect'!BR166*'COM-Appliance class'!$C78+'COM S curve-disconnect'!BR187*'COM-Appliance class'!$D78+'COM S curve-disconnect'!BR208*'COM-Appliance class'!$E78","v":-11931.290463813941},{"$f":"BS145*'COM-Appliance class'!$B78+'COM S curve-disconnect'!BS166*'COM-Appliance class'!$C78+'COM S curve-disconnect'!BS187*'COM-Appliance class'!$D78+'COM S curve-disconnect'!BS208*'COM-Appliance class'!$E78","v":-11931.290463813941},{"$f":"BT145*'COM-Appliance class'!$B78+'COM S curve-disconnect'!BT166*'COM-Appliance class'!$C78+'COM S curve-disconnect'!BT187*'COM-Appliance class'!$D78+'COM S curve-disconnect'!BT208*'COM-Appliance class'!$E78","v":-11931.290463813941},{"$f":"BU145*'COM-Appliance class'!$B78+'COM S curve-disconnect'!BU166*'COM-Appliance class'!$C78+'COM S curve-disconnect'!BU187*'COM-Appliance class'!$D78+'COM S curve-disconnect'!BU208*'COM-Appliance class'!$E78","v":-11931.290463813941},{"$f":"BV145*'COM-Appliance class'!$B78+'COM S curve-disconnect'!BV166*'COM-Appliance class'!$C78+'COM S curve-disconnect'!BV187*'COM-Appliance class'!$D78+'COM S curve-disconnect'!BV208*'COM-Appliance class'!$E78","v":-11931.290463813941},{"$f":"BW145*'COM-Appliance class'!$B78+'COM S curve-disconnect'!BW166*'COM-Appliance class'!$C78+'COM S curve-disconnect'!BW187*'COM-Appliance class'!$D78+'COM S curve-disconnect'!BW208*'COM-Appliance class'!$E78","v":-11931.290463813941},{"$f":"BX145*'COM-Appliance class'!$B78+'COM S curve-disconnect'!BX166*'COM-Appliance class'!$C78+'COM S curve-disconnect'!BX187*'COM-Appliance class'!$D78+'COM S curve-disconnect'!BX208*'COM-Appliance class'!$E78","v":-11931.290463813941},{"$f":"BY145*'COM-Appliance class'!$B78+'COM S curve-disconnect'!BY166*'COM-Appliance class'!$C78+'COM S curve-disconnect'!BY187*'COM-Appliance class'!$D78+'COM S curve-disconnect'!BY208*'COM-Appliance class'!$E78","v":-11931.290463813941},{"$f":"BZ145*'COM-Appliance class'!$B78+'COM S curve-disconnect'!BZ166*'COM-Appliance class'!$C78+'COM S curve-disconnect'!BZ187*'COM-Appliance class'!$D78+'COM S curve-disconnect'!BZ208*'COM-Appliance class'!$E78","v":-11931.290463813941},{"$f":"CA145*'COM-Appliance class'!$B78+'COM S curve-disconnect'!CA166*'COM-Appliance class'!$C78+'COM S curve-disconnect'!CA187*'COM-Appliance class'!$D78+'COM S curve-disconnect'!CA208*'COM-Appliance class'!$E78","v":-11931.290463813941},{"$f":"CB145*'COM-Appliance class'!$B78+'COM S curve-disconnect'!CB166*'COM-Appliance class'!$C78+'COM S curve-disconnect'!CB187*'COM-Appliance class'!$D78+'COM S curve-disconnect'!CB208*'COM-Appliance class'!$E78","v":-11931.290463813941},{"$f":"CC145*'COM-Appliance class'!$B78+'COM S curve-disconnect'!CC166*'COM-Appliance class'!$C78+'COM S curve-disconnect'!CC187*'COM-Appliance class'!$D78+'COM S curve-disconnect'!CC208*'COM-Appliance class'!$E78","v":-11931.290463813941},{"$f":"CD145*'COM-Appliance class'!$B78+'COM S curve-disconnect'!CD166*'COM-Appliance class'!$C78+'COM S curve-disconnect'!CD187*'COM-Appliance class'!$D78+'COM S curve-disconnect'!CD208*'COM-Appliance class'!$E78","v":-11931.290463813941}]
["Greater Dandenong (C)",null,{"$f":"C146*'COM-Appliance class'!$B79+'COM S curve-disconnect'!C167*'COM-Appliance class'!$C79+'COM S curve-disconnect'!C188*'COM-Appliance class'!$D79+'COM S curve-disconnect'!C209*'COM-Appliance class'!$E79","v":-38761.657333026073},{"$f":"D146*'COM-Appliance class'!$B79+'COM S curve-disconnect'!D167*'COM-Appliance class'!$C79+'COM S curve-disconnect'!D188*'COM-Appliance class'!$D79+'COM S curve-disconnect'!D209*'COM-Appliance class'!$E79","v":-38761.657333026073},{"$f":"E146*'COM-Appliance class'!$B79+'COM S curve-disconnect'!E167*'COM-Appliance class'!$C79+'COM S curve-disconnect'!E188*'COM-Appliance class'!$D79+'COM S curve-disconnect'!E209*'COM-Appliance class'!$E79","v":-24689.930982250251},{"$f":"F146*'COM-Appliance class'!$B79+'COM S curve-disconnect'!F167*'COM-Appliance class'!$C79+'COM S curve-disconnect'!F188*'COM-Appliance class'!$D79+'COM S curve-disconnect'!F209*'COM-Appliance class'!$E79","v":-24689.930982250251},{"$f":"G146*'COM-Appliance class'!$B79+'COM S curve-disconnect'!G167*'COM-Appliance class'!$C79+'COM S curve-disconnect'!G188*'COM-Appliance class'!$D79+'COM S curve-disconnect'!G209*'COM-Appliance class'!$E79","v":-34868.386041649181},{"$f":"H146*'COM-Appliance class'!$B79+'COM S curve-disconnect'!H167*'COM-Appliance class'!$C79+'COM S curve-disconnect'!H188*'COM-Appliance class'!$D79+'COM S curve-disconnect'!H209*'COM-Appliance class'!$E79","v":-34868.386041649181},{"$f":"I146*'COM-Appliance class'!$B79+'COM S curve-disconnect'!I167*'COM-Appliance class'!$C79+'COM S curve-disconnect'!I188*'COM-Appliance class'!$D79+'COM S curve-disconnect'!I209*'COM-Appliance class'!$E79","v":-34868.386041649181},{"$f":"J146*'COM-Appliance class'!$B79+'COM S curve-disconnect'!J167*'COM-Appliance class'!$C79+'COM S curve-disconnect'!J188*'COM-Appliance class'!$D79+'COM S curve-disconnect'!J209*'COM-Appliance class'!$E79","v":-38256.629701157508},{"$f":"K146*'COM-Appliance class'!$B79+'COM S curve-disconnect'!K167*'COM-Appliance class'!$C79+'COM S curve-disconnect'!K188*'COM-Appliance class'!$D79+'COM S curve-disconnect'!K209*'COM-Appliance class'!$E79","v":-35769.117045423467},{"$f":"L146*'COM-Appliance class'!$B79+'COM S curve-disconnect'!L167*'COM-Appliance class'!$C79+'COM S curve-disconnect'!L188*'COM-Appliance class'!$D79+'COM S curve-disconnect'!L209*'COM-Appliance class'!$E79","v":-35279.052114992912},{"$f":"M146*'COM-Appliance class'!$B79+'COM S curve-disconnect'!M167*'COM-Appliance class'!$C79+'COM S curve-disconnect'!M188*'COM-Appliance class'!$D79+'COM S curve-disconnect'!M209*'COM-Appliance class'!$E79","v":-34791.43750921452},{"$f":"N146*'COM-Appliance class'!$B79+'COM S curve-disconnect'!N167*'COM-Appliance class'!$C79+'COM S curve-disconnect'!N188*'COM-Appliance class'!$D79+'COM S curve-disconnect'!N209*'COM-Appliance class'!$E79","v":-34306.260976465026},{"$f":"O146*'COM-Appliance class'!$B79+'COM S curve-disconnect'!O167*'COM-Appliance class'!$C79+'COM S curve-disconnect'!O188*'COM-Appliance class'!$D79+'COM S curve-disconnect'!O209*'COM-Appliance class'!$E79","v":-33823.510326379255},{"$f":"P146*'COM-Appliance class'!$B79+'COM S curve-disconnect'!P167*'COM-Appliance class'!$C79+'COM S curve-disconnect'!P188*'COM-Appliance class'!$D79+'COM S curve-disconnect'!P209*'COM-Appliance class'!$E79","v":-33343.173429543938},{"$f":"Q146*'COM-Appliance class'!$B79+'COM S curve-disconnect'!Q167*'COM-Appliance class'!$C79+'COM S curve-disconnect'!Q188*'COM-Appliance class'!$D79+'COM S curve-disconnect'!Q209*'COM-Appliance class'!$E79","v":-32865.238217192782},{"$f":"R146*'COM-Appliance class'!$B79+'COM S curve-disconnect'!R167*'COM-Appliance class'!$C79+'COM S curve-disconnect'!R188*'COM-Appliance class'!$D79+'COM S curve-disconnect'!R209*'COM-Appliance class'!$E79","v":-32389.692680903398},{"$f":"S146*'COM-Appliance class'!$B79+'COM S curve-disconnect'!S167*'COM-Appliance class'!$C79+'COM S curve-disconnect'!S188*'COM-Appliance class'!$D79+'COM S curve-disconnect'!S209*'COM-Appliance class'!$E79","v":-31916.524872295453},{"$f":"T146*'COM-Appliance class'!$B79+'COM S curve-disconnect'!T167*'COM-Appliance class'!$C79+'COM S curve-disconnect'!T188*'COM-Appliance class'!$D79+'COM S curve-disconnect'!T209*'COM-Appliance class'!$E79","v":-31445.722902730551},{"$f":"U146*'COM-Appliance class'!$B79+'COM S curve-disconnect'!U167*'COM-Appliance class'!$C79+'COM S curve-disconnect'!U188*'COM-Appliance class'!$D79+'COM S curve-disconnect'!U209*'COM-Appliance class'!$E79","v":-30977.274943013457},{"$f":"V146*'COM-Appliance class'!$B79+'COM S curve-disconnect'!V167*'COM-Appliance class'!$C79+'COM S curve-disconnect'!V188*'COM-Appliance class'!$D79+'COM S curve-disconnect'!V209*'COM-Appliance class'!$E79","v":-30511.169223094959},{"$f":"W146*'COM-Appliance class'!$B79+'COM S curve-disconnect'!W167*'COM-Appliance class'!$C79+'COM S curve-disconnect'!W188*'COM-Appliance class'!$D79+'COM S curve-disconnect'!W209*'COM-Appliance class'!$E79","v":-30047.39403177605},{"$f":"X146*'COM-Appliance class'!$B79+'COM S curve-disconnect'!X167*'COM-Appliance class'!$C79+'COM S curve-disconnect'!X188*'COM-Appliance class'!$D79+'COM S curve-disconnect'!X209*'COM-Appliance class'!$E79","v":-29585.93771641374},{"$f":"Y146*'COM-Appliance class'!$B79+'COM S curve-disconnect'!Y167*'COM-Appliance class'!$C79+'COM S curve-disconnect'!Y188*'COM-Appliance class'!$D79+'COM S curve-disconnect'!Y209*'COM-Appliance class'!$E79","v":-29126.788682628241},{"$f":"Z146*'COM-Appliance class'!$B79+'COM S curve-disconnect'!Z167*'COM-Appliance class'!$C79+'COM S curve-disconnect'!Z188*'COM-Appliance class'!$D79+'COM S curve-disconnect'!Z209*'COM-Appliance class'!$E79","v":-28669.935394011674},{"$f":"AA146*'COM-Appliance class'!$B79+'COM S curve-disconnect'!AA167*'COM-Appliance class'!$C79+'COM S curve-disconnect'!AA188*'COM-Appliance class'!$D79+'COM S curve-disconnect'!AA209*'COM-Appliance class'!$E79","v":-28215.366371838179},{"$f":"AB146*'COM-Appliance class'!$B79+'COM S curve-disconnect'!AB167*'COM-Appliance class'!$C79+'COM S curve-disconnect'!AB188*'COM-Appliance class'!$D79+'COM S curve-disconnect'!AB209*'COM-Appliance class'!$E79","v":-27763.070194775551},{"$f":"AC146*'COM-Appliance class'!$B79+'COM S curve-disconnect'!AC167*'COM-Appliance class'!$C79+'COM S curve-disconnect'!AC188*'COM-Appliance class'!$D79+'COM S curve-disconnect'!AC209*'COM-Appliance class'!$E79","v":-27313.035498598256},{"$f":"AD146*'COM-Appliance class'!$B79+'COM S curve-disconnect'!AD167*'COM-Appliance class'!$C79+'COM S curve-disconnect'!AD188*'COM-Appliance class'!$D79+'COM S curve-disconnect'!AD209*'COM-Appliance class'!$E79","v":-26865.250975901832},{"$f":"AE146*'COM-Appliance class'!$B79+'COM S curve-disconnect'!AE167*'COM-Appliance class'!$C79+'COM S curve-disconnect'!AE188*'COM-Appliance class'!$D79+'COM S curve-disconnect'!AE209*'COM-Appliance class'!$E79","v":-26419.705375818896},{"$f":"AF146*'COM-Appliance class'!$B79+'COM S curve-disconnect'!AF167*'COM-Appliance class'!$C79+'COM S curve-disconnect'!AF188*'COM-Appliance class'!$D79+'COM S curve-disconnect'!AF209*'COM-Appliance class'!$E79","v":-25976.387503736372},{"$f":"AG146*'COM-Appliance class'!$B79+'COM S curve-disconnect'!AG167*'COM-Appliance class'!$C79+'COM S curve-disconnect'!AG188*'COM-Appliance class'!$D79+'COM S curve-disconnect'!AG209*'COM-Appliance class'!$E79","v":-25976.387503736372},{"$f":"AH146*'COM-Appliance class'!$B79+'COM S curve-disconnect'!AH167*'COM-Appliance class'!$C79+'COM S curve-disconnect'!AH188*'COM-Appliance class'!$D79+'COM S curve-disconnect'!AH209*'COM-Appliance class'!$E79","v":-25976.387503736372},{"$f":"AI146*'COM-Appliance class'!$B79+'COM S curve-disconnect'!AI167*'COM-Appliance class'!$C79+'COM S curve-disconnect'!AI188*'COM-Appliance class'!$D79+'COM S curve-disconnect'!AI209*'COM-Appliance class'!$E79","v":-25976.387503736372},{"$f":"AJ146*'COM-Appliance class'!$B79+'COM S curve-disconnect'!AJ167*'COM-Appliance class'!$C79+'COM S curve-disconnect'!AJ188*'COM-Appliance class'!$D79+'COM S curve-disconnect'!AJ209*'COM-Appliance class'!$E79","v":-25976.387503736372},{"$f":"AK146*'COM-Appliance class'!$B79+'COM S curve-disconnect'!AK167*'COM-Appliance class'!$C79+'COM S curve-disconnect'!AK188*'COM-Appliance class'!$D79+'COM S curve-disconnect'!AK209*'COM-Appliance class'!$E79","v":-25976.387503736372},{"$f":"AL146*'COM-Appliance class'!$B79+'COM S curve-disconnect'!AL167*'COM-Appliance class'!$C79+'COM S curve-disconnect'!AL188*'COM-Appliance class'!$D79+'COM S curve-disconnect'!AL209*'COM-Appliance class'!$E79","v":-25976.387503736372},{"$f":"AM146*'COM-Appliance class'!$B79+'COM S curve-disconnect'!AM167*'COM-Appliance class'!$C79+'COM S curve-disconnect'!AM188*'COM-Appliance class'!$D79+'COM S curve-disconnect'!AM209*'COM-Appliance class'!$E79","v":-25976.387503736372},{"$f":"AN146*'COM-Appliance class'!$B79+'COM S curve-disconnect'!AN167*'COM-Appliance class'!$C79+'COM S curve-disconnect'!AN188*'COM-Appliance class'!$D79+'COM S curve-disconnect'!AN209*'COM-Appliance class'!$E79","v":-25976.387503736372},{"$f":"AO146*'COM-Appliance class'!$B79+'COM S curve-disconnect'!AO167*'COM-Appliance class'!$C79+'COM S curve-disconnect'!AO188*'COM-Appliance class'!$D79+'COM S curve-disconnect'!AO209*'COM-Appliance class'!$E79","v":-25976.387503736372},{"$f":"AP146*'COM-Appliance class'!$B79+'COM S curve-disconnect'!AP167*'COM-Appliance class'!$C79+'COM S curve-disconnect'!AP188*'COM-Appliance class'!$D79+'COM S curve-disconnect'!AP209*'COM-Appliance class'!$E79","v":-25976.387503736372},{"$f":"AQ146*'COM-Appliance class'!$B79+'COM S curve-disconnect'!AQ167*'COM-Appliance class'!$C79+'COM S curve-disconnect'!AQ188*'COM-Appliance class'!$D79+'COM S curve-disconnect'!AQ209*'COM-Appliance class'!$E79","v":-25976.387503736372},{"$f":"AR146*'COM-Appliance class'!$B79+'COM S curve-disconnect'!AR167*'COM-Appliance class'!$C79+'COM S curve-disconnect'!AR188*'COM-Appliance class'!$D79+'COM S curve-disconnect'!AR209*'COM-Appliance class'!$E79","v":-25976.387503736372},{"$f":"AS146*'COM-Appliance class'!$B79+'COM S curve-disconnect'!AS167*'COM-Appliance class'!$C79+'COM S curve-disconnect'!AS188*'COM-Appliance class'!$D79+'COM S curve-disconnect'!AS209*'COM-Appliance class'!$E79","v":-25976.387503736372},{"$f":"AT146*'COM-Appliance class'!$B79+'COM S curve-disconnect'!AT167*'COM-Appliance class'!$C79+'COM S curve-disconnect'!AT188*'COM-Appliance class'!$D79+'COM S curve-disconnect'!AT209*'COM-Appliance class'!$E79","v":-25976.387503736372},{"$f":"AU146*'COM-Appliance class'!$B79+'COM S curve-disconnect'!AU167*'COM-Appliance class'!$C79+'COM S curve-disconnect'!AU188*'COM-Appliance class'!$D79+'COM S curve-disconnect'!AU209*'COM-Appliance class'!$E79","v":-25976.387503736372},{"$f":"AV146*'COM-Appliance class'!$B79+'COM S curve-disconnect'!AV167*'COM-Appliance class'!$C79+'COM S curve-disconnect'!AV188*'COM-Appliance class'!$D79+'COM S curve-disconnect'!AV209*'COM-Appliance class'!$E79","v":-25976.387503736372},{"$f":"AW146*'COM-Appliance class'!$B79+'COM S curve-disconnect'!AW167*'COM-Appliance class'!$C79+'COM S curve-disconnect'!AW188*'COM-Appliance class'!$D79+'COM S curve-disconnect'!AW209*'COM-Appliance class'!$E79","v":-25976.387503736372},{"$f":"AX146*'COM-Appliance class'!$B79+'COM S curve-disconnect'!AX167*'COM-Appliance class'!$C79+'COM S curve-disconnect'!AX188*'COM-Appliance class'!$D79+'COM S curve-disconnect'!AX209*'COM-Appliance class'!$E79","v":-25976.387503736372},{"$f":"AY146*'COM-Appliance class'!$B79+'COM S curve-disconnect'!AY167*'COM-Appliance class'!$C79+'COM S curve-disconnect'!AY188*'COM-Appliance class'!$D79+'COM S curve-disconnect'!AY209*'COM-Appliance class'!$E79","v":-25976.387503736372},{"$f":"AZ146*'COM-Appliance class'!$B79+'COM S curve-disconnect'!AZ167*'COM-Appliance class'!$C79+'COM S curve-disconnect'!AZ188*'COM-Appliance class'!$D79+'COM S curve-disconnect'!AZ209*'COM-Appliance class'!$E79","v":-25976.387503736372},{"$f":"BA146*'COM-Appliance class'!$B79+'COM S curve-disconnect'!BA167*'COM-Appliance class'!$C79+'COM S curve-disconnect'!BA188*'COM-Appliance class'!$D79+'COM S curve-disconnect'!BA209*'COM-Appliance class'!$E79","v":-25976.387503736372},{"$f":"BB146*'COM-Appliance class'!$B79+'COM S curve-disconnect'!BB167*'COM-Appliance class'!$C79+'COM S curve-disconnect'!BB188*'COM-Appliance class'!$D79+'COM S curve-disconnect'!BB209*'COM-Appliance class'!$E79","v":-25976.387503736372},{"$f":"BC146*'COM-Appliance class'!$B79+'COM S curve-disconnect'!BC167*'COM-Appliance class'!$C79+'COM S curve-disconnect'!BC188*'COM-Appliance class'!$D79+'COM S curve-disconnect'!BC209*'COM-Appliance class'!$E79","v":-25976.387503736372},{"$f":"BD146*'COM-Appliance class'!$B79+'COM S curve-disconnect'!BD167*'COM-Appliance class'!$C79+'COM S curve-disconnect'!BD188*'COM-Appliance class'!$D79+'COM S curve-disconnect'!BD209*'COM-Appliance class'!$E79","v":-25976.387503736372},{"$f":"BE146*'COM-Appliance class'!$B79+'COM S curve-disconnect'!BE167*'COM-Appliance class'!$C79+'COM S curve-disconnect'!BE188*'COM-Appliance class'!$D79+'COM S curve-disconnect'!BE209*'COM-Appliance class'!$E79","v":-25976.387503736372},{"$f":"BF146*'COM-Appliance class'!$B79+'COM S curve-disconnect'!BF167*'COM-Appliance class'!$C79+'COM S curve-disconnect'!BF188*'COM-Appliance class'!$D79+'COM S curve-disconnect'!BF209*'COM-Appliance class'!$E79","v":-25976.387503736372},{"$f":"BG146*'COM-Appliance class'!$B79+'COM S curve-disconnect'!BG167*'COM-Appliance class'!$C79+'COM S curve-disconnect'!BG188*'COM-Appliance class'!$D79+'COM S curve-disconnect'!BG209*'COM-Appliance class'!$E79","v":-25976.387503736372},{"$f":"BH146*'COM-Appliance class'!$B79+'COM S curve-disconnect'!BH167*'COM-Appliance class'!$C79+'COM S curve-disconnect'!BH188*'COM-Appliance class'!$D79+'COM S curve-disconnect'!BH209*'COM-Appliance class'!$E79","v":-25976.387503736372},{"$f":"BI146*'COM-Appliance class'!$B79+'COM S curve-disconnect'!BI167*'COM-Appliance class'!$C79+'COM S curve-disconnect'!BI188*'COM-Appliance class'!$D79+'COM S curve-disconnect'!BI209*'COM-Appliance class'!$E79","v":-25976.387503736372},{"$f":"BJ146*'COM-Appliance class'!$B79+'COM S curve-disconnect'!BJ167*'COM-Appliance class'!$C79+'COM S curve-disconnect'!BJ188*'COM-Appliance class'!$D79+'COM S curve-disconnect'!BJ209*'COM-Appliance class'!$E79","v":-25976.387503736372},{"$f":"BK146*'COM-Appliance class'!$B79+'COM S curve-disconnect'!BK167*'COM-Appliance class'!$C79+'COM S curve-disconnect'!BK188*'COM-Appliance class'!$D79+'COM S curve-disconnect'!BK209*'COM-Appliance class'!$E79","v":-25976.387503736372},{"$f":"BL146*'COM-Appliance class'!$B79+'COM S curve-disconnect'!BL167*'COM-Appliance class'!$C79+'COM S curve-disconnect'!BL188*'COM-Appliance class'!$D79+'COM S curve-disconnect'!BL209*'COM-Appliance class'!$E79","v":-25976.387503736372},{"$f":"BM146*'COM-Appliance class'!$B79+'COM S curve-disconnect'!BM167*'COM-Appliance class'!$C79+'COM S curve-disconnect'!BM188*'COM-Appliance class'!$D79+'COM S curve-disconnect'!BM209*'COM-Appliance class'!$E79","v":-25976.387503736372},{"$f":"BN146*'COM-Appliance class'!$B79+'COM S curve-disconnect'!BN167*'COM-Appliance class'!$C79+'COM S curve-disconnect'!BN188*'COM-Appliance class'!$D79+'COM S curve-disconnect'!BN209*'COM-Appliance class'!$E79","v":-25976.387503736372},{"$f":"BO146*'COM-Appliance class'!$B79+'COM S curve-disconnect'!BO167*'COM-Appliance class'!$C79+'COM S curve-disconnect'!BO188*'COM-Appliance class'!$D79+'COM S curve-disconnect'!BO209*'COM-Appliance class'!$E79","v":-25976.387503736372},{"$f":"BP146*'COM-Appliance class'!$B79+'COM S curve-disconnect'!BP167*'COM-Appliance class'!$C79+'COM S curve-disconnect'!BP188*'COM-Appliance class'!$D79+'COM S curve-disconnect'!BP209*'COM-Appliance class'!$E79","v":-25976.387503736372},{"$f":"BQ146*'COM-Appliance class'!$B79+'COM S curve-disconnect'!BQ167*'COM-Appliance class'!$C79+'COM S curve-disconnect'!BQ188*'COM-Appliance class'!$D79+'COM S curve-disconnect'!BQ209*'COM-Appliance class'!$E79","v":-25976.387503736372},{"$f":"BR146*'COM-Appliance class'!$B79+'COM S curve-disconnect'!BR167*'COM-Appliance class'!$C79+'COM S curve-disconnect'!BR188*'COM-Appliance class'!$D79+'COM S curve-disconnect'!BR209*'COM-Appliance class'!$E79","v":-25976.387503736372},{"$f":"BS146*'COM-Appliance class'!$B79+'COM S curve-disconnect'!BS167*'COM-Appliance class'!$C79+'COM S curve-disconnect'!BS188*'COM-Appliance class'!$D79+'COM S curve-disconnect'!BS209*'COM-Appliance class'!$E79","v":-25976.387503736372},{"$f":"BT146*'COM-Appliance class'!$B79+'COM S curve-disconnect'!BT167*'COM-Appliance class'!$C79+'COM S curve-disconnect'!BT188*'COM-Appliance class'!$D79+'COM S curve-disconnect'!BT209*'COM-Appliance class'!$E79","v":-25976.387503736372},{"$f":"BU146*'COM-Appliance class'!$B79+'COM S curve-disconnect'!BU167*'COM-Appliance class'!$C79+'COM S curve-disconnect'!BU188*'COM-Appliance class'!$D79+'COM S curve-disconnect'!BU209*'COM-Appliance class'!$E79","v":-25976.387503736372},{"$f":"BV146*'COM-Appliance class'!$B79+'COM S curve-disconnect'!BV167*'COM-Appliance class'!$C79+'COM S curve-disconnect'!BV188*'COM-Appliance class'!$D79+'COM S curve-disconnect'!BV209*'COM-Appliance class'!$E79","v":-25976.387503736372},{"$f":"BW146*'COM-Appliance class'!$B79+'COM S curve-disconnect'!BW167*'COM-Appliance class'!$C79+'COM S curve-disconnect'!BW188*'COM-Appliance class'!$D79+'COM S curve-disconnect'!BW209*'COM-Appliance class'!$E79","v":-25976.387503736372},{"$f":"BX146*'COM-Appliance class'!$B79+'COM S curve-disconnect'!BX167*'COM-Appliance class'!$C79+'COM S curve-disconnect'!BX188*'COM-Appliance class'!$D79+'COM S curve-disconnect'!BX209*'COM-Appliance class'!$E79","v":-25976.387503736372},{"$f":"BY146*'COM-Appliance class'!$B79+'COM S curve-disconnect'!BY167*'COM-Appliance class'!$C79+'COM S curve-disconnect'!BY188*'COM-Appliance class'!$D79+'COM S curve-disconnect'!BY209*'COM-Appliance class'!$E79","v":-25976.387503736372},{"$f":"BZ146*'COM-Appliance class'!$B79+'COM S curve-disconnect'!BZ167*'COM-Appliance class'!$C79+'COM S curve-disconnect'!BZ188*'COM-Appliance class'!$D79+'COM S curve-disconnect'!BZ209*'COM-Appliance class'!$E79","v":-25976.387503736372},{"$f":"CA146*'COM-Appliance class'!$B79+'COM S curve-disconnect'!CA167*'COM-Appliance class'!$C79+'COM S curve-disconnect'!CA188*'COM-Appliance class'!$D79+'COM S curve-disconnect'!CA209*'COM-Appliance class'!$E79","v":-25976.387503736372},{"$f":"CB146*'COM-Appliance class'!$B79+'COM S curve-disconnect'!CB167*'COM-Appliance class'!$C79+'COM S curve-disconnect'!CB188*'COM-Appliance class'!$D79+'COM S curve-disconnect'!CB209*'COM-Appliance class'!$E79","v":-25976.387503736372},{"$f":"CC146*'COM-Appliance class'!$B79+'COM S curve-disconnect'!CC167*'COM-Appliance class'!$C79+'COM S curve-disconnect'!CC188*'COM-Appliance class'!$D79+'COM S curve-disconnect'!CC209*'COM-Appliance class'!$E79","v":-25976.387503736372},{"$f":"CD146*'COM-Appliance class'!$B79+'COM S curve-disconnect'!CD167*'COM-Appliance class'!$C79+'COM S curve-disconnect'!CD188*'COM-Appliance class'!$D79+'COM S curve-disconnect'!CD209*'COM-Appliance class'!$E79","v":-25976.387503736372}]
["Kingston (C)",null,{"$f":"C147*'COM-Appliance class'!$B80+'COM S curve-disconnect'!C168*'COM-Appliance class'!$C80+'COM S curve-disconnect'!C189*'COM-Appliance class'!$D80+'COM S curve-disconnect'!C210*'COM-Appliance class'!$E80","v":-29741.527061241748},{"$f":"D147*'COM-Appliance class'!$B80+'COM S curve-disconnect'!D168*'COM-Appliance class'!$C80+'COM S curve-disconnect'!D189*'COM-Appliance class'!$D80+'COM S curve-disconnect'!D210*'COM-Appliance class'!$E80","v":-29741.527061241748},{"$f":"E147*'COM-Appliance class'!$B80+'COM S curve-disconnect'!E168*'COM-Appliance class'!$C80+'COM S curve-disconnect'!E189*'COM-Appliance class'!$D80+'COM S curve-disconnect'!E210*'COM-Appliance class'!$E80","v":-18944.397659259215},{"$f":"F147*'COM-Appliance class'!$B80+'COM S curve-disconnect'!F168*'COM-Appliance class'!$C80+'COM S curve-disconnect'!F189*'COM-Appliance class'!$D80+'COM S curve-disconnect'!F210*'COM-Appliance class'!$E80","v":-18944.397659259215},{"$f":"G147*'COM-Appliance class'!$B80+'COM S curve-disconnect'!G168*'COM-Appliance class'!$C80+'COM S curve-disconnect'!G189*'COM-Appliance class'!$D80+'COM S curve-disconnect'!G210*'COM-Appliance class'!$E80","v":-26754.249389536431},{"$f":"H147*'COM-Appliance class'!$B80+'COM S curve-disconnect'!H168*'COM-Appliance class'!$C80+'COM S curve-disconnect'!H189*'COM-Appliance class'!$D80+'COM S curve-disconnect'!H210*'COM-Appliance class'!$E80","v":-26754.249389536431},{"$f":"I147*'COM-Appliance class'!$B80+'COM S curve-disconnect'!I168*'COM-Appliance class'!$C80+'COM S curve-disconnect'!I189*'COM-Appliance class'!$D80+'COM S curve-disconnect'!I210*'COM-Appliance class'!$E80","v":-26754.249389536431},{"$f":"J147*'COM-Appliance class'!$B80+'COM S curve-disconnect'!J168*'COM-Appliance class'!$C80+'COM S curve-disconnect'!J189*'COM-Appliance class'!$D80+'COM S curve-disconnect'!J210*'COM-Appliance class'!$E80","v":-29354.023171744848},{"$f":"K147*'COM-Appliance class'!$B80+'COM S curve-disconnect'!K168*'COM-Appliance class'!$C80+'COM S curve-disconnect'!K189*'COM-Appliance class'!$D80+'COM S curve-disconnect'!K210*'COM-Appliance class'!$E80","v":-27445.373489145742},{"$f":"L147*'COM-Appliance class'!$B80+'COM S curve-disconnect'!L168*'COM-Appliance class'!$C80+'COM S curve-disconnect'!L189*'COM-Appliance class'!$D80+'COM S curve-disconnect'!L210*'COM-Appliance class'!$E80","v":-27069.350367509323},{"$f":"M147*'COM-Appliance class'!$B80+'COM S curve-disconnect'!M168*'COM-Appliance class'!$C80+'COM S curve-disconnect'!M189*'COM-Appliance class'!$D80+'COM S curve-disconnect'!M210*'COM-Appliance class'!$E80","v":-26695.207361481083},{"$f":"N147*'COM-Appliance class'!$B80+'COM S curve-disconnect'!N168*'COM-Appliance class'!$C80+'COM S curve-disconnect'!N189*'COM-Appliance class'!$D80+'COM S curve-disconnect'!N210*'COM-Appliance class'!$E80","v":-26322.935070482992},{"$f":"O147*'COM-Appliance class'!$B80+'COM S curve-disconnect'!O168*'COM-Appliance class'!$C80+'COM S curve-disconnect'!O189*'COM-Appliance class'!$D80+'COM S curve-disconnect'!O210*'COM-Appliance class'!$E80","v":-25952.52414093988},{"$f":"P147*'COM-Appliance class'!$B80+'COM S curve-disconnect'!P168*'COM-Appliance class'!$C80+'COM S curve-disconnect'!P189*'COM-Appliance class'!$D80+'COM S curve-disconnect'!P210*'COM-Appliance class'!$E80","v":-25583.965266044492},{"$f":"Q147*'COM-Appliance class'!$B80+'COM S curve-disconnect'!Q168*'COM-Appliance class'!$C80+'COM S curve-disconnect'!Q189*'COM-Appliance class'!$D80+'COM S curve-disconnect'!Q210*'COM-Appliance class'!$E80","v":-25217.249185523571},{"$f":"R147*'COM-Appliance class'!$B80+'COM S curve-disconnect'!R168*'COM-Appliance class'!$C80+'COM S curve-disconnect'!R189*'COM-Appliance class'!$D80+'COM S curve-disconnect'!R210*'COM-Appliance class'!$E80","v":-24852.366685405272},{"$f":"S147*'COM-Appliance class'!$B80+'COM S curve-disconnect'!S168*'COM-Appliance class'!$C80+'COM S curve-disconnect'!S189*'COM-Appliance class'!$D80+'COM S curve-disconnect'!S210*'COM-Appliance class'!$E80","v":-24489.308597787553},{"$f":"T147*'COM-Appliance class'!$B80+'COM S curve-disconnect'!T168*'COM-Appliance class'!$C80+'COM S curve-disconnect'!T189*'COM-Appliance class'!$D80+'COM S curve-disconnect'!T210*'COM-Appliance class'!$E80","v":-24128.065800607928},{"$f":"U147*'COM-Appliance class'!$B80+'COM S curve-disconnect'!U168*'COM-Appliance class'!$C80+'COM S curve-disconnect'!U189*'COM-Appliance class'!$D80+'COM S curve-disconnect'!U210*'COM-Appliance class'!$E80","v":-23768.629217414196},{"$f":"V147*'COM-Appliance class'!$B80+'COM S curve-disconnect'!V168*'COM-Appliance class'!$C80+'COM S curve-disconnect'!V189*'COM-Appliance class'!$D80+'COM S curve-disconnect'!V210*'COM-Appliance class'!$E80","v":-23410.989817136429},{"$f":"W147*'COM-Appliance class'!$B80+'COM S curve-disconnect'!W168*'COM-Appliance class'!$C80+'COM S curve-disconnect'!W189*'COM-Appliance class'!$D80+'COM S curve-disconnect'!W210*'COM-Appliance class'!$E80","v":-23055.13861386005},{"$f":"X147*'COM-Appliance class'!$B80+'COM S curve-disconnect'!X168*'COM-Appliance class'!$C80+'COM S curve-disconnect'!X189*'COM-Appliance class'!$D80+'COM S curve-disconnect'!X210*'COM-Appliance class'!$E80","v":-22701.066666600062},{"$f":"Y147*'COM-Appliance class'!$B80+'COM S curve-disconnect'!Y168*'COM-Appliance class'!$C80+'COM S curve-disconnect'!Y189*'COM-Appliance class'!$D80+'COM S curve-disconnect'!Y210*'COM-Appliance class'!$E80","v":-22348.765079076373},{"$f":"Z147*'COM-Appliance class'!$B80+'COM S curve-disconnect'!Z168*'COM-Appliance class'!$C80+'COM S curve-disconnect'!Z189*'COM-Appliance class'!$D80+'COM S curve-disconnect'!Z210*'COM-Appliance class'!$E80","v":-21998.2249994903},{"$f":"AA147*'COM-Appliance class'!$B80+'COM S curve-disconnect'!AA168*'COM-Appliance class'!$C80+'COM S curve-disconnect'!AA189*'COM-Appliance class'!$D80+'COM S curve-disconnect'!AA210*'COM-Appliance class'!$E80","v":-21649.437620302153},{"$f":"AB147*'COM-Appliance class'!$B80+'COM S curve-disconnect'!AB168*'COM-Appliance class'!$C80+'COM S curve-disconnect'!AB189*'COM-Appliance class'!$D80+'COM S curve-disconnect'!AB210*'COM-Appliance class'!$E80","v":-21302.394178009952},{"$f":"AC147*'COM-Appliance class'!$B80+'COM S curve-disconnect'!AC168*'COM-Appliance class'!$C80+'COM S curve-disconnect'!AC189*'COM-Appliance class'!$D80+'COM S curve-disconnect'!AC210*'COM-Appliance class'!$E80","v":-20957.085952929217},{"$f":"AD147*'COM-Appliance class'!$B80+'COM S curve-disconnect'!AD168*'COM-Appliance class'!$C80+'COM S curve-disconnect'!AD189*'COM-Appliance class'!$D80+'COM S curve-disconnect'!AD210*'COM-Appliance class'!$E80","v":-20613.504268973884},{"$f":"AE147*'COM-Appliance class'!$B80+'COM S curve-disconnect'!AE168*'COM-Appliance class'!$C80+'COM S curve-disconnect'!AE189*'COM-Appliance class'!$D80+'COM S curve-disconnect'!AE210*'COM-Appliance class'!$E80","v":-20271.640493438321},{"$f":"AF147*'COM-Appliance class'!$B80+'COM S curve-disconnect'!AF168*'COM-Appliance class'!$C80+'COM S curve-disconnect'!AF189*'COM-Appliance class'!$D80+'COM S curve-disconnect'!AF210*'COM-Appliance class'!$E80","v":-19931.486036780436},{"$f":"AG147*'COM-Appliance class'!$B80+'COM S curve-disconnect'!AG168*'COM-Appliance class'!$C80+'COM S curve-disconnect'!AG189*'COM-Appliance class'!$D80+'COM S curve-disconnect'!AG210*'COM-Appliance class'!$E80","v":-19931.486036780436},{"$f":"AH147*'COM-Appliance class'!$B80+'COM S curve-disconnect'!AH168*'COM-Appliance class'!$C80+'COM S curve-disconnect'!AH189*'COM-Appliance class'!$D80+'COM S curve-disconnect'!AH210*'COM-Appliance class'!$E80","v":-19931.486036780436},{"$f":"AI147*'COM-Appliance class'!$B80+'COM S curve-disconnect'!AI168*'COM-Appliance class'!$C80+'COM S curve-disconnect'!AI189*'COM-Appliance class'!$D80+'COM S curve-disconnect'!AI210*'COM-Appliance class'!$E80","v":-19931.486036780436},{"$f":"AJ147*'COM-Appliance class'!$B80+'COM S curve-disconnect'!AJ168*'COM-Appliance class'!$C80+'COM S curve-disconnect'!AJ189*'COM-Appliance class'!$D80+'COM S curve-disconnect'!AJ210*'COM-Appliance class'!$E80","v":-19931.486036780436},{"$f":"AK147*'COM-Appliance class'!$B80+'COM S curve-disconnect'!AK168*'COM-Appliance class'!$C80+'COM S curve-disconnect'!AK189*'COM-Appliance class'!$D80+'COM S curve-disconnect'!AK210*'COM-Appliance class'!$E80","v":-19931.486036780436},{"$f":"AL147*'COM-Appliance class'!$B80+'COM S curve-disconnect'!AL168*'COM-Appliance class'!$C80+'COM S curve-disconnect'!AL189*'COM-Appliance class'!$D80+'COM S curve-disconnect'!AL210*'COM-Appliance class'!$E80","v":-19931.486036780436},{"$f":"AM147*'COM-Appliance class'!$B80+'COM S curve-disconnect'!AM168*'COM-Appliance class'!$C80+'COM S curve-disconnect'!AM189*'COM-Appliance class'!$D80+'COM S curve-disconnect'!AM210*'COM-Appliance class'!$E80","v":-19931.486036780436},{"$f":"AN147*'COM-Appliance class'!$B80+'COM S curve-disconnect'!AN168*'COM-Appliance class'!$C80+'COM S curve-disconnect'!AN189*'COM-Appliance class'!$D80+'COM S curve-disconnect'!AN210*'COM-Appliance class'!$E80","v":-19931.486036780436},{"$f":"AO147*'COM-Appliance class'!$B80+'COM S curve-disconnect'!AO168*'COM-Appliance class'!$C80+'COM S curve-disconnect'!AO189*'COM-Appliance class'!$D80+'COM S curve-disconnect'!AO210*'COM-Appliance class'!$E80","v":-19931.486036780436},{"$f":"AP147*'COM-Appliance class'!$B80+'COM S curve-disconnect'!AP168*'COM-Appliance class'!$C80+'COM S curve-disconnect'!AP189*'COM-Appliance class'!$D80+'COM S curve-disconnect'!AP210*'COM-Appliance class'!$E80","v":-19931.486036780436},{"$f":"AQ147*'COM-Appliance class'!$B80+'COM S curve-disconnect'!AQ168*'COM-Appliance class'!$C80+'COM S curve-disconnect'!AQ189*'COM-Appliance class'!$D80+'COM S curve-disconnect'!AQ210*'COM-Appliance class'!$E80","v":-19931.486036780436},{"$f":"AR147*'COM-Appliance class'!$B80+'COM S curve-disconnect'!AR168*'COM-Appliance class'!$C80+'COM S curve-disconnect'!AR189*'COM-Appliance class'!$D80+'COM S curve-disconnect'!AR210*'COM-Appliance class'!$E80","v":-19931.486036780436},{"$f":"AS147*'COM-Appliance class'!$B80+'COM S curve-disconnect'!AS168*'COM-Appliance class'!$C80+'COM S curve-disconnect'!AS189*'COM-Appliance class'!$D80+'COM S curve-disconnect'!AS210*'COM-Appliance class'!$E80","v":-19931.486036780436},{"$f":"AT147*'COM-Appliance class'!$B80+'COM S curve-disconnect'!AT168*'COM-Appliance class'!$C80+'COM S curve-disconnect'!AT189*'COM-Appliance class'!$D80+'COM S curve-disconnect'!AT210*'COM-Appliance class'!$E80","v":-19931.486036780436},{"$f":"AU147*'COM-Appliance class'!$B80+'COM S curve-disconnect'!AU168*'COM-Appliance class'!$C80+'COM S curve-disconnect'!AU189*'COM-Appliance class'!$D80+'COM S curve-disconnect'!AU210*'COM-Appliance class'!$E80","v":-19931.486036780436},{"$f":"AV147*'COM-Appliance class'!$B80+'COM S curve-disconnect'!AV168*'COM-Appliance class'!$C80+'COM S curve-disconnect'!AV189*'COM-Appliance class'!$D80+'COM S curve-disconnect'!AV210*'COM-Appliance class'!$E80","v":-19931.486036780436},{"$f":"AW147*'COM-Appliance class'!$B80+'COM S curve-disconnect'!AW168*'COM-Appliance class'!$C80+'COM S curve-disconnect'!AW189*'COM-Appliance class'!$D80+'COM S curve-disconnect'!AW210*'COM-Appliance class'!$E80","v":-19931.486036780436},{"$f":"AX147*'COM-Appliance class'!$B80+'COM S curve-disconnect'!AX168*'COM-Appliance class'!$C80+'COM S curve-disconnect'!AX189*'COM-Appliance class'!$D80+'COM S curve-disconnect'!AX210*'COM-Appliance class'!$E80","v":-19931.486036780436},{"$f":"AY147*'COM-Appliance class'!$B80+'COM S curve-disconnect'!AY168*'COM-Appliance class'!$C80+'COM S curve-disconnect'!AY189*'COM-Appliance class'!$D80+'COM S curve-disconnect'!AY210*'COM-Appliance class'!$E80","v":-19931.486036780436},{"$f":"AZ147*'COM-Appliance class'!$B80+'COM S curve-disconnect'!AZ168*'COM-Appliance class'!$C80+'COM S curve-disconnect'!AZ189*'COM-Appliance class'!$D80+'COM S curve-disconnect'!AZ210*'COM-Appliance class'!$E80","v":-19931.486036780436},{"$f":"BA147*'COM-Appliance class'!$B80+'COM S curve-disconnect'!BA168*'COM-Appliance class'!$C80+'COM S curve-disconnect'!BA189*'COM-Appliance class'!$D80+'COM S curve-disconnect'!BA210*'COM-Appliance class'!$E80","v":-19931.486036780436},{"$f":"BB147*'COM-Appliance class'!$B80+'COM S curve-disconnect'!BB168*'COM-Appliance class'!$C80+'COM S curve-disconnect'!BB189*'COM-Appliance class'!$D80+'COM S curve-disconnect'!BB210*'COM-Appliance class'!$E80","v":-19931.486036780436},{"$f":"BC147*'COM-Appliance class'!$B80+'COM S curve-disconnect'!BC168*'COM-Appliance class'!$C80+'COM S curve-disconnect'!BC189*'COM-Appliance class'!$D80+'COM S curve-disconnect'!BC210*'COM-Appliance class'!$E80","v":-19931.486036780436},{"$f":"BD147*'COM-Appliance class'!$B80+'COM S curve-disconnect'!BD168*'COM-Appliance class'!$C80+'COM S curve-disconnect'!BD189*'COM-Appliance class'!$D80+'COM S curve-disconnect'!BD210*'COM-Appliance class'!$E80","v":-19931.486036780436},{"$f":"BE147*'COM-Appliance class'!$B80+'COM S curve-disconnect'!BE168*'COM-Appliance class'!$C80+'COM S curve-disconnect'!BE189*'COM-Appliance class'!$D80+'COM S curve-disconnect'!BE210*'COM-Appliance class'!$E80","v":-19931.486036780436},{"$f":"BF147*'COM-Appliance class'!$B80+'COM S curve-disconnect'!BF168*'COM-Appliance class'!$C80+'COM S curve-disconnect'!BF189*'COM-Appliance class'!$D80+'COM S curve-disconnect'!BF210*'COM-Appliance class'!$E80","v":-19931.486036780436},{"$f":"BG147*'COM-Appliance class'!$B80+'COM S curve-disconnect'!BG168*'COM-Appliance class'!$C80+'COM S curve-disconnect'!BG189*'COM-Appliance class'!$D80+'COM S curve-disconnect'!BG210*'COM-Appliance class'!$E80","v":-19931.486036780436},{"$f":"BH147*'COM-Appliance class'!$B80+'COM S curve-disconnect'!BH168*'COM-Appliance class'!$C80+'COM S curve-disconnect'!BH189*'COM-Appliance class'!$D80+'COM S curve-disconnect'!BH210*'COM-Appliance class'!$E80","v":-19931.486036780436},{"$f":"BI147*'COM-Appliance class'!$B80+'COM S curve-disconnect'!BI168*'COM-Appliance class'!$C80+'COM S curve-disconnect'!BI189*'COM-Appliance class'!$D80+'COM S curve-disconnect'!BI210*'COM-Appliance class'!$E80","v":-19931.486036780436},{"$f":"BJ147*'COM-Appliance class'!$B80+'COM S curve-disconnect'!BJ168*'COM-Appliance class'!$C80+'COM S curve-disconnect'!BJ189*'COM-Appliance class'!$D80+'COM S curve-disconnect'!BJ210*'COM-Appliance class'!$E80","v":-19931.486036780436},{"$f":"BK147*'COM-Appliance class'!$B80+'COM S curve-disconnect'!BK168*'COM-Appliance class'!$C80+'COM S curve-disconnect'!BK189*'COM-Appliance class'!$D80+'COM S curve-disconnect'!BK210*'COM-Appliance class'!$E80","v":-19931.486036780436},{"$f":"BL147*'COM-Appliance class'!$B80+'COM S curve-disconnect'!BL168*'COM-Appliance class'!$C80+'COM S curve-disconnect'!BL189*'COM-Appliance class'!$D80+'COM S curve-disconnect'!BL210*'COM-Appliance class'!$E80","v":-19931.486036780436},{"$f":"BM147*'COM-Appliance class'!$B80+'COM S curve-disconnect'!BM168*'COM-Appliance class'!$C80+'COM S curve-disconnect'!BM189*'COM-Appliance class'!$D80+'COM S curve-disconnect'!BM210*'COM-Appliance class'!$E80","v":-19931.486036780436},{"$f":"BN147*'COM-Appliance class'!$B80+'COM S curve-disconnect'!BN168*'COM-Appliance class'!$C80+'COM S curve-disconnect'!BN189*'COM-Appliance class'!$D80+'COM S curve-disconnect'!BN210*'COM-Appliance class'!$E80","v":-19931.486036780436},{"$f":"BO147*'COM-Appliance class'!$B80+'COM S curve-disconnect'!BO168*'COM-Appliance class'!$C80+'COM S curve-disconnect'!BO189*'COM-Appliance class'!$D80+'COM S curve-disconnect'!BO210*'COM-Appliance class'!$E80","v":-19931.486036780436},{"$f":"BP147*'COM-Appliance class'!$B80+'COM S curve-disconnect'!BP168*'COM-Appliance class'!$C80+'COM S curve-disconnect'!BP189*'COM-Appliance class'!$D80+'COM S curve-disconnect'!BP210*'COM-Appliance class'!$E80","v":-19931.486036780436},{"$f":"BQ147*'COM-Appliance class'!$B80+'COM S curve-disconnect'!BQ168*'COM-Appliance class'!$C80+'COM S curve-disconnect'!BQ189*'COM-Appliance class'!$D80+'COM S curve-disconnect'!BQ210*'COM-Appliance class'!$E80","v":-19931.486036780436},{"$f":"BR147*'COM-Appliance class'!$B80+'COM S curve-disconnect'!BR168*'COM-Appliance class'!$C80+'COM S curve-disconnect'!BR189*'COM-Appliance class'!$D80+'COM S curve-disconnect'!BR210*'COM-Appliance class'!$E80","v":-19931.486036780436},{"$f":"BS147*'COM-Appliance class'!$B80+'COM S curve-disconnect'!BS168*'COM-Appliance class'!$C80+'COM S curve-disconnect'!BS189*'COM-Appliance class'!$D80+'COM S curve-disconnect'!BS210*'COM-Appliance class'!$E80","v":-19931.486036780436},{"$f":"BT147*'COM-Appliance class'!$B80+'COM S curve-disconnect'!BT168*'COM-Appliance class'!$C80+'COM S curve-disconnect'!BT189*'COM-Appliance class'!$D80+'COM S curve-disconnect'!BT210*'COM-Appliance class'!$E80","v":-19931.486036780436},{"$f":"BU147*'COM-Appliance class'!$B80+'COM S curve-disconnect'!BU168*'COM-Appliance class'!$C80+'COM S curve-disconnect'!BU189*'COM-Appliance class'!$D80+'COM S curve-disconnect'!BU210*'COM-Appliance class'!$E80","v":-19931.486036780436},{"$f":"BV147*'COM-Appliance class'!$B80+'COM S curve-disconnect'!BV168*'COM-Appliance class'!$C80+'COM S curve-disconnect'!BV189*'COM-Appliance class'!$D80+'COM S curve-disconnect'!BV210*'COM-Appliance class'!$E80","v":-19931.486036780436},{"$f":"BW147*'COM-Appliance class'!$B80+'COM S curve-disconnect'!BW168*'COM-Appliance class'!$C80+'COM S curve-disconnect'!BW189*'COM-Appliance class'!$D80+'COM S curve-disconnect'!BW210*'COM-Appliance class'!$E80","v":-19931.486036780436},{"$f":"BX147*'COM-Appliance class'!$B80+'COM S curve-disconnect'!BX168*'COM-Appliance class'!$C80+'COM S curve-disconnect'!BX189*'COM-Appliance class'!$D80+'COM S curve-disconnect'!BX210*'COM-Appliance class'!$E80","v":-19931.486036780436},{"$f":"BY147*'COM-Appliance class'!$B80+'COM S curve-disconnect'!BY168*'COM-Appliance class'!$C80+'COM S curve-disconnect'!BY189*'COM-Appliance class'!$D80+'COM S curve-disconnect'!BY210*'COM-Appliance class'!$E80","v":-19931.486036780436},{"$f":"BZ147*'COM-Appliance class'!$B80+'COM S curve-disconnect'!BZ168*'COM-Appliance class'!$C80+'COM S curve-disconnect'!BZ189*'COM-Appliance class'!$D80+'COM S curve-disconnect'!BZ210*'COM-Appliance class'!$E80","v":-19931.486036780436},{"$f":"CA147*'COM-Appliance class'!$B80+'COM S curve-disconnect'!CA168*'COM-Appliance class'!$C80+'COM S curve-disconnect'!CA189*'COM-Appliance class'!$D80+'COM S curve-disconnect'!CA210*'COM-Appliance class'!$E80","v":-19931.486036780436},{"$f":"CB147*'COM-Appliance class'!$B80+'COM S curve-disconnect'!CB168*'COM-Appliance class'!$C80+'COM S curve-disconnect'!CB189*'COM-Appliance class'!$D80+'COM S curve-disconnect'!CB210*'COM-Appliance class'!$E80","v":-19931.486036780436},{"$f":"CC147*'COM-Appliance class'!$B80+'COM S curve-disconnect'!CC168*'COM-Appliance class'!$C80+'COM S curve-disconnect'!CC189*'COM-Appliance class'!$D80+'COM S curve-disconnect'!CC210*'COM-Appliance class'!$E80","v":-19931.486036780436},{"$f":"CD147*'COM-Appliance class'!$B80+'COM S curve-disconnect'!CD168*'COM-Appliance class'!$C80+'COM S curve-disconnect'!CD189*'COM-Appliance class'!$D80+'COM S curve-disconnect'!CD210*'COM-Appliance class'!$E80","v":-19931.486036780436}]
["Knox (C)",null,{"$f":"C148*'COM-Appliance class'!$B81+'COM S curve-disconnect'!C169*'COM-Appliance class'!$C81+'COM S curve-disconnect'!C190*'COM-Appliance class'!$D81+'COM S curve-disconnect'!C211*'COM-Appliance class'!$E81","v":-29124.908143377295},{"$f":"D148*'COM-Appliance class'!$B81+'COM S curve-disconnect'!D169*'COM-Appliance class'!$C81+'COM S curve-disconnect'!D190*'COM-Appliance class'!$D81+'COM S curve-disconnect'!D211*'COM-Appliance class'!$E81","v":-29124.908143377295},{"$f":"E148*'COM-Appliance class'!$B81+'COM S curve-disconnect'!E169*'COM-Appliance class'!$C81+'COM S curve-disconnect'!E190*'COM-Appliance class'!$D81+'COM S curve-disconnect'!E211*'COM-Appliance class'!$E81","v":-18551.631209836745},{"$f":"F148*'COM-Appliance class'!$B81+'COM S curve-disconnect'!F169*'COM-Appliance class'!$C81+'COM S curve-disconnect'!F190*'COM-Appliance class'!$D81+'COM S curve-disconnect'!F211*'COM-Appliance class'!$E81","v":-18551.631209836745},{"$f":"G148*'COM-Appliance class'!$B81+'COM S curve-disconnect'!G169*'COM-Appliance class'!$C81+'COM S curve-disconnect'!G190*'COM-Appliance class'!$D81+'COM S curve-disconnect'!G211*'COM-Appliance class'!$E81","v":-26199.564478002405},{"$f":"H148*'COM-Appliance class'!$B81+'COM S curve-disconnect'!H169*'COM-Appliance class'!$C81+'COM S curve-disconnect'!H190*'COM-Appliance class'!$D81+'COM S curve-disconnect'!H211*'COM-Appliance class'!$E81","v":-26199.564478002405},{"$f":"I148*'COM-Appliance class'!$B81+'COM S curve-disconnect'!I169*'COM-Appliance class'!$C81+'COM S curve-disconnect'!I190*'COM-Appliance class'!$D81+'COM S curve-disconnect'!I211*'COM-Appliance class'!$E81","v":-26199.564478002405},{"$f":"J148*'COM-Appliance class'!$B81+'COM S curve-disconnect'!J169*'COM-Appliance class'!$C81+'COM S curve-disconnect'!J190*'COM-Appliance class'!$D81+'COM S curve-disconnect'!J211*'COM-Appliance class'!$E81","v":-28745.438213552938},{"$f":"K148*'COM-Appliance class'!$B81+'COM S curve-disconnect'!K169*'COM-Appliance class'!$C81+'COM S curve-disconnect'!K190*'COM-Appliance class'!$D81+'COM S curve-disconnect'!K211*'COM-Appliance class'!$E81","v":-26876.359784287371},{"$f":"L148*'COM-Appliance class'!$B81+'COM S curve-disconnect'!L169*'COM-Appliance class'!$C81+'COM S curve-disconnect'!L190*'COM-Appliance class'!$D81+'COM S curve-disconnect'!L211*'COM-Appliance class'!$E81","v":-26508.13259625846},{"$f":"M148*'COM-Appliance class'!$B81+'COM S curve-disconnect'!M169*'COM-Appliance class'!$C81+'COM S curve-disconnect'!M190*'COM-Appliance class'!$D81+'COM S curve-disconnect'!M211*'COM-Appliance class'!$E81","v":-26141.746544169699},{"$f":"N148*'COM-Appliance class'!$B81+'COM S curve-disconnect'!N169*'COM-Appliance class'!$C81+'COM S curve-disconnect'!N190*'COM-Appliance class'!$D81+'COM S curve-disconnect'!N211*'COM-Appliance class'!$E81","v":-25777.192422341377},{"$f":"O148*'COM-Appliance class'!$B81+'COM S curve-disconnect'!O169*'COM-Appliance class'!$C81+'COM S curve-disconnect'!O190*'COM-Appliance class'!$D81+'COM S curve-disconnect'!O211*'COM-Appliance class'!$E81","v":-25414.461071122194},{"$f":"P148*'COM-Appliance class'!$B81+'COM S curve-disconnect'!P169*'COM-Appliance class'!$C81+'COM S curve-disconnect'!P190*'COM-Appliance class'!$D81+'COM S curve-disconnect'!P211*'COM-Appliance class'!$E81","v":-25053.543376659123},{"$f":"Q148*'COM-Appliance class'!$B81+'COM S curve-disconnect'!Q169*'COM-Appliance class'!$C81+'COM S curve-disconnect'!Q190*'COM-Appliance class'!$D81+'COM S curve-disconnect'!Q211*'COM-Appliance class'!$E81","v":-24694.430270668352},{"$f":"R148*'COM-Appliance class'!$B81+'COM S curve-disconnect'!R169*'COM-Appliance class'!$C81+'COM S curve-disconnect'!R190*'COM-Appliance class'!$D81+'COM S curve-disconnect'!R211*'COM-Appliance class'!$E81","v":-24337.11273020754},{"$f":"S148*'COM-Appliance class'!$B81+'COM S curve-disconnect'!S169*'COM-Appliance class'!$C81+'COM S curve-disconnect'!S190*'COM-Appliance class'!$D81+'COM S curve-disconnect'!S211*'COM-Appliance class'!$E81","v":-23981.581777449035},{"$f":"T148*'COM-Appliance class'!$B81+'COM S curve-disconnect'!T169*'COM-Appliance class'!$C81+'COM S curve-disconnect'!T190*'COM-Appliance class'!$D81+'COM S curve-disconnect'!T211*'COM-Appliance class'!$E81","v":-23627.828479454321},{"$f":"U148*'COM-Appliance class'!$B81+'COM S curve-disconnect'!U169*'COM-Appliance class'!$C81+'COM S curve-disconnect'!U190*'COM-Appliance class'!$D81+'COM S curve-disconnect'!U211*'COM-Appliance class'!$E81","v":-23275.843947949572},{"$f":"V148*'COM-Appliance class'!$B81+'COM S curve-disconnect'!V169*'COM-Appliance class'!$C81+'COM S curve-disconnect'!V190*'COM-Appliance class'!$D81+'COM S curve-disconnect'!V211*'COM-Appliance class'!$E81","v":-22925.619339102355},{"$f":"W148*'COM-Appliance class'!$B81+'COM S curve-disconnect'!W169*'COM-Appliance class'!$C81+'COM S curve-disconnect'!W190*'COM-Appliance class'!$D81+'COM S curve-disconnect'!W211*'COM-Appliance class'!$E81","v":-22577.145853299371},{"$f":"X148*'COM-Appliance class'!$B81+'COM S curve-disconnect'!X169*'COM-Appliance class'!$C81+'COM S curve-disconnect'!X190*'COM-Appliance class'!$D81+'COM S curve-disconnect'!X211*'COM-Appliance class'!$E81","v":-22230.414734925398},{"$f":"Y148*'COM-Appliance class'!$B81+'COM S curve-disconnect'!Y169*'COM-Appliance class'!$C81+'COM S curve-disconnect'!Y190*'COM-Appliance class'!$D81+'COM S curve-disconnect'!Y211*'COM-Appliance class'!$E81","v":-21885.417272143306},{"$f":"Z148*'COM-Appliance class'!$B81+'COM S curve-disconnect'!Z169*'COM-Appliance class'!$C81+'COM S curve-disconnect'!Z190*'COM-Appliance class'!$D81+'COM S curve-disconnect'!Z211*'COM-Appliance class'!$E81","v":-21542.144796675115},{"$f":"AA148*'COM-Appliance class'!$B81+'COM S curve-disconnect'!AA169*'COM-Appliance class'!$C81+'COM S curve-disconnect'!AA190*'COM-Appliance class'!$D81+'COM S curve-disconnect'!AA211*'COM-Appliance class'!$E81","v":-21200.588683584265},{"$f":"AB148*'COM-Appliance class'!$B81+'COM S curve-disconnect'!AB169*'COM-Appliance class'!$C81+'COM S curve-disconnect'!AB190*'COM-Appliance class'!$D81+'COM S curve-disconnect'!AB211*'COM-Appliance class'!$E81","v":-20860.740351058874},{"$f":"AC148*'COM-Appliance class'!$B81+'COM S curve-disconnect'!AC169*'COM-Appliance class'!$C81+'COM S curve-disconnect'!AC190*'COM-Appliance class'!$D81+'COM S curve-disconnect'!AC211*'COM-Appliance class'!$E81","v":-20522.59126019611},{"$f":"AD148*'COM-Appliance class'!$B81+'COM S curve-disconnect'!AD169*'COM-Appliance class'!$C81+'COM S curve-disconnect'!AD190*'COM-Appliance class'!$D81+'COM S curve-disconnect'!AD211*'COM-Appliance class'!$E81","v":-20186.132914787664},{"$f":"AE148*'COM-Appliance class'!$B81+'COM S curve-disconnect'!AE169*'COM-Appliance class'!$C81+'COM S curve-disconnect'!AE190*'COM-Appliance class'!$D81+'COM S curve-disconnect'!AE211*'COM-Appliance class'!$E81","v":-19851.356861106258},{"$f":"AF148*'COM-Appliance class'!$B81+'COM S curve-disconnect'!AF169*'COM-Appliance class'!$C81+'COM S curve-disconnect'!AF190*'COM-Appliance class'!$D81+'COM S curve-disconnect'!AF211*'COM-Appliance class'!$E81","v":-19518.25468769325},{"$f":"AG148*'COM-Appliance class'!$B81+'COM S curve-disconnect'!AG169*'COM-Appliance class'!$C81+'COM S curve-disconnect'!AG190*'COM-Appliance class'!$D81+'COM S curve-disconnect'!AG211*'COM-Appliance class'!$E81","v":-19518.25468769325},{"$f":"AH148*'COM-Appliance class'!$B81+'COM S curve-disconnect'!AH169*'COM-Appliance class'!$C81+'COM S curve-disconnect'!AH190*'COM-Appliance class'!$D81+'COM S curve-disconnect'!AH211*'COM-Appliance class'!$E81","v":-19518.25468769325},{"$f":"AI148*'COM-Appliance class'!$B81+'COM S curve-disconnect'!AI169*'COM-Appliance class'!$C81+'COM S curve-disconnect'!AI190*'COM-Appliance class'!$D81+'COM S curve-disconnect'!AI211*'COM-Appliance class'!$E81","v":-19518.25468769325},{"$f":"AJ148*'COM-Appliance class'!$B81+'COM S curve-disconnect'!AJ169*'COM-Appliance class'!$C81+'COM S curve-disconnect'!AJ190*'COM-Appliance class'!$D81+'COM S curve-disconnect'!AJ211*'COM-Appliance class'!$E81","v":-19518.25468769325},{"$f":"AK148*'COM-Appliance class'!$B81+'COM S curve-disconnect'!AK169*'COM-Appliance class'!$C81+'COM S curve-disconnect'!AK190*'COM-Appliance class'!$D81+'COM S curve-disconnect'!AK211*'COM-Appliance class'!$E81","v":-19518.25468769325},{"$f":"AL148*'COM-Appliance class'!$B81+'COM S curve-disconnect'!AL169*'COM-Appliance class'!$C81+'COM S curve-disconnect'!AL190*'COM-Appliance class'!$D81+'COM S curve-disconnect'!AL211*'COM-Appliance class'!$E81","v":-19518.25468769325},{"$f":"AM148*'COM-Appliance class'!$B81+'COM S curve-disconnect'!AM169*'COM-Appliance class'!$C81+'COM S curve-disconnect'!AM190*'COM-Appliance class'!$D81+'COM S curve-disconnect'!AM211*'COM-Appliance class'!$E81","v":-19518.25468769325},{"$f":"AN148*'COM-Appliance class'!$B81+'COM S curve-disconnect'!AN169*'COM-Appliance class'!$C81+'COM S curve-disconnect'!AN190*'COM-Appliance class'!$D81+'COM S curve-disconnect'!AN211*'COM-Appliance class'!$E81","v":-19518.25468769325},{"$f":"AO148*'COM-Appliance class'!$B81+'COM S curve-disconnect'!AO169*'COM-Appliance class'!$C81+'COM S curve-disconnect'!AO190*'COM-Appliance class'!$D81+'COM S curve-disconnect'!AO211*'COM-Appliance class'!$E81","v":-19518.25468769325},{"$f":"AP148*'COM-Appliance class'!$B81+'COM S curve-disconnect'!AP169*'COM-Appliance class'!$C81+'COM S curve-disconnect'!AP190*'COM-Appliance class'!$D81+'COM S curve-disconnect'!AP211*'COM-Appliance class'!$E81","v":-19518.25468769325},{"$f":"AQ148*'COM-Appliance class'!$B81+'COM S curve-disconnect'!AQ169*'COM-Appliance class'!$C81+'COM S curve-disconnect'!AQ190*'COM-Appliance class'!$D81+'COM S curve-disconnect'!AQ211*'COM-Appliance class'!$E81","v":-19518.25468769325},{"$f":"AR148*'COM-Appliance class'!$B81+'COM S curve-disconnect'!AR169*'COM-Appliance class'!$C81+'COM S curve-disconnect'!AR190*'COM-Appliance class'!$D81+'COM S curve-disconnect'!AR211*'COM-Appliance class'!$E81","v":-19518.25468769325},{"$f":"AS148*'COM-Appliance class'!$B81+'COM S curve-disconnect'!AS169*'COM-Appliance class'!$C81+'COM S curve-disconnect'!AS190*'COM-Appliance class'!$D81+'COM S curve-disconnect'!AS211*'COM-Appliance class'!$E81","v":-19518.25468769325},{"$f":"AT148*'COM-Appliance class'!$B81+'COM S curve-disconnect'!AT169*'COM-Appliance class'!$C81+'COM S curve-disconnect'!AT190*'COM-Appliance class'!$D81+'COM S curve-disconnect'!AT211*'COM-Appliance class'!$E81","v":-19518.25468769325},{"$f":"AU148*'COM-Appliance class'!$B81+'COM S curve-disconnect'!AU169*'COM-Appliance class'!$C81+'COM S curve-disconnect'!AU190*'COM-Appliance class'!$D81+'COM S curve-disconnect'!AU211*'COM-Appliance class'!$E81","v":-19518.25468769325},{"$f":"AV148*'COM-Appliance class'!$B81+'COM S curve-disconnect'!AV169*'COM-Appliance class'!$C81+'COM S curve-disconnect'!AV190*'COM-Appliance class'!$D81+'COM S curve-disconnect'!AV211*'COM-Appliance class'!$E81","v":-19518.25468769325},{"$f":"AW148*'COM-Appliance class'!$B81+'COM S curve-disconnect'!AW169*'COM-Appliance class'!$C81+'COM S curve-disconnect'!AW190*'COM-Appliance class'!$D81+'COM S curve-disconnect'!AW211*'COM-Appliance class'!$E81","v":-19518.25468769325},{"$f":"AX148*'COM-Appliance class'!$B81+'COM S curve-disconnect'!AX169*'COM-Appliance class'!$C81+'COM S curve-disconnect'!AX190*'COM-Appliance class'!$D81+'COM S curve-disconnect'!AX211*'COM-Appliance class'!$E81","v":-19518.25468769325},{"$f":"AY148*'COM-Appliance class'!$B81+'COM S curve-disconnect'!AY169*'COM-Appliance class'!$C81+'COM S curve-disconnect'!AY190*'COM-Appliance class'!$D81+'COM S curve-disconnect'!AY211*'COM-Appliance class'!$E81","v":-19518.25468769325},{"$f":"AZ148*'COM-Appliance class'!$B81+'COM S curve-disconnect'!AZ169*'COM-Appliance class'!$C81+'COM S curve-disconnect'!AZ190*'COM-Appliance class'!$D81+'COM S curve-disconnect'!AZ211*'COM-Appliance class'!$E81","v":-19518.25468769325},{"$f":"BA148*'COM-Appliance class'!$B81+'COM S curve-disconnect'!BA169*'COM-Appliance class'!$C81+'COM S curve-disconnect'!BA190*'COM-Appliance class'!$D81+'COM S curve-disconnect'!BA211*'COM-Appliance class'!$E81","v":-19518.25468769325},{"$f":"BB148*'COM-Appliance class'!$B81+'COM S curve-disconnect'!BB169*'COM-Appliance class'!$C81+'COM S curve-disconnect'!BB190*'COM-Appliance class'!$D81+'COM S curve-disconnect'!BB211*'COM-Appliance class'!$E81","v":-19518.25468769325},{"$f":"BC148*'COM-Appliance class'!$B81+'COM S curve-disconnect'!BC169*'COM-Appliance class'!$C81+'COM S curve-disconnect'!BC190*'COM-Appliance class'!$D81+'COM S curve-disconnect'!BC211*'COM-Appliance class'!$E81","v":-19518.25468769325},{"$f":"BD148*'COM-Appliance class'!$B81+'COM S curve-disconnect'!BD169*'COM-Appliance class'!$C81+'COM S curve-disconnect'!BD190*'COM-Appliance class'!$D81+'COM S curve-disconnect'!BD211*'COM-Appliance class'!$E81","v":-19518.25468769325},{"$f":"BE148*'COM-Appliance class'!$B81+'COM S curve-disconnect'!BE169*'COM-Appliance class'!$C81+'COM S curve-disconnect'!BE190*'COM-Appliance class'!$D81+'COM S curve-disconnect'!BE211*'COM-Appliance class'!$E81","v":-19518.25468769325},{"$f":"BF148*'COM-Appliance class'!$B81+'COM S curve-disconnect'!BF169*'COM-Appliance class'!$C81+'COM S curve-disconnect'!BF190*'COM-Appliance class'!$D81+'COM S curve-disconnect'!BF211*'COM-Appliance class'!$E81","v":-19518.25468769325},{"$f":"BG148*'COM-Appliance class'!$B81+'COM S curve-disconnect'!BG169*'COM-Appliance class'!$C81+'COM S curve-disconnect'!BG190*'COM-Appliance class'!$D81+'COM S curve-disconnect'!BG211*'COM-Appliance class'!$E81","v":-19518.25468769325},{"$f":"BH148*'COM-Appliance class'!$B81+'COM S curve-disconnect'!BH169*'COM-Appliance class'!$C81+'COM S curve-disconnect'!BH190*'COM-Appliance class'!$D81+'COM S curve-disconnect'!BH211*'COM-Appliance class'!$E81","v":-19518.25468769325},{"$f":"BI148*'COM-Appliance class'!$B81+'COM S curve-disconnect'!BI169*'COM-Appliance class'!$C81+'COM S curve-disconnect'!BI190*'COM-Appliance class'!$D81+'COM S curve-disconnect'!BI211*'COM-Appliance class'!$E81","v":-19518.25468769325},{"$f":"BJ148*'COM-Appliance class'!$B81+'COM S curve-disconnect'!BJ169*'COM-Appliance class'!$C81+'COM S curve-disconnect'!BJ190*'COM-Appliance class'!$D81+'COM S curve-disconnect'!BJ211*'COM-Appliance class'!$E81","v":-19518.25468769325},{"$f":"BK148*'COM-Appliance class'!$B81+'COM S curve-disconnect'!BK169*'COM-Appliance class'!$C81+'COM S curve-disconnect'!BK190*'COM-Appliance class'!$D81+'COM S curve-disconnect'!BK211*'COM-Appliance class'!$E81","v":-19518.25468769325},{"$f":"BL148*'COM-Appliance class'!$B81+'COM S curve-disconnect'!BL169*'COM-Appliance class'!$C81+'COM S curve-disconnect'!BL190*'COM-Appliance class'!$D81+'COM S curve-disconnect'!BL211*'COM-Appliance class'!$E81","v":-19518.25468769325},{"$f":"BM148*'COM-Appliance class'!$B81+'COM S curve-disconnect'!BM169*'COM-Appliance class'!$C81+'COM S curve-disconnect'!BM190*'COM-Appliance class'!$D81+'COM S curve-disconnect'!BM211*'COM-Appliance class'!$E81","v":-19518.25468769325},{"$f":"BN148*'COM-Appliance class'!$B81+'COM S curve-disconnect'!BN169*'COM-Appliance class'!$C81+'COM S curve-disconnect'!BN190*'COM-Appliance class'!$D81+'COM S curve-disconnect'!BN211*'COM-Appliance class'!$E81","v":-19518.25468769325},{"$f":"BO148*'COM-Appliance class'!$B81+'COM S curve-disconnect'!BO169*'COM-Appliance class'!$C81+'COM S curve-disconnect'!BO190*'COM-Appliance class'!$D81+'COM S curve-disconnect'!BO211*'COM-Appliance class'!$E81","v":-19518.25468769325},{"$f":"BP148*'COM-Appliance class'!$B81+'COM S curve-disconnect'!BP169*'COM-Appliance class'!$C81+'COM S curve-disconnect'!BP190*'COM-Appliance class'!$D81+'COM S curve-disconnect'!BP211*'COM-Appliance class'!$E81","v":-19518.25468769325},{"$f":"BQ148*'COM-Appliance class'!$B81+'COM S curve-disconnect'!BQ169*'COM-Appliance class'!$C81+'COM S curve-disconnect'!BQ190*'COM-Appliance class'!$D81+'COM S curve-disconnect'!BQ211*'COM-Appliance class'!$E81","v":-19518.25468769325},{"$f":"BR148*'COM-Appliance class'!$B81+'COM S curve-disconnect'!BR169*'COM-Appliance class'!$C81+'COM S curve-disconnect'!BR190*'COM-Appliance class'!$D81+'COM S curve-disconnect'!BR211*'COM-Appliance class'!$E81","v":-19518.25468769325},{"$f":"BS148*'COM-Appliance class'!$B81+'COM S curve-disconnect'!BS169*'COM-Appliance class'!$C81+'COM S curve-disconnect'!BS190*'COM-Appliance class'!$D81+'COM S curve-disconnect'!BS211*'COM-Appliance class'!$E81","v":-19518.25468769325},{"$f":"BT148*'COM-Appliance class'!$B81+'COM S curve-disconnect'!BT169*'COM-Appliance class'!$C81+'COM S curve-disconnect'!BT190*'COM-Appliance class'!$D81+'COM S curve-disconnect'!BT211*'COM-Appliance class'!$E81","v":-19518.25468769325},{"$f":"BU148*'COM-Appliance class'!$B81+'COM S curve-disconnect'!BU169*'COM-Appliance class'!$C81+'COM S curve-disconnect'!BU190*'COM-Appliance class'!$D81+'COM S curve-disconnect'!BU211*'COM-Appliance class'!$E81","v":-19518.25468769325},{"$f":"BV148*'COM-Appliance class'!$B81+'COM S curve-disconnect'!BV169*'COM-Appliance class'!$C81+'COM S curve-disconnect'!BV190*'COM-Appliance class'!$D81+'COM S curve-disconnect'!BV211*'COM-Appliance class'!$E81","v":-19518.25468769325},{"$f":"BW148*'COM-Appliance class'!$B81+'COM S curve-disconnect'!BW169*'COM-Appliance class'!$C81+'COM S curve-disconnect'!BW190*'COM-Appliance class'!$D81+'COM S curve-disconnect'!BW211*'COM-Appliance class'!$E81","v":-19518.25468769325},{"$f":"BX148*'COM-Appliance class'!$B81+'COM S curve-disconnect'!BX169*'COM-Appliance class'!$C81+'COM S curve-disconnect'!BX190*'COM-Appliance class'!$D81+'COM S curve-disconnect'!BX211*'COM-Appliance class'!$E81","v":-19518.25468769325},{"$f":"BY148*'COM-Appliance class'!$B81+'COM S curve-disconnect'!BY169*'COM-Appliance class'!$C81+'COM S curve-disconnect'!BY190*'COM-Appliance class'!$D81+'COM S curve-disconnect'!BY211*'COM-Appliance class'!$E81","v":-19518.25468769325},{"$f":"BZ148*'COM-Appliance class'!$B81+'COM S curve-disconnect'!BZ169*'COM-Appliance class'!$C81+'COM S curve-disconnect'!BZ190*'COM-Appliance class'!$D81+'COM S curve-disconnect'!BZ211*'COM-Appliance class'!$E81","v":-19518.25468769325},{"$f":"CA148*'COM-Appliance class'!$B81+'COM S curve-disconnect'!CA169*'COM-Appliance class'!$C81+'COM S curve-disconnect'!CA190*'COM-Appliance class'!$D81+'COM S curve-disconnect'!CA211*'COM-Appliance class'!$E81","v":-19518.25468769325},{"$f":"CB148*'COM-Appliance class'!$B81+'COM S curve-disconnect'!CB169*'COM-Appliance class'!$C81+'COM S curve-disconnect'!CB190*'COM-Appliance class'!$D81+'COM S curve-disconnect'!CB211*'COM-Appliance class'!$E81","v":-19518.25468769325},{"$f":"CC148*'COM-Appliance class'!$B81+'COM S curve-disconnect'!CC169*'COM-Appliance class'!$C81+'COM S curve-disconnect'!CC190*'COM-Appliance class'!$D81+'COM S curve-disconnect'!CC211*'COM-Appliance class'!$E81","v":-19518.25468769325},{"$f":"CD148*'COM-Appliance class'!$B81+'COM S curve-disconnect'!CD169*'COM-Appliance class'!$C81+'COM S curve-disconnect'!CD190*'COM-Appliance class'!$D81+'COM S curve-disconnect'!CD211*'COM-Appliance class'!$E81","v":-19518.25468769325}]
["Manningham (C)",null,{"$f":"C149*'COM-Appliance class'!$B82+'COM S curve-disconnect'!C170*'COM-Appliance class'!$C82+'COM S curve-disconnect'!C191*'COM-Appliance class'!$D82+'COM S curve-disconnect'!C212*'COM-Appliance class'!$E82","v":-31787.528296001947},{"$f":"D149*'COM-Appliance class'!$B82+'COM S curve-disconnect'!D170*'COM-Appliance class'!$C82+'COM S curve-disconnect'!D191*'COM-Appliance class'!$D82+'COM S curve-disconnect'!D212*'COM-Appliance class'!$E82","v":-31787.528296001947},{"$f":"E149*'COM-Appliance class'!$B82+'COM S curve-disconnect'!E170*'COM-Appliance class'!$C82+'COM S curve-disconnect'!E191*'COM-Appliance class'!$D82+'COM S curve-disconnect'!E212*'COM-Appliance class'!$E82","v":-20247.634743314116},{"$f":"F149*'COM-Appliance class'!$B82+'COM S curve-disconnect'!F170*'COM-Appliance class'!$C82+'COM S curve-disconnect'!F191*'COM-Appliance class'!$D82+'COM S curve-disconnect'!F212*'COM-Appliance class'!$E82","v":-20247.634743314116},{"$f":"G149*'COM-Appliance class'!$B82+'COM S curve-disconnect'!G170*'COM-Appliance class'!$C82+'COM S curve-disconnect'!G191*'COM-Appliance class'!$D82+'COM S curve-disconnect'!G212*'COM-Appliance class'!$E82","v":-28594.747598433318},{"$f":"H149*'COM-Appliance class'!$B82+'COM S curve-disconnect'!H170*'COM-Appliance class'!$C82+'COM S curve-disconnect'!H191*'COM-Appliance class'!$D82+'COM S curve-disconnect'!H212*'COM-Appliance class'!$E82","v":-28594.747598433318},{"$f":"I149*'COM-Appliance class'!$B82+'COM S curve-disconnect'!I170*'COM-Appliance class'!$C82+'COM S curve-disconnect'!I191*'COM-Appliance class'!$D82+'COM S curve-disconnect'!I212*'COM-Appliance class'!$E82","v":-28594.747598433318},{"$f":"J149*'COM-Appliance class'!$B82+'COM S curve-disconnect'!J170*'COM-Appliance class'!$C82+'COM S curve-disconnect'!J191*'COM-Appliance class'!$D82+'COM S curve-disconnect'!J212*'COM-Appliance class'!$E82","v":-31373.366950929463},{"$f":"K149*'COM-Appliance class'!$B82+'COM S curve-disconnect'!K170*'COM-Appliance class'!$C82+'COM S curve-disconnect'!K191*'COM-Appliance class'!$D82+'COM S curve-disconnect'!K212*'COM-Appliance class'!$E82","v":-29333.416020775672},{"$f":"L149*'COM-Appliance class'!$B82+'COM S curve-disconnect'!L170*'COM-Appliance class'!$C82+'COM S curve-disconnect'!L191*'COM-Appliance class'!$D82+'COM S curve-disconnect'!L212*'COM-Appliance class'!$E82","v":-28931.525237079321},{"$f":"M149*'COM-Appliance class'!$B82+'COM S curve-disconnect'!M170*'COM-Appliance class'!$C82+'COM S curve-disconnect'!M191*'COM-Appliance class'!$D82+'COM S curve-disconnect'!M212*'COM-Appliance class'!$E82","v":-28531.643907301455},{"$f":"N149*'COM-Appliance class'!$B82+'COM S curve-disconnect'!N170*'COM-Appliance class'!$C82+'COM S curve-disconnect'!N191*'COM-Appliance class'!$D82+'COM S curve-disconnect'!N212*'COM-Appliance class'!$E82","v":-28133.761984172477},{"$f":"O149*'COM-Appliance class'!$B82+'COM S curve-disconnect'!O170*'COM-Appliance class'!$C82+'COM S curve-disconnect'!O191*'COM-Appliance class'!$D82+'COM S curve-disconnect'!O212*'COM-Appliance class'!$E82","v":-27737.869470659134},{"$f":"P149*'COM-Appliance class'!$B82+'COM S curve-disconnect'!P170*'COM-Appliance class'!$C82+'COM S curve-disconnect'!P191*'COM-Appliance class'!$D82+'COM S curve-disconnect'!P212*'COM-Appliance class'!$E82","v":-27343.956419713373},{"$f":"Q149*'COM-Appliance class'!$B82+'COM S curve-disconnect'!Q170*'COM-Appliance class'!$C82+'COM S curve-disconnect'!Q191*'COM-Appliance class'!$D82+'COM S curve-disconnect'!Q212*'COM-Appliance class'!$E82","v":-26952.012934022328},{"$f":"R149*'COM-Appliance class'!$B82+'COM S curve-disconnect'!R170*'COM-Appliance class'!$C82+'COM S curve-disconnect'!R191*'COM-Appliance class'!$D82+'COM S curve-disconnect'!R212*'COM-Appliance class'!$E82","v":-26562.029165759748},{"$f":"S149*'COM-Appliance class'!$B82+'COM S curve-disconnect'!S170*'COM-Appliance class'!$C82+'COM S curve-disconnect'!S191*'COM-Appliance class'!$D82+'COM S curve-disconnect'!S212*'COM-Appliance class'!$E82","v":-26173.995316338478},{"$f":"T149*'COM-Appliance class'!$B82+'COM S curve-disconnect'!T170*'COM-Appliance class'!$C82+'COM S curve-disconnect'!T191*'COM-Appliance class'!$D82+'COM S curve-disconnect'!T212*'COM-Appliance class'!$E82","v":-25787.901636164319},{"$f":"U149*'COM-Appliance class'!$B82+'COM S curve-disconnect'!U170*'COM-Appliance class'!$C82+'COM S curve-disconnect'!U191*'COM-Appliance class'!$D82+'COM S curve-disconnect'!U212*'COM-Appliance class'!$E82","v":-25403.73842439102},{"$f":"V149*'COM-Appliance class'!$B82+'COM S curve-disconnect'!V170*'COM-Appliance class'!$C82+'COM S curve-disconnect'!V191*'COM-Appliance class'!$D82+'COM S curve-disconnect'!V212*'COM-Appliance class'!$E82","v":-25021.496028676593},{"$f":"W149*'COM-Appliance class'!$B82+'COM S curve-disconnect'!W170*'COM-Appliance class'!$C82+'COM S curve-disconnect'!W191*'COM-Appliance class'!$D82+'COM S curve-disconnect'!W212*'COM-Appliance class'!$E82","v":-24641.164844940729},{"$f":"X149*'COM-Appliance class'!$B82+'COM S curve-disconnect'!X170*'COM-Appliance class'!$C82+'COM S curve-disconnect'!X191*'COM-Appliance class'!$D82+'COM S curve-disconnect'!X212*'COM-Appliance class'!$E82","v":-24262.735317123555},{"$f":"Y149*'COM-Appliance class'!$B82+'COM S curve-disconnect'!Y170*'COM-Appliance class'!$C82+'COM S curve-disconnect'!Y191*'COM-Appliance class'!$D82+'COM S curve-disconnect'!Y212*'COM-Appliance class'!$E82","v":-23886.197936945471},{"$f":"Z149*'COM-Appliance class'!$B82+'COM S curve-disconnect'!Z170*'COM-Appliance class'!$C82+'COM S curve-disconnect'!Z191*'COM-Appliance class'!$D82+'COM S curve-disconnect'!Z212*'COM-Appliance class'!$E82","v":-23511.543243668268},{"$f":"AA149*'COM-Appliance class'!$B82+'COM S curve-disconnect'!AA170*'COM-Appliance class'!$C82+'COM S curve-disconnect'!AA191*'COM-Appliance class'!$D82+'COM S curve-disconnect'!AA212*'COM-Appliance class'!$E82","v":-23138.761823857451},{"$f":"AB149*'COM-Appliance class'!$B82+'COM S curve-disconnect'!AB170*'COM-Appliance class'!$C82+'COM S curve-disconnect'!AB191*'COM-Appliance class'!$D82+'COM S curve-disconnect'!AB212*'COM-Appliance class'!$E82","v":-22767.844311145687},{"$f":"AC149*'COM-Appliance class'!$B82+'COM S curve-disconnect'!AC170*'COM-Appliance class'!$C82+'COM S curve-disconnect'!AC191*'COM-Appliance class'!$D82+'COM S curve-disconnect'!AC212*'COM-Appliance class'!$E82","v":-22398.781385997492},{"$f":"AD149*'COM-Appliance class'!$B82+'COM S curve-disconnect'!AD170*'COM-Appliance class'!$C82+'COM S curve-disconnect'!AD191*'COM-Appliance class'!$D82+'COM S curve-disconnect'!AD212*'COM-Appliance class'!$E82","v":-22031.563775475035},{"$f":"AE149*'COM-Appliance class'!$B82+'COM S curve-disconnect'!AE170*'COM-Appliance class'!$C82+'COM S curve-disconnect'!AE191*'COM-Appliance class'!$D82+'COM S curve-disconnect'!AE212*'COM-Appliance class'!$E82","v":-21666.182253005187},{"$f":"AF149*'COM-Appliance class'!$B82+'COM S curve-disconnect'!AF170*'COM-Appliance class'!$C82+'COM S curve-disconnect'!AF191*'COM-Appliance class'!$D82+'COM S curve-disconnect'!AF212*'COM-Appliance class'!$E82","v":-21302.627638147689},{"$f":"AG149*'COM-Appliance class'!$B82+'COM S curve-disconnect'!AG170*'COM-Appliance class'!$C82+'COM S curve-disconnect'!AG191*'COM-Appliance class'!$D82+'COM S curve-disconnect'!AG212*'COM-Appliance class'!$E82","v":-21302.627638147689},{"$f":"AH149*'COM-Appliance class'!$B82+'COM S curve-disconnect'!AH170*'COM-Appliance class'!$C82+'COM S curve-disconnect'!AH191*'COM-Appliance class'!$D82+'COM S curve-disconnect'!AH212*'COM-Appliance class'!$E82","v":-21302.627638147689},{"$f":"AI149*'COM-Appliance class'!$B82+'COM S curve-disconnect'!AI170*'COM-Appliance class'!$C82+'COM S curve-disconnect'!AI191*'COM-Appliance class'!$D82+'COM S curve-disconnect'!AI212*'COM-Appliance class'!$E82","v":-21302.627638147689},{"$f":"AJ149*'COM-Appliance class'!$B82+'COM S curve-disconnect'!AJ170*'COM-Appliance class'!$C82+'COM S curve-disconnect'!AJ191*'COM-Appliance class'!$D82+'COM S curve-disconnect'!AJ212*'COM-Appliance class'!$E82","v":-21302.627638147689},{"$f":"AK149*'COM-Appliance class'!$B82+'COM S curve-disconnect'!AK170*'COM-Appliance class'!$C82+'COM S curve-disconnect'!AK191*'COM-Appliance class'!$D82+'COM S curve-disconnect'!AK212*'COM-Appliance class'!$E82","v":-21302.627638147689},{"$f":"AL149*'COM-Appliance class'!$B82+'COM S curve-disconnect'!AL170*'COM-Appliance class'!$C82+'COM S curve-disconnect'!AL191*'COM-Appliance class'!$D82+'COM S curve-disconnect'!AL212*'COM-Appliance class'!$E82","v":-21302.627638147689},{"$f":"AM149*'COM-Appliance class'!$B82+'COM S curve-disconnect'!AM170*'COM-Appliance class'!$C82+'COM S curve-disconnect'!AM191*'COM-Appliance class'!$D82+'COM S curve-disconnect'!AM212*'COM-Appliance class'!$E82","v":-21302.627638147689},{"$f":"AN149*'COM-Appliance class'!$B82+'COM S curve-disconnect'!AN170*'COM-Appliance class'!$C82+'COM S curve-disconnect'!AN191*'COM-Appliance class'!$D82+'COM S curve-disconnect'!AN212*'COM-Appliance class'!$E82","v":-21302.627638147689},{"$f":"AO149*'COM-Appliance class'!$B82+'COM S curve-disconnect'!AO170*'COM-Appliance class'!$C82+'COM S curve-disconnect'!AO191*'COM-Appliance class'!$D82+'COM S curve-disconnect'!AO212*'COM-Appliance class'!$E82","v":-21302.627638147689},{"$f":"AP149*'COM-Appliance class'!$B82+'COM S curve-disconnect'!AP170*'COM-Appliance class'!$C82+'COM S curve-disconnect'!AP191*'COM-Appliance class'!$D82+'COM S curve-disconnect'!AP212*'COM-Appliance class'!$E82","v":-21302.627638147689},{"$f":"AQ149*'COM-Appliance class'!$B82+'COM S curve-disconnect'!AQ170*'COM-Appliance class'!$C82+'COM S curve-disconnect'!AQ191*'COM-Appliance class'!$D82+'COM S curve-disconnect'!AQ212*'COM-Appliance class'!$E82","v":-21302.627638147689},{"$f":"AR149*'COM-Appliance class'!$B82+'COM S curve-disconnect'!AR170*'COM-Appliance class'!$C82+'COM S curve-disconnect'!AR191*'COM-Appliance class'!$D82+'COM S curve-disconnect'!AR212*'COM-Appliance class'!$E82","v":-21302.627638147689},{"$f":"AS149*'COM-Appliance class'!$B82+'COM S curve-disconnect'!AS170*'COM-Appliance class'!$C82+'COM S curve-disconnect'!AS191*'COM-Appliance class'!$D82+'COM S curve-disconnect'!AS212*'COM-Appliance class'!$E82","v":-21302.627638147689},{"$f":"AT149*'COM-Appliance class'!$B82+'COM S curve-disconnect'!AT170*'COM-Appliance class'!$C82+'COM S curve-disconnect'!AT191*'COM-Appliance class'!$D82+'COM S curve-disconnect'!AT212*'COM-Appliance class'!$E82","v":-21302.627638147689},{"$f":"AU149*'COM-Appliance class'!$B82+'COM S curve-disconnect'!AU170*'COM-Appliance class'!$C82+'COM S curve-disconnect'!AU191*'COM-Appliance class'!$D82+'COM S curve-disconnect'!AU212*'COM-Appliance class'!$E82","v":-21302.627638147689},{"$f":"AV149*'COM-Appliance class'!$B82+'COM S curve-disconnect'!AV170*'COM-Appliance class'!$C82+'COM S curve-disconnect'!AV191*'COM-Appliance class'!$D82+'COM S curve-disconnect'!AV212*'COM-Appliance class'!$E82","v":-21302.627638147689},{"$f":"AW149*'COM-Appliance class'!$B82+'COM S curve-disconnect'!AW170*'COM-Appliance class'!$C82+'COM S curve-disconnect'!AW191*'COM-Appliance class'!$D82+'COM S curve-disconnect'!AW212*'COM-Appliance class'!$E82","v":-21302.627638147689},{"$f":"AX149*'COM-Appliance class'!$B82+'COM S curve-disconnect'!AX170*'COM-Appliance class'!$C82+'COM S curve-disconnect'!AX191*'COM-Appliance class'!$D82+'COM S curve-disconnect'!AX212*'COM-Appliance class'!$E82","v":-21302.627638147689},{"$f":"AY149*'COM-Appliance class'!$B82+'COM S curve-disconnect'!AY170*'COM-Appliance class'!$C82+'COM S curve-disconnect'!AY191*'COM-Appliance class'!$D82+'COM S curve-disconnect'!AY212*'COM-Appliance class'!$E82","v":-21302.627638147689},{"$f":"AZ149*'COM-Appliance class'!$B82+'COM S curve-disconnect'!AZ170*'COM-Appliance class'!$C82+'COM S curve-disconnect'!AZ191*'COM-Appliance class'!$D82+'COM S curve-disconnect'!AZ212*'COM-Appliance class'!$E82","v":-21302.627638147689},{"$f":"BA149*'COM-Appliance class'!$B82+'COM S curve-disconnect'!BA170*'COM-Appliance class'!$C82+'COM S curve-disconnect'!BA191*'COM-Appliance class'!$D82+'COM S curve-disconnect'!BA212*'COM-Appliance class'!$E82","v":-21302.627638147689},{"$f":"BB149*'COM-Appliance class'!$B82+'COM S curve-disconnect'!BB170*'COM-Appliance class'!$C82+'COM S curve-disconnect'!BB191*'COM-Appliance class'!$D82+'COM S curve-disconnect'!BB212*'COM-Appliance class'!$E82","v":-21302.627638147689},{"$f":"BC149*'COM-Appliance class'!$B82+'COM S curve-disconnect'!BC170*'COM-Appliance class'!$C82+'COM S curve-disconnect'!BC191*'COM-Appliance class'!$D82+'COM S curve-disconnect'!BC212*'COM-Appliance class'!$E82","v":-21302.627638147689},{"$f":"BD149*'COM-Appliance class'!$B82+'COM S curve-disconnect'!BD170*'COM-Appliance class'!$C82+'COM S curve-disconnect'!BD191*'COM-Appliance class'!$D82+'COM S curve-disconnect'!BD212*'COM-Appliance class'!$E82","v":-21302.627638147689},{"$f":"BE149*'COM-Appliance class'!$B82+'COM S curve-disconnect'!BE170*'COM-Appliance class'!$C82+'COM S curve-disconnect'!BE191*'COM-Appliance class'!$D82+'COM S curve-disconnect'!BE212*'COM-Appliance class'!$E82","v":-21302.627638147689},{"$f":"BF149*'COM-Appliance class'!$B82+'COM S curve-disconnect'!BF170*'COM-Appliance class'!$C82+'COM S curve-disconnect'!BF191*'COM-Appliance class'!$D82+'COM S curve-disconnect'!BF212*'COM-Appliance class'!$E82","v":-21302.627638147689},{"$f":"BG149*'COM-Appliance class'!$B82+'COM S curve-disconnect'!BG170*'COM-Appliance class'!$C82+'COM S curve-disconnect'!BG191*'COM-Appliance class'!$D82+'COM S curve-disconnect'!BG212*'COM-Appliance class'!$E82","v":-21302.627638147689},{"$f":"BH149*'COM-Appliance class'!$B82+'COM S curve-disconnect'!BH170*'COM-Appliance class'!$C82+'COM S curve-disconnect'!BH191*'COM-Appliance class'!$D82+'COM S curve-disconnect'!BH212*'COM-Appliance class'!$E82","v":-21302.627638147689},{"$f":"BI149*'COM-Appliance class'!$B82+'COM S curve-disconnect'!BI170*'COM-Appliance class'!$C82+'COM S curve-disconnect'!BI191*'COM-Appliance class'!$D82+'COM S curve-disconnect'!BI212*'COM-Appliance class'!$E82","v":-21302.627638147689},{"$f":"BJ149*'COM-Appliance class'!$B82+'COM S curve-disconnect'!BJ170*'COM-Appliance class'!$C82+'COM S curve-disconnect'!BJ191*'COM-Appliance class'!$D82+'COM S curve-disconnect'!BJ212*'COM-Appliance class'!$E82","v":-21302.627638147689},{"$f":"BK149*'COM-Appliance class'!$B82+'COM S curve-disconnect'!BK170*'COM-Appliance class'!$C82+'COM S curve-disconnect'!BK191*'COM-Appliance class'!$D82+'COM S curve-disconnect'!BK212*'COM-Appliance class'!$E82","v":-21302.627638147689},{"$f":"BL149*'COM-Appliance class'!$B82+'COM S curve-disconnect'!BL170*'COM-Appliance class'!$C82+'COM S curve-disconnect'!BL191*'COM-Appliance class'!$D82+'COM S curve-disconnect'!BL212*'COM-Appliance class'!$E82","v":-21302.627638147689},{"$f":"BM149*'COM-Appliance class'!$B82+'COM S curve-disconnect'!BM170*'COM-Appliance class'!$C82+'COM S curve-disconnect'!BM191*'COM-Appliance class'!$D82+'COM S curve-disconnect'!BM212*'COM-Appliance class'!$E82","v":-21302.627638147689},{"$f":"BN149*'COM-Appliance class'!$B82+'COM S curve-disconnect'!BN170*'COM-Appliance class'!$C82+'COM S curve-disconnect'!BN191*'COM-Appliance class'!$D82+'COM S curve-disconnect'!BN212*'COM-Appliance class'!$E82","v":-21302.627638147689},{"$f":"BO149*'COM-Appliance class'!$B82+'COM S curve-disconnect'!BO170*'COM-Appliance class'!$C82+'COM S curve-disconnect'!BO191*'COM-Appliance class'!$D82+'COM S curve-disconnect'!BO212*'COM-Appliance class'!$E82","v":-21302.627638147689},{"$f":"BP149*'COM-Appliance class'!$B82+'COM S curve-disconnect'!BP170*'COM-Appliance class'!$C82+'COM S curve-disconnect'!BP191*'COM-Appliance class'!$D82+'COM S curve-disconnect'!BP212*'COM-Appliance class'!$E82","v":-21302.627638147689},{"$f":"BQ149*'COM-Appliance class'!$B82+'COM S curve-disconnect'!BQ170*'COM-Appliance class'!$C82+'COM S curve-disconnect'!BQ191*'COM-Appliance class'!$D82+'COM S curve-disconnect'!BQ212*'COM-Appliance class'!$E82","v":-21302.627638147689},{"$f":"BR149*'COM-Appliance class'!$B82+'COM S curve-disconnect'!BR170*'COM-Appliance class'!$C82+'COM S curve-disconnect'!BR191*'COM-Appliance class'!$D82+'COM S curve-disconnect'!BR212*'COM-Appliance class'!$E82","v":-21302.627638147689},{"$f":"BS149*'COM-Appliance class'!$B82+'COM S curve-disconnect'!BS170*'COM-Appliance class'!$C82+'COM S curve-disconnect'!BS191*'COM-Appliance class'!$D82+'COM S curve-disconnect'!BS212*'COM-Appliance class'!$E82","v":-21302.627638147689},{"$f":"BT149*'COM-Appliance class'!$B82+'COM S curve-disconnect'!BT170*'COM-Appliance class'!$C82+'COM S curve-disconnect'!BT191*'COM-Appliance class'!$D82+'COM S curve-disconnect'!BT212*'COM-Appliance class'!$E82","v":-21302.627638147689},{"$f":"BU149*'COM-Appliance class'!$B82+'COM S curve-disconnect'!BU170*'COM-Appliance class'!$C82+'COM S curve-disconnect'!BU191*'COM-Appliance class'!$D82+'COM S curve-disconnect'!BU212*'COM-Appliance class'!$E82","v":-21302.627638147689},{"$f":"BV149*'COM-Appliance class'!$B82+'COM S curve-disconnect'!BV170*'COM-Appliance class'!$C82+'COM S curve-disconnect'!BV191*'COM-Appliance class'!$D82+'COM S curve-disconnect'!BV212*'COM-Appliance class'!$E82","v":-21302.627638147689},{"$f":"BW149*'COM-Appliance class'!$B82+'COM S curve-disconnect'!BW170*'COM-Appliance class'!$C82+'COM S curve-disconnect'!BW191*'COM-Appliance class'!$D82+'COM S curve-disconnect'!BW212*'COM-Appliance class'!$E82","v":-21302.627638147689},{"$f":"BX149*'COM-Appliance class'!$B82+'COM S curve-disconnect'!BX170*'COM-Appliance class'!$C82+'COM S curve-disconnect'!BX191*'COM-Appliance class'!$D82+'COM S curve-disconnect'!BX212*'COM-Appliance class'!$E82","v":-21302.627638147689},{"$f":"BY149*'COM-Appliance class'!$B82+'COM S curve-disconnect'!BY170*'COM-Appliance class'!$C82+'COM S curve-disconnect'!BY191*'COM-Appliance class'!$D82+'COM S curve-disconnect'!BY212*'COM-Appliance class'!$E82","v":-21302.627638147689},{"$f":"BZ149*'COM-Appliance class'!$B82+'COM S curve-disconnect'!BZ170*'COM-Appliance class'!$C82+'COM S curve-disconnect'!BZ191*'COM-Appliance class'!$D82+'COM S curve-disconnect'!BZ212*'COM-Appliance class'!$E82","v":-21302.627638147689},{"$f":"CA149*'COM-Appliance class'!$B82+'COM S curve-disconnect'!CA170*'COM-Appliance class'!$C82+'COM S curve-disconnect'!CA191*'COM-Appliance class'!$D82+'COM S curve-disconnect'!CA212*'COM-Appliance class'!$E82","v":-21302.627638147689},{"$f":"CB149*'COM-Appliance class'!$B82+'COM S curve-disconnect'!CB170*'COM-Appliance class'!$C82+'COM S curve-disconnect'!CB191*'COM-Appliance class'!$D82+'COM S curve-disconnect'!CB212*'COM-Appliance class'!$E82","v":-21302.627638147689},{"$f":"CC149*'COM-Appliance class'!$B82+'COM S curve-disconnect'!CC170*'COM-Appliance class'!$C82+'COM S curve-disconnect'!CC191*'COM-Appliance class'!$D82+'COM S curve-disconnect'!CC212*'COM-Appliance class'!$E82","v":-21302.627638147689},{"$f":"CD149*'COM-Appliance class'!$B82+'COM S curve-disconnect'!CD170*'COM-Appliance class'!$C82+'COM S curve-disconnect'!CD191*'COM-Appliance class'!$D82+'COM S curve-disconnect'!CD212*'COM-Appliance class'!$E82","v":-21302.627638147689}]
["Maroondah (C)",null,{"$f":"C150*'COM-Appliance class'!$B83+'COM S curve-disconnect'!C171*'COM-Appliance class'!$C83+'COM S curve-disconnect'!C192*'COM-Appliance class'!$D83+'COM S curve-disconnect'!C213*'COM-Appliance class'!$E83","v":-27200.803033903248},{"$f":"D150*'COM-Appliance class'!$B83+'COM S curve-disconnect'!D171*'COM-Appliance class'!$C83+'COM S curve-disconnect'!D192*'COM-Appliance class'!$D83+'COM S curve-disconnect'!D213*'COM-Appliance class'!$E83","v":-27200.803033903248},{"$f":"E150*'COM-Appliance class'!$B83+'COM S curve-disconnect'!E171*'COM-Appliance class'!$C83+'COM S curve-disconnect'!E192*'COM-Appliance class'!$D83+'COM S curve-disconnect'!E213*'COM-Appliance class'!$E83","v":-17326.038043183555},{"$f":"F150*'COM-Appliance class'!$B83+'COM S curve-disconnect'!F171*'COM-Appliance class'!$C83+'COM S curve-disconnect'!F192*'COM-Appliance class'!$D83+'COM S curve-disconnect'!F213*'COM-Appliance class'!$E83","v":-17326.038043183555},{"$f":"G150*'COM-Appliance class'!$B83+'COM S curve-disconnect'!G171*'COM-Appliance class'!$C83+'COM S curve-disconnect'!G192*'COM-Appliance class'!$D83+'COM S curve-disconnect'!G213*'COM-Appliance class'!$E83","v":-24468.718988981283},{"$f":"H150*'COM-Appliance class'!$B83+'COM S curve-disconnect'!H171*'COM-Appliance class'!$C83+'COM S curve-disconnect'!H192*'COM-Appliance class'!$D83+'COM S curve-disconnect'!H213*'COM-Appliance class'!$E83","v":-24468.718988981283},{"$f":"I150*'COM-Appliance class'!$B83+'COM S curve-disconnect'!I171*'COM-Appliance class'!$C83+'COM S curve-disconnect'!I192*'COM-Appliance class'!$D83+'COM S curve-disconnect'!I213*'COM-Appliance class'!$E83","v":-24468.718988981283},{"$f":"J150*'COM-Appliance class'!$B83+'COM S curve-disconnect'!J171*'COM-Appliance class'!$C83+'COM S curve-disconnect'!J192*'COM-Appliance class'!$D83+'COM S curve-disconnect'!J213*'COM-Appliance class'!$E83","v":-26846.402368753392},{"$f":"K150*'COM-Appliance class'!$B83+'COM S curve-disconnect'!K171*'COM-Appliance class'!$C83+'COM S curve-disconnect'!K192*'COM-Appliance class'!$D83+'COM S curve-disconnect'!K213*'COM-Appliance class'!$E83","v":-25100.802555731127},{"$f":"L150*'COM-Appliance class'!$B83+'COM S curve-disconnect'!L171*'COM-Appliance class'!$C83+'COM S curve-disconnect'!L192*'COM-Appliance class'!$D83+'COM S curve-disconnect'!L213*'COM-Appliance class'!$E83","v":-24756.901892972128},{"$f":"M150*'COM-Appliance class'!$B83+'COM S curve-disconnect'!M171*'COM-Appliance class'!$C83+'COM S curve-disconnect'!M192*'COM-Appliance class'!$D83+'COM S curve-disconnect'!M213*'COM-Appliance class'!$E83","v":-24414.720733526927},{"$f":"N150*'COM-Appliance class'!$B83+'COM S curve-disconnect'!N171*'COM-Appliance class'!$C83+'COM S curve-disconnect'!N192*'COM-Appliance class'!$D83+'COM S curve-disconnect'!N213*'COM-Appliance class'!$E83","v":-24074.250479878952},{"$f":"O150*'COM-Appliance class'!$B83+'COM S curve-disconnect'!O171*'COM-Appliance class'!$C83+'COM S curve-disconnect'!O192*'COM-Appliance class'!$D83+'COM S curve-disconnect'!O213*'COM-Appliance class'!$E83","v":-23735.482577499206},{"$f":"P150*'COM-Appliance class'!$B83+'COM S curve-disconnect'!P171*'COM-Appliance class'!$C83+'COM S curve-disconnect'!P192*'COM-Appliance class'!$D83+'COM S curve-disconnect'!P213*'COM-Appliance class'!$E83","v":-23398.408514631377},{"$f":"Q150*'COM-Appliance class'!$B83+'COM S curve-disconnect'!Q171*'COM-Appliance class'!$C83+'COM S curve-disconnect'!Q192*'COM-Appliance class'!$D83+'COM S curve-disconnect'!Q213*'COM-Appliance class'!$E83","v":-23063.019822077869},{"$f":"R150*'COM-Appliance class'!$B83+'COM S curve-disconnect'!R171*'COM-Appliance class'!$C83+'COM S curve-disconnect'!R192*'COM-Appliance class'!$D83+'COM S curve-disconnect'!R213*'COM-Appliance class'!$E83","v":-22729.308072987147},{"$f":"S150*'COM-Appliance class'!$B83+'COM S curve-disconnect'!S171*'COM-Appliance class'!$C83+'COM S curve-disconnect'!S192*'COM-Appliance class'!$D83+'COM S curve-disconnect'!S213*'COM-Appliance class'!$E83","v":-22397.26488264187},{"$f":"T150*'COM-Appliance class'!$B83+'COM S curve-disconnect'!T171*'COM-Appliance class'!$C83+'COM S curve-disconnect'!T192*'COM-Appliance class'!$D83+'COM S curve-disconnect'!T213*'COM-Appliance class'!$E83","v":-22066.881908248324},{"$f":"U150*'COM-Appliance class'!$B83+'COM S curve-disconnect'!U171*'COM-Appliance class'!$C83+'COM S curve-disconnect'!U192*'COM-Appliance class'!$D83+'COM S curve-disconnect'!U213*'COM-Appliance class'!$E83","v":-21738.150848726735},{"$f":"V150*'COM-Appliance class'!$B83+'COM S curve-disconnect'!V171*'COM-Appliance class'!$C83+'COM S curve-disconnect'!V192*'COM-Appliance class'!$D83+'COM S curve-disconnect'!V213*'COM-Appliance class'!$E83","v":-21411.063444502761},{"$f":"W150*'COM-Appliance class'!$B83+'COM S curve-disconnect'!W171*'COM-Appliance class'!$C83+'COM S curve-disconnect'!W192*'COM-Appliance class'!$D83+'COM S curve-disconnect'!W213*'COM-Appliance class'!$E83","v":-21085.611477299899},{"$f":"X150*'COM-Appliance class'!$B83+'COM S curve-disconnect'!X171*'COM-Appliance class'!$C83+'COM S curve-disconnect'!X192*'COM-Appliance class'!$D83+'COM S curve-disconnect'!X213*'COM-Appliance class'!$E83","v":-20761.78676993306},{"$f":"Y150*'COM-Appliance class'!$B83+'COM S curve-disconnect'!Y171*'COM-Appliance class'!$C83+'COM S curve-disconnect'!Y192*'COM-Appliance class'!$D83+'COM S curve-disconnect'!Y213*'COM-Appliance class'!$E83","v":-20439.581186103052},{"$f":"Z150*'COM-Appliance class'!$B83+'COM S curve-disconnect'!Z171*'COM-Appliance class'!$C83+'COM S curve-disconnect'!Z192*'COM-Appliance class'!$D83+'COM S curve-disconnect'!Z213*'COM-Appliance class'!$E83","v":-20118.986630192194},{"$f":"AA150*'COM-Appliance class'!$B83+'COM S curve-disconnect'!AA171*'COM-Appliance class'!$C83+'COM S curve-disconnect'!AA192*'COM-Appliance class'!$D83+'COM S curve-disconnect'!AA213*'COM-Appliance class'!$E83","v":-19799.995047060889},{"$f":"AB150*'COM-Appliance class'!$B83+'COM S curve-disconnect'!AB171*'COM-Appliance class'!$C83+'COM S curve-disconnect'!AB192*'COM-Appliance class'!$D83+'COM S curve-disconnect'!AB213*'COM-Appliance class'!$E83","v":-19482.598421845243},{"$f":"AC150*'COM-Appliance class'!$B83+'COM S curve-disconnect'!AC171*'COM-Appliance class'!$C83+'COM S curve-disconnect'!AC192*'COM-Appliance class'!$D83+'COM S curve-disconnect'!AC213*'COM-Appliance class'!$E83","v":-19166.78877975568},{"$f":"AD150*'COM-Appliance class'!$B83+'COM S curve-disconnect'!AD171*'COM-Appliance class'!$C83+'COM S curve-disconnect'!AD192*'COM-Appliance class'!$D83+'COM S curve-disconnect'!AD213*'COM-Appliance class'!$E83","v":-18852.558185876558},{"$f":"AE150*'COM-Appliance class'!$B83+'COM S curve-disconnect'!AE171*'COM-Appliance class'!$C83+'COM S curve-disconnect'!AE192*'COM-Appliance class'!$D83+'COM S curve-disconnect'!AE213*'COM-Appliance class'!$E83","v":-18539.898744966835},{"$f":"AF150*'COM-Appliance class'!$B83+'COM S curve-disconnect'!AF171*'COM-Appliance class'!$C83+'COM S curve-disconnect'!AF192*'COM-Appliance class'!$D83+'COM S curve-disconnect'!AF213*'COM-Appliance class'!$E83","v":-18228.802601261661},{"$f":"AG150*'COM-Appliance class'!$B83+'COM S curve-disconnect'!AG171*'COM-Appliance class'!$C83+'COM S curve-disconnect'!AG192*'COM-Appliance class'!$D83+'COM S curve-disconnect'!AG213*'COM-Appliance class'!$E83","v":-18228.802601261661},{"$f":"AH150*'COM-Appliance class'!$B83+'COM S curve-disconnect'!AH171*'COM-Appliance class'!$C83+'COM S curve-disconnect'!AH192*'COM-Appliance class'!$D83+'COM S curve-disconnect'!AH213*'COM-Appliance class'!$E83","v":-18228.802601261661},{"$f":"AI150*'COM-Appliance class'!$B83+'COM S curve-disconnect'!AI171*'COM-Appliance class'!$C83+'COM S curve-disconnect'!AI192*'COM-Appliance class'!$D83+'COM S curve-disconnect'!AI213*'COM-Appliance class'!$E83","v":-18228.802601261661},{"$f":"AJ150*'COM-Appliance class'!$B83+'COM S curve-disconnect'!AJ171*'COM-Appliance class'!$C83+'COM S curve-disconnect'!AJ192*'COM-Appliance class'!$D83+'COM S curve-disconnect'!AJ213*'COM-Appliance class'!$E83","v":-18228.802601261661},{"$f":"AK150*'COM-Appliance class'!$B83+'COM S curve-disconnect'!AK171*'COM-Appliance class'!$C83+'COM S curve-disconnect'!AK192*'COM-Appliance class'!$D83+'COM S curve-disconnect'!AK213*'COM-Appliance class'!$E83","v":-18228.802601261661},{"$f":"AL150*'COM-Appliance class'!$B83+'COM S curve-disconnect'!AL171*'COM-Appliance class'!$C83+'COM S curve-disconnect'!AL192*'COM-Appliance class'!$D83+'COM S curve-disconnect'!AL213*'COM-Appliance class'!$E83","v":-18228.802601261661},{"$f":"AM150*'COM-Appliance class'!$B83+'COM S curve-disconnect'!AM171*'COM-Appliance class'!$C83+'COM S curve-disconnect'!AM192*'COM-Appliance class'!$D83+'COM S curve-disconnect'!AM213*'COM-Appliance class'!$E83","v":-18228.802601261661},{"$f":"AN150*'COM-Appliance class'!$B83+'COM S curve-disconnect'!AN171*'COM-Appliance class'!$C83+'COM S curve-disconnect'!AN192*'COM-Appliance class'!$D83+'COM S curve-disconnect'!AN213*'COM-Appliance class'!$E83","v":-18228.802601261661},{"$f":"AO150*'COM-Appliance class'!$B83+'COM S curve-disconnect'!AO171*'COM-Appliance class'!$C83+'COM S curve-disconnect'!AO192*'COM-Appliance class'!$D83+'COM S curve-disconnect'!AO213*'COM-Appliance class'!$E83","v":-18228.802601261661},{"$f":"AP150*'COM-Appliance class'!$B83+'COM S curve-disconnect'!AP171*'COM-Appliance class'!$C83+'COM S curve-disconnect'!AP192*'COM-Appliance class'!$D83+'COM S curve-disconnect'!AP213*'COM-Appliance class'!$E83","v":-18228.802601261661},{"$f":"AQ150*'COM-Appliance class'!$B83+'COM S curve-disconnect'!AQ171*'COM-Appliance class'!$C83+'COM S curve-disconnect'!AQ192*'COM-Appliance class'!$D83+'COM S curve-disconnect'!AQ213*'COM-Appliance class'!$E83","v":-18228.802601261661},{"$f":"AR150*'COM-Appliance class'!$B83+'COM S curve-disconnect'!AR171*'COM-Appliance class'!$C83+'COM S curve-disconnect'!AR192*'COM-Appliance class'!$D83+'COM S curve-disconnect'!AR213*'COM-Appliance class'!$E83","v":-18228.802601261661},{"$f":"AS150*'COM-Appliance class'!$B83+'COM S curve-disconnect'!AS171*'COM-Appliance class'!$C83+'COM S curve-disconnect'!AS192*'COM-Appliance class'!$D83+'COM S curve-disconnect'!AS213*'COM-Appliance class'!$E83","v":-18228.802601261661},{"$f":"AT150*'COM-Appliance class'!$B83+'COM S curve-disconnect'!AT171*'COM-Appliance class'!$C83+'COM S curve-disconnect'!AT192*'COM-Appliance class'!$D83+'COM S curve-disconnect'!AT213*'COM-Appliance class'!$E83","v":-18228.802601261661},{"$f":"AU150*'COM-Appliance class'!$B83+'COM S curve-disconnect'!AU171*'COM-Appliance class'!$C83+'COM S curve-disconnect'!AU192*'COM-Appliance class'!$D83+'COM S curve-disconnect'!AU213*'COM-Appliance class'!$E83","v":-18228.802601261661},{"$f":"AV150*'COM-Appliance class'!$B83+'COM S curve-disconnect'!AV171*'COM-Appliance class'!$C83+'COM S curve-disconnect'!AV192*'COM-Appliance class'!$D83+'COM S curve-disconnect'!AV213*'COM-Appliance class'!$E83","v":-18228.802601261661},{"$f":"AW150*'COM-Appliance class'!$B83+'COM S curve-disconnect'!AW171*'COM-Appliance class'!$C83+'COM S curve-disconnect'!AW192*'COM-Appliance class'!$D83+'COM S curve-disconnect'!AW213*'COM-Appliance class'!$E83","v":-18228.802601261661},{"$f":"AX150*'COM-Appliance class'!$B83+'COM S curve-disconnect'!AX171*'COM-Appliance class'!$C83+'COM S curve-disconnect'!AX192*'COM-Appliance class'!$D83+'COM S curve-disconnect'!AX213*'COM-Appliance class'!$E83","v":-18228.802601261661},{"$f":"AY150*'COM-Appliance class'!$B83+'COM S curve-disconnect'!AY171*'COM-Appliance class'!$C83+'COM S curve-disconnect'!AY192*'COM-Appliance class'!$D83+'COM S curve-disconnect'!AY213*'COM-Appliance class'!$E83","v":-18228.802601261661},{"$f":"AZ150*'COM-Appliance class'!$B83+'COM S curve-disconnect'!AZ171*'COM-Appliance class'!$C83+'COM S curve-disconnect'!AZ192*'COM-Appliance class'!$D83+'COM S curve-disconnect'!AZ213*'COM-Appliance class'!$E83","v":-18228.802601261661},{"$f":"BA150*'COM-Appliance class'!$B83+'COM S curve-disconnect'!BA171*'COM-Appliance class'!$C83+'COM S curve-disconnect'!BA192*'COM-Appliance class'!$D83+'COM S curve-disconnect'!BA213*'COM-Appliance class'!$E83","v":-18228.802601261661},{"$f":"BB150*'COM-Appliance class'!$B83+'COM S curve-disconnect'!BB171*'COM-Appliance class'!$C83+'COM S curve-disconnect'!BB192*'COM-Appliance class'!$D83+'COM S curve-disconnect'!BB213*'COM-Appliance class'!$E83","v":-18228.802601261661},{"$f":"BC150*'COM-Appliance class'!$B83+'COM S curve-disconnect'!BC171*'COM-Appliance class'!$C83+'COM S curve-disconnect'!BC192*'COM-Appliance class'!$D83+'COM S curve-disconnect'!BC213*'COM-Appliance class'!$E83","v":-18228.802601261661},{"$f":"BD150*'COM-Appliance class'!$B83+'COM S curve-disconnect'!BD171*'COM-Appliance class'!$C83+'COM S curve-disconnect'!BD192*'COM-Appliance class'!$D83+'COM S curve-disconnect'!BD213*'COM-Appliance class'!$E83","v":-18228.802601261661},{"$f":"BE150*'COM-Appliance class'!$B83+'COM S curve-disconnect'!BE171*'COM-Appliance class'!$C83+'COM S curve-disconnect'!BE192*'COM-Appliance class'!$D83+'COM S curve-disconnect'!BE213*'COM-Appliance class'!$E83","v":-18228.802601261661},{"$f":"BF150*'COM-Appliance class'!$B83+'COM S curve-disconnect'!BF171*'COM-Appliance class'!$C83+'COM S curve-disconnect'!BF192*'COM-Appliance class'!$D83+'COM S curve-disconnect'!BF213*'COM-Appliance class'!$E83","v":-18228.802601261661},{"$f":"BG150*'COM-Appliance class'!$B83+'COM S curve-disconnect'!BG171*'COM-Appliance class'!$C83+'COM S curve-disconnect'!BG192*'COM-Appliance class'!$D83+'COM S curve-disconnect'!BG213*'COM-Appliance class'!$E83","v":-18228.802601261661},{"$f":"BH150*'COM-Appliance class'!$B83+'COM S curve-disconnect'!BH171*'COM-Appliance class'!$C83+'COM S curve-disconnect'!BH192*'COM-Appliance class'!$D83+'COM S curve-disconnect'!BH213*'COM-Appliance class'!$E83","v":-18228.802601261661},{"$f":"BI150*'COM-Appliance class'!$B83+'COM S curve-disconnect'!BI171*'COM-Appliance class'!$C83+'COM S curve-disconnect'!BI192*'COM-Appliance class'!$D83+'COM S curve-disconnect'!BI213*'COM-Appliance class'!$E83","v":-18228.802601261661},{"$f":"BJ150*'COM-Appliance class'!$B83+'COM S curve-disconnect'!BJ171*'COM-Appliance class'!$C83+'COM S curve-disconnect'!BJ192*'COM-Appliance class'!$D83+'COM S curve-disconnect'!BJ213*'COM-Appliance class'!$E83","v":-18228.802601261661},{"$f":"BK150*'COM-Appliance class'!$B83+'COM S curve-disconnect'!BK171*'COM-Appliance class'!$C83+'COM S curve-disconnect'!BK192*'COM-Appliance class'!$D83+'COM S curve-disconnect'!BK213*'COM-Appliance class'!$E83","v":-18228.802601261661},{"$f":"BL150*'COM-Appliance class'!$B83+'COM S curve-disconnect'!BL171*'COM-Appliance class'!$C83+'COM S curve-disconnect'!BL192*'COM-Appliance class'!$D83+'COM S curve-disconnect'!BL213*'COM-Appliance class'!$E83","v":-18228.802601261661},{"$f":"BM150*'COM-Appliance class'!$B83+'COM S curve-disconnect'!BM171*'COM-Appliance class'!$C83+'COM S curve-disconnect'!BM192*'COM-Appliance class'!$D83+'COM S curve-disconnect'!BM213*'COM-Appliance class'!$E83","v":-18228.802601261661},{"$f":"BN150*'COM-Appliance class'!$B83+'COM S curve-disconnect'!BN171*'COM-Appliance class'!$C83+'COM S curve-disconnect'!BN192*'COM-Appliance class'!$D83+'COM S curve-disconnect'!BN213*'COM-Appliance class'!$E83","v":-18228.802601261661},{"$f":"BO150*'COM-Appliance class'!$B83+'COM S curve-disconnect'!BO171*'COM-Appliance class'!$C83+'COM S curve-disconnect'!BO192*'COM-Appliance class'!$D83+'COM S curve-disconnect'!BO213*'COM-Appliance class'!$E83","v":-18228.802601261661},{"$f":"BP150*'COM-Appliance class'!$B83+'COM S curve-disconnect'!BP171*'COM-Appliance class'!$C83+'COM S curve-disconnect'!BP192*'COM-Appliance class'!$D83+'COM S curve-disconnect'!BP213*'COM-Appliance class'!$E83","v":-18228.802601261661},{"$f":"BQ150*'COM-Appliance class'!$B83+'COM S curve-disconnect'!BQ171*'COM-Appliance class'!$C83+'COM S curve-disconnect'!BQ192*'COM-Appliance class'!$D83+'COM S curve-disconnect'!BQ213*'COM-Appliance class'!$E83","v":-18228.802601261661},{"$f":"BR150*'COM-Appliance class'!$B83+'COM S curve-disconnect'!BR171*'COM-Appliance class'!$C83+'COM S curve-disconnect'!BR192*'COM-Appliance class'!$D83+'COM S curve-disconnect'!BR213*'COM-Appliance class'!$E83","v":-18228.802601261661},{"$f":"BS150*'COM-Appliance class'!$B83+'COM S curve-disconnect'!BS171*'COM-Appliance class'!$C83+'COM S curve-disconnect'!BS192*'COM-Appliance class'!$D83+'COM S curve-disconnect'!BS213*'COM-Appliance class'!$E83","v":-18228.802601261661},{"$f":"BT150*'COM-Appliance class'!$B83+'COM S curve-disconnect'!BT171*'COM-Appliance class'!$C83+'COM S curve-disconnect'!BT192*'COM-Appliance class'!$D83+'COM S curve-disconnect'!BT213*'COM-Appliance class'!$E83","v":-18228.802601261661},{"$f":"BU150*'COM-Appliance class'!$B83+'COM S curve-disconnect'!BU171*'COM-Appliance class'!$C83+'COM S curve-disconnect'!BU192*'COM-Appliance class'!$D83+'COM S curve-disconnect'!BU213*'COM-Appliance class'!$E83","v":-18228.802601261661},{"$f":"BV150*'COM-Appliance class'!$B83+'COM S curve-disconnect'!BV171*'COM-Appliance class'!$C83+'COM S curve-disconnect'!BV192*'COM-Appliance class'!$D83+'COM S curve-disconnect'!BV213*'COM-Appliance class'!$E83","v":-18228.802601261661},{"$f":"BW150*'COM-Appliance class'!$B83+'COM S curve-disconnect'!BW171*'COM-Appliance class'!$C83+'COM S curve-disconnect'!BW192*'COM-Appliance class'!$D83+'COM S curve-disconnect'!BW213*'COM-Appliance class'!$E83","v":-18228.802601261661},{"$f":"BX150*'COM-Appliance class'!$B83+'COM S curve-disconnect'!BX171*'COM-Appliance class'!$C83+'COM S curve-disconnect'!BX192*'COM-Appliance class'!$D83+'COM S curve-disconnect'!BX213*'COM-Appliance class'!$E83","v":-18228.802601261661},{"$f":"BY150*'COM-Appliance class'!$B83+'COM S curve-disconnect'!BY171*'COM-Appliance class'!$C83+'COM S curve-disconnect'!BY192*'COM-Appliance class'!$D83+'COM S curve-disconnect'!BY213*'COM-Appliance class'!$E83","v":-18228.802601261661},{"$f":"BZ150*'COM-Appliance class'!$B83+'COM S curve-disconnect'!BZ171*'COM-Appliance class'!$C83+'COM S curve-disconnect'!BZ192*'COM-Appliance class'!$D83+'COM S curve-disconnect'!BZ213*'COM-Appliance class'!$E83","v":-18228.802601261661},{"$f":"CA150*'COM-Appliance class'!$B83+'COM S curve-disconnect'!CA171*'COM-Appliance class'!$C83+'COM S curve-disconnect'!CA192*'COM-Appliance class'!$D83+'COM S curve-disconnect'!CA213*'COM-Appliance class'!$E83","v":-18228.802601261661},{"$f":"CB150*'COM-Appliance class'!$B83+'COM S curve-disconnect'!CB171*'COM-Appliance class'!$C83+'COM S curve-disconnect'!CB192*'COM-Appliance class'!$D83+'COM S curve-disconnect'!CB213*'COM-Appliance class'!$E83","v":-18228.802601261661},{"$f":"CC150*'COM-Appliance class'!$B83+'COM S curve-disconnect'!CC171*'COM-Appliance class'!$C83+'COM S curve-disconnect'!CC192*'COM-Appliance class'!$D83+'COM S curve-disconnect'!CC213*'COM-Appliance class'!$E83","v":-18228.802601261661},{"$f":"CD150*'COM-Appliance class'!$B83+'COM S curve-disconnect'!CD171*'COM-Appliance class'!$C83+'COM S curve-disconnect'!CD192*'COM-Appliance class'!$D83+'COM S curve-disconnect'!CD213*'COM-Appliance class'!$E83","v":-18228.802601261661}]
["Melbourne (C)",null,{"$f":"C151*'COM-Appliance class'!$B84+'COM S curve-disconnect'!C172*'COM-Appliance class'!$C84+'COM S curve-disconnect'!C193*'COM-Appliance class'!$D84+'COM S curve-disconnect'!C214*'COM-Appliance class'!$E84","v":-105432.86157772454},{"$f":"D151*'COM-Appliance class'!$B84+'COM S curve-disconnect'!D172*'COM-Appliance class'!$C84+'COM S curve-disconnect'!D193*'COM-Appliance class'!$D84+'COM S curve-disconnect'!D214*'COM-Appliance class'!$E84","v":-105432.86157772454},{"$f":"E151*'COM-Appliance class'!$B84+'COM S curve-disconnect'!E172*'COM-Appliance class'!$C84+'COM S curve-disconnect'!E193*'COM-Appliance class'!$D84+'COM S curve-disconnect'!E214*'COM-Appliance class'!$E84","v":-67157.347098190774},{"$f":"F151*'COM-Appliance class'!$B84+'COM S curve-disconnect'!F172*'COM-Appliance class'!$C84+'COM S curve-disconnect'!F193*'COM-Appliance class'!$D84+'COM S curve-disconnect'!F214*'COM-Appliance class'!$E84","v":-67157.347098190774},{"$f":"G151*'COM-Appliance class'!$B84+'COM S curve-disconnect'!G172*'COM-Appliance class'!$C84+'COM S curve-disconnect'!G193*'COM-Appliance class'!$D84+'COM S curve-disconnect'!G214*'COM-Appliance class'!$E84","v":-94843.047792891128},{"$f":"H151*'COM-Appliance class'!$B84+'COM S curve-disconnect'!H172*'COM-Appliance class'!$C84+'COM S curve-disconnect'!H193*'COM-Appliance class'!$D84+'COM S curve-disconnect'!H214*'COM-Appliance class'!$E84","v":-94843.047792891128},{"$f":"I151*'COM-Appliance class'!$B84+'COM S curve-disconnect'!I172*'COM-Appliance class'!$C84+'COM S curve-disconnect'!I193*'COM-Appliance class'!$D84+'COM S curve-disconnect'!I214*'COM-Appliance class'!$E84","v":-94843.047792891128},{"$f":"J151*'COM-Appliance class'!$B84+'COM S curve-disconnect'!J172*'COM-Appliance class'!$C84+'COM S curve-disconnect'!J193*'COM-Appliance class'!$D84+'COM S curve-disconnect'!J214*'COM-Appliance class'!$E84","v":-104059.17138831265},{"$f":"K151*'COM-Appliance class'!$B84+'COM S curve-disconnect'!K172*'COM-Appliance class'!$C84+'COM S curve-disconnect'!K193*'COM-Appliance class'!$D84+'COM S curve-disconnect'!K214*'COM-Appliance class'!$E84","v":-97293.062930886401},{"$f":"L151*'COM-Appliance class'!$B84+'COM S curve-disconnect'!L172*'COM-Appliance class'!$C84+'COM S curve-disconnect'!L193*'COM-Appliance class'!$D84+'COM S curve-disconnect'!L214*'COM-Appliance class'!$E84","v":-95960.071734708676},{"$f":"M151*'COM-Appliance class'!$B84+'COM S curve-disconnect'!M172*'COM-Appliance class'!$C84+'COM S curve-disconnect'!M193*'COM-Appliance class'!$D84+'COM S curve-disconnect'!M214*'COM-Appliance class'!$E84","v":-94633.745494511852},{"$f":"N151*'COM-Appliance class'!$B84+'COM S curve-disconnect'!N172*'COM-Appliance class'!$C84+'COM S curve-disconnect'!N193*'COM-Appliance class'!$D84+'COM S curve-disconnect'!N214*'COM-Appliance class'!$E84","v":-93314.050885516015},{"$f":"O151*'COM-Appliance class'!$B84+'COM S curve-disconnect'!O172*'COM-Appliance class'!$C84+'COM S curve-disconnect'!O193*'COM-Appliance class'!$D84+'COM S curve-disconnect'!O214*'COM-Appliance class'!$E84","v":-92000.954749565135},{"$f":"P151*'COM-Appliance class'!$B84+'COM S curve-disconnect'!P172*'COM-Appliance class'!$C84+'COM S curve-disconnect'!P193*'COM-Appliance class'!$D84+'COM S curve-disconnect'!P214*'COM-Appliance class'!$E84","v":-90694.424094294052},{"$f":"Q151*'COM-Appliance class'!$B84+'COM S curve-disconnect'!Q172*'COM-Appliance class'!$C84+'COM S curve-disconnect'!Q193*'COM-Appliance class'!$D84+'COM S curve-disconnect'!Q214*'COM-Appliance class'!$E84","v":-89394.426092299269},{"$f":"R151*'COM-Appliance class'!$B84+'COM S curve-disconnect'!R172*'COM-Appliance class'!$C84+'COM S curve-disconnect'!R193*'COM-Appliance class'!$D84+'COM S curve-disconnect'!R214*'COM-Appliance class'!$E84","v":-88100.928080314508},{"$f":"S151*'COM-Appliance class'!$B84+'COM S curve-disconnect'!S172*'COM-Appliance class'!$C84+'COM S curve-disconnect'!S193*'COM-Appliance class'!$D84+'COM S curve-disconnect'!S214*'COM-Appliance class'!$E84","v":-86813.897558389654},{"$f":"T151*'COM-Appliance class'!$B84+'COM S curve-disconnect'!T172*'COM-Appliance class'!$C84+'COM S curve-disconnect'!T193*'COM-Appliance class'!$D84+'COM S curve-disconnect'!T214*'COM-Appliance class'!$E84","v":-85533.302189074442},{"$f":"U151*'COM-Appliance class'!$B84+'COM S curve-disconnect'!U172*'COM-Appliance class'!$C84+'COM S curve-disconnect'!U193*'COM-Appliance class'!$D84+'COM S curve-disconnect'!U214*'COM-Appliance class'!$E84","v":-84259.109796605771},{"$f":"V151*'COM-Appliance class'!$B84+'COM S curve-disconnect'!V172*'COM-Appliance class'!$C84+'COM S curve-disconnect'!V193*'COM-Appliance class'!$D84+'COM S curve-disconnect'!V214*'COM-Appliance class'!$E84","v":-82991.288366099456},{"$f":"W151*'COM-Appliance class'!$B84+'COM S curve-disconnect'!W172*'COM-Appliance class'!$C84+'COM S curve-disconnect'!W193*'COM-Appliance class'!$D84+'COM S curve-disconnect'!W214*'COM-Appliance class'!$E84","v":-81729.806042745666},{"$f":"X151*'COM-Appliance class'!$B84+'COM S curve-disconnect'!X172*'COM-Appliance class'!$C84+'COM S curve-disconnect'!X193*'COM-Appliance class'!$D84+'COM S curve-disconnect'!X214*'COM-Appliance class'!$E84","v":-80474.63113100866},{"$f":"Y151*'COM-Appliance class'!$B84+'COM S curve-disconnect'!Y172*'COM-Appliance class'!$C84+'COM S curve-disconnect'!Y193*'COM-Appliance class'!$D84+'COM S curve-disconnect'!Y214*'COM-Appliance class'!$E84","v":-79225.732093830331},{"$f":"Z151*'COM-Appliance class'!$B84+'COM S curve-disconnect'!Z172*'COM-Appliance class'!$C84+'COM S curve-disconnect'!Z193*'COM-Appliance class'!$D84+'COM S curve-disconnect'!Z214*'COM-Appliance class'!$E84","v":-77983.077551837894},{"$f":"AA151*'COM-Appliance class'!$B84+'COM S curve-disconnect'!AA172*'COM-Appliance class'!$C84+'COM S curve-disconnect'!AA193*'COM-Appliance class'!$D84+'COM S curve-disconnect'!AA214*'COM-Appliance class'!$E84","v":-76746.63628255541},{"$f":"AB151*'COM-Appliance class'!$B84+'COM S curve-disconnect'!AB172*'COM-Appliance class'!$C84+'COM S curve-disconnect'!AB193*'COM-Appliance class'!$D84+'COM S curve-disconnect'!AB214*'COM-Appliance class'!$E84","v":-75516.377219619346},{"$f":"AC151*'COM-Appliance class'!$B84+'COM S curve-disconnect'!AC172*'COM-Appliance class'!$C84+'COM S curve-disconnect'!AC193*'COM-Appliance class'!$D84+'COM S curve-disconnect'!AC214*'COM-Appliance class'!$E84","v":-74292.269451997985},{"$f":"AD151*'COM-Appliance class'!$B84+'COM S curve-disconnect'!AD172*'COM-Appliance class'!$C84+'COM S curve-disconnect'!AD193*'COM-Appliance class'!$D84+'COM S curve-disconnect'!AD214*'COM-Appliance class'!$E84","v":-73074.282223214715},{"$f":"AE151*'COM-Appliance class'!$B84+'COM S curve-disconnect'!AE172*'COM-Appliance class'!$C84+'COM S curve-disconnect'!AE193*'COM-Appliance class'!$D84+'COM S curve-disconnect'!AE214*'COM-Appliance class'!$E84","v":-71862.384930575368},{"$f":"AF151*'COM-Appliance class'!$B84+'COM S curve-disconnect'!AF172*'COM-Appliance class'!$C84+'COM S curve-disconnect'!AF193*'COM-Appliance class'!$D84+'COM S curve-disconnect'!AF214*'COM-Appliance class'!$E84","v":-70656.547124399192},{"$f":"AG151*'COM-Appliance class'!$B84+'COM S curve-disconnect'!AG172*'COM-Appliance class'!$C84+'COM S curve-disconnect'!AG193*'COM-Appliance class'!$D84+'COM S curve-disconnect'!AG214*'COM-Appliance class'!$E84","v":-70656.547124399192},{"$f":"AH151*'COM-Appliance class'!$B84+'COM S curve-disconnect'!AH172*'COM-Appliance class'!$C84+'COM S curve-disconnect'!AH193*'COM-Appliance class'!$D84+'COM S curve-disconnect'!AH214*'COM-Appliance class'!$E84","v":-70656.547124399192},{"$f":"AI151*'COM-Appliance class'!$B84+'COM S curve-disconnect'!AI172*'COM-Appliance class'!$C84+'COM S curve-disconnect'!AI193*'COM-Appliance class'!$D84+'COM S curve-disconnect'!AI214*'COM-Appliance class'!$E84","v":-70656.547124399192},{"$f":"AJ151*'COM-Appliance class'!$B84+'COM S curve-disconnect'!AJ172*'COM-Appliance class'!$C84+'COM S curve-disconnect'!AJ193*'COM-Appliance class'!$D84+'COM S curve-disconnect'!AJ214*'COM-Appliance class'!$E84","v":-70656.547124399192},{"$f":"AK151*'COM-Appliance class'!$B84+'COM S curve-disconnect'!AK172*'COM-Appliance class'!$C84+'COM S curve-disconnect'!AK193*'COM-Appliance class'!$D84+'COM S curve-disconnect'!AK214*'COM-Appliance class'!$E84","v":-70656.547124399192},{"$f":"AL151*'COM-Appliance class'!$B84+'COM S curve-disconnect'!AL172*'COM-Appliance class'!$C84+'COM S curve-disconnect'!AL193*'COM-Appliance class'!$D84+'COM S curve-disconnect'!AL214*'COM-Appliance class'!$E84","v":-70656.547124399192},{"$f":"AM151*'COM-Appliance class'!$B84+'COM S curve-disconnect'!AM172*'COM-Appliance class'!$C84+'COM S curve-disconnect'!AM193*'COM-Appliance class'!$D84+'COM S curve-disconnect'!AM214*'COM-Appliance class'!$E84","v":-70656.547124399192},{"$f":"AN151*'COM-Appliance class'!$B84+'COM S curve-disconnect'!AN172*'COM-Appliance class'!$C84+'COM S curve-disconnect'!AN193*'COM-Appliance class'!$D84+'COM S curve-disconnect'!AN214*'COM-Appliance class'!$E84","v":-70656.547124399192},{"$f":"AO151*'COM-Appliance class'!$B84+'COM S curve-disconnect'!AO172*'COM-Appliance class'!$C84+'COM S curve-disconnect'!AO193*'COM-Appliance class'!$D84+'COM S curve-disconnect'!AO214*'COM-Appliance class'!$E84","v":-70656.547124399192},{"$f":"AP151*'COM-Appliance class'!$B84+'COM S curve-disconnect'!AP172*'COM-Appliance class'!$C84+'COM S curve-disconnect'!AP193*'COM-Appliance class'!$D84+'COM S curve-disconnect'!AP214*'COM-Appliance class'!$E84","v":-70656.547124399192},{"$f":"AQ151*'COM-Appliance class'!$B84+'COM S curve-disconnect'!AQ172*'COM-Appliance class'!$C84+'COM S curve-disconnect'!AQ193*'COM-Appliance class'!$D84+'COM S curve-disconnect'!AQ214*'COM-Appliance class'!$E84","v":-70656.547124399192},{"$f":"AR151*'COM-Appliance class'!$B84+'COM S curve-disconnect'!AR172*'COM-Appliance class'!$C84+'COM S curve-disconnect'!AR193*'COM-Appliance class'!$D84+'COM S curve-disconnect'!AR214*'COM-Appliance class'!$E84","v":-70656.547124399192},{"$f":"AS151*'COM-Appliance class'!$B84+'COM S curve-disconnect'!AS172*'COM-Appliance class'!$C84+'COM S curve-disconnect'!AS193*'COM-Appliance class'!$D84+'COM S curve-disconnect'!AS214*'COM-Appliance class'!$E84","v":-70656.547124399192},{"$f":"AT151*'COM-Appliance class'!$B84+'COM S curve-disconnect'!AT172*'COM-Appliance class'!$C84+'COM S curve-disconnect'!AT193*'COM-Appliance class'!$D84+'COM S curve-disconnect'!AT214*'COM-Appliance class'!$E84","v":-70656.547124399192},{"$f":"AU151*'COM-Appliance class'!$B84+'COM S curve-disconnect'!AU172*'COM-Appliance class'!$C84+'COM S curve-disconnect'!AU193*'COM-Appliance class'!$D84+'COM S curve-disconnect'!AU214*'COM-Appliance class'!$E84","v":-70656.547124399192},{"$f":"AV151*'COM-Appliance class'!$B84+'COM S curve-disconnect'!AV172*'COM-Appliance class'!$C84+'COM S curve-disconnect'!AV193*'COM-Appliance class'!$D84+'COM S curve-disconnect'!AV214*'COM-Appliance class'!$E84","v":-70656.547124399192},{"$f":"AW151*'COM-Appliance class'!$B84+'COM S curve-disconnect'!AW172*'COM-Appliance class'!$C84+'COM S curve-disconnect'!AW193*'COM-Appliance class'!$D84+'COM S curve-disconnect'!AW214*'COM-Appliance class'!$E84","v":-70656.547124399192},{"$f":"AX151*'COM-Appliance class'!$B84+'COM S curve-disconnect'!AX172*'COM-Appliance class'!$C84+'COM S curve-disconnect'!AX193*'COM-Appliance class'!$D84+'COM S curve-disconnect'!AX214*'COM-Appliance class'!$E84","v":-70656.547124399192},{"$f":"AY151*'COM-Appliance class'!$B84+'COM S curve-disconnect'!AY172*'COM-Appliance class'!$C84+'COM S curve-disconnect'!AY193*'COM-Appliance class'!$D84+'COM S curve-disconnect'!AY214*'COM-Appliance class'!$E84","v":-70656.547124399192},{"$f":"AZ151*'COM-Appliance class'!$B84+'COM S curve-disconnect'!AZ172*'COM-Appliance class'!$C84+'COM S curve-disconnect'!AZ193*'COM-Appliance class'!$D84+'COM S curve-disconnect'!AZ214*'COM-Appliance class'!$E84","v":-70656.547124399192},{"$f":"BA151*'COM-Appliance class'!$B84+'COM S curve-disconnect'!BA172*'COM-Appliance class'!$C84+'COM S curve-disconnect'!BA193*'COM-Appliance class'!$D84+'COM S curve-disconnect'!BA214*'COM-Appliance class'!$E84","v":-70656.547124399192},{"$f":"BB151*'COM-Appliance class'!$B84+'COM S curve-disconnect'!BB172*'COM-Appliance class'!$C84+'COM S curve-disconnect'!BB193*'COM-Appliance class'!$D84+'COM S curve-disconnect'!BB214*'COM-Appliance class'!$E84","v":-70656.547124399192},{"$f":"BC151*'COM-Appliance class'!$B84+'COM S curve-disconnect'!BC172*'COM-Appliance class'!$C84+'COM S curve-disconnect'!BC193*'COM-Appliance class'!$D84+'COM S curve-disconnect'!BC214*'COM-Appliance class'!$E84","v":-70656.547124399192},{"$f":"BD151*'COM-Appliance class'!$B84+'COM S curve-disconnect'!BD172*'COM-Appliance class'!$C84+'COM S curve-disconnect'!BD193*'COM-Appliance class'!$D84+'COM S curve-disconnect'!BD214*'COM-Appliance class'!$E84","v":-70656.547124399192},{"$f":"BE151*'COM-Appliance class'!$B84+'COM S curve-disconnect'!BE172*'COM-Appliance class'!$C84+'COM S curve-disconnect'!BE193*'COM-Appliance class'!$D84+'COM S curve-disconnect'!BE214*'COM-Appliance class'!$E84","v":-70656.547124399192},{"$f":"BF151*'COM-Appliance class'!$B84+'COM S curve-disconnect'!BF172*'COM-Appliance class'!$C84+'COM S curve-disconnect'!BF193*'COM-Appliance class'!$D84+'COM S curve-disconnect'!BF214*'COM-Appliance class'!$E84","v":-70656.547124399192},{"$f":"BG151*'COM-Appliance class'!$B84+'COM S curve-disconnect'!BG172*'COM-Appliance class'!$C84+'COM S curve-disconnect'!BG193*'COM-Appliance class'!$D84+'COM S curve-disconnect'!BG214*'COM-Appliance class'!$E84","v":-70656.547124399192},{"$f":"BH151*'COM-Appliance class'!$B84+'COM S curve-disconnect'!BH172*'COM-Appliance class'!$C84+'COM S curve-disconnect'!BH193*'COM-Appliance class'!$D84+'COM S curve-disconnect'!BH214*'COM-Appliance class'!$E84","v":-70656.547124399192},{"$f":"BI151*'COM-Appliance class'!$B84+'COM S curve-disconnect'!BI172*'COM-Appliance class'!$C84+'COM S curve-disconnect'!BI193*'COM-Appliance class'!$D84+'COM S curve-disconnect'!BI214*'COM-Appliance class'!$E84","v":-70656.547124399192},{"$f":"BJ151*'COM-Appliance class'!$B84+'COM S curve-disconnect'!BJ172*'COM-Appliance class'!$C84+'COM S curve-disconnect'!BJ193*'COM-Appliance class'!$D84+'COM S curve-disconnect'!BJ214*'COM-Appliance class'!$E84","v":-70656.547124399192},{"$f":"BK151*'COM-Appliance class'!$B84+'COM S curve-disconnect'!BK172*'COM-Appliance class'!$C84+'COM S curve-disconnect'!BK193*'COM-Appliance class'!$D84+'COM S curve-disconnect'!BK214*'COM-Appliance class'!$E84","v":-70656.547124399192},{"$f":"BL151*'COM-Appliance class'!$B84+'COM S curve-disconnect'!BL172*'COM-Appliance class'!$C84+'COM S curve-disconnect'!BL193*'COM-Appliance class'!$D84+'COM S curve-disconnect'!BL214*'COM-Appliance class'!$E84","v":-70656.547124399192},{"$f":"BM151*'COM-Appliance class'!$B84+'COM S curve-disconnect'!BM172*'COM-Appliance class'!$C84+'COM S curve-disconnect'!BM193*'COM-Appliance class'!$D84+'COM S curve-disconnect'!BM214*'COM-Appliance class'!$E84","v":-70656.547124399192},{"$f":"BN151*'COM-Appliance class'!$B84+'COM S curve-disconnect'!BN172*'COM-Appliance class'!$C84+'COM S curve-disconnect'!BN193*'COM-Appliance class'!$D84+'COM S curve-disconnect'!BN214*'COM-Appliance class'!$E84","v":-70656.547124399192},{"$f":"BO151*'COM-Appliance class'!$B84+'COM S curve-disconnect'!BO172*'COM-Appliance class'!$C84+'COM S curve-disconnect'!BO193*'COM-Appliance class'!$D84+'COM S curve-disconnect'!BO214*'COM-Appliance class'!$E84","v":-70656.547124399192},{"$f":"BP151*'COM-Appliance class'!$B84+'COM S curve-disconnect'!BP172*'COM-Appliance class'!$C84+'COM S curve-disconnect'!BP193*'COM-Appliance class'!$D84+'COM S curve-disconnect'!BP214*'COM-Appliance class'!$E84","v":-70656.547124399192},{"$f":"BQ151*'COM-Appliance class'!$B84+'COM S curve-disconnect'!BQ172*'COM-Appliance class'!$C84+'COM S curve-disconnect'!BQ193*'COM-Appliance class'!$D84+'COM S curve-disconnect'!BQ214*'COM-Appliance class'!$E84","v":-70656.547124399192},{"$f":"BR151*'COM-Appliance class'!$B84+'COM S curve-disconnect'!BR172*'COM-Appliance class'!$C84+'COM S curve-disconnect'!BR193*'COM-Appliance class'!$D84+'COM S curve-disconnect'!BR214*'COM-Appliance class'!$E84","v":-70656.547124399192},{"$f":"BS151*'COM-Appliance class'!$B84+'COM S curve-disconnect'!BS172*'COM-Appliance class'!$C84+'COM S curve-disconnect'!BS193*'COM-Appliance class'!$D84+'COM S curve-disconnect'!BS214*'COM-Appliance class'!$E84","v":-70656.547124399192},{"$f":"BT151*'COM-Appliance class'!$B84+'COM S curve-disconnect'!BT172*'COM-Appliance class'!$C84+'COM S curve-disconnect'!BT193*'COM-Appliance class'!$D84+'COM S curve-disconnect'!BT214*'COM-Appliance class'!$E84","v":-70656.547124399192},{"$f":"BU151*'COM-Appliance class'!$B84+'COM S curve-disconnect'!BU172*'COM-Appliance class'!$C84+'COM S curve-disconnect'!BU193*'COM-Appliance class'!$D84+'COM S curve-disconnect'!BU214*'COM-Appliance class'!$E84","v":-70656.547124399192},{"$f":"BV151*'COM-Appliance class'!$B84+'COM S curve-disconnect'!BV172*'COM-Appliance class'!$C84+'COM S curve-disconnect'!BV193*'COM-Appliance class'!$D84+'COM S curve-disconnect'!BV214*'COM-Appliance class'!$E84","v":-70656.547124399192},{"$f":"BW151*'COM-Appliance class'!$B84+'COM S curve-disconnect'!BW172*'COM-Appliance class'!$C84+'COM S curve-disconnect'!BW193*'COM-Appliance class'!$D84+'COM S curve-disconnect'!BW214*'COM-Appliance class'!$E84","v":-70656.547124399192},{"$f":"BX151*'COM-Appliance class'!$B84+'COM S curve-disconnect'!BX172*'COM-Appliance class'!$C84+'COM S curve-disconnect'!BX193*'COM-Appliance class'!$D84+'COM S curve-disconnect'!BX214*'COM-Appliance class'!$E84","v":-70656.547124399192},{"$f":"BY151*'COM-Appliance class'!$B84+'COM S curve-disconnect'!BY172*'COM-Appliance class'!$C84+'COM S curve-disconnect'!BY193*'COM-Appliance class'!$D84+'COM S curve-disconnect'!BY214*'COM-Appliance class'!$E84","v":-70656.547124399192},{"$f":"BZ151*'COM-Appliance class'!$B84+'COM S curve-disconnect'!BZ172*'COM-Appliance class'!$C84+'COM S curve-disconnect'!BZ193*'COM-Appliance class'!$D84+'COM S curve-disconnect'!BZ214*'COM-Appliance class'!$E84","v":-70656.547124399192},{"$f":"CA151*'COM-Appliance class'!$B84+'COM S curve-disconnect'!CA172*'COM-Appliance class'!$C84+'COM S curve-disconnect'!CA193*'COM-Appliance class'!$D84+'COM S curve-disconnect'!CA214*'COM-Appliance class'!$E84","v":-70656.547124399192},{"$f":"CB151*'COM-Appliance class'!$B84+'COM S curve-disconnect'!CB172*'COM-Appliance class'!$C84+'COM S curve-disconnect'!CB193*'COM-Appliance class'!$D84+'COM S curve-disconnect'!CB214*'COM-Appliance class'!$E84","v":-70656.547124399192},{"$f":"CC151*'COM-Appliance class'!$B84+'COM S curve-disconnect'!CC172*'COM-Appliance class'!$C84+'COM S curve-disconnect'!CC193*'COM-Appliance class'!$D84+'COM S curve-disconnect'!CC214*'COM-Appliance class'!$E84","v":-70656.547124399192},{"$f":"CD151*'COM-Appliance class'!$B84+'COM S curve-disconnect'!CD172*'COM-Appliance class'!$C84+'COM S curve-disconnect'!CD193*'COM-Appliance class'!$D84+'COM S curve-disconnect'!CD214*'COM-Appliance class'!$E84","v":-70656.547124399192}]
["Monash (C)",null,{"$f":"C152*'COM-Appliance class'!$B85+'COM S curve-disconnect'!C173*'COM-Appliance class'!$C85+'COM S curve-disconnect'!C194*'COM-Appliance class'!$D85+'COM S curve-disconnect'!C215*'COM-Appliance class'!$E85","v":-33512.209296257366},{"$f":"D152*'COM-Appliance class'!$B85+'COM S curve-disconnect'!D173*'COM-Appliance class'!$C85+'COM S curve-disconnect'!D194*'COM-Appliance class'!$D85+'COM S curve-disconnect'!D215*'COM-Appliance class'!$E85","v":-33512.209296257366},{"$f":"E152*'COM-Appliance class'!$B85+'COM S curve-disconnect'!E173*'COM-Appliance class'!$C85+'COM S curve-disconnect'!E194*'COM-Appliance class'!$D85+'COM S curve-disconnect'!E215*'COM-Appliance class'!$E85","v":-21346.201156428324},{"$f":"F152*'COM-Appliance class'!$B85+'COM S curve-disconnect'!F173*'COM-Appliance class'!$C85+'COM S curve-disconnect'!F194*'COM-Appliance class'!$D85+'COM S curve-disconnect'!F215*'COM-Appliance class'!$E85","v":-21346.201156428324},{"$f":"G152*'COM-Appliance class'!$B85+'COM S curve-disconnect'!G173*'COM-Appliance class'!$C85+'COM S curve-disconnect'!G194*'COM-Appliance class'!$D85+'COM S curve-disconnect'!G215*'COM-Appliance class'!$E85","v":-30146.199395216143},{"$f":"H152*'COM-Appliance class'!$B85+'COM S curve-disconnect'!H173*'COM-Appliance class'!$C85+'COM S curve-disconnect'!H194*'COM-Appliance class'!$D85+'COM S curve-disconnect'!H215*'COM-Appliance class'!$E85","v":-30146.199395216143},{"$f":"I152*'COM-Appliance class'!$B85+'COM S curve-disconnect'!I173*'COM-Appliance class'!$C85+'COM S curve-disconnect'!I194*'COM-Appliance class'!$D85+'COM S curve-disconnect'!I215*'COM-Appliance class'!$E85","v":-30146.199395216143},{"$f":"J152*'COM-Appliance class'!$B85+'COM S curve-disconnect'!J173*'COM-Appliance class'!$C85+'COM S curve-disconnect'!J194*'COM-Appliance class'!$D85+'COM S curve-disconnect'!J215*'COM-Appliance class'!$E85","v":-33075.576993511313},{"$f":"K152*'COM-Appliance class'!$B85+'COM S curve-disconnect'!K173*'COM-Appliance class'!$C85+'COM S curve-disconnect'!K194*'COM-Appliance class'!$D85+'COM S curve-disconnect'!K215*'COM-Appliance class'!$E85","v":-30924.945403385227},{"$f":"L152*'COM-Appliance class'!$B85+'COM S curve-disconnect'!L173*'COM-Appliance class'!$C85+'COM S curve-disconnect'!L194*'COM-Appliance class'!$D85+'COM S curve-disconnect'!L215*'COM-Appliance class'!$E85","v":-30501.249420103544},{"$f":"M152*'COM-Appliance class'!$B85+'COM S curve-disconnect'!M173*'COM-Appliance class'!$C85+'COM S curve-disconnect'!M194*'COM-Appliance class'!$D85+'COM S curve-disconnect'!M215*'COM-Appliance class'!$E85","v":-30079.671916738262},{"$f":"N152*'COM-Appliance class'!$B85+'COM S curve-disconnect'!N173*'COM-Appliance class'!$C85+'COM S curve-disconnect'!N194*'COM-Appliance class'!$D85+'COM S curve-disconnect'!N215*'COM-Appliance class'!$E85","v":-29660.20230088981},{"$f":"O152*'COM-Appliance class'!$B85+'COM S curve-disconnect'!O173*'COM-Appliance class'!$C85+'COM S curve-disconnect'!O194*'COM-Appliance class'!$D85+'COM S curve-disconnect'!O215*'COM-Appliance class'!$E85","v":-29242.83003312059},{"$f":"P152*'COM-Appliance class'!$B85+'COM S curve-disconnect'!P173*'COM-Appliance class'!$C85+'COM S curve-disconnect'!P194*'COM-Appliance class'!$D85+'COM S curve-disconnect'!P215*'COM-Appliance class'!$E85","v":-28827.54462669024},{"$f":"Q152*'COM-Appliance class'!$B85+'COM S curve-disconnect'!Q173*'COM-Appliance class'!$C85+'COM S curve-disconnect'!Q194*'COM-Appliance class'!$D85+'COM S curve-disconnect'!Q215*'COM-Appliance class'!$E85","v":-28414.335647292017},{"$f":"R152*'COM-Appliance class'!$B85+'COM S curve-disconnect'!R173*'COM-Appliance class'!$C85+'COM S curve-disconnect'!R194*'COM-Appliance class'!$D85+'COM S curve-disconnect'!R215*'COM-Appliance class'!$E85","v":-28003.192712790798},{"$f":"S152*'COM-Appliance class'!$B85+'COM S curve-disconnect'!S173*'COM-Appliance class'!$C85+'COM S curve-disconnect'!S194*'COM-Appliance class'!$D85+'COM S curve-disconnect'!S215*'COM-Appliance class'!$E85","v":-27594.105492962088},{"$f":"T152*'COM-Appliance class'!$B85+'COM S curve-disconnect'!T173*'COM-Appliance class'!$C85+'COM S curve-disconnect'!T194*'COM-Appliance class'!$D85+'COM S curve-disconnect'!T215*'COM-Appliance class'!$E85","v":-27187.06370923252},{"$f":"U152*'COM-Appliance class'!$B85+'COM S curve-disconnect'!U173*'COM-Appliance class'!$C85+'COM S curve-disconnect'!U194*'COM-Appliance class'!$D85+'COM S curve-disconnect'!U215*'COM-Appliance class'!$E85","v":-26782.057134421593},{"$f":"V152*'COM-Appliance class'!$B85+'COM S curve-disconnect'!V173*'COM-Appliance class'!$C85+'COM S curve-disconnect'!V194*'COM-Appliance class'!$D85+'COM S curve-disconnect'!V215*'COM-Appliance class'!$E85","v":-26379.075592484722},{"$f":"W152*'COM-Appliance class'!$B85+'COM S curve-disconnect'!W173*'COM-Appliance class'!$C85+'COM S curve-disconnect'!W194*'COM-Appliance class'!$D85+'COM S curve-disconnect'!W215*'COM-Appliance class'!$E85","v":-25978.10895825753},{"$f":"X152*'COM-Appliance class'!$B85+'COM S curve-disconnect'!X173*'COM-Appliance class'!$C85+'COM S curve-disconnect'!X194*'COM-Appliance class'!$D85+'COM S curve-disconnect'!X215*'COM-Appliance class'!$E85","v":-25579.147157201482},{"$f":"Y152*'COM-Appliance class'!$B85+'COM S curve-disconnect'!Y173*'COM-Appliance class'!$C85+'COM S curve-disconnect'!Y194*'COM-Appliance class'!$D85+'COM S curve-disconnect'!Y215*'COM-Appliance class'!$E85","v":-25182.180165150719},{"$f":"Z152*'COM-Appliance class'!$B85+'COM S curve-disconnect'!Z173*'COM-Appliance class'!$C85+'COM S curve-disconnect'!Z194*'COM-Appliance class'!$D85+'COM S curve-disconnect'!Z215*'COM-Appliance class'!$E85","v":-24787.198008060201},{"$f":"AA152*'COM-Appliance class'!$B85+'COM S curve-disconnect'!AA173*'COM-Appliance class'!$C85+'COM S curve-disconnect'!AA194*'COM-Appliance class'!$D85+'COM S curve-disconnect'!AA215*'COM-Appliance class'!$E85","v":-24394.190761755133},{"$f":"AB152*'COM-Appliance class'!$B85+'COM S curve-disconnect'!AB173*'COM-Appliance class'!$C85+'COM S curve-disconnect'!AB194*'COM-Appliance class'!$D85+'COM S curve-disconnect'!AB215*'COM-Appliance class'!$E85","v":-24003.148551681596},{"$f":"AC152*'COM-Appliance class'!$B85+'COM S curve-disconnect'!AC173*'COM-Appliance class'!$C85+'COM S curve-disconnect'!AC194*'COM-Appliance class'!$D85+'COM S curve-disconnect'!AC215*'COM-Appliance class'!$E85","v":-23614.06155265843},{"$f":"AD152*'COM-Appliance class'!$B85+'COM S curve-disconnect'!AD173*'COM-Appliance class'!$C85+'COM S curve-disconnect'!AD194*'COM-Appliance class'!$D85+'COM S curve-disconnect'!AD215*'COM-Appliance class'!$E85","v":-23226.919988630383},{"$f":"AE152*'COM-Appliance class'!$B85+'COM S curve-disconnect'!AE173*'COM-Appliance class'!$C85+'COM S curve-disconnect'!AE194*'COM-Appliance class'!$D85+'COM S curve-disconnect'!AE215*'COM-Appliance class'!$E85","v":-22841.714132422472},{"$f":"AF152*'COM-Appliance class'!$B85+'COM S curve-disconnect'!AF173*'COM-Appliance class'!$C85+'COM S curve-disconnect'!AF194*'COM-Appliance class'!$D85+'COM S curve-disconnect'!AF215*'COM-Appliance class'!$E85","v":-22458.434305495597},{"$f":"AG152*'COM-Appliance class'!$B85+'COM S curve-disconnect'!AG173*'COM-Appliance class'!$C85+'COM S curve-disconnect'!AG194*'COM-Appliance class'!$D85+'COM S curve-disconnect'!AG215*'COM-Appliance class'!$E85","v":-22458.434305495597},{"$f":"AH152*'COM-Appliance class'!$B85+'COM S curve-disconnect'!AH173*'COM-Appliance class'!$C85+'COM S curve-disconnect'!AH194*'COM-Appliance class'!$D85+'COM S curve-disconnect'!AH215*'COM-Appliance class'!$E85","v":-22458.434305495597},{"$f":"AI152*'COM-Appliance class'!$B85+'COM S curve-disconnect'!AI173*'COM-Appliance class'!$C85+'COM S curve-disconnect'!AI194*'COM-Appliance class'!$D85+'COM S curve-disconnect'!AI215*'COM-Appliance class'!$E85","v":-22458.434305495597},{"$f":"AJ152*'COM-Appliance class'!$B85+'COM S curve-disconnect'!AJ173*'COM-Appliance class'!$C85+'COM S curve-disconnect'!AJ194*'COM-Appliance class'!$D85+'COM S curve-disconnect'!AJ215*'COM-Appliance class'!$E85","v":-22458.434305495597},{"$f":"AK152*'COM-Appliance class'!$B85+'COM S curve-disconnect'!AK173*'COM-Appliance class'!$C85+'COM S curve-disconnect'!AK194*'COM-Appliance class'!$D85+'COM S curve-disconnect'!AK215*'COM-Appliance class'!$E85","v":-22458.434305495597},{"$f":"AL152*'COM-Appliance class'!$B85+'COM S curve-disconnect'!AL173*'COM-Appliance class'!$C85+'COM S curve-disconnect'!AL194*'COM-Appliance class'!$D85+'COM S curve-disconnect'!AL215*'COM-Appliance class'!$E85","v":-22458.434305495597},{"$f":"AM152*'COM-Appliance class'!$B85+'COM S curve-disconnect'!AM173*'COM-Appliance class'!$C85+'COM S curve-disconnect'!AM194*'COM-Appliance class'!$D85+'COM S curve-disconnect'!AM215*'COM-Appliance class'!$E85","v":-22458.434305495597},{"$f":"AN152*'COM-Appliance class'!$B85+'COM S curve-disconnect'!AN173*'COM-Appliance class'!$C85+'COM S curve-disconnect'!AN194*'COM-Appliance class'!$D85+'COM S curve-disconnect'!AN215*'COM-Appliance class'!$E85","v":-22458.434305495597},{"$f":"AO152*'COM-Appliance class'!$B85+'COM S curve-disconnect'!AO173*'COM-Appliance class'!$C85+'COM S curve-disconnect'!AO194*'COM-Appliance class'!$D85+'COM S curve-disconnect'!AO215*'COM-Appliance class'!$E85","v":-22458.434305495597},{"$f":"AP152*'COM-Appliance class'!$B85+'COM S curve-disconnect'!AP173*'COM-Appliance class'!$C85+'COM S curve-disconnect'!AP194*'COM-Appliance class'!$D85+'COM S curve-disconnect'!AP215*'COM-Appliance class'!$E85","v":-22458.434305495597},{"$f":"AQ152*'COM-Appliance class'!$B85+'COM S curve-disconnect'!AQ173*'COM-Appliance class'!$C85+'COM S curve-disconnect'!AQ194*'COM-Appliance class'!$D85+'COM S curve-disconnect'!AQ215*'COM-Appliance class'!$E85","v":-22458.434305495597},{"$f":"AR152*'COM-Appliance class'!$B85+'COM S curve-disconnect'!AR173*'COM-Appliance class'!$C85+'COM S curve-disconnect'!AR194*'COM-Appliance class'!$D85+'COM S curve-disconnect'!AR215*'COM-Appliance class'!$E85","v":-22458.434305495597},{"$f":"AS152*'COM-Appliance class'!$B85+'COM S curve-disconnect'!AS173*'COM-Appliance class'!$C85+'COM S curve-disconnect'!AS194*'COM-Appliance class'!$D85+'COM S curve-disconnect'!AS215*'COM-Appliance class'!$E85","v":-22458.434305495597},{"$f":"AT152*'COM-Appliance class'!$B85+'COM S curve-disconnect'!AT173*'COM-Appliance class'!$C85+'COM S curve-disconnect'!AT194*'COM-Appliance class'!$D85+'COM S curve-disconnect'!AT215*'COM-Appliance class'!$E85","v":-22458.434305495597},{"$f":"AU152*'COM-Appliance class'!$B85+'COM S curve-disconnect'!AU173*'COM-Appliance class'!$C85+'COM S curve-disconnect'!AU194*'COM-Appliance class'!$D85+'COM S curve-disconnect'!AU215*'COM-Appliance class'!$E85","v":-22458.434305495597},{"$f":"AV152*'COM-Appliance class'!$B85+'COM S curve-disconnect'!AV173*'COM-Appliance class'!$C85+'COM S curve-disconnect'!AV194*'COM-Appliance class'!$D85+'COM S curve-disconnect'!AV215*'COM-Appliance class'!$E85","v":-22458.434305495597},{"$f":"AW152*'COM-Appliance class'!$B85+'COM S curve-disconnect'!AW173*'COM-Appliance class'!$C85+'COM S curve-disconnect'!AW194*'COM-Appliance class'!$D85+'COM S curve-disconnect'!AW215*'COM-Appliance class'!$E85","v":-22458.434305495597},{"$f":"AX152*'COM-Appliance class'!$B85+'COM S curve-disconnect'!AX173*'COM-Appliance class'!$C85+'COM S curve-disconnect'!AX194*'COM-Appliance class'!$D85+'COM S curve-disconnect'!AX215*'COM-Appliance class'!$E85","v":-22458.434305495597},{"$f":"AY152*'COM-Appliance class'!$B85+'COM S curve-disconnect'!AY173*'COM-Appliance class'!$C85+'COM S curve-disconnect'!AY194*'COM-Appliance class'!$D85+'COM S curve-disconnect'!AY215*'COM-Appliance class'!$E85","v":-22458.434305495597},{"$f":"AZ152*'COM-Appliance class'!$B85+'COM S curve-disconnect'!AZ173*'COM-Appliance class'!$C85+'COM S curve-disconnect'!AZ194*'COM-Appliance class'!$D85+'COM S curve-disconnect'!AZ215*'COM-Appliance class'!$E85","v":-22458.434305495597},{"$f":"BA152*'COM-Appliance class'!$B85+'COM S curve-disconnect'!BA173*'COM-Appliance class'!$C85+'COM S curve-disconnect'!BA194*'COM-Appliance class'!$D85+'COM S curve-disconnect'!BA215*'COM-Appliance class'!$E85","v":-22458.434305495597},{"$f":"BB152*'COM-Appliance class'!$B85+'COM S curve-disconnect'!BB173*'COM-Appliance class'!$C85+'COM S curve-disconnect'!BB194*'COM-Appliance class'!$D85+'COM S curve-disconnect'!BB215*'COM-Appliance class'!$E85","v":-22458.434305495597},{"$f":"BC152*'COM-Appliance class'!$B85+'COM S curve-disconnect'!BC173*'COM-Appliance class'!$C85+'COM S curve-disconnect'!BC194*'COM-Appliance class'!$D85+'COM S curve-disconnect'!BC215*'COM-Appliance class'!$E85","v":-22458.434305495597},{"$f":"BD152*'COM-Appliance class'!$B85+'COM S curve-disconnect'!BD173*'COM-Appliance class'!$C85+'COM S curve-disconnect'!BD194*'COM-Appliance class'!$D85+'COM S curve-disconnect'!BD215*'COM-Appliance class'!$E85","v":-22458.434305495597},{"$f":"BE152*'COM-Appliance class'!$B85+'COM S curve-disconnect'!BE173*'COM-Appliance class'!$C85+'COM S curve-disconnect'!BE194*'COM-Appliance class'!$D85+'COM S curve-disconnect'!BE215*'COM-Appliance class'!$E85","v":-22458.434305495597},{"$f":"BF152*'COM-Appliance class'!$B85+'COM S curve-disconnect'!BF173*'COM-Appliance class'!$C85+'COM S curve-disconnect'!BF194*'COM-Appliance class'!$D85+'COM S curve-disconnect'!BF215*'COM-Appliance class'!$E85","v":-22458.434305495597},{"$f":"BG152*'COM-Appliance class'!$B85+'COM S curve-disconnect'!BG173*'COM-Appliance class'!$C85+'COM S curve-disconnect'!BG194*'COM-Appliance class'!$D85+'COM S curve-disconnect'!BG215*'COM-Appliance class'!$E85","v":-22458.434305495597},{"$f":"BH152*'COM-Appliance class'!$B85+'COM S curve-disconnect'!BH173*'COM-Appliance class'!$C85+'COM S curve-disconnect'!BH194*'COM-Appliance class'!$D85+'COM S curve-disconnect'!BH215*'COM-Appliance class'!$E85","v":-22458.434305495597},{"$f":"BI152*'COM-Appliance class'!$B85+'COM S curve-disconnect'!BI173*'COM-Appliance class'!$C85+'COM S curve-disconnect'!BI194*'COM-Appliance class'!$D85+'COM S curve-disconnect'!BI215*'COM-Appliance class'!$E85","v":-22458.434305495597},{"$f":"BJ152*'COM-Appliance class'!$B85+'COM S curve-disconnect'!BJ173*'COM-Appliance class'!$C85+'COM S curve-disconnect'!BJ194*'COM-Appliance class'!$D85+'COM S curve-disconnect'!BJ215*'COM-Appliance class'!$E85","v":-22458.434305495597},{"$f":"BK152*'COM-Appliance class'!$B85+'COM S curve-disconnect'!BK173*'COM-Appliance class'!$C85+'COM S curve-disconnect'!BK194*'COM-Appliance class'!$D85+'COM S curve-disconnect'!BK215*'COM-Appliance class'!$E85","v":-22458.434305495597},{"$f":"BL152*'COM-Appliance class'!$B85+'COM S curve-disconnect'!BL173*'COM-Appliance class'!$C85+'COM S curve-disconnect'!BL194*'COM-Appliance class'!$D85+'COM S curve-disconnect'!BL215*'COM-Appliance class'!$E85","v":-22458.434305495597},{"$f":"BM152*'COM-Appliance class'!$B85+'COM S curve-disconnect'!BM173*'COM-Appliance class'!$C85+'COM S curve-disconnect'!BM194*'COM-Appliance class'!$D85+'COM S curve-disconnect'!BM215*'COM-Appliance class'!$E85","v":-22458.434305495597},{"$f":"BN152*'COM-Appliance class'!$B85+'COM S curve-disconnect'!BN173*'COM-Appliance class'!$C85+'COM S curve-disconnect'!BN194*'COM-Appliance class'!$D85+'COM S curve-disconnect'!BN215*'COM-Appliance class'!$E85","v":-22458.434305495597},{"$f":"BO152*'COM-Appliance class'!$B85+'COM S curve-disconnect'!BO173*'COM-Appliance class'!$C85+'COM S curve-disconnect'!BO194*'COM-Appliance class'!$D85+'COM S curve-disconnect'!BO215*'COM-Appliance class'!$E85","v":-22458.434305495597},{"$f":"BP152*'COM-Appliance class'!$B85+'COM S curve-disconnect'!BP173*'COM-Appliance class'!$C85+'COM S curve-disconnect'!BP194*'COM-Appliance class'!$D85+'COM S curve-disconnect'!BP215*'COM-Appliance class'!$E85","v":-22458.434305495597},{"$f":"BQ152*'COM-Appliance class'!$B85+'COM S curve-disconnect'!BQ173*'COM-Appliance class'!$C85+'COM S curve-disconnect'!BQ194*'COM-Appliance class'!$D85+'COM S curve-disconnect'!BQ215*'COM-Appliance class'!$E85","v":-22458.434305495597},{"$f":"BR152*'COM-Appliance class'!$B85+'COM S curve-disconnect'!BR173*'COM-Appliance class'!$C85+'COM S curve-disconnect'!BR194*'COM-Appliance class'!$D85+'COM S curve-disconnect'!BR215*'COM-Appliance class'!$E85","v":-22458.434305495597},{"$f":"BS152*'COM-Appliance class'!$B85+'COM S curve-disconnect'!BS173*'COM-Appliance class'!$C85+'COM S curve-disconnect'!BS194*'COM-Appliance class'!$D85+'COM S curve-disconnect'!BS215*'COM-Appliance class'!$E85","v":-22458.434305495597},{"$f":"BT152*'COM-Appliance class'!$B85+'COM S curve-disconnect'!BT173*'COM-Appliance class'!$C85+'COM S curve-disconnect'!BT194*'COM-Appliance class'!$D85+'COM S curve-disconnect'!BT215*'COM-Appliance class'!$E85","v":-22458.434305495597},{"$f":"BU152*'COM-Appliance class'!$B85+'COM S curve-disconnect'!BU173*'COM-Appliance class'!$C85+'COM S curve-disconnect'!BU194*'COM-Appliance class'!$D85+'COM S curve-disconnect'!BU215*'COM-Appliance class'!$E85","v":-22458.434305495597},{"$f":"BV152*'COM-Appliance class'!$B85+'COM S curve-disconnect'!BV173*'COM-Appliance class'!$C85+'COM S curve-disconnect'!BV194*'COM-Appliance class'!$D85+'COM S curve-disconnect'!BV215*'COM-Appliance class'!$E85","v":-22458.434305495597},{"$f":"BW152*'COM-Appliance class'!$B85+'COM S curve-disconnect'!BW173*'COM-Appliance class'!$C85+'COM S curve-disconnect'!BW194*'COM-Appliance class'!$D85+'COM S curve-disconnect'!BW215*'COM-Appliance class'!$E85","v":-22458.434305495597},{"$f":"BX152*'COM-Appliance class'!$B85+'COM S curve-disconnect'!BX173*'COM-Appliance class'!$C85+'COM S curve-disconnect'!BX194*'COM-Appliance class'!$D85+'COM S curve-disconnect'!BX215*'COM-Appliance class'!$E85","v":-22458.434305495597},{"$f":"BY152*'COM-Appliance class'!$B85+'COM S curve-disconnect'!BY173*'COM-Appliance class'!$C85+'COM S curve-disconnect'!BY194*'COM-Appliance class'!$D85+'COM S curve-disconnect'!BY215*'COM-Appliance class'!$E85","v":-22458.434305495597},{"$f":"BZ152*'COM-Appliance class'!$B85+'COM S curve-disconnect'!BZ173*'COM-Appliance class'!$C85+'COM S curve-disconnect'!BZ194*'COM-Appliance class'!$D85+'COM S curve-disconnect'!BZ215*'COM-Appliance class'!$E85","v":-22458.434305495597},{"$f":"CA152*'COM-Appliance class'!$B85+'COM S curve-disconnect'!CA173*'COM-Appliance class'!$C85+'COM S curve-disconnect'!CA194*'COM-Appliance class'!$D85+'COM S curve-disconnect'!CA215*'COM-Appliance class'!$E85","v":-22458.434305495597},{"$f":"CB152*'COM-Appliance class'!$B85+'COM S curve-disconnect'!CB173*'COM-Appliance class'!$C85+'COM S curve-disconnect'!CB194*'COM-Appliance class'!$D85+'COM S curve-disconnect'!CB215*'COM-Appliance class'!$E85","v":-22458.434305495597},{"$f":"CC152*'COM-Appliance class'!$B85+'COM S curve-disconnect'!CC173*'COM-Appliance class'!$C85+'COM S curve-disconnect'!CC194*'COM-Appliance class'!$D85+'COM S curve-disconnect'!CC215*'COM-Appliance class'!$E85","v":-22458.434305495597},{"$f":"CD152*'COM-Appliance class'!$B85+'COM S curve-disconnect'!CD173*'COM-Appliance class'!$C85+'COM S curve-disconnect'!CD194*'COM-Appliance class'!$D85+'COM S curve-disconnect'!CD215*'COM-Appliance class'!$E85","v":-22458.434305495597}]
["Port Phillip (C)",null,{"$f":"C153*'COM-Appliance class'!$B86+'COM S curve-disconnect'!C174*'COM-Appliance class'!$C86+'COM S curve-disconnect'!C195*'COM-Appliance class'!$D86+'COM S curve-disconnect'!C216*'COM-Appliance class'!$E86","v":-35345.235024976762},{"$f":"D153*'COM-Appliance class'!$B86+'COM S curve-disconnect'!D174*'COM-Appliance class'!$C86+'COM S curve-disconnect'!D195*'COM-Appliance class'!$D86+'COM S curve-disconnect'!D216*'COM-Appliance class'!$E86","v":-35345.235024976762},{"$f":"E153*'COM-Appliance class'!$B86+'COM S curve-disconnect'!E174*'COM-Appliance class'!$C86+'COM S curve-disconnect'!E195*'COM-Appliance class'!$D86+'COM S curve-disconnect'!E216*'COM-Appliance class'!$E86","v":-22513.779682339562},{"$f":"F153*'COM-Appliance class'!$B86+'COM S curve-disconnect'!F174*'COM-Appliance class'!$C86+'COM S curve-disconnect'!F195*'COM-Appliance class'!$D86+'COM S curve-disconnect'!F216*'COM-Appliance class'!$E86","v":-22513.779682339562},{"$f":"G153*'COM-Appliance class'!$B86+'COM S curve-disconnect'!G174*'COM-Appliance class'!$C86+'COM S curve-disconnect'!G195*'COM-Appliance class'!$D86+'COM S curve-disconnect'!G216*'COM-Appliance class'!$E86","v":-31795.113634979734},{"$f":"H153*'COM-Appliance class'!$B86+'COM S curve-disconnect'!H174*'COM-Appliance class'!$C86+'COM S curve-disconnect'!H195*'COM-Appliance class'!$D86+'COM S curve-disconnect'!H216*'COM-Appliance class'!$E86","v":-31795.113634979734},{"$f":"I153*'COM-Appliance class'!$B86+'COM S curve-disconnect'!I174*'COM-Appliance class'!$C86+'COM S curve-disconnect'!I195*'COM-Appliance class'!$D86+'COM S curve-disconnect'!I216*'COM-Appliance class'!$E86","v":-31795.113634979734},{"$f":"J153*'COM-Appliance class'!$B86+'COM S curve-disconnect'!J174*'COM-Appliance class'!$C86+'COM S curve-disconnect'!J195*'COM-Appliance class'!$D86+'COM S curve-disconnect'!J216*'COM-Appliance class'!$E86","v":-34884.720135503943},{"$f":"K153*'COM-Appliance class'!$B86+'COM S curve-disconnect'!K174*'COM-Appliance class'!$C86+'COM S curve-disconnect'!K195*'COM-Appliance class'!$D86+'COM S curve-disconnect'!K216*'COM-Appliance class'!$E86","v":-32616.454909145526},{"$f":"L153*'COM-Appliance class'!$B86+'COM S curve-disconnect'!L174*'COM-Appliance class'!$C86+'COM S curve-disconnect'!L195*'COM-Appliance class'!$D86+'COM S curve-disconnect'!L216*'COM-Appliance class'!$E86","v":-32169.583920251862},{"$f":"M153*'COM-Appliance class'!$B86+'COM S curve-disconnect'!M174*'COM-Appliance class'!$C86+'COM S curve-disconnect'!M195*'COM-Appliance class'!$D86+'COM S curve-disconnect'!M216*'COM-Appliance class'!$E86","v":-31724.947286302668},{"$f":"N153*'COM-Appliance class'!$B86+'COM S curve-disconnect'!N174*'COM-Appliance class'!$C86+'COM S curve-disconnect'!N195*'COM-Appliance class'!$D86+'COM S curve-disconnect'!N216*'COM-Appliance class'!$E86","v":-31282.533835523227},{"$f":"O153*'COM-Appliance class'!$B86+'COM S curve-disconnect'!O174*'COM-Appliance class'!$C86+'COM S curve-disconnect'!O195*'COM-Appliance class'!$D86+'COM S curve-disconnect'!O216*'COM-Appliance class'!$E86","v":-30842.33245199767},{"$f":"P153*'COM-Appliance class'!$B86+'COM S curve-disconnect'!P174*'COM-Appliance class'!$C86+'COM S curve-disconnect'!P195*'COM-Appliance class'!$D86+'COM S curve-disconnect'!P216*'COM-Appliance class'!$E86","v":-30404.332075389757},{"$f":"Q153*'COM-Appliance class'!$B86+'COM S curve-disconnect'!Q174*'COM-Appliance class'!$C86+'COM S curve-disconnect'!Q195*'COM-Appliance class'!$D86+'COM S curve-disconnect'!Q216*'COM-Appliance class'!$E86","v":-29968.521700664864},{"$f":"R153*'COM-Appliance class'!$B86+'COM S curve-disconnect'!R174*'COM-Appliance class'!$C86+'COM S curve-disconnect'!R195*'COM-Appliance class'!$D86+'COM S curve-disconnect'!R216*'COM-Appliance class'!$E86","v":-29534.890377813615},{"$f":"S153*'COM-Appliance class'!$B86+'COM S curve-disconnect'!S174*'COM-Appliance class'!$C86+'COM S curve-disconnect'!S195*'COM-Appliance class'!$D86+'COM S curve-disconnect'!S216*'COM-Appliance class'!$E86","v":-29103.427211576614},{"$f":"T153*'COM-Appliance class'!$B86+'COM S curve-disconnect'!T174*'COM-Appliance class'!$C86+'COM S curve-disconnect'!T195*'COM-Appliance class'!$D86+'COM S curve-disconnect'!T216*'COM-Appliance class'!$E86","v":-28674.121361170801},{"$f":"U153*'COM-Appliance class'!$B86+'COM S curve-disconnect'!U174*'COM-Appliance class'!$C86+'COM S curve-disconnect'!U195*'COM-Appliance class'!$D86+'COM S curve-disconnect'!U216*'COM-Appliance class'!$E86","v":-28246.962040017013},{"$f":"V153*'COM-Appliance class'!$B86+'COM S curve-disconnect'!V174*'COM-Appliance class'!$C86+'COM S curve-disconnect'!V195*'COM-Appliance class'!$D86+'COM S curve-disconnect'!V216*'COM-Appliance class'!$E86","v":-27821.938515468988},{"$f":"W153*'COM-Appliance class'!$B86+'COM S curve-disconnect'!W174*'COM-Appliance class'!$C86+'COM S curve-disconnect'!W195*'COM-Appliance class'!$D86+'COM S curve-disconnect'!W216*'COM-Appliance class'!$E86","v":-27399.040108543708},{"$f":"X153*'COM-Appliance class'!$B86+'COM S curve-disconnect'!X174*'COM-Appliance class'!$C86+'COM S curve-disconnect'!X195*'COM-Appliance class'!$D86+'COM S curve-disconnect'!X216*'COM-Appliance class'!$E86","v":-26978.256193653058},{"$f":"Y153*'COM-Appliance class'!$B86+'COM S curve-disconnect'!Y174*'COM-Appliance class'!$C86+'COM S curve-disconnect'!Y195*'COM-Appliance class'!$D86+'COM S curve-disconnect'!Y216*'COM-Appliance class'!$E86","v":-26559.576198336861},{"$f":"Z153*'COM-Appliance class'!$B86+'COM S curve-disconnect'!Z174*'COM-Appliance class'!$C86+'COM S curve-disconnect'!Z195*'COM-Appliance class'!$D86+'COM S curve-disconnect'!Z216*'COM-Appliance class'!$E86","v":-26142.989602997241},{"$f":"AA153*'COM-Appliance class'!$B86+'COM S curve-disconnect'!AA174*'COM-Appliance class'!$C86+'COM S curve-disconnect'!AA195*'COM-Appliance class'!$D86+'COM S curve-disconnect'!AA216*'COM-Appliance class'!$E86","v":-25728.485940634317},{"$f":"AB153*'COM-Appliance class'!$B86+'COM S curve-disconnect'!AB174*'COM-Appliance class'!$C86+'COM S curve-disconnect'!AB195*'COM-Appliance class'!$D86+'COM S curve-disconnect'!AB216*'COM-Appliance class'!$E86","v":-25316.054796583208},{"$f":"AC153*'COM-Appliance class'!$B86+'COM S curve-disconnect'!AC174*'COM-Appliance class'!$C86+'COM S curve-disconnect'!AC195*'COM-Appliance class'!$D86+'COM S curve-disconnect'!AC216*'COM-Appliance class'!$E86","v":-24905.685808252369},{"$f":"AD153*'COM-Appliance class'!$B86+'COM S curve-disconnect'!AD174*'COM-Appliance class'!$C86+'COM S curve-disconnect'!AD195*'COM-Appliance class'!$D86+'COM S curve-disconnect'!AD216*'COM-Appliance class'!$E86","v":-24497.36866486317},{"$f":"AE153*'COM-Appliance class'!$B86+'COM S curve-disconnect'!AE174*'COM-Appliance class'!$C86+'COM S curve-disconnect'!AE195*'COM-Appliance class'!$D86+'COM S curve-disconnect'!AE216*'COM-Appliance class'!$E86","v":-24091.093107190925},{"$f":"AF153*'COM-Appliance class'!$B86+'COM S curve-disconnect'!AF174*'COM-Appliance class'!$C86+'COM S curve-disconnect'!AF195*'COM-Appliance class'!$D86+'COM S curve-disconnect'!AF216*'COM-Appliance class'!$E86","v":-23686.848927307037},{"$f":"AG153*'COM-Appliance class'!$B86+'COM S curve-disconnect'!AG174*'COM-Appliance class'!$C86+'COM S curve-disconnect'!AG195*'COM-Appliance class'!$D86+'COM S curve-disconnect'!AG216*'COM-Appliance class'!$E86","v":-23686.848927307037},{"$f":"AH153*'COM-Appliance class'!$B86+'COM S curve-disconnect'!AH174*'COM-Appliance class'!$C86+'COM S curve-disconnect'!AH195*'COM-Appliance class'!$D86+'COM S curve-disconnect'!AH216*'COM-Appliance class'!$E86","v":-23686.848927307037},{"$f":"AI153*'COM-Appliance class'!$B86+'COM S curve-disconnect'!AI174*'COM-Appliance class'!$C86+'COM S curve-disconnect'!AI195*'COM-Appliance class'!$D86+'COM S curve-disconnect'!AI216*'COM-Appliance class'!$E86","v":-23686.848927307037},{"$f":"AJ153*'COM-Appliance class'!$B86+'COM S curve-disconnect'!AJ174*'COM-Appliance class'!$C86+'COM S curve-disconnect'!AJ195*'COM-Appliance class'!$D86+'COM S curve-disconnect'!AJ216*'COM-Appliance class'!$E86","v":-23686.848927307037},{"$f":"AK153*'COM-Appliance class'!$B86+'COM S curve-disconnect'!AK174*'COM-Appliance class'!$C86+'COM S curve-disconnect'!AK195*'COM-Appliance class'!$D86+'COM S curve-disconnect'!AK216*'COM-Appliance class'!$E86","v":-23686.848927307037},{"$f":"AL153*'COM-Appliance class'!$B86+'COM S curve-disconnect'!AL174*'COM-Appliance class'!$C86+'COM S curve-disconnect'!AL195*'COM-Appliance class'!$D86+'COM S curve-disconnect'!AL216*'COM-Appliance class'!$E86","v":-23686.848927307037},{"$f":"AM153*'COM-Appliance class'!$B86+'COM S curve-disconnect'!AM174*'COM-Appliance class'!$C86+'COM S curve-disconnect'!AM195*'COM-Appliance class'!$D86+'COM S curve-disconnect'!AM216*'COM-Appliance class'!$E86","v":-23686.848927307037},{"$f":"AN153*'COM-Appliance class'!$B86+'COM S curve-disconnect'!AN174*'COM-Appliance class'!$C86+'COM S curve-disconnect'!AN195*'COM-Appliance class'!$D86+'COM S curve-disconnect'!AN216*'COM-Appliance class'!$E86","v":-23686.848927307037},{"$f":"AO153*'COM-Appliance class'!$B86+'COM S curve-disconnect'!AO174*'COM-Appliance class'!$C86+'COM S curve-disconnect'!AO195*'COM-Appliance class'!$D86+'COM S curve-disconnect'!AO216*'COM-Appliance class'!$E86","v":-23686.848927307037},{"$f":"AP153*'COM-Appliance class'!$B86+'COM S curve-disconnect'!AP174*'COM-Appliance class'!$C86+'COM S curve-disconnect'!AP195*'COM-Appliance class'!$D86+'COM S curve-disconnect'!AP216*'COM-Appliance class'!$E86","v":-23686.848927307037},{"$f":"AQ153*'COM-Appliance class'!$B86+'COM S curve-disconnect'!AQ174*'COM-Appliance class'!$C86+'COM S curve-disconnect'!AQ195*'COM-Appliance class'!$D86+'COM S curve-disconnect'!AQ216*'COM-Appliance class'!$E86","v":-23686.848927307037},{"$f":"AR153*'COM-Appliance class'!$B86+'COM S curve-disconnect'!AR174*'COM-Appliance class'!$C86+'COM S curve-disconnect'!AR195*'COM-Appliance class'!$D86+'COM S curve-disconnect'!AR216*'COM-Appliance class'!$E86","v":-23686.848927307037},{"$f":"AS153*'COM-Appliance class'!$B86+'COM S curve-disconnect'!AS174*'COM-Appliance class'!$C86+'COM S curve-disconnect'!AS195*'COM-Appliance class'!$D86+'COM S curve-disconnect'!AS216*'COM-Appliance class'!$E86","v":-23686.848927307037},{"$f":"AT153*'COM-Appliance class'!$B86+'COM S curve-disconnect'!AT174*'COM-Appliance class'!$C86+'COM S curve-disconnect'!AT195*'COM-Appliance class'!$D86+'COM S curve-disconnect'!AT216*'COM-Appliance class'!$E86","v":-23686.848927307037},{"$f":"AU153*'COM-Appliance class'!$B86+'COM S curve-disconnect'!AU174*'COM-Appliance class'!$C86+'COM S curve-disconnect'!AU195*'COM-Appliance class'!$D86+'COM S curve-disconnect'!AU216*'COM-Appliance class'!$E86","v":-23686.848927307037},{"$f":"AV153*'COM-Appliance class'!$B86+'COM S curve-disconnect'!AV174*'COM-Appliance class'!$C86+'COM S curve-disconnect'!AV195*'COM-Appliance class'!$D86+'COM S curve-disconnect'!AV216*'COM-Appliance class'!$E86","v":-23686.848927307037},{"$f":"AW153*'COM-Appliance class'!$B86+'COM S curve-disconnect'!AW174*'COM-Appliance class'!$C86+'COM S curve-disconnect'!AW195*'COM-Appliance class'!$D86+'COM S curve-disconnect'!AW216*'COM-Appliance class'!$E86","v":-23686.848927307037},{"$f":"AX153*'COM-Appliance class'!$B86+'COM S curve-disconnect'!AX174*'COM-Appliance class'!$C86+'COM S curve-disconnect'!AX195*'COM-Appliance class'!$D86+'COM S curve-disconnect'!AX216*'COM-Appliance class'!$E86","v":-23686.848927307037},{"$f":"AY153*'COM-Appliance class'!$B86+'COM S curve-disconnect'!AY174*'COM-Appliance class'!$C86+'COM S curve-disconnect'!AY195*'COM-Appliance class'!$D86+'COM S curve-disconnect'!AY216*'COM-Appliance class'!$E86","v":-23686.848927307037},{"$f":"AZ153*'COM-Appliance class'!$B86+'COM S curve-disconnect'!AZ174*'COM-Appliance class'!$C86+'COM S curve-disconnect'!AZ195*'COM-Appliance class'!$D86+'COM S curve-disconnect'!AZ216*'COM-Appliance class'!$E86","v":-23686.848927307037},{"$f":"BA153*'COM-Appliance class'!$B86+'COM S curve-disconnect'!BA174*'COM-Appliance class'!$C86+'COM S curve-disconnect'!BA195*'COM-Appliance class'!$D86+'COM S curve-disconnect'!BA216*'COM-Appliance class'!$E86","v":-23686.848927307037},{"$f":"BB153*'COM-Appliance class'!$B86+'COM S curve-disconnect'!BB174*'COM-Appliance class'!$C86+'COM S curve-disconnect'!BB195*'COM-Appliance class'!$D86+'COM S curve-disconnect'!BB216*'COM-Appliance class'!$E86","v":-23686.848927307037},{"$f":"BC153*'COM-Appliance class'!$B86+'COM S curve-disconnect'!BC174*'COM-Appliance class'!$C86+'COM S curve-disconnect'!BC195*'COM-Appliance class'!$D86+'COM S curve-disconnect'!BC216*'COM-Appliance class'!$E86","v":-23686.848927307037},{"$f":"BD153*'COM-Appliance class'!$B86+'COM S curve-disconnect'!BD174*'COM-Appliance class'!$C86+'COM S curve-disconnect'!BD195*'COM-Appliance class'!$D86+'COM S curve-disconnect'!BD216*'COM-Appliance class'!$E86","v":-23686.848927307037},{"$f":"BE153*'COM-Appliance class'!$B86+'COM S curve-disconnect'!BE174*'COM-Appliance class'!$C86+'COM S curve-disconnect'!BE195*'COM-Appliance class'!$D86+'COM S curve-disconnect'!BE216*'COM-Appliance class'!$E86","v":-23686.848927307037},{"$f":"BF153*'COM-Appliance class'!$B86+'COM S curve-disconnect'!BF174*'COM-Appliance class'!$C86+'COM S curve-disconnect'!BF195*'COM-Appliance class'!$D86+'COM S curve-disconnect'!BF216*'COM-Appliance class'!$E86","v":-23686.848927307037},{"$f":"BG153*'COM-Appliance class'!$B86+'COM S curve-disconnect'!BG174*'COM-Appliance class'!$C86+'COM S curve-disconnect'!BG195*'COM-Appliance class'!$D86+'COM S curve-disconnect'!BG216*'COM-Appliance class'!$E86","v":-23686.848927307037},{"$f":"BH153*'COM-Appliance class'!$B86+'COM S curve-disconnect'!BH174*'COM-Appliance class'!$C86+'COM S curve-disconnect'!BH195*'COM-Appliance class'!$D86+'COM S curve-disconnect'!BH216*'COM-Appliance class'!$E86","v":-23686.848927307037},{"$f":"BI153*'COM-Appliance class'!$B86+'COM S curve-disconnect'!BI174*'COM-Appliance class'!$C86+'COM S curve-disconnect'!BI195*'COM-Appliance class'!$D86+'COM S curve-disconnect'!BI216*'COM-Appliance class'!$E86","v":-23686.848927307037},{"$f":"BJ153*'COM-Appliance class'!$B86+'COM S curve-disconnect'!BJ174*'COM-Appliance class'!$C86+'COM S curve-disconnect'!BJ195*'COM-Appliance class'!$D86+'COM S curve-disconnect'!BJ216*'COM-Appliance class'!$E86","v":-23686.848927307037},{"$f":"BK153*'COM-Appliance class'!$B86+'COM S curve-disconnect'!BK174*'COM-Appliance class'!$C86+'COM S curve-disconnect'!BK195*'COM-Appliance class'!$D86+'COM S curve-disconnect'!BK216*'COM-Appliance class'!$E86","v":-23686.848927307037},{"$f":"BL153*'COM-Appliance class'!$B86+'COM S curve-disconnect'!BL174*'COM-Appliance class'!$C86+'COM S curve-disconnect'!BL195*'COM-Appliance class'!$D86+'COM S curve-disconnect'!BL216*'COM-Appliance class'!$E86","v":-23686.848927307037},{"$f":"BM153*'COM-Appliance class'!$B86+'COM S curve-disconnect'!BM174*'COM-Appliance class'!$C86+'COM S curve-disconnect'!BM195*'COM-Appliance class'!$D86+'COM S curve-disconnect'!BM216*'COM-Appliance class'!$E86","v":-23686.848927307037},{"$f":"BN153*'COM-Appliance class'!$B86+'COM S curve-disconnect'!BN174*'COM-Appliance class'!$C86+'COM S curve-disconnect'!BN195*'COM-Appliance class'!$D86+'COM S curve-disconnect'!BN216*'COM-Appliance class'!$E86","v":-23686.848927307037},{"$f":"BO153*'COM-Appliance class'!$B86+'COM S curve-disconnect'!BO174*'COM-Appliance class'!$C86+'COM S curve-disconnect'!BO195*'COM-Appliance class'!$D86+'COM S curve-disconnect'!BO216*'COM-Appliance class'!$E86","v":-23686.848927307037},{"$f":"BP153*'COM-Appliance class'!$B86+'COM S curve-disconnect'!BP174*'COM-Appliance class'!$C86+'COM S curve-disconnect'!BP195*'COM-Appliance class'!$D86+'COM S curve-disconnect'!BP216*'COM-Appliance class'!$E86","v":-23686.848927307037},{"$f":"BQ153*'COM-Appliance class'!$B86+'COM S curve-disconnect'!BQ174*'COM-Appliance class'!$C86+'COM S curve-disconnect'!BQ195*'COM-Appliance class'!$D86+'COM S curve-disconnect'!BQ216*'COM-Appliance class'!$E86","v":-23686.848927307037},{"$f":"BR153*'COM-Appliance class'!$B86+'COM S curve-disconnect'!BR174*'COM-Appliance class'!$C86+'COM S curve-disconnect'!BR195*'COM-Appliance class'!$D86+'COM S curve-disconnect'!BR216*'COM-Appliance class'!$E86","v":-23686.848927307037},{"$f":"BS153*'COM-Appliance class'!$B86+'COM S curve-disconnect'!BS174*'COM-Appliance class'!$C86+'COM S curve-disconnect'!BS195*'COM-Appliance class'!$D86+'COM S curve-disconnect'!BS216*'COM-Appliance class'!$E86","v":-23686.848927307037},{"$f":"BT153*'COM-Appliance class'!$B86+'COM S curve-disconnect'!BT174*'COM-Appliance class'!$C86+'COM S curve-disconnect'!BT195*'COM-Appliance class'!$D86+'COM S curve-disconnect'!BT216*'COM-Appliance class'!$E86","v":-23686.848927307037},{"$f":"BU153*'COM-Appliance class'!$B86+'COM S curve-disconnect'!BU174*'COM-Appliance class'!$C86+'COM S curve-disconnect'!BU195*'COM-Appliance class'!$D86+'COM S curve-disconnect'!BU216*'COM-Appliance class'!$E86","v":-23686.848927307037},{"$f":"BV153*'COM-Appliance class'!$B86+'COM S curve-disconnect'!BV174*'COM-Appliance class'!$C86+'COM S curve-disconnect'!BV195*'COM-Appliance class'!$D86+'COM S curve-disconnect'!BV216*'COM-Appliance class'!$E86","v":-23686.848927307037},{"$f":"BW153*'COM-Appliance class'!$B86+'COM S curve-disconnect'!BW174*'COM-Appliance class'!$C86+'COM S curve-disconnect'!BW195*'COM-Appliance class'!$D86+'COM S curve-disconnect'!BW216*'COM-Appliance class'!$E86","v":-23686.848927307037},{"$f":"BX153*'COM-Appliance class'!$B86+'COM S curve-disconnect'!BX174*'COM-Appliance class'!$C86+'COM S curve-disconnect'!BX195*'COM-Appliance class'!$D86+'COM S curve-disconnect'!BX216*'COM-Appliance class'!$E86","v":-23686.848927307037},{"$f":"BY153*'COM-Appliance class'!$B86+'COM S curve-disconnect'!BY174*'COM-Appliance class'!$C86+'COM S curve-disconnect'!BY195*'COM-Appliance class'!$D86+'COM S curve-disconnect'!BY216*'COM-Appliance class'!$E86","v":-23686.848927307037},{"$f":"BZ153*'COM-Appliance class'!$B86+'COM S curve-disconnect'!BZ174*'COM-Appliance class'!$C86+'COM S curve-disconnect'!BZ195*'COM-Appliance class'!$D86+'COM S curve-disconnect'!BZ216*'COM-Appliance class'!$E86","v":-23686.848927307037},{"$f":"CA153*'COM-Appliance class'!$B86+'COM S curve-disconnect'!CA174*'COM-Appliance class'!$C86+'COM S curve-disconnect'!CA195*'COM-Appliance class'!$D86+'COM S curve-disconnect'!CA216*'COM-Appliance class'!$E86","v":-23686.848927307037},{"$f":"CB153*'COM-Appliance class'!$B86+'COM S curve-disconnect'!CB174*'COM-Appliance class'!$C86+'COM S curve-disconnect'!CB195*'COM-Appliance class'!$D86+'COM S curve-disconnect'!CB216*'COM-Appliance class'!$E86","v":-23686.848927307037},{"$f":"CC153*'COM-Appliance class'!$B86+'COM S curve-disconnect'!CC174*'COM-Appliance class'!$C86+'COM S curve-disconnect'!CC195*'COM-Appliance class'!$D86+'COM S curve-disconnect'!CC216*'COM-Appliance class'!$E86","v":-23686.848927307037},{"$f":"CD153*'COM-Appliance class'!$B86+'COM S curve-disconnect'!CD174*'COM-Appliance class'!$C86+'COM S curve-disconnect'!CD195*'COM-Appliance class'!$D86+'COM S curve-disconnect'!CD216*'COM-Appliance class'!$E86","v":-23686.848927307037}]
["South Gippsland (S)",null,{"$f":"C154*'COM-Appliance class'!$B87+'COM S curve-disconnect'!C175*'COM-Appliance class'!$C87+'COM S curve-disconnect'!C196*'COM-Appliance class'!$D87+'COM S curve-disconnect'!C217*'COM-Appliance class'!$E87","v":-44411.358281648609},{"$f":"D154*'COM-Appliance class'!$B87+'COM S curve-disconnect'!D175*'COM-Appliance class'!$C87+'COM S curve-disconnect'!D196*'COM-Appliance class'!$D87+'COM S curve-disconnect'!D217*'COM-Appliance class'!$E87","v":-44411.358281648609},{"$f":"E154*'COM-Appliance class'!$B87+'COM S curve-disconnect'!E175*'COM-Appliance class'!$C87+'COM S curve-disconnect'!E196*'COM-Appliance class'!$D87+'COM S curve-disconnect'!E217*'COM-Appliance class'!$E87","v":-28288.609059748087},{"$f":"F154*'COM-Appliance class'!$B87+'COM S curve-disconnect'!F175*'COM-Appliance class'!$C87+'COM S curve-disconnect'!F196*'COM-Appliance class'!$D87+'COM S curve-disconnect'!F217*'COM-Appliance class'!$E87","v":-28288.609059748087},{"$f":"G154*'COM-Appliance class'!$B87+'COM S curve-disconnect'!G175*'COM-Appliance class'!$C87+'COM S curve-disconnect'!G196*'COM-Appliance class'!$D87+'COM S curve-disconnect'!G217*'COM-Appliance class'!$E87","v":-39950.62367674111},{"$f":"H154*'COM-Appliance class'!$B87+'COM S curve-disconnect'!H175*'COM-Appliance class'!$C87+'COM S curve-disconnect'!H196*'COM-Appliance class'!$D87+'COM S curve-disconnect'!H217*'COM-Appliance class'!$E87","v":-39950.62367674111},{"$f":"I154*'COM-Appliance class'!$B87+'COM S curve-disconnect'!I175*'COM-Appliance class'!$C87+'COM S curve-disconnect'!I196*'COM-Appliance class'!$D87+'COM S curve-disconnect'!I217*'COM-Appliance class'!$E87","v":-39950.62367674111},{"$f":"J154*'COM-Appliance class'!$B87+'COM S curve-disconnect'!J175*'COM-Appliance class'!$C87+'COM S curve-disconnect'!J196*'COM-Appliance class'!$D87+'COM S curve-disconnect'!J217*'COM-Appliance class'!$E87","v":-43832.720404832718},{"$f":"K154*'COM-Appliance class'!$B87+'COM S curve-disconnect'!K175*'COM-Appliance class'!$C87+'COM S curve-disconnect'!K196*'COM-Appliance class'!$D87+'COM S curve-disconnect'!K217*'COM-Appliance class'!$E87","v":-40982.640625354019},{"$f":"L154*'COM-Appliance class'!$B87+'COM S curve-disconnect'!L175*'COM-Appliance class'!$C87+'COM S curve-disconnect'!L196*'COM-Appliance class'!$D87+'COM S curve-disconnect'!L217*'COM-Appliance class'!$E87","v":-40421.146336819605},{"$f":"M154*'COM-Appliance class'!$B87+'COM S curve-disconnect'!M175*'COM-Appliance class'!$C87+'COM S curve-disconnect'!M196*'COM-Appliance class'!$D87+'COM S curve-disconnect'!M217*'COM-Appliance class'!$E87","v":-39862.459519727861},{"$f":"N154*'COM-Appliance class'!$B87+'COM S curve-disconnect'!N175*'COM-Appliance class'!$C87+'COM S curve-disconnect'!N196*'COM-Appliance class'!$D87+'COM S curve-disconnect'!N217*'COM-Appliance class'!$E87","v":-39306.56613672158},{"$f":"O154*'COM-Appliance class'!$B87+'COM S curve-disconnect'!O175*'COM-Appliance class'!$C87+'COM S curve-disconnect'!O196*'COM-Appliance class'!$D87+'COM S curve-disconnect'!O217*'COM-Appliance class'!$E87","v":-38753.452220630323},{"$f":"P154*'COM-Appliance class'!$B87+'COM S curve-disconnect'!P175*'COM-Appliance class'!$C87+'COM S curve-disconnect'!P196*'COM-Appliance class'!$D87+'COM S curve-disconnect'!P217*'COM-Appliance class'!$E87","v":-38203.103874119537},{"$f":"Q154*'COM-Appliance class'!$B87+'COM S curve-disconnect'!Q175*'COM-Appliance class'!$C87+'COM S curve-disconnect'!Q196*'COM-Appliance class'!$D87+'COM S curve-disconnect'!Q217*'COM-Appliance class'!$E87","v":-37655.50726934128},{"$f":"R154*'COM-Appliance class'!$B87+'COM S curve-disconnect'!R175*'COM-Appliance class'!$C87+'COM S curve-disconnect'!R196*'COM-Appliance class'!$D87+'COM S curve-disconnect'!R217*'COM-Appliance class'!$E87","v":-37110.648647586931},{"$f":"S154*'COM-Appliance class'!$B87+'COM S curve-disconnect'!S175*'COM-Appliance class'!$C87+'COM S curve-disconnect'!S196*'COM-Appliance class'!$D87+'COM S curve-disconnect'!S217*'COM-Appliance class'!$E87","v":-36568.514318941365},{"$f":"T154*'COM-Appliance class'!$B87+'COM S curve-disconnect'!T175*'COM-Appliance class'!$C87+'COM S curve-disconnect'!T196*'COM-Appliance class'!$D87+'COM S curve-disconnect'!T217*'COM-Appliance class'!$E87","v":-36029.090661939015},{"$f":"U154*'COM-Appliance class'!$B87+'COM S curve-disconnect'!U175*'COM-Appliance class'!$C87+'COM S curve-disconnect'!U196*'COM-Appliance class'!$D87+'COM S curve-disconnect'!U217*'COM-Appliance class'!$E87","v":-35492.364123221669},{"$f":"V154*'COM-Appliance class'!$B87+'COM S curve-disconnect'!V175*'COM-Appliance class'!$C87+'COM S curve-disconnect'!V196*'COM-Appliance class'!$D87+'COM S curve-disconnect'!V217*'COM-Appliance class'!$E87","v":-34958.321217197918},{"$f":"W154*'COM-Appliance class'!$B87+'COM S curve-disconnect'!W175*'COM-Appliance class'!$C87+'COM S curve-disconnect'!W196*'COM-Appliance class'!$D87+'COM S curve-disconnect'!W217*'COM-Appliance class'!$E87","v":-34426.948525704276},{"$f":"X154*'COM-Appliance class'!$B87+'COM S curve-disconnect'!X175*'COM-Appliance class'!$C87+'COM S curve-disconnect'!X196*'COM-Appliance class'!$D87+'COM S curve-disconnect'!X217*'COM-Appliance class'!$E87","v":-33898.232697668107},{"$f":"Y154*'COM-Appliance class'!$B87+'COM S curve-disconnect'!Y175*'COM-Appliance class'!$C87+'COM S curve-disconnect'!Y196*'COM-Appliance class'!$D87+'COM S curve-disconnect'!Y217*'COM-Appliance class'!$E87","v":-33372.160448772134},{"$f":"Z154*'COM-Appliance class'!$B87+'COM S curve-disconnect'!Z175*'COM-Appliance class'!$C87+'COM S curve-disconnect'!Z196*'COM-Appliance class'!$D87+'COM S curve-disconnect'!Z217*'COM-Appliance class'!$E87","v":-32848.718561120622},{"$f":"AA154*'COM-Appliance class'!$B87+'COM S curve-disconnect'!AA175*'COM-Appliance class'!$C87+'COM S curve-disconnect'!AA196*'COM-Appliance class'!$D87+'COM S curve-disconnect'!AA217*'COM-Appliance class'!$E87","v":-32327.89388290737},{"$f":"AB154*'COM-Appliance class'!$B87+'COM S curve-disconnect'!AB175*'COM-Appliance class'!$C87+'COM S curve-disconnect'!AB196*'COM-Appliance class'!$D87+'COM S curve-disconnect'!AB217*'COM-Appliance class'!$E87","v":-31809.673328085188},{"$f":"AC154*'COM-Appliance class'!$B87+'COM S curve-disconnect'!AC175*'COM-Appliance class'!$C87+'COM S curve-disconnect'!AC196*'COM-Appliance class'!$D87+'COM S curve-disconnect'!AC217*'COM-Appliance class'!$E87","v":-31294.043876037122},{"$f":"AD154*'COM-Appliance class'!$B87+'COM S curve-disconnect'!AD175*'COM-Appliance class'!$C87+'COM S curve-disconnect'!AD196*'COM-Appliance class'!$D87+'COM S curve-disconnect'!AD217*'COM-Appliance class'!$E87","v":-30780.992571249299},{"$f":"AE154*'COM-Appliance class'!$B87+'COM S curve-disconnect'!AE175*'COM-Appliance class'!$C87+'COM S curve-disconnect'!AE196*'COM-Appliance class'!$D87+'COM S curve-disconnect'!AE217*'COM-Appliance class'!$E87","v":-30270.506522985404},{"$f":"AF154*'COM-Appliance class'!$B87+'COM S curve-disconnect'!AF175*'COM-Appliance class'!$C87+'COM S curve-disconnect'!AF196*'COM-Appliance class'!$D87+'COM S curve-disconnect'!AF217*'COM-Appliance class'!$E87","v":-29762.572904962832},{"$f":"AG154*'COM-Appliance class'!$B87+'COM S curve-disconnect'!AG175*'COM-Appliance class'!$C87+'COM S curve-disconnect'!AG196*'COM-Appliance class'!$D87+'COM S curve-disconnect'!AG217*'COM-Appliance class'!$E87","v":-29762.572904962832},{"$f":"AH154*'COM-Appliance class'!$B87+'COM S curve-disconnect'!AH175*'COM-Appliance class'!$C87+'COM S curve-disconnect'!AH196*'COM-Appliance class'!$D87+'COM S curve-disconnect'!AH217*'COM-Appliance class'!$E87","v":-29762.572904962832},{"$f":"AI154*'COM-Appliance class'!$B87+'COM S curve-disconnect'!AI175*'COM-Appliance class'!$C87+'COM S curve-disconnect'!AI196*'COM-Appliance class'!$D87+'COM S curve-disconnect'!AI217*'COM-Appliance class'!$E87","v":-29762.572904962832},{"$f":"AJ154*'COM-Appliance class'!$B87+'COM S curve-disconnect'!AJ175*'COM-Appliance class'!$C87+'COM S curve-disconnect'!AJ196*'COM-Appliance class'!$D87+'COM S curve-disconnect'!AJ217*'COM-Appliance class'!$E87","v":-29762.572904962832},{"$f":"AK154*'COM-Appliance class'!$B87+'COM S curve-disconnect'!AK175*'COM-Appliance class'!$C87+'COM S curve-disconnect'!AK196*'COM-Appliance class'!$D87+'COM S curve-disconnect'!AK217*'COM-Appliance class'!$E87","v":-29762.572904962832},{"$f":"AL154*'COM-Appliance class'!$B87+'COM S curve-disconnect'!AL175*'COM-Appliance class'!$C87+'COM S curve-disconnect'!AL196*'COM-Appliance class'!$D87+'COM S curve-disconnect'!AL217*'COM-Appliance class'!$E87","v":-29762.572904962832},{"$f":"AM154*'COM-Appliance class'!$B87+'COM S curve-disconnect'!AM175*'COM-Appliance class'!$C87+'COM S curve-disconnect'!AM196*'COM-Appliance class'!$D87+'COM S curve-disconnect'!AM217*'COM-Appliance class'!$E87","v":-29762.572904962832},{"$f":"AN154*'COM-Appliance class'!$B87+'COM S curve-disconnect'!AN175*'COM-Appliance class'!$C87+'COM S curve-disconnect'!AN196*'COM-Appliance class'!$D87+'COM S curve-disconnect'!AN217*'COM-Appliance class'!$E87","v":-29762.572904962832},{"$f":"AO154*'COM-Appliance class'!$B87+'COM S curve-disconnect'!AO175*'COM-Appliance class'!$C87+'COM S curve-disconnect'!AO196*'COM-Appliance class'!$D87+'COM S curve-disconnect'!AO217*'COM-Appliance class'!$E87","v":-29762.572904962832},{"$f":"AP154*'COM-Appliance class'!$B87+'COM S curve-disconnect'!AP175*'COM-Appliance class'!$C87+'COM S curve-disconnect'!AP196*'COM-Appliance class'!$D87+'COM S curve-disconnect'!AP217*'COM-Appliance class'!$E87","v":-29762.572904962832},{"$f":"AQ154*'COM-Appliance class'!$B87+'COM S curve-disconnect'!AQ175*'COM-Appliance class'!$C87+'COM S curve-disconnect'!AQ196*'COM-Appliance class'!$D87+'COM S curve-disconnect'!AQ217*'COM-Appliance class'!$E87","v":-29762.572904962832},{"$f":"AR154*'COM-Appliance class'!$B87+'COM S curve-disconnect'!AR175*'COM-Appliance class'!$C87+'COM S curve-disconnect'!AR196*'COM-Appliance class'!$D87+'COM S curve-disconnect'!AR217*'COM-Appliance class'!$E87","v":-29762.572904962832},{"$f":"AS154*'COM-Appliance class'!$B87+'COM S curve-disconnect'!AS175*'COM-Appliance class'!$C87+'COM S curve-disconnect'!AS196*'COM-Appliance class'!$D87+'COM S curve-disconnect'!AS217*'COM-Appliance class'!$E87","v":-29762.572904962832},{"$f":"AT154*'COM-Appliance class'!$B87+'COM S curve-disconnect'!AT175*'COM-Appliance class'!$C87+'COM S curve-disconnect'!AT196*'COM-Appliance class'!$D87+'COM S curve-disconnect'!AT217*'COM-Appliance class'!$E87","v":-29762.572904962832},{"$f":"AU154*'COM-Appliance class'!$B87+'COM S curve-disconnect'!AU175*'COM-Appliance class'!$C87+'COM S curve-disconnect'!AU196*'COM-Appliance class'!$D87+'COM S curve-disconnect'!AU217*'COM-Appliance class'!$E87","v":-29762.572904962832},{"$f":"AV154*'COM-Appliance class'!$B87+'COM S curve-disconnect'!AV175*'COM-Appliance class'!$C87+'COM S curve-disconnect'!AV196*'COM-Appliance class'!$D87+'COM S curve-disconnect'!AV217*'COM-Appliance class'!$E87","v":-29762.572904962832},{"$f":"AW154*'COM-Appliance class'!$B87+'COM S curve-disconnect'!AW175*'COM-Appliance class'!$C87+'COM S curve-disconnect'!AW196*'COM-Appliance class'!$D87+'COM S curve-disconnect'!AW217*'COM-Appliance class'!$E87","v":-29762.572904962832},{"$f":"AX154*'COM-Appliance class'!$B87+'COM S curve-disconnect'!AX175*'COM-Appliance class'!$C87+'COM S curve-disconnect'!AX196*'COM-Appliance class'!$D87+'COM S curve-disconnect'!AX217*'COM-Appliance class'!$E87","v":-29762.572904962832},{"$f":"AY154*'COM-Appliance class'!$B87+'COM S curve-disconnect'!AY175*'COM-Appliance class'!$C87+'COM S curve-disconnect'!AY196*'COM-Appliance class'!$D87+'COM S curve-disconnect'!AY217*'COM-Appliance class'!$E87","v":-29762.572904962832},{"$f":"AZ154*'COM-Appliance class'!$B87+'COM S curve-disconnect'!AZ175*'COM-Appliance class'!$C87+'COM S curve-disconnect'!AZ196*'COM-Appliance class'!$D87+'COM S curve-disconnect'!AZ217*'COM-Appliance class'!$E87","v":-29762.572904962832},{"$f":"BA154*'COM-Appliance class'!$B87+'COM S curve-disconnect'!BA175*'COM-Appliance class'!$C87+'COM S curve-disconnect'!BA196*'COM-Appliance class'!$D87+'COM S curve-disconnect'!BA217*'COM-Appliance class'!$E87","v":-29762.572904962832},{"$f":"BB154*'COM-Appliance class'!$B87+'COM S curve-disconnect'!BB175*'COM-Appliance class'!$C87+'COM S curve-disconnect'!BB196*'COM-Appliance class'!$D87+'COM S curve-disconnect'!BB217*'COM-Appliance class'!$E87","v":-29762.572904962832},{"$f":"BC154*'COM-Appliance class'!$B87+'COM S curve-disconnect'!BC175*'COM-Appliance class'!$C87+'COM S curve-disconnect'!BC196*'COM-Appliance class'!$D87+'COM S curve-disconnect'!BC217*'COM-Appliance class'!$E87","v":-29762.572904962832},{"$f":"BD154*'COM-Appliance class'!$B87+'COM S curve-disconnect'!BD175*'COM-Appliance class'!$C87+'COM S curve-disconnect'!BD196*'COM-Appliance class'!$D87+'COM S curve-disconnect'!BD217*'COM-Appliance class'!$E87","v":-29762.572904962832},{"$f":"BE154*'COM-Appliance class'!$B87+'COM S curve-disconnect'!BE175*'COM-Appliance class'!$C87+'COM S curve-disconnect'!BE196*'COM-Appliance class'!$D87+'COM S curve-disconnect'!BE217*'COM-Appliance class'!$E87","v":-29762.572904962832},{"$f":"BF154*'COM-Appliance class'!$B87+'COM S curve-disconnect'!BF175*'COM-Appliance class'!$C87+'COM S curve-disconnect'!BF196*'COM-Appliance class'!$D87+'COM S curve-disconnect'!BF217*'COM-Appliance class'!$E87","v":-29762.572904962832},{"$f":"BG154*'COM-Appliance class'!$B87+'COM S curve-disconnect'!BG175*'COM-Appliance class'!$C87+'COM S curve-disconnect'!BG196*'COM-Appliance class'!$D87+'COM S curve-disconnect'!BG217*'COM-Appliance class'!$E87","v":-29762.572904962832},{"$f":"BH154*'COM-Appliance class'!$B87+'COM S curve-disconnect'!BH175*'COM-Appliance class'!$C87+'COM S curve-disconnect'!BH196*'COM-Appliance class'!$D87+'COM S curve-disconnect'!BH217*'COM-Appliance class'!$E87","v":-29762.572904962832},{"$f":"BI154*'COM-Appliance class'!$B87+'COM S curve-disconnect'!BI175*'COM-Appliance class'!$C87+'COM S curve-disconnect'!BI196*'COM-Appliance class'!$D87+'COM S curve-disconnect'!BI217*'COM-Appliance class'!$E87","v":-29762.572904962832},{"$f":"BJ154*'COM-Appliance class'!$B87+'COM S curve-disconnect'!BJ175*'COM-Appliance class'!$C87+'COM S curve-disconnect'!BJ196*'COM-Appliance class'!$D87+'COM S curve-disconnect'!BJ217*'COM-Appliance class'!$E87","v":-29762.572904962832},{"$f":"BK154*'COM-Appliance class'!$B87+'COM S curve-disconnect'!BK175*'COM-Appliance class'!$C87+'COM S curve-disconnect'!BK196*'COM-Appliance class'!$D87+'COM S curve-disconnect'!BK217*'COM-Appliance class'!$E87","v":-29762.572904962832},{"$f":"BL154*'COM-Appliance class'!$B87+'COM S curve-disconnect'!BL175*'COM-Appliance class'!$C87+'COM S curve-disconnect'!BL196*'COM-Appliance class'!$D87+'COM S curve-disconnect'!BL217*'COM-Appliance class'!$E87","v":-29762.572904962832},{"$f":"BM154*'COM-Appliance class'!$B87+'COM S curve-disconnect'!BM175*'COM-Appliance class'!$C87+'COM S curve-disconnect'!BM196*'COM-Appliance class'!$D87+'COM S curve-disconnect'!BM217*'COM-Appliance class'!$E87","v":-29762.572904962832},{"$f":"BN154*'COM-Appliance class'!$B87+'COM S curve-disconnect'!BN175*'COM-Appliance class'!$C87+'COM S curve-disconnect'!BN196*'COM-Appliance class'!$D87+'COM S curve-disconnect'!BN217*'COM-Appliance class'!$E87","v":-29762.572904962832},{"$f":"BO154*'COM-Appliance class'!$B87+'COM S curve-disconnect'!BO175*'COM-Appliance class'!$C87+'COM S curve-disconnect'!BO196*'COM-Appliance class'!$D87+'COM S curve-disconnect'!BO217*'COM-Appliance class'!$E87","v":-29762.572904962832},{"$f":"BP154*'COM-Appliance class'!$B87+'COM S curve-disconnect'!BP175*'COM-Appliance class'!$C87+'COM S curve-disconnect'!BP196*'COM-Appliance class'!$D87+'COM S curve-disconnect'!BP217*'COM-Appliance class'!$E87","v":-29762.572904962832},{"$f":"BQ154*'COM-Appliance class'!$B87+'COM S curve-disconnect'!BQ175*'COM-Appliance class'!$C87+'COM S curve-disconnect'!BQ196*'COM-Appliance class'!$D87+'COM S curve-disconnect'!BQ217*'COM-Appliance class'!$E87","v":-29762.572904962832},{"$f":"BR154*'COM-Appliance class'!$B87+'COM S curve-disconnect'!BR175*'COM-Appliance class'!$C87+'COM S curve-disconnect'!BR196*'COM-Appliance class'!$D87+'COM S curve-disconnect'!BR217*'COM-Appliance class'!$E87","v":-29762.572904962832},{"$f":"BS154*'COM-Appliance class'!$B87+'COM S curve-disconnect'!BS175*'COM-Appliance class'!$C87+'COM S curve-disconnect'!BS196*'COM-Appliance class'!$D87+'COM S curve-disconnect'!BS217*'COM-Appliance class'!$E87","v":-29762.572904962832},{"$f":"BT154*'COM-Appliance class'!$B87+'COM S curve-disconnect'!BT175*'COM-Appliance class'!$C87+'COM S curve-disconnect'!BT196*'COM-Appliance class'!$D87+'COM S curve-disconnect'!BT217*'COM-Appliance class'!$E87","v":-29762.572904962832},{"$f":"BU154*'COM-Appliance class'!$B87+'COM S curve-disconnect'!BU175*'COM-Appliance class'!$C87+'COM S curve-disconnect'!BU196*'COM-Appliance class'!$D87+'COM S curve-disconnect'!BU217*'COM-Appliance class'!$E87","v":-29762.572904962832},{"$f":"BV154*'COM-Appliance class'!$B87+'COM S curve-disconnect'!BV175*'COM-Appliance class'!$C87+'COM S curve-disconnect'!BV196*'COM-Appliance class'!$D87+'COM S curve-disconnect'!BV217*'COM-Appliance class'!$E87","v":-29762.572904962832},{"$f":"BW154*'COM-Appliance class'!$B87+'COM S curve-disconnect'!BW175*'COM-Appliance class'!$C87+'COM S curve-disconnect'!BW196*'COM-Appliance class'!$D87+'COM S curve-disconnect'!BW217*'COM-Appliance class'!$E87","v":-29762.572904962832},{"$f":"BX154*'COM-Appliance class'!$B87+'COM S curve-disconnect'!BX175*'COM-Appliance class'!$C87+'COM S curve-disconnect'!BX196*'COM-Appliance class'!$D87+'COM S curve-disconnect'!BX217*'COM-Appliance class'!$E87","v":-29762.572904962832},{"$f":"BY154*'COM-Appliance class'!$B87+'COM S curve-disconnect'!BY175*'COM-Appliance class'!$C87+'COM S curve-disconnect'!BY196*'COM-Appliance class'!$D87+'COM S curve-disconnect'!BY217*'COM-Appliance class'!$E87","v":-29762.572904962832},{"$f":"BZ154*'COM-Appliance class'!$B87+'COM S curve-disconnect'!BZ175*'COM-Appliance class'!$C87+'COM S curve-disconnect'!BZ196*'COM-Appliance class'!$D87+'COM S curve-disconnect'!BZ217*'COM-Appliance class'!$E87","v":-29762.572904962832},{"$f":"CA154*'COM-Appliance class'!$B87+'COM S curve-disconnect'!CA175*'COM-Appliance class'!$C87+'COM S curve-disconnect'!CA196*'COM-Appliance class'!$D87+'COM S curve-disconnect'!CA217*'COM-Appliance class'!$E87","v":-29762.572904962832},{"$f":"CB154*'COM-Appliance class'!$B87+'COM S curve-disconnect'!CB175*'COM-Appliance class'!$C87+'COM S curve-disconnect'!CB196*'COM-Appliance class'!$D87+'COM S curve-disconnect'!CB217*'COM-Appliance class'!$E87","v":-29762.572904962832},{"$f":"CC154*'COM-Appliance class'!$B87+'COM S curve-disconnect'!CC175*'COM-Appliance class'!$C87+'COM S curve-disconnect'!CC196*'COM-Appliance class'!$D87+'COM S curve-disconnect'!CC217*'COM-Appliance class'!$E87","v":-29762.572904962832},{"$f":"CD154*'COM-Appliance class'!$B87+'COM S curve-disconnect'!CD175*'COM-Appliance class'!$C87+'COM S curve-disconnect'!CD196*'COM-Appliance class'!$D87+'COM S curve-disconnect'!CD217*'COM-Appliance class'!$E87","v":-29762.572904962832}]
["Stonnington (C)",null,{"$f":"C155*'COM-Appliance class'!$B88+'COM S curve-disconnect'!C176*'COM-Appliance class'!$C88+'COM S curve-disconnect'!C197*'COM-Appliance class'!$D88+'COM S curve-disconnect'!C218*'COM-Appliance class'!$E88","v":-27305.971399110469},{"$f":"D155*'COM-Appliance class'!$B88+'COM S curve-disconnect'!D176*'COM-Appliance class'!$C88+'COM S curve-disconnect'!D197*'COM-Appliance class'!$D88+'COM S curve-disconnect'!D218*'COM-Appliance class'!$E88","v":-27305.971399110469},{"$f":"E155*'COM-Appliance class'!$B88+'COM S curve-disconnect'!E176*'COM-Appliance class'!$C88+'COM S curve-disconnect'!E197*'COM-Appliance class'!$D88+'COM S curve-disconnect'!E218*'COM-Appliance class'!$E88","v":-17393.026914587412},{"$f":"F155*'COM-Appliance class'!$B88+'COM S curve-disconnect'!F176*'COM-Appliance class'!$C88+'COM S curve-disconnect'!F197*'COM-Appliance class'!$D88+'COM S curve-disconnect'!F218*'COM-Appliance class'!$E88","v":-17393.026914587412},{"$f":"G155*'COM-Appliance class'!$B88+'COM S curve-disconnect'!G176*'COM-Appliance class'!$C88+'COM S curve-disconnect'!G197*'COM-Appliance class'!$D88+'COM S curve-disconnect'!G218*'COM-Appliance class'!$E88","v":-24563.324106763233},{"$f":"H155*'COM-Appliance class'!$B88+'COM S curve-disconnect'!H176*'COM-Appliance class'!$C88+'COM S curve-disconnect'!H197*'COM-Appliance class'!$D88+'COM S curve-disconnect'!H218*'COM-Appliance class'!$E88","v":-24563.324106763233},{"$f":"I155*'COM-Appliance class'!$B88+'COM S curve-disconnect'!I176*'COM-Appliance class'!$C88+'COM S curve-disconnect'!I197*'COM-Appliance class'!$D88+'COM S curve-disconnect'!I218*'COM-Appliance class'!$E88","v":-24563.324106763233},{"$f":"J155*'COM-Appliance class'!$B88+'COM S curve-disconnect'!J176*'COM-Appliance class'!$C88+'COM S curve-disconnect'!J197*'COM-Appliance class'!$D88+'COM S curve-disconnect'!J218*'COM-Appliance class'!$E88","v":-26950.200489908046},{"$f":"K155*'COM-Appliance class'!$B88+'COM S curve-disconnect'!K176*'COM-Appliance class'!$C88+'COM S curve-disconnect'!K197*'COM-Appliance class'!$D88+'COM S curve-disconnect'!K218*'COM-Appliance class'!$E88","v":-25197.851542368953},{"$f":"L155*'COM-Appliance class'!$B88+'COM S curve-disconnect'!L176*'COM-Appliance class'!$C88+'COM S curve-disconnect'!L197*'COM-Appliance class'!$D88+'COM S curve-disconnect'!L218*'COM-Appliance class'!$E88","v":-24852.621232450238},{"$f":"M155*'COM-Appliance class'!$B88+'COM S curve-disconnect'!M176*'COM-Appliance class'!$C88+'COM S curve-disconnect'!M197*'COM-Appliance class'!$D88+'COM S curve-disconnect'!M218*'COM-Appliance class'!$E88","v":-24509.117074081121},{"$f":"N155*'COM-Appliance class'!$B88+'COM S curve-disconnect'!N176*'COM-Appliance class'!$C88+'COM S curve-disconnect'!N197*'COM-Appliance class'!$D88+'COM S curve-disconnect'!N218*'COM-Appliance class'!$E88","v":-24167.330436503846},{"$f":"O155*'COM-Appliance class'!$B88+'COM S curve-disconnect'!O176*'COM-Appliance class'!$C88+'COM S curve-disconnect'!O197*'COM-Appliance class'!$D88+'COM S curve-disconnect'!O218*'COM-Appliance class'!$E88","v":-23827.252732114452},{"$f":"P155*'COM-Appliance class'!$B88+'COM S curve-disconnect'!P176*'COM-Appliance class'!$C88+'COM S curve-disconnect'!P197*'COM-Appliance class'!$D88+'COM S curve-disconnect'!P218*'COM-Appliance class'!$E88","v":-23488.875416247014},{"$f":"Q155*'COM-Appliance class'!$B88+'COM S curve-disconnect'!Q176*'COM-Appliance class'!$C88+'COM S curve-disconnect'!Q197*'COM-Appliance class'!$D88+'COM S curve-disconnect'!Q218*'COM-Appliance class'!$E88","v":-23152.189986958907},{"$f":"R155*'COM-Appliance class'!$B88+'COM S curve-disconnect'!R176*'COM-Appliance class'!$C88+'COM S curve-disconnect'!R197*'COM-Appliance class'!$D88+'COM S curve-disconnect'!R218*'COM-Appliance class'!$E88","v":-22817.187984817247},{"$f":"S155*'COM-Appliance class'!$B88+'COM S curve-disconnect'!S176*'COM-Appliance class'!$C88+'COM S curve-disconnect'!S197*'COM-Appliance class'!$D88+'COM S curve-disconnect'!S218*'COM-Appliance class'!$E88","v":-22483.860992686292},{"$f":"T155*'COM-Appliance class'!$B88+'COM S curve-disconnect'!T176*'COM-Appliance class'!$C88+'COM S curve-disconnect'!T197*'COM-Appliance class'!$D88+'COM S curve-disconnect'!T218*'COM-Appliance class'!$E88","v":-22152.20063551599},{"$f":"U155*'COM-Appliance class'!$B88+'COM S curve-disconnect'!U176*'COM-Appliance class'!$C88+'COM S curve-disconnect'!U197*'COM-Appliance class'!$D88+'COM S curve-disconnect'!U218*'COM-Appliance class'!$E88","v":-21822.198580131539},{"$f":"V155*'COM-Appliance class'!$B88+'COM S curve-disconnect'!V176*'COM-Appliance class'!$C88+'COM S curve-disconnect'!V197*'COM-Appliance class'!$D88+'COM S curve-disconnect'!V218*'COM-Appliance class'!$E88","v":-21493.846535024011},{"$f":"W155*'COM-Appliance class'!$B88+'COM S curve-disconnect'!W176*'COM-Appliance class'!$C88+'COM S curve-disconnect'!W197*'COM-Appliance class'!$D88+'COM S curve-disconnect'!W218*'COM-Appliance class'!$E88","v":-21167.136250142023},{"$f":"X155*'COM-Appliance class'!$B88+'COM S curve-disconnect'!X176*'COM-Appliance class'!$C88+'COM S curve-disconnect'!X197*'COM-Appliance class'!$D88+'COM S curve-disconnect'!X218*'COM-Appliance class'!$E88","v":-20842.059516684443},{"$f":"Y155*'COM-Appliance class'!$B88+'COM S curve-disconnect'!Y176*'COM-Appliance class'!$C88+'COM S curve-disconnect'!Y197*'COM-Appliance class'!$D88+'COM S curve-disconnect'!Y218*'COM-Appliance class'!$E88","v":-20518.608166894152},{"$f":"Z155*'COM-Appliance class'!$B88+'COM S curve-disconnect'!Z176*'COM-Appliance class'!$C88+'COM S curve-disconnect'!Z197*'COM-Appliance class'!$D88+'COM S curve-disconnect'!Z218*'COM-Appliance class'!$E88","v":-20196.774073852808},{"$f":"AA155*'COM-Appliance class'!$B88+'COM S curve-disconnect'!AA176*'COM-Appliance class'!$C88+'COM S curve-disconnect'!AA197*'COM-Appliance class'!$D88+'COM S curve-disconnect'!AA218*'COM-Appliance class'!$E88","v":-19876.549151276675},{"$f":"AB155*'COM-Appliance class'!$B88+'COM S curve-disconnect'!AB176*'COM-Appliance class'!$C88+'COM S curve-disconnect'!AB197*'COM-Appliance class'!$D88+'COM S curve-disconnect'!AB218*'COM-Appliance class'!$E88","v":-19557.925353313418},{"$f":"AC155*'COM-Appliance class'!$B88+'COM S curve-disconnect'!AC176*'COM-Appliance class'!$C88+'COM S curve-disconnect'!AC197*'COM-Appliance class'!$D88+'COM S curve-disconnect'!AC218*'COM-Appliance class'!$E88","v":-19240.894674339987},{"$f":"AD155*'COM-Appliance class'!$B88+'COM S curve-disconnect'!AD176*'COM-Appliance class'!$C88+'COM S curve-disconnect'!AD197*'COM-Appliance class'!$D88+'COM S curve-disconnect'!AD218*'COM-Appliance class'!$E88","v":-18925.449148761418},{"$f":"AE155*'COM-Appliance class'!$B88+'COM S curve-disconnect'!AE176*'COM-Appliance class'!$C88+'COM S curve-disconnect'!AE197*'COM-Appliance class'!$D88+'COM S curve-disconnect'!AE218*'COM-Appliance class'!$E88","v":-18611.580850810744},{"$f":"AF155*'COM-Appliance class'!$B88+'COM S curve-disconnect'!AF176*'COM-Appliance class'!$C88+'COM S curve-disconnect'!AF197*'COM-Appliance class'!$D88+'COM S curve-disconnect'!AF218*'COM-Appliance class'!$E88","v":-18299.281894349821},{"$f":"AG155*'COM-Appliance class'!$B88+'COM S curve-disconnect'!AG176*'COM-Appliance class'!$C88+'COM S curve-disconnect'!AG197*'COM-Appliance class'!$D88+'COM S curve-disconnect'!AG218*'COM-Appliance class'!$E88","v":-18299.281894349821},{"$f":"AH155*'COM-Appliance class'!$B88+'COM S curve-disconnect'!AH176*'COM-Appliance class'!$C88+'COM S curve-disconnect'!AH197*'COM-Appliance class'!$D88+'COM S curve-disconnect'!AH218*'COM-Appliance class'!$E88","v":-18299.281894349821},{"$f":"AI155*'COM-Appliance class'!$B88+'COM S curve-disconnect'!AI176*'COM-Appliance class'!$C88+'COM S curve-disconnect'!AI197*'COM-Appliance class'!$D88+'COM S curve-disconnect'!AI218*'COM-Appliance class'!$E88","v":-18299.281894349821},{"$f":"AJ155*'COM-Appliance class'!$B88+'COM S curve-disconnect'!AJ176*'COM-Appliance class'!$C88+'COM S curve-disconnect'!AJ197*'COM-Appliance class'!$D88+'COM S curve-disconnect'!AJ218*'COM-Appliance class'!$E88","v":-18299.281894349821},{"$f":"AK155*'COM-Appliance class'!$B88+'COM S curve-disconnect'!AK176*'COM-Appliance class'!$C88+'COM S curve-disconnect'!AK197*'COM-Appliance class'!$D88+'COM S curve-disconnect'!AK218*'COM-Appliance class'!$E88","v":-18299.281894349821},{"$f":"AL155*'COM-Appliance class'!$B88+'COM S curve-disconnect'!AL176*'COM-Appliance class'!$C88+'COM S curve-disconnect'!AL197*'COM-Appliance class'!$D88+'COM S curve-disconnect'!AL218*'COM-Appliance class'!$E88","v":-18299.281894349821},{"$f":"AM155*'COM-Appliance class'!$B88+'COM S curve-disconnect'!AM176*'COM-Appliance class'!$C88+'COM S curve-disconnect'!AM197*'COM-Appliance class'!$D88+'COM S curve-disconnect'!AM218*'COM-Appliance class'!$E88","v":-18299.281894349821},{"$f":"AN155*'COM-Appliance class'!$B88+'COM S curve-disconnect'!AN176*'COM-Appliance class'!$C88+'COM S curve-disconnect'!AN197*'COM-Appliance class'!$D88+'COM S curve-disconnect'!AN218*'COM-Appliance class'!$E88","v":-18299.281894349821},{"$f":"AO155*'COM-Appliance class'!$B88+'COM S curve-disconnect'!AO176*'COM-Appliance class'!$C88+'COM S curve-disconnect'!AO197*'COM-Appliance class'!$D88+'COM S curve-disconnect'!AO218*'COM-Appliance class'!$E88","v":-18299.281894349821},{"$f":"AP155*'COM-Appliance class'!$B88+'COM S curve-disconnect'!AP176*'COM-Appliance class'!$C88+'COM S curve-disconnect'!AP197*'COM-Appliance class'!$D88+'COM S curve-disconnect'!AP218*'COM-Appliance class'!$E88","v":-18299.281894349821},{"$f":"AQ155*'COM-Appliance class'!$B88+'COM S curve-disconnect'!AQ176*'COM-Appliance class'!$C88+'COM S curve-disconnect'!AQ197*'COM-Appliance class'!$D88+'COM S curve-disconnect'!AQ218*'COM-Appliance class'!$E88","v":-18299.281894349821},{"$f":"AR155*'COM-Appliance class'!$B88+'COM S curve-disconnect'!AR176*'COM-Appliance class'!$C88+'COM S curve-disconnect'!AR197*'COM-Appliance class'!$D88+'COM S curve-disconnect'!AR218*'COM-Appliance class'!$E88","v":-18299.281894349821},{"$f":"AS155*'COM-Appliance class'!$B88+'COM S curve-disconnect'!AS176*'COM-Appliance class'!$C88+'COM S curve-disconnect'!AS197*'COM-Appliance class'!$D88+'COM S curve-disconnect'!AS218*'COM-Appliance class'!$E88","v":-18299.281894349821},{"$f":"AT155*'COM-Appliance class'!$B88+'COM S curve-disconnect'!AT176*'COM-Appliance class'!$C88+'COM S curve-disconnect'!AT197*'COM-Appliance class'!$D88+'COM S curve-disconnect'!AT218*'COM-Appliance class'!$E88","v":-18299.281894349821},{"$f":"AU155*'COM-Appliance class'!$B88+'COM S curve-disconnect'!AU176*'COM-Appliance class'!$C88+'COM S curve-disconnect'!AU197*'COM-Appliance class'!$D88+'COM S curve-disconnect'!AU218*'COM-Appliance class'!$E88","v":-18299.281894349821},{"$f":"AV155*'COM-Appliance class'!$B88+'COM S curve-disconnect'!AV176*'COM-Appliance class'!$C88+'COM S curve-disconnect'!AV197*'COM-Appliance class'!$D88+'COM S curve-disconnect'!AV218*'COM-Appliance class'!$E88","v":-18299.281894349821},{"$f":"AW155*'COM-Appliance class'!$B88+'COM S curve-disconnect'!AW176*'COM-Appliance class'!$C88+'COM S curve-disconnect'!AW197*'COM-Appliance class'!$D88+'COM S curve-disconnect'!AW218*'COM-Appliance class'!$E88","v":-18299.281894349821},{"$f":"AX155*'COM-Appliance class'!$B88+'COM S curve-disconnect'!AX176*'COM-Appliance class'!$C88+'COM S curve-disconnect'!AX197*'COM-Appliance class'!$D88+'COM S curve-disconnect'!AX218*'COM-Appliance class'!$E88","v":-18299.281894349821},{"$f":"AY155*'COM-Appliance class'!$B88+'COM S curve-disconnect'!AY176*'COM-Appliance class'!$C88+'COM S curve-disconnect'!AY197*'COM-Appliance class'!$D88+'COM S curve-disconnect'!AY218*'COM-Appliance class'!$E88","v":-18299.281894349821},{"$f":"AZ155*'COM-Appliance class'!$B88+'COM S curve-disconnect'!AZ176*'COM-Appliance class'!$C88+'COM S curve-disconnect'!AZ197*'COM-Appliance class'!$D88+'COM S curve-disconnect'!AZ218*'COM-Appliance class'!$E88","v":-18299.281894349821},{"$f":"BA155*'COM-Appliance class'!$B88+'COM S curve-disconnect'!BA176*'COM-Appliance class'!$C88+'COM S curve-disconnect'!BA197*'COM-Appliance class'!$D88+'COM S curve-disconnect'!BA218*'COM-Appliance class'!$E88","v":-18299.281894349821},{"$f":"BB155*'COM-Appliance class'!$B88+'COM S curve-disconnect'!BB176*'COM-Appliance class'!$C88+'COM S curve-disconnect'!BB197*'COM-Appliance class'!$D88+'COM S curve-disconnect'!BB218*'COM-Appliance class'!$E88","v":-18299.281894349821},{"$f":"BC155*'COM-Appliance class'!$B88+'COM S curve-disconnect'!BC176*'COM-Appliance class'!$C88+'COM S curve-disconnect'!BC197*'COM-Appliance class'!$D88+'COM S curve-disconnect'!BC218*'COM-Appliance class'!$E88","v":-18299.281894349821},{"$f":"BD155*'COM-Appliance class'!$B88+'COM S curve-disconnect'!BD176*'COM-Appliance class'!$C88+'COM S curve-disconnect'!BD197*'COM-Appliance class'!$D88+'COM S curve-disconnect'!BD218*'COM-Appliance class'!$E88","v":-18299.281894349821},{"$f":"BE155*'COM-Appliance class'!$B88+'COM S curve-disconnect'!BE176*'COM-Appliance class'!$C88+'COM S curve-disconnect'!BE197*'COM-Appliance class'!$D88+'COM S curve-disconnect'!BE218*'COM-Appliance class'!$E88","v":-18299.281894349821},{"$f":"BF155*'COM-Appliance class'!$B88+'COM S curve-disconnect'!BF176*'COM-Appliance class'!$C88+'COM S curve-disconnect'!BF197*'COM-Appliance class'!$D88+'COM S curve-disconnect'!BF218*'COM-Appliance class'!$E88","v":-18299.281894349821},{"$f":"BG155*'COM-Appliance class'!$B88+'COM S curve-disconnect'!BG176*'COM-Appliance class'!$C88+'COM S curve-disconnect'!BG197*'COM-Appliance class'!$D88+'COM S curve-disconnect'!BG218*'COM-Appliance class'!$E88","v":-18299.281894349821},{"$f":"BH155*'COM-Appliance class'!$B88+'COM S curve-disconnect'!BH176*'COM-Appliance class'!$C88+'COM S curve-disconnect'!BH197*'COM-Appliance class'!$D88+'COM S curve-disconnect'!BH218*'COM-Appliance class'!$E88","v":-18299.281894349821},{"$f":"BI155*'COM-Appliance class'!$B88+'COM S curve-disconnect'!BI176*'COM-Appliance class'!$C88+'COM S curve-disconnect'!BI197*'COM-Appliance class'!$D88+'COM S curve-disconnect'!BI218*'COM-Appliance class'!$E88","v":-18299.281894349821},{"$f":"BJ155*'COM-Appliance class'!$B88+'COM S curve-disconnect'!BJ176*'COM-Appliance class'!$C88+'COM S curve-disconnect'!BJ197*'COM-Appliance class'!$D88+'COM S curve-disconnect'!BJ218*'COM-Appliance class'!$E88","v":-18299.281894349821},{"$f":"BK155*'COM-Appliance class'!$B88+'COM S curve-disconnect'!BK176*'COM-Appliance class'!$C88+'COM S curve-disconnect'!BK197*'COM-Appliance class'!$D88+'COM S curve-disconnect'!BK218*'COM-Appliance class'!$E88","v":-18299.281894349821},{"$f":"BL155*'COM-Appliance class'!$B88+'COM S curve-disconnect'!BL176*'COM-Appliance class'!$C88+'COM S curve-disconnect'!BL197*'COM-Appliance class'!$D88+'COM S curve-disconnect'!BL218*'COM-Appliance class'!$E88","v":-18299.281894349821},{"$f":"BM155*'COM-Appliance class'!$B88+'COM S curve-disconnect'!BM176*'COM-Appliance class'!$C88+'COM S curve-disconnect'!BM197*'COM-Appliance class'!$D88+'COM S curve-disconnect'!BM218*'COM-Appliance class'!$E88","v":-18299.281894349821},{"$f":"BN155*'COM-Appliance class'!$B88+'COM S curve-disconnect'!BN176*'COM-Appliance class'!$C88+'COM S curve-disconnect'!BN197*'COM-Appliance class'!$D88+'COM S curve-disconnect'!BN218*'COM-Appliance class'!$E88","v":-18299.281894349821},{"$f":"BO155*'COM-Appliance class'!$B88+'COM S curve-disconnect'!BO176*'COM-Appliance class'!$C88+'COM S curve-disconnect'!BO197*'COM-Appliance class'!$D88+'COM S curve-disconnect'!BO218*'COM-Appliance class'!$E88","v":-18299.281894349821},{"$f":"BP155*'COM-Appliance class'!$B88+'COM S curve-disconnect'!BP176*'COM-Appliance class'!$C88+'COM S curve-disconnect'!BP197*'COM-Appliance class'!$D88+'COM S curve-disconnect'!BP218*'COM-Appliance class'!$E88","v":-18299.281894349821},{"$f":"BQ155*'COM-Appliance class'!$B88+'COM S curve-disconnect'!BQ176*'COM-Appliance class'!$C88+'COM S curve-disconnect'!BQ197*'COM-Appliance class'!$D88+'COM S curve-disconnect'!BQ218*'COM-Appliance class'!$E88","v":-18299.281894349821},{"$f":"BR155*'COM-Appliance class'!$B88+'COM S curve-disconnect'!BR176*'COM-Appliance class'!$C88+'COM S curve-disconnect'!BR197*'COM-Appliance class'!$D88+'COM S curve-disconnect'!BR218*'COM-Appliance class'!$E88","v":-18299.281894349821},{"$f":"BS155*'COM-Appliance class'!$B88+'COM S curve-disconnect'!BS176*'COM-Appliance class'!$C88+'COM S curve-disconnect'!BS197*'COM-Appliance class'!$D88+'COM S curve-disconnect'!BS218*'COM-Appliance class'!$E88","v":-18299.281894349821},{"$f":"BT155*'COM-Appliance class'!$B88+'COM S curve-disconnect'!BT176*'COM-Appliance class'!$C88+'COM S curve-disconnect'!BT197*'COM-Appliance class'!$D88+'COM S curve-disconnect'!BT218*'COM-Appliance class'!$E88","v":-18299.281894349821},{"$f":"BU155*'COM-Appliance class'!$B88+'COM S curve-disconnect'!BU176*'COM-Appliance class'!$C88+'COM S curve-disconnect'!BU197*'COM-Appliance class'!$D88+'COM S curve-disconnect'!BU218*'COM-Appliance class'!$E88","v":-18299.281894349821},{"$f":"BV155*'COM-Appliance class'!$B88+'COM S curve-disconnect'!BV176*'COM-Appliance class'!$C88+'COM S curve-disconnect'!BV197*'COM-Appliance class'!$D88+'COM S curve-disconnect'!BV218*'COM-Appliance class'!$E88","v":-18299.281894349821},{"$f":"BW155*'COM-Appliance class'!$B88+'COM S curve-disconnect'!BW176*'COM-Appliance class'!$C88+'COM S curve-disconnect'!BW197*'COM-Appliance class'!$D88+'COM S curve-disconnect'!BW218*'COM-Appliance class'!$E88","v":-18299.281894349821},{"$f":"BX155*'COM-Appliance class'!$B88+'COM S curve-disconnect'!BX176*'COM-Appliance class'!$C88+'COM S curve-disconnect'!BX197*'COM-Appliance class'!$D88+'COM S curve-disconnect'!BX218*'COM-Appliance class'!$E88","v":-18299.281894349821},{"$f":"BY155*'COM-Appliance class'!$B88+'COM S curve-disconnect'!BY176*'COM-Appliance class'!$C88+'COM S curve-disconnect'!BY197*'COM-Appliance class'!$D88+'COM S curve-disconnect'!BY218*'COM-Appliance class'!$E88","v":-18299.281894349821},{"$f":"BZ155*'COM-Appliance class'!$B88+'COM S curve-disconnect'!BZ176*'COM-Appliance class'!$C88+'COM S curve-disconnect'!BZ197*'COM-Appliance class'!$D88+'COM S curve-disconnect'!BZ218*'COM-Appliance class'!$E88","v":-18299.281894349821},{"$f":"CA155*'COM-Appliance class'!$B88+'COM S curve-disconnect'!CA176*'COM-Appliance class'!$C88+'COM S curve-disconnect'!CA197*'COM-Appliance class'!$D88+'COM S curve-disconnect'!CA218*'COM-Appliance class'!$E88","v":-18299.281894349821},{"$f":"CB155*'COM-Appliance class'!$B88+'COM S curve-disconnect'!CB176*'COM-Appliance class'!$C88+'COM S curve-disconnect'!CB197*'COM-Appliance class'!$D88+'COM S curve-disconnect'!CB218*'COM-Appliance class'!$E88","v":-18299.281894349821},{"$f":"CC155*'COM-Appliance class'!$B88+'COM S curve-disconnect'!CC176*'COM-Appliance class'!$C88+'COM S curve-disconnect'!CC197*'COM-Appliance class'!$D88+'COM S curve-disconnect'!CC218*'COM-Appliance class'!$E88","v":-18299.281894349821},{"$f":"CD155*'COM-Appliance class'!$B88+'COM S curve-disconnect'!CD176*'COM-Appliance class'!$C88+'COM S curve-disconnect'!CD197*'COM-Appliance class'!$D88+'COM S curve-disconnect'!CD218*'COM-Appliance class'!$E88","v":-18299.281894349821}]
["Whitehorse (C)",null,{"$f":"C156*'COM-Appliance class'!$B89+'COM S curve-disconnect'!C177*'COM-Appliance class'!$C89+'COM S curve-disconnect'!C198*'COM-Appliance class'!$D89+'COM S curve-disconnect'!C219*'COM-Appliance class'!$E89","v":-30334.784116604562},{"$f":"D156*'COM-Appliance class'!$B89+'COM S curve-disconnect'!D177*'COM-Appliance class'!$C89+'COM S curve-disconnect'!D198*'COM-Appliance class'!$D89+'COM S curve-disconnect'!D219*'COM-Appliance class'!$E89","v":-30334.784116604562},{"$f":"E156*'COM-Appliance class'!$B89+'COM S curve-disconnect'!E177*'COM-Appliance class'!$C89+'COM S curve-disconnect'!E198*'COM-Appliance class'!$D89+'COM S curve-disconnect'!E219*'COM-Appliance class'!$E89","v":-19322.283352479066},{"$f":"F156*'COM-Appliance class'!$B89+'COM S curve-disconnect'!F177*'COM-Appliance class'!$C89+'COM S curve-disconnect'!F198*'COM-Appliance class'!$D89+'COM S curve-disconnect'!F219*'COM-Appliance class'!$E89","v":-19322.283352479066},{"$f":"G156*'COM-Appliance class'!$B89+'COM S curve-disconnect'!G177*'COM-Appliance class'!$C89+'COM S curve-disconnect'!G198*'COM-Appliance class'!$D89+'COM S curve-disconnect'!G219*'COM-Appliance class'!$E89","v":-27287.918934432215},{"$f":"H156*'COM-Appliance class'!$B89+'COM S curve-disconnect'!H177*'COM-Appliance class'!$C89+'COM S curve-disconnect'!H198*'COM-Appliance class'!$D89+'COM S curve-disconnect'!H219*'COM-Appliance class'!$E89","v":-27287.918934432215},{"$f":"I156*'COM-Appliance class'!$B89+'COM S curve-disconnect'!I177*'COM-Appliance class'!$C89+'COM S curve-disconnect'!I198*'COM-Appliance class'!$D89+'COM S curve-disconnect'!I219*'COM-Appliance class'!$E89","v":-27287.918934432215},{"$f":"J156*'COM-Appliance class'!$B89+'COM S curve-disconnect'!J177*'COM-Appliance class'!$C89+'COM S curve-disconnect'!J198*'COM-Appliance class'!$D89+'COM S curve-disconnect'!J219*'COM-Appliance class'!$E89","v":-29939.550650346144},{"$f":"K156*'COM-Appliance class'!$B89+'COM S curve-disconnect'!K177*'COM-Appliance class'!$C89+'COM S curve-disconnect'!K198*'COM-Appliance class'!$D89+'COM S curve-disconnect'!K219*'COM-Appliance class'!$E89","v":-27992.828951872187},{"$f":"L156*'COM-Appliance class'!$B89+'COM S curve-disconnect'!L177*'COM-Appliance class'!$C89+'COM S curve-disconnect'!L198*'COM-Appliance class'!$D89+'COM S curve-disconnect'!L219*'COM-Appliance class'!$E89","v":-27609.305261437432},{"$f":"M156*'COM-Appliance class'!$B89+'COM S curve-disconnect'!M177*'COM-Appliance class'!$C89+'COM S curve-disconnect'!M198*'COM-Appliance class'!$D89+'COM S curve-disconnect'!M219*'COM-Appliance class'!$E89","v":-27227.699189454856},{"$f":"N156*'COM-Appliance class'!$B89+'COM S curve-disconnect'!N177*'COM-Appliance class'!$C89+'COM S curve-disconnect'!N198*'COM-Appliance class'!$D89+'COM S curve-disconnect'!N219*'COM-Appliance class'!$E89","v":-26848.00114783219},{"$f":"O156*'COM-Appliance class'!$B89+'COM S curve-disconnect'!O177*'COM-Appliance class'!$C89+'COM S curve-disconnect'!O198*'COM-Appliance class'!$D89+'COM S curve-disconnect'!O219*'COM-Appliance class'!$E89","v":-26470.201596417624},{"$f":"P156*'COM-Appliance class'!$B89+'COM S curve-disconnect'!P177*'COM-Appliance class'!$C89+'COM S curve-disconnect'!P198*'COM-Appliance class'!$D89+'COM S curve-disconnect'!P219*'COM-Appliance class'!$E89","v":-26094.291042760156},{"$f":"Q156*'COM-Appliance class'!$B89+'COM S curve-disconnect'!Q177*'COM-Appliance class'!$C89+'COM S curve-disconnect'!Q198*'COM-Appliance class'!$D89+'COM S curve-disconnect'!Q219*'COM-Appliance class'!$E89","v":-25720.260041870955},{"$f":"R156*'COM-Appliance class'!$B89+'COM S curve-disconnect'!R177*'COM-Appliance class'!$C89+'COM S curve-disconnect'!R198*'COM-Appliance class'!$D89+'COM S curve-disconnect'!R219*'COM-Appliance class'!$E89","v":-25348.099195986211},{"$f":"S156*'COM-Appliance class'!$B89+'COM S curve-disconnect'!S177*'COM-Appliance class'!$C89+'COM S curve-disconnect'!S198*'COM-Appliance class'!$D89+'COM S curve-disconnect'!S219*'COM-Appliance class'!$E89","v":-24977.799154330893},{"$f":"T156*'COM-Appliance class'!$B89+'COM S curve-disconnect'!T177*'COM-Appliance class'!$C89+'COM S curve-disconnect'!T198*'COM-Appliance class'!$D89+'COM S curve-disconnect'!T219*'COM-Appliance class'!$E89","v":-24609.350612883845},{"$f":"U156*'COM-Appliance class'!$B89+'COM S curve-disconnect'!U177*'COM-Appliance class'!$C89+'COM S curve-disconnect'!U198*'COM-Appliance class'!$D89+'COM S curve-disconnect'!U219*'COM-Appliance class'!$E89","v":-24242.744314144031},{"$f":"V156*'COM-Appliance class'!$B89+'COM S curve-disconnect'!V177*'COM-Appliance class'!$C89+'COM S curve-disconnect'!V198*'COM-Appliance class'!$D89+'COM S curve-disconnect'!V219*'COM-Appliance class'!$E89","v":-23877.971046897917},{"$f":"W156*'COM-Appliance class'!$B89+'COM S curve-disconnect'!W177*'COM-Appliance class'!$C89+'COM S curve-disconnect'!W198*'COM-Appliance class'!$D89+'COM S curve-disconnect'!W219*'COM-Appliance class'!$E89","v":-23515.021645988032},{"$f":"X156*'COM-Appliance class'!$B89+'COM S curve-disconnect'!X177*'COM-Appliance class'!$C89+'COM S curve-disconnect'!X198*'COM-Appliance class'!$D89+'COM S curve-disconnect'!X219*'COM-Appliance class'!$E89","v":-23153.886992082698},{"$f":"Y156*'COM-Appliance class'!$B89+'COM S curve-disconnect'!Y177*'COM-Appliance class'!$C89+'COM S curve-disconnect'!Y198*'COM-Appliance class'!$D89+'COM S curve-disconnect'!Y219*'COM-Appliance class'!$E89","v":-22794.558011446894},{"$f":"Z156*'COM-Appliance class'!$B89+'COM S curve-disconnect'!Z177*'COM-Appliance class'!$C89+'COM S curve-disconnect'!Z198*'COM-Appliance class'!$D89+'COM S curve-disconnect'!Z219*'COM-Appliance class'!$E89","v":-22437.025675714263},{"$f":"AA156*'COM-Appliance class'!$B89+'COM S curve-disconnect'!AA177*'COM-Appliance class'!$C89+'COM S curve-disconnect'!AA198*'COM-Appliance class'!$D89+'COM S curve-disconnect'!AA219*'COM-Appliance class'!$E89","v":-22081.281001660296},{"$f":"AB156*'COM-Appliance class'!$B89+'COM S curve-disconnect'!AB177*'COM-Appliance class'!$C89+'COM S curve-disconnect'!AB198*'COM-Appliance class'!$D89+'COM S curve-disconnect'!AB219*'COM-Appliance class'!$E89","v":-21727.315050976602},{"$f":"AC156*'COM-Appliance class'!$B89+'COM S curve-disconnect'!AC177*'COM-Appliance class'!$C89+'COM S curve-disconnect'!AC198*'COM-Appliance class'!$D89+'COM S curve-disconnect'!AC219*'COM-Appliance class'!$E89","v":-21375.11893004633},{"$f":"AD156*'COM-Appliance class'!$B89+'COM S curve-disconnect'!AD177*'COM-Appliance class'!$C89+'COM S curve-disconnect'!AD198*'COM-Appliance class'!$D89+'COM S curve-disconnect'!AD219*'COM-Appliance class'!$E89","v":-21024.683789720708},{"$f":"AE156*'COM-Appliance class'!$B89+'COM S curve-disconnect'!AE177*'COM-Appliance class'!$C89+'COM S curve-disconnect'!AE198*'COM-Appliance class'!$D89+'COM S curve-disconnect'!AE219*'COM-Appliance class'!$E89","v":-20676.000825096715},{"$f":"AF156*'COM-Appliance class'!$B89+'COM S curve-disconnect'!AF177*'COM-Appliance class'!$C89+'COM S curve-disconnect'!AF198*'COM-Appliance class'!$D89+'COM S curve-disconnect'!AF219*'COM-Appliance class'!$E89","v":-20329.061275295833},{"$f":"AG156*'COM-Appliance class'!$B89+'COM S curve-disconnect'!AG177*'COM-Appliance class'!$C89+'COM S curve-disconnect'!AG198*'COM-Appliance class'!$D89+'COM S curve-disconnect'!AG219*'COM-Appliance class'!$E89","v":-20329.061275295833},{"$f":"AH156*'COM-Appliance class'!$B89+'COM S curve-disconnect'!AH177*'COM-Appliance class'!$C89+'COM S curve-disconnect'!AH198*'COM-Appliance class'!$D89+'COM S curve-disconnect'!AH219*'COM-Appliance class'!$E89","v":-20329.061275295833},{"$f":"AI156*'COM-Appliance class'!$B89+'COM S curve-disconnect'!AI177*'COM-Appliance class'!$C89+'COM S curve-disconnect'!AI198*'COM-Appliance class'!$D89+'COM S curve-disconnect'!AI219*'COM-Appliance class'!$E89","v":-20329.061275295833},{"$f":"AJ156*'COM-Appliance class'!$B89+'COM S curve-disconnect'!AJ177*'COM-Appliance class'!$C89+'COM S curve-disconnect'!AJ198*'COM-Appliance class'!$D89+'COM S curve-disconnect'!AJ219*'COM-Appliance class'!$E89","v":-20329.061275295833},{"$f":"AK156*'COM-Appliance class'!$B89+'COM S curve-disconnect'!AK177*'COM-Appliance class'!$C89+'COM S curve-disconnect'!AK198*'COM-Appliance class'!$D89+'COM S curve-disconnect'!AK219*'COM-Appliance class'!$E89","v":-20329.061275295833},{"$f":"AL156*'COM-Appliance class'!$B89+'COM S curve-disconnect'!AL177*'COM-Appliance class'!$C89+'COM S curve-disconnect'!AL198*'COM-Appliance class'!$D89+'COM S curve-disconnect'!AL219*'COM-Appliance class'!$E89","v":-20329.061275295833},{"$f":"AM156*'COM-Appliance class'!$B89+'COM S curve-disconnect'!AM177*'COM-Appliance class'!$C89+'COM S curve-disconnect'!AM198*'COM-Appliance class'!$D89+'COM S curve-disconnect'!AM219*'COM-Appliance class'!$E89","v":-20329.061275295833},{"$f":"AN156*'COM-Appliance class'!$B89+'COM S curve-disconnect'!AN177*'COM-Appliance class'!$C89+'COM S curve-disconnect'!AN198*'COM-Appliance class'!$D89+'COM S curve-disconnect'!AN219*'COM-Appliance class'!$E89","v":-20329.061275295833},{"$f":"AO156*'COM-Appliance class'!$B89+'COM S curve-disconnect'!AO177*'COM-Appliance class'!$C89+'COM S curve-disconnect'!AO198*'COM-Appliance class'!$D89+'COM S curve-disconnect'!AO219*'COM-Appliance class'!$E89","v":-20329.061275295833},{"$f":"AP156*'COM-Appliance class'!$B89+'COM S curve-disconnect'!AP177*'COM-Appliance class'!$C89+'COM S curve-disconnect'!AP198*'COM-Appliance class'!$D89+'COM S curve-disconnect'!AP219*'COM-Appliance class'!$E89","v":-20329.061275295833},{"$f":"AQ156*'COM-Appliance class'!$B89+'COM S curve-disconnect'!AQ177*'COM-Appliance class'!$C89+'COM S curve-disconnect'!AQ198*'COM-Appliance class'!$D89+'COM S curve-disconnect'!AQ219*'COM-Appliance class'!$E89","v":-20329.061275295833},{"$f":"AR156*'COM-Appliance class'!$B89+'COM S curve-disconnect'!AR177*'COM-Appliance class'!$C89+'COM S curve-disconnect'!AR198*'COM-Appliance class'!$D89+'COM S curve-disconnect'!AR219*'COM-Appliance class'!$E89","v":-20329.061275295833},{"$f":"AS156*'COM-Appliance class'!$B89+'COM S curve-disconnect'!AS177*'COM-Appliance class'!$C89+'COM S curve-disconnect'!AS198*'COM-Appliance class'!$D89+'COM S curve-disconnect'!AS219*'COM-Appliance class'!$E89","v":-20329.061275295833},{"$f":"AT156*'COM-Appliance class'!$B89+'COM S curve-disconnect'!AT177*'COM-Appliance class'!$C89+'COM S curve-disconnect'!AT198*'COM-Appliance class'!$D89+'COM S curve-disconnect'!AT219*'COM-Appliance class'!$E89","v":-20329.061275295833},{"$f":"AU156*'COM-Appliance class'!$B89+'COM S curve-disconnect'!AU177*'COM-Appliance class'!$C89+'COM S curve-disconnect'!AU198*'COM-Appliance class'!$D89+'COM S curve-disconnect'!AU219*'COM-Appliance class'!$E89","v":-20329.061275295833},{"$f":"AV156*'COM-Appliance class'!$B89+'COM S curve-disconnect'!AV177*'COM-Appliance class'!$C89+'COM S curve-disconnect'!AV198*'COM-Appliance class'!$D89+'COM S curve-disconnect'!AV219*'COM-Appliance class'!$E89","v":-20329.061275295833},{"$f":"AW156*'COM-Appliance class'!$B89+'COM S curve-disconnect'!AW177*'COM-Appliance class'!$C89+'COM S curve-disconnect'!AW198*'COM-Appliance class'!$D89+'COM S curve-disconnect'!AW219*'COM-Appliance class'!$E89","v":-20329.061275295833},{"$f":"AX156*'COM-Appliance class'!$B89+'COM S curve-disconnect'!AX177*'COM-Appliance class'!$C89+'COM S curve-disconnect'!AX198*'COM-Appliance class'!$D89+'COM S curve-disconnect'!AX219*'COM-Appliance class'!$E89","v":-20329.061275295833},{"$f":"AY156*'COM-Appliance class'!$B89+'COM S curve-disconnect'!AY177*'COM-Appliance class'!$C89+'COM S curve-disconnect'!AY198*'COM-Appliance class'!$D89+'COM S curve-disconnect'!AY219*'COM-Appliance class'!$E89","v":-20329.061275295833},{"$f":"AZ156*'COM-Appliance class'!$B89+'COM S curve-disconnect'!AZ177*'COM-Appliance class'!$C89+'COM S curve-disconnect'!AZ198*'COM-Appliance class'!$D89+'COM S curve-disconnect'!AZ219*'COM-Appliance class'!$E89","v":-20329.061275295833},{"$f":"BA156*'COM-Appliance class'!$B89+'COM S curve-disconnect'!BA177*'COM-Appliance class'!$C89+'COM S curve-disconnect'!BA198*'COM-Appliance class'!$D89+'COM S curve-disconnect'!BA219*'COM-Appliance class'!$E89","v":-20329.061275295833},{"$f":"BB156*'COM-Appliance class'!$B89+'COM S curve-disconnect'!BB177*'COM-Appliance class'!$C89+'COM S curve-disconnect'!BB198*'COM-Appliance class'!$D89+'COM S curve-disconnect'!BB219*'COM-Appliance class'!$E89","v":-20329.061275295833},{"$f":"BC156*'COM-Appliance class'!$B89+'COM S curve-disconnect'!BC177*'COM-Appliance class'!$C89+'COM S curve-disconnect'!BC198*'COM-Appliance class'!$D89+'COM S curve-disconnect'!BC219*'COM-Appliance class'!$E89","v":-20329.061275295833},{"$f":"BD156*'COM-Appliance class'!$B89+'COM S curve-disconnect'!BD177*'COM-Appliance class'!$C89+'COM S curve-disconnect'!BD198*'COM-Appliance class'!$D89+'COM S curve-disconnect'!BD219*'COM-Appliance class'!$E89","v":-20329.061275295833},{"$f":"BE156*'COM-Appliance class'!$B89+'COM S curve-disconnect'!BE177*'COM-Appliance class'!$C89+'COM S curve-disconnect'!BE198*'COM-Appliance class'!$D89+'COM S curve-disconnect'!BE219*'COM-Appliance class'!$E89","v":-20329.061275295833},{"$f":"BF156*'COM-Appliance class'!$B89+'COM S curve-disconnect'!BF177*'COM-Appliance class'!$C89+'COM S curve-disconnect'!BF198*'COM-Appliance class'!$D89+'COM S curve-disconnect'!BF219*'COM-Appliance class'!$E89","v":-20329.061275295833},{"$f":"BG156*'COM-Appliance class'!$B89+'COM S curve-disconnect'!BG177*'COM-Appliance class'!$C89+'COM S curve-disconnect'!BG198*'COM-Appliance class'!$D89+'COM S curve-disconnect'!BG219*'COM-Appliance class'!$E89","v":-20329.061275295833},{"$f":"BH156*'COM-Appliance class'!$B89+'COM S curve-disconnect'!BH177*'COM-Appliance class'!$C89+'COM S curve-disconnect'!BH198*'COM-Appliance class'!$D89+'COM S curve-disconnect'!BH219*'COM-Appliance class'!$E89","v":-20329.061275295833},{"$f":"BI156*'COM-Appliance class'!$B89+'COM S curve-disconnect'!BI177*'COM-Appliance class'!$C89+'COM S curve-disconnect'!BI198*'COM-Appliance class'!$D89+'COM S curve-disconnect'!BI219*'COM-Appliance class'!$E89","v":-20329.061275295833},{"$f":"BJ156*'COM-Appliance class'!$B89+'COM S curve-disconnect'!BJ177*'COM-Appliance class'!$C89+'COM S curve-disconnect'!BJ198*'COM-Appliance class'!$D89+'COM S curve-disconnect'!BJ219*'COM-Appliance class'!$E89","v":-20329.061275295833},{"$f":"BK156*'COM-Appliance class'!$B89+'COM S curve-disconnect'!BK177*'COM-Appliance class'!$C89+'COM S curve-disconnect'!BK198*'COM-Appliance class'!$D89+'COM S curve-disconnect'!BK219*'COM-Appliance class'!$E89","v":-20329.061275295833},{"$f":"BL156*'COM-Appliance class'!$B89+'COM S curve-disconnect'!BL177*'COM-Appliance class'!$C89+'COM S curve-disconnect'!BL198*'COM-Appliance class'!$D89+'COM S curve-disconnect'!BL219*'COM-Appliance class'!$E89","v":-20329.061275295833},{"$f":"BM156*'COM-Appliance class'!$B89+'COM S curve-disconnect'!BM177*'COM-Appliance class'!$C89+'COM S curve-disconnect'!BM198*'COM-Appliance class'!$D89+'COM S curve-disconnect'!BM219*'COM-Appliance class'!$E89","v":-20329.061275295833},{"$f":"BN156*'COM-Appliance class'!$B89+'COM S curve-disconnect'!BN177*'COM-Appliance class'!$C89+'COM S curve-disconnect'!BN198*'COM-Appliance class'!$D89+'COM S curve-disconnect'!BN219*'COM-Appliance class'!$E89","v":-20329.061275295833},{"$f":"BO156*'COM-Appliance class'!$B89+'COM S curve-disconnect'!BO177*'COM-Appliance class'!$C89+'COM S curve-disconnect'!BO198*'COM-Appliance class'!$D89+'COM S curve-disconnect'!BO219*'COM-Appliance class'!$E89","v":-20329.061275295833},{"$f":"BP156*'COM-Appliance class'!$B89+'COM S curve-disconnect'!BP177*'COM-Appliance class'!$C89+'COM S curve-disconnect'!BP198*'COM-Appliance class'!$D89+'COM S curve-disconnect'!BP219*'COM-Appliance class'!$E89","v":-20329.061275295833},{"$f":"BQ156*'COM-Appliance class'!$B89+'COM S curve-disconnect'!BQ177*'COM-Appliance class'!$C89+'COM S curve-disconnect'!BQ198*'COM-Appliance class'!$D89+'COM S curve-disconnect'!BQ219*'COM-Appliance class'!$E89","v":-20329.061275295833},{"$f":"BR156*'COM-Appliance class'!$B89+'COM S curve-disconnect'!BR177*'COM-Appliance class'!$C89+'COM S curve-disconnect'!BR198*'COM-Appliance class'!$D89+'COM S curve-disconnect'!BR219*'COM-Appliance class'!$E89","v":-20329.061275295833},{"$f":"BS156*'COM-Appliance class'!$B89+'COM S curve-disconnect'!BS177*'COM-Appliance class'!$C89+'COM S curve-disconnect'!BS198*'COM-Appliance class'!$D89+'COM S curve-disconnect'!BS219*'COM-Appliance class'!$E89","v":-20329.061275295833},{"$f":"BT156*'COM-Appliance class'!$B89+'COM S curve-disconnect'!BT177*'COM-Appliance class'!$C89+'COM S curve-disconnect'!BT198*'COM-Appliance class'!$D89+'COM S curve-disconnect'!BT219*'COM-Appliance class'!$E89","v":-20329.061275295833},{"$f":"BU156*'COM-Appliance class'!$B89+'COM S curve-disconnect'!BU177*'COM-Appliance class'!$C89+'COM S curve-disconnect'!BU198*'COM-Appliance class'!$D89+'COM S curve-disconnect'!BU219*'COM-Appliance class'!$E89","v":-20329.061275295833},{"$f":"BV156*'COM-Appliance class'!$B89+'COM S curve-disconnect'!BV177*'COM-Appliance class'!$C89+'COM S curve-disconnect'!BV198*'COM-Appliance class'!$D89+'COM S curve-disconnect'!BV219*'COM-Appliance class'!$E89","v":-20329.061275295833},{"$f":"BW156*'COM-Appliance class'!$B89+'COM S curve-disconnect'!BW177*'COM-Appliance class'!$C89+'COM S curve-disconnect'!BW198*'COM-Appliance class'!$D89+'COM S curve-disconnect'!BW219*'COM-Appliance class'!$E89","v":-20329.061275295833},{"$f":"BX156*'COM-Appliance class'!$B89+'COM S curve-disconnect'!BX177*'COM-Appliance class'!$C89+'COM S curve-disconnect'!BX198*'COM-Appliance class'!$D89+'COM S curve-disconnect'!BX219*'COM-Appliance class'!$E89","v":-20329.061275295833},{"$f":"BY156*'COM-Appliance class'!$B89+'COM S curve-disconnect'!BY177*'COM-Appliance class'!$C89+'COM S curve-disconnect'!BY198*'COM-Appliance class'!$D89+'COM S curve-disconnect'!BY219*'COM-Appliance class'!$E89","v":-20329.061275295833},{"$f":"BZ156*'COM-Appliance class'!$B89+'COM S curve-disconnect'!BZ177*'COM-Appliance class'!$C89+'COM S curve-disconnect'!BZ198*'COM-Appliance class'!$D89+'COM S curve-disconnect'!BZ219*'COM-Appliance class'!$E89","v":-20329.061275295833},{"$f":"CA156*'COM-Appliance class'!$B89+'COM S curve-disconnect'!CA177*'COM-Appliance class'!$C89+'COM S curve-disconnect'!CA198*'COM-Appliance class'!$D89+'COM S curve-disconnect'!CA219*'COM-Appliance class'!$E89","v":-20329.061275295833},{"$f":"CB156*'COM-Appliance class'!$B89+'COM S curve-disconnect'!CB177*'COM-Appliance class'!$C89+'COM S curve-disconnect'!CB198*'COM-Appliance class'!$D89+'COM S curve-disconnect'!CB219*'COM-Appliance class'!$E89","v":-20329.061275295833},{"$f":"CC156*'COM-Appliance class'!$B89+'COM S curve-disconnect'!CC177*'COM-Appliance class'!$C89+'COM S curve-disconnect'!CC198*'COM-Appliance class'!$D89+'COM S curve-disconnect'!CC219*'COM-Appliance class'!$E89","v":-20329.061275295833},{"$f":"CD156*'COM-Appliance class'!$B89+'COM S curve-disconnect'!CD177*'COM-Appliance class'!$C89+'COM S curve-disconnect'!CD198*'COM-Appliance class'!$D89+'COM S curve-disconnect'!CD219*'COM-Appliance class'!$E89","v":-20329.061275295833}]
["Yarra Ranges (S)",null,{"$f":"C157*'COM-Appliance class'!$B90+'COM S curve-disconnect'!C178*'COM-Appliance class'!$C90+'COM S curve-disconnect'!C199*'COM-Appliance class'!$D90+'COM S curve-disconnect'!C220*'COM-Appliance class'!$E90","v":-27233.710541739278},{"$f":"D157*'COM-Appliance class'!$B90+'COM S curve-disconnect'!D178*'COM-Appliance class'!$C90+'COM S curve-disconnect'!D199*'COM-Appliance class'!$D90+'COM S curve-disconnect'!D220*'COM-Appliance class'!$E90","v":-27233.710541739278},{"$f":"E157*'COM-Appliance class'!$B90+'COM S curve-disconnect'!E178*'COM-Appliance class'!$C90+'COM S curve-disconnect'!E199*'COM-Appliance class'!$D90+'COM S curve-disconnect'!E220*'COM-Appliance class'!$E90","v":-17346.999068928373},{"$f":"F157*'COM-Appliance class'!$B90+'COM S curve-disconnect'!F178*'COM-Appliance class'!$C90+'COM S curve-disconnect'!F199*'COM-Appliance class'!$D90+'COM S curve-disconnect'!F220*'COM-Appliance class'!$E90","v":-17346.999068928373},{"$f":"G157*'COM-Appliance class'!$B90+'COM S curve-disconnect'!G178*'COM-Appliance class'!$C90+'COM S curve-disconnect'!G199*'COM-Appliance class'!$D90+'COM S curve-disconnect'!G220*'COM-Appliance class'!$E90","v":-24498.321223917654},{"$f":"H157*'COM-Appliance class'!$B90+'COM S curve-disconnect'!H178*'COM-Appliance class'!$C90+'COM S curve-disconnect'!H199*'COM-Appliance class'!$D90+'COM S curve-disconnect'!H220*'COM-Appliance class'!$E90","v":-24498.321223917654},{"$f":"I157*'COM-Appliance class'!$B90+'COM S curve-disconnect'!I178*'COM-Appliance class'!$C90+'COM S curve-disconnect'!I199*'COM-Appliance class'!$D90+'COM S curve-disconnect'!I220*'COM-Appliance class'!$E90","v":-24498.321223917654},{"$f":"J157*'COM-Appliance class'!$B90+'COM S curve-disconnect'!J178*'COM-Appliance class'!$C90+'COM S curve-disconnect'!J199*'COM-Appliance class'!$D90+'COM S curve-disconnect'!J220*'COM-Appliance class'!$E90","v":-26878.881122973173},{"$f":"K157*'COM-Appliance class'!$B90+'COM S curve-disconnect'!K178*'COM-Appliance class'!$C90+'COM S curve-disconnect'!K199*'COM-Appliance class'!$D90+'COM S curve-disconnect'!K220*'COM-Appliance class'!$E90","v":-25131.169484816412},{"$f":"L157*'COM-Appliance class'!$B90+'COM S curve-disconnect'!L178*'COM-Appliance class'!$C90+'COM S curve-disconnect'!L199*'COM-Appliance class'!$D90+'COM S curve-disconnect'!L220*'COM-Appliance class'!$E90","v":-24786.852771334925},{"$f":"M157*'COM-Appliance class'!$B90+'COM S curve-disconnect'!M178*'COM-Appliance class'!$C90+'COM S curve-disconnect'!M199*'COM-Appliance class'!$D90+'COM S curve-disconnect'!M220*'COM-Appliance class'!$E90","v":-24444.257641420845},{"$f":"N157*'COM-Appliance class'!$B90+'COM S curve-disconnect'!N178*'COM-Appliance class'!$C90+'COM S curve-disconnect'!N199*'COM-Appliance class'!$D90+'COM S curve-disconnect'!N220*'COM-Appliance class'!$E90","v":-24103.375487156336},{"$f":"O157*'COM-Appliance class'!$B90+'COM S curve-disconnect'!O178*'COM-Appliance class'!$C90+'COM S curve-disconnect'!O199*'COM-Appliance class'!$D90+'COM S curve-disconnect'!O220*'COM-Appliance class'!$E90","v":-23764.197743663142},{"$f":"P157*'COM-Appliance class'!$B90+'COM S curve-disconnect'!P178*'COM-Appliance class'!$C90+'COM S curve-disconnect'!P199*'COM-Appliance class'!$D90+'COM S curve-disconnect'!P220*'COM-Appliance class'!$E90","v":-23426.715888887433},{"$f":"Q157*'COM-Appliance class'!$B90+'COM S curve-disconnect'!Q178*'COM-Appliance class'!$C90+'COM S curve-disconnect'!Q199*'COM-Appliance class'!$D90+'COM S curve-disconnect'!Q220*'COM-Appliance class'!$E90","v":-23090.921443385581},{"$f":"R157*'COM-Appliance class'!$B90+'COM S curve-disconnect'!R178*'COM-Appliance class'!$C90+'COM S curve-disconnect'!R199*'COM-Appliance class'!$D90+'COM S curve-disconnect'!R220*'COM-Appliance class'!$E90","v":-22756.805970111251},{"$f":"S157*'COM-Appliance class'!$B90+'COM S curve-disconnect'!S178*'COM-Appliance class'!$C90+'COM S curve-disconnect'!S199*'COM-Appliance class'!$D90+'COM S curve-disconnect'!S220*'COM-Appliance class'!$E90","v":-22424.361074203294},{"$f":"T157*'COM-Appliance class'!$B90+'COM S curve-disconnect'!T178*'COM-Appliance class'!$C90+'COM S curve-disconnect'!T199*'COM-Appliance class'!$D90+'COM S curve-disconnect'!T220*'COM-Appliance class'!$E90","v":-22093.578402774874},{"$f":"U157*'COM-Appliance class'!$B90+'COM S curve-disconnect'!U178*'COM-Appliance class'!$C90+'COM S curve-disconnect'!U199*'COM-Appliance class'!$D90+'COM S curve-disconnect'!U220*'COM-Appliance class'!$E90","v":-21764.449644703593},{"$f":"V157*'COM-Appliance class'!$B90+'COM S curve-disconnect'!V178*'COM-Appliance class'!$C90+'COM S curve-disconnect'!V199*'COM-Appliance class'!$D90+'COM S curve-disconnect'!V220*'COM-Appliance class'!$E90","v":-21436.966530422666},{"$f":"W157*'COM-Appliance class'!$B90+'COM S curve-disconnect'!W178*'COM-Appliance class'!$C90+'COM S curve-disconnect'!W199*'COM-Appliance class'!$D90+'COM S curve-disconnect'!W220*'COM-Appliance class'!$E90","v":-21111.120831713146},{"$f":"X157*'COM-Appliance class'!$B90+'COM S curve-disconnect'!X178*'COM-Appliance class'!$C90+'COM S curve-disconnect'!X199*'COM-Appliance class'!$D90+'COM S curve-disconnect'!X220*'COM-Appliance class'!$E90","v":-20786.904361497174},{"$f":"Y157*'COM-Appliance class'!$B90+'COM S curve-disconnect'!Y178*'COM-Appliance class'!$C90+'COM S curve-disconnect'!Y199*'COM-Appliance class'!$D90+'COM S curve-disconnect'!Y220*'COM-Appliance class'!$E90","v":-20464.30897363228},{"$f":"Z157*'COM-Appliance class'!$B90+'COM S curve-disconnect'!Z178*'COM-Appliance class'!$C90+'COM S curve-disconnect'!Z199*'COM-Appliance class'!$D90+'COM S curve-disconnect'!Z220*'COM-Appliance class'!$E90","v":-20143.326562706719},{"$f":"AA157*'COM-Appliance class'!$B90+'COM S curve-disconnect'!AA178*'COM-Appliance class'!$C90+'COM S curve-disconnect'!AA199*'COM-Appliance class'!$D90+'COM S curve-disconnect'!AA220*'COM-Appliance class'!$E90","v":-19823.949063835775},{"$f":"AB157*'COM-Appliance class'!$B90+'COM S curve-disconnect'!AB178*'COM-Appliance class'!$C90+'COM S curve-disconnect'!AB199*'COM-Appliance class'!$D90+'COM S curve-disconnect'!AB220*'COM-Appliance class'!$E90","v":-19506.168452459191},{"$f":"AC157*'COM-Appliance class'!$B90+'COM S curve-disconnect'!AC178*'COM-Appliance class'!$C90+'COM S curve-disconnect'!AC199*'COM-Appliance class'!$D90+'COM S curve-disconnect'!AC220*'COM-Appliance class'!$E90","v":-19189.976744139494},{"$f":"AD157*'COM-Appliance class'!$B90+'COM S curve-disconnect'!AD178*'COM-Appliance class'!$C90+'COM S curve-disconnect'!AD199*'COM-Appliance class'!$D90+'COM S curve-disconnect'!AD220*'COM-Appliance class'!$E90","v":-18875.365994361393},{"$f":"AE157*'COM-Appliance class'!$B90+'COM S curve-disconnect'!AE178*'COM-Appliance class'!$C90+'COM S curve-disconnect'!AE199*'COM-Appliance class'!$D90+'COM S curve-disconnect'!AE220*'COM-Appliance class'!$E90","v":-18562.328298332181},{"$f":"AF157*'COM-Appliance class'!$B90+'COM S curve-disconnect'!AF178*'COM-Appliance class'!$C90+'COM S curve-disconnect'!AF199*'COM-Appliance class'!$D90+'COM S curve-disconnect'!AF220*'COM-Appliance class'!$E90","v":-18250.855790783113},{"$f":"AG157*'COM-Appliance class'!$B90+'COM S curve-disconnect'!AG178*'COM-Appliance class'!$C90+'COM S curve-disconnect'!AG199*'COM-Appliance class'!$D90+'COM S curve-disconnect'!AG220*'COM-Appliance class'!$E90","v":-18250.855790783113},{"$f":"AH157*'COM-Appliance class'!$B90+'COM S curve-disconnect'!AH178*'COM-Appliance class'!$C90+'COM S curve-disconnect'!AH199*'COM-Appliance class'!$D90+'COM S curve-disconnect'!AH220*'COM-Appliance class'!$E90","v":-18250.855790783113},{"$f":"AI157*'COM-Appliance class'!$B90+'COM S curve-disconnect'!AI178*'COM-Appliance class'!$C90+'COM S curve-disconnect'!AI199*'COM-Appliance class'!$D90+'COM S curve-disconnect'!AI220*'COM-Appliance class'!$E90","v":-18250.855790783113},{"$f":"AJ157*'COM-Appliance class'!$B90+'COM S curve-disconnect'!AJ178*'COM-Appliance class'!$C90+'COM S curve-disconnect'!AJ199*'COM-Appliance class'!$D90+'COM S curve-disconnect'!AJ220*'COM-Appliance class'!$E90","v":-18250.855790783113},{"$f":"AK157*'COM-Appliance class'!$B90+'COM S curve-disconnect'!AK178*'COM-Appliance class'!$C90+'COM S curve-disconnect'!AK199*'COM-Appliance class'!$D90+'COM S curve-disconnect'!AK220*'COM-Appliance class'!$E90","v":-18250.855790783113},{"$f":"AL157*'COM-Appliance class'!$B90+'COM S curve-disconnect'!AL178*'COM-Appliance class'!$C90+'COM S curve-disconnect'!AL199*'COM-Appliance class'!$D90+'COM S curve-disconnect'!AL220*'COM-Appliance class'!$E90","v":-18250.855790783113},{"$f":"AM157*'COM-Appliance class'!$B90+'COM S curve-disconnect'!AM178*'COM-Appliance class'!$C90+'COM S curve-disconnect'!AM199*'COM-Appliance class'!$D90+'COM S curve-disconnect'!AM220*'COM-Appliance class'!$E90","v":-18250.855790783113},{"$f":"AN157*'COM-Appliance class'!$B90+'COM S curve-disconnect'!AN178*'COM-Appliance class'!$C90+'COM S curve-disconnect'!AN199*'COM-Appliance class'!$D90+'COM S curve-disconnect'!AN220*'COM-Appliance class'!$E90","v":-18250.855790783113},{"$f":"AO157*'COM-Appliance class'!$B90+'COM S curve-disconnect'!AO178*'COM-Appliance class'!$C90+'COM S curve-disconnect'!AO199*'COM-Appliance class'!$D90+'COM S curve-disconnect'!AO220*'COM-Appliance class'!$E90","v":-18250.855790783113},{"$f":"AP157*'COM-Appliance class'!$B90+'COM S curve-disconnect'!AP178*'COM-Appliance class'!$C90+'COM S curve-disconnect'!AP199*'COM-Appliance class'!$D90+'COM S curve-disconnect'!AP220*'COM-Appliance class'!$E90","v":-18250.855790783113},{"$f":"AQ157*'COM-Appliance class'!$B90+'COM S curve-disconnect'!AQ178*'COM-Appliance class'!$C90+'COM S curve-disconnect'!AQ199*'COM-Appliance class'!$D90+'COM S curve-disconnect'!AQ220*'COM-Appliance class'!$E90","v":-18250.855790783113},{"$f":"AR157*'COM-Appliance class'!$B90+'COM S curve-disconnect'!AR178*'COM-Appliance class'!$C90+'COM S curve-disconnect'!AR199*'COM-Appliance class'!$D90+'COM S curve-disconnect'!AR220*'COM-Appliance class'!$E90","v":-18250.855790783113},{"$f":"AS157*'COM-Appliance class'!$B90+'COM S curve-disconnect'!AS178*'COM-Appliance class'!$C90+'COM S curve-disconnect'!AS199*'COM-Appliance class'!$D90+'COM S curve-disconnect'!AS220*'COM-Appliance class'!$E90","v":-18250.855790783113},{"$f":"AT157*'COM-Appliance class'!$B90+'COM S curve-disconnect'!AT178*'COM-Appliance class'!$C90+'COM S curve-disconnect'!AT199*'COM-Appliance class'!$D90+'COM S curve-disconnect'!AT220*'COM-Appliance class'!$E90","v":-18250.855790783113},{"$f":"AU157*'COM-Appliance class'!$B90+'COM S curve-disconnect'!AU178*'COM-Appliance class'!$C90+'COM S curve-disconnect'!AU199*'COM-Appliance class'!$D90+'COM S curve-disconnect'!AU220*'COM-Appliance class'!$E90","v":-18250.855790783113},{"$f":"AV157*'COM-Appliance class'!$B90+'COM S curve-disconnect'!AV178*'COM-Appliance class'!$C90+'COM S curve-disconnect'!AV199*'COM-Appliance class'!$D90+'COM S curve-disconnect'!AV220*'COM-Appliance class'!$E90","v":-18250.855790783113},{"$f":"AW157*'COM-Appliance class'!$B90+'COM S curve-disconnect'!AW178*'COM-Appliance class'!$C90+'COM S curve-disconnect'!AW199*'COM-Appliance class'!$D90+'COM S curve-disconnect'!AW220*'COM-Appliance class'!$E90","v":-18250.855790783113},{"$f":"AX157*'COM-Appliance class'!$B90+'COM S curve-disconnect'!AX178*'COM-Appliance class'!$C90+'COM S curve-disconnect'!AX199*'COM-Appliance class'!$D90+'COM S curve-disconnect'!AX220*'COM-Appliance class'!$E90","v":-18250.855790783113},{"$f":"AY157*'COM-Appliance class'!$B90+'COM S curve-disconnect'!AY178*'COM-Appliance class'!$C90+'COM S curve-disconnect'!AY199*'COM-Appliance class'!$D90+'COM S curve-disconnect'!AY220*'COM-Appliance class'!$E90","v":-18250.855790783113},{"$f":"AZ157*'COM-Appliance class'!$B90+'COM S curve-disconnect'!AZ178*'COM-Appliance class'!$C90+'COM S curve-disconnect'!AZ199*'COM-Appliance class'!$D90+'COM S curve-disconnect'!AZ220*'COM-Appliance class'!$E90","v":-18250.855790783113},{"$f":"BA157*'COM-Appliance class'!$B90+'COM S curve-disconnect'!BA178*'COM-Appliance class'!$C90+'COM S curve-disconnect'!BA199*'COM-Appliance class'!$D90+'COM S curve-disconnect'!BA220*'COM-Appliance class'!$E90","v":-18250.855790783113},{"$f":"BB157*'COM-Appliance class'!$B90+'COM S curve-disconnect'!BB178*'COM-Appliance class'!$C90+'COM S curve-disconnect'!BB199*'COM-Appliance class'!$D90+'COM S curve-disconnect'!BB220*'COM-Appliance class'!$E90","v":-18250.855790783113},{"$f":"BC157*'COM-Appliance class'!$B90+'COM S curve-disconnect'!BC178*'COM-Appliance class'!$C90+'COM S curve-disconnect'!BC199*'COM-Appliance class'!$D90+'COM S curve-disconnect'!BC220*'COM-Appliance class'!$E90","v":-18250.855790783113},{"$f":"BD157*'COM-Appliance class'!$B90+'COM S curve-disconnect'!BD178*'COM-Appliance class'!$C90+'COM S curve-disconnect'!BD199*'COM-Appliance class'!$D90+'COM S curve-disconnect'!BD220*'COM-Appliance class'!$E90","v":-18250.855790783113},{"$f":"BE157*'COM-Appliance class'!$B90+'COM S curve-disconnect'!BE178*'COM-Appliance class'!$C90+'COM S curve-disconnect'!BE199*'COM-Appliance class'!$D90+'COM S curve-disconnect'!BE220*'COM-Appliance class'!$E90","v":-18250.855790783113},{"$f":"BF157*'COM-Appliance class'!$B90+'COM S curve-disconnect'!BF178*'COM-Appliance class'!$C90+'COM S curve-disconnect'!BF199*'COM-Appliance class'!$D90+'COM S curve-disconnect'!BF220*'COM-Appliance class'!$E90","v":-18250.855790783113},{"$f":"BG157*'COM-Appliance class'!$B90+'COM S curve-disconnect'!BG178*'COM-Appliance class'!$C90+'COM S curve-disconnect'!BG199*'COM-Appliance class'!$D90+'COM S curve-disconnect'!BG220*'COM-Appliance class'!$E90","v":-18250.855790783113},{"$f":"BH157*'COM-Appliance class'!$B90+'COM S curve-disconnect'!BH178*'COM-Appliance class'!$C90+'COM S curve-disconnect'!BH199*'COM-Appliance class'!$D90+'COM S curve-disconnect'!BH220*'COM-Appliance class'!$E90","v":-18250.855790783113},{"$f":"BI157*'COM-Appliance class'!$B90+'COM S curve-disconnect'!BI178*'COM-Appliance class'!$C90+'COM S curve-disconnect'!BI199*'COM-Appliance class'!$D90+'COM S curve-disconnect'!BI220*'COM-Appliance class'!$E90","v":-18250.855790783113},{"$f":"BJ157*'COM-Appliance class'!$B90+'COM S curve-disconnect'!BJ178*'COM-Appliance class'!$C90+'COM S curve-disconnect'!BJ199*'COM-Appliance class'!$D90+'COM S curve-disconnect'!BJ220*'COM-Appliance class'!$E90","v":-18250.855790783113},{"$f":"BK157*'COM-Appliance class'!$B90+'COM S curve-disconnect'!BK178*'COM-Appliance class'!$C90+'COM S curve-disconnect'!BK199*'COM-Appliance class'!$D90+'COM S curve-disconnect'!BK220*'COM-Appliance class'!$E90","v":-18250.855790783113},{"$f":"BL157*'COM-Appliance class'!$B90+'COM S curve-disconnect'!BL178*'COM-Appliance class'!$C90+'COM S curve-disconnect'!BL199*'COM-Appliance class'!$D90+'COM S curve-disconnect'!BL220*'COM-Appliance class'!$E90","v":-18250.855790783113},{"$f":"BM157*'COM-Appliance class'!$B90+'COM S curve-disconnect'!BM178*'COM-Appliance class'!$C90+'COM S curve-disconnect'!BM199*'COM-Appliance class'!$D90+'COM S curve-disconnect'!BM220*'COM-Appliance class'!$E90","v":-18250.855790783113},{"$f":"BN157*'COM-Appliance class'!$B90+'COM S curve-disconnect'!BN178*'COM-Appliance class'!$C90+'COM S curve-disconnect'!BN199*'COM-Appliance class'!$D90+'COM S curve-disconnect'!BN220*'COM-Appliance class'!$E90","v":-18250.855790783113},{"$f":"BO157*'COM-Appliance class'!$B90+'COM S curve-disconnect'!BO178*'COM-Appliance class'!$C90+'COM S curve-disconnect'!BO199*'COM-Appliance class'!$D90+'COM S curve-disconnect'!BO220*'COM-Appliance class'!$E90","v":-18250.855790783113},{"$f":"BP157*'COM-Appliance class'!$B90+'COM S curve-disconnect'!BP178*'COM-Appliance class'!$C90+'COM S curve-disconnect'!BP199*'COM-Appliance class'!$D90+'COM S curve-disconnect'!BP220*'COM-Appliance class'!$E90","v":-18250.855790783113},{"$f":"BQ157*'COM-Appliance class'!$B90+'COM S curve-disconnect'!BQ178*'COM-Appliance class'!$C90+'COM S curve-disconnect'!BQ199*'COM-Appliance class'!$D90+'COM S curve-disconnect'!BQ220*'COM-Appliance class'!$E90","v":-18250.855790783113},{"$f":"BR157*'COM-Appliance class'!$B90+'COM S curve-disconnect'!BR178*'COM-Appliance class'!$C90+'COM S curve-disconnect'!BR199*'COM-Appliance class'!$D90+'COM S curve-disconnect'!BR220*'COM-Appliance class'!$E90","v":-18250.855790783113},{"$f":"BS157*'COM-Appliance class'!$B90+'COM S curve-disconnect'!BS178*'COM-Appliance class'!$C90+'COM S curve-disconnect'!BS199*'COM-Appliance class'!$D90+'COM S curve-disconnect'!BS220*'COM-Appliance class'!$E90","v":-18250.855790783113},{"$f":"BT157*'COM-Appliance class'!$B90+'COM S curve-disconnect'!BT178*'COM-Appliance class'!$C90+'COM S curve-disconnect'!BT199*'COM-Appliance class'!$D90+'COM S curve-disconnect'!BT220*'COM-Appliance class'!$E90","v":-18250.855790783113},{"$f":"BU157*'COM-Appliance class'!$B90+'COM S curve-disconnect'!BU178*'COM-Appliance class'!$C90+'COM S curve-disconnect'!BU199*'COM-Appliance class'!$D90+'COM S curve-disconnect'!BU220*'COM-Appliance class'!$E90","v":-18250.855790783113},{"$f":"BV157*'COM-Appliance class'!$B90+'COM S curve-disconnect'!BV178*'COM-Appliance class'!$C90+'COM S curve-disconnect'!BV199*'COM-Appliance class'!$D90+'COM S curve-disconnect'!BV220*'COM-Appliance class'!$E90","v":-18250.855790783113},{"$f":"BW157*'COM-Appliance class'!$B90+'COM S curve-disconnect'!BW178*'COM-Appliance class'!$C90+'COM S curve-disconnect'!BW199*'COM-Appliance class'!$D90+'COM S curve-disconnect'!BW220*'COM-Appliance class'!$E90","v":-18250.855790783113},{"$f":"BX157*'COM-Appliance class'!$B90+'COM S curve-disconnect'!BX178*'COM-Appliance class'!$C90+'COM S curve-disconnect'!BX199*'COM-Appliance class'!$D90+'COM S curve-disconnect'!BX220*'COM-Appliance class'!$E90","v":-18250.855790783113},{"$f":"BY157*'COM-Appliance class'!$B90+'COM S curve-disconnect'!BY178*'COM-Appliance class'!$C90+'COM S curve-disconnect'!BY199*'COM-Appliance class'!$D90+'COM S curve-disconnect'!BY220*'COM-Appliance class'!$E90","v":-18250.855790783113},{"$f":"BZ157*'COM-Appliance class'!$B90+'COM S curve-disconnect'!BZ178*'COM-Appliance class'!$C90+'COM S curve-disconnect'!BZ199*'COM-Appliance class'!$D90+'COM S curve-disconnect'!BZ220*'COM-Appliance class'!$E90","v":-18250.855790783113},{"$f":"CA157*'COM-Appliance class'!$B90+'COM S curve-disconnect'!CA178*'COM-Appliance class'!$C90+'COM S curve-disconnect'!CA199*'COM-Appliance class'!$D90+'COM S curve-disconnect'!CA220*'COM-Appliance class'!$E90","v":-18250.855790783113},{"$f":"CB157*'COM-Appliance class'!$B90+'COM S curve-disconnect'!CB178*'COM-Appliance class'!$C90+'COM S curve-disconnect'!CB199*'COM-Appliance class'!$D90+'COM S curve-disconnect'!CB220*'COM-Appliance class'!$E90","v":-18250.855790783113},{"$f":"CC157*'COM-Appliance class'!$B90+'COM S curve-disconnect'!CC178*'COM-Appliance class'!$C90+'COM S curve-disconnect'!CC199*'COM-Appliance class'!$D90+'COM S curve-disconnect'!CC220*'COM-Appliance class'!$E90","v":-18250.855790783113},{"$f":"CD157*'COM-Appliance class'!$B90+'COM S curve-disconnect'!CD178*'COM-Appliance class'!$C90+'COM S curve-disconnect'!CD199*'COM-Appliance class'!$D90+'COM S curve-disconnect'!CD220*'COM-Appliance class'!$E90","v":-18250.855790783113}]
[]
["Scaled up running costs-weighted average"]
[null,2020,{"$f":"B332+1","v":2021},{"$f":"C332+1","v":2022},{"$f":"D332+1","v":2023},{"$f":"E332+1","v":2024},{"$f":"F332+1","v":2025},{"$f":"G332+1","v":2026},{"$f":"H332+1","v":2027},{"$f":"I332+1","v":2028},{"$f":"J332+1","v":2029},{"$f":"K332+1","v":2030},{"$f":"L332+1","v":2031},{"$f":"M332+1","v":2032},{"$f":"N332+1","v":2033},{"$f":"O332+1","v":2034},{"$f":"P332+1","v":2035},{"$f":"Q332+1","v":2036},{"$f":"R332+1","v":2037},{"$f":"S332+1","v":2038},{"$f":"T332+1","v":2039},{"$f":"U332+1","v":2040},{"$f":"V332+1","v":2041},{"$f":"W332+1","v":2042},{"$f":"X332+1","v":2043},{"$f":"Y332+1","v":2044},{"$f":"Z332+1","v":2045},{"$f":"AA332+1","v":2046},{"$f":"AB332+1","v":2047},{"$f":"AC332+1","v":2048},{"$f":"AD332+1","v":2049},{"$f":"AE332+1","v":2050},{"$f":"AF332+1","v":2051},{"$f":"AG332+1","v":2052},{"$f":"AH332+1","v":2053},{"$f":"AI332+1","v":2054},{"$f":"AJ332+1","v":2055},{"$f":"AK332+1","v":2056},{"$f":"AL332+1","v":2057},{"$f":"AM332+1","v":2058},{"$f":"AN332+1","v":2059},{"$f":"AO332+1","v":2060},{"$f":"AP332+1","v":2061},{"$f":"AQ332+1","v":2062},{"$f":"AR332+1","v":2063},{"$f":"AS332+1","v":2064},{"$f":"AT332+1","v":2065},{"$f":"AU332+1","v":2066},{"$f":"AV332+1","v":2067},{"$f":"AW332+1","v":2068},{"$f":"AX332+1","v":2069},{"$f":"AY332+1","v":2070},{"$f":"AZ332+1","v":2071},{"$f":"BA332+1","v":2072},{"$f":"BB332+1","v":2073},{"$f":"BC332+1","v":2074},{"$f":"BD332+1","v":2075},{"$f":"BE332+1","v":2076},{"$f":"BF332+1","v":2077},{"$f":"BG332+1","v":2078},{"$f":"BH332+1","v":2079},{"$f":"BI332+1","v":2080},{"$f":"BJ332+1","v":2081},{"$f":"BK332+1","v":2082},{"$f":"BL332+1","v":2083},{"$f":"BM332+1","v":2084},{"$f":"BN332+1","v":2085},{"$f":"BO332+1","v":2086},{"$f":"BP332+1","v":2087},{"$f":"BQ332+1","v":2088},{"$f":"BR332+1","v":2089},{"$f":"BS332+1","v":2090},{"$f":"BT332+1","v":2091},{"$f":"BU332+1","v":2092},{"$f":"BV332+1","v":2093},{"$f":"BW332+1","v":2094},{"$f":"BX332+1","v":2095},{"$f":"BY332+1","v":2096},{"$f":"BZ332+1","v":2097},{"$f":"CA332+1","v":2098},{"$f":"CB332+1","v":2099},{"$f":"CC332+1","v":2100}]
["Bass Coast (S)",null,{"$f":"C225*'COM-Appliance class'!$B72+'COM S curve-disconnect'!C246*'COM-Appliance class'!$C72+'COM S curve-disconnect'!C267*'COM-Appliance class'!$D72+'COM S curve-disconnect'!C288*'COM-Appliance class'!$E72","v":46044.845093202806},{"$f":"D225*'COM-Appliance class'!$B72+'COM S curve-disconnect'!D246*'COM-Appliance class'!$C72+'COM S curve-disconnect'!D267*'COM-Appliance class'!$D72+'COM S curve-disconnect'!D288*'COM-Appliance class'!$E72","v":56595.054656773318},{"$f":"E225*'COM-Appliance class'!$B72+'COM S curve-disconnect'!E246*'COM-Appliance class'!$C72+'COM S curve-disconnect'!E267*'COM-Appliance class'!$D72+'COM S curve-disconnect'!E288*'COM-Appliance class'!$E72","v":50291.576035717255},{"$f":"F225*'COM-Appliance class'!$B72+'COM S curve-disconnect'!F246*'COM-Appliance class'!$C72+'COM S curve-disconnect'!F267*'COM-Appliance class'!$D72+'COM S curve-disconnect'!F288*'COM-Appliance class'!$E72","v":55943.740137406196},{"$f":"G225*'COM-Appliance class'!$B72+'COM S curve-disconnect'!G246*'COM-Appliance class'!$C72+'COM S curve-disconnect'!G267*'COM-Appliance class'!$D72+'COM S curve-disconnect'!G288*'COM-Appliance class'!$E72","v":49254.942412036093},{"$f":"H225*'COM-Appliance class'!$B72+'COM S curve-disconnect'!H246*'COM-Appliance class'!$C72+'COM S curve-disconnect'!H267*'COM-Appliance class'!$D72+'COM S curve-disconnect'!H288*'COM-Appliance class'!$E72","v":50561.316506287316},{"$f":"I225*'COM-Appliance class'!$B72+'COM S curve-disconnect'!I246*'COM-Appliance class'!$C72+'COM S curve-disconnect'!I267*'COM-Appliance class'!$D72+'COM S curve-disconnect'!I288*'COM-Appliance class'!$E72","v":58635.720456381692},{"$f":"J225*'COM-Appliance class'!$B72+'COM S curve-disconnect'!J246*'COM-Appliance class'!$C72+'COM S curve-disconnect'!J267*'COM-Appliance class'!$D72+'COM S curve-disconnect'!J288*'COM-Appliance class'!$E72","v":64524.858194656321},{"$f":"K225*'COM-Appliance class'!$B72+'COM S curve-disconnect'!K246*'COM-Appliance class'!$C72+'COM S curve-disconnect'!K267*'COM-Appliance class'!$D72+'COM S curve-disconnect'!K288*'COM-Appliance class'!$E72","v":77244.874057115259},{"$f":"L225*'COM-Appliance class'!$B72+'COM S curve-disconnect'!L246*'COM-Appliance class'!$C72+'COM S curve-disconnect'!L267*'COM-Appliance class'!$D72+'COM S curve-disconnect'!L288*'COM-Appliance class'!$E72","v":76588.653766618067},{"$f":"M225*'COM-Appliance class'!$B72+'COM S curve-disconnect'!M246*'COM-Appliance class'!$C72+'COM S curve-disconnect'!M267*'COM-Appliance class'!$D72+'COM S curve-disconnect'!M288*'COM-Appliance class'!$E72","v":62230.923763636791},{"$f":"N225*'COM-Appliance class'!$B72+'COM S curve-disconnect'!N246*'COM-Appliance class'!$C72+'COM S curve-disconnect'!N267*'COM-Appliance class'!$D72+'COM S curve-disconnect'!N288*'COM-Appliance class'!$E72","v":61940.363924355239},{"$f":"O225*'COM-Appliance class'!$B72+'COM S curve-disconnect'!O246*'COM-Appliance class'!$C72+'COM S curve-disconnect'!O267*'COM-Appliance class'!$D72+'COM S curve-disconnect'!O288*'COM-Appliance class'!$E72","v":70488.154232415836},{"$f":"P225*'COM-Appliance class'!$B72+'COM S curve-disconnect'!P246*'COM-Appliance class'!$C72+'COM S curve-disconnect'!P267*'COM-Appliance class'!$D72+'COM S curve-disconnect'!P288*'COM-Appliance class'!$E72","v":78761.277119575781},{"$f":"Q225*'COM-Appliance class'!$B72+'COM S curve-disconnect'!Q246*'COM-Appliance class'!$C72+'COM S curve-disconnect'!Q267*'COM-Appliance class'!$D72+'COM S curve-disconnect'!Q288*'COM-Appliance class'!$E72","v":54843.483365243403},{"$f":"R225*'COM-Appliance class'!$B72+'COM S curve-disconnect'!R246*'COM-Appliance class'!$C72+'COM S curve-disconnect'!R267*'COM-Appliance class'!$D72+'COM S curve-disconnect'!R288*'COM-Appliance class'!$E72","v":58256.545874448129},{"$f":"S225*'COM-Appliance class'!$B72+'COM S curve-disconnect'!S246*'COM-Appliance class'!$C72+'COM S curve-disconnect'!S267*'COM-Appliance class'!$D72+'COM S curve-disconnect'!S288*'COM-Appliance class'!$E72","v":63320.839600048246},{"$f":"T225*'COM-Appliance class'!$B72+'COM S curve-disconnect'!T246*'COM-Appliance class'!$C72+'COM S curve-disconnect'!T267*'COM-Appliance class'!$D72+'COM S curve-disconnect'!T288*'COM-Appliance class'!$E72","v":70734.306829743844},{"$f":"U225*'COM-Appliance class'!$B72+'COM S curve-disconnect'!U246*'COM-Appliance class'!$C72+'COM S curve-disconnect'!U267*'COM-Appliance class'!$D72+'COM S curve-disconnect'!U288*'COM-Appliance class'!$E72","v":76250.941211005076},{"$f":"V225*'COM-Appliance class'!$B72+'COM S curve-disconnect'!V246*'COM-Appliance class'!$C72+'COM S curve-disconnect'!V267*'COM-Appliance class'!$D72+'COM S curve-disconnect'!V288*'COM-Appliance class'!$E72","v":78275.220194680383},{"$f":"W225*'COM-Appliance class'!$B72+'COM S curve-disconnect'!W246*'COM-Appliance class'!$C72+'COM S curve-disconnect'!W267*'COM-Appliance class'!$D72+'COM S curve-disconnect'!W288*'COM-Appliance class'!$E72","v":81573.203895661136},{"$f":"X225*'COM-Appliance class'!$B72+'COM S curve-disconnect'!X246*'COM-Appliance class'!$C72+'COM S curve-disconnect'!X267*'COM-Appliance class'!$D72+'COM S curve-disconnect'!X288*'COM-Appliance class'!$E72","v":89744.106348559741},{"$f":"Y225*'COM-Appliance class'!$B72+'COM S curve-disconnect'!Y246*'COM-Appliance class'!$C72+'COM S curve-disconnect'!Y267*'COM-Appliance class'!$D72+'COM S curve-disconnect'!Y288*'COM-Appliance class'!$E72","v":96532.987285094947},{"$f":"Z225*'COM-Appliance class'!$B72+'COM S curve-disconnect'!Z246*'COM-Appliance class'!$C72+'COM S curve-disconnect'!Z267*'COM-Appliance class'!$D72+'COM S curve-disconnect'!Z288*'COM-Appliance class'!$E72","v":100365.82979606406},{"$f":"AA225*'COM-Appliance class'!$B72+'COM S curve-disconnect'!AA246*'COM-Appliance class'!$C72+'COM S curve-disconnect'!AA267*'COM-Appliance class'!$D72+'COM S curve-disconnect'!AA288*'COM-Appliance class'!$E72","v":104721.17946469974},{"$f":"AB225*'COM-Appliance class'!$B72+'COM S curve-disconnect'!AB246*'COM-Appliance class'!$C72+'COM S curve-disconnect'!AB267*'COM-Appliance class'!$D72+'COM S curve-disconnect'!AB288*'COM-Appliance class'!$E72","v":107453.80815823238},{"$f":"AC225*'COM-Appliance class'!$B72+'COM S curve-disconnect'!AC246*'COM-Appliance class'!$C72+'COM S curve-disconnect'!AC267*'COM-Appliance class'!$D72+'COM S curve-disconnect'!AC288*'COM-Appliance class'!$E72","v":109431.78615898869},{"$f":"AD225*'COM-Appliance class'!$B72+'COM S curve-disconnect'!AD246*'COM-Appliance class'!$C72+'COM S curve-disconnect'!AD267*'COM-Appliance class'!$D72+'COM S curve-disconnect'!AD288*'COM-Appliance class'!$E72","v":110848.0232941822},{"$f":"AE225*'COM-Appliance class'!$B72+'COM S curve-disconnect'!AE246*'COM-Appliance class'!$C72+'COM S curve-disconnect'!AE267*'COM-Appliance class'!$D72+'COM S curve-disconnect'!AE288*'COM-Appliance class'!$E72","v":112034.88753809035},{"$f":"AF225*'COM-Appliance class'!$B72+'COM S curve-disconnect'!AF246*'COM-Appliance class'!$C72+'COM S curve-disconnect'!AF267*'COM-Appliance class'!$D72+'COM S curve-disconnect'!AF288*'COM-Appliance class'!$E72","v":114243.48208277836},{"$f":"AG225*'COM-Appliance class'!$B72+'COM S curve-disconnect'!AG246*'COM-Appliance class'!$C72+'COM S curve-disconnect'!AG267*'COM-Appliance class'!$D72+'COM S curve-disconnect'!AG288*'COM-Appliance class'!$E72","v":114349.5899303695},{"$f":"AH225*'COM-Appliance class'!$B72+'COM S curve-disconnect'!AH246*'COM-Appliance class'!$C72+'COM S curve-disconnect'!AH267*'COM-Appliance class'!$D72+'COM S curve-disconnect'!AH288*'COM-Appliance class'!$E72","v":116666.45714452263},{"$f":"AI225*'COM-Appliance class'!$B72+'COM S curve-disconnect'!AI246*'COM-Appliance class'!$C72+'COM S curve-disconnect'!AI267*'COM-Appliance class'!$D72+'COM S curve-disconnect'!AI288*'COM-Appliance class'!$E72","v":116815.5554485601},{"$f":"AJ225*'COM-Appliance class'!$B72+'COM S curve-disconnect'!AJ246*'COM-Appliance class'!$C72+'COM S curve-disconnect'!AJ267*'COM-Appliance class'!$D72+'COM S curve-disconnect'!AJ288*'COM-Appliance class'!$E72","v":116964.44350537259},{"$f":"AK225*'COM-Appliance class'!$B72+'COM S curve-disconnect'!AK246*'COM-Appliance class'!$C72+'COM S curve-disconnect'!AK267*'COM-Appliance class'!$D72+'COM S curve-disconnect'!AK288*'COM-Appliance class'!$E72","v":117113.12260692568},{"$f":"AL225*'COM-Appliance class'!$B72+'COM S curve-disconnect'!AL246*'COM-Appliance class'!$C72+'COM S curve-disconnect'!AL267*'COM-Appliance class'!$D72+'COM S curve-disconnect'!AL288*'COM-Appliance class'!$E72","v":117261.59403716508},{"$f":"AM225*'COM-Appliance class'!$B72+'COM S curve-disconnect'!AM246*'COM-Appliance class'!$C72+'COM S curve-disconnect'!AM267*'COM-Appliance class'!$D72+'COM S curve-disconnect'!AM288*'COM-Appliance class'!$E72","v":117409.85907206763},{"$f":"AN225*'COM-Appliance class'!$B72+'COM S curve-disconnect'!AN246*'COM-Appliance class'!$C72+'COM S curve-disconnect'!AN267*'COM-Appliance class'!$D72+'COM S curve-disconnect'!AN288*'COM-Appliance class'!$E72","v":117557.9189796907},{"$f":"AO225*'COM-Appliance class'!$B72+'COM S curve-disconnect'!AO246*'COM-Appliance class'!$C72+'COM S curve-disconnect'!AO267*'COM-Appliance class'!$D72+'COM S curve-disconnect'!AO288*'COM-Appliance class'!$E72","v":117705.77502022299},{"$f":"AP225*'COM-Appliance class'!$B72+'COM S curve-disconnect'!AP246*'COM-Appliance class'!$C72+'COM S curve-disconnect'!AP267*'COM-Appliance class'!$D72+'COM S curve-disconnect'!AP288*'COM-Appliance class'!$E72","v":117853.42844603327},{"$f":"AQ225*'COM-Appliance class'!$B72+'COM S curve-disconnect'!AQ246*'COM-Appliance class'!$C72+'COM S curve-disconnect'!AQ267*'COM-Appliance class'!$D72+'COM S curve-disconnect'!AQ288*'COM-Appliance class'!$E72","v":118000.88050172031},{"$f":"AR225*'COM-Appliance class'!$B72+'COM S curve-disconnect'!AR246*'COM-Appliance class'!$C72+'COM S curve-disconnect'!AR267*'COM-Appliance class'!$D72+'COM S curve-disconnect'!AR288*'COM-Appliance class'!$E72","v":118148.13242416116},{"$f":"AS225*'COM-Appliance class'!$B72+'COM S curve-disconnect'!AS246*'COM-Appliance class'!$C72+'COM S curve-disconnect'!AS267*'COM-Appliance class'!$D72+'COM S curve-disconnect'!AS288*'COM-Appliance class'!$E72","v":118295.18544256044},{"$f":"AT225*'COM-Appliance class'!$B72+'COM S curve-disconnect'!AT246*'COM-Appliance class'!$C72+'COM S curve-disconnect'!AT267*'COM-Appliance class'!$D72+'COM S curve-disconnect'!AT288*'COM-Appliance class'!$E72","v":118442.04077849782},{"$f":"AU225*'COM-Appliance class'!$B72+'COM S curve-disconnect'!AU246*'COM-Appliance class'!$C72+'COM S curve-disconnect'!AU267*'COM-Appliance class'!$D72+'COM S curve-disconnect'!AU288*'COM-Appliance class'!$E72","v":118588.699645977},{"$f":"AV225*'COM-Appliance class'!$B72+'COM S curve-disconnect'!AV246*'COM-Appliance class'!$C72+'COM S curve-disconnect'!AV267*'COM-Appliance class'!$D72+'COM S curve-disconnect'!AV288*'COM-Appliance class'!$E72","v":118735.16325147249},{"$f":"AW225*'COM-Appliance class'!$B72+'COM S curve-disconnect'!AW246*'COM-Appliance class'!$C72+'COM S curve-disconnect'!AW267*'COM-Appliance class'!$D72+'COM S curve-disconnect'!AW288*'COM-Appliance class'!$E72","v":118881.43279397768},{"$f":"AX225*'COM-Appliance class'!$B72+'COM S curve-disconnect'!AX246*'COM-Appliance class'!$C72+'COM S curve-disconnect'!AX267*'COM-Appliance class'!$D72+'COM S curve-disconnect'!AX288*'COM-Appliance class'!$E72","v":119027.50946505152},{"$f":"AY225*'COM-Appliance class'!$B72+'COM S curve-disconnect'!AY246*'COM-Appliance class'!$C72+'COM S curve-disconnect'!AY267*'COM-Appliance class'!$D72+'COM S curve-disconnect'!AY288*'COM-Appliance class'!$E72","v":119173.39444886554},{"$f":"AZ225*'COM-Appliance class'!$B72+'COM S curve-disconnect'!AZ246*'COM-Appliance class'!$C72+'COM S curve-disconnect'!AZ267*'COM-Appliance class'!$D72+'COM S curve-disconnect'!AZ288*'COM-Appliance class'!$E72","v":119319.08892225011},{"$f":"BA225*'COM-Appliance class'!$B72+'COM S curve-disconnect'!BA246*'COM-Appliance class'!$C72+'COM S curve-disconnect'!BA267*'COM-Appliance class'!$D72+'COM S curve-disconnect'!BA288*'COM-Appliance class'!$E72","v":119464.59405474114},{"$f":"BB225*'COM-Appliance class'!$B72+'COM S curve-disconnect'!BB246*'COM-Appliance class'!$C72+'COM S curve-disconnect'!BB267*'COM-Appliance class'!$D72+'COM S curve-disconnect'!BB288*'COM-Appliance class'!$E72","v":119609.91100862513},{"$f":"BC225*'COM-Appliance class'!$B72+'COM S curve-disconnect'!BC246*'COM-Appliance class'!$C72+'COM S curve-disconnect'!BC267*'COM-Appliance class'!$D72+'COM S curve-disconnect'!BC288*'COM-Appliance class'!$E72","v":119755.04093898584},{"$f":"BD225*'COM-Appliance class'!$B72+'COM S curve-disconnect'!BD246*'COM-Appliance class'!$C72+'COM S curve-disconnect'!BD267*'COM-Appliance class'!$D72+'COM S curve-disconnect'!BD288*'COM-Appliance class'!$E72","v":119899.98499374857},{"$f":"BE225*'COM-Appliance class'!$B72+'COM S curve-disconnect'!BE246*'COM-Appliance class'!$C72+'COM S curve-disconnect'!BE267*'COM-Appliance class'!$D72+'COM S curve-disconnect'!BE288*'COM-Appliance class'!$E72","v":120044.7443137262},{"$f":"BF225*'COM-Appliance class'!$B72+'COM S curve-disconnect'!BF246*'COM-Appliance class'!$C72+'COM S curve-disconnect'!BF267*'COM-Appliance class'!$D72+'COM S curve-disconnect'!BF288*'COM-Appliance class'!$E72","v":120189.32003266305},{"$f":"BG225*'COM-Appliance class'!$B72+'COM S curve-disconnect'!BG246*'COM-Appliance class'!$C72+'COM S curve-disconnect'!BG267*'COM-Appliance class'!$D72+'COM S curve-disconnect'!BG288*'COM-Appliance class'!$E72","v":120333.71327727988},{"$f":"BH225*'COM-Appliance class'!$B72+'COM S curve-disconnect'!BH246*'COM-Appliance class'!$C72+'COM S curve-disconnect'!BH267*'COM-Appliance class'!$D72+'COM S curve-disconnect'!BH288*'COM-Appliance class'!$E72","v":120477.92516731798},{"$f":"BI225*'COM-Appliance class'!$B72+'COM S curve-disconnect'!BI246*'COM-Appliance class'!$C72+'COM S curve-disconnect'!BI267*'COM-Appliance class'!$D72+'COM S curve-disconnect'!BI288*'COM-Appliance class'!$E72","v":120621.95681558312},{"$f":"BJ225*'COM-Appliance class'!$B72+'COM S curve-disconnect'!BJ246*'COM-Appliance class'!$C72+'COM S curve-disconnect'!BJ267*'COM-Appliance class'!$D72+'COM S curve-disconnect'!BJ288*'COM-Appliance class'!$E72","v":120765.80932798881},{"$f":"BK225*'COM-Appliance class'!$B72+'COM S curve-disconnect'!BK246*'COM-Appliance class'!$C72+'COM S curve-disconnect'!BK267*'COM-Appliance class'!$D72+'COM S curve-disconnect'!BK288*'COM-Appliance class'!$E72","v":120909.48380360029},{"$f":"BL225*'COM-Appliance class'!$B72+'COM S curve-disconnect'!BL246*'COM-Appliance class'!$C72+'COM S curve-disconnect'!BL267*'COM-Appliance class'!$D72+'COM S curve-disconnect'!BL288*'COM-Appliance class'!$E72","v":121052.98133467688},{"$f":"BM225*'COM-Appliance class'!$B72+'COM S curve-disconnect'!BM246*'COM-Appliance class'!$C72+'COM S curve-disconnect'!BM267*'COM-Appliance class'!$D72+'COM S curve-disconnect'!BM288*'COM-Appliance class'!$E72","v":121196.30300671564},{"$f":"BN225*'COM-Appliance class'!$B72+'COM S curve-disconnect'!BN246*'COM-Appliance class'!$C72+'COM S curve-disconnect'!BN267*'COM-Appliance class'!$D72+'COM S curve-disconnect'!BN288*'COM-Appliance class'!$E72","v":121339.44989849284},{"$f":"BO225*'COM-Appliance class'!$B72+'COM S curve-disconnect'!BO246*'COM-Appliance class'!$C72+'COM S curve-disconnect'!BO267*'COM-Appliance class'!$D72+'COM S curve-disconnect'!BO288*'COM-Appliance class'!$E72","v":121482.42308210727},{"$f":"BP225*'COM-Appliance class'!$B72+'COM S curve-disconnect'!BP246*'COM-Appliance class'!$C72+'COM S curve-disconnect'!BP267*'COM-Appliance class'!$D72+'COM S curve-disconnect'!BP288*'COM-Appliance class'!$E72","v":121625.22362302145},{"$f":"BQ225*'COM-Appliance class'!$B72+'COM S curve-disconnect'!BQ246*'COM-Appliance class'!$C72+'COM S curve-disconnect'!BQ267*'COM-Appliance class'!$D72+'COM S curve-disconnect'!BQ288*'COM-Appliance class'!$E72","v":121767.85258010392},{"$f":"BR225*'COM-Appliance class'!$B72+'COM S curve-disconnect'!BR246*'COM-Appliance class'!$C72+'COM S curve-disconnect'!BR267*'COM-Appliance class'!$D72+'COM S curve-disconnect'!BR288*'COM-Appliance class'!$E72","v":121910.31100567016},{"$f":"BS225*'COM-Appliance class'!$B72+'COM S curve-disconnect'!BS246*'COM-Appliance class'!$C72+'COM S curve-disconnect'!BS267*'COM-Appliance class'!$D72+'COM S curve-disconnect'!BS288*'COM-Appliance class'!$E72","v":122052.59994552433},{"$f":"BT225*'COM-Appliance class'!$B72+'COM S curve-disconnect'!BT246*'COM-Appliance class'!$C72+'COM S curve-disconnect'!BT267*'COM-Appliance class'!$D72+'COM S curve-disconnect'!BT288*'COM-Appliance class'!$E72","v":122194.72043899974},{"$f":"BU225*'COM-Appliance class'!$B72+'COM S curve-disconnect'!BU246*'COM-Appliance class'!$C72+'COM S curve-disconnect'!BU267*'COM-Appliance class'!$D72+'COM S curve-disconnect'!BU288*'COM-Appliance class'!$E72","v":122336.67351899997},{"$f":"BV225*'COM-Appliance class'!$B72+'COM S curve-disconnect'!BV246*'COM-Appliance class'!$C72+'COM S curve-disconnect'!BV267*'COM-Appliance class'!$D72+'COM S curve-disconnect'!BV288*'COM-Appliance class'!$E72","v":122478.4602120387},{"$f":"BW225*'COM-Appliance class'!$B72+'COM S curve-disconnect'!BW246*'COM-Appliance class'!$C72+'COM S curve-disconnect'!BW267*'COM-Appliance class'!$D72+'COM S curve-disconnect'!BW288*'COM-Appliance class'!$E72","v":122620.08153828073},{"$f":"BX225*'COM-Appliance class'!$B72+'COM S curve-disconnect'!BX246*'COM-Appliance class'!$C72+'COM S curve-disconnect'!BX267*'COM-Appliance class'!$D72+'COM S curve-disconnect'!BX288*'COM-Appliance class'!$E72","v":122761.53851158076},{"$f":"BY225*'COM-Appliance class'!$B72+'COM S curve-disconnect'!BY246*'COM-Appliance class'!$C72+'COM S curve-disconnect'!BY267*'COM-Appliance class'!$D72+'COM S curve-disconnect'!BY288*'COM-Appliance class'!$E72","v":122902.83213952431},{"$f":"BZ225*'COM-Appliance class'!$B72+'COM S curve-disconnect'!BZ246*'COM-Appliance class'!$C72+'COM S curve-disconnect'!BZ267*'COM-Appliance class'!$D72+'COM S curve-disconnect'!BZ288*'COM-Appliance class'!$E72","v":123043.96342346582},{"$f":"CA225*'COM-Appliance class'!$B72+'COM S curve-disconnect'!CA246*'COM-Appliance class'!$C72+'COM S curve-disconnect'!CA267*'COM-Appliance class'!$D72+'COM S curve-disconnect'!CA288*'COM-Appliance class'!$E72","v":123184.93335856913},{"$f":"CB225*'COM-Appliance class'!$B72+'COM S curve-disconnect'!CB246*'COM-Appliance class'!$C72+'COM S curve-disconnect'!CB267*'COM-Appliance class'!$D72+'COM S curve-disconnect'!CB288*'COM-Appliance class'!$E72","v":123325.74293384515},{"$f":"CC225*'COM-Appliance class'!$B72+'COM S curve-disconnect'!CC246*'COM-Appliance class'!$C72+'COM S curve-disconnect'!CC267*'COM-Appliance class'!$D72+'COM S curve-disconnect'!CC288*'COM-Appliance class'!$E72","v":123466.39313219153},{"$f":"CD225*'COM-Appliance class'!$B72+'COM S curve-disconnect'!CD246*'COM-Appliance class'!$C72+'COM S curve-disconnect'!CD267*'COM-Appliance class'!$D72+'COM S curve-disconnect'!CD288*'COM-Appliance class'!$E72","v":123606.88493043018}]
["Bayside (C)",null,{"$f":"C226*'COM-Appliance class'!$B73+'COM S curve-disconnect'!C247*'COM-Appliance class'!$C73+'COM S curve-disconnect'!C268*'COM-Appliance class'!$D73+'COM S curve-disconnect'!C289*'COM-Appliance class'!$E73","v":15375.915825790687},{"$f":"D226*'COM-Appliance class'!$B73+'COM S curve-disconnect'!D247*'COM-Appliance class'!$C73+'COM S curve-disconnect'!D268*'COM-Appliance class'!$D73+'COM S curve-disconnect'!D289*'COM-Appliance class'!$E73","v":18898.98412725966},{"$f":"E226*'COM-Appliance class'!$B73+'COM S curve-disconnect'!E247*'COM-Appliance class'!$C73+'COM S curve-disconnect'!E268*'COM-Appliance class'!$D73+'COM S curve-disconnect'!E289*'COM-Appliance class'!$E73","v":16794.041511189556},{"$f":"F226*'COM-Appliance class'!$B73+'COM S curve-disconnect'!F247*'COM-Appliance class'!$C73+'COM S curve-disconnect'!F268*'COM-Appliance class'!$D73+'COM S curve-disconnect'!F289*'COM-Appliance class'!$E73","v":18681.488396616351},{"$f":"G226*'COM-Appliance class'!$B73+'COM S curve-disconnect'!G247*'COM-Appliance class'!$C73+'COM S curve-disconnect'!G268*'COM-Appliance class'!$D73+'COM S curve-disconnect'!G289*'COM-Appliance class'!$E73","v":16447.874827217827},{"$f":"H226*'COM-Appliance class'!$B73+'COM S curve-disconnect'!H247*'COM-Appliance class'!$C73+'COM S curve-disconnect'!H268*'COM-Appliance class'!$D73+'COM S curve-disconnect'!H289*'COM-Appliance class'!$E73","v":16884.116887964075},{"$f":"I226*'COM-Appliance class'!$B73+'COM S curve-disconnect'!I247*'COM-Appliance class'!$C73+'COM S curve-disconnect'!I268*'COM-Appliance class'!$D73+'COM S curve-disconnect'!I289*'COM-Appliance class'!$E73","v":19580.430779970411},{"$f":"J226*'COM-Appliance class'!$B73+'COM S curve-disconnect'!J247*'COM-Appliance class'!$C73+'COM S curve-disconnect'!J268*'COM-Appliance class'!$D73+'COM S curve-disconnect'!J289*'COM-Appliance class'!$E73","v":21547.011098937877},{"$f":"K226*'COM-Appliance class'!$B73+'COM S curve-disconnect'!K247*'COM-Appliance class'!$C73+'COM S curve-disconnect'!K268*'COM-Appliance class'!$D73+'COM S curve-disconnect'!K289*'COM-Appliance class'!$E73","v":25794.650390763032},{"$f":"L226*'COM-Appliance class'!$B73+'COM S curve-disconnect'!L247*'COM-Appliance class'!$C73+'COM S curve-disconnect'!L268*'COM-Appliance class'!$D73+'COM S curve-disconnect'!L289*'COM-Appliance class'!$E73","v":25575.516458844333},{"$f":"M226*'COM-Appliance class'!$B73+'COM S curve-disconnect'!M247*'COM-Appliance class'!$C73+'COM S curve-disconnect'!M268*'COM-Appliance class'!$D73+'COM S curve-disconnect'!M289*'COM-Appliance class'!$E73","v":20780.989568192272},{"$f":"N226*'COM-Appliance class'!$B73+'COM S curve-disconnect'!N247*'COM-Appliance class'!$C73+'COM S curve-disconnect'!N268*'COM-Appliance class'!$D73+'COM S curve-disconnect'!N289*'COM-Appliance class'!$E73","v":20683.961906961027},{"$f":"O226*'COM-Appliance class'!$B73+'COM S curve-disconnect'!O247*'COM-Appliance class'!$C73+'COM S curve-disconnect'!O268*'COM-Appliance class'!$D73+'COM S curve-disconnect'!O289*'COM-Appliance class'!$E73","v":23538.355357676555},{"$f":"P226*'COM-Appliance class'!$B73+'COM S curve-disconnect'!P247*'COM-Appliance class'!$C73+'COM S curve-disconnect'!P268*'COM-Appliance class'!$D73+'COM S curve-disconnect'!P289*'COM-Appliance class'!$E73","v":26301.028157897839},{"$f":"Q226*'COM-Appliance class'!$B73+'COM S curve-disconnect'!Q247*'COM-Appliance class'!$C73+'COM S curve-disconnect'!Q268*'COM-Appliance class'!$D73+'COM S curve-disconnect'!Q289*'COM-Appliance class'!$E73","v":18314.075812617266},{"$f":"R226*'COM-Appliance class'!$B73+'COM S curve-disconnect'!R247*'COM-Appliance class'!$C73+'COM S curve-disconnect'!R268*'COM-Appliance class'!$D73+'COM S curve-disconnect'!R289*'COM-Appliance class'!$E73","v":19453.811688445869},{"$f":"S226*'COM-Appliance class'!$B73+'COM S curve-disconnect'!S247*'COM-Appliance class'!$C73+'COM S curve-disconnect'!S268*'COM-Appliance class'!$D73+'COM S curve-disconnect'!S289*'COM-Appliance class'!$E73","v":21144.948967424403},{"$f":"T226*'COM-Appliance class'!$B73+'COM S curve-disconnect'!T247*'COM-Appliance class'!$C73+'COM S curve-disconnect'!T268*'COM-Appliance class'!$D73+'COM S curve-disconnect'!T289*'COM-Appliance class'!$E73","v":23620.553953613933},{"$f":"U226*'COM-Appliance class'!$B73+'COM S curve-disconnect'!U247*'COM-Appliance class'!$C73+'COM S curve-disconnect'!U268*'COM-Appliance class'!$D73+'COM S curve-disconnect'!U289*'COM-Appliance class'!$E73","v":25462.742926478073},{"$f":"V226*'COM-Appliance class'!$B73+'COM S curve-disconnect'!V247*'COM-Appliance class'!$C73+'COM S curve-disconnect'!V268*'COM-Appliance class'!$D73+'COM S curve-disconnect'!V289*'COM-Appliance class'!$E73","v":26138.717472551707},{"$f":"W226*'COM-Appliance class'!$B73+'COM S curve-disconnect'!W247*'COM-Appliance class'!$C73+'COM S curve-disconnect'!W268*'COM-Appliance class'!$D73+'COM S curve-disconnect'!W289*'COM-Appliance class'!$E73","v":27240.024680306771},{"$f":"X226*'COM-Appliance class'!$B73+'COM S curve-disconnect'!X247*'COM-Appliance class'!$C73+'COM S curve-disconnect'!X268*'COM-Appliance class'!$D73+'COM S curve-disconnect'!X289*'COM-Appliance class'!$E73","v":29968.562654149624},{"$f":"Y226*'COM-Appliance class'!$B73+'COM S curve-disconnect'!Y247*'COM-Appliance class'!$C73+'COM S curve-disconnect'!Y268*'COM-Appliance class'!$D73+'COM S curve-disconnect'!Y289*'COM-Appliance class'!$E73","v":32235.597359558808},{"$f":"Z226*'COM-Appliance class'!$B73+'COM S curve-disconnect'!Z247*'COM-Appliance class'!$C73+'COM S curve-disconnect'!Z268*'COM-Appliance class'!$D73+'COM S curve-disconnect'!Z289*'COM-Appliance class'!$E73","v":33515.511836475423},{"$f":"AA226*'COM-Appliance class'!$B73+'COM S curve-disconnect'!AA247*'COM-Appliance class'!$C73+'COM S curve-disconnect'!AA268*'COM-Appliance class'!$D73+'COM S curve-disconnect'!AA289*'COM-Appliance class'!$E73","v":34969.908952184545},{"$f":"AB226*'COM-Appliance class'!$B73+'COM S curve-disconnect'!AB247*'COM-Appliance class'!$C73+'COM S curve-disconnect'!AB268*'COM-Appliance class'!$D73+'COM S curve-disconnect'!AB289*'COM-Appliance class'!$E73","v":35882.425189123758},{"$f":"AC226*'COM-Appliance class'!$B73+'COM S curve-disconnect'!AC247*'COM-Appliance class'!$C73+'COM S curve-disconnect'!AC268*'COM-Appliance class'!$D73+'COM S curve-disconnect'!AC289*'COM-Appliance class'!$E73","v":36542.938286373465},{"$f":"AD226*'COM-Appliance class'!$B73+'COM S curve-disconnect'!AD247*'COM-Appliance class'!$C73+'COM S curve-disconnect'!AD268*'COM-Appliance class'!$D73+'COM S curve-disconnect'!AD289*'COM-Appliance class'!$E73","v":37015.867295821023},{"$f":"AE226*'COM-Appliance class'!$B73+'COM S curve-disconnect'!AE247*'COM-Appliance class'!$C73+'COM S curve-disconnect'!AE268*'COM-Appliance class'!$D73+'COM S curve-disconnect'!AE289*'COM-Appliance class'!$E73","v":37412.201015133862},{"$f":"AF226*'COM-Appliance class'!$B73+'COM S curve-disconnect'!AF247*'COM-Appliance class'!$C73+'COM S curve-disconnect'!AF268*'COM-Appliance class'!$D73+'COM S curve-disconnect'!AF289*'COM-Appliance class'!$E73","v":38149.724699787032},{"$f":"AG226*'COM-Appliance class'!$B73+'COM S curve-disconnect'!AG247*'COM-Appliance class'!$C73+'COM S curve-disconnect'!AG268*'COM-Appliance class'!$D73+'COM S curve-disconnect'!AG289*'COM-Appliance class'!$E73","v":38185.157663666367},{"$f":"AH226*'COM-Appliance class'!$B73+'COM S curve-disconnect'!AH247*'COM-Appliance class'!$C73+'COM S curve-disconnect'!AH268*'COM-Appliance class'!$D73+'COM S curve-disconnect'!AH289*'COM-Appliance class'!$E73","v":38958.837218722823},{"$f":"AI226*'COM-Appliance class'!$B73+'COM S curve-disconnect'!AI247*'COM-Appliance class'!$C73+'COM S curve-disconnect'!AI268*'COM-Appliance class'!$D73+'COM S curve-disconnect'!AI289*'COM-Appliance class'!$E73","v":39008.626135766797},{"$f":"AJ226*'COM-Appliance class'!$B73+'COM S curve-disconnect'!AJ247*'COM-Appliance class'!$C73+'COM S curve-disconnect'!AJ268*'COM-Appliance class'!$D73+'COM S curve-disconnect'!AJ289*'COM-Appliance class'!$E73","v":39058.344844221152},{"$f":"AK226*'COM-Appliance class'!$B73+'COM S curve-disconnect'!AK247*'COM-Appliance class'!$C73+'COM S curve-disconnect'!AK268*'COM-Appliance class'!$D73+'COM S curve-disconnect'!AK289*'COM-Appliance class'!$E73","v":39107.993775516428},{"$f":"AL226*'COM-Appliance class'!$B73+'COM S curve-disconnect'!AL247*'COM-Appliance class'!$C73+'COM S curve-disconnect'!AL268*'COM-Appliance class'!$D73+'COM S curve-disconnect'!AL289*'COM-Appliance class'!$E73","v":39157.573358405134},{"$f":"AM226*'COM-Appliance class'!$B73+'COM S curve-disconnect'!AM247*'COM-Appliance class'!$C73+'COM S curve-disconnect'!AM268*'COM-Appliance class'!$D73+'COM S curve-disconnect'!AM289*'COM-Appliance class'!$E73","v":39207.08401897864},{"$f":"AN226*'COM-Appliance class'!$B73+'COM S curve-disconnect'!AN247*'COM-Appliance class'!$C73+'COM S curve-disconnect'!AN268*'COM-Appliance class'!$D73+'COM S curve-disconnect'!AN289*'COM-Appliance class'!$E73","v":39256.526180683795},{"$f":"AO226*'COM-Appliance class'!$B73+'COM S curve-disconnect'!AO247*'COM-Appliance class'!$C73+'COM S curve-disconnect'!AO268*'COM-Appliance class'!$D73+'COM S curve-disconnect'!AO289*'COM-Appliance class'!$E73","v":39305.900264339798},{"$f":"AP226*'COM-Appliance class'!$B73+'COM S curve-disconnect'!AP247*'COM-Appliance class'!$C73+'COM S curve-disconnect'!AP268*'COM-Appliance class'!$D73+'COM S curve-disconnect'!AP289*'COM-Appliance class'!$E73","v":39355.206688154511},{"$f":"AQ226*'COM-Appliance class'!$B73+'COM S curve-disconnect'!AQ247*'COM-Appliance class'!$C73+'COM S curve-disconnect'!AQ268*'COM-Appliance class'!$D73+'COM S curve-disconnect'!AQ289*'COM-Appliance class'!$E73","v":39404.44586774116},{"$f":"AR226*'COM-Appliance class'!$B73+'COM S curve-disconnect'!AR247*'COM-Appliance class'!$C73+'COM S curve-disconnect'!AR268*'COM-Appliance class'!$D73+'COM S curve-disconnect'!AR289*'COM-Appliance class'!$E73","v":39453.618216134411},{"$f":"AS226*'COM-Appliance class'!$B73+'COM S curve-disconnect'!AS247*'COM-Appliance class'!$C73+'COM S curve-disconnect'!AS268*'COM-Appliance class'!$D73+'COM S curve-disconnect'!AS289*'COM-Appliance class'!$E73","v":39502.724143806852},{"$f":"AT226*'COM-Appliance class'!$B73+'COM S curve-disconnect'!AT247*'COM-Appliance class'!$C73+'COM S curve-disconnect'!AT268*'COM-Appliance class'!$D73+'COM S curve-disconnect'!AT289*'COM-Appliance class'!$E73","v":39551.764058684857},{"$f":"AU226*'COM-Appliance class'!$B73+'COM S curve-disconnect'!AU247*'COM-Appliance class'!$C73+'COM S curve-disconnect'!AU268*'COM-Appliance class'!$D73+'COM S curve-disconnect'!AU289*'COM-Appliance class'!$E73","v":39600.738366164907},{"$f":"AV226*'COM-Appliance class'!$B73+'COM S curve-disconnect'!AV247*'COM-Appliance class'!$C73+'COM S curve-disconnect'!AV268*'COM-Appliance class'!$D73+'COM S curve-disconnect'!AV289*'COM-Appliance class'!$E73","v":39649.647469129239},{"$f":"AW226*'COM-Appliance class'!$B73+'COM S curve-disconnect'!AW247*'COM-Appliance class'!$C73+'COM S curve-disconnect'!AW268*'COM-Appliance class'!$D73+'COM S curve-disconnect'!AW289*'COM-Appliance class'!$E73","v":39698.491767961925},{"$f":"AX226*'COM-Appliance class'!$B73+'COM S curve-disconnect'!AX247*'COM-Appliance class'!$C73+'COM S curve-disconnect'!AX268*'COM-Appliance class'!$D73+'COM S curve-disconnect'!AX289*'COM-Appliance class'!$E73","v":39747.27166056438},{"$f":"AY226*'COM-Appliance class'!$B73+'COM S curve-disconnect'!AY247*'COM-Appliance class'!$C73+'COM S curve-disconnect'!AY268*'COM-Appliance class'!$D73+'COM S curve-disconnect'!AY289*'COM-Appliance class'!$E73","v":39795.987542371135},{"$f":"AZ226*'COM-Appliance class'!$B73+'COM S curve-disconnect'!AZ247*'COM-Appliance class'!$C73+'COM S curve-disconnect'!AZ268*'COM-Appliance class'!$D73+'COM S curve-disconnect'!AZ289*'COM-Appliance class'!$E73","v":39844.639806365289},{"$f":"BA226*'COM-Appliance class'!$B73+'COM S curve-disconnect'!BA247*'COM-Appliance class'!$C73+'COM S curve-disconnect'!BA268*'COM-Appliance class'!$D73+'COM S curve-disconnect'!BA289*'COM-Appliance class'!$E73","v":39893.228843094024},{"$f":"BB226*'COM-Appliance class'!$B73+'COM S curve-disconnect'!BB247*'COM-Appliance class'!$C73+'COM S curve-disconnect'!BB268*'COM-Appliance class'!$D73+'COM S curve-disconnect'!BB289*'COM-Appliance class'!$E73","v":39941.755040683733},{"$f":"BC226*'COM-Appliance class'!$B73+'COM S curve-disconnect'!BC247*'COM-Appliance class'!$C73+'COM S curve-disconnect'!BC268*'COM-Appliance class'!$D73+'COM S curve-disconnect'!BC289*'COM-Appliance class'!$E73","v":39990.218784855577},{"$f":"BD226*'COM-Appliance class'!$B73+'COM S curve-disconnect'!BD247*'COM-Appliance class'!$C73+'COM S curve-disconnect'!BD268*'COM-Appliance class'!$D73+'COM S curve-disconnect'!BD289*'COM-Appliance class'!$E73","v":40038.620458940255},{"$f":"BE226*'COM-Appliance class'!$B73+'COM S curve-disconnect'!BE247*'COM-Appliance class'!$C73+'COM S curve-disconnect'!BE268*'COM-Appliance class'!$D73+'COM S curve-disconnect'!BE289*'COM-Appliance class'!$E73","v":40086.960443893382},{"$f":"BF226*'COM-Appliance class'!$B73+'COM S curve-disconnect'!BF247*'COM-Appliance class'!$C73+'COM S curve-disconnect'!BF268*'COM-Appliance class'!$D73+'COM S curve-disconnect'!BF289*'COM-Appliance class'!$E73","v":40135.239118310172},{"$f":"BG226*'COM-Appliance class'!$B73+'COM S curve-disconnect'!BG247*'COM-Appliance class'!$C73+'COM S curve-disconnect'!BG268*'COM-Appliance class'!$D73+'COM S curve-disconnect'!BG289*'COM-Appliance class'!$E73","v":40183.456858440404},{"$f":"BH226*'COM-Appliance class'!$B73+'COM S curve-disconnect'!BH247*'COM-Appliance class'!$C73+'COM S curve-disconnect'!BH268*'COM-Appliance class'!$D73+'COM S curve-disconnect'!BH289*'COM-Appliance class'!$E73","v":40231.614038203217},{"$f":"BI226*'COM-Appliance class'!$B73+'COM S curve-disconnect'!BI247*'COM-Appliance class'!$C73+'COM S curve-disconnect'!BI268*'COM-Appliance class'!$D73+'COM S curve-disconnect'!BI289*'COM-Appliance class'!$E73","v":40279.71102920171},{"$f":"BJ226*'COM-Appliance class'!$B73+'COM S curve-disconnect'!BJ247*'COM-Appliance class'!$C73+'COM S curve-disconnect'!BJ268*'COM-Appliance class'!$D73+'COM S curve-disconnect'!BJ289*'COM-Appliance class'!$E73","v":40327.748200737442},{"$f":"BK226*'COM-Appliance class'!$B73+'COM S curve-disconnect'!BK247*'COM-Appliance class'!$C73+'COM S curve-disconnect'!BK268*'COM-Appliance class'!$D73+'COM S curve-disconnect'!BK289*'COM-Appliance class'!$E73","v":40375.725919825105},{"$f":"BL226*'COM-Appliance class'!$B73+'COM S curve-disconnect'!BL247*'COM-Appliance class'!$C73+'COM S curve-disconnect'!BL268*'COM-Appliance class'!$D73+'COM S curve-disconnect'!BL289*'COM-Appliance class'!$E73","v":40423.644551206671},{"$f":"BM226*'COM-Appliance class'!$B73+'COM S curve-disconnect'!BM247*'COM-Appliance class'!$C73+'COM S curve-disconnect'!BM268*'COM-Appliance class'!$D73+'COM S curve-disconnect'!BM289*'COM-Appliance class'!$E73","v":40471.504457365962},{"$f":"BN226*'COM-Appliance class'!$B73+'COM S curve-disconnect'!BN247*'COM-Appliance class'!$C73+'COM S curve-disconnect'!BN268*'COM-Appliance class'!$D73+'COM S curve-disconnect'!BN289*'COM-Appliance class'!$E73","v":40519.305998542484},{"$f":"BO226*'COM-Appliance class'!$B73+'COM S curve-disconnect'!BO247*'COM-Appliance class'!$C73+'COM S curve-disconnect'!BO268*'COM-Appliance class'!$D73+'COM S curve-disconnect'!BO289*'COM-Appliance class'!$E73","v":40567.049532745965},{"$f":"BP226*'COM-Appliance class'!$B73+'COM S curve-disconnect'!BP247*'COM-Appliance class'!$C73+'COM S curve-disconnect'!BP268*'COM-Appliance class'!$D73+'COM S curve-disconnect'!BP289*'COM-Appliance class'!$E73","v":40614.735415769988},{"$f":"BQ226*'COM-Appliance class'!$B73+'COM S curve-disconnect'!BQ247*'COM-Appliance class'!$C73+'COM S curve-disconnect'!BQ268*'COM-Appliance class'!$D73+'COM S curve-disconnect'!BQ289*'COM-Appliance class'!$E73","v":40662.364001206239},{"$f":"BR226*'COM-Appliance class'!$B73+'COM S curve-disconnect'!BR247*'COM-Appliance class'!$C73+'COM S curve-disconnect'!BR268*'COM-Appliance class'!$D73+'COM S curve-disconnect'!BR289*'COM-Appliance class'!$E73","v":40709.935640458083},{"$f":"BS226*'COM-Appliance class'!$B73+'COM S curve-disconnect'!BS247*'COM-Appliance class'!$C73+'COM S curve-disconnect'!BS268*'COM-Appliance class'!$D73+'COM S curve-disconnect'!BS289*'COM-Appliance class'!$E73","v":40757.45068275457},{"$f":"BT226*'COM-Appliance class'!$B73+'COM S curve-disconnect'!BT247*'COM-Appliance class'!$C73+'COM S curve-disconnect'!BT268*'COM-Appliance class'!$D73+'COM S curve-disconnect'!BT289*'COM-Appliance class'!$E73","v":40804.909475163891},{"$f":"BU226*'COM-Appliance class'!$B73+'COM S curve-disconnect'!BU247*'COM-Appliance class'!$C73+'COM S curve-disconnect'!BU268*'COM-Appliance class'!$D73+'COM S curve-disconnect'!BU289*'COM-Appliance class'!$E73","v":40852.312362607146},{"$f":"BV226*'COM-Appliance class'!$B73+'COM S curve-disconnect'!BV247*'COM-Appliance class'!$C73+'COM S curve-disconnect'!BV268*'COM-Appliance class'!$D73+'COM S curve-disconnect'!BV289*'COM-Appliance class'!$E73","v":40899.659687871637},{"$f":"BW226*'COM-Appliance class'!$B73+'COM S curve-disconnect'!BW247*'COM-Appliance class'!$C73+'COM S curve-disconnect'!BW268*'COM-Appliance class'!$D73+'COM S curve-disconnect'!BW289*'COM-Appliance class'!$E73","v":40946.951791624546},{"$f":"BX226*'COM-Appliance class'!$B73+'COM S curve-disconnect'!BX247*'COM-Appliance class'!$C73+'COM S curve-disconnect'!BX268*'COM-Appliance class'!$D73+'COM S curve-disconnect'!BX289*'COM-Appliance class'!$E73","v":40994.189012425908},{"$f":"BY226*'COM-Appliance class'!$B73+'COM S curve-disconnect'!BY247*'COM-Appliance class'!$C73+'COM S curve-disconnect'!BY268*'COM-Appliance class'!$D73+'COM S curve-disconnect'!BY289*'COM-Appliance class'!$E73","v":41041.371686742285},{"$f":"BZ226*'COM-Appliance class'!$B73+'COM S curve-disconnect'!BZ247*'COM-Appliance class'!$C73+'COM S curve-disconnect'!BZ268*'COM-Appliance class'!$D73+'COM S curve-disconnect'!BZ289*'COM-Appliance class'!$E73","v":41088.500148959451},{"$f":"CA226*'COM-Appliance class'!$B73+'COM S curve-disconnect'!CA247*'COM-Appliance class'!$C73+'COM S curve-disconnect'!CA268*'COM-Appliance class'!$D73+'COM S curve-disconnect'!CA289*'COM-Appliance class'!$E73","v":41135.574731395951},{"$f":"CB226*'COM-Appliance class'!$B73+'COM S curve-disconnect'!CB247*'COM-Appliance class'!$C73+'COM S curve-disconnect'!CB268*'COM-Appliance class'!$D73+'COM S curve-disconnect'!CB289*'COM-Appliance class'!$E73","v":41182.595764315643},{"$f":"CC226*'COM-Appliance class'!$B73+'COM S curve-disconnect'!CC247*'COM-Appliance class'!$C73+'COM S curve-disconnect'!CC268*'COM-Appliance class'!$D73+'COM S curve-disconnect'!CC289*'COM-Appliance class'!$E73","v":41229.563575940956},{"$f":"CD226*'COM-Appliance class'!$B73+'COM S curve-disconnect'!CD247*'COM-Appliance class'!$C73+'COM S curve-disconnect'!CD268*'COM-Appliance class'!$D73+'COM S curve-disconnect'!CD289*'COM-Appliance class'!$E73","v":41276.478492465467}]
["Boroondara (C)",null,{"$f":"C227*'COM-Appliance class'!$B74+'COM S curve-disconnect'!C248*'COM-Appliance class'!$C74+'COM S curve-disconnect'!C269*'COM-Appliance class'!$D74+'COM S curve-disconnect'!C290*'COM-Appliance class'!$E74","v":18365.071180812985},{"$f":"D227*'COM-Appliance class'!$B74+'COM S curve-disconnect'!D248*'COM-Appliance class'!$C74+'COM S curve-disconnect'!D269*'COM-Appliance class'!$D74+'COM S curve-disconnect'!D290*'COM-Appliance class'!$E74","v":22573.041675995926},{"$f":"E227*'COM-Appliance class'!$B74+'COM S curve-disconnect'!E248*'COM-Appliance class'!$C74+'COM S curve-disconnect'!E269*'COM-Appliance class'!$D74+'COM S curve-disconnect'!E290*'COM-Appliance class'!$E74","v":20058.887630562578},{"$f":"F227*'COM-Appliance class'!$B74+'COM S curve-disconnect'!F248*'COM-Appliance class'!$C74+'COM S curve-disconnect'!F269*'COM-Appliance class'!$D74+'COM S curve-disconnect'!F290*'COM-Appliance class'!$E74","v":22313.263681628428},{"$f":"G227*'COM-Appliance class'!$B74+'COM S curve-disconnect'!G248*'COM-Appliance class'!$C74+'COM S curve-disconnect'!G269*'COM-Appliance class'!$D74+'COM S curve-disconnect'!G290*'COM-Appliance class'!$E74","v":19645.424402511911},{"$f":"H227*'COM-Appliance class'!$B74+'COM S curve-disconnect'!H248*'COM-Appliance class'!$C74+'COM S curve-disconnect'!H269*'COM-Appliance class'!$D74+'COM S curve-disconnect'!H290*'COM-Appliance class'!$E74","v":20166.474113530174},{"$f":"I227*'COM-Appliance class'!$B74+'COM S curve-disconnect'!I248*'COM-Appliance class'!$C74+'COM S curve-disconnect'!I269*'COM-Appliance class'!$D74+'COM S curve-disconnect'!I290*'COM-Appliance class'!$E74","v":23386.96498467898},{"$f":"J227*'COM-Appliance class'!$B74+'COM S curve-disconnect'!J248*'COM-Appliance class'!$C74+'COM S curve-disconnect'!J269*'COM-Appliance class'!$D74+'COM S curve-disconnect'!J290*'COM-Appliance class'!$E74","v":25735.858406691852},{"$f":"K227*'COM-Appliance class'!$B74+'COM S curve-disconnect'!K248*'COM-Appliance class'!$C74+'COM S curve-disconnect'!K269*'COM-Appliance class'!$D74+'COM S curve-disconnect'!K290*'COM-Appliance class'!$E74","v":30809.26013629423},{"$f":"L227*'COM-Appliance class'!$B74+'COM S curve-disconnect'!L248*'COM-Appliance class'!$C74+'COM S curve-disconnect'!L269*'COM-Appliance class'!$D74+'COM S curve-disconnect'!L290*'COM-Appliance class'!$E74","v":30547.525466085637},{"$f":"M227*'COM-Appliance class'!$B74+'COM S curve-disconnect'!M248*'COM-Appliance class'!$C74+'COM S curve-disconnect'!M269*'COM-Appliance class'!$D74+'COM S curve-disconnect'!M290*'COM-Appliance class'!$E74","v":24820.918438395369},{"$f":"N227*'COM-Appliance class'!$B74+'COM S curve-disconnect'!N248*'COM-Appliance class'!$C74+'COM S curve-disconnect'!N269*'COM-Appliance class'!$D74+'COM S curve-disconnect'!N290*'COM-Appliance class'!$E74","v":24705.028111912783},{"$f":"O227*'COM-Appliance class'!$B74+'COM S curve-disconnect'!O248*'COM-Appliance class'!$C74+'COM S curve-disconnect'!O269*'COM-Appliance class'!$D74+'COM S curve-disconnect'!O290*'COM-Appliance class'!$E74","v":28114.330002894061},{"$f":"P227*'COM-Appliance class'!$B74+'COM S curve-disconnect'!P248*'COM-Appliance class'!$C74+'COM S curve-disconnect'!P269*'COM-Appliance class'!$D74+'COM S curve-disconnect'!P290*'COM-Appliance class'!$E74","v":31414.08028770356},{"$f":"Q227*'COM-Appliance class'!$B74+'COM S curve-disconnect'!Q248*'COM-Appliance class'!$C74+'COM S curve-disconnect'!Q269*'COM-Appliance class'!$D74+'COM S curve-disconnect'!Q290*'COM-Appliance class'!$E74","v":21874.424243749119},{"$f":"R227*'COM-Appliance class'!$B74+'COM S curve-disconnect'!R248*'COM-Appliance class'!$C74+'COM S curve-disconnect'!R269*'COM-Appliance class'!$D74+'COM S curve-disconnect'!R290*'COM-Appliance class'!$E74","v":23235.73050505223},{"$f":"S227*'COM-Appliance class'!$B74+'COM S curve-disconnect'!S248*'COM-Appliance class'!$C74+'COM S curve-disconnect'!S269*'COM-Appliance class'!$D74+'COM S curve-disconnect'!S290*'COM-Appliance class'!$E74","v":25255.633375024539},{"$f":"T227*'COM-Appliance class'!$B74+'COM S curve-disconnect'!T248*'COM-Appliance class'!$C74+'COM S curve-disconnect'!T269*'COM-Appliance class'!$D74+'COM S curve-disconnect'!T290*'COM-Appliance class'!$E74","v":28212.50841922102},{"$f":"U227*'COM-Appliance class'!$B74+'COM S curve-disconnect'!U248*'COM-Appliance class'!$C74+'COM S curve-disconnect'!U269*'COM-Appliance class'!$D74+'COM S curve-disconnect'!U290*'COM-Appliance class'!$E74","v":30412.828191940564},{"$f":"V227*'COM-Appliance class'!$B74+'COM S curve-disconnect'!V248*'COM-Appliance class'!$C74+'COM S curve-disconnect'!V269*'COM-Appliance class'!$D74+'COM S curve-disconnect'!V290*'COM-Appliance class'!$E74","v":31220.215588939514},{"$f":"W227*'COM-Appliance class'!$B74+'COM S curve-disconnect'!W248*'COM-Appliance class'!$C74+'COM S curve-disconnect'!W269*'COM-Appliance class'!$D74+'COM S curve-disconnect'!W290*'COM-Appliance class'!$E74","v":32535.6224558553},{"$f":"X227*'COM-Appliance class'!$B74+'COM S curve-disconnect'!X248*'COM-Appliance class'!$C74+'COM S curve-disconnect'!X269*'COM-Appliance class'!$D74+'COM S curve-disconnect'!X290*'COM-Appliance class'!$E74","v":35794.60193238988},{"$f":"Y227*'COM-Appliance class'!$B74+'COM S curve-disconnect'!Y248*'COM-Appliance class'!$C74+'COM S curve-disconnect'!Y269*'COM-Appliance class'!$D74+'COM S curve-disconnect'!Y290*'COM-Appliance class'!$E74","v":38502.359584417238},{"$f":"Z227*'COM-Appliance class'!$B74+'COM S curve-disconnect'!Z248*'COM-Appliance class'!$C74+'COM S curve-disconnect'!Z269*'COM-Appliance class'!$D74+'COM S curve-disconnect'!Z290*'COM-Appliance class'!$E74","v":40031.095871754311},{"$f":"AA227*'COM-Appliance class'!$B74+'COM S curve-disconnect'!AA248*'COM-Appliance class'!$C74+'COM S curve-disconnect'!AA269*'COM-Appliance class'!$D74+'COM S curve-disconnect'!AA290*'COM-Appliance class'!$E74","v":41768.235100259},{"$f":"AB227*'COM-Appliance class'!$B74+'COM S curve-disconnect'!AB248*'COM-Appliance class'!$C74+'COM S curve-disconnect'!AB269*'COM-Appliance class'!$D74+'COM S curve-disconnect'!AB290*'COM-Appliance class'!$E74","v":42858.149082288386},{"$f":"AC227*'COM-Appliance class'!$B74+'COM S curve-disconnect'!AC248*'COM-Appliance class'!$C74+'COM S curve-disconnect'!AC269*'COM-Appliance class'!$D74+'COM S curve-disconnect'!AC290*'COM-Appliance class'!$E74","v":43647.069247063446},{"$f":"AD227*'COM-Appliance class'!$B74+'COM S curve-disconnect'!AD248*'COM-Appliance class'!$C74+'COM S curve-disconnect'!AD269*'COM-Appliance class'!$D74+'COM S curve-disconnect'!AD290*'COM-Appliance class'!$E74","v":44211.938034092527},{"$f":"AE227*'COM-Appliance class'!$B74+'COM S curve-disconnect'!AE248*'COM-Appliance class'!$C74+'COM S curve-disconnect'!AE269*'COM-Appliance class'!$D74+'COM S curve-disconnect'!AE290*'COM-Appliance class'!$E74","v":44685.321021421827},{"$f":"AF227*'COM-Appliance class'!$B74+'COM S curve-disconnect'!AF248*'COM-Appliance class'!$C74+'COM S curve-disconnect'!AF269*'COM-Appliance class'!$D74+'COM S curve-disconnect'!AF290*'COM-Appliance class'!$E74","v":45566.223019042809},{"$f":"AG227*'COM-Appliance class'!$B74+'COM S curve-disconnect'!AG248*'COM-Appliance class'!$C74+'COM S curve-disconnect'!AG269*'COM-Appliance class'!$D74+'COM S curve-disconnect'!AG290*'COM-Appliance class'!$E74","v":45608.544329276541},{"$f":"AH227*'COM-Appliance class'!$B74+'COM S curve-disconnect'!AH248*'COM-Appliance class'!$C74+'COM S curve-disconnect'!AH269*'COM-Appliance class'!$D74+'COM S curve-disconnect'!AH290*'COM-Appliance class'!$E74","v":46532.631080318635},{"$f":"AI227*'COM-Appliance class'!$B74+'COM S curve-disconnect'!AI248*'COM-Appliance class'!$C74+'COM S curve-disconnect'!AI269*'COM-Appliance class'!$D74+'COM S curve-disconnect'!AI290*'COM-Appliance class'!$E74","v":46592.099213201778},{"$f":"AJ227*'COM-Appliance class'!$B74+'COM S curve-disconnect'!AJ248*'COM-Appliance class'!$C74+'COM S curve-disconnect'!AJ269*'COM-Appliance class'!$D74+'COM S curve-disconnect'!AJ290*'COM-Appliance class'!$E74","v":46651.483488592436},{"$f":"AK227*'COM-Appliance class'!$B74+'COM S curve-disconnect'!AK248*'COM-Appliance class'!$C74+'COM S curve-disconnect'!AK269*'COM-Appliance class'!$D74+'COM S curve-disconnect'!AK290*'COM-Appliance class'!$E74","v":46710.784421793418},{"$f":"AL227*'COM-Appliance class'!$B74+'COM S curve-disconnect'!AL248*'COM-Appliance class'!$C74+'COM S curve-disconnect'!AL269*'COM-Appliance class'!$D74+'COM S curve-disconnect'!AL290*'COM-Appliance class'!$E74","v":46770.002524908858},{"$f":"AM227*'COM-Appliance class'!$B74+'COM S curve-disconnect'!AM248*'COM-Appliance class'!$C74+'COM S curve-disconnect'!AM269*'COM-Appliance class'!$D74+'COM S curve-disconnect'!AM290*'COM-Appliance class'!$E74","v":46829.138306864457},{"$f":"AN227*'COM-Appliance class'!$B74+'COM S curve-disconnect'!AN248*'COM-Appliance class'!$C74+'COM S curve-disconnect'!AN269*'COM-Appliance class'!$D74+'COM S curve-disconnect'!AN290*'COM-Appliance class'!$E74","v":46888.192273427238},{"$f":"AO227*'COM-Appliance class'!$B74+'COM S curve-disconnect'!AO248*'COM-Appliance class'!$C74+'COM S curve-disconnect'!AO269*'COM-Appliance class'!$D74+'COM S curve-disconnect'!AO290*'COM-Appliance class'!$E74","v":46947.164927225778},{"$f":"AP227*'COM-Appliance class'!$B74+'COM S curve-disconnect'!AP248*'COM-Appliance class'!$C74+'COM S curve-disconnect'!AP269*'COM-Appliance class'!$D74+'COM S curve-disconnect'!AP290*'COM-Appliance class'!$E74","v":47006.056767769653},{"$f":"AQ227*'COM-Appliance class'!$B74+'COM S curve-disconnect'!AQ248*'COM-Appliance class'!$C74+'COM S curve-disconnect'!AQ269*'COM-Appliance class'!$D74+'COM S curve-disconnect'!AQ290*'COM-Appliance class'!$E74","v":47064.868291469393},{"$f":"AR227*'COM-Appliance class'!$B74+'COM S curve-disconnect'!AR248*'COM-Appliance class'!$C74+'COM S curve-disconnect'!AR269*'COM-Appliance class'!$D74+'COM S curve-disconnect'!AR290*'COM-Appliance class'!$E74","v":47123.599991655676},{"$f":"AS227*'COM-Appliance class'!$B74+'COM S curve-disconnect'!AS248*'COM-Appliance class'!$C74+'COM S curve-disconnect'!AS269*'COM-Appliance class'!$D74+'COM S curve-disconnect'!AS290*'COM-Appliance class'!$E74","v":47182.252358599013},{"$f":"AT227*'COM-Appliance class'!$B74+'COM S curve-disconnect'!AT248*'COM-Appliance class'!$C74+'COM S curve-disconnect'!AT269*'COM-Appliance class'!$D74+'COM S curve-disconnect'!AT290*'COM-Appliance class'!$E74","v":47240.82587952874},{"$f":"AU227*'COM-Appliance class'!$B74+'COM S curve-disconnect'!AU248*'COM-Appliance class'!$C74+'COM S curve-disconnect'!AU269*'COM-Appliance class'!$D74+'COM S curve-disconnect'!AU290*'COM-Appliance class'!$E74","v":47299.321038652415},{"$f":"AV227*'COM-Appliance class'!$B74+'COM S curve-disconnect'!AV248*'COM-Appliance class'!$C74+'COM S curve-disconnect'!AV269*'COM-Appliance class'!$D74+'COM S curve-disconnect'!AV290*'COM-Appliance class'!$E74","v":47357.738317174662},{"$f":"AW227*'COM-Appliance class'!$B74+'COM S curve-disconnect'!AW248*'COM-Appliance class'!$C74+'COM S curve-disconnect'!AW269*'COM-Appliance class'!$D74+'COM S curve-disconnect'!AW290*'COM-Appliance class'!$E74","v":47416.078193316192},{"$f":"AX227*'COM-Appliance class'!$B74+'COM S curve-disconnect'!AX248*'COM-Appliance class'!$C74+'COM S curve-disconnect'!AX269*'COM-Appliance class'!$D74+'COM S curve-disconnect'!AX290*'COM-Appliance class'!$E74","v":47474.341142332458},{"$f":"AY227*'COM-Appliance class'!$B74+'COM S curve-disconnect'!AY248*'COM-Appliance class'!$C74+'COM S curve-disconnect'!AY269*'COM-Appliance class'!$D74+'COM S curve-disconnect'!AY290*'COM-Appliance class'!$E74","v":47532.527636532468},{"$f":"AZ227*'COM-Appliance class'!$B74+'COM S curve-disconnect'!AZ248*'COM-Appliance class'!$C74+'COM S curve-disconnect'!AZ269*'COM-Appliance class'!$D74+'COM S curve-disconnect'!AZ290*'COM-Appliance class'!$E74","v":47590.638145297184},{"$f":"BA227*'COM-Appliance class'!$B74+'COM S curve-disconnect'!BA248*'COM-Appliance class'!$C74+'COM S curve-disconnect'!BA269*'COM-Appliance class'!$D74+'COM S curve-disconnect'!BA290*'COM-Appliance class'!$E74","v":47648.673135098157},{"$f":"BB227*'COM-Appliance class'!$B74+'COM S curve-disconnect'!BB248*'COM-Appliance class'!$C74+'COM S curve-disconnect'!BB269*'COM-Appliance class'!$D74+'COM S curve-disconnect'!BB290*'COM-Appliance class'!$E74","v":47706.63306951549},{"$f":"BC227*'COM-Appliance class'!$B74+'COM S curve-disconnect'!BC248*'COM-Appliance class'!$C74+'COM S curve-disconnect'!BC269*'COM-Appliance class'!$D74+'COM S curve-disconnect'!BC290*'COM-Appliance class'!$E74","v":47764.518409256474},{"$f":"BD227*'COM-Appliance class'!$B74+'COM S curve-disconnect'!BD248*'COM-Appliance class'!$C74+'COM S curve-disconnect'!BD269*'COM-Appliance class'!$D74+'COM S curve-disconnect'!BD290*'COM-Appliance class'!$E74","v":47822.329612173227},{"$f":"BE227*'COM-Appliance class'!$B74+'COM S curve-disconnect'!BE248*'COM-Appliance class'!$C74+'COM S curve-disconnect'!BE269*'COM-Appliance class'!$D74+'COM S curve-disconnect'!BE290*'COM-Appliance class'!$E74","v":47880.067133281045},{"$f":"BF227*'COM-Appliance class'!$B74+'COM S curve-disconnect'!BF248*'COM-Appliance class'!$C74+'COM S curve-disconnect'!BF269*'COM-Appliance class'!$D74+'COM S curve-disconnect'!BF290*'COM-Appliance class'!$E74","v":47937.73142477595},{"$f":"BG227*'COM-Appliance class'!$B74+'COM S curve-disconnect'!BG248*'COM-Appliance class'!$C74+'COM S curve-disconnect'!BG269*'COM-Appliance class'!$D74+'COM S curve-disconnect'!BG290*'COM-Appliance class'!$E74","v":47995.322936052595},{"$f":"BH227*'COM-Appliance class'!$B74+'COM S curve-disconnect'!BH248*'COM-Appliance class'!$C74+'COM S curve-disconnect'!BH269*'COM-Appliance class'!$D74+'COM S curve-disconnect'!BH290*'COM-Appliance class'!$E74","v":48052.842113721854},{"$f":"BI227*'COM-Appliance class'!$B74+'COM S curve-disconnect'!BI248*'COM-Appliance class'!$C74+'COM S curve-disconnect'!BI269*'COM-Appliance class'!$D74+'COM S curve-disconnect'!BI290*'COM-Appliance class'!$E74","v":48110.289401628354},{"$f":"BJ227*'COM-Appliance class'!$B74+'COM S curve-disconnect'!BJ248*'COM-Appliance class'!$C74+'COM S curve-disconnect'!BJ269*'COM-Appliance class'!$D74+'COM S curve-disconnect'!BJ290*'COM-Appliance class'!$E74","v":48167.665240867718},{"$f":"BK227*'COM-Appliance class'!$B74+'COM S curve-disconnect'!BK248*'COM-Appliance class'!$C74+'COM S curve-disconnect'!BK269*'COM-Appliance class'!$D74+'COM S curve-disconnect'!BK290*'COM-Appliance class'!$E74","v":48224.970069804156},{"$f":"BL227*'COM-Appliance class'!$B74+'COM S curve-disconnect'!BL248*'COM-Appliance class'!$C74+'COM S curve-disconnect'!BL269*'COM-Appliance class'!$D74+'COM S curve-disconnect'!BL290*'COM-Appliance class'!$E74","v":48282.204324087303},{"$f":"BM227*'COM-Appliance class'!$B74+'COM S curve-disconnect'!BM248*'COM-Appliance class'!$C74+'COM S curve-disconnect'!BM269*'COM-Appliance class'!$D74+'COM S curve-disconnect'!BM290*'COM-Appliance class'!$E74","v":48339.368436669654},{"$f":"BN227*'COM-Appliance class'!$B74+'COM S curve-disconnect'!BN248*'COM-Appliance class'!$C74+'COM S curve-disconnect'!BN269*'COM-Appliance class'!$D74+'COM S curve-disconnect'!BN290*'COM-Appliance class'!$E74","v":48396.462837823128},{"$f":"BO227*'COM-Appliance class'!$B74+'COM S curve-disconnect'!BO248*'COM-Appliance class'!$C74+'COM S curve-disconnect'!BO269*'COM-Appliance class'!$D74+'COM S curve-disconnect'!BO290*'COM-Appliance class'!$E74","v":48453.487955156277},{"$f":"BP227*'COM-Appliance class'!$B74+'COM S curve-disconnect'!BP248*'COM-Appliance class'!$C74+'COM S curve-disconnect'!BP269*'COM-Appliance class'!$D74+'COM S curve-disconnect'!BP290*'COM-Appliance class'!$E74","v":48510.444213630792},{"$f":"BQ227*'COM-Appliance class'!$B74+'COM S curve-disconnect'!BQ248*'COM-Appliance class'!$C74+'COM S curve-disconnect'!BQ269*'COM-Appliance class'!$D74+'COM S curve-disconnect'!BQ290*'COM-Appliance class'!$E74","v":48567.332035578336},{"$f":"BR227*'COM-Appliance class'!$B74+'COM S curve-disconnect'!BR248*'COM-Appliance class'!$C74+'COM S curve-disconnect'!BR269*'COM-Appliance class'!$D74+'COM S curve-disconnect'!BR290*'COM-Appliance class'!$E74","v":48624.151840716884},{"$f":"BS227*'COM-Appliance class'!$B74+'COM S curve-disconnect'!BS248*'COM-Appliance class'!$C74+'COM S curve-disconnect'!BS269*'COM-Appliance class'!$D74+'COM S curve-disconnect'!BS290*'COM-Appliance class'!$E74","v":48680.904046167358},{"$f":"BT227*'COM-Appliance class'!$B74+'COM S curve-disconnect'!BT248*'COM-Appliance class'!$C74+'COM S curve-disconnect'!BT269*'COM-Appliance class'!$D74+'COM S curve-disconnect'!BT290*'COM-Appliance class'!$E74","v":48737.589066469736},{"$f":"BU227*'COM-Appliance class'!$B74+'COM S curve-disconnect'!BU248*'COM-Appliance class'!$C74+'COM S curve-disconnect'!BU269*'COM-Appliance class'!$D74+'COM S curve-disconnect'!BU290*'COM-Appliance class'!$E74","v":48794.207313599516},{"$f":"BV227*'COM-Appliance class'!$B74+'COM S curve-disconnect'!BV248*'COM-Appliance class'!$C74+'COM S curve-disconnect'!BV269*'COM-Appliance class'!$D74+'COM S curve-disconnect'!BV290*'COM-Appliance class'!$E74","v":48850.759196983592},{"$f":"BW227*'COM-Appliance class'!$B74+'COM S curve-disconnect'!BW248*'COM-Appliance class'!$C74+'COM S curve-disconnect'!BW269*'COM-Appliance class'!$D74+'COM S curve-disconnect'!BW290*'COM-Appliance class'!$E74","v":48907.245123516564},{"$f":"BX227*'COM-Appliance class'!$B74+'COM S curve-disconnect'!BX248*'COM-Appliance class'!$C74+'COM S curve-disconnect'!BX269*'COM-Appliance class'!$D74+'COM S curve-disconnect'!BX290*'COM-Appliance class'!$E74","v":48963.665497576207},{"$f":"BY227*'COM-Appliance class'!$B74+'COM S curve-disconnect'!BY248*'COM-Appliance class'!$C74+'COM S curve-disconnect'!BY269*'COM-Appliance class'!$D74+'COM S curve-disconnect'!BY290*'COM-Appliance class'!$E74","v":49020.020721039895},{"$f":"BZ227*'COM-Appliance class'!$B74+'COM S curve-disconnect'!BZ248*'COM-Appliance class'!$C74+'COM S curve-disconnect'!BZ269*'COM-Appliance class'!$D74+'COM S curve-disconnect'!BZ290*'COM-Appliance class'!$E74","v":49076.311193299698},{"$f":"CA227*'COM-Appliance class'!$B74+'COM S curve-disconnect'!CA248*'COM-Appliance class'!$C74+'COM S curve-disconnect'!CA269*'COM-Appliance class'!$D74+'COM S curve-disconnect'!CA290*'COM-Appliance class'!$E74","v":49132.537311278509},{"$f":"CB227*'COM-Appliance class'!$B74+'COM S curve-disconnect'!CB248*'COM-Appliance class'!$C74+'COM S curve-disconnect'!CB269*'COM-Appliance class'!$D74+'COM S curve-disconnect'!CB290*'COM-Appliance class'!$E74","v":49188.699469445171},{"$f":"CC227*'COM-Appliance class'!$B74+'COM S curve-disconnect'!CC248*'COM-Appliance class'!$C74+'COM S curve-disconnect'!CC269*'COM-Appliance class'!$D74+'COM S curve-disconnect'!CC290*'COM-Appliance class'!$E74","v":49244.798059830224},{"$f":"CD227*'COM-Appliance class'!$B74+'COM S curve-disconnect'!CD248*'COM-Appliance class'!$C74+'COM S curve-disconnect'!CD269*'COM-Appliance class'!$D74+'COM S curve-disconnect'!CD290*'COM-Appliance class'!$E74","v":49300.833472040882}]
["Cardinia (S)",null,{"$f":"C228*'COM-Appliance class'!$B75+'COM S curve-disconnect'!C249*'COM-Appliance class'!$C75+'COM S curve-disconnect'!C270*'COM-Appliance class'!$D75+'COM S curve-disconnect'!C291*'COM-Appliance class'!$E75","v":9952.0634269440525},{"$f":"D228*'COM-Appliance class'!$B75+'COM S curve-disconnect'!D249*'COM-Appliance class'!$C75+'COM S curve-disconnect'!D270*'COM-Appliance class'!$D75+'COM S curve-disconnect'!D291*'COM-Appliance class'!$E75","v":12232.369822408615},{"$f":"E228*'COM-Appliance class'!$B75+'COM S curve-disconnect'!E249*'COM-Appliance class'!$C75+'COM S curve-disconnect'!E270*'COM-Appliance class'!$D75+'COM S curve-disconnect'!E291*'COM-Appliance class'!$E75","v":10869.945452858577},{"$f":"F228*'COM-Appliance class'!$B75+'COM S curve-disconnect'!F249*'COM-Appliance class'!$C75+'COM S curve-disconnect'!F270*'COM-Appliance class'!$D75+'COM S curve-disconnect'!F291*'COM-Appliance class'!$E75","v":12091.595683750733},{"$f":"G228*'COM-Appliance class'!$B75+'COM S curve-disconnect'!G249*'COM-Appliance class'!$C75+'COM S curve-disconnect'!G270*'COM-Appliance class'!$D75+'COM S curve-disconnect'!G291*'COM-Appliance class'!$E75","v":10645.889023686215},{"$f":"H228*'COM-Appliance class'!$B75+'COM S curve-disconnect'!H249*'COM-Appliance class'!$C75+'COM S curve-disconnect'!H270*'COM-Appliance class'!$D75+'COM S curve-disconnect'!H291*'COM-Appliance class'!$E75","v":10928.246751657462},{"$f":"I228*'COM-Appliance class'!$B75+'COM S curve-disconnect'!I249*'COM-Appliance class'!$C75+'COM S curve-disconnect'!I270*'COM-Appliance class'!$D75+'COM S curve-disconnect'!I291*'COM-Appliance class'!$E75","v":12673.436252967547},{"$f":"J228*'COM-Appliance class'!$B75+'COM S curve-disconnect'!J249*'COM-Appliance class'!$C75+'COM S curve-disconnect'!J270*'COM-Appliance class'!$D75+'COM S curve-disconnect'!J291*'COM-Appliance class'!$E75","v":13946.305608542185},{"$f":"K228*'COM-Appliance class'!$B75+'COM S curve-disconnect'!K249*'COM-Appliance class'!$C75+'COM S curve-disconnect'!K270*'COM-Appliance class'!$D75+'COM S curve-disconnect'!K291*'COM-Appliance class'!$E75","v":16695.590667459954},{"$f":"L228*'COM-Appliance class'!$B75+'COM S curve-disconnect'!L249*'COM-Appliance class'!$C75+'COM S curve-disconnect'!L270*'COM-Appliance class'!$D75+'COM S curve-disconnect'!L291*'COM-Appliance class'!$E75","v":16553.756202823221},{"$f":"M228*'COM-Appliance class'!$B75+'COM S curve-disconnect'!M249*'COM-Appliance class'!$C75+'COM S curve-disconnect'!M270*'COM-Appliance class'!$D75+'COM S curve-disconnect'!M291*'COM-Appliance class'!$E75","v":13450.498077676424},{"$f":"N228*'COM-Appliance class'!$B75+'COM S curve-disconnect'!N249*'COM-Appliance class'!$C75+'COM S curve-disconnect'!N270*'COM-Appliance class'!$D75+'COM S curve-disconnect'!N291*'COM-Appliance class'!$E75","v":13387.6969118999},{"$f":"O228*'COM-Appliance class'!$B75+'COM S curve-disconnect'!O249*'COM-Appliance class'!$C75+'COM S curve-disconnect'!O270*'COM-Appliance class'!$D75+'COM S curve-disconnect'!O291*'COM-Appliance class'!$E75","v":15235.203427207833},{"$f":"P228*'COM-Appliance class'!$B75+'COM S curve-disconnect'!P249*'COM-Appliance class'!$C75+'COM S curve-disconnect'!P270*'COM-Appliance class'!$D75+'COM S curve-disconnect'!P291*'COM-Appliance class'!$E75","v":17023.343740097549},{"$f":"Q228*'COM-Appliance class'!$B75+'COM S curve-disconnect'!Q249*'COM-Appliance class'!$C75+'COM S curve-disconnect'!Q270*'COM-Appliance class'!$D75+'COM S curve-disconnect'!Q291*'COM-Appliance class'!$E75","v":11853.787843148282},{"$f":"R228*'COM-Appliance class'!$B75+'COM S curve-disconnect'!R249*'COM-Appliance class'!$C75+'COM S curve-disconnect'!R270*'COM-Appliance class'!$D75+'COM S curve-disconnect'!R291*'COM-Appliance class'!$E75","v":12591.482030260326},{"$f":"S228*'COM-Appliance class'!$B75+'COM S curve-disconnect'!S249*'COM-Appliance class'!$C75+'COM S curve-disconnect'!S270*'COM-Appliance class'!$D75+'COM S curve-disconnect'!S291*'COM-Appliance class'!$E75","v":13686.070844009801},{"$f":"T228*'COM-Appliance class'!$B75+'COM S curve-disconnect'!T249*'COM-Appliance class'!$C75+'COM S curve-disconnect'!T270*'COM-Appliance class'!$D75+'COM S curve-disconnect'!T291*'COM-Appliance class'!$E75","v":15288.406478632083},{"$f":"U228*'COM-Appliance class'!$B75+'COM S curve-disconnect'!U249*'COM-Appliance class'!$C75+'COM S curve-disconnect'!U270*'COM-Appliance class'!$D75+'COM S curve-disconnect'!U291*'COM-Appliance class'!$E75","v":16480.763519999928},{"$f":"V228*'COM-Appliance class'!$B75+'COM S curve-disconnect'!V249*'COM-Appliance class'!$C75+'COM S curve-disconnect'!V270*'COM-Appliance class'!$D75+'COM S curve-disconnect'!V291*'COM-Appliance class'!$E75","v":16918.288128858705},{"$f":"W228*'COM-Appliance class'!$B75+'COM S curve-disconnect'!W249*'COM-Appliance class'!$C75+'COM S curve-disconnect'!W270*'COM-Appliance class'!$D75+'COM S curve-disconnect'!W291*'COM-Appliance class'!$E75","v":17631.10935578978},{"$f":"X228*'COM-Appliance class'!$B75+'COM S curve-disconnect'!X249*'COM-Appliance class'!$C75+'COM S curve-disconnect'!X270*'COM-Appliance class'!$D75+'COM S curve-disconnect'!X291*'COM-Appliance class'!$E75","v":19397.155898068708},{"$f":"Y228*'COM-Appliance class'!$B75+'COM S curve-disconnect'!Y249*'COM-Appliance class'!$C75+'COM S curve-disconnect'!Y270*'COM-Appliance class'!$D75+'COM S curve-disconnect'!Y291*'COM-Appliance class'!$E75","v":20864.49439256488},{"$f":"Z228*'COM-Appliance class'!$B75+'COM S curve-disconnect'!Z249*'COM-Appliance class'!$C75+'COM S curve-disconnect'!Z270*'COM-Appliance class'!$D75+'COM S curve-disconnect'!Z291*'COM-Appliance class'!$E75","v":21692.919196632323},{"$f":"AA228*'COM-Appliance class'!$B75+'COM S curve-disconnect'!AA249*'COM-Appliance class'!$C75+'COM S curve-disconnect'!AA270*'COM-Appliance class'!$D75+'COM S curve-disconnect'!AA291*'COM-Appliance class'!$E75","v":22634.277910317745},{"$f":"AB228*'COM-Appliance class'!$B75+'COM S curve-disconnect'!AB249*'COM-Appliance class'!$C75+'COM S curve-disconnect'!AB270*'COM-Appliance class'!$D75+'COM S curve-disconnect'!AB291*'COM-Appliance class'!$E75","v":23224.904157952551},{"$f":"AC228*'COM-Appliance class'!$B75+'COM S curve-disconnect'!AC249*'COM-Appliance class'!$C75+'COM S curve-disconnect'!AC270*'COM-Appliance class'!$D75+'COM S curve-disconnect'!AC291*'COM-Appliance class'!$E75","v":23652.421342140718},{"$f":"AD228*'COM-Appliance class'!$B75+'COM S curve-disconnect'!AD249*'COM-Appliance class'!$C75+'COM S curve-disconnect'!AD270*'COM-Appliance class'!$D75+'COM S curve-disconnect'!AD291*'COM-Appliance class'!$E75","v":23958.52470221305},{"$f":"AE228*'COM-Appliance class'!$B75+'COM S curve-disconnect'!AE249*'COM-Appliance class'!$C75+'COM S curve-disconnect'!AE270*'COM-Appliance class'!$D75+'COM S curve-disconnect'!AE291*'COM-Appliance class'!$E75","v":24215.051751237475},{"$f":"AF228*'COM-Appliance class'!$B75+'COM S curve-disconnect'!AF249*'COM-Appliance class'!$C75+'COM S curve-disconnect'!AF270*'COM-Appliance class'!$D75+'COM S curve-disconnect'!AF291*'COM-Appliance class'!$E75","v":24692.414047682305},{"$f":"AG228*'COM-Appliance class'!$B75+'COM S curve-disconnect'!AG249*'COM-Appliance class'!$C75+'COM S curve-disconnect'!AG270*'COM-Appliance class'!$D75+'COM S curve-disconnect'!AG291*'COM-Appliance class'!$E75","v":24715.348037951706},{"$f":"AH228*'COM-Appliance class'!$B75+'COM S curve-disconnect'!AH249*'COM-Appliance class'!$C75+'COM S curve-disconnect'!AH270*'COM-Appliance class'!$D75+'COM S curve-disconnect'!AH291*'COM-Appliance class'!$E75","v":25216.112226003293},{"$f":"AI228*'COM-Appliance class'!$B75+'COM S curve-disconnect'!AI249*'COM-Appliance class'!$C75+'COM S curve-disconnect'!AI270*'COM-Appliance class'!$D75+'COM S curve-disconnect'!AI291*'COM-Appliance class'!$E75","v":25248.338108740591},{"$f":"AJ228*'COM-Appliance class'!$B75+'COM S curve-disconnect'!AJ249*'COM-Appliance class'!$C75+'COM S curve-disconnect'!AJ270*'COM-Appliance class'!$D75+'COM S curve-disconnect'!AJ291*'COM-Appliance class'!$E75","v":25280.518548959542},{"$f":"AK228*'COM-Appliance class'!$B75+'COM S curve-disconnect'!AK249*'COM-Appliance class'!$C75+'COM S curve-disconnect'!AK270*'COM-Appliance class'!$D75+'COM S curve-disconnect'!AK291*'COM-Appliance class'!$E75","v":25312.653825903617},{"$f":"AL228*'COM-Appliance class'!$B75+'COM S curve-disconnect'!AL249*'COM-Appliance class'!$C75+'COM S curve-disconnect'!AL270*'COM-Appliance class'!$D75+'COM S curve-disconnect'!AL291*'COM-Appliance class'!$E75","v":25344.744217082934},{"$f":"AM228*'COM-Appliance class'!$B75+'COM S curve-disconnect'!AM249*'COM-Appliance class'!$C75+'COM S curve-disconnect'!AM270*'COM-Appliance class'!$D75+'COM S curve-disconnect'!AM291*'COM-Appliance class'!$E75","v":25376.789998285181},{"$f":"AN228*'COM-Appliance class'!$B75+'COM S curve-disconnect'!AN249*'COM-Appliance class'!$C75+'COM S curve-disconnect'!AN270*'COM-Appliance class'!$D75+'COM S curve-disconnect'!AN291*'COM-Appliance class'!$E75","v":25408.791443586379},{"$f":"AO228*'COM-Appliance class'!$B75+'COM S curve-disconnect'!AO249*'COM-Appliance class'!$C75+'COM S curve-disconnect'!AO270*'COM-Appliance class'!$D75+'COM S curve-disconnect'!AO291*'COM-Appliance class'!$E75","v":25440.748825361814},{"$f":"AP228*'COM-Appliance class'!$B75+'COM S curve-disconnect'!AP249*'COM-Appliance class'!$C75+'COM S curve-disconnect'!AP270*'COM-Appliance class'!$D75+'COM S curve-disconnect'!AP291*'COM-Appliance class'!$E75","v":25472.662414296581},{"$f":"AQ228*'COM-Appliance class'!$B75+'COM S curve-disconnect'!AQ249*'COM-Appliance class'!$C75+'COM S curve-disconnect'!AQ270*'COM-Appliance class'!$D75+'COM S curve-disconnect'!AQ291*'COM-Appliance class'!$E75","v":25504.532479396381},{"$f":"AR228*'COM-Appliance class'!$B75+'COM S curve-disconnect'!AR249*'COM-Appliance class'!$C75+'COM S curve-disconnect'!AR270*'COM-Appliance class'!$D75+'COM S curve-disconnect'!AR291*'COM-Appliance class'!$E75","v":25536.359287997962},{"$f":"AS228*'COM-Appliance class'!$B75+'COM S curve-disconnect'!AS249*'COM-Appliance class'!$C75+'COM S curve-disconnect'!AS270*'COM-Appliance class'!$D75+'COM S curve-disconnect'!AS291*'COM-Appliance class'!$E75","v":25568.143105779753},{"$f":"AT228*'COM-Appliance class'!$B75+'COM S curve-disconnect'!AT249*'COM-Appliance class'!$C75+'COM S curve-disconnect'!AT270*'COM-Appliance class'!$D75+'COM S curve-disconnect'!AT291*'COM-Appliance class'!$E75","v":25599.884196772153},{"$f":"AU228*'COM-Appliance class'!$B75+'COM S curve-disconnect'!AU249*'COM-Appliance class'!$C75+'COM S curve-disconnect'!AU270*'COM-Appliance class'!$D75+'COM S curve-disconnect'!AU291*'COM-Appliance class'!$E75","v":25631.58282336807},{"$f":"AV228*'COM-Appliance class'!$B75+'COM S curve-disconnect'!AV249*'COM-Appliance class'!$C75+'COM S curve-disconnect'!AV270*'COM-Appliance class'!$D75+'COM S curve-disconnect'!AV291*'COM-Appliance class'!$E75","v":25663.239246333105},{"$f":"AW228*'COM-Appliance class'!$B75+'COM S curve-disconnect'!AW249*'COM-Appliance class'!$C75+'COM S curve-disconnect'!AW270*'COM-Appliance class'!$D75+'COM S curve-disconnect'!AW291*'COM-Appliance class'!$E75","v":25694.853724815883},{"$f":"AX228*'COM-Appliance class'!$B75+'COM S curve-disconnect'!AX249*'COM-Appliance class'!$C75+'COM S curve-disconnect'!AX270*'COM-Appliance class'!$D75+'COM S curve-disconnect'!AX291*'COM-Appliance class'!$E75","v":25726.426516358151},{"$f":"AY228*'COM-Appliance class'!$B75+'COM S curve-disconnect'!AY249*'COM-Appliance class'!$C75+'COM S curve-disconnect'!AY270*'COM-Appliance class'!$D75+'COM S curve-disconnect'!AY291*'COM-Appliance class'!$E75","v":25757.957876904962},{"$f":"AZ228*'COM-Appliance class'!$B75+'COM S curve-disconnect'!AZ249*'COM-Appliance class'!$C75+'COM S curve-disconnect'!AZ270*'COM-Appliance class'!$D75+'COM S curve-disconnect'!AZ291*'COM-Appliance class'!$E75","v":25789.448060814655},{"$f":"BA228*'COM-Appliance class'!$B75+'COM S curve-disconnect'!BA249*'COM-Appliance class'!$C75+'COM S curve-disconnect'!BA270*'COM-Appliance class'!$D75+'COM S curve-disconnect'!BA291*'COM-Appliance class'!$E75","v":25820.897320868968},{"$f":"BB228*'COM-Appliance class'!$B75+'COM S curve-disconnect'!BB249*'COM-Appliance class'!$C75+'COM S curve-disconnect'!BB270*'COM-Appliance class'!$D75+'COM S curve-disconnect'!BB291*'COM-Appliance class'!$E75","v":25852.305908282746},{"$f":"BC228*'COM-Appliance class'!$B75+'COM S curve-disconnect'!BC249*'COM-Appliance class'!$C75+'COM S curve-disconnect'!BC270*'COM-Appliance class'!$D75+'COM S curve-disconnect'!BC291*'COM-Appliance class'!$E75","v":25883.674072714057},{"$f":"BD228*'COM-Appliance class'!$B75+'COM S curve-disconnect'!BD249*'COM-Appliance class'!$C75+'COM S curve-disconnect'!BD270*'COM-Appliance class'!$D75+'COM S curve-disconnect'!BD291*'COM-Appliance class'!$E75","v":25915.002062273743},{"$f":"BE228*'COM-Appliance class'!$B75+'COM S curve-disconnect'!BE249*'COM-Appliance class'!$C75+'COM S curve-disconnect'!BE270*'COM-Appliance class'!$D75+'COM S curve-disconnect'!BE291*'COM-Appliance class'!$E75","v":25946.290123535378},{"$f":"BF228*'COM-Appliance class'!$B75+'COM S curve-disconnect'!BF249*'COM-Appliance class'!$C75+'COM S curve-disconnect'!BF270*'COM-Appliance class'!$D75+'COM S curve-disconnect'!BF291*'COM-Appliance class'!$E75","v":25977.538501544754},{"$f":"BG228*'COM-Appliance class'!$B75+'COM S curve-disconnect'!BG249*'COM-Appliance class'!$C75+'COM S curve-disconnect'!BG270*'COM-Appliance class'!$D75+'COM S curve-disconnect'!BG291*'COM-Appliance class'!$E75","v":26008.747439829596},{"$f":"BH228*'COM-Appliance class'!$B75+'COM S curve-disconnect'!BH249*'COM-Appliance class'!$C75+'COM S curve-disconnect'!BH270*'COM-Appliance class'!$D75+'COM S curve-disconnect'!BH291*'COM-Appliance class'!$E75","v":26039.917180409102},{"$f":"BI228*'COM-Appliance class'!$B75+'COM S curve-disconnect'!BI249*'COM-Appliance class'!$C75+'COM S curve-disconnect'!BI270*'COM-Appliance class'!$D75+'COM S curve-disconnect'!BI291*'COM-Appliance class'!$E75","v":26071.047963803434},{"$f":"BJ228*'COM-Appliance class'!$B75+'COM S curve-disconnect'!BJ249*'COM-Appliance class'!$C75+'COM S curve-disconnect'!BJ270*'COM-Appliance class'!$D75+'COM S curve-disconnect'!BJ291*'COM-Appliance class'!$E75","v":26102.140029043065},{"$f":"BK228*'COM-Appliance class'!$B75+'COM S curve-disconnect'!BK249*'COM-Appliance class'!$C75+'COM S curve-disconnect'!BK270*'COM-Appliance class'!$D75+'COM S curve-disconnect'!BK291*'COM-Appliance class'!$E75","v":26133.193613678304},{"$f":"BL228*'COM-Appliance class'!$B75+'COM S curve-disconnect'!BL249*'COM-Appliance class'!$C75+'COM S curve-disconnect'!BL270*'COM-Appliance class'!$D75+'COM S curve-disconnect'!BL291*'COM-Appliance class'!$E75","v":26164.208953788439},{"$f":"BM228*'COM-Appliance class'!$B75+'COM S curve-disconnect'!BM249*'COM-Appliance class'!$C75+'COM S curve-disconnect'!BM270*'COM-Appliance class'!$D75+'COM S curve-disconnect'!BM291*'COM-Appliance class'!$E75","v":26195.186283991163},{"$f":"BN228*'COM-Appliance class'!$B75+'COM S curve-disconnect'!BN249*'COM-Appliance class'!$C75+'COM S curve-disconnect'!BN270*'COM-Appliance class'!$D75+'COM S curve-disconnect'!BN291*'COM-Appliance class'!$E75","v":26226.125837451553},{"$f":"BO228*'COM-Appliance class'!$B75+'COM S curve-disconnect'!BO249*'COM-Appliance class'!$C75+'COM S curve-disconnect'!BO270*'COM-Appliance class'!$D75+'COM S curve-disconnect'!BO291*'COM-Appliance class'!$E75","v":26257.027845891433},{"$f":"BP228*'COM-Appliance class'!$B75+'COM S curve-disconnect'!BP249*'COM-Appliance class'!$C75+'COM S curve-disconnect'!BP270*'COM-Appliance class'!$D75+'COM S curve-disconnect'!BP291*'COM-Appliance class'!$E75","v":26287.892539598259},{"$f":"BQ228*'COM-Appliance class'!$B75+'COM S curve-disconnect'!BQ249*'COM-Appliance class'!$C75+'COM S curve-disconnect'!BQ270*'COM-Appliance class'!$D75+'COM S curve-disconnect'!BQ291*'COM-Appliance class'!$E75","v":26318.720147434276},{"$f":"BR228*'COM-Appliance class'!$B75+'COM S curve-disconnect'!BR249*'COM-Appliance class'!$C75+'COM S curve-disconnect'!BR270*'COM-Appliance class'!$D75+'COM S curve-disconnect'!BR291*'COM-Appliance class'!$E75","v":26349.510896845375},{"$f":"BS228*'COM-Appliance class'!$B75+'COM S curve-disconnect'!BS249*'COM-Appliance class'!$C75+'COM S curve-disconnect'!BS270*'COM-Appliance class'!$D75+'COM S curve-disconnect'!BS291*'COM-Appliance class'!$E75","v":26380.265013870099},{"$f":"BT228*'COM-Appliance class'!$B75+'COM S curve-disconnect'!BT249*'COM-Appliance class'!$C75+'COM S curve-disconnect'!BT270*'COM-Appliance class'!$D75+'COM S curve-disconnect'!BT291*'COM-Appliance class'!$E75","v":26410.982723148358},{"$f":"BU228*'COM-Appliance class'!$B75+'COM S curve-disconnect'!BU249*'COM-Appliance class'!$C75+'COM S curve-disconnect'!BU270*'COM-Appliance class'!$D75+'COM S curve-disconnect'!BU291*'COM-Appliance class'!$E75","v":26441.664247930399},{"$f":"BV228*'COM-Appliance class'!$B75+'COM S curve-disconnect'!BV249*'COM-Appliance class'!$C75+'COM S curve-disconnect'!BV270*'COM-Appliance class'!$D75+'COM S curve-disconnect'!BV291*'COM-Appliance class'!$E75","v":26472.309810085339},{"$f":"BW228*'COM-Appliance class'!$B75+'COM S curve-disconnect'!BW249*'COM-Appliance class'!$C75+'COM S curve-disconnect'!BW270*'COM-Appliance class'!$D75+'COM S curve-disconnect'!BW291*'COM-Appliance class'!$E75","v":26502.919630110053},{"$f":"BX228*'COM-Appliance class'!$B75+'COM S curve-disconnect'!BX249*'COM-Appliance class'!$C75+'COM S curve-disconnect'!BX270*'COM-Appliance class'!$D75+'COM S curve-disconnect'!BX291*'COM-Appliance class'!$E75","v":26533.493927137562},{"$f":"BY228*'COM-Appliance class'!$B75+'COM S curve-disconnect'!BY249*'COM-Appliance class'!$C75+'COM S curve-disconnect'!BY270*'COM-Appliance class'!$D75+'COM S curve-disconnect'!BY291*'COM-Appliance class'!$E75","v":26564.032918945893},{"$f":"BZ228*'COM-Appliance class'!$B75+'COM S curve-disconnect'!BZ249*'COM-Appliance class'!$C75+'COM S curve-disconnect'!BZ270*'COM-Appliance class'!$D75+'COM S curve-disconnect'!BZ291*'COM-Appliance class'!$E75","v":26594.536821966285},{"$f":"CA228*'COM-Appliance class'!$B75+'COM S curve-disconnect'!CA249*'COM-Appliance class'!$C75+'COM S curve-disconnect'!CA270*'COM-Appliance class'!$D75+'COM S curve-disconnect'!CA291*'COM-Appliance class'!$E75","v":26625.005851291946},{"$f":"CB228*'COM-Appliance class'!$B75+'COM S curve-disconnect'!CB249*'COM-Appliance class'!$C75+'COM S curve-disconnect'!CB270*'COM-Appliance class'!$D75+'COM S curve-disconnect'!CB291*'COM-Appliance class'!$E75","v":26655.440220686203},{"$f":"CC228*'COM-Appliance class'!$B75+'COM S curve-disconnect'!CC249*'COM-Appliance class'!$C75+'COM S curve-disconnect'!CC270*'COM-Appliance class'!$D75+'COM S curve-disconnect'!CC291*'COM-Appliance class'!$E75","v":26685.840142591078},{"$f":"CD228*'COM-Appliance class'!$B75+'COM S curve-disconnect'!CD249*'COM-Appliance class'!$C75+'COM S curve-disconnect'!CD270*'COM-Appliance class'!$D75+'COM S curve-disconnect'!CD291*'COM-Appliance class'!$E75","v":26716.205828135389}]
["Casey (C)",null,{"$f":"C229*'COM-Appliance class'!$B76+'COM S curve-disconnect'!C250*'COM-Appliance class'!$C76+'COM S curve-disconnect'!C271*'COM-Appliance class'!$D76+'COM S curve-disconnect'!C292*'COM-Appliance class'!$E76","v":11574.097750532659},{"$f":"D229*'COM-Appliance class'!$B76+'COM S curve-disconnect'!D250*'COM-Appliance class'!$C76+'COM S curve-disconnect'!D271*'COM-Appliance class'!$D76+'COM S curve-disconnect'!D292*'COM-Appliance class'!$E76","v":14226.059257411429},{"$f":"E229*'COM-Appliance class'!$B76+'COM S curve-disconnect'!E250*'COM-Appliance class'!$C76+'COM S curve-disconnect'!E271*'COM-Appliance class'!$D76+'COM S curve-disconnect'!E292*'COM-Appliance class'!$E76","v":12641.580526278382},{"$f":"F229*'COM-Appliance class'!$B76+'COM S curve-disconnect'!F250*'COM-Appliance class'!$C76+'COM S curve-disconnect'!F271*'COM-Appliance class'!$D76+'COM S curve-disconnect'!F292*'COM-Appliance class'!$E76","v":14062.341084438161},{"$f":"G229*'COM-Appliance class'!$B76+'COM S curve-disconnect'!G250*'COM-Appliance class'!$C76+'COM S curve-disconnect'!G271*'COM-Appliance class'!$D76+'COM S curve-disconnect'!G292*'COM-Appliance class'!$E76","v":12381.006321550614},{"$f":"H229*'COM-Appliance class'!$B76+'COM S curve-disconnect'!H250*'COM-Appliance class'!$C76+'COM S curve-disconnect'!H271*'COM-Appliance class'!$D76+'COM S curve-disconnect'!H292*'COM-Appliance class'!$E76","v":12709.384046245345},{"$f":"I229*'COM-Appliance class'!$B76+'COM S curve-disconnect'!I250*'COM-Appliance class'!$C76+'COM S curve-disconnect'!I271*'COM-Appliance class'!$D76+'COM S curve-disconnect'!I292*'COM-Appliance class'!$E76","v":14739.01277898431},{"$f":"J229*'COM-Appliance class'!$B76+'COM S curve-disconnect'!J250*'COM-Appliance class'!$C76+'COM S curve-disconnect'!J271*'COM-Appliance class'!$D76+'COM S curve-disconnect'!J292*'COM-Appliance class'!$E76","v":16219.340396791922},{"$f":"K229*'COM-Appliance class'!$B76+'COM S curve-disconnect'!K250*'COM-Appliance class'!$C76+'COM S curve-disconnect'!K271*'COM-Appliance class'!$D76+'COM S curve-disconnect'!K292*'COM-Appliance class'!$E76","v":19416.716925748016},{"$f":"L229*'COM-Appliance class'!$B76+'COM S curve-disconnect'!L250*'COM-Appliance class'!$C76+'COM S curve-disconnect'!L271*'COM-Appliance class'!$D76+'COM S curve-disconnect'!L292*'COM-Appliance class'!$E76","v":19251.765609857524},{"$f":"M229*'COM-Appliance class'!$B76+'COM S curve-disconnect'!M250*'COM-Appliance class'!$C76+'COM S curve-disconnect'!M271*'COM-Appliance class'!$D76+'COM S curve-disconnect'!M292*'COM-Appliance class'!$E76","v":15642.7238117173},{"$f":"N229*'COM-Appliance class'!$B76+'COM S curve-disconnect'!N250*'COM-Appliance class'!$C76+'COM S curve-disconnect'!N271*'COM-Appliance class'!$D76+'COM S curve-disconnect'!N292*'COM-Appliance class'!$E76","v":15569.687015189556},{"$f":"O229*'COM-Appliance class'!$B76+'COM S curve-disconnect'!O250*'COM-Appliance class'!$C76+'COM S curve-disconnect'!O271*'COM-Appliance class'!$D76+'COM S curve-disconnect'!O292*'COM-Appliance class'!$E76","v":17718.308872344063},{"$f":"P229*'COM-Appliance class'!$B76+'COM S curve-disconnect'!P250*'COM-Appliance class'!$C76+'COM S curve-disconnect'!P271*'COM-Appliance class'!$D76+'COM S curve-disconnect'!P292*'COM-Appliance class'!$E76","v":19797.888742888434},{"$f":"Q229*'COM-Appliance class'!$B76+'COM S curve-disconnect'!Q250*'COM-Appliance class'!$C76+'COM S curve-disconnect'!Q271*'COM-Appliance class'!$D76+'COM S curve-disconnect'!Q292*'COM-Appliance class'!$E76","v":13785.774198266194},{"$f":"R229*'COM-Appliance class'!$B76+'COM S curve-disconnect'!R250*'COM-Appliance class'!$C76+'COM S curve-disconnect'!R271*'COM-Appliance class'!$D76+'COM S curve-disconnect'!R292*'COM-Appliance class'!$E76","v":14643.701269803791},{"$f":"S229*'COM-Appliance class'!$B76+'COM S curve-disconnect'!S250*'COM-Appliance class'!$C76+'COM S curve-disconnect'!S271*'COM-Appliance class'!$D76+'COM S curve-disconnect'!S292*'COM-Appliance class'!$E76","v":15916.691340654474},{"$f":"T229*'COM-Appliance class'!$B76+'COM S curve-disconnect'!T250*'COM-Appliance class'!$C76+'COM S curve-disconnect'!T271*'COM-Appliance class'!$D76+'COM S curve-disconnect'!T292*'COM-Appliance class'!$E76","v":17780.183208488641},{"$f":"U229*'COM-Appliance class'!$B76+'COM S curve-disconnect'!U250*'COM-Appliance class'!$C76+'COM S curve-disconnect'!U271*'COM-Appliance class'!$D76+'COM S curve-disconnect'!U292*'COM-Appliance class'!$E76","v":19166.876234676984},{"$f":"V229*'COM-Appliance class'!$B76+'COM S curve-disconnect'!V250*'COM-Appliance class'!$C76+'COM S curve-disconnect'!V271*'COM-Appliance class'!$D76+'COM S curve-disconnect'!V292*'COM-Appliance class'!$E76","v":19675.710671712925},{"$f":"W229*'COM-Appliance class'!$B76+'COM S curve-disconnect'!W250*'COM-Appliance class'!$C76+'COM S curve-disconnect'!W271*'COM-Appliance class'!$D76+'COM S curve-disconnect'!W292*'COM-Appliance class'!$E76","v":20504.710870487608},{"$f":"X229*'COM-Appliance class'!$B76+'COM S curve-disconnect'!X250*'COM-Appliance class'!$C76+'COM S curve-disconnect'!X271*'COM-Appliance class'!$D76+'COM S curve-disconnect'!X292*'COM-Appliance class'!$E76","v":22558.596023287828},{"$f":"Y229*'COM-Appliance class'!$B76+'COM S curve-disconnect'!Y250*'COM-Appliance class'!$C76+'COM S curve-disconnect'!Y271*'COM-Appliance class'!$D76+'COM S curve-disconnect'!Y292*'COM-Appliance class'!$E76","v":24265.088279199139},{"$f":"Z229*'COM-Appliance class'!$B76+'COM S curve-disconnect'!Z250*'COM-Appliance class'!$C76+'COM S curve-disconnect'!Z271*'COM-Appliance class'!$D76+'COM S curve-disconnect'!Z292*'COM-Appliance class'!$E76","v":25228.533672370897},{"$f":"AA229*'COM-Appliance class'!$B76+'COM S curve-disconnect'!AA250*'COM-Appliance class'!$C76+'COM S curve-disconnect'!AA271*'COM-Appliance class'!$D76+'COM S curve-disconnect'!AA292*'COM-Appliance class'!$E76","v":26323.319477394289},{"$f":"AB229*'COM-Appliance class'!$B76+'COM S curve-disconnect'!AB250*'COM-Appliance class'!$C76+'COM S curve-disconnect'!AB271*'COM-Appliance class'!$D76+'COM S curve-disconnect'!AB292*'COM-Appliance class'!$E76","v":27010.208781741763},{"$f":"AC229*'COM-Appliance class'!$B76+'COM S curve-disconnect'!AC250*'COM-Appliance class'!$C76+'COM S curve-disconnect'!AC271*'COM-Appliance class'!$D76+'COM S curve-disconnect'!AC292*'COM-Appliance class'!$E76","v":27507.404736746423},{"$f":"AD229*'COM-Appliance class'!$B76+'COM S curve-disconnect'!AD250*'COM-Appliance class'!$C76+'COM S curve-disconnect'!AD271*'COM-Appliance class'!$D76+'COM S curve-disconnect'!AD292*'COM-Appliance class'!$E76","v":27863.398268866778},{"$f":"AE229*'COM-Appliance class'!$B76+'COM S curve-disconnect'!AE250*'COM-Appliance class'!$C76+'COM S curve-disconnect'!AE271*'COM-Appliance class'!$D76+'COM S curve-disconnect'!AE292*'COM-Appliance class'!$E76","v":28161.735308502797},{"$f":"AF229*'COM-Appliance class'!$B76+'COM S curve-disconnect'!AF250*'COM-Appliance class'!$C76+'COM S curve-disconnect'!AF271*'COM-Appliance class'!$D76+'COM S curve-disconnect'!AF292*'COM-Appliance class'!$E76","v":28716.900367691709},{"$f":"AG229*'COM-Appliance class'!$B76+'COM S curve-disconnect'!AG250*'COM-Appliance class'!$C76+'COM S curve-disconnect'!AG271*'COM-Appliance class'!$D76+'COM S curve-disconnect'!AG292*'COM-Appliance class'!$E76","v":28743.572248064691},{"$f":"AH229*'COM-Appliance class'!$B76+'COM S curve-disconnect'!AH250*'COM-Appliance class'!$C76+'COM S curve-disconnect'!AH271*'COM-Appliance class'!$D76+'COM S curve-disconnect'!AH292*'COM-Appliance class'!$E76","v":29325.953349734882},{"$f":"AI229*'COM-Appliance class'!$B76+'COM S curve-disconnect'!AI250*'COM-Appliance class'!$C76+'COM S curve-disconnect'!AI271*'COM-Appliance class'!$D76+'COM S curve-disconnect'!AI292*'COM-Appliance class'!$E76","v":29363.431559116951},{"$f":"AJ229*'COM-Appliance class'!$B76+'COM S curve-disconnect'!AJ250*'COM-Appliance class'!$C76+'COM S curve-disconnect'!AJ271*'COM-Appliance class'!$D76+'COM S curve-disconnect'!AJ292*'COM-Appliance class'!$E76","v":29400.856919544305},{"$f":"AK229*'COM-Appliance class'!$B76+'COM S curve-disconnect'!AK250*'COM-Appliance class'!$C76+'COM S curve-disconnect'!AK271*'COM-Appliance class'!$D76+'COM S curve-disconnect'!AK292*'COM-Appliance class'!$E76","v":29438.229755772845},{"$f":"AL229*'COM-Appliance class'!$B76+'COM S curve-disconnect'!AL250*'COM-Appliance class'!$C76+'COM S curve-disconnect'!AL271*'COM-Appliance class'!$D76+'COM S curve-disconnect'!AL292*'COM-Appliance class'!$E76","v":29475.550390542579},{"$f":"AM229*'COM-Appliance class'!$B76+'COM S curve-disconnect'!AM250*'COM-Appliance class'!$C76+'COM S curve-disconnect'!AM271*'COM-Appliance class'!$D76+'COM S curve-disconnect'!AM292*'COM-Appliance class'!$E76","v":29512.819144590387},{"$f":"AN229*'COM-Appliance class'!$B76+'COM S curve-disconnect'!AN250*'COM-Appliance class'!$C76+'COM S curve-disconnect'!AN271*'COM-Appliance class'!$D76+'COM S curve-disconnect'!AN292*'COM-Appliance class'!$E76","v":29550.036336662495},{"$f":"AO229*'COM-Appliance class'!$B76+'COM S curve-disconnect'!AO250*'COM-Appliance class'!$C76+'COM S curve-disconnect'!AO271*'COM-Appliance class'!$D76+'COM S curve-disconnect'!AO292*'COM-Appliance class'!$E76","v":29587.202283527207},{"$f":"AP229*'COM-Appliance class'!$B76+'COM S curve-disconnect'!AP250*'COM-Appliance class'!$C76+'COM S curve-disconnect'!AP271*'COM-Appliance class'!$D76+'COM S curve-disconnect'!AP292*'COM-Appliance class'!$E76","v":29624.317299987139},{"$f":"AQ229*'COM-Appliance class'!$B76+'COM S curve-disconnect'!AQ250*'COM-Appliance class'!$C76+'COM S curve-disconnect'!AQ271*'COM-Appliance class'!$D76+'COM S curve-disconnect'!AQ292*'COM-Appliance class'!$E76","v":29661.381698891815},{"$f":"AR229*'COM-Appliance class'!$B76+'COM S curve-disconnect'!AR250*'COM-Appliance class'!$C76+'COM S curve-disconnect'!AR271*'COM-Appliance class'!$D76+'COM S curve-disconnect'!AR292*'COM-Appliance class'!$E76","v":29698.3957911498},{"$f":"AS229*'COM-Appliance class'!$B76+'COM S curve-disconnect'!AS250*'COM-Appliance class'!$C76+'COM S curve-disconnect'!AS271*'COM-Appliance class'!$D76+'COM S curve-disconnect'!AS292*'COM-Appliance class'!$E76","v":29735.359885741032},{"$f":"AT229*'COM-Appliance class'!$B76+'COM S curve-disconnect'!AT250*'COM-Appliance class'!$C76+'COM S curve-disconnect'!AT271*'COM-Appliance class'!$D76+'COM S curve-disconnect'!AT292*'COM-Appliance class'!$E76","v":29772.274289728844},{"$f":"AU229*'COM-Appliance class'!$B76+'COM S curve-disconnect'!AU250*'COM-Appliance class'!$C76+'COM S curve-disconnect'!AU271*'COM-Appliance class'!$D76+'COM S curve-disconnect'!AU292*'COM-Appliance class'!$E76","v":29809.139308272192},{"$f":"AV229*'COM-Appliance class'!$B76+'COM S curve-disconnect'!AV250*'COM-Appliance class'!$C76+'COM S curve-disconnect'!AV271*'COM-Appliance class'!$D76+'COM S curve-disconnect'!AV292*'COM-Appliance class'!$E76","v":29845.955244637462},{"$f":"AW229*'COM-Appliance class'!$B76+'COM S curve-disconnect'!AW250*'COM-Appliance class'!$C76+'COM S curve-disconnect'!AW271*'COM-Appliance class'!$D76+'COM S curve-disconnect'!AW292*'COM-Appliance class'!$E76","v":29882.722400210561},{"$f":"AX229*'COM-Appliance class'!$B76+'COM S curve-disconnect'!AX250*'COM-Appliance class'!$C76+'COM S curve-disconnect'!AX271*'COM-Appliance class'!$D76+'COM S curve-disconnect'!AX292*'COM-Appliance class'!$E76","v":29919.441074508599},{"$f":"AY229*'COM-Appliance class'!$B76+'COM S curve-disconnect'!AY250*'COM-Appliance class'!$C76+'COM S curve-disconnect'!AY271*'COM-Appliance class'!$D76+'COM S curve-disconnect'!AY292*'COM-Appliance class'!$E76","v":29956.111565191772},{"$f":"AZ229*'COM-Appliance class'!$B76+'COM S curve-disconnect'!AZ250*'COM-Appliance class'!$C76+'COM S curve-disconnect'!AZ271*'COM-Appliance class'!$D76+'COM S curve-disconnect'!AZ292*'COM-Appliance class'!$E76","v":29992.734168074938},{"$f":"BA229*'COM-Appliance class'!$B76+'COM S curve-disconnect'!BA250*'COM-Appliance class'!$C76+'COM S curve-disconnect'!BA271*'COM-Appliance class'!$D76+'COM S curve-disconnect'!BA292*'COM-Appliance class'!$E76","v":30029.309177139396},{"$f":"BB229*'COM-Appliance class'!$B76+'COM S curve-disconnect'!BB250*'COM-Appliance class'!$C76+'COM S curve-disconnect'!BB271*'COM-Appliance class'!$D76+'COM S curve-disconnect'!BB292*'COM-Appliance class'!$E76","v":30065.836884544173},{"$f":"BC229*'COM-Appliance class'!$B76+'COM S curve-disconnect'!BC250*'COM-Appliance class'!$C76+'COM S curve-disconnect'!BC271*'COM-Appliance class'!$D76+'COM S curve-disconnect'!BC292*'COM-Appliance class'!$E76","v":30102.317580637791},{"$f":"BD229*'COM-Appliance class'!$B76+'COM S curve-disconnect'!BD250*'COM-Appliance class'!$C76+'COM S curve-disconnect'!BD271*'COM-Appliance class'!$D76+'COM S curve-disconnect'!BD292*'COM-Appliance class'!$E76","v":30138.75155396937},{"$f":"BE229*'COM-Appliance class'!$B76+'COM S curve-disconnect'!BE250*'COM-Appliance class'!$C76+'COM S curve-disconnect'!BE271*'COM-Appliance class'!$D76+'COM S curve-disconnect'!BE292*'COM-Appliance class'!$E76","v":30175.139091300214},{"$f":"BF229*'COM-Appliance class'!$B76+'COM S curve-disconnect'!BF250*'COM-Appliance class'!$C76+'COM S curve-disconnect'!BF271*'COM-Appliance class'!$D76+'COM S curve-disconnect'!BF292*'COM-Appliance class'!$E76","v":30211.480477614823},{"$f":"BG229*'COM-Appliance class'!$B76+'COM S curve-disconnect'!BG250*'COM-Appliance class'!$C76+'COM S curve-disconnect'!BG271*'COM-Appliance class'!$D76+'COM S curve-disconnect'!BG292*'COM-Appliance class'!$E76","v":30247.775996132237},{"$f":"BH229*'COM-Appliance class'!$B76+'COM S curve-disconnect'!BH250*'COM-Appliance class'!$C76+'COM S curve-disconnect'!BH271*'COM-Appliance class'!$D76+'COM S curve-disconnect'!BH292*'COM-Appliance class'!$E76","v":30284.025928317082},{"$f":"BI229*'COM-Appliance class'!$B76+'COM S curve-disconnect'!BI250*'COM-Appliance class'!$C76+'COM S curve-disconnect'!BI271*'COM-Appliance class'!$D76+'COM S curve-disconnect'!BI292*'COM-Appliance class'!$E76","v":30320.230553890618},{"$f":"BJ229*'COM-Appliance class'!$B76+'COM S curve-disconnect'!BJ250*'COM-Appliance class'!$C76+'COM S curve-disconnect'!BJ271*'COM-Appliance class'!$D76+'COM S curve-disconnect'!BJ292*'COM-Appliance class'!$E76","v":30356.390150841657},{"$f":"BK229*'COM-Appliance class'!$B76+'COM S curve-disconnect'!BK250*'COM-Appliance class'!$C76+'COM S curve-disconnect'!BK271*'COM-Appliance class'!$D76+'COM S curve-disconnect'!BK292*'COM-Appliance class'!$E76","v":30392.504995437565},{"$f":"BL229*'COM-Appliance class'!$B76+'COM S curve-disconnect'!BL250*'COM-Appliance class'!$C76+'COM S curve-disconnect'!BL271*'COM-Appliance class'!$D76+'COM S curve-disconnect'!BL292*'COM-Appliance class'!$E76","v":30428.575362234951},{"$f":"BM229*'COM-Appliance class'!$B76+'COM S curve-disconnect'!BM250*'COM-Appliance class'!$C76+'COM S curve-disconnect'!BM271*'COM-Appliance class'!$D76+'COM S curve-disconnect'!BM292*'COM-Appliance class'!$E76","v":30464.601524090605},{"$f":"BN229*'COM-Appliance class'!$B76+'COM S curve-disconnect'!BN250*'COM-Appliance class'!$C76+'COM S curve-disconnect'!BN271*'COM-Appliance class'!$D76+'COM S curve-disconnect'!BN292*'COM-Appliance class'!$E76","v":30500.583752171959},{"$f":"BO229*'COM-Appliance class'!$B76+'COM S curve-disconnect'!BO250*'COM-Appliance class'!$C76+'COM S curve-disconnect'!BO271*'COM-Appliance class'!$D76+'COM S curve-disconnect'!BO292*'COM-Appliance class'!$E76","v":30536.522315967948},{"$f":"BP229*'COM-Appliance class'!$B76+'COM S curve-disconnect'!BP250*'COM-Appliance class'!$C76+'COM S curve-disconnect'!BP271*'COM-Appliance class'!$D76+'COM S curve-disconnect'!BP292*'COM-Appliance class'!$E76","v":30572.417483299363},{"$f":"BQ229*'COM-Appliance class'!$B76+'COM S curve-disconnect'!BQ250*'COM-Appliance class'!$C76+'COM S curve-disconnect'!BQ271*'COM-Appliance class'!$D76+'COM S curve-disconnect'!BQ292*'COM-Appliance class'!$E76","v":30608.269520329515},{"$f":"BR229*'COM-Appliance class'!$B76+'COM S curve-disconnect'!BR250*'COM-Appliance class'!$C76+'COM S curve-disconnect'!BR271*'COM-Appliance class'!$D76+'COM S curve-disconnect'!BR292*'COM-Appliance class'!$E76","v":30644.078691574483},{"$f":"BS229*'COM-Appliance class'!$B76+'COM S curve-disconnect'!BS250*'COM-Appliance class'!$C76+'COM S curve-disconnect'!BS271*'COM-Appliance class'!$D76+'COM S curve-disconnect'!BS292*'COM-Appliance class'!$E76","v":30679.84525991364},{"$f":"BT229*'COM-Appliance class'!$B76+'COM S curve-disconnect'!BT250*'COM-Appliance class'!$C76+'COM S curve-disconnect'!BT271*'COM-Appliance class'!$D76+'COM S curve-disconnect'!BT292*'COM-Appliance class'!$E76","v":30715.569486599787},{"$f":"BU229*'COM-Appliance class'!$B76+'COM S curve-disconnect'!BU250*'COM-Appliance class'!$C76+'COM S curve-disconnect'!BU271*'COM-Appliance class'!$D76+'COM S curve-disconnect'!BU292*'COM-Appliance class'!$E76","v":30751.251631269537},{"$f":"BV229*'COM-Appliance class'!$B76+'COM S curve-disconnect'!BV250*'COM-Appliance class'!$C76+'COM S curve-disconnect'!BV271*'COM-Appliance class'!$D76+'COM S curve-disconnect'!BV292*'COM-Appliance class'!$E76","v":30786.891951953279},{"$f":"BW229*'COM-Appliance class'!$B76+'COM S curve-disconnect'!BW250*'COM-Appliance class'!$C76+'COM S curve-disconnect'!BW271*'COM-Appliance class'!$D76+'COM S curve-disconnect'!BW292*'COM-Appliance class'!$E76","v":30822.490705085533},{"$f":"BX229*'COM-Appliance class'!$B76+'COM S curve-disconnect'!BX250*'COM-Appliance class'!$C76+'COM S curve-disconnect'!BX271*'COM-Appliance class'!$D76+'COM S curve-disconnect'!BX292*'COM-Appliance class'!$E76","v":30858.048145514636},{"$f":"BY229*'COM-Appliance class'!$B76+'COM S curve-disconnect'!BY250*'COM-Appliance class'!$C76+'COM S curve-disconnect'!BY271*'COM-Appliance class'!$D76+'COM S curve-disconnect'!BY292*'COM-Appliance class'!$E76","v":30893.56452651311},{"$f":"BZ229*'COM-Appliance class'!$B76+'COM S curve-disconnect'!BZ250*'COM-Appliance class'!$C76+'COM S curve-disconnect'!BZ271*'COM-Appliance class'!$D76+'COM S curve-disconnect'!BZ292*'COM-Appliance class'!$E76","v":30929.04009978718},{"$f":"CA229*'COM-Appliance class'!$B76+'COM S curve-disconnect'!CA250*'COM-Appliance class'!$C76+'COM S curve-disconnect'!CA271*'COM-Appliance class'!$D76+'COM S curve-disconnect'!CA292*'COM-Appliance class'!$E76","v":30964.475115486966},{"$f":"CB229*'COM-Appliance class'!$B76+'COM S curve-disconnect'!CB250*'COM-Appliance class'!$C76+'COM S curve-disconnect'!CB271*'COM-Appliance class'!$D76+'COM S curve-disconnect'!CB292*'COM-Appliance class'!$E76","v":30999.869822215955},{"$f":"CC229*'COM-Appliance class'!$B76+'COM S curve-disconnect'!CC250*'COM-Appliance class'!$C76+'COM S curve-disconnect'!CC271*'COM-Appliance class'!$D76+'COM S curve-disconnect'!CC292*'COM-Appliance class'!$E76","v":31035.224467040967},{"$f":"CD229*'COM-Appliance class'!$B76+'COM S curve-disconnect'!CD250*'COM-Appliance class'!$C76+'COM S curve-disconnect'!CD271*'COM-Appliance class'!$D76+'COM S curve-disconnect'!CD292*'COM-Appliance class'!$E76","v":31070.539295501589}]
["Frankston (C)",null,{"$f":"C230*'COM-Appliance class'!$B77+'COM S curve-disconnect'!C251*'COM-Appliance class'!$C77+'COM S curve-disconnect'!C272*'COM-Appliance class'!$D77+'COM S curve-disconnect'!C293*'COM-Appliance class'!$E77","v":0},{"$f":"D230*'COM-Appliance class'!$B77+'COM S curve-disconnect'!D251*'COM-Appliance class'!$C77+'COM S curve-disconnect'!D272*'COM-Appliance class'!$D77+'COM S curve-disconnect'!D293*'COM-Appliance class'!$E77","v":0},{"$f":"E230*'COM-Appliance class'!$B77+'COM S curve-disconnect'!E251*'COM-Appliance class'!$C77+'COM S curve-disconnect'!E272*'COM-Appliance class'!$D77+'COM S curve-disconnect'!E293*'COM-Appliance class'!$E77","v":0},{"$f":"F230*'COM-Appliance class'!$B77+'COM S curve-disconnect'!F251*'COM-Appliance class'!$C77+'COM S curve-disconnect'!F272*'COM-Appliance class'!$D77+'COM S curve-disconnect'!F293*'COM-Appliance class'!$E77","v":0},{"$f":"G230*'COM-Appliance class'!$B77+'COM S curve-disconnect'!G251*'COM-Appliance class'!$C77+'COM S curve-disconnect'!G272*'COM-Appliance class'!$D77+'COM S curve-disconnect'!G293*'COM-Appliance class'!$E77","v":0},{"$f":"H230*'COM-Appliance class'!$B77+'COM S curve-disconnect'!H251*'COM-Appliance class'!$C77+'COM S curve-disconnect'!H272*'COM-Appliance class'!$D77+'COM S curve-disconnect'!H293*'COM-Appliance class'!$E77","v":0},{"$f":"I230*'COM-Appliance class'!$B77+'COM S curve-disconnect'!I251*'COM-Appliance class'!$C77+'COM S curve-disconnect'!I272*'COM-Appliance class'!$D77+'COM S curve-disconnect'!I293*'COM-Appliance class'!$E77","v":0},{"$f":"J230*'COM-Appliance class'!$B77+'COM S curve-disconnect'!J251*'COM-Appliance class'!$C77+'COM S curve-disconnect'!J272*'COM-Appliance class'!$D77+'COM S curve-disconnect'!J293*'COM-Appliance class'!$E77","v":0},{"$f":"K230*'COM-Appliance class'!$B77+'COM S curve-disconnect'!K251*'COM-Appliance class'!$C77+'COM S curve-disconnect'!K272*'COM-Appliance class'!$D77+'COM S curve-disconnect'!K293*'COM-Appliance class'!$E77","v":0},{"$f":"L230*'COM-Appliance class'!$B77+'COM S curve-disconnect'!L251*'COM-Appliance class'!$C77+'COM S curve-disconnect'!L272*'COM-Appliance class'!$D77+'COM S curve-disconnect'!L293*'COM-Appliance class'!$E77","v":0},{"$f":"M230*'COM-Appliance class'!$B77+'COM S curve-disconnect'!M251*'COM-Appliance class'!$C77+'COM S curve-disconnect'!M272*'COM-Appliance class'!$D77+'COM S curve-disconnect'!M293*'COM-Appliance class'!$E77","v":0},{"$f":"N230*'COM-Appliance class'!$B77+'COM S curve-disconnect'!N251*'COM-Appliance class'!$C77+'COM S curve-disconnect'!N272*'COM-Appliance class'!$D77+'COM S curve-disconnect'!N293*'COM-Appliance class'!$E77","v":0},{"$f":"O230*'COM-Appliance class'!$B77+'COM S curve-disconnect'!O251*'COM-Appliance class'!$C77+'COM S curve-disconnect'!O272*'COM-Appliance class'!$D77+'COM S curve-disconnect'!O293*'COM-Appliance class'!$E77","v":0},{"$f":"P230*'COM-Appliance class'!$B77+'COM S curve-disconnect'!P251*'COM-Appliance class'!$C77+'COM S curve-disconnect'!P272*'COM-Appliance class'!$D77+'COM S curve-disconnect'!P293*'COM-Appliance class'!$E77","v":0},{"$f":"Q230*'COM-Appliance class'!$B77+'COM S curve-disconnect'!Q251*'COM-Appliance class'!$C77+'COM S curve-disconnect'!Q272*'COM-Appliance class'!$D77+'COM S curve-disconnect'!Q293*'COM-Appliance class'!$E77","v":0},{"$f":"R230*'COM-Appliance class'!$B77+'COM S curve-disconnect'!R251*'COM-Appliance class'!$C77+'COM S curve-disconnect'!R272*'COM-Appliance class'!$D77+'COM S curve-disconnect'!R293*'COM-Appliance class'!$E77","v":0},{"$f":"S230*'COM-Appliance class'!$B77+'COM S curve-disconnect'!S251*'COM-Appliance class'!$C77+'COM S curve-disconnect'!S272*'COM-Appliance class'!$D77+'COM S curve-disconnect'!S293*'COM-Appliance class'!$E77","v":0},{"$f":"T230*'COM-Appliance class'!$B77+'COM S curve-disconnect'!T251*'COM-Appliance class'!$C77+'COM S curve-disconnect'!T272*'COM-Appliance class'!$D77+'COM S curve-disconnect'!T293*'COM-Appliance class'!$E77","v":0},{"$f":"U230*'COM-Appliance class'!$B77+'COM S curve-disconnect'!U251*'COM-Appliance class'!$C77+'COM S curve-disconnect'!U272*'COM-Appliance class'!$D77+'COM S curve-disconnect'!U293*'COM-Appliance class'!$E77","v":0},{"$f":"V230*'COM-Appliance class'!$B77+'COM S curve-disconnect'!V251*'COM-Appliance class'!$C77+'COM S curve-disconnect'!V272*'COM-Appliance class'!$D77+'COM S curve-disconnect'!V293*'COM-Appliance class'!$E77","v":0},{"$f":"W230*'COM-Appliance class'!$B77+'COM S curve-disconnect'!W251*'COM-Appliance class'!$C77+'COM S curve-disconnect'!W272*'COM-Appliance class'!$D77+'COM S curve-disconnect'!W293*'COM-Appliance class'!$E77","v":0},{"$f":"X230*'COM-Appliance class'!$B77+'COM S curve-disconnect'!X251*'COM-Appliance class'!$C77+'COM S curve-disconnect'!X272*'COM-Appliance class'!$D77+'COM S curve-disconnect'!X293*'COM-Appliance class'!$E77","v":0},{"$f":"Y230*'COM-Appliance class'!$B77+'COM S curve-disconnect'!Y251*'COM-Appliance class'!$C77+'COM S curve-disconnect'!Y272*'COM-Appliance class'!$D77+'COM S curve-disconnect'!Y293*'COM-Appliance class'!$E77","v":0},{"$f":"Z230*'COM-Appliance class'!$B77+'COM S curve-disconnect'!Z251*'COM-Appliance class'!$C77+'COM S curve-disconnect'!Z272*'COM-Appliance class'!$D77+'COM S curve-disconnect'!Z293*'COM-Appliance class'!$E77","v":0},{"$f":"AA230*'COM-Appliance class'!$B77+'COM S curve-disconnect'!AA251*'COM-Appliance class'!$C77+'COM S curve-disconnect'!AA272*'COM-Appliance class'!$D77+'COM S curve-disconnect'!AA293*'COM-Appliance class'!$E77","v":0},{"$f":"AB230*'COM-Appliance class'!$B77+'COM S curve-disconnect'!AB251*'COM-Appliance class'!$C77+'COM S curve-disconnect'!AB272*'COM-Appliance class'!$D77+'COM S curve-disconnect'!AB293*'COM-Appliance class'!$E77","v":0},{"$f":"AC230*'COM-Appliance class'!$B77+'COM S curve-disconnect'!AC251*'COM-Appliance class'!$C77+'COM S curve-disconnect'!AC272*'COM-Appliance class'!$D77+'COM S curve-disconnect'!AC293*'COM-Appliance class'!$E77","v":0},{"$f":"AD230*'COM-Appliance class'!$B77+'COM S curve-disconnect'!AD251*'COM-Appliance class'!$C77+'COM S curve-disconnect'!AD272*'COM-Appliance class'!$D77+'COM S curve-disconnect'!AD293*'COM-Appliance class'!$E77","v":0},{"$f":"AE230*'COM-Appliance class'!$B77+'COM S curve-disconnect'!AE251*'COM-Appliance class'!$C77+'COM S curve-disconnect'!AE272*'COM-Appliance class'!$D77+'COM S curve-disconnect'!AE293*'COM-Appliance class'!$E77","v":0},{"$f":"AF230*'COM-Appliance class'!$B77+'COM S curve-disconnect'!AF251*'COM-Appliance class'!$C77+'COM S curve-disconnect'!AF272*'COM-Appliance class'!$D77+'COM S curve-disconnect'!AF293*'COM-Appliance class'!$E77","v":0},{"$f":"AG230*'COM-Appliance class'!$B77+'COM S curve-disconnect'!AG251*'COM-Appliance class'!$C77+'COM S curve-disconnect'!AG272*'COM-Appliance class'!$D77+'COM S curve-disconnect'!AG293*'COM-Appliance class'!$E77","v":0},{"$f":"AH230*'COM-Appliance class'!$B77+'COM S curve-disconnect'!AH251*'COM-Appliance class'!$C77+'COM S curve-disconnect'!AH272*'COM-Appliance class'!$D77+'COM S curve-disconnect'!AH293*'COM-Appliance class'!$E77","v":0},{"$f":"AI230*'COM-Appliance class'!$B77+'COM S curve-disconnect'!AI251*'COM-Appliance class'!$C77+'COM S curve-disconnect'!AI272*'COM-Appliance class'!$D77+'COM S curve-disconnect'!AI293*'COM-Appliance class'!$E77","v":0},{"$f":"AJ230*'COM-Appliance class'!$B77+'COM S curve-disconnect'!AJ251*'COM-Appliance class'!$C77+'COM S curve-disconnect'!AJ272*'COM-Appliance class'!$D77+'COM S curve-disconnect'!AJ293*'COM-Appliance class'!$E77","v":0},{"$f":"AK230*'COM-Appliance class'!$B77+'COM S curve-disconnect'!AK251*'COM-Appliance class'!$C77+'COM S curve-disconnect'!AK272*'COM-Appliance class'!$D77+'COM S curve-disconnect'!AK293*'COM-Appliance class'!$E77","v":0},{"$f":"AL230*'COM-Appliance class'!$B77+'COM S curve-disconnect'!AL251*'COM-Appliance class'!$C77+'COM S curve-disconnect'!AL272*'COM-Appliance class'!$D77+'COM S curve-disconnect'!AL293*'COM-Appliance class'!$E77","v":0},{"$f":"AM230*'COM-Appliance class'!$B77+'COM S curve-disconnect'!AM251*'COM-Appliance class'!$C77+'COM S curve-disconnect'!AM272*'COM-Appliance class'!$D77+'COM S curve-disconnect'!AM293*'COM-Appliance class'!$E77","v":0},{"$f":"AN230*'COM-Appliance class'!$B77+'COM S curve-disconnect'!AN251*'COM-Appliance class'!$C77+'COM S curve-disconnect'!AN272*'COM-Appliance class'!$D77+'COM S curve-disconnect'!AN293*'COM-Appliance class'!$E77","v":0},{"$f":"AO230*'COM-Appliance class'!$B77+'COM S curve-disconnect'!AO251*'COM-Appliance class'!$C77+'COM S curve-disconnect'!AO272*'COM-Appliance class'!$D77+'COM S curve-disconnect'!AO293*'COM-Appliance class'!$E77","v":0},{"$f":"AP230*'COM-Appliance class'!$B77+'COM S curve-disconnect'!AP251*'COM-Appliance class'!$C77+'COM S curve-disconnect'!AP272*'COM-Appliance class'!$D77+'COM S curve-disconnect'!AP293*'COM-Appliance class'!$E77","v":0},{"$f":"AQ230*'COM-Appliance class'!$B77+'COM S curve-disconnect'!AQ251*'COM-Appliance class'!$C77+'COM S curve-disconnect'!AQ272*'COM-Appliance class'!$D77+'COM S curve-disconnect'!AQ293*'COM-Appliance class'!$E77","v":0},{"$f":"AR230*'COM-Appliance class'!$B77+'COM S curve-disconnect'!AR251*'COM-Appliance class'!$C77+'COM S curve-disconnect'!AR272*'COM-Appliance class'!$D77+'COM S curve-disconnect'!AR293*'COM-Appliance class'!$E77","v":0},{"$f":"AS230*'COM-Appliance class'!$B77+'COM S curve-disconnect'!AS251*'COM-Appliance class'!$C77+'COM S curve-disconnect'!AS272*'COM-Appliance class'!$D77+'COM S curve-disconnect'!AS293*'COM-Appliance class'!$E77","v":0},{"$f":"AT230*'COM-Appliance class'!$B77+'COM S curve-disconnect'!AT251*'COM-Appliance class'!$C77+'COM S curve-disconnect'!AT272*'COM-Appliance class'!$D77+'COM S curve-disconnect'!AT293*'COM-Appliance class'!$E77","v":0},{"$f":"AU230*'COM-Appliance class'!$B77+'COM S curve-disconnect'!AU251*'COM-Appliance class'!$C77+'COM S curve-disconnect'!AU272*'COM-Appliance class'!$D77+'COM S curve-disconnect'!AU293*'COM-Appliance class'!$E77","v":0},{"$f":"AV230*'COM-Appliance class'!$B77+'COM S curve-disconnect'!AV251*'COM-Appliance class'!$C77+'COM S curve-disconnect'!AV272*'COM-Appliance class'!$D77+'COM S curve-disconnect'!AV293*'COM-Appliance class'!$E77","v":0},{"$f":"AW230*'COM-Appliance class'!$B77+'COM S curve-disconnect'!AW251*'COM-Appliance class'!$C77+'COM S curve-disconnect'!AW272*'COM-Appliance class'!$D77+'COM S curve-disconnect'!AW293*'COM-Appliance class'!$E77","v":0},{"$f":"AX230*'COM-Appliance class'!$B77+'COM S curve-disconnect'!AX251*'COM-Appliance class'!$C77+'COM S curve-disconnect'!AX272*'COM-Appliance class'!$D77+'COM S curve-disconnect'!AX293*'COM-Appliance class'!$E77","v":0},{"$f":"AY230*'COM-Appliance class'!$B77+'COM S curve-disconnect'!AY251*'COM-Appliance class'!$C77+'COM S curve-disconnect'!AY272*'COM-Appliance class'!$D77+'COM S curve-disconnect'!AY293*'COM-Appliance class'!$E77","v":0},{"$f":"AZ230*'COM-Appliance class'!$B77+'COM S curve-disconnect'!AZ251*'COM-Appliance class'!$C77+'COM S curve-disconnect'!AZ272*'COM-Appliance class'!$D77+'COM S curve-disconnect'!AZ293*'COM-Appliance class'!$E77","v":0},{"$f":"BA230*'COM-Appliance class'!$B77+'COM S curve-disconnect'!BA251*'COM-Appliance class'!$C77+'COM S curve-disconnect'!BA272*'COM-Appliance class'!$D77+'COM S curve-disconnect'!BA293*'COM-Appliance class'!$E77","v":0},{"$f":"BB230*'COM-Appliance class'!$B77+'COM S curve-disconnect'!BB251*'COM-Appliance class'!$C77+'COM S curve-disconnect'!BB272*'COM-Appliance class'!$D77+'COM S curve-disconnect'!BB293*'COM-Appliance class'!$E77","v":0},{"$f":"BC230*'COM-Appliance class'!$B77+'COM S curve-disconnect'!BC251*'COM-Appliance class'!$C77+'COM S curve-disconnect'!BC272*'COM-Appliance class'!$D77+'COM S curve-disconnect'!BC293*'COM-Appliance class'!$E77","v":0},{"$f":"BD230*'COM-Appliance class'!$B77+'COM S curve-disconnect'!BD251*'COM-Appliance class'!$C77+'COM S curve-disconnect'!BD272*'COM-Appliance class'!$D77+'COM S curve-disconnect'!BD293*'COM-Appliance class'!$E77","v":0},{"$f":"BE230*'COM-Appliance class'!$B77+'COM S curve-disconnect'!BE251*'COM-Appliance class'!$C77+'COM S curve-disconnect'!BE272*'COM-Appliance class'!$D77+'COM S curve-disconnect'!BE293*'COM-Appliance class'!$E77","v":0},{"$f":"BF230*'COM-Appliance class'!$B77+'COM S curve-disconnect'!BF251*'COM-Appliance class'!$C77+'COM S curve-disconnect'!BF272*'COM-Appliance class'!$D77+'COM S curve-disconnect'!BF293*'COM-Appliance class'!$E77","v":0},{"$f":"BG230*'COM-Appliance class'!$B77+'COM S curve-disconnect'!BG251*'COM-Appliance class'!$C77+'COM S curve-disconnect'!BG272*'COM-Appliance class'!$D77+'COM S curve-disconnect'!BG293*'COM-Appliance class'!$E77","v":0},{"$f":"BH230*'COM-Appliance class'!$B77+'COM S curve-disconnect'!BH251*'COM-Appliance class'!$C77+'COM S curve-disconnect'!BH272*'COM-Appliance class'!$D77+'COM S curve-disconnect'!BH293*'COM-Appliance class'!$E77","v":0},{"$f":"BI230*'COM-Appliance class'!$B77+'COM S curve-disconnect'!BI251*'COM-Appliance class'!$C77+'COM S curve-disconnect'!BI272*'COM-Appliance class'!$D77+'COM S curve-disconnect'!BI293*'COM-Appliance class'!$E77","v":0},{"$f":"BJ230*'COM-Appliance class'!$B77+'COM S curve-disconnect'!BJ251*'COM-Appliance class'!$C77+'COM S curve-disconnect'!BJ272*'COM-Appliance class'!$D77+'COM S curve-disconnect'!BJ293*'COM-Appliance class'!$E77","v":0},{"$f":"BK230*'COM-Appliance class'!$B77+'COM S curve-disconnect'!BK251*'COM-Appliance class'!$C77+'COM S curve-disconnect'!BK272*'COM-Appliance class'!$D77+'COM S curve-disconnect'!BK293*'COM-Appliance class'!$E77","v":0},{"$f":"BL230*'COM-Appliance class'!$B77+'COM S curve-disconnect'!BL251*'COM-Appliance class'!$C77+'COM S curve-disconnect'!BL272*'COM-Appliance class'!$D77+'COM S curve-disconnect'!BL293*'COM-Appliance class'!$E77","v":0},{"$f":"BM230*'COM-Appliance class'!$B77+'COM S curve-disconnect'!BM251*'COM-Appliance class'!$C77+'COM S curve-disconnect'!BM272*'COM-Appliance class'!$D77+'COM S curve-disconnect'!BM293*'COM-Appliance class'!$E77","v":0},{"$f":"BN230*'COM-Appliance class'!$B77+'COM S curve-disconnect'!BN251*'COM-Appliance class'!$C77+'COM S curve-disconnect'!BN272*'COM-Appliance class'!$D77+'COM S curve-disconnect'!BN293*'COM-Appliance class'!$E77","v":0},{"$f":"BO230*'COM-Appliance class'!$B77+'COM S curve-disconnect'!BO251*'COM-Appliance class'!$C77+'COM S curve-disconnect'!BO272*'COM-Appliance class'!$D77+'COM S curve-disconnect'!BO293*'COM-Appliance class'!$E77","v":0},{"$f":"BP230*'COM-Appliance class'!$B77+'COM S curve-disconnect'!BP251*'COM-Appliance class'!$C77+'COM S curve-disconnect'!BP272*'COM-Appliance class'!$D77+'COM S curve-disconnect'!BP293*'COM-Appliance class'!$E77","v":0},{"$f":"BQ230*'COM-Appliance class'!$B77+'COM S curve-disconnect'!BQ251*'COM-Appliance class'!$C77+'COM S curve-disconnect'!BQ272*'COM-Appliance class'!$D77+'COM S curve-disconnect'!BQ293*'COM-Appliance class'!$E77","v":0},{"$f":"BR230*'COM-Appliance class'!$B77+'COM S curve-disconnect'!BR251*'COM-Appliance class'!$C77+'COM S curve-disconnect'!BR272*'COM-Appliance class'!$D77+'COM S curve-disconnect'!BR293*'COM-Appliance class'!$E77","v":0},{"$f":"BS230*'COM-Appliance class'!$B77+'COM S curve-disconnect'!BS251*'COM-Appliance class'!$C77+'COM S curve-disconnect'!BS272*'COM-Appliance class'!$D77+'COM S curve-disconnect'!BS293*'COM-Appliance class'!$E77","v":0},{"$f":"BT230*'COM-Appliance class'!$B77+'COM S curve-disconnect'!BT251*'COM-Appliance class'!$C77+'COM S curve-disconnect'!BT272*'COM-Appliance class'!$D77+'COM S curve-disconnect'!BT293*'COM-Appliance class'!$E77","v":0},{"$f":"BU230*'COM-Appliance class'!$B77+'COM S curve-disconnect'!BU251*'COM-Appliance class'!$C77+'COM S curve-disconnect'!BU272*'COM-Appliance class'!$D77+'COM S curve-disconnect'!BU293*'COM-Appliance class'!$E77","v":0},{"$f":"BV230*'COM-Appliance class'!$B77+'COM S curve-disconnect'!BV251*'COM-Appliance class'!$C77+'COM S curve-disconnect'!BV272*'COM-Appliance class'!$D77+'COM S curve-disconnect'!BV293*'COM-Appliance class'!$E77","v":0},{"$f":"BW230*'COM-Appliance class'!$B77+'COM S curve-disconnect'!BW251*'COM-Appliance class'!$C77+'COM S curve-disconnect'!BW272*'COM-Appliance class'!$D77+'COM S curve-disconnect'!BW293*'COM-Appliance class'!$E77","v":0},{"$f":"BX230*'COM-Appliance class'!$B77+'COM S curve-disconnect'!BX251*'COM-Appliance class'!$C77+'COM S curve-disconnect'!BX272*'COM-Appliance class'!$D77+'COM S curve-disconnect'!BX293*'COM-Appliance class'!$E77","v":0},{"$f":"BY230*'COM-Appliance class'!$B77+'COM S curve-disconnect'!BY251*'COM-Appliance class'!$C77+'COM S curve-disconnect'!BY272*'COM-Appliance class'!$D77+'COM S curve-disconnect'!BY293*'COM-Appliance class'!$E77","v":0},{"$f":"BZ230*'COM-Appliance class'!$B77+'COM S curve-disconnect'!BZ251*'COM-Appliance class'!$C77+'COM S curve-disconnect'!BZ272*'COM-Appliance class'!$D77+'COM S curve-disconnect'!BZ293*'COM-Appliance class'!$E77","v":0},{"$f":"CA230*'COM-Appliance class'!$B77+'COM S curve-disconnect'!CA251*'COM-Appliance class'!$C77+'COM S curve-disconnect'!CA272*'COM-Appliance class'!$D77+'COM S curve-disconnect'!CA293*'COM-Appliance class'!$E77","v":0},{"$f":"CB230*'COM-Appliance class'!$B77+'COM S curve-disconnect'!CB251*'COM-Appliance class'!$C77+'COM S curve-disconnect'!CB272*'COM-Appliance class'!$D77+'COM S curve-disconnect'!CB293*'COM-Appliance class'!$E77","v":0},{"$f":"CC230*'COM-Appliance class'!$B77+'COM S curve-disconnect'!CC251*'COM-Appliance class'!$C77+'COM S curve-disconnect'!CC272*'COM-Appliance class'!$D77+'COM S curve-disconnect'!CC293*'COM-Appliance class'!$E77","v":0},{"$f":"CD230*'COM-Appliance class'!$B77+'COM S curve-disconnect'!CD251*'COM-Appliance class'!$C77+'COM S curve-disconnect'!CD272*'COM-Appliance class'!$D77+'COM S curve-disconnect'!CD293*'COM-Appliance class'!$E77","v":0}]
["Glen Eira (C)",null,{"$f":"C231*'COM-Appliance class'!$B78+'COM S curve-disconnect'!C252*'COM-Appliance class'!$C78+'COM S curve-disconnect'!C273*'COM-Appliance class'!$D78+'COM S curve-disconnect'!C294*'COM-Appliance class'!$E78","v":12210.035720789983},{"$f":"D231*'COM-Appliance class'!$B78+'COM S curve-disconnect'!D252*'COM-Appliance class'!$C78+'COM S curve-disconnect'!D273*'COM-Appliance class'!$D78+'COM S curve-disconnect'!D294*'COM-Appliance class'!$E78","v":15007.709062339189},{"$f":"E231*'COM-Appliance class'!$B78+'COM S curve-disconnect'!E252*'COM-Appliance class'!$C78+'COM S curve-disconnect'!E273*'COM-Appliance class'!$D78+'COM S curve-disconnect'!E294*'COM-Appliance class'!$E78","v":13336.171261038335},{"$f":"F231*'COM-Appliance class'!$B78+'COM S curve-disconnect'!F252*'COM-Appliance class'!$C78+'COM S curve-disconnect'!F273*'COM-Appliance class'!$D78+'COM S curve-disconnect'!F294*'COM-Appliance class'!$E78","v":14834.995406101569},{"$f":"G231*'COM-Appliance class'!$B78+'COM S curve-disconnect'!G252*'COM-Appliance class'!$C78+'COM S curve-disconnect'!G273*'COM-Appliance class'!$D78+'COM S curve-disconnect'!G294*'COM-Appliance class'!$E78","v":13061.279825332595},{"$f":"H231*'COM-Appliance class'!$B78+'COM S curve-disconnect'!H252*'COM-Appliance class'!$C78+'COM S curve-disconnect'!H273*'COM-Appliance class'!$D78+'COM S curve-disconnect'!H294*'COM-Appliance class'!$E78","v":13407.700240543782},{"$f":"I231*'COM-Appliance class'!$B78+'COM S curve-disconnect'!I252*'COM-Appliance class'!$C78+'COM S curve-disconnect'!I273*'COM-Appliance class'!$D78+'COM S curve-disconnect'!I294*'COM-Appliance class'!$E78","v":15548.846778341423},{"$f":"J231*'COM-Appliance class'!$B78+'COM S curve-disconnect'!J252*'COM-Appliance class'!$C78+'COM S curve-disconnect'!J273*'COM-Appliance class'!$D78+'COM S curve-disconnect'!J294*'COM-Appliance class'!$E78","v":17110.510890869857},{"$f":"K231*'COM-Appliance class'!$B78+'COM S curve-disconnect'!K252*'COM-Appliance class'!$C78+'COM S curve-disconnect'!K273*'COM-Appliance class'!$D78+'COM S curve-disconnect'!K294*'COM-Appliance class'!$E78","v":20483.56704374127},{"$f":"L231*'COM-Appliance class'!$B78+'COM S curve-disconnect'!L252*'COM-Appliance class'!$C78+'COM S curve-disconnect'!L273*'COM-Appliance class'!$D78+'COM S curve-disconnect'!L294*'COM-Appliance class'!$E78","v":20309.552489637343},{"$f":"M231*'COM-Appliance class'!$B78+'COM S curve-disconnect'!M252*'COM-Appliance class'!$C78+'COM S curve-disconnect'!M273*'COM-Appliance class'!$D78+'COM S curve-disconnect'!M294*'COM-Appliance class'!$E78","v":16502.212148910719},{"$f":"N231*'COM-Appliance class'!$B78+'COM S curve-disconnect'!N252*'COM-Appliance class'!$C78+'COM S curve-disconnect'!N273*'COM-Appliance class'!$D78+'COM S curve-disconnect'!N294*'COM-Appliance class'!$E78","v":16425.162350839437},{"$f":"O231*'COM-Appliance class'!$B78+'COM S curve-disconnect'!O252*'COM-Appliance class'!$C78+'COM S curve-disconnect'!O273*'COM-Appliance class'!$D78+'COM S curve-disconnect'!O294*'COM-Appliance class'!$E78","v":18691.840081733775},{"$f":"P231*'COM-Appliance class'!$B78+'COM S curve-disconnect'!P252*'COM-Appliance class'!$C78+'COM S curve-disconnect'!P273*'COM-Appliance class'!$D78+'COM S curve-disconnect'!P294*'COM-Appliance class'!$E78","v":20885.682319018662},{"$f":"Q231*'COM-Appliance class'!$B78+'COM S curve-disconnect'!Q252*'COM-Appliance class'!$C78+'COM S curve-disconnect'!Q273*'COM-Appliance class'!$D78+'COM S curve-disconnect'!Q294*'COM-Appliance class'!$E78","v":14543.232572217436},{"$f":"R231*'COM-Appliance class'!$B78+'COM S curve-disconnect'!R252*'COM-Appliance class'!$C78+'COM S curve-disconnect'!R273*'COM-Appliance class'!$D78+'COM S curve-disconnect'!R294*'COM-Appliance class'!$E78","v":15448.298385129265},{"$f":"S231*'COM-Appliance class'!$B78+'COM S curve-disconnect'!S252*'COM-Appliance class'!$C78+'COM S curve-disconnect'!S273*'COM-Appliance class'!$D78+'COM S curve-disconnect'!S294*'COM-Appliance class'!$E78","v":16791.232804063344},{"$f":"T231*'COM-Appliance class'!$B78+'COM S curve-disconnect'!T252*'COM-Appliance class'!$C78+'COM S curve-disconnect'!T273*'COM-Appliance class'!$D78+'COM S curve-disconnect'!T294*'COM-Appliance class'!$E78","v":18757.114098837243},{"$f":"U231*'COM-Appliance class'!$B78+'COM S curve-disconnect'!U252*'COM-Appliance class'!$C78+'COM S curve-disconnect'!U273*'COM-Appliance class'!$D78+'COM S curve-disconnect'!U294*'COM-Appliance class'!$E78","v":20219.998873829816},{"$f":"V231*'COM-Appliance class'!$B78+'COM S curve-disconnect'!V252*'COM-Appliance class'!$C78+'COM S curve-disconnect'!V273*'COM-Appliance class'!$D78+'COM S curve-disconnect'!V294*'COM-Appliance class'!$E78","v":20756.791182490848},{"$f":"W231*'COM-Appliance class'!$B78+'COM S curve-disconnect'!W252*'COM-Appliance class'!$C78+'COM S curve-disconnect'!W273*'COM-Appliance class'!$D78+'COM S curve-disconnect'!W294*'COM-Appliance class'!$E78","v":21631.340737691819},{"$f":"X231*'COM-Appliance class'!$B78+'COM S curve-disconnect'!X252*'COM-Appliance class'!$C78+'COM S curve-disconnect'!X273*'COM-Appliance class'!$D78+'COM S curve-disconnect'!X294*'COM-Appliance class'!$E78","v":23798.076462810161},{"$f":"Y231*'COM-Appliance class'!$B78+'COM S curve-disconnect'!Y252*'COM-Appliance class'!$C78+'COM S curve-disconnect'!Y273*'COM-Appliance class'!$D78+'COM S curve-disconnect'!Y294*'COM-Appliance class'!$E78","v":25598.331813251592},{"$f":"Z231*'COM-Appliance class'!$B78+'COM S curve-disconnect'!Z252*'COM-Appliance class'!$C78+'COM S curve-disconnect'!Z273*'COM-Appliance class'!$D78+'COM S curve-disconnect'!Z294*'COM-Appliance class'!$E78","v":26614.713644406969},{"$f":"AA231*'COM-Appliance class'!$B78+'COM S curve-disconnect'!AA252*'COM-Appliance class'!$C78+'COM S curve-disconnect'!AA273*'COM-Appliance class'!$D78+'COM S curve-disconnect'!AA294*'COM-Appliance class'!$E78","v":27769.652376917176},{"$f":"AB231*'COM-Appliance class'!$B78+'COM S curve-disconnect'!AB252*'COM-Appliance class'!$C78+'COM S curve-disconnect'!AB273*'COM-Appliance class'!$D78+'COM S curve-disconnect'!AB294*'COM-Appliance class'!$E78","v":28494.282764795596},{"$f":"AC231*'COM-Appliance class'!$B78+'COM S curve-disconnect'!AC252*'COM-Appliance class'!$C78+'COM S curve-disconnect'!AC273*'COM-Appliance class'!$D78+'COM S curve-disconnect'!AC294*'COM-Appliance class'!$E78","v":29018.797115865404},{"$f":"AD231*'COM-Appliance class'!$B78+'COM S curve-disconnect'!AD252*'COM-Appliance class'!$C78+'COM S curve-disconnect'!AD273*'COM-Appliance class'!$D78+'COM S curve-disconnect'!AD294*'COM-Appliance class'!$E78","v":29394.350687059297},{"$f":"AE231*'COM-Appliance class'!$B78+'COM S curve-disconnect'!AE252*'COM-Appliance class'!$C78+'COM S curve-disconnect'!AE273*'COM-Appliance class'!$D78+'COM S curve-disconnect'!AE294*'COM-Appliance class'!$E78","v":29709.079833927171},{"$f":"AF231*'COM-Appliance class'!$B78+'COM S curve-disconnect'!AF252*'COM-Appliance class'!$C78+'COM S curve-disconnect'!AF273*'COM-Appliance class'!$D78+'COM S curve-disconnect'!AF294*'COM-Appliance class'!$E78","v":30294.74839745033},{"$f":"AG231*'COM-Appliance class'!$B78+'COM S curve-disconnect'!AG252*'COM-Appliance class'!$C78+'COM S curve-disconnect'!AG273*'COM-Appliance class'!$D78+'COM S curve-disconnect'!AG294*'COM-Appliance class'!$E78","v":30322.885762376231},{"$f":"AH231*'COM-Appliance class'!$B78+'COM S curve-disconnect'!AH252*'COM-Appliance class'!$C78+'COM S curve-disconnect'!AH273*'COM-Appliance class'!$D78+'COM S curve-disconnect'!AH294*'COM-Appliance class'!$E78","v":30937.265751881569},{"$f":"AI231*'COM-Appliance class'!$B78+'COM S curve-disconnect'!AI252*'COM-Appliance class'!$C78+'COM S curve-disconnect'!AI273*'COM-Appliance class'!$D78+'COM S curve-disconnect'!AI294*'COM-Appliance class'!$E78","v":30976.803198788413},{"$f":"AJ231*'COM-Appliance class'!$B78+'COM S curve-disconnect'!AJ252*'COM-Appliance class'!$C78+'COM S curve-disconnect'!AJ273*'COM-Appliance class'!$D78+'COM S curve-disconnect'!AJ294*'COM-Appliance class'!$E78","v":31016.284892958523},{"$f":"AK231*'COM-Appliance class'!$B78+'COM S curve-disconnect'!AK252*'COM-Appliance class'!$C78+'COM S curve-disconnect'!AK273*'COM-Appliance class'!$D78+'COM S curve-disconnect'!AK294*'COM-Appliance class'!$E78","v":31055.711176991477},{"$f":"AL231*'COM-Appliance class'!$B78+'COM S curve-disconnect'!AL252*'COM-Appliance class'!$C78+'COM S curve-disconnect'!AL273*'COM-Appliance class'!$D78+'COM S curve-disconnect'!AL294*'COM-Appliance class'!$E78","v":31095.082391360222},{"$f":"AM231*'COM-Appliance class'!$B78+'COM S curve-disconnect'!AM252*'COM-Appliance class'!$C78+'COM S curve-disconnect'!AM273*'COM-Appliance class'!$D78+'COM S curve-disconnect'!AM294*'COM-Appliance class'!$E78","v":31134.398874424496},{"$f":"AN231*'COM-Appliance class'!$B78+'COM S curve-disconnect'!AN252*'COM-Appliance class'!$C78+'COM S curve-disconnect'!AN273*'COM-Appliance class'!$D78+'COM S curve-disconnect'!AN294*'COM-Appliance class'!$E78","v":31173.660962444017},{"$f":"AO231*'COM-Appliance class'!$B78+'COM S curve-disconnect'!AO252*'COM-Appliance class'!$C78+'COM S curve-disconnect'!AO273*'COM-Appliance class'!$D78+'COM S curve-disconnect'!AO294*'COM-Appliance class'!$E78","v":31212.868989591891},{"$f":"AP231*'COM-Appliance class'!$B78+'COM S curve-disconnect'!AP252*'COM-Appliance class'!$C78+'COM S curve-disconnect'!AP273*'COM-Appliance class'!$D78+'COM S curve-disconnect'!AP294*'COM-Appliance class'!$E78","v":31252.023287967557},{"$f":"AQ231*'COM-Appliance class'!$B78+'COM S curve-disconnect'!AQ252*'COM-Appliance class'!$C78+'COM S curve-disconnect'!AQ273*'COM-Appliance class'!$D78+'COM S curve-disconnect'!AQ294*'COM-Appliance class'!$E78","v":31291.124187610032},{"$f":"AR231*'COM-Appliance class'!$B78+'COM S curve-disconnect'!AR252*'COM-Appliance class'!$C78+'COM S curve-disconnect'!AR273*'COM-Appliance class'!$D78+'COM S curve-disconnect'!AR294*'COM-Appliance class'!$E78","v":31330.172016510711},{"$f":"AS231*'COM-Appliance class'!$B78+'COM S curve-disconnect'!AS252*'COM-Appliance class'!$C78+'COM S curve-disconnect'!AS273*'COM-Appliance class'!$D78+'COM S curve-disconnect'!AS294*'COM-Appliance class'!$E78","v":31369.167100626437},{"$f":"AT231*'COM-Appliance class'!$B78+'COM S curve-disconnect'!AT252*'COM-Appliance class'!$C78+'COM S curve-disconnect'!AT273*'COM-Appliance class'!$D78+'COM S curve-disconnect'!AT294*'COM-Appliance class'!$E78","v":31408.109763892098},{"$f":"AU231*'COM-Appliance class'!$B78+'COM S curve-disconnect'!AU252*'COM-Appliance class'!$C78+'COM S curve-disconnect'!AU273*'COM-Appliance class'!$D78+'COM S curve-disconnect'!AU294*'COM-Appliance class'!$E78","v":31447.000328233597},{"$f":"AV231*'COM-Appliance class'!$B78+'COM S curve-disconnect'!AV252*'COM-Appliance class'!$C78+'COM S curve-disconnect'!AV273*'COM-Appliance class'!$D78+'COM S curve-disconnect'!AV294*'COM-Appliance class'!$E78","v":31485.839113580267},{"$f":"AW231*'COM-Appliance class'!$B78+'COM S curve-disconnect'!AW252*'COM-Appliance class'!$C78+'COM S curve-disconnect'!AW273*'COM-Appliance class'!$D78+'COM S curve-disconnect'!AW294*'COM-Appliance class'!$E78","v":31524.62643787764},{"$f":"AX231*'COM-Appliance class'!$B78+'COM S curve-disconnect'!AX252*'COM-Appliance class'!$C78+'COM S curve-disconnect'!AX273*'COM-Appliance class'!$D78+'COM S curve-disconnect'!AX294*'COM-Appliance class'!$E78","v":31563.362617099767},{"$f":"AY231*'COM-Appliance class'!$B78+'COM S curve-disconnect'!AY252*'COM-Appliance class'!$C78+'COM S curve-disconnect'!AY273*'COM-Appliance class'!$D78+'COM S curve-disconnect'!AY294*'COM-Appliance class'!$E78","v":31602.047965261769},{"$f":"AZ231*'COM-Appliance class'!$B78+'COM S curve-disconnect'!AZ252*'COM-Appliance class'!$C78+'COM S curve-disconnect'!AZ273*'COM-Appliance class'!$D78+'COM S curve-disconnect'!AZ294*'COM-Appliance class'!$E78","v":31640.682794432032},{"$f":"BA231*'COM-Appliance class'!$B78+'COM S curve-disconnect'!BA252*'COM-Appliance class'!$C78+'COM S curve-disconnect'!BA273*'COM-Appliance class'!$D78+'COM S curve-disconnect'!BA294*'COM-Appliance class'!$E78","v":31679.267414744638},{"$f":"BB231*'COM-Appliance class'!$B78+'COM S curve-disconnect'!BB252*'COM-Appliance class'!$C78+'COM S curve-disconnect'!BB273*'COM-Appliance class'!$D78+'COM S curve-disconnect'!BB294*'COM-Appliance class'!$E78","v":31717.802134411268},{"$f":"BC231*'COM-Appliance class'!$B78+'COM S curve-disconnect'!BC252*'COM-Appliance class'!$C78+'COM S curve-disconnect'!BC273*'COM-Appliance class'!$D78+'COM S curve-disconnect'!BC294*'COM-Appliance class'!$E78","v":31756.28725973361},{"$f":"BD231*'COM-Appliance class'!$B78+'COM S curve-disconnect'!BD252*'COM-Appliance class'!$C78+'COM S curve-disconnect'!BD273*'COM-Appliance class'!$D78+'COM S curve-disconnect'!BD294*'COM-Appliance class'!$E78","v":31794.723095115114},{"$f":"BE231*'COM-Appliance class'!$B78+'COM S curve-disconnect'!BE252*'COM-Appliance class'!$C78+'COM S curve-disconnect'!BE273*'COM-Appliance class'!$D78+'COM S curve-disconnect'!BE294*'COM-Appliance class'!$E78","v":31833.109943073148},{"$f":"BF231*'COM-Appliance class'!$B78+'COM S curve-disconnect'!BF252*'COM-Appliance class'!$C78+'COM S curve-disconnect'!BF273*'COM-Appliance class'!$D78+'COM S curve-disconnect'!BF294*'COM-Appliance class'!$E78","v":31871.448104250685},{"$f":"BG231*'COM-Appliance class'!$B78+'COM S curve-disconnect'!BG252*'COM-Appliance class'!$C78+'COM S curve-disconnect'!BG273*'COM-Appliance class'!$D78+'COM S curve-disconnect'!BG294*'COM-Appliance class'!$E78","v":31909.73787742819},{"$f":"BH231*'COM-Appliance class'!$B78+'COM S curve-disconnect'!BH252*'COM-Appliance class'!$C78+'COM S curve-disconnect'!BH273*'COM-Appliance class'!$D78+'COM S curve-disconnect'!BH294*'COM-Appliance class'!$E78","v":31947.979559535357},{"$f":"BI231*'COM-Appliance class'!$B78+'COM S curve-disconnect'!BI252*'COM-Appliance class'!$C78+'COM S curve-disconnect'!BI273*'COM-Appliance class'!$D78+'COM S curve-disconnect'!BI294*'COM-Appliance class'!$E78","v":31986.173445662716},{"$f":"BJ231*'COM-Appliance class'!$B78+'COM S curve-disconnect'!BJ252*'COM-Appliance class'!$C78+'COM S curve-disconnect'!BJ273*'COM-Appliance class'!$D78+'COM S curve-disconnect'!BJ294*'COM-Appliance class'!$E78","v":32024.319829073142},{"$f":"BK231*'COM-Appliance class'!$B78+'COM S curve-disconnect'!BK252*'COM-Appliance class'!$C78+'COM S curve-disconnect'!BK273*'COM-Appliance class'!$D78+'COM S curve-disconnect'!BK294*'COM-Appliance class'!$E78","v":32062.419001213493},{"$f":"BL231*'COM-Appliance class'!$B78+'COM S curve-disconnect'!BL252*'COM-Appliance class'!$C78+'COM S curve-disconnect'!BL273*'COM-Appliance class'!$D78+'COM S curve-disconnect'!BL294*'COM-Appliance class'!$E78","v":32100.471251725874},{"$f":"BM231*'COM-Appliance class'!$B78+'COM S curve-disconnect'!BM252*'COM-Appliance class'!$C78+'COM S curve-disconnect'!BM273*'COM-Appliance class'!$D78+'COM S curve-disconnect'!BM294*'COM-Appliance class'!$E78","v":32138.476868459176},{"$f":"BN231*'COM-Appliance class'!$B78+'COM S curve-disconnect'!BN252*'COM-Appliance class'!$C78+'COM S curve-disconnect'!BN273*'COM-Appliance class'!$D78+'COM S curve-disconnect'!BN294*'COM-Appliance class'!$E78","v":32176.436137480101},{"$f":"BO231*'COM-Appliance class'!$B78+'COM S curve-disconnect'!BO252*'COM-Appliance class'!$C78+'COM S curve-disconnect'!BO273*'COM-Appliance class'!$D78+'COM S curve-disconnect'!BO294*'COM-Appliance class'!$E78","v":32214.349343084632},{"$f":"BP231*'COM-Appliance class'!$B78+'COM S curve-disconnect'!BP252*'COM-Appliance class'!$C78+'COM S curve-disconnect'!BP273*'COM-Appliance class'!$D78+'COM S curve-disconnect'!BP294*'COM-Appliance class'!$E78","v":32252.216767808961},{"$f":"BQ231*'COM-Appliance class'!$B78+'COM S curve-disconnect'!BQ252*'COM-Appliance class'!$C78+'COM S curve-disconnect'!BQ273*'COM-Appliance class'!$D78+'COM S curve-disconnect'!BQ294*'COM-Appliance class'!$E78","v":32290.038692440718},{"$f":"BR231*'COM-Appliance class'!$B78+'COM S curve-disconnect'!BR252*'COM-Appliance class'!$C78+'COM S curve-disconnect'!BR273*'COM-Appliance class'!$D78+'COM S curve-disconnect'!BR294*'COM-Appliance class'!$E78","v":32327.8153960298},{"$f":"BS231*'COM-Appliance class'!$B78+'COM S curve-disconnect'!BS252*'COM-Appliance class'!$C78+'COM S curve-disconnect'!BS273*'COM-Appliance class'!$D78+'COM S curve-disconnect'!BS294*'COM-Appliance class'!$E78","v":32365.547155899469},{"$f":"BT231*'COM-Appliance class'!$B78+'COM S curve-disconnect'!BT252*'COM-Appliance class'!$C78+'COM S curve-disconnect'!BT273*'COM-Appliance class'!$D78+'COM S curve-disconnect'!BT294*'COM-Appliance class'!$E78","v":32403.234247657048},{"$f":"BU231*'COM-Appliance class'!$B78+'COM S curve-disconnect'!BU252*'COM-Appliance class'!$C78+'COM S curve-disconnect'!BU273*'COM-Appliance class'!$D78+'COM S curve-disconnect'!BU294*'COM-Appliance class'!$E78","v":32440.876945204851},{"$f":"BV231*'COM-Appliance class'!$B78+'COM S curve-disconnect'!BV252*'COM-Appliance class'!$C78+'COM S curve-disconnect'!BV273*'COM-Appliance class'!$D78+'COM S curve-disconnect'!BV294*'COM-Appliance class'!$E78","v":32478.475520750741},{"$f":"BW231*'COM-Appliance class'!$B78+'COM S curve-disconnect'!BW252*'COM-Appliance class'!$C78+'COM S curve-disconnect'!BW273*'COM-Appliance class'!$D78+'COM S curve-disconnect'!BW294*'COM-Appliance class'!$E78","v":32516.030244818998},{"$f":"BX231*'COM-Appliance class'!$B78+'COM S curve-disconnect'!BX252*'COM-Appliance class'!$C78+'COM S curve-disconnect'!BX273*'COM-Appliance class'!$D78+'COM S curve-disconnect'!BX294*'COM-Appliance class'!$E78","v":32553.541386260615},{"$f":"BY231*'COM-Appliance class'!$B78+'COM S curve-disconnect'!BY252*'COM-Appliance class'!$C78+'COM S curve-disconnect'!BY273*'COM-Appliance class'!$D78+'COM S curve-disconnect'!BY294*'COM-Appliance class'!$E78","v":32591.009212264122},{"$f":"BZ231*'COM-Appliance class'!$B78+'COM S curve-disconnect'!BZ252*'COM-Appliance class'!$C78+'COM S curve-disconnect'!BZ273*'COM-Appliance class'!$D78+'COM S curve-disconnect'!BZ294*'COM-Appliance class'!$E78","v":32628.433988365741},{"$f":"CA231*'COM-Appliance class'!$B78+'COM S curve-disconnect'!CA252*'COM-Appliance class'!$C78+'COM S curve-disconnect'!CA273*'COM-Appliance class'!$D78+'COM S curve-disconnect'!CA294*'COM-Appliance class'!$E78","v":32665.815978460065},{"$f":"CB231*'COM-Appliance class'!$B78+'COM S curve-disconnect'!CB252*'COM-Appliance class'!$C78+'COM S curve-disconnect'!CB273*'COM-Appliance class'!$D78+'COM S curve-disconnect'!CB294*'COM-Appliance class'!$E78","v":32703.155444810087},{"$f":"CC231*'COM-Appliance class'!$B78+'COM S curve-disconnect'!CC252*'COM-Appliance class'!$C78+'COM S curve-disconnect'!CC273*'COM-Appliance class'!$D78+'COM S curve-disconnect'!CC294*'COM-Appliance class'!$E78","v":32740.452648057686},{"$f":"CD231*'COM-Appliance class'!$B78+'COM S curve-disconnect'!CD252*'COM-Appliance class'!$C78+'COM S curve-disconnect'!CD273*'COM-Appliance class'!$D78+'COM S curve-disconnect'!CD294*'COM-Appliance class'!$E78","v":32777.707847233614}]
["Greater Dandenong (C)",null,{"$f":"C232*'COM-Appliance class'!$B79+'COM S curve-disconnect'!C253*'COM-Appliance class'!$C79+'COM S curve-disconnect'!C274*'COM-Appliance class'!$D79+'COM S curve-disconnect'!C295*'COM-Appliance class'!$E79","v":27783.597345993287},{"$f":"D232*'COM-Appliance class'!$B79+'COM S curve-disconnect'!D253*'COM-Appliance class'!$C79+'COM S curve-disconnect'!D274*'COM-Appliance class'!$D79+'COM S curve-disconnect'!D295*'COM-Appliance class'!$E79","v":34149.62537446768},{"$f":"E232*'COM-Appliance class'!$B79+'COM S curve-disconnect'!E253*'COM-Appliance class'!$C79+'COM S curve-disconnect'!E274*'COM-Appliance class'!$D79+'COM S curve-disconnect'!E295*'COM-Appliance class'!$E79","v":30346.087507590328},{"$f":"F232*'COM-Appliance class'!$B79+'COM S curve-disconnect'!F253*'COM-Appliance class'!$C79+'COM S curve-disconnect'!F274*'COM-Appliance class'!$D79+'COM S curve-disconnect'!F295*'COM-Appliance class'!$E79","v":33756.620244033074},{"$f":"G232*'COM-Appliance class'!$B79+'COM S curve-disconnect'!G253*'COM-Appliance class'!$C79+'COM S curve-disconnect'!G274*'COM-Appliance class'!$D79+'COM S curve-disconnect'!G295*'COM-Appliance class'!$E79","v":29720.579676314621},{"$f":"H232*'COM-Appliance class'!$B79+'COM S curve-disconnect'!H253*'COM-Appliance class'!$C79+'COM S curve-disconnect'!H274*'COM-Appliance class'!$D79+'COM S curve-disconnect'!H295*'COM-Appliance class'!$E79","v":30508.849714892091},{"$f":"I232*'COM-Appliance class'!$B79+'COM S curve-disconnect'!I253*'COM-Appliance class'!$C79+'COM S curve-disconnect'!I274*'COM-Appliance class'!$D79+'COM S curve-disconnect'!I295*'COM-Appliance class'!$E79","v":35380.969225865025},{"$f":"J232*'COM-Appliance class'!$B79+'COM S curve-disconnect'!J253*'COM-Appliance class'!$C79+'COM S curve-disconnect'!J274*'COM-Appliance class'!$D79+'COM S curve-disconnect'!J295*'COM-Appliance class'!$E79","v":38934.492563909007},{"$f":"K232*'COM-Appliance class'!$B79+'COM S curve-disconnect'!K253*'COM-Appliance class'!$C79+'COM S curve-disconnect'!K274*'COM-Appliance class'!$D79+'COM S curve-disconnect'!K295*'COM-Appliance class'!$E79","v":46609.788207576552},{"$f":"L232*'COM-Appliance class'!$B79+'COM S curve-disconnect'!L253*'COM-Appliance class'!$C79+'COM S curve-disconnect'!L274*'COM-Appliance class'!$D79+'COM S curve-disconnect'!L295*'COM-Appliance class'!$E79","v":46213.822920158607},{"$f":"M232*'COM-Appliance class'!$B79+'COM S curve-disconnect'!M253*'COM-Appliance class'!$C79+'COM S curve-disconnect'!M274*'COM-Appliance class'!$D79+'COM S curve-disconnect'!M295*'COM-Appliance class'!$E79","v":37550.325662260213},{"$f":"N232*'COM-Appliance class'!$B79+'COM S curve-disconnect'!N253*'COM-Appliance class'!$C79+'COM S curve-disconnect'!N274*'COM-Appliance class'!$D79+'COM S curve-disconnect'!N295*'COM-Appliance class'!$E79","v":37375.000985563529},{"$f":"O232*'COM-Appliance class'!$B79+'COM S curve-disconnect'!O253*'COM-Appliance class'!$C79+'COM S curve-disconnect'!O274*'COM-Appliance class'!$D79+'COM S curve-disconnect'!O295*'COM-Appliance class'!$E79","v":42532.763241825254},{"$f":"P232*'COM-Appliance class'!$B79+'COM S curve-disconnect'!P253*'COM-Appliance class'!$C79+'COM S curve-disconnect'!P274*'COM-Appliance class'!$D79+'COM S curve-disconnect'!P295*'COM-Appliance class'!$E79","v":47524.79035420889},{"$f":"Q232*'COM-Appliance class'!$B79+'COM S curve-disconnect'!Q253*'COM-Appliance class'!$C79+'COM S curve-disconnect'!Q274*'COM-Appliance class'!$D79+'COM S curve-disconnect'!Q295*'COM-Appliance class'!$E79","v":33092.722014533203},{"$f":"R232*'COM-Appliance class'!$B79+'COM S curve-disconnect'!R253*'COM-Appliance class'!$C79+'COM S curve-disconnect'!R274*'COM-Appliance class'!$D79+'COM S curve-disconnect'!R295*'COM-Appliance class'!$E79","v":35152.174148219456},{"$f":"S232*'COM-Appliance class'!$B79+'COM S curve-disconnect'!S253*'COM-Appliance class'!$C79+'COM S curve-disconnect'!S274*'COM-Appliance class'!$D79+'COM S curve-disconnect'!S295*'COM-Appliance class'!$E79","v":38207.984140176297},{"$f":"T232*'COM-Appliance class'!$B79+'COM S curve-disconnect'!T253*'COM-Appliance class'!$C79+'COM S curve-disconnect'!T274*'COM-Appliance class'!$D79+'COM S curve-disconnect'!T295*'COM-Appliance class'!$E79","v":42681.292455811934},{"$f":"U232*'COM-Appliance class'!$B79+'COM S curve-disconnect'!U253*'COM-Appliance class'!$C79+'COM S curve-disconnect'!U274*'COM-Appliance class'!$D79+'COM S curve-disconnect'!U295*'COM-Appliance class'!$E79","v":46010.046153294803},{"$f":"V232*'COM-Appliance class'!$B79+'COM S curve-disconnect'!V253*'COM-Appliance class'!$C79+'COM S curve-disconnect'!V274*'COM-Appliance class'!$D79+'COM S curve-disconnect'!V295*'COM-Appliance class'!$E79","v":47231.502150910776},{"$f":"W232*'COM-Appliance class'!$B79+'COM S curve-disconnect'!W253*'COM-Appliance class'!$C79+'COM S curve-disconnect'!W274*'COM-Appliance class'!$D79+'COM S curve-disconnect'!W295*'COM-Appliance class'!$E79","v":49221.515387272491},{"$f":"X232*'COM-Appliance class'!$B79+'COM S curve-disconnect'!X253*'COM-Appliance class'!$C79+'COM S curve-disconnect'!X274*'COM-Appliance class'!$D79+'COM S curve-disconnect'!X295*'COM-Appliance class'!$E79","v":54151.862383667016},{"$f":"Y232*'COM-Appliance class'!$B79+'COM S curve-disconnect'!Y253*'COM-Appliance class'!$C79+'COM S curve-disconnect'!Y274*'COM-Appliance class'!$D79+'COM S curve-disconnect'!Y295*'COM-Appliance class'!$E79","v":58248.293460561414},{"$f":"Z232*'COM-Appliance class'!$B79+'COM S curve-disconnect'!Z253*'COM-Appliance class'!$C79+'COM S curve-disconnect'!Z274*'COM-Appliance class'!$D79+'COM S curve-disconnect'!Z295*'COM-Appliance class'!$E79","v":60561.042103755164},{"$f":"AA232*'COM-Appliance class'!$B79+'COM S curve-disconnect'!AA253*'COM-Appliance class'!$C79+'COM S curve-disconnect'!AA274*'COM-Appliance class'!$D79+'COM S curve-disconnect'!AA295*'COM-Appliance class'!$E79","v":63189.073129800301},{"$f":"AB232*'COM-Appliance class'!$B79+'COM S curve-disconnect'!AB253*'COM-Appliance class'!$C79+'COM S curve-disconnect'!AB274*'COM-Appliance class'!$D79+'COM S curve-disconnect'!AB295*'COM-Appliance class'!$E79","v":64837.949462504621},{"$f":"AC232*'COM-Appliance class'!$B79+'COM S curve-disconnect'!AC253*'COM-Appliance class'!$C79+'COM S curve-disconnect'!AC274*'COM-Appliance class'!$D79+'COM S curve-disconnect'!AC295*'COM-Appliance class'!$E79","v":66031.467308443855},{"$f":"AD232*'COM-Appliance class'!$B79+'COM S curve-disconnect'!AD253*'COM-Appliance class'!$C79+'COM S curve-disconnect'!AD274*'COM-Appliance class'!$D79+'COM S curve-disconnect'!AD295*'COM-Appliance class'!$E79","v":66886.029034756808},{"$f":"AE232*'COM-Appliance class'!$B79+'COM S curve-disconnect'!AE253*'COM-Appliance class'!$C79+'COM S curve-disconnect'!AE274*'COM-Appliance class'!$D79+'COM S curve-disconnect'!AE295*'COM-Appliance class'!$E79","v":67602.186471932539},{"$f":"AF232*'COM-Appliance class'!$B79+'COM S curve-disconnect'!AF253*'COM-Appliance class'!$C79+'COM S curve-disconnect'!AF274*'COM-Appliance class'!$D79+'COM S curve-disconnect'!AF295*'COM-Appliance class'!$E79","v":68934.859030738196},{"$f":"AG232*'COM-Appliance class'!$B79+'COM S curve-disconnect'!AG253*'COM-Appliance class'!$C79+'COM S curve-disconnect'!AG274*'COM-Appliance class'!$D79+'COM S curve-disconnect'!AG295*'COM-Appliance class'!$E79","v":68998.884823565924},{"$f":"AH232*'COM-Appliance class'!$B79+'COM S curve-disconnect'!AH253*'COM-Appliance class'!$C79+'COM S curve-disconnect'!AH274*'COM-Appliance class'!$D79+'COM S curve-disconnect'!AH295*'COM-Appliance class'!$E79","v":70396.889435197605},{"$f":"AI232*'COM-Appliance class'!$B79+'COM S curve-disconnect'!AI253*'COM-Appliance class'!$C79+'COM S curve-disconnect'!AI274*'COM-Appliance class'!$D79+'COM S curve-disconnect'!AI295*'COM-Appliance class'!$E79","v":70486.855798119708},{"$f":"AJ232*'COM-Appliance class'!$B79+'COM S curve-disconnect'!AJ253*'COM-Appliance class'!$C79+'COM S curve-disconnect'!AJ274*'COM-Appliance class'!$D79+'COM S curve-disconnect'!AJ295*'COM-Appliance class'!$E79","v":70576.695297236991},{"$f":"AK232*'COM-Appliance class'!$B79+'COM S curve-disconnect'!AK253*'COM-Appliance class'!$C79+'COM S curve-disconnect'!AK274*'COM-Appliance class'!$D79+'COM S curve-disconnect'!AK295*'COM-Appliance class'!$E79","v":70666.408712125296},{"$f":"AL232*'COM-Appliance class'!$B79+'COM S curve-disconnect'!AL253*'COM-Appliance class'!$C79+'COM S curve-disconnect'!AL274*'COM-Appliance class'!$D79+'COM S curve-disconnect'!AL295*'COM-Appliance class'!$E79","v":70755.996817521373},{"$f":"AM232*'COM-Appliance class'!$B79+'COM S curve-disconnect'!AM253*'COM-Appliance class'!$C79+'COM S curve-disconnect'!AM274*'COM-Appliance class'!$D79+'COM S curve-disconnect'!AM295*'COM-Appliance class'!$E79","v":70845.460383353406},{"$f":"AN232*'COM-Appliance class'!$B79+'COM S curve-disconnect'!AN253*'COM-Appliance class'!$C79+'COM S curve-disconnect'!AN274*'COM-Appliance class'!$D79+'COM S curve-disconnect'!AN295*'COM-Appliance class'!$E79","v":70934.800174771051},{"$f":"AO232*'COM-Appliance class'!$B79+'COM S curve-disconnect'!AO253*'COM-Appliance class'!$C79+'COM S curve-disconnect'!AO274*'COM-Appliance class'!$D79+'COM S curve-disconnect'!AO295*'COM-Appliance class'!$E79","v":71024.016952175924},{"$f":"AP232*'COM-Appliance class'!$B79+'COM S curve-disconnect'!AP253*'COM-Appliance class'!$C79+'COM S curve-disconnect'!AP274*'COM-Appliance class'!$D79+'COM S curve-disconnect'!AP295*'COM-Appliance class'!$E79","v":71113.11147125109},{"$f":"AQ232*'COM-Appliance class'!$B79+'COM S curve-disconnect'!AQ253*'COM-Appliance class'!$C79+'COM S curve-disconnect'!AQ274*'COM-Appliance class'!$D79+'COM S curve-disconnect'!AQ295*'COM-Appliance class'!$E79","v":71202.084482991166},{"$f":"AR232*'COM-Appliance class'!$B79+'COM S curve-disconnect'!AR253*'COM-Appliance class'!$C79+'COM S curve-disconnect'!AR274*'COM-Appliance class'!$D79+'COM S curve-disconnect'!AR295*'COM-Appliance class'!$E79","v":71290.936733731476},{"$f":"AS232*'COM-Appliance class'!$B79+'COM S curve-disconnect'!AS253*'COM-Appliance class'!$C79+'COM S curve-disconnect'!AS274*'COM-Appliance class'!$D79+'COM S curve-disconnect'!AS295*'COM-Appliance class'!$E79","v":71379.668965177756},{"$f":"AT232*'COM-Appliance class'!$B79+'COM S curve-disconnect'!AT253*'COM-Appliance class'!$C79+'COM S curve-disconnect'!AT274*'COM-Appliance class'!$D79+'COM S curve-disconnect'!AT295*'COM-Appliance class'!$E79","v":71468.281914434861},{"$f":"AU232*'COM-Appliance class'!$B79+'COM S curve-disconnect'!AU253*'COM-Appliance class'!$C79+'COM S curve-disconnect'!AU274*'COM-Appliance class'!$D79+'COM S curve-disconnect'!AU295*'COM-Appliance class'!$E79","v":71556.776314036222},{"$f":"AV232*'COM-Appliance class'!$B79+'COM S curve-disconnect'!AV253*'COM-Appliance class'!$C79+'COM S curve-disconnect'!AV274*'COM-Appliance class'!$D79+'COM S curve-disconnect'!AV295*'COM-Appliance class'!$E79","v":71645.15289197219},{"$f":"AW232*'COM-Appliance class'!$B79+'COM S curve-disconnect'!AW253*'COM-Appliance class'!$C79+'COM S curve-disconnect'!AW274*'COM-Appliance class'!$D79+'COM S curve-disconnect'!AW295*'COM-Appliance class'!$E79","v":71733.41237171898},{"$f":"AX232*'COM-Appliance class'!$B79+'COM S curve-disconnect'!AX253*'COM-Appliance class'!$C79+'COM S curve-disconnect'!AX274*'COM-Appliance class'!$D79+'COM S curve-disconnect'!AX295*'COM-Appliance class'!$E79","v":71821.555472266788},{"$f":"AY232*'COM-Appliance class'!$B79+'COM S curve-disconnect'!AY253*'COM-Appliance class'!$C79+'COM S curve-disconnect'!AY274*'COM-Appliance class'!$D79+'COM S curve-disconnect'!AY295*'COM-Appliance class'!$E79","v":71909.582908148281},{"$f":"AZ232*'COM-Appliance class'!$B79+'COM S curve-disconnect'!AZ253*'COM-Appliance class'!$C79+'COM S curve-disconnect'!AZ274*'COM-Appliance class'!$D79+'COM S curve-disconnect'!AZ295*'COM-Appliance class'!$E79","v":71997.495389466436},{"$f":"BA232*'COM-Appliance class'!$B79+'COM S curve-disconnect'!BA253*'COM-Appliance class'!$C79+'COM S curve-disconnect'!BA274*'COM-Appliance class'!$D79+'COM S curve-disconnect'!BA295*'COM-Appliance class'!$E79","v":72085.293621922712},{"$f":"BB232*'COM-Appliance class'!$B79+'COM S curve-disconnect'!BB253*'COM-Appliance class'!$C79+'COM S curve-disconnect'!BB274*'COM-Appliance class'!$D79+'COM S curve-disconnect'!BB295*'COM-Appliance class'!$E79","v":72172.978306844263},{"$f":"BC232*'COM-Appliance class'!$B79+'COM S curve-disconnect'!BC253*'COM-Appliance class'!$C79+'COM S curve-disconnect'!BC274*'COM-Appliance class'!$D79+'COM S curve-disconnect'!BC295*'COM-Appliance class'!$E79","v":72260.550141212094},{"$f":"BD232*'COM-Appliance class'!$B79+'COM S curve-disconnect'!BD253*'COM-Appliance class'!$C79+'COM S curve-disconnect'!BD274*'COM-Appliance class'!$D79+'COM S curve-disconnect'!BD295*'COM-Appliance class'!$E79","v":72348.009817687751},{"$f":"BE232*'COM-Appliance class'!$B79+'COM S curve-disconnect'!BE253*'COM-Appliance class'!$C79+'COM S curve-disconnect'!BE274*'COM-Appliance class'!$D79+'COM S curve-disconnect'!BE295*'COM-Appliance class'!$E79","v":72435.358024641144},{"$f":"BF232*'COM-Appliance class'!$B79+'COM S curve-disconnect'!BF253*'COM-Appliance class'!$C79+'COM S curve-disconnect'!BF274*'COM-Appliance class'!$D79+'COM S curve-disconnect'!BF295*'COM-Appliance class'!$E79","v":72522.595446177002},{"$f":"BG232*'COM-Appliance class'!$B79+'COM S curve-disconnect'!BG253*'COM-Appliance class'!$C79+'COM S curve-disconnect'!BG274*'COM-Appliance class'!$D79+'COM S curve-disconnect'!BG295*'COM-Appliance class'!$E79","v":72609.722762161982},{"$f":"BH232*'COM-Appliance class'!$B79+'COM S curve-disconnect'!BH253*'COM-Appliance class'!$C79+'COM S curve-disconnect'!BH274*'COM-Appliance class'!$D79+'COM S curve-disconnect'!BH295*'COM-Appliance class'!$E79","v":72696.740648251362},{"$f":"BI232*'COM-Appliance class'!$B79+'COM S curve-disconnect'!BI253*'COM-Appliance class'!$C79+'COM S curve-disconnect'!BI274*'COM-Appliance class'!$D79+'COM S curve-disconnect'!BI295*'COM-Appliance class'!$E79","v":72783.649775915444},{"$f":"BJ232*'COM-Appliance class'!$B79+'COM S curve-disconnect'!BJ253*'COM-Appliance class'!$C79+'COM S curve-disconnect'!BJ274*'COM-Appliance class'!$D79+'COM S curve-disconnect'!BJ295*'COM-Appliance class'!$E79","v":72870.450812465773},{"$f":"BK232*'COM-Appliance class'!$B79+'COM S curve-disconnect'!BK253*'COM-Appliance class'!$C79+'COM S curve-disconnect'!BK274*'COM-Appliance class'!$D79+'COM S curve-disconnect'!BK295*'COM-Appliance class'!$E79","v":72957.144421081583},{"$f":"BL232*'COM-Appliance class'!$B79+'COM S curve-disconnect'!BL253*'COM-Appliance class'!$C79+'COM S curve-disconnect'!BL274*'COM-Appliance class'!$D79+'COM S curve-disconnect'!BL295*'COM-Appliance class'!$E79","v":73043.731260835455},{"$f":"BM232*'COM-Appliance class'!$B79+'COM S curve-disconnect'!BM253*'COM-Appliance class'!$C79+'COM S curve-disconnect'!BM274*'COM-Appliance class'!$D79+'COM S curve-disconnect'!BM295*'COM-Appliance class'!$E79","v":73130.211986719514},{"$f":"BN232*'COM-Appliance class'!$B79+'COM S curve-disconnect'!BN253*'COM-Appliance class'!$C79+'COM S curve-disconnect'!BN274*'COM-Appliance class'!$D79+'COM S curve-disconnect'!BN295*'COM-Appliance class'!$E79","v":73216.587249670614},{"$f":"BO232*'COM-Appliance class'!$B79+'COM S curve-disconnect'!BO253*'COM-Appliance class'!$C79+'COM S curve-disconnect'!BO274*'COM-Appliance class'!$D79+'COM S curve-disconnect'!BO295*'COM-Appliance class'!$E79","v":73302.857696596388},{"$f":"BP232*'COM-Appliance class'!$B79+'COM S curve-disconnect'!BP253*'COM-Appliance class'!$C79+'COM S curve-disconnect'!BP274*'COM-Appliance class'!$D79+'COM S curve-disconnect'!BP295*'COM-Appliance class'!$E79","v":73389.023970400071},{"$f":"BQ232*'COM-Appliance class'!$B79+'COM S curve-disconnect'!BQ253*'COM-Appliance class'!$C79+'COM S curve-disconnect'!BQ274*'COM-Appliance class'!$D79+'COM S curve-disconnect'!BQ295*'COM-Appliance class'!$E79","v":73475.086710006144},{"$f":"BR232*'COM-Appliance class'!$B79+'COM S curve-disconnect'!BR253*'COM-Appliance class'!$C79+'COM S curve-disconnect'!BR274*'COM-Appliance class'!$D79+'COM S curve-disconnect'!BR295*'COM-Appliance class'!$E79","v":73561.046550384897},{"$f":"BS232*'COM-Appliance class'!$B79+'COM S curve-disconnect'!BS253*'COM-Appliance class'!$C79+'COM S curve-disconnect'!BS274*'COM-Appliance class'!$D79+'COM S curve-disconnect'!BS295*'COM-Appliance class'!$E79","v":73646.904122577718},{"$f":"BT232*'COM-Appliance class'!$B79+'COM S curve-disconnect'!BT253*'COM-Appliance class'!$C79+'COM S curve-disconnect'!BT274*'COM-Appliance class'!$D79+'COM S curve-disconnect'!BT295*'COM-Appliance class'!$E79","v":73732.660053721411},{"$f":"BU232*'COM-Appliance class'!$B79+'COM S curve-disconnect'!BU253*'COM-Appliance class'!$C79+'COM S curve-disconnect'!BU274*'COM-Appliance class'!$D79+'COM S curve-disconnect'!BU295*'COM-Appliance class'!$E79","v":73818.314967073093},{"$f":"BV232*'COM-Appliance class'!$B79+'COM S curve-disconnect'!BV253*'COM-Appliance class'!$C79+'COM S curve-disconnect'!BV274*'COM-Appliance class'!$D79+'COM S curve-disconnect'!BV295*'COM-Appliance class'!$E79","v":73903.869482034206},{"$f":"BW232*'COM-Appliance class'!$B79+'COM S curve-disconnect'!BW253*'COM-Appliance class'!$C79+'COM S curve-disconnect'!BW274*'COM-Appliance class'!$D79+'COM S curve-disconnect'!BW295*'COM-Appliance class'!$E79","v":73989.324214175227},{"$f":"BX232*'COM-Appliance class'!$B79+'COM S curve-disconnect'!BX253*'COM-Appliance class'!$C79+'COM S curve-disconnect'!BX274*'COM-Appliance class'!$D79+'COM S curve-disconnect'!BX295*'COM-Appliance class'!$E79","v":74074.679775259108},{"$f":"BY232*'COM-Appliance class'!$B79+'COM S curve-disconnect'!BY253*'COM-Appliance class'!$C79+'COM S curve-disconnect'!BY274*'COM-Appliance class'!$D79+'COM S curve-disconnect'!BY295*'COM-Appliance class'!$E79","v":74159.936773265974},{"$f":"BZ232*'COM-Appliance class'!$B79+'COM S curve-disconnect'!BZ253*'COM-Appliance class'!$C79+'COM S curve-disconnect'!BZ274*'COM-Appliance class'!$D79+'COM S curve-disconnect'!BZ295*'COM-Appliance class'!$E79","v":74245.095812416112},{"$f":"CA232*'COM-Appliance class'!$B79+'COM S curve-disconnect'!CA253*'COM-Appliance class'!$C79+'COM S curve-disconnect'!CA274*'COM-Appliance class'!$D79+'COM S curve-disconnect'!CA295*'COM-Appliance class'!$E79","v":74330.157493194332},{"$f":"CB232*'COM-Appliance class'!$B79+'COM S curve-disconnect'!CB253*'COM-Appliance class'!$C79+'COM S curve-disconnect'!CB274*'COM-Appliance class'!$D79+'COM S curve-disconnect'!CB295*'COM-Appliance class'!$E79","v":74415.122412372803},{"$f":"CC232*'COM-Appliance class'!$B79+'COM S curve-disconnect'!CC253*'COM-Appliance class'!$C79+'COM S curve-disconnect'!CC274*'COM-Appliance class'!$D79+'COM S curve-disconnect'!CC295*'COM-Appliance class'!$E79","v":74499.991163034894},{"$f":"CD232*'COM-Appliance class'!$B79+'COM S curve-disconnect'!CD253*'COM-Appliance class'!$C79+'COM S curve-disconnect'!CD274*'COM-Appliance class'!$D79+'COM S curve-disconnect'!CD295*'COM-Appliance class'!$E79","v":74584.764334597901}]
["Kingston (C)",null,{"$f":"C233*'COM-Appliance class'!$B80+'COM S curve-disconnect'!C254*'COM-Appliance class'!$C80+'COM S curve-disconnect'!C275*'COM-Appliance class'!$D80+'COM S curve-disconnect'!C296*'COM-Appliance class'!$E80","v":21179.83809510665},{"$f":"D233*'COM-Appliance class'!$B80+'COM S curve-disconnect'!D254*'COM-Appliance class'!$C80+'COM S curve-disconnect'!D275*'COM-Appliance class'!$D80+'COM S curve-disconnect'!D296*'COM-Appliance class'!$E80","v":26032.753334012632},{"$f":"E233*'COM-Appliance class'!$B80+'COM S curve-disconnect'!E254*'COM-Appliance class'!$C80+'COM S curve-disconnect'!E275*'COM-Appliance class'!$D80+'COM S curve-disconnect'!E296*'COM-Appliance class'!$E80","v":23133.261406964273},{"$f":"F233*'COM-Appliance class'!$B80+'COM S curve-disconnect'!F254*'COM-Appliance class'!$C80+'COM S curve-disconnect'!F275*'COM-Appliance class'!$D80+'COM S curve-disconnect'!F296*'COM-Appliance class'!$E80","v":25733.159838991305},{"$f":"G233*'COM-Appliance class'!$B80+'COM S curve-disconnect'!G254*'COM-Appliance class'!$C80+'COM S curve-disconnect'!G275*'COM-Appliance class'!$D80+'COM S curve-disconnect'!G296*'COM-Appliance class'!$E80","v":22656.427740371015},{"$f":"H233*'COM-Appliance class'!$B80+'COM S curve-disconnect'!H254*'COM-Appliance class'!$C80+'COM S curve-disconnect'!H275*'COM-Appliance class'!$D80+'COM S curve-disconnect'!H296*'COM-Appliance class'!$E80","v":23257.33739164416},{"$f":"I233*'COM-Appliance class'!$B80+'COM S curve-disconnect'!I254*'COM-Appliance class'!$C80+'COM S curve-disconnect'!I275*'COM-Appliance class'!$D80+'COM S curve-disconnect'!I296*'COM-Appliance class'!$E80","v":26971.424561040101},{"$f":"J233*'COM-Appliance class'!$B80+'COM S curve-disconnect'!J254*'COM-Appliance class'!$C80+'COM S curve-disconnect'!J275*'COM-Appliance class'!$D80+'COM S curve-disconnect'!J296*'COM-Appliance class'!$E80","v":29680.326796761867},{"$f":"K233*'COM-Appliance class'!$B80+'COM S curve-disconnect'!K254*'COM-Appliance class'!$C80+'COM S curve-disconnect'!K275*'COM-Appliance class'!$D80+'COM S curve-disconnect'!K296*'COM-Appliance class'!$E80","v":35531.315674859732},{"$f":"L233*'COM-Appliance class'!$B80+'COM S curve-disconnect'!L254*'COM-Appliance class'!$C80+'COM S curve-disconnect'!L275*'COM-Appliance class'!$D80+'COM S curve-disconnect'!L296*'COM-Appliance class'!$E80","v":35229.465609356819},{"$f":"M233*'COM-Appliance class'!$B80+'COM S curve-disconnect'!M254*'COM-Appliance class'!$C80+'COM S curve-disconnect'!M275*'COM-Appliance class'!$D80+'COM S curve-disconnect'!M296*'COM-Appliance class'!$E80","v":28625.156348225453},{"$f":"N233*'COM-Appliance class'!$B80+'COM S curve-disconnect'!N254*'COM-Appliance class'!$C80+'COM S curve-disconnect'!N275*'COM-Appliance class'!$D80+'COM S curve-disconnect'!N296*'COM-Appliance class'!$E80","v":28491.503811432973},{"$f":"O233*'COM-Appliance class'!$B80+'COM S curve-disconnect'!O254*'COM-Appliance class'!$C80+'COM S curve-disconnect'!O275*'COM-Appliance class'!$D80+'COM S curve-disconnect'!O296*'COM-Appliance class'!$E80","v":32423.340576855615},{"$f":"P233*'COM-Appliance class'!$B80+'COM S curve-disconnect'!P254*'COM-Appliance class'!$C80+'COM S curve-disconnect'!P275*'COM-Appliance class'!$D80+'COM S curve-disconnect'!P296*'COM-Appliance class'!$E80","v":36228.835045048218},{"$f":"Q233*'COM-Appliance class'!$B80+'COM S curve-disconnect'!Q254*'COM-Appliance class'!$C80+'COM S curve-disconnect'!Q275*'COM-Appliance class'!$D80+'COM S curve-disconnect'!Q296*'COM-Appliance class'!$E80","v":25227.06061658579},{"$f":"R233*'COM-Appliance class'!$B80+'COM S curve-disconnect'!R254*'COM-Appliance class'!$C80+'COM S curve-disconnect'!R275*'COM-Appliance class'!$D80+'COM S curve-disconnect'!R296*'COM-Appliance class'!$E80","v":26797.010764254017},{"$f":"S233*'COM-Appliance class'!$B80+'COM S curve-disconnect'!S254*'COM-Appliance class'!$C80+'COM S curve-disconnect'!S275*'COM-Appliance class'!$D80+'COM S curve-disconnect'!S296*'COM-Appliance class'!$E80","v":29126.4989177522},{"$f":"T233*'COM-Appliance class'!$B80+'COM S curve-disconnect'!T254*'COM-Appliance class'!$C80+'COM S curve-disconnect'!T275*'COM-Appliance class'!$D80+'COM S curve-disconnect'!T296*'COM-Appliance class'!$E80","v":32536.566544877533},{"$f":"U233*'COM-Appliance class'!$B80+'COM S curve-disconnect'!U254*'COM-Appliance class'!$C80+'COM S curve-disconnect'!U275*'COM-Appliance class'!$D80+'COM S curve-disconnect'!U296*'COM-Appliance class'!$E80","v":35074.123632723189},{"$f":"V233*'COM-Appliance class'!$B80+'COM S curve-disconnect'!V254*'COM-Appliance class'!$C80+'COM S curve-disconnect'!V275*'COM-Appliance class'!$D80+'COM S curve-disconnect'!V296*'COM-Appliance class'!$E80","v":36005.257205803638},{"$f":"W233*'COM-Appliance class'!$B80+'COM S curve-disconnect'!W254*'COM-Appliance class'!$C80+'COM S curve-disconnect'!W275*'COM-Appliance class'!$D80+'COM S curve-disconnect'!W296*'COM-Appliance class'!$E80","v":37522.273077736376},{"$f":"X233*'COM-Appliance class'!$B80+'COM S curve-disconnect'!X254*'COM-Appliance class'!$C80+'COM S curve-disconnect'!X275*'COM-Appliance class'!$D80+'COM S curve-disconnect'!X296*'COM-Appliance class'!$E80","v":41280.747901421892},{"$f":"Y233*'COM-Appliance class'!$B80+'COM S curve-disconnect'!Y254*'COM-Appliance class'!$C80+'COM S curve-disconnect'!Y275*'COM-Appliance class'!$D80+'COM S curve-disconnect'!Y296*'COM-Appliance class'!$E80","v":44403.516558623829},{"$f":"Z233*'COM-Appliance class'!$B80+'COM S curve-disconnect'!Z254*'COM-Appliance class'!$C80+'COM S curve-disconnect'!Z275*'COM-Appliance class'!$D80+'COM S curve-disconnect'!Z296*'COM-Appliance class'!$E80","v":46166.558298954311},{"$f":"AA233*'COM-Appliance class'!$B80+'COM S curve-disconnect'!AA254*'COM-Appliance class'!$C80+'COM S curve-disconnect'!AA275*'COM-Appliance class'!$D80+'COM S curve-disconnect'!AA296*'COM-Appliance class'!$E80","v":48169.944359707879},{"$f":"AB233*'COM-Appliance class'!$B80+'COM S curve-disconnect'!AB254*'COM-Appliance class'!$C80+'COM S curve-disconnect'!AB275*'COM-Appliance class'!$D80+'COM S curve-disconnect'!AB296*'COM-Appliance class'!$E80","v":49426.906636069369},{"$f":"AC233*'COM-Appliance class'!$B80+'COM S curve-disconnect'!AC254*'COM-Appliance class'!$C80+'COM S curve-disconnect'!AC275*'COM-Appliance class'!$D80+'COM S curve-disconnect'!AC296*'COM-Appliance class'!$E80","v":50336.742552053052},{"$f":"AD233*'COM-Appliance class'!$B80+'COM S curve-disconnect'!AD254*'COM-Appliance class'!$C80+'COM S curve-disconnect'!AD275*'COM-Appliance class'!$D80+'COM S curve-disconnect'!AD296*'COM-Appliance class'!$E80","v":50988.187315673378},{"$f":"AE233*'COM-Appliance class'!$B80+'COM S curve-disconnect'!AE254*'COM-Appliance class'!$C80+'COM S curve-disconnect'!AE275*'COM-Appliance class'!$D80+'COM S curve-disconnect'!AE296*'COM-Appliance class'!$E80","v":51534.124487922818},{"$f":"AF233*'COM-Appliance class'!$B80+'COM S curve-disconnect'!AF254*'COM-Appliance class'!$C80+'COM S curve-disconnect'!AF275*'COM-Appliance class'!$D80+'COM S curve-disconnect'!AF296*'COM-Appliance class'!$E80","v":52550.040054139652},{"$f":"AG233*'COM-Appliance class'!$B80+'COM S curve-disconnect'!AG254*'COM-Appliance class'!$C80+'COM S curve-disconnect'!AG275*'COM-Appliance class'!$D80+'COM S curve-disconnect'!AG296*'COM-Appliance class'!$E80","v":52598.847842026691},{"$f":"AH233*'COM-Appliance class'!$B80+'COM S curve-disconnect'!AH254*'COM-Appliance class'!$C80+'COM S curve-disconnect'!AH275*'COM-Appliance class'!$D80+'COM S curve-disconnect'!AH296*'COM-Appliance class'!$E80","v":53664.566977019887},{"$f":"AI233*'COM-Appliance class'!$B80+'COM S curve-disconnect'!AI254*'COM-Appliance class'!$C80+'COM S curve-disconnect'!AI275*'COM-Appliance class'!$D80+'COM S curve-disconnect'!AI296*'COM-Appliance class'!$E80","v":53733.14963667214},{"$f":"AJ233*'COM-Appliance class'!$B80+'COM S curve-disconnect'!AJ254*'COM-Appliance class'!$C80+'COM S curve-disconnect'!AJ275*'COM-Appliance class'!$D80+'COM S curve-disconnect'!AJ296*'COM-Appliance class'!$E80","v":53801.635586211152},{"$f":"AK233*'COM-Appliance class'!$B80+'COM S curve-disconnect'!AK254*'COM-Appliance class'!$C80+'COM S curve-disconnect'!AK275*'COM-Appliance class'!$D80+'COM S curve-disconnect'!AK296*'COM-Appliance class'!$E80","v":53870.025419918835},{"$f":"AL233*'COM-Appliance class'!$B80+'COM S curve-disconnect'!AL254*'COM-Appliance class'!$C80+'COM S curve-disconnect'!AL275*'COM-Appliance class'!$D80+'COM S curve-disconnect'!AL296*'COM-Appliance class'!$E80","v":53938.319728388204},{"$f":"AM233*'COM-Appliance class'!$B80+'COM S curve-disconnect'!AM254*'COM-Appliance class'!$C80+'COM S curve-disconnect'!AM275*'COM-Appliance class'!$D80+'COM S curve-disconnect'!AM296*'COM-Appliance class'!$E80","v":54006.519098546683},{"$f":"AN233*'COM-Appliance class'!$B80+'COM S curve-disconnect'!AN254*'COM-Appliance class'!$C80+'COM S curve-disconnect'!AN275*'COM-Appliance class'!$D80+'COM S curve-disconnect'!AN296*'COM-Appliance class'!$E80","v":54074.624113678896},{"$f":"AO233*'COM-Appliance class'!$B80+'COM S curve-disconnect'!AO254*'COM-Appliance class'!$C80+'COM S curve-disconnect'!AO275*'COM-Appliance class'!$D80+'COM S curve-disconnect'!AO296*'COM-Appliance class'!$E80","v":54142.635353450009},{"$f":"AP233*'COM-Appliance class'!$B80+'COM S curve-disconnect'!AP254*'COM-Appliance class'!$C80+'COM S curve-disconnect'!AP275*'COM-Appliance class'!$D80+'COM S curve-disconnect'!AP296*'COM-Appliance class'!$E80","v":54210.553393928145},{"$f":"AQ233*'COM-Appliance class'!$B80+'COM S curve-disconnect'!AQ254*'COM-Appliance class'!$C80+'COM S curve-disconnect'!AQ275*'COM-Appliance class'!$D80+'COM S curve-disconnect'!AQ296*'COM-Appliance class'!$E80","v":54278.378807607369},{"$f":"AR233*'COM-Appliance class'!$B80+'COM S curve-disconnect'!AR254*'COM-Appliance class'!$C80+'COM S curve-disconnect'!AR275*'COM-Appliance class'!$D80+'COM S curve-disconnect'!AR296*'COM-Appliance class'!$E80","v":54346.112163429876},{"$f":"AS233*'COM-Appliance class'!$B80+'COM S curve-disconnect'!AS254*'COM-Appliance class'!$C80+'COM S curve-disconnect'!AS275*'COM-Appliance class'!$D80+'COM S curve-disconnect'!AS296*'COM-Appliance class'!$E80","v":54413.754026808689},{"$f":"AT233*'COM-Appliance class'!$B80+'COM S curve-disconnect'!AT254*'COM-Appliance class'!$C80+'COM S curve-disconnect'!AT275*'COM-Appliance class'!$D80+'COM S curve-disconnect'!AT296*'COM-Appliance class'!$E80","v":54481.304959649504},{"$f":"AU233*'COM-Appliance class'!$B80+'COM S curve-disconnect'!AU254*'COM-Appliance class'!$C80+'COM S curve-disconnect'!AU275*'COM-Appliance class'!$D80+'COM S curve-disconnect'!AU296*'COM-Appliance class'!$E80","v":54548.765520373141},{"$f":"AV233*'COM-Appliance class'!$B80+'COM S curve-disconnect'!AV254*'COM-Appliance class'!$C80+'COM S curve-disconnect'!AV275*'COM-Appliance class'!$D80+'COM S curve-disconnect'!AV296*'COM-Appliance class'!$E80","v":54616.13626393718},{"$f":"AW233*'COM-Appliance class'!$B80+'COM S curve-disconnect'!AW254*'COM-Appliance class'!$C80+'COM S curve-disconnect'!AW275*'COM-Appliance class'!$D80+'COM S curve-disconnect'!AW296*'COM-Appliance class'!$E80","v":54683.417741857993},{"$f":"AX233*'COM-Appliance class'!$B80+'COM S curve-disconnect'!AX254*'COM-Appliance class'!$C80+'COM S curve-disconnect'!AX275*'COM-Appliance class'!$D80+'COM S curve-disconnect'!AX296*'COM-Appliance class'!$E80","v":54750.610502232215},{"$f":"AY233*'COM-Appliance class'!$B80+'COM S curve-disconnect'!AY254*'COM-Appliance class'!$C80+'COM S curve-disconnect'!AY275*'COM-Appliance class'!$D80+'COM S curve-disconnect'!AY296*'COM-Appliance class'!$E80","v":54817.715089758443},{"$f":"AZ233*'COM-Appliance class'!$B80+'COM S curve-disconnect'!AZ254*'COM-Appliance class'!$C80+'COM S curve-disconnect'!AZ275*'COM-Appliance class'!$D80+'COM S curve-disconnect'!AZ296*'COM-Appliance class'!$E80","v":54884.732045758421},{"$f":"BA233*'COM-Appliance class'!$B80+'COM S curve-disconnect'!BA254*'COM-Appliance class'!$C80+'COM S curve-disconnect'!BA275*'COM-Appliance class'!$D80+'COM S curve-disconnect'!BA296*'COM-Appliance class'!$E80","v":54951.661908198599},{"$f":"BB233*'COM-Appliance class'!$B80+'COM S curve-disconnect'!BB254*'COM-Appliance class'!$C80+'COM S curve-disconnect'!BB275*'COM-Appliance class'!$D80+'COM S curve-disconnect'!BB296*'COM-Appliance class'!$E80","v":55018.505211710792},{"$f":"BC233*'COM-Appliance class'!$B80+'COM S curve-disconnect'!BC254*'COM-Appliance class'!$C80+'COM S curve-disconnect'!BC275*'COM-Appliance class'!$D80+'COM S curve-disconnect'!BC296*'COM-Appliance class'!$E80","v":55085.262487613698},{"$f":"BD233*'COM-Appliance class'!$B80+'COM S curve-disconnect'!BD254*'COM-Appliance class'!$C80+'COM S curve-disconnect'!BD275*'COM-Appliance class'!$D80+'COM S curve-disconnect'!BD296*'COM-Appliance class'!$E80","v":55151.934263933268},{"$f":"BE233*'COM-Appliance class'!$B80+'COM S curve-disconnect'!BE254*'COM-Appliance class'!$C80+'COM S curve-disconnect'!BE275*'COM-Appliance class'!$D80+'COM S curve-disconnect'!BE296*'COM-Appliance class'!$E80","v":55218.521065423811},{"$f":"BF233*'COM-Appliance class'!$B80+'COM S curve-disconnect'!BF254*'COM-Appliance class'!$C80+'COM S curve-disconnect'!BF275*'COM-Appliance class'!$D80+'COM S curve-disconnect'!BF296*'COM-Appliance class'!$E80","v":55285.023413588264},{"$f":"BG233*'COM-Appliance class'!$B80+'COM S curve-disconnect'!BG254*'COM-Appliance class'!$C80+'COM S curve-disconnect'!BG275*'COM-Appliance class'!$D80+'COM S curve-disconnect'!BG296*'COM-Appliance class'!$E80","v":55351.441826698807},{"$f":"BH233*'COM-Appliance class'!$B80+'COM S curve-disconnect'!BH254*'COM-Appliance class'!$C80+'COM S curve-disconnect'!BH275*'COM-Appliance class'!$D80+'COM S curve-disconnect'!BH296*'COM-Appliance class'!$E80","v":55417.776819817227},{"$f":"BI233*'COM-Appliance class'!$B80+'COM S curve-disconnect'!BI254*'COM-Appliance class'!$C80+'COM S curve-disconnect'!BI275*'COM-Appliance class'!$D80+'COM S curve-disconnect'!BI296*'COM-Appliance class'!$E80","v":55484.028904815066},{"$f":"BJ233*'COM-Appliance class'!$B80+'COM S curve-disconnect'!BJ254*'COM-Appliance class'!$C80+'COM S curve-disconnect'!BJ275*'COM-Appliance class'!$D80+'COM S curve-disconnect'!BJ296*'COM-Appliance class'!$E80","v":55550.198590393527},{"$f":"BK233*'COM-Appliance class'!$B80+'COM S curve-disconnect'!BK254*'COM-Appliance class'!$C80+'COM S curve-disconnect'!BK275*'COM-Appliance class'!$D80+'COM S curve-disconnect'!BK296*'COM-Appliance class'!$E80","v":55616.286382103783},{"$f":"BL233*'COM-Appliance class'!$B80+'COM S curve-disconnect'!BL254*'COM-Appliance class'!$C80+'COM S curve-disconnect'!BL275*'COM-Appliance class'!$D80+'COM S curve-disconnect'!BL296*'COM-Appliance class'!$E80","v":55682.292782366349},{"$f":"BM233*'COM-Appliance class'!$B80+'COM S curve-disconnect'!BM254*'COM-Appliance class'!$C80+'COM S curve-disconnect'!BM275*'COM-Appliance class'!$D80+'COM S curve-disconnect'!BM296*'COM-Appliance class'!$E80","v":55748.218290491233},{"$f":"BN233*'COM-Appliance class'!$B80+'COM S curve-disconnect'!BN254*'COM-Appliance class'!$C80+'COM S curve-disconnect'!BN275*'COM-Appliance class'!$D80+'COM S curve-disconnect'!BN296*'COM-Appliance class'!$E80","v":55814.063402696986},{"$f":"BO233*'COM-Appliance class'!$B80+'COM S curve-disconnect'!BO254*'COM-Appliance class'!$C80+'COM S curve-disconnect'!BO275*'COM-Appliance class'!$D80+'COM S curve-disconnect'!BO296*'COM-Appliance class'!$E80","v":55879.828612130674},{"$f":"BP233*'COM-Appliance class'!$B80+'COM S curve-disconnect'!BP254*'COM-Appliance class'!$C80+'COM S curve-disconnect'!BP275*'COM-Appliance class'!$D80+'COM S curve-disconnect'!BP296*'COM-Appliance class'!$E80","v":55945.514408886724},{"$f":"BQ233*'COM-Appliance class'!$B80+'COM S curve-disconnect'!BQ254*'COM-Appliance class'!$C80+'COM S curve-disconnect'!BQ275*'COM-Appliance class'!$D80+'COM S curve-disconnect'!BQ296*'COM-Appliance class'!$E80","v":56011.121280026491},{"$f":"BR233*'COM-Appliance class'!$B80+'COM S curve-disconnect'!BR254*'COM-Appliance class'!$C80+'COM S curve-disconnect'!BR275*'COM-Appliance class'!$D80+'COM S curve-disconnect'!BR296*'COM-Appliance class'!$E80","v":56076.649709597034},{"$f":"BS233*'COM-Appliance class'!$B80+'COM S curve-disconnect'!BS254*'COM-Appliance class'!$C80+'COM S curve-disconnect'!BS275*'COM-Appliance class'!$D80+'COM S curve-disconnect'!BS296*'COM-Appliance class'!$E80","v":56142.100178650326},{"$f":"BT233*'COM-Appliance class'!$B80+'COM S curve-disconnect'!BT254*'COM-Appliance class'!$C80+'COM S curve-disconnect'!BT275*'COM-Appliance class'!$D80+'COM S curve-disconnect'!BT296*'COM-Appliance class'!$E80","v":56207.473165261807},{"$f":"BU233*'COM-Appliance class'!$B80+'COM S curve-disconnect'!BU254*'COM-Appliance class'!$C80+'COM S curve-disconnect'!BU275*'COM-Appliance class'!$D80+'COM S curve-disconnect'!BU296*'COM-Appliance class'!$E80","v":56272.769144549406},{"$f":"BV233*'COM-Appliance class'!$B80+'COM S curve-disconnect'!BV254*'COM-Appliance class'!$C80+'COM S curve-disconnect'!BV275*'COM-Appliance class'!$D80+'COM S curve-disconnect'!BV296*'COM-Appliance class'!$E80","v":56337.988588691791},{"$f":"BW233*'COM-Appliance class'!$B80+'COM S curve-disconnect'!BW254*'COM-Appliance class'!$C80+'COM S curve-disconnect'!BW275*'COM-Appliance class'!$D80+'COM S curve-disconnect'!BW296*'COM-Appliance class'!$E80","v":56403.131966947265},{"$f":"BX233*'COM-Appliance class'!$B80+'COM S curve-disconnect'!BX254*'COM-Appliance class'!$C80+'COM S curve-disconnect'!BX275*'COM-Appliance class'!$D80+'COM S curve-disconnect'!BX296*'COM-Appliance class'!$E80","v":56468.199745671533},{"$f":"BY233*'COM-Appliance class'!$B80+'COM S curve-disconnect'!BY254*'COM-Appliance class'!$C80+'COM S curve-disconnect'!BY275*'COM-Appliance class'!$D80+'COM S curve-disconnect'!BY296*'COM-Appliance class'!$E80","v":56533.192388336684},{"$f":"BZ233*'COM-Appliance class'!$B80+'COM S curve-disconnect'!BZ254*'COM-Appliance class'!$C80+'COM S curve-disconnect'!BZ275*'COM-Appliance class'!$D80+'COM S curve-disconnect'!BZ296*'COM-Appliance class'!$E80","v":56598.110355548539},{"$f":"CA233*'COM-Appliance class'!$B80+'COM S curve-disconnect'!CA254*'COM-Appliance class'!$C80+'COM S curve-disconnect'!CA275*'COM-Appliance class'!$D80+'COM S curve-disconnect'!CA296*'COM-Appliance class'!$E80","v":56662.954105065393},{"$f":"CB233*'COM-Appliance class'!$B80+'COM S curve-disconnect'!CB254*'COM-Appliance class'!$C80+'COM S curve-disconnect'!CB275*'COM-Appliance class'!$D80+'COM S curve-disconnect'!CB296*'COM-Appliance class'!$E80","v":56727.724091815267},{"$f":"CC233*'COM-Appliance class'!$B80+'COM S curve-disconnect'!CC254*'COM-Appliance class'!$C80+'COM S curve-disconnect'!CC275*'COM-Appliance class'!$D80+'COM S curve-disconnect'!CC296*'COM-Appliance class'!$E80","v":56792.420767914198},{"$f":"CD233*'COM-Appliance class'!$B80+'COM S curve-disconnect'!CD254*'COM-Appliance class'!$C80+'COM S curve-disconnect'!CD275*'COM-Appliance class'!$D80+'COM S curve-disconnect'!CD296*'COM-Appliance class'!$E80","v":56857.044582683528}]
["Knox (C)",null,{"$f":"C234*'COM-Appliance class'!$B81+'COM S curve-disconnect'!C255*'COM-Appliance class'!$C81+'COM S curve-disconnect'!C276*'COM-Appliance class'!$D81+'COM S curve-disconnect'!C297*'COM-Appliance class'!$E81","v":20672.541934317291},{"$f":"D234*'COM-Appliance class'!$B81+'COM S curve-disconnect'!D255*'COM-Appliance class'!$C81+'COM S curve-disconnect'!D276*'COM-Appliance class'!$D81+'COM S curve-disconnect'!D297*'COM-Appliance class'!$E81","v":25409.220908419058},{"$f":"E234*'COM-Appliance class'!$B81+'COM S curve-disconnect'!E255*'COM-Appliance class'!$C81+'COM S curve-disconnect'!E276*'COM-Appliance class'!$D81+'COM S curve-disconnect'!E297*'COM-Appliance class'!$E81","v":22579.177157330614},{"$f":"F234*'COM-Appliance class'!$B81+'COM S curve-disconnect'!F255*'COM-Appliance class'!$C81+'COM S curve-disconnect'!F276*'COM-Appliance class'!$D81+'COM S curve-disconnect'!F297*'COM-Appliance class'!$E81","v":25116.803229810466},{"$f":"G234*'COM-Appliance class'!$B81+'COM S curve-disconnect'!G255*'COM-Appliance class'!$C81+'COM S curve-disconnect'!G276*'COM-Appliance class'!$D81+'COM S curve-disconnect'!G297*'COM-Appliance class'!$E81","v":22113.764535946088},{"$f":"H234*'COM-Appliance class'!$B81+'COM S curve-disconnect'!H255*'COM-Appliance class'!$C81+'COM S curve-disconnect'!H276*'COM-Appliance class'!$D81+'COM S curve-disconnect'!H297*'COM-Appliance class'!$E81","v":22700.28129348212},{"$f":"I234*'COM-Appliance class'!$B81+'COM S curve-disconnect'!I255*'COM-Appliance class'!$C81+'COM S curve-disconnect'!I276*'COM-Appliance class'!$D81+'COM S curve-disconnect'!I297*'COM-Appliance class'!$E81","v":26325.409229412209},{"$f":"J234*'COM-Appliance class'!$B81+'COM S curve-disconnect'!J255*'COM-Appliance class'!$C81+'COM S curve-disconnect'!J276*'COM-Appliance class'!$D81+'COM S curve-disconnect'!J297*'COM-Appliance class'!$E81","v":28969.42826357386},{"$f":"K234*'COM-Appliance class'!$B81+'COM S curve-disconnect'!K255*'COM-Appliance class'!$C81+'COM S curve-disconnect'!K276*'COM-Appliance class'!$D81+'COM S curve-disconnect'!K297*'COM-Appliance class'!$E81","v":34680.275173572067},{"$f":"L234*'COM-Appliance class'!$B81+'COM S curve-disconnect'!L255*'COM-Appliance class'!$C81+'COM S curve-disconnect'!L276*'COM-Appliance class'!$D81+'COM S curve-disconnect'!L297*'COM-Appliance class'!$E81","v":34385.654973504206},{"$f":"M234*'COM-Appliance class'!$B81+'COM S curve-disconnect'!M255*'COM-Appliance class'!$C81+'COM S curve-disconnect'!M276*'COM-Appliance class'!$D81+'COM S curve-disconnect'!M297*'COM-Appliance class'!$E81","v":27939.531092156809},{"$f":"N234*'COM-Appliance class'!$B81+'COM S curve-disconnect'!N255*'COM-Appliance class'!$C81+'COM S curve-disconnect'!N276*'COM-Appliance class'!$D81+'COM S curve-disconnect'!N297*'COM-Appliance class'!$E81","v":27809.079779967185},{"$f":"O234*'COM-Appliance class'!$B81+'COM S curve-disconnect'!O255*'COM-Appliance class'!$C81+'COM S curve-disconnect'!O276*'COM-Appliance class'!$D81+'COM S curve-disconnect'!O297*'COM-Appliance class'!$E81","v":31646.741807745821},{"$f":"P234*'COM-Appliance class'!$B81+'COM S curve-disconnect'!P255*'COM-Appliance class'!$C81+'COM S curve-disconnect'!P276*'COM-Appliance class'!$D81+'COM S curve-disconnect'!P297*'COM-Appliance class'!$E81","v":35361.08766918561},{"$f":"Q234*'COM-Appliance class'!$B81+'COM S curve-disconnect'!Q255*'COM-Appliance class'!$C81+'COM S curve-disconnect'!Q276*'COM-Appliance class'!$D81+'COM S curve-disconnect'!Q297*'COM-Appliance class'!$E81","v":24622.826016617288},{"$f":"R234*'COM-Appliance class'!$B81+'COM S curve-disconnect'!R255*'COM-Appliance class'!$C81+'COM S curve-disconnect'!R276*'COM-Appliance class'!$D81+'COM S curve-disconnect'!R297*'COM-Appliance class'!$E81","v":26155.172964536468},{"$f":"S234*'COM-Appliance class'!$B81+'COM S curve-disconnect'!S255*'COM-Appliance class'!$C81+'COM S curve-disconnect'!S276*'COM-Appliance class'!$D81+'COM S curve-disconnect'!S297*'COM-Appliance class'!$E81","v":28428.865583075065},{"$f":"T234*'COM-Appliance class'!$B81+'COM S curve-disconnect'!T255*'COM-Appliance class'!$C81+'COM S curve-disconnect'!T276*'COM-Appliance class'!$D81+'COM S curve-disconnect'!T297*'COM-Appliance class'!$E81","v":31757.255805136927},{"$f":"U234*'COM-Appliance class'!$B81+'COM S curve-disconnect'!U255*'COM-Appliance class'!$C81+'COM S curve-disconnect'!U276*'COM-Appliance class'!$D81+'COM S curve-disconnect'!U297*'COM-Appliance class'!$E81","v":34234.033723535322},{"$f":"V234*'COM-Appliance class'!$B81+'COM S curve-disconnect'!V255*'COM-Appliance class'!$C81+'COM S curve-disconnect'!V276*'COM-Appliance class'!$D81+'COM S curve-disconnect'!V297*'COM-Appliance class'!$E81","v":35142.864931286793},{"$f":"W234*'COM-Appliance class'!$B81+'COM S curve-disconnect'!W255*'COM-Appliance class'!$C81+'COM S curve-disconnect'!W276*'COM-Appliance class'!$D81+'COM S curve-disconnect'!W297*'COM-Appliance class'!$E81","v":36623.545476942149},{"$f":"X234*'COM-Appliance class'!$B81+'COM S curve-disconnect'!X255*'COM-Appliance class'!$C81+'COM S curve-disconnect'!X276*'COM-Appliance class'!$D81+'COM S curve-disconnect'!X297*'COM-Appliance class'!$E81","v":40291.9979010268},{"$f":"Y234*'COM-Appliance class'!$B81+'COM S curve-disconnect'!Y255*'COM-Appliance class'!$C81+'COM S curve-disconnect'!Y276*'COM-Appliance class'!$D81+'COM S curve-disconnect'!Y297*'COM-Appliance class'!$E81","v":43339.970493040782},{"$f":"Z234*'COM-Appliance class'!$B81+'COM S curve-disconnect'!Z255*'COM-Appliance class'!$C81+'COM S curve-disconnect'!Z276*'COM-Appliance class'!$D81+'COM S curve-disconnect'!Z297*'COM-Appliance class'!$E81","v":45060.784134073954},{"$f":"AA234*'COM-Appliance class'!$B81+'COM S curve-disconnect'!AA255*'COM-Appliance class'!$C81+'COM S curve-disconnect'!AA276*'COM-Appliance class'!$D81+'COM S curve-disconnect'!AA297*'COM-Appliance class'!$E81","v":47016.185406056458},{"$f":"AB234*'COM-Appliance class'!$B81+'COM S curve-disconnect'!AB255*'COM-Appliance class'!$C81+'COM S curve-disconnect'!AB276*'COM-Appliance class'!$D81+'COM S curve-disconnect'!AB297*'COM-Appliance class'!$E81","v":48243.041119082009},{"$f":"AC234*'COM-Appliance class'!$B81+'COM S curve-disconnect'!AC255*'COM-Appliance class'!$C81+'COM S curve-disconnect'!AC276*'COM-Appliance class'!$D81+'COM S curve-disconnect'!AC297*'COM-Appliance class'!$E81","v":49131.08478787975},{"$f":"AD234*'COM-Appliance class'!$B81+'COM S curve-disconnect'!AD255*'COM-Appliance class'!$C81+'COM S curve-disconnect'!AD276*'COM-Appliance class'!$D81+'COM S curve-disconnect'!AD297*'COM-Appliance class'!$E81","v":49766.926248676566},{"$f":"AE234*'COM-Appliance class'!$B81+'COM S curve-disconnect'!AE255*'COM-Appliance class'!$C81+'COM S curve-disconnect'!AE276*'COM-Appliance class'!$D81+'COM S curve-disconnect'!AE297*'COM-Appliance class'!$E81","v":50299.787219386082},{"$f":"AF234*'COM-Appliance class'!$B81+'COM S curve-disconnect'!AF255*'COM-Appliance class'!$C81+'COM S curve-disconnect'!AF276*'COM-Appliance class'!$D81+'COM S curve-disconnect'!AF297*'COM-Appliance class'!$E81","v":51291.369735269225},{"$f":"AG234*'COM-Appliance class'!$B81+'COM S curve-disconnect'!AG255*'COM-Appliance class'!$C81+'COM S curve-disconnect'!AG276*'COM-Appliance class'!$D81+'COM S curve-disconnect'!AG297*'COM-Appliance class'!$E81","v":51339.008486674458},{"$f":"AH234*'COM-Appliance class'!$B81+'COM S curve-disconnect'!AH255*'COM-Appliance class'!$C81+'COM S curve-disconnect'!AH276*'COM-Appliance class'!$D81+'COM S curve-disconnect'!AH297*'COM-Appliance class'!$E81","v":52379.20168406445},{"$f":"AI234*'COM-Appliance class'!$B81+'COM S curve-disconnect'!AI255*'COM-Appliance class'!$C81+'COM S curve-disconnect'!AI276*'COM-Appliance class'!$D81+'COM S curve-disconnect'!AI297*'COM-Appliance class'!$E81","v":52446.141662607348},{"$f":"AJ234*'COM-Appliance class'!$B81+'COM S curve-disconnect'!AJ255*'COM-Appliance class'!$C81+'COM S curve-disconnect'!AJ276*'COM-Appliance class'!$D81+'COM S curve-disconnect'!AJ297*'COM-Appliance class'!$E81","v":52512.987247422439},{"$f":"AK234*'COM-Appliance class'!$B81+'COM S curve-disconnect'!AK255*'COM-Appliance class'!$C81+'COM S curve-disconnect'!AK276*'COM-Appliance class'!$D81+'COM S curve-disconnect'!AK297*'COM-Appliance class'!$E81","v":52579.739018557535},{"$f":"AL234*'COM-Appliance class'!$B81+'COM S curve-disconnect'!AL255*'COM-Appliance class'!$C81+'COM S curve-disconnect'!AL276*'COM-Appliance class'!$D81+'COM S curve-disconnect'!AL297*'COM-Appliance class'!$E81","v":52646.397552459865},{"$f":"AM234*'COM-Appliance class'!$B81+'COM S curve-disconnect'!AM255*'COM-Appliance class'!$C81+'COM S curve-disconnect'!AM276*'COM-Appliance class'!$D81+'COM S curve-disconnect'!AM297*'COM-Appliance class'!$E81","v":52712.963421998822},{"$f":"AN234*'COM-Appliance class'!$B81+'COM S curve-disconnect'!AN255*'COM-Appliance class'!$C81+'COM S curve-disconnect'!AN276*'COM-Appliance class'!$D81+'COM S curve-disconnect'!AN297*'COM-Appliance class'!$E81","v":52779.43719648831},{"$f":"AO234*'COM-Appliance class'!$B81+'COM S curve-disconnect'!AO255*'COM-Appliance class'!$C81+'COM S curve-disconnect'!AO276*'COM-Appliance class'!$D81+'COM S curve-disconnect'!AO297*'COM-Appliance class'!$E81","v":52845.819441709442},{"$f":"AP234*'COM-Appliance class'!$B81+'COM S curve-disconnect'!AP255*'COM-Appliance class'!$C81+'COM S curve-disconnect'!AP276*'COM-Appliance class'!$D81+'COM S curve-disconnect'!AP297*'COM-Appliance class'!$E81","v":52912.110719932447},{"$f":"AQ234*'COM-Appliance class'!$B81+'COM S curve-disconnect'!AQ255*'COM-Appliance class'!$C81+'COM S curve-disconnect'!AQ276*'COM-Appliance class'!$D81+'COM S curve-disconnect'!AQ297*'COM-Appliance class'!$E81","v":52978.311589939098},{"$f":"AR234*'COM-Appliance class'!$B81+'COM S curve-disconnect'!AR255*'COM-Appliance class'!$C81+'COM S curve-disconnect'!AR276*'COM-Appliance class'!$D81+'COM S curve-disconnect'!AR297*'COM-Appliance class'!$E81","v":53044.422607044391},{"$f":"AS234*'COM-Appliance class'!$B81+'COM S curve-disconnect'!AS255*'COM-Appliance class'!$C81+'COM S curve-disconnect'!AS276*'COM-Appliance class'!$D81+'COM S curve-disconnect'!AS297*'COM-Appliance class'!$E81","v":53110.44432311866},{"$f":"AT234*'COM-Appliance class'!$B81+'COM S curve-disconnect'!AT255*'COM-Appliance class'!$C81+'COM S curve-disconnect'!AT276*'COM-Appliance class'!$D81+'COM S curve-disconnect'!AT297*'COM-Appliance class'!$E81","v":53176.377286608898},{"$f":"AU234*'COM-Appliance class'!$B81+'COM S curve-disconnect'!AU255*'COM-Appliance class'!$C81+'COM S curve-disconnect'!AU276*'COM-Appliance class'!$D81+'COM S curve-disconnect'!AU297*'COM-Appliance class'!$E81","v":53242.222042560745},{"$f":"AV234*'COM-Appliance class'!$B81+'COM S curve-disconnect'!AV255*'COM-Appliance class'!$C81+'COM S curve-disconnect'!AV276*'COM-Appliance class'!$D81+'COM S curve-disconnect'!AV297*'COM-Appliance class'!$E81","v":53307.979132639513},{"$f":"AW234*'COM-Appliance class'!$B81+'COM S curve-disconnect'!AW255*'COM-Appliance class'!$C81+'COM S curve-disconnect'!AW276*'COM-Appliance class'!$D81+'COM S curve-disconnect'!AW297*'COM-Appliance class'!$E81","v":53373.649095151748},{"$f":"AX234*'COM-Appliance class'!$B81+'COM S curve-disconnect'!AX255*'COM-Appliance class'!$C81+'COM S curve-disconnect'!AX276*'COM-Appliance class'!$D81+'COM S curve-disconnect'!AX297*'COM-Appliance class'!$E81","v":53439.232465066161},{"$f":"AY234*'COM-Appliance class'!$B81+'COM S curve-disconnect'!AY255*'COM-Appliance class'!$C81+'COM S curve-disconnect'!AY276*'COM-Appliance class'!$D81+'COM S curve-disconnect'!AY297*'COM-Appliance class'!$E81","v":53504.7297740348},{"$f":"AZ234*'COM-Appliance class'!$B81+'COM S curve-disconnect'!AZ255*'COM-Appliance class'!$C81+'COM S curve-disconnect'!AZ276*'COM-Appliance class'!$D81+'COM S curve-disconnect'!AZ297*'COM-Appliance class'!$E81","v":53570.141550413762},{"$f":"BA234*'COM-Appliance class'!$B81+'COM S curve-disconnect'!BA255*'COM-Appliance class'!$C81+'COM S curve-disconnect'!BA276*'COM-Appliance class'!$D81+'COM S curve-disconnect'!BA297*'COM-Appliance class'!$E81","v":53635.46831928422},{"$f":"BB234*'COM-Appliance class'!$B81+'COM S curve-disconnect'!BB255*'COM-Appliance class'!$C81+'COM S curve-disconnect'!BB276*'COM-Appliance class'!$D81+'COM S curve-disconnect'!BB297*'COM-Appliance class'!$E81","v":53700.710602472558},{"$f":"BC234*'COM-Appliance class'!$B81+'COM S curve-disconnect'!BC255*'COM-Appliance class'!$C81+'COM S curve-disconnect'!BC276*'COM-Appliance class'!$D81+'COM S curve-disconnect'!BC297*'COM-Appliance class'!$E81","v":53765.868918571417},{"$f":"BD234*'COM-Appliance class'!$B81+'COM S curve-disconnect'!BD255*'COM-Appliance class'!$C81+'COM S curve-disconnect'!BD276*'COM-Appliance class'!$D81+'COM S curve-disconnect'!BD297*'COM-Appliance class'!$E81","v":53830.943782959555},{"$f":"BE234*'COM-Appliance class'!$B81+'COM S curve-disconnect'!BE255*'COM-Appliance class'!$C81+'COM S curve-disconnect'!BE276*'COM-Appliance class'!$D81+'COM S curve-disconnect'!BE297*'COM-Appliance class'!$E81","v":53895.935707822442},{"$f":"BF234*'COM-Appliance class'!$B81+'COM S curve-disconnect'!BF255*'COM-Appliance class'!$C81+'COM S curve-disconnect'!BF276*'COM-Appliance class'!$D81+'COM S curve-disconnect'!BF297*'COM-Appliance class'!$E81","v":53960.845202172059},{"$f":"BG234*'COM-Appliance class'!$B81+'COM S curve-disconnect'!BG255*'COM-Appliance class'!$C81+'COM S curve-disconnect'!BG276*'COM-Appliance class'!$D81+'COM S curve-disconnect'!BG297*'COM-Appliance class'!$E81","v":54025.672771867015},{"$f":"BH234*'COM-Appliance class'!$B81+'COM S curve-disconnect'!BH255*'COM-Appliance class'!$C81+'COM S curve-disconnect'!BH276*'COM-Appliance class'!$D81+'COM S curve-disconnect'!BH297*'COM-Appliance class'!$E81","v":54090.41891963243},{"$f":"BI234*'COM-Appliance class'!$B81+'COM S curve-disconnect'!BI255*'COM-Appliance class'!$C81+'COM S curve-disconnect'!BI276*'COM-Appliance class'!$D81+'COM S curve-disconnect'!BI297*'COM-Appliance class'!$E81","v":54155.084145079549},{"$f":"BJ234*'COM-Appliance class'!$B81+'COM S curve-disconnect'!BJ255*'COM-Appliance class'!$C81+'COM S curve-disconnect'!BJ276*'COM-Appliance class'!$D81+'COM S curve-disconnect'!BJ297*'COM-Appliance class'!$E81","v":54219.668944725287},{"$f":"BK234*'COM-Appliance class'!$B81+'COM S curve-disconnect'!BK255*'COM-Appliance class'!$C81+'COM S curve-disconnect'!BK276*'COM-Appliance class'!$D81+'COM S curve-disconnect'!BK297*'COM-Appliance class'!$E81","v":54284.173812011883},{"$f":"BL234*'COM-Appliance class'!$B81+'COM S curve-disconnect'!BL255*'COM-Appliance class'!$C81+'COM S curve-disconnect'!BL276*'COM-Appliance class'!$D81+'COM S curve-disconnect'!BL297*'COM-Appliance class'!$E81","v":54348.599237326001},{"$f":"BM234*'COM-Appliance class'!$B81+'COM S curve-disconnect'!BM255*'COM-Appliance class'!$C81+'COM S curve-disconnect'!BM276*'COM-Appliance class'!$D81+'COM S curve-disconnect'!BM297*'COM-Appliance class'!$E81","v":54412.945708018218},{"$f":"BN234*'COM-Appliance class'!$B81+'COM S curve-disconnect'!BN255*'COM-Appliance class'!$C81+'COM S curve-disconnect'!BN276*'COM-Appliance class'!$D81+'COM S curve-disconnect'!BN297*'COM-Appliance class'!$E81","v":54477.213708421768},{"$f":"BO234*'COM-Appliance class'!$B81+'COM S curve-disconnect'!BO255*'COM-Appliance class'!$C81+'COM S curve-disconnect'!BO276*'COM-Appliance class'!$D81+'COM S curve-disconnect'!BO297*'COM-Appliance class'!$E81","v":54541.403719871902},{"$f":"BP234*'COM-Appliance class'!$B81+'COM S curve-disconnect'!BP255*'COM-Appliance class'!$C81+'COM S curve-disconnect'!BP276*'COM-Appliance class'!$D81+'COM S curve-disconnect'!BP297*'COM-Appliance class'!$E81","v":54605.516220724414},{"$f":"BQ234*'COM-Appliance class'!$B81+'COM S curve-disconnect'!BQ255*'COM-Appliance class'!$C81+'COM S curve-disconnect'!BQ276*'COM-Appliance class'!$D81+'COM S curve-disconnect'!BQ297*'COM-Appliance class'!$E81","v":54669.551686374631},{"$f":"BR234*'COM-Appliance class'!$B81+'COM S curve-disconnect'!BR255*'COM-Appliance class'!$C81+'COM S curve-disconnect'!BR276*'COM-Appliance class'!$D81+'COM S curve-disconnect'!BR297*'COM-Appliance class'!$E81","v":54733.510589275786},{"$f":"BS234*'COM-Appliance class'!$B81+'COM S curve-disconnect'!BS255*'COM-Appliance class'!$C81+'COM S curve-disconnect'!BS276*'COM-Appliance class'!$D81+'COM S curve-disconnect'!BS297*'COM-Appliance class'!$E81","v":54797.393398957764},{"$f":"BT234*'COM-Appliance class'!$B81+'COM S curve-disconnect'!BT255*'COM-Appliance class'!$C81+'COM S curve-disconnect'!BT276*'COM-Appliance class'!$D81+'COM S curve-disconnect'!BT297*'COM-Appliance class'!$E81","v":54861.200582045225},{"$f":"BU234*'COM-Appliance class'!$B81+'COM S curve-disconnect'!BU255*'COM-Appliance class'!$C81+'COM S curve-disconnect'!BU276*'COM-Appliance class'!$D81+'COM S curve-disconnect'!BU297*'COM-Appliance class'!$E81","v":54924.932602276152},{"$f":"BV234*'COM-Appliance class'!$B81+'COM S curve-disconnect'!BV255*'COM-Appliance class'!$C81+'COM S curve-disconnect'!BV276*'COM-Appliance class'!$D81+'COM S curve-disconnect'!BV297*'COM-Appliance class'!$E81","v":54988.589920519677},{"$f":"BW234*'COM-Appliance class'!$B81+'COM S curve-disconnect'!BW255*'COM-Appliance class'!$C81+'COM S curve-disconnect'!BW276*'COM-Appliance class'!$D81+'COM S curve-disconnect'!BW297*'COM-Appliance class'!$E81","v":55052.17299479447},{"$f":"BX234*'COM-Appliance class'!$B81+'COM S curve-disconnect'!BX255*'COM-Appliance class'!$C81+'COM S curve-disconnect'!BX276*'COM-Appliance class'!$D81+'COM S curve-disconnect'!BX297*'COM-Appliance class'!$E81","v":55115.682280286186},{"$f":"BY234*'COM-Appliance class'!$B81+'COM S curve-disconnect'!BY255*'COM-Appliance class'!$C81+'COM S curve-disconnect'!BY276*'COM-Appliance class'!$D81+'COM S curve-disconnect'!BY297*'COM-Appliance class'!$E81","v":55179.118229365871},{"$f":"BZ234*'COM-Appliance class'!$B81+'COM S curve-disconnect'!BZ255*'COM-Appliance class'!$C81+'COM S curve-disconnect'!BZ276*'COM-Appliance class'!$D81+'COM S curve-disconnect'!BZ297*'COM-Appliance class'!$E81","v":55242.481291607022},{"$f":"CA234*'COM-Appliance class'!$B81+'COM S curve-disconnect'!CA255*'COM-Appliance class'!$C81+'COM S curve-disconnect'!CA276*'COM-Appliance class'!$D81+'COM S curve-disconnect'!CA297*'COM-Appliance class'!$E81","v":55305.771913803772},{"$f":"CB234*'COM-Appliance class'!$B81+'COM S curve-disconnect'!CB255*'COM-Appliance class'!$C81+'COM S curve-disconnect'!CB276*'COM-Appliance class'!$D81+'COM S curve-disconnect'!CB297*'COM-Appliance class'!$E81","v":55368.990539987761},{"$f":"CC234*'COM-Appliance class'!$B81+'COM S curve-disconnect'!CC255*'COM-Appliance class'!$C81+'COM S curve-disconnect'!CC276*'COM-Appliance class'!$D81+'COM S curve-disconnect'!CC297*'COM-Appliance class'!$E81","v":55432.137611446029},{"$f":"CD234*'COM-Appliance class'!$B81+'COM S curve-disconnect'!CD255*'COM-Appliance class'!$C81+'COM S curve-disconnect'!CD276*'COM-Appliance class'!$D81+'COM S curve-disconnect'!CD297*'COM-Appliance class'!$E81","v":55495.213566737817}]
["Manningham (C)",null,{"$f":"C235*'COM-Appliance class'!$B82+'COM S curve-disconnect'!C256*'COM-Appliance class'!$C82+'COM S curve-disconnect'!C277*'COM-Appliance class'!$D82+'COM S curve-disconnect'!C298*'COM-Appliance class'!$E82","v":22799.545425666911},{"$f":"D235*'COM-Appliance class'!$B82+'COM S curve-disconnect'!D256*'COM-Appliance class'!$C82+'COM S curve-disconnect'!D277*'COM-Appliance class'!$D82+'COM S curve-disconnect'!D298*'COM-Appliance class'!$E82","v":28023.582594388765},{"$f":"E235*'COM-Appliance class'!$B82+'COM S curve-disconnect'!E256*'COM-Appliance class'!$C82+'COM S curve-disconnect'!E277*'COM-Appliance class'!$D82+'COM S curve-disconnect'!E298*'COM-Appliance class'!$E82","v":24902.354868036746},{"$f":"F235*'COM-Appliance class'!$B82+'COM S curve-disconnect'!F256*'COM-Appliance class'!$C82+'COM S curve-disconnect'!F277*'COM-Appliance class'!$D82+'COM S curve-disconnect'!F298*'COM-Appliance class'!$E82","v":27701.077980883194},{"$f":"G235*'COM-Appliance class'!$B82+'COM S curve-disconnect'!G256*'COM-Appliance class'!$C82+'COM S curve-disconnect'!G277*'COM-Appliance class'!$D82+'COM S curve-disconnect'!G298*'COM-Appliance class'!$E82","v":24389.05581479743},{"$f":"H235*'COM-Appliance class'!$B82+'COM S curve-disconnect'!H256*'COM-Appliance class'!$C82+'COM S curve-disconnect'!H277*'COM-Appliance class'!$D82+'COM S curve-disconnect'!H298*'COM-Appliance class'!$E82","v":25035.919441865903},{"$f":"I235*'COM-Appliance class'!$B82+'COM S curve-disconnect'!I256*'COM-Appliance class'!$C82+'COM S curve-disconnect'!I277*'COM-Appliance class'!$D82+'COM S curve-disconnect'!I298*'COM-Appliance class'!$E82","v":29034.037782208346},{"$f":"J235*'COM-Appliance class'!$B82+'COM S curve-disconnect'!J256*'COM-Appliance class'!$C82+'COM S curve-disconnect'!J277*'COM-Appliance class'!$D82+'COM S curve-disconnect'!J298*'COM-Appliance class'!$E82","v":31950.100657651114},{"$f":"K235*'COM-Appliance class'!$B82+'COM S curve-disconnect'!K256*'COM-Appliance class'!$C82+'COM S curve-disconnect'!K277*'COM-Appliance class'!$D82+'COM S curve-disconnect'!K298*'COM-Appliance class'!$E82","v":38248.538167524464},{"$f":"L235*'COM-Appliance class'!$B82+'COM S curve-disconnect'!L256*'COM-Appliance class'!$C82+'COM S curve-disconnect'!L277*'COM-Appliance class'!$D82+'COM S curve-disconnect'!L298*'COM-Appliance class'!$E82","v":37923.604414524525},{"$f":"M235*'COM-Appliance class'!$B82+'COM S curve-disconnect'!M256*'COM-Appliance class'!$C82+'COM S curve-disconnect'!M277*'COM-Appliance class'!$D82+'COM S curve-disconnect'!M298*'COM-Appliance class'!$E82","v":30814.237084700322},{"$f":"N235*'COM-Appliance class'!$B82+'COM S curve-disconnect'!N256*'COM-Appliance class'!$C82+'COM S curve-disconnect'!N277*'COM-Appliance class'!$D82+'COM S curve-disconnect'!N298*'COM-Appliance class'!$E82","v":30670.363601335033},{"$f":"O235*'COM-Appliance class'!$B82+'COM S curve-disconnect'!O256*'COM-Appliance class'!$C82+'COM S curve-disconnect'!O277*'COM-Appliance class'!$D82+'COM S curve-disconnect'!O298*'COM-Appliance class'!$E82","v":34902.883724341635},{"$f":"P235*'COM-Appliance class'!$B82+'COM S curve-disconnect'!P256*'COM-Appliance class'!$C82+'COM S curve-disconnect'!P277*'COM-Appliance class'!$D82+'COM S curve-disconnect'!P298*'COM-Appliance class'!$E82","v":38999.399646941034},{"$f":"Q235*'COM-Appliance class'!$B82+'COM S curve-disconnect'!Q256*'COM-Appliance class'!$C82+'COM S curve-disconnect'!Q277*'COM-Appliance class'!$D82+'COM S curve-disconnect'!Q298*'COM-Appliance class'!$E82","v":27156.275317174674},{"$f":"R235*'COM-Appliance class'!$B82+'COM S curve-disconnect'!R256*'COM-Appliance class'!$C82+'COM S curve-disconnect'!R277*'COM-Appliance class'!$D82+'COM S curve-disconnect'!R298*'COM-Appliance class'!$E82","v":28846.285861498145},{"$f":"S235*'COM-Appliance class'!$B82+'COM S curve-disconnect'!S256*'COM-Appliance class'!$C82+'COM S curve-disconnect'!S277*'COM-Appliance class'!$D82+'COM S curve-disconnect'!S298*'COM-Appliance class'!$E82","v":31353.919335169761},{"$f":"T235*'COM-Appliance class'!$B82+'COM S curve-disconnect'!T256*'COM-Appliance class'!$C82+'COM S curve-disconnect'!T277*'COM-Appliance class'!$D82+'COM S curve-disconnect'!T298*'COM-Appliance class'!$E82","v":35024.768537138065},{"$f":"U235*'COM-Appliance class'!$B82+'COM S curve-disconnect'!U256*'COM-Appliance class'!$C82+'COM S curve-disconnect'!U277*'COM-Appliance class'!$D82+'COM S curve-disconnect'!U298*'COM-Appliance class'!$E82","v":37756.382812694159},{"$f":"V235*'COM-Appliance class'!$B82+'COM S curve-disconnect'!V256*'COM-Appliance class'!$C82+'COM S curve-disconnect'!V277*'COM-Appliance class'!$D82+'COM S curve-disconnect'!V298*'COM-Appliance class'!$E82","v":38758.723911879249},{"$f":"W235*'COM-Appliance class'!$B82+'COM S curve-disconnect'!W256*'COM-Appliance class'!$C82+'COM S curve-disconnect'!W277*'COM-Appliance class'!$D82+'COM S curve-disconnect'!W298*'COM-Appliance class'!$E82","v":40391.75208368474},{"$f":"X235*'COM-Appliance class'!$B82+'COM S curve-disconnect'!X256*'COM-Appliance class'!$C82+'COM S curve-disconnect'!X277*'COM-Appliance class'!$D82+'COM S curve-disconnect'!X298*'COM-Appliance class'!$E82","v":44437.652580612572},{"$f":"Y235*'COM-Appliance class'!$B82+'COM S curve-disconnect'!Y256*'COM-Appliance class'!$C82+'COM S curve-disconnect'!Y277*'COM-Appliance class'!$D82+'COM S curve-disconnect'!Y298*'COM-Appliance class'!$E82","v":47799.23190591317},{"$f":"Z235*'COM-Appliance class'!$B82+'COM S curve-disconnect'!Z256*'COM-Appliance class'!$C82+'COM S curve-disconnect'!Z277*'COM-Appliance class'!$D82+'COM S curve-disconnect'!Z298*'COM-Appliance class'!$E82","v":49697.100532930614},{"$f":"AA235*'COM-Appliance class'!$B82+'COM S curve-disconnect'!AA256*'COM-Appliance class'!$C82+'COM S curve-disconnect'!AA277*'COM-Appliance class'!$D82+'COM S curve-disconnect'!AA298*'COM-Appliance class'!$E82","v":51853.693576380349},{"$f":"AB235*'COM-Appliance class'!$B82+'COM S curve-disconnect'!AB256*'COM-Appliance class'!$C82+'COM S curve-disconnect'!AB277*'COM-Appliance class'!$D82+'COM S curve-disconnect'!AB298*'COM-Appliance class'!$E82","v":53206.780809132833},{"$f":"AC235*'COM-Appliance class'!$B82+'COM S curve-disconnect'!AC256*'COM-Appliance class'!$C82+'COM S curve-disconnect'!AC277*'COM-Appliance class'!$D82+'COM S curve-disconnect'!AC298*'COM-Appliance class'!$E82","v":54186.195533798069},{"$f":"AD235*'COM-Appliance class'!$B82+'COM S curve-disconnect'!AD256*'COM-Appliance class'!$C82+'COM S curve-disconnect'!AD277*'COM-Appliance class'!$D82+'COM S curve-disconnect'!AD298*'COM-Appliance class'!$E82","v":54887.458896330863},{"$f":"AE235*'COM-Appliance class'!$B82+'COM S curve-disconnect'!AE256*'COM-Appliance class'!$C82+'COM S curve-disconnect'!AE277*'COM-Appliance class'!$D82+'COM S curve-disconnect'!AE298*'COM-Appliance class'!$E82","v":55475.146077997131},{"$f":"AF235*'COM-Appliance class'!$B82+'COM S curve-disconnect'!AF256*'COM-Appliance class'!$C82+'COM S curve-disconnect'!AF277*'COM-Appliance class'!$D82+'COM S curve-disconnect'!AF298*'COM-Appliance class'!$E82","v":56568.752790031169},{"$f":"AG235*'COM-Appliance class'!$B82+'COM S curve-disconnect'!AG256*'COM-Appliance class'!$C82+'COM S curve-disconnect'!AG277*'COM-Appliance class'!$D82+'COM S curve-disconnect'!AG298*'COM-Appliance class'!$E82","v":56621.293105592595},{"$f":"AH235*'COM-Appliance class'!$B82+'COM S curve-disconnect'!AH256*'COM-Appliance class'!$C82+'COM S curve-disconnect'!AH277*'COM-Appliance class'!$D82+'COM S curve-disconnect'!AH298*'COM-Appliance class'!$E82","v":57768.51206544356},{"$f":"AI235*'COM-Appliance class'!$B82+'COM S curve-disconnect'!AI256*'COM-Appliance class'!$C82+'COM S curve-disconnect'!AI277*'COM-Appliance class'!$D82+'COM S curve-disconnect'!AI298*'COM-Appliance class'!$E82","v":57842.33951667964},{"$f":"AJ235*'COM-Appliance class'!$B82+'COM S curve-disconnect'!AJ256*'COM-Appliance class'!$C82+'COM S curve-disconnect'!AJ277*'COM-Appliance class'!$D82+'COM S curve-disconnect'!AJ298*'COM-Appliance class'!$E82","v":57916.062861991486},{"$f":"AK235*'COM-Appliance class'!$B82+'COM S curve-disconnect'!AK256*'COM-Appliance class'!$C82+'COM S curve-disconnect'!AK277*'COM-Appliance class'!$D82+'COM S curve-disconnect'!AK298*'COM-Appliance class'!$E82","v":57989.682741108139},{"$f":"AL235*'COM-Appliance class'!$B82+'COM S curve-disconnect'!AL256*'COM-Appliance class'!$C82+'COM S curve-disconnect'!AL277*'COM-Appliance class'!$D82+'COM S curve-disconnect'!AL298*'COM-Appliance class'!$E82","v":58063.19978978765},{"$f":"AM235*'COM-Appliance class'!$B82+'COM S curve-disconnect'!AM256*'COM-Appliance class'!$C82+'COM S curve-disconnect'!AM277*'COM-Appliance class'!$D82+'COM S curve-disconnect'!AM298*'COM-Appliance class'!$E82","v":58136.614639842104},{"$f":"AN235*'COM-Appliance class'!$B82+'COM S curve-disconnect'!AN256*'COM-Appliance class'!$C82+'COM S curve-disconnect'!AN277*'COM-Appliance class'!$D82+'COM S curve-disconnect'!AN298*'COM-Appliance class'!$E82","v":58209.927919162285},{"$f":"AO235*'COM-Appliance class'!$B82+'COM S curve-disconnect'!AO256*'COM-Appliance class'!$C82+'COM S curve-disconnect'!AO277*'COM-Appliance class'!$D82+'COM S curve-disconnect'!AO298*'COM-Appliance class'!$E82","v":58283.140251742661},{"$f":"AP235*'COM-Appliance class'!$B82+'COM S curve-disconnect'!AP256*'COM-Appliance class'!$C82+'COM S curve-disconnect'!AP277*'COM-Appliance class'!$D82+'COM S curve-disconnect'!AP298*'COM-Appliance class'!$E82","v":58356.252257705601},{"$f":"AQ235*'COM-Appliance class'!$B82+'COM S curve-disconnect'!AQ256*'COM-Appliance class'!$C82+'COM S curve-disconnect'!AQ277*'COM-Appliance class'!$D82+'COM S curve-disconnect'!AQ298*'COM-Appliance class'!$E82","v":58429.264553326087},{"$f":"AR235*'COM-Appliance class'!$B82+'COM S curve-disconnect'!AR256*'COM-Appliance class'!$C82+'COM S curve-disconnect'!AR277*'COM-Appliance class'!$D82+'COM S curve-disconnect'!AR298*'COM-Appliance class'!$E82","v":58502.177751055642},{"$f":"AS235*'COM-Appliance class'!$B82+'COM S curve-disconnect'!AS256*'COM-Appliance class'!$C82+'COM S curve-disconnect'!AS277*'COM-Appliance class'!$D82+'COM S curve-disconnect'!AS298*'COM-Appliance class'!$E82","v":58574.992459546644},{"$f":"AT235*'COM-Appliance class'!$B82+'COM S curve-disconnect'!AT256*'COM-Appliance class'!$C82+'COM S curve-disconnect'!AT277*'COM-Appliance class'!$D82+'COM S curve-disconnect'!AT298*'COM-Appliance class'!$E82","v":58647.709283676013},{"$f":"AU235*'COM-Appliance class'!$B82+'COM S curve-disconnect'!AU256*'COM-Appliance class'!$C82+'COM S curve-disconnect'!AU277*'COM-Appliance class'!$D82+'COM S curve-disconnect'!AU298*'COM-Appliance class'!$E82","v":58720.328824569238},{"$f":"AV235*'COM-Appliance class'!$B82+'COM S curve-disconnect'!AV256*'COM-Appliance class'!$C82+'COM S curve-disconnect'!AV277*'COM-Appliance class'!$D82+'COM S curve-disconnect'!AV298*'COM-Appliance class'!$E82","v":58792.851679623738},{"$f":"AW235*'COM-Appliance class'!$B82+'COM S curve-disconnect'!AW256*'COM-Appliance class'!$C82+'COM S curve-disconnect'!AW277*'COM-Appliance class'!$D82+'COM S curve-disconnect'!AW298*'COM-Appliance class'!$E82","v":58865.278442532566},{"$f":"AX235*'COM-Appliance class'!$B82+'COM S curve-disconnect'!AX256*'COM-Appliance class'!$C82+'COM S curve-disconnect'!AX277*'COM-Appliance class'!$D82+'COM S curve-disconnect'!AX298*'COM-Appliance class'!$E82","v":58937.609703307506},{"$f":"AY235*'COM-Appliance class'!$B82+'COM S curve-disconnect'!AY256*'COM-Appliance class'!$C82+'COM S curve-disconnect'!AY277*'COM-Appliance class'!$D82+'COM S curve-disconnect'!AY298*'COM-Appliance class'!$E82","v":59009.846048302417},{"$f":"AZ235*'COM-Appliance class'!$B82+'COM S curve-disconnect'!AZ256*'COM-Appliance class'!$C82+'COM S curve-disconnect'!AZ277*'COM-Appliance class'!$D82+'COM S curve-disconnect'!AZ298*'COM-Appliance class'!$E82","v":59081.988060236152},{"$f":"BA235*'COM-Appliance class'!$B82+'COM S curve-disconnect'!BA256*'COM-Appliance class'!$C82+'COM S curve-disconnect'!BA277*'COM-Appliance class'!$D82+'COM S curve-disconnect'!BA298*'COM-Appliance class'!$E82","v":59154.036318215556},{"$f":"BB235*'COM-Appliance class'!$B82+'COM S curve-disconnect'!BB256*'COM-Appliance class'!$C82+'COM S curve-disconnect'!BB277*'COM-Appliance class'!$D82+'COM S curve-disconnect'!BB298*'COM-Appliance class'!$E82","v":59225.991397757927},{"$f":"BC235*'COM-Appliance class'!$B82+'COM S curve-disconnect'!BC256*'COM-Appliance class'!$C82+'COM S curve-disconnect'!BC277*'COM-Appliance class'!$D82+'COM S curve-disconnect'!BC298*'COM-Appliance class'!$E82","v":59297.853870814033},{"$f":"BD235*'COM-Appliance class'!$B82+'COM S curve-disconnect'!BD256*'COM-Appliance class'!$C82+'COM S curve-disconnect'!BD277*'COM-Appliance class'!$D82+'COM S curve-disconnect'!BD298*'COM-Appliance class'!$E82","v":59369.624305790072},{"$f":"BE235*'COM-Appliance class'!$B82+'COM S curve-disconnect'!BE256*'COM-Appliance class'!$C82+'COM S curve-disconnect'!BE277*'COM-Appliance class'!$D82+'COM S curve-disconnect'!BE298*'COM-Appliance class'!$E82","v":59441.303267570431},{"$f":"BF235*'COM-Appliance class'!$B82+'COM S curve-disconnect'!BF256*'COM-Appliance class'!$C82+'COM S curve-disconnect'!BF277*'COM-Appliance class'!$D82+'COM S curve-disconnect'!BF298*'COM-Appliance class'!$E82","v":59512.89131753947},{"$f":"BG235*'COM-Appliance class'!$B82+'COM S curve-disconnect'!BG256*'COM-Appliance class'!$C82+'COM S curve-disconnect'!BG277*'COM-Appliance class'!$D82+'COM S curve-disconnect'!BG298*'COM-Appliance class'!$E82","v":59584.389013603766},{"$f":"BH235*'COM-Appliance class'!$B82+'COM S curve-disconnect'!BH256*'COM-Appliance class'!$C82+'COM S curve-disconnect'!BH277*'COM-Appliance class'!$D82+'COM S curve-disconnect'!BH298*'COM-Appliance class'!$E82","v":59655.796910213881},{"$f":"BI235*'COM-Appliance class'!$B82+'COM S curve-disconnect'!BI256*'COM-Appliance class'!$C82+'COM S curve-disconnect'!BI277*'COM-Appliance class'!$D82+'COM S curve-disconnect'!BI298*'COM-Appliance class'!$E82","v":59727.115558386286},{"$f":"BJ235*'COM-Appliance class'!$B82+'COM S curve-disconnect'!BJ256*'COM-Appliance class'!$C82+'COM S curve-disconnect'!BJ277*'COM-Appliance class'!$D82+'COM S curve-disconnect'!BJ298*'COM-Appliance class'!$E82","v":59798.345505724603},{"$f":"BK235*'COM-Appliance class'!$B82+'COM S curve-disconnect'!BK256*'COM-Appliance class'!$C82+'COM S curve-disconnect'!BK277*'COM-Appliance class'!$D82+'COM S curve-disconnect'!BK298*'COM-Appliance class'!$E82","v":59869.487296441504},{"$f":"BL235*'COM-Appliance class'!$B82+'COM S curve-disconnect'!BL256*'COM-Appliance class'!$C82+'COM S curve-disconnect'!BL277*'COM-Appliance class'!$D82+'COM S curve-disconnect'!BL298*'COM-Appliance class'!$E82","v":59940.541471379642},{"$f":"BM235*'COM-Appliance class'!$B82+'COM S curve-disconnect'!BM256*'COM-Appliance class'!$C82+'COM S curve-disconnect'!BM277*'COM-Appliance class'!$D82+'COM S curve-disconnect'!BM298*'COM-Appliance class'!$E82","v":60011.508568033263},{"$f":"BN235*'COM-Appliance class'!$B82+'COM S curve-disconnect'!BN256*'COM-Appliance class'!$C82+'COM S curve-disconnect'!BN277*'COM-Appliance class'!$D82+'COM S curve-disconnect'!BN298*'COM-Appliance class'!$E82","v":60082.389120568754},{"$f":"BO235*'COM-Appliance class'!$B82+'COM S curve-disconnect'!BO256*'COM-Appliance class'!$C82+'COM S curve-disconnect'!BO277*'COM-Appliance class'!$D82+'COM S curve-disconnect'!BO298*'COM-Appliance class'!$E82","v":60153.183659846094},{"$f":"BP235*'COM-Appliance class'!$B82+'COM S curve-disconnect'!BP256*'COM-Appliance class'!$C82+'COM S curve-disconnect'!BP277*'COM-Appliance class'!$D82+'COM S curve-disconnect'!BP298*'COM-Appliance class'!$E82","v":60223.892713439214},{"$f":"BQ235*'COM-Appliance class'!$B82+'COM S curve-disconnect'!BQ256*'COM-Appliance class'!$C82+'COM S curve-disconnect'!BQ277*'COM-Appliance class'!$D82+'COM S curve-disconnect'!BQ298*'COM-Appliance class'!$E82","v":60294.516805657033},{"$f":"BR235*'COM-Appliance class'!$B82+'COM S curve-disconnect'!BR256*'COM-Appliance class'!$C82+'COM S curve-disconnect'!BR277*'COM-Appliance class'!$D82+'COM S curve-disconnect'!BR298*'COM-Appliance class'!$E82","v":60365.056457563594},{"$f":"BS235*'COM-Appliance class'!$B82+'COM S curve-disconnect'!BS256*'COM-Appliance class'!$C82+'COM S curve-disconnect'!BS277*'COM-Appliance class'!$D82+'COM S curve-disconnect'!BS298*'COM-Appliance class'!$E82","v":60435.512186998865},{"$f":"BT235*'COM-Appliance class'!$B82+'COM S curve-disconnect'!BT256*'COM-Appliance class'!$C82+'COM S curve-disconnect'!BT277*'COM-Appliance class'!$D82+'COM S curve-disconnect'!BT298*'COM-Appliance class'!$E82","v":60505.884508598632},{"$f":"BU235*'COM-Appliance class'!$B82+'COM S curve-disconnect'!BU256*'COM-Appliance class'!$C82+'COM S curve-disconnect'!BU277*'COM-Appliance class'!$D82+'COM S curve-disconnect'!BU298*'COM-Appliance class'!$E82","v":60576.173933815015},{"$f":"BV235*'COM-Appliance class'!$B82+'COM S curve-disconnect'!BV256*'COM-Appliance class'!$C82+'COM S curve-disconnect'!BV277*'COM-Appliance class'!$D82+'COM S curve-disconnect'!BV298*'COM-Appliance class'!$E82","v":60646.380970936072},{"$f":"BW235*'COM-Appliance class'!$B82+'COM S curve-disconnect'!BW256*'COM-Appliance class'!$C82+'COM S curve-disconnect'!BW277*'COM-Appliance class'!$D82+'COM S curve-disconnect'!BW298*'COM-Appliance class'!$E82","v":60716.506125106156},{"$f":"BX235*'COM-Appliance class'!$B82+'COM S curve-disconnect'!BX256*'COM-Appliance class'!$C82+'COM S curve-disconnect'!BX277*'COM-Appliance class'!$D82+'COM S curve-disconnect'!BX298*'COM-Appliance class'!$E82","v":60786.549898345118},{"$f":"BY235*'COM-Appliance class'!$B82+'COM S curve-disconnect'!BY256*'COM-Appliance class'!$C82+'COM S curve-disconnect'!BY277*'COM-Appliance class'!$D82+'COM S curve-disconnect'!BY298*'COM-Appliance class'!$E82","v":60856.512789568551},{"$f":"BZ235*'COM-Appliance class'!$B82+'COM S curve-disconnect'!BZ256*'COM-Appliance class'!$C82+'COM S curve-disconnect'!BZ277*'COM-Appliance class'!$D82+'COM S curve-disconnect'!BZ298*'COM-Appliance class'!$E82","v":60926.395294606729},{"$f":"CA235*'COM-Appliance class'!$B82+'COM S curve-disconnect'!CA256*'COM-Appliance class'!$C82+'COM S curve-disconnect'!CA277*'COM-Appliance class'!$D82+'COM S curve-disconnect'!CA298*'COM-Appliance class'!$E82","v":60996.197906224494},{"$f":"CB235*'COM-Appliance class'!$B82+'COM S curve-disconnect'!CB256*'COM-Appliance class'!$C82+'COM S curve-disconnect'!CB277*'COM-Appliance class'!$D82+'COM S curve-disconnect'!CB298*'COM-Appliance class'!$E82","v":61065.921114140074},{"$f":"CC235*'COM-Appliance class'!$B82+'COM S curve-disconnect'!CC256*'COM-Appliance class'!$C82+'COM S curve-disconnect'!CC277*'COM-Appliance class'!$D82+'COM S curve-disconnect'!CC298*'COM-Appliance class'!$E82","v":61135.565405044661},{"$f":"CD235*'COM-Appliance class'!$B82+'COM S curve-disconnect'!CD256*'COM-Appliance class'!$C82+'COM S curve-disconnect'!CD277*'COM-Appliance class'!$D82+'COM S curve-disconnect'!CD298*'COM-Appliance class'!$E82","v":61205.131262620947}]
["Maroondah (C)",null,{"$f":"C236*'COM-Appliance class'!$B83+'COM S curve-disconnect'!C257*'COM-Appliance class'!$C83+'COM S curve-disconnect'!C278*'COM-Appliance class'!$D83+'COM S curve-disconnect'!C299*'COM-Appliance class'!$E83","v":19269.614566465767},{"$f":"D236*'COM-Appliance class'!$B83+'COM S curve-disconnect'!D257*'COM-Appliance class'!$C83+'COM S curve-disconnect'!D278*'COM-Appliance class'!$D83+'COM S curve-disconnect'!D299*'COM-Appliance class'!$E83","v":23684.842188014569},{"$f":"E236*'COM-Appliance class'!$B83+'COM S curve-disconnect'!E257*'COM-Appliance class'!$C83+'COM S curve-disconnect'!E278*'COM-Appliance class'!$D83+'COM S curve-disconnect'!E299*'COM-Appliance class'!$E83","v":21046.857344980781},{"$f":"F236*'COM-Appliance class'!$B83+'COM S curve-disconnect'!F257*'COM-Appliance class'!$C83+'COM S curve-disconnect'!F278*'COM-Appliance class'!$D83+'COM S curve-disconnect'!F299*'COM-Appliance class'!$E83","v":23412.269227364079},{"$f":"G236*'COM-Appliance class'!$B83+'COM S curve-disconnect'!G257*'COM-Appliance class'!$C83+'COM S curve-disconnect'!G278*'COM-Appliance class'!$D83+'COM S curve-disconnect'!G299*'COM-Appliance class'!$E83","v":20613.029620410518},{"$f":"H236*'COM-Appliance class'!$B83+'COM S curve-disconnect'!H257*'COM-Appliance class'!$C83+'COM S curve-disconnect'!H278*'COM-Appliance class'!$D83+'COM S curve-disconnect'!H299*'COM-Appliance class'!$E83","v":21159.742834992558},{"$f":"I236*'COM-Appliance class'!$B83+'COM S curve-disconnect'!I257*'COM-Appliance class'!$C83+'COM S curve-disconnect'!I278*'COM-Appliance class'!$D83+'COM S curve-disconnect'!I299*'COM-Appliance class'!$E83","v":24538.854039674086},{"$f":"J236*'COM-Appliance class'!$B83+'COM S curve-disconnect'!J257*'COM-Appliance class'!$C83+'COM S curve-disconnect'!J278*'COM-Appliance class'!$D83+'COM S curve-disconnect'!J299*'COM-Appliance class'!$E83","v":27003.438601000642},{"$f":"K236*'COM-Appliance class'!$B83+'COM S curve-disconnect'!K257*'COM-Appliance class'!$C83+'COM S curve-disconnect'!K278*'COM-Appliance class'!$D83+'COM S curve-disconnect'!K299*'COM-Appliance class'!$E83","v":32326.722943748871},{"$f":"L236*'COM-Appliance class'!$B83+'COM S curve-disconnect'!L257*'COM-Appliance class'!$C83+'COM S curve-disconnect'!L278*'COM-Appliance class'!$D83+'COM S curve-disconnect'!L299*'COM-Appliance class'!$E83","v":32052.096934192763},{"$f":"M236*'COM-Appliance class'!$B83+'COM S curve-disconnect'!M257*'COM-Appliance class'!$C83+'COM S curve-disconnect'!M278*'COM-Appliance class'!$D83+'COM S curve-disconnect'!M299*'COM-Appliance class'!$E83","v":26043.434669246359},{"$f":"N236*'COM-Appliance class'!$B83+'COM S curve-disconnect'!N257*'COM-Appliance class'!$C83+'COM S curve-disconnect'!N278*'COM-Appliance class'!$D83+'COM S curve-disconnect'!N299*'COM-Appliance class'!$E83","v":25921.836342655915},{"$f":"O236*'COM-Appliance class'!$B83+'COM S curve-disconnect'!O257*'COM-Appliance class'!$C83+'COM S curve-disconnect'!O278*'COM-Appliance class'!$D83+'COM S curve-disconnect'!O299*'COM-Appliance class'!$E83","v":29499.058164075712},{"$f":"P236*'COM-Appliance class'!$B83+'COM S curve-disconnect'!P257*'COM-Appliance class'!$C83+'COM S curve-disconnect'!P278*'COM-Appliance class'!$D83+'COM S curve-disconnect'!P299*'COM-Appliance class'!$E83","v":32961.332583153133},{"$f":"Q236*'COM-Appliance class'!$B83+'COM S curve-disconnect'!Q257*'COM-Appliance class'!$C83+'COM S curve-disconnect'!Q278*'COM-Appliance class'!$D83+'COM S curve-disconnect'!Q299*'COM-Appliance class'!$E83","v":22951.815426709407},{"$f":"R236*'COM-Appliance class'!$B83+'COM S curve-disconnect'!R257*'COM-Appliance class'!$C83+'COM S curve-disconnect'!R278*'COM-Appliance class'!$D83+'COM S curve-disconnect'!R299*'COM-Appliance class'!$E83","v":24380.17073793921},{"$f":"S236*'COM-Appliance class'!$B83+'COM S curve-disconnect'!S257*'COM-Appliance class'!$C83+'COM S curve-disconnect'!S278*'COM-Appliance class'!$D83+'COM S curve-disconnect'!S299*'COM-Appliance class'!$E83","v":26499.560822674037},{"$f":"T236*'COM-Appliance class'!$B83+'COM S curve-disconnect'!T257*'COM-Appliance class'!$C83+'COM S curve-disconnect'!T278*'COM-Appliance class'!$D83+'COM S curve-disconnect'!T299*'COM-Appliance class'!$E83","v":29602.072207568399},{"$f":"U236*'COM-Appliance class'!$B83+'COM S curve-disconnect'!U257*'COM-Appliance class'!$C83+'COM S curve-disconnect'!U278*'COM-Appliance class'!$D83+'COM S curve-disconnect'!U299*'COM-Appliance class'!$E83","v":31910.765352606468},{"$f":"V236*'COM-Appliance class'!$B83+'COM S curve-disconnect'!V257*'COM-Appliance class'!$C83+'COM S curve-disconnect'!V278*'COM-Appliance class'!$D83+'COM S curve-disconnect'!V299*'COM-Appliance class'!$E83","v":32757.919376286285},{"$f":"W236*'COM-Appliance class'!$B83+'COM S curve-disconnect'!W257*'COM-Appliance class'!$C83+'COM S curve-disconnect'!W278*'COM-Appliance class'!$D83+'COM S curve-disconnect'!W299*'COM-Appliance class'!$E83","v":34138.114588926212},{"$f":"X236*'COM-Appliance class'!$B83+'COM S curve-disconnect'!X257*'COM-Appliance class'!$C83+'COM S curve-disconnect'!X278*'COM-Appliance class'!$D83+'COM S curve-disconnect'!X299*'COM-Appliance class'!$E83","v":37557.610096161356},{"$f":"Y236*'COM-Appliance class'!$B83+'COM S curve-disconnect'!Y257*'COM-Appliance class'!$C83+'COM S curve-disconnect'!Y278*'COM-Appliance class'!$D83+'COM S curve-disconnect'!Y299*'COM-Appliance class'!$E83","v":40398.734194197968},{"$f":"Z236*'COM-Appliance class'!$B83+'COM S curve-disconnect'!Z257*'COM-Appliance class'!$C83+'COM S curve-disconnect'!Z278*'COM-Appliance class'!$D83+'COM S curve-disconnect'!Z299*'COM-Appliance class'!$E83","v":42002.766040343595},{"$f":"AA236*'COM-Appliance class'!$B83+'COM S curve-disconnect'!AA257*'COM-Appliance class'!$C83+'COM S curve-disconnect'!AA278*'COM-Appliance class'!$D83+'COM S curve-disconnect'!AA299*'COM-Appliance class'!$E83","v":43825.465394569088},{"$f":"AB236*'COM-Appliance class'!$B83+'COM S curve-disconnect'!AB257*'COM-Appliance class'!$C83+'COM S curve-disconnect'!AB278*'COM-Appliance class'!$D83+'COM S curve-disconnect'!AB299*'COM-Appliance class'!$E83","v":44969.061416470184},{"$f":"AC236*'COM-Appliance class'!$B83+'COM S curve-disconnect'!AC257*'COM-Appliance class'!$C83+'COM S curve-disconnect'!AC278*'COM-Appliance class'!$D83+'COM S curve-disconnect'!AC299*'COM-Appliance class'!$E83","v":45796.83863275512},{"$f":"AD236*'COM-Appliance class'!$B83+'COM S curve-disconnect'!AD257*'COM-Appliance class'!$C83+'COM S curve-disconnect'!AD278*'COM-Appliance class'!$D83+'COM S curve-disconnect'!AD299*'COM-Appliance class'!$E83","v":46389.529164662745},{"$f":"AE236*'COM-Appliance class'!$B83+'COM S curve-disconnect'!AE257*'COM-Appliance class'!$C83+'COM S curve-disconnect'!AE278*'COM-Appliance class'!$D83+'COM S curve-disconnect'!AE299*'COM-Appliance class'!$E83","v":46886.227904261861},{"$f":"AF236*'COM-Appliance class'!$B83+'COM S curve-disconnect'!AF257*'COM-Appliance class'!$C83+'COM S curve-disconnect'!AF278*'COM-Appliance class'!$D83+'COM S curve-disconnect'!AF299*'COM-Appliance class'!$E83","v":47810.517377352502},{"$f":"AG236*'COM-Appliance class'!$B83+'COM S curve-disconnect'!AG257*'COM-Appliance class'!$C83+'COM S curve-disconnect'!AG278*'COM-Appliance class'!$D83+'COM S curve-disconnect'!AG299*'COM-Appliance class'!$E83","v":47854.923158747129},{"$f":"AH236*'COM-Appliance class'!$B83+'COM S curve-disconnect'!AH257*'COM-Appliance class'!$C83+'COM S curve-disconnect'!AH278*'COM-Appliance class'!$D83+'COM S curve-disconnect'!AH299*'COM-Appliance class'!$E83","v":48824.524383988362},{"$f":"AI236*'COM-Appliance class'!$B83+'COM S curve-disconnect'!AI257*'COM-Appliance class'!$C83+'COM S curve-disconnect'!AI278*'COM-Appliance class'!$D83+'COM S curve-disconnect'!AI299*'COM-Appliance class'!$E83","v":48886.92152845698},{"$f":"AJ236*'COM-Appliance class'!$B83+'COM S curve-disconnect'!AJ257*'COM-Appliance class'!$C83+'COM S curve-disconnect'!AJ278*'COM-Appliance class'!$D83+'COM S curve-disconnect'!AJ299*'COM-Appliance class'!$E83","v":48949.230685161048},{"$f":"AK236*'COM-Appliance class'!$B83+'COM S curve-disconnect'!AK257*'COM-Appliance class'!$C83+'COM S curve-disconnect'!AK278*'COM-Appliance class'!$D83+'COM S curve-disconnect'!AK299*'COM-Appliance class'!$E83","v":49011.452394783861},{"$f":"AL236*'COM-Appliance class'!$B83+'COM S curve-disconnect'!AL257*'COM-Appliance class'!$C83+'COM S curve-disconnect'!AL278*'COM-Appliance class'!$D83+'COM S curve-disconnect'!AL299*'COM-Appliance class'!$E83","v":49073.587194652428},{"$f":"AM236*'COM-Appliance class'!$B83+'COM S curve-disconnect'!AM257*'COM-Appliance class'!$C83+'COM S curve-disconnect'!AM278*'COM-Appliance class'!$D83+'COM S curve-disconnect'!AM299*'COM-Appliance class'!$E83","v":49135.635618758803},{"$f":"AN236*'COM-Appliance class'!$B83+'COM S curve-disconnect'!AN257*'COM-Appliance class'!$C83+'COM S curve-disconnect'!AN278*'COM-Appliance class'!$D83+'COM S curve-disconnect'!AN299*'COM-Appliance class'!$E83","v":49197.598197780797},{"$f":"AO236*'COM-Appliance class'!$B83+'COM S curve-disconnect'!AO257*'COM-Appliance class'!$C83+'COM S curve-disconnect'!AO278*'COM-Appliance class'!$D83+'COM S curve-disconnect'!AO299*'COM-Appliance class'!$E83","v":49259.475459103196},{"$f":"AP236*'COM-Appliance class'!$B83+'COM S curve-disconnect'!AP257*'COM-Appliance class'!$C83+'COM S curve-disconnect'!AP278*'COM-Appliance class'!$D83+'COM S curve-disconnect'!AP299*'COM-Appliance class'!$E83","v":49321.267926838133},{"$f":"AQ236*'COM-Appliance class'!$B83+'COM S curve-disconnect'!AQ257*'COM-Appliance class'!$C83+'COM S curve-disconnect'!AQ278*'COM-Appliance class'!$D83+'COM S curve-disconnect'!AQ299*'COM-Appliance class'!$E83","v":49382.976121846092},{"$f":"AR236*'COM-Appliance class'!$B83+'COM S curve-disconnect'!AR257*'COM-Appliance class'!$C83+'COM S curve-disconnect'!AR278*'COM-Appliance class'!$D83+'COM S curve-disconnect'!AR299*'COM-Appliance class'!$E83","v":49444.600561755979},{"$f":"AS236*'COM-Appliance class'!$B83+'COM S curve-disconnect'!AS257*'COM-Appliance class'!$C83+'COM S curve-disconnect'!AS278*'COM-Appliance class'!$D83+'COM S curve-disconnect'!AS299*'COM-Appliance class'!$E83","v":49506.141760985847},{"$f":"AT236*'COM-Appliance class'!$B83+'COM S curve-disconnect'!AT257*'COM-Appliance class'!$C83+'COM S curve-disconnect'!AT278*'COM-Appliance class'!$D83+'COM S curve-disconnect'!AT299*'COM-Appliance class'!$E83","v":49567.600230762735},{"$f":"AU236*'COM-Appliance class'!$B83+'COM S curve-disconnect'!AU257*'COM-Appliance class'!$C83+'COM S curve-disconnect'!AU278*'COM-Appliance class'!$D83+'COM S curve-disconnect'!AU299*'COM-Appliance class'!$E83","v":49628.976479143152},{"$f":"AV236*'COM-Appliance class'!$B83+'COM S curve-disconnect'!AV257*'COM-Appliance class'!$C83+'COM S curve-disconnect'!AV278*'COM-Appliance class'!$D83+'COM S curve-disconnect'!AV299*'COM-Appliance class'!$E83","v":49690.271011032659},{"$f":"AW236*'COM-Appliance class'!$B83+'COM S curve-disconnect'!AW257*'COM-Appliance class'!$C83+'COM S curve-disconnect'!AW278*'COM-Appliance class'!$D83+'COM S curve-disconnect'!AW299*'COM-Appliance class'!$E83","v":49751.484328206032},{"$f":"AX236*'COM-Appliance class'!$B83+'COM S curve-disconnect'!AX257*'COM-Appliance class'!$C83+'COM S curve-disconnect'!AX278*'COM-Appliance class'!$D83+'COM S curve-disconnect'!AX299*'COM-Appliance class'!$E83","v":49812.616929326687},{"$f":"AY236*'COM-Appliance class'!$B83+'COM S curve-disconnect'!AY257*'COM-Appliance class'!$C83+'COM S curve-disconnect'!AY278*'COM-Appliance class'!$D83+'COM S curve-disconnect'!AY299*'COM-Appliance class'!$E83","v":49873.669309966492},{"$f":"AZ236*'COM-Appliance class'!$B83+'COM S curve-disconnect'!AZ257*'COM-Appliance class'!$C83+'COM S curve-disconnect'!AZ278*'COM-Appliance class'!$D83+'COM S curve-disconnect'!AZ299*'COM-Appliance class'!$E83","v":49934.64196262505},{"$f":"BA236*'COM-Appliance class'!$B83+'COM S curve-disconnect'!BA257*'COM-Appliance class'!$C83+'COM S curve-disconnect'!BA278*'COM-Appliance class'!$D83+'COM S curve-disconnect'!BA299*'COM-Appliance class'!$E83","v":49995.535376749242},{"$f":"BB236*'COM-Appliance class'!$B83+'COM S curve-disconnect'!BB257*'COM-Appliance class'!$C83+'COM S curve-disconnect'!BB278*'COM-Appliance class'!$D83+'COM S curve-disconnect'!BB299*'COM-Appliance class'!$E83","v":50056.350038752105},{"$f":"BC236*'COM-Appliance class'!$B83+'COM S curve-disconnect'!BC257*'COM-Appliance class'!$C83+'COM S curve-disconnect'!BC278*'COM-Appliance class'!$D83+'COM S curve-disconnect'!BC299*'COM-Appliance class'!$E83","v":50117.08643203236},{"$f":"BD236*'COM-Appliance class'!$B83+'COM S curve-disconnect'!BD257*'COM-Appliance class'!$C83+'COM S curve-disconnect'!BD278*'COM-Appliance class'!$D83+'COM S curve-disconnect'!BD299*'COM-Appliance class'!$E83","v":50177.745036992914},{"$f":"BE236*'COM-Appliance class'!$B83+'COM S curve-disconnect'!BE257*'COM-Appliance class'!$C83+'COM S curve-disconnect'!BE278*'COM-Appliance class'!$D83+'COM S curve-disconnect'!BE299*'COM-Appliance class'!$E83","v":50238.326331060161},{"$f":"BF236*'COM-Appliance class'!$B83+'COM S curve-disconnect'!BF257*'COM-Appliance class'!$C83+'COM S curve-disconnect'!BF278*'COM-Appliance class'!$D83+'COM S curve-disconnect'!BF299*'COM-Appliance class'!$E83","v":50298.830788702355},{"$f":"BG236*'COM-Appliance class'!$B83+'COM S curve-disconnect'!BG257*'COM-Appliance class'!$C83+'COM S curve-disconnect'!BG278*'COM-Appliance class'!$D83+'COM S curve-disconnect'!BG299*'COM-Appliance class'!$E83","v":50359.258881448361},{"$f":"BH236*'COM-Appliance class'!$B83+'COM S curve-disconnect'!BH257*'COM-Appliance class'!$C83+'COM S curve-disconnect'!BH278*'COM-Appliance class'!$D83+'COM S curve-disconnect'!BH299*'COM-Appliance class'!$E83","v":50419.6110779062},{"$f":"BI236*'COM-Appliance class'!$B83+'COM S curve-disconnect'!BI257*'COM-Appliance class'!$C83+'COM S curve-disconnect'!BI278*'COM-Appliance class'!$D83+'COM S curve-disconnect'!BI299*'COM-Appliance class'!$E83","v":50479.887843781384},{"$f":"BJ236*'COM-Appliance class'!$B83+'COM S curve-disconnect'!BJ257*'COM-Appliance class'!$C83+'COM S curve-disconnect'!BJ278*'COM-Appliance class'!$D83+'COM S curve-disconnect'!BJ299*'COM-Appliance class'!$E83","v":50540.089641895043},{"$f":"BK236*'COM-Appliance class'!$B83+'COM S curve-disconnect'!BK257*'COM-Appliance class'!$C83+'COM S curve-disconnect'!BK278*'COM-Appliance class'!$D83+'COM S curve-disconnect'!BK299*'COM-Appliance class'!$E83","v":50600.216932202296},{"$f":"BL236*'COM-Appliance class'!$B83+'COM S curve-disconnect'!BL257*'COM-Appliance class'!$C83+'COM S curve-disconnect'!BL278*'COM-Appliance class'!$D83+'COM S curve-disconnect'!BL299*'COM-Appliance class'!$E83","v":50660.270171810087},{"$f":"BM236*'COM-Appliance class'!$B83+'COM S curve-disconnect'!BM257*'COM-Appliance class'!$C83+'COM S curve-disconnect'!BM278*'COM-Appliance class'!$D83+'COM S curve-disconnect'!BM299*'COM-Appliance class'!$E83","v":50720.249814995295},{"$f":"BN236*'COM-Appliance class'!$B83+'COM S curve-disconnect'!BN257*'COM-Appliance class'!$C83+'COM S curve-disconnect'!BN278*'COM-Appliance class'!$D83+'COM S curve-disconnect'!BN299*'COM-Appliance class'!$E83","v":50780.156313222193},{"$f":"BO236*'COM-Appliance class'!$B83+'COM S curve-disconnect'!BO257*'COM-Appliance class'!$C83+'COM S curve-disconnect'!BO278*'COM-Appliance class'!$D83+'COM S curve-disconnect'!BO299*'COM-Appliance class'!$E83","v":50839.990115160595},{"$f":"BP236*'COM-Appliance class'!$B83+'COM S curve-disconnect'!BP257*'COM-Appliance class'!$C83+'COM S curve-disconnect'!BP278*'COM-Appliance class'!$D83+'COM S curve-disconnect'!BP299*'COM-Appliance class'!$E83","v":50899.751666702992},{"$f":"BQ236*'COM-Appliance class'!$B83+'COM S curve-disconnect'!BQ257*'COM-Appliance class'!$C83+'COM S curve-disconnect'!BQ278*'COM-Appliance class'!$D83+'COM S curve-disconnect'!BQ299*'COM-Appliance class'!$E83","v":50959.441410982356},{"$f":"BR236*'COM-Appliance class'!$B83+'COM S curve-disconnect'!BR257*'COM-Appliance class'!$C83+'COM S curve-disconnect'!BR278*'COM-Appliance class'!$D83+'COM S curve-disconnect'!BR299*'COM-Appliance class'!$E83","v":51019.059788389204},{"$f":"BS236*'COM-Appliance class'!$B83+'COM S curve-disconnect'!BS257*'COM-Appliance class'!$C83+'COM S curve-disconnect'!BS278*'COM-Appliance class'!$D83+'COM S curve-disconnect'!BS299*'COM-Appliance class'!$E83","v":51078.60723658913},{"$f":"BT236*'COM-Appliance class'!$B83+'COM S curve-disconnect'!BT257*'COM-Appliance class'!$C83+'COM S curve-disconnect'!BT278*'COM-Appliance class'!$D83+'COM S curve-disconnect'!BT299*'COM-Appliance class'!$E83","v":51138.084190539652},{"$f":"BU236*'COM-Appliance class'!$B83+'COM S curve-disconnect'!BU257*'COM-Appliance class'!$C83+'COM S curve-disconnect'!BU278*'COM-Appliance class'!$D83+'COM S curve-disconnect'!BU299*'COM-Appliance class'!$E83","v":51197.491082507469},{"$f":"BV236*'COM-Appliance class'!$B83+'COM S curve-disconnect'!BV257*'COM-Appliance class'!$C83+'COM S curve-disconnect'!BV278*'COM-Appliance class'!$D83+'COM S curve-disconnect'!BV299*'COM-Appliance class'!$E83","v":51256.828342085166},{"$f":"BW236*'COM-Appliance class'!$B83+'COM S curve-disconnect'!BW257*'COM-Appliance class'!$C83+'COM S curve-disconnect'!BW278*'COM-Appliance class'!$D83+'COM S curve-disconnect'!BW299*'COM-Appliance class'!$E83","v":51316.096396208319},{"$f":"BX236*'COM-Appliance class'!$B83+'COM S curve-disconnect'!BX257*'COM-Appliance class'!$C83+'COM S curve-disconnect'!BX278*'COM-Appliance class'!$D83+'COM S curve-disconnect'!BX299*'COM-Appliance class'!$E83","v":51375.295669171726},{"$f":"BY236*'COM-Appliance class'!$B83+'COM S curve-disconnect'!BY257*'COM-Appliance class'!$C83+'COM S curve-disconnect'!BY278*'COM-Appliance class'!$D83+'COM S curve-disconnect'!BY299*'COM-Appliance class'!$E83","v":51434.426582646585},{"$f":"BZ236*'COM-Appliance class'!$B83+'COM S curve-disconnect'!BZ257*'COM-Appliance class'!$C83+'COM S curve-disconnect'!BZ278*'COM-Appliance class'!$D83+'COM S curve-disconnect'!BZ299*'COM-Appliance class'!$E83","v":51493.489555696418},{"$f":"CA236*'COM-Appliance class'!$B83+'COM S curve-disconnect'!CA257*'COM-Appliance class'!$C83+'COM S curve-disconnect'!CA278*'COM-Appliance class'!$D83+'COM S curve-disconnect'!CA299*'COM-Appliance class'!$E83","v":51552.485004793954},{"$f":"CB236*'COM-Appliance class'!$B83+'COM S curve-disconnect'!CB257*'COM-Appliance class'!$C83+'COM S curve-disconnect'!CB278*'COM-Appliance class'!$D83+'COM S curve-disconnect'!CB299*'COM-Appliance class'!$E83","v":51611.413343836997},{"$f":"CC236*'COM-Appliance class'!$B83+'COM S curve-disconnect'!CC257*'COM-Appliance class'!$C83+'COM S curve-disconnect'!CC278*'COM-Appliance class'!$D83+'COM S curve-disconnect'!CC299*'COM-Appliance class'!$E83","v":51670.274984164935},{"$f":"CD236*'COM-Appliance class'!$B83+'COM S curve-disconnect'!CD257*'COM-Appliance class'!$C83+'COM S curve-disconnect'!CD278*'COM-Appliance class'!$D83+'COM S curve-disconnect'!CD299*'COM-Appliance class'!$E83","v":51729.070334574499}]
["Melbourne (C)",null,{"$f":"C237*'COM-Appliance class'!$B84+'COM S curve-disconnect'!C258*'COM-Appliance class'!$C84+'COM S curve-disconnect'!C279*'COM-Appliance class'!$D84+'COM S curve-disconnect'!C300*'COM-Appliance class'!$E84","v":76752.940007119003},{"$f":"D237*'COM-Appliance class'!$B84+'COM S curve-disconnect'!D258*'COM-Appliance class'!$C84+'COM S curve-disconnect'!D279*'COM-Appliance class'!$D84+'COM S curve-disconnect'!D300*'COM-Appliance class'!$E84","v":94339.264818423428},{"$f":"E237*'COM-Appliance class'!$B84+'COM S curve-disconnect'!E258*'COM-Appliance class'!$C84+'COM S curve-disconnect'!E279*'COM-Appliance class'!$D84+'COM S curve-disconnect'!E300*'COM-Appliance class'!$E84","v":83831.888466982622},{"$f":"F237*'COM-Appliance class'!$B84+'COM S curve-disconnect'!F258*'COM-Appliance class'!$C84+'COM S curve-disconnect'!F279*'COM-Appliance class'!$D84+'COM S curve-disconnect'!F300*'COM-Appliance class'!$E84","v":93253.577503598892},{"$f":"G237*'COM-Appliance class'!$B84+'COM S curve-disconnect'!G258*'COM-Appliance class'!$C84+'COM S curve-disconnect'!G279*'COM-Appliance class'!$D84+'COM S curve-disconnect'!G300*'COM-Appliance class'!$E84","v":82103.906145254543},{"$f":"H237*'COM-Appliance class'!$B84+'COM S curve-disconnect'!H258*'COM-Appliance class'!$C84+'COM S curve-disconnect'!H279*'COM-Appliance class'!$D84+'COM S curve-disconnect'!H300*'COM-Appliance class'!$E84","v":84281.523472014116},{"$f":"I237*'COM-Appliance class'!$B84+'COM S curve-disconnect'!I258*'COM-Appliance class'!$C84+'COM S curve-disconnect'!I279*'COM-Appliance class'!$D84+'COM S curve-disconnect'!I300*'COM-Appliance class'!$E84","v":97740.885550882842},{"$f":"J237*'COM-Appliance class'!$B84+'COM S curve-disconnect'!J258*'COM-Appliance class'!$C84+'COM S curve-disconnect'!J279*'COM-Appliance class'!$D84+'COM S curve-disconnect'!J300*'COM-Appliance class'!$E84","v":107557.58999639696},{"$f":"K237*'COM-Appliance class'!$B84+'COM S curve-disconnect'!K258*'COM-Appliance class'!$C84+'COM S curve-disconnect'!K279*'COM-Appliance class'!$D84+'COM S curve-disconnect'!K300*'COM-Appliance class'!$E84","v":128760.80204770724},{"$f":"L237*'COM-Appliance class'!$B84+'COM S curve-disconnect'!L258*'COM-Appliance class'!$C84+'COM S curve-disconnect'!L279*'COM-Appliance class'!$D84+'COM S curve-disconnect'!L300*'COM-Appliance class'!$E84","v":127666.93721905955},{"$f":"M237*'COM-Appliance class'!$B84+'COM S curve-disconnect'!M258*'COM-Appliance class'!$C84+'COM S curve-disconnect'!M279*'COM-Appliance class'!$D84+'COM S curve-disconnect'!M300*'COM-Appliance class'!$E84","v":103733.79144939526},{"$f":"N237*'COM-Appliance class'!$B84+'COM S curve-disconnect'!N258*'COM-Appliance class'!$C84+'COM S curve-disconnect'!N279*'COM-Appliance class'!$D84+'COM S curve-disconnect'!N300*'COM-Appliance class'!$E84","v":103249.45228248715},{"$f":"O237*'COM-Appliance class'!$B84+'COM S curve-disconnect'!O258*'COM-Appliance class'!$C84+'COM S curve-disconnect'!O279*'COM-Appliance class'!$D84+'COM S curve-disconnect'!O300*'COM-Appliance class'!$E84","v":117497.91018000017},{"$f":"P237*'COM-Appliance class'!$B84+'COM S curve-disconnect'!P258*'COM-Appliance class'!$C84+'COM S curve-disconnect'!P279*'COM-Appliance class'!$D84+'COM S curve-disconnect'!P300*'COM-Appliance class'!$E84","v":131288.52025468682},{"$f":"Q237*'COM-Appliance class'!$B84+'COM S curve-disconnect'!Q258*'COM-Appliance class'!$C84+'COM S curve-disconnect'!Q279*'COM-Appliance class'!$D84+'COM S curve-disconnect'!Q300*'COM-Appliance class'!$E84","v":91419.540667221241},{"$f":"R237*'COM-Appliance class'!$B84+'COM S curve-disconnect'!R258*'COM-Appliance class'!$C84+'COM S curve-disconnect'!R279*'COM-Appliance class'!$D84+'COM S curve-disconnect'!R300*'COM-Appliance class'!$E84","v":97108.832953453923},{"$f":"S237*'COM-Appliance class'!$B84+'COM S curve-disconnect'!S258*'COM-Appliance class'!$C84+'COM S curve-disconnect'!S279*'COM-Appliance class'!$D84+'COM S curve-disconnect'!S300*'COM-Appliance class'!$E84","v":105550.59080305941},{"$f":"T237*'COM-Appliance class'!$B84+'COM S curve-disconnect'!T258*'COM-Appliance class'!$C84+'COM S curve-disconnect'!T279*'COM-Appliance class'!$D84+'COM S curve-disconnect'!T300*'COM-Appliance class'!$E84","v":117908.22615559027},{"$f":"U237*'COM-Appliance class'!$B84+'COM S curve-disconnect'!U258*'COM-Appliance class'!$C84+'COM S curve-disconnect'!U279*'COM-Appliance class'!$D84+'COM S curve-disconnect'!U300*'COM-Appliance class'!$E84","v":127103.99838262418},{"$f":"V237*'COM-Appliance class'!$B84+'COM S curve-disconnect'!V258*'COM-Appliance class'!$C84+'COM S curve-disconnect'!V279*'COM-Appliance class'!$D84+'COM S curve-disconnect'!V300*'COM-Appliance class'!$E84","v":130478.30365126408},{"$f":"W237*'COM-Appliance class'!$B84+'COM S curve-disconnect'!W258*'COM-Appliance class'!$C84+'COM S curve-disconnect'!W279*'COM-Appliance class'!$D84+'COM S curve-disconnect'!W300*'COM-Appliance class'!$E84","v":135975.76910333487},{"$f":"X237*'COM-Appliance class'!$B84+'COM S curve-disconnect'!X258*'COM-Appliance class'!$C84+'COM S curve-disconnect'!X279*'COM-Appliance class'!$D84+'COM S curve-disconnect'!X300*'COM-Appliance class'!$E84","v":149595.98618739506},{"$f":"Y237*'COM-Appliance class'!$B84+'COM S curve-disconnect'!Y258*'COM-Appliance class'!$C84+'COM S curve-disconnect'!Y279*'COM-Appliance class'!$D84+'COM S curve-disconnect'!Y300*'COM-Appliance class'!$E84","v":160912.48796262383},{"$f":"Z237*'COM-Appliance class'!$B84+'COM S curve-disconnect'!Z258*'COM-Appliance class'!$C84+'COM S curve-disconnect'!Z279*'COM-Appliance class'!$D84+'COM S curve-disconnect'!Z300*'COM-Appliance class'!$E84","v":167301.51871526663},{"$f":"AA237*'COM-Appliance class'!$B84+'COM S curve-disconnect'!AA258*'COM-Appliance class'!$C84+'COM S curve-disconnect'!AA279*'COM-Appliance class'!$D84+'COM S curve-disconnect'!AA300*'COM-Appliance class'!$E84","v":174561.525587918},{"$f":"AB237*'COM-Appliance class'!$B84+'COM S curve-disconnect'!AB258*'COM-Appliance class'!$C84+'COM S curve-disconnect'!AB279*'COM-Appliance class'!$D84+'COM S curve-disconnect'!AB300*'COM-Appliance class'!$E84","v":179116.59110615132},{"$f":"AC237*'COM-Appliance class'!$B84+'COM S curve-disconnect'!AC258*'COM-Appliance class'!$C84+'COM S curve-disconnect'!AC279*'COM-Appliance class'!$D84+'COM S curve-disconnect'!AC300*'COM-Appliance class'!$E84","v":182413.71647426032},{"$f":"AD237*'COM-Appliance class'!$B84+'COM S curve-disconnect'!AD258*'COM-Appliance class'!$C84+'COM S curve-disconnect'!AD279*'COM-Appliance class'!$D84+'COM S curve-disconnect'!AD300*'COM-Appliance class'!$E84","v":184774.46638347022},{"$f":"AE237*'COM-Appliance class'!$B84+'COM S curve-disconnect'!AE258*'COM-Appliance class'!$C84+'COM S curve-disconnect'!AE279*'COM-Appliance class'!$D84+'COM S curve-disconnect'!AE300*'COM-Appliance class'!$E84","v":186752.87069615463},{"$f":"AF237*'COM-Appliance class'!$B84+'COM S curve-disconnect'!AF258*'COM-Appliance class'!$C84+'COM S curve-disconnect'!AF279*'COM-Appliance class'!$D84+'COM S curve-disconnect'!AF300*'COM-Appliance class'!$E84","v":190434.4147266614},{"$f":"AG237*'COM-Appliance class'!$B84+'COM S curve-disconnect'!AG258*'COM-Appliance class'!$C84+'COM S curve-disconnect'!AG279*'COM-Appliance class'!$D84+'COM S curve-disconnect'!AG300*'COM-Appliance class'!$E84","v":190611.28771307197},{"$f":"AH237*'COM-Appliance class'!$B84+'COM S curve-disconnect'!AH258*'COM-Appliance class'!$C84+'COM S curve-disconnect'!AH279*'COM-Appliance class'!$D84+'COM S curve-disconnect'!AH300*'COM-Appliance class'!$E84","v":194473.31330860616},{"$f":"AI237*'COM-Appliance class'!$B84+'COM S curve-disconnect'!AI258*'COM-Appliance class'!$C84+'COM S curve-disconnect'!AI279*'COM-Appliance class'!$D84+'COM S curve-disconnect'!AI300*'COM-Appliance class'!$E84","v":194721.84782233479},{"$f":"AJ237*'COM-Appliance class'!$B84+'COM S curve-disconnect'!AJ258*'COM-Appliance class'!$C84+'COM S curve-disconnect'!AJ279*'COM-Appliance class'!$D84+'COM S curve-disconnect'!AJ300*'COM-Appliance class'!$E84","v":194970.03187136736},{"$f":"AK237*'COM-Appliance class'!$B84+'COM S curve-disconnect'!AK258*'COM-Appliance class'!$C84+'COM S curve-disconnect'!AK279*'COM-Appliance class'!$D84+'COM S curve-disconnect'!AK300*'COM-Appliance class'!$E84","v":195217.86760930321},{"$f":"AL237*'COM-Appliance class'!$B84+'COM S curve-disconnect'!AL258*'COM-Appliance class'!$C84+'COM S curve-disconnect'!AL279*'COM-Appliance class'!$D84+'COM S curve-disconnect'!AL300*'COM-Appliance class'!$E84","v":195465.35717637354},{"$f":"AM237*'COM-Appliance class'!$B84+'COM S curve-disconnect'!AM258*'COM-Appliance class'!$C84+'COM S curve-disconnect'!AM279*'COM-Appliance class'!$D84+'COM S curve-disconnect'!AM300*'COM-Appliance class'!$E84","v":195712.50269952582},{"$f":"AN237*'COM-Appliance class'!$B84+'COM S curve-disconnect'!AN258*'COM-Appliance class'!$C84+'COM S curve-disconnect'!AN279*'COM-Appliance class'!$D84+'COM S curve-disconnect'!AN300*'COM-Appliance class'!$E84","v":195959.30629250678},{"$f":"AO237*'COM-Appliance class'!$B84+'COM S curve-disconnect'!AO258*'COM-Appliance class'!$C84+'COM S curve-disconnect'!AO279*'COM-Appliance class'!$D84+'COM S curve-disconnect'!AO300*'COM-Appliance class'!$E84","v":196205.77005594643},{"$f":"AP237*'COM-Appliance class'!$B84+'COM S curve-disconnect'!AP258*'COM-Appliance class'!$C84+'COM S curve-disconnect'!AP279*'COM-Appliance class'!$D84+'COM S curve-disconnect'!AP300*'COM-Appliance class'!$E84","v":196451.89607743965},{"$f":"AQ237*'COM-Appliance class'!$B84+'COM S curve-disconnect'!AQ258*'COM-Appliance class'!$C84+'COM S curve-disconnect'!AQ279*'COM-Appliance class'!$D84+'COM S curve-disconnect'!AQ300*'COM-Appliance class'!$E84","v":196697.68643162944},{"$f":"AR237*'COM-Appliance class'!$B84+'COM S curve-disconnect'!AR258*'COM-Appliance class'!$C84+'COM S curve-disconnect'!AR279*'COM-Appliance class'!$D84+'COM S curve-disconnect'!AR300*'COM-Appliance class'!$E84","v":196943.14318028738},{"$f":"AS237*'COM-Appliance class'!$B84+'COM S curve-disconnect'!AS258*'COM-Appliance class'!$C84+'COM S curve-disconnect'!AS279*'COM-Appliance class'!$D84+'COM S curve-disconnect'!AS300*'COM-Appliance class'!$E84","v":197188.26837239563},{"$f":"AT237*'COM-Appliance class'!$B84+'COM S curve-disconnect'!AT258*'COM-Appliance class'!$C84+'COM S curve-disconnect'!AT279*'COM-Appliance class'!$D84+'COM S curve-disconnect'!AT300*'COM-Appliance class'!$E84","v":197433.06404422625},{"$f":"AU237*'COM-Appliance class'!$B84+'COM S curve-disconnect'!AU258*'COM-Appliance class'!$C84+'COM S curve-disconnect'!AU279*'COM-Appliance class'!$D84+'COM S curve-disconnect'!AU300*'COM-Appliance class'!$E84","v":197677.53221942275},{"$f":"AV237*'COM-Appliance class'!$B84+'COM S curve-disconnect'!AV258*'COM-Appliance class'!$C84+'COM S curve-disconnect'!AV279*'COM-Appliance class'!$D84+'COM S curve-disconnect'!AV300*'COM-Appliance class'!$E84","v":197921.67490907814},{"$f":"AW237*'COM-Appliance class'!$B84+'COM S curve-disconnect'!AW258*'COM-Appliance class'!$C84+'COM S curve-disconnect'!AW279*'COM-Appliance class'!$D84+'COM S curve-disconnect'!AW300*'COM-Appliance class'!$E84","v":198165.49411181512},{"$f":"AX237*'COM-Appliance class'!$B84+'COM S curve-disconnect'!AX258*'COM-Appliance class'!$C84+'COM S curve-disconnect'!AX279*'COM-Appliance class'!$D84+'COM S curve-disconnect'!AX300*'COM-Appliance class'!$E84","v":198408.99181386354},{"$f":"AY237*'COM-Appliance class'!$B84+'COM S curve-disconnect'!AY258*'COM-Appliance class'!$C84+'COM S curve-disconnect'!AY279*'COM-Appliance class'!$D84+'COM S curve-disconnect'!AY300*'COM-Appliance class'!$E84","v":198652.16998913919},{"$f":"AZ237*'COM-Appliance class'!$B84+'COM S curve-disconnect'!AZ258*'COM-Appliance class'!$C84+'COM S curve-disconnect'!AZ279*'COM-Appliance class'!$D84+'COM S curve-disconnect'!AZ300*'COM-Appliance class'!$E84","v":198895.03059932086},{"$f":"BA237*'COM-Appliance class'!$B84+'COM S curve-disconnect'!BA258*'COM-Appliance class'!$C84+'COM S curve-disconnect'!BA279*'COM-Appliance class'!$D84+'COM S curve-disconnect'!BA300*'COM-Appliance class'!$E84","v":199137.57559392788},{"$f":"BB237*'COM-Appliance class'!$B84+'COM S curve-disconnect'!BB258*'COM-Appliance class'!$C84+'COM S curve-disconnect'!BB279*'COM-Appliance class'!$D84+'COM S curve-disconnect'!BB300*'COM-Appliance class'!$E84","v":199379.80691039553},{"$f":"BC237*'COM-Appliance class'!$B84+'COM S curve-disconnect'!BC258*'COM-Appliance class'!$C84+'COM S curve-disconnect'!BC279*'COM-Appliance class'!$D84+'COM S curve-disconnect'!BC300*'COM-Appliance class'!$E84","v":199621.72647415265},{"$f":"BD237*'COM-Appliance class'!$B84+'COM S curve-disconnect'!BD258*'COM-Appliance class'!$C84+'COM S curve-disconnect'!BD279*'COM-Appliance class'!$D84+'COM S curve-disconnect'!BD300*'COM-Appliance class'!$E84","v":199863.33619869564},{"$f":"BE237*'COM-Appliance class'!$B84+'COM S curve-disconnect'!BE258*'COM-Appliance class'!$C84+'COM S curve-disconnect'!BE279*'COM-Appliance class'!$D84+'COM S curve-disconnect'!BE300*'COM-Appliance class'!$E84","v":200104.63798566491},{"$f":"BF237*'COM-Appliance class'!$B84+'COM S curve-disconnect'!BF258*'COM-Appliance class'!$C84+'COM S curve-disconnect'!BF279*'COM-Appliance class'!$D84+'COM S curve-disconnect'!BF300*'COM-Appliance class'!$E84","v":200345.63372491833},{"$f":"BG237*'COM-Appliance class'!$B84+'COM S curve-disconnect'!BG258*'COM-Appliance class'!$C84+'COM S curve-disconnect'!BG279*'COM-Appliance class'!$D84+'COM S curve-disconnect'!BG300*'COM-Appliance class'!$E84","v":200586.32529460604},{"$f":"BH237*'COM-Appliance class'!$B84+'COM S curve-disconnect'!BH258*'COM-Appliance class'!$C84+'COM S curve-disconnect'!BH279*'COM-Appliance class'!$D84+'COM S curve-disconnect'!BH300*'COM-Appliance class'!$E84","v":200826.71456124386},{"$f":"BI237*'COM-Appliance class'!$B84+'COM S curve-disconnect'!BI258*'COM-Appliance class'!$C84+'COM S curve-disconnect'!BI279*'COM-Appliance class'!$D84+'COM S curve-disconnect'!BI300*'COM-Appliance class'!$E84","v":201066.80337978684},{"$f":"BJ237*'COM-Appliance class'!$B84+'COM S curve-disconnect'!BJ258*'COM-Appliance class'!$C84+'COM S curve-disconnect'!BJ279*'COM-Appliance class'!$D84+'COM S curve-disconnect'!BJ300*'COM-Appliance class'!$E84","v":201306.59359370105},{"$f":"BK237*'COM-Appliance class'!$B84+'COM S curve-disconnect'!BK258*'COM-Appliance class'!$C84+'COM S curve-disconnect'!BK279*'COM-Appliance class'!$D84+'COM S curve-disconnect'!BK300*'COM-Appliance class'!$E84","v":201546.08703503723},{"$f":"BL237*'COM-Appliance class'!$B84+'COM S curve-disconnect'!BL258*'COM-Appliance class'!$C84+'COM S curve-disconnect'!BL279*'COM-Appliance class'!$D84+'COM S curve-disconnect'!BL300*'COM-Appliance class'!$E84","v":201785.28552450109},{"$f":"BM237*'COM-Appliance class'!$B84+'COM S curve-disconnect'!BM258*'COM-Appliance class'!$C84+'COM S curve-disconnect'!BM279*'COM-Appliance class'!$D84+'COM S curve-disconnect'!BM300*'COM-Appliance class'!$E84","v":202024.19087152623},{"$f":"BN237*'COM-Appliance class'!$B84+'COM S curve-disconnect'!BN258*'COM-Appliance class'!$C84+'COM S curve-disconnect'!BN279*'COM-Appliance class'!$D84+'COM S curve-disconnect'!BN300*'COM-Appliance class'!$E84","v":202262.80487434327},{"$f":"BO237*'COM-Appliance class'!$B84+'COM S curve-disconnect'!BO258*'COM-Appliance class'!$C84+'COM S curve-disconnect'!BO279*'COM-Appliance class'!$D84+'COM S curve-disconnect'!BO300*'COM-Appliance class'!$E84","v":202501.12932005213},{"$f":"BP237*'COM-Appliance class'!$B84+'COM S curve-disconnect'!BP258*'COM-Appliance class'!$C84+'COM S curve-disconnect'!BP279*'COM-Appliance class'!$D84+'COM S curve-disconnect'!BP300*'COM-Appliance class'!$E84","v":202739.16598469033},{"$f":"BQ237*'COM-Appliance class'!$B84+'COM S curve-disconnect'!BQ258*'COM-Appliance class'!$C84+'COM S curve-disconnect'!BQ279*'COM-Appliance class'!$D84+'COM S curve-disconnect'!BQ300*'COM-Appliance class'!$E84","v":202976.91663330409},{"$f":"BR237*'COM-Appliance class'!$B84+'COM S curve-disconnect'!BR258*'COM-Appliance class'!$C84+'COM S curve-disconnect'!BR279*'COM-Appliance class'!$D84+'COM S curve-disconnect'!BR300*'COM-Appliance class'!$E84","v":203214.38302001602},{"$f":"BS237*'COM-Appliance class'!$B84+'COM S curve-disconnect'!BS258*'COM-Appliance class'!$C84+'COM S curve-disconnect'!BS279*'COM-Appliance class'!$D84+'COM S curve-disconnect'!BS300*'COM-Appliance class'!$E84","v":203451.56688809505},{"$f":"BT237*'COM-Appliance class'!$B84+'COM S curve-disconnect'!BT258*'COM-Appliance class'!$C84+'COM S curve-disconnect'!BT279*'COM-Appliance class'!$D84+'COM S curve-disconnect'!BT300*'COM-Appliance class'!$E84","v":203688.46997002352},{"$f":"BU237*'COM-Appliance class'!$B84+'COM S curve-disconnect'!BU258*'COM-Appliance class'!$C84+'COM S curve-disconnect'!BU279*'COM-Appliance class'!$D84+'COM S curve-disconnect'!BU300*'COM-Appliance class'!$E84","v":203925.09398756619},{"$f":"BV237*'COM-Appliance class'!$B84+'COM S curve-disconnect'!BV258*'COM-Appliance class'!$C84+'COM S curve-disconnect'!BV279*'COM-Appliance class'!$D84+'COM S curve-disconnect'!BV300*'COM-Appliance class'!$E84","v":204161.44065183625},{"$f":"BW237*'COM-Appliance class'!$B84+'COM S curve-disconnect'!BW258*'COM-Appliance class'!$C84+'COM S curve-disconnect'!BW279*'COM-Appliance class'!$D84+'COM S curve-disconnect'!BW300*'COM-Appliance class'!$E84","v":204397.51166336384},{"$f":"BX237*'COM-Appliance class'!$B84+'COM S curve-disconnect'!BX258*'COM-Appliance class'!$C84+'COM S curve-disconnect'!BX279*'COM-Appliance class'!$D84+'COM S curve-disconnect'!BX300*'COM-Appliance class'!$E84","v":204633.30871216068},{"$f":"BY237*'COM-Appliance class'!$B84+'COM S curve-disconnect'!BY258*'COM-Appliance class'!$C84+'COM S curve-disconnect'!BY279*'COM-Appliance class'!$D84+'COM S curve-disconnect'!BY300*'COM-Appliance class'!$E84","v":204868.83347778837},{"$f":"BZ237*'COM-Appliance class'!$B84+'COM S curve-disconnect'!BZ258*'COM-Appliance class'!$C84+'COM S curve-disconnect'!BZ279*'COM-Appliance class'!$D84+'COM S curve-disconnect'!BZ300*'COM-Appliance class'!$E84","v":205104.08762942173},{"$f":"CA237*'COM-Appliance class'!$B84+'COM S curve-disconnect'!CA258*'COM-Appliance class'!$C84+'COM S curve-disconnect'!CA279*'COM-Appliance class'!$D84+'COM S curve-disconnect'!CA300*'COM-Appliance class'!$E84","v":205339.07282591634},{"$f":"CB237*'COM-Appliance class'!$B84+'COM S curve-disconnect'!CB258*'COM-Appliance class'!$C84+'COM S curve-disconnect'!CB279*'COM-Appliance class'!$D84+'COM S curve-disconnect'!CB300*'COM-Appliance class'!$E84","v":205573.7907158715},{"$f":"CC237*'COM-Appliance class'!$B84+'COM S curve-disconnect'!CC258*'COM-Appliance class'!$C84+'COM S curve-disconnect'!CC279*'COM-Appliance class'!$D84+'COM S curve-disconnect'!CC300*'COM-Appliance class'!$E84","v":205808.24293769605},{"$f":"CD237*'COM-Appliance class'!$B84+'COM S curve-disconnect'!CD258*'COM-Appliance class'!$C84+'COM S curve-disconnect'!CD279*'COM-Appliance class'!$D84+'COM S curve-disconnect'!CD300*'COM-Appliance class'!$E84","v":206042.43111967121}]
["Monash (C)",null,{"$f":"C238*'COM-Appliance class'!$B85+'COM S curve-disconnect'!C259*'COM-Appliance class'!$C85+'COM S curve-disconnect'!C280*'COM-Appliance class'!$D85+'COM S curve-disconnect'!C301*'COM-Appliance class'!$E85","v":23869.388746831777},{"$f":"D238*'COM-Appliance class'!$B85+'COM S curve-disconnect'!D259*'COM-Appliance class'!$C85+'COM S curve-disconnect'!D280*'COM-Appliance class'!$D85+'COM S curve-disconnect'!D301*'COM-Appliance class'!$E85","v":29338.558051748863},{"$f":"E238*'COM-Appliance class'!$B85+'COM S curve-disconnect'!E259*'COM-Appliance class'!$C85+'COM S curve-disconnect'!E280*'COM-Appliance class'!$D85+'COM S curve-disconnect'!E301*'COM-Appliance class'!$E85","v":26070.870184436622},{"$f":"F238*'COM-Appliance class'!$B85+'COM S curve-disconnect'!F259*'COM-Appliance class'!$C85+'COM S curve-disconnect'!F280*'COM-Appliance class'!$D85+'COM S curve-disconnect'!F301*'COM-Appliance class'!$E85","v":29000.920267806687},{"$f":"G238*'COM-Appliance class'!$B85+'COM S curve-disconnect'!G259*'COM-Appliance class'!$C85+'COM S curve-disconnect'!G280*'COM-Appliance class'!$D85+'COM S curve-disconnect'!G301*'COM-Appliance class'!$E85","v":25533.485143796424},{"$f":"H238*'COM-Appliance class'!$B85+'COM S curve-disconnect'!H259*'COM-Appliance class'!$C85+'COM S curve-disconnect'!H280*'COM-Appliance class'!$D85+'COM S curve-disconnect'!H301*'COM-Appliance class'!$E85","v":26210.702127399134},{"$f":"I238*'COM-Appliance class'!$B85+'COM S curve-disconnect'!I259*'COM-Appliance class'!$C85+'COM S curve-disconnect'!I280*'COM-Appliance class'!$D85+'COM S curve-disconnect'!I301*'COM-Appliance class'!$E85","v":30396.427725859394},{"$f":"J238*'COM-Appliance class'!$B85+'COM S curve-disconnect'!J259*'COM-Appliance class'!$C85+'COM S curve-disconnect'!J280*'COM-Appliance class'!$D85+'COM S curve-disconnect'!J301*'COM-Appliance class'!$E85","v":33449.32360973036},{"$f":"K238*'COM-Appliance class'!$B85+'COM S curve-disconnect'!K259*'COM-Appliance class'!$C85+'COM S curve-disconnect'!K280*'COM-Appliance class'!$D85+'COM S curve-disconnect'!K301*'COM-Appliance class'!$E85","v":40043.308297317453},{"$f":"L238*'COM-Appliance class'!$B85+'COM S curve-disconnect'!L259*'COM-Appliance class'!$C85+'COM S curve-disconnect'!L280*'COM-Appliance class'!$D85+'COM S curve-disconnect'!L301*'COM-Appliance class'!$E85","v":39703.127389210786},{"$f":"M238*'COM-Appliance class'!$B85+'COM S curve-disconnect'!M259*'COM-Appliance class'!$C85+'COM S curve-disconnect'!M280*'COM-Appliance class'!$D85+'COM S curve-disconnect'!M301*'COM-Appliance class'!$E85","v":32260.160901442072},{"$f":"N238*'COM-Appliance class'!$B85+'COM S curve-disconnect'!N259*'COM-Appliance class'!$C85+'COM S curve-disconnect'!N280*'COM-Appliance class'!$D85+'COM S curve-disconnect'!N301*'COM-Appliance class'!$E85","v":32109.536314824622},{"$f":"O238*'COM-Appliance class'!$B85+'COM S curve-disconnect'!O259*'COM-Appliance class'!$C85+'COM S curve-disconnect'!O280*'COM-Appliance class'!$D85+'COM S curve-disconnect'!O301*'COM-Appliance class'!$E85","v":36540.662738998835},{"$f":"P238*'COM-Appliance class'!$B85+'COM S curve-disconnect'!P259*'COM-Appliance class'!$C85+'COM S curve-disconnect'!P280*'COM-Appliance class'!$D85+'COM S curve-disconnect'!P301*'COM-Appliance class'!$E85","v":40829.403116867616},{"$f":"Q238*'COM-Appliance class'!$B85+'COM S curve-disconnect'!Q259*'COM-Appliance class'!$C85+'COM S curve-disconnect'!Q280*'COM-Appliance class'!$D85+'COM S curve-disconnect'!Q301*'COM-Appliance class'!$E85","v":28430.553344800901},{"$f":"R238*'COM-Appliance class'!$B85+'COM S curve-disconnect'!R259*'COM-Appliance class'!$C85+'COM S curve-disconnect'!R280*'COM-Appliance class'!$D85+'COM S curve-disconnect'!R301*'COM-Appliance class'!$E85","v":30199.865755007515},{"$f":"S238*'COM-Appliance class'!$B85+'COM S curve-disconnect'!S259*'COM-Appliance class'!$C85+'COM S curve-disconnect'!S280*'COM-Appliance class'!$D85+'COM S curve-disconnect'!S301*'COM-Appliance class'!$E85","v":32825.167141510276},{"$f":"T238*'COM-Appliance class'!$B85+'COM S curve-disconnect'!T259*'COM-Appliance class'!$C85+'COM S curve-disconnect'!T280*'COM-Appliance class'!$D85+'COM S curve-disconnect'!T301*'COM-Appliance class'!$E85","v":36668.266861127413},{"$f":"U238*'COM-Appliance class'!$B85+'COM S curve-disconnect'!U259*'COM-Appliance class'!$C85+'COM S curve-disconnect'!U280*'COM-Appliance class'!$D85+'COM S curve-disconnect'!U301*'COM-Appliance class'!$E85","v":39528.059099627106},{"$f":"V238*'COM-Appliance class'!$B85+'COM S curve-disconnect'!V259*'COM-Appliance class'!$C85+'COM S curve-disconnect'!V280*'COM-Appliance class'!$D85+'COM S curve-disconnect'!V301*'COM-Appliance class'!$E85","v":40577.433940515009},{"$f":"W238*'COM-Appliance class'!$B85+'COM S curve-disconnect'!W259*'COM-Appliance class'!$C85+'COM S curve-disconnect'!W280*'COM-Appliance class'!$D85+'COM S curve-disconnect'!W301*'COM-Appliance class'!$E85","v":42287.090143724723},{"$f":"X238*'COM-Appliance class'!$B85+'COM S curve-disconnect'!X259*'COM-Appliance class'!$C85+'COM S curve-disconnect'!X280*'COM-Appliance class'!$D85+'COM S curve-disconnect'!X301*'COM-Appliance class'!$E85","v":46522.840023345205},{"$f":"Y238*'COM-Appliance class'!$B85+'COM S curve-disconnect'!Y259*'COM-Appliance class'!$C85+'COM S curve-disconnect'!Y280*'COM-Appliance class'!$D85+'COM S curve-disconnect'!Y301*'COM-Appliance class'!$E85","v":50042.157721170108},{"$f":"Z238*'COM-Appliance class'!$B85+'COM S curve-disconnect'!Z259*'COM-Appliance class'!$C85+'COM S curve-disconnect'!Z280*'COM-Appliance class'!$D85+'COM S curve-disconnect'!Z301*'COM-Appliance class'!$E85","v":52029.081723509953},{"$f":"AA238*'COM-Appliance class'!$B85+'COM S curve-disconnect'!AA259*'COM-Appliance class'!$C85+'COM S curve-disconnect'!AA280*'COM-Appliance class'!$D85+'COM S curve-disconnect'!AA301*'COM-Appliance class'!$E85","v":54286.870497880183},{"$f":"AB238*'COM-Appliance class'!$B85+'COM S curve-disconnect'!AB259*'COM-Appliance class'!$C85+'COM S curve-disconnect'!AB280*'COM-Appliance class'!$D85+'COM S curve-disconnect'!AB301*'COM-Appliance class'!$E85","v":55703.449844702802},{"$f":"AC238*'COM-Appliance class'!$B85+'COM S curve-disconnect'!AC259*'COM-Appliance class'!$C85+'COM S curve-disconnect'!AC280*'COM-Appliance class'!$D85+'COM S curve-disconnect'!AC301*'COM-Appliance class'!$E85","v":56728.822516435452},{"$f":"AD238*'COM-Appliance class'!$B85+'COM S curve-disconnect'!AD259*'COM-Appliance class'!$C85+'COM S curve-disconnect'!AD280*'COM-Appliance class'!$D85+'COM S curve-disconnect'!AD301*'COM-Appliance class'!$E85","v":57462.991882608942},{"$f":"AE238*'COM-Appliance class'!$B85+'COM S curve-disconnect'!AE259*'COM-Appliance class'!$C85+'COM S curve-disconnect'!AE280*'COM-Appliance class'!$D85+'COM S curve-disconnect'!AE301*'COM-Appliance class'!$E85","v":58078.255631899752},{"$f":"AF238*'COM-Appliance class'!$B85+'COM S curve-disconnect'!AF259*'COM-Appliance class'!$C85+'COM S curve-disconnect'!AF280*'COM-Appliance class'!$D85+'COM S curve-disconnect'!AF301*'COM-Appliance class'!$E85","v":59223.178623052831},{"$f":"AG238*'COM-Appliance class'!$B85+'COM S curve-disconnect'!AG259*'COM-Appliance class'!$C85+'COM S curve-disconnect'!AG280*'COM-Appliance class'!$D85+'COM S curve-disconnect'!AG301*'COM-Appliance class'!$E85","v":59278.184334509031},{"$f":"AH238*'COM-Appliance class'!$B85+'COM S curve-disconnect'!AH259*'COM-Appliance class'!$C85+'COM S curve-disconnect'!AH280*'COM-Appliance class'!$D85+'COM S curve-disconnect'!AH301*'COM-Appliance class'!$E85","v":60479.235268603152},{"$f":"AI238*'COM-Appliance class'!$B85+'COM S curve-disconnect'!AI259*'COM-Appliance class'!$C85+'COM S curve-disconnect'!AI280*'COM-Appliance class'!$D85+'COM S curve-disconnect'!AI301*'COM-Appliance class'!$E85","v":60556.526990909086},{"$f":"AJ238*'COM-Appliance class'!$B85+'COM S curve-disconnect'!AJ259*'COM-Appliance class'!$C85+'COM S curve-disconnect'!AJ280*'COM-Appliance class'!$D85+'COM S curve-disconnect'!AJ301*'COM-Appliance class'!$E85","v":60633.709722236003},{"$f":"AK238*'COM-Appliance class'!$B85+'COM S curve-disconnect'!AK259*'COM-Appliance class'!$C85+'COM S curve-disconnect'!AK280*'COM-Appliance class'!$D85+'COM S curve-disconnect'!AK301*'COM-Appliance class'!$E85","v":60710.784132331566},{"$f":"AL238*'COM-Appliance class'!$B85+'COM S curve-disconnect'!AL259*'COM-Appliance class'!$C85+'COM S curve-disconnect'!AL280*'COM-Appliance class'!$D85+'COM S curve-disconnect'!AL301*'COM-Appliance class'!$E85","v":60787.750886786031},{"$f":"AM238*'COM-Appliance class'!$B85+'COM S curve-disconnect'!AM259*'COM-Appliance class'!$C85+'COM S curve-disconnect'!AM280*'COM-Appliance class'!$D85+'COM S curve-disconnect'!AM301*'COM-Appliance class'!$E85","v":60864.610647058609},{"$f":"AN238*'COM-Appliance class'!$B85+'COM S curve-disconnect'!AN259*'COM-Appliance class'!$C85+'COM S curve-disconnect'!AN280*'COM-Appliance class'!$D85+'COM S curve-disconnect'!AN301*'COM-Appliance class'!$E85","v":60941.364070503107},{"$f":"AO238*'COM-Appliance class'!$B85+'COM S curve-disconnect'!AO259*'COM-Appliance class'!$C85+'COM S curve-disconnect'!AO280*'COM-Appliance class'!$D85+'COM S curve-disconnect'!AO301*'COM-Appliance class'!$E85","v":61018.01181039428},{"$f":"AP238*'COM-Appliance class'!$B85+'COM S curve-disconnect'!AP259*'COM-Appliance class'!$C85+'COM S curve-disconnect'!AP280*'COM-Appliance class'!$D85+'COM S curve-disconnect'!AP301*'COM-Appliance class'!$E85","v":61094.554515953023},{"$f":"AQ238*'COM-Appliance class'!$B85+'COM S curve-disconnect'!AQ259*'COM-Appliance class'!$C85+'COM S curve-disconnect'!AQ280*'COM-Appliance class'!$D85+'COM S curve-disconnect'!AQ301*'COM-Appliance class'!$E85","v":61170.992832372351},{"$f":"AR238*'COM-Appliance class'!$B85+'COM S curve-disconnect'!AR259*'COM-Appliance class'!$C85+'COM S curve-disconnect'!AR280*'COM-Appliance class'!$D85+'COM S curve-disconnect'!AR301*'COM-Appliance class'!$E85","v":61247.327400842383},{"$f":"AS238*'COM-Appliance class'!$B85+'COM S curve-disconnect'!AS259*'COM-Appliance class'!$C85+'COM S curve-disconnect'!AS280*'COM-Appliance class'!$D85+'COM S curve-disconnect'!AS301*'COM-Appliance class'!$E85","v":61323.55885857586},{"$f":"AT238*'COM-Appliance class'!$B85+'COM S curve-disconnect'!AT259*'COM-Appliance class'!$C85+'COM S curve-disconnect'!AT280*'COM-Appliance class'!$D85+'COM S curve-disconnect'!AT301*'COM-Appliance class'!$E85","v":61399.687838832833},{"$f":"AU238*'COM-Appliance class'!$B85+'COM S curve-disconnect'!AU259*'COM-Appliance class'!$C85+'COM S curve-disconnect'!AU280*'COM-Appliance class'!$D85+'COM S curve-disconnect'!AU301*'COM-Appliance class'!$E85","v":61475.714970945992},{"$f":"AV238*'COM-Appliance class'!$B85+'COM S curve-disconnect'!AV259*'COM-Appliance class'!$C85+'COM S curve-disconnect'!AV280*'COM-Appliance class'!$D85+'COM S curve-disconnect'!AV301*'COM-Appliance class'!$E85","v":61551.640880344923},{"$f":"AW238*'COM-Appliance class'!$B85+'COM S curve-disconnect'!AW259*'COM-Appliance class'!$C85+'COM S curve-disconnect'!AW280*'COM-Appliance class'!$D85+'COM S curve-disconnect'!AW301*'COM-Appliance class'!$E85","v":61627.466188581071},{"$f":"AX238*'COM-Appliance class'!$B85+'COM S curve-disconnect'!AX259*'COM-Appliance class'!$C85+'COM S curve-disconnect'!AX280*'COM-Appliance class'!$D85+'COM S curve-disconnect'!AX301*'COM-Appliance class'!$E85","v":61703.191513351878},{"$f":"AY238*'COM-Appliance class'!$B85+'COM S curve-disconnect'!AY259*'COM-Appliance class'!$C85+'COM S curve-disconnect'!AY280*'COM-Appliance class'!$D85+'COM S curve-disconnect'!AY301*'COM-Appliance class'!$E85","v":61778.817468525223},{"$f":"AZ238*'COM-Appliance class'!$B85+'COM S curve-disconnect'!AZ259*'COM-Appliance class'!$C85+'COM S curve-disconnect'!AZ280*'COM-Appliance class'!$D85+'COM S curve-disconnect'!AZ301*'COM-Appliance class'!$E85","v":61854.344664163349},{"$f":"BA238*'COM-Appliance class'!$B85+'COM S curve-disconnect'!BA259*'COM-Appliance class'!$C85+'COM S curve-disconnect'!BA280*'COM-Appliance class'!$D85+'COM S curve-disconnect'!BA301*'COM-Appliance class'!$E85","v":61929.773706547086},{"$f":"BB238*'COM-Appliance class'!$B85+'COM S curve-disconnect'!BB259*'COM-Appliance class'!$C85+'COM S curve-disconnect'!BB280*'COM-Appliance class'!$D85+'COM S curve-disconnect'!BB301*'COM-Appliance class'!$E85","v":62005.105198199213},{"$f":"BC238*'COM-Appliance class'!$B85+'COM S curve-disconnect'!BC259*'COM-Appliance class'!$C85+'COM S curve-disconnect'!BC280*'COM-Appliance class'!$D85+'COM S curve-disconnect'!BC301*'COM-Appliance class'!$E85","v":62080.339737908667},{"$f":"BD238*'COM-Appliance class'!$B85+'COM S curve-disconnect'!BD259*'COM-Appliance class'!$C85+'COM S curve-disconnect'!BD280*'COM-Appliance class'!$D85+'COM S curve-disconnect'!BD301*'COM-Appliance class'!$E85","v":62155.477920753474},{"$f":"BE238*'COM-Appliance class'!$B85+'COM S curve-disconnect'!BE259*'COM-Appliance class'!$C85+'COM S curve-disconnect'!BE280*'COM-Appliance class'!$D85+'COM S curve-disconnect'!BE301*'COM-Appliance class'!$E85","v":62230.520338124596},{"$f":"BF238*'COM-Appliance class'!$B85+'COM S curve-disconnect'!BF259*'COM-Appliance class'!$C85+'COM S curve-disconnect'!BF280*'COM-Appliance class'!$D85+'COM S curve-disconnect'!BF301*'COM-Appliance class'!$E85","v":62305.467577748728},{"$f":"BG238*'COM-Appliance class'!$B85+'COM S curve-disconnect'!BG259*'COM-Appliance class'!$C85+'COM S curve-disconnect'!BG280*'COM-Appliance class'!$D85+'COM S curve-disconnect'!BG301*'COM-Appliance class'!$E85","v":62380.320223711577},{"$f":"BH238*'COM-Appliance class'!$B85+'COM S curve-disconnect'!BH259*'COM-Appliance class'!$C85+'COM S curve-disconnect'!BH280*'COM-Appliance class'!$D85+'COM S curve-disconnect'!BH301*'COM-Appliance class'!$E85","v":62455.078856480715},{"$f":"BI238*'COM-Appliance class'!$B85+'COM S curve-disconnect'!BI259*'COM-Appliance class'!$C85+'COM S curve-disconnect'!BI280*'COM-Appliance class'!$D85+'COM S curve-disconnect'!BI301*'COM-Appliance class'!$E85","v":62529.744052928414},{"$f":"BJ238*'COM-Appliance class'!$B85+'COM S curve-disconnect'!BJ259*'COM-Appliance class'!$C85+'COM S curve-disconnect'!BJ280*'COM-Appliance class'!$D85+'COM S curve-disconnect'!BJ301*'COM-Appliance class'!$E85","v":62604.316386353996},{"$f":"BK238*'COM-Appliance class'!$B85+'COM S curve-disconnect'!BK259*'COM-Appliance class'!$C85+'COM S curve-disconnect'!BK280*'COM-Appliance class'!$D85+'COM S curve-disconnect'!BK301*'COM-Appliance class'!$E85","v":62678.796426506713},{"$f":"BL238*'COM-Appliance class'!$B85+'COM S curve-disconnect'!BL259*'COM-Appliance class'!$C85+'COM S curve-disconnect'!BL280*'COM-Appliance class'!$D85+'COM S curve-disconnect'!BL301*'COM-Appliance class'!$E85","v":62753.184739607663},{"$f":"BM238*'COM-Appliance class'!$B85+'COM S curve-disconnect'!BM259*'COM-Appliance class'!$C85+'COM S curve-disconnect'!BM280*'COM-Appliance class'!$D85+'COM S curve-disconnect'!BM301*'COM-Appliance class'!$E85","v":62827.4818883724},{"$f":"BN238*'COM-Appliance class'!$B85+'COM S curve-disconnect'!BN259*'COM-Appliance class'!$C85+'COM S curve-disconnect'!BN280*'COM-Appliance class'!$D85+'COM S curve-disconnect'!BN301*'COM-Appliance class'!$E85","v":62901.688432032483},{"$f":"BO238*'COM-Appliance class'!$B85+'COM S curve-disconnect'!BO259*'COM-Appliance class'!$C85+'COM S curve-disconnect'!BO280*'COM-Appliance class'!$D85+'COM S curve-disconnect'!BO301*'COM-Appliance class'!$E85","v":62975.804926357909},{"$f":"BP238*'COM-Appliance class'!$B85+'COM S curve-disconnect'!BP259*'COM-Appliance class'!$C85+'COM S curve-disconnect'!BP280*'COM-Appliance class'!$D85+'COM S curve-disconnect'!BP301*'COM-Appliance class'!$E85","v":63049.83192367843},{"$f":"BQ238*'COM-Appliance class'!$B85+'COM S curve-disconnect'!BQ259*'COM-Appliance class'!$C85+'COM S curve-disconnect'!BQ280*'COM-Appliance class'!$D85+'COM S curve-disconnect'!BQ301*'COM-Appliance class'!$E85","v":63123.769972905553},{"$f":"BR238*'COM-Appliance class'!$B85+'COM S curve-disconnect'!BR259*'COM-Appliance class'!$C85+'COM S curve-disconnect'!BR280*'COM-Appliance class'!$D85+'COM S curve-disconnect'!BR301*'COM-Appliance class'!$E85","v":63197.619619553705},{"$f":"BS238*'COM-Appliance class'!$B85+'COM S curve-disconnect'!BS259*'COM-Appliance class'!$C85+'COM S curve-disconnect'!BS280*'COM-Appliance class'!$D85+'COM S curve-disconnect'!BS301*'COM-Appliance class'!$E85","v":63271.381405761902},{"$f":"BT238*'COM-Appliance class'!$B85+'COM S curve-disconnect'!BT259*'COM-Appliance class'!$C85+'COM S curve-disconnect'!BT280*'COM-Appliance class'!$D85+'COM S curve-disconnect'!BT301*'COM-Appliance class'!$E85","v":63345.055870314638},{"$f":"BU238*'COM-Appliance class'!$B85+'COM S curve-disconnect'!BU259*'COM-Appliance class'!$C85+'COM S curve-disconnect'!BU280*'COM-Appliance class'!$D85+'COM S curve-disconnect'!BU301*'COM-Appliance class'!$E85","v":63418.643548663371},{"$f":"BV238*'COM-Appliance class'!$B85+'COM S curve-disconnect'!BV259*'COM-Appliance class'!$C85+'COM S curve-disconnect'!BV280*'COM-Appliance class'!$D85+'COM S curve-disconnect'!BV301*'COM-Appliance class'!$E85","v":63492.144972947004},{"$f":"BW238*'COM-Appliance class'!$B85+'COM S curve-disconnect'!BW259*'COM-Appliance class'!$C85+'COM S curve-disconnect'!BW280*'COM-Appliance class'!$D85+'COM S curve-disconnect'!BW301*'COM-Appliance class'!$E85","v":63565.560672013227},{"$f":"BX238*'COM-Appliance class'!$B85+'COM S curve-disconnect'!BX259*'COM-Appliance class'!$C85+'COM S curve-disconnect'!BX280*'COM-Appliance class'!$D85+'COM S curve-disconnect'!BX301*'COM-Appliance class'!$E85","v":63638.89117143859},{"$f":"BY238*'COM-Appliance class'!$B85+'COM S curve-disconnect'!BY259*'COM-Appliance class'!$C85+'COM S curve-disconnect'!BY280*'COM-Appliance class'!$D85+'COM S curve-disconnect'!BY301*'COM-Appliance class'!$E85","v":63712.136993549786},{"$f":"BZ238*'COM-Appliance class'!$B85+'COM S curve-disconnect'!BZ259*'COM-Appliance class'!$C85+'COM S curve-disconnect'!BZ280*'COM-Appliance class'!$D85+'COM S curve-disconnect'!BZ301*'COM-Appliance class'!$E85","v":63785.298657443338},{"$f":"CA238*'COM-Appliance class'!$B85+'COM S curve-disconnect'!CA259*'COM-Appliance class'!$C85+'COM S curve-disconnect'!CA280*'COM-Appliance class'!$D85+'COM S curve-disconnect'!CA301*'COM-Appliance class'!$E85","v":63858.376679006564},{"$f":"CB238*'COM-Appliance class'!$B85+'COM S curve-disconnect'!CB259*'COM-Appliance class'!$C85+'COM S curve-disconnect'!CB280*'COM-Appliance class'!$D85+'COM S curve-disconnect'!CB301*'COM-Appliance class'!$E85","v":63931.371570937161},{"$f":"CC238*'COM-Appliance class'!$B85+'COM S curve-disconnect'!CC259*'COM-Appliance class'!$C85+'COM S curve-disconnect'!CC280*'COM-Appliance class'!$D85+'COM S curve-disconnect'!CC301*'COM-Appliance class'!$E85","v":64004.283842763747},{"$f":"CD238*'COM-Appliance class'!$B85+'COM S curve-disconnect'!CD259*'COM-Appliance class'!$C85+'COM S curve-disconnect'!CD280*'COM-Appliance class'!$D85+'COM S curve-disconnect'!CD301*'COM-Appliance class'!$E85","v":64077.114000865316}]
["Port Phillip (C)",null,{"$f":"C239*'COM-Appliance class'!$B86+'COM S curve-disconnect'!C260*'COM-Appliance class'!$C86+'COM S curve-disconnect'!C281*'COM-Appliance class'!$D86+'COM S curve-disconnect'!C302*'COM-Appliance class'!$E86","v":24946.209998991901},{"$f":"D239*'COM-Appliance class'!$B86+'COM S curve-disconnect'!D260*'COM-Appliance class'!$C86+'COM S curve-disconnect'!D281*'COM-Appliance class'!$D86+'COM S curve-disconnect'!D302*'COM-Appliance class'!$E86","v":30662.110286493466},{"$f":"E239*'COM-Appliance class'!$B86+'COM S curve-disconnect'!E260*'COM-Appliance class'!$C86+'COM S curve-disconnect'!E281*'COM-Appliance class'!$D86+'COM S curve-disconnect'!E302*'COM-Appliance class'!$E86","v":27247.007008662396},{"$f":"F239*'COM-Appliance class'!$B86+'COM S curve-disconnect'!F260*'COM-Appliance class'!$C86+'COM S curve-disconnect'!F281*'COM-Appliance class'!$D86+'COM S curve-disconnect'!F302*'COM-Appliance class'!$E86","v":30309.24062773717},{"$f":"G239*'COM-Appliance class'!$B86+'COM S curve-disconnect'!G260*'COM-Appliance class'!$C86+'COM S curve-disconnect'!G281*'COM-Appliance class'!$D86+'COM S curve-disconnect'!G302*'COM-Appliance class'!$E86","v":26685.378882516667},{"$f":"H239*'COM-Appliance class'!$B86+'COM S curve-disconnect'!H260*'COM-Appliance class'!$C86+'COM S curve-disconnect'!H281*'COM-Appliance class'!$D86+'COM S curve-disconnect'!H302*'COM-Appliance class'!$E86","v":27393.147198958341},{"$f":"I239*'COM-Appliance class'!$B86+'COM S curve-disconnect'!I260*'COM-Appliance class'!$C86+'COM S curve-disconnect'!I281*'COM-Appliance class'!$D86+'COM S curve-disconnect'!I302*'COM-Appliance class'!$E86","v":31767.703702471881},{"$f":"J239*'COM-Appliance class'!$B86+'COM S curve-disconnect'!J260*'COM-Appliance class'!$C86+'COM S curve-disconnect'!J281*'COM-Appliance class'!$D86+'COM S curve-disconnect'!J302*'COM-Appliance class'!$E86","v":34958.325072456122},{"$f":"K239*'COM-Appliance class'!$B86+'COM S curve-disconnect'!K260*'COM-Appliance class'!$C86+'COM S curve-disconnect'!K281*'COM-Appliance class'!$D86+'COM S curve-disconnect'!K302*'COM-Appliance class'!$E86","v":41849.784610502247},{"$f":"L239*'COM-Appliance class'!$B86+'COM S curve-disconnect'!L260*'COM-Appliance class'!$C86+'COM S curve-disconnect'!L281*'COM-Appliance class'!$D86+'COM S curve-disconnect'!L302*'COM-Appliance class'!$E86","v":41494.257099459341},{"$f":"M239*'COM-Appliance class'!$B86+'COM S curve-disconnect'!M260*'COM-Appliance class'!$C86+'COM S curve-disconnect'!M281*'COM-Appliance class'!$D86+'COM S curve-disconnect'!M302*'COM-Appliance class'!$E86","v":33715.515591301446},{"$f":"N239*'COM-Appliance class'!$B86+'COM S curve-disconnect'!N260*'COM-Appliance class'!$C86+'COM S curve-disconnect'!N281*'COM-Appliance class'!$D86+'COM S curve-disconnect'!N302*'COM-Appliance class'!$E86","v":33558.095868131153},{"$f":"O239*'COM-Appliance class'!$B86+'COM S curve-disconnect'!O260*'COM-Appliance class'!$C86+'COM S curve-disconnect'!O281*'COM-Appliance class'!$D86+'COM S curve-disconnect'!O302*'COM-Appliance class'!$E86","v":38189.123980411743},{"$f":"P239*'COM-Appliance class'!$B86+'COM S curve-disconnect'!P260*'COM-Appliance class'!$C86+'COM S curve-disconnect'!P281*'COM-Appliance class'!$D86+'COM S curve-disconnect'!P302*'COM-Appliance class'!$E86","v":42671.342575626957},{"$f":"Q239*'COM-Appliance class'!$B86+'COM S curve-disconnect'!Q260*'COM-Appliance class'!$C86+'COM S curve-disconnect'!Q281*'COM-Appliance class'!$D86+'COM S curve-disconnect'!Q302*'COM-Appliance class'!$E86","v":29713.142705469698},{"$f":"R239*'COM-Appliance class'!$B86+'COM S curve-disconnect'!R260*'COM-Appliance class'!$C86+'COM S curve-disconnect'!R281*'COM-Appliance class'!$D86+'COM S curve-disconnect'!R302*'COM-Appliance class'!$E86","v":31562.274218931474},{"$f":"S239*'COM-Appliance class'!$B86+'COM S curve-disconnect'!S260*'COM-Appliance class'!$C86+'COM S curve-disconnect'!S281*'COM-Appliance class'!$D86+'COM S curve-disconnect'!S302*'COM-Appliance class'!$E86","v":34306.010993801137},{"$f":"T239*'COM-Appliance class'!$B86+'COM S curve-disconnect'!T260*'COM-Appliance class'!$C86+'COM S curve-disconnect'!T281*'COM-Appliance class'!$D86+'COM S curve-disconnect'!T302*'COM-Appliance class'!$E86","v":38322.484715415019},{"$f":"U239*'COM-Appliance class'!$B86+'COM S curve-disconnect'!U260*'COM-Appliance class'!$C86+'COM S curve-disconnect'!U281*'COM-Appliance class'!$D86+'COM S curve-disconnect'!U302*'COM-Appliance class'!$E86","v":41311.290942996777},{"$f":"V239*'COM-Appliance class'!$B86+'COM S curve-disconnect'!V260*'COM-Appliance class'!$C86+'COM S curve-disconnect'!V281*'COM-Appliance class'!$D86+'COM S curve-disconnect'!V302*'COM-Appliance class'!$E86","v":42408.006297801272},{"$f":"W239*'COM-Appliance class'!$B86+'COM S curve-disconnect'!W260*'COM-Appliance class'!$C86+'COM S curve-disconnect'!W281*'COM-Appliance class'!$D86+'COM S curve-disconnect'!W302*'COM-Appliance class'!$E86","v":44194.790330006945},{"$f":"X239*'COM-Appliance class'!$B86+'COM S curve-disconnect'!X260*'COM-Appliance class'!$C86+'COM S curve-disconnect'!X281*'COM-Appliance class'!$D86+'COM S curve-disconnect'!X302*'COM-Appliance class'!$E86","v":48621.62786325725},{"$f":"Y239*'COM-Appliance class'!$B86+'COM S curve-disconnect'!Y260*'COM-Appliance class'!$C86+'COM S curve-disconnect'!Y281*'COM-Appliance class'!$D86+'COM S curve-disconnect'!Y302*'COM-Appliance class'!$E86","v":52299.712764143616},{"$f":"Z239*'COM-Appliance class'!$B86+'COM S curve-disconnect'!Z260*'COM-Appliance class'!$C86+'COM S curve-disconnect'!Z281*'COM-Appliance class'!$D86+'COM S curve-disconnect'!Z302*'COM-Appliance class'!$E86","v":54376.27299533035},{"$f":"AA239*'COM-Appliance class'!$B86+'COM S curve-disconnect'!AA260*'COM-Appliance class'!$C86+'COM S curve-disconnect'!AA281*'COM-Appliance class'!$D86+'COM S curve-disconnect'!AA302*'COM-Appliance class'!$E86","v":56735.917538229769},{"$f":"AB239*'COM-Appliance class'!$B86+'COM S curve-disconnect'!AB260*'COM-Appliance class'!$C86+'COM S curve-disconnect'!AB281*'COM-Appliance class'!$D86+'COM S curve-disconnect'!AB302*'COM-Appliance class'!$E86","v":58216.403119192211},{"$f":"AC239*'COM-Appliance class'!$B86+'COM S curve-disconnect'!AC260*'COM-Appliance class'!$C86+'COM S curve-disconnect'!AC281*'COM-Appliance class'!$D86+'COM S curve-disconnect'!AC302*'COM-Appliance class'!$E86","v":59288.033493458301},{"$f":"AD239*'COM-Appliance class'!$B86+'COM S curve-disconnect'!AD260*'COM-Appliance class'!$C86+'COM S curve-disconnect'!AD281*'COM-Appliance class'!$D86+'COM S curve-disconnect'!AD302*'COM-Appliance class'!$E86","v":60055.323488926726},{"$f":"AE239*'COM-Appliance class'!$B86+'COM S curve-disconnect'!AE260*'COM-Appliance class'!$C86+'COM S curve-disconnect'!AE281*'COM-Appliance class'!$D86+'COM S curve-disconnect'!AE302*'COM-Appliance class'!$E86","v":60698.34367085799},{"$f":"AF239*'COM-Appliance class'!$B86+'COM S curve-disconnect'!AF260*'COM-Appliance class'!$C86+'COM S curve-disconnect'!AF281*'COM-Appliance class'!$D86+'COM S curve-disconnect'!AF302*'COM-Appliance class'!$E86","v":61894.917645705573},{"$f":"AG239*'COM-Appliance class'!$B86+'COM S curve-disconnect'!AG260*'COM-Appliance class'!$C86+'COM S curve-disconnect'!AG281*'COM-Appliance class'!$D86+'COM S curve-disconnect'!AG302*'COM-Appliance class'!$E86","v":61952.404833319983},{"$f":"AH239*'COM-Appliance class'!$B86+'COM S curve-disconnect'!AH260*'COM-Appliance class'!$C86+'COM S curve-disconnect'!AH281*'COM-Appliance class'!$D86+'COM S curve-disconnect'!AH302*'COM-Appliance class'!$E86","v":63207.638854567136},{"$f":"AI239*'COM-Appliance class'!$B86+'COM S curve-disconnect'!AI260*'COM-Appliance class'!$C86+'COM S curve-disconnect'!AI281*'COM-Appliance class'!$D86+'COM S curve-disconnect'!AI302*'COM-Appliance class'!$E86","v":63288.417443255697},{"$f":"AJ239*'COM-Appliance class'!$B86+'COM S curve-disconnect'!AJ260*'COM-Appliance class'!$C86+'COM S curve-disconnect'!AJ281*'COM-Appliance class'!$D86+'COM S curve-disconnect'!AJ302*'COM-Appliance class'!$E86","v":63369.082124048269},{"$f":"AK239*'COM-Appliance class'!$B86+'COM S curve-disconnect'!AK260*'COM-Appliance class'!$C86+'COM S curve-disconnect'!AK281*'COM-Appliance class'!$D86+'COM S curve-disconnect'!AK302*'COM-Appliance class'!$E86","v":63449.63359690689},{"$f":"AL239*'COM-Appliance class'!$B86+'COM S curve-disconnect'!AL260*'COM-Appliance class'!$C86+'COM S curve-disconnect'!AL281*'COM-Appliance class'!$D86+'COM S curve-disconnect'!AL302*'COM-Appliance class'!$E86","v":63530.072557448635},{"$f":"AM239*'COM-Appliance class'!$B86+'COM S curve-disconnect'!AM260*'COM-Appliance class'!$C86+'COM S curve-disconnect'!AM281*'COM-Appliance class'!$D86+'COM S curve-disconnect'!AM302*'COM-Appliance class'!$E86","v":63610.399696973152},{"$f":"AN239*'COM-Appliance class'!$B86+'COM S curve-disconnect'!AN260*'COM-Appliance class'!$C86+'COM S curve-disconnect'!AN281*'COM-Appliance class'!$D86+'COM S curve-disconnect'!AN302*'COM-Appliance class'!$E86","v":63690.615702489515},{"$f":"AO239*'COM-Appliance class'!$B86+'COM S curve-disconnect'!AO260*'COM-Appliance class'!$C86+'COM S curve-disconnect'!AO281*'COM-Appliance class'!$D86+'COM S curve-disconnect'!AO302*'COM-Appliance class'!$E86","v":63770.721256743687},{"$f":"AP239*'COM-Appliance class'!$B86+'COM S curve-disconnect'!AP260*'COM-Appliance class'!$C86+'COM S curve-disconnect'!AP281*'COM-Appliance class'!$D86+'COM S curve-disconnect'!AP302*'COM-Appliance class'!$E86","v":63850.717038244911},{"$f":"AQ239*'COM-Appliance class'!$B86+'COM S curve-disconnect'!AQ260*'COM-Appliance class'!$C86+'COM S curve-disconnect'!AQ281*'COM-Appliance class'!$D86+'COM S curve-disconnect'!AQ302*'COM-Appliance class'!$E86","v":63930.60372129285},{"$f":"AR239*'COM-Appliance class'!$B86+'COM S curve-disconnect'!AR260*'COM-Appliance class'!$C86+'COM S curve-disconnect'!AR281*'COM-Appliance class'!$D86+'COM S curve-disconnect'!AR302*'COM-Appliance class'!$E86","v":64010.381976003642},{"$f":"AS239*'COM-Appliance class'!$B86+'COM S curve-disconnect'!AS260*'COM-Appliance class'!$C86+'COM S curve-disconnect'!AS281*'COM-Appliance class'!$D86+'COM S curve-disconnect'!AS302*'COM-Appliance class'!$E86","v":64090.052468336675},{"$f":"AT239*'COM-Appliance class'!$B86+'COM S curve-disconnect'!AT260*'COM-Appliance class'!$C86+'COM S curve-disconnect'!AT281*'COM-Appliance class'!$D86+'COM S curve-disconnect'!AT302*'COM-Appliance class'!$E86","v":64169.615860120299},{"$f":"AU239*'COM-Appliance class'!$B86+'COM S curve-disconnect'!AU260*'COM-Appliance class'!$C86+'COM S curve-disconnect'!AU281*'COM-Appliance class'!$D86+'COM S curve-disconnect'!AU302*'COM-Appliance class'!$E86","v":64249.072809078294},{"$f":"AV239*'COM-Appliance class'!$B86+'COM S curve-disconnect'!AV260*'COM-Appliance class'!$C86+'COM S curve-disconnect'!AV281*'COM-Appliance class'!$D86+'COM S curve-disconnect'!AV302*'COM-Appliance class'!$E86","v":64328.423968855343},{"$f":"AW239*'COM-Appliance class'!$B86+'COM S curve-disconnect'!AW260*'COM-Appliance class'!$C86+'COM S curve-disconnect'!AW281*'COM-Appliance class'!$D86+'COM S curve-disconnect'!AW302*'COM-Appliance class'!$E86","v":64407.669989042959},{"$f":"AX239*'COM-Appliance class'!$B86+'COM S curve-disconnect'!AX260*'COM-Appliance class'!$C86+'COM S curve-disconnect'!AX281*'COM-Appliance class'!$D86+'COM S curve-disconnect'!AX302*'COM-Appliance class'!$E86","v":64486.811515204798},{"$f":"AY239*'COM-Appliance class'!$B86+'COM S curve-disconnect'!AY260*'COM-Appliance class'!$C86+'COM S curve-disconnect'!AY281*'COM-Appliance class'!$D86+'COM S curve-disconnect'!AY302*'COM-Appliance class'!$E86","v":64565.849188902197},{"$f":"AZ239*'COM-Appliance class'!$B86+'COM S curve-disconnect'!AZ260*'COM-Appliance class'!$C86+'COM S curve-disconnect'!AZ281*'COM-Appliance class'!$D86+'COM S curve-disconnect'!AZ302*'COM-Appliance class'!$E86","v":64644.783647719189},{"$f":"BA239*'COM-Appliance class'!$B86+'COM S curve-disconnect'!BA260*'COM-Appliance class'!$C86+'COM S curve-disconnect'!BA281*'COM-Appliance class'!$D86+'COM S curve-disconnect'!BA302*'COM-Appliance class'!$E86","v":64723.615525287787},{"$f":"BB239*'COM-Appliance class'!$B86+'COM S curve-disconnect'!BB260*'COM-Appliance class'!$C86+'COM S curve-disconnect'!BB281*'COM-Appliance class'!$D86+'COM S curve-disconnect'!BB302*'COM-Appliance class'!$E86","v":64802.345451312416},{"$f":"BC239*'COM-Appliance class'!$B86+'COM S curve-disconnect'!BC260*'COM-Appliance class'!$C86+'COM S curve-disconnect'!BC281*'COM-Appliance class'!$D86+'COM S curve-disconnect'!BC302*'COM-Appliance class'!$E86","v":64880.974051595229},{"$f":"BD239*'COM-Appliance class'!$B86+'COM S curve-disconnect'!BD260*'COM-Appliance class'!$C86+'COM S curve-disconnect'!BD281*'COM-Appliance class'!$D86+'COM S curve-disconnect'!BD302*'COM-Appliance class'!$E86","v":64959.501948060024},{"$f":"BE239*'COM-Appliance class'!$B86+'COM S curve-disconnect'!BE260*'COM-Appliance class'!$C86+'COM S curve-disconnect'!BE281*'COM-Appliance class'!$D86+'COM S curve-disconnect'!BE302*'COM-Appliance class'!$E86","v":65037.929758777238},{"$f":"BF239*'COM-Appliance class'!$B86+'COM S curve-disconnect'!BF260*'COM-Appliance class'!$C86+'COM S curve-disconnect'!BF281*'COM-Appliance class'!$D86+'COM S curve-disconnect'!BF302*'COM-Appliance class'!$E86","v":65116.258097987702},{"$f":"BG239*'COM-Appliance class'!$B86+'COM S curve-disconnect'!BG260*'COM-Appliance class'!$C86+'COM S curve-disconnect'!BG281*'COM-Appliance class'!$D86+'COM S curve-disconnect'!BG302*'COM-Appliance class'!$E86","v":65194.487576127023},{"$f":"BH239*'COM-Appliance class'!$B86+'COM S curve-disconnect'!BH260*'COM-Appliance class'!$C86+'COM S curve-disconnect'!BH281*'COM-Appliance class'!$D86+'COM S curve-disconnect'!BH302*'COM-Appliance class'!$E86","v":65272.618799849464},{"$f":"BI239*'COM-Appliance class'!$B86+'COM S curve-disconnect'!BI260*'COM-Appliance class'!$C86+'COM S curve-disconnect'!BI281*'COM-Appliance class'!$D86+'COM S curve-disconnect'!BI302*'COM-Appliance class'!$E86","v":65350.652372051743},{"$f":"BJ239*'COM-Appliance class'!$B86+'COM S curve-disconnect'!BJ260*'COM-Appliance class'!$C86+'COM S curve-disconnect'!BJ281*'COM-Appliance class'!$D86+'COM S curve-disconnect'!BJ302*'COM-Appliance class'!$E86","v":65428.588891896499},{"$f":"BK239*'COM-Appliance class'!$B86+'COM S curve-disconnect'!BK260*'COM-Appliance class'!$C86+'COM S curve-disconnect'!BK281*'COM-Appliance class'!$D86+'COM S curve-disconnect'!BK302*'COM-Appliance class'!$E86","v":65506.42895483609},{"$f":"BL239*'COM-Appliance class'!$B86+'COM S curve-disconnect'!BL260*'COM-Appliance class'!$C86+'COM S curve-disconnect'!BL281*'COM-Appliance class'!$D86+'COM S curve-disconnect'!BL302*'COM-Appliance class'!$E86","v":65584.173152635587},{"$f":"BM239*'COM-Appliance class'!$B86+'COM S curve-disconnect'!BM260*'COM-Appliance class'!$C86+'COM S curve-disconnect'!BM281*'COM-Appliance class'!$D86+'COM S curve-disconnect'!BM302*'COM-Appliance class'!$E86","v":65661.822073396412},{"$f":"BN239*'COM-Appliance class'!$B86+'COM S curve-disconnect'!BN260*'COM-Appliance class'!$C86+'COM S curve-disconnect'!BN281*'COM-Appliance class'!$D86+'COM S curve-disconnect'!BN302*'COM-Appliance class'!$E86","v":65739.376301578712},{"$f":"BO239*'COM-Appliance class'!$B86+'COM S curve-disconnect'!BO260*'COM-Appliance class'!$C86+'COM S curve-disconnect'!BO281*'COM-Appliance class'!$D86+'COM S curve-disconnect'!BO302*'COM-Appliance class'!$E86","v":65816.836418024977},{"$f":"BP239*'COM-Appliance class'!$B86+'COM S curve-disconnect'!BP260*'COM-Appliance class'!$C86+'COM S curve-disconnect'!BP281*'COM-Appliance class'!$D86+'COM S curve-disconnect'!BP302*'COM-Appliance class'!$E86","v":65894.202999982284},{"$f":"BQ239*'COM-Appliance class'!$B86+'COM S curve-disconnect'!BQ260*'COM-Appliance class'!$C86+'COM S curve-disconnect'!BQ281*'COM-Appliance class'!$D86+'COM S curve-disconnect'!BQ302*'COM-Appliance class'!$E86","v":65971.476621125184},{"$f":"BR239*'COM-Appliance class'!$B86+'COM S curve-disconnect'!BR260*'COM-Appliance class'!$C86+'COM S curve-disconnect'!BR281*'COM-Appliance class'!$D86+'COM S curve-disconnect'!BR302*'COM-Appliance class'!$E86","v":66048.657851577969},{"$f":"BS239*'COM-Appliance class'!$B86+'COM S curve-disconnect'!BS260*'COM-Appliance class'!$C86+'COM S curve-disconnect'!BS281*'COM-Appliance class'!$D86+'COM S curve-disconnect'!BS302*'COM-Appliance class'!$E86","v":66125.747257937182},{"$f":"BT239*'COM-Appliance class'!$B86+'COM S curve-disconnect'!BT260*'COM-Appliance class'!$C86+'COM S curve-disconnect'!BT281*'COM-Appliance class'!$D86+'COM S curve-disconnect'!BT302*'COM-Appliance class'!$E86","v":66202.745403293549},{"$f":"BU239*'COM-Appliance class'!$B86+'COM S curve-disconnect'!BU260*'COM-Appliance class'!$C86+'COM S curve-disconnect'!BU281*'COM-Appliance class'!$D86+'COM S curve-disconnect'!BU302*'COM-Appliance class'!$E86","v":66279.652847254343},{"$f":"BV239*'COM-Appliance class'!$B86+'COM S curve-disconnect'!BV260*'COM-Appliance class'!$C86+'COM S curve-disconnect'!BV281*'COM-Appliance class'!$D86+'COM S curve-disconnect'!BV302*'COM-Appliance class'!$E86","v":66356.470145964937},{"$f":"BW239*'COM-Appliance class'!$B86+'COM S curve-disconnect'!BW260*'COM-Appliance class'!$C86+'COM S curve-disconnect'!BW281*'COM-Appliance class'!$D86+'COM S curve-disconnect'!BW302*'COM-Appliance class'!$E86","v":66433.197852130921},{"$f":"BX239*'COM-Appliance class'!$B86+'COM S curve-disconnect'!BX260*'COM-Appliance class'!$C86+'COM S curve-disconnect'!BX281*'COM-Appliance class'!$D86+'COM S curve-disconnect'!BX302*'COM-Appliance class'!$E86","v":66509.836515039235},{"$f":"BY239*'COM-Appliance class'!$B86+'COM S curve-disconnect'!BY260*'COM-Appliance class'!$C86+'COM S curve-disconnect'!BY281*'COM-Appliance class'!$D86+'COM S curve-disconnect'!BY302*'COM-Appliance class'!$E86","v":66586.386680580341},{"$f":"BZ239*'COM-Appliance class'!$B86+'COM S curve-disconnect'!BZ260*'COM-Appliance class'!$C86+'COM S curve-disconnect'!BZ281*'COM-Appliance class'!$D86+'COM S curve-disconnect'!BZ302*'COM-Appliance class'!$E86","v":66662.848891268775},{"$f":"CA239*'COM-Appliance class'!$B86+'COM S curve-disconnect'!CA260*'COM-Appliance class'!$C86+'COM S curve-disconnect'!CA281*'COM-Appliance class'!$D86+'COM S curve-disconnect'!CA302*'COM-Appliance class'!$E86","v":66739.223686265104},{"$f":"CB239*'COM-Appliance class'!$B86+'COM S curve-disconnect'!CB260*'COM-Appliance class'!$C86+'COM S curve-disconnect'!CB281*'COM-Appliance class'!$D86+'COM S curve-disconnect'!CB302*'COM-Appliance class'!$E86","v":66815.5116013964},{"$f":"CC239*'COM-Appliance class'!$B86+'COM S curve-disconnect'!CC260*'COM-Appliance class'!$C86+'COM S curve-disconnect'!CC281*'COM-Appliance class'!$D86+'COM S curve-disconnect'!CC302*'COM-Appliance class'!$E86","v":66891.713169177689},{"$f":"CD239*'COM-Appliance class'!$B86+'COM S curve-disconnect'!CD260*'COM-Appliance class'!$C86+'COM S curve-disconnect'!CD281*'COM-Appliance class'!$D86+'COM S curve-disconnect'!CD302*'COM-Appliance class'!$E86","v":66967.828918832267}]
["South Gippsland (S)",null,{"$f":"C240*'COM-Appliance class'!$B87+'COM S curve-disconnect'!C261*'COM-Appliance class'!$C87+'COM S curve-disconnect'!C282*'COM-Appliance class'!$D87+'COM S curve-disconnect'!C303*'COM-Appliance class'!$E87","v":31852.63897990741},{"$f":"D240*'COM-Appliance class'!$B87+'COM S curve-disconnect'!D261*'COM-Appliance class'!$C87+'COM S curve-disconnect'!D282*'COM-Appliance class'!$D87+'COM S curve-disconnect'!D303*'COM-Appliance class'!$E87","v":39151.002471207037},{"$f":"E240*'COM-Appliance class'!$B87+'COM S curve-disconnect'!E261*'COM-Appliance class'!$C87+'COM S curve-disconnect'!E282*'COM-Appliance class'!$D87+'COM S curve-disconnect'!E303*'COM-Appliance class'!$E87","v":34790.418166326766},{"$f":"F240*'COM-Appliance class'!$B87+'COM S curve-disconnect'!F261*'COM-Appliance class'!$C87+'COM S curve-disconnect'!F282*'COM-Appliance class'!$D87+'COM S curve-disconnect'!F303*'COM-Appliance class'!$E87","v":38700.439846752997},{"$f":"G240*'COM-Appliance class'!$B87+'COM S curve-disconnect'!G261*'COM-Appliance class'!$C87+'COM S curve-disconnect'!G282*'COM-Appliance class'!$D87+'COM S curve-disconnect'!G303*'COM-Appliance class'!$E87","v":34073.301700787313},{"$f":"H240*'COM-Appliance class'!$B87+'COM S curve-disconnect'!H261*'COM-Appliance class'!$C87+'COM S curve-disconnect'!H282*'COM-Appliance class'!$D87+'COM S curve-disconnect'!H303*'COM-Appliance class'!$E87","v":34977.01768273185},{"$f":"I240*'COM-Appliance class'!$B87+'COM S curve-disconnect'!I261*'COM-Appliance class'!$C87+'COM S curve-disconnect'!I282*'COM-Appliance class'!$D87+'COM S curve-disconnect'!I303*'COM-Appliance class'!$E87","v":40562.682559651177},{"$f":"J240*'COM-Appliance class'!$B87+'COM S curve-disconnect'!J261*'COM-Appliance class'!$C87+'COM S curve-disconnect'!J282*'COM-Appliance class'!$D87+'COM S curve-disconnect'!J303*'COM-Appliance class'!$E87","v":44636.636503909358},{"$f":"K240*'COM-Appliance class'!$B87+'COM S curve-disconnect'!K261*'COM-Appliance class'!$C87+'COM S curve-disconnect'!K282*'COM-Appliance class'!$D87+'COM S curve-disconnect'!K303*'COM-Appliance class'!$E87","v":53436.01615792868},{"$f":"L240*'COM-Appliance class'!$B87+'COM S curve-disconnect'!L261*'COM-Appliance class'!$C87+'COM S curve-disconnect'!L282*'COM-Appliance class'!$D87+'COM S curve-disconnect'!L303*'COM-Appliance class'!$E87","v":52982.059847245313},{"$f":"M240*'COM-Appliance class'!$B87+'COM S curve-disconnect'!M261*'COM-Appliance class'!$C87+'COM S curve-disconnect'!M282*'COM-Appliance class'!$D87+'COM S curve-disconnect'!M303*'COM-Appliance class'!$E87","v":43049.75169352629},{"$f":"N240*'COM-Appliance class'!$B87+'COM S curve-disconnect'!N261*'COM-Appliance class'!$C87+'COM S curve-disconnect'!N282*'COM-Appliance class'!$D87+'COM S curve-disconnect'!N303*'COM-Appliance class'!$E87","v":42848.749873583998},{"$f":"O240*'COM-Appliance class'!$B87+'COM S curve-disconnect'!O261*'COM-Appliance class'!$C87+'COM S curve-disconnect'!O282*'COM-Appliance class'!$D87+'COM S curve-disconnect'!O303*'COM-Appliance class'!$E87","v":48761.891251462112},{"$f":"P240*'COM-Appliance class'!$B87+'COM S curve-disconnect'!P261*'COM-Appliance class'!$C87+'COM S curve-disconnect'!P282*'COM-Appliance class'!$D87+'COM S curve-disconnect'!P303*'COM-Appliance class'!$E87","v":54485.024775479898},{"$f":"Q240*'COM-Appliance class'!$B87+'COM S curve-disconnect'!Q261*'COM-Appliance class'!$C87+'COM S curve-disconnect'!Q282*'COM-Appliance class'!$D87+'COM S curve-disconnect'!Q303*'COM-Appliance class'!$E87","v":37939.310524285727},{"$f":"R240*'COM-Appliance class'!$B87+'COM S curve-disconnect'!R261*'COM-Appliance class'!$C87+'COM S curve-disconnect'!R282*'COM-Appliance class'!$D87+'COM S curve-disconnect'!R303*'COM-Appliance class'!$E87","v":40300.379341033768},{"$f":"S240*'COM-Appliance class'!$B87+'COM S curve-disconnect'!S261*'COM-Appliance class'!$C87+'COM S curve-disconnect'!S282*'COM-Appliance class'!$D87+'COM S curve-disconnect'!S303*'COM-Appliance class'!$E87","v":43803.727422740398},{"$f":"T240*'COM-Appliance class'!$B87+'COM S curve-disconnect'!T261*'COM-Appliance class'!$C87+'COM S curve-disconnect'!T282*'COM-Appliance class'!$D87+'COM S curve-disconnect'!T303*'COM-Appliance class'!$E87","v":48932.173284136661},{"$f":"U240*'COM-Appliance class'!$B87+'COM S curve-disconnect'!U261*'COM-Appliance class'!$C87+'COM S curve-disconnect'!U282*'COM-Appliance class'!$D87+'COM S curve-disconnect'!U303*'COM-Appliance class'!$E87","v":52748.438991508949},{"$f":"V240*'COM-Appliance class'!$B87+'COM S curve-disconnect'!V261*'COM-Appliance class'!$C87+'COM S curve-disconnect'!V282*'COM-Appliance class'!$D87+'COM S curve-disconnect'!V303*'COM-Appliance class'!$E87","v":54148.783102366695},{"$f":"W240*'COM-Appliance class'!$B87+'COM S curve-disconnect'!W261*'COM-Appliance class'!$C87+'COM S curve-disconnect'!W282*'COM-Appliance class'!$D87+'COM S curve-disconnect'!W303*'COM-Appliance class'!$E87","v":56430.243360867302},{"$f":"X240*'COM-Appliance class'!$B87+'COM S curve-disconnect'!X261*'COM-Appliance class'!$C87+'COM S curve-disconnect'!X282*'COM-Appliance class'!$D87+'COM S curve-disconnect'!X303*'COM-Appliance class'!$E87","v":62082.66341886505},{"$f":"Y240*'COM-Appliance class'!$B87+'COM S curve-disconnect'!Y261*'COM-Appliance class'!$C87+'COM S curve-disconnect'!Y282*'COM-Appliance class'!$D87+'COM S curve-disconnect'!Y303*'COM-Appliance class'!$E87","v":66779.036554909195},{"$f":"Z240*'COM-Appliance class'!$B87+'COM S curve-disconnect'!Z261*'COM-Appliance class'!$C87+'COM S curve-disconnect'!Z282*'COM-Appliance class'!$D87+'COM S curve-disconnect'!Z303*'COM-Appliance class'!$E87","v":69430.498374828836},{"$f":"AA240*'COM-Appliance class'!$B87+'COM S curve-disconnect'!AA261*'COM-Appliance class'!$C87+'COM S curve-disconnect'!AA282*'COM-Appliance class'!$D87+'COM S curve-disconnect'!AA303*'COM-Appliance class'!$E87","v":72443.41720093193},{"$f":"AB240*'COM-Appliance class'!$B87+'COM S curve-disconnect'!AB261*'COM-Appliance class'!$C87+'COM S curve-disconnect'!AB282*'COM-Appliance class'!$D87+'COM S curve-disconnect'!AB303*'COM-Appliance class'!$E87","v":74333.779413358629},{"$f":"AC240*'COM-Appliance class'!$B87+'COM S curve-disconnect'!AC261*'COM-Appliance class'!$C87+'COM S curve-disconnect'!AC282*'COM-Appliance class'!$D87+'COM S curve-disconnect'!AC303*'COM-Appliance class'!$E87","v":75702.093695679665},{"$f":"AD240*'COM-Appliance class'!$B87+'COM S curve-disconnect'!AD261*'COM-Appliance class'!$C87+'COM S curve-disconnect'!AD282*'COM-Appliance class'!$D87+'COM S curve-disconnect'!AD303*'COM-Appliance class'!$E87","v":76681.810102281641},{"$f":"AE240*'COM-Appliance class'!$B87+'COM S curve-disconnect'!AE261*'COM-Appliance class'!$C87+'COM S curve-disconnect'!AE282*'COM-Appliance class'!$D87+'COM S curve-disconnect'!AE303*'COM-Appliance class'!$E87","v":77502.852245063186},{"$f":"AF240*'COM-Appliance class'!$B87+'COM S curve-disconnect'!AF261*'COM-Appliance class'!$C87+'COM S curve-disconnect'!AF282*'COM-Appliance class'!$D87+'COM S curve-disconnect'!AF303*'COM-Appliance class'!$E87","v":79030.701118102937},{"$f":"AG240*'COM-Appliance class'!$B87+'COM S curve-disconnect'!AG261*'COM-Appliance class'!$C87+'COM S curve-disconnect'!AG282*'COM-Appliance class'!$D87+'COM S curve-disconnect'!AG303*'COM-Appliance class'!$E87","v":79104.103796631098},{"$f":"AH240*'COM-Appliance class'!$B87+'COM S curve-disconnect'!AH261*'COM-Appliance class'!$C87+'COM S curve-disconnect'!AH282*'COM-Appliance class'!$D87+'COM S curve-disconnect'!AH303*'COM-Appliance class'!$E87","v":80706.852916264877},{"$f":"AI240*'COM-Appliance class'!$B87+'COM S curve-disconnect'!AI261*'COM-Appliance class'!$C87+'COM S curve-disconnect'!AI282*'COM-Appliance class'!$D87+'COM S curve-disconnect'!AI303*'COM-Appliance class'!$E87","v":80809.995286304504},{"$f":"AJ240*'COM-Appliance class'!$B87+'COM S curve-disconnect'!AJ261*'COM-Appliance class'!$C87+'COM S curve-disconnect'!AJ282*'COM-Appliance class'!$D87+'COM S curve-disconnect'!AJ303*'COM-Appliance class'!$E87","v":80912.992212724173},{"$f":"AK240*'COM-Appliance class'!$B87+'COM S curve-disconnect'!AK261*'COM-Appliance class'!$C87+'COM S curve-disconnect'!AK282*'COM-Appliance class'!$D87+'COM S curve-disconnect'!AK303*'COM-Appliance class'!$E87","v":81015.84458927231},{"$f":"AL240*'COM-Appliance class'!$B87+'COM S curve-disconnect'!AL261*'COM-Appliance class'!$C87+'COM S curve-disconnect'!AL282*'COM-Appliance class'!$D87+'COM S curve-disconnect'!AL303*'COM-Appliance class'!$E87","v":81118.553304149609},{"$f":"AM240*'COM-Appliance class'!$B87+'COM S curve-disconnect'!AM261*'COM-Appliance class'!$C87+'COM S curve-disconnect'!AM282*'COM-Appliance class'!$D87+'COM S curve-disconnect'!AM303*'COM-Appliance class'!$E87","v":81221.119240043932},{"$f":"AN240*'COM-Appliance class'!$B87+'COM S curve-disconnect'!AN261*'COM-Appliance class'!$C87+'COM S curve-disconnect'!AN282*'COM-Appliance class'!$D87+'COM S curve-disconnect'!AN303*'COM-Appliance class'!$E87","v":81323.543274164782},{"$f":"AO240*'COM-Appliance class'!$B87+'COM S curve-disconnect'!AO261*'COM-Appliance class'!$C87+'COM S curve-disconnect'!AO282*'COM-Appliance class'!$D87+'COM S curve-disconnect'!AO303*'COM-Appliance class'!$E87","v":81425.826278278313},{"$f":"AP240*'COM-Appliance class'!$B87+'COM S curve-disconnect'!AP261*'COM-Appliance class'!$C87+'COM S curve-disconnect'!AP282*'COM-Appliance class'!$D87+'COM S curve-disconnect'!AP303*'COM-Appliance class'!$E87","v":81527.969118740933},{"$f":"AQ240*'COM-Appliance class'!$B87+'COM S curve-disconnect'!AQ261*'COM-Appliance class'!$C87+'COM S curve-disconnect'!AQ282*'COM-Appliance class'!$D87+'COM S curve-disconnect'!AQ303*'COM-Appliance class'!$E87","v":81629.972656534082},{"$f":"AR240*'COM-Appliance class'!$B87+'COM S curve-disconnect'!AR261*'COM-Appliance class'!$C87+'COM S curve-disconnect'!AR282*'COM-Appliance class'!$D87+'COM S curve-disconnect'!AR303*'COM-Appliance class'!$E87","v":81731.837747297483},{"$f":"AS240*'COM-Appliance class'!$B87+'COM S curve-disconnect'!AS261*'COM-Appliance class'!$C87+'COM S curve-disconnect'!AS282*'COM-Appliance class'!$D87+'COM S curve-disconnect'!AS303*'COM-Appliance class'!$E87","v":81833.565241363249},{"$f":"AT240*'COM-Appliance class'!$B87+'COM S curve-disconnect'!AT261*'COM-Appliance class'!$C87+'COM S curve-disconnect'!AT282*'COM-Appliance class'!$D87+'COM S curve-disconnect'!AT303*'COM-Appliance class'!$E87","v":81935.155983788762},{"$f":"AU240*'COM-Appliance class'!$B87+'COM S curve-disconnect'!AU261*'COM-Appliance class'!$C87+'COM S curve-disconnect'!AU282*'COM-Appliance class'!$D87+'COM S curve-disconnect'!AU303*'COM-Appliance class'!$E87","v":82036.610814390544},{"$f":"AV240*'COM-Appliance class'!$B87+'COM S curve-disconnect'!AV261*'COM-Appliance class'!$C87+'COM S curve-disconnect'!AV282*'COM-Appliance class'!$D87+'COM S curve-disconnect'!AV303*'COM-Appliance class'!$E87","v":82137.93056777661},{"$f":"AW240*'COM-Appliance class'!$B87+'COM S curve-disconnect'!AW261*'COM-Appliance class'!$C87+'COM S curve-disconnect'!AW282*'COM-Appliance class'!$D87+'COM S curve-disconnect'!AW303*'COM-Appliance class'!$E87","v":82239.116073379773},{"$f":"AX240*'COM-Appliance class'!$B87+'COM S curve-disconnect'!AX261*'COM-Appliance class'!$C87+'COM S curve-disconnect'!AX282*'COM-Appliance class'!$D87+'COM S curve-disconnect'!AX303*'COM-Appliance class'!$E87","v":82340.168155489795},{"$f":"AY240*'COM-Appliance class'!$B87+'COM S curve-disconnect'!AY261*'COM-Appliance class'!$C87+'COM S curve-disconnect'!AY282*'COM-Appliance class'!$D87+'COM S curve-disconnect'!AY303*'COM-Appliance class'!$E87","v":82441.087633286093},{"$f":"AZ240*'COM-Appliance class'!$B87+'COM S curve-disconnect'!AZ261*'COM-Appliance class'!$C87+'COM S curve-disconnect'!AZ282*'COM-Appliance class'!$D87+'COM S curve-disconnect'!AZ303*'COM-Appliance class'!$E87","v":82541.875320869643},{"$f":"BA240*'COM-Appliance class'!$B87+'COM S curve-disconnect'!BA261*'COM-Appliance class'!$C87+'COM S curve-disconnect'!BA282*'COM-Appliance class'!$D87+'COM S curve-disconnect'!BA303*'COM-Appliance class'!$E87","v":82642.532027295267},{"$f":"BB240*'COM-Appliance class'!$B87+'COM S curve-disconnect'!BB261*'COM-Appliance class'!$C87+'COM S curve-disconnect'!BB282*'COM-Appliance class'!$D87+'COM S curve-disconnect'!BB303*'COM-Appliance class'!$E87","v":82743.058556602889},{"$f":"BC240*'COM-Appliance class'!$B87+'COM S curve-disconnect'!BC261*'COM-Appliance class'!$C87+'COM S curve-disconnect'!BC282*'COM-Appliance class'!$D87+'COM S curve-disconnect'!BC303*'COM-Appliance class'!$E87","v":82843.455707849716},{"$f":"BD240*'COM-Appliance class'!$B87+'COM S curve-disconnect'!BD261*'COM-Appliance class'!$C87+'COM S curve-disconnect'!BD282*'COM-Appliance class'!$D87+'COM S curve-disconnect'!BD303*'COM-Appliance class'!$E87","v":82943.724275140936},{"$f":"BE240*'COM-Appliance class'!$B87+'COM S curve-disconnect'!BE261*'COM-Appliance class'!$C87+'COM S curve-disconnect'!BE282*'COM-Appliance class'!$D87+'COM S curve-disconnect'!BE303*'COM-Appliance class'!$E87","v":83043.865047661515},{"$f":"BF240*'COM-Appliance class'!$B87+'COM S curve-disconnect'!BF261*'COM-Appliance class'!$C87+'COM S curve-disconnect'!BF282*'COM-Appliance class'!$D87+'COM S curve-disconnect'!BF303*'COM-Appliance class'!$E87","v":83143.878809706643},{"$f":"BG240*'COM-Appliance class'!$B87+'COM S curve-disconnect'!BG261*'COM-Appliance class'!$C87+'COM S curve-disconnect'!BG282*'COM-Appliance class'!$D87+'COM S curve-disconnect'!BG303*'COM-Appliance class'!$E87","v":83243.766340712711},{"$f":"BH240*'COM-Appliance class'!$B87+'COM S curve-disconnect'!BH261*'COM-Appliance class'!$C87+'COM S curve-disconnect'!BH282*'COM-Appliance class'!$D87+'COM S curve-disconnect'!BH303*'COM-Appliance class'!$E87","v":83343.528415287961},{"$f":"BI240*'COM-Appliance class'!$B87+'COM S curve-disconnect'!BI261*'COM-Appliance class'!$C87+'COM S curve-disconnect'!BI282*'COM-Appliance class'!$D87+'COM S curve-disconnect'!BI303*'COM-Appliance class'!$E87","v":83443.165803242766},{"$f":"BJ240*'COM-Appliance class'!$B87+'COM S curve-disconnect'!BJ261*'COM-Appliance class'!$C87+'COM S curve-disconnect'!BJ282*'COM-Appliance class'!$D87+'COM S curve-disconnect'!BJ303*'COM-Appliance class'!$E87","v":83542.67926961965},{"$f":"BK240*'COM-Appliance class'!$B87+'COM S curve-disconnect'!BK261*'COM-Appliance class'!$C87+'COM S curve-disconnect'!BK282*'COM-Appliance class'!$D87+'COM S curve-disconnect'!BK303*'COM-Appliance class'!$E87","v":83642.069574723631},{"$f":"BL240*'COM-Appliance class'!$B87+'COM S curve-disconnect'!BL261*'COM-Appliance class'!$C87+'COM S curve-disconnect'!BL282*'COM-Appliance class'!$D87+'COM S curve-disconnect'!BL303*'COM-Appliance class'!$E87","v":83741.33747415166},{"$f":"BM240*'COM-Appliance class'!$B87+'COM S curve-disconnect'!BM261*'COM-Appliance class'!$C87+'COM S curve-disconnect'!BM282*'COM-Appliance class'!$D87+'COM S curve-disconnect'!BM303*'COM-Appliance class'!$E87","v":83840.483718822637},{"$f":"BN240*'COM-Appliance class'!$B87+'COM S curve-disconnect'!BN261*'COM-Appliance class'!$C87+'COM S curve-disconnect'!BN282*'COM-Appliance class'!$D87+'COM S curve-disconnect'!BN303*'COM-Appliance class'!$E87","v":83939.509055006201},{"$f":"BO240*'COM-Appliance class'!$B87+'COM S curve-disconnect'!BO261*'COM-Appliance class'!$C87+'COM S curve-disconnect'!BO282*'COM-Appliance class'!$D87+'COM S curve-disconnect'!BO303*'COM-Appliance class'!$E87","v":84038.414224352746},{"$f":"BP240*'COM-Appliance class'!$B87+'COM S curve-disconnect'!BP261*'COM-Appliance class'!$C87+'COM S curve-disconnect'!BP282*'COM-Appliance class'!$D87+'COM S curve-disconnect'!BP303*'COM-Appliance class'!$E87","v":84137.199963921797},{"$f":"BQ240*'COM-Appliance class'!$B87+'COM S curve-disconnect'!BQ261*'COM-Appliance class'!$C87+'COM S curve-disconnect'!BQ282*'COM-Appliance class'!$D87+'COM S curve-disconnect'!BQ303*'COM-Appliance class'!$E87","v":84235.867006211396},{"$f":"BR240*'COM-Appliance class'!$B87+'COM S curve-disconnect'!BR261*'COM-Appliance class'!$C87+'COM S curve-disconnect'!BR282*'COM-Appliance class'!$D87+'COM S curve-disconnect'!BR303*'COM-Appliance class'!$E87","v":84334.416079186281},{"$f":"BS240*'COM-Appliance class'!$B87+'COM S curve-disconnect'!BS261*'COM-Appliance class'!$C87+'COM S curve-disconnect'!BS282*'COM-Appliance class'!$D87+'COM S curve-disconnect'!BS303*'COM-Appliance class'!$E87","v":84432.847906306881},{"$f":"BT240*'COM-Appliance class'!$B87+'COM S curve-disconnect'!BT261*'COM-Appliance class'!$C87+'COM S curve-disconnect'!BT282*'COM-Appliance class'!$D87+'COM S curve-disconnect'!BT303*'COM-Appliance class'!$E87","v":84531.163206557219},{"$f":"BU240*'COM-Appliance class'!$B87+'COM S curve-disconnect'!BU261*'COM-Appliance class'!$C87+'COM S curve-disconnect'!BU282*'COM-Appliance class'!$D87+'COM S curve-disconnect'!BU303*'COM-Appliance class'!$E87","v":84629.362694473413},{"$f":"BV240*'COM-Appliance class'!$B87+'COM S curve-disconnect'!BV261*'COM-Appliance class'!$C87+'COM S curve-disconnect'!BV282*'COM-Appliance class'!$D87+'COM S curve-disconnect'!BV303*'COM-Appliance class'!$E87","v":84727.44708017123},{"$f":"BW240*'COM-Appliance class'!$B87+'COM S curve-disconnect'!BW261*'COM-Appliance class'!$C87+'COM S curve-disconnect'!BW282*'COM-Appliance class'!$D87+'COM S curve-disconnect'!BW303*'COM-Appliance class'!$E87","v":84825.417069374409},{"$f":"BX240*'COM-Appliance class'!$B87+'COM S curve-disconnect'!BX261*'COM-Appliance class'!$C87+'COM S curve-disconnect'!BX282*'COM-Appliance class'!$D87+'COM S curve-disconnect'!BX303*'COM-Appliance class'!$E87","v":84923.273363441549},{"$f":"BY240*'COM-Appliance class'!$B87+'COM S curve-disconnect'!BY261*'COM-Appliance class'!$C87+'COM S curve-disconnect'!BY282*'COM-Appliance class'!$D87+'COM S curve-disconnect'!BY303*'COM-Appliance class'!$E87","v":85021.016659394358},{"$f":"BZ240*'COM-Appliance class'!$B87+'COM S curve-disconnect'!BZ261*'COM-Appliance class'!$C87+'COM S curve-disconnect'!BZ282*'COM-Appliance class'!$D87+'COM S curve-disconnect'!BZ303*'COM-Appliance class'!$E87","v":85118.647649944134},{"$f":"CA240*'COM-Appliance class'!$B87+'COM S curve-disconnect'!CA261*'COM-Appliance class'!$C87+'COM S curve-disconnect'!CA282*'COM-Appliance class'!$D87+'COM S curve-disconnect'!CA303*'COM-Appliance class'!$E87","v":85216.167023519563},{"$f":"CB240*'COM-Appliance class'!$B87+'COM S curve-disconnect'!CB261*'COM-Appliance class'!$C87+'COM S curve-disconnect'!CB282*'COM-Appliance class'!$D87+'COM S curve-disconnect'!CB303*'COM-Appliance class'!$E87","v":85313.575464292939},{"$f":"CC240*'COM-Appliance class'!$B87+'COM S curve-disconnect'!CC261*'COM-Appliance class'!$C87+'COM S curve-disconnect'!CC282*'COM-Appliance class'!$D87+'COM S curve-disconnect'!CC303*'COM-Appliance class'!$E87","v":85410.873652207607},{"$f":"CD240*'COM-Appliance class'!$B87+'COM S curve-disconnect'!CD261*'COM-Appliance class'!$C87+'COM S curve-disconnect'!CD282*'COM-Appliance class'!$D87+'COM S curve-disconnect'!CD303*'COM-Appliance class'!$E87","v":85508.062263003783}]
["Stonnington (C)",null,{"$f":"C241*'COM-Appliance class'!$B88+'COM S curve-disconnect'!C262*'COM-Appliance class'!$C88+'COM S curve-disconnect'!C283*'COM-Appliance class'!$D88+'COM S curve-disconnect'!C304*'COM-Appliance class'!$E88","v":19214.442140667019},{"$f":"D241*'COM-Appliance class'!$B88+'COM S curve-disconnect'!D262*'COM-Appliance class'!$C88+'COM S curve-disconnect'!D283*'COM-Appliance class'!$D88+'COM S curve-disconnect'!D304*'COM-Appliance class'!$E88","v":23617.028159162772},{"$f":"E241*'COM-Appliance class'!$B88+'COM S curve-disconnect'!E262*'COM-Appliance class'!$C88+'COM S curve-disconnect'!E283*'COM-Appliance class'!$D88+'COM S curve-disconnect'!E304*'COM-Appliance class'!$E88","v":20986.596348521434},{"$f":"F241*'COM-Appliance class'!$B88+'COM S curve-disconnect'!F262*'COM-Appliance class'!$C88+'COM S curve-disconnect'!F283*'COM-Appliance class'!$D88+'COM S curve-disconnect'!F304*'COM-Appliance class'!$E88","v":23345.23562467983},{"$f":"G241*'COM-Appliance class'!$B88+'COM S curve-disconnect'!G262*'COM-Appliance class'!$C88+'COM S curve-disconnect'!G283*'COM-Appliance class'!$D88+'COM S curve-disconnect'!G304*'COM-Appliance class'!$E88","v":20554.010751958489},{"$f":"H241*'COM-Appliance class'!$B88+'COM S curve-disconnect'!H262*'COM-Appliance class'!$C88+'COM S curve-disconnect'!H283*'COM-Appliance class'!$D88+'COM S curve-disconnect'!H304*'COM-Appliance class'!$E88","v":21099.15862675853},{"$f":"I241*'COM-Appliance class'!$B88+'COM S curve-disconnect'!I262*'COM-Appliance class'!$C88+'COM S curve-disconnect'!I283*'COM-Appliance class'!$D88+'COM S curve-disconnect'!I304*'COM-Appliance class'!$E88","v":24468.594818919031},{"$f":"J241*'COM-Appliance class'!$B88+'COM S curve-disconnect'!J262*'COM-Appliance class'!$C88+'COM S curve-disconnect'!J283*'COM-Appliance class'!$D88+'COM S curve-disconnect'!J304*'COM-Appliance class'!$E88","v":26926.122824528517},{"$f":"K241*'COM-Appliance class'!$B88+'COM S curve-disconnect'!K262*'COM-Appliance class'!$C88+'COM S curve-disconnect'!K283*'COM-Appliance class'!$D88+'COM S curve-disconnect'!K304*'COM-Appliance class'!$E88","v":32234.165631988493},{"$f":"L241*'COM-Appliance class'!$B88+'COM S curve-disconnect'!L262*'COM-Appliance class'!$C88+'COM S curve-disconnect'!L283*'COM-Appliance class'!$D88+'COM S curve-disconnect'!L304*'COM-Appliance class'!$E88","v":31960.325926853911},{"$f":"M241*'COM-Appliance class'!$B88+'COM S curve-disconnect'!M262*'COM-Appliance class'!$C88+'COM S curve-disconnect'!M283*'COM-Appliance class'!$D88+'COM S curve-disconnect'!M304*'COM-Appliance class'!$E88","v":25968.867559360617},{"$f":"N241*'COM-Appliance class'!$B88+'COM S curve-disconnect'!N262*'COM-Appliance class'!$C88+'COM S curve-disconnect'!N283*'COM-Appliance class'!$D88+'COM S curve-disconnect'!N304*'COM-Appliance class'!$E88","v":25847.617390987245},{"$f":"O241*'COM-Appliance class'!$B88+'COM S curve-disconnect'!O262*'COM-Appliance class'!$C88+'COM S curve-disconnect'!O283*'COM-Appliance class'!$D88+'COM S curve-disconnect'!O304*'COM-Appliance class'!$E88","v":29414.596973008473},{"$f":"P241*'COM-Appliance class'!$B88+'COM S curve-disconnect'!P262*'COM-Appliance class'!$C88+'COM S curve-disconnect'!P283*'COM-Appliance class'!$D88+'COM S curve-disconnect'!P304*'COM-Appliance class'!$E88","v":32866.958268093571},{"$f":"Q241*'COM-Appliance class'!$B88+'COM S curve-disconnect'!Q262*'COM-Appliance class'!$C88+'COM S curve-disconnect'!Q283*'COM-Appliance class'!$D88+'COM S curve-disconnect'!Q304*'COM-Appliance class'!$E88","v":22886.100187351152},{"$f":"R241*'COM-Appliance class'!$B88+'COM S curve-disconnect'!R262*'COM-Appliance class'!$C88+'COM S curve-disconnect'!R283*'COM-Appliance class'!$D88+'COM S curve-disconnect'!R304*'COM-Appliance class'!$E88","v":24310.365856458051},{"$f":"S241*'COM-Appliance class'!$B88+'COM S curve-disconnect'!S262*'COM-Appliance class'!$C88+'COM S curve-disconnect'!S283*'COM-Appliance class'!$D88+'COM S curve-disconnect'!S304*'COM-Appliance class'!$E88","v":26423.687740306697},{"$f":"T241*'COM-Appliance class'!$B88+'COM S curve-disconnect'!T262*'COM-Appliance class'!$C88+'COM S curve-disconnect'!T283*'COM-Appliance class'!$D88+'COM S curve-disconnect'!T304*'COM-Appliance class'!$E88","v":29517.316068480726},{"$f":"U241*'COM-Appliance class'!$B88+'COM S curve-disconnect'!U262*'COM-Appliance class'!$C88+'COM S curve-disconnect'!U283*'COM-Appliance class'!$D88+'COM S curve-disconnect'!U304*'COM-Appliance class'!$E88","v":31819.399003397713},{"$f":"V241*'COM-Appliance class'!$B88+'COM S curve-disconnect'!V262*'COM-Appliance class'!$C88+'COM S curve-disconnect'!V283*'COM-Appliance class'!$D88+'COM S curve-disconnect'!V304*'COM-Appliance class'!$E88","v":32664.127470388237},{"$f":"W241*'COM-Appliance class'!$B88+'COM S curve-disconnect'!W262*'COM-Appliance class'!$C88+'COM S curve-disconnect'!W283*'COM-Appliance class'!$D88+'COM S curve-disconnect'!W304*'COM-Appliance class'!$E88","v":34040.370932063219},{"$f":"X241*'COM-Appliance class'!$B88+'COM S curve-disconnect'!X262*'COM-Appliance class'!$C88+'COM S curve-disconnect'!X283*'COM-Appliance class'!$D88+'COM S curve-disconnect'!X304*'COM-Appliance class'!$E88","v":37450.075799143568},{"$f":"Y241*'COM-Appliance class'!$B88+'COM S curve-disconnect'!Y262*'COM-Appliance class'!$C88+'COM S curve-disconnect'!Y283*'COM-Appliance class'!$D88+'COM S curve-disconnect'!Y304*'COM-Appliance class'!$E88","v":40283.065240000433},{"$f":"Z241*'COM-Appliance class'!$B88+'COM S curve-disconnect'!Z262*'COM-Appliance class'!$C88+'COM S curve-disconnect'!Z283*'COM-Appliance class'!$D88+'COM S curve-disconnect'!Z304*'COM-Appliance class'!$E88","v":41882.504450019107},{"$f":"AA241*'COM-Appliance class'!$B88+'COM S curve-disconnect'!AA262*'COM-Appliance class'!$C88+'COM S curve-disconnect'!AA283*'COM-Appliance class'!$D88+'COM S curve-disconnect'!AA304*'COM-Appliance class'!$E88","v":43699.985083105814},{"$f":"AB241*'COM-Appliance class'!$B88+'COM S curve-disconnect'!AB262*'COM-Appliance class'!$C88+'COM S curve-disconnect'!AB283*'COM-Appliance class'!$D88+'COM S curve-disconnect'!AB304*'COM-Appliance class'!$E88","v":44840.306780736202},{"$f":"AC241*'COM-Appliance class'!$B88+'COM S curve-disconnect'!AC262*'COM-Appliance class'!$C88+'COM S curve-disconnect'!AC283*'COM-Appliance class'!$D88+'COM S curve-disconnect'!AC304*'COM-Appliance class'!$E88","v":45665.713919670292},{"$f":"AD241*'COM-Appliance class'!$B88+'COM S curve-disconnect'!AD262*'COM-Appliance class'!$C88+'COM S curve-disconnect'!AD283*'COM-Appliance class'!$D88+'COM S curve-disconnect'!AD304*'COM-Appliance class'!$E88","v":46256.707470339374},{"$f":"AE241*'COM-Appliance class'!$B88+'COM S curve-disconnect'!AE262*'COM-Appliance class'!$C88+'COM S curve-disconnect'!AE283*'COM-Appliance class'!$D88+'COM S curve-disconnect'!AE304*'COM-Appliance class'!$E88","v":46751.984070732731},{"$f":"AF241*'COM-Appliance class'!$B88+'COM S curve-disconnect'!AF262*'COM-Appliance class'!$C88+'COM S curve-disconnect'!AF283*'COM-Appliance class'!$D88+'COM S curve-disconnect'!AF304*'COM-Appliance class'!$E88","v":47673.627134254843},{"$f":"AG241*'COM-Appliance class'!$B88+'COM S curve-disconnect'!AG262*'COM-Appliance class'!$C88+'COM S curve-disconnect'!AG283*'COM-Appliance class'!$D88+'COM S curve-disconnect'!AG304*'COM-Appliance class'!$E88","v":47717.905773787315},{"$f":"AH241*'COM-Appliance class'!$B88+'COM S curve-disconnect'!AH262*'COM-Appliance class'!$C88+'COM S curve-disconnect'!AH283*'COM-Appliance class'!$D88+'COM S curve-disconnect'!AH304*'COM-Appliance class'!$E88","v":48684.730853638124},{"$f":"AI241*'COM-Appliance class'!$B88+'COM S curve-disconnect'!AI262*'COM-Appliance class'!$C88+'COM S curve-disconnect'!AI283*'COM-Appliance class'!$D88+'COM S curve-disconnect'!AI304*'COM-Appliance class'!$E88","v":48746.949343686254},{"$f":"AJ241*'COM-Appliance class'!$B88+'COM S curve-disconnect'!AJ262*'COM-Appliance class'!$C88+'COM S curve-disconnect'!AJ283*'COM-Appliance class'!$D88+'COM S curve-disconnect'!AJ304*'COM-Appliance class'!$E88","v":48809.080097894897},{"$f":"AK241*'COM-Appliance class'!$B88+'COM S curve-disconnect'!AK262*'COM-Appliance class'!$C88+'COM S curve-disconnect'!AK283*'COM-Appliance class'!$D88+'COM S curve-disconnect'!AK304*'COM-Appliance class'!$E88","v":48871.12365539922},{"$f":"AL241*'COM-Appliance class'!$B88+'COM S curve-disconnect'!AL262*'COM-Appliance class'!$C88+'COM S curve-disconnect'!AL283*'COM-Appliance class'!$D88+'COM S curve-disconnect'!AL304*'COM-Appliance class'!$E88","v":48933.080551987805},{"$f":"AM241*'COM-Appliance class'!$B88+'COM S curve-disconnect'!AM262*'COM-Appliance class'!$C88+'COM S curve-disconnect'!AM283*'COM-Appliance class'!$D88+'COM S curve-disconnect'!AM304*'COM-Appliance class'!$E88","v":48994.951320123786},{"$f":"AN241*'COM-Appliance class'!$B88+'COM S curve-disconnect'!AN262*'COM-Appliance class'!$C88+'COM S curve-disconnect'!AN283*'COM-Appliance class'!$D88+'COM S curve-disconnect'!AN304*'COM-Appliance class'!$E88","v":49056.736488965544},{"$f":"AO241*'COM-Appliance class'!$B88+'COM S curve-disconnect'!AO262*'COM-Appliance class'!$C88+'COM S curve-disconnect'!AO283*'COM-Appliance class'!$D88+'COM S curve-disconnect'!AO304*'COM-Appliance class'!$E88","v":49118.436584387855},{"$f":"AP241*'COM-Appliance class'!$B88+'COM S curve-disconnect'!AP262*'COM-Appliance class'!$C88+'COM S curve-disconnect'!AP283*'COM-Appliance class'!$D88+'COM S curve-disconnect'!AP304*'COM-Appliance class'!$E88","v":49180.052129002244},{"$f":"AQ241*'COM-Appliance class'!$B88+'COM S curve-disconnect'!AQ262*'COM-Appliance class'!$C88+'COM S curve-disconnect'!AQ283*'COM-Appliance class'!$D88+'COM S curve-disconnect'!AQ304*'COM-Appliance class'!$E88","v":49241.583642177844},{"$f":"AR241*'COM-Appliance class'!$B88+'COM S curve-disconnect'!AR262*'COM-Appliance class'!$C88+'COM S curve-disconnect'!AR283*'COM-Appliance class'!$D88+'COM S curve-disconnect'!AR304*'COM-Appliance class'!$E88","v":49303.031640061527},{"$f":"AS241*'COM-Appliance class'!$B88+'COM S curve-disconnect'!AS262*'COM-Appliance class'!$C88+'COM S curve-disconnect'!AS283*'COM-Appliance class'!$D88+'COM S curve-disconnect'!AS304*'COM-Appliance class'!$E88","v":49364.396635598459},{"$f":"AT241*'COM-Appliance class'!$B88+'COM S curve-disconnect'!AT262*'COM-Appliance class'!$C88+'COM S curve-disconnect'!AT283*'COM-Appliance class'!$D88+'COM S curve-disconnect'!AT304*'COM-Appliance class'!$E88","v":49425.679138551954},{"$f":"AU241*'COM-Appliance class'!$B88+'COM S curve-disconnect'!AU262*'COM-Appliance class'!$C88+'COM S curve-disconnect'!AU283*'COM-Appliance class'!$D88+'COM S curve-disconnect'!AU304*'COM-Appliance class'!$E88","v":49486.879655523837},{"$f":"AV241*'COM-Appliance class'!$B88+'COM S curve-disconnect'!AV262*'COM-Appliance class'!$C88+'COM S curve-disconnect'!AV283*'COM-Appliance class'!$D88+'COM S curve-disconnect'!AV304*'COM-Appliance class'!$E88","v":49547.998689974054},{"$f":"AW241*'COM-Appliance class'!$B88+'COM S curve-disconnect'!AW262*'COM-Appliance class'!$C88+'COM S curve-disconnect'!AW283*'COM-Appliance class'!$D88+'COM S curve-disconnect'!AW304*'COM-Appliance class'!$E88","v":49609.0367422407},{"$f":"AX241*'COM-Appliance class'!$B88+'COM S curve-disconnect'!AX262*'COM-Appliance class'!$C88+'COM S curve-disconnect'!AX283*'COM-Appliance class'!$D88+'COM S curve-disconnect'!AX304*'COM-Appliance class'!$E88","v":49669.994309559421},{"$f":"AY241*'COM-Appliance class'!$B88+'COM S curve-disconnect'!AY262*'COM-Appliance class'!$C88+'COM S curve-disconnect'!AY283*'COM-Appliance class'!$D88+'COM S curve-disconnect'!AY304*'COM-Appliance class'!$E88","v":49730.871886083194},{"$f":"AZ241*'COM-Appliance class'!$B88+'COM S curve-disconnect'!AZ262*'COM-Appliance class'!$C88+'COM S curve-disconnect'!AZ283*'COM-Appliance class'!$D88+'COM S curve-disconnect'!AZ304*'COM-Appliance class'!$E88","v":49791.669962901477},{"$f":"BA241*'COM-Appliance class'!$B88+'COM S curve-disconnect'!BA262*'COM-Appliance class'!$C88+'COM S curve-disconnect'!BA283*'COM-Appliance class'!$D88+'COM S curve-disconnect'!BA304*'COM-Appliance class'!$E88","v":49852.389028059813},{"$f":"BB241*'COM-Appliance class'!$B88+'COM S curve-disconnect'!BB262*'COM-Appliance class'!$C88+'COM S curve-disconnect'!BB283*'COM-Appliance class'!$D88+'COM S curve-disconnect'!BB304*'COM-Appliance class'!$E88","v":49913.029566578502},{"$f":"BC241*'COM-Appliance class'!$B88+'COM S curve-disconnect'!BC262*'COM-Appliance class'!$C88+'COM S curve-disconnect'!BC283*'COM-Appliance class'!$D88+'COM S curve-disconnect'!BC304*'COM-Appliance class'!$E88","v":49973.592060472234},{"$f":"BD241*'COM-Appliance class'!$B88+'COM S curve-disconnect'!BD262*'COM-Appliance class'!$C88+'COM S curve-disconnect'!BD283*'COM-Appliance class'!$D88+'COM S curve-disconnect'!BD304*'COM-Appliance class'!$E88","v":50034.076988768444},{"$f":"BE241*'COM-Appliance class'!$B88+'COM S curve-disconnect'!BE262*'COM-Appliance class'!$C88+'COM S curve-disconnect'!BE283*'COM-Appliance class'!$D88+'COM S curve-disconnect'!BE304*'COM-Appliance class'!$E88","v":50094.484827526554},{"$f":"BF241*'COM-Appliance class'!$B88+'COM S curve-disconnect'!BF262*'COM-Appliance class'!$C88+'COM S curve-disconnect'!BF283*'COM-Appliance class'!$D88+'COM S curve-disconnect'!BF304*'COM-Appliance class'!$E88","v":50154.816049856308},{"$f":"BG241*'COM-Appliance class'!$B88+'COM S curve-disconnect'!BG262*'COM-Appliance class'!$C88+'COM S curve-disconnect'!BG283*'COM-Appliance class'!$D88+'COM S curve-disconnect'!BG304*'COM-Appliance class'!$E88","v":50215.071125936542},{"$f":"BH241*'COM-Appliance class'!$B88+'COM S curve-disconnect'!BH262*'COM-Appliance class'!$C88+'COM S curve-disconnect'!BH283*'COM-Appliance class'!$D88+'COM S curve-disconnect'!BH304*'COM-Appliance class'!$E88","v":50275.250523033537},{"$f":"BI241*'COM-Appliance class'!$B88+'COM S curve-disconnect'!BI262*'COM-Appliance class'!$C88+'COM S curve-disconnect'!BI283*'COM-Appliance class'!$D88+'COM S curve-disconnect'!BI304*'COM-Appliance class'!$E88","v":50335.354705519407},{"$f":"BJ241*'COM-Appliance class'!$B88+'COM S curve-disconnect'!BJ262*'COM-Appliance class'!$C88+'COM S curve-disconnect'!BJ283*'COM-Appliance class'!$D88+'COM S curve-disconnect'!BJ304*'COM-Appliance class'!$E88","v":50395.384134890133},{"$f":"BK241*'COM-Appliance class'!$B88+'COM S curve-disconnect'!BK262*'COM-Appliance class'!$C88+'COM S curve-disconnect'!BK283*'COM-Appliance class'!$D88+'COM S curve-disconnect'!BK304*'COM-Appliance class'!$E88","v":50455.339269783937},{"$f":"BL241*'COM-Appliance class'!$B88+'COM S curve-disconnect'!BL262*'COM-Appliance class'!$C88+'COM S curve-disconnect'!BL283*'COM-Appliance class'!$D88+'COM S curve-disconnect'!BL304*'COM-Appliance class'!$E88","v":50515.220565998941},{"$f":"BM241*'COM-Appliance class'!$B88+'COM S curve-disconnect'!BM262*'COM-Appliance class'!$C88+'COM S curve-disconnect'!BM283*'COM-Appliance class'!$D88+'COM S curve-disconnect'!BM304*'COM-Appliance class'!$E88","v":50575.028476511347},{"$f":"BN241*'COM-Appliance class'!$B88+'COM S curve-disconnect'!BN262*'COM-Appliance class'!$C88+'COM S curve-disconnect'!BN283*'COM-Appliance class'!$D88+'COM S curve-disconnect'!BN304*'COM-Appliance class'!$E88","v":50634.76345149285},{"$f":"BO241*'COM-Appliance class'!$B88+'COM S curve-disconnect'!BO262*'COM-Appliance class'!$C88+'COM S curve-disconnect'!BO283*'COM-Appliance class'!$D88+'COM S curve-disconnect'!BO304*'COM-Appliance class'!$E88","v":50694.425938328583},{"$f":"BP241*'COM-Appliance class'!$B88+'COM S curve-disconnect'!BP262*'COM-Appliance class'!$C88+'COM S curve-disconnect'!BP283*'COM-Appliance class'!$D88+'COM S curve-disconnect'!BP304*'COM-Appliance class'!$E88","v":50754.016381634399},{"$f":"BQ241*'COM-Appliance class'!$B88+'COM S curve-disconnect'!BQ262*'COM-Appliance class'!$C88+'COM S curve-disconnect'!BQ283*'COM-Appliance class'!$D88+'COM S curve-disconnect'!BQ304*'COM-Appliance class'!$E88","v":50813.535223274477},{"$f":"BR241*'COM-Appliance class'!$B88+'COM S curve-disconnect'!BR262*'COM-Appliance class'!$C88+'COM S curve-disconnect'!BR283*'COM-Appliance class'!$D88+'COM S curve-disconnect'!BR304*'COM-Appliance class'!$E88","v":50872.982902378455},{"$f":"BS241*'COM-Appliance class'!$B88+'COM S curve-disconnect'!BS262*'COM-Appliance class'!$C88+'COM S curve-disconnect'!BS283*'COM-Appliance class'!$D88+'COM S curve-disconnect'!BS304*'COM-Appliance class'!$E88","v":50932.35985535878},{"$f":"BT241*'COM-Appliance class'!$B88+'COM S curve-disconnect'!BT262*'COM-Appliance class'!$C88+'COM S curve-disconnect'!BT283*'COM-Appliance class'!$D88+'COM S curve-disconnect'!BT304*'COM-Appliance class'!$E88","v":50991.666515927587},{"$f":"BU241*'COM-Appliance class'!$B88+'COM S curve-disconnect'!BU262*'COM-Appliance class'!$C88+'COM S curve-disconnect'!BU283*'COM-Appliance class'!$D88+'COM S curve-disconnect'!BU304*'COM-Appliance class'!$E88","v":51050.903315113959},{"$f":"BV241*'COM-Appliance class'!$B88+'COM S curve-disconnect'!BV262*'COM-Appliance class'!$C88+'COM S curve-disconnect'!BV283*'COM-Appliance class'!$D88+'COM S curve-disconnect'!BV304*'COM-Appliance class'!$E88","v":51110.070681280456},{"$f":"BW241*'COM-Appliance class'!$B88+'COM S curve-disconnect'!BW262*'COM-Appliance class'!$C88+'COM S curve-disconnect'!BW283*'COM-Appliance class'!$D88+'COM S curve-disconnect'!BW304*'COM-Appliance class'!$E88","v":51169.169040140274},{"$f":"BX241*'COM-Appliance class'!$B88+'COM S curve-disconnect'!BX262*'COM-Appliance class'!$C88+'COM S curve-disconnect'!BX283*'COM-Appliance class'!$D88+'COM S curve-disconnect'!BX304*'COM-Appliance class'!$E88","v":51228.19881477335},{"$f":"BY241*'COM-Appliance class'!$B88+'COM S curve-disconnect'!BY262*'COM-Appliance class'!$C88+'COM S curve-disconnect'!BY283*'COM-Appliance class'!$D88+'COM S curve-disconnect'!BY304*'COM-Appliance class'!$E88","v":51287.160425643597},{"$f":"BZ241*'COM-Appliance class'!$B88+'COM S curve-disconnect'!BZ262*'COM-Appliance class'!$C88+'COM S curve-disconnect'!BZ283*'COM-Appliance class'!$D88+'COM S curve-disconnect'!BZ304*'COM-Appliance class'!$E88","v":51346.054290614658},{"$f":"CA241*'COM-Appliance class'!$B88+'COM S curve-disconnect'!CA262*'COM-Appliance class'!$C88+'COM S curve-disconnect'!CA283*'COM-Appliance class'!$D88+'COM S curve-disconnect'!CA304*'COM-Appliance class'!$E88","v":51404.880824966836},{"$f":"CB241*'COM-Appliance class'!$B88+'COM S curve-disconnect'!CB262*'COM-Appliance class'!$C88+'COM S curve-disconnect'!CB283*'COM-Appliance class'!$D88+'COM S curve-disconnect'!CB304*'COM-Appliance class'!$E88","v":51463.640441412848},{"$f":"CC241*'COM-Appliance class'!$B88+'COM S curve-disconnect'!CC262*'COM-Appliance class'!$C88+'COM S curve-disconnect'!CC283*'COM-Appliance class'!$D88+'COM S curve-disconnect'!CC304*'COM-Appliance class'!$E88","v":51522.333550114359},{"$f":"CD241*'COM-Appliance class'!$B88+'COM S curve-disconnect'!CD262*'COM-Appliance class'!$C88+'COM S curve-disconnect'!CD283*'COM-Appliance class'!$D88+'COM S curve-disconnect'!CD304*'COM-Appliance class'!$E88","v":51580.960558697647}]
["Whitehorse (C)",null,{"$f":"C242*'COM-Appliance class'!$B89+'COM S curve-disconnect'!C263*'COM-Appliance class'!$C89+'COM S curve-disconnect'!C284*'COM-Appliance class'!$D89+'COM S curve-disconnect'!C305*'COM-Appliance class'!$E89","v":21589.262698400442},{"$f":"D242*'COM-Appliance class'!$B89+'COM S curve-disconnect'!D263*'COM-Appliance class'!$C89+'COM S curve-disconnect'!D284*'COM-Appliance class'!$D89+'COM S curve-disconnect'!D305*'COM-Appliance class'!$E89","v":26535.988989477148},{"$f":"E242*'COM-Appliance class'!$B89+'COM S curve-disconnect'!E263*'COM-Appliance class'!$C89+'COM S curve-disconnect'!E284*'COM-Appliance class'!$D89+'COM S curve-disconnect'!E305*'COM-Appliance class'!$E89","v":23580.447373726987},{"$f":"F242*'COM-Appliance class'!$B89+'COM S curve-disconnect'!F263*'COM-Appliance class'!$C89+'COM S curve-disconnect'!F284*'COM-Appliance class'!$D89+'COM S curve-disconnect'!F305*'COM-Appliance class'!$E89","v":26230.60409287392},{"$f":"G242*'COM-Appliance class'!$B89+'COM S curve-disconnect'!G263*'COM-Appliance class'!$C89+'COM S curve-disconnect'!G284*'COM-Appliance class'!$D89+'COM S curve-disconnect'!G305*'COM-Appliance class'!$E89","v":23094.396099619189},{"$f":"H242*'COM-Appliance class'!$B89+'COM S curve-disconnect'!H263*'COM-Appliance class'!$C89+'COM S curve-disconnect'!H284*'COM-Appliance class'!$D89+'COM S curve-disconnect'!H305*'COM-Appliance class'!$E89","v":23706.921854588843},{"$f":"I242*'COM-Appliance class'!$B89+'COM S curve-disconnect'!I263*'COM-Appliance class'!$C89+'COM S curve-disconnect'!I284*'COM-Appliance class'!$D89+'COM S curve-disconnect'!I305*'COM-Appliance class'!$E89","v":27492.805543821254},{"$f":"J242*'COM-Appliance class'!$B89+'COM S curve-disconnect'!J263*'COM-Appliance class'!$C89+'COM S curve-disconnect'!J284*'COM-Appliance class'!$D89+'COM S curve-disconnect'!J305*'COM-Appliance class'!$E89","v":30254.073204540207},{"$f":"K242*'COM-Appliance class'!$B89+'COM S curve-disconnect'!K263*'COM-Appliance class'!$C89+'COM S curve-disconnect'!K284*'COM-Appliance class'!$D89+'COM S curve-disconnect'!K305*'COM-Appliance class'!$E89","v":36218.166762170309},{"$f":"L242*'COM-Appliance class'!$B89+'COM S curve-disconnect'!L263*'COM-Appliance class'!$C89+'COM S curve-disconnect'!L284*'COM-Appliance class'!$D89+'COM S curve-disconnect'!L305*'COM-Appliance class'!$E89","v":35910.481673624832},{"$f":"M242*'COM-Appliance class'!$B89+'COM S curve-disconnect'!M263*'COM-Appliance class'!$C89+'COM S curve-disconnect'!M284*'COM-Appliance class'!$D89+'COM S curve-disconnect'!M305*'COM-Appliance class'!$E89","v":29178.505397895613},{"$f":"N242*'COM-Appliance class'!$B89+'COM S curve-disconnect'!N263*'COM-Appliance class'!$C89+'COM S curve-disconnect'!N284*'COM-Appliance class'!$D89+'COM S curve-disconnect'!N305*'COM-Appliance class'!$E89","v":29042.26924187952},{"$f":"O242*'COM-Appliance class'!$B89+'COM S curve-disconnect'!O263*'COM-Appliance class'!$C89+'COM S curve-disconnect'!O284*'COM-Appliance class'!$D89+'COM S curve-disconnect'!O305*'COM-Appliance class'!$E89","v":33050.111815310258},{"$f":"P242*'COM-Appliance class'!$B89+'COM S curve-disconnect'!P263*'COM-Appliance class'!$C89+'COM S curve-disconnect'!P284*'COM-Appliance class'!$D89+'COM S curve-disconnect'!P305*'COM-Appliance class'!$E89","v":36929.169785545702},{"$f":"Q242*'COM-Appliance class'!$B89+'COM S curve-disconnect'!Q263*'COM-Appliance class'!$C89+'COM S curve-disconnect'!Q284*'COM-Appliance class'!$D89+'COM S curve-disconnect'!Q305*'COM-Appliance class'!$E89","v":25714.721534428238},{"$f":"R242*'COM-Appliance class'!$B89+'COM S curve-disconnect'!R263*'COM-Appliance class'!$C89+'COM S curve-disconnect'!R284*'COM-Appliance class'!$D89+'COM S curve-disconnect'!R305*'COM-Appliance class'!$E89","v":27315.020177373615},{"$f":"S242*'COM-Appliance class'!$B89+'COM S curve-disconnect'!S263*'COM-Appliance class'!$C89+'COM S curve-disconnect'!S284*'COM-Appliance class'!$D89+'COM S curve-disconnect'!S305*'COM-Appliance class'!$E89","v":29689.539353245094},{"$f":"T242*'COM-Appliance class'!$B89+'COM S curve-disconnect'!T263*'COM-Appliance class'!$C89+'COM S curve-disconnect'!T284*'COM-Appliance class'!$D89+'COM S curve-disconnect'!T305*'COM-Appliance class'!$E89","v":33165.526539300554},{"$f":"U242*'COM-Appliance class'!$B89+'COM S curve-disconnect'!U263*'COM-Appliance class'!$C89+'COM S curve-disconnect'!U284*'COM-Appliance class'!$D89+'COM S curve-disconnect'!U305*'COM-Appliance class'!$E89","v":35752.136802121437},{"$f":"V242*'COM-Appliance class'!$B89+'COM S curve-disconnect'!V263*'COM-Appliance class'!$C89+'COM S curve-disconnect'!V284*'COM-Appliance class'!$D89+'COM S curve-disconnect'!V305*'COM-Appliance class'!$E89","v":36701.269993143265},{"$f":"W242*'COM-Appliance class'!$B89+'COM S curve-disconnect'!W263*'COM-Appliance class'!$C89+'COM S curve-disconnect'!W284*'COM-Appliance class'!$D89+'COM S curve-disconnect'!W305*'COM-Appliance class'!$E89","v":38247.61109498416},{"$f":"X242*'COM-Appliance class'!$B89+'COM S curve-disconnect'!X263*'COM-Appliance class'!$C89+'COM S curve-disconnect'!X284*'COM-Appliance class'!$D89+'COM S curve-disconnect'!X305*'COM-Appliance class'!$E89","v":42078.74049028477},{"$f":"Y242*'COM-Appliance class'!$B89+'COM S curve-disconnect'!Y263*'COM-Appliance class'!$C89+'COM S curve-disconnect'!Y284*'COM-Appliance class'!$D89+'COM S curve-disconnect'!Y305*'COM-Appliance class'!$E89","v":45261.874968647004},{"$f":"Z242*'COM-Appliance class'!$B89+'COM S curve-disconnect'!Z263*'COM-Appliance class'!$C89+'COM S curve-disconnect'!Z284*'COM-Appliance class'!$D89+'COM S curve-disconnect'!Z305*'COM-Appliance class'!$E89","v":47058.997831877656},{"$f":"AA242*'COM-Appliance class'!$B89+'COM S curve-disconnect'!AA263*'COM-Appliance class'!$C89+'COM S curve-disconnect'!AA284*'COM-Appliance class'!$D89+'COM S curve-disconnect'!AA305*'COM-Appliance class'!$E89","v":49101.111079283233},{"$f":"AB242*'COM-Appliance class'!$B89+'COM S curve-disconnect'!AB263*'COM-Appliance class'!$C89+'COM S curve-disconnect'!AB284*'COM-Appliance class'!$D89+'COM S curve-disconnect'!AB305*'COM-Appliance class'!$E89","v":50382.371524452421},{"$f":"AC242*'COM-Appliance class'!$B89+'COM S curve-disconnect'!AC263*'COM-Appliance class'!$C89+'COM S curve-disconnect'!AC284*'COM-Appliance class'!$D89+'COM S curve-disconnect'!AC305*'COM-Appliance class'!$E89","v":51309.795356230883},{"$f":"AD242*'COM-Appliance class'!$B89+'COM S curve-disconnect'!AD263*'COM-Appliance class'!$C89+'COM S curve-disconnect'!AD284*'COM-Appliance class'!$D89+'COM S curve-disconnect'!AD305*'COM-Appliance class'!$E89","v":51973.833111011758},{"$f":"AE242*'COM-Appliance class'!$B89+'COM S curve-disconnect'!AE263*'COM-Appliance class'!$C89+'COM S curve-disconnect'!AE284*'COM-Appliance class'!$D89+'COM S curve-disconnect'!AE305*'COM-Appliance class'!$E89","v":52530.323721354893},{"$f":"AF242*'COM-Appliance class'!$B89+'COM S curve-disconnect'!AF263*'COM-Appliance class'!$C89+'COM S curve-disconnect'!AF284*'COM-Appliance class'!$D89+'COM S curve-disconnect'!AF305*'COM-Appliance class'!$E89","v":53565.877814826308},{"$f":"AG242*'COM-Appliance class'!$B89+'COM S curve-disconnect'!AG263*'COM-Appliance class'!$C89+'COM S curve-disconnect'!AG284*'COM-Appliance class'!$D89+'COM S curve-disconnect'!AG305*'COM-Appliance class'!$E89","v":53615.629099500409},{"$f":"AH242*'COM-Appliance class'!$B89+'COM S curve-disconnect'!AH263*'COM-Appliance class'!$C89+'COM S curve-disconnect'!AH284*'COM-Appliance class'!$D89+'COM S curve-disconnect'!AH305*'COM-Appliance class'!$E89","v":54701.949507841782},{"$f":"AI242*'COM-Appliance class'!$B89+'COM S curve-disconnect'!AI263*'COM-Appliance class'!$C89+'COM S curve-disconnect'!AI284*'COM-Appliance class'!$D89+'COM S curve-disconnect'!AI305*'COM-Appliance class'!$E89","v":54771.857929669131},{"$f":"AJ242*'COM-Appliance class'!$B89+'COM S curve-disconnect'!AJ263*'COM-Appliance class'!$C89+'COM S curve-disconnect'!AJ284*'COM-Appliance class'!$D89+'COM S curve-disconnect'!AJ305*'COM-Appliance class'!$E89","v":54841.667771893015},{"$f":"AK242*'COM-Appliance class'!$B89+'COM S curve-disconnect'!AK263*'COM-Appliance class'!$C89+'COM S curve-disconnect'!AK284*'COM-Appliance class'!$D89+'COM S curve-disconnect'!AK305*'COM-Appliance class'!$E89","v":54911.379640283369},{"$f":"AL242*'COM-Appliance class'!$B89+'COM S curve-disconnect'!AL263*'COM-Appliance class'!$C89+'COM S curve-disconnect'!AL284*'COM-Appliance class'!$D89+'COM S curve-disconnect'!AL305*'COM-Appliance class'!$E89","v":54980.994136849869},{"$f":"AM242*'COM-Appliance class'!$B89+'COM S curve-disconnect'!AM263*'COM-Appliance class'!$C89+'COM S curve-disconnect'!AM284*'COM-Appliance class'!$D89+'COM S curve-disconnect'!AM305*'COM-Appliance class'!$E89","v":55050.51185986575},{"$f":"AN242*'COM-Appliance class'!$B89+'COM S curve-disconnect'!AN263*'COM-Appliance class'!$C89+'COM S curve-disconnect'!AN284*'COM-Appliance class'!$D89+'COM S curve-disconnect'!AN305*'COM-Appliance class'!$E89","v":55119.933403891046},{"$f":"AO242*'COM-Appliance class'!$B89+'COM S curve-disconnect'!AO263*'COM-Appliance class'!$C89+'COM S curve-disconnect'!AO284*'COM-Appliance class'!$D89+'COM S curve-disconnect'!AO305*'COM-Appliance class'!$E89","v":55189.259359796328},{"$f":"AP242*'COM-Appliance class'!$B89+'COM S curve-disconnect'!AP263*'COM-Appliance class'!$C89+'COM S curve-disconnect'!AP284*'COM-Appliance class'!$D89+'COM S curve-disconnect'!AP305*'COM-Appliance class'!$E89","v":55258.490314785631},{"$f":"AQ242*'COM-Appliance class'!$B89+'COM S curve-disconnect'!AQ263*'COM-Appliance class'!$C89+'COM S curve-disconnect'!AQ284*'COM-Appliance class'!$D89+'COM S curve-disconnect'!AQ305*'COM-Appliance class'!$E89","v":55327.626852419817},{"$f":"AR242*'COM-Appliance class'!$B89+'COM S curve-disconnect'!AR263*'COM-Appliance class'!$C89+'COM S curve-disconnect'!AR284*'COM-Appliance class'!$D89+'COM S curve-disconnect'!AR305*'COM-Appliance class'!$E89","v":55396.669552639243},{"$f":"AS242*'COM-Appliance class'!$B89+'COM S curve-disconnect'!AS263*'COM-Appliance class'!$C89+'COM S curve-disconnect'!AS284*'COM-Appliance class'!$D89+'COM S curve-disconnect'!AS305*'COM-Appliance class'!$E89","v":55465.618991786847},{"$f":"AT242*'COM-Appliance class'!$B89+'COM S curve-disconnect'!AT263*'COM-Appliance class'!$C89+'COM S curve-disconnect'!AT284*'COM-Appliance class'!$D89+'COM S curve-disconnect'!AT305*'COM-Appliance class'!$E89","v":55534.475742630428},{"$f":"AU242*'COM-Appliance class'!$B89+'COM S curve-disconnect'!AU263*'COM-Appliance class'!$C89+'COM S curve-disconnect'!AU284*'COM-Appliance class'!$D89+'COM S curve-disconnect'!AU305*'COM-Appliance class'!$E89","v":55603.240374385598},{"$f":"AV242*'COM-Appliance class'!$B89+'COM S curve-disconnect'!AV263*'COM-Appliance class'!$C89+'COM S curve-disconnect'!AV284*'COM-Appliance class'!$D89+'COM S curve-disconnect'!AV305*'COM-Appliance class'!$E89","v":55671.913452737717},{"$f":"AW242*'COM-Appliance class'!$B89+'COM S curve-disconnect'!AW263*'COM-Appliance class'!$C89+'COM S curve-disconnect'!AW284*'COM-Appliance class'!$D89+'COM S curve-disconnect'!AW305*'COM-Appliance class'!$E89","v":55740.495539864482},{"$f":"AX242*'COM-Appliance class'!$B89+'COM S curve-disconnect'!AX263*'COM-Appliance class'!$C89+'COM S curve-disconnect'!AX284*'COM-Appliance class'!$D89+'COM S curve-disconnect'!AX305*'COM-Appliance class'!$E89","v":55808.987194457673},{"$f":"AY242*'COM-Appliance class'!$B89+'COM S curve-disconnect'!AY263*'COM-Appliance class'!$C89+'COM S curve-disconnect'!AY284*'COM-Appliance class'!$D89+'COM S curve-disconnect'!AY305*'COM-Appliance class'!$E89","v":55877.388971745386},{"$f":"AZ242*'COM-Appliance class'!$B89+'COM S curve-disconnect'!AZ263*'COM-Appliance class'!$C89+'COM S curve-disconnect'!AZ284*'COM-Appliance class'!$D89+'COM S curve-disconnect'!AZ305*'COM-Appliance class'!$E89","v":55945.701423513616},{"$f":"BA242*'COM-Appliance class'!$B89+'COM S curve-disconnect'!BA263*'COM-Appliance class'!$C89+'COM S curve-disconnect'!BA284*'COM-Appliance class'!$D89+'COM S curve-disconnect'!BA305*'COM-Appliance class'!$E89","v":56013.925098128122},{"$f":"BB242*'COM-Appliance class'!$B89+'COM S curve-disconnect'!BB263*'COM-Appliance class'!$C89+'COM S curve-disconnect'!BB284*'COM-Appliance class'!$D89+'COM S curve-disconnect'!BB305*'COM-Appliance class'!$E89","v":56082.060540555656},{"$f":"BC242*'COM-Appliance class'!$B89+'COM S curve-disconnect'!BC263*'COM-Appliance class'!$C89+'COM S curve-disconnect'!BC284*'COM-Appliance class'!$D89+'COM S curve-disconnect'!BC305*'COM-Appliance class'!$E89","v":56150.108292385761},{"$f":"BD242*'COM-Appliance class'!$B89+'COM S curve-disconnect'!BD263*'COM-Appliance class'!$C89+'COM S curve-disconnect'!BD284*'COM-Appliance class'!$D89+'COM S curve-disconnect'!BD305*'COM-Appliance class'!$E89","v":56218.068891851566},{"$f":"BE242*'COM-Appliance class'!$B89+'COM S curve-disconnect'!BE263*'COM-Appliance class'!$C89+'COM S curve-disconnect'!BE284*'COM-Appliance class'!$D89+'COM S curve-disconnect'!BE305*'COM-Appliance class'!$E89","v":56285.942873851345},{"$f":"BF242*'COM-Appliance class'!$B89+'COM S curve-disconnect'!BF263*'COM-Appliance class'!$C89+'COM S curve-disconnect'!BF284*'COM-Appliance class'!$D89+'COM S curve-disconnect'!BF305*'COM-Appliance class'!$E89","v":56353.73076996913},{"$f":"BG242*'COM-Appliance class'!$B89+'COM S curve-disconnect'!BG263*'COM-Appliance class'!$C89+'COM S curve-disconnect'!BG284*'COM-Appliance class'!$D89+'COM S curve-disconnect'!BG305*'COM-Appliance class'!$E89","v":56421.433108495781},{"$f":"BH242*'COM-Appliance class'!$B89+'COM S curve-disconnect'!BH263*'COM-Appliance class'!$C89+'COM S curve-disconnect'!BH284*'COM-Appliance class'!$D89+'COM S curve-disconnect'!BH305*'COM-Appliance class'!$E89","v":56489.050414449652},{"$f":"BI242*'COM-Appliance class'!$B89+'COM S curve-disconnect'!BI263*'COM-Appliance class'!$C89+'COM S curve-disconnect'!BI284*'COM-Appliance class'!$D89+'COM S curve-disconnect'!BI305*'COM-Appliance class'!$E89","v":56556.5832095972},{"$f":"BJ242*'COM-Appliance class'!$B89+'COM S curve-disconnect'!BJ263*'COM-Appliance class'!$C89+'COM S curve-disconnect'!BJ284*'COM-Appliance class'!$D89+'COM S curve-disconnect'!BJ305*'COM-Appliance class'!$E89","v":56624.032012473275},{"$f":"BK242*'COM-Appliance class'!$B89+'COM S curve-disconnect'!BK263*'COM-Appliance class'!$C89+'COM S curve-disconnect'!BK284*'COM-Appliance class'!$D89+'COM S curve-disconnect'!BK305*'COM-Appliance class'!$E89","v":56691.397338401781},{"$f":"BL242*'COM-Appliance class'!$B89+'COM S curve-disconnect'!BL263*'COM-Appliance class'!$C89+'COM S curve-disconnect'!BL284*'COM-Appliance class'!$D89+'COM S curve-disconnect'!BL305*'COM-Appliance class'!$E89","v":56758.679699515458},{"$f":"BM242*'COM-Appliance class'!$B89+'COM S curve-disconnect'!BM263*'COM-Appliance class'!$C89+'COM S curve-disconnect'!BM284*'COM-Appliance class'!$D89+'COM S curve-disconnect'!BM305*'COM-Appliance class'!$E89","v":56825.879604776419},{"$f":"BN242*'COM-Appliance class'!$B89+'COM S curve-disconnect'!BN263*'COM-Appliance class'!$C89+'COM S curve-disconnect'!BN284*'COM-Appliance class'!$D89+'COM S curve-disconnect'!BN305*'COM-Appliance class'!$E89","v":56892.997559995551},{"$f":"BO242*'COM-Appliance class'!$B89+'COM S curve-disconnect'!BO263*'COM-Appliance class'!$C89+'COM S curve-disconnect'!BO284*'COM-Appliance class'!$D89+'COM S curve-disconnect'!BO305*'COM-Appliance class'!$E89","v":56960.034067852859},{"$f":"BP242*'COM-Appliance class'!$B89+'COM S curve-disconnect'!BP263*'COM-Appliance class'!$C89+'COM S curve-disconnect'!BP284*'COM-Appliance class'!$D89+'COM S curve-disconnect'!BP305*'COM-Appliance class'!$E89","v":57026.98962791673},{"$f":"BQ242*'COM-Appliance class'!$B89+'COM S curve-disconnect'!BQ263*'COM-Appliance class'!$C89+'COM S curve-disconnect'!BQ284*'COM-Appliance class'!$D89+'COM S curve-disconnect'!BQ305*'COM-Appliance class'!$E89","v":57093.864736663862},{"$f":"BR242*'COM-Appliance class'!$B89+'COM S curve-disconnect'!BR263*'COM-Appliance class'!$C89+'COM S curve-disconnect'!BR284*'COM-Appliance class'!$D89+'COM S curve-disconnect'!BR305*'COM-Appliance class'!$E89","v":57160.659887498317},{"$f":"BS242*'COM-Appliance class'!$B89+'COM S curve-disconnect'!BS263*'COM-Appliance class'!$C89+'COM S curve-disconnect'!BS284*'COM-Appliance class'!$D89+'COM S curve-disconnect'!BS305*'COM-Appliance class'!$E89","v":57227.375570771241},{"$f":"BT242*'COM-Appliance class'!$B89+'COM S curve-disconnect'!BT263*'COM-Appliance class'!$C89+'COM S curve-disconnect'!BT284*'COM-Appliance class'!$D89+'COM S curve-disconnect'!BT305*'COM-Appliance class'!$E89","v":57294.012273799694},{"$f":"BU242*'COM-Appliance class'!$B89+'COM S curve-disconnect'!BU263*'COM-Appliance class'!$C89+'COM S curve-disconnect'!BU284*'COM-Appliance class'!$D89+'COM S curve-disconnect'!BU305*'COM-Appliance class'!$E89","v":57360.570480886032},{"$f":"BV242*'COM-Appliance class'!$B89+'COM S curve-disconnect'!BV263*'COM-Appliance class'!$C89+'COM S curve-disconnect'!BV284*'COM-Appliance class'!$D89+'COM S curve-disconnect'!BV305*'COM-Appliance class'!$E89","v":57427.050673336562},{"$f":"BW242*'COM-Appliance class'!$B89+'COM S curve-disconnect'!BW263*'COM-Appliance class'!$C89+'COM S curve-disconnect'!BW284*'COM-Appliance class'!$D89+'COM S curve-disconnect'!BW305*'COM-Appliance class'!$E89","v":57493.453329480719},{"$f":"BX242*'COM-Appliance class'!$B89+'COM S curve-disconnect'!BX263*'COM-Appliance class'!$C89+'COM S curve-disconnect'!BX284*'COM-Appliance class'!$D89+'COM S curve-disconnect'!BX305*'COM-Appliance class'!$E89","v":57559.778924689337},{"$f":"BY242*'COM-Appliance class'!$B89+'COM S curve-disconnect'!BY263*'COM-Appliance class'!$C89+'COM S curve-disconnect'!BY284*'COM-Appliance class'!$D89+'COM S curve-disconnect'!BY305*'COM-Appliance class'!$E89","v":57626.027931393735},{"$f":"BZ242*'COM-Appliance class'!$B89+'COM S curve-disconnect'!BZ263*'COM-Appliance class'!$C89+'COM S curve-disconnect'!BZ284*'COM-Appliance class'!$D89+'COM S curve-disconnect'!BZ305*'COM-Appliance class'!$E89","v":57692.200819103717},{"$f":"CA242*'COM-Appliance class'!$B89+'COM S curve-disconnect'!CA263*'COM-Appliance class'!$C89+'COM S curve-disconnect'!CA284*'COM-Appliance class'!$D89+'COM S curve-disconnect'!CA305*'COM-Appliance class'!$E89","v":57758.298054426399},{"$f":"CB242*'COM-Appliance class'!$B89+'COM S curve-disconnect'!CB263*'COM-Appliance class'!$C89+'COM S curve-disconnect'!CB284*'COM-Appliance class'!$D89+'COM S curve-disconnect'!CB305*'COM-Appliance class'!$E89","v":57824.320101083977},{"$f":"CC242*'COM-Appliance class'!$B89+'COM S curve-disconnect'!CC263*'COM-Appliance class'!$C89+'COM S curve-disconnect'!CC284*'COM-Appliance class'!$D89+'COM S curve-disconnect'!CC305*'COM-Appliance class'!$E89","v":57890.267419932272},{"$f":"CD242*'COM-Appliance class'!$B89+'COM S curve-disconnect'!CD263*'COM-Appliance class'!$C89+'COM S curve-disconnect'!CD284*'COM-Appliance class'!$D89+'COM S curve-disconnect'!CD305*'COM-Appliance class'!$E89","v":57956.140468978381}]
["Yarra Ranges (S)",null,{"$f":"C243*'COM-Appliance class'!$B90+'COM S curve-disconnect'!C264*'COM-Appliance class'!$C90+'COM S curve-disconnect'!C285*'COM-Appliance class'!$D90+'COM S curve-disconnect'!C306*'COM-Appliance class'!$E90","v":19605.787681787173},{"$f":"D243*'COM-Appliance class'!$B90+'COM S curve-disconnect'!D264*'COM-Appliance class'!$C90+'COM S curve-disconnect'!D285*'COM-Appliance class'!$D90+'COM S curve-disconnect'!D306*'COM-Appliance class'!$E90","v":24098.042314917839},{"$f":"E243*'COM-Appliance class'!$B90+'COM S curve-disconnect'!E264*'COM-Appliance class'!$C90+'COM S curve-disconnect'!E285*'COM-Appliance class'!$D90+'COM S curve-disconnect'!E306*'COM-Appliance class'!$E90","v":21414.035815363914},{"$f":"F243*'COM-Appliance class'!$B90+'COM S curve-disconnect'!F264*'COM-Appliance class'!$C90+'COM S curve-disconnect'!F285*'COM-Appliance class'!$D90+'COM S curve-disconnect'!F306*'COM-Appliance class'!$E90","v":23820.714111186684},{"$f":"G243*'COM-Appliance class'!$B90+'COM S curve-disconnect'!G264*'COM-Appliance class'!$C90+'COM S curve-disconnect'!G285*'COM-Appliance class'!$D90+'COM S curve-disconnect'!G306*'COM-Appliance class'!$E90","v":20972.639635432046},{"$f":"H243*'COM-Appliance class'!$B90+'COM S curve-disconnect'!H264*'COM-Appliance class'!$C90+'COM S curve-disconnect'!H285*'COM-Appliance class'!$D90+'COM S curve-disconnect'!H306*'COM-Appliance class'!$E90","v":21528.89067880145},{"$f":"I243*'COM-Appliance class'!$B90+'COM S curve-disconnect'!I264*'COM-Appliance class'!$C90+'COM S curve-disconnect'!I285*'COM-Appliance class'!$D90+'COM S curve-disconnect'!I306*'COM-Appliance class'!$E90","v":24966.953054342004},{"$f":"J243*'COM-Appliance class'!$B90+'COM S curve-disconnect'!J264*'COM-Appliance class'!$C90+'COM S curve-disconnect'!J285*'COM-Appliance class'!$D90+'COM S curve-disconnect'!J306*'COM-Appliance class'!$E90","v":27474.534172091437},{"$f":"K243*'COM-Appliance class'!$B90+'COM S curve-disconnect'!K264*'COM-Appliance class'!$C90+'COM S curve-disconnect'!K285*'COM-Appliance class'!$D90+'COM S curve-disconnect'!K306*'COM-Appliance class'!$E90","v":32890.687268133654},{"$f":"L243*'COM-Appliance class'!$B90+'COM S curve-disconnect'!L264*'COM-Appliance class'!$C90+'COM S curve-disconnect'!L285*'COM-Appliance class'!$D90+'COM S curve-disconnect'!L306*'COM-Appliance class'!$E90","v":32611.27019849369},{"$f":"M243*'COM-Appliance class'!$B90+'COM S curve-disconnect'!M264*'COM-Appliance class'!$C90+'COM S curve-disconnect'!M285*'COM-Appliance class'!$D90+'COM S curve-disconnect'!M306*'COM-Appliance class'!$E90","v":26497.782239937591},{"$f":"N243*'COM-Appliance class'!$B90+'COM S curve-disconnect'!N264*'COM-Appliance class'!$C90+'COM S curve-disconnect'!N285*'COM-Appliance class'!$D90+'COM S curve-disconnect'!N306*'COM-Appliance class'!$E90","v":26374.062537845486},{"$f":"O243*'COM-Appliance class'!$B90+'COM S curve-disconnect'!O264*'COM-Appliance class'!$C90+'COM S curve-disconnect'!O285*'COM-Appliance class'!$D90+'COM S curve-disconnect'!O306*'COM-Appliance class'!$E90","v":30013.691720852843},{"$f":"P243*'COM-Appliance class'!$B90+'COM S curve-disconnect'!P264*'COM-Appliance class'!$C90+'COM S curve-disconnect'!P285*'COM-Appliance class'!$D90+'COM S curve-disconnect'!P306*'COM-Appliance class'!$E90","v":33536.368156459663},{"$f":"Q243*'COM-Appliance class'!$B90+'COM S curve-disconnect'!Q264*'COM-Appliance class'!$C90+'COM S curve-disconnect'!Q285*'COM-Appliance class'!$D90+'COM S curve-disconnect'!Q306*'COM-Appliance class'!$E90","v":23352.227342976086},{"$f":"R243*'COM-Appliance class'!$B90+'COM S curve-disconnect'!R264*'COM-Appliance class'!$C90+'COM S curve-disconnect'!R285*'COM-Appliance class'!$D90+'COM S curve-disconnect'!R306*'COM-Appliance class'!$E90","v":24805.501401444224},{"$f":"S243*'COM-Appliance class'!$B90+'COM S curve-disconnect'!S264*'COM-Appliance class'!$C90+'COM S curve-disconnect'!S285*'COM-Appliance class'!$D90+'COM S curve-disconnect'!S306*'COM-Appliance class'!$E90","v":26961.865861816361},{"$f":"T243*'COM-Appliance class'!$B90+'COM S curve-disconnect'!T264*'COM-Appliance class'!$C90+'COM S curve-disconnect'!T285*'COM-Appliance class'!$D90+'COM S curve-disconnect'!T306*'COM-Appliance class'!$E90","v":30118.502922861768},{"$f":"U243*'COM-Appliance class'!$B90+'COM S curve-disconnect'!U264*'COM-Appliance class'!$C90+'COM S curve-disconnect'!U285*'COM-Appliance class'!$D90+'COM S curve-disconnect'!U306*'COM-Appliance class'!$E90","v":32467.47297972969},{"$f":"V243*'COM-Appliance class'!$B90+'COM S curve-disconnect'!V264*'COM-Appliance class'!$C90+'COM S curve-disconnect'!V285*'COM-Appliance class'!$D90+'COM S curve-disconnect'!V306*'COM-Appliance class'!$E90","v":33329.406251137327},{"$f":"W243*'COM-Appliance class'!$B90+'COM S curve-disconnect'!W264*'COM-Appliance class'!$C90+'COM S curve-disconnect'!W285*'COM-Appliance class'!$D90+'COM S curve-disconnect'!W306*'COM-Appliance class'!$E90","v":34733.68002138329},{"$f":"X243*'COM-Appliance class'!$B90+'COM S curve-disconnect'!X264*'COM-Appliance class'!$C90+'COM S curve-disconnect'!X285*'COM-Appliance class'!$D90+'COM S curve-disconnect'!X306*'COM-Appliance class'!$E90","v":38212.831234420431},{"$f":"Y243*'COM-Appliance class'!$B90+'COM S curve-disconnect'!Y264*'COM-Appliance class'!$C90+'COM S curve-disconnect'!Y285*'COM-Appliance class'!$D90+'COM S curve-disconnect'!Y306*'COM-Appliance class'!$E90","v":41103.520908133563},{"$f":"Z243*'COM-Appliance class'!$B90+'COM S curve-disconnect'!Z264*'COM-Appliance class'!$C90+'COM S curve-disconnect'!Z285*'COM-Appliance class'!$D90+'COM S curve-disconnect'!Z306*'COM-Appliance class'!$E90","v":42735.536312587203},{"$f":"AA243*'COM-Appliance class'!$B90+'COM S curve-disconnect'!AA264*'COM-Appliance class'!$C90+'COM S curve-disconnect'!AA285*'COM-Appliance class'!$D90+'COM S curve-disconnect'!AA306*'COM-Appliance class'!$E90","v":44590.034046489192},{"$f":"AB243*'COM-Appliance class'!$B90+'COM S curve-disconnect'!AB264*'COM-Appliance class'!$C90+'COM S curve-disconnect'!AB285*'COM-Appliance class'!$D90+'COM S curve-disconnect'!AB306*'COM-Appliance class'!$E90","v":45753.580972754557},{"$f":"AC243*'COM-Appliance class'!$B90+'COM S curve-disconnect'!AC264*'COM-Appliance class'!$C90+'COM S curve-disconnect'!AC285*'COM-Appliance class'!$D90+'COM S curve-disconnect'!AC306*'COM-Appliance class'!$E90","v":46595.799393591384},{"$f":"AD243*'COM-Appliance class'!$B90+'COM S curve-disconnect'!AD264*'COM-Appliance class'!$C90+'COM S curve-disconnect'!AD285*'COM-Appliance class'!$D90+'COM S curve-disconnect'!AD306*'COM-Appliance class'!$E90","v":47198.829863635583},{"$f":"AE243*'COM-Appliance class'!$B90+'COM S curve-disconnect'!AE264*'COM-Appliance class'!$C90+'COM S curve-disconnect'!AE285*'COM-Appliance class'!$D90+'COM S curve-disconnect'!AE306*'COM-Appliance class'!$E90","v":47704.193891379997},{"$f":"AF243*'COM-Appliance class'!$B90+'COM S curve-disconnect'!AF264*'COM-Appliance class'!$C90+'COM S curve-disconnect'!AF285*'COM-Appliance class'!$D90+'COM S curve-disconnect'!AF306*'COM-Appliance class'!$E90","v":48644.608298913721},{"$f":"AG243*'COM-Appliance class'!$B90+'COM S curve-disconnect'!AG264*'COM-Appliance class'!$C90+'COM S curve-disconnect'!AG285*'COM-Appliance class'!$D90+'COM S curve-disconnect'!AG306*'COM-Appliance class'!$E90","v":48689.788773015265},{"$f":"AH243*'COM-Appliance class'!$B90+'COM S curve-disconnect'!AH264*'COM-Appliance class'!$C90+'COM S curve-disconnect'!AH285*'COM-Appliance class'!$D90+'COM S curve-disconnect'!AH306*'COM-Appliance class'!$E90","v":49676.305430756955},{"$f":"AI243*'COM-Appliance class'!$B90+'COM S curve-disconnect'!AI264*'COM-Appliance class'!$C90+'COM S curve-disconnect'!AI285*'COM-Appliance class'!$D90+'COM S curve-disconnect'!AI306*'COM-Appliance class'!$E90","v":49739.7911409761},{"$f":"AJ243*'COM-Appliance class'!$B90+'COM S curve-disconnect'!AJ264*'COM-Appliance class'!$C90+'COM S curve-disconnect'!AJ285*'COM-Appliance class'!$D90+'COM S curve-disconnect'!AJ306*'COM-Appliance class'!$E90","v":49803.187328417087},{"$f":"AK243*'COM-Appliance class'!$B90+'COM S curve-disconnect'!AK264*'COM-Appliance class'!$C90+'COM S curve-disconnect'!AK285*'COM-Appliance class'!$D90+'COM S curve-disconnect'!AK306*'COM-Appliance class'!$E90","v":49866.494543195826},{"$f":"AL243*'COM-Appliance class'!$B90+'COM S curve-disconnect'!AL264*'COM-Appliance class'!$C90+'COM S curve-disconnect'!AL285*'COM-Appliance class'!$D90+'COM S curve-disconnect'!AL306*'COM-Appliance class'!$E90","v":49929.713332013394},{"$f":"AM243*'COM-Appliance class'!$B90+'COM S curve-disconnect'!AM264*'COM-Appliance class'!$C90+'COM S curve-disconnect'!AM285*'COM-Appliance class'!$D90+'COM S curve-disconnect'!AM306*'COM-Appliance class'!$E90","v":49992.844238177757},{"$f":"AN243*'COM-Appliance class'!$B90+'COM S curve-disconnect'!AN264*'COM-Appliance class'!$C90+'COM S curve-disconnect'!AN285*'COM-Appliance class'!$D90+'COM S curve-disconnect'!AN306*'COM-Appliance class'!$E90","v":50055.887801624813},{"$f":"AO243*'COM-Appliance class'!$B90+'COM S curve-disconnect'!AO264*'COM-Appliance class'!$C90+'COM S curve-disconnect'!AO285*'COM-Appliance class'!$D90+'COM S curve-disconnect'!AO306*'COM-Appliance class'!$E90","v":50118.844558939963},{"$f":"AP243*'COM-Appliance class'!$B90+'COM S curve-disconnect'!AP264*'COM-Appliance class'!$C90+'COM S curve-disconnect'!AP285*'COM-Appliance class'!$D90+'COM S curve-disconnect'!AP306*'COM-Appliance class'!$E90","v":50181.715043378877},{"$f":"AQ243*'COM-Appliance class'!$B90+'COM S curve-disconnect'!AQ264*'COM-Appliance class'!$C90+'COM S curve-disconnect'!AQ285*'COM-Appliance class'!$D90+'COM S curve-disconnect'!AQ306*'COM-Appliance class'!$E90","v":50244.499784888845},{"$f":"AR243*'COM-Appliance class'!$B90+'COM S curve-disconnect'!AR264*'COM-Appliance class'!$C90+'COM S curve-disconnect'!AR285*'COM-Appliance class'!$D90+'COM S curve-disconnect'!AR306*'COM-Appliance class'!$E90","v":50307.199310129217},{"$f":"AS243*'COM-Appliance class'!$B90+'COM S curve-disconnect'!AS264*'COM-Appliance class'!$C90+'COM S curve-disconnect'!AS285*'COM-Appliance class'!$D90+'COM S curve-disconnect'!AS306*'COM-Appliance class'!$E90","v":50369.814142492447},{"$f":"AT243*'COM-Appliance class'!$B90+'COM S curve-disconnect'!AT264*'COM-Appliance class'!$C90+'COM S curve-disconnect'!AT285*'COM-Appliance class'!$D90+'COM S curve-disconnect'!AT306*'COM-Appliance class'!$E90","v":50432.344802124338},{"$f":"AU243*'COM-Appliance class'!$B90+'COM S curve-disconnect'!AU264*'COM-Appliance class'!$C90+'COM S curve-disconnect'!AU285*'COM-Appliance class'!$D90+'COM S curve-disconnect'!AU306*'COM-Appliance class'!$E90","v":50494.791805944806},{"$f":"AV243*'COM-Appliance class'!$B90+'COM S curve-disconnect'!AV264*'COM-Appliance class'!$C90+'COM S curve-disconnect'!AV285*'COM-Appliance class'!$D90+'COM S curve-disconnect'!AV306*'COM-Appliance class'!$E90","v":50557.155667667888},{"$f":"AW243*'COM-Appliance class'!$B90+'COM S curve-disconnect'!AW264*'COM-Appliance class'!$C90+'COM S curve-disconnect'!AW285*'COM-Appliance class'!$D90+'COM S curve-disconnect'!AW306*'COM-Appliance class'!$E90","v":50619.436897822205},{"$f":"AX243*'COM-Appliance class'!$B90+'COM S curve-disconnect'!AX264*'COM-Appliance class'!$C90+'COM S curve-disconnect'!AX285*'COM-Appliance class'!$D90+'COM S curve-disconnect'!AX306*'COM-Appliance class'!$E90","v":50681.636003770735},{"$f":"AY243*'COM-Appliance class'!$B90+'COM S curve-disconnect'!AY264*'COM-Appliance class'!$C90+'COM S curve-disconnect'!AY285*'COM-Appliance class'!$D90+'COM S curve-disconnect'!AY306*'COM-Appliance class'!$E90","v":50743.753489730982},{"$f":"AZ243*'COM-Appliance class'!$B90+'COM S curve-disconnect'!AZ264*'COM-Appliance class'!$C90+'COM S curve-disconnect'!AZ285*'COM-Appliance class'!$D90+'COM S curve-disconnect'!AZ306*'COM-Appliance class'!$E90","v":50805.789856794552},{"$f":"BA243*'COM-Appliance class'!$B90+'COM S curve-disconnect'!BA264*'COM-Appliance class'!$C90+'COM S curve-disconnect'!BA285*'COM-Appliance class'!$D90+'COM S curve-disconnect'!BA306*'COM-Appliance class'!$E90","v":50867.745602947143},{"$f":"BB243*'COM-Appliance class'!$B90+'COM S curve-disconnect'!BB264*'COM-Appliance class'!$C90+'COM S curve-disconnect'!BB285*'COM-Appliance class'!$D90+'COM S curve-disconnect'!BB306*'COM-Appliance class'!$E90","v":50929.621223087597},{"$f":"BC243*'COM-Appliance class'!$B90+'COM S curve-disconnect'!BC264*'COM-Appliance class'!$C90+'COM S curve-disconnect'!BC285*'COM-Appliance class'!$D90+'COM S curve-disconnect'!BC306*'COM-Appliance class'!$E90","v":50991.417209047926},{"$f":"BD243*'COM-Appliance class'!$B90+'COM S curve-disconnect'!BD264*'COM-Appliance class'!$C90+'COM S curve-disconnect'!BD285*'COM-Appliance class'!$D90+'COM S curve-disconnect'!BD306*'COM-Appliance class'!$E90","v":51053.134049612017},{"$f":"BE243*'COM-Appliance class'!$B90+'COM S curve-disconnect'!BE264*'COM-Appliance class'!$C90+'COM S curve-disconnect'!BE285*'COM-Appliance class'!$D90+'COM S curve-disconnect'!BE306*'COM-Appliance class'!$E90","v":51114.772230535338},{"$f":"BF243*'COM-Appliance class'!$B90+'COM S curve-disconnect'!BF264*'COM-Appliance class'!$C90+'COM S curve-disconnect'!BF285*'COM-Appliance class'!$D90+'COM S curve-disconnect'!BF306*'COM-Appliance class'!$E90","v":51176.332234563582},{"$f":"BG243*'COM-Appliance class'!$B90+'COM S curve-disconnect'!BG264*'COM-Appliance class'!$C90+'COM S curve-disconnect'!BG285*'COM-Appliance class'!$D90+'COM S curve-disconnect'!BG306*'COM-Appliance class'!$E90","v":51237.814541451822},{"$f":"BH243*'COM-Appliance class'!$B90+'COM S curve-disconnect'!BH264*'COM-Appliance class'!$C90+'COM S curve-disconnect'!BH285*'COM-Appliance class'!$D90+'COM S curve-disconnect'!BH306*'COM-Appliance class'!$E90","v":51299.219627983301},{"$f":"BI243*'COM-Appliance class'!$B90+'COM S curve-disconnect'!BI264*'COM-Appliance class'!$C90+'COM S curve-disconnect'!BI285*'COM-Appliance class'!$D90+'COM S curve-disconnect'!BI306*'COM-Appliance class'!$E90","v":51360.547967988095},{"$f":"BJ243*'COM-Appliance class'!$B90+'COM S curve-disconnect'!BJ264*'COM-Appliance class'!$C90+'COM S curve-disconnect'!BJ285*'COM-Appliance class'!$D90+'COM S curve-disconnect'!BJ306*'COM-Appliance class'!$E90","v":51421.800032361614},{"$f":"BK243*'COM-Appliance class'!$B90+'COM S curve-disconnect'!BK264*'COM-Appliance class'!$C90+'COM S curve-disconnect'!BK285*'COM-Appliance class'!$D90+'COM S curve-disconnect'!BK306*'COM-Appliance class'!$E90","v":51482.976289083264},{"$f":"BL243*'COM-Appliance class'!$B90+'COM S curve-disconnect'!BL264*'COM-Appliance class'!$C90+'COM S curve-disconnect'!BL285*'COM-Appliance class'!$D90+'COM S curve-disconnect'!BL306*'COM-Appliance class'!$E90","v":51544.077203234541},{"$f":"BM243*'COM-Appliance class'!$B90+'COM S curve-disconnect'!BM264*'COM-Appliance class'!$C90+'COM S curve-disconnect'!BM285*'COM-Appliance class'!$D90+'COM S curve-disconnect'!BM306*'COM-Appliance class'!$E90","v":51605.103237017538},{"$f":"BN243*'COM-Appliance class'!$B90+'COM S curve-disconnect'!BN264*'COM-Appliance class'!$C90+'COM S curve-disconnect'!BN285*'COM-Appliance class'!$D90+'COM S curve-disconnect'!BN306*'COM-Appliance class'!$E90","v":51666.054849772685},{"$f":"BO243*'COM-Appliance class'!$B90+'COM S curve-disconnect'!BO264*'COM-Appliance class'!$C90+'COM S curve-disconnect'!BO285*'COM-Appliance class'!$D90+'COM S curve-disconnect'!BO306*'COM-Appliance class'!$E90","v":51726.93249799715},{"$f":"BP243*'COM-Appliance class'!$B90+'COM S curve-disconnect'!BP264*'COM-Appliance class'!$C90+'COM S curve-disconnect'!BP285*'COM-Appliance class'!$D90+'COM S curve-disconnect'!BP306*'COM-Appliance class'!$E90","v":51787.736635362373},{"$f":"BQ243*'COM-Appliance class'!$B90+'COM S curve-disconnect'!BQ264*'COM-Appliance class'!$C90+'COM S curve-disconnect'!BQ285*'COM-Appliance class'!$D90+'COM S curve-disconnect'!BQ306*'COM-Appliance class'!$E90","v":51848.467712732127},{"$f":"BR243*'COM-Appliance class'!$B90+'COM S curve-disconnect'!BR264*'COM-Appliance class'!$C90+'COM S curve-disconnect'!BR285*'COM-Appliance class'!$D90+'COM S curve-disconnect'!BR306*'COM-Appliance class'!$E90","v":51909.126178179882},{"$f":"BS243*'COM-Appliance class'!$B90+'COM S curve-disconnect'!BS264*'COM-Appliance class'!$C90+'COM S curve-disconnect'!BS285*'COM-Appliance class'!$D90+'COM S curve-disconnect'!BS306*'COM-Appliance class'!$E90","v":51969.712477006629},{"$f":"BT243*'COM-Appliance class'!$B90+'COM S curve-disconnect'!BT264*'COM-Appliance class'!$C90+'COM S curve-disconnect'!BT285*'COM-Appliance class'!$D90+'COM S curve-disconnect'!BT306*'COM-Appliance class'!$E90","v":52030.227051758025},{"$f":"BU243*'COM-Appliance class'!$B90+'COM S curve-disconnect'!BU264*'COM-Appliance class'!$C90+'COM S curve-disconnect'!BU285*'COM-Appliance class'!$D90+'COM S curve-disconnect'!BU306*'COM-Appliance class'!$E90","v":52090.67034224204},{"$f":"BV243*'COM-Appliance class'!$B90+'COM S curve-disconnect'!BV264*'COM-Appliance class'!$C90+'COM S curve-disconnect'!BV285*'COM-Appliance class'!$D90+'COM S curve-disconnect'!BV306*'COM-Appliance class'!$E90","v":52151.042785545811},{"$f":"BW243*'COM-Appliance class'!$B90+'COM S curve-disconnect'!BW264*'COM-Appliance class'!$C90+'COM S curve-disconnect'!BW285*'COM-Appliance class'!$D90+'COM S curve-disconnect'!BW306*'COM-Appliance class'!$E90","v":52211.344816053126},{"$f":"BX243*'COM-Appliance class'!$B90+'COM S curve-disconnect'!BX264*'COM-Appliance class'!$C90+'COM S curve-disconnect'!BX285*'COM-Appliance class'!$D90+'COM S curve-disconnect'!BX306*'COM-Appliance class'!$E90","v":52271.576865460927},{"$f":"BY243*'COM-Appliance class'!$B90+'COM S curve-disconnect'!BY264*'COM-Appliance class'!$C90+'COM S curve-disconnect'!BY285*'COM-Appliance class'!$D90+'COM S curve-disconnect'!BY306*'COM-Appliance class'!$E90","v":52331.739362796798},{"$f":"BZ243*'COM-Appliance class'!$B90+'COM S curve-disconnect'!BZ264*'COM-Appliance class'!$C90+'COM S curve-disconnect'!BZ285*'COM-Appliance class'!$D90+'COM S curve-disconnect'!BZ306*'COM-Appliance class'!$E90","v":52391.832734435135},{"$f":"CA243*'COM-Appliance class'!$B90+'COM S curve-disconnect'!CA264*'COM-Appliance class'!$C90+'COM S curve-disconnect'!CA285*'COM-Appliance class'!$D90+'COM S curve-disconnect'!CA306*'COM-Appliance class'!$E90","v":52451.857404114366},{"$f":"CB243*'COM-Appliance class'!$B90+'COM S curve-disconnect'!CB264*'COM-Appliance class'!$C90+'COM S curve-disconnect'!CB285*'COM-Appliance class'!$D90+'COM S curve-disconnect'!CB306*'COM-Appliance class'!$E90","v":52511.813792953035},{"$f":"CC243*'COM-Appliance class'!$B90+'COM S curve-disconnect'!CC264*'COM-Appliance class'!$C90+'COM S curve-disconnect'!CC285*'COM-Appliance class'!$D90+'COM S curve-disconnect'!CC306*'COM-Appliance class'!$E90","v":52571.702319466654},{"$f":"CD243*'COM-Appliance class'!$B90+'COM S curve-disconnect'!CD264*'COM-Appliance class'!$C90+'COM S curve-disconnect'!CD285*'COM-Appliance class'!$D90+'COM S curve-disconnect'!CD306*'COM-Appliance class'!$E90","v":52631.523399583763}]

{"sheet":"COM S curve-connect","index":21,"n_rows":151,"n_cols":82,"rows_kept":151,"cut":false,"hidden":false,"merged":[]}
["By customer class",2020,{"$f":"B1+1","v":2021},2022,2023,2024,2025,2026,2027,2028,2029,2030,2031,2032,2033,2034,2035,2036,2037,2038,2039,2040,2041,2042,2043,2044,2045,2046,2047,2048,2049,2050,2051,2052,2053,2054,2055,2056,2057,2058,2059,2060,2061,2062,2063,2064,2065,2066,2067,2068,2069,2070,2071,2072,2073,2074,2075,2076,2077,2078,2079,2080,2081,2082,2083,2084,{"$f":"BN1+1","v":2085},2086,2087,2088,2089,2090,2091,2092,2093,2094,2095,2096,2097,2098,2099,2100]
[]
[]
[]
["LGA",2020,{"$f":"B5+1","v":2021},2022,2023,2024,2025,2026,2027,2028,2029,2030,2031,2032,2033,2034,2035,2036,2037,2038,2039,2040,2041,2042,2043,2044,2045,2046,2047,2048,2049,2050,2051,2052,2053,2054,2055,2056,2057,2058,2059,2060,2061,2062,2063,2064,2065,2066,2067,2068,2069,2070,2071,2072,2073,2074,2075,2076,2077,2078,2079,2080,2081,2082,2083,2084,{"$f":"BN5+1","v":2085},2086,2087,2088,2089,2090,2091,2092,2093,2094,2095,2096,2097,2098,2099,2100]
["Bass Coast (S)",null,{"$f":"'COM S curve-disconnect'!C9-'COM S curve-disconnect'!C$5-'Appliance costs'!B$85","v":-12714.378227584835},{"$f":"'COM S curve-disconnect'!D9-'COM S curve-disconnect'!D$5-'Appliance costs'!C$85","v":-2164.1686640143234},{"$f":"'COM S curve-disconnect'!E9-'COM S curve-disconnect'!E$5-'Appliance costs'!D$85","v":14505.669244322424},{"$f":"'COM S curve-disconnect'!F9-'COM S curve-disconnect'!F$5-'Appliance costs'!E$85","v":20174.859089273079},{"$f":"'COM S curve-disconnect'!G9-'COM S curve-disconnect'!G$5-'Appliance costs'!F$85","v":-3144.1578610442666},{"$f":"'COM S curve-disconnect'!H9-'COM S curve-disconnect'!H$5-'Appliance costs'!G$85","v":-1830.2758416636498},{"$f":"'COM S curve-disconnect'!I9-'COM S curve-disconnect'!I$5-'Appliance costs'!H$85","v":6287.3783724196692},{"$f":"'COM S curve-disconnect'!J9-'COM S curve-disconnect'!J$5-'Appliance costs'!I$85","v":6699.957812281471},{"$f":"'COM S curve-disconnect'!K9-'COM S curve-disconnect'!K$5-'Appliance costs'!J$85","v":23626.501865602171},{"$f":"'COM S curve-disconnect'!L9-'COM S curve-disconnect'!L$5-'Appliance costs'!K$85","v":23838.997308140686},{"$f":"'COM S curve-disconnect'!M9-'COM S curve-disconnect'!M$5-'Appliance costs'!L$85","v":10316.053240697627},{"$f":"'COM S curve-disconnect'!N9-'COM S curve-disconnect'!N$5-'Appliance costs'!M$85","v":10832.983758838796},{"$f":"'COM S curve-disconnect'!O9-'COM S curve-disconnect'!O$5-'Appliance costs'!N$85","v":20323.743969290961},{"$f":"'COM S curve-disconnect'!P9-'COM S curve-disconnect'!P$5-'Appliance costs'!O$85","v":29524.173163874031},{"$f":"'COM S curve-disconnect'!Q9-'COM S curve-disconnect'!Q$5-'Appliance costs'!P$85","v":4603.5459174530333},{"$f":"'COM S curve-disconnect'!R9-'COM S curve-disconnect'!R$5-'Appliance costs'!Q$85","v":8795.656602414485},{"$f":"'COM S curve-disconnect'!S9-'COM S curve-disconnect'!S$5-'Appliance costs'!R$85","v":14644.34651627679},{"$f":"'COM S curve-disconnect'!T9-'COM S curve-disconnect'!T$5-'Appliance costs'!S$85","v":22833.677909625425},{"$f":"'COM S curve-disconnect'!U9-'COM S curve-disconnect'!U$5-'Appliance costs'!T$85","v":29122.297133721462},{"$f":"'COM S curve-disconnect'!V9-'COM S curve-disconnect'!V$5-'Appliance costs'!U$85","v":31910.067826300969},{"$f":"'COM S curve-disconnect'!W9-'COM S curve-disconnect'!W$5-'Appliance costs'!V$85","v":35976.969031025648},{"$f":"'COM S curve-disconnect'!X9-'COM S curve-disconnect'!X$5-'Appliance costs'!W$85","v":44908.334356481617},{"$f":"'COM S curve-disconnect'!Y9-'COM S curve-disconnect'!Y$5-'Appliance costs'!X$85","v":52453.875851211407},{"$f":"'COM S curve-disconnect'!Z9-'COM S curve-disconnect'!Z$5-'Appliance costs'!Y$85","v":57034.96240786773},{"$f":"'COM S curve-disconnect'!AA9-'COM S curve-disconnect'!AA$5-'Appliance costs'!Z$85","v":62144.058155346422},{"$f":"'COM S curve-disconnect'!AB9-'COM S curve-disconnect'!AB$5-'Appliance costs'!AA$85","v":65622.054153660021},{"$f":"'COM S curve-disconnect'!AC9-'COM S curve-disconnect'!AC$5-'Appliance costs'!AB$85","v":68341.672622673374},{"$f":"'COM S curve-disconnect'!AD9-'COM S curve-disconnect'!AD$5-'Appliance costs'!AC$85","v":70491.208814066238},{"$f":"'COM S curve-disconnect'!AE9-'COM S curve-disconnect'!AE$5-'Appliance costs'!AD$85","v":72416.948872276989},{"$f":"'COM S curve-disconnect'!AF9-'COM S curve-disconnect'!AF$5-'Appliance costs'!AE$85","v":75356.114808528248},{"$f":"'COM S curve-disconnect'!AG9-'COM S curve-disconnect'!AG$5-'Appliance costs'!AF$85","v":75462.222656119411},{"$f":"'COM S curve-disconnect'!AH9-'COM S curve-disconnect'!AH$5-'Appliance costs'!AG$85","v":77774.456660556112},{"$f":"'COM S curve-disconnect'!AI9-'COM S curve-disconnect'!AI$5-'Appliance costs'!AH$85","v":77928.188174309995},{"$f":"'COM S curve-disconnect'!AJ9-'COM S curve-disconnect'!AJ$5-'Appliance costs'!AI$85","v":78077.076231122483},{"$f":"'COM S curve-disconnect'!AK9-'COM S curve-disconnect'!AK$5-'Appliance costs'!AJ$85","v":78225.755332675588},{"$f":"'COM S curve-disconnect'!AL9-'COM S curve-disconnect'!AL$5-'Appliance costs'!AK$85","v":78369.59355319856},{"$f":"'COM S curve-disconnect'!AM9-'COM S curve-disconnect'!AM$5-'Appliance costs'!AL$85","v":78522.491797817522},{"$f":"'COM S curve-disconnect'!AN9-'COM S curve-disconnect'!AN$5-'Appliance costs'!AM$85","v":78670.551705440594},{"$f":"'COM S curve-disconnect'!AO9-'COM S curve-disconnect'!AO$5-'Appliance costs'!AN$85","v":78818.407745972887},{"$f":"'COM S curve-disconnect'!AP9-'COM S curve-disconnect'!AP$5-'Appliance costs'!AO$85","v":78961.427962066751},{"$f":"'COM S curve-disconnect'!AQ9-'COM S curve-disconnect'!AQ$5-'Appliance costs'!AP$85","v":79113.513227470219},{"$f":"'COM S curve-disconnect'!AR9-'COM S curve-disconnect'!AR$5-'Appliance costs'!AQ$85","v":79260.765149911051},{"$f":"'COM S curve-disconnect'!AS9-'COM S curve-disconnect'!AS$5-'Appliance costs'!AR$85","v":79407.818168310332},{"$f":"'COM S curve-disconnect'!AT9-'COM S curve-disconnect'!AT$5-'Appliance costs'!AS$85","v":79550.040294531296},{"$f":"'COM S curve-disconnect'!AU9-'COM S curve-disconnect'!AU$5-'Appliance costs'!AT$85","v":79701.332371726894},{"$f":"'COM S curve-disconnect'!AV9-'COM S curve-disconnect'!AV$5-'Appliance costs'!AU$85","v":79847.795977222384},{"$f":"'COM S curve-disconnect'!AW9-'COM S curve-disconnect'!AW$5-'Appliance costs'!AV$85","v":79994.065519727592},{"$f":"'COM S curve-disconnect'!AX9-'COM S curve-disconnect'!AX$5-'Appliance costs'!AW$85","v":80135.508981085004},{"$f":"'COM S curve-disconnect'!AY9-'COM S curve-disconnect'!AY$5-'Appliance costs'!AX$85","v":80286.027174615447},{"$f":"'COM S curve-disconnect'!AZ9-'COM S curve-disconnect'!AZ$5-'Appliance costs'!AY$85","v":80431.721648000006},{"$f":"'COM S curve-disconnect'!BA9-'COM S curve-disconnect'!BA$5-'Appliance costs'!AZ$85","v":80577.226780491037},{"$f":"'COM S curve-disconnect'!BB9-'COM S curve-disconnect'!BB$5-'Appliance costs'!BA$85","v":80717.910524658626},{"$f":"'COM S curve-disconnect'!BC9-'COM S curve-disconnect'!BC$5-'Appliance costs'!BB$85","v":80867.673664735747},{"$f":"'COM S curve-disconnect'!BD9-'COM S curve-disconnect'!BD$5-'Appliance costs'!BC$85","v":81012.617719498463},{"$f":"'COM S curve-disconnect'!BE9-'COM S curve-disconnect'!BE$5-'Appliance costs'!BD$85","v":81157.377039476094},{"$f":"'COM S curve-disconnect'!BF9-'COM S curve-disconnect'!BF$5-'Appliance costs'!BE$85","v":81297.319548696541},{"$f":"'COM S curve-disconnect'!BG9-'COM S curve-disconnect'!BG$5-'Appliance costs'!BF$85","v":81446.346003029787},{"$f":"'COM S curve-disconnect'!BH9-'COM S curve-disconnect'!BH$5-'Appliance costs'!BG$85","v":81590.557893067889},{"$f":"'COM S curve-disconnect'!BI9-'COM S curve-disconnect'!BI$5-'Appliance costs'!BH$85","v":81734.589541333029},{"$f":"'COM S curve-disconnect'!BJ9-'COM S curve-disconnect'!BJ$5-'Appliance costs'!BI$85","v":81873.808844022307},{"$f":"'COM S curve-disconnect'!BK9-'COM S curve-disconnect'!BK$5-'Appliance costs'!BJ$85","v":82022.116529350198},{"$f":"'COM S curve-disconnect'!BL9-'COM S curve-disconnect'!BL$5-'Appliance costs'!BK$85","v":82165.614060426771},{"$f":"'COM S curve-disconnect'!BM9-'COM S curve-disconnect'!BM$5-'Appliance costs'!BL$85","v":82308.935732465528},{"$f":"'COM S curve-disconnect'!BN9-'COM S curve-disconnect'!BN$5-'Appliance costs'!BM$85","v":82447.449414526316},{"$f":"'COM S curve-disconnect'!BO9-'COM S curve-disconnect'!BO$5-'Appliance costs'!BN$85","v":82595.055807857163},{"$f":"'COM S curve-disconnect'!BP9-'COM S curve-disconnect'!BP$5-'Appliance costs'!BO$85","v":82737.85634877134},{"$f":"'COM S curve-disconnect'!BQ9-'COM S curve-disconnect'!BQ$5-'Appliance costs'!BP$85","v":82880.485305853828},{"$f":"'COM S curve-disconnect'!BR9-'COM S curve-disconnect'!BR$5-'Appliance costs'!BQ$85","v":83018.31052170365},{"$f":"'COM S curve-disconnect'!BS9-'COM S curve-disconnect'!BS$5-'Appliance costs'!BR$85","v":83165.232671274222},{"$f":"'COM S curve-disconnect'!BT9-'COM S curve-disconnect'!BT$5-'Appliance costs'!BS$85","v":83307.353164749627},{"$f":"'COM S curve-disconnect'!BU9-'COM S curve-disconnect'!BU$5-'Appliance costs'!BT$85","v":83449.306244749867},{"$f":"'COM S curve-disconnect'!BV9-'COM S curve-disconnect'!BV$5-'Appliance costs'!BU$85","v":83586.459728072194},{"$f":"'COM S curve-disconnect'!BW9-'COM S curve-disconnect'!BW$5-'Appliance costs'!BV$85","v":83732.714264030627},{"$f":"'COM S curve-disconnect'!BX9-'COM S curve-disconnect'!BX$5-'Appliance costs'!BW$85","v":83874.171237330651},{"$f":"'COM S curve-disconnect'!BY9-'COM S curve-disconnect'!BY$5-'Appliance costs'!BX$85","v":84015.464865274203},{"$f":"'COM S curve-disconnect'!BZ9-'COM S curve-disconnect'!BZ$5-'Appliance costs'!BY$85","v":84151.962939499295},{"$f":"'COM S curve-disconnect'!CA9-'COM S curve-disconnect'!CA$5-'Appliance costs'!BZ$85","v":84297.566084319027},{"$f":"'COM S curve-disconnect'!CB9-'COM S curve-disconnect'!CB$5-'Appliance costs'!CA$85","v":84438.37565959504},{"$f":"'COM S curve-disconnect'!CC9-'COM S curve-disconnect'!CC$5-'Appliance costs'!CB$85","v":84579.025857941422},{"$f":"'COM S curve-disconnect'!CD9-'COM S curve-disconnect'!CD$5-'Appliance costs'!CC$85","v":84719.517656180076}]
["Bayside (C)",null,{"$f":"'COM S curve-disconnect'!C10-'COM S curve-disconnect'!C$5-'Appliance costs'!B$85","v":-1495.4428781097795},{"$f":"'COM S curve-disconnect'!D10-'COM S curve-disconnect'!D$5-'Appliance costs'!C$85","v":2027.6254233591935},{"$f":"'COM S curve-disconnect'!E10-'COM S curve-disconnect'!E$5-'Appliance costs'!D$85","v":7689.3593511164181},{"$f":"'COM S curve-disconnect'!F10-'COM S curve-disconnect'!F$5-'Appliance costs'!E$85","v":9593.8319798049288},{"$f":"'COM S curve-disconnect'!G10-'COM S curve-disconnect'!G$5-'Appliance costs'!F$85","v":1729.3675528665735},{"$f":"'COM S curve-disconnect'!H10-'COM S curve-disconnect'!H$5-'Appliance costs'!G$85","v":2173.117538742219},{"$f":"'COM S curve-disconnect'!I10-'COM S curve-disconnect'!I$5-'Appliance costs'!H$85","v":4912.6816947375009},{"$f":"'COM S curve-disconnect'!J10-'COM S curve-disconnect'!J$5-'Appliance costs'!I$85","v":5064.216185698966},{"$f":"'COM S curve-disconnect'!K10-'COM S curve-disconnect'!K$5-'Appliance costs'!J$85","v":10830.248007390743},{"$f":"'COM S curve-disconnect'!L10-'COM S curve-disconnect'!L$5-'Appliance costs'!K$85","v":10950.240134800246},{"$f":"'COM S curve-disconnect'!M10-'COM S curve-disconnect'!M$5-'Appliance costs'!L$85","v":6463.557454347454},{"$f":"'COM S curve-disconnect'!N10-'COM S curve-disconnect'!N$5-'Appliance costs'!M$85","v":6649.7131338266736},{"$f":"'COM S curve-disconnect'!O10-'COM S curve-disconnect'!O$5-'Appliance costs'!N$85","v":9925.3910053050495},{"$f":"'COM S curve-disconnect'!P10-'COM S curve-disconnect'!P$5-'Appliance costs'!O$85","v":13096.293058728925},{"$f":"'COM S curve-disconnect'!Q10-'COM S curve-disconnect'!Q$5-'Appliance costs'!P$85","v":3590.0255524102649},{"$f":"'COM S curve-disconnect'!R10-'COM S curve-disconnect'!R$5-'Appliance costs'!Q$85","v":4994.9103433908931},{"$f":"'COM S curve-disconnect'!S10-'COM S curve-disconnect'!S$5-'Appliance costs'!R$85","v":6959.1140463299307},{"$f":"'COM S curve-disconnect'!T10-'COM S curve-disconnect'!T$5-'Appliance costs'!S$85","v":9701.8100806923339},{"$f":"'COM S curve-disconnect'!U10-'COM S curve-disconnect'!U$5-'Appliance costs'!T$85","v":11809.754646488489},{"$f":"'COM S curve-disconnect'!V10-'COM S curve-disconnect'!V$5-'Appliance costs'!U$85","v":12745.522797813062},{"$f":"'COM S curve-disconnect'!W10-'COM S curve-disconnect'!W$5-'Appliance costs'!V$85","v":14114.567896177055},{"$f":"'COM S curve-disconnect'!X10-'COM S curve-disconnect'!X$5-'Appliance costs'!W$85","v":17104.895027507955},{"$f":"'COM S curve-disconnect'!Y10-'COM S curve-disconnect'!Y$5-'Appliance costs'!X$85","v":19632.40994461775},{"$f":"'COM S curve-disconnect'!Z10-'COM S curve-disconnect'!Z$5-'Appliance costs'!Y$85","v":21166.869022460061},{"$f":"'COM S curve-disconnect'!AA10-'COM S curve-disconnect'!AA$5-'Appliance costs'!Z$85","v":22883.781269474497},{"$f":"'COM S curve-disconnect'!AB10-'COM S curve-disconnect'!AB$5-'Appliance costs'!AA$85","v":24052.890018394661},{"$f":"'COM S curve-disconnect'!AC10-'COM S curve-disconnect'!AC$5-'Appliance costs'!AB$85","v":24968.71266506541},{"$f":"'COM S curve-disconnect'!AD10-'COM S curve-disconnect'!AD$5-'Appliance costs'!AC$85","v":25691.041466470502},{"$f":"'COM S curve-disconnect'!AE10-'COM S curve-disconnect'!AE$5-'Appliance costs'!AD$85","v":26344.771232165323},{"$f":"'COM S curve-disconnect'!AF10-'COM S curve-disconnect'!AF$5-'Appliance costs'!AE$85","v":27333.79393930074},{"$f":"'COM S curve-disconnect'!AG10-'COM S curve-disconnect'!AG$5-'Appliance costs'!AF$85","v":27369.226903180075},{"$f":"'COM S curve-disconnect'!AH10-'COM S curve-disconnect'!AH$5-'Appliance costs'!AG$85","v":28138.27324852012},{"$f":"'COM S curve-disconnect'!AI10-'COM S curve-disconnect'!AI$5-'Appliance costs'!AH$85","v":28192.695375280506},{"$f":"'COM S curve-disconnect'!AJ10-'COM S curve-disconnect'!AJ$5-'Appliance costs'!AI$85","v":28242.41408373486},{"$f":"'COM S curve-disconnect'!AK10-'COM S curve-disconnect'!AK$5-'Appliance costs'!AJ$85","v":28292.063015030137},{"$f":"'COM S curve-disconnect'!AL10-'COM S curve-disconnect'!AL$5-'Appliance costs'!AK$85","v":28337.00938820243},{"$f":"'COM S curve-disconnect'!AM10-'COM S curve-disconnect'!AM$5-'Appliance costs'!AL$85","v":28391.153258492348},{"$f":"'COM S curve-disconnect'!AN10-'COM S curve-disconnect'!AN$5-'Appliance costs'!AM$85","v":28440.595420197504},{"$f":"'COM S curve-disconnect'!AO10-'COM S curve-disconnect'!AO$5-'Appliance costs'!AN$85","v":28489.969503853506},{"$f":"'COM S curve-disconnect'!AP10-'COM S curve-disconnect'!AP$5-'Appliance costs'!AO$85","v":28534.642717951807},{"$f":"'COM S curve-disconnect'!AQ10-'COM S curve-disconnect'!AQ$5-'Appliance costs'!AP$85","v":28588.515107254869},{"$f":"'COM S curve-disconnect'!AR10-'COM S curve-disconnect'!AR$5-'Appliance costs'!AQ$85","v":28637.68745564812},{"$f":"'COM S curve-disconnect'!AS10-'COM S curve-disconnect'!AS$5-'Appliance costs'!AR$85","v":28686.793383320561},{"$f":"'COM S curve-disconnect'!AT10-'COM S curve-disconnect'!AT$5-'Appliance costs'!AS$85","v":28731.200088482154},{"$f":"'COM S curve-disconnect'!AU10-'COM S curve-disconnect'!AU$5-'Appliance costs'!AT$85","v":28784.807605678616},{"$f":"'COM S curve-disconnect'!AV10-'COM S curve-disconnect'!AV$5-'Appliance costs'!AU$85","v":28833.716708642947},{"$f":"'COM S curve-disconnect'!AW10-'COM S curve-disconnect'!AW$5-'Appliance costs'!AV$85","v":28882.561007475633},{"$f":"'COM S curve-disconnect'!AX10-'COM S curve-disconnect'!AX$5-'Appliance costs'!AW$85","v":28926.707690361676},{"$f":"'COM S curve-disconnect'!AY10-'COM S curve-disconnect'!AY$5-'Appliance costs'!AX$85","v":28980.056781884843},{"$f":"'COM S curve-disconnect'!AZ10-'COM S curve-disconnect'!AZ$5-'Appliance costs'!AY$85","v":29028.709045878997},{"$f":"'COM S curve-disconnect'!BA10-'COM S curve-disconnect'!BA$5-'Appliance costs'!AZ$85","v":29077.298082607733},{"$f":"'COM S curve-disconnect'!BB10-'COM S curve-disconnect'!BB$5-'Appliance costs'!BA$85","v":29121.191070481029},{"$f":"'COM S curve-disconnect'!BC10-'COM S curve-disconnect'!BC$5-'Appliance costs'!BB$85","v":29174.288024369285},{"$f":"'COM S curve-disconnect'!BD10-'COM S curve-disconnect'!BD$5-'Appliance costs'!BC$85","v":29222.689698453964},{"$f":"'COM S curve-disconnect'!BE10-'COM S curve-disconnect'!BE$5-'Appliance costs'!BD$85","v":29271.02968340709},{"$f":"'COM S curve-disconnect'!BF10-'COM S curve-disconnect'!BF$5-'Appliance costs'!BE$85","v":29314.675148107468},{"$f":"'COM S curve-disconnect'!BG10-'COM S curve-disconnect'!BG$5-'Appliance costs'!BF$85","v":29367.526097954113},{"$f":"'COM S curve-disconnect'!BH10-'COM S curve-disconnect'!BH$5-'Appliance costs'!BG$85","v":29415.683277716926},{"$f":"'COM S curve-disconnect'!BI10-'COM S curve-disconnect'!BI$5-'Appliance costs'!BH$85","v":29463.780268715418},{"$f":"'COM S curve-disconnect'!BJ10-'COM S curve-disconnect'!BJ$5-'Appliance costs'!BI$85","v":29507.184230534738},{"$f":"'COM S curve-disconnect'!BK10-'COM S curve-disconnect'!BK$5-'Appliance costs'!BJ$85","v":29559.795159338813},{"$f":"'COM S curve-disconnect'!BL10-'COM S curve-disconnect'!BL$5-'Appliance costs'!BK$85","v":29607.71379072038},{"$f":"'COM S curve-disconnect'!BM10-'COM S curve-disconnect'!BM$5-'Appliance costs'!BL$85","v":29655.57369687967},{"$f":"'COM S curve-disconnect'!BN10-'COM S curve-disconnect'!BN$5-'Appliance costs'!BM$85","v":29698.742028339781},{"$f":"'COM S curve-disconnect'!BO10-'COM S curve-disconnect'!BO$5-'Appliance costs'!BN$85","v":29751.118772259673},{"$f":"'COM S curve-disconnect'!BP10-'COM S curve-disconnect'!BP$5-'Appliance costs'!BO$85","v":29798.804655283697},{"$f":"'COM S curve-disconnect'!BQ10-'COM S curve-disconnect'!BQ$5-'Appliance costs'!BP$85","v":29846.433240719947},{"$f":"'COM S curve-disconnect'!BR10-'COM S curve-disconnect'!BR$5-'Appliance costs'!BQ$85","v":29889.371670255379},{"$f":"'COM S curve-disconnect'!BS10-'COM S curve-disconnect'!BS$5-'Appliance costs'!BR$85","v":29941.519922268279},{"$f":"'COM S curve-disconnect'!BT10-'COM S curve-disconnect'!BT$5-'Appliance costs'!BS$85","v":29988.9787146776},{"$f":"'COM S curve-disconnect'!BU10-'COM S curve-disconnect'!BU$5-'Appliance costs'!BT$85","v":30036.381602120855},{"$f":"'COM S curve-disconnect'!BV10-'COM S curve-disconnect'!BV$5-'Appliance costs'!BU$85","v":30079.095717668934},{"$f":"'COM S curve-disconnect'!BW10-'COM S curve-disconnect'!BW$5-'Appliance costs'!BV$85","v":30131.021031138254},{"$f":"'COM S curve-disconnect'!BX10-'COM S curve-disconnect'!BX$5-'Appliance costs'!BW$85","v":30178.258251939616},{"$f":"'COM S curve-disconnect'!BY10-'COM S curve-disconnect'!BY$5-'Appliance costs'!BX$85","v":30225.440926255993},{"$f":"'COM S curve-disconnect'!BZ10-'COM S curve-disconnect'!BZ$5-'Appliance costs'!BY$85","v":30267.936178756747},{"$f":"'COM S curve-disconnect'!CA10-'COM S curve-disconnect'!CA$5-'Appliance costs'!BZ$85","v":30319.643970909659},{"$f":"'COM S curve-disconnect'!CB10-'COM S curve-disconnect'!CB$5-'Appliance costs'!CA$85","v":30366.665003829352},{"$f":"'COM S curve-disconnect'!CC10-'COM S curve-disconnect'!CC$5-'Appliance costs'!CB$85","v":30413.632815454665},{"$f":"'COM S curve-disconnect'!CD10-'COM S curve-disconnect'!CD$5-'Appliance costs'!CC$85","v":30460.547731979175}]
["Boroondara (C)",null,{"$f":"'COM S curve-disconnect'!C11-'COM S curve-disconnect'!C$5-'Appliance costs'!B$85","v":-2595.9526886899985},{"$f":"'COM S curve-disconnect'!D11-'COM S curve-disconnect'!D$5-'Appliance costs'!C$85","v":1612.0178064929423},{"$f":"'COM S curve-disconnect'!E11-'COM S curve-disconnect'!E$5-'Appliance costs'!D$85","v":8349.2200899183445},{"$f":"'COM S curve-disconnect'!F11-'COM S curve-disconnect'!F$5-'Appliance costs'!E$85","v":10620.621884245911},{"$f":"'COM S curve-disconnect'!G11-'COM S curve-disconnect'!G$5-'Appliance costs'!F$85","v":1248.0232524384155},{"$f":"'COM S curve-disconnect'!H11-'COM S curve-disconnect'!H$5-'Appliance costs'!G$85","v":1776.5808885860752},{"$f":"'COM S curve-disconnect'!I11-'COM S curve-disconnect'!I$5-'Appliance costs'!H$85","v":5040.3220237238274},{"$f":"'COM S curve-disconnect'!J11-'COM S curve-disconnect'!J$5-'Appliance costs'!I$85","v":5216.6827861483362},{"$f":"'COM S curve-disconnect'!K11-'COM S curve-disconnect'!K$5-'Appliance costs'!J$85","v":12070.929545254989},{"$f":"'COM S curve-disconnect'!L11-'COM S curve-disconnect'!L$5-'Appliance costs'!K$85","v":12200.026707882833},{"$f":"'COM S curve-disconnect'!M11-'COM S curve-disconnect'!M$5-'Appliance costs'!L$85","v":6832.7111350325249},{"$f":"'COM S curve-disconnect'!N11-'COM S curve-disconnect'!N$5-'Appliance costs'!M$85","v":7051.1941576778918},{"$f":"'COM S curve-disconnect'!O11-'COM S curve-disconnect'!O$5-'Appliance costs'!N$85","v":10932.714527797423},{"$f":"'COM S curve-disconnect'!P11-'COM S curve-disconnect'!P$5-'Appliance costs'!O$85","v":14691.373453893037},{"$f":"'COM S curve-disconnect'!Q11-'COM S curve-disconnect'!Q$5-'Appliance costs'!P$85","v":3682.8282400436183},{"$f":"'COM S curve-disconnect'!R11-'COM S curve-disconnect'!R$5-'Appliance costs'!Q$85","v":5359.457277686146},{"$f":"'COM S curve-disconnect'!S11-'COM S curve-disconnect'!S$5-'Appliance costs'!R$85","v":7702.3495635004147},{"$f":"'COM S curve-disconnect'!T11-'COM S curve-disconnect'!T$5-'Appliance costs'!S$85","v":10975.989032791815},{"$f":"'COM S curve-disconnect'!U11-'COM S curve-disconnect'!U$5-'Appliance costs'!T$85","v":13491.489408480807},{"$f":"'COM S curve-disconnect'!V11-'COM S curve-disconnect'!V$5-'Appliance costs'!U$85","v":14607.848295717951},{"$f":"'COM S curve-disconnect'!W11-'COM S curve-disconnect'!W$5-'Appliance costs'!V$85","v":16239.92504880498},{"$f":"'COM S curve-disconnect'!X11-'COM S curve-disconnect'!X$5-'Appliance costs'!W$85","v":19809.38101841211},{"$f":"'COM S curve-disconnect'!Y11-'COM S curve-disconnect'!Y$5-'Appliance costs'!X$85","v":22826.062781046654},{"$f":"'COM S curve-disconnect'!Z11-'COM S curve-disconnect'!Z$5-'Appliance costs'!Y$85","v":24657.545348721476},{"$f":"'COM S curve-disconnect'!AA11-'COM S curve-disconnect'!AA$5-'Appliance costs'!Z$85","v":26705.160379546462},{"$f":"'COM S curve-disconnect'!AB11-'COM S curve-disconnect'!AB$5-'Appliance costs'!AA$85","v":28099.387741216713},{"$f":"'COM S curve-disconnect'!AC11-'COM S curve-disconnect'!AC$5-'Appliance costs'!AB$85","v":29191.099718734429},{"$f":"'COM S curve-disconnect'!AD11-'COM S curve-disconnect'!AD$5-'Appliance costs'!AC$85","v":30052.613149726047},{"$f":"'COM S curve-disconnect'!AE11-'COM S curve-disconnect'!AE$5-'Appliance costs'!AD$85","v":30830.400811182306},{"$f":"'COM S curve-disconnect'!AF11-'COM S curve-disconnect'!AF$5-'Appliance costs'!AE$85","v":32009.575415891792},{"$f":"'COM S curve-disconnect'!AG11-'COM S curve-disconnect'!AG$5-'Appliance costs'!AF$85","v":32051.896726125524},{"$f":"'COM S curve-disconnect'!AH11-'COM S curve-disconnect'!AH$5-'Appliance costs'!AG$85","v":32971.350267451206},{"$f":"'COM S curve-disconnect'!AI11-'COM S curve-disconnect'!AI$5-'Appliance costs'!AH$85","v":33035.451610050761},{"$f":"'COM S curve-disconnect'!AJ11-'COM S curve-disconnect'!AJ$5-'Appliance costs'!AI$85","v":33094.835885441418},{"$f":"'COM S curve-disconnect'!AK11-'COM S curve-disconnect'!AK$5-'Appliance costs'!AJ$85","v":33154.136818642401},{"$f":"'COM S curve-disconnect'!AL11-'COM S curve-disconnect'!AL$5-'Appliance costs'!AK$85","v":33208.721712041428},{"$f":"'COM S curve-disconnect'!AM11-'COM S curve-disconnect'!AM$5-'Appliance costs'!AL$85","v":33272.49070371344},{"$f":"'COM S curve-disconnect'!AN11-'COM S curve-disconnect'!AN$5-'Appliance costs'!AM$85","v":33331.54467027622},{"$f":"'COM S curve-disconnect'!AO11-'COM S curve-disconnect'!AO$5-'Appliance costs'!AN$85","v":33390.517324074761},{"$f":"'COM S curve-disconnect'!AP11-'COM S curve-disconnect'!AP$5-'Appliance costs'!AO$85","v":33444.775954902223},{"$f":"'COM S curve-disconnect'!AQ11-'COM S curve-disconnect'!AQ$5-'Appliance costs'!AP$85","v":33508.220688318375},{"$f":"'COM S curve-disconnect'!AR11-'COM S curve-disconnect'!AR$5-'Appliance costs'!AQ$85","v":33566.952388504658},{"$f":"'COM S curve-disconnect'!AS11-'COM S curve-disconnect'!AS$5-'Appliance costs'!AR$85","v":33625.604755447996},{"$f":"'COM S curve-disconnect'!AT11-'COM S curve-disconnect'!AT$5-'Appliance costs'!AS$85","v":33679.545066661311},{"$f":"'COM S curve-disconnect'!AU11-'COM S curve-disconnect'!AU$5-'Appliance costs'!AT$85","v":33742.673435501398},{"$f":"'COM S curve-disconnect'!AV11-'COM S curve-disconnect'!AV$5-'Appliance costs'!AU$85","v":33801.090714023645},{"$f":"'COM S curve-disconnect'!AW11-'COM S curve-disconnect'!AW$5-'Appliance costs'!AV$85","v":33859.430590165175},{"$f":"'COM S curve-disconnect'!AX11-'COM S curve-disconnect'!AX$5-'Appliance costs'!AW$85","v":33913.060329465028},{"$f":"'COM S curve-disconnect'!AY11-'COM S curve-disconnect'!AY$5-'Appliance costs'!AX$85","v":33975.880033381451},{"$f":"'COM S curve-disconnect'!AZ11-'COM S curve-disconnect'!AZ$5-'Appliance costs'!AY$85","v":34033.990542146166},{"$f":"'COM S curve-disconnect'!BA11-'COM S curve-disconnect'!BA$5-'Appliance costs'!AZ$85","v":34092.02553194714},{"$f":"'COM S curve-disconnect'!BB11-'COM S curve-disconnect'!BB$5-'Appliance costs'!BA$85","v":34145.352256648061},{"$f":"'COM S curve-disconnect'!BC11-'COM S curve-disconnect'!BC$5-'Appliance costs'!BB$85","v":34207.870806105457},{"$f":"'COM S curve-disconnect'!BD11-'COM S curve-disconnect'!BD$5-'Appliance costs'!BC$85","v":34265.68200902221},{"$f":"'COM S curve-disconnect'!BE11-'COM S curve-disconnect'!BE$5-'Appliance costs'!BD$85","v":34323.419530130028},{"$f":"'COM S curve-disconnect'!BF11-'COM S curve-disconnect'!BF$5-'Appliance costs'!BE$85","v":34376.45061190852},{"$f":"'COM S curve-disconnect'!BG11-'COM S curve-disconnect'!BG$5-'Appliance costs'!BF$85","v":34438.675332901577},{"$f":"'COM S curve-disconnect'!BH11-'COM S curve-disconnect'!BH$5-'Appliance costs'!BG$85","v":34496.194510570836},{"$f":"'COM S curve-disconnect'!BI11-'COM S curve-disconnect'!BI$5-'Appliance costs'!BH$85","v":34553.641798477336},{"$f":"'COM S curve-disconnect'!BJ11-'COM S curve-disconnect'!BJ$5-'Appliance costs'!BI$85","v":34606.384428000289},{"$f":"'COM S curve-disconnect'!BK11-'COM S curve-disconnect'!BK$5-'Appliance costs'!BJ$85","v":34668.322466653139},{"$f":"'COM S curve-disconnect'!BL11-'COM S curve-disconnect'!BL$5-'Appliance costs'!BK$85","v":34725.556720936285},{"$f":"'COM S curve-disconnect'!BM11-'COM S curve-disconnect'!BM$5-'Appliance costs'!BL$85","v":34782.720833518637},{"$f":"'COM S curve-disconnect'!BN11-'COM S curve-disconnect'!BN$5-'Appliance costs'!BM$85","v":34835.182024955699},{"$f":"'COM S curve-disconnect'!BO11-'COM S curve-disconnect'!BO$5-'Appliance costs'!BN$85","v":34896.84035200526},{"$f":"'COM S curve-disconnect'!BP11-'COM S curve-disconnect'!BP$5-'Appliance costs'!BO$85","v":34953.796610479774},{"$f":"'COM S curve-disconnect'!BQ11-'COM S curve-disconnect'!BQ$5-'Appliance costs'!BP$85","v":35010.684432427319},{"$f":"'COM S curve-disconnect'!BR11-'COM S curve-disconnect'!BR$5-'Appliance costs'!BQ$85","v":35062.871027849455},{"$f":"'COM S curve-disconnect'!BS11-'COM S curve-disconnect'!BS$5-'Appliance costs'!BR$85","v":35124.25644301634},{"$f":"'COM S curve-disconnect'!BT11-'COM S curve-disconnect'!BT$5-'Appliance costs'!BS$85","v":35180.941463318719},{"$f":"'COM S curve-disconnect'!BU11-'COM S curve-disconnect'!BU$5-'Appliance costs'!BT$85","v":35237.559710448499},{"$f":"'COM S curve-disconnect'!BV11-'COM S curve-disconnect'!BV$5-'Appliance costs'!BU$85","v":35289.478384116162},{"$f":"'COM S curve-disconnect'!BW11-'COM S curve-disconnect'!BW$5-'Appliance costs'!BV$85","v":35350.597520365547},{"$f":"'COM S curve-disconnect'!BX11-'COM S curve-disconnect'!BX$5-'Appliance costs'!BW$85","v":35407.017894425189},{"$f":"'COM S curve-disconnect'!BY11-'COM S curve-disconnect'!BY$5-'Appliance costs'!BX$85","v":35463.373117888877},{"$f":"'COM S curve-disconnect'!BZ11-'COM S curve-disconnect'!BZ$5-'Appliance costs'!BY$85","v":35515.030380432268},{"$f":"'COM S curve-disconnect'!CA11-'COM S curve-disconnect'!CA$5-'Appliance costs'!BZ$85","v":35575.889708127492},{"$f":"'COM S curve-disconnect'!CB11-'COM S curve-disconnect'!CB$5-'Appliance costs'!CA$85","v":35632.051866294154},{"$f":"'COM S curve-disconnect'!CC11-'COM S curve-disconnect'!CC$5-'Appliance costs'!CB$85","v":35688.150456679206},{"$f":"'COM S curve-disconnect'!CD11-'COM S curve-disconnect'!CD$5-'Appliance costs'!CC$85","v":35744.185868889865}]
["Cardinia (S)",null,{"$f":"'COM S curve-disconnect'!C12-'COM S curve-disconnect'!C$5-'Appliance costs'!B$85","v":437.31412198783073},{"$f":"'COM S curve-disconnect'!D12-'COM S curve-disconnect'!D$5-'Appliance costs'!C$85","v":2717.620517452393},{"$f":"'COM S curve-disconnect'!E12-'COM S curve-disconnect'!E$5-'Appliance costs'!D$85","v":6451.1872398130909},{"$f":"'COM S curve-disconnect'!F12-'COM S curve-disconnect'!F$5-'Appliance costs'!E$85","v":7689.8632139669626},{"$f":"'COM S curve-disconnect'!G12-'COM S curve-disconnect'!G$5-'Appliance costs'!F$85","v":2545.0837293134045},{"$f":"'COM S curve-disconnect'!H12-'COM S curve-disconnect'!H$5-'Appliance costs'!G$85","v":2834.9493824140482},{"$f":"'COM S curve-disconnect'!I12-'COM S curve-disconnect'!I$5-'Appliance costs'!H$85","v":4623.3891477130801},{"$f":"'COM S curve-disconnect'!J12-'COM S curve-disconnect'!J$5-'Appliance costs'!I$85","v":4724.270451096032},{"$f":"'COM S curve-disconnect'!K12-'COM S curve-disconnect'!K$5-'Appliance costs'!J$85","v":8519.8408018967111},{"$f":"'COM S curve-disconnect'!L12-'COM S curve-disconnect'!L$5-'Appliance costs'!K$85","v":8624.1225378423696},{"$f":"'COM S curve-disconnect'!M12-'COM S curve-disconnect'!M$5-'Appliance costs'!L$85","v":5736.1638134427594},{"$f":"'COM S curve-disconnect'!N12-'COM S curve-disconnect'!N$5-'Appliance costs'!M$85","v":5864.4639029718783},{"$f":"'COM S curve-disconnect'!O12-'COM S curve-disconnect'!O$5-'Appliance costs'!N$85","v":8041.6331640648586},{"$f":"'COM S curve-disconnect'!P12-'COM S curve-disconnect'!P$5-'Appliance costs'!O$85","v":10146.839163554256},{"$f":"'COM S curve-disconnect'!Q12-'COM S curve-disconnect'!Q$5-'Appliance costs'!P$85","v":3367.2603567970109},{"$f":"'COM S curve-disconnect'!R12-'COM S curve-disconnect'!R$5-'Appliance costs'!Q$85","v":4279.8492490350309},{"$f":"'COM S curve-disconnect'!S12-'COM S curve-disconnect'!S$5-'Appliance costs'!R$85","v":5557.7015477690984},{"$f":"'COM S curve-disconnect'!T12-'COM S curve-disconnect'!T$5-'Appliance costs'!S$85","v":7337.7743062832196},{"$f":"'COM S curve-disconnect'!U12-'COM S curve-disconnect'!U$5-'Appliance costs'!T$85","v":8706.9797859234441},{"$f":"'COM S curve-disconnect'!V12-'COM S curve-disconnect'!V$5-'Appliance costs'!U$85","v":9315.8353811468296},{"$f":"'COM S curve-disconnect'!W12-'COM S curve-disconnect'!W$5-'Appliance costs'!V$85","v":10208.374192894931},{"$f":"'COM S curve-disconnect'!X12-'COM S curve-disconnect'!X$5-'Appliance costs'!W$85","v":12148.629688398969},{"$f":"'COM S curve-disconnect'!Y12-'COM S curve-disconnect'!Y$5-'Appliance costs'!X$85","v":13789.306091354125},{"$f":"'COM S curve-disconnect'!Z12-'COM S curve-disconnect'!Z$5-'Appliance costs'!Y$85","v":14785.568904621845},{"$f":"'COM S curve-disconnect'!AA12-'COM S curve-disconnect'!AA$5-'Appliance costs'!Z$85","v":15903.169690845787},{"$f":"'COM S curve-disconnect'!AB12-'COM S curve-disconnect'!AB$5-'Appliance costs'!AA$85","v":16664.546756988588},{"$f":"'COM S curve-disconnect'!AC12-'COM S curve-disconnect'!AC$5-'Appliance costs'!AB$85","v":17261.961005592209},{"$f":"'COM S curve-disconnect'!AD12-'COM S curve-disconnect'!AD$5-'Appliance costs'!AC$85","v":17732.478735041506},{"$f":"'COM S curve-disconnect'!AE12-'COM S curve-disconnect'!AE$5-'Appliance costs'!AD$85","v":18161.841334980254},{"$f":"'COM S curve-disconnect'!AF12-'COM S curve-disconnect'!AF$5-'Appliance costs'!AE$85","v":18806.564960917007},{"$f":"'COM S curve-disconnect'!AG12-'COM S curve-disconnect'!AG$5-'Appliance costs'!AF$85","v":18829.498951186404},{"$f":"'COM S curve-disconnect'!AH12-'COM S curve-disconnect'!AH$5-'Appliance costs'!AG$85","v":19325.629929521579},{"$f":"'COM S curve-disconnect'!AI12-'COM S curve-disconnect'!AI$5-'Appliance costs'!AH$85","v":19362.489021975292},{"$f":"'COM S curve-disconnect'!AJ12-'COM S curve-disconnect'!AJ$5-'Appliance costs'!AI$85","v":19394.669462194244},{"$f":"'COM S curve-disconnect'!AK12-'COM S curve-disconnect'!AK$5-'Appliance costs'!AJ$85","v":19426.804739138315},{"$f":"'COM S curve-disconnect'!AL12-'COM S curve-disconnect'!AL$5-'Appliance costs'!AK$85","v":19454.261920601224},{"$f":"'COM S curve-disconnect'!AM12-'COM S curve-disconnect'!AM$5-'Appliance costs'!AL$85","v":19490.94091151988},{"$f":"'COM S curve-disconnect'!AN12-'COM S curve-disconnect'!AN$5-'Appliance costs'!AM$85","v":19522.942356821077},{"$f":"'COM S curve-disconnect'!AO12-'COM S curve-disconnect'!AO$5-'Appliance costs'!AN$85","v":19554.899738596512},{"$f":"'COM S curve-disconnect'!AP12-'COM S curve-disconnect'!AP$5-'Appliance costs'!AO$85","v":19582.180117814867},{"$f":"'COM S curve-disconnect'!AQ12-'COM S curve-disconnect'!AQ$5-'Appliance costs'!AP$85","v":19618.683392631079},{"$f":"'COM S curve-disconnect'!AR12-'COM S curve-disconnect'!AR$5-'Appliance costs'!AQ$85","v":19650.510201232661},{"$f":"'COM S curve-disconnect'!AS12-'COM S curve-disconnect'!AS$5-'Appliance costs'!AR$85","v":19682.294019014451},{"$f":"'COM S curve-disconnect'!AT12-'COM S curve-disconnect'!AT$5-'Appliance costs'!AS$85","v":19709.401900290439},{"$f":"'COM S curve-disconnect'!AU12-'COM S curve-disconnect'!AU$5-'Appliance costs'!AT$85","v":19745.733736602771},{"$f":"'COM S curve-disconnect'!AV12-'COM S curve-disconnect'!AV$5-'Appliance costs'!AU$85","v":19777.390159567803},{"$f":"'COM S curve-disconnect'!AW12-'COM S curve-disconnect'!AW$5-'Appliance costs'!AV$85","v":19809.004638050581},{"$f":"'COM S curve-disconnect'!AX12-'COM S curve-disconnect'!AX$5-'Appliance costs'!AW$85","v":19835.944219876437},{"$f":"'COM S curve-disconnect'!AY12-'COM S curve-disconnect'!AY$5-'Appliance costs'!AX$85","v":19872.10879013966},{"$f":"'COM S curve-disconnect'!AZ12-'COM S curve-disconnect'!AZ$5-'Appliance costs'!AY$85","v":19903.598974049353},{"$f":"'COM S curve-disconnect'!BA12-'COM S curve-disconnect'!BA$5-'Appliance costs'!AZ$85","v":19935.04823410367},{"$f":"'COM S curve-disconnect'!BB12-'COM S curve-disconnect'!BB$5-'Appliance costs'!BA$85","v":19961.823611801032},{"$f":"'COM S curve-disconnect'!BC12-'COM S curve-disconnect'!BC$5-'Appliance costs'!BB$85","v":19997.824985948755},{"$f":"'COM S curve-disconnect'!BD12-'COM S curve-disconnect'!BD$5-'Appliance costs'!BC$85","v":20029.152975508441},{"$f":"'COM S curve-disconnect'!BE12-'COM S curve-disconnect'!BE$5-'Appliance costs'!BD$85","v":20060.441036770077},{"$f":"'COM S curve-disconnect'!BF12-'COM S curve-disconnect'!BF$5-'Appliance costs'!BE$85","v":20087.05620506304},{"$f":"'COM S curve-disconnect'!BG12-'COM S curve-disconnect'!BG$5-'Appliance costs'!BF$85","v":20122.898353064294},{"$f":"'COM S curve-disconnect'!BH12-'COM S curve-disconnect'!BH$5-'Appliance costs'!BG$85","v":20154.0680936438},{"$f":"'COM S curve-disconnect'!BI12-'COM S curve-disconnect'!BI$5-'Appliance costs'!BH$85","v":20185.198877038136},{"$f":"'COM S curve-disconnect'!BJ12-'COM S curve-disconnect'!BJ$5-'Appliance costs'!BI$85","v":20211.657732561354},{"$f":"'COM S curve-disconnect'!BK12-'COM S curve-disconnect'!BK$5-'Appliance costs'!BJ$85","v":20247.344526913002},{"$f":"'COM S curve-disconnect'!BL12-'COM S curve-disconnect'!BL$5-'Appliance costs'!BK$85","v":20278.359867023137},{"$f":"'COM S curve-disconnect'!BM12-'COM S curve-disconnect'!BM$5-'Appliance costs'!BL$85","v":20309.337197225861},{"$f":"'COM S curve-disconnect'!BN12-'COM S curve-disconnect'!BN$5-'Appliance costs'!BM$85","v":20335.643540969839},{"$f":"'COM S curve-disconnect'!BO12-'COM S curve-disconnect'!BO$5-'Appliance costs'!BN$85","v":20371.178759126131},{"$f":"'COM S curve-disconnect'!BP12-'COM S curve-disconnect'!BP$5-'Appliance costs'!BO$85","v":20402.043452832957},{"$f":"'COM S curve-disconnect'!BQ12-'COM S curve-disconnect'!BQ$5-'Appliance costs'!BP$85","v":20432.871060668978},{"$f":"'COM S curve-disconnect'!BR12-'COM S curve-disconnect'!BR$5-'Appliance costs'!BQ$85","v":20459.028600363665},{"$f":"'COM S curve-disconnect'!BS12-'COM S curve-disconnect'!BS$5-'Appliance costs'!BR$85","v":20494.415927104797},{"$f":"'COM S curve-disconnect'!BT12-'COM S curve-disconnect'!BT$5-'Appliance costs'!BS$85","v":20525.133636383056},{"$f":"'COM S curve-disconnect'!BU12-'COM S curve-disconnect'!BU$5-'Appliance costs'!BT$85","v":20555.815161165097},{"$f":"'COM S curve-disconnect'!BV12-'COM S curve-disconnect'!BV$5-'Appliance costs'!BU$85","v":20581.827513603625},{"$f":"'COM S curve-disconnect'!BW12-'COM S curve-disconnect'!BW$5-'Appliance costs'!BV$85","v":20617.070543344751},{"$f":"'COM S curve-disconnect'!BX12-'COM S curve-disconnect'!BX$5-'Appliance costs'!BW$85","v":20647.644840372261},{"$f":"'COM S curve-disconnect'!BY12-'COM S curve-disconnect'!BY$5-'Appliance costs'!BX$85","v":20678.183832180592},{"$f":"'COM S curve-disconnect'!BZ12-'COM S curve-disconnect'!BZ$5-'Appliance costs'!BY$85","v":20704.054525484571},{"$f":"'COM S curve-disconnect'!CA12-'COM S curve-disconnect'!CA$5-'Appliance costs'!BZ$85","v":20739.156764526648},{"$f":"'COM S curve-disconnect'!CB12-'COM S curve-disconnect'!CB$5-'Appliance costs'!CA$85","v":20769.591133920905},{"$f":"'COM S curve-disconnect'!CC12-'COM S curve-disconnect'!CC$5-'Appliance costs'!CB$85","v":20799.991055825776},{"$f":"'COM S curve-disconnect'!CD12-'COM S curve-disconnect'!CD$5-'Appliance costs'!CC$85","v":20830.356741370088}]
["Casey (C)",null,{"$f":"'COM S curve-disconnect'!C13-'COM S curve-disconnect'!C$5-'Appliance costs'!B$85","v":-197.45556894940819},{"$f":"'COM S curve-disconnect'!D13-'COM S curve-disconnect'!D$5-'Appliance costs'!C$85","v":2454.5059379293616},{"$f":"'COM S curve-disconnect'!E13-'COM S curve-disconnect'!E$5-'Appliance costs'!D$85","v":6785.3106278996402},{"$f":"'COM S curve-disconnect'!F13-'COM S curve-disconnect'!F$5-'Appliance costs'!E$85","v":8223.0969293211365},{"$f":"'COM S curve-disconnect'!G13-'COM S curve-disconnect'!G$5-'Appliance costs'!F$85","v":2250.0733439689739},{"$f":"'COM S curve-disconnect'!H13-'COM S curve-disconnect'!H$5-'Appliance costs'!G$85","v":2585.9589937931014},{"$f":"'COM S curve-disconnect'!I13-'COM S curve-disconnect'!I$5-'Appliance costs'!H$85","v":4658.8379905210131},{"$f":"'COM S curve-disconnect'!J13-'COM S curve-disconnect'!J$5-'Appliance costs'!I$85","v":4769.9052406816554},{"$f":"'COM S curve-disconnect'!K13-'COM S curve-disconnect'!K$5-'Appliance costs'!J$85","v":9158.3964866252845},{"$f":"'COM S curve-disconnect'!L13-'COM S curve-disconnect'!L$5-'Appliance costs'!K$85","v":9268.0942199740894},{"$f":"'COM S curve-disconnect'!M13-'COM S curve-disconnect'!M$5-'Appliance costs'!L$85","v":5902.7420069946675},{"$f":"'COM S curve-disconnect'!N13-'COM S curve-disconnect'!N$5-'Appliance costs'!M$85","v":6049.0546992641175},{"$f":"'COM S curve-disconnect'!O13-'COM S curve-disconnect'!O$5-'Appliance costs'!N$85","v":8555.4462945277664},{"$f":"'COM S curve-disconnect'!P13-'COM S curve-disconnect'!P$5-'Appliance costs'!O$85","v":10980.05830903429},{"$f":"'COM S curve-disconnect'!Q13-'COM S curve-disconnect'!Q$5-'Appliance costs'!P$85","v":3385.7474796797305},{"$f":"'COM S curve-disconnect'!R13-'COM S curve-disconnect'!R$5-'Appliance costs'!Q$85","v":4446.2567482935883},{"$f":"'COM S curve-disconnect'!S13-'COM S curve-disconnect'!S$5-'Appliance costs'!R$85","v":5930.0593586193918},{"$f":"'COM S curve-disconnect'!T13-'COM S curve-disconnect'!T$5-'Appliance costs'!S$85","v":7998.6996595634755},{"$f":"'COM S curve-disconnect'!U13-'COM S curve-disconnect'!U$5-'Appliance costs'!T$85","v":9589.5153766961866},{"$f":"'COM S curve-disconnect'!V13-'COM S curve-disconnect'!V$5-'Appliance costs'!U$85","v":10296.818681505365},{"$f":"'COM S curve-disconnect'!W13-'COM S curve-disconnect'!W$5-'Appliance costs'!V$85","v":11332.538657098659},{"$f":"'COM S curve-disconnect'!X13-'COM S curve-disconnect'!X$5-'Appliance costs'!W$85","v":13587.499944165565},{"$f":"'COM S curve-disconnect'!Y13-'COM S curve-disconnect'!Y$5-'Appliance costs'!X$85","v":15494.062953672228},{"$f":"'COM S curve-disconnect'!Z13-'COM S curve-disconnect'!Z$5-'Appliance costs'!Y$85","v":16651.945536954954},{"$f":"'COM S curve-disconnect'!AA13-'COM S curve-disconnect'!AA$5-'Appliance costs'!Z$85","v":17949.439599522993},{"$f":"'COM S curve-disconnect'!AB13-'COM S curve-disconnect'!AB$5-'Appliance costs'!AA$85","v":18833.41357645957},{"$f":"'COM S curve-disconnect'!AC13-'COM S curve-disconnect'!AC$5-'Appliance costs'!AB$85","v":19526.70878069038},{"$f":"'COM S curve-disconnect'!AD13-'COM S curve-disconnect'!AD$5-'Appliance costs'!AC$85","v":20073.187856074343},{"$f":"'COM S curve-disconnect'!AE13-'COM S curve-disconnect'!AE$5-'Appliance costs'!AD$85","v":20570.301264641894},{"$f":"'COM S curve-disconnect'!AF13-'COM S curve-disconnect'!AF$5-'Appliance costs'!AE$85","v":21318.638767249853},{"$f":"'COM S curve-disconnect'!AG13-'COM S curve-disconnect'!AG$5-'Appliance costs'!AF$85","v":21345.310647622835},{"$f":"'COM S curve-disconnect'!AH13-'COM S curve-disconnect'!AH$5-'Appliance costs'!AG$85","v":21923.058539576617},{"$f":"'COM S curve-disconnect'!AI13-'COM S curve-disconnect'!AI$5-'Appliance costs'!AH$85","v":21965.169958675098},{"$f":"'COM S curve-disconnect'!AJ13-'COM S curve-disconnect'!AJ$5-'Appliance costs'!AI$85","v":22002.595319102453},{"$f":"'COM S curve-disconnect'!AK13-'COM S curve-disconnect'!AK$5-'Appliance costs'!AJ$85","v":22039.968155330993},{"$f":"'COM S curve-disconnect'!AL13-'COM S curve-disconnect'!AL$5-'Appliance costs'!AK$85","v":22072.655580384315},{"$f":"'COM S curve-disconnect'!AM13-'COM S curve-disconnect'!AM$5-'Appliance costs'!AL$85","v":22114.557544148534},{"$f":"'COM S curve-disconnect'!AN13-'COM S curve-disconnect'!AN$5-'Appliance costs'!AM$85","v":22151.774736220643},{"$f":"'COM S curve-disconnect'!AO13-'COM S curve-disconnect'!AO$5-'Appliance costs'!AN$85","v":22188.940683085355},{"$f":"'COM S curve-disconnect'!AP13-'COM S curve-disconnect'!AP$5-'Appliance costs'!AO$85","v":22221.422489828874},{"$f":"'COM S curve-disconnect'!AQ13-'COM S curve-disconnect'!AQ$5-'Appliance costs'!AP$85","v":22263.120098449959},{"$f":"'COM S curve-disconnect'!AR13-'COM S curve-disconnect'!AR$5-'Appliance costs'!AQ$85","v":22300.134190707948},{"$f":"'COM S curve-disconnect'!AS13-'COM S curve-disconnect'!AS$5-'Appliance costs'!AR$85","v":22337.09828529918},{"$f":"'COM S curve-disconnect'!AT13-'COM S curve-disconnect'!AT$5-'Appliance costs'!AS$85","v":22369.379479570576},{"$f":"'COM S curve-disconnect'!AU13-'COM S curve-disconnect'!AU$5-'Appliance costs'!AT$85","v":22410.877707830339},{"$f":"'COM S curve-disconnect'!AV13-'COM S curve-disconnect'!AV$5-'Appliance costs'!AU$85","v":22447.693644195606},{"$f":"'COM S curve-disconnect'!AW13-'COM S curve-disconnect'!AW$5-'Appliance costs'!AV$85","v":22484.460799768705},{"$f":"'COM S curve-disconnect'!AX13-'COM S curve-disconnect'!AX$5-'Appliance costs'!AW$85","v":22516.546264350334},{"$f":"'COM S curve-disconnect'!AY13-'COM S curve-disconnect'!AY$5-'Appliance costs'!AX$85","v":22557.849964749919},{"$f":"'COM S curve-disconnect'!AZ13-'COM S curve-disconnect'!AZ$5-'Appliance costs'!AY$85","v":22594.472567633085},{"$f":"'COM S curve-disconnect'!BA13-'COM S curve-disconnect'!BA$5-'Appliance costs'!AZ$85","v":22631.047576697543},{"$f":"'COM S curve-disconnect'!BB13-'COM S curve-disconnect'!BB$5-'Appliance costs'!BA$85","v":22662.942074385908},{"$f":"'COM S curve-disconnect'!BC13-'COM S curve-disconnect'!BC$5-'Appliance costs'!BB$85","v":22704.055980195939},{"$f":"'COM S curve-disconnect'!BD13-'COM S curve-disconnect'!BD$5-'Appliance costs'!BC$85","v":22740.489953527518},{"$f":"'COM S curve-disconnect'!BE13-'COM S curve-disconnect'!BE$5-'Appliance costs'!BD$85","v":22776.877490858358},{"$f":"'COM S curve-disconnect'!BF13-'COM S curve-disconnect'!BF$5-'Appliance costs'!BE$85","v":22808.585667456558},{"$f":"'COM S curve-disconnect'!BG13-'COM S curve-disconnect'!BG$5-'Appliance costs'!BF$85","v":22849.514395690385},{"$f":"'COM S curve-disconnect'!BH13-'COM S curve-disconnect'!BH$5-'Appliance costs'!BG$85","v":22885.764327875229},{"$f":"'COM S curve-disconnect'!BI13-'COM S curve-disconnect'!BI$5-'Appliance costs'!BH$85","v":22921.968953448762},{"$f":"'COM S curve-disconnect'!BJ13-'COM S curve-disconnect'!BJ$5-'Appliance costs'!BI$85","v":22953.495340683388},{"$f":"'COM S curve-disconnect'!BK13-'COM S curve-disconnect'!BK$5-'Appliance costs'!BJ$85","v":22994.243394995712},{"$f":"'COM S curve-disconnect'!BL13-'COM S curve-disconnect'!BL$5-'Appliance costs'!BK$85","v":23030.313761793099},{"$f":"'COM S curve-disconnect'!BM13-'COM S curve-disconnect'!BM$5-'Appliance costs'!BL$85","v":23066.339923648753},{"$f":"'COM S curve-disconnect'!BN13-'COM S curve-disconnect'!BN$5-'Appliance costs'!BM$85","v":23097.688942013694},{"$f":"'COM S curve-disconnect'!BO13-'COM S curve-disconnect'!BO$5-'Appliance costs'!BN$85","v":23138.260715526092},{"$f":"'COM S curve-disconnect'!BP13-'COM S curve-disconnect'!BP$5-'Appliance costs'!BO$85","v":23174.155882857507},{"$f":"'COM S curve-disconnect'!BQ13-'COM S curve-disconnect'!BQ$5-'Appliance costs'!BP$85","v":23210.007919887663},{"$f":"'COM S curve-disconnect'!BR13-'COM S curve-disconnect'!BR$5-'Appliance costs'!BQ$85","v":23241.183881416218},{"$f":"'COM S curve-disconnect'!BS13-'COM S curve-disconnect'!BS$5-'Appliance costs'!BR$85","v":23281.583659471784},{"$f":"'COM S curve-disconnect'!BT13-'COM S curve-disconnect'!BT$5-'Appliance costs'!BS$85","v":23317.307886157934},{"$f":"'COM S curve-disconnect'!BU13-'COM S curve-disconnect'!BU$5-'Appliance costs'!BT$85","v":23352.990030827685},{"$f":"'COM S curve-disconnect'!BV13-'COM S curve-disconnect'!BV$5-'Appliance costs'!BU$85","v":23383.997141795015},{"$f":"'COM S curve-disconnect'!BW13-'COM S curve-disconnect'!BW$5-'Appliance costs'!BV$85","v":23424.22910464368},{"$f":"'COM S curve-disconnect'!BX13-'COM S curve-disconnect'!BX$5-'Appliance costs'!BW$85","v":23459.786545072784},{"$f":"'COM S curve-disconnect'!BY13-'COM S curve-disconnect'!BY$5-'Appliance costs'!BX$85","v":23495.302926071257},{"$f":"'COM S curve-disconnect'!BZ13-'COM S curve-disconnect'!BZ$5-'Appliance costs'!BY$85","v":23526.145289628912},{"$f":"'COM S curve-disconnect'!CA13-'COM S curve-disconnect'!CA$5-'Appliance costs'!BZ$85","v":23566.213515045114},{"$f":"'COM S curve-disconnect'!CB13-'COM S curve-disconnect'!CB$5-'Appliance costs'!CA$85","v":23601.608221774099},{"$f":"'COM S curve-disconnect'!CC13-'COM S curve-disconnect'!CC$5-'Appliance costs'!CB$85","v":23636.962866599111},{"$f":"'COM S curve-disconnect'!CD13-'COM S curve-disconnect'!CD$5-'Appliance costs'!CC$85","v":23672.277695059733}]
["Frankston (C)",null,{"$f":"'COM S curve-disconnect'!C14-'COM S curve-disconnect'!C$5-'Appliance costs'!B$85","v":5118.5486356193251},{"$f":"'COM S curve-disconnect'!D14-'COM S curve-disconnect'!D$5-'Appliance costs'!C$85","v":5118.5486356193251},{"$f":"'COM S curve-disconnect'!E14-'COM S curve-disconnect'!E$5-'Appliance costs'!D$85","v":4902.182661370658},{"$f":"'COM S curve-disconnect'!F14-'COM S curve-disconnect'!F$5-'Appliance costs'!E$85","v":4919.2084046323744},{"$f":"'COM S curve-disconnect'!G14-'COM S curve-disconnect'!G$5-'Appliance costs'!F$85","v":5062.7051631565455},{"$f":"'COM S curve-disconnect'!H14-'COM S curve-disconnect'!H$5-'Appliance costs'!G$85","v":5070.213088285941},{"$f":"'COM S curve-disconnect'!I14-'COM S curve-disconnect'!I$5-'Appliance costs'!H$85","v":5113.4633522748882},{"$f":"'COM S curve-disconnect'!J14-'COM S curve-disconnect'!J$5-'Appliance costs'!I$85","v":5220.6047897969102},{"$f":"'COM S curve-disconnect'!K14-'COM S curve-disconnect'!K$5-'Appliance costs'!J$85","v":5327.8044922900663},{"$f":"'COM S curve-disconnect'!L14-'COM S curve-disconnect'!L$5-'Appliance costs'!K$85","v":5388.9114174535907},{"$f":"'COM S curve-disconnect'!M14-'COM S curve-disconnect'!M$5-'Appliance costs'!L$85","v":5420.1265891590001},{"$f":"'COM S curve-disconnect'!N14-'COM S curve-disconnect'!N$5-'Appliance costs'!M$85","v":5428.0640365680774},{"$f":"'COM S curve-disconnect'!O14-'COM S curve-disconnect'!O$5-'Appliance costs'!N$85","v":5575.4787934960395},{"$f":"'COM S curve-disconnect'!P14-'COM S curve-disconnect'!P$5-'Appliance costs'!O$85","v":5711.2077311829289},{"$f":"'COM S curve-disconnect'!Q14-'COM S curve-disconnect'!Q$5-'Appliance costs'!P$85","v":3920.7547562067134},{"$f":"'COM S curve-disconnect'!R14-'COM S curve-disconnect'!R$5-'Appliance costs'!Q$85","v":3916.1215464903016},{"$f":"'COM S curve-disconnect'!S14-'COM S curve-disconnect'!S$5-'Appliance costs'!R$85","v":3920.7547562067134},{"$f":"'COM S curve-disconnect'!T14-'COM S curve-disconnect'!T$5-'Appliance costs'!S$85","v":3920.7547562067134},{"$f":"'COM S curve-disconnect'!U14-'COM S curve-disconnect'!U$5-'Appliance costs'!T$85","v":3920.7547562067134},{"$f":"'COM S curve-disconnect'!V14-'COM S curve-disconnect'!V$5-'Appliance costs'!U$85","v":3916.1215464903016},{"$f":"'COM S curve-disconnect'!W14-'COM S curve-disconnect'!W$5-'Appliance costs'!V$85","v":3920.7547562067134},{"$f":"'COM S curve-disconnect'!X14-'COM S curve-disconnect'!X$5-'Appliance costs'!W$85","v":3920.7547562067134},{"$f":"'COM S curve-disconnect'!Y14-'COM S curve-disconnect'!Y$5-'Appliance costs'!X$85","v":3920.7547562067134},{"$f":"'COM S curve-disconnect'!Z14-'COM S curve-disconnect'!Z$5-'Appliance costs'!Y$85","v":3916.1215464903016},{"$f":"'COM S curve-disconnect'!AA14-'COM S curve-disconnect'!AA$5-'Appliance costs'!Z$85","v":3920.7547562067134},{"$f":"'COM S curve-disconnect'!AB14-'COM S curve-disconnect'!AB$5-'Appliance costs'!AA$85","v":3920.7547562067134},{"$f":"'COM S curve-disconnect'!AC14-'COM S curve-disconnect'!AC$5-'Appliance costs'!AB$85","v":3920.7547562067134},{"$f":"'COM S curve-disconnect'!AD14-'COM S curve-disconnect'!AD$5-'Appliance costs'!AC$85","v":3916.1215464903016},{"$f":"'COM S curve-disconnect'!AE14-'COM S curve-disconnect'!AE$5-'Appliance costs'!AD$85","v":3920.7547562067134},{"$f":"'COM S curve-disconnect'!AF14-'COM S curve-disconnect'!AF$5-'Appliance costs'!AE$85","v":3920.7547562067134},{"$f":"'COM S curve-disconnect'!AG14-'COM S curve-disconnect'!AG$5-'Appliance costs'!AF$85","v":3920.7547562067134},{"$f":"'COM S curve-disconnect'!AH14-'COM S curve-disconnect'!AH$5-'Appliance costs'!AG$85","v":3916.1215464903016},{"$f":"'COM S curve-disconnect'!AI14-'COM S curve-disconnect'!AI$5-'Appliance costs'!AH$85","v":3920.7547562067134},{"$f":"'COM S curve-disconnect'!AJ14-'COM S curve-disconnect'!AJ$5-'Appliance costs'!AI$85","v":3920.7547562067134},{"$f":"'COM S curve-disconnect'!AK14-'COM S curve-disconnect'!AK$5-'Appliance costs'!AJ$85","v":3920.7547562067134},{"$f":"'COM S curve-disconnect'!AL14-'COM S curve-disconnect'!AL$5-'Appliance costs'!AK$85","v":3916.1215464903016},{"$f":"'COM S curve-disconnect'!AM14-'COM S curve-disconnect'!AM$5-'Appliance costs'!AL$85","v":3920.7547562067134},{"$f":"'COM S curve-disconnect'!AN14-'COM S curve-disconnect'!AN$5-'Appliance costs'!AM$85","v":3920.7547562067134},{"$f":"'COM S curve-disconnect'!AO14-'COM S curve-disconnect'!AO$5-'Appliance costs'!AN$85","v":3920.7547562067134},{"$f":"'COM S curve-disconnect'!AP14-'COM S curve-disconnect'!AP$5-'Appliance costs'!AO$85","v":3916.1215464903016},{"$f":"'COM S curve-disconnect'!AQ14-'COM S curve-disconnect'!AQ$5-'Appliance costs'!AP$85","v":3920.7547562067134},{"$f":"'COM S curve-disconnect'!AR14-'COM S curve-disconnect'!AR$5-'Appliance costs'!AQ$85","v":3920.7547562067134},{"$f":"'COM S curve-disconnect'!AS14-'COM S curve-disconnect'!AS$5-'Appliance costs'!AR$85","v":3920.7547562067134},{"$f":"'COM S curve-disconnect'!AT14-'COM S curve-disconnect'!AT$5-'Appliance costs'!AS$85","v":3916.1215464903016},{"$f":"'COM S curve-disconnect'!AU14-'COM S curve-disconnect'!AU$5-'Appliance costs'!AT$85","v":3920.7547562067134},{"$f":"'COM S curve-disconnect'!AV14-'COM S curve-disconnect'!AV$5-'Appliance costs'!AU$85","v":3920.7547562067134},{"$f":"'COM S curve-disconnect'!AW14-'COM S curve-disconnect'!AW$5-'Appliance costs'!AV$85","v":3920.7547562067134},{"$f":"'COM S curve-disconnect'!AX14-'COM S curve-disconnect'!AX$5-'Appliance costs'!AW$85","v":3916.1215464903016},{"$f":"'COM S curve-disconnect'!AY14-'COM S curve-disconnect'!AY$5-'Appliance costs'!AX$85","v":3920.7547562067134},{"$f":"'COM S curve-disconnect'!AZ14-'COM S curve-disconnect'!AZ$5-'Appliance costs'!AY$85","v":3920.7547562067134},{"$f":"'COM S curve-disconnect'!BA14-'COM S curve-disconnect'!BA$5-'Appliance costs'!AZ$85","v":3920.7547562067134},{"$f":"'COM S curve-disconnect'!BB14-'COM S curve-disconnect'!BB$5-'Appliance costs'!BA$85","v":3916.1215464903016},{"$f":"'COM S curve-disconnect'!BC14-'COM S curve-disconnect'!BC$5-'Appliance costs'!BB$85","v":3920.7547562067134},{"$f":"'COM S curve-disconnect'!BD14-'COM S curve-disconnect'!BD$5-'Appliance costs'!BC$85","v":3920.7547562067134},{"$f":"'COM S curve-disconnect'!BE14-'COM S curve-disconnect'!BE$5-'Appliance costs'!BD$85","v":3920.7547562067134},{"$f":"'COM S curve-disconnect'!BF14-'COM S curve-disconnect'!BF$5-'Appliance costs'!BE$85","v":3916.1215464903016},{"$f":"'COM S curve-disconnect'!BG14-'COM S curve-disconnect'!BG$5-'Appliance costs'!BF$85","v":3920.7547562067134},{"$f":"'COM S curve-disconnect'!BH14-'COM S curve-disconnect'!BH$5-'Appliance costs'!BG$85","v":3920.7547562067134},{"$f":"'COM S curve-disconnect'!BI14-'COM S curve-disconnect'!BI$5-'Appliance costs'!BH$85","v":3920.7547562067134},{"$f":"'COM S curve-disconnect'!BJ14-'COM S curve-disconnect'!BJ$5-'Appliance costs'!BI$85","v":3916.1215464903016},{"$f":"'COM S curve-disconnect'!BK14-'COM S curve-disconnect'!BK$5-'Appliance costs'!BJ$85","v":3920.7547562067134},{"$f":"'COM S curve-disconnect'!BL14-'COM S curve-disconnect'!BL$5-'Appliance costs'!BK$85","v":3920.7547562067134},{"$f":"'COM S curve-disconnect'!BM14-'COM S curve-disconnect'!BM$5-'Appliance costs'!BL$85","v":3920.7547562067134},{"$f":"'COM S curve-disconnect'!BN14-'COM S curve-disconnect'!BN$5-'Appliance costs'!BM$85","v":3916.1215464903016},{"$f":"'COM S curve-disconnect'!BO14-'COM S curve-disconnect'!BO$5-'Appliance costs'!BN$85","v":3920.7547562067134},{"$f":"'COM S curve-disconnect'!BP14-'COM S curve-disconnect'!BP$5-'Appliance costs'!BO$85","v":3920.7547562067134},{"$f":"'COM S curve-disconnect'!BQ14-'COM S curve-disconnect'!BQ$5-'Appliance costs'!BP$85","v":3920.7547562067134},{"$f":"'COM S curve-disconnect'!BR14-'COM S curve-disconnect'!BR$5-'Appliance costs'!BQ$85","v":3916.1215464903016},{"$f":"'COM S curve-disconnect'!BS14-'COM S curve-disconnect'!BS$5-'Appliance costs'!BR$85","v":3920.7547562067134},{"$f":"'COM S curve-disconnect'!BT14-'COM S curve-disconnect'!BT$5-'Appliance costs'!BS$85","v":3920.7547562067134},{"$f":"'COM S curve-disconnect'!BU14-'COM S curve-disconnect'!BU$5-'Appliance costs'!BT$85","v":3920.7547562067134},{"$f":"'COM S curve-disconnect'!BV14-'COM S curve-disconnect'!BV$5-'Appliance costs'!BU$85","v":3916.1215464903016},{"$f":"'COM S curve-disconnect'!BW14-'COM S curve-disconnect'!BW$5-'Appliance costs'!BV$85","v":3920.7547562067134},{"$f":"'COM S curve-disconnect'!BX14-'COM S curve-disconnect'!BX$5-'Appliance costs'!BW$85","v":3920.7547562067134},{"$f":"'COM S curve-disconnect'!BY14-'COM S curve-disconnect'!BY$5-'Appliance costs'!BX$85","v":3920.7547562067134},{"$f":"'COM S curve-disconnect'!BZ14-'COM S curve-disconnect'!BZ$5-'Appliance costs'!BY$85","v":3916.1215464903016},{"$f":"'COM S curve-disconnect'!CA14-'COM S curve-disconnect'!CA$5-'Appliance costs'!BZ$85","v":3920.7547562067134},{"$f":"'COM S curve-disconnect'!CB14-'COM S curve-disconnect'!CB$5-'Appliance costs'!CA$85","v":3920.7547562067134},{"$f":"'COM S curve-disconnect'!CC14-'COM S curve-disconnect'!CC$5-'Appliance costs'!CB$85","v":3920.7547562067134},{"$f":"'COM S curve-disconnect'!CD14-'COM S curve-disconnect'!CD$5-'Appliance costs'!CC$85","v":3920.7547562067134}]
["Glen Eira (C)",null,{"$f":"'COM S curve-disconnect'!C15-'COM S curve-disconnect'!C$5-'Appliance costs'!B$85","v":-475.14575935972971},{"$f":"'COM S curve-disconnect'!D15-'COM S curve-disconnect'!D$5-'Appliance costs'!C$85","v":2322.5275821894757},{"$f":"'COM S curve-disconnect'!E15-'COM S curve-disconnect'!E$5-'Appliance costs'!D$85","v":6897.9495633203842},{"$f":"'COM S curve-disconnect'!F15-'COM S curve-disconnect'!F$5-'Appliance costs'!E$85","v":8413.7994516453346},{"$f":"'COM S curve-disconnect'!G15-'COM S curve-disconnect'!G$5-'Appliance costs'!F$85","v":2108.4846881693938},{"$f":"'COM S curve-disconnect'!H15-'COM S curve-disconnect'!H$5-'Appliance costs'!G$85","v":2462.4130285099782},{"$f":"'COM S curve-disconnect'!I15-'COM S curve-disconnect'!I$5-'Appliance costs'!H$85","v":4646.8098302965664},{"$f":"'COM S curve-disconnect'!J15-'COM S curve-disconnect'!J$5-'Appliance costs'!I$85","v":4759.3512825021971},{"$f":"'COM S curve-disconnect'!K15-'COM S curve-disconnect'!K$5-'Appliance costs'!J$85","v":9382.1538458609866},{"$f":"'COM S curve-disconnect'!L15-'COM S curve-disconnect'!L$5-'Appliance costs'!K$85","v":9494.3393723970512},{"$f":"'COM S curve-disconnect'!M15-'COM S curve-disconnect'!M$5-'Appliance costs'!L$85","v":5942.1818930749323},{"$f":"'COM S curve-disconnect'!N15-'COM S curve-disconnect'!N$5-'Appliance costs'!M$85","v":6095.9173936633197},{"$f":"'COM S curve-disconnect'!O15-'COM S curve-disconnect'!O$5-'Appliance costs'!N$85","v":8731.7434934799676},{"$f":"'COM S curve-disconnect'!P15-'COM S curve-disconnect'!P$5-'Appliance costs'!O$85","v":11281.939612386108},{"$f":"'COM S curve-disconnect'!Q15-'COM S curve-disconnect'!Q$5-'Appliance costs'!P$85","v":3368.5587098233682},{"$f":"'COM S curve-disconnect'!R15-'COM S curve-disconnect'!R$5-'Appliance costs'!Q$85","v":4487.4155231374079},{"$f":"'COM S curve-disconnect'!S15-'COM S curve-disconnect'!S$5-'Appliance costs'!R$85","v":6052.3152408559272},{"$f":"'COM S curve-disconnect'!T15-'COM S curve-disconnect'!T$5-'Appliance costs'!S$85","v":8234.441964252519},{"$f":"'COM S curve-disconnect'!U15-'COM S curve-disconnect'!U$5-'Appliance costs'!T$85","v":9912.4909407246723},{"$f":"'COM S curve-disconnect'!V15-'COM S curve-disconnect'!V$5-'Appliance costs'!U$85","v":10658.738420141473},{"$f":"'COM S curve-disconnect'!W15-'COM S curve-disconnect'!W$5-'Appliance costs'!V$85","v":11750.939123628676},{"$f":"'COM S curve-disconnect'!X15-'COM S curve-disconnect'!X$5-'Appliance costs'!W$85","v":14129.627697623988},{"$f":"'COM S curve-disconnect'!Y15-'COM S curve-disconnect'!Y$5-'Appliance costs'!X$85","v":16140.776132698005},{"$f":"'COM S curve-disconnect'!Z15-'COM S curve-disconnect'!Z$5-'Appliance costs'!Y$85","v":17362.363373346394},{"$f":"'COM S curve-disconnect'!AA15-'COM S curve-disconnect'!AA$5-'Appliance costs'!Z$85","v":18730.72474168639},{"$f":"'COM S curve-disconnect'!AB15-'COM S curve-disconnect'!AB$5-'Appliance costs'!AA$85","v":19663.100608547618},{"$f":"'COM S curve-disconnect'!AC15-'COM S curve-disconnect'!AC$5-'Appliance costs'!AB$85","v":20394.321711205317},{"$f":"'COM S curve-disconnect'!AD15-'COM S curve-disconnect'!AD$5-'Appliance costs'!AC$85","v":20970.915290512752},{"$f":"'COM S curve-disconnect'!AE15-'COM S curve-disconnect'!AE$5-'Appliance costs'!AD$85","v":21494.922498837845},{"$f":"'COM S curve-disconnect'!AF15-'COM S curve-disconnect'!AF$5-'Appliance costs'!AE$85","v":22284.212689843102},{"$f":"'COM S curve-disconnect'!AG15-'COM S curve-disconnect'!AG$5-'Appliance costs'!AF$85","v":22312.350054769006},{"$f":"'COM S curve-disconnect'!AH15-'COM S curve-disconnect'!AH$5-'Appliance costs'!AG$85","v":22922.096834557931},{"$f":"'COM S curve-disconnect'!AI15-'COM S curve-disconnect'!AI$5-'Appliance costs'!AH$85","v":22966.267491181185},{"$f":"'COM S curve-disconnect'!AJ15-'COM S curve-disconnect'!AJ$5-'Appliance costs'!AI$85","v":23005.749185351298},{"$f":"'COM S curve-disconnect'!AK15-'COM S curve-disconnect'!AK$5-'Appliance costs'!AJ$85","v":23045.175469384252},{"$f":"'COM S curve-disconnect'!AL15-'COM S curve-disconnect'!AL$5-'Appliance costs'!AK$85","v":23079.913474036584},{"$f":"'COM S curve-disconnect'!AM15-'COM S curve-disconnect'!AM$5-'Appliance costs'!AL$85","v":23123.863166817267},{"$f":"'COM S curve-disconnect'!AN15-'COM S curve-disconnect'!AN$5-'Appliance costs'!AM$85","v":23163.125254836792},{"$f":"'COM S curve-disconnect'!AO15-'COM S curve-disconnect'!AO$5-'Appliance costs'!AN$85","v":23202.333281984662},{"$f":"'COM S curve-disconnect'!AP15-'COM S curve-disconnect'!AP$5-'Appliance costs'!AO$85","v":23236.854370643916},{"$f":"'COM S curve-disconnect'!AQ15-'COM S curve-disconnect'!AQ$5-'Appliance costs'!AP$85","v":23280.588480002807},{"$f":"'COM S curve-disconnect'!AR15-'COM S curve-disconnect'!AR$5-'Appliance costs'!AQ$85","v":23319.636308903486},{"$f":"'COM S curve-disconnect'!AS15-'COM S curve-disconnect'!AS$5-'Appliance costs'!AR$85","v":23358.631393019212},{"$f":"'COM S curve-disconnect'!AT15-'COM S curve-disconnect'!AT$5-'Appliance costs'!AS$85","v":23392.940846568461},{"$f":"'COM S curve-disconnect'!AU15-'COM S curve-disconnect'!AU$5-'Appliance costs'!AT$85","v":23436.464620626371},{"$f":"'COM S curve-disconnect'!AV15-'COM S curve-disconnect'!AV$5-'Appliance costs'!AU$85","v":23475.303405973042},{"$f":"'COM S curve-disconnect'!AW15-'COM S curve-disconnect'!AW$5-'Appliance costs'!AV$85","v":23514.090730270414},{"$f":"'COM S curve-disconnect'!AX15-'COM S curve-disconnect'!AX$5-'Appliance costs'!AW$85","v":23548.19369977613},{"$f":"'COM S curve-disconnect'!AY15-'COM S curve-disconnect'!AY$5-'Appliance costs'!AX$85","v":23591.51225765454},{"$f":"'COM S curve-disconnect'!AZ15-'COM S curve-disconnect'!AZ$5-'Appliance costs'!AY$85","v":23630.147086824807},{"$f":"'COM S curve-disconnect'!BA15-'COM S curve-disconnect'!BA$5-'Appliance costs'!AZ$85","v":23668.731707137413},{"$f":"'COM S curve-disconnect'!BB15-'COM S curve-disconnect'!BB$5-'Appliance costs'!BA$85","v":23702.633217087627},{"$f":"'COM S curve-disconnect'!BC15-'COM S curve-disconnect'!BC$5-'Appliance costs'!BB$85","v":23745.751552126385},{"$f":"'COM S curve-disconnect'!BD15-'COM S curve-disconnect'!BD$5-'Appliance costs'!BC$85","v":23784.187387507889},{"$f":"'COM S curve-disconnect'!BE15-'COM S curve-disconnect'!BE$5-'Appliance costs'!BD$85","v":23822.574235465923},{"$f":"'COM S curve-disconnect'!BF15-'COM S curve-disconnect'!BF$5-'Appliance costs'!BE$85","v":23856.279186927044},{"$f":"'COM S curve-disconnect'!BG15-'COM S curve-disconnect'!BG$5-'Appliance costs'!BF$85","v":23899.202169820965},{"$f":"'COM S curve-disconnect'!BH15-'COM S curve-disconnect'!BH$5-'Appliance costs'!BG$85","v":23937.443851928132},{"$f":"'COM S curve-disconnect'!BI15-'COM S curve-disconnect'!BI$5-'Appliance costs'!BH$85","v":23975.637738055491},{"$f":"'COM S curve-disconnect'!BJ15-'COM S curve-disconnect'!BJ$5-'Appliance costs'!BI$85","v":24009.150911749501},{"$f":"'COM S curve-disconnect'!BK15-'COM S curve-disconnect'!BK$5-'Appliance costs'!BJ$85","v":24051.883293606268},{"$f":"'COM S curve-disconnect'!BL15-'COM S curve-disconnect'!BL$5-'Appliance costs'!BK$85","v":24089.935544118649},{"$f":"'COM S curve-disconnect'!BM15-'COM S curve-disconnect'!BM$5-'Appliance costs'!BL$85","v":24127.941160851951},{"$f":"'COM S curve-disconnect'!BN15-'COM S curve-disconnect'!BN$5-'Appliance costs'!BM$85","v":24161.267220156464},{"$f":"'COM S curve-disconnect'!BO15-'COM S curve-disconnect'!BO$5-'Appliance costs'!BN$85","v":24203.813635477403},{"$f":"'COM S curve-disconnect'!BP15-'COM S curve-disconnect'!BP$5-'Appliance costs'!BO$85","v":24241.681060201736},{"$f":"'COM S curve-disconnect'!BQ15-'COM S curve-disconnect'!BQ$5-'Appliance costs'!BP$85","v":24279.502984833489},{"$f":"'COM S curve-disconnect'!BR15-'COM S curve-disconnect'!BR$5-'Appliance costs'!BQ$85","v":24312.646478706163},{"$f":"'COM S curve-disconnect'!BS15-'COM S curve-disconnect'!BS$5-'Appliance costs'!BR$85","v":24355.011448292244},{"$f":"'COM S curve-disconnect'!BT15-'COM S curve-disconnect'!BT$5-'Appliance costs'!BS$85","v":24392.698540049823},{"$f":"'COM S curve-disconnect'!BU15-'COM S curve-disconnect'!BU$5-'Appliance costs'!BT$85","v":24430.341237597626},{"$f":"'COM S curve-disconnect'!BV15-'COM S curve-disconnect'!BV$5-'Appliance costs'!BU$85","v":24463.306603427103},{"$f":"'COM S curve-disconnect'!BW15-'COM S curve-disconnect'!BW$5-'Appliance costs'!BV$85","v":24505.494537211773},{"$f":"'COM S curve-disconnect'!BX15-'COM S curve-disconnect'!BX$5-'Appliance costs'!BW$85","v":24543.00567865339},{"$f":"'COM S curve-disconnect'!BY15-'COM S curve-disconnect'!BY$5-'Appliance costs'!BX$85","v":24580.473504656897},{"$f":"'COM S curve-disconnect'!BZ15-'COM S curve-disconnect'!BZ$5-'Appliance costs'!BY$85","v":24613.2650710421},{"$f":"'COM S curve-disconnect'!CA15-'COM S curve-disconnect'!CA$5-'Appliance costs'!BZ$85","v":24655.28027085284},{"$f":"'COM S curve-disconnect'!CB15-'COM S curve-disconnect'!CB$5-'Appliance costs'!CA$85","v":24692.619737202862},{"$f":"'COM S curve-disconnect'!CC15-'COM S curve-disconnect'!CC$5-'Appliance costs'!CB$85","v":24729.916940450457},{"$f":"'COM S curve-disconnect'!CD15-'COM S curve-disconnect'!CD$5-'Appliance costs'!CC$85","v":24767.172139626389}]
["Greater Dandenong (C)",null,{"$f":"'COM S curve-disconnect'!C16-'COM S curve-disconnect'!C$5-'Appliance costs'!B$85","v":-5859.5113514134573},{"$f":"'COM S curve-disconnect'!D16-'COM S curve-disconnect'!D$5-'Appliance costs'!C$85","v":506.51667706093576},{"$f":"'COM S curve-disconnect'!E16-'COM S curve-disconnect'!E$5-'Appliance costs'!D$85","v":10558.339186710735},{"$f":"'COM S curve-disconnect'!F16-'COM S curve-disconnect'!F$5-'Appliance costs'!E$85","v":13985.8976664152},{"$f":"'COM S curve-disconnect'!G16-'COM S curve-disconnect'!G$5-'Appliance costs'!F$85","v":-85.101202178015228},{"$f":"'COM S curve-disconnect'!H16-'COM S curve-disconnect'!H$5-'Appliance costs'!G$85","v":710.67676152885178},{"$f":"'COM S curve-disconnect'!I16-'COM S curve-disconnect'!I$5-'Appliance costs'!H$85","v":5626.0465364907323},{"$f":"'COM S curve-disconnect'!J16-'COM S curve-disconnect'!J$5-'Appliance costs'!I$85","v":5898.4676525484101},{"$f":"'COM S curve-disconnect'!K16-'COM S curve-disconnect'!K$5-'Appliance costs'!J$85","v":16168.475654443151},{"$f":"'COM S curve-disconnect'!L16-'COM S curve-disconnect'!L$5-'Appliance costs'!K$85","v":16323.682222619285},{"$f":"'COM S curve-disconnect'!M16-'COM S curve-disconnect'!M$5-'Appliance costs'!L$85","v":8179.0147422046939},{"$f":"'COM S curve-disconnect'!N16-'COM S curve-disconnect'!N$5-'Appliance costs'!M$85","v":8496.8040456665804},{"$f":"'COM S curve-disconnect'!O16-'COM S curve-disconnect'!O$5-'Appliance costs'!N$85","v":14284.731708942039},{"$f":"'COM S curve-disconnect'!P16-'COM S curve-disconnect'!P$5-'Appliance costs'!O$85","v":19892.824655847879},{"$f":"'COM S curve-disconnect'!Q16-'COM S curve-disconnect'!Q$5-'Appliance costs'!P$85","v":4148.2385535471331},{"$f":"'COM S curve-disconnect'!R16-'COM S curve-disconnect'!R$5-'Appliance costs'!Q$85","v":6678.6030138063616},{"$f":"'COM S curve-disconnect'!S16-'COM S curve-disconnect'!S$5-'Appliance costs'!R$85","v":10212.214024087556},{"$f":"'COM S curve-disconnect'!T16-'COM S curve-disconnect'!T$5-'Appliance costs'!S$85","v":15156.324309288095},{"$f":"'COM S curve-disconnect'!U16-'COM S curve-disconnect'!U$5-'Appliance costs'!T$85","v":18953.525966488058},{"$f":"'COM S curve-disconnect'!V16-'COM S curve-disconnect'!V$5-'Appliance costs'!U$85","v":20636.45447430612},{"$f":"'COM S curve-disconnect'!W16-'COM S curve-disconnect'!W$5-'Appliance costs'!V$85","v":23094.876111703154},{"$f":"'COM S curve-disconnect'!X16-'COM S curve-disconnect'!X$5-'Appliance costs'!W$85","v":28486.679423459987},{"$f":"'COM S curve-disconnect'!Y16-'COM S curve-disconnect'!Y$5-'Appliance costs'!X$85","v":33042.259534139885},{"$f":"'COM S curve-disconnect'!Z16-'COM S curve-disconnect'!Z$5-'Appliance costs'!Y$85","v":35807.228256233793},{"$f":"'COM S curve-disconnect'!AA16-'COM S curve-disconnect'!AA$5-'Appliance costs'!Z$85","v":38894.461514168834},{"$f":"'COM S curve-disconnect'!AB16-'COM S curve-disconnect'!AB$5-'Appliance costs'!AA$85","v":40995.634023935781},{"$f":"'COM S curve-disconnect'!AC16-'COM S curve-disconnect'!AC$5-'Appliance costs'!AB$85","v":42639.186566052311},{"$f":"'COM S curve-disconnect'!AD16-'COM S curve-disconnect'!AD$5-'Appliance costs'!AC$85","v":43936.899605345279},{"$f":"'COM S curve-disconnect'!AE16-'COM S curve-disconnect'!AE$5-'Appliance costs'!AD$85","v":45103.235852320358},{"$f":"'COM S curve-disconnect'!AF16-'COM S curve-disconnect'!AF$5-'Appliance costs'!AE$85","v":46879.22628320854},{"$f":"'COM S curve-disconnect'!AG16-'COM S curve-disconnect'!AG$5-'Appliance costs'!AF$85","v":46943.252076036268},{"$f":"'COM S curve-disconnect'!AH16-'COM S curve-disconnect'!AH$5-'Appliance costs'!AG$85","v":48336.623477951536},{"$f":"'COM S curve-disconnect'!AI16-'COM S curve-disconnect'!AI$5-'Appliance costs'!AH$85","v":48431.223050590052},{"$f":"'COM S curve-disconnect'!AJ16-'COM S curve-disconnect'!AJ$5-'Appliance costs'!AI$85","v":48521.062549707334},{"$f":"'COM S curve-disconnect'!AK16-'COM S curve-disconnect'!AK$5-'Appliance costs'!AJ$85","v":48610.775964595639},{"$f":"'COM S curve-disconnect'!AL16-'COM S curve-disconnect'!AL$5-'Appliance costs'!AK$85","v":48695.730860275304},{"$f":"'COM S curve-disconnect'!AM16-'COM S curve-disconnect'!AM$5-'Appliance costs'!AL$85","v":48789.827635823749},{"$f":"'COM S curve-disconnect'!AN16-'COM S curve-disconnect'!AN$5-'Appliance costs'!AM$85","v":48879.167427241395},{"$f":"'COM S curve-disconnect'!AO16-'COM S curve-disconnect'!AO$5-'Appliance costs'!AN$85","v":48968.384204646267},{"$f":"'COM S curve-disconnect'!AP16-'COM S curve-disconnect'!AP$5-'Appliance costs'!AO$85","v":49052.845514005021},{"$f":"'COM S curve-disconnect'!AQ16-'COM S curve-disconnect'!AQ$5-'Appliance costs'!AP$85","v":49146.451735461509},{"$f":"'COM S curve-disconnect'!AR16-'COM S curve-disconnect'!AR$5-'Appliance costs'!AQ$85","v":49235.303986201819},{"$f":"'COM S curve-disconnect'!AS16-'COM S curve-disconnect'!AS$5-'Appliance costs'!AR$85","v":49324.036217648099},{"$f":"'COM S curve-disconnect'!AT16-'COM S curve-disconnect'!AT$5-'Appliance costs'!AS$85","v":49408.015957188793},{"$f":"'COM S curve-disconnect'!AU16-'COM S curve-disconnect'!AU$5-'Appliance costs'!AT$85","v":49501.143566506566},{"$f":"'COM S curve-disconnect'!AV16-'COM S curve-disconnect'!AV$5-'Appliance costs'!AU$85","v":49589.520144442533},{"$f":"'COM S curve-disconnect'!AW16-'COM S curve-disconnect'!AW$5-'Appliance costs'!AV$85","v":49677.779624189323},{"$f":"'COM S curve-disconnect'!AX16-'COM S curve-disconnect'!AX$5-'Appliance costs'!AW$85","v":49761.289515020719},{"$f":"'COM S curve-disconnect'!AY16-'COM S curve-disconnect'!AY$5-'Appliance costs'!AX$85","v":49853.950160618624},{"$f":"'COM S curve-disconnect'!AZ16-'COM S curve-disconnect'!AZ$5-'Appliance costs'!AY$85","v":49941.862641936779},{"$f":"'COM S curve-disconnect'!BA16-'COM S curve-disconnect'!BA$5-'Appliance costs'!AZ$85","v":50029.660874393056},{"$f":"'COM S curve-disconnect'!BB16-'COM S curve-disconnect'!BB$5-'Appliance costs'!BA$85","v":50112.712349598194},{"$f":"'COM S curve-disconnect'!BC16-'COM S curve-disconnect'!BC$5-'Appliance costs'!BB$85","v":50204.917393682437},{"$f":"'COM S curve-disconnect'!BD16-'COM S curve-disconnect'!BD$5-'Appliance costs'!BC$85","v":50292.377070158094},{"$f":"'COM S curve-disconnect'!BE16-'COM S curve-disconnect'!BE$5-'Appliance costs'!BD$85","v":50379.725277111487},{"$f":"'COM S curve-disconnect'!BF16-'COM S curve-disconnect'!BF$5-'Appliance costs'!BE$85","v":50462.329488930933},{"$f":"'COM S curve-disconnect'!BG16-'COM S curve-disconnect'!BG$5-'Appliance costs'!BF$85","v":50554.090014632326},{"$f":"'COM S curve-disconnect'!BH16-'COM S curve-disconnect'!BH$5-'Appliance costs'!BG$85","v":50641.107900721705},{"$f":"'COM S curve-disconnect'!BI16-'COM S curve-disconnect'!BI$5-'Appliance costs'!BH$85","v":50728.017028385788},{"$f":"'COM S curve-disconnect'!BJ16-'COM S curve-disconnect'!BJ$5-'Appliance costs'!BI$85","v":50810.184855219704},{"$f":"'COM S curve-disconnect'!BK16-'COM S curve-disconnect'!BK$5-'Appliance costs'!BJ$85","v":50901.511673551926},{"$f":"'COM S curve-disconnect'!BL16-'COM S curve-disconnect'!BL$5-'Appliance costs'!BK$85","v":50988.098513305798},{"$f":"'COM S curve-disconnect'!BM16-'COM S curve-disconnect'!BM$5-'Appliance costs'!BL$85","v":51074.579239189858},{"$f":"'COM S curve-disconnect'!BN16-'COM S curve-disconnect'!BN$5-'Appliance costs'!BM$85","v":51156.321292424545},{"$f":"'COM S curve-disconnect'!BO16-'COM S curve-disconnect'!BO$5-'Appliance costs'!BN$85","v":51247.224949066731},{"$f":"'COM S curve-disconnect'!BP16-'COM S curve-disconnect'!BP$5-'Appliance costs'!BO$85","v":51333.391222870414},{"$f":"'COM S curve-disconnect'!BQ16-'COM S curve-disconnect'!BQ$5-'Appliance costs'!BP$85","v":51419.453962476488},{"$f":"'COM S curve-disconnect'!BR16-'COM S curve-disconnect'!BR$5-'Appliance costs'!BQ$85","v":51500.780593138828},{"$f":"'COM S curve-disconnect'!BS16-'COM S curve-disconnect'!BS$5-'Appliance costs'!BR$85","v":51591.271375048062},{"$f":"'COM S curve-disconnect'!BT16-'COM S curve-disconnect'!BT$5-'Appliance costs'!BS$85","v":51677.027306191754},{"$f":"'COM S curve-disconnect'!BU16-'COM S curve-disconnect'!BU$5-'Appliance costs'!BT$85","v":51762.682219543436},{"$f":"'COM S curve-disconnect'!BV16-'COM S curve-disconnect'!BV$5-'Appliance costs'!BU$85","v":51843.603524788137},{"$f":"'COM S curve-disconnect'!BW16-'COM S curve-disconnect'!BW$5-'Appliance costs'!BV$85","v":51933.69146664557},{"$f":"'COM S curve-disconnect'!BX16-'COM S curve-disconnect'!BX$5-'Appliance costs'!BW$85","v":52019.047027729452},{"$f":"'COM S curve-disconnect'!BY16-'COM S curve-disconnect'!BY$5-'Appliance costs'!BX$85","v":52104.304025736317},{"$f":"'COM S curve-disconnect'!BZ16-'COM S curve-disconnect'!BZ$5-'Appliance costs'!BY$85","v":52184.829855170043},{"$f":"'COM S curve-disconnect'!CA16-'COM S curve-disconnect'!CA$5-'Appliance costs'!BZ$85","v":52274.524745664676},{"$f":"'COM S curve-disconnect'!CB16-'COM S curve-disconnect'!CB$5-'Appliance costs'!CA$85","v":52359.489664843146},{"$f":"'COM S curve-disconnect'!CC16-'COM S curve-disconnect'!CC$5-'Appliance costs'!CB$85","v":52444.358415505238},{"$f":"'COM S curve-disconnect'!CD16-'COM S curve-disconnect'!CD$5-'Appliance costs'!CC$85","v":52529.131587068245}]
["Kingston (C)",null,{"$f":"'COM S curve-disconnect'!C17-'COM S curve-disconnect'!C$5-'Appliance costs'!B$85","v":-3443.1403305157728},{"$f":"'COM S curve-disconnect'!D17-'COM S curve-disconnect'!D$5-'Appliance costs'!C$85","v":1409.774908390209},{"$f":"'COM S curve-disconnect'!E17-'COM S curve-disconnect'!E$5-'Appliance costs'!D$85","v":9091.0464090757159},{"$f":"'COM S curve-disconnect'!F17-'COM S curve-disconnect'!F$5-'Appliance costs'!E$85","v":11707.970584364464},{"$f":"'COM S curve-disconnect'!G17-'COM S curve-disconnect'!G$5-'Appliance costs'!F$85","v":964.88351399112798},{"$f":"'COM S curve-disconnect'!H17-'COM S curve-disconnect'!H$5-'Appliance costs'!G$85","v":1573.3010903936702},{"$f":"'COM S curve-disconnect'!I17-'COM S curve-disconnect'!I$5-'Appliance costs'!H$85","v":5330.638523778558},{"$f":"'COM S curve-disconnect'!J17-'COM S curve-disconnect'!J$5-'Appliance costs'!I$85","v":5546.90841481393},{"$f":"'COM S curve-disconnect'!K17-'COM S curve-disconnect'!K$5-'Appliance costs'!J$85","v":13413.746678004056},{"$f":"'COM S curve-disconnect'!L17-'COM S curve-disconnect'!L$5-'Appliance costs'!K$85","v":13549.026659301086},{"$f":"'COM S curve-disconnect'!M17-'COM S curve-disconnect'!M$5-'Appliance costs'!L$85","v":7350.0755759033709},{"$f":"'COM S curve-disconnect'!N17-'COM S curve-disconnect'!N$5-'Appliance costs'!M$85","v":7596.632777518058},{"$f":"'COM S curve-disconnect'!O17-'COM S curve-disconnect'!O$5-'Appliance costs'!N$85","v":12046.295229411775},{"$f":"'COM S curve-disconnect'!P17-'COM S curve-disconnect'!P$5-'Appliance costs'!O$85","v":16356.077510186653},{"$f":"'COM S curve-disconnect'!Q17-'COM S curve-disconnect'!Q$5-'Appliance costs'!P$85","v":3930.5661872689307},{"$f":"'COM S curve-disconnect'!R17-'COM S curve-disconnect'!R$5-'Appliance costs'!Q$85","v":5860.7656253390487},{"$f":"'COM S curve-disconnect'!S17-'COM S curve-disconnect'!S$5-'Appliance costs'!R$85","v":8557.9450761713597},{"$f":"'COM S curve-disconnect'!T17-'COM S curve-disconnect'!T$5-'Appliance costs'!S$85","v":12329.255500476316},{"$f":"'COM S curve-disconnect'!U17-'COM S curve-disconnect'!U$5-'Appliance costs'!T$85","v":15226.249171515705},{"$f":"'COM S curve-disconnect'!V17-'COM S curve-disconnect'!V$5-'Appliance costs'!U$85","v":16510.388935157513},{"$f":"'COM S curve-disconnect'!W17-'COM S curve-disconnect'!W$5-'Appliance costs'!V$85","v":18387.889220083038},{"$f":"'COM S curve-disconnect'!X17-'COM S curve-disconnect'!X$5-'Appliance costs'!W$85","v":22500.435991028542},{"$f":"'COM S curve-disconnect'!Y17-'COM S curve-disconnect'!Y$5-'Appliance costs'!X$85","v":25975.506235754168},{"$f":"'COM S curve-disconnect'!Z17-'COM S curve-disconnect'!Z$5-'Appliance costs'!Y$85","v":28084.454845954315},{"$f":"'COM S curve-disconnect'!AA17-'COM S curve-disconnect'!AA$5-'Appliance costs'!Z$85","v":30441.261495612438},{"$f":"'COM S curve-disconnect'!AB17-'COM S curve-disconnect'!AB$5-'Appliance costs'!AA$85","v":32045.267214266129},{"$f":"'COM S curve-disconnect'!AC17-'COM S curve-disconnect'!AC$5-'Appliance costs'!AB$85","v":33300.411355330551},{"$f":"'COM S curve-disconnect'!AD17-'COM S curve-disconnect'!AD$5-'Appliance costs'!AC$85","v":34290.804593189794},{"$f":"'COM S curve-disconnect'!AE17-'COM S curve-disconnect'!AE$5-'Appliance costs'!AD$85","v":35183.238750691205},{"$f":"'COM S curve-disconnect'!AF17-'COM S curve-disconnect'!AF$5-'Appliance costs'!AE$85","v":36539.308773565928},{"$f":"'COM S curve-disconnect'!AG17-'COM S curve-disconnect'!AG$5-'Appliance costs'!AF$85","v":36588.116561452967},{"$f":"'COM S curve-disconnect'!AH17-'COM S curve-disconnect'!AH$5-'Appliance costs'!AG$85","v":37649.202486729759},{"$f":"'COM S curve-disconnect'!AI17-'COM S curve-disconnect'!AI$5-'Appliance costs'!AH$85","v":37722.418356098417},{"$f":"'COM S curve-disconnect'!AJ17-'COM S curve-disconnect'!AJ$5-'Appliance costs'!AI$85","v":37790.904305637428},{"$f":"'COM S curve-disconnect'!AK17-'COM S curve-disconnect'!AK$5-'Appliance costs'!AJ$85","v":37859.294139345111},{"$f":"'COM S curve-disconnect'!AL17-'COM S curve-disconnect'!AL$5-'Appliance costs'!AK$85","v":37922.955238098075},{"$f":"'COM S curve-disconnect'!AM17-'COM S curve-disconnect'!AM$5-'Appliance costs'!AL$85","v":37995.78781797296},{"$f":"'COM S curve-disconnect'!AN17-'COM S curve-disconnect'!AN$5-'Appliance costs'!AM$85","v":38063.892833105172},{"$f":"'COM S curve-disconnect'!AO17-'COM S curve-disconnect'!AO$5-'Appliance costs'!AN$85","v":38131.904072876285},{"$f":"'COM S curve-disconnect'!AP17-'COM S curve-disconnect'!AP$5-'Appliance costs'!AO$85","v":38195.188903638016},{"$f":"'COM S curve-disconnect'!AQ17-'COM S curve-disconnect'!AQ$5-'Appliance costs'!AP$85","v":38267.647527033645},{"$f":"'COM S curve-disconnect'!AR17-'COM S curve-disconnect'!AR$5-'Appliance costs'!AQ$85","v":38335.380882856152},{"$f":"'COM S curve-disconnect'!AS17-'COM S curve-disconnect'!AS$5-'Appliance costs'!AR$85","v":38403.022746234965},{"$f":"'COM S curve-disconnect'!AT17-'COM S curve-disconnect'!AT$5-'Appliance costs'!AS$85","v":38465.940469359368},{"$f":"'COM S curve-disconnect'!AU17-'COM S curve-disconnect'!AU$5-'Appliance costs'!AT$85","v":38538.034239799417},{"$f":"'COM S curve-disconnect'!AV17-'COM S curve-disconnect'!AV$5-'Appliance costs'!AU$85","v":38605.404983363456},{"$f":"'COM S curve-disconnect'!AW17-'COM S curve-disconnect'!AW$5-'Appliance costs'!AV$85","v":38672.686461284269},{"$f":"'COM S curve-disconnect'!AX17-'COM S curve-disconnect'!AX$5-'Appliance costs'!AW$85","v":38735.246011942087},{"$f":"'COM S curve-disconnect'!AY17-'COM S curve-disconnect'!AY$5-'Appliance costs'!AX$85","v":38806.98380918472},{"$f":"'COM S curve-disconnect'!AZ17-'COM S curve-disconnect'!AZ$5-'Appliance costs'!AY$85","v":38874.000765184697},{"$f":"'COM S curve-disconnect'!BA17-'COM S curve-disconnect'!BA$5-'Appliance costs'!AZ$85","v":38940.930627624875},{"$f":"'COM S curve-disconnect'!BB17-'COM S curve-disconnect'!BB$5-'Appliance costs'!BA$85","v":39003.140721420656},{"$f":"'COM S curve-disconnect'!BC17-'COM S curve-disconnect'!BC$5-'Appliance costs'!BB$85","v":39074.531207039974},{"$f":"'COM S curve-disconnect'!BD17-'COM S curve-disconnect'!BD$5-'Appliance costs'!BC$85","v":39141.202983359544},{"$f":"'COM S curve-disconnect'!BE17-'COM S curve-disconnect'!BE$5-'Appliance costs'!BD$85","v":39207.789784850087},{"$f":"'COM S curve-disconnect'!BF17-'COM S curve-disconnect'!BF$5-'Appliance costs'!BE$85","v":39269.658923298135},{"$f":"'COM S curve-disconnect'!BG17-'COM S curve-disconnect'!BG$5-'Appliance costs'!BF$85","v":39340.710546125083},{"$f":"'COM S curve-disconnect'!BH17-'COM S curve-disconnect'!BH$5-'Appliance costs'!BG$85","v":39407.045539243503},{"$f":"'COM S curve-disconnect'!BI17-'COM S curve-disconnect'!BI$5-'Appliance costs'!BH$85","v":39473.297624241342},{"$f":"'COM S curve-disconnect'!BJ17-'COM S curve-disconnect'!BJ$5-'Appliance costs'!BI$85","v":39534.834100103399},{"$f":"'COM S curve-disconnect'!BK17-'COM S curve-disconnect'!BK$5-'Appliance costs'!BJ$85","v":39605.555101530059},{"$f":"'COM S curve-disconnect'!BL17-'COM S curve-disconnect'!BL$5-'Appliance costs'!BK$85","v":39671.561501792625},{"$f":"'COM S curve-disconnect'!BM17-'COM S curve-disconnect'!BM$5-'Appliance costs'!BL$85","v":39737.48700991751},{"$f":"'COM S curve-disconnect'!BN17-'COM S curve-disconnect'!BN$5-'Appliance costs'!BM$85","v":39798.69891240685},{"$f":"'COM S curve-disconnect'!BO17-'COM S curve-disconnect'!BO$5-'Appliance costs'!BN$85","v":39869.09733155695},{"$f":"'COM S curve-disconnect'!BP17-'COM S curve-disconnect'!BP$5-'Appliance costs'!BO$85","v":39934.783128313},{"$f":"'COM S curve-disconnect'!BQ17-'COM S curve-disconnect'!BQ$5-'Appliance costs'!BP$85","v":40000.389999452767},{"$f":"'COM S curve-disconnect'!BR17-'COM S curve-disconnect'!BR$5-'Appliance costs'!BQ$85","v":40061.285219306897},{"$f":"'COM S curve-disconnect'!BS17-'COM S curve-disconnect'!BS$5-'Appliance costs'!BR$85","v":40131.368898076602},{"$f":"'COM S curve-disconnect'!BT17-'COM S curve-disconnect'!BT$5-'Appliance costs'!BS$85","v":40196.741884688083},{"$f":"'COM S curve-disconnect'!BU17-'COM S curve-disconnect'!BU$5-'Appliance costs'!BT$85","v":40262.037863975682},{"$f":"'COM S curve-disconnect'!BV17-'COM S curve-disconnect'!BV$5-'Appliance costs'!BU$85","v":40322.624098401662},{"$f":"'COM S curve-disconnect'!BW17-'COM S curve-disconnect'!BW$5-'Appliance costs'!BV$85","v":40392.400686373541},{"$f":"'COM S curve-disconnect'!BX17-'COM S curve-disconnect'!BX$5-'Appliance costs'!BW$85","v":40457.468465097809},{"$f":"'COM S curve-disconnect'!BY17-'COM S curve-disconnect'!BY$5-'Appliance costs'!BX$85","v":40522.46110776296},{"$f":"'COM S curve-disconnect'!BZ17-'COM S curve-disconnect'!BZ$5-'Appliance costs'!BY$85","v":40582.745865258403},{"$f":"'COM S curve-disconnect'!CA17-'COM S curve-disconnect'!CA$5-'Appliance costs'!BZ$85","v":40652.22282449167},{"$f":"'COM S curve-disconnect'!CB17-'COM S curve-disconnect'!CB$5-'Appliance costs'!CA$85","v":40716.992811241544},{"$f":"'COM S curve-disconnect'!CC17-'COM S curve-disconnect'!CC$5-'Appliance costs'!CB$85","v":40781.689487340474},{"$f":"'COM S curve-disconnect'!CD17-'COM S curve-disconnect'!CD$5-'Appliance costs'!CC$85","v":40846.313302109804}]
["Knox (C)",null,{"$f":"'COM S curve-disconnect'!C18-'COM S curve-disconnect'!C$5-'Appliance costs'!B$85","v":-3333.8175734406796},{"$f":"'COM S curve-disconnect'!D18-'COM S curve-disconnect'!D$5-'Appliance costs'!C$85","v":1402.8614006610878},{"$f":"'COM S curve-disconnect'!E18-'COM S curve-disconnect'!E$5-'Appliance costs'!D$85","v":8929.7286088645269},{"$f":"'COM S curve-disconnect'!F18-'COM S curve-disconnect'!F$5-'Appliance costs'!E$85","v":11484.380424606095},{"$f":"'COM S curve-disconnect'!G18-'COM S curve-disconnect'!G$5-'Appliance costs'!F$85","v":976.90522110022721},{"$f":"'COM S curve-disconnect'!H18-'COM S curve-disconnect'!H$5-'Appliance costs'!G$85","v":1570.9299037656565},{"$f":"'COM S curve-disconnect'!I18-'COM S curve-disconnect'!I$5-'Appliance costs'!H$85","v":5239.3081036846925},{"$f":"'COM S curve-disconnect'!J18-'COM S curve-disconnect'!J$5-'Appliance costs'!I$85","v":5444.5948398178334},{"$f":"'COM S curve-disconnect'!K18-'COM S curve-disconnect'!K$5-'Appliance costs'!J$85","v":13131.719881574762},{"$f":"'COM S curve-disconnect'!L18-'COM S curve-disconnect'!L$5-'Appliance costs'!K$85","v":13266.433794699336},{"$f":"'COM S curve-disconnect'!M18-'COM S curve-disconnect'!M$5-'Appliance costs'!L$85","v":7217.9111371461113},{"$f":"'COM S curve-disconnect'!N18-'COM S curve-disconnect'!N$5-'Appliance costs'!M$85","v":7459.9513941938858},{"$f":"'COM S curve-disconnect'!O18-'COM S curve-disconnect'!O$5-'Appliance costs'!N$85","v":11807.759530119667},{"$f":"'COM S curve-disconnect'!P18-'COM S curve-disconnect'!P$5-'Appliance costs'!O$85","v":16018.752023709414},{"$f":"'COM S curve-disconnect'!Q18-'COM S curve-disconnect'!Q$5-'Appliance costs'!P$85","v":3849.1505021556477},{"$f":"'COM S curve-disconnect'!R18-'COM S curve-disconnect'!R$5-'Appliance costs'!Q$85","v":5734.1817808192318},{"$f":"'COM S curve-disconnect'!S18-'COM S curve-disconnect'!S$5-'Appliance costs'!R$85","v":8368.0385618327418},{"$f":"'COM S curve-disconnect'!T18-'COM S curve-disconnect'!T$5-'Appliance costs'!S$85","v":12050.182081889317},{"$f":"'COM S curve-disconnect'!U18-'COM S curve-disconnect'!U$5-'Appliance costs'!T$85","v":14878.944531792462},{"$f":"'COM S curve-disconnect'!V18-'COM S curve-disconnect'!V$5-'Appliance costs'!U$85","v":16133.367138674741},{"$f":"'COM S curve-disconnect'!W18-'COM S curve-disconnect'!W$5-'Appliance costs'!V$85","v":17967.154379849489},{"$f":"'COM S curve-disconnect'!X18-'COM S curve-disconnect'!X$5-'Appliance costs'!W$85","v":21982.337922308114},{"$f":"'COM S curve-disconnect'!Y18-'COM S curve-disconnect'!Y$5-'Appliance costs'!X$85","v":25375.307977104188},{"$f":"'COM S curve-disconnect'!Z18-'COM S curve-disconnect'!Z$5-'Appliance costs'!Y$85","v":27434.760883889143},{"$f":"'COM S curve-disconnect'!AA18-'COM S curve-disconnect'!AA$5-'Appliance costs'!Z$85","v":29736.351478678906},{"$f":"'COM S curve-disconnect'!AB18-'COM S curve-disconnect'!AB$5-'Appliance costs'!AA$85","v":31303.055524229847},{"$f":"'COM S curve-disconnect'!AC18-'COM S curve-disconnect'!AC$5-'Appliance costs'!AB$85","v":32529.248283890352},{"$f":"'COM S curve-disconnect'!AD18-'COM S curve-disconnect'!AD$5-'Appliance costs'!AC$85","v":33496.914880379205},{"$f":"'COM S curve-disconnect'!AE18-'COM S curve-disconnect'!AE$5-'Appliance costs'!AD$85","v":34369.185114486536},{"$f":"'COM S curve-disconnect'!AF18-'COM S curve-disconnect'!AF$5-'Appliance costs'!AE$85","v":35693.869803782683},{"$f":"'COM S curve-disconnect'!AG18-'COM S curve-disconnect'!AG$5-'Appliance costs'!AF$85","v":35741.508555187916},{"$f":"'COM S curve-disconnect'!AH18-'COM S curve-disconnect'!AH$5-'Appliance costs'!AG$85","v":36777.068542861503},{"$f":"'COM S curve-disconnect'!AI18-'COM S curve-disconnect'!AI$5-'Appliance costs'!AH$85","v":36848.641731120806},{"$f":"'COM S curve-disconnect'!AJ18-'COM S curve-disconnect'!AJ$5-'Appliance costs'!AI$85","v":36915.487315935898},{"$f":"'COM S curve-disconnect'!AK18-'COM S curve-disconnect'!AK$5-'Appliance costs'!AJ$85","v":36982.239087070993},{"$f":"'COM S curve-disconnect'!AL18-'COM S curve-disconnect'!AL$5-'Appliance costs'!AK$85","v":37044.264411256918},{"$f":"'COM S curve-disconnect'!AM18-'COM S curve-disconnect'!AM$5-'Appliance costs'!AL$85","v":37115.46349051228},{"$f":"'COM S curve-disconnect'!AN18-'COM S curve-disconnect'!AN$5-'Appliance costs'!AM$85","v":37181.937265001776},{"$f":"'COM S curve-disconnect'!AO18-'COM S curve-disconnect'!AO$5-'Appliance costs'!AN$85","v":37248.319510222907},{"$f":"'COM S curve-disconnect'!AP18-'COM S curve-disconnect'!AP$5-'Appliance costs'!AO$85","v":37309.9775787295},{"$f":"'COM S curve-disconnect'!AQ18-'COM S curve-disconnect'!AQ$5-'Appliance costs'!AP$85","v":37380.811658452556},{"$f":"'COM S curve-disconnect'!AR18-'COM S curve-disconnect'!AR$5-'Appliance costs'!AQ$85","v":37446.922675557857},{"$f":"'COM S curve-disconnect'!AS18-'COM S curve-disconnect'!AS$5-'Appliance costs'!AR$85","v":37512.944391632118},{"$f":"'COM S curve-disconnect'!AT18-'COM S curve-disconnect'!AT$5-'Appliance costs'!AS$85","v":37574.244145405952},{"$f":"'COM S curve-disconnect'!AU18-'COM S curve-disconnect'!AU$5-'Appliance costs'!AT$85","v":37644.72211107421},{"$f":"'COM S curve-disconnect'!AV18-'COM S curve-disconnect'!AV$5-'Appliance costs'!AU$85","v":37710.479201152979},{"$f":"'COM S curve-disconnect'!AW18-'COM S curve-disconnect'!AW$5-'Appliance costs'!AV$85","v":37776.149163665206},{"$f":"'COM S curve-disconnect'!AX18-'COM S curve-disconnect'!AX$5-'Appliance costs'!AW$85","v":37837.099323863215},{"$f":"'COM S curve-disconnect'!AY18-'COM S curve-disconnect'!AY$5-'Appliance costs'!AX$85","v":37907.229842548259},{"$f":"'COM S curve-disconnect'!AZ18-'COM S curve-disconnect'!AZ$5-'Appliance costs'!AY$85","v":37972.641618927228},{"$f":"'COM S curve-disconnect'!BA18-'COM S curve-disconnect'!BA$5-'Appliance costs'!AZ$85","v":38037.968387797679},{"$f":"'COM S curve-disconnect'!BB18-'COM S curve-disconnect'!BB$5-'Appliance costs'!BA$85","v":38098.577461269611},{"$f":"'COM S curve-disconnect'!BC18-'COM S curve-disconnect'!BC$5-'Appliance costs'!BB$85","v":38168.368987084876},{"$f":"'COM S curve-disconnect'!BD18-'COM S curve-disconnect'!BD$5-'Appliance costs'!BC$85","v":38233.443851473014},{"$f":"'COM S curve-disconnect'!BE18-'COM S curve-disconnect'!BE$5-'Appliance costs'!BD$85","v":38298.4357763359},{"$f":"'COM S curve-disconnect'!BF18-'COM S curve-disconnect'!BF$5-'Appliance costs'!BE$85","v":38358.712060969112},{"$f":"'COM S curve-disconnect'!BG18-'COM S curve-disconnect'!BG$5-'Appliance costs'!BF$85","v":38428.172840380474},{"$f":"'COM S curve-disconnect'!BH18-'COM S curve-disconnect'!BH$5-'Appliance costs'!BG$85","v":38492.918988145888},{"$f":"'COM S curve-disconnect'!BI18-'COM S curve-disconnect'!BI$5-'Appliance costs'!BH$85","v":38557.584213593014},{"$f":"'COM S curve-disconnect'!BJ18-'COM S curve-disconnect'!BJ$5-'Appliance costs'!BI$85","v":38617.53580352234},{"$f":"'COM S curve-disconnect'!BK18-'COM S curve-disconnect'!BK$5-'Appliance costs'!BJ$85","v":38686.673880525341},{"$f":"'COM S curve-disconnect'!BL18-'COM S curve-disconnect'!BL$5-'Appliance costs'!BK$85","v":38751.099305839467},{"$f":"'COM S curve-disconnect'!BM18-'COM S curve-disconnect'!BM$5-'Appliance costs'!BL$85","v":38815.445776531677},{"$f":"'COM S curve-disconnect'!BN18-'COM S curve-disconnect'!BN$5-'Appliance costs'!BM$85","v":38875.080567218822},{"$f":"'COM S curve-disconnect'!BO18-'COM S curve-disconnect'!BO$5-'Appliance costs'!BN$85","v":38943.90378838536},{"$f":"'COM S curve-disconnect'!BP18-'COM S curve-disconnect'!BP$5-'Appliance costs'!BO$85","v":39008.016289237872},{"$f":"'COM S curve-disconnect'!BQ18-'COM S curve-disconnect'!BQ$5-'Appliance costs'!BP$85","v":39072.051754888089},{"$f":"'COM S curve-disconnect'!BR18-'COM S curve-disconnect'!BR$5-'Appliance costs'!BQ$85","v":39131.377448072839},{"$f":"'COM S curve-disconnect'!BS18-'COM S curve-disconnect'!BS$5-'Appliance costs'!BR$85","v":39199.893467471222},{"$f":"'COM S curve-disconnect'!BT18-'COM S curve-disconnect'!BT$5-'Appliance costs'!BS$85","v":39263.700650558691},{"$f":"'COM S curve-disconnect'!BU18-'COM S curve-disconnect'!BU$5-'Appliance costs'!BT$85","v":39327.432670789611},{"$f":"'COM S curve-disconnect'!BV18-'COM S curve-disconnect'!BV$5-'Appliance costs'!BU$85","v":39386.45677931673},{"$f":"'COM S curve-disconnect'!BW18-'COM S curve-disconnect'!BW$5-'Appliance costs'!BV$85","v":39454.673063307928},{"$f":"'COM S curve-disconnect'!BX18-'COM S curve-disconnect'!BX$5-'Appliance costs'!BW$85","v":39518.182348799644},{"$f":"'COM S curve-disconnect'!BY18-'COM S curve-disconnect'!BY$5-'Appliance costs'!BX$85","v":39581.618297879337},{"$f":"'COM S curve-disconnect'!BZ18-'COM S curve-disconnect'!BZ$5-'Appliance costs'!BY$85","v":39640.348150404076},{"$f":"'COM S curve-disconnect'!CA18-'COM S curve-disconnect'!CA$5-'Appliance costs'!BZ$85","v":39708.271982317237},{"$f":"'COM S curve-disconnect'!CB18-'COM S curve-disconnect'!CB$5-'Appliance costs'!CA$85","v":39771.490608501219},{"$f":"'COM S curve-disconnect'!CC18-'COM S curve-disconnect'!CC$5-'Appliance costs'!CB$85","v":39834.637679959487},{"$f":"'COM S curve-disconnect'!CD18-'COM S curve-disconnect'!CD$5-'Appliance costs'!CC$85","v":39897.713635251275}]
["Manningham (C)",null,{"$f":"'COM S curve-disconnect'!C19-'COM S curve-disconnect'!C$5-'Appliance costs'!B$85","v":-3869.4342347157108},{"$f":"'COM S curve-disconnect'!D19-'COM S curve-disconnect'!D$5-'Appliance costs'!C$85","v":1354.6029340061432},{"$f":"'COM S curve-disconnect'!E19-'COM S curve-disconnect'!E$5-'Appliance costs'!D$85","v":9556.9027860932874},{"$f":"'COM S curve-disconnect'!F19-'COM S curve-disconnect'!F$5-'Appliance costs'!E$85","v":12372.651642201454},{"$f":"'COM S curve-disconnect'!G19-'COM S curve-disconnect'!G$5-'Appliance costs'!F$85","v":857.0133795206566},{"$f":"'COM S curve-disconnect'!H19-'COM S curve-disconnect'!H$5-'Appliance costs'!G$85","v":1511.3849317185268},{"$f":"'COM S curve-disconnect'!I19-'COM S curve-disconnect'!I$5-'Appliance costs'!H$85","v":5552.7535360499169},{"$f":"'COM S curve-disconnect'!J19-'COM S curve-disconnect'!J$5-'Appliance costs'!I$85","v":5797.3384965185614},{"$f":"'COM S curve-disconnect'!K19-'COM S curve-disconnect'!K$5-'Appliance costs'!J$85","v":14242.926639038858},{"$f":"'COM S curve-disconnect'!L19-'COM S curve-disconnect'!L$5-'Appliance costs'!K$85","v":14380.990594898794},{"$f":"'COM S curve-disconnect'!M19-'COM S curve-disconnect'!M$5-'Appliance costs'!L$85","v":7702.7197665578678},{"$f":"'COM S curve-disconnect'!N19-'COM S curve-disconnect'!N$5-'Appliance costs'!M$85","v":7964.6656537306335},{"$f":"'COM S curve-disconnect'!O19-'COM S curve-disconnect'!O$5-'Appliance costs'!N$85","v":12740.493047178541},{"$f":"'COM S curve-disconnect'!P19-'COM S curve-disconnect'!P$5-'Appliance costs'!O$85","v":17366.650958410588},{"$f":"'COM S curve-disconnect'!Q19-'COM S curve-disconnect'!Q$5-'Appliance costs'!P$85","v":4125.0171393590572},{"$f":"'COM S curve-disconnect'!R19-'COM S curve-disconnect'!R$5-'Appliance costs'!Q$85","v":6200.3782422287004},{"$f":"'COM S curve-disconnect'!S19-'COM S curve-disconnect'!S$5-'Appliance costs'!R$85","v":9100.6787750379954},{"$f":"'COM S curve-disconnect'!T19-'COM S curve-disconnect'!T$5-'Appliance costs'!S$85","v":13157.621657180458},{"$f":"'COM S curve-disconnect'!U19-'COM S curve-disconnect'!U$5-'Appliance costs'!T$85","v":16273.399144509851},{"$f":"'COM S curve-disconnect'!V19-'COM S curve-disconnect'!V$5-'Appliance costs'!U$85","v":17653.34942969296},{"$f":"'COM S curve-disconnect'!W19-'COM S curve-disconnect'!W$5-'Appliance costs'!V$85","v":19671.341994950722},{"$f":"'COM S curve-disconnect'!X19-'COM S curve-disconnect'!X$5-'Appliance costs'!W$85","v":24095.672019695729},{"$f":"'COM S curve-disconnect'!Y19-'COM S curve-disconnect'!Y$5-'Appliance costs'!X$85","v":27833.788725174411},{"$f":"'COM S curve-disconnect'!Z19-'COM S curve-disconnect'!Z$5-'Appliance costs'!Y$85","v":30101.678835752649},{"$f":"'COM S curve-disconnect'!AA19-'COM S curve-disconnect'!AA$5-'Appliance costs'!Z$85","v":32635.68650872961},{"$f":"'COM S curve-disconnect'!AB19-'COM S curve-disconnect'!AB$5-'Appliance costs'!AA$85","v":34359.691254193858},{"$f":"'COM S curve-disconnect'!AC19-'COM S curve-disconnect'!AC$5-'Appliance costs'!AB$85","v":35708.168904007289},{"$f":"'COM S curve-disconnect'!AD19-'COM S curve-disconnect'!AD$5-'Appliance costs'!AC$85","v":36772.016667346135},{"$f":"'COM S curve-disconnect'!AE19-'COM S curve-disconnect'!AE$5-'Appliance costs'!AD$85","v":37729.718581198656},{"$f":"'COM S curve-disconnect'!AF19-'COM S curve-disconnect'!AF$5-'Appliance costs'!AE$85","v":39186.879908090195},{"$f":"'COM S curve-disconnect'!AG19-'COM S curve-disconnect'!AG$5-'Appliance costs'!AF$85","v":39239.420223651614},{"$f":"'COM S curve-disconnect'!AH19-'COM S curve-disconnect'!AH$5-'Appliance costs'!AG$85","v":40382.005973786174},{"$f":"'COM S curve-disconnect'!AI19-'COM S curve-disconnect'!AI$5-'Appliance costs'!AH$85","v":40460.466634738666},{"$f":"'COM S curve-disconnect'!AJ19-'COM S curve-disconnect'!AJ$5-'Appliance costs'!AI$85","v":40534.189980050505},{"$f":"'COM S curve-disconnect'!AK19-'COM S curve-disconnect'!AK$5-'Appliance costs'!AJ$85","v":40607.809859167159},{"$f":"'COM S curve-disconnect'!AL19-'COM S curve-disconnect'!AL$5-'Appliance costs'!AK$85","v":40676.693698130264},{"$f":"'COM S curve-disconnect'!AM19-'COM S curve-disconnect'!AM$5-'Appliance costs'!AL$85","v":40754.741757901123},{"$f":"'COM S curve-disconnect'!AN19-'COM S curve-disconnect'!AN$5-'Appliance costs'!AM$85","v":40828.055037221304},{"$f":"'COM S curve-disconnect'!AO19-'COM S curve-disconnect'!AO$5-'Appliance costs'!AN$85","v":40901.267369801688},{"$f":"'COM S curve-disconnect'!AP19-'COM S curve-disconnect'!AP$5-'Appliance costs'!AO$85","v":40969.746166048215},{"$f":"'COM S curve-disconnect'!AQ19-'COM S curve-disconnect'!AQ$5-'Appliance costs'!AP$85","v":41047.391671385107},{"$f":"'COM S curve-disconnect'!AR19-'COM S curve-disconnect'!AR$5-'Appliance costs'!AQ$85","v":41120.304869114669},{"$f":"'COM S curve-disconnect'!AS19-'COM S curve-disconnect'!AS$5-'Appliance costs'!AR$85","v":41193.11957760567},{"$f":"'COM S curve-disconnect'!AT19-'COM S curve-disconnect'!AT$5-'Appliance costs'!AS$85","v":41261.203192018627},{"$f":"'COM S curve-disconnect'!AU19-'COM S curve-disconnect'!AU$5-'Appliance costs'!AT$85","v":41338.455942628265},{"$f":"'COM S curve-disconnect'!AV19-'COM S curve-disconnect'!AV$5-'Appliance costs'!AU$85","v":41410.978797682765},{"$f":"'COM S curve-disconnect'!AW19-'COM S curve-disconnect'!AW$5-'Appliance costs'!AV$85","v":41483.405560591593},{"$f":"'COM S curve-disconnect'!AX19-'COM S curve-disconnect'!AX$5-'Appliance costs'!AW$85","v":41551.10361165012},{"$f":"'COM S curve-disconnect'!AY19-'COM S curve-disconnect'!AY$5-'Appliance costs'!AX$85","v":41627.973166361437},{"$f":"'COM S curve-disconnect'!AZ19-'COM S curve-disconnect'!AZ$5-'Appliance costs'!AY$85","v":41700.115178295178},{"$f":"'COM S curve-disconnect'!BA19-'COM S curve-disconnect'!BA$5-'Appliance costs'!AZ$85","v":41772.163436274583},{"$f":"'COM S curve-disconnect'!BB19-'COM S curve-disconnect'!BB$5-'Appliance costs'!BA$85","v":41839.485306100541},{"$f":"'COM S curve-disconnect'!BC19-'COM S curve-disconnect'!BC$5-'Appliance costs'!BB$85","v":41915.980988873052},{"$f":"'COM S curve-disconnect'!BD19-'COM S curve-disconnect'!BD$5-'Appliance costs'!BC$85","v":41987.751423849099},{"$f":"'COM S curve-disconnect'!BE19-'COM S curve-disconnect'!BE$5-'Appliance costs'!BD$85","v":42059.430385629457},{"$f":"'COM S curve-disconnect'!BF19-'COM S curve-disconnect'!BF$5-'Appliance costs'!BE$85","v":42126.385225882084},{"$f":"'COM S curve-disconnect'!BG19-'COM S curve-disconnect'!BG$5-'Appliance costs'!BF$85","v":42202.516131662793},{"$f":"'COM S curve-disconnect'!BH19-'COM S curve-disconnect'!BH$5-'Appliance costs'!BG$85","v":42273.924028272901},{"$f":"'COM S curve-disconnect'!BI19-'COM S curve-disconnect'!BI$5-'Appliance costs'!BH$85","v":42345.242676445312},{"$f":"'COM S curve-disconnect'!BJ19-'COM S curve-disconnect'!BJ$5-'Appliance costs'!BI$85","v":42411.839414067217},{"$f":"'COM S curve-disconnect'!BK19-'COM S curve-disconnect'!BK$5-'Appliance costs'!BJ$85","v":42487.614414500524},{"$f":"'COM S curve-disconnect'!BL19-'COM S curve-disconnect'!BL$5-'Appliance costs'!BK$85","v":42558.668589438661},{"$f":"'COM S curve-disconnect'!BM19-'COM S curve-disconnect'!BM$5-'Appliance costs'!BL$85","v":42629.635686092282},{"$f":"'COM S curve-disconnect'!BN19-'COM S curve-disconnect'!BN$5-'Appliance costs'!BM$85","v":42695.883028911368},{"$f":"'COM S curve-disconnect'!BO19-'COM S curve-disconnect'!BO$5-'Appliance costs'!BN$85","v":42771.310777905121},{"$f":"'COM S curve-disconnect'!BP19-'COM S curve-disconnect'!BP$5-'Appliance costs'!BO$85","v":42842.019831498241},{"$f":"'COM S curve-disconnect'!BQ19-'COM S curve-disconnect'!BQ$5-'Appliance costs'!BP$85","v":42912.643923716052},{"$f":"'COM S curve-disconnect'!BR19-'COM S curve-disconnect'!BR$5-'Appliance costs'!BQ$85","v":42978.550365906209},{"$f":"'COM S curve-disconnect'!BS19-'COM S curve-disconnect'!BS$5-'Appliance costs'!BR$85","v":43053.639305057892},{"$f":"'COM S curve-disconnect'!BT19-'COM S curve-disconnect'!BT$5-'Appliance costs'!BS$85","v":43124.011626657652},{"$f":"'COM S curve-disconnect'!BU19-'COM S curve-disconnect'!BU$5-'Appliance costs'!BT$85","v":43194.301051874034},{"$f":"'COM S curve-disconnect'!BV19-'COM S curve-disconnect'!BV$5-'Appliance costs'!BU$85","v":43259.874879278686},{"$f":"'COM S curve-disconnect'!BW19-'COM S curve-disconnect'!BW$5-'Appliance costs'!BV$85","v":43334.633243165183},{"$f":"'COM S curve-disconnect'!BX19-'COM S curve-disconnect'!BX$5-'Appliance costs'!BW$85","v":43404.677016404137},{"$f":"'COM S curve-disconnect'!BY19-'COM S curve-disconnect'!BY$5-'Appliance costs'!BX$85","v":43474.63990762757},{"$f":"'COM S curve-disconnect'!BZ19-'COM S curve-disconnect'!BZ$5-'Appliance costs'!BY$85","v":43539.889202949344},{"$f":"'COM S curve-disconnect'!CA19-'COM S curve-disconnect'!CA$5-'Appliance costs'!BZ$85","v":43614.32502428352},{"$f":"'COM S curve-disconnect'!CB19-'COM S curve-disconnect'!CB$5-'Appliance costs'!CA$85","v":43684.0482321991},{"$f":"'COM S curve-disconnect'!CC19-'COM S curve-disconnect'!CC$5-'Appliance costs'!CB$85","v":43753.692523103688},{"$f":"'COM S curve-disconnect'!CD19-'COM S curve-disconnect'!CD$5-'Appliance costs'!CC$85","v":43823.258380679967}]
["Maroondah (C)",null,{"$f":"'COM S curve-disconnect'!C20-'COM S curve-disconnect'!C$5-'Appliance costs'!B$85","v":-2812.6398318181564},{"$f":"'COM S curve-disconnect'!D20-'COM S curve-disconnect'!D$5-'Appliance costs'!C$85","v":1602.5877897306455},{"$f":"'COM S curve-disconnect'!E20-'COM S curve-disconnect'!E$5-'Appliance costs'!D$85","v":8623.0019631678842},{"$f":"'COM S curve-disconnect'!F20-'COM S curve-disconnect'!F$5-'Appliance costs'!E$85","v":11005.439588812898},{"$f":"'COM S curve-disconnect'!G20-'COM S curve-disconnect'!G$5-'Appliance costs'!F$85","v":1207.0157945857791},{"$f":"'COM S curve-disconnect'!H20-'COM S curve-disconnect'!H$5-'Appliance costs'!G$85","v":1761.2369342972161},{"$f":"'COM S curve-disconnect'!I20-'COM S curve-disconnect'!I$5-'Appliance costs'!H$85","v":5183.5984029676911},{"$f":"'COM S curve-disconnect'!J20-'COM S curve-disconnect'!J$5-'Appliance costs'!I$85","v":5377.6410220441612},{"$f":"'COM S curve-disconnect'!K20-'COM S curve-disconnect'!K$5-'Appliance costs'!J$85","v":12553.724880307811},{"$f":"'COM S curve-disconnect'!L20-'COM S curve-disconnect'!L$5-'Appliance costs'!K$85","v":12684.106458674225},{"$f":"'COM S curve-disconnect'!M20-'COM S curve-disconnect'!M$5-'Appliance costs'!L$85","v":7048.8405248784329},{"$f":"'COM S curve-disconnect'!N20-'COM S curve-disconnect'!N$5-'Appliance costs'!M$85","v":7275.6498993450405},{"$f":"'COM S curve-disconnect'!O20-'COM S curve-disconnect'!O$5-'Appliance costs'!N$85","v":11339.054380072546},{"$f":"'COM S curve-disconnect'!P20-'COM S curve-disconnect'!P$5-'Appliance costs'!O$85","v":15274.131799704683},{"$f":"'COM S curve-disconnect'!Q20-'COM S curve-disconnect'!Q$5-'Appliance costs'!P$85","v":3809.5503608382496},{"$f":"'COM S curve-disconnect'!R20-'COM S curve-disconnect'!R$5-'Appliance costs'!Q$85","v":5566.9842114423664},{"$f":"'COM S curve-disconnect'!S20-'COM S curve-disconnect'!S$5-'Appliance costs'!R$85","v":8023.050696238879},{"$f":"'COM S curve-disconnect'!T20-'COM S curve-disconnect'!T$5-'Appliance costs'!S$85","v":11455.945055526787},{"$f":"'COM S curve-disconnect'!U20-'COM S curve-disconnect'!U$5-'Appliance costs'!T$85","v":14093.369260086445},{"$f":"'COM S curve-disconnect'!V20-'COM S curve-disconnect'!V$5-'Appliance costs'!U$85","v":15262.977478273828},{"$f":"'COM S curve-disconnect'!W20-'COM S curve-disconnect'!W$5-'Appliance costs'!V$85","v":16973.257867833025},{"$f":"'COM S curve-disconnect'!X20-'COM S curve-disconnect'!X$5-'Appliance costs'!W$85","v":20716.578082435008},{"$f":"'COM S curve-disconnect'!Y20-'COM S curve-disconnect'!Y$5-'Appliance costs'!X$85","v":23879.907764301628},{"$f":"'COM S curve-disconnect'!Z20-'COM S curve-disconnect'!Z$5-'Appliance costs'!Y$85","v":25799.900956641704},{"$f":"'COM S curve-disconnect'!AA20-'COM S curve-disconnect'!AA$5-'Appliance costs'!Z$85","v":27946.225103714911},{"$f":"'COM S curve-disconnect'!AB20-'COM S curve-disconnect'!AB$5-'Appliance costs'!AA$85","v":29407.217750831653},{"$f":"'COM S curve-disconnect'!AC20-'COM S curve-disconnect'!AC$5-'Appliance costs'!AB$85","v":30550.804609206152},{"$f":"'COM S curve-disconnect'!AD20-'COM S curve-disconnect'!AD$5-'Appliance costs'!AC$85","v":31453.09252527649},{"$f":"'COM S curve-disconnect'!AE20-'COM S curve-disconnect'!AE$5-'Appliance costs'!AD$85","v":32267.083915501738},{"$f":"'COM S curve-disconnect'!AF20-'COM S curve-disconnect'!AF$5-'Appliance costs'!AE$85","v":33502.469532297553},{"$f":"'COM S curve-disconnect'!AG20-'COM S curve-disconnect'!AG$5-'Appliance costs'!AF$85","v":33546.87531369218},{"$f":"'COM S curve-disconnect'!AH20-'COM S curve-disconnect'!AH$5-'Appliance costs'!AG$85","v":34511.843329217008},{"$f":"'COM S curve-disconnect'!AI20-'COM S curve-disconnect'!AI$5-'Appliance costs'!AH$85","v":34578.873683402031},{"$f":"'COM S curve-disconnect'!AJ20-'COM S curve-disconnect'!AJ$5-'Appliance costs'!AI$85","v":34641.182840106099},{"$f":"'COM S curve-disconnect'!AK20-'COM S curve-disconnect'!AK$5-'Appliance costs'!AJ$85","v":34703.404549728912},{"$f":"'COM S curve-disconnect'!AL20-'COM S curve-disconnect'!AL$5-'Appliance costs'!AK$85","v":34760.906139881074},{"$f":"'COM S curve-disconnect'!AM20-'COM S curve-disconnect'!AM$5-'Appliance costs'!AL$85","v":34827.587773703854},{"$f":"'COM S curve-disconnect'!AN20-'COM S curve-disconnect'!AN$5-'Appliance costs'!AM$85","v":34889.550352725848},{"$f":"'COM S curve-disconnect'!AO20-'COM S curve-disconnect'!AO$5-'Appliance costs'!AN$85","v":34951.427614048247},{"$f":"'COM S curve-disconnect'!AP20-'COM S curve-disconnect'!AP$5-'Appliance costs'!AO$85","v":35008.586872066779},{"$f":"'COM S curve-disconnect'!AQ20-'COM S curve-disconnect'!AQ$5-'Appliance costs'!AP$85","v":35074.928276791143},{"$f":"'COM S curve-disconnect'!AR20-'COM S curve-disconnect'!AR$5-'Appliance costs'!AQ$85","v":35136.55271670103},{"$f":"'COM S curve-disconnect'!AS20-'COM S curve-disconnect'!AS$5-'Appliance costs'!AR$85","v":35198.093915930898},{"$f":"'COM S curve-disconnect'!AT20-'COM S curve-disconnect'!AT$5-'Appliance costs'!AS$85","v":35254.919175991381},{"$f":"'COM S curve-disconnect'!AU20-'COM S curve-disconnect'!AU$5-'Appliance costs'!AT$85","v":35320.928634088203},{"$f":"'COM S curve-disconnect'!AV20-'COM S curve-disconnect'!AV$5-'Appliance costs'!AU$85","v":35382.22316597771},{"$f":"'COM S curve-disconnect'!AW20-'COM S curve-disconnect'!AW$5-'Appliance costs'!AV$85","v":35443.436483151083},{"$f":"'COM S curve-disconnect'!AX20-'COM S curve-disconnect'!AX$5-'Appliance costs'!AW$85","v":35499.935874555333},{"$f":"'COM S curve-disconnect'!AY20-'COM S curve-disconnect'!AY$5-'Appliance costs'!AX$85","v":35565.621464911543},{"$f":"'COM S curve-disconnect'!AZ20-'COM S curve-disconnect'!AZ$5-'Appliance costs'!AY$85","v":35626.594117570101},{"$f":"'COM S curve-disconnect'!BA20-'COM S curve-disconnect'!BA$5-'Appliance costs'!AZ$85","v":35687.487531694293},{"$f":"'COM S curve-disconnect'!BB20-'COM S curve-disconnect'!BB$5-'Appliance costs'!BA$85","v":35743.668983980751},{"$f":"'COM S curve-disconnect'!BC20-'COM S curve-disconnect'!BC$5-'Appliance costs'!BB$85","v":35809.038586977411},{"$f":"'COM S curve-disconnect'!BD20-'COM S curve-disconnect'!BD$5-'Appliance costs'!BC$85","v":35869.697191937965},{"$f":"'COM S curve-disconnect'!BE20-'COM S curve-disconnect'!BE$5-'Appliance costs'!BD$85","v":35930.278486005212},{"$f":"'COM S curve-disconnect'!BF20-'COM S curve-disconnect'!BF$5-'Appliance costs'!BE$85","v":35986.149733931001},{"$f":"'COM S curve-disconnect'!BG20-'COM S curve-disconnect'!BG$5-'Appliance costs'!BF$85","v":36051.211036393412},{"$f":"'COM S curve-disconnect'!BH20-'COM S curve-disconnect'!BH$5-'Appliance costs'!BG$85","v":36111.563232851251},{"$f":"'COM S curve-disconnect'!BI20-'COM S curve-disconnect'!BI$5-'Appliance costs'!BH$85","v":36171.839998726435},{"$f":"'COM S curve-disconnect'!BJ20-'COM S curve-disconnect'!BJ$5-'Appliance costs'!BI$85","v":36227.408587123689},{"$f":"'COM S curve-disconnect'!BK20-'COM S curve-disconnect'!BK$5-'Appliance costs'!BJ$85","v":36292.169087147347},{"$f":"'COM S curve-disconnect'!BL20-'COM S curve-disconnect'!BL$5-'Appliance costs'!BK$85","v":36352.222326755138},{"$f":"'COM S curve-disconnect'!BM20-'COM S curve-disconnect'!BM$5-'Appliance costs'!BL$85","v":36412.201969940346},{"$f":"'COM S curve-disconnect'!BN20-'COM S curve-disconnect'!BN$5-'Appliance costs'!BM$85","v":36467.475258450839},{"$f":"'COM S curve-disconnect'!BO20-'COM S curve-disconnect'!BO$5-'Appliance costs'!BN$85","v":36531.942270105646},{"$f":"'COM S curve-disconnect'!BP20-'COM S curve-disconnect'!BP$5-'Appliance costs'!BO$85","v":36591.703821648043},{"$f":"'COM S curve-disconnect'!BQ20-'COM S curve-disconnect'!BQ$5-'Appliance costs'!BP$85","v":36651.393565927407},{"$f":"'COM S curve-disconnect'!BR20-'COM S curve-disconnect'!BR$5-'Appliance costs'!BQ$85","v":36706.37873361785},{"$f":"'COM S curve-disconnect'!BS20-'COM S curve-disconnect'!BS$5-'Appliance costs'!BR$85","v":36770.559391534181},{"$f":"'COM S curve-disconnect'!BT20-'COM S curve-disconnect'!BT$5-'Appliance costs'!BS$85","v":36830.036345484703},{"$f":"'COM S curve-disconnect'!BU20-'COM S curve-disconnect'!BU$5-'Appliance costs'!BT$85","v":36889.44323745252},{"$f":"'COM S curve-disconnect'!BV20-'COM S curve-disconnect'!BV$5-'Appliance costs'!BU$85","v":36944.147287313812},{"$f":"'COM S curve-disconnect'!BW20-'COM S curve-disconnect'!BW$5-'Appliance costs'!BV$85","v":37008.04855115337},{"$f":"'COM S curve-disconnect'!BX20-'COM S curve-disconnect'!BX$5-'Appliance costs'!BW$85","v":37067.247824116777},{"$f":"'COM S curve-disconnect'!BY20-'COM S curve-disconnect'!BY$5-'Appliance costs'!BX$85","v":37126.378737591636},{"$f":"'COM S curve-disconnect'!BZ20-'COM S curve-disconnect'!BZ$5-'Appliance costs'!BY$85","v":37180.808500925064},{"$f":"'COM S curve-disconnect'!CA20-'COM S curve-disconnect'!CA$5-'Appliance costs'!BZ$85","v":37244.437159739005},{"$f":"'COM S curve-disconnect'!CB20-'COM S curve-disconnect'!CB$5-'Appliance costs'!CA$85","v":37303.365498782048},{"$f":"'COM S curve-disconnect'!CC20-'COM S curve-disconnect'!CC$5-'Appliance costs'!CB$85","v":37362.227139109986},{"$f":"'COM S curve-disconnect'!CD20-'COM S curve-disconnect'!CD$5-'Appliance costs'!CC$85","v":37421.02248951955}]
["Melbourne (C)",null,{"$f":"'COM S curve-disconnect'!C21-'COM S curve-disconnect'!C$5-'Appliance costs'!B$85","v":-23561.372934986211},{"$f":"'COM S curve-disconnect'!D21-'COM S curve-disconnect'!D$5-'Appliance costs'!C$85","v":-5975.0481236817868},{"$f":"'COM S curve-disconnect'!E21-'COM S curve-disconnect'!E$5-'Appliance costs'!D$85","v":21576.724030162506},{"$f":"'COM S curve-disconnect'!F21-'COM S curve-disconnect'!F$5-'Appliance costs'!E$85","v":31015.43881004049},{"$f":"'COM S curve-disconnect'!G21-'COM S curve-disconnect'!G$5-'Appliance costs'!F$85","v":-7676.4364844800439},{"$f":"'COM S curve-disconnect'!H21-'COM S curve-disconnect'!H$5-'Appliance costs'!G$85","v":-5491.311232591077},{"$f":"'COM S curve-disconnect'!I21-'COM S curve-disconnect'!I$5-'Appliance costs'!H$85","v":8011.301110266606},{"$f":"'COM S curve-disconnect'!J21-'COM S curve-disconnect'!J$5-'Appliance costs'!I$85","v":8719.0233978812175},{"$f":"'COM S curve-disconnect'!K21-'COM S curve-disconnect'!K$5-'Appliance costs'!J$85","v":36795.5436091109},{"$f":"'COM S curve-disconnect'!L21-'COM S curve-disconnect'!L$5-'Appliance costs'!K$85","v":37095.776901804464},{"$f":"'COM S curve-disconnect'!M21-'COM S curve-disconnect'!M$5-'Appliance costs'!L$85","v":14520.172544042405},{"$f":"'COM S curve-disconnect'!N21-'COM S curve-disconnect'!N$5-'Appliance costs'!M$85","v":15363.465433539212},{"$f":"'COM S curve-disconnect'!O21-'COM S curve-disconnect'!O$5-'Appliance costs'!N$85","v":31072.434223931064},{"$f":"'COM S curve-disconnect'!P21-'COM S curve-disconnect'!P$5-'Appliance costs'!O$85","v":46305.303891575706},{"$f":"'COM S curve-disconnect'!Q21-'COM S curve-disconnect'!Q$5-'Appliance costs'!P$85","v":5945.8693311286916},{"$f":"'COM S curve-disconnect'!R21-'COM S curve-disconnect'!R$5-'Appliance costs'!Q$85","v":12924.026419629721},{"$f":"'COM S curve-disconnect'!S21-'COM S curve-disconnect'!S$5-'Appliance costs'!R$85","v":22657.44800087648},{"$f":"'COM S curve-disconnect'!T21-'COM S curve-disconnect'!T$5-'Appliance costs'!S$85","v":36295.678722722543},{"$f":"'COM S curve-disconnect'!U21-'COM S curve-disconnect'!U$5-'Appliance costs'!T$85","v":46765.643342225128},{"$f":"'COM S curve-disconnect'!V21-'COM S curve-disconnect'!V$5-'Appliance costs'!U$85","v":51403.136831654934},{"$f":"'COM S curve-disconnect'!W21-'COM S curve-disconnect'!W$5-'Appliance costs'!V$85","v":58166.717816795921},{"$f":"'COM S curve-disconnect'!X21-'COM S curve-disconnect'!X$5-'Appliance costs'!W$85","v":73042.109812593117},{"$f":"'COM S curve-disconnect'!Y21-'COM S curve-disconnect'!Y$5-'Appliance costs'!X$85","v":85607.510625000214},{"$f":"'COM S curve-disconnect'!Z21-'COM S curve-disconnect'!Z$5-'Appliance costs'!Y$85","v":93234.562709919046},{"$f":"'COM S curve-disconnect'!AA21-'COM S curve-disconnect'!AA$5-'Appliance costs'!Z$85","v":101735.64406156931},{"$f":"'COM S curve-disconnect'!AB21-'COM S curve-disconnect'!AB$5-'Appliance costs'!AA$85","v":107520.96864273869},{"$f":"'COM S curve-disconnect'!AC21-'COM S curve-disconnect'!AC$5-'Appliance costs'!AB$85","v":112042.20177846905},{"$f":"'COM S curve-disconnect'!AD21-'COM S curve-disconnect'!AD$5-'Appliance costs'!AC$85","v":115616.30570674581},{"$f":"'COM S curve-disconnect'!AE21-'COM S curve-disconnect'!AE$5-'Appliance costs'!AD$85","v":118811.24052178598},{"$f":"'COM S curve-disconnect'!AF21-'COM S curve-disconnect'!AF$5-'Appliance costs'!AE$85","v":123698.62235846893},{"$f":"'COM S curve-disconnect'!AG21-'COM S curve-disconnect'!AG$5-'Appliance costs'!AF$85","v":123875.4953448795},{"$f":"'COM S curve-disconnect'!AH21-'COM S curve-disconnect'!AH$5-'Appliance costs'!AG$85","v":127732.88773069727},{"$f":"'COM S curve-disconnect'!AI21-'COM S curve-disconnect'!AI$5-'Appliance costs'!AH$85","v":127986.05545414232},{"$f":"'COM S curve-disconnect'!AJ21-'COM S curve-disconnect'!AJ$5-'Appliance costs'!AI$85","v":128234.23950317489},{"$f":"'COM S curve-disconnect'!AK21-'COM S curve-disconnect'!AK$5-'Appliance costs'!AJ$85","v":128482.07524111074},{"$f":"'COM S curve-disconnect'!AL21-'COM S curve-disconnect'!AL$5-'Appliance costs'!AK$85","v":128724.93159846465},{"$f":"'COM S curve-disconnect'!AM21-'COM S curve-disconnect'!AM$5-'Appliance costs'!AL$85","v":128976.71033133335},{"$f":"'COM S curve-disconnect'!AN21-'COM S curve-disconnect'!AN$5-'Appliance costs'!AM$85","v":129223.51392431431},{"$f":"'COM S curve-disconnect'!AO21-'COM S curve-disconnect'!AO$5-'Appliance costs'!AN$85","v":129469.97768775396},{"$f":"'COM S curve-disconnect'!AP21-'COM S curve-disconnect'!AP$5-'Appliance costs'!AO$85","v":129711.47049953077},{"$f":"'COM S curve-disconnect'!AQ21-'COM S curve-disconnect'!AQ$5-'Appliance costs'!AP$85","v":129961.89406343696},{"$f":"'COM S curve-disconnect'!AR21-'COM S curve-disconnect'!AR$5-'Appliance costs'!AQ$85","v":130207.35081209491},{"$f":"'COM S curve-disconnect'!AS21-'COM S curve-disconnect'!AS$5-'Appliance costs'!AR$85","v":130452.47600420316},{"$f":"'COM S curve-disconnect'!AT21-'COM S curve-disconnect'!AT$5-'Appliance costs'!AS$85","v":130692.63846631737},{"$f":"'COM S curve-disconnect'!AU21-'COM S curve-disconnect'!AU$5-'Appliance costs'!AT$85","v":130941.73985123028},{"$f":"'COM S curve-disconnect'!AV21-'COM S curve-disconnect'!AV$5-'Appliance costs'!AU$85","v":131185.88254088565},{"$f":"'COM S curve-disconnect'!AW21-'COM S curve-disconnect'!AW$5-'Appliance costs'!AV$85","v":131429.70174362266},{"$f":"'COM S curve-disconnect'!AX21-'COM S curve-disconnect'!AX$5-'Appliance costs'!AW$85","v":131668.56623595464},{"$f":"'COM S curve-disconnect'!AY21-'COM S curve-disconnect'!AY$5-'Appliance costs'!AX$85","v":131916.37762094673},{"$f":"'COM S curve-disconnect'!AZ21-'COM S curve-disconnect'!AZ$5-'Appliance costs'!AY$85","v":132159.23823112837},{"$f":"'COM S curve-disconnect'!BA21-'COM S curve-disconnect'!BA$5-'Appliance costs'!AZ$85","v":132401.78322573542},{"$f":"'COM S curve-disconnect'!BB21-'COM S curve-disconnect'!BB$5-'Appliance costs'!BA$85","v":132639.38133248664},{"$f":"'COM S curve-disconnect'!BC21-'COM S curve-disconnect'!BC$5-'Appliance costs'!BB$85","v":132885.93410596019},{"$f":"'COM S curve-disconnect'!BD21-'COM S curve-disconnect'!BD$5-'Appliance costs'!BC$85","v":133127.54383050319},{"$f":"'COM S curve-disconnect'!BE21-'COM S curve-disconnect'!BE$5-'Appliance costs'!BD$85","v":133368.84561747243},{"$f":"'COM S curve-disconnect'!BF21-'COM S curve-disconnect'!BF$5-'Appliance costs'!BE$85","v":133605.20814700943},{"$f":"'COM S curve-disconnect'!BG21-'COM S curve-disconnect'!BG$5-'Appliance costs'!BF$85","v":133850.53292641358},{"$f":"'COM S curve-disconnect'!BH21-'COM S curve-disconnect'!BH$5-'Appliance costs'!BG$85","v":134090.92219305137},{"$f":"'COM S curve-disconnect'!BI21-'COM S curve-disconnect'!BI$5-'Appliance costs'!BH$85","v":134331.01101159438},{"$f":"'COM S curve-disconnect'!BJ21-'COM S curve-disconnect'!BJ$5-'Appliance costs'!BI$85","v":134566.16801579215},{"$f":"'COM S curve-disconnect'!BK21-'COM S curve-disconnect'!BK$5-'Appliance costs'!BJ$85","v":134810.29466684477},{"$f":"'COM S curve-disconnect'!BL21-'COM S curve-disconnect'!BL$5-'Appliance costs'!BK$85","v":135049.4931563086},{"$f":"'COM S curve-disconnect'!BM21-'COM S curve-disconnect'!BM$5-'Appliance costs'!BL$85","v":135288.39850333374},{"$f":"'COM S curve-disconnect'!BN21-'COM S curve-disconnect'!BN$5-'Appliance costs'!BM$85","v":135522.3792964344},{"$f":"'COM S curve-disconnect'!BO21-'COM S curve-disconnect'!BO$5-'Appliance costs'!BN$85","v":135765.33695185964},{"$f":"'COM S curve-disconnect'!BP21-'COM S curve-disconnect'!BP$5-'Appliance costs'!BO$85","v":136003.37361649785},{"$f":"'COM S curve-disconnect'!BQ21-'COM S curve-disconnect'!BQ$5-'Appliance costs'!BP$85","v":136241.12426511163},{"$f":"'COM S curve-disconnect'!BR21-'COM S curve-disconnect'!BR$5-'Appliance costs'!BQ$85","v":136473.95744210714},{"$f":"'COM S curve-disconnect'!BS21-'COM S curve-disconnect'!BS$5-'Appliance costs'!BR$85","v":136715.7745199026},{"$f":"'COM S curve-disconnect'!BT21-'COM S curve-disconnect'!BT$5-'Appliance costs'!BS$85","v":136952.67760183103},{"$f":"'COM S curve-disconnect'!BU21-'COM S curve-disconnect'!BU$5-'Appliance costs'!BT$85","v":137189.30161937373},{"$f":"'COM S curve-disconnect'!BV21-'COM S curve-disconnect'!BV$5-'Appliance costs'!BU$85","v":137421.01507392735},{"$f":"'COM S curve-disconnect'!BW21-'COM S curve-disconnect'!BW$5-'Appliance costs'!BV$85","v":137661.71929517138},{"$f":"'COM S curve-disconnect'!BX21-'COM S curve-disconnect'!BX$5-'Appliance costs'!BW$85","v":137897.51634396822},{"$f":"'COM S curve-disconnect'!BY21-'COM S curve-disconnect'!BY$5-'Appliance costs'!BX$85","v":138133.04110959591},{"$f":"'COM S curve-disconnect'!BZ21-'COM S curve-disconnect'!BZ$5-'Appliance costs'!BY$85","v":138363.66205151286},{"$f":"'COM S curve-disconnect'!CA21-'COM S curve-disconnect'!CA$5-'Appliance costs'!BZ$85","v":138603.28045772389},{"$f":"'COM S curve-disconnect'!CB21-'COM S curve-disconnect'!CB$5-'Appliance costs'!CA$85","v":138837.99834767904},{"$f":"'COM S curve-disconnect'!CC21-'COM S curve-disconnect'!CC$5-'Appliance costs'!CB$85","v":139072.45056950359},{"$f":"'COM S curve-disconnect'!CD21-'COM S curve-disconnect'!CD$5-'Appliance costs'!CC$85","v":139306.63875147875}]
["Monash (C)",null,{"$f":"'COM S curve-disconnect'!C22-'COM S curve-disconnect'!C$5-'Appliance costs'!B$85","v":-4524.2719138062639},{"$f":"'COM S curve-disconnect'!D22-'COM S curve-disconnect'!D$5-'Appliance costs'!C$85","v":944.89739111082235},{"$f":"'COM S curve-disconnect'!E22-'COM S curve-disconnect'!E$5-'Appliance costs'!D$85","v":9626.8516893789565},{"$f":"'COM S curve-disconnect'!F22-'COM S curve-disconnect'!F$5-'Appliance costs'!E$85","v":12573.927516010739},{"$f":"'COM S curve-disconnect'!G22-'COM S curve-disconnect'!G$5-'Appliance costs'!F$85","v":449.99091173682609},{"$f":"'COM S curve-disconnect'!H22-'COM S curve-disconnect'!H$5-'Appliance costs'!G$85","v":1134.7158204689331},{"$f":"'COM S curve-disconnect'!I22-'COM S curve-disconnect'!I$5-'Appliance costs'!H$85","v":5363.6916829181391},{"$f":"'COM S curve-disconnect'!J22-'COM S curve-disconnect'!J$5-'Appliance costs'!I$85","v":5594.3514060159578},{"$f":"'COM S curve-disconnect'!K22-'COM S curve-disconnect'!K$5-'Appliance costs'!J$85","v":14446.167386222292},{"$f":"'COM S curve-disconnect'!L22-'COM S curve-disconnect'!L$5-'Appliance costs'!K$85","v":14590.789386560831},{"$f":"'COM S curve-disconnect'!M22-'COM S curve-disconnect'!M$5-'Appliance costs'!L$85","v":7600.6155738628113},{"$f":"'COM S curve-disconnect'!N22-'COM S curve-disconnect'!N$5-'Appliance costs'!M$85","v":7877.3980505028885},{"$f":"'COM S curve-disconnect'!O22-'COM S curve-disconnect'!O$5-'Appliance costs'!N$85","v":12873.311499374286},{"$f":"'COM S curve-disconnect'!P22-'COM S curve-disconnect'!P$5-'Appliance costs'!O$85","v":17713.066221360303},{"$f":"'COM S curve-disconnect'!Q22-'COM S curve-disconnect'!Q$5-'Appliance costs'!P$85","v":3936.9724537155962},{"$f":"'COM S curve-disconnect'!R22-'COM S curve-disconnect'!R$5-'Appliance costs'!Q$85","v":6112.79458870702},{"$f":"'COM S curve-disconnect'!S22-'COM S curve-disconnect'!S$5-'Appliance costs'!R$85","v":9151.8164047548998},{"$f":"'COM S curve-disconnect'!T22-'COM S curve-disconnect'!T$5-'Appliance costs'!S$85","v":13401.957908101605},{"$f":"'COM S curve-disconnect'!U22-'COM S curve-disconnect'!U$5-'Appliance costs'!T$85","v":16666.756721412225},{"$f":"'COM S curve-disconnect'!V22-'COM S curve-disconnect'!V$5-'Appliance costs'!U$85","v":18114.479894520591},{"$f":"'COM S curve-disconnect'!W22-'COM S curve-disconnect'!W$5-'Appliance costs'!V$85","v":20229.735941673905},{"$f":"'COM S curve-disconnect'!X22-'COM S curve-disconnect'!X$5-'Appliance costs'!W$85","v":24864.447622350435},{"$f":"'COM S curve-disconnect'!Y22-'COM S curve-disconnect'!Y$5-'Appliance costs'!X$85","v":28780.7323122261},{"$f":"'COM S curve-disconnect'!Z22-'COM S curve-disconnect'!Z$5-'Appliance costs'!Y$85","v":31158.005261940056},{"$f":"'COM S curve-disconnect'!AA22-'COM S curve-disconnect'!AA$5-'Appliance costs'!Z$85","v":33813.434492331762},{"$f":"'COM S curve-disconnect'!AB22-'COM S curve-disconnect'!AB$5-'Appliance costs'!AA$85","v":35621.056049227918},{"$f":"'COM S curve-disconnect'!AC22-'COM S curve-disconnect'!AC$5-'Appliance costs'!AB$85","v":37035.515719983734},{"$f":"'COM S curve-disconnect'!AD22-'COM S curve-disconnect'!AD$5-'Appliance costs'!AC$85","v":38152.193440468865},{"$f":"'COM S curve-disconnect'!AE22-'COM S curve-disconnect'!AE$5-'Appliance costs'!AD$85","v":39157.296255683992},{"$f":"'COM S curve-disconnect'!AF22-'COM S curve-disconnect'!AF$5-'Appliance costs'!AE$85","v":40685.499073763945},{"$f":"'COM S curve-disconnect'!AG22-'COM S curve-disconnect'!AG$5-'Appliance costs'!AF$85","v":40740.504785220146},{"$f":"'COM S curve-disconnect'!AH22-'COM S curve-disconnect'!AH$5-'Appliance costs'!AG$85","v":41936.922509597862},{"$f":"'COM S curve-disconnect'!AI22-'COM S curve-disconnect'!AI$5-'Appliance costs'!AH$85","v":42018.847441620201},{"$f":"'COM S curve-disconnect'!AJ22-'COM S curve-disconnect'!AJ$5-'Appliance costs'!AI$85","v":42096.030172947118},{"$f":"'COM S curve-disconnect'!AK22-'COM S curve-disconnect'!AK$5-'Appliance costs'!AJ$85","v":42173.104583042681},{"$f":"'COM S curve-disconnect'!AL22-'COM S curve-disconnect'!AL$5-'Appliance costs'!AK$85","v":42245.438127780741},{"$f":"'COM S curve-disconnect'!AM22-'COM S curve-disconnect'!AM$5-'Appliance costs'!AL$85","v":42326.931097769724},{"$f":"'COM S curve-disconnect'!AN22-'COM S curve-disconnect'!AN$5-'Appliance costs'!AM$85","v":42403.684521214222},{"$f":"'COM S curve-disconnect'!AO22-'COM S curve-disconnect'!AO$5-'Appliance costs'!AN$85","v":42480.332261105395},{"$f":"'COM S curve-disconnect'!AP22-'COM S curve-disconnect'!AP$5-'Appliance costs'!AO$85","v":42552.241756947726},{"$f":"'COM S curve-disconnect'!AQ22-'COM S curve-disconnect'!AQ$5-'Appliance costs'!AP$85","v":42633.313283083466},{"$f":"'COM S curve-disconnect'!AR22-'COM S curve-disconnect'!AR$5-'Appliance costs'!AQ$85","v":42709.647851553498},{"$f":"'COM S curve-disconnect'!AS22-'COM S curve-disconnect'!AS$5-'Appliance costs'!AR$85","v":42785.879309286975},{"$f":"'COM S curve-disconnect'!AT22-'COM S curve-disconnect'!AT$5-'Appliance costs'!AS$85","v":42857.375079827543},{"$f":"'COM S curve-disconnect'!AU22-'COM S curve-disconnect'!AU$5-'Appliance costs'!AT$85","v":42938.035421657107},{"$f":"'COM S curve-disconnect'!AV22-'COM S curve-disconnect'!AV$5-'Appliance costs'!AU$85","v":43013.961331056038},{"$f":"'COM S curve-disconnect'!AW22-'COM S curve-disconnect'!AW$5-'Appliance costs'!AV$85","v":43089.786639292186},{"$f":"'COM S curve-disconnect'!AX22-'COM S curve-disconnect'!AX$5-'Appliance costs'!AW$85","v":43160.878754346588},{"$f":"'COM S curve-disconnect'!AY22-'COM S curve-disconnect'!AY$5-'Appliance costs'!AX$85","v":43241.137919236338},{"$f":"'COM S curve-disconnect'!AZ22-'COM S curve-disconnect'!AZ$5-'Appliance costs'!AY$85","v":43316.665114874464},{"$f":"'COM S curve-disconnect'!BA22-'COM S curve-disconnect'!BA$5-'Appliance costs'!AZ$85","v":43392.094157258201},{"$f":"'COM S curve-disconnect'!BB22-'COM S curve-disconnect'!BB$5-'Appliance costs'!BA$85","v":43462.792439193916},{"$f":"'COM S curve-disconnect'!BC22-'COM S curve-disconnect'!BC$5-'Appliance costs'!BB$85","v":43542.660188619782},{"$f":"'COM S curve-disconnect'!BD22-'COM S curve-disconnect'!BD$5-'Appliance costs'!BC$85","v":43617.798371464589},{"$f":"'COM S curve-disconnect'!BE22-'COM S curve-disconnect'!BE$5-'Appliance costs'!BD$85","v":43692.840788835711},{"$f":"'COM S curve-disconnect'!BF22-'COM S curve-disconnect'!BF$5-'Appliance costs'!BE$85","v":43763.154818743438},{"$f":"'COM S curve-disconnect'!BG22-'COM S curve-disconnect'!BG$5-'Appliance costs'!BF$85","v":43842.640674422692},{"$f":"'COM S curve-disconnect'!BH22-'COM S curve-disconnect'!BH$5-'Appliance costs'!BG$85","v":43917.39930719183},{"$f":"'COM S curve-disconnect'!BI22-'COM S curve-disconnect'!BI$5-'Appliance costs'!BH$85","v":43992.064503639529},{"$f":"'COM S curve-disconnect'!BJ22-'COM S curve-disconnect'!BJ$5-'Appliance costs'!BI$85","v":44062.003627348706},{"$f":"'COM S curve-disconnect'!BK22-'COM S curve-disconnect'!BK$5-'Appliance costs'!BJ$85","v":44141.116877217828},{"$f":"'COM S curve-disconnect'!BL22-'COM S curve-disconnect'!BL$5-'Appliance costs'!BK$85","v":44215.505190318778},{"$f":"'COM S curve-disconnect'!BM22-'COM S curve-disconnect'!BM$5-'Appliance costs'!BL$85","v":44289.802339083515},{"$f":"'COM S curve-disconnect'!BN22-'COM S curve-disconnect'!BN$5-'Appliance costs'!BM$85","v":44359.375673027185},{"$f":"'COM S curve-disconnect'!BO22-'COM S curve-disconnect'!BO$5-'Appliance costs'!BN$85","v":44438.125377069024},{"$f":"'COM S curve-disconnect'!BP22-'COM S curve-disconnect'!BP$5-'Appliance costs'!BO$85","v":44512.152374389545},{"$f":"'COM S curve-disconnect'!BQ22-'COM S curve-disconnect'!BQ$5-'Appliance costs'!BP$85","v":44586.090423616668},{"$f":"'COM S curve-disconnect'!BR22-'COM S curve-disconnect'!BR$5-'Appliance costs'!BQ$85","v":44655.306860548415},{"$f":"'COM S curve-disconnect'!BS22-'COM S curve-disconnect'!BS$5-'Appliance costs'!BR$85","v":44733.701856473017},{"$f":"'COM S curve-disconnect'!BT22-'COM S curve-disconnect'!BT$5-'Appliance costs'!BS$85","v":44807.376321025753},{"$f":"'COM S curve-disconnect'!BU22-'COM S curve-disconnect'!BU$5-'Appliance costs'!BT$85","v":44880.963999374486},{"$f":"'COM S curve-disconnect'!BV22-'COM S curve-disconnect'!BV$5-'Appliance costs'!BU$85","v":44949.832213941714},{"$f":"'COM S curve-disconnect'!BW22-'COM S curve-disconnect'!BW$5-'Appliance costs'!BV$85","v":45027.881122724342},{"$f":"'COM S curve-disconnect'!BX22-'COM S curve-disconnect'!BX$5-'Appliance costs'!BW$85","v":45101.211622149705},{"$f":"'COM S curve-disconnect'!BY22-'COM S curve-disconnect'!BY$5-'Appliance costs'!BX$85","v":45174.457444260901},{"$f":"'COM S curve-disconnect'!BZ22-'COM S curve-disconnect'!BZ$5-'Appliance costs'!BY$85","v":45242.985898438041},{"$f":"'COM S curve-disconnect'!CA22-'COM S curve-disconnect'!CA$5-'Appliance costs'!BZ$85","v":45320.697129717679},{"$f":"'COM S curve-disconnect'!CB22-'COM S curve-disconnect'!CB$5-'Appliance costs'!CA$85","v":45393.692021648276},{"$f":"'COM S curve-disconnect'!CC22-'COM S curve-disconnect'!CC$5-'Appliance costs'!CB$85","v":45466.604293474862},{"$f":"'COM S curve-disconnect'!CD22-'COM S curve-disconnect'!CD$5-'Appliance costs'!CC$85","v":45539.434451576431}]
["Port Phillip (C)",null,{"$f":"'COM S curve-disconnect'!C23-'COM S curve-disconnect'!C$5-'Appliance costs'!B$85","v":-5280.4763903655366},{"$f":"'COM S curve-disconnect'!D23-'COM S curve-disconnect'!D$5-'Appliance costs'!C$85","v":435.42389713602824},{"$f":"'COM S curve-disconnect'!E23-'COM S curve-disconnect'!E$5-'Appliance costs'!D$85","v":9635.4099876934924},{"$f":"'COM S curve-disconnect'!F23-'COM S curve-disconnect'!F$5-'Appliance costs'!E$85","v":12714.669350029984},{"$f":"'COM S curve-disconnect'!G23-'COM S curve-disconnect'!G$5-'Appliance costs'!F$85","v":-47.029589306523121},{"$f":"'COM S curve-disconnect'!H23-'COM S curve-disconnect'!H$5-'Appliance costs'!G$85","v":668.24665226454817},{"$f":"'COM S curve-disconnect'!I23-'COM S curve-disconnect'!I$5-'Appliance costs'!H$85","v":5086.0534197670349},{"$f":"'COM S curve-disconnect'!J23-'COM S curve-disconnect'!J$5-'Appliance costs'!I$85","v":5294.2097267490899},{"$f":"'COM S curve-disconnect'!K23-'COM S curve-disconnect'!K$5-'Appliance costs'!J$85","v":14561.134193646787},{"$f":"'COM S curve-disconnect'!L23-'COM S curve-disconnect'!L$5-'Appliance costs'!K$85","v":14713.584596661069},{"$f":"'COM S curve-disconnect'!M23-'COM S curve-disconnect'!M$5-'Appliance costs'!L$85","v":7410.6948941577793},{"$f":"'COM S curve-disconnect'!N23-'COM S curve-disconnect'!N$5-'Appliance costs'!M$85","v":7703.6260691760035},{"$f":"'COM S curve-disconnect'!O23-'COM S curve-disconnect'!O$5-'Appliance costs'!N$85","v":12922.270321910113},{"$f":"'COM S curve-disconnect'!P23-'COM S curve-disconnect'!P$5-'Appliance costs'!O$85","v":17978.218231420127},{"$f":"'COM S curve-disconnect'!Q23-'COM S curve-disconnect'!Q$5-'Appliance costs'!P$85","v":3665.3757610115463},{"$f":"'COM S curve-disconnect'!R23-'COM S curve-disconnect'!R$5-'Appliance costs'!Q$85","v":5943.505387608162},{"$f":"'COM S curve-disconnect'!S23-'COM S curve-disconnect'!S$5-'Appliance costs'!R$85","v":9123.3385384312351},{"$f":"'COM S curve-disconnect'!T23-'COM S curve-disconnect'!T$5-'Appliance costs'!S$85","v":13569.118110450931},{"$f":"'COM S curve-disconnect'!U23-'COM S curve-disconnect'!U$5-'Appliance costs'!T$85","v":16985.083659186475},{"$f":"'COM S curve-disconnect'!V23-'COM S curve-disconnect'!V$5-'Appliance costs'!U$85","v":18502.189328822587},{"$f":"'COM S curve-disconnect'!W23-'COM S curve-disconnect'!W$5-'Appliance costs'!V$85","v":20716.504977669949},{"$f":"'COM S curve-disconnect'!X23-'COM S curve-disconnect'!X$5-'Appliance costs'!W$85","v":25564.126425810904},{"$f":"'COM S curve-disconnect'!Y23-'COM S curve-disconnect'!Y$5-'Appliance costs'!X$85","v":29660.891322013467},{"$f":"'COM S curve-disconnect'!Z23-'COM S curve-disconnect'!Z$5-'Appliance costs'!Y$85","v":32149.404938823413},{"$f":"'COM S curve-disconnect'!AA23-'COM S curve-disconnect'!AA$5-'Appliance costs'!Z$85","v":34928.186353802164},{"$f":"'COM S curve-disconnect'!AB23-'COM S curve-disconnect'!AB$5-'Appliance costs'!AA$85","v":36821.103078815715},{"$f":"'COM S curve-disconnect'!AC23-'COM S curve-disconnect'!AC$5-'Appliance costs'!AB$85","v":38303.102441412644},{"$f":"'COM S curve-disconnect'!AD23-'COM S curve-disconnect'!AD$5-'Appliance costs'!AC$85","v":39474.076370553856},{"$f":"'COM S curve-disconnect'!AE23-'COM S curve-disconnect'!AE$5-'Appliance costs'!AD$85","v":40528.005319873773},{"$f":"'COM S curve-disconnect'!AF23-'COM S curve-disconnect'!AF$5-'Appliance costs'!AE$85","v":42128.823474605248},{"$f":"'COM S curve-disconnect'!AG23-'COM S curve-disconnect'!AG$5-'Appliance costs'!AF$85","v":42186.310662219657},{"$f":"'COM S curve-disconnect'!AH23-'COM S curve-disconnect'!AH$5-'Appliance costs'!AG$85","v":43436.911473750399},{"$f":"'COM S curve-disconnect'!AI23-'COM S curve-disconnect'!AI$5-'Appliance costs'!AH$85","v":43522.323272155372},{"$f":"'COM S curve-disconnect'!AJ23-'COM S curve-disconnect'!AJ$5-'Appliance costs'!AI$85","v":43602.987952947944},{"$f":"'COM S curve-disconnect'!AK23-'COM S curve-disconnect'!AK$5-'Appliance costs'!AJ$85","v":43683.539425806564},{"$f":"'COM S curve-disconnect'!AL23-'COM S curve-disconnect'!AL$5-'Appliance costs'!AK$85","v":43759.345176631905},{"$f":"'COM S curve-disconnect'!AM23-'COM S curve-disconnect'!AM$5-'Appliance costs'!AL$85","v":43844.305525872827},{"$f":"'COM S curve-disconnect'!AN23-'COM S curve-disconnect'!AN$5-'Appliance costs'!AM$85","v":43924.521531389189},{"$f":"'COM S curve-disconnect'!AO23-'COM S curve-disconnect'!AO$5-'Appliance costs'!AN$85","v":44004.627085643362},{"$f":"'COM S curve-disconnect'!AP23-'COM S curve-disconnect'!AP$5-'Appliance costs'!AO$85","v":44079.989657428174},{"$f":"'COM S curve-disconnect'!AQ23-'COM S curve-disconnect'!AQ$5-'Appliance costs'!AP$85","v":44164.509550192524},{"$f":"'COM S curve-disconnect'!AR23-'COM S curve-disconnect'!AR$5-'Appliance costs'!AQ$85","v":44244.287804903317},{"$f":"'COM S curve-disconnect'!AS23-'COM S curve-disconnect'!AS$5-'Appliance costs'!AR$85","v":44323.95829723635},{"$f":"'COM S curve-disconnect'!AT23-'COM S curve-disconnect'!AT$5-'Appliance costs'!AS$85","v":44398.888479303569},{"$f":"'COM S curve-disconnect'!AU23-'COM S curve-disconnect'!AU$5-'Appliance costs'!AT$85","v":44482.978637977969},{"$f":"'COM S curve-disconnect'!AV23-'COM S curve-disconnect'!AV$5-'Appliance costs'!AU$85","v":44562.329797755017},{"$f":"'COM S curve-disconnect'!AW23-'COM S curve-disconnect'!AW$5-'Appliance costs'!AV$85","v":44641.575817942634},{"$f":"'COM S curve-disconnect'!AX23-'COM S curve-disconnect'!AX$5-'Appliance costs'!AW$85","v":44716.08413438806},{"$f":"'COM S curve-disconnect'!AY23-'COM S curve-disconnect'!AY$5-'Appliance costs'!AX$85","v":44799.755017801872},{"$f":"'COM S curve-disconnect'!AZ23-'COM S curve-disconnect'!AZ$5-'Appliance costs'!AY$85","v":44878.689476618863},{"$f":"'COM S curve-disconnect'!BA23-'COM S curve-disconnect'!BA$5-'Appliance costs'!AZ$85","v":44957.521354187462},{"$f":"'COM S curve-disconnect'!BB23-'COM S curve-disconnect'!BB$5-'Appliance costs'!BA$85","v":45031.618070495679},{"$f":"'COM S curve-disconnect'!BC23-'COM S curve-disconnect'!BC$5-'Appliance costs'!BB$85","v":45114.879880494904},{"$f":"'COM S curve-disconnect'!BD23-'COM S curve-disconnect'!BD$5-'Appliance costs'!BC$85","v":45193.407776959699},{"$f":"'COM S curve-disconnect'!BE23-'COM S curve-disconnect'!BE$5-'Appliance costs'!BD$85","v":45271.835587676913},{"$f":"'COM S curve-disconnect'!BF23-'COM S curve-disconnect'!BF$5-'Appliance costs'!BE$85","v":45345.530717170972},{"$f":"'COM S curve-disconnect'!BG23-'COM S curve-disconnect'!BG$5-'Appliance costs'!BF$85","v":45428.393405026698},{"$f":"'COM S curve-disconnect'!BH23-'COM S curve-disconnect'!BH$5-'Appliance costs'!BG$85","v":45506.524628749139},{"$f":"'COM S curve-disconnect'!BI23-'COM S curve-disconnect'!BI$5-'Appliance costs'!BH$85","v":45584.558200951418},{"$f":"'COM S curve-disconnect'!BJ23-'COM S curve-disconnect'!BJ$5-'Appliance costs'!BI$85","v":45657.861511079769},{"$f":"'COM S curve-disconnect'!BK23-'COM S curve-disconnect'!BK$5-'Appliance costs'!BJ$85","v":45740.334783735765},{"$f":"'COM S curve-disconnect'!BL23-'COM S curve-disconnect'!BL$5-'Appliance costs'!BK$85","v":45818.078981535262},{"$f":"'COM S curve-disconnect'!BM23-'COM S curve-disconnect'!BM$5-'Appliance costs'!BL$85","v":45895.727902296087},{"$f":"'COM S curve-disconnect'!BN23-'COM S curve-disconnect'!BN$5-'Appliance costs'!BM$85","v":45968.648920761974},{"$f":"'COM S curve-disconnect'!BO23-'COM S curve-disconnect'!BO$5-'Appliance costs'!BN$85","v":46050.742246924652},{"$f":"'COM S curve-disconnect'!BP23-'COM S curve-disconnect'!BP$5-'Appliance costs'!BO$85","v":46128.108828881959},{"$f":"'COM S curve-disconnect'!BQ23-'COM S curve-disconnect'!BQ$5-'Appliance costs'!BP$85","v":46205.382450024859},{"$f":"'COM S curve-disconnect'!BR23-'COM S curve-disconnect'!BR$5-'Appliance costs'!BQ$85","v":46277.930470761232},{"$f":"'COM S curve-disconnect'!BS23-'COM S curve-disconnect'!BS$5-'Appliance costs'!BR$85","v":46359.653086836857},{"$f":"'COM S curve-disconnect'!BT23-'COM S curve-disconnect'!BT$5-'Appliance costs'!BS$85","v":46436.651232193224},{"$f":"'COM S curve-disconnect'!BU23-'COM S curve-disconnect'!BU$5-'Appliance costs'!BT$85","v":46513.558676154018},{"$f":"'COM S curve-disconnect'!BV23-'COM S curve-disconnect'!BV$5-'Appliance costs'!BU$85","v":46585.742765148199},{"$f":"'COM S curve-disconnect'!BW23-'COM S curve-disconnect'!BW$5-'Appliance costs'!BV$85","v":46667.103681030596},{"$f":"'COM S curve-disconnect'!BX23-'COM S curve-disconnect'!BX$5-'Appliance costs'!BW$85","v":46743.742343938909},{"$f":"'COM S curve-disconnect'!BY23-'COM S curve-disconnect'!BY$5-'Appliance costs'!BX$85","v":46820.292509480016},{"$f":"'COM S curve-disconnect'!BZ23-'COM S curve-disconnect'!BZ$5-'Appliance costs'!BY$85","v":46892.121510452038},{"$f":"'COM S curve-disconnect'!CA23-'COM S curve-disconnect'!CA$5-'Appliance costs'!BZ$85","v":46973.129515164779},{"$f":"'COM S curve-disconnect'!CB23-'COM S curve-disconnect'!CB$5-'Appliance costs'!CA$85","v":47049.417430296075},{"$f":"'COM S curve-disconnect'!CC23-'COM S curve-disconnect'!CC$5-'Appliance costs'!CB$85","v":47125.618998077363},{"$f":"'COM S curve-disconnect'!CD23-'COM S curve-disconnect'!CD$5-'Appliance costs'!CC$85","v":47201.734747731942}]
["South Gippsland (S)",null,{"$f":"'COM S curve-disconnect'!C24-'COM S curve-disconnect'!C$5-'Appliance costs'!B$85","v":-7440.1706661218777},{"$f":"'COM S curve-disconnect'!D24-'COM S curve-disconnect'!D$5-'Appliance costs'!C$85","v":-141.80717482225009},{"$f":"'COM S curve-disconnect'!E24-'COM S curve-disconnect'!E$5-'Appliance costs'!D$85","v":11403.991767949337},{"$f":"'COM S curve-disconnect'!F24-'COM S curve-disconnect'!F$5-'Appliance costs'!E$85","v":15331.039191637286},{"$f":"'COM S curve-disconnect'!G24-'COM S curve-disconnect'!G$5-'Appliance costs'!F$85","v":-814.61681279724871},{"$f":"'COM S curve-disconnect'!H24-'COM S curve-disconnect'!H$5-'Appliance costs'!G$85","v":96.607094276681892},{"$f":"'COM S curve-disconnect'!I24-'COM S curve-disconnect'!I$5-'Appliance costs'!H$85","v":5725.5222351849516},{"$f":"'COM S curve-disconnect'!J24-'COM S curve-disconnect'!J$5-'Appliance costs'!I$85","v":6024.5208888735506},{"$f":"'COM S curve-disconnect'!K24-'COM S curve-disconnect'!K$5-'Appliance costs'!J$85","v":17781.180024864727},{"$f":"'COM S curve-disconnect'!L24-'COM S curve-disconnect'!L$5-'Appliance costs'!K$85","v":17949.824927879301},{"$f":"'COM S curve-disconnect'!M24-'COM S curve-disconnect'!M$5-'Appliance costs'!L$85","v":8607.4187629574299},{"$f":"'COM S curve-disconnect'!N24-'COM S curve-disconnect'!N$5-'Appliance costs'!M$85","v":8970.2477734304921},{"$f":"'COM S curve-disconnect'!O24-'COM S curve-disconnect'!O$5-'Appliance costs'!N$85","v":15583.917824327829},{"$f":"'COM S curve-disconnect'!P24-'COM S curve-disconnect'!P$5-'Appliance costs'!O$85","v":21993.128632543288},{"$f":"'COM S curve-disconnect'!Q24-'COM S curve-disconnect'!Q$5-'Appliance costs'!P$85","v":4204.558011151159},{"$f":"'COM S curve-disconnect'!R24-'COM S curve-disconnect'!R$5-'Appliance costs'!Q$85","v":7105.8522399371359},{"$f":"'COM S curve-disconnect'!S24-'COM S curve-disconnect'!S$5-'Appliance costs'!R$85","v":11155.967860005745},{"$f":"'COM S curve-disconnect'!T24-'COM S curve-disconnect'!T$5-'Appliance costs'!S$85","v":16823.837378404358},{"$f":"'COM S curve-disconnect'!U24-'COM S curve-disconnect'!U$5-'Appliance costs'!T$85","v":21176.829624493992},{"$f":"'COM S curve-disconnect'!V24-'COM S curve-disconnect'!V$5-'Appliance costs'!U$85","v":23106.583431659077},{"$f":"'COM S curve-disconnect'!W24-'COM S curve-disconnect'!W$5-'Appliance costs'!V$85","v":25924.049591369738},{"$f":"'COM S curve-disconnect'!X24-'COM S curve-disconnect'!X$5-'Appliance costs'!W$85","v":32105.185477403655},{"$f":"'COM S curve-disconnect'!Y24-'COM S curve-disconnect'!Y$5-'Appliance costs'!X$85","v":37327.630862343773},{"$f":"'COM S curve-disconnect'!Z24-'COM S curve-disconnect'!Z$5-'Appliance costs'!Y$85","v":40497.901360198521},{"$f":"'COM S curve-disconnect'!AA24-'COM S curve-disconnect'!AA$5-'Appliance costs'!Z$85","v":44036.278074231275},{"$f":"'COM S curve-disconnect'!AB24-'COM S curve-disconnect'!AB$5-'Appliance costs'!AA$85","v":46444.860841480157},{"$f":"'COM S curve-disconnect'!AC24-'COM S curve-disconnect'!AC$5-'Appliance costs'!AB$85","v":48328.804575849252},{"$f":"'COM S curve-disconnect'!AD24-'COM S curve-disconnect'!AD$5-'Appliance costs'!AC$85","v":49816.939077522649},{"$f":"'COM S curve-disconnect'!AE24-'COM S curve-disconnect'!AE$5-'Appliance costs'!AD$85","v":51153.100478284498},{"$f":"'COM S curve-disconnect'!AF24-'COM S curve-disconnect'!AF$5-'Appliance costs'!AE$85","v":53188.882969346814},{"$f":"'COM S curve-disconnect'!AG24-'COM S curve-disconnect'!AG$5-'Appliance costs'!AF$85","v":53262.285647874975},{"$f":"'COM S curve-disconnect'!AH24-'COM S curve-disconnect'!AH$5-'Appliance costs'!AG$85","v":54860.401557792349},{"$f":"'COM S curve-disconnect'!AI24-'COM S curve-disconnect'!AI$5-'Appliance costs'!AH$85","v":54968.17713754838},{"$f":"'COM S curve-disconnect'!AJ24-'COM S curve-disconnect'!AJ$5-'Appliance costs'!AI$85","v":55071.17406396805},{"$f":"'COM S curve-disconnect'!AK24-'COM S curve-disconnect'!AK$5-'Appliance costs'!AJ$85","v":55174.026440516187},{"$f":"'COM S curve-disconnect'!AL24-'COM S curve-disconnect'!AL$5-'Appliance costs'!AK$85","v":55272.101945677081},{"$f":"'COM S curve-disconnect'!AM24-'COM S curve-disconnect'!AM$5-'Appliance costs'!AL$85","v":55379.301091287809},{"$f":"'COM S curve-disconnect'!AN24-'COM S curve-disconnect'!AN$5-'Appliance costs'!AM$85","v":55481.725125408659},{"$f":"'COM S curve-disconnect'!AO24-'COM S curve-disconnect'!AO$5-'Appliance costs'!AN$85","v":55584.00812952219},{"$f":"'COM S curve-disconnect'!AP24-'COM S curve-disconnect'!AP$5-'Appliance costs'!AO$85","v":55681.517760268405},{"$f":"'COM S curve-disconnect'!AQ24-'COM S curve-disconnect'!AQ$5-'Appliance costs'!AP$85","v":55788.154507777959},{"$f":"'COM S curve-disconnect'!AR24-'COM S curve-disconnect'!AR$5-'Appliance costs'!AQ$85","v":55890.019598541359},{"$f":"'COM S curve-disconnect'!AS24-'COM S curve-disconnect'!AS$5-'Appliance costs'!AR$85","v":55991.747092607126},{"$f":"'COM S curve-disconnect'!AT24-'COM S curve-disconnect'!AT$5-'Appliance costs'!AS$85","v":56088.704625316233},{"$f":"'COM S curve-disconnect'!AU24-'COM S curve-disconnect'!AU$5-'Appliance costs'!AT$85","v":56194.792665634421},{"$f":"'COM S curve-disconnect'!AV24-'COM S curve-disconnect'!AV$5-'Appliance costs'!AU$85","v":56296.112419020486},{"$f":"'COM S curve-disconnect'!AW24-'COM S curve-disconnect'!AW$5-'Appliance costs'!AV$85","v":56397.29792462365},{"$f":"'COM S curve-disconnect'!AX24-'COM S curve-disconnect'!AX$5-'Appliance costs'!AW$85","v":56493.716797017267},{"$f":"'COM S curve-disconnect'!AY24-'COM S curve-disconnect'!AY$5-'Appliance costs'!AX$85","v":56599.26948452997},{"$f":"'COM S curve-disconnect'!AZ24-'COM S curve-disconnect'!AZ$5-'Appliance costs'!AY$85","v":56700.05717211352},{"$f":"'COM S curve-disconnect'!BA24-'COM S curve-disconnect'!BA$5-'Appliance costs'!AZ$85","v":56800.713878539143},{"$f":"'COM S curve-disconnect'!BB24-'COM S curve-disconnect'!BB$5-'Appliance costs'!BA$85","v":56896.607198130361},{"$f":"'COM S curve-disconnect'!BC24-'COM S curve-disconnect'!BC$5-'Appliance costs'!BB$85","v":57001.637559093593},{"$f":"'COM S curve-disconnect'!BD24-'COM S curve-disconnect'!BD$5-'Appliance costs'!BC$85","v":57101.906126384813},{"$f":"'COM S curve-disconnect'!BE24-'COM S curve-disconnect'!BE$5-'Appliance costs'!BD$85","v":57202.046898905392},{"$f":"'COM S curve-disconnect'!BF24-'COM S curve-disconnect'!BF$5-'Appliance costs'!BE$85","v":57297.427451234114},{"$f":"'COM S curve-disconnect'!BG24-'COM S curve-disconnect'!BG$5-'Appliance costs'!BF$85","v":57401.948191956588},{"$f":"'COM S curve-disconnect'!BH24-'COM S curve-disconnect'!BH$5-'Appliance costs'!BG$85","v":57501.710266531838},{"$f":"'COM S curve-disconnect'!BI24-'COM S curve-disconnect'!BI$5-'Appliance costs'!BH$85","v":57601.347654486643},{"$f":"'COM S curve-disconnect'!BJ24-'COM S curve-disconnect'!BJ$5-'Appliance costs'!BI$85","v":57696.227911147122},{"$f":"'COM S curve-disconnect'!BK24-'COM S curve-disconnect'!BK$5-'Appliance costs'!BJ$85","v":57800.251425967508},{"$f":"'COM S curve-disconnect'!BL24-'COM S curve-disconnect'!BL$5-'Appliance costs'!BK$85","v":57899.519325395537},{"$f":"'COM S curve-disconnect'!BM24-'COM S curve-disconnect'!BM$5-'Appliance costs'!BL$85","v":57998.665570066514},{"$f":"'COM S curve-disconnect'!BN24-'COM S curve-disconnect'!BN$5-'Appliance costs'!BM$85","v":58093.057696533673},{"$f":"'COM S curve-disconnect'!BO24-'COM S curve-disconnect'!BO$5-'Appliance costs'!BN$85","v":58196.596075596623},{"$f":"'COM S curve-disconnect'!BP24-'COM S curve-disconnect'!BP$5-'Appliance costs'!BO$85","v":58295.381815165674},{"$f":"'COM S curve-disconnect'!BQ24-'COM S curve-disconnect'!BQ$5-'Appliance costs'!BP$85","v":58394.048857455273},{"$f":"'COM S curve-disconnect'!BR24-'COM S curve-disconnect'!BR$5-'Appliance costs'!BQ$85","v":58487.964720713753},{"$f":"'COM S curve-disconnect'!BS24-'COM S curve-disconnect'!BS$5-'Appliance costs'!BR$85","v":58591.029757550757},{"$f":"'COM S curve-disconnect'!BT24-'COM S curve-disconnect'!BT$5-'Appliance costs'!BS$85","v":58689.345057801096},{"$f":"'COM S curve-disconnect'!BU24-'COM S curve-disconnect'!BU$5-'Appliance costs'!BT$85","v":58787.54454571729},{"$f":"'COM S curve-disconnect'!BV24-'COM S curve-disconnect'!BV$5-'Appliance costs'!BU$85","v":58880.995721698702},{"$f":"'COM S curve-disconnect'!BW24-'COM S curve-disconnect'!BW$5-'Appliance costs'!BV$85","v":58983.598920618286},{"$f":"'COM S curve-disconnect'!BX24-'COM S curve-disconnect'!BX$5-'Appliance costs'!BW$85","v":59081.455214685426},{"$f":"'COM S curve-disconnect'!BY24-'COM S curve-disconnect'!BY$5-'Appliance costs'!BX$85","v":59179.198510638234},{"$f":"'COM S curve-disconnect'!BZ24-'COM S curve-disconnect'!BZ$5-'Appliance costs'!BY$85","v":59272.196291471606},{"$f":"'COM S curve-disconnect'!CA24-'COM S curve-disconnect'!CA$5-'Appliance costs'!BZ$85","v":59374.34887476344},{"$f":"'COM S curve-disconnect'!CB24-'COM S curve-disconnect'!CB$5-'Appliance costs'!CA$85","v":59471.757315536815},{"$f":"'COM S curve-disconnect'!CC24-'COM S curve-disconnect'!CC$5-'Appliance costs'!CB$85","v":59569.055503451484},{"$f":"'COM S curve-disconnect'!CD24-'COM S curve-disconnect'!CD$5-'Appliance costs'!CC$85","v":59666.24411424766}]
["Stonnington (C)",null,{"$f":"'COM S curve-disconnect'!C25-'COM S curve-disconnect'!C$5-'Appliance costs'!B$85","v":-2972.980622824125},{"$f":"'COM S curve-disconnect'!D25-'COM S curve-disconnect'!D$5-'Appliance costs'!C$85","v":1429.6053956716278},{"$f":"'COM S curve-disconnect'!E25-'COM S curve-disconnect'!E$5-'Appliance costs'!D$85","v":8495.7520953046806},{"$f":"'COM S curve-disconnect'!F25-'COM S curve-disconnect'!F$5-'Appliance costs'!E$85","v":10871.417114724793},{"$f":"'COM S curve-disconnect'!G25-'COM S curve-disconnect'!G$5-'Appliance costs'!F$85","v":1053.3918083518001},{"$f":"'COM S curve-disconnect'!H25-'COM S curve-disconnect'!H$5-'Appliance costs'!G$85","v":1606.0476082812384},{"$f":"'COM S curve-disconnect'!I25-'COM S curve-disconnect'!I$5-'Appliance costs'!H$85","v":5018.734064430686},{"$f":"'COM S curve-disconnect'!J25-'COM S curve-disconnect'!J$5-'Appliance costs'!I$85","v":5196.5271244173819},{"$f":"'COM S curve-disconnect'!K25-'COM S curve-disconnect'!K$5-'Appliance costs'!J$85","v":12364.118581909606},{"$f":"'COM S curve-disconnect'!L25-'COM S curve-disconnect'!L$5-'Appliance costs'!K$85","v":12496.616111857264},{"$f":"'COM S curve-disconnect'!M25-'COM S curve-disconnect'!M$5-'Appliance costs'!L$85","v":6879.8770744384965},{"$f":"'COM S curve-disconnect'!N25-'COM S curve-disconnect'!N$5-'Appliance costs'!M$85","v":7108.3509910514767},{"$f":"'COM S curve-disconnect'!O25-'COM S curve-disconnect'!O$5-'Appliance costs'!N$85","v":11162.823034390061},{"$f":"'COM S curve-disconnect'!P25-'COM S curve-disconnect'!P$5-'Appliance costs'!O$85","v":15089.290583029484},{"$f":"'COM S curve-disconnect'!Q25-'COM S curve-disconnect'!Q$5-'Appliance costs'!P$85","v":3654.6649565989574},{"$f":"'COM S curve-disconnect'!R25-'COM S curve-disconnect'!R$5-'Appliance costs'!Q$85","v":5409.2994181311078},{"$f":"'COM S curve-disconnect'!S25-'COM S curve-disconnect'!S$5-'Appliance costs'!R$85","v":7860.5815038271176},{"$f":"'COM S curve-disconnect'!T25-'COM S curve-disconnect'!T$5-'Appliance costs'!S$85","v":11285.870189171448},{"$f":"'COM S curve-disconnect'!U25-'COM S curve-disconnect'!U$5-'Appliance costs'!T$85","v":13917.955179472887},{"$f":"'COM S curve-disconnect'!V25-'COM S curve-disconnect'!V$5-'Appliance costs'!U$85","v":15086.402481854529},{"$f":"'COM S curve-disconnect'!W25-'COM S curve-disconnect'!W$5-'Appliance costs'!V$85","v":16793.989438127908},{"$f":"'COM S curve-disconnect'!X25-'COM S curve-disconnect'!X$5-'Appliance costs'!W$85","v":20528.771038665836},{"$f":"'COM S curve-disconnect'!Y25-'COM S curve-disconnect'!Y$5-'Appliance costs'!X$85","v":23685.211829312993},{"$f":"'COM S curve-disconnect'!Z25-'COM S curve-disconnect'!Z$5-'Appliance costs'!Y$85","v":25601.851922656602},{"$f":"'COM S curve-disconnect'!AA25-'COM S curve-disconnect'!AA$5-'Appliance costs'!Z$85","v":27744.190688035851},{"$f":"'COM S curve-disconnect'!AB25-'COM S curve-disconnect'!AB$5-'Appliance costs'!AA$85","v":29203.136183629496},{"$f":"'COM S curve-disconnect'!AC25-'COM S curve-disconnect'!AC$5-'Appliance costs'!AB$85","v":30345.574001537017},{"$f":"'COM S curve-disconnect'!AD25-'COM S curve-disconnect'!AD$5-'Appliance costs'!AC$85","v":31247.379868068259},{"$f":"'COM S curve-disconnect'!AE25-'COM S curve-disconnect'!AE$5-'Appliance costs'!AD$85","v":32061.157976128699},{"$f":"'COM S curve-disconnect'!AF25-'COM S curve-disconnect'!AF$5-'Appliance costs'!AE$85","v":33295.099996111734},{"$f":"'COM S curve-disconnect'!AG25-'COM S curve-disconnect'!AG$5-'Appliance costs'!AF$85","v":33339.378635644207},{"$f":"'COM S curve-disconnect'!AH25-'COM S curve-disconnect'!AH$5-'Appliance costs'!AG$85","v":34301.570505778611},{"$f":"'COM S curve-disconnect'!AI25-'COM S curve-disconnect'!AI$5-'Appliance costs'!AH$85","v":34368.422205543146},{"$f":"'COM S curve-disconnect'!AJ25-'COM S curve-disconnect'!AJ$5-'Appliance costs'!AI$85","v":34430.552959751789},{"$f":"'COM S curve-disconnect'!AK25-'COM S curve-disconnect'!AK$5-'Appliance costs'!AJ$85","v":34492.596517256112},{"$f":"'COM S curve-disconnect'!AL25-'COM S curve-disconnect'!AL$5-'Appliance costs'!AK$85","v":34549.920204128284},{"$f":"'COM S curve-disconnect'!AM25-'COM S curve-disconnect'!AM$5-'Appliance costs'!AL$85","v":34616.424181980678},{"$f":"'COM S curve-disconnect'!AN25-'COM S curve-disconnect'!AN$5-'Appliance costs'!AM$85","v":34678.209350822435},{"$f":"'COM S curve-disconnect'!AO25-'COM S curve-disconnect'!AO$5-'Appliance costs'!AN$85","v":34739.909446244747},{"$f":"'COM S curve-disconnect'!AP25-'COM S curve-disconnect'!AP$5-'Appliance costs'!AO$85","v":34796.891781142724},{"$f":"'COM S curve-disconnect'!AQ25-'COM S curve-disconnect'!AQ$5-'Appliance costs'!AP$85","v":34863.056504034736},{"$f":"'COM S curve-disconnect'!AR25-'COM S curve-disconnect'!AR$5-'Appliance costs'!AQ$85","v":34924.504501918418},{"$f":"'COM S curve-disconnect'!AS25-'COM S curve-disconnect'!AS$5-'Appliance costs'!AR$85","v":34985.869497455351},{"$f":"'COM S curve-disconnect'!AT25-'COM S curve-disconnect'!AT$5-'Appliance costs'!AS$85","v":35042.51879069244},{"$f":"'COM S curve-disconnect'!AU25-'COM S curve-disconnect'!AU$5-'Appliance costs'!AT$85","v":35108.352517380728},{"$f":"'COM S curve-disconnect'!AV25-'COM S curve-disconnect'!AV$5-'Appliance costs'!AU$85","v":35169.471551830946},{"$f":"'COM S curve-disconnect'!AW25-'COM S curve-disconnect'!AW$5-'Appliance costs'!AV$85","v":35230.509604097591},{"$f":"'COM S curve-disconnect'!AX25-'COM S curve-disconnect'!AX$5-'Appliance costs'!AW$85","v":35286.8339616999},{"$f":"'COM S curve-disconnect'!AY25-'COM S curve-disconnect'!AY$5-'Appliance costs'!AX$85","v":35352.344747940086},{"$f":"'COM S curve-disconnect'!AZ25-'COM S curve-disconnect'!AZ$5-'Appliance costs'!AY$85","v":35413.142824758368},{"$f":"'COM S curve-disconnect'!BA25-'COM S curve-disconnect'!BA$5-'Appliance costs'!AZ$85","v":35473.861889916705},{"$f":"'COM S curve-disconnect'!BB25-'COM S curve-disconnect'!BB$5-'Appliance costs'!BA$85","v":35529.869218718988},{"$f":"'COM S curve-disconnect'!BC25-'COM S curve-disconnect'!BC$5-'Appliance costs'!BB$85","v":35595.064922329126},{"$f":"'COM S curve-disconnect'!BD25-'COM S curve-disconnect'!BD$5-'Appliance costs'!BC$85","v":35655.549850625335},{"$f":"'COM S curve-disconnect'!BE25-'COM S curve-disconnect'!BE$5-'Appliance costs'!BD$85","v":35715.957689383446},{"$f":"'COM S curve-disconnect'!BF25-'COM S curve-disconnect'!BF$5-'Appliance costs'!BE$85","v":35771.655701996788},{"$f":"'COM S curve-disconnect'!BG25-'COM S curve-disconnect'!BG$5-'Appliance costs'!BF$85","v":35836.543987793433},{"$f":"'COM S curve-disconnect'!BH25-'COM S curve-disconnect'!BH$5-'Appliance costs'!BG$85","v":35896.723384890429},{"$f":"'COM S curve-disconnect'!BI25-'COM S curve-disconnect'!BI$5-'Appliance costs'!BH$85","v":35956.827567376298},{"$f":"'COM S curve-disconnect'!BJ25-'COM S curve-disconnect'!BJ$5-'Appliance costs'!BI$85","v":36012.223787030613},{"$f":"'COM S curve-disconnect'!BK25-'COM S curve-disconnect'!BK$5-'Appliance costs'!BJ$85","v":36076.812131640829},{"$f":"'COM S curve-disconnect'!BL25-'COM S curve-disconnect'!BL$5-'Appliance costs'!BK$85","v":36136.693427855833},{"$f":"'COM S curve-disconnect'!BM25-'COM S curve-disconnect'!BM$5-'Appliance costs'!BL$85","v":36196.501338368238},{"$f":"'COM S curve-disconnect'!BN25-'COM S curve-disconnect'!BN$5-'Appliance costs'!BM$85","v":36251.60310363333},{"$f":"'COM S curve-disconnect'!BO25-'COM S curve-disconnect'!BO$5-'Appliance costs'!BN$85","v":36315.898800185474},{"$f":"'COM S curve-disconnect'!BP25-'COM S curve-disconnect'!BP$5-'Appliance costs'!BO$85","v":36375.489243491291},{"$f":"'COM S curve-disconnect'!BQ25-'COM S curve-disconnect'!BQ$5-'Appliance costs'!BP$85","v":36435.008085131369},{"$f":"'COM S curve-disconnect'!BR25-'COM S curve-disconnect'!BR$5-'Appliance costs'!BQ$85","v":36489.822554518934},{"$f":"'COM S curve-disconnect'!BS25-'COM S curve-disconnect'!BS$5-'Appliance costs'!BR$85","v":36553.832717215671},{"$f":"'COM S curve-disconnect'!BT25-'COM S curve-disconnect'!BT$5-'Appliance costs'!BS$85","v":36613.139377784479},{"$f":"'COM S curve-disconnect'!BU25-'COM S curve-disconnect'!BU$5-'Appliance costs'!BT$85","v":36672.376176970851},{"$f":"'COM S curve-disconnect'!BV25-'COM S curve-disconnect'!BV$5-'Appliance costs'!BU$85","v":36726.910333420936},{"$f":"'COM S curve-disconnect'!BW25-'COM S curve-disconnect'!BW$5-'Appliance costs'!BV$85","v":36790.641901997165},{"$f":"'COM S curve-disconnect'!BX25-'COM S curve-disconnect'!BX$5-'Appliance costs'!BW$85","v":36849.671676630242},{"$f":"'COM S curve-disconnect'!BY25-'COM S curve-disconnect'!BY$5-'Appliance costs'!BX$85","v":36908.633287500488},{"$f":"'COM S curve-disconnect'!BZ25-'COM S curve-disconnect'!BZ$5-'Appliance costs'!BY$85","v":36962.893942755138},{"$f":"'COM S curve-disconnect'!CA25-'COM S curve-disconnect'!CA$5-'Appliance costs'!BZ$85","v":37026.353686823728},{"$f":"'COM S curve-disconnect'!CB25-'COM S curve-disconnect'!CB$5-'Appliance costs'!CA$85","v":37085.11330326974},{"$f":"'COM S curve-disconnect'!CC25-'COM S curve-disconnect'!CC$5-'Appliance costs'!CB$85","v":37143.806411971251},{"$f":"'COM S curve-disconnect'!CD25-'COM S curve-disconnect'!CD$5-'Appliance costs'!CC$85","v":37202.433420554538}]
["Whitehorse (C)",null,{"$f":"'COM S curve-disconnect'!C26-'COM S curve-disconnect'!C$5-'Appliance costs'!B$85","v":-3626.9727825847949},{"$f":"'COM S curve-disconnect'!D26-'COM S curve-disconnect'!D$5-'Appliance costs'!C$85","v":1319.7535084919109},{"$f":"'COM S curve-disconnect'!E26-'COM S curve-disconnect'!E$5-'Appliance costs'!D$85","v":9160.3466826185795},{"$f":"'COM S curve-disconnect'!F26-'COM S curve-disconnect'!F$5-'Appliance costs'!E$85","v":11827.529145027231},{"$f":"'COM S curve-disconnect'!G26-'COM S curve-disconnect'!G$5-'Appliance costs'!F$85","v":869.18232834351875},{"$f":"'COM S curve-disconnect'!H26-'COM S curve-disconnect'!H$5-'Appliance costs'!G$85","v":1489.2160084425705},{"$f":"'COM S curve-disconnect'!I26-'COM S curve-disconnect'!I$5-'Appliance costs'!H$85","v":5318.3499616639274},{"$f":"'COM S curve-disconnect'!J26-'COM S curve-disconnect'!J$5-'Appliance costs'!I$85","v":5535.1273439909746},{"$f":"'COM S curve-disconnect'!K26-'COM S curve-disconnect'!K$5-'Appliance costs'!J$85","v":13553.142302588189},{"$f":"'COM S curve-disconnect'!L26-'COM S curve-disconnect'!L$5-'Appliance costs'!K$85","v":13690.08782964099},{"$f":"'COM S curve-disconnect'!M26-'COM S curve-disconnect'!M$5-'Appliance costs'!L$85","v":7370.9327975997585},{"$f":"'COM S curve-disconnect'!N26-'COM S curve-disconnect'!N$5-'Appliance costs'!M$85","v":7622.3321306154066},{"$f":"'COM S curve-disconnect'!O26-'COM S curve-disconnect'!O$5-'Appliance costs'!N$85","v":12155.389012388674},{"$f":"'COM S curve-disconnect'!P26-'COM S curve-disconnect'!P$5-'Appliance costs'!O$85","v":16546.086473968473},{"$f":"'COM S curve-disconnect'!Q26-'COM S curve-disconnect'!Q$5-'Appliance costs'!P$85","v":3915.2162487639944},{"$f":"'COM S curve-disconnect'!R26-'COM S curve-disconnect'!R$5-'Appliance costs'!Q$85","v":5883.0425278777075},{"$f":"'COM S curve-disconnect'!S26-'COM S curve-disconnect'!S$5-'Appliance costs'!R$85","v":8632.4949551209138},{"$f":"'COM S curve-disconnect'!T26-'COM S curve-disconnect'!T$5-'Appliance costs'!S$85","v":12476.930682623421},{"$f":"'COM S curve-disconnect'!U26-'COM S curve-disconnect'!U$5-'Appliance costs'!T$85","v":15430.147244184118},{"$f":"'COM S curve-disconnect'!V26-'COM S curve-disconnect'!V$5-'Appliance costs'!U$85","v":16739.420492735651},{"$f":"'COM S curve-disconnect'!W26-'COM S curve-disconnect'!W$5-'Appliance costs'!V$85","v":18653.34420520284},{"$f":"'COM S curve-disconnect'!X26-'COM S curve-disconnect'!X$5-'Appliance costs'!W$85","v":22845.608254408784},{"$f":"'COM S curve-disconnect'!Y26-'COM S curve-disconnect'!Y$5-'Appliance costs'!X$85","v":26388.071713406822},{"$f":"'COM S curve-disconnect'!Z26-'COM S curve-disconnect'!Z$5-'Appliance costs'!Y$85","v":28538.093702653696},{"$f":"'COM S curve-disconnect'!AA26-'COM S curve-disconnect'!AA$5-'Appliance costs'!Z$85","v":30940.584833829649},{"$f":"'COM S curve-disconnect'!AB26-'COM S curve-disconnect'!AB$5-'Appliance costs'!AA$85","v":32575.811229682531},{"$f":"'COM S curve-disconnect'!AC26-'COM S curve-disconnect'!AC$5-'Appliance costs'!AB$85","v":33855.431182391265},{"$f":"'COM S curve-disconnect'!AD26-'COM S curve-disconnect'!AD$5-'Appliance costs'!AC$85","v":34865.27086778135},{"$f":"'COM S curve-disconnect'!AE26-'COM S curve-disconnect'!AE$5-'Appliance costs'!AD$85","v":35775.07765246489},{"$f":"'COM S curve-disconnect'!AF26-'COM S curve-disconnect'!AF$5-'Appliance costs'!AE$85","v":37157.571295737187},{"$f":"'COM S curve-disconnect'!AG26-'COM S curve-disconnect'!AG$5-'Appliance costs'!AF$85","v":37207.322580411288},{"$f":"'COM S curve-disconnect'!AH26-'COM S curve-disconnect'!AH$5-'Appliance costs'!AG$85","v":38289.009779036249},{"$f":"'COM S curve-disconnect'!AI26-'COM S curve-disconnect'!AI$5-'Appliance costs'!AH$85","v":38363.55141058001},{"$f":"'COM S curve-disconnect'!AJ26-'COM S curve-disconnect'!AJ$5-'Appliance costs'!AI$85","v":38433.361252803894},{"$f":"'COM S curve-disconnect'!AK26-'COM S curve-disconnect'!AK$5-'Appliance costs'!AJ$85","v":38503.073121194248},{"$f":"'COM S curve-disconnect'!AL26-'COM S curve-disconnect'!AL$5-'Appliance costs'!AK$85","v":38568.054408044336},{"$f":"'COM S curve-disconnect'!AM26-'COM S curve-disconnect'!AM$5-'Appliance costs'!AL$85","v":38642.205340776629},{"$f":"'COM S curve-disconnect'!AN26-'COM S curve-disconnect'!AN$5-'Appliance costs'!AM$85","v":38711.626884801924},{"$f":"'COM S curve-disconnect'!AO26-'COM S curve-disconnect'!AO$5-'Appliance costs'!AN$85","v":38780.952840707207},{"$f":"'COM S curve-disconnect'!AP26-'COM S curve-disconnect'!AP$5-'Appliance costs'!AO$85","v":38845.550585980105},{"$f":"'COM S curve-disconnect'!AQ26-'COM S curve-disconnect'!AQ$5-'Appliance costs'!AP$85","v":38919.320333330696},{"$f":"'COM S curve-disconnect'!AR26-'COM S curve-disconnect'!AR$5-'Appliance costs'!AQ$85","v":38988.363033550122},{"$f":"'COM S curve-disconnect'!AS26-'COM S curve-disconnect'!AS$5-'Appliance costs'!AR$85","v":39057.312472697726},{"$f":"'COM S curve-disconnect'!AT26-'COM S curve-disconnect'!AT$5-'Appliance costs'!AS$85","v":39121.536013824894},{"$f":"'COM S curve-disconnect'!AU26-'COM S curve-disconnect'!AU$5-'Appliance costs'!AT$85","v":39194.933855296476},{"$f":"'COM S curve-disconnect'!AV26-'COM S curve-disconnect'!AV$5-'Appliance costs'!AU$85","v":39263.606933648596},{"$f":"'COM S curve-disconnect'!AW26-'COM S curve-disconnect'!AW$5-'Appliance costs'!AV$85","v":39332.18902077536},{"$f":"'COM S curve-disconnect'!AX26-'COM S curve-disconnect'!AX$5-'Appliance costs'!AW$85","v":39396.04746565214},{"$f":"'COM S curve-disconnect'!AY26-'COM S curve-disconnect'!AY$5-'Appliance costs'!AX$85","v":39469.082452656265},{"$f":"'COM S curve-disconnect'!AZ26-'COM S curve-disconnect'!AZ$5-'Appliance costs'!AY$85","v":39537.394904424495},{"$f":"'COM S curve-disconnect'!BA26-'COM S curve-disconnect'!BA$5-'Appliance costs'!AZ$85","v":39605.618579039001},{"$f":"'COM S curve-disconnect'!BB26-'COM S curve-disconnect'!BB$5-'Appliance costs'!BA$85","v":39669.120811750123},{"$f":"'COM S curve-disconnect'!BC26-'COM S curve-disconnect'!BC$5-'Appliance costs'!BB$85","v":39741.80177329664},{"$f":"'COM S curve-disconnect'!BD26-'COM S curve-disconnect'!BD$5-'Appliance costs'!BC$85","v":39809.762372762445},{"$f":"'COM S curve-disconnect'!BE26-'COM S curve-disconnect'!BE$5-'Appliance costs'!BD$85","v":39877.636354762224},{"$f":"'COM S curve-disconnect'!BF26-'COM S curve-disconnect'!BF$5-'Appliance costs'!BE$85","v":39940.791041163597},{"$f":"'COM S curve-disconnect'!BG26-'COM S curve-disconnect'!BG$5-'Appliance costs'!BF$85","v":40013.12658940666},{"$f":"'COM S curve-disconnect'!BH26-'COM S curve-disconnect'!BH$5-'Appliance costs'!BG$85","v":40080.743895360531},{"$f":"'COM S curve-disconnect'!BI26-'COM S curve-disconnect'!BI$5-'Appliance costs'!BH$85","v":40148.276690508079},{"$f":"'COM S curve-disconnect'!BJ26-'COM S curve-disconnect'!BJ$5-'Appliance costs'!BI$85","v":40211.092283667749},{"$f":"'COM S curve-disconnect'!BK26-'COM S curve-disconnect'!BK$5-'Appliance costs'!BJ$85","v":40283.09081931266},{"$f":"'COM S curve-disconnect'!BL26-'COM S curve-disconnect'!BL$5-'Appliance costs'!BK$85","v":40350.373180426337},{"$f":"'COM S curve-disconnect'!BM26-'COM S curve-disconnect'!BM$5-'Appliance costs'!BL$85","v":40417.573085687298},{"$f":"'COM S curve-disconnect'!BN26-'COM S curve-disconnect'!BN$5-'Appliance costs'!BM$85","v":40480.057831190017},{"$f":"'COM S curve-disconnect'!BO26-'COM S curve-disconnect'!BO$5-'Appliance costs'!BN$85","v":40551.727548763738},{"$f":"'COM S curve-disconnect'!BP26-'COM S curve-disconnect'!BP$5-'Appliance costs'!BO$85","v":40618.683108827609},{"$f":"'COM S curve-disconnect'!BQ26-'COM S curve-disconnect'!BQ$5-'Appliance costs'!BP$85","v":40685.55821757474},{"$f":"'COM S curve-disconnect'!BR26-'COM S curve-disconnect'!BR$5-'Appliance costs'!BQ$85","v":40747.720158692784},{"$f":"'COM S curve-disconnect'!BS26-'COM S curve-disconnect'!BS$5-'Appliance costs'!BR$85","v":40819.06905168212},{"$f":"'COM S curve-disconnect'!BT26-'COM S curve-disconnect'!BT$5-'Appliance costs'!BS$85","v":40885.705754710572},{"$f":"'COM S curve-disconnect'!BU26-'COM S curve-disconnect'!BU$5-'Appliance costs'!BT$85","v":40952.263961796911},{"$f":"'COM S curve-disconnect'!BV26-'COM S curve-disconnect'!BV$5-'Appliance costs'!BU$85","v":41014.110944531029},{"$f":"'COM S curve-disconnect'!BW26-'COM S curve-disconnect'!BW$5-'Appliance costs'!BV$85","v":41085.146810391598},{"$f":"'COM S curve-disconnect'!BX26-'COM S curve-disconnect'!BX$5-'Appliance costs'!BW$85","v":41151.472405600216},{"$f":"'COM S curve-disconnect'!BY26-'COM S curve-disconnect'!BY$5-'Appliance costs'!BX$85","v":41217.721412304614},{"$f":"'COM S curve-disconnect'!BZ26-'COM S curve-disconnect'!BZ$5-'Appliance costs'!BY$85","v":41279.261090298183},{"$f":"'COM S curve-disconnect'!CA26-'COM S curve-disconnect'!CA$5-'Appliance costs'!BZ$85","v":41349.991535337278},{"$f":"'COM S curve-disconnect'!CB26-'COM S curve-disconnect'!CB$5-'Appliance costs'!CA$85","v":41416.013581994855},{"$f":"'COM S curve-disconnect'!CC26-'COM S curve-disconnect'!CC$5-'Appliance costs'!CB$85","v":41481.960900843151},{"$f":"'COM S curve-disconnect'!CD26-'COM S curve-disconnect'!CD$5-'Appliance costs'!CC$85","v":41547.83394988926}]
["Yarra Ranges (S)",null,{"$f":"'COM S curve-disconnect'!C27-'COM S curve-disconnect'!C$5-'Appliance costs'!B$85","v":-2509.3742243327797},{"$f":"'COM S curve-disconnect'!D27-'COM S curve-disconnect'!D$5-'Appliance costs'!C$85","v":1982.880408797886},{"$f":"'COM S curve-disconnect'!E27-'COM S curve-disconnect'!E$5-'Appliance costs'!D$85","v":8969.2194078061984},{"$f":"'COM S curve-disconnect'!F27-'COM S curve-disconnect'!F$5-'Appliance costs'!E$85","v":11392.923446890685},{"$f":"'COM S curve-disconnect'!G27-'COM S curve-disconnect'!G$5-'Appliance costs'!F$85","v":1537.0235746709368},{"$f":"'COM S curve-disconnect'!H27-'COM S curve-disconnect'!H$5-'Appliance costs'!G$85","v":2100.7825431697383},{"$f":"'COM S curve-disconnect'!I27-'COM S curve-disconnect'!I$5-'Appliance costs'!H$85","v":5582.0951826992386},{"$f":"'COM S curve-disconnect'!J27-'COM S curve-disconnect'!J$5-'Appliance costs'!I$85","v":5816.2578389151749},{"$f":"'COM S curve-disconnect'!K27-'COM S curve-disconnect'!K$5-'Appliance costs'!J$85","v":13087.322275607308},{"$f":"'COM S curve-disconnect'!L27-'COM S curve-disconnect'!L$5-'Appliance costs'!K$85","v":13213.328844612355},{"$f":"'COM S curve-disconnect'!M27-'COM S curve-disconnect'!M$5-'Appliance costs'!L$85","v":7473.6511876757468},{"$f":"'COM S curve-disconnect'!N27-'COM S curve-disconnect'!N$5-'Appliance costs'!M$85","v":7698.7510872572275},{"$f":"'COM S curve-disconnect'!O27-'COM S curve-disconnect'!O$5-'Appliance costs'!N$85","v":11824.972770685741},{"$f":"'COM S curve-disconnect'!P27-'COM S curve-disconnect'!P$5-'Appliance costs'!O$85","v":15820.859998755157},{"$f":"'COM S curve-disconnect'!Q27-'COM S curve-disconnect'!Q$5-'Appliance costs'!P$85","v":4182.0606557972169},{"$f":"'COM S curve-disconnect'!R27-'COM S curve-disconnect'!R$5-'Appliance costs'!Q$85","v":5964.8169778232768},{"$f":"'COM S curve-disconnect'!S27-'COM S curve-disconnect'!S$5-'Appliance costs'!R$85","v":8458.2595438197786},{"$f":"'COM S curve-disconnect'!T27-'COM S curve-disconnect'!T$5-'Appliance costs'!S$85","v":11945.679276293606},{"$f":"'COM S curve-disconnect'!U27-'COM S curve-disconnect'!U$5-'Appliance costs'!T$85","v":14623.778091232809},{"$f":"'COM S curve-disconnect'!V27-'COM S curve-disconnect'!V$5-'Appliance costs'!U$85","v":15808.561267204965},{"$f":"'COM S curve-disconnect'!W27-'COM S curve-disconnect'!W$5-'Appliance costs'!V$85","v":17543.313945876856},{"$f":"'COM S curve-disconnect'!X27-'COM S curve-disconnect'!X$5-'Appliance costs'!W$85","v":21346.681629129969},{"$f":"'COM S curve-disconnect'!Y27-'COM S curve-disconnect'!Y$5-'Appliance costs'!X$85","v":24559.966690707995},{"$f":"'COM S curve-disconnect'!Z27-'COM S curve-disconnect'!Z$5-'Appliance costs'!Y$85","v":26508.331296370787},{"$f":"'COM S curve-disconnect'!AA27-'COM S curve-disconnect'!AA$5-'Appliance costs'!Z$85","v":28686.83973886013},{"$f":"'COM S curve-disconnect'!AB27-'COM S curve-disconnect'!AB$5-'Appliance costs'!AA$85","v":30168.167276502078},{"$f":"'COM S curve-disconnect'!AC27-'COM S curve-disconnect'!AC$5-'Appliance costs'!AB$85","v":31326.577405658601},{"$f":"'COM S curve-disconnect'!AD27-'COM S curve-disconnect'!AD$5-'Appliance costs'!AC$85","v":32239.585415764494},{"$f":"'COM S curve-disconnect'!AE27-'COM S curve-disconnect'!AE$5-'Appliance costs'!AD$85","v":33062.620349254532},{"$f":"'COM S curve-disconnect'!AF27-'COM S curve-disconnect'!AF$5-'Appliance costs'!AE$85","v":34314.507264337321},{"$f":"'COM S curve-disconnect'!AG27-'COM S curve-disconnect'!AG$5-'Appliance costs'!AF$85","v":34359.687738438864},{"$f":"'COM S curve-disconnect'!AH27-'COM S curve-disconnect'!AH$5-'Appliance costs'!AG$85","v":35341.571186464149},{"$f":"'COM S curve-disconnect'!AI27-'COM S curve-disconnect'!AI$5-'Appliance costs'!AH$85","v":35409.690106399699},{"$f":"'COM S curve-disconnect'!AJ27-'COM S curve-disconnect'!AJ$5-'Appliance costs'!AI$85","v":35473.086293840686},{"$f":"'COM S curve-disconnect'!AK27-'COM S curve-disconnect'!AK$5-'Appliance costs'!AJ$85","v":35536.393508619425},{"$f":"'COM S curve-disconnect'!AL27-'COM S curve-disconnect'!AL$5-'Appliance costs'!AK$85","v":35594.979087720581},{"$f":"'COM S curve-disconnect'!AM27-'COM S curve-disconnect'!AM$5-'Appliance costs'!AL$85","v":35662.743203601356},{"$f":"'COM S curve-disconnect'!AN27-'COM S curve-disconnect'!AN$5-'Appliance costs'!AM$85","v":35725.786767048412},{"$f":"'COM S curve-disconnect'!AO27-'COM S curve-disconnect'!AO$5-'Appliance costs'!AN$85","v":35788.743524363563},{"$f":"'COM S curve-disconnect'!AP27-'COM S curve-disconnect'!AP$5-'Appliance costs'!AO$85","v":35846.980799086072},{"$f":"'COM S curve-disconnect'!AQ27-'COM S curve-disconnect'!AQ$5-'Appliance costs'!AP$85","v":35914.398750312444},{"$f":"'COM S curve-disconnect'!AR27-'COM S curve-disconnect'!AR$5-'Appliance costs'!AQ$85","v":35977.098275552817},{"$f":"'COM S curve-disconnect'!AS27-'COM S curve-disconnect'!AS$5-'Appliance costs'!AR$85","v":36039.713107916046},{"$f":"'COM S curve-disconnect'!AT27-'COM S curve-disconnect'!AT$5-'Appliance costs'!AS$85","v":36097.610557831533},{"$f":"'COM S curve-disconnect'!AU27-'COM S curve-disconnect'!AU$5-'Appliance costs'!AT$85","v":36164.690771368405},{"$f":"'COM S curve-disconnect'!AV27-'COM S curve-disconnect'!AV$5-'Appliance costs'!AU$85","v":36227.054633091488},{"$f":"'COM S curve-disconnect'!AW27-'COM S curve-disconnect'!AW$5-'Appliance costs'!AV$85","v":36289.335863245804},{"$f":"'COM S curve-disconnect'!AX27-'COM S curve-disconnect'!AX$5-'Appliance costs'!AW$85","v":36346.901759477929},{"$f":"'COM S curve-disconnect'!AY27-'COM S curve-disconnect'!AY$5-'Appliance costs'!AX$85","v":36413.652455154581},{"$f":"'COM S curve-disconnect'!AZ27-'COM S curve-disconnect'!AZ$5-'Appliance costs'!AY$85","v":36475.688822218151},{"$f":"'COM S curve-disconnect'!BA27-'COM S curve-disconnect'!BA$5-'Appliance costs'!AZ$85","v":36537.644568370742},{"$f":"'COM S curve-disconnect'!BB27-'COM S curve-disconnect'!BB$5-'Appliance costs'!BA$85","v":36594.886978794792},{"$f":"'COM S curve-disconnect'!BC27-'COM S curve-disconnect'!BC$5-'Appliance costs'!BB$85","v":36661.316174471525},{"$f":"'COM S curve-disconnect'!BD27-'COM S curve-disconnect'!BD$5-'Appliance costs'!BC$85","v":36723.033015035617},{"$f":"'COM S curve-disconnect'!BE27-'COM S curve-disconnect'!BE$5-'Appliance costs'!BD$85","v":36784.671195958937},{"$f":"'COM S curve-disconnect'!BF27-'COM S curve-disconnect'!BF$5-'Appliance costs'!BE$85","v":36841.597990270777},{"$f":"'COM S curve-disconnect'!BG27-'COM S curve-disconnect'!BG$5-'Appliance costs'!BF$85","v":36907.713506875421},{"$f":"'COM S curve-disconnect'!BH27-'COM S curve-disconnect'!BH$5-'Appliance costs'!BG$85","v":36969.1185934069},{"$f":"'COM S curve-disconnect'!BI27-'COM S curve-disconnect'!BI$5-'Appliance costs'!BH$85","v":37030.446933411695},{"$f":"'COM S curve-disconnect'!BJ27-'COM S curve-disconnect'!BJ$5-'Appliance costs'!BI$85","v":37087.065788068809},{"$f":"'COM S curve-disconnect'!BK27-'COM S curve-disconnect'!BK$5-'Appliance costs'!BJ$85","v":37152.875254506864},{"$f":"'COM S curve-disconnect'!BL27-'COM S curve-disconnect'!BL$5-'Appliance costs'!BK$85","v":37213.976168658141},{"$f":"'COM S curve-disconnect'!BM27-'COM S curve-disconnect'!BM$5-'Appliance costs'!BL$85","v":37275.002202441137},{"$f":"'COM S curve-disconnect'!BN27-'COM S curve-disconnect'!BN$5-'Appliance costs'!BM$85","v":37331.320605479879},{"$f":"'COM S curve-disconnect'!BO27-'COM S curve-disconnect'!BO$5-'Appliance costs'!BN$85","v":37396.831463420749},{"$f":"'COM S curve-disconnect'!BP27-'COM S curve-disconnect'!BP$5-'Appliance costs'!BO$85","v":37457.635600785972},{"$f":"'COM S curve-disconnect'!BQ27-'COM S curve-disconnect'!BQ$5-'Appliance costs'!BP$85","v":37518.366678155726},{"$f":"'COM S curve-disconnect'!BR27-'COM S curve-disconnect'!BR$5-'Appliance costs'!BQ$85","v":37574.391933887076},{"$f":"'COM S curve-disconnect'!BS27-'COM S curve-disconnect'!BS$5-'Appliance costs'!BR$85","v":37639.611442430229},{"$f":"'COM S curve-disconnect'!BT27-'COM S curve-disconnect'!BT$5-'Appliance costs'!BS$85","v":37700.126017181625},{"$f":"'COM S curve-disconnect'!BU27-'COM S curve-disconnect'!BU$5-'Appliance costs'!BT$85","v":37760.569307665639},{"$f":"'COM S curve-disconnect'!BV27-'COM S curve-disconnect'!BV$5-'Appliance costs'!BU$85","v":37816.308541253005},{"$f":"'COM S curve-disconnect'!BW27-'COM S curve-disconnect'!BW$5-'Appliance costs'!BV$85","v":37881.243781476725},{"$f":"'COM S curve-disconnect'!BX27-'COM S curve-disconnect'!BX$5-'Appliance costs'!BW$85","v":37941.475830884527},{"$f":"'COM S curve-disconnect'!BY27-'COM S curve-disconnect'!BY$5-'Appliance costs'!BX$85","v":38001.638328220397},{"$f":"'COM S curve-disconnect'!BZ27-'COM S curve-disconnect'!BZ$5-'Appliance costs'!BY$85","v":38057.098490142322},{"$f":"'COM S curve-disconnect'!CA27-'COM S curve-disconnect'!CA$5-'Appliance costs'!BZ$85","v":38121.756369537965},{"$f":"'COM S curve-disconnect'!CB27-'COM S curve-disconnect'!CB$5-'Appliance costs'!CA$85","v":38181.712758376634},{"$f":"'COM S curve-disconnect'!CC27-'COM S curve-disconnect'!CC$5-'Appliance costs'!CB$85","v":38241.601284890254},{"$f":"'COM S curve-disconnect'!CD27-'COM S curve-disconnect'!CD$5-'Appliance costs'!CC$85","v":38301.422365007362}]
[]
["LGA Number of decision points",2020,{"$f":"B26+1","v":2021},2022,2023,2024,2025,2026,2027,2028,2029,2030,2031,2032,2033,2034,2035,2036,2037,2038,2039,2040,2041,2042,2043,2044,2045,2046,2047,2048,2049,2050,2051,2052,2053,2054,2055,2056,2057,2058,2059,2060,2061,2062,2063,2064,2065,2066,2067,2068,2069,2070,2071,2072,2073,2074,2075,2076,2077,2078,2079,2080,2081,2082,2083,2084,{"$f":"BN26+1","v":2085},2086,2087,2088,2089,2090,2091,2092,2093,2094,2095,2096,2097,2098,2099,2100]
["Bass Coast (S)",null,{"$f":"Households!M53","v":406.73100736027482},{"$f":"Households!N53","v":317.08442810274937},{"$f":"Households!O53","v":322.85372081157766},{"$f":"Households!P53","v":328.72798473756484},{"$f":"Households!Q53","v":334.70912981265064},{"$f":"Households!R53","v":340.79910071965423},{"$f":"Households!S53","v":321.97059791644642},{"$f":"Households!T53","v":327.4062389181272},{"$f":"Households!U53","v":332.93364666277193},{"$f":"Households!V53","v":338.55437039453682},{"$f":"Households!W53","v":344.26998551258293},{"$f":"Households!X53","v":299.83362276185289},{"$f":"Households!Y53","v":304.1689842776068},{"$f":"Households!Z53","v":308.56703175665825},{"$f":"Households!AA53","v":313.02867158938898},{"$f":"Households!AB53","v":317.55482327189384},{"$f":"Households!AC53","v":322.14641959546498},{"$f":"Households!AD53","v":326.8044068388117},{"$f":"Households!AE53","v":331.52974496311799},{"$f":"Households!AF53","v":336.32340780987215},{"$f":"Households!AG53","v":341.18638330153044},{"$f":"Households!AH53","v":346.11967364514567},{"$f":"Households!AI53","v":351.12429553893162},{"$f":"Households!AJ53","v":356.20128038173425},{"$f":"Households!AK53","v":361.35167448564971},{"$f":"Households!AL53","v":366.57653929162552},{"$f":"Households!AM53","v":371.87695158823408},{"$f":"Households!AN53","v":377.25400373354933},{"$f":"Households!AO53","v":382.70880388033038},{"$f":"Households!AP53","v":388.24247620432652},{"$f":"Households!AQ53","v":793.40717673168911},{"$f":"Households!AR53","v":405.32821323159078},{"$f":"Households!AS53","v":411.18894466226266},{"$f":"Households!AT53","v":417.13441772152146},{"$f":"Households!AU53","v":423.16585770756501},{"$f":"Households!AV53","v":429.28450763543515},{"$f":"Households!AW53","v":435.49162849322965},{"$f":"Households!AX53","v":441.78849950191943},{"$f":"Households!AY53","v":448.17641837906558},{"$f":"Households!AZ53","v":454.6567016061781},{"$f":"Households!BA53","v":461.23068470008002},{"$f":"Households!BB53","v":467.89972248815684},{"$f":"Households!BC53","v":474.66518938750232},{"$f":"Households!BD53","v":481.52847968824062},{"$f":"Households!BE53","v":488.49100784085022},{"$f":"Households!BF53","v":495.55420874766423},{"$f":"Households!BG53","v":502.71953805857629},{"$f":"Households!BH53","v":509.98847247107187},{"$f":"Households!BI53","v":517.36251003450889},{"$f":"Households!BJ53","v":524.84317045889475},{"$f":"Households!BK53","v":532.4319954280727},{"$f":"Households!BL53","v":540.13054891741194},{"$f":"Households!BM53","v":547.94041751616169},{"$f":"Households!BN53","v":555.86321075443993},{"$f":"Households!BO53","v":563.90056143487891},{"$f":"Households!BP53","v":572.0541259692327},{"$f":"Households!BQ53","v":580.32558471961966},{"$f":"Households!BR53","v":588.71664234492346},{"$f":"Households!BS53","v":597.22902815208363},{"$f":"Households!BT53","v":605.86449645242828},{"$f":"Households!BU53","v":614.62482692333288},{"$f":"Households!BV53","v":623.51182497486298},{"$f":"Households!BW53","v":632.52732212196133},{"$f":"Households!BX53","v":641.67317636181542},{"$f":"Households!BY53","v":650.95127255684929},{"$f":"Households!BZ53","v":660.36352282309963},{"$f":"Households!CA53","v":669.91186692434712},{"$f":"Households!CB53","v":679.59827267182845},{"$f":"Households!CC53","v":689.42473632982001},{"$f":"Households!CD53","v":699.39328302702052},{"$f":"Households!CE53","v":709.50596717392182},{"$f":"Households!CF53","v":719.76487288618227},{"$f":"Households!CG53","v":730.17211441419204},{"$f":"Households!CH53","v":740.72983657873556},{"$f":"Households!CI53","v":751.44021521302056},{"$f":"Households!CJ53","v":762.30545761118265},{"$f":"Households!CK53","v":773.3278029830326},{"$f":"Households!CL53","v":784.50952291567228},{"$f":"Households!CM53","v":795.85292184159334},{"$f":"Households!CN53","v":807.36033751354989}]
["Bayside (C)",null,{"$f":"Households!M54","v":483.95874113785976},{"$f":"Households!N54","v":345.42729362301907},{"$f":"Households!O54","v":348.2787095806998},{"$f":"Households!P54","v":351.15366326432559},{"$f":"Households!Q54","v":354.0523489719053},{"$f":"Households!R54","v":356.97496260536718},{"$f":"Households!S54","v":331.45517259796907},{"$f":"Households!T54","v":333.97485320899432},{"$f":"Households!U54","v":336.51368811570137},{"$f":"Households!V54","v":339.07182292664947},{"$f":"Households!W54","v":341.64940435729659},{"$f":"Households!X54","v":352.77478753524338},{"$f":"Households!Y54","v":355.52297362149693},{"$f":"Households!Z54","v":358.29256862648617},{"$f":"Households!AA54","v":361.08373933000257},{"$f":"Households!AB54","v":363.89665381104714},{"$f":"Households!AC54","v":366.73148145792948},{"$f":"Households!AD54","v":369.58839297866507},{"$f":"Households!AE54","v":372.46756041100161},{"$f":"Households!AF54","v":375.36915713295457},{"$f":"Households!AG54","v":378.29335787317541},{"$f":"Households!AH54","v":381.24033872146538},{"$f":"Households!AI54","v":384.21027713943477},{"$f":"Households!AJ54","v":387.20335197112581},{"$f":"Households!AK54","v":390.21974345383205},{"$f":"Households!AL54","v":393.25963322893949},{"$f":"Households!AM54","v":396.32320435279689},{"$f":"Households!AN54","v":399.41064130789164},{"$f":"Households!AO54","v":402.52213001380005},{"$f":"Households!AP54","v":405.65785783845058},{"$f":"Households!AQ54","v":820.82080123477499},{"$f":"Households!AR54","v":415.2123716672213},{"$f":"Households!AS54","v":418.44695901010709},{"$f":"Households!AT54","v":421.70674443474854},{"$f":"Households!AU54","v":424.99192423920613},{"$f":"Households!AV54","v":428.30269625077926},{"$f":"Households!AW54","v":431.6392598378734},{"$f":"Households!AX54","v":435.00181592203444},{"$f":"Households!AY54","v":438.39056699001958},{"$f":"Households!AZ54","v":441.80571710592631},{"$f":"Households!BA54","v":445.24747192365612},{"$f":"Households!BB54","v":448.71603869915998},{"$f":"Households!BC54","v":452.21162630292383},{"$f":"Households!BD54","v":455.73444523261423},{"$f":"Households!BE54","v":459.28470762570214},{"$f":"Households!BF54","v":462.86262727222493},{"$f":"Households!BG54","v":466.4684196277376},{"$f":"Households!BH54","v":470.10230182622035},{"$f":"Households!BI54","v":473.76449269313889},{"$f":"Households!BJ54","v":477.45521275870851},{"$f":"Households!BK54","v":481.17468427104177},{"$f":"Households!BL54","v":484.92313120968902},{"$f":"Households!BM54","v":488.70077929900435},{"$f":"Households!BN54","v":492.50785602178075},{"$f":"Households!BO54","v":496.34459063296526},{"$f":"Households!BP54","v":500.21121417341783},{"$f":"Households!BQ54","v":504.10795948387386},{"$f":"Households!BR54","v":508.03506121895043},{"$f":"Households!BS54","v":511.99275586125441},{"$f":"Households!BT54","v":515.98128173565783},{"$f":"Households!BU54","v":520.00087902357336},{"$f":"Households!BV54","v":524.05178977761534},{"$f":"Households!BW54","v":528.13425793583156},{"$f":"Households!BX54","v":532.24852933677903},{"$f":"Households!BY54","v":536.39485173404682},{"$f":"Households!BZ54","v":540.57347481131728},{"$f":"Households!CA54","v":544.78465019732539},{"$f":"Households!CB54","v":549.02863148105098},{"$f":"Households!CC54","v":553.30567422704189},{"$f":"Households!CD54","v":557.61603599062073},{"$f":"Households!CE54","v":561.95997633364459},{"$f":"Households!CF54","v":566.33775683995918},{"$f":"Households!CG54","v":570.74964113118767},{"$f":"Households!CH54","v":575.19589488262136},{"$f":"Households!CI54","v":579.67678583919769},{"$f":"Households!CJ54","v":584.19258383174019},{"$f":"Households!CK54","v":588.74356079296558},{"$f":"Households!CL54","v":593.3299907741166},{"$f":"Households!CM54","v":597.9521499612456},{"$f":"Households!CN54","v":602.61031669205113}]
["Boroondara (C)",null,{"$f":"Households!M55","v":752.17699691986491},{"$f":"Households!N55","v":640.57956420550181},{"$f":"Households!O55","v":646.34720065555302},{"$f":"Households!P55","v":652.16676762612769},{"$f":"Households!Q55","v":658.03873268816096},{"$f":"Households!R55","v":663.96356762241339},{"$f":"Households!S55","v":674.74195488051919},{"$f":"Households!T55","v":680.86071159712446},{"$f":"Households!U55","v":687.03495498310076},{"$f":"Households!V55","v":693.26518820771889},{"$f":"Households!W55","v":699.55191900322097},{"$f":"Households!X55","v":694.52642120743985},{"$f":"Households!Y55","v":700.72315019658708},{"$f":"Households!Z55","v":706.97516786733468},{"$f":"Households!AA55","v":713.28296751837479},{"$f":"Households!AB55","v":719.64704684977187},{"$f":"Households!AC55","v":726.06790800200542},{"$f":"Households!AD55","v":732.54605759608967},{"$f":"Households!AE55","v":739.08200677290733},{"$f":"Households!AF55","v":745.67627123411512},{"$f":"Households!AG55","v":752.32937128242338},{"$f":"Households!AH55","v":759.04183186282171},{"$f":"Households!AI55","v":765.814182604081},{"$f":"Households!AJ55","v":772.64695786032826},{"$f":"Households!AK55","v":779.54069675343635},{"$f":"Households!AL55","v":786.4959432152973},{"$f":"Households!AM55","v":793.51324603108515},{"$f":"Households!AN55","v":800.59315888221317},{"$f":"Households!AO55","v":807.73624039022252},{"$f":"Households!AP55","v":814.94305416084535},{"$f":"Households!AQ55","v":1651.7643269289692},{"$f":"Households!AR55","v":836.95160080413916},{"$f":"Households!AS55","v":844.41908092996164},{"$f":"Households!AT55","v":851.95318767952267},{"$f":"Households!AU55","v":859.55451551140868},{"$f":"Households!AV55","v":867.22366418794263},{"$f":"Households!AW55","v":874.96123882278334},{"$f":"Households!AX55","v":882.7678499284375},{"$f":"Households!AY55","v":890.64411346476118},{"$f":"Households!AZ55","v":898.59065088705393},{"$f":"Households!BA55","v":906.6080891956808},{"$f":"Households!BB55","v":914.69706098503957},{"$f":"Households!BC55","v":922.85820449380844},{"$f":"Households!BD55","v":931.09216365507746},{"$f":"Households!BE55","v":939.39958814738202},{"$f":"Households!BF55","v":947.78113344573649},{"$f":"Households!BG55","v":956.2374608735845},{"$f":"Households!BH55","v":964.76923765464744},{"$f":"Households!BI55","v":973.37713696598075},{"$f":"Households!BJ55","v":982.06183799078281},{"$f":"Households!BK55","v":990.82402597210603},{"$f":"Households!BL55","v":999.66439226690272},{"$f":"Households!BM55","v":1008.5836344005656},{"$f":"Households!BN55","v":1017.5824561219924},{"$f":"Households!BO55","v":1026.6615674590867},{"$f":"Households!BP55","v":1035.8216847748117},{"$f":"Households!BQ55","v":1045.0635308236087},{"$f":"Households!BR55","v":1054.3878348086146},{"$f":"Households!BS55","v":1063.7953324390255},{"$f":"Households!BT55","v":1073.2867659882177},{"$f":"Households!BU55","v":1082.8628843523038},{"$f":"Households!BV55","v":1092.5244431092433},{"$f":"Households!BW55","v":1102.2722045783885},{"$f":"Households!BX55","v":1112.106937880817},{"$f":"Households!BY55","v":1122.029418999693},{"$f":"Households!BZ55","v":1132.0404308418219},{"$f":"Households!CA55","v":1142.1407632992923},{"$f":"Households!CB55","v":1152.3312133116997},{"$f":"Households!CC55","v":1162.612584929273},{"$f":"Households!CD55","v":1172.985689375957},{"$f":"Households!CE55","v":1183.4513451138046},{"$f":"Households!CF55","v":1194.0103779073979},{"$f":"Households!CG55","v":1204.6636208887503},{"$f":"Households!CH55","v":1215.4119146236044},{"$f":"Households!CI55","v":1226.2561071771488},{"$f":"Households!CJ55","v":1237.1970541813644},{"$f":"Households!CK55","v":1248.2356189023703},{"$f":"Households!CL55","v":1259.3726723084692},{"$f":"Households!CM55","v":1270.6090931390645},{"$f":"Households!CN55","v":1281.9457679737243}]
["Cardinia (S)",null,{"$f":"Households!M56","v":1946.0464058930447},{"$f":"Households!N56","v":1447.9823424262649},{"$f":"Households!O56","v":1496.2438918952976},{"$f":"Households!P56","v":1546.1140087403983},{"$f":"Households!Q56","v":1597.646306843264},{"$f":"Households!R56","v":1650.8961870472776},{"$f":"Households!S56","v":1265.3123009532574},{"$f":"Households!T56","v":1296.5928643371299},{"$f":"Households!U56","v":1328.6467337616486},{"$f":"Households!V56","v":1361.4930266008887},{"$f":"Households!W56","v":1395.1513328413348},{"$f":"Households!X56","v":994.55134915278177},{"$f":"Households!Y56","v":1011.6555994265218},{"$f":"Households!Z56","v":1029.0540078427221},{"$f":"Households!AA56","v":1046.7516333201129},{"$f":"Households!AB56","v":1064.7536217805464},{"$f":"Households!AC56","v":1083.0652076452097},{"$f":"Households!AD56","v":1101.6917153565737},{"$f":"Households!AE56","v":1120.638560926709},{"$f":"Households!AF56","v":1139.9112535120075},{"$f":"Households!AG56","v":1159.5153970150423},{"$f":"Households!AH56","v":1179.4566917141055},{"$f":"Households!AI56","v":1199.7409359206067},{"$f":"Households!AJ56","v":1220.3740276650788},{"$f":"Households!AK56","v":1241.3619664120779},{"$f":"Households!AL56","v":1262.7108548047254},{"$f":"Households!AM56","v":1284.426900439139},{"$f":"Households!AN56","v":1306.5164176693506},{"$f":"Households!AO56","v":1328.9858294434234},{"$f":"Households!AP56","v":1351.8416691709863},{"$f":"Households!AQ56","v":2773.8299124868354},{"$f":"Households!AR56","v":1422.7947872177028},{"$f":"Households!AS56","v":1447.2639492669987},{"$f":"Households!AT56","v":1472.1539308868669},{"$f":"Households!AU56","v":1497.471969313774},{"$f":"Households!AV56","v":1523.2254262497736},{"$f":"Households!AW56","v":1549.4217900032527},{"$f":"Households!AX56","v":1576.0686776661169},{"$f":"Households!AY56","v":1603.1738373286789},{"$f":"Households!AZ56","v":1630.7451503326593},{"$f":"Households!BA56","v":1658.790633562603},{"$f":"Households!BB56","v":1687.3184417771845},{"$f":"Households!BC56","v":1716.3368699802813},{"$f":"Households!BD56","v":1745.8543558327656},{"$f":"Households!BE56","v":1775.8794821061601},{"$f":"Households!BF56","v":1806.4209791780158},{"$f":"Households!BG56","v":1837.4877275705949},{"$f":"Households!BH56","v":1869.0887605329044},{"$f":"Households!BI56","v":1901.233266667492},{"$f":"Households!BJ56","v":1933.9305926019879},{"$f":"Households!BK56","v":1967.19024570701},{"$f":"Households!BL56","v":2001.0218968603731},{"$f":"Households!BM56","v":2035.4353832593188},{"$f":"Households!BN56","v":2070.4407112808403},{"$f":"Households!BO56","v":2106.0480593909742},{"$f":"Households!BP56","v":2142.2677811047615},{"$f":"Households!BQ56","v":2179.1104079963698},{"$f":"Households!BR56","v":2216.5866527616745},{"$f":"Households!BS56","v":2254.7074123329076},{"$f":"Households!BT56","v":2293.4837710472348},{"$f":"Households!BU56","v":2332.9270038699906},{"$f":"Households!BV56","v":2373.0485796725261},{"$f":"Households!BW56","v":2413.8601645676245},{"$f":"Households!BX56","v":2455.3736253012612},{"$f":"Households!BY56","v":2497.6010327030381},{"$f":"Households!BZ56","v":2540.5546651964833},{"$f":"Households!CA56","v":2584.2470123685489},{"$f":"Households!CB56","v":2628.6907786018273},{"$f":"Households!CC56","v":2673.8988867682347},{"$f":"Households!CD56","v":2719.8844819864898},{"$f":"Households!CE56","v":2766.6609354448738},{"$f":"Households!CF56","v":2814.241848288395},{"$f":"Households!CG56","v":2862.6410555741459},{"$f":"Households!CH56","v":2911.8726302939176},{"$f":"Households!CI56","v":2961.9508874661115},{"$f":"Households!CJ56","v":3012.8903882982268},{"$f":"Households!CK56","v":3064.705944420828},{"$f":"Households!CL56","v":3117.4126221941551},{"$f":"Households!CM56","v":3171.0257470890938},{"$f":"Households!CN56","v":3225.5609081433213}]
["Casey (C)",null,{"$f":"Households!M57","v":4508.9772969652258},{"$f":"Households!N57","v":3363.0595293479273},{"$f":"Households!O57","v":3455.6733128035994},{"$f":"Households!P57","v":3550.8375455781788},{"$f":"Households!Q57","v":3648.6224633480597},{"$f":"Households!R57","v":3749.1002359783452},{"$f":"Households!S57","v":3027.7129026430484},{"$f":"Households!T57","v":3093.2436737833195},{"$f":"Households!U57","v":3160.1927702749381},{"$f":"Households!V57","v":3228.5908898612543},{"$f":"Households!W57","v":3298.4693946971092},{"$f":"Households!X57","v":2562.5133898644708},{"$f":"Households!Y57","v":2604.687989954371},{"$f":"Households!Z57","v":2647.5567120338965},{"$f":"Households!AA57","v":2691.130980167276},{"$f":"Households!AB57","v":2735.4224064391456},{"$f":"Households!AC57","v":2780.4427940495952},{"$f":"Households!AD57","v":2826.2041404588381},{"$f":"Households!AE57","v":2872.7186405850225},{"$f":"Households!AF57","v":2919.9986900539079},{"$f":"Households!AG57","v":2968.056888502033},{"$f":"Households!AH57","v":3016.9060429343954},{"$f":"Households!AI57","v":3066.559171137691},{"$f":"Households!AJ57","v":3117.0295051489084},{"$f":"Households!AK57","v":3168.3304947819561},{"$f":"Households!AL57","v":3220.4758112117706},{"$f":"Households!AM57","v":3273.479350617301},{"$f":"Households!AN57","v":3327.3552378852619},{"$f":"Households!AO57","v":3382.1178303734341},{"$f":"Households!AP57","v":3437.7817217377597},{"$f":"Households!AQ57","v":7046.2347264238051},{"$f":"Households!AR57","v":3610.3307522270188},{"$f":"Households!AS57","v":3669.7506390731141},{"$f":"Households!AT57","v":3730.1484759174928},{"$f":"Households!AU57","v":3791.5403581492137},{"$f":"Households!AV57","v":3853.9426460600225},{"$f":"Households!AW57","v":3917.371969204105},{"$f":"Households!AX57","v":3981.8452308300475},{"$f":"Households!AY57","v":4047.3796123845968},{"$f":"Households!AZ57","v":4113.9925780921767},{"$f":"Households!BA57","v":4181.7018796084449},{"$f":"Households!BB57","v":4250.5255607510335},{"$f":"Households!BC57","v":4320.4819623079966},{"$f":"Households!BD57","v":4391.5897269255947},{"$f":"Households!BE57","v":4463.8678040761151},{"$f":"Households!BF57","v":4537.3354551080847},{"$f":"Households!BG57","v":4612.0122583784978},{"$f":"Households!BH57","v":4687.9181144712493},{"$f":"Households!BI57","v":4765.0732514995616},{"$f":"Households!BJ57","v":4843.4982304970617},{"$f":"Households!BK57","v":4923.2139508969849},{"$f":"Households!BL57","v":5004.2416561011923},{"$f":"Households!BM57","v":5086.6029391423217},{"$f":"Households!BN57","v":5170.3197484370321},{"$f":"Households!BO57","v":5255.4143936356413},{"$f":"Households!BP57","v":5341.9095515672234},{"$f":"Households!BQ57","v":5429.8282722829608},{"$f":"Households!BR57","v":5519.193985198217},{"$f":"Households!BS57","v":5610.0305053369957},{"$f":"Households!BT57","v":5702.3620396776823},{"$f":"Households!BU57","v":5796.2131936041988},{"$f":"Households!BV57","v":5891.6089774635038},{"$f":"Households!BW57","v":5988.574813229905},{"$f":"Households!BX57","v":6087.1365412798477},{"$f":"Households!BY57","v":6187.3204272788134},{"$f":"Households!BZ57","v":6289.1531691799755},{"$f":"Households!CA57","v":6392.661904339504},{"$f":"Households!CB57","v":6497.8742167479941},{"$f":"Households!CC57","v":6604.8181443816866},{"$f":"Households!CD57","v":6713.5221866735374},{"$f":"Households!CE57","v":6824.0153121096082},{"$f":"Households!CF57","v":6936.3269659466459},{"$f":"Households!CG57","v":7050.4870780610945},{"$f":"Households!CH57","v":7166.5260709233116},{"$f":"Households!CI57","v":7284.4748677064781},{"$f":"Households!CJ57","v":7404.3649005255429},{"$f":"Households!CK57","v":7526.2281188152265},{"$f":"Households!CL57","v":7650.0969978430076},{"$f":"Households!CM57","v":7776.0045473641949},{"$f":"Households!CN57","v":7903.9843204179779}]
["Frankston (C)",null,{"$f":"Households!M58","v":510.86251088171412},{"$f":"Households!N58","v":472.53651878440724},{"$f":"Households!O58","v":476.39660453428223},{"$f":"Households!P58","v":480.28822279308224},{"$f":"Households!Q58","v":484.21163114553929},{"$f":"Households!R58","v":488.16708928051958},{"$f":"Households!S58","v":513.79715520072205},{"$f":"Households!T58","v":518.17886073749105},{"$f":"Households!U58","v":522.59793382916541},{"$f":"Households!V58","v":527.05469314940274},{"$f":"Households!W58","v":531.54946008956176},{"$f":"Households!X58","v":569.91157905163709},{"$f":"Households!Y58","v":575.0785352110106},{"$f":"Households!Z58","v":580.29233624411427},{"$f":"Households!AA58","v":585.55340685788542},{"$f":"Households!AB58","v":590.86217560977821},{"$f":"Households!AC58","v":596.21907494262268},{"$f":"Households!AD58","v":601.62454121993505},{"$f":"Households!AE58","v":607.0790147613443},{"$f":"Households!AF58","v":612.58293987858633},{"$f":"Households!AG58","v":618.13676491160004},{"$f":"Households!AH58","v":623.74094226503803},{"$f":"Households!AI58","v":629.39592844527215},{"$f":"Households!AJ58","v":635.102184097399},{"$f":"Households!AK58","v":640.86017404279846},{"$f":"Households!AL58","v":646.67036731711414},{"$f":"Households!AM58","v":652.53323720837943},{"$f":"Households!AN58","v":658.44926129547821},{"$f":"Households!AO58","v":664.41892148723127},{"$f":"Households!AP58","v":670.44270406152646},{"$f":"Households!AQ58","v":1359.1757032578462},{"$f":"Households!AR58","v":688.84371522950823},{"$f":"Households!AS58","v":695.08893888887542},{"$f":"Households!AT58","v":701.3907832558325},{"$f":"Households!AU58","v":707.74976166734996},{"$f":"Households!AV58","v":714.1663921145373},{"$f":"Households!AW58","v":720.64119728465448},{"$f":"Households!AX58","v":727.17470460380719},{"$f":"Households!AY58","v":733.76744627988955},{"$f":"Households!AZ58","v":740.41995934589067},{"$f":"Households!BA58","v":747.13278570366674},{"$f":"Households!BB58","v":753.90647216813522},{"$f":"Households!BC58","v":760.74157051170187},{"$f":"Households!BD58","v":767.63863750935707},{"$f":"Households!BE58","v":774.59823498383048},{"$f":"Households!BF58","v":781.62092985160416},{"$f":"Households!BG58","v":788.70729416889662},{"$f":"Households!BH58","v":795.85790517828718},{"$f":"Households!BI58","v":803.07334535582049},{"$f":"Households!BJ58","v":810.35420245848945},{"$f":"Households!BK58","v":817.70106957184908},{"$f":"Households!BL58","v":825.11454515869264},{"$f":"Households!BM58","v":832.59523310749501},{"$f":"Households!BN58","v":840.14374278180185},{"$f":"Households!BO58","v":847.76068906977889},{"$f":"Households!BP58","v":855.44669243427052},{"$f":"Households!BQ58","v":863.20237896346953},{"$f":"Households!BR58","v":871.0283804218052},{"$f":"Households!BS58","v":878.92533430138428},{"$f":"Households!BT58","v":886.89388387402869},{"$f":"Households!BU58","v":894.93467824360414},{"$f":"Households!BV58","v":903.04837239890185},{"$f":"Households!BW58","v":911.23562726700038},{"$f":"Households!BX58","v":919.49710976712231},{"$f":"Households!BY58","v":927.83349286491284},{"$f":"Households!BZ58","v":936.24545562728599},{"$f":"Households!CA58","v":944.73368327778007},{"$f":"Households!CB58","v":953.29886725227698},{"$f":"Households!CC58","v":961.94170525544905},{"$f":"Households!CD58","v":970.66290131746791},{"$f":"Households!CE58","v":979.46316585146997},{"$f":"Households!CF58","v":988.34321571126929},{"$f":"Households!CG58","v":997.30377425003098},{"$f":"Households!CH58","v":1006.3455713787989},{"$f":"Households!CI58","v":1015.4693436263333},{"$f":"Households!CJ58","v":1024.6758341988316},{"$f":"Households!CK58","v":1033.9657930406829},{"$f":"Households!CL58","v":1043.3399768953677},{"$f":"Households!CM58","v":1052.799149367158},{"$f":"Households!CN58","v":1062.3440809835301}]
["Glen Eira (C)",null,{"$f":"Households!M59","v":853.74242046007566},{"$f":"Households!N59","v":778.39824651259551},{"$f":"Households!O59","v":787.84480848313979},{"$f":"Households!P59","v":797.4060129691934},{"$f":"Households!Q59","v":807.08325126070122},{"$f":"Households!R59","v":816.87793153210077},{"$f":"Households!S59","v":795.25662082749477},{"$f":"Households!T59","v":804.53966728319938},{"$f":"Households!U59","v":813.93107492601848},{"$f":"Households!V59","v":823.43210865829315},{"$f":"Households!W59","v":833.04404814755253},{"$f":"Households!X59","v":741.33516198975849},{"$f":"Households!Y59","v":748.94725866668159},{"$f":"Households!Z59","v":756.63751704263268},{"$f":"Households!AA59","v":764.40673968903138},{"$f":"Households!AB59","v":772.25573741822154},{"$f":"Households!AC59","v":780.18532936788688},{"$f":"Households!AD59","v":788.19634308687819},{"$f":"Households!AE59","v":796.28961462125881},{"$f":"Households!AF59","v":804.46598860177619},{"$f":"Households!AG59","v":812.72631833182822},{"$f":"Households!AH59","v":821.07146587672469},{"$f":"Households!AI59","v":829.502302153458},{"$f":"Households!AJ59","v":838.01970702166727},{"$f":"Households!AK59","v":846.62456937554816},{"$f":"Households!AL59","v":855.3177872364904},{"$f":"Households!AM59","v":864.10026784680667},{"$f":"Households!AN59","v":872.97292776456743},{"$f":"Households!AO59","v":881.93669295901782},{"$f":"Households!AP59","v":890.99249890744977},{"$f":"Households!AQ59","v":1809.5253137942927},{"$f":"Households!AR59","v":918.72166072524851},{"$f":"Households!AS59","v":928.15517805881973},{"$f":"Households!AT59","v":937.68555960392405},{"$f":"Households!AU59","v":947.31379997108888},{"$f":"Households!AV59","v":957.04090398352128},{"$f":"Households!AW59","v":966.86788678214361},{"$f":"Households!AX59","v":976.79577393140062},{"$f":"Households!AY59","v":986.82560152624501},{"$f":"Households!AZ59","v":996.95841630050563},{"$f":"Households!BA59","v":1007.1952757358231},{"$f":"Households!BB59","v":1017.5372481722297},{"$f":"Households!BC59","v":1027.9854129195592},{"$f":"Households!BD59","v":1038.540860370078},{"$f":"Households!BE59","v":1049.204692112311},{"$f":"Households!BF59","v":1059.9780210460303},{"$f":"Households!BG59","v":1070.8619714982924},{"$f":"Households!BH59","v":1081.8576793409011},{"$f":"Households!BI59","v":1092.9662921088311},{"$f":"Households!BJ59","v":1104.1889691201504},{"$f":"Households!BK59","v":1115.5268815968157},{"$f":"Households!BL59","v":1126.9812127870973},{"$f":"Households!BM59","v":1138.5531580888346},{"$f":"Households!BN59","v":1150.2439251744654},{"$f":"Households!BO59","v":1162.0547341167548},{"$f":"Households!BP59","v":1173.9868175164011},{"$f":"Households!BQ59","v":1186.0414206306014},{"$f":"Households!BR59","v":1198.2198015027971},{"$f":"Households!BS59","v":1210.523231094252},{"$f":"Households!BT59","v":1222.9529934166785},{"$f":"Households!BU59","v":1235.5103856658243},{"$f":"Households!BV59","v":1248.1967183575034},{"$f":"Households!BW59","v":1261.0133154637879},{"$f":"Households!BX59","v":1273.9615145515418},{"$f":"Households!BY59","v":1287.0426669218432},{"$f":"Households!BZ59","v":1300.2581377509923},{"$f":"Households!CA59","v":1313.6093062332366},{"$f":"Households!CB59","v":1327.0975657242816},{"$f":"Households!CC59","v":1340.7243238870433},{"$f":"Households!CD59","v":1354.4910028384766},{"$f":"Households!CE59","v":1368.3990392979467},{"$f":"Households!CF59","v":1382.4498847371142},{"$f":"Households!CG59","v":1396.6450055315217},{"$f":"Households!CH59","v":1410.9858831137244},{"$f":"Households!CI59","v":1425.4740141274815},{"$f":"Households!CJ59","v":1440.1109105844807},{"$f":"Households!CK59","v":1454.89810002179},{"$f":"Households!CL59","v":1469.8371256612591},{"$f":"Households!CM59","v":1484.9295465709001},{"$f":"Households!CN59","v":1500.1769378272293}]
["Greater Dandenong (C)",null,{"$f":"Households!M60","v":1015.2749087387128},{"$f":"Households!N60","v":943.88651485294395},{"$f":"Households!O60","v":958.96869878413418},{"$f":"Households!P60","v":974.29187807709241},{"$f":"Households!Q60","v":989.85990355109243},{"$f":"Households!R60","v":1005.6766875569665},{"$f":"Households!S60","v":939.66539588350133},{"$f":"Households!T60","v":953.47393980690686},{"$f":"Households!U60","v":967.48540264816256},{"$f":"Households!V60","v":981.70276633554022},{"$f":"Households!W60","v":996.12905661728291},{"$f":"Households!X60","v":992.21737610851415},{"$f":"Households!Y60","v":1006.5305881919048},{"$f":"Households!Z60","v":1021.0502752323082},{"$f":"Households!AA60","v":1035.7794157302269},{"$f":"Households!AB60","v":1050.7210311523231},{"$f":"Households!AC60","v":1065.8781865513738},{"$f":"Households!AD60","v":1081.2539911950444},{"$f":"Households!AE60","v":1096.8515992037283},{"$f":"Households!AF60","v":1112.6742101974523},{"$f":"Households!AG60","v":1128.7250699522847},{"$f":"Households!AH60","v":1145.0074710662157},{"$f":"Households!AI60","v":1161.524753634556},{"$f":"Households!AJ60","v":1178.2803059350554},{"$f":"Households!AK60","v":1195.2775651229458},{"$f":"Households!AL60","v":1212.5200179362582},{"$f":"Households!AM60","v":1230.0112014106853},{"$f":"Households!AN60","v":1247.7547036054602},{"$f":"Households!AO60","v":1265.7541643393051},{"$f":"Households!AP60","v":1284.0132759370463},{"$f":"Households!AQ60","v":2623.8612720966776},{"$f":"Households!AR60","v":1340.3862427364074},{"$f":"Households!AS60","v":1359.7219579011144},{"$f":"Households!AT60","v":1379.3366000414971},{"$f":"Households!AU60","v":1399.2341928131063},{"$f":"Households!AV60","v":1419.4188179146586},{"$f":"Households!AW60","v":1439.8946159253683},{"$f":"Households!AX60","v":1460.6657871542266},{"$f":"Households!AY60","v":1481.7365925018094},{"$f":"Households!AZ60","v":1503.1113543340325},{"$f":"Households!BA60","v":1524.7944573692366},{"$f":"Households!BB60","v":1546.7903495773062},{"$f":"Households!BC60","v":1569.1035430922202},{"$f":"Households!BD60","v":1591.7386151377286},{"$f":"Households!BE60","v":1614.7002089661546},{"$f":"Households!BF60","v":1637.9930348110356},{"$f":"Households!BG60","v":1661.6218708532397},{"$f":"Households!BH60","v":1685.5915642012551},{"$f":"Households!BI60","v":1709.9070318852755},{"$f":"Households!BJ60","v":1734.5732618662441},{"$f":"Households!BK60","v":1759.5953140586207},{"$f":"Households!BL60","v":1784.9783213687624},{"$f":"Households!BM60","v":1810.727490747493},{"$f":"Households!BN60","v":1836.8481042584754},{"$f":"Households!BO60","v":1863.3455201616889},{"$f":"Households!BP60","v":1890.2251740126085},{"$f":"Households!BQ60","v":1917.4925797770848},{"$f":"Households!BR60","v":1945.1533309627266},{"$f":"Households!BS60","v":1973.2131017660431},{"$f":"Households!BT60","v":2001.6776482367131},{"$f":"Households!BU60","v":2030.5528094580513},{"$f":"Households!BV60","v":2059.8445087449218},{"$f":"Households!BW60","v":2089.5587548590556},{"$f":"Households!BX60","v":2119.7016432412202},{"$f":"Households!BY60","v":2150.2793572620722},{"$f":"Households!BZ60","v":2181.2981694901246},{"$f":"Households!CA60","v":2212.7644429789216},{"$f":"Households!CB60","v":2244.6846325719089},{"$f":"Households!CC60","v":2277.0652862269199},{"$f":"Households!CD60","v":2309.9130463590845},{"$f":"Households!CE60","v":2343.2346512037038},{"$f":"Households!CF60","v":2377.0369361982157},{"$f":"Households!CG60","v":2411.3268353846215},{"$f":"Households!CH60","v":2446.1113828317903},{"$f":"Households!CI60","v":2481.397714078339},{"$f":"Households!CJ60","v":2517.193067596585},{"$f":"Households!CK60","v":2553.5047862771899},{"$f":"Households!CL60","v":2590.3403189355449},{"$f":"Households!CM60","v":2627.7072218398098},{"$f":"Households!CN60","v":2665.6131602609239}]
["Kingston (C)",null,{"$f":"Households!M61","v":816.15973859047517},{"$f":"Households!N61","v":812.001100582871},{"$f":"Households!O61","v":821.73553262479254},{"$f":"Households!P61","v":831.58666299033212},{"$f":"Households!Q61","v":841.55589068231347},{"$f":"Households!R61","v":851.64463147525385},{"$f":"Households!S61","v":889.15809644649562},{"$f":"Households!T61","v":900.15519488599966},{"$f":"Households!U61","v":911.28830532894062},{"$f":"Households!V61","v":922.55910997046158},{"$f":"Households!W61","v":933.96931181101536},{"$f":"Households!X61","v":823.42561582350754},{"$f":"Households!Y61","v":832.29466086519824},{"$f":"Households!Z61","v":841.25923361269815},{"$f":"Households!AA61","v":850.3203629864729},{"$f":"Households!AB61","v":859.47908898950845},{"$f":"Households!AC61","v":868.73646282652044},{"$f":"Households!AD61","v":878.09354702469136},{"$f":"Households!AE61","v":887.55141555554292},{"$f":"Households!AF61","v":897.11115395829256},{"$f":"Households!AG61","v":906.77385946437425},{"$f":"Households!AH61","v":916.54064112345804},{"$f":"Households!AI61","v":926.41261993060471},{"$f":"Households!AJ61","v":936.39092895510839},{"$f":"Households!AK61","v":946.47671347037249},{"$f":"Households!AL61","v":956.67113108550257},{"$f":"Households!AM61","v":966.97535187806352},{"$f":"Households!AN61","v":977.39055852845195},{"$f":"Households!AO61","v":987.91794645560731},{"$f":"Households!AP61","v":998.55872395422193},{"$f":"Households!AQ61","v":2029.499458390259},{"$f":"Households!AR61","v":1031.1736728846881},{"$f":"Households!AS61","v":1042.2803540164023},{"$f":"Households!AT61","v":1053.5066642358433},{"$f":"Households!AU61","v":1064.8538920573774},{"$f":"Households!AV61","v":1076.3233398739249},{"$f":"Households!AW61","v":1087.9163241063216},{"$f":"Households!AX61","v":1099.6341753544402},{"$f":"Households!AY61","v":1111.478238549942},{"$f":"Households!AZ61","v":1123.4498731106869},{"$f":"Households!BA61","v":1135.5504530965845},{"$f":"Households!BB61","v":1147.7813673675264},{"$f":"Households!BC61","v":1160.1440197427},{"$f":"Households!BD61","v":1172.6398291615769},{"$f":"Households!BE61","v":1185.270229847054},{"$f":"Households!BF61","v":1198.0366714698612},{"$f":"Households!BG61","v":1210.9406193149043},{"$f":"Households!BH61","v":1223.9835544497182},{"$f":"Households!BI61","v":1237.1669738942001},{"$f":"Households!BJ61","v":1250.4923907924967},{"$f":"Households!BK61","v":1263.9613345867256},{"$f":"Households!BL61","v":1277.5753511924704},{"$f":"Households!BM61","v":1291.3360031762859},{"$f":"Households!BN61","v":1305.2448699349625},{"$f":"Households!BO61","v":1319.3035478767706},{"$f":"Households!BP61","v":1333.513650604873},{"$f":"Households!BQ61","v":1347.8768091023376},{"$f":"Households!BR61","v":1362.39467191945},{"$f":"Households!BS61","v":1377.0689053628012},{"$f":"Households!BT61","v":1391.9011936867319},{"$f":"Households!BU61","v":1406.8932392864372},{"$f":"Households!BV61","v":1422.0467628935876},{"$f":"Households!BW61","v":1437.3635037735803},{"$f":"Households!BX61","v":1452.8452199253661},{"$f":"Households!BY61","v":1468.4936882831098},{"$f":"Households!BZ61","v":1484.3107049201208},{"$f":"Households!CA61","v":1500.2980852551991},{"$f":"Households!CB61","v":1516.4576642607863},{"$f":"Households!CC61","v":1532.7912966736476},{"$f":"Households!CD61","v":1549.3008572076797},{"$f":"Households!CE61","v":1565.9882407693367},{"$f":"Households!CF61","v":1582.8553626748035},{"$f":"Households!CG61","v":1599.9041588699911},{"$f":"Households!CH61","v":1617.1365861527156},{"$f":"Households!CI61","v":1634.5546223974088},{"$f":"Households!CJ61","v":1652.1602667817206},{"$f":"Households!CK61","v":1669.9555400166719},{"$f":"Households!CL61","v":1687.9424845778267},{"$f":"Households!CM61","v":1706.1231649402762},{"$f":"Households!CN61","v":1724.4996678153111}]
["Knox (C)",null,{"$f":"Households!M62","v":460.97466642288782},{"$f":"Households!N62","v":565.34396573605773},{"$f":"Households!O62","v":570.53026777908235},{"$f":"Households!P62","v":575.76414745713555},{"$f":"Households!Q62","v":581.04604123373429},{"$f":"Households!R62","v":586.37638957626768},{"$f":"Households!S62","v":598.77036961387057},{"$f":"Households!T62","v":604.32842977242399},{"$f":"Households!U62","v":609.93808238489146},{"$f":"Households!V62","v":615.59980635608372},{"$f":"Households!W62","v":621.31408503609418},{"$f":"Households!X62","v":655.40014436859929},{"$f":"Households!Y62","v":661.75860642442422},{"$f":"Households!Z62","v":668.17875604626897},{"$f":"Households!AA62","v":674.66119170536695},{"$f":"Households!AB62","v":681.20651767890377},{"$f":"Households!AC62","v":687.8153441065806},{"$f":"Households!AD62","v":694.48828704758489},{"$f":"Households!AE62","v":701.22596853779396},{"$f":"Households!AF62","v":708.02901664785168},{"$f":"Households!AG62","v":714.89806554179813},{"$f":"Households!AH62","v":721.83375553604856},{"$f":"Households!AI62","v":728.83673315908527},{"$f":"Households!AJ62","v":735.90765121196455},{"$f":"Households!AK62","v":743.04716882880894},{"$f":"Households!AL62","v":750.25595153852191},{"$f":"Households!AM62","v":757.53467132672085},{"$f":"Households!AN62","v":764.88400669835391},{"$f":"Households!AO62","v":772.30464274102997},{"$f":"Households!AP62","v":779.79727118882874},{"$f":"Households!AQ62","v":1582.3638963427657},{"$f":"Households!AR62","v":802.7141293593595},{"$f":"Households!AS62","v":810.50177996799175},{"$f":"Households!AT62","v":818.36498362816928},{"$f":"Households!AU62","v":826.30447332908807},{"$f":"Households!AV62","v":834.3209891711158},{"$f":"Households!AW62","v":842.41527843484073},{"$f":"Households!AX62","v":850.58809565067349},{"$f":"Households!AY62","v":858.84020266923471},{"$f":"Households!AZ62","v":867.17236873235379},{"$f":"Households!BA62","v":875.58537054475164},{"$f":"Households!BB62","v":884.07999234649469},{"$f":"Households!BC62","v":892.65702598607459},{"$f":"Households!BD62","v":901.3172709941864},{"$f":"Households!BE62","v":910.06153465827811},{"$f":"Households!BF62","v":918.89063209790038},{"$f":"Households!BG62","v":927.80538634050754},{"$f":"Households!BH62","v":936.80662839836441},{"$f":"Households!BI62","v":945.8951973458752},{"$f":"Households!BJ62","v":955.07194039782917},{"$f":"Households!BK62","v":964.33771298846113},{"$f":"Households!BL62","v":973.69337885106506},{"$f":"Households!BM62","v":983.13981009858253},{"$f":"Households!BN62","v":992.6778873049916},{"$f":"Households!BO62","v":1002.3084995870886},{"$f":"Households!BP62","v":1012.0325446877541},{"$f":"Households!BQ62","v":1021.8509290593938},{"$f":"Households!BR62","v":1031.7645679484704},{"$f":"Households!BS62","v":1041.7743854808505},{"$f":"Households!BT62","v":1051.8813147479232},{"$f":"Households!BU62","v":1062.0862978937512},{"$f":"Households!BV62","v":1072.3902862025134},{"$f":"Households!BW62","v":1082.7942401876062},{"$f":"Households!BX62","v":1093.2991296808759},{"$f":"Households!BY62","v":1103.9059339232044},{"$f":"Households!BZ62","v":1114.6156416556914},{"$f":"Households!CA62","v":1125.4292512118991},{"$f":"Households!CB62","v":1136.3477706107806},{"$f":"Households!CC62","v":1147.3722176508163},{"$f":"Households!CD62","v":1158.5036200047616},{"$f":"Households!CE62","v":1169.7430153155728},{"$f":"Households!CF62","v":1181.0914512929448},{"$f":"Households!CG62","v":1192.5499858110998},{"$f":"Households!CH62","v":1204.1196870075364},{"$f":"Households!CI62","v":1215.8016333822452},{"$f":"Households!CJ62","v":1227.5969138984801},{"$f":"Households!CK62","v":1239.5066280844185},{"$f":"Households!CL62","v":1251.5318861352716},{"$f":"Households!CM62","v":1263.6738090170111},{"$f":"Households!CN62","v":1275.933528570924}]
["Manningham (C)",null,{"$f":"Households!M63","v":572.65878468807205},{"$f":"Households!N63","v":449.12137244856422},{"$f":"Households!O63","v":453.44817427838279},{"$f":"Households!P63","v":457.8166601945486},{"$f":"Households!Q63","v":462.22723177843727},{"$f":"Households!R63","v":466.68029448027664},{"$f":"Households!S63","v":417.03443432002678},{"$f":"Households!T63","v":420.59045039620105},{"$f":"Households!U63","v":424.17678830988734},{"$f":"Households!V63","v":427.79370661264693},{"$f":"Households!W63","v":431.44146606082359},{"$f":"Households!X63","v":400.65620922742528},{"$f":"Households!Y63","v":403.80197353311814},{"$f":"Households!Z63","v":406.97243690207688},{"$f":"Households!AA63","v":410.1677932597886},{"$f":"Households!AB63","v":413.38823805422726},{"$f":"Households!AC63","v":416.63396826811368},{"$f":"Households!AD63","v":419.90518243059341},{"$f":"Households!AE63","v":423.20208062969323},{"$f":"Households!AF63","v":426.52486452441372},{"$f":"Households!AG63","v":429.87373735703295},{"$f":"Households!AH63","v":433.24890396567935},{"$f":"Households!AI63","v":436.65057079670078},{"$f":"Households!AJ63","v":440.0789459173975},{"$f":"Households!AK63","v":443.53423902871873},{"$f":"Households!AL63","v":447.01666147806827},{"$f":"Households!AM63","v":450.52642627226305},{"$f":"Households!AN63","v":454.06374809056433},{"$f":"Households!AO63","v":457.62884329774533},{"$f":"Households!AP63","v":461.22192995745718},{"$f":"Households!AQ63","v":933.33618630819547},{"$f":"Households!AR63","v":472.17134505027934},{"$f":"Households!AS63","v":475.87861260089267},{"$f":"Households!AT63","v":479.61498787446908},{"$f":"Households!AU63","v":483.38069941113645},{"$f":"Households!AV63","v":487.17597754546296},{"$f":"Households!AW63","v":491.00105442049971},{"$f":"Households!AX63","v":494.85616400190338},{"$f":"Households!AY63","v":498.74154209242988},{"$f":"Households!AZ63","v":502.65742634617345},{"$f":"Households!BA63","v":506.60405628317676},{"$f":"Households!BB63","v":510.58167330413562},{"$f":"Households!BC63","v":514.59052070503822},{"$f":"Households!BD63","v":518.63084369216813},{"$f":"Households!BE63","v":522.70288939702732},{"$f":"Households!BF63","v":526.80690689150651},{"$f":"Households!BG63","v":530.94314720308466},{"$f":"Households!BH63","v":535.11186333015212},{"$f":"Households!BI63","v":539.31331025758118},{"$f":"Households!BJ63","v":543.54774497223843},{"$f":"Households!BK63","v":547.81542647867172},{"$f":"Households!BL63","v":552.11661581516091},{"$f":"Households!BM63","v":556.45157606937573},{"$f":"Households!BN63","v":560.82057239470305},{"$f":"Households!BO63","v":565.22387202642858},{"$f":"Households!BP63","v":569.66174429794773},{"$f":"Households!BQ63","v":574.1344606573839},{"$f":"Households!BR63","v":578.64229468417761},{"$f":"Households!BS63","v":583.18552210571943},{"$f":"Households!BT63","v":587.76442081436107},{"$f":"Households!BU63","v":592.37927088420838},{"$f":"Households!BV63","v":597.03035458855447},{"$f":"Households!BW63","v":601.71795641678909},{"$f":"Households!BX63","v":606.44236309213738},{"$f":"Households!BY63","v":611.20386358888936},{"$f":"Households!BZ63","v":616.00274915035698},{"$f":"Households!CA63","v":620.83931330648193},{"$f":"Households!CB63","v":625.71385189190914},{"$f":"Households!CC63","v":630.62666306398751},{"$f":"Households!CD63","v":635.57804732107616},{"$f":"Households!CE63","v":640.56830752096721},{"$f":"Households!CF63","v":645.59774889923574},{"$f":"Households!CG63","v":650.66667908812815},{"$f":"Households!CH63","v":655.77540813520318},{"$f":"Households!CI63","v":660.92424852239492},{"$f":"Households!CJ63","v":666.11351518516312},{"$f":"Households!CK63","v":671.34352553152712},{"$f":"Households!CL63","v":676.61459946181276},{"$f":"Households!CM63","v":681.92705938800646},{"$f":"Households!CN63","v":687.28123025344394}]
["Maroondah (C)",null,{"$f":"Households!M64","v":558.70091377505742},{"$f":"Households!N64","v":510.54773197933537},{"$f":"Households!O64","v":516.15545272377494},{"$f":"Households!P64","v":521.8247671840727},{"$f":"Households!Q64","v":527.55635188929591},{"$f":"Households!R64","v":533.35089079922909},{"$f":"Households!S64","v":536.52811753479182},{"$f":"Households!T64","v":542.39189941813675},{"$f":"Households!U64","v":548.31976729594317},{"$f":"Households!V64","v":554.31242157195811},{"$f":"Households!W64","v":560.37057030470169},{"$f":"Households!X64","v":581.32768552411289},{"$f":"Households!Y64","v":587.84744098735246},{"$f":"Households!Z64","v":594.4403173639148},{"$f":"Households!AA64","v":601.1071347256584},{"$f":"Households!AB64","v":607.84872234176146},{"$f":"Households!AC64","v":614.66591878190957},{"$f":"Households!AD64","v":621.55957202057471},{"$f":"Households!AE64","v":628.53053954257484},{"$f":"Households!AF64","v":635.57968844952848},{"$f":"Households!AG64","v":642.70789556796808},{"$f":"Households!AH64","v":649.91604755822482},{"$f":"Households!AI64","v":657.20504102478299},{"$f":"Households!AJ64","v":664.57578262784955},{"$f":"Households!AK64","v":672.02918919597869},{"$f":"Households!AL64","v":679.56618784034799},{"$f":"Households!AM64","v":687.18771606984956},{"$f":"Households!AN64","v":694.89472190783272},{"$f":"Households!AO64","v":702.68816401004005},{"$f":"Households!AP64","v":710.56901178376575},{"$f":"Households!AQ64","v":1445.1351019662761},{"$f":"Households!AR64","v":734.74584702273569},{"$f":"Households!AS64","v":742.98623083639541},{"$f":"Households!AT64","v":751.31903290007904},{"$f":"Households!AU64","v":759.74528971075779},{"$f":"Households!AV64","v":768.26604939007666},{"$f":"Households!AW64","v":776.88237181451404},{"$f":"Households!AX64","v":785.59532874752767},{"$f":"Households!AY64","v":794.40600397260278},{"$f":"Households!AZ64","v":803.31549342823564},{"$f":"Households!BA64","v":812.32490534411045},{"$f":"Households!BB64","v":821.43536037908052},{"$f":"Households!BC64","v":830.64799176047381},{"$f":"Households!BD64","v":839.96394542513008},{"$f":"Households!BE64","v":849.38438016182045},{"$f":"Households!BF64","v":858.91046775552968},{"$f":"Households!BG64","v":868.54339313314995},{"$f":"Households!BH64","v":878.28435451078985},{"$f":"Households!BI64","v":888.13456354298978},{"$f":"Households!BJ64","v":898.09524547323235},{"$f":"Households!BK64","v":908.16763928656292},{"$f":"Households!BL64","v":918.3529978635197},{"$f":"Households!BM64","v":928.65258813613036},{"$f":"Households!BN64","v":939.06769124530547},{"$f":"Households!BO64","v":949.59960270045849},{"$f":"Households!BP64","v":960.24963254036265},{"$f":"Households!BQ64","v":971.01910549637978},{"$f":"Households!BR64","v":981.90936115705699},{"$f":"Households!BS64","v":992.9217541347607},{"$f":"Households!BT64","v":1004.0576542343042},{"$f":"Households!BU64","v":1015.3184466232051},{"$f":"Households!BV64","v":1026.7055320040672},{"$f":"Households!BW64","v":1038.2203267886798},{"$f":"Households!BX64","v":1049.8642632744013},{"$f":"Households!BY64","v":1061.6387898221583},{"$f":"Households!BZ64","v":1073.545371036671},{"$f":"Households!CA64","v":1085.5854879486287},{"$f":"Households!CB64","v":1097.7606381988444},{"$f":"Households!CC64","v":1110.0723362247081},{"$f":"Households!CD64","v":1122.5221134482999},{"$f":"Households!CE64","v":1135.1115184672672},{"$f":"Households!CF64","v":1147.8421172468952},{"$f":"Households!CG64","v":1160.7154933155543},{"$f":"Households!CH64","v":1173.7332479611068},{"$f":"Households!CI64","v":1186.8970004303992},{"$f":"Households!CJ64","v":1200.2083881306171},{"$f":"Households!CK64","v":1213.6690668328229},{"$f":"Households!CL64","v":1227.2807108781999},{"$f":"Households!CM64","v":1241.0450133859267},{"$f":"Households!CN64","v":1254.9636864641943}]
["Melbourne (C)",null,{"$f":"Households!M65","v":6288.3341434416361},{"$f":"Households!N65","v":3486.9486828910885},{"$f":"Households!O65","v":3610.8079593243747},{"$f":"Households!P65","v":3739.066818818319},{"$f":"Households!Q65","v":3871.8815381707682},{"$f":"Households!R65","v":4009.4139452595846},{"$f":"Households!S65","v":2614.7482202846732},{"$f":"Households!T65","v":2673.2411000035936},{"$f":"Households!U65","v":2733.0424869628187},{"$f":"Households!V65","v":2794.1816529507341},{"$f":"Households!W65","v":2856.6885245763551},{"$f":"Households!X65","v":2065.5748077402241},{"$f":"Households!Y65","v":2098.2549425677862},{"$f":"Households!Z65","v":2131.4521205004712},{"$f":"Households!AA65","v":2165.1745218462893},{"$f":"Households!AB65","v":2199.4304563367914},{"$f":"Households!AC65","v":2234.2283651743783},{"$f":"Households!AD65","v":2269.5768231124675},{"$f":"Households!AE65","v":2305.4845405686356},{"$f":"Households!AF65","v":2341.9603657705593},{"$f":"Households!AG65","v":2379.0132869367953},{"$f":"Households!AH65","v":2416.652434491436},{"$f":"Households!AI65","v":2454.8870833139226},{"$f":"Households!AJ65","v":2493.7266550246859},{"$f":"Households!AK65","v":2533.1807203066419},{"$f":"Households!AL65","v":2573.2590012635919},{"$f":"Households!AM65","v":2613.9713738159626},{"$f":"Households!AN65","v":2655.3278701343806},{"$f":"Households!AO65","v":2697.3386811116361},{"$f":"Households!AP65","v":2740.0141588740807},{"$f":"Households!AQ65","v":5610.7661641050363},{"$f":"Households!AR65","v":2872.1345864894975},{"$f":"Households!AS65","v":2917.5755674589309},{"$f":"Households!AT65","v":2963.7354850551928},{"$f":"Households!AU65","v":3010.6257138098881},{"$f":"Households!AV65","v":3058.257808214752},{"$f":"Households!AW65","v":3106.6435055690235},{"$f":"Households!AX65","v":3155.7947288714931},{"$f":"Households!AY65","v":3205.7235897586215},{"$f":"Households!AZ65","v":3256.4423914890795},{"$f":"Households!BA65","v":3307.9636319754354},{"$f":"Households!BB65","v":3360.3000068636902},{"$f":"Households!BC65","v":3413.4644126619387},{"$f":"Households!BD65","v":3467.4699499181588},{"$f":"Households!BE65","v":3522.3299264482921},{"$f":"Households!BF65","v":3578.0578606156632},{"$f":"Households!BG65","v":3634.6674846619717},{"$f":"Households!BH65","v":3692.1727480913687},{"$f":"Households!BI65","v":3750.5878211073868},{"$f":"Households!BJ65","v":3809.9270981053414},{"$f":"Households!BK65","v":3870.2052012186614},{"$f":"Households!BL65","v":3931.4369839225546},{"$f":"Households!BM65","v":3993.6375346937857},{"$f":"Households!BN65","v":4056.8221807290101},{"$f":"Households!BO65","v":4121.0064917212003},{"$f":"Households!BP65","v":4186.2062836968107},{"$f":"Households!BQ65","v":4252.4376229126938},{"$f":"Households!BR65","v":4319.716829815181},{"$f":"Households!BS65","v":4388.0604830619413},{"$f":"Households!BT65","v":4457.4854236065876},{"$f":"Households!BU65","v":4528.0087588494644},{"$f":"Households!BV65","v":4599.6478668522323},{"$f":"Households!BW65","v":4672.4204006209038},{"$f":"Households!BX65","v":4746.3442924554111},{"$f":"Households!BY65","v":4821.4377583683236},{"$f":"Households!BZ65","v":4897.7193025735905},{"$f":"Households!CA65","v":4975.2077220469946},{"$f":"Households!CB65","v":5053.9221111566876},{"$f":"Households!CC65","v":5133.8818663694547},{"$f":"Households!CD65","v":5215.1066910299705},{"$f":"Households!CE65","v":5297.6166002156679},{"$f":"Households!CF65","v":5381.4319256694289},{"$f":"Households!CG65","v":5466.5733208090533},{"$f":"Households!CH65","v":5553.0617658169358},{"$f":"Households!CI65","v":5640.9185728096054},{"$f":"Households!CJ65","v":5730.1653910899186},{"$f":"Households!CK65","v":5820.8242124810931},{"$f":"Households!CL65","v":5912.9173767464235},{"$f":"Households!CM65","v":6006.4675770936883},{"$f":"Households!CN65","v":6101.497865767451}]
["Monash (C)",null,{"$f":"Households!M66","v":1139.5711134036828},{"$f":"Households!N66","v":991.65342261841579},{"$f":"Households!O66","v":1004.4176181026269},{"$f":"Households!P66","v":1017.3461095824459},{"$f":"Households!Q66","v":1030.4410118150699},{"$f":"Households!R66","v":1043.7044667780283},{"$f":"Households!S66","v":980.07649340508215},{"$f":"Households!T66","v":991.77206707235018},{"$f":"Households!U66","v":1003.6072078491998},{"$f":"Households!V66","v":1015.5835812357254},{"$f":"Households!W66","v":1027.7028726068238},{"$f":"Households!X66","v":1028.2447602780012},{"$f":"Households!Y66","v":1040.376835550298},{"$f":"Households!Z66","v":1052.6520550000423},{"$f":"Households!AA66","v":1065.0721075596666},{"$f":"Households!AB66","v":1077.6387020890834},{"$f":"Households!AC66","v":1090.3535676104948},{"$f":"Households!AD66","v":1103.2184535468841},{"$f":"Households!AE66","v":1116.235129962166},{"$f":"Households!AF66","v":1129.4053878048871},{"$f":"Households!AG66","v":1142.7310391547508},{"$f":"Households!AH66","v":1156.2139174718614},{"$f":"Households!AI66","v":1169.8558778489387},{"$f":"Households!AJ66","v":1183.6587972666457},{"$f":"Households!AK66","v":1197.6245748518413},{"$f":"Households!AL66","v":1211.7551321387291},{"$f":"Households!AM66","v":1226.0524133334548},{"$f":"Households!AN66","v":1240.5183855814976},{"$f":"Households!AO66","v":1255.1550392382342},{"$f":"Households!AP66","v":1269.9643881430093},{"$f":"Households!AQ66","v":2585.0578160347213},{"$f":"Households!AR66","v":1315.449102837636},{"$f":"Households!AS66","v":1330.9698505710694},{"$f":"Households!AT66","v":1346.6737248197896},{"$f":"Households!AU66","v":1362.56288626061},{"$f":"Households!AV66","v":1378.6395210638875},{"$f":"Households!AW66","v":1394.9058411941078},{"$f":"Households!AX66","v":1411.3640847144125},{"$f":"Households!AY66","v":1428.0165160944598},{"$f":"Households!AZ66","v":1444.8654265218211},{"$f":"Households!BA66","v":1461.9131342175824},{"$f":"Households!BB66","v":1479.1619847550028},{"$f":"Households!BC66","v":1496.6143513822899},{"$f":"Households!BD66","v":1514.2726353492908},{"$f":"Households!BE66","v":1532.1392662377766},{"$f":"Households!BF66","v":1550.2167022954964},{"$f":"Households!BG66","v":1568.5074307748873},{"$f":"Households!BH66","v":1587.0139682749868},{"$f":"Households!BI66","v":1605.7388610875641},{"$f":"Households!BJ66","v":1624.684685547807},{"$f":"Households!BK66","v":1643.8540483884863},{"$f":"Households!BL66","v":1663.2495870989223},{"$f":"Households!BM66","v":1682.8739702874445},{"$f":"Households!BN66","v":1702.7298980490596},{"$f":"Households!BO66","v":1722.8201023365546},{"$f":"Households!BP66","v":1743.1473473366059},{"$f":"Households!BQ66","v":1763.7144298499916},{"$f":"Households!BR66","v":1784.5241796765185},{"$f":"Households!BS66","v":1805.5794600041409},{"$f":"Households!BT66","v":1826.8831678032293},{"$f":"Households!BU66","v":1848.4382342248573},{"$f":"Households!BV66","v":1870.2476250043255},{"$f":"Households!BW66","v":1892.3143408689648},{"$f":"Households!BX66","v":1914.6414179513813},{"$f":"Households!BY66","v":1937.2319282067183},{"$f":"Households!BZ66","v":1960.0889798357093},{"$f":"Households!CA66","v":1983.2157177121553},{"$f":"Households!CB66","v":2006.6153238156694},{"$f":"Households!CC66","v":2030.2910176694568},{"$f":"Households!CD66","v":2054.246056783275},{"$f":"Households!CE66","v":2078.4837371017202},{"$f":"Households!CF66","v":2103.0073934575776},{"$f":"Households!CG66","v":2127.8204000307887},{"$f":"Households!CH66","v":2152.9261708125996},{"$f":"Households!CI66","v":2178.3281600752671},{"$f":"Households!CJ66","v":2204.0298628475575},{"$f":"Households!CK66","v":2230.0348153953091},{"$f":"Households!CL66","v":2256.3465957081062},{"$f":"Households!CM66","v":2282.9688239917159},{"$f":"Households!CN66","v":2309.9051631659386}]
["Port Phillip (C)",null,{"$f":"Households!M67","v":80.405682175172842},{"$f":"Households!N67","v":92.054980257409625},{"$f":"Households!O67","v":92.443343744689628},{"$f":"Households!P67","v":92.833345668026595},{"$f":"Households!Q67","v":93.224992939678486},{"$f":"Households!R67","v":93.618292501076212},{"$f":"Households!S67","v":109.04105690618235},{"$f":"Households!T67","v":109.57461551953747},{"$f":"Households!U67","v":110.11078493659079},{"$f":"Households!V67","v":110.6495779324905},{"$f":"Households!W67","v":111.19100734489621},{"$f":"Households!X67","v":125.76813386735012},{"$f":"Households!Y67","v":126.46083157254907},{"$f":"Households!Z67","v":127.15734447397699},{"$f":"Households!AA67","v":127.85769358474499},{"$f":"Households!AB67","v":128.56190003367374},{"$f":"Households!AC67","v":129.269985065941},{"$f":"Households!AD67","v":129.9819700437838},{"$f":"Households!AE67","v":130.69787644708413},{"$f":"Households!AF67","v":131.41772587400555},{"$f":"Households!AG67","v":132.14154004167722},{"$f":"Households!AH67","v":132.8693407868559},{"$f":"Households!AI67","v":133.60115006654814},{"$f":"Households!AJ67","v":134.33698995871237},{"$f":"Households!AK67","v":135.07688266290279},{"$f":"Households!AL67","v":135.820850500917},{"$f":"Households!AM67","v":136.56891591754902},{"$f":"Households!AN67","v":137.32110148116408},{"$f":"Households!AO67","v":138.07742988444079},{"$f":"Households!AP67","v":138.83792394505144},{"$f":"Households!AQ67","v":279.97410754434895},{"$f":"Households!AR67","v":141.1446301368378},{"$f":"Households!AS67","v":141.92201752735127},{"$f":"Households!AT67","v":142.70368656254504},{"$f":"Households!AU67","v":143.48966082458719},{"$f":"Households!AV67","v":144.27996402553254},{"$f":"Households!AW67","v":145.07462000804298},{"$f":"Households!AX67","v":145.87365274607509},{"$f":"Households!AY67","v":146.67708634566225},{"$f":"Households!AZ67","v":147.48494504557311},{"$f":"Households!BA67","v":148.29725321810474},{"$f":"Households!BB67","v":149.11403536977014},{"$f":"Households!BC67","v":149.9353161420695},{"$f":"Households!BD67","v":150.76112031221419},{"$f":"Households!BE67","v":151.59147279390163},{"$f":"Households!BF67","v":152.42639863801378},{"$f":"Households!BG67","v":153.26592303342841},{"$f":"Households!BH67","v":154.11007130776852},{"$f":"Households!BI67","v":154.95886892810813},{"$f":"Households!BJ67","v":155.81234150185264},{"$f":"Households!BK67","v":156.67051477739369},{"$f":"Households!BL67","v":157.53341464496043},{"$f":"Households!BM67","v":158.40106713737987},{"$f":"Households!BN67","v":159.27349843084448},{"$f":"Households!BO67","v":160.15073484573077},{"$f":"Households!BP67","v":161.03280284739958},{"$f":"Households!BQ67","v":161.91972904693466},{"$f":"Households!BR67","v":162.81154020201575},{"$f":"Households!BS67","v":163.70826321769346},{"$f":"Households!BT67","v":164.60992514719692},{"$f":"Households!BU67","v":165.51655319275596},{"$f":"Households!BV67","v":166.42817470643422},{"$f":"Households!BW67","v":167.34481719094038},{"$f":"Households!BX67","v":168.26650830044309},{"$f":"Households!BY67","v":169.19327584144776},{"$f":"Households!BZ67","v":170.12514777360411},{"$f":"Households!CA67","v":171.06215221053935},{"$f":"Households!CB67","v":172.00431742074579},{"$f":"Households!CC67","v":172.9516718283885},{"$f":"Households!CD67","v":173.9042440142257},{"$f":"Households!CE67","v":174.86206271636911},{"$f":"Households!CF67","v":175.82515683127349},{"$f":"Households!CG67","v":176.79355541449695},{"$f":"Households!CH67","v":177.76728768168687},{"$f":"Households!CI67","v":178.74638300932202},{"$f":"Households!CJ67","v":179.73087093576032},{"$f":"Households!CK67","v":180.72078116199555},{"$f":"Households!CL67","v":181.71614355264319},{"$f":"Households!CM67","v":182.71698813675175},{"$f":"Households!CN67","v":183.72334510883957}]
["South Gippsland (S)",null,{"$f":"Households!M68","v":1285.9553281616318},{"$f":"Households!N68","v":1018.370967497016},{"$f":"Households!O68","v":1035.7938592004211},{"$f":"Households!P68","v":1053.5148320206135},{"$f":"Households!Q68","v":1071.5389857053451},{"$f":"Households!R68","v":1089.8715072517662},{"$f":"Households!S68","v":1046.0507364610166},{"$f":"Households!T68","v":1062.9386931104673},{"$f":"Households!U68","v":1080.099297223278},{"$f":"Households!V68","v":1097.5369505538692},{"$f":"Households!W68","v":1115.2561259208887},{"$f":"Households!X68","v":1556.9314903647173},{"$f":"Households!Y68","v":1591.464408333457},{"$f":"Households!Z68","v":1626.7632703599957},{"$f":"Households!AA68","v":1662.8450651708554},{"$f":"Households!AB68","v":1699.7271583044494},{"$f":"Households!AC68","v":1737.4273004688584},{"$f":"Households!AD68","v":1775.963636084809},{"$f":"Households!AE68","v":1815.354712018423},{"$f":"Households!AF68","v":1855.6194865073921},{"$f":"Households!AG68","v":1896.7773382852756},{"$f":"Households!AH68","v":1938.8480759081722},{"$f":"Households!AI68","v":1981.8519472882326},{"$f":"Households!AJ68","v":2025.8096494385536},{"$f":"Households!AK68","v":2070.7423384343565},{"$f":"Households!AL68","v":2116.6716395950643},{"$f":"Households!AM68","v":2163.6196578921081},{"$f":"Households!AN68","v":2211.6089885877445},{"$f":"Households!AO68","v":2260.6627281096735},{"$f":"Households!AP68","v":2310.8044851670275},{"$f":"Households!AQ68","v":4776.5075086710422},{"$f":"Households!AR68","v":2468.0018732452445},{"$f":"Households!AS68","v":2522.7424361813464},{"$f":"Households!AT68","v":2578.6971510445437},{"$f":"Households!AU68","v":2635.8929478630598},{"$f":"Households!AV68","v":2694.3573539761564},{"$f":"Households!AW68","v":2754.1185072826047},{"$f":"Households!AX68","v":2815.2051697830175},{"$f":"Households!AY68","v":2877.6467414224462},{"$f":"Households!AZ68","v":2941.4732742400956},{"$f":"Households!BA68","v":3006.7154868327489},{"$f":"Households!BB68","v":3073.4047791392368},{"$f":"Households!BC68","v":3141.5732475526456},{"$f":"Households!BD68","v":3211.2537003676698},{"$f":"Households!BE68","v":3282.4796735706332},{"$f":"Households!BF68","v":3355.2854469800659},{"$f":"Households!BG68","v":3429.7060607445892},{"$f":"Households!BH68","v":3505.7773322074499},{"$f":"Households!BI68","v":3583.5358731445158},{"$f":"Households!BJ68","v":3663.0191073852184},{"$f":"Households!BK68","v":3744.2652888235752},{"$f":"Households!BL68","v":3827.3135198294476},{"$f":"Households!BM68","v":3912.2037700677756},{"$f":"Households!BN68","v":3998.976895735017},{"$f":"Households!BO68","v":4087.6746592229756},{"$f":"Households!BP68","v":4178.3397492178774},{"$f":"Households!BQ68","v":4271.0158012460161},{"$f":"Households!BR68","v":4365.747418674553},{"$f":"Households!BS68","v":4462.5801941783575},{"$f":"Households!BT68","v":4561.5607316832175},{"$f":"Households!BU68","v":4662.7366687950853},{"$f":"Households!BV68","v":4766.1566997276095},{"$f":"Households!BW68","v":4871.870598737587},{"$f":"Households!BX68","v":4979.9292440805002},{"$f":"Households!BY68","v":5090.3846424973453},{"$f":"Households!BZ68","v":5203.2899542445666},{"$f":"Households!CA68","v":5318.6995186791755},{"$f":"Households!CB68","v":5436.6688804112782},{"$f":"Households!CC68","v":5557.2548160367878},{"$f":"Households!CD68","v":5680.5153614629817},{"$f":"Households!CE68","v":5806.5098398402624},{"$f":"Households!CF68","v":5935.2988901129575},{"$f":"Households!CG68","v":6066.9444962046691},{"$f":"Households!CH68","v":6201.5100168489153},{"$f":"Households!CI68","v":6339.0602160834242},{"$f":"Households!CJ68","v":6479.6612944197259},{"$f":"Households!CK68","v":6623.3809207039885},{"$f":"Households!CL68","v":6770.2882646853104},{"$f":"Households!CM68","v":6920.454030305671},{"$f":"Households!CN68","v":7073.9504897285951}]
["Stonnington (C)",null,{"$f":"Households!M69","v":97.328888331334383},{"$f":"Households!N69","v":100.41360365778201},{"$f":"Households!O69","v":101.20749074993364},{"$f":"Households!P69","v":102.0076544489566},{"$f":"Households!Q69","v":102.81414437878448},{"$f":"Households!R69","v":103.62701055567231},{"$f":"Households!S69","v":103.22688531385211},{"$f":"Households!T69","v":104.03348632206325},{"$f":"Households!U69","v":104.8463900021452},{"$f":"Households!V69","v":105.66564560233019},{"$f":"Households!W69","v":106.49130275566677},{"$f":"Households!X69","v":99.188443047791225},{"$f":"Households!Y69","v":99.904740843006948},{"$f":"Households!Z69","v":100.62621144380137},{"$f":"Households!AA69","v":101.35289220602863},{"$f":"Households!AB69","v":102.0848207553081},{"$f":"Households!AC69","v":102.82203498900708},{"$f":"Households!AD69","v":103.5645730781107},{"$f":"Households!AE69","v":104.31247346931741},{"$f":"Households!AF69","v":105.06577488693983},{"$f":"Households!AG69","v":105.82451633495475},{"$f":"Households!AH69","v":106.58873709899672},{"$f":"Households!AI69","v":107.35847674842989},{"$f":"Households!AJ69","v":108.1337751383362},{"$f":"Households!AK69","v":108.91467241165265},{"$f":"Households!AL69","v":109.70120900117581},{"$f":"Households!AM69","v":110.4934256317174},{"$f":"Households!AN69","v":111.29136332218332},{"$f":"Households!AO69","v":112.09506338767824},{"$f":"Households!AP69","v":112.90456744170115},{"$f":"Households!AQ69","v":228.2610728722284},{"$f":"Households!AR69","v":115.36832419048551},{"$f":"Households!AS69","v":116.20146637637481},{"$f":"Households!AT69","v":117.04062516956037},{"$f":"Households!AU69","v":117.88584401949993},{"$f":"Households!AV69","v":118.73716668939596},{"$f":"Households!AW69","v":119.5946372585131},{"$f":"Households!AX69","v":120.45830012442093},{"$f":"Households!AY69","v":121.3282000053332},{"$f":"Households!AZ69","v":122.20438194237067},{"$f":"Households!BA69","v":123.08689130194034},{"$f":"Households!BB69","v":123.97577377807102},{"$f":"Households!BC69","v":124.87107539476347},{"$f":"Households!BD69","v":125.77284250837693},{"$f":"Households!BE69","v":126.68112181006654},{"$f":"Households!BF69","v":127.59596032814079},{"$f":"Households!BG69","v":128.51740543054984},{"$f":"Households!BH69","v":129.44550482729392},{"$f":"Households!BI69","v":130.38030657293712},{"$f":"Households!BJ69","v":131.32185906905943},{"$f":"Households!BK69","v":132.27021106677057},{"$f":"Households!BL69","v":133.22541166927112},{"$f":"Households!BM69","v":134.18751033433364},{"$f":"Households!BN69","v":135.15655687689286},{"$f":"Households!BO69","v":136.13260147166147},{"$f":"Households!BP69","v":137.11569465565481},{"$f":"Households!BQ69","v":138.10588733086843},{"$f":"Households!BR69","v":139.103230766872},{"$f":"Households!BS69","v":140.10777660350868},{"$f":"Households!BT69","v":141.11957685351808},{"$f":"Households!BU69","v":142.13868390526841},{"$f":"Households!BV69","v":143.16515052544855},{"$f":"Households!BW69","v":144.19902986181478},{"$f":"Households!BX69","v":145.2403754459192},{"$f":"Households!BY69","v":146.28924119592193},{"$f":"Households!BZ69","v":147.34568141932323},{"$f":"Households!CA69","v":148.40975081584111},{"$f":"Households!CB69","v":149.48150448019805},{"$f":"Households!CC69","v":150.56099790498411},{"$f":"Households!CD69","v":151.64828698353449},{"$f":"Households!CE69","v":152.74342801284729},{"$f":"Households!CF69","v":153.84647769643198},{"$f":"Households!CG69","v":154.95749314732529},{"$f":"Households!CH69","v":156.07653189097982},{"$f":"Households!CI69","v":157.20365186830168},{"$f":"Households!CJ69","v":158.33891143860455},{"$f":"Households!CK69","v":159.48236938265472},{"$f":"Households!CL69","v":160.63408490569054},{"$f":"Households!CM69","v":161.79411764055112},{"$f":"Households!CN69","v":162.96252765067038}]
["Whitehorse (C)",null,{"$f":"Households!M70","v":979.68076941485197},{"$f":"Households!N70","v":697.08864171617461},{"$f":"Households!O70","v":705.94065695618337},{"$f":"Households!P70","v":714.9050799577235},{"$f":"Households!Q70","v":723.98333813645149},{"$f":"Households!R70","v":733.17687703404954},{"$f":"Households!S70","v":743.18960272223921},{"$f":"Households!T70","v":752.63596177464933},{"$f":"Households!U70","v":762.20238937890826},{"$f":"Households!V70","v":771.89041167404503},{"$f":"Households!W70","v":781.70157419711177},{"$f":"Households!X70","v":800.38393904236727},{"$f":"Households!Y70","v":810.66967158623447},{"$f":"Households!Z70","v":821.08758606026822},{"$f":"Households!AA70","v":831.63938113426411},{"$f":"Households!AB70","v":842.32677730754949},{"$f":"Households!AC70","v":853.1515171896026},{"$f":"Households!AD70","v":864.11536578417872},{"$f":"Households!AE70","v":875.22011077709612},{"$f":"Households!AF70","v":886.46756282768911},{"$f":"Households!AG70","v":897.85955586412456},{"$f":"Households!AH70","v":909.3979473823274},{"$f":"Households!AI70","v":921.08461874895147},{"$f":"Households!AJ70","v":932.92147550800291},{"$f":"Households!AK70","v":944.91044769174187},{"$f":"Households!AL70","v":957.05349013520754},{"$f":"Households!AM70","v":969.35258279499249},{"$f":"Households!AN70","v":981.80973107216414},{"$f":"Households!AO70","v":994.42696613915905},{"$f":"Households!AP70","v":1007.2063452710718},{"$f":"Households!AQ70","v":2053.4098495405196},{"$f":"Households!AR70","v":1046.5383184199309},{"$f":"Households!AS70","v":1059.9873804451345},{"$f":"Households!AT70","v":1073.6092763419583},{"$f":"Households!AU70","v":1087.4062271981238},{"$f":"Households!AV70","v":1101.3804826446722},{"$f":"Households!AW70","v":1115.534321222498},{"$f":"Households!AX70","v":1129.8700507541507},{"$f":"Households!AY70","v":1144.3900087198854},{"$f":"Households!AZ70","v":1159.0965626390534},{"$f":"Households!BA70","v":1173.9921104558307},{"$f":"Households!BB70","v":1189.0790809305036},{"$f":"Households!BC70","v":1204.3599340352957},{"$f":"Households!BD70","v":1219.8371613555209},{"$f":"Households!BE70","v":1235.5132864958723},{"$f":"Households!BF70","v":1251.3908654918487},{"$f":"Households!BG70","v":1267.4724872266379},{"$f":"Households!BH70","v":1283.7607738530496},{"$f":"Households!BI70","v":1300.2583812212397},{"$f":"Households!BJ70","v":1316.9679993117315},{"$f":"Households!BK70","v":1333.8923526738508},{"$f":"Households!BL70","v":1351.0342008702137},{"$f":"Households!BM70","v":1368.3963389265991},{"$f":"Households!BN70","v":1385.9815977875114},{"$f":"Households!BO70","v":1403.7928447780432},{"$f":"Households!BP70","v":1421.8329840712249},{"$f":"Households!BQ70","v":1440.1049571616313},{"$f":"Households!BR70","v":1458.6117433449836},{"$f":"Households!BS70","v":1477.3563602038776},{"$f":"Households!BT70","v":1496.3418640999007},{"$f":"Households!BU70","v":1515.571350671933},{"$f":"Households!BV70","v":1535.0479553409532},{"$f":"Households!BW70","v":1554.7748538210581},{"$f":"Households!BX70","v":1574.7552626376564},{"$f":"Households!BY70","v":1594.9924396515853},{"$f":"Households!BZ70","v":1615.4896845905023},{"$f":"Households!CA70","v":1636.2503395867971},{"$f":"Households!CB70","v":1657.2777897227061},{"$f":"Households!CC70","v":1678.5754635820049},{"$f":"Households!CD70","v":1700.1468338092964},{"$f":"Households!CE70","v":1721.9954176761385},{"$f":"Households!CF70","v":1744.1247776544478},{"$f":"Households!CG70","v":1766.5385219976306},{"$f":"Households!CH70","v":1789.2403053285088},{"$f":"Households!CI70","v":1812.2338292357163},{"$f":"Households!CJ70","v":1835.5228428767296},{"$f":"Households!CK70","v":1859.1111435897183},{"$f":"Households!CL70","v":1883.0025775121758},{"$f":"Households!CM70","v":1907.2010402085143},{"$f":"Households!CN70","v":1931.7104773049068}]
["Yarra Ranges (S)",null,{"$f":"Households!M71","v":1072.1922617026867},{"$f":"Households!N71","v":925.93779879638168},{"$f":"Households!O71","v":938.08418777320185},{"$f":"Households!P71","v":950.38991225330392},{"$f":"Households!Q71","v":962.85706238893908},{"$f":"Households!R71","v":975.48775575090258},{"$f":"Households!S71","v":930.36693140590796},{"$f":"Households!T71","v":941.85619194529136},{"$f":"Households!U71","v":953.48733533032646},{"$f":"Households!V71","v":965.2621136965754},{"$f":"Households!W71","v":977.18230081703223},{"$f":"Households!X71","v":934.4866599010129},{"$f":"Households!Y71","v":945.38795511044736},{"$f":"Households!Z71","v":956.41641985833121},{"$f":"Households!AA71","v":967.57353764653089},{"$f":"Households!AB71","v":978.86080928273441},{"$f":"Households!AC71","v":990.27975308237365},{"$f":"Households!AD71","v":1001.8319050728896},{"$f":"Households!AE71","v":1013.5188192002242},{"$f":"Households!AF71","v":1025.3420675380767},{"$f":"Households!AG71","v":1037.30324049911},{"$f":"Households!AH71","v":1049.4039470491552},{"$f":"Households!AI71","v":1061.6458149233513},{"$f":"Households!AJ71","v":1074.0304908453836},{"$f":"Households!AK71","v":1086.5596407487756},{"$f":"Households!AL71","v":1099.2349500011333},{"$f":"Households!AM71","v":1112.0581236307626},{"$f":"Households!AN71","v":1125.0308865560655},{"$f":"Households!AO71","v":1138.1549838174979},{"$f":"Households!AP71","v":1151.4321808124514},{"$f":"Households!AQ71","v":2343.3173023368145},{"$f":"Households!AR71","v":1192.2003345310368},{"$f":"Households!AS71","v":1206.107999940461},{"$f":"Households!AT71","v":1220.1779058321408},{"$f":"Households!AU71","v":1234.4119448294223},{"$f":"Households!AV71","v":1248.8120316343557},{"$f":"Households!AW71","v":1263.3801032849005},{"$f":"Households!AX71","v":1278.1181194156816},{"$f":"Households!AY71","v":1293.0280625215091},{"$f":"Households!AZ71","v":1308.1119382240286},{"$f":"Households!BA71","v":1323.3717755416437},{"$f":"Households!BB71","v":1338.8096271622489},{"$f":"Households!BC71","v":1354.4275697195553},{"$f":"Households!BD71","v":1370.2277040723275},{"$f":"Households!BE71","v":1386.2121555869235},{"$f":"Households!BF71","v":1402.3830744232982},{"$f":"Households!BG71","v":1418.7426358242228},{"$f":"Households!BH71","v":1435.2930404077924},{"$f":"Households!BI71","v":1452.0365144635725},{"$f":"Households!BJ71","v":1468.9753102519462},{"$f":"Households!BK71","v":1486.1117063072015},{"$f":"Households!BL71","v":1503.4480077439366},{"$f":"Households!BM71","v":1520.9865465671028},{"$f":"Households!BN71","v":1538.7296819859184},{"$f":"Households!BO71","v":1556.6798007309553},{"$f":"Households!BP71","v":1574.8393173751829},{"$f":"Households!BQ71","v":1593.2106746591453},{"$f":"Households!BR71","v":1611.7963438190054},{"$f":"Households!BS71","v":1630.5988249195216},{"$f":"Households!BT71","v":1649.6206471897895},{"$f":"Households!BU71","v":1668.8643693639315},{"$f":"Households!BV71","v":1688.3325800250168},{"$f":"Households!BW71","v":1708.0278979533759},{"$f":"Households!BX71","v":1727.9529724787571},{"$f":"Households!BY71","v":1748.1104838369065},{"$f":"Households!BZ71","v":1768.5031435299024},{"$f":"Households!CA71","v":1789.1336946909723},{"$f":"Households!CB71","v":1810.0049124534416},{"$f":"Households!CC71","v":1831.1196043242235},{"$f":"Households!CD71","v":1852.4806105612079},{"$f":"Households!CE71","v":1874.0908045553952},{"$f":"Households!CF71","v":1895.9530932176276},{"$f":"Households!CG71","v":1918.0704173692211},{"$f":"Households!CH71","v":1940.4457521379518},{"$f":"Households!CI71","v":1963.08210735803},{"$f":"Households!CJ71","v":1985.9825279749639},{"$f":"Households!CK71","v":2009.1500944552536},{"$f":"Households!CL71","v":2032.5879232007428},{"$f":"Households!CM71","v":2056.2991669677431},{"$f":"Households!CN71","v":2080.2870152912219}]
[]
["LGA S curves","Constant","NPV coefficient",null,null,null,null,null,null,null,null,null,"Relative U","P(connect)","Average Decision Points","Economic Connect Estimate","Economic Stay Estimate"]
["Bass Coast (S)",{"$f":"'COM S curve-disconnect'!B51","v":0.86},{"$f":"'COM S curve-disconnect'!C51","v":-5.942857142857143E-4},null,null,null,null,null,null,null,"Against Gas",{"$f":"-L49*Scenarios!J52","v":4271.4039590532602},{"$f":"$B48+$C48*L48","v":-1.6784343528087948},{"$f":"EXP(M48)/(1+EXP(M48))","v":0.1573028976988326},{"$f":"O53","v":288.77999999999997},{"$f":"N48*O48","v":45.425930797468872},{"$f":"O48-P48","v":243.35406920253109}]
["Bayside (C)",{"$f":"B48","v":0.86},{"$f":"C48","v":-5.942857142857143E-4},null,null,null,null,null,null,null,"For Gas (status quo)",{"$f":"AVERAGE(C6:C24)","v":-4271.4039590532602},{"$f":"$B49+$C49*L49","v":3.3984343528087946},{"$f":"EXP(M49)/(1+EXP(M49))","v":0.96765556911735195},{"$f":"O53","v":288.77999999999997},{"$f":"N49*O49","v":279.43957524970887},{"$f":"O49-P49","v":9.3404247502911062}]
["Boroondara (C)",{"$f":"B49","v":0.86},{"$f":"C49","v":-5.942857142857143E-4}]
["Cardinia (S)",0.86,-5.942857142857143E-4]
["Casey (C)",0.86,-5.942857142857143E-4,null,null,null,null,null,null,null,null,null,null,"P(Connect)","Decision points",null,"Less than one person doesn't connect","Solve for 0"]
["Frankston (C)",0.86,-5.942857142857143E-4,null,null,null,null,null,null,null,"Relative U where less than 1 person doesn't connect on economics (Constant)",null,13.25643082139182,{"$f":"EXP(M53)/(1+EXP(M53))","v":0.99999825094089767},{"$f":"SUM(C133:C151)","v":288.77999999999997},{"$f":"O53-N53*O53","v":5.0509328758607808E-4},9.9999999999999995E-8,{"$f":"(P53-Q53)","v":5.0499328758607813E-4}]
["Glen Eira (C)",0.86,-5.942857142857143E-4]
["Greater Dandenong (C)",0.86,-5.942857142857143E-4,null,null,null,null,null,null,null,"Current Economics (where businesses don't switch)",{"$f":"L49","v":-4271.4039590532602},{"$f":"M53/L55","v":-3.1035301152668444E-3}]
["Kingston (C)",0.86,-5.942857142857143E-4,null,null,null,null,null,null,null,"Difference in NPV to reach almost 100% disconnections",{"$f":"-L48+L49","v":-8542.8079181065204}]
["Knox (C)",0.86,-5.942857142857143E-4,null,null,null,null,null,null,null,"Difference in RU to reach almost 100% disconnections",{"$f":"2*M53","v":26.512861642783641}]
["Manningham (C)",0.86,-5.942857142857143E-4,null,null,null,null,null,null,null,"Implied NPV Coefficient",{"$f":"L57/L56","v":-3.1035301152668444E-3}]
["Maroondah (C)",0.86,-5.942857142857143E-4,null,null,null,null,null,null,null,"Intercept",{"$f":"M53-L58*L55","v":0}]
["Melbourne (C)",0.86,-5.942857142857143E-4]
["Monash (C)",0.86,-5.942857142857143E-4,null,null,null,null,null,null,null,"NPV per year of appliance life",{"$f":"L48/15","v":284.76026393688403}]
["Port Phillip (C)",0.86,-5.942857142857143E-4]
["South Gippsland (S)",0.86,-5.942857142857143E-4,null,null,null,null,null,null,null,"Consider replacing with simpler weighted average. LGA level may produce arbitrarily difference results"]
["Stonnington (C)",0.86,-5.942857142857143E-4]
["Whitehorse (C)",0.86,-5.942857142857143E-4]
["Yarra Ranges (S)",0.86,-5.942857142857143E-4]
[]
["LGA S curves (Relative utility)",2020,{"$f":"B68+1","v":2021},2022,2023,2024,2025,2026,2027,2028,2029,2030,2031,2032,2033,2034,2035,2036,2037,2038,2039,2040,2041,2042,2043,2044,2045,2046,2047,2048,2049,2050,2051,2052,2053,2054,2055,2056,2057,2058,2059,2060,2061,2062,2063,2064,2065,2066,2067,2068,2069,2070,2071,2072,2073,2074,2075,2076,2077,2078,2079,2080,2081,2082,2083,2084,{"$f":"BN68+1","v":2085},2086,2087,2088,2089,2090,2091,2092,2093,2094,2095,2096,2097,2098,2099,2100]
["Bass Coast (S)",null,{"$f":"$B48+$C48*C6","v":8.415973346678987},{"$f":"$B48+$C48*D6","v":2.1461345203285123},-7.7605120080544685,-11.129630544482287,2.7285281002777357,1.9477067859029691,-2.876499147037975,-3.1216892141558459,-13.180892537272149,-13.307175543123609,-5.2706830687574469,-5.5778874909670559,-11.218110701750058,-16.685794337387996,-1.8758215738006601,-4.3671330665777512,-7.842925929673064,-12.709728586291682,-16.446965153754469,-18.103697451058864,-20.5205987384381,-25.828381560423363,-30.312589077291353,-33.035063373818538,-36.07132598946302,-38.138249325603674,-39.754479730045894,-41.031918380930797,-42.176358186953181,-43.923062514782501,-43.986120892779539,-45.36024852970192,-45.451608972161367,-45.540091017352793,-45.628448883418635,-45.713929883043718,-45.804795125560126,-45.892785013518981,-45.980653746178177,-46.065648617456816,-46.156030718039446,-46.243540431947139,-46.330931940024428,-46.415452517892888,-46.505363238054841,-46.592404466463591,-46.679330366009545,-46.763388194473379,-46.852839006628606,-46.939423150811436,-47.025894772406104,-47.10950111179713,-47.198503206471528,-47.284641387587662,-47.37066978346008,-47.453835617511089,-47.542399910371991,-47.628102976451778,-47.713698927420772,-47.796434970161833,-47.884572108870977,-47.969850641625051,-48.055024663865233,-48.137341366347066,-48.225061737240829,{"$f":"$B48+$C48*BP6","v":-48.309926058698395},-48.394688410335988,-48.476595967183883,-48.563909701785825,-48.648369880765493,-48.732730568308497,-48.814238924111478,-48.901155905481062,-48.985221763899361,-49.069190548505816,-49.150309404045295,-49.236839272966741,-49.320520391987912,-49.404106795576617,-49.487599064244158]
["Bayside (C)",null,{"$f":"$B49+$C49*C7","v":1.7487203389909547},-0.3449888230248922,-3.7096764143777574,-4.8414772908554999,-0.1677384314178495,-0.43145270873823305,-2.0595365500154292,-2.1495913332153855,-5.5762616729636409,-5.6475712801098599,-2.9811998585836301,-3.0918295195312804,-5.0385180831527148,-6.9229398749017612,-1.2735008997181003,-2.1084038612151597,-3.2757020618189308,-4.9056471336685865,-6.1583684756274444,-6.7144821198431908,-7.5280860640137925,-9.3051947592047277,-10.80726076708712,-11.719167876204837,-12.739504297287702,-13.4342889252174,-13.978549240953159,-14.407818928645328,-14.796321189401107,-15.384083255355868,-15.40514055960416,-15.862173816263386,-15.894516108738131,-15.92406322690529,-15.953568877503624,-15.980279864988873,-16.012456793618309,-16.041839564003087,-16.0711818765758,-16.097730529525645,-16.129746120882896,-16.158968545070884,-16.188151496373361,-16.214541766869395,-16.246399948517578,-16.27546592970781,-16.304493398728376,-16.330729141700655,-16.362433744662994,-16.391347090122377,-16.420222860521168,-16.446307836171584,-16.477862597339463,-16.506627020795499,-16.535354783281928,-16.561292659446725,-16.592701223927016,-16.621320347900344,-16.649903702550876,-16.675698057003501,-16.706963980407068,-16.735441338485256,-16.763883797002777,-16.789538119699071,-16.820664870371463,-16.84900390942574,-16.877308897342139,-16.902826592608911,-16.933817553805149,-16.96202163615126,-16.990192494974682,-17.015576883643252,-17.046435355647876,-17.074507761152688,-17.102547750460705,-17.127802071946867,-17.1585312741406,-17.18647520227573,-17.214387501755915,-17.24226836643334]
["Boroondara (C)",null,2.4027375978500563,{"$f":"$B50+$C50*D8","v":-9.7999153572948638E-2},-4.1018222248657583,-5.4516838626375694,0.11831760997945595,-0.19579664235972472,-2.1353913740987318,-2.2402000557681543,-6.3135809868943928,-6.3903015863989401,-3.2005826173907574,-3.3304239565628619,-5.6371560622338972,-7.8708733668850046,-1.328652211225922,-2.325048896453481,-3.7173963120231037,-5.6628734823448497,-7.1577994198971657,-7.8212355585980964,-8.7911554575755311,-10.912432148084912,-12.70520302416487,-13.793626950097336,-15.010495311273326,-15.839064714780218,-16.487853547133604,-16.999838671837193,-17.462066767788343,-18.162833390015695,-18.187984340097454,-18.734402444656716,-18.772496956830167,-18.807788183348045,-18.8430298807932,-18.875468903156051,-18.913365903921132,-18.948460832621297,-18.983507438307289,-19.01575256748475,-19.053456866200634,-19.088360276597054,-19.123216540380525,-19.155272496758723,-19.192788784526545,-19.227505338619768,-19.262175893583876,-19.294047281510647,-19.331380134123833,-19.36591437933258,-19.400403744700014,-19.432095055379421,-19.469248936199815,-19.503605308218916,-19.537917892191562,-19.569433506505636,-19.606412769267223,-19.640595594853526,-19.674735697380818,-19.706079888640172,-19.742888780182437,-19.776902279870708,-19.810874095348218,-19.842051031973675,-19.878693694905984,-19.912541985656553,-19.946349605556808,-19.977363353693391,-20.01384382899257,-20.047530926772268,-20.081178342209395,-20.112032868274749,-20.148355097817241,-20.181884920115543,-20.215376024345392,-20.246075197514035,-20.282243026544339,-20.315619394826243,-20.348957985683644,-20.382259030654549]
["Cardinia (S)",null,0.60011046464723194,-0.75504305037170794,-2.9738484168032087,-3.709975852871795,-0.65250690199196615,-0.82476991869177729,-1.887614122069488,-1.9475664395084991,-4.2032196765557597,-4.2651928224891797,-2.5489202091316971,-2.6251671194804307,-3.9190277089299737,-5.1701215600551,-1.1411147263250809,-1.6834532679979612,-2.4428626341027786,-3.5007344448768847,-4.314433701348789,-4.6762678836529732,-5.2066909489204161,-6.3597570719628154,-7.3347876200047368,-7.9268523776038391,-8.5910265591312118,-9.0435020727246478,-9.3985368261805142,-9.6781587911103824,-9.9333228505025524,-10.31647289105925,-10.330102233847921,-10.62494578668711,-10.64685061877389,-10.665974994675437,-10.685072530687913,-10.701389941385871,-10.723187741703244,-10.742205743482241,-10.761197558937356,-10.777409898587122,-10.799103273335042,-10.818017491018267,-10.836906159871447,-10.853015986458319,-10.874607477752505,-10.893420437686009,-10.912208470612917,-10.928218279240856,-10.949710366711571,-10.968424533149332,-10.987114379124467,-11.003026603584614,-11.024421705935261,-11.043039482587874,-11.061633530423361,-11.077450544723179,-11.098751021249639,-11.11727475279403,-11.135775332639808,-11.151499452493606,-11.172707604565442,-11.191139578116609,-11.209548962922797,-11.225182447204933,-11.246300519709244,-11.264642966255016,-11.282963373197566,-11.298508425358978,-11.319538608107994,-11.337793703907645,-11.356027295778116,-11.371486065227298,-11.392430494330595,-11.410600362278373,-11.428749248838752,-11.444123832287975,-11.464984591490122,-11.483071302444424,-11.501137541747891,-11.519183434871367]
["Casey (C)",null,0.97734502383279109,-0.59867781454087787,-3.1724131731517864,-4.0268690322822751,-0.47718644441584745,-0.67679848773990037,-1.9086808629382022,-1.9746865430336698,-4.5827041977658833,-4.6478959935846014,-2.6479152498711169,-2.734866792705533,-4.2243795121765011,-5.6652917950832347,-1.1521013593525256,-1.7823468675573326,-2.6641495616938102,-3.8935129405405795,-4.8389119952937332,-5.2592522450089021,-5.8747658305043462,-7.2148571096755356,-8.3479002696109248,-9.0360133476760875,-9.8070955334308074,-10.332428639724546,-10.744444075381713,-11.069208783038468,-11.36463618013004,-11.8093624673942,-11.825213184873,-12.168560503519819,-12.193586718298345,-12.215828075352315,-12.238038218025277,-12.257463887771252,-12.282365626236844,-12.304483271811126,-12.326570463090727,-12.345873936812589,-12.370654229935976,-12.392651176192153,-12.414618409549227,-12.433802662144801,-12.458464466367746,-12.480343651407676,-12.502193846719688,-12.52126177995677,-12.545807979051382,-12.567572268764806,-12.589308274151684,-12.608262718492197,-12.632696125373588,-12.654348315239211,-12.675972908852968,-12.694816625231327,-12.719139983724572,-12.740682800565851,-12.762198692335266,-12.780934373891842,-12.805150360454595,-12.826586464151328,-12.847996297482688,-12.866626571253853,-12.890737796655507,-12.912069781812463,-12.933376135247526,-12.951903563813067,-12.975912574771804,-12.997142972345287,-13.018348361177596,-13.036775444266752,-13.060684725045387,-13.081816003928969,-13.102922881779492,-13.121252057836612,-13.14506403179824,-13.166098600368608,-13.187109360721758,-13.208096458778357]
["Frankston (C)",null,-2.1818803320251989,-2.1818803320251989,-2.0532971244717055,-2.0634152804672397,-2.1486933541044615,-2.1531552067527882,-2.178858220780505,-2.2425308465078784,-2.3062380982752395,-2.3425530709438482,-2.3611038015573489,-2.3658209131604577,-2.4534273972776464,-2.534089165960141,-1.4700485408314186,-1.4672950904856652,-1.4700485408314186,-1.4700485408314186,-1.4700485408314186,-1.4672950904856652,-1.4700485408314186,-1.4700485408314186,-1.4700485408314186,-1.4672950904856652,-1.4700485408314186,-1.4700485408314186,-1.4700485408314186,-1.4672950904856652,-1.4700485408314186,-1.4700485408314186,-1.4700485408314186,-1.4672950904856652,-1.4700485408314186,-1.4700485408314186,-1.4700485408314186,-1.4672950904856652,-1.4700485408314186,-1.4700485408314186,-1.4700485408314186,-1.4672950904856652,-1.4700485408314186,-1.4700485408314186,-1.4700485408314186,-1.4672950904856652,-1.4700485408314186,-1.4700485408314186,-1.4700485408314186,-1.4672950904856652,-1.4700485408314186,-1.4700485408314186,-1.4700485408314186,-1.4672950904856652,-1.4700485408314186,-1.4700485408314186,-1.4700485408314186,-1.4672950904856652,-1.4700485408314186,-1.4700485408314186,-1.4700485408314186,-1.4672950904856652,-1.4700485408314186,-1.4700485408314186,-1.4700485408314186,-1.4672950904856652,{"$f":"$B53+$C53*BO11","v":-1.4700485408314186},-1.4700485408314186,-1.4700485408314186,-1.4672950904856652,-1.4700485408314186,-1.4700485408314186,-1.4700485408314186,-1.4672950904856652,-1.4700485408314186,-1.4700485408314186,-1.4700485408314186,-1.4672950904856652,-1.4700485408314186,-1.4700485408314186,-1.4700485408314186,-1.4700485408314186]
["Glen Eira (C)",null,1.1423723369909251,{"$f":"$B54+$C54*D12","v":-0.52024496312974555},-3.2393528833446861,-4.1402008169777984,-0.39304232896923985,-0.6033768855145013,-1.901532699147674,-1.9684144764584488,-4.7156799998259578,-4.7823502555959614,-2.6713538107416741,-2.7627166225199158,-4.3291504189823806,-5.8446955410751729,-1.1418863189807449,-1.8068069394645168,-2.7368044859943796,-4.0336112244700679,-5.0308517590592334,-5.4743359753983611,-6.123415250613613,-7.5370358888736844,-8.7322326731462443,-9.4582045190172863,-10.271402132202198,-10.825499790222585,-11.260054045516304,-11.602715372647578,-11.914125370737921,-12.383189255678188,-12.399910889691295,-12.762274690251571,-12.78852468047339,-12.811988087294486,-12.835418564662643,-12.856062864570314,-12.88218153913712,-12.905514437160152,-12.928815207579458,-12.949330597411242,-12.97532115383024,-12.998526720719786,-13.021700942137132,-13.0420905602464,-13.067956117400815,-13.091037452692552,-13.114088205417847,-13.134355113009814,-13.160098713120414,-13.183058840170172,-13.205989128813092,-13.226136311869219,-13.251760922406538,-13.274602790290404,-13.29741554564832,-13.317445916802358,-13.342954432350746,-13.36568091771729,-13.388378998615835,-13.408295398982562,-13.433690643057441,-13.456304551933369,-13.478890747020589,-13.4986959479787,-13.523980674798,-13.546484744348462,-13.568961773843903,-13.588658478773949,-13.613835374985106,-13.636232275229609,-13.658602792629447,-13.678193638608107,-13.703265324971568,-13.725557660456872,-13.7478242541961,-13.767311813647877,-13.79228084667826,-13.81447115810913,-13.836636353181987,-13.858776585835113]
["Greater Dandenong (C)",null,4.3422238888399978,0.55898437477521523,-5.4146701452452364,-7.4516191846124622,0.9105744287229347,0.43765495314856806,-2.4834790845430641,-2.6453750620859124,-8.7486941032119301,-8.8409311494423193,-4.0006716182245032,-4.1895292614247106,-7.6292119870284116,-10.962021509761026,-1.6052389118222963,-3.1089983624906381,-5.2089729057434617,-8.1471870180912109,-10.403809717227189,-11.403950087587637,-12.864954946383589,-16.069226628799079,-18.776542808860274,-20.419724220847513,-22.254422842706052,-23.50311964851041,-24.479859444968231,-25.251071765462338,-25.944208735093241,-26.99965447687822,-27.037704090901553,-27.865764809754058,-27.921983984350661,-27.975374315254644,-28.028689716102551,-28.079177196963609,-28.1350975664324,-28.188190928189172,-28.241211184475496,-28.291405334037272,-28.347034174217125,-28.399837797514227,-28.452570095059443,-28.502478054557912,-28.557822462381047,-28.610343400125849,-28.662794748089656,-28.712423483212312,-28.76749038116764,-28.819735512922431,-28.871912748210733,-28.921269053475498,-28.976065193959851,-29.028041230265384,-29.079951021826258,-29.129041524850383,-29.183573494410069,-29.235286981000328,-29.286935834012127,-29.335766999673424,-29.390041223139431,-29.441498545050305,-29.49289280500426,-29.541470939498016,-29.595493684016802,-29.646701069591561,-29.697846926271744,-29.74617818106536,-29.799955560028565,-29.850919084822529,-29.901822576185815,-29.949912951874094,-30.00345092874937,-30.054176519336362,-30.104843535294727,-30.152698885358198,-30.20600327742358,-30.256496715106785,-30.306933001214542,-30.35731248602913]
["Kingston (C)",null,2.9062091107065164,2.2190911585247219E-2,-4.5426790088221392,-6.0978796615651669,0.28658351168527252,-7.4990362291095458E-2,-2.3079223227026859,-2.4364484293751358,-7.1115980257852671,-7.1919929860989305,-3.508044913679718,-3.6545703363535886,-6.2989411649075686,-8.8601832060537831,-1.4758793341483933,-2.6229692859157776,-4.225864502410408,-6.4671004117116393,-8.1887423647864761,-8.9518882814650365,-10.067659879363635,-12.511687674668391,-14.576872277248192,-15.830190308452849,-17.230806831678251,-18.184044515906727,-18.929958748310728,-19.51853530109565,-20.048896171839345,-20.854789214004896,-20.883794985092049,-21.514383192113687,-21.557894337338489,-21.598594558778817,-21.639237659953668,-21.677070541498285,-21.720353903252501,-21.76082774081679,-21.801245849023623,-21.838855119876307,-21.881916244637139,-21.922169210383085,-21.962367803476781,-21.999758907504997,-22.042603205366511,-22.082640675827427,-22.122625096991793,-22.159803344239869,-22.202436092315491,-22.242263311881192,-22.2820387729885,-22.319009343015704,-22.361435688755186,-22.40105777296796,-22.440629357853766,-22.477397302988606,-22.519622267411478,-22.559044206178996,-22.598416873834857,-22.634987122347162,-22.677015603195006,-22.716242263922474,-22.755420851608122,-22.791798210801787,-22.833634985610988,-22.872671116254583,-22.911660342531931,-22.947849501759528,-22.989499230856953,-23.028349462900348,-23.067153930591264,-23.103159464192988,-23.144626693616278,-23.183295544972413,-23.221919744041987,-23.257746114210708,-23.299035278555049,-23.337527156394977,-23.375975466762341,-23.4143804766824]
["Knox (C)",null,2.8412401579304611,2.6299510464267817E-2,-4.4468101446966326,-5.9650032237659083,0.27943918288900782,-7.3581199952161613E-2,-2.2536459587611888,-2.3756449333774556,-6.9439935296215722,-7.0240520837070344,-3.4295014757896891,-3.5733425428352237,-6.1571828064711163,-8.6597154883758805,-1.4274951555667852,-2.5477423154582866,-4.1130057738891717,-6.3012510658085086,-7.982344178893805,-8.7278296138409903,-9.8176231743105546,-12.203789393828822,-14.220183026393347,-15.444086468139833,-16.811888878757749,-17.742958711542311,-18.471667551569123,-19.046737986053927,-19.565115725180572,-20.352356911962282,-20.38066794136882,-20.996086448329123,-21.038621371637507,-21.078346747756193,-21.11801637174505,-21.154877135832685,-21.197189731504441,-21.236694146058198,-21.27614416607533,-21.312786675359249,-21.354882357023236,-21.394171190045814,-21.433406952741375,-21.469836520698394,-21.511720568866959,-21.550799068113772,-21.589825788692465,-21.626047598181568,-21.667725163571536,-21.706598447819612,-21.745421213319766,-21.781440319840229,-21.822916426610441,-21.861589488875392,-21.900213261365337,-21.936034596233075,-21.977314145140397,-22.015791855812413,-22.054221475506708,-22.089849848950418,-22.13093762042649,-22.169224730327457,-22.207464918624542,-22.242905022804329,{"$f":"$B57+$C57*BO15","v":-22.283805679954728},-22.321906823318507,-22.359962185762065,-22.39521859771186,-22.435936689240041,-22.473856386617737,-22.51173141578354,-22.546808600279657,-22.587348563337283,-22.625091224429504,-22.662790302739722,-22.697692615097282,-22.738058778062815,-22.775628704480724,-22.813156106947353,-22.850641246092188]
["Manningham (C)",null,3.1595494880596222,{"$f":"$B58+$C58*D16","v":5.4978827790634899E-2},-4.8195307985925817,-6.4928901187940067,0.35068919159915268,-3.8194473707010235E-2,-2.4399221014239507,-2.5852754493596026,-7.6043678312002365,-7.6864172678255693,-3.7176163184115327,-3.8732870170742051,-6.7114930108946753,-9.4607525695697223,-1.5914387571048114,-2.8247962125244852,-4.5484033863082942,-6.959386584838672,-8.8110486344515699,-9.6311333753603883,-10.830397528427859,-13.459713657419176,-15.681223013817934,-17.028997708104434,-18.534922268045026,-19.559473659635209,-20.360854662952903,-20.993084190879991,-21.562232756826631,-22.428202916807887,-22.459426875770102,-23.138449264421499,-23.185077314358981,-23.228890045287159,-23.272641287733627,-23.31357796917456,-23.359960816124097,-23.40352985069152,-23.447038894053577,-23.487734864394369,-23.533878478994577,-23.577209750788146,-23.620482491834228,-23.660943611256783,-23.706853817333371,-23.749953114051472,-23.792995304580149,-23.833227289209216,-23.878909767437655,-23.921782734529707,-23.964599984986037,-24.004608410482607,-24.050068701958843,-24.092720846173179,-24.13531862917408,-24.175108934238498,-24.220352443959605,-24.262789136802184,-24.305172790573216,-24.344750280359946,-24.389782280617457,-24.432008761723548,-24.474183493449129,-24.5135533428959,-24.558378976583615,-24.60040035700467,-24.642371246094111,-24.681538503167118,-24.726162787005833,-24.767984052413691,-24.809756053685142,-24.848725642542764,-24.893153470223879,-24.934779484034461,-24.97635743081867,-25.015134154895613,-25.059370300145638,-25.100805806564036,-25.142194413730191,-25.183536409089811]
["Maroondah (C)",null,2.5315116714805046,-9.239502932564081E-2,-4.2645268809683428,-5.6803755270659506,0.14268775636045128,-0.18667794952520278,-2.2205384794779421,-2.335855235957673,-6.6004993574400705,-6.6779832668692531,-3.3290252262134685,-3.4638147973250528,-5.8786380315859699,-8.2171983266816415,-1.4039613572981597,-2.4483791885143207,-3.9079844137648201,-5.9481044901416329,-7.5154880174228014,-8.2105694728027334,-9.2269646757407688,-11.451566403275663,-13.331488042784969,-14.4725125685185,-15.748042347350577,-16.616289406208526,-17.295906739185373,-17.832123557878599,-18.315867012641036,-19.050039036336834,-19.076428757851353,-19.649895464220396,-19.689730646136066,-19.726760087834482,-19.763737560981752,-19.797909934557897,-19.837537876944005,-19.874361352477077,-19.911134124920103,-19.945103055399688,-19.984528804493024,-20.021151328782327,-20.057724384324651,-20.091494824589166,-20.130723302543846,-20.167149767209612,-20.203527967129787,-20.237104748307171,-20.276140756290289,-20.312375932727374,-20.348564018835468,-20.381951853337132,-20.420800074546577,-20.456848616923136,-20.492851214540242,-20.526054699021852,-20.564719701628086,-20.600586149808745,-20.63640777067171,-20.669431388919222,-20.707917628933281,-20.74360641132877,-20.779251456421694,-20.812099582165072,-20.850411406234215,-20.885926842579408,-20.921399604894003,-20.954076504550038,-20.992218152683172,-21.027564456745196,-21.062869123971783,-21.095378959317923,-21.133354567542575,-21.168535849760829,-21.203676506911602,-21.236023337692611,-21.273836940644895,-21.308857210704762,-21.343837842671078,-21.378779079485906]
["Melbourne (C)",null,14.862187344220377,4.4108857420737477,-11.962738852210862,-17.572032207109778,5.4219965393481404,4.1234078182255542,-3.901001802672726,-4.321591047883695,-21.007065916271621,-21.185490273072368,-7.7691311118880586,-8.2702880290747327,-17.605903767364747,-26.658580598422134,-2.6735452024993367,-6.8205642722370916,-12.60499766909231,-20.710003355217971,-26.932153757665219,-29.688149888526361,-33.707649445410148,-42.547882402912485,-50.01532060000013,-54.547968696180462,-59.600039899446905,-63.038175650541852,-65.72507991406161,-67.84911882000894,-69.747822938661386,-72.652324144461531,-72.757437233528393,-75.049830422814381,-75.200284384176015,-75.347776619029645,-75.495061857574385,-75.639387921373284,-75.78901642547811,-75.935688275021079,-76.082158168722358,-76.225673896863995,-76.374497043413967,-76.520368482616405,-76.666042882497877,-76.80876800284004,-76.95680539730256,-77.101895910012047,-77.24679417906718,-77.388747934510192,-77.536018700448352,-77.680347291642008,-77.824488317008473,-77.965689477592065,-78.112212268684914,-78.255797476413321,-78.399199681240759,-78.539666555937032,-78.685459567697208,-78.828319474727678,-78.971000829747524,-79.110751277956481,-79.255832259153465,-79.397984504320547,-79.539962539124048,-79.679013981881013,-79.823400245676595,-79.964862034947288,-80.106153848980625,-80.244523279880823,-80.388231714684977,-80.529019831945305,-80.669642105227823,-80.807346101076831,-80.950393181130423,-81.090523998701116,-81.230493002274144,-81.367547733470502,-81.509949529161631,-81.649439018049264,-81.78877062416214,-81.927945315164521]
["Monash (C)",null,3.5487101659191511,0.29846097899699697,-4.8611004325452081,-6.6125054952292386,0.59257682959640046,0.18565459812131979,-2.3275653429913516,-2.4646431212894835,-7.7251509038121045,-7.8110976925847231,-3.6569372553241855,-3.8214251271560022,-6.7904251196281464,-9.6666222115512657,-1.4796864867795545,-2.7727464984316006,-4.5787937491114832,-7.1045921282432394,-9.0448154230106947,-9.9051766230293801,-11.162243073909064,-13.91658601556826,-16.243978059837225,-17.656757412810091,-19.234841069728592,-20.309084737826879,-21.149677913590335,-21.813303530335784,-22.410621774806486,-23.318810878122573,-23.351499986645116,-24.062513948561016,-24.111200765305721,-24.157069359922858,-24.202873580779652,-24.245860373081126,-24.294290480960296,-24.339903944035882,-24.385454600885492,-24.428189386986077,-24.476369036803888,-24.521733580351793,-24.567036846661974,-24.609525761726083,-24.657461050584796,-24.702582733884732,-24.747644631350784,-24.789893659725973,-24.837590534860453,-24.882475268268255,-24.92730167059916,-24.969316649578101,-25.016780912094042,-25.0614344607561,-25.106031097365225,-25.147817720853244,-25.195055029371201,-25.23948301684543,-25.283855476448636,-25.325419298538659,-25.372435172746595,-25.416643084532303,-25.460796818655346,-25.5021432571133,{"$f":"$B61+$C61*BO19","v":-25.548943081229591},-25.592936268208646,-25.636876594606477,-25.678010934268773,-25.724599960418249,-25.768383642209592,-25.812115748199695,-25.853043144285362,-25.899426495790468,-25.943005764020398,-25.986534709732194,-26.02726019107175,-26.073442865660795,-26.116822687150975,-26.160153408693635,-26.203435331222565]
["Port Phillip (C)",null,3.9981116834172332,{"$f":"$B62+$C62*D20","v":0.60123379827344603},-4.8661865069721326,-6.6961463565892476,0.88794901307359086,0.46287056093992562,-2.1625688894615522,-2.2862732090394595,-7.7934740350815188,-7.8840731317300063,-3.5440701085280515,-3.7181549211103104,-6.8195206484494388,-9.8241982632439626,-1.3182804522582905,-2.6721403446357077,-4.5618697599819908,-7.2039330484965527,-9.2339925746022491,-10.135586801128852,-11.451522958158142,-14.332395133053337,-16.767043985653718,-18.245932077929343,-19.897322175973859,-21.022255543981913,-21.902986593753802,-22.598879671643434,-23.225214590096414,-24.176557950622549,-24.210721764976256,-24.953935961543095,-25.004694973166622,-25.052632840609064,-25.100503430193616,-25.145553704969817,-25.196044426804423,-25.243715652939862,-25.291321239468058,-25.336108139271602,-25.386337104114414,-25.433748181199686,-25.481095216643318,-25.525625153414694,-25.575598733426908,-25.622755994094412,-25.669850771805908,-25.714129999864905,-25.763854410579398,-25.810764031819211,-25.857612690488551,-25.901647310466004,-25.951128614694117,-25.99779662173605,-26.044405149247996,-26.08820111191875,-26.137445223558725,-26.183877493656631,-26.23025173085113,-26.273814840870262,-26.322827528620113,-26.369029794740957,-26.415175439078819,-26.458511358624261,-26.507298249600936,-26.553276104021279,-26.59919871315763,-26.642312965480961,-26.690879548748761,-26.736638446560544,-26.782343441828676,-26.825241414716647,-26.873593044726753,-26.919138307255125,-26.964630977062409,-27.007317926211499,-27.055459826155069,-27.100796644290238,-27.146082147428835,-27.191316650080697]
["South Gippsland (S)",null,5.2815871387238591,0.94427397818008008,-5.9172293935241775,-8.2510175767444451,1.344115134462365,0.8025877839727148,-2.5425960711956286,-2.7202866996734247,-9.7071012719196101,-9.8073245285682713,-4.2552660077004152,-4.4708901053529777,-8.4012997356005386,-12.210202158768583,-1.6387087609126891,-3.3629064740197836,-5.7698323282319857,-9.1381662134517327,-11.725087319699288,-12.871912439385966,-14.546292328585444,-18.219653083714174,-21.323277769621441,-23.20732423691798,-25.310130969828872,-26.741517300079636,-27.861118147933272,-28.74549522321346,-29.539556855666216,-30.749393307497538,-30.793015470737128,-31.742752925773743,-31.80680241317161,-31.868012015158158,-31.929135713221051,-31.987420584859521,-32.051127505679617,-32.111996645957149,-32.172781974116049,-32.230730554673798,-32.294103250336619,-32.35464021856172,-32.41509541503509,-32.472715891616502,-32.535762498434174,-32.595975380446461,-32.656108480919201,-32.71340883937026,-32.776137293663524,-32.83603397657032,-32.895852819246123,-32.952840849174613,-33.015258892261336,-33.074847069394401,-33.134359299920916,-33.19104259959056,-33.253157782648486,-33.312444958396064,-33.371658034666346,-33.428044015767433,-33.489863704574979,-33.548857199092204,-33.607778395925244,-33.663874288225728,-33.725405667783136,-33.784112621584171,-33.842749035287703,-33.898561891167034,-33.959811970201592,-34.018239348636079,-34.076597901454846,-34.132134600323802,-34.193110215681727,-34.251264813298768,-34.309352257750724,-34.364619510360271,-34.425327331287988,-34.483215776090454,-34.541038699194026,-34.598796502181465]
["Stonnington (C)",null,2.6267999129926229,1.040593628657549E-2,-4.1889041023524953,-5.6007278853221623,0.23398429675093013,-9.4451150064278844E-2,-2.1225619582902362,-2.228221833939473,-6.487819042963423,-6.5665604321894593,-3.2286126613805926,-3.3643914461105919,-5.7739062604375215,-8.107349832200379,-1.3119151742073805,-2.3546693684893443,-3.8114312937029733,-5.8470314267076029,-7.4112419352296017,-8.1056334749306931,-9.1204280089445859,-11.339955360121412,-13.215783029991723,-14.354814856893068,-15.627976180318448,-16.495006646271243,-17.17394112091343,-17.709871464451997,-18.193488168670772,-18.926802283403546,-18.953116446325701,-19.524933329148432,-19.564662339294213,-19.601585758938207,-19.638457358826489,-19.672524007024808,-19.712046371005659,-19.748764414203048,-19.785431899482592,-19.819295687079105,-19.858616436683501,-19.895134103997233,-19.931602444202039,-19.965268309897223,-20.004392353186262,-20.040714522230964,-20.076988564720857,-20.110461325810228,-20.149393450204396,-20.185524878713544,-20.221609351721927,-20.254893707124427,-20.29363858241274,-20.32958391122877,-20.365483426833592,-20.398583960043805,-20.437146141317243,-20.472909897306312,-20.508628954326486,-20.541550136292479,-20.579934066803695,-20.615520665697183,-20.651063652515983,-20.683809844444951,-20.722019858395939,-20.757433607560539,-20.79280480487807,-20.825380260971254,-20.86342058623103,-20.898665687369064,-20.933869270885534,-20.966278141004445,-21.004152901758317,-21.039233453540259,-21.07427349657172,-21.106519828837339,-21.144233048169532,-21.179153048800302,-21.214033524828629,-21.248874718500982]
["Whitehorse (C)",null,3.0154581107932494,7.5689343524807162E-2,-4.5838631713847553,-6.1689316061876109,0.34345735915585174,-2.5019799303013346E-2,-2.3006194057888485,-2.4294471072860651,-7.1944388541095519,-7.27582362447236,-3.5204400625735706,-3.6698430947657275,-6.3637740416481261,-8.9731028188155513,-1.4667570849797453,-2.6362081308530376,-4.2701684304718572,-6.5548616628162044,-8.3099160765437059,-9.0879984642543299,-10.22541598480626,-12.716818619762936,-14.822054046824626,-16.099781400434196,-17.527547558390193,-18.499339245068477,-19.259799102678237,-19.859932401424345,-20.400617576321991,-21.22221379860953,-21.251780276358708,-21.894611525827258,-21.938910552573265,-21.980397544523459,-22.021826312024011,-22.06044376249492,-22.104510602518683,-22.145766834396571,-22.186966259620284,-22.225355776811035,-22.269196083807959,-22.310227174224075,-22.351202840917505,-22.389369973930222,-22.432989262576193,-22.473800691996882,-22.514558046632214,-22.552508208158986,-22.595911857578582,-22.636508971772273,-22.677053326971752,-22.714791796697217,-22.757985053844862,-22.798373067241684,-22.838709605115838,-22.876241533034367,-22.919229515990246,-22.959413514957117,-22.999547290359089,-23.036877700008262,-23.079665401191523,-23.119650347224795,-23.159586290922739,-23.196720082535784,{"$f":"$B65+$C65*BO23","v":-23.239312371836736},-23.279103104674693,-23.318846026444419,-23.355787980023141,-23.398189607856803,-23.437790848513714,-23.477345440153595,-23.514100218464154,-23.556315818747006,-23.595732172470985,-23.63510301074103,-23.671675162234351,-23.713709255286155,-23.752945214442658,-23.792136763929644,-23.83128417593419]
["Yarra Ranges (S)",null,2.3512852533177662,{"$f":"$B66+$C66*D24","v":-0.31839750008560086},-4.4702789623533974,-5.9106516484378924,-5.3431152947299609E-2,-0.38846505422658739,-2.4573594228612619,-2.5965189442695897,-6.917608666646629,-6.9924925705124847,-3.5814841343901587,-3.7152577889985809,-6.1674123894360973,-8.5421110849744935,-1.6253389040166319,-2.6848055182492621,-4.1666228146128965,-6.2391465413402001,-7.8307024085040693,-8.5348021245103798,-9.5657408592639612,-11.826027939597239,-13.735637347620752,-14.893522598986069,-16.188179044808308,-17.068510838606951,-17.756937429648541,-18.299525047082899,-18.788642950414122,-19.532621459949038,-19.55947157027224,-20.142990876527268,-20.183472977517535,-20.221148426053894,-20.258770999408117,-20.293587572131088,-20.333858818140236,-20.371324707274486,-20.408739008764634,-20.443348589171151,-20.483414114471397,-20.520675546614246,-20.557886646990109,-20.592294274368456,-20.632159086984654,-20.669221039094371,-20.706233884443222,-20.740444474204025,-20.780113459063294,-20.81698078577536,-20.853800200631756,-20.887818547398048,-20.927296469400222,-20.963973906078309,-21.000604596455599,-21.034435377075205,-21.073726884085964,-21.1102190497961,-21.146665606141809,-21.180313382623751,-21.219423008392653,-21.255734408802553,-21.292001308879307,-21.325470531256617,-21.364402698261475,-21.400537728467093,-21.436629340161119,-21.469924349281463,-21.508683371501395,-21.544646318782224,-21.580566902841294,-21.613691933087502,-21.65228201870617,-21.688077065211377,-21.723830777913836,-21.756789959856007,-21.795215213896849,-21.83084643926383,-21.866437335020496,-21.901988148347233]
[]
[]
["LGA S curves",2020,{"$f":"B90+1","v":2021},2022,2023,2024,2025,2026,2027,2028,2029,2030,2031,2032,2033,2034,2035,2036,2037,2038,2039,2040,2041,2042,2043,2044,2045,2046,2047,2048,2049,2050,2051,2052,2053,2054,2055,2056,2057,2058,2059,2060,2061,2062,2063,2064,2065,2066,2067,2068,2069,2070,2071,2072,2073,2074,2075,2076,2077,2078,2079,2080,2081,2082,2083,2084,{"$f":"BN90+1","v":2085},2086,2087,2088,2089,2090,2091,2092,2093,2094,2095,2096,2097,2098,2099,2100]
["Bass Coast (S)",null,{"$f":"EXP(C69)/(1+EXP(C69))","v":0.99977874498909414},0.89530700956665032,4.2605668569816374E-4,1.4670891234386448E-5,0.93868918137658663,0.87519637479706536,5.3327596515695193E-2,4.2221409265473547E-2,1.8862979175691214E-6,1.6625180528087231E-6,5.1138128322203913E-3,3.7663048419924556E-3,1.3428595523664572E-5,5.6682835660980303E-8,0.1328695538244847,1.2528605405550007E-2,3.9236486558226973E-4,3.0215772101958384E-6,7.1973688247426384E-8,1.3729796143661571E-8,1.224664706171407E-9,6.0656369379131665E-12,6.8455734014969037E-14,4.4983606081168177E-15,2.1598429234822035E-16,2.7338127738707824E-17,5.4306125923154778E-18,1.5137852360851918E-18,4.8199260225867897E-19,8.4034248677006397E-20,7.8898803273095256E-20,1.9966151667479371E-20,1.8222880607116018E-20,1.6679758785451467E-20,1.5269205220631937E-20,1.4018208193421083E-20,1.2800597215714406E-20,1.1722404665683755E-20,1.073632881078974E-20,9.861500478842131E-21,9.0092897085684683E-21,8.2544010682809848E-21,7.5636585842843404E-21,6.9506448189785354E-21,6.3529782253567602E-21,5.8233895342073488E-21,5.3385633802717877E-21,4.9081581950111318E-21,4.4881830155119784E-21,4.115925847189488E-21,3.7749690367006819E-21,3.4721911189991639E-21,3.1765120220555299E-21,2.9143463713806368E-21,2.6741114833496265E-21,2.4607134675748102E-21,2.2521538894296254E-21,2.0671771406505675E-21,1.897596386276466E-21,1.7469160613940036E-21,1.5995380103243063E-21,1.4687861498186167E-21,1.3488633691164278E-21,1.2422765037207648E-21,{"$f":"EXP(BO69)/(1+EXP(BO69))","v":1.137946378623662E-21},1.0453595509947811E-21,{"$f":"EXP(BQ69)/(1+EXP(BQ69))","v":9.6040380047743921E-22},8.8487488724822611E-22,8.1089009744758883E-22,7.4521468979856427E-22,6.8492658925512417E-22,6.3131396600794764E-22,5.7875909858614232E-22,5.3209416095575263E-22,4.8923927432655972E-22,4.5111975112297266E-22,4.1372560279170262E-22,3.805135698488786E-22,3.5000079862986829E-22,3.2196510419706834E-22]
["Bayside (C)",null,0.85179132661345802,0.41459814359271069,2.3900237181822867E-2,7.8335329246712604E-3,0.45816343959772382,0.39377949154162079,0.11309230690026656,0.10436941766025422,3.7724100301312546E-3,3.5136807356179779E-3,4.8282463804565023E-2,4.3445540197577528E-2,6.4415859372661021E-3,9.8396097595073199E-4,0.21865854483997252,0.10828268967735531,3.6414223296762992E-2,7.3502239005167275E-3,2.1112355314081852E-3,1.2117440437743178E-3,5.3747748565553073E-4,9.0942264794540703E-5,2.0251513655088014E-5,8.1362919793334262E-6,2.9329341189396647E-6,1.4640699122614831E-6,8.4955760257500369E-7,5.5304886177107065E-7,3.7500684252541872E-7,2.0834229439686914E-7,2.0400103622001525E-7,1.2916515948033309E-7,1.2505449510684987E-7,1.214135502104184E-7,1.178834991652859E-7,1.1477639648118288E-7,1.1114202991665056E-7,1.0792388013045464E-7,1.0480315281714154E-7,1.020573801256209E-7,9.8841703630944083E-8,9.5995104548432089E-8,9.3234166451389343E-8,9.0805874374696557E-8,8.7958560527353692E-8,8.5438756565523125E-8,8.2994335229768982E-8,8.0845232284894544E-8,7.8322272545639248E-8,7.609013852543026E-8,7.3924396535116374E-8,7.2021013366921836E-8,6.9783889231396132E-8,6.7805190519150681E-8,6.5885012503804915E-8,6.4198067776363607E-8,6.221303544175579E-8,6.0457789576674457E-8,5.8754166851514775E-8,5.725802015606299E-8,5.5495492489227906E-8,5.3937417782057492E-8,5.2424916682624872E-8,5.1097096015382921E-8,4.9531108020469507E-8,4.8147146769920498E-8,{"$f":"EXP(BQ70)/(1+EXP(BQ70))","v":4.6803448813323686E-8},4.5624242029529888E-8,4.4231988051772525E-8,4.3001893851991166E-8,4.1807397609008797E-8,4.0759498825830331E-8,3.9520931453823043E-8,3.8426911612226155E-8,3.7364387657647779E-8,3.6432590904346559E-8,3.5330072995553884E-8,3.4356478390368289E-8,3.3410769956055461E-8,3.2492114788988189E-8]
["Boroondara (C)",null,0.91703582095689495,0.47551980045277836,1.6273302589408813E-2,4.2707587805851247E-3,0.52954494375499916,0.45120661981055843,0.10570425592876402,9.6198146644171895E-2,1.8082588055866526E-3,1.6749400076299424E-3,3.9143803759390236E-2,3.4542088996886364E-2,3.5503371195241607E-3,3.8155521174958548E-4,0.20938239267049069,8.9069560384700167E-2,2.3720799969459062E-2,3.4605076142072643E-3,7.7816040167095666E-4,4.0096492475159346E-4,1.5204903078681417E-4,1.8229846707781465E-5,3.0352824927387194E-6,1.0221237655217603E-6,3.0270847781851448E-7,1.3218480614412157E-7,6.9090153257124386E-8,4.1406054897628433E-8,2.6080790392947729E-8,1.2941412412297551E-8,1.2619982674214639E-8,7.3072235404302431E-9,7.034093827365328E-9,6.7901813309844038E-9,6.5550513414683297E-9,6.3458238012094517E-9,6.1098359715039336E-9,5.8991306843839077E-9,5.6959670705706927E-9,5.515229490768592E-9,5.3111530864403297E-9,5.1289735693732687E-9,4.953276573367817E-9,4.7970125339573562E-9,4.6203804389639431E-9,4.4627291407910442E-9,4.3106553203896562E-9,4.1754350282606528E-9,4.022427993533099E-9,3.885887706997181E-9,3.7541507273569012E-9,3.6370422328167773E-9,3.5043915033546676E-9,3.3860380643748723E-9,3.2718250270921151E-9,3.1703193599244064E-9,3.0552244652070905E-9,2.9525530570521534E-9,2.8534538470581713E-9,2.7654018129096045E-9,2.6654610755021494E-9,2.5763239427255992E-9,2.4902714960921047E-9,2.4138302532073062E-9,2.3269819783699735E-9,2.2495357217615283E-9,{"$f":"EXP(BQ71)/(1+EXP(BQ71))","v":2.1747554669137221E-9},2.1083433167352878E-9,2.0328159634321231E-9,1.9654768904332881E-9,1.9004439045094451E-9,1.842701989140962E-9,1.7769719026174343E-9,1.718378158896895E-9,1.6617808207625401E-9,1.611540635367084E-9,1.5542961536423692E-9,1.5032755700179541E-9,1.4539846904746993E-9,1.4063628109675073E-9]
["Cardinia (S)",null,0.64568157838955809,0.31972343975725948,4.8621395863016718E-2,2.3893252572247281E-2,0.34242483525989059,0.30475207768703688,0.13151674513059206,0.12481895572128743,1.4727239996794188E-2,1.3854513628959101E-2,7.2499060172621643E-2,6.753616602429198E-2,1.9473641229466727E-2,5.6517539655703023E-3,0.24211575469404523,0.156638740568604,7.9962060149979669E-2,2.9291340796211759E-2,1.3197614593113891E-2,9.227764238837385E-3,5.4499122783661725E-3,1.7267998787853242E-3,6.5201704762982832E-4,3.6079045213857608E-4,1.8573078835036982E-4,1.1814235975445788E-4,8.2838331080255478E-5,6.2632801850367876E-5,4.8527913980508049E-5,3.3082504703935314E-5,3.2634685296055904E-5,2.4301558143529509E-5,2.3775036980598578E-5,2.3324684918662807E-5,2.2883477498585198E-5,2.2513116686745044E-5,2.2027700793888293E-5,2.1612745313938414E-5,2.1206161847706573E-5,2.0865139378176827E-5,2.0417387515871437E-5,2.0034845486903466E-5,1.965997293228034E-5,1.9345797753343956E-5,1.8932578105216717E-5,1.8579736295628E-5,1.8233924695517151E-5,1.7944332631224136E-5,1.7562792966221263E-5,1.7237181873928798E-5,1.6918018893964924E-5,1.6650950523417467E-5,1.6298491432963624E-5,1.5997861825230432E-5,1.5703149922986361E-5,1.5456730760273229E-5,1.5130981633233091E-5,1.485328349789194E-5,1.4581019434511382E-5,1.4353542155146128E-5,1.4052339592561269E-5,1.379570323708643E-5,1.3544059675797882E-5,{"$f":"EXP(BN72)/(1+EXP(BN72))","v":1.3333968165198469E-5},1.3055336571143898E-5,1.2818055636514316E-5,{"$f":"EXP(BQ72)/(1+EXP(BQ72))","v":1.2585364601989282E-5},1.2391239627585441E-5,1.2133373742670642E-5,1.1913889925742867E-5,1.1698627924186245E-5,1.151917425558957E-5,1.128042342617239E-5,1.1077312727808499E-5,1.0878087350453959E-5,1.0712122172212309E-5,1.0490976171751628E-5,1.0302936508651882E-5,1.0118474361385115E-5,9.937516948879123E-6]
["Casey (C)",null,{"$f":"EXP(C73)/(1+EXP(C73))","v":0.72658109350891464},0.35464624719328064,4.021716413682748E-2,1.7517725776335431E-2,0.38291672514793018,0.33697622111897774,0.1291291228708798,0.12188639612472517,1.0123665711216799E-2,9.4908023729114617E-3,6.6117618259100647E-2,6.0947028266613509E-2,1.4423335330745385E-2,3.4521779903007965E-3,0.24010547051816186,0.14401358533621139,6.5122246206421541E-2,1.9966851148680395E-2,7.8534960280257256E-3,5.1722992150871252E-3,2.8015810978283037E-3,7.3503501901706818E-4,2.3683730367146018E-4,1.1903031075357105E-4,5.5056501973204874E-5,3.2558854485141995E-5,2.1564423959667393E-5,1.5584645865120946E-5,1.1598349220614198E-5,7.4345693479859716E-6,7.317655980209042E-6,5.1910960680776016E-6,5.0627953772686836E-6,4.9514354832913351E-6,4.8426761779651844E-6,4.7495122125068373E-6,4.6327020733032216E-6,4.5313628982212656E-6,4.4323754641109351E-6,4.3476361060950718E-6,4.2412247632729092E-6,4.14894976198423E-6,4.0588029474248037E-6,3.9816802920392799E-6,3.8846861943524444E-6,3.8006157988551306E-6,3.7184726007198744E-6,3.6482409858936756E-6,3.559780975109348E-6,3.4831421603875694E-6,3.4082497016860429E-6,3.3442568290193055E-6,3.2635356701081553E-6,3.1936327088661957E-6,3.1253132675907732E-6,3.0669723376979161E-6,2.9932734292980331E-6,2.9294796925178083E-6,2.8671227434872456E-6,2.8139054834661531E-6,2.7465826080599628E-6,2.6883332864675753E-6,2.6313884353910408E-6,2.582818911635604E-6,2.5212889025079005E-6,2.4680745397383372E-6,{"$f":"EXP(BQ73)/(1+EXP(BQ73))","v":2.4160452438796074E-6},2.3716943668997593E-6,2.3154305842504679E-6,2.2667913261330631E-6,2.2192293091157384E-6,2.1787099486968859E-6,2.1272364705896977E-6,2.0827569468228244E-6,2.039257226557934E-6,2.0022198657318293E-6,1.9551063111384906E-6,1.9144110759286478E-6,1.8746075346005011E-6,1.8356750040945149E-6]
["Frankston (C)",null,0.10138948304323082,0.10138948304323082,0.11371964890757187,0.11270384424047691,0.10445338737893023,0.10403674884870949,0.10166515843970018,9.5995688867114445E-2,9.0607640472330817E-2,8.7659517082353727E-2,8.6187220489217106E-2,8.5816430045119865E-2,7.9188271252764342E-2,7.3502688104955125E-2,0.18693523611294477,0.18735409507525835,0.18693523611294477,0.18693523611294477,0.18693523611294477,0.18735409507525835,0.18693523611294477,0.18693523611294477,0.18693523611294477,0.18735409507525835,0.18693523611294477,0.18693523611294477,0.18693523611294477,0.18735409507525835,0.18693523611294477,0.18693523611294477,0.18693523611294477,0.18735409507525835,0.18693523611294477,0.18693523611294477,0.18693523611294477,0.18735409507525835,0.18693523611294477,0.18693523611294477,0.18693523611294477,0.18735409507525835,0.18693523611294477,0.18693523611294477,0.18693523611294477,0.18735409507525835,0.18693523611294477,0.18693523611294477,0.18693523611294477,0.18735409507525835,0.18693523611294477,0.18693523611294477,0.18693523611294477,0.18735409507525835,0.18693523611294477,0.18693523611294477,0.18693523611294477,0.18735409507525835,0.18693523611294477,0.18693523611294477,0.18693523611294477,0.18735409507525835,0.18693523611294477,0.18693523611294477,0.18693523611294477,0.18735409507525835,0.18693523611294477,0.18693523611294477,{"$f":"EXP(BQ74)/(1+EXP(BQ74))","v":0.18693523611294477},0.18735409507525835,0.18693523611294477,0.18693523611294477,0.18693523611294477,0.18735409507525835,0.18693523611294477,0.18693523611294477,0.18693523611294477,0.18735409507525835,0.18693523611294477,0.18693523611294477,0.18693523611294477,0.18693523611294477]
["Glen Eira (C)",null,0.75811493662781426,0.37279495489847136,3.7711366843177906E-2,1.5670190236099467E-2,0.40298513697295696,0.35357149613720018,0.12993510140078784,0.1225592896507896,8.874316790917762E-3,8.3067099875046482E-3,6.4685013602731156E-2,5.9372468000332607E-2,1.3007319076860695E-2,2.8868579753324013E-3,0.24197419892123181,0.14102447897398754,6.083622356046136E-2,1.7402063569739733E-2,6.490837230840223E-3,4.1755039511198232E-3,2.186170678123944E-3,5.3269116900897322E-4,1.6127590531782619E-4,7.8040505672828621E-5,3.4607617526090826E-5,1.9885501175589382E-5,1.2877011087904348E-5,9.1411485923185891E-6,6.6951172501837953E-6,4.1883929402617533E-6,4.1189387668730367E-6,2.8669048570371985E-6,2.7926279913001183E-6,2.7278663389634375E-6,2.6646942647164023E-6,2.6102476010635522E-6,2.5429541995322726E-6,2.4843067244345443E-6,2.4270897922820521E-6,2.3778044995232777E-6,2.3168003802372079E-6,2.2636568335951673E-6,2.2118016375375598E-6,2.1671605979882535E-6,2.1118246329102202E-6,2.0636392319719205E-6,2.0166149449821308E-6,1.976155852220565E-6,1.9259318314653485E-6,1.8822160554861737E-6,1.8395474487473271E-6,1.8028566654227943E-6,1.7572461186540919E-6,1.71756235496196E-6,1.6788236393720753E-6,1.6455307813869362E-6,1.6040866377180954E-6,1.5680425722090684E-6,1.5328519601348978E-6,1.5026251167737799E-6,1.4649460999653378E-6,1.4321897601638203E-6,1.4002046587211055E-6,1.3727461701174275E-6,1.3384718392136293E-6,1.3086872099390641E-6,{"$f":"EXP(BQ75)/(1+EXP(BQ75))","v":1.2795999685555684E-6},1.2546426920874664E-6,1.2234490491727288E-6,1.1963521911459937E-6,1.1698863360881314E-6,1.1471903421102484E-6,1.1187859388538596E-6,1.0941215494796097E-6,1.0700284466120425E-6,1.0493780915557397E-6,1.0235005748650142E-6,1.0010389381384158E-6,9.7909483262646236E-7,9.5765567572729319E-7]
["Greater Dandenong (C)",null,0.98715945563481278,0.63621751165064477,4.4310837970870992E-3,5.8016412686572201E-4,0.7131176942528461,0.60770011138623348,7.7024503744121967E-2,6.6274637867878641E-2,1.5864322276195787E-4,1.446670262503091E-4,1.7974351206176537E-2,1.4927218138520874E-2,4.8580759249760414E-4,1.7347904138261657E-5,0.16725067775897431,4.2737603548160627E-2,5.4375575397002714E-3,2.8946489621804028E-4,3.0315845342787703E-5,1.1151224573439753E-5,2.587140015419755E-6,1.0500826938867627E-7,7.0056924174659331E-9,1.3546479630975963E-9,2.1628527913316525E-10,6.2047577348820383E-11,2.336318916081701E-11,1.08043556143809E-11,5.4022329687555241E-12,1.8801783494075646E-12,1.8099822254301624E-12,7.9077350378788891E-13,7.4754343496947924E-13,7.0867857904352414E-13,6.7188465322765352E-13,6.3880497090898513E-13,6.0406320015416708E-13,5.7282798257896E-13,5.4324760497797602E-13,5.166527889940329E-13,4.8869678261356058E-13,4.6356128449399984E-13,4.3974996316352285E-13,4.1834160698364845E-13,3.9581777156595853E-13,3.7556553932330416E-13,3.5637432274125888E-13,3.3911962176395752E-13,3.2095021374793674E-13,3.0461262335065371E-13,2.8912630862551948E-13,2.7520254158713523E-13,2.6052822403560312E-13,2.4733289064311994E-13,2.3482143472690403E-13,2.2357230411041181E-13,2.1170692743686452E-13,2.0103708909753967E-13,1.9091734026631422E-13,1.8181858336287378E-13,1.7221353196933984E-13,1.6357602220044854E-13,1.5538153211401874E-13,{"$f":"EXP(BN76)/(1+EXP(BN76))","v":1.4801379152651275E-13},1.4022982880103592E-13,1.3322978248180111E-13,{"$f":"EXP(BQ76)/(1+EXP(BQ76))","v":1.2658695567244063E-13},1.2061434375691695E-13,1.1429934438636614E-13,1.0862019089779185E-13,1.0322941264849648E-13,9.8382549223052852E-14,9.3253861342121944E-14,8.8641476096561473E-14,8.4262157341874402E-14,8.0324727260980689E-14,7.6155181281067484E-14,7.240531293677056E-14,6.8844021912245972E-14,6.5461612941732676E-14]
["Kingston (C)",null,{"$f":"EXP(C77)/(1+EXP(C77))","v":0.94815252329736022},0.5055475002488532,1.0532731318965061E-2,2.2425878992031658E-3,0.57115951505338902,0.48126119016404234,9.0468959577637412E-2,8.0435214345614459E-2,8.1492596936242083E-4,7.5202176563120618E-4,2.9084193356295064E-2,2.5220101719276133E-2,1.8348771874341109E-3,1.4190891851872557E-4,0.1860506284749055,6.7674706288494119E-2,1.4402240959555255E-2,1.5513140542127472E-3,2.7768585833342512E-4,1.2947564480805202E-4,4.2427988462507157E-5,3.6833372400857705E-6,4.6702981189623118E-7,1.3336308821165813E-7,3.2866666648951955E-8,1.2669801260405413E-8,6.0092928694198385E-9,3.3358600511249728E-9,1.9627953636965174E-9,8.7675877808826993E-10,8.516929972132188E-10,4.5333797245285921E-10,4.3403569538798523E-10,4.1672501037805878E-10,4.0012758372939266E-10,3.8527238361543193E-10,3.6895224278107981E-10,3.5431748970218242E-10,3.4028219769083104E-10,3.2772210083970442E-10,3.1390954494309519E-10,3.0152469056755453E-10,2.8964421129238025E-10,2.7901406929889328E-10,2.6731237284150488E-10,2.5682128139147843E-10,2.4675501903892328E-10,2.3774954114898882E-10,2.2782664786487711E-10,2.1893126099865527E-10,2.103940798199191E-10,2.0275772080912999E-10,1.9433537953742028E-10,1.8678595633961751E-10,1.7953887492809067E-10,1.7305748330852914E-10,1.6590226474203437E-10,1.5948931184286844E-10,1.5333180631348736E-10,1.4782571720823432E-10,1.4174157604554376E-10,1.3628916637527362E-10,1.3105279590555995E-10,1.2637111120533549E-10,1.2119321984486604E-10,1.1655345390269282E-10,{"$f":"EXP(BQ77)/(1+EXP(BQ77))","v":1.1209657463577248E-10},1.0811242025930657E-10,1.0370205014151633E-10,9.9750458567612148E-11,9.5953834506090559E-11,9.2560422885167524E-11,8.8800690176292756E-11,8.5432412893978373E-11,8.2195567052347509E-11,7.9302924082629923E-11,7.6095249410190431E-11,7.3221856280001858E-11,7.0460033551837889E-11,6.7805318727538159E-11]
["Knox (C)",null,0.94486410505064544,0.50657449867496029,1.1580207078725998E-2,2.5604635289429266E-3,0.56940872679369314,0.48161299516284861,9.5035435638380128E-2,8.5048845735883075E-2,9.6348130321205949E-4,8.8941919454255407E-4,3.1386084341664212E-2,2.7295923214482279E-2,2.1137349485495379E-3,1.7340356975943655E-4,0.19348926806118708,7.2578305108499594E-2,1.6095236100468473E-2,1.8306514443731641E-3,3.4132155150332305E-4,1.6198746303078509E-4,5.447995861536026E-5,5.0114041872297442E-6,6.6719485745135085E-7,1.9620875571189765E-7,4.9967705573433295E-8,1.9693863814188692E-8,9.5029119802499537E-9,5.3469582378416376E-9,3.1840377006925319E-9,1.4490510929255438E-9,1.408602240858747E-9,7.6122933067908507E-10,7.2952945459384989E-10,7.0111671250099514E-10,6.738481194857107E-10,6.4946177372151471E-10,6.225546301725375E-10,5.9844041886378891E-10,5.7529154626372533E-10,5.5459296041427531E-10,5.3173155087798187E-10,5.1124551022961606E-10,4.9157482335254436E-10,4.7398922755336892E-10,4.5454664908755843E-10,4.3712624667970308E-10,4.2039524438343785E-10,4.0544025145751987E-10,3.8888977626700456E-10,3.7406241470724409E-10,3.5981855922620981E-10,3.4708884885351649E-10,3.3298741250646866E-10,3.2035559933374739E-10,3.0821816318310419E-10,2.9737278479496015E-10,2.8534728163190496E-10,2.7457632130397413E-10,2.6422463728860497E-10,2.5497647008467401E-10,2.4471236373302872E-10,2.3552012949483371E-10,2.2668382316632222E-10,2.1879081548461678E-10,2.1002266128234041E-10,2.0217108460081242E-10,{"$f":"EXP(BQ78)/(1+EXP(BQ78))","v":1.9462194437600669E-10},1.8787982280482173E-10,1.803833712923182E-10,1.7367135157086688E-10,1.6721655350688572E-10,1.6145274762519503E-10,1.5503835725040925E-10,1.4929584754767412E-10,1.4377230215145081E-10,1.3884087604135076E-10,1.3334801138019478E-10,1.2843107913689322E-10,1.2370070873611505E-10,1.1914960277511072E-10]
["Manningham (C)",null,0.95928335361273709,0.51374124584932801,8.0059602883265114E-3,1.5118773229119988E-3,0.58678469610193562,0.49045254221182627,8.0178657008030396E-2,7.0092100526916445E-2,4.9802216324707914E-4,4.5880917169942282E-4,2.3715705568153687E-2,2.0366502212262549E-2,1.2153670887773134E-3,7.7841923104846281E-5,0.16918157016855773,5.5998850900288763E-2,1.0473239893586105E-2,9.4877790896585607E-4,1.4905462623392008E-4,6.5648288619472891E-5,1.9788347235507953E-5,1.427315594158242E-6,1.5478586851760404E-7,4.0216127172666957E-8,8.920424721541394E-9,3.2020530240688981E-9,1.4367895889718738E-9,7.635181712309534E-10,4.3215674525343285E-10,1.8178382364586103E-10,1.7619551162297378E-10,8.9350947991754494E-11,8.5280327566801736E-11,8.1624631297701439E-11,7.8130447069587886E-11,7.4996627561525663E-11,7.1597510208154302E-11,6.8545054923802106E-11,6.5626673517740174E-11,6.3009546803288916E-11,6.0168119574975652E-11,5.7616637131406488E-11,5.5176581994560068E-11,5.2988637544682165E-11,5.0610916723355725E-11,4.8475959848429723E-11,4.6433714979026771E-11,4.4602674637327584E-11,4.261095366237452E-11,4.0822703352225768E-11,3.9111679502998502E-11,3.7577772001326081E-11,3.5907723582693119E-11,3.4408384485381743E-11,3.297344322494433E-11,3.1687179967592954E-11,3.028548854659203E-11,2.902716103562111E-11,2.7822591242982945E-11,2.674294861839202E-11,2.5565373424382108E-11,2.4508312707338048E-11,2.3496174542084763E-11,2.2589106414430134E-11,2.1598894640361273E-11,2.0710084569368105E-11,{"$f":"EXP(BQ79)/(1+EXP(BQ79))","v":1.9858852347544428E-11},1.9096071108018441E-11,1.8262656178419974E-11,1.7514639314654664E-11,1.6798087862558042E-11,1.6156064231027353E-11,1.5453996541052462E-11,1.4823913174547608E-11,1.4220202788892368E-11,1.3679344043651039E-11,1.3087411523212907E-11,1.2556209314938627E-11,1.2047132950240117E-11,1.1559235257115465E-11]
["Maroondah (C)",null,0.92632159133893566,0.47691766118824347,1.3863615045190429E-2,3.4006727636920605E-3,0.53561153927690208,0.45346557271779681,9.7921228672520094E-2,8.8196660087171322E-2,1.3578426536477604E-3,1.2567317350782945E-3,3.4588765542871928E-2,3.0359532486574012E-2,2.7907840054396211E-3,2.698975108098701E-4,0.19718825626494282,7.9557156816444166E-2,1.9685629309624874E-2,2.6039861521546873E-3,5.4428777469569471E-4,2.716920772720545E-4,9.8341639711635985E-5,1.0632693234612068E-5,1.6225855453166376E-6,5.1840290563330339E-7,1.4478115765822165E-7,6.0762715561645708E-8,3.0795207184123994E-8,1.8013874401288497E-8,1.1105037266820619E-8,5.329336760624828E-9,5.1905365529447633E-9,2.9252219840901282E-9,2.8109856529033381E-9,2.7088000379405248E-9,2.6104647571453813E-9,2.5227659526682559E-9,2.4247488634863403E-9,2.3370851304575048E-9,2.2527049851895994E-9,2.1774680990415398E-9,2.093290082474169E-9,2.0180153050032046E-9,1.9455436521279666E-9,1.880938793551924E-9,1.8085809506043763E-9,1.7438861946440495E-9,1.681586794437782E-9,1.6260619125718514E-9,1.5638098869754095E-9,1.5081593031663689E-9,1.4545576250908803E-9,1.4067948800800056E-9,1.3531913437726836E-9,1.3052795321497999E-9,1.2591219603076241E-9,1.2180011783167323E-9,1.1718059832471306E-9,1.1305222408519298E-9,1.090741854486528E-9,1.0553098779465188E-9,1.0154665956356536E-9,9.7986489862948485E-10,9.4555273244301039E-10,{"$f":"EXP(BN80)/(1+EXP(BN80))","v":9.1499768283219026E-10},8.8060547337933018E-10,8.4987924314125197E-10,{"$f":"EXP(BQ80)/(1+EXP(BQ80))","v":8.2026012061295028E-10},7.9388976022757269E-10,7.6417969354114718E-10,7.3764055893865506E-10,7.1205274679462124E-10,6.8927626507294795E-10,6.635913662260481E-10,6.4065126821372552E-10,6.1852932784130039E-10,5.9884199237720556E-10,5.7662040594835106E-10,5.5677650111201947E-10,5.3763681799615467E-10,5.1917553095764933E-10]
["Melbourne (C)",null,{"$f":"EXP(C81)/(1+EXP(C81))","v":0.9999996488975218},0.98800130046379808,6.3774308508540811E-6,2.3364869864774561E-8,0.99560111915463256,0.98406866604502574,1.9820833378420624E-2,1.3104725379785123E-2,7.5291715279927633E-10,6.2988095563834108E-10,4.2240178365693111E-4,2.5594601673475232E-4,2.2586718284469913E-8,2.6443902713403304E-12,6.455255891863762E-2,1.0899158555294978E-3,3.3551938012972666E-6,1.013350817502105E-9,2.011473138313898E-12,1.2782044509072952E-13,2.2959046514950977E-15,3.324217685853163E-19,1.8994254503111822E-22,2.0422936932559354E-24,1.3062657817732436E-26,4.1963158144143331E-28,2.8573304583502537E-29,3.4158759805662881E-30,5.1157035897849334E-31,2.8021832103689867E-32,2.5225889677107967E-32,2.5484304146447018E-33,2.1924588676898512E-33,1.891805094580615E-33,1.6327181640177518E-33,1.4132897564927882E-33,1.2168817490278061E-33,1.050871472543376E-33,9.076920590491561E-34,7.8634014315266604E-34,6.7760620754495869E-34,5.8563390869865403E-34,5.06244860002522E-34,4.389104232313129E-34,3.7851585100561129E-34,3.2739501466464713E-34,2.8323279841287299E-34,2.4575016078154194E-34,2.1209719727962562E-34,1.8359202788603451E-34,1.5894767035373852E-34,1.3801658653172627E-34,1.1920576041594559E-34,1.0326163068661978E-34,8.9466447483932386E-35,7.7742088623900195E-35,6.7195331950127767E-35,5.8249987220659522E-35,5.0504503879547681E-35,4.3917464686996023E-35,3.7986509693570841E-35,3.2952885970299777E-35,2.8591252335967107E-35,2.4879629241839801E-35,2.1534646475791886E-35,1.8693975624497373E-35,{"$f":"EXP(BQ81)/(1+EXP(BQ81))","v":1.623078096221911E-35},1.4133389786714344E-35,1.2241497729268031E-35,1.0633862830347312E-35,9.23888532503535E-36,8.050363508197743E-36,6.9773568247520335E-36,6.0650291526359099E-36,5.2728464786456822E-36,4.5975135020442751E-36,3.9872980402854117E-36,3.4681604709096498E-36,3.0170897976546702E-36,2.6250974853261568E-36]
["Monash (C)",null,0.97204239504806067,0.57406624730120737,7.6824822296339993E-3,1.3416594234253181E-3,0.64395617139068639,0.5462807933943381,8.8865596564506003E-2,7.8374299064909822E-2,4.4138529173709643E-4,4.0504887322350254E-4,2.5161978613124122E-2,2.1427386899964741E-2,1.1232275706314445E-3,6.3359508163026592E-5,0.1854747782828092,5.8814795005679918E-2,1.0162928172299432E-2,8.2065060155594636E-4,1.1798731759428248E-4,4.991312631464127E-5,1.4200160733357111E-5,9.0386400986751678E-7,8.8171844521445374E-8,2.1466818183814174E-8,4.4301115431810901E-9,1.5131311264984882E-9,6.5284726314841316E-10,3.3620382069333343E-10,1.8500805060902818E-10,7.4605202078285159E-11,7.2205854452504565E-11,3.546361237667311E-11,3.377835965632187E-11,3.2263990269255202E-11,3.0819497799160248E-11,2.952273790284656E-11,2.8127018727882735E-11,2.6872868505138276E-11,2.5676251923051953E-11,2.4602098124566021E-11,2.3444878709005109E-11,2.2405075892948987E-11,2.1412701398248425E-11,2.0521956344456239E-11,1.9561435770727328E-11,1.8698407915455048E-11,1.7874524459464922E-11,1.7135073695375183E-11,1.6336969074208945E-11,1.5619901644811203E-11,1.4935179126182866E-11,1.4320677420810445E-11,1.3656836023086571E-11,1.3060424865833684E-11,1.2490770586992906E-11,1.1979578339885501E-11,1.1426852711276868E-11,1.093029289386359E-11,1.0455891918429244E-11,1.0030212792779566E-11,9.5695477105491762E-12,9.1557127743464723E-12,8.7602487202202544E-12,8.4054294387786873E-12,8.0211197729218536E-12,7.6758946059181006E-12,{"$f":"EXP(BQ82)/(1+EXP(BQ82))","v":7.345916064475645E-12},7.0498770831128051E-12,6.7289637395178285E-12,6.4407015705714797E-12,6.1651062306860723E-12,5.9178781949609647E-12,5.6496557840893437E-12,5.4087356092056512E-12,5.1783496555396462E-12,4.9716954803089394E-12,4.7473105147189695E-12,4.5457759029194686E-12,4.3530106416197292E-12,4.1686230802530584E-12]
["Port Phillip (C)",null,0.98198040688161925,0.64593852907245253,7.6438056641391491E-3,1.2341395673256296E-3,0.70846673959937112,0.61369493167023559,0.10316253532847089,9.2266206491980224E-2,4.1224762083988739E-4,3.7655375084147727E-4,2.8083979618339156E-2,2.3703238352464878E-2,1.091052669711774E-3,5.412294242259843E-5,0.21110452367240673,6.4637443913501735E-2,1.0334596494636398E-2,7.431026049132196E-4,9.7652994803090469E-5,3.96417998866574E-5,1.0633155178341876E-5,5.9637526460053002E-7,5.2259505567380954E-8,1.1909468394012598E-8,2.2840350982572926E-9,7.4156704176904568E-10,3.0736455598406171E-10,1.5326086110746037E-10,8.1925190980942345E-11,3.1641297974564816E-11,3.0578567373427217E-11,1.454264190012684E-11,1.3822893166121152E-11,1.3175885137811107E-11,1.2560006590011668E-11,1.2006731020975863E-11,1.1415552603605221E-11,1.0884126712883832E-11,1.0378121376656147E-11,9.9235723921652575E-12,9.4374329678419706E-12,9.000435226975916E-12,8.58422227652956E-12,8.210353358133173E-12,7.8101360407806789E-12,7.4503806260152737E-12,7.1076405847019943E-12,6.7997858297213014E-12,6.4699391617753006E-12,6.1734453405514364E-12,5.890897867997168E-12,5.6371228674060815E-12,5.3649792114507371E-12,5.1203586948601835E-12,4.887182524978915E-12,4.6777629990779551E-12,4.4529904974230487E-12,4.25095482439974E-12,4.0583211777212169E-12,3.8853235999234905E-12,3.6994848761836404E-12,3.5324487282806307E-12,3.3731454494824848E-12,3.2300892140468136E-12,3.0762855112087931E-12,2.9380468149134499E-12,{"$f":"EXP(BQ83)/(1+EXP(BQ83))","v":2.8061751590392384E-12},2.6877600469941087E-12,2.5603438533262618E-12,2.4458254403470645E-12,2.336555120879596E-12,2.2384411338443994E-12,2.1327837923968691E-12,2.0378244825072271E-12,1.9471955129029325E-12,1.865824767111625E-12,1.7781282920932732E-12,1.6993137135400494E-12,1.6240758860289111E-12,1.5522484082979506E-12]
["South Gippsland (S)",null,0.9949413650856167,0.71996217209741109,2.6854192311951065E-3,2.6092474239527649E-4,0.79316585928468231,0.6905277609036321,7.2925465238053572E-2,6.1786844416019171E-2,6.0846143365038462E-5,5.5043896439300667E-5,1.3990795954494902E-2,1.1307802250411893E-2,2.2452482324815244E-4,4.9793702131328634E-6,0.16264083828304127,3.3475058213602769E-2,3.1105747869514698E-3,1.0747270045232966E-4,8.088272313323747E-6,2.5692025254502879E-6,4.8153216315099565E-7,1.2226585754345064E-8,5.4880508704100531E-10,8.3404050799881406E-11,1.0184736175360221E-11,2.4339216782584558E-12,7.9445651105466075E-13,3.2808777250841092E-13,1.4829737364515072E-13,4.4229106365446467E-14,4.2341213416871383E-14,1.6379383971446866E-14,1.5363183751651303E-14,1.4451011032422469E-14,1.3594165341635286E-14,1.2824479559162208E-14,1.2032952033850554E-14,1.1322362460826565E-14,1.0654628735593649E-14,1.0054756842998437E-14,9.4373304096385232E-15,8.8829719169852439E-15,8.3618607482819158E-15,7.893664717786912E-15,7.4113595423237269E-15,6.9782698563379197E-15,6.5710123934154197E-15,6.2050753098212933E-15,5.827797264390251E-15,5.4889798486698317E-15,5.1702630932295894E-15,4.8838583147126724E-15,4.5883363282444751E-15,4.3229123297174705E-15,4.0731517885638551E-15,3.8486937126874329E-15,3.6169047269147981E-15,3.4087015324769235E-15,3.21272138107648E-15,3.0365815092189826E-15,2.8545456549912604E-15,2.6910170181361653E-15,2.5370398778137674E-15,{"$f":"EXP(BN84)/(1+EXP(BN84))","v":2.3986404716061498E-15},2.255497855609732E-15,2.1268962838583619E-15,{"$f":"EXP(BQ84)/(1+EXP(BQ84))","v":2.0057686615273523E-15},1.8968877251867431E-15,1.7841898108403332E-15,1.6829312189894817E-15,1.5875286414112838E-15,1.5017660685688052E-15,1.4129308714100915E-15,1.3331060315904966E-15,1.2578754376004481E-15,1.1902422817988164E-15,1.1201348318288271E-15,1.0571330972913541E-15,9.9774025279833149E-16,9.4174559746013844E-16]
["Stonnington (C)",null,{"$f":"EXP(C85)/(1+EXP(C85))","v":0.93256658662093073},0.50260146059707922,1.4936413513443854E-2,3.6815690403263178E-3,0.55823064551608792,0.47640475101658242,0.10692318103424941,9.7244631073311882E-2,1.5195519601815233E-3,1.4046514698866934E-3,3.8103062151457215E-2,3.3427045986300169E-2,3.097967472540911E-3,3.0122559069868199E-4,0.2121665426446851,8.6695341091686182E-2,2.1637945439777685E-2,2.8801418742033166E-3,6.0405447589346572E-4,3.0174288923434032E-4,1.0939587101304358E-4,1.1888164312702474E-5,1.8216190733164444E-6,5.831534719470206E-7,1.6325109789590756E-7,6.8597707930201722E-8,3.4789815337929452E-8,2.0356379508821108E-8,1.255071524672731E-8,6.0282909589927242E-9,5.8717304428479529E-9,3.3145852559498117E-9,3.1854816257459496E-9,3.0700077159607058E-9,2.9588730667800927E-9,2.8597717874835456E-9,2.7489512167027503E-9,2.64984572174385E-9,2.5544423331216419E-9,2.4693875079454874E-9,2.3741735497821059E-9,2.2890382030185446E-9,2.2070645849657771E-9,2.1339986599244512E-9,2.0521201571456169E-9,1.9789201412750748E-9,1.9084230453235663E-9,1.8456001502561648E-9,1.7751277372161868E-9,1.7121347034067059E-9,1.6514546136453812E-9,1.5973917266450486E-9,1.5366846221937839E-9,1.482428948954826E-9,1.4301543974420786E-9,1.3835904219765619E-9,1.3312517889646636E-9,1.2844825319307247E-9,1.2394117617568654E-9,1.1992731913862442E-9,1.1541126369383552E-9,1.1137638889195132E-9,1.0748726434537615E-9,1.0402447182275673E-9,1.0012467541017409E-9,9.6640935501090089E-10,{"$f":"EXP(BQ85)/(1+EXP(BQ85))","v":9.3282378159273521E-10},9.0292622848913989E-10,8.6922371248712294E-10,8.3912142991793123E-10,8.100952588197571E-10,7.8426186349363563E-10,7.5511360899222678E-10,7.2908305944662652E-10,7.039783611289082E-10,6.8163974586446354E-10,6.5641162355972326E-10,6.3388532741598015E-10,6.1215626842840638E-10,5.9119528650083616E-10]
["Whitehorse (C)",null,0.95326760727642668,0.51891330740933517,1.0112058022931306E-2,2.0890979910627569E-3,0.58503011158885865,0.4937453764486785,9.1071675085987486E-2,8.0954593427636376E-2,7.5018604538290817E-4,6.9159125074303481E-4,2.8736211038439936E-2,2.4847345664355251E-2,1.7198891953313649E-3,1.2675815415173094E-4,0.18743602155755032,6.6844169179098856E-2,1.3786698232593809E-2,1.4211571699830232E-3,2.4600416015693537E-4,1.130012732165095E-4,3.6236189750480258E-5,3.0002299567092104E-6,3.6547995121257059E-7,1.0184828811868094E-7,2.4427712698304864E-8,9.2435552839121134E-9,4.3209130320972521E-9,2.3710512759610734E-9,1.3807795890225034E-9,6.071690886176424E-10,5.8948002749057581E-10,3.0994956471998109E-10,2.9651878227499351E-10,2.8446879705541867E-10,2.7292439177783917E-10,2.6258566014754014E-10,2.512655914973108E-10,2.4111024602831859E-10,2.3137849036059471E-10,2.2266431844224108E-10,2.1311353074584687E-10,2.0454621527183484E-10,1.9633419324208161E-10,1.8898188082427964E-10,1.8091582234523457E-10,1.7368102440030401E-10,1.6674456142636244E-10,1.6053514773667477E-10,1.537163864695123E-10,1.4760091982278997E-10,1.4173622911882794E-10,1.3648699277990663E-10,1.3071718050997868E-10,1.2554296474646192E-10,1.2057976820095322E-10,1.1613805151630199E-10,1.1125129927194001E-10,1.0686940776312837E-10,1.0266526334215402E-10,9.8903380182121934E-11,9.4760789861217041E-11,9.1046536745946425E-11,8.748215458105436E-11,8.42931861631365E-11,8.0778330607734491E-11,7.7627210086827132E-11,{"$f":"EXP(BQ86)/(1+EXP(BQ86))","v":7.4602579876714594E-11},7.1896899099427683E-11,6.8912081294919515E-11,6.6236407059116694E-11,6.3667592153245979E-11,6.1369986560095323E-11,5.8833139737712862E-11,5.6559260302562521E-11,5.4375740360048741E-11,5.2423027643663337E-11,5.0265143292386205E-11,4.8331131688258294E-11,4.6473597328747868E-11,4.4689426943996708E-11]
["Yarra Ranges (S)",null,0.9130363321322269,0.4210663389276012,1.1314636830956355E-2,2.7030935517565161E-3,0.48664538877207353,0.40408686219391443,7.89020318134529E-2,6.9362791466660162E-2,9.8921548168691138E-4,9.179102836634782E-4,2.708058691609742E-2,2.3770374624601791E-2,2.0922675503170711E-3,1.9503995090515164E-4,0.16446988556573225,6.3875923706967555E-2,1.526781316914215E-2,1.9477193403207734E-3,3.9718846147879282E-4,1.9647043141353659E-4,7.0084356676799697E-5,7.3116963571670324E-6,1.0831485535746069E-6,3.4027118331698728E-7,9.3231598031637642E-8,3.8658047174264482E-8,1.9420484049808343E-8,1.128800636671592E-8,6.9214333494958107E-9,3.2891999986631704E-9,3.2020597143268785E-9,1.7865295849552379E-9,1.7156514414119094E-9,1.6522159869199074E-9,1.5912101636465654E-9,1.5367630109083501E-9,1.4761052294909624E-9,1.4218248159396251E-9,1.3696110943621224E-9,1.3230203231816888E-9,1.2710606650024527E-9,1.2245706455214103E-9,1.1798404161447655E-9,1.1399353627285575E-9,1.0953859302238412E-9,1.055531885543085E-9,1.0171778221489846E-9,9.8296807326276683E-10,9.4473801468551931E-10,9.1054227556469319E-10,8.7762633318513576E-10,8.4827304219113103E-10,8.1543739129152412E-10,7.8607107068801809E-10,7.5779774185837196E-10,7.3258966145767648E-10,7.0436326967885842E-10,6.7912286794585152E-10,6.5481680476379491E-10,6.3315023538940349E-10,6.0886593684150027E-10,5.8715374763055927E-10,5.6624101350586891E-10,5.4760300672106951E-10,5.2669330602843863E-10,5.080009852034414E-10,{"$f":"EXP(BQ87)/(1+EXP(BQ87))","v":4.899933282900747E-10},4.7394759957923231E-10,4.5592929559436847E-10,4.3982406589247194E-10,4.243057113093544E-10,4.1048081102589483E-10,3.9494207035921223E-10,3.8105512524231881E-10,3.676716695637031E-10,3.5575103834569938E-10,3.4234051570884115E-10,3.3035726046532878E-10,3.1880632303771591E-10,3.0767159596885587E-10]
[]
["LGA S curves (number of new connections)",2020,{"$f":"B111+1","v":2021},2022,2023,2024,2025,2026,2027,2028,2029,2030,2031,2032,2033,2034,2035,2036,2037,2038,2039,2040,2041,2042,2043,2044,2045,2046,2047,2048,2049,2050,2051,2052,2053,2054,2055,2056,2057,2058,2059,2060,2061,2062,2063,2064,2065,2066,2067,2068,2069,2070,2071,2072,2073,2074,2075,2076,2077,2078,2079,2080,2081,2082,2083,2084,{"$f":"BN111+1","v":2085},2086,2087,2088,2089,2090,2091,2092,2093,2094,2095,2096,2097,2098,2099,2100]
["Bass Coast (S)",{"$f":"AVERAGE(CustomersCOM!$H26:$J26)","v":3},{"$f":"MAX(INT(C91*C133)*(1-Scenarios!B159),0)","v":1},{"$f":"MAX(INT(D91*D133)*(1-Scenarios!C159),0)","v":1},{"$f":"MAX(INT(E91*E133)*(1-Scenarios!D159),0)","v":0},{"$f":"MAX(INT(F91*F133)*(1-Scenarios!E159),0)","v":0},{"$f":"MAX(INT(G91*G133)*(1-Scenarios!F159),0)","v":1},{"$f":"MAX(INT(H91*H133)*(1-Scenarios!G159),0)","v":0},{"$f":"MAX(INT(I91*I133)*(1-Scenarios!H159),0)","v":0},{"$f":"MAX(INT(J91*J133)*(1-Scenarios!I159),0)","v":0},{"$f":"MAX(INT(K91*K133)*(1-Scenarios!J159),0)","v":0},{"$f":"MAX(INT(L91*L133)*(1-Scenarios!K159),0)","v":0},{"$f":"MAX(INT(M91*M133)*(1-Scenarios!L159),0)","v":0},{"$f":"MAX(INT(N91*N133)*(1-Scenarios!M159),0)","v":0},{"$f":"MAX(INT(O91*O133)*(1-Scenarios!N159),0)","v":0},{"$f":"MAX(INT(P91*P133)*(1-Scenarios!O159),0)","v":0},{"$f":"MAX(INT(Q91*Q133)*(1-Scenarios!P159),0)","v":0},{"$f":"MAX(INT(R91*R133)*(1-Scenarios!Q159),0)","v":0},{"$f":"MAX(INT(S91*S133)*(1-Scenarios!R159),0)","v":0},{"$f":"MAX(INT(T91*T133)*(1-Scenarios!S159),0)","v":0},{"$f":"MAX(INT(U91*U133)*(1-Scenarios!T159),0)","v":0},{"$f":"MAX(INT(V91*V133)*(1-Scenarios!U159),0)","v":0},{"$f":"MAX(INT(W91*W133)*(1-Scenarios!V159),0)","v":0},{"$f":"MAX(INT(X91*X133)*(1-Scenarios!W159),0)","v":0},{"$f":"MAX(INT(Y91*Y133)*(1-Scenarios!X159),0)","v":0},{"$f":"MAX(INT(Z91*Z133)*(1-Scenarios!Y159),0)","v":0},{"$f":"MAX(INT(AA91*AA133)*(1-Scenarios!Z159),0)","v":0},{"$f":"MAX(INT(AB91*AB133)*(1-Scenarios!AA159),0)","v":0},{"$f":"MAX(INT(AC91*AC133)*(1-Scenarios!AB159),0)","v":0},{"$f":"MAX(INT(AD91*AD133)*(1-Scenarios!AC159),0)","v":0},{"$f":"MAX(INT(AE91*AE133)*(1-Scenarios!AD159),0)","v":0},{"$f":"MAX(INT(AF91*AF133)*(1-Scenarios!AE159),0)","v":0},{"$f":"MAX(INT(AG91*AG133)*(1-Scenarios!AF159),0)","v":0},{"$f":"MAX(INT(AH91*AH133)*(1-Scenarios!AG159),0)","v":0},{"$f":"MAX(INT(AI91*AI133)*(1-Scenarios!AH159),0)","v":0},{"$f":"MAX(INT(AJ91*AJ133)*(1-Scenarios!AI159),0)","v":0},{"$f":"MAX(INT(AK91*AK133)*(1-Scenarios!AJ159),0)","v":0},{"$f":"MAX(INT(AL91*AL133)*(1-Scenarios!AK159),0)","v":0},{"$f":"MAX(INT(AM91*AM133)*(1-Scenarios!AL159),0)","v":0},{"$f":"MAX(INT(AN91*AN133)*(1-Scenarios!AM159),0)","v":0},{"$f":"MAX(INT(AO91*AO133)*(1-Scenarios!AN159),0)","v":0},{"$f":"MAX(INT(AP91*AP133)*(1-Scenarios!AO159),0)","v":0},{"$f":"MAX(INT(AQ91*AQ133)*(1-Scenarios!AP159),0)","v":0},{"$f":"MAX(INT(AR91*AR133)*(1-Scenarios!AQ159),0)","v":0},{"$f":"MAX(INT(AS91*AS133)*(1-Scenarios!AR159),0)","v":0},{"$f":"MAX(INT(AT91*AT133)*(1-Scenarios!AS159),0)","v":0},{"$f":"MAX(INT(AU91*AU133)*(1-Scenarios!AT159),0)","v":0},{"$f":"MAX(INT(AV91*AV133)*(1-Scenarios!AU159),0)","v":0},{"$f":"MAX(INT(AW91*AW133)*(1-Scenarios!AV159),0)","v":0},{"$f":"MAX(INT(AX91*AX133)*(1-Scenarios!AW159),0)","v":0},{"$f":"MAX(INT(AY91*AY133)*(1-Scenarios!AX159),0)","v":0},{"$f":"MAX(INT(AZ91*AZ133)*(1-Scenarios!AY159),0)","v":0},{"$f":"MAX(INT(BA91*BA133)*(1-Scenarios!AZ159),0)","v":0},{"$f":"MAX(INT(BB91*BB133)*(1-Scenarios!BA159),0)","v":0},{"$f":"MAX(INT(BC91*BC133)*(1-Scenarios!BB159),0)","v":0},{"$f":"MAX(INT(BD91*BD133)*(1-Scenarios!BC159),0)","v":0},{"$f":"MAX(INT(BE91*BE133)*(1-Scenarios!BD159),0)","v":0},{"$f":"MAX(INT(BF91*BF133)*(1-Scenarios!BE159),0)","v":0},{"$f":"MAX(INT(BG91*BG133)*(1-Scenarios!BF159),0)","v":0},{"$f":"MAX(INT(BH91*BH133)*(1-Scenarios!BG159),0)","v":0},{"$f":"MAX(INT(BI91*BI133)*(1-Scenarios!BH159),0)","v":0},{"$f":"MAX(INT(BJ91*BJ133)*(1-Scenarios!BI159),0)","v":0},{"$f":"MAX(INT(BK91*BK133)*(1-Scenarios!BJ159),0)","v":0},{"$f":"MAX(INT(BL91*BL133)*(1-Scenarios!BK159),0)","v":0},{"$f":"MAX(INT(BM91*BM133)*(1-Scenarios!BL159),0)","v":0},{"$f":"MAX(INT(BN91*BN133)*(1-Scenarios!BM159),0)","v":0},{"$f":"MAX(INT(BO91*BO133)*(1-Scenarios!BN159),0)","v":0},{"$f":"MAX(INT(BP91*BP133)*(1-Scenarios!BO159),0)","v":0},{"$f":"MAX(INT(BQ91*BQ133)*(1-Scenarios!BP159),0)","v":0},{"$f":"MAX(INT(BR91*BR133)*(1-Scenarios!BQ159),0)","v":0},{"$f":"MAX(INT(BS91*BS133)*(1-Scenarios!BR159),0)","v":0},{"$f":"MAX(INT(BT91*BT133)*(1-Scenarios!BS159),0)","v":0},{"$f":"MAX(INT(BU91*BU133)*(1-Scenarios!BT159),0)","v":0},{"$f":"MAX(INT(BV91*BV133)*(1-Scenarios!BU159),0)","v":0},{"$f":"MAX(INT(BW91*BW133)*(1-Scenarios!BV159),0)","v":0},{"$f":"MAX(INT(BX91*BX133)*(1-Scenarios!BW159),0)","v":0},{"$f":"MAX(INT(BY91*BY133)*(1-Scenarios!BX159),0)","v":0},{"$f":"MAX(INT(BZ91*BZ133)*(1-Scenarios!BY159),0)","v":0},{"$f":"MAX(INT(CA91*CA133)*(1-Scenarios!BZ159),0)","v":0},{"$f":"MAX(INT(CB91*CB133)*(1-Scenarios!CA159),0)","v":0},{"$f":"MAX(INT(CC91*CC133)*(1-Scenarios!CB159),0)","v":0},{"$f":"MAX(INT(CD91*CD133)*(1-Scenarios!CC159),0)","v":0}]
["Bayside (C)",{"$f":"AVERAGE(CustomersCOM!$H27:$J27)","v":13.666666666666666},{"$f":"MAX(INT(C92*C134)*(1-Scenarios!B160),0)","v":12},{"$f":"MAX(INT(D92*D134)*(1-Scenarios!C160),0)","v":5},{"$f":"MAX(INT(E92*E134)*(1-Scenarios!D160),0)","v":0},{"$f":"MAX(INT(F92*F134)*(1-Scenarios!E160),0)","v":0},{"$f":"MAX(INT(G92*G134)*(1-Scenarios!F160),0)","v":5},{"$f":"MAX(INT(H92*H134)*(1-Scenarios!G160),0)","v":4},{"$f":"MAX(INT(I92*I134)*(1-Scenarios!H160),0)","v":1},{"$f":"MAX(INT(J92*J134)*(1-Scenarios!I160),0)","v":1},{"$f":"MAX(INT(K92*K134)*(1-Scenarios!J160),0)","v":0},{"$f":"MAX(INT(L92*L134)*(1-Scenarios!K160),0)","v":0},{"$f":"MAX(INT(M92*M134)*(1-Scenarios!L160),0)","v":0},{"$f":"MAX(INT(N92*N134)*(1-Scenarios!M160),0)","v":0},{"$f":"MAX(INT(O92*O134)*(1-Scenarios!N160),0)","v":0},{"$f":"MAX(INT(P92*P134)*(1-Scenarios!O160),0)","v":0},{"$f":"MAX(INT(Q92*Q134)*(1-Scenarios!P160),0)","v":0},{"$f":"MAX(INT(R92*R134)*(1-Scenarios!Q160),0)","v":0},{"$f":"MAX(INT(S92*S134)*(1-Scenarios!R160),0)","v":0},{"$f":"MAX(INT(T92*T134)*(1-Scenarios!S160),0)","v":0},{"$f":"MAX(INT(U92*U134)*(1-Scenarios!T160),0)","v":0},{"$f":"MAX(INT(V92*V134)*(1-Scenarios!U160),0)","v":0},{"$f":"MAX(INT(W92*W134)*(1-Scenarios!V160),0)","v":0},{"$f":"MAX(INT(X92*X134)*(1-Scenarios!W160),0)","v":0},{"$f":"MAX(INT(Y92*Y134)*(1-Scenarios!X160),0)","v":0},{"$f":"MAX(INT(Z92*Z134)*(1-Scenarios!Y160),0)","v":0},{"$f":"MAX(INT(AA92*AA134)*(1-Scenarios!Z160),0)","v":0},{"$f":"MAX(INT(AB92*AB134)*(1-Scenarios!AA160),0)","v":0},{"$f":"MAX(INT(AC92*AC134)*(1-Scenarios!AB160),0)","v":0},{"$f":"MAX(INT(AD92*AD134)*(1-Scenarios!AC160),0)","v":0},{"$f":"MAX(INT(AE92*AE134)*(1-Scenarios!AD160),0)","v":0},{"$f":"MAX(INT(AF92*AF134)*(1-Scenarios!AE160),0)","v":0},{"$f":"MAX(INT(AG92*AG134)*(1-Scenarios!AF160),0)","v":0},{"$f":"MAX(INT(AH92*AH134)*(1-Scenarios!AG160),0)","v":0},{"$f":"MAX(INT(AI92*AI134)*(1-Scenarios!AH160),0)","v":0},{"$f":"MAX(INT(AJ92*AJ134)*(1-Scenarios!AI160),0)","v":0},{"$f":"MAX(INT(AK92*AK134)*(1-Scenarios!AJ160),0)","v":0},{"$f":"MAX(INT(AL92*AL134)*(1-Scenarios!AK160),0)","v":0},{"$f":"MAX(INT(AM92*AM134)*(1-Scenarios!AL160),0)","v":0},{"$f":"MAX(INT(AN92*AN134)*(1-Scenarios!AM160),0)","v":0},{"$f":"MAX(INT(AO92*AO134)*(1-Scenarios!AN160),0)","v":0},{"$f":"MAX(INT(AP92*AP134)*(1-Scenarios!AO160),0)","v":0},{"$f":"MAX(INT(AQ92*AQ134)*(1-Scenarios!AP160),0)","v":0},{"$f":"MAX(INT(AR92*AR134)*(1-Scenarios!AQ160),0)","v":0},{"$f":"MAX(INT(AS92*AS134)*(1-Scenarios!AR160),0)","v":0},{"$f":"MAX(INT(AT92*AT134)*(1-Scenarios!AS160),0)","v":0},{"$f":"MAX(INT(AU92*AU134)*(1-Scenarios!AT160),0)","v":0},{"$f":"MAX(INT(AV92*AV134)*(1-Scenarios!AU160),0)","v":0},{"$f":"MAX(INT(AW92*AW134)*(1-Scenarios!AV160),0)","v":0},{"$f":"MAX(INT(AX92*AX134)*(1-Scenarios!AW160),0)","v":0},{"$f":"MAX(INT(AY92*AY134)*(1-Scenarios!AX160),0)","v":0},{"$f":"MAX(INT(AZ92*AZ134)*(1-Scenarios!AY160),0)","v":0},{"$f":"MAX(INT(BA92*BA134)*(1-Scenarios!AZ160),0)","v":0},{"$f":"MAX(INT(BB92*BB134)*(1-Scenarios!BA160),0)","v":0},{"$f":"MAX(INT(BC92*BC134)*(1-Scenarios!BB160),0)","v":0},{"$f":"MAX(INT(BD92*BD134)*(1-Scenarios!BC160),0)","v":0},{"$f":"MAX(INT(BE92*BE134)*(1-Scenarios!BD160),0)","v":0},{"$f":"MAX(INT(BF92*BF134)*(1-Scenarios!BE160),0)","v":0},{"$f":"MAX(INT(BG92*BG134)*(1-Scenarios!BF160),0)","v":0},{"$f":"MAX(INT(BH92*BH134)*(1-Scenarios!BG160),0)","v":0},{"$f":"MAX(INT(BI92*BI134)*(1-Scenarios!BH160),0)","v":0},{"$f":"MAX(INT(BJ92*BJ134)*(1-Scenarios!BI160),0)","v":0},{"$f":"MAX(INT(BK92*BK134)*(1-Scenarios!BJ160),0)","v":0},{"$f":"MAX(INT(BL92*BL134)*(1-Scenarios!BK160),0)","v":0},{"$f":"MAX(INT(BM92*BM134)*(1-Scenarios!BL160),0)","v":0},{"$f":"MAX(INT(BN92*BN134)*(1-Scenarios!BM160),0)","v":0},{"$f":"MAX(INT(BO92*BO134)*(1-Scenarios!BN160),0)","v":0},{"$f":"MAX(INT(BP92*BP134)*(1-Scenarios!BO160),0)","v":0},{"$f":"MAX(INT(BQ92*BQ134)*(1-Scenarios!BP160),0)","v":0},{"$f":"MAX(INT(BR92*BR134)*(1-Scenarios!BQ160),0)","v":0},{"$f":"MAX(INT(BS92*BS134)*(1-Scenarios!BR160),0)","v":0},{"$f":"MAX(INT(BT92*BT134)*(1-Scenarios!BS160),0)","v":0},{"$f":"MAX(INT(BU92*BU134)*(1-Scenarios!BT160),0)","v":0},{"$f":"MAX(INT(BV92*BV134)*(1-Scenarios!BU160),0)","v":0},{"$f":"MAX(INT(BW92*BW134)*(1-Scenarios!BV160),0)","v":0},{"$f":"MAX(INT(BX92*BX134)*(1-Scenarios!BW160),0)","v":0},{"$f":"MAX(INT(BY92*BY134)*(1-Scenarios!BX160),0)","v":0},{"$f":"MAX(INT(BZ92*BZ134)*(1-Scenarios!BY160),0)","v":0},{"$f":"MAX(INT(CA92*CA134)*(1-Scenarios!BZ160),0)","v":0},{"$f":"MAX(INT(CB92*CB134)*(1-Scenarios!CA160),0)","v":0},{"$f":"MAX(INT(CC92*CC134)*(1-Scenarios!CB160),0)","v":0},{"$f":"MAX(INT(CD92*CD134)*(1-Scenarios!CC160),0)","v":0}]
["Boroondara (C)",{"$f":"AVERAGE(CustomersCOM!$H28:$J28)","v":42.666666666666664},{"$f":"MAX(INT(C93*C135)*(1-Scenarios!B161),0)","v":26},{"$f":"MAX(INT(D93*D135)*(1-Scenarios!C161),0)","v":13},{"$f":"MAX(INT(E93*E135)*(1-Scenarios!D161),0)","v":0},{"$f":"MAX(INT(F93*F135)*(1-Scenarios!E161),0)","v":0},{"$f":"MAX(INT(G93*G135)*(1-Scenarios!F161),0)","v":12},{"$f":"MAX(INT(H93*H135)*(1-Scenarios!G161),0)","v":10},{"$f":"MAX(INT(I93*I135)*(1-Scenarios!H161),0)","v":2},{"$f":"MAX(INT(J93*J135)*(1-Scenarios!I161),0)","v":2},{"$f":"MAX(INT(K93*K135)*(1-Scenarios!J161),0)","v":0},{"$f":"MAX(INT(L93*L135)*(1-Scenarios!K161),0)","v":0},{"$f":"MAX(INT(M93*M135)*(1-Scenarios!L161),0)","v":0},{"$f":"MAX(INT(N93*N135)*(1-Scenarios!M161),0)","v":0},{"$f":"MAX(INT(O93*O135)*(1-Scenarios!N161),0)","v":0},{"$f":"MAX(INT(P93*P135)*(1-Scenarios!O161),0)","v":0},{"$f":"MAX(INT(Q93*Q135)*(1-Scenarios!P161),0)","v":0},{"$f":"MAX(INT(R93*R135)*(1-Scenarios!Q161),0)","v":0},{"$f":"MAX(INT(S93*S135)*(1-Scenarios!R161),0)","v":0},{"$f":"MAX(INT(T93*T135)*(1-Scenarios!S161),0)","v":0},{"$f":"MAX(INT(U93*U135)*(1-Scenarios!T161),0)","v":0},{"$f":"MAX(INT(V93*V135)*(1-Scenarios!U161),0)","v":0},{"$f":"MAX(INT(W93*W135)*(1-Scenarios!V161),0)","v":0},{"$f":"MAX(INT(X93*X135)*(1-Scenarios!W161),0)","v":0},{"$f":"MAX(INT(Y93*Y135)*(1-Scenarios!X161),0)","v":0},{"$f":"MAX(INT(Z93*Z135)*(1-Scenarios!Y161),0)","v":0},{"$f":"MAX(INT(AA93*AA135)*(1-Scenarios!Z161),0)","v":0},{"$f":"MAX(INT(AB93*AB135)*(1-Scenarios!AA161),0)","v":0},{"$f":"MAX(INT(AC93*AC135)*(1-Scenarios!AB161),0)","v":0},{"$f":"MAX(INT(AD93*AD135)*(1-Scenarios!AC161),0)","v":0},{"$f":"MAX(INT(AE93*AE135)*(1-Scenarios!AD161),0)","v":0},{"$f":"MAX(INT(AF93*AF135)*(1-Scenarios!AE161),0)","v":0},{"$f":"MAX(INT(AG93*AG135)*(1-Scenarios!AF161),0)","v":0},{"$f":"MAX(INT(AH93*AH135)*(1-Scenarios!AG161),0)","v":0},{"$f":"MAX(INT(AI93*AI135)*(1-Scenarios!AH161),0)","v":0},{"$f":"MAX(INT(AJ93*AJ135)*(1-Scenarios!AI161),0)","v":0},{"$f":"MAX(INT(AK93*AK135)*(1-Scenarios!AJ161),0)","v":0},{"$f":"MAX(INT(AL93*AL135)*(1-Scenarios!AK161),0)","v":0},{"$f":"MAX(INT(AM93*AM135)*(1-Scenarios!AL161),0)","v":0},{"$f":"MAX(INT(AN93*AN135)*(1-Scenarios!AM161),0)","v":0},{"$f":"MAX(INT(AO93*AO135)*(1-Scenarios!AN161),0)","v":0},{"$f":"MAX(INT(AP93*AP135)*(1-Scenarios!AO161),0)","v":0},{"$f":"MAX(INT(AQ93*AQ135)*(1-Scenarios!AP161),0)","v":0},{"$f":"MAX(INT(AR93*AR135)*(1-Scenarios!AQ161),0)","v":0},{"$f":"MAX(INT(AS93*AS135)*(1-Scenarios!AR161),0)","v":0},{"$f":"MAX(INT(AT93*AT135)*(1-Scenarios!AS161),0)","v":0},{"$f":"MAX(INT(AU93*AU135)*(1-Scenarios!AT161),0)","v":0},{"$f":"MAX(INT(AV93*AV135)*(1-Scenarios!AU161),0)","v":0},{"$f":"MAX(INT(AW93*AW135)*(1-Scenarios!AV161),0)","v":0},{"$f":"MAX(INT(AX93*AX135)*(1-Scenarios!AW161),0)","v":0},{"$f":"MAX(INT(AY93*AY135)*(1-Scenarios!AX161),0)","v":0},{"$f":"MAX(INT(AZ93*AZ135)*(1-Scenarios!AY161),0)","v":0},{"$f":"MAX(INT(BA93*BA135)*(1-Scenarios!AZ161),0)","v":0},{"$f":"MAX(INT(BB93*BB135)*(1-Scenarios!BA161),0)","v":0},{"$f":"MAX(INT(BC93*BC135)*(1-Scenarios!BB161),0)","v":0},{"$f":"MAX(INT(BD93*BD135)*(1-Scenarios!BC161),0)","v":0},{"$f":"MAX(INT(BE93*BE135)*(1-Scenarios!BD161),0)","v":0},{"$f":"MAX(INT(BF93*BF135)*(1-Scenarios!BE161),0)","v":0},{"$f":"MAX(INT(BG93*BG135)*(1-Scenarios!BF161),0)","v":0},{"$f":"MAX(INT(BH93*BH135)*(1-Scenarios!BG161),0)","v":0},{"$f":"MAX(INT(BI93*BI135)*(1-Scenarios!BH161),0)","v":0},{"$f":"MAX(INT(BJ93*BJ135)*(1-Scenarios!BI161),0)","v":0},{"$f":"MAX(INT(BK93*BK135)*(1-Scenarios!BJ161),0)","v":0},{"$f":"MAX(INT(BL93*BL135)*(1-Scenarios!BK161),0)","v":0},{"$f":"MAX(INT(BM93*BM135)*(1-Scenarios!BL161),0)","v":0},{"$f":"MAX(INT(BN93*BN135)*(1-Scenarios!BM161),0)","v":0},{"$f":"MAX(INT(BO93*BO135)*(1-Scenarios!BN161),0)","v":0},{"$f":"MAX(INT(BP93*BP135)*(1-Scenarios!BO161),0)","v":0},{"$f":"MAX(INT(BQ93*BQ135)*(1-Scenarios!BP161),0)","v":0},{"$f":"MAX(INT(BR93*BR135)*(1-Scenarios!BQ161),0)","v":0},{"$f":"MAX(INT(BS93*BS135)*(1-Scenarios!BR161),0)","v":0},{"$f":"MAX(INT(BT93*BT135)*(1-Scenarios!BS161),0)","v":0},{"$f":"MAX(INT(BU93*BU135)*(1-Scenarios!BT161),0)","v":0},{"$f":"MAX(INT(BV93*BV135)*(1-Scenarios!BU161),0)","v":0},{"$f":"MAX(INT(BW93*BW135)*(1-Scenarios!BV161),0)","v":0},{"$f":"MAX(INT(BX93*BX135)*(1-Scenarios!BW161),0)","v":0},{"$f":"MAX(INT(BY93*BY135)*(1-Scenarios!BX161),0)","v":0},{"$f":"MAX(INT(BZ93*BZ135)*(1-Scenarios!BY161),0)","v":0},{"$f":"MAX(INT(CA93*CA135)*(1-Scenarios!BZ161),0)","v":0},{"$f":"MAX(INT(CB93*CB135)*(1-Scenarios!CA161),0)","v":0},{"$f":"MAX(INT(CC93*CC135)*(1-Scenarios!CB161),0)","v":0},{"$f":"MAX(INT(CD93*CD135)*(1-Scenarios!CC161),0)","v":0}]
["Cardinia (S)",{"$f":"AVERAGE(CustomersCOM!$H29:$J29)","v":1.6666666666666667},{"$f":"MAX(INT(C94*C136)*(1-Scenarios!B162),0)","v":1},{"$f":"MAX(INT(D94*D136)*(1-Scenarios!C162),0)","v":0},{"$f":"MAX(INT(E94*E136)*(1-Scenarios!D162),0)","v":0},{"$f":"MAX(INT(F94*F136)*(1-Scenarios!E162),0)","v":0},{"$f":"MAX(INT(G94*G136)*(1-Scenarios!F162),0)","v":0},{"$f":"MAX(INT(H94*H136)*(1-Scenarios!G162),0)","v":0},{"$f":"MAX(INT(I94*I136)*(1-Scenarios!H162),0)","v":0},{"$f":"MAX(INT(J94*J136)*(1-Scenarios!I162),0)","v":0},{"$f":"MAX(INT(K94*K136)*(1-Scenarios!J162),0)","v":0},{"$f":"MAX(INT(L94*L136)*(1-Scenarios!K162),0)","v":0},{"$f":"MAX(INT(M94*M136)*(1-Scenarios!L162),0)","v":0},{"$f":"MAX(INT(N94*N136)*(1-Scenarios!M162),0)","v":0},{"$f":"MAX(INT(O94*O136)*(1-Scenarios!N162),0)","v":0},{"$f":"MAX(INT(P94*P136)*(1-Scenarios!O162),0)","v":0},{"$f":"MAX(INT(Q94*Q136)*(1-Scenarios!P162),0)","v":0},{"$f":"MAX(INT(R94*R136)*(1-Scenarios!Q162),0)","v":0},{"$f":"MAX(INT(S94*S136)*(1-Scenarios!R162),0)","v":0},{"$f":"MAX(INT(T94*T136)*(1-Scenarios!S162),0)","v":0},{"$f":"MAX(INT(U94*U136)*(1-Scenarios!T162),0)","v":0},{"$f":"MAX(INT(V94*V136)*(1-Scenarios!U162),0)","v":0},{"$f":"MAX(INT(W94*W136)*(1-Scenarios!V162),0)","v":0},{"$f":"MAX(INT(X94*X136)*(1-Scenarios!W162),0)","v":0},{"$f":"MAX(INT(Y94*Y136)*(1-Scenarios!X162),0)","v":0},{"$f":"MAX(INT(Z94*Z136)*(1-Scenarios!Y162),0)","v":0},{"$f":"MAX(INT(AA94*AA136)*(1-Scenarios!Z162),0)","v":0},{"$f":"MAX(INT(AB94*AB136)*(1-Scenarios!AA162),0)","v":0},{"$f":"MAX(INT(AC94*AC136)*(1-Scenarios!AB162),0)","v":0},{"$f":"MAX(INT(AD94*AD136)*(1-Scenarios!AC162),0)","v":0},{"$f":"MAX(INT(AE94*AE136)*(1-Scenarios!AD162),0)","v":0},{"$f":"MAX(INT(AF94*AF136)*(1-Scenarios!AE162),0)","v":0},{"$f":"MAX(INT(AG94*AG136)*(1-Scenarios!AF162),0)","v":0},{"$f":"MAX(INT(AH94*AH136)*(1-Scenarios!AG162),0)","v":0},{"$f":"MAX(INT(AI94*AI136)*(1-Scenarios!AH162),0)","v":0},{"$f":"MAX(INT(AJ94*AJ136)*(1-Scenarios!AI162),0)","v":0},{"$f":"MAX(INT(AK94*AK136)*(1-Scenarios!AJ162),0)","v":0},{"$f":"MAX(INT(AL94*AL136)*(1-Scenarios!AK162),0)","v":0},{"$f":"MAX(INT(AM94*AM136)*(1-Scenarios!AL162),0)","v":0},{"$f":"MAX(INT(AN94*AN136)*(1-Scenarios!AM162),0)","v":0},{"$f":"MAX(INT(AO94*AO136)*(1-Scenarios!AN162),0)","v":0},{"$f":"MAX(INT(AP94*AP136)*(1-Scenarios!AO162),0)","v":0},{"$f":"MAX(INT(AQ94*AQ136)*(1-Scenarios!AP162),0)","v":0},{"$f":"MAX(INT(AR94*AR136)*(1-Scenarios!AQ162),0)","v":0},{"$f":"MAX(INT(AS94*AS136)*(1-Scenarios!AR162),0)","v":0},{"$f":"MAX(INT(AT94*AT136)*(1-Scenarios!AS162),0)","v":0},{"$f":"MAX(INT(AU94*AU136)*(1-Scenarios!AT162),0)","v":0},{"$f":"MAX(INT(AV94*AV136)*(1-Scenarios!AU162),0)","v":0},{"$f":"MAX(INT(AW94*AW136)*(1-Scenarios!AV162),0)","v":0},{"$f":"MAX(INT(AX94*AX136)*(1-Scenarios!AW162),0)","v":0},{"$f":"MAX(INT(AY94*AY136)*(1-Scenarios!AX162),0)","v":0},{"$f":"MAX(INT(AZ94*AZ136)*(1-Scenarios!AY162),0)","v":0},{"$f":"MAX(INT(BA94*BA136)*(1-Scenarios!AZ162),0)","v":0},{"$f":"MAX(INT(BB94*BB136)*(1-Scenarios!BA162),0)","v":0},{"$f":"MAX(INT(BC94*BC136)*(1-Scenarios!BB162),0)","v":0},{"$f":"MAX(INT(BD94*BD136)*(1-Scenarios!BC162),0)","v":0},{"$f":"MAX(INT(BE94*BE136)*(1-Scenarios!BD162),0)","v":0},{"$f":"MAX(INT(BF94*BF136)*(1-Scenarios!BE162),0)","v":0},{"$f":"MAX(INT(BG94*BG136)*(1-Scenarios!BF162),0)","v":0},{"$f":"MAX(INT(BH94*BH136)*(1-Scenarios!BG162),0)","v":0},{"$f":"MAX(INT(BI94*BI136)*(1-Scenarios!BH162),0)","v":0},{"$f":"MAX(INT(BJ94*BJ136)*(1-Scenarios!BI162),0)","v":0},{"$f":"MAX(INT(BK94*BK136)*(1-Scenarios!BJ162),0)","v":0},{"$f":"MAX(INT(BL94*BL136)*(1-Scenarios!BK162),0)","v":0},{"$f":"MAX(INT(BM94*BM136)*(1-Scenarios!BL162),0)","v":0},{"$f":"MAX(INT(BN94*BN136)*(1-Scenarios!BM162),0)","v":0},{"$f":"MAX(INT(BO94*BO136)*(1-Scenarios!BN162),0)","v":0},{"$f":"MAX(INT(BP94*BP136)*(1-Scenarios!BO162),0)","v":0},{"$f":"MAX(INT(BQ94*BQ136)*(1-Scenarios!BP162),0)","v":0},{"$f":"MAX(INT(BR94*BR136)*(1-Scenarios!BQ162),0)","v":0},{"$f":"MAX(INT(BS94*BS136)*(1-Scenarios!BR162),0)","v":0},{"$f":"MAX(INT(BT94*BT136)*(1-Scenarios!BS162),0)","v":0},{"$f":"MAX(INT(BU94*BU136)*(1-Scenarios!BT162),0)","v":0},{"$f":"MAX(INT(BV94*BV136)*(1-Scenarios!BU162),0)","v":0},{"$f":"MAX(INT(BW94*BW136)*(1-Scenarios!BV162),0)","v":0},{"$f":"MAX(INT(BX94*BX136)*(1-Scenarios!BW162),0)","v":0},{"$f":"MAX(INT(BY94*BY136)*(1-Scenarios!BX162),0)","v":0},{"$f":"MAX(INT(BZ94*BZ136)*(1-Scenarios!BY162),0)","v":0},{"$f":"MAX(INT(CA94*CA136)*(1-Scenarios!BZ162),0)","v":0},{"$f":"MAX(INT(CB94*CB136)*(1-Scenarios!CA162),0)","v":0},{"$f":"MAX(INT(CC94*CC136)*(1-Scenarios!CB162),0)","v":0},{"$f":"MAX(INT(CD94*CD136)*(1-Scenarios!CC162),0)","v":0}]
["Casey (C)",{"$f":"AVERAGE(CustomersCOM!$H30:$J30)","v":5.666666666666667},{"$f":"MAX(INT(C95*C137)*(1-Scenarios!B163),0)","v":2},{"$f":"MAX(INT(D95*D137)*(1-Scenarios!C163),0)","v":1},{"$f":"MAX(INT(E95*E137)*(1-Scenarios!D163),0)","v":0},{"$f":"MAX(INT(F95*F137)*(1-Scenarios!E163),0)","v":0},{"$f":"MAX(INT(G95*G137)*(1-Scenarios!F163),0)","v":0},{"$f":"MAX(INT(H95*H137)*(1-Scenarios!G163),0)","v":0},{"$f":"MAX(INT(I95*I137)*(1-Scenarios!H163),0)","v":0},{"$f":"MAX(INT(J95*J137)*(1-Scenarios!I163),0)","v":0},{"$f":"MAX(INT(K95*K137)*(1-Scenarios!J163),0)","v":0},{"$f":"MAX(INT(L95*L137)*(1-Scenarios!K163),0)","v":0},{"$f":"MAX(INT(M95*M137)*(1-Scenarios!L163),0)","v":0},{"$f":"MAX(INT(N95*N137)*(1-Scenarios!M163),0)","v":0},{"$f":"MAX(INT(O95*O137)*(1-Scenarios!N163),0)","v":0},{"$f":"MAX(INT(P95*P137)*(1-Scenarios!O163),0)","v":0},{"$f":"MAX(INT(Q95*Q137)*(1-Scenarios!P163),0)","v":0},{"$f":"MAX(INT(R95*R137)*(1-Scenarios!Q163),0)","v":0},{"$f":"MAX(INT(S95*S137)*(1-Scenarios!R163),0)","v":0},{"$f":"MAX(INT(T95*T137)*(1-Scenarios!S163),0)","v":0},{"$f":"MAX(INT(U95*U137)*(1-Scenarios!T163),0)","v":0},{"$f":"MAX(INT(V95*V137)*(1-Scenarios!U163),0)","v":0},{"$f":"MAX(INT(W95*W137)*(1-Scenarios!V163),0)","v":0},{"$f":"MAX(INT(X95*X137)*(1-Scenarios!W163),0)","v":0},{"$f":"MAX(INT(Y95*Y137)*(1-Scenarios!X163),0)","v":0},{"$f":"MAX(INT(Z95*Z137)*(1-Scenarios!Y163),0)","v":0},{"$f":"MAX(INT(AA95*AA137)*(1-Scenarios!Z163),0)","v":0},{"$f":"MAX(INT(AB95*AB137)*(1-Scenarios!AA163),0)","v":0},{"$f":"MAX(INT(AC95*AC137)*(1-Scenarios!AB163),0)","v":0},{"$f":"MAX(INT(AD95*AD137)*(1-Scenarios!AC163),0)","v":0},{"$f":"MAX(INT(AE95*AE137)*(1-Scenarios!AD163),0)","v":0},{"$f":"MAX(INT(AF95*AF137)*(1-Scenarios!AE163),0)","v":0},{"$f":"MAX(INT(AG95*AG137)*(1-Scenarios!AF163),0)","v":0},{"$f":"MAX(INT(AH95*AH137)*(1-Scenarios!AG163),0)","v":0},{"$f":"MAX(INT(AI95*AI137)*(1-Scenarios!AH163),0)","v":0},{"$f":"MAX(INT(AJ95*AJ137)*(1-Scenarios!AI163),0)","v":0},{"$f":"MAX(INT(AK95*AK137)*(1-Scenarios!AJ163),0)","v":0},{"$f":"MAX(INT(AL95*AL137)*(1-Scenarios!AK163),0)","v":0},{"$f":"MAX(INT(AM95*AM137)*(1-Scenarios!AL163),0)","v":0},{"$f":"MAX(INT(AN95*AN137)*(1-Scenarios!AM163),0)","v":0},{"$f":"MAX(INT(AO95*AO137)*(1-Scenarios!AN163),0)","v":0},{"$f":"MAX(INT(AP95*AP137)*(1-Scenarios!AO163),0)","v":0},{"$f":"MAX(INT(AQ95*AQ137)*(1-Scenarios!AP163),0)","v":0},{"$f":"MAX(INT(AR95*AR137)*(1-Scenarios!AQ163),0)","v":0},{"$f":"MAX(INT(AS95*AS137)*(1-Scenarios!AR163),0)","v":0},{"$f":"MAX(INT(AT95*AT137)*(1-Scenarios!AS163),0)","v":0},{"$f":"MAX(INT(AU95*AU137)*(1-Scenarios!AT163),0)","v":0},{"$f":"MAX(INT(AV95*AV137)*(1-Scenarios!AU163),0)","v":0},{"$f":"MAX(INT(AW95*AW137)*(1-Scenarios!AV163),0)","v":0},{"$f":"MAX(INT(AX95*AX137)*(1-Scenarios!AW163),0)","v":0},{"$f":"MAX(INT(AY95*AY137)*(1-Scenarios!AX163),0)","v":0},{"$f":"MAX(INT(AZ95*AZ137)*(1-Scenarios!AY163),0)","v":0},{"$f":"MAX(INT(BA95*BA137)*(1-Scenarios!AZ163),0)","v":0},{"$f":"MAX(INT(BB95*BB137)*(1-Scenarios!BA163),0)","v":0},{"$f":"MAX(INT(BC95*BC137)*(1-Scenarios!BB163),0)","v":0},{"$f":"MAX(INT(BD95*BD137)*(1-Scenarios!BC163),0)","v":0},{"$f":"MAX(INT(BE95*BE137)*(1-Scenarios!BD163),0)","v":0},{"$f":"MAX(INT(BF95*BF137)*(1-Scenarios!BE163),0)","v":0},{"$f":"MAX(INT(BG95*BG137)*(1-Scenarios!BF163),0)","v":0},{"$f":"MAX(INT(BH95*BH137)*(1-Scenarios!BG163),0)","v":0},{"$f":"MAX(INT(BI95*BI137)*(1-Scenarios!BH163),0)","v":0},{"$f":"MAX(INT(BJ95*BJ137)*(1-Scenarios!BI163),0)","v":0},{"$f":"MAX(INT(BK95*BK137)*(1-Scenarios!BJ163),0)","v":0},{"$f":"MAX(INT(BL95*BL137)*(1-Scenarios!BK163),0)","v":0},{"$f":"MAX(INT(BM95*BM137)*(1-Scenarios!BL163),0)","v":0},{"$f":"MAX(INT(BN95*BN137)*(1-Scenarios!BM163),0)","v":0},{"$f":"MAX(INT(BO95*BO137)*(1-Scenarios!BN163),0)","v":0},{"$f":"MAX(INT(BP95*BP137)*(1-Scenarios!BO163),0)","v":0},{"$f":"MAX(INT(BQ95*BQ137)*(1-Scenarios!BP163),0)","v":0},{"$f":"MAX(INT(BR95*BR137)*(1-Scenarios!BQ163),0)","v":0},{"$f":"MAX(INT(BS95*BS137)*(1-Scenarios!BR163),0)","v":0},{"$f":"MAX(INT(BT95*BT137)*(1-Scenarios!BS163),0)","v":0},{"$f":"MAX(INT(BU95*BU137)*(1-Scenarios!BT163),0)","v":0},{"$f":"MAX(INT(BV95*BV137)*(1-Scenarios!BU163),0)","v":0},{"$f":"MAX(INT(BW95*BW137)*(1-Scenarios!BV163),0)","v":0},{"$f":"MAX(INT(BX95*BX137)*(1-Scenarios!BW163),0)","v":0},{"$f":"MAX(INT(BY95*BY137)*(1-Scenarios!BX163),0)","v":0},{"$f":"MAX(INT(BZ95*BZ137)*(1-Scenarios!BY163),0)","v":0},{"$f":"MAX(INT(CA95*CA137)*(1-Scenarios!BZ163),0)","v":0},{"$f":"MAX(INT(CB95*CB137)*(1-Scenarios!CA163),0)","v":0},{"$f":"MAX(INT(CC95*CC137)*(1-Scenarios!CB163),0)","v":0},{"$f":"MAX(INT(CD95*CD137)*(1-Scenarios!CC163),0)","v":0}]
["Frankston (C)",{"$f":"AVERAGE(CustomersCOM!$H31:$J31)","v":0},{"$f":"MAX(INT(C96*C138)*(1-Scenarios!B164),0)","v":0},{"$f":"MAX(INT(D96*D138)*(1-Scenarios!C164),0)","v":0},{"$f":"MAX(INT(E96*E138)*(1-Scenarios!D164),0)","v":0},{"$f":"MAX(INT(F96*F138)*(1-Scenarios!E164),0)","v":0},{"$f":"MAX(INT(G96*G138)*(1-Scenarios!F164),0)","v":0},{"$f":"MAX(INT(H96*H138)*(1-Scenarios!G164),0)","v":0},{"$f":"MAX(INT(I96*I138)*(1-Scenarios!H164),0)","v":0},{"$f":"MAX(INT(J96*J138)*(1-Scenarios!I164),0)","v":0},{"$f":"MAX(INT(K96*K138)*(1-Scenarios!J164),0)","v":0},{"$f":"MAX(INT(L96*L138)*(1-Scenarios!K164),0)","v":0},{"$f":"MAX(INT(M96*M138)*(1-Scenarios!L164),0)","v":0},{"$f":"MAX(INT(N96*N138)*(1-Scenarios!M164),0)","v":0},{"$f":"MAX(INT(O96*O138)*(1-Scenarios!N164),0)","v":0},{"$f":"MAX(INT(P96*P138)*(1-Scenarios!O164),0)","v":0},{"$f":"MAX(INT(Q96*Q138)*(1-Scenarios!P164),0)","v":0},{"$f":"MAX(INT(R96*R138)*(1-Scenarios!Q164),0)","v":0},{"$f":"MAX(INT(S96*S138)*(1-Scenarios!R164),0)","v":0},{"$f":"MAX(INT(T96*T138)*(1-Scenarios!S164),0)","v":0},{"$f":"MAX(INT(U96*U138)*(1-Scenarios!T164),0)","v":0},{"$f":"MAX(INT(V96*V138)*(1-Scenarios!U164),0)","v":0},{"$f":"MAX(INT(W96*W138)*(1-Scenarios!V164),0)","v":0},{"$f":"MAX(INT(X96*X138)*(1-Scenarios!W164),0)","v":0},{"$f":"MAX(INT(Y96*Y138)*(1-Scenarios!X164),0)","v":0},{"$f":"MAX(INT(Z96*Z138)*(1-Scenarios!Y164),0)","v":0},{"$f":"MAX(INT(AA96*AA138)*(1-Scenarios!Z164),0)","v":0},{"$f":"MAX(INT(AB96*AB138)*(1-Scenarios!AA164),0)","v":0},{"$f":"MAX(INT(AC96*AC138)*(1-Scenarios!AB164),0)","v":0},{"$f":"MAX(INT(AD96*AD138)*(1-Scenarios!AC164),0)","v":0},{"$f":"MAX(INT(AE96*AE138)*(1-Scenarios!AD164),0)","v":0},{"$f":"MAX(INT(AF96*AF138)*(1-Scenarios!AE164),0)","v":0},{"$f":"MAX(INT(AG96*AG138)*(1-Scenarios!AF164),0)","v":0},{"$f":"MAX(INT(AH96*AH138)*(1-Scenarios!AG164),0)","v":0},{"$f":"MAX(INT(AI96*AI138)*(1-Scenarios!AH164),0)","v":0},{"$f":"MAX(INT(AJ96*AJ138)*(1-Scenarios!AI164),0)","v":0},{"$f":"MAX(INT(AK96*AK138)*(1-Scenarios!AJ164),0)","v":0},{"$f":"MAX(INT(AL96*AL138)*(1-Scenarios!AK164),0)","v":0},{"$f":"MAX(INT(AM96*AM138)*(1-Scenarios!AL164),0)","v":0},{"$f":"MAX(INT(AN96*AN138)*(1-Scenarios!AM164),0)","v":0},{"$f":"MAX(INT(AO96*AO138)*(1-Scenarios!AN164),0)","v":0},{"$f":"MAX(INT(AP96*AP138)*(1-Scenarios!AO164),0)","v":0},{"$f":"MAX(INT(AQ96*AQ138)*(1-Scenarios!AP164),0)","v":0},{"$f":"MAX(INT(AR96*AR138)*(1-Scenarios!AQ164),0)","v":0},{"$f":"MAX(INT(AS96*AS138)*(1-Scenarios!AR164),0)","v":0},{"$f":"MAX(INT(AT96*AT138)*(1-Scenarios!AS164),0)","v":0},{"$f":"MAX(INT(AU96*AU138)*(1-Scenarios!AT164),0)","v":0},{"$f":"MAX(INT(AV96*AV138)*(1-Scenarios!AU164),0)","v":0},{"$f":"MAX(INT(AW96*AW138)*(1-Scenarios!AV164),0)","v":0},{"$f":"MAX(INT(AX96*AX138)*(1-Scenarios!AW164),0)","v":0},{"$f":"MAX(INT(AY96*AY138)*(1-Scenarios!AX164),0)","v":0},{"$f":"MAX(INT(AZ96*AZ138)*(1-Scenarios!AY164),0)","v":0},{"$f":"MAX(INT(BA96*BA138)*(1-Scenarios!AZ164),0)","v":0},{"$f":"MAX(INT(BB96*BB138)*(1-Scenarios!BA164),0)","v":0},{"$f":"MAX(INT(BC96*BC138)*(1-Scenarios!BB164),0)","v":0},{"$f":"MAX(INT(BD96*BD138)*(1-Scenarios!BC164),0)","v":0},{"$f":"MAX(INT(BE96*BE138)*(1-Scenarios!BD164),0)","v":0},{"$f":"MAX(INT(BF96*BF138)*(1-Scenarios!BE164),0)","v":0},{"$f":"MAX(INT(BG96*BG138)*(1-Scenarios!BF164),0)","v":0},{"$f":"MAX(INT(BH96*BH138)*(1-Scenarios!BG164),0)","v":0},{"$f":"MAX(INT(BI96*BI138)*(1-Scenarios!BH164),0)","v":0},{"$f":"MAX(INT(BJ96*BJ138)*(1-Scenarios!BI164),0)","v":0},{"$f":"MAX(INT(BK96*BK138)*(1-Scenarios!BJ164),0)","v":0},{"$f":"MAX(INT(BL96*BL138)*(1-Scenarios!BK164),0)","v":0},{"$f":"MAX(INT(BM96*BM138)*(1-Scenarios!BL164),0)","v":0},{"$f":"MAX(INT(BN96*BN138)*(1-Scenarios!BM164),0)","v":0},{"$f":"MAX(INT(BO96*BO138)*(1-Scenarios!BN164),0)","v":0},{"$f":"MAX(INT(BP96*BP138)*(1-Scenarios!BO164),0)","v":0},{"$f":"MAX(INT(BQ96*BQ138)*(1-Scenarios!BP164),0)","v":0},{"$f":"MAX(INT(BR96*BR138)*(1-Scenarios!BQ164),0)","v":0},{"$f":"MAX(INT(BS96*BS138)*(1-Scenarios!BR164),0)","v":0},{"$f":"MAX(INT(BT96*BT138)*(1-Scenarios!BS164),0)","v":0},{"$f":"MAX(INT(BU96*BU138)*(1-Scenarios!BT164),0)","v":0},{"$f":"MAX(INT(BV96*BV138)*(1-Scenarios!BU164),0)","v":0},{"$f":"MAX(INT(BW96*BW138)*(1-Scenarios!BV164),0)","v":0},{"$f":"MAX(INT(BX96*BX138)*(1-Scenarios!BW164),0)","v":0},{"$f":"MAX(INT(BY96*BY138)*(1-Scenarios!BX164),0)","v":0},{"$f":"MAX(INT(BZ96*BZ138)*(1-Scenarios!BY164),0)","v":0},{"$f":"MAX(INT(CA96*CA138)*(1-Scenarios!BZ164),0)","v":0},{"$f":"MAX(INT(CB96*CB138)*(1-Scenarios!CA164),0)","v":0},{"$f":"MAX(INT(CC96*CC138)*(1-Scenarios!CB164),0)","v":0},{"$f":"MAX(INT(CD96*CD138)*(1-Scenarios!CC164),0)","v":0}]
["Glen Eira (C)",{"$f":"AVERAGE(CustomersCOM!$H32:$J32)","v":27.333333333333332},{"$f":"MAX(INT(C97*C139)*(1-Scenarios!B165),0)","v":15},{"$f":"MAX(INT(D97*D139)*(1-Scenarios!C165),0)","v":7},{"$f":"MAX(INT(E97*E139)*(1-Scenarios!D165),0)","v":0},{"$f":"MAX(INT(F97*F139)*(1-Scenarios!E165),0)","v":0},{"$f":"MAX(INT(G97*G139)*(1-Scenarios!F165),0)","v":6},{"$f":"MAX(INT(H97*H139)*(1-Scenarios!G165),0)","v":5},{"$f":"MAX(INT(I97*I139)*(1-Scenarios!H165),0)","v":2},{"$f":"MAX(INT(J97*J139)*(1-Scenarios!I165),0)","v":1},{"$f":"MAX(INT(K97*K139)*(1-Scenarios!J165),0)","v":0},{"$f":"MAX(INT(L97*L139)*(1-Scenarios!K165),0)","v":0},{"$f":"MAX(INT(M97*M139)*(1-Scenarios!L165),0)","v":0},{"$f":"MAX(INT(N97*N139)*(1-Scenarios!M165),0)","v":0},{"$f":"MAX(INT(O97*O139)*(1-Scenarios!N165),0)","v":0},{"$f":"MAX(INT(P97*P139)*(1-Scenarios!O165),0)","v":0},{"$f":"MAX(INT(Q97*Q139)*(1-Scenarios!P165),0)","v":0},{"$f":"MAX(INT(R97*R139)*(1-Scenarios!Q165),0)","v":0},{"$f":"MAX(INT(S97*S139)*(1-Scenarios!R165),0)","v":0},{"$f":"MAX(INT(T97*T139)*(1-Scenarios!S165),0)","v":0},{"$f":"MAX(INT(U97*U139)*(1-Scenarios!T165),0)","v":0},{"$f":"MAX(INT(V97*V139)*(1-Scenarios!U165),0)","v":0},{"$f":"MAX(INT(W97*W139)*(1-Scenarios!V165),0)","v":0},{"$f":"MAX(INT(X97*X139)*(1-Scenarios!W165),0)","v":0},{"$f":"MAX(INT(Y97*Y139)*(1-Scenarios!X165),0)","v":0},{"$f":"MAX(INT(Z97*Z139)*(1-Scenarios!Y165),0)","v":0},{"$f":"MAX(INT(AA97*AA139)*(1-Scenarios!Z165),0)","v":0},{"$f":"MAX(INT(AB97*AB139)*(1-Scenarios!AA165),0)","v":0},{"$f":"MAX(INT(AC97*AC139)*(1-Scenarios!AB165),0)","v":0},{"$f":"MAX(INT(AD97*AD139)*(1-Scenarios!AC165),0)","v":0},{"$f":"MAX(INT(AE97*AE139)*(1-Scenarios!AD165),0)","v":0},{"$f":"MAX(INT(AF97*AF139)*(1-Scenarios!AE165),0)","v":0},{"$f":"MAX(INT(AG97*AG139)*(1-Scenarios!AF165),0)","v":0},{"$f":"MAX(INT(AH97*AH139)*(1-Scenarios!AG165),0)","v":0},{"$f":"MAX(INT(AI97*AI139)*(1-Scenarios!AH165),0)","v":0},{"$f":"MAX(INT(AJ97*AJ139)*(1-Scenarios!AI165),0)","v":0},{"$f":"MAX(INT(AK97*AK139)*(1-Scenarios!AJ165),0)","v":0},{"$f":"MAX(INT(AL97*AL139)*(1-Scenarios!AK165),0)","v":0},{"$f":"MAX(INT(AM97*AM139)*(1-Scenarios!AL165),0)","v":0},{"$f":"MAX(INT(AN97*AN139)*(1-Scenarios!AM165),0)","v":0},{"$f":"MAX(INT(AO97*AO139)*(1-Scenarios!AN165),0)","v":0},{"$f":"MAX(INT(AP97*AP139)*(1-Scenarios!AO165),0)","v":0},{"$f":"MAX(INT(AQ97*AQ139)*(1-Scenarios!AP165),0)","v":0},{"$f":"MAX(INT(AR97*AR139)*(1-Scenarios!AQ165),0)","v":0},{"$f":"MAX(INT(AS97*AS139)*(1-Scenarios!AR165),0)","v":0},{"$f":"MAX(INT(AT97*AT139)*(1-Scenarios!AS165),0)","v":0},{"$f":"MAX(INT(AU97*AU139)*(1-Scenarios!AT165),0)","v":0},{"$f":"MAX(INT(AV97*AV139)*(1-Scenarios!AU165),0)","v":0},{"$f":"MAX(INT(AW97*AW139)*(1-Scenarios!AV165),0)","v":0},{"$f":"MAX(INT(AX97*AX139)*(1-Scenarios!AW165),0)","v":0},{"$f":"MAX(INT(AY97*AY139)*(1-Scenarios!AX165),0)","v":0},{"$f":"MAX(INT(AZ97*AZ139)*(1-Scenarios!AY165),0)","v":0},{"$f":"MAX(INT(BA97*BA139)*(1-Scenarios!AZ165),0)","v":0},{"$f":"MAX(INT(BB97*BB139)*(1-Scenarios!BA165),0)","v":0},{"$f":"MAX(INT(BC97*BC139)*(1-Scenarios!BB165),0)","v":0},{"$f":"MAX(INT(BD97*BD139)*(1-Scenarios!BC165),0)","v":0},{"$f":"MAX(INT(BE97*BE139)*(1-Scenarios!BD165),0)","v":0},{"$f":"MAX(INT(BF97*BF139)*(1-Scenarios!BE165),0)","v":0},{"$f":"MAX(INT(BG97*BG139)*(1-Scenarios!BF165),0)","v":0},{"$f":"MAX(INT(BH97*BH139)*(1-Scenarios!BG165),0)","v":0},{"$f":"MAX(INT(BI97*BI139)*(1-Scenarios!BH165),0)","v":0},{"$f":"MAX(INT(BJ97*BJ139)*(1-Scenarios!BI165),0)","v":0},{"$f":"MAX(INT(BK97*BK139)*(1-Scenarios!BJ165),0)","v":0},{"$f":"MAX(INT(BL97*BL139)*(1-Scenarios!BK165),0)","v":0},{"$f":"MAX(INT(BM97*BM139)*(1-Scenarios!BL165),0)","v":0},{"$f":"MAX(INT(BN97*BN139)*(1-Scenarios!BM165),0)","v":0},{"$f":"MAX(INT(BO97*BO139)*(1-Scenarios!BN165),0)","v":0},{"$f":"MAX(INT(BP97*BP139)*(1-Scenarios!BO165),0)","v":0},{"$f":"MAX(INT(BQ97*BQ139)*(1-Scenarios!BP165),0)","v":0},{"$f":"MAX(INT(BR97*BR139)*(1-Scenarios!BQ165),0)","v":0},{"$f":"MAX(INT(BS97*BS139)*(1-Scenarios!BR165),0)","v":0},{"$f":"MAX(INT(BT97*BT139)*(1-Scenarios!BS165),0)","v":0},{"$f":"MAX(INT(BU97*BU139)*(1-Scenarios!BT165),0)","v":0},{"$f":"MAX(INT(BV97*BV139)*(1-Scenarios!BU165),0)","v":0},{"$f":"MAX(INT(BW97*BW139)*(1-Scenarios!BV165),0)","v":0},{"$f":"MAX(INT(BX97*BX139)*(1-Scenarios!BW165),0)","v":0},{"$f":"MAX(INT(BY97*BY139)*(1-Scenarios!BX165),0)","v":0},{"$f":"MAX(INT(BZ97*BZ139)*(1-Scenarios!BY165),0)","v":0},{"$f":"MAX(INT(CA97*CA139)*(1-Scenarios!BZ165),0)","v":0},{"$f":"MAX(INT(CB97*CB139)*(1-Scenarios!CA165),0)","v":0},{"$f":"MAX(INT(CC97*CC139)*(1-Scenarios!CB165),0)","v":0},{"$f":"MAX(INT(CD97*CD139)*(1-Scenarios!CC165),0)","v":0}]
["Greater Dandenong (C)",{"$f":"AVERAGE(CustomersCOM!$H33:$J33)","v":43.333333333333336},{"$f":"MAX(INT(C98*C140)*(1-Scenarios!B166),0)","v":24},{"$f":"MAX(INT(D98*D140)*(1-Scenarios!C166),0)","v":15},{"$f":"MAX(INT(E98*E140)*(1-Scenarios!D166),0)","v":0},{"$f":"MAX(INT(F98*F140)*(1-Scenarios!E166),0)","v":0},{"$f":"MAX(INT(G98*G140)*(1-Scenarios!F166),0)","v":14},{"$f":"MAX(INT(H98*H140)*(1-Scenarios!G166),0)","v":12},{"$f":"MAX(INT(I98*I140)*(1-Scenarios!H166),0)","v":1},{"$f":"MAX(INT(J98*J140)*(1-Scenarios!I166),0)","v":1},{"$f":"MAX(INT(K98*K140)*(1-Scenarios!J166),0)","v":0},{"$f":"MAX(INT(L98*L140)*(1-Scenarios!K166),0)","v":0},{"$f":"MAX(INT(M98*M140)*(1-Scenarios!L166),0)","v":0},{"$f":"MAX(INT(N98*N140)*(1-Scenarios!M166),0)","v":0},{"$f":"MAX(INT(O98*O140)*(1-Scenarios!N166),0)","v":0},{"$f":"MAX(INT(P98*P140)*(1-Scenarios!O166),0)","v":0},{"$f":"MAX(INT(Q98*Q140)*(1-Scenarios!P166),0)","v":0},{"$f":"MAX(INT(R98*R140)*(1-Scenarios!Q166),0)","v":0},{"$f":"MAX(INT(S98*S140)*(1-Scenarios!R166),0)","v":0},{"$f":"MAX(INT(T98*T140)*(1-Scenarios!S166),0)","v":0},{"$f":"MAX(INT(U98*U140)*(1-Scenarios!T166),0)","v":0},{"$f":"MAX(INT(V98*V140)*(1-Scenarios!U166),0)","v":0},{"$f":"MAX(INT(W98*W140)*(1-Scenarios!V166),0)","v":0},{"$f":"MAX(INT(X98*X140)*(1-Scenarios!W166),0)","v":0},{"$f":"MAX(INT(Y98*Y140)*(1-Scenarios!X166),0)","v":0},{"$f":"MAX(INT(Z98*Z140)*(1-Scenarios!Y166),0)","v":0},{"$f":"MAX(INT(AA98*AA140)*(1-Scenarios!Z166),0)","v":0},{"$f":"MAX(INT(AB98*AB140)*(1-Scenarios!AA166),0)","v":0},{"$f":"MAX(INT(AC98*AC140)*(1-Scenarios!AB166),0)","v":0},{"$f":"MAX(INT(AD98*AD140)*(1-Scenarios!AC166),0)","v":0},{"$f":"MAX(INT(AE98*AE140)*(1-Scenarios!AD166),0)","v":0},{"$f":"MAX(INT(AF98*AF140)*(1-Scenarios!AE166),0)","v":0},{"$f":"MAX(INT(AG98*AG140)*(1-Scenarios!AF166),0)","v":0},{"$f":"MAX(INT(AH98*AH140)*(1-Scenarios!AG166),0)","v":0},{"$f":"MAX(INT(AI98*AI140)*(1-Scenarios!AH166),0)","v":0},{"$f":"MAX(INT(AJ98*AJ140)*(1-Scenarios!AI166),0)","v":0},{"$f":"MAX(INT(AK98*AK140)*(1-Scenarios!AJ166),0)","v":0},{"$f":"MAX(INT(AL98*AL140)*(1-Scenarios!AK166),0)","v":0},{"$f":"MAX(INT(AM98*AM140)*(1-Scenarios!AL166),0)","v":0},{"$f":"MAX(INT(AN98*AN140)*(1-Scenarios!AM166),0)","v":0},{"$f":"MAX(INT(AO98*AO140)*(1-Scenarios!AN166),0)","v":0},{"$f":"MAX(INT(AP98*AP140)*(1-Scenarios!AO166),0)","v":0},{"$f":"MAX(INT(AQ98*AQ140)*(1-Scenarios!AP166),0)","v":0},{"$f":"MAX(INT(AR98*AR140)*(1-Scenarios!AQ166),0)","v":0},{"$f":"MAX(INT(AS98*AS140)*(1-Scenarios!AR166),0)","v":0},{"$f":"MAX(INT(AT98*AT140)*(1-Scenarios!AS166),0)","v":0},{"$f":"MAX(INT(AU98*AU140)*(1-Scenarios!AT166),0)","v":0},{"$f":"MAX(INT(AV98*AV140)*(1-Scenarios!AU166),0)","v":0},{"$f":"MAX(INT(AW98*AW140)*(1-Scenarios!AV166),0)","v":0},{"$f":"MAX(INT(AX98*AX140)*(1-Scenarios!AW166),0)","v":0},{"$f":"MAX(INT(AY98*AY140)*(1-Scenarios!AX166),0)","v":0},{"$f":"MAX(INT(AZ98*AZ140)*(1-Scenarios!AY166),0)","v":0},{"$f":"MAX(INT(BA98*BA140)*(1-Scenarios!AZ166),0)","v":0},{"$f":"MAX(INT(BB98*BB140)*(1-Scenarios!BA166),0)","v":0},{"$f":"MAX(INT(BC98*BC140)*(1-Scenarios!BB166),0)","v":0},{"$f":"MAX(INT(BD98*BD140)*(1-Scenarios!BC166),0)","v":0},{"$f":"MAX(INT(BE98*BE140)*(1-Scenarios!BD166),0)","v":0},{"$f":"MAX(INT(BF98*BF140)*(1-Scenarios!BE166),0)","v":0},{"$f":"MAX(INT(BG98*BG140)*(1-Scenarios!BF166),0)","v":0},{"$f":"MAX(INT(BH98*BH140)*(1-Scenarios!BG166),0)","v":0},{"$f":"MAX(INT(BI98*BI140)*(1-Scenarios!BH166),0)","v":0},{"$f":"MAX(INT(BJ98*BJ140)*(1-Scenarios!BI166),0)","v":0},{"$f":"MAX(INT(BK98*BK140)*(1-Scenarios!BJ166),0)","v":0},{"$f":"MAX(INT(BL98*BL140)*(1-Scenarios!BK166),0)","v":0},{"$f":"MAX(INT(BM98*BM140)*(1-Scenarios!BL166),0)","v":0},{"$f":"MAX(INT(BN98*BN140)*(1-Scenarios!BM166),0)","v":0},{"$f":"MAX(INT(BO98*BO140)*(1-Scenarios!BN166),0)","v":0},{"$f":"MAX(INT(BP98*BP140)*(1-Scenarios!BO166),0)","v":0},{"$f":"MAX(INT(BQ98*BQ140)*(1-Scenarios!BP166),0)","v":0},{"$f":"MAX(INT(BR98*BR140)*(1-Scenarios!BQ166),0)","v":0},{"$f":"MAX(INT(BS98*BS140)*(1-Scenarios!BR166),0)","v":0},{"$f":"MAX(INT(BT98*BT140)*(1-Scenarios!BS166),0)","v":0},{"$f":"MAX(INT(BU98*BU140)*(1-Scenarios!BT166),0)","v":0},{"$f":"MAX(INT(BV98*BV140)*(1-Scenarios!BU166),0)","v":0},{"$f":"MAX(INT(BW98*BW140)*(1-Scenarios!BV166),0)","v":0},{"$f":"MAX(INT(BX98*BX140)*(1-Scenarios!BW166),0)","v":0},{"$f":"MAX(INT(BY98*BY140)*(1-Scenarios!BX166),0)","v":0},{"$f":"MAX(INT(BZ98*BZ140)*(1-Scenarios!BY166),0)","v":0},{"$f":"MAX(INT(CA98*CA140)*(1-Scenarios!BZ166),0)","v":0},{"$f":"MAX(INT(CB98*CB140)*(1-Scenarios!CA166),0)","v":0},{"$f":"MAX(INT(CC98*CC140)*(1-Scenarios!CB166),0)","v":0},{"$f":"MAX(INT(CD98*CD140)*(1-Scenarios!CC166),0)","v":0}]
["Kingston (C)",{"$f":"AVERAGE(CustomersCOM!$H34:$J34)","v":33.666666666666664},{"$f":"MAX(INT(C99*C141)*(1-Scenarios!B167),0)","v":22},{"$f":"MAX(INT(D99*D141)*(1-Scenarios!C167),0)","v":11},{"$f":"MAX(INT(E99*E141)*(1-Scenarios!D167),0)","v":0},{"$f":"MAX(INT(F99*F141)*(1-Scenarios!E167),0)","v":0},{"$f":"MAX(INT(G99*G141)*(1-Scenarios!F167),0)","v":11},{"$f":"MAX(INT(H99*H141)*(1-Scenarios!G167),0)","v":9},{"$f":"MAX(INT(I99*I141)*(1-Scenarios!H167),0)","v":1},{"$f":"MAX(INT(J99*J141)*(1-Scenarios!I167),0)","v":1},{"$f":"MAX(INT(K99*K141)*(1-Scenarios!J167),0)","v":0},{"$f":"MAX(INT(L99*L141)*(1-Scenarios!K167),0)","v":0},{"$f":"MAX(INT(M99*M141)*(1-Scenarios!L167),0)","v":0},{"$f":"MAX(INT(N99*N141)*(1-Scenarios!M167),0)","v":0},{"$f":"MAX(INT(O99*O141)*(1-Scenarios!N167),0)","v":0},{"$f":"MAX(INT(P99*P141)*(1-Scenarios!O167),0)","v":0},{"$f":"MAX(INT(Q99*Q141)*(1-Scenarios!P167),0)","v":0},{"$f":"MAX(INT(R99*R141)*(1-Scenarios!Q167),0)","v":0},{"$f":"MAX(INT(S99*S141)*(1-Scenarios!R167),0)","v":0},{"$f":"MAX(INT(T99*T141)*(1-Scenarios!S167),0)","v":0},{"$f":"MAX(INT(U99*U141)*(1-Scenarios!T167),0)","v":0},{"$f":"MAX(INT(V99*V141)*(1-Scenarios!U167),0)","v":0},{"$f":"MAX(INT(W99*W141)*(1-Scenarios!V167),0)","v":0},{"$f":"MAX(INT(X99*X141)*(1-Scenarios!W167),0)","v":0},{"$f":"MAX(INT(Y99*Y141)*(1-Scenarios!X167),0)","v":0},{"$f":"MAX(INT(Z99*Z141)*(1-Scenarios!Y167),0)","v":0},{"$f":"MAX(INT(AA99*AA141)*(1-Scenarios!Z167),0)","v":0},{"$f":"MAX(INT(AB99*AB141)*(1-Scenarios!AA167),0)","v":0},{"$f":"MAX(INT(AC99*AC141)*(1-Scenarios!AB167),0)","v":0},{"$f":"MAX(INT(AD99*AD141)*(1-Scenarios!AC167),0)","v":0},{"$f":"MAX(INT(AE99*AE141)*(1-Scenarios!AD167),0)","v":0},{"$f":"MAX(INT(AF99*AF141)*(1-Scenarios!AE167),0)","v":0},{"$f":"MAX(INT(AG99*AG141)*(1-Scenarios!AF167),0)","v":0},{"$f":"MAX(INT(AH99*AH141)*(1-Scenarios!AG167),0)","v":0},{"$f":"MAX(INT(AI99*AI141)*(1-Scenarios!AH167),0)","v":0},{"$f":"MAX(INT(AJ99*AJ141)*(1-Scenarios!AI167),0)","v":0},{"$f":"MAX(INT(AK99*AK141)*(1-Scenarios!AJ167),0)","v":0},{"$f":"MAX(INT(AL99*AL141)*(1-Scenarios!AK167),0)","v":0},{"$f":"MAX(INT(AM99*AM141)*(1-Scenarios!AL167),0)","v":0},{"$f":"MAX(INT(AN99*AN141)*(1-Scenarios!AM167),0)","v":0},{"$f":"MAX(INT(AO99*AO141)*(1-Scenarios!AN167),0)","v":0},{"$f":"MAX(INT(AP99*AP141)*(1-Scenarios!AO167),0)","v":0},{"$f":"MAX(INT(AQ99*AQ141)*(1-Scenarios!AP167),0)","v":0},{"$f":"MAX(INT(AR99*AR141)*(1-Scenarios!AQ167),0)","v":0},{"$f":"MAX(INT(AS99*AS141)*(1-Scenarios!AR167),0)","v":0},{"$f":"MAX(INT(AT99*AT141)*(1-Scenarios!AS167),0)","v":0},{"$f":"MAX(INT(AU99*AU141)*(1-Scenarios!AT167),0)","v":0},{"$f":"MAX(INT(AV99*AV141)*(1-Scenarios!AU167),0)","v":0},{"$f":"MAX(INT(AW99*AW141)*(1-Scenarios!AV167),0)","v":0},{"$f":"MAX(INT(AX99*AX141)*(1-Scenarios!AW167),0)","v":0},{"$f":"MAX(INT(AY99*AY141)*(1-Scenarios!AX167),0)","v":0},{"$f":"MAX(INT(AZ99*AZ141)*(1-Scenarios!AY167),0)","v":0},{"$f":"MAX(INT(BA99*BA141)*(1-Scenarios!AZ167),0)","v":0},{"$f":"MAX(INT(BB99*BB141)*(1-Scenarios!BA167),0)","v":0},{"$f":"MAX(INT(BC99*BC141)*(1-Scenarios!BB167),0)","v":0},{"$f":"MAX(INT(BD99*BD141)*(1-Scenarios!BC167),0)","v":0},{"$f":"MAX(INT(BE99*BE141)*(1-Scenarios!BD167),0)","v":0},{"$f":"MAX(INT(BF99*BF141)*(1-Scenarios!BE167),0)","v":0},{"$f":"MAX(INT(BG99*BG141)*(1-Scenarios!BF167),0)","v":0},{"$f":"MAX(INT(BH99*BH141)*(1-Scenarios!BG167),0)","v":0},{"$f":"MAX(INT(BI99*BI141)*(1-Scenarios!BH167),0)","v":0},{"$f":"MAX(INT(BJ99*BJ141)*(1-Scenarios!BI167),0)","v":0},{"$f":"MAX(INT(BK99*BK141)*(1-Scenarios!BJ167),0)","v":0},{"$f":"MAX(INT(BL99*BL141)*(1-Scenarios!BK167),0)","v":0},{"$f":"MAX(INT(BM99*BM141)*(1-Scenarios!BL167),0)","v":0},{"$f":"MAX(INT(BN99*BN141)*(1-Scenarios!BM167),0)","v":0},{"$f":"MAX(INT(BO99*BO141)*(1-Scenarios!BN167),0)","v":0},{"$f":"MAX(INT(BP99*BP141)*(1-Scenarios!BO167),0)","v":0},{"$f":"MAX(INT(BQ99*BQ141)*(1-Scenarios!BP167),0)","v":0},{"$f":"MAX(INT(BR99*BR141)*(1-Scenarios!BQ167),0)","v":0},{"$f":"MAX(INT(BS99*BS141)*(1-Scenarios!BR167),0)","v":0},{"$f":"MAX(INT(BT99*BT141)*(1-Scenarios!BS167),0)","v":0},{"$f":"MAX(INT(BU99*BU141)*(1-Scenarios!BT167),0)","v":0},{"$f":"MAX(INT(BV99*BV141)*(1-Scenarios!BU167),0)","v":0},{"$f":"MAX(INT(BW99*BW141)*(1-Scenarios!BV167),0)","v":0},{"$f":"MAX(INT(BX99*BX141)*(1-Scenarios!BW167),0)","v":0},{"$f":"MAX(INT(BY99*BY141)*(1-Scenarios!BX167),0)","v":0},{"$f":"MAX(INT(BZ99*BZ141)*(1-Scenarios!BY167),0)","v":0},{"$f":"MAX(INT(CA99*CA141)*(1-Scenarios!BZ167),0)","v":0},{"$f":"MAX(INT(CB99*CB141)*(1-Scenarios!CA167),0)","v":0},{"$f":"MAX(INT(CC99*CC141)*(1-Scenarios!CB167),0)","v":0},{"$f":"MAX(INT(CD99*CD141)*(1-Scenarios!CC167),0)","v":0}]
["Knox (C)",{"$f":"AVERAGE(CustomersCOM!$H35:$J35)","v":25},{"$f":"MAX(INT(C100*C142)*(1-Scenarios!B168),0)","v":20},{"$f":"MAX(INT(D100*D142)*(1-Scenarios!C168),0)","v":10},{"$f":"MAX(INT(E100*E142)*(1-Scenarios!D168),0)","v":0},{"$f":"MAX(INT(F100*F142)*(1-Scenarios!E168),0)","v":0},{"$f":"MAX(INT(G100*G142)*(1-Scenarios!F168),0)","v":10},{"$f":"MAX(INT(H100*H142)*(1-Scenarios!G168),0)","v":8},{"$f":"MAX(INT(I100*I142)*(1-Scenarios!H168),0)","v":1},{"$f":"MAX(INT(J100*J142)*(1-Scenarios!I168),0)","v":1},{"$f":"MAX(INT(K100*K142)*(1-Scenarios!J168),0)","v":0},{"$f":"MAX(INT(L100*L142)*(1-Scenarios!K168),0)","v":0},{"$f":"MAX(INT(M100*M142)*(1-Scenarios!L168),0)","v":0},{"$f":"MAX(INT(N100*N142)*(1-Scenarios!M168),0)","v":0},{"$f":"MAX(INT(O100*O142)*(1-Scenarios!N168),0)","v":0},{"$f":"MAX(INT(P100*P142)*(1-Scenarios!O168),0)","v":0},{"$f":"MAX(INT(Q100*Q142)*(1-Scenarios!P168),0)","v":0},{"$f":"MAX(INT(R100*R142)*(1-Scenarios!Q168),0)","v":0},{"$f":"MAX(INT(S100*S142)*(1-Scenarios!R168),0)","v":0},{"$f":"MAX(INT(T100*T142)*(1-Scenarios!S168),0)","v":0},{"$f":"MAX(INT(U100*U142)*(1-Scenarios!T168),0)","v":0},{"$f":"MAX(INT(V100*V142)*(1-Scenarios!U168),0)","v":0},{"$f":"MAX(INT(W100*W142)*(1-Scenarios!V168),0)","v":0},{"$f":"MAX(INT(X100*X142)*(1-Scenarios!W168),0)","v":0},{"$f":"MAX(INT(Y100*Y142)*(1-Scenarios!X168),0)","v":0},{"$f":"MAX(INT(Z100*Z142)*(1-Scenarios!Y168),0)","v":0},{"$f":"MAX(INT(AA100*AA142)*(1-Scenarios!Z168),0)","v":0},{"$f":"MAX(INT(AB100*AB142)*(1-Scenarios!AA168),0)","v":0},{"$f":"MAX(INT(AC100*AC142)*(1-Scenarios!AB168),0)","v":0},{"$f":"MAX(INT(AD100*AD142)*(1-Scenarios!AC168),0)","v":0},{"$f":"MAX(INT(AE100*AE142)*(1-Scenarios!AD168),0)","v":0},{"$f":"MAX(INT(AF100*AF142)*(1-Scenarios!AE168),0)","v":0},{"$f":"MAX(INT(AG100*AG142)*(1-Scenarios!AF168),0)","v":0},{"$f":"MAX(INT(AH100*AH142)*(1-Scenarios!AG168),0)","v":0},{"$f":"MAX(INT(AI100*AI142)*(1-Scenarios!AH168),0)","v":0},{"$f":"MAX(INT(AJ100*AJ142)*(1-Scenarios!AI168),0)","v":0},{"$f":"MAX(INT(AK100*AK142)*(1-Scenarios!AJ168),0)","v":0},{"$f":"MAX(INT(AL100*AL142)*(1-Scenarios!AK168),0)","v":0},{"$f":"MAX(INT(AM100*AM142)*(1-Scenarios!AL168),0)","v":0},{"$f":"MAX(INT(AN100*AN142)*(1-Scenarios!AM168),0)","v":0},{"$f":"MAX(INT(AO100*AO142)*(1-Scenarios!AN168),0)","v":0},{"$f":"MAX(INT(AP100*AP142)*(1-Scenarios!AO168),0)","v":0},{"$f":"MAX(INT(AQ100*AQ142)*(1-Scenarios!AP168),0)","v":0},{"$f":"MAX(INT(AR100*AR142)*(1-Scenarios!AQ168),0)","v":0},{"$f":"MAX(INT(AS100*AS142)*(1-Scenarios!AR168),0)","v":0},{"$f":"MAX(INT(AT100*AT142)*(1-Scenarios!AS168),0)","v":0},{"$f":"MAX(INT(AU100*AU142)*(1-Scenarios!AT168),0)","v":0},{"$f":"MAX(INT(AV100*AV142)*(1-Scenarios!AU168),0)","v":0},{"$f":"MAX(INT(AW100*AW142)*(1-Scenarios!AV168),0)","v":0},{"$f":"MAX(INT(AX100*AX142)*(1-Scenarios!AW168),0)","v":0},{"$f":"MAX(INT(AY100*AY142)*(1-Scenarios!AX168),0)","v":0},{"$f":"MAX(INT(AZ100*AZ142)*(1-Scenarios!AY168),0)","v":0},{"$f":"MAX(INT(BA100*BA142)*(1-Scenarios!AZ168),0)","v":0},{"$f":"MAX(INT(BB100*BB142)*(1-Scenarios!BA168),0)","v":0},{"$f":"MAX(INT(BC100*BC142)*(1-Scenarios!BB168),0)","v":0},{"$f":"MAX(INT(BD100*BD142)*(1-Scenarios!BC168),0)","v":0},{"$f":"MAX(INT(BE100*BE142)*(1-Scenarios!BD168),0)","v":0},{"$f":"MAX(INT(BF100*BF142)*(1-Scenarios!BE168),0)","v":0},{"$f":"MAX(INT(BG100*BG142)*(1-Scenarios!BF168),0)","v":0},{"$f":"MAX(INT(BH100*BH142)*(1-Scenarios!BG168),0)","v":0},{"$f":"MAX(INT(BI100*BI142)*(1-Scenarios!BH168),0)","v":0},{"$f":"MAX(INT(BJ100*BJ142)*(1-Scenarios!BI168),0)","v":0},{"$f":"MAX(INT(BK100*BK142)*(1-Scenarios!BJ168),0)","v":0},{"$f":"MAX(INT(BL100*BL142)*(1-Scenarios!BK168),0)","v":0},{"$f":"MAX(INT(BM100*BM142)*(1-Scenarios!BL168),0)","v":0},{"$f":"MAX(INT(BN100*BN142)*(1-Scenarios!BM168),0)","v":0},{"$f":"MAX(INT(BO100*BO142)*(1-Scenarios!BN168),0)","v":0},{"$f":"MAX(INT(BP100*BP142)*(1-Scenarios!BO168),0)","v":0},{"$f":"MAX(INT(BQ100*BQ142)*(1-Scenarios!BP168),0)","v":0},{"$f":"MAX(INT(BR100*BR142)*(1-Scenarios!BQ168),0)","v":0},{"$f":"MAX(INT(BS100*BS142)*(1-Scenarios!BR168),0)","v":0},{"$f":"MAX(INT(BT100*BT142)*(1-Scenarios!BS168),0)","v":0},{"$f":"MAX(INT(BU100*BU142)*(1-Scenarios!BT168),0)","v":0},{"$f":"MAX(INT(BV100*BV142)*(1-Scenarios!BU168),0)","v":0},{"$f":"MAX(INT(BW100*BW142)*(1-Scenarios!BV168),0)","v":0},{"$f":"MAX(INT(BX100*BX142)*(1-Scenarios!BW168),0)","v":0},{"$f":"MAX(INT(BY100*BY142)*(1-Scenarios!BX168),0)","v":0},{"$f":"MAX(INT(BZ100*BZ142)*(1-Scenarios!BY168),0)","v":0},{"$f":"MAX(INT(CA100*CA142)*(1-Scenarios!BZ168),0)","v":0},{"$f":"MAX(INT(CB100*CB142)*(1-Scenarios!CA168),0)","v":0},{"$f":"MAX(INT(CC100*CC142)*(1-Scenarios!CB168),0)","v":0},{"$f":"MAX(INT(CD100*CD142)*(1-Scenarios!CC168),0)","v":0}]
["Manningham (C)",{"$f":"AVERAGE(CustomersCOM!$H36:$J36)","v":10.666666666666666},{"$f":"MAX(INT(C101*C143)*(1-Scenarios!B169),0)","v":10},{"$f":"MAX(INT(D101*D143)*(1-Scenarios!C169),0)","v":5},{"$f":"MAX(INT(E101*E143)*(1-Scenarios!D169),0)","v":0},{"$f":"MAX(INT(F101*F143)*(1-Scenarios!E169),0)","v":0},{"$f":"MAX(INT(G101*G143)*(1-Scenarios!F169),0)","v":5},{"$f":"MAX(INT(H101*H143)*(1-Scenarios!G169),0)","v":4},{"$f":"MAX(INT(I101*I143)*(1-Scenarios!H169),0)","v":0},{"$f":"MAX(INT(J101*J143)*(1-Scenarios!I169),0)","v":0},{"$f":"MAX(INT(K101*K143)*(1-Scenarios!J169),0)","v":0},{"$f":"MAX(INT(L101*L143)*(1-Scenarios!K169),0)","v":0},{"$f":"MAX(INT(M101*M143)*(1-Scenarios!L169),0)","v":0},{"$f":"MAX(INT(N101*N143)*(1-Scenarios!M169),0)","v":0},{"$f":"MAX(INT(O101*O143)*(1-Scenarios!N169),0)","v":0},{"$f":"MAX(INT(P101*P143)*(1-Scenarios!O169),0)","v":0},{"$f":"MAX(INT(Q101*Q143)*(1-Scenarios!P169),0)","v":0},{"$f":"MAX(INT(R101*R143)*(1-Scenarios!Q169),0)","v":0},{"$f":"MAX(INT(S101*S143)*(1-Scenarios!R169),0)","v":0},{"$f":"MAX(INT(T101*T143)*(1-Scenarios!S169),0)","v":0},{"$f":"MAX(INT(U101*U143)*(1-Scenarios!T169),0)","v":0},{"$f":"MAX(INT(V101*V143)*(1-Scenarios!U169),0)","v":0},{"$f":"MAX(INT(W101*W143)*(1-Scenarios!V169),0)","v":0},{"$f":"MAX(INT(X101*X143)*(1-Scenarios!W169),0)","v":0},{"$f":"MAX(INT(Y101*Y143)*(1-Scenarios!X169),0)","v":0},{"$f":"MAX(INT(Z101*Z143)*(1-Scenarios!Y169),0)","v":0},{"$f":"MAX(INT(AA101*AA143)*(1-Scenarios!Z169),0)","v":0},{"$f":"MAX(INT(AB101*AB143)*(1-Scenarios!AA169),0)","v":0},{"$f":"MAX(INT(AC101*AC143)*(1-Scenarios!AB169),0)","v":0},{"$f":"MAX(INT(AD101*AD143)*(1-Scenarios!AC169),0)","v":0},{"$f":"MAX(INT(AE101*AE143)*(1-Scenarios!AD169),0)","v":0},{"$f":"MAX(INT(AF101*AF143)*(1-Scenarios!AE169),0)","v":0},{"$f":"MAX(INT(AG101*AG143)*(1-Scenarios!AF169),0)","v":0},{"$f":"MAX(INT(AH101*AH143)*(1-Scenarios!AG169),0)","v":0},{"$f":"MAX(INT(AI101*AI143)*(1-Scenarios!AH169),0)","v":0},{"$f":"MAX(INT(AJ101*AJ143)*(1-Scenarios!AI169),0)","v":0},{"$f":"MAX(INT(AK101*AK143)*(1-Scenarios!AJ169),0)","v":0},{"$f":"MAX(INT(AL101*AL143)*(1-Scenarios!AK169),0)","v":0},{"$f":"MAX(INT(AM101*AM143)*(1-Scenarios!AL169),0)","v":0},{"$f":"MAX(INT(AN101*AN143)*(1-Scenarios!AM169),0)","v":0},{"$f":"MAX(INT(AO101*AO143)*(1-Scenarios!AN169),0)","v":0},{"$f":"MAX(INT(AP101*AP143)*(1-Scenarios!AO169),0)","v":0},{"$f":"MAX(INT(AQ101*AQ143)*(1-Scenarios!AP169),0)","v":0},{"$f":"MAX(INT(AR101*AR143)*(1-Scenarios!AQ169),0)","v":0},{"$f":"MAX(INT(AS101*AS143)*(1-Scenarios!AR169),0)","v":0},{"$f":"MAX(INT(AT101*AT143)*(1-Scenarios!AS169),0)","v":0},{"$f":"MAX(INT(AU101*AU143)*(1-Scenarios!AT169),0)","v":0},{"$f":"MAX(INT(AV101*AV143)*(1-Scenarios!AU169),0)","v":0},{"$f":"MAX(INT(AW101*AW143)*(1-Scenarios!AV169),0)","v":0},{"$f":"MAX(INT(AX101*AX143)*(1-Scenarios!AW169),0)","v":0},{"$f":"MAX(INT(AY101*AY143)*(1-Scenarios!AX169),0)","v":0},{"$f":"MAX(INT(AZ101*AZ143)*(1-Scenarios!AY169),0)","v":0},{"$f":"MAX(INT(BA101*BA143)*(1-Scenarios!AZ169),0)","v":0},{"$f":"MAX(INT(BB101*BB143)*(1-Scenarios!BA169),0)","v":0},{"$f":"MAX(INT(BC101*BC143)*(1-Scenarios!BB169),0)","v":0},{"$f":"MAX(INT(BD101*BD143)*(1-Scenarios!BC169),0)","v":0},{"$f":"MAX(INT(BE101*BE143)*(1-Scenarios!BD169),0)","v":0},{"$f":"MAX(INT(BF101*BF143)*(1-Scenarios!BE169),0)","v":0},{"$f":"MAX(INT(BG101*BG143)*(1-Scenarios!BF169),0)","v":0},{"$f":"MAX(INT(BH101*BH143)*(1-Scenarios!BG169),0)","v":0},{"$f":"MAX(INT(BI101*BI143)*(1-Scenarios!BH169),0)","v":0},{"$f":"MAX(INT(BJ101*BJ143)*(1-Scenarios!BI169),0)","v":0},{"$f":"MAX(INT(BK101*BK143)*(1-Scenarios!BJ169),0)","v":0},{"$f":"MAX(INT(BL101*BL143)*(1-Scenarios!BK169),0)","v":0},{"$f":"MAX(INT(BM101*BM143)*(1-Scenarios!BL169),0)","v":0},{"$f":"MAX(INT(BN101*BN143)*(1-Scenarios!BM169),0)","v":0},{"$f":"MAX(INT(BO101*BO143)*(1-Scenarios!BN169),0)","v":0},{"$f":"MAX(INT(BP101*BP143)*(1-Scenarios!BO169),0)","v":0},{"$f":"MAX(INT(BQ101*BQ143)*(1-Scenarios!BP169),0)","v":0},{"$f":"MAX(INT(BR101*BR143)*(1-Scenarios!BQ169),0)","v":0},{"$f":"MAX(INT(BS101*BS143)*(1-Scenarios!BR169),0)","v":0},{"$f":"MAX(INT(BT101*BT143)*(1-Scenarios!BS169),0)","v":0},{"$f":"MAX(INT(BU101*BU143)*(1-Scenarios!BT169),0)","v":0},{"$f":"MAX(INT(BV101*BV143)*(1-Scenarios!BU169),0)","v":0},{"$f":"MAX(INT(BW101*BW143)*(1-Scenarios!BV169),0)","v":0},{"$f":"MAX(INT(BX101*BX143)*(1-Scenarios!BW169),0)","v":0},{"$f":"MAX(INT(BY101*BY143)*(1-Scenarios!BX169),0)","v":0},{"$f":"MAX(INT(BZ101*BZ143)*(1-Scenarios!BY169),0)","v":0},{"$f":"MAX(INT(CA101*CA143)*(1-Scenarios!BZ169),0)","v":0},{"$f":"MAX(INT(CB101*CB143)*(1-Scenarios!CA169),0)","v":0},{"$f":"MAX(INT(CC101*CC143)*(1-Scenarios!CB169),0)","v":0},{"$f":"MAX(INT(CD101*CD143)*(1-Scenarios!CC169),0)","v":0}]
["Maroondah (C)",{"$f":"AVERAGE(CustomersCOM!$H37:$J37)","v":14.666666666666666},{"$f":"MAX(INT(C102*C144)*(1-Scenarios!B170),0)","v":10},{"$f":"MAX(INT(D102*D144)*(1-Scenarios!C170),0)","v":5},{"$f":"MAX(INT(E102*E144)*(1-Scenarios!D170),0)","v":0},{"$f":"MAX(INT(F102*F144)*(1-Scenarios!E170),0)","v":0},{"$f":"MAX(INT(G102*G144)*(1-Scenarios!F170),0)","v":5},{"$f":"MAX(INT(H102*H144)*(1-Scenarios!G170),0)","v":4},{"$f":"MAX(INT(I102*I144)*(1-Scenarios!H170),0)","v":0},{"$f":"MAX(INT(J102*J144)*(1-Scenarios!I170),0)","v":0},{"$f":"MAX(INT(K102*K144)*(1-Scenarios!J170),0)","v":0},{"$f":"MAX(INT(L102*L144)*(1-Scenarios!K170),0)","v":0},{"$f":"MAX(INT(M102*M144)*(1-Scenarios!L170),0)","v":0},{"$f":"MAX(INT(N102*N144)*(1-Scenarios!M170),0)","v":0},{"$f":"MAX(INT(O102*O144)*(1-Scenarios!N170),0)","v":0},{"$f":"MAX(INT(P102*P144)*(1-Scenarios!O170),0)","v":0},{"$f":"MAX(INT(Q102*Q144)*(1-Scenarios!P170),0)","v":0},{"$f":"MAX(INT(R102*R144)*(1-Scenarios!Q170),0)","v":0},{"$f":"MAX(INT(S102*S144)*(1-Scenarios!R170),0)","v":0},{"$f":"MAX(INT(T102*T144)*(1-Scenarios!S170),0)","v":0},{"$f":"MAX(INT(U102*U144)*(1-Scenarios!T170),0)","v":0},{"$f":"MAX(INT(V102*V144)*(1-Scenarios!U170),0)","v":0},{"$f":"MAX(INT(W102*W144)*(1-Scenarios!V170),0)","v":0},{"$f":"MAX(INT(X102*X144)*(1-Scenarios!W170),0)","v":0},{"$f":"MAX(INT(Y102*Y144)*(1-Scenarios!X170),0)","v":0},{"$f":"MAX(INT(Z102*Z144)*(1-Scenarios!Y170),0)","v":0},{"$f":"MAX(INT(AA102*AA144)*(1-Scenarios!Z170),0)","v":0},{"$f":"MAX(INT(AB102*AB144)*(1-Scenarios!AA170),0)","v":0},{"$f":"MAX(INT(AC102*AC144)*(1-Scenarios!AB170),0)","v":0},{"$f":"MAX(INT(AD102*AD144)*(1-Scenarios!AC170),0)","v":0},{"$f":"MAX(INT(AE102*AE144)*(1-Scenarios!AD170),0)","v":0},{"$f":"MAX(INT(AF102*AF144)*(1-Scenarios!AE170),0)","v":0},{"$f":"MAX(INT(AG102*AG144)*(1-Scenarios!AF170),0)","v":0},{"$f":"MAX(INT(AH102*AH144)*(1-Scenarios!AG170),0)","v":0},{"$f":"MAX(INT(AI102*AI144)*(1-Scenarios!AH170),0)","v":0},{"$f":"MAX(INT(AJ102*AJ144)*(1-Scenarios!AI170),0)","v":0},{"$f":"MAX(INT(AK102*AK144)*(1-Scenarios!AJ170),0)","v":0},{"$f":"MAX(INT(AL102*AL144)*(1-Scenarios!AK170),0)","v":0},{"$f":"MAX(INT(AM102*AM144)*(1-Scenarios!AL170),0)","v":0},{"$f":"MAX(INT(AN102*AN144)*(1-Scenarios!AM170),0)","v":0},{"$f":"MAX(INT(AO102*AO144)*(1-Scenarios!AN170),0)","v":0},{"$f":"MAX(INT(AP102*AP144)*(1-Scenarios!AO170),0)","v":0},{"$f":"MAX(INT(AQ102*AQ144)*(1-Scenarios!AP170),0)","v":0},{"$f":"MAX(INT(AR102*AR144)*(1-Scenarios!AQ170),0)","v":0},{"$f":"MAX(INT(AS102*AS144)*(1-Scenarios!AR170),0)","v":0},{"$f":"MAX(INT(AT102*AT144)*(1-Scenarios!AS170),0)","v":0},{"$f":"MAX(INT(AU102*AU144)*(1-Scenarios!AT170),0)","v":0},{"$f":"MAX(INT(AV102*AV144)*(1-Scenarios!AU170),0)","v":0},{"$f":"MAX(INT(AW102*AW144)*(1-Scenarios!AV170),0)","v":0},{"$f":"MAX(INT(AX102*AX144)*(1-Scenarios!AW170),0)","v":0},{"$f":"MAX(INT(AY102*AY144)*(1-Scenarios!AX170),0)","v":0},{"$f":"MAX(INT(AZ102*AZ144)*(1-Scenarios!AY170),0)","v":0},{"$f":"MAX(INT(BA102*BA144)*(1-Scenarios!AZ170),0)","v":0},{"$f":"MAX(INT(BB102*BB144)*(1-Scenarios!BA170),0)","v":0},{"$f":"MAX(INT(BC102*BC144)*(1-Scenarios!BB170),0)","v":0},{"$f":"MAX(INT(BD102*BD144)*(1-Scenarios!BC170),0)","v":0},{"$f":"MAX(INT(BE102*BE144)*(1-Scenarios!BD170),0)","v":0},{"$f":"MAX(INT(BF102*BF144)*(1-Scenarios!BE170),0)","v":0},{"$f":"MAX(INT(BG102*BG144)*(1-Scenarios!BF170),0)","v":0},{"$f":"MAX(INT(BH102*BH144)*(1-Scenarios!BG170),0)","v":0},{"$f":"MAX(INT(BI102*BI144)*(1-Scenarios!BH170),0)","v":0},{"$f":"MAX(INT(BJ102*BJ144)*(1-Scenarios!BI170),0)","v":0},{"$f":"MAX(INT(BK102*BK144)*(1-Scenarios!BJ170),0)","v":0},{"$f":"MAX(INT(BL102*BL144)*(1-Scenarios!BK170),0)","v":0},{"$f":"MAX(INT(BM102*BM144)*(1-Scenarios!BL170),0)","v":0},{"$f":"MAX(INT(BN102*BN144)*(1-Scenarios!BM170),0)","v":0},{"$f":"MAX(INT(BO102*BO144)*(1-Scenarios!BN170),0)","v":0},{"$f":"MAX(INT(BP102*BP144)*(1-Scenarios!BO170),0)","v":0},{"$f":"MAX(INT(BQ102*BQ144)*(1-Scenarios!BP170),0)","v":0},{"$f":"MAX(INT(BR102*BR144)*(1-Scenarios!BQ170),0)","v":0},{"$f":"MAX(INT(BS102*BS144)*(1-Scenarios!BR170),0)","v":0},{"$f":"MAX(INT(BT102*BT144)*(1-Scenarios!BS170),0)","v":0},{"$f":"MAX(INT(BU102*BU144)*(1-Scenarios!BT170),0)","v":0},{"$f":"MAX(INT(BV102*BV144)*(1-Scenarios!BU170),0)","v":0},{"$f":"MAX(INT(BW102*BW144)*(1-Scenarios!BV170),0)","v":0},{"$f":"MAX(INT(BX102*BX144)*(1-Scenarios!BW170),0)","v":0},{"$f":"MAX(INT(BY102*BY144)*(1-Scenarios!BX170),0)","v":0},{"$f":"MAX(INT(BZ102*BZ144)*(1-Scenarios!BY170),0)","v":0},{"$f":"MAX(INT(CA102*CA144)*(1-Scenarios!BZ170),0)","v":0},{"$f":"MAX(INT(CB102*CB144)*(1-Scenarios!CA170),0)","v":0},{"$f":"MAX(INT(CC102*CC144)*(1-Scenarios!CB170),0)","v":0},{"$f":"MAX(INT(CD102*CD144)*(1-Scenarios!CC170),0)","v":0}]
["Melbourne (C)",{"$f":"AVERAGE(CustomersCOM!$H38:$J38)","v":9.6666666666666661},{"$f":"MAX(INT(C103*C145)*(1-Scenarios!B171),0)","v":3},{"$f":"MAX(INT(D103*D145)*(1-Scenarios!C171),0)","v":3},{"$f":"MAX(INT(E103*E145)*(1-Scenarios!D171),0)","v":0},{"$f":"MAX(INT(F103*F145)*(1-Scenarios!E171),0)","v":0},{"$f":"MAX(INT(G103*G145)*(1-Scenarios!F171),0)","v":3},{"$f":"MAX(INT(H103*H145)*(1-Scenarios!G171),0)","v":3},{"$f":"MAX(INT(I103*I145)*(1-Scenarios!H171),0)","v":0},{"$f":"MAX(INT(J103*J145)*(1-Scenarios!I171),0)","v":0},{"$f":"MAX(INT(K103*K145)*(1-Scenarios!J171),0)","v":0},{"$f":"MAX(INT(L103*L145)*(1-Scenarios!K171),0)","v":0},{"$f":"MAX(INT(M103*M145)*(1-Scenarios!L171),0)","v":0},{"$f":"MAX(INT(N103*N145)*(1-Scenarios!M171),0)","v":0},{"$f":"MAX(INT(O103*O145)*(1-Scenarios!N171),0)","v":0},{"$f":"MAX(INT(P103*P145)*(1-Scenarios!O171),0)","v":0},{"$f":"MAX(INT(Q103*Q145)*(1-Scenarios!P171),0)","v":0},{"$f":"MAX(INT(R103*R145)*(1-Scenarios!Q171),0)","v":0},{"$f":"MAX(INT(S103*S145)*(1-Scenarios!R171),0)","v":0},{"$f":"MAX(INT(T103*T145)*(1-Scenarios!S171),0)","v":0},{"$f":"MAX(INT(U103*U145)*(1-Scenarios!T171),0)","v":0},{"$f":"MAX(INT(V103*V145)*(1-Scenarios!U171),0)","v":0},{"$f":"MAX(INT(W103*W145)*(1-Scenarios!V171),0)","v":0},{"$f":"MAX(INT(X103*X145)*(1-Scenarios!W171),0)","v":0},{"$f":"MAX(INT(Y103*Y145)*(1-Scenarios!X171),0)","v":0},{"$f":"MAX(INT(Z103*Z145)*(1-Scenarios!Y171),0)","v":0},{"$f":"MAX(INT(AA103*AA145)*(1-Scenarios!Z171),0)","v":0},{"$f":"MAX(INT(AB103*AB145)*(1-Scenarios!AA171),0)","v":0},{"$f":"MAX(INT(AC103*AC145)*(1-Scenarios!AB171),0)","v":0},{"$f":"MAX(INT(AD103*AD145)*(1-Scenarios!AC171),0)","v":0},{"$f":"MAX(INT(AE103*AE145)*(1-Scenarios!AD171),0)","v":0},{"$f":"MAX(INT(AF103*AF145)*(1-Scenarios!AE171),0)","v":0},{"$f":"MAX(INT(AG103*AG145)*(1-Scenarios!AF171),0)","v":0},{"$f":"MAX(INT(AH103*AH145)*(1-Scenarios!AG171),0)","v":0},{"$f":"MAX(INT(AI103*AI145)*(1-Scenarios!AH171),0)","v":0},{"$f":"MAX(INT(AJ103*AJ145)*(1-Scenarios!AI171),0)","v":0},{"$f":"MAX(INT(AK103*AK145)*(1-Scenarios!AJ171),0)","v":0},{"$f":"MAX(INT(AL103*AL145)*(1-Scenarios!AK171),0)","v":0},{"$f":"MAX(INT(AM103*AM145)*(1-Scenarios!AL171),0)","v":0},{"$f":"MAX(INT(AN103*AN145)*(1-Scenarios!AM171),0)","v":0},{"$f":"MAX(INT(AO103*AO145)*(1-Scenarios!AN171),0)","v":0},{"$f":"MAX(INT(AP103*AP145)*(1-Scenarios!AO171),0)","v":0},{"$f":"MAX(INT(AQ103*AQ145)*(1-Scenarios!AP171),0)","v":0},{"$f":"MAX(INT(AR103*AR145)*(1-Scenarios!AQ171),0)","v":0},{"$f":"MAX(INT(AS103*AS145)*(1-Scenarios!AR171),0)","v":0},{"$f":"MAX(INT(AT103*AT145)*(1-Scenarios!AS171),0)","v":0},{"$f":"MAX(INT(AU103*AU145)*(1-Scenarios!AT171),0)","v":0},{"$f":"MAX(INT(AV103*AV145)*(1-Scenarios!AU171),0)","v":0},{"$f":"MAX(INT(AW103*AW145)*(1-Scenarios!AV171),0)","v":0},{"$f":"MAX(INT(AX103*AX145)*(1-Scenarios!AW171),0)","v":0},{"$f":"MAX(INT(AY103*AY145)*(1-Scenarios!AX171),0)","v":0},{"$f":"MAX(INT(AZ103*AZ145)*(1-Scenarios!AY171),0)","v":0},{"$f":"MAX(INT(BA103*BA145)*(1-Scenarios!AZ171),0)","v":0},{"$f":"MAX(INT(BB103*BB145)*(1-Scenarios!BA171),0)","v":0},{"$f":"MAX(INT(BC103*BC145)*(1-Scenarios!BB171),0)","v":0},{"$f":"MAX(INT(BD103*BD145)*(1-Scenarios!BC171),0)","v":0},{"$f":"MAX(INT(BE103*BE145)*(1-Scenarios!BD171),0)","v":0},{"$f":"MAX(INT(BF103*BF145)*(1-Scenarios!BE171),0)","v":0},{"$f":"MAX(INT(BG103*BG145)*(1-Scenarios!BF171),0)","v":0},{"$f":"MAX(INT(BH103*BH145)*(1-Scenarios!BG171),0)","v":0},{"$f":"MAX(INT(BI103*BI145)*(1-Scenarios!BH171),0)","v":0},{"$f":"MAX(INT(BJ103*BJ145)*(1-Scenarios!BI171),0)","v":0},{"$f":"MAX(INT(BK103*BK145)*(1-Scenarios!BJ171),0)","v":0},{"$f":"MAX(INT(BL103*BL145)*(1-Scenarios!BK171),0)","v":0},{"$f":"MAX(INT(BM103*BM145)*(1-Scenarios!BL171),0)","v":0},{"$f":"MAX(INT(BN103*BN145)*(1-Scenarios!BM171),0)","v":0},{"$f":"MAX(INT(BO103*BO145)*(1-Scenarios!BN171),0)","v":0},{"$f":"MAX(INT(BP103*BP145)*(1-Scenarios!BO171),0)","v":0},{"$f":"MAX(INT(BQ103*BQ145)*(1-Scenarios!BP171),0)","v":0},{"$f":"MAX(INT(BR103*BR145)*(1-Scenarios!BQ171),0)","v":0},{"$f":"MAX(INT(BS103*BS145)*(1-Scenarios!BR171),0)","v":0},{"$f":"MAX(INT(BT103*BT145)*(1-Scenarios!BS171),0)","v":0},{"$f":"MAX(INT(BU103*BU145)*(1-Scenarios!BT171),0)","v":0},{"$f":"MAX(INT(BV103*BV145)*(1-Scenarios!BU171),0)","v":0},{"$f":"MAX(INT(BW103*BW145)*(1-Scenarios!BV171),0)","v":0},{"$f":"MAX(INT(BX103*BX145)*(1-Scenarios!BW171),0)","v":0},{"$f":"MAX(INT(BY103*BY145)*(1-Scenarios!BX171),0)","v":0},{"$f":"MAX(INT(BZ103*BZ145)*(1-Scenarios!BY171),0)","v":0},{"$f":"MAX(INT(CA103*CA145)*(1-Scenarios!BZ171),0)","v":0},{"$f":"MAX(INT(CB103*CB145)*(1-Scenarios!CA171),0)","v":0},{"$f":"MAX(INT(CC103*CC145)*(1-Scenarios!CB171),0)","v":0},{"$f":"MAX(INT(CD103*CD145)*(1-Scenarios!CC171),0)","v":0}]
["Monash (C)",{"$f":"AVERAGE(CustomersCOM!$H39:$J39)","v":34.666666666666664},{"$f":"MAX(INT(C104*C146)*(1-Scenarios!B172),0)","v":24},{"$f":"MAX(INT(D104*D146)*(1-Scenarios!C172),0)","v":13},{"$f":"MAX(INT(E104*E146)*(1-Scenarios!D172),0)","v":0},{"$f":"MAX(INT(F104*F146)*(1-Scenarios!E172),0)","v":0},{"$f":"MAX(INT(G104*G146)*(1-Scenarios!F172),0)","v":13},{"$f":"MAX(INT(H104*H146)*(1-Scenarios!G172),0)","v":11},{"$f":"MAX(INT(I104*I146)*(1-Scenarios!H172),0)","v":1},{"$f":"MAX(INT(J104*J146)*(1-Scenarios!I172),0)","v":1},{"$f":"MAX(INT(K104*K146)*(1-Scenarios!J172),0)","v":0},{"$f":"MAX(INT(L104*L146)*(1-Scenarios!K172),0)","v":0},{"$f":"MAX(INT(M104*M146)*(1-Scenarios!L172),0)","v":0},{"$f":"MAX(INT(N104*N146)*(1-Scenarios!M172),0)","v":0},{"$f":"MAX(INT(O104*O146)*(1-Scenarios!N172),0)","v":0},{"$f":"MAX(INT(P104*P146)*(1-Scenarios!O172),0)","v":0},{"$f":"MAX(INT(Q104*Q146)*(1-Scenarios!P172),0)","v":0},{"$f":"MAX(INT(R104*R146)*(1-Scenarios!Q172),0)","v":0},{"$f":"MAX(INT(S104*S146)*(1-Scenarios!R172),0)","v":0},{"$f":"MAX(INT(T104*T146)*(1-Scenarios!S172),0)","v":0},{"$f":"MAX(INT(U104*U146)*(1-Scenarios!T172),0)","v":0},{"$f":"MAX(INT(V104*V146)*(1-Scenarios!U172),0)","v":0},{"$f":"MAX(INT(W104*W146)*(1-Scenarios!V172),0)","v":0},{"$f":"MAX(INT(X104*X146)*(1-Scenarios!W172),0)","v":0},{"$f":"MAX(INT(Y104*Y146)*(1-Scenarios!X172),0)","v":0},{"$f":"MAX(INT(Z104*Z146)*(1-Scenarios!Y172),0)","v":0},{"$f":"MAX(INT(AA104*AA146)*(1-Scenarios!Z172),0)","v":0},{"$f":"MAX(INT(AB104*AB146)*(1-Scenarios!AA172),0)","v":0},{"$f":"MAX(INT(AC104*AC146)*(1-Scenarios!AB172),0)","v":0},{"$f":"MAX(INT(AD104*AD146)*(1-Scenarios!AC172),0)","v":0},{"$f":"MAX(INT(AE104*AE146)*(1-Scenarios!AD172),0)","v":0},{"$f":"MAX(INT(AF104*AF146)*(1-Scenarios!AE172),0)","v":0},{"$f":"MAX(INT(AG104*AG146)*(1-Scenarios!AF172),0)","v":0},{"$f":"MAX(INT(AH104*AH146)*(1-Scenarios!AG172),0)","v":0},{"$f":"MAX(INT(AI104*AI146)*(1-Scenarios!AH172),0)","v":0},{"$f":"MAX(INT(AJ104*AJ146)*(1-Scenarios!AI172),0)","v":0},{"$f":"MAX(INT(AK104*AK146)*(1-Scenarios!AJ172),0)","v":0},{"$f":"MAX(INT(AL104*AL146)*(1-Scenarios!AK172),0)","v":0},{"$f":"MAX(INT(AM104*AM146)*(1-Scenarios!AL172),0)","v":0},{"$f":"MAX(INT(AN104*AN146)*(1-Scenarios!AM172),0)","v":0},{"$f":"MAX(INT(AO104*AO146)*(1-Scenarios!AN172),0)","v":0},{"$f":"MAX(INT(AP104*AP146)*(1-Scenarios!AO172),0)","v":0},{"$f":"MAX(INT(AQ104*AQ146)*(1-Scenarios!AP172),0)","v":0},{"$f":"MAX(INT(AR104*AR146)*(1-Scenarios!AQ172),0)","v":0},{"$f":"MAX(INT(AS104*AS146)*(1-Scenarios!AR172),0)","v":0},{"$f":"MAX(INT(AT104*AT146)*(1-Scenarios!AS172),0)","v":0},{"$f":"MAX(INT(AU104*AU146)*(1-Scenarios!AT172),0)","v":0},{"$f":"MAX(INT(AV104*AV146)*(1-Scenarios!AU172),0)","v":0},{"$f":"MAX(INT(AW104*AW146)*(1-Scenarios!AV172),0)","v":0},{"$f":"MAX(INT(AX104*AX146)*(1-Scenarios!AW172),0)","v":0},{"$f":"MAX(INT(AY104*AY146)*(1-Scenarios!AX172),0)","v":0},{"$f":"MAX(INT(AZ104*AZ146)*(1-Scenarios!AY172),0)","v":0},{"$f":"MAX(INT(BA104*BA146)*(1-Scenarios!AZ172),0)","v":0},{"$f":"MAX(INT(BB104*BB146)*(1-Scenarios!BA172),0)","v":0},{"$f":"MAX(INT(BC104*BC146)*(1-Scenarios!BB172),0)","v":0},{"$f":"MAX(INT(BD104*BD146)*(1-Scenarios!BC172),0)","v":0},{"$f":"MAX(INT(BE104*BE146)*(1-Scenarios!BD172),0)","v":0},{"$f":"MAX(INT(BF104*BF146)*(1-Scenarios!BE172),0)","v":0},{"$f":"MAX(INT(BG104*BG146)*(1-Scenarios!BF172),0)","v":0},{"$f":"MAX(INT(BH104*BH146)*(1-Scenarios!BG172),0)","v":0},{"$f":"MAX(INT(BI104*BI146)*(1-Scenarios!BH172),0)","v":0},{"$f":"MAX(INT(BJ104*BJ146)*(1-Scenarios!BI172),0)","v":0},{"$f":"MAX(INT(BK104*BK146)*(1-Scenarios!BJ172),0)","v":0},{"$f":"MAX(INT(BL104*BL146)*(1-Scenarios!BK172),0)","v":0},{"$f":"MAX(INT(BM104*BM146)*(1-Scenarios!BL172),0)","v":0},{"$f":"MAX(INT(BN104*BN146)*(1-Scenarios!BM172),0)","v":0},{"$f":"MAX(INT(BO104*BO146)*(1-Scenarios!BN172),0)","v":0},{"$f":"MAX(INT(BP104*BP146)*(1-Scenarios!BO172),0)","v":0},{"$f":"MAX(INT(BQ104*BQ146)*(1-Scenarios!BP172),0)","v":0},{"$f":"MAX(INT(BR104*BR146)*(1-Scenarios!BQ172),0)","v":0},{"$f":"MAX(INT(BS104*BS146)*(1-Scenarios!BR172),0)","v":0},{"$f":"MAX(INT(BT104*BT146)*(1-Scenarios!BS172),0)","v":0},{"$f":"MAX(INT(BU104*BU146)*(1-Scenarios!BT172),0)","v":0},{"$f":"MAX(INT(BV104*BV146)*(1-Scenarios!BU172),0)","v":0},{"$f":"MAX(INT(BW104*BW146)*(1-Scenarios!BV172),0)","v":0},{"$f":"MAX(INT(BX104*BX146)*(1-Scenarios!BW172),0)","v":0},{"$f":"MAX(INT(BY104*BY146)*(1-Scenarios!BX172),0)","v":0},{"$f":"MAX(INT(BZ104*BZ146)*(1-Scenarios!BY172),0)","v":0},{"$f":"MAX(INT(CA104*CA146)*(1-Scenarios!BZ172),0)","v":0},{"$f":"MAX(INT(CB104*CB146)*(1-Scenarios!CA172),0)","v":0},{"$f":"MAX(INT(CC104*CC146)*(1-Scenarios!CB172),0)","v":0},{"$f":"MAX(INT(CD104*CD146)*(1-Scenarios!CC172),0)","v":0}]
["Port Phillip (C)",{"$f":"AVERAGE(CustomersCOM!$H40:$J40)","v":37},{"$f":"MAX(INT(C105*C147)*(1-Scenarios!B173),0)","v":29},{"$f":"MAX(INT(D105*D147)*(1-Scenarios!C173),0)","v":19},{"$f":"MAX(INT(E105*E147)*(1-Scenarios!D173),0)","v":0},{"$f":"MAX(INT(F105*F147)*(1-Scenarios!E173),0)","v":0},{"$f":"MAX(INT(G105*G147)*(1-Scenarios!F173),0)","v":18},{"$f":"MAX(INT(H105*H147)*(1-Scenarios!G173),0)","v":15},{"$f":"MAX(INT(I105*I147)*(1-Scenarios!H173),0)","v":2},{"$f":"MAX(INT(J105*J147)*(1-Scenarios!I173),0)","v":2},{"$f":"MAX(INT(K105*K147)*(1-Scenarios!J173),0)","v":0},{"$f":"MAX(INT(L105*L147)*(1-Scenarios!K173),0)","v":0},{"$f":"MAX(INT(M105*M147)*(1-Scenarios!L173),0)","v":0},{"$f":"MAX(INT(N105*N147)*(1-Scenarios!M173),0)","v":0},{"$f":"MAX(INT(O105*O147)*(1-Scenarios!N173),0)","v":0},{"$f":"MAX(INT(P105*P147)*(1-Scenarios!O173),0)","v":0},{"$f":"MAX(INT(Q105*Q147)*(1-Scenarios!P173),0)","v":0},{"$f":"MAX(INT(R105*R147)*(1-Scenarios!Q173),0)","v":0},{"$f":"MAX(INT(S105*S147)*(1-Scenarios!R173),0)","v":0},{"$f":"MAX(INT(T105*T147)*(1-Scenarios!S173),0)","v":0},{"$f":"MAX(INT(U105*U147)*(1-Scenarios!T173),0)","v":0},{"$f":"MAX(INT(V105*V147)*(1-Scenarios!U173),0)","v":0},{"$f":"MAX(INT(W105*W147)*(1-Scenarios!V173),0)","v":0},{"$f":"MAX(INT(X105*X147)*(1-Scenarios!W173),0)","v":0},{"$f":"MAX(INT(Y105*Y147)*(1-Scenarios!X173),0)","v":0},{"$f":"MAX(INT(Z105*Z147)*(1-Scenarios!Y173),0)","v":0},{"$f":"MAX(INT(AA105*AA147)*(1-Scenarios!Z173),0)","v":0},{"$f":"MAX(INT(AB105*AB147)*(1-Scenarios!AA173),0)","v":0},{"$f":"MAX(INT(AC105*AC147)*(1-Scenarios!AB173),0)","v":0},{"$f":"MAX(INT(AD105*AD147)*(1-Scenarios!AC173),0)","v":0},{"$f":"MAX(INT(AE105*AE147)*(1-Scenarios!AD173),0)","v":0},{"$f":"MAX(INT(AF105*AF147)*(1-Scenarios!AE173),0)","v":0},{"$f":"MAX(INT(AG105*AG147)*(1-Scenarios!AF173),0)","v":0},{"$f":"MAX(INT(AH105*AH147)*(1-Scenarios!AG173),0)","v":0},{"$f":"MAX(INT(AI105*AI147)*(1-Scenarios!AH173),0)","v":0},{"$f":"MAX(INT(AJ105*AJ147)*(1-Scenarios!AI173),0)","v":0},{"$f":"MAX(INT(AK105*AK147)*(1-Scenarios!AJ173),0)","v":0},{"$f":"MAX(INT(AL105*AL147)*(1-Scenarios!AK173),0)","v":0},{"$f":"MAX(INT(AM105*AM147)*(1-Scenarios!AL173),0)","v":0},{"$f":"MAX(INT(AN105*AN147)*(1-Scenarios!AM173),0)","v":0},{"$f":"MAX(INT(AO105*AO147)*(1-Scenarios!AN173),0)","v":0},{"$f":"MAX(INT(AP105*AP147)*(1-Scenarios!AO173),0)","v":0},{"$f":"MAX(INT(AQ105*AQ147)*(1-Scenarios!AP173),0)","v":0},{"$f":"MAX(INT(AR105*AR147)*(1-Scenarios!AQ173),0)","v":0},{"$f":"MAX(INT(AS105*AS147)*(1-Scenarios!AR173),0)","v":0},{"$f":"MAX(INT(AT105*AT147)*(1-Scenarios!AS173),0)","v":0},{"$f":"MAX(INT(AU105*AU147)*(1-Scenarios!AT173),0)","v":0},{"$f":"MAX(INT(AV105*AV147)*(1-Scenarios!AU173),0)","v":0},{"$f":"MAX(INT(AW105*AW147)*(1-Scenarios!AV173),0)","v":0},{"$f":"MAX(INT(AX105*AX147)*(1-Scenarios!AW173),0)","v":0},{"$f":"MAX(INT(AY105*AY147)*(1-Scenarios!AX173),0)","v":0},{"$f":"MAX(INT(AZ105*AZ147)*(1-Scenarios!AY173),0)","v":0},{"$f":"MAX(INT(BA105*BA147)*(1-Scenarios!AZ173),0)","v":0},{"$f":"MAX(INT(BB105*BB147)*(1-Scenarios!BA173),0)","v":0},{"$f":"MAX(INT(BC105*BC147)*(1-Scenarios!BB173),0)","v":0},{"$f":"MAX(INT(BD105*BD147)*(1-Scenarios!BC173),0)","v":0},{"$f":"MAX(INT(BE105*BE147)*(1-Scenarios!BD173),0)","v":0},{"$f":"MAX(INT(BF105*BF147)*(1-Scenarios!BE173),0)","v":0},{"$f":"MAX(INT(BG105*BG147)*(1-Scenarios!BF173),0)","v":0},{"$f":"MAX(INT(BH105*BH147)*(1-Scenarios!BG173),0)","v":0},{"$f":"MAX(INT(BI105*BI147)*(1-Scenarios!BH173),0)","v":0},{"$f":"MAX(INT(BJ105*BJ147)*(1-Scenarios!BI173),0)","v":0},{"$f":"MAX(INT(BK105*BK147)*(1-Scenarios!BJ173),0)","v":0},{"$f":"MAX(INT(BL105*BL147)*(1-Scenarios!BK173),0)","v":0},{"$f":"MAX(INT(BM105*BM147)*(1-Scenarios!BL173),0)","v":0},{"$f":"MAX(INT(BN105*BN147)*(1-Scenarios!BM173),0)","v":0},{"$f":"MAX(INT(BO105*BO147)*(1-Scenarios!BN173),0)","v":0},{"$f":"MAX(INT(BP105*BP147)*(1-Scenarios!BO173),0)","v":0},{"$f":"MAX(INT(BQ105*BQ147)*(1-Scenarios!BP173),0)","v":0},{"$f":"MAX(INT(BR105*BR147)*(1-Scenarios!BQ173),0)","v":0},{"$f":"MAX(INT(BS105*BS147)*(1-Scenarios!BR173),0)","v":0},{"$f":"MAX(INT(BT105*BT147)*(1-Scenarios!BS173),0)","v":0},{"$f":"MAX(INT(BU105*BU147)*(1-Scenarios!BT173),0)","v":0},{"$f":"MAX(INT(BV105*BV147)*(1-Scenarios!BU173),0)","v":0},{"$f":"MAX(INT(BW105*BW147)*(1-Scenarios!BV173),0)","v":0},{"$f":"MAX(INT(BX105*BX147)*(1-Scenarios!BW173),0)","v":0},{"$f":"MAX(INT(BY105*BY147)*(1-Scenarios!BX173),0)","v":0},{"$f":"MAX(INT(BZ105*BZ147)*(1-Scenarios!BY173),0)","v":0},{"$f":"MAX(INT(CA105*CA147)*(1-Scenarios!BZ173),0)","v":0},{"$f":"MAX(INT(CB105*CB147)*(1-Scenarios!CA173),0)","v":0},{"$f":"MAX(INT(CC105*CC147)*(1-Scenarios!CB173),0)","v":0},{"$f":"MAX(INT(CD105*CD147)*(1-Scenarios!CC173),0)","v":0}]
["South Gippsland (S)",{"$f":"AVERAGE(CustomersCOM!$H41:$J41)","v":2},{"$f":"MAX(INT(C106*C148)*(1-Scenarios!B174),0)","v":0},{"$f":"MAX(INT(D106*D148)*(1-Scenarios!C174),0)","v":0},{"$f":"MAX(INT(E106*E148)*(1-Scenarios!D174),0)","v":0},{"$f":"MAX(INT(F106*F148)*(1-Scenarios!E174),0)","v":0},{"$f":"MAX(INT(G106*G148)*(1-Scenarios!F174),0)","v":0},{"$f":"MAX(INT(H106*H148)*(1-Scenarios!G174),0)","v":0},{"$f":"MAX(INT(I106*I148)*(1-Scenarios!H174),0)","v":0},{"$f":"MAX(INT(J106*J148)*(1-Scenarios!I174),0)","v":0},{"$f":"MAX(INT(K106*K148)*(1-Scenarios!J174),0)","v":0},{"$f":"MAX(INT(L106*L148)*(1-Scenarios!K174),0)","v":0},{"$f":"MAX(INT(M106*M148)*(1-Scenarios!L174),0)","v":0},{"$f":"MAX(INT(N106*N148)*(1-Scenarios!M174),0)","v":0},{"$f":"MAX(INT(O106*O148)*(1-Scenarios!N174),0)","v":0},{"$f":"MAX(INT(P106*P148)*(1-Scenarios!O174),0)","v":0},{"$f":"MAX(INT(Q106*Q148)*(1-Scenarios!P174),0)","v":0},{"$f":"MAX(INT(R106*R148)*(1-Scenarios!Q174),0)","v":0},{"$f":"MAX(INT(S106*S148)*(1-Scenarios!R174),0)","v":0},{"$f":"MAX(INT(T106*T148)*(1-Scenarios!S174),0)","v":0},{"$f":"MAX(INT(U106*U148)*(1-Scenarios!T174),0)","v":0},{"$f":"MAX(INT(V106*V148)*(1-Scenarios!U174),0)","v":0},{"$f":"MAX(INT(W106*W148)*(1-Scenarios!V174),0)","v":0},{"$f":"MAX(INT(X106*X148)*(1-Scenarios!W174),0)","v":0},{"$f":"MAX(INT(Y106*Y148)*(1-Scenarios!X174),0)","v":0},{"$f":"MAX(INT(Z106*Z148)*(1-Scenarios!Y174),0)","v":0},{"$f":"MAX(INT(AA106*AA148)*(1-Scenarios!Z174),0)","v":0},{"$f":"MAX(INT(AB106*AB148)*(1-Scenarios!AA174),0)","v":0},{"$f":"MAX(INT(AC106*AC148)*(1-Scenarios!AB174),0)","v":0},{"$f":"MAX(INT(AD106*AD148)*(1-Scenarios!AC174),0)","v":0},{"$f":"MAX(INT(AE106*AE148)*(1-Scenarios!AD174),0)","v":0},{"$f":"MAX(INT(AF106*AF148)*(1-Scenarios!AE174),0)","v":0},{"$f":"MAX(INT(AG106*AG148)*(1-Scenarios!AF174),0)","v":0},{"$f":"MAX(INT(AH106*AH148)*(1-Scenarios!AG174),0)","v":0},{"$f":"MAX(INT(AI106*AI148)*(1-Scenarios!AH174),0)","v":0},{"$f":"MAX(INT(AJ106*AJ148)*(1-Scenarios!AI174),0)","v":0},{"$f":"MAX(INT(AK106*AK148)*(1-Scenarios!AJ174),0)","v":0},{"$f":"MAX(INT(AL106*AL148)*(1-Scenarios!AK174),0)","v":0},{"$f":"MAX(INT(AM106*AM148)*(1-Scenarios!AL174),0)","v":0},{"$f":"MAX(INT(AN106*AN148)*(1-Scenarios!AM174),0)","v":0},{"$f":"MAX(INT(AO106*AO148)*(1-Scenarios!AN174),0)","v":0},{"$f":"MAX(INT(AP106*AP148)*(1-Scenarios!AO174),0)","v":0},{"$f":"MAX(INT(AQ106*AQ148)*(1-Scenarios!AP174),0)","v":0},{"$f":"MAX(INT(AR106*AR148)*(1-Scenarios!AQ174),0)","v":0},{"$f":"MAX(INT(AS106*AS148)*(1-Scenarios!AR174),0)","v":0},{"$f":"MAX(INT(AT106*AT148)*(1-Scenarios!AS174),0)","v":0},{"$f":"MAX(INT(AU106*AU148)*(1-Scenarios!AT174),0)","v":0},{"$f":"MAX(INT(AV106*AV148)*(1-Scenarios!AU174),0)","v":0},{"$f":"MAX(INT(AW106*AW148)*(1-Scenarios!AV174),0)","v":0},{"$f":"MAX(INT(AX106*AX148)*(1-Scenarios!AW174),0)","v":0},{"$f":"MAX(INT(AY106*AY148)*(1-Scenarios!AX174),0)","v":0},{"$f":"MAX(INT(AZ106*AZ148)*(1-Scenarios!AY174),0)","v":0},{"$f":"MAX(INT(BA106*BA148)*(1-Scenarios!AZ174),0)","v":0},{"$f":"MAX(INT(BB106*BB148)*(1-Scenarios!BA174),0)","v":0},{"$f":"MAX(INT(BC106*BC148)*(1-Scenarios!BB174),0)","v":0},{"$f":"MAX(INT(BD106*BD148)*(1-Scenarios!BC174),0)","v":0},{"$f":"MAX(INT(BE106*BE148)*(1-Scenarios!BD174),0)","v":0},{"$f":"MAX(INT(BF106*BF148)*(1-Scenarios!BE174),0)","v":0},{"$f":"MAX(INT(BG106*BG148)*(1-Scenarios!BF174),0)","v":0},{"$f":"MAX(INT(BH106*BH148)*(1-Scenarios!BG174),0)","v":0},{"$f":"MAX(INT(BI106*BI148)*(1-Scenarios!BH174),0)","v":0},{"$f":"MAX(INT(BJ106*BJ148)*(1-Scenarios!BI174),0)","v":0},{"$f":"MAX(INT(BK106*BK148)*(1-Scenarios!BJ174),0)","v":0},{"$f":"MAX(INT(BL106*BL148)*(1-Scenarios!BK174),0)","v":0},{"$f":"MAX(INT(BM106*BM148)*(1-Scenarios!BL174),0)","v":0},{"$f":"MAX(INT(BN106*BN148)*(1-Scenarios!BM174),0)","v":0},{"$f":"MAX(INT(BO106*BO148)*(1-Scenarios!BN174),0)","v":0},{"$f":"MAX(INT(BP106*BP148)*(1-Scenarios!BO174),0)","v":0},{"$f":"MAX(INT(BQ106*BQ148)*(1-Scenarios!BP174),0)","v":0},{"$f":"MAX(INT(BR106*BR148)*(1-Scenarios!BQ174),0)","v":0},{"$f":"MAX(INT(BS106*BS148)*(1-Scenarios!BR174),0)","v":0},{"$f":"MAX(INT(BT106*BT148)*(1-Scenarios!BS174),0)","v":0},{"$f":"MAX(INT(BU106*BU148)*(1-Scenarios!BT174),0)","v":0},{"$f":"MAX(INT(BV106*BV148)*(1-Scenarios!BU174),0)","v":0},{"$f":"MAX(INT(BW106*BW148)*(1-Scenarios!BV174),0)","v":0},{"$f":"MAX(INT(BX106*BX148)*(1-Scenarios!BW174),0)","v":0},{"$f":"MAX(INT(BY106*BY148)*(1-Scenarios!BX174),0)","v":0},{"$f":"MAX(INT(BZ106*BZ148)*(1-Scenarios!BY174),0)","v":0},{"$f":"MAX(INT(CA106*CA148)*(1-Scenarios!BZ174),0)","v":0},{"$f":"MAX(INT(CB106*CB148)*(1-Scenarios!CA174),0)","v":0},{"$f":"MAX(INT(CC106*CC148)*(1-Scenarios!CB174),0)","v":0},{"$f":"MAX(INT(CD106*CD148)*(1-Scenarios!CC174),0)","v":0}]
["Stonnington (C)",{"$f":"AVERAGE(CustomersCOM!$H42:$J42)","v":52.666666666666664},{"$f":"MAX(INT(C107*C149)*(1-Scenarios!B175),0)","v":25},{"$f":"MAX(INT(D107*D149)*(1-Scenarios!C175),0)","v":13},{"$f":"MAX(INT(E107*E149)*(1-Scenarios!D175),0)","v":0},{"$f":"MAX(INT(F107*F149)*(1-Scenarios!E175),0)","v":0},{"$f":"MAX(INT(G107*G149)*(1-Scenarios!F175),0)","v":12},{"$f":"MAX(INT(H107*H149)*(1-Scenarios!G175),0)","v":10},{"$f":"MAX(INT(I107*I149)*(1-Scenarios!H175),0)","v":2},{"$f":"MAX(INT(J107*J149)*(1-Scenarios!I175),0)","v":2},{"$f":"MAX(INT(K107*K149)*(1-Scenarios!J175),0)","v":0},{"$f":"MAX(INT(L107*L149)*(1-Scenarios!K175),0)","v":0},{"$f":"MAX(INT(M107*M149)*(1-Scenarios!L175),0)","v":0},{"$f":"MAX(INT(N107*N149)*(1-Scenarios!M175),0)","v":0},{"$f":"MAX(INT(O107*O149)*(1-Scenarios!N175),0)","v":0},{"$f":"MAX(INT(P107*P149)*(1-Scenarios!O175),0)","v":0},{"$f":"MAX(INT(Q107*Q149)*(1-Scenarios!P175),0)","v":0},{"$f":"MAX(INT(R107*R149)*(1-Scenarios!Q175),0)","v":0},{"$f":"MAX(INT(S107*S149)*(1-Scenarios!R175),0)","v":0},{"$f":"MAX(INT(T107*T149)*(1-Scenarios!S175),0)","v":0},{"$f":"MAX(INT(U107*U149)*(1-Scenarios!T175),0)","v":0},{"$f":"MAX(INT(V107*V149)*(1-Scenarios!U175),0)","v":0},{"$f":"MAX(INT(W107*W149)*(1-Scenarios!V175),0)","v":0},{"$f":"MAX(INT(X107*X149)*(1-Scenarios!W175),0)","v":0},{"$f":"MAX(INT(Y107*Y149)*(1-Scenarios!X175),0)","v":0},{"$f":"MAX(INT(Z107*Z149)*(1-Scenarios!Y175),0)","v":0},{"$f":"MAX(INT(AA107*AA149)*(1-Scenarios!Z175),0)","v":0},{"$f":"MAX(INT(AB107*AB149)*(1-Scenarios!AA175),0)","v":0},{"$f":"MAX(INT(AC107*AC149)*(1-Scenarios!AB175),0)","v":0},{"$f":"MAX(INT(AD107*AD149)*(1-Scenarios!AC175),0)","v":0},{"$f":"MAX(INT(AE107*AE149)*(1-Scenarios!AD175),0)","v":0},{"$f":"MAX(INT(AF107*AF149)*(1-Scenarios!AE175),0)","v":0},{"$f":"MAX(INT(AG107*AG149)*(1-Scenarios!AF175),0)","v":0},{"$f":"MAX(INT(AH107*AH149)*(1-Scenarios!AG175),0)","v":0},{"$f":"MAX(INT(AI107*AI149)*(1-Scenarios!AH175),0)","v":0},{"$f":"MAX(INT(AJ107*AJ149)*(1-Scenarios!AI175),0)","v":0},{"$f":"MAX(INT(AK107*AK149)*(1-Scenarios!AJ175),0)","v":0},{"$f":"MAX(INT(AL107*AL149)*(1-Scenarios!AK175),0)","v":0},{"$f":"MAX(INT(AM107*AM149)*(1-Scenarios!AL175),0)","v":0},{"$f":"MAX(INT(AN107*AN149)*(1-Scenarios!AM175),0)","v":0},{"$f":"MAX(INT(AO107*AO149)*(1-Scenarios!AN175),0)","v":0},{"$f":"MAX(INT(AP107*AP149)*(1-Scenarios!AO175),0)","v":0},{"$f":"MAX(INT(AQ107*AQ149)*(1-Scenarios!AP175),0)","v":0},{"$f":"MAX(INT(AR107*AR149)*(1-Scenarios!AQ175),0)","v":0},{"$f":"MAX(INT(AS107*AS149)*(1-Scenarios!AR175),0)","v":0},{"$f":"MAX(INT(AT107*AT149)*(1-Scenarios!AS175),0)","v":0},{"$f":"MAX(INT(AU107*AU149)*(1-Scenarios!AT175),0)","v":0},{"$f":"MAX(INT(AV107*AV149)*(1-Scenarios!AU175),0)","v":0},{"$f":"MAX(INT(AW107*AW149)*(1-Scenarios!AV175),0)","v":0},{"$f":"MAX(INT(AX107*AX149)*(1-Scenarios!AW175),0)","v":0},{"$f":"MAX(INT(AY107*AY149)*(1-Scenarios!AX175),0)","v":0},{"$f":"MAX(INT(AZ107*AZ149)*(1-Scenarios!AY175),0)","v":0},{"$f":"MAX(INT(BA107*BA149)*(1-Scenarios!AZ175),0)","v":0},{"$f":"MAX(INT(BB107*BB149)*(1-Scenarios!BA175),0)","v":0},{"$f":"MAX(INT(BC107*BC149)*(1-Scenarios!BB175),0)","v":0},{"$f":"MAX(INT(BD107*BD149)*(1-Scenarios!BC175),0)","v":0},{"$f":"MAX(INT(BE107*BE149)*(1-Scenarios!BD175),0)","v":0},{"$f":"MAX(INT(BF107*BF149)*(1-Scenarios!BE175),0)","v":0},{"$f":"MAX(INT(BG107*BG149)*(1-Scenarios!BF175),0)","v":0},{"$f":"MAX(INT(BH107*BH149)*(1-Scenarios!BG175),0)","v":0},{"$f":"MAX(INT(BI107*BI149)*(1-Scenarios!BH175),0)","v":0},{"$f":"MAX(INT(BJ107*BJ149)*(1-Scenarios!BI175),0)","v":0},{"$f":"MAX(INT(BK107*BK149)*(1-Scenarios!BJ175),0)","v":0},{"$f":"MAX(INT(BL107*BL149)*(1-Scenarios!BK175),0)","v":0},{"$f":"MAX(INT(BM107*BM149)*(1-Scenarios!BL175),0)","v":0},{"$f":"MAX(INT(BN107*BN149)*(1-Scenarios!BM175),0)","v":0},{"$f":"MAX(INT(BO107*BO149)*(1-Scenarios!BN175),0)","v":0},{"$f":"MAX(INT(BP107*BP149)*(1-Scenarios!BO175),0)","v":0},{"$f":"MAX(INT(BQ107*BQ149)*(1-Scenarios!BP175),0)","v":0},{"$f":"MAX(INT(BR107*BR149)*(1-Scenarios!BQ175),0)","v":0},{"$f":"MAX(INT(BS107*BS149)*(1-Scenarios!BR175),0)","v":0},{"$f":"MAX(INT(BT107*BT149)*(1-Scenarios!BS175),0)","v":0},{"$f":"MAX(INT(BU107*BU149)*(1-Scenarios!BT175),0)","v":0},{"$f":"MAX(INT(BV107*BV149)*(1-Scenarios!BU175),0)","v":0},{"$f":"MAX(INT(BW107*BW149)*(1-Scenarios!BV175),0)","v":0},{"$f":"MAX(INT(BX107*BX149)*(1-Scenarios!BW175),0)","v":0},{"$f":"MAX(INT(BY107*BY149)*(1-Scenarios!BX175),0)","v":0},{"$f":"MAX(INT(BZ107*BZ149)*(1-Scenarios!BY175),0)","v":0},{"$f":"MAX(INT(CA107*CA149)*(1-Scenarios!BZ175),0)","v":0},{"$f":"MAX(INT(CB107*CB149)*(1-Scenarios!CA175),0)","v":0},{"$f":"MAX(INT(CC107*CC149)*(1-Scenarios!CB175),0)","v":0},{"$f":"MAX(INT(CD107*CD149)*(1-Scenarios!CC175),0)","v":0}]
["Whitehorse (C)",{"$f":"AVERAGE(CustomersCOM!$H43:$J43)","v":39.333333333333336},{"$f":"MAX(INT(C108*C150)*(1-Scenarios!B176),0)","v":22},{"$f":"MAX(INT(D108*D150)*(1-Scenarios!C176),0)","v":11},{"$f":"MAX(INT(E108*E150)*(1-Scenarios!D176),0)","v":0},{"$f":"MAX(INT(F108*F150)*(1-Scenarios!E176),0)","v":0},{"$f":"MAX(INT(G108*G150)*(1-Scenarios!F176),0)","v":11},{"$f":"MAX(INT(H108*H150)*(1-Scenarios!G176),0)","v":9},{"$f":"MAX(INT(I108*I150)*(1-Scenarios!H176),0)","v":1},{"$f":"MAX(INT(J108*J150)*(1-Scenarios!I176),0)","v":1},{"$f":"MAX(INT(K108*K150)*(1-Scenarios!J176),0)","v":0},{"$f":"MAX(INT(L108*L150)*(1-Scenarios!K176),0)","v":0},{"$f":"MAX(INT(M108*M150)*(1-Scenarios!L176),0)","v":0},{"$f":"MAX(INT(N108*N150)*(1-Scenarios!M176),0)","v":0},{"$f":"MAX(INT(O108*O150)*(1-Scenarios!N176),0)","v":0},{"$f":"MAX(INT(P108*P150)*(1-Scenarios!O176),0)","v":0},{"$f":"MAX(INT(Q108*Q150)*(1-Scenarios!P176),0)","v":0},{"$f":"MAX(INT(R108*R150)*(1-Scenarios!Q176),0)","v":0},{"$f":"MAX(INT(S108*S150)*(1-Scenarios!R176),0)","v":0},{"$f":"MAX(INT(T108*T150)*(1-Scenarios!S176),0)","v":0},{"$f":"MAX(INT(U108*U150)*(1-Scenarios!T176),0)","v":0},{"$f":"MAX(INT(V108*V150)*(1-Scenarios!U176),0)","v":0},{"$f":"MAX(INT(W108*W150)*(1-Scenarios!V176),0)","v":0},{"$f":"MAX(INT(X108*X150)*(1-Scenarios!W176),0)","v":0},{"$f":"MAX(INT(Y108*Y150)*(1-Scenarios!X176),0)","v":0},{"$f":"MAX(INT(Z108*Z150)*(1-Scenarios!Y176),0)","v":0},{"$f":"MAX(INT(AA108*AA150)*(1-Scenarios!Z176),0)","v":0},{"$f":"MAX(INT(AB108*AB150)*(1-Scenarios!AA176),0)","v":0},{"$f":"MAX(INT(AC108*AC150)*(1-Scenarios!AB176),0)","v":0},{"$f":"MAX(INT(AD108*AD150)*(1-Scenarios!AC176),0)","v":0},{"$f":"MAX(INT(AE108*AE150)*(1-Scenarios!AD176),0)","v":0},{"$f":"MAX(INT(AF108*AF150)*(1-Scenarios!AE176),0)","v":0},{"$f":"MAX(INT(AG108*AG150)*(1-Scenarios!AF176),0)","v":0},{"$f":"MAX(INT(AH108*AH150)*(1-Scenarios!AG176),0)","v":0},{"$f":"MAX(INT(AI108*AI150)*(1-Scenarios!AH176),0)","v":0},{"$f":"MAX(INT(AJ108*AJ150)*(1-Scenarios!AI176),0)","v":0},{"$f":"MAX(INT(AK108*AK150)*(1-Scenarios!AJ176),0)","v":0},{"$f":"MAX(INT(AL108*AL150)*(1-Scenarios!AK176),0)","v":0},{"$f":"MAX(INT(AM108*AM150)*(1-Scenarios!AL176),0)","v":0},{"$f":"MAX(INT(AN108*AN150)*(1-Scenarios!AM176),0)","v":0},{"$f":"MAX(INT(AO108*AO150)*(1-Scenarios!AN176),0)","v":0},{"$f":"MAX(INT(AP108*AP150)*(1-Scenarios!AO176),0)","v":0},{"$f":"MAX(INT(AQ108*AQ150)*(1-Scenarios!AP176),0)","v":0},{"$f":"MAX(INT(AR108*AR150)*(1-Scenarios!AQ176),0)","v":0},{"$f":"MAX(INT(AS108*AS150)*(1-Scenarios!AR176),0)","v":0},{"$f":"MAX(INT(AT108*AT150)*(1-Scenarios!AS176),0)","v":0},{"$f":"MAX(INT(AU108*AU150)*(1-Scenarios!AT176),0)","v":0},{"$f":"MAX(INT(AV108*AV150)*(1-Scenarios!AU176),0)","v":0},{"$f":"MAX(INT(AW108*AW150)*(1-Scenarios!AV176),0)","v":0},{"$f":"MAX(INT(AX108*AX150)*(1-Scenarios!AW176),0)","v":0},{"$f":"MAX(INT(AY108*AY150)*(1-Scenarios!AX176),0)","v":0},{"$f":"MAX(INT(AZ108*AZ150)*(1-Scenarios!AY176),0)","v":0},{"$f":"MAX(INT(BA108*BA150)*(1-Scenarios!AZ176),0)","v":0},{"$f":"MAX(INT(BB108*BB150)*(1-Scenarios!BA176),0)","v":0},{"$f":"MAX(INT(BC108*BC150)*(1-Scenarios!BB176),0)","v":0},{"$f":"MAX(INT(BD108*BD150)*(1-Scenarios!BC176),0)","v":0},{"$f":"MAX(INT(BE108*BE150)*(1-Scenarios!BD176),0)","v":0},{"$f":"MAX(INT(BF108*BF150)*(1-Scenarios!BE176),0)","v":0},{"$f":"MAX(INT(BG108*BG150)*(1-Scenarios!BF176),0)","v":0},{"$f":"MAX(INT(BH108*BH150)*(1-Scenarios!BG176),0)","v":0},{"$f":"MAX(INT(BI108*BI150)*(1-Scenarios!BH176),0)","v":0},{"$f":"MAX(INT(BJ108*BJ150)*(1-Scenarios!BI176),0)","v":0},{"$f":"MAX(INT(BK108*BK150)*(1-Scenarios!BJ176),0)","v":0},{"$f":"MAX(INT(BL108*BL150)*(1-Scenarios!BK176),0)","v":0},{"$f":"MAX(INT(BM108*BM150)*(1-Scenarios!BL176),0)","v":0},{"$f":"MAX(INT(BN108*BN150)*(1-Scenarios!BM176),0)","v":0},{"$f":"MAX(INT(BO108*BO150)*(1-Scenarios!BN176),0)","v":0},{"$f":"MAX(INT(BP108*BP150)*(1-Scenarios!BO176),0)","v":0},{"$f":"MAX(INT(BQ108*BQ150)*(1-Scenarios!BP176),0)","v":0},{"$f":"MAX(INT(BR108*BR150)*(1-Scenarios!BQ176),0)","v":0},{"$f":"MAX(INT(BS108*BS150)*(1-Scenarios!BR176),0)","v":0},{"$f":"MAX(INT(BT108*BT150)*(1-Scenarios!BS176),0)","v":0},{"$f":"MAX(INT(BU108*BU150)*(1-Scenarios!BT176),0)","v":0},{"$f":"MAX(INT(BV108*BV150)*(1-Scenarios!BU176),0)","v":0},{"$f":"MAX(INT(BW108*BW150)*(1-Scenarios!BV176),0)","v":0},{"$f":"MAX(INT(BX108*BX150)*(1-Scenarios!BW176),0)","v":0},{"$f":"MAX(INT(BY108*BY150)*(1-Scenarios!BX176),0)","v":0},{"$f":"MAX(INT(BZ108*BZ150)*(1-Scenarios!BY176),0)","v":0},{"$f":"MAX(INT(CA108*CA150)*(1-Scenarios!BZ176),0)","v":0},{"$f":"MAX(INT(CB108*CB150)*(1-Scenarios!CA176),0)","v":0},{"$f":"MAX(INT(CC108*CC150)*(1-Scenarios!CB176),0)","v":0},{"$f":"MAX(INT(CD108*CD150)*(1-Scenarios!CC176),0)","v":0}]
["Yarra Ranges (S)",{"$f":"AVERAGE(CustomersCOM!$H44:$J44)","v":18.666666666666668},{"$f":"MAX(INT(C109*C151)*(1-Scenarios!B177),0)","v":15},{"$f":"MAX(INT(D109*D151)*(1-Scenarios!C177),0)","v":7},{"$f":"MAX(INT(E109*E151)*(1-Scenarios!D177),0)","v":0},{"$f":"MAX(INT(F109*F151)*(1-Scenarios!E177),0)","v":0},{"$f":"MAX(INT(G109*G151)*(1-Scenarios!F177),0)","v":7},{"$f":"MAX(INT(H109*H151)*(1-Scenarios!G177),0)","v":5},{"$f":"MAX(INT(I109*I151)*(1-Scenarios!H177),0)","v":1},{"$f":"MAX(INT(J109*J151)*(1-Scenarios!I177),0)","v":0},{"$f":"MAX(INT(K109*K151)*(1-Scenarios!J177),0)","v":0},{"$f":"MAX(INT(L109*L151)*(1-Scenarios!K177),0)","v":0},{"$f":"MAX(INT(M109*M151)*(1-Scenarios!L177),0)","v":0},{"$f":"MAX(INT(N109*N151)*(1-Scenarios!M177),0)","v":0},{"$f":"MAX(INT(O109*O151)*(1-Scenarios!N177),0)","v":0},{"$f":"MAX(INT(P109*P151)*(1-Scenarios!O177),0)","v":0},{"$f":"MAX(INT(Q109*Q151)*(1-Scenarios!P177),0)","v":0},{"$f":"MAX(INT(R109*R151)*(1-Scenarios!Q177),0)","v":0},{"$f":"MAX(INT(S109*S151)*(1-Scenarios!R177),0)","v":0},{"$f":"MAX(INT(T109*T151)*(1-Scenarios!S177),0)","v":0},{"$f":"MAX(INT(U109*U151)*(1-Scenarios!T177),0)","v":0},{"$f":"MAX(INT(V109*V151)*(1-Scenarios!U177),0)","v":0},{"$f":"MAX(INT(W109*W151)*(1-Scenarios!V177),0)","v":0},{"$f":"MAX(INT(X109*X151)*(1-Scenarios!W177),0)","v":0},{"$f":"MAX(INT(Y109*Y151)*(1-Scenarios!X177),0)","v":0},{"$f":"MAX(INT(Z109*Z151)*(1-Scenarios!Y177),0)","v":0},{"$f":"MAX(INT(AA109*AA151)*(1-Scenarios!Z177),0)","v":0},{"$f":"MAX(INT(AB109*AB151)*(1-Scenarios!AA177),0)","v":0},{"$f":"MAX(INT(AC109*AC151)*(1-Scenarios!AB177),0)","v":0},{"$f":"MAX(INT(AD109*AD151)*(1-Scenarios!AC177),0)","v":0},{"$f":"MAX(INT(AE109*AE151)*(1-Scenarios!AD177),0)","v":0},{"$f":"MAX(INT(AF109*AF151)*(1-Scenarios!AE177),0)","v":0},{"$f":"MAX(INT(AG109*AG151)*(1-Scenarios!AF177),0)","v":0},{"$f":"MAX(INT(AH109*AH151)*(1-Scenarios!AG177),0)","v":0},{"$f":"MAX(INT(AI109*AI151)*(1-Scenarios!AH177),0)","v":0},{"$f":"MAX(INT(AJ109*AJ151)*(1-Scenarios!AI177),0)","v":0},{"$f":"MAX(INT(AK109*AK151)*(1-Scenarios!AJ177),0)","v":0},{"$f":"MAX(INT(AL109*AL151)*(1-Scenarios!AK177),0)","v":0},{"$f":"MAX(INT(AM109*AM151)*(1-Scenarios!AL177),0)","v":0},{"$f":"MAX(INT(AN109*AN151)*(1-Scenarios!AM177),0)","v":0},{"$f":"MAX(INT(AO109*AO151)*(1-Scenarios!AN177),0)","v":0},{"$f":"MAX(INT(AP109*AP151)*(1-Scenarios!AO177),0)","v":0},{"$f":"MAX(INT(AQ109*AQ151)*(1-Scenarios!AP177),0)","v":0},{"$f":"MAX(INT(AR109*AR151)*(1-Scenarios!AQ177),0)","v":0},{"$f":"MAX(INT(AS109*AS151)*(1-Scenarios!AR177),0)","v":0},{"$f":"MAX(INT(AT109*AT151)*(1-Scenarios!AS177),0)","v":0},{"$f":"MAX(INT(AU109*AU151)*(1-Scenarios!AT177),0)","v":0},{"$f":"MAX(INT(AV109*AV151)*(1-Scenarios!AU177),0)","v":0},{"$f":"MAX(INT(AW109*AW151)*(1-Scenarios!AV177),0)","v":0},{"$f":"MAX(INT(AX109*AX151)*(1-Scenarios!AW177),0)","v":0},{"$f":"MAX(INT(AY109*AY151)*(1-Scenarios!AX177),0)","v":0},{"$f":"MAX(INT(AZ109*AZ151)*(1-Scenarios!AY177),0)","v":0},{"$f":"MAX(INT(BA109*BA151)*(1-Scenarios!AZ177),0)","v":0},{"$f":"MAX(INT(BB109*BB151)*(1-Scenarios!BA177),0)","v":0},{"$f":"MAX(INT(BC109*BC151)*(1-Scenarios!BB177),0)","v":0},{"$f":"MAX(INT(BD109*BD151)*(1-Scenarios!BC177),0)","v":0},{"$f":"MAX(INT(BE109*BE151)*(1-Scenarios!BD177),0)","v":0},{"$f":"MAX(INT(BF109*BF151)*(1-Scenarios!BE177),0)","v":0},{"$f":"MAX(INT(BG109*BG151)*(1-Scenarios!BF177),0)","v":0},{"$f":"MAX(INT(BH109*BH151)*(1-Scenarios!BG177),0)","v":0},{"$f":"MAX(INT(BI109*BI151)*(1-Scenarios!BH177),0)","v":0},{"$f":"MAX(INT(BJ109*BJ151)*(1-Scenarios!BI177),0)","v":0},{"$f":"MAX(INT(BK109*BK151)*(1-Scenarios!BJ177),0)","v":0},{"$f":"MAX(INT(BL109*BL151)*(1-Scenarios!BK177),0)","v":0},{"$f":"MAX(INT(BM109*BM151)*(1-Scenarios!BL177),0)","v":0},{"$f":"MAX(INT(BN109*BN151)*(1-Scenarios!BM177),0)","v":0},{"$f":"MAX(INT(BO109*BO151)*(1-Scenarios!BN177),0)","v":0},{"$f":"MAX(INT(BP109*BP151)*(1-Scenarios!BO177),0)","v":0},{"$f":"MAX(INT(BQ109*BQ151)*(1-Scenarios!BP177),0)","v":0},{"$f":"MAX(INT(BR109*BR151)*(1-Scenarios!BQ177),0)","v":0},{"$f":"MAX(INT(BS109*BS151)*(1-Scenarios!BR177),0)","v":0},{"$f":"MAX(INT(BT109*BT151)*(1-Scenarios!BS177),0)","v":0},{"$f":"MAX(INT(BU109*BU151)*(1-Scenarios!BT177),0)","v":0},{"$f":"MAX(INT(BV109*BV151)*(1-Scenarios!BU177),0)","v":0},{"$f":"MAX(INT(BW109*BW151)*(1-Scenarios!BV177),0)","v":0},{"$f":"MAX(INT(BX109*BX151)*(1-Scenarios!BW177),0)","v":0},{"$f":"MAX(INT(BY109*BY151)*(1-Scenarios!BX177),0)","v":0},{"$f":"MAX(INT(BZ109*BZ151)*(1-Scenarios!BY177),0)","v":0},{"$f":"MAX(INT(CA109*CA151)*(1-Scenarios!BZ177),0)","v":0},{"$f":"MAX(INT(CB109*CB151)*(1-Scenarios!CA177),0)","v":0},{"$f":"MAX(INT(CC109*CC151)*(1-Scenarios!CB177),0)","v":0},{"$f":"MAX(INT(CD109*CD151)*(1-Scenarios!CC177),0)","v":0}]
[]
["LGA - New Connections absent Appliance Economics",2020,{"$f":"B132+1","v":2021},{"$f":"C132+1","v":2022},{"$f":"D132+1","v":2023},{"$f":"E132+1","v":2024},{"$f":"F132+1","v":2025},{"$f":"G132+1","v":2026},{"$f":"H132+1","v":2027},{"$f":"I132+1","v":2028},{"$f":"J132+1","v":2029},{"$f":"K132+1","v":2030},{"$f":"L132+1","v":2031},{"$f":"M132+1","v":2032},{"$f":"N132+1","v":2033},{"$f":"O132+1","v":2034},{"$f":"P132+1","v":2035},{"$f":"Q132+1","v":2036},{"$f":"R132+1","v":2037},{"$f":"S132+1","v":2038},{"$f":"T132+1","v":2039},{"$f":"U132+1","v":2040},{"$f":"V132+1","v":2041},{"$f":"W132+1","v":2042},{"$f":"X132+1","v":2043},{"$f":"Y132+1","v":2044},{"$f":"Z132+1","v":2045},{"$f":"AA132+1","v":2046},{"$f":"AB132+1","v":2047},{"$f":"AC132+1","v":2048},{"$f":"AD132+1","v":2049},{"$f":"AE132+1","v":2050},{"$f":"AF132+1","v":2051},{"$f":"AG132+1","v":2052},{"$f":"AH132+1","v":2053},{"$f":"AI132+1","v":2054},{"$f":"AJ132+1","v":2055},{"$f":"AK132+1","v":2056},{"$f":"AL132+1","v":2057},{"$f":"AM132+1","v":2058},{"$f":"AN132+1","v":2059},{"$f":"AO132+1","v":2060},{"$f":"AP132+1","v":2061},{"$f":"AQ132+1","v":2062},{"$f":"AR132+1","v":2063},{"$f":"AS132+1","v":2064},{"$f":"AT132+1","v":2065},{"$f":"AU132+1","v":2066},{"$f":"AV132+1","v":2067},{"$f":"AW132+1","v":2068},{"$f":"AX132+1","v":2069},{"$f":"AY132+1","v":2070},{"$f":"AZ132+1","v":2071},{"$f":"BA132+1","v":2072},{"$f":"BB132+1","v":2073},{"$f":"BC132+1","v":2074},{"$f":"BD132+1","v":2075},{"$f":"BE132+1","v":2076},{"$f":"BF132+1","v":2077},{"$f":"BG132+1","v":2078},{"$f":"BH132+1","v":2079},{"$f":"BI132+1","v":2080},{"$f":"BJ132+1","v":2081},{"$f":"BK132+1","v":2082},{"$f":"BL132+1","v":2083},{"$f":"BM132+1","v":2084},{"$f":"BN132+1","v":2085},{"$f":"BO132+1","v":2086},{"$f":"BP132+1","v":2087},{"$f":"BQ132+1","v":2088},{"$f":"BR132+1","v":2089},{"$f":"BS132+1","v":2090},{"$f":"BT132+1","v":2091},{"$f":"BU132+1","v":2092},{"$f":"BV132+1","v":2093},{"$f":"BW132+1","v":2094},{"$f":"BX132+1","v":2095},{"$f":"BY132+1","v":2096},{"$f":"BZ132+1","v":2097},{"$f":"CA132+1","v":2098},{"$f":"CB132+1","v":2099},{"$f":"CC132+1","v":2100}]
["Bass Coast (S)",null,{"$f":"Control!$L$17*CustomersCOM!J3","v":1.1599999999999999},{"$f":"Control!$L$17*CustomersCOM!K3","v":1.1666666666666667},{"$f":"Control!$L$17*CustomersCOM!L3","v":1.1808333333333334},{"$f":"Control!$L$17*CustomersCOM!M3","v":1.1349291666666668},{"$f":"Control!$L$17*CustomersCOM!N3","v":1.0892545208333335},{"$f":"Control!$L$17*CustomersCOM!O3","v":1.1038082482291669},{"$f":"Control!$L$17*CustomersCOM!P3","v":1.098289206988021},{"$f":"Control!$L$17*CustomersCOM!Q3","v":1.0527977609530808},{"$f":"Control!$L$17*CustomersCOM!R3","v":1.0075337721483155},{"$f":"Control!$L$17*CustomersCOM!S3","v":0.96249610328757385},{"$f":"Control!$L$17*CustomersCOM!T3","v":0.91768362277113602},{"$f":"Control!$L$17*CustomersCOM!U3","v":0.8730952046572803},{"$f":"Control!$L$17*CustomersCOM!V3","v":0.84872972863399387},{"$f":"Control!$L$17*CustomersCOM!W3","v":0.82448607999082391},{"$f":"Control!$L$17*CustomersCOM!X3","v":0.8003636495908697},{"$f":"Control!$L$17*CustomersCOM!Y3","v":0.77636183134291525},{"$f":"Control!$L$17*CustomersCOM!Z3","v":0.75248002218620069},{"$f":"Control!$L$17*CustomersCOM!AA3","v":0.72871762207526969},{"$f":"Control!$L$17*CustomersCOM!AB3","v":0.70507403396489343},{"$f":"Control!$L$17*CustomersCOM!AC3","v":0.68154866379506884},{"$f":"Control!$L$17*CustomersCOM!AD3","v":0.65814092047609352},{"$f":"Control!$L$17*CustomersCOM!AE3","v":0.63485021587371304},{"$f":"Control!$L$17*CustomersCOM!AF3","v":0.6116759647943445},{"$f":"Control!$L$17*CustomersCOM!AG3","v":0.58861758497037275},{"$f":"Control!$L$17*CustomersCOM!AH3","v":0.58567449704552088},{"$f":"Control!$L$17*CustomersCOM!AI3","v":0.58274612456029329},{"$f":"Control!$L$17*CustomersCOM!AJ3","v":0.55983239393749185},{"$f":"Control!$L$17*CustomersCOM!AK3","v":0.53703323196780439},{"$f":"Control!$L$17*CustomersCOM!AL3","v":0.51434806580796533},{"$f":"Control!$L$17*CustomersCOM!AM3","v":0.49177632547892552},{"$f":"Control!$L$17*CustomersCOM!AN3","v":0.4693174438515309},{"$f":"Control!$L$17*CustomersCOM!AO3","v":0.44697085663227321},{"$f":"Control!$L$17*CustomersCOM!AP3","v":0.4247360023491118},{"$f":"Control!$L$17*CustomersCOM!AQ3","v":0.40261232233736627},{"$f":"Control!$L$17*CustomersCOM!AR3","v":0.38059926072567946},{"$f":"Control!$L$17*CustomersCOM!AS3","v":0.3586962644220511},{"$f":"Control!$L$17*CustomersCOM!AT3","v":0.33690278309994087},{"$f":"Control!$L$17*CustomersCOM!AU3","v":0.31521826918444112},{"$f":"Control!$L$17*CustomersCOM!AV3","v":0.29364217783851893},{"$f":"Control!$L$17*CustomersCOM!AW3","v":0.29217396694932635},{"$f":"Control!$L$17*CustomersCOM!AX3","v":0.29071309711457965},{"$f":"Control!$L$17*CustomersCOM!AY3","v":0.28925953162900681},{"$f":"Control!$L$17*CustomersCOM!AZ3","v":0.28781323397086178},{"$f":"Control!$L$17*CustomersCOM!BA3","v":0.2863741678010075},{"$f":"Control!$L$17*CustomersCOM!BB3","v":0.28494229696200246},{"$f":"Control!$L$17*CustomersCOM!BC3","v":0.28351758547719241},{"$f":"Control!$L$17*CustomersCOM!BD3","v":0.28209999754980647},{"$f":"Control!$L$17*CustomersCOM!BE3","v":0.28068949756205747},{"$f":"Control!$L$17*CustomersCOM!BF3","v":0.27928605007424717},{"$f":"Control!$L$17*CustomersCOM!BG3","v":0.27788961982387589},{"$f":"Control!$L$17*CustomersCOM!BH3","v":0.27650017172475655},{"$f":"Control!$L$17*CustomersCOM!BI3","v":0.27511767086613276},{"$f":"Control!$L$17*CustomersCOM!BJ3","v":0.2737420825118021},{"$f":"Control!$L$17*CustomersCOM!BK3","v":0.27237337209924312},{"$f":"Control!$L$17*CustomersCOM!BL3","v":0.2710115052387469},{"$f":"Control!$L$17*CustomersCOM!BM3","v":0.26965644771255315},{"$f":"Control!$L$17*CustomersCOM!BN3","v":0.26830816547399033},{"$f":"Control!$L$17*CustomersCOM!BO3","v":0.26696662464662041},{"$f":"Control!$L$17*CustomersCOM!BP3","v":0.26563179152338728},{"$f":"Control!$L$17*CustomersCOM!BQ3","v":0.26430363256577033},{"$f":"Control!$L$17*CustomersCOM!BR3","v":0.2629821144029415},{"$f":"Control!$L$17*CustomersCOM!BS3","v":0.26166720383092679},{"$f":"Control!$L$17*CustomersCOM!BT3","v":0.26035886781177214},{"$f":"Control!$L$17*CustomersCOM!BU3","v":0.25905707347271328},{"$f":"Control!$L$17*CustomersCOM!BV3","v":0.25776178810534972},{"$f":"Control!$L$17*CustomersCOM!BW3","v":0.25647297916482298},{"$f":"Control!$L$17*CustomersCOM!BX3","v":0.25519061426899886},{"$f":"Control!$L$17*CustomersCOM!BY3","v":0.25391466119765388},{"$f":"Control!$L$17*CustomersCOM!BZ3","v":0.25264508789166562},{"$f":"Control!$L$17*CustomersCOM!CA3","v":0.25138186245220728},{"$f":"Control!$L$17*CustomersCOM!CB3","v":0.25012495313994626},{"$f":"Control!$L$17*CustomersCOM!CC3","v":0.24887432837424653},{"$f":"Control!$L$17*CustomersCOM!CD3","v":0.24762995673237526},{"$f":"Control!$L$17*CustomersCOM!CE3","v":0.2463918069487134},{"$f":"Control!$L$17*CustomersCOM!CF3","v":0.24515984791396983},{"$f":"Control!$L$17*CustomersCOM!CG3","v":0.24393404867439997},{"$f":"Control!$L$17*CustomersCOM!CH3","v":0.242714378431028},{"$f":"Control!$L$17*CustomersCOM!CI3","v":0.24150080653887288},{"$f":"Control!$L$17*CustomersCOM!CJ3","v":0.2402933025061785},{"$f":"Control!$L$17*CustomersCOM!CK3","v":0.23909183599364758}]
["Bayside (C)",null,{"$f":"Control!$L$17*CustomersCOM!J4","v":14.6},{"$f":"Control!$L$17*CustomersCOM!K4","v":14.366666666666667},{"$f":"Control!$L$17*CustomersCOM!L4","v":14.154833333333334},{"$f":"Control!$L$17*CustomersCOM!M4","v":13.244059166666666},{"$f":"Control!$L$17*CustomersCOM!N4","v":12.337838870833332},{"$f":"Control!$L$17*CustomersCOM!O4","v":12.196149676479166},{"$f":"Control!$L$17*CustomersCOM!P4","v":11.995168928096769},{"$f":"Control!$L$17*CustomersCOM!Q4","v":11.455193083456283},{"$f":"Control!$L$17*CustomersCOM!R4","v":10.917917118039002},{"$f":"Control!$L$17*CustomersCOM!S4","v":10.163327532448807},{"$f":"Control!$L$17*CustomersCOM!T4","v":9.4725108947865628},{"$f":"Control!$L$17*CustomersCOM!U4","v":8.9251483403126297},{"$f":"Control!$L$17*CustomersCOM!V4","v":8.4005225986110652},{"$f":"Control!$L$17*CustomersCOM!W4","v":7.8185199856180105},{"$f":"Control!$L$17*CustomersCOM!X4","v":7.2794273856899201},{"$f":"Control!$L$17*CustomersCOM!Y4","v":7.0230302487614713},{"$f":"Control!$L$17*CustomersCOM!Z4","v":6.6879150975176644},{"$f":"Control!$L$17*CustomersCOM!AA4","v":6.2744755220300759},{"$f":"Control!$L$17*CustomersCOM!AB4","v":5.8631031444199255},{"$f":"Control!$L$17*CustomersCOM!AC4","v":5.473787628697826},{"$f":"Control!$L$17*CustomersCOM!AD4","v":5.1064186905543369},{"$f":"Control!$L$17*CustomersCOM!AE4","v":4.7608865971015657},{"$f":"Control!$L$17*CustomersCOM!AF4","v":4.4570821641160574},{"$f":"Control!$L$17*CustomersCOM!AG4","v":4.1747967532954773},{"$f":"Control!$L$17*CustomersCOM!AH4","v":3.913922769529},{"$f":"Control!$L$17*CustomersCOM!AI4","v":3.6543531556813549},{"$f":"Control!$L$17*CustomersCOM!AJ4","v":3.4160813899029479},{"$f":"Control!$L$17*CustomersCOM!AK4","v":3.1990009829534332},{"$f":"Control!$L$17*CustomersCOM!AL4","v":3.003005978038666},{"$f":"Control!$L$17*CustomersCOM!AM4","v":2.8079909481484724},{"$f":"Control!$L$17*CustomersCOM!AN4","v":2.6339509934077303},{"$f":"Control!$L$17*CustomersCOM!AO4","v":2.4807812384406915},{"$f":"Control!$L$17*CustomersCOM!AP4","v":2.3283773322484884},{"$f":"Control!$L$17*CustomersCOM!AQ4","v":2.1967354455872461},{"$f":"Control!$L$17*CustomersCOM!AR4","v":2.0657517683593096},{"$f":"Control!$L$17*CustomersCOM!AS4","v":1.9554230095175131},{"$f":"Control!$L$17*CustomersCOM!AT4","v":1.8456458944699257},{"$f":"Control!$L$17*CustomersCOM!AU4","v":1.7364176649975758},{"$f":"Control!$L$17*CustomersCOM!AV4","v":1.6477355766725879},{"$f":"Control!$L$17*CustomersCOM!AW4","v":1.559496898789225},{"$f":"Control!$L$17*CustomersCOM!AX4","v":1.4716994142952788},{"$f":"Control!$L$17*CustomersCOM!AY4","v":1.4043409172238024},{"$f":"Control!$L$17*CustomersCOM!AZ4","v":1.3373192126376834},{"$f":"Control!$L$17*CustomersCOM!BA4","v":1.270632616574495},{"$f":"Control!$L$17*CustomersCOM!BB4","v":1.2042794534916224},{"$f":"Control!$L$17*CustomersCOM!BC4","v":1.1382580562241642},{"$f":"Control!$L$17*CustomersCOM!BD4","v":1.0925667659430434},{"$f":"Control!$L$17*CustomersCOM!BE4","v":1.0471039321133282},{"$f":"Control!$L$17*CustomersCOM!BF4","v":1.0018684124527615},{"$f":"Control!$L$17*CustomersCOM!BG4","v":0.95685907039049778},{"$f":"Control!$L$17*CustomersCOM!BH4","v":0.91207477503854539},{"$f":"Control!$L$17*CustomersCOM!BI4","v":0.86751440116335266},{"$f":"Control!$L$17*CustomersCOM!BJ4","v":0.84317682915753578},{"$f":"Control!$L$17*CustomersCOM!BK4","v":0.81896094501174821},{"$f":"Control!$L$17*CustomersCOM!BL4","v":0.79486614028668945},{"$f":"Control!$L$17*CustomersCOM!BM4","v":0.77089180958525594},{"$f":"Control!$L$17*CustomersCOM!BN4","v":0.74703735053732956},{"$f":"Control!$L$17*CustomersCOM!BO4","v":0.72330216378464285},{"$f":"Control!$L$17*CustomersCOM!BP4","v":0.69968565296571972},{"$f":"Control!$L$17*CustomersCOM!BQ4","v":0.6761872247008911},{"$f":"Control!$L$17*CustomersCOM!BR4","v":0.65280628857738665},{"$f":"Control!$L$17*CustomersCOM!BS4","v":0.62954225713449974},{"$f":"Control!$L$17*CustomersCOM!BT4","v":0.60639454584882724},{"$f":"Control!$L$17*CustomersCOM!BU4","v":0.58336257311958306},{"$f":"Control!$L$17*CustomersCOM!BV4","v":0.58044576025398509},{"$f":"Control!$L$17*CustomersCOM!BW4","v":0.5775435314527152},{"$f":"Control!$L$17*CustomersCOM!BX4","v":0.57465581379545161},{"$f":"Control!$L$17*CustomersCOM!BY4","v":0.57178253472647445},{"$f":"Control!$L$17*CustomersCOM!BZ4","v":0.56892362205284197},{"$f":"Control!$L$17*CustomersCOM!CA4","v":0.56607900394257782},{"$f":"Control!$L$17*CustomersCOM!CB4","v":0.56324860892286499},{"$f":"Control!$L$17*CustomersCOM!CC4","v":0.56043236587825063},{"$f":"Control!$L$17*CustomersCOM!CD4","v":0.55763020404885932},{"$f":"Control!$L$17*CustomersCOM!CE4","v":0.554842053028615},{"$f":"Control!$L$17*CustomersCOM!CF4","v":0.55206784276347198},{"$f":"Control!$L$17*CustomersCOM!CG4","v":0.54930750354965463},{"$f":"Control!$L$17*CustomersCOM!CH4","v":0.54656096603190629},{"$f":"Control!$L$17*CustomersCOM!CI4","v":0.54382816120174682},{"$f":"Control!$L$17*CustomersCOM!CJ4","v":0.54110902039573805},{"$f":"Control!$L$17*CustomersCOM!CK4","v":0.53840347529375943}]
["Boroondara (C)",null,{"$f":"Control!$L$17*CustomersCOM!J5","v":28.48},{"$f":"Control!$L$17*CustomersCOM!K5","v":28.133333333333336},{"$f":"Control!$L$17*CustomersCOM!L5","v":27.852666666666668},{"$f":"Control!$L$17*CustomersCOM!M5","v":25.993403333333337},{"$f":"Control!$L$17*CustomersCOM!N5","v":24.183436316666672},{"$f":"Control!$L$17*CustomersCOM!O5","v":24.022519135083339},{"$f":"Control!$L$17*CustomersCOM!P5","v":23.74240653940792},{"$f":"Control!$L$17*CustomersCOM!Q5","v":22.60369450671088},{"$f":"Control!$L$17*CustomersCOM!R5","v":21.490676034177326},{"$f":"Control!$L$17*CustomersCOM!S5","v":19.98322265400644},{"$f":"Control!$L$17*CustomersCOM!T5","v":18.583306540736409},{"$f":"Control!$L$17*CustomersCOM!U5","v":17.450390008032727},{"$f":"Control!$L$17*CustomersCOM!V5","v":16.363138057992561},{"$f":"Control!$L$17*CustomersCOM!W5","v":15.221322367702598},{"$f":"Control!$L$17*CustomersCOM!X5","v":14.165215755864086},{"$f":"Control!$L$17*CustomersCOM!Y5","v":13.654389677084765},{"$f":"Control!$L$17*CustomersCOM!Z5","v":12.94611772869934},{"$f":"Control!$L$17*CustomersCOM!AA5","v":12.101387140055843},{"$f":"Control!$L$17*CustomersCOM!AB5","v":11.260880204355562},{"$f":"Control!$L$17*CustomersCOM!AC5","v":10.484575803333785},{"$f":"Control!$L$17*CustomersCOM!AD5","v":9.7721529243171155},{"$f":"Control!$L$17*CustomersCOM!AE5","v":9.1032921596955294},{"$f":"Control!$L$17*CustomersCOM!AF5","v":8.4777756988970516},{"$f":"Control!$L$17*CustomersCOM!AG5","v":7.8953868204025675},{"$f":"Control!$L$17*CustomersCOM!AH5","v":7.3559098863005543},{"$f":"Control!$L$17*CustomersCOM!AI5","v":6.8591303368690513},{"$f":"Control!$L$17*CustomersCOM!AJ5","v":6.4048346851847056},{"$f":"Control!$L$17*CustomersCOM!AK5","v":5.9728105117587829},{"$f":"Control!$L$17*CustomersCOM!AL5","v":5.5829464591999889},{"$f":"Control!$L$17*CustomersCOM!AM5","v":5.2150317269039883},{"$f":"Control!$L$17*CustomersCOM!AN5","v":4.8689565682694687},{"$f":"Control!$L$17*CustomersCOM!AO5","v":4.5446117854281214},{"$f":"Control!$L$17*CustomersCOM!AP5","v":4.2418887265009797},{"$f":"Control!$L$17*CustomersCOM!AQ5","v":3.9606792828684751},{"$f":"Control!$L$17*CustomersCOM!AR5","v":3.7008758864541331},{"$f":"Control!$L$17*CustomersCOM!AS5","v":3.4623715070218624},{"$f":"Control!$L$17*CustomersCOM!AT5","v":3.2450596494867527},{"$f":"Control!$L$17*CustomersCOM!AU5","v":3.0488343512393192},{"$f":"Control!$L$17*CustomersCOM!AV5","v":2.8535901794831227},{"$f":"Control!$L$17*CustomersCOM!AW5","v":2.6793222285857072},{"$f":"Control!$L$17*CustomersCOM!AX5","v":2.5259256174427787},{"$f":"Control!$L$17*CustomersCOM!AY5","v":2.3732959893555647},{"$f":"Control!$L$17*CustomersCOM!AZ5","v":2.2414295094087868},{"$f":"Control!$L$17*CustomersCOM!BA5","v":2.1102223618617431},{"$f":"Control!$L$17*CustomersCOM!BB5","v":1.9796712500524343},{"$f":"Control!$L$17*CustomersCOM!BC5","v":1.869772893802172},{"$f":"Control!$L$17*CustomersCOM!BD5","v":1.7604240293331612},{"$f":"Control!$L$17*CustomersCOM!BE5","v":1.6716219091864954},{"$f":"Control!$L$17*CustomersCOM!BF5","v":1.583263799640563},{"$f":"Control!$L$17*CustomersCOM!BG5","v":1.4953474806423601},{"$f":"Control!$L$17*CustomersCOM!BH5","v":1.4278707432391482},{"$f":"Control!$L$17*CustomersCOM!BI5","v":1.3607313895229525},{"$f":"Control!$L$17*CustomersCOM!BJ5","v":1.2939277325753378},{"$f":"Control!$L$17*CustomersCOM!BK5","v":1.2274580939124611},{"$f":"Control!$L$17*CustomersCOM!BL5","v":1.1613208034428988},{"$f":"Control!$L$17*CustomersCOM!BM5","v":1.1155141994256843},{"$f":"Control!$L$17*CustomersCOM!BN5","v":1.0699366284285559},{"$f":"Control!$L$17*CustomersCOM!BO5","v":1.0245869452864131},{"$f":"Control!$L$17*CustomersCOM!BP5","v":0.979464010559981},{"$f":"Control!$L$17*CustomersCOM!BQ5","v":0.93456669050718111},{"$f":"Control!$L$17*CustomersCOM!BR5","v":0.88989385705464519},{"$f":"Control!$L$17*CustomersCOM!BS5","v":0.86544438776937205},{"$f":"Control!$L$17*CustomersCOM!BT5","v":0.84111716583052509},{"$f":"Control!$L$17*CustomersCOM!BU5","v":0.81691158000137254},{"$f":"Control!$L$17*CustomersCOM!BV5","v":0.79282702210136569},{"$f":"Control!$L$17*CustomersCOM!BW5","v":0.76886288699085881},{"$f":"Control!$L$17*CustomersCOM!BX5","v":0.74501857255590453},{"$f":"Control!$L$17*CustomersCOM!BY5","v":0.72129347969312507},{"$f":"Control!$L$17*CustomersCOM!BZ5","v":0.69768701229465946},{"$f":"Control!$L$17*CustomersCOM!CA5","v":0.6741985772331861},{"$f":"Control!$L$17*CustomersCOM!CB5","v":0.65082758434702015},{"$f":"Control!$L$17*CustomersCOM!CC5","v":0.62757344642528512},{"$f":"Control!$L$17*CustomersCOM!CD5","v":0.60443557919315871},{"$f":"Control!$L$17*CustomersCOM!CE5","v":0.58141340129719288},{"$f":"Control!$L$17*CustomersCOM!CF5","v":0.57850633429070686},{"$f":"Control!$L$17*CustomersCOM!CG5","v":0.57561380261925332},{"$f":"Control!$L$17*CustomersCOM!CH5","v":0.57273573360615704},{"$f":"Control!$L$17*CustomersCOM!CI5","v":0.5698720549381262},{"$f":"Control!$L$17*CustomersCOM!CJ5","v":0.56702269466343558},{"$f":"Control!$L$17*CustomersCOM!CK5","v":0.56418758119011847}]
["Cardinia (S)",null,{"$f":"Control!$L$17*CustomersCOM!J6","v":1.78},{"$f":"Control!$L$17*CustomersCOM!K6","v":1.7133333333333334},{"$f":"Control!$L$17*CustomersCOM!L6","v":1.684766666666667},{"$f":"Control!$L$17*CustomersCOM!M6","v":1.5963428333333334},{"$f":"Control!$L$17*CustomersCOM!N6","v":1.5083611191666668},{"$f":"Control!$L$17*CustomersCOM!O6","v":1.4808193135708334},{"$f":"Control!$L$17*CustomersCOM!P6","v":1.453415217002979},{"$f":"Control!$L$17*CustomersCOM!Q6","v":1.4061481409179641},{"$f":"Control!$L$17*CustomersCOM!R6","v":1.3591174002133743},{"$f":"Control!$L$17*CustomersCOM!S6","v":1.2923218132123073},{"$f":"Control!$L$17*CustomersCOM!T6","v":1.2258602041462459},{"$f":"Control!$L$17*CustomersCOM!U6","v":1.1597309031255147},{"$f":"Control!$L$17*CustomersCOM!V6","v":1.113932248609887},{"$f":"Control!$L$17*CustomersCOM!W6","v":1.0683625873668376},{"$f":"Control!$L$17*CustomersCOM!X6","v":1.0230207744300035},{"$f":"Control!$L$17*CustomersCOM!Y6","v":0.99790567055785351},{"$f":"Control!$L$17*CustomersCOM!Z6","v":0.97291614220506417},{"$f":"Control!$L$17*CustomersCOM!AA6","v":0.92805156149403889},{"$f":"Control!$L$17*CustomersCOM!AB6","v":0.88341130368656862},{"$f":"Control!$L$17*CustomersCOM!AC6","v":0.85899424716813588},{"$f":"Control!$L$17*CustomersCOM!AD6","v":0.8346992759322952},{"$f":"Control!$L$17*CustomersCOM!AE6","v":0.81052577955263361},{"$f":"Control!$L$17*CustomersCOM!AF6","v":0.78647315065487056},{"$f":"Control!$L$17*CustomersCOM!AG6","v":0.76254078490159616},{"$f":"Control!$L$17*CustomersCOM!AH6","v":0.73872808097708809},{"$f":"Control!$L$17*CustomersCOM!AI6","v":0.71503444057220267},{"$f":"Control!$L$17*CustomersCOM!AJ6","v":0.69145926836934168},{"$f":"Control!$L$17*CustomersCOM!AK6","v":0.66800197202749501},{"$f":"Control!$L$17*CustomersCOM!AL6","v":0.64466196216735749},{"$f":"Control!$L$17*CustomersCOM!AM6","v":0.62143865235652074},{"$f":"Control!$L$17*CustomersCOM!AN6","v":0.59833145909473817},{"$f":"Control!$L$17*CustomersCOM!AO6","v":0.59533980179926449},{"$f":"Control!$L$17*CustomersCOM!AP6","v":0.59236310279026816},{"$f":"Control!$L$17*CustomersCOM!AQ6","v":0.5894012872763168},{"$f":"Control!$L$17*CustomersCOM!AR6","v":0.58645428083993512},{"$f":"Control!$L$17*CustomersCOM!AS6","v":0.58352200943573551},{"$f":"Control!$L$17*CustomersCOM!AT6","v":0.58060439938855679},{"$f":"Control!$L$17*CustomersCOM!AU6","v":0.57770137739161398},{"$f":"Control!$L$17*CustomersCOM!AV6","v":0.5748128705046559},{"$f":"Control!$L$17*CustomersCOM!AW6","v":0.57193880615213266},{"$f":"Control!$L$17*CustomersCOM!AX6","v":0.56907911212137197},{"$f":"Control!$L$17*CustomersCOM!AY6","v":0.56623371656076504},{"$f":"Control!$L$17*CustomersCOM!AZ6","v":0.5634025479779613},{"$f":"Control!$L$17*CustomersCOM!BA6","v":0.56058553523807153},{"$f":"Control!$L$17*CustomersCOM!BB6","v":0.55778260756188114},{"$f":"Control!$L$17*CustomersCOM!BC6","v":0.55499369452407177},{"$f":"Control!$L$17*CustomersCOM!BD6","v":0.55221872605145139},{"$f":"Control!$L$17*CustomersCOM!BE6","v":0.54945763242119416},{"$f":"Control!$L$17*CustomersCOM!BF6","v":0.54671034425908815},{"$f":"Control!$L$17*CustomersCOM!BG6","v":0.54397679253779274},{"$f":"Control!$L$17*CustomersCOM!BH6","v":0.54125690857510378},{"$f":"Control!$L$17*CustomersCOM!BI6","v":0.53855062403222831},{"$f":"Control!$L$17*CustomersCOM!BJ6","v":0.53585787091206716},{"$f":"Control!$L$17*CustomersCOM!BK6","v":0.53317858155750675},{"$f":"Control!$L$17*CustomersCOM!BL6","v":0.53051268864971923},{"$f":"Control!$L$17*CustomersCOM!BM6","v":0.52786012520647063},{"$f":"Control!$L$17*CustomersCOM!BN6","v":0.52522082458043828},{"$f":"Control!$L$17*CustomersCOM!BO6","v":0.52259472045753608},{"$f":"Control!$L$17*CustomersCOM!BP6","v":0.51998174685524834},{"$f":"Control!$L$17*CustomersCOM!BQ6","v":0.51738183812097216},{"$f":"Control!$L$17*CustomersCOM!BR6","v":0.51479492893036727},{"$f":"Control!$L$17*CustomersCOM!BS6","v":0.51222095428571546},{"$f":"Control!$L$17*CustomersCOM!BT6","v":0.50965984951428689},{"$f":"Control!$L$17*CustomersCOM!BU6","v":0.50711155026671539},{"$f":"Control!$L$17*CustomersCOM!BV6","v":0.50457599251538188},{"$f":"Control!$L$17*CustomersCOM!BW6","v":0.50205311255280494},{"$f":"Control!$L$17*CustomersCOM!BX6","v":0.49954284699004092},{"$f":"Control!$L$17*CustomersCOM!BY6","v":0.49704513275509071},{"$f":"Control!$L$17*CustomersCOM!BZ6","v":0.49455990709131525},{"$f":"Control!$L$17*CustomersCOM!CA6","v":0.49208710755585872},{"$f":"Control!$L$17*CustomersCOM!CB6","v":0.48962667201807941},{"$f":"Control!$L$17*CustomersCOM!CC6","v":0.48717853865798905},{"$f":"Control!$L$17*CustomersCOM!CD6","v":0.48474264596469907},{"$f":"Control!$L$17*CustomersCOM!CE6","v":0.48231893273487558},{"$f":"Control!$L$17*CustomersCOM!CF6","v":0.47990733807120123},{"$f":"Control!$L$17*CustomersCOM!CG6","v":0.47750780138084525},{"$f":"Control!$L$17*CustomersCOM!CH6","v":0.47512026237394106},{"$f":"Control!$L$17*CustomersCOM!CI6","v":0.47274466106207136},{"$f":"Control!$L$17*CustomersCOM!CJ6","v":0.47038093775676104},{"$f":"Control!$L$17*CustomersCOM!CK6","v":0.46802903306797727}]
["Casey (C)",null,{"$f":"Control!$L$17*CustomersCOM!J7","v":2.9},{"$f":"Control!$L$17*CustomersCOM!K7","v":2.8533333333333331},{"$f":"Control!$L$17*CustomersCOM!L7","v":2.8190666666666666},{"$f":"Control!$L$17*CustomersCOM!M7","v":2.6649713333333329},{"$f":"Control!$L$17*CustomersCOM!N7","v":2.5116464766666664},{"$f":"Control!$L$17*CustomersCOM!O7","v":2.4590882442833331},{"$f":"Control!$L$17*CustomersCOM!P7","v":2.4067928030619163},{"$f":"Control!$L$17*CustomersCOM!Q7","v":2.2947588390466067},{"$f":"Control!$L$17*CustomersCOM!R7","v":2.2032850448513734},{"$f":"Control!$L$17*CustomersCOM!S7","v":2.0722686196271165},{"$f":"Control!$L$17*CustomersCOM!T7","v":1.9619072765289813},{"$f":"Control!$L$17*CustomersCOM!U7","v":1.8720977401463363},{"$f":"Control!$L$17*CustomersCOM!V7","v":1.7827372514456048},{"$f":"Control!$L$17*CustomersCOM!W7","v":1.6938235651883766},{"$f":"Control!$L$17*CustomersCOM!X7","v":1.6053544473624348},{"$f":"Control!$L$17*CustomersCOM!Y7","v":1.5573276751256224},{"$f":"Control!$L$17*CustomersCOM!Z7","v":1.5095410367499944},{"$f":"Control!$L$17*CustomersCOM!AA7","v":1.4419933315662445},{"$f":"Control!$L$17*CustomersCOM!AB7","v":1.3747833649084131},{"$f":"Control!$L$17*CustomersCOM!AC7","v":1.3079094480838711},{"$f":"Control!$L$17*CustomersCOM!AD7","v":1.2413699008434518},{"$f":"Control!$L$17*CustomersCOM!AE7","v":1.1751630513392346},{"$f":"Control!$L$17*CustomersCOM!AF7","v":1.1292872360825383},{"$f":"Control!$L$17*CustomersCOM!AG7","v":1.0836407999021256},{"$f":"Control!$L$17*CustomersCOM!AH7","v":1.038222595902615},{"$f":"Control!$L$17*CustomersCOM!AI7","v":0.99303148292310184},{"$f":"Control!$L$17*CustomersCOM!AJ7","v":0.94806632550848635},{"$f":"Control!$L$17*CustomersCOM!AK7","v":0.90332599388094392},{"$f":"Control!$L$17*CustomersCOM!AL7","v":0.85880936391153928},{"$f":"Control!$L$17*CustomersCOM!AM7","v":0.83451531709198157},{"$f":"Control!$L$17*CustomersCOM!AN7","v":0.81034274050652155},{"$f":"Control!$L$17*CustomersCOM!AO7","v":0.78629102680398899},{"$f":"Control!$L$17*CustomersCOM!AP7","v":0.76235957166996915},{"$f":"Control!$L$17*CustomersCOM!AQ7","v":0.73854777381161929},{"$f":"Control!$L$17*CustomersCOM!AR7","v":0.71485503494256109},{"$f":"Control!$L$17*CustomersCOM!AS7","v":0.69128075976784831},{"$f":"Control!$L$17*CustomersCOM!AT7","v":0.66782435596900913},{"$f":"Control!$L$17*CustomersCOM!AU7","v":0.64448523418916415},{"$f":"Control!$L$17*CustomersCOM!AV7","v":0.62126280801821832},{"$f":"Control!$L$17*CustomersCOM!AW7","v":0.5981564939781272},{"$f":"Control!$L$17*CustomersCOM!AX7","v":0.59516571150823661},{"$f":"Control!$L$17*CustomersCOM!AY7","v":0.59218988295069541},{"$f":"Control!$L$17*CustomersCOM!AZ7","v":0.58922893353594197},{"$f":"Control!$L$17*CustomersCOM!BA7","v":0.58628278886826235},{"$f":"Control!$L$17*CustomersCOM!BB7","v":0.58335137492392097},{"$f":"Control!$L$17*CustomersCOM!BC7","v":0.58043461804930141},{"$f":"Control!$L$17*CustomersCOM!BD7","v":0.57753244495905498},{"$f":"Control!$L$17*CustomersCOM!BE7","v":0.57464478273425967},{"$f":"Control!$L$17*CustomersCOM!BF7","v":0.57177155882058839},{"$f":"Control!$L$17*CustomersCOM!BG7","v":0.56891270102648539},{"$f":"Control!$L$17*CustomersCOM!BH7","v":0.56606813752135299},{"$f":"Control!$L$17*CustomersCOM!BI7","v":0.5632377968337462},{"$f":"Control!$L$17*CustomersCOM!BJ7","v":0.56042160784957751},{"$f":"Control!$L$17*CustomersCOM!BK7","v":0.55761949981032954},{"$f":"Control!$L$17*CustomersCOM!BL7","v":0.55483140231127792},{"$f":"Control!$L$17*CustomersCOM!BM7","v":0.55205724529972156},{"$f":"Control!$L$17*CustomersCOM!BN7","v":0.54929695907322296},{"$f":"Control!$L$17*CustomersCOM!BO7","v":0.54655047427785686},{"$f":"Control!$L$17*CustomersCOM!BP7","v":0.5438177219064676},{"$f":"Control!$L$17*CustomersCOM!BQ7","v":0.54109863329693531},{"$f":"Control!$L$17*CustomersCOM!BR7","v":0.53839314013045059},{"$f":"Control!$L$17*CustomersCOM!BS7","v":0.53570117442979825},{"$f":"Control!$L$17*CustomersCOM!BT7","v":0.53302266855764924},{"$f":"Control!$L$17*CustomersCOM!BU7","v":0.53035755521486105},{"$f":"Control!$L$17*CustomersCOM!BV7","v":0.52770576743878672},{"$f":"Control!$L$17*CustomersCOM!BW7","v":0.52506723860159277},{"$f":"Control!$L$17*CustomersCOM!BX7","v":0.52244190240858479},{"$f":"Control!$L$17*CustomersCOM!BY7","v":0.51982969289654191},{"$f":"Control!$L$17*CustomersCOM!BZ7","v":0.51723054443205918},{"$f":"Control!$L$17*CustomersCOM!CA7","v":0.51464439170989895},{"$f":"Control!$L$17*CustomersCOM!CB7","v":0.51207116975134948},{"$f":"Control!$L$17*CustomersCOM!CC7","v":0.50951081390259267},{"$f":"Control!$L$17*CustomersCOM!CD7","v":0.50696325983307977},{"$f":"Control!$L$17*CustomersCOM!CE7","v":0.50442844353391425},{"$f":"Control!$L$17*CustomersCOM!CF7","v":0.5019063013162447},{"$f":"Control!$L$17*CustomersCOM!CG7","v":0.49939676980966358},{"$f":"Control!$L$17*CustomersCOM!CH7","v":0.49689978596061524},{"$f":"Control!$L$17*CustomersCOM!CI7","v":0.49441528703081211},{"$f":"Control!$L$17*CustomersCOM!CJ7","v":0.49194321059565804},{"$f":"Control!$L$17*CustomersCOM!CK7","v":0.4894834945426797}]
["Frankston (C)",null,{"$f":"Control!$L$17*CustomersCOM!J8","v":0},{"$f":"Control!$L$17*CustomersCOM!K8","v":-6.6666666666666662E-3},{"$f":"Control!$L$17*CustomersCOM!L8","v":-6.6666666666666662E-3},{"$f":"Control!$L$17*CustomersCOM!M8","v":-6.6666666666666662E-3},{"$f":"Control!$L$17*CustomersCOM!N8","v":-6.6666666666666662E-3},{"$f":"Control!$L$17*CustomersCOM!O8","v":-6.6666666666666662E-3},{"$f":"Control!$L$17*CustomersCOM!P8","v":-6.6666666666666662E-3},{"$f":"Control!$L$17*CustomersCOM!Q8","v":-6.6666666666666662E-3},{"$f":"Control!$L$17*CustomersCOM!R8","v":-6.6666666666666662E-3},{"$f":"Control!$L$17*CustomersCOM!S8","v":-6.6666666666666662E-3},{"$f":"Control!$L$17*CustomersCOM!T8","v":-6.6666666666666662E-3},{"$f":"Control!$L$17*CustomersCOM!U8","v":-6.6666666666666662E-3},{"$f":"Control!$L$17*CustomersCOM!V8","v":-6.6666666666666662E-3},{"$f":"Control!$L$17*CustomersCOM!W8","v":-6.6666666666666662E-3},{"$f":"Control!$L$17*CustomersCOM!X8","v":-6.6666666666666662E-3},{"$f":"Control!$L$17*CustomersCOM!Y8","v":-6.6666666666666662E-3},{"$f":"Control!$L$17*CustomersCOM!Z8","v":-6.6666666666666662E-3},{"$f":"Control!$L$17*CustomersCOM!AA8","v":-6.6666666666666662E-3},{"$f":"Control!$L$17*CustomersCOM!AB8","v":-6.6666666666666662E-3},{"$f":"Control!$L$17*CustomersCOM!AC8","v":-6.6666666666666662E-3},{"$f":"Control!$L$17*CustomersCOM!AD8","v":-6.6666666666666662E-3},{"$f":"Control!$L$17*CustomersCOM!AE8","v":-6.6666666666666662E-3},{"$f":"Control!$L$17*CustomersCOM!AF8","v":-6.6666666666666662E-3},{"$f":"Control!$L$17*CustomersCOM!AG8","v":-6.6666666666666662E-3},{"$f":"Control!$L$17*CustomersCOM!AH8","v":-6.6666666666666662E-3},{"$f":"Control!$L$17*CustomersCOM!AI8","v":-6.6666666666666662E-3},{"$f":"Control!$L$17*CustomersCOM!AJ8","v":-6.6666666666666662E-3},{"$f":"Control!$L$17*CustomersCOM!AK8","v":-6.6666666666666662E-3},{"$f":"Control!$L$17*CustomersCOM!AL8","v":-6.6666666666666662E-3},{"$f":"Control!$L$17*CustomersCOM!AM8","v":-6.6666666666666662E-3},{"$f":"Control!$L$17*CustomersCOM!AN8","v":-6.6666666666666662E-3},{"$f":"Control!$L$17*CustomersCOM!AO8","v":-6.6666666666666662E-3},{"$f":"Control!$L$17*CustomersCOM!AP8","v":-6.6666666666666662E-3},{"$f":"Control!$L$17*CustomersCOM!AQ8","v":-6.6666666666666662E-3},{"$f":"Control!$L$17*CustomersCOM!AR8","v":-6.6666666666666662E-3},{"$f":"Control!$L$17*CustomersCOM!AS8","v":-6.6666666666666662E-3},{"$f":"Control!$L$17*CustomersCOM!AT8","v":-6.6666666666666662E-3},{"$f":"Control!$L$17*CustomersCOM!AU8","v":-6.6666666666666662E-3},{"$f":"Control!$L$17*CustomersCOM!AV8","v":-6.6666666666666662E-3},{"$f":"Control!$L$17*CustomersCOM!AW8","v":-6.6666666666666662E-3},{"$f":"Control!$L$17*CustomersCOM!AX8","v":-6.6666666666666662E-3},{"$f":"Control!$L$17*CustomersCOM!AY8","v":-6.6666666666666662E-3},{"$f":"Control!$L$17*CustomersCOM!AZ8","v":-6.6666666666666662E-3},{"$f":"Control!$L$17*CustomersCOM!BA8","v":-6.6666666666666662E-3},{"$f":"Control!$L$17*CustomersCOM!BB8","v":-6.6666666666666662E-3},{"$f":"Control!$L$17*CustomersCOM!BC8","v":-6.6666666666666662E-3},{"$f":"Control!$L$17*CustomersCOM!BD8","v":-6.6666666666666662E-3},{"$f":"Control!$L$17*CustomersCOM!BE8","v":-6.6666666666666662E-3},{"$f":"Control!$L$17*CustomersCOM!BF8","v":-6.6666666666666662E-3},{"$f":"Control!$L$17*CustomersCOM!BG8","v":-6.6666666666666662E-3},{"$f":"Control!$L$17*CustomersCOM!BH8","v":-6.6666666666666662E-3},{"$f":"Control!$L$17*CustomersCOM!BI8","v":-6.6666666666666662E-3},{"$f":"Control!$L$17*CustomersCOM!BJ8","v":-6.6666666666666662E-3},{"$f":"Control!$L$17*CustomersCOM!BK8","v":-6.6666666666666662E-3},{"$f":"Control!$L$17*CustomersCOM!BL8","v":-6.6666666666666662E-3},{"$f":"Control!$L$17*CustomersCOM!BM8","v":-6.6666666666666662E-3},{"$f":"Control!$L$17*CustomersCOM!BN8","v":-6.6666666666666662E-3},{"$f":"Control!$L$17*CustomersCOM!BO8","v":-6.6666666666666662E-3},{"$f":"Control!$L$17*CustomersCOM!BP8","v":-6.6666666666666662E-3},{"$f":"Control!$L$17*CustomersCOM!BQ8","v":-6.6666666666666662E-3},{"$f":"Control!$L$17*CustomersCOM!BR8","v":-6.6666666666666662E-3},{"$f":"Control!$L$17*CustomersCOM!BS8","v":-6.6666666666666662E-3},{"$f":"Control!$L$17*CustomersCOM!BT8","v":-6.6666666666666662E-3},{"$f":"Control!$L$17*CustomersCOM!BU8","v":-6.6666666666666662E-3},{"$f":"Control!$L$17*CustomersCOM!BV8","v":-6.6666666666666662E-3},{"$f":"Control!$L$17*CustomersCOM!BW8","v":-6.6666666666666662E-3},{"$f":"Control!$L$17*CustomersCOM!BX8","v":-6.6666666666666662E-3},{"$f":"Control!$L$17*CustomersCOM!BY8","v":-6.6666666666666662E-3},{"$f":"Control!$L$17*CustomersCOM!BZ8","v":-6.6666666666666662E-3},{"$f":"Control!$L$17*CustomersCOM!CA8","v":-6.6666666666666662E-3},{"$f":"Control!$L$17*CustomersCOM!CB8","v":-6.6666666666666662E-3},{"$f":"Control!$L$17*CustomersCOM!CC8","v":-6.6666666666666662E-3},{"$f":"Control!$L$17*CustomersCOM!CD8","v":-6.6666666666666662E-3},{"$f":"Control!$L$17*CustomersCOM!CE8","v":-6.6666666666666662E-3},{"$f":"Control!$L$17*CustomersCOM!CF8","v":-6.6666666666666662E-3},{"$f":"Control!$L$17*CustomersCOM!CG8","v":-6.6666666666666662E-3},{"$f":"Control!$L$17*CustomersCOM!CH8","v":-6.6666666666666662E-3},{"$f":"Control!$L$17*CustomersCOM!CI8","v":-6.6666666666666662E-3},{"$f":"Control!$L$17*CustomersCOM!CJ8","v":-6.6666666666666662E-3},{"$f":"Control!$L$17*CustomersCOM!CK8","v":-6.6666666666666662E-3}]
["Glen Eira (C)",null,{"$f":"Control!$L$17*CustomersCOM!J9","v":19.86},{"$f":"Control!$L$17*CustomersCOM!K9","v":19.506666666666668},{"$f":"Control!$L$17*CustomersCOM!L9","v":19.169133333333335},{"$f":"Control!$L$17*CustomersCOM!M9","v":17.993287666666667},{"$f":"Control!$L$17*CustomersCOM!N9","v":16.803321228333335},{"$f":"Control!$L$17*CustomersCOM!O9","v":16.539304622191668},{"$f":"Control!$L$17*CustomersCOM!P9","v":16.216608099080709},{"$f":"Control!$L$17*CustomersCOM!Q9","v":15.515525058585306},{"$f":"Control!$L$17*CustomersCOM!R9","v":14.81794743329238},{"$f":"Control!$L$17*CustomersCOM!S9","v":13.803857696125917},{"$f":"Control!$L$17*CustomersCOM!T9","v":12.854838407645289},{"$f":"Control!$L$17*CustomersCOM!U9","v":12.150564215607062},{"$f":"Control!$L$17*CustomersCOM!V9","v":11.469811394529026},{"$f":"Control!$L$17*CustomersCOM!W9","v":10.69246233755638},{"$f":"Control!$L$17*CustomersCOM!X9","v":9.9590000258685993},{"$f":"Control!$L$17*CustomersCOM!Y9","v":9.629205025739255},{"$f":"Control!$L$17*CustomersCOM!Z9","v":9.2010590006105595},{"$f":"Control!$L$17*CustomersCOM!AA9","v":8.6950537056075063},{"$f":"Control!$L$17*CustomersCOM!AB9","v":8.1315784370794688},{"$f":"Control!$L$17*CustomersCOM!AC9","v":7.5709205448940713},{"$f":"Control!$L$17*CustomersCOM!AD9","v":7.0530659421696011},{"$f":"Control!$L$17*CustomersCOM!AE9","v":6.5778006124587538},{"$f":"Control!$L$17*CustomersCOM!AF9","v":6.14491160939646},{"$f":"Control!$L$17*CustomersCOM!AG9","v":5.734187051349477},{"$f":"Control!$L$17*CustomersCOM!AH9","v":5.34551611609273},{"$f":"Control!$L$17*CustomersCOM!AI9","v":4.9987885355122659},{"$f":"Control!$L$17*CustomersCOM!AJ9","v":4.6737945928347049},{"$f":"Control!$L$17*CustomersCOM!AK9","v":4.3704256198705309},{"$f":"Control!$L$17*CustomersCOM!AL9","v":4.0885734917711787},{"$f":"Control!$L$17*CustomersCOM!AM9","v":3.8281306243123225},{"$f":"Control!$L$17*CustomersCOM!AN9","v":3.5889899711907614},{"$f":"Control!$L$17*CustomersCOM!AO9","v":3.3710450213348073},{"$f":"Control!$L$17*CustomersCOM!AP9","v":3.1541897962281333},{"$f":"Control!$L$17*CustomersCOM!AQ9","v":2.9584188472469926},{"$f":"Control!$L$17*CustomersCOM!AR9","v":2.7836267530107572},{"$f":"Control!$L$17*CustomersCOM!AS9","v":2.609708619245704},{"$f":"Control!$L$17*CustomersCOM!AT9","v":2.4566600761494755},{"$f":"Control!$L$17*CustomersCOM!AU9","v":2.3043767757687279},{"$f":"Control!$L$17*CustomersCOM!AV9","v":2.1728548918898842},{"$f":"Control!$L$17*CustomersCOM!AW9","v":2.041990617430435},{"$f":"Control!$L$17*CustomersCOM!AX9","v":1.9317806643432829},{"$f":"Control!$L$17*CustomersCOM!AY9","v":1.8221217610215663},{"$f":"Control!$L$17*CustomersCOM!AZ9","v":1.7130111522164586},{"$f":"Control!$L$17*CustomersCOM!BA9","v":1.6244460964553764},{"$f":"Control!$L$17*CustomersCOM!BB9","v":1.5363238659730996},{"$f":"Control!$L$17*CustomersCOM!BC9","v":1.4486422466432343},{"$f":"Control!$L$17*CustomersCOM!BD9","v":1.3813990354100179},{"$f":"Control!$L$17*CustomersCOM!BE9","v":1.3144920402329678},{"$f":"Control!$L$17*CustomersCOM!BF9","v":1.2479195800318028},{"$f":"Control!$L$17*CustomersCOM!BG9","v":1.1816799821316439},{"$f":"Control!$L$17*CustomersCOM!BH9","v":1.1357715822209857},{"$f":"Control!$L$17*CustomersCOM!BI9","v":1.0900927243098806},{"$f":"Control!$L$17*CustomersCOM!BJ9","v":1.0446422606883312},{"$f":"Control!$L$17*CustomersCOM!BK9","v":0.99941904938488968},{"$f":"Control!$L$17*CustomersCOM!BL9","v":0.95442195413796516},{"$f":"Control!$L$17*CustomersCOM!BM9","v":0.90964984436727536},{"$f":"Control!$L$17*CustomersCOM!BN9","v":0.86510159514543905},{"$f":"Control!$L$17*CustomersCOM!BO9","v":0.84077608716971186},{"$f":"Control!$L$17*CustomersCOM!BP9","v":0.81657220673386333},{"$f":"Control!$L$17*CustomersCOM!BQ9","v":0.79248934570019403},{"$f":"Control!$L$17*CustomersCOM!BR9","v":0.76852689897169302},{"$f":"Control!$L$17*CustomersCOM!BS9","v":0.74468426447683456},{"$f":"Control!$L$17*CustomersCOM!BT9","v":0.72096084315445041},{"$f":"Control!$L$17*CustomersCOM!BU9","v":0.69735603893867815},{"$f":"Control!$L$17*CustomersCOM!BV9","v":0.67386925874398484},{"$f":"Control!$L$17*CustomersCOM!BW9","v":0.65049991245026495},{"$f":"Control!$L$17*CustomersCOM!BX9","v":0.62724741288801356},{"$f":"Control!$L$17*CustomersCOM!BY9","v":0.60411117582357354},{"$f":"Control!$L$17*CustomersCOM!BZ9","v":0.58109061994445566},{"$f":"Control!$L$17*CustomersCOM!CA9","v":0.57818516684473331},{"$f":"Control!$L$17*CustomersCOM!CB9","v":0.57529424101050963},{"$f":"Control!$L$17*CustomersCOM!CC9","v":0.57241776980545711},{"$f":"Control!$L$17*CustomersCOM!CD9","v":0.56955568095642983},{"$f":"Control!$L$17*CustomersCOM!CE9","v":0.56670790255164771},{"$f":"Control!$L$17*CustomersCOM!CF9","v":0.56387436303888949},{"$f":"Control!$L$17*CustomersCOM!CG9","v":0.56105499122369507},{"$f":"Control!$L$17*CustomersCOM!CH9","v":0.55824971626757658},{"$f":"Control!$L$17*CustomersCOM!CI9","v":0.55545846768623863},{"$f":"Control!$L$17*CustomersCOM!CJ9","v":0.55268117534780747},{"$f":"Control!$L$17*CustomersCOM!CK9","v":0.54991776947106841}]
["Greater Dandenong (C)",null,{"$f":"Control!$L$17*CustomersCOM!J10","v":25.1},{"$f":"Control!$L$17*CustomersCOM!K10","v":24.266666666666666},{"$f":"Control!$L$17*CustomersCOM!L10","v":24.245333333333335},{"$f":"Control!$L$17*CustomersCOM!M10","v":22.564106666666667},{"$f":"Control!$L$17*CustomersCOM!N10","v":20.971286133333333},{"$f":"Control!$L$17*CustomersCOM!O10","v":21.026429702666665},{"$f":"Control!$L$17*CustomersCOM!P10","v":20.981297554153329},{"$f":"Control!$L$17*CustomersCOM!Q10","v":19.876391066382563},{"$f":"Control!$L$17*CustomersCOM!R10","v":18.777009111050649},{"$f":"Control!$L$17*CustomersCOM!S10","v":17.463124065495396},{"$f":"Control!$L$17*CustomersCOM!T10","v":16.235808445167919},{"$f":"Control!$L$17*CustomersCOM!U10","v":15.15462940294208},{"$f":"Control!$L$17*CustomersCOM!V10","v":14.138856255927369},{"$f":"Control!$L$17*CustomersCOM!W10","v":13.148161974647733},{"$f":"Control!$L$17*CustomersCOM!X10","v":12.242421164774495},{"$f":"Control!$L$17*CustomersCOM!Y10","v":11.741209058950622},{"$f":"Control!$L$17*CustomersCOM!Z10","v":11.02250301365587},{"$f":"Control!$L$17*CustomersCOM!AA10","v":10.26739049858759},{"$f":"Control!$L$17*CustomersCOM!AB10","v":9.5560535460946525},{"$f":"Control!$L$17*CustomersCOM!AC10","v":8.9082732783641774},{"$f":"Control!$L$17*CustomersCOM!AD10","v":8.3037319119723563},{"$f":"Control!$L$17*CustomersCOM!AE10","v":7.7422132524124949},{"$f":"Control!$L$17*CustomersCOM!AF10","v":7.2235021861504327},{"$f":"Control!$L$17*CustomersCOM!AG10","v":6.72738467521968},{"$f":"Control!$L$17*CustomersCOM!AH10","v":6.2737477518435822},{"$f":"Control!$L$17*CustomersCOM!AI10","v":5.8623790130843645},{"$f":"Control!$L$17*CustomersCOM!AJ10","v":5.4730671180189425},{"$f":"Control!$L$17*CustomersCOM!AK10","v":5.1057017824288486},{"$f":"Control!$L$17*CustomersCOM!AL10","v":4.7601732735167044},{"$f":"Control!$L$17*CustomersCOM!AM10","v":4.4563724071491206},{"$f":"Control!$L$17*CustomersCOM!AN10","v":4.1740905451133754},{"$f":"Control!$L$17*CustomersCOM!AO10","v":3.9132200923878084},{"$f":"Control!$L$17*CustomersCOM!AP10","v":3.6536539919258688},{"$f":"Control!$L$17*CustomersCOM!AQ10","v":3.4153857219662394},{"$f":"Control!$L$17*CustomersCOM!AR10","v":3.1983087933564081},{"$f":"Control!$L$17*CustomersCOM!AS10","v":3.002317249389626},{"$f":"Control!$L$17*CustomersCOM!AT10","v":2.8073056631426776},{"$f":"Control!$L$17*CustomersCOM!AU10","v":2.6332691348269646},{"$f":"Control!$L$17*CustomersCOM!AV10","v":2.4801027891528298},{"$f":"Control!$L$17*CustomersCOM!AW10","v":2.3277022752070655},{"$f":"Control!$L$17*CustomersCOM!AX10","v":2.1960637638310305},{"$f":"Control!$L$17*CustomersCOM!AY10","v":2.0650834450118749},{"$f":"Control!$L$17*CustomersCOM!AZ10","v":1.954758027786816},{"$f":"Control!$L$17*CustomersCOM!BA10","v":1.844984237647882},{"$f":"Control!$L$17*CustomersCOM!BB10","v":1.7357593164596423},{"$f":"Control!$L$17*CustomersCOM!BC10","v":1.6470805198773442},{"$f":"Control!$L$17*CustomersCOM!BD10","v":1.5588451172779574},{"$f":"Control!$L$17*CustomersCOM!BE10","v":1.4710508916915677},{"$f":"Control!$L$17*CustomersCOM!BF10","v":1.40369563723311},{"$f":"Control!$L$17*CustomersCOM!BG10","v":1.3366771590469444},{"$f":"Control!$L$17*CustomersCOM!BH10","v":1.2699937732517095},{"$f":"Control!$L$17*CustomersCOM!BI10","v":1.2036438043854509},{"$f":"Control!$L$17*CustomersCOM!BJ10","v":1.1376255853635238},{"$f":"Control!$L$17*CustomersCOM!BK10","v":1.091937457436706},{"$f":"Control!$L$17*CustomersCOM!BL10","v":1.0464777701495225},{"$f":"Control!$L$17*CustomersCOM!BM10","v":1.0012453812987749},{"$f":"Control!$L$17*CustomersCOM!BN10","v":0.95623915439228102},{"$f":"Control!$L$17*CustomersCOM!BO10","v":0.91145795862031964},{"$f":"Control!$L$17*CustomersCOM!BP10","v":0.86690066882721795},{"$f":"Control!$L$17*CustomersCOM!BQ10","v":0.84256616548308194},{"$f":"Control!$L$17*CustomersCOM!BR10","v":0.81835333465566651},{"$f":"Control!$L$17*CustomersCOM!BS10","v":0.79426156798238823},{"$f":"Control!$L$17*CustomersCOM!BT10","v":0.77029026014247637},{"$f":"Control!$L$17*CustomersCOM!BU10","v":0.74643880884176395},{"$f":"Control!$L$17*CustomersCOM!BV10","v":0.72270661479755516},{"$f":"Control!$L$17*CustomersCOM!BW10","v":0.69909308172356743},{"$f":"Control!$L$17*CustomersCOM!BX10","v":0.67559761631494963},{"$f":"Control!$L$17*CustomersCOM!BY10","v":0.65221962823337498},{"$f":"Control!$L$17*CustomersCOM!BZ10","v":0.62895853009220803},{"$f":"Control!$L$17*CustomersCOM!CA10","v":0.60581373744174705},{"$f":"Control!$L$17*CustomersCOM!CB10","v":0.58278466875453827},{"$f":"Control!$L$17*CustomersCOM!CC10","v":0.57987074541076555},{"$f":"Control!$L$17*CustomersCOM!CD10","v":0.5769713916837117},{"$f":"Control!$L$17*CustomersCOM!CE10","v":0.57408653472529314},{"$f":"Control!$L$17*CustomersCOM!CF10","v":0.57121610205166673},{"$f":"Control!$L$17*CustomersCOM!CG10","v":0.56836002154140841},{"$f":"Control!$L$17*CustomersCOM!CH10","v":0.56551822143370134},{"$f":"Control!$L$17*CustomersCOM!CI10","v":0.56269063032653277},{"$f":"Control!$L$17*CustomersCOM!CJ10","v":0.55987717717490015},{"$f":"Control!$L$17*CustomersCOM!CK10","v":0.55707779128902568}]
["Kingston (C)",null,{"$f":"Control!$L$17*CustomersCOM!J11","v":23.8},{"$f":"Control!$L$17*CustomersCOM!K11","v":23.16},{"$f":"Control!$L$17*CustomersCOM!L11","v":22.964200000000002},{"$f":"Control!$L$17*CustomersCOM!M11","v":21.409378999999998},{"$f":"Control!$L$17*CustomersCOM!N11","v":19.902332104999999},{"$f":"Control!$L$17*CustomersCOM!O11","v":19.822820444474999},{"$f":"Control!$L$17*CustomersCOM!P11","v":19.623706342252625},{"$f":"Control!$L$17*CustomersCOM!Q11","v":18.625587810541361},{"$f":"Control!$L$17*CustomersCOM!R11","v":17.652459871488656},{"$f":"Control!$L$17*CustomersCOM!S11","v":16.424197572131213},{"$f":"Control!$L$17*CustomersCOM!T11","v":15.282076584270555},{"$f":"Control!$L$17*CustomersCOM!U11","v":14.325666201349202},{"$f":"Control!$L$17*CustomersCOM!V11","v":13.414037870342456},{"$f":"Control!$L$17*CustomersCOM!W11","v":12.486967680990745},{"$f":"Control!$L$17*CustomersCOM!X11","v":11.624532842585792},{"$f":"Control!$L$17*CustomersCOM!Y11","v":11.186410178372862},{"$f":"Control!$L$17*CustomersCOM!Z11","v":10.570478127480996},{"$f":"Control!$L$17*CustomersCOM!AA11","v":9.8576257368435911},{"$f":"Control!$L$17*CustomersCOM!AB11","v":9.1883376081593742},{"$f":"Control!$L$17*CustomersCOM!AC11","v":8.5623959201185773},{"$f":"Control!$L$17*CustomersCOM!AD11","v":7.9795839405179834},{"$f":"Control!$L$17*CustomersCOM!AE11","v":7.439686020815393},{"$f":"Control!$L$17*CustomersCOM!AF11","v":6.9424875907113162},{"$f":"Control!$L$17*CustomersCOM!AG11","v":6.4677751527577598},{"$f":"Control!$L$17*CustomersCOM!AH11","v":6.0354362769939716},{"$f":"Control!$L$17*CustomersCOM!AI11","v":5.6252590956090014},{"$f":"Control!$L$17*CustomersCOM!AJ11","v":5.2571328001309565},{"$f":"Control!$L$17*CustomersCOM!AK11","v":4.9108471361303012},{"$f":"Control!$L$17*CustomersCOM!AL11","v":4.5862929004496502},{"$f":"Control!$L$17*CustomersCOM!AM11","v":4.2833614359474019},{"$f":"Control!$L$17*CustomersCOM!AN11","v":4.0019446287676645},{"$f":"Control!$L$17*CustomersCOM!AO11","v":3.7419349056238262},{"$f":"Control!$L$17*CustomersCOM!AP11","v":3.5032252310957075},{"$f":"Control!$L$17*CustomersCOM!AQ11","v":3.2857091049402287},{"$f":"Control!$L$17*CustomersCOM!AR11","v":3.0892805594155277},{"$f":"Control!$L$17*CustomersCOM!AS11","v":2.8938341566184498},{"$f":"Control!$L$17*CustomersCOM!AT11","v":2.7193649858353575},{"$f":"Control!$L$17*CustomersCOM!AU11","v":2.5457681609061811},{"$f":"Control!$L$17*CustomersCOM!AV11","v":2.39303932010165},{"$f":"Control!$L$17*CustomersCOM!AW11","v":2.261074123501142},{"$f":"Control!$L$17*CustomersCOM!AX11","v":2.1297687528836362},{"$f":"Control!$L$17*CustomersCOM!AY11","v":1.9991199091192178},{"$f":"Control!$L$17*CustomersCOM!AZ11","v":1.8891243095736219},{"$f":"Control!$L$17*CustomersCOM!BA11","v":1.7796786880257538},{"$f":"Control!$L$17*CustomersCOM!BB11","v":1.690780294585625},{"$f":"Control!$L$17*CustomersCOM!BC11","v":1.6023263931126968},{"$f":"Control!$L$17*CustomersCOM!BD11","v":1.5143147611471333},{"$f":"Control!$L$17*CustomersCOM!BE11","v":1.4267431873413974},{"$f":"Control!$L$17*CustomersCOM!BF11","v":1.3596094714046905},{"$f":"Control!$L$17*CustomersCOM!BG11","v":1.2928114240476671},{"$f":"Control!$L$17*CustomersCOM!BH11","v":1.2263473669274287},{"$f":"Control!$L$17*CustomersCOM!BI11","v":1.1602156300927917},{"$f":"Control!$L$17*CustomersCOM!BJ11","v":1.1144145519423279},{"$f":"Control!$L$17*CustomersCOM!BK11","v":1.0688424791826161},{"$f":"Control!$L$17*CustomersCOM!BL11","v":1.023498266786703},{"$f":"Control!$L$17*CustomersCOM!BM11","v":0.97838077545276947},{"$f":"Control!$L$17*CustomersCOM!BN11","v":0.93348887157550564},{"$f":"Control!$L$17*CustomersCOM!BO11","v":0.88882142721762825},{"$f":"Control!$L$17*CustomersCOM!BP11","v":0.86437732008154},{"$f":"Control!$L$17*CustomersCOM!BQ11","v":0.84005543348113232},{"$f":"Control!$L$17*CustomersCOM!BR11","v":0.81585515631372674},{"$f":"Control!$L$17*CustomersCOM!BS11","v":0.79177588053215819},{"$f":"Control!$L$17*CustomersCOM!BT11","v":0.76781700112949736},{"$f":"Control!$L$17*CustomersCOM!BU11","v":0.74397791612384989},{"$f":"Control!$L$17*CustomersCOM!BV11","v":0.72025802654323079},{"$f":"Control!$L$17*CustomersCOM!BW11","v":0.69665673641051462},{"$f":"Control!$L$17*CustomersCOM!BX11","v":0.67317345272846196},{"$f":"Control!$L$17*CustomersCOM!BY11","v":0.64980758546481965},{"$f":"Control!$L$17*CustomersCOM!BZ11","v":0.62655854753749562},{"$f":"Control!$L$17*CustomersCOM!CA11","v":0.60342575479980809},{"$f":"Control!$L$17*CustomersCOM!CB11","v":0.580408626025809},{"$f":"Control!$L$17*CustomersCOM!CC11","v":0.57750658289567991},{"$f":"Control!$L$17*CustomersCOM!CD11","v":0.5746190499812015},{"$f":"Control!$L$17*CustomersCOM!CE11","v":0.57174595473129564},{"$f":"Control!$L$17*CustomersCOM!CF11","v":0.5688872249576391},{"$f":"Control!$L$17*CustomersCOM!CG11","v":0.56604278883285086},{"$f":"Control!$L$17*CustomersCOM!CH11","v":0.5632125748886867},{"$f":"Control!$L$17*CustomersCOM!CI11","v":0.56039651201424323},{"$f":"Control!$L$17*CustomersCOM!CJ11","v":0.55759452945417209},{"$f":"Control!$L$17*CustomersCOM!CK11","v":0.55480655680690116}]
["Knox (C)",null,{"$f":"Control!$L$17*CustomersCOM!J12","v":21.64},{"$f":"Control!$L$17*CustomersCOM!K12","v":21.2},{"$f":"Control!$L$17*CustomersCOM!L12","v":21.034000000000002},{"$f":"Control!$L$17*CustomersCOM!M12","v":19.608830000000001},{"$f":"Control!$L$17*CustomersCOM!N12","v":18.23078585},{"$f":"Control!$L$17*CustomersCOM!O12","v":18.159631920750002},{"$f":"Control!$L$17*CustomersCOM!P12","v":17.98883376114625},{"$f":"Control!$L$17*CustomersCOM!Q12","v":17.09888959234052},{"$f":"Control!$L$17*CustomersCOM!R12","v":16.233395144378814},{"$f":"Control!$L$17*CustomersCOM!S12","v":15.09222816865692},{"$f":"Control!$L$17*CustomersCOM!T12","v":14.036767027813635},{"$f":"Control!$L$17*CustomersCOM!U12","v":13.166583192674565},{"$f":"Control!$L$17*CustomersCOM!V12","v":12.340750276711193},{"$f":"Control!$L$17*CustomersCOM!W12","v":11.479046525327636},{"$f":"Control!$L$17*CustomersCOM!X12","v":10.681651292700996},{"$f":"Control!$L$17*CustomersCOM!Y12","v":10.288243036237491},{"$f":"Control!$L$17*CustomersCOM!Z12","v":9.7368018210563037},{"$f":"Control!$L$17*CustomersCOM!AA12","v":9.0881178119510224},{"$f":"Control!$L$17*CustomersCOM!AB12","v":8.4626772228912674},{"$f":"Control!$L$17*CustomersCOM!AC12","v":7.8803638367768114},{"$f":"Control!$L$17*CustomersCOM!AD12","v":7.3409620175929273},{"$f":"Control!$L$17*CustomersCOM!AE12","v":6.8442572075049624},{"$f":"Control!$L$17*CustomersCOM!AF12","v":6.3900359214674367},{"$f":"Control!$L$17*CustomersCOM!AG12","v":5.9580857418601001},{"$f":"Control!$L$17*CustomersCOM!AH12","v":5.5682953131507995},{"$f":"Control!$L$17*CustomersCOM!AI12","v":5.2004538365850452},{"$f":"Control!$L$17*CustomersCOM!AJ12","v":4.8544515674021209},{"$f":"Control!$L$17*CustomersCOM!AK12","v":4.5301793095651099},{"$f":"Control!$L$17*CustomersCOM!AL12","v":4.2275284130172848},{"$f":"Control!$L$17*CustomersCOM!AM12","v":3.9463907709521981},{"$f":"Control!$L$17*CustomersCOM!AN12","v":3.6866588170974373},{"$f":"Control!$L$17*CustomersCOM!AO12","v":3.4482255230119501},{"$f":"Control!$L$17*CustomersCOM!AP12","v":3.2309843953968902},{"$f":"Control!$L$17*CustomersCOM!AQ12","v":3.0348294734199057},{"$f":"Control!$L$17*CustomersCOM!AR12","v":2.8396553260528061},{"$f":"Control!$L$17*CustomersCOM!AS12","v":2.665457049422542},{"$f":"Control!$L$17*CustomersCOM!AT12","v":2.512129764175429},{"$f":"Control!$L$17*CustomersCOM!AU12","v":2.3595691153545522},{"$f":"Control!$L$17*CustomersCOM!AV12","v":2.2277712697777794},{"$f":"Control!$L$17*CustomersCOM!AW12","v":2.0966324134288903},{"$f":"Control!$L$17*CustomersCOM!AX12","v":1.9861492513617458},{"$f":"Control!$L$17*CustomersCOM!AY12","v":1.8762185051049372},{"$f":"Control!$L$17*CustomersCOM!AZ12","v":1.7668374125794126},{"$f":"Control!$L$17*CustomersCOM!BA12","v":1.6780032255165154},{"$f":"Control!$L$17*CustomersCOM!BB12","v":1.5896132093889328},{"$f":"Control!$L$17*CustomersCOM!BC12","v":1.5016651433419881},{"$f":"Control!$L$17*CustomersCOM!BD12","v":1.4141568176252781},{"$f":"Control!$L$17*CustomersCOM!BE12","v":1.3470860335371517},{"$f":"Control!$L$17*CustomersCOM!BF12","v":1.280350603369466},{"$f":"Control!$L$17*CustomersCOM!BG12","v":1.2139488503526186},{"$f":"Control!$L$17*CustomersCOM!BH12","v":1.1478791061008555},{"$f":"Control!$L$17*CustomersCOM!BI12","v":1.1021397105703514},{"$f":"Control!$L$17*CustomersCOM!BJ12","v":1.0566290120174997},{"$f":"Control!$L$17*CustomersCOM!BK12","v":1.011345866957412},{"$f":"Control!$L$17*CustomersCOM!BL12","v":0.96628913762262503},{"$f":"Control!$L$17*CustomersCOM!BM12","v":0.92145769193451188},{"$f":"Control!$L$17*CustomersCOM!BN12","v":0.87685040347483933},{"$f":"Control!$L$17*CustomersCOM!BO12","v":0.85246615145746518},{"$f":"Control!$L$17*CustomersCOM!BP12","v":0.82820382070017784},{"$f":"Control!$L$17*CustomersCOM!BQ12","v":0.80406280159667709},{"$f":"Control!$L$17*CustomersCOM!BR12","v":0.78004248758869366},{"$f":"Control!$L$17*CustomersCOM!BS12","v":0.75614227515075016},{"$f":"Control!$L$17*CustomersCOM!BT12","v":0.73236156377499639},{"$f":"Control!$L$17*CustomersCOM!BU12","v":0.70869975595612145},{"$f":"Control!$L$17*CustomersCOM!BV12","v":0.68515625717634077},{"$f":"Control!$L$17*CustomersCOM!BW12","v":0.66173047589045908},{"$f":"Control!$L$17*CustomersCOM!BX12","v":0.63842182351100674},{"$f":"Control!$L$17*CustomersCOM!BY12","v":0.61522971439345175},{"$f":"Control!$L$17*CustomersCOM!BZ12","v":0.59215356582148448},{"$f":"Control!$L$17*CustomersCOM!CA12","v":0.589192797992377},{"$f":"Control!$L$17*CustomersCOM!CB12","v":0.58624683400241506},{"$f":"Control!$L$17*CustomersCOM!CC12","v":0.583315599832403},{"$f":"Control!$L$17*CustomersCOM!CD12","v":0.58039902183324099},{"$f":"Control!$L$17*CustomersCOM!CE12","v":0.57749702672407477},{"$f":"Control!$L$17*CustomersCOM!CF12","v":0.57460954159045441},{"$f":"Control!$L$17*CustomersCOM!CG12","v":0.57173649388250225},{"$f":"Control!$L$17*CustomersCOM!CH12","v":0.56887781141308968},{"$f":"Control!$L$17*CustomersCOM!CI12","v":0.56603342235602427},{"$f":"Control!$L$17*CustomersCOM!CJ12","v":0.56320325524424408},{"$f":"Control!$L$17*CustomersCOM!CK12","v":0.56038723896802289}]
["Manningham (C)",null,{"$f":"Control!$L$17*CustomersCOM!J13","v":11.040000000000001},{"$f":"Control!$L$17*CustomersCOM!K13","v":11.026666666666667},{"$f":"Control!$L$17*CustomersCOM!L13","v":10.951533333333334},{"$f":"Control!$L$17*CustomersCOM!M13","v":10.216775666666667},{"$f":"Control!$L$17*CustomersCOM!N13","v":9.5056917883333334},{"$f":"Control!$L$17*CustomersCOM!O13","v":9.4781633293916681},{"$f":"Control!$L$17*CustomersCOM!P13","v":9.390772512744709},{"$f":"Control!$L$17*CustomersCOM!Q13","v":8.8838186501809862},{"$f":"Control!$L$17*CustomersCOM!R13","v":8.3993995569300814},{"$f":"Control!$L$17*CustomersCOM!S13","v":7.8374025591454304},{"$f":"Control!$L$17*CustomersCOM!T13","v":7.2982155463497032},{"$f":"Control!$L$17*CustomersCOM!U13","v":6.8417244686179552},{"$f":"Control!$L$17*CustomersCOM!V13","v":6.4075158462748654},{"$f":"Control!$L$17*CustomersCOM!W13","v":5.9754782670434912},{"$f":"Control!$L$17*CustomersCOM!X13","v":5.5856008757082733},{"$f":"Control!$L$17*CustomersCOM!Y13","v":5.3776728713297324},{"$f":"Control!$L$17*CustomersCOM!Z13","v":5.0907845069730842},{"$f":"Control!$L$17*CustomersCOM!AA13","v":4.7653305844382183},{"$f":"Control!$L$17*CustomersCOM!AB13","v":4.4615039315160274},{"$f":"Control!$L$17*CustomersCOM!AC13","v":4.179196411858447},{"$f":"Control!$L$17*CustomersCOM!AD13","v":3.9183004297991544},{"$f":"Control!$L$17*CustomersCOM!AE13","v":3.6587089276501588},{"$f":"Control!$L$17*CustomersCOM!AF13","v":3.4204153830119077},{"$f":"Control!$L$17*CustomersCOM!AG13","v":3.2033133060968484},{"$f":"Control!$L$17*CustomersCOM!AH13","v":3.0072967395663639},{"$f":"Control!$L$17*CustomersCOM!AI13","v":2.8122602558685315},{"$f":"Control!$L$17*CustomersCOM!AJ13","v":2.6381989545891891},{"$f":"Control!$L$17*CustomersCOM!AK13","v":2.4850079598162429},{"$f":"Control!$L$17*CustomersCOM!AL13","v":2.3325829200171619},{"$f":"Control!$L$17*CustomersCOM!AM13","v":2.2009200054170761},{"$f":"Control!$L$17*CustomersCOM!AN13","v":2.0699154053899909},{"$f":"Control!$L$17*CustomersCOM!AO13","v":1.9595658283630406},{"$f":"Control!$L$17*CustomersCOM!AP13","v":1.8497679992212253},{"$f":"Control!$L$17*CustomersCOM!AQ13","v":1.7405191592251192},{"$f":"Control!$L$17*CustomersCOM!AR13","v":1.6518165634289934},{"$f":"Control!$L$17*CustomersCOM!AS13","v":1.5635574806118484},{"$f":"Control!$L$17*CustomersCOM!AT13","v":1.4757396932087892},{"$f":"Control!$L$17*CustomersCOM!AU13","v":1.4083609947427453},{"$f":"Control!$L$17*CustomersCOM!AV13","v":1.3413191897690318},{"$f":"Control!$L$17*CustomersCOM!AW13","v":1.2746125938201867},{"$f":"Control!$L$17*CustomersCOM!AX13","v":1.2082395308510856},{"$f":"Control!$L$17*CustomersCOM!AY13","v":1.1421983331968302},{"$f":"Control!$L$17*CustomersCOM!AZ13","v":1.096487341530846},{"$f":"Control!$L$17*CustomersCOM!BA13","v":1.0510049048231918},{"$f":"Control!$L$17*CustomersCOM!BB13","v":1.0057498802990756},{"$f":"Control!$L$17*CustomersCOM!BC13","v":0.96072113089758038},{"$f":"Control!$L$17*CustomersCOM!BD13","v":0.91591752524309245},{"$f":"Control!$L$17*CustomersCOM!BE13","v":0.87133793761687706},{"$f":"Control!$L$17*CustomersCOM!BF13","v":0.84698124792879259},{"$f":"Control!$L$17*CustomersCOM!BG13","v":0.82274634168914862},{"$f":"Control!$L$17*CustomersCOM!BH13","v":0.79863260998070285},{"$f":"Control!$L$17*CustomersCOM!BI13","v":0.77463944693079945},{"$f":"Control!$L$17*CustomersCOM!BJ13","v":0.75076624969614547},{"$f":"Control!$L$17*CustomersCOM!BK13","v":0.72701241844766473},{"$f":"Control!$L$17*CustomersCOM!BL13","v":0.70337735635542642},{"$f":"Control!$L$17*CustomersCOM!BM13","v":0.67986046957364932},{"$f":"Control!$L$17*CustomersCOM!BN13","v":0.65646116722578118},{"$f":"Control!$L$17*CustomersCOM!BO13","v":0.63317886138965218},{"$f":"Control!$L$17*CustomersCOM!BP13","v":0.61001296708270392},{"$f":"Control!$L$17*CustomersCOM!BQ13","v":0.58696290224729042},{"$f":"Control!$L$17*CustomersCOM!BR13","v":0.58402808773605397},{"$f":"Control!$L$17*CustomersCOM!BS13","v":0.58110794729737369},{"$f":"Control!$L$17*CustomersCOM!BT13","v":0.57820240756088681},{"$f":"Control!$L$17*CustomersCOM!BU13","v":0.57531139552308241},{"$f":"Control!$L$17*CustomersCOM!BV13","v":0.57243483854546695},{"$f":"Control!$L$17*CustomersCOM!BW13","v":0.56957266435273968},{"$f":"Control!$L$17*CustomersCOM!BX13","v":0.566724801030976},{"$f":"Control!$L$17*CustomersCOM!BY13","v":0.56389117702582114},{"$f":"Control!$L$17*CustomersCOM!BZ13","v":0.56107172114069204},{"$f":"Control!$L$17*CustomersCOM!CA13","v":0.55826636253498851},{"$f":"Control!$L$17*CustomersCOM!CB13","v":0.55547503072231363},{"$f":"Control!$L$17*CustomersCOM!CC13","v":0.55269765556870198},{"$f":"Control!$L$17*CustomersCOM!CD13","v":0.54993416729085842},{"$f":"Control!$L$17*CustomersCOM!CE13","v":0.54718449645440415},{"$f":"Control!$L$17*CustomersCOM!CF13","v":0.54444857397213209},{"$f":"Control!$L$17*CustomersCOM!CG13","v":0.54172633110227142},{"$f":"Control!$L$17*CustomersCOM!CH13","v":0.53901769944676015},{"$f":"Control!$L$17*CustomersCOM!CI13","v":0.53632261094952638},{"$f":"Control!$L$17*CustomersCOM!CJ13","v":0.5336409978947787},{"$f":"Control!$L$17*CustomersCOM!CK13","v":0.53097279290530486}]
["Maroondah (C)",null,{"$f":"Control!$L$17*CustomersCOM!J14","v":11.42},{"$f":"Control!$L$17*CustomersCOM!K14","v":11.273333333333333},{"$f":"Control!$L$17*CustomersCOM!L14","v":11.176966666666665},{"$f":"Control!$L$17*CustomersCOM!M14","v":10.421081833333332},{"$f":"Control!$L$17*CustomersCOM!N14","v":9.7089764241666661},{"$f":"Control!$L$17*CustomersCOM!O14","v":9.6604315420458331},{"$f":"Control!$L$17*CustomersCOM!P14","v":9.5521293843356041},{"$f":"Control!$L$17*CustomersCOM!Q14","v":9.084368737413925},{"$f":"Control!$L$17*CustomersCOM!R14","v":8.6189468937268554},{"$f":"Control!$L$17*CustomersCOM!S14","v":8.0358521592582211},{"$f":"Control!$L$17*CustomersCOM!T14","v":7.4956728984619305},{"$f":"Control!$L$17*CustomersCOM!U14","v":7.0381945339696212},{"$f":"Control!$L$17*CustomersCOM!V14","v":6.6030035612997731},{"$f":"Control!$L$17*CustomersCOM!W14","v":6.149988543493274},{"$f":"Control!$L$17*CustomersCOM!X14","v":5.7392386007758081},{"$f":"Control!$L$17*CustomersCOM!Y14","v":5.5305424077719296},{"$f":"Control!$L$17*CustomersCOM!Z14","v":5.2428896957330702},{"$f":"Control!$L$17*CustomersCOM!AA14","v":4.9166752472544042},{"$f":"Control!$L$17*CustomersCOM!AB14","v":4.5920918710181331},{"$f":"Control!$L$17*CustomersCOM!AC14","v":4.2891314116630417},{"$f":"Control!$L$17*CustomersCOM!AD14","v":4.0076857546047266},{"$f":"Control!$L$17*CustomersCOM!AE14","v":3.7476473258317031},{"$f":"Control!$L$17*CustomersCOM!AF14","v":3.5089090892025445},{"$f":"Control!$L$17*CustomersCOM!AG14","v":3.2913645437565315},{"$f":"Control!$L$17*CustomersCOM!AH14","v":3.0949077210377487},{"$f":"Control!$L$17*CustomersCOM!AI14","v":2.8994331824325599},{"$f":"Control!$L$17*CustomersCOM!AJ14","v":2.7249360165203975},{"$f":"Control!$L$17*CustomersCOM!AK14","v":2.5513113364377951},{"$f":"Control!$L$17*CustomersCOM!AL14","v":2.3985547797556062},{"$f":"Control!$L$17*CustomersCOM!AM14","v":2.2665620058568283},{"$f":"Control!$L$17*CustomersCOM!AN14","v":2.1352291958275442},{"$f":"Control!$L$17*CustomersCOM!AO14","v":2.0045530498484063},{"$f":"Control!$L$17*CustomersCOM!AP14","v":1.8945302845991643},{"$f":"Control!$L$17*CustomersCOM!AQ14","v":1.7850576331761685},{"$f":"Control!$L$17*CustomersCOM!AR14","v":1.6961323450102876},{"$f":"Control!$L$17*CustomersCOM!AS14","v":1.6076516832852361},{"$f":"Control!$L$17*CustomersCOM!AT14","v":1.51961342486881},{"$f":"Control!$L$17*CustomersCOM!AU14","v":1.4320153577444661},{"$f":"Control!$L$17*CustomersCOM!AV14","v":1.3648552809557435},{"$f":"Control!$L$17*CustomersCOM!AW14","v":1.2980310045509649},{"$f":"Control!$L$17*CustomersCOM!AX14","v":1.2315408495282101},{"$f":"Control!$L$17*CustomersCOM!AY14","v":1.165383145280569},{"$f":"Control!$L$17*CustomersCOM!AZ14","v":1.1195562295541661},{"$f":"Control!$L$17*CustomersCOM!BA14","v":1.0739584484063951},{"$f":"Control!$L$17*CustomersCOM!BB14","v":1.0285886561643631},{"$f":"Control!$L$17*CustomersCOM!BC14","v":0.98344571288354132},{"$f":"Control!$L$17*CustomersCOM!BD14","v":0.93852848431912361},{"$f":"Control!$L$17*CustomersCOM!BE14","v":0.89383584189752796},{"$f":"Control!$L$17*CustomersCOM!BF14","v":0.8693666626880403},{"$f":"Control!$L$17*CustomersCOM!BG14","v":0.84501982937460018},{"$f":"Control!$L$17*CustomersCOM!BH14","v":0.8207947302277272},{"$f":"Control!$L$17*CustomersCOM!BI14","v":0.7966907565765885},{"$f":"Control!$L$17*CustomersCOM!BJ14","v":0.77270730279370559},{"$f":"Control!$L$17*CustomersCOM!BK14","v":0.74884376627973692},{"$f":"Control!$L$17*CustomersCOM!BL14","v":0.72509954744833827},{"$f":"Control!$L$17*CustomersCOM!BM14","v":0.7014740497110965},{"$f":"Control!$L$17*CustomersCOM!BN14","v":0.67796667946254108},{"$f":"Control!$L$17*CustomersCOM!BO14","v":0.65457684606522837},{"$f":"Control!$L$17*CustomersCOM!BP14","v":0.63130396183490223},{"$f":"Control!$L$17*CustomersCOM!BQ14","v":0.60814744202572768},{"$f":"Control!$L$17*CustomersCOM!BR14","v":0.58510670481559912},{"$f":"Control!$L$17*CustomersCOM!BS14","v":0.58218117129152103},{"$f":"Control!$L$17*CustomersCOM!BT14","v":0.57927026543506344},{"$f":"Control!$L$17*CustomersCOM!BU14","v":0.57637391410788807},{"$f":"Control!$L$17*CustomersCOM!BV14","v":0.5734920445373487},{"$f":"Control!$L$17*CustomersCOM!BW14","v":0.5706245843146619},{"$f":"Control!$L$17*CustomersCOM!BX14","v":0.56777146139308865},{"$f":"Control!$L$17*CustomersCOM!BY14","v":0.56493260408612311},{"$f":"Control!$L$17*CustomersCOM!BZ14","v":0.56210794106569251},{"$f":"Control!$L$17*CustomersCOM!CA14","v":0.5592974013603641},{"$f":"Control!$L$17*CustomersCOM!CB14","v":0.5565009143535623},{"$f":"Control!$L$17*CustomersCOM!CC14","v":0.55371840978179443},{"$f":"Control!$L$17*CustomersCOM!CD14","v":0.55094981773288543},{"$f":"Control!$L$17*CustomersCOM!CE14","v":0.54819506864422107},{"$f":"Control!$L$17*CustomersCOM!CF14","v":0.54545409330099992},{"$f":"Control!$L$17*CustomersCOM!CG14","v":0.54272682283449492},{"$f":"Control!$L$17*CustomersCOM!CH14","v":0.54001318872032245},{"$f":"Control!$L$17*CustomersCOM!CI14","v":0.53731312277672083},{"$f":"Control!$L$17*CustomersCOM!CJ14","v":0.53462655716283725},{"$f":"Control!$L$17*CustomersCOM!CK14","v":0.53195342437702298}]
["Melbourne (C)",null,{"$f":"Control!$L$17*CustomersCOM!J15","v":3.72},{"$f":"Control!$L$17*CustomersCOM!K15","v":3.56},{"$f":"Control!$L$17*CustomersCOM!L15","v":3.6022000000000003},{"$f":"Control!$L$17*CustomersCOM!M15","v":3.3641890000000001},{"$f":"Control!$L$17*CustomersCOM!N15","v":3.1473680550000003},{"$f":"Control!$L$17*CustomersCOM!O15","v":3.1916312147250001},{"$f":"Control!$L$17*CustomersCOM!P15","v":3.2356730586513751},{"$f":"Control!$L$17*CustomersCOM!Q15","v":3.0394946933581179},{"$f":"Control!$L$17*CustomersCOM!R15","v":2.844297219891327},{"$f":"Control!$L$17*CustomersCOM!S15","v":2.6700757337918701},{"$f":"Control!$L$17*CustomersCOM!T15","v":2.5167253551229112},{"$f":"Control!$L$17*CustomersCOM!U15","v":2.3641417283472963},{"$f":"Control!$L$17*CustomersCOM!V15","v":2.2323210197055601},{"$f":"Control!$L$17*CustomersCOM!W15","v":2.1011594146070318},{"$f":"Control!$L$17*CustomersCOM!X15","v":1.9706536175339968},{"$f":"Control!$L$17*CustomersCOM!Y15","v":1.880800349446327},{"$f":"Control!$L$17*CustomersCOM!Z15","v":1.7713963476990955},{"$f":"Control!$L$17*CustomersCOM!AA15","v":1.6825393659605998},{"$f":"Control!$L$17*CustomersCOM!AB15","v":1.5941266691307967},{"$f":"Control!$L$17*CustomersCOM!AC15","v":1.5061560357851429},{"$f":"Control!$L$17*CustomersCOM!AD15","v":1.4186252556062173},{"$f":"Control!$L$17*CustomersCOM!AE15","v":1.3515321293281861},{"$f":"Control!$L$17*CustomersCOM!AF15","v":1.2647744686815452},{"$f":"Control!$L$17*CustomersCOM!AG15","v":1.1784505963381375},{"$f":"Control!$L$17*CustomersCOM!AH15","v":1.1125583433564468},{"$f":"Control!$L$17*CustomersCOM!AI15","v":1.0469955516396645},{"$f":"Control!$L$17*CustomersCOM!AJ15","v":0.9817605738814662},{"$f":"Control!$L$17*CustomersCOM!AK15","v":0.91685177101205884},{"$f":"Control!$L$17*CustomersCOM!AL15","v":0.85226751215699847},{"$f":"Control!$L$17*CustomersCOM!AM15","v":0.80800617459621349},{"$f":"Control!$L$17*CustomersCOM!AN15","v":0.76396614372323246},{"$f":"Control!$L$17*CustomersCOM!AO15","v":0.72014631300461629},{"$f":"Control!$L$17*CustomersCOM!AP15","v":0.6765455814395932},{"$f":"Control!$L$17*CustomersCOM!AQ15","v":0.63316285353239521},{"$f":"Control!$L$17*CustomersCOM!AR15","v":0.58999703926473324},{"$f":"Control!$L$17*CustomersCOM!AS15","v":0.56704705406840961},{"$f":"Control!$L$17*CustomersCOM!AT15","v":0.54421181879806757},{"$f":"Control!$L$17*CustomersCOM!AU15","v":0.52149075970407721},{"$f":"Control!$L$17*CustomersCOM!AV15","v":0.49888330590555685},{"$f":"Control!$L$17*CustomersCOM!AW15","v":0.47638888937602908},{"$f":"Control!$L$17*CustomersCOM!AX15","v":0.45400694492914895},{"$f":"Control!$L$17*CustomersCOM!AY15","v":0.43173691020450322},{"$f":"Control!$L$17*CustomersCOM!AZ15","v":0.40957822565348068},{"$f":"Control!$L$17*CustomersCOM!BA15","v":0.38753033452521329},{"$f":"Control!$L$17*CustomersCOM!BB15","v":0.36559268285258723},{"$f":"Control!$L$17*CustomersCOM!BC15","v":0.34376471943832426},{"$f":"Control!$L$17*CustomersCOM!BD15","v":0.32204589584113263},{"$f":"Control!$L$17*CustomersCOM!BE15","v":0.30043566636192698},{"$f":"Control!$L$17*CustomersCOM!BF15","v":0.27893348803011736},{"$f":"Control!$L$17*CustomersCOM!BG15","v":0.27753882058996676},{"$f":"Control!$L$17*CustomersCOM!BH15","v":0.2761511264870169},{"$f":"Control!$L$17*CustomersCOM!BI15","v":0.27477037085458184},{"$f":"Control!$L$17*CustomersCOM!BJ15","v":0.27339651900030892},{"$f":"Control!$L$17*CustomersCOM!BK15","v":0.27202953640530736},{"$f":"Control!$L$17*CustomersCOM!BL15","v":0.27066938872328083},{"$f":"Control!$L$17*CustomersCOM!BM15","v":0.26931604177966445},{"$f":"Control!$L$17*CustomersCOM!BN15","v":0.26796946157076612},{"$f":"Control!$L$17*CustomersCOM!BO15","v":0.26662961426291232},{"$f":"Control!$L$17*CustomersCOM!BP15","v":0.26529646619159775},{"$f":"Control!$L$17*CustomersCOM!BQ15","v":0.26396998386063975},{"$f":"Control!$L$17*CustomersCOM!BR15","v":0.26265013394133652},{"$f":"Control!$L$17*CustomersCOM!BS15","v":0.26133688327162985},{"$f":"Control!$L$17*CustomersCOM!BT15","v":0.26003019885527168},{"$f":"Control!$L$17*CustomersCOM!BU15","v":0.25873004786099535},{"$f":"Control!$L$17*CustomersCOM!BV15","v":0.2574363976216904},{"$f":"Control!$L$17*CustomersCOM!BW15","v":0.25614921563358195},{"$f":"Control!$L$17*CustomersCOM!BX15","v":0.25486846955541403},{"$f":"Control!$L$17*CustomersCOM!BY15","v":0.25359412720763697},{"$f":"Control!$L$17*CustomersCOM!BZ15","v":0.25232615657159879},{"$f":"Control!$L$17*CustomersCOM!CA15","v":0.25106452578874083},{"$f":"Control!$L$17*CustomersCOM!CB15","v":0.2498092031597971},{"$f":"Control!$L$17*CustomersCOM!CC15","v":0.2485601571439981},{"$f":"Control!$L$17*CustomersCOM!CD15","v":0.24731735635827812},{"$f":"Control!$L$17*CustomersCOM!CE15","v":0.2460807695764867},{"$f":"Control!$L$17*CustomersCOM!CF15","v":0.24485036572860427},{"$f":"Control!$L$17*CustomersCOM!CG15","v":0.24362611389996125},{"$f":"Control!$L$17*CustomersCOM!CH15","v":0.24240798333046143},{"$f":"Control!$L$17*CustomersCOM!CI15","v":0.24119594341380915},{"$f":"Control!$L$17*CustomersCOM!CJ15","v":0.23998996369674011},{"$f":"Control!$L$17*CustomersCOM!CK15","v":0.23879001387825638}]
["Monash (C)",null,{"$f":"Control!$L$17*CustomersCOM!J16","v":25.02},{"$f":"Control!$L$17*CustomersCOM!K16","v":24.366666666666667},{"$f":"Control!$L$17*CustomersCOM!L16","v":24.264833333333332},{"$f":"Control!$L$17*CustomersCOM!M16","v":22.603509166666665},{"$f":"Control!$L$17*CustomersCOM!N16","v":21.010491620833331},{"$f":"Control!$L$17*CustomersCOM!O16","v":21.005439162729168},{"$f":"Control!$L$17*CustomersCOM!P16","v":20.880411966915521},{"$f":"Control!$L$17*CustomersCOM!Q16","v":19.816009907080943},{"$f":"Control!$L$17*CustomersCOM!R16","v":18.75692985754554},{"$f":"Control!$L$17*CustomersCOM!S16","v":17.44314520825781},{"$f":"Control!$L$17*CustomersCOM!T16","v":16.215929482216524},{"$f":"Control!$L$17*CustomersCOM!U16","v":15.174849834805441},{"$f":"Control!$L$17*CustomersCOM!V16","v":14.198975585631413},{"$f":"Control!$L$17*CustomersCOM!W16","v":13.207980707703255},{"$f":"Control!$L$17*CustomersCOM!X16","v":12.281940804164737},{"$f":"Control!$L$17*CustomersCOM!Y16","v":11.820531100143915},{"$f":"Control!$L$17*CustomersCOM!Z16","v":11.141428444643195},{"$f":"Control!$L$17*CustomersCOM!AA16","v":10.385721302419979},{"$f":"Control!$L$17*CustomersCOM!AB16","v":9.6737926959078795},{"$f":"Control!$L$17*CustomersCOM!AC16","v":9.0054237324283388},{"$f":"Control!$L$17*CustomersCOM!AD16","v":8.380396613766198},{"$f":"Control!$L$17*CustomersCOM!AE16","v":7.8184946306973666},{"$f":"Control!$L$17*CustomersCOM!AF16","v":7.2794021575438794},{"$f":"Control!$L$17*CustomersCOM!AG16","v":6.7830051467561603},{"$f":"Control!$L$17*CustomersCOM!AH16","v":6.3290901210223796},{"$f":"Control!$L$17*CustomersCOM!AI16","v":5.8974446704172685},{"$f":"Control!$L$17*CustomersCOM!AJ16","v":5.5079574470651815},{"$f":"Control!$L$17*CustomersCOM!AK16","v":5.1404176598298559},{"$f":"Control!$L$17*CustomersCOM!AL16","v":4.7947155715307064},{"$f":"Control!$L$17*CustomersCOM!AM16","v":4.490741993673053},{"$f":"Control!$L$17*CustomersCOM!AN16","v":4.2082882837046878},{"$f":"Control!$L$17*CustomersCOM!AO16","v":3.9272468422861642},{"$f":"Control!$L$17*CustomersCOM!AP16","v":3.667610608074733},{"$f":"Control!$L$17*CustomersCOM!AQ16","v":3.4292725550343595},{"$f":"Control!$L$17*CustomersCOM!AR16","v":3.2121261922591877},{"$f":"Control!$L$17*CustomersCOM!AS16","v":3.0160655612978919},{"$f":"Control!$L$17*CustomersCOM!AT16","v":2.8209852334914025},{"$f":"Control!$L$17*CustomersCOM!AU16","v":2.6468803073239453},{"$f":"Control!$L$17*CustomersCOM!AV16","v":2.4936459057873255},{"$f":"Control!$L$17*CustomersCOM!AW16","v":2.3411776762583889},{"$f":"Control!$L$17*CustomersCOM!AX16","v":2.2094717878770966},{"$f":"Control!$L$17*CustomersCOM!AY16","v":2.0784244289377112},{"$f":"Control!$L$17*CustomersCOM!AZ16","v":1.968032306793023},{"$f":"Control!$L$17*CustomersCOM!BA16","v":1.8581921452590577},{"$f":"Control!$L$17*CustomersCOM!BB16","v":1.7489011845327624},{"$f":"Control!$L$17*CustomersCOM!BC16","v":1.6601566786100985},{"$f":"Control!$L$17*CustomersCOM!BD16","v":1.571855895217048},{"$f":"Control!$L$17*CustomersCOM!BE16","v":1.483996615740963},{"$f":"Control!$L$17*CustomersCOM!BF16","v":1.416576632662258},{"$f":"Control!$L$17*CustomersCOM!BG16","v":1.3494937494989467},{"$f":"Control!$L$17*CustomersCOM!BH16","v":1.2827462807514518},{"$f":"Control!$L$17*CustomersCOM!BI16","v":1.2163325493476946},{"$f":"Control!$L$17*CustomersCOM!BJ16","v":1.1502508866009562},{"$f":"Control!$L$17*CustomersCOM!BK16","v":1.1044996321679514},{"$f":"Control!$L$17*CustomersCOM!BL16","v":1.0589771340071117},{"$f":"Control!$L$17*CustomersCOM!BM16","v":1.0136822483370762},{"$f":"Control!$L$17*CustomersCOM!BN16","v":0.96861383709539073},{"$f":"Control!$L$17*CustomersCOM!BO16","v":0.92377076790991364},{"$f":"Control!$L$17*CustomersCOM!BP16","v":0.87915191407036419},{"$f":"Control!$L$17*CustomersCOM!BQ16","v":0.8547561545000123},{"$f":"Control!$L$17*CustomersCOM!BR16","v":0.83048237372751221},{"$f":"Control!$L$17*CustomersCOM!BS16","v":0.80632996185887462},{"$f":"Control!$L$17*CustomersCOM!BT16","v":0.78229831204958034},{"$f":"Control!$L$17*CustomersCOM!BU16","v":0.75838682048933237},{"$f":"Control!$L$17*CustomersCOM!BV16","v":0.73459488638688575},{"$f":"Control!$L$17*CustomersCOM!BW16","v":0.71092191195495136},{"$f":"Control!$L$17*CustomersCOM!BX16","v":0.68736730239517652},{"$f":"Control!$L$17*CustomersCOM!BY16","v":0.66393046588320059},{"$f":"Control!$L$17*CustomersCOM!BZ16","v":0.64061081355378469},{"$f":"Control!$L$17*CustomersCOM!CA16","v":0.61740775948601567},{"$f":"Control!$L$17*CustomersCOM!CB16","v":0.59432072068858566},{"$f":"Control!$L$17*CustomersCOM!CC16","v":0.59134911708514271},{"$f":"Control!$L$17*CustomersCOM!CD16","v":0.5883923714997169},{"$f":"Control!$L$17*CustomersCOM!CE16","v":0.58545040964221839},{"$f":"Control!$L$17*CustomersCOM!CF16","v":0.58252315759400719},{"$f":"Control!$L$17*CustomersCOM!CG16","v":0.57961054180603722},{"$f":"Control!$L$17*CustomersCOM!CH16","v":0.57671248909700701},{"$f":"Control!$L$17*CustomersCOM!CI16","v":0.57382892665152196},{"$f":"Control!$L$17*CustomersCOM!CJ16","v":0.57095978201826447},{"$f":"Control!$L$17*CustomersCOM!CK16","v":0.56810498310817314}]
["Port Phillip (C)",null,{"$f":"Control!$L$17*CustomersCOM!J17","v":30.02},{"$f":"Control!$L$17*CustomersCOM!K17","v":29.486666666666665},{"$f":"Control!$L$17*CustomersCOM!L17","v":29.499233333333333},{"$f":"Control!$L$17*CustomersCOM!M17","v":27.451737166666668},{"$f":"Control!$L$17*CustomersCOM!N17","v":25.514478480833333},{"$f":"Control!$L$17*CustomersCOM!O17","v":25.606906088429163},{"$f":"Control!$L$17*CustomersCOM!P17","v":25.558871557987018},{"$f":"Control!$L$17*CustomersCOM!Q17","v":24.311077200197083},{"$f":"Control!$L$17*CustomersCOM!R17","v":23.089521814196097},{"$f":"Control!$L$17*CustomersCOM!S17","v":21.474074205125117},{"$f":"Control!$L$17*CustomersCOM!T17","v":19.966703834099491},{"$f":"Control!$L$17*CustomersCOM!U17","v":18.686870314928992},{"$f":"Control!$L$17*CustomersCOM!V17","v":17.473435963354348},{"$f":"Control!$L$17*CustomersCOM!W17","v":16.246068783537577},{"$f":"Control!$L$17*CustomersCOM!X17","v":15.10483843961989},{"$f":"Control!$L$17*CustomersCOM!Y17","v":14.54931424742179},{"$f":"Control!$L$17*CustomersCOM!Z17","v":13.736567676184679},{"$f":"Control!$L$17*CustomersCOM!AA17","v":12.807884837803757},{"$f":"Control!$L$17*CustomersCOM!AB17","v":11.923845413614739},{"$f":"Control!$L$17*CustomersCOM!AC17","v":11.104226186546665},{"$f":"Control!$L$17*CustomersCOM!AD17","v":10.328705055613931},{"$f":"Control!$L$17*CustomersCOM!AE17","v":9.6170615303358602},{"$f":"Control!$L$17*CustomersCOM!AF17","v":8.9489762226841805},{"$f":"Control!$L$17*CustomersCOM!AG17","v":8.3442313415707599},{"$f":"Control!$L$17*CustomersCOM!AH17","v":7.7825101848629066},{"$f":"Control!$L$17*CustomersCOM!AI17","v":7.2635976339385913},{"$f":"Control!$L$17*CustomersCOM!AJ17","v":6.7672796457688982},{"$f":"Control!$L$17*CustomersCOM!AK17","v":6.3134432475400537},{"$f":"Control!$L$17*CustomersCOM!AL17","v":5.8818760313023528},{"$f":"Control!$L$17*CustomersCOM!AM17","v":5.4924666511458407},{"$f":"Control!$L$17*CustomersCOM!AN17","v":5.1250043178901112},{"$f":"Control!$L$17*CustomersCOM!AO17","v":4.7793792963006609},{"$f":"Control!$L$17*CustomersCOM!AP17","v":4.4754823998191577},{"$f":"Control!$L$17*CustomersCOM!AQ17","v":4.1931049878200621},{"$f":"Control!$L$17*CustomersCOM!AR17","v":3.9321394628809614},{"$f":"Control!$L$17*CustomersCOM!AS17","v":3.6724787655665563},{"$f":"Control!$L$17*CustomersCOM!AT17","v":3.4341163717387237},{"$f":"Control!$L$17*CustomersCOM!AU17","v":3.2169457898800302},{"$f":"Control!$L$17*CustomersCOM!AV17","v":3.0208610609306299},{"$f":"Control!$L$17*CustomersCOM!AW17","v":2.8257567556259766},{"$f":"Control!$L$17*CustomersCOM!AX17","v":2.6516279718478466},{"$f":"Control!$L$17*CustomersCOM!AY17","v":2.4983698319886076},{"$f":"Control!$L$17*CustomersCOM!AZ17","v":2.3458779828286644},{"$f":"Control!$L$17*CustomersCOM!BA17","v":2.2141485929145213},{"$f":"Control!$L$17*CustomersCOM!BB17","v":2.0830778499499485},{"$f":"Control!$L$17*CustomersCOM!BC17","v":1.9726624607001986},{"$f":"Control!$L$17*CustomersCOM!BD17","v":1.8627991483966977},{"$f":"Control!$L$17*CustomersCOM!BE17","v":1.7534851526547144},{"$f":"Control!$L$17*CustomersCOM!BF17","v":1.6647177268914408},{"$f":"Control!$L$17*CustomersCOM!BG17","v":1.5763941382569835},{"$f":"Control!$L$17*CustomersCOM!BH17","v":1.4885121675656985},{"$f":"Control!$L$17*CustomersCOM!BI17","v":1.4210696067278699},{"$f":"Control!$L$17*CustomersCOM!BJ17","v":1.3539642586942304},{"$f":"Control!$L$17*CustomersCOM!BK17","v":1.2871944374007591},{"$f":"Control!$L$17*CustomersCOM!BL17","v":1.2207584652137553},{"$f":"Control!$L$17*CustomersCOM!BM17","v":1.1546546728876868},{"$f":"Control!$L$17*CustomersCOM!BN17","v":1.1088813995232483},{"$f":"Control!$L$17*CustomersCOM!BO17","v":1.063336992525632},{"$f":"Control!$L$17*CustomersCOM!BP17","v":1.0180203075630039},{"$f":"Control!$L$17*CustomersCOM!BQ17","v":0.97293020602518887},{"$f":"Control!$L$17*CustomersCOM!BR17","v":0.92806555499506294},{"$f":"Control!$L$17*CustomersCOM!BS17","v":0.88342522722008754},{"$f":"Control!$L$17*CustomersCOM!BT17","v":0.85900810108398706},{"$f":"Control!$L$17*CustomersCOM!BU17","v":0.83471306057856709},{"$f":"Control!$L$17*CustomersCOM!BV17","v":0.81053949527567426},{"$f":"Control!$L$17*CustomersCOM!BW17","v":0.78648679779929598},{"$f":"Control!$L$17*CustomersCOM!BX17","v":0.76255436381029951},{"$f":"Control!$L$17*CustomersCOM!BY17","v":0.738741591991248},{"$f":"Control!$L$17*CustomersCOM!BZ17","v":0.71504788403129182},{"$f":"Control!$L$17*CustomersCOM!CA17","v":0.69147264461113533},{"$f":"Control!$L$17*CustomersCOM!CB17","v":0.66801528138807964},{"$f":"Control!$L$17*CustomersCOM!CC17","v":0.64467520498113928},{"$f":"Control!$L$17*CustomersCOM!CD17","v":0.62145182895623363},{"$f":"Control!$L$17*CustomersCOM!CE17","v":0.59834456981145234},{"$f":"Control!$L$17*CustomersCOM!CF17","v":0.5953528469623951},{"$f":"Control!$L$17*CustomersCOM!CG17","v":0.59237608272758313},{"$f":"Control!$L$17*CustomersCOM!CH17","v":0.58941420231394515},{"$f":"Control!$L$17*CustomersCOM!CI17","v":0.58646713130237549},{"$f":"Control!$L$17*CustomersCOM!CJ17","v":0.58353479564586364},{"$f":"Control!$L$17*CustomersCOM!CK17","v":0.58061712166763424}]
["South Gippsland (S)",null,{"$f":"Control!$L$17*CustomersCOM!J18","v":0.98},{"$f":"Control!$L$17*CustomersCOM!K18","v":0.96666666666666679},{"$f":"Control!$L$17*CustomersCOM!L18","v":0.96183333333333343},{"$f":"Control!$L$17*CustomersCOM!M18","v":0.91702416666666664},{"$f":"Control!$L$17*CustomersCOM!N18","v":0.87243904583333332},{"$f":"Control!$L$17*CustomersCOM!O18","v":0.86807685060416662},{"$f":"Control!$L$17*CustomersCOM!P18","v":0.86373646635114587},{"$f":"Control!$L$17*CustomersCOM!Q18","v":0.83941778401939005},{"$f":"Control!$L$17*CustomersCOM!R18","v":0.81522069509929307},{"$f":"Control!$L$17*CustomersCOM!S18","v":0.79114459162379658},{"$f":"Control!$L$17*CustomersCOM!T18","v":0.76718886866567759},{"$f":"Control!$L$17*CustomersCOM!U18","v":0.74335292432234923},{"$f":"Control!$L$17*CustomersCOM!V18","v":0.71963615970073747},{"$f":"Control!$L$17*CustomersCOM!W18","v":0.69603797890223373},{"$f":"Control!$L$17*CustomersCOM!X18","v":0.67255778900772256},{"$f":"Control!$L$17*CustomersCOM!Y18","v":0.64919500006268394},{"$f":"Control!$L$17*CustomersCOM!Z18","v":0.62594902506237049},{"$f":"Control!$L$17*CustomersCOM!AA18","v":0.60281927993705864},{"$f":"Control!$L$17*CustomersCOM!AB18","v":0.57980518353737343},{"$f":"Control!$L$17*CustomersCOM!AC18","v":0.57690615761968655},{"$f":"Control!$L$17*CustomersCOM!AD18","v":0.57402162683158808},{"$f":"Control!$L$17*CustomersCOM!AE18","v":0.57115151869743008},{"$f":"Control!$L$17*CustomersCOM!AF18","v":0.56829576110394298},{"$f":"Control!$L$17*CustomersCOM!AG18","v":0.56545428229842321},{"$f":"Control!$L$17*CustomersCOM!AH18","v":0.56262701088693112},{"$f":"Control!$L$17*CustomersCOM!AI18","v":0.55981387583249653},{"$f":"Control!$L$17*CustomersCOM!AJ18","v":0.55701480645333401},{"$f":"Control!$L$17*CustomersCOM!AK18","v":0.55422973242106732},{"$f":"Control!$L$17*CustomersCOM!AL18","v":0.55145858375896195},{"$f":"Control!$L$17*CustomersCOM!AM18","v":0.54870129084016717},{"$f":"Control!$L$17*CustomersCOM!AN18","v":0.54595778438596632},{"$f":"Control!$L$17*CustomersCOM!AO18","v":0.54322799546403655},{"$f":"Control!$L$17*CustomersCOM!AP18","v":0.54051185548671632},{"$f":"Control!$L$17*CustomersCOM!AQ18","v":0.53780929620928275},{"$f":"Control!$L$17*CustomersCOM!AR18","v":0.53512024972823635},{"$f":"Control!$L$17*CustomersCOM!AS18","v":0.53244464847959516},{"$f":"Control!$L$17*CustomersCOM!AT18","v":0.52978242523719721},{"$f":"Control!$L$17*CustomersCOM!AU18","v":0.5271335131110112},{"$f":"Control!$L$17*CustomersCOM!AV18","v":0.52449784554545609},{"$f":"Control!$L$17*CustomersCOM!AW18","v":0.52187535631772886},{"$f":"Control!$L$17*CustomersCOM!AX18","v":0.51926597953614018},{"$f":"Control!$L$17*CustomersCOM!AY18","v":0.51666964963845941},{"$f":"Control!$L$17*CustomersCOM!AZ18","v":0.51408630139026712},{"$f":"Control!$L$17*CustomersCOM!BA18","v":0.51151586988331577},{"$f":"Control!$L$17*CustomersCOM!BB18","v":0.50895829053389929},{"$f":"Control!$L$17*CustomersCOM!BC18","v":0.50641349908122979},{"$f":"Control!$L$17*CustomersCOM!BD18","v":0.50388143158582355},{"$f":"Control!$L$17*CustomersCOM!BE18","v":0.50136202442789446},{"$f":"Control!$L$17*CustomersCOM!BF18","v":0.49885521430575502},{"$f":"Control!$L$17*CustomersCOM!BG18","v":0.49636093823422628},{"$f":"Control!$L$17*CustomersCOM!BH18","v":0.49387913354305513},{"$f":"Control!$L$17*CustomersCOM!BI18","v":0.49140973787533981},{"$f":"Control!$L$17*CustomersCOM!BJ18","v":0.48895268918596307},{"$f":"Control!$L$17*CustomersCOM!BK18","v":0.48650792574003326},{"$f":"Control!$L$17*CustomersCOM!BL18","v":0.48407538611133311},{"$f":"Control!$L$17*CustomersCOM!BM18","v":0.48165500918077647},{"$f":"Control!$L$17*CustomersCOM!BN18","v":0.47924673413487262},{"$f":"Control!$L$17*CustomersCOM!BO18","v":0.47685050046419825},{"$f":"Control!$L$17*CustomersCOM!BP18","v":0.47446624796187731},{"$f":"Control!$L$17*CustomersCOM!BQ18","v":0.47209391672206791},{"$f":"Control!$L$17*CustomersCOM!BR18","v":0.46973344713845755},{"$f":"Control!$L$17*CustomersCOM!BS18","v":0.46738477990276528},{"$f":"Control!$L$17*CustomersCOM!BT18","v":0.46504785600325149},{"$f":"Control!$L$17*CustomersCOM!BU18","v":0.46272261672323522},{"$f":"Control!$L$17*CustomersCOM!BV18","v":0.46040900363961906},{"$f":"Control!$L$17*CustomersCOM!BW18","v":0.45810695862142092},{"$f":"Control!$L$17*CustomersCOM!BX18","v":0.45581642382831383},{"$f":"Control!$L$17*CustomersCOM!BY18","v":0.45353734170917231},{"$f":"Control!$L$17*CustomersCOM!BZ18","v":0.45126965500062638},{"$f":"Control!$L$17*CustomersCOM!CA18","v":0.44901330672562323},{"$f":"Control!$L$17*CustomersCOM!CB18","v":0.44676824019199518},{"$f":"Control!$L$17*CustomersCOM!CC18","v":0.44453439899103514},{"$f":"Control!$L$17*CustomersCOM!CD18","v":0.44231172699607996},{"$f":"Control!$L$17*CustomersCOM!CE18","v":0.44010016836109955},{"$f":"Control!$L$17*CustomersCOM!CF18","v":0.43789966751929404},{"$f":"Control!$L$17*CustomersCOM!CG18","v":0.43571016918169764},{"$f":"Control!$L$17*CustomersCOM!CH18","v":0.43353161833578913},{"$f":"Control!$L$17*CustomersCOM!CI18","v":0.43136396024411017},{"$f":"Control!$L$17*CustomersCOM!CJ18","v":0.4292071404428896},{"$f":"Control!$L$17*CustomersCOM!CK18","v":0.42706110474067516}]
["Stonnington (C)",null,{"$f":"Control!$L$17*CustomersCOM!J19","v":26.82},{"$f":"Control!$L$17*CustomersCOM!K19","v":26.3},{"$f":"Control!$L$17*CustomersCOM!L19","v":26.0885},{"$f":"Control!$L$17*CustomersCOM!M19","v":24.338057500000001},{"$f":"Control!$L$17*CustomersCOM!N19","v":22.636367212500002},{"$f":"Control!$L$17*CustomersCOM!O19","v":22.5231853764375},{"$f":"Control!$L$17*CustomersCOM!P19","v":22.290569449555313},{"$f":"Control!$L$17*CustomersCOM!Q19","v":21.219116602307537},{"$f":"Control!$L$17*CustomersCOM!R19","v":20.193021019295998},{"$f":"Control!$L$17*CustomersCOM!S19","v":18.77205591419952},{"$f":"Control!$L$17*CustomersCOM!T19","v":17.45819563462852},{"$f":"Control!$L$17*CustomersCOM!U19","v":16.370904656455377},{"$f":"Control!$L$17*CustomersCOM!V19","v":15.349050133173101},{"$f":"Control!$L$17*CustomersCOM!W19","v":14.272304882507235},{"$f":"Control!$L$17*CustomersCOM!X19","v":13.280943358094699},{"$f":"Control!$L$17*CustomersCOM!Y19","v":12.794538641304225},{"$f":"Control!$L$17*CustomersCOM!Z19","v":12.130565948097704},{"$f":"Control!$L$17*CustomersCOM!AA19","v":11.349913118357215},{"$f":"Control!$L$17*CustomersCOM!AB19","v":10.573163552765429},{"$f":"Control!$L$17*CustomersCOM!AC19","v":9.8402977350016023},{"$f":"Control!$L$17*CustomersCOM!AD19","v":9.171096246326595},{"$f":"Control!$L$17*CustomersCOM!AE19","v":8.5452407650949613},{"$f":"Control!$L$17*CustomersCOM!AF19","v":7.9625145612694865},{"$f":"Control!$L$17*CustomersCOM!AG19","v":7.4227019884631389},{"$f":"Control!$L$17*CustomersCOM!AH19","v":6.9255884785208233},{"$f":"Control!$L$17*CustomersCOM!AI19","v":6.4509605361282185},{"$f":"Control!$L$17*CustomersCOM!AJ19","v":6.018705733447578},{"$f":"Control!$L$17*CustomersCOM!AK19","v":5.6086122047803393},{"$f":"Control!$L$17*CustomersCOM!AL19","v":5.2405691437564386},{"$f":"Control!$L$17*CustomersCOM!AM19","v":4.8943662980376565},{"$f":"Control!$L$17*CustomersCOM!AN19","v":4.5698944665474679},{"$f":"Control!$L$17*CustomersCOM!AO19","v":4.2670449942147313},{"$f":"Control!$L$17*CustomersCOM!AP19","v":3.9857097692436572},{"$f":"Control!$L$17*CustomersCOM!AQ19","v":3.725781220397439},{"$f":"Control!$L$17*CustomersCOM!AR19","v":3.4871523142954515},{"$f":"Control!$L$17*CustomersCOM!AS19","v":3.269716552723974},{"$f":"Control!$L$17*CustomersCOM!AT19","v":3.0733679699603544},{"$f":"Control!$L$17*CustomersCOM!AU19","v":2.8780011301105528},{"$f":"Control!$L$17*CustomersCOM!AV19","v":2.7036111244600001},{"$f":"Control!$L$17*CustomersCOM!AW19","v":2.5300930688376999},{"$f":"Control!$L$17*CustomersCOM!AX19","v":2.3774426034935114},{"$f":"Control!$L$17*CustomersCOM!AY19","v":2.2455553904760439},{"$f":"Control!$L$17*CustomersCOM!AZ19","v":2.1143276135236637},{"$f":"Control!$L$17*CustomersCOM!BA19","v":1.9837559754560454},{"$f":"Control!$L$17*CustomersCOM!BB19","v":1.8738371955787652},{"$f":"Control!$L$17*CustomersCOM!BC19","v":1.7644680096008714},{"$f":"Control!$L$17*CustomersCOM!BD19","v":1.675645669552867},{"$f":"Control!$L$17*CustomersCOM!BE19","v":1.5872674412051027},{"$f":"Control!$L$17*CustomersCOM!BF19","v":1.4993311039990773},{"$f":"Control!$L$17*CustomersCOM!BG19","v":1.4318344484790819},{"$f":"Control!$L$17*CustomersCOM!BH19","v":1.3646752762366865},{"$f":"Control!$L$17*CustomersCOM!BI19","v":1.2978518998555029},{"$f":"Control!$L$17*CustomersCOM!BJ19","v":1.2313626403562254},{"$f":"Control!$L$17*CustomersCOM!BK19","v":1.1652058271544443},{"$f":"Control!$L$17*CustomersCOM!BL19","v":1.1193797980186719},{"$f":"Control!$L$17*CustomersCOM!BM19","v":1.0737828990285787},{"$f":"Control!$L$17*CustomersCOM!BN19","v":1.0284139845334357},{"$f":"Control!$L$17*CustomersCOM!BO19","v":0.98327191461076857},{"$f":"Control!$L$17*CustomersCOM!BP19","v":0.93835555503771473},{"$f":"Control!$L$17*CustomersCOM!BQ19","v":0.89366377726252622},{"$f":"Control!$L$17*CustomersCOM!BR19","v":0.86919545837621359},{"$f":"Control!$L$17*CustomersCOM!BS19","v":0.84484948108433244},{"$f":"Control!$L$17*CustomersCOM!BT19","v":0.82062523367891071},{"$f":"Control!$L$17*CustomersCOM!BU19","v":0.79652210751051633},{"$f":"Control!$L$17*CustomersCOM!BV19","v":0.77253949697296365},{"$f":"Control!$L$17*CustomersCOM!BW19","v":0.74867679948809884},{"$f":"Control!$L$17*CustomersCOM!BX19","v":0.72493341549065837},{"$f":"Control!$L$17*CustomersCOM!BY19","v":0.70130874841320512},{"$f":"Control!$L$17*CustomersCOM!BZ19","v":0.67780220467113905},{"$f":"Control!$L$17*CustomersCOM!CA19","v":0.65441319364778339},{"$f":"Control!$L$17*CustomersCOM!CB19","v":0.63114112767954444},{"$f":"Control!$L$17*CustomersCOM!CC19","v":0.60798542204114681},{"$f":"Control!$L$17*CustomersCOM!CD19","v":0.58494549493094095},{"$f":"Control!$L$17*CustomersCOM!CE19","v":0.58202076745628628},{"$f":"Control!$L$17*CustomersCOM!CF19","v":0.57911066361900487},{"$f":"Control!$L$17*CustomersCOM!CG19","v":0.57621511030090988},{"$f":"Control!$L$17*CustomersCOM!CH19","v":0.57333403474940536},{"$f":"Control!$L$17*CustomersCOM!CI19","v":0.57046736457565828},{"$f":"Control!$L$17*CustomersCOM!CJ19","v":0.56761502775277994},{"$f":"Control!$L$17*CustomersCOM!CK19","v":0.56477695261401606}]
["Whitehorse (C)",null,{"$f":"Control!$L$17*CustomersCOM!J20","v":23.36},{"$f":"Control!$L$17*CustomersCOM!K20","v":22.966666666666665},{"$f":"Control!$L$17*CustomersCOM!L20","v":22.791833333333333},{"$f":"Control!$L$17*CustomersCOM!M20","v":21.237874166666668},{"$f":"Control!$L$17*CustomersCOM!N20","v":19.751684795833334},{"$f":"Control!$L$17*CustomersCOM!O20","v":19.692926371854167},{"$f":"Control!$L$17*CustomersCOM!P20","v":19.514461739994896},{"$f":"Control!$L$17*CustomersCOM!Q20","v":18.516889431294921},{"$f":"Control!$L$17*CustomersCOM!R20","v":17.544304984138446},{"$f":"Control!$L$17*CustomersCOM!S20","v":16.316583459217753},{"$f":"Control!$L$17*CustomersCOM!T20","v":15.175000541921666},{"$f":"Control!$L$17*CustomersCOM!U20","v":14.219125539212058},{"$f":"Control!$L$17*CustomersCOM!V20","v":13.308029911515996},{"$f":"Control!$L$17*CustomersCOM!W20","v":12.381489761958417},{"$f":"Control!$L$17*CustomersCOM!X20","v":11.519582313148623},{"$f":"Control!$L$17*CustomersCOM!Y20","v":11.081984401582881},{"$f":"Control!$L$17*CustomersCOM!Z20","v":10.466574479574968},{"$f":"Control!$L$17*CustomersCOM!AA20","v":9.7742416071770926},{"$f":"Control!$L$17*CustomersCOM!AB20","v":9.1053703991412061},{"$f":"Control!$L$17*CustomersCOM!AC20","v":8.4798435471455011},{"$f":"Control!$L$17*CustomersCOM!AD20","v":7.8974443294097734},{"$f":"Control!$L$17*CustomersCOM!AE20","v":7.3579571077627239},{"$f":"Control!$L$17*CustomersCOM!AF20","v":6.8611673222239098},{"$f":"Control!$L$17*CustomersCOM!AG20","v":6.4068614856127901},{"$f":"Control!$L$17*CustomersCOM!AH20","v":5.974827178184726},{"$f":"Control!$L$17*CustomersCOM!AI20","v":5.5849530422938019},{"$f":"Control!$L$17*CustomersCOM!AJ20","v":5.2170282770823331},{"$f":"Control!$L$17*CustomersCOM!AK20","v":4.8709431356969208},{"$f":"Control!$L$17*CustomersCOM!AL20","v":4.5465884200184359},{"$f":"Control!$L$17*CustomersCOM!AM20","v":4.2438554779183439},{"$f":"Control!$L$17*CustomersCOM!AN20","v":3.9626362005287521},{"$f":"Control!$L$17*CustomersCOM!AO20","v":3.7028230195261078},{"$f":"Control!$L$17*CustomersCOM!AP20","v":3.4643089044284774},{"$f":"Control!$L$17*CustomersCOM!AQ20","v":3.2469873599063352},{"$f":"Control!$L$17*CustomersCOM!AR20","v":3.0507524231068035},{"$f":"Control!$L$17*CustomersCOM!AS20","v":2.8554986609912691},{"$f":"Control!$L$17*CustomersCOM!AT20","v":2.6812211676863127},{"$f":"Control!$L$17*CustomersCOM!AU20","v":2.527815061847881},{"$f":"Control!$L$17*CustomersCOM!AV20","v":2.3751759865386415},{"$f":"Control!$L$17*CustomersCOM!AW20","v":2.2433001066059486},{"$f":"Control!$L$17*CustomersCOM!AX20","v":2.1120836060729187},{"$f":"Control!$L$17*CustomersCOM!AY20","v":1.9815231880425541},{"$f":"Control!$L$17*CustomersCOM!AZ20","v":1.8716155721023413},{"$f":"Control!$L$17*CustomersCOM!BA20","v":1.7622574942418294},{"$f":"Control!$L$17*CustomersCOM!BB20","v":1.6734462067706202},{"$f":"Control!$L$17*CustomersCOM!BC20","v":1.5850789757367671},{"$f":"Control!$L$17*CustomersCOM!BD20","v":1.4971535808580831},{"$f":"Control!$L$17*CustomersCOM!BE20","v":1.4296678129537927},{"$f":"Control!$L$17*CustomersCOM!BF20","v":1.3625194738890238},{"$f":"Control!$L$17*CustomersCOM!BG20","v":1.2957068765195789},{"$f":"Control!$L$17*CustomersCOM!BH20","v":1.229228342136981},{"$f":"Control!$L$17*CustomersCOM!BI20","v":1.163082200426296},{"$f":"Control!$L$17*CustomersCOM!BJ20","v":1.1172667894241646},{"$f":"Control!$L$17*CustomersCOM!BK20","v":1.0716804554770436},{"$f":"Control!$L$17*CustomersCOM!BL20","v":1.0263220531996584},{"$f":"Control!$L$17*CustomersCOM!BM20","v":0.9811904429336602},{"$f":"Control!$L$17*CustomersCOM!BN20","v":0.93628449071899189},{"$f":"Control!$L$17*CustomersCOM!BO20","v":0.89160306826539681},{"$f":"Control!$L$17*CustomersCOM!BP20","v":0.86714505292406985},{"$f":"Control!$L$17*CustomersCOM!BQ20","v":0.8428093276594496},{"$f":"Control!$L$17*CustomersCOM!BR20","v":0.81859528102115231},{"$f":"Control!$L$17*CustomersCOM!BS20","v":0.79450230461604665},{"$f":"Control!$L$17*CustomersCOM!BT20","v":0.77052979309296632},{"$f":"Control!$L$17*CustomersCOM!BU20","v":0.74667714412750141},{"$f":"Control!$L$17*CustomersCOM!BV20","v":0.72294375840686398},{"$f":"Control!$L$17*CustomersCOM!BW20","v":0.69932903961482962},{"$f":"Control!$L$17*CustomersCOM!BX20","v":0.67583239441675547},{"$f":"Control!$L$17*CustomersCOM!BY20","v":0.65245323244467179},{"$f":"Control!$L$17*CustomersCOM!BZ20","v":0.62919096628244842},{"$f":"Control!$L$17*CustomersCOM!CA20","v":0.60604501145103618},{"$f":"Control!$L$17*CustomersCOM!CB20","v":0.58301478639378101},{"$f":"Control!$L$17*CustomersCOM!CC20","v":0.58009971246181213},{"$f":"Control!$L$17*CustomersCOM!CD20","v":0.57719921389950302},{"$f":"Control!$L$17*CustomersCOM!CE20","v":0.57431321783000555},{"$f":"Control!$L$17*CustomersCOM!CF20","v":0.57144165174085548},{"$f":"Control!$L$17*CustomersCOM!CG20","v":0.5685844434821512},{"$f":"Control!$L$17*CustomersCOM!CH20","v":0.56574152126474042},{"$f":"Control!$L$17*CustomersCOM!CI20","v":0.56291281365841672},{"$f":"Control!$L$17*CustomersCOM!CJ20","v":0.56009824959012466},{"$f":"Control!$L$17*CustomersCOM!CK20","v":0.55729775834217399}]
["Yarra Ranges (S)",null,{"$f":"Control!$L$17*CustomersCOM!J21","v":17.080000000000002},{"$f":"Control!$L$17*CustomersCOM!K21","v":16.826666666666668},{"$f":"Control!$L$17*CustomersCOM!L21","v":16.602533333333334},{"$f":"Control!$L$17*CustomersCOM!M21","v":15.479520666666668},{"$f":"Control!$L$17*CustomersCOM!N21","v":14.402123063333335},{"$f":"Control!$L$17*CustomersCOM!O21","v":14.270112448016667},{"$f":"Control!$L$17*CustomersCOM!P21","v":14.058761885776583},{"$f":"Control!$L$17*CustomersCOM!Q21","v":13.328468076347699},{"$f":"Control!$L$17*CustomersCOM!R21","v":12.60182573596596},{"$f":"Control!$L$17*CustomersCOM!S21","v":11.718816607286131},{"$f":"Control!$L$17*CustomersCOM!T21","v":10.900222524249701},{"$f":"Control!$L$17*CustomersCOM!U21","v":10.205721411628451},{"$f":"Control!$L$17*CustomersCOM!V21","v":9.5546928045703083},{"$f":"Control!$L$17*CustomersCOM!W21","v":8.9069193405474572},{"$f":"Control!$L$17*CustomersCOM!X21","v":8.3023847438447209},{"$f":"Control!$L$17*CustomersCOM!Y21","v":7.9608728201254975},{"$f":"Control!$L$17*CustomersCOM!Z21","v":7.52106845602487},{"$f":"Control!$L$17*CustomersCOM!AA21","v":7.0234631137447447},{"$f":"Control!$L$17*CustomersCOM!AB21","v":6.5483457981760207},{"$f":"Control!$L$17*CustomersCOM!AC21","v":6.1156040691851397},{"$f":"Control!$L$17*CustomersCOM!AD21","v":5.7050260488392146},{"$f":"Control!$L$17*CustomersCOM!AE21","v":5.3165009185950183},{"$f":"Control!$L$17*CustomersCOM!AF21","v":4.9699184140020431},{"$f":"Control!$L$17*CustomersCOM!AG21","v":4.6450688219320329},{"$f":"Control!$L$17*CustomersCOM!AH21","v":4.3418434778223727},{"$f":"Control!$L$17*CustomersCOM!AI21","v":4.0601342604332613},{"$f":"Control!$L$17*CustomersCOM!AJ21","v":3.7998335891310946},{"$f":"Control!$L$17*CustomersCOM!AK21","v":3.5608344211854388},{"$f":"Control!$L$17*CustomersCOM!AL21","v":3.3430302490795119},{"$f":"Control!$L$17*CustomersCOM!AM21","v":3.1263150978341141},{"$f":"Control!$L$17*CustomersCOM!AN21","v":2.9306835223449434},{"$f":"Control!$L$17*CustomersCOM!AO21","v":2.756030104733219},{"$f":"Control!$L$17*CustomersCOM!AP21","v":2.5822499542095527},{"$f":"Control!$L$17*CustomersCOM!AQ21","v":2.4293387044385053},{"$f":"Control!$L$17*CustomersCOM!AR21","v":2.2771920109163126},{"$f":"Control!$L$17*CustomersCOM!AS21","v":2.1458060508617307},{"$f":"Control!$L$17*CustomersCOM!AT21","v":2.0150770206074222},{"$f":"Control!$L$17*CustomersCOM!AU21","v":1.9050016355043853},{"$f":"Control!$L$17*CustomersCOM!AV21","v":1.7954766273268632},{"$f":"Control!$L$17*CustomersCOM!AW21","v":1.7064992441902289},{"$f":"Control!$L$17*CustomersCOM!AX21","v":1.6179667479692776},{"$f":"Control!$L$17*CustomersCOM!AY21","v":1.5298769142294313},{"$f":"Control!$L$17*CustomersCOM!AZ21","v":1.4422275296582843},{"$f":"Control!$L$17*CustomersCOM!BA21","v":1.3750163920099927},{"$f":"Control!$L$17*CustomersCOM!BB21","v":1.3081413100499431},{"$f":"Control!$L$17*CustomersCOM!BC21","v":1.2416006034996934},{"$f":"Control!$L$17*CustomersCOM!BD21","v":1.1753926004821948},{"$f":"Control!$L$17*CustomersCOM!BE21","v":1.1295156374797839},{"$f":"Control!$L$17*CustomersCOM!BF21","v":1.0838680592923848},{"$f":"Control!$L$17*CustomersCOM!BG21","v":1.0384487189959231},{"$f":"Control!$L$17*CustomersCOM!BH21","v":0.99325647540094342},{"$f":"Control!$L$17*CustomersCOM!BI21","v":0.94829019302393858},{"$f":"Control!$L$17*CustomersCOM!BJ21","v":0.90354874205881885},{"$f":"Control!$L$17*CustomersCOM!BK21","v":0.8590309983485247},{"$f":"Control!$L$17*CustomersCOM!BL21","v":0.83473584335678208},{"$f":"Control!$L$17*CustomersCOM!BM21","v":0.81056216413999826},{"$f":"Control!$L$17*CustomersCOM!BN21","v":0.78650935331929817},{"$f":"Control!$L$17*CustomersCOM!BO21","v":0.76257680655270166},{"$f":"Control!$L$17*CustomersCOM!BP21","v":0.73876392251993817},{"$f":"Control!$L$17*CustomersCOM!BQ21","v":0.71507010290733841},{"$f":"Control!$L$17*CustomersCOM!BR21","v":0.69149475239280178},{"$f":"Control!$L$17*CustomersCOM!BS21","v":0.66803727863083784},{"$f":"Control!$L$17*CustomersCOM!BT21","v":0.64469709223768368},{"$f":"Control!$L$17*CustomersCOM!BU21","v":0.62147360677649521},{"$f":"Control!$L$17*CustomersCOM!BV21","v":0.59836623874261274},{"$f":"Control!$L$17*CustomersCOM!BW21","v":0.5953744075488997},{"$f":"Control!$L$17*CustomersCOM!BX21","v":0.59239753551115526},{"$f":"Control!$L$17*CustomersCOM!BY21","v":0.58943554783359942},{"$f":"Control!$L$17*CustomersCOM!BZ21","v":0.58648837009443144},{"$f":"Control!$L$17*CustomersCOM!CA21","v":0.5835559282439593},{"$f":"Control!$L$17*CustomersCOM!CB21","v":0.58063814860273955},{"$f":"Control!$L$17*CustomersCOM!CC21","v":0.57773495785972584},{"$f":"Control!$L$17*CustomersCOM!CD21","v":0.57484628307042718},{"$f":"Control!$L$17*CustomersCOM!CE21","v":0.57197205165507503},{"$f":"Control!$L$17*CustomersCOM!CF21","v":0.56911219139679958},{"$f":"Control!$L$17*CustomersCOM!CG21","v":0.56626663043981562},{"$f":"Control!$L$17*CustomersCOM!CH21","v":0.56343529728761654},{"$f":"Control!$L$17*CustomersCOM!CI21","v":0.56061812080117845},{"$f":"Control!$L$17*CustomersCOM!CJ21","v":0.5578150301971726},{"$f":"Control!$L$17*CustomersCOM!CK21","v":0.55502595504618668}]

{"sheet":"Forecasts","index":22,"n_rows":142,"n_cols":90,"rows_kept":142,"cut":false,"hidden":false,"merged":[]}
["Residential GJ per customer"]
["FY",2012,2013,2014,2015,2016,2017,2018,2019,2020,2021,2022,2023,2024,2025,2026,2027,2028,2029,2030,2031,2032,2033,2034,2035,2036,2037,2038,2039,2040,2041,2042,2043,2044,2045,2046,2047,2048,2049,2050,2051,2052,2053,2054,2055,2056,2057,2058,2059,2060,2061,2062,2063,2064,2065,2066,2067,2068,2069,2070,2071,2072,2073,2074,2075,2076,2077,2078,2079,2080,2081,2082,2083,2084,2085,2086,2087,2088,2089,2090,2091,2092,2093,2094,2095,2096,2097,2098,2099,2100]
["Bass Coast (S)",{"$f":"'Volume per connection'!B49","v":12.527242647487503},{"$f":"'Volume per connection'!C49","v":25.544015881388059},{"$f":"'Volume per connection'!D49","v":29.561225774717169},{"$f":"'Volume per connection'!E49","v":30.659088261253313},{"$f":"'Volume per connection'!F49","v":28.717188150520414},{"$f":"'Volume per connection'!G49","v":31.573191489361704},{"$f":"'Volume per connection'!H49","v":31.454203298552674},{"$f":"'Volume per connection'!I49","v":29.561020921770773},{"$f":"'Volume per connection'!J49","v":32.409773393461109},{"$f":"J3+J3*Control!$H$12*Weather!AM$21+J3*Control!$H$13*Prices!AA$15+ J3*Control!$H$14*Prices!AA$17","v":31.421214541076885},{"$f":"K3+K3*Control!$H$12*Weather!AN$21+K3*Control!$H$13*Prices!AB$15+ K3*Control!$H$14*Prices!AB$17","v":29.897940829736733},{"$f":"L3+L3*Control!$H$12*Weather!AO$21+L3*Control!$H$13*Prices!AC$15+ L3*Control!$H$14*Prices!AC$17","v":31.213517267312113},{"$f":"M3+M3*Control!$H$12*Weather!AP$21+M3*Control!$H$13*Prices!AD$15+ M3*Control!$H$14*Prices!AD$17","v":31.543465410423668},{"$f":"N3+N3*Control!$H$12*Weather!AQ$21+N3*Control!$H$13*Prices!AE$15+ N3*Control!$H$14*Prices!AE$17","v":32.298895864942011},{"$f":"O3+O3*Control!$H$12*Weather!AR$21+O3*Control!$H$13*Prices!AF$15+ O3*Control!$H$14*Prices!AF$17","v":32.408317897480771},{"$f":"P3+P3*Control!$H$12*Weather!AS$21+P3*Control!$H$13*Prices!AG$15+ P3*Control!$H$14*Prices!AG$17","v":31.775390287004178},{"$f":"Q3+Q3*Control!$H$12*Weather!AT$21+Q3*Control!$H$13*Prices!AH$15+ Q3*Control!$H$14*Prices!AH$17","v":30.211317300421214},{"$f":"R3+R3*Control!$H$12*Weather!AU$21+R3*Control!$H$13*Prices!AI$15+ R3*Control!$H$14*Prices!AI$17","v":28.960723569036805},{"$f":"S3+S3*Control!$H$12*Weather!AV$21+S3*Control!$H$13*Prices!AJ$15+ S3*Control!$H$14*Prices!AJ$17","v":28.298631483367238},{"$f":"T3+T3*Control!$H$12*Weather!AW$21+T3*Control!$H$13*Prices!AK$15+ T3*Control!$H$14*Prices!AK$17","v":30.212514072584156},{"$f":"U3+U3*Control!$H$12*Weather!AX$21+U3*Control!$H$13*Prices!AL$15+ U3*Control!$H$14*Prices!AL$17","v":30.537415499566571},{"$f":"V3+V3*Control!$H$12*Weather!AY$21+V3*Control!$H$13*Prices!AM$15+ V3*Control!$H$14*Prices!AM$17","v":30.204454338957134},{"$f":"W3+W3*Control!$H$12*Weather!AZ$21+W3*Control!$H$13*Prices!AN$15+ W3*Control!$H$14*Prices!AN$17","v":29.646916737076303},{"$f":"X3+X3*Control!$H$12*Weather!BA$21+X3*Control!$H$13*Prices!AO$15+ X3*Control!$H$14*Prices!AO$17","v":28.777659742951645},{"$f":"Y3+Y3*Control!$H$12*Weather!BB$21+Y3*Control!$H$13*Prices!AP$15+ Y3*Control!$H$14*Prices!AP$17","v":28.336771406192163},{"$f":"Z3+Z3*Control!$H$12*Weather!BC$21+Z3*Control!$H$13*Prices!AQ$15+ Z3*Control!$H$14*Prices!AQ$17","v":27.571259205594},{"$f":"AA3+AA3*Control!$H$12*Weather!BD$21+AA3*Control!$H$13*Prices!AR$15+ AA3*Control!$H$14*Prices!AR$17","v":27.294350284273747},{"$f":"AB3+AB3*Control!$H$12*Weather!BE$21+AB3*Control!$H$13*Prices!AS$15+ AB3*Control!$H$14*Prices!AS$17","v":27.032813052676303},{"$f":"AC3+AC3*Control!$H$12*Weather!BF$21+AC3*Control!$H$13*Prices!AT$15+ AC3*Control!$H$14*Prices!AT$17","v":27.052963032415075},{"$f":"AD3+AD3*Control!$H$12*Weather!BG$21+AD3*Control!$H$13*Prices!AU$15+ AD3*Control!$H$14*Prices!AU$17","v":26.937912592274937},{"$f":"AE3+AE3*Control!$H$12*Weather!BH$21+AE3*Control!$H$13*Prices!AV$15+ AE3*Control!$H$14*Prices!AV$17","v":26.349085192047358},{"$f":"AF3+AF3*Control!$H$12*Weather!BI$21+AF3*Control!$H$13*Prices!AW$15+ AF3*Control!$H$14*Prices!AW$17","v":25.791925547723579},{"$f":"AG3+AG3*Control!$H$12*Weather!BJ$21+AG3*Control!$H$13*Prices!AX$15+ AG3*Control!$H$14*Prices!AX$17","v":25.511753129907227},{"$f":"AH3+AH3*Control!$H$12*Weather!BK$21+AH3*Control!$H$13*Prices!AY$15+ AH3*Control!$H$14*Prices!AY$17","v":25.250540653039085},{"$f":"AI3+AI3*Control!$H$12*Weather!BL$21+AI3*Control!$H$13*Prices!AZ$15+ AI3*Control!$H$14*Prices!AZ$17","v":24.942172278253722},{"$f":"AJ3+AJ3*Control!$H$12*Weather!BM$21+AJ3*Control!$H$13*Prices!BA$15+ AJ3*Control!$H$14*Prices!BA$17","v":24.657198706178239},{"$f":"AK3+AK3*Control!$H$12*Weather!BN$21+AK3*Control!$H$13*Prices!BB$15+ AK3*Control!$H$14*Prices!BB$17","v":24.403772668639185},{"$f":"AL3+AL3*Control!$H$12*Weather!BO$21+AL3*Control!$H$13*Prices!BC$15+ AL3*Control!$H$14*Prices!BC$17","v":24.149989722757908},{"$f":"AM3+AM3*Control!$H$12*Weather!BP$21+AM3*Control!$H$13*Prices!BD$15+ AM3*Control!$H$14*Prices!BD$17","v":23.79474601643004},{"$f":"AN3+AN3*Control!$H$12*Weather!BQ$21+AN3*Control!$H$13*Prices!BE$15+ AN3*Control!$H$14*Prices!BE$17","v":23.486705702171637},{"$f":"AO3+AO3*Control!$H$12*Weather!BR$21+AO3*Control!$H$13*Prices!BF$15+ AO3*Control!$H$14*Prices!BF$17","v":23.058297584940274},{"$f":"AP3+AP3*Control!$H$12*Weather!BS$21+AP3*Control!$H$13*Prices!BG$15+ AP3*Control!$H$14*Prices!BG$17","v":22.702089129213025},{"$f":"AQ3+AQ3*Control!$H$12*Weather!BT$21+AQ3*Control!$H$13*Prices!BH$15+ AQ3*Control!$H$14*Prices!BH$17","v":22.38217379334014},{"$f":"AR3+AR3*Control!$H$12*Weather!BU$21+AR3*Control!$H$13*Prices!BI$15+ AR3*Control!$H$14*Prices!BI$17","v":22.05458307215148},{"$f":"AS3+AS3*Control!$H$12*Weather!BV$21+AS3*Control!$H$13*Prices!BJ$15+ AS3*Control!$H$14*Prices!BJ$17","v":22.932114309578822},{"$f":"AT3+AT3*Control!$H$12*Weather!BW$21+AT3*Control!$H$13*Prices!BK$15+ AT3*Control!$H$14*Prices!BK$17","v":23.051538123986312},{"$f":"AU3+AU3*Control!$H$12*Weather!BX$21+AU3*Control!$H$13*Prices!BL$15+ AU3*Control!$H$14*Prices!BL$17","v":22.731251592120909},{"$f":"AV3+AV3*Control!$H$12*Weather!BY$21+AV3*Control!$H$13*Prices!BM$15+ AV3*Control!$H$14*Prices!BM$17","v":22.344832478891377},{"$f":"AW3+AW3*Control!$H$12*Weather!BZ$21+AW3*Control!$H$13*Prices!BN$15+ AW3*Control!$H$14*Prices!BN$17","v":21.988264742922169},{"$f":"AX3+AX3*Control!$H$12*Weather!CA$21+AX3*Control!$H$13*Prices!BO$15+ AX3*Control!$H$14*Prices!BO$17","v":21.627012995342792},{"$f":"AY3+AY3*Control!$H$12*Weather!CB$21+AY3*Control!$H$13*Prices!BP$15+ AY3*Control!$H$14*Prices!BP$17","v":21.242258094129568},{"$f":"AZ3+AZ3*Control!$H$12*Weather!CC$21+AZ3*Control!$H$13*Prices!BQ$15+ AZ3*Control!$H$14*Prices!BQ$17","v":20.829046446562479},{"$f":"BA3+BA3*Control!$H$12*Weather!CD$21+BA3*Control!$H$13*Prices!BR$15+ BA3*Control!$H$14*Prices!BR$17","v":20.384230012619376},{"$f":"BB3+BB3*Control!$H$12*Weather!CE$21+BB3*Control!$H$13*Prices!BS$15+ BB3*Control!$H$14*Prices!BS$17","v":19.902776959646246},{"$f":"BC3+BC3*Control!$H$12*Weather!CF$21+BC3*Control!$H$13*Prices!BT$15+ BC3*Control!$H$14*Prices!BT$17","v":19.379282287375233},{"$f":"BD3+BD3*Control!$H$12*Weather!CG$21+BD3*Control!$H$13*Prices!BU$15+ BD3*Control!$H$14*Prices!BU$17","v":18.812339124513535},{"$f":"BE3+BE3*Control!$H$12*Weather!CH$21+BE3*Control!$H$13*Prices!BV$15+ BE3*Control!$H$14*Prices!BV$17","v":18.203453675986747},{"$f":"BF3+BF3*Control!$H$12*Weather!CI$21+BF3*Control!$H$13*Prices!BW$15+ BF3*Control!$H$14*Prices!BW$17","v":17.554344512262691},{"$f":"BG3+BG3*Control!$H$12*Weather!CJ$21+BG3*Control!$H$13*Prices!BX$15+ BG3*Control!$H$14*Prices!BX$17","v":16.864164667516874},{"$f":"BH3+BH3*Control!$H$12*Weather!CK$21+BH3*Control!$H$13*Prices!BY$15+ BH3*Control!$H$14*Prices!BY$17","v":16.129666032147309},{"$f":"BI3+BI3*Control!$H$12*Weather!CL$21+BI3*Control!$H$13*Prices!BZ$15+ BI3*Control!$H$14*Prices!BZ$17","v":15.34606172912757},{"$f":"BJ3+BJ3*Control!$H$12*Weather!CM$21+BJ3*Control!$H$13*Prices!CA$15+ BJ3*Control!$H$14*Prices!CA$17","v":14.508466235199789},{"$f":"BK3+BK3*Control!$H$12*Weather!CN$21+BK3*Control!$H$13*Prices!CB$15+ BK3*Control!$H$14*Prices!CB$17","v":13.774880536067855},{"$f":"BL3+BL3*Control!$H$12*Weather!CO$21+BL3*Control!$H$13*Prices!CC$15+ BL3*Control!$H$14*Prices!CC$17","v":13.166463376268387},{"$f":"BM3+BM3*Control!$H$12*Weather!CP$21+BM3*Control!$H$13*Prices!CD$15+ BM3*Control!$H$14*Prices!CD$17","v":12.601322752997467},{"$f":"BN3+BN3*Control!$H$12*Weather!CQ$21+BN3*Control!$H$13*Prices!CE$15+ BN3*Control!$H$14*Prices!CE$17","v":12.024530487223078},{"$f":"BO3+BO3*Control!$H$12*Weather!CR$21+BO3*Control!$H$13*Prices!CF$15+ BO3*Control!$H$14*Prices!CF$17","v":11.40589042983914},{"$f":"BP3+BP3*Control!$H$12*Weather!CS$21+BP3*Control!$H$13*Prices!CG$15+ BP3*Control!$H$14*Prices!CG$17","v":10.61545887727611},{"$f":"BQ3+BQ3*Control!$H$12*Weather!CT$21+BQ3*Control!$H$13*Prices!CH$15+ BQ3*Control!$H$14*Prices!CH$17","v":9.6210505073738304},{"$f":"BR3+BR3*Control!$H$12*Weather!CU$21+BR3*Control!$H$13*Prices!CI$15+ BR3*Control!$H$14*Prices!CI$17","v":8.4242291385195589},{"$f":"BS3+BS3*Control!$H$12*Weather!CV$21+BS3*Control!$H$13*Prices!CJ$15+ BS3*Control!$H$14*Prices!CJ$17","v":13.38801255745334},{"$f":"BT3+BT3*Control!$H$12*Weather!CW$21+BT3*Control!$H$13*Prices!CK$15+ BT3*Control!$H$14*Prices!CK$17","v":13.353241388561209},{"$f":"BU3+BU3*Control!$H$12*Weather!CX$21+BU3*Control!$H$13*Prices!CL$15+ BU3*Control!$H$14*Prices!CL$17","v":13.318380857544625},{"$f":"BV3+BV3*Control!$H$12*Weather!CY$21+BV3*Control!$H$13*Prices!CM$15+ BV3*Control!$H$14*Prices!CM$17","v":13.283429856582222},{"$f":"BW3+BW3*Control!$H$12*Weather!CZ$21+BW3*Control!$H$13*Prices!CN$15+ BW3*Control!$H$14*Prices!CN$17","v":13.248387259464291},{"$f":"BX3+BX3*Control!$H$12*Weather!DA$21+BX3*Control!$H$13*Prices!CO$15+ BX3*Control!$H$14*Prices!CO$17","v":13.213251921164273},{"$f":"BY3+BY3*Control!$H$12*Weather!DB$21+BY3*Control!$H$13*Prices!CP$15+ BY3*Control!$H$14*Prices!CP$17","v":13.178022677397529},{"$f":"BZ3+BZ3*Control!$H$12*Weather!DC$21+BZ3*Control!$H$13*Prices!CQ$15+ BZ3*Control!$H$14*Prices!CQ$17","v":13.142698344166895},{"$f":"CA3+CA3*Control!$H$12*Weather!DD$21+CA3*Control!$H$13*Prices!CR$15+ CA3*Control!$H$14*Prices!CR$17","v":13.10727771729456},{"$f":"CB3+CB3*Control!$H$12*Weather!DE$21+CB3*Control!$H$13*Prices!CS$15+ CB3*Control!$H$14*Prices!CS$17","v":13.071759571939742},{"$f":"CC3+CC3*Control!$H$12*Weather!DF$21+CC3*Control!$H$13*Prices!CT$15+ CC3*Control!$H$14*Prices!CT$17","v":13.036142662101675},{"$f":"CD3+CD3*Control!$H$12*Weather!DG$21+CD3*Control!$H$13*Prices!CU$15+ CD3*Control!$H$14*Prices!CU$17","v":13.000425720107298},{"$f":"CE3+CE3*Control!$H$12*Weather!DH$21+CE3*Control!$H$13*Prices!CV$15+ CE3*Control!$H$14*Prices!CV$17","v":12.964607456083142},{"$f":"CF3+CF3*Control!$H$12*Weather!DI$21+CF3*Control!$H$13*Prices!CW$15+ CF3*Control!$H$14*Prices!CW$17","v":12.928686557410757},{"$f":"CG3+CG3*Control!$H$12*Weather!DJ$21+CG3*Control!$H$13*Prices!CX$15+ CG3*Control!$H$14*Prices!CX$17","v":12.8926616881651},{"$f":"CH3+CH3*Control!$H$12*Weather!DK$21+CH3*Control!$H$13*Prices!CY$15+ CH3*Control!$H$14*Prices!CY$17","v":12.856531488535197},{"$f":"CI3+CI3*Control!$H$12*Weather!DL$21+CI3*Control!$H$13*Prices!CZ$15+ CI3*Control!$H$14*Prices!CZ$17","v":12.820294574226425},{"$f":"CJ3+CJ3*Control!$H$12*Weather!DM$21+CJ3*Control!$H$13*Prices!DA$15+ CJ3*Control!$H$14*Prices!DA$17","v":12.783949535843664},{"$f":"CK3+CK3*Control!$H$12*Weather!DN$21+CK3*Control!$H$13*Prices!DB$15+ CK3*Control!$H$14*Prices!DB$17","v":12.854559887083296}]
["Bayside (C)",{"$f":"'Volume per connection'!B50","v":28.647912911406358},{"$f":"'Volume per connection'!C50","v":52.398606363487396},{"$f":"'Volume per connection'!D50","v":62.023667484358207},{"$f":"'Volume per connection'!E50","v":61.241620561055207},{"$f":"'Volume per connection'!F50","v":59.80169277437691},{"$f":"'Volume per connection'!G50","v":63.844376710840763},{"$f":"'Volume per connection'!H50","v":60.944387470934956},{"$f":"'Volume per connection'!I50","v":59.397660388511241},{"$f":"'Volume per connection'!J50","v":64.013273962708325},{"$f":"J4+J4*Control!$H$12*Weather!AM$21+J4*Control!$H$13*Prices!AA$15+ J4*Control!$H$14*Prices!AA$17","v":62.060749090729459},{"$f":"K4+K4*Control!$H$12*Weather!AN$21+K4*Control!$H$13*Prices!AB$15+ K4*Control!$H$14*Prices!AB$17","v":59.052096848073482},{"$f":"L4+L4*Control!$H$12*Weather!AO$21+L4*Control!$H$13*Prices!AC$15+ L4*Control!$H$14*Prices!AC$17","v":61.65052152371122},{"$f":"M4+M4*Control!$H$12*Weather!AP$21+M4*Control!$H$13*Prices!AD$15+ M4*Control!$H$14*Prices!AD$17","v":62.302209538374974},{"$f":"N4+N4*Control!$H$12*Weather!AQ$21+N4*Control!$H$13*Prices!AE$15+ N4*Control!$H$14*Prices!AE$17","v":63.79427725689262},{"$f":"O4+O4*Control!$H$12*Weather!AR$21+O4*Control!$H$13*Prices!AF$15+ O4*Control!$H$14*Prices!AF$17","v":64.010399179789886},{"$f":"P4+P4*Control!$H$12*Weather!AS$21+P4*Control!$H$13*Prices!AG$15+ P4*Control!$H$14*Prices!AG$17","v":62.760289589817418},{"$f":"Q4+Q4*Control!$H$12*Weather!AT$21+Q4*Control!$H$13*Prices!AH$15+ Q4*Control!$H$14*Prices!AH$17","v":59.671053778992317},{"$f":"R4+R4*Control!$H$12*Weather!AU$21+R4*Control!$H$13*Prices!AI$15+ R4*Control!$H$14*Prices!AI$17","v":57.200977911096636},{"$f":"S4+S4*Control!$H$12*Weather!AV$21+S4*Control!$H$13*Prices!AJ$15+ S4*Control!$H$14*Prices!AJ$17","v":55.89326490878797},{"$f":"T4+T4*Control!$H$12*Weather!AW$21+T4*Control!$H$13*Prices!AK$15+ T4*Control!$H$14*Prices!AK$17","v":59.673417550667232},{"$f":"U4+U4*Control!$H$12*Weather!AX$21+U4*Control!$H$13*Prices!AL$15+ U4*Control!$H$14*Prices!AL$17","v":60.315137682548688},{"$f":"V4+V4*Control!$H$12*Weather!AY$21+V4*Control!$H$13*Prices!AM$15+ V4*Control!$H$14*Prices!AM$17","v":59.657498589109863},{"$f":"W4+W4*Control!$H$12*Weather!AZ$21+W4*Control!$H$13*Prices!AN$15+ W4*Control!$H$14*Prices!AN$17","v":58.556293504445193},{"$f":"X4+X4*Control!$H$12*Weather!BA$21+X4*Control!$H$13*Prices!AO$15+ X4*Control!$H$14*Prices!AO$17","v":56.839404421841223},{"$f":"Y4+Y4*Control!$H$12*Weather!BB$21+Y4*Control!$H$13*Prices!AP$15+ Y4*Control!$H$14*Prices!AP$17","v":55.968595930053333},{"$f":"Z4+Z4*Control!$H$12*Weather!BC$21+Z4*Control!$H$13*Prices!AQ$15+ Z4*Control!$H$14*Prices!AQ$17","v":54.456615527605571},{"$f":"AA4+AA4*Control!$H$12*Weather!BD$21+AA4*Control!$H$13*Prices!AR$15+ AA4*Control!$H$14*Prices!AR$17","v":53.909686475433688},{"$f":"AB4+AB4*Control!$H$12*Weather!BE$21+AB4*Control!$H$13*Prices!AS$15+ AB4*Control!$H$14*Prices!AS$17","v":53.393118394119256},{"$f":"AC4+AC4*Control!$H$12*Weather!BF$21+AC4*Control!$H$13*Prices!AT$15+ AC4*Control!$H$14*Prices!AT$17","v":53.432917073292408},{"$f":"AD4+AD4*Control!$H$12*Weather!BG$21+AD4*Control!$H$13*Prices!AU$15+ AD4*Control!$H$14*Prices!AU$17","v":53.20567835567438},{"$f":"AE4+AE4*Control!$H$12*Weather!BH$21+AE4*Control!$H$13*Prices!AV$15+ AE4*Control!$H$14*Prices!AV$17","v":52.0426720850066},{"$f":"AF4+AF4*Control!$H$12*Weather!BI$21+AF4*Control!$H$13*Prices!AW$15+ AF4*Control!$H$14*Prices!AW$17","v":50.942213512832225},{"$f":"AG4+AG4*Control!$H$12*Weather!BJ$21+AG4*Control!$H$13*Prices!AX$15+ AG4*Control!$H$14*Prices!AX$17","v":50.388838655169977},{"$f":"AH4+AH4*Control!$H$12*Weather!BK$21+AH4*Control!$H$13*Prices!AY$15+ AH4*Control!$H$14*Prices!AY$17","v":49.872912004241535},{"$f":"AI4+AI4*Control!$H$12*Weather!BL$21+AI4*Control!$H$13*Prices!AZ$15+ AI4*Control!$H$14*Prices!AZ$17","v":49.263846676418133},{"$f":"AJ4+AJ4*Control!$H$12*Weather!BM$21+AJ4*Control!$H$13*Prices!BA$15+ AJ4*Control!$H$14*Prices!BA$17","v":48.700988950758131},{"$f":"AK4+AK4*Control!$H$12*Weather!BN$21+AK4*Control!$H$13*Prices!BB$15+ AK4*Control!$H$14*Prices!BB$17","v":48.200441471659005},{"$f":"AL4+AL4*Control!$H$12*Weather!BO$21+AL4*Control!$H$13*Prices!BC$15+ AL4*Control!$H$14*Prices!BC$17","v":47.699189054848247},{"$f":"AM4+AM4*Control!$H$12*Weather!BP$21+AM4*Control!$H$13*Prices!BD$15+ AM4*Control!$H$14*Prices!BD$17","v":46.997539203100686},{"$f":"AN4+AN4*Control!$H$12*Weather!BQ$21+AN4*Control!$H$13*Prices!BE$15+ AN4*Control!$H$14*Prices!BE$17","v":46.389121835018742},{"$f":"AO4+AO4*Control!$H$12*Weather!BR$21+AO4*Control!$H$13*Prices!BF$15+ AO4*Control!$H$14*Prices!BF$17","v":45.542963306131519},{"$f":"AP4+AP4*Control!$H$12*Weather!BS$21+AP4*Control!$H$13*Prices!BG$15+ AP4*Control!$H$14*Prices!BG$17","v":44.839407956099294},{"$f":"AQ4+AQ4*Control!$H$12*Weather!BT$21+AQ4*Control!$H$13*Prices!BH$15+ AQ4*Control!$H$14*Prices!BH$17","v":44.207535965157369},{"$f":"AR4+AR4*Control!$H$12*Weather!BU$21+AR4*Control!$H$13*Prices!BI$15+ AR4*Control!$H$14*Prices!BI$17","v":43.560504147671054},{"$f":"AS4+AS4*Control!$H$12*Weather!BV$21+AS4*Control!$H$13*Prices!BJ$15+ AS4*Control!$H$14*Prices!BJ$17","v":45.293735874727943},{"$f":"AT4+AT4*Control!$H$12*Weather!BW$21+AT4*Control!$H$13*Prices!BK$15+ AT4*Control!$H$14*Prices!BK$17","v":45.529612542439558},{"$f":"AU4+AU4*Control!$H$12*Weather!BX$21+AU4*Control!$H$13*Prices!BL$15+ AU4*Control!$H$14*Prices!BL$17","v":44.897007393925868},{"$f":"AV4+AV4*Control!$H$12*Weather!BY$21+AV4*Control!$H$13*Prices!BM$15+ AV4*Control!$H$14*Prices!BM$17","v":44.133782293296818},{"$f":"AW4+AW4*Control!$H$12*Weather!BZ$21+AW4*Control!$H$13*Prices!BN$15+ AW4*Control!$H$14*Prices!BN$17","v":43.429517320760333},{"$f":"AX4+AX4*Control!$H$12*Weather!CA$21+AX4*Control!$H$13*Prices!BO$15+ AX4*Control!$H$14*Prices!BO$17","v":42.716000851312536},{"$f":"AY4+AY4*Control!$H$12*Weather!CB$21+AY4*Control!$H$13*Prices!BP$15+ AY4*Control!$H$14*Prices!BP$17","v":41.956062773349117},{"$f":"AZ4+AZ4*Control!$H$12*Weather!CC$21+AZ4*Control!$H$13*Prices!BQ$15+ AZ4*Control!$H$14*Prices!BQ$17","v":41.139919134232194},{"$f":"BA4+BA4*Control!$H$12*Weather!CD$21+BA4*Control!$H$13*Prices!BR$15+ BA4*Control!$H$14*Prices!BR$17","v":40.26135216915555},{"$f":"BB4+BB4*Control!$H$12*Weather!CE$21+BB4*Control!$H$13*Prices!BS$15+ BB4*Control!$H$14*Prices!BS$17","v":39.310423392024099},{"$f":"BC4+BC4*Control!$H$12*Weather!CF$21+BC4*Control!$H$13*Prices!BT$15+ BC4*Control!$H$14*Prices!BT$17","v":38.27645726497726},{"$f":"BD4+BD4*Control!$H$12*Weather!CG$21+BD4*Control!$H$13*Prices!BU$15+ BD4*Control!$H$14*Prices!BU$17","v":37.156675044813014},{"$f":"BE4+BE4*Control!$H$12*Weather!CH$21+BE4*Control!$H$13*Prices!BV$15+ BE4*Control!$H$14*Prices!BV$17","v":35.954051670830538},{"$f":"BF4+BF4*Control!$H$12*Weather!CI$21+BF4*Control!$H$13*Prices!BW$15+ BF4*Control!$H$14*Prices!BW$17","v":34.671981530298311},{"$f":"BG4+BG4*Control!$H$12*Weather!CJ$21+BG4*Control!$H$13*Prices!BX$15+ BG4*Control!$H$14*Prices!BX$17","v":33.30879176192532},{"$f":"BH4+BH4*Control!$H$12*Weather!CK$21+BH4*Control!$H$13*Prices!BY$15+ BH4*Control!$H$14*Prices!BY$17","v":31.85806695122259},{"$f":"BI4+BI4*Control!$H$12*Weather!CL$21+BI4*Control!$H$13*Prices!BZ$15+ BI4*Control!$H$14*Prices!BZ$17","v":30.310352429476506},{"$f":"BJ4+BJ4*Control!$H$12*Weather!CM$21+BJ4*Control!$H$13*Prices!CA$15+ BJ4*Control!$H$14*Prices!CA$17","v":28.655998689578201},{"$f":"BK4+BK4*Control!$H$12*Weather!CN$21+BK4*Control!$H$13*Prices!CB$15+ BK4*Control!$H$14*Prices!CB$17","v":27.207077039816475},{"$f":"BL4+BL4*Control!$H$12*Weather!CO$21+BL4*Control!$H$13*Prices!CC$15+ BL4*Control!$H$14*Prices!CC$17","v":26.0053785934548},{"$f":"BM4+BM4*Control!$H$12*Weather!CP$21+BM4*Control!$H$13*Prices!CD$15+ BM4*Control!$H$14*Prices!CD$17","v":24.889156609866475},{"$f":"BN4+BN4*Control!$H$12*Weather!CQ$21+BN4*Control!$H$13*Prices!CE$15+ BN4*Control!$H$14*Prices!CE$17","v":23.749921204535422},{"$f":"BO4+BO4*Control!$H$12*Weather!CR$21+BO4*Control!$H$13*Prices!CF$15+ BO4*Control!$H$14*Prices!CF$17","v":22.528031282725184},{"$f":"BP4+BP4*Control!$H$12*Weather!CS$21+BP4*Control!$H$13*Prices!CG$15+ BP4*Control!$H$14*Prices!CG$17","v":20.96683210651636},{"$f":"BQ4+BQ4*Control!$H$12*Weather!CT$21+BQ4*Control!$H$13*Prices!CH$15+ BQ4*Control!$H$14*Prices!CH$17","v":19.002753720636388},{"$f":"BR4+BR4*Control!$H$12*Weather!CU$21+BR4*Control!$H$13*Prices!CI$15+ BR4*Control!$H$14*Prices!CI$17","v":16.638884858031219},{"$f":"BS4+BS4*Control!$H$12*Weather!CV$21+BS4*Control!$H$13*Prices!CJ$15+ BS4*Control!$H$14*Prices!CJ$17","v":26.442965375047883},{"$f":"BT4+BT4*Control!$H$12*Weather!CW$21+BT4*Control!$H$13*Prices!CK$15+ BT4*Control!$H$14*Prices!CK$17","v":26.374288055608659},{"$f":"BU4+BU4*Control!$H$12*Weather!CX$21+BU4*Control!$H$13*Prices!CL$15+ BU4*Control!$H$14*Prices!CL$17","v":26.305434235023156},{"$f":"BV4+BV4*Control!$H$12*Weather!CY$21+BV4*Control!$H$13*Prices!CM$15+ BV4*Control!$H$14*Prices!CM$17","v":26.236401725208431},{"$f":"BW4+BW4*Control!$H$12*Weather!CZ$21+BW4*Control!$H$13*Prices!CN$15+ BW4*Control!$H$14*Prices!CN$17","v":26.167188301762291},{"$f":"BX4+BX4*Control!$H$12*Weather!DA$21+BX4*Control!$H$13*Prices!CO$15+ BX4*Control!$H$14*Prices!CO$17","v":26.097791703116979},{"$f":"BY4+BY4*Control!$H$12*Weather!DB$21+BY4*Control!$H$13*Prices!CP$15+ BY4*Control!$H$14*Prices!CP$17","v":26.028209629667657},{"$f":"BZ4+BZ4*Control!$H$12*Weather!DC$21+BZ4*Control!$H$13*Prices!CQ$15+ BZ4*Control!$H$14*Prices!CQ$17","v":25.958439742874841},{"$f":"CA4+CA4*Control!$H$12*Weather!DD$21+CA4*Control!$H$13*Prices!CR$15+ CA4*Control!$H$14*Prices!CR$17","v":25.888479664339791},{"$f":"CB4+CB4*Control!$H$12*Weather!DE$21+CB4*Control!$H$13*Prices!CS$15+ CB4*Control!$H$14*Prices!CS$17","v":25.818326974851878},{"$f":"CC4+CC4*Control!$H$12*Weather!DF$21+CC4*Control!$H$13*Prices!CT$15+ CC4*Control!$H$14*Prices!CT$17","v":25.747979213406889},{"$f":"CD4+CD4*Control!$H$12*Weather!DG$21+CD4*Control!$H$13*Prices!CU$15+ CD4*Control!$H$14*Prices!CU$17","v":25.677433876195199},{"$f":"CE4+CE4*Control!$H$12*Weather!DH$21+CE4*Control!$H$13*Prices!CV$15+ CE4*Control!$H$14*Prices!CV$17","v":25.606688415558637},{"$f":"CF4+CF4*Control!$H$12*Weather!DI$21+CF4*Control!$H$13*Prices!CW$15+ CF4*Control!$H$14*Prices!CW$17","v":25.535740238914919},{"$f":"CG4+CG4*Control!$H$12*Weather!DJ$21+CG4*Control!$H$13*Prices!CX$15+ CG4*Control!$H$14*Prices!CX$17","v":25.464586707648383},{"$f":"CH4+CH4*Control!$H$12*Weather!DK$21+CH4*Control!$H$13*Prices!CY$15+ CH4*Control!$H$14*Prices!CY$17","v":25.393225135965725},{"$f":"CI4+CI4*Control!$H$12*Weather!DL$21+CI4*Control!$H$13*Prices!CZ$15+ CI4*Control!$H$14*Prices!CZ$17","v":25.321652789715422},{"$f":"CJ4+CJ4*Control!$H$12*Weather!DM$21+CJ4*Control!$H$13*Prices!DA$15+ CJ4*Control!$H$14*Prices!DA$17","v":25.249866885169414},{"$f":"CK4+CK4*Control!$H$12*Weather!DN$21+CK4*Control!$H$13*Prices!DB$15+ CK4*Control!$H$14*Prices!DB$17","v":25.389330981497146}]
["Boroondara (C)",{"$f":"'Volume per connection'!B51","v":29.687226585603668},{"$f":"'Volume per connection'!C51","v":55.572267228165835},{"$f":"'Volume per connection'!D51","v":65.430366651254005},{"$f":"'Volume per connection'!E51","v":63.533938767382956},{"$f":"'Volume per connection'!F51","v":62.489243572179568},{"$f":"'Volume per connection'!G51","v":65.810475121610025},{"$f":"'Volume per connection'!H51","v":63.045179648022305},{"$f":"'Volume per connection'!I51","v":61.195359355736095},{"$f":"'Volume per connection'!J51","v":65.98767432920009},{"$f":"J5+J5*Control!$H$12*Weather!AM$21+J5*Control!$H$13*Prices!AA$15+ J5*Control!$H$14*Prices!AA$17","v":63.974926544313114},{"$f":"K5+K5*Control!$H$12*Weather!AN$21+K5*Control!$H$13*Prices!AB$15+ K5*Control!$H$14*Prices!AB$17","v":60.873476609509616},{"$f":"L5+L5*Control!$H$12*Weather!AO$21+L5*Control!$H$13*Prices!AC$15+ L5*Control!$H$14*Prices!AC$17","v":63.552046078786077},{"$f":"M5+M5*Control!$H$12*Weather!AP$21+M5*Control!$H$13*Prices!AD$15+ M5*Control!$H$14*Prices!AD$17","v":64.223834503495098},{"$f":"N5+N5*Control!$H$12*Weather!AQ$21+N5*Control!$H$13*Prices!AE$15+ N5*Control!$H$14*Prices!AE$17","v":65.761922974708327},{"$f":"O5+O5*Control!$H$12*Weather!AR$21+O5*Control!$H$13*Prices!AF$15+ O5*Control!$H$14*Prices!AF$17","v":65.984710877602552},{"$f":"P5+P5*Control!$H$12*Weather!AS$21+P5*Control!$H$13*Prices!AG$15+ P5*Control!$H$14*Prices!AG$17","v":64.69604339674585},{"$f":"Q5+Q5*Control!$H$12*Weather!AT$21+Q5*Control!$H$13*Prices!AH$15+ Q5*Control!$H$14*Prices!AH$17","v":61.511524405738051},{"$f":"R5+R5*Control!$H$12*Weather!AU$21+R5*Control!$H$13*Prices!AI$15+ R5*Control!$H$14*Prices!AI$17","v":58.965262484592273},{"$f":"S5+S5*Control!$H$12*Weather!AV$21+S5*Control!$H$13*Prices!AJ$15+ S5*Control!$H$14*Prices!AJ$17","v":57.617214894295977},{"$f":"T5+T5*Control!$H$12*Weather!AW$21+T5*Control!$H$13*Prices!AK$15+ T5*Control!$H$14*Prices!AK$17","v":61.513961084661275},{"$f":"U5+U5*Control!$H$12*Weather!AX$21+U5*Control!$H$13*Prices!AL$15+ U5*Control!$H$14*Prices!AL$17","v":62.175474181113024},{"$f":"V5+V5*Control!$H$12*Weather!AY$21+V5*Control!$H$13*Prices!AM$15+ V5*Control!$H$14*Prices!AM$17","v":61.497551124884531},{"$f":"W5+W5*Control!$H$12*Weather!AZ$21+W5*Control!$H$13*Prices!AN$15+ W5*Control!$H$14*Prices!AN$17","v":60.362380901614216},{"$f":"X5+X5*Control!$H$12*Weather!BA$21+X5*Control!$H$13*Prices!AO$15+ X5*Control!$H$14*Prices!AO$17","v":58.592536764158744},{"$f":"Y5+Y5*Control!$H$12*Weather!BB$21+Y5*Control!$H$13*Prices!AP$15+ Y5*Control!$H$14*Prices!AP$17","v":57.694869396095719},{"$f":"Z5+Z5*Control!$H$12*Weather!BC$21+Z5*Control!$H$13*Prices!AQ$15+ Z5*Control!$H$14*Prices!AQ$17","v":56.136254061923324},{"$f":"AA5+AA5*Control!$H$12*Weather!BD$21+AA5*Control!$H$13*Prices!AR$15+ AA5*Control!$H$14*Prices!AR$17","v":55.572455744141273},{"$f":"AB5+AB5*Control!$H$12*Weather!BE$21+AB5*Control!$H$13*Prices!AS$15+ AB5*Control!$H$14*Prices!AS$17","v":55.039954839118138},{"$f":"AC5+AC5*Control!$H$12*Weather!BF$21+AC5*Control!$H$13*Prices!AT$15+ AC5*Control!$H$14*Prices!AT$17","v":55.080981053174},{"$f":"AD5+AD5*Control!$H$12*Weather!BG$21+AD5*Control!$H$13*Prices!AU$15+ AD5*Control!$H$14*Prices!AU$17","v":54.846733473493899},{"$f":"AE5+AE5*Control!$H$12*Weather!BH$21+AE5*Control!$H$13*Prices!AV$15+ AE5*Control!$H$14*Prices!AV$17","v":53.647855892629167},{"$f":"AF5+AF5*Control!$H$12*Weather!BI$21+AF5*Control!$H$13*Prices!AW$15+ AF5*Control!$H$14*Prices!AW$17","v":52.513455206988198},{"$f":"AG5+AG5*Control!$H$12*Weather!BJ$21+AG5*Control!$H$13*Prices!AX$15+ AG5*Control!$H$14*Prices!AX$17","v":51.943012271814212},{"$f":"AH5+AH5*Control!$H$12*Weather!BK$21+AH5*Control!$H$13*Prices!AY$15+ AH5*Control!$H$14*Prices!AY$17","v":51.411172581204823},{"$f":"AI5+AI5*Control!$H$12*Weather!BL$21+AI5*Control!$H$13*Prices!AZ$15+ AI5*Control!$H$14*Prices!AZ$17","v":50.783321480805995},{"$f":"AJ5+AJ5*Control!$H$12*Weather!BM$21+AJ5*Control!$H$13*Prices!BA$15+ AJ5*Control!$H$14*Prices!BA$17","v":50.20310319176545},{"$f":"AK5+AK5*Control!$H$12*Weather!BN$21+AK5*Control!$H$13*Prices!BB$15+ AK5*Control!$H$14*Prices!BB$17","v":49.687117022141678},{"$f":"AL5+AL5*Control!$H$12*Weather!BO$21+AL5*Control!$H$13*Prices!BC$15+ AL5*Control!$H$14*Prices!BC$17","v":49.170404171983421},{"$f":"AM5+AM5*Control!$H$12*Weather!BP$21+AM5*Control!$H$13*Prices!BD$15+ AM5*Control!$H$14*Prices!BD$17","v":48.447112906843287},{"$f":"AN5+AN5*Control!$H$12*Weather!BQ$21+AN5*Control!$H$13*Prices!BE$15+ AN5*Control!$H$14*Prices!BE$17","v":47.819929751602558},{"$f":"AO5+AO5*Control!$H$12*Weather!BR$21+AO5*Control!$H$13*Prices!BF$15+ AO5*Control!$H$14*Prices!BF$17","v":46.947672640247603},{"$f":"AP5+AP5*Control!$H$12*Weather!BS$21+AP5*Control!$H$13*Prices!BG$15+ AP5*Control!$H$14*Prices!BG$17","v":46.222417104379545},{"$f":"AQ5+AQ5*Control!$H$12*Weather!BT$21+AQ5*Control!$H$13*Prices!BH$15+ AQ5*Control!$H$14*Prices!BH$17","v":45.571055901071787},{"$f":"AR5+AR5*Control!$H$12*Weather!BU$21+AR5*Control!$H$13*Prices!BI$15+ AR5*Control!$H$14*Prices!BI$17","v":44.904067287463455},{"$f":"AS5+AS5*Control!$H$12*Weather!BV$21+AS5*Control!$H$13*Prices!BJ$15+ AS5*Control!$H$14*Prices!BJ$17","v":46.690758135500623},{"$f":"AT5+AT5*Control!$H$12*Weather!BW$21+AT5*Control!$H$13*Prices!BK$15+ AT5*Control!$H$14*Prices!BK$17","v":46.933910090825997},{"$f":"AU5+AU5*Control!$H$12*Weather!BX$21+AU5*Control!$H$13*Prices!BL$15+ AU5*Control!$H$14*Prices!BL$17","v":46.281793116721289},{"$f":"AV5+AV5*Control!$H$12*Weather!BY$21+AV5*Control!$H$13*Prices!BM$15+ AV5*Control!$H$14*Prices!BM$17","v":45.495027399824501},{"$f":"AW5+AW5*Control!$H$12*Weather!BZ$21+AW5*Control!$H$13*Prices!BN$15+ AW5*Control!$H$14*Prices!BN$17","v":44.769040354133416},{"$f":"AX5+AX5*Control!$H$12*Weather!CA$21+AX5*Control!$H$13*Prices!BO$15+ AX5*Control!$H$14*Prices!BO$17","v":44.033516461981442},{"$f":"AY5+AY5*Control!$H$12*Weather!CB$21+AY5*Control!$H$13*Prices!BP$15+ AY5*Control!$H$14*Prices!BP$17","v":43.250139151390798},{"$f":"AZ5+AZ5*Control!$H$12*Weather!CC$21+AZ5*Control!$H$13*Prices!BQ$15+ AZ5*Control!$H$14*Prices!BQ$17","v":42.408822697318016},{"$f":"BA5+BA5*Control!$H$12*Weather!CD$21+BA5*Control!$H$13*Prices!BR$15+ BA5*Control!$H$14*Prices!BR$17","v":41.503157556652894},{"$f":"BB5+BB5*Control!$H$12*Weather!CE$21+BB5*Control!$H$13*Prices!BS$15+ BB5*Control!$H$14*Prices!BS$17","v":40.522898704525289},{"$f":"BC5+BC5*Control!$H$12*Weather!CF$21+BC5*Control!$H$13*Prices!BT$15+ BC5*Control!$H$14*Prices!BT$17","v":39.457041330963378},{"$f":"BD5+BD5*Control!$H$12*Weather!CG$21+BD5*Control!$H$13*Prices!BU$15+ BD5*Control!$H$14*Prices!BU$17","v":38.302720986297459},{"$f":"BE5+BE5*Control!$H$12*Weather!CH$21+BE5*Control!$H$13*Prices!BV$15+ BE5*Control!$H$14*Prices!BV$17","v":37.063004367690034},{"$f":"BF5+BF5*Control!$H$12*Weather!CI$21+BF5*Control!$H$13*Prices!BW$15+ BF5*Control!$H$14*Prices!BW$17","v":35.741390557561871},{"$f":"BG5+BG5*Control!$H$12*Weather!CJ$21+BG5*Control!$H$13*Prices!BX$15+ BG5*Control!$H$14*Prices!BX$17","v":34.336155097543092},{"$f":"BH5+BH5*Control!$H$12*Weather!CK$21+BH5*Control!$H$13*Prices!BY$15+ BH5*Control!$H$14*Prices!BY$17","v":32.840684698611291},{"$f":"BI5+BI5*Control!$H$12*Weather!CL$21+BI5*Control!$H$13*Prices!BZ$15+ BI5*Control!$H$14*Prices!BZ$17","v":31.245233075951724},{"$f":"BJ5+BJ5*Control!$H$12*Weather!CM$21+BJ5*Control!$H$13*Prices!CA$15+ BJ5*Control!$H$14*Prices!CA$17","v":29.539853096835202},{"$f":"BK5+BK5*Control!$H$12*Weather!CN$21+BK5*Control!$H$13*Prices!CB$15+ BK5*Control!$H$14*Prices!CB$17","v":28.046241474834687},{"$f":"BL5+BL5*Control!$H$12*Weather!CO$21+BL5*Control!$H$13*Prices!CC$15+ BL5*Control!$H$14*Prices!CC$17","v":26.807478311953574},{"$f":"BM5+BM5*Control!$H$12*Weather!CP$21+BM5*Control!$H$13*Prices!CD$15+ BM5*Control!$H$14*Prices!CD$17","v":25.656828014407012},{"$f":"BN5+BN5*Control!$H$12*Weather!CQ$21+BN5*Control!$H$13*Prices!CE$15+ BN5*Control!$H$14*Prices!CE$17","v":24.482454478145236},{"$f":"BO5+BO5*Control!$H$12*Weather!CR$21+BO5*Control!$H$13*Prices!CF$15+ BO5*Control!$H$14*Prices!CF$17","v":23.222877061850024},{"$f":"BP5+BP5*Control!$H$12*Weather!CS$21+BP5*Control!$H$13*Prices!CG$15+ BP5*Control!$H$14*Prices!CG$17","v":21.613524869323538},{"$f":"BQ5+BQ5*Control!$H$12*Weather!CT$21+BQ5*Control!$H$13*Prices!CH$15+ BQ5*Control!$H$14*Prices!CH$17","v":19.588867218474881},{"$f":"BR5+BR5*Control!$H$12*Weather!CU$21+BR5*Control!$H$13*Prices!CI$15+ BR5*Control!$H$14*Prices!CI$17","v":17.152088109920022},{"$f":"BS5+BS5*Control!$H$12*Weather!CV$21+BS5*Control!$H$13*Prices!CJ$15+ BS5*Control!$H$14*Prices!CJ$17","v":27.258561848961065},{"$f":"BT5+BT5*Control!$H$12*Weather!CW$21+BT5*Control!$H$13*Prices!CK$15+ BT5*Control!$H$14*Prices!CK$17","v":27.187766273162239},{"$f":"BU5+BU5*Control!$H$12*Weather!CX$21+BU5*Control!$H$13*Prices!CL$15+ BU5*Control!$H$14*Prices!CL$17","v":27.116788752284865},{"$f":"BV5+BV5*Control!$H$12*Weather!CY$21+BV5*Control!$H$13*Prices!CM$15+ BV5*Control!$H$14*Prices!CM$17","v":27.045627030757622},{"$f":"BW5+BW5*Control!$H$12*Weather!CZ$21+BW5*Control!$H$13*Prices!CN$15+ BW5*Control!$H$14*Prices!CN$17","v":26.974278815569733},{"$f":"BX5+BX5*Control!$H$12*Weather!DA$21+BX5*Control!$H$13*Prices!CO$15+ BX5*Control!$H$14*Prices!CO$17","v":26.902741775398521},{"$f":"BY5+BY5*Control!$H$12*Weather!DB$21+BY5*Control!$H$13*Prices!CP$15+ BY5*Control!$H$14*Prices!CP$17","v":26.831013539711041},{"$f":"BZ5+BZ5*Control!$H$12*Weather!DC$21+BZ5*Control!$H$13*Prices!CQ$15+ BZ5*Control!$H$14*Prices!CQ$17","v":26.759091697838812},{"$f":"CA5+CA5*Control!$H$12*Weather!DD$21+CA5*Control!$H$13*Prices!CR$15+ CA5*Control!$H$14*Prices!CR$17","v":26.686973798024695},{"$f":"CB5+CB5*Control!$H$12*Weather!DE$21+CB5*Control!$H$13*Prices!CS$15+ CB5*Control!$H$14*Prices!CS$17","v":26.614657346440872},{"$f":"CC5+CC5*Control!$H$12*Weather!DF$21+CC5*Control!$H$13*Prices!CT$15+ CC5*Control!$H$14*Prices!CT$17","v":26.542139806176888},{"$f":"CD5+CD5*Control!$H$12*Weather!DG$21+CD5*Control!$H$13*Prices!CU$15+ CD5*Control!$H$14*Prices!CU$17","v":26.469418596196586},{"$f":"CE5+CE5*Control!$H$12*Weather!DH$21+CE5*Control!$H$13*Prices!CV$15+ CE5*Control!$H$14*Prices!CV$17","v":26.396491090262831},{"$f":"CF5+CF5*Control!$H$12*Weather!DI$21+CF5*Control!$H$13*Prices!CW$15+ CF5*Control!$H$14*Prices!CW$17","v":26.323354615828737},{"$f":"CG5+CG5*Control!$H$12*Weather!DJ$21+CG5*Control!$H$13*Prices!CX$15+ CG5*Control!$H$14*Prices!CX$17","v":26.250006452894215},{"$f":"CH5+CH5*Control!$H$12*Weather!DK$21+CH5*Control!$H$13*Prices!CY$15+ CH5*Control!$H$14*Prices!CY$17","v":26.176443832826408},{"$f":"CI5+CI5*Control!$H$12*Weather!DL$21+CI5*Control!$H$13*Prices!CZ$15+ CI5*Control!$H$14*Prices!CZ$17","v":26.10266393714269},{"$f":"CJ5+CJ5*Control!$H$12*Weather!DM$21+CJ5*Control!$H$13*Prices!DA$15+ CJ5*Control!$H$14*Prices!DA$17","v":26.028663896254788},{"$f":"CK5+CK5*Control!$H$12*Weather!DN$21+CK5*Control!$H$13*Prices!DB$15+ CK5*Control!$H$14*Prices!DB$17","v":26.17242956858162}]
["Cardinia (S)",{"$f":"'Volume per connection'!B52","v":33.917943553372162},{"$f":"'Volume per connection'!C52","v":58.212233707014896},{"$f":"'Volume per connection'!D52","v":79.906964560099141},{"$f":"'Volume per connection'!E52","v":73.04002352649826},{"$f":"'Volume per connection'!F52","v":74.19553492375799},{"$f":"'Volume per connection'!G52","v":77.256292998292267},{"$f":"'Volume per connection'!H52","v":72.953397820823241},{"$f":"'Volume per connection'!I52","v":72.149944069431044},{"$f":"'Volume per connection'!J52","v":78.064258513189444},{"$f":"J6+J6*Control!$H$12*Weather!AM$21+J6*Control!$H$13*Prices!AA$15+ J6*Control!$H$14*Prices!AA$17","v":75.683152268750419},{"$f":"K6+K6*Control!$H$12*Weather!AN$21+K6*Control!$H$13*Prices!AB$15+ K6*Control!$H$14*Prices!AB$17","v":72.014097525763702},{"$f":"L6+L6*Control!$H$12*Weather!AO$21+L6*Control!$H$13*Prices!AC$15+ L6*Control!$H$14*Prices!AC$17","v":75.18287929631029},{"$f":"M6+M6*Control!$H$12*Weather!AP$21+M6*Control!$H$13*Prices!AD$15+ M6*Control!$H$14*Prices!AD$17","v":75.977613552150657},{"$f":"N6+N6*Control!$H$12*Weather!AQ$21+N6*Control!$H$13*Prices!AE$15+ N6*Control!$H$14*Prices!AE$17","v":77.797191787836624},{"$f":"O6+O6*Control!$H$12*Weather!AR$21+O6*Control!$H$13*Prices!AF$15+ O6*Control!$H$14*Prices!AF$17","v":78.060752712235654},{"$f":"P6+P6*Control!$H$12*Weather!AS$21+P6*Control!$H$13*Prices!AG$15+ P6*Control!$H$14*Prices!AG$17","v":76.53624268235842},{"$f":"Q6+Q6*Control!$H$12*Weather!AT$21+Q6*Control!$H$13*Prices!AH$15+ Q6*Control!$H$14*Prices!AH$17","v":72.768916188716759},{"$f":"R6+R6*Control!$H$12*Weather!AU$21+R6*Control!$H$13*Prices!AI$15+ R6*Control!$H$14*Prices!AI$17","v":69.756655931399933},{"$f":"S6+S6*Control!$H$12*Weather!AV$21+S6*Control!$H$13*Prices!AJ$15+ S6*Control!$H$14*Prices!AJ$17","v":68.161898476364058},{"$f":"T6+T6*Control!$H$12*Weather!AW$21+T6*Control!$H$13*Prices!AK$15+ T6*Control!$H$14*Prices!AK$17","v":72.771798810892946},{"$f":"U6+U6*Control!$H$12*Weather!AX$21+U6*Control!$H$13*Prices!AL$15+ U6*Control!$H$14*Prices!AL$17","v":73.554377222637598},{"$f":"V6+V6*Control!$H$12*Weather!AY$21+V6*Control!$H$13*Prices!AM$15+ V6*Control!$H$14*Prices!AM$17","v":72.752385619638275},{"$f":"W6+W6*Control!$H$12*Weather!AZ$21+W6*Control!$H$13*Prices!AN$15+ W6*Control!$H$14*Prices!AN$17","v":71.409464798944413},{"$f":"X6+X6*Control!$H$12*Weather!BA$21+X6*Control!$H$13*Prices!AO$15+ X6*Control!$H$14*Prices!AO$17","v":69.315716660691891},{"$f":"Y6+Y6*Control!$H$12*Weather!BB$21+Y6*Control!$H$13*Prices!AP$15+ Y6*Control!$H$14*Prices!AP$17","v":68.253764740250929},{"$f":"Z6+Z6*Control!$H$12*Weather!BC$21+Z6*Control!$H$13*Prices!AQ$15+ Z6*Control!$H$14*Prices!AQ$17","v":66.409902964452385},{"$f":"AA6+AA6*Control!$H$12*Weather!BD$21+AA6*Control!$H$13*Prices!AR$15+ AA6*Control!$H$14*Prices!AR$17","v":65.742922379425707},{"$f":"AB6+AB6*Control!$H$12*Weather!BE$21+AB6*Control!$H$13*Prices!AS$15+ AB6*Control!$H$14*Prices!AS$17","v":65.11296703199443},{"$f":"AC6+AC6*Control!$H$12*Weather!BF$21+AC6*Control!$H$13*Prices!AT$15+ AC6*Control!$H$14*Prices!AT$17","v":65.161501565336152},{"$f":"AD6+AD6*Control!$H$12*Weather!BG$21+AD6*Control!$H$13*Prices!AU$15+ AD6*Control!$H$14*Prices!AU$17","v":64.884383697459654},{"$f":"AE6+AE6*Control!$H$12*Weather!BH$21+AE6*Control!$H$13*Prices!AV$15+ AE6*Control!$H$14*Prices!AV$17","v":63.466096261969945},{"$f":"AF6+AF6*Control!$H$12*Weather!BI$21+AF6*Control!$H$13*Prices!AW$15+ AF6*Control!$H$14*Prices!AW$17","v":62.124085814084999},{"$f":"AG6+AG6*Control!$H$12*Weather!BJ$21+AG6*Control!$H$13*Prices!AX$15+ AG6*Control!$H$14*Prices!AX$17","v":61.44924456212199},{"$f":"AH6+AH6*Control!$H$12*Weather!BK$21+AH6*Control!$H$13*Prices!AY$15+ AH6*Control!$H$14*Prices!AY$17","v":60.820071439757008},{"$f":"AI6+AI6*Control!$H$12*Weather!BL$21+AI6*Control!$H$13*Prices!AZ$15+ AI6*Control!$H$14*Prices!AZ$17","v":60.077315597737027},{"$f":"AJ6+AJ6*Control!$H$12*Weather!BM$21+AJ6*Control!$H$13*Prices!BA$15+ AJ6*Control!$H$14*Prices!BA$17","v":59.390909977745373},{"$f":"AK6+AK6*Control!$H$12*Weather!BN$21+AK6*Control!$H$13*Prices!BB$15+ AK6*Control!$H$14*Prices!BB$17","v":58.780491772463719},{"$f":"AL6+AL6*Control!$H$12*Weather!BO$21+AL6*Control!$H$13*Prices!BC$15+ AL6*Control!$H$14*Prices!BC$17","v":58.169213894861777},{"$f":"AM6+AM6*Control!$H$12*Weather!BP$21+AM6*Control!$H$13*Prices!BD$15+ AM6*Control!$H$14*Prices!BD$17","v":57.313551123348617},{"$f":"AN6+AN6*Control!$H$12*Weather!BQ$21+AN6*Control!$H$13*Prices!BE$15+ AN6*Control!$H$14*Prices!BE$17","v":56.571585468951177},{"$f":"AO6+AO6*Control!$H$12*Weather!BR$21+AO6*Control!$H$13*Prices!BF$15+ AO6*Control!$H$14*Prices!BF$17","v":55.539694205575501},{"$f":"AP6+AP6*Control!$H$12*Weather!BS$21+AP6*Control!$H$13*Prices!BG$15+ AP6*Control!$H$14*Prices!BG$17","v":54.681707676793216},{"$f":"AQ6+AQ6*Control!$H$12*Weather!BT$21+AQ6*Control!$H$13*Prices!BH$15+ AQ6*Control!$H$14*Prices!BH$17","v":53.911139083834357},{"$f":"AR6+AR6*Control!$H$12*Weather!BU$21+AR6*Control!$H$13*Prices!BI$15+ AR6*Control!$H$14*Prices!BI$17","v":53.122083065610141},{"$f":"AS6+AS6*Control!$H$12*Weather!BV$21+AS6*Control!$H$13*Prices!BJ$15+ AS6*Control!$H$14*Prices!BJ$17","v":55.235761076877814},{"$f":"AT6+AT6*Control!$H$12*Weather!BW$21+AT6*Control!$H$13*Prices!BK$15+ AT6*Control!$H$14*Prices!BK$17","v":55.523412934462797},{"$f":"AU6+AU6*Control!$H$12*Weather!BX$21+AU6*Control!$H$13*Prices!BL$15+ AU6*Control!$H$14*Prices!BL$17","v":54.751950255032952},{"$f":"AV6+AV6*Control!$H$12*Weather!BY$21+AV6*Control!$H$13*Prices!BM$15+ AV6*Control!$H$14*Prices!BM$17","v":53.821196399294053},{"$f":"AW6+AW6*Control!$H$12*Weather!BZ$21+AW6*Control!$H$13*Prices!BN$15+ AW6*Control!$H$14*Prices!BN$17","v":52.962344485081694},{"$f":"AX6+AX6*Control!$H$12*Weather!CA$21+AX6*Control!$H$13*Prices!BO$15+ AX6*Control!$H$14*Prices!BO$17","v":52.092210360136924},{"$f":"AY6+AY6*Control!$H$12*Weather!CB$21+AY6*Control!$H$13*Prices!BP$15+ AY6*Control!$H$14*Prices!BP$17","v":51.165465032180222},{"$f":"AZ6+AZ6*Control!$H$12*Weather!CC$21+AZ6*Control!$H$13*Prices!BQ$15+ AZ6*Control!$H$14*Prices!BQ$17","v":50.170176960130753},{"$f":"BA6+BA6*Control!$H$12*Weather!CD$21+BA6*Control!$H$13*Prices!BR$15+ BA6*Control!$H$14*Prices!BR$17","v":49.098763572919118},{"$f":"BB6+BB6*Control!$H$12*Weather!CE$21+BB6*Control!$H$13*Prices!BS$15+ BB6*Control!$H$14*Prices!BS$17","v":47.939104875742245},{"$f":"BC6+BC6*Control!$H$12*Weather!CF$21+BC6*Control!$H$13*Prices!BT$15+ BC6*Control!$H$14*Prices!BT$17","v":46.678182038352496},{"$f":"BD6+BD6*Control!$H$12*Weather!CG$21+BD6*Control!$H$13*Prices!BU$15+ BD6*Control!$H$14*Prices!BU$17","v":45.312606380336632},{"$f":"BE6+BE6*Control!$H$12*Weather!CH$21+BE6*Control!$H$13*Prices!BV$15+ BE6*Control!$H$14*Prices!BV$17","v":43.846005843465733},{"$f":"BF6+BF6*Control!$H$12*Weather!CI$21+BF6*Control!$H$13*Prices!BW$15+ BF6*Control!$H$14*Prices!BW$17","v":42.282519886774097},{"$f":"BG6+BG6*Control!$H$12*Weather!CJ$21+BG6*Control!$H$13*Prices!BX$15+ BG6*Control!$H$14*Prices!BX$17","v":40.620108454064095},{"$f":"BH6+BH6*Control!$H$12*Weather!CK$21+BH6*Control!$H$13*Prices!BY$15+ BH6*Control!$H$14*Prices!BY$17","v":38.850947940259239},{"$f":"BI6+BI6*Control!$H$12*Weather!CL$21+BI6*Control!$H$13*Prices!BZ$15+ BI6*Control!$H$14*Prices!BZ$17","v":36.963508366389149},{"$f":"BJ6+BJ6*Control!$H$12*Weather!CM$21+BJ6*Control!$H$13*Prices!CA$15+ BJ6*Control!$H$14*Prices!CA$17","v":34.946022147844559},{"$f":"BK6+BK6*Control!$H$12*Weather!CN$21+BK6*Control!$H$13*Prices!CB$15+ BK6*Control!$H$14*Prices!CB$17","v":33.179060590804852},{"$f":"BL6+BL6*Control!$H$12*Weather!CO$21+BL6*Control!$H$13*Prices!CC$15+ BL6*Control!$H$14*Prices!CC$17","v":31.713588004192182},{"$f":"BM6+BM6*Control!$H$12*Weather!CP$21+BM6*Control!$H$13*Prices!CD$15+ BM6*Control!$H$14*Prices!CD$17","v":30.35235405862479},{"$f":"BN6+BN6*Control!$H$12*Weather!CQ$21+BN6*Control!$H$13*Prices!CE$15+ BN6*Control!$H$14*Prices!CE$17","v":28.963055219747243},{"$f":"BO6+BO6*Control!$H$12*Weather!CR$21+BO6*Control!$H$13*Prices!CF$15+ BO6*Control!$H$14*Prices!CF$17","v":27.472959106456379},{"$f":"BP6+BP6*Control!$H$12*Weather!CS$21+BP6*Control!$H$13*Prices!CG$15+ BP6*Control!$H$14*Prices!CG$17","v":25.569074981530306},{"$f":"BQ6+BQ6*Control!$H$12*Weather!CT$21+BQ6*Control!$H$13*Prices!CH$15+ BQ6*Control!$H$14*Prices!CH$17","v":23.173879214089595},{"$f":"BR6+BR6*Control!$H$12*Weather!CU$21+BR6*Control!$H$13*Prices!CI$15+ BR6*Control!$H$14*Prices!CI$17","v":20.291138517383615},{"$f":"BS6+BS6*Control!$H$12*Weather!CV$21+BS6*Control!$H$13*Prices!CJ$15+ BS6*Control!$H$14*Prices!CJ$17","v":32.247225569115642},{"$f":"BT6+BT6*Control!$H$12*Weather!CW$21+BT6*Control!$H$13*Prices!CK$15+ BT6*Control!$H$14*Prices!CK$17","v":32.163473501976881},{"$f":"BU6+BU6*Control!$H$12*Weather!CX$21+BU6*Control!$H$13*Prices!CL$15+ BU6*Control!$H$14*Prices!CL$17","v":32.079506191494701},{"$f":"BV6+BV6*Control!$H$12*Weather!CY$21+BV6*Control!$H$13*Prices!CM$15+ BV6*Control!$H$14*Prices!CM$17","v":31.995320969299531},{"$f":"BW6+BW6*Control!$H$12*Weather!CZ$21+BW6*Control!$H$13*Prices!CN$15+ BW6*Control!$H$14*Prices!CN$17","v":31.910915122730433},{"$f":"BX6+BX6*Control!$H$12*Weather!DA$21+BX6*Control!$H$13*Prices!CO$15+ BX6*Control!$H$14*Prices!CO$17","v":31.826285893803011},{"$f":"BY6+BY6*Control!$H$12*Weather!DB$21+BY6*Control!$H$13*Prices!CP$15+ BY6*Control!$H$14*Prices!CP$17","v":31.741430478146626},{"$f":"BZ6+BZ6*Control!$H$12*Weather!DC$21+BZ6*Control!$H$13*Prices!CQ$15+ BZ6*Control!$H$14*Prices!CQ$17","v":31.656346023909787},{"$f":"CA6+CA6*Control!$H$12*Weather!DD$21+CA6*Control!$H$13*Prices!CR$15+ CA6*Control!$H$14*Prices!CR$17","v":31.571029630632594},{"$f":"CB6+CB6*Control!$H$12*Weather!DE$21+CB6*Control!$H$13*Prices!CS$15+ CB6*Control!$H$14*Prices!CS$17","v":31.485478348085003},{"$f":"CC6+CC6*Control!$H$12*Weather!DF$21+CC6*Control!$H$13*Prices!CT$15+ CC6*Control!$H$14*Prices!CT$17","v":31.399689175069653},{"$f":"CD6+CD6*Control!$H$12*Weather!DG$21+CD6*Control!$H$13*Prices!CU$15+ CD6*Control!$H$14*Prices!CU$17","v":31.313659058187934},{"$f":"CE6+CE6*Control!$H$12*Weather!DH$21+CE6*Control!$H$13*Prices!CV$15+ CE6*Control!$H$14*Prices!CV$17","v":31.227384890567876},{"$f":"CF6+CF6*Control!$H$12*Weather!DI$21+CF6*Control!$H$13*Prices!CW$15+ CF6*Control!$H$14*Prices!CW$17","v":31.140863510552521},{"$f":"CG6+CG6*Control!$H$12*Weather!DJ$21+CG6*Control!$H$13*Prices!CX$15+ CG6*Control!$H$14*Prices!CX$17","v":31.05409170034714},{"$f":"CH6+CH6*Control!$H$12*Weather!DK$21+CH6*Control!$H$13*Prices!CY$15+ CH6*Control!$H$14*Prices!CY$17","v":30.967066184623821},{"$f":"CI6+CI6*Control!$H$12*Weather!DL$21+CI6*Control!$H$13*Prices!CZ$15+ CI6*Control!$H$14*Prices!CZ$17","v":30.879783629081764},{"$f":"CJ6+CJ6*Control!$H$12*Weather!DM$21+CJ6*Control!$H$13*Prices!DA$15+ CJ6*Control!$H$14*Prices!DA$17","v":30.792240638961506},{"$f":"CK6+CK6*Control!$H$12*Weather!DN$21+CK6*Control!$H$13*Prices!DB$15+ CK6*Control!$H$14*Prices!DB$17","v":30.962317258935336}]
["Casey (C)",{"$f":"'Volume per connection'!B53","v":27.396950133746753},{"$f":"'Volume per connection'!C53","v":51.211475528826092},{"$f":"'Volume per connection'!D53","v":59.004317238087658},{"$f":"'Volume per connection'!E53","v":58.280536735661244},{"$f":"'Volume per connection'!F53","v":57.258891022110319},{"$f":"'Volume per connection'!G53","v":60.608545653191818},{"$f":"'Volume per connection'!H53","v":58.704281514234744},{"$f":"'Volume per connection'!I53","v":55.982118580118581},{"$f":"'Volume per connection'!J53","v":60.508057523139293},{"$f":"J7+J7*Control!$H$12*Weather!AM$21+J7*Control!$H$13*Prices!AA$15+ J7*Control!$H$14*Prices!AA$17","v":58.662448324367752},{"$f":"K7+K7*Control!$H$12*Weather!AN$21+K7*Control!$H$13*Prices!AB$15+ K7*Control!$H$14*Prices!AB$17","v":55.818542807649393},{"$f":"L7+L7*Control!$H$12*Weather!AO$21+L7*Control!$H$13*Prices!AC$15+ L7*Control!$H$14*Prices!AC$17","v":58.274683854811357},{"$f":"M7+M7*Control!$H$12*Weather!AP$21+M7*Control!$H$13*Prices!AD$15+ M7*Control!$H$14*Prices!AD$17","v":58.890686965375373},{"$f":"N7+N7*Control!$H$12*Weather!AQ$21+N7*Control!$H$13*Prices!AE$15+ N7*Control!$H$14*Prices!AE$17","v":60.301052562252679},{"$f":"O7+O7*Control!$H$12*Weather!AR$21+O7*Control!$H$13*Prices!AF$15+ O7*Control!$H$14*Prices!AF$17","v":60.505340156577219},{"$f":"P7+P7*Control!$H$12*Weather!AS$21+P7*Control!$H$13*Prices!AG$15+ P7*Control!$H$14*Prices!AG$17","v":59.323683629770784},{"$f":"Q7+Q7*Control!$H$12*Weather!AT$21+Q7*Control!$H$13*Prices!AH$15+ Q7*Control!$H$14*Prices!AH$17","v":56.403607111690462},{"$f":"R7+R7*Control!$H$12*Weather!AU$21+R7*Control!$H$13*Prices!AI$15+ R7*Control!$H$14*Prices!AI$17","v":54.068786793201213},{"$f":"S7+S7*Control!$H$12*Weather!AV$21+S7*Control!$H$13*Prices!AJ$15+ S7*Control!$H$14*Prices!AJ$17","v":52.832681081539803},{"$f":"T7+T7*Control!$H$12*Weather!AW$21+T7*Control!$H$13*Prices!AK$15+ T7*Control!$H$14*Prices!AK$17","v":56.405841448783733},{"$f":"U7+U7*Control!$H$12*Weather!AX$21+U7*Control!$H$13*Prices!AL$15+ U7*Control!$H$14*Prices!AL$17","v":57.012422494400305},{"$f":"V7+V7*Control!$H$12*Weather!AY$21+V7*Control!$H$13*Prices!AM$15+ V7*Control!$H$14*Prices!AM$17","v":56.390794172148851},{"$f":"W7+W7*Control!$H$12*Weather!AZ$21+W7*Control!$H$13*Prices!AN$15+ W7*Control!$H$14*Prices!AN$17","v":55.349888489891754},{"$f":"X7+X7*Control!$H$12*Weather!BA$21+X7*Control!$H$13*Prices!AO$15+ X7*Control!$H$14*Prices!AO$17","v":53.727012218455137},{"$f":"Y7+Y7*Control!$H$12*Weather!BB$21+Y7*Control!$H$13*Prices!AP$15+ Y7*Control!$H$14*Prices!AP$17","v":52.903887153122035},{"$f":"Z7+Z7*Control!$H$12*Weather!BC$21+Z7*Control!$H$13*Prices!AQ$15+ Z7*Control!$H$14*Prices!AQ$17","v":51.474699244088278},{"$f":"AA7+AA7*Control!$H$12*Weather!BD$21+AA7*Control!$H$13*Prices!AR$15+ AA7*Control!$H$14*Prices!AR$17","v":50.957718741432352},{"$f":"AB7+AB7*Control!$H$12*Weather!BE$21+AB7*Control!$H$13*Prices!AS$15+ AB7*Control!$H$14*Prices!AS$17","v":50.469436714223434},{"$f":"AC7+AC7*Control!$H$12*Weather!BF$21+AC7*Control!$H$13*Prices!AT$15+ AC7*Control!$H$14*Prices!AT$17","v":50.507056111259075},{"$f":"AD7+AD7*Control!$H$12*Weather!BG$21+AD7*Control!$H$13*Prices!AU$15+ AD7*Control!$H$14*Prices!AU$17","v":50.292260451766232},{"$f":"AE7+AE7*Control!$H$12*Weather!BH$21+AE7*Control!$H$13*Prices!AV$15+ AE7*Control!$H$14*Prices!AV$17","v":49.19293767120773},{"$f":"AF7+AF7*Control!$H$12*Weather!BI$21+AF7*Control!$H$13*Prices!AW$15+ AF7*Control!$H$14*Prices!AW$17","v":48.152737624171401},{"$f":"AG7+AG7*Control!$H$12*Weather!BJ$21+AG7*Control!$H$13*Prices!AX$15+ AG7*Control!$H$14*Prices!AX$17","v":47.629664273184964},{"$f":"AH7+AH7*Control!$H$12*Weather!BK$21+AH7*Control!$H$13*Prices!AY$15+ AH7*Control!$H$14*Prices!AY$17","v":47.141988553141566},{"$f":"AI7+AI7*Control!$H$12*Weather!BL$21+AI7*Control!$H$13*Prices!AZ$15+ AI7*Control!$H$14*Prices!AZ$17","v":46.566274211257443},{"$f":"AJ7+AJ7*Control!$H$12*Weather!BM$21+AJ7*Control!$H$13*Prices!BA$15+ AJ7*Control!$H$14*Prices!BA$17","v":46.034237251838384},{"$f":"AK7+AK7*Control!$H$12*Weather!BN$21+AK7*Control!$H$13*Prices!BB$15+ AK7*Control!$H$14*Prices!BB$17","v":45.561098576318734},{"$f":"AL7+AL7*Control!$H$12*Weather!BO$21+AL7*Control!$H$13*Prices!BC$15+ AL7*Control!$H$14*Prices!BC$17","v":45.087293563819813},{"$f":"AM7+AM7*Control!$H$12*Weather!BP$21+AM7*Control!$H$13*Prices!BD$15+ AM7*Control!$H$14*Prices!BD$17","v":44.424064408951466},{"$f":"AN7+AN7*Control!$H$12*Weather!BQ$21+AN7*Control!$H$13*Prices!BE$15+ AN7*Control!$H$14*Prices!BE$17","v":43.848962546056185},{"$f":"AO7+AO7*Control!$H$12*Weather!BR$21+AO7*Control!$H$13*Prices!BF$15+ AO7*Control!$H$14*Prices!BF$17","v":43.049137669587125},{"$f":"AP7+AP7*Control!$H$12*Weather!BS$21+AP7*Control!$H$13*Prices!BG$15+ AP7*Control!$H$14*Prices!BG$17","v":42.384107357041913},{"$f":"AQ7+AQ7*Control!$H$12*Weather!BT$21+AQ7*Control!$H$13*Prices!BH$15+ AQ7*Control!$H$14*Prices!BH$17","v":41.786835191311916},{"$f":"AR7+AR7*Control!$H$12*Weather!BU$21+AR7*Control!$H$13*Prices!BI$15+ AR7*Control!$H$14*Prices!BI$17","v":41.175233315510795},{"$f":"AS7+AS7*Control!$H$12*Weather!BV$21+AS7*Control!$H$13*Prices!BJ$15+ AS7*Control!$H$14*Prices!BJ$17","v":42.813557346598223},{"$f":"AT7+AT7*Control!$H$12*Weather!BW$21+AT7*Control!$H$13*Prices!BK$15+ AT7*Control!$H$14*Prices!BK$17","v":43.036517962338259},{"$f":"AU7+AU7*Control!$H$12*Weather!BX$21+AU7*Control!$H$13*Prices!BL$15+ AU7*Control!$H$14*Prices!BL$17","v":42.438552785022068},{"$f":"AV7+AV7*Control!$H$12*Weather!BY$21+AV7*Control!$H$13*Prices!BM$15+ AV7*Control!$H$14*Prices!BM$17","v":41.717120097188143},{"$f":"AW7+AW7*Control!$H$12*Weather!BZ$21+AW7*Control!$H$13*Prices!BN$15+ AW7*Control!$H$14*Prices!BN$17","v":41.051419019399269},{"$f":"AX7+AX7*Control!$H$12*Weather!CA$21+AX7*Control!$H$13*Prices!BO$15+ AX7*Control!$H$14*Prices!BO$17","v":40.376973034927268},{"$f":"AY7+AY7*Control!$H$12*Weather!CB$21+AY7*Control!$H$13*Prices!BP$15+ AY7*Control!$H$14*Prices!BP$17","v":39.658647380122886},{"$f":"AZ7+AZ7*Control!$H$12*Weather!CC$21+AZ7*Control!$H$13*Prices!BQ$15+ AZ7*Control!$H$14*Prices!BQ$17","v":38.88719384860066},{"$f":"BA7+BA7*Control!$H$12*Weather!CD$21+BA7*Control!$H$13*Prices!BR$15+ BA7*Control!$H$14*Prices!BR$17","v":38.056735145742294},{"$f":"BB7+BB7*Control!$H$12*Weather!CE$21+BB7*Control!$H$13*Prices!BS$15+ BB7*Control!$H$14*Prices!BS$17","v":37.157876993594066},{"$f":"BC7+BC7*Control!$H$12*Weather!CF$21+BC7*Control!$H$13*Prices!BT$15+ BC7*Control!$H$14*Prices!BT$17","v":36.180528421659211},{"$f":"BD7+BD7*Control!$H$12*Weather!CG$21+BD7*Control!$H$13*Prices!BU$15+ BD7*Control!$H$14*Prices!BU$17","v":35.122062844182906},{"$f":"BE7+BE7*Control!$H$12*Weather!CH$21+BE7*Control!$H$13*Prices!BV$15+ BE7*Control!$H$14*Prices!BV$17","v":33.98529229977995},{"$f":"BF7+BF7*Control!$H$12*Weather!CI$21+BF7*Control!$H$13*Prices!BW$15+ BF7*Control!$H$14*Prices!BW$17","v":32.773425307049415},{"$f":"BG7+BG7*Control!$H$12*Weather!CJ$21+BG7*Control!$H$13*Prices!BX$15+ BG7*Control!$H$14*Prices!BX$17","v":31.484880606653061},{"$f":"BH7+BH7*Control!$H$12*Weather!CK$21+BH7*Control!$H$13*Prices!BY$15+ BH7*Control!$H$14*Prices!BY$17","v":30.113594077121952},{"$f":"BI7+BI7*Control!$H$12*Weather!CL$21+BI7*Control!$H$13*Prices!BZ$15+ BI7*Control!$H$14*Prices!BZ$17","v":28.650628765181079},{"$f":"BJ7+BJ7*Control!$H$12*Weather!CM$21+BJ7*Control!$H$13*Prices!CA$15+ BJ7*Control!$H$14*Prices!CA$17","v":27.086863548052786},{"$f":"BK7+BK7*Control!$H$12*Weather!CN$21+BK7*Control!$H$13*Prices!CB$15+ BK7*Control!$H$14*Prices!CB$17","v":25.717281442607305},{"$f":"BL7+BL7*Control!$H$12*Weather!CO$21+BL7*Control!$H$13*Prices!CC$15+ BL7*Control!$H$14*Prices!CC$17","v":24.581385178962382},{"$f":"BM7+BM7*Control!$H$12*Weather!CP$21+BM7*Control!$H$13*Prices!CD$15+ BM7*Control!$H$14*Prices!CD$17","v":23.526284887874297},{"$f":"BN7+BN7*Control!$H$12*Weather!CQ$21+BN7*Control!$H$13*Prices!CE$15+ BN7*Control!$H$14*Prices!CE$17","v":22.449431335932463},{"$f":"BO7+BO7*Control!$H$12*Weather!CR$21+BO7*Control!$H$13*Prices!CF$15+ BO7*Control!$H$14*Prices!CF$17","v":21.294449234580966},{"$f":"BP7+BP7*Control!$H$12*Weather!CS$21+BP7*Control!$H$13*Prices!CG$15+ BP7*Control!$H$14*Prices!CG$17","v":19.818737656164387},{"$f":"BQ7+BQ7*Control!$H$12*Weather!CT$21+BQ7*Control!$H$13*Prices!CH$15+ BQ7*Control!$H$14*Prices!CH$17","v":17.96220758676014},{"$f":"BR7+BR7*Control!$H$12*Weather!CU$21+BR7*Control!$H$13*Prices!CI$15+ BR7*Control!$H$14*Prices!CI$17","v":15.727778627557136},{"$f":"BS7+BS7*Control!$H$12*Weather!CV$21+BS7*Control!$H$13*Prices!CJ$15+ BS7*Control!$H$14*Prices!CJ$17","v":24.995010736802541},{"$f":"BT7+BT7*Control!$H$12*Weather!CW$21+BT7*Control!$H$13*Prices!CK$15+ BT7*Control!$H$14*Prices!CK$17","v":24.93009402597184},{"$f":"BU7+BU7*Control!$H$12*Weather!CX$21+BU7*Control!$H$13*Prices!CL$15+ BU7*Control!$H$14*Prices!CL$17","v":24.865010478782821},{"$f":"BV7+BV7*Control!$H$12*Weather!CY$21+BV7*Control!$H$13*Prices!CM$15+ BV7*Control!$H$14*Prices!CM$17","v":24.799758026966821},{"$f":"BW7+BW7*Control!$H$12*Weather!CZ$21+BW7*Control!$H$13*Prices!CN$15+ BW7*Control!$H$14*Prices!CN$17","v":24.734334567924687},{"$f":"BX7+BX7*Control!$H$12*Weather!DA$21+BX7*Control!$H$13*Prices!CO$15+ BX7*Control!$H$14*Prices!CO$17","v":24.668737963926787},{"$f":"BY7+BY7*Control!$H$12*Weather!DB$21+BY7*Control!$H$13*Prices!CP$15+ BY7*Control!$H$14*Prices!CP$17","v":24.60296604128925},{"$f":"BZ7+BZ7*Control!$H$12*Weather!DC$21+BZ7*Control!$H$13*Prices!CQ$15+ BZ7*Control!$H$14*Prices!CQ$17","v":24.537016589525511},{"$f":"CA7+CA7*Control!$H$12*Weather!DD$21+CA7*Control!$H$13*Prices!CR$15+ CA7*Control!$H$14*Prices!CR$17","v":24.470887360472357},{"$f":"CB7+CB7*Control!$H$12*Weather!DE$21+CB7*Control!$H$13*Prices!CS$15+ CB7*Control!$H$14*Prices!CS$17","v":24.404576067389449},{"$f":"CC7+CC7*Control!$H$12*Weather!DF$21+CC7*Control!$H$13*Prices!CT$15+ CC7*Control!$H$14*Prices!CT$17","v":24.338080384031382},{"$f":"CD7+CD7*Control!$H$12*Weather!DG$21+CD7*Control!$H$13*Prices!CU$15+ CD7*Control!$H$14*Prices!CU$17","v":24.271397943691259},{"$f":"CE7+CE7*Control!$H$12*Weather!DH$21+CE7*Control!$H$13*Prices!CV$15+ CE7*Control!$H$14*Prices!CV$17","v":24.204526338214684},{"$f":"CF7+CF7*Control!$H$12*Weather!DI$21+CF7*Control!$H$13*Prices!CW$15+ CF7*Control!$H$14*Prices!CW$17","v":24.137463116983088},{"$f":"CG7+CG7*Control!$H$12*Weather!DJ$21+CG7*Control!$H$13*Prices!CX$15+ CG7*Control!$H$14*Prices!CX$17","v":24.070205785865198},{"$f":"CH7+CH7*Control!$H$12*Weather!DK$21+CH7*Control!$H$13*Prices!CY$15+ CH7*Control!$H$14*Prices!CY$17","v":24.002751806135436},{"$f":"CI7+CI7*Control!$H$12*Weather!DL$21+CI7*Control!$H$13*Prices!CZ$15+ CI7*Control!$H$14*Prices!CZ$17","v":23.935098593357999},{"$f":"CJ7+CJ7*Control!$H$12*Weather!DM$21+CJ7*Control!$H$13*Prices!DA$15+ CJ7*Control!$H$14*Prices!DA$17","v":23.867243516235231},{"$f":"CK7+CK7*Control!$H$12*Weather!DN$21+CK7*Control!$H$13*Prices!DB$15+ CK7*Control!$H$14*Prices!DB$17","v":23.999070886413595}]
["Frankston (C)",{"$f":"'Volume per connection'!B54","v":14.42066060606061},{"$f":"'Volume per connection'!C54","v":31.079634972677589},{"$f":"'Volume per connection'!D54","v":30.684000000000001},{"$f":"'Volume per connection'!E54","v":34.363999999999997},{"$f":"'Volume per connection'!F54","v":41.125999999999998},{"$f":"'Volume per connection'!G54","v":41.335000000000001},{"$f":"'Volume per connection'!H54","v":36.136000000000003},{"$f":"'Volume per connection'!I54","v":33.402000000000001},{"$f":"'Volume per connection'!J54","v":32.530999999999999},{"$f":"J8+J8*Control!$H$12*Weather!AM$21+J8*Control!$H$13*Prices!AA$15+ J8*Control!$H$14*Prices!AA$17","v":31.538743508833065},{"$f":"K8+K8*Control!$H$12*Weather!AN$21+K8*Control!$H$13*Prices!AB$15+ K8*Control!$H$14*Prices!AB$17","v":30.009772093266044},{"$f":"L8+L8*Control!$H$12*Weather!AO$21+L8*Control!$H$13*Prices!AC$15+ L8*Control!$H$14*Prices!AC$17","v":31.330269357199377},{"$f":"M8+M8*Control!$H$12*Weather!AP$21+M8*Control!$H$13*Prices!AD$15+ M8*Control!$H$14*Prices!AD$17","v":31.661451649443592},{"$f":"N8+N8*Control!$H$12*Weather!AQ$21+N8*Control!$H$13*Prices!AE$15+ N8*Control!$H$14*Prices!AE$17","v":32.419707741443737},{"$f":"O8+O8*Control!$H$12*Weather!AR$21+O8*Control!$H$13*Prices!AF$15+ O8*Control!$H$14*Prices!AF$17","v":32.529539059833525},{"$f":"P8+P8*Control!$H$12*Weather!AS$21+P8*Control!$H$13*Prices!AG$15+ P8*Control!$H$14*Prices!AG$17","v":31.894244025633498},{"$f":"Q8+Q8*Control!$H$12*Weather!AT$21+Q8*Control!$H$13*Prices!AH$15+ Q8*Control!$H$14*Prices!AH$17","v":30.324320727842224},{"$f":"R8+R8*Control!$H$12*Weather!AU$21+R8*Control!$H$13*Prices!AI$15+ R8*Control!$H$14*Prices!AI$17","v":29.069049233599863},{"$f":"S8+S8*Control!$H$12*Weather!AV$21+S8*Control!$H$13*Prices!AJ$15+ S8*Control!$H$14*Prices!AJ$17","v":28.404480636422871},{"$f":"T8+T8*Control!$H$12*Weather!AW$21+T8*Control!$H$13*Prices!AK$15+ T8*Control!$H$14*Prices!AK$17","v":30.32552197645202},{"$f":"U8+U8*Control!$H$12*Weather!AX$21+U8*Control!$H$13*Prices!AL$15+ U8*Control!$H$14*Prices!AL$17","v":30.65163867566033},{"$f":"V8+V8*Control!$H$12*Weather!AY$21+V8*Control!$H$13*Prices!AM$15+ V8*Control!$H$14*Prices!AM$17","v":30.31743209592624},{"$f":"W8+W8*Control!$H$12*Weather!AZ$21+W8*Control!$H$13*Prices!AN$15+ W8*Control!$H$14*Prices!AN$17","v":29.757809061645951},{"$f":"X8+X8*Control!$H$12*Weather!BA$21+X8*Control!$H$13*Prices!AO$15+ X8*Control!$H$14*Prices!AO$17","v":28.885300669422065},{"$f":"Y8+Y8*Control!$H$12*Weather!BB$21+Y8*Control!$H$13*Prices!AP$15+ Y8*Control!$H$14*Prices!AP$17","v":28.442763219098008},{"$f":"Z8+Z8*Control!$H$12*Weather!BC$21+Z8*Control!$H$13*Prices!AQ$15+ Z8*Control!$H$14*Prices!AQ$17","v":27.674387670915891},{"$f":"AA8+AA8*Control!$H$12*Weather!BD$21+AA8*Control!$H$13*Prices!AR$15+ AA8*Control!$H$14*Prices!AR$17","v":27.396442990152202},{"$f":"AB8+AB8*Control!$H$12*Weather!BE$21+AB8*Control!$H$13*Prices!AS$15+ AB8*Control!$H$14*Prices!AS$17","v":27.1339274958966},{"$f":"AC8+AC8*Control!$H$12*Weather!BF$21+AC8*Control!$H$13*Prices!AT$15+ AC8*Control!$H$14*Prices!AT$17","v":27.15415284529735},{"$f":"AD8+AD8*Control!$H$12*Weather!BG$21+AD8*Control!$H$13*Prices!AU$15+ AD8*Control!$H$14*Prices!AU$17","v":27.038672066621061},{"$f":"AE8+AE8*Control!$H$12*Weather!BH$21+AE8*Control!$H$13*Prices!AV$15+ AE8*Control!$H$14*Prices!AV$17","v":26.447642196579825},{"$f":"AF8+AF8*Control!$H$12*Weather!BI$21+AF8*Control!$H$13*Prices!AW$15+ AF8*Control!$H$14*Prices!AW$17","v":25.888398533581746},{"$f":"AG8+AG8*Control!$H$12*Weather!BJ$21+AG8*Control!$H$13*Prices!AX$15+ AG8*Control!$H$14*Prices!AX$17","v":25.607178149429895},{"$f":"AH8+AH8*Control!$H$12*Weather!BK$21+AH8*Control!$H$13*Prices!AY$15+ AH8*Control!$H$14*Prices!AY$17","v":25.34498862462711},{"$f":"AI8+AI8*Control!$H$12*Weather!BL$21+AI8*Control!$H$13*Prices!AZ$15+ AI8*Control!$H$14*Prices!AZ$17","v":25.035466818400391},{"$f":"AJ8+AJ8*Control!$H$12*Weather!BM$21+AJ8*Control!$H$13*Prices!BA$15+ AJ8*Control!$H$14*Prices!BA$17","v":24.74942732159052},{"$f":"AK8+AK8*Control!$H$12*Weather!BN$21+AK8*Control!$H$13*Prices!BB$15+ AK8*Control!$H$14*Prices!BB$17","v":24.495053360776399},{"$f":"AL8+AL8*Control!$H$12*Weather!BO$21+AL8*Control!$H$13*Prices!BC$15+ AL8*Control!$H$14*Prices!BC$17","v":24.240321156628081},{"$f":"AM8+AM8*Control!$H$12*Weather!BP$21+AM8*Control!$H$13*Prices!BD$15+ AM8*Control!$H$14*Prices!BD$17","v":23.883748684792053},{"$f":"AN8+AN8*Control!$H$12*Weather!BQ$21+AN8*Control!$H$13*Prices!BE$15+ AN8*Control!$H$14*Prices!BE$17","v":23.574556166180926},{"$f":"AO8+AO8*Control!$H$12*Weather!BR$21+AO8*Control!$H$13*Prices!BF$15+ AO8*Control!$H$14*Prices!BF$17","v":23.144545616817897},{"$f":"AP8+AP8*Control!$H$12*Weather!BS$21+AP8*Control!$H$13*Prices!BG$15+ AP8*Control!$H$14*Prices!BG$17","v":22.787004787001386},{"$f":"AQ8+AQ8*Control!$H$12*Weather!BT$21+AQ8*Control!$H$13*Prices!BH$15+ AQ8*Control!$H$14*Prices!BH$17","v":22.465892829045504},{"$f":"AR8+AR8*Control!$H$12*Weather!BU$21+AR8*Control!$H$13*Prices!BI$15+ AR8*Control!$H$14*Prices!BI$17","v":22.137076776504443},{"$f":"AS8+AS8*Control!$H$12*Weather!BV$21+AS8*Control!$H$13*Prices!BJ$15+ AS8*Control!$H$14*Prices!BJ$17","v":23.017890361288977},{"$f":"AT8+AT8*Control!$H$12*Weather!BW$21+AT8*Control!$H$13*Prices!BK$15+ AT8*Control!$H$14*Prices!BK$17","v":23.137760872548828},{"$f":"AU8+AU8*Control!$H$12*Weather!BX$21+AU8*Control!$H$13*Prices!BL$15+ AU8*Control!$H$14*Prices!BL$17","v":22.816276330166449},{"$f":"AV8+AV8*Control!$H$12*Weather!BY$21+AV8*Control!$H$13*Prices!BM$15+ AV8*Control!$H$14*Prices!BM$17","v":22.428411841888163},{"$f":"AW8+AW8*Control!$H$12*Weather!BZ$21+AW8*Control!$H$13*Prices!BN$15+ AW8*Control!$H$14*Prices!BN$17","v":22.070510387965793},{"$f":"AX8+AX8*Control!$H$12*Weather!CA$21+AX8*Control!$H$13*Prices!BO$15+ AX8*Control!$H$14*Prices!BO$17","v":21.707907402198678},{"$f":"AY8+AY8*Control!$H$12*Weather!CB$21+AY8*Control!$H$13*Prices!BP$15+ AY8*Control!$H$14*Prices!BP$17","v":21.321713350811308},{"$f":"AZ8+AZ8*Control!$H$12*Weather!CC$21+AZ8*Control!$H$13*Prices!BQ$15+ AZ8*Control!$H$14*Prices!BQ$17","v":20.906956112498836},{"$f":"BA8+BA8*Control!$H$12*Weather!CD$21+BA8*Control!$H$13*Prices!BR$15+ BA8*Control!$H$14*Prices!BR$17","v":20.460475872204324},{"$f":"BB8+BB8*Control!$H$12*Weather!CE$21+BB8*Control!$H$13*Prices!BS$15+ BB8*Control!$H$14*Prices!BS$17","v":19.977221976037654},{"$f":"BC8+BC8*Control!$H$12*Weather!CF$21+BC8*Control!$H$13*Prices!BT$15+ BC8*Control!$H$14*Prices!BT$17","v":19.451769206686166},{"$f":"BD8+BD8*Control!$H$12*Weather!CG$21+BD8*Control!$H$13*Prices!BU$15+ BD8*Control!$H$14*Prices!BU$17","v":18.882705430548352},{"$f":"BE8+BE8*Control!$H$12*Weather!CH$21+BE8*Control!$H$13*Prices!BV$15+ BE8*Control!$H$14*Prices!BV$17","v":18.271542486409373},{"$f":"BF8+BF8*Control!$H$12*Weather!CI$21+BF8*Control!$H$13*Prices!BW$15+ BF8*Control!$H$14*Prices!BW$17","v":17.620005372935832},{"$f":"BG8+BG8*Control!$H$12*Weather!CJ$21+BG8*Control!$H$13*Prices!BX$15+ BG8*Control!$H$14*Prices!BX$17","v":16.927243956283778},{"$f":"BH8+BH8*Control!$H$12*Weather!CK$21+BH8*Control!$H$13*Prices!BY$15+ BH8*Control!$H$14*Prices!BY$17","v":16.189997977512814},{"$f":"BI8+BI8*Control!$H$12*Weather!CL$21+BI8*Control!$H$13*Prices!BZ$15+ BI8*Control!$H$14*Prices!BZ$17","v":15.403462654600675},{"$f":"BJ8+BJ8*Control!$H$12*Weather!CM$21+BJ8*Control!$H$13*Prices!CA$15+ BJ8*Control!$H$14*Prices!CA$17","v":14.562734190313972},{"$f":"BK8+BK8*Control!$H$12*Weather!CN$21+BK8*Control!$H$13*Prices!CB$15+ BK8*Control!$H$14*Prices!CB$17","v":13.826404562558052},{"$f":"BL8+BL8*Control!$H$12*Weather!CO$21+BL8*Control!$H$13*Prices!CC$15+ BL8*Control!$H$14*Prices!CC$17","v":13.215711658749299},{"$f":"BM8+BM8*Control!$H$12*Weather!CP$21+BM8*Control!$H$13*Prices!CD$15+ BM8*Control!$H$14*Prices!CD$17","v":12.648457164481975},{"$f":"BN8+BN8*Control!$H$12*Weather!CQ$21+BN8*Control!$H$13*Prices!CE$15+ BN8*Control!$H$14*Prices!CE$17","v":12.069507445515651},{"$f":"BO8+BO8*Control!$H$12*Weather!CR$21+BO8*Control!$H$13*Prices!CF$15+ BO8*Control!$H$14*Prices!CF$17","v":11.448553406052442},{"$f":"BP8+BP8*Control!$H$12*Weather!CS$21+BP8*Control!$H$13*Prices!CG$15+ BP8*Control!$H$14*Prices!CG$17","v":10.65516529672318},{"$f":"BQ8+BQ8*Control!$H$12*Weather!CT$21+BQ8*Control!$H$13*Prices!CH$15+ BQ8*Control!$H$14*Prices!CH$17","v":9.6570374083061115},{"$f":"BR8+BR8*Control!$H$12*Weather!CU$21+BR8*Control!$H$13*Prices!CI$15+ BR8*Control!$H$14*Prices!CI$17","v":8.4557394085473891},{"$f":"BS8+BS8*Control!$H$12*Weather!CV$21+BS8*Control!$H$13*Prices!CJ$15+ BS8*Control!$H$14*Prices!CJ$17","v":13.438089529943603},{"$f":"BT8+BT8*Control!$H$12*Weather!CW$21+BT8*Control!$H$13*Prices!CK$15+ BT8*Control!$H$14*Prices!CK$17","v":13.403188301801782},{"$f":"BU8+BU8*Control!$H$12*Weather!CX$21+BU8*Control!$H$13*Prices!CL$15+ BU8*Control!$H$14*Prices!CL$17","v":13.368197377282412},{"$f":"BV8+BV8*Control!$H$12*Weather!CY$21+BV8*Control!$H$13*Prices!CM$15+ BV8*Control!$H$14*Prices!CM$17","v":13.333115644420394},{"$f":"BW8+BW8*Control!$H$12*Weather!CZ$21+BW8*Control!$H$13*Prices!CN$15+ BW8*Control!$H$14*Prices!CN$17","v":13.297941972793508},{"$f":"BX8+BX8*Control!$H$12*Weather!DA$21+BX8*Control!$H$13*Prices!CO$15+ BX8*Control!$H$14*Prices!CO$17","v":13.262675213092296},{"$f":"BY8+BY8*Control!$H$12*Weather!DB$21+BY8*Control!$H$13*Prices!CP$15+ BY8*Control!$H$14*Prices!CP$17","v":13.227314196677193},{"$f":"BZ8+BZ8*Control!$H$12*Weather!DC$21+BZ8*Control!$H$13*Prices!CQ$15+ BZ8*Control!$H$14*Prices!CQ$17","v":13.191857735122371},{"$f":"CA8+CA8*Control!$H$12*Weather!DD$21+CA8*Control!$H$13*Prices!CR$15+ CA8*Control!$H$14*Prices!CR$17","v":13.156304619745871},{"$f":"CB8+CB8*Control!$H$12*Weather!DE$21+CB8*Control!$H$13*Prices!CS$15+ CB8*Control!$H$14*Prices!CS$17","v":13.120653621125477},{"$f":"CC8+CC8*Control!$H$12*Weather!DF$21+CC8*Control!$H$13*Prices!CT$15+ CC8*Control!$H$14*Prices!CT$17","v":13.084903488599837},{"$f":"CD8+CD8*Control!$H$12*Weather!DG$21+CD8*Control!$H$13*Prices!CU$15+ CD8*Control!$H$14*Prices!CU$17","v":13.049052949754246},{"$f":"CE8+CE8*Control!$H$12*Weather!DH$21+CE8*Control!$H$13*Prices!CV$15+ CE8*Control!$H$14*Prices!CV$17","v":13.013100709890548},{"$f":"CF8+CF8*Control!$H$12*Weather!DI$21+CF8*Control!$H$13*Prices!CW$15+ CF8*Control!$H$14*Prices!CW$17","v":12.97704545148053},{"$f":"CG8+CG8*Control!$H$12*Weather!DJ$21+CG8*Control!$H$13*Prices!CX$15+ CG8*Control!$H$14*Prices!CX$17","v":12.940885833602211},{"$f":"CH8+CH8*Control!$H$12*Weather!DK$21+CH8*Control!$H$13*Prices!CY$15+ CH8*Control!$H$14*Prices!CY$17","v":12.904620491358335},{"$f":"CI8+CI8*Control!$H$12*Weather!DL$21+CI8*Control!$H$13*Prices!CZ$15+ CI8*Control!$H$14*Prices!CZ$17","v":12.868248035276414},{"$f":"CJ8+CJ8*Control!$H$12*Weather!DM$21+CJ8*Control!$H$13*Prices!DA$15+ CJ8*Control!$H$14*Prices!DA$17","v":12.831767050689583},{"$f":"CK8+CK8*Control!$H$12*Weather!DN$21+CK8*Control!$H$13*Prices!DB$15+ CK8*Control!$H$14*Prices!DB$17","v":12.902641515262047}]
["Glen Eira (C)",{"$f":"'Volume per connection'!B55","v":25.563413190300491},{"$f":"'Volume per connection'!C55","v":47.947514944414614},{"$f":"'Volume per connection'!D55","v":55.19346603001906},{"$f":"'Volume per connection'!E55","v":55.028337413042799},{"$f":"'Volume per connection'!F55","v":54.395813092016816},{"$f":"'Volume per connection'!G55","v":56.240250102493015},{"$f":"'Volume per connection'!H55","v":53.437053832240998},{"$f":"'Volume per connection'!I55","v":52.274261091358788},{"$f":"'Volume per connection'!J55","v":56.268872828379671},{"$f":"J9+J9*Control!$H$12*Weather!AM$21+J9*Control!$H$13*Prices!AA$15+ J9*Control!$H$14*Prices!AA$17","v":54.552566710688659},{"$f":"K9+K9*Control!$H$12*Weather!AN$21+K9*Control!$H$13*Prices!AB$15+ K9*Control!$H$14*Prices!AB$17","v":51.907904753147591},{"$f":"L9+L9*Control!$H$12*Weather!AO$21+L9*Control!$H$13*Prices!AC$15+ L9*Control!$H$14*Prices!AC$17","v":54.191968956968196},{"$f":"M9+M9*Control!$H$12*Weather!AP$21+M9*Control!$H$13*Prices!AD$15+ M9*Control!$H$14*Prices!AD$17","v":54.764814989531011},{"$f":"N9+N9*Control!$H$12*Weather!AQ$21+N9*Control!$H$13*Prices!AE$15+ N9*Control!$H$14*Prices!AE$17","v":56.076370601473471},{"$f":"O9+O9*Control!$H$12*Weather!AR$21+O9*Control!$H$13*Prices!AF$15+ O9*Control!$H$14*Prices!AF$17","v":56.266345840078131},{"$f":"P9+P9*Control!$H$12*Weather!AS$21+P9*Control!$H$13*Prices!AG$15+ P9*Control!$H$14*Prices!AG$17","v":55.167475977857407},{"$f":"Q9+Q9*Control!$H$12*Weather!AT$21+Q9*Control!$H$13*Prices!AH$15+ Q9*Control!$H$14*Prices!AH$17","v":52.45197954695373},{"$f":"R9+R9*Control!$H$12*Weather!AU$21+R9*Control!$H$13*Prices!AI$15+ R9*Control!$H$14*Prices!AI$17","v":50.280736361235078},{"$f":"S9+S9*Control!$H$12*Weather!AV$21+S9*Control!$H$13*Prices!AJ$15+ S9*Control!$H$14*Prices!AJ$17","v":49.13123201521784},{"$f":"T9+T9*Control!$H$12*Weather!AW$21+T9*Control!$H$13*Prices!AK$15+ T9*Control!$H$14*Prices!AK$17","v":52.454057346752691},{"$f":"U9+U9*Control!$H$12*Weather!AX$21+U9*Control!$H$13*Prices!AL$15+ U9*Control!$H$14*Prices!AL$17","v":53.018141422709881},{"$f":"V9+V9*Control!$H$12*Weather!AY$21+V9*Control!$H$13*Prices!AM$15+ V9*Control!$H$14*Prices!AM$17","v":52.440064279877959},{"$f":"W9+W9*Control!$H$12*Weather!AZ$21+W9*Control!$H$13*Prices!AN$15+ W9*Control!$H$14*Prices!AN$17","v":51.472084280869325},{"$f":"X9+X9*Control!$H$12*Weather!BA$21+X9*Control!$H$13*Prices!AO$15+ X9*Control!$H$14*Prices!AO$17","v":49.962906457754762},{"$f":"Y9+Y9*Control!$H$12*Weather!BB$21+Y9*Control!$H$13*Prices!AP$15+ Y9*Control!$H$14*Prices!AP$17","v":49.1974494009757},{"$f":"Z9+Z9*Control!$H$12*Weather!BC$21+Z9*Control!$H$13*Prices!AQ$15+ Z9*Control!$H$14*Prices!AQ$17","v":47.868390165013203},{"$f":"AA9+AA9*Control!$H$12*Weather!BD$21+AA9*Control!$H$13*Prices!AR$15+ AA9*Control!$H$14*Prices!AR$17","v":47.387629232511379},{"$f":"AB9+AB9*Control!$H$12*Weather!BE$21+AB9*Control!$H$13*Prices!AS$15+ AB9*Control!$H$14*Prices!AS$17","v":46.933556164922074},{"$f":"AC9+AC9*Control!$H$12*Weather!BF$21+AC9*Control!$H$13*Prices!AT$15+ AC9*Control!$H$14*Prices!AT$17","v":46.968539953103829},{"$f":"AD9+AD9*Control!$H$12*Weather!BG$21+AD9*Control!$H$13*Prices!AU$15+ AD9*Control!$H$14*Prices!AU$17","v":46.768792842671985},{"$f":"AE9+AE9*Control!$H$12*Weather!BH$21+AE9*Control!$H$13*Prices!AV$15+ AE9*Control!$H$14*Prices!AV$17","v":45.746488437792813},{"$f":"AF9+AF9*Control!$H$12*Weather!BI$21+AF9*Control!$H$13*Prices!AW$15+ AF9*Control!$H$14*Prices!AW$17","v":44.779164637315851},{"$f":"AG9+AG9*Control!$H$12*Weather!BJ$21+AG9*Control!$H$13*Prices!AX$15+ AG9*Control!$H$14*Prices!AX$17","v":44.29273772044921},{"$f":"AH9+AH9*Control!$H$12*Weather!BK$21+AH9*Control!$H$13*Prices!AY$15+ AH9*Control!$H$14*Prices!AY$17","v":43.839228482243762},{"$f":"AI9+AI9*Control!$H$12*Weather!BL$21+AI9*Control!$H$13*Prices!AZ$15+ AI9*Control!$H$14*Prices!AZ$17","v":43.303848593762574},{"$f":"AJ9+AJ9*Control!$H$12*Weather!BM$21+AJ9*Control!$H$13*Prices!BA$15+ AJ9*Control!$H$14*Prices!BA$17","v":42.809086057416067},{"$f":"AK9+AK9*Control!$H$12*Weather!BN$21+AK9*Control!$H$13*Prices!BB$15+ AK9*Control!$H$14*Prices!BB$17","v":42.369095400753153},{"$f":"AL9+AL9*Control!$H$12*Weather!BO$21+AL9*Control!$H$13*Prices!BC$15+ AL9*Control!$H$14*Prices!BC$17","v":41.928485090571648},{"$f":"AM9+AM9*Control!$H$12*Weather!BP$21+AM9*Control!$H$13*Prices!BD$15+ AM9*Control!$H$14*Prices!BD$17","v":41.311721662707683},{"$f":"AN9+AN9*Control!$H$12*Weather!BQ$21+AN9*Control!$H$13*Prices!BE$15+ AN9*Control!$H$14*Prices!BE$17","v":40.776911343036723},{"$f":"AO9+AO9*Control!$H$12*Weather!BR$21+AO9*Control!$H$13*Prices!BF$15+ AO9*Control!$H$14*Prices!BF$17","v":40.033122067669538},{"$f":"AP9+AP9*Control!$H$12*Weather!BS$21+AP9*Control!$H$13*Prices!BG$15+ AP9*Control!$H$14*Prices!BG$17","v":39.414683670943376},{"$f":"AQ9+AQ9*Control!$H$12*Weather!BT$21+AQ9*Control!$H$13*Prices!BH$15+ AQ9*Control!$H$14*Prices!BH$17","v":38.859256296257954},{"$f":"AR9+AR9*Control!$H$12*Weather!BU$21+AR9*Control!$H$13*Prices!BI$15+ AR9*Control!$H$14*Prices!BI$17","v":38.290503148664492},{"$f":"AS9+AS9*Control!$H$12*Weather!BV$21+AS9*Control!$H$13*Prices!BJ$15+ AS9*Control!$H$14*Prices!BJ$17","v":39.814046463894584},{"$f":"AT9+AT9*Control!$H$12*Weather!BW$21+AT9*Control!$H$13*Prices!BK$15+ AT9*Control!$H$14*Prices!BK$17","v":40.02138649506341},{"$f":"AU9+AU9*Control!$H$12*Weather!BX$21+AU9*Control!$H$13*Prices!BL$15+ AU9*Control!$H$14*Prices!BL$17","v":39.465314661071105},{"$f":"AV9+AV9*Control!$H$12*Weather!BY$21+AV9*Control!$H$13*Prices!BM$15+ AV9*Control!$H$14*Prices!BM$17","v":38.794425430319656},{"$f":"AW9+AW9*Control!$H$12*Weather!BZ$21+AW9*Control!$H$13*Prices!BN$15+ AW9*Control!$H$14*Prices!BN$17","v":38.175363262053999},{"$f":"AX9+AX9*Control!$H$12*Weather!CA$21+AX9*Control!$H$13*Prices!BO$15+ AX9*Control!$H$14*Prices!BO$17","v":37.548168853848885},{"$f":"AY9+AY9*Control!$H$12*Weather!CB$21+AY9*Control!$H$13*Prices!BP$15+ AY9*Control!$H$14*Prices!BP$17","v":36.880168977896936},{"$f":"AZ9+AZ9*Control!$H$12*Weather!CC$21+AZ9*Control!$H$13*Prices!BQ$15+ AZ9*Control!$H$14*Prices!BQ$17","v":36.162763355651862},{"$f":"BA9+BA9*Control!$H$12*Weather!CD$21+BA9*Control!$H$13*Prices!BR$15+ BA9*Control!$H$14*Prices!BR$17","v":35.390486454802939},{"$f":"BB9+BB9*Control!$H$12*Weather!CE$21+BB9*Control!$H$13*Prices!BS$15+ BB9*Control!$H$14*Prices!BS$17","v":34.554602158985986},{"$f":"BC9+BC9*Control!$H$12*Weather!CF$21+BC9*Control!$H$13*Prices!BT$15+ BC9*Control!$H$14*Prices!BT$17","v":33.645726469460335},{"$f":"BD9+BD9*Control!$H$12*Weather!CG$21+BD9*Control!$H$13*Prices!BU$15+ BD9*Control!$H$14*Prices!BU$17","v":32.661416818643083},{"$f":"BE9+BE9*Control!$H$12*Weather!CH$21+BE9*Control!$H$13*Prices!BV$15+ BE9*Control!$H$14*Prices!BV$17","v":31.604288234179823},{"$f":"BF9+BF9*Control!$H$12*Weather!CI$21+BF9*Control!$H$13*Prices!BW$15+ BF9*Control!$H$14*Prices!BW$17","v":30.477324446377043},{"$f":"BG9+BG9*Control!$H$12*Weather!CJ$21+BG9*Control!$H$13*Prices!BX$15+ BG9*Control!$H$14*Prices!BX$17","v":29.27905497866924},{"$f":"BH9+BH9*Control!$H$12*Weather!CK$21+BH9*Control!$H$13*Prices!BY$15+ BH9*Control!$H$14*Prices!BY$17","v":28.003840560953908},{"$f":"BI9+BI9*Control!$H$12*Weather!CL$21+BI9*Control!$H$13*Prices!BZ$15+ BI9*Control!$H$14*Prices!BZ$17","v":26.643370361452767},{"$f":"BJ9+BJ9*Control!$H$12*Weather!CM$21+BJ9*Control!$H$13*Prices!CA$15+ BJ9*Control!$H$14*Prices!CA$17","v":25.18916228177039},{"$f":"BK9+BK9*Control!$H$12*Weather!CN$21+BK9*Control!$H$13*Prices!CB$15+ BK9*Control!$H$14*Prices!CB$17","v":23.915532876465729},{"$f":"BL9+BL9*Control!$H$12*Weather!CO$21+BL9*Control!$H$13*Prices!CC$15+ BL9*Control!$H$14*Prices!CC$17","v":22.859217320792414},{"$f":"BM9+BM9*Control!$H$12*Weather!CP$21+BM9*Control!$H$13*Prices!CD$15+ BM9*Control!$H$14*Prices!CD$17","v":21.878037184944922},{"$f":"BN9+BN9*Control!$H$12*Weather!CQ$21+BN9*Control!$H$13*Prices!CE$15+ BN9*Control!$H$14*Prices!CE$17","v":20.876627818170391},{"$f":"BO9+BO9*Control!$H$12*Weather!CR$21+BO9*Control!$H$13*Prices!CF$15+ BO9*Control!$H$14*Prices!CF$17","v":19.802563575484218},{"$f":"BP9+BP9*Control!$H$12*Weather!CS$21+BP9*Control!$H$13*Prices!CG$15+ BP9*Control!$H$14*Prices!CG$17","v":18.430240110869025},{"$f":"BQ9+BQ9*Control!$H$12*Weather!CT$21+BQ9*Control!$H$13*Prices!CH$15+ BQ9*Control!$H$14*Prices!CH$17","v":16.703778236970312},{"$f":"BR9+BR9*Control!$H$12*Weather!CU$21+BR9*Control!$H$13*Prices!CI$15+ BR9*Control!$H$14*Prices!CI$17","v":14.625893008191291},{"$f":"BS9+BS9*Control!$H$12*Weather!CV$21+BS9*Control!$H$13*Prices!CJ$15+ BS9*Control!$H$14*Prices!CJ$17","v":23.243864339146548},{"$f":"BT9+BT9*Control!$H$12*Weather!CW$21+BT9*Control!$H$13*Prices!CK$15+ BT9*Control!$H$14*Prices!CK$17","v":23.183495682546187},{"$f":"BU9+BU9*Control!$H$12*Weather!CX$21+BU9*Control!$H$13*Prices!CL$15+ BU9*Control!$H$14*Prices!CL$17","v":23.12297187811571},{"$f":"BV9+BV9*Control!$H$12*Weather!CY$21+BV9*Control!$H$13*Prices!CM$15+ BV9*Control!$H$14*Prices!CM$17","v":23.062291002489015},{"$f":"BW9+BW9*Control!$H$12*Weather!CZ$21+BW9*Control!$H$13*Prices!CN$15+ BW9*Control!$H$14*Prices!CN$17","v":23.001451100374709},{"$f":"BX9+BX9*Control!$H$12*Weather!DA$21+BX9*Control!$H$13*Prices!CO$15+ BX9*Control!$H$14*Prices!CO$17","v":22.940450183812153},{"$f":"BY9+BY9*Control!$H$12*Weather!DB$21+BY9*Control!$H$13*Prices!CP$15+ BY9*Control!$H$14*Prices!CP$17","v":22.879286231405409},{"$f":"BZ9+BZ9*Control!$H$12*Weather!DC$21+BZ9*Control!$H$13*Prices!CQ$15+ BZ9*Control!$H$14*Prices!CQ$17","v":22.817957187534248},{"$f":"CA9+CA9*Control!$H$12*Weather!DD$21+CA9*Control!$H$13*Prices!CR$15+ CA9*Control!$H$14*Prices!CR$17","v":22.756460961541411},{"$f":"CB9+CB9*Control!$H$12*Weather!DE$21+CB9*Control!$H$13*Prices!CS$15+ CB9*Control!$H$14*Prices!CS$17","v":22.694795426895208},{"$f":"CC9+CC9*Control!$H$12*Weather!DF$21+CC9*Control!$H$13*Prices!CT$15+ CC9*Control!$H$14*Prices!CT$17","v":22.632958420326613},{"$f":"CD9+CD9*Control!$H$12*Weather!DG$21+CD9*Control!$H$13*Prices!CU$15+ CD9*Control!$H$14*Prices!CU$17","v":22.570947740939829},{"$f":"CE9+CE9*Control!$H$12*Weather!DH$21+CE9*Control!$H$13*Prices!CV$15+ CE9*Control!$H$14*Prices!CV$17","v":22.508761149295371},{"$f":"CF9+CF9*Control!$H$12*Weather!DI$21+CF9*Control!$H$13*Prices!CW$15+ CF9*Control!$H$14*Prices!CW$17","v":22.446396366464601},{"$f":"CG9+CG9*Control!$H$12*Weather!DJ$21+CG9*Control!$H$13*Prices!CX$15+ CG9*Control!$H$14*Prices!CX$17","v":22.383851073054686},{"$f":"CH9+CH9*Control!$H$12*Weather!DK$21+CH9*Control!$H$13*Prices!CY$15+ CH9*Control!$H$14*Prices!CY$17","v":22.321122908202749},{"$f":"CI9+CI9*Control!$H$12*Weather!DL$21+CI9*Control!$H$13*Prices!CZ$15+ CI9*Control!$H$14*Prices!CZ$17","v":22.258209468538137},{"$f":"CJ9+CJ9*Control!$H$12*Weather!DM$21+CJ9*Control!$H$13*Prices!DA$15+ CJ9*Control!$H$14*Prices!DA$17","v":22.195108307111482},{"$f":"CK9+CK9*Control!$H$12*Weather!DN$21+CK9*Control!$H$13*Prices!DB$15+ CK9*Control!$H$14*Prices!DB$17","v":22.317699873119523}]
["Greater Dandenong (C)",{"$f":"'Volume per connection'!B56","v":23.410796580838266},{"$f":"'Volume per connection'!C56","v":43.97349772940948},{"$f":"'Volume per connection'!D56","v":50.946691546296826},{"$f":"'Volume per connection'!E56","v":50.362742385522559},{"$f":"'Volume per connection'!F56","v":49.187991451877231},{"$f":"'Volume per connection'!G56","v":52.313537626336604},{"$f":"'Volume per connection'!H56","v":50.427921295877574},{"$f":"'Volume per connection'!I56","v":49.366645451302176},{"$f":"'Volume per connection'!J56","v":52.639517040145279},{"$f":"J10+J10*Control!$H$12*Weather!AM$21+J10*Control!$H$13*Prices!AA$15+ J10*Control!$H$14*Prices!AA$17","v":51.033913078540145},{"$f":"K10+K10*Control!$H$12*Weather!AN$21+K10*Control!$H$13*Prices!AB$15+ K10*Control!$H$14*Prices!AB$17","v":48.559832451334245},{"$f":"L10+L10*Control!$H$12*Weather!AO$21+L10*Control!$H$13*Prices!AC$15+ L10*Control!$H$14*Prices!AC$17","v":50.696573966390154},{"$f":"M10+M10*Control!$H$12*Weather!AP$21+M10*Control!$H$13*Prices!AD$15+ M10*Control!$H$14*Prices!AD$17","v":51.232471292509352},{"$f":"N10+N10*Control!$H$12*Weather!AQ$21+N10*Control!$H$13*Prices!AE$15+ N10*Control!$H$14*Prices!AE$17","v":52.459431253028114},{"$f":"O10+O10*Control!$H$12*Weather!AR$21+O10*Control!$H$13*Prices!AF$15+ O10*Control!$H$14*Prices!AF$17","v":52.637153043195063},{"$f":"P10+P10*Control!$H$12*Weather!AS$21+P10*Control!$H$13*Prices!AG$15+ P10*Control!$H$14*Prices!AG$17","v":51.609160550548289},{"$f":"Q10+Q10*Control!$H$12*Weather!AT$21+Q10*Control!$H$13*Prices!AH$15+ Q10*Control!$H$14*Prices!AH$17","v":49.06881429049465},{"$f":"R10+R10*Control!$H$12*Weather!AU$21+R10*Control!$H$13*Prices!AI$15+ R10*Control!$H$14*Prices!AI$17","v":47.037616810823586},{"$f":"S10+S10*Control!$H$12*Weather!AV$21+S10*Control!$H$13*Prices!AJ$15+ S10*Control!$H$14*Prices!AJ$17","v":45.9622557707251},{"$f":"T10+T10*Control!$H$12*Weather!AW$21+T10*Control!$H$13*Prices!AK$15+ T10*Control!$H$14*Prices!AK$17","v":49.070758071708404},{"$f":"U10+U10*Control!$H$12*Weather!AX$21+U10*Control!$H$13*Prices!AL$15+ U10*Control!$H$14*Prices!AL$17","v":49.598458589523766},{"$f":"V10+V10*Control!$H$12*Weather!AY$21+V10*Control!$H$13*Prices!AM$15+ V10*Control!$H$14*Prices!AM$17","v":49.057667561002006},{"$f":"W10+W10*Control!$H$12*Weather!AZ$21+W10*Control!$H$13*Prices!AN$15+ W10*Control!$H$14*Prices!AN$17","v":48.152122504008517},{"$f":"X10+X10*Control!$H$12*Weather!BA$21+X10*Control!$H$13*Prices!AO$15+ X10*Control!$H$14*Prices!AO$17","v":46.740287012319385},{"$f":"Y10+Y10*Control!$H$12*Weather!BB$21+Y10*Control!$H$13*Prices!AP$15+ Y10*Control!$H$14*Prices!AP$17","v":46.024202119225549},{"$f":"Z10+Z10*Control!$H$12*Weather!BC$21+Z10*Control!$H$13*Prices!AQ$15+ Z10*Control!$H$14*Prices!AQ$17","v":44.780867522632647},{"$f":"AA10+AA10*Control!$H$12*Weather!BD$21+AA10*Control!$H$13*Prices!AR$15+ AA10*Control!$H$14*Prices!AR$17","v":44.331115785542551},{"$f":"AB10+AB10*Control!$H$12*Weather!BE$21+AB10*Control!$H$13*Prices!AS$15+ AB10*Control!$H$14*Prices!AS$17","v":43.90633053967953},{"$f":"AC10+AC10*Control!$H$12*Weather!BF$21+AC10*Control!$H$13*Prices!AT$15+ AC10*Control!$H$14*Prices!AT$17","v":43.939057865135979},{"$f":"AD10+AD10*Control!$H$12*Weather!BG$21+AD10*Control!$H$13*Prices!AU$15+ AD10*Control!$H$14*Prices!AU$17","v":43.752194491217573},{"$f":"AE10+AE10*Control!$H$12*Weather!BH$21+AE10*Control!$H$13*Prices!AV$15+ AE10*Control!$H$14*Prices!AV$17","v":42.795828965556801},{"$f":"AF10+AF10*Control!$H$12*Weather!BI$21+AF10*Control!$H$13*Prices!AW$15+ AF10*Control!$H$14*Prices!AW$17","v":41.890897782132356},{"$f":"AG10+AG10*Control!$H$12*Weather!BJ$21+AG10*Control!$H$13*Prices!AX$15+ AG10*Control!$H$14*Prices!AX$17","v":41.435845518027413},{"$f":"AH10+AH10*Control!$H$12*Weather!BK$21+AH10*Control!$H$13*Prices!AY$15+ AH10*Control!$H$14*Prices!AY$17","v":41.011587734417816},{"$f":"AI10+AI10*Control!$H$12*Weather!BL$21+AI10*Control!$H$13*Prices!AZ$15+ AI10*Control!$H$14*Prices!AZ$17","v":40.510739977104244},{"$f":"AJ10+AJ10*Control!$H$12*Weather!BM$21+AJ10*Control!$H$13*Prices!BA$15+ AJ10*Control!$H$14*Prices!BA$17","v":40.047889742974405},{"$f":"AK10+AK10*Control!$H$12*Weather!BN$21+AK10*Control!$H$13*Prices!BB$15+ AK10*Control!$H$14*Prices!BB$17","v":39.636278589156682},{"$f":"AL10+AL10*Control!$H$12*Weather!BO$21+AL10*Control!$H$13*Prices!BC$15+ AL10*Control!$H$14*Prices!BC$17","v":39.224087749620878},{"$f":"AM10+AM10*Control!$H$12*Weather!BP$21+AM10*Control!$H$13*Prices!BD$15+ AM10*Control!$H$14*Prices!BD$17","v":38.647105710726926},{"$f":"AN10+AN10*Control!$H$12*Weather!BQ$21+AN10*Control!$H$13*Prices!BE$15+ AN10*Control!$H$14*Prices!BE$17","v":38.146790784898769},{"$f":"AO10+AO10*Control!$H$12*Weather!BR$21+AO10*Control!$H$13*Prices!BF$15+ AO10*Control!$H$14*Prices!BF$17","v":37.450976096120762},{"$f":"AP10+AP10*Control!$H$12*Weather!BS$21+AP10*Control!$H$13*Prices!BG$15+ AP10*Control!$H$14*Prices!BG$17","v":36.872427124257797},{"$f":"AQ10+AQ10*Control!$H$12*Weather!BT$21+AQ10*Control!$H$13*Prices!BH$15+ AQ10*Control!$H$14*Prices!BH$17","v":36.352824948406663},{"$f":"AR10+AR10*Control!$H$12*Weather!BU$21+AR10*Control!$H$13*Prices!BI$15+ AR10*Control!$H$14*Prices!BI$17","v":35.820756515195001},{"$f":"AS10+AS10*Control!$H$12*Weather!BV$21+AS10*Control!$H$13*Prices!BJ$15+ AS10*Control!$H$14*Prices!BJ$17","v":37.246030921313988},{"$f":"AT10+AT10*Control!$H$12*Weather!BW$21+AT10*Control!$H$13*Prices!BK$15+ AT10*Control!$H$14*Prices!BK$17","v":37.439997470761398},{"$f":"AU10+AU10*Control!$H$12*Weather!BX$21+AU10*Control!$H$13*Prices!BL$15+ AU10*Control!$H$14*Prices!BL$17","v":36.919792403383191},{"$f":"AV10+AV10*Control!$H$12*Weather!BY$21+AV10*Control!$H$13*Prices!BM$15+ AV10*Control!$H$14*Prices!BM$17","v":36.29217568886498},{"$f":"AW10+AW10*Control!$H$12*Weather!BZ$21+AW10*Control!$H$13*Prices!BN$15+ AW10*Control!$H$14*Prices!BN$17","v":35.713043178876376},{"$f":"AX10+AX10*Control!$H$12*Weather!CA$21+AX10*Control!$H$13*Prices!BO$15+ AX10*Control!$H$14*Prices!BO$17","v":35.126302960374154},{"$f":"AY10+AY10*Control!$H$12*Weather!CB$21+AY10*Control!$H$13*Prices!BP$15+ AY10*Control!$H$14*Prices!BP$17","v":34.501389236578135},{"$f":"AZ10+AZ10*Control!$H$12*Weather!CC$21+AZ10*Control!$H$13*Prices!BQ$15+ AZ10*Control!$H$14*Prices!BQ$17","v":33.830256448970225},{"$f":"BA10+BA10*Control!$H$12*Weather!CD$21+BA10*Control!$H$13*Prices!BR$15+ BA10*Control!$H$14*Prices!BR$17","v":33.107791593384135},{"$f":"BB10+BB10*Control!$H$12*Weather!CE$21+BB10*Control!$H$13*Prices!BS$15+ BB10*Control!$H$14*Prices!BS$17","v":32.325822035055715},{"$f":"BC10+BC10*Control!$H$12*Weather!CF$21+BC10*Control!$H$13*Prices!BT$15+ BC10*Control!$H$14*Prices!BT$17","v":31.475569045412939},{"$f":"BD10+BD10*Control!$H$12*Weather!CG$21+BD10*Control!$H$13*Prices!BU$15+ BD10*Control!$H$14*Prices!BU$17","v":30.554747603067611},{"$f":"BE10+BE10*Control!$H$12*Weather!CH$21+BE10*Control!$H$13*Prices!BV$15+ BE10*Control!$H$14*Prices!BV$17","v":29.565804065755227},{"$f":"BF10+BF10*Control!$H$12*Weather!CI$21+BF10*Control!$H$13*Prices!BW$15+ BF10*Control!$H$14*Prices!BW$17","v":28.511529712462139},{"$f":"BG10+BG10*Control!$H$12*Weather!CJ$21+BG10*Control!$H$13*Prices!BX$15+ BG10*Control!$H$14*Prices!BX$17","v":27.390548912713871},{"$f":"BH10+BH10*Control!$H$12*Weather!CK$21+BH10*Control!$H$13*Prices!BY$15+ BH10*Control!$H$14*Prices!BY$17","v":26.197586130681579},{"$f":"BI10+BI10*Control!$H$12*Weather!CL$21+BI10*Control!$H$13*Prices!BZ$15+ BI10*Control!$H$14*Prices!BZ$17","v":24.924866585229257},{"$f":"BJ10+BJ10*Control!$H$12*Weather!CM$21+BJ10*Control!$H$13*Prices!CA$15+ BJ10*Control!$H$14*Prices!CA$17","v":23.564455275341608},{"$f":"BK10+BK10*Control!$H$12*Weather!CN$21+BK10*Control!$H$13*Prices!CB$15+ BK10*Control!$H$14*Prices!CB$17","v":22.372975272039479},{"$f":"BL10+BL10*Control!$H$12*Weather!CO$21+BL10*Control!$H$13*Prices!CC$15+ BL10*Control!$H$14*Prices!CC$17","v":21.384792322965161},{"$f":"BM10+BM10*Control!$H$12*Weather!CP$21+BM10*Control!$H$13*Prices!CD$15+ BM10*Control!$H$14*Prices!CD$17","v":20.466898541123726},{"$f":"BN10+BN10*Control!$H$12*Weather!CQ$21+BN10*Control!$H$13*Prices!CE$15+ BN10*Control!$H$14*Prices!CE$17","v":19.530080318600127},{"$f":"BO10+BO10*Control!$H$12*Weather!CR$21+BO10*Control!$H$13*Prices!CF$15+ BO10*Control!$H$14*Prices!CF$17","v":18.525293477080638},{"$f":"BP10+BP10*Control!$H$12*Weather!CS$21+BP10*Control!$H$13*Prices!CG$15+ BP10*Control!$H$14*Prices!CG$17","v":17.241485204956007},{"$f":"BQ10+BQ10*Control!$H$12*Weather!CT$21+BQ10*Control!$H$13*Prices!CH$15+ BQ10*Control!$H$14*Prices!CH$17","v":15.626380535853476},{"$f":"BR10+BR10*Control!$H$12*Weather!CU$21+BR10*Control!$H$13*Prices!CI$15+ BR10*Control!$H$14*Prices!CI$17","v":13.682519402516302},{"$f":"BS10+BS10*Control!$H$12*Weather!CV$21+BS10*Control!$H$13*Prices!CJ$15+ BS10*Control!$H$14*Prices!CJ$17","v":21.74462951641399},{"$f":"BT10+BT10*Control!$H$12*Weather!CW$21+BT10*Control!$H$13*Prices!CK$15+ BT10*Control!$H$14*Prices!CK$17","v":21.688154652638104},{"$f":"BU10+BU10*Control!$H$12*Weather!CX$21+BU10*Control!$H$13*Prices!CL$15+ BU10*Control!$H$14*Prices!CL$17","v":21.631534648104338},{"$f":"BV10+BV10*Control!$H$12*Weather!CY$21+BV10*Control!$H$13*Prices!CM$15+ BV10*Control!$H$14*Prices!CM$17","v":21.574767703504172},{"$f":"BW10+BW10*Control!$H$12*Weather!CZ$21+BW10*Control!$H$13*Prices!CN$15+ BW10*Control!$H$14*Prices!CN$17","v":21.517851989662972},{"$f":"BX10+BX10*Control!$H$12*Weather!DA$21+BX10*Control!$H$13*Prices!CO$15+ BX10*Control!$H$14*Prices!CO$17","v":21.460785646844041},{"$f":"BY10+BY10*Control!$H$12*Weather!DB$21+BY10*Control!$H$13*Prices!CP$15+ BY10*Control!$H$14*Prices!CP$17","v":21.403566784031963},{"$f":"BZ10+BZ10*Control!$H$12*Weather!DC$21+BZ10*Control!$H$13*Prices!CQ$15+ BZ10*Control!$H$14*Prices!CQ$17","v":21.346193478194504},{"$f":"CA10+CA10*Control!$H$12*Weather!DD$21+CA10*Control!$H$13*Prices!CR$15+ CA10*Control!$H$14*Prices!CR$17","v":21.288663773522298},{"$f":"CB10+CB10*Control!$H$12*Weather!DE$21+CB10*Control!$H$13*Prices!CS$15+ CB10*Control!$H$14*Prices!CS$17","v":21.230975680645461},{"$f":"CC10+CC10*Control!$H$12*Weather!DF$21+CC10*Control!$H$13*Prices!CT$15+ CC10*Control!$H$14*Prices!CT$17","v":21.173127175826338},{"$f":"CD10+CD10*Control!$H$12*Weather!DG$21+CD10*Control!$H$13*Prices!CU$15+ CD10*Control!$H$14*Prices!CU$17","v":21.115116200127439},{"$f":"CE10+CE10*Control!$H$12*Weather!DH$21+CE10*Control!$H$13*Prices!CV$15+ CE10*Control!$H$14*Prices!CV$17","v":21.05694065855366},{"$f":"CF10+CF10*Control!$H$12*Weather!DI$21+CF10*Control!$H$13*Prices!CW$15+ CF10*Control!$H$14*Prices!CW$17","v":20.998598419167813},{"$f":"CG10+CG10*Control!$H$12*Weather!DJ$21+CG10*Control!$H$13*Prices!CX$15+ CG10*Control!$H$14*Prices!CX$17","v":20.940087312178452},{"$f":"CH10+CH10*Control!$H$12*Weather!DK$21+CH10*Control!$H$13*Prices!CY$15+ CH10*Control!$H$14*Prices!CY$17","v":20.881405128998921},{"$f":"CI10+CI10*Control!$H$12*Weather!DL$21+CI10*Control!$H$13*Prices!CZ$15+ CI10*Control!$H$14*Prices!CZ$17","v":20.822549621276558},{"$f":"CJ10+CJ10*Control!$H$12*Weather!DM$21+CJ10*Control!$H$13*Prices!DA$15+ CJ10*Control!$H$14*Prices!DA$17","v":20.763518499890807},{"$f":"CK10+CK10*Control!$H$12*Weather!DN$21+CK10*Control!$H$13*Prices!DB$15+ CK10*Control!$H$14*Prices!DB$17","v":20.878202880499252}]
["Kingston (C)",{"$f":"'Volume per connection'!B57","v":22.998855916156074},{"$f":"'Volume per connection'!C57","v":42.561241056998078},{"$f":"'Volume per connection'!D57","v":49.548868304098164},{"$f":"'Volume per connection'!E57","v":49.219335087411565},{"$f":"'Volume per connection'!F57","v":48.194984474391447},{"$f":"'Volume per connection'!G57","v":50.563499071005801},{"$f":"'Volume per connection'!H57","v":48.580450843734013},{"$f":"'Volume per connection'!I57","v":46.808365927589115},{"$f":"'Volume per connection'!J57","v":49.891200007419357},{"$f":"J11+J11*Control!$H$12*Weather!AM$21+J11*Control!$H$13*Prices!AA$15+ J11*Control!$H$14*Prices!AA$17","v":48.369424868030173},{"$f":"K11+K11*Control!$H$12*Weather!AN$21+K11*Control!$H$13*Prices!AB$15+ K11*Control!$H$14*Prices!AB$17","v":46.024516359232983},{"$f":"L11+L11*Control!$H$12*Weather!AO$21+L11*Control!$H$13*Prices!AC$15+ L11*Control!$H$14*Prices!AC$17","v":48.049698281219641},{"$f":"M11+M11*Control!$H$12*Weather!AP$21+M11*Control!$H$13*Prices!AD$15+ M11*Control!$H$14*Prices!AD$17","v":48.55761632804488},{"$f":"N11+N11*Control!$H$12*Weather!AQ$21+N11*Control!$H$13*Prices!AE$15+ N11*Control!$H$14*Prices!AE$17","v":49.720516526096681},{"$f":"O11+O11*Control!$H$12*Weather!AR$21+O11*Control!$H$13*Prices!AF$15+ O11*Control!$H$14*Prices!AF$17","v":49.888959435102358},{"$f":"P11+P11*Control!$H$12*Weather!AS$21+P11*Control!$H$13*Prices!AG$15+ P11*Control!$H$14*Prices!AG$17","v":48.914638583760748},{"$f":"Q11+Q11*Control!$H$12*Weather!AT$21+Q11*Control!$H$13*Prices!AH$15+ Q11*Control!$H$14*Prices!AH$17","v":46.506924180686397},{"$f":"R11+R11*Control!$H$12*Weather!AU$21+R11*Control!$H$13*Prices!AI$15+ R11*Control!$H$14*Prices!AI$17","v":44.58177582426152},{"$f":"S11+S11*Control!$H$12*Weather!AV$21+S11*Control!$H$13*Prices!AJ$15+ S11*Control!$H$14*Prices!AJ$17","v":43.562559544392862},{"$f":"T11+T11*Control!$H$12*Weather!AW$21+T11*Control!$H$13*Prices!AK$15+ T11*Control!$H$14*Prices!AK$17","v":46.508766476793191},{"$f":"U11+U11*Control!$H$12*Weather!AX$21+U11*Control!$H$13*Prices!AL$15+ U11*Control!$H$14*Prices!AL$17","v":47.008915671898201},{"$f":"V11+V11*Control!$H$12*Weather!AY$21+V11*Control!$H$13*Prices!AM$15+ V11*Control!$H$14*Prices!AM$17","v":46.496359423602449},{"$f":"W11+W11*Control!$H$12*Weather!AZ$21+W11*Control!$H$13*Prices!AN$15+ W11*Control!$H$14*Prices!AN$17","v":45.638093009042898},{"$f":"X11+X11*Control!$H$12*Weather!BA$21+X11*Control!$H$13*Prices!AO$15+ X11*Control!$H$14*Prices!AO$17","v":44.299969658866331},{"$f":"Y11+Y11*Control!$H$12*Weather!BB$21+Y11*Control!$H$13*Prices!AP$15+ Y11*Control!$H$14*Prices!AP$17","v":43.621271664802492},{"$f":"Z11+Z11*Control!$H$12*Weather!BC$21+Z11*Control!$H$13*Prices!AQ$15+ Z11*Control!$H$14*Prices!AQ$17","v":42.442851752867277},{"$f":"AA11+AA11*Control!$H$12*Weather!BD$21+AA11*Control!$H$13*Prices!AR$15+ AA11*Control!$H$14*Prices!AR$17","v":42.016581621024429},{"$f":"AB11+AB11*Control!$H$12*Weather!BE$21+AB11*Control!$H$13*Prices!AS$15+ AB11*Control!$H$14*Prices!AS$17","v":41.613974476179422},{"$f":"AC11+AC11*Control!$H$12*Weather!BF$21+AC11*Control!$H$13*Prices!AT$15+ AC11*Control!$H$14*Prices!AT$17","v":41.644993103094457},{"$f":"AD11+AD11*Control!$H$12*Weather!BG$21+AD11*Control!$H$13*Prices!AU$15+ AD11*Control!$H$14*Prices!AU$17","v":41.467885893787916},{"$f":"AE11+AE11*Control!$H$12*Weather!BH$21+AE11*Control!$H$13*Prices!AV$15+ AE11*Control!$H$14*Prices!AV$17","v":40.561452354807052},{"$f":"AF11+AF11*Control!$H$12*Weather!BI$21+AF11*Control!$H$13*Prices!AW$15+ AF11*Control!$H$14*Prices!AW$17","v":39.703767763385969},{"$f":"AG11+AG11*Control!$H$12*Weather!BJ$21+AG11*Control!$H$13*Prices!AX$15+ AG11*Control!$H$14*Prices!AX$17","v":39.272473845833993},{"$f":"AH11+AH11*Control!$H$12*Weather!BK$21+AH11*Control!$H$13*Prices!AY$15+ AH11*Control!$H$14*Prices!AY$17","v":38.870366624359519},{"$f":"AI11+AI11*Control!$H$12*Weather!BL$21+AI11*Control!$H$13*Prices!AZ$15+ AI11*Control!$H$14*Prices!AZ$17","v":38.395668203127009},{"$f":"AJ11+AJ11*Control!$H$12*Weather!BM$21+AJ11*Control!$H$13*Prices!BA$15+ AJ11*Control!$H$14*Prices!BA$17","v":37.95698344872774},{"$f":"AK11+AK11*Control!$H$12*Weather!BN$21+AK11*Control!$H$13*Prices!BB$15+ AK11*Control!$H$14*Prices!BB$17","v":37.56686257461822},{"$f":"AL11+AL11*Control!$H$12*Weather!BO$21+AL11*Control!$H$13*Prices!BC$15+ AL11*Control!$H$14*Prices!BC$17","v":37.176192280268381},{"$f":"AM11+AM11*Control!$H$12*Weather!BP$21+AM11*Control!$H$13*Prices!BD$15+ AM11*Control!$H$14*Prices!BD$17","v":36.62933455964771},{"$f":"AN11+AN11*Control!$H$12*Weather!BQ$21+AN11*Control!$H$13*Prices!BE$15+ AN11*Control!$H$14*Prices!BE$17","v":36.155141150689317},{"$f":"AO11+AO11*Control!$H$12*Weather!BR$21+AO11*Control!$H$13*Prices!BF$15+ AO11*Control!$H$14*Prices!BF$17","v":35.495655050551875},{"$f":"AP11+AP11*Control!$H$12*Weather!BS$21+AP11*Control!$H$13*Prices!BG$15+ AP11*Control!$H$14*Prices!BG$17","v":34.947312206766121},{"$f":"AQ11+AQ11*Control!$H$12*Weather!BT$21+AQ11*Control!$H$13*Prices!BH$15+ AQ11*Control!$H$14*Prices!BH$17","v":34.45483853798401},{"$f":"AR11+AR11*Control!$H$12*Weather!BU$21+AR11*Control!$H$13*Prices!BI$15+ AR11*Control!$H$14*Prices!BI$17","v":33.950549476996756},{"$f":"AS11+AS11*Control!$H$12*Weather!BV$21+AS11*Control!$H$13*Prices!BJ$15+ AS11*Control!$H$14*Prices!BJ$17","v":35.301410093877188},{"$f":"AT11+AT11*Control!$H$12*Weather!BW$21+AT11*Control!$H$13*Prices!BK$15+ AT11*Control!$H$14*Prices!BK$17","v":35.485249620859349},{"$f":"AU11+AU11*Control!$H$12*Weather!BX$21+AU11*Control!$H$13*Prices!BL$15+ AU11*Control!$H$14*Prices!BL$17","v":34.992204537606675},{"$f":"AV11+AV11*Control!$H$12*Weather!BY$21+AV11*Control!$H$13*Prices!BM$15+ AV11*Control!$H$14*Prices!BM$17","v":34.397355785325239},{"$f":"AW11+AW11*Control!$H$12*Weather!BZ$21+AW11*Control!$H$13*Prices!BN$15+ AW11*Control!$H$14*Prices!BN$17","v":33.848459870026382},{"$f":"AX11+AX11*Control!$H$12*Weather!CA$21+AX11*Control!$H$13*Prices!BO$15+ AX11*Control!$H$14*Prices!BO$17","v":33.292353445809646},{"$f":"AY11+AY11*Control!$H$12*Weather!CB$21+AY11*Control!$H$13*Prices!BP$15+ AY11*Control!$H$14*Prices!BP$17","v":32.700066560701814},{"$f":"AZ11+AZ11*Control!$H$12*Weather!CC$21+AZ11*Control!$H$13*Prices!BQ$15+ AZ11*Control!$H$14*Prices!BQ$17","v":32.063973715994535},{"$f":"BA11+BA11*Control!$H$12*Weather!CD$21+BA11*Control!$H$13*Prices!BR$15+ BA11*Control!$H$14*Prices!BR$17","v":31.37922885823135},{"$f":"BB11+BB11*Control!$H$12*Weather!CE$21+BB11*Control!$H$13*Prices!BS$15+ BB11*Control!$H$14*Prices!BS$17","v":30.638086047127608},{"$f":"BC11+BC11*Control!$H$12*Weather!CF$21+BC11*Control!$H$13*Prices!BT$15+ BC11*Control!$H$14*Prices!BT$17","v":29.832224892838848},{"$f":"BD11+BD11*Control!$H$12*Weather!CG$21+BD11*Control!$H$13*Prices!BU$15+ BD11*Control!$H$14*Prices!BU$17","v":28.959479675284239},{"$f":"BE11+BE11*Control!$H$12*Weather!CH$21+BE11*Control!$H$13*Prices!BV$15+ BE11*Control!$H$14*Prices!BV$17","v":28.022169027497171},{"$f":"BF11+BF11*Control!$H$12*Weather!CI$21+BF11*Control!$H$13*Prices!BW$15+ BF11*Control!$H$14*Prices!BW$17","v":27.022938495371964},{"$f":"BG11+BG11*Control!$H$12*Weather!CJ$21+BG11*Control!$H$13*Prices!BX$15+ BG11*Control!$H$14*Prices!BX$17","v":25.96048427030631},{"$f":"BH11+BH11*Control!$H$12*Weather!CK$21+BH11*Control!$H$13*Prices!BY$15+ BH11*Control!$H$14*Prices!BY$17","v":24.82980625298352},{"$f":"BI11+BI11*Control!$H$12*Weather!CL$21+BI11*Control!$H$13*Prices!BZ$15+ BI11*Control!$H$14*Prices!BZ$17","v":23.623535584749845},{"$f":"BJ11+BJ11*Control!$H$12*Weather!CM$21+BJ11*Control!$H$13*Prices!CA$15+ BJ11*Control!$H$14*Prices!CA$17","v":22.334151552176039},{"$f":"BK11+BK11*Control!$H$12*Weather!CN$21+BK11*Control!$H$13*Prices!CB$15+ BK11*Control!$H$14*Prices!CB$17","v":21.204878897484846},{"$f":"BL11+BL11*Control!$H$12*Weather!CO$21+BL11*Control!$H$13*Prices!CC$15+ BL11*Control!$H$14*Prices!CC$17","v":20.268289127510538},{"$f":"BM11+BM11*Control!$H$12*Weather!CP$21+BM11*Control!$H$13*Prices!CD$15+ BM11*Control!$H$14*Prices!CD$17","v":19.398318716868427},{"$f":"BN11+BN11*Control!$H$12*Weather!CQ$21+BN11*Control!$H$13*Prices!CE$15+ BN11*Control!$H$14*Prices!CE$17","v":18.510411913413627},{"$f":"BO11+BO11*Control!$H$12*Weather!CR$21+BO11*Control!$H$13*Prices!CF$15+ BO11*Control!$H$14*Prices!CF$17","v":17.558085142694193},{"$f":"BP11+BP11*Control!$H$12*Weather!CS$21+BP11*Control!$H$13*Prices!CG$15+ BP11*Control!$H$14*Prices!CG$17","v":16.341304691861001},{"$f":"BQ11+BQ11*Control!$H$12*Weather!CT$21+BQ11*Control!$H$13*Prices!CH$15+ BQ11*Control!$H$14*Prices!CH$17","v":14.810524878329321},{"$f":"BR11+BR11*Control!$H$12*Weather!CU$21+BR11*Control!$H$13*Prices!CI$15+ BR11*Control!$H$14*Prices!CI$17","v":12.968153024575201},{"$f":"BS11+BS11*Control!$H$12*Weather!CV$21+BS11*Control!$H$13*Prices!CJ$15+ BS11*Control!$H$14*Prices!CJ$17","v":20.609339167441046},{"$f":"BT11+BT11*Control!$H$12*Weather!CW$21+BT11*Control!$H$13*Prices!CK$15+ BT11*Control!$H$14*Prices!CK$17","v":20.555812864722775},{"$f":"BU11+BU11*Control!$H$12*Weather!CX$21+BU11*Control!$H$13*Prices!CL$15+ BU11*Control!$H$14*Prices!CL$17","v":20.502148999067231},{"$f":"BV11+BV11*Control!$H$12*Weather!CY$21+BV11*Control!$H$13*Prices!CM$15+ BV11*Control!$H$14*Prices!CM$17","v":20.448345865108063},{"$f":"BW11+BW11*Control!$H$12*Weather!CZ$21+BW11*Control!$H$13*Prices!CN$15+ BW11*Control!$H$14*Prices!CN$17","v":20.394401729172117},{"$f":"BX11+BX11*Control!$H$12*Weather!DA$21+BX11*Control!$H$13*Prices!CO$15+ BX11*Control!$H$14*Prices!CO$17","v":20.340314828619821},{"$f":"BY11+BY11*Control!$H$12*Weather!DB$21+BY11*Control!$H$13*Prices!CP$15+ BY11*Control!$H$14*Prices!CP$17","v":20.286083371165958},{"$f":"BZ11+BZ11*Control!$H$12*Weather!DC$21+BZ11*Control!$H$13*Prices!CQ$15+ BZ11*Control!$H$14*Prices!CQ$17","v":20.231705534180097},{"$f":"CA11+CA11*Control!$H$12*Weather!DD$21+CA11*Control!$H$13*Prices!CR$15+ CA11*Control!$H$14*Prices!CR$17","v":20.177179463965967},{"$f":"CB11+CB11*Control!$H$12*Weather!DE$21+CB11*Control!$H$13*Prices!CS$15+ CB11*Control!$H$14*Prices!CS$17","v":20.122503275018985},{"$f":"CC11+CC11*Control!$H$12*Weather!DF$21+CC11*Control!$H$13*Prices!CT$15+ CC11*Control!$H$14*Prices!CT$17","v":20.06767504926114},{"$f":"CD11+CD11*Control!$H$12*Weather!DG$21+CD11*Control!$H$13*Prices!CU$15+ CD11*Control!$H$14*Prices!CU$17","v":20.012692835252377},{"$f":"CE11+CE11*Control!$H$12*Weather!DH$21+CE11*Control!$H$13*Prices!CV$15+ CE11*Control!$H$14*Prices!CV$17","v":19.957554647377595},{"$f":"CF11+CF11*Control!$H$12*Weather!DI$21+CF11*Control!$H$13*Prices!CW$15+ CF11*Control!$H$14*Prices!CW$17","v":19.902258465008366},{"$f":"CG11+CG11*Control!$H$12*Weather!DJ$21+CG11*Control!$H$13*Prices!CX$15+ CG11*Control!$H$14*Prices!CX$17","v":19.846802231638378},{"$f":"CH11+CH11*Control!$H$12*Weather!DK$21+CH11*Control!$H$13*Prices!CY$15+ CH11*Control!$H$14*Prices!CY$17","v":19.791183853991615},{"$f":"CI11+CI11*Control!$H$12*Weather!DL$21+CI11*Control!$H$13*Prices!CZ$15+ CI11*Control!$H$14*Prices!CZ$17","v":19.735401201102242},{"$f":"CJ11+CJ11*Control!$H$12*Weather!DM$21+CJ11*Control!$H$13*Prices!DA$15+ CJ11*Control!$H$14*Prices!DA$17","v":19.679452103365033},{"$f":"CK11+CK11*Control!$H$12*Weather!DN$21+CK11*Control!$H$13*Prices!DB$15+ CK11*Control!$H$14*Prices!DB$17","v":19.788148795363544}]
["Knox (C)",{"$f":"'Volume per connection'!B58","v":28.855336645505567},{"$f":"'Volume per connection'!C58","v":54.217508869531287},{"$f":"'Volume per connection'!D58","v":62.458977167124658},{"$f":"'Volume per connection'!E58","v":61.416848369668749},{"$f":"'Volume per connection'!F58","v":59.766410713895411},{"$f":"'Volume per connection'!G58","v":63.733499024802519},{"$f":"'Volume per connection'!H58","v":61.062803115485607},{"$f":"'Volume per connection'!I58","v":58.759323646350616},{"$f":"'Volume per connection'!J58","v":63.463337385295659},{"$f":"J12+J12*Control!$H$12*Weather!AM$21+J12*Control!$H$13*Prices!AA$15+ J12*Control!$H$14*Prices!AA$17","v":61.527586609983601},{"$f":"K12+K12*Control!$H$12*Weather!AN$21+K12*Control!$H$13*Prices!AB$15+ K12*Control!$H$14*Prices!AB$17","v":58.544781630161182},{"$f":"L12+L12*Control!$H$12*Weather!AO$21+L12*Control!$H$13*Prices!AC$15+ L12*Control!$H$14*Prices!AC$17","v":61.120883298642354},{"$f":"M12+M12*Control!$H$12*Weather!AP$21+M12*Control!$H$13*Prices!AD$15+ M12*Control!$H$14*Prices!AD$17","v":61.766972676427557},{"$f":"N12+N12*Control!$H$12*Weather!AQ$21+N12*Control!$H$13*Prices!AE$15+ N12*Control!$H$14*Prices!AE$17","v":63.246222075187539},{"$f":"O12+O12*Control!$H$12*Weather!AR$21+O12*Control!$H$13*Prices!AF$15+ O12*Control!$H$14*Prices!AF$17","v":63.460487299571753},{"$f":"P12+P12*Control!$H$12*Weather!AS$21+P12*Control!$H$13*Prices!AG$15+ P12*Control!$H$14*Prices!AG$17","v":62.221117372590129},{"$f":"Q12+Q12*Control!$H$12*Weather!AT$21+Q12*Control!$H$13*Prices!AH$15+ Q12*Control!$H$14*Prices!AH$17","v":59.158421116195804},{"$f":"R12+R12*Control!$H$12*Weather!AU$21+R12*Control!$H$13*Prices!AI$15+ R12*Control!$H$14*Prices!AI$17","v":56.709565613775119},{"$f":"S12+S12*Control!$H$12*Weather!AV$21+S12*Control!$H$13*Prices!AJ$15+ S12*Control!$H$14*Prices!AJ$17","v":55.413087144059588},{"$f":"T12+T12*Control!$H$12*Weather!AW$21+T12*Control!$H$13*Prices!AK$15+ T12*Control!$H$14*Prices!AK$17","v":59.160764580762127},{"$f":"U12+U12*Control!$H$12*Weather!AX$21+U12*Control!$H$13*Prices!AL$15+ U12*Control!$H$14*Prices!AL$17","v":59.796971709618781},{"$f":"V12+V12*Control!$H$12*Weather!AY$21+V12*Control!$H$13*Prices!AM$15+ V12*Control!$H$14*Prices!AM$17","v":59.144982378640627},{"$f":"W12+W12*Control!$H$12*Weather!AZ$21+W12*Control!$H$13*Prices!AN$15+ W12*Control!$H$14*Prices!AN$17","v":58.053237721756027},{"$f":"X12+X12*Control!$H$12*Weather!BA$21+X12*Control!$H$13*Prices!AO$15+ X12*Control!$H$14*Prices!AO$17","v":56.351098394123731},{"$f":"Y12+Y12*Control!$H$12*Weather!BB$21+Y12*Control!$H$13*Prices!AP$15+ Y12*Control!$H$14*Prices!AP$17","v":55.487770998238453},{"$f":"Z12+Z12*Control!$H$12*Weather!BC$21+Z12*Control!$H$13*Prices!AQ$15+ Z12*Control!$H$14*Prices!AQ$17","v":53.9887799849621},{"$f":"AA12+AA12*Control!$H$12*Weather!BD$21+AA12*Control!$H$13*Prices!AR$15+ AA12*Control!$H$14*Prices!AR$17","v":53.446549587810019},{"$f":"AB12+AB12*Control!$H$12*Weather!BE$21+AB12*Control!$H$13*Prices!AS$15+ AB12*Control!$H$14*Prices!AS$17","v":52.934419331106852},{"$f":"AC12+AC12*Control!$H$12*Weather!BF$21+AC12*Control!$H$13*Prices!AT$15+ AC12*Control!$H$14*Prices!AT$17","v":52.973876100734451},{"$f":"AD12+AD12*Control!$H$12*Weather!BG$21+AD12*Control!$H$13*Prices!AU$15+ AD12*Control!$H$14*Prices!AU$17","v":52.748589585759504},{"$f":"AE12+AE12*Control!$H$12*Weather!BH$21+AE12*Control!$H$13*Prices!AV$15+ AE12*Control!$H$14*Prices!AV$17","v":51.595574675451964},{"$f":"AF12+AF12*Control!$H$12*Weather!BI$21+AF12*Control!$H$13*Prices!AW$15+ AF12*Control!$H$14*Prices!AW$17","v":50.504570117785867},{"$f":"AG12+AG12*Control!$H$12*Weather!BJ$21+AG12*Control!$H$13*Prices!AX$15+ AG12*Control!$H$14*Prices!AX$17","v":49.955949290911455},{"$f":"AH12+AH12*Control!$H$12*Weather!BK$21+AH12*Control!$H$13*Prices!AY$15+ AH12*Control!$H$14*Prices!AY$17","v":49.444454954080442},{"$f":"AI12+AI12*Control!$H$12*Weather!BL$21+AI12*Control!$H$13*Prices!AZ$15+ AI12*Control!$H$14*Prices!AZ$17","v":48.840622092604548},{"$f":"AJ12+AJ12*Control!$H$12*Weather!BM$21+AJ12*Control!$H$13*Prices!BA$15+ AJ12*Control!$H$14*Prices!BA$17","v":48.282599864835184},{"$f":"AK12+AK12*Control!$H$12*Weather!BN$21+AK12*Control!$H$13*Prices!BB$15+ AK12*Control!$H$14*Prices!BB$17","v":47.78635257771888},{"$f":"AL12+AL12*Control!$H$12*Weather!BO$21+AL12*Control!$H$13*Prices!BC$15+ AL12*Control!$H$14*Prices!BC$17","v":47.289406408994751},{"$f":"AM12+AM12*Control!$H$12*Weather!BP$21+AM12*Control!$H$13*Prices!BD$15+ AM12*Control!$H$14*Prices!BD$17","v":46.59378441512925},{"$f":"AN12+AN12*Control!$H$12*Weather!BQ$21+AN12*Control!$H$13*Prices!BE$15+ AN12*Control!$H$14*Prices!BE$17","v":45.990593946787449},{"$f":"AO12+AO12*Control!$H$12*Weather!BR$21+AO12*Control!$H$13*Prices!BF$15+ AO12*Control!$H$14*Prices!BF$17","v":45.151704746533476},{"$f":"AP12+AP12*Control!$H$12*Weather!BS$21+AP12*Control!$H$13*Prices!BG$15+ AP12*Control!$H$14*Prices!BG$17","v":44.454193624475629},{"$f":"AQ12+AQ12*Control!$H$12*Weather!BT$21+AQ12*Control!$H$13*Prices!BH$15+ AQ12*Control!$H$14*Prices!BH$17","v":43.827750031404186},{"$f":"AR12+AR12*Control!$H$12*Weather!BU$21+AR12*Control!$H$13*Prices!BI$15+ AR12*Control!$H$14*Prices!BI$17","v":43.186276849512616},{"$f":"AS12+AS12*Control!$H$12*Weather!BV$21+AS12*Control!$H$13*Prices!BJ$15+ AS12*Control!$H$14*Prices!BJ$17","v":44.90461842231187},{"$f":"AT12+AT12*Control!$H$12*Weather!BW$21+AT12*Control!$H$13*Prices!BK$15+ AT12*Control!$H$14*Prices!BK$17","v":45.138468678948051},{"$f":"AU12+AU12*Control!$H$12*Weather!BX$21+AU12*Control!$H$13*Prices!BL$15+ AU12*Control!$H$14*Prices!BL$17","v":44.511298226844822},{"$f":"AV12+AV12*Control!$H$12*Weather!BY$21+AV12*Control!$H$13*Prices!BM$15+ AV12*Control!$H$14*Prices!BM$17","v":43.754629975657338},{"$f":"AW12+AW12*Control!$H$12*Weather!BZ$21+AW12*Control!$H$13*Prices!BN$15+ AW12*Control!$H$14*Prices!BN$17","v":43.056415327445997},{"$f":"AX12+AX12*Control!$H$12*Weather!CA$21+AX12*Control!$H$13*Prices!BO$15+ AX12*Control!$H$14*Prices!BO$17","v":42.349028661722407},{"$f":"AY12+AY12*Control!$H$12*Weather!CB$21+AY12*Control!$H$13*Prices!BP$15+ AY12*Control!$H$14*Prices!BP$17","v":41.595619194463765},{"$f":"AZ12+AZ12*Control!$H$12*Weather!CC$21+AZ12*Control!$H$13*Prices!BQ$15+ AZ12*Control!$H$14*Prices!BQ$17","v":40.786487026746265},{"$f":"BA12+BA12*Control!$H$12*Weather!CD$21+BA12*Control!$H$13*Prices!BR$15+ BA12*Control!$H$14*Prices!BR$17","v":39.915467810439402},{"$f":"BB12+BB12*Control!$H$12*Weather!CE$21+BB12*Control!$H$13*Prices!BS$15+ BB12*Control!$H$14*Prices!BS$17","v":38.972708440755596},{"$f":"BC12+BC12*Control!$H$12*Weather!CF$21+BC12*Control!$H$13*Prices!BT$15+ BC12*Control!$H$14*Prices!BT$17","v":37.947625093136658},{"$f":"BD12+BD12*Control!$H$12*Weather!CG$21+BD12*Control!$H$13*Prices!BU$15+ BD12*Control!$H$14*Prices!BU$17","v":36.837462896500085},{"$f":"BE12+BE12*Control!$H$12*Weather!CH$21+BE12*Control!$H$13*Prices!BV$15+ BE12*Control!$H$14*Prices!BV$17","v":35.645171232509348},{"$f":"BF12+BF12*Control!$H$12*Weather!CI$21+BF12*Control!$H$13*Prices!BW$15+ BF12*Control!$H$14*Prices!BW$17","v":34.374115327329271},{"$f":"BG12+BG12*Control!$H$12*Weather!CJ$21+BG12*Control!$H$13*Prices!BX$15+ BG12*Control!$H$14*Prices!BX$17","v":33.022636691182072},{"$f":"BH12+BH12*Control!$H$12*Weather!CK$21+BH12*Control!$H$13*Prices!BY$15+ BH12*Control!$H$14*Prices!BY$17","v":31.584375024258396},{"$f":"BI12+BI12*Control!$H$12*Weather!CL$21+BI12*Control!$H$13*Prices!BZ$15+ BI12*Control!$H$14*Prices!BZ$17","v":30.049956882688033},{"$f":"BJ12+BJ12*Control!$H$12*Weather!CM$21+BJ12*Control!$H$13*Prices!CA$15+ BJ12*Control!$H$14*Prices!CA$17","v":28.409815658057724},{"$f":"BK12+BK12*Control!$H$12*Weather!CN$21+BK12*Control!$H$13*Prices!CB$15+ BK12*Control!$H$14*Prices!CB$17","v":26.973341661160518},{"$f":"BL12+BL12*Control!$H$12*Weather!CO$21+BL12*Control!$H$13*Prices!CC$15+ BL12*Control!$H$14*Prices!CC$17","v":25.781966978758476},{"$f":"BM12+BM12*Control!$H$12*Weather!CP$21+BM12*Control!$H$13*Prices!CD$15+ BM12*Control!$H$14*Prices!CD$17","v":24.67533443278656},{"$f":"BN12+BN12*Control!$H$12*Weather!CQ$21+BN12*Control!$H$13*Prices!CE$15+ BN12*Control!$H$14*Prices!CE$17","v":23.54588617285351},{"$f":"BO12+BO12*Control!$H$12*Weather!CR$21+BO12*Control!$H$13*Prices!CF$15+ BO12*Control!$H$14*Prices!CF$17","v":22.334493479508215},{"$f":"BP12+BP12*Control!$H$12*Weather!CS$21+BP12*Control!$H$13*Prices!CG$15+ BP12*Control!$H$14*Prices!CG$17","v":20.786706529834216},{"$f":"BQ12+BQ12*Control!$H$12*Weather!CT$21+BQ12*Control!$H$13*Prices!CH$15+ BQ12*Control!$H$14*Prices!CH$17","v":18.839501496595609},{"$f":"BR12+BR12*Control!$H$12*Weather!CU$21+BR12*Control!$H$13*Prices!CI$15+ BR12*Control!$H$14*Prices!CI$17","v":16.495940577504015},{"$f":"BS12+BS12*Control!$H$12*Weather!CV$21+BS12*Control!$H$13*Prices!CJ$15+ BS12*Control!$H$14*Prices!CJ$17","v":26.215794462285814},{"$f":"BT12+BT12*Control!$H$12*Weather!CW$21+BT12*Control!$H$13*Prices!CK$15+ BT12*Control!$H$14*Prices!CK$17","v":26.147707148132373},{"$f":"BU12+BU12*Control!$H$12*Weather!CX$21+BU12*Control!$H$13*Prices!CL$15+ BU12*Control!$H$14*Prices!CL$17","v":26.079444849149979},{"$f":"BV12+BV12*Control!$H$12*Weather!CY$21+BV12*Control!$H$13*Prices!CM$15+ BV12*Control!$H$14*Prices!CM$17","v":26.011005396053456},{"$f":"BW12+BW12*Control!$H$12*Weather!CZ$21+BW12*Control!$H$13*Prices!CN$15+ BW12*Control!$H$14*Prices!CN$17","v":25.942386583550405},{"$f":"BX12+BX12*Control!$H$12*Weather!DA$21+BX12*Control!$H$13*Prices!CO$15+ BX12*Control!$H$14*Prices!CO$17","v":25.87358616950214},{"$f":"BY12+BY12*Control!$H$12*Weather!DB$21+BY12*Control!$H$13*Prices!CP$15+ BY12*Control!$H$14*Prices!CP$17","v":25.804601874059678},{"$f":"BZ12+BZ12*Control!$H$12*Weather!DC$21+BZ12*Control!$H$13*Prices!CQ$15+ BZ12*Control!$H$14*Prices!CQ$17","v":25.735431378773875},{"$f":"CA12+CA12*Control!$H$12*Weather!DD$21+CA12*Control!$H$13*Prices!CR$15+ CA12*Control!$H$14*Prices!CR$17","v":25.666072325678758},{"$f":"CB12+CB12*Control!$H$12*Weather!DE$21+CB12*Control!$H$13*Prices!CS$15+ CB12*Control!$H$14*Prices!CS$17","v":25.59652231634708},{"$f":"CC12+CC12*Control!$H$12*Weather!DF$21+CC12*Control!$H$13*Prices!CT$15+ CC12*Control!$H$14*Prices!CT$17","v":25.52677891091707},{"$f":"CD12+CD12*Control!$H$12*Weather!DG$21+CD12*Control!$H$13*Prices!CU$15+ CD12*Control!$H$14*Prices!CU$17","v":25.456839627089266},{"$f":"CE12+CE12*Control!$H$12*Weather!DH$21+CE12*Control!$H$13*Prices!CV$15+ CE12*Control!$H$14*Prices!CV$17","v":25.386701939092369},{"$f":"CF12+CF12*Control!$H$12*Weather!DI$21+CF12*Control!$H$13*Prices!CW$15+ CF12*Control!$H$14*Prices!CW$17","v":25.316363276616915},{"$f":"CG12+CG12*Control!$H$12*Weather!DJ$21+CG12*Control!$H$13*Prices!CX$15+ CG12*Control!$H$14*Prices!CX$17","v":25.245821023715525},{"$f":"CH12+CH12*Control!$H$12*Weather!DK$21+CH12*Control!$H$13*Prices!CY$15+ CH12*Control!$H$14*Prices!CY$17","v":25.175072517668482},{"$f":"CI12+CI12*Control!$H$12*Weather!DL$21+CI12*Control!$H$13*Prices!CZ$15+ CI12*Control!$H$14*Prices!CZ$17","v":25.104115047813305},{"$f":"CJ12+CJ12*Control!$H$12*Weather!DM$21+CJ12*Control!$H$13*Prices!DA$15+ CJ12*Control!$H$14*Prices!DA$17","v":25.032945854336873},{"$f":"CK12+CK12*Control!$H$12*Weather!DN$21+CK12*Control!$H$13*Prices!DB$15+ CK12*Control!$H$14*Prices!DB$17","v":25.171211817792173}]
["Manningham (C)",{"$f":"'Volume per connection'!B59","v":33.404750870343349},{"$f":"'Volume per connection'!C59","v":60.860785426826396},{"$f":"'Volume per connection'!D59","v":72.847237237381123},{"$f":"'Volume per connection'!E59","v":69.96790190175841},{"$f":"'Volume per connection'!F59","v":68.601998026018506},{"$f":"'Volume per connection'!G59","v":73.468488520016081},{"$f":"'Volume per connection'!H59","v":70.14035495816438},{"$f":"'Volume per connection'!I59","v":67.076544173303304},{"$f":"'Volume per connection'!J59","v":71.592683651269837},{"$f":"J13+J13*Control!$H$12*Weather!AM$21+J13*Control!$H$13*Prices!AA$15+ J13*Control!$H$14*Prices!AA$17","v":69.408972573435364},{"$f":"K13+K13*Control!$H$12*Weather!AN$21+K13*Control!$H$13*Prices!AB$15+ K13*Control!$H$14*Prices!AB$17","v":66.044084716728705},{"$f":"L13+L13*Control!$H$12*Weather!AO$21+L13*Control!$H$13*Prices!AC$15+ L13*Control!$H$14*Prices!AC$17","v":68.950172536935483},{"$f":"M13+M13*Control!$H$12*Weather!AP$21+M13*Control!$H$13*Prices!AD$15+ M13*Control!$H$14*Prices!AD$17","v":69.679022836020735},{"$f":"N13+N13*Control!$H$12*Weather!AQ$21+N13*Control!$H$13*Prices!AE$15+ N13*Control!$H$14*Prices!AE$17","v":71.347756921084667},{"$f":"O13+O13*Control!$H$12*Weather!AR$21+O13*Control!$H$13*Prices!AF$15+ O13*Control!$H$14*Prices!AF$17","v":71.589468483363191},{"$f":"P13+P13*Control!$H$12*Weather!AS$21+P13*Control!$H$13*Prices!AG$15+ P13*Control!$H$14*Prices!AG$17","v":70.191341269053609},{"$f":"Q13+Q13*Control!$H$12*Weather!AT$21+Q13*Control!$H$13*Prices!AH$15+ Q13*Control!$H$14*Prices!AH$17","v":66.736328450033938},{"$f":"R13+R13*Control!$H$12*Weather!AU$21+R13*Control!$H$13*Prices!AI$15+ R13*Control!$H$14*Prices!AI$17","v":63.973786413707039},{"$f":"S13+S13*Control!$H$12*Weather!AV$21+S13*Control!$H$13*Prices!AJ$15+ S13*Control!$H$14*Prices!AJ$17","v":62.511235328826139},{"$f":"T13+T13*Control!$H$12*Weather!AW$21+T13*Control!$H$13*Prices!AK$15+ T13*Control!$H$14*Prices!AK$17","v":66.738972101065485},{"$f":"U13+U13*Control!$H$12*Weather!AX$21+U13*Control!$H$13*Prices!AL$15+ U13*Control!$H$14*Prices!AL$17","v":67.456674282978639},{"$f":"V13+V13*Control!$H$12*Weather!AY$21+V13*Control!$H$13*Prices!AM$15+ V13*Control!$H$14*Prices!AM$17","v":66.721168275260595},{"$f":"W13+W13*Control!$H$12*Weather!AZ$21+W13*Control!$H$13*Prices!AN$15+ W13*Control!$H$14*Prices!AN$17","v":65.489576413430569},{"$f":"X13+X13*Control!$H$12*Weather!BA$21+X13*Control!$H$13*Prices!AO$15+ X13*Control!$H$14*Prices!AO$17","v":63.569401278710991},{"$f":"Y13+Y13*Control!$H$12*Weather!BB$21+Y13*Control!$H$13*Prices!AP$15+ Y13*Control!$H$14*Prices!AP$17","v":62.59548582314892},{"$f":"Z13+Z13*Control!$H$12*Weather!BC$21+Z13*Control!$H$13*Prices!AQ$15+ Z13*Control!$H$14*Prices!AQ$17","v":60.904481318326653},{"$f":"AA13+AA13*Control!$H$12*Weather!BD$21+AA13*Control!$H$13*Prices!AR$15+ AA13*Control!$H$14*Prices!AR$17","v":60.292793832467986},{"$f":"AB13+AB13*Control!$H$12*Weather!BE$21+AB13*Control!$H$13*Prices!AS$15+ AB13*Control!$H$14*Prices!AS$17","v":59.715062169322124},{"$f":"AC13+AC13*Control!$H$12*Weather!BF$21+AC13*Control!$H$13*Prices!AT$15+ AC13*Control!$H$14*Prices!AT$17","v":59.75957316011197},{"$f":"AD13+AD13*Control!$H$12*Weather!BG$21+AD13*Control!$H$13*Prices!AU$15+ AD13*Control!$H$14*Prices!AU$17","v":59.505428533276834},{"$f":"AE13+AE13*Control!$H$12*Weather!BH$21+AE13*Control!$H$13*Prices!AV$15+ AE13*Control!$H$14*Prices!AV$17","v":58.204717995195821},{"$f":"AF13+AF13*Control!$H$12*Weather!BI$21+AF13*Control!$H$13*Prices!AW$15+ AF13*Control!$H$14*Prices!AW$17","v":56.973961035711056},{"$f":"AG13+AG13*Control!$H$12*Weather!BJ$21+AG13*Control!$H$13*Prices!AX$15+ AG13*Control!$H$14*Prices!AX$17","v":56.355064537021427},{"$f":"AH13+AH13*Control!$H$12*Weather!BK$21+AH13*Control!$H$13*Prices!AY$15+ AH13*Control!$H$14*Prices!AY$17","v":55.77805025200459},{"$f":"AI13+AI13*Control!$H$12*Weather!BL$21+AI13*Control!$H$13*Prices!AZ$15+ AI13*Control!$H$14*Prices!AZ$17","v":55.096869324386034},{"$f":"AJ13+AJ13*Control!$H$12*Weather!BM$21+AJ13*Control!$H$13*Prices!BA$15+ AJ13*Control!$H$14*Prices!BA$17","v":54.467367150863012},{"$f":"AK13+AK13*Control!$H$12*Weather!BN$21+AK13*Control!$H$13*Prices!BB$15+ AK13*Control!$H$14*Prices!BB$17","v":53.907552988811858},{"$f":"AL13+AL13*Control!$H$12*Weather!BO$21+AL13*Control!$H$13*Prices!BC$15+ AL13*Control!$H$14*Prices!BC$17","v":53.346950421802511},{"$f":"AM13+AM13*Control!$H$12*Weather!BP$21+AM13*Control!$H$13*Prices!BD$15+ AM13*Control!$H$14*Prices!BD$17","v":52.562222618325578},{"$f":"AN13+AN13*Control!$H$12*Weather!BQ$21+AN13*Control!$H$13*Prices!BE$15+ AN13*Control!$H$14*Prices!BE$17","v":51.881766371291491},{"$f":"AO13+AO13*Control!$H$12*Weather!BR$21+AO13*Control!$H$13*Prices!BF$15+ AO13*Control!$H$14*Prices!BF$17","v":50.935419525905367},{"$f":"AP13+AP13*Control!$H$12*Weather!BS$21+AP13*Control!$H$13*Prices!BG$15+ AP13*Control!$H$14*Prices!BG$17","v":50.148560606060727},{"$f":"AQ13+AQ13*Control!$H$12*Weather!BT$21+AQ13*Control!$H$13*Prices!BH$15+ AQ13*Control!$H$14*Prices!BH$17","v":49.441872621597433},{"$f":"AR13+AR13*Control!$H$12*Weather!BU$21+AR13*Control!$H$13*Prices!BI$15+ AR13*Control!$H$14*Prices!BI$17","v":48.718229830750808},{"$f":"AS13+AS13*Control!$H$12*Weather!BV$21+AS13*Control!$H$13*Prices!BJ$15+ AS13*Control!$H$14*Prices!BJ$17","v":50.656682639801247},{"$f":"AT13+AT13*Control!$H$12*Weather!BW$21+AT13*Control!$H$13*Prices!BK$15+ AT13*Control!$H$14*Prices!BK$17","v":50.920487982143705},{"$f":"AU13+AU13*Control!$H$12*Weather!BX$21+AU13*Control!$H$13*Prices!BL$15+ AU13*Control!$H$14*Prices!BL$17","v":50.212980031525689},{"$f":"AV13+AV13*Control!$H$12*Weather!BY$21+AV13*Control!$H$13*Prices!BM$15+ AV13*Control!$H$14*Prices!BM$17","v":49.359386240714798},{"$f":"AW13+AW13*Control!$H$12*Weather!BZ$21+AW13*Control!$H$13*Prices!BN$15+ AW13*Control!$H$14*Prices!BN$17","v":48.571733676422468},{"$f":"AX13+AX13*Control!$H$12*Weather!CA$21+AX13*Control!$H$13*Prices!BO$15+ AX13*Control!$H$14*Prices!BO$17","v":47.773734203580226},{"$f":"AY13+AY13*Control!$H$12*Weather!CB$21+AY13*Control!$H$13*Prices!BP$15+ AY13*Control!$H$14*Prices!BP$17","v":46.923816631142294},{"$f":"AZ13+AZ13*Control!$H$12*Weather!CC$21+AZ13*Control!$H$13*Prices!BQ$15+ AZ13*Control!$H$14*Prices!BQ$17","v":46.011038550094092},{"$f":"BA13+BA13*Control!$H$12*Weather!CD$21+BA13*Control!$H$13*Prices!BR$15+ BA13*Control!$H$14*Prices!BR$17","v":45.028445989153823},{"$f":"BB13+BB13*Control!$H$12*Weather!CE$21+BB13*Control!$H$13*Prices!BS$15+ BB13*Control!$H$14*Prices!BS$17","v":43.964923708513702},{"$f":"BC13+BC13*Control!$H$12*Weather!CF$21+BC13*Control!$H$13*Prices!BT$15+ BC13*Control!$H$14*Prices!BT$17","v":42.808532146930446},{"$f":"BD13+BD13*Control!$H$12*Weather!CG$21+BD13*Control!$H$13*Prices!BU$15+ BD13*Control!$H$14*Prices!BU$17","v":41.556163547673385},{"$f":"BE13+BE13*Control!$H$12*Weather!CH$21+BE13*Control!$H$13*Prices!BV$15+ BE13*Control!$H$14*Prices!BV$17","v":40.211145093917871},{"$f":"BF13+BF13*Control!$H$12*Weather!CI$21+BF13*Control!$H$13*Prices!BW$15+ BF13*Control!$H$14*Prices!BW$17","v":38.777273081007948},{"$f":"BG13+BG13*Control!$H$12*Weather!CJ$21+BG13*Control!$H$13*Prices!BX$15+ BG13*Control!$H$14*Prices!BX$17","v":37.25267657465475},{"$f":"BH13+BH13*Control!$H$12*Weather!CK$21+BH13*Control!$H$13*Prices!BY$15+ BH13*Control!$H$14*Prices!BY$17","v":35.630180551436268},{"$f":"BI13+BI13*Control!$H$12*Weather!CL$21+BI13*Control!$H$13*Prices!BZ$15+ BI13*Control!$H$14*Prices!BZ$17","v":33.899210874703371},{"$f":"BJ13+BJ13*Control!$H$12*Weather!CM$21+BJ13*Control!$H$13*Prices!CA$15+ BJ13*Control!$H$14*Prices!CA$17","v":32.048975499821076},{"$f":"BK13+BK13*Control!$H$12*Weather!CN$21+BK13*Control!$H$13*Prices!CB$15+ BK13*Control!$H$14*Prices!CB$17","v":30.428496138504585},{"$f":"BL13+BL13*Control!$H$12*Weather!CO$21+BL13*Control!$H$13*Prices!CC$15+ BL13*Control!$H$14*Prices!CC$17","v":29.08451212723978},{"$f":"BM13+BM13*Control!$H$12*Weather!CP$21+BM13*Control!$H$13*Prices!CD$15+ BM13*Control!$H$14*Prices!CD$17","v":27.836125309808974},{"$f":"BN13+BN13*Control!$H$12*Weather!CQ$21+BN13*Control!$H$13*Prices!CE$15+ BN13*Control!$H$14*Prices!CE$17","v":26.562000195919214},{"$f":"BO13+BO13*Control!$H$12*Weather!CR$21+BO13*Control!$H$13*Prices!CF$15+ BO13*Control!$H$14*Prices!CF$17","v":25.195433963425049},{"$f":"BP13+BP13*Control!$H$12*Weather!CS$21+BP13*Control!$H$13*Prices!CG$15+ BP13*Control!$H$14*Prices!CG$17","v":23.449382998994537},{"$f":"BQ13+BQ13*Control!$H$12*Weather!CT$21+BQ13*Control!$H$13*Prices!CH$15+ BQ13*Control!$H$14*Prices!CH$17","v":21.252750428248078},{"$f":"BR13+BR13*Control!$H$12*Weather!CU$21+BR13*Control!$H$13*Prices!CI$15+ BR13*Control!$H$14*Prices!CI$17","v":18.608990701598742},{"$f":"BS13+BS13*Control!$H$12*Weather!CV$21+BS13*Control!$H$13*Prices!CJ$15+ BS13*Control!$H$14*Prices!CJ$17","v":29.573910811063101},{"$f":"BT13+BT13*Control!$H$12*Weather!CW$21+BT13*Control!$H$13*Prices!CK$15+ BT13*Control!$H$14*Prices!CK$17","v":29.49710184160633},{"$f":"BU13+BU13*Control!$H$12*Weather!CX$21+BU13*Control!$H$13*Prices!CL$15+ BU13*Control!$H$14*Prices!CL$17","v":29.420095472611191},{"$f":"BV13+BV13*Control!$H$12*Weather!CY$21+BV13*Control!$H$13*Prices!CM$15+ BV13*Control!$H$14*Prices!CM$17","v":29.342889256917584},{"$f":"BW13+BW13*Control!$H$12*Weather!CZ$21+BW13*Control!$H$13*Prices!CN$15+ BW13*Control!$H$14*Prices!CN$17","v":29.265480706745826},{"$f":"BX13+BX13*Control!$H$12*Weather!DA$21+BX13*Control!$H$13*Prices!CO$15+ BX13*Control!$H$14*Prices!CO$17","v":29.187867292750127},{"$f":"BY13+BY13*Control!$H$12*Weather!DB$21+BY13*Control!$H$13*Prices!CP$15+ BY13*Control!$H$14*Prices!CP$17","v":29.110046443043881},{"$f":"BZ13+BZ13*Control!$H$12*Weather!DC$21+BZ13*Control!$H$13*Prices!CQ$15+ BZ13*Control!$H$14*Prices!CQ$17","v":29.032015542195833},{"$f":"CA13+CA13*Control!$H$12*Weather!DD$21+CA13*Control!$H$13*Prices!CR$15+ CA13*Control!$H$14*Prices!CR$17","v":28.953771930195991},{"$f":"CB13+CB13*Control!$H$12*Weather!DE$21+CB13*Control!$H$13*Prices!CS$15+ CB13*Control!$H$14*Prices!CS$17","v":28.875312901390188},{"$f":"CC13+CC13*Control!$H$12*Weather!DF$21+CC13*Control!$H$13*Prices!CT$15+ CC13*Control!$H$14*Prices!CT$17","v":28.796635703382162},{"$f":"CD13+CD13*Control!$H$12*Weather!DG$21+CD13*Control!$H$13*Prices!CU$15+ CD13*Control!$H$14*Prices!CU$17","v":28.717737535901914},{"$f":"CE13+CE13*Control!$H$12*Weather!DH$21+CE13*Control!$H$13*Prices!CV$15+ CE13*Control!$H$14*Prices!CV$17","v":28.638615549639077},{"$f":"CF13+CF13*Control!$H$12*Weather!DI$21+CF13*Control!$H$13*Prices!CW$15+ CF13*Control!$H$14*Prices!CW$17","v":28.559266845039982},{"$f":"CG13+CG13*Control!$H$12*Weather!DJ$21+CG13*Control!$H$13*Prices!CX$15+ CG13*Control!$H$14*Prices!CX$17","v":28.479688471067057},{"$f":"CH13+CH13*Control!$H$12*Weather!DK$21+CH13*Control!$H$13*Prices!CY$15+ CH13*Control!$H$14*Prices!CY$17","v":28.399877423919079},{"$f":"CI13+CI13*Control!$H$12*Weather!DL$21+CI13*Control!$H$13*Prices!CZ$15+ CI13*Control!$H$14*Prices!CZ$17","v":28.319830645710823},{"$f":"CJ13+CJ13*Control!$H$12*Weather!DM$21+CJ13*Control!$H$13*Prices!DA$15+ CJ13*Control!$H$14*Prices!DA$17","v":28.23954502311048},{"$f":"CK13+CK13*Control!$H$12*Weather!DN$21+CK13*Control!$H$13*Prices!DB$15+ CK13*Control!$H$14*Prices!DB$17","v":28.395522187079909}]
["Maroondah (C)",{"$f":"'Volume per connection'!B60","v":29.247477195299346},{"$f":"'Volume per connection'!C60","v":54.054929161514323},{"$f":"'Volume per connection'!D60","v":63.368539573820399},{"$f":"'Volume per connection'!E60","v":61.813828041901694},{"$f":"'Volume per connection'!F60","v":60.371920882555493},{"$f":"'Volume per connection'!G60","v":65.062593225671137},{"$f":"'Volume per connection'!H60","v":61.968200558192919},{"$f":"'Volume per connection'!I60","v":59.630914244223739},{"$f":"'Volume per connection'!J60","v":64.455624045458052},{"$f":"J14+J14*Control!$H$12*Weather!AM$21+J14*Control!$H$13*Prices!AA$15+ J14*Control!$H$14*Prices!AA$17","v":62.489606666609532},{"$f":"K14+K14*Control!$H$12*Weather!AN$21+K14*Control!$H$13*Prices!AB$15+ K14*Control!$H$14*Prices!AB$17","v":59.46016377404429},{"$f":"L14+L14*Control!$H$12*Weather!AO$21+L14*Control!$H$13*Prices!AC$15+ L14*Control!$H$14*Prices!AC$17","v":62.076544309445687},{"$f":"M14+M14*Control!$H$12*Weather!AP$21+M14*Control!$H$13*Prices!AD$15+ M14*Control!$H$14*Prices!AD$17","v":62.732735675201617},{"$f":"N14+N14*Control!$H$12*Weather!AQ$21+N14*Control!$H$13*Prices!AE$15+ N14*Control!$H$14*Prices!AE$17","v":64.235114009594653},{"$f":"O14+O14*Control!$H$12*Weather!AR$21+O14*Control!$H$13*Prices!AF$15+ O14*Control!$H$14*Prices!AF$17","v":64.452729396965125},{"$f":"P14+P14*Control!$H$12*Weather!AS$21+P14*Control!$H$13*Prices!AG$15+ P14*Control!$H$14*Prices!AG$17","v":63.193981191181607},{"$f":"Q14+Q14*Control!$H$12*Weather!AT$21+Q14*Control!$H$13*Prices!AH$15+ Q14*Control!$H$14*Prices!AH$17","v":60.083397874879005},{"$f":"R14+R14*Control!$H$12*Weather!AU$21+R14*Control!$H$13*Prices!AI$15+ R14*Control!$H$14*Prices!AI$17","v":57.596253074292918},{"$f":"S14+S14*Control!$H$12*Weather!AV$21+S14*Control!$H$13*Prices!AJ$15+ S14*Control!$H$14*Prices!AJ$17","v":56.279503400072713},{"$f":"T14+T14*Control!$H$12*Weather!AW$21+T14*Control!$H$13*Prices!AK$15+ T14*Control!$H$14*Prices!AK$17","v":60.085777980894136},{"$f":"U14+U14*Control!$H$12*Weather!AX$21+U14*Control!$H$13*Prices!AL$15+ U14*Control!$H$14*Prices!AL$17","v":60.731932582938846},{"$f":"V14+V14*Control!$H$12*Weather!AY$21+V14*Control!$H$13*Prices!AM$15+ V14*Control!$H$14*Prices!AM$17","v":60.069749014746691},{"$f":"W14+W14*Control!$H$12*Weather!AZ$21+W14*Control!$H$13*Prices!AN$15+ W14*Control!$H$14*Prices!AN$17","v":58.960934287110007},{"$f":"X14+X14*Control!$H$12*Weather!BA$21+X14*Control!$H$13*Prices!AO$15+ X14*Control!$H$14*Prices!AO$17","v":57.232181008523746},{"$f":"Y14+Y14*Control!$H$12*Weather!BB$21+Y14*Control!$H$13*Prices!AP$15+ Y14*Control!$H$14*Prices!AP$17","v":56.355354980300731},{"$f":"Z14+Z14*Control!$H$12*Weather!BC$21+Z14*Control!$H$13*Prices!AQ$15+ Z14*Control!$H$14*Prices!AQ$17","v":54.83292635962048},{"$f":"AA14+AA14*Control!$H$12*Weather!BD$21+AA14*Control!$H$13*Prices!AR$15+ AA14*Control!$H$14*Prices!AR$17","v":54.282217870833193},{"$f":"AB14+AB14*Control!$H$12*Weather!BE$21+AB14*Control!$H$13*Prices!AS$15+ AB14*Control!$H$14*Prices!AS$17","v":53.762080155919833},{"$f":"AC14+AC14*Control!$H$12*Weather!BF$21+AC14*Control!$H$13*Prices!AT$15+ AC14*Control!$H$14*Prices!AT$17","v":53.802153855380752},{"$f":"AD14+AD14*Control!$H$12*Weather!BG$21+AD14*Control!$H$13*Prices!AU$15+ AD14*Control!$H$14*Prices!AU$17","v":53.573344853049576},{"$f":"AE14+AE14*Control!$H$12*Weather!BH$21+AE14*Control!$H$13*Prices!AV$15+ AE14*Control!$H$14*Prices!AV$17","v":52.402301875489279},{"$f":"AF14+AF14*Control!$H$12*Weather!BI$21+AF14*Control!$H$13*Prices!AW$15+ AF14*Control!$H$14*Prices!AW$17","v":51.294238818958306},{"$f":"AG14+AG14*Control!$H$12*Weather!BJ$21+AG14*Control!$H$13*Prices!AX$15+ AG14*Control!$H$14*Prices!AX$17","v":50.737039982315991},{"$f":"AH14+AH14*Control!$H$12*Weather!BK$21+AH14*Control!$H$13*Prices!AY$15+ AH14*Control!$H$14*Prices!AY$17","v":50.217548130256546},{"$f":"AI14+AI14*Control!$H$12*Weather!BL$21+AI14*Control!$H$13*Prices!AZ$15+ AI14*Control!$H$14*Prices!AZ$17","v":49.604273986331656},{"$f":"AJ14+AJ14*Control!$H$12*Weather!BM$21+AJ14*Control!$H$13*Prices!BA$15+ AJ14*Control!$H$14*Prices!BA$17","v":49.037526752353941},{"$f":"AK14+AK14*Control!$H$12*Weather!BN$21+AK14*Control!$H$13*Prices!BB$15+ AK14*Control!$H$14*Prices!BB$17","v":48.533520346612057},{"$f":"AL14+AL14*Control!$H$12*Weather!BO$21+AL14*Control!$H$13*Prices!BC$15+ AL14*Control!$H$14*Prices!BC$17","v":48.028804131836772},{"$f":"AM14+AM14*Control!$H$12*Weather!BP$21+AM14*Control!$H$13*Prices!BD$15+ AM14*Control!$H$14*Prices!BD$17","v":47.322305678373226},{"$f":"AN14+AN14*Control!$H$12*Weather!BQ$21+AN14*Control!$H$13*Prices!BE$15+ AN14*Control!$H$14*Prices!BE$17","v":46.709683971777451},{"$f":"AO14+AO14*Control!$H$12*Weather!BR$21+AO14*Control!$H$13*Prices!BF$15+ AO14*Control!$H$14*Prices!BF$17","v":45.857678244768621},{"$f":"AP14+AP14*Control!$H$12*Weather!BS$21+AP14*Control!$H$13*Prices!BG$15+ AP14*Control!$H$14*Prices!BG$17","v":45.149261125480741},{"$f":"AQ14+AQ14*Control!$H$12*Weather!BT$21+AQ14*Control!$H$13*Prices!BH$15+ AQ14*Control!$H$14*Prices!BH$17","v":44.513022717854007},{"$f":"AR14+AR14*Control!$H$12*Weather!BU$21+AR14*Control!$H$13*Prices!BI$15+ AR14*Control!$H$14*Prices!BI$17","v":43.861519724933459},{"$f":"AS14+AS14*Control!$H$12*Weather!BV$21+AS14*Control!$H$13*Prices!BJ$15+ AS14*Control!$H$14*Prices!BJ$17","v":45.606728580333048},{"$f":"AT14+AT14*Control!$H$12*Weather!BW$21+AT14*Control!$H$13*Prices!BK$15+ AT14*Control!$H$14*Prices!BK$17","v":45.844235223470413},{"$f":"AU14+AU14*Control!$H$12*Weather!BX$21+AU14*Control!$H$13*Prices!BL$15+ AU14*Control!$H$14*Prices!BL$17","v":45.207258591942804},{"$f":"AV14+AV14*Control!$H$12*Weather!BY$21+AV14*Control!$H$13*Prices!BM$15+ AV14*Control!$H$14*Prices!BM$17","v":44.438759386967575},{"$f":"AW14+AW14*Control!$H$12*Weather!BZ$21+AW14*Control!$H$13*Prices!BN$15+ AW14*Control!$H$14*Prices!BN$17","v":43.729627741480407},{"$f":"AX14+AX14*Control!$H$12*Weather!CA$21+AX14*Control!$H$13*Prices!BO$15+ AX14*Control!$H$14*Prices!BO$17","v":43.011180668584842},{"$f":"AY14+AY14*Control!$H$12*Weather!CB$21+AY14*Control!$H$13*Prices!BP$15+ AY14*Control!$H$14*Prices!BP$17","v":42.245991200544616},{"$f":"AZ14+AZ14*Control!$H$12*Weather!CC$21+AZ14*Control!$H$13*Prices!BQ$15+ AZ14*Control!$H$14*Prices!BQ$17","v":41.42420777480298},{"$f":"BA14+BA14*Control!$H$12*Weather!CD$21+BA14*Control!$H$13*Prices!BR$15+ BA14*Control!$H$14*Prices!BR$17","v":40.53956966001558},{"$f":"BB14+BB14*Control!$H$12*Weather!CE$21+BB14*Control!$H$13*Prices!BS$15+ BB14*Control!$H$14*Prices!BS$17","v":39.582069692297971},{"$f":"BC14+BC14*Control!$H$12*Weather!CF$21+BC14*Control!$H$13*Prices!BT$15+ BC14*Control!$H$14*Prices!BT$17","v":38.540958562761084},{"$f":"BD14+BD14*Control!$H$12*Weather!CG$21+BD14*Control!$H$13*Prices!BU$15+ BD14*Control!$H$14*Prices!BU$17","v":37.413438326290404},{"$f":"BE14+BE14*Control!$H$12*Weather!CH$21+BE14*Control!$H$13*Prices!BV$15+ BE14*Control!$H$14*Prices!BV$17","v":36.202504479868921},{"$f":"BF14+BF14*Control!$H$12*Weather!CI$21+BF14*Control!$H$13*Prices!BW$15+ BF14*Control!$H$14*Prices!BW$17","v":34.911574866954673},{"$f":"BG14+BG14*Control!$H$12*Weather!CJ$21+BG14*Control!$H$13*Prices!BX$15+ BG14*Control!$H$14*Prices!BX$17","v":33.53896506630533},{"$f":"BH14+BH14*Control!$H$12*Weather!CK$21+BH14*Control!$H$13*Prices!BY$15+ BH14*Control!$H$14*Prices!BY$17","v":32.0782153310778},{"$f":"BI14+BI14*Control!$H$12*Weather!CL$21+BI14*Control!$H$13*Prices!BZ$15+ BI14*Control!$H$14*Prices!BZ$17","v":30.519805658085954},{"$f":"BJ14+BJ14*Control!$H$12*Weather!CM$21+BJ14*Control!$H$13*Prices!CA$15+ BJ14*Control!$H$14*Prices!CA$17","v":28.85401985935923},{"$f":"BK14+BK14*Control!$H$12*Weather!CN$21+BK14*Control!$H$13*Prices!CB$15+ BK14*Control!$H$14*Prices!CB$17","v":27.395085745431974},{"$f":"BL14+BL14*Control!$H$12*Weather!CO$21+BL14*Control!$H$13*Prices!CC$15+ BL14*Control!$H$14*Prices!CC$17","v":26.185083218146431},{"$f":"BM14+BM14*Control!$H$12*Weather!CP$21+BM14*Control!$H$13*Prices!CD$15+ BM14*Control!$H$14*Prices!CD$17","v":25.061147820507532},{"$f":"BN14+BN14*Control!$H$12*Weather!CQ$21+BN14*Control!$H$13*Prices!CE$15+ BN14*Control!$H$14*Prices!CE$17","v":23.914039971781175},{"$f":"BO14+BO14*Control!$H$12*Weather!CR$21+BO14*Control!$H$13*Prices!CF$15+ BO14*Control!$H$14*Prices!CF$17","v":22.683706440160595},{"$f":"BP14+BP14*Control!$H$12*Weather!CS$21+BP14*Control!$H$13*Prices!CG$15+ BP14*Control!$H$14*Prices!CG$17","v":21.11171892987614},{"$f":"BQ14+BQ14*Control!$H$12*Weather!CT$21+BQ14*Control!$H$13*Prices!CH$15+ BQ14*Control!$H$14*Prices!CH$17","v":19.134068199031795},{"$f":"BR14+BR14*Control!$H$12*Weather!CU$21+BR14*Control!$H$13*Prices!CI$15+ BR14*Control!$H$14*Prices!CI$17","v":16.753864324604049},{"$f":"BS14+BS14*Control!$H$12*Weather!CV$21+BS14*Control!$H$13*Prices!CJ$15+ BS14*Control!$H$14*Prices!CJ$17","v":26.625693849904735},{"$f":"BT14+BT14*Control!$H$12*Weather!CW$21+BT14*Control!$H$13*Prices!CK$15+ BT14*Control!$H$14*Prices!CK$17","v":26.556541950490821},{"$f":"BU14+BU14*Control!$H$12*Weather!CX$21+BU14*Control!$H$13*Prices!CL$15+ BU14*Control!$H$14*Prices!CL$17","v":26.487212330257087},{"$f":"BV14+BV14*Control!$H$12*Weather!CY$21+BV14*Control!$H$13*Prices!CM$15+ BV14*Control!$H$14*Prices!CM$17","v":26.417702786000305},{"$f":"BW14+BW14*Control!$H$12*Weather!CZ$21+BW14*Control!$H$13*Prices!CN$15+ BW14*Control!$H$14*Prices!CN$17","v":26.348011077947032},{"$f":"BX14+BX14*Control!$H$12*Weather!DA$21+BX14*Control!$H$13*Prices!CO$15+ BX14*Control!$H$14*Prices!CO$17","v":26.278134928901419},{"$f":"BY14+BY14*Control!$H$12*Weather!DB$21+BY14*Control!$H$13*Prices!CP$15+ BY14*Control!$H$14*Prices!CP$17","v":26.208072023367706},{"$f":"BZ14+BZ14*Control!$H$12*Weather!DC$21+BZ14*Control!$H$13*Prices!CQ$15+ BZ14*Control!$H$14*Prices!CQ$17","v":26.137820006646429},{"$f":"CA14+CA14*Control!$H$12*Weather!DD$21+CA14*Control!$H$13*Prices!CR$15+ CA14*Control!$H$14*Prices!CR$17","v":26.067376483903431},{"$f":"CB14+CB14*Control!$H$12*Weather!DE$21+CB14*Control!$H$13*Prices!CS$15+ CB14*Control!$H$14*Prices!CS$17","v":25.996739019210636},{"$f":"CC14+CC14*Control!$H$12*Weather!DF$21+CC14*Control!$H$13*Prices!CT$15+ CC14*Control!$H$14*Prices!CT$17","v":25.925905134557599},{"$f":"CD14+CD14*Control!$H$12*Weather!DG$21+CD14*Control!$H$13*Prices!CU$15+ CD14*Control!$H$14*Prices!CU$17","v":25.854872308832647},{"$f":"CE14+CE14*Control!$H$12*Weather!DH$21+CE14*Control!$H$13*Prices!CV$15+ CE14*Control!$H$14*Prices!CV$17","v":25.783637976772557},{"$f":"CF14+CF14*Control!$H$12*Weather!DI$21+CF14*Control!$H$13*Prices!CW$15+ CF14*Control!$H$14*Prices!CW$17","v":25.712199527879562},{"$f":"CG14+CG14*Control!$H$12*Weather!DJ$21+CG14*Control!$H$13*Prices!CX$15+ CG14*Control!$H$14*Prices!CX$17","v":25.640554305304406},{"$f":"CH14+CH14*Control!$H$12*Weather!DK$21+CH14*Control!$H$13*Prices!CY$15+ CH14*Control!$H$14*Prices!CY$17","v":25.568699604694181},{"$f":"CI14+CI14*Control!$H$12*Weather!DL$21+CI14*Control!$H$13*Prices!CZ$15+ CI14*Control!$H$14*Prices!CZ$17","v":25.496632673003603},{"$f":"CJ14+CJ14*Control!$H$12*Weather!DM$21+CJ14*Control!$H$13*Prices!DA$15+ CJ14*Control!$H$14*Prices!DA$17","v":25.424350707268246},{"$f":"CK14+CK14*Control!$H$12*Weather!DN$21+CK14*Control!$H$13*Prices!DB$15+ CK14*Control!$H$14*Prices!DB$17","v":25.56477854050134}]
["Melbourne (C)",{"$f":"'Volume per connection'!B61","v":69.993237980686885},{"$f":"'Volume per connection'!C61","v":115.51550177231988},{"$f":"'Volume per connection'!D61","v":216.96743592964825},{"$f":"'Volume per connection'!E61","v":185.72969134253452},{"$f":"'Volume per connection'!F61","v":197.87044763092268},{"$f":"'Volume per connection'!G61","v":220.38275453446192},{"$f":"'Volume per connection'!H61","v":206.74000823529414},{"$f":"'Volume per connection'!I61","v":228.19780652680652},{"$f":"'Volume per connection'!J61","v":232.86997693194922},{"$f":"J15+J15*Control!$H$12*Weather!AM$21+J15*Control!$H$13*Prices!AA$15+ J15*Control!$H$14*Prices!AA$17","v":225.76700603623064},{"$f":"K15+K15*Control!$H$12*Weather!AN$21+K15*Control!$H$13*Prices!AB$15+ K15*Control!$H$14*Prices!AB$17","v":214.82201392800457},{"$f":"L15+L15*Control!$H$12*Weather!AO$21+L15*Control!$H$13*Prices!AC$15+ L15*Control!$H$14*Prices!AC$17","v":224.27466424280757},{"$f":"M15+M15*Control!$H$12*Weather!AP$21+M15*Control!$H$13*Prices!AD$15+ M15*Control!$H$14*Prices!AD$17","v":226.64540024093802},{"$f":"N15+N15*Control!$H$12*Weather!AQ$21+N15*Control!$H$13*Prices!AE$15+ N15*Control!$H$14*Prices!AE$17","v":232.0733022006867},{"$f":"O15+O15*Control!$H$12*Weather!AR$21+O15*Control!$H$13*Prices!AF$15+ O15*Control!$H$14*Prices!AF$17","v":232.85951893487365},{"$f":"P15+P15*Control!$H$12*Weather!AS$21+P15*Control!$H$13*Prices!AG$15+ P15*Control!$H$14*Prices!AG$17","v":228.3118216627596},{"$f":"Q15+Q15*Control!$H$12*Weather!AT$21+Q15*Control!$H$13*Prices!AH$15+ Q15*Control!$H$14*Prices!AH$17","v":217.07367951706524},{"$f":"R15+R15*Control!$H$12*Weather!AU$21+R15*Control!$H$13*Prices!AI$15+ R15*Control!$H$14*Prices!AI$17","v":208.08794148541693},{"$f":"S15+S15*Control!$H$12*Weather!AV$21+S15*Control!$H$13*Prices!AJ$15+ S15*Control!$H$14*Prices!AJ$17","v":203.3306922802187},{"$f":"T15+T15*Control!$H$12*Weather!AW$21+T15*Control!$H$13*Prices!AK$15+ T15*Control!$H$14*Prices!AK$17","v":217.0822785375704},{"$f":"U15+U15*Control!$H$12*Weather!AX$21+U15*Control!$H$13*Prices!AL$15+ U15*Control!$H$14*Prices!AL$17","v":219.41675298415254},{"$f":"V15+V15*Control!$H$12*Weather!AY$21+V15*Control!$H$13*Prices!AM$15+ V15*Control!$H$14*Prices!AM$17","v":217.02436792026936},{"$f":"W15+W15*Control!$H$12*Weather!AZ$21+W15*Control!$H$13*Prices!AN$15+ W15*Control!$H$14*Prices!AN$17","v":213.01836124714407},{"$f":"X15+X15*Control!$H$12*Weather!BA$21+X15*Control!$H$13*Prices!AO$15+ X15*Control!$H$14*Prices!AO$17","v":206.77259538780658},{"$f":"Y15+Y15*Control!$H$12*Weather!BB$21+Y15*Control!$H$13*Prices!AP$15+ Y15*Control!$H$14*Prices!AP$17","v":203.60473439833541},{"$f":"Z15+Z15*Control!$H$12*Weather!BC$21+Z15*Control!$H$13*Prices!AQ$15+ Z15*Control!$H$14*Prices!AQ$17","v":198.10439330275756},{"$f":"AA15+AA15*Control!$H$12*Weather!BD$21+AA15*Control!$H$13*Prices!AR$15+ AA15*Control!$H$14*Prices!AR$17","v":196.11475353153017},{"$f":"AB15+AB15*Control!$H$12*Weather!BE$21+AB15*Control!$H$13*Prices!AS$15+ AB15*Control!$H$14*Prices!AS$17","v":194.23556208055783},{"$f":"AC15+AC15*Control!$H$12*Weather!BF$21+AC15*Control!$H$13*Prices!AT$15+ AC15*Control!$H$14*Prices!AT$17","v":194.38034326307277},{"$f":"AD15+AD15*Control!$H$12*Weather!BG$21+AD15*Control!$H$13*Prices!AU$15+ AD15*Control!$H$14*Prices!AU$17","v":193.55368542081675},{"$f":"AE15+AE15*Control!$H$12*Weather!BH$21+AE15*Control!$H$13*Prices!AV$15+ AE15*Control!$H$14*Prices!AV$17","v":189.32285599034748},{"$f":"AF15+AF15*Control!$H$12*Weather!BI$21+AF15*Control!$H$13*Prices!AW$15+ AF15*Control!$H$14*Prices!AW$17","v":185.31956500938466},{"$f":"AG15+AG15*Control!$H$12*Weather!BJ$21+AG15*Control!$H$13*Prices!AX$15+ AG15*Control!$H$14*Prices!AX$17","v":183.306476436324},{"$f":"AH15+AH15*Control!$H$12*Weather!BK$21+AH15*Control!$H$13*Prices!AY$15+ AH15*Control!$H$14*Prices!AY$17","v":181.42961840574932},{"$f":"AI15+AI15*Control!$H$12*Weather!BL$21+AI15*Control!$H$13*Prices!AZ$15+ AI15*Control!$H$14*Prices!AZ$17","v":179.21393687502626},{"$f":"AJ15+AJ15*Control!$H$12*Weather!BM$21+AJ15*Control!$H$13*Prices!BA$15+ AJ15*Control!$H$14*Prices!BA$17","v":177.16635115605845},{"$f":"AK15+AK15*Control!$H$12*Weather!BN$21+AK15*Control!$H$13*Prices!BB$15+ AK15*Control!$H$14*Prices!BB$17","v":175.34544007472454},{"$f":"AL15+AL15*Control!$H$12*Weather!BO$21+AL15*Control!$H$13*Prices!BC$15+ AL15*Control!$H$14*Prices!BC$17","v":173.52196454357443},{"$f":"AM15+AM15*Control!$H$12*Weather!BP$21+AM15*Control!$H$13*Prices!BD$15+ AM15*Control!$H$14*Prices!BD$17","v":170.96947543192633},{"$f":"AN15+AN15*Control!$H$12*Weather!BQ$21+AN15*Control!$H$13*Prices!BE$15+ AN15*Control!$H$14*Prices!BE$17","v":168.75615107434419},{"$f":"AO15+AO15*Control!$H$12*Weather!BR$21+AO15*Control!$H$13*Prices!BF$15+ AO15*Control!$H$14*Prices!BF$17","v":165.67796267833231},{"$f":"AP15+AP15*Control!$H$12*Weather!BS$21+AP15*Control!$H$13*Prices!BG$15+ AP15*Control!$H$14*Prices!BG$17","v":163.11854167093625},{"$f":"AQ15+AQ15*Control!$H$12*Weather!BT$21+AQ15*Control!$H$13*Prices!BH$15+ AQ15*Control!$H$14*Prices!BH$17","v":160.81989317437115},{"$f":"AR15+AR15*Control!$H$12*Weather!BU$21+AR15*Control!$H$13*Prices!BI$15+ AR15*Control!$H$14*Prices!BI$17","v":158.46609567137116},{"$f":"AS15+AS15*Control!$H$12*Weather!BV$21+AS15*Control!$H$13*Prices!BJ$15+ AS15*Control!$H$14*Prices!BJ$17","v":164.77131343812047},{"$f":"AT15+AT15*Control!$H$12*Weather!BW$21+AT15*Control!$H$13*Prices!BK$15+ AT15*Control!$H$14*Prices!BK$17","v":165.62939475108047},{"$f":"AU15+AU15*Control!$H$12*Weather!BX$21+AU15*Control!$H$13*Prices!BL$15+ AU15*Control!$H$14*Prices!BL$17","v":163.32807914539475},{"$f":"AV15+AV15*Control!$H$12*Weather!BY$21+AV15*Control!$H$13*Prices!BM$15+ AV15*Control!$H$14*Prices!BM$17","v":160.55158919924844},{"$f":"AW15+AW15*Control!$H$12*Weather!BZ$21+AW15*Control!$H$13*Prices!BN$15+ AW15*Control!$H$14*Prices!BN$17","v":157.98958669951546},{"$f":"AX15+AX15*Control!$H$12*Weather!CA$21+AX15*Control!$H$13*Prices!BO$15+ AX15*Control!$H$14*Prices!BO$17","v":155.39392874460955},{"$f":"AY15+AY15*Control!$H$12*Weather!CB$21+AY15*Control!$H$13*Prices!BP$15+ AY15*Control!$H$14*Prices!BP$17","v":152.62939645731947},{"$f":"AZ15+AZ15*Control!$H$12*Weather!CC$21+AZ15*Control!$H$13*Prices!BQ$15+ AZ15*Control!$H$14*Prices!BQ$17","v":149.66039739432773},{"$f":"BA15+BA15*Control!$H$12*Weather!CD$21+BA15*Control!$H$13*Prices!BR$15+ BA15*Control!$H$14*Prices!BR$17","v":146.46431232906832},{"$f":"BB15+BB15*Control!$H$12*Weather!CE$21+BB15*Control!$H$13*Prices!BS$15+ BB15*Control!$H$14*Prices!BS$17","v":143.0049866504047},{"$f":"BC15+BC15*Control!$H$12*Weather!CF$21+BC15*Control!$H$13*Prices!BT$15+ BC15*Control!$H$14*Prices!BT$17","v":139.2435844716303},{"$f":"BD15+BD15*Control!$H$12*Weather!CG$21+BD15*Control!$H$13*Prices!BU$15+ BD15*Control!$H$14*Prices!BU$17","v":135.16999717268402},{"$f":"BE15+BE15*Control!$H$12*Weather!CH$21+BE15*Control!$H$13*Prices!BV$15+ BE15*Control!$H$14*Prices!BV$17","v":130.79504710341757},{"$f":"BF15+BF15*Control!$H$12*Weather!CI$21+BF15*Control!$H$13*Prices!BW$15+ BF15*Control!$H$14*Prices!BW$17","v":126.13108249781394},{"$f":"BG15+BG15*Control!$H$12*Weather!CJ$21+BG15*Control!$H$13*Prices!BX$15+ BG15*Control!$H$14*Prices!BX$17","v":121.17201775602585},{"$f":"BH15+BH15*Control!$H$12*Weather!CK$21+BH15*Control!$H$13*Prices!BY$15+ BH15*Control!$H$14*Prices!BY$17","v":115.89451463378657},{"$f":"BI15+BI15*Control!$H$12*Weather!CL$21+BI15*Control!$H$13*Prices!BZ$15+ BI15*Control!$H$14*Prices!BZ$17","v":110.26417856964122},{"$f":"BJ15+BJ15*Control!$H$12*Weather!CM$21+BJ15*Control!$H$13*Prices!CA$15+ BJ15*Control!$H$14*Prices!CA$17","v":104.2459062114451},{"$f":"BK15+BK15*Control!$H$12*Weather!CN$21+BK15*Control!$H$13*Prices!CB$15+ BK15*Control!$H$14*Prices!CB$17","v":98.974962698186005},{"$f":"BL15+BL15*Control!$H$12*Weather!CO$21+BL15*Control!$H$13*Prices!CC$15+ BL15*Control!$H$14*Prices!CC$17","v":94.603377366580787},{"$f":"BM15+BM15*Control!$H$12*Weather!CP$21+BM15*Control!$H$13*Prices!CD$15+ BM15*Control!$H$14*Prices!CD$17","v":90.542741634676574},{"$f":"BN15+BN15*Control!$H$12*Weather!CQ$21+BN15*Control!$H$13*Prices!CE$15+ BN15*Control!$H$14*Prices!CE$17","v":86.398386782368107},{"$f":"BO15+BO15*Control!$H$12*Weather!CR$21+BO15*Control!$H$13*Prices!CF$15+ BO15*Control!$H$14*Prices!CF$17","v":81.953348116308106},{"$f":"BP15+BP15*Control!$H$12*Weather!CS$21+BP15*Control!$H$13*Prices!CG$15+ BP15*Control!$H$14*Prices!CG$17","v":76.273957051859171},{"$f":"BQ15+BQ15*Control!$H$12*Weather!CT$21+BQ15*Control!$H$13*Prices!CH$15+ BQ15*Control!$H$14*Prices!CH$17","v":69.12895633405715},{"$f":"BR15+BR15*Control!$H$12*Weather!CU$21+BR15*Control!$H$13*Prices!CI$15+ BR15*Control!$H$14*Prices!CI$17","v":60.529582275706346},{"$f":"BS15+BS15*Control!$H$12*Weather!CV$21+BS15*Control!$H$13*Prices!CJ$15+ BS15*Control!$H$14*Prices!CJ$17","v":96.195247574542236},{"$f":"BT15+BT15*Control!$H$12*Weather!CW$21+BT15*Control!$H$13*Prices!CK$15+ BT15*Control!$H$14*Prices!CK$17","v":95.945410551632307},{"$f":"BU15+BU15*Control!$H$12*Weather!CX$21+BU15*Control!$H$13*Prices!CL$15+ BU15*Control!$H$14*Prices!CL$17","v":95.694931445989894},{"$f":"BV15+BV15*Control!$H$12*Weather!CY$21+BV15*Control!$H$13*Prices!CM$15+ BV15*Control!$H$14*Prices!CM$17","v":95.44380229772176},{"$f":"BW15+BW15*Control!$H$12*Weather!CZ$21+BW15*Control!$H$13*Prices!CN$15+ BW15*Control!$H$14*Prices!CN$17","v":95.192015014811147},{"$f":"BX15+BX15*Control!$H$12*Weather!DA$21+BX15*Control!$H$13*Prices!CO$15+ BX15*Control!$H$14*Prices!CO$17","v":94.939561370038902},{"$f":"BY15+BY15*Control!$H$12*Weather!DB$21+BY15*Control!$H$13*Prices!CP$15+ BY15*Control!$H$14*Prices!CP$17","v":94.686432997813156},{"$f":"BZ15+BZ15*Control!$H$12*Weather!DC$21+BZ15*Control!$H$13*Prices!CQ$15+ BZ15*Control!$H$14*Prices!CQ$17","v":94.432621390904046},{"$f":"CA15+CA15*Control!$H$12*Weather!DD$21+CA15*Control!$H$13*Prices!CR$15+ CA15*Control!$H$14*Prices!CR$17","v":94.17811789708017},{"$f":"CB15+CB15*Control!$H$12*Weather!DE$21+CB15*Control!$H$13*Prices!CS$15+ CB15*Control!$H$14*Prices!CS$17","v":93.92291371564302},{"$f":"CC15+CC15*Control!$H$12*Weather!DF$21+CC15*Control!$H$13*Prices!CT$15+ CC15*Control!$H$14*Prices!CT$17","v":93.666999893855817},{"$f":"CD15+CD15*Control!$H$12*Weather!DG$21+CD15*Control!$H$13*Prices!CU$15+ CD15*Control!$H$14*Prices!CU$17","v":93.41036732326252},{"$f":"CE15+CE15*Control!$H$12*Weather!DH$21+CE15*Control!$H$13*Prices!CV$15+ CE15*Control!$H$14*Prices!CV$17","v":93.1530067358932},{"$f":"CF15+CF15*Control!$H$12*Weather!DI$21+CF15*Control!$H$13*Prices!CW$15+ CF15*Control!$H$14*Prices!CW$17","v":92.894908700351223},{"$f":"CG15+CG15*Control!$H$12*Weather!DJ$21+CG15*Control!$H$13*Prices!CX$15+ CG15*Control!$H$14*Prices!CX$17","v":92.636063617777921},{"$f":"CH15+CH15*Control!$H$12*Weather!DK$21+CH15*Control!$H$13*Prices!CY$15+ CH15*Control!$H$14*Prices!CY$17","v":92.376461717689978},{"$f":"CI15+CI15*Control!$H$12*Weather!DL$21+CI15*Control!$H$13*Prices!CZ$15+ CI15*Control!$H$14*Prices!CZ$17","v":92.116093053684722},{"$f":"CJ15+CJ15*Control!$H$12*Weather!DM$21+CJ15*Control!$H$13*Prices!DA$15+ CJ15*Control!$H$14*Prices!DA$17","v":91.854947499007949},{"$f":"CK15+CK15*Control!$H$12*Weather!DN$21+CK15*Control!$H$13*Prices!DB$15+ CK15*Control!$H$14*Prices!DB$17","v":92.362295411154946}]
["Monash (C)",{"$f":"'Volume per connection'!B62","v":28.162342522842742},{"$f":"'Volume per connection'!C62","v":51.541489076293715},{"$f":"'Volume per connection'!D62","v":61.394978445055557},{"$f":"'Volume per connection'!E62","v":60.114843781538987},{"$f":"'Volume per connection'!F62","v":58.983403765450525},{"$f":"'Volume per connection'!G62","v":62.44541707773962},{"$f":"'Volume per connection'!H62","v":59.9048061894051},{"$f":"'Volume per connection'!I62","v":57.528666995134571},{"$f":"'Volume per connection'!J62","v":61.463650958636876},{"$f":"J16+J16*Control!$H$12*Weather!AM$21+J16*Control!$H$13*Prices!AA$15+ J16*Control!$H$14*Prices!AA$17","v":59.58889436847592},{"$f":"K16+K16*Control!$H$12*Weather!AN$21+K16*Control!$H$13*Prices!AB$15+ K16*Control!$H$14*Prices!AB$17","v":56.700075536833971},{"$f":"L16+L16*Control!$H$12*Weather!AO$21+L16*Control!$H$13*Prices!AC$15+ L16*Control!$H$14*Prices!AC$17","v":59.195006000767862},{"$f":"M16+M16*Control!$H$12*Weather!AP$21+M16*Control!$H$13*Prices!AD$15+ M16*Control!$H$14*Prices!AD$17","v":59.820737543425011},{"$f":"N16+N16*Control!$H$12*Weather!AQ$21+N16*Control!$H$13*Prices!AE$15+ N16*Control!$H$14*Prices!AE$17","v":61.253376803698501},{"$f":"O16+O16*Control!$H$12*Weather!AR$21+O16*Control!$H$13*Prices!AF$15+ O16*Control!$H$14*Prices!AF$17","v":61.460890677168024},{"$f":"P16+P16*Control!$H$12*Weather!AS$21+P16*Control!$H$13*Prices!AG$15+ P16*Control!$H$14*Prices!AG$17","v":60.260572450312843},{"$f":"Q16+Q16*Control!$H$12*Weather!AT$21+Q16*Control!$H$13*Prices!AH$15+ Q16*Control!$H$14*Prices!AH$17","v":57.294379661672011},{"$f":"R16+R16*Control!$H$12*Weather!AU$21+R16*Control!$H$13*Prices!AI$15+ R16*Control!$H$14*Prices!AI$17","v":54.922685923992901},{"$f":"S16+S16*Control!$H$12*Weather!AV$21+S16*Control!$H$13*Prices!AJ$15+ S16*Control!$H$14*Prices!AJ$17","v":53.667058605590221},{"$f":"T16+T16*Control!$H$12*Weather!AW$21+T16*Control!$H$13*Prices!AK$15+ T16*Control!$H$14*Prices!AK$17","v":57.296649285270028},{"$f":"U16+U16*Control!$H$12*Weather!AX$21+U16*Control!$H$13*Prices!AL$15+ U16*Control!$H$14*Prices!AL$17","v":57.912809961914526},{"$f":"V16+V16*Control!$H$12*Weather!AY$21+V16*Control!$H$13*Prices!AM$15+ V16*Control!$H$14*Prices!AM$17","v":57.28136436956089},{"$f":"W16+W16*Control!$H$12*Weather!AZ$21+W16*Control!$H$13*Prices!AN$15+ W16*Control!$H$14*Prices!AN$17","v":56.224019841344195},{"$f":"X16+X16*Control!$H$12*Weather!BA$21+X16*Control!$H$13*Prices!AO$15+ X16*Control!$H$14*Prices!AO$17","v":54.575513761662336},{"$f":"Y16+Y16*Control!$H$12*Weather!BB$21+Y16*Control!$H$13*Prices!AP$15+ Y16*Control!$H$14*Prices!AP$17","v":53.73938922251989},{"$f":"Z16+Z16*Control!$H$12*Weather!BC$21+Z16*Control!$H$13*Prices!AQ$15+ Z16*Control!$H$14*Prices!AQ$17","v":52.287630392523369},{"$f":"AA16+AA16*Control!$H$12*Weather!BD$21+AA16*Control!$H$13*Prices!AR$15+ AA16*Control!$H$14*Prices!AR$17","v":51.762485304937094},{"$f":"AB16+AB16*Control!$H$12*Weather!BE$21+AB16*Control!$H$13*Prices!AS$15+ AB16*Control!$H$14*Prices!AS$17","v":51.266491922927308},{"$f":"AC16+AC16*Control!$H$12*Weather!BF$21+AC16*Control!$H$13*Prices!AT$15+ AC16*Control!$H$14*Prices!AT$17","v":51.304705436686007},{"$f":"AD16+AD16*Control!$H$12*Weather!BG$21+AD16*Control!$H$13*Prices!AU$15+ AD16*Control!$H$14*Prices!AU$17","v":51.086517545966664},{"$f":"AE16+AE16*Control!$H$12*Weather!BH$21+AE16*Control!$H$13*Prices!AV$15+ AE16*Control!$H$14*Prices!AV$17","v":49.969833348175541},{"$f":"AF16+AF16*Control!$H$12*Weather!BI$21+AF16*Control!$H$13*Prices!AW$15+ AF16*Control!$H$14*Prices!AW$17","v":48.913205599156342},{"$f":"AG16+AG16*Control!$H$12*Weather!BJ$21+AG16*Control!$H$13*Prices!AX$15+ AG16*Control!$H$14*Prices!AX$17","v":48.381871439924737},{"$f":"AH16+AH16*Control!$H$12*Weather!BK$21+AH16*Control!$H$13*Prices!AY$15+ AH16*Control!$H$14*Prices!AY$17","v":47.88649394038616},{"$f":"AI16+AI16*Control!$H$12*Weather!BL$21+AI16*Control!$H$13*Prices!AZ$15+ AI16*Control!$H$14*Prices!AZ$17","v":47.301687440063205},{"$f":"AJ16+AJ16*Control!$H$12*Weather!BM$21+AJ16*Control!$H$13*Prices!BA$15+ AJ16*Control!$H$14*Prices!BA$17","v":46.761248111659341},{"$f":"AK16+AK16*Control!$H$12*Weather!BN$21+AK16*Control!$H$13*Prices!BB$15+ AK16*Control!$H$14*Prices!BB$17","v":46.280637237710025},{"$f":"AL16+AL16*Control!$H$12*Weather!BO$21+AL16*Control!$H$13*Prices!BC$15+ AL16*Control!$H$14*Prices!BC$17","v":45.799349503435138},{"$f":"AM16+AM16*Control!$H$12*Weather!BP$21+AM16*Control!$H$13*Prices!BD$15+ AM16*Control!$H$14*Prices!BD$17","v":45.125646083608267},{"$f":"AN16+AN16*Control!$H$12*Weather!BQ$21+AN16*Control!$H$13*Prices!BE$15+ AN16*Control!$H$14*Prices!BE$17","v":44.541461735050397},{"$f":"AO16+AO16*Control!$H$12*Weather!BR$21+AO16*Control!$H$13*Prices!BF$15+ AO16*Control!$H$14*Prices!BF$17","v":43.729005360681924},{"$f":"AP16+AP16*Control!$H$12*Weather!BS$21+AP16*Control!$H$13*Prices!BG$15+ AP16*Control!$H$14*Prices!BG$17","v":43.053472337802106},{"$f":"AQ16+AQ16*Control!$H$12*Weather!BT$21+AQ16*Control!$H$13*Prices!BH$15+ AQ16*Control!$H$14*Prices!BH$17","v":42.44676755459701},{"$f":"AR16+AR16*Control!$H$12*Weather!BU$21+AR16*Control!$H$13*Prices!BI$15+ AR16*Control!$H$14*Prices!BI$17","v":41.825506754652935},{"$f":"AS16+AS16*Control!$H$12*Weather!BV$21+AS16*Control!$H$13*Prices!BJ$15+ AS16*Control!$H$14*Prices!BJ$17","v":43.489704557819827},{"$f":"AT16+AT16*Control!$H$12*Weather!BW$21+AT16*Control!$H$13*Prices!BK$15+ AT16*Control!$H$14*Prices!BK$17","v":43.716186352548206},{"$f":"AU16+AU16*Control!$H$12*Weather!BX$21+AU16*Control!$H$13*Prices!BL$15+ AU16*Control!$H$14*Prices!BL$17","v":43.108777613143097},{"$f":"AV16+AV16*Control!$H$12*Weather!BY$21+AV16*Control!$H$13*Prices!BM$15+ AV16*Control!$H$14*Prices!BM$17","v":42.375951461878557},{"$f":"AW16+AW16*Control!$H$12*Weather!BZ$21+AW16*Control!$H$13*Prices!BN$15+ AW16*Control!$H$14*Prices!BN$17","v":41.699737080473952},{"$f":"AX16+AX16*Control!$H$12*Weather!CA$21+AX16*Control!$H$13*Prices!BO$15+ AX16*Control!$H$14*Prices!BO$17","v":41.014639685566024},{"$f":"AY16+AY16*Control!$H$12*Weather!CB$21+AY16*Control!$H$13*Prices!BP$15+ AY16*Control!$H$14*Prices!BP$17","v":40.284969636173898},{"$f":"AZ16+AZ16*Control!$H$12*Weather!CC$21+AZ16*Control!$H$13*Prices!BQ$15+ AZ16*Control!$H$14*Prices!BQ$17","v":39.501332670565525},{"$f":"BA16+BA16*Control!$H$12*Weather!CD$21+BA16*Control!$H$13*Prices!BR$15+ BA16*Control!$H$14*Prices!BR$17","v":38.657758675010818},{"$f":"BB16+BB16*Control!$H$12*Weather!CE$21+BB16*Control!$H$13*Prices!BS$15+ BB16*Control!$H$14*Prices!BS$17","v":37.744705009326111},{"$f":"BC16+BC16*Control!$H$12*Weather!CF$21+BC16*Control!$H$13*Prices!BT$15+ BC16*Control!$H$14*Prices!BT$17","v":36.751921338038137},{"$f":"BD16+BD16*Control!$H$12*Weather!CG$21+BD16*Control!$H$13*Prices!BU$15+ BD16*Control!$H$14*Prices!BU$17","v":35.676739594171103},{"$f":"BE16+BE16*Control!$H$12*Weather!CH$21+BE16*Control!$H$13*Prices!BV$15+ BE16*Control!$H$14*Prices!BV$17","v":34.522016226386185},{"$f":"BF16+BF16*Control!$H$12*Weather!CI$21+BF16*Control!$H$13*Prices!BW$15+ BF16*Control!$H$14*Prices!BW$17","v":33.291010424869619},{"$f":"BG16+BG16*Control!$H$12*Weather!CJ$21+BG16*Control!$H$13*Prices!BX$15+ BG16*Control!$H$14*Prices!BX$17","v":31.982115957724048},{"$f":"BH16+BH16*Control!$H$12*Weather!CK$21+BH16*Control!$H$13*Prices!BY$15+ BH16*Control!$H$14*Prices!BY$17","v":30.58917293384415},{"$f":"BI16+BI16*Control!$H$12*Weather!CL$21+BI16*Control!$H$13*Prices!BZ$15+ BI16*Control!$H$14*Prices!BZ$17","v":29.10310326017564},{"$f":"BJ16+BJ16*Control!$H$12*Weather!CM$21+BJ16*Control!$H$13*Prices!CA$15+ BJ16*Control!$H$14*Prices!CA$17","v":27.51464176560404},{"$f":"BK16+BK16*Control!$H$12*Weather!CN$21+BK16*Control!$H$13*Prices!CB$15+ BK16*Control!$H$14*Prices!CB$17","v":26.123430083488742},{"$f":"BL16+BL16*Control!$H$12*Weather!CO$21+BL16*Control!$H$13*Prices!CC$15+ BL16*Control!$H$14*Prices!CC$17","v":24.969594803828798},{"$f":"BM16+BM16*Control!$H$12*Weather!CP$21+BM16*Control!$H$13*Prices!CD$15+ BM16*Control!$H$14*Prices!CD$17","v":23.897831493744114},{"$f":"BN16+BN16*Control!$H$12*Weather!CQ$21+BN16*Control!$H$13*Prices!CE$15+ BN16*Control!$H$14*Prices!CE$17","v":22.803971377266073},{"$f":"BO16+BO16*Control!$H$12*Weather!CR$21+BO16*Control!$H$13*Prices!CF$15+ BO16*Control!$H$14*Prices!CF$17","v":21.630748840518901},{"$f":"BP16+BP16*Control!$H$12*Weather!CS$21+BP16*Control!$H$13*Prices!CG$15+ BP16*Control!$H$14*Prices!CG$17","v":20.131731600761544},{"$f":"BQ16+BQ16*Control!$H$12*Weather!CT$21+BQ16*Control!$H$13*Prices!CH$15+ BQ16*Control!$H$14*Prices!CH$17","v":18.245881668520056},{"$f":"BR16+BR16*Control!$H$12*Weather!CU$21+BR16*Control!$H$13*Prices!CI$15+ BR16*Control!$H$14*Prices!CI$17","v":15.976164753747108},{"$f":"BS16+BS16*Control!$H$12*Weather!CV$21+BS16*Control!$H$13*Prices!CJ$15+ BS16*Control!$H$14*Prices!CJ$17","v":25.389752679578436},{"$f":"BT16+BT16*Control!$H$12*Weather!CW$21+BT16*Control!$H$13*Prices!CK$15+ BT16*Control!$H$14*Prices!CK$17","v":25.323810750202252},{"$f":"BU16+BU16*Control!$H$12*Weather!CX$21+BU16*Control!$H$13*Prices!CL$15+ BU16*Control!$H$14*Prices!CL$17","v":25.257699349649592},{"$f":"BV16+BV16*Control!$H$12*Weather!CY$21+BV16*Control!$H$13*Prices!CM$15+ BV16*Control!$H$14*Prices!CM$17","v":25.19141637698797},{"$f":"BW16+BW16*Control!$H$12*Weather!CZ$21+BW16*Control!$H$13*Prices!CN$15+ BW16*Control!$H$14*Prices!CN$17","v":25.124959696412251},{"$f":"BX16+BX16*Control!$H$12*Weather!DA$21+BX16*Control!$H$13*Prices!CO$15+ BX16*Control!$H$14*Prices!CO$17","v":25.058327136432005},{"$f":"BY16+BY16*Control!$H$12*Weather!DB$21+BY16*Control!$H$13*Prices!CP$15+ BY16*Control!$H$14*Prices!CP$17","v":24.991516489034737},{"$f":"BZ16+BZ16*Control!$H$12*Weather!DC$21+BZ16*Control!$H$13*Prices!CQ$15+ BZ16*Control!$H$14*Prices!CQ$17","v":24.92452550882405},{"$f":"CA16+CA16*Control!$H$12*Weather!DD$21+CA16*Control!$H$13*Prices!CR$15+ CA16*Control!$H$14*Prices!CR$17","v":24.857351912131868},{"$f":"CB16+CB16*Control!$H$12*Weather!DE$21+CB16*Control!$H$13*Prices!CS$15+ CB16*Control!$H$14*Prices!CS$17","v":24.789993376103752},{"$f":"CC16+CC16*Control!$H$12*Weather!DF$21+CC16*Control!$H$13*Prices!CT$15+ CC16*Control!$H$14*Prices!CT$17","v":24.722447537756299},{"$f":"CD16+CD16*Control!$H$12*Weather!DG$21+CD16*Control!$H$13*Prices!CU$15+ CD16*Control!$H$14*Prices!CU$17","v":24.654711993005616},{"$f":"CE16+CE16*Control!$H$12*Weather!DH$21+CE16*Control!$H$13*Prices!CV$15+ CE16*Control!$H$14*Prices!CV$17","v":24.586784295665737},{"$f":"CF16+CF16*Control!$H$12*Weather!DI$21+CF16*Control!$H$13*Prices!CW$15+ CF16*Control!$H$14*Prices!CW$17","v":24.518661956415887},{"$f":"CG16+CG16*Control!$H$12*Weather!DJ$21+CG16*Control!$H$13*Prices!CX$15+ CG16*Control!$H$14*Prices!CX$17","v":24.450342441735408},{"$f":"CH16+CH16*Control!$H$12*Weather!DK$21+CH16*Control!$H$13*Prices!CY$15+ CH16*Control!$H$14*Prices!CY$17","v":24.381823172805063},{"$f":"CI16+CI16*Control!$H$12*Weather!DL$21+CI16*Control!$H$13*Prices!CZ$15+ CI16*Control!$H$14*Prices!CZ$17","v":24.31310152437349},{"$f":"CJ16+CJ16*Control!$H$12*Weather!DM$21+CJ16*Control!$H$13*Prices!DA$15+ CJ16*Control!$H$14*Prices!DA$17","v":24.244174823587397},{"$f":"CK16+CK16*Control!$H$12*Weather!DN$21+CK16*Control!$H$13*Prices!DB$15+ CK16*Control!$H$14*Prices!DB$17","v":24.378084120945676}]
["Nillumbik (S)",{"$f":"'Volume per connection'!B63","v":53.589965581108189},{"$f":"'Volume per connection'!C63","v":95.479497219063319},{"$f":"'Volume per connection'!D63","v":100.729375},{"$f":"'Volume per connection'!E63","v":108.03162500000001},{"$f":"'Volume per connection'!F63","v":95.451625000000007},{"$f":"'Volume per connection'!G63","v":104.93275},{"$f":"'Volume per connection'!H63","v":99.609499999999997},{"$f":"'Volume per connection'!I63","v":100.548875},{"$f":"'Volume per connection'!J63","v":110.111125},{"$f":"J17+J17*Control!$H$12*Weather!AM$21+J17*Control!$H$13*Prices!AA$15+ J17*Control!$H$14*Prices!AA$17","v":106.7525292442303},{"$f":"K17+K17*Control!$H$12*Weather!AN$21+K17*Control!$H$13*Prices!AB$15+ K17*Control!$H$14*Prices!AB$17","v":101.5772575753321},{"$f":"L17+L17*Control!$H$12*Weather!AO$21+L17*Control!$H$13*Prices!AC$15+ L17*Control!$H$14*Prices!AC$17","v":106.04688467843749},{"$f":"M17+M17*Control!$H$12*Weather!AP$21+M17*Control!$H$13*Prices!AD$15+ M17*Control!$H$14*Prices!AD$17","v":107.16787249864252},{"$f":"N17+N17*Control!$H$12*Weather!AQ$21+N17*Control!$H$13*Prices!AE$15+ N17*Control!$H$14*Prices!AE$17","v":109.73442229201621},{"$f":"O17+O17*Control!$H$12*Weather!AR$21+O17*Control!$H$13*Prices!AF$15+ O17*Control!$H$14*Prices!AF$17","v":110.10618000091335},{"$f":"P17+P17*Control!$H$12*Weather!AS$21+P17*Control!$H$13*Prices!AG$15+ P17*Control!$H$14*Prices!AG$17","v":107.95582953758058},{"$f":"Q17+Q17*Control!$H$12*Weather!AT$21+Q17*Control!$H$13*Prices!AH$15+ Q17*Control!$H$14*Prices!AH$17","v":102.64194369074197},{"$f":"R17+R17*Control!$H$12*Weather!AU$21+R17*Control!$H$13*Prices!AI$15+ R17*Control!$H$14*Prices!AI$17","v":98.393093166274298},{"$f":"S17+S17*Control!$H$12*Weather!AV$21+S17*Control!$H$13*Prices!AJ$15+ S17*Control!$H$14*Prices!AJ$17","v":96.143657370423256},{"$f":"T17+T17*Control!$H$12*Weather!AW$21+T17*Control!$H$13*Prices!AK$15+ T17*Control!$H$14*Prices!AK$17","v":102.64600968428134},{"$f":"U17+U17*Control!$H$12*Weather!AX$21+U17*Control!$H$13*Prices!AL$15+ U17*Control!$H$14*Prices!AL$17","v":103.74985145462696},{"$f":"V17+V17*Control!$H$12*Weather!AY$21+V17*Control!$H$13*Prices!AM$15+ V17*Control!$H$14*Prices!AM$17","v":102.61862700788622},{"$f":"W17+W17*Control!$H$12*Weather!AZ$21+W17*Control!$H$13*Prices!AN$15+ W17*Control!$H$14*Prices!AN$17","v":100.72441158627248},{"$f":"X17+X17*Control!$H$12*Weather!BA$21+X17*Control!$H$13*Prices!AO$15+ X17*Control!$H$14*Prices!AO$17","v":97.771139918026392},{"$f":"Y17+Y17*Control!$H$12*Weather!BB$21+Y17*Control!$H$13*Prices!AP$15+ Y17*Control!$H$14*Prices!AP$17","v":96.273236487150825},{"$f":"Z17+Z17*Control!$H$12*Weather!BC$21+Z17*Control!$H$13*Prices!AQ$15+ Z17*Control!$H$14*Prices!AQ$17","v":93.672434297460228},{"$f":"AA17+AA17*Control!$H$12*Weather!BD$21+AA17*Control!$H$13*Prices!AR$15+ AA17*Control!$H$14*Prices!AR$17","v":92.731645465679605},{"$f":"AB17+AB17*Control!$H$12*Weather!BE$21+AB17*Control!$H$13*Prices!AS$15+ AB17*Control!$H$14*Prices!AS$17","v":91.843081437447609},{"$f":"AC17+AC17*Control!$H$12*Weather!BF$21+AC17*Control!$H$13*Prices!AT$15+ AC17*Control!$H$14*Prices!AT$17","v":91.911540322081819},{"$f":"AD17+AD17*Control!$H$12*Weather!BG$21+AD17*Control!$H$13*Prices!AU$15+ AD17*Control!$H$14*Prices!AU$17","v":91.520660285934099},{"$f":"AE17+AE17*Control!$H$12*Weather!BH$21+AE17*Control!$H$13*Prices!AV$15+ AE17*Control!$H$14*Prices!AV$17","v":89.520138817216733},{"$f":"AF17+AF17*Control!$H$12*Weather!BI$21+AF17*Control!$H$13*Prices!AW$15+ AF17*Control!$H$14*Prices!AW$17","v":87.627207493807077},{"$f":"AG17+AG17*Control!$H$12*Weather!BJ$21+AG17*Control!$H$13*Prices!AX$15+ AG17*Control!$H$14*Prices!AX$17","v":86.675331041441865},{"$f":"AH17+AH17*Control!$H$12*Weather!BK$21+AH17*Control!$H$13*Prices!AY$15+ AH17*Control!$H$14*Prices!AY$17","v":85.787870356579717},{"$f":"AI17+AI17*Control!$H$12*Weather!BL$21+AI17*Control!$H$13*Prices!AZ$15+ AI17*Control!$H$14*Prices!AZ$17","v":84.740199080084807},{"$f":"AJ17+AJ17*Control!$H$12*Weather!BM$21+AJ17*Control!$H$13*Prices!BA$15+ AJ17*Control!$H$14*Prices!BA$17","v":83.772010866129847},{"$f":"AK17+AK17*Control!$H$12*Weather!BN$21+AK17*Control!$H$13*Prices!BB$15+ AK17*Control!$H$14*Prices!BB$17","v":82.911004349393536},{"$f":"AL17+AL17*Control!$H$12*Weather!BO$21+AL17*Control!$H$13*Prices!BC$15+ AL17*Control!$H$14*Prices!BC$17","v":82.048785248459012},{"$f":"AM17+AM17*Control!$H$12*Weather!BP$21+AM17*Control!$H$13*Prices!BD$15+ AM17*Control!$H$14*Prices!BD$17","v":80.841856595239136},{"$f":"AN17+AN17*Control!$H$12*Weather!BQ$21+AN17*Control!$H$13*Prices!BE$15+ AN17*Control!$H$14*Prices!BE$17","v":79.795299893451471},{"$f":"AO17+AO17*Control!$H$12*Weather!BR$21+AO17*Control!$H$13*Prices!BF$15+ AO17*Control!$H$14*Prices!BF$17","v":78.339797592500645},{"$f":"AP17+AP17*Control!$H$12*Weather!BS$21+AP17*Control!$H$13*Prices!BG$15+ AP17*Control!$H$14*Prices!BG$17","v":77.129591235348087},{"$f":"AQ17+AQ17*Control!$H$12*Weather!BT$21+AQ17*Control!$H$13*Prices!BH$15+ AQ17*Control!$H$14*Prices!BH$17","v":76.042689543378117},{"$f":"AR17+AR17*Control!$H$12*Weather!BU$21+AR17*Control!$H$13*Prices!BI$15+ AR17*Control!$H$14*Prices!BI$17","v":74.929710985591527},{"$f":"AS17+AS17*Control!$H$12*Weather!BV$21+AS17*Control!$H$13*Prices!BJ$15+ AS17*Control!$H$14*Prices!BJ$17","v":77.911094119706917},{"$f":"AT17+AT17*Control!$H$12*Weather!BW$21+AT17*Control!$H$13*Prices!BK$15+ AT17*Control!$H$14*Prices!BK$17","v":78.316832549178727},{"$f":"AU17+AU17*Control!$H$12*Weather!BX$21+AU17*Control!$H$13*Prices!BL$15+ AU17*Control!$H$14*Prices!BL$17","v":77.228669731194842},{"$f":"AV17+AV17*Control!$H$12*Weather!BY$21+AV17*Control!$H$13*Prices!BM$15+ AV17*Control!$H$14*Prices!BM$17","v":75.915823671993735},{"$f":"AW17+AW17*Control!$H$12*Weather!BZ$21+AW17*Control!$H$13*Prices!BN$15+ AW17*Control!$H$14*Prices!BN$17","v":74.704396672192686},{"$f":"AX17+AX17*Control!$H$12*Weather!CA$21+AX17*Control!$H$13*Prices!BO$15+ AX17*Control!$H$14*Prices!BO$17","v":73.477055899047798},{"$f":"AY17+AY17*Control!$H$12*Weather!CB$21+AY17*Control!$H$13*Prices!BP$15+ AY17*Control!$H$14*Prices!BP$17","v":72.169863944709746},{"$f":"AZ17+AZ17*Control!$H$12*Weather!CC$21+AZ17*Control!$H$13*Prices!BQ$15+ AZ17*Control!$H$14*Prices!BQ$17","v":70.765991142998175},{"$f":"BA17+BA17*Control!$H$12*Weather!CD$21+BA17*Control!$H$13*Prices!BR$15+ BA17*Control!$H$14*Prices!BR$17","v":69.254742132850964},{"$f":"BB17+BB17*Control!$H$12*Weather!CE$21+BB17*Control!$H$13*Prices!BS$15+ BB17*Control!$H$14*Prices!BS$17","v":67.619021430519496},{"$f":"BC17+BC17*Control!$H$12*Weather!CF$21+BC17*Control!$H$13*Prices!BT$15+ BC17*Control!$H$14*Prices!BT$17","v":65.840465727723455},{"$f":"BD17+BD17*Control!$H$12*Weather!CG$21+BD17*Control!$H$13*Prices!BU$15+ BD17*Control!$H$14*Prices!BU$17","v":63.914295226131649},{"$f":"BE17+BE17*Control!$H$12*Weather!CH$21+BE17*Control!$H$13*Prices!BV$15+ BE17*Control!$H$14*Prices!BV$17","v":61.845627206782254},{"$f":"BF17+BF17*Control!$H$12*Weather!CI$21+BF17*Control!$H$13*Prices!BW$15+ BF17*Control!$H$14*Prices!BW$17","v":59.640300455565743},{"$f":"BG17+BG17*Control!$H$12*Weather!CJ$21+BG17*Control!$H$13*Prices!BX$15+ BG17*Control!$H$14*Prices!BX$17","v":57.295437434319815},{"$f":"BH17+BH17*Control!$H$12*Weather!CK$21+BH17*Control!$H$13*Prices!BY$15+ BH17*Control!$H$14*Prices!BY$17","v":54.800002798919834},{"$f":"BI17+BI17*Control!$H$12*Weather!CL$21+BI17*Control!$H$13*Prices!BZ$15+ BI17*Control!$H$14*Prices!BZ$17","v":52.137733294198377},{"$f":"BJ17+BJ17*Control!$H$12*Weather!CM$21+BJ17*Control!$H$13*Prices!CA$15+ BJ17*Control!$H$14*Prices!CA$17","v":49.29203051770422},{"$f":"BK17+BK17*Control!$H$12*Weather!CN$21+BK17*Control!$H$13*Prices!CB$15+ BK17*Control!$H$14*Prices!CB$17","v":46.799697552746622},{"$f":"BL17+BL17*Control!$H$12*Weather!CO$21+BL17*Control!$H$13*Prices!CC$15+ BL17*Control!$H$14*Prices!CC$17","v":44.732620528741869},{"$f":"BM17+BM17*Control!$H$12*Weather!CP$21+BM17*Control!$H$13*Prices!CD$15+ BM17*Control!$H$14*Prices!CD$17","v":42.812574095337396},{"$f":"BN17+BN17*Control!$H$12*Weather!CQ$21+BN17*Control!$H$13*Prices!CE$15+ BN17*Control!$H$14*Prices!CE$17","v":40.852941594835841},{"$f":"BO17+BO17*Control!$H$12*Weather!CR$21+BO17*Control!$H$13*Prices!CF$15+ BO17*Control!$H$14*Prices!CF$17","v":38.751132616981231},{"$f":"BP17+BP17*Control!$H$12*Weather!CS$21+BP17*Control!$H$13*Prices!CG$15+ BP17*Control!$H$14*Prices!CG$17","v":36.065667759464766},{"$f":"BQ17+BQ17*Control!$H$12*Weather!CT$21+BQ17*Control!$H$13*Prices!CH$15+ BQ17*Control!$H$14*Prices!CH$17","v":32.687198462871429},{"$f":"BR17+BR17*Control!$H$12*Weather!CU$21+BR17*Control!$H$13*Prices!CI$15+ BR17*Control!$H$14*Prices!CI$17","v":28.621037748055326},{"$f":"BS17+BS17*Control!$H$12*Weather!CV$21+BS17*Control!$H$13*Prices!CJ$15+ BS17*Control!$H$14*Prices!CJ$17","v":45.485326488359163},{"$f":"BT17+BT17*Control!$H$12*Weather!CW$21+BT17*Control!$H$13*Prices!CK$15+ BT17*Control!$H$14*Prices!CK$17","v":45.367192600849478},{"$f":"BU17+BU17*Control!$H$12*Weather!CX$21+BU17*Control!$H$13*Prices!CL$15+ BU17*Control!$H$14*Prices!CL$17","v":45.248755108500085},{"$f":"BV17+BV17*Control!$H$12*Weather!CY$21+BV17*Control!$H$13*Prices!CM$15+ BV17*Control!$H$14*Prices!CM$17","v":45.130010247524822},{"$f":"BW17+BW17*Control!$H$12*Weather!CZ$21+BW17*Control!$H$13*Prices!CN$15+ BW17*Control!$H$14*Prices!CN$17","v":45.010954191663728},{"$f":"BX17+BX17*Control!$H$12*Weather!DA$21+BX17*Control!$H$13*Prices!CO$15+ BX17*Control!$H$14*Prices!CO$17","v":44.891583050727235},{"$f":"BY17+BY17*Control!$H$12*Weather!DB$21+BY17*Control!$H$13*Prices!CP$15+ BY17*Control!$H$14*Prices!CP$17","v":44.77189286909708},{"$f":"BZ17+BZ17*Control!$H$12*Weather!DC$21+BZ17*Control!$H$13*Prices!CQ$15+ BZ17*Control!$H$14*Prices!CQ$17","v":44.651879624182357},{"$f":"CA17+CA17*Control!$H$12*Weather!DD$21+CA17*Control!$H$13*Prices!CR$15+ CA17*Control!$H$14*Prices!CR$17","v":44.531539224829089},{"$f":"CB17+CB17*Control!$H$12*Weather!DE$21+CB17*Control!$H$13*Prices!CS$15+ CB17*Control!$H$14*Prices!CS$17","v":44.410867509681538},{"$f":"CC17+CC17*Control!$H$12*Weather!DF$21+CC17*Control!$H$13*Prices!CT$15+ CC17*Control!$H$14*Prices!CT$17","v":44.289860245493614},{"$f":"CD17+CD17*Control!$H$12*Weather!DG$21+CD17*Control!$H$13*Prices!CU$15+ CD17*Control!$H$14*Prices!CU$17","v":44.168513125388358},{"$f":"CE17+CE17*Control!$H$12*Weather!DH$21+CE17*Control!$H$13*Prices!CV$15+ CE17*Control!$H$14*Prices!CV$17","v":44.046821767063634},{"$f":"CF17+CF17*Control!$H$12*Weather!DI$21+CF17*Control!$H$13*Prices!CW$15+ CF17*Control!$H$14*Prices!CW$17","v":43.924781710942},{"$f":"CG17+CG17*Control!$H$12*Weather!DJ$21+CG17*Control!$H$13*Prices!CX$15+ CG17*Control!$H$14*Prices!CX$17","v":43.802388418262652},{"$f":"CH17+CH17*Control!$H$12*Weather!DK$21+CH17*Control!$H$13*Prices!CY$15+ CH17*Control!$H$14*Prices!CY$17","v":43.67963726911313},{"$f":"CI17+CI17*Control!$H$12*Weather!DL$21+CI17*Control!$H$13*Prices!CZ$15+ CI17*Control!$H$14*Prices!CZ$17","v":43.556523560398567},{"$f":"CJ17+CJ17*Control!$H$12*Weather!DM$21+CJ17*Control!$H$13*Prices!DA$15+ CJ17*Control!$H$14*Prices!DA$17","v":43.43304250374603},{"$f":"CK17+CK17*Control!$H$12*Weather!DN$21+CK17*Control!$H$13*Prices!DB$15+ CK17*Control!$H$14*Prices!DB$17","v":43.67293881888687}]
["Port Phillip (C)",{"$f":"'Volume per connection'!B64","v":17.681406962712821},{"$f":"'Volume per connection'!C64","v":32.983518080451041},{"$f":"'Volume per connection'!D64","v":39.275150330237082},{"$f":"'Volume per connection'!E64","v":38.635706868421053},{"$f":"'Volume per connection'!F64","v":37.527940613127903},{"$f":"'Volume per connection'!G64","v":39.718433791996631},{"$f":"'Volume per connection'!H64","v":38.722908461377649},{"$f":"'Volume per connection'!I64","v":38.242789444878809},{"$f":"'Volume per connection'!J64","v":40.241616193507987},{"$f":"J18+J18*Control!$H$12*Weather!AM$21+J18*Control!$H$13*Prices!AA$15+ J18*Control!$H$14*Prices!AA$17","v":39.014171452090366},{"$f":"K18+K18*Control!$H$12*Weather!AN$21+K18*Control!$H$13*Prices!AB$15+ K18*Control!$H$14*Prices!AB$17","v":37.12279765859823},{"$f":"L18+L18*Control!$H$12*Weather!AO$21+L18*Control!$H$13*Prices!AC$15+ L18*Control!$H$14*Prices!AC$17","v":38.756283997160907},{"$f":"M18+M18*Control!$H$12*Weather!AP$21+M18*Control!$H$13*Prices!AD$15+ M18*Control!$H$14*Prices!AD$17","v":39.165964323452073},{"$f":"N18+N18*Control!$H$12*Weather!AQ$21+N18*Control!$H$13*Prices!AE$15+ N18*Control!$H$14*Prices!AE$17","v":40.103945038175233},{"$f":"O18+O18*Control!$H$12*Weather!AR$21+O18*Control!$H$13*Prices!AF$15+ O18*Control!$H$14*Prices!AF$17","v":40.239808975978214},{"$f":"P18+P18*Control!$H$12*Weather!AS$21+P18*Control!$H$13*Prices!AG$15+ P18*Control!$H$14*Prices!AG$17","v":39.453933997160497},{"$f":"Q18+Q18*Control!$H$12*Weather!AT$21+Q18*Control!$H$13*Prices!AH$15+ Q18*Control!$H$14*Prices!AH$17","v":37.511901757052208},{"$f":"R18+R18*Control!$H$12*Weather!AU$21+R18*Control!$H$13*Prices!AI$15+ R18*Control!$H$14*Prices!AI$17","v":35.959101237856594},{"$f":"S18+S18*Control!$H$12*Weather!AV$21+S18*Control!$H$13*Prices!AJ$15+ S18*Control!$H$14*Prices!AJ$17","v":35.13701416946477},{"$f":"T18+T18*Control!$H$12*Weather!AW$21+T18*Control!$H$13*Prices!AK$15+ T18*Control!$H$14*Prices!AK$17","v":37.513387729985979},{"$f":"U18+U18*Control!$H$12*Weather!AX$21+U18*Control!$H$13*Prices!AL$15+ U18*Control!$H$14*Prices!AL$17","v":37.916801797916087},{"$f":"V18+V18*Control!$H$12*Weather!AY$21+V18*Control!$H$13*Prices!AM$15+ V18*Control!$H$14*Prices!AM$17","v":37.503380356490851},{"$f":"W18+W18*Control!$H$12*Weather!AZ$21+W18*Control!$H$13*Prices!AN$15+ W18*Control!$H$14*Prices!AN$17","v":36.811113430833664},{"$f":"X18+X18*Control!$H$12*Weather!BA$21+X18*Control!$H$13*Prices!AO$15+ X18*Control!$H$14*Prices!AO$17","v":35.731799919245077},{"$f":"Y18+Y18*Control!$H$12*Weather!BB$21+Y18*Control!$H$13*Prices!AP$15+ Y18*Control!$H$14*Prices!AP$17","v":35.184370629423242},{"$f":"Z18+Z18*Control!$H$12*Weather!BC$21+Z18*Control!$H$13*Prices!AQ$15+ Z18*Control!$H$14*Prices!AQ$17","v":34.233871908129061},{"$f":"AA18+AA18*Control!$H$12*Weather!BD$21+AA18*Control!$H$13*Prices!AR$15+ AA18*Control!$H$14*Prices!AR$17","v":33.89004776603938},{"$f":"AB18+AB18*Control!$H$12*Weather!BE$21+AB18*Control!$H$13*Prices!AS$15+ AB18*Control!$H$14*Prices!AS$17","v":33.565309892482368},{"$f":"AC18+AC18*Control!$H$12*Weather!BF$21+AC18*Control!$H$13*Prices!AT$15+ AC18*Control!$H$14*Prices!AT$17","v":33.590329127918253},{"$f":"AD18+AD18*Control!$H$12*Weather!BG$21+AD18*Control!$H$13*Prices!AU$15+ AD18*Control!$H$14*Prices!AU$17","v":33.447476674159724},{"$f":"AE18+AE18*Control!$H$12*Weather!BH$21+AE18*Control!$H$13*Prices!AV$15+ AE18*Control!$H$14*Prices!AV$17","v":32.716358750053537},{"$f":"AF18+AF18*Control!$H$12*Weather!BI$21+AF18*Control!$H$13*Prices!AW$15+ AF18*Control!$H$14*Prices!AW$17","v":32.024561115642662},{"$f":"AG18+AG18*Control!$H$12*Weather!BJ$21+AG18*Control!$H$13*Prices!AX$15+ AG18*Control!$H$14*Prices!AX$17","v":31.676684851008016},{"$f":"AH18+AH18*Control!$H$12*Weather!BK$21+AH18*Control!$H$13*Prices!AY$15+ AH18*Control!$H$14*Prices!AY$17","v":31.352350209371668},{"$f":"AI18+AI18*Control!$H$12*Weather!BL$21+AI18*Control!$H$13*Prices!AZ$15+ AI18*Control!$H$14*Prices!AZ$17","v":30.969464416445014},{"$f":"AJ18+AJ18*Control!$H$12*Weather!BM$21+AJ18*Control!$H$13*Prices!BA$15+ AJ18*Control!$H$14*Prices!BA$17","v":30.615626795504774},{"$f":"AK18+AK18*Control!$H$12*Weather!BN$21+AK18*Control!$H$13*Prices!BB$15+ AK18*Control!$H$14*Prices!BB$17","v":30.300960191320936},{"$f":"AL18+AL18*Control!$H$12*Weather!BO$21+AL18*Control!$H$13*Prices!BC$15+ AL18*Control!$H$14*Prices!BC$17","v":29.985850431662062},{"$f":"AM18+AM18*Control!$H$12*Weather!BP$21+AM18*Control!$H$13*Prices!BD$15+ AM18*Control!$H$14*Prices!BD$17","v":29.544761852866579},{"$f":"AN18+AN18*Control!$H$12*Weather!BQ$21+AN18*Control!$H$13*Prices!BE$15+ AN18*Control!$H$14*Prices!BE$17","v":29.162283396506396},{"$f":"AO18+AO18*Control!$H$12*Weather!BR$21+AO18*Control!$H$13*Prices!BF$15+ AO18*Control!$H$14*Prices!BF$17","v":28.630350179371156},{"$f":"AP18+AP18*Control!$H$12*Weather!BS$21+AP18*Control!$H$13*Prices!BG$15+ AP18*Control!$H$14*Prices!BG$17","v":28.188063718857052},{"$f":"AQ18+AQ18*Control!$H$12*Weather!BT$21+AQ18*Control!$H$13*Prices!BH$15+ AQ18*Control!$H$14*Prices!BH$17","v":27.790840634192993},{"$f":"AR18+AR18*Control!$H$12*Weather!BU$21+AR18*Control!$H$13*Prices!BI$15+ AR18*Control!$H$14*Prices!BI$17","v":27.384087402364219},{"$f":"AS18+AS18*Control!$H$12*Weather!BV$21+AS18*Control!$H$13*Prices!BJ$15+ AS18*Control!$H$14*Prices!BJ$17","v":28.473674633526098},{"$f":"AT18+AT18*Control!$H$12*Weather!BW$21+AT18*Control!$H$13*Prices!BK$15+ AT18*Control!$H$14*Prices!BK$17","v":28.621957290285447},{"$f":"AU18+AU18*Control!$H$12*Weather!BX$21+AU18*Control!$H$13*Prices!BL$15+ AU18*Control!$H$14*Prices!BL$17","v":28.224273309876082},{"$f":"AV18+AV18*Control!$H$12*Weather!BY$21+AV18*Control!$H$13*Prices!BM$15+ AV18*Control!$H$14*Prices!BM$17","v":27.74447576684371},{"$f":"AW18+AW18*Control!$H$12*Weather!BZ$21+AW18*Control!$H$13*Prices!BN$15+ AW18*Control!$H$14*Prices!BN$17","v":27.301743205783719},{"$f":"AX18+AX18*Control!$H$12*Weather!CA$21+AX18*Control!$H$13*Prices!BO$15+ AX18*Control!$H$14*Prices!BO$17","v":26.853194738664346},{"$f":"AY18+AY18*Control!$H$12*Weather!CB$21+AY18*Control!$H$13*Prices!BP$15+ AY18*Control!$H$14*Prices!BP$17","v":26.375463565563411},{"$f":"AZ18+AZ18*Control!$H$12*Weather!CC$21+AZ18*Control!$H$13*Prices!BQ$15+ AZ18*Control!$H$14*Prices!BQ$17","v":25.862399054861317},{"$f":"BA18+BA18*Control!$H$12*Weather!CD$21+BA18*Control!$H$13*Prices!BR$15+ BA18*Control!$H$14*Prices!BR$17","v":25.310092440618995},{"$f":"BB18+BB18*Control!$H$12*Weather!CE$21+BB18*Control!$H$13*Prices!BS$15+ BB18*Control!$H$14*Prices!BS$17","v":24.712295944551968},{"$f":"BC18+BC18*Control!$H$12*Weather!CF$21+BC18*Control!$H$13*Prices!BT$15+ BC18*Control!$H$14*Prices!BT$17","v":24.062298444565542},{"$f":"BD18+BD18*Control!$H$12*Weather!CG$21+BD18*Control!$H$13*Prices!BU$15+ BD18*Control!$H$14*Prices!BU$17","v":23.358353098004837},{"$f":"BE18+BE18*Control!$H$12*Weather!CH$21+BE18*Control!$H$13*Prices!BV$15+ BE18*Control!$H$14*Prices!BV$17","v":22.602330085194435},{"$f":"BF18+BF18*Control!$H$12*Weather!CI$21+BF18*Control!$H$13*Prices!BW$15+ BF18*Control!$H$14*Prices!BW$17","v":21.796363270272412},{"$f":"BG18+BG18*Control!$H$12*Weather!CJ$21+BG18*Control!$H$13*Prices!BX$15+ BG18*Control!$H$14*Prices!BX$17","v":20.93940101757244},{"$f":"BH18+BH18*Control!$H$12*Weather!CK$21+BH18*Control!$H$13*Prices!BY$15+ BH18*Control!$H$14*Prices!BY$17","v":20.027410309696624},{"$f":"BI18+BI18*Control!$H$12*Weather!CL$21+BI18*Control!$H$13*Prices!BZ$15+ BI18*Control!$H$14*Prices!BZ$17","v":19.054447517674642},{"$f":"BJ18+BJ18*Control!$H$12*Weather!CM$21+BJ18*Control!$H$13*Prices!CA$15+ BJ18*Control!$H$14*Prices!CA$17","v":18.014446528378805},{"$f":"BK18+BK18*Control!$H$12*Weather!CN$21+BK18*Control!$H$13*Prices!CB$15+ BK18*Control!$H$14*Prices!CB$17","v":17.103589368375662},{"$f":"BL18+BL18*Control!$H$12*Weather!CO$21+BL18*Control!$H$13*Prices!CC$15+ BL18*Control!$H$14*Prices!CC$17","v":16.348147806567823},{"$f":"BM18+BM18*Control!$H$12*Weather!CP$21+BM18*Control!$H$13*Prices!CD$15+ BM18*Control!$H$14*Prices!CD$17","v":15.646440584461276},{"$f":"BN18+BN18*Control!$H$12*Weather!CQ$21+BN18*Control!$H$13*Prices!CE$15+ BN18*Control!$H$14*Prices!CE$17","v":14.930266092869189},{"$f":"BO18+BO18*Control!$H$12*Weather!CR$21+BO18*Control!$H$13*Prices!CF$15+ BO18*Control!$H$14*Prices!CF$17","v":14.162131263632865},{"$f":"BP18+BP18*Control!$H$12*Weather!CS$21+BP18*Control!$H$13*Prices!CG$15+ BP18*Control!$H$14*Prices!CG$17","v":13.180691412779183},{"$f":"BQ18+BQ18*Control!$H$12*Weather!CT$21+BQ18*Control!$H$13*Prices!CH$15+ BQ18*Control!$H$14*Prices!CH$17","v":11.945983614134317},{"$f":"BR18+BR18*Control!$H$12*Weather!CU$21+BR18*Control!$H$13*Prices!CI$15+ BR18*Control!$H$14*Prices!CI$17","v":10.45994958381495},{"$f":"BS18+BS18*Control!$H$12*Weather!CV$21+BS18*Control!$H$13*Prices!CJ$15+ BS18*Control!$H$14*Prices!CJ$17","v":16.623234491346363},{"$f":"BT18+BT18*Control!$H$12*Weather!CW$21+BT18*Control!$H$13*Prices!CK$15+ BT18*Control!$H$14*Prices!CK$17","v":16.580060846897521},{"$f":"BU18+BU18*Control!$H$12*Weather!CX$21+BU18*Control!$H$13*Prices!CL$15+ BU18*Control!$H$14*Prices!CL$17","v":16.536776245908783},{"$f":"BV18+BV18*Control!$H$12*Weather!CY$21+BV18*Control!$H$13*Prices!CM$15+ BV18*Control!$H$14*Prices!CM$17","v":16.493379312853037},{"$f":"BW18+BW18*Control!$H$12*Weather!CZ$21+BW18*Control!$H$13*Prices!CN$15+ BW18*Control!$H$14*Prices!CN$17","v":16.449868649371258},{"$f":"BX18+BX18*Control!$H$12*Weather!DA$21+BX18*Control!$H$13*Prices!CO$15+ BX18*Control!$H$14*Prices!CO$17","v":16.406242833740478},{"$f":"BY18+BY18*Control!$H$12*Weather!DB$21+BY18*Control!$H$13*Prices!CP$15+ BY18*Control!$H$14*Prices!CP$17","v":16.362500420325922},{"$f":"BZ18+BZ18*Control!$H$12*Weather!DC$21+BZ18*Control!$H$13*Prices!CQ$15+ BZ18*Control!$H$14*Prices!CQ$17","v":16.318639939016741},{"$f":"CA18+CA18*Control!$H$12*Weather!DD$21+CA18*Control!$H$13*Prices!CR$15+ CA18*Control!$H$14*Prices!CR$17","v":16.27465989464477},{"$f":"CB18+CB18*Control!$H$12*Weather!DE$21+CB18*Control!$H$13*Prices!CS$15+ CB18*Control!$H$14*Prices!CS$17","v":16.230558766385659},{"$f":"CC18+CC18*Control!$H$12*Weather!DF$21+CC18*Control!$H$13*Prices!CT$15+ CC18*Control!$H$14*Prices!CT$17","v":16.186335007141743},{"$f":"CD18+CD18*Control!$H$12*Weather!DG$21+CD18*Control!$H$13*Prices!CU$15+ CD18*Control!$H$14*Prices!CU$17","v":16.141987042905946},{"$f":"CE18+CE18*Control!$H$12*Weather!DH$21+CE18*Control!$H$13*Prices!CV$15+ CE18*Control!$H$14*Prices!CV$17","v":16.097513272106031},{"$f":"CF18+CF18*Control!$H$12*Weather!DI$21+CF18*Control!$H$13*Prices!CW$15+ CF18*Control!$H$14*Prices!CW$17","v":16.052912064928456},{"$f":"CG18+CG18*Control!$H$12*Weather!DJ$21+CG18*Control!$H$13*Prices!CX$15+ CG18*Control!$H$14*Prices!CX$17","v":16.008181762621021},{"$f":"CH18+CH18*Control!$H$12*Weather!DK$21+CH18*Control!$H$13*Prices!CY$15+ CH18*Control!$H$14*Prices!CY$17","v":15.963320676773543},{"$f":"CI18+CI18*Control!$H$12*Weather!DL$21+CI18*Control!$H$13*Prices!CZ$15+ CI18*Control!$H$14*Prices!CZ$17","v":15.918327088575705},{"$f":"CJ18+CJ18*Control!$H$12*Weather!DM$21+CJ18*Control!$H$13*Prices!DA$15+ CJ18*Control!$H$14*Prices!DA$17","v":15.873199248051142},{"$f":"CK18+CK18*Control!$H$12*Weather!DN$21+CK18*Control!$H$13*Prices!DB$15+ CK18*Control!$H$14*Prices!DB$17","v":15.960872636549665}]
["South Gippsland (S)",{"$f":"'Volume per connection'!B65","v":15.334739034522816},{"$f":"'Volume per connection'!C65","v":29.070575048231486},{"$f":"'Volume per connection'!D65","v":33.401928848641653},{"$f":"'Volume per connection'!E65","v":35.329693039857226},{"$f":"'Volume per connection'!F65","v":34.458022246941042},{"$f":"'Volume per connection'!G65","v":37.376096620908136},{"$f":"'Volume per connection'!H65","v":35.494840080971663},{"$f":"'Volume per connection'!I65","v":35.498274519230769},{"$f":"'Volume per connection'!J65","v":39.542975023126736},{"$f":"J19+J19*Control!$H$12*Weather!AM$21+J19*Control!$H$13*Prices!AA$15+ J19*Control!$H$14*Prices!AA$17","v":38.336840147262194},{"$f":"K19+K19*Control!$H$12*Weather!AN$21+K19*Control!$H$13*Prices!AB$15+ K19*Control!$H$14*Prices!AB$17","v":36.4783027983691},{"$f":"L19+L19*Control!$H$12*Weather!AO$21+L19*Control!$H$13*Prices!AC$15+ L19*Control!$H$14*Prices!AC$17","v":38.083429917911168},{"$f":"M19+M19*Control!$H$12*Weather!AP$21+M19*Control!$H$13*Prices!AD$15+ M19*Control!$H$14*Prices!AD$17","v":38.485997718172911},{"$f":"N19+N19*Control!$H$12*Weather!AQ$21+N19*Control!$H$13*Prices!AE$15+ N19*Control!$H$14*Prices!AE$17","v":39.407693998861959},{"$f":"O19+O19*Control!$H$12*Weather!AR$21+O19*Control!$H$13*Prices!AF$15+ O19*Control!$H$14*Prices!AF$17","v":39.54119918099115},{"$f":"P19+P19*Control!$H$12*Weather!AS$21+P19*Control!$H$13*Prices!AG$15+ P19*Control!$H$14*Prices!AG$17","v":38.768967904064894},{"$f":"Q19+Q19*Control!$H$12*Weather!AT$21+Q19*Control!$H$13*Prices!AH$15+ Q19*Control!$H$14*Prices!AH$17","v":36.86065159799422},{"$f":"R19+R19*Control!$H$12*Weather!AU$21+R19*Control!$H$13*Prices!AI$15+ R19*Control!$H$14*Prices!AI$17","v":35.334809498333328},{"$f":"S19+S19*Control!$H$12*Weather!AV$21+S19*Control!$H$13*Prices!AJ$15+ S19*Control!$H$14*Prices!AJ$17","v":34.52699481574367},{"$f":"T19+T19*Control!$H$12*Weather!AW$21+T19*Control!$H$13*Prices!AK$15+ T19*Control!$H$14*Prices!AK$17","v":36.862111772712922},{"$f":"U19+U19*Control!$H$12*Weather!AX$21+U19*Control!$H$13*Prices!AL$15+ U19*Control!$H$14*Prices!AL$17","v":37.258522104132759},{"$f":"V19+V19*Control!$H$12*Weather!AY$21+V19*Control!$H$13*Prices!AM$15+ V19*Control!$H$14*Prices!AM$17","v":36.852278138838429},{"$f":"W19+W19*Control!$H$12*Weather!AZ$21+W19*Control!$H$13*Prices!AN$15+ W19*Control!$H$14*Prices!AN$17","v":36.172029770607757},{"$f":"X19+X19*Control!$H$12*Weather!BA$21+X19*Control!$H$13*Prices!AO$15+ X19*Control!$H$14*Prices!AO$17","v":35.111454394468765},{"$f":"Y19+Y19*Control!$H$12*Weather!BB$21+Y19*Control!$H$13*Prices!AP$15+ Y19*Control!$H$14*Prices!AP$17","v":34.57352911258495},{"$f":"Z19+Z19*Control!$H$12*Weather!BC$21+Z19*Control!$H$13*Prices!AQ$15+ Z19*Control!$H$14*Prices!AQ$17","v":33.639532152450101},{"$f":"AA19+AA19*Control!$H$12*Weather!BD$21+AA19*Control!$H$13*Prices!AR$15+ AA19*Control!$H$14*Prices!AR$17","v":33.30167719658494},{"$f":"AB19+AB19*Control!$H$12*Weather!BE$21+AB19*Control!$H$13*Prices!AS$15+ AB19*Control!$H$14*Prices!AS$17","v":32.982577149475013},{"$f":"AC19+AC19*Control!$H$12*Weather!BF$21+AC19*Control!$H$13*Prices!AT$15+ AC19*Control!$H$14*Prices!AT$17","v":33.007162021940914},{"$f":"AD19+AD19*Control!$H$12*Weather!BG$21+AD19*Control!$H$13*Prices!AU$15+ AD19*Control!$H$14*Prices!AU$17","v":32.866789652605576},{"$f":"AE19+AE19*Control!$H$12*Weather!BH$21+AE19*Control!$H$13*Prices!AV$15+ AE19*Control!$H$14*Prices!AV$17","v":32.14836478435798},{"$f":"AF19+AF19*Control!$H$12*Weather!BI$21+AF19*Control!$H$13*Prices!AW$15+ AF19*Control!$H$14*Prices!AW$17","v":31.468577559932815},{"$f":"AG19+AG19*Control!$H$12*Weather!BJ$21+AG19*Control!$H$13*Prices!AX$15+ AG19*Control!$H$14*Prices!AX$17","v":31.126740831073857},{"$f":"AH19+AH19*Control!$H$12*Weather!BK$21+AH19*Control!$H$13*Prices!AY$15+ AH19*Control!$H$14*Prices!AY$17","v":30.808037015310365},{"$f":"AI19+AI19*Control!$H$12*Weather!BL$21+AI19*Control!$H$13*Prices!AZ$15+ AI19*Control!$H$14*Prices!AZ$17","v":30.431798564210304},{"$f":"AJ19+AJ19*Control!$H$12*Weather!BM$21+AJ19*Control!$H$13*Prices!BA$15+ AJ19*Control!$H$14*Prices!BA$17","v":30.084103975111272},{"$f":"AK19+AK19*Control!$H$12*Weather!BN$21+AK19*Control!$H$13*Prices!BB$15+ AK19*Control!$H$14*Prices!BB$17","v":29.774900348447268},{"$f":"AL19+AL19*Control!$H$12*Weather!BO$21+AL19*Control!$H$13*Prices!BC$15+ AL19*Control!$H$14*Prices!BC$17","v":29.465261260001697},{"$f":"AM19+AM19*Control!$H$12*Weather!BP$21+AM19*Control!$H$13*Prices!BD$15+ AM19*Control!$H$14*Prices!BD$17","v":29.031830490958427},{"$f":"AN19+AN19*Control!$H$12*Weather!BQ$21+AN19*Control!$H$13*Prices!BE$15+ AN19*Control!$H$14*Prices!BE$17","v":28.655992304589194},{"$f":"AO19+AO19*Control!$H$12*Weather!BR$21+AO19*Control!$H$13*Prices!BF$15+ AO19*Control!$H$14*Prices!BF$17","v":28.133294065581996},{"$f":"AP19+AP19*Control!$H$12*Weather!BS$21+AP19*Control!$H$13*Prices!BG$15+ AP19*Control!$H$14*Prices!BG$17","v":27.698686211437263},{"$f":"AQ19+AQ19*Control!$H$12*Weather!BT$21+AQ19*Control!$H$13*Prices!BH$15+ AQ19*Control!$H$14*Prices!BH$17","v":27.308359380627362},{"$f":"AR19+AR19*Control!$H$12*Weather!BU$21+AR19*Control!$H$13*Prices!BI$15+ AR19*Control!$H$14*Prices!BI$17","v":26.908667857070313},{"$f":"AS19+AS19*Control!$H$12*Weather!BV$21+AS19*Control!$H$13*Prices!BJ$15+ AS19*Control!$H$14*Prices!BJ$17","v":27.979338589084868},{"$f":"AT19+AT19*Control!$H$12*Weather!BW$21+AT19*Control!$H$13*Prices!BK$15+ AT19*Control!$H$14*Prices!BK$17","v":28.125046886793442},{"$f":"AU19+AU19*Control!$H$12*Weather!BX$21+AU19*Control!$H$13*Prices!BL$15+ AU19*Control!$H$14*Prices!BL$17","v":27.734267161923391},{"$f":"AV19+AV19*Control!$H$12*Weather!BY$21+AV19*Control!$H$13*Prices!BM$15+ AV19*Control!$H$14*Prices!BM$17","v":27.262799461196511},{"$f":"AW19+AW19*Control!$H$12*Weather!BZ$21+AW19*Control!$H$13*Prices!BN$15+ AW19*Control!$H$14*Prices!BN$17","v":26.827753251329217},{"$f":"AX19+AX19*Control!$H$12*Weather!CA$21+AX19*Control!$H$13*Prices!BO$15+ AX19*Control!$H$14*Prices!BO$17","v":26.386992106282946},{"$f":"AY19+AY19*Control!$H$12*Weather!CB$21+AY19*Control!$H$13*Prices!BP$15+ AY19*Control!$H$14*Prices!BP$17","v":25.917554900906815},{"$f":"AZ19+AZ19*Control!$H$12*Weather!CC$21+AZ19*Control!$H$13*Prices!BQ$15+ AZ19*Control!$H$14*Prices!BQ$17","v":25.413397785685913},{"$f":"BA19+BA19*Control!$H$12*Weather!CD$21+BA19*Control!$H$13*Prices!BR$15+ BA19*Control!$H$14*Prices!BR$17","v":24.870679855395249},{"$f":"BB19+BB19*Control!$H$12*Weather!CE$21+BB19*Control!$H$13*Prices!BS$15+ BB19*Control!$H$14*Prices!BS$17","v":24.283261800433916},{"$f":"BC19+BC19*Control!$H$12*Weather!CF$21+BC19*Control!$H$13*Prices!BT$15+ BC19*Control!$H$14*Prices!BT$17","v":23.644549011577173},{"$f":"BD19+BD19*Control!$H$12*Weather!CG$21+BD19*Control!$H$13*Prices!BU$15+ BD19*Control!$H$14*Prices!BU$17","v":22.952824973386409},{"$f":"BE19+BE19*Control!$H$12*Weather!CH$21+BE19*Control!$H$13*Prices!BV$15+ BE19*Control!$H$14*Prices!BV$17","v":22.209927397684826},{"$f":"BF19+BF19*Control!$H$12*Weather!CI$21+BF19*Control!$H$13*Prices!BW$15+ BF19*Control!$H$14*Prices!BW$17","v":21.417953102252028},{"$f":"BG19+BG19*Control!$H$12*Weather!CJ$21+BG19*Control!$H$13*Prices!BX$15+ BG19*Control!$H$14*Prices!BX$17","v":20.575868709037618},{"$f":"BH19+BH19*Control!$H$12*Weather!CK$21+BH19*Control!$H$13*Prices!BY$15+ BH19*Control!$H$14*Prices!BY$17","v":19.679711218507329},{"$f":"BI19+BI19*Control!$H$12*Weather!CL$21+BI19*Control!$H$13*Prices!BZ$15+ BI19*Control!$H$14*Prices!BZ$17","v":18.723640189989251},{"$f":"BJ19+BJ19*Control!$H$12*Weather!CM$21+BJ19*Control!$H$13*Prices!CA$15+ BJ19*Control!$H$14*Prices!CA$17","v":17.701694825121255},{"$f":"BK19+BK19*Control!$H$12*Weather!CN$21+BK19*Control!$H$13*Prices!CB$15+ BK19*Control!$H$14*Prices!CB$17","v":16.806651202756726},{"$f":"BL19+BL19*Control!$H$12*Weather!CO$21+BL19*Control!$H$13*Prices!CC$15+ BL19*Control!$H$14*Prices!CC$17","v":16.064324983393341},{"$f":"BM19+BM19*Control!$H$12*Weather!CP$21+BM19*Control!$H$13*Prices!CD$15+ BM19*Control!$H$14*Prices!CD$17","v":15.374800213218149},{"$f":"BN19+BN19*Control!$H$12*Weather!CQ$21+BN19*Control!$H$13*Prices!CE$15+ BN19*Control!$H$14*Prices!CE$17","v":14.671059342149578},{"$f":"BO19+BO19*Control!$H$12*Weather!CR$21+BO19*Control!$H$13*Prices!CF$15+ BO19*Control!$H$14*Prices!CF$17","v":13.91626022521486},{"$f":"BP19+BP19*Control!$H$12*Weather!CS$21+BP19*Control!$H$13*Prices!CG$15+ BP19*Control!$H$14*Prices!CG$17","v":12.951859309446737},{"$f":"BQ19+BQ19*Control!$H$12*Weather!CT$21+BQ19*Control!$H$13*Prices!CH$15+ BQ19*Control!$H$14*Prices!CH$17","v":11.738587471459514},{"$f":"BR19+BR19*Control!$H$12*Weather!CU$21+BR19*Control!$H$13*Prices!CI$15+ BR19*Control!$H$14*Prices!CI$17","v":10.278352716924108},{"$f":"BS19+BS19*Control!$H$12*Weather!CV$21+BS19*Control!$H$13*Prices!CJ$15+ BS19*Control!$H$14*Prices!CJ$17","v":16.334635843998072},{"$f":"BT19+BT19*Control!$H$12*Weather!CW$21+BT19*Control!$H$13*Prices!CK$15+ BT19*Control!$H$14*Prices!CK$17","v":16.292211744133681},{"$f":"BU19+BU19*Control!$H$12*Weather!CX$21+BU19*Control!$H$13*Prices!CL$15+ BU19*Control!$H$14*Prices!CL$17","v":16.249678614063729},{"$f":"BV19+BV19*Control!$H$12*Weather!CY$21+BV19*Control!$H$13*Prices!CM$15+ BV19*Control!$H$14*Prices!CM$17","v":16.207035102141848},{"$f":"BW19+BW19*Control!$H$12*Weather!CZ$21+BW19*Control!$H$13*Prices!CN$15+ BW19*Control!$H$14*Prices!CN$17","v":16.164279834286148},{"$f":"BX19+BX19*Control!$H$12*Weather!DA$21+BX19*Control!$H$13*Prices!CO$15+ BX19*Control!$H$14*Prices!CO$17","v":16.121411413456428},{"$f":"BY19+BY19*Control!$H$12*Weather!DB$21+BY19*Control!$H$13*Prices!CP$15+ BY19*Control!$H$14*Prices!CP$17","v":16.078428419115806},{"$f":"BZ19+BZ19*Control!$H$12*Weather!DC$21+BZ19*Control!$H$13*Prices!CQ$15+ BZ19*Control!$H$14*Prices!CQ$17","v":16.035329406676265},{"$f":"CA19+CA19*Control!$H$12*Weather!DD$21+CA19*Control!$H$13*Prices!CR$15+ CA19*Control!$H$14*Prices!CR$17","v":15.992112906927494},{"$f":"CB19+CB19*Control!$H$12*Weather!DE$21+CB19*Control!$H$13*Prices!CS$15+ CB19*Control!$H$14*Prices!CS$17","v":15.948777425448419},{"$f":"CC19+CC19*Control!$H$12*Weather!DF$21+CC19*Control!$H$13*Prices!CT$15+ CC19*Control!$H$14*Prices!CT$17","v":15.905321442000789},{"$f":"CD19+CD19*Control!$H$12*Weather!DG$21+CD19*Control!$H$13*Prices!CU$15+ CD19*Control!$H$14*Prices!CU$17","v":15.861743409904117},{"$f":"CE19+CE19*Control!$H$12*Weather!DH$21+CE19*Control!$H$13*Prices!CV$15+ CE19*Control!$H$14*Prices!CV$17","v":15.818041755391322},{"$f":"CF19+CF19*Control!$H$12*Weather!DI$21+CF19*Control!$H$13*Prices!CW$15+ CF19*Control!$H$14*Prices!CW$17","v":15.77421487694431},{"$f":"CG19+CG19*Control!$H$12*Weather!DJ$21+CG19*Control!$H$13*Prices!CX$15+ CG19*Control!$H$14*Prices!CX$17","v":15.730261144608749},{"$f":"CH19+CH19*Control!$H$12*Weather!DK$21+CH19*Control!$H$13*Prices!CY$15+ CH19*Control!$H$14*Prices!CY$17","v":15.686178899287217},{"$f":"CI19+CI19*Control!$H$12*Weather!DL$21+CI19*Control!$H$13*Prices!CZ$15+ CI19*Control!$H$14*Prices!CZ$17","v":15.641966452009937},{"$f":"CJ19+CJ19*Control!$H$12*Weather!DM$21+CJ19*Control!$H$13*Prices!DA$15+ CJ19*Control!$H$14*Prices!DA$17","v":15.597622083182168},{"$f":"CK19+CK19*Control!$H$12*Weather!DN$21+CK19*Control!$H$13*Prices!DB$15+ CK19*Control!$H$14*Prices!DB$17","v":15.683773359883357}]
["Stonnington (C)",{"$f":"'Volume per connection'!B66","v":24.042002575503311},{"$f":"'Volume per connection'!C66","v":45.174148602411641},{"$f":"'Volume per connection'!D66","v":53.446355450972284},{"$f":"'Volume per connection'!E66","v":51.992813081936688},{"$f":"'Volume per connection'!F66","v":51.197174506710802},{"$f":"'Volume per connection'!G66","v":54.2970385778927},{"$f":"'Volume per connection'!H66","v":52.011751327251176},{"$f":"'Volume per connection'!I66","v":51.323025664173329},{"$f":"'Volume per connection'!J66","v":54.617740371743388},{"$f":"J20+J20*Control!$H$12*Weather!AM$21+J20*Control!$H$13*Prices!AA$15+ J20*Control!$H$14*Prices!AA$17","v":52.951796889626863},{"$f":"K20+K20*Control!$H$12*Weather!AN$21+K20*Control!$H$13*Prices!AB$15+ K20*Control!$H$14*Prices!AB$17","v":50.384738889219364},{"$f":"L20+L20*Control!$H$12*Weather!AO$21+L20*Control!$H$13*Prices!AC$15+ L20*Control!$H$14*Prices!AC$17","v":52.601780379585726},{"$f":"M20+M20*Control!$H$12*Weather!AP$21+M20*Control!$H$13*Prices!AD$15+ M20*Control!$H$14*Prices!AD$17","v":53.157817035498965},{"$f":"N20+N20*Control!$H$12*Weather!AQ$21+N20*Control!$H$13*Prices!AE$15+ N20*Control!$H$14*Prices!AE$17","v":54.430886857150824},{"$f":"O20+O20*Control!$H$12*Weather!AR$21+O20*Control!$H$13*Prices!AF$15+ O20*Control!$H$14*Prices!AF$17","v":54.615287534427878},{"$f":"P20+P20*Control!$H$12*Weather!AS$21+P20*Control!$H$13*Prices!AG$15+ P20*Control!$H$14*Prices!AG$17","v":53.548662492547983},{"$f":"Q20+Q20*Control!$H$12*Weather!AT$21+Q20*Control!$H$13*Prices!AH$15+ Q20*Control!$H$14*Prices!AH$17","v":50.912848558690584},{"$f":"R20+R20*Control!$H$12*Weather!AU$21+R20*Control!$H$13*Prices!AI$15+ R20*Control!$H$14*Prices!AI$17","v":48.805317509273728},{"$f":"S20+S20*Control!$H$12*Weather!AV$21+S20*Control!$H$13*Prices!AJ$15+ S20*Control!$H$14*Prices!AJ$17","v":47.689543782679813},{"$f":"T20+T20*Control!$H$12*Weather!AW$21+T20*Control!$H$13*Prices!AK$15+ T20*Control!$H$14*Prices!AK$17","v":50.914865388320521},{"$f":"U20+U20*Control!$H$12*Weather!AX$21+U20*Control!$H$13*Prices!AL$15+ U20*Control!$H$14*Prices!AL$17","v":51.462397195158594},{"$f":"V20+V20*Control!$H$12*Weather!AY$21+V20*Control!$H$13*Prices!AM$15+ V20*Control!$H$14*Prices!AM$17","v":50.90128292869138},{"$f":"W20+W20*Control!$H$12*Weather!AZ$21+W20*Control!$H$13*Prices!AN$15+ W20*Control!$H$14*Prices!AN$17","v":49.961706967535306},{"$f":"X20+X20*Control!$H$12*Weather!BA$21+X20*Control!$H$13*Prices!AO$15+ X20*Control!$H$14*Prices!AO$17","v":48.496813885900821},{"$f":"Y20+Y20*Control!$H$12*Weather!BB$21+Y20*Control!$H$13*Prices!AP$15+ Y20*Control!$H$14*Prices!AP$17","v":47.753818110591965},{"$f":"Z20+Z20*Control!$H$12*Weather!BC$21+Z20*Control!$H$13*Prices!AQ$15+ Z20*Control!$H$14*Prices!AQ$17","v":46.463758284622685},{"$f":"AA20+AA20*Control!$H$12*Weather!BD$21+AA20*Control!$H$13*Prices!AR$15+ AA20*Control!$H$14*Prices!AR$17","v":45.997104618530088},{"$f":"AB20+AB20*Control!$H$12*Weather!BE$21+AB20*Control!$H$13*Prices!AS$15+ AB20*Control!$H$14*Prices!AS$17","v":45.556355698767014},{"$f":"AC20+AC20*Control!$H$12*Weather!BF$21+AC20*Control!$H$13*Prices!AT$15+ AC20*Control!$H$14*Prices!AT$17","v":45.59031293594073},{"$f":"AD20+AD20*Control!$H$12*Weather!BG$21+AD20*Control!$H$13*Prices!AU$15+ AD20*Control!$H$14*Prices!AU$17","v":45.396427128936082},{"$f":"AE20+AE20*Control!$H$12*Weather!BH$21+AE20*Control!$H$13*Prices!AV$15+ AE20*Control!$H$14*Prices!AV$17","v":44.404120836665399},{"$f":"AF20+AF20*Control!$H$12*Weather!BI$21+AF20*Control!$H$13*Prices!AW$15+ AF20*Control!$H$14*Prices!AW$17","v":43.465181818800232},{"$f":"AG20+AG20*Control!$H$12*Weather!BJ$21+AG20*Control!$H$13*Prices!AX$15+ AG20*Control!$H$14*Prices!AX$17","v":42.993028428838421},{"$f":"AH20+AH20*Control!$H$12*Weather!BK$21+AH20*Control!$H$13*Prices!AY$15+ AH20*Control!$H$14*Prices!AY$17","v":42.552826793663677},{"$f":"AI20+AI20*Control!$H$12*Weather!BL$21+AI20*Control!$H$13*Prices!AZ$15+ AI20*Control!$H$14*Prices!AZ$17","v":42.033156889514281},{"$f":"AJ20+AJ20*Control!$H$12*Weather!BM$21+AJ20*Control!$H$13*Prices!BA$15+ AJ20*Control!$H$14*Prices!BA$17","v":41.552912477328192},{"$f":"AK20+AK20*Control!$H$12*Weather!BN$21+AK20*Control!$H$13*Prices!BB$15+ AK20*Control!$H$14*Prices!BB$17","v":41.125832739567969},{"$f":"AL20+AL20*Control!$H$12*Weather!BO$21+AL20*Control!$H$13*Prices!BC$15+ AL20*Control!$H$14*Prices!BC$17","v":40.698151531166921},{"$f":"AM20+AM20*Control!$H$12*Weather!BP$21+AM20*Control!$H$13*Prices!BD$15+ AM20*Control!$H$14*Prices!BD$17","v":40.099486175338612},{"$f":"AN20+AN20*Control!$H$12*Weather!BQ$21+AN20*Control!$H$13*Prices!BE$15+ AN20*Control!$H$14*Prices!BE$17","v":39.580369126788369},{"$f":"AO20+AO20*Control!$H$12*Weather!BR$21+AO20*Control!$H$13*Prices!BF$15+ AO20*Control!$H$14*Prices!BF$17","v":38.858405321734097},{"$f":"AP20+AP20*Control!$H$12*Weather!BS$21+AP20*Control!$H$13*Prices!BG$15+ AP20*Control!$H$14*Prices!BG$17","v":38.258114146694417},{"$f":"AQ20+AQ20*Control!$H$12*Weather!BT$21+AQ20*Control!$H$13*Prices!BH$15+ AQ20*Control!$H$14*Prices!BH$17","v":37.718985022170223},{"$f":"AR20+AR20*Control!$H$12*Weather!BU$21+AR20*Control!$H$13*Prices!BI$15+ AR20*Control!$H$14*Prices!BI$17","v":37.16692115116259},{"$f":"AS20+AS20*Control!$H$12*Weather!BV$21+AS20*Control!$H$13*Prices!BJ$15+ AS20*Control!$H$14*Prices!BJ$17","v":38.645758189362041},{"$f":"AT20+AT20*Control!$H$12*Weather!BW$21+AT20*Control!$H$13*Prices!BK$15+ AT20*Control!$H$14*Prices!BK$17","v":38.847014113318224},{"$f":"AU20+AU20*Control!$H$12*Weather!BX$21+AU20*Control!$H$13*Prices!BL$15+ AU20*Control!$H$14*Prices!BL$17","v":38.307259440256551},{"$f":"AV20+AV20*Control!$H$12*Weather!BY$21+AV20*Control!$H$13*Prices!BM$15+ AV20*Control!$H$14*Prices!BM$17","v":37.65605652856609},{"$f":"AW20+AW20*Control!$H$12*Weather!BZ$21+AW20*Control!$H$13*Prices!BN$15+ AW20*Control!$H$14*Prices!BN$17","v":37.055159885702317},{"$f":"AX20+AX20*Control!$H$12*Weather!CA$21+AX20*Control!$H$13*Prices!BO$15+ AX20*Control!$H$14*Prices!BO$17","v":36.446369632262602},{"$f":"AY20+AY20*Control!$H$12*Weather!CB$21+AY20*Control!$H$13*Prices!BP$15+ AY20*Control!$H$14*Prices!BP$17","v":35.797971291240586},{"$f":"AZ20+AZ20*Control!$H$12*Weather!CC$21+AZ20*Control!$H$13*Prices!BQ$15+ AZ20*Control!$H$14*Prices!BQ$17","v":35.101616947400807},{"$f":"BA20+BA20*Control!$H$12*Weather!CD$21+BA20*Control!$H$13*Prices!BR$15+ BA20*Control!$H$14*Prices!BR$17","v":34.35200144693912},{"$f":"BB20+BB20*Control!$H$12*Weather!CE$21+BB20*Control!$H$13*Prices!BS$15+ BB20*Control!$H$14*Prices!BS$17","v":33.540645022775564},{"$f":"BC20+BC20*Control!$H$12*Weather!CF$21+BC20*Control!$H$13*Prices!BT$15+ BC20*Control!$H$14*Prices!BT$17","v":32.658439036668369},{"$f":"BD20+BD20*Control!$H$12*Weather!CG$21+BD20*Control!$H$13*Prices!BU$15+ BD20*Control!$H$14*Prices!BU$17","v":31.703012594811092},{"$f":"BE20+BE20*Control!$H$12*Weather!CH$21+BE20*Control!$H$13*Prices!BV$15+ BE20*Control!$H$14*Prices!BV$17","v":30.676903990470212},{"$f":"BF20+BF20*Control!$H$12*Weather!CI$21+BF20*Control!$H$13*Prices!BW$15+ BF20*Control!$H$14*Prices!BW$17","v":29.583009400502089},{"$f":"BG20+BG20*Control!$H$12*Weather!CJ$21+BG20*Control!$H$13*Prices!BX$15+ BG20*Control!$H$14*Prices!BX$17","v":28.419901497447679},{"$f":"BH20+BH20*Control!$H$12*Weather!CK$21+BH20*Control!$H$13*Prices!BY$15+ BH20*Control!$H$14*Prices!BY$17","v":27.182106487806898},{"$f":"BI20+BI20*Control!$H$12*Weather!CL$21+BI20*Control!$H$13*Prices!BZ$15+ BI20*Control!$H$14*Prices!BZ$17","v":25.861557409696157},{"$f":"BJ20+BJ20*Control!$H$12*Weather!CM$21+BJ20*Control!$H$13*Prices!CA$15+ BJ20*Control!$H$14*Prices!CA$17","v":24.450021060197347},{"$f":"BK20+BK20*Control!$H$12*Weather!CN$21+BK20*Control!$H$13*Prices!CB$15+ BK20*Control!$H$14*Prices!CB$17","v":23.213764552964392},{"$f":"BL20+BL20*Control!$H$12*Weather!CO$21+BL20*Control!$H$13*Prices!CC$15+ BL20*Control!$H$14*Prices!CC$17","v":22.188445120205099},{"$f":"BM20+BM20*Control!$H$12*Weather!CP$21+BM20*Control!$H$13*Prices!CD$15+ BM20*Control!$H$14*Prices!CD$17","v":21.236056362017607},{"$f":"BN20+BN20*Control!$H$12*Weather!CQ$21+BN20*Control!$H$13*Prices!CE$15+ BN20*Control!$H$14*Prices!CE$17","v":20.264031971780707},{"$f":"BO20+BO20*Control!$H$12*Weather!CR$21+BO20*Control!$H$13*Prices!CF$15+ BO20*Control!$H$14*Prices!CF$17","v":19.221484662746651},{"$f":"BP20+BP20*Control!$H$12*Weather!CS$21+BP20*Control!$H$13*Prices!CG$15+ BP20*Control!$H$14*Prices!CG$17","v":17.889430137236399},{"$f":"BQ20+BQ20*Control!$H$12*Weather!CT$21+BQ20*Control!$H$13*Prices!CH$15+ BQ20*Control!$H$14*Prices!CH$17","v":16.213628905569376},{"$f":"BR20+BR20*Control!$H$12*Weather!CU$21+BR20*Control!$H$13*Prices!CI$15+ BR20*Control!$H$14*Prices!CI$17","v":14.196716352622444},{"$f":"BS20+BS20*Control!$H$12*Weather!CV$21+BS20*Control!$H$13*Prices!CJ$15+ BS20*Control!$H$14*Prices!CJ$17","v":22.561805202382455},{"$f":"BT20+BT20*Control!$H$12*Weather!CW$21+BT20*Control!$H$13*Prices!CK$15+ BT20*Control!$H$14*Prices!CK$17","v":22.503207980738331},{"$f":"BU20+BU20*Control!$H$12*Weather!CX$21+BU20*Control!$H$13*Prices!CL$15+ BU20*Control!$H$14*Prices!CL$17","v":22.444460163863159},{"$f":"BV20+BV20*Control!$H$12*Weather!CY$21+BV20*Control!$H$13*Prices!CM$15+ BV20*Control!$H$14*Prices!CM$17","v":22.385559884829359},{"$f":"BW20+BW20*Control!$H$12*Weather!CZ$21+BW20*Control!$H$13*Prices!CN$15+ BW20*Control!$H$14*Prices!CN$17","v":22.32650524572087},{"$f":"BX20+BX20*Control!$H$12*Weather!DA$21+BX20*Control!$H$13*Prices!CO$15+ BX20*Control!$H$14*Prices!CO$17","v":22.267294316911013},{"$f":"BY20+BY20*Control!$H$12*Weather!DB$21+BY20*Control!$H$13*Prices!CP$15+ BY20*Control!$H$14*Prices!CP$17","v":22.207925136318931},{"$f":"BZ20+BZ20*Control!$H$12*Weather!DC$21+BZ20*Control!$H$13*Prices!CQ$15+ BZ20*Control!$H$14*Prices!CQ$17","v":22.148395708643726},{"$f":"CA20+CA20*Control!$H$12*Weather!DD$21+CA20*Control!$H$13*Prices!CR$15+ CA20*Control!$H$14*Prices!CR$17","v":22.088704004575597},{"$f":"CB20+CB20*Control!$H$12*Weather!DE$21+CB20*Control!$H$13*Prices!CS$15+ CB20*Control!$H$14*Prices!CS$17","v":22.028847959982993},{"$f":"CC20+CC20*Control!$H$12*Weather!DF$21+CC20*Control!$H$13*Prices!CT$15+ CC20*Control!$H$14*Prices!CT$17","v":21.968825475075032},{"$f":"CD20+CD20*Control!$H$12*Weather!DG$21+CD20*Control!$H$13*Prices!CU$15+ CD20*Control!$H$14*Prices!CU$17","v":21.908634413538174},{"$f":"CE20+CE20*Control!$H$12*Weather!DH$21+CE20*Control!$H$13*Prices!CV$15+ CE20*Control!$H$14*Prices!CV$17","v":21.848272601646187},{"$f":"CF20+CF20*Control!$H$12*Weather!DI$21+CF20*Control!$H$13*Prices!CW$15+ CF20*Control!$H$14*Prices!CW$17","v":21.787737827342465},{"$f":"CG20+CG20*Control!$H$12*Weather!DJ$21+CG20*Control!$H$13*Prices!CX$15+ CG20*Control!$H$14*Prices!CX$17","v":21.727027839293541},{"$f":"CH20+CH20*Control!$H$12*Weather!DK$21+CH20*Control!$H$13*Prices!CY$15+ CH20*Control!$H$14*Prices!CY$17","v":21.666140345912812},{"$f":"CI20+CI20*Control!$H$12*Weather!DL$21+CI20*Control!$H$13*Prices!CZ$15+ CI20*Control!$H$14*Prices!CZ$17","v":21.60507301435322},{"$f":"CJ20+CJ20*Control!$H$12*Weather!DM$21+CJ20*Control!$H$13*Prices!DA$15+ CJ20*Control!$H$14*Prices!DA$17","v":21.543823469467753},{"$f":"CK20+CK20*Control!$H$12*Weather!DN$21+CK20*Control!$H$13*Prices!DB$15+ CK20*Control!$H$14*Prices!DB$17","v":21.66281775507241}]
["Whitehorse (C)",{"$f":"'Volume per connection'!B67","v":27.984711013471536},{"$f":"'Volume per connection'!C67","v":51.577144745784494},{"$f":"'Volume per connection'!D67","v":61.140526325549772},{"$f":"'Volume per connection'!E67","v":59.332126182532448},{"$f":"'Volume per connection'!F67","v":58.068064025707187},{"$f":"'Volume per connection'!G67","v":62.596149381700776},{"$f":"'Volume per connection'!H67","v":59.046760121028747},{"$f":"'Volume per connection'!I67","v":57.426961960045233},{"$f":"'Volume per connection'!J67","v":61.641723831600991},{"$f":"J21+J21*Control!$H$12*Weather!AM$21+J21*Control!$H$13*Prices!AA$15+ J21*Control!$H$14*Prices!AA$17","v":59.761535684952399},{"$f":"K21+K21*Control!$H$12*Weather!AN$21+K21*Control!$H$13*Prices!AB$15+ K21*Control!$H$14*Prices!AB$17","v":56.86434734937113},{"$f":"L21+L21*Control!$H$12*Weather!AO$21+L21*Control!$H$13*Prices!AC$15+ L21*Control!$H$14*Prices!AC$17","v":59.366506141408365},{"$f":"M21+M21*Control!$H$12*Weather!AP$21+M21*Control!$H$13*Prices!AD$15+ M21*Control!$H$14*Prices!AD$17","v":59.994050557394175},{"$f":"N21+N21*Control!$H$12*Weather!AQ$21+N21*Control!$H$13*Prices!AE$15+ N21*Control!$H$14*Prices!AE$17","v":61.430840469069253},{"$f":"O21+O21*Control!$H$12*Weather!AR$21+O21*Control!$H$13*Prices!AF$15+ O21*Control!$H$14*Prices!AF$17","v":61.638955553027444},{"$f":"P21+P21*Control!$H$12*Weather!AS$21+P21*Control!$H$13*Prices!AG$15+ P21*Control!$H$14*Prices!AG$17","v":60.435159756717901},{"$f":"Q21+Q21*Control!$H$12*Weather!AT$21+Q21*Control!$H$13*Prices!AH$15+ Q21*Control!$H$14*Prices!AH$17","v":57.460373295826876},{"$f":"R21+R21*Control!$H$12*Weather!AU$21+R21*Control!$H$13*Prices!AI$15+ R21*Control!$H$14*Prices!AI$17","v":55.081808272256474},{"$f":"S21+S21*Control!$H$12*Weather!AV$21+S21*Control!$H$13*Prices!AJ$15+ S21*Control!$H$14*Prices!AJ$17","v":53.822543142554387},{"$f":"T21+T21*Control!$H$12*Weather!AW$21+T21*Control!$H$13*Prices!AK$15+ T21*Control!$H$14*Prices!AK$17","v":57.46264949499254},{"$f":"U21+U21*Control!$H$12*Weather!AX$21+U21*Control!$H$13*Prices!AL$15+ U21*Control!$H$14*Prices!AL$17","v":58.080595316192991},{"$f":"V21+V21*Control!$H$12*Weather!AY$21+V21*Control!$H$13*Prices!AM$15+ V21*Control!$H$14*Prices!AM$17","v":57.447320295730272},{"$f":"W21+W21*Control!$H$12*Weather!AZ$21+W21*Control!$H$13*Prices!AN$15+ W21*Control!$H$14*Prices!AN$17","v":56.386912422350782},{"$f":"X21+X21*Control!$H$12*Weather!BA$21+X21*Control!$H$13*Prices!AO$15+ X21*Control!$H$14*Prices!AO$17","v":54.733630280571589},{"$f":"Y21+Y21*Control!$H$12*Weather!BB$21+Y21*Control!$H$13*Prices!AP$15+ Y21*Control!$H$14*Prices!AP$17","v":53.895083316198644},{"$f":"Z21+Z21*Control!$H$12*Weather!BC$21+Z21*Control!$H$13*Prices!AQ$15+ Z21*Control!$H$14*Prices!AQ$17","v":52.439118441463869},{"$f":"AA21+AA21*Control!$H$12*Weather!BD$21+AA21*Control!$H$13*Prices!AR$15+ AA21*Control!$H$14*Prices!AR$17","v":51.912451900254013},{"$f":"AB21+AB21*Control!$H$12*Weather!BE$21+AB21*Control!$H$13*Prices!AS$15+ AB21*Control!$H$14*Prices!AS$17","v":51.41502152312389},{"$f":"AC21+AC21*Control!$H$12*Weather!BF$21+AC21*Control!$H$13*Prices!AT$15+ AC21*Control!$H$14*Prices!AT$17","v":51.45334574931303},{"$f":"AD21+AD21*Control!$H$12*Weather!BG$21+AD21*Control!$H$13*Prices!AU$15+ AD21*Control!$H$14*Prices!AU$17","v":51.234525723275652},{"$f":"AE21+AE21*Control!$H$12*Weather!BH$21+AE21*Control!$H$13*Prices!AV$15+ AE21*Control!$H$14*Prices!AV$17","v":50.114606261060871},{"$f":"AF21+AF21*Control!$H$12*Weather!BI$21+AF21*Control!$H$13*Prices!AW$15+ AF21*Control!$H$14*Prices!AW$17","v":49.054917243536032},{"$f":"AG21+AG21*Control!$H$12*Weather!BJ$21+AG21*Control!$H$13*Prices!AX$15+ AG21*Control!$H$14*Prices!AX$17","v":48.522043699663868},{"$f":"AH21+AH21*Control!$H$12*Weather!BK$21+AH21*Control!$H$13*Prices!AY$15+ AH21*Control!$H$14*Prices!AY$17","v":48.025230989343484},{"$f":"AI21+AI21*Control!$H$12*Weather!BL$21+AI21*Control!$H$13*Prices!AZ$15+ AI21*Control!$H$14*Prices!AZ$17","v":47.438730183979814},{"$f":"AJ21+AJ21*Control!$H$12*Weather!BM$21+AJ21*Control!$H$13*Prices!BA$15+ AJ21*Control!$H$14*Prices!BA$17","v":46.896725091382464},{"$f":"AK21+AK21*Control!$H$12*Weather!BN$21+AK21*Control!$H$13*Prices!BB$15+ AK21*Control!$H$14*Prices!BB$17","v":46.414721788611118},{"$f":"AL21+AL21*Control!$H$12*Weather!BO$21+AL21*Control!$H$13*Prices!BC$15+ AL21*Control!$H$14*Prices!BC$17","v":45.932039664510242},{"$f":"AM21+AM21*Control!$H$12*Weather!BP$21+AM21*Control!$H$13*Prices!BD$15+ AM21*Control!$H$14*Prices!BD$17","v":45.256384386932922},{"$f":"AN21+AN21*Control!$H$12*Weather!BQ$21+AN21*Control!$H$13*Prices!BE$15+ AN21*Control!$H$14*Prices!BE$17","v":44.6705075358363},{"$f":"AO21+AO21*Control!$H$12*Weather!BR$21+AO21*Control!$H$13*Prices!BF$15+ AO21*Control!$H$14*Prices!BF$17","v":43.855697307791949},{"$f":"AP21+AP21*Control!$H$12*Weather!BS$21+AP21*Control!$H$13*Prices!BG$15+ AP21*Control!$H$14*Prices!BG$17","v":43.178207126424304},{"$f":"AQ21+AQ21*Control!$H$12*Weather!BT$21+AQ21*Control!$H$13*Prices!BH$15+ AQ21*Control!$H$14*Prices!BH$17","v":42.569744594336719},{"$f":"AR21+AR21*Control!$H$12*Weather!BU$21+AR21*Control!$H$13*Prices!BI$15+ AR21*Control!$H$14*Prices!BI$17","v":41.946683873727657},{"$f":"AS21+AS21*Control!$H$12*Weather!BV$21+AS21*Control!$H$13*Prices!BJ$15+ AS21*Control!$H$14*Prices!BJ$17","v":43.615703201151057},{"$f":"AT21+AT21*Control!$H$12*Weather!BW$21+AT21*Control!$H$13*Prices!BK$15+ AT21*Control!$H$14*Prices!BK$17","v":43.842841160347895},{"$f":"AU21+AU21*Control!$H$12*Weather!BX$21+AU21*Control!$H$13*Prices!BL$15+ AU21*Control!$H$14*Prices!BL$17","v":43.233672632554004},{"$f":"AV21+AV21*Control!$H$12*Weather!BY$21+AV21*Control!$H$13*Prices!BM$15+ AV21*Control!$H$14*Prices!BM$17","v":42.498723332792693},{"$f":"AW21+AW21*Control!$H$12*Weather!BZ$21+AW21*Control!$H$13*Prices!BN$15+ AW21*Control!$H$14*Prices!BN$17","v":41.820549818864095},{"$f":"AX21+AX21*Control!$H$12*Weather!CA$21+AX21*Control!$H$13*Prices!BO$15+ AX21*Control!$H$14*Prices!BO$17","v":41.133467555510052},{"$f":"AY21+AY21*Control!$H$12*Weather!CB$21+AY21*Control!$H$13*Prices!BP$15+ AY21*Control!$H$14*Prices!BP$17","v":40.401683501499186},{"$f":"AZ21+AZ21*Control!$H$12*Weather!CC$21+AZ21*Control!$H$13*Prices!BQ$15+ AZ21*Control!$H$14*Prices!BQ$17","v":39.615776177985772},{"$f":"BA21+BA21*Control!$H$12*Weather!CD$21+BA21*Control!$H$13*Prices!BR$15+ BA21*Control!$H$14*Prices!BR$17","v":38.769758174588979},{"$f":"BB21+BB21*Control!$H$12*Weather!CE$21+BB21*Control!$H$13*Prices!BS$15+ BB21*Control!$H$14*Prices!BS$17","v":37.854059204128468},{"$f":"BC21+BC21*Control!$H$12*Weather!CF$21+BC21*Control!$H$13*Prices!BT$15+ BC21*Control!$H$14*Prices!BT$17","v":36.858399233795112},{"$f":"BD21+BD21*Control!$H$12*Weather!CG$21+BD21*Control!$H$13*Prices!BU$15+ BD21*Control!$H$14*Prices!BU$17","v":35.780102466672822},{"$f":"BE21+BE21*Control!$H$12*Weather!CH$21+BE21*Control!$H$13*Prices!BV$15+ BE21*Control!$H$14*Prices!BV$17","v":34.622033627143658},{"$f":"BF21+BF21*Control!$H$12*Weather!CI$21+BF21*Control!$H$13*Prices!BW$15+ BF21*Control!$H$14*Prices!BW$17","v":33.38746134793999},{"$f":"BG21+BG21*Control!$H$12*Weather!CJ$21+BG21*Control!$H$13*Prices!BX$15+ BG21*Control!$H$14*Prices!BX$17","v":32.074774743579397},{"$f":"BH21+BH21*Control!$H$12*Weather!CK$21+BH21*Control!$H$13*Prices!BY$15+ BH21*Control!$H$14*Prices!BY$17","v":30.677796076481613},{"$f":"BI21+BI21*Control!$H$12*Weather!CL$21+BI21*Control!$H$13*Prices!BZ$15+ BI21*Control!$H$14*Prices!BZ$17","v":29.18742095248453},{"$f":"BJ21+BJ21*Control!$H$12*Weather!CM$21+BJ21*Control!$H$13*Prices!CA$15+ BJ21*Control!$H$14*Prices!CA$17","v":27.594357357362124},{"$f":"BK21+BK21*Control!$H$12*Weather!CN$21+BK21*Control!$H$13*Prices!CB$15+ BK21*Control!$H$14*Prices!CB$17","v":26.199115048083101},{"$f":"BL21+BL21*Control!$H$12*Weather!CO$21+BL21*Control!$H$13*Prices!CC$15+ BL21*Control!$H$14*Prices!CC$17","v":25.04193686965337},{"$f":"BM21+BM21*Control!$H$12*Weather!CP$21+BM21*Control!$H$13*Prices!CD$15+ BM21*Control!$H$14*Prices!CD$17","v":23.967068440221109},{"$f":"BN21+BN21*Control!$H$12*Weather!CQ$21+BN21*Control!$H$13*Prices!CE$15+ BN21*Control!$H$14*Prices!CE$17","v":22.870039185390169},{"$f":"BO21+BO21*Control!$H$12*Weather!CR$21+BO21*Control!$H$13*Prices!CF$15+ BO21*Control!$H$14*Prices!CF$17","v":21.693417580991035},{"$f":"BP21+BP21*Control!$H$12*Weather!CS$21+BP21*Control!$H$13*Prices!CG$15+ BP21*Control!$H$14*Prices!CG$17","v":20.190057379135865},{"$f":"BQ21+BQ21*Control!$H$12*Weather!CT$21+BQ21*Control!$H$13*Prices!CH$15+ BQ21*Control!$H$14*Prices!CH$17","v":18.298743750706862},{"$f":"BR21+BR21*Control!$H$12*Weather!CU$21+BR21*Control!$H$13*Prices!CI$15+ BR21*Control!$H$14*Prices!CI$17","v":16.022450997930068},{"$f":"BS21+BS21*Control!$H$12*Weather!CV$21+BS21*Control!$H$13*Prices!CJ$15+ BS21*Control!$H$14*Prices!CJ$17","v":25.463312029421541},{"$f":"BT21+BT21*Control!$H$12*Weather!CW$21+BT21*Control!$H$13*Prices!CK$15+ BT21*Control!$H$14*Prices!CK$17","v":25.397179052676226},{"$f":"BU21+BU21*Control!$H$12*Weather!CX$21+BU21*Control!$H$13*Prices!CL$15+ BU21*Control!$H$14*Prices!CL$17","v":25.330876113761484},{"$f":"BV21+BV21*Control!$H$12*Weather!CY$21+BV21*Control!$H$13*Prices!CM$15+ BV21*Control!$H$14*Prices!CM$17","v":25.264401105657999},{"$f":"BW21+BW21*Control!$H$12*Weather!CZ$21+BW21*Control!$H$13*Prices!CN$15+ BW21*Control!$H$14*Prices!CN$17","v":25.197751886372764},{"$f":"BX21+BX21*Control!$H$12*Weather!DA$21+BX21*Control!$H$13*Prices!CO$15+ BX21*Control!$H$14*Prices!CO$17","v":25.130926278124093},{"$f":"BY21+BY21*Control!$H$12*Weather!DB$21+BY21*Control!$H$13*Prices!CP$15+ BY21*Control!$H$14*Prices!CP$17","v":25.063922066502425},{"$f":"BZ21+BZ21*Control!$H$12*Weather!DC$21+BZ21*Control!$H$13*Prices!CQ$15+ BZ21*Control!$H$14*Prices!CQ$17","v":24.996736999605982},{"$f":"CA21+CA21*Control!$H$12*Weather!DD$21+CA21*Control!$H$13*Prices!CR$15+ CA21*Control!$H$14*Prices!CR$17","v":24.929368787150437},{"$f":"CB21+CB21*Control!$H$12*Weather!DE$21+CB21*Control!$H$13*Prices!CS$15+ CB21*Control!$H$14*Prices!CS$17","v":24.86181509955156},{"$f":"CC21+CC21*Control!$H$12*Weather!DF$21+CC21*Control!$H$13*Prices!CT$15+ CC21*Control!$H$14*Prices!CT$17","v":24.7940735669799},{"$f":"CD21+CD21*Control!$H$12*Weather!DG$21+CD21*Control!$H$13*Prices!CU$15+ CD21*Control!$H$14*Prices!CU$17","v":24.726141778386435},{"$f":"CE21+CE21*Control!$H$12*Weather!DH$21+CE21*Control!$H$13*Prices!CV$15+ CE21*Control!$H$14*Prices!CV$17","v":24.658017280498093},{"$f":"CF21+CF21*Control!$H$12*Weather!DI$21+CF21*Control!$H$13*Prices!CW$15+ CF21*Control!$H$14*Prices!CW$17","v":24.589697576782026},{"$f":"CG21+CG21*Control!$H$12*Weather!DJ$21+CG21*Control!$H$13*Prices!CX$15+ CG21*Control!$H$14*Prices!CX$17","v":24.521180126377441},{"$f":"CH21+CH21*Control!$H$12*Weather!DK$21+CH21*Control!$H$13*Prices!CY$15+ CH21*Control!$H$14*Prices!CY$17","v":24.45246234299373},{"$f":"CI21+CI21*Control!$H$12*Weather!DL$21+CI21*Control!$H$13*Prices!CZ$15+ CI21*Control!$H$14*Prices!CZ$17","v":24.383541593773636},{"$f":"CJ21+CJ21*Control!$H$12*Weather!DM$21+CJ21*Control!$H$13*Prices!DA$15+ CJ21*Control!$H$14*Prices!DA$17","v":24.314415198120063},{"$f":"CK21+CK21*Control!$H$12*Weather!DN$21+CK21*Control!$H$13*Prices!DB$15+ CK21*Control!$H$14*Prices!DB$17","v":24.448712458329968}]
["Yarra Ranges (S)",{"$f":"'Volume per connection'!B68","v":31.792524212093539},{"$f":"'Volume per connection'!C68","v":60.439378718150735},{"$f":"'Volume per connection'!D68","v":67.473404158429034},{"$f":"'Volume per connection'!E68","v":67.191995761315965},{"$f":"'Volume per connection'!F68","v":65.161368244931666},{"$f":"'Volume per connection'!G68","v":70.520772627971724},{"$f":"'Volume per connection'!H68","v":66.492618391778791},{"$f":"'Volume per connection'!I68","v":64.200545405031747},{"$f":"'Volume per connection'!J68","v":69.717619263103273},{"$f":"J22+J22*Control!$H$12*Weather!AM$21+J22*Control!$H$13*Prices!AA$15+ J22*Control!$H$14*Prices!AA$17","v":67.591101164596651},{"$f":"K22+K22*Control!$H$12*Weather!AN$21+K22*Control!$H$13*Prices!AB$15+ K22*Control!$H$14*Prices!AB$17","v":64.314342165037161},{"$f":"L22+L22*Control!$H$12*Weather!AO$21+L22*Control!$H$13*Prices!AC$15+ L22*Control!$H$14*Prices!AC$17","v":67.144317434314885},{"$f":"M22+M22*Control!$H$12*Weather!AP$21+M22*Control!$H$13*Prices!AD$15+ M22*Control!$H$14*Prices!AD$17","v":67.854078614646383},{"$f":"N22+N22*Control!$H$12*Weather!AQ$21+N22*Control!$H$13*Prices!AE$15+ N22*Control!$H$14*Prices!AE$17","v":69.479107341891009},{"$f":"O22+O22*Control!$H$12*Weather!AR$21+O22*Control!$H$13*Prices!AF$15+ O22*Control!$H$14*Prices!AF$17","v":69.714488302779515},{"$f":"P22+P22*Control!$H$12*Weather!AS$21+P22*Control!$H$13*Prices!AG$15+ P22*Control!$H$14*Prices!AG$17","v":68.352979055781347},{"$f":"Q22+Q22*Control!$H$12*Weather!AT$21+Q22*Control!$H$13*Prices!AH$15+ Q22*Control!$H$14*Prices!AH$17","v":64.988455532136598},{"$f":"R22+R22*Control!$H$12*Weather!AU$21+R22*Control!$H$13*Prices!AI$15+ R22*Control!$H$14*Prices!AI$17","v":62.29826647839046},{"$f":"S22+S22*Control!$H$12*Weather!AV$21+S22*Control!$H$13*Prices!AJ$15+ S22*Control!$H$14*Prices!AJ$17","v":60.874020668787303},{"$f":"T22+T22*Control!$H$12*Weather!AW$21+T22*Control!$H$13*Prices!AK$15+ T22*Control!$H$14*Prices!AK$17","v":64.991029944027346},{"$f":"U22+U22*Control!$H$12*Weather!AX$21+U22*Control!$H$13*Prices!AL$15+ U22*Control!$H$14*Prices!AL$17","v":65.68993498447324},{"$f":"V22+V22*Control!$H$12*Weather!AY$21+V22*Control!$H$13*Prices!AM$15+ V22*Control!$H$14*Prices!AM$17","v":64.973692413352609},{"$f":"W22+W22*Control!$H$12*Weather!AZ$21+W22*Control!$H$13*Prices!AN$15+ W22*Control!$H$14*Prices!AN$17","v":63.77435683698495},{"$f":"X22+X22*Control!$H$12*Weather!BA$21+X22*Control!$H$13*Prices!AO$15+ X22*Control!$H$14*Prices!AO$17","v":61.90447248381637},{"$f":"Y22+Y22*Control!$H$12*Weather!BB$21+Y22*Control!$H$13*Prices!AP$15+ Y22*Control!$H$14*Prices!AP$17","v":60.956064581466087},{"$f":"Z22+Z22*Control!$H$12*Weather!BC$21+Z22*Control!$H$13*Prices!AQ$15+ Z22*Control!$H$14*Prices!AQ$17","v":59.309348712933335},{"$f":"AA22+AA22*Control!$H$12*Weather!BD$21+AA22*Control!$H$13*Prices!AR$15+ AA22*Control!$H$14*Prices!AR$17","v":58.713681766645557},{"$f":"AB22+AB22*Control!$H$12*Weather!BE$21+AB22*Control!$H$13*Prices!AS$15+ AB22*Control!$H$14*Prices!AS$17","v":58.151081315408973},{"$f":"AC22+AC22*Control!$H$12*Weather!BF$21+AC22*Control!$H$13*Prices!AT$15+ AC22*Control!$H$14*Prices!AT$17","v":58.194426531018237},{"$f":"AD22+AD22*Control!$H$12*Weather!BG$21+AD22*Control!$H$13*Prices!AU$15+ AD22*Control!$H$14*Prices!AU$17","v":57.946938136564945},{"$f":"AE22+AE22*Control!$H$12*Weather!BH$21+AE22*Control!$H$13*Prices!AV$15+ AE22*Control!$H$14*Prices!AV$17","v":56.680294152283601},{"$f":"AF22+AF22*Control!$H$12*Weather!BI$21+AF22*Control!$H$13*Prices!AW$15+ AF22*Control!$H$14*Prices!AW$17","v":55.481771611562337},{"$f":"AG22+AG22*Control!$H$12*Weather!BJ$21+AG22*Control!$H$13*Prices!AX$15+ AG22*Control!$H$14*Prices!AX$17","v":54.879084461726109},{"$f":"AH22+AH22*Control!$H$12*Weather!BK$21+AH22*Control!$H$13*Prices!AY$15+ AH22*Control!$H$14*Prices!AY$17","v":54.317182599964255},{"$f":"AI22+AI22*Control!$H$12*Weather!BL$21+AI22*Control!$H$13*Prices!AZ$15+ AI22*Control!$H$14*Prices!AZ$17","v":53.653842295634767},{"$f":"AJ22+AJ22*Control!$H$12*Weather!BM$21+AJ22*Control!$H$13*Prices!BA$15+ AJ22*Control!$H$14*Prices!BA$17","v":53.040827241292746},{"$f":"AK22+AK22*Control!$H$12*Weather!BN$21+AK22*Control!$H$13*Prices!BB$15+ AK22*Control!$H$14*Prices!BB$17","v":52.495675018782322},{"$f":"AL22+AL22*Control!$H$12*Weather!BO$21+AL22*Control!$H$13*Prices!BC$15+ AL22*Control!$H$14*Prices!BC$17","v":51.949755040212239},{"$f":"AM22+AM22*Control!$H$12*Weather!BP$21+AM22*Control!$H$13*Prices!BD$15+ AM22*Control!$H$14*Prices!BD$17","v":51.185579827917266},{"$f":"AN22+AN22*Control!$H$12*Weather!BQ$21+AN22*Control!$H$13*Prices!BE$15+ AN22*Control!$H$14*Prices!BE$17","v":50.522945224261356},{"$f":"AO22+AO22*Control!$H$12*Weather!BR$21+AO22*Control!$H$13*Prices!BF$15+ AO22*Control!$H$14*Prices!BF$17","v":49.601383890161287},{"$f":"AP22+AP22*Control!$H$12*Weather!BS$21+AP22*Control!$H$13*Prices!BG$15+ AP22*Control!$H$14*Prices!BG$17","v":48.835133376984274},{"$f":"AQ22+AQ22*Control!$H$12*Weather!BT$21+AQ22*Control!$H$13*Prices!BH$15+ AQ22*Control!$H$14*Prices!BH$17","v":48.146954064156574},{"$f":"AR22+AR22*Control!$H$12*Weather!BU$21+AR22*Control!$H$13*Prices!BI$15+ AR22*Control!$H$14*Prices!BI$17","v":47.442264003640311},{"$f":"AS22+AS22*Control!$H$12*Weather!BV$21+AS22*Control!$H$13*Prices!BJ$15+ AS22*Control!$H$14*Prices!BJ$17","v":49.32994732557254},{"$f":"AT22+AT22*Control!$H$12*Weather!BW$21+AT22*Control!$H$13*Prices!BK$15+ AT22*Control!$H$14*Prices!BK$17","v":49.586843414376688},{"$f":"AU22+AU22*Control!$H$12*Weather!BX$21+AU22*Control!$H$13*Prices!BL$15+ AU22*Control!$H$14*Prices!BL$17","v":48.897865610903459},{"$f":"AV22+AV22*Control!$H$12*Weather!BY$21+AV22*Control!$H$13*Prices!BM$15+ AV22*Control!$H$14*Prices!BM$17","v":48.066628061505533},{"$f":"AW22+AW22*Control!$H$12*Weather!BZ$21+AW22*Control!$H$13*Prices!BN$15+ AW22*Control!$H$14*Prices!BN$17","v":47.299604690005395},{"$f":"AX22+AX22*Control!$H$12*Weather!CA$21+AX22*Control!$H$13*Prices!BO$15+ AX22*Control!$H$14*Prices!BO$17","v":46.522505403006029},{"$f":"AY22+AY22*Control!$H$12*Weather!CB$21+AY22*Control!$H$13*Prices!BP$15+ AY22*Control!$H$14*Prices!BP$17","v":45.694847789151552},{"$f":"AZ22+AZ22*Control!$H$12*Weather!CC$21+AZ22*Control!$H$13*Prices!BQ$15+ AZ22*Control!$H$14*Prices!BQ$17","v":44.805976029067786},{"$f":"BA22+BA22*Control!$H$12*Weather!CD$21+BA22*Control!$H$13*Prices!BR$15+ BA22*Control!$H$14*Prices!BR$17","v":43.84911828103202},{"$f":"BB22+BB22*Control!$H$12*Weather!CE$21+BB22*Control!$H$13*Prices!BS$15+ BB22*Control!$H$14*Prices!BS$17","v":42.813450421440898},{"$f":"BC22+BC22*Control!$H$12*Weather!CF$21+BC22*Control!$H$13*Prices!BT$15+ BC22*Control!$H$14*Prices!BT$17","v":41.687345594832721},{"$f":"BD22+BD22*Control!$H$12*Weather!CG$21+BD22*Control!$H$13*Prices!BU$15+ BD22*Control!$H$14*Prices!BU$17","v":40.467777438883012},{"$f":"BE22+BE22*Control!$H$12*Weather!CH$21+BE22*Control!$H$13*Prices!BV$15+ BE22*Control!$H$14*Prices!BV$17","v":39.157985995422969},{"$f":"BF22+BF22*Control!$H$12*Weather!CI$21+BF22*Control!$H$13*Prices!BW$15+ BF22*Control!$H$14*Prices!BW$17","v":37.761668132064031},{"$f":"BG22+BG22*Control!$H$12*Weather!CJ$21+BG22*Control!$H$13*Prices!BX$15+ BG22*Control!$H$14*Prices!BX$17","v":36.277001915645357},{"$f":"BH22+BH22*Control!$H$12*Weather!CK$21+BH22*Control!$H$13*Prices!BY$15+ BH22*Control!$H$14*Prices!BY$17","v":34.697000241820149},{"$f":"BI22+BI22*Control!$H$12*Weather!CL$21+BI22*Control!$H$13*Prices!BZ$15+ BI22*Control!$H$14*Prices!BZ$17","v":33.011365918258917},{"$f":"BJ22+BJ22*Control!$H$12*Weather!CM$21+BJ22*Control!$H$13*Prices!CA$15+ BJ22*Control!$H$14*Prices!CA$17","v":31.209589551814791},{"$f":"BK22+BK22*Control!$H$12*Weather!CN$21+BK22*Control!$H$13*Prices!CB$15+ BK22*Control!$H$14*Prices!CB$17","v":29.631551722051494},{"$f":"BL22+BL22*Control!$H$12*Weather!CO$21+BL22*Control!$H$13*Prices!CC$15+ BL22*Control!$H$14*Prices!CC$17","v":28.32276762828193},{"$f":"BM22+BM22*Control!$H$12*Weather!CP$21+BM22*Control!$H$13*Prices!CD$15+ BM22*Control!$H$14*Prices!CD$17","v":27.107076968400172},{"$f":"BN22+BN22*Control!$H$12*Weather!CQ$21+BN22*Control!$H$13*Prices!CE$15+ BN22*Control!$H$14*Prices!CE$17","v":25.86632211673945},{"$f":"BO22+BO22*Control!$H$12*Weather!CR$21+BO22*Control!$H$13*Prices!CF$15+ BO22*Control!$H$14*Prices!CF$17","v":24.535547246517751},{"$f":"BP22+BP22*Control!$H$12*Weather!CS$21+BP22*Control!$H$13*Prices!CG$15+ BP22*Control!$H$14*Prices!CG$17","v":22.835226625138421},{"$f":"BQ22+BQ22*Control!$H$12*Weather!CT$21+BQ22*Control!$H$13*Prices!CH$15+ BQ22*Control!$H$14*Prices!CH$17","v":20.69612545700506},{"$f":"BR22+BR22*Control!$H$12*Weather!CU$21+BR22*Control!$H$13*Prices!CI$15+ BR22*Control!$H$14*Prices!CI$17","v":18.121607717965183},{"$f":"BS22+BS22*Control!$H$12*Weather!CV$21+BS22*Control!$H$13*Prices!CJ$15+ BS22*Control!$H$14*Prices!CJ$17","v":28.799348605087559},{"$f":"BT22+BT22*Control!$H$12*Weather!CW$21+BT22*Control!$H$13*Prices!CK$15+ BT22*Control!$H$14*Prices!CK$17","v":28.724551318333194},{"$f":"BU22+BU22*Control!$H$12*Weather!CX$21+BU22*Control!$H$13*Prices!CL$15+ BU22*Control!$H$14*Prices!CL$17","v":28.649561802077763},{"$f":"BV22+BV22*Control!$H$12*Weather!CY$21+BV22*Control!$H$13*Prices!CM$15+ BV22*Control!$H$14*Prices!CM$17","v":28.574377673254055},{"$f":"BW22+BW22*Control!$H$12*Weather!CZ$21+BW22*Control!$H$13*Prices!CN$15+ BW22*Control!$H$14*Prices!CN$17","v":28.498996509239152},{"$f":"BX22+BX22*Control!$H$12*Weather!DA$21+BX22*Control!$H$13*Prices!CO$15+ BX22*Control!$H$14*Prices!CO$17","v":28.423415846932663},{"$f":"BY22+BY22*Control!$H$12*Weather!DB$21+BY22*Control!$H$13*Prices!CP$15+ BY22*Control!$H$14*Prices!CP$17","v":28.347633181807566},{"$f":"BZ22+BZ22*Control!$H$12*Weather!DC$21+BZ22*Control!$H$13*Prices!CQ$15+ BZ22*Control!$H$14*Prices!CQ$17","v":28.271645966932649},{"$f":"CA22+CA22*Control!$H$12*Weather!DD$21+CA22*Control!$H$13*Prices!CR$15+ CA22*Control!$H$14*Prices!CR$17","v":28.19545161196551},{"$f":"CB22+CB22*Control!$H$12*Weather!DE$21+CB22*Control!$H$13*Prices!CS$15+ CB22*Control!$H$14*Prices!CS$17","v":28.119047482115029},{"$f":"CC22+CC22*Control!$H$12*Weather!DF$21+CC22*Control!$H$13*Prices!CT$15+ CC22*Control!$H$14*Prices!CT$17","v":28.042430897072208},{"$f":"CD22+CD22*Control!$H$12*Weather!DG$21+CD22*Control!$H$13*Prices!CU$15+ CD22*Control!$H$14*Prices!CU$17","v":27.965599129908153},{"$f":"CE22+CE22*Control!$H$12*Weather!DH$21+CE22*Control!$H$13*Prices!CV$15+ CE22*Control!$H$14*Prices!CV$17","v":27.888549405937997},{"$f":"CF22+CF22*Control!$H$12*Weather!DI$21+CF22*Control!$H$13*Prices!CW$15+ CF22*Control!$H$14*Prices!CW$17","v":27.811278901549493},{"$f":"CG22+CG22*Control!$H$12*Weather!DJ$21+CG22*Control!$H$13*Prices!CX$15+ CG22*Control!$H$14*Prices!CX$17","v":27.733784742994882},{"$f":"CH22+CH22*Control!$H$12*Weather!DK$21+CH22*Control!$H$13*Prices!CY$15+ CH22*Control!$H$14*Prices!CY$17","v":27.656064005144685},{"$f":"CI22+CI22*Control!$H$12*Weather!DL$21+CI22*Control!$H$13*Prices!CZ$15+ CI22*Control!$H$14*Prices!CZ$17","v":27.578113710201912},{"$f":"CJ22+CJ22*Control!$H$12*Weather!DM$21+CJ22*Control!$H$13*Prices!DA$15+ CJ22*Control!$H$14*Prices!DA$17","v":27.499930826375167},{"$f":"CK22+CK22*Control!$H$12*Weather!DN$21+CK22*Control!$H$13*Prices!DB$15+ CK22*Control!$H$14*Prices!DB$17","v":27.65182283512188}]
["Multinet",{"$f":"B71/B47*1000","v":27.209012317069131},{"$f":"C71/C47*1000","v":50.536515759228372},59.279144899437554,58.07195377646449,56.863090042543099,60.462844165615131,57.756072973453641,55.995371086063223,60.099582876950251,58.266504549536819,55.441725466034249,57.881199688853087,58.493148932433023,59.893943143214607,60.096729789521127,58.922936115656924,56.022611435599181,53.703605259237086,52.475800903178779,56.02482488205343,56.627308525317538,56.009879248467115,54.976004793812649,53.364164794528804,52.5467488215548,51.127674288276715,50.614929009371657,50.131364460113176,50.170903043783305,49.96049169434631,48.873650969762195,47.847746209567241,47.335814381234094,46.856914969300441,46.28638933744665,45.752627953045625,45.269518601126762,44.778032094772847,44.091337190278033,43.48947698642354,42.663643696582575,41.97149893561199,41.347144578138582,40.709611425553447,42.291498103552911,42.472732382307427,41.842044769728417,41.090029883256761,40.393927366387402,39.691232806062658,38.948945600938636,38.160102503560189,37.321063190910586,36.424175870078813,35.459112456349054,34.419888539056402,33.306545691813902,32.119958117680248,30.858403738802949,29.515081479873302,28.082316948863852,26.550573298131823,25.209046687466969,24.096712008384657,23.062911761144818,{"$f":"BO71/BO47*1000","v":22.008077278745848},20.877020580155047,19.431315569124493,17.611780880157365,15.421551785762288,24.508909800749816,24.445848632552316,24.382550908701997,24.319087941927503,24.255457656461719,24.191657941730348,24.127686651535576,24.063541603215338,23.999220576777219,23.934797391301863,23.870193752425362,23.80540732074062,23.740435715715357,23.675276514683151,23.609927251803118,23.54435372570153,23.478604288321961,23.41265715502918,23.542693066189003]
[null,null,null,null,null,null,null,null,null,null,null,{"$f":"L23/K23-1","v":-4.8480325108588018E-2},4.4000690857165958E-2,1.057250448970537E-2,2.394800478941006E-2,3.3857621599837628E-3,-1.9531739546814308E-2,-4.9222338044472846E-2,-4.1394110644554782E-2,-2.2862605780961442E-2,6.7631630538099508E-2,1.0753869280849981E-2,-1.0903383772413955E-2,-1.8458787423341283E-2,-2.9318972983377822E-2,-1.5317694488826916E-2,-2.7005943566502433E-2,-1.0028722918511979E-2,-9.5537928971300978E-3,7.8869953163929196E-4,-4.1938920105418775E-3,-2.1754003768283625E-2,-2.0990958110121083E-2,-1.06991837419248E-2,-1.0117062908787888E-2,-1.2175911116376059E-2,-1.1531713578038838E-2,-1.0559160720006289E-2,-1.0856897125070875E-2,-1.5335531115825307E-2,-1.3650305075963987E-2,-1.8989266992076592E-2,-1.6223292269479272E-2,-1.4875674524543969E-2,-1.5419037011862202E-2,3.8857818156586843E-2,4.2853596321121845E-3,-1.4849235667299121E-2,-1.7972708805467308E-2,-1.6940910455579994E-2,-1.7396044557664636E-2,-1.8701540684083806E-2,-2.0253259368321341E-2,-2.1987344309972068E-2,-2.4031665878430974E-2,-2.649513381365276E-2,-2.930766861612677E-2,-3.2345916692297916E-2,-3.562625752646853E-2,-3.9276339472649746E-2,-4.3531812931739022E-2,-4.8543471986905118E-2,-5.4544774689397557E-2,-5.0527218211112834E-2,-4.412442457156962E-2,-4.2902129007481138E-2,-4.5737263938029682E-2,-5.1392799301150704E-2,-6.9248627000195184E-2,-9.3639294904884762E-2,-0.12436159121549928,0.5892635281604599,-2.5729895254488211E-3,-2.5893035992226032E-3,-2.6028025948607869E-3,{"$f":"BX23/BW23-1","v":-2.616474993541229E-3},-2.6303240959204555E-3,-2.6443532869412367E-3,-2.6585660385370913E-3,-2.6729659124459237E-3,-2.6843865728578553E-3,-2.6991512742020607E-3,-2.7141141943247682E-3,-2.7292792830583279E-3,-2.7446505958217404E-3,-2.760232297160492E-3,-2.7773709508817079E-3,-2.792577708675692E-3,-2.8088182961362174E-3,5.554085992836244E-3]
["Residential customers"]
["FY",2012,2013,2014,2015,2016,2017,2018,2019,2020,2021,2022,2023,2024,2025,2026,2027,2028,2029,2030,2031,2032,2033,2034,2035,2036,2037,2038,2039,2040,2041,2042,2043,2044,2045,2046,2047,2048,2049,2050,2051,2052,2053,2054,2055,2056,2057,2058,2059,2060,2061,2062,2063,2064,2065,2066,2067,2068,2069,2070,2071,2072,2073,2074,2075,2076,2077,2078,2079,2080,2081,2082,2083,2084,2085,2086,2087,2088,2089,2090,2091,2092,2093,2094,2095,2096,2097,2098,2099,2100]
["Bass Coast (S)",{"$f":"CustomersRes!B3","v":1494},{"$f":"CustomersRes!C3","v":1780},{"$f":"CustomersRes!D3","v":2033},{"$f":"CustomersRes!E3","v":2266},{"$f":"CustomersRes!F3","v":2498},{"$f":"CustomersRes!G3","v":2726},{"$f":"CustomersRes!H3","v":2971},{"$f":"CustomersRes!I3","v":3298},{"$f":"CustomersRes!J3","v":3548},{"$f":"CustomersRes!K3*Scenarios!B108","v":3600.26},{"$f":"CustomersRes!L3*Scenarios!C108","v":3653.2587000000003},{"$f":"CustomersRes!M3*Scenarios!D108","v":3706.9924065000005},{"$f":"CustomersRes!N3*Scenarios!E108","v":3762.4574444675004},{"$f":"CustomersRes!O3*Scenarios!F108","v":3818.6451572451629},{"$f":"CustomersRes!P3*Scenarios!G108","v":3875.5519314589369},{"$f":"CustomersRes!Q3*Scenarios!H108","v":3933.1741718016424},{"$f":"CustomersRes!R3*Scenarios!I108","v":3991.5083009426344},{"$f":"CustomersRes!S3*Scenarios!J108","v":4050.550759437921},{"$f":"CustomersRes!T3*Scenarios!K108","v":4110.2980056407314},{"$f":"CustomersRes!U3*Scenarios!L108","v":4089.7465156125277},{"$f":"CustomersRes!V3*Scenarios!M108","v":4069.2977830344648},{"$f":"CustomersRes!W3*Scenarios!N108","v":4048.9512941192925},{"$f":"CustomersRes!X3*Scenarios!O108","v":4028.7065376486962},{"$f":"CustomersRes!Y3*Scenarios!P108","v":4008.5630049604529},{"$f":"CustomersRes!Z3*Scenarios!Q108","v":3988.5201899356507},{"$f":"CustomersRes!AA3*Scenarios!R108","v":3968.5775889859724},{"$f":"CustomersRes!AB3*Scenarios!S108","v":3948.7347010410426},{"$f":"CustomersRes!AC3*Scenarios!T108","v":3928.9910275358375},{"$f":"CustomersRes!AD3*Scenarios!U108","v":3909.3460723981584},{"$f":"CustomersRes!AE3*Scenarios!V108","v":3889.7993420361677},{"$f":"CustomersRes!AF3*Scenarios!W108","v":3870.3503453259868},{"$f":"CustomersRes!AG3*Scenarios!X108","v":3850.9985935993568},{"$f":"CustomersRes!AH3*Scenarios!Y108","v":3830.7436006313601},{"$f":"CustomersRes!AI3*Scenarios!Z108","v":3809.5898826282032},{"$f":"CustomersRes!AJ3*Scenarios!AA108","v":3788.5419332150623},{"$f":"CustomersRes!AK3*Scenarios!AB108","v":3766.5992235489871},{"$f":"CustomersRes!AL3*Scenarios!AC108","v":3743.766227431242},{"$f":"CustomersRes!AM3*Scenarios!AD108","v":3719.047396294086},{"$f":"CustomersRes!AN3*Scenarios!AE108","v":3691.4521593126155},{"$f":"CustomersRes!AO3*Scenarios!AF108","v":3661.9948985160527},{"$f":"CustomersRes!AP3*Scenarios!AG108","v":3628.6849240234724},{"$f":"CustomersRes!AQ3*Scenarios!AH108","v":3590.5414994033549},{"$f":"CustomersRes!AR3*Scenarios!AI108","v":3547.588791906338},{"$f":"CustomersRes!AS3*Scenarios!AJ108","v":3497.8508479468064},{"$f":"CustomersRes!AT3*Scenarios!AK108","v":3468.3615937070722},{"$f":"CustomersRes!AU3*Scenarios!AL108","v":3440.0197857385369},{"$f":"CustomersRes!AV3*Scenarios!AM108","v":3408.8196868098444},{"$f":"CustomersRes!AW3*Scenarios!AN108","v":3372.775588375795},{"$f":"CustomersRes!AX3*Scenarios!AO108","v":3330.9117104339161},{"$f":"CustomersRes!AY3*Scenarios!AP108","v":3281.2571518817467},{"$f":"CustomersRes!AZ3*Scenarios!AQ108","v":3220.8508661223382},{"$f":"CustomersRes!BA3*Scenarios!AR108","v":3145.7466117917265},{"$f":"CustomersRes!BB3*Scenarios!AS108","v":3052.0178787327677},{"$f":"CustomersRes!BC3*Scenarios!AT108","v":2935.757789339104},{"$f":"CustomersRes!BD3*Scenarios!AU108","v":2796.0790003924085},{"$f":"CustomersRes!BE3*Scenarios!AV108","v":2637.0986053904462},{"$f":"CustomersRes!BF3*Scenarios!AW108","v":2469.9131123634938},{"$f":"CustomersRes!BG3*Scenarios!AX108","v":2302.5635468016762},{"$f":"CustomersRes!BH3*Scenarios!AY108","v":2141.0507290676678},{"$f":"CustomersRes!BI3*Scenarios!AZ108","v":1989.3454754223294},{"$f":"CustomersRes!BJ3*Scenarios!BA108","v":1848.3987480452179},{"$f":"CustomersRes!BK3*Scenarios!BB108","v":1717.1567543049919},{"$f":"CustomersRes!BL3*Scenarios!BC108","v":1595.5709705334668},{"$f":"CustomersRes!BM3*Scenarios!BD108","v":1482.5931156807994},{"$f":"CustomersRes!BN3*Scenarios!BE108","v":1378.1801501023954},{"$f":"CustomersRes!BO3*Scenarios!BF108","v":1281.2892493518834},{"$f":"CustomersRes!BP3*Scenarios!BG108","v":1190.8828031051239},{"$f":"CustomersRes!BQ3*Scenarios!BH108","v":1106.9283890895983},{"$f":"CustomersRes!BR3*Scenarios!BI108","v":1029.3937471441504},{"$f":"CustomersRes!BS3*Scenarios!BJ108","v":957.24677840842969},{"$f":"CustomersRes!BT3*Scenarios!BK108","v":952.46054451638759},{"$f":"CustomersRes!BU3*Scenarios!BL108","v":947.69824179380566},{"$f":"CustomersRes!BV3*Scenarios!BM108","v":942.95975058483668},{"$f":"CustomersRes!BW3*Scenarios!BN108","v":938.24495183191254},{"$f":"CustomersRes!BX3*Scenarios!BO108","v":933.55372707275296},{"$f":"CustomersRes!BY3*Scenarios!BP108","v":928.88595843738915},{"$f":"CustomersRes!BZ3*Scenarios!BQ108","v":924.24152864520215},{"$f":"CustomersRes!CA3*Scenarios!BR108","v":919.62032100197609},{"$f":"CustomersRes!CB3*Scenarios!BS108","v":915.02221939696619},{"$f":"CustomersRes!CC3*Scenarios!BT108","v":910.44710829998132},{"$f":"CustomersRes!CD3*Scenarios!BU108","v":905.89487275848137},{"$f":"CustomersRes!CE3*Scenarios!BV108","v":901.36539839468901},{"$f":"CustomersRes!CF3*Scenarios!BW108","v":896.8585714027156},{"$f":"CustomersRes!CG3*Scenarios!BX108","v":892.37427854570205},{"$f":"CustomersRes!CH3*Scenarios!BY108","v":887.91240715297351},{"$f":"CustomersRes!CI3*Scenarios!BZ108","v":883.47284511720864},{"$f":"CustomersRes!CJ3*Scenarios!CA108","v":879.05548089162255},{"$f":"CustomersRes!CK3*Scenarios!CB108","v":874.66020348716449},{"$f":"CustomersRes!CL3*Scenarios!CC108","v":870.28690246972872}]
["Bayside (C)",{"$f":"CustomersRes!B4","v":35716},{"$f":"CustomersRes!C4","v":36018},{"$f":"CustomersRes!D4","v":36281},{"$f":"CustomersRes!E4","v":36467},{"$f":"CustomersRes!F4","v":36592},{"$f":"CustomersRes!G4","v":36824},{"$f":"CustomersRes!H4","v":36986},{"$f":"CustomersRes!I4","v":37219},{"$f":"CustomersRes!J4","v":37381},{"$f":"CustomersRes!K4*Scenarios!B109","v":37940.095000000001},{"$f":"CustomersRes!L4*Scenarios!C109","v":38508.394525000003},{"$f":"CustomersRes!M4*Scenarios!D109","v":39084.852552375007},{"$f":"CustomersRes!N4*Scenarios!E109","v":39669.428289613134},{"$f":"CustomersRes!O4*Scenarios!F109","v":40264.081148165067},{"$f":"CustomersRes!P4*Scenarios!G109","v":40867.760742424245},{"$f":"CustomersRes!Q4*Scenarios!H109","v":41480.421938712127},{"$f":"CustomersRes!R4*Scenarios!I109","v":42102.019829018565},{"$f":"CustomersRes!S4*Scenarios!J109","v":42732.509729873469},{"$f":"CustomersRes!T4*Scenarios!K109","v":43372.847181224104},{"$f":"CustomersRes!U4*Scenarios!L109","v":43155.982945317985},{"$f":"CustomersRes!V4*Scenarios!M109","v":42940.203030591394},{"$f":"CustomersRes!W4*Scenarios!N109","v":42725.50201543844},{"$f":"CustomersRes!X4*Scenarios!O109","v":42511.874505361251},{"$f":"CustomersRes!Y4*Scenarios!P109","v":42299.315132834447},{"$f":"CustomersRes!Z4*Scenarios!Q109","v":42087.818557170278},{"$f":"CustomersRes!AA4*Scenarios!R109","v":41875.379464384423},{"$f":"CustomersRes!AB4*Scenarios!S109","v":41660.002567062504},{"$f":"CustomersRes!AC4*Scenarios!T109","v":41434.702554227188},{"$f":"CustomersRes!AD4*Scenarios!U109","v":41193.529041456051},{"$f":"CustomersRes!AE4*Scenarios!V109","v":40927.56139624877},{"$f":"CustomersRes!AF4*Scenarios!W109","v":40518.923589267528},{"$f":"CustomersRes!AG4*Scenarios!X109","v":39698.328971321193},{"$f":"CustomersRes!AH4*Scenarios!Y109","v":38398.837326464585},{"$f":"CustomersRes!AI4*Scenarios!Z109","v":36592.843139832265},{"$f":"CustomersRes!AJ4*Scenarios!AA109","v":34522.878924133103},{"$f":"CustomersRes!AK4*Scenarios!AB109","v":32349.264529512438},{"$f":"CustomersRes!AL4*Scenarios!AC109","v":30193.518206864876},{"$f":"CustomersRes!AM4*Scenarios!AD109","v":28113.550615830551},{"$f":"CustomersRes!AN4*Scenarios!AE109","v":26132.9828627514},{"$f":"CustomersRes!AO4*Scenarios!AF109","v":24278.317948437641},{"$f":"CustomersRes!AP4*Scenarios!AG109","v":22546.926358695455},{"$f":"CustomersRes!AQ4*Scenarios!AH109","v":20935.191726901976},{"$f":"CustomersRes!AR4*Scenarios!AI109","v":19437.515768267465},{"$f":"CustomersRes!AS4*Scenarios!AJ109","v":18046.328189426127},{"$f":"CustomersRes!AT4*Scenarios!AK109","v":16761.096548478996},{"$f":"CustomersRes!AU4*Scenarios!AL109","v":15570.291065736601},{"$f":"CustomersRes!AV4*Scenarios!AM109","v":14459.439610407919},{"$f":"CustomersRes!AW4*Scenarios!AN109","v":13426.142412355879},{"$f":"CustomersRes!AX4*Scenarios!AO109","v":12465.011700294101},{"$f":"CustomersRes!AY4*Scenarios!AP109","v":11572.68664179263},{"$f":"CustomersRes!AZ4*Scenarios!AQ109","v":10744.823208583668},{"$f":"CustomersRes!BA4*Scenarios!AR109","v":9976.0990925407496},{"$f":"CustomersRes!BB4*Scenarios!AS109","v":9262.2185970780465},{"$f":"CustomersRes!BC4*Scenarios!AT109","v":8599.9075040926564},{"$f":"CustomersRes!BD4*Scenarios!AU109","v":7984.9079665721929},{"$f":"CustomersRes!BE4*Scenarios!AV109","v":7413.9834267393317},{"$f":"CustomersRes!BF4*Scenarios!AW109","v":6883.9135096056352},{"$f":"CustomersRes!BG4*Scenarios!AX109","v":6392.4939420576075},{"$f":"CustomersRes!BH4*Scenarios!AY109","v":5935.5314723473193},{"$f":"CustomersRes!BI4*Scenarios!AZ109","v":5511.8538149855831},{"$f":"CustomersRes!BJ4*Scenarios!BA109","v":5118.294545910655},{"$f":"CustomersRes!BK4*Scenarios!BB109","v":4752.7030731811019},{"$f":"CustomersRes!BL4*Scenarios!BC109","v":4412.9395578151962},{"$f":"CustomersRes!BM4*Scenarios!BD109","v":4096.8748600261206},{"$f":"CustomersRes!BN4*Scenarios!BE109","v":3803.3904857259899},{"$f":"CustomersRes!BO4*Scenarios!BF109","v":3531.3735332973602},{"$f":"CustomersRes!BP4*Scenarios!BG109","v":3278.7166656308732},{"$f":"CustomersRes!BQ4*Scenarios!BH109","v":3044.3230823027188},{"$f":"CustomersRes!BR4*Scenarios!BI109","v":2827.1014668912053},{"$f":"CustomersRes!BS4*Scenarios!BJ109","v":2624.9659595567491},{"$f":"CustomersRes!BT4*Scenarios!BK109","v":2608.8411297589655},{"$f":"CustomersRes!BU4*Scenarios!BL109","v":2592.7969241101705},{"$f":"CustomersRes!BV4*Scenarios!BM109","v":2576.8329394896195},{"$f":"CustomersRes!BW4*Scenarios!BN109","v":2560.9487747921717},{"$f":"CustomersRes!BX4*Scenarios!BO109","v":2545.1440309182108},{"$f":"CustomersRes!BY4*Scenarios!BP109","v":2529.4183107636195},{"$f":"CustomersRes!BZ4*Scenarios!BQ109","v":2513.7712192098015},{"$f":"CustomersRes!CA4*Scenarios!BR109","v":2498.2023631137527},{"$f":"CustomersRes!CB4*Scenarios!BS109","v":2482.7113512981837},{"$f":"CustomersRes!CC4*Scenarios!BT109","v":2467.2977945416928},{"$f":"CustomersRes!CD4*Scenarios!BU109","v":2451.9613055689842},{"$f":"CustomersRes!CE4*Scenarios!BV109","v":2436.7014990411394},{"$f":"CustomersRes!CF4*Scenarios!BW109","v":2421.5179915459339},{"$f":"CustomersRes!CG4*Scenarios!BX109","v":2406.4104015882044},{"$f":"CustomersRes!CH4*Scenarios!BY109","v":2391.3783495802636},{"$f":"CustomersRes!CI4*Scenarios!BZ109","v":2376.4214578323622},{"$f":"CustomersRes!CJ4*Scenarios!CA109","v":2361.5393505432003},{"$f":"CustomersRes!CK4*Scenarios!CB109","v":2346.7316537904844},{"$f":"CustomersRes!CL4*Scenarios!CC109","v":2332.9979955215322}]
["Boroondara (C)",{"$f":"CustomersRes!B5","v":61613},{"$f":"CustomersRes!C5","v":62206},{"$f":"CustomersRes!D5","v":62719},{"$f":"CustomersRes!E5","v":62777},{"$f":"CustomersRes!F5","v":62774},{"$f":"CustomersRes!G5","v":62906},{"$f":"CustomersRes!H5","v":63129},{"$f":"CustomersRes!I5","v":63266},{"$f":"CustomersRes!J5","v":63469},{"$f":"CustomersRes!K5*Scenarios!B110","v":64418.654999999999},{"$f":"CustomersRes!L5*Scenarios!C110","v":65383.561725},{"$f":"CustomersRes!M5*Scenarios!D110","v":66362.643916375004},{"$f":"CustomersRes!N5*Scenarios!E110","v":67355.830696793128},{"$f":"CustomersRes!O5*Scenarios!F110","v":68365.051543309164},{"$f":"CustomersRes!P5*Scenarios!G110","v":69390.226285592624},{"$f":"CustomersRes!Q5*Scenarios!H110","v":70430.275154164658},{"$f":"CustomersRes!R5*Scenarios!I110","v":71486.123778393841},{"$f":"CustomersRes!S5*Scenarios!J110","v":72556.693159501869},{"$f":"CustomersRes!T5*Scenarios!K110","v":73643.909693704365},{"$f":"CustomersRes!U5*Scenarios!L110","v":73275.690145235843},{"$f":"CustomersRes!V5*Scenarios!M110","v":72909.31169450967},{"$f":"CustomersRes!W5*Scenarios!N110","v":72544.765136037124},{"$f":"CustomersRes!X5*Scenarios!O110","v":72182.041310356944},{"$f":"CustomersRes!Y5*Scenarios!P110","v":71821.131103805164},{"$f":"CustomersRes!Z5*Scenarios!Q110","v":71461.025448286135},{"$f":"CustomersRes!AA5*Scenarios!R110","v":71098.720321044704},{"$f":"CustomersRes!AB5*Scenarios!S110","v":70729.226719439481},{"$f":"CustomersRes!AC5*Scenarios!T110","v":70337.580585842283},{"$f":"CustomersRes!AD5*Scenarios!U110","v":69911.892682913065},{"$f":"CustomersRes!AE5*Scenarios!V110","v":69437.333219498498},{"$f":"CustomersRes!AF5*Scenarios!W110","v":68694.146553401006},{"$f":"CustomersRes!AG5*Scenarios!X110","v":67231.675820634002},{"$f":"CustomersRes!AH5*Scenarios!Y110","v":64984.517441530828},{"$f":"CustomersRes!AI5*Scenarios!Z110","v":61924.594854323172},{"$f":"CustomersRes!AJ5*Scenarios!AA110","v":58441.971880051555},{"$f":"CustomersRes!AK5*Scenarios!AB110","v":54788.762020651295},{"$f":"CustomersRes!AL5*Scenarios!AC110","v":51160.818210548037},{"$f":"CustomersRes!AM5*Scenarios!AD110","v":47651.014119495296},{"$f":"CustomersRes!AN5*Scenarios!AE110","v":44303.759048897817},{"$f":"CustomersRes!AO5*Scenarios!AF110","v":41165.240253653326},{"$f":"CustomersRes!AP5*Scenarios!AG110","v":38231.414052385058},{"$f":"CustomersRes!AQ5*Scenarios!AH110","v":35499.25698212313},{"$f":"CustomersRes!AR5*Scenarios!AI110","v":32959.760697212514},{"$f":"CustomersRes!AS5*Scenarios!AJ110","v":30599.961893726453},{"$f":"CustomersRes!AT5*Scenarios!AK110","v":28423.962084257822},{"$f":"CustomersRes!AU5*Scenarios!AL110","v":26407.842273836533},{"$f":"CustomersRes!AV5*Scenarios!AM110","v":24525.803062467352},{"$f":"CustomersRes!AW5*Scenarios!AN110","v":22773.174047155015},{"$f":"CustomersRes!AX5*Scenarios!AO110","v":21143.308176919239},{"$f":"CustomersRes!AY5*Scenarios!AP110","v":19629.591636034642},{"$f":"CustomersRes!AZ5*Scenarios!AQ110","v":18224.44367785447},{"$f":"CustomersRes!BA5*Scenarios!AR110","v":16920.321459465198},{"$f":"CustomersRes!BB5*Scenarios!AS110","v":15708.719852167873},{"$f":"CustomersRes!BC5*Scenarios!AT110","v":14584.176252907033},{"$f":"CustomersRes!BD5*Scenarios!AU110","v":13540.255371642497},{"$f":"CustomersRes!BE5*Scenarios!AV110","v":12571.554094784286},{"$f":"CustomersRes!BF5*Scenarios!AW110","v":11671.696324310364},{"$f":"CustomersRes!BG5*Scenarios!AX110","v":10836.337842688812},{"$f":"CustomersRes!BH5*Scenarios!AY110","v":10061.156153475367},{"$f":"CustomersRes!BI5*Scenarios!AZ110","v":9341.8503727079897},{"$f":"CustomersRes!BJ5*Scenarios!BA110","v":8674.1411208444497},{"$f":"CustomersRes!BK5*Scenarios!BB110","v":8053.7704152402275},{"$f":"CustomersRes!BL5*Scenarios!BC110","v":7477.5015631640263},{"$f":"CustomersRes!BM5*Scenarios!BD110","v":6942.1140553482064},{"$f":"CustomersRes!BN5*Scenarios!BE110","v":6445.4034850714652},{"$f":"CustomersRes!BO5*Scenarios!BF110","v":5984.176467646108},{"$f":"CustomersRes!BP5*Scenarios!BG110","v":5556.2555853078775},{"$f":"CustomersRes!BQ5*Scenarios!BH110","v":5158.4743073813379},{"$f":"CustomersRes!BR5*Scenarios!BI110","v":4789.6819358444309},{"$f":"CustomersRes!BS5*Scenarios!BJ110","v":4446.7335261652088},{"$f":"CustomersRes!BT5*Scenarios!BK110","v":4418.4998585343828},{"$f":"CustomersRes!BU5*Scenarios!BL110","v":4390.4073592417108},{"$f":"CustomersRes!BV5*Scenarios!BM110","v":4362.4553224455021},{"$f":"CustomersRes!BW5*Scenarios!BN110","v":4334.6430458332743},{"$f":"CustomersRes!BX5*Scenarios!BO110","v":4306.9698306041082},{"$f":"CustomersRes!BY5*Scenarios!BP110","v":4279.4349814510879},{"$f":"CustomersRes!BZ5*Scenarios!BQ110","v":4252.0378065438326},{"$f":"CustomersRes!CA5*Scenarios!BR110","v":4224.777617511113},{"$f":"CustomersRes!CB5*Scenarios!BS110","v":4197.6537294235577},{"$f":"CustomersRes!CC5*Scenarios!BT110","v":4169.6654607764403},{"$f":"CustomersRes!CD5*Scenarios!BU110","v":4141.8171334725585},{"$f":"CustomersRes!CE5*Scenarios!BV110","v":4114.1080478051954},{"$f":"CustomersRes!CF5*Scenarios!BW110","v":4086.5375075661696},{"$f":"CustomersRes!CG5*Scenarios!BX110","v":4059.1048200283385},{"$f":"CustomersRes!CH5*Scenarios!BY110","v":4031.8092959281967},{"$f":"CustomersRes!CI5*Scenarios!BZ110","v":4004.6502494485558},{"$f":"CustomersRes!CJ5*Scenarios!CA110","v":3977.6269982013132},{"$f":"CustomersRes!CK5*Scenarios!CB110","v":3950.7388632103066},{"$f":"CustomersRes!CL5*Scenarios!CC110","v":3925.9851688942549}]
["Cardinia (S)",{"$f":"CustomersRes!B6","v":3962},{"$f":"CustomersRes!C6","v":3985},{"$f":"CustomersRes!D6","v":4035},{"$f":"CustomersRes!E6","v":4038},{"$f":"CustomersRes!F6","v":4066},{"$f":"CustomersRes!G6","v":4099},{"$f":"CustomersRes!H6","v":4130},{"$f":"CustomersRes!I6","v":4148},{"$f":"CustomersRes!J6","v":4170},{"$f":"CustomersRes!K6*Scenarios!B111","v":4232.1499999999996},{"$f":"CustomersRes!L6*Scenarios!C111","v":4294.9892499999996},{"$f":"CustomersRes!M6*Scenarios!D111","v":4358.5143037499993},{"$f":"CustomersRes!N6*Scenarios!E111","v":4423.721732231249},{"$f":"CustomersRes!O6*Scenarios!F111","v":4489.603123570093},{"$f":"CustomersRes!P6*Scenarios!G111","v":4556.1551079522424},{"$f":"CustomersRes!Q6*Scenarios!H111","v":4624.3743324124807},{"$f":"CustomersRes!R6*Scenarios!I111","v":4693.2524607504183},{"$f":"CustomersRes!S6*Scenarios!J111","v":4762.7861984466663},{"$f":"CustomersRes!T6*Scenarios!K111","v":4833.9722674544328},{"$f":"CustomersRes!U6*Scenarios!L111","v":4809.8024061171609},{"$f":"CustomersRes!V6*Scenarios!M111","v":4785.7533940865751},{"$f":"CustomersRes!W6*Scenarios!N111","v":4761.8246271161424},{"$f":"CustomersRes!X6*Scenarios!O111","v":4738.0155039805613},{"$f":"CustomersRes!Y6*Scenarios!P111","v":4714.3254264606585},{"$f":"CustomersRes!Z6*Scenarios!Q111","v":4690.7537993283549},{"$f":"CustomersRes!AA6*Scenarios!R111","v":4667.3000303317131},{"$f":"CustomersRes!AB6*Scenarios!S111","v":4643.9635301800545},{"$f":"CustomersRes!AC6*Scenarios!T111","v":4620.7437125291544},{"$f":"CustomersRes!AD6*Scenarios!U111","v":4597.6399939665089},{"$f":"CustomersRes!AE6*Scenarios!V111","v":4574.6517939966761},{"$f":"CustomersRes!AF6*Scenarios!W111","v":4551.7785350266931},{"$f":"CustomersRes!AG6*Scenarios!X111","v":4529.0196423515599},{"$f":"CustomersRes!AH6*Scenarios!Y111","v":4506.3745441398023},{"$f":"CustomersRes!AI6*Scenarios!Z111","v":4482.8426714191037},{"$f":"CustomersRes!AJ6*Scenarios!AA111","v":4459.4284580620078},{"$f":"CustomersRes!AK6*Scenarios!AB111","v":4435.1313157716977},{"$f":"CustomersRes!AL6*Scenarios!AC111","v":4408.9556591928394},{"$f":"CustomersRes!AM6*Scenarios!AD111","v":4380.9108808968749},{"$f":"CustomersRes!AN6*Scenarios!AE111","v":4348.0063264923901},{"$f":"CustomersRes!AO6*Scenarios!AF111","v":4310.2662948599282},{"$f":"CustomersRes!AP6*Scenarios!AG111","v":4263.7149633856288},{"$f":"CustomersRes!AQ6*Scenarios!AH111","v":4204.3963885687008},{"$f":"CustomersRes!AR6*Scenarios!AI111","v":4130.3744066258569},{"$f":"CustomersRes!AS6*Scenarios!AJ111","v":4036.7225345927277},{"$f":"CustomersRes!AT6*Scenarios!AK111","v":3996.5389219197641},{"$f":"CustomersRes!AU6*Scenarios!AL111","v":3960.5562273101655},{"$f":"CustomersRes!AV6*Scenarios!AM111","v":3917.7534461736145},{"$f":"CustomersRes!AW6*Scenarios!AN111","v":3861.1646789427464},{"$f":"CustomersRes!AX6*Scenarios!AO111","v":3788.8588555480328},{"$f":"CustomersRes!AY6*Scenarios!AP111","v":3693.9145612702928},{"$f":"CustomersRes!AZ6*Scenarios!AQ111","v":3569.4449884639412},{"$f":"CustomersRes!BA6*Scenarios!AR111","v":3412.5977635216213},{"$f":"CustomersRes!BB6*Scenarios!AS111","v":3227.5347747040132},{"$f":"CustomersRes!BC6*Scenarios!AT111","v":3026.3971008304929},{"$f":"CustomersRes!BD6*Scenarios!AU111","v":2822.2651153263405},{"$f":"CustomersRes!BE6*Scenarios!AV111","v":2624.1537897497087},{"$f":"CustomersRes!BF6*Scenarios!AW111","v":2439.03302080096},{"$f":"CustomersRes!BG6*Scenarios!AX111","v":2265.8378556969551},{"$f":"CustomersRes!BH6*Scenarios!AY111","v":2104.5086664184705},{"$f":"CustomersRes!BI6*Scenarios!AZ111","v":1954.9861230863783},{"$f":"CustomersRes!BJ6*Scenarios!BA111","v":1816.2111924709463},{"$f":"CustomersRes!BK6*Scenarios!BB111","v":1687.1301365085917},{"$f":"CustomersRes!BL6*Scenarios!BC111","v":1567.6944858260488},{"$f":"CustomersRes!BM6*Scenarios!BD111","v":1456.8560133969186},{"$f":"CustomersRes!BN6*Scenarios!BE111","v":1353.571733329934},{"$f":"CustomersRes!BO6*Scenarios!BF111","v":1257.8038746632842},{"$f":"CustomersRes!BP6*Scenarios!BG111","v":1169.5148552899677},{"$f":"CustomersRes!BQ6*Scenarios!BH111","v":1087.6672810135178},{"$f":"CustomersRes!BR6*Scenarios!BI111","v":1010.2289446084502},{"$f":"CustomersRes!BS6*Scenarios!BJ111","v":938.17779988540792},{"$f":"CustomersRes!BT6*Scenarios!BK111","v":933.48691088598093},{"$f":"CustomersRes!BU6*Scenarios!BL111","v":928.81947633155107},{"$f":"CustomersRes!BV6*Scenarios!BM111","v":924.17537894989334},{"$f":"CustomersRes!BW6*Scenarios!BN111","v":919.55450205514387},{"$f":"CustomersRes!BX6*Scenarios!BO111","v":914.95672954486815},{"$f":"CustomersRes!BY6*Scenarios!BP111","v":910.38194589714385},{"$f":"CustomersRes!BZ6*Scenarios!BQ111","v":905.83003616765814},{"$f":"CustomersRes!CA6*Scenarios!BR111","v":901.30088598681982},{"$f":"CustomersRes!CB6*Scenarios!BS111","v":896.7943815568857},{"$f":"CustomersRes!CC6*Scenarios!BT111","v":892.3104096491013},{"$f":"CustomersRes!CD6*Scenarios!BU111","v":887.84885760085581},{"$f":"CustomersRes!CE6*Scenarios!BV111","v":883.40961331285155},{"$f":"CustomersRes!CF6*Scenarios!BW111","v":878.99256524628731},{"$f":"CustomersRes!CG6*Scenarios!BX111","v":874.59760242005586},{"$f":"CustomersRes!CH6*Scenarios!BY111","v":870.22461440795564},{"$f":"CustomersRes!CI6*Scenarios!BZ111","v":865.8734913359159},{"$f":"CustomersRes!CJ6*Scenarios!CA111","v":861.54412387923628},{"$f":"CustomersRes!CK6*Scenarios!CB111","v":857.23640325984013},{"$f":"CustomersRes!CL6*Scenarios!CC111","v":852.95022124354091}]
["Casey (C)",{"$f":"CustomersRes!B7","v":12472},{"$f":"CustomersRes!C7","v":12525},{"$f":"CustomersRes!D7","v":12571},{"$f":"CustomersRes!E7","v":12658},{"$f":"CustomersRes!F7","v":12709},{"$f":"CustomersRes!G7","v":12814},{"$f":"CustomersRes!H7","v":12891},{"$f":"CustomersRes!I7","v":12987},{"$f":"CustomersRes!J7","v":13073},{"$f":"CustomersRes!K7*Scenarios!B112","v":13268.635},{"$f":"CustomersRes!L7*Scenarios!C112","v":13467.291825},{"$f":"CustomersRes!M7*Scenarios!D112","v":13668.955365875001},{"$f":"CustomersRes!N7*Scenarios!E112","v":13873.610589045626},{"$f":"CustomersRes!O7*Scenarios!F112","v":14081.242536100397},{"$f":"CustomersRes!P7*Scenarios!G112","v":14291.836323419895},{"$f":"CustomersRes!Q7*Scenarios!H112","v":14505.377141802795},{"$f":"CustomersRes!R7*Scenarios!I112","v":14722.850256093781},{"$f":"CustomersRes!S7*Scenarios!J112","v":14943.236004813312},{"$f":"CustomersRes!T7*Scenarios!K112","v":15166.519824789246},{"$f":"CustomersRes!U7*Scenarios!L112","v":15090.687225665301},{"$f":"CustomersRes!V7*Scenarios!M112","v":15015.233789536975},{"$f":"CustomersRes!W7*Scenarios!N112","v":14940.157620589291},{"$f":"CustomersRes!X7*Scenarios!O112","v":14865.456832486345},{"$f":"CustomersRes!Y7*Scenarios!P112","v":14791.129548323914},{"$f":"CustomersRes!Z7*Scenarios!Q112","v":14717.173900582295},{"$f":"CustomersRes!AA7*Scenarios!R112","v":14643.588031079384},{"$f":"CustomersRes!AB7*Scenarios!S112","v":14570.370090923987},{"$f":"CustomersRes!AC7*Scenarios!T112","v":14497.518240469368},{"$f":"CustomersRes!AD7*Scenarios!U112","v":14424.030649267021},{"$f":"CustomersRes!AE7*Scenarios!V112","v":14349.910496020686},{"$f":"CustomersRes!AF7*Scenarios!W112","v":14270.160943540583},{"$f":"CustomersRes!AG7*Scenarios!X112","v":14172.810138822879},{"$f":"CustomersRes!AH7*Scenarios!Y112","v":14045.946088128765},{"$f":"CustomersRes!AI7*Scenarios!Z112","v":13860.716357688121},{"$f":"CustomersRes!AJ7*Scenarios!AA112","v":13599.41277589968},{"$f":"CustomersRes!AK7*Scenarios!AB112","v":13237.415712020182},{"$f":"CustomersRes!AL7*Scenarios!AC112","v":12770.228633460081},{"$f":"CustomersRes!AM7*Scenarios!AD112","v":12196.377490292782},{"$f":"CustomersRes!AN7*Scenarios!AE112","v":11517.395602841318},{"$f":"CustomersRes!AO7*Scenarios!AF112","v":10814.80862482711},{"$f":"CustomersRes!AP7*Scenarios!AG112","v":10100.734581702975},{"$f":"CustomersRes!AQ7*Scenarios!AH112","v":9408.2309087944595},{"$f":"CustomersRes!AR7*Scenarios!AI112","v":8751.1897542504867},{"$f":"CustomersRes!AS7*Scenarios!AJ112","v":8133.4338054792343},{"$f":"CustomersRes!AT7*Scenarios!AK112","v":7609.7666364518382},{"$f":"CustomersRes!AU7*Scenarios!AL112","v":7135.7178032695792},{"$f":"CustomersRes!AV7*Scenarios!AM112","v":6665.039214253231},{"$f":"CustomersRes!AW7*Scenarios!AN112","v":6206.714018181965},{"$f":"CustomersRes!AX7*Scenarios!AO112","v":5772.680448091055},{"$f":"CustomersRes!AY7*Scenarios!AP112","v":5364.8170458506002},{"$f":"CustomersRes!AZ7*Scenarios!AQ112","v":4982.9929606213473},{"$f":"CustomersRes!BA7*Scenarios!AR112","v":4627.0779958182402},{"$f":"CustomersRes!BB7*Scenarios!AS112","v":4296.9426058391491},{"$f":"CustomersRes!BC7*Scenarios!AT112","v":3990.4578928099536},{"$f":"CustomersRes!BD7*Scenarios!AU112","v":3705.5056033459036},{"$f":"CustomersRes!BE7*Scenarios!AV112","v":3440.9780753291743},{"$f":"CustomersRes!BF7*Scenarios!AW112","v":3195.7731849525285},{"$f":"CustomersRes!BG7*Scenarios!AX112","v":2967.7943190277661},{"$f":"CustomersRes!BH7*Scenarios!AY112","v":2756.9553474326271},{"$f":"CustomersRes!BI7*Scenarios!AZ112","v":2561.170570695464},{"$f":"CustomersRes!BJ7*Scenarios!BA112","v":2379.3647178419865},{"$f":"CustomersRes!BK7*Scenarios!BB112","v":2210.4678942527767},{"$f":"CustomersRes!BL7*Scenarios!BC112","v":2053.4155547815126},{"$f":"CustomersRes!BM7*Scenarios!BD112","v":1908.1484770076049},{"$f":"CustomersRes!BN7*Scenarios!BE112","v":1771.607734622567},{"$f":"CustomersRes!BO7*Scenarios!BF112","v":1644.7496959494542},{"$f":"CustomersRes!BP7*Scenarios!BG112","v":1527.525947469707},{"$f":"CustomersRes!BQ7*Scenarios!BH112","v":1418.8883177323585},{"$f":"CustomersRes!BR7*Scenarios!BI112","v":1317.7938761436967},{"$f":"CustomersRes!BS7*Scenarios!BJ112","v":1224.2049067629782},{"$f":"CustomersRes!BT7*Scenarios!BK112","v":1218.0838822291632},{"$f":"CustomersRes!BU7*Scenarios!BL112","v":1211.9934628180174},{"$f":"CustomersRes!BV7*Scenarios!BM112","v":1205.9334955039274},{"$f":"CustomersRes!BW7*Scenarios!BN112","v":1199.9038280264078},{"$f":"CustomersRes!BX7*Scenarios!BO112","v":1193.9043088862759},{"$f":"CustomersRes!BY7*Scenarios!BP112","v":1187.9347873418444},{"$f":"CustomersRes!BZ7*Scenarios!BQ112","v":1181.9951134051353},{"$f":"CustomersRes!CA7*Scenarios!BR112","v":1176.0851378381096},{"$f":"CustomersRes!CB7*Scenarios!BS112","v":1170.204712148919},{"$f":"CustomersRes!CC7*Scenarios!BT112","v":1164.3536885881745},{"$f":"CustomersRes!CD7*Scenarios!BU112","v":1158.5319201452337},{"$f":"CustomersRes!CE7*Scenarios!BV112","v":1152.7392605445075},{"$f":"CustomersRes!CF7*Scenarios!BW112","v":1146.9755642417849},{"$f":"CustomersRes!CG7*Scenarios!BX112","v":1141.2406864205759},{"$f":"CustomersRes!CH7*Scenarios!BY112","v":1135.534482988473},{"$f":"CustomersRes!CI7*Scenarios!BZ112","v":1129.8568105735305},{"$f":"CustomersRes!CJ7*Scenarios!CA112","v":1124.2075265206629},{"$f":"CustomersRes!CK7*Scenarios!CB112","v":1118.5864888880596},{"$f":"CustomersRes!CL7*Scenarios!CC112","v":1112.9935564436194}]
["Frankston (C)",{"$f":"CustomersRes!B8","v":1},{"$f":"CustomersRes!C8","v":1},{"$f":"CustomersRes!D8","v":1},{"$f":"CustomersRes!E8","v":1},{"$f":"CustomersRes!F8","v":1},{"$f":"CustomersRes!G8","v":1},{"$f":"CustomersRes!H8","v":1},{"$f":"CustomersRes!I8","v":1},{"$f":"CustomersRes!J8","v":1},{"$f":"CustomersRes!K8*Scenarios!B113","v":0.995},{"$f":"CustomersRes!L8*Scenarios!C113","v":0.99002500000000004},{"$f":"CustomersRes!M8*Scenarios!D113","v":0.98507487500000002},{"$f":"CustomersRes!N8*Scenarios!E113","v":0.98014950062500006},{"$f":"CustomersRes!O8*Scenarios!F113","v":0.97524875312187509},{"$f":"CustomersRes!P8*Scenarios!G113","v":0.97037250935626573},{"$f":"CustomersRes!Q8*Scenarios!H113","v":0.96552064680948435},{"$f":"CustomersRes!R8*Scenarios!I113","v":0.96069304357543694},{"$f":"CustomersRes!S8*Scenarios!J113","v":0.95588957835755972},{"$f":"CustomersRes!T8*Scenarios!K113","v":0.95111013046577197},{"$f":"CustomersRes!U8*Scenarios!L113","v":0.94635457981344306},{"$f":"CustomersRes!V8*Scenarios!M113","v":0.94162280691437583},{"$f":"CustomersRes!W8*Scenarios!N113","v":0.936914692879804},{"$f":"CustomersRes!X8*Scenarios!O113","v":0.93223011941540501},{"$f":"CustomersRes!Y8*Scenarios!P113","v":0.92756896881832795},{"$f":"CustomersRes!Z8*Scenarios!Q113","v":0.92293112397423627},{"$f":"CustomersRes!AA8*Scenarios!R113","v":0.91831646835436509},{"$f":"CustomersRes!AB8*Scenarios!S113","v":0.91372488601259327},{"$f":"CustomersRes!AC8*Scenarios!T113","v":0.90915626158253027},{"$f":"CustomersRes!AD8*Scenarios!U113","v":0.90461048027461766},{"$f":"CustomersRes!AE8*Scenarios!V113","v":0.90008742787324458},{"$f":"CustomersRes!AF8*Scenarios!W113","v":0.89558699073387837},{"$f":"CustomersRes!AG8*Scenarios!X113","v":0.89110905578020894},{"$f":"CustomersRes!AH8*Scenarios!Y113","v":0.88665351050130792},{"$f":"CustomersRes!AI8*Scenarios!Z113","v":0.88222024294880141},{"$f":"CustomersRes!AJ8*Scenarios!AA113","v":0.87780914173405744},{"$f":"CustomersRes!AK8*Scenarios!AB113","v":0.87342009602538717},{"$f":"CustomersRes!AL8*Scenarios!AC113","v":0.86905299554526028},{"$f":"CustomersRes!AM8*Scenarios!AD113","v":0.86470773056753403},{"$f":"CustomersRes!AN8*Scenarios!AE113","v":0.86038419191469639},{"$f":"CustomersRes!AO8*Scenarios!AF113","v":0.8560822709551229},{"$f":"CustomersRes!AP8*Scenarios!AG113","v":0.85180185960034727},{"$f":"CustomersRes!AQ8*Scenarios!AH113","v":0.84754285030234555},{"$f":"CustomersRes!AR8*Scenarios!AI113","v":0.84330513605083379},{"$f":"CustomersRes!AS8*Scenarios!AJ113","v":0.83908861037057958},{"$f":"CustomersRes!AT8*Scenarios!AK113","v":0.83489316731872665},{"$f":"CustomersRes!AU8*Scenarios!AL113","v":0.830718701482133},{"$f":"CustomersRes!AV8*Scenarios!AM113","v":0.82656510797472238},{"$f":"CustomersRes!AW8*Scenarios!AN113","v":0.82243228243484878},{"$f":"CustomersRes!AX8*Scenarios!AO113","v":0.81832012102267448},{"$f":"CustomersRes!AY8*Scenarios!AP113","v":0.81422852041756111},{"$f":"CustomersRes!AZ8*Scenarios!AQ113","v":0.81015737781547326},{"$f":"CustomersRes!BA8*Scenarios!AR113","v":0.80610659092639592},{"$f":"CustomersRes!BB8*Scenarios!AS113","v":0.80207605797176396},{"$f":"CustomersRes!BC8*Scenarios!AT113","v":0.79806567768190517},{"$f":"CustomersRes!BD8*Scenarios!AU113","v":0.79407534929349566},{"$f":"CustomersRes!BE8*Scenarios!AV113","v":0.79010497254702816},{"$f":"CustomersRes!BF8*Scenarios!AW113","v":0.78615444768429299},{"$f":"CustomersRes!BG8*Scenarios!AX113","v":0.78222367544587157},{"$f":"CustomersRes!BH8*Scenarios!AY113","v":0.77831255706864222},{"$f":"CustomersRes!BI8*Scenarios!AZ113","v":0.77442099428329902},{"$f":"CustomersRes!BJ8*Scenarios!BA113","v":0.77054888931188248},{"$f":"CustomersRes!BK8*Scenarios!BB113","v":0.76669614486532311},{"$f":"CustomersRes!BL8*Scenarios!BC113","v":0.76286266414099646},{"$f":"CustomersRes!BM8*Scenarios!BD113","v":0.75904835082029143},{"$f":"CustomersRes!BN8*Scenarios!BE113","v":0.75525310906618992},{"$f":"CustomersRes!BO8*Scenarios!BF113","v":0.75147684352085897},{"$f":"CustomersRes!BP8*Scenarios!BG113","v":0.74771945930325467},{"$f":"CustomersRes!BQ8*Scenarios!BH113","v":0.74398086200673841},{"$f":"CustomersRes!BR8*Scenarios!BI113","v":0.74026095769670475},{"$f":"CustomersRes!BS8*Scenarios!BJ113","v":0.73655965290822123},{"$f":"CustomersRes!BT8*Scenarios!BK113","v":0.73287685464368013},{"$f":"CustomersRes!BU8*Scenarios!BL113","v":0.72921247037046177},{"$f":"CustomersRes!BV8*Scenarios!BM113","v":0.7255664080186095},{"$f":"CustomersRes!BW8*Scenarios!BN113","v":0.72193857597851641},{"$f":"CustomersRes!BX8*Scenarios!BO113","v":0.71832888309862386},{"$f":"CustomersRes!BY8*Scenarios!BP113","v":0.71473723868313077},{"$f":"CustomersRes!BZ8*Scenarios!BQ113","v":0.71116355248971508},{"$f":"CustomersRes!CA8*Scenarios!BR113","v":0.70760773472726646},{"$f":"CustomersRes!CB8*Scenarios!BS113","v":0.70406969605363012},{"$f":"CustomersRes!CC8*Scenarios!BT113","v":0.70054934757336196},{"$f":"CustomersRes!CD8*Scenarios!BU113","v":0.69704660083549519},{"$f":"CustomersRes!CE8*Scenarios!BV113","v":0.69356136783131772},{"$f":"CustomersRes!CF8*Scenarios!BW113","v":0.69009356099216113},{"$f":"CustomersRes!CG8*Scenarios!BX113","v":0.68664309318720029},{"$f":"CustomersRes!CH8*Scenarios!BY113","v":0.68320987772126429},{"$f":"CustomersRes!CI8*Scenarios!BZ113","v":0.679793828332658},{"$f":"CustomersRes!CJ8*Scenarios!CA113","v":0.67639485919099473},{"$f":"CustomersRes!CK8*Scenarios!CB113","v":0.67301288489503974},{"$f":"CustomersRes!CL8*Scenarios!CC113","v":0.66964782047056459}]
["Glen Eira (C)",{"$f":"CustomersRes!B9","v":49416},{"$f":"CustomersRes!C9","v":49898},{"$f":"CustomersRes!D9","v":50368},{"$f":"CustomersRes!E9","v":50700},{"$f":"CustomersRes!F9","v":50877},{"$f":"CustomersRes!G9","v":51223},{"$f":"CustomersRes!H9","v":51419},{"$f":"CustomersRes!I9","v":51752},{"$f":"CustomersRes!J9","v":52150},{"$f":"CustomersRes!K9*Scenarios!B114","v":52930.25},{"$f":"CustomersRes!L9*Scenarios!C114","v":53723.598749999997},{"$f":"CustomersRes!M9*Scenarios!D114","v":54527.980756249999},{"$f":"CustomersRes!N9*Scenarios!E114","v":55343.340852468747},{"$f":"CustomersRes!O9*Scenarios!F114","v":56172.624148206407},{"$f":"CustomersRes!P9*Scenarios!G114","v":57014.761027465378},{"$f":"CustomersRes!Q9*Scenarios!H114","v":57868.687222328052},{"$f":"CustomersRes!R9*Scenarios!I114","v":58736.343786216414},{"$f":"CustomersRes!S9*Scenarios!J114","v":59615.662067285331},{"$f":"CustomersRes!T9*Scenarios!K114","v":60508.583756948901},{"$f":"CustomersRes!U9*Scenarios!L114","v":60206.040838164154},{"$f":"CustomersRes!V9*Scenarios!M114","v":59905.010633973332},{"$f":"CustomersRes!W9*Scenarios!N114","v":59605.485580803463},{"$f":"CustomersRes!X9*Scenarios!O114","v":59307.458152899446},{"$f":"CustomersRes!Y9*Scenarios!P114","v":59010.920862134946},{"$f":"CustomersRes!Z9*Scenarios!Q114","v":58714.866257824273},{"$f":"CustomersRes!AA9*Scenarios!R114","v":58416.291926535152},{"$f":"CustomersRes!AB9*Scenarios!S114","v":58113.210466902477},{"$f":"CustomersRes!AC9*Scenarios!T114","v":57791.644414567963},{"$f":"CustomersRes!AD9*Scenarios!U114","v":57443.686192495123},{"$f":"CustomersRes!AE9*Scenarios!V114","v":57058.467761532644},{"$f":"CustomersRes!AF9*Scenarios!W114","v":56470.175422724984},{"$f":"CustomersRes!AG9*Scenarios!X114","v":55345.824545611358},{"$f":"CustomersRes!AH9*Scenarios!Y114","v":53621.0954228833},{"$f":"CustomersRes!AI9*Scenarios!Z114","v":51235.989945768881},{"$f":"CustomersRes!AJ9*Scenarios!AA114","v":48471.809996040036},{"$f":"CustomersRes!AK9*Scenarios!AB114","v":45524.450946059835},{"$f":"CustomersRes!AL9*Scenarios!AC114","v":42563.828691329538},{"$f":"CustomersRes!AM9*Scenarios!AD114","v":39676.009547872891},{"$f":"CustomersRes!AN9*Scenarios!AE114","v":36904.629500133524},{"$f":"CustomersRes!AO9*Scenarios!AF114","v":34299.106352632858},{"$f":"CustomersRes!AP9*Scenarios!AG114","v":31858.610820869693},{"$f":"CustomersRes!AQ9*Scenarios!AH114","v":29584.317766765344},{"$f":"CustomersRes!AR9*Scenarios!AI114","v":27468.396177931518},{"$f":"CustomersRes!AS9*Scenarios!AJ114","v":25502.05419704186},{"$f":"CustomersRes!AT9*Scenarios!AK114","v":23692.543926056649},{"$f":"CustomersRes!AU9*Scenarios!AL114","v":22017.081206426366},{"$f":"CustomersRes!AV9*Scenarios!AM114","v":20450.995800394234},{"$f":"CustomersRes!AW9*Scenarios!AN114","v":18990.740821392261},{"$f":"CustomersRes!AX9*Scenarios!AO114","v":17632.787117285301},{"$f":"CustomersRes!AY9*Scenarios!AP114","v":16370.623181698875},{"$f":"CustomersRes!AZ9*Scenarios!AQ114","v":15198.770065790381},{"$f":"CustomersRes!BA9*Scenarios!AR114","v":14110.776215461428},{"$f":"CustomersRes!BB9*Scenarios!AS114","v":13101.222334384121},{"$f":"CustomersRes!BC9*Scenarios!AT114","v":12163.716222712201},{"$f":"CustomersRes!BD9*Scenarios!AU114","v":11293.89764159864},{"$f":"CustomersRes!BE9*Scenarios!AV114","v":10486.428153390647},{"$f":"CustomersRes!BF9*Scenarios!AW114","v":9735.9960126236929},{"$f":"CustomersRes!BG9*Scenarios!AX114","v":9039.316032560575},{"$f":"CustomersRes!BH9*Scenarios!AY114","v":8393.119452397772},{"$f":"CustomersRes!BI9*Scenarios!AZ114","v":7793.1538551357835},{"$f":"CustomersRes!BJ9*Scenarios!BA114","v":7236.1880858601044},{"$f":"CustomersRes!BK9*Scenarios!BB114","v":6719.0071454308036},{"$f":"CustomersRes!BL9*Scenarios!BC114","v":6239.4121097036495},{"$f":"CustomersRes!BM9*Scenarios!BD114","v":5793.2150491551311},{"$f":"CustomersRes!BN9*Scenarios!BE114","v":5378.2489739093553},{"$f":"CustomersRes!BO9*Scenarios!BF114","v":4993.3577290398089},{"$f":"CustomersRes!BP9*Scenarios!BG114","v":4636.39094039461},{"$f":"CustomersRes!BQ9*Scenarios!BH114","v":4304.2089856926368},{"$f":"CustomersRes!BR9*Scenarios!BI114","v":3996.6879407641736},{"$f":"CustomersRes!BS9*Scenarios!BJ114","v":3710.7045010603529},{"$f":"CustomersRes!BT9*Scenarios!BK114","v":3687.1509785550511},{"$f":"CustomersRes!BU9*Scenarios!BL114","v":3663.715223662276},{"$f":"CustomersRes!BV9*Scenarios!BM114","v":3640.3966475439647},{"$f":"CustomersRes!BW9*Scenarios!BN114","v":3617.1946643062447},{"$f":"CustomersRes!BX9*Scenarios!BO114","v":3594.1086909847136},{"$f":"CustomersRes!BY9*Scenarios!BP114","v":3571.1381475297899},{"$f":"CustomersRes!BZ9*Scenarios!BQ114","v":3548.2824567921411},{"$f":"CustomersRes!CA9*Scenarios!BR114","v":3525.5410445081802},{"$f":"CustomersRes!CB9*Scenarios!BS114","v":3502.9133392856393},{"$f":"CustomersRes!CC9*Scenarios!BT114","v":3480.3987725892111},{"$f":"CustomersRes!CD9*Scenarios!BU114","v":3457.9967787262649},{"$f":"CustomersRes!CE9*Scenarios!BV114","v":3435.7067948326335},{"$f":"CustomersRes!CF9*Scenarios!BW114","v":3413.5282608584703},{"$f":"CustomersRes!CG9*Scenarios!BX114","v":3391.4606195541778},{"$f":"CustomersRes!CH9*Scenarios!BY114","v":3369.503316456407},{"$f":"CustomersRes!CI9*Scenarios!BZ114","v":3347.655799874125},{"$f":"CustomersRes!CJ9*Scenarios!CA114","v":3324.9175208747542},{"$f":"CustomersRes!CK9*Scenarios!CB114","v":3302.2929332703807},{"$f":"CustomersRes!CL9*Scenarios!CC114","v":3281.7814686040288}]
["Greater Dandenong (C)",{"$f":"CustomersRes!B10","v":50749},{"$f":"CustomersRes!C10","v":51473},{"$f":"CustomersRes!D10","v":52131},{"$f":"CustomersRes!E10","v":52827},{"$f":"CustomersRes!F10","v":53696},{"$f":"CustomersRes!G10","v":54616},{"$f":"CustomersRes!H10","v":55283},{"$f":"CustomersRes!I10","v":56060},{"$f":"CustomersRes!J10","v":56719},{"$f":"CustomersRes!K10*Scenarios!B115","v":57569.404999999999},{"$f":"CustomersRes!L10*Scenarios!C115","v":58432.557974999996},{"$f":"CustomersRes!M10*Scenarios!D115","v":59308.395185124995},{"$f":"CustomersRes!N10*Scenarios!E115","v":60196.853209199369},{"$f":"CustomersRes!O10*Scenarios!F115","v":61098.868943153371},{"$f":"CustomersRes!P10*Scenarios!G115","v":62014.374598437607},{"$f":"CustomersRes!Q10*Scenarios!H115","v":62944.302725445421},{"$f":"CustomersRes!R10*Scenarios!I115","v":63887.581211818193},{"$f":"CustomersRes!S10*Scenarios!J115","v":64845.143305759098},{"$f":"CustomersRes!T10*Scenarios!K115","v":65816.917589230303},{"$f":"CustomersRes!U10*Scenarios!L115","v":65487.833001284154},{"$f":"CustomersRes!V10*Scenarios!M115","v":65160.393836277733},{"$f":"CustomersRes!W10*Scenarios!N115","v":64834.591867096344},{"$f":"CustomersRes!X10*Scenarios!O115","v":64510.418907760861},{"$f":"CustomersRes!Y10*Scenarios!P115","v":64187.866813222055},{"$f":"CustomersRes!Z10*Scenarios!Q115","v":63866.927479155944},{"$f":"CustomersRes!AA10*Scenarios!R115","v":63547.592841760161},{"$f":"CustomersRes!AB10*Scenarios!S115","v":63229.854877551363},{"$f":"CustomersRes!AC10*Scenarios!T115","v":62913.705603163609},{"$f":"CustomersRes!AD10*Scenarios!U115","v":62599.137075147788},{"$f":"CustomersRes!AE10*Scenarios!V115","v":62285.141389772049},{"$f":"CustomersRes!AF10*Scenarios!W115","v":61971.715682823189},{"$f":"CustomersRes!AG10*Scenarios!X115","v":61657.857104409071},{"$f":"CustomersRes!AH10*Scenarios!Y115","v":61342.567818887022},{"$f":"CustomersRes!AI10*Scenarios!Z115","v":61023.854979792588},{"$f":"CustomersRes!AJ10*Scenarios!AA115","v":60699.735704893625},{"$f":"CustomersRes!AK10*Scenarios!AB115","v":60368.237026369156},{"$f":"CustomersRes!AL10*Scenarios!AC115","v":60024.39584123731},{"$f":"CustomersRes!AM10*Scenarios!AD115","v":59662.273862031121},{"$f":"CustomersRes!AN10*Scenarios!AE115","v":59262.962492720966},{"$f":"CustomersRes!AO10*Scenarios!AF115","v":58829.64768025736},{"$f":"CustomersRes!AP10*Scenarios!AG115","v":58326.499441856075},{"$f":"CustomersRes!AQ10*Scenarios!AH115","v":57731.866944646797},{"$f":"CustomersRes!AR10*Scenarios!AI115","v":57026.207609923564},{"$f":"CustomersRes!AS10*Scenarios!AJ115","v":56163.076571873949},{"$f":"CustomersRes!AT10*Scenarios!AK115","v":55715.261189014578},{"$f":"CustomersRes!AU10*Scenarios!AL115","v":55296.684883069502},{"$f":"CustomersRes!AV10*Scenarios!AM115","v":54822.201458654155},{"$f":"CustomersRes!AW10*Scenarios!AN115","v":54250.090451360884},{"$f":"CustomersRes!AX10*Scenarios!AO115","v":53549.839999104079},{"$f":"CustomersRes!AY10*Scenarios!AP115","v":52662.090799108555},{"$f":"CustomersRes!AZ10*Scenarios!AQ115","v":51502.780345113009},{"$f":"CustomersRes!BA10*Scenarios!AR115","v":49966.266443387445},{"$f":"CustomersRes!BB10*Scenarios!AS115","v":47973.435111170511},{"$f":"CustomersRes!BC10*Scenarios!AT115","v":45524.567935614657},{"$f":"CustomersRes!BD10*Scenarios!AU115","v":42766.945095936586},{"$f":"CustomersRes!BE10*Scenarios!AV115","v":39910.110370456903},{"$f":"CustomersRes!BF10*Scenarios!AW115","v":37121.559818604619},{"$f":"CustomersRes!BG10*Scenarios!AX115","v":34481.952019511598},{"$f":"CustomersRes!BH10*Scenarios!AY115","v":32016.54225941404},{"$f":"CustomersRes!BI10*Scenarios!AZ115","v":29723.459548116971},{"$f":"CustomersRes!BJ10*Scenarios!BA115","v":27594.842250376387},{"$f":"CustomersRes!BK10*Scenarios!BB115","v":25618.868039124503},{"$f":"CustomersRes!BL10*Scenarios!BC115","v":23784.773698928882},{"$f":"CustomersRes!BM10*Scenarios!BD115","v":22081.849830434239},{"$f":"CustomersRes!BN10*Scenarios!BE115","v":20500.44058128207},{"$f":"CustomersRes!BO10*Scenarios!BF115","v":19032.93837837566},{"$f":"CustomersRes!BP10*Scenarios!BG115","v":17670.773686483783},{"$f":"CustomersRes!BQ10*Scenarios!BH115","v":16405.419818051363},{"$f":"CustomersRes!BR10*Scenarios!BI115","v":15231.392718961106},{"$f":"CustomersRes!BS10*Scenarios!BJ115","v":14140.235755366301},{"$f":"CustomersRes!BT10*Scenarios!BK115","v":14069.534576589469},{"$f":"CustomersRes!BU10*Scenarios!BL115","v":13999.186903706521},{"$f":"CustomersRes!BV10*Scenarios!BM115","v":13929.190969187988},{"$f":"CustomersRes!BW10*Scenarios!BN115","v":13859.545014342048},{"$f":"CustomersRes!BX10*Scenarios!BO115","v":13790.247289270337},{"$f":"CustomersRes!BY10*Scenarios!BP115","v":13721.296052823986},{"$f":"CustomersRes!BZ10*Scenarios!BQ115","v":13652.689572559866},{"$f":"CustomersRes!CA10*Scenarios!BR115","v":13584.426124697067},{"$f":"CustomersRes!CB10*Scenarios!BS115","v":13516.503994073582},{"$f":"CustomersRes!CC10*Scenarios!BT115","v":13448.921474103214},{"$f":"CustomersRes!CD10*Scenarios!BU115","v":13381.676866732698},{"$f":"CustomersRes!CE10*Scenarios!BV115","v":13314.768482399035},{"$f":"CustomersRes!CF10*Scenarios!BW115","v":13248.194639987039},{"$f":"CustomersRes!CG10*Scenarios!BX115","v":13181.953666787103},{"$f":"CustomersRes!CH10*Scenarios!BY115","v":13116.043898453168},{"$f":"CustomersRes!CI10*Scenarios!BZ115","v":13050.463678960903},{"$f":"CustomersRes!CJ10*Scenarios!CA115","v":12985.211360566098},{"$f":"CustomersRes!CK10*Scenarios!CB115","v":12920.285303763267},{"$f":"CustomersRes!CL10*Scenarios!CC115","v":12855.68387724445}]
["Kingston (C)",{"$f":"CustomersRes!B11","v":49828},{"$f":"CustomersRes!C11","v":50358},{"$f":"CustomersRes!D11","v":50852},{"$f":"CustomersRes!E11","v":51309},{"$f":"CustomersRes!F11","v":51721},{"$f":"CustomersRes!G11","v":52207},{"$f":"CustomersRes!H11","v":52801},{"$f":"CustomersRes!I11","v":53445},{"$f":"CustomersRes!J11","v":53913},{"$f":"CustomersRes!K11*Scenarios!B116","v":54720.434999999998},{"$f":"CustomersRes!L11*Scenarios!C116","v":55540.832824999998},{"$f":"CustomersRes!M11*Scenarios!D116","v":56373.128660874994},{"$f":"CustomersRes!N11*Scenarios!E116","v":57217.263017570622},{"$f":"CustomersRes!O11*Scenarios!F116","v":58075.176702482771},{"$f":"CustomersRes!P11*Scenarios!G116","v":58945.800818970354},{"$f":"CustomersRes!Q11*Scenarios!H116","v":59829.071814875504},{"$f":"CustomersRes!R11*Scenarios!I116","v":60725.926455801127},{"$f":"CustomersRes!S11*Scenarios!J116","v":61635.29682352212},{"$f":"CustomersRes!T11*Scenarios!K116","v":62559.120339404508},{"$f":"CustomersRes!U11*Scenarios!L116","v":62246.324737707488},{"$f":"CustomersRes!V11*Scenarios!M116","v":61935.09311401895},{"$f":"CustomersRes!W11*Scenarios!N116","v":61625.417648448856},{"$f":"CustomersRes!X11*Scenarios!O116","v":61317.290560206609},{"$f":"CustomersRes!Y11*Scenarios!P116","v":61010.704107405574},{"$f":"CustomersRes!Z11*Scenarios!Q116","v":60705.650586868549},{"$f":"CustomersRes!AA11*Scenarios!R116","v":60401.122333934203},{"$f":"CustomersRes!AB11*Scenarios!S116","v":60097.116722264531},{"$f":"CustomersRes!AC11*Scenarios!T116","v":59791.631138653211},{"$f":"CustomersRes!AD11*Scenarios!U116","v":59483.672982959943},{"$f":"CustomersRes!AE11*Scenarios!V116","v":59171.254618045146},{"$f":"CustomersRes!AF11*Scenarios!W116","v":58834.39834495492},{"$f":"CustomersRes!AG11*Scenarios!X116","v":58429.226353230144},{"$f":"CustomersRes!AH11*Scenarios!Y116","v":57922.080221463992},{"$f":"CustomersRes!AI11*Scenarios!Z116","v":57229.469820356673},{"$f":"CustomersRes!AJ11*Scenarios!AA116","v":56299.322471254891},{"$f":"CustomersRes!AK11*Scenarios!AB116","v":55051.825858898614},{"$f":"CustomersRes!AL11*Scenarios!AC116","v":53449.566729604121},{"$f":"CustomersRes!AM11*Scenarios!AD116","v":51446.318895956101},{"$f":"CustomersRes!AN11*Scenarios!AE116","v":48964.08730147632},{"$f":"CustomersRes!AO11*Scenarios!AF116","v":46290.266864968937},{"$f":"CustomersRes!AP11*Scenarios!AG116","v":43447.815530644089},{"$f":"CustomersRes!AQ11*Scenarios!AH116","v":40603.57645299087},{"$f":"CustomersRes!AR11*Scenarios!AI116","v":37850.558570725916},{"$f":"CustomersRes!AS11*Scenarios!AJ116","v":35224.305777872287},{"$f":"CustomersRes!AT11*Scenarios!AK116","v":33152.184248982929},{"$f":"CustomersRes!AU11*Scenarios!AL116","v":31292.423327738015},{"$f":"CustomersRes!AV11*Scenarios!AM116","v":29368.961211099326},{"$f":"CustomersRes!AW11*Scenarios!AN116","v":27436.116405043831},{"$f":"CustomersRes!AX11*Scenarios!AO116","v":25561.935823018612},{"$f":"CustomersRes!AY11*Scenarios!AP116","v":23777.126143903519},{"$f":"CustomersRes!AZ11*Scenarios!AQ116","v":22095.240513184002},{"$f":"CustomersRes!BA11*Scenarios!AR116","v":20521.764310618084},{"$f":"CustomersRes!BB11*Scenarios!AS116","v":19055.155489064993},{"$f":"CustomersRes!BC11*Scenarios!AT116","v":17691.879711619669},{"$f":"CustomersRes!BD11*Scenarios!AU116","v":16425.420313061572},{"$f":"CustomersRes!BE11*Scenarios!AV116","v":15249.293211496264},{"$f":"CustomersRes!BF11*Scenarios!AW116","v":14158.046745438784},{"$f":"CustomersRes!BG11*Scenarios!AX116","v":13145.25651171159},{"$f":"CustomersRes!BH11*Scenarios!AY116","v":12204.530229153032},{"$f":"CustomersRes!BI11*Scenarios!AZ116","v":11331.507578007266},{"$f":"CustomersRes!BJ11*Scenarios!BA116","v":10520.85004011723},{"$f":"CustomersRes!BK11*Scenarios!BB116","v":9768.2457899166438},{"$f":"CustomersRes!BL11*Scenarios!BC116","v":9069.4045609670611},{"$f":"CustomersRes!BM11*Scenarios!BD116","v":8421.0575381622257},{"$f":"CustomersRes!BN11*Scenarios!BE116","v":7818.952250471415},{"$f":"CustomersRes!BO11*Scenarios!BF116","v":7258.8574892190582},{"$f":"CustomersRes!BP11*Scenarios!BG116","v":6739.5632017729631},{"$f":"CustomersRes!BQ11*Scenarios!BH116","v":6256.8653857640984},{"$f":"CustomersRes!BR11*Scenarios!BI116","v":5808.5810588352779},{"$f":"CustomersRes!BS11*Scenarios!BJ116","v":5392.5381535411016},{"$f":"CustomersRes!BT11*Scenarios!BK116","v":5364.5754627733959},{"$f":"CustomersRes!BU11*Scenarios!BL116","v":5336.7525854595287},{"$f":"CustomersRes!BV11*Scenarios!BM116","v":5309.068822532231},{"$f":"CustomersRes!BW11*Scenarios!BN116","v":5281.52347841957},{"$f":"CustomersRes!BX11*Scenarios!BO116","v":5254.1158610274724},{"$f":"CustomersRes!BY11*Scenarios!BP116","v":5226.8452817223351},{"$f":"CustomersRes!BZ11*Scenarios!BQ116","v":5199.7110553137236},{"$f":"CustomersRes!CA11*Scenarios!BR116","v":5172.7125000371552},{"$f":"CustomersRes!CB11*Scenarios!BS116","v":5145.8489375369691},{"$f":"CustomersRes!CC11*Scenarios!BT116","v":5119.1196928492845},{"$f":"CustomersRes!CD11*Scenarios!BU116","v":5092.5240943850386},{"$f":"CustomersRes!CE11*Scenarios!BV116","v":5066.0614739131133},{"$f":"CustomersRes!CF11*Scenarios!BW116","v":5039.7311665435482},{"$f":"CustomersRes!CG11*Scenarios!BX116","v":5013.5325107108301},{"$f":"CustomersRes!CH11*Scenarios!BY116","v":4987.4648481572758},{"$f":"CustomersRes!CI11*Scenarios!BZ116","v":4961.5275239164894},{"$f":"CustomersRes!CJ11*Scenarios!CA116","v":4935.7198862969071},{"$f":"CustomersRes!CK11*Scenarios!CB116","v":4910.041286865423},{"$f":"CustomersRes!CL11*Scenarios!CC116","v":4884.4910804310957}]
["Knox (C)",{"$f":"CustomersRes!B12","v":59059},{"$f":"CustomersRes!C12","v":59590},{"$f":"CustomersRes!D12","v":60045},{"$f":"CustomersRes!E12","v":60488},{"$f":"CustomersRes!F12","v":61002},{"$f":"CustomersRes!G12","v":61526},{"$f":"CustomersRes!H12","v":62077},{"$f":"CustomersRes!I12","v":62627},{"$f":"CustomersRes!J12","v":63097},{"$f":"CustomersRes!K12*Scenarios!B117","v":64042.514999999999},{"$f":"CustomersRes!L12*Scenarios!C117","v":65002.302425000002},{"$f":"CustomersRes!M12*Scenarios!D117","v":65976.290912875003},{"$f":"CustomersRes!N12*Scenarios!E117","v":66964.409458310634},{"$f":"CustomersRes!O12*Scenarios!F117","v":67968.587411019078},{"$f":"CustomersRes!P12*Scenarios!G117","v":68987.744473963976},{"$f":"CustomersRes!Q12*Scenarios!H117","v":70021.805751594162},{"$f":"CustomersRes!R12*Scenarios!I117","v":71071.69672283619},{"$f":"CustomersRes!S12*Scenarios!J117","v":72137.338239222008},{"$f":"CustomersRes!T12*Scenarios!K117","v":73218.651548025897},{"$f":"CustomersRes!U12*Scenarios!L117","v":72852.558290285771},{"$f":"CustomersRes!V12*Scenarios!M117","v":72488.295498834341},{"$f":"CustomersRes!W12*Scenarios!N117","v":72125.854021340172},{"$f":"CustomersRes!X12*Scenarios!O117","v":71765.224751233472},{"$f":"CustomersRes!Y12*Scenarios!P117","v":71406.398627477305},{"$f":"CustomersRes!Z12*Scenarios!Q117","v":71049.366634339924},{"$f":"CustomersRes!AA12*Scenarios!R117","v":70694.119801168228},{"$f":"CustomersRes!AB12*Scenarios!S117","v":70339.649202162385},{"$f":"CustomersRes!AC12*Scenarios!T117","v":69983.950956151573},{"$f":"CustomersRes!AD12*Scenarios!U117","v":69625.031201370817},{"$f":"CustomersRes!AE12*Scenarios!V117","v":69261.906045363969},{"$f":"CustomersRes!AF12*Scenarios!W117","v":68868.596515137149},{"$f":"CustomersRes!AG12*Scenarios!X117","v":68375.253532561459},{"$f":"CustomersRes!AH12*Scenarios!Y117","v":67717.377264898649},{"$f":"CustomersRes!AI12*Scenarios!Z117","v":66739.790378574151},{"$f":"CustomersRes!AJ12*Scenarios!AA117","v":65351.091426681283},{"$f":"CustomersRes!AK12*Scenarios!AB117","v":63438.335969547879},{"$f":"CustomersRes!AL12*Scenarios!AC117","v":61004.14428970014},{"$f":"CustomersRes!AM12*Scenarios!AD117","v":58083.123568251642},{"$f":"CustomersRes!AN12*Scenarios!AE117","v":54717.707950410382},{"$f":"CustomersRes!AO12*Scenarios!AF117","v":51283.119410658328},{"$f":"CustomersRes!AP12*Scenarios!AG117","v":47843.70381360504},{"$f":"CustomersRes!AQ12*Scenarios!AH117","v":44532.485294537015},{"$f":"CustomersRes!AR12*Scenarios!AI117","v":41403.82286806433},{"$f":"CustomersRes!AS12*Scenarios!AJ117","v":38467.803753724009},{"$f":"CustomersRes!AT12*Scenarios!AK117","v":35943.464734955385},{"$f":"CustomersRes!AU12*Scenarios!AL117","v":33647.747411280609},{"$f":"CustomersRes!AV12*Scenarios!AM117","v":31389.508674224206},{"$f":"CustomersRes!AW12*Scenarios!AN117","v":29211.561130853086},{"$f":"CustomersRes!AX12*Scenarios!AO117","v":27153.503325198821},{"$f":"CustomersRes!AY12*Scenarios!AP117","v":25223.735808572826},{"$f":"CustomersRes!AZ12*Scenarios!AQ117","v":23423.617129529961},{"$f":"CustomersRes!BA12*Scenarios!AR117","v":21748.499043882312},{"$f":"CustomersRes!BB12*Scenarios!AS117","v":20191.756548662899},{"$f":"CustomersRes!BC12*Scenarios!AT117","v":18745.797765919586},{"$f":"CustomersRes!BD12*Scenarios!AU117","v":17404.068777089989},{"$f":"CustomersRes!BE12*Scenarios!AV117","v":16158.04843320454},{"$f":"CustomersRes!BF12*Scenarios!AW117","v":15001.258191038518},{"$f":"CustomersRes!BG12*Scenarios!AX117","v":13927.251900083325},{"$f":"CustomersRes!BH12*Scenarios!AY117","v":12930.61564058291},{"$f":"CustomersRes!BI12*Scenarios!AZ117","v":12004.962562379995},{"$f":"CustomersRes!BJ12*Scenarios!BA117","v":11145.937749568095},{"$f":"CustomersRes!BK12*Scenarios!BB117","v":10348.208060820254},{"$f":"CustomersRes!BL12*Scenarios!BC117","v":9608.4670205161528},{"$f":"CustomersRes!BM12*Scenarios!BD117","v":8921.4246854135727},{"$f":"CustomersRes!BN12*Scenarios!BE117","v":8282.8175619865051},{"$f":"CustomersRes!BO12*Scenarios!BF117","v":7689.4034741765727},{"$f":"CustomersRes!BP12*Scenarios!BG117","v":7138.9564568056903},{"$f":"CustomersRes!BQ12*Scenarios!BH117","v":6628.2616745216619},{"$f":"CustomersRes!BR12*Scenarios!BI117","v":6154.1203661490536},{"$f":"CustomersRes!BS12*Scenarios!BJ117","v":5713.3497643183082},{"$f":"CustomersRes!BT12*Scenarios!BK117","v":5683.7830154967169},{"$f":"CustomersRes!BU12*Scenarios!BL117","v":5654.3641004192332},{"$f":"CustomersRes!BV12*Scenarios!BM117","v":5625.0922799171367},{"$f":"CustomersRes!BW12*Scenarios!BN117","v":5595.9668185175506},{"$f":"CustomersRes!BX12*Scenarios!BO117","v":5566.9869844249624},{"$f":"CustomersRes!BY12*Scenarios!BP117","v":5538.1520495028381},{"$f":"CustomersRes!BZ12*Scenarios!BQ117","v":5509.4612892553241},{"$f":"CustomersRes!CA12*Scenarios!BR117","v":5480.9139828090474},{"$f":"CustomersRes!CB12*Scenarios!BS117","v":5452.5094128950022},{"$f":"CustomersRes!CC12*Scenarios!BT117","v":5424.246865830527},{"$f":"CustomersRes!CD12*Scenarios!BU117","v":5396.1256315013743},{"$f":"CustomersRes!CE12*Scenarios!BV117","v":5368.1450033438678},{"$f":"CustomersRes!CF12*Scenarios!BW117","v":5340.3042783271485},{"$f":"CustomersRes!CG12*Scenarios!BX117","v":5312.6027569355128},{"$f":"CustomersRes!CH12*Scenarios!BY117","v":5285.0397431508354},{"$f":"CustomersRes!CI12*Scenarios!BZ117","v":5257.6145444350814},{"$f":"CustomersRes!CJ12*Scenarios!CA117","v":5230.3264717129059},{"$f":"CustomersRes!CK12*Scenarios!CB117","v":5203.1748393543412},{"$f":"CustomersRes!CL12*Scenarios!CC117","v":5176.1589651575696}]
["Manningham (C)",{"$f":"CustomersRes!B13","v":41135},{"$f":"CustomersRes!C13","v":41440},{"$f":"CustomersRes!D13","v":41743},{"$f":"CustomersRes!E13","v":41856},{"$f":"CustomersRes!F13","v":42047},{"$f":"CustomersRes!G13","v":42291},{"$f":"CustomersRes!H13","v":42667},{"$f":"CustomersRes!I13","v":43069},{"$f":"CustomersRes!J13","v":43667},{"$f":"CustomersRes!K13*Scenarios!B118","v":44321.665000000001},{"$f":"CustomersRes!L13*Scenarios!C118","v":44986.056675},{"$f":"CustomersRes!M13*Scenarios!D118","v":45660.126391625003},{"$f":"CustomersRes!N13*Scenarios!E118","v":46343.825759666877},{"$f":"CustomersRes!O13*Scenarios!F118","v":47038.10663086854},{"$f":"CustomersRes!P13*Scenarios!G118","v":47742.916097714195},{"$f":"CustomersRes!Q13*Scenarios!H118","v":48458.201517225622},{"$f":"CustomersRes!R13*Scenarios!I118","v":49184.910509639492},{"$f":"CustomersRes!S13*Scenarios!J118","v":49921.985957091296},{"$f":"CustomersRes!T13*Scenarios!K118","v":50670.376027305836},{"$f":"CustomersRes!U13*Scenarios!L118","v":50417.024147169308},{"$f":"CustomersRes!V13*Scenarios!M118","v":50164.939026433458},{"$f":"CustomersRes!W13*Scenarios!N118","v":49914.114331301287},{"$f":"CustomersRes!X13*Scenarios!O118","v":49664.543759644781},{"$f":"CustomersRes!Y13*Scenarios!P118","v":49416.221040846554},{"$f":"CustomersRes!Z13*Scenarios!Q118","v":49169.139935642321},{"$f":"CustomersRes!AA13*Scenarios!R118","v":48923.294235964109},{"$f":"CustomersRes!AB13*Scenarios!S118","v":48677.67776478429},{"$f":"CustomersRes!AC13*Scenarios!T118","v":48431.289375960368},{"$f":"CustomersRes!AD13*Scenarios!U118","v":48182.132929080566},{"$f":"CustomersRes!AE13*Scenarios!V118","v":47930.222264435164},{"$f":"CustomersRes!AF13*Scenarios!W118","v":47654.571153112985},{"$f":"CustomersRes!AG13*Scenarios!X118","v":47301.298297347421},{"$f":"CustomersRes!AH13*Scenarios!Y118","v":46821.791805860681},{"$f":"CustomersRes!AI13*Scenarios!Z118","v":46101.682846831376},{"$f":"CustomersRes!AJ13*Scenarios!AA118","v":45078.174432597218},{"$f":"CustomersRes!AK13*Scenarios!AB118","v":43679.783560434233},{"$f":"CustomersRes!AL13*Scenarios!AC118","v":41923.38464263206},{"$f":"CustomersRes!AM13*Scenarios!AD118","v":39846.767719418902},{"$f":"CustomersRes!AN13*Scenarios!AE118","v":37491.533880821808},{"$f":"CustomersRes!AO13*Scenarios!AF118","v":35108.076211417698},{"$f":"CustomersRes!AP13*Scenarios!AG118","v":32737.535830360608},{"$f":"CustomersRes!AQ13*Scenarios!AH118","v":30463.848151208804},{"$f":"CustomersRes!AR13*Scenarios!AI118","v":28319.528910452758},{"$f":"CustomersRes!AS13*Scenarios!AJ118","v":26309.931265900494},{"$f":"CustomersRes!AT13*Scenarios!AK118","v":24568.381609570992},{"$f":"CustomersRes!AU13*Scenarios!AL118","v":22982.539701523136},{"$f":"CustomersRes!AV13*Scenarios!AM118","v":21429.627003015521},{"$f":"CustomersRes!AW13*Scenarios!AN118","v":19938.478868000442},{"$f":"CustomersRes!AX13*Scenarios!AO118","v":18530.786473660439},{"$f":"CustomersRes!AY13*Scenarios!AP118","v":17213.132541292136},{"$f":"CustomersRes!AZ13*Scenarios!AQ118","v":15984.066878585676},{"$f":"CustomersRes!BA13*Scenarios!AR118","v":14841.146544192747},{"$f":"CustomersRes!BB13*Scenarios!AS118","v":13778.940811471783},{"$f":"CustomersRes!BC13*Scenarios!AT118","v":12793.046107414424},{"$f":"CustomersRes!BD13*Scenarios!AU118","v":11878.080876877351},{"$f":"CustomersRes!BE13*Scenarios!AV118","v":11028.690472492965},{"$f":"CustomersRes!BF13*Scenarios!AW118","v":10239.5470201305},{"$f":"CustomersRes!BG13*Scenarios!AX118","v":9507.349285029848},{"$f":"CustomersRes!BH13*Scenarios!AY118","v":8827.8125386046995},{"$f":"CustomersRes!BI13*Scenarios!AZ118","v":8196.6734759116753},{"$f":"CustomersRes!BJ13*Scenarios!BA118","v":7610.6901085321169},{"$f":"CustomersRes!BK13*Scenarios!BB118","v":7066.6366579894566},{"$f":"CustomersRes!BL13*Scenarios!BC118","v":6561.303474699509},{"$f":"CustomersRes!BM13*Scenarios!BD118","v":6092.4969573260114},{"$f":"CustomersRes!BN13*Scenarios!BE118","v":5656.0344725393816},{"$f":"CustomersRes!BO13*Scenarios!BF118","v":5250.7543001766844},{"$f":"CustomersRes!BP13*Scenarios!BG118","v":4874.5005286758005},{"$f":"CustomersRes!BQ13*Scenarios!BH118","v":4526.128026032422},{"$f":"CustomersRes!BR13*Scenarios!BI118","v":4202.4973859022602},{"$f":"CustomersRes!BS13*Scenarios!BJ118","v":3901.4848989727489},{"$f":"CustomersRes!BT13*Scenarios!BK118","v":3881.9774744778852},{"$f":"CustomersRes!BU13*Scenarios!BL118","v":3862.5675871054959},{"$f":"CustomersRes!BV13*Scenarios!BM118","v":3842.2547491699684},{"$f":"CustomersRes!BW13*Scenarios!BN118","v":3822.0434754241187},{"$f":"CustomersRes!BX13*Scenarios!BO118","v":3801.9332580469982},{"$f":"CustomersRes!BY13*Scenarios!BP118","v":3781.923591756763},{"$f":"CustomersRes!BZ13*Scenarios!BQ118","v":3762.0139737979794},{"$f":"CustomersRes!CA13*Scenarios!BR118","v":3742.2039039289893},{"$f":"CustomersRes!CB13*Scenarios!BS118","v":3722.4928844093442},{"$f":"CustomersRes!CC13*Scenarios!BT118","v":3702.8804199872975},{"$f":"CustomersRes!CD13*Scenarios!BU118","v":3683.3660178873611},{"$f":"CustomersRes!CE13*Scenarios!BV118","v":3663.9491877979244},{"$f":"CustomersRes!CF13*Scenarios!BW118","v":3644.629441858935},{"$f":"CustomersRes!CG13*Scenarios!BX118","v":3625.4062946496401},{"$f":"CustomersRes!CH13*Scenarios!BY118","v":3606.2792631763919},{"$f":"CustomersRes!CI13*Scenarios!BZ118","v":3587.2478668605099},{"$f":"CustomersRes!CJ13*Scenarios!CA118","v":3568.3116275262073},{"$f":"CustomersRes!CK13*Scenarios!CB118","v":3549.4700693885761},{"$f":"CustomersRes!CL13*Scenarios!CC118","v":3531.7227190416334}]
["Maroondah (C)",{"$f":"CustomersRes!B14","v":35790},{"$f":"CustomersRes!C14","v":36268},{"$f":"CustomersRes!D14","v":36792},{"$f":"CustomersRes!E14","v":37230},{"$f":"CustomersRes!F14","v":37754},{"$f":"CustomersRes!G14","v":38144},{"$f":"CustomersRes!H14","v":38338},{"$f":"CustomersRes!I14","v":38563},{"$f":"CustomersRes!J14","v":38893},{"$f":"CustomersRes!K14*Scenarios!B119","v":39475.535000000003},{"$f":"CustomersRes!L14*Scenarios!C119","v":40067.157325},{"$f":"CustomersRes!M14*Scenarios!D119","v":40666.821538374999},{"$f":"CustomersRes!N14*Scenarios!E119","v":41275.487430683126},{"$f":"CustomersRes!O14*Scenarios!F119","v":41894.10999352971},{"$f":"CustomersRes!P14*Scenarios!G119","v":42521.63944356206},{"$f":"CustomersRes!Q14*Scenarios!H119","v":43159.031246344253},{"$f":"CustomersRes!R14*Scenarios!I119","v":43806.236090112528},{"$f":"CustomersRes!S14*Scenarios!J119","v":44462.204909661967},{"$f":"CustomersRes!T14*Scenarios!K119","v":45128.893885113655},{"$f":"CustomersRes!U14*Scenarios!L119","v":44903.249415688086},{"$f":"CustomersRes!V14*Scenarios!M119","v":44678.733168609644},{"$f":"CustomersRes!W14*Scenarios!N119","v":44455.339502766597},{"$f":"CustomersRes!X14*Scenarios!O119","v":44233.062805252761},{"$f":"CustomersRes!Y14*Scenarios!P119","v":44011.897491226497},{"$f":"CustomersRes!Z14*Scenarios!Q119","v":43791.838003770361},{"$f":"CustomersRes!AA14*Scenarios!R119","v":43572.878813751508},{"$f":"CustomersRes!AB14*Scenarios!S119","v":43354.014419682753},{"$f":"CustomersRes!AC14*Scenarios!T119","v":43134.244347584339},{"$f":"CustomersRes!AD14*Scenarios!U119","v":42913.573125846415},{"$f":"CustomersRes!AE14*Scenarios!V119","v":42690.005260217185},{"$f":"CustomersRes!AF14*Scenarios!W119","v":42445.5552339161},{"$f":"CustomersRes!AG14*Scenarios!X119","v":42137.32745774652},{"$f":"CustomersRes!AH14*Scenarios!Y119","v":41722.640820457789},{"$f":"CustomersRes!AI14*Scenarios!Z119","v":41104.027616355503},{"$f":"CustomersRes!AJ14*Scenarios!AA119","v":40225.507478273728},{"$f":"CustomersRes!AK14*Scenarios!AB119","v":39019.379940882362},{"$f":"CustomersRes!AL14*Scenarios!AC119","v":37493.283041177951},{"$f":"CustomersRes!AM14*Scenarios!AD119","v":35672.81662597206},{"$f":"CustomersRes!AN14*Scenarios!AE119","v":33589.452542842198},{"$f":"CustomersRes!AO14*Scenarios!AF119","v":31470.505280127989},{"$f":"CustomersRes!AP14*Scenarios!AG119","v":29354.152753727351},{"$f":"CustomersRes!AQ14*Scenarios!AH119","v":27321.381989958714},{"$f":"CustomersRes!AR14*Scenarios!AI119","v":25400.77508000892},{"$f":"CustomersRes!AS14*Scenarios!AJ119","v":23598.771204608875},{"$f":"CustomersRes!AT14*Scenarios!AK119","v":22044.777348585831},{"$f":"CustomersRes!AU14*Scenarios!AL119","v":20631.553461842901},{"$f":"CustomersRes!AV14*Scenarios!AM119","v":19243.395694533687},{"$f":"CustomersRes!AW14*Scenarios!AN119","v":17907.178716061018},{"$f":"CustomersRes!AX14*Scenarios!AO119","v":16645.642822480713},{"$f":"CustomersRes!AY14*Scenarios!AP119","v":15463.41460836831},{"$f":"CustomersRes!AZ14*Scenarios!AQ119","v":14360.097535326469},{"$f":"CustomersRes!BA14*Scenarios!AR119","v":13333.297047649838},{"$f":"CustomersRes!BB14*Scenarios!AS119","v":12379.630562411588},{"$f":"CustomersRes!BC14*Scenarios!AT119","v":11493.73240959953},{"$f":"CustomersRes!BD14*Scenarios!AU119","v":10671.263747551533},{"$f":"CustomersRes!BE14*Scenarios!AV119","v":9907.9074288137745},{"$f":"CustomersRes!BF14*Scenarios!AW119","v":9199.3678916697063},{"$f":"CustomersRes!BG14*Scenarios!AX119","v":8541.3710522113579},{"$f":"CustomersRes!BH14*Scenarios!AY119","v":7930.6641969503007},{"$f":"CustomersRes!BI14*Scenarios!AZ119","v":7364.0108759655495},{"$f":"CustomersRes!BJ14*Scenarios!BA119","v":6838.190821585722},{"$f":"CustomersRes!BK14*Scenarios!BB119","v":6349.9998674777935},{"$f":"CustomersRes!BL14*Scenarios!BC119","v":5896.2498681404049},{"$f":"CustomersRes!BM14*Scenarios!BD119","v":5474.7686187997033},{"$f":"CustomersRes!BN14*Scenarios!BE119","v":5083.3947757057049},{"$f":"CustomersRes!BO14*Scenarios!BF119","v":4719.9778018271763},{"$f":"CustomersRes!BP14*Scenarios!BG119","v":4382.3779128180404},{"$f":"CustomersRes!BQ14*Scenarios!BH119","v":4068.46602325395},{"$f":"CustomersRes!BR14*Scenarios!BI119","v":3777.1236931376802},{"$f":"CustomersRes!BS14*Scenarios!BJ119","v":3507.2380746719919},{"$f":"CustomersRes!BT14*Scenarios!BK119","v":3489.7018842986317},{"$f":"CustomersRes!BU14*Scenarios!BL119","v":3472.2533748771384},{"$f":"CustomersRes!BV14*Scenarios!BM119","v":3454.8921080027526},{"$f":"CustomersRes!BW14*Scenarios!BN119","v":3437.6176474627387},{"$f":"CustomersRes!BX14*Scenarios!BO119","v":3420.4295592254248},{"$f":"CustomersRes!BY14*Scenarios!BP119","v":3403.3274114292976},{"$f":"CustomersRes!BZ14*Scenarios!BQ119","v":3386.3107743721512},{"$f":"CustomersRes!CA14*Scenarios!BR119","v":3369.3792205002906},{"$f":"CustomersRes!CB14*Scenarios!BS119","v":3352.5323243977891},{"$f":"CustomersRes!CC14*Scenarios!BT119","v":3335.7696627758},{"$f":"CustomersRes!CD14*Scenarios!BU119","v":3319.0908144619211},{"$f":"CustomersRes!CE14*Scenarios!BV119","v":3302.4953603896115},{"$f":"CustomersRes!CF14*Scenarios!BW119","v":3285.9828835876633},{"$f":"CustomersRes!CG14*Scenarios!BX119","v":3269.5529691697252},{"$f":"CustomersRes!CH14*Scenarios!BY119","v":3253.2052043238764},{"$f":"CustomersRes!CI14*Scenarios!BZ119","v":3235.939178302257},{"$f":"CustomersRes!CJ14*Scenarios!CA119","v":3218.7594824107459},{"$f":"CustomersRes!CK14*Scenarios!CB119","v":3201.6656849986921},{"$f":"CustomersRes!CL14*Scenarios!CC119","v":3185.6573565736985}]
["Melbourne (C)",{"$f":"CustomersRes!B15","v":770},{"$f":"CustomersRes!C15","v":783},{"$f":"CustomersRes!D15","v":796},{"$f":"CustomersRes!E15","v":797},{"$f":"CustomersRes!F15","v":802},{"$f":"CustomersRes!G15","v":827},{"$f":"CustomersRes!H15","v":850},{"$f":"CustomersRes!I15","v":858},{"$f":"CustomersRes!J15","v":867},{"$f":"CustomersRes!K15*Scenarios!B120","v":879.66499999999996},{"$f":"CustomersRes!L15*Scenarios!C120","v":892.26667499999996},{"$f":"CustomersRes!M15*Scenarios!D120","v":904.80534162499998},{"$f":"CustomersRes!N15*Scenarios!E120","v":918.28131491687498},{"$f":"CustomersRes!O15*Scenarios!F120","v":931.68990834229055},{"$f":"CustomersRes!P15*Scenarios!G120","v":945.03145880057912},{"$f":"CustomersRes!Q15*Scenarios!H120","v":958.30630150657623},{"$f":"CustomersRes!R15*Scenarios!I120","v":972.51476999904332},{"$f":"CustomersRes!S15*Scenarios!J120","v":986.65219614904811},{"$f":"CustomersRes!T15*Scenarios!K120","v":1000.7189351683029},{"$f":"CustomersRes!U15*Scenarios!L120","v":995.71534049246134},{"$f":"CustomersRes!V15*Scenarios!M120","v":990.73676378999903},{"$f":"CustomersRes!W15*Scenarios!N120","v":985.78307997104901},{"$f":"CustomersRes!X15*Scenarios!O120","v":980.85416457119379},{"$f":"CustomersRes!Y15*Scenarios!P120","v":975.94989374833779},{"$f":"CustomersRes!Z15*Scenarios!Q120","v":971.07014427959609},{"$f":"CustomersRes!AA15*Scenarios!R120","v":966.21479355819815},{"$f":"CustomersRes!AB15*Scenarios!S120","v":961.38371959040717},{"$f":"CustomersRes!AC15*Scenarios!T120","v":956.57680099245511},{"$f":"CustomersRes!AD15*Scenarios!U120","v":951.79391698749282},{"$f":"CustomersRes!AE15*Scenarios!V120","v":947.0349474025553},{"$f":"CustomersRes!AF15*Scenarios!W120","v":942.29977266554249},{"$f":"CustomersRes!AG15*Scenarios!X120","v":937.58827380221476},{"$f":"CustomersRes!AH15*Scenarios!Y120","v":932.90033243320363},{"$f":"CustomersRes!AI15*Scenarios!Z120","v":927.23583077103763},{"$f":"CustomersRes!AJ15*Scenarios!AA120","v":921.59965161718242},{"$f":"CustomersRes!AK15*Scenarios!AB120","v":915.99165335909652},{"$f":"CustomersRes!AL15*Scenarios!AC120","v":909.41169509230099},{"$f":"CustomersRes!AM15*Scenarios!AD120","v":902.86463661683945},{"$f":"CustomersRes!AN15*Scenarios!AE120","v":895.35031343375522},{"$f":"CustomersRes!AO15*Scenarios!AF120","v":886.87356186658644},{"$f":"CustomersRes!AP15*Scenarios!AG120","v":877.43919405725353},{"$f":"CustomersRes!AQ15*Scenarios!AH120","v":866.05199808696727},{"$f":"CustomersRes!AR15*Scenarios!AI120","v":853.72173809653248},{"$f":"CustomersRes!AS15*Scenarios!AJ120","v":839.45312940604981},{"$f":"CustomersRes!AT15*Scenarios!AK120","v":831.25586375901958},{"$f":"CustomersRes!AU15*Scenarios!AL120","v":823.09958444022448},{"$f":"CustomersRes!AV15*Scenarios!AM120","v":813.98408651802333},{"$f":"CustomersRes!AW15*Scenarios!AN120","v":803.91416608543318},{"$f":"CustomersRes!AX15*Scenarios!AO120","v":791.89459525500604},{"$f":"CustomersRes!AY15*Scenarios!AP120","v":777.935122278731},{"$f":"CustomersRes!AZ15*Scenarios!AQ120","v":762.04544666733739},{"$f":"CustomersRes!BA15*Scenarios!AR120","v":743.23521943400067},{"$f":"CustomersRes!BB15*Scenarios!AS120","v":720.51904333683069},{"$f":"CustomersRes!BC15*Scenarios!AT120","v":692.91644812014658},{"$f":"CustomersRes!BD15*Scenarios!AU120","v":661.45186587954584},{"$f":"CustomersRes!BE15*Scenarios!AV120","v":626.14460655014807},{"$f":"CustomersRes!BF15*Scenarios!AW120","v":589.01388351739729},{"$f":"CustomersRes!BG15*Scenarios!AX120","v":551.06881409981031},{"$f":"CustomersRes!BH15*Scenarios!AY120","v":514.31347002931125},{"$f":"CustomersRes!BI15*Scenarios!AZ120","v":478.7419026791647},{"$f":"CustomersRes!BJ15*Scenarios!BA120","v":446.34819316576886},{"$f":"CustomersRes!BK15*Scenarios!BB120","v":416.11645219994},{"$f":"CustomersRes!BL15*Scenarios!BC120","v":388.03586993894032},{"$f":"CustomersRes!BM15*Scenarios!BD120","v":362.09569058924563},{"$f":"CustomersRes!BN15*Scenarios!BE120","v":337.28521213629938},{"$f":"CustomersRes!BO15*Scenarios!BF120","v":314.59878607561791},{"$f":"CustomersRes!BP15*Scenarios!BG120","v":294.02579214523985},{"$f":"CustomersRes!BQ15*Scenarios!BH120","v":274.55566318451366},{"$f":"CustomersRes!BR15*Scenarios!BI120","v":256.18288486859109},{"$f":"CustomersRes!BS15*Scenarios!BJ120","v":238.90197044424812},{"$f":"CustomersRes!BT15*Scenarios!BK120","v":237.70746059202688},{"$f":"CustomersRes!BU15*Scenarios!BL120","v":236.51892328906675},{"$f":"CustomersRes!BV15*Scenarios!BM120","v":235.33632867262142},{"$f":"CustomersRes!BW15*Scenarios!BN120","v":234.15964702925831},{"$f":"CustomersRes!BX15*Scenarios!BO120","v":232.98884879411202},{"$f":"CustomersRes!BY15*Scenarios!BP120","v":231.82390455014146},{"$f":"CustomersRes!BZ15*Scenarios!BQ120","v":230.66478502739076},{"$f":"CustomersRes!CA15*Scenarios!BR120","v":229.5114611022538},{"$f":"CustomersRes!CB15*Scenarios!BS120","v":228.36390379674253},{"$f":"CustomersRes!CC15*Scenarios!BT120","v":227.22208427775882},{"$f":"CustomersRes!CD15*Scenarios!BU120","v":226.08597385637003},{"$f":"CustomersRes!CE15*Scenarios!BV120","v":224.95554398708819},{"$f":"CustomersRes!CF15*Scenarios!BW120","v":223.83076626715274},{"$f":"CustomersRes!CG15*Scenarios!BX120","v":222.71161243581699},{"$f":"CustomersRes!CH15*Scenarios!BY120","v":221.59805437363789},{"$f":"CustomersRes!CI15*Scenarios!BZ120","v":220.49006410176969},{"$f":"CustomersRes!CJ15*Scenarios!CA120","v":219.38761378126085},{"$f":"CustomersRes!CK15*Scenarios!CB120","v":218.29067571235456},{"$f":"CustomersRes!CL15*Scenarios!CC120","v":217.19922233379279}]
["Monash (C)",{"$f":"CustomersRes!B16","v":61763},{"$f":"CustomersRes!C16","v":62351},{"$f":"CustomersRes!D16","v":62909},{"$f":"CustomersRes!E16","v":63304},{"$f":"CustomersRes!F16","v":63709},{"$f":"CustomersRes!G16","v":64060},{"$f":"CustomersRes!H16","v":64465},{"$f":"CustomersRes!I16","v":64948},{"$f":"CustomersRes!J16","v":65614},{"$f":"CustomersRes!K16*Scenarios!B121","v":66596.929999999993},{"$f":"CustomersRes!L16*Scenarios!C121","v":67594.945349999995},{"$f":"CustomersRes!M16*Scenarios!D121","v":68607.970623249988},{"$f":"CustomersRes!N16*Scenarios!E121","v":69635.930770133738},{"$f":"CustomersRes!O16*Scenarios!F121","v":70679.751116283063},{"$f":"CustomersRes!P16*Scenarios!G121","v":71739.352360701654},{"$f":"CustomersRes!Q16*Scenarios!H121","v":72814.655598898142},{"$f":"CustomersRes!R16*Scenarios!I121","v":73906.582320903646},{"$f":"CustomersRes!S16*Scenarios!J121","v":75014.049409299128},{"$f":"CustomersRes!T16*Scenarios!K121","v":76138.979162252639},{"$f":"CustomersRes!U16*Scenarios!L121","v":75758.284266441377},{"$f":"CustomersRes!V16*Scenarios!M121","v":75379.492845109169},{"$f":"CustomersRes!W16*Scenarios!N121","v":75002.59538088362},{"$f":"CustomersRes!X16*Scenarios!O121","v":74627.582403979206},{"$f":"CustomersRes!Y16*Scenarios!P121","v":74254.444491959308},{"$f":"CustomersRes!Z16*Scenarios!Q121","v":73883.172269499511},{"$f":"CustomersRes!AA16*Scenarios!R121","v":73512.75640815201},{"$f":"CustomersRes!AB16*Scenarios!S121","v":73143.192626111253},{"$f":"CustomersRes!AC16*Scenarios!T121","v":72772.476662980698},{"$f":"CustomersRes!AD16*Scenarios!U121","v":72398.614279665795},{"$f":"CustomersRes!AE16*Scenarios!V121","v":72020.621208267461},{"$f":"CustomersRes!AF16*Scenarios!W121","v":71610.518102226124},{"$f":"CustomersRes!AG16*Scenarios!X121","v":71104.465511714996},{"$f":"CustomersRes!AH16*Scenarios!Y121","v":70445.943184156422},{"$f":"CustomersRes!AI16*Scenarios!Z121","v":69496.713468235641},{"$f":"CustomersRes!AJ16*Scenarios!AA121","v":68174.229900894468},{"$f":"CustomersRes!AK16*Scenarios!AB121","v":66365.358751389998},{"$f":"CustomersRes!AL16*Scenarios!AC121","v":64047.531957633051},{"$f":"CustomersRes!AM16*Scenarios!AD121","v":61217.294297844885},{"$f":"CustomersRes!AN16*Scenarios!AE121","v":57864.207826355661},{"$f":"CustomersRes!AO16*Scenarios!AF121","v":54377.886787223884},{"$f":"CustomersRes!AP16*Scenarios!AG121","v":50818.997353287763},{"$f":"CustomersRes!AQ16*Scenarios!AH121","v":47353.902366521324},{"$f":"CustomersRes!AR16*Scenarios!AI121","v":44057.132854688716},{"$f":"CustomersRes!AS16*Scenarios!AJ121","v":40949.847190415276},{"$f":"CustomersRes!AT16*Scenarios!AK121","v":38345.097954463199},{"$f":"CustomersRes!AU16*Scenarios!AL121","v":35986.372464690881},{"$f":"CustomersRes!AV16*Scenarios!AM121","v":33629.440602367424},{"$f":"CustomersRes!AW16*Scenarios!AN121","v":31328.293399355585},{"$f":"CustomersRes!AX16*Scenarios!AO121","v":29138.651932358807},{"$f":"CustomersRes!AY16*Scenarios!AP121","v":27076.958672697012},{"$f":"CustomersRes!AZ16*Scenarios!AQ121","v":25148.573879333526},{"$f":"CustomersRes!BA16*Scenarios!AR121","v":23351.831009936857},{"$f":"CustomersRes!BB16*Scenarios!AS121","v":21681.071854887174},{"$f":"CustomersRes!BC16*Scenarios!AT121","v":20128.666495612739},{"$f":"CustomersRes!BD16*Scenarios!AU121","v":18688.023163134676},{"$f":"CustomersRes!BE16*Scenarios!AV121","v":17350.583047319004},{"$f":"CustomersRes!BF16*Scenarios!AW121","v":16108.830132082408},{"$f":"CustomersRes!BG16*Scenarios!AX121","v":14956.285981421996},{"$f":"CustomersRes!BH16*Scenarios!AY121","v":13885.504551514885},{"$f":"CustomersRes!BI16*Scenarios!AZ121","v":12892.07702875731},{"$f":"CustomersRes!BJ16*Scenarios!BA121","v":11969.616643613525},{"$f":"CustomersRes!BK16*Scenarios!BB121","v":11113.768560395456},{"$f":"CustomersRes!BL16*Scenarios!BC121","v":10319.199717593479},{"$f":"CustomersRes!BM16*Scenarios!BD121","v":9581.6037190055122},{"$f":"CustomersRes!BN16*Scenarios!BE121","v":8895.6957004104843},{"$f":"CustomersRes!BO16*Scenarios!BF121","v":8258.2172219084314},{"$f":"CustomersRes!BP16*Scenarios!BG121","v":7666.9261357988889},{"$f":"CustomersRes!BQ16*Scenarios!BH121","v":7117.5915051198945},{"$f":"CustomersRes!BR16*Scenarios!BI121","v":6608.003547594295},{"$f":"CustomersRes!BS16*Scenarios!BJ121","v":6134.9635298563235},{"$f":"CustomersRes!BT16*Scenarios!BK121","v":6103.2887122070415},{"$f":"CustomersRes!BU16*Scenarios!BL121","v":6071.7722686460065},{"$f":"CustomersRes!BV16*Scenarios!BM121","v":6040.4134073027762},{"$f":"CustomersRes!BW16*Scenarios!BN121","v":6009.2113402662626},{"$f":"CustomersRes!BX16*Scenarios!BO121","v":5978.1652835649311},{"$f":"CustomersRes!BY16*Scenarios!BP121","v":5947.2744571471067},{"$f":"CustomersRes!BZ16*Scenarios!BQ121","v":5916.5380848613713},{"$f":"CustomersRes!CA16*Scenarios!BR121","v":5885.9553944370646},{"$f":"CustomersRes!CB16*Scenarios!BS121","v":5855.5256174648794},{"$f":"CustomersRes!CC16*Scenarios!BT121","v":5825.2479893775553},{"$f":"CustomersRes!CD16*Scenarios!BU121","v":5795.1217494306675},{"$f":"CustomersRes!CE16*Scenarios!BV121","v":5765.1461406835142},{"$f":"CustomersRes!CF16*Scenarios!BW121","v":5735.3204099800969},{"$f":"CustomersRes!CG16*Scenarios!BX121","v":5705.6438079301961},{"$f":"CustomersRes!CH16*Scenarios!BY121","v":5676.115588890545},{"$f":"CustomersRes!CI16*Scenarios!BZ121","v":5646.7350109460922},{"$f":"CustomersRes!CJ16*Scenarios!CA121","v":5617.501335891362},{"$f":"CustomersRes!CK16*Scenarios!CB121","v":5588.4138292119051},{"$f":"CustomersRes!CL16*Scenarios!CC121","v":5559.471760065846}]
["Nillumbik (S)",{"$f":"CustomersRes!B17","v":8},{"$f":"CustomersRes!C17","v":8},{"$f":"CustomersRes!D17","v":8},{"$f":"CustomersRes!E17","v":8},{"$f":"CustomersRes!F17","v":8},{"$f":"CustomersRes!G17","v":8},{"$f":"CustomersRes!H17","v":8},{"$f":"CustomersRes!I17","v":8},{"$f":"CustomersRes!J17","v":8},{"$f":"CustomersRes!K17*Scenarios!B122","v":7.96},{"$f":"CustomersRes!L17*Scenarios!C122","v":7.9202000000000004},{"$f":"CustomersRes!M17*Scenarios!D122","v":7.8805990000000001},{"$f":"CustomersRes!N17*Scenarios!E122","v":7.8411960050000005},{"$f":"CustomersRes!O17*Scenarios!F122","v":7.8019900249750007},{"$f":"CustomersRes!P17*Scenarios!G122","v":7.7629800748501259},{"$f":"CustomersRes!Q17*Scenarios!H122","v":7.7241651744758748},{"$f":"CustomersRes!R17*Scenarios!I122","v":7.6855443486034956},{"$f":"CustomersRes!S17*Scenarios!J122","v":7.6471166268604778},{"$f":"CustomersRes!T17*Scenarios!K122","v":7.6088810437261758},{"$f":"CustomersRes!U17*Scenarios!L122","v":7.5708366385075445},{"$f":"CustomersRes!V17*Scenarios!M122","v":7.5329824553150067},{"$f":"CustomersRes!W17*Scenarios!N122","v":7.495317543038432},{"$f":"CustomersRes!X17*Scenarios!O122","v":7.4578409553232401},{"$f":"CustomersRes!Y17*Scenarios!P122","v":7.4205517505466236},{"$f":"CustomersRes!Z17*Scenarios!Q122","v":7.3834489917938901},{"$f":"CustomersRes!AA17*Scenarios!R122","v":7.3465317468349207},{"$f":"CustomersRes!AB17*Scenarios!S122","v":7.3097990881007462},{"$f":"CustomersRes!AC17*Scenarios!T122","v":7.2732500926602421},{"$f":"CustomersRes!AD17*Scenarios!U122","v":7.2368838421969413},{"$f":"CustomersRes!AE17*Scenarios!V122","v":7.2006994229859567},{"$f":"CustomersRes!AF17*Scenarios!W122","v":7.164695925871027},{"$f":"CustomersRes!AG17*Scenarios!X122","v":7.1288724462416715},{"$f":"CustomersRes!AH17*Scenarios!Y122","v":7.0932280840104633},{"$f":"CustomersRes!AI17*Scenarios!Z122","v":7.0577619435904113},{"$f":"CustomersRes!AJ17*Scenarios!AA122","v":7.0224731338724595},{"$f":"CustomersRes!AK17*Scenarios!AB122","v":6.9873607682030974},{"$f":"CustomersRes!AL17*Scenarios!AC122","v":6.9524239643620822},{"$f":"CustomersRes!AM17*Scenarios!AD122","v":6.9176618445402722},{"$f":"CustomersRes!AN17*Scenarios!AE122","v":6.8830735353175712},{"$f":"CustomersRes!AO17*Scenarios!AF122","v":6.8486581676409832},{"$f":"CustomersRes!AP17*Scenarios!AG122","v":6.8144148768027781},{"$f":"CustomersRes!AQ17*Scenarios!AH122","v":6.7803428024187644},{"$f":"CustomersRes!AR17*Scenarios!AI122","v":6.7464410884066703},{"$f":"CustomersRes!AS17*Scenarios!AJ122","v":6.7127088829646366},{"$f":"CustomersRes!AT17*Scenarios!AK122","v":6.6791453385498132},{"$f":"CustomersRes!AU17*Scenarios!AL122","v":6.645749611857064},{"$f":"CustomersRes!AV17*Scenarios!AM122","v":6.612520863797779},{"$f":"CustomersRes!AW17*Scenarios!AN122","v":6.5794582594787903},{"$f":"CustomersRes!AX17*Scenarios!AO122","v":6.5465609681813959},{"$f":"CustomersRes!AY17*Scenarios!AP122","v":6.5138281633404889},{"$f":"CustomersRes!AZ17*Scenarios!AQ122","v":6.4812590225237861},{"$f":"CustomersRes!BA17*Scenarios!AR122","v":6.4488527274111673},{"$f":"CustomersRes!BB17*Scenarios!AS122","v":6.4166084637741116},{"$f":"CustomersRes!BC17*Scenarios!AT122","v":6.3845254214552414},{"$f":"CustomersRes!BD17*Scenarios!AU122","v":6.3526027943479653},{"$f":"CustomersRes!BE17*Scenarios!AV122","v":6.3208397803762253},{"$f":"CustomersRes!BF17*Scenarios!AW122","v":6.2892355814743439},{"$f":"CustomersRes!BG17*Scenarios!AX122","v":6.2577894035669726},{"$f":"CustomersRes!BH17*Scenarios!AY122","v":6.2265004565491378},{"$f":"CustomersRes!BI17*Scenarios!AZ122","v":6.1953679542663922},{"$f":"CustomersRes!BJ17*Scenarios!BA122","v":6.1643911144950598},{"$f":"CustomersRes!BK17*Scenarios!BB122","v":6.1335691589225849},{"$f":"CustomersRes!BL17*Scenarios!BC122","v":6.1029013131279717},{"$f":"CustomersRes!BM17*Scenarios!BD122","v":6.0723868065623314},{"$f":"CustomersRes!BN17*Scenarios!BE122","v":6.0420248725295194},{"$f":"CustomersRes!BO17*Scenarios!BF122","v":6.0118147481668718},{"$f":"CustomersRes!BP17*Scenarios!BG122","v":5.9817556744260374},{"$f":"CustomersRes!BQ17*Scenarios!BH122","v":5.9518468960539073},{"$f":"CustomersRes!BR17*Scenarios!BI122","v":5.922087661573638},{"$f":"CustomersRes!BS17*Scenarios!BJ122","v":5.8924772232657698},{"$f":"CustomersRes!BT17*Scenarios!BK122","v":5.863014837149441},{"$f":"CustomersRes!BU17*Scenarios!BL122","v":5.8336997629636942},{"$f":"CustomersRes!BV17*Scenarios!BM122","v":5.804531264148876},{"$f":"CustomersRes!BW17*Scenarios!BN122","v":5.7755086078281312},{"$f":"CustomersRes!BX17*Scenarios!BO122","v":5.7466310647889909},{"$f":"CustomersRes!BY17*Scenarios!BP122","v":5.7178979094650462},{"$f":"CustomersRes!BZ17*Scenarios!BQ122","v":5.6893084199177206},{"$f":"CustomersRes!CA17*Scenarios!BR122","v":5.6608618778181317},{"$f":"CustomersRes!CB17*Scenarios!BS122","v":5.632557568429041},{"$f":"CustomersRes!CC17*Scenarios!BT122","v":5.6043947805868957},{"$f":"CustomersRes!CD17*Scenarios!BU122","v":5.5763728066839615},{"$f":"CustomersRes!CE17*Scenarios!BV122","v":5.5484909426505418},{"$f":"CustomersRes!CF17*Scenarios!BW122","v":5.520748487937289},{"$f":"CustomersRes!CG17*Scenarios!BX122","v":5.4931447454976023},{"$f":"CustomersRes!CH17*Scenarios!BY122","v":5.4656790217701143},{"$f":"CustomersRes!CI17*Scenarios!BZ122","v":5.438350626661264},{"$f":"CustomersRes!CJ17*Scenarios!CA122","v":5.4111588735279579},{"$f":"CustomersRes!CK17*Scenarios!CB122","v":5.3841030791603179},{"$f":"CustomersRes!CL17*Scenarios!CC122","v":5.3571825637645167}]
["Port Phillip (C)",{"$f":"CustomersRes!B18","v":37683},{"$f":"CustomersRes!C18","v":37903},{"$f":"CustomersRes!D18","v":38003},{"$f":"CustomersRes!E18","v":38000},{"$f":"CustomersRes!F18","v":37904},{"$f":"CustomersRes!G18","v":38009},{"$f":"CustomersRes!H18","v":38268},{"$f":"CustomersRes!I18","v":38370},{"$f":"CustomersRes!J18","v":38324},{"$f":"CustomersRes!K18*Scenarios!B123","v":38894.379999999997},{"$f":"CustomersRes!L18*Scenarios!C123","v":39475.908100000001},{"$f":"CustomersRes!M18*Scenarios!D123","v":40064.528559500002},{"$f":"CustomersRes!N18*Scenarios!E123","v":40660.2059167025},{"$f":"CustomersRes!O18*Scenarios!F123","v":41268.904887118988},{"$f":"CustomersRes!P18*Scenarios!G123","v":41886.560362683391},{"$f":"CustomersRes!Q18*Scenarios!H123","v":42512.127560869973},{"$f":"CustomersRes!R18*Scenarios!I123","v":43148.56692306562},{"$f":"CustomersRes!S18*Scenarios!J123","v":43790.824088450296},{"$f":"CustomersRes!T18*Scenarios!K123","v":44444.869968008046},{"$f":"CustomersRes!U18*Scenarios!L123","v":44222.645618168004},{"$f":"CustomersRes!V18*Scenarios!M123","v":44001.532390077162},{"$f":"CustomersRes!W18*Scenarios!N123","v":43781.524728126773},{"$f":"CustomersRes!X18*Scenarios!O123","v":43562.61710448614},{"$f":"CustomersRes!Y18*Scenarios!P123","v":43341.80401896371},{"$f":"CustomersRes!Z18*Scenarios!Q123","v":43119.094998868895},{"$f":"CustomersRes!AA18*Scenarios!R123","v":42885.499523874554},{"$f":"CustomersRes!AB18*Scenarios!S123","v":42640.072026255184},{"$f":"CustomersRes!AC18*Scenarios!T123","v":42365.871666123909},{"$f":"CustomersRes!AD18*Scenarios!U123","v":42058.042307793286},{"$f":"CustomersRes!AE18*Scenarios!V123","v":41712.75209625432},{"$f":"CustomersRes!AF18*Scenarios!W123","v":41220.188335773048},{"$f":"CustomersRes!AG18*Scenarios!X123","v":40447.087394094182},{"$f":"CustomersRes!AH18*Scenarios!Y123","v":39402.851957123712},{"$f":"CustomersRes!AI18*Scenarios!Z123","v":38039.837697338095},{"$f":"CustomersRes!AJ18*Scenarios!AA123","v":36438.638508851407},{"$f":"CustomersRes!AK18*Scenarios!AB123","v":34652.445316307152},{"$f":"CustomersRes!AL18*Scenarios!AC123","v":32760.183089725615},{"$f":"CustomersRes!AM18*Scenarios!AD123","v":30811.382174276987},{"$f":"CustomersRes!AN18*Scenarios!AE123","v":28838.325263405601},{"$f":"CustomersRes!AO18*Scenarios!AF123","v":26927.133637088573},{"$f":"CustomersRes!AP18*Scenarios!AG123","v":25085.497968903132},{"$f":"CustomersRes!AQ18*Scenarios!AH123","v":23339.070479058617},{"$f":"CustomersRes!AR18*Scenarios!AI123","v":21698.375126663323},{"$f":"CustomersRes!AS18*Scenarios!AJ123","v":20162.883251030005},{"$f":"CustomersRes!AT18*Scenarios!AK123","v":18803.068834774855},{"$f":"CustomersRes!AU18*Scenarios!AL123","v":17551.053490600982},{"$f":"CustomersRes!AV18*Scenarios!AM123","v":16351.298223147976},{"$f":"CustomersRes!AW18*Scenarios!AN123","v":15211.541732032236},{"$f":"CustomersRes!AX18*Scenarios!AO123","v":14140.484023372075},{"$f":"CustomersRes!AY18*Scenarios!AP123","v":13137.781603255215},{"$f":"CustomersRes!AZ18*Scenarios!AQ123","v":12203.092695238938},{"$f":"CustomersRes!BA18*Scenarios!AR123","v":11332.077231762743},{"$f":"CustomersRes!BB18*Scenarios!AS123","v":10522.41684560393},{"$f":"CustomersRes!BC18*Scenarios!AT123","v":9769.8047613759099},{"$f":"CustomersRes!BD18*Scenarios!AU123","v":9070.955737569031},{"$f":"CustomersRes!BE18*Scenarios!AV123","v":8422.6009588811867},{"$f":"CustomersRes!BF18*Scenarios!AW123","v":7820.4879540867805},{"$f":"CustomersRes!BG18*Scenarios!AX123","v":7261.3855143163464},{"$f":"CustomersRes!BH18*Scenarios!AY123","v":6742.0785867447648},{"$f":"CustomersRes!BI18*Scenarios!AZ123","v":6260.3681938110412},{"$f":"CustomersRes!BJ18*Scenarios!BA123","v":5813.0663528419864},{"$f":"CustomersRes!BK18*Scenarios!BB123","v":5398.0010210777764},{"$f":"CustomersRes!BL18*Scenarios!BC123","v":5013.0110159723872},{"$f":"CustomersRes!BM18*Scenarios!BD123","v":4654.9459608925254},{"$f":"CustomersRes!BN18*Scenarios!BE123","v":4322.671231088063},{"$f":"CustomersRes!BO18*Scenarios!BF123","v":4014.0578749326228},{"$f":"CustomersRes!BP18*Scenarios!BG123","v":3727.9875855579598},{"$f":"CustomersRes!BQ18*Scenarios!BH123","v":3461.3476476301703},{"$f":"CustomersRes!BR18*Scenarios!BI123","v":3214.0409093920193},{"$f":"CustomersRes!BS18*Scenarios!BJ123","v":2983.9707048450591},{"$f":"CustomersRes!BT18*Scenarios!BK123","v":2963.0508513208338},{"$f":"CustomersRes!BU18*Scenarios!BL123","v":2942.2355970642298},{"$f":"CustomersRes!BV18*Scenarios!BM123","v":2921.5244190789085},{"$f":"CustomersRes!BW18*Scenarios!BN123","v":2900.9167969835139},{"$f":"CustomersRes!BX18*Scenarios!BO123","v":2880.4122129985963},{"$f":"CustomersRes!BY18*Scenarios!BP123","v":2860.0101519336031},{"$f":"CustomersRes!BZ18*Scenarios!BQ123","v":2839.7101011739351},{"$f":"CustomersRes!CA18*Scenarios!BR123","v":2819.5115506680654},{"$f":"CustomersRes!CB18*Scenarios!BS123","v":2799.413992914725},{"$f":"CustomersRes!CC18*Scenarios!BT123","v":2778.4169229501513},{"$f":"CustomersRes!CD18*Scenarios!BU123","v":2757.5248383354005},{"$f":"CustomersRes!CE18*Scenarios!BV123","v":2736.7372141437236},{"$f":"CustomersRes!CF18*Scenarios!BW123","v":2716.0535280730051},{"$f":"CustomersRes!CG18*Scenarios!BX123","v":2695.47326043264},{"$f":"CustomersRes!CH18*Scenarios!BY123","v":2674.9958941304767},{"$f":"CustomersRes!CI18*Scenarios!BZ123","v":2654.6209146598244},{"$f":"CustomersRes!CJ18*Scenarios!CA123","v":2634.3478100865254},{"$f":"CustomersRes!CK18*Scenarios!CB123","v":2614.1760710360927},{"$f":"CustomersRes!CL18*Scenarios!CC123","v":2595.1051906809121}]
["South Gippsland (S)",{"$f":"CustomersRes!B19","v":1231},{"$f":"CustomersRes!C19","v":1414},{"$f":"CustomersRes!D19","v":1546},{"$f":"CustomersRes!E19","v":1681},{"$f":"CustomersRes!F19","v":1798},{"$f":"CustomersRes!G19","v":1894},{"$f":"CustomersRes!H19","v":1976},{"$f":"CustomersRes!I19","v":2080},{"$f":"CustomersRes!J19","v":2162},{"$f":"CustomersRes!K19*Scenarios!B124","v":2194.19},{"$f":"CustomersRes!L19*Scenarios!C124","v":2226.2190500000002},{"$f":"CustomersRes!M19*Scenarios!D124","v":2259.0879547500003},{"$f":"CustomersRes!N19*Scenarios!E124","v":2292.7925149762505},{"$f":"CustomersRes!O19*Scenarios!F124","v":2326.3285524013691},{"$f":"CustomersRes!P19*Scenarios!G124","v":2360.6969096393623},{"$f":"CustomersRes!Q19*Scenarios!H124","v":2395.8934250911657},{"$f":"CustomersRes!R19*Scenarios!I124","v":2430.9139579657099},{"$f":"CustomersRes!S19*Scenarios!J124","v":2466.7593881758812},{"$f":"CustomersRes!T19*Scenarios!K124","v":2503.4255912350018},{"$f":"CustomersRes!U19*Scenarios!L124","v":2490.9084632788267},{"$f":"CustomersRes!V19*Scenarios!M124","v":2478.4539209624327},{"$f":"CustomersRes!W19*Scenarios!N124","v":2466.0616513576206},{"$f":"CustomersRes!X19*Scenarios!O124","v":2453.7313431008324},{"$f":"CustomersRes!Y19*Scenarios!P124","v":2441.4626863853282},{"$f":"CustomersRes!Z19*Scenarios!Q124","v":2429.2553729534015},{"$f":"CustomersRes!AA19*Scenarios!R124","v":2417.1090960886345},{"$f":"CustomersRes!AB19*Scenarios!S124","v":2405.0235506081913},{"$f":"CustomersRes!AC19*Scenarios!T124","v":2392.9984328551504},{"$f":"CustomersRes!AD19*Scenarios!U124","v":2381.0334406908746},{"$f":"CustomersRes!AE19*Scenarios!V124","v":2369.1282734874203},{"$f":"CustomersRes!AF19*Scenarios!W124","v":2357.2826321199832},{"$f":"CustomersRes!AG19*Scenarios!X124","v":2345.4962189593834},{"$f":"CustomersRes!AH19*Scenarios!Y124","v":2333.7687378645865},{"$f":"CustomersRes!AI19*Scenarios!Z124","v":2322.0998941752637},{"$f":"CustomersRes!AJ19*Scenarios!AA124","v":2309.4893947043875},{"$f":"CustomersRes!AK19*Scenarios!AB124","v":2296.9419477308656},{"$f":"CustomersRes!AL19*Scenarios!AC124","v":2283.4572379922115},{"$f":"CustomersRes!AM19*Scenarios!AD124","v":2270.0399518022505},{"$f":"CustomersRes!AN19*Scenarios!AE124","v":2254.6897520432394},{"$f":"CustomersRes!AO19*Scenarios!AF124","v":2238.4163032830234},{"$f":"CustomersRes!AP19*Scenarios!AG124","v":2219.224221766608},{"$f":"CustomersRes!AQ19*Scenarios!AH124","v":2198.1281006577751},{"$f":"CustomersRes!AR19*Scenarios!AI124","v":2173.1374601544862},{"$f":"CustomersRes!AS19*Scenarios!AJ124","v":2143.2717728537136},{"$f":"CustomersRes!AT19*Scenarios!AK124","v":2126.5554139894452},{"$f":"CustomersRes!AU19*Scenarios!AL124","v":2110.922636919498},{"$f":"CustomersRes!AV19*Scenarios!AM124","v":2093.3680237349004},{"$f":"CustomersRes!AW19*Scenarios!AN124","v":2072.9011836162258},{"$f":"CustomersRes!AX19*Scenarios!AO124","v":2048.5366776981446},{"$f":"CustomersRes!AY19*Scenarios!AP124","v":2018.2939943096537},{"$f":"CustomersRes!AZ19*Scenarios!AQ124","v":1980.2025243381054},{"$f":"CustomersRes!BA19*Scenarios!AR124","v":1931.3015117164148},{"$f":"CustomersRes!BB19*Scenarios!AS124","v":1868.6450041578328},{"$f":"CustomersRes!BC19*Scenarios!AT124","v":1789.3017791370437},{"$f":"CustomersRes!BD19*Scenarios!AU124","v":1694.3552702413585},{"$f":"CustomersRes!BE19*Scenarios!AV124","v":1590.8834938901518},{"$f":"CustomersRes!BF19*Scenarios!AW124","v":1483.929076420701},{"$f":"CustomersRes!BG19*Scenarios!AX124","v":1381.5094310385975},{"$f":"CustomersRes!BH19*Scenarios!AY124","v":1283.6018838834045},{"$f":"CustomersRes!BI19*Scenarios!AZ124","v":1193.1838744639874},{"$f":"CustomersRes!BJ19*Scenarios!BA124","v":1109.2179550916676},{"$f":"CustomersRes!BK19*Scenarios!BB124","v":1031.6718653162093},{"$f":"CustomersRes!BL19*Scenarios!BC124","v":959.51350598962824},{"$f":"CustomersRes!BM19*Scenarios!BD124","v":892.71593845968005},{"$f":"CustomersRes!BN19*Scenarios!BE124","v":830.25235876738168},{"$f":"CustomersRes!BO19*Scenarios!BF124","v":772.10109697354483},{"$f":"CustomersRes!BP19*Scenarios!BG124","v":718.24059148867707},{"$f":"CustomersRes!BQ19*Scenarios!BH124","v":668.64938853123363},{"$f":"CustomersRes!BR19*Scenarios!BI124","v":622.30614158857747},{"$f":"CustomersRes!BS19*Scenarios!BJ124","v":578.19461088063463},{"$f":"CustomersRes!BT19*Scenarios!BK124","v":575.30363782623147},{"$f":"CustomersRes!BU19*Scenarios!BL124","v":572.4271196371003},{"$f":"CustomersRes!BV19*Scenarios!BM124","v":569.56498403891476},{"$f":"CustomersRes!BW19*Scenarios!BN124","v":566.71715911872013},{"$f":"CustomersRes!BX19*Scenarios!BO124","v":563.88357332312648},{"$f":"CustomersRes!BY19*Scenarios!BP124","v":561.06415545651089},{"$f":"CustomersRes!BZ19*Scenarios!BQ124","v":558.25883467922836},{"$f":"CustomersRes!CA19*Scenarios!BR124","v":555.46754050583218},{"$f":"CustomersRes!CB19*Scenarios!BS124","v":552.69020280330301},{"$f":"CustomersRes!CC19*Scenarios!BT124","v":549.92675178928653},{"$f":"CustomersRes!CD19*Scenarios!BU124","v":547.17711803034013},{"$f":"CustomersRes!CE19*Scenarios!BV124","v":544.4412324401884},{"$f":"CustomersRes!CF19*Scenarios!BW124","v":541.7190262779875},{"$f":"CustomersRes!CG19*Scenarios!BX124","v":539.01043114659751},{"$f":"CustomersRes!CH19*Scenarios!BY124","v":536.31537899086447},{"$f":"CustomersRes!CI19*Scenarios!BZ124","v":533.63380209591014},{"$f":"CustomersRes!CJ19*Scenarios!CA124","v":530.96563308543057},{"$f":"CustomersRes!CK19*Scenarios!CB124","v":528.31080492000342},{"$f":"CustomersRes!CL19*Scenarios!CC124","v":525.66925089540337}]
["Stonnington (C)",{"$f":"CustomersRes!B20","v":38271},{"$f":"CustomersRes!C20","v":38537},{"$f":"CustomersRes!D20","v":38672},{"$f":"CustomersRes!E20","v":38664},{"$f":"CustomersRes!F20","v":38669},{"$f":"CustomersRes!G20","v":38675},{"$f":"CustomersRes!H20","v":38802},{"$f":"CustomersRes!I20","v":38770},{"$f":"CustomersRes!J20","v":38844},{"$f":"CustomersRes!K20*Scenarios!B125","v":39422.78},{"$f":"CustomersRes!L20*Scenarios!C125","v":40012.666100000002},{"$f":"CustomersRes!M20*Scenarios!D125","v":40609.602769500001},{"$f":"CustomersRes!N20*Scenarios!E125","v":41214.554755652498},{"$f":"CustomersRes!O20*Scenarios!F125","v":41831.481981874233},{"$f":"CustomersRes!P20*Scenarios!G125","v":42458.324571964862},{"$f":"CustomersRes!Q20*Scenarios!H125","v":43093.032949105036},{"$f":"CustomersRes!R20*Scenarios!I125","v":43738.567784359511},{"$f":"CustomersRes!S20*Scenarios!J125","v":44390.87494543771},{"$f":"CustomersRes!T20*Scenarios!K125","v":45054.920570710521},{"$f":"CustomersRes!U20*Scenarios!L125","v":44829.645967856966},{"$f":"CustomersRes!V20*Scenarios!M125","v":44605.497738017679},{"$f":"CustomersRes!W20*Scenarios!N125","v":44382.470249327591},{"$f":"CustomersRes!X20*Scenarios!O125","v":44160.557898080951},{"$f":"CustomersRes!Y20*Scenarios!P125","v":43938.755108590543},{"$f":"CustomersRes!Z20*Scenarios!Q125","v":43716.06133304759},{"$f":"CustomersRes!AA20*Scenarios!R125","v":43483.481026382353},{"$f":"CustomersRes!AB20*Scenarios!S125","v":43239.06362125044},{"$f":"CustomersRes!AC20*Scenarios!T125","v":42962.868303144191},{"$f":"CustomersRes!AD20*Scenarios!U125","v":42647.053961628473},{"$f":"CustomersRes!AE20*Scenarios!V125","v":42283.818691820328},{"$f":"CustomersRes!AF20*Scenarios!W125","v":41715.399598361226},{"$f":"CustomersRes!AG20*Scenarios!X125","v":40734.822600369422},{"$f":"CustomersRes!AH20*Scenarios!Y125","v":39377.148487367573},{"$f":"CustomersRes!AI20*Scenarios!Z125","v":37636.262744930733},{"$f":"CustomersRes!AJ20*Scenarios!AA125","v":35673.081431206083},{"$f":"CustomersRes!AK20*Scenarios!AB125","v":33589.716024050053},{"$f":"CustomersRes!AL20*Scenarios!AC125","v":31484.767443929803},{"$f":"CustomersRes!AM20*Scenarios!AD125","v":29411.343606710154},{"$f":"CustomersRes!AN20*Scenarios!AE125","v":27398.286888676605},{"$f":"CustomersRes!AO20*Scenarios!AF125","v":25492.295454233223},{"$f":"CustomersRes!AP20*Scenarios!AG125","v":23694.833976962058},{"$f":"CustomersRes!AQ20*Scenarios!AH125","v":22012.35980707725},{"$f":"CustomersRes!AR20*Scenarios!AI125","v":20444.298008041864},{"$f":"CustomersRes!AS20*Scenarios!AJ125","v":18985.076518001653},{"$f":"CustomersRes!AT20*Scenarios!AK125","v":17654.151135411645},{"$f":"CustomersRes!AU20*Scenarios!AL125","v":16422.880379734586},{"$f":"CustomersRes!AV20*Scenarios!AM125","v":15265.765977835914},{"$f":"CustomersRes!AW20*Scenarios!AN125","v":14182.437147946734},{"$f":"CustomersRes!AX20*Scenarios!AO125","v":13171.524962207},{"$f":"CustomersRes!AY20*Scenarios!AP125","v":12230.667337395966},{"$f":"CustomersRes!AZ20*Scenarios!AQ125","v":11356.514000708987},{"$f":"CustomersRes!BA20*Scenarios!AR125","v":10543.731430705442},{"$f":"CustomersRes!BB20*Scenarios!AS125","v":9790.0127735519145},{"$f":"CustomersRes!BC20*Scenarios!AT125","v":9090.0627096841545},{"$f":"CustomersRes!BD20*Scenarios!AU125","v":8439.6123961357334},{"$f":"CustomersRes!BE20*Scenarios!AV125","v":7836.4143341550553},{"$f":"CustomersRes!BF20*Scenarios!AW125","v":7276.23226248428},{"$f":"CustomersRes!BG20*Scenarios!AX125","v":6755.8511011718583},{"$f":"CustomersRes!BH20*Scenarios!AY125","v":6273.0718456659988},{"$f":"CustomersRes!BI20*Scenarios!AZ125","v":5824.7064864376689},{"$f":"CustomersRes!BJ20*Scenarios!BA125","v":5408.5829540054801},{"$f":"CustomersRes!BK20*Scenarios!BB125","v":5022.5400392354532},{"$f":"CustomersRes!BL20*Scenarios!BC125","v":4664.4273390392755},{"$f":"CustomersRes!BM20*Scenarios!BD125","v":4332.1052023440789},{"$f":"CustomersRes!BN20*Scenarios!BE125","v":4023.4446763323585},{"$f":"CustomersRes!BO20*Scenarios!BF125","v":3735.3274529506966},{"$f":"CustomersRes!BP20*Scenarios!BG125","v":3467.6508156859431},{"$f":"CustomersRes!BQ20*Scenarios!BH125","v":3219.3125616075135},{"$f":"CustomersRes!BR20*Scenarios!BI125","v":2989.215998799476},{"$f":"CustomersRes!BS20*Scenarios!BJ125","v":2775.2699188054785},{"$f":"CustomersRes!BT20*Scenarios!BK125","v":2755.393569211451},{"$f":"CustomersRes!BU20*Scenarios!BL125","v":2734.6166013653938},{"$f":"CustomersRes!BV20*Scenarios!BM125","v":2713.943518358567},{"$f":"CustomersRes!BW20*Scenarios!BN125","v":2693.3738007667739},{"$f":"CustomersRes!BX20*Scenarios!BO125","v":2672.9069317629401},{"$f":"CustomersRes!BY20*Scenarios!BP125","v":2652.5423971041255},{"$f":"CustomersRes!BZ20*Scenarios!BQ125","v":2632.2796851186049},{"$f":"CustomersRes!CA20*Scenarios!BR125","v":2612.1182866930117},{"$f":"CustomersRes!CB20*Scenarios!BS125","v":2592.0576952595466},{"$f":"CustomersRes!CC20*Scenarios!BT125","v":2572.097406783249},{"$f":"CustomersRes!CD20*Scenarios!BU125","v":2552.2369197493326},{"$f":"CustomersRes!CE20*Scenarios!BV125","v":2532.4757351505859},{"$f":"CustomersRes!CF20*Scenarios!BW125","v":2512.8133564748332},{"$f":"CustomersRes!CG20*Scenarios!BX125","v":2493.2492896924591},{"$f":"CustomersRes!CH20*Scenarios!BY125","v":2473.7830432439969},{"$f":"CustomersRes!CI20*Scenarios!BZ125","v":2454.4141280277768},{"$f":"CustomersRes!CJ20*Scenarios!CA125","v":2435.142057387638},{"$f":"CustomersRes!CK20*Scenarios!CB125","v":2415.9663471006997},{"$f":"CustomersRes!CL20*Scenarios!CC125","v":2397.8865153651964}]
["Whitehorse (C)",{"$f":"CustomersRes!B21","v":63430},{"$f":"CustomersRes!C21","v":64094},{"$f":"CustomersRes!D21","v":64709},{"$f":"CustomersRes!E21","v":65022},{"$f":"CustomersRes!F21","v":65400},{"$f":"CustomersRes!G21","v":65664},{"$f":"CustomersRes!H21","v":66100},{"$f":"CustomersRes!I21","v":66325},{"$f":"CustomersRes!J21","v":66865},{"$f":"CustomersRes!K21*Scenarios!B126","v":67866.675000000003},{"$f":"CustomersRes!L21*Scenarios!C126","v":68884.341625000001},{"$f":"CustomersRes!M21*Scenarios!D126","v":69915.919916875006},{"$f":"CustomersRes!N21*Scenarios!E126","v":70963.340317290626},{"$f":"CustomersRes!O21*Scenarios!F126","v":72027.523615704165},{"$f":"CustomersRes!P21*Scenarios!G126","v":73107.38599762565},{"$f":"CustomersRes!Q21*Scenarios!H126","v":74202.849067637522},{"$f":"CustomersRes!R21*Scenarios!I126","v":75314.834822299337},{"$f":"CustomersRes!S21*Scenarios!J126","v":76443.260648187847},{"$f":"CustomersRes!T21*Scenarios!K126","v":77589.044344946902},{"$f":"CustomersRes!U21*Scenarios!L126","v":77201.099123222171},{"$f":"CustomersRes!V21*Scenarios!M126","v":76815.093627606067},{"$f":"CustomersRes!W21*Scenarios!N126","v":76431.018159468033},{"$f":"CustomersRes!X21*Scenarios!O126","v":76048.863068670689},{"$f":"CustomersRes!Y21*Scenarios!P126","v":75668.618753327333},{"$f":"CustomersRes!Z21*Scenarios!Q126","v":75290.275659560692},{"$f":"CustomersRes!AA21*Scenarios!R126","v":74912.824281262889},{"$f":"CustomersRes!AB21*Scenarios!S126","v":74536.260159856567},{"$f":"CustomersRes!AC21*Scenarios!T126","v":74158.578859057277},{"$f":"CustomersRes!AD21*Scenarios!U126","v":73777.785964761992},{"$f":"CustomersRes!AE21*Scenarios!V126","v":73391.897034938185},{"$f":"CustomersRes!AF21*Scenarios!W126","v":72972.93754976349},{"$f":"CustomersRes!AG21*Scenarios!X126","v":72452.072862014669},{"$f":"CustomersRes!AH21*Scenarios!Y126","v":71770.812497704595},{"$f":"CustomersRes!AI21*Scenarios!Z126","v":70782.958435216075},{"$f":"CustomersRes!AJ21*Scenarios!AA126","v":69404.04364304},{"$f":"CustomersRes!AK21*Scenarios!AB126","v":67519.023424824802},{"$f":"CustomersRes!AL21*Scenarios!AC126","v":65110.428307700677},{"$f":"CustomersRes!AM21*Scenarios!AD126","v":62182.876166162176},{"$f":"CustomersRes!AN21*Scenarios!AE126","v":58737.961785331368},{"$f":"CustomersRes!AO21*Scenarios!AF126","v":55170.271976404714},{"$f":"CustomersRes!AP21*Scenarios!AG126","v":51542.420616522693},{"$f":"CustomersRes!AQ21*Scenarios!AH126","v":48017.708513440077},{"$f":"CustomersRes!AR21*Scenarios!AI126","v":44667.619970872875},{"$f":"CustomersRes!AS21*Scenarios!AJ126","v":41514.281871018509},{"$f":"CustomersRes!AT21*Scenarios!AK126","v":38856.710461663417},{"$f":"CustomersRes!AU21*Scenarios!AL126","v":36449.426909355097},{"$f":"CustomersRes!AV21*Scenarios!AM126","v":34051.179774808319},{"$f":"CustomersRes!AW21*Scenarios!AN126","v":31714.923875934277},{"$f":"CustomersRes!AX21*Scenarios!AO126","v":29494.349256554604},{"$f":"CustomersRes!AY21*Scenarios!AP126","v":27405.877510271832},{"$f":"CustomersRes!AZ21*Scenarios!AQ126","v":25452.848122720472},{"$f":"CustomersRes!BA21*Scenarios!AR126","v":23634.583882106868},{"$f":"CustomersRes!BB21*Scenarios!AS126","v":21943.410962696333},{"$f":"CustomersRes!BC21*Scenarios!AT126","v":20372.693907882851},{"$f":"CustomersRes!BD21*Scenarios!AU126","v":18913.830438343437},{"$f":"CustomersRes!BE21*Scenarios!AV126","v":17560.261286151719},{"$f":"CustomersRes!BF21*Scenarios!AW126","v":16303.459979720961},{"$f":"CustomersRes!BG21*Scenarios!AX126","v":15136.942679822356},{"$f":"CustomersRes!BH21*Scenarios!AY126","v":14053.257966423243},{"$f":"CustomersRes!BI21*Scenarios!AZ126","v":13047.991676591128},{"$f":"CustomersRes!BJ21*Scenarios!BA126","v":12114.751718208172},{"$f":"CustomersRes!BK21*Scenarios!BB126","v":11248.177959617131},{"$f":"CustomersRes!BL21*Scenarios!BC126","v":10443.937069819045},{"$f":"CustomersRes!BM21*Scenarios!BD126","v":9696.71738446995},{"$f":"CustomersRes!BN21*Scenarios!BE126","v":9002.2337975476003},{"$f":"CustomersRes!BO21*Scenarios!BF126","v":8357.2226285598626},{"$f":"CustomersRes!BP21*Scenarios!BG126","v":7758.4365154170637},{"$f":"CustomersRes!BQ21*Scenarios!BH126","v":7202.6443328399782},{"$f":"CustomersRes!BR21*Scenarios!BI126","v":6686.6311111757786},{"$f":"CustomersRes!BS21*Scenarios!BJ126","v":6208.1979556198994},{"$f":"CustomersRes!BT21*Scenarios!BK126","v":6176.1569658418002},{"$f":"CustomersRes!BU21*Scenarios!BL126","v":6144.2761810125912},{"$f":"CustomersRes!BV21*Scenarios!BM126","v":6112.5548001075285},{"$f":"CustomersRes!BW21*Scenarios!BN126","v":6080.992026106991},{"$f":"CustomersRes!BX21*Scenarios!BO126","v":6049.587065976456},{"$f":"CustomersRes!BY21*Scenarios!BP126","v":6018.3391306465737},{"$f":"CustomersRes!BZ21*Scenarios!BQ126","v":5987.2474349933409},{"$f":"CustomersRes!CA21*Scenarios!BR126","v":5956.3111978183742},{"$f":"CustomersRes!CB21*Scenarios!BS126","v":5925.5296418292828},{"$f":"CustomersRes!CC21*Scenarios!BT126","v":5894.9019936201366},{"$f":"CustomersRes!CD21*Scenarios!BU126","v":5864.4274836520362},{"$f":"CustomersRes!CE21*Scenarios!BV126","v":5834.1053462337759},{"$f":"CustomersRes!CF21*Scenarios!BW126","v":5803.9348195026068},{"$f":"CustomersRes!CG21*Scenarios!BX126","v":5773.9151454050934},{"$f":"CustomersRes!CH21*Scenarios!BY126","v":5744.0455696780682},{"$f":"CustomersRes!CI21*Scenarios!BZ126","v":5714.3253418296781},{"$f":"CustomersRes!CJ21*Scenarios!CA126","v":5684.7537151205297},{"$f":"CustomersRes!CK21*Scenarios!CB126","v":5655.3299465449272},{"$f":"CustomersRes!CL21*Scenarios!CC126","v":5626.0532968122025}]
["Yarra Ranges (S)",{"$f":"CustomersRes!B22","v":43932},{"$f":"CustomersRes!C22","v":44501},{"$f":"CustomersRes!D22","v":45017},{"$f":"CustomersRes!E22","v":45533},{"$f":"CustomersRes!F22","v":46021},{"$f":"CustomersRes!G22","v":46690},{"$f":"CustomersRes!H22","v":47195},{"$f":"CustomersRes!I22","v":47737},{"$f":"CustomersRes!J22","v":48175},{"$f":"CustomersRes!K22*Scenarios!B127","v":48897.125},{"$f":"CustomersRes!L22*Scenarios!C127","v":49629.639374999999},{"$f":"CustomersRes!M22*Scenarios!D127","v":50373.491178124998},{"$f":"CustomersRes!N22*Scenarios!E127","v":51127.62372223437},{"$f":"CustomersRes!O22*Scenarios!F127","v":51893.985603623201},{"$f":"CustomersRes!P22*Scenarios!G127","v":52671.515675605086},{"$f":"CustomersRes!Q22*Scenarios!H127","v":53461.15809722706},{"$f":"CustomersRes!R22*Scenarios!I127","v":54262.852306740926},{"$f":"CustomersRes!S22*Scenarios!J127","v":55075.53804520722},{"$f":"CustomersRes!T22*Scenarios!K127","v":55901.160354981184},{"$f":"CustomersRes!U22*Scenarios!L127","v":55621.654553206281},{"$f":"CustomersRes!V22*Scenarios!M127","v":55343.546280440249},{"$f":"CustomersRes!W22*Scenarios!N127","v":55066.828549038044},{"$f":"CustomersRes!X22*Scenarios!O127","v":54791.494406292855},{"$f":"CustomersRes!Y22*Scenarios!P127","v":54517.536934261392},{"$f":"CustomersRes!Z22*Scenarios!Q127","v":54244.949249590085},{"$f":"CustomersRes!AA22*Scenarios!R127","v":53973.724503342135},{"$f":"CustomersRes!AB22*Scenarios!S127","v":53702.855880825424},{"$f":"CustomersRes!AC22*Scenarios!T127","v":53431.3416014213},{"$f":"CustomersRes!AD22*Scenarios!U127","v":53157.184893414196},{"$f":"CustomersRes!AE22*Scenarios!V127","v":52879.398968947127},{"$f":"CustomersRes!AF22*Scenarios!W127","v":52575.001974102393},{"$f":"CustomersRes!AG22*Scenarios!X127","v":52186.12696423188},{"$f":"CustomersRes!AH22*Scenarios!Y127","v":51657.196329410719},{"$f":"CustomersRes!AI22*Scenarios!Z127","v":50858.910347763667},{"$f":"CustomersRes!AJ22*Scenarios!AA127","v":49721.615796024846},{"$f":"CustomersRes!AK22*Scenarios!AB127","v":48165.007717044718},{"$f":"CustomersRes!AL22*Scenarios!AC127","v":46209.182678459496},{"$f":"CustomersRes!AM22*Scenarios!AD127","v":43901.136765067196},{"$f":"CustomersRes!AN22*Scenarios!AE127","v":41291.63108124186},{"$f":"CustomersRes!AO22*Scenarios!AF127","v":38655.17292583565},{"$f":"CustomersRes!AP22*Scenarios!AG127","v":36037.897061206473},{"$f":"CustomersRes!AQ22*Scenarios!AH127","v":33531.707575900444},{"$f":"CustomersRes!AR22*Scenarios!AI127","v":31169.049038020941},{"$f":"CustomersRes!AS22*Scenarios!AJ127","v":28956.203792830835},{"$f":"CustomersRes!AT22*Scenarios!AK127","v":27033.422773866681},{"$f":"CustomersRes!AU22*Scenarios!AL127","v":25281.255659997347},{"$f":"CustomersRes!AV22*Scenarios!AM127","v":23568.849381697361},{"$f":"CustomersRes!AW22*Scenarios!AN127","v":21926.005134788873},{"$f":"CustomersRes!AX22*Scenarios!AO127","v":20377.375109114928},{"$f":"CustomersRes!AY22*Scenarios!AP127","v":18927.488233569355},{"$f":"CustomersRes!AZ22*Scenarios!AQ127","v":17576.850792401507},{"$f":"CustomersRes!BA22*Scenarios!AR127","v":16319.966538439499},{"$f":"CustomersRes!BB22*Scenarios!AS127","v":15152.366705747301},{"$f":"CustomersRes!BC22*Scenarios!AT127","v":14067.604872218564},{"$f":"CustomersRes!BD22*Scenarios!AU127","v":13061.266847857471},{"$f":"CustomersRes!BE22*Scenarios!AV127","v":12126.960513618184},{"$f":"CustomersRes!BF22*Scenarios!AW127","v":11259.325711050093},{"$f":"CustomersRes!BG22*Scenarios!AX127","v":10454.029082494842},{"$f":"CustomersRes!BH22*Scenarios!AY127","v":9706.758937082368},{"$f":"CustomersRes!BI22*Scenarios!AZ127","v":9012.2251423969556},{"$f":"CustomersRes!BJ22*Scenarios!BA127","v":8368.1640166849702},{"$f":"CustomersRes!BK22*Scenarios!BB127","v":7770.3231966015455},{"$f":"CustomersRes!BL22*Scenarios!BC127","v":7214.4715806185377},{"$f":"CustomersRes!BM22*Scenarios!BD127","v":6699.3992227154449},{"$f":"CustomersRes!BN22*Scenarios!BE127","v":6219.9022266018674},{"$f":"CustomersRes!BO22*Scenarios!BF127","v":5774.802715468858},{"$f":"CustomersRes!BP22*Scenarios!BG127","v":5361.9287018915138},{"$f":"CustomersRes!BQ22*Scenarios!BH127","v":4978.1190583820562},{"$f":"CustomersRes!BR22*Scenarios!BI127","v":4622.2284630901459},{"$f":"CustomersRes!BS22*Scenarios!BJ127","v":4291.1173207746951},{"$f":"CustomersRes!BT22*Scenarios!BK127","v":4268.6617341708215},{"$f":"CustomersRes!BU22*Scenarios!BL127","v":4246.3184254999678},{"$f":"CustomersRes!BV22*Scenarios!BM127","v":4224.0868333724684},{"$f":"CustomersRes!BW22*Scenarios!BN127","v":4201.9663992056057},{"$f":"CustomersRes!BX22*Scenarios!BO127","v":4179.9565672095778},{"$f":"CustomersRes!BY22*Scenarios!BP127","v":4158.0567843735298},{"$f":"CustomersRes!BZ22*Scenarios!BQ127","v":4136.2665004516621},{"$f":"CustomersRes!CA22*Scenarios!BR127","v":4114.5851679494035},{"$f":"CustomersRes!CB22*Scenarios!BS127","v":4093.0122421096567},{"$f":"CustomersRes!CC22*Scenarios!BT127","v":4071.5471808991083},{"$f":"CustomersRes!CD22*Scenarios!BU127","v":4050.1894449946126},{"$f":"CustomersRes!CE22*Scenarios!BV127","v":4028.9384977696395},{"$f":"CustomersRes!CF22*Scenarios!BW127","v":4007.7938052807913},{"$f":"CustomersRes!CG22*Scenarios!BX127","v":3986.7548362543871},{"$f":"CustomersRes!CH22*Scenarios!BY127","v":3965.8210620731152},{"$f":"CustomersRes!CI22*Scenarios!BZ127","v":3944.9919567627494},{"$f":"CustomersRes!CJ22*Scenarios!CA127","v":3924.2669969789358},{"$f":"CustomersRes!CK22*Scenarios!CB127","v":3903.6456619940413},{"$f":"CustomersRes!CL22*Scenarios!CC127","v":3884.1274336840711}]
["Multinet",{"$f":"SUM(B27:B46)","v":648323},{"$f":"SUM(C27:C46)","v":655133},661231,665626,670048,675204,680357,685531,690940,{"$f":"SUM(K27:K46)","v":701280.29999999993},{"$f":"SUM(L27:L46)","v":711784.89850000001},{"$f":"SUM(M27:M46)","v":722438.9740075001},{"$f":"SUM(N27:N46)","v":733247.77913746238},{"$f":"SUM(O27:O46)","v":744234.5402417751},{"$f":"SUM(P27:P46)","v":755386.36754056637},{"$f":"SUM(Q27:Q46)","v":766701.43570286362},{"$f":"SUM(R27:R46)","v":778191.928524349},{"$f":"SUM(S27:S46)","v":789839.96888172755},{"$f":"SUM(T27:T46)","v":801671.76903731877},{"$f":"SUM(U27:U46)","v":797663.41019213223},{"$f":"SUM(V27:V46)","v":793675.09314117162},{"$f":"SUM(W27:W46)","v":789706.71767546562},{"$f":"SUM(X27:X46)","v":785758.18408708833},{"$f":"SUM(Y27:Y46)","v":781825.393166653},{"$f":"SUM(Z27:Z46)","v":777905.26620081952},{"$f":"SUM(AA27:AA46)","v":773968.73986981565},{"$f":"SUM(AB27:AB46)","v":769999.89617046644},{"$f":"SUM(AC27:AC46)","v":765914.89668961405},{"$f":"SUM(AD27:AD46)","v":761663.32220616587},{"$f":"SUM(AE27:AE46)","v":757189.00559513515},{"$f":"SUM(AF27:AF46)","v":751552.06056715944},{"$f":"SUM(AG27:AG46)","v":742945.30026432371},{"$f":"SUM(AH27:AH46)","v":730842.57376300218},{"$f":"SUM(AI27:AI46)","v":714177.36089418724},{"$f":"SUM(AJ27:AJ46)","v":693588.4740897161},{"$f":"SUM(AK27:AK46)","v":669171.5317192676},{"$f":"SUM(AL27:AL46)","v":641548.67406067112},{"$f":"SUM(AM27:AM46)","v":611152.93069036782},{"$f":"SUM(AN27:AN46)","v":578212.16603691597},{"$f":"SUM(AO27:AO46)","v":545267.10520673147},{"$f":"SUM(AP27:AP46)","v":512623.76968069788},{"$f":"SUM(AQ27:AQ46)","v":481201.65083229431},{"$f":"SUM(AR27:AR46)","v":451366.64257813292},{"$f":"SUM(AS27:AS46)","v":423138.8093652422},{"$f":"SUM(AT27:AT46)","v":399034.11531841604},{"$f":"SUM(AU27:AU46)","v":377014.94474182383},{"$f":"SUM(AV27:AV46)","v":355462.8700181148},{"$f":"SUM(AW27:AW46)","v":334621.55566802423},{"$f":"SUM(AX27:AX46)","v":314745.44788968406},{"$f":"SUM(AY27:AY46)","v":295834.72065023566},{"$f":"SUM(AZ27:AZ46)","v":277794.54704698443},{"$f":"SUM(BA27:BA46)","v":260467.57431174957},{"$f":"SUM(BB27:BB46)","v":243713.23644019078},{"$f":"SUM(BC27:BC46)","v":227467.67025798984},{"$f":"SUM(BD27:BD46)","v":211825.33190669992},{"$f":"SUM(BE27:BE46)","v":196949.20524716639},{"$f":"SUM(BF27:BF46)","v":182964.45922093058},{"$f":"SUM(BG27:BG46)","v":169911.63692482596},{"$f":"SUM(BH27:BH46)","v":157768.0787402018},{"$f":"SUM(BI27:BI46)","v":146489.23834650079},{"$f":"SUM(BJ27:BJ46)","v":136019.79215476828},{"$f":"SUM(BK27:BK46)","v":126299.69319399443},{"$f":"SUM(BL27:BL46)","v":117276.19472802449},{"$f":"SUM(BM27:BM46)","v":108897.81375438435},{"$f":"SUM(BN27:BN46)","v":101110.32468561245},{"$f":"SUM(BO27:BO46)","v":93877.773062184395},{"$f":"SUM(BP27:BP46)","v":87167.384196873478},{"$f":"SUM(BQ27:BQ46)","v":80934.547275889083},{"$f":"SUM(BR27:BR46)","v":75149.874539509619},{"$f":"SUM(BS27:BS46)","v":69774.125166812082},{"$f":"SUM(BT27:BT46)","v":69394.254540978029},{"$f":"SUM(BU27:BU46)","v":69015.283268273139},{"$f":"SUM(BV27:BV46)","v":68637.206851931769},{"$f":"SUM(BW27:BW46)","v":68261.020817672106},{"$f":"SUM(BX27:BX46)","v":67886.715713583748},{"$f":"SUM(BY27:BY46)","v":67514.282135015819},{"$f":"SUM(BZ27:BZ46)","v":67143.710724340752},{"$f":"SUM(CA27:CA46)","v":66774.992170719052},{"$f":"SUM(CB27:CB46)","v":66408.117209865464},{"$f":"SUM(CC27:CC46)","v":66041.07662381613},{"$f":"SUM(CD27:CD46)","v":65675.871240697044},{"$f":"SUM(CE27:CE46)","v":65312.49188449356},{"$f":"SUM(CF27:CF46)","v":64950.929425071081},{"$f":"SUM(CG27:CG46)","v":64591.174777945744},{"$f":"SUM(CH27:CH46)","v":64233.218904056019},{"$f":"SUM(CI27:CI46)","v":63876.052809535737},{"$f":"SUM(CJ27:CJ46)","v":63519.672545488058},{"$f":"SUM(CK27:CK46)","v":63165.074182760611},{"$f":"SUM(CL27:CL46)","v":62822.248811846803}]
[null,null,null,null,null,null,null,null,null,null,null,null,null,null,null,null,null,null,null,null,null,null,null,null,null,null,null,null,null,{"$f":"AD47-AC47","v":-4251.5744834481739},{"$f":"AE47-AD47","v":-4474.3166110307211},{"$f":"AF47-AE47","v":-5636.9450279757148},-8606.7603028357262,-12102.726501321536,-16665.212868814939,{"$f":"AJ47-AI47","v":-20588.886804471142},{"$f":"AK47-AJ47","v":-24416.942370448494},{"$f":"AL47-AK47","v":-27622.857658596477},{"$f":"AM47-AL47","v":-30395.743370303302},{"$f":"AN47-AM47","v":-32940.764653451857}]
["Total residential volume (TJ)"]
["FY",2012,2013,2014,2015,2016,2017,2018,2019,2020,2021,2022,2023,2024,2025,2026,2027,2028,2029,2030,2031,2032,2033,2034,2035,2036,2037,2038,2039,2040,2041,2042,2043,2044,2045,2046,2047,2048,2049,2050,2051,2052,2053,2054,2055,2056,2057,2058,2059,2060,2061,2062,2063,2064,2065,2066,2067,2068,2069,2070,2071,2072,2073,2074,2075,2076,2077,2078,2079,2080,2081,2082,2083,2084,2085,2086,2087,2088,2089,2090,2091,2092,2093,2094,2095,2096,2097,2098,2099,2100]
["Bass Coast (S)",{"$f":"B3*B27/1000","v":18.715700515346327},45.468348268870741,60.097971999999999,69.473494000000002,71.735535999999996,86.068520000000007,93.450437999999991,97.492247000000006,114.98987600000002,113.12454186365747,109.22491244832095,115.70827149008265,118.68094625775163,123.33802227902663,125.60011902291683,124.9781443757616,120.58872378704309,117.30688084643373,116.31580854844637,123.56152415624551,124.26583719198855,122.29636448388756,119.43872727978587,115.3570622149357,113.02178487118867,109.41868138344353,107.77814810988119,106.21167993301887,105.75939477750445,104.78307467725885,101.98019097206435,99.324669010502831,{"$f":"AH3*AH27/1000","v":97.728985043279181},96.194204202709841,94.494465581638494,92.873785501584052,91.36201993876098,89.814956398951736,87.837166562645933,86.008196464300411,83.671296820119622,81.512793141593136,79.402748887753248,77.143642100038335,79.536864533843556,79.297747238219102,77.486737933049369,75.36410551115145,73.240968524320664,70.963791064808021,68.418145380871479,65.522902286126424,62.213034442715404,58.429732488760315,54.186004246406448,49.609993269386777,44.960948924621107,40.419993761934123,36.107032056504202,32.087478141125487,28.365641287544033,24.913310790379235,21.978799505916349,19.520507959518888,17.366892883214778,15.406901641782895,13.583078766996742,11.750552794470121,9.9038492332486765,{"$f":"BS3*BS27/1000","v":8.0640662034222679},12.751553730464243,12.654843386187732,12.558697091624143,12.463111005951577,12.368081303776064,12.273604174865349,12.179675823879032,12.0862924700949,11.993450347131269,11.90114570266514,11.809374798146008,11.718133908505077,11.627419321859721,11.53722733921294,11.447554274147594,11.358396452515171,11.26975021211887,11.181611902390662,11.187155106741347]
["Bayside (C)",{"$f":"B4*B28/1000","v":1023.1888575437895},1887.2930040000892,2250.2806800000003,2233.2981770000001,2188.2635419999997,2351.0053280000002,2254.0891150000002,2210.7215219999998,2392.8801940000003,2354.5907162734397,2274.0014429541229,2409.6015435312747,2471.4930335670174,2568.6179562600655,2615.9616787067225,2603.3232931813886,2512.2718894215677,2444.3413451442148,2424.2500373485364,2575.2649901054338,2589.9442579067145,2548.8965762050293,2489.3378009600742,2404.2678796020859,2355.5961104036633,2280.391439564572,2245.8776769561023,2212.3279791029677,2201.0904212283835,2177.5786675309273,2108.7130535936885,2022.3207505596974,{"$f":"AH4*AH28/1000","v":1934.8728185893426},1824.991645897868,1700.7298141470403,1575.4411744169372,1455.3409071534609,1340.9935658275469,1228.1858865861172,1126.2498492593961,1026.8538398201167,938.72160248171258,859.28467739899747,786.10715394572981,759.17268003762172,708.90931939599568,649.18556710050893,592.54644626571326,541.34944154140283,494.33889244278726,450.81047702787487,410.4159099422136,372.90944480466112,338.06600511812758,305.633988547277,275.47897297498258,247.50458202188941,221.64043189156521,197.70538180877085,175.59700786316236,155.13731152441937,136.19345303703196,120.06318652153169,106.54078178498641,94.663181447710286,83.869843159594154,73.863031610524715,63.829810944633493,53.72271291858344,{"$f":"BS4*BS28/1000","v":43.676506357316185},68.985495663217122,68.383172946177737,67.784709424385596,67.190080853127739,66.599263112143134,66.012232204358952,65.428964254617966,64.849435508395885,64.273622330508587,63.701501203808334,63.133048727868228,62.568241617654571,62.007056702186084,61.449470923179327,60.895461333679712,60.345005096677049,59.798079483704974,59.254661873423203,59.233258287465581]
["Boroondara (C)",{"$f":"B5*B29/1000","v":1829.1190916187986},3456.9284551952842,4103.7271659999997,3988.4700739999998,3922.6997759999999,4139.873748,3979.9791460000001,3871.5856049999998,4188.1717020000006,4121.1787217084484,3980.1247153132158,4217.4818040835362,4325.8497235162768,4495.8172537530618,4578.6940191862459,4556.5601378185884,4397.220447466284,4278.324457164048,4243.1569704782905,4507.477952045735,4533.171026824708,4461.3254027961839,4357.0798718318183,4208.1822646431692,4122.9345301499407,3991.2158274197959,3930.5968216833849,3871.3772589375922,3850.8156362590689,3808.4109082000182,3685.2936749640057,3530.567596697615,{"$f":"AH5*AH29/1000","v":3375.4915869433603},3183.6160330767966,2967.8774459568822,2750.5658734718368,2542.0335613760176,2343.0196234604728,2146.3892168395323,1968.5188971375439,1794.8759115051357,1640.8614631232531,1502.0110972186203,1374.0627478697102,1327.1363389287221,1239.4232949729578,1135.0981433585632,1036.0661772562896,946.56561699237648,864.35994644730465,788.2097250238902,717.57091275608479,651.96147503784437,590.99309698549484,534.25841583069689,481.52472885666782,432.58813184626672,387.3057830492283,345.46141814633029,306.79276259170746,271.02556105448195,237.90719494183375,209.71581446895212,186.10057197785511,165.36860869993816,146.5073279583338,129.03224038182239,111.49281273035307,93.82444345998428,{"$f":"BS5*BS29/1000","v":76.270765242121001},120.44195167348519,119.36536912703508,118.29577942003544,117.23313912907396,116.17740506096236,115.12853425058597,114.0864839587408,113.05121166995686,112.02267509030712,110.97421748785445,109.93268940824744,108.89804806733687,107.87025090849528,106.84925560042565,105.83502003495404,104.82750232480439,103.82666080135455,102.83245401237279,102.75257032018091]
["Cardinia (S)",{"$f":"B6*B30/1000","v":134.38289235846048},231.97575132245436,322.42460199999999,294.93561499999998,301.67904499999997,316.67354499999999,301.29753299999999,299.27796799999999,325.52795800000001,320.30245287419206,309.2997747216067,327.68565481007812,336.10382023371636,349.27851525565291,355.65689720044929,353.93223615959084,341.52289496883589,332.23603811986436,329.49272693178841,350.01797301810683,352.01311044316213,346.43410152504384,338.3391513483528,326.77684550684251,320.16160627379577,309.95494212031474,305.30773389751107,300.87033301720641,299.58912566370077,296.82346228395249,288.88361466717265,281.36120491512486,{"$f":"AH6*AH30/1000","v":276.91331145136769},272.64681152890103,267.91049086052101,263.40648471447628,259.16058185034206,254.83414208521765,249.19968287806481,243.83859809360794,236.80542524617437,229.9035742770788,222.67318910391637,214.43910979545518,220.75186902560293,219.90359885910044,214.50464179638166,207.8125025153947,200.66684791288728,192.42417437806498,182.63231274154273,171.21063368962618,158.46796682656711,145.08276801235527,131.73820481369481,118.90724775639721,106.94185608244476,95.805334193712085,85.485370272436057,75.953064091958126,67.133537608029442,58.958487116725259,52.01463033309313,46.202131390299762,41.084088493776619,36.42984307748474,32.13003379377453,27.810646263191835,23.410923540933432,{"$f":"BS6*BS30/1000","v":19.036695691409019},30.102362981157178,29.874060615109887,29.647089791050064,29.421441442018736,29.197106537477314,28.974076082679208,28.752341118032763,28.531892718455229,28.312721992717272,28.094820082777638,27.878178163107549,27.662787440004276,27.44863915089341,27.235724563619438,27.024034975723882,26.813561713710609,26.604296132297634,26.396229613654842,26.409315356221601]
["Casey (C)",{"$f":"B7*B31/1000","v":341.69476206808952},641.42373099854683,741.74327200000005,737.71503399999995,727.70324600000004,776.63790399999993,756.75689299999999,727.03977399999997,791.02183600000001,778.37061502239737,751.72460523686914,796.55405257189295,817.0264582790029,849.11374631121828,864.73241821064676,860.51240449081786,830.42186140896501,807.96264154473886,801.28790501994115,851.20291100406303,856.05485266127744,842.48735328211183,822.80137802941863,794.68319796755179,778.59570724927858,753.77428975414205,742.47282105188265,731.68157935066858,728.51532535305012,721.68943612540625,701.99113785369468,682.45960801193428,{"$f":"AH7*AH31/1000","v":669.0036965768287},653.42173187247545,633.27398443462221,609.37433548835008,581.82564561120284,549.90165231999447,511.64952408399711,474.21813833280936,434.82791357169083,398.75946887818441,365.68452398876252,334.89603459687032,325.80118028396066,307.09644741458811,282.85461850832775,258.92623410539824,236.97672393967943,216.61507319762785,197.61876072291656,179.93407897597854,163.52760668687623,148.27694352914881,134.06715079847393,120.8542482071668,108.60928581441041,97.26478544134207,86.802409951789969,77.126050928193976,68.170295227860578,59.874642228976541,52.808265740943781,46.904932691974381,41.679348274292117,36.923695364013064,32.527823742898867,28.120575332534035,23.67048715985436,{"$f":"BS7*BS31/1000","v":19.254023768337344},30.446019714644059,30.215110986916383,29.985549002420349,29.757324590686125,29.530428618080048,29.304851987169052,29.080585636076378,28.857620537828094,28.635947699690174,28.415558162495589,28.196442999960922,27.978593317992143,27.762000253978933,27.546654976077111,27.332548682478588,27.119672600668231,26.908017986667193,26.697576124261872,26.71081125721199]
["Frankston (C)",{"$f":"B8*B32/1000","v":1.442066060606061E-2},3.107963497267759E-2,3.0683999999999999E-2,3.4363999999999999E-2,4.1125999999999996E-2,4.1335000000000004E-2,3.6136000000000001E-2,3.3402000000000001E-2,3.2530999999999997E-2,3.1381049791288897E-2,2.9710424616635717E-2,3.086266117075951E-2,3.103295602326472E-2,3.1617279551418603E-2,3.1565770445693316E-2,3.0794551121129186E-2,2.9132363974388453E-2,2.7786801215160917E-2,2.7015789283920649E-2,2.8698696607648587E-2,2.8862282046300522E-2,2.8404847581059045E-2,2.7741125895079027E-2,2.6793108555943183E-2,2.6250711426735192E-2,2.5413845949825063E-2,2.5032811748327329E-2,2.466898008422078E-2,2.4563931246834814E-2,2.4337168793553098E-2,2.3686164286841265E-2,2.3069386372921778E-2,{"$f":"AH8*AH32/1000","v":2.27046944002244E-2},2.2359862021953138E-2,2.1976361640771522E-2,2.1616647187796934E-2,2.1287499499223723E-2,2.0960793095576052E-2,2.0549199812058504E-2,2.0181759579503265E-2,1.9714566996010551E-2,1.9312962987028347E-2,1.894560280870167E-2,1.8574968990063945E-2,1.9217479388731744E-2,1.9220970667247868E-2,1.8859137908425132E-2,1.8445849942512874E-2,1.8060742731712362E-2,1.7675197325453654E-2,1.7273943378826456E-2,1.6853235118494212E-2,1.6410857831804033E-2,1.5943135194508341E-2,1.544617042717578E-2,1.4919319455817025E-2,1.4364254391743254E-2,1.3782785364193872E-2,1.3174686527739947E-2,1.2537874331190073E-2,1.186912104005961E-2,1.1165192162412154E-2,1.0547647820084265E-2,1.0031364139490155E-2,9.5527865983655365E-3,9.0699553580076073E-3,8.5603061625779651E-3,7.9272390622803952E-3,7.1487277603855858E-3,{"$f":"BS8*BS32/1000","v":6.2281564838420327E-3},9.8484647871252377E-3,9.7737720523973521E-3,9.6995149527185961E-3,9.6256905216897393E-3,9.5522958048270719E-3,9.4793278593567898E-3,9.4067837540065952E-3,9.3346605687943084E-3,9.2629553948134456E-3,9.1916653340155217E-3,9.1207874989890289E-3,9.0503190127348455E-3,8.9802570084379883E-3,8.9105986292354802E-3,8.8413410279802075E-3,8.7724813670005484E-3,8.7040168178555855E-3,8.6359445610857122E-3,8.6402257690082543E-3]
["Glen Eira (C)",{"$f":"B9*B33/1000","v":1263.2416262118891},2392.4851006964004,2779.9844969999999,2789.9367068412698,2767.4957826825394,2880.7943309999996,2747.6798709999998,2705.29756,2934.4217180000001,2887.4809941384283,2788.6794469113188,2954.9786404288593,3030.8678226880043,3149.9568893921009,3208.012261960775,3192.4694122079268,3080.8375029374665,2997.5193874056563,2972.8612674748983,3158.051118745997,3176.0523257209375,3125.7154952906726,3052.6784845301709,2948.3571190208172,2888.621661804365,2796.2938539326956,2753.8472711164741,2712.3673889943307,2698.0460699857658,2668.555658659398,2583.3122270558201,2478.3397893159276,{"$f":"AH9*AH33/1000","v":2375.0251158489496},2246.1462697465063,2099.0159211341452,1948.8601382664917,1803.3909184442555,1663.5549747813668,1524.5937819748669,1398.6116188866979,1275.3996558982542,1166.056526397726,1067.4014471253931,976.48648652924385,943.29604471988284,881.15411645558663,807.10498439480216,736.73487866202947,673.13805352483234,614.68692346916225,560.53320828255096,510.28466104429236,463.65863156638301,420.31237485062388,379.99139082331101,342.50160085664561,307.69922422978465,275.49416749768636,245.74260588929263,218.23823802620578,192.79643917670273,169.24616135863133,149.21886543943603,132.42836179472224,117.66553104108074,104.24447087214861,91.812426357963332,79.327605093675317,66.759789044898298,{"$f":"BS9*BS33/1000","v":54.272367017522569},85.703637143485039,84.937726069853113,84.176789306345796,83.420795960881179,82.66971530511664,81.923516772918362,81.182169958821788,80.445644616482426,79.713910657116315,78.986938147929322,78.264697310534913,77.547158519359243,76.834292300032928,76.126069327768676,75.422460425724069,74.72343656334813,74.006710645242805,73.294749315744966,73.241813865470135]
["Greater Dandenong (C)",{"$f":"B10*B34/1000","v":1188.074515680961},2263.447848625894,2655.901977,2660.512592,2641.1983890000001,2857.1561710000001,2787.8067730000002,2767.4941439999998,2985.6607669999999,2937.9920107532744,2837.4752249688745,3006.7324433305871,3084.0335539397061,3205.211914961129,3264.2601266159886,3248.5026250998271,3134.8878579516017,3050.1610028592386,3025.0940002769389,3213.5376098464562,3231.8550953656809,3180.633854269257,3106.3135940314082,3000.1593175585294,2939.4243790345931,2845.7163364290604,2803.0500176797818,2762.3099536885893,2750.5471062524975,2725.1116199982921,2652.1309450642157,2582.9029894261239,{"$f":"AH10*AH34/1000","v":2541.7811638225226},2502.6851823961533,2458.9912098198961,2417.6205004097769,2379.1436757091001,2340.1982653062209,2290.3419761870323,2244.1622620080825,2184.3843363673527,2128.7140566638368,2073.0637427150473,2011.8038910253495,2075.1723410351219,2070.3077421636121,2024.0242969499627,1968.8538137976057,1912.4277481099252,1849.8245559362194,1776.9174714527298,1690.3716075773725,1588.2944916793704,1471.6190813094831,1346.1139332285363,1219.4433491798818,1097.5287642120763,983.13319954799874,876.95066677245086,778.68289161362407,687.797761531079,603.69467011282791,532.13615381719092,472.21577273073967,419.58043742543566,371.71481522864354,327.35626850918618,282.8538030740246,238.01153871751418,{"$f":"BS10*BS34/1000","v":193.47405007895418},305.93681683631456,303.61653057877299,301.30977707005201,299.01646416068911,296.73650007137019,294.46979338654279,292.2162530479419,289.97578834802363,287.74830892330374,285.53372474759584,283.33194612514473,281.1428836836501,278.96644836717576,276.80255142893907,274.6511044239748,272.51201920166835,270.38520789815163,268.27058292855588,268.40357615667284]
["Kingston (C)",{"$f":"B11*B35/1000","v":1145.9869925902249},2143.2989771483094,2519.6590510000001,2525.3948639999999,2492.6927919999998,2639.7685959999999,2565.0963849999998,2501.6731170000003,2689.7842659999997,2646.7959694784286,2556.2399689596364,2708.7118233234187,2778.3339049480255,2887.5277829917795,2940.7446659272355,2926.5174246265024,2824.1760574818813,2747.8109858480811,2725.2354048301477,2894.9997812646725,2911.5015693280798,2865.3575686118916,2798.4042096492171,2702.7723408241382,2648.05767583837,2563.5958809259701,2525.0754099492597,2488.1674120930493,2477.1971511220927,2453.7068346933675,2386.4086452926281,2319.8604337229608,{"$f":"AH11*AH35/1000","v":2274.743380593743},2224.5304736349826,2161.6501056671555,2089.6012429484563,2007.9325280039243,1912.5782433880686,1793.5219351735741,1673.6311324060287,1542.208672775753,1418.9858630139693,1304.1348841268684,1195.8845361045157,1170.3188516811224,1110.4194530263858,1027.6846977558241,943.72985735189116,865.23215890563529,791.59648750843689,722.51583545583219,658.00931146149287,597.93608502055383,542.04533294003454,490.00683273865627,441.61159682077601,396.73917899989181,355.22345822187015,316.83551504040514,281.35913771613497,248.53967530452621,218.16548187090388,192.31562538760323,170.6804289428741,151.67452778662016,134.36444214621218,118.33382452129835,102.24534368472955,86.028134279672344,{"$f":"BS11*BS35/1000","v":69.931259965981212},110.56035520162892,109.70128745203151,108.84732004585823,107.99841878141197,107.15454960140933,106.31567859071836,105.48177197406753,104.65279611372428,103.82871750714202,103.00950278457391,102.19511870665181,101.38553216192906,100.5807101643849,99.780619850889266,98.985228478625785,98.19450342247103,97.408412172328198,96.626922330412896,96.655036289196559]
["Knox (C)",{"$f":"B12*B36/1000","v":1704.1673269469134},3230.8213535353693,3750.3492839999999,3714.9823241845233,3645.8705863690479,3921.267261,3790.5956290000004,3679.9201619999999,4004.3461990000001,3940.3813883836738,3805.5456009293216,4032.5291773631111,4136.1888493045799,4298.7563735341082,4377.9958820160928,4356.8349943106468,4204.4893641720964,4090.8771160802494,4057.2715188012926,4310.0130501178464,4334.5805552222828,4265.8823651365701,4166.2036526386064,4023.8289950269955,3942.3709853761379,3816.689280175824,3759.4115490725335,3704.5598063605439,3688.3077763711881,3653.467855914339,3553.3148142903297,3453.2627863566358,{"$f":"AH12*AH36/1000","v":3382.8858647587972},3299.9125590181807,3191.7879597097894,3062.967791708661,2915.1655477296467,2746.7164359229132,2549.5050879314254,2358.5411211402006,2160.2247885724923,1979.6557238624621,1814.6363990060599,1661.2812227010456,1614.0275686989946,1518.807792641245,1397.187781792526,1278.1410482917713,1169.1325167649463,1068.2007107129643,974.31985827684673,887.04487410450952,805.96340855438302,730.57451082055161,660.44307704817629,595.22150963802358,534.72241692265129,478.73696300622993,427.00302249228599,379.16923972239175,334.93494879164609,293.99068339913043,259.17246378437522,230.01187664281343,204.38129338777483,181.05381894010591,159.44497643501975,137.77973023122931,115.94055984829461,{"$f":"BS12*BS36/1000","v":94.247078210691384},149.00488730249302,147.84865660667506,146.69928388547828,145.55672311259607,144.42092845554589,143.29185427261658,142.1694551097772,141.05368569754447,139.94450094780737,138.84185595060677,137.74570597086836,136.65600644508544,135.57271297795111,134.49578133893601,133.42516745880945,132.36082742610171,131.30271748350424,130.25079402420519,130.29019371454513]
["Manningham (C)",{"$f":"B13*B37/1000","v":1374.1044270515738},2522.0709480876858,3040.8622240000004,2928.5765019999999,2884.5082110000003,3107.0558480000004,2992.6785249999994,2888.9196809999999,3126.237717,3076.3212303939899,2971.0629381152585,3148.2735927608255,3229.192493416394,3356.0633979272693,3417.8899872811635,3401.3461599801549,3282.4203425568271,3193.6984669670405,3167.4678000430254,3364.7803679766771,3383.9599523316056,3330.3280216093494,3252.5099335854229,3141.3595850230558,3077.7662017779244,2979.6478598252738,2934.9131897154502,2892.0774560259038,2879.34369778563,2852.108415540421,2773.7208751489352,2694.9423261316178,{"$f":"AH13*AH37/1000","v":2638.64509895826},2571.4619825325385,2483.6662860946885,2379.1228082564016,2259.9870790930295,2125.7035419969211,1970.6383501462517,1821.4690077462694,1667.5001217637762,1527.7181353047258,1400.1705410942511,1281.7732782433968,1244.552710169567,1170.2821366705493,1076.045432785462,984.15107949796379,900.07242541328662,822.33561883868788,750.0334232306692,682.85656577244822,620.44429211710451,562.44529611197333,508.4832070616439,458.31006499158491,411.74391092246191,368.66907950212806,328.85964536232274,292.04895586790167,257.99638889114931,226.47846511804158,199.65059744345075,177.19730164051984,157.4420843342055,139.47053675001678,122.81515617493162,106.13490958491738,89.314628117945688,{"$f":"BS13*BS37/1000","v":72.602696207411796},114.80525560076495,113.93454948693844,113.03950155067423,112.14979843449431,111.26540441170972,110.38628390751731,109.51240149663924,108.64372190093235,107.78020998696557,106.92183076356433,106.06854937931975,105.22033112006179,104.37714140629369,103.53894579058672,102.70570995493289,101.87739970805366,101.05398098266295,100.23541983268177,100.28511082716088]
["Maroondah (C)",{"$f":"B14*B38/1000","v":1046.7672088197637},1960.4641708298016,2331.4553080000001,2301.328818,2279.2815010000004,2481.7475559999998,2375.7368730000003,2299.5469459999999,2506.872586,2466.8106551039782,2382.3997365048986,2524.455749151256,2589.3242428541516,2691.0729317648797,2740.6357205712243,2727.3910088110979,2632.027512403115,2560.8564062179598,2539.8317368487747,2698.0466750117484,2713.4258106871143,2670.4210862965433,2608.0227093781177,2518.8968837464672,2467.9045759423029,2389.2284552711039,2353.3520563044631,2318.9867020798615,2308.8426638009214,2287.0463735841158,2224.2447986404254,2161.4021378102993,{"$f":"AH14*AH38/1000","v":2116.8832954753761},2064.1434851717268,1995.3570941915229,1913.4138877112814,1819.6810153402948,1713.3227225597425,1589.5303408015893,1469.9773560669319,1346.1132921282176,1233.5402097736528,1130.6652781875368,1035.0779686751439,1005.390177150828,945.83778993033127,869.94116534986313,795.7728062624625,727.9077641447268,665.09971947376346,606.65655411636442,552.32126722501403,501.86489555014248,454.94571726139253,411.28073390667822,370.68888353051869,333.04015731013487,298.19271495571621,265.98626945411456,236.22432657962176,208.70025492770336,183.22302228313274,161.52827071419836,143.35727188336682,127.39570790395639,112.87373781881494,99.408574084208126,85.892311158688315,72.271742340675218,{"$f":"BS14*BS38/1000","v":58.759790857140075},92.915733998771046,92.21104241265806,91.510460842798409,90.813961302580211,90.121515917808978,89.433096924767867,88.748676668251406,88.068227599571244,87.391722274533038,86.719133351382737,86.050433588721276,85.385595843385659,84.724593068295462,84.06739831026303,83.413984707765266,82.738756789071346,82.067528185773995,81.40027122283297,81.440624826725511]
["Melbourne (C)",{"$f":"B15*B39/1000","v":53.894793245128902},90.448637887726463,172.70607899999999,148.02656400000001,158.69209899999998,182.25653800000001,175.72900700000002,195.79371799999998,201.89827,198.59933336486083,191.6785240843443,202.92491419804568,208.12423615310999,216.22035365605049,220.05957087462471,218.79265740786815,211.10735950838475,205.31042445872126,203.47687386569433,216.15215488891624,217.38424377282888,213.93894983721324,208.93994675939229,201.79969249879787,197.7144788082004,191.41139547799597,188.54153121669842,185.80123261399143,185.01002829973345,183.30210429207392,178.39888416009569,173.75345105892629,{"$f":"AH15*AH39/1000","v":171.0066728046059},168.22804294892731,165.16350178896792,162.28289891503627,159.46119388506074,156.66684546267442,153.07757341557993,149.66536879019941,145.37233804552361,141.26913893914656,137.2954387213228,133.024859916091,136.96712047471297,136.32948599070022,132.94645730590756,129.06969694480486,125.11109981391849,120.88639495931024,116.31053659788414,111.23287829795291,105.53032620232707,99.090507413267403,92.102928760516022,84.635964697074854,77.040098639224894,69.506906053195664,62.320400922554974,55.483560445857279,49.216216875467047,43.378436649074224,38.405835752764773,34.255475259627076,30.538727819654035,27.180827600624717,24.096398098852092,20.941446862080305,17.709655461613625,{"$f":"BS15*BS39/1000","v":14.460636475833482},22.866328021965767,22.692905198199536,22.520493839077453,22.349087057164841,22.178677992692677,22.009259813080195,21.840825712451011,21.673368911142333,21.506882655207093,21.341360215908509,21.176794889206899,21.013179995238247,20.850508877784215,20.688774903733226,20.527971462532133,20.368091965628135,20.209129845900467,20.051078557081297,20.061018736266892]
["Monash (C)",{"$f":"B16*B40/1000","v":1739.3907612383364},3213.6633853959893,3862.296699,3805.510070746544,3757.7736704930876,4000.2534180000002,3861.7633309999997,3736.3718640000002,4032.875994,3968.4374270347844,3832.6385072531639,4061.2492327437881,4165.6727381922847,4329.3734275173165,4409.1644926919198,4387.8528291619796,4234.4317869904698,4119.9730755938208,4086.1550568704251,4340.6958440680819,4365.4382441643029,4296.2509946751388,4195.8626737928753,4052.4744572355175,3970.4365515851223,3843.807836205056,3786.073433465267,3730.7895870541161,3714.3895796425031,3679.2827290275745,3578.3656555447469,3477.9473405926369,{"$f":"AH16*AH40/1000","v":3408.3065666000984},3327.9539483734193,3224.7561142391214,3103.3270065930305,2964.1605925018548,2803.7122572016451,2611.159763280481,2422.0705635660352,2222.2642076864008,2038.7499256240076,1870.0828774049708,1712.7481102647198,1667.6169812802659,1573.1869648186359,1449.7240761818623,1327.5662404745826,1215.0741244588066,1110.55170374163,1013.1095351220272,922.42844519034384,838.14164358179744,759.75057910800876,686.8207572549602,619.01223318623988,556.10929520784759,497.90987252485098,444.0878166980541,394.357973709097,348.35298916380134,305.79136060511388,269.57289234011006,239.24876243442674,212.58783686803378,188.32014915564562,165.84135362227588,143.2894418249341,120.56885079456625,{"$f":"BS16*BS40/1000","v":98.013188111214532},154.96099093499953,153.76041184951765,152.56694578924601,151.38054496996534,150.20116180805982,149.02874891733828,147.86325910581496,146.70464537244715,145.55286090382776,144.40785907083131,143.26959342521019,142.13801769613985,141.01308578670984,139.89475177035797,138.78296988724645,137.67769454057509,136.57888029283038,135.48648186196689,135.5292702349071]
["Nillumbik (S)",{"$f":"B17*B41/1000","v":0.42871972464886549},0.76383597775250656,0.80583500000000008,0.86425300000000005,0.7636130000000001,0.83946200000000004,0.79687600000000003,0.80439099999999997,0.88088900000000003,0.84975013278407319,0.80451219544814534,0.83571297335000982,0.84032429370070516,0.85614686811870477,0.85475208146495174,0.83386865889583395,0.78885921026206018,0.75242345872004823,0.73154565204031796,0.77711617091435747,0.78154581074924301,0.76915919525472698,0.75118664192893758,0.72551580347164968,0.71082853087778841,0.68816751236959983,0.67784969746310653,0.66799770057511798,0.66515314106830659,0.65901276571221945,0.64138457386712155,0.62468318504370302,{"$f":"AH17*AH41/1000","v":0.61480789233405941},0.60547036662433629,0.59508577139889929,0.58534526219947924,0.57643245354805239,0.56758575110414367,0.55644044367662882,0.54649073235464807,0.53383988216005496,0.52296506878609383,0.51301752520839838,0.50298133653095323,0.52037952111095631,0.52047405951557923,0.51067618988087393,0.49948499308383465,0.48905688740571679,0.47861691607456097,0.4677515818459641,0.45635945499047831,0.44438056452614505,0.43171536129707844,0.41825832656310746,0.40399201980004318,0.38896171918749267,0.37321644021638978,0.35675006734297487,0.33950618123413656,0.32139737984866973,0.30233607816406144,0.28561393564864929,0.27163377472169148,0.25867463754104153,0.24560031678583394,0.23179980742206335,0.21465733270828186,0.1935764547083797,{"$f":"BS17*BS41/1000","v":0.16864881303664583},0.26668114407383625,0.2646585807219039,0.2626478136911049,0.26064876265595138,0.25866134761360898,0.25668548887832976,0.25472110707580814,0.25276812313745811,0.25082645829460581,0.24889603407259533,0.24697677228480364,0.24506859502655889,0.24317142466895983,0.24128518385259023,0.2394097954811244,0.23754518271481809,0.23569126896388026,0.23384797788171996,0.23396390634889525]
["Port Phillip (C)",{"$f":"B18*B42/1000","v":666.28845857590716},1250.1742858033358,1492.5735379999999,1468.1568609999999,1422.459061,1509.65795,1481.8482609999999,1467.3758310000001,1542.219699,1517.4320098427543,1465.4561487857191,1552.752247064346,1592.4961743177851,1655.0458933787011,1685.5071876551604,1677.2706748654316,1618.5848033756299,1574.6786766857533,1561.660025825918,1658.941251520102,1668.3973824391408,1641.9551744660482,1603.5884395772141,1548.6806693447436,1517.1182196455134,1468.1366974164514,1445.0740777171477,1422.0236113385872,1412.7434835946869,1395.1863027544734,1348.5744693379231,1295.300222201909,{"$f":"AH18*AH42/1000","v":1248.1517236767322},1192.6383133946024,1128.4851186835765,1060.9063333556971,992.66500366216121,923.90549747064836,852.02145214282427,785.25670218037692,718.20659127360057,657.88320580259995,603.01608516603756,552.14215722987126,535.3924641131739,502.34550340749661,461.50351002141963,422.03625096070016,386.05986361159182,352.79140782625416,321.86222677046766,293.07470348835619,266.32334306096197,241.43430658361441,218.26804413483018,196.73808720114087,176.76125016555633,158.27179651553297,141.17508721983668,125.37896250722808,110.76476773698796,97.242000754339799,85.740481916335398,76.099744600256884,67.634418583379457,59.930952184921097,52.796249535865584,45.62295521576241,38.394880038754415,{"$f":"BS18*BS42/1000","v":31.21218313226008},49.255489111289691,48.782445225232784,48.312595615266552,47.845921087675777,47.382402559871693,46.922021059585688,46.464757724062281,46.010593799250913,45.559510638996656,45.095259145462848,44.63422082381117,44.176376650546501,43.721707715905616,43.270195223091171,42.821820487505612,42.376564935984675,41.934410106030427,41.495337645043392,41.420143426906975]
["South Gippsland (S)",{"$f":"B19*B43/1000","v":18.877063751497587},41.105793118199315,51.639381999999998,59.389214000000003,61.95552399999999,70.790327000000005,70.137804000000003,73.836410999999998,85.491911999999999,84.118311282721237,81.208692601397601,86.033817803118922,88.240407499619906,91.67524373384866,93.344786710000292,92.886315298919513,89.6050724692752,87.162473059420037,86.435762410170938,91.820146188980701,92.343530198253305,90.879989883354241,88.75644319171667,85.723305768815649,83.98793135870784,81.310419153853218,80.091317932538544,78.927255430217798,78.59115655654314,77.865640624751663,75.782781957224756,73.80942968285251,{"$f":"AH19*AH43/1000","v":72.642614663173333},71.539339492999801,70.281916045823905,69.101440380329961,67.989711711158733,66.88732025049498,65.457770691020414,64.144040361345304,62.434087628422333,60.885260512662292,59.344818745402478,57.672588263154829,59.499613956462234,59.369798137754529,58.058028038491315,56.513089271806052,54.957636515583552,53.256707696007112,51.322007639447108,49.080933561345788,46.474471661793181,43.450083542767018,40.062266230245882,36.515270388310107,32.957957050617267,29.589104204303563,26.41122383745828,23.481514080030976,20.768597883412038,18.262340519491133,16.126208819501908,14.34087895327127,12.764964142601611,11.327541011837662,9.9952229754686712,8.6602528076041274,7.3049950770639862,{"$f":"BS19*BS43/1000","v":5.9428881496558477},9.3973754236188451,9.3261038412121824,9.2552479404567016,9.1848048908232052,9.1147718731522271,9.0451460794578864,8.975924712728979,8.90710498672731,8.8386841257830771,8.7706593645871482,8.7030279479801642,8.6357871307382332,8.5689341773551355,8.5024663618208258,8.4363809673961114,8.3706752863832765,8.3053466198925214,8.2403922776039931,8.2444773933031676]
["Stonnington (C)",{"$f":"B20*B44/1000","v":920.11148056708714},1740.8761646911373,2066.8774579999999,2010.2501250000003,1979.7435410000001,2099.9379670000003,2018.159975,1989.793705,2121.5715070000001,2087.5070393844439,2016.0277337100194,2136.1374061834549,2190.8757609005293,2276.9246628223395,2318.8736047279253,2307.5742771718756,2226.8550777791183,2166.5107462265514,2148.6486071820609,2282.4953898595031,2295.5058416816141,2259.1246752352513,2206.3368532267973,2130.8896288794895,2087.6088414098372,2020.4059517838064,1988.871732993935,1957.2317102573195,1944.2925359065928,1919.5342939763671,1852.3356445154152,1770.5464706816299,{"$f":"AH20*AH44/1000","v":1692.9428643639858},1601.5293697458544,1499.452228530304,1395.7505300856601,1294.8372797432521,1196.9873188411073,1098.6572263204487,1008.9944639677001,920.74346270798833,842.15137413726973,771.13817035411557,705.61684199335593,682.2580558175697,637.97986589288644,584.7896578672021,534.05465495591784,488.07296341309956,445.76342262797442,406.5401621659521,370.10202187689271,336.30653296260783,304.8865665802856,275.62456693230956,248.4379423338759,223.21227852859212,199.85840663435948,178.28008394023999,158.32779197456827,139.87437857011676,122.80120973499123,108.27891802286796,96.122678537166607,85.442097916053655,75.692794931663116,66.653396969468275,57.591667160805159,48.466038923125616,{"$f":"BS20*BS44/1000","v":39.399719839246899},62.166652964446072,61.537646128105258,60.912997184773481,60.292680509295074,59.676670633328953,59.064942244402204,58.45747018496715,57.8542294514613,57.255195193370533,56.660342712294728,56.069647461016167,55.483085042570515,54.900631209319691,54.322261862027126,53.747953048934612,53.177680964841031,52.61142195018224,52.049152490112334,51.944978579701882]
["Whitehorse (C)",{"$f":"B21*B45/1000","v":1775.0702195844995},3305.7855153363116,3956.342318,3857.893508640625,3797.6513872812502,4110.313553,3902.9908439999999,3808.8432519999997,4121.6738640000003,4055.8167198315673,3917.063129096744,4150.6638891273751,4257.3782267171027,4424.7113126184413,4506.2629161056684,4484.4610378062998,4327.6185236028614,4210.6330267296107,4176.0396866454703,4436.1796995458917,4461.4663671604631,4390.7571807357372,4288.1605816724814,4141.6182026861443,4057.7756795715864,3928.3624652697149,3869.3600203733731,3812.8649281627104,3796.1139298637127,3760.1990365165384,3657.0100330193809,3554.130438368772,{"$f":"AH21*AH45/1000","v":3482.4665003740042},3399.3679289603506,3292.439700059334,3166.4210799926218,3022.0824154392367,2856.1863345174897,2658.2677766619331,2464.4840500761252,2260.4287970691148,2073.3185639295834,1901.4891737969524,1741.3864578884366,1694.7627508689729,1598.046434372566,1472.1575591363069,1347.843775323912,1233.4699024587189,1127.298773399049,1028.3379140658803,936.30238513337576,850.7407365493616,771.18916133658479,697.13351333676837,628.30794816005641,564.45893965668995,505.38408864855205,450.75508368643824,400.28362786209203,353.59835813417715,310.38624223687947,273.62190884712908,242.82458458476682,215.7571535406949,191.13000899619351,168.30700310455134,145.42180236154692,122.35694925890986,{"$f":"BS21*BS45/1000","v":99.470547529369455},157.26541196391517,156.04728231827045,154.8363683801019,153.63262166787496,152.43599390348453,151.24643700902848,150.06390310353964,148.88834449967399,147.71971370035362,146.5579633953617,145.4030464578874,144.25491594101862,143.11352507417988,141.97882725951268,140.85077606819621,139.72932523670499,138.61442866300064,137.50604040265549,137.54975932900089]
["Yarra Ranges (S)",{"$f":"B22*B46/1000","v":1396.7091736856935},2689.6127923364256,3037.4502349999998,3059.4531429999997,2998.7913280000002,3292.6148739999999,3138.1191250000002,3064.7414360000007,3358.6463080000003,3305.010522532928,3191.8976082911508,3382.2936819386855,3469.2177994285503,3605.5477961526831,3671.9677634566383,3654.229419717577,3526.4589641835282,3431.1105455810516,3402.9283908583184,3614.9086166037746,3635.5139569723056,3577.895180324022,3494.2923158985855,3374.8793650324269,3306.5586296763636,3201.146447904513,3153.0923901468136,3107.0902902556445,3093.4518908755449,3064.1992607523152,2979.9665769490148,2895.3787775215083,{"$f":"AH22*AH46/1000","v":2834.8996404176987},2762.5127201946907,2667.7557326040592,2554.7118533953007,2425.782236771955,2280.6533009320965,2113.5360789338151,1952.9731843663451,1787.5295667270175,1637.5254118271321,1500.694772257038,1373.7478648826914,1333.5573214647766,1253.6176657311128,1152.4664296698627,1053.9091336885572,963.84178728109168,880.55417361156344,803.1715215714147,731.23202951650853,664.41791991788489,602.28270374514989,544.48954499296576,490.75113907522308,440.89251851120525,394.76157685611605,352.13211255524476,312.69717794508483,276.24452441879492,242.50859765087969,213.77598778836881,189.74552743406213,168.60336839242044,149.37290719893915,131.55785499771883,113.67647686507493,95.662220163053334,{"$f":"BS22*BS46/1000","v":77.761944758844791},122.93467735958309,121.97359152725764,121.0182367900475,120.06857486122439,119.12456761767702,118.18617709740846,117.25336549700259,116.32609516905765,115.40432861958529,114.48802850537362,113.57715763131266,112.67167894768009,111.77155554738559,110.87675066317203,109.98722766477113,109.10295005601157,108.22388147187768,107.34998567551564,107.40320366526855]
["Multinet",{"$f":"SUM(B51:B70)","v":17640.228492439212},{"$f":"SUM(C51:C70)","v":33108.13917889056},39197.208260999992,38654.202304412953,38100.99975682592,40824.754231999999,39294.748540000001,38386.562736000007,41525.205793000008,40861.151790450545,{"$f":"SUM(L51:L70)","v":39462.582933506055},{"$f":"SUM(M51:M70)","v":41815.634517538259},{"$f":"SUM(N51:N70)","v":42889.971549463342},{"$f":"SUM(O51:O70)","v":44575.141238457341},{"$f":"SUM(P51:P70)","v":45396.250416773313},{"$f":"SUM(Q51:Q70)","v":45176.299715702276},{"$f":"SUM(R51:R70)","v":43596.344034039175},{"$f":"SUM(S51:S70)","v":42417.253906792401},{"$f":"SUM(T51:T70)","v":42068.36814170146},{"$f":"SUM(U51:U70)","v":44688.952870835761},{"$f":"SUM(V51:V70)","v":44943.684368165261},{"$f":"SUM(W51:W70)","v":44231.377898706138},{"$f":"SUM(X51:X70)","v":43197.845695149292},{"$f":"SUM(Y51:Y70)","v":41721.459121492546},{"$f":"SUM(Z51:Z70)","v":40876.392630019189},{"$f":"SUM(AA51:AA70)","v":39571.2216413719},{"$f":"SUM(AB51:AB70)","v":38973.490081891709},{"$f":"SUM(AC51:AC70)","v":38396.358831376972},{"$f":"SUM(AD51:AD70)","v":38213.33669041143},{"$f":"SUM(AE51:AE70)","v":37829.535025086094},{"$f":"SUM(AF51:AF70)","v":36731.093093764932},{"$f":"SUM(AG51:AG70)","v":35548.258174638089},{"$f":"SUM(AH51:AH70)","v":34595.028413548862},{"$f":"SUM(AI51:AI70)","v":33464.147872418325},{"$f":"SUM(AJ51:AJ70)","v":32103.706151682127},{"$f":"SUM(AK51:AK70)","v":30616.356127521321},{"$f":"SUM(AL51:AL70)","v":29042.599633917762},{"$f":"SUM(AM51:AM70)","v":27366.225545267775},{"$f":"SUM(AN51:AN70)","v":25494.147580254688},{"$f":"SUM(AO51:AO70)","v":23713.38122334193},{"$f":"SUM(AP51:AP70)","v":21870.397860056306},{"$f":"SUM(AQ51:AQ70)","v":20196.754575722374},{"$f":"SUM(AR51:AR70)","v":18662.721828427064},{"$f":"SUM(AS51:AS70)","v":17225.816508330347},{"$f":"SUM(AT51:AT70)","v":16875.750531241705},{"$f":"SUM(AU51:AU70)","v":16012.854852149907},{"$f":"SUM(AV51:AV70)","v":14873.293321274112},{"$f":"SUM(AW51:AW70)","v":13749.60972198098},{"$f":"SUM(AX51:AX70)","v":12713.804760956969},{"$f":"SUM(AY51:AY70)","v":11742.044769445016},{"$f":"SUM(AZ51:AZ70)","v":10819.804701170386},{"$f":"SUM(BA51:BA70)","v":9939.469334590045},{"$f":"SUM(BB51:BB70)","v":9095.6370976456928},{"$f":"SUM(BC51:BC70)","v":8285.3224262341173},{"$f":"SUM(BD51:BD70)","v":7511.1382651831364},{"$f":"SUM(BE51:BE70)","v":6778.969692463209},{"$f":"SUM(BF51:BF70)","v":6093.9141210199468},{"$f":"SUM(BG51:BG70)","v":5457.5546617319033},{"$f":"SUM(BH51:BH70)","v":4868.4710708604016},{"$f":"SUM(BI51:BI70)","v":4323.6418057215515},{"$f":"SUM(BJ51:BJ70)","v":3819.7509146087878},{"$f":"SUM(BK51:BK70)","v":3353.3292616787098},{"$f":"SUM(BL51:BL70)","v":2956.4210682272374},{"$f":"SUM(BM51:BM70)","v":2624.0792563821092},{"$f":"SUM(BN51:BN70)","v":2331.8984963649827},{"$f":"SUM(BO51:BO70)","v":2066.0692843091192},{"$f":"SUM(BP51:BP70)","v":1819.7952737964097},{"$f":"SUM(BQ51:BQ70)","v":1572.6647285620256},{"$f":"SUM(BR51:BR70)","v":1323.5231235611602},1076.0252845662524,1700.7775252351039,1687.1371681089256,1673.550190298336,1660.045768270712,1646.6233584270851,1633.2824195917788,1620.0224129782425,1606.8428021544764,1593.7430530080364,1580.6797884944808,1567.6957713747793,1554.7904724429354,1541.9633646918649,1529.2139232760937,1516.5416254739075,1503.9203819493005,1491.3532562193027,1478.8622260129591,1479.004921505066]
[null,null,null,null,null,null,null,null,null,null,{"$f":"K71/J71-1","v":-1.5991588479048691E-2},{"$f":"L71/K71-1","v":-3.422734787596815E-2},5.9627409285323951E-2,2.5692233163997269E-2,3.9290529420159537E-2,1.8420786911776732E-2,-4.8451292574104299E-3,-3.4973109608486652E-2,-2.7045619383271324E-2,-8.2250908052082794E-3,6.2293472385408943E-2,5.700099934445646E-3,-1.5848866853552135E-2,-2.3366493486224327E-2,-3.4177319491247915E-2,-2.025496013963779E-2,-3.1929700853513765E-2,-1.5105208651310931E-2,-1.4808303010637736E-2,-4.766653571743884E-3,-1.004365749148628E-2,-2.9036622591124828E-2,-3.2202551557814263E-2,-2.6815090528663599E-2,-3.268910571808159E-2,-4.0653708736970273E-2,-4.6329542674401591E-2,-5.140247543008214E-2,-5.7721213313570385E-2,-6.8408336469945152E-2,-6.9850005822197692E-2,-7.7719130221358346E-2,-7.6525506990919534E-2,-7.5954418396473655E-2,-7.6993341770117518E-2,-2.0322170326112055E-2,-5.1132284605318046E-2,-7.1165419370724847E-2,-7.5550422829748443E-2,-7.5333408145258685E-2,-7.6433452438733895E-2,-7.8541692386872031E-2,-8.1363332416260148E-2,-8.4897111559845251E-2,-8.9088280756200899E-2,-9.3440438551872562E-2,-9.7477712015207496E-2,-0.10105600150490424,-0.10442540650401144,-0.1079391096166431,-0.11190972632041596,-0.11654316286005839,-0.12210787126098455,-0.11836242804644126,-0.11241355820955867,-0.11134601186549686,-0.11399690529851292,-0.11919929906661486,-0.13580128973454619,-0.15842003732649956,-0.18699925569035281,0.58061111539836197,-8.0200713637091914E-3,-8.0532739527153785E-3,-8.069325978933839E-3,{"$f":"BX71/BW71-1","v":-8.0855661332814854E-3},-8.1019978047985886E-3,-8.1186244671943575E-3,-8.1354496815490007E-3,-8.1524770991137085E-3,-8.1965938542601924E-3,-8.2141982292746052E-3,-8.2320174408115898E-3,-8.2500555402273967E-3,-8.2683166848901424E-3,-8.2868051417148703E-3,-8.3223851641150981E-3,-8.356244041130001E-3,-8.3756347828745081E-3,9.6490051336051152E-5]
["Commercial GJ per customer"]
["FY",2012,2013,2014,2015,2016,2017,2018,2019,2020,2021,2022,2023,2024,2025,2026,2027,2028,2029,2030,2031,2032,2033,2034,2035,2036,2037,2038,2039,2040,2041,2042,2043,2044,2045,2046,2047,2048,2049,2050,2051,2052,2053,2054,2055,2056,2057,2058,2059,2060,2061,2062,2063,2064,2065,2066,2067,2068,2069,2070,2071,2072,2073,2074,2075,2076,2077,2078,2079,2080,2081,2082,2083,2084,2085,2086,2087,2088,2089,2090,2091,2092,2093,2094,2095,2096,2097,2098,2099,2100]
["Bass Coast (S)",{"$f":"'Volume per connection'!B73","v":341.81296051384976},{"$f":"'Volume per connection'!C73","v":700.84296901242101},{"$f":"'Volume per connection'!D73","v":679.1007346938776},{"$f":"'Volume per connection'!E73","v":843.82263829787223},{"$f":"'Volume per connection'!F73","v":823.68247916666667},{"$f":"'Volume per connection'!G73","v":814.84162745098047},{"$f":"'Volume per connection'!H73","v":796.74451851851848},{"$f":"'Volume per connection'!I73","v":750.95170175438602},{"$f":"'Volume per connection'!J73","v":744.1214655172414},{"$f":"J75+J75*Control!$I$12*Weather!AM$21 + J75*Control!$I$13*Prices!AA$16 + J75*Control!$I$14*Prices!AA$18","v":698.14714063515066},{"$f":"K75+K75*Control!$I$12*Weather!AN$21 + K75*Control!$I$13*Prices!AB$16 + K75*Control!$I$14*Prices!AB$18","v":638.83400983051638},{"$f":"L75+L75*Control!$I$12*Weather!AO$21 + L75*Control!$I$13*Prices!AC$16 + L75*Control!$I$14*Prices!AC$18","v":658.80390757158045},{"$f":"M75+M75*Control!$I$12*Weather!AP$21 + M75*Control!$I$13*Prices!AD$16 + M75*Control!$I$14*Prices!AD$18","v":657.17156944124088},{"$f":"N75+N75*Control!$I$12*Weather!AQ$21 + N75*Control!$I$13*Prices!AE$16 + N75*Control!$I$14*Prices!AE$18","v":675.55497672479783},{"$f":"O75+O75*Control!$I$12*Weather!AR$21 + O75*Control!$I$13*Prices!AF$16 + O75*Control!$I$14*Prices!AF$18","v":676.37764196157389},{"$f":"P75+P75*Control!$I$12*Weather!AS$21 + P75*Control!$I$13*Prices!AG$16 + P75*Control!$I$14*Prices!AG$18","v":660.07934933342449},{"$f":"Q75+Q75*Control!$I$12*Weather!AT$21 + Q75*Control!$I$13*Prices!AH$16 + Q75*Control!$I$14*Prices!AH$18","v":618.85506979775664},{"$f":"R75+R75*Control!$I$12*Weather!AU$21 + R75*Control!$I$13*Prices!AI$16 + R75*Control!$I$14*Prices!AI$18","v":585.82290635933794},{"$f":"S75+S75*Control!$I$12*Weather!AV$21 + S75*Control!$I$13*Prices!AJ$16 + S75*Control!$I$14*Prices!AJ$18","v":563.52165385882063},{"$f":"T75+T75*Control!$I$12*Weather!AW$21 + T75*Control!$I$13*Prices!AK$16 + T75*Control!$I$14*Prices!AK$18","v":602.7457174672071},{"$f":"U75+U75*Control!$I$12*Weather!AX$21 + U75*Control!$I$13*Prices!AL$16 + U75*Control!$I$14*Prices!AL$18","v":604.40770170680173},{"$f":"V75+V75*Control!$I$12*Weather!AY$21 + V75*Control!$I$13*Prices!AM$16 + V75*Control!$I$14*Prices!AM$18","v":592.948920444838},{"$f":"W75+W75*Control!$I$12*Weather!AZ$21 + W75*Control!$I$13*Prices!AN$16 + W75*Control!$I$14*Prices!AN$18","v":575.16910888568646},{"$f":"X75+X75*Control!$I$12*Weather!BA$21 + X75*Control!$I$13*Prices!AO$16 + X75*Control!$I$14*Prices!AO$18","v":638.8216243442381},{"$f":"Y75+Y75*Control!$I$12*Weather!BB$21 + Y75*Control!$I$13*Prices!AP$16 + Y75*Control!$I$14*Prices!AP$18","v":632.44841341689994},{"$f":"Z75+Z75*Control!$I$12*Weather!BC$21 + Z75*Control!$I$13*Prices!AQ$16 + Z75*Control!$I$14*Prices!AQ$18","v":622.68453644229248},{"$f":"AA75+AA75*Control!$I$12*Weather!BD$21 + AA75*Control!$I$13*Prices!AR$16 + AA75*Control!$I$14*Prices!AR$18","v":607.5983717030831},{"$f":"AB75+AB75*Control!$I$12*Weather!BE$21 + AB75*Control!$I$13*Prices!AS$16 + AB75*Control!$I$14*Prices!AS$18","v":599.29491931123277},{"$f":"AC75+AC75*Control!$I$12*Weather!BF$21 + AC75*Control!$I$13*Prices!AT$16 + AC75*Control!$I$14*Prices!AT$18","v":601.24927980252664},{"$f":"AD75+AD75*Control!$I$12*Weather!BG$21 + AD75*Control!$I$13*Prices!AU$16 + AD75*Control!$I$14*Prices!AU$18","v":597.05924983359512},{"$f":"AE75+AE75*Control!$I$12*Weather!BH$21 + AE75*Control!$I$13*Prices!AV$16 + AE75*Control!$I$14*Prices!AV$18","v":580.38422898625856},{"$f":"AF75+AF75*Control!$I$12*Weather!BI$21 + AF75*Control!$I$13*Prices!AW$16 + AF75*Control!$I$14*Prices!AW$18","v":568.1764059042855},{"$f":"AG75+AG75*Control!$I$12*Weather!BJ$21 + AG75*Control!$I$13*Prices!AX$16 + AG75*Control!$I$14*Prices!AX$18","v":563.54327091410244},{"$f":"AH75+AH75*Control!$I$12*Weather!BK$21 + AH75*Control!$I$13*Prices!AY$16 + AH75*Control!$I$14*Prices!AY$18","v":557.87402782123854},{"$f":"AI75+AI75*Control!$I$12*Weather!BL$21 + AI75*Control!$I$13*Prices!AZ$16 + AI75*Control!$I$14*Prices!AZ$18","v":552.68023375165944},{"$f":"AJ75+AJ75*Control!$I$12*Weather!BM$21 + AJ75*Control!$I$13*Prices!BA$16 + AJ75*Control!$I$14*Prices!BA$18","v":549.17763133138703},{"$f":"AK75+AK75*Control!$I$12*Weather!BN$21 + AK75*Control!$I$13*Prices!BB$16 + AK75*Control!$I$14*Prices!BB$18","v":546.86902466635343},{"$f":"AL75+AL75*Control!$I$12*Weather!BO$21 + AL75*Control!$I$13*Prices!BC$16 + AL75*Control!$I$14*Prices!BC$18","v":545.03239425092227},{"$f":"AM75+AM75*Control!$I$12*Weather!BP$21 + AM75*Control!$I$13*Prices!BD$16 + AM75*Control!$I$14*Prices!BD$18","v":540.91433979981855},{"$f":"AN75+AN75*Control!$I$12*Weather!BQ$21 + AN75*Control!$I$13*Prices!BE$16 + AN75*Control!$I$14*Prices!BE$18","v":540.34096048840468},{"$f":"AO75+AO75*Control!$I$12*Weather!BR$21 + AO75*Control!$I$13*Prices!BF$16 + AO75*Control!$I$14*Prices!BF$18","v":535.0594587989533},{"$f":"AP75+AP75*Control!$I$12*Weather!BS$21 + AP75*Control!$I$13*Prices!BG$16 + AP75*Control!$I$14*Prices!BG$18","v":534.39858163826671},{"$f":"AQ75+AQ75*Control!$I$12*Weather!BT$21 + AQ75*Control!$I$13*Prices!BH$16 + AQ75*Control!$I$14*Prices!BH$18","v":533.73634492026827},{"$f":"AR75+AR75*Control!$I$12*Weather!BU$21 + AR75*Control!$I$13*Prices!BI$16 + AR75*Control!$I$14*Prices!BI$18","v":533.07273183366954},{"$f":"AS75+AS75*Control!$I$12*Weather!BV$21 + AS75*Control!$I$13*Prices!BJ$16 + AS75*Control!$I$14*Prices!BJ$18","v":532.40772531586902},{"$f":"AT75+AT75*Control!$I$12*Weather!BW$21 + AT75*Control!$I$13*Prices!BK$16 + AT75*Control!$I$14*Prices!BK$18","v":531.74130804776189},{"$f":"AU75+AU75*Control!$I$12*Weather!BX$21 + AU75*Control!$I$13*Prices!BL$16 + AU75*Control!$I$14*Prices!BL$18","v":531.07346244841483},{"$f":"AV75+AV75*Control!$I$12*Weather!BY$21 + AV75*Control!$I$13*Prices!BM$16 + AV75*Control!$I$14*Prices!BM$18","v":530.40417066960072},{"$f":"AW75+AW75*Control!$I$12*Weather!BZ$21 + AW75*Control!$I$13*Prices!BN$16 + AW75*Control!$I$14*Prices!BN$18","v":529.73341459019082},{"$f":"AX75+AX75*Control!$I$12*Weather!CA$21 + AX75*Control!$I$13*Prices!BO$16 + AX75*Control!$I$14*Prices!BO$18","v":529.06117581039587},{"$f":"AY75+AY75*Control!$I$12*Weather!CB$21 + AY75*Control!$I$13*Prices!BP$16 + AY75*Control!$I$14*Prices!BP$18","v":528.38743564585877},{"$f":"AZ75+AZ75*Control!$I$12*Weather!CC$21 + AZ75*Control!$I$13*Prices!BQ$16 + AZ75*Control!$I$14*Prices!BQ$18","v":527.7121751215833},{"$f":"BA75+BA75*Control!$I$12*Weather!CD$21 + BA75*Control!$I$13*Prices!BR$16 + BA75*Control!$I$14*Prices!BR$18","v":527.03537496570493},{"$f":"BB75+BB75*Control!$I$12*Weather!CE$21 + BB75*Control!$I$13*Prices!BS$16 + BB75*Control!$I$14*Prices!BS$18","v":526.35701560308905},{"$f":"BC75+BC75*Control!$I$12*Weather!CF$21 + BC75*Control!$I$13*Prices!BT$16 + BC75*Control!$I$14*Prices!BT$18","v":525.67707714875792},{"$f":"BD75+BD75*Control!$I$12*Weather!CG$21 + BD75*Control!$I$13*Prices!BU$16 + BD75*Control!$I$14*Prices!BU$18","v":524.99553940113628},{"$f":"BE75+BE75*Control!$I$12*Weather!CH$21 + BE75*Control!$I$13*Prices!BV$16 + BE75*Control!$I$14*Prices!BV$18","v":524.31238183511198},{"$f":"BF75+BF75*Control!$I$12*Weather!CI$21 + BF75*Control!$I$13*Prices!BW$16 + BF75*Control!$I$14*Prices!BW$18","v":523.62758359490374},{"$f":"BG75+BG75*Control!$I$12*Weather!CJ$21 + BG75*Control!$I$13*Prices!BX$16 + BG75*Control!$I$14*Prices!BX$18","v":522.94112348673229},{"$f":"BH75+BH75*Control!$I$12*Weather!CK$21 + BH75*Control!$I$13*Prices!BY$16 + BH75*Control!$I$14*Prices!BY$18","v":522.25297997128359},{"$f":"BI75+BI75*Control!$I$12*Weather!CL$21 + BI75*Control!$I$13*Prices!BZ$16 + BI75*Control!$I$14*Prices!BZ$18","v":521.56313115596367},{"$f":"BJ75+BJ75*Control!$I$12*Weather!CM$21 + BJ75*Control!$I$13*Prices!CA$16 + BJ75*Control!$I$14*Prices!CA$18","v":520.87155478693069},{"$f":"BK75+BK75*Control!$I$12*Weather!CN$21 + BK75*Control!$I$13*Prices!CB$16 + BK75*Control!$I$14*Prices!CB$18","v":520.1782282409032},{"$f":"BL75+BL75*Control!$I$12*Weather!CO$21 + BL75*Control!$I$13*Prices!CC$16 + BL75*Control!$I$14*Prices!CC$18","v":519.48312851673063},{"$f":"BM75+BM75*Control!$I$12*Weather!CP$21 + BM75*Control!$I$13*Prices!CD$16 + BM75*Control!$I$14*Prices!CD$18","v":518.78623222672491},{"$f":"BN75+BN75*Control!$I$12*Weather!CQ$21 + BN75*Control!$I$13*Prices!CE$16 + BN75*Control!$I$14*Prices!CE$18","v":518.08751558773758},{"$f":"BO75+BO75*Control!$I$12*Weather!CR$21 + BO75*Control!$I$13*Prices!CF$16 + BO75*Control!$I$14*Prices!CF$18","v":517.38695441197831},{"$f":"BP75+BP75*Control!$I$12*Weather!CS$21 + BP75*Control!$I$13*Prices!CG$16 + BP75*Control!$I$14*Prices!CG$18","v":516.68452409756401},{"$f":"BQ75+BQ75*Control!$I$12*Weather!CT$21 + BQ75*Control!$I$13*Prices!CH$16 + BQ75*Control!$I$14*Prices!CH$18","v":515.98019961878958},{"$f":"BR75+BR75*Control!$I$12*Weather!CU$21 + BR75*Control!$I$13*Prices!CI$16 + BR75*Control!$I$14*Prices!CI$18","v":515.27395551610846},{"$f":"BS75+BS75*Control!$I$12*Weather!CV$21 + BS75*Control!$I$13*Prices!CJ$16 + BS75*Control!$I$14*Prices!CJ$18","v":514.56576588581629},{"$f":"BT75+BT75*Control!$I$12*Weather!CW$21 + BT75*Control!$I$13*Prices!CK$16 + BT75*Control!$I$14*Prices!CK$18","v":513.85560436942205},{"$f":"BU75+BU75*Control!$I$12*Weather!CX$21 + BU75*Control!$I$13*Prices!CL$16 + BU75*Control!$I$14*Prices!CL$18","v":513.14344414270067},{"$f":"BV75+BV75*Control!$I$12*Weather!CY$21 + BV75*Control!$I$13*Prices!CM$16 + BV75*Control!$I$14*Prices!CM$18","v":512.42925790440927},{"$f":"BW75+BW75*Control!$I$12*Weather!CZ$21 + BW75*Control!$I$13*Prices!CN$16 + BW75*Control!$I$14*Prices!CN$18","v":511.71301786466188},{"$f":"BX75+BX75*Control!$I$12*Weather!DA$21 + BX75*Control!$I$13*Prices!CO$16 + BX75*Control!$I$14*Prices!CO$18","v":510.99469573294249},{"$f":"BY75+BY75*Control!$I$12*Weather!DB$21 + BY75*Control!$I$13*Prices!CP$16 + BY75*Control!$I$14*Prices!CP$18","v":510.27426270574927},{"$f":"BZ75+BZ75*Control!$I$12*Weather!DC$21 + BZ75*Control!$I$13*Prices!CQ$16 + BZ75*Control!$I$14*Prices!CQ$18","v":509.55168945385117},{"$f":"CA75+CA75*Control!$I$12*Weather!DD$21 + CA75*Control!$I$13*Prices!CR$16 + CA75*Control!$I$14*Prices!CR$18","v":508.8269461091466},{"$f":"CB75+CB75*Control!$I$12*Weather!DE$21 + CB75*Control!$I$13*Prices!CS$16 + CB75*Control!$I$14*Prices!CS$18","v":508.10000225110423},{"$f":"CC75+CC75*Control!$I$12*Weather!DF$21 + CC75*Control!$I$13*Prices!CT$16 + CC75*Control!$I$14*Prices!CT$18","v":507.37082689277531},{"$f":"CD75+CD75*Control!$I$12*Weather!DG$21 + CD75*Control!$I$13*Prices!CU$16 + CD75*Control!$I$14*Prices!CU$18","v":506.63938846635557},{"$f":"CE75+CE75*Control!$I$12*Weather!DH$21 + CE75*Control!$I$13*Prices!CV$16 + CE75*Control!$I$14*Prices!CV$18","v":505.90565480828423},{"$f":"CF75+CF75*Control!$I$12*Weather!DI$21 + CF75*Control!$I$13*Prices!CW$16 + CF75*Control!$I$14*Prices!CW$18","v":505.16959314385701},{"$f":"CG75+CG75*Control!$I$12*Weather!DJ$21 + CG75*Control!$I$13*Prices!CX$16 + CG75*Control!$I$14*Prices!CX$18","v":504.43117007133964},{"$f":"CH75+CH75*Control!$I$12*Weather!DK$21 + CH75*Control!$I$13*Prices!CY$16 + CH75*Control!$I$14*Prices!CY$18","v":503.69035154555553},{"$f":"CI75+CI75*Control!$I$12*Weather!DL$21 + CI75*Control!$I$13*Prices!CZ$16 + CI75*Control!$I$14*Prices!CZ$18","v":502.94710286093391},{"$f":"CJ75+CJ75*Control!$I$12*Weather!DM$21 + CJ75*Control!$I$13*Prices!DA$16 + CJ75*Control!$I$14*Prices!DA$18","v":502.20138863398927},{"$f":"CK75+CK75*Control!$I$12*Weather!DN$21 + CK75*Control!$I$13*Prices!DB$16 + CK75*Control!$I$14*Prices!DB$18","v":501.45317278521622}]
["Bayside (C)",{"$f":"'Volume per connection'!B74","v":125.41634445003399},{"$f":"'Volume per connection'!C74","v":236.7709765081519},{"$f":"'Volume per connection'!D74","v":309.78528286852588},{"$f":"'Volume per connection'!E74","v":312.90397846567964},{"$f":"'Volume per connection'!F74","v":313.26540854472631},{"$f":"'Volume per connection'!G74","v":311.28462599469498},{"$f":"'Volume per connection'!H74","v":288.63473907284771},{"$f":"'Volume per connection'!I74","v":267.82868707482993},{"$f":"'Volume per connection'!J74","v":248.4870780821918},{"$f":"J76+J76*Control!$I$12*Weather!AM$21 + J76*Control!$I$13*Prices!AA$16 + J76*Control!$I$14*Prices!AA$18","v":233.13471131662448},{"$f":"K76+K76*Control!$I$12*Weather!AN$21 + K76*Control!$I$13*Prices!AB$16 + K76*Control!$I$14*Prices!AB$18","v":213.32807053479246},{"$f":"L76+L76*Control!$I$12*Weather!AO$21 + L76*Control!$I$13*Prices!AC$16 + L76*Control!$I$14*Prices!AC$18","v":219.99668818557868},{"$f":"M76+M76*Control!$I$12*Weather!AP$21 + M76*Control!$I$13*Prices!AD$16 + M76*Control!$I$14*Prices!AD$18","v":219.45159581659524},{"$f":"N76+N76*Control!$I$12*Weather!AQ$21 + N76*Control!$I$13*Prices!AE$16 + N76*Control!$I$14*Prices!AE$18","v":225.59043117180258},{"$f":"O76+O76*Control!$I$12*Weather!AR$21 + O76*Control!$I$13*Prices!AF$16 + O76*Control!$I$14*Prices!AF$18","v":225.86514664555145},{"$f":"P76+P76*Control!$I$12*Weather!AS$21 + P76*Control!$I$13*Prices!AG$16 + P76*Control!$I$14*Prices!AG$18","v":220.42260090460545},{"$f":"Q76+Q76*Control!$I$12*Weather!AT$21 + Q76*Control!$I$13*Prices!AH$16 + Q76*Control!$I$14*Prices!AH$18","v":206.65643335998129},{"$f":"R76+R76*Control!$I$12*Weather!AU$21 + R76*Control!$I$13*Prices!AI$16 + R76*Control!$I$14*Prices!AI$18","v":195.62588773549697},{"$f":"S76+S76*Control!$I$12*Weather!AV$21 + S76*Control!$I$13*Prices!AJ$16 + S76*Control!$I$14*Prices!AJ$18","v":188.17875265308842},{"$f":"T76+T76*Control!$I$12*Weather!AW$21 + T76*Control!$I$13*Prices!AK$16 + T76*Control!$I$14*Prices!AK$18","v":201.27698111204441},{"$f":"U76+U76*Control!$I$12*Weather!AX$21 + U76*Control!$I$13*Prices!AL$16 + U76*Control!$I$14*Prices!AL$18","v":201.83197330976103},{"$f":"V76+V76*Control!$I$12*Weather!AY$21 + V76*Control!$I$13*Prices!AM$16 + V76*Control!$I$14*Prices!AM$18","v":198.00550248998817},{"$f":"W76+W76*Control!$I$12*Weather!AZ$21 + W76*Control!$I$13*Prices!AN$16 + W76*Control!$I$14*Prices!AN$18","v":192.06822796167643},{"$f":"X76+X76*Control!$I$12*Weather!BA$21 + X76*Control!$I$13*Prices!AO$16 + X76*Control!$I$14*Prices!AO$18","v":213.32393460613224},{"$f":"Y76+Y76*Control!$I$12*Weather!BB$21 + Y76*Control!$I$13*Prices!AP$16 + Y76*Control!$I$14*Prices!AP$18","v":211.19570603764856},{"$f":"Z76+Z76*Control!$I$12*Weather!BC$21 + Z76*Control!$I$13*Prices!AQ$16 + Z76*Control!$I$14*Prices!AQ$18","v":207.93522052203755},{"$f":"AA76+AA76*Control!$I$12*Weather!BD$21 + AA76*Control!$I$13*Prices!AR$16 + AA76*Control!$I$14*Prices!AR$18","v":202.897444877564},{"$f":"AB76+AB76*Control!$I$12*Weather!BE$21 + AB76*Control!$I$13*Prices!AS$16 + AB76*Control!$I$14*Prices!AS$18","v":200.12464403998666},{"$f":"AC76+AC76*Control!$I$12*Weather!BF$21 + AC76*Control!$I$13*Prices!AT$16 + AC76*Control!$I$14*Prices!AT$18","v":200.77727045987271},{"$f":"AD76+AD76*Control!$I$12*Weather!BG$21 + AD76*Control!$I$13*Prices!AU$16 + AD76*Control!$I$14*Prices!AU$18","v":199.37807912847776},{"$f":"AE76+AE76*Control!$I$12*Weather!BH$21 + AE76*Control!$I$13*Prices!AV$16 + AE76*Control!$I$14*Prices!AV$18","v":193.80973121845733},{"$f":"AF76+AF76*Control!$I$12*Weather!BI$21 + AF76*Control!$I$13*Prices!AW$16 + AF76*Control!$I$14*Prices!AW$18","v":189.73313024945392},{"$f":"AG76+AG76*Control!$I$12*Weather!BJ$21 + AG76*Control!$I$13*Prices!AX$16 + AG76*Control!$I$14*Prices!AX$18","v":188.18597131180559},{"$f":"AH76+AH76*Control!$I$12*Weather!BK$21 + AH76*Control!$I$13*Prices!AY$16 + AH76*Control!$I$14*Prices!AY$18","v":186.29282117924737},{"$f":"AI76+AI76*Control!$I$12*Weather!BL$21 + AI76*Control!$I$13*Prices!AZ$16 + AI76*Control!$I$14*Prices!AZ$18","v":184.5584393984272},{"$f":"AJ76+AJ76*Control!$I$12*Weather!BM$21 + AJ76*Control!$I$13*Prices!BA$16 + AJ76*Control!$I$14*Prices!BA$18","v":183.38880314758728},{"$f":"AK76+AK76*Control!$I$12*Weather!BN$21 + AK76*Control!$I$13*Prices!BB$16 + AK76*Control!$I$14*Prices!BB$18","v":182.61788206652892},{"$f":"AL76+AL76*Control!$I$12*Weather!BO$21 + AL76*Control!$I$13*Prices!BC$16 + AL76*Control!$I$14*Prices!BC$18","v":182.00456966177234},{"$f":"AM76+AM76*Control!$I$12*Weather!BP$21 + AM76*Control!$I$13*Prices!BD$16 + AM76*Control!$I$14*Prices!BD$18","v":180.62941336625167},{"$f":"AN76+AN76*Control!$I$12*Weather!BQ$21 + AN76*Control!$I$13*Prices!BE$16 + AN76*Control!$I$14*Prices!BE$18","v":180.43794281160646},{"$f":"AO76+AO76*Control!$I$12*Weather!BR$21 + AO76*Control!$I$13*Prices!BF$16 + AO76*Control!$I$14*Prices!BF$18","v":178.6742725191688},{"$f":"AP76+AP76*Control!$I$12*Weather!BS$21 + AP76*Control!$I$13*Prices!BG$16 + AP76*Control!$I$14*Prices!BG$18","v":178.45358350233454},{"$f":"AQ76+AQ76*Control!$I$12*Weather!BT$21 + AQ76*Control!$I$13*Prices!BH$16 + AQ76*Control!$I$14*Prices!BH$18","v":178.23244048378209},{"$f":"AR76+AR76*Control!$I$12*Weather!BU$21 + AR76*Control!$I$13*Prices!BI$16 + AR76*Control!$I$14*Prices!BI$18","v":178.01083784965917},{"$f":"AS76+AS76*Control!$I$12*Weather!BV$21 + AS76*Control!$I$13*Prices!BJ$16 + AS76*Control!$I$14*Prices!BJ$18","v":177.78876990219177},{"$f":"AT76+AT76*Control!$I$12*Weather!BW$21 + AT76*Control!$I$13*Prices!BK$16 + AT76*Control!$I$14*Prices!BK$18","v":177.56623085795073},{"$f":"AU76+AU76*Control!$I$12*Weather!BX$21 + AU76*Control!$I$13*Prices!BL$16 + AU76*Control!$I$14*Prices!BL$18","v":177.34321484607364},{"$f":"AV76+AV76*Control!$I$12*Weather!BY$21 + AV76*Control!$I$13*Prices!BM$16 + AV76*Control!$I$14*Prices!BM$18","v":177.11971590643967},{"$f":"AW76+AW76*Control!$I$12*Weather!BZ$21 + AW76*Control!$I$13*Prices!BN$16 + AW76*Control!$I$14*Prices!BN$18","v":176.8957279877971},{"$f":"AX76+AX76*Control!$I$12*Weather!CA$21 + AX76*Control!$I$13*Prices!BO$16 + AX76*Control!$I$14*Prices!BO$18","v":176.67124494584016},{"$f":"AY76+AY76*Control!$I$12*Weather!CB$21 + AY76*Control!$I$13*Prices!BP$16 + AY76*Control!$I$14*Prices!BP$18","v":176.4462605412362},{"$f":"AZ76+AZ76*Control!$I$12*Weather!CC$21 + AZ76*Control!$I$13*Prices!BQ$16 + AZ76*Control!$I$14*Prices!BQ$18","v":176.22076843759851},{"$f":"BA76+BA76*Control!$I$12*Weather!CD$21 + BA76*Control!$I$13*Prices!BR$16 + BA76*Control!$I$14*Prices!BR$18","v":175.99476219940607},{"$f":"BB76+BB76*Control!$I$12*Weather!CE$21 + BB76*Control!$I$13*Prices!BS$16 + BB76*Control!$I$14*Prices!BS$18","v":175.76823528986588},{"$f":"BC76+BC76*Control!$I$12*Weather!CF$21 + BC76*Control!$I$13*Prices!BT$16 + BC76*Control!$I$14*Prices!BT$18","v":175.54118106871795},{"$f":"BD76+BD76*Control!$I$12*Weather!CG$21 + BD76*Control!$I$13*Prices!BU$16 + BD76*Control!$I$14*Prices!BU$18","v":175.31359278997974},{"$f":"BE76+BE76*Control!$I$12*Weather!CH$21 + BE76*Control!$I$13*Prices!BV$16 + BE76*Control!$I$14*Prices!BV$18","v":175.08546359962889},{"$f":"BF76+BF76*Control!$I$12*Weather!CI$21 + BF76*Control!$I$13*Prices!BW$16 + BF76*Control!$I$14*Prices!BW$18","v":174.85678653322162},{"$f":"BG76+BG76*Control!$I$12*Weather!CJ$21 + BG76*Control!$I$13*Prices!BX$16 + BG76*Control!$I$14*Prices!BX$18","v":174.6275545134452},{"$f":"BH76+BH76*Control!$I$12*Weather!CK$21 + BH76*Control!$I$13*Prices!BY$16 + BH76*Control!$I$14*Prices!BY$18","v":174.39776034760135},{"$f":"BI76+BI76*Control!$I$12*Weather!CL$21 + BI76*Control!$I$13*Prices!BZ$16 + BI76*Control!$I$14*Prices!BZ$18","v":174.1673967250197},{"$f":"BJ76+BJ76*Control!$I$12*Weather!CM$21 + BJ76*Control!$I$13*Prices!CA$16 + BJ76*Control!$I$14*Prices!CA$18","v":173.9364562143972},{"$f":"BK76+BK76*Control!$I$12*Weather!CN$21 + BK76*Control!$I$13*Prices!CB$16 + BK76*Control!$I$14*Prices!CB$18","v":173.70493126106251},{"$f":"BL76+BL76*Control!$I$12*Weather!CO$21 + BL76*Control!$I$13*Prices!CC$16 + BL76*Control!$I$14*Prices!CC$18","v":173.47281418416117},{"$f":"BM76+BM76*Control!$I$12*Weather!CP$21 + BM76*Control!$I$13*Prices!CD$16 + BM76*Control!$I$14*Prices!CD$18","v":173.24009717376089},{"$f":"BN76+BN76*Control!$I$12*Weather!CQ$21 + BN76*Control!$I$13*Prices!CE$16 + BN76*Control!$I$14*Prices!CE$18","v":173.00677228787188},{"$f":"BO76+BO76*Control!$I$12*Weather!CR$21 + BO76*Control!$I$13*Prices!CF$16 + BO76*Control!$I$14*Prices!CF$18","v":172.7728314493809},{"$f":"BP76+BP76*Control!$I$12*Weather!CS$21 + BP76*Control!$I$13*Prices!CG$16 + BP76*Control!$I$14*Prices!CG$18","v":172.53826644289524},{"$f":"BQ76+BQ76*Control!$I$12*Weather!CT$21 + BQ76*Control!$I$13*Prices!CH$16 + BQ76*Control!$I$14*Prices!CH$18","v":172.30306891149388},{"$f":"BR76+BR76*Control!$I$12*Weather!CU$21 + BR76*Control!$I$13*Prices!CI$16 + BR76*Control!$I$14*Prices!CI$18","v":172.06723035338155},{"$f":"BS76+BS76*Control!$I$12*Weather!CV$21 + BS76*Control!$I$13*Prices!CJ$16 + BS76*Control!$I$14*Prices!CJ$18","v":171.83074211844388},{"$f":"BT76+BT76*Control!$I$12*Weather!CW$21 + BT76*Control!$I$13*Prices!CK$16 + BT76*Control!$I$14*Prices!CK$18","v":171.59359540469794},{"$f":"BU76+BU76*Control!$I$12*Weather!CX$21 + BU76*Control!$I$13*Prices!CL$16 + BU76*Control!$I$14*Prices!CL$18","v":171.35578125463664},{"$f":"BV76+BV76*Control!$I$12*Weather!CY$21 + BV76*Control!$I$13*Prices!CM$16 + BV76*Control!$I$14*Prices!CM$18","v":171.11729055146066},{"$f":"BW76+BW76*Control!$I$12*Weather!CZ$21 + BW76*Control!$I$13*Prices!CN$16 + BW76*Control!$I$14*Prices!CN$18","v":170.87811401519639},{"$f":"BX76+BX76*Control!$I$12*Weather!DA$21 + BX76*Control!$I$13*Prices!CO$16 + BX76*Control!$I$14*Prices!CO$18","v":170.63824219869309},{"$f":"BY76+BY76*Control!$I$12*Weather!DB$21 + BY76*Control!$I$13*Prices!CP$16 + BY76*Control!$I$14*Prices!CP$18","v":170.39766548349687},{"$f":"BZ76+BZ76*Control!$I$12*Weather!DC$21 + BZ76*Control!$I$13*Prices!CQ$16 + BZ76*Control!$I$14*Prices!CQ$18","v":170.15637407559521},{"$f":"CA76+CA76*Control!$I$12*Weather!DD$21 + CA76*Control!$I$13*Prices!CR$16 + CA76*Control!$I$14*Prices!CR$18","v":169.91435800102872},{"$f":"CB76+CB76*Control!$I$12*Weather!DE$21 + CB76*Control!$I$13*Prices!CS$16 + CB76*Control!$I$14*Prices!CS$18","v":169.67160710136315},{"$f":"CC76+CC76*Control!$I$12*Weather!DF$21 + CC76*Control!$I$13*Prices!CT$16 + CC76*Control!$I$14*Prices!CT$18","v":169.42811102901865},{"$f":"CD76+CD76*Control!$I$12*Weather!DG$21 + CD76*Control!$I$13*Prices!CU$16 + CD76*Control!$I$14*Prices!CU$18","v":169.18385924244808},{"$f":"CE76+CE76*Control!$I$12*Weather!DH$21 + CE76*Control!$I$13*Prices!CV$16 + CE76*Control!$I$14*Prices!CV$18","v":168.93884100116139},{"$f":"CF76+CF76*Control!$I$12*Weather!DI$21 + CF76*Control!$I$13*Prices!CW$16 + CF76*Control!$I$14*Prices!CW$18","v":168.69304536058718},{"$f":"CG76+CG76*Control!$I$12*Weather!DJ$21 + CG76*Control!$I$13*Prices!CX$16 + CG76*Control!$I$14*Prices!CX$18","v":168.44646116676773},{"$f":"CH76+CH76*Control!$I$12*Weather!DK$21 + CH76*Control!$I$13*Prices!CY$16 + CH76*Control!$I$14*Prices!CY$18","v":168.19907705087843},{"$f":"CI76+CI76*Control!$I$12*Weather!DL$21 + CI76*Control!$I$13*Prices!CZ$16 + CI76*Control!$I$14*Prices!CZ$18","v":167.95088142356687},{"$f":"CJ76+CJ76*Control!$I$12*Weather!DM$21 + CJ76*Control!$I$13*Prices!DA$16 + CJ76*Control!$I$14*Prices!DA$18","v":167.70186246910225},{"$f":"CK76+CK76*Control!$I$12*Weather!DN$21 + CK76*Control!$I$13*Prices!DB$16 + CK76*Control!$I$14*Prices!DB$18","v":167.45200813932942}]
["Boroondara (C)",{"$f":"'Volume per connection'!B75","v":142.64594235692653},{"$f":"'Volume per connection'!C75","v":322.2061865588737},{"$f":"'Volume per connection'!D75","v":452.44747173913049},{"$f":"'Volume per connection'!E75","v":411.8695677419355},{"$f":"'Volume per connection'!F75","v":385.65517735042732},{"$f":"'Volume per connection'!G75","v":415.27817746478871},{"$f":"'Volume per connection'!H75","v":321.25463795518209},{"$f":"'Volume per connection'!I75","v":303.23362638888892},{"$f":"'Volume per connection'!J75","v":296.79421558988764},{"$f":"J77+J77*Control!$I$12*Weather!AM$21 + J77*Control!$I$13*Prices!AA$16 + J77*Control!$I$14*Prices!AA$18","v":278.45727152502297},{"$f":"K77+K77*Control!$I$12*Weather!AN$21 + K77*Control!$I$13*Prices!AB$16 + K77*Control!$I$14*Prices!AB$18","v":254.80012017661329},{"$f":"L77+L77*Control!$I$12*Weather!AO$21 + L77*Control!$I$13*Prices!AC$16 + L77*Control!$I$14*Prices!AC$18","v":262.765150632158},{"$f":"M77+M77*Control!$I$12*Weather!AP$21 + M77*Control!$I$13*Prices!AD$16 + M77*Control!$I$14*Prices!AD$18","v":262.11408956562252},{"$f":"N77+N77*Control!$I$12*Weather!AQ$21 + N77*Control!$I$13*Prices!AE$16 + N77*Control!$I$14*Prices!AE$18","v":269.44634538329359},{"$f":"O77+O77*Control!$I$12*Weather!AR$21 + O77*Control!$I$13*Prices!AF$16 + O77*Control!$I$14*Prices!AF$18","v":269.77446692655849},{"$f":"P77+P77*Control!$I$12*Weather!AS$21 + P77*Control!$I$13*Prices!AG$16 + P77*Control!$I$14*Prices!AG$18","v":263.27386292548505},{"$f":"Q77+Q77*Control!$I$12*Weather!AT$21 + Q77*Control!$I$13*Prices!AH$16 + Q77*Control!$I$14*Prices!AH$18","v":246.83148318638942},{"$f":"R77+R77*Control!$I$12*Weather!AU$21 + R77*Control!$I$13*Prices!AI$16 + R77*Control!$I$14*Prices!AI$18","v":233.65654402490745},{"$f":"S77+S77*Control!$I$12*Weather!AV$21 + S77*Control!$I$13*Prices!AJ$16 + S77*Control!$I$14*Prices!AJ$18","v":224.76164843422288},{"$f":"T77+T77*Control!$I$12*Weather!AW$21 + T77*Control!$I$13*Prices!AK$16 + T77*Control!$I$14*Prices!AK$18","v":240.40623837063447},{"$f":"U77+U77*Control!$I$12*Weather!AX$21 + U77*Control!$I$13*Prices!AL$16 + U77*Control!$I$14*Prices!AL$18","v":241.06912384239052},{"$f":"V77+V77*Control!$I$12*Weather!AY$21 + V77*Control!$I$13*Prices!AM$16 + V77*Control!$I$14*Prices!AM$18","v":236.49876785367215},{"$f":"W77+W77*Control!$I$12*Weather!AZ$21 + W77*Control!$I$13*Prices!AN$16 + W77*Control!$I$14*Prices!AN$18","v":229.40725730120289},{"$f":"X77+X77*Control!$I$12*Weather!BA$21 + X77*Control!$I$13*Prices!AO$16 + X77*Control!$I$14*Prices!AO$18","v":254.79518020262373},{"$f":"Y77+Y77*Control!$I$12*Weather!BB$21 + Y77*Control!$I$13*Prices!AP$16 + Y77*Control!$I$14*Prices!AP$18","v":252.25321329853313},{"$f":"Z77+Z77*Control!$I$12*Weather!BC$21 + Z77*Control!$I$13*Prices!AQ$16 + Z77*Control!$I$14*Prices!AQ$18","v":248.35887300318834},{"$f":"AA77+AA77*Control!$I$12*Weather!BD$21 + AA77*Control!$I$13*Prices!AR$16 + AA77*Control!$I$14*Prices!AR$18","v":242.34172844074632},{"$f":"AB77+AB77*Control!$I$12*Weather!BE$21 + AB77*Control!$I$13*Prices!AS$16 + AB77*Control!$I$14*Prices!AS$18","v":239.02988117718942},{"$f":"AC77+AC77*Control!$I$12*Weather!BF$21 + AC77*Control!$I$13*Prices!AT$16 + AC77*Control!$I$14*Prices!AT$18","v":239.80938145486283},{"$f":"AD77+AD77*Control!$I$12*Weather!BG$21 + AD77*Control!$I$13*Prices!AU$16 + AD77*Control!$I$14*Prices!AU$18","v":238.13818029274779},{"$f":"AE77+AE77*Control!$I$12*Weather!BH$21 + AE77*Control!$I$13*Prices!AV$16 + AE77*Control!$I$14*Prices!AV$18","v":231.48731754832994},{"$f":"AF77+AF77*Control!$I$12*Weather!BI$21 + AF77*Control!$I$13*Prices!AW$16 + AF77*Control!$I$14*Prices!AW$18","v":226.6182048515798},{"$f":"AG77+AG77*Control!$I$12*Weather!BJ$21 + AG77*Control!$I$13*Prices!AX$16 + AG77*Control!$I$14*Prices!AX$18","v":224.77027043649392},{"$f":"AH77+AH77*Control!$I$12*Weather!BK$21 + AH77*Control!$I$13*Prices!AY$16 + AH77*Control!$I$14*Prices!AY$18","v":222.50908239837526},{"$f":"AI77+AI77*Control!$I$12*Weather!BL$21 + AI77*Control!$I$13*Prices!AZ$16 + AI77*Control!$I$14*Prices!AZ$18","v":220.43752807794635},{"$f":"AJ77+AJ77*Control!$I$12*Weather!BM$21 + AJ77*Control!$I$13*Prices!BA$16 + AJ77*Control!$I$14*Prices!BA$18","v":219.04050865837431},{"$f":"AK77+AK77*Control!$I$12*Weather!BN$21 + AK77*Control!$I$13*Prices!BB$16 + AK77*Control!$I$14*Prices!BB$18","v":218.11971664254665},{"$f":"AL77+AL77*Control!$I$12*Weather!BO$21 + AL77*Control!$I$13*Prices!BC$16 + AL77*Control!$I$14*Prices!BC$18","v":217.38717322223616},{"$f":"AM77+AM77*Control!$I$12*Weather!BP$21 + AM77*Control!$I$13*Prices!BD$16 + AM77*Control!$I$14*Prices!BD$18","v":215.74467962783058},{"$f":"AN77+AN77*Control!$I$12*Weather!BQ$21 + AN77*Control!$I$13*Prices!BE$16 + AN77*Control!$I$14*Prices!BE$18","v":215.51598623454396},{"$f":"AO77+AO77*Control!$I$12*Weather!BR$21 + AO77*Control!$I$13*Prices!BF$16 + AO77*Control!$I$14*Prices!BF$18","v":213.40944956856055},{"$f":"AP77+AP77*Control!$I$12*Weather!BS$21 + AP77*Control!$I$13*Prices!BG$16 + AP77*Control!$I$14*Prices!BG$18","v":213.14585749710901},{"$f":"AQ77+AQ77*Control!$I$12*Weather!BT$21 + AQ77*Control!$I$13*Prices!BH$16 + AQ77*Control!$I$14*Prices!BH$18","v":212.88172316372226},{"$f":"AR77+AR77*Control!$I$12*Weather!BU$21 + AR77*Control!$I$13*Prices!BI$16 + AR77*Control!$I$14*Prices!BI$18","v":212.61703986318699},{"$f":"AS77+AS77*Control!$I$12*Weather!BV$21 + AS77*Control!$I$13*Prices!BJ$16 + AS77*Control!$I$14*Prices!BJ$18","v":212.3518007900532},{"$f":"AT77+AT77*Control!$I$12*Weather!BW$21 + AT77*Control!$I$13*Prices!BK$16 + AT77*Control!$I$14*Prices!BK$18","v":212.08599903656403},{"$f":"AU77+AU77*Control!$I$12*Weather!BX$21 + AU77*Control!$I$13*Prices!BL$16 + AU77*Control!$I$14*Prices!BL$18","v":211.81962759053195},{"$f":"AV77+AV77*Control!$I$12*Weather!BY$21 + AV77*Control!$I$13*Prices!BM$16 + AV77*Control!$I$14*Prices!BM$18","v":211.55267933315864},{"$f":"AW77+AW77*Control!$I$12*Weather!BZ$21 + AW77*Control!$I$13*Prices!BN$16 + AW77*Control!$I$14*Prices!BN$18","v":211.28514703679861},{"$f":"AX77+AX77*Control!$I$12*Weather!CA$21 + AX77*Control!$I$13*Prices!BO$16 + AX77*Control!$I$14*Prices!BO$18","v":211.01702336266209},{"$f":"AY77+AY77*Control!$I$12*Weather!CB$21 + AY77*Control!$I$13*Prices!BP$16 + AY77*Control!$I$14*Prices!BP$18","v":210.74830085845886},{"$f":"AZ77+AZ77*Control!$I$12*Weather!CC$21 + AZ77*Control!$I$13*Prices!BQ$16 + AZ77*Control!$I$14*Prices!BQ$18","v":210.47897195597673},{"$f":"BA77+BA77*Control!$I$12*Weather!CD$21 + BA77*Control!$I$13*Prices!BR$16 + BA77*Control!$I$14*Prices!BR$18","v":210.2090289685971},{"$f":"BB77+BB77*Control!$I$12*Weather!CE$21 + BB77*Control!$I$13*Prices!BS$16 + BB77*Control!$I$14*Prices!BS$18","v":209.93846408874148},{"$f":"BC77+BC77*Control!$I$12*Weather!CF$21 + BC77*Control!$I$13*Prices!BT$16 + BC77*Control!$I$14*Prices!BT$18","v":209.66726938524997},{"$f":"BD77+BD77*Control!$I$12*Weather!CG$21 + BD77*Control!$I$13*Prices!BU$16 + BD77*Control!$I$14*Prices!BU$18","v":209.39543680068709},{"$f":"BE77+BE77*Control!$I$12*Weather!CH$21 + BE77*Control!$I$13*Prices!BV$16 + BE77*Control!$I$14*Prices!BV$18","v":209.1229581485741},{"$f":"BF77+BF77*Control!$I$12*Weather!CI$21 + BF77*Control!$I$13*Prices!BW$16 + BF77*Control!$I$14*Prices!BW$18","v":208.84982511054429},{"$f":"BG77+BG77*Control!$I$12*Weather!CJ$21 + BG77*Control!$I$13*Prices!BX$16 + BG77*Control!$I$14*Prices!BX$18","v":208.57602923341975},{"$f":"BH77+BH77*Control!$I$12*Weather!CK$21 + BH77*Control!$I$13*Prices!BY$16 + BH77*Control!$I$14*Prices!BY$18","v":208.30156192620547},{"$f":"BI77+BI77*Control!$I$12*Weather!CL$21 + BI77*Control!$I$13*Prices!BZ$16 + BI77*Control!$I$14*Prices!BZ$18","v":208.02641445700004},{"$f":"BJ77+BJ77*Control!$I$12*Weather!CM$21 + BJ77*Control!$I$13*Prices!CA$16 + BJ77*Control!$I$14*Prices!CA$18","v":207.75057794981774},{"$f":"BK77+BK77*Control!$I$12*Weather!CN$21 + BK77*Control!$I$13*Prices!CB$16 + BK77*Control!$I$14*Prices!CB$18","v":207.47404338132111},{"$f":"BL77+BL77*Control!$I$12*Weather!CO$21 + BL77*Control!$I$13*Prices!CC$16 + BL77*Control!$I$14*Prices!CC$18","v":207.19680157745893},{"$f":"BM77+BM77*Control!$I$12*Weather!CP$21 + BM77*Control!$I$13*Prices!CD$16 + BM77*Control!$I$14*Prices!CD$18","v":206.91884321000882},{"$f":"BN77+BN77*Control!$I$12*Weather!CQ$21 + BN77*Control!$I$13*Prices!CE$16 + BN77*Control!$I$14*Prices!CE$18","v":206.64015879301823},{"$f":"BO77+BO77*Control!$I$12*Weather!CR$21 + BO77*Control!$I$13*Prices!CF$16 + BO77*Control!$I$14*Prices!CF$18","v":206.36073867914251},{"$f":"BP77+BP77*Control!$I$12*Weather!CS$21 + BP77*Control!$I$13*Prices!CG$16 + BP77*Control!$I$14*Prices!CG$18","v":206.08057305587528},{"$f":"BQ77+BQ77*Control!$I$12*Weather!CT$21 + BQ77*Control!$I$13*Prices!CH$16 + BQ77*Control!$I$14*Prices!CH$18","v":205.79965194166806},{"$f":"BR77+BR77*Control!$I$12*Weather!CU$21 + BR77*Control!$I$13*Prices!CI$16 + BR77*Control!$I$14*Prices!CI$18","v":205.51796518193382},{"$f":"BS77+BS77*Control!$I$12*Weather!CV$21 + BS77*Control!$I$13*Prices!CJ$16 + BS77*Control!$I$14*Prices!CJ$18","v":205.23550244493248},{"$f":"BT77+BT77*Control!$I$12*Weather!CW$21 + BT77*Control!$I$13*Prices!CK$16 + BT77*Control!$I$14*Prices!CK$18","v":204.95225321753134},{"$f":"BU77+BU77*Control!$I$12*Weather!CX$21 + BU77*Control!$I$13*Prices!CL$16 + BU77*Control!$I$14*Prices!CL$18","v":204.6682068008389},{"$f":"BV77+BV77*Control!$I$12*Weather!CY$21 + BV77*Control!$I$13*Prices!CM$16 + BV77*Control!$I$14*Prices!CM$18","v":204.38335230570422},{"$f":"BW77+BW77*Control!$I$12*Weather!CZ$21 + BW77*Control!$I$13*Prices!CN$16 + BW77*Control!$I$14*Prices!CN$18","v":204.09767864808015},{"$f":"BX77+BX77*Control!$I$12*Weather!DA$21 + BX77*Control!$I$13*Prices!CO$16 + BX77*Control!$I$14*Prices!CO$18","v":203.81117454424233},{"$f":"BY77+BY77*Control!$I$12*Weather!DB$21 + BY77*Control!$I$13*Prices!CP$16 + BY77*Control!$I$14*Prices!CP$18","v":203.52382850586105},{"$f":"BZ77+BZ77*Control!$I$12*Weather!DC$21 + BZ77*Control!$I$13*Prices!CQ$16 + BZ77*Control!$I$14*Prices!CQ$18","v":203.23562883491854},{"$f":"CA77+CA77*Control!$I$12*Weather!DD$21 + CA77*Control!$I$13*Prices!CR$16 + CA77*Control!$I$14*Prices!CR$18","v":202.94656361846754},{"$f":"CB77+CB77*Control!$I$12*Weather!DE$21 + CB77*Control!$I$13*Prices!CS$16 + CB77*Control!$I$14*Prices!CS$18","v":202.65662072322311},{"$f":"CC77+CC77*Control!$I$12*Weather!DF$21 + CC77*Control!$I$13*Prices!CT$16 + CC77*Control!$I$14*Prices!CT$18","v":202.36578778998381},{"$f":"CD77+CD77*Control!$I$12*Weather!DG$21 + CD77*Control!$I$13*Prices!CU$16 + CD77*Control!$I$14*Prices!CU$18","v":202.07405222787278},{"$f":"CE77+CE77*Control!$I$12*Weather!DH$21 + CE77*Control!$I$13*Prices!CV$16 + CE77*Control!$I$14*Prices!CV$18","v":201.78140120839464},{"$f":"CF77+CF77*Control!$I$12*Weather!DI$21 + CF77*Control!$I$13*Prices!CW$16 + CF77*Control!$I$14*Prices!CW$18","v":201.48782165929831},{"$f":"CG77+CG77*Control!$I$12*Weather!DJ$21 + CG77*Control!$I$13*Prices!CX$16 + CG77*Control!$I$14*Prices!CX$18","v":201.19330025824058},{"$f":"CH77+CH77*Control!$I$12*Weather!DK$21 + CH77*Control!$I$13*Prices!CY$16 + CH77*Control!$I$14*Prices!CY$18","v":200.89782342624014},{"$f":"CI77+CI77*Control!$I$12*Weather!DL$21 + CI77*Control!$I$13*Prices!CZ$16 + CI77*Control!$I$14*Prices!CZ$18","v":200.60137732091627},{"$f":"CJ77+CJ77*Control!$I$12*Weather!DM$21 + CJ77*Control!$I$13*Prices!DA$16 + CJ77*Control!$I$14*Prices!DA$18","v":200.30394782950066},{"$f":"CK77+CK77*Control!$I$12*Weather!DN$21 + CK77*Control!$I$13*Prices!DB$16 + CK77*Control!$I$14*Prices!DB$18","v":200.00552056161618}]
["Cardinia (S)",{"$f":"'Volume per connection'!B76","v":63.673144622776974},{"$f":"'Volume per connection'!C76","v":118.10076663580774},{"$f":"'Volume per connection'!D76","v":179.00550999999999},{"$f":"'Volume per connection'!E76","v":187.99221},{"$f":"'Volume per connection'!F76","v":193.41074257425743},{"$f":"'Volume per connection'!G76","v":214.97794845360826},{"$f":"'Volume per connection'!H76","v":208.68048421052632},{"$f":"'Volume per connection'!I76","v":177.84143820224719},{"$f":"'Volume per connection'!J76","v":160.83329213483145},{"$f":"J78+J78*Control!$I$12*Weather!AM$21 + J78*Control!$I$13*Prices!AA$16 + J78*Control!$I$14*Prices!AA$18","v":150.89647084004025},{"$f":"K78+K78*Control!$I$12*Weather!AN$21 + K78*Control!$I$13*Prices!AB$16 + K78*Control!$I$14*Prices!AB$18","v":138.07662013528699},{"$f":"L78+L78*Control!$I$12*Weather!AO$21 + L78*Control!$I$13*Prices!AC$16 + L78*Control!$I$14*Prices!AC$18","v":142.39288373757228},{"$f":"M78+M78*Control!$I$12*Weather!AP$21 + M78*Control!$I$13*Prices!AD$16 + M78*Control!$I$14*Prices!AD$18","v":142.04007263408232},{"$f":"N78+N78*Control!$I$12*Weather!AQ$21 + N78*Control!$I$13*Prices!AE$16 + N78*Control!$I$14*Prices!AE$18","v":146.01343457978928},{"$f":"O78+O78*Control!$I$12*Weather!AR$21 + O78*Control!$I$13*Prices!AF$16 + O78*Control!$I$14*Prices!AF$18","v":146.19124420427525},{"$f":"P78+P78*Control!$I$12*Weather!AS$21 + P78*Control!$I$13*Prices!AG$16 + P78*Control!$I$14*Prices!AG$18","v":142.66855579783336},{"$f":"Q78+Q78*Control!$I$12*Weather!AT$21 + Q78*Control!$I$13*Prices!AH$16 + Q78*Control!$I$14*Prices!AH$18","v":133.75840214570167},{"$f":"R78+R78*Control!$I$12*Weather!AU$21 + R78*Control!$I$13*Prices!AI$16 + R78*Control!$I$14*Prices!AI$18","v":126.61888012096901},{"$f":"S78+S78*Control!$I$12*Weather!AV$21 + S78*Control!$I$13*Prices!AJ$16 + S78*Control!$I$14*Prices!AJ$18","v":121.79872101442429},{"$f":"T78+T78*Control!$I$12*Weather!AW$21 + T78*Control!$I$13*Prices!AK$16 + T78*Control!$I$14*Prices!AK$18","v":130.27655101044212},{"$f":"U78+U78*Control!$I$12*Weather!AX$21 + U78*Control!$I$13*Prices!AL$16 + U78*Control!$I$14*Prices!AL$18","v":130.63576977930859},{"$f":"V78+V78*Control!$I$12*Weather!AY$21 + V78*Control!$I$13*Prices!AM$16 + V78*Control!$I$14*Prices!AM$18","v":128.15908606620872},{"$f":"W78+W78*Control!$I$12*Weather!AZ$21 + W78*Control!$I$13*Prices!AN$16 + W78*Control!$I$14*Prices!AN$18","v":124.31618439073083},{"$f":"X78+X78*Control!$I$12*Weather!BA$21 + X78*Control!$I$13*Prices!AO$16 + X78*Control!$I$14*Prices!AO$18","v":138.07394315494818},{"$f":"Y78+Y78*Control!$I$12*Weather!BB$21 + Y78*Control!$I$13*Prices!AP$16 + Y78*Control!$I$14*Prices!AP$18","v":136.69644694980781},{"$f":"Z78+Z78*Control!$I$12*Weather!BC$21 + Z78*Control!$I$13*Prices!AQ$16 + Z78*Control!$I$14*Prices!AQ$18","v":134.58609729508572},{"$f":"AA78+AA78*Control!$I$12*Weather!BD$21 + AA78*Control!$I$13*Prices!AR$16 + AA78*Control!$I$14*Prices!AR$18","v":131.3253963838321},{"$f":"AB78+AB78*Control!$I$12*Weather!BE$21 + AB78*Control!$I$13*Prices!AS$16 + AB78*Control!$I$14*Prices!AS$18","v":129.5307006975064},{"$f":"AC78+AC78*Control!$I$12*Weather!BF$21 + AC78*Control!$I$13*Prices!AT$16 + AC78*Control!$I$14*Prices!AT$18","v":129.95311322879195},{"$f":"AD78+AD78*Control!$I$12*Weather!BG$21 + AD78*Control!$I$13*Prices!AU$16 + AD78*Control!$I$14*Prices!AU$18","v":129.04748646585688},{"$f":"AE78+AE78*Control!$I$12*Weather!BH$21 + AE78*Control!$I$13*Prices!AV$16 + AE78*Control!$I$14*Prices!AV$18","v":125.44337258986505},{"$f":"AF78+AF78*Control!$I$12*Weather!BI$21 + AF78*Control!$I$13*Prices!AW$16 + AF78*Control!$I$14*Prices!AW$18","v":122.80479210662563},{"$f":"AG78+AG78*Control!$I$12*Weather!BJ$21 + AG78*Control!$I$13*Prices!AX$16 + AG78*Control!$I$14*Prices!AX$18","v":121.80339329217499},{"$f":"AH78+AH78*Control!$I$12*Weather!BK$21 + AH78*Control!$I$13*Prices!AY$16 + AH78*Control!$I$14*Prices!AY$18","v":120.57805163386904},{"$f":"AI78+AI78*Control!$I$12*Weather!BL$21 + AI78*Control!$I$13*Prices!AZ$16 + AI78*Control!$I$14*Prices!AZ$18","v":119.45547281093437},{"$f":"AJ78+AJ78*Control!$I$12*Weather!BM$21 + AJ78*Control!$I$13*Prices!BA$16 + AJ78*Control!$I$14*Prices!BA$18","v":118.69842560238453},{"$f":"AK78+AK78*Control!$I$12*Weather!BN$21 + AK78*Control!$I$13*Prices!BB$16 + AK78*Control!$I$14*Prices!BB$18","v":118.19944683697062},{"$f":"AL78+AL78*Control!$I$12*Weather!BO$21 + AL78*Control!$I$13*Prices!BC$16 + AL78*Control!$I$14*Prices!BC$18","v":117.8024803068579},{"$f":"AM78+AM78*Control!$I$12*Weather!BP$21 + AM78*Control!$I$13*Prices!BD$16 + AM78*Control!$I$14*Prices!BD$18","v":116.91241022387608},{"$f":"AN78+AN78*Control!$I$12*Weather!BQ$21 + AN78*Control!$I$13*Prices!BE$16 + AN78*Control!$I$14*Prices!BE$18","v":116.78848088361362},{"$f":"AO78+AO78*Control!$I$12*Weather!BR$21 + AO78*Control!$I$13*Prices!BF$16 + AO78*Control!$I$14*Prices!BF$18","v":115.64694506789878},{"$f":"AP78+AP78*Control!$I$12*Weather!BS$21 + AP78*Control!$I$13*Prices!BG$16 + AP78*Control!$I$14*Prices!BG$18","v":115.5041040743574},{"$f":"AQ78+AQ78*Control!$I$12*Weather!BT$21 + AQ78*Control!$I$13*Prices!BH$16 + AQ78*Control!$I$14*Prices!BH$18","v":115.36096922814755},{"$f":"AR78+AR78*Control!$I$12*Weather!BU$21 + AR78*Control!$I$13*Prices!BI$16 + AR78*Control!$I$14*Prices!BI$18","v":115.21753689570269},{"$f":"AS78+AS78*Control!$I$12*Weather!BV$21 + AS78*Control!$I$13*Prices!BJ$16 + AS78*Control!$I$14*Prices!BJ$18","v":115.07380338913784},{"$f":"AT78+AT78*Control!$I$12*Weather!BW$21 + AT78*Control!$I$13*Prices!BK$16 + AT78*Control!$I$14*Prices!BK$18","v":114.92976496512775},{"$f":"AU78+AU78*Control!$I$12*Weather!BX$21 + AU78*Control!$I$13*Prices!BL$16 + AU78*Control!$I$14*Prices!BL$18","v":114.78541782375605},{"$f":"AV78+AV78*Control!$I$12*Weather!BY$21 + AV78*Control!$I$13*Prices!BM$16 + AV78*Control!$I$14*Prices!BM$18","v":114.64075810733377},{"$f":"AW78+AW78*Control!$I$12*Weather!BZ$21 + AW78*Control!$I$13*Prices!BN$16 + AW78*Control!$I$14*Prices!BN$18","v":114.49578189918748},{"$f":"AX78+AX78*Control!$I$12*Weather!CA$21 + AX78*Control!$I$13*Prices!BO$16 + AX78*Control!$I$14*Prices!BO$18","v":114.35048522241448},{"$f":"AY78+AY78*Control!$I$12*Weather!CB$21 + AY78*Control!$I$13*Prices!BP$16 + AY78*Control!$I$14*Prices!BP$18","v":114.20486403860595},{"$f":"AZ78+AZ78*Control!$I$12*Weather!CC$21 + AZ78*Control!$I$13*Prices!BQ$16 + AZ78*Control!$I$14*Prices!BQ$18","v":114.05891424653481},{"$f":"BA78+BA78*Control!$I$12*Weather!CD$21 + BA78*Control!$I$13*Prices!BR$16 + BA78*Control!$I$14*Prices!BR$18","v":113.9126316808093},{"$f":"BB78+BB78*Control!$I$12*Weather!CE$21 + BB78*Control!$I$13*Prices!BS$16 + BB78*Control!$I$14*Prices!BS$18","v":113.76601211048933},{"$f":"BC78+BC78*Control!$I$12*Weather!CF$21 + BC78*Control!$I$13*Prices!BT$16 + BC78*Control!$I$14*Prices!BT$18","v":113.61905123766579},{"$f":"BD78+BD78*Control!$I$12*Weather!CG$21 + BD78*Control!$I$13*Prices!BU$16 + BD78*Control!$I$14*Prices!BU$18","v":113.47174469600064},{"$f":"BE78+BE78*Control!$I$12*Weather!CH$21 + BE78*Control!$I$13*Prices!BV$16 + BE78*Control!$I$14*Prices!BV$18","v":113.32408804922709},{"$f":"BF78+BF78*Control!$I$12*Weather!CI$21 + BF78*Control!$I$13*Prices!BW$16 + BF78*Control!$I$14*Prices!BW$18","v":113.17607678960798},{"$f":"BG78+BG78*Control!$I$12*Weather!CJ$21 + BG78*Control!$I$13*Prices!BX$16 + BG78*Control!$I$14*Prices!BX$18","v":113.0277063363518},{"$f":"BH78+BH78*Control!$I$12*Weather!CK$21 + BH78*Control!$I$13*Prices!BY$16 + BH78*Control!$I$14*Prices!BY$18","v":112.87897203398367},{"$f":"BI78+BI78*Control!$I$12*Weather!CL$21 + BI78*Control!$I$13*Prices!BZ$16 + BI78*Control!$I$14*Prices!BZ$18","v":112.72986915067135},{"$f":"BJ78+BJ78*Control!$I$12*Weather!CM$21 + BJ78*Control!$I$13*Prices!CA$16 + BJ78*Control!$I$14*Prices!CA$18","v":112.58039287650296},{"$f":"BK78+BK78*Control!$I$12*Weather!CN$21 + BK78*Control!$I$13*Prices!CB$16 + BK78*Control!$I$14*Prices!CB$18","v":112.43053832171657},{"$f":"BL78+BL78*Control!$I$12*Weather!CO$21 + BL78*Control!$I$13*Prices!CC$16 + BL78*Control!$I$14*Prices!CC$18","v":112.28030051487815},{"$f":"BM78+BM78*Control!$I$12*Weather!CP$21 + BM78*Control!$I$13*Prices!CD$16 + BM78*Control!$I$14*Prices!CD$18","v":112.12967440100807},{"$f":"BN78+BN78*Control!$I$12*Weather!CQ$21 + BN78*Control!$I$13*Prices!CE$16 + BN78*Control!$I$14*Prices!CE$18","v":111.97865483965245},{"$f":"BO78+BO78*Control!$I$12*Weather!CR$21 + BO78*Control!$I$13*Prices!CF$16 + BO78*Control!$I$14*Prices!CF$18","v":111.82723660289874},{"$f":"BP78+BP78*Control!$I$12*Weather!CS$21 + BP78*Control!$I$13*Prices!CG$16 + BP78*Control!$I$14*Prices!CG$18","v":111.67541437333298},{"$f":"BQ78+BQ78*Control!$I$12*Weather!CT$21 + BQ78*Control!$I$13*Prices!CH$16 + BQ78*Control!$I$14*Prices!CH$18","v":111.52318274193702},{"$f":"BR78+BR78*Control!$I$12*Weather!CU$21 + BR78*Control!$I$13*Prices!CI$16 + BR78*Control!$I$14*Prices!CI$18","v":111.37053620592282},{"$f":"BS78+BS78*Control!$I$12*Weather!CV$21 + BS78*Control!$I$13*Prices!CJ$16 + BS78*Control!$I$14*Prices!CJ$18","v":111.21746916650277},{"$f":"BT78+BT78*Control!$I$12*Weather!CW$21 + BT78*Control!$I$13*Prices!CK$16 + BT78*Control!$I$14*Prices!CK$18","v":111.06397592659231},{"$f":"BU78+BU78*Control!$I$12*Weather!CX$21 + BU78*Control!$I$13*Prices!CL$16 + BU78*Control!$I$14*Prices!CL$18","v":110.9100506884439},{"$f":"BV78+BV78*Control!$I$12*Weather!CY$21 + BV78*Control!$I$13*Prices!CM$16 + BV78*Control!$I$14*Prices!CM$18","v":110.75568755120803},{"$f":"BW78+BW78*Control!$I$12*Weather!CZ$21 + BW78*Control!$I$13*Prices!CN$16 + BW78*Control!$I$14*Prices!CN$18","v":110.60088050842063},{"$f":"BX78+BX78*Control!$I$12*Weather!DA$21 + BX78*Control!$I$13*Prices!CO$16 + BX78*Control!$I$14*Prices!CO$18","v":110.4456234454122},{"$f":"BY78+BY78*Control!$I$12*Weather!DB$21 + BY78*Control!$I$13*Prices!CP$16 + BY78*Control!$I$14*Prices!CP$18","v":110.28991013663725},{"$f":"BZ78+BZ78*Control!$I$12*Weather!DC$21 + BZ78*Control!$I$13*Prices!CQ$16 + BZ78*Control!$I$14*Prices!CQ$18","v":110.13373424292},{"$f":"CA78+CA78*Control!$I$12*Weather!DD$21 + CA78*Control!$I$13*Prices!CR$16 + CA78*Control!$I$14*Prices!CR$18","v":109.97708930861398},{"$f":"CB78+CB78*Control!$I$12*Weather!DE$21 + CB78*Control!$I$13*Prices!CS$16 + CB78*Control!$I$14*Prices!CS$18","v":109.81996875867139},{"$f":"CC78+CC78*Control!$I$12*Weather!DF$21 + CC78*Control!$I$13*Prices!CT$16 + CC78*Control!$I$14*Prices!CT$18","v":109.66236589561984},{"$f":"CD78+CD78*Control!$I$12*Weather!DG$21 + CD78*Control!$I$13*Prices!CU$16 + CD78*Control!$I$14*Prices!CU$18","v":109.50427389644167},{"$f":"CE78+CE78*Control!$I$12*Weather!DH$21 + CE78*Control!$I$13*Prices!CV$16 + CE78*Control!$I$14*Prices!CV$18","v":109.34568580935333},{"$f":"CF78+CF78*Control!$I$12*Weather!DI$21 + CF78*Control!$I$13*Prices!CW$16 + CF78*Control!$I$14*Prices!CW$18","v":109.18659455047963},{"$f":"CG78+CG78*Control!$I$12*Weather!DJ$21 + CG78*Control!$I$13*Prices!CX$16 + CG78*Control!$I$14*Prices!CX$18","v":109.02699290042007},{"$f":"CH78+CH78*Control!$I$12*Weather!DK$21 + CH78*Control!$I$13*Prices!CY$16 + CH78*Control!$I$14*Prices!CY$18","v":108.86687350070149},{"$f":"CI78+CI78*Control!$I$12*Weather!DL$21 + CI78*Control!$I$13*Prices!CZ$16 + CI78*Control!$I$14*Prices!CZ$18","v":108.70622885011413},{"$f":"CJ78+CJ78*Control!$I$12*Weather!DM$21 + CJ78*Control!$I$13*Prices!DA$16 + CJ78*Control!$I$14*Prices!DA$18","v":108.54505130092475},{"$f":"CK78+CK78*Control!$I$12*Weather!DN$21 + CK78*Control!$I$13*Prices!DB$16 + CK78*Control!$I$14*Prices!DB$18","v":108.38333305496343}]
["Casey (C)",{"$f":"'Volume per connection'!B77","v":107.14206969617712},{"$f":"'Volume per connection'!C77","v":196.12104676367053},{"$f":"'Volume per connection'!D77","v":299.0829436619718},{"$f":"'Volume per connection'!E77","v":319.06871631205672},{"$f":"'Volume per connection'!F77","v":281.85011940298506},{"$f":"'Volume per connection'!G77","v":285.41937588652479},{"$f":"'Volume per connection'!H77","v":194.87841134751773},{"$f":"'Volume per connection'!I77","v":195.77714482758623},{"$f":"'Volume per connection'!J77","v":187.0466620689655},{"$f":"J79+J79*Control!$I$12*Weather!AM$21 + J79*Control!$I$13*Prices!AA$16 + J79*Control!$I$14*Prices!AA$18","v":175.49029068530729},{"$f":"K79+K79*Control!$I$12*Weather!AN$21 + K79*Control!$I$13*Prices!AB$16 + K79*Control!$I$14*Prices!AB$18","v":160.5810001353363},{"$f":"L79+L79*Control!$I$12*Weather!AO$21 + L79*Control!$I$13*Prices!AC$16 + L79*Control!$I$14*Prices!AC$18","v":165.60074877506705},{"$f":"M79+M79*Control!$I$12*Weather!AP$21 + M79*Control!$I$13*Prices!AD$16 + M79*Control!$I$14*Prices!AD$18","v":165.19043485079976},{"$f":"N79+N79*Control!$I$12*Weather!AQ$21 + N79*Control!$I$13*Prices!AE$16 + N79*Control!$I$14*Prices!AE$18","v":169.81139410165738},{"$f":"O79+O79*Control!$I$12*Weather!AR$21 + O79*Control!$I$13*Prices!AF$16 + O79*Control!$I$14*Prices!AF$18","v":170.01818397894201},{"$f":"P79+P79*Control!$I$12*Weather!AS$21 + P79*Control!$I$13*Prices!AG$16 + P79*Control!$I$14*Prices!AG$18","v":165.92135117033658},{"$f":"Q79+Q79*Control!$I$12*Weather!AT$21 + Q79*Control!$I$13*Prices!AH$16 + Q79*Control!$I$14*Prices!AH$18","v":155.55897857302841},{"$f":"R79+R79*Control!$I$12*Weather!AU$21 + R79*Control!$I$13*Prices!AI$16 + R79*Control!$I$14*Prices!AI$18","v":147.25582351247928},{"$f":"S79+S79*Control!$I$12*Weather!AV$21 + S79*Control!$I$13*Prices!AJ$16 + S79*Control!$I$14*Prices!AJ$18","v":141.65005209815865},{"$f":"T79+T79*Control!$I$12*Weather!AW$21 + T79*Control!$I$13*Prices!AK$16 + T79*Control!$I$14*Prices!AK$18","v":151.50963888703012},{"$f":"U79+U79*Control!$I$12*Weather!AX$21 + U79*Control!$I$13*Prices!AL$16 + U79*Control!$I$14*Prices!AL$18","v":151.92740482825494},{"$f":"V79+V79*Control!$I$12*Weather!AY$21 + V79*Control!$I$13*Prices!AM$16 + V79*Control!$I$14*Prices!AM$18","v":149.0470595005753},{"$f":"W79+W79*Control!$I$12*Weather!AZ$21 + W79*Control!$I$13*Prices!AN$16 + W79*Control!$I$14*Prices!AN$18","v":144.57782355124968},{"$f":"X79+X79*Control!$I$12*Weather!BA$21 + X79*Control!$I$13*Prices!AO$16 + X79*Control!$I$14*Prices!AO$18","v":160.5778868480925},{"$f":"Y79+Y79*Control!$I$12*Weather!BB$21 + Y79*Control!$I$13*Prices!AP$16 + Y79*Control!$I$14*Prices!AP$18","v":158.97587980238603},{"$f":"Z79+Z79*Control!$I$12*Weather!BC$21 + Z79*Control!$I$13*Prices!AQ$16 + Z79*Control!$I$14*Prices!AQ$18","v":156.52157538894878},{"$f":"AA79+AA79*Control!$I$12*Weather!BD$21 + AA79*Control!$I$13*Prices!AR$16 + AA79*Control!$I$14*Prices!AR$18","v":152.72943003546112},{"$f":"AB79+AB79*Control!$I$12*Weather!BE$21 + AB79*Control!$I$13*Prices!AS$16 + AB79*Control!$I$14*Prices!AS$18","v":150.64222636574223},{"$f":"AC79+AC79*Control!$I$12*Weather!BF$21 + AC79*Control!$I$13*Prices!AT$16 + AC79*Control!$I$14*Prices!AT$18","v":151.13348568739329},{"$f":"AD79+AD79*Control!$I$12*Weather!BG$21 + AD79*Control!$I$13*Prices!AU$16 + AD79*Control!$I$14*Prices!AU$18","v":150.08025559529699},{"$f":"AE79+AE79*Control!$I$12*Weather!BH$21 + AE79*Control!$I$13*Prices!AV$16 + AE79*Control!$I$14*Prices!AV$18","v":145.88872620935638},{"$f":"AF79+AF79*Control!$I$12*Weather!BI$21 + AF79*Control!$I$13*Prices!AW$16 + AF79*Control!$I$14*Prices!AW$18","v":142.82009741093259},{"$f":"AG79+AG79*Control!$I$12*Weather!BJ$21 + AG79*Control!$I$13*Prices!AX$16 + AG79*Control!$I$14*Prices!AX$18","v":141.65548588581512},{"$f":"AH79+AH79*Control!$I$12*Weather!BK$21 + AH79*Control!$I$13*Prices!AY$16 + AH79*Control!$I$14*Prices!AY$18","v":140.23043225395861},{"$f":"AI79+AI79*Control!$I$12*Weather!BL$21 + AI79*Control!$I$13*Prices!AZ$16 + AI79*Control!$I$14*Prices!AZ$18","v":138.92489022996517},{"$f":"AJ79+AJ79*Control!$I$12*Weather!BM$21 + AJ79*Control!$I$13*Prices!BA$16 + AJ79*Control!$I$14*Prices!BA$18","v":138.04445589010746},{"$f":"AK79+AK79*Control!$I$12*Weather!BN$21 + AK79*Control!$I$13*Prices!BB$16 + AK79*Control!$I$14*Prices!BB$18","v":137.46415120769305},{"$f":"AL79+AL79*Control!$I$12*Weather!BO$21 + AL79*Control!$I$13*Prices!BC$16 + AL79*Control!$I$14*Prices!BC$18","v":137.00248519672539},{"$f":"AM79+AM79*Control!$I$12*Weather!BP$21 + AM79*Control!$I$13*Prices!BD$16 + AM79*Control!$I$14*Prices!BD$18","v":135.96734728579068},{"$f":"AN79+AN79*Control!$I$12*Weather!BQ$21 + AN79*Control!$I$13*Prices!BE$16 + AN79*Control!$I$14*Prices!BE$18","v":135.82321935605165},{"$f":"AO79+AO79*Control!$I$12*Weather!BR$21 + AO79*Control!$I$13*Prices!BF$16 + AO79*Control!$I$14*Prices!BF$18","v":134.49563063901769},{"$f":"AP79+AP79*Control!$I$12*Weather!BS$21 + AP79*Control!$I$13*Prices!BG$16 + AP79*Control!$I$14*Prices!BG$18","v":134.32950874538557},{"$f":"AQ79+AQ79*Control!$I$12*Weather!BT$21 + AQ79*Control!$I$13*Prices!BH$16 + AQ79*Control!$I$14*Prices!BH$18","v":134.16304510558854},{"$f":"AR79+AR79*Control!$I$12*Weather!BU$21 + AR79*Control!$I$13*Prices!BI$16 + AR79*Control!$I$14*Prices!BI$18","v":133.99623549384418},{"$f":"AS79+AS79*Control!$I$12*Weather!BV$21 + AS79*Control!$I$13*Prices!BJ$16 + AS79*Control!$I$14*Prices!BJ$18","v":133.82907562119863},{"$f":"AT79+AT79*Control!$I$12*Weather!BW$21 + AT79*Control!$I$13*Prices!BK$16 + AT79*Control!$I$14*Prices!BK$18","v":133.66156113422181},{"$f":"AU79+AU79*Control!$I$12*Weather!BX$21 + AU79*Control!$I$13*Prices!BL$16 + AU79*Control!$I$14*Prices!BL$18","v":133.49368761366898},{"$f":"AV79+AV79*Control!$I$12*Weather!BY$21 + AV79*Control!$I$13*Prices!BM$16 + AV79*Control!$I$14*Prices!BM$18","v":133.32545057310682},{"$f":"AW79+AW79*Control!$I$12*Weather!BZ$21 + AW79*Control!$I$13*Prices!BN$16 + AW79*Control!$I$14*Prices!BN$18","v":133.15684545750398},{"$f":"AX79+AX79*Control!$I$12*Weather!CA$21 + AX79*Control!$I$13*Prices!BO$16 + AX79*Control!$I$14*Prices!BO$18","v":132.98786764178334},{"$f":"AY79+AY79*Control!$I$12*Weather!CB$21 + AY79*Control!$I$13*Prices!BP$16 + AY79*Control!$I$14*Prices!BP$18","v":132.81851242933712},{"$f":"AZ79+AZ79*Control!$I$12*Weather!CC$21 + AZ79*Control!$I$13*Prices!BQ$16 + AZ79*Control!$I$14*Prices!BQ$18","v":132.64877505050092},{"$f":"BA79+BA79*Control!$I$12*Weather!CD$21 + BA79*Control!$I$13*Prices!BR$16 + BA79*Control!$I$14*Prices!BR$18","v":132.47865066098768},{"$f":"BB79+BB79*Control!$I$12*Weather!CE$21 + BB79*Control!$I$13*Prices!BS$16 + BB79*Control!$I$14*Prices!BS$18","v":132.30813434027874},{"$f":"BC79+BC79*Control!$I$12*Weather!CF$21 + BC79*Control!$I$13*Prices!BT$16 + BC79*Control!$I$14*Prices!BT$18","v":132.13722108997146},{"$f":"BD79+BD79*Control!$I$12*Weather!CG$21 + BD79*Control!$I$13*Prices!BU$16 + BD79*Control!$I$14*Prices!BU$18","v":131.96590583208138},{"$f":"BE79+BE79*Control!$I$12*Weather!CH$21 + BE79*Control!$I$13*Prices!BV$16 + BE79*Control!$I$14*Prices!BV$18","v":131.79418340729796},{"$f":"BF79+BF79*Control!$I$12*Weather!CI$21 + BF79*Control!$I$13*Prices!BW$16 + BF79*Control!$I$14*Prices!BW$18","v":131.62204857319179},{"$f":"BG79+BG79*Control!$I$12*Weather!CJ$21 + BG79*Control!$I$13*Prices!BX$16 + BG79*Control!$I$14*Prices!BX$18","v":131.44949600237229},{"$f":"BH79+BH79*Control!$I$12*Weather!CK$21 + BH79*Control!$I$13*Prices!BY$16 + BH79*Control!$I$14*Prices!BY$18","v":131.2765202805933},{"$f":"BI79+BI79*Control!$I$12*Weather!CL$21 + BI79*Control!$I$13*Prices!BZ$16 + BI79*Control!$I$14*Prices!BZ$18","v":131.10311590480617},{"$f":"BJ79+BJ79*Control!$I$12*Weather!CM$21 + BJ79*Control!$I$13*Prices!CA$16 + BJ79*Control!$I$14*Prices!CA$18","v":130.92927728115691},{"$f":"BK79+BK79*Control!$I$12*Weather!CN$21 + BK79*Control!$I$13*Prices!CB$16 + BK79*Control!$I$14*Prices!CB$18","v":130.75499872292701},{"$f":"BL79+BL79*Control!$I$12*Weather!CO$21 + BL79*Control!$I$13*Prices!CC$16 + BL79*Control!$I$14*Prices!CC$18","v":130.58027444841466},{"$f":"BM79+BM79*Control!$I$12*Weather!CP$21 + BM79*Control!$I$13*Prices!CD$16 + BM79*Control!$I$14*Prices!CD$18","v":130.4050985787558},{"$f":"BN79+BN79*Control!$I$12*Weather!CQ$21 + BN79*Control!$I$13*Prices!CE$16 + BN79*Control!$I$14*Prices!CE$18","v":130.22946513568104},{"$f":"BO79+BO79*Control!$I$12*Weather!CR$21 + BO79*Control!$I$13*Prices!CF$16 + BO79*Control!$I$14*Prices!CF$18","v":130.05336803920798},{"$f":"BP79+BP79*Control!$I$12*Weather!CS$21 + BP79*Control!$I$13*Prices!CG$16 + BP79*Control!$I$14*Prices!CG$18","v":129.87680110526537},{"$f":"BQ79+BQ79*Control!$I$12*Weather!CT$21 + BQ79*Control!$I$13*Prices!CH$16 + BQ79*Control!$I$14*Prices!CH$18","v":129.69975804324775},{"$f":"BR79+BR79*Control!$I$12*Weather!CU$21 + BR79*Control!$I$13*Prices!CI$16 + BR79*Control!$I$14*Prices!CI$18","v":129.52223245349666},{"$f":"BS79+BS79*Control!$I$12*Weather!CV$21 + BS79*Control!$I$13*Prices!CJ$16 + BS79*Control!$I$14*Prices!CJ$18","v":129.34421782470764},{"$f":"BT79+BT79*Control!$I$12*Weather!CW$21 + BT79*Control!$I$13*Prices!CK$16 + BT79*Control!$I$14*Prices!CK$18","v":129.16570753125836},{"$f":"BU79+BU79*Control!$I$12*Weather!CX$21 + BU79*Control!$I$13*Prices!CL$16 + BU79*Control!$I$14*Prices!CL$18","v":128.986694830457},{"$f":"BV79+BV79*Control!$I$12*Weather!CY$21 + BV79*Control!$I$13*Prices!CM$16 + BV79*Control!$I$14*Prices!CM$18","v":128.8071728597057},{"$f":"BW79+BW79*Control!$I$12*Weather!CZ$21 + BW79*Control!$I$13*Prices!CN$16 + BW79*Control!$I$14*Prices!CN$18","v":128.62713463357852},{"$f":"BX79+BX79*Control!$I$12*Weather!DA$21 + BX79*Control!$I$13*Prices!CO$16 + BX79*Control!$I$14*Prices!CO$18","v":128.4465730408082},{"$f":"BY79+BY79*Control!$I$12*Weather!DB$21 + BY79*Control!$I$13*Prices!CP$16 + BY79*Control!$I$14*Prices!CP$18","v":128.26548084118048},{"$f":"BZ79+BZ79*Control!$I$12*Weather!DC$21 + BZ79*Control!$I$13*Prices!CQ$16 + BZ79*Control!$I$14*Prices!CQ$18","v":128.08385066233069},{"$f":"CA79+CA79*Control!$I$12*Weather!DD$21 + CA79*Control!$I$13*Prices!CR$16 + CA79*Control!$I$14*Prices!CR$18","v":127.90167499644063},{"$f":"CB79+CB79*Control!$I$12*Weather!DE$21 + CB79*Control!$I$13*Prices!CS$16 + CB79*Control!$I$14*Prices!CS$18","v":127.71894619683013},{"$f":"CC79+CC79*Control!$I$12*Weather!DF$21 + CC79*Control!$I$13*Prices!CT$16 + CC79*Control!$I$14*Prices!CT$18","v":127.53565647444111},{"$f":"CD79+CD79*Control!$I$12*Weather!DG$21 + CD79*Control!$I$13*Prices!CU$16 + CD79*Control!$I$14*Prices!CU$18","v":127.35179789420826},{"$f":"CE79+CE79*Control!$I$12*Weather!DH$21 + CE79*Control!$I$13*Prices!CV$16 + CE79*Control!$I$14*Prices!CV$18","v":127.16736237131349},{"$f":"CF79+CF79*Control!$I$12*Weather!DI$21 + CF79*Control!$I$13*Prices!CW$16 + CF79*Control!$I$14*Prices!CW$18","v":126.98234166731815},{"$f":"CG79+CG79*Control!$I$12*Weather!DJ$21 + CG79*Control!$I$13*Prices!CX$16 + CG79*Control!$I$14*Prices!CX$18","v":126.79672738616975},{"$f":"CH79+CH79*Control!$I$12*Weather!DK$21 + CH79*Control!$I$13*Prices!CY$16 + CH79*Control!$I$14*Prices!CY$18","v":126.61051097007638},{"$f":"CI79+CI79*Control!$I$12*Weather!DL$21 + CI79*Control!$I$13*Prices!CZ$16 + CI79*Control!$I$14*Prices!CZ$18","v":126.42368369524567},{"$f":"CJ79+CJ79*Control!$I$12*Weather!DM$21 + CJ79*Control!$I$13*Prices!DA$16 + CJ79*Control!$I$14*Prices!DA$18","v":126.2362366674807},{"$f":"CK79+CK79*Control!$I$12*Weather!DN$21 + CK79*Control!$I$13*Prices!DB$16 + CK79*Control!$I$14*Prices!DB$18","v":126.04816081762894}]
["Frankston (C)",{"$f":"'Volume per connection'!B78","v":0},{"$f":"'Volume per connection'!C78","v":4491.04},{"$f":"'Volume per connection'!D78","v":14461.07},{"$f":"'Volume per connection'!E78","v":13651.09},{"$f":"'Volume per connection'!F78","v":9912.83},{"$f":"'Volume per connection'!G78","v":8542.9599999999991},{"$f":"'Volume per connection'!H78","v":720.24},{"$f":"'Volume per connection'!I78","v":0},{"$f":"'Volume per connection'!J78","v":0},{"$f":"J80+J80*Control!$I$12*Weather!AM$21 + J80*Control!$I$13*Prices!AA$16 + J80*Control!$I$14*Prices!AA$18","v":0},{"$f":"K80+K80*Control!$I$12*Weather!AN$21 + K80*Control!$I$13*Prices!AB$16 + K80*Control!$I$14*Prices!AB$18","v":0},{"$f":"L80+L80*Control!$I$12*Weather!AO$21 + L80*Control!$I$13*Prices!AC$16 + L80*Control!$I$14*Prices!AC$18","v":0},{"$f":"M80+M80*Control!$I$12*Weather!AP$21 + M80*Control!$I$13*Prices!AD$16 + M80*Control!$I$14*Prices!AD$18","v":0},{"$f":"N80+N80*Control!$I$12*Weather!AQ$21 + N80*Control!$I$13*Prices!AE$16 + N80*Control!$I$14*Prices!AE$18","v":0},{"$f":"O80+O80*Control!$I$12*Weather!AR$21 + O80*Control!$I$13*Prices!AF$16 + O80*Control!$I$14*Prices!AF$18","v":0},{"$f":"P80+P80*Control!$I$12*Weather!AS$21 + P80*Control!$I$13*Prices!AG$16 + P80*Control!$I$14*Prices!AG$18","v":0},{"$f":"Q80+Q80*Control!$I$12*Weather!AT$21 + Q80*Control!$I$13*Prices!AH$16 + Q80*Control!$I$14*Prices!AH$18","v":0},{"$f":"R80+R80*Control!$I$12*Weather!AU$21 + R80*Control!$I$13*Prices!AI$16 + R80*Control!$I$14*Prices!AI$18","v":0},{"$f":"S80+S80*Control!$I$12*Weather!AV$21 + S80*Control!$I$13*Prices!AJ$16 + S80*Control!$I$14*Prices!AJ$18","v":0},{"$f":"T80+T80*Control!$I$12*Weather!AW$21 + T80*Control!$I$13*Prices!AK$16 + T80*Control!$I$14*Prices!AK$18","v":0},{"$f":"U80+U80*Control!$I$12*Weather!AX$21 + U80*Control!$I$13*Prices!AL$16 + U80*Control!$I$14*Prices!AL$18","v":0},{"$f":"V80+V80*Control!$I$12*Weather!AY$21 + V80*Control!$I$13*Prices!AM$16 + V80*Control!$I$14*Prices!AM$18","v":0},{"$f":"W80+W80*Control!$I$12*Weather!AZ$21 + W80*Control!$I$13*Prices!AN$16 + W80*Control!$I$14*Prices!AN$18","v":0},{"$f":"X80+X80*Control!$I$12*Weather!BA$21 + X80*Control!$I$13*Prices!AO$16 + X80*Control!$I$14*Prices!AO$18","v":0},{"$f":"Y80+Y80*Control!$I$12*Weather!BB$21 + Y80*Control!$I$13*Prices!AP$16 + Y80*Control!$I$14*Prices!AP$18","v":0},{"$f":"Z80+Z80*Control!$I$12*Weather!BC$21 + Z80*Control!$I$13*Prices!AQ$16 + Z80*Control!$I$14*Prices!AQ$18","v":0},{"$f":"AA80+AA80*Control!$I$12*Weather!BD$21 + AA80*Control!$I$13*Prices!AR$16 + AA80*Control!$I$14*Prices!AR$18","v":0},{"$f":"AB80+AB80*Control!$I$12*Weather!BE$21 + AB80*Control!$I$13*Prices!AS$16 + AB80*Control!$I$14*Prices!AS$18","v":0},{"$f":"AC80+AC80*Control!$I$12*Weather!BF$21 + AC80*Control!$I$13*Prices!AT$16 + AC80*Control!$I$14*Prices!AT$18","v":0},{"$f":"AD80+AD80*Control!$I$12*Weather!BG$21 + AD80*Control!$I$13*Prices!AU$16 + AD80*Control!$I$14*Prices!AU$18","v":0},{"$f":"AE80+AE80*Control!$I$12*Weather!BH$21 + AE80*Control!$I$13*Prices!AV$16 + AE80*Control!$I$14*Prices!AV$18","v":0},{"$f":"AF80+AF80*Control!$I$12*Weather!BI$21 + AF80*Control!$I$13*Prices!AW$16 + AF80*Control!$I$14*Prices!AW$18","v":0},{"$f":"AG80+AG80*Control!$I$12*Weather!BJ$21 + AG80*Control!$I$13*Prices!AX$16 + AG80*Control!$I$14*Prices!AX$18","v":0},{"$f":"AH80+AH80*Control!$I$12*Weather!BK$21 + AH80*Control!$I$13*Prices!AY$16 + AH80*Control!$I$14*Prices!AY$18","v":0},{"$f":"AI80+AI80*Control!$I$12*Weather!BL$21 + AI80*Control!$I$13*Prices!AZ$16 + AI80*Control!$I$14*Prices!AZ$18","v":0},{"$f":"AJ80+AJ80*Control!$I$12*Weather!BM$21 + AJ80*Control!$I$13*Prices!BA$16 + AJ80*Control!$I$14*Prices!BA$18","v":0},{"$f":"AK80+AK80*Control!$I$12*Weather!BN$21 + AK80*Control!$I$13*Prices!BB$16 + AK80*Control!$I$14*Prices!BB$18","v":0},{"$f":"AL80+AL80*Control!$I$12*Weather!BO$21 + AL80*Control!$I$13*Prices!BC$16 + AL80*Control!$I$14*Prices!BC$18","v":0},{"$f":"AM80+AM80*Control!$I$12*Weather!BP$21 + AM80*Control!$I$13*Prices!BD$16 + AM80*Control!$I$14*Prices!BD$18","v":0},{"$f":"AN80+AN80*Control!$I$12*Weather!BQ$21 + AN80*Control!$I$13*Prices!BE$16 + AN80*Control!$I$14*Prices!BE$18","v":0},{"$f":"AO80+AO80*Control!$I$12*Weather!BR$21 + AO80*Control!$I$13*Prices!BF$16 + AO80*Control!$I$14*Prices!BF$18","v":0},{"$f":"AP80+AP80*Control!$I$12*Weather!BS$21 + AP80*Control!$I$13*Prices!BG$16 + AP80*Control!$I$14*Prices!BG$18","v":0},{"$f":"AQ80+AQ80*Control!$I$12*Weather!BT$21 + AQ80*Control!$I$13*Prices!BH$16 + AQ80*Control!$I$14*Prices!BH$18","v":0},{"$f":"AR80+AR80*Control!$I$12*Weather!BU$21 + AR80*Control!$I$13*Prices!BI$16 + AR80*Control!$I$14*Prices!BI$18","v":0},{"$f":"AS80+AS80*Control!$I$12*Weather!BV$21 + AS80*Control!$I$13*Prices!BJ$16 + AS80*Control!$I$14*Prices!BJ$18","v":0},{"$f":"AT80+AT80*Control!$I$12*Weather!BW$21 + AT80*Control!$I$13*Prices!BK$16 + AT80*Control!$I$14*Prices!BK$18","v":0},{"$f":"AU80+AU80*Control!$I$12*Weather!BX$21 + AU80*Control!$I$13*Prices!BL$16 + AU80*Control!$I$14*Prices!BL$18","v":0},{"$f":"AV80+AV80*Control!$I$12*Weather!BY$21 + AV80*Control!$I$13*Prices!BM$16 + AV80*Control!$I$14*Prices!BM$18","v":0},{"$f":"AW80+AW80*Control!$I$12*Weather!BZ$21 + AW80*Control!$I$13*Prices!BN$16 + AW80*Control!$I$14*Prices!BN$18","v":0},{"$f":"AX80+AX80*Control!$I$12*Weather!CA$21 + AX80*Control!$I$13*Prices!BO$16 + AX80*Control!$I$14*Prices!BO$18","v":0},{"$f":"AY80+AY80*Control!$I$12*Weather!CB$21 + AY80*Control!$I$13*Prices!BP$16 + AY80*Control!$I$14*Prices!BP$18","v":0},{"$f":"AZ80+AZ80*Control!$I$12*Weather!CC$21 + AZ80*Control!$I$13*Prices!BQ$16 + AZ80*Control!$I$14*Prices!BQ$18","v":0},{"$f":"BA80+BA80*Control!$I$12*Weather!CD$21 + BA80*Control!$I$13*Prices!BR$16 + BA80*Control!$I$14*Prices!BR$18","v":0},{"$f":"BB80+BB80*Control!$I$12*Weather!CE$21 + BB80*Control!$I$13*Prices!BS$16 + BB80*Control!$I$14*Prices!BS$18","v":0},{"$f":"BC80+BC80*Control!$I$12*Weather!CF$21 + BC80*Control!$I$13*Prices!BT$16 + BC80*Control!$I$14*Prices!BT$18","v":0},{"$f":"BD80+BD80*Control!$I$12*Weather!CG$21 + BD80*Control!$I$13*Prices!BU$16 + BD80*Control!$I$14*Prices!BU$18","v":0},{"$f":"BE80+BE80*Control!$I$12*Weather!CH$21 + BE80*Control!$I$13*Prices!BV$16 + BE80*Control!$I$14*Prices!BV$18","v":0},{"$f":"BF80+BF80*Control!$I$12*Weather!CI$21 + BF80*Control!$I$13*Prices!BW$16 + BF80*Control!$I$14*Prices!BW$18","v":0},{"$f":"BG80+BG80*Control!$I$12*Weather!CJ$21 + BG80*Control!$I$13*Prices!BX$16 + BG80*Control!$I$14*Prices!BX$18","v":0},{"$f":"BH80+BH80*Control!$I$12*Weather!CK$21 + BH80*Control!$I$13*Prices!BY$16 + BH80*Control!$I$14*Prices!BY$18","v":0},{"$f":"BI80+BI80*Control!$I$12*Weather!CL$21 + BI80*Control!$I$13*Prices!BZ$16 + BI80*Control!$I$14*Prices!BZ$18","v":0},{"$f":"BJ80+BJ80*Control!$I$12*Weather!CM$21 + BJ80*Control!$I$13*Prices!CA$16 + BJ80*Control!$I$14*Prices!CA$18","v":0},{"$f":"BK80+BK80*Control!$I$12*Weather!CN$21 + BK80*Control!$I$13*Prices!CB$16 + BK80*Control!$I$14*Prices!CB$18","v":0},{"$f":"BL80+BL80*Control!$I$12*Weather!CO$21 + BL80*Control!$I$13*Prices!CC$16 + BL80*Control!$I$14*Prices!CC$18","v":0},{"$f":"BM80+BM80*Control!$I$12*Weather!CP$21 + BM80*Control!$I$13*Prices!CD$16 + BM80*Control!$I$14*Prices!CD$18","v":0},{"$f":"BN80+BN80*Control!$I$12*Weather!CQ$21 + BN80*Control!$I$13*Prices!CE$16 + BN80*Control!$I$14*Prices!CE$18","v":0},{"$f":"BO80+BO80*Control!$I$12*Weather!CR$21 + BO80*Control!$I$13*Prices!CF$16 + BO80*Control!$I$14*Prices!CF$18","v":0},{"$f":"BP80+BP80*Control!$I$12*Weather!CS$21 + BP80*Control!$I$13*Prices!CG$16 + BP80*Control!$I$14*Prices!CG$18","v":0},{"$f":"BQ80+BQ80*Control!$I$12*Weather!CT$21 + BQ80*Control!$I$13*Prices!CH$16 + BQ80*Control!$I$14*Prices!CH$18","v":0},{"$f":"BR80+BR80*Control!$I$12*Weather!CU$21 + BR80*Control!$I$13*Prices!CI$16 + BR80*Control!$I$14*Prices!CI$18","v":0},{"$f":"BS80+BS80*Control!$I$12*Weather!CV$21 + BS80*Control!$I$13*Prices!CJ$16 + BS80*Control!$I$14*Prices!CJ$18","v":0},{"$f":"BT80+BT80*Control!$I$12*Weather!CW$21 + BT80*Control!$I$13*Prices!CK$16 + BT80*Control!$I$14*Prices!CK$18","v":0},{"$f":"BU80+BU80*Control!$I$12*Weather!CX$21 + BU80*Control!$I$13*Prices!CL$16 + BU80*Control!$I$14*Prices!CL$18","v":0},{"$f":"BV80+BV80*Control!$I$12*Weather!CY$21 + BV80*Control!$I$13*Prices!CM$16 + BV80*Control!$I$14*Prices!CM$18","v":0},{"$f":"BW80+BW80*Control!$I$12*Weather!CZ$21 + BW80*Control!$I$13*Prices!CN$16 + BW80*Control!$I$14*Prices!CN$18","v":0},{"$f":"BX80+BX80*Control!$I$12*Weather!DA$21 + BX80*Control!$I$13*Prices!CO$16 + BX80*Control!$I$14*Prices!CO$18","v":0},{"$f":"BY80+BY80*Control!$I$12*Weather!DB$21 + BY80*Control!$I$13*Prices!CP$16 + BY80*Control!$I$14*Prices!CP$18","v":0},{"$f":"BZ80+BZ80*Control!$I$12*Weather!DC$21 + BZ80*Control!$I$13*Prices!CQ$16 + BZ80*Control!$I$14*Prices!CQ$18","v":0},{"$f":"CA80+CA80*Control!$I$12*Weather!DD$21 + CA80*Control!$I$13*Prices!CR$16 + CA80*Control!$I$14*Prices!CR$18","v":0},{"$f":"CB80+CB80*Control!$I$12*Weather!DE$21 + CB80*Control!$I$13*Prices!CS$16 + CB80*Control!$I$14*Prices!CS$18","v":0},{"$f":"CC80+CC80*Control!$I$12*Weather!DF$21 + CC80*Control!$I$13*Prices!CT$16 + CC80*Control!$I$14*Prices!CT$18","v":0},{"$f":"CD80+CD80*Control!$I$12*Weather!DG$21 + CD80*Control!$I$13*Prices!CU$16 + CD80*Control!$I$14*Prices!CU$18","v":0},{"$f":"CE80+CE80*Control!$I$12*Weather!DH$21 + CE80*Control!$I$13*Prices!CV$16 + CE80*Control!$I$14*Prices!CV$18","v":0},{"$f":"CF80+CF80*Control!$I$12*Weather!DI$21 + CF80*Control!$I$13*Prices!CW$16 + CF80*Control!$I$14*Prices!CW$18","v":0},{"$f":"CG80+CG80*Control!$I$12*Weather!DJ$21 + CG80*Control!$I$13*Prices!CX$16 + CG80*Control!$I$14*Prices!CX$18","v":0},{"$f":"CH80+CH80*Control!$I$12*Weather!DK$21 + CH80*Control!$I$13*Prices!CY$16 + CH80*Control!$I$14*Prices!CY$18","v":0},{"$f":"CI80+CI80*Control!$I$12*Weather!DL$21 + CI80*Control!$I$13*Prices!CZ$16 + CI80*Control!$I$14*Prices!CZ$18","v":0},{"$f":"CJ80+CJ80*Control!$I$12*Weather!DM$21 + CJ80*Control!$I$13*Prices!DA$16 + CJ80*Control!$I$14*Prices!DA$18","v":0},{"$f":"CK80+CK80*Control!$I$12*Weather!DN$21 + CK80*Control!$I$13*Prices!DB$16 + CK80*Control!$I$14*Prices!DB$18","v":0}]
["Glen Eira (C)",{"$f":"'Volume per connection'!B79","v":102.98040327058074},{"$f":"'Volume per connection'!C79","v":212.85316097769936},{"$f":"'Volume per connection'!D79","v":341.9094114636643},{"$f":"'Volume per connection'!E79","v":301.50901131687243},{"$f":"'Volume per connection'!F79","v":288.52557916241062},{"$f":"'Volume per connection'!G79","v":300.07244633901706},{"$f":"'Volume per connection'!H79","v":215.87115127701375},{"$f":"'Volume per connection'!I79","v":204.94611374876362},{"$f":"'Volume per connection'!J79","v":197.32392749244713},{"$f":"J81+J81*Control!$I$12*Weather!AM$21 + J81*Control!$I$13*Prices!AA$16 + J81*Control!$I$14*Prices!AA$18","v":185.13259211248734},{"$f":"K81+K81*Control!$I$12*Weather!AN$21 + K81*Control!$I$13*Prices!AB$16 + K81*Control!$I$14*Prices!AB$18","v":169.40411166325282},{"$f":"L81+L81*Control!$I$12*Weather!AO$21 + L81*Control!$I$13*Prices!AC$16 + L81*Control!$I$14*Prices!AC$18","v":174.69967003173804},{"$f":"M81+M81*Control!$I$12*Weather!AP$21 + M81*Control!$I$13*Prices!AD$16 + M81*Control!$I$14*Prices!AD$18","v":174.26681143834915},{"$f":"N81+N81*Control!$I$12*Weather!AQ$21 + N81*Control!$I$13*Prices!AE$16 + N81*Control!$I$14*Prices!AE$18","v":179.14166896360982},{"$f":"O81+O81*Control!$I$12*Weather!AR$21 + O81*Control!$I$13*Prices!AF$16 + O81*Control!$I$14*Prices!AF$18","v":179.35982089586099},{"$f":"P81+P81*Control!$I$12*Weather!AS$21 + P81*Control!$I$13*Prices!AG$16 + P81*Control!$I$14*Prices!AG$18","v":175.0378879026068},{"$f":"Q81+Q81*Control!$I$12*Weather!AT$21 + Q81*Control!$I$13*Prices!AH$16 + Q81*Control!$I$14*Prices!AH$18","v":164.10615548662258},{"$f":"R81+R81*Control!$I$12*Weather!AU$21 + R81*Control!$I$13*Prices!AI$16 + R81*Control!$I$14*Prices!AI$18","v":155.3467841671694},{"$f":"S81+S81*Control!$I$12*Weather!AV$21 + S81*Control!$I$13*Prices!AJ$16 + S81*Control!$I$14*Prices!AJ$18","v":149.43300404480192},{"$f":"T81+T81*Control!$I$12*Weather!AW$21 + T81*Control!$I$13*Prices!AK$16 + T81*Control!$I$14*Prices!AK$18","v":159.83432512218863},{"$f":"U81+U81*Control!$I$12*Weather!AX$21 + U81*Control!$I$13*Prices!AL$16 + U81*Control!$I$14*Prices!AL$18","v":160.27504518307194},{"$f":"V81+V81*Control!$I$12*Weather!AY$21 + V81*Control!$I$13*Prices!AM$16 + V81*Control!$I$14*Prices!AM$18","v":157.23643948807853},{"$f":"W81+W81*Control!$I$12*Weather!AZ$21 + W81*Control!$I$13*Prices!AN$16 + W81*Control!$I$14*Prices!AN$18","v":152.52164169026375},{"$f":"X81+X81*Control!$I$12*Weather!BA$21 + X81*Control!$I$13*Prices!AO$16 + X81*Control!$I$14*Prices!AO$18","v":169.40082731666479},{"$f":"Y81+Y81*Control!$I$12*Weather!BB$21 + Y81*Control!$I$13*Prices!AP$16 + Y81*Control!$I$14*Prices!AP$18","v":167.71079810880423},{"$f":"Z81+Z81*Control!$I$12*Weather!BC$21 + Z81*Control!$I$13*Prices!AQ$16 + Z81*Control!$I$14*Prices!AQ$18","v":165.12164211551027},{"$f":"AA81+AA81*Control!$I$12*Weather!BD$21 + AA81*Control!$I$13*Prices!AR$16 + AA81*Control!$I$14*Prices!AR$18","v":161.12113760772857},{"$f":"AB81+AB81*Control!$I$12*Weather!BE$21 + AB81*Control!$I$13*Prices!AS$16 + AB81*Control!$I$14*Prices!AS$18","v":158.91925268217065},{"$f":"AC81+AC81*Control!$I$12*Weather!BF$21 + AC81*Control!$I$13*Prices!AT$16 + AC81*Control!$I$14*Prices!AT$18","v":159.43750421199329},{"$f":"AD81+AD81*Control!$I$12*Weather!BG$21 + AD81*Control!$I$13*Prices!AU$16 + AD81*Control!$I$14*Prices!AU$18","v":158.32640446807457},{"$f":"AE81+AE81*Control!$I$12*Weather!BH$21 + AE81*Control!$I$13*Prices!AV$16 + AE81*Control!$I$14*Prices!AV$18","v":153.90457180083968},{"$f":"AF81+AF81*Control!$I$12*Weather!BI$21 + AF81*Control!$I$13*Prices!AW$16 + AF81*Control!$I$14*Prices!AW$18","v":150.66733741331473},{"$f":"AG81+AG81*Control!$I$12*Weather!BJ$21 + AG81*Control!$I$13*Prices!AX$16 + AG81*Control!$I$14*Prices!AX$18","v":149.43873639153111},{"$f":"AH81+AH81*Control!$I$12*Weather!BK$21 + AH81*Control!$I$13*Prices!AY$16 + AH81*Control!$I$14*Prices!AY$18","v":147.93538329014498},{"$f":"AI81+AI81*Control!$I$12*Weather!BL$21 + AI81*Control!$I$13*Prices!AZ$16 + AI81*Control!$I$14*Prices!AZ$18","v":146.55810835333887},{"$f":"AJ81+AJ81*Control!$I$12*Weather!BM$21 + AJ81*Control!$I$13*Prices!BA$16 + AJ81*Control!$I$14*Prices!BA$18","v":145.62929861186436},{"$f":"AK81+AK81*Control!$I$12*Weather!BN$21 + AK81*Control!$I$13*Prices!BB$16 + AK81*Control!$I$14*Prices!BB$18","v":145.01710913032181},{"$f":"AL81+AL81*Control!$I$12*Weather!BO$21 + AL81*Control!$I$13*Prices!BC$16 + AL81*Control!$I$14*Prices!BC$18","v":144.53007691351422},{"$f":"AM81+AM81*Control!$I$12*Weather!BP$21 + AM81*Control!$I$13*Prices!BD$16 + AM81*Control!$I$14*Prices!BD$18","v":143.43806342435261},{"$f":"AN81+AN81*Control!$I$12*Weather!BQ$21 + AN81*Control!$I$13*Prices!BE$16 + AN81*Control!$I$14*Prices!BE$18","v":143.28601639585781},{"$f":"AO81+AO81*Control!$I$12*Weather!BR$21 + AO81*Control!$I$13*Prices!BF$16 + AO81*Control!$I$14*Prices!BF$18","v":141.88548341204432},{"$f":"AP81+AP81*Control!$I$12*Weather!BS$21 + AP81*Control!$I$13*Prices!BG$16 + AP81*Control!$I$14*Prices!BG$18","v":141.71023396288876},{"$f":"AQ81+AQ81*Control!$I$12*Weather!BT$21 + AQ81*Control!$I$13*Prices!BH$16 + AQ81*Control!$I$14*Prices!BH$18","v":141.53462399034976},{"$f":"AR81+AR81*Control!$I$12*Weather!BU$21 + AR81*Control!$I$13*Prices!BI$16 + AR81*Control!$I$14*Prices!BI$18","v":141.35864903645964},{"$f":"AS81+AS81*Control!$I$12*Weather!BV$21 + AS81*Control!$I$13*Prices!BJ$16 + AS81*Control!$I$14*Prices!BJ$18","v":141.18230457660823},{"$f":"AT81+AT81*Control!$I$12*Weather!BW$21 + AT81*Control!$I$13*Prices!BK$16 + AT81*Control!$I$14*Prices!BK$18","v":141.00558601816658},{"$f":"AU81+AU81*Control!$I$12*Weather!BX$21 + AU81*Control!$I$13*Prices!BL$16 + AU81*Control!$I$14*Prices!BL$18","v":140.82848869907485},{"$f":"AV81+AV81*Control!$I$12*Weather!BY$21 + AV81*Control!$I$13*Prices!BM$16 + AV81*Control!$I$14*Prices!BM$18","v":140.65100788639299},{"$f":"AW81+AW81*Control!$I$12*Weather!BZ$21 + AW81*Control!$I$13*Prices!BN$16 + AW81*Control!$I$14*Prices!BN$18","v":140.47313877481372},{"$f":"AX81+AX81*Control!$I$12*Weather!CA$21 + AX81*Control!$I$13*Prices!BO$16 + AX81*Control!$I$14*Prices!BO$18","v":140.29487648513546},{"$f":"AY81+AY81*Control!$I$12*Weather!CB$21 + AY81*Control!$I$13*Prices!BP$16 + AY81*Control!$I$14*Prices!BP$18","v":140.11621606269563},{"$f":"AZ81+AZ81*Control!$I$12*Weather!CC$21 + AZ81*Control!$I$13*Prices!BQ$16 + AZ81*Control!$I$14*Prices!BQ$18","v":139.93715247576091},{"$f":"BA81+BA81*Control!$I$12*Weather!CD$21 + BA81*Control!$I$13*Prices!BR$16 + BA81*Control!$I$14*Prices!BR$18","v":139.75768061387529},{"$f":"BB81+BB81*Control!$I$12*Weather!CE$21 + BB81*Control!$I$13*Prices!BS$16 + BB81*Control!$I$14*Prices!BS$18","v":139.57779528616254},{"$f":"BC81+BC81*Control!$I$12*Weather!CF$21 + BC81*Control!$I$13*Prices!BT$16 + BC81*Control!$I$14*Prices!BT$18","v":139.39749121958317},{"$f":"BD81+BD81*Control!$I$12*Weather!CG$21 + BD81*Control!$I$13*Prices!BU$16 + BD81*Control!$I$14*Prices!BU$18","v":139.2167630571432},{"$f":"BE81+BE81*Control!$I$12*Weather!CH$21 + BE81*Control!$I$13*Prices!BV$16 + BE81*Control!$I$14*Prices!BV$18","v":139.03560535605419},{"$f":"BF81+BF81*Control!$I$12*Weather!CI$21 + BF81*Control!$I$13*Prices!BW$16 + BF81*Control!$I$14*Prices!BW$18","v":138.85401258584176},{"$f":"BG81+BG81*Control!$I$12*Weather!CJ$21 + BG81*Control!$I$13*Prices!BX$16 + BG81*Control!$I$14*Prices!BX$18","v":138.67197912640228},{"$f":"BH81+BH81*Control!$I$12*Weather!CK$21 + BH81*Control!$I$13*Prices!BY$16 + BH81*Control!$I$14*Prices!BY$18","v":138.4894992660042},{"$f":"BI81+BI81*Control!$I$12*Weather!CL$21 + BI81*Control!$I$13*Prices!BZ$16 + BI81*Control!$I$14*Prices!BZ$18","v":138.30656719923428},{"$f":"BJ81+BJ81*Control!$I$12*Weather!CM$21 + BJ81*Control!$I$13*Prices!CA$16 + BJ81*Control!$I$14*Prices!CA$18","v":138.12317702488457},{"$f":"BK81+BK81*Control!$I$12*Weather!CN$21 + BK81*Control!$I$13*Prices!CB$16 + BK81*Control!$I$14*Prices!CB$18","v":137.93932274378028},{"$f":"BL81+BL81*Control!$I$12*Weather!CO$21 + BL81*Control!$I$13*Prices!CC$16 + BL81*Control!$I$14*Prices!CC$18","v":137.75499825654441},{"$f":"BM81+BM81*Control!$I$12*Weather!CP$21 + BM81*Control!$I$13*Prices!CD$16 + BM81*Control!$I$14*Prices!CD$18","v":137.57019736129911},{"$f":"BN81+BN81*Control!$I$12*Weather!CQ$21 + BN81*Control!$I$13*Prices!CE$16 + BN81*Control!$I$14*Prices!CE$18","v":137.38491375129942},{"$f":"BO81+BO81*Control!$I$12*Weather!CR$21 + BO81*Control!$I$13*Prices!CF$16 + BO81*Control!$I$14*Prices!CF$18","v":137.1991410124987},{"$f":"BP81+BP81*Control!$I$12*Weather!CS$21 + BP81*Control!$I$13*Prices!CG$16 + BP81*Control!$I$14*Prices!CG$18","v":137.01287262104242},{"$f":"BQ81+BQ81*Control!$I$12*Weather!CT$21 + BQ81*Control!$I$13*Prices!CH$16 + BQ81*Control!$I$14*Prices!CH$18","v":136.8261019406882},{"$f":"BR81+BR81*Control!$I$12*Weather!CU$21 + BR81*Control!$I$13*Prices!CI$16 + BR81*Control!$I$14*Prices!CI$18","v":136.6388222201488},{"$f":"BS81+BS81*Control!$I$12*Weather!CV$21 + BS81*Control!$I$13*Prices!CJ$16 + BS81*Control!$I$14*Prices!CJ$18","v":136.45102659035666},{"$f":"BT81+BT81*Control!$I$12*Weather!CW$21 + BT81*Control!$I$13*Prices!CK$16 + BT81*Control!$I$14*Prices!CK$18","v":136.2627080616451},{"$f":"BU81+BU81*Control!$I$12*Weather!CX$21 + BU81*Control!$I$13*Prices!CL$16 + BU81*Control!$I$14*Prices!CL$18","v":136.07385952084553},{"$f":"BV81+BV81*Control!$I$12*Weather!CY$21 + BV81*Control!$I$13*Prices!CM$16 + BV81*Control!$I$14*Prices!CM$18","v":135.88447372829518},{"$f":"BW81+BW81*Control!$I$12*Weather!CZ$21 + BW81*Control!$I$13*Prices!CN$16 + BW81*Control!$I$14*Prices!CN$18","v":135.69454331475436},{"$f":"BX81+BX81*Control!$I$12*Weather!DA$21 + BX81*Control!$I$13*Prices!CO$16 + BX81*Control!$I$14*Prices!CO$18","v":135.50406077822777},{"$f":"BY81+BY81*Control!$I$12*Weather!DB$21 + BY81*Control!$I$13*Prices!CP$16 + BY81*Control!$I$14*Prices!CP$18","v":135.31301848068804},{"$f":"BZ81+BZ81*Control!$I$12*Weather!DC$21 + BZ81*Control!$I$13*Prices!CQ$16 + BZ81*Control!$I$14*Prices!CQ$18","v":135.12140864469654},{"$f":"CA81+CA81*Control!$I$12*Weather!DD$21 + CA81*Control!$I$13*Prices!CR$16 + CA81*Control!$I$14*Prices!CR$18","v":134.92922334991849},{"$f":"CB81+CB81*Control!$I$12*Weather!DE$21 + CB81*Control!$I$13*Prices!CS$16 + CB81*Control!$I$14*Prices!CS$18","v":134.73645452952741},{"$f":"CC81+CC81*Control!$I$12*Weather!DF$21 + CC81*Control!$I$13*Prices!CT$16 + CC81*Control!$I$14*Prices!CT$18","v":134.54309396649597},{"$f":"CD81+CD81*Control!$I$12*Weather!DG$21 + CD81*Control!$I$13*Prices!CU$16 + CD81*Control!$I$14*Prices!CU$18","v":134.34913328976731},{"$f":"CE81+CE81*Control!$I$12*Weather!DH$21 + CE81*Control!$I$13*Prices!CV$16 + CE81*Control!$I$14*Prices!CV$18","v":134.1545639703036},{"$f":"CF81+CF81*Control!$I$12*Weather!DI$21 + CF81*Control!$I$13*Prices!CW$16 + CF81*Control!$I$14*Prices!CW$18","v":133.95937731700576},{"$f":"CG81+CG81*Control!$I$12*Weather!DJ$21 + CG81*Control!$I$13*Prices!CX$16 + CG81*Control!$I$14*Prices!CX$18","v":133.76356447250075},{"$f":"CH81+CH81*Control!$I$12*Weather!DK$21 + CH81*Control!$I$13*Prices!CY$16 + CH81*Control!$I$14*Prices!CY$18","v":133.56711640878945},{"$f":"CI81+CI81*Control!$I$12*Weather!DL$21 + CI81*Control!$I$13*Prices!CZ$16 + CI81*Control!$I$14*Prices!CZ$18","v":133.37002392275133},{"$f":"CJ81+CJ81*Control!$I$12*Weather!DM$21 + CJ81*Control!$I$13*Prices!DA$16 + CJ81*Control!$I$14*Prices!DA$18","v":133.17227763149845},{"$f":"CK81+CK81*Control!$I$12*Weather!DN$21 + CK81*Control!$I$13*Prices!DB$16 + CK81*Control!$I$14*Prices!DB$18","v":132.97386796757434}]
["Greater Dandenong (C)",{"$f":"'Volume per connection'!B80","v":260.91619619963939},{"$f":"'Volume per connection'!C80","v":1571.5733565096061},{"$f":"'Volume per connection'!D80","v":3432.9912764350456},{"$f":"'Volume per connection'!E80","v":3254.680916232373},{"$f":"'Volume per connection'!F80","v":3438.3128587758583},{"$f":"'Volume per connection'!G80","v":3075.1811202723147},{"$f":"'Volume per connection'!H80","v":1203.8278537878789},{"$f":"'Volume per connection'!I80","v":519.47097774244833},{"$f":"'Volume per connection'!J80","v":449.00511952191238},{"$f":"J82+J82*Control!$I$12*Weather!AM$21 + J82*Control!$I$13*Prices!AA$16 + J82*Control!$I$14*Prices!AA$18","v":421.26407428237803},{"$f":"K82+K82*Control!$I$12*Weather!AN$21 + K82*Control!$I$13*Prices!AB$16 + K82*Control!$I$14*Prices!AB$18","v":385.47435362482156},{"$f":"L82+L82*Control!$I$12*Weather!AO$21 + L82*Control!$I$13*Prices!AC$16 + L82*Control!$I$14*Prices!AC$18","v":397.52424969364972},{"$f":"M82+M82*Control!$I$12*Weather!AP$21 + M82*Control!$I$13*Prices!AD$16 + M82*Control!$I$14*Prices!AD$18","v":396.53929198005414},{"$f":"N82+N82*Control!$I$12*Weather!AQ$21 + N82*Control!$I$13*Prices!AE$16 + N82*Control!$I$14*Prices!AE$18","v":407.63189495830034},{"$f":"O82+O82*Control!$I$12*Weather!AR$21 + O82*Control!$I$13*Prices!AF$16 + O82*Control!$I$14*Prices!AF$18","v":408.12829362448906},{"$f":"P82+P82*Control!$I$12*Weather!AS$21 + P82*Control!$I$13*Prices!AG$16 + P82*Control!$I$14*Prices!AG$18","v":398.29385507026927},{"$f":"Q82+Q82*Control!$I$12*Weather!AT$21 + Q82*Control!$I$13*Prices!AH$16 + Q82*Control!$I$14*Prices!AH$18","v":373.41900141011985},{"$f":"R82+R82*Control!$I$12*Weather!AU$21 + R82*Control!$I$13*Prices!AI$16 + R82*Control!$I$14*Prices!AI$18","v":353.48729512286059},{"$f":"S82+S82*Control!$I$12*Weather!AV$21 + S82*Control!$I$13*Prices!AJ$16 + S82*Control!$I$14*Prices!AJ$18","v":340.03065261420409},{"$f":"T82+T82*Control!$I$12*Weather!AW$21 + T82*Control!$I$13*Prices!AK$16 + T82*Control!$I$14*Prices!AK$18","v":363.69856999698862},{"$f":"U82+U82*Control!$I$12*Weather!AX$21 + U82*Control!$I$13*Prices!AL$16 + U82*Control!$I$14*Prices!AL$18","v":364.70141626164246},{"$f":"V82+V82*Control!$I$12*Weather!AY$21 + V82*Control!$I$13*Prices!AM$16 + V82*Control!$I$14*Prices!AM$18","v":357.78715335091312},{"$f":"W82+W82*Control!$I$12*Weather!AZ$21 + W82*Control!$I$13*Prices!AN$16 + W82*Control!$I$14*Prices!AN$18","v":347.05876183939455},{"$f":"X82+X82*Control!$I$12*Weather!BA$21 + X82*Control!$I$13*Prices!AO$16 + X82*Control!$I$14*Prices!AO$18","v":385.46688018533024},{"$f":"Y82+Y82*Control!$I$12*Weather!BB$21 + Y82*Control!$I$13*Prices!AP$16 + Y82*Control!$I$14*Prices!AP$18","v":381.62126563612662},{"$f":"Z82+Z82*Control!$I$12*Weather!BC$21 + Z82*Control!$I$13*Prices!AQ$16 + Z82*Control!$I$14*Prices!AQ$18","v":375.7297130454034},{"$f":"AA82+AA82*Control!$I$12*Weather!BD$21 + AA82*Control!$I$13*Prices!AR$16 + AA82*Control!$I$14*Prices!AR$18","v":366.62667608738803},{"$f":"AB82+AB82*Control!$I$12*Weather!BE$21 + AB82*Control!$I$13*Prices!AS$16 + AB82*Control!$I$14*Prices!AS$18","v":361.61634806109493},{"$f":"AC82+AC82*Control!$I$12*Weather!BF$21 + AC82*Control!$I$13*Prices!AT$16 + AC82*Control!$I$14*Prices!AT$18","v":362.79561503113501},{"$f":"AD82+AD82*Control!$I$12*Weather!BG$21 + AD82*Control!$I$13*Prices!AU$16 + AD82*Control!$I$14*Prices!AU$18","v":360.26733840670948},{"$f":"AE82+AE82*Control!$I$12*Weather!BH$21 + AE82*Control!$I$13*Prices!AV$16 + AE82*Control!$I$14*Prices!AV$18","v":350.20558091744755},{"$f":"AF82+AF82*Control!$I$12*Weather!BI$21 + AF82*Control!$I$13*Prices!AW$16 + AF82*Control!$I$14*Prices!AW$18","v":342.83934393056865},{"$f":"AG82+AG82*Control!$I$12*Weather!BJ$21 + AG82*Control!$I$13*Prices!AX$16 + AG82*Control!$I$14*Prices!AX$18","v":340.04369641006298},{"$f":"AH82+AH82*Control!$I$12*Weather!BK$21 + AH82*Control!$I$13*Prices!AY$16 + AH82*Control!$I$14*Prices!AY$18","v":336.62285815922621},{"$f":"AI82+AI82*Control!$I$12*Weather!BL$21 + AI82*Control!$I$13*Prices!AZ$16 + AI82*Control!$I$14*Prices!AZ$18","v":333.48890727210517},{"$f":"AJ82+AJ82*Control!$I$12*Weather!BM$21 + AJ82*Control!$I$13*Prices!BA$16 + AJ82*Control!$I$14*Prices!BA$18","v":331.37542648807892},{"$f":"AK82+AK82*Control!$I$12*Weather!BN$21 + AK82*Control!$I$13*Prices!BB$16 + AK82*Control!$I$14*Prices!BB$18","v":329.98240631651061},{"$f":"AL82+AL82*Control!$I$12*Weather!BO$21 + AL82*Control!$I$13*Prices!BC$16 + AL82*Control!$I$14*Prices!BC$18","v":328.87417802662372},{"$f":"AM82+AM82*Control!$I$12*Weather!BP$21 + AM82*Control!$I$13*Prices!BD$16 + AM82*Control!$I$14*Prices!BD$18","v":326.38933164508535},{"$f":"AN82+AN82*Control!$I$12*Weather!BQ$21 + AN82*Control!$I$13*Prices!BE$16 + AN82*Control!$I$14*Prices!BE$18","v":326.0433528523975},{"$f":"AO82+AO82*Control!$I$12*Weather!BR$21 + AO82*Control!$I$13*Prices!BF$16 + AO82*Control!$I$14*Prices!BF$18","v":322.85647892492801},{"$f":"AP82+AP82*Control!$I$12*Weather!BS$21 + AP82*Control!$I$13*Prices!BG$16 + AP82*Control!$I$14*Prices!BG$18","v":322.45770366809927},{"$f":"AQ82+AQ82*Control!$I$12*Weather!BT$21 + AQ82*Control!$I$13*Prices!BH$16 + AQ82*Control!$I$14*Prices!BH$18","v":322.05810805031933},{"$f":"AR82+AR82*Control!$I$12*Weather!BU$21 + AR82*Control!$I$13*Prices!BI$16 + AR82*Control!$I$14*Prices!BI$18","v":321.65768192760635},{"$f":"AS82+AS82*Control!$I$12*Weather!BV$21 + AS82*Control!$I$13*Prices!BJ$16 + AS82*Control!$I$14*Prices!BJ$18","v":321.25641500433557},{"$f":"AT82+AT82*Control!$I$12*Weather!BW$21 + AT82*Control!$I$13*Prices!BK$16 + AT82*Control!$I$14*Prices!BK$18","v":320.85429683010722},{"$f":"AU82+AU82*Control!$I$12*Weather!BX$21 + AU82*Control!$I$13*Prices!BL$16 + AU82*Control!$I$14*Prices!BL$18","v":320.4513167965336},{"$f":"AV82+AV82*Control!$I$12*Weather!BY$21 + AV82*Control!$I$13*Prices!BM$16 + AV82*Control!$I$14*Prices!BM$18","v":320.04746413394093},{"$f":"AW82+AW82*Control!$I$12*Weather!BZ$21 + AW82*Control!$I$13*Prices!BN$16 + AW82*Control!$I$14*Prices!BN$18","v":319.642727907986},{"$f":"AX82+AX82*Control!$I$12*Weather!CA$21 + AX82*Control!$I$13*Prices!BO$16 + AX82*Control!$I$14*Prices!BO$18","v":319.23709701618094},{"$f":"AY82+AY82*Control!$I$12*Weather!CB$21 + AY82*Control!$I$13*Prices!BP$16 + AY82*Control!$I$14*Prices!BP$18","v":318.83056018432859},{"$f":"AZ82+AZ82*Control!$I$12*Weather!CC$21 + AZ82*Control!$I$13*Prices!BQ$16 + AZ82*Control!$I$14*Prices!BQ$18","v":318.42310596285961},{"$f":"BA82+BA82*Control!$I$12*Weather!CD$21 + BA82*Control!$I$13*Prices!BR$16 + BA82*Control!$I$14*Prices!BR$18","v":318.01472272307308},{"$f":"BB82+BB82*Control!$I$12*Weather!CE$21 + BB82*Control!$I$13*Prices!BS$16 + BB82*Control!$I$14*Prices!BS$18","v":317.60539865327422},{"$f":"BC82+BC82*Control!$I$12*Weather!CF$21 + BC82*Control!$I$13*Prices!BT$16 + BC82*Control!$I$14*Prices!BT$18","v":317.19512175480804},{"$f":"BD82+BD82*Control!$I$12*Weather!CG$21 + BD82*Control!$I$13*Prices!BU$16 + BD82*Control!$I$14*Prices!BU$18","v":316.78387983798359},{"$f":"BE82+BE82*Control!$I$12*Weather!CH$21 + BE82*Control!$I$13*Prices!BV$16 + BE82*Control!$I$14*Prices!BV$18","v":316.37166051788665},{"$f":"BF82+BF82*Control!$I$12*Weather!CI$21 + BF82*Control!$I$13*Prices!BW$16 + BF82*Control!$I$14*Prices!BW$18","v":315.95845121007648},{"$f":"BG82+BG82*Control!$I$12*Weather!CJ$21 + BG82*Control!$I$13*Prices!BX$16 + BG82*Control!$I$14*Prices!BX$18","v":315.54423912616312},{"$f":"BH82+BH82*Control!$I$12*Weather!CK$21 + BH82*Control!$I$13*Prices!BY$16 + BH82*Control!$I$14*Prices!BY$18","v":315.1290112692601},{"$f":"BI82+BI82*Control!$I$12*Weather!CL$21 + BI82*Control!$I$13*Prices!BZ$16 + BI82*Control!$I$14*Prices!BZ$18","v":314.71275442931062},{"$f":"BJ82+BJ82*Control!$I$12*Weather!CM$21 + BJ82*Control!$I$13*Prices!CA$16 + BJ82*Control!$I$14*Prices!CA$18","v":314.29545517827995},{"$f":"BK82+BK82*Control!$I$12*Weather!CN$21 + BK82*Control!$I$13*Prices!CB$16 + BK82*Control!$I$14*Prices!CB$18","v":313.8770998652123},{"$f":"BL82+BL82*Control!$I$12*Weather!CO$21 + BL82*Control!$I$13*Prices!CC$16 + BL82*Control!$I$14*Prices!CC$18","v":313.45767461114463},{"$f":"BM82+BM82*Control!$I$12*Weather!CP$21 + BM82*Control!$I$13*Prices!CD$16 + BM82*Control!$I$14*Prices!CD$18","v":313.03716530387601},{"$f":"BN82+BN82*Control!$I$12*Weather!CQ$21 + BN82*Control!$I$13*Prices!CE$16 + BN82*Control!$I$14*Prices!CE$18","v":312.61555759258334},{"$f":"BO82+BO82*Control!$I$12*Weather!CR$21 + BO82*Control!$I$13*Prices!CF$16 + BO82*Control!$I$14*Prices!CF$18","v":312.19283688228165},{"$f":"BP82+BP82*Control!$I$12*Weather!CS$21 + BP82*Control!$I$13*Prices!CG$16 + BP82*Control!$I$14*Prices!CG$18","v":311.76898832812094},{"$f":"BQ82+BQ82*Control!$I$12*Weather!CT$21 + BQ82*Control!$I$13*Prices!CH$16 + BQ82*Control!$I$14*Prices!CH$18","v":311.34399682951596},{"$f":"BR82+BR82*Control!$I$12*Weather!CU$21 + BR82*Control!$I$13*Prices!CI$16 + BR82*Control!$I$14*Prices!CI$18","v":310.91784702410001},{"$f":"BS82+BS82*Control!$I$12*Weather!CV$21 + BS82*Control!$I$13*Prices!CJ$16 + BS82*Control!$I$14*Prices!CJ$18","v":310.49052328150043},{"$f":"BT82+BT82*Control!$I$12*Weather!CW$21 + BT82*Control!$I$13*Prices!CK$16 + BT82*Control!$I$14*Prices!CK$18","v":310.0620096969248},{"$f":"BU82+BU82*Control!$I$12*Weather!CX$21 + BU82*Control!$I$13*Prices!CL$16 + BU82*Control!$I$14*Prices!CL$18","v":309.63229008455545},{"$f":"BV82+BV82*Control!$I$12*Weather!CY$21 + BV82*Control!$I$13*Prices!CM$16 + BV82*Control!$I$14*Prices!CM$18","v":309.2013479707407},{"$f":"BW82+BW82*Control!$I$12*Weather!CZ$21 + BW82*Control!$I$13*Prices!CN$16 + BW82*Control!$I$14*Prices!CN$18","v":308.76916658698019},{"$f":"BX82+BX82*Control!$I$12*Weather!DA$21 + BX82*Control!$I$13*Prices!CO$16 + BX82*Control!$I$14*Prices!CO$18","v":308.33572886269184},{"$f":"BY82+BY82*Control!$I$12*Weather!DB$21 + BY82*Control!$I$13*Prices!CP$16 + BY82*Control!$I$14*Prices!CP$18","v":307.90101741775646},{"$f":"BZ82+BZ82*Control!$I$12*Weather!DC$21 + BZ82*Control!$I$13*Prices!CQ$16 + BZ82*Control!$I$14*Prices!CQ$18","v":307.46501455482826},{"$f":"CA82+CA82*Control!$I$12*Weather!DD$21 + CA82*Control!$I$13*Prices!CR$16 + CA82*Control!$I$14*Prices!CR$18","v":307.02770225140534},{"$f":"CB82+CB82*Control!$I$12*Weather!DE$21 + CB82*Control!$I$13*Prices!CS$16 + CB82*Control!$I$14*Prices!CS$18","v":306.58906215164797},{"$f":"CC82+CC82*Control!$I$12*Weather!DF$21 + CC82*Control!$I$13*Prices!CT$16 + CC82*Control!$I$14*Prices!CT$18","v":306.14907555793866},{"$f":"CD82+CD82*Control!$I$12*Weather!DG$21 + CD82*Control!$I$13*Prices!CU$16 + CD82*Control!$I$14*Prices!CU$18","v":305.70772342216975},{"$f":"CE82+CE82*Control!$I$12*Weather!DH$21 + CE82*Control!$I$13*Prices!CV$16 + CE82*Control!$I$14*Prices!CV$18","v":305.26498633675243},{"$f":"CF82+CF82*Control!$I$12*Weather!DI$21 + CF82*Control!$I$13*Prices!CW$16 + CF82*Control!$I$14*Prices!CW$18","v":304.82084452533201},{"$f":"CG82+CG82*Control!$I$12*Weather!DJ$21 + CG82*Control!$I$13*Prices!CX$16 + CG82*Control!$I$14*Prices!CX$18","v":304.37527783320206},{"$f":"CH82+CH82*Control!$I$12*Weather!DK$21 + CH82*Control!$I$13*Prices!CY$16 + CH82*Control!$I$14*Prices!CY$18","v":303.92826571740113},{"$f":"CI82+CI82*Control!$I$12*Weather!DL$21 + CI82*Control!$I$13*Prices!CZ$16 + CI82*Control!$I$14*Prices!CZ$18","v":303.47978723648396},{"$f":"CJ82+CJ82*Control!$I$12*Weather!DM$21 + CJ82*Control!$I$13*Prices!DA$16 + CJ82*Control!$I$14*Prices!DA$18","v":303.02982103994947},{"$f":"CK82+CK82*Control!$I$12*Weather!DN$21 + CK82*Control!$I$13*Prices!DB$16 + CK82*Control!$I$14*Prices!DB$18","v":302.57834535731615}]
["Kingston (C)",{"$f":"'Volume per connection'!B81","v":173.73359187707061},{"$f":"'Volume per connection'!C81","v":511.18780584042156},{"$f":"'Volume per connection'!D81","v":964.82214182111193},{"$f":"'Volume per connection'!E81","v":923.59694533700929},{"$f":"'Volume per connection'!F81","v":870.85005535072855},{"$f":"'Volume per connection'!G81","v":819.78141025641025},{"$f":"'Volume per connection'!H81","v":368.96688736926791},{"$f":"'Volume per connection'!I81","v":344.43900333611344},{"$f":"'Volume per connection'!J81","v":342.28309663865548},{"$f":"J83+J83*Control!$I$12*Weather!AM$21 + J83*Control!$I$13*Prices!AA$16 + J83*Control!$I$14*Prices!AA$18","v":321.13569662973987},{"$f":"K83+K83*Control!$I$12*Weather!AN$21 + K83*Control!$I$13*Prices!AB$16 + K83*Control!$I$14*Prices!AB$18","v":293.85267494048929},{"$f":"L83+L83*Control!$I$12*Weather!AO$21 + L83*Control!$I$13*Prices!AC$16 + L83*Control!$I$14*Prices!AC$18","v":303.03848499317661},{"$f":"M83+M83*Control!$I$12*Weather!AP$21 + M83*Control!$I$13*Prices!AD$16 + M83*Control!$I$14*Prices!AD$18","v":302.28763748251436},{"$f":"N83+N83*Control!$I$12*Weather!AQ$21 + N83*Control!$I$13*Prices!AE$16 + N83*Control!$I$14*Prices!AE$18","v":310.74368916678026},{"$f":"O83+O83*Control!$I$12*Weather!AR$21 + O83*Control!$I$13*Prices!AF$16 + O83*Control!$I$14*Prices!AF$18","v":311.12210104950287},{"$f":"P83+P83*Control!$I$12*Weather!AS$21 + P83*Control!$I$13*Prices!AG$16 + P83*Control!$I$14*Prices!AG$18","v":303.62516630268948},{"$f":"Q83+Q83*Control!$I$12*Weather!AT$21 + Q83*Control!$I$13*Prices!AH$16 + Q83*Control!$I$14*Prices!AH$18","v":284.66270558888948},{"$f":"R83+R83*Control!$I$12*Weather!AU$21 + R83*Control!$I$13*Prices!AI$16 + R83*Control!$I$14*Prices!AI$18","v":269.46847761091141},{"$f":"S83+S83*Control!$I$12*Weather!AV$21 + S83*Control!$I$13*Prices!AJ$16 + S83*Control!$I$14*Prices!AJ$18","v":259.21028440116214},{"$f":"T83+T83*Control!$I$12*Weather!AW$21 + T83*Control!$I$13*Prices!AK$16 + T83*Control!$I$14*Prices!AK$18","v":277.25268013462994},{"$f":"U83+U83*Control!$I$12*Weather!AX$21 + U83*Control!$I$13*Prices!AL$16 + U83*Control!$I$14*Prices!AL$18","v":278.01716434648858},{"$f":"V83+V83*Control!$I$12*Weather!AY$21 + V83*Control!$I$13*Prices!AM$16 + V83*Control!$I$14*Prices!AM$18","v":272.74632172763779},{"$f":"W83+W83*Control!$I$12*Weather!AZ$21 + W83*Control!$I$13*Prices!AN$16 + W83*Control!$I$14*Prices!AN$18","v":264.56791371210238},{"$f":"X83+X83*Control!$I$12*Weather!BA$21 + X83*Control!$I$13*Prices!AO$16 + X83*Control!$I$14*Prices!AO$18","v":293.84697782947541},{"$f":"Y83+Y83*Control!$I$12*Weather!BB$21 + Y83*Control!$I$13*Prices!AP$16 + Y83*Control!$I$14*Prices!AP$18","v":290.91541023892853},{"$f":"Z83+Z83*Control!$I$12*Weather!BC$21 + Z83*Control!$I$13*Prices!AQ$16 + Z83*Control!$I$14*Prices!AQ$18","v":286.4241944886283},{"$f":"AA83+AA83*Control!$I$12*Weather!BD$21 + AA83*Control!$I$13*Prices!AR$16 + AA83*Control!$I$14*Prices!AR$18","v":279.48481775697047},{"$f":"AB83+AB83*Control!$I$12*Weather!BE$21 + AB83*Control!$I$13*Prices!AS$16 + AB83*Control!$I$14*Prices!AS$18","v":275.66537223741597},{"$f":"AC83+AC83*Control!$I$12*Weather!BF$21 + AC83*Control!$I$13*Prices!AT$16 + AC83*Control!$I$14*Prices!AT$18","v":276.5643445045892},{"$f":"AD83+AD83*Control!$I$12*Weather!BG$21 + AD83*Control!$I$13*Prices!AU$16 + AD83*Control!$I$14*Prices!AU$18","v":274.63700266695281},{"$f":"AE83+AE83*Control!$I$12*Weather!BH$21 + AE83*Control!$I$13*Prices!AV$16 + AE83*Control!$I$14*Prices!AV$18","v":266.96677940820956},{"$f":"AF83+AF83*Control!$I$12*Weather!BI$21 + AF83*Control!$I$13*Prices!AW$16 + AF83*Control!$I$14*Prices!AW$18","v":261.35139041414249},{"$f":"AG83+AG83*Control!$I$12*Weather!BJ$21 + AG83*Control!$I$13*Prices!AX$16 + AG83*Control!$I$14*Prices!AX$18","v":259.22022787539964},{"$f":"AH83+AH83*Control!$I$12*Weather!BK$21 + AH83*Control!$I$13*Prices!AY$16 + AH83*Control!$I$14*Prices!AY$18","v":256.61247340069986},{"$f":"AI83+AI83*Control!$I$12*Weather!BL$21 + AI83*Control!$I$13*Prices!AZ$16 + AI83*Control!$I$14*Prices!AZ$18","v":254.22341731265476},{"$f":"AJ83+AJ83*Control!$I$12*Weather!BM$21 + AJ83*Control!$I$13*Prices!BA$16 + AJ83*Control!$I$14*Prices!BA$18","v":252.61228034340803},{"$f":"AK83+AK83*Control!$I$12*Weather!BN$21 + AK83*Control!$I$13*Prices!BB$16 + AK83*Control!$I$14*Prices!BB$18","v":251.5503609191658},{"$f":"AL83+AL83*Control!$I$12*Weather!BO$21 + AL83*Control!$I$13*Prices!BC$16 + AL83*Control!$I$14*Prices!BC$18","v":250.70554246531626},{"$f":"AM83+AM83*Control!$I$12*Weather!BP$21 + AM83*Control!$I$13*Prices!BD$16 + AM83*Control!$I$14*Prices!BD$18","v":248.81130812997077},{"$f":"AN83+AN83*Control!$I$12*Weather!BQ$21 + AN83*Control!$I$13*Prices!BE$16 + AN83*Control!$I$14*Prices!BE$18","v":248.54756349236266},{"$f":"AO83+AO83*Control!$I$12*Weather!BR$21 + AO83*Control!$I$13*Prices!BF$16 + AO83*Control!$I$14*Prices!BF$18","v":246.11816340522617},{"$f":"AP83+AP83*Control!$I$12*Weather!BS$21 + AP83*Control!$I$13*Prices!BG$16 + AP83*Control!$I$14*Prices!BG$18","v":245.81417125940044},{"$f":"AQ83+AQ83*Control!$I$12*Weather!BT$21 + AQ83*Control!$I$13*Prices!BH$16 + AQ83*Control!$I$14*Prices!BH$18","v":245.50955374055656},{"$f":"AR83+AR83*Control!$I$12*Weather!BU$21 + AR83*Control!$I$13*Prices!BI$16 + AR83*Control!$I$14*Prices!BI$18","v":245.20430311579054},{"$f":"AS83+AS83*Control!$I$12*Weather!BV$21 + AS83*Control!$I$13*Prices!BJ$16 + AS83*Control!$I$14*Prices!BJ$18","v":244.89841153659867},{"$f":"AT83+AT83*Control!$I$12*Weather!BW$21 + AT83*Control!$I$13*Prices!BK$16 + AT83*Control!$I$14*Prices!BK$18","v":244.59187103649009},{"$f":"AU83+AU83*Control!$I$12*Weather!BX$21 + AU83*Control!$I$13*Prices!BL$16 + AU83*Control!$I$14*Prices!BL$18","v":244.28467352853744},{"$f":"AV83+AV83*Control!$I$12*Weather!BY$21 + AV83*Control!$I$13*Prices!BM$16 + AV83*Control!$I$14*Prices!BM$18","v":243.97681080286259},{"$f":"AW83+AW83*Control!$I$12*Weather!BZ$21 + AW83*Control!$I$13*Prices!BN$16 + AW83*Control!$I$14*Prices!BN$18","v":243.66827452405755},{"$f":"AX83+AX83*Control!$I$12*Weather!CA$21 + AX83*Control!$I$13*Prices!BO$16 + AX83*Control!$I$14*Prices!BO$18","v":243.35905622853528},{"$f":"AY83+AY83*Control!$I$12*Weather!CB$21 + AY83*Control!$I$13*Prices!BP$16 + AY83*Control!$I$14*Prices!BP$18","v":243.04914732181226},{"$f":"AZ83+AZ83*Control!$I$12*Weather!CC$21 + AZ83*Control!$I$13*Prices!BQ$16 + AZ83*Control!$I$14*Prices!BQ$18","v":242.73853907571609},{"$f":"BA83+BA83*Control!$I$12*Weather!CD$21 + BA83*Control!$I$13*Prices!BR$16 + BA83*Control!$I$14*Prices!BR$18","v":242.42722262551996},{"$f":"BB83+BB83*Control!$I$12*Weather!CE$21 + BB83*Control!$I$13*Prices!BS$16 + BB83*Control!$I$14*Prices!BS$18","v":242.11518896699809},{"$f":"BC83+BC83*Control!$I$12*Weather!CF$21 + BC83*Control!$I$13*Prices!BT$16 + BC83*Control!$I$14*Prices!BT$18","v":241.8024289534022},{"$f":"BD83+BD83*Control!$I$12*Weather!CG$21 + BD83*Control!$I$13*Prices!BU$16 + BD83*Control!$I$14*Prices!BU$18","v":241.48893329235455},{"$f":"BE83+BE83*Control!$I$12*Weather!CH$21 + BE83*Control!$I$13*Prices!BV$16 + BE83*Control!$I$14*Prices!BV$18","v":241.17469254265598},{"$f":"BF83+BF83*Control!$I$12*Weather!CI$21 + BF83*Control!$I$13*Prices!BW$16 + BF83*Control!$I$14*Prices!BW$18","v":240.85969711100526},{"$f":"BG83+BG83*Control!$I$12*Weather!CJ$21 + BG83*Control!$I$13*Prices!BX$16 + BG83*Control!$I$14*Prices!BX$18","v":240.54393724862783},{"$f":"BH83+BH83*Control!$I$12*Weather!CK$21 + BH83*Control!$I$13*Prices!BY$16 + BH83*Control!$I$14*Prices!BY$18","v":240.22740304780905},{"$f":"BI83+BI83*Control!$I$12*Weather!CL$21 + BI83*Control!$I$13*Prices!BZ$16 + BI83*Control!$I$14*Prices!BZ$18","v":239.91008443833167},{"$f":"BJ83+BJ83*Control!$I$12*Weather!CM$21 + BJ83*Control!$I$13*Prices!CA$16 + BJ83*Control!$I$14*Prices!CA$18","v":239.5919711838105},{"$f":"BK83+BK83*Control!$I$12*Weather!CN$21 + BK83*Control!$I$13*Prices!CB$16 + BK83*Control!$I$14*Prices!CB$18","v":239.27305287792458},{"$f":"BL83+BL83*Control!$I$12*Weather!CO$21 + BL83*Control!$I$13*Prices!CC$16 + BL83*Control!$I$14*Prices!CC$18","v":238.95331894053962},{"$f":"BM83+BM83*Control!$I$12*Weather!CP$21 + BM83*Control!$I$13*Prices!CD$16 + BM83*Control!$I$14*Prices!CD$18","v":238.63275861372077},{"$f":"BN83+BN83*Control!$I$12*Weather!CQ$21 + BN83*Control!$I$13*Prices!CE$16 + BN83*Control!$I$14*Prices!CE$18","v":238.31136095762801},{"$f":"BO83+BO83*Control!$I$12*Weather!CR$21 + BO83*Control!$I$13*Prices!CF$16 + BO83*Control!$I$14*Prices!CF$18","v":237.98911484629323},{"$f":"BP83+BP83*Control!$I$12*Weather!CS$21 + BP83*Control!$I$13*Prices!CG$16 + BP83*Control!$I$14*Prices!CG$18","v":237.6660089632725},{"$f":"BQ83+BQ83*Control!$I$12*Weather!CT$21 + BQ83*Control!$I$13*Prices!CH$16 + BQ83*Control!$I$14*Prices!CH$18","v":237.34203179717133},{"$f":"BR83+BR83*Control!$I$12*Weather!CU$21 + BR83*Control!$I$13*Prices!CI$16 + BR83*Control!$I$14*Prices!CI$18","v":237.01717163703543},{"$f":"BS83+BS83*Control!$I$12*Weather!CV$21 + BS83*Control!$I$13*Prices!CJ$16 + BS83*Control!$I$14*Prices!CJ$18","v":236.69141656760564},{"$f":"BT83+BT83*Control!$I$12*Weather!CW$21 + BT83*Control!$I$13*Prices!CK$16 + BT83*Control!$I$14*Prices!CK$18","v":236.36475446442861},{"$f":"BU83+BU83*Control!$I$12*Weather!CX$21 + BU83*Control!$I$13*Prices!CL$16 + BU83*Control!$I$14*Prices!CL$18","v":236.03717298882145},{"$f":"BV83+BV83*Control!$I$12*Weather!CY$21 + BV83*Control!$I$13*Prices!CM$16 + BV83*Control!$I$14*Prices!CM$18","v":235.70865958268126},{"$f":"BW83+BW83*Control!$I$12*Weather!CZ$21 + BW83*Control!$I$13*Prices!CN$16 + BW83*Control!$I$14*Prices!CN$18","v":235.37920146313769},{"$f":"BX83+BX83*Control!$I$12*Weather!DA$21 + BX83*Control!$I$13*Prices!CO$16 + BX83*Control!$I$14*Prices!CO$18","v":235.04878561703913},{"$f":"BY83+BY83*Control!$I$12*Weather!DB$21 + BY83*Control!$I$13*Prices!CP$16 + BY83*Control!$I$14*Prices!CP$18","v":234.7173987952693},{"$f":"BZ83+BZ83*Control!$I$12*Weather!DC$21 + BZ83*Control!$I$13*Prices!CQ$16 + BZ83*Control!$I$14*Prices!CQ$18","v":234.38502750688559},{"$f":"CA83+CA83*Control!$I$12*Weather!DD$21 + CA83*Control!$I$13*Prices!CR$16 + CA83*Control!$I$14*Prices!CR$18","v":234.05165801307413},{"$f":"CB83+CB83*Control!$I$12*Weather!DE$21 + CB83*Control!$I$13*Prices!CS$16 + CB83*Control!$I$14*Prices!CS$18","v":233.71727632091284},{"$f":"CC83+CC83*Control!$I$12*Weather!DF$21 + CC83*Control!$I$13*Prices!CT$16 + CC83*Control!$I$14*Prices!CT$18","v":233.38186817693739},{"$f":"CD83+CD83*Control!$I$12*Weather!DG$21 + CD83*Control!$I$13*Prices!CU$16 + CD83*Control!$I$14*Prices!CU$18","v":233.04541906049985},{"$f":"CE83+CE83*Control!$I$12*Weather!DH$21 + CE83*Control!$I$13*Prices!CV$16 + CE83*Control!$I$14*Prices!CV$18","v":232.70791417691461},{"$f":"CF83+CF83*Control!$I$12*Weather!DI$21 + CF83*Control!$I$13*Prices!CW$16 + CF83*Control!$I$14*Prices!CW$18","v":232.36933845038047},{"$f":"CG83+CG83*Control!$I$12*Weather!DJ$21 + CG83*Control!$I$13*Prices!CX$16 + CG83*Control!$I$14*Prices!CX$18","v":232.02967651667319},{"$f":"CH83+CH83*Control!$I$12*Weather!DK$21 + CH83*Control!$I$13*Prices!CY$16 + CH83*Control!$I$14*Prices!CY$18","v":231.68891271559616},{"$f":"CI83+CI83*Control!$I$12*Weather!DL$21 + CI83*Control!$I$13*Prices!CZ$16 + CI83*Control!$I$14*Prices!CZ$18","v":231.34703108318277},{"$f":"CJ83+CJ83*Control!$I$12*Weather!DM$21 + CJ83*Control!$I$13*Prices!DA$16 + CJ83*Control!$I$14*Prices!DA$18","v":231.00401534363723},{"$f":"CK83+CK83*Control!$I$12*Weather!DN$21 + CK83*Control!$I$13*Prices!DB$16 + CK83*Control!$I$14*Prices!DB$18","v":230.65984890100663}]
["Knox (C)",{"$f":"'Volume per connection'!B82","v":188.22872434210808},{"$f":"'Volume per connection'!C82","v":655.32022656282538},{"$f":"'Volume per connection'!D82","v":1286.7618210526316},{"$f":"'Volume per connection'!E82","v":1234.683421560035},{"$f":"'Volume per connection'!F82","v":1175.5349579316389},{"$f":"'Volume per connection'!G82","v":1195.1792451327433},{"$f":"'Volume per connection'!H82","v":435.15388938053098},{"$f":"'Volume per connection'!I82","v":355.28981610247024},{"$f":"'Volume per connection'!J82","v":334.08478558225511},{"$f":"J84+J84*Control!$I$12*Weather!AM$21 + J84*Control!$I$13*Prices!AA$16 + J84*Control!$I$14*Prices!AA$18","v":313.44390478217508},{"$f":"K84+K84*Control!$I$12*Weather!AN$21 + K84*Control!$I$13*Prices!AB$16 + K84*Control!$I$14*Prices!AB$18","v":286.81436175010492},{"$f":"L84+L84*Control!$I$12*Weather!AO$21 + L84*Control!$I$13*Prices!AC$16 + L84*Control!$I$14*Prices!AC$18","v":295.78015472086071},{"$f":"M84+M84*Control!$I$12*Weather!AP$21 + M84*Control!$I$13*Prices!AD$16 + M84*Control!$I$14*Prices!AD$18","v":295.04729139203152},{"$f":"N84+N84*Control!$I$12*Weather!AQ$21 + N84*Control!$I$13*Prices!AE$16 + N84*Control!$I$14*Prices!AE$18","v":303.30080505237106},{"$f":"O84+O84*Control!$I$12*Weather!AR$21 + O84*Control!$I$13*Prices!AF$16 + O84*Control!$I$14*Prices!AF$18","v":303.67015327301846},{"$f":"P84+P84*Control!$I$12*Weather!AS$21 + P84*Control!$I$13*Prices!AG$16 + P84*Control!$I$14*Prices!AG$18","v":296.3527839316472},{"$f":"Q84+Q84*Control!$I$12*Weather!AT$21 + Q84*Control!$I$13*Prices!AH$16 + Q84*Control!$I$14*Prices!AH$18","v":277.84450910331213},{"$f":"R84+R84*Control!$I$12*Weather!AU$21 + R84*Control!$I$13*Prices!AI$16 + R84*Control!$I$14*Prices!AI$18","v":263.01421089121681},{"$f":"S84+S84*Control!$I$12*Weather!AV$21 + S84*Control!$I$13*Prices!AJ$16 + S84*Control!$I$14*Prices!AJ$18","v":253.00172031661398},{"$f":"T84+T84*Control!$I$12*Weather!AW$21 + T84*Control!$I$13*Prices!AK$16 + T84*Control!$I$14*Prices!AK$18","v":270.61196741674809},{"$f":"U84+U84*Control!$I$12*Weather!AX$21 + U84*Control!$I$13*Prices!AL$16 + U84*Control!$I$14*Prices!AL$18","v":271.35814082264505},{"$f":"V84+V84*Control!$I$12*Weather!AY$21 + V84*Control!$I$13*Prices!AM$16 + V84*Control!$I$14*Prices!AM$18","v":266.2135445996667},{"$f":"W84+W84*Control!$I$12*Weather!AZ$21 + W84*Control!$I$13*Prices!AN$16 + W84*Control!$I$14*Prices!AN$18","v":258.23102453044231},{"$f":"X84+X84*Control!$I$12*Weather!BA$21 + X84*Control!$I$13*Prices!AO$16 + X84*Control!$I$14*Prices!AO$18","v":286.80880109540107},{"$f":"Y84+Y84*Control!$I$12*Weather!BB$21 + Y84*Control!$I$13*Prices!AP$16 + Y84*Control!$I$14*Prices!AP$18","v":283.94744995207628},{"$f":"Z84+Z84*Control!$I$12*Weather!BC$21 + Z84*Control!$I$13*Prices!AQ$16 + Z84*Control!$I$14*Prices!AQ$18","v":279.56380709714824},{"$f":"AA84+AA84*Control!$I$12*Weather!BD$21 + AA84*Control!$I$13*Prices!AR$16 + AA84*Control!$I$14*Prices!AR$18","v":272.7906412287856},{"$f":"AB84+AB84*Control!$I$12*Weather!BE$21 + AB84*Control!$I$13*Prices!AS$16 + AB84*Control!$I$14*Prices!AS$18","v":269.0626784693784},{"$f":"AC84+AC84*Control!$I$12*Weather!BF$21 + AC84*Control!$I$13*Prices!AT$16 + AC84*Control!$I$14*Prices!AT$18","v":269.94011869377846},{"$f":"AD84+AD84*Control!$I$12*Weather!BG$21 + AD84*Control!$I$13*Prices!AU$16 + AD84*Control!$I$14*Prices!AU$18","v":268.05894024560575},{"$f":"AE84+AE84*Control!$I$12*Weather!BH$21 + AE84*Control!$I$13*Prices!AV$16 + AE84*Control!$I$14*Prices!AV$18","v":260.57243297156862},{"$f":"AF84+AF84*Control!$I$12*Weather!BI$21 + AF84*Control!$I$13*Prices!AW$16 + AF84*Control!$I$14*Prices!AW$18","v":255.0915428941239},{"$f":"AG84+AG84*Control!$I$12*Weather!BJ$21 + AG84*Control!$I$13*Prices!AX$16 + AG84*Control!$I$14*Prices!AX$18","v":253.01142562631594},{"$f":"AH84+AH84*Control!$I$12*Weather!BK$21 + AH84*Control!$I$13*Prices!AY$16 + AH84*Control!$I$14*Prices!AY$18","v":250.46613167786552},{"$f":"AI84+AI84*Control!$I$12*Weather!BL$21 + AI84*Control!$I$13*Prices!AZ$16 + AI84*Control!$I$14*Prices!AZ$18","v":248.13429788660727},{"$f":"AJ84+AJ84*Control!$I$12*Weather!BM$21 + AJ84*Control!$I$13*Prices!BA$16 + AJ84*Control!$I$14*Prices!BA$18","v":246.56175061740143},{"$f":"AK84+AK84*Control!$I$12*Weather!BN$21 + AK84*Control!$I$13*Prices!BB$16 + AK84*Control!$I$14*Prices!BB$18","v":245.52526612068635},{"$f":"AL84+AL84*Control!$I$12*Weather!BO$21 + AL84*Control!$I$13*Prices!BC$16 + AL84*Control!$I$14*Prices!BC$18","v":244.70068262596527},{"$f":"AM84+AM84*Control!$I$12*Weather!BP$21 + AM84*Control!$I$13*Prices!BD$16 + AM84*Control!$I$14*Prices!BD$18","v":242.85181869438026},{"$f":"AN84+AN84*Control!$I$12*Weather!BQ$21 + AN84*Control!$I$13*Prices!BE$16 + AN84*Control!$I$14*Prices!BE$18","v":242.59439122697364},{"$f":"AO84+AO84*Control!$I$12*Weather!BR$21 + AO84*Control!$I$13*Prices!BF$16 + AO84*Control!$I$14*Prices!BF$18","v":240.2231797497638},{"$f":"AP84+AP84*Control!$I$12*Weather!BS$21 + AP84*Control!$I$13*Prices!BG$16 + AP84*Control!$I$14*Prices!BG$18","v":239.9264687761451},{"$f":"AQ84+AQ84*Control!$I$12*Weather!BT$21 + AQ84*Control!$I$13*Prices!BH$16 + AQ84*Control!$I$14*Prices!BH$18","v":239.62914740834472},{"$f":"AR84+AR84*Control!$I$12*Weather!BU$21 + AR84*Control!$I$13*Prices!BI$16 + AR84*Control!$I$14*Prices!BI$18","v":239.33120809867597},{"$f":"AS84+AS84*Control!$I$12*Weather!BV$21 + AS84*Control!$I$13*Prices!BJ$16 + AS84*Control!$I$14*Prices!BJ$18","v":239.03264318662124},{"$f":"AT84+AT84*Control!$I$12*Weather!BW$21 + AT84*Control!$I$13*Prices!BK$16 + AT84*Control!$I$14*Prices!BK$18","v":238.73344489650185},{"$f":"AU84+AU84*Control!$I$12*Weather!BX$21 + AU84*Control!$I$13*Prices!BL$16 + AU84*Control!$I$14*Prices!BL$18","v":238.43360533508724},{"$f":"AV84+AV84*Control!$I$12*Weather!BY$21 + AV84*Control!$I$13*Prices!BM$16 + AV84*Control!$I$14*Prices!BM$18","v":238.133116489141},{"$f":"AW84+AW84*Control!$I$12*Weather!BZ$21 + AW84*Control!$I$13*Prices!BN$16 + AW84*Control!$I$14*Prices!BN$18","v":237.83197022290355},{"$f":"AX84+AX84*Control!$I$12*Weather!CA$21 + AX84*Control!$I$13*Prices!BO$16 + AX84*Control!$I$14*Prices!BO$18","v":237.53015827550632},{"$f":"AY84+AY84*Control!$I$12*Weather!CB$21 + AY84*Control!$I$13*Prices!BP$16 + AY84*Control!$I$14*Prices!BP$18","v":237.22767225831953},{"$f":"AZ84+AZ84*Control!$I$12*Weather!CC$21 + AZ84*Control!$I$13*Prices!BQ$16 + AZ84*Control!$I$14*Prices!BQ$18","v":236.92450365222658},{"$f":"BA84+BA84*Control!$I$12*Weather!CD$21 + BA84*Control!$I$13*Prices!BR$16 + BA84*Control!$I$14*Prices!BR$18","v":236.62064380482721},{"$f":"BB84+BB84*Control!$I$12*Weather!CE$21 + BB84*Control!$I$13*Prices!BS$16 + BB84*Control!$I$14*Prices!BS$18","v":236.31608392756345},{"$f":"BC84+BC84*Control!$I$12*Weather!CF$21 + BC84*Control!$I$13*Prices!BT$16 + BC84*Control!$I$14*Prices!BT$18","v":236.0108150927685},{"$f":"BD84+BD84*Control!$I$12*Weather!CG$21 + BD84*Control!$I$13*Prices!BU$16 + BD84*Control!$I$14*Prices!BU$18","v":235.70482823063421},{"$f":"BE84+BE84*Control!$I$12*Weather!CH$21 + BE84*Control!$I$13*Prices!BV$16 + BE84*Control!$I$14*Prices!BV$18","v":235.39811412609552},{"$f":"BF84+BF84*Control!$I$12*Weather!CI$21 + BF84*Control!$I$13*Prices!BW$16 + BF84*Control!$I$14*Prices!BW$18","v":235.09066341562848},{"$f":"BG84+BG84*Control!$I$12*Weather!CJ$21 + BG84*Control!$I$13*Prices!BX$16 + BG84*Control!$I$14*Prices!BX$18","v":234.7824665839596},{"$f":"BH84+BH84*Control!$I$12*Weather!CK$21 + BH84*Control!$I$13*Prices!BY$16 + BH84*Control!$I$14*Prices!BY$18","v":234.47351396068231},{"$f":"BI84+BI84*Control!$I$12*Weather!CL$21 + BI84*Control!$I$13*Prices!BZ$16 + BI84*Control!$I$14*Prices!BZ$18","v":234.16379571677959},{"$f":"BJ84+BJ84*Control!$I$12*Weather!CM$21 + BJ84*Control!$I$13*Prices!CA$16 + BJ84*Control!$I$14*Prices!CA$18","v":233.85330186104656},{"$f":"BK84+BK84*Control!$I$12*Weather!CN$21 + BK84*Control!$I$13*Prices!CB$16 + BK84*Control!$I$14*Prices!CB$18","v":233.54202223641283},{"$f":"BL84+BL84*Control!$I$12*Weather!CO$21 + BL84*Control!$I$13*Prices!CC$16 + BL84*Control!$I$14*Prices!CC$18","v":233.22994651615784},{"$f":"BM84+BM84*Control!$I$12*Weather!CP$21 + BM84*Control!$I$13*Prices!CD$16 + BM84*Control!$I$14*Prices!CD$18","v":232.91706420001907},{"$f":"BN84+BN84*Control!$I$12*Weather!CQ$21 + BN84*Control!$I$13*Prices!CE$16 + BN84*Control!$I$14*Prices!CE$18","v":232.60336461018585},{"$f":"BO84+BO84*Control!$I$12*Weather!CR$21 + BO84*Control!$I$13*Prices!CF$16 + BO84*Control!$I$14*Prices!CF$18","v":232.2888368871775},{"$f":"BP84+BP84*Control!$I$12*Weather!CS$21 + BP84*Control!$I$13*Prices!CG$16 + BP84*Control!$I$14*Prices!CG$18","v":231.97346998559985},{"$f":"BQ84+BQ84*Control!$I$12*Weather!CT$21 + BQ84*Control!$I$13*Prices!CH$16 + BQ84*Control!$I$14*Prices!CH$18","v":231.65725266977748},{"$f":"BR84+BR84*Control!$I$12*Weather!CU$21 + BR84*Control!$I$13*Prices!CI$16 + BR84*Control!$I$14*Prices!CI$18","v":231.34017350925498},{"$f":"BS84+BS84*Control!$I$12*Weather!CV$21 + BS84*Control!$I$13*Prices!CJ$16 + BS84*Control!$I$14*Prices!CJ$18","v":231.02222087416567},{"$f":"BT84+BT84*Control!$I$12*Weather!CW$21 + BT84*Control!$I$13*Prices!CK$16 + BT84*Control!$I$14*Prices!CK$18","v":230.70338293045921},{"$f":"BU84+BU84*Control!$I$12*Weather!CX$21 + BU84*Control!$I$13*Prices!CL$16 + BU84*Control!$I$14*Prices!CL$18","v":230.38364763498694},{"$f":"BV84+BV84*Control!$I$12*Weather!CY$21 + BV84*Control!$I$13*Prices!CM$16 + BV84*Control!$I$14*Prices!CM$18","v":230.06300273043558},{"$f":"BW84+BW84*Control!$I$12*Weather!CZ$21 + BW84*Control!$I$13*Prices!CN$16 + BW84*Control!$I$14*Prices!CN$18","v":229.74143574010813},{"$f":"BX84+BX84*Control!$I$12*Weather!DA$21 + BX84*Control!$I$13*Prices!CO$16 + BX84*Control!$I$14*Prices!CO$18","v":229.41893396254196},{"$f":"BY84+BY84*Control!$I$12*Weather!DB$21 + BY84*Control!$I$13*Prices!CP$16 + BY84*Control!$I$14*Prices!CP$18","v":229.09548446596156},{"$f":"BZ84+BZ84*Control!$I$12*Weather!DC$21 + BZ84*Control!$I$13*Prices!CQ$16 + BZ84*Control!$I$14*Prices!CQ$18","v":228.77107408255722},{"$f":"CA84+CA84*Control!$I$12*Weather!DD$21 + CA84*Control!$I$13*Prices!CR$16 + CA84*Control!$I$14*Prices!CR$18","v":228.445689402585},{"$f":"CB84+CB84*Control!$I$12*Weather!DE$21 + CB84*Control!$I$13*Prices!CS$16 + CB84*Control!$I$14*Prices!CS$18","v":228.11931676827908},{"$f":"CC84+CC84*Control!$I$12*Weather!DF$21 + CC84*Control!$I$13*Prices!CT$16 + CC84*Control!$I$14*Prices!CT$18","v":227.79194226757193},{"$f":"CD84+CD84*Control!$I$12*Weather!DG$21 + CD84*Control!$I$13*Prices!CU$16 + CD84*Control!$I$14*Prices!CU$18","v":227.46355172761187},{"$f":"CE84+CE84*Control!$I$12*Weather!DH$21 + CE84*Control!$I$13*Prices!CV$16 + CE84*Control!$I$14*Prices!CV$18","v":227.13413070807326},{"$f":"CF84+CF84*Control!$I$12*Weather!DI$21 + CF84*Control!$I$13*Prices!CW$16 + CF84*Control!$I$14*Prices!CW$18","v":226.80366449424812},{"$f":"CG84+CG84*Control!$I$12*Weather!DJ$21 + CG84*Control!$I$13*Prices!CX$16 + CG84*Control!$I$14*Prices!CX$18","v":226.47213808991376},{"$f":"CH84+CH84*Control!$I$12*Weather!DK$21 + CH84*Control!$I$13*Prices!CY$16 + CH84*Control!$I$14*Prices!CY$18","v":226.13953620996409},{"$f":"CI84+CI84*Control!$I$12*Weather!DL$21 + CI84*Control!$I$13*Prices!CZ$16 + CI84*Control!$I$14*Prices!CZ$18","v":225.80584327279894},{"$f":"CJ84+CJ84*Control!$I$12*Weather!DM$21 + CJ84*Control!$I$13*Prices!DA$16 + CJ84*Control!$I$14*Prices!DA$18","v":225.47104339245783},{"$f":"CK84+CK84*Control!$I$12*Weather!DN$21 + CK84*Control!$I$13*Prices!DB$16 + CK84*Control!$I$14*Prices!DB$18","v":225.13512037049148}]
["Manningham (C)",{"$f":"'Volume per connection'!B83","v":186.03728086154422},{"$f":"'Volume per connection'!C83","v":382.36698727498464},{"$f":"'Volume per connection'!D83","v":476.89981647940078},{"$f":"'Volume per connection'!E83","v":448.08651205936923},{"$f":"'Volume per connection'!F83","v":431.82239667896681},{"$f":"'Volume per connection'!G83","v":487.57730978260867},{"$f":"'Volume per connection'!H83","v":398.41714954954955},{"$f":"'Volume per connection'!I83","v":393.42362250453721},{"$f":"'Volume per connection'!J83","v":368.45886050724636},{"$f":"J85+J85*Control!$I$12*Weather!AM$21 + J85*Control!$I$13*Prices!AA$16 + J85*Control!$I$14*Prices!AA$18","v":345.69423383857435},{"$f":"K85+K85*Control!$I$12*Weather!AN$21 + K85*Control!$I$13*Prices!AB$16 + K85*Control!$I$14*Prices!AB$18","v":316.32476984360454},{"$f":"L85+L85*Control!$I$12*Weather!AO$21 + L85*Control!$I$13*Prices!AC$16 + L85*Control!$I$14*Prices!AC$18","v":326.21305570430616},{"$f":"M85+M85*Control!$I$12*Weather!AP$21 + M85*Control!$I$13*Prices!AD$16 + M85*Control!$I$14*Prices!AD$18","v":325.40478786721405},{"$f":"N85+N85*Control!$I$12*Weather!AQ$21 + N85*Control!$I$13*Prices!AE$16 + N85*Control!$I$14*Prices!AE$18","v":334.50750780451847},{"$f":"O85+O85*Control!$I$12*Weather!AR$21 + O85*Control!$I$13*Prices!AF$16 + O85*Control!$I$14*Prices!AF$18","v":334.91485836456548},{"$f":"P85+P85*Control!$I$12*Weather!AS$21 + P85*Control!$I$13*Prices!AG$16 + P85*Control!$I$14*Prices!AG$18","v":326.84460289114315},{"$f":"Q85+Q85*Control!$I$12*Weather!AT$21 + Q85*Control!$I$13*Prices!AH$16 + Q85*Control!$I$14*Prices!AH$18","v":306.43200660568834},{"$f":"R85+R85*Control!$I$12*Weather!AU$21 + R85*Control!$I$13*Prices!AI$16 + R85*Control!$I$14*Prices!AI$18","v":290.0758149560512},{"$f":"S85+S85*Control!$I$12*Weather!AV$21 + S85*Control!$I$13*Prices!AJ$16 + S85*Control!$I$14*Prices!AJ$18","v":279.03313648888292},{"$f":"T85+T85*Control!$I$12*Weather!AW$21 + T85*Control!$I$13*Prices!AK$16 + T85*Control!$I$14*Prices!AK$18","v":298.45530672766762},{"$f":"U85+U85*Control!$I$12*Weather!AX$21 + U85*Control!$I$13*Prices!AL$16 + U85*Control!$I$14*Prices!AL$18","v":299.27825411929592},{"$f":"V85+V85*Control!$I$12*Weather!AY$21 + V85*Control!$I$13*Prices!AM$16 + V85*Control!$I$14*Prices!AM$18","v":293.60432898443889},{"$f":"W85+W85*Control!$I$12*Weather!AZ$21 + W85*Control!$I$13*Prices!AN$16 + W85*Control!$I$14*Prices!AN$18","v":284.8004852429271},{"$f":"X85+X85*Control!$I$12*Weather!BA$21 + X85*Control!$I$13*Prices!AO$16 + X85*Control!$I$14*Prices!AO$18","v":316.31863705161777},{"$f":"Y85+Y85*Control!$I$12*Weather!BB$21 + Y85*Control!$I$13*Prices!AP$16 + Y85*Control!$I$14*Prices!AP$18","v":313.16288070688307},{"$f":"Z85+Z85*Control!$I$12*Weather!BC$21 + Z85*Control!$I$13*Prices!AQ$16 + Z85*Control!$I$14*Prices!AQ$18","v":308.3282036401543},{"$f":"AA85+AA85*Control!$I$12*Weather!BD$21 + AA85*Control!$I$13*Prices!AR$16 + AA85*Control!$I$14*Prices!AR$18","v":300.85814488385989},{"$f":"AB85+AB85*Control!$I$12*Weather!BE$21 + AB85*Control!$I$13*Prices!AS$16 + AB85*Control!$I$14*Prices!AS$18","v":296.74661101693846},{"$f":"AC85+AC85*Control!$I$12*Weather!BF$21 + AC85*Control!$I$13*Prices!AT$16 + AC85*Control!$I$14*Prices!AT$18","v":297.71433130591305},{"$f":"AD85+AD85*Control!$I$12*Weather!BG$21 + AD85*Control!$I$13*Prices!AU$16 + AD85*Control!$I$14*Prices!AU$18","v":295.63959789290686},{"$f":"AE85+AE85*Control!$I$12*Weather!BH$21 + AE85*Control!$I$13*Prices!AV$16 + AE85*Control!$I$14*Prices!AV$18","v":287.38280183868557},{"$f":"AF85+AF85*Control!$I$12*Weather!BI$21 + AF85*Control!$I$13*Prices!AW$16 + AF85*Control!$I$14*Prices!AW$18","v":281.3379814827357},{"$f":"AG85+AG85*Control!$I$12*Weather!BJ$21 + AG85*Control!$I$13*Prices!AX$16 + AG85*Control!$I$14*Prices!AX$18","v":279.04384038055355},{"$f":"AH85+AH85*Control!$I$12*Weather!BK$21 + AH85*Control!$I$13*Prices!AY$16 + AH85*Control!$I$14*Prices!AY$18","v":276.23666044188155},{"$f":"AI85+AI85*Control!$I$12*Weather!BL$21 + AI85*Control!$I$13*Prices!AZ$16 + AI85*Control!$I$14*Prices!AZ$18","v":273.66490363433383},{"$f":"AJ85+AJ85*Control!$I$12*Weather!BM$21 + AJ85*Control!$I$13*Prices!BA$16 + AJ85*Control!$I$14*Prices!BA$18","v":271.93055654667597},{"$f":"AK85+AK85*Control!$I$12*Weather!BN$21 + AK85*Control!$I$13*Prices!BB$16 + AK85*Control!$I$14*Prices!BB$18","v":270.78742787672627},{"$f":"AL85+AL85*Control!$I$12*Weather!BO$21 + AL85*Control!$I$13*Prices!BC$16 + AL85*Control!$I$14*Prices!BC$18","v":269.87800276079798},{"$f":"AM85+AM85*Control!$I$12*Weather!BP$21 + AM85*Control!$I$13*Prices!BD$16 + AM85*Control!$I$14*Prices!BD$18","v":267.83890871382573},{"$f":"AN85+AN85*Control!$I$12*Weather!BQ$21 + AN85*Control!$I$13*Prices!BE$16 + AN85*Control!$I$14*Prices!BE$18","v":267.55499446391877},{"$f":"AO85+AO85*Control!$I$12*Weather!BR$21 + AO85*Control!$I$13*Prices!BF$16 + AO85*Control!$I$14*Prices!BF$18","v":264.93980838954627},{"$f":"AP85+AP85*Control!$I$12*Weather!BS$21 + AP85*Control!$I$13*Prices!BG$16 + AP85*Control!$I$14*Prices!BG$18","v":264.61256874273323},{"$f":"AQ85+AQ85*Control!$I$12*Weather!BT$21 + AQ85*Control!$I$13*Prices!BH$16 + AQ85*Control!$I$14*Prices!BH$18","v":264.28465589811429},{"$f":"AR85+AR85*Control!$I$12*Weather!BU$21 + AR85*Control!$I$13*Prices!BI$16 + AR85*Control!$I$14*Prices!BI$18","v":263.95606153141921},{"$f":"AS85+AS85*Control!$I$12*Weather!BV$21 + AS85*Control!$I$13*Prices!BJ$16 + AS85*Control!$I$14*Prices!BJ$18","v":263.62677719393764},{"$f":"AT85+AT85*Control!$I$12*Weather!BW$21 + AT85*Control!$I$13*Prices!BK$16 + AT85*Control!$I$14*Prices!BK$18","v":263.29679430994912},{"$f":"AU85+AU85*Control!$I$12*Weather!BX$21 + AU85*Control!$I$13*Prices!BL$16 + AU85*Control!$I$14*Prices!BL$18","v":262.96610417408652},{"$f":"AV85+AV85*Control!$I$12*Weather!BY$21 + AV85*Control!$I$13*Prices!BM$16 + AV85*Control!$I$14*Prices!BM$18","v":262.63469794862937},{"$f":"AW85+AW85*Control!$I$12*Weather!BZ$21 + AW85*Control!$I$13*Prices!BN$16 + AW85*Control!$I$14*Prices!BN$18","v":262.30256666072751},{"$f":"AX85+AX85*Control!$I$12*Weather!CA$21 + AX85*Control!$I$13*Prices!BO$16 + AX85*Control!$I$14*Prices!BO$18","v":261.96970119954932},{"$f":"AY85+AY85*Control!$I$12*Weather!CB$21 + AY85*Control!$I$13*Prices!BP$16 + AY85*Control!$I$14*Prices!BP$18","v":261.63609231335658},{"$f":"AZ85+AZ85*Control!$I$12*Weather!CC$21 + AZ85*Control!$I$13*Prices!BQ$16 + AZ85*Control!$I$14*Prices!BQ$18","v":261.30173060649855},{"$f":"BA85+BA85*Control!$I$12*Weather!CD$21 + BA85*Control!$I$13*Prices!BR$16 + BA85*Control!$I$14*Prices!BR$18","v":260.96660653632716},{"$f":"BB85+BB85*Control!$I$12*Weather!CE$21 + BB85*Control!$I$13*Prices!BS$16 + BB85*Control!$I$14*Prices!BS$18","v":260.63071041002723},{"$f":"BC85+BC85*Control!$I$12*Weather!CF$21 + BC85*Control!$I$13*Prices!BT$16 + BC85*Control!$I$14*Prices!BT$18","v":260.29403238136194},{"$f":"BD85+BD85*Control!$I$12*Weather!CG$21 + BD85*Control!$I$13*Prices!BU$16 + BD85*Control!$I$14*Prices!BU$18","v":259.956562447328},{"$f":"BE85+BE85*Control!$I$12*Weather!CH$21 + BE85*Control!$I$13*Prices!BV$16 + BE85*Control!$I$14*Prices!BV$18","v":259.61829044471983},{"$f":"BF85+BF85*Control!$I$12*Weather!CI$21 + BF85*Control!$I$13*Prices!BW$16 + BF85*Control!$I$14*Prices!BW$18","v":259.27920604659795},{"$f":"BG85+BG85*Control!$I$12*Weather!CJ$21 + BG85*Control!$I$13*Prices!BX$16 + BG85*Control!$I$14*Prices!BX$18","v":258.93929875865985},{"$f":"BH85+BH85*Control!$I$12*Weather!CK$21 + BH85*Control!$I$13*Prices!BY$16 + BH85*Control!$I$14*Prices!BY$18","v":258.59855791550808},{"$f":"BI85+BI85*Control!$I$12*Weather!CL$21 + BI85*Control!$I$13*Prices!BZ$16 + BI85*Control!$I$14*Prices!BZ$18","v":258.25697267681545},{"$f":"BJ85+BJ85*Control!$I$12*Weather!CM$21 + BJ85*Control!$I$13*Prices!CA$16 + BJ85*Control!$I$14*Prices!CA$18","v":257.91453202337925},{"$f":"BK85+BK85*Control!$I$12*Weather!CN$21 + BK85*Control!$I$13*Prices!CB$16 + BK85*Control!$I$14*Prices!CB$18","v":257.57122475306528},{"$f":"BL85+BL85*Control!$I$12*Weather!CO$21 + BL85*Control!$I$13*Prices!CC$16 + BL85*Control!$I$14*Prices!CC$18","v":257.22703947663393},{"$f":"BM85+BM85*Control!$I$12*Weather!CP$21 + BM85*Control!$I$13*Prices!CD$16 + BM85*Control!$I$14*Prices!CD$18","v":256.88196461344779},{"$f":"BN85+BN85*Control!$I$12*Weather!CQ$21 + BN85*Control!$I$13*Prices!CE$16 + BN85*Control!$I$14*Prices!CE$18","v":256.53598838705341},{"$f":"BO85+BO85*Control!$I$12*Weather!CR$21 + BO85*Control!$I$13*Prices!CF$16 + BO85*Control!$I$14*Prices!CF$18","v":256.18909882063502},{"$f":"BP85+BP85*Control!$I$12*Weather!CS$21 + BP85*Control!$I$13*Prices!CG$16 + BP85*Control!$I$14*Prices!CG$18","v":255.84128373233494},{"$f":"BQ85+BQ85*Control!$I$12*Weather!CT$21 + BQ85*Control!$I$13*Prices!CH$16 + BQ85*Control!$I$14*Prices!CH$18","v":255.49253073043599},{"$f":"BR85+BR85*Control!$I$12*Weather!CU$21 + BR85*Control!$I$13*Prices!CI$16 + BR85*Control!$I$14*Prices!CI$18","v":255.14282720840012},{"$f":"BS85+BS85*Control!$I$12*Weather!CV$21 + BS85*Control!$I$13*Prices!CJ$16 + BS85*Control!$I$14*Prices!CJ$18","v":254.79216033976044},{"$f":"BT85+BT85*Control!$I$12*Weather!CW$21 + BT85*Control!$I$13*Prices!CK$16 + BT85*Control!$I$14*Prices!CK$18","v":254.44051707285797},{"$f":"BU85+BU85*Control!$I$12*Weather!CX$21 + BU85*Control!$I$13*Prices!CL$16 + BU85*Control!$I$14*Prices!CL$18","v":254.08788412542114},{"$f":"BV85+BV85*Control!$I$12*Weather!CY$21 + BV85*Control!$I$13*Prices!CM$16 + BV85*Control!$I$14*Prices!CM$18","v":253.73424797897846},{"$f":"BW85+BW85*Control!$I$12*Weather!CZ$21 + BW85*Control!$I$13*Prices!CN$16 + BW85*Control!$I$14*Prices!CN$18","v":253.37959487310209},{"$f":"BX85+BX85*Control!$I$12*Weather!DA$21 + BX85*Control!$I$13*Prices!CO$16 + BX85*Control!$I$14*Prices!CO$18","v":253.02391079947242},{"$f":"BY85+BY85*Control!$I$12*Weather!DB$21 + BY85*Control!$I$13*Prices!CP$16 + BY85*Control!$I$14*Prices!CP$18","v":252.66718149576005},{"$f":"BZ85+BZ85*Control!$I$12*Weather!DC$21 + BZ85*Control!$I$13*Prices!CQ$16 + BZ85*Control!$I$14*Prices!CQ$18","v":252.30939243931573},{"$f":"CA85+CA85*Control!$I$12*Weather!DD$21 + CA85*Control!$I$13*Prices!CR$16 + CA85*Control!$I$14*Prices!CR$18","v":251.95052884066328},{"$f":"CB85+CB85*Control!$I$12*Weather!DE$21 + CB85*Control!$I$13*Prices!CS$16 + CB85*Control!$I$14*Prices!CS$18","v":251.59057563678564},{"$f":"CC85+CC85*Control!$I$12*Weather!DF$21 + CC85*Control!$I$13*Prices!CT$16 + CC85*Control!$I$14*Prices!CT$18","v":251.22951748419885},{"$f":"CD85+CD85*Control!$I$12*Weather!DG$21 + CD85*Control!$I$13*Prices!CU$16 + CD85*Control!$I$14*Prices!CU$18","v":250.86733875180263},{"$f":"CE85+CE85*Control!$I$12*Weather!DH$21 + CE85*Control!$I$13*Prices!CV$16 + CE85*Control!$I$14*Prices!CV$18","v":250.50402351350232},{"$f":"CF85+CF85*Control!$I$12*Weather!DI$21 + CF85*Control!$I$13*Prices!CW$16 + CF85*Control!$I$14*Prices!CW$18","v":250.13955554058958},{"$f":"CG85+CG85*Control!$I$12*Weather!DJ$21 + CG85*Control!$I$13*Prices!CX$16 + CG85*Control!$I$14*Prices!CX$18","v":249.77391829387625},{"$f":"CH85+CH85*Control!$I$12*Weather!DK$21 + CH85*Control!$I$13*Prices!CY$16 + CH85*Control!$I$14*Prices!CY$18","v":249.40709491556754},{"$f":"CI85+CI85*Control!$I$12*Weather!DL$21 + CI85*Control!$I$13*Prices!CZ$16 + CI85*Control!$I$14*Prices!CZ$18","v":249.03906822086813},{"$f":"CJ85+CJ85*Control!$I$12*Weather!DM$21 + CJ85*Control!$I$13*Prices!DA$16 + CJ85*Control!$I$14*Prices!DA$18","v":248.66982068930676},{"$f":"CK85+CK85*Control!$I$12*Weather!DN$21 + CK85*Control!$I$13*Prices!DB$16 + CK85*Control!$I$14*Prices!DB$18","v":248.29933445577132}]
["Maroondah (C)",{"$f":"'Volume per connection'!B84","v":167.27598014770683},{"$f":"'Volume per connection'!C84","v":459.55746456097108},{"$f":"'Volume per connection'!D84","v":694.75624486301365},{"$f":"'Volume per connection'!E84","v":674.26193368949146},{"$f":"'Volume per connection'!F84","v":652.56123675960851},{"$f":"'Volume per connection'!G84","v":592.34440932642485},{"$f":"'Volume per connection'!H84","v":362.76682291666668},{"$f":"'Volume per connection'!I84","v":320.71450259067353},{"$f":"'Volume per connection'!J84","v":311.41235901926444},{"$f":"J86+J86*Control!$I$12*Weather!AM$21 + J86*Control!$I$13*Prices!AA$16 + J86*Control!$I$14*Prices!AA$18","v":292.17225692666028},{"$f":"K86+K86*Control!$I$12*Weather!AN$21 + K86*Control!$I$13*Prices!AB$16 + K86*Control!$I$14*Prices!AB$18","v":267.34990890871916},{"$f":"L86+L86*Control!$I$12*Weather!AO$21 + L86*Control!$I$13*Prices!AC$16 + L86*Control!$I$14*Prices!AC$18","v":275.70724471087271},{"$f":"M86+M86*Control!$I$12*Weather!AP$21 + M86*Control!$I$13*Prices!AD$16 + M86*Control!$I$14*Prices!AD$18","v":275.02411663106017},{"$f":"N86+N86*Control!$I$12*Weather!AQ$21 + N86*Control!$I$13*Prices!AE$16 + N86*Control!$I$14*Prices!AE$18","v":282.71751145203211},{"$f":"O86+O86*Control!$I$12*Weather!AR$21 + O86*Control!$I$13*Prices!AF$16 + O86*Control!$I$14*Prices!AF$18","v":283.06179411815509},{"$f":"P86+P86*Control!$I$12*Weather!AS$21 + P86*Control!$I$13*Prices!AG$16 + P86*Control!$I$14*Prices!AG$18","v":276.24101284719649},{"$f":"Q86+Q86*Control!$I$12*Weather!AT$21 + Q86*Control!$I$13*Prices!AH$16 + Q86*Control!$I$14*Prices!AH$18","v":258.98878893755779},{"$f":"R86+R86*Control!$I$12*Weather!AU$21 + R86*Control!$I$13*Prices!AI$16 + R86*Control!$I$14*Prices!AI$18","v":245.16493837477691},{"$f":"S86+S86*Control!$I$12*Weather!AV$21 + S86*Control!$I$13*Prices!AJ$16 + S86*Control!$I$14*Prices!AJ$18","v":235.83193835784695},{"$f":"T86+T86*Control!$I$12*Weather!AW$21 + T86*Control!$I$13*Prices!AK$16 + T86*Control!$I$14*Prices!AK$18","v":252.2470785528939},{"$f":"U86+U86*Control!$I$12*Weather!AX$21 + U86*Control!$I$13*Prices!AL$16 + U86*Control!$I$14*Prices!AL$18","v":252.94261343085259},{"$f":"V86+V86*Control!$I$12*Weather!AY$21 + V86*Control!$I$13*Prices!AM$16 + V86*Control!$I$14*Prices!AM$18","v":248.14715157464414},{"$f":"W86+W86*Control!$I$12*Weather!AZ$21 + W86*Control!$I$13*Prices!AN$16 + W86*Control!$I$14*Prices!AN$18","v":240.70635955730233},{"$f":"X86+X86*Control!$I$12*Weather!BA$21 + X86*Control!$I$13*Prices!AO$16 + X86*Control!$I$14*Prices!AO$18","v":267.3447256238951},{"$f":"Y86+Y86*Control!$I$12*Weather!BB$21 + Y86*Control!$I$13*Prices!AP$16 + Y86*Control!$I$14*Prices!AP$18","v":264.67755804255114},{"$f":"Z86+Z86*Control!$I$12*Weather!BC$21 + Z86*Control!$I$13*Prices!AQ$16 + Z86*Control!$I$14*Prices!AQ$18","v":260.59140799482623},{"$f":"AA86+AA86*Control!$I$12*Weather!BD$21 + AA86*Control!$I$13*Prices!AR$16 + AA86*Control!$I$14*Prices!AR$18","v":254.27789821490768},{"$f":"AB86+AB86*Control!$I$12*Weather!BE$21 + AB86*Control!$I$13*Prices!AS$16 + AB86*Control!$I$14*Prices!AS$18","v":250.80293099896681},{"$f":"AC86+AC86*Control!$I$12*Weather!BF$21 + AC86*Control!$I$13*Prices!AT$16 + AC86*Control!$I$14*Prices!AT$18","v":251.62082436607301},{"$f":"AD86+AD86*Control!$I$12*Weather!BG$21 + AD86*Control!$I$13*Prices!AU$16 + AD86*Control!$I$14*Prices!AU$18","v":249.86731075646438},{"$f":"AE86+AE86*Control!$I$12*Weather!BH$21 + AE86*Control!$I$13*Prices!AV$16 + AE86*Control!$I$14*Prices!AV$18","v":242.8888699784458},{"$f":"AF86+AF86*Control!$I$12*Weather!BI$21 + AF86*Control!$I$13*Prices!AW$16 + AF86*Control!$I$14*Prices!AW$18","v":237.77993661122395},{"$f":"AG86+AG86*Control!$I$12*Weather!BJ$21 + AG86*Control!$I$13*Prices!AX$16 + AG86*Control!$I$14*Prices!AX$18","v":235.8409850236028},{"$f":"AH86+AH86*Control!$I$12*Weather!BK$21 + AH86*Control!$I$13*Prices!AY$16 + AH86*Control!$I$14*Prices!AY$18","v":233.46842564020264},{"$f":"AI86+AI86*Control!$I$12*Weather!BL$21 + AI86*Control!$I$13*Prices!AZ$16 + AI86*Control!$I$14*Prices!AZ$18","v":231.29484009211794},{"$f":"AJ86+AJ86*Control!$I$12*Weather!BM$21 + AJ86*Control!$I$13*Prices!BA$16 + AJ86*Control!$I$14*Prices!BA$18","v":229.82901262583803},{"$f":"AK86+AK86*Control!$I$12*Weather!BN$21 + AK86*Control!$I$13*Prices!BB$16 + AK86*Control!$I$14*Prices!BB$18","v":228.86286841293594},{"$f":"AL86+AL86*Control!$I$12*Weather!BO$21 + AL86*Control!$I$13*Prices!BC$16 + AL86*Control!$I$14*Prices!BC$18","v":228.09424469111065},{"$f":"AM86+AM86*Control!$I$12*Weather!BP$21 + AM86*Control!$I$13*Prices!BD$16 + AM86*Control!$I$14*Prices!BD$18","v":226.37085259638513},{"$f":"AN86+AN86*Control!$I$12*Weather!BQ$21 + AN86*Control!$I$13*Prices!BE$16 + AN86*Control!$I$14*Prices!BE$18","v":226.1308952611185},{"$f":"AO86+AO86*Control!$I$12*Weather!BR$21 + AO86*Control!$I$13*Prices!BF$16 + AO86*Control!$I$14*Prices!BF$18","v":223.92060436575636},{"$f":"AP86+AP86*Control!$I$12*Weather!BS$21 + AP86*Control!$I$13*Prices!BG$16 + AP86*Control!$I$14*Prices!BG$18","v":223.64402947151069},{"$f":"AQ86+AQ86*Control!$I$12*Weather!BT$21 + AQ86*Control!$I$13*Prices!BH$16 + AQ86*Control!$I$14*Prices!BH$18","v":223.3668856070507},{"$f":"AR86+AR86*Control!$I$12*Weather!BU$21 + AR86*Control!$I$13*Prices!BI$16 + AR86*Control!$I$14*Prices!BI$18","v":223.08916573690811},{"$f":"AS86+AS86*Control!$I$12*Weather!BV$21 + AS86*Control!$I$13*Prices!BJ$16 + AS86*Control!$I$14*Prices!BJ$18","v":222.81086272044092},{"$f":"AT86+AT86*Control!$I$12*Weather!BW$21 + AT86*Control!$I$13*Prices!BK$16 + AT86*Control!$I$14*Prices!BK$18","v":222.53196930966132},{"$f":"AU86+AU86*Control!$I$12*Weather!BX$21 + AU86*Control!$I$13*Prices!BL$16 + AU86*Control!$I$14*Prices!BL$18","v":222.25247814700722},{"$f":"AV86+AV86*Control!$I$12*Weather!BY$21 + AV86*Control!$I$13*Prices!BM$16 + AV86*Control!$I$14*Prices!BM$18","v":221.97238176305484},{"$f":"AW86+AW86*Control!$I$12*Weather!BZ$21 + AW86*Control!$I$13*Prices!BN$16 + AW86*Control!$I$14*Prices!BN$18","v":221.69167257417212},{"$f":"AX86+AX86*Control!$I$12*Weather!CA$21 + AX86*Control!$I$13*Prices!BO$16 + AX86*Control!$I$14*Prices!BO$18","v":221.41034288010849},{"$f":"AY86+AY86*Control!$I$12*Weather!CB$21 + AY86*Control!$I$13*Prices!BP$16 + AY86*Control!$I$14*Prices!BP$18","v":221.12838486152253},{"$f":"AZ86+AZ86*Control!$I$12*Weather!CC$21 + AZ86*Control!$I$13*Prices!BQ$16 + AZ86*Control!$I$14*Prices!BQ$18","v":220.84579057744148},{"$f":"BA86+BA86*Control!$I$12*Weather!CD$21 + BA86*Control!$I$13*Prices!BR$16 + BA86*Control!$I$14*Prices!BR$18","v":220.56255196265406},{"$f":"BB86+BB86*Control!$I$12*Weather!CE$21 + BB86*Control!$I$13*Prices!BS$16 + BB86*Control!$I$14*Prices!BS$18","v":220.27866082503152},{"$f":"BC86+BC86*Control!$I$12*Weather!CF$21 + BC86*Control!$I$13*Prices!BT$16 + BC86*Control!$I$14*Prices!BT$18","v":219.99410884277685},{"$f":"BD86+BD86*Control!$I$12*Weather!CG$21 + BD86*Control!$I$13*Prices!BU$16 + BD86*Control!$I$14*Prices!BU$18","v":219.70888756159798},{"$f":"BE86+BE86*Control!$I$12*Weather!CH$21 + BE86*Control!$I$13*Prices!BV$16 + BE86*Control!$I$14*Prices!BV$18","v":219.4229883918037},{"$f":"BF86+BF86*Control!$I$12*Weather!CI$21 + BF86*Control!$I$13*Prices!BW$16 + BF86*Control!$I$14*Prices!BW$18","v":219.13640260531892},{"$f":"BG86+BG86*Control!$I$12*Weather!CJ$21 + BG86*Control!$I$13*Prices!BX$16 + BG86*Control!$I$14*Prices!BX$18","v":218.84912133261744},{"$f":"BH86+BH86*Control!$I$12*Weather!CK$21 + BH86*Control!$I$13*Prices!BY$16 + BH86*Control!$I$14*Prices!BY$18","v":218.56113555956799},{"$f":"BI86+BI86*Control!$I$12*Weather!CL$21 + BI86*Control!$I$13*Prices!BZ$16 + BI86*Control!$I$14*Prices!BZ$18","v":218.27243612419275},{"$f":"BJ86+BJ86*Control!$I$12*Weather!CM$21 + BJ86*Control!$I$13*Prices!CA$16 + BJ86*Control!$I$14*Prices!CA$18","v":217.98301371333292},{"$f":"BK86+BK86*Control!$I$12*Weather!CN$21 + BK86*Control!$I$13*Prices!CB$16 + BK86*Control!$I$14*Prices!CB$18","v":217.69285885922045},{"$f":"BL86+BL86*Control!$I$12*Weather!CO$21 + BL86*Control!$I$13*Prices!CC$16 + BL86*Control!$I$14*Prices!CC$18","v":217.40196193595028},{"$f":"BM86+BM86*Control!$I$12*Weather!CP$21 + BM86*Control!$I$13*Prices!CD$16 + BM86*Control!$I$14*Prices!CD$18","v":217.11031315585282},{"$f":"BN86+BN86*Control!$I$12*Weather!CQ$21 + BN86*Control!$I$13*Prices!CE$16 + BN86*Control!$I$14*Prices!CE$18","v":216.81790256575943},{"$f":"BO86+BO86*Control!$I$12*Weather!CR$21 + BO86*Control!$I$13*Prices!CF$16 + BO86*Control!$I$14*Prices!CF$18","v":216.5247200431603},{"$f":"BP86+BP86*Control!$I$12*Weather!CS$21 + BP86*Control!$I$13*Prices!CG$16 + BP86*Control!$I$14*Prices!CG$18","v":216.23075529224911},{"$f":"BQ86+BQ86*Control!$I$12*Weather!CT$21 + BQ86*Control!$I$13*Prices!CH$16 + BQ86*Control!$I$14*Prices!CH$18","v":215.93599783985161},{"$f":"BR86+BR86*Control!$I$12*Weather!CU$21 + BR86*Control!$I$13*Prices!CI$16 + BR86*Control!$I$14*Prices!CI$18","v":215.64043703123212},{"$f":"BS86+BS86*Control!$I$12*Weather!CV$21 + BS86*Control!$I$13*Prices!CJ$16 + BS86*Control!$I$14*Prices!CJ$18","v":215.34406202577659},{"$f":"BT86+BT86*Control!$I$12*Weather!CW$21 + BT86*Control!$I$13*Prices!CK$16 + BT86*Control!$I$14*Prices!CK$18","v":215.04686179254409},{"$f":"BU86+BU86*Control!$I$12*Weather!CX$21 + BU86*Control!$I$13*Prices!CL$16 + BU86*Control!$I$14*Prices!CL$18","v":214.74882510568565},{"$f":"BV86+BV86*Control!$I$12*Weather!CY$21 + BV86*Control!$I$13*Prices!CM$16 + BV86*Control!$I$14*Prices!CM$18","v":214.44994053972189},{"$f":"BW86+BW86*Control!$I$12*Weather!CZ$21 + BW86*Control!$I$13*Prices!CN$16 + BW86*Control!$I$14*Prices!CN$18","v":214.150196464678},{"$f":"BX86+BX86*Control!$I$12*Weather!DA$21 + BX86*Control!$I$13*Prices!CO$16 + BX86*Control!$I$14*Prices!CO$18","v":213.84958104106704},{"$f":"BY86+BY86*Control!$I$12*Weather!DB$21 + BY86*Control!$I$13*Prices!CP$16 + BY86*Control!$I$14*Prices!CP$18","v":213.54808221471927},{"$f":"BZ86+BZ86*Control!$I$12*Weather!DC$21 + BZ86*Control!$I$13*Prices!CQ$16 + BZ86*Control!$I$14*Prices!CQ$18","v":213.24568771144905},{"$f":"CA86+CA86*Control!$I$12*Weather!DD$21 + CA86*Control!$I$13*Prices!CR$16 + CA86*Control!$I$14*Prices!CR$18","v":212.94238503155515},{"$f":"CB86+CB86*Control!$I$12*Weather!DE$21 + CB86*Control!$I$13*Prices!CS$16 + CB86*Control!$I$14*Prices!CS$18","v":212.63816144414633},{"$f":"CC86+CC86*Control!$I$12*Weather!DF$21 + CC86*Control!$I$13*Prices!CT$16 + CC86*Control!$I$14*Prices!CT$18","v":212.33300398128765},{"$f":"CD86+CD86*Control!$I$12*Weather!DG$21 + CD86*Control!$I$13*Prices!CU$16 + CD86*Control!$I$14*Prices!CU$18","v":212.02689943195793},{"$f":"CE86+CE86*Control!$I$12*Weather!DH$21 + CE86*Control!$I$13*Prices!CV$16 + CE86*Control!$I$14*Prices!CV$18","v":211.71983433581397},{"$f":"CF86+CF86*Control!$I$12*Weather!DI$21 + CF86*Control!$I$13*Prices!CW$16 + CF86*Control!$I$14*Prices!CW$18","v":211.41179497675103},{"$f":"CG86+CG86*Control!$I$12*Weather!DJ$21 + CG86*Control!$I$13*Prices!CX$16 + CG86*Control!$I$14*Prices!CX$18","v":211.10276737625432},{"$f":"CH86+CH86*Control!$I$12*Weather!DK$21 + CH86*Control!$I$13*Prices!CY$16 + CH86*Control!$I$14*Prices!CY$18","v":210.79273728653067},{"$f":"CI86+CI86*Control!$I$12*Weather!DL$21 + CI86*Control!$I$13*Prices!CZ$16 + CI86*Control!$I$14*Prices!CZ$18","v":210.48169018341412},{"$f":"CJ86+CJ86*Control!$I$12*Weather!DM$21 + CJ86*Control!$I$13*Prices!DA$16 + CJ86*Control!$I$14*Prices!DA$18","v":210.16961125903362},{"$f":"CK86+CK86*Control!$I$12*Weather!DN$21 + CK86*Control!$I$13*Prices!DB$16 + CK86*Control!$I$14*Prices!DB$18","v":209.85648541423618}]
["Melbourne (C)",{"$f":"'Volume per connection'!B85","v":501.18167281451946},{"$f":"'Volume per connection'!C85","v":2723.0502518825497},{"$f":"'Volume per connection'!D85","v":6556.1457102272725},{"$f":"'Volume per connection'!E85","v":4906.4471999999996},{"$f":"'Volume per connection'!F85","v":4795.2804530386738},{"$f":"'Volume per connection'!G85","v":3971.4686999999999},{"$f":"'Volume per connection'!H85","v":1463.0158214285716},{"$f":"'Volume per connection'!I85","v":1211.9252459893048},{"$f":"'Volume per connection'!J85","v":1240.3888010752689},{"$f":"J87+J87*Control!$I$12*Weather!AM$21 + J87*Control!$I$13*Prices!AA$16 + J87*Control!$I$14*Prices!AA$18","v":1163.7534124144911},{"$f":"K87+K87*Control!$I$12*Weather!AN$21 + K87*Control!$I$13*Prices!AB$16 + K87*Control!$I$14*Prices!AB$18","v":1064.8833399651751},{"$f":"L87+L87*Control!$I$12*Weather!AO$21 + L87*Control!$I$13*Prices!AC$16 + L87*Control!$I$14*Prices!AC$18","v":1098.171504148715},{"$f":"M87+M87*Control!$I$12*Weather!AP$21 + M87*Control!$I$13*Prices!AD$16 + M87*Control!$I$14*Prices!AD$18","v":1095.4505317937057},{"$f":"N87+N87*Control!$I$12*Weather!AQ$21 + N87*Control!$I$13*Prices!AE$16 + N87*Control!$I$14*Prices!AE$18","v":1126.094147892429},{"$f":"O87+O87*Control!$I$12*Weather!AR$21 + O87*Control!$I$13*Prices!AF$16 + O87*Control!$I$14*Prices!AF$18","v":1127.4654626495187},{"$f":"P87+P87*Control!$I$12*Weather!AS$21 + P87*Control!$I$13*Prices!AG$16 + P87*Control!$I$14*Prices!AG$18","v":1100.2975598414043},{"$f":"Q87+Q87*Control!$I$12*Weather!AT$21 + Q87*Control!$I$13*Prices!AH$16 + Q87*Control!$I$14*Prices!AH$18","v":1031.5801030309151},{"$f":"R87+R87*Control!$I$12*Weather!AU$21 + R87*Control!$I$13*Prices!AI$16 + R87*Control!$I$14*Prices!AI$18","v":976.51822469117076},{"$f":"S87+S87*Control!$I$12*Weather!AV$21 + S87*Control!$I$13*Prices!AJ$16 + S87*Control!$I$14*Prices!AJ$18","v":939.34388537498751},{"$f":"T87+T87*Control!$I$12*Weather!AW$21 + T87*Control!$I$13*Prices!AK$16 + T87*Control!$I$14*Prices!AK$18","v":1004.7271480372029},{"$f":"U87+U87*Control!$I$12*Weather!AX$21 + U87*Control!$I$13*Prices!AL$16 + U87*Control!$I$14*Prices!AL$18","v":1007.497537998906},{"$f":"V87+V87*Control!$I$12*Weather!AY$21 + V87*Control!$I$13*Prices!AM$16 + V87*Control!$I$14*Prices!AM$18","v":988.39669947998061},{"$f":"W87+W87*Control!$I$12*Weather!AZ$21 + W87*Control!$I$13*Prices!AN$16 + W87*Control!$I$14*Prices!AN$18","v":958.75922742040154},{"$f":"X87+X87*Control!$I$12*Weather!BA$21 + X87*Control!$I$13*Prices!AO$16 + X87*Control!$I$14*Prices!AO$18","v":1064.8626943862103},{"$f":"Y87+Y87*Control!$I$12*Weather!BB$21 + Y87*Control!$I$13*Prices!AP$16 + Y87*Control!$I$14*Prices!AP$18","v":1054.2390800604685},{"$f":"Z87+Z87*Control!$I$12*Weather!BC$21 + Z87*Control!$I$13*Prices!AQ$16 + Z87*Control!$I$14*Prices!AQ$18","v":1037.963506494046},{"$f":"AA87+AA87*Control!$I$12*Weather!BD$21 + AA87*Control!$I$13*Prices!AR$16 + AA87*Control!$I$14*Prices!AR$18","v":1012.8161204007224},{"$f":"AB87+AB87*Control!$I$12*Weather!BE$21 + AB87*Control!$I$13*Prices!AS$16 + AB87*Control!$I$14*Prices!AS$18","v":998.97495355579929},{"$f":"AC87+AC87*Control!$I$12*Weather!BF$21 + AC87*Control!$I$13*Prices!AT$16 + AC87*Control!$I$14*Prices!AT$18","v":1002.2327104933443},{"$f":"AD87+AD87*Control!$I$12*Weather!BG$21 + AD87*Control!$I$13*Prices!AU$16 + AD87*Control!$I$14*Prices!AU$18","v":995.24827785636899},{"$f":"AE87+AE87*Control!$I$12*Weather!BH$21 + AE87*Control!$I$13*Prices!AV$16 + AE87*Control!$I$14*Prices!AV$18","v":967.45240033473942},{"$f":"AF87+AF87*Control!$I$12*Weather!BI$21 + AF87*Control!$I$13*Prices!AW$16 + AF87*Control!$I$14*Prices!AW$18","v":947.10297119166},{"$f":"AG87+AG87*Control!$I$12*Weather!BJ$21 + AG87*Control!$I$13*Prices!AX$16 + AG87*Control!$I$14*Prices!AX$18","v":939.37991921425407},{"$f":"AH87+AH87*Control!$I$12*Weather!BK$21 + AH87*Control!$I$13*Prices!AY$16 + AH87*Control!$I$14*Prices!AY$18","v":929.92976091506603},{"$f":"AI87+AI87*Control!$I$12*Weather!BL$21 + AI87*Control!$I$13*Prices!AZ$16 + AI87*Control!$I$14*Prices!AZ$18","v":921.27213672662936},{"$f":"AJ87+AJ87*Control!$I$12*Weather!BM$21 + AJ87*Control!$I$13*Prices!BA$16 + AJ87*Control!$I$14*Prices!BA$18","v":915.43358883081635},{"$f":"AK87+AK87*Control!$I$12*Weather!BN$21 + AK87*Control!$I$13*Prices!BB$16 + AK87*Control!$I$14*Prices!BB$18","v":911.58533288592844},{"$f":"AL87+AL87*Control!$I$12*Weather!BO$21 + AL87*Control!$I$13*Prices!BC$16 + AL87*Control!$I$14*Prices!BC$18","v":908.52382222592939},{"$f":"AM87+AM87*Control!$I$12*Weather!BP$21 + AM87*Control!$I$13*Prices!BD$16 + AM87*Control!$I$14*Prices!BD$18","v":901.65936681095695},{"$f":"AN87+AN87*Control!$I$12*Weather!BQ$21 + AN87*Control!$I$13*Prices!BE$16 + AN87*Control!$I$14*Prices!BE$18","v":900.70359102756174},{"$f":"AO87+AO87*Control!$I$12*Weather!BR$21 + AO87*Control!$I$13*Prices!BF$16 + AO87*Control!$I$14*Prices!BF$18","v":891.89976550708457},{"$f":"AP87+AP87*Control!$I$12*Weather!BS$21 + AP87*Control!$I$13*Prices!BG$16 + AP87*Control!$I$14*Prices!BG$18","v":890.79813806184984},{"$f":"AQ87+AQ87*Control!$I$12*Weather!BT$21 + AQ87*Control!$I$13*Prices!BH$16 + AQ87*Control!$I$14*Prices!BH$18","v":889.69424434727307},{"$f":"AR87+AR87*Control!$I$12*Weather!BU$21 + AR87*Control!$I$13*Prices!BI$16 + AR87*Control!$I$14*Prices!BI$18","v":888.58805634033001},{"$f":"AS87+AS87*Control!$I$12*Weather!BV$21 + AS87*Control!$I$13*Prices!BJ$16 + AS87*Control!$I$14*Prices!BJ$18","v":887.47954559907828},{"$f":"AT87+AT87*Control!$I$12*Weather!BW$21 + AT87*Control!$I$13*Prices!BK$16 + AT87*Control!$I$14*Prices!BK$18","v":886.36868325400576},{"$f":"AU87+AU87*Control!$I$12*Weather!BX$21 + AU87*Control!$I$13*Prices!BL$16 + AU87*Control!$I$14*Prices!BL$18","v":885.25543999915408},{"$f":"AV87+AV87*Control!$I$12*Weather!BY$21 + AV87*Control!$I$13*Prices!BM$16 + AV87*Control!$I$14*Prices!BM$18","v":884.13978608300783},{"$f":"AW87+AW87*Control!$I$12*Weather!BZ$21 + AW87*Control!$I$13*Prices!BN$16 + AW87*Control!$I$14*Prices!BN$18","v":883.02169129914751},{"$f":"AX87+AX87*Control!$I$12*Weather!CA$21 + AX87*Control!$I$13*Prices!BO$16 + AX87*Control!$I$14*Prices!BO$18","v":881.90112497665007},{"$f":"AY87+AY87*Control!$I$12*Weather!CB$21 + AY87*Control!$I$13*Prices!BP$16 + AY87*Control!$I$14*Prices!BP$18","v":880.77805597024064},{"$f":"AZ87+AZ87*Control!$I$12*Weather!CC$21 + AZ87*Control!$I$13*Prices!BQ$16 + AZ87*Control!$I$14*Prices!BQ$18","v":879.65245265017347},{"$f":"BA87+BA87*Control!$I$12*Weather!CD$21 + BA87*Control!$I$13*Prices!BR$16 + BA87*Control!$I$14*Prices!BR$18","v":878.52428289184775},{"$f":"BB87+BB87*Control!$I$12*Weather!CE$21 + BB87*Control!$I$13*Prices!BS$16 + BB87*Control!$I$14*Prices!BS$18","v":877.39351406513674},{"$f":"BC87+BC87*Control!$I$12*Weather!CF$21 + BC87*Control!$I$13*Prices!BT$16 + BC87*Control!$I$14*Prices!BT$18","v":876.26011302343113},{"$f":"BD87+BD87*Control!$I$12*Weather!CG$21 + BD87*Control!$I$13*Prices!BU$16 + BD87*Control!$I$14*Prices!BU$18","v":875.12404609237944},{"$f":"BE87+BE87*Control!$I$12*Weather!CH$21 + BE87*Control!$I$13*Prices!BV$16 + BE87*Control!$I$14*Prices!BV$18","v":873.98527905832088},{"$f":"BF87+BF87*Control!$I$12*Weather!CI$21 + BF87*Control!$I$13*Prices!BW$16 + BF87*Control!$I$14*Prices!BW$18","v":872.84377715639698},{"$f":"BG87+BG87*Control!$I$12*Weather!CJ$21 + BG87*Control!$I$13*Prices!BX$16 + BG87*Control!$I$14*Prices!BX$18","v":871.69950505833447},{"$f":"BH87+BH87*Control!$I$12*Weather!CK$21 + BH87*Control!$I$13*Prices!BY$16 + BH87*Control!$I$14*Prices!BY$18","v":870.55242685988219},{"$f":"BI87+BI87*Control!$I$12*Weather!CL$21 + BI87*Control!$I$13*Prices!BZ$16 + BI87*Control!$I$14*Prices!BZ$18","v":869.40250606790096},{"$f":"BJ87+BJ87*Control!$I$12*Weather!CM$21 + BJ87*Control!$I$13*Prices!CA$16 + BJ87*Control!$I$14*Prices!CA$18","v":868.24970558708083},{"$f":"BK87+BK87*Control!$I$12*Weather!CN$21 + BK87*Control!$I$13*Prices!CB$16 + BK87*Control!$I$14*Prices!CB$18","v":867.09398770628695},{"$f":"BL87+BL87*Control!$I$12*Weather!CO$21 + BL87*Control!$I$13*Prices!CC$16 + BL87*Control!$I$14*Prices!CC$18","v":865.93531408450804},{"$f":"BM87+BM87*Control!$I$12*Weather!CP$21 + BM87*Control!$I$13*Prices!CD$16 + BM87*Control!$I$14*Prices!CD$18","v":864.77364573640693},{"$f":"BN87+BN87*Control!$I$12*Weather!CQ$21 + BN87*Control!$I$13*Prices!CE$16 + BN87*Control!$I$14*Prices!CE$18","v":863.60894301744634},{"$f":"BO87+BO87*Control!$I$12*Weather!CR$21 + BO87*Control!$I$13*Prices!CF$16 + BO87*Control!$I$14*Prices!CF$18","v":862.44116560858492},{"$f":"BP87+BP87*Control!$I$12*Weather!CS$21 + BP87*Control!$I$13*Prices!CG$16 + BP87*Control!$I$14*Prices!CG$18","v":861.27027250052265},{"$f":"BQ87+BQ87*Control!$I$12*Weather!CT$21 + BQ87*Control!$I$13*Prices!CH$16 + BQ87*Control!$I$14*Prices!CH$18","v":860.09622197748376},{"$f":"BR87+BR87*Control!$I$12*Weather!CU$21 + BR87*Control!$I$13*Prices!CI$16 + BR87*Control!$I$14*Prices!CI$18","v":858.91897160051428},{"$f":"BS87+BS87*Control!$I$12*Weather!CV$21 + BS87*Control!$I$13*Prices!CJ$16 + BS87*Control!$I$14*Prices!CJ$18","v":857.73847819028663},{"$f":"BT87+BT87*Control!$I$12*Weather!CW$21 + BT87*Control!$I$13*Prices!CK$16 + BT87*Control!$I$14*Prices!CK$18","v":856.55469780938097},{"$f":"BU87+BU87*Control!$I$12*Weather!CX$21 + BU87*Control!$I$13*Prices!CL$16 + BU87*Control!$I$14*Prices!CL$18","v":855.36758574403768},{"$f":"BV87+BV87*Control!$I$12*Weather!CY$21 + BV87*Control!$I$13*Prices!CM$16 + BV87*Control!$I$14*Prices!CM$18","v":854.17709648534787},{"$f":"BW87+BW87*Control!$I$12*Weather!CZ$21 + BW87*Control!$I$13*Prices!CN$16 + BW87*Control!$I$14*Prices!CN$18","v":852.98318370987545},{"$f":"BX87+BX87*Control!$I$12*Weather!DA$21 + BX87*Control!$I$13*Prices!CO$16 + BX87*Control!$I$14*Prices!CO$18","v":851.78580025967506},{"$f":"BY87+BY87*Control!$I$12*Weather!DB$21 + BY87*Control!$I$13*Prices!CP$16 + BY87*Control!$I$14*Prices!CP$18","v":850.58489812169671},{"$f":"BZ87+BZ87*Control!$I$12*Weather!DC$21 + BZ87*Control!$I$13*Prices!CQ$16 + BZ87*Control!$I$14*Prices!CQ$18","v":849.3804284065435},{"$f":"CA87+CA87*Control!$I$12*Weather!DD$21 + CA87*Control!$I$13*Prices!CR$16 + CA87*Control!$I$14*Prices!CR$18","v":848.17234132656586},{"$f":"CB87+CB87*Control!$I$12*Weather!DE$21 + CB87*Control!$I$13*Prices!CS$16 + CB87*Control!$I$14*Prices!CS$18","v":846.96058617325968},{"$f":"CC87+CC87*Control!$I$12*Weather!DF$21 + CC87*Control!$I$13*Prices!CT$16 + CC87*Control!$I$14*Prices!CT$18","v":845.74511129395012},{"$f":"CD87+CD87*Control!$I$12*Weather!DG$21 + CD87*Control!$I$13*Prices!CU$16 + CD87*Control!$I$14*Prices!CU$18","v":844.525864067724},{"$f":"CE87+CE87*Control!$I$12*Weather!DH$21 + CE87*Control!$I$13*Prices!CV$16 + CE87*Control!$I$14*Prices!CV$18","v":843.30279088059171},{"$f":"CF87+CF87*Control!$I$12*Weather!DI$21 + CF87*Control!$I$13*Prices!CW$16 + CF87*Control!$I$14*Prices!CW$18","v":842.07583709983805},{"$f":"CG87+CG87*Control!$I$12*Weather!DJ$21 + CG87*Control!$I$13*Prices!CX$16 + CG87*Control!$I$14*Prices!CX$18","v":840.8449470475407},{"$f":"CH87+CH87*Control!$I$12*Weather!DK$21 + CH87*Control!$I$13*Prices!CY$16 + CH87*Control!$I$14*Prices!CY$18","v":839.61006397321228},{"$f":"CI87+CI87*Control!$I$12*Weather!DL$21 + CI87*Control!$I$13*Prices!CZ$16 + CI87*Control!$I$14*Prices!CZ$18","v":838.37113002554327},{"$f":"CJ87+CJ87*Control!$I$12*Weather!DM$21 + CJ87*Control!$I$13*Prices!DA$16 + CJ87*Control!$I$14*Prices!DA$18","v":837.12808622319619},{"$f":"CK87+CK87*Control!$I$12*Weather!DN$21 + CK87*Control!$I$13*Prices!DB$16 + CK87*Control!$I$14*Prices!DB$18","v":835.88087242462643}]
["Monash (C)",{"$f":"'Volume per connection'!B86","v":214.28762556481357},{"$f":"'Volume per connection'!C86","v":679.54964814578716},{"$f":"'Volume per connection'!D86","v":1262.272243902439},{"$f":"'Volume per connection'!E86","v":1243.3368015995031},{"$f":"'Volume per connection'!F86","v":1231.1498909307113},{"$f":"'Volume per connection'!G86","v":1167.0749309035687},{"$f":"'Volume per connection'!H86","v":501.2950685453161},{"$f":"'Volume per connection'!I86","v":407.37713545816734},{"$f":"'Volume per connection'!J86","v":385.74838289368506},{"$f":"J88+J88*Control!$I$12*Weather!AM$21 + J88*Control!$I$13*Prices!AA$16 + J88*Control!$I$14*Prices!AA$18","v":361.9155514276984},{"$f":"K88+K88*Control!$I$12*Weather!AN$21 + K88*Control!$I$13*Prices!AB$16 + K88*Control!$I$14*Prices!AB$18","v":331.16795798696177},{"$f":"L88+L88*Control!$I$12*Weather!AO$21 + L88*Control!$I$13*Prices!AC$16 + L88*Control!$I$14*Prices!AC$18","v":341.52024066814084},{"$f":"M88+M88*Control!$I$12*Weather!AP$21 + M88*Control!$I$13*Prices!AD$16 + M88*Control!$I$14*Prices!AD$18","v":340.6740457614041},{"$f":"N88+N88*Control!$I$12*Weather!AQ$21 + N88*Control!$I$13*Prices!AE$16 + N88*Control!$I$14*Prices!AE$18","v":350.2039007116021},{"$f":"O88+O88*Control!$I$12*Weather!AR$21 + O88*Control!$I$13*Prices!AF$16 + O88*Control!$I$14*Prices!AF$18","v":350.63036574379765},{"$f":"P88+P88*Control!$I$12*Weather!AS$21 + P88*Control!$I$13*Prices!AG$16 + P88*Control!$I$14*Prices!AG$18","v":342.18142250458254},{"$f":"Q88+Q88*Control!$I$12*Weather!AT$21 + Q88*Control!$I$13*Prices!AH$16 + Q88*Control!$I$14*Prices!AH$18","v":320.81098783262013},{"$f":"R88+R88*Control!$I$12*Weather!AU$21 + R88*Control!$I$13*Prices!AI$16 + R88*Control!$I$14*Prices!AI$18","v":303.68730007420714},{"$f":"S88+S88*Control!$I$12*Weather!AV$21 + S88*Control!$I$13*Prices!AJ$16 + S88*Control!$I$14*Prices!AJ$18","v":292.12645619692626},{"$f":"T88+T88*Control!$I$12*Weather!AW$21 + T88*Control!$I$13*Prices!AK$16 + T88*Control!$I$14*Prices!AK$18","v":312.4599901811082},{"$f":"U88+U88*Control!$I$12*Weather!AX$21 + U88*Control!$I$13*Prices!AL$16 + U88*Control!$I$14*Prices!AL$18","v":313.32155346415738},{"$f":"V88+V88*Control!$I$12*Weather!AY$21 + V88*Control!$I$13*Prices!AM$16 + V88*Control!$I$14*Prices!AM$18","v":307.38138570046783},{"$f":"W88+W88*Control!$I$12*Weather!AZ$21 + W88*Control!$I$13*Prices!AN$16 + W88*Control!$I$14*Prices!AN$18","v":298.16443137926734},{"$f":"X88+X88*Control!$I$12*Weather!BA$21 + X88*Control!$I$13*Prices!AO$16 + X88*Control!$I$14*Prices!AO$18","v":331.1615374205291},{"$f":"Y88+Y88*Control!$I$12*Weather!BB$21 + Y88*Control!$I$13*Prices!AP$16 + Y88*Control!$I$14*Prices!AP$18","v":327.85770071780456},{"$f":"Z88+Z88*Control!$I$12*Weather!BC$21 + Z88*Control!$I$13*Prices!AQ$16 + Z88*Control!$I$14*Prices!AQ$18","v":322.79616180478627},{"$f":"AA88+AA88*Control!$I$12*Weather!BD$21 + AA88*Control!$I$13*Prices!AR$16 + AA88*Control!$I$14*Prices!AR$18","v":314.97557884636751},{"$f":"AB88+AB88*Control!$I$12*Weather!BE$21 + AB88*Control!$I$13*Prices!AS$16 + AB88*Control!$I$14*Prices!AS$18","v":310.67111582383592},{"$f":"AC88+AC88*Control!$I$12*Weather!BF$21 + AC88*Control!$I$13*Prices!AT$16 + AC88*Control!$I$14*Prices!AT$18","v":311.68424531148469},{"$f":"AD88+AD88*Control!$I$12*Weather!BG$21 + AD88*Control!$I$13*Prices!AU$16 + AD88*Control!$I$14*Prices!AU$18","v":309.51215733970724},{"$f":"AE88+AE88*Control!$I$12*Weather!BH$21 + AE88*Control!$I$13*Prices!AV$16 + AE88*Control!$I$14*Prices!AV$18","v":300.86792031033013},{"$f":"AF88+AF88*Control!$I$12*Weather!BI$21 + AF88*Control!$I$13*Prices!AW$16 + AF88*Control!$I$14*Prices!AW$18","v":294.53945347964952},{"$f":"AG88+AG88*Control!$I$12*Weather!BJ$21 + AG88*Control!$I$13*Prices!AX$16 + AG88*Control!$I$14*Prices!AX$18","v":292.13766235681317},{"$f":"AH88+AH88*Control!$I$12*Weather!BK$21 + AH88*Control!$I$13*Prices!AY$16 + AH88*Control!$I$14*Prices!AY$18","v":289.19875862046774},{"$f":"AI88+AI88*Control!$I$12*Weather!BL$21 + AI88*Control!$I$13*Prices!AZ$16 + AI88*Control!$I$14*Prices!AZ$18","v":286.5063249839373},{"$f":"AJ88+AJ88*Control!$I$12*Weather!BM$21 + AJ88*Control!$I$13*Prices!BA$16 + AJ88*Control!$I$14*Prices!BA$18","v":284.69059558739258},{"$f":"AK88+AK88*Control!$I$12*Weather!BN$21 + AK88*Control!$I$13*Prices!BB$16 + AK88*Control!$I$14*Prices!BB$18","v":283.49382687550587},{"$f":"AL88+AL88*Control!$I$12*Weather!BO$21 + AL88*Control!$I$13*Prices!BC$16 + AL88*Control!$I$14*Prices!BC$18","v":282.54172799708755},{"$f":"AM88+AM88*Control!$I$12*Weather!BP$21 + AM88*Control!$I$13*Prices!BD$16 + AM88*Control!$I$14*Prices!BD$18","v":280.40695172897227},{"$f":"AN88+AN88*Control!$I$12*Weather!BQ$21 + AN88*Control!$I$13*Prices!BE$16 + AN88*Control!$I$14*Prices!BE$18","v":280.10971511853683},{"$f":"AO88+AO88*Control!$I$12*Weather!BR$21 + AO88*Control!$I$13*Prices!BF$16 + AO88*Control!$I$14*Prices!BF$18","v":277.37181434511939},{"$f":"AP88+AP88*Control!$I$12*Weather!BS$21 + AP88*Control!$I$13*Prices!BG$16 + AP88*Control!$I$14*Prices!BG$18","v":277.02921934169609},{"$f":"AQ88+AQ88*Control!$I$12*Weather!BT$21 + AQ88*Control!$I$13*Prices!BH$16 + AQ88*Control!$I$14*Prices!BH$18","v":276.68591955140829},{"$f":"AR88+AR88*Control!$I$12*Weather!BU$21 + AR88*Control!$I$13*Prices!BI$16 + AR88*Control!$I$14*Prices!BI$18","v":276.34190625937856},{"$f":"AS88+AS88*Control!$I$12*Weather!BV$21 + AS88*Control!$I$13*Prices!BJ$16 + AS88*Control!$I$14*Prices!BJ$18","v":275.99717062045033},{"$f":"AT88+AT88*Control!$I$12*Weather!BW$21 + AT88*Control!$I$13*Prices!BK$16 + AT88*Control!$I$14*Prices!BK$18","v":275.65170365649698},{"$f":"AU88+AU88*Control!$I$12*Weather!BX$21 + AU88*Control!$I$13*Prices!BL$16 + AU88*Control!$I$14*Prices!BL$18","v":275.3054962536616},{"$f":"AV88+AV88*Control!$I$12*Weather!BY$21 + AV88*Control!$I$13*Prices!BM$16 + AV88*Control!$I$14*Prices!BM$18","v":274.95853915952353},{"$f":"AW88+AW88*Control!$I$12*Weather!BZ$21 + AW88*Control!$I$13*Prices!BN$16 + AW88*Control!$I$14*Prices!BN$18","v":274.61082298019164},{"$f":"AX88+AX88*Control!$I$12*Weather!CA$21 + AX88*Control!$I$13*Prices!BO$16 + AX88*Control!$I$14*Prices!BO$18","v":274.26233817731867},{"$f":"AY88+AY88*Control!$I$12*Weather!CB$21 + AY88*Control!$I$13*Prices!BP$16 + AY88*Control!$I$14*Prices!BP$18","v":273.91307506503898},{"$f":"AZ88+AZ88*Control!$I$12*Weather!CC$21 + AZ88*Control!$I$13*Prices!BQ$16 + AZ88*Control!$I$14*Prices!BQ$18","v":273.56302380682115},{"$f":"BA88+BA88*Control!$I$12*Weather!CD$21 + BA88*Control!$I$13*Prices!BR$16 + BA88*Control!$I$14*Prices!BR$18","v":273.21217441223899},{"$f":"BB88+BB88*Control!$I$12*Weather!CE$21 + BB88*Control!$I$13*Prices!BS$16 + BB88*Control!$I$14*Prices!BS$18","v":272.86051673365284},{"$f":"BC88+BC88*Control!$I$12*Weather!CF$21 + BC88*Control!$I$13*Prices!BT$16 + BC88*Control!$I$14*Prices!BT$18","v":272.50804046280217},{"$f":"BD88+BD88*Control!$I$12*Weather!CG$21 + BD88*Control!$I$13*Prices!BU$16 + BD88*Control!$I$14*Prices!BU$18","v":272.15473512730387},{"$f":"BE88+BE88*Control!$I$12*Weather!CH$21 + BE88*Control!$I$13*Prices!BV$16 + BE88*Control!$I$14*Prices!BV$18","v":271.80059008705524},{"$f":"BF88+BF88*Control!$I$12*Weather!CI$21 + BF88*Control!$I$13*Prices!BW$16 + BF88*Control!$I$14*Prices!BW$18","v":271.4455945305366},{"$f":"BG88+BG88*Control!$I$12*Weather!CJ$21 + BG88*Control!$I$13*Prices!BX$16 + BG88*Control!$I$14*Prices!BX$18","v":271.08973747101197},{"$f":"BH88+BH88*Control!$I$12*Weather!CK$21 + BH88*Control!$I$13*Prices!BY$16 + BH88*Control!$I$14*Prices!BY$18","v":270.73300774262202},{"$f":"BI88+BI88*Control!$I$12*Weather!CL$21 + BI88*Control!$I$13*Prices!BZ$16 + BI88*Control!$I$14*Prices!BZ$18","v":270.37539399636916},{"$f":"BJ88+BJ88*Control!$I$12*Weather!CM$21 + BJ88*Control!$I$13*Prices!CA$16 + BJ88*Control!$I$14*Prices!CA$18","v":270.01688469598696},{"$f":"BK88+BK88*Control!$I$12*Weather!CN$21 + BK88*Control!$I$13*Prices!CB$16 + BK88*Control!$I$14*Prices!CB$18","v":269.65746811369354},{"$f":"BL88+BL88*Control!$I$12*Weather!CO$21 + BL88*Control!$I$13*Prices!CC$16 + BL88*Control!$I$14*Prices!CC$18","v":269.29713232582174},{"$f":"BM88+BM88*Control!$I$12*Weather!CP$21 + BM88*Control!$I$13*Prices!CD$16 + BM88*Control!$I$14*Prices!CD$18","v":268.93586520832577},{"$f":"BN88+BN88*Control!$I$12*Weather!CQ$21 + BN88*Control!$I$13*Prices!CE$16 + BN88*Control!$I$14*Prices!CE$18","v":268.57365443215502},{"$f":"BO88+BO88*Control!$I$12*Weather!CR$21 + BO88*Control!$I$13*Prices!CF$16 + BO88*Control!$I$14*Prices!CF$18","v":268.21048745849521},{"$f":"BP88+BP88*Control!$I$12*Weather!CS$21 + BP88*Control!$I$13*Prices!CG$16 + BP88*Control!$I$14*Prices!CG$18","v":267.8463515338683},{"$f":"BQ88+BQ88*Control!$I$12*Weather!CT$21 + BQ88*Control!$I$13*Prices!CH$16 + BQ88*Control!$I$14*Prices!CH$18","v":267.48123368508965},{"$f":"BR88+BR88*Control!$I$12*Weather!CU$21 + BR88*Control!$I$13*Prices!CI$16 + BR88*Control!$I$14*Prices!CI$18","v":267.11512071407338},{"$f":"BS88+BS88*Control!$I$12*Weather!CV$21 + BS88*Control!$I$13*Prices!CJ$16 + BS88*Control!$I$14*Prices!CJ$18","v":266.747999192485},{"$f":"BT88+BT88*Control!$I$12*Weather!CW$21 + BT88*Control!$I$13*Prices!CK$16 + BT88*Control!$I$14*Prices!CK$18","v":266.37985545623081},{"$f":"BU88+BU88*Control!$I$12*Weather!CX$21 + BU88*Control!$I$13*Prices!CL$16 + BU88*Control!$I$14*Prices!CL$18","v":266.01067559978355},{"$f":"BV88+BV88*Control!$I$12*Weather!CY$21 + BV88*Control!$I$13*Prices!CM$16 + BV88*Control!$I$14*Prices!CM$18","v":265.64044547033239},{"$f":"BW88+BW88*Control!$I$12*Weather!CZ$21 + BW88*Control!$I$13*Prices!CN$16 + BW88*Control!$I$14*Prices!CN$18","v":265.26915066175678},{"$f":"BX88+BX88*Control!$I$12*Weather!DA$21 + BX88*Control!$I$13*Prices!CO$16 + BX88*Control!$I$14*Prices!CO$18","v":264.89677650841224},{"$f":"BY88+BY88*Control!$I$12*Weather!DB$21 + BY88*Control!$I$13*Prices!CP$16 + BY88*Control!$I$14*Prices!CP$18","v":264.52330807872539},{"$f":"BZ88+BZ88*Control!$I$12*Weather!DC$21 + BZ88*Control!$I$13*Prices!CQ$16 + BZ88*Control!$I$14*Prices!CQ$18","v":264.14873016858786},{"$f":"CA88+CA88*Control!$I$12*Weather!DD$21 + CA88*Control!$I$13*Prices!CR$16 + CA88*Control!$I$14*Prices!CR$18","v":263.77302729454374},{"$f":"CB88+CB88*Control!$I$12*Weather!DE$21 + CB88*Control!$I$13*Prices!CS$16 + CB88*Control!$I$14*Prices!CS$18","v":263.39618368676065},{"$f":"CC88+CC88*Control!$I$12*Weather!DF$21 + CC88*Control!$I$13*Prices!CT$16 + CC88*Control!$I$14*Prices!CT$18","v":263.01818328177865},{"$f":"CD88+CD88*Control!$I$12*Weather!DG$21 + CD88*Control!$I$13*Prices!CU$16 + CD88*Control!$I$14*Prices!CU$18","v":262.63900971502551},{"$f":"CE88+CE88*Control!$I$12*Weather!DH$21 + CE88*Control!$I$13*Prices!CV$16 + CE88*Control!$I$14*Prices!CV$18","v":262.25864631309224},{"$f":"CF88+CF88*Control!$I$12*Weather!DI$21 + CF88*Control!$I$13*Prices!CW$16 + CF88*Control!$I$14*Prices!CW$18","v":261.87707608575647},{"$f":"CG88+CG88*Control!$I$12*Weather!DJ$21 + CG88*Control!$I$13*Prices!CX$16 + CG88*Control!$I$14*Prices!CX$18","v":261.49428171774696},{"$f":"CH88+CH88*Control!$I$12*Weather!DK$21 + CH88*Control!$I$13*Prices!CY$16 + CH88*Control!$I$14*Prices!CY$18","v":261.11024556023568},{"$f":"CI88+CI88*Control!$I$12*Weather!DL$21 + CI88*Control!$I$13*Prices!CZ$16 + CI88*Control!$I$14*Prices!CZ$18","v":260.72494962204991},{"$f":"CJ88+CJ88*Control!$I$12*Weather!DM$21 + CJ88*Control!$I$13*Prices!DA$16 + CJ88*Control!$I$14*Prices!DA$18","v":260.33837556058972},{"$f":"CK88+CK88*Control!$I$12*Weather!DN$21 + CK88*Control!$I$13*Prices!DB$16 + CK88*Control!$I$14*Prices!DB$18","v":259.95050467244249}]
["Nillumbik (S)",{"$f":"'Volume per connection'!B87","v":207.54496993813942},{"$f":"'Volume per connection'!C87","v":582.75009725506595},{"$f":"'Volume per connection'!D87","v":1107.8131008997429},{"$f":"'Volume per connection'!E87","v":1041.4937239011927},{"$f":"'Volume per connection'!F87","v":1019.0679604962838},{"$f":"'Volume per connection'!G87","v":957.46788118175971},{"$f":"'Volume per connection'!H87","v":475.22112676962678},{"$f":"'Volume per connection'!I87","v":432.2876494023904},{"$f":"'Volume per connection'!J87","v":403.15067421718857},{"$f":"J89+J89*Control!$I$12*Weather!AM$21 + J89*Control!$I$13*Prices!AA$16 + J89*Control!$I$14*Prices!AA$18","v":378.24267070997689},{"$f":"K89+K89*Control!$I$12*Weather!AN$21 + K89*Control!$I$13*Prices!AB$16 + K89*Control!$I$14*Prices!AB$18","v":346.10795913140527},{"$f":"L89+L89*Control!$I$12*Weather!AO$21 + L89*Control!$I$13*Prices!AC$16 + L89*Control!$I$14*Prices!AC$18","v":356.9272649993822},{"$f":"M89+M89*Control!$I$12*Weather!AP$21 + M89*Control!$I$13*Prices!AD$16 + M89*Control!$I$14*Prices!AD$18","v":356.0428956480165},{"$f":"N89+N89*Control!$I$12*Weather!AQ$21 + N89*Control!$I$13*Prices!AE$16 + N89*Control!$I$14*Prices!AE$18","v":366.00267155049437},{"$f":"O89+O89*Control!$I$12*Weather!AR$21 + O89*Control!$I$13*Prices!AF$16 + O89*Control!$I$14*Prices!AF$18","v":366.44837572680217},{"$f":"P89+P89*Control!$I$12*Weather!AS$21 + P89*Control!$I$13*Prices!AG$16 + P89*Control!$I$14*Prices!AG$18","v":357.61827477404955},{"$f":"Q89+Q89*Control!$I$12*Weather!AT$21 + Q89*Control!$I$13*Prices!AH$16 + Q89*Control!$I$14*Prices!AH$18","v":335.28375432399093},{"$f":"R89+R89*Control!$I$12*Weather!AU$21 + R89*Control!$I$13*Prices!AI$16 + R89*Control!$I$14*Prices!AI$18","v":317.38756455100247},{"$f":"S89+S89*Control!$I$12*Weather!AV$21 + S89*Control!$I$13*Prices!AJ$16 + S89*Control!$I$14*Prices!AJ$18","v":305.30517558884316},{"$f":"T89+T89*Control!$I$12*Weather!AW$21 + T89*Control!$I$13*Prices!AK$16 + T89*Control!$I$14*Prices!AK$18","v":326.55601758446693},{"$f":"U89+U89*Control!$I$12*Weather!AX$21 + U89*Control!$I$13*Prices!AL$16 + U89*Control!$I$14*Prices!AL$18","v":327.4564486266828},{"$f":"V89+V89*Control!$I$12*Weather!AY$21 + V89*Control!$I$13*Prices!AM$16 + V89*Control!$I$14*Prices!AM$18","v":321.24830169699192},{"$f":"W89+W89*Control!$I$12*Weather!AZ$21 + W89*Control!$I$13*Prices!AN$16 + W89*Control!$I$14*Prices!AN$18","v":311.61554232948191},{"$f":"X89+X89*Control!$I$12*Weather!BA$21 + X89*Control!$I$13*Prices!AO$16 + X89*Control!$I$14*Prices!AO$18","v":346.10124891355105},{"$f":"Y89+Y89*Control!$I$12*Weather!BB$21 + Y89*Control!$I$13*Prices!AP$16 + Y89*Control!$I$14*Prices!AP$18","v":342.64836601559728},{"$f":"Z89+Z89*Control!$I$12*Weather!BC$21 + Z89*Control!$I$13*Prices!AQ$16 + Z89*Control!$I$14*Prices!AQ$18","v":337.35848557578151},{"$f":"AA89+AA89*Control!$I$12*Weather!BD$21 + AA89*Control!$I$13*Prices!AR$16 + AA89*Control!$I$14*Prices!AR$18","v":329.18509216112409},{"$f":"AB89+AB89*Control!$I$12*Weather!BE$21 + AB89*Control!$I$13*Prices!AS$16 + AB89*Control!$I$14*Prices!AS$18","v":324.6864416245777},{"$f":"AC89+AC89*Control!$I$12*Weather!BF$21 + AC89*Control!$I$13*Prices!AT$16 + AC89*Control!$I$14*Prices!AT$18","v":325.74527648721789},{"$f":"AD89+AD89*Control!$I$12*Weather!BG$21 + AD89*Control!$I$13*Prices!AU$16 + AD89*Control!$I$14*Prices!AU$18","v":323.4751989726675},{"$f":"AE89+AE89*Control!$I$12*Weather!BH$21 + AE89*Control!$I$13*Prices!AV$16 + AE89*Control!$I$14*Prices!AV$18","v":314.44099392858038},{"$f":"AF89+AF89*Control!$I$12*Weather!BI$21 + AF89*Control!$I$13*Prices!AW$16 + AF89*Control!$I$14*Prices!AW$18","v":307.82703057140105},{"$f":"AG89+AG89*Control!$I$12*Weather!BJ$21 + AG89*Control!$I$13*Prices!AX$16 + AG89*Control!$I$14*Prices!AX$18","v":305.31688729293347},{"$f":"AH89+AH89*Control!$I$12*Weather!BK$21 + AH89*Control!$I$13*Prices!AY$16 + AH89*Control!$I$14*Prices!AY$18","v":302.24540060547372},{"$f":"AI89+AI89*Control!$I$12*Weather!BL$21 + AI89*Control!$I$13*Prices!AZ$16 + AI89*Control!$I$14*Prices!AZ$18","v":299.43150303911261},{"$f":"AJ89+AJ89*Control!$I$12*Weather!BM$21 + AJ89*Control!$I$13*Prices!BA$16 + AJ89*Control!$I$14*Prices!BA$18","v":297.53386052685687},{"$f":"AK89+AK89*Control!$I$12*Weather!BN$21 + AK89*Control!$I$13*Prices!BB$16 + AK89*Control!$I$14*Prices!BB$18","v":296.28310191197983},{"$f":"AL89+AL89*Control!$I$12*Weather!BO$21 + AL89*Control!$I$13*Prices!BC$16 + AL89*Control!$I$14*Prices!BC$18","v":295.28805093632462},{"$f":"AM89+AM89*Control!$I$12*Weather!BP$21 + AM89*Control!$I$13*Prices!BD$16 + AM89*Control!$I$14*Prices!BD$18","v":293.05696837069604},{"$f":"AN89+AN89*Control!$I$12*Weather!BQ$21 + AN89*Control!$I$13*Prices!BE$16 + AN89*Control!$I$14*Prices!BE$18","v":292.74632250615565},{"$f":"AO89+AO89*Control!$I$12*Weather!BR$21 + AO89*Control!$I$13*Prices!BF$16 + AO89*Control!$I$14*Prices!BF$18","v":289.88490664107036},{"$f":"AP89+AP89*Control!$I$12*Weather!BS$21 + AP89*Control!$I$13*Prices!BG$16 + AP89*Control!$I$14*Prices!BG$18","v":289.5268561274753},{"$f":"AQ89+AQ89*Control!$I$12*Weather!BT$21 + AQ89*Control!$I$13*Prices!BH$16 + AQ89*Control!$I$14*Prices!BH$18","v":289.16806903192111},{"$f":"AR89+AR89*Control!$I$12*Weather!BU$21 + AR89*Control!$I$13*Prices!BI$16 + AR89*Control!$I$14*Prices!BI$18","v":288.80853624637564},{"$f":"AS89+AS89*Control!$I$12*Weather!BV$21 + AS89*Control!$I$13*Prices!BJ$16 + AS89*Control!$I$14*Prices!BJ$18","v":288.44824852664999},{"$f":"AT89+AT89*Control!$I$12*Weather!BW$21 + AT89*Control!$I$13*Prices!BK$16 + AT89*Control!$I$14*Prices!BK$18","v":288.08719648958686},{"$f":"AU89+AU89*Control!$I$12*Weather!BX$21 + AU89*Control!$I$13*Prices!BL$16 + AU89*Control!$I$14*Prices!BL$18","v":287.72537061017539},{"$f":"AV89+AV89*Control!$I$12*Weather!BY$21 + AV89*Control!$I$13*Prices!BM$16 + AV89*Control!$I$14*Prices!BM$18","v":287.36276121858987},{"$f":"AW89+AW89*Control!$I$12*Weather!BZ$21 + AW89*Control!$I$13*Prices!BN$16 + AW89*Control!$I$14*Prices!BN$18","v":286.99935849715189},{"$f":"AX89+AX89*Control!$I$12*Weather!CA$21 + AX89*Control!$I$13*Prices!BO$16 + AX89*Control!$I$14*Prices!BO$18","v":286.63515247721011},{"$f":"AY89+AY89*Control!$I$12*Weather!CB$21 + AY89*Control!$I$13*Prices!BP$16 + AY89*Control!$I$14*Prices!BP$18","v":286.27013303593986},{"$f":"AZ89+AZ89*Control!$I$12*Weather!CC$21 + AZ89*Control!$I$13*Prices!BQ$16 + AZ89*Control!$I$14*Prices!BQ$18","v":285.90428989305371},{"$f":"BA89+BA89*Control!$I$12*Weather!CD$21 + BA89*Control!$I$13*Prices!BR$16 + BA89*Control!$I$14*Prices!BR$18","v":285.53761260742669},{"$f":"BB89+BB89*Control!$I$12*Weather!CE$21 + BB89*Control!$I$13*Prices!BS$16 + BB89*Control!$I$14*Prices!BS$18","v":285.17009057362799},{"$f":"BC89+BC89*Control!$I$12*Weather!CF$21 + BC89*Control!$I$13*Prices!BT$16 + BC89*Control!$I$14*Prices!BT$18","v":284.80171301835986},{"$f":"BD89+BD89*Control!$I$12*Weather!CG$21 + BD89*Control!$I$13*Prices!BU$16 + BD89*Control!$I$14*Prices!BU$18","v":284.43246899679798},{"$f":"BE89+BE89*Control!$I$12*Weather!CH$21 + BE89*Control!$I$13*Prices!BV$16 + BE89*Control!$I$14*Prices!BV$18","v":284.06234738883194},{"$f":"BF89+BF89*Control!$I$12*Weather!CI$21 + BF89*Control!$I$13*Prices!BW$16 + BF89*Control!$I$14*Prices!BW$18","v":283.69133689520135},{"$f":"BG89+BG89*Control!$I$12*Weather!CJ$21 + BG89*Control!$I$13*Prices!BX$16 + BG89*Control!$I$14*Prices!BX$18","v":283.31942603352485},{"$f":"BH89+BH89*Control!$I$12*Weather!CK$21 + BH89*Control!$I$13*Prices!BY$16 + BH89*Control!$I$14*Prices!BY$18","v":282.94660313421701},{"$f":"BI89+BI89*Control!$I$12*Weather!CL$21 + BI89*Control!$I$13*Prices!BZ$16 + BI89*Control!$I$14*Prices!BZ$18","v":282.57285633629226},{"$f":"BJ89+BJ89*Control!$I$12*Weather!CM$21 + BJ89*Control!$I$13*Prices!CA$16 + BJ89*Control!$I$14*Prices!CA$18","v":282.19817358304772},{"$f":"BK89+BK89*Control!$I$12*Weather!CN$21 + BK89*Control!$I$13*Prices!CB$16 + BK89*Control!$I$14*Prices!CB$18","v":281.8225426176254},{"$f":"BL89+BL89*Control!$I$12*Weather!CO$21 + BL89*Control!$I$13*Prices!CC$16 + BL89*Control!$I$14*Prices!CC$18","v":281.44595097844513},{"$f":"BM89+BM89*Control!$I$12*Weather!CP$21 + BM89*Control!$I$13*Prices!CD$16 + BM89*Control!$I$14*Prices!CD$18","v":281.06838599450805},{"$f":"BN89+BN89*Control!$I$12*Weather!CQ$21 + BN89*Control!$I$13*Prices!CE$16 + BN89*Control!$I$14*Prices!CE$18","v":280.68983478056248},{"$f":"BO89+BO89*Control!$I$12*Weather!CR$21 + BO89*Control!$I$13*Prices!CF$16 + BO89*Control!$I$14*Prices!CF$18","v":280.31028423212962},{"$f":"BP89+BP89*Control!$I$12*Weather!CS$21 + BP89*Control!$I$13*Prices!CG$16 + BP89*Control!$I$14*Prices!CG$18","v":279.92972102038311},{"$f":"BQ89+BQ89*Control!$I$12*Weather!CT$21 + BQ89*Control!$I$13*Prices!CH$16 + BQ89*Control!$I$14*Prices!CH$18","v":279.54813158687818},{"$f":"BR89+BR89*Control!$I$12*Weather!CU$21 + BR89*Control!$I$13*Prices!CI$16 + BR89*Control!$I$14*Prices!CI$18","v":279.16550213812292},{"$f":"BS89+BS89*Control!$I$12*Weather!CV$21 + BS89*Control!$I$13*Prices!CJ$16 + BS89*Control!$I$14*Prices!CJ$18","v":278.78181863998941},{"$f":"BT89+BT89*Control!$I$12*Weather!CW$21 + BT89*Control!$I$13*Prices!CK$16 + BT89*Control!$I$14*Prices!CK$18","v":278.39706681195491},{"$f":"BU89+BU89*Control!$I$12*Weather!CX$21 + BU89*Control!$I$13*Prices!CL$16 + BU89*Control!$I$14*Prices!CL$18","v":278.01123212117113},{"$f":"BV89+BV89*Control!$I$12*Weather!CY$21 + BV89*Control!$I$13*Prices!CM$16 + BV89*Control!$I$14*Prices!CM$18","v":277.62429977635065},{"$f":"BW89+BW89*Control!$I$12*Weather!CZ$21 + BW89*Control!$I$13*Prices!CN$16 + BW89*Control!$I$14*Prices!CN$18","v":277.23625472146864},{"$f":"BX89+BX89*Control!$I$12*Weather!DA$21 + BX89*Control!$I$13*Prices!CO$16 + BX89*Control!$I$14*Prices!CO$18","v":276.84708162926859},{"$f":"BY89+BY89*Control!$I$12*Weather!DB$21 + BY89*Control!$I$13*Prices!CP$16 + BY89*Control!$I$14*Prices!CP$18","v":276.45676489456804},{"$f":"BZ89+BZ89*Control!$I$12*Weather!DC$21 + BZ89*Control!$I$13*Prices!CQ$16 + BZ89*Control!$I$14*Prices!CQ$18","v":276.06528862735468},{"$f":"CA89+CA89*Control!$I$12*Weather!DD$21 + CA89*Control!$I$13*Prices!CR$16 + CA89*Control!$I$14*Prices!CR$18","v":275.6726366456665},{"$f":"CB89+CB89*Control!$I$12*Weather!DE$21 + CB89*Control!$I$13*Prices!CS$16 + CB89*Control!$I$14*Prices!CS$18","v":275.27879246824563},{"$f":"CC89+CC89*Control!$I$12*Weather!DF$21 + CC89*Control!$I$13*Prices!CT$16 + CC89*Control!$I$14*Prices!CT$18","v":274.88373930696031},{"$f":"CD89+CD89*Control!$I$12*Weather!DG$21 + CD89*Control!$I$13*Prices!CU$16 + CD89*Control!$I$14*Prices!CU$18","v":274.48746005898226},{"$f":"CE89+CE89*Control!$I$12*Weather!DH$21 + CE89*Control!$I$13*Prices!CV$16 + CE89*Control!$I$14*Prices!CV$18","v":274.08993729871395},{"$f":"CF89+CF89*Control!$I$12*Weather!DI$21 + CF89*Control!$I$13*Prices!CW$16 + CF89*Control!$I$14*Prices!CW$18","v":273.691153269452},{"$f":"CG89+CG89*Control!$I$12*Weather!DJ$21 + CG89*Control!$I$13*Prices!CX$16 + CG89*Control!$I$14*Prices!CX$18","v":273.29108987478031},{"$f":"CH89+CH89*Control!$I$12*Weather!DK$21 + CH89*Control!$I$13*Prices!CY$16 + CH89*Control!$I$14*Prices!CY$18","v":272.88972866967805},{"$f":"CI89+CI89*Control!$I$12*Weather!DL$21 + CI89*Control!$I$13*Prices!CZ$16 + CI89*Control!$I$14*Prices!CZ$18","v":272.48705085133565},{"$f":"CJ89+CJ89*Control!$I$12*Weather!DM$21 + CJ89*Control!$I$13*Prices!DA$16 + CJ89*Control!$I$14*Prices!DA$18","v":272.08303724966231},{"$f":"CK89+CK89*Control!$I$12*Weather!DN$21 + CK89*Control!$I$13*Prices!DB$16 + CK89*Control!$I$14*Prices!DB$18","v":271.67766831747707}]
["Port Phillip (C)",{"$f":"'Volume per connection'!B88","v":280.99746614779457},{"$f":"'Volume per connection'!C88","v":2917.7963047750723},{"$f":"'Volume per connection'!D88","v":6463.3859130434776},{"$f":"'Volume per connection'!E88","v":7166.1522173913036},{"$f":"'Volume per connection'!F88","v":7542.8878181818181},{"$f":"'Volume per connection'!G88","v":3432.0451777777776},{"$f":"'Volume per connection'!H88","v":520.40893478260875},{"$f":"'Volume per connection'!I88","v":520.74908510638295},{"$f":"'Volume per connection'!J88","v":514.76408163265307},{"$f":"J90+J90*Control!$I$12*Weather!AM$21 + J90*Control!$I$13*Prices!AA$16 + J90*Control!$I$14*Prices!AA$18","v":482.96022672012157},{"$f":"K90+K90*Control!$I$12*Weather!AN$21 + K90*Control!$I$13*Prices!AB$16 + K90*Control!$I$14*Prices!AB$18","v":441.92892911310804},{"$f":"L90+L90*Control!$I$12*Weather!AO$21 + L90*Control!$I$13*Prices!AC$16 + L90*Control!$I$14*Prices!AC$18","v":455.74359049212273},{"$f":"M90+M90*Control!$I$12*Weather!AP$21 + M90*Control!$I$13*Prices!AD$16 + M90*Control!$I$14*Prices!AD$18","v":454.61438097792859},{"$f":"N90+N90*Control!$I$12*Weather!AQ$21 + N90*Control!$I$13*Prices!AE$16 + N90*Control!$I$14*Prices!AE$18","v":467.33154908303277},{"$f":"O90+O90*Control!$I$12*Weather!AR$21 + O90*Control!$I$13*Prices!AF$16 + O90*Control!$I$14*Prices!AF$18","v":467.90064772448346},{"$f":"P90+P90*Control!$I$12*Weather!AS$21 + P90*Control!$I$13*Prices!AG$16 + P90*Control!$I$14*Prices!AG$18","v":456.6259082824788},{"$f":"Q90+Q90*Control!$I$12*Weather!AT$21 + Q90*Control!$I$13*Prices!AH$16 + Q90*Control!$I$14*Prices!AH$18","v":428.10801250938044},{"$f":"R90+R90*Control!$I$12*Weather!AU$21 + R90*Control!$I$13*Prices!AI$16 + R90*Control!$I$14*Prices!AI$18","v":405.25721184755855},{"$f":"S90+S90*Control!$I$12*Weather!AV$21 + S90*Control!$I$13*Prices!AJ$16 + S90*Control!$I$14*Prices!AJ$18","v":389.82977923787433},{"$f":"T90+T90*Control!$I$12*Weather!AW$21 + T90*Control!$I$13*Prices!AK$16 + T90*Control!$I$14*Prices!AK$18","v":416.96397710332212},{"$f":"U90+U90*Control!$I$12*Weather!AX$21 + U90*Control!$I$13*Prices!AL$16 + U90*Control!$I$14*Prices!AL$18","v":418.11369503302615},{"$f":"V90+V90*Control!$I$12*Weather!AY$21 + V90*Control!$I$13*Prices!AM$16 + V90*Control!$I$14*Prices!AM$18","v":410.18680502072942},{"$f":"W90+W90*Control!$I$12*Weather!AZ$21 + W90*Control!$I$13*Prices!AN$16 + W90*Control!$I$14*Prices!AN$18","v":397.88718890565553},{"$f":"X90+X90*Control!$I$12*Weather!BA$21 + X90*Control!$I$13*Prices!AO$16 + X90*Control!$I$14*Prices!AO$18","v":441.92036115241206},{"$f":"Y90+Y90*Control!$I$12*Weather!BB$21 + Y90*Control!$I$13*Prices!AP$16 + Y90*Control!$I$14*Prices!AP$18","v":437.5115378324424},{"$f":"Z90+Z90*Control!$I$12*Weather!BC$21 + Z90*Control!$I$13*Prices!AQ$16 + Z90*Control!$I$14*Prices!AQ$18","v":430.75713899177146},{"$f":"AA90+AA90*Control!$I$12*Weather!BD$21 + AA90*Control!$I$13*Prices!AR$16 + AA90*Control!$I$14*Prices!AR$18","v":420.32091843208099},{"$f":"AB90+AB90*Control!$I$12*Weather!BE$21 + AB90*Control!$I$13*Prices!AS$16 + AB90*Control!$I$14*Prices!AS$18","v":414.5768037371767},{"$f":"AC90+AC90*Control!$I$12*Weather!BF$21 + AC90*Control!$I$13*Prices!AT$16 + AC90*Control!$I$14*Prices!AT$18","v":415.92878003419264},{"$f":"AD90+AD90*Control!$I$12*Weather!BG$21 + AD90*Control!$I$13*Prices!AU$16 + AD90*Control!$I$14*Prices!AU$18","v":413.03022512223203},{"$f":"AE90+AE90*Control!$I$12*Weather!BH$21 + AE90*Control!$I$13*Prices!AV$16 + AE90*Control!$I$14*Prices!AV$18","v":401.49487479240662},{"$f":"AF90+AF90*Control!$I$12*Weather!BI$21 + AF90*Control!$I$13*Prices!AW$16 + AF90*Control!$I$14*Prices!AW$18","v":393.04981692385343},{"$f":"AG90+AG90*Control!$I$12*Weather!BJ$21 + AG90*Control!$I$13*Prices!AX$16 + AG90*Control!$I$14*Prices!AX$18","v":389.84473336045437},{"$f":"AH90+AH90*Control!$I$12*Weather!BK$21 + AH90*Control!$I$13*Prices!AY$16 + AH90*Control!$I$14*Prices!AY$18","v":385.92289687342088},{"$f":"AI90+AI90*Control!$I$12*Weather!BL$21 + AI90*Control!$I$13*Prices!AZ$16 + AI90*Control!$I$14*Prices!AZ$18","v":382.32996378613575},{"$f":"AJ90+AJ90*Control!$I$12*Weather!BM$21 + AJ90*Control!$I$13*Prices!BA$16 + AJ90*Control!$I$14*Prices!BA$18","v":379.90695356300961},{"$f":"AK90+AK90*Control!$I$12*Weather!BN$21 + AK90*Control!$I$13*Prices!BB$16 + AK90*Control!$I$14*Prices!BB$18","v":378.30991887869101},{"$f":"AL90+AL90*Control!$I$12*Weather!BO$21 + AL90*Control!$I$13*Prices!BC$16 + AL90*Control!$I$14*Prices!BC$18","v":377.03938521865086},{"$f":"AM90+AM90*Control!$I$12*Weather!BP$21 + AM90*Control!$I$13*Prices!BD$16 + AM90*Control!$I$14*Prices!BD$18","v":374.19062111780323},{"$f":"AN90+AN90*Control!$I$12*Weather!BQ$21 + AN90*Control!$I$13*Prices!BE$16 + AN90*Control!$I$14*Prices!BE$18","v":373.79397206473237},{"$f":"AO90+AO90*Control!$I$12*Weather!BR$21 + AO90*Control!$I$13*Prices!BF$16 + AO90*Control!$I$14*Prices!BF$18","v":370.14036510296847},{"$f":"AP90+AP90*Control!$I$12*Weather!BS$21 + AP90*Control!$I$13*Prices!BG$16 + AP90*Control!$I$14*Prices!BG$18","v":369.68318728932167},{"$f":"AQ90+AQ90*Control!$I$12*Weather!BT$21 + AQ90*Control!$I$13*Prices!BH$16 + AQ90*Control!$I$14*Prices!BH$18","v":369.22506896891156},{"$f":"AR90+AR90*Control!$I$12*Weather!BU$21 + AR90*Control!$I$13*Prices!BI$16 + AR90*Control!$I$14*Prices!BI$18","v":368.76599851212131},{"$f":"AS90+AS90*Control!$I$12*Weather!BV$21 + AS90*Control!$I$13*Prices!BJ$16 + AS90*Control!$I$14*Prices!BJ$18","v":368.30596411548242},{"$f":"AT90+AT90*Control!$I$12*Weather!BW$21 + AT90*Control!$I$13*Prices!BK$16 + AT90*Control!$I$14*Prices!BK$18","v":367.84495379808368},{"$f":"AU90+AU90*Control!$I$12*Weather!BX$21 + AU90*Control!$I$13*Prices!BL$16 + AU90*Control!$I$14*Prices!BL$18","v":367.382955397888},{"$f":"AV90+AV90*Control!$I$12*Weather!BY$21 + AV90*Control!$I$13*Prices!BM$16 + AV90*Control!$I$14*Prices!BM$18","v":366.91995656795092},{"$f":"AW90+AW90*Control!$I$12*Weather!BZ$21 + AW90*Control!$I$13*Prices!BN$16 + AW90*Control!$I$14*Prices!BN$18","v":366.45594477254195},{"$f":"AX90+AX90*Control!$I$12*Weather!CA$21 + AX90*Control!$I$13*Prices!BO$16 + AX90*Control!$I$14*Prices!BO$18","v":365.99090728316054},{"$f":"AY90+AY90*Control!$I$12*Weather!CB$21 + AY90*Control!$I$13*Prices!BP$16 + AY90*Control!$I$14*Prices!BP$18","v":365.5248311744491},{"$f":"AZ90+AZ90*Control!$I$12*Weather!CC$21 + AZ90*Control!$I$13*Prices!BQ$16 + AZ90*Control!$I$14*Prices!BQ$18","v":365.05770331999355},{"$f":"BA90+BA90*Control!$I$12*Weather!CD$21 + BA90*Control!$I$13*Prices!BR$16 + BA90*Control!$I$14*Prices!BR$18","v":364.58951038801382},{"$f":"BB90+BB90*Control!$I$12*Weather!CE$21 + BB90*Control!$I$13*Prices!BS$16 + BB90*Control!$I$14*Prices!BS$18","v":364.12023883693553},{"$f":"BC90+BC90*Control!$I$12*Weather!CF$21 + BC90*Control!$I$13*Prices!BT$16 + BC90*Control!$I$14*Prices!BT$18","v":363.64987491084293},{"$f":"BD90+BD90*Control!$I$12*Weather!CG$21 + BD90*Control!$I$13*Prices!BU$16 + BD90*Control!$I$14*Prices!BU$18","v":363.17840463480593},{"$f":"BE90+BE90*Control!$I$12*Weather!CH$21 + BE90*Control!$I$13*Prices!BV$16 + BE90*Control!$I$14*Prices!BV$18","v":362.7058138100802},{"$f":"BF90+BF90*Control!$I$12*Weather!CI$21 + BF90*Control!$I$13*Prices!BW$16 + BF90*Control!$I$14*Prices!BW$18","v":362.23208800917297},{"$f":"BG90+BG90*Control!$I$12*Weather!CJ$21 + BG90*Control!$I$13*Prices!BX$16 + BG90*Control!$I$14*Prices!BX$18","v":361.75721257077299},{"$f":"BH90+BH90*Control!$I$12*Weather!CK$21 + BH90*Control!$I$13*Prices!BY$16 + BH90*Control!$I$14*Prices!BY$18","v":361.28117259453717},{"$f":"BI90+BI90*Control!$I$12*Weather!CL$21 + BI90*Control!$I$13*Prices!BZ$16 + BI90*Control!$I$14*Prices!BZ$18","v":360.8039529357323},{"$f":"BJ90+BJ90*Control!$I$12*Weather!CM$21 + BJ90*Control!$I$13*Prices!CA$16 + BJ90*Control!$I$14*Prices!CA$18","v":360.32553819972321},{"$f":"BK90+BK90*Control!$I$12*Weather!CN$21 + BK90*Control!$I$13*Prices!CB$16 + BK90*Control!$I$14*Prices!CB$18","v":359.84591273630593},{"$f":"BL90+BL90*Control!$I$12*Weather!CO$21 + BL90*Control!$I$13*Prices!CC$16 + BL90*Control!$I$14*Prices!CC$18","v":359.36506063387645},{"$f":"BM90+BM90*Control!$I$12*Weather!CP$21 + BM90*Control!$I$13*Prices!CD$16 + BM90*Control!$I$14*Prices!CD$18","v":358.88296571343409},{"$f":"BN90+BN90*Control!$I$12*Weather!CQ$21 + BN90*Control!$I$13*Prices!CE$16 + BN90*Control!$I$14*Prices!CE$18","v":358.39961152240858},{"$f":"BO90+BO90*Control!$I$12*Weather!CR$21 + BO90*Control!$I$13*Prices!CF$16 + BO90*Control!$I$14*Prices!CF$18","v":357.91498132830912},{"$f":"BP90+BP90*Control!$I$12*Weather!CS$21 + BP90*Control!$I$13*Prices!CG$16 + BP90*Control!$I$14*Prices!CG$18","v":357.42905811218594},{"$f":"BQ90+BQ90*Control!$I$12*Weather!CT$21 + BQ90*Control!$I$13*Prices!CH$16 + BQ90*Control!$I$14*Prices!CH$18","v":356.94182456190026},{"$f":"BR90+BR90*Control!$I$12*Weather!CU$21 + BR90*Control!$I$13*Prices!CI$16 + BR90*Control!$I$14*Prices!CI$18","v":356.45326306519291},{"$f":"BS90+BS90*Control!$I$12*Weather!CV$21 + BS90*Control!$I$13*Prices!CJ$16 + BS90*Control!$I$14*Prices!CJ$18","v":355.96335570254786},{"$f":"BT90+BT90*Control!$I$12*Weather!CW$21 + BT90*Control!$I$13*Prices!CK$16 + BT90*Control!$I$14*Prices!CK$18","v":355.47208423983921},{"$f":"BU90+BU90*Control!$I$12*Weather!CX$21 + BU90*Control!$I$13*Prices!CL$16 + BU90*Control!$I$14*Prices!CL$18","v":354.97943012075837},{"$f":"BV90+BV90*Control!$I$12*Weather!CY$21 + BV90*Control!$I$13*Prices!CM$16 + BV90*Control!$I$14*Prices!CM$18","v":354.48537445900803},{"$f":"BW90+BW90*Control!$I$12*Weather!CZ$21 + BW90*Control!$I$13*Prices!CN$16 + BW90*Control!$I$14*Prices!CN$18","v":353.98989803026018},{"$f":"BX90+BX90*Control!$I$12*Weather!DA$21 + BX90*Control!$I$13*Prices!CO$16 + BX90*Control!$I$14*Prices!CO$18","v":353.49298126386384},{"$f":"BY90+BY90*Control!$I$12*Weather!DB$21 + BY90*Control!$I$13*Prices!CP$16 + BY90*Control!$I$14*Prices!CP$18","v":352.99460423429758},{"$f":"BZ90+BZ90*Control!$I$12*Weather!DC$21 + BZ90*Control!$I$13*Prices!CQ$16 + BZ90*Control!$I$14*Prices!CQ$18","v":352.49474665235419},{"$f":"CA90+CA90*Control!$I$12*Weather!DD$21 + CA90*Control!$I$13*Prices!CR$16 + CA90*Control!$I$14*Prices!CR$18","v":351.99338785604948},{"$f":"CB90+CB90*Control!$I$12*Weather!DE$21 + CB90*Control!$I$13*Prices!CS$16 + CB90*Control!$I$14*Prices!CS$18","v":351.49050680124265},{"$f":"CC90+CC90*Control!$I$12*Weather!DF$21 + CC90*Control!$I$13*Prices!CT$16 + CC90*Control!$I$14*Prices!CT$18","v":350.98608205196007},{"$f":"CD90+CD90*Control!$I$12*Weather!DG$21 + CD90*Control!$I$13*Prices!CU$16 + CD90*Control!$I$14*Prices!CU$18","v":350.48009177040689},{"$f":"CE90+CE90*Control!$I$12*Weather!DH$21 + CE90*Control!$I$13*Prices!CV$16 + CE90*Control!$I$14*Prices!CV$18","v":349.97251370665958},{"$f":"CF90+CF90*Control!$I$12*Weather!DI$21 + CF90*Control!$I$13*Prices!CW$16 + CF90*Control!$I$14*Prices!CW$18","v":349.46332518802103},{"$f":"CG90+CG90*Control!$I$12*Weather!DJ$21 + CG90*Control!$I$13*Prices!CX$16 + CG90*Control!$I$14*Prices!CX$18","v":348.95250310803095},{"$f":"CH90+CH90*Control!$I$12*Weather!DK$21 + CH90*Control!$I$13*Prices!CY$16 + CH90*Control!$I$14*Prices!CY$18","v":348.44002391511231},{"$f":"CI90+CI90*Control!$I$12*Weather!DL$21 + CI90*Control!$I$13*Prices!CZ$16 + CI90*Control!$I$14*Prices!CZ$18","v":347.92586360084431},{"$f":"CJ90+CJ90*Control!$I$12*Weather!DM$21 + CJ90*Control!$I$13*Prices!DA$16 + CJ90*Control!$I$14*Prices!DA$18","v":347.40999768784218},{"$f":"CK90+CK90*Control!$I$12*Weather!DN$21 + CK90*Control!$I$13*Prices!DB$16 + CK90*Control!$I$14*Prices!DB$18","v":346.89240121723253}]
["South Gippsland (S)",{"$f":"'Volume per connection'!B89","v":166.87116966045289},{"$f":"'Volume per connection'!C89","v":479.09353015522794},{"$f":"'Volume per connection'!D89","v":815.86393359073361},{"$f":"'Volume per connection'!E89","v":722.79723346303501},{"$f":"'Volume per connection'!F89","v":662.20170744680854},{"$f":"'Volume per connection'!G89","v":689.46276969242308},{"$f":"'Volume per connection'!H89","v":362.3351120943953},{"$f":"'Volume per connection'!I89","v":323.60459134262658},{"$f":"'Volume per connection'!J89","v":310.52072856077558},{"$f":"J91+J91*Control!$I$12*Weather!AM$21 + J91*Control!$I$13*Prices!AA$16 + J91*Control!$I$14*Prices!AA$18","v":291.33571439436753},{"$f":"K91+K91*Control!$I$12*Weather!AN$21 + K91*Control!$I$13*Prices!AB$16 + K91*Control!$I$14*Prices!AB$18","v":266.58443729221699},{"$f":"L91+L91*Control!$I$12*Weather!AO$21 + L91*Control!$I$13*Prices!AC$16 + L91*Control!$I$14*Prices!AC$18","v":274.91784451563188},{"$f":"M91+M91*Control!$I$12*Weather!AP$21 + M91*Control!$I$13*Prices!AD$16 + M91*Control!$I$14*Prices!AD$18","v":274.23667235627454},{"$f":"N91+N91*Control!$I$12*Weather!AQ$21 + N91*Control!$I$13*Prices!AE$16 + N91*Control!$I$14*Prices!AE$18","v":281.90803958279531},{"$f":"O91+O91*Control!$I$12*Weather!AR$21 + O91*Control!$I$13*Prices!AF$16 + O91*Control!$I$14*Prices!AF$18","v":282.25133650476727},{"$f":"P91+P91*Control!$I$12*Weather!AS$21 + P91*Control!$I$13*Prices!AG$16 + P91*Control!$I$14*Prices!AG$18","v":275.45008437629684},{"$f":"Q91+Q91*Control!$I$12*Weather!AT$21 + Q91*Control!$I$13*Prices!AH$16 + Q91*Control!$I$14*Prices!AH$18","v":258.2472567345614},{"$f":"R91+R91*Control!$I$12*Weather!AU$21 + R91*Control!$I$13*Prices!AI$16 + R91*Control!$I$14*Prices!AI$18","v":244.46298638065269},{"$f":"S91+S91*Control!$I$12*Weather!AV$21 + S91*Control!$I$13*Prices!AJ$16 + S91*Control!$I$14*Prices!AJ$18","v":235.15670844729829},{"$f":"T91+T91*Control!$I$12*Weather!AW$21 + T91*Control!$I$13*Prices!AK$16 + T91*Control!$I$14*Prices!AK$18","v":251.52484909799713},{"$f":"U91+U91*Control!$I$12*Weather!AX$21 + U91*Control!$I$13*Prices!AL$16 + U91*Control!$I$14*Prices!AL$18","v":252.21839253257161},{"$f":"V91+V91*Control!$I$12*Weather!AY$21 + V91*Control!$I$13*Prices!AM$16 + V91*Control!$I$14*Prices!AM$18","v":247.4366609594739},{"$f":"W91+W91*Control!$I$12*Weather!AZ$21 + W91*Control!$I$13*Prices!AN$16 + W91*Control!$I$14*Prices!AN$18","v":240.0171732886225},{"$f":"X91+X91*Control!$I$12*Weather!BA$21 + X91*Control!$I$13*Prices!AO$16 + X91*Control!$I$14*Prices!AO$18","v":266.57926884808393},{"$f":"Y91+Y91*Control!$I$12*Weather!BB$21 + Y91*Control!$I$13*Prices!AP$16 + Y91*Control!$I$14*Prices!AP$18","v":263.91973785464194},{"$f":"Z91+Z91*Control!$I$12*Weather!BC$21 + Z91*Control!$I$13*Prices!AQ$16 + Z91*Control!$I$14*Prices!AQ$18","v":259.84528720077532},{"$f":"AA91+AA91*Control!$I$12*Weather!BD$21 + AA91*Control!$I$13*Prices!AR$16 + AA91*Control!$I$14*Prices!AR$18","v":253.54985415242086},{"$f":"AB91+AB91*Control!$I$12*Weather!BE$21 + AB91*Control!$I$13*Prices!AS$16 + AB91*Control!$I$14*Prices!AS$18","v":250.08483640226788},{"$f":"AC91+AC91*Control!$I$12*Weather!BF$21 + AC91*Control!$I$13*Prices!AT$16 + AC91*Control!$I$14*Prices!AT$18","v":250.90038799128854},{"$f":"AD91+AD91*Control!$I$12*Weather!BG$21 + AD91*Control!$I$13*Prices!AU$16 + AD91*Control!$I$14*Prices!AU$18","v":249.15189501139616},{"$f":"AE91+AE91*Control!$I$12*Weather!BH$21 + AE91*Control!$I$13*Prices!AV$16 + AE91*Control!$I$14*Prices!AV$18","v":242.19343478382856},{"$f":"AF91+AF91*Control!$I$12*Weather!BI$21 + AF91*Control!$I$13*Prices!AW$16 + AF91*Control!$I$14*Prices!AW$18","v":237.09912922590419},{"$f":"AG91+AG91*Control!$I$12*Weather!BJ$21 + AG91*Control!$I$13*Prices!AX$16 + AG91*Control!$I$14*Prices!AX$18","v":235.16572921079771},{"$f":"AH91+AH91*Control!$I$12*Weather!BK$21 + AH91*Control!$I$13*Prices!AY$16 + AH91*Control!$I$14*Prices!AY$18","v":232.79996289822324},{"$f":"AI91+AI91*Control!$I$12*Weather!BL$21 + AI91*Control!$I$13*Prices!AZ$16 + AI91*Control!$I$14*Prices!AZ$18","v":230.63260072253425},{"$f":"AJ91+AJ91*Control!$I$12*Weather!BM$21 + AJ91*Control!$I$13*Prices!BA$16 + AJ91*Control!$I$14*Prices!BA$18","v":229.17097018800089},{"$f":"AK91+AK91*Control!$I$12*Weather!BN$21 + AK91*Control!$I$13*Prices!BB$16 + AK91*Control!$I$14*Prices!BB$18","v":228.20759222243151},{"$f":"AL91+AL91*Control!$I$12*Weather!BO$21 + AL91*Control!$I$13*Prices!BC$16 + AL91*Control!$I$14*Prices!BC$18","v":227.44116921069894},{"$f":"AM91+AM91*Control!$I$12*Weather!BP$21 + AM91*Control!$I$13*Prices!BD$16 + AM91*Control!$I$14*Prices!BD$18","v":225.72271150229136},{"$f":"AN91+AN91*Control!$I$12*Weather!BQ$21 + AN91*Control!$I$13*Prices!BE$16 + AN91*Control!$I$14*Prices!BE$18","v":225.48344120870004},{"$f":"AO91+AO91*Control!$I$12*Weather!BR$21 + AO91*Control!$I$13*Prices!BF$16 + AO91*Control!$I$14*Prices!BF$18","v":223.27947877984656},{"$f":"AP91+AP91*Control!$I$12*Weather!BS$21 + AP91*Control!$I$13*Prices!BG$16 + AP91*Control!$I$14*Prices!BG$18","v":223.00369577003519},{"$f":"AQ91+AQ91*Control!$I$12*Weather!BT$21 + AQ91*Control!$I$13*Prices!BH$16 + AQ91*Control!$I$14*Prices!BH$18","v":222.72734541907519},{"$f":"AR91+AR91*Control!$I$12*Weather!BU$21 + AR91*Control!$I$13*Prices!BI$16 + AR91*Control!$I$14*Prices!BI$18","v":222.45042071164204},{"$f":"AS91+AS91*Control!$I$12*Weather!BV$21 + AS91*Control!$I$13*Prices!BJ$16 + AS91*Control!$I$14*Prices!BJ$18","v":222.17291452753869},{"$f":"AT91+AT91*Control!$I$12*Weather!BW$21 + AT91*Control!$I$13*Prices!BK$16 + AT91*Control!$I$14*Prices!BK$18","v":221.89481963952969},{"$f":"AU91+AU91*Control!$I$12*Weather!BX$21 + AU91*Control!$I$13*Prices!BL$16 + AU91*Control!$I$14*Prices!BL$18","v":221.61612871111896},{"$f":"AV91+AV91*Control!$I$12*Weather!BY$21 + AV91*Control!$I$13*Prices!BM$16 + AV91*Control!$I$14*Prices!BM$18","v":221.33683429426907},{"$f":"AW91+AW91*Control!$I$12*Weather!BZ$21 + AW91*Control!$I$13*Prices!BN$16 + AW91*Control!$I$14*Prices!BN$18","v":221.05692882706128},{"$f":"AX91+AX91*Control!$I$12*Weather!CA$21 + AX91*Control!$I$13*Prices!BO$16 + AX91*Control!$I$14*Prices!BO$18","v":220.77640463129225},{"$f":"AY91+AY91*Control!$I$12*Weather!CB$21 + AY91*Control!$I$13*Prices!BP$16 + AY91*Control!$I$14*Prices!BP$18","v":220.49525391000876},{"$f":"AZ91+AZ91*Control!$I$12*Weather!CC$21 + AZ91*Control!$I$13*Prices!BQ$16 + AZ91*Control!$I$14*Prices!BQ$18","v":220.21346874497445},{"$f":"BA91+BA91*Control!$I$12*Weather!CD$21 + BA91*Control!$I$13*Prices!BR$16 + BA91*Control!$I$14*Prices!BR$18","v":219.93104109407028},{"$f":"BB91+BB91*Control!$I$12*Weather!CE$21 + BB91*Control!$I$13*Prices!BS$16 + BB91*Control!$I$14*Prices!BS$18","v":219.64796278862306},{"$f":"BC91+BC91*Control!$I$12*Weather!CF$21 + BC91*Control!$I$13*Prices!BT$16 + BC91*Control!$I$14*Prices!BT$18","v":219.36422553066259},{"$f":"BD91+BD91*Control!$I$12*Weather!CG$21 + BD91*Control!$I$13*Prices!BU$16 + BD91*Control!$I$14*Prices!BU$18","v":219.07982089010295},{"$f":"BE91+BE91*Control!$I$12*Weather!CH$21 + BE91*Control!$I$13*Prices!BV$16 + BE91*Control!$I$14*Prices!BV$18","v":218.79474030184682},{"$f":"BF91+BF91*Control!$I$12*Weather!CI$21 + BF91*Control!$I$13*Prices!BW$16 + BF91*Control!$I$14*Prices!BW$18","v":218.50897506280916},{"$f":"BG91+BG91*Control!$I$12*Weather!CJ$21 + BG91*Control!$I$13*Prices!BX$16 + BG91*Control!$I$14*Prices!BX$18","v":218.22251632885889},{"$f":"BH91+BH91*Control!$I$12*Weather!CK$21 + BH91*Control!$I$13*Prices!BY$16 + BH91*Control!$I$14*Prices!BY$18","v":217.93535511167377},{"$f":"BI91+BI91*Control!$I$12*Weather!CL$21 + BI91*Control!$I$13*Prices!BZ$16 + BI91*Control!$I$14*Prices!BZ$18","v":217.64748227550848},{"$f":"BJ91+BJ91*Control!$I$12*Weather!CM$21 + BJ91*Control!$I$13*Prices!CA$16 + BJ91*Control!$I$14*Prices!CA$18","v":217.35888853386945},{"$f":"BK91+BK91*Control!$I$12*Weather!CN$21 + BK91*Control!$I$13*Prices!CB$16 + BK91*Control!$I$14*Prices!CB$18","v":217.06956444609654},{"$f":"BL91+BL91*Control!$I$12*Weather!CO$21 + BL91*Control!$I$13*Prices!CC$16 + BL91*Control!$I$14*Prices!CC$18","v":216.77950041384551},{"$f":"BM91+BM91*Control!$I$12*Weather!CP$21 + BM91*Control!$I$13*Prices!CD$16 + BM91*Control!$I$14*Prices!CD$18","v":216.48868667747058},{"$f":"BN91+BN91*Control!$I$12*Weather!CQ$21 + BN91*Control!$I$13*Prices!CE$16 + BN91*Control!$I$14*Prices!CE$18","v":216.19711331230084},{"$f":"BO91+BO91*Control!$I$12*Weather!CR$21 + BO91*Control!$I$13*Prices!CF$16 + BO91*Control!$I$14*Prices!CF$18","v":215.90477022480917},{"$f":"BP91+BP91*Control!$I$12*Weather!CS$21 + BP91*Control!$I$13*Prices!CG$16 + BP91*Control!$I$14*Prices!CG$18","v":215.61164714866794},{"$f":"BQ91+BQ91*Control!$I$12*Weather!CT$21 + BQ91*Control!$I$13*Prices!CH$16 + BQ91*Control!$I$14*Prices!CH$18","v":215.31773364068951},{"$f":"BR91+BR91*Control!$I$12*Weather!CU$21 + BR91*Control!$I$13*Prices!CI$16 + BR91*Control!$I$14*Prices!CI$18","v":215.02301907664466},{"$f":"BS91+BS91*Control!$I$12*Weather!CV$21 + BS91*Control!$I$13*Prices!CJ$16 + BS91*Control!$I$14*Prices!CJ$18","v":214.72749264695804},{"$f":"BT91+BT91*Control!$I$12*Weather!CW$21 + BT91*Control!$I$13*Prices!CK$16 + BT91*Control!$I$14*Prices!CK$18","v":214.43114335227227},{"$f":"BU91+BU91*Control!$I$12*Weather!CX$21 + BU91*Control!$I$13*Prices!CL$16 + BU91*Control!$I$14*Prices!CL$18","v":214.13395999888007},{"$f":"BV91+BV91*Control!$I$12*Weather!CY$21 + BV91*Control!$I$13*Prices!CM$16 + BV91*Control!$I$14*Prices!CM$18","v":213.8359311940153},{"$f":"BW91+BW91*Control!$I$12*Weather!CZ$21 + BW91*Control!$I$13*Prices!CN$16 + BW91*Control!$I$14*Prices!CN$18","v":213.53704534100186},{"$f":"BX91+BX91*Control!$I$12*Weather!DA$21 + BX91*Control!$I$13*Prices!CO$16 + BX91*Control!$I$14*Prices!CO$18","v":213.23729063425142},{"$f":"BY91+BY91*Control!$I$12*Weather!DB$21 + BY91*Control!$I$13*Prices!CP$16 + BY91*Control!$I$14*Prices!CP$18","v":212.93665505410755},{"$f":"BZ91+BZ91*Control!$I$12*Weather!DC$21 + BZ91*Control!$I$13*Prices!CQ$16 + BZ91*Control!$I$14*Prices!CQ$18","v":212.63512636152782},{"$f":"CA91+CA91*Control!$I$12*Weather!DD$21 + CA91*Control!$I$13*Prices!CR$16 + CA91*Control!$I$14*Prices!CR$18","v":212.33269209259998},{"$f":"CB91+CB91*Control!$I$12*Weather!DE$21 + CB91*Control!$I$13*Prices!CS$16 + CB91*Control!$I$14*Prices!CS$18","v":212.02933955288364},{"$f":"CC91+CC91*Control!$I$12*Weather!DF$21 + CC91*Control!$I$13*Prices!CT$16 + CC91*Control!$I$14*Prices!CT$18","v":211.72505581157338},{"$f":"CD91+CD91*Control!$I$12*Weather!DG$21 + CD91*Control!$I$13*Prices!CU$16 + CD91*Control!$I$14*Prices!CU$18","v":211.41982769547363},{"$f":"CE91+CE91*Control!$I$12*Weather!DH$21 + CE91*Control!$I$13*Prices!CV$16 + CE91*Control!$I$14*Prices!CV$18","v":211.1136417827806},{"$f":"CF91+CF91*Control!$I$12*Weather!DI$21 + CF91*Control!$I$13*Prices!CW$16 + CF91*Control!$I$14*Prices!CW$18","v":210.80648439666123},{"$f":"CG91+CG91*Control!$I$12*Weather!DJ$21 + CG91*Control!$I$13*Prices!CX$16 + CG91*Control!$I$14*Prices!CX$18","v":210.49834159862382},{"$f":"CH91+CH91*Control!$I$12*Weather!DK$21 + CH91*Control!$I$13*Prices!CY$16 + CH91*Control!$I$14*Prices!CY$18","v":210.18919918166921},{"$f":"CI91+CI91*Control!$I$12*Weather!DL$21 + CI91*Control!$I$13*Prices!CZ$16 + CI91*Control!$I$14*Prices!CZ$18","v":209.87904266321681},{"$f":"CJ91+CJ91*Control!$I$12*Weather!DM$21 + CJ91*Control!$I$13*Prices!DA$16 + CJ91*Control!$I$14*Prices!DA$18","v":209.56785727779317},{"$f":"CK91+CK91*Control!$I$12*Weather!DN$21 + CK91*Control!$I$13*Prices!DB$16 + CK91*Control!$I$14*Prices!DB$18","v":209.25562796947693}]
["Stonnington (C)",{"$f":"'Volume per connection'!B90","v":168.91813574115861},{"$f":"'Volume per connection'!C90","v":740.62980409906652},{"$f":"'Volume per connection'!D90","v":1542.5019603789838},{"$f":"'Volume per connection'!E90","v":1343.5439132520426},{"$f":"'Volume per connection'!F90","v":1383.3803477913129},{"$f":"'Volume per connection'!G90","v":1227.8394570212765},{"$f":"'Volume per connection'!H90","v":427.20496956889264},{"$f":"'Volume per connection'!I90","v":357.11852564102566},{"$f":"'Volume per connection'!J90","v":348.89972517123289},{"$f":"J92+J92*Control!$I$12*Weather!AM$21 + J92*Control!$I$13*Prices!AA$16 + J92*Control!$I$14*Prices!AA$18","v":327.34352761530738},{"$f":"K92+K92*Control!$I$12*Weather!AN$21 + K92*Control!$I$13*Prices!AB$16 + K92*Control!$I$14*Prices!AB$18","v":299.5331015010741},{"$f":"L92+L92*Control!$I$12*Weather!AO$21 + L92*Control!$I$13*Prices!AC$16 + L92*Control!$I$14*Prices!AC$18","v":308.89648121316424},{"$f":"M92+M92*Control!$I$12*Weather!AP$21 + M92*Control!$I$13*Prices!AD$16 + M92*Control!$I$14*Prices!AD$18","v":308.13111917019978},{"$f":"N92+N92*Control!$I$12*Weather!AQ$21 + N92*Control!$I$13*Prices!AE$16 + N92*Control!$I$14*Prices!AE$18","v":316.75063365294017},{"$f":"O92+O92*Control!$I$12*Weather!AR$21 + O92*Control!$I$13*Prices!AF$16 + O92*Control!$I$14*Prices!AF$18","v":317.13636056490287},{"$f":"P92+P92*Control!$I$12*Weather!AS$21 + P92*Control!$I$13*Prices!AG$16 + P92*Control!$I$14*Prices!AG$18","v":309.49450358021153},{"$f":"Q92+Q92*Control!$I$12*Weather!AT$21 + Q92*Control!$I$13*Prices!AH$16 + Q92*Control!$I$14*Prices!AH$18","v":290.16548208722332},{"$f":"R92+R92*Control!$I$12*Weather!AU$21 + R92*Control!$I$13*Prices!AI$16 + R92*Control!$I$14*Prices!AI$18","v":274.67753653056002},{"$f":"S92+S92*Control!$I$12*Weather!AV$21 + S92*Control!$I$13*Prices!AJ$16 + S92*Control!$I$14*Prices!AJ$18","v":264.22104356674498},{"$f":"T92+T92*Control!$I$12*Weather!AW$21 + T92*Control!$I$13*Prices!AK$16 + T92*Control!$I$14*Prices!AK$18","v":282.61221442693824},{"$f":"U92+U92*Control!$I$12*Weather!AX$21 + U92*Control!$I$13*Prices!AL$16 + U92*Control!$I$14*Prices!AL$18","v":283.39147678033697},{"$f":"V92+V92*Control!$I$12*Weather!AY$21 + V92*Control!$I$13*Prices!AM$16 + V92*Control!$I$14*Prices!AM$18","v":278.01874421131021},{"$f":"W92+W92*Control!$I$12*Weather!AZ$21 + W92*Control!$I$13*Prices!AN$16 + W92*Control!$I$14*Prices!AN$18","v":269.68224048974059},{"$f":"X92+X92*Control!$I$12*Weather!BA$21 + X92*Control!$I$13*Prices!AO$16 + X92*Control!$I$14*Prices!AO$18","v":299.52729425997308},{"$f":"Y92+Y92*Control!$I$12*Weather!BB$21 + Y92*Control!$I$13*Prices!AP$16 + Y92*Control!$I$14*Prices!AP$18","v":296.53905693038479},{"$f":"Z92+Z92*Control!$I$12*Weather!BC$21 + Z92*Control!$I$13*Prices!AQ$16 + Z92*Control!$I$14*Prices!AQ$18","v":291.9610220921096},{"$f":"AA92+AA92*Control!$I$12*Weather!BD$21 + AA92*Control!$I$13*Prices!AR$16 + AA92*Control!$I$14*Prices!AR$18","v":284.88750120161978},{"$f":"AB92+AB92*Control!$I$12*Weather!BE$21 + AB92*Control!$I$13*Prices!AS$16 + AB92*Control!$I$14*Prices!AS$18","v":280.99422249412379},{"$f":"AC92+AC92*Control!$I$12*Weather!BF$21 + AC92*Control!$I$13*Prices!AT$16 + AC92*Control!$I$14*Prices!AT$18","v":281.91057267335691},{"$f":"AD92+AD92*Control!$I$12*Weather!BG$21 + AD92*Control!$I$13*Prices!AU$16 + AD92*Control!$I$14*Prices!AU$18","v":279.94597364972407},{"$f":"AE92+AE92*Control!$I$12*Weather!BH$21 + AE92*Control!$I$13*Prices!AV$16 + AE92*Control!$I$14*Prices!AV$18","v":272.12747833617169},{"$f":"AF92+AF92*Control!$I$12*Weather!BI$21 + AF92*Control!$I$13*Prices!AW$16 + AF92*Control!$I$14*Prices!AW$18","v":266.40353901226206},{"$f":"AG92+AG92*Control!$I$12*Weather!BJ$21 + AG92*Control!$I$13*Prices!AX$16 + AG92*Control!$I$14*Prices!AX$18","v":264.23117925694646},{"$f":"AH92+AH92*Control!$I$12*Weather!BK$21 + AH92*Control!$I$13*Prices!AY$16 + AH92*Control!$I$14*Prices!AY$18","v":261.57301463102181},{"$f":"AI92+AI92*Control!$I$12*Weather!BL$21 + AI92*Control!$I$13*Prices!AZ$16 + AI92*Control!$I$14*Prices!AZ$18","v":259.13777602086759},{"$f":"AJ92+AJ92*Control!$I$12*Weather!BM$21 + AJ92*Control!$I$13*Prices!BA$16 + AJ92*Control!$I$14*Prices!BA$18","v":257.49549437943199},{"$f":"AK92+AK92*Control!$I$12*Weather!BN$21 + AK92*Control!$I$13*Prices!BB$16 + AK92*Control!$I$14*Prices!BB$18","v":256.41304713353935},{"$f":"AL92+AL92*Control!$I$12*Weather!BO$21 + AL92*Control!$I$13*Prices!BC$16 + AL92*Control!$I$14*Prices!BC$18","v":255.55189760771611},{"$f":"AM92+AM92*Control!$I$12*Weather!BP$21 + AM92*Control!$I$13*Prices!BD$16 + AM92*Control!$I$14*Prices!BD$18","v":253.62104608305066},{"$f":"AN92+AN92*Control!$I$12*Weather!BQ$21 + AN92*Control!$I$13*Prices!BE$16 + AN92*Control!$I$14*Prices!BE$18","v":253.35220303330459},{"$f":"AO92+AO92*Control!$I$12*Weather!BR$21 + AO92*Control!$I$13*Prices!BF$16 + AO92*Control!$I$14*Prices!BF$18","v":250.87584053963548},{"$f":"AP92+AP92*Control!$I$12*Weather!BS$21 + AP92*Control!$I$13*Prices!BG$16 + AP92*Control!$I$14*Prices!BG$18","v":250.56597196250038},{"$f":"AQ92+AQ92*Control!$I$12*Weather!BT$21 + AQ92*Control!$I$13*Prices!BH$16 + AQ92*Control!$I$14*Prices!BH$18","v":250.25546592334541},{"$f":"AR92+AR92*Control!$I$12*Weather!BU$21 + AR92*Control!$I$13*Prices!BI$16 + AR92*Control!$I$14*Prices!BI$18","v":249.94431453978279},{"$f":"AS92+AS92*Control!$I$12*Weather!BV$21 + AS92*Control!$I$13*Prices!BJ$16 + AS92*Control!$I$14*Prices!BJ$18","v":249.6325098115905},{"$f":"AT92+AT92*Control!$I$12*Weather!BW$21 + AT92*Control!$I$13*Prices!BK$16 + AT92*Control!$I$14*Prices!BK$18","v":249.32004361827845},{"$f":"AU92+AU92*Control!$I$12*Weather!BX$21 + AU92*Control!$I$13*Prices!BL$16 + AU92*Control!$I$14*Prices!BL$18","v":249.006907716592},{"$f":"AV92+AV92*Control!$I$12*Weather!BY$21 + AV92*Control!$I$13*Prices!BM$16 + AV92*Control!$I$14*Prices!BM$18","v":248.693093737949},{"$f":"AW92+AW92*Control!$I$12*Weather!BZ$21 + AW92*Control!$I$13*Prices!BN$16 + AW92*Control!$I$14*Prices!BN$18","v":248.37859318581079},{"$f":"AX92+AX92*Control!$I$12*Weather!CA$21 + AX92*Control!$I$13*Prices!BO$16 + AX92*Control!$I$14*Prices!BO$18","v":248.06339743298184},{"$f":"AY92+AY92*Control!$I$12*Weather!CB$21 + AY92*Control!$I$13*Prices!BP$16 + AY92*Control!$I$14*Prices!BP$18","v":247.7474977188399},{"$f":"AZ92+AZ92*Control!$I$12*Weather!CC$21 + AZ92*Control!$I$13*Prices!BQ$16 + AZ92*Control!$I$14*Prices!BQ$18","v":247.43088514648935},{"$f":"BA92+BA92*Control!$I$12*Weather!CD$21 + BA92*Control!$I$13*Prices!BR$16 + BA92*Control!$I$14*Prices!BR$18","v":247.11355067984059},{"$f":"BB92+BB92*Control!$I$12*Weather!CE$21 + BB92*Control!$I$13*Prices!BS$16 + BB92*Control!$I$14*Prices!BS$18","v":246.79548514060835},{"$f":"BC92+BC92*Control!$I$12*Weather!CF$21 + BC92*Control!$I$13*Prices!BT$16 + BC92*Control!$I$14*Prices!BT$18","v":246.4766792052298},{"$f":"BD92+BD92*Control!$I$12*Weather!CG$21 + BD92*Control!$I$13*Prices!BU$16 + BD92*Control!$I$14*Prices!BU$18","v":246.15712340169748},{"$f":"BE92+BE92*Control!$I$12*Weather!CH$21 + BE92*Control!$I$13*Prices!BV$16 + BE92*Control!$I$14*Prices!BV$18","v":245.83680810630568},{"$f":"BF92+BF92*Control!$I$12*Weather!CI$21 + BF92*Control!$I$13*Prices!BW$16 + BF92*Control!$I$14*Prices!BW$18","v":245.51572354030637},{"$f":"BG92+BG92*Control!$I$12*Weather!CJ$21 + BG92*Control!$I$13*Prices!BX$16 + BG92*Control!$I$14*Prices!BX$18","v":245.19385976647271},{"$f":"BH92+BH92*Control!$I$12*Weather!CK$21 + BH92*Control!$I$13*Prices!BY$16 + BH92*Control!$I$14*Prices!BY$18","v":244.8712066855654},{"$f":"BI92+BI92*Control!$I$12*Weather!CL$21 + BI92*Control!$I$13*Prices!BZ$16 + BI92*Control!$I$14*Prices!BZ$18","v":244.54775403270111},{"$f":"BJ92+BJ92*Control!$I$12*Weather!CM$21 + BJ92*Control!$I$13*Prices!CA$16 + BJ92*Control!$I$14*Prices!CA$18","v":244.22349137361653},{"$f":"BK92+BK92*Control!$I$12*Weather!CN$21 + BK92*Control!$I$13*Prices!CB$16 + BK92*Control!$I$14*Prices!CB$18","v":243.89840810082745},{"$f":"BL92+BL92*Control!$I$12*Weather!CO$21 + BL92*Control!$I$13*Prices!CC$16 + BL92*Control!$I$14*Prices!CC$18","v":243.57249342967648},{"$f":"BM92+BM92*Control!$I$12*Weather!CP$21 + BM92*Control!$I$13*Prices!CD$16 + BM92*Control!$I$14*Prices!CD$18","v":243.24573639426853},{"$f":"BN92+BN92*Control!$I$12*Weather!CQ$21 + BN92*Control!$I$13*Prices!CE$16 + BN92*Control!$I$14*Prices!CE$18","v":242.91812584328704},{"$f":"BO92+BO92*Control!$I$12*Weather!CR$21 + BO92*Control!$I$13*Prices!CF$16 + BO92*Control!$I$14*Prices!CF$18","v":242.58965043568926},{"$f":"BP92+BP92*Control!$I$12*Weather!CS$21 + BP92*Control!$I$13*Prices!CG$16 + BP92*Control!$I$14*Prices!CG$18","v":242.26029863627468},{"$f":"BQ92+BQ92*Control!$I$12*Weather!CT$21 + BQ92*Control!$I$13*Prices!CH$16 + BQ92*Control!$I$14*Prices!CH$18","v":241.93005871112354},{"$f":"BR92+BR92*Control!$I$12*Weather!CU$21 + BR92*Control!$I$13*Prices!CI$16 + BR92*Control!$I$14*Prices!CI$18","v":241.59891872289862},{"$f":"BS92+BS92*Control!$I$12*Weather!CV$21 + BS92*Control!$I$13*Prices!CJ$16 + BS92*Control!$I$14*Prices!CJ$18","v":241.26686652600858},{"$f":"BT92+BT92*Control!$I$12*Weather!CW$21 + BT92*Control!$I$13*Prices!CK$16 + BT92*Control!$I$14*Prices!CK$18","v":240.93388976162387},{"$f":"BU92+BU92*Control!$I$12*Weather!CX$21 + BU92*Control!$I$13*Prices!CL$16 + BU92*Control!$I$14*Prices!CL$18","v":240.59997585254419},{"$f":"BV92+BV92*Control!$I$12*Weather!CY$21 + BV92*Control!$I$13*Prices!CM$16 + BV92*Control!$I$14*Prices!CM$18","v":240.26511199790755},{"$f":"BW92+BW92*Control!$I$12*Weather!CZ$21 + BW92*Control!$I$13*Prices!CN$16 + BW92*Control!$I$14*Prices!CN$18","v":239.92928516773972},{"$f":"BX92+BX92*Control!$I$12*Weather!DA$21 + BX92*Control!$I$13*Prices!CO$16 + BX92*Control!$I$14*Prices!CO$18","v":239.5924820973336},{"$f":"BY92+BY92*Control!$I$12*Weather!DB$21 + BY92*Control!$I$13*Prices!CP$16 + BY92*Control!$I$14*Prices!CP$18","v":239.25468928145605},{"$f":"BZ92+BZ92*Control!$I$12*Weather!DC$21 + BZ92*Control!$I$13*Prices!CQ$16 + BZ92*Control!$I$14*Prices!CQ$18","v":238.91589296837282},{"$f":"CA92+CA92*Control!$I$12*Weather!DD$21 + CA92*Control!$I$13*Prices!CR$16 + CA92*Control!$I$14*Prices!CR$18","v":238.57607915368689},{"$f":"CB92+CB92*Control!$I$12*Weather!DE$21 + CB92*Control!$I$13*Prices!CS$16 + CB92*Control!$I$14*Prices!CS$18","v":238.23523357398085},{"$f":"CC92+CC92*Control!$I$12*Weather!DF$21 + CC92*Control!$I$13*Prices!CT$16 + CC92*Control!$I$14*Prices!CT$18","v":237.89334170025865},{"$f":"CD92+CD92*Control!$I$12*Weather!DG$21 + CD92*Control!$I$13*Prices!CU$16 + CD92*Control!$I$14*Prices!CU$18","v":237.55038873117562},{"$f":"CE92+CE92*Control!$I$12*Weather!DH$21 + CE92*Control!$I$13*Prices!CV$16 + CE92*Control!$I$14*Prices!CV$18","v":237.20635958605209},{"$f":"CF92+CF92*Control!$I$12*Weather!DI$21 + CF92*Control!$I$13*Prices!CW$16 + CF92*Control!$I$14*Prices!CW$18","v":236.86123889765852},{"$f":"CG92+CG92*Control!$I$12*Weather!DJ$21 + CG92*Control!$I$13*Prices!CX$16 + CG92*Control!$I$14*Prices!CX$18","v":236.51501100476699},{"$f":"CH92+CH92*Control!$I$12*Weather!DK$21 + CH92*Control!$I$13*Prices!CY$16 + CH92*Control!$I$14*Prices!CY$18","v":236.16765994445566},{"$f":"CI92+CI92*Control!$I$12*Weather!DL$21 + CI92*Control!$I$13*Prices!CZ$16 + CI92*Control!$I$14*Prices!CZ$18","v":235.81916944416068},{"$f":"CJ92+CJ92*Control!$I$12*Weather!DM$21 + CJ92*Control!$I$13*Prices!DA$16 + CJ92*Control!$I$14*Prices!DA$18","v":235.46952291346102},{"$f":"CK92+CK92*Control!$I$12*Weather!DN$21 + CK92*Control!$I$13*Prices!DB$16 + CK92*Control!$I$14*Prices!DB$18","v":235.11870343558962}]
["Whitehorse (C)",{"$f":"'Volume per connection'!B91","v":172.33779274192293},{"$f":"'Volume per connection'!C91","v":452.84117324630375},{"$f":"'Volume per connection'!D91","v":790.61869491525431},{"$f":"'Volume per connection'!E91","v":785.09691651382616},{"$f":"'Volume per connection'!F91","v":650.86386029829555},{"$f":"'Volume per connection'!G91","v":553.89264236902045},{"$f":"'Volume per connection'!H91","v":373.45250338600454},{"$f":"'Volume per connection'!I91","v":332.32735314285713},{"$f":"'Volume per connection'!J91","v":316.84518501170959},{"$f":"J93+J93*Control!$I$12*Weather!AM$21 + J93*Control!$I$13*Prices!AA$16 + J93*Control!$I$14*Prices!AA$18","v":297.26942467138787},{"$f":"K93+K93*Control!$I$12*Weather!AN$21 + K93*Control!$I$13*Prices!AB$16 + K93*Control!$I$14*Prices!AB$18","v":272.01403187022072},{"$f":"L93+L93*Control!$I$12*Weather!AO$21 + L93*Control!$I$13*Prices!AC$16 + L93*Control!$I$14*Prices!AC$18","v":280.51716776623226},{"$f":"M93+M93*Control!$I$12*Weather!AP$21 + M93*Control!$I$13*Prices!AD$16 + M93*Control!$I$14*Prices!AD$18","v":279.82212199631942},{"$f":"N93+N93*Control!$I$12*Weather!AQ$21 + N93*Control!$I$13*Prices!AE$16 + N93*Control!$I$14*Prices!AE$18","v":287.64973395461101},{"$f":"O93+O93*Control!$I$12*Weather!AR$21 + O93*Control!$I$13*Prices!AF$16 + O93*Control!$I$14*Prices!AF$18","v":288.00002289429085},{"$f":"P93+P93*Control!$I$12*Weather!AS$21 + P93*Control!$I$13*Prices!AG$16 + P93*Control!$I$14*Prices!AG$18","v":281.06024789458507},{"$f":"Q93+Q93*Control!$I$12*Weather!AT$21 + Q93*Control!$I$13*Prices!AH$16 + Q93*Control!$I$14*Prices!AH$18","v":263.50704578748838},{"$f":"R93+R93*Control!$I$12*Weather!AU$21 + R93*Control!$I$13*Prices!AI$16 + R93*Control!$I$14*Prices!AI$18","v":249.44202761373126},{"$f":"S93+S93*Control!$I$12*Weather!AV$21 + S93*Control!$I$13*Prices!AJ$16 + S93*Control!$I$14*Prices!AJ$18","v":239.94620629696865},{"$f":"T93+T93*Control!$I$12*Weather!AW$21 + T93*Control!$I$13*Prices!AK$16 + T93*Control!$I$14*Prices!AK$18","v":256.64772112596438},{"$f":"U93+U93*Control!$I$12*Weather!AX$21 + U93*Control!$I$13*Prices!AL$16 + U93*Control!$I$14*Prices!AL$18","v":257.35539014007463},{"$f":"V93+V93*Control!$I$12*Weather!AY$21 + V93*Control!$I$13*Prices!AM$16 + V93*Control!$I$14*Prices!AM$18","v":252.47626779620848},{"$f":"W93+W93*Control!$I$12*Weather!AZ$21 + W93*Control!$I$13*Prices!AN$16 + W93*Control!$I$14*Prices!AN$18","v":244.90566549001525},{"$f":"X93+X93*Control!$I$12*Weather!BA$21 + X93*Control!$I$13*Prices!AO$16 + X93*Control!$I$14*Prices!AO$18","v":272.00875815904163},{"$f":"Y93+Y93*Control!$I$12*Weather!BB$21 + Y93*Control!$I$13*Prices!AP$16 + Y93*Control!$I$14*Prices!AP$18","v":269.29505980606172},{"$f":"Z93+Z93*Control!$I$12*Weather!BC$21 + Z93*Control!$I$13*Prices!AQ$16 + Z93*Control!$I$14*Prices!AQ$18","v":265.13762375588584},{"$f":"AA93+AA93*Control!$I$12*Weather!BD$21 + AA93*Control!$I$13*Prices!AR$16 + AA93*Control!$I$14*Prices!AR$18","v":258.71396998507396},{"$f":"AB93+AB93*Control!$I$12*Weather!BE$21 + AB93*Control!$I$13*Prices!AS$16 + AB93*Control!$I$14*Prices!AS$18","v":255.17837931708669},{"$f":"AC93+AC93*Control!$I$12*Weather!BF$21 + AC93*Control!$I$13*Prices!AT$16 + AC93*Control!$I$14*Prices!AT$18","v":256.01054145746139},{"$f":"AD93+AD93*Control!$I$12*Weather!BG$21 + AD93*Control!$I$13*Prices!AU$16 + AD93*Control!$I$14*Prices!AU$18","v":254.22643646623135},{"$f":"AE93+AE93*Control!$I$12*Weather!BH$21 + AE93*Control!$I$13*Prices!AV$16 + AE93*Control!$I$14*Prices!AV$18","v":247.12625146918126},{"$f":"AF93+AF93*Control!$I$12*Weather!BI$21 + AF93*Control!$I$13*Prices!AW$16 + AF93*Control!$I$14*Prices!AW$18","v":241.92818886483306},{"$f":"AG93+AG93*Control!$I$12*Weather!BJ$21 + AG93*Control!$I$13*Prices!AX$16 + AG93*Control!$I$14*Prices!AX$18","v":239.95541078870485},{"$f":"AH93+AH93*Control!$I$12*Weather!BK$21 + AH93*Control!$I$13*Prices!AY$16 + AH93*Control!$I$14*Prices!AY$18","v":237.54146029826146},{"$f":"AI93+AI93*Control!$I$12*Weather!BL$21 + AI93*Control!$I$13*Prices!AZ$16 + AI93*Control!$I$14*Prices!AZ$18","v":235.32995489336815},{"$f":"AJ93+AJ93*Control!$I$12*Weather!BM$21 + AJ93*Control!$I$13*Prices!BA$16 + AJ93*Control!$I$14*Prices!BA$18","v":233.83855494954008},{"$f":"AK93+AK93*Control!$I$12*Weather!BN$21 + AK93*Control!$I$13*Prices!BB$16 + AK93*Control!$I$14*Prices!BB$18","v":232.85555561435305},{"$f":"AL93+AL93*Control!$I$12*Weather!BO$21 + AL93*Control!$I$13*Prices!BC$16 + AL93*Control!$I$14*Prices!BC$18","v":232.07352266577934},{"$f":"AM93+AM93*Control!$I$12*Weather!BP$21 + AM93*Control!$I$13*Prices!BD$16 + AM93*Control!$I$14*Prices!BD$18","v":230.32006468222116},{"$f":"AN93+AN93*Control!$I$12*Weather!BQ$21 + AN93*Control!$I$13*Prices!BE$16 + AN93*Control!$I$14*Prices!BE$18","v":230.07592110832155},{"$f":"AO93+AO93*Control!$I$12*Weather!BR$21 + AO93*Control!$I$13*Prices!BF$16 + AO93*Control!$I$14*Prices!BF$18","v":227.82707000338712},{"$f":"AP93+AP93*Control!$I$12*Weather!BS$21 + AP93*Control!$I$13*Prices!BG$16 + AP93*Control!$I$14*Prices!BG$18","v":227.54567004927856},{"$f":"AQ93+AQ93*Control!$I$12*Weather!BT$21 + AQ93*Control!$I$13*Prices!BH$16 + AQ93*Control!$I$14*Prices!BH$18","v":227.26369119883657},{"$f":"AR93+AR93*Control!$I$12*Weather!BU$21 + AR93*Control!$I$13*Prices!BI$16 + AR93*Control!$I$14*Prices!BI$18","v":226.98112629385375},{"$f":"AS93+AS93*Control!$I$12*Weather!BV$21 + AS93*Control!$I$13*Prices!BJ$16 + AS93*Control!$I$14*Prices!BJ$18","v":226.69796806911415},{"$f":"AT93+AT93*Control!$I$12*Weather!BW$21 + AT93*Control!$I$13*Prices!BK$16 + AT93*Control!$I$14*Prices!BK$18","v":226.4142091501833},{"$f":"AU93+AU93*Control!$I$12*Weather!BX$21 + AU93*Control!$I$13*Prices!BL$16 + AU93*Control!$I$14*Prices!BL$18","v":226.12984205114086},{"$f":"AV93+AV93*Control!$I$12*Weather!BY$21 + AV93*Control!$I$13*Prices!BM$16 + AV93*Control!$I$14*Prices!BM$18","v":225.84485917225322},{"$f":"AW93+AW93*Control!$I$12*Weather!BZ$21 + AW93*Control!$I$13*Prices!BN$16 + AW93*Control!$I$14*Prices!BN$18","v":225.55925279758608},{"$f":"AX93+AX93*Control!$I$12*Weather!CA$21 + AX93*Control!$I$13*Prices!BO$16 + AX93*Control!$I$14*Prices!BO$18","v":225.27301509255213},{"$f":"AY93+AY93*Control!$I$12*Weather!CB$21 + AY93*Control!$I$13*Prices!BP$16 + AY93*Control!$I$14*Prices!BP$18","v":224.98613810139562},{"$f":"AZ93+AZ93*Control!$I$12*Weather!CC$21 + AZ93*Control!$I$13*Prices!BQ$16 + AZ93*Control!$I$14*Prices!BQ$18","v":224.69861374460743},{"$f":"BA93+BA93*Control!$I$12*Weather!CD$21 + BA93*Control!$I$13*Prices!BR$16 + BA93*Control!$I$14*Prices!BR$18","v":224.41043381627247},{"$f":"BB93+BB93*Control!$I$12*Weather!CE$21 + BB93*Control!$I$13*Prices!BS$16 + BB93*Control!$I$14*Prices!BS$18","v":224.12158998134416},{"$f":"BC93+BC93*Control!$I$12*Weather!CF$21 + BC93*Control!$I$13*Prices!BT$16 + BC93*Control!$I$14*Prices!BT$18","v":223.83207377284535},{"$f":"BD93+BD93*Control!$I$12*Weather!CG$21 + BD93*Control!$I$13*Prices!BU$16 + BD93*Control!$I$14*Prices!BU$18","v":223.54187658899238},{"$f":"BE93+BE93*Control!$I$12*Weather!CH$21 + BE93*Control!$I$13*Prices!BV$16 + BE93*Control!$I$14*Prices!BV$18","v":223.25098969024035},{"$f":"BF93+BF93*Control!$I$12*Weather!CI$21 + BF93*Control!$I$13*Prices!BW$16 + BF93*Control!$I$14*Prices!BW$18","v":222.95940419624625},{"$f":"BG93+BG93*Control!$I$12*Weather!CJ$21 + BG93*Control!$I$13*Prices!BX$16 + BG93*Control!$I$14*Prices!BX$18","v":222.66711108274825},{"$f":"BH93+BH93*Control!$I$12*Weather!CK$21 + BH93*Control!$I$13*Prices!BY$16 + BH93*Control!$I$14*Prices!BY$18","v":222.37410117835665},{"$f":"BI93+BI93*Control!$I$12*Weather!CL$21 + BI93*Control!$I$13*Prices!BZ$16 + BI93*Control!$I$14*Prices!BZ$18","v":222.080365161256},{"$f":"BJ93+BJ93*Control!$I$12*Weather!CM$21 + BJ93*Control!$I$13*Prices!CA$16 + BJ93*Control!$I$14*Prices!CA$18","v":221.78589355581229},{"$f":"BK93+BK93*Control!$I$12*Weather!CN$21 + BK93*Control!$I$13*Prices!CB$16 + BK93*Control!$I$14*Prices!CB$18","v":221.49067672908504},{"$f":"BL93+BL93*Control!$I$12*Weather!CO$21 + BL93*Control!$I$13*Prices!CC$16 + BL93*Control!$I$14*Prices!CC$18","v":221.19470488723798},{"$f":"BM93+BM93*Control!$I$12*Weather!CP$21 + BM93*Control!$I$13*Prices!CD$16 + BM93*Control!$I$14*Prices!CD$18","v":220.89796807184811},{"$f":"BN93+BN93*Control!$I$12*Weather!CQ$21 + BN93*Control!$I$13*Prices!CE$16 + BN93*Control!$I$14*Prices!CE$18","v":220.60045615610622},{"$f":"BO93+BO93*Control!$I$12*Weather!CR$21 + BO93*Control!$I$13*Prices!CF$16 + BO93*Control!$I$14*Prices!CF$18","v":220.30215884090762},{"$f":"BP93+BP93*Control!$I$12*Weather!CS$21 + BP93*Control!$I$13*Prices!CG$16 + BP93*Control!$I$14*Prices!CG$18","v":220.00306565082778},{"$f":"BQ93+BQ93*Control!$I$12*Weather!CT$21 + BQ93*Control!$I$13*Prices!CH$16 + BQ93*Control!$I$14*Prices!CH$18","v":219.70316592997989},{"$f":"BR93+BR93*Control!$I$12*Weather!CU$21 + BR93*Control!$I$13*Prices!CI$16 + BR93*Control!$I$14*Prices!CI$18","v":219.40244883774832},{"$f":"BS93+BS93*Control!$I$12*Weather!CV$21 + BS93*Control!$I$13*Prices!CJ$16 + BS93*Control!$I$14*Prices!CJ$18","v":219.10090334439622},{"$f":"BT93+BT93*Control!$I$12*Weather!CW$21 + BT93*Control!$I$13*Prices!CK$16 + BT93*Control!$I$14*Prices!CK$18","v":218.7985182265395},{"$f":"BU93+BU93*Control!$I$12*Weather!CX$21 + BU93*Control!$I$13*Prices!CL$16 + BU93*Control!$I$14*Prices!CL$18","v":218.49528206248573},{"$f":"BV93+BV93*Control!$I$12*Weather!CY$21 + BV93*Control!$I$13*Prices!CM$16 + BV93*Control!$I$14*Prices!CM$18","v":218.19118322742932},{"$f":"BW93+BW93*Control!$I$12*Weather!CZ$21 + BW93*Control!$I$13*Prices!CN$16 + BW93*Control!$I$14*Prices!CN$18","v":217.88620988850164},{"$f":"BX93+BX93*Control!$I$12*Weather!DA$21 + BX93*Control!$I$13*Prices!CO$16 + BX93*Control!$I$14*Prices!CO$18","v":217.58034999966694},{"$f":"BY93+BY93*Control!$I$12*Weather!DB$21 + BY93*Control!$I$13*Prices!CP$16 + BY93*Control!$I$14*Prices!CP$18","v":217.27359129646123},{"$f":"BZ93+BZ93*Control!$I$12*Weather!DC$21 + BZ93*Control!$I$13*Prices!CQ$16 + BZ93*Control!$I$14*Prices!CQ$18","v":216.9659212905664},{"$f":"CA93+CA93*Control!$I$12*Weather!DD$21 + CA93*Control!$I$13*Prices!CR$16 + CA93*Control!$I$14*Prices!CR$18","v":216.65732726421439},{"$f":"CB93+CB93*Control!$I$12*Weather!DE$21 + CB93*Control!$I$13*Prices!CS$16 + CB93*Control!$I$14*Prices!CS$18","v":216.34779626441389},{"$f":"CC93+CC93*Control!$I$12*Weather!DF$21 + CC93*Control!$I$13*Prices!CT$16 + CC93*Control!$I$14*Prices!CT$18","v":216.0373150969944},{"$f":"CD93+CD93*Control!$I$12*Weather!DG$21 + CD93*Control!$I$13*Prices!CU$16 + CD93*Control!$I$14*Prices!CU$18","v":215.7258703204584},{"$f":"CE93+CE93*Control!$I$12*Weather!DH$21 + CE93*Control!$I$13*Prices!CV$16 + CE93*Control!$I$14*Prices!CV$18","v":215.41344823963675},{"$f":"CF93+CF93*Control!$I$12*Weather!DI$21 + CF93*Control!$I$13*Prices!CW$16 + CF93*Control!$I$14*Prices!CW$18","v":215.1000348991368},{"$f":"CG93+CG93*Control!$I$12*Weather!DJ$21 + CG93*Control!$I$13*Prices!CX$16 + CG93*Control!$I$14*Prices!CX$18","v":214.78561607657798},{"$f":"CH93+CH93*Control!$I$12*Weather!DK$21 + CH93*Control!$I$13*Prices!CY$16 + CH93*Control!$I$14*Prices!CY$18","v":214.47017727560345},{"$f":"CI93+CI93*Control!$I$12*Weather!DL$21 + CI93*Control!$I$13*Prices!CZ$16 + CI93*Control!$I$14*Prices!CZ$18","v":214.15370371866211},{"$f":"CJ93+CJ93*Control!$I$12*Weather!DM$21 + CJ93*Control!$I$13*Prices!DA$16 + CJ93*Control!$I$14*Prices!DA$18","v":213.83618033954835},{"$f":"CK93+CK93*Control!$I$12*Weather!DN$21 + CK93*Control!$I$13*Prices!DB$16 + CK93*Control!$I$14*Prices!DB$18","v":213.51759177569286}]
["Yarra Ranges (S)",{"$f":"'Volume per connection'!B92","v":181.65163778289573},{"$f":"'Volume per connection'!C92","v":624.05672123892236},{"$f":"'Volume per connection'!D92","v":1197.3168595114628},{"$f":"'Volume per connection'!E92","v":1115.3039395988942},{"$f":"'Volume per connection'!F92","v":1104.5387124332744},{"$f":"'Volume per connection'!G92","v":1019.1946463785757},{"$f":"'Volume per connection'!H92","v":470.83670821548822},{"$f":"'Volume per connection'!I92","v":367.31363228021974},{"$f":"'Volume per connection'!J92","v":348.79264976798947},{"$f":"J94+J94*Control!$I$12*Weather!AM$21 + J94*Control!$I$13*Prices!AA$16 + J94*Control!$I$14*Prices!AA$18","v":327.24306769032086},{"$f":"K94+K94*Control!$I$12*Weather!AN$21 + K94*Control!$I$13*Prices!AB$16 + K94*Control!$I$14*Prices!AB$18","v":299.44117644262855},{"$f":"L94+L94*Control!$I$12*Weather!AO$21 + L94*Control!$I$13*Prices!AC$16 + L94*Control!$I$14*Prices!AC$18","v":308.80168258507649},{"$f":"M94+M94*Control!$I$12*Weather!AP$21 + M94*Control!$I$13*Prices!AD$16 + M94*Control!$I$14*Prices!AD$18","v":308.03655542750596},{"$f":"N94+N94*Control!$I$12*Weather!AQ$21 + N94*Control!$I$13*Prices!AE$16 + N94*Control!$I$14*Prices!AE$18","v":316.65342462874446},{"$f":"O94+O94*Control!$I$12*Weather!AR$21 + O94*Control!$I$13*Prices!AF$16 + O94*Control!$I$14*Prices!AF$18","v":317.03903316324318},{"$f":"P94+P94*Control!$I$12*Weather!AS$21 + P94*Control!$I$13*Prices!AG$16 + P94*Control!$I$14*Prices!AG$18","v":309.39952142235444},{"$f":"Q94+Q94*Control!$I$12*Weather!AT$21 + Q94*Control!$I$13*Prices!AH$16 + Q94*Control!$I$14*Prices!AH$18","v":290.07643189956093},{"$f":"R94+R94*Control!$I$12*Weather!AU$21 + R94*Control!$I$13*Prices!AI$16 + R94*Control!$I$14*Prices!AI$18","v":274.59323950805157},{"$f":"S94+S94*Control!$I$12*Weather!AV$21 + S94*Control!$I$13*Prices!AJ$16 + S94*Control!$I$14*Prices!AJ$18","v":264.1399555843127},{"$f":"T94+T94*Control!$I$12*Weather!AW$21 + T94*Control!$I$13*Prices!AK$16 + T94*Control!$I$14*Prices!AK$18","v":282.52548229550291},{"$f":"U94+U94*Control!$I$12*Weather!AX$21 + U94*Control!$I$13*Prices!AL$16 + U94*Control!$I$14*Prices!AL$18","v":283.3045054975791},{"$f":"V94+V94*Control!$I$12*Weather!AY$21 + V94*Control!$I$13*Prices!AM$16 + V94*Control!$I$14*Prices!AM$18","v":277.93342179057441},{"$f":"W94+W94*Control!$I$12*Weather!AZ$21 + W94*Control!$I$13*Prices!AN$16 + W94*Control!$I$14*Prices!AN$18","v":269.59947649606346},{"$f":"X94+X94*Control!$I$12*Weather!BA$21 + X94*Control!$I$13*Prices!AO$16 + X94*Control!$I$14*Prices!AO$18","v":299.43537098373793},{"$f":"Y94+Y94*Control!$I$12*Weather!BB$21 + Y94*Control!$I$13*Prices!AP$16 + Y94*Control!$I$14*Prices!AP$18","v":296.44805072772107},{"$f":"Z94+Z94*Control!$I$12*Weather!BC$21 + Z94*Control!$I$13*Prices!AQ$16 + Z94*Control!$I$14*Prices!AQ$18","v":291.8714208631132},{"$f":"AA94+AA94*Control!$I$12*Weather!BD$21 + AA94*Control!$I$13*Prices!AR$16 + AA94*Control!$I$14*Prices!AR$18","v":284.80007079721014},{"$f":"AB94+AB94*Control!$I$12*Weather!BE$21 + AB94*Control!$I$13*Prices!AS$16 + AB94*Control!$I$14*Prices!AS$18","v":280.90798691549776},{"$f":"AC94+AC94*Control!$I$12*Weather!BF$21 + AC94*Control!$I$13*Prices!AT$16 + AC94*Control!$I$14*Prices!AT$18","v":281.82405587190993},{"$f":"AD94+AD94*Control!$I$12*Weather!BG$21 + AD94*Control!$I$13*Prices!AU$16 + AD94*Control!$I$14*Prices!AU$18","v":279.86005977289261},{"$f":"AE94+AE94*Control!$I$12*Weather!BH$21 + AE94*Control!$I$13*Prices!AV$16 + AE94*Control!$I$14*Prices!AV$18","v":272.04396391247269},{"$f":"AF94+AF94*Control!$I$12*Weather!BI$21 + AF94*Control!$I$13*Prices!AW$16 + AF94*Control!$I$14*Prices!AW$18","v":266.32178123400303},{"$f":"AG94+AG94*Control!$I$12*Weather!BJ$21 + AG94*Control!$I$13*Prices!AX$16 + AG94*Control!$I$14*Prices!AX$18","v":264.1500881639268},{"$f":"AH94+AH94*Control!$I$12*Weather!BK$21 + AH94*Control!$I$13*Prices!AY$16 + AH94*Control!$I$14*Prices!AY$18","v":261.49273931407959},{"$f":"AI94+AI94*Control!$I$12*Weather!BL$21 + AI94*Control!$I$13*Prices!AZ$16 + AI94*Control!$I$14*Prices!AZ$18","v":259.05824806523691},{"$f":"AJ94+AJ94*Control!$I$12*Weather!BM$21 + AJ94*Control!$I$13*Prices!BA$16 + AJ94*Control!$I$14*Prices!BA$18","v":257.41647043098817},{"$f":"AK94+AK94*Control!$I$12*Weather!BN$21 + AK94*Control!$I$13*Prices!BB$16 + AK94*Control!$I$14*Prices!BB$18","v":256.33435538219112},{"$f":"AL94+AL94*Control!$I$12*Weather!BO$21 + AL94*Control!$I$13*Prices!BC$16 + AL94*Control!$I$14*Prices!BC$18","v":255.47347013841247},{"$f":"AM94+AM94*Control!$I$12*Weather!BP$21 + AM94*Control!$I$13*Prices!BD$16 + AM94*Control!$I$14*Prices!BD$18","v":253.54321118144111},{"$f":"AN94+AN94*Control!$I$12*Weather!BQ$21 + AN94*Control!$I$13*Prices!BE$16 + AN94*Control!$I$14*Prices!BE$18","v":253.27445063814571},{"$f":"AO94+AO94*Control!$I$12*Weather!BR$21 + AO94*Control!$I$13*Prices!BF$16 + AO94*Control!$I$14*Prices!BF$18","v":250.79884812648132},{"$f":"AP94+AP94*Control!$I$12*Weather!BS$21 + AP94*Control!$I$13*Prices!BG$16 + AP94*Control!$I$14*Prices!BG$18","v":250.48907464630523},{"$f":"AQ94+AQ94*Control!$I$12*Weather!BT$21 + AQ94*Control!$I$13*Prices!BH$16 + AQ94*Control!$I$14*Prices!BH$18","v":250.17866389974279},{"$f":"AR94+AR94*Control!$I$12*Weather!BU$21 + AR94*Control!$I$13*Prices!BI$16 + AR94*Control!$I$14*Prices!BI$18","v":249.86760800682538},{"$f":"AS94+AS94*Control!$I$12*Weather!BV$21 + AS94*Control!$I$13*Prices!BJ$16 + AS94*Control!$I$14*Prices!BJ$18","v":249.55589896978614},{"$f":"AT94+AT94*Control!$I$12*Weather!BW$21 + AT94*Control!$I$13*Prices!BK$16 + AT94*Control!$I$14*Prices!BK$18","v":249.24352867062714},{"$f":"AU94+AU94*Control!$I$12*Weather!BX$21 + AU94*Control!$I$13*Prices!BL$16 + AU94*Control!$I$14*Prices!BL$18","v":248.93048886862357},{"$f":"AV94+AV94*Control!$I$12*Weather!BY$21 + AV94*Control!$I$13*Prices!BM$16 + AV94*Control!$I$14*Prices!BM$18","v":248.61677119776152},{"$f":"AW94+AW94*Control!$I$12*Weather!BZ$21 + AW94*Control!$I$13*Prices!BN$16 + AW94*Control!$I$14*Prices!BN$18","v":248.30236716410988},{"$f":"AX94+AX94*Control!$I$12*Weather!CA$21 + AX94*Control!$I$13*Prices!BO$16 + AX94*Control!$I$14*Prices!BO$18","v":247.98726814312079},{"$f":"AY94+AY94*Control!$I$12*Weather!CB$21 + AY94*Control!$I$13*Prices!BP$16 + AY94*Control!$I$14*Prices!BP$18","v":247.67146537686051},{"$f":"AZ94+AZ94*Control!$I$12*Weather!CC$21 + AZ94*Control!$I$13*Prices!BQ$16 + AZ94*Control!$I$14*Prices!BQ$18","v":247.3549499711639},{"$f":"BA94+BA94*Control!$I$12*Weather!CD$21 + BA94*Control!$I$13*Prices!BR$16 + BA94*Control!$I$14*Prices!BR$18","v":247.03771289271447},{"$f":"BB94+BB94*Control!$I$12*Weather!CE$21 + BB94*Control!$I$13*Prices!BS$16 + BB94*Control!$I$14*Prices!BS$18","v":246.71974496604369},{"$f":"BC94+BC94*Control!$I$12*Weather!CF$21 + BC94*Control!$I$13*Prices!BT$16 + BC94*Control!$I$14*Prices!BT$18","v":246.4010368704501},{"$f":"BD94+BD94*Control!$I$12*Weather!CG$21 + BD94*Control!$I$13*Prices!BU$16 + BD94*Control!$I$14*Prices!BU$18","v":246.08157913683317},{"$f":"BE94+BE94*Control!$I$12*Weather!CH$21 + BE94*Control!$I$13*Prices!BV$16 + BE94*Control!$I$14*Prices!BV$18","v":245.7613621444406},{"$f":"BF94+BF94*Control!$I$12*Weather!CI$21 + BF94*Control!$I$13*Prices!BW$16 + BF94*Control!$I$14*Prices!BW$18","v":245.44037611752543},{"$f":"BG94+BG94*Control!$I$12*Weather!CJ$21 + BG94*Control!$I$13*Prices!BX$16 + BG94*Control!$I$14*Prices!BX$18","v":245.1186111219105},{"$f":"BH94+BH94*Control!$I$12*Weather!CK$21 + BH94*Control!$I$13*Prices!BY$16 + BH94*Control!$I$14*Prices!BY$18","v":244.79605706145591},{"$f":"BI94+BI94*Control!$I$12*Weather!CL$21 + BI94*Control!$I$13*Prices!BZ$16 + BI94*Control!$I$14*Prices!BZ$18","v":244.47270367442857},{"$f":"BJ94+BJ94*Control!$I$12*Weather!CM$21 + BJ94*Control!$I$13*Prices!CA$16 + BJ94*Control!$I$14*Prices!CA$18","v":244.14854052976742},{"$f":"BK94+BK94*Control!$I$12*Weather!CN$21 + BK94*Control!$I$13*Prices!CB$16 + BK94*Control!$I$14*Prices!CB$18","v":243.82355702324358},{"$f":"BL94+BL94*Control!$I$12*Weather!CO$21 + BL94*Control!$I$13*Prices!CC$16 + BL94*Control!$I$14*Prices!CC$18","v":243.49774237350942},{"$f":"BM94+BM94*Control!$I$12*Weather!CP$21 + BM94*Control!$I$13*Prices!CD$16 + BM94*Control!$I$14*Prices!CD$18","v":243.17108561803522},{"$f":"BN94+BN94*Control!$I$12*Weather!CQ$21 + BN94*Control!$I$13*Prices!CE$16 + BN94*Control!$I$14*Prices!CE$18","v":242.84357560892673},{"$f":"BO94+BO94*Control!$I$12*Weather!CR$21 + BO94*Control!$I$13*Prices!CF$16 + BO94*Control!$I$14*Prices!CF$18","v":242.51520100862166},{"$f":"BP94+BP94*Control!$I$12*Weather!CS$21 + BP94*Control!$I$13*Prices!CG$16 + BP94*Control!$I$14*Prices!CG$18","v":242.18595028545963},{"$f":"BQ94+BQ94*Control!$I$12*Weather!CT$21 + BQ94*Control!$I$13*Prices!CH$16 + BQ94*Control!$I$14*Prices!CH$18","v":241.85581170912192},{"$f":"BR94+BR94*Control!$I$12*Weather!CU$21 + BR94*Control!$I$13*Prices!CI$16 + BR94*Control!$I$14*Prices!CI$18","v":241.52477334593485},{"$f":"BS94+BS94*Control!$I$12*Weather!CV$21 + BS94*Control!$I$13*Prices!CJ$16 + BS94*Control!$I$14*Prices!CJ$18","v":241.19282305403442},{"$f":"BT94+BT94*Control!$I$12*Weather!CW$21 + BT94*Control!$I$13*Prices!CK$16 + BT94*Control!$I$14*Prices!CK$18","v":240.85994847838401},{"$f":"BU94+BU94*Control!$I$12*Weather!CX$21 + BU94*Control!$I$13*Prices!CL$16 + BU94*Control!$I$14*Prices!CL$18","v":240.52613704564317},{"$f":"BV94+BV94*Control!$I$12*Weather!CY$21 + BV94*Control!$I$13*Prices!CM$16 + BV94*Control!$I$14*Prices!CM$18","v":240.19137595887847},{"$f":"BW94+BW94*Control!$I$12*Weather!CZ$21 + BW94*Control!$I$13*Prices!CN$16 + BW94*Control!$I$14*Prices!CN$18","v":239.85565219211443},{"$f":"BX94+BX94*Control!$I$12*Weather!DA$21 + BX94*Control!$I$13*Prices!CO$16 + BX94*Control!$I$14*Prices!CO$18","v":239.51895248471487},{"$f":"BY94+BY94*Control!$I$12*Weather!DB$21 + BY94*Control!$I$13*Prices!CP$16 + BY94*Control!$I$14*Prices!CP$18","v":239.18126333559132},{"$f":"BZ94+BZ94*Control!$I$12*Weather!DC$21 + BZ94*Control!$I$13*Prices!CQ$16 + BZ94*Control!$I$14*Prices!CQ$18","v":238.84257099722984},{"$f":"CA94+CA94*Control!$I$12*Weather!DD$21 + CA94*Control!$I$13*Prices!CR$16 + CA94*Control!$I$14*Prices!CR$18","v":238.5028614695313},{"$f":"CB94+CB94*Control!$I$12*Weather!DE$21 + CB94*Control!$I$13*Prices!CS$16 + CB94*Control!$I$14*Prices!CS$18","v":238.16212049345563},{"$f":"CC94+CC94*Control!$I$12*Weather!DF$21 + CC94*Control!$I$13*Prices!CT$16 + CC94*Control!$I$14*Prices!CT$18","v":237.82033354446568},{"$f":"CD94+CD94*Control!$I$12*Weather!DG$21 + CD94*Control!$I$13*Prices!CU$16 + CD94*Control!$I$14*Prices!CU$18","v":237.47748582575923},{"$f":"CE94+CE94*Control!$I$12*Weather!DH$21 + CE94*Control!$I$13*Prices!CV$16 + CE94*Control!$I$14*Prices!CV$18","v":237.13356226128474},{"$f":"CF94+CF94*Control!$I$12*Weather!DI$21 + CF94*Control!$I$13*Prices!CW$16 + CF94*Control!$I$14*Prices!CW$18","v":236.78854748852885},{"$f":"CG94+CG94*Control!$I$12*Weather!DJ$21 + CG94*Control!$I$13*Prices!CX$16 + CG94*Control!$I$14*Prices!CX$18","v":236.44242585106994},{"$f":"CH94+CH94*Control!$I$12*Weather!DK$21 + CH94*Control!$I$13*Prices!CY$16 + CH94*Control!$I$14*Prices!CY$18","v":236.09518139088513},{"$f":"CI94+CI94*Control!$I$12*Weather!DL$21 + CI94*Control!$I$13*Prices!CZ$16 + CI94*Control!$I$14*Prices!CZ$18","v":235.7467978404045},{"$f":"CJ94+CJ94*Control!$I$12*Weather!DM$21 + CJ94*Control!$I$13*Prices!DA$16 + CJ94*Control!$I$14*Prices!DA$18","v":235.39725861429858},{"$f":"CK94+CK94*Control!$I$12*Weather!DN$21 + CK94*Control!$I$13*Prices!DB$16 + CK94*Control!$I$14*Prices!DB$18","v":235.04654680099193}]
["Multinet",{"$f":"B141/B118*1000","v":181.65163778289576},{"$f":"C141/C118*1000","v":624.05672123892236},1197.316859511463,1115.3039395988947,1104.5387124332742,1019.194646378576,470.83670821548833,367.31363228021979,348.79264976798953,339.79105388619803,311.4635243890333,321.0885317606386,320.28868857747585,329.84811468901984,330.86098022182341,322.64440382663588,302.22536819644029,286.1508347565985,275.32921666948727,294.33328097901062,295.07151109988547,289.55087638966489,280.91977602352551,311.82874637966876,308.41223883222273,303.62829417826038,296.37453145191404,292.4242759181522,293.42447353455117,291.55410151358706,283.32667388318168,277.26109743140739,275.10575366565723,272.42757489318933,269.83075955885829,268.03890826072291,266.73255878255003,265.85809072171554,263.81374952518712,263.36415835607892,260.63214119087269,260.06301843237776,259.4304010188132,259.04976766993218,258.58831918917519,258.17448995854346,257.69514589205284,257.31473665404491,256.8391217079365,256.36262658898306,255.83950375304431,255.26839257569694,254.62736700810646,254.09080821385376,253.33913564462651,252.44761801960479,251.67454756668923,251.54826710253414,251.25767533813837,251.08295674789454,250.77330655611996,250.5735184804916,250.36490592109206,250.10370667148553,250.00598842951953,{"$f":"BO141/BO118*1000","v":249.72747546903736},249.38840718857898,249.17966155505698,248.9763330343965,248.64912762618206,248.50886709327784,248.37602305117326,248.11084450441979,247.83354473461534,247.55773974473587,247.28356414185524,247.0111643683764,246.47727780545247,245.93659139814977,245.46948703841264,244.9995808182673,244.511885645051,244.15864975528669,243.80429218526834,243.44879680540078,243.09214717517497,242.73432653497628,242.37531779761895,242.01510353959716]
[null,null,null,null,null,null,null,null,null,null,null,{"$f":"L95/K95-1","v":-8.3367496504637595E-2},{"$f":"M95/L95-1","v":3.0902518651215072E-2},{"$f":"N95/M95-1","v":-2.4910362845316225E-3},{"$f":"O95/N95-1","v":2.9846280722560126E-2},{"$f":"P95/O95-1","v":3.0707028104692835E-3},{"$f":"Q95/P95-1","v":-2.4833923872433661E-2},{"$f":"R95/Q95-1","v":-6.3286501758658131E-2},{"$f":"S95/R95-1","v":-5.3187240818890036E-2},{"$f":"T95/S95-1","v":-3.7817880546517246E-2},{"$f":"U95/T95-1","v":6.9023057339884009E-2},{"$f":"V95/U95-1","v":2.5081435521643325E-3},{"$f":"W95/V95-1","v":-1.8709480592153049E-2},{"$f":"X95/W95-1","v":-2.9808579665716595E-2},{"$f":"Y95/X95-1","v":0.11002774811252447},{"$f":"Z95/Y95-1","v":-1.0956358536894584E-2},{"$f":"AA95/Z95-1","v":-1.5511526624482741E-2},{"$f":"AB95/AA95-1","v":-2.3890272630809672E-2},{"$f":"AC95/AB95-1","v":-1.3328593096072927E-2},{"$f":"AD95/AC95-1","v":3.420364514056029E-3},{"$f":"AE95/AD95-1","v":-6.3742877287428223E-3},{"$f":"AF95/AE95-1","v":-2.8219214161945061E-2},{"$f":"AG95/AF95-1","v":-2.1408420070872625E-2},{"$f":"AH95/AG95-1","v":-7.7736970159810737E-3},{"$f":"AI95/AH95-1","v":-9.7350881862062755E-3},{"$f":"AJ95/AI95-1","v":-9.5321310089448996E-3},{"$f":"AK95/AJ95-1","v":-6.6406487572612249E-3},{"$f":"AL95/AK95-1","v":-4.8737307827794174E-3},{"$f":"AM95/AL95-1","v":-3.2784451393029768E-3},{"$f":"AN95/AM95-1","v":-7.6895955694962215E-3},{"$f":"AO95/AN95-1","v":-1.7041991553411462E-3},{"$f":"AP95/AO95-1","v":-1.0373534433309017E-2},{"$f":"AQ95/AP95-1","v":-2.1836246131982096E-3},{"$f":"AR95/AQ95-1","v":-2.4325542992535976E-3},{"$f":"AS95/AR95-1","v":-1.4671886848504068E-3},{"$f":"AT95/AS95-1","v":-1.7813120811014382E-3},{"$f":"AU95/AT95-1","v":-1.6003399996152856E-3},{"$f":"AV95/AU95-1","v":-1.8566670416104714E-3},{"$f":"AW95/AV95-1","v":-1.4761986947448014E-3},{"$f":"AX95/AW95-1","v":-1.8483781857696613E-3},{"$f":"AY95/AX95-1","v":-1.8552279566478314E-3},{"$f":"AZ95/AY95-1","v":-2.040558106691015E-3},{"$f":"BA95/AZ95-1","v":-2.232302552848342E-3},{"$f":"BB95/BA95-1","v":-2.511182685495994E-3},{"$f":"BC95/BB95-1","v":-2.1072314439618545E-3},{"$f":"BD95/BC95-1","v":-2.9582832000543124E-3},{"$f":"BE95/BD95-1","v":-3.5190679195823416E-3},{"$f":"BF95/BE95-1","v":-3.0623004446630464E-3},{"$f":"BG95/BF95-1","v":-5.017609662003597E-4},{"$f":"BH95/BG95-1","v":-1.1552127460187078E-3},{"$f":"BI95/BH95-1","v":-6.953761313308604E-4},{"$f":"BJ95/BI95-1","v":-1.2332585046204159E-3},{"$f":"BK95/BJ95-1","v":-7.9668796640308681E-4},{"$f":"BL95/BK95-1","v":-8.3254032854152005E-4},{"$f":"BM95/BL95-1","v":-1.0432742106789572E-3},{"$f":"BN95/BM95-1","v":-3.9071089056008645E-4},{"$f":"BO95/BN95-1","v":-1.1140251568841908E-3},{"$f":"BP95/BO95-1","v":-1.3577532060561337E-3},{"$f":"BQ95/BP95-1","v":-8.3703022075176658E-4},{"$f":"BR95/BQ95-1","v":-8.15991639893765E-4},{"$f":"BS95/BR95-1","v":-1.3142028570612974E-3},{"$f":"BT95/BS95-1","v":-5.6409018701686353E-4},{"$f":"BU95/BT95-1","v":-5.3456459585687899E-4},{"$f":"BV95/BU95-1","v":-1.0676495399832842E-3},{"$f":"BW95/BV95-1","v":-1.1176446977089194E-3},{"$f":"BX95/BW95-1","v":-1.112863838407363E-3},{"$f":"BY95/BX95-1","v":-1.1075218377876173E-3},{"$f":"BZ95/BY95-1","v":-1.1015684541111348E-3},{"$f":"CA95/BZ95-1","v":-2.1613863660336907E-3},{"$f":"CB95/CA95-1","v":-2.1936561946674926E-3},{"$f":"CC95/CB95-1","v":-1.8992877679634423E-3},{"$f":"CD95/CC95-1","v":-1.9143162183403728E-3},{"$f":"CE95/CD95-1","v":-1.9905959495418735E-3},{"$f":"CF95/CE95-1","v":-1.4446573377503436E-3},{"$f":"CG95/CF95-1","v":-1.4513414551297066E-3},{"$f":"CH95/CG95-1","v":-1.458117807037751E-3},{"$f":"CI95/CH95-1","v":-1.4649882640861422E-3},{"$f":"CJ95/CI95-1","v":-1.471954747846449E-3},{"$f":"CK95/CJ95-1","v":-1.4790192325995211E-3},{"$f":"CL95/CK95-1","v":-1.4861837471527028E-3}]
["Commercial customers"]
["FY",2012,2013,2014,2015,2016,2017,2018,2019,2020,2021,2022,2023,2024,2025,2026,2027,2028,2029,2030,2031,2032,2033,2034,2035,2036,2037,2038,2039,2040,2041,2042,2043,2044,2045,2046,2047,2048,2049,2050,2051,2052,2053,2054,2055,2056,2057,2058,2059,2060,2061,2062,2063,2064,2065,2066,2067,2068,2069,2070,2071,2072,2073,2074,2075,2076,2077,2078,2079,2080,2081,2082,2083,2084,2085,2086,2087,2088,2089,2090,2091,2092,2093,2094,2095,2096,2097,2098,2099,2100]
["Bass Coast (S)",{"$f":"CustomersCOM!B3","v":44},{"$f":"CustomersCOM!C3","v":46},{"$f":"CustomersCOM!D3","v":49},{"$f":"CustomersCOM!E3","v":47},{"$f":"CustomersCOM!F3","v":48},{"$f":"CustomersCOM!G3","v":51},{"$f":"CustomersCOM!H3","v":54},{"$f":"CustomersCOM!I3","v":57},{"$f":"CustomersCOM!J3","v":58},{"$f":"CustomersCOM!K3*Scenarios!B131","v":58.333333333333336},{"$f":"CustomersCOM!L3*Scenarios!C131","v":59.041666666666671},{"$f":"CustomersCOM!M3*Scenarios!D131","v":56.746458333333337},{"$f":"CustomersCOM!N3*Scenarios!E131","v":54.46272604166667},{"$f":"CustomersCOM!O3*Scenarios!F131","v":55.19041241145834},{"$f":"CustomersCOM!P3*Scenarios!G131","v":54.914460349401047},{"$f":"CustomersCOM!Q3*Scenarios!H131","v":52.63988804765404},{"$f":"CustomersCOM!R3*Scenarios!I131","v":50.376688607415772},{"$f":"CustomersCOM!S3*Scenarios!J131","v":48.124805164378692},{"$f":"CustomersCOM!T3*Scenarios!K131","v":45.884181138556798},{"$f":"CustomersCOM!U3*Scenarios!L131","v":43.654760232864014},{"$f":"CustomersCOM!V3*Scenarios!M131","v":42.436486431699691},{"$f":"CustomersCOM!W3*Scenarios!N131","v":41.224303999541192},{"$f":"CustomersCOM!X3*Scenarios!O131","v":40.018182479543484},{"$f":"CustomersCOM!Y3*Scenarios!P131","v":38.818091567145764},{"$f":"CustomersCOM!Z3*Scenarios!Q131","v":37.624001109310036},{"$f":"CustomersCOM!AA3*Scenarios!R131","v":36.435881103763485},{"$f":"CustomersCOM!AB3*Scenarios!S131","v":35.253701698244669},{"$f":"CustomersCOM!AC3*Scenarios!T131","v":34.077433189753442},{"$f":"CustomersCOM!AD3*Scenarios!U131","v":32.907046023804675},{"$f":"CustomersCOM!AE3*Scenarios!V131","v":31.742510793685653},{"$f":"CustomersCOM!AF3*Scenarios!W131","v":30.583798239717225},{"$f":"CustomersCOM!AG3*Scenarios!X131","v":29.430879248518639},{"$f":"CustomersCOM!AH3*Scenarios!Y131","v":29.283724852276045},{"$f":"CustomersCOM!AI3*Scenarios!Z131","v":29.137306228014666},{"$f":"CustomersCOM!AJ3*Scenarios!AA131","v":27.991619696874594},{"$f":"CustomersCOM!AK3*Scenarios!AB131","v":26.851661598390219},{"$f":"CustomersCOM!AL3*Scenarios!AC131","v":25.717403290398266},{"$f":"CustomersCOM!AM3*Scenarios!AD131","v":24.588816273946275},{"$f":"CustomersCOM!AN3*Scenarios!AE131","v":23.465872192576544},{"$f":"CustomersCOM!AO3*Scenarios!AF131","v":22.34854283161366},{"$f":"CustomersCOM!AP3*Scenarios!AG131","v":21.236800117455591},{"$f":"CustomersCOM!AQ3*Scenarios!AH131","v":20.130616116868314},{"$f":"CustomersCOM!AR3*Scenarios!AI131","v":19.029963036283974},{"$f":"CustomersCOM!AS3*Scenarios!AJ131","v":17.934813221102555},{"$f":"CustomersCOM!AT3*Scenarios!AK131","v":16.845139154997042},{"$f":"CustomersCOM!AU3*Scenarios!AL131","v":15.760913459222056},{"$f":"CustomersCOM!AV3*Scenarios!AM131","v":14.682108891925946},{"$f":"CustomersCOM!AW3*Scenarios!AN131","v":14.608698347466316},{"$f":"CustomersCOM!AX3*Scenarios!AO131","v":14.535654855728984},{"$f":"CustomersCOM!AY3*Scenarios!AP131","v":14.46297658145034},{"$f":"CustomersCOM!AZ3*Scenarios!AQ131","v":14.390661698543088},{"$f":"CustomersCOM!BA3*Scenarios!AR131","v":14.318708390050373},{"$f":"CustomersCOM!BB3*Scenarios!AS131","v":14.247114848100122},{"$f":"CustomersCOM!BC3*Scenarios!AT131","v":14.175879273859621},{"$f":"CustomersCOM!BD3*Scenarios!AU131","v":14.104999877490323},{"$f":"CustomersCOM!BE3*Scenarios!AV131","v":14.034474878102872},{"$f":"CustomersCOM!BF3*Scenarios!AW131","v":13.964302503712357},{"$f":"CustomersCOM!BG3*Scenarios!AX131","v":13.894480991193795},{"$f":"CustomersCOM!BH3*Scenarios!AY131","v":13.825008586237827},{"$f":"CustomersCOM!BI3*Scenarios!AZ131","v":13.755883543306638},{"$f":"CustomersCOM!BJ3*Scenarios!BA131","v":13.687104125590105},{"$f":"CustomersCOM!BK3*Scenarios!BB131","v":13.618668604962155},{"$f":"CustomersCOM!BL3*Scenarios!BC131","v":13.550575261937343},{"$f":"CustomersCOM!BM3*Scenarios!BD131","v":13.482822385627657},{"$f":"CustomersCOM!BN3*Scenarios!BE131","v":13.415408273699517},{"$f":"CustomersCOM!BO3*Scenarios!BF131","v":13.34833123233102},{"$f":"CustomersCOM!BP3*Scenarios!BG131","v":13.281589576169365},{"$f":"CustomersCOM!BQ3*Scenarios!BH131","v":13.215181628288518},{"$f":"CustomersCOM!BR3*Scenarios!BI131","v":13.149105720147075},{"$f":"CustomersCOM!BS3*Scenarios!BJ131","v":13.083360191546339},{"$f":"CustomersCOM!BT3*Scenarios!BK131","v":13.017943390588607},{"$f":"CustomersCOM!BU3*Scenarios!BL131","v":12.952853673635664},{"$f":"CustomersCOM!BV3*Scenarios!BM131","v":12.888089405267486},{"$f":"CustomersCOM!BW3*Scenarios!BN131","v":12.823648958241149},{"$f":"CustomersCOM!BX3*Scenarios!BO131","v":12.759530713449942},{"$f":"CustomersCOM!BY3*Scenarios!BP131","v":12.695733059882693},{"$f":"CustomersCOM!BZ3*Scenarios!BQ131","v":12.632254394583279},{"$f":"CustomersCOM!CA3*Scenarios!BR131","v":12.569093122610363},{"$f":"CustomersCOM!CB3*Scenarios!BS131","v":12.506247656997312},{"$f":"CustomersCOM!CC3*Scenarios!BT131","v":12.443716418712325},{"$f":"CustomersCOM!CD3*Scenarios!BU131","v":12.381497836618763},{"$f":"CustomersCOM!CE3*Scenarios!BV131","v":12.319590347435669},{"$f":"CustomersCOM!CF3*Scenarios!BW131","v":12.257992395698491},{"$f":"CustomersCOM!CG3*Scenarios!BX131","v":12.196702433719999},{"$f":"CustomersCOM!CH3*Scenarios!BY131","v":12.135718921551399},{"$f":"CustomersCOM!CI3*Scenarios!BZ131","v":12.075040326943643},{"$f":"CustomersCOM!CJ3*Scenarios!CA131","v":12.014665125308925},{"$f":"CustomersCOM!CK3*Scenarios!CB131","v":11.95459179968238},{"$f":"CustomersCOM!CL3*Scenarios!CC131","v":11.894818840683968}]
["Bayside (C)",{"$f":"CustomersCOM!B4","v":751},{"$f":"CustomersCOM!C4","v":758},{"$f":"CustomersCOM!D4","v":753},{"$f":"CustomersCOM!E4","v":743},{"$f":"CustomersCOM!F4","v":749},{"$f":"CustomersCOM!G4","v":754},{"$f":"CustomersCOM!H4","v":755},{"$f":"CustomersCOM!I4","v":735},{"$f":"CustomersCOM!J4","v":730},{"$f":"CustomersCOM!K4*Scenarios!B132","v":718.33333333333337},{"$f":"CustomersCOM!L4*Scenarios!C132","v":707.74166666666667},{"$f":"CustomersCOM!M4*Scenarios!D132","v":662.2029583333333},{"$f":"CustomersCOM!N4*Scenarios!E132","v":616.89194354166659},{"$f":"CustomersCOM!O4*Scenarios!F132","v":609.80748382395825},{"$f":"CustomersCOM!P4*Scenarios!G132","v":599.75844640483842},{"$f":"CustomersCOM!Q4*Scenarios!H132","v":572.75965417281418},{"$f":"CustomersCOM!R4*Scenarios!I132","v":545.89585590195009},{"$f":"CustomersCOM!S4*Scenarios!J132","v":508.16637662244034},{"$f":"CustomersCOM!T4*Scenarios!K132","v":473.62554473932812},{"$f":"CustomersCOM!U4*Scenarios!L132","v":446.25741701563146},{"$f":"CustomersCOM!V4*Scenarios!M132","v":420.02612993055328},{"$f":"CustomersCOM!W4*Scenarios!N132","v":390.9259992809005},{"$f":"CustomersCOM!X4*Scenarios!O132","v":363.97136928449601},{"$f":"CustomersCOM!Y4*Scenarios!P132","v":351.15151243807355},{"$f":"CustomersCOM!Z4*Scenarios!Q132","v":334.3957548758832},{"$f":"CustomersCOM!AA4*Scenarios!R132","v":313.7237761015038},{"$f":"CustomersCOM!AB4*Scenarios!S132","v":293.15515722099627},{"$f":"CustomersCOM!AC4*Scenarios!T132","v":273.68938143489129},{"$f":"CustomersCOM!AD4*Scenarios!U132","v":255.32093452771684},{"$f":"CustomersCOM!AE4*Scenarios!V132","v":238.04432985507827},{"$f":"CustomersCOM!AF4*Scenarios!W132","v":222.85410820580287},{"$f":"CustomersCOM!AG4*Scenarios!X132","v":208.73983766477386},{"$f":"CustomersCOM!AH4*Scenarios!Y132","v":195.69613847644999},{"$f":"CustomersCOM!AI4*Scenarios!Z132","v":182.71765778406774},{"$f":"CustomersCOM!AJ4*Scenarios!AA132","v":170.80406949514739},{"$f":"CustomersCOM!AK4*Scenarios!AB132","v":159.95004914767165},{"$f":"CustomersCOM!AL4*Scenarios!AC132","v":150.1502989019333},{"$f":"CustomersCOM!AM4*Scenarios!AD132","v":140.39954740742363},{"$f":"CustomersCOM!AN4*Scenarios!AE132","v":131.69754967038651},{"$f":"CustomersCOM!AO4*Scenarios!AF132","v":124.03906192203458},{"$f":"CustomersCOM!AP4*Scenarios!AG132","v":116.41886661242441},{"$f":"CustomersCOM!AQ4*Scenarios!AH132","v":109.83677227936229},{"$f":"CustomersCOM!AR4*Scenarios!AI132","v":103.28758841796548},{"$f":"CustomersCOM!AS4*Scenarios!AJ132","v":97.771150475875658},{"$f":"CustomersCOM!AT4*Scenarios!AK132","v":92.282294723496278},{"$f":"CustomersCOM!AU4*Scenarios!AL132","v":86.82088324987879},{"$f":"CustomersCOM!AV4*Scenarios!AM132","v":82.386778833629393},{"$f":"CustomersCOM!AW4*Scenarios!AN132","v":77.974844939461249},{"$f":"CustomersCOM!AX4*Scenarios!AO132","v":73.584970714763941},{"$f":"CustomersCOM!AY4*Scenarios!AP132","v":70.217045861190115},{"$f":"CustomersCOM!AZ4*Scenarios!AQ132","v":66.865960631884164},{"$f":"CustomersCOM!BA4*Scenarios!AR132","v":63.531630828724744},{"$f":"CustomersCOM!BB4*Scenarios!AS132","v":60.213972674581122},{"$f":"CustomersCOM!BC4*Scenarios!AT132","v":56.912902811208212},{"$f":"CustomersCOM!BD4*Scenarios!AU132","v":54.628338297152169},{"$f":"CustomersCOM!BE4*Scenarios!AV132","v":52.355196605666407},{"$f":"CustomersCOM!BF4*Scenarios!AW132","v":50.093420622638078},{"$f":"CustomersCOM!BG4*Scenarios!AX132","v":47.84295351952489},{"$f":"CustomersCOM!BH4*Scenarios!AY132","v":45.603738751927267},{"$f":"CustomersCOM!BI4*Scenarios!AZ132","v":43.37572005816763},{"$f":"CustomersCOM!BJ4*Scenarios!BA132","v":42.15884145787679},{"$f":"CustomersCOM!BK4*Scenarios!BB132","v":40.948047250587408},{"$f":"CustomersCOM!BL4*Scenarios!BC132","v":39.743307014334469},{"$f":"CustomersCOM!BM4*Scenarios!BD132","v":38.544590479262794},{"$f":"CustomersCOM!BN4*Scenarios!BE132","v":37.351867526866478},{"$f":"CustomersCOM!BO4*Scenarios!BF132","v":36.165108189232143},{"$f":"CustomersCOM!BP4*Scenarios!BG132","v":34.984282648285983},{"$f":"CustomersCOM!BQ4*Scenarios!BH132","v":33.809361235044555},{"$f":"CustomersCOM!BR4*Scenarios!BI132","v":32.640314428869331},{"$f":"CustomersCOM!BS4*Scenarios!BJ132","v":31.477112856724986},{"$f":"CustomersCOM!BT4*Scenarios!BK132","v":30.31972729244136},{"$f":"CustomersCOM!BU4*Scenarios!BL132","v":29.168128655979153},{"$f":"CustomersCOM!BV4*Scenarios!BM132","v":29.022288012699256},{"$f":"CustomersCOM!BW4*Scenarios!BN132","v":28.877176572635761},{"$f":"CustomersCOM!BX4*Scenarios!BO132","v":28.732790689772582},{"$f":"CustomersCOM!BY4*Scenarios!BP132","v":28.58912673632372},{"$f":"CustomersCOM!BZ4*Scenarios!BQ132","v":28.4461811026421},{"$f":"CustomersCOM!CA4*Scenarios!BR132","v":28.303950197128891},{"$f":"CustomersCOM!CB4*Scenarios!BS132","v":28.162430446143247},{"$f":"CustomersCOM!CC4*Scenarios!BT132","v":28.021618293912532},{"$f":"CustomersCOM!CD4*Scenarios!BU132","v":27.881510202442968},{"$f":"CustomersCOM!CE4*Scenarios!BV132","v":27.742102651430752},{"$f":"CustomersCOM!CF4*Scenarios!BW132","v":27.6033921381736},{"$f":"CustomersCOM!CG4*Scenarios!BX132","v":27.465375177482731},{"$f":"CustomersCOM!CH4*Scenarios!BY132","v":27.328048301595317},{"$f":"CustomersCOM!CI4*Scenarios!BZ132","v":27.19140806008734},{"$f":"CustomersCOM!CJ4*Scenarios!CA132","v":27.055451019786904},{"$f":"CustomersCOM!CK4*Scenarios!CB132","v":26.92017376468797},{"$f":"CustomersCOM!CL4*Scenarios!CC132","v":26.785572895864529}]
["Boroondara (C)",{"$f":"CustomersCOM!B5","v":1363},{"$f":"CustomersCOM!C5","v":1374},{"$f":"CustomersCOM!D5","v":1380},{"$f":"CustomersCOM!E5","v":1395},{"$f":"CustomersCOM!F5","v":1404},{"$f":"CustomersCOM!G5","v":1420},{"$f":"CustomersCOM!H5","v":1428},{"$f":"CustomersCOM!I5","v":1440},{"$f":"CustomersCOM!J5","v":1424},{"$f":"CustomersCOM!K5*Scenarios!B133","v":1406.6666666666667},{"$f":"CustomersCOM!L5*Scenarios!C133","v":1392.6333333333334},{"$f":"CustomersCOM!M5*Scenarios!D133","v":1299.6701666666668},{"$f":"CustomersCOM!N5*Scenarios!E133","v":1209.1718158333335},{"$f":"CustomersCOM!O5*Scenarios!F133","v":1201.125956754167},{"$f":"CustomersCOM!P5*Scenarios!G133","v":1187.120326970396},{"$f":"CustomersCOM!Q5*Scenarios!H133","v":1130.184725335544},{"$f":"CustomersCOM!R5*Scenarios!I133","v":1074.5338017088663},{"$f":"CustomersCOM!S5*Scenarios!J133","v":999.16113270032201},{"$f":"CustomersCOM!T5*Scenarios!K133","v":929.16532703682037},{"$f":"CustomersCOM!U5*Scenarios!L133","v":872.51950040163626},{"$f":"CustomersCOM!V5*Scenarios!M133","v":818.15690289962811},{"$f":"CustomersCOM!W5*Scenarios!N133","v":761.06611838512993},{"$f":"CustomersCOM!X5*Scenarios!O133","v":708.26078779320426},{"$f":"CustomersCOM!Y5*Scenarios!P133","v":682.71948385423821},{"$f":"CustomersCOM!Z5*Scenarios!Q133","v":647.30588643496696},{"$f":"CustomersCOM!AA5*Scenarios!R133","v":605.06935700279212},{"$f":"CustomersCOM!AB5*Scenarios!S133","v":563.04401021777812},{"$f":"CustomersCOM!AC5*Scenarios!T133","v":524.22879016668924},{"$f":"CustomersCOM!AD5*Scenarios!U133","v":488.60764621585577},{"$f":"CustomersCOM!AE5*Scenarios!V133","v":455.16460798477647},{"$f":"CustomersCOM!AF5*Scenarios!W133","v":423.8887849448526},{"$f":"CustomersCOM!AG5*Scenarios!X133","v":394.76934102012837},{"$f":"CustomersCOM!AH5*Scenarios!Y133","v":367.79549431502772},{"$f":"CustomersCOM!AI5*Scenarios!Z133","v":342.95651684345256},{"$f":"CustomersCOM!AJ5*Scenarios!AA133","v":320.24173425923527},{"$f":"CustomersCOM!AK5*Scenarios!AB133","v":298.64052558793912},{"$f":"CustomersCOM!AL5*Scenarios!AC133","v":279.14732295999943},{"$f":"CustomersCOM!AM5*Scenarios!AD133","v":260.75158634519943},{"$f":"CustomersCOM!AN5*Scenarios!AE133","v":243.44782841347342},{"$f":"CustomersCOM!AO5*Scenarios!AF133","v":227.23058927140605},{"$f":"CustomersCOM!AP5*Scenarios!AG133","v":212.094436325049},{"$f":"CustomersCOM!AQ5*Scenarios!AH133","v":198.03396414342376},{"$f":"CustomersCOM!AR5*Scenarios!AI133","v":185.04379432270665},{"$f":"CustomersCOM!AS5*Scenarios!AJ133","v":173.11857535109311},{"$f":"CustomersCOM!AT5*Scenarios!AK133","v":162.25298247433764},{"$f":"CustomersCOM!AU5*Scenarios!AL133","v":152.44171756196596},{"$f":"CustomersCOM!AV5*Scenarios!AM133","v":142.67950897415614},{"$f":"CustomersCOM!AW5*Scenarios!AN133","v":133.96611142928535},{"$f":"CustomersCOM!AX5*Scenarios!AO133","v":126.29628087213892},{"$f":"CustomersCOM!AY5*Scenarios!AP133","v":118.66479946777822},{"$f":"CustomersCOM!AZ5*Scenarios!AQ133","v":112.07147547043934},{"$f":"CustomersCOM!BA5*Scenarios!AR133","v":105.51111809308715},{"$f":"CustomersCOM!BB5*Scenarios!AS133","v":98.983562502621709},{"$f":"CustomersCOM!BC5*Scenarios!AT133","v":93.4886446901086},{"$f":"CustomersCOM!BD5*Scenarios!AU133","v":88.021201466658056},{"$f":"CustomersCOM!BE5*Scenarios!AV133","v":83.581095459324771},{"$f":"CustomersCOM!BF5*Scenarios!AW133","v":79.163189982028143},{"$f":"CustomersCOM!BG5*Scenarios!AX133","v":74.767374032117999},{"$f":"CustomersCOM!BH5*Scenarios!AY133","v":71.393537161957411},{"$f":"CustomersCOM!BI5*Scenarios!AZ133","v":68.036569476147619},{"$f":"CustomersCOM!BJ5*Scenarios!BA133","v":64.696386628766888},{"$f":"CustomersCOM!BK5*Scenarios!BB133","v":61.372904695623056},{"$f":"CustomersCOM!BL5*Scenarios!BC133","v":58.066040172144938},{"$f":"CustomersCOM!BM5*Scenarios!BD133","v":55.775709971284215},{"$f":"CustomersCOM!BN5*Scenarios!BE133","v":53.496831421427792},{"$f":"CustomersCOM!BO5*Scenarios!BF133","v":51.229347264320651},{"$f":"CustomersCOM!BP5*Scenarios!BG133","v":48.973200527999047},{"$f":"CustomersCOM!BQ5*Scenarios!BH133","v":46.728334525359053},{"$f":"CustomersCOM!BR5*Scenarios!BI133","v":44.494692852732257},{"$f":"CustomersCOM!BS5*Scenarios!BJ133","v":43.272219388468599},{"$f":"CustomersCOM!BT5*Scenarios!BK133","v":42.055858291526256},{"$f":"CustomersCOM!BU5*Scenarios!BL133","v":40.845579000068625},{"$f":"CustomersCOM!BV5*Scenarios!BM133","v":39.641351105068281},{"$f":"CustomersCOM!BW5*Scenarios!BN133","v":38.443144349542941},{"$f":"CustomersCOM!BX5*Scenarios!BO133","v":37.250928627795226},{"$f":"CustomersCOM!BY5*Scenarios!BP133","v":36.064673984656253},{"$f":"CustomersCOM!BZ5*Scenarios!BQ133","v":34.884350614732973},{"$f":"CustomersCOM!CA5*Scenarios!BR133","v":33.709928861659307},{"$f":"CustomersCOM!CB5*Scenarios!BS133","v":32.541379217351007},{"$f":"CustomersCOM!CC5*Scenarios!BT133","v":31.378672321264254},{"$f":"CustomersCOM!CD5*Scenarios!BU133","v":30.221778959657932},{"$f":"CustomersCOM!CE5*Scenarios!BV133","v":29.070670064859641},{"$f":"CustomersCOM!CF5*Scenarios!BW133","v":28.925316714535342},{"$f":"CustomersCOM!CG5*Scenarios!BX133","v":28.780690130962665},{"$f":"CustomersCOM!CH5*Scenarios!BY133","v":28.63678668030785},{"$f":"CustomersCOM!CI5*Scenarios!BZ133","v":28.493602746906312},{"$f":"CustomersCOM!CJ5*Scenarios!CA133","v":28.351134733171779},{"$f":"CustomersCOM!CK5*Scenarios!CB133","v":28.20937905950592},{"$f":"CustomersCOM!CL5*Scenarios!CC133","v":28.068332164208392}]
["Cardinia (S)",{"$f":"CustomersCOM!B6","v":97},{"$f":"CustomersCOM!C6","v":99},{"$f":"CustomersCOM!D6","v":100},{"$f":"CustomersCOM!E6","v":100},{"$f":"CustomersCOM!F6","v":101},{"$f":"CustomersCOM!G6","v":97},{"$f":"CustomersCOM!H6","v":95},{"$f":"CustomersCOM!I6","v":89},{"$f":"CustomersCOM!J6","v":89},{"$f":"CustomersCOM!K6*Scenarios!B134","v":85.666666666666671},{"$f":"CustomersCOM!L6*Scenarios!C134","v":84.238333333333344},{"$f":"CustomersCOM!M6*Scenarios!D134","v":79.817141666666672},{"$f":"CustomersCOM!N6*Scenarios!E134","v":75.418055958333341},{"$f":"CustomersCOM!O6*Scenarios!F134","v":74.040965678541667},{"$f":"CustomersCOM!P6*Scenarios!G134","v":72.670760850148952},{"$f":"CustomersCOM!Q6*Scenarios!H134","v":70.307407045898202},{"$f":"CustomersCOM!R6*Scenarios!I134","v":67.955870010668718},{"$f":"CustomersCOM!S6*Scenarios!J134","v":64.61609066061537},{"$f":"CustomersCOM!T6*Scenarios!K134","v":61.293010207312292},{"$f":"CustomersCOM!U6*Scenarios!L134","v":57.986545156275731},{"$f":"CustomersCOM!V6*Scenarios!M134","v":55.696612430494355},{"$f":"CustomersCOM!W6*Scenarios!N134","v":53.41812936834188},{"$f":"CustomersCOM!X6*Scenarios!O134","v":51.151038721500171},{"$f":"CustomersCOM!Y6*Scenarios!P134","v":49.895283527892673},{"$f":"CustomersCOM!Z6*Scenarios!Q134","v":48.645807110253209},{"$f":"CustomersCOM!AA6*Scenarios!R134","v":46.402578074701943},{"$f":"CustomersCOM!AB6*Scenarios!S134","v":44.170565184328431},{"$f":"CustomersCOM!AC6*Scenarios!T134","v":42.949712358406792},{"$f":"CustomersCOM!AD6*Scenarios!U134","v":41.734963796614757},{"$f":"CustomersCOM!AE6*Scenarios!V134","v":40.52628897763168},{"$f":"CustomersCOM!AF6*Scenarios!W134","v":39.323657532743525},{"$f":"CustomersCOM!AG6*Scenarios!X134","v":38.127039245079807},{"$f":"CustomersCOM!AH6*Scenarios!Y134","v":36.936404048854406},{"$f":"CustomersCOM!AI6*Scenarios!Z134","v":35.751722028610132},{"$f":"CustomersCOM!AJ6*Scenarios!AA134","v":34.572963418467083},{"$f":"CustomersCOM!AK6*Scenarios!AB134","v":33.400098601374751},{"$f":"CustomersCOM!AL6*Scenarios!AC134","v":32.233098108367876},{"$f":"CustomersCOM!AM6*Scenarios!AD134","v":31.071932617826036},{"$f":"CustomersCOM!AN6*Scenarios!AE134","v":29.916572954736907},{"$f":"CustomersCOM!AO6*Scenarios!AF134","v":29.766990089963222},{"$f":"CustomersCOM!AP6*Scenarios!AG134","v":29.618155139513405},{"$f":"CustomersCOM!AQ6*Scenarios!AH134","v":29.470064363815837},{"$f":"CustomersCOM!AR6*Scenarios!AI134","v":29.322714041996758},{"$f":"CustomersCOM!AS6*Scenarios!AJ134","v":29.176100471786775},{"$f":"CustomersCOM!AT6*Scenarios!AK134","v":29.03021996942784},{"$f":"CustomersCOM!AU6*Scenarios!AL134","v":28.885068869580699},{"$f":"CustomersCOM!AV6*Scenarios!AM134","v":28.740643525232795},{"$f":"CustomersCOM!AW6*Scenarios!AN134","v":28.59694030760663},{"$f":"CustomersCOM!AX6*Scenarios!AO134","v":28.453955606068597},{"$f":"CustomersCOM!AY6*Scenarios!AP134","v":28.311685828038254},{"$f":"CustomersCOM!AZ6*Scenarios!AQ134","v":28.170127398898064},{"$f":"CustomersCOM!BA6*Scenarios!AR134","v":28.029276761903574},{"$f":"CustomersCOM!BB6*Scenarios!AS134","v":27.889130378094055},{"$f":"CustomersCOM!BC6*Scenarios!AT134","v":27.749684726203586},{"$f":"CustomersCOM!BD6*Scenarios!AU134","v":27.610936302572568},{"$f":"CustomersCOM!BE6*Scenarios!AV134","v":27.472881621059706},{"$f":"CustomersCOM!BF6*Scenarios!AW134","v":27.335517212954407},{"$f":"CustomersCOM!BG6*Scenarios!AX134","v":27.198839626889637},{"$f":"CustomersCOM!BH6*Scenarios!AY134","v":27.062845428755189},{"$f":"CustomersCOM!BI6*Scenarios!AZ134","v":26.927531201611412},{"$f":"CustomersCOM!BJ6*Scenarios!BA134","v":26.792893545603356},{"$f":"CustomersCOM!BK6*Scenarios!BB134","v":26.658929077875339},{"$f":"CustomersCOM!BL6*Scenarios!BC134","v":26.525634432485962},{"$f":"CustomersCOM!BM6*Scenarios!BD134","v":26.393006260323531},{"$f":"CustomersCOM!BN6*Scenarios!BE134","v":26.261041229021913},{"$f":"CustomersCOM!BO6*Scenarios!BF134","v":26.129736022876802},{"$f":"CustomersCOM!BP6*Scenarios!BG134","v":25.999087342762419},{"$f":"CustomersCOM!BQ6*Scenarios!BH134","v":25.869091906048606},{"$f":"CustomersCOM!BR6*Scenarios!BI134","v":25.739746446518364},{"$f":"CustomersCOM!BS6*Scenarios!BJ134","v":25.611047714285771},{"$f":"CustomersCOM!BT6*Scenarios!BK134","v":25.482992475714344},{"$f":"CustomersCOM!BU6*Scenarios!BL134","v":25.355577513335771},{"$f":"CustomersCOM!BV6*Scenarios!BM134","v":25.228799625769092},{"$f":"CustomersCOM!BW6*Scenarios!BN134","v":25.102655627640246},{"$f":"CustomersCOM!BX6*Scenarios!BO134","v":24.977142349502046},{"$f":"CustomersCOM!BY6*Scenarios!BP134","v":24.852256637754536},{"$f":"CustomersCOM!BZ6*Scenarios!BQ134","v":24.727995354565763},{"$f":"CustomersCOM!CA6*Scenarios!BR134","v":24.604355377792935},{"$f":"CustomersCOM!CB6*Scenarios!BS134","v":24.481333600903969},{"$f":"CustomersCOM!CC6*Scenarios!BT134","v":24.35892693289945},{"$f":"CustomersCOM!CD6*Scenarios!BU134","v":24.237132298234954},{"$f":"CustomersCOM!CE6*Scenarios!BV134","v":24.115946636743779},{"$f":"CustomersCOM!CF6*Scenarios!BW134","v":23.995366903560061},{"$f":"CustomersCOM!CG6*Scenarios!BX134","v":23.875390069042261},{"$f":"CustomersCOM!CH6*Scenarios!BY134","v":23.756013118697052},{"$f":"CustomersCOM!CI6*Scenarios!BZ134","v":23.637233053103568},{"$f":"CustomersCOM!CJ6*Scenarios!CA134","v":23.519046887838051},{"$f":"CustomersCOM!CK6*Scenarios!CB134","v":23.401451653398862},{"$f":"CustomersCOM!CL6*Scenarios!CC134","v":23.284444395131867}]
["Casey (C)",{"$f":"CustomersCOM!B7","v":142},{"$f":"CustomersCOM!C7","v":145},{"$f":"CustomersCOM!D7","v":142},{"$f":"CustomersCOM!E7","v":141},{"$f":"CustomersCOM!F7","v":134},{"$f":"CustomersCOM!G7","v":141},{"$f":"CustomersCOM!H7","v":141},{"$f":"CustomersCOM!I7","v":145},{"$f":"CustomersCOM!J7","v":145},{"$f":"CustomersCOM!K7*Scenarios!B135","v":142.66666666666666},{"$f":"CustomersCOM!L7*Scenarios!C135","v":140.95333333333332},{"$f":"CustomersCOM!M7*Scenarios!D135","v":133.24856666666665},{"$f":"CustomersCOM!N7*Scenarios!E135","v":125.58232383333332},{"$f":"CustomersCOM!O7*Scenarios!F135","v":122.95441221416665},{"$f":"CustomersCOM!P7*Scenarios!G135","v":120.33964015309581},{"$f":"CustomersCOM!Q7*Scenarios!H135","v":114.73794195233033},{"$f":"CustomersCOM!R7*Scenarios!I135","v":110.16425224256868},{"$f":"CustomersCOM!S7*Scenarios!J135","v":103.61343098135583},{"$f":"CustomersCOM!T7*Scenarios!K135","v":98.095363826449059},{"$f":"CustomersCOM!U7*Scenarios!L135","v":93.604887007316819},{"$f":"CustomersCOM!V7*Scenarios!M135","v":89.136862572280236},{"$f":"CustomersCOM!W7*Scenarios!N135","v":84.691178259418834},{"$f":"CustomersCOM!X7*Scenarios!O135","v":80.267722368121738},{"$f":"CustomersCOM!Y7*Scenarios!P135","v":77.866383756281124},{"$f":"CustomersCOM!Z7*Scenarios!Q135","v":75.477051837499715},{"$f":"CustomersCOM!AA7*Scenarios!R135","v":72.099666578312224},{"$f":"CustomersCOM!AB7*Scenarios!S135","v":68.739168245420657},{"$f":"CustomersCOM!AC7*Scenarios!T135","v":65.395472404193555},{"$f":"CustomersCOM!AD7*Scenarios!U135","v":62.068495042172586},{"$f":"CustomersCOM!AE7*Scenarios!V135","v":58.758152566961726},{"$f":"CustomersCOM!AF7*Scenarios!W135","v":56.464361804126916},{"$f":"CustomersCOM!AG7*Scenarios!X135","v":54.18203999510628},{"$f":"CustomersCOM!AH7*Scenarios!Y135","v":51.911129795130748},{"$f":"CustomersCOM!AI7*Scenarios!Z135","v":49.651574146155092},{"$f":"CustomersCOM!AJ7*Scenarios!AA135","v":47.403316275424316},{"$f":"CustomersCOM!AK7*Scenarios!AB135","v":45.166299694047197},{"$f":"CustomersCOM!AL7*Scenarios!AC135","v":42.940468195576962},{"$f":"CustomersCOM!AM7*Scenarios!AD135","v":41.725765854599075},{"$f":"CustomersCOM!AN7*Scenarios!AE135","v":40.517137025326079},{"$f":"CustomersCOM!AO7*Scenarios!AF135","v":39.314551340199451},{"$f":"CustomersCOM!AP7*Scenarios!AG135","v":38.117978583498456},{"$f":"CustomersCOM!AQ7*Scenarios!AH135","v":36.927388690580962},{"$f":"CustomersCOM!AR7*Scenarios!AI135","v":35.742751747128054},{"$f":"CustomersCOM!AS7*Scenarios!AJ135","v":34.564037988392414},{"$f":"CustomersCOM!AT7*Scenarios!AK135","v":33.391217798450455},{"$f":"CustomersCOM!AU7*Scenarios!AL135","v":32.224261709458204},{"$f":"CustomersCOM!AV7*Scenarios!AM135","v":31.063140400910914},{"$f":"CustomersCOM!AW7*Scenarios!AN135","v":29.90782469890636},{"$f":"CustomersCOM!AX7*Scenarios!AO135","v":29.758285575411829},{"$f":"CustomersCOM!AY7*Scenarios!AP135","v":29.609494147534772},{"$f":"CustomersCOM!AZ7*Scenarios!AQ135","v":29.461446676797099},{"$f":"CustomersCOM!BA7*Scenarios!AR135","v":29.314139443413115},{"$f":"CustomersCOM!BB7*Scenarios!AS135","v":29.16756874619605},{"$f":"CustomersCOM!BC7*Scenarios!AT135","v":29.02173090246507},{"$f":"CustomersCOM!BD7*Scenarios!AU135","v":28.876622247952746},{"$f":"CustomersCOM!BE7*Scenarios!AV135","v":28.73223913671298},{"$f":"CustomersCOM!BF7*Scenarios!AW135","v":28.588577941029417},{"$f":"CustomersCOM!BG7*Scenarios!AX135","v":28.44563505132427},{"$f":"CustomersCOM!BH7*Scenarios!AY135","v":28.303406876067648},{"$f":"CustomersCOM!BI7*Scenarios!AZ135","v":28.161889841687309},{"$f":"CustomersCOM!BJ7*Scenarios!BA135","v":28.021080392478872},{"$f":"CustomersCOM!BK7*Scenarios!BB135","v":27.880974990516478},{"$f":"CustomersCOM!BL7*Scenarios!BC135","v":27.741570115563896},{"$f":"CustomersCOM!BM7*Scenarios!BD135","v":27.602862264986076},{"$f":"CustomersCOM!BN7*Scenarios!BE135","v":27.464847953661145},{"$f":"CustomersCOM!BO7*Scenarios!BF135","v":27.327523713892841},{"$f":"CustomersCOM!BP7*Scenarios!BG135","v":27.190886095323378},{"$f":"CustomersCOM!BQ7*Scenarios!BH135","v":27.054931664846762},{"$f":"CustomersCOM!BR7*Scenarios!BI135","v":26.919657006522527},{"$f":"CustomersCOM!BS7*Scenarios!BJ135","v":26.785058721489914},{"$f":"CustomersCOM!BT7*Scenarios!BK135","v":26.651133427882463},{"$f":"CustomersCOM!BU7*Scenarios!BL135","v":26.517877760743051},{"$f":"CustomersCOM!BV7*Scenarios!BM135","v":26.385288371939335},{"$f":"CustomersCOM!BW7*Scenarios!BN135","v":26.253361930079638},{"$f":"CustomersCOM!BX7*Scenarios!BO135","v":26.12209512042924},{"$f":"CustomersCOM!BY7*Scenarios!BP135","v":25.991484644827093},{"$f":"CustomersCOM!BZ7*Scenarios!BQ135","v":25.861527221602959},{"$f":"CustomersCOM!CA7*Scenarios!BR135","v":25.732219585494946},{"$f":"CustomersCOM!CB7*Scenarios!BS135","v":25.603558487567472},{"$f":"CustomersCOM!CC7*Scenarios!BT135","v":25.475540695129634},{"$f":"CustomersCOM!CD7*Scenarios!BU135","v":25.348162991653986},{"$f":"CustomersCOM!CE7*Scenarios!BV135","v":25.221422176695715},{"$f":"CustomersCOM!CF7*Scenarios!BW135","v":25.095315065812237},{"$f":"CustomersCOM!CG7*Scenarios!BX135","v":24.969838490483177},{"$f":"CustomersCOM!CH7*Scenarios!BY135","v":24.844989298030761},{"$f":"CustomersCOM!CI7*Scenarios!BZ135","v":24.720764351540605},{"$f":"CustomersCOM!CJ7*Scenarios!CA135","v":24.597160529782901},{"$f":"CustomersCOM!CK7*Scenarios!CB135","v":24.474174727133985},{"$f":"CustomersCOM!CL7*Scenarios!CC135","v":24.351803853498314}]
["Frankston (C)",{"$f":"CustomersCOM!B8","v":0},{"$f":"CustomersCOM!C8","v":1},{"$f":"CustomersCOM!D8","v":1},{"$f":"CustomersCOM!E8","v":1},{"$f":"CustomersCOM!F8","v":1},{"$f":"CustomersCOM!G8","v":1},{"$f":"CustomersCOM!H8","v":1},{"$f":"CustomersCOM!I8","v":0},{"$f":"CustomersCOM!J8","v":0},{"$f":"CustomersCOM!K8*Scenarios!B136","v":-0.33333333333333331},{"$f":"CustomersCOM!L8*Scenarios!C136","v":-0.33333333333333331},{"$f":"CustomersCOM!M8*Scenarios!D136","v":-0.33333333333333331},{"$f":"CustomersCOM!N8*Scenarios!E136","v":-0.33333333333333331},{"$f":"CustomersCOM!O8*Scenarios!F136","v":-0.33333333333333331},{"$f":"CustomersCOM!P8*Scenarios!G136","v":-0.33333333333333331},{"$f":"CustomersCOM!Q8*Scenarios!H136","v":-0.33333333333333331},{"$f":"CustomersCOM!R8*Scenarios!I136","v":-0.33333333333333331},{"$f":"CustomersCOM!S8*Scenarios!J136","v":-0.33333333333333331},{"$f":"CustomersCOM!T8*Scenarios!K136","v":-0.33333333333333331},{"$f":"CustomersCOM!U8*Scenarios!L136","v":-0.33333333333333331},{"$f":"CustomersCOM!V8*Scenarios!M136","v":-0.33333333333333331},{"$f":"CustomersCOM!W8*Scenarios!N136","v":-0.33333333333333331},{"$f":"CustomersCOM!X8*Scenarios!O136","v":-0.33333333333333331},{"$f":"CustomersCOM!Y8*Scenarios!P136","v":-0.33333333333333331},{"$f":"CustomersCOM!Z8*Scenarios!Q136","v":-0.33333333333333331},{"$f":"CustomersCOM!AA8*Scenarios!R136","v":-0.33333333333333331},{"$f":"CustomersCOM!AB8*Scenarios!S136","v":-0.33333333333333331},{"$f":"CustomersCOM!AC8*Scenarios!T136","v":-0.33333333333333331},{"$f":"CustomersCOM!AD8*Scenarios!U136","v":-0.33333333333333331},{"$f":"CustomersCOM!AE8*Scenarios!V136","v":-0.33333333333333331},{"$f":"CustomersCOM!AF8*Scenarios!W136","v":-0.33333333333333331},{"$f":"CustomersCOM!AG8*Scenarios!X136","v":-0.33333333333333331},{"$f":"CustomersCOM!AH8*Scenarios!Y136","v":-0.33333333333333331},{"$f":"CustomersCOM!AI8*Scenarios!Z136","v":-0.33333333333333331},{"$f":"CustomersCOM!AJ8*Scenarios!AA136","v":-0.33333333333333331},{"$f":"CustomersCOM!AK8*Scenarios!AB136","v":-0.33333333333333331},{"$f":"CustomersCOM!AL8*Scenarios!AC136","v":-0.33333333333333331},{"$f":"CustomersCOM!AM8*Scenarios!AD136","v":-0.33333333333333331},{"$f":"CustomersCOM!AN8*Scenarios!AE136","v":-0.33333333333333331},{"$f":"CustomersCOM!AO8*Scenarios!AF136","v":-0.33333333333333331},{"$f":"CustomersCOM!AP8*Scenarios!AG136","v":-0.33333333333333331},{"$f":"CustomersCOM!AQ8*Scenarios!AH136","v":-0.33333333333333331},{"$f":"CustomersCOM!AR8*Scenarios!AI136","v":-0.33333333333333331},{"$f":"CustomersCOM!AS8*Scenarios!AJ136","v":-0.33333333333333331},{"$f":"CustomersCOM!AT8*Scenarios!AK136","v":-0.33333333333333331},{"$f":"CustomersCOM!AU8*Scenarios!AL136","v":-0.33333333333333331},{"$f":"CustomersCOM!AV8*Scenarios!AM136","v":-0.33333333333333331},{"$f":"CustomersCOM!AW8*Scenarios!AN136","v":-0.33333333333333331},{"$f":"CustomersCOM!AX8*Scenarios!AO136","v":-0.33333333333333331},{"$f":"CustomersCOM!AY8*Scenarios!AP136","v":-0.33333333333333331},{"$f":"CustomersCOM!AZ8*Scenarios!AQ136","v":-0.33333333333333331},{"$f":"CustomersCOM!BA8*Scenarios!AR136","v":-0.33333333333333331},{"$f":"CustomersCOM!BB8*Scenarios!AS136","v":-0.33333333333333331},{"$f":"CustomersCOM!BC8*Scenarios!AT136","v":-0.33333333333333331},{"$f":"CustomersCOM!BD8*Scenarios!AU136","v":-0.33333333333333331},{"$f":"CustomersCOM!BE8*Scenarios!AV136","v":-0.33333333333333331},{"$f":"CustomersCOM!BF8*Scenarios!AW136","v":-0.33333333333333331},{"$f":"CustomersCOM!BG8*Scenarios!AX136","v":-0.33333333333333331},{"$f":"CustomersCOM!BH8*Scenarios!AY136","v":-0.33333333333333331},{"$f":"CustomersCOM!BI8*Scenarios!AZ136","v":-0.33333333333333331},{"$f":"CustomersCOM!BJ8*Scenarios!BA136","v":-0.33333333333333331},{"$f":"CustomersCOM!BK8*Scenarios!BB136","v":-0.33333333333333331},{"$f":"CustomersCOM!BL8*Scenarios!BC136","v":-0.33333333333333331},{"$f":"CustomersCOM!BM8*Scenarios!BD136","v":-0.33333333333333331},{"$f":"CustomersCOM!BN8*Scenarios!BE136","v":-0.33333333333333331},{"$f":"CustomersCOM!BO8*Scenarios!BF136","v":-0.33333333333333331},{"$f":"CustomersCOM!BP8*Scenarios!BG136","v":-0.33333333333333331},{"$f":"CustomersCOM!BQ8*Scenarios!BH136","v":-0.33333333333333331},{"$f":"CustomersCOM!BR8*Scenarios!BI136","v":-0.33333333333333331},{"$f":"CustomersCOM!BS8*Scenarios!BJ136","v":-0.33333333333333331},{"$f":"CustomersCOM!BT8*Scenarios!BK136","v":-0.33333333333333331},{"$f":"CustomersCOM!BU8*Scenarios!BL136","v":-0.33333333333333331},{"$f":"CustomersCOM!BV8*Scenarios!BM136","v":-0.33333333333333331},{"$f":"CustomersCOM!BW8*Scenarios!BN136","v":-0.33333333333333331},{"$f":"CustomersCOM!BX8*Scenarios!BO136","v":-0.33333333333333331},{"$f":"CustomersCOM!BY8*Scenarios!BP136","v":-0.33333333333333331},{"$f":"CustomersCOM!BZ8*Scenarios!BQ136","v":-0.33333333333333331},{"$f":"CustomersCOM!CA8*Scenarios!BR136","v":-0.33333333333333331},{"$f":"CustomersCOM!CB8*Scenarios!BS136","v":-0.33333333333333331},{"$f":"CustomersCOM!CC8*Scenarios!BT136","v":-0.33333333333333331},{"$f":"CustomersCOM!CD8*Scenarios!BU136","v":-0.33333333333333331},{"$f":"CustomersCOM!CE8*Scenarios!BV136","v":-0.33333333333333331},{"$f":"CustomersCOM!CF8*Scenarios!BW136","v":-0.33333333333333331},{"$f":"CustomersCOM!CG8*Scenarios!BX136","v":-0.33333333333333331},{"$f":"CustomersCOM!CH8*Scenarios!BY136","v":-0.33333333333333331},{"$f":"CustomersCOM!CI8*Scenarios!BZ136","v":-0.33333333333333331},{"$f":"CustomersCOM!CJ8*Scenarios!CA136","v":-0.33333333333333331},{"$f":"CustomersCOM!CK8*Scenarios!CB136","v":-0.33333333333333331},{"$f":"CustomersCOM!CL8*Scenarios!CC136","v":-0.33333333333333331}]
["Glen Eira (C)",{"$f":"CustomersCOM!B9","v":965},{"$f":"CustomersCOM!C9","v":974},{"$f":"CustomersCOM!D9","v":977},{"$f":"CustomersCOM!E9","v":972},{"$f":"CustomersCOM!F9","v":979},{"$f":"CustomersCOM!G9","v":997},{"$f":"CustomersCOM!H9","v":1018},{"$f":"CustomersCOM!I9","v":1011},{"$f":"CustomersCOM!J9","v":993},{"$f":"CustomersCOM!K9*Scenarios!B137","v":975.33333333333337},{"$f":"CustomersCOM!L9*Scenarios!C137","v":958.45666666666671},{"$f":"CustomersCOM!M9*Scenarios!D137","v":899.66438333333338},{"$f":"CustomersCOM!N9*Scenarios!E137","v":840.16606141666671},{"$f":"CustomersCOM!O9*Scenarios!F137","v":826.96523110958333},{"$f":"CustomersCOM!P9*Scenarios!G137","v":810.83040495403543},{"$f":"CustomersCOM!Q9*Scenarios!H137","v":775.7762529292653},{"$f":"CustomersCOM!R9*Scenarios!I137","v":740.89737166461896},{"$f":"CustomersCOM!S9*Scenarios!J137","v":690.19288480629587},{"$f":"CustomersCOM!T9*Scenarios!K137","v":642.74192038226442},{"$f":"CustomersCOM!U9*Scenarios!L137","v":607.52821078035311},{"$f":"CustomersCOM!V9*Scenarios!M137","v":573.49056972645133},{"$f":"CustomersCOM!W9*Scenarios!N137","v":534.62311687781903},{"$f":"CustomersCOM!X9*Scenarios!O137","v":497.95000129342992},{"$f":"CustomersCOM!Y9*Scenarios!P137","v":481.46025128696277},{"$f":"CustomersCOM!Z9*Scenarios!Q137","v":460.05295003052794},{"$f":"CustomersCOM!AA9*Scenarios!R137","v":434.75268528037532},{"$f":"CustomersCOM!AB9*Scenarios!S137","v":406.57892185397344},{"$f":"CustomersCOM!AC9*Scenarios!T137","v":378.54602724470357},{"$f":"CustomersCOM!AD9*Scenarios!U137","v":352.65329710848005},{"$f":"CustomersCOM!AE9*Scenarios!V137","v":328.89003062293767},{"$f":"CustomersCOM!AF9*Scenarios!W137","v":307.24558046982298},{"$f":"CustomersCOM!AG9*Scenarios!X137","v":286.70935256747384},{"$f":"CustomersCOM!AH9*Scenarios!Y137","v":267.27580580463649},{"$f":"CustomersCOM!AI9*Scenarios!Z137","v":249.9394267756133},{"$f":"CustomersCOM!AJ9*Scenarios!AA137","v":233.68972964173523},{"$f":"CustomersCOM!AK9*Scenarios!AB137","v":218.52128099352655},{"$f":"CustomersCOM!AL9*Scenarios!AC137","v":204.42867458855892},{"$f":"CustomersCOM!AM9*Scenarios!AD137","v":191.40653121561613},{"$f":"CustomersCOM!AN9*Scenarios!AE137","v":179.44949855953806},{"$f":"CustomersCOM!AO9*Scenarios!AF137","v":168.55225106674035},{"$f":"CustomersCOM!AP9*Scenarios!AG137","v":157.70948981140666},{"$f":"CustomersCOM!AQ9*Scenarios!AH137","v":147.92094236234962},{"$f":"CustomersCOM!AR9*Scenarios!AI137","v":139.18133765053787},{"$f":"CustomersCOM!AS9*Scenarios!AJ137","v":130.48543096228519},{"$f":"CustomersCOM!AT9*Scenarios!AK137","v":122.83300380747377},{"$f":"CustomersCOM!AU9*Scenarios!AL137","v":115.2188387884364},{"$f":"CustomersCOM!AV9*Scenarios!AM137","v":108.64274459449422},{"$f":"CustomersCOM!AW9*Scenarios!AN137","v":102.09953087152175},{"$f":"CustomersCOM!AX9*Scenarios!AO137","v":96.589033217164143},{"$f":"CustomersCOM!AY9*Scenarios!AP137","v":91.106088051078316},{"$f":"CustomersCOM!AZ9*Scenarios!AQ137","v":85.650557610822929},{"$f":"CustomersCOM!BA9*Scenarios!AR137","v":81.22230482276882},{"$f":"CustomersCOM!BB9*Scenarios!AS137","v":76.81619329865498},{"$f":"CustomersCOM!BC9*Scenarios!AT137","v":72.432112332161708},{"$f":"CustomersCOM!BD9*Scenarios!AU137","v":69.069951770500893},{"$f":"CustomersCOM!BE9*Scenarios!AV137","v":65.724602011648386},{"$f":"CustomersCOM!BF9*Scenarios!AW137","v":62.395979001590142},{"$f":"CustomersCOM!BG9*Scenarios!AX137","v":59.083999106582191},{"$f":"CustomersCOM!BH9*Scenarios!AY137","v":56.78857911104928},{"$f":"CustomersCOM!BI9*Scenarios!AZ137","v":54.504636215494031},{"$f":"CustomersCOM!BJ9*Scenarios!BA137","v":52.232113034416564},{"$f":"CustomersCOM!BK9*Scenarios!BB137","v":49.97095246924448},{"$f":"CustomersCOM!BL9*Scenarios!BC137","v":47.721097706898256},{"$f":"CustomersCOM!BM9*Scenarios!BD137","v":45.482492218363767},{"$f":"CustomersCOM!BN9*Scenarios!BE137","v":43.25507975727195},{"$f":"CustomersCOM!BO9*Scenarios!BF137","v":42.038804358485592},{"$f":"CustomersCOM!BP9*Scenarios!BG137","v":40.828610336693167},{"$f":"CustomersCOM!BQ9*Scenarios!BH137","v":39.6244672850097},{"$f":"CustomersCOM!BR9*Scenarios!BI137","v":38.426344948584649},{"$f":"CustomersCOM!BS9*Scenarios!BJ137","v":37.234213223841728},{"$f":"CustomersCOM!BT9*Scenarios!BK137","v":36.04804215772252},{"$f":"CustomersCOM!BU9*Scenarios!BL137","v":34.867801946933909},{"$f":"CustomersCOM!BV9*Scenarios!BM137","v":33.693462937199243},{"$f":"CustomersCOM!BW9*Scenarios!BN137","v":32.524995622513245},{"$f":"CustomersCOM!BX9*Scenarios!BO137","v":31.362370644400677},{"$f":"CustomersCOM!BY9*Scenarios!BP137","v":30.205558791178674},{"$f":"CustomersCOM!BZ9*Scenarios!BQ137","v":29.054530997222781},{"$f":"CustomersCOM!CA9*Scenarios!BR137","v":28.909258342236665},{"$f":"CustomersCOM!CB9*Scenarios!BS137","v":28.764712050525482},{"$f":"CustomersCOM!CC9*Scenarios!BT137","v":28.620888490272854},{"$f":"CustomersCOM!CD9*Scenarios!BU137","v":28.477784047821491},{"$f":"CustomersCOM!CE9*Scenarios!BV137","v":28.335395127582384},{"$f":"CustomersCOM!CF9*Scenarios!BW137","v":28.193718151944474},{"$f":"CustomersCOM!CG9*Scenarios!BX137","v":28.052749561184751},{"$f":"CustomersCOM!CH9*Scenarios!BY137","v":27.912485813378826},{"$f":"CustomersCOM!CI9*Scenarios!BZ137","v":27.77292338431193},{"$f":"CustomersCOM!CJ9*Scenarios!CA137","v":27.634058767390371},{"$f":"CustomersCOM!CK9*Scenarios!CB137","v":27.495888473553418},{"$f":"CustomersCOM!CL9*Scenarios!CC137","v":27.358409031185651}]
["Greater Dandenong (C)",{"$f":"CustomersCOM!B10","v":1287},{"$f":"CustomersCOM!C10","v":1350},{"$f":"CustomersCOM!D10","v":1324},{"$f":"CustomersCOM!E10","v":1324},{"$f":"CustomersCOM!F10","v":1337},{"$f":"CustomersCOM!G10","v":1322},{"$f":"CustomersCOM!H10","v":1320},{"$f":"CustomersCOM!I10","v":1258},{"$f":"CustomersCOM!J10","v":1255},{"$f":"CustomersCOM!K10*Scenarios!B138","v":1213.3333333333333},{"$f":"CustomersCOM!L10*Scenarios!C138","v":1212.2666666666667},{"$f":"CustomersCOM!M10*Scenarios!D138","v":1128.2053333333333},{"$f":"CustomersCOM!N10*Scenarios!E138","v":1048.5643066666667},{"$f":"CustomersCOM!O10*Scenarios!F138","v":1051.3214851333332},{"$f":"CustomersCOM!P10*Scenarios!G138","v":1049.0648777076665},{"$f":"CustomersCOM!Q10*Scenarios!H138","v":993.81955331912809},{"$f":"CustomersCOM!R10*Scenarios!I138","v":938.85045555253248},{"$f":"CustomersCOM!S10*Scenarios!J138","v":873.15620327476984},{"$f":"CustomersCOM!T10*Scenarios!K138","v":811.79042225839601},{"$f":"CustomersCOM!U10*Scenarios!L138","v":757.73147014710401},{"$f":"CustomersCOM!V10*Scenarios!M138","v":706.94281279636846},{"$f":"CustomersCOM!W10*Scenarios!N138","v":657.40809873238663},{"$f":"CustomersCOM!X10*Scenarios!O138","v":612.12105823872469},{"$f":"CustomersCOM!Y10*Scenarios!P138","v":587.06045294753108},{"$f":"CustomersCOM!Z10*Scenarios!Q138","v":551.12515068279345},{"$f":"CustomersCOM!AA10*Scenarios!R138","v":513.36952492937951},{"$f":"CustomersCOM!AB10*Scenarios!S138","v":477.80267730473258},{"$f":"CustomersCOM!AC10*Scenarios!T138","v":445.4136639182089},{"$f":"CustomersCOM!AD10*Scenarios!U138","v":415.18659559861783},{"$f":"CustomersCOM!AE10*Scenarios!V138","v":387.11066262062474},{"$f":"CustomersCOM!AF10*Scenarios!W138","v":361.17510930752161},{"$f":"CustomersCOM!AG10*Scenarios!X138","v":336.369233760984},{"$f":"CustomersCOM!AH10*Scenarios!Y138","v":313.68738759217911},{"$f":"CustomersCOM!AI10*Scenarios!Z138","v":293.11895065421822},{"$f":"CustomersCOM!AJ10*Scenarios!AA138","v":273.65335590094713},{"$f":"CustomersCOM!AK10*Scenarios!AB138","v":255.28508912144241},{"$f":"CustomersCOM!AL10*Scenarios!AC138","v":238.00866367583521},{"$f":"CustomersCOM!AM10*Scenarios!AD138","v":222.81862035745604},{"$f":"CustomersCOM!AN10*Scenarios!AE138","v":208.70452725566875},{"$f":"CustomersCOM!AO10*Scenarios!AF138","v":195.66100461939041},{"$f":"CustomersCOM!AP10*Scenarios!AG138","v":182.68269959629345},{"$f":"CustomersCOM!AQ10*Scenarios!AH138","v":170.76928609831197},{"$f":"CustomersCOM!AR10*Scenarios!AI138","v":159.91543966782041},{"$f":"CustomersCOM!AS10*Scenarios!AJ138","v":150.1158624694813},{"$f":"CustomersCOM!AT10*Scenarios!AK138","v":140.36528315713389},{"$f":"CustomersCOM!AU10*Scenarios!AL138","v":131.66345674134823},{"$f":"CustomersCOM!AV10*Scenarios!AM138","v":124.00513945764149},{"$f":"CustomersCOM!AW10*Scenarios!AN138","v":116.38511376035328},{"$f":"CustomersCOM!AX10*Scenarios!AO138","v":109.80318819155151},{"$f":"CustomersCOM!AY10*Scenarios!AP138","v":103.25417225059375},{"$f":"CustomersCOM!AZ10*Scenarios!AQ138","v":97.737901389340792},{"$f":"CustomersCOM!BA10*Scenarios!AR138","v":92.249211882394093},{"$f":"CustomersCOM!BB10*Scenarios!AS138","v":86.787965822982116},{"$f":"CustomersCOM!BC10*Scenarios!AT138","v":82.354025993867211},{"$f":"CustomersCOM!BD10*Scenarios!AU138","v":77.94225586389787},{"$f":"CustomersCOM!BE10*Scenarios!AV138","v":73.552544584578385},{"$f":"CustomersCOM!BF10*Scenarios!AW138","v":70.184781861655495},{"$f":"CustomersCOM!BG10*Scenarios!AX138","v":66.833857952347216},{"$f":"CustomersCOM!BH10*Scenarios!AY138","v":63.499688662585477},{"$f":"CustomersCOM!BI10*Scenarios!AZ138","v":60.182190219272549},{"$f":"CustomersCOM!BJ10*Scenarios!BA138","v":56.881279268176186},{"$f":"CustomersCOM!BK10*Scenarios!BB138","v":54.596872871835302},{"$f":"CustomersCOM!BL10*Scenarios!BC138","v":52.323888507476127},{"$f":"CustomersCOM!BM10*Scenarios!BD138","v":50.062269064938747},{"$f":"CustomersCOM!BN10*Scenarios!BE138","v":47.81195771961405},{"$f":"CustomersCOM!BO10*Scenarios!BF138","v":45.57289793101598},{"$f":"CustomersCOM!BP10*Scenarios!BG138","v":43.345033441360897},{"$f":"CustomersCOM!BQ10*Scenarios!BH138","v":42.128308274154094},{"$f":"CustomersCOM!BR10*Scenarios!BI138","v":40.917666732783324},{"$f":"CustomersCOM!BS10*Scenarios!BJ138","v":39.713078399119411},{"$f":"CustomersCOM!BT10*Scenarios!BK138","v":38.514513007123817},{"$f":"CustomersCOM!BU10*Scenarios!BL138","v":37.321940442088199},{"$f":"CustomersCOM!BV10*Scenarios!BM138","v":36.135330739877759},{"$f":"CustomersCOM!BW10*Scenarios!BN138","v":34.954654086178373},{"$f":"CustomersCOM!BX10*Scenarios!BO138","v":33.779880815747482},{"$f":"CustomersCOM!BY10*Scenarios!BP138","v":32.610981411668746},{"$f":"CustomersCOM!BZ10*Scenarios!BQ138","v":31.4479265046104},{"$f":"CustomersCOM!CA10*Scenarios!BR138","v":30.290686872087349},{"$f":"CustomersCOM!CB10*Scenarios!BS138","v":29.139233437726912},{"$f":"CustomersCOM!CC10*Scenarios!BT138","v":28.993537270538276},{"$f":"CustomersCOM!CD10*Scenarios!BU138","v":28.848569584185586},{"$f":"CustomersCOM!CE10*Scenarios!BV138","v":28.704326736264658},{"$f":"CustomersCOM!CF10*Scenarios!BW138","v":28.560805102583334},{"$f":"CustomersCOM!CG10*Scenarios!BX138","v":28.418001077070418},{"$f":"CustomersCOM!CH10*Scenarios!BY138","v":28.275911071685066},{"$f":"CustomersCOM!CI10*Scenarios!BZ138","v":28.134531516326639},{"$f":"CustomersCOM!CJ10*Scenarios!CA138","v":27.993858858745007},{"$f":"CustomersCOM!CK10*Scenarios!CB138","v":27.853889564451283},{"$f":"CustomersCOM!CL10*Scenarios!CC138","v":27.714620116629025}]
["Kingston (C)",{"$f":"CustomersCOM!B11","v":1219},{"$f":"CustomersCOM!C11","v":1254},{"$f":"CustomersCOM!D11","v":1241},{"$f":"CustomersCOM!E11","v":1256},{"$f":"CustomersCOM!F11","v":1259},{"$f":"CustomersCOM!G11","v":1248},{"$f":"CustomersCOM!H11","v":1243},{"$f":"CustomersCOM!I11","v":1199},{"$f":"CustomersCOM!J11","v":1190},{"$f":"CustomersCOM!K11*Scenarios!B139","v":1158},{"$f":"CustomersCOM!L11*Scenarios!C139","v":1148.21},{"$f":"CustomersCOM!M11*Scenarios!D139","v":1070.4689499999999},{"$f":"CustomersCOM!N11*Scenarios!E139","v":995.11660524999991},{"$f":"CustomersCOM!O11*Scenarios!F139","v":991.14102222374993},{"$f":"CustomersCOM!P11*Scenarios!G139","v":981.1853171126312},{"$f":"CustomersCOM!Q11*Scenarios!H139","v":931.27939052706802},{"$f":"CustomersCOM!R11*Scenarios!I139","v":882.62299357443271},{"$f":"CustomersCOM!S11*Scenarios!J139","v":821.20987860656055},{"$f":"CustomersCOM!T11*Scenarios!K139","v":764.10382921352777},{"$f":"CustomersCOM!U11*Scenarios!L139","v":716.28331006746009},{"$f":"CustomersCOM!V11*Scenarios!M139","v":670.70189351712281},{"$f":"CustomersCOM!W11*Scenarios!N139","v":624.34838404953723},{"$f":"CustomersCOM!X11*Scenarios!O139","v":581.22664212928953},{"$f":"CustomersCOM!Y11*Scenarios!P139","v":559.3205089186431},{"$f":"CustomersCOM!Z11*Scenarios!Q139","v":528.52390637404983},{"$f":"CustomersCOM!AA11*Scenarios!R139","v":492.88128684217958},{"$f":"CustomersCOM!AB11*Scenarios!S139","v":459.41688040796868},{"$f":"CustomersCOM!AC11*Scenarios!T139","v":428.11979600592883},{"$f":"CustomersCOM!AD11*Scenarios!U139","v":398.97919702589917},{"$f":"CustomersCOM!AE11*Scenarios!V139","v":371.98430104076965},{"$f":"CustomersCOM!AF11*Scenarios!W139","v":347.12437953556582},{"$f":"CustomersCOM!AG11*Scenarios!X139","v":323.38875763788798},{"$f":"CustomersCOM!AH11*Scenarios!Y139","v":301.77181384969856},{"$f":"CustomersCOM!AI11*Scenarios!Z139","v":281.26295478045006},{"$f":"CustomersCOM!AJ11*Scenarios!AA139","v":262.85664000654782},{"$f":"CustomersCOM!AK11*Scenarios!AB139","v":245.54235680651507},{"$f":"CustomersCOM!AL11*Scenarios!AC139","v":229.31464502248249},{"$f":"CustomersCOM!AM11*Scenarios!AD139","v":214.16807179737009},{"$f":"CustomersCOM!AN11*Scenarios!AE139","v":200.09723143838323},{"$f":"CustomersCOM!AO11*Scenarios!AF139","v":187.09674528119132},{"$f":"CustomersCOM!AP11*Scenarios!AG139","v":175.16126155478537},{"$f":"CustomersCOM!AQ11*Scenarios!AH139","v":164.28545524701144},{"$f":"CustomersCOM!AR11*Scenarios!AI139","v":154.46402797077639},{"$f":"CustomersCOM!AS11*Scenarios!AJ139","v":144.6917078309225},{"$f":"CustomersCOM!AT11*Scenarios!AK139","v":135.96824929176788},{"$f":"CustomersCOM!AU11*Scenarios!AL139","v":127.28840804530904},{"$f":"CustomersCOM!AV11*Scenarios!AM139","v":119.6519660050825},{"$f":"CustomersCOM!AW11*Scenarios!AN139","v":113.05370617505709},{"$f":"CustomersCOM!AX11*Scenarios!AO139","v":106.4884376441818},{"$f":"CustomersCOM!AY11*Scenarios!AP139","v":99.955995455960888},{"$f":"CustomersCOM!AZ11*Scenarios!AQ139","v":94.456215478681088},{"$f":"CustomersCOM!BA11*Scenarios!AR139","v":88.983934401287684},{"$f":"CustomersCOM!BB11*Scenarios!AS139","v":84.539014729281249},{"$f":"CustomersCOM!BC11*Scenarios!AT139","v":80.11631965563484},{"$f":"CustomersCOM!BD11*Scenarios!AU139","v":75.71573805735666},{"$f":"CustomersCOM!BE11*Scenarios!AV139","v":71.337159367069873},{"$f":"CustomersCOM!BF11*Scenarios!AW139","v":67.980473570234523},{"$f":"CustomersCOM!BG11*Scenarios!AX139","v":64.640571202383356},{"$f":"CustomersCOM!BH11*Scenarios!AY139","v":61.317368346371438},{"$f":"CustomersCOM!BI11*Scenarios!AZ139","v":58.010781504639581},{"$f":"CustomersCOM!BJ11*Scenarios!BA139","v":55.720727597116387},{"$f":"CustomersCOM!BK11*Scenarios!BB139","v":53.442123959130804},{"$f":"CustomersCOM!BL11*Scenarios!BC139","v":51.174913339335149},{"$f":"CustomersCOM!BM11*Scenarios!BD139","v":48.919038772638473},{"$f":"CustomersCOM!BN11*Scenarios!BE139","v":46.674443578775282},{"$f":"CustomersCOM!BO11*Scenarios!BF139","v":44.441071360881409},{"$f":"CustomersCOM!BP11*Scenarios!BG139","v":43.218866004077},{"$f":"CustomersCOM!BQ11*Scenarios!BH139","v":42.002771674056618},{"$f":"CustomersCOM!BR11*Scenarios!BI139","v":40.792757815686336},{"$f":"CustomersCOM!BS11*Scenarios!BJ139","v":39.588794026607907},{"$f":"CustomersCOM!BT11*Scenarios!BK139","v":38.390850056474868},{"$f":"CustomersCOM!BU11*Scenarios!BL139","v":37.198895806192496},{"$f":"CustomersCOM!BV11*Scenarios!BM139","v":36.012901327161536},{"$f":"CustomersCOM!BW11*Scenarios!BN139","v":34.832836820525728},{"$f":"CustomersCOM!BX11*Scenarios!BO139","v":33.658672636423098},{"$f":"CustomersCOM!BY11*Scenarios!BP139","v":32.490379273240983},{"$f":"CustomersCOM!BZ11*Scenarios!BQ139","v":31.327927376874779},{"$f":"CustomersCOM!CA11*Scenarios!BR139","v":30.171287739990404},{"$f":"CustomersCOM!CB11*Scenarios!BS139","v":29.020431301290451},{"$f":"CustomersCOM!CC11*Scenarios!BT139","v":28.875329144783997},{"$f":"CustomersCOM!CD11*Scenarios!BU139","v":28.730952499060077},{"$f":"CustomersCOM!CE11*Scenarios!BV139","v":28.587297736564778},{"$f":"CustomersCOM!CF11*Scenarios!BW139","v":28.444361247881954},{"$f":"CustomersCOM!CG11*Scenarios!BX139","v":28.302139441642545},{"$f":"CustomersCOM!CH11*Scenarios!BY139","v":28.160628744434334},{"$f":"CustomersCOM!CI11*Scenarios!BZ139","v":28.019825600712164},{"$f":"CustomersCOM!CJ11*Scenarios!CA139","v":27.879726472708604},{"$f":"CustomersCOM!CK11*Scenarios!CB139","v":27.74032784034506},{"$f":"CustomersCOM!CL11*Scenarios!CC139","v":27.601626201143336}]
["Knox (C)",{"$f":"CustomersCOM!B12","v":1112},{"$f":"CustomersCOM!C12","v":1149},{"$f":"CustomersCOM!D12","v":1140},{"$f":"CustomersCOM!E12","v":1141},{"$f":"CustomersCOM!F12","v":1141},{"$f":"CustomersCOM!G12","v":1130},{"$f":"CustomersCOM!H12","v":1130},{"$f":"CustomersCOM!I12","v":1093},{"$f":"CustomersCOM!J12","v":1082},{"$f":"CustomersCOM!K12*Scenarios!B140","v":1060},{"$f":"CustomersCOM!L12*Scenarios!C140","v":1051.7},{"$f":"CustomersCOM!M12*Scenarios!D140","v":980.44150000000002},{"$f":"CustomersCOM!N12*Scenarios!E140","v":911.53929249999999},{"$f":"CustomersCOM!O12*Scenarios!F140","v":907.98159603750003},{"$f":"CustomersCOM!P12*Scenarios!G140","v":899.44168805731249},{"$f":"CustomersCOM!Q12*Scenarios!H140","v":854.94447961702588},{"$f":"CustomersCOM!R12*Scenarios!I140","v":811.66975721894073},{"$f":"CustomersCOM!S12*Scenarios!J140","v":754.61140843284602},{"$f":"CustomersCOM!T12*Scenarios!K140","v":701.83835139068174},{"$f":"CustomersCOM!U12*Scenarios!L140","v":658.3291596337283},{"$f":"CustomersCOM!V12*Scenarios!M140","v":617.03751383555959},{"$f":"CustomersCOM!W12*Scenarios!N140","v":573.95232626638176},{"$f":"CustomersCOM!X12*Scenarios!O140","v":534.08256463504983},{"$f":"CustomersCOM!Y12*Scenarios!P140","v":514.41215181187454},{"$f":"CustomersCOM!Z12*Scenarios!Q140","v":486.84009105281518},{"$f":"CustomersCOM!AA12*Scenarios!R140","v":454.40589059755109},{"$f":"CustomersCOM!AB12*Scenarios!S140","v":423.13386114456335},{"$f":"CustomersCOM!AC12*Scenarios!T140","v":394.01819183884055},{"$f":"CustomersCOM!AD12*Scenarios!U140","v":367.04810087964637},{"$f":"CustomersCOM!AE12*Scenarios!V140","v":342.21286037524811},{"$f":"CustomersCOM!AF12*Scenarios!W140","v":319.50179607337185},{"$f":"CustomersCOM!AG12*Scenarios!X140","v":297.904287093005},{"$f":"CustomersCOM!AH12*Scenarios!Y140","v":278.41476565753999},{"$f":"CustomersCOM!AI12*Scenarios!Z140","v":260.02269182925227},{"$f":"CustomersCOM!AJ12*Scenarios!AA140","v":242.72257837010602},{"$f":"CustomersCOM!AK12*Scenarios!AB140","v":226.5089654782555},{"$f":"CustomersCOM!AL12*Scenarios!AC140","v":211.37642065086422},{"$f":"CustomersCOM!AM12*Scenarios!AD140","v":197.31953854760991},{"$f":"CustomersCOM!AN12*Scenarios!AE140","v":184.33294085487185},{"$f":"CustomersCOM!AO12*Scenarios!AF140","v":172.4112761505975},{"$f":"CustomersCOM!AP12*Scenarios!AG140","v":161.54921976984451},{"$f":"CustomersCOM!AQ12*Scenarios!AH140","v":151.74147367099528},{"$f":"CustomersCOM!AR12*Scenarios!AI140","v":141.9827663026403},{"$f":"CustomersCOM!AS12*Scenarios!AJ140","v":133.27285247112709},{"$f":"CustomersCOM!AT12*Scenarios!AK140","v":125.60648820877145},{"$f":"CustomersCOM!AU12*Scenarios!AL140","v":117.9784557677276},{"$f":"CustomersCOM!AV12*Scenarios!AM140","v":111.38856348888896},{"$f":"CustomersCOM!AW12*Scenarios!AN140","v":104.83162067144451},{"$f":"CustomersCOM!AX12*Scenarios!AO140","v":99.307462568087288},{"$f":"CustomersCOM!AY12*Scenarios!AP140","v":93.810925255246858},{"$f":"CustomersCOM!AZ12*Scenarios!AQ140","v":88.341870628970625},{"$f":"CustomersCOM!BA12*Scenarios!AR140","v":83.900161275825766},{"$f":"CustomersCOM!BB12*Scenarios!AS140","v":79.480660469446633},{"$f":"CustomersCOM!BC12*Scenarios!AT140","v":75.083257167099404},{"$f":"CustomersCOM!BD12*Scenarios!AU140","v":70.707840881263905},{"$f":"CustomersCOM!BE12*Scenarios!AV140","v":67.354301676857588},{"$f":"CustomersCOM!BF12*Scenarios!AW140","v":64.0175301684733},{"$f":"CustomersCOM!BG12*Scenarios!AX140","v":60.697442517630932},{"$f":"CustomersCOM!BH12*Scenarios!AY140","v":57.39395530504278},{"$f":"CustomersCOM!BI12*Scenarios!AZ140","v":55.106985528517569},{"$f":"CustomersCOM!BJ12*Scenarios!BA140","v":52.83145060087498},{"$f":"CustomersCOM!BK12*Scenarios!BB140","v":50.567293347870603},{"$f":"CustomersCOM!BL12*Scenarios!BC140","v":48.31445688113125},{"$f":"CustomersCOM!BM12*Scenarios!BD140","v":46.072884596725594},{"$f":"CustomersCOM!BN12*Scenarios!BE140","v":43.842520173741967},{"$f":"CustomersCOM!BO12*Scenarios!BF140","v":42.623307572873259},{"$f":"CustomersCOM!BP12*Scenarios!BG140","v":41.410191035008893},{"$f":"CustomersCOM!BQ12*Scenarios!BH140","v":40.203140079833851},{"$f":"CustomersCOM!BR12*Scenarios!BI140","v":39.002124379434683},{"$f":"CustomersCOM!BS12*Scenarios!BJ140","v":37.807113757537508},{"$f":"CustomersCOM!BT12*Scenarios!BK140","v":36.61807818874982},{"$f":"CustomersCOM!BU12*Scenarios!BL140","v":35.434987797806073},{"$f":"CustomersCOM!BV12*Scenarios!BM140","v":34.25781285881704},{"$f":"CustomersCOM!BW12*Scenarios!BN140","v":33.086523794522954},{"$f":"CustomersCOM!BX12*Scenarios!BO140","v":31.921091175550337},{"$f":"CustomersCOM!BY12*Scenarios!BP140","v":30.761485719672585},{"$f":"CustomersCOM!BZ12*Scenarios!BQ140","v":29.607678291074222},{"$f":"CustomersCOM!CA12*Scenarios!BR140","v":29.45963989961885},{"$f":"CustomersCOM!CB12*Scenarios!BS140","v":29.312341700120754},{"$f":"CustomersCOM!CC12*Scenarios!BT140","v":29.165779991620152},{"$f":"CustomersCOM!CD12*Scenarios!BU140","v":29.019951091662051},{"$f":"CustomersCOM!CE12*Scenarios!BV140","v":28.87485133620374},{"$f":"CustomersCOM!CF12*Scenarios!BW140","v":28.730477079522721},{"$f":"CustomersCOM!CG12*Scenarios!BX140","v":28.586824694125109},{"$f":"CustomersCOM!CH12*Scenarios!BY140","v":28.443890570654485},{"$f":"CustomersCOM!CI12*Scenarios!BZ140","v":28.301671117801213},{"$f":"CustomersCOM!CJ12*Scenarios!CA140","v":28.160162762212206},{"$f":"CustomersCOM!CK12*Scenarios!CB140","v":28.019361948401144},{"$f":"CustomersCOM!CL12*Scenarios!CC140","v":27.879265138659139}]
["Manningham (C)",{"$f":"CustomersCOM!B13","v":539},{"$f":"CustomersCOM!C13","v":531},{"$f":"CustomersCOM!D13","v":534},{"$f":"CustomersCOM!E13","v":539},{"$f":"CustomersCOM!F13","v":542},{"$f":"CustomersCOM!G13","v":552},{"$f":"CustomersCOM!H13","v":555},{"$f":"CustomersCOM!I13","v":551},{"$f":"CustomersCOM!J13","v":552},{"$f":"CustomersCOM!K13*Scenarios!B141","v":551.33333333333337},{"$f":"CustomersCOM!L13*Scenarios!C141","v":547.57666666666671},{"$f":"CustomersCOM!M13*Scenarios!D141","v":510.83878333333337},{"$f":"CustomersCOM!N13*Scenarios!E141","v":475.28458941666668},{"$f":"CustomersCOM!O13*Scenarios!F141","v":473.90816646958336},{"$f":"CustomersCOM!P13*Scenarios!G141","v":469.53862563723544},{"$f":"CustomersCOM!Q13*Scenarios!H141","v":444.19093250904928},{"$f":"CustomersCOM!R13*Scenarios!I141","v":419.96997784650404},{"$f":"CustomersCOM!S13*Scenarios!J141","v":391.87012795727151},{"$f":"CustomersCOM!T13*Scenarios!K141","v":364.91077731748516},{"$f":"CustomersCOM!U13*Scenarios!L141","v":342.08622343089775},{"$f":"CustomersCOM!V13*Scenarios!M141","v":320.37579231374326},{"$f":"CustomersCOM!W13*Scenarios!N141","v":298.77391335217453},{"$f":"CustomersCOM!X13*Scenarios!O141","v":279.28004378541368},{"$f":"CustomersCOM!Y13*Scenarios!P141","v":268.88364356648663},{"$f":"CustomersCOM!Z13*Scenarios!Q141","v":254.53922534865418},{"$f":"CustomersCOM!AA13*Scenarios!R141","v":238.2665292219109},{"$f":"CustomersCOM!AB13*Scenarios!S141","v":223.07519657580136},{"$f":"CustomersCOM!AC13*Scenarios!T141","v":208.95982059292234},{"$f":"CustomersCOM!AD13*Scenarios!U141","v":195.91502148995772},{"$f":"CustomersCOM!AE13*Scenarios!V141","v":182.93544638250793},{"$f":"CustomersCOM!AF13*Scenarios!W141","v":171.02076915059538},{"$f":"CustomersCOM!AG13*Scenarios!X141","v":160.16566530484241},{"$f":"CustomersCOM!AH13*Scenarios!Y141","v":150.36483697831818},{"$f":"CustomersCOM!AI13*Scenarios!Z141","v":140.61301279342658},{"$f":"CustomersCOM!AJ13*Scenarios!AA141","v":131.90994772945945},{"$f":"CustomersCOM!AK13*Scenarios!AB141","v":124.25039799081215},{"$f":"CustomersCOM!AL13*Scenarios!AC141","v":116.62914600085809},{"$f":"CustomersCOM!AM13*Scenarios!AD141","v":110.0460002708538},{"$f":"CustomersCOM!AN13*Scenarios!AE141","v":103.49577026949953},{"$f":"CustomersCOM!AO13*Scenarios!AF141","v":97.978291418152025},{"$f":"CustomersCOM!AP13*Scenarios!AG141","v":92.488399961061262},{"$f":"CustomersCOM!AQ13*Scenarios!AH141","v":87.025957961255955},{"$f":"CustomersCOM!AR13*Scenarios!AI141","v":82.590828171449672},{"$f":"CustomersCOM!AS13*Scenarios!AJ141","v":78.17787403059242},{"$f":"CustomersCOM!AT13*Scenarios!AK141","v":73.786984660439458},{"$f":"CustomersCOM!AU13*Scenarios!AL141","v":70.418049737137267},{"$f":"CustomersCOM!AV13*Scenarios!AM141","v":67.065959488451583},{"$f":"CustomersCOM!AW13*Scenarios!AN141","v":63.730629691009327},{"$f":"CustomersCOM!AX13*Scenarios!AO141","v":60.411976542554278},{"$f":"CustomersCOM!AY13*Scenarios!AP141","v":57.10991665984151},{"$f":"CustomersCOM!AZ13*Scenarios!AQ141","v":54.824367076542302},{"$f":"CustomersCOM!BA13*Scenarios!AR141","v":52.550245241159587},{"$f":"CustomersCOM!BB13*Scenarios!AS141","v":50.287494014953786},{"$f":"CustomersCOM!BC13*Scenarios!AT141","v":48.036056544879017},{"$f":"CustomersCOM!BD13*Scenarios!AU141","v":45.795876262154621},{"$f":"CustomersCOM!BE13*Scenarios!AV141","v":43.566896880843849},{"$f":"CustomersCOM!BF13*Scenarios!AW141","v":42.349062396439628},{"$f":"CustomersCOM!BG13*Scenarios!AX141","v":41.137317084457429},{"$f":"CustomersCOM!BH13*Scenarios!AY141","v":39.931630499035144},{"$f":"CustomersCOM!BI13*Scenarios!AZ141","v":38.731972346539969},{"$f":"CustomersCOM!BJ13*Scenarios!BA141","v":37.538312484807271},{"$f":"CustomersCOM!BK13*Scenarios!BB141","v":36.350620922383236},{"$f":"CustomersCOM!BL13*Scenarios!BC141","v":35.168867817771321},{"$f":"CustomersCOM!BM13*Scenarios!BD141","v":33.993023478682467},{"$f":"CustomersCOM!BN13*Scenarios!BE141","v":32.823058361289057},{"$f":"CustomersCOM!BO13*Scenarios!BF141","v":31.658943069482611},{"$f":"CustomersCOM!BP13*Scenarios!BG141","v":30.500648354135198},{"$f":"CustomersCOM!BQ13*Scenarios!BH141","v":29.34814511236452},{"$f":"CustomersCOM!BR13*Scenarios!BI141","v":29.201404386802697},{"$f":"CustomersCOM!BS13*Scenarios!BJ141","v":29.055397364868682},{"$f":"CustomersCOM!BT13*Scenarios!BK141","v":28.91012037804434},{"$f":"CustomersCOM!BU13*Scenarios!BL141","v":28.76556977615412},{"$f":"CustomersCOM!BV13*Scenarios!BM141","v":28.621741927273348},{"$f":"CustomersCOM!BW13*Scenarios!BN141","v":28.478633217636983},{"$f":"CustomersCOM!BX13*Scenarios!BO141","v":28.336240051548799},{"$f":"CustomersCOM!BY13*Scenarios!BP141","v":28.194558851291056},{"$f":"CustomersCOM!BZ13*Scenarios!BQ141","v":28.0535860570346},{"$f":"CustomersCOM!CA13*Scenarios!BR141","v":27.913318126749427},{"$f":"CustomersCOM!CB13*Scenarios!BS141","v":27.773751536115679},{"$f":"CustomersCOM!CC13*Scenarios!BT141","v":27.634882778435099},{"$f":"CustomersCOM!CD13*Scenarios!BU141","v":27.496708364542922},{"$f":"CustomersCOM!CE13*Scenarios!BV141","v":27.359224822720208},{"$f":"CustomersCOM!CF13*Scenarios!BW141","v":27.222428698606606},{"$f":"CustomersCOM!CG13*Scenarios!BX141","v":27.086316555113573},{"$f":"CustomersCOM!CH13*Scenarios!BY141","v":26.950884972338006},{"$f":"CustomersCOM!CI13*Scenarios!BZ141","v":26.816130547476316},{"$f":"CustomersCOM!CJ13*Scenarios!CA141","v":26.682049894738935},{"$f":"CustomersCOM!CK13*Scenarios!CB141","v":26.54863964526524},{"$f":"CustomersCOM!CL13*Scenarios!CC141","v":26.415896447038914}]
["Maroondah (C)",{"$f":"CustomersCOM!B14","v":585},{"$f":"CustomersCOM!C14","v":592},{"$f":"CustomersCOM!D14","v":584},{"$f":"CustomersCOM!E14","v":576},{"$f":"CustomersCOM!F14","v":577},{"$f":"CustomersCOM!G14","v":579},{"$f":"CustomersCOM!H14","v":576},{"$f":"CustomersCOM!I14","v":579},{"$f":"CustomersCOM!J14","v":571},{"$f":"CustomersCOM!K14*Scenarios!B142","v":563.66666666666663},{"$f":"CustomersCOM!L14*Scenarios!C142","v":558.84833333333324},{"$f":"CustomersCOM!M14*Scenarios!D142","v":521.05409166666664},{"$f":"CustomersCOM!N14*Scenarios!E142","v":485.4488212083333},{"$f":"CustomersCOM!O14*Scenarios!F142","v":483.02157710229164},{"$f":"CustomersCOM!P14*Scenarios!G142","v":477.60646921678017},{"$f":"CustomersCOM!Q14*Scenarios!H142","v":454.21843687069628},{"$f":"CustomersCOM!R14*Scenarios!I142","v":430.94734468634277},{"$f":"CustomersCOM!S14*Scenarios!J142","v":401.79260796291106},{"$f":"CustomersCOM!T14*Scenarios!K142","v":374.78364492309652},{"$f":"CustomersCOM!U14*Scenarios!L142","v":351.90972669848105},{"$f":"CustomersCOM!V14*Scenarios!M142","v":330.15017806498867},{"$f":"CustomersCOM!W14*Scenarios!N142","v":307.49942717466371},{"$f":"CustomersCOM!X14*Scenarios!O142","v":286.9619300387904},{"$f":"CustomersCOM!Y14*Scenarios!P142","v":276.52712038859647},{"$f":"CustomersCOM!Z14*Scenarios!Q142","v":262.14448478665349},{"$f":"CustomersCOM!AA14*Scenarios!R142","v":245.83376236272022},{"$f":"CustomersCOM!AB14*Scenarios!S142","v":229.60459355090663},{"$f":"CustomersCOM!AC14*Scenarios!T142","v":214.45657058315209},{"$f":"CustomersCOM!AD14*Scenarios!U142","v":200.38428773023634},{"$f":"CustomersCOM!AE14*Scenarios!V142","v":187.38236629158516},{"$f":"CustomersCOM!AF14*Scenarios!W142","v":175.44545446012722},{"$f":"CustomersCOM!AG14*Scenarios!X142","v":164.56822718782658},{"$f":"CustomersCOM!AH14*Scenarios!Y142","v":154.74538605188744},{"$f":"CustomersCOM!AI14*Scenarios!Z142","v":144.97165912162799},{"$f":"CustomersCOM!AJ14*Scenarios!AA142","v":136.24680082601986},{"$f":"CustomersCOM!AK14*Scenarios!AB142","v":127.56556682188976},{"$f":"CustomersCOM!AL14*Scenarios!AC142","v":119.92773898778032},{"$f":"CustomersCOM!AM14*Scenarios!AD142","v":113.32810029284141},{"$f":"CustomersCOM!AN14*Scenarios!AE142","v":106.76145979137721},{"$f":"CustomersCOM!AO14*Scenarios!AF142","v":100.22765249242032},{"$f":"CustomersCOM!AP14*Scenarios!AG142","v":94.726514229958212},{"$f":"CustomersCOM!AQ14*Scenarios!AH142","v":89.25288165880842},{"$f":"CustomersCOM!AR14*Scenarios!AI142","v":84.806617250514378},{"$f":"CustomersCOM!AS14*Scenarios!AJ142","v":80.3825841642618},{"$f":"CustomersCOM!AT14*Scenarios!AK142","v":75.980671243440497},{"$f":"CustomersCOM!AU14*Scenarios!AL142","v":71.600767887223299},{"$f":"CustomersCOM!AV14*Scenarios!AM142","v":68.242764047787176},{"$f":"CustomersCOM!AW14*Scenarios!AN142","v":64.901550227548242},{"$f":"CustomersCOM!AX14*Scenarios!AO142","v":61.577042476410497},{"$f":"CustomersCOM!AY14*Scenarios!AP142","v":58.269157264028443},{"$f":"CustomersCOM!AZ14*Scenarios!AQ142","v":55.9778114777083},{"$f":"CustomersCOM!BA14*Scenarios!AR142","v":53.697922420319756},{"$f":"CustomersCOM!BB14*Scenarios!AS142","v":51.429432808218159},{"$f":"CustomersCOM!BC14*Scenarios!AT142","v":49.172285644177066},{"$f":"CustomersCOM!BD14*Scenarios!AU142","v":46.926424215956182},{"$f":"CustomersCOM!BE14*Scenarios!AV142","v":44.691792094876398},{"$f":"CustomersCOM!BF14*Scenarios!AW142","v":43.468333134402016},{"$f":"CustomersCOM!BG14*Scenarios!AX142","v":42.250991468730007},{"$f":"CustomersCOM!BH14*Scenarios!AY142","v":41.039736511386359},{"$f":"CustomersCOM!BI14*Scenarios!AZ142","v":39.834537828829426},{"$f":"CustomersCOM!BJ14*Scenarios!BA142","v":38.635365139685277},{"$f":"CustomersCOM!BK14*Scenarios!BB142","v":37.442188313986847},{"$f":"CustomersCOM!BL14*Scenarios!BC142","v":36.25497737241691},{"$f":"CustomersCOM!BM14*Scenarios!BD142","v":35.073702485554826},{"$f":"CustomersCOM!BN14*Scenarios!BE142","v":33.898333973127052},{"$f":"CustomersCOM!BO14*Scenarios!BF142","v":32.728842303261416},{"$f":"CustomersCOM!BP14*Scenarios!BG142","v":31.56519809174511},{"$f":"CustomersCOM!BQ14*Scenarios!BH142","v":30.407372101286384},{"$f":"CustomersCOM!BR14*Scenarios!BI142","v":29.255335240779953},{"$f":"CustomersCOM!BS14*Scenarios!BJ142","v":29.109058564576053},{"$f":"CustomersCOM!BT14*Scenarios!BK142","v":28.963513271753172},{"$f":"CustomersCOM!BU14*Scenarios!BL142","v":28.818695705394404},{"$f":"CustomersCOM!BV14*Scenarios!BM142","v":28.674602226867432},{"$f":"CustomersCOM!BW14*Scenarios!BN142","v":28.531229215733095},{"$f":"CustomersCOM!BX14*Scenarios!BO142","v":28.388573069654431},{"$f":"CustomersCOM!BY14*Scenarios!BP142","v":28.246630204306157},{"$f":"CustomersCOM!BZ14*Scenarios!BQ142","v":28.105397053284626},{"$f":"CustomersCOM!CA14*Scenarios!BR142","v":27.964870068018204},{"$f":"CustomersCOM!CB14*Scenarios!BS142","v":27.825045717678112},{"$f":"CustomersCOM!CC14*Scenarios!BT142","v":27.685920489089721},{"$f":"CustomersCOM!CD14*Scenarios!BU142","v":27.547490886644272},{"$f":"CustomersCOM!CE14*Scenarios!BV142","v":27.409753432211051},{"$f":"CustomersCOM!CF14*Scenarios!BW142","v":27.272704665049996},{"$f":"CustomersCOM!CG14*Scenarios!BX142","v":27.136341141724746},{"$f":"CustomersCOM!CH14*Scenarios!BY142","v":27.000659436016122},{"$f":"CustomersCOM!CI14*Scenarios!BZ142","v":26.865656138836041},{"$f":"CustomersCOM!CJ14*Scenarios!CA142","v":26.73132785814186},{"$f":"CustomersCOM!CK14*Scenarios!CB142","v":26.597671218851151},{"$f":"CustomersCOM!CL14*Scenarios!CC142","v":26.464682862756895}]
["Melbourne (C)",{"$f":"CustomersCOM!B15","v":152},{"$f":"CustomersCOM!C15","v":173},{"$f":"CustomersCOM!D15","v":176},{"$f":"CustomersCOM!E15","v":175},{"$f":"CustomersCOM!F15","v":181},{"$f":"CustomersCOM!G15","v":190},{"$f":"CustomersCOM!H15","v":196},{"$f":"CustomersCOM!I15","v":187},{"$f":"CustomersCOM!J15","v":186},{"$f":"CustomersCOM!K15*Scenarios!B143","v":178},{"$f":"CustomersCOM!L15*Scenarios!C143","v":180.11},{"$f":"CustomersCOM!M15*Scenarios!D143","v":168.20945},{"$f":"CustomersCOM!N15*Scenarios!E143","v":157.36840275},{"$f":"CustomersCOM!O15*Scenarios!F143","v":159.58156073625},{"$f":"CustomersCOM!P15*Scenarios!G143","v":161.78365293256874},{"$f":"CustomersCOM!Q15*Scenarios!H143","v":151.97473466790589},{"$f":"CustomersCOM!R15*Scenarios!I143","v":142.21486099456635},{"$f":"CustomersCOM!S15*Scenarios!J143","v":133.50378668959351},{"$f":"CustomersCOM!T15*Scenarios!K143","v":125.83626775614555},{"$f":"CustomersCOM!U15*Scenarios!L143","v":118.20708641736482},{"$f":"CustomersCOM!V15*Scenarios!M143","v":111.61605098527799},{"$f":"CustomersCOM!W15*Scenarios!N143","v":105.0579707303516},{"$f":"CustomersCOM!X15*Scenarios!O143","v":98.532680876699843},{"$f":"CustomersCOM!Y15*Scenarios!P143","v":94.04001747231635},{"$f":"CustomersCOM!Z15*Scenarios!Q143","v":88.569817384954774},{"$f":"CustomersCOM!AA15*Scenarios!R143","v":84.126968298029993},{"$f":"CustomersCOM!AB15*Scenarios!S143","v":79.706333456539838},{"$f":"CustomersCOM!AC15*Scenarios!T143","v":75.307801789257141},{"$f":"CustomersCOM!AD15*Scenarios!U143","v":70.93126278031086},{"$f":"CustomersCOM!AE15*Scenarios!V143","v":67.576606466409302},{"$f":"CustomersCOM!AF15*Scenarios!W143","v":63.238723434077258},{"$f":"CustomersCOM!AG15*Scenarios!X143","v":58.922529816906874},{"$f":"CustomersCOM!AH15*Scenarios!Y143","v":55.627917167822339},{"$f":"CustomersCOM!AI15*Scenarios!Z143","v":52.349777581983226},{"$f":"CustomersCOM!AJ15*Scenarios!AA143","v":49.088028694073309},{"$f":"CustomersCOM!AK15*Scenarios!AB143","v":45.84258855060294},{"$f":"CustomersCOM!AL15*Scenarios!AC143","v":42.613375607849925},{"$f":"CustomersCOM!AM15*Scenarios!AD143","v":40.400308729810675},{"$f":"CustomersCOM!AN15*Scenarios!AE143","v":38.198307186161621},{"$f":"CustomersCOM!AO15*Scenarios!AF143","v":36.007315650230815},{"$f":"CustomersCOM!AP15*Scenarios!AG143","v":33.82727907197966},{"$f":"CustomersCOM!AQ15*Scenarios!AH143","v":31.658142676619761},{"$f":"CustomersCOM!AR15*Scenarios!AI143","v":29.499851963236662},{"$f":"CustomersCOM!AS15*Scenarios!AJ143","v":28.352352703420479},{"$f":"CustomersCOM!AT15*Scenarios!AK143","v":27.210590939903376},{"$f":"CustomersCOM!AU15*Scenarios!AL143","v":26.074537985203861},{"$f":"CustomersCOM!AV15*Scenarios!AM143","v":24.944165295277841},{"$f":"CustomersCOM!AW15*Scenarios!AN143","v":23.819444468801453},{"$f":"CustomersCOM!AX15*Scenarios!AO143","v":22.700347246457447},{"$f":"CustomersCOM!AY15*Scenarios!AP143","v":21.58684551022516},{"$f":"CustomersCOM!AZ15*Scenarios!AQ143","v":20.478911282674034},{"$f":"CustomersCOM!BA15*Scenarios!AR143","v":19.376516726260665},{"$f":"CustomersCOM!BB15*Scenarios!AS143","v":18.279634142629362},{"$f":"CustomersCOM!BC15*Scenarios!AT143","v":17.188235971916214},{"$f":"CustomersCOM!BD15*Scenarios!AU143","v":16.102294792056632},{"$f":"CustomersCOM!BE15*Scenarios!AV143","v":15.021783318096348},{"$f":"CustomersCOM!BF15*Scenarios!AW143","v":13.946674401505867},{"$f":"CustomersCOM!BG15*Scenarios!AX143","v":13.876941029498337},{"$f":"CustomersCOM!BH15*Scenarios!AY143","v":13.807556324350845},{"$f":"CustomersCOM!BI15*Scenarios!AZ143","v":13.738518542729091},{"$f":"CustomersCOM!BJ15*Scenarios!BA143","v":13.669825950015445},{"$f":"CustomersCOM!BK15*Scenarios!BB143","v":13.601476820265368},{"$f":"CustomersCOM!BL15*Scenarios!BC143","v":13.533469436164042},{"$f":"CustomersCOM!BM15*Scenarios!BD143","v":13.465802088983223},{"$f":"CustomersCOM!BN15*Scenarios!BE143","v":13.398473078538306},{"$f":"CustomersCOM!BO15*Scenarios!BF143","v":13.331480713145615},{"$f":"CustomersCOM!BP15*Scenarios!BG143","v":13.264823309579887},{"$f":"CustomersCOM!BQ15*Scenarios!BH143","v":13.198499193031987},{"$f":"CustomersCOM!BR15*Scenarios!BI143","v":13.132506697066827},{"$f":"CustomersCOM!BS15*Scenarios!BJ143","v":13.066844163581493},{"$f":"CustomersCOM!BT15*Scenarios!BK143","v":13.001509942763585},{"$f":"CustomersCOM!BU15*Scenarios!BL143","v":12.936502393049768},{"$f":"CustomersCOM!BV15*Scenarios!BM143","v":12.871819881084519},{"$f":"CustomersCOM!BW15*Scenarios!BN143","v":12.807460781679097},{"$f":"CustomersCOM!BX15*Scenarios!BO143","v":12.743423477770701},{"$f":"CustomersCOM!BY15*Scenarios!BP143","v":12.679706360381848},{"$f":"CustomersCOM!BZ15*Scenarios!BQ143","v":12.61630782857994},{"$f":"CustomersCOM!CA15*Scenarios!BR143","v":12.55322628943704},{"$f":"CustomersCOM!CB15*Scenarios!BS143","v":12.490460157989855},{"$f":"CustomersCOM!CC15*Scenarios!BT143","v":12.428007857199905},{"$f":"CustomersCOM!CD15*Scenarios!BU143","v":12.365867817913905},{"$f":"CustomersCOM!CE15*Scenarios!BV143","v":12.304038478824335},{"$f":"CustomersCOM!CF15*Scenarios!BW143","v":12.242518286430213},{"$f":"CustomersCOM!CG15*Scenarios!BX143","v":12.181305694998063},{"$f":"CustomersCOM!CH15*Scenarios!BY143","v":12.120399166523072},{"$f":"CustomersCOM!CI15*Scenarios!BZ143","v":12.059797170690457},{"$f":"CustomersCOM!CJ15*Scenarios!CA143","v":11.999498184837005},{"$f":"CustomersCOM!CK15*Scenarios!CB143","v":11.939500693912819},{"$f":"CustomersCOM!CL15*Scenarios!CC143","v":11.879803190443255}]
["Monash (C)",{"$f":"CustomersCOM!B16","v":1290},{"$f":"CustomersCOM!C16","v":1339},{"$f":"CustomersCOM!D16","v":1312},{"$f":"CustomersCOM!E16","v":1299},{"$f":"CustomersCOM!F16","v":1306},{"$f":"CustomersCOM!G16","v":1317},{"$f":"CustomersCOM!H16","v":1313},{"$f":"CustomersCOM!I16","v":1255},{"$f":"CustomersCOM!J16","v":1251},{"$f":"CustomersCOM!K16*Scenarios!B144","v":1218.3333333333333},{"$f":"CustomersCOM!L16*Scenarios!C144","v":1213.2416666666666},{"$f":"CustomersCOM!M16*Scenarios!D144","v":1130.1754583333332},{"$f":"CustomersCOM!N16*Scenarios!E144","v":1050.5245810416666},{"$f":"CustomersCOM!O16*Scenarios!F144","v":1050.2719581364584},{"$f":"CustomersCOM!P16*Scenarios!G144","v":1044.0205983457761},{"$f":"CustomersCOM!Q16*Scenarios!H144","v":990.80049535404714},{"$f":"CustomersCOM!R16*Scenarios!I144","v":937.84649287727689},{"$f":"CustomersCOM!S16*Scenarios!J144","v":872.15726041289054},{"$f":"CustomersCOM!T16*Scenarios!K144","v":810.79647411082613},{"$f":"CustomersCOM!U16*Scenarios!L144","v":758.74249174027204},{"$f":"CustomersCOM!V16*Scenarios!M144","v":709.94877928157064},{"$f":"CustomersCOM!W16*Scenarios!N144","v":660.39903538516273},{"$f":"CustomersCOM!X16*Scenarios!O144","v":614.09704020823688},{"$f":"CustomersCOM!Y16*Scenarios!P144","v":591.02655500719573},{"$f":"CustomersCOM!Z16*Scenarios!Q144","v":557.07142223215976},{"$f":"CustomersCOM!AA16*Scenarios!R144","v":519.28606512099896},{"$f":"CustomersCOM!AB16*Scenarios!S144","v":483.68963479539394},{"$f":"CustomersCOM!AC16*Scenarios!T144","v":450.27118662141697},{"$f":"CustomersCOM!AD16*Scenarios!U144","v":419.01983068830987},{"$f":"CustomersCOM!AE16*Scenarios!V144","v":390.92473153486833},{"$f":"CustomersCOM!AF16*Scenarios!W144","v":363.97010787719398},{"$f":"CustomersCOM!AG16*Scenarios!X144","v":339.150257337808},{"$f":"CustomersCOM!AH16*Scenarios!Y144","v":316.45450605111898},{"$f":"CustomersCOM!AI16*Scenarios!Z144","v":294.8722335208634},{"$f":"CustomersCOM!AJ16*Scenarios!AA144","v":275.39787235325906},{"$f":"CustomersCOM!AK16*Scenarios!AB144","v":257.02088299149278},{"$f":"CustomersCOM!AL16*Scenarios!AC144","v":239.73577857653532},{"$f":"CustomersCOM!AM16*Scenarios!AD144","v":224.53709968365266},{"$f":"CustomersCOM!AN16*Scenarios!AE144","v":210.41441418523439},{"$f":"CustomersCOM!AO16*Scenarios!AF144","v":196.36234211430821},{"$f":"CustomersCOM!AP16*Scenarios!AG144","v":183.38053040373666},{"$f":"CustomersCOM!AQ16*Scenarios!AH144","v":171.46362775171798},{"$f":"CustomersCOM!AR16*Scenarios!AI144","v":160.60630961295939},{"$f":"CustomersCOM!AS16*Scenarios!AJ144","v":150.80327806489458},{"$f":"CustomersCOM!AT16*Scenarios!AK144","v":141.04926167457012},{"$f":"CustomersCOM!AU16*Scenarios!AL144","v":132.34401536619725},{"$f":"CustomersCOM!AV16*Scenarios!AM144","v":124.68229528936627},{"$f":"CustomersCOM!AW16*Scenarios!AN144","v":117.05888381291943},{"$f":"CustomersCOM!AX16*Scenarios!AO144","v":110.47358939385484},{"$f":"CustomersCOM!AY16*Scenarios!AP144","v":103.92122144688557},{"$f":"CustomersCOM!AZ16*Scenarios!AQ144","v":98.401615339651144},{"$f":"CustomersCOM!BA16*Scenarios!AR144","v":92.909607262952889},{"$f":"CustomersCOM!BB16*Scenarios!AS144","v":87.445059226638122},{"$f":"CustomersCOM!BC16*Scenarios!AT144","v":83.00783393050493},{"$f":"CustomersCOM!BD16*Scenarios!AU144","v":78.592794760852399},{"$f":"CustomersCOM!BE16*Scenarios!AV144","v":74.199830787048143},{"$f":"CustomersCOM!BF16*Scenarios!AW144","v":70.828831633112898},{"$f":"CustomersCOM!BG16*Scenarios!AX144","v":67.474687474947331},{"$f":"CustomersCOM!BH16*Scenarios!AY144","v":64.137314037572594},{"$f":"CustomersCOM!BI16*Scenarios!AZ144","v":60.816627467384734},{"$f":"CustomersCOM!BJ16*Scenarios!BA144","v":57.51254433004781},{"$f":"CustomersCOM!BK16*Scenarios!BB144","v":55.22498160839757},{"$f":"CustomersCOM!BL16*Scenarios!BC144","v":52.948856700355584},{"$f":"CustomersCOM!BM16*Scenarios!BD144","v":50.684112416853807},{"$f":"CustomersCOM!BN16*Scenarios!BE144","v":48.430691854769535},{"$f":"CustomersCOM!BO16*Scenarios!BF144","v":46.188538395495684},{"$f":"CustomersCOM!BP16*Scenarios!BG144","v":43.957595703518209},{"$f":"CustomersCOM!BQ16*Scenarios!BH144","v":42.737807725000614},{"$f":"CustomersCOM!BR16*Scenarios!BI144","v":41.524118686375608},{"$f":"CustomersCOM!BS16*Scenarios!BJ144","v":40.316498092943732},{"$f":"CustomersCOM!BT16*Scenarios!BK144","v":39.114915602479016},{"$f":"CustomersCOM!BU16*Scenarios!BL144","v":37.919341024466618},{"$f":"CustomersCOM!BV16*Scenarios!BM144","v":36.729744319344285},{"$f":"CustomersCOM!BW16*Scenarios!BN144","v":35.546095597747566},{"$f":"CustomersCOM!BX16*Scenarios!BO144","v":34.368365119758828},{"$f":"CustomersCOM!BY16*Scenarios!BP144","v":33.196523294160031},{"$f":"CustomersCOM!BZ16*Scenarios!BQ144","v":32.030540677689231},{"$f":"CustomersCOM!CA16*Scenarios!BR144","v":30.870387974300783},{"$f":"CustomersCOM!CB16*Scenarios!BS144","v":29.71603603442928},{"$f":"CustomersCOM!CC16*Scenarios!BT144","v":29.567455854257133},{"$f":"CustomersCOM!CD16*Scenarios!BU144","v":29.419618574985847},{"$f":"CustomersCOM!CE16*Scenarios!BV144","v":29.272520482110917},{"$f":"CustomersCOM!CF16*Scenarios!BW144","v":29.126157879700362},{"$f":"CustomersCOM!CG16*Scenarios!BX144","v":28.980527090301859},{"$f":"CustomersCOM!CH16*Scenarios!BY144","v":28.83562445485035},{"$f":"CustomersCOM!CI16*Scenarios!BZ144","v":28.691446332576099},{"$f":"CustomersCOM!CJ16*Scenarios!CA144","v":28.54798910091322},{"$f":"CustomersCOM!CK16*Scenarios!CB144","v":28.405249155408654},{"$f":"CustomersCOM!CL16*Scenarios!CC144","v":28.263222909631612}]
["Port Phillip (C)",{"$f":"CustomersCOM!B17","v":1517},{"$f":"CustomersCOM!C17","v":1552},{"$f":"CustomersCOM!D17","v":1556},{"$f":"CustomersCOM!E17","v":1560},{"$f":"CustomersCOM!F17","v":1555},{"$f":"CustomersCOM!G17","v":1557},{"$f":"CustomersCOM!H17","v":1554},{"$f":"CustomersCOM!I17","v":1506},{"$f":"CustomersCOM!J17","v":1501},{"$f":"CustomersCOM!K17*Scenarios!B145","v":1474.3333333333333},{"$f":"CustomersCOM!L17*Scenarios!C145","v":1474.9616666666666},{"$f":"CustomersCOM!M17*Scenarios!D145","v":1372.5868583333333},{"$f":"CustomersCOM!N17*Scenarios!E145","v":1275.7239240416666},{"$f":"CustomersCOM!O17*Scenarios!F145","v":1280.3453044214582},{"$f":"CustomersCOM!P17*Scenarios!G145","v":1277.9435778993509},{"$f":"CustomersCOM!Q17*Scenarios!H145","v":1215.5538600098541},{"$f":"CustomersCOM!R17*Scenarios!I145","v":1154.4760907098048},{"$f":"CustomersCOM!S17*Scenarios!J145","v":1073.7037102562558},{"$f":"CustomersCOM!T17*Scenarios!K145","v":998.33519170497448},{"$f":"CustomersCOM!U17*Scenarios!L145","v":934.34351574644961},{"$f":"CustomersCOM!V17*Scenarios!M145","v":873.67179816771738},{"$f":"CustomersCOM!W17*Scenarios!N145","v":812.30343917687878},{"$f":"CustomersCOM!X17*Scenarios!O145","v":755.24192198099445},{"$f":"CustomersCOM!Y17*Scenarios!P145","v":727.46571237108947},{"$f":"CustomersCOM!Z17*Scenarios!Q145","v":686.82838380923397},{"$f":"CustomersCOM!AA17*Scenarios!R145","v":640.3942418901878},{"$f":"CustomersCOM!AB17*Scenarios!S145","v":596.1922706807369},{"$f":"CustomersCOM!AC17*Scenarios!T145","v":555.2113093273332},{"$f":"CustomersCOM!AD17*Scenarios!U145","v":516.43525278069649},{"$f":"CustomersCOM!AE17*Scenarios!V145","v":480.85307651679301},{"$f":"CustomersCOM!AF17*Scenarios!W145","v":447.44881113420905},{"$f":"CustomersCOM!AG17*Scenarios!X145","v":417.211567078538},{"$f":"CustomersCOM!AH17*Scenarios!Y145","v":389.1255092431453},{"$f":"CustomersCOM!AI17*Scenarios!Z145","v":363.17988169692956},{"$f":"CustomersCOM!AJ17*Scenarios!AA145","v":338.3639822884449},{"$f":"CustomersCOM!AK17*Scenarios!AB145","v":315.67216237700268},{"$f":"CustomersCOM!AL17*Scenarios!AC145","v":294.09380156511764},{"$f":"CustomersCOM!AM17*Scenarios!AD145","v":274.62333255729203},{"$f":"CustomersCOM!AN17*Scenarios!AE145","v":256.25021589450557},{"$f":"CustomersCOM!AO17*Scenarios!AF145","v":238.96896481503305},{"$f":"CustomersCOM!AP17*Scenarios!AG145","v":223.77411999095787},{"$f":"CustomersCOM!AQ17*Scenarios!AH145","v":209.65524939100308},{"$f":"CustomersCOM!AR17*Scenarios!AI145","v":196.60697314404806},{"$f":"CustomersCOM!AS17*Scenarios!AJ145","v":183.62393827832781},{"$f":"CustomersCOM!AT17*Scenarios!AK145","v":171.70581858693618},{"$f":"CustomersCOM!AU17*Scenarios!AL145","v":160.8472894940015},{"$f":"CustomersCOM!AV17*Scenarios!AM145","v":151.0430530465315},{"$f":"CustomersCOM!AW17*Scenarios!AN145","v":141.28783778129883},{"$f":"CustomersCOM!AX17*Scenarios!AO145","v":132.58139859239233},{"$f":"CustomersCOM!AY17*Scenarios!AP145","v":124.91849159943037},{"$f":"CustomersCOM!AZ17*Scenarios!AQ145","v":117.29389914143322},{"$f":"CustomersCOM!BA17*Scenarios!AR145","v":110.70742964572605},{"$f":"CustomersCOM!BB17*Scenarios!AS145","v":104.15389249749742},{"$f":"CustomersCOM!BC17*Scenarios!AT145","v":98.63312303500993},{"$f":"CustomersCOM!BD17*Scenarios!AU145","v":93.139957419834886},{"$f":"CustomersCOM!BE17*Scenarios!AV145","v":87.674257632735717},{"$f":"CustomersCOM!BF17*Scenarios!AW145","v":83.235886344572037},{"$f":"CustomersCOM!BG17*Scenarios!AX145","v":78.819706912849171},{"$f":"CustomersCOM!BH17*Scenarios!AY145","v":74.42560837828492},{"$f":"CustomersCOM!BI17*Scenarios!AZ145","v":71.053480336393491},{"$f":"CustomersCOM!BJ17*Scenarios!BA145","v":67.69821293471152},{"$f":"CustomersCOM!BK17*Scenarios!BB145","v":64.359721870037959},{"$f":"CustomersCOM!BL17*Scenarios!BC145","v":61.037923260687769},{"$f":"CustomersCOM!BM17*Scenarios!BD145","v":57.732733644384332},{"$f":"CustomersCOM!BN17*Scenarios!BE145","v":55.44406997616241},{"$f":"CustomersCOM!BO17*Scenarios!BF145","v":53.166849626281596},{"$f":"CustomersCOM!BP17*Scenarios!BG145","v":50.901015378150191},{"$f":"CustomersCOM!BQ17*Scenarios!BH145","v":48.64651030125944},{"$f":"CustomersCOM!BR17*Scenarios!BI145","v":46.403277749753144},{"$f":"CustomersCOM!BS17*Scenarios!BJ145","v":44.171261361004376},{"$f":"CustomersCOM!BT17*Scenarios!BK145","v":42.950405054199351},{"$f":"CustomersCOM!BU17*Scenarios!BL145","v":41.735653028928354},{"$f":"CustomersCOM!BV17*Scenarios!BM145","v":40.526974763783713},{"$f":"CustomersCOM!BW17*Scenarios!BN145","v":39.324339889964797},{"$f":"CustomersCOM!BX17*Scenarios!BO145","v":38.127718190514976},{"$f":"CustomersCOM!BY17*Scenarios!BP145","v":36.937079599562402},{"$f":"CustomersCOM!BZ17*Scenarios!BQ145","v":35.752394201564591},{"$f":"CustomersCOM!CA17*Scenarios!BR145","v":34.573632230556768},{"$f":"CustomersCOM!CB17*Scenarios!BS145","v":33.400764069403984},{"$f":"CustomersCOM!CC17*Scenarios!BT145","v":32.233760249056964},{"$f":"CustomersCOM!CD17*Scenarios!BU145","v":31.072591447811678},{"$f":"CustomersCOM!CE17*Scenarios!BV145","v":29.917228490572619},{"$f":"CustomersCOM!CF17*Scenarios!BW145","v":29.767642348119754},{"$f":"CustomersCOM!CG17*Scenarios!BX145","v":29.618804136379154},{"$f":"CustomersCOM!CH17*Scenarios!BY145","v":29.470710115697258},{"$f":"CustomersCOM!CI17*Scenarios!BZ145","v":29.323356565118772},{"$f":"CustomersCOM!CJ17*Scenarios!CA145","v":29.176739782293179},{"$f":"CustomersCOM!CK17*Scenarios!CB145","v":29.030856083381714},{"$f":"CustomersCOM!CL17*Scenarios!CC145","v":28.885701802964807}]
["South Gippsland (S)",{"$f":"CustomersCOM!B18","v":39},{"$f":"CustomersCOM!C18","v":42},{"$f":"CustomersCOM!D18","v":46},{"$f":"CustomersCOM!E18","v":46},{"$f":"CustomersCOM!F18","v":44},{"$f":"CustomersCOM!G18","v":45},{"$f":"CustomersCOM!H18","v":46},{"$f":"CustomersCOM!I18","v":47},{"$f":"CustomersCOM!J18","v":49},{"$f":"CustomersCOM!K18*Scenarios!B146","v":48.333333333333336},{"$f":"CustomersCOM!L18*Scenarios!C146","v":48.091666666666669},{"$f":"CustomersCOM!M18*Scenarios!D146","v":45.851208333333332},{"$f":"CustomersCOM!N18*Scenarios!E146","v":43.621952291666666},{"$f":"CustomersCOM!O18*Scenarios!F146","v":43.40384253020833},{"$f":"CustomersCOM!P18*Scenarios!G146","v":43.186823317557291},{"$f":"CustomersCOM!Q18*Scenarios!H146","v":41.970889200969502},{"$f":"CustomersCOM!R18*Scenarios!I146","v":40.761034754964655},{"$f":"CustomersCOM!S18*Scenarios!J146","v":39.55722958118983},{"$f":"CustomersCOM!T18*Scenarios!K146","v":38.359443433283879},{"$f":"CustomersCOM!U18*Scenarios!L146","v":37.167646216117461},{"$f":"CustomersCOM!V18*Scenarios!M146","v":35.981807985036873},{"$f":"CustomersCOM!W18*Scenarios!N146","v":34.801898945111688},{"$f":"CustomersCOM!X18*Scenarios!O146","v":33.627889450386128},{"$f":"CustomersCOM!Y18*Scenarios!P146","v":32.459750003134197},{"$f":"CustomersCOM!Z18*Scenarios!Q146","v":31.297451253118524},{"$f":"CustomersCOM!AA18*Scenarios!R146","v":30.140963996852932},{"$f":"CustomersCOM!AB18*Scenarios!S146","v":28.990259176868669},{"$f":"CustomersCOM!AC18*Scenarios!T146","v":28.845307880984326},{"$f":"CustomersCOM!AD18*Scenarios!U146","v":28.701081341579403},{"$f":"CustomersCOM!AE18*Scenarios!V146","v":28.557575934871505},{"$f":"CustomersCOM!AF18*Scenarios!W146","v":28.414788055197146},{"$f":"CustomersCOM!AG18*Scenarios!X146","v":28.272714114921161},{"$f":"CustomersCOM!AH18*Scenarios!Y146","v":28.131350544346557},{"$f":"CustomersCOM!AI18*Scenarios!Z146","v":27.990693791624825},{"$f":"CustomersCOM!AJ18*Scenarios!AA146","v":27.850740322666699},{"$f":"CustomersCOM!AK18*Scenarios!AB146","v":27.711486621053364},{"$f":"CustomersCOM!AL18*Scenarios!AC146","v":27.572929187948098},{"$f":"CustomersCOM!AM18*Scenarios!AD146","v":27.435064542008359},{"$f":"CustomersCOM!AN18*Scenarios!AE146","v":27.297889219298316},{"$f":"CustomersCOM!AO18*Scenarios!AF146","v":27.161399773201826},{"$f":"CustomersCOM!AP18*Scenarios!AG146","v":27.025592774335816},{"$f":"CustomersCOM!AQ18*Scenarios!AH146","v":26.890464810464138},{"$f":"CustomersCOM!AR18*Scenarios!AI146","v":26.756012486411816},{"$f":"CustomersCOM!AS18*Scenarios!AJ146","v":26.622232423979757},{"$f":"CustomersCOM!AT18*Scenarios!AK146","v":26.489121261859857},{"$f":"CustomersCOM!AU18*Scenarios!AL146","v":26.356675655550557},{"$f":"CustomersCOM!AV18*Scenarios!AM146","v":26.224892277272804},{"$f":"CustomersCOM!AW18*Scenarios!AN146","v":26.093767815886441},{"$f":"CustomersCOM!AX18*Scenarios!AO146","v":25.963298976807007},{"$f":"CustomersCOM!AY18*Scenarios!AP146","v":25.833482481922971},{"$f":"CustomersCOM!AZ18*Scenarios!AQ146","v":25.704315069513356},{"$f":"CustomersCOM!BA18*Scenarios!AR146","v":25.57579349416579},{"$f":"CustomersCOM!BB18*Scenarios!AS146","v":25.447914526694962},{"$f":"CustomersCOM!BC18*Scenarios!AT146","v":25.320674954061488},{"$f":"CustomersCOM!BD18*Scenarios!AU146","v":25.19407157929118},{"$f":"CustomersCOM!BE18*Scenarios!AV146","v":25.068101221394723},{"$f":"CustomersCOM!BF18*Scenarios!AW146","v":24.942760715287751},{"$f":"CustomersCOM!BG18*Scenarios!AX146","v":24.818046911711313},{"$f":"CustomersCOM!BH18*Scenarios!AY146","v":24.693956677152755},{"$f":"CustomersCOM!BI18*Scenarios!AZ146","v":24.57048689376699},{"$f":"CustomersCOM!BJ18*Scenarios!BA146","v":24.447634459298154},{"$f":"CustomersCOM!BK18*Scenarios!BB146","v":24.325396287001663},{"$f":"CustomersCOM!BL18*Scenarios!BC146","v":24.203769305566656},{"$f":"CustomersCOM!BM18*Scenarios!BD146","v":24.082750459038824},{"$f":"CustomersCOM!BN18*Scenarios!BE146","v":23.962336706743631},{"$f":"CustomersCOM!BO18*Scenarios!BF146","v":23.842525023209912},{"$f":"CustomersCOM!BP18*Scenarios!BG146","v":23.723312398093864},{"$f":"CustomersCOM!BQ18*Scenarios!BH146","v":23.604695836103396},{"$f":"CustomersCOM!BR18*Scenarios!BI146","v":23.486672356922877},{"$f":"CustomersCOM!BS18*Scenarios!BJ146","v":23.369238995138264},{"$f":"CustomersCOM!BT18*Scenarios!BK146","v":23.252392800162575},{"$f":"CustomersCOM!BU18*Scenarios!BL146","v":23.136130836161762},{"$f":"CustomersCOM!BV18*Scenarios!BM146","v":23.020450181980951},{"$f":"CustomersCOM!BW18*Scenarios!BN146","v":22.905347931071045},{"$f":"CustomersCOM!BX18*Scenarios!BO146","v":22.790821191415692},{"$f":"CustomersCOM!BY18*Scenarios!BP146","v":22.676867085458614},{"$f":"CustomersCOM!BZ18*Scenarios!BQ146","v":22.563482750031319},{"$f":"CustomersCOM!CA18*Scenarios!BR146","v":22.450665336281162},{"$f":"CustomersCOM!CB18*Scenarios!BS146","v":22.338412009599757},{"$f":"CustomersCOM!CC18*Scenarios!BT146","v":22.226719949551757},{"$f":"CustomersCOM!CD18*Scenarios!BU146","v":22.115586349803998},{"$f":"CustomersCOM!CE18*Scenarios!BV146","v":22.005008418054977},{"$f":"CustomersCOM!CF18*Scenarios!BW146","v":21.894983375964703},{"$f":"CustomersCOM!CG18*Scenarios!BX146","v":21.78550845908488},{"$f":"CustomersCOM!CH18*Scenarios!BY146","v":21.676580916789455},{"$f":"CustomersCOM!CI18*Scenarios!BZ146","v":21.568198012205507},{"$f":"CustomersCOM!CJ18*Scenarios!CA146","v":21.460357022144478},{"$f":"CustomersCOM!CK18*Scenarios!CB146","v":21.353055237033757},{"$f":"CustomersCOM!CL18*Scenarios!CC146","v":21.246289960848589}]
["Stonnington (C)",{"$f":"CustomersCOM!B19","v":1261},{"$f":"CustomersCOM!C19","v":1275},{"$f":"CustomersCOM!D19","v":1295},{"$f":"CustomersCOM!E19","v":1285},{"$f":"CustomersCOM!F19","v":1316},{"$f":"CustomersCOM!G19","v":1333},{"$f":"CustomersCOM!H19","v":1356},{"$f":"CustomersCOM!I19","v":1363},{"$f":"CustomersCOM!J19","v":1341},{"$f":"CustomersCOM!K19*Scenarios!B147","v":1315},{"$f":"CustomersCOM!L19*Scenarios!C147","v":1304.425},{"$f":"CustomersCOM!M19*Scenarios!D147","v":1216.902875},{"$f":"CustomersCOM!N19*Scenarios!E147","v":1131.818360625},{"$f":"CustomersCOM!O19*Scenarios!F147","v":1126.159268821875},{"$f":"CustomersCOM!P19*Scenarios!G147","v":1114.5284724777657},{"$f":"CustomersCOM!Q19*Scenarios!H147","v":1060.9558301153768},{"$f":"CustomersCOM!R19*Scenarios!I147","v":1009.6510509647999},{"$f":"CustomersCOM!S19*Scenarios!J147","v":938.60279570997591},{"$f":"CustomersCOM!T19*Scenarios!K147","v":872.90978173142605},{"$f":"CustomersCOM!U19*Scenarios!L147","v":818.54523282276887},{"$f":"CustomersCOM!V19*Scenarios!M147","v":767.45250665865501},{"$f":"CustomersCOM!W19*Scenarios!N147","v":713.61524412536176},{"$f":"CustomersCOM!X19*Scenarios!O147","v":664.04716790473492},{"$f":"CustomersCOM!Y19*Scenarios!P147","v":639.72693206521126},{"$f":"CustomersCOM!Z19*Scenarios!Q147","v":606.52829740488517},{"$f":"CustomersCOM!AA19*Scenarios!R147","v":567.49565591786074},{"$f":"CustomersCOM!AB19*Scenarios!S147","v":528.65817763827147},{"$f":"CustomersCOM!AC19*Scenarios!T147","v":492.01488675008011},{"$f":"CustomersCOM!AD19*Scenarios!U147","v":458.55481231632973},{"$f":"CustomersCOM!AE19*Scenarios!V147","v":427.26203825474806},{"$f":"CustomersCOM!AF19*Scenarios!W147","v":398.1257280634743},{"$f":"CustomersCOM!AG19*Scenarios!X147","v":371.13509942315693},{"$f":"CustomersCOM!AH19*Scenarios!Y147","v":346.27942392604115},{"$f":"CustomersCOM!AI19*Scenarios!Z147","v":322.54802680641092},{"$f":"CustomersCOM!AJ19*Scenarios!AA147","v":300.93528667237888},{"$f":"CustomersCOM!AK19*Scenarios!AB147","v":280.43061023901697},{"$f":"CustomersCOM!AL19*Scenarios!AC147","v":262.02845718782191},{"$f":"CustomersCOM!AM19*Scenarios!AD147","v":244.71831490188282},{"$f":"CustomersCOM!AN19*Scenarios!AE147","v":228.49472332737341},{"$f":"CustomersCOM!AO19*Scenarios!AF147","v":213.35224971073654},{"$f":"CustomersCOM!AP19*Scenarios!AG147","v":199.28548846218285},{"$f":"CustomersCOM!AQ19*Scenarios!AH147","v":186.28906101987195},{"$f":"CustomersCOM!AR19*Scenarios!AI147","v":174.35761571477258},{"$f":"CustomersCOM!AS19*Scenarios!AJ147","v":163.48582763619871},{"$f":"CustomersCOM!AT19*Scenarios!AK147","v":153.66839849801772},{"$f":"CustomersCOM!AU19*Scenarios!AL147","v":143.90005650552763},{"$f":"CustomersCOM!AV19*Scenarios!AM147","v":135.180556223},{"$f":"CustomersCOM!AW19*Scenarios!AN147","v":126.504653441885},{"$f":"CustomersCOM!AX19*Scenarios!AO147","v":118.87213017467558},{"$f":"CustomersCOM!AY19*Scenarios!AP147","v":112.27776952380219},{"$f":"CustomersCOM!AZ19*Scenarios!AQ147","v":105.71638067618318},{"$f":"CustomersCOM!BA19*Scenarios!AR147","v":99.187798772802267},{"$f":"CustomersCOM!BB19*Scenarios!AS147","v":93.691859778938252},{"$f":"CustomersCOM!BC19*Scenarios!AT147","v":88.223400480043566},{"$f":"CustomersCOM!BD19*Scenarios!AU147","v":83.782283477643347},{"$f":"CustomersCOM!BE19*Scenarios!AV147","v":79.363372060255131},{"$f":"CustomersCOM!BF19*Scenarios!AW147","v":74.966555199953859},{"$f":"CustomersCOM!BG19*Scenarios!AX147","v":71.591722423954096},{"$f":"CustomersCOM!BH19*Scenarios!AY147","v":68.233763811834322},{"$f":"CustomersCOM!BI19*Scenarios!AZ147","v":64.892594992775145},{"$f":"CustomersCOM!BJ19*Scenarios!BA147","v":61.568132017811266},{"$f":"CustomersCOM!BK19*Scenarios!BB147","v":58.26029135772221},{"$f":"CustomersCOM!BL19*Scenarios!BC147","v":55.9689899009336},{"$f":"CustomersCOM!BM19*Scenarios!BD147","v":53.689144951428929},{"$f":"CustomersCOM!BN19*Scenarios!BE147","v":51.420699226671786},{"$f":"CustomersCOM!BO19*Scenarios!BF147","v":49.163595730538425},{"$f":"CustomersCOM!BP19*Scenarios!BG147","v":46.917777751885737},{"$f":"CustomersCOM!BQ19*Scenarios!BH147","v":44.683188863126311},{"$f":"CustomersCOM!BR19*Scenarios!BI147","v":43.459772918810678},{"$f":"CustomersCOM!BS19*Scenarios!BJ147","v":42.242474054216622},{"$f":"CustomersCOM!BT19*Scenarios!BK147","v":41.031261683945537},{"$f":"CustomersCOM!BU19*Scenarios!BL147","v":39.826105375525813},{"$f":"CustomersCOM!BV19*Scenarios!BM147","v":38.626974848648182},{"$f":"CustomersCOM!BW19*Scenarios!BN147","v":37.43383997440494},{"$f":"CustomersCOM!BX19*Scenarios!BO147","v":36.246670774532916},{"$f":"CustomersCOM!BY19*Scenarios!BP147","v":35.065437420660253},{"$f":"CustomersCOM!BZ19*Scenarios!BQ147","v":33.890110233556953},{"$f":"CustomersCOM!CA19*Scenarios!BR147","v":32.720659682389169},{"$f":"CustomersCOM!CB19*Scenarios!BS147","v":31.557056383977223},{"$f":"CustomersCOM!CC19*Scenarios!BT147","v":30.399271102057337},{"$f":"CustomersCOM!CD19*Scenarios!BU147","v":29.247274746547049},{"$f":"CustomersCOM!CE19*Scenarios!BV147","v":29.101038372814315},{"$f":"CustomersCOM!CF19*Scenarios!BW147","v":28.955533180950244},{"$f":"CustomersCOM!CG19*Scenarios!BX147","v":28.810755515045493},{"$f":"CustomersCOM!CH19*Scenarios!BY147","v":28.666701737470266},{"$f":"CustomersCOM!CI19*Scenarios!BZ147","v":28.523368228782914},{"$f":"CustomersCOM!CJ19*Scenarios!CA147","v":28.380751387638998},{"$f":"CustomersCOM!CK19*Scenarios!CB147","v":28.238847630700803},{"$f":"CustomersCOM!CL19*Scenarios!CC147","v":28.097653392547301}]
["Whitehorse (C)",{"$f":"CustomersCOM!B20","v":1128},{"$f":"CustomersCOM!C20","v":1142},{"$f":"CustomersCOM!D20","v":1161},{"$f":"CustomersCOM!E20","v":1154},{"$f":"CustomersCOM!F20","v":1161},{"$f":"CustomersCOM!G20","v":1175},{"$f":"CustomersCOM!H20","v":1183},{"$f":"CustomersCOM!I20","v":1170},{"$f":"CustomersCOM!J20","v":1168},{"$f":"CustomersCOM!K20*Scenarios!B148","v":1148.3333333333333},{"$f":"CustomersCOM!L20*Scenarios!C148","v":1139.5916666666667},{"$f":"CustomersCOM!M20*Scenarios!D148","v":1061.8937083333333},{"$f":"CustomersCOM!N20*Scenarios!E148","v":987.58423979166662},{"$f":"CustomersCOM!O20*Scenarios!F148","v":984.64631859270833},{"$f":"CustomersCOM!P20*Scenarios!G148","v":975.72308699974474},{"$f":"CustomersCOM!Q20*Scenarios!H148","v":925.84447156474607},{"$f":"CustomersCOM!R20*Scenarios!I148","v":877.21524920692229},{"$f":"CustomersCOM!S20*Scenarios!J148","v":815.82917296088772},{"$f":"CustomersCOM!T20*Scenarios!K148","v":758.75002709608327},{"$f":"CustomersCOM!U20*Scenarios!L148","v":710.95627696060285},{"$f":"CustomersCOM!V20*Scenarios!M148","v":665.4014955757998},{"$f":"CustomersCOM!W20*Scenarios!N148","v":619.07448809792083},{"$f":"CustomersCOM!X20*Scenarios!O148","v":575.97911565743118},{"$f":"CustomersCOM!Y20*Scenarios!P148","v":554.09922007914406},{"$f":"CustomersCOM!Z20*Scenarios!Q148","v":523.32872397874837},{"$f":"CustomersCOM!AA20*Scenarios!R148","v":488.71208035885462},{"$f":"CustomersCOM!AB20*Scenarios!S148","v":455.26851995706033},{"$f":"CustomersCOM!AC20*Scenarios!T148","v":423.99217735727501},{"$f":"CustomersCOM!AD20*Scenarios!U148","v":394.87221647048864},{"$f":"CustomersCOM!AE20*Scenarios!V148","v":367.89785538813618},{"$f":"CustomersCOM!AF20*Scenarios!W148","v":343.05836611119548},{"$f":"CustomersCOM!AG20*Scenarios!X148","v":320.34307428063948},{"$f":"CustomersCOM!AH20*Scenarios!Y148","v":298.74135890923628},{"$f":"CustomersCOM!AI20*Scenarios!Z148","v":279.24765211469008},{"$f":"CustomersCOM!AJ20*Scenarios!AA148","v":260.85141385411663},{"$f":"CustomersCOM!AK20*Scenarios!AB148","v":243.54715678484604},{"$f":"CustomersCOM!AL20*Scenarios!AC148","v":227.3294210009218},{"$f":"CustomersCOM!AM20*Scenarios!AD148","v":212.19277389591718},{"$f":"CustomersCOM!AN20*Scenarios!AE148","v":198.13181002643759},{"$f":"CustomersCOM!AO20*Scenarios!AF148","v":185.1411509763054},{"$f":"CustomersCOM!AP20*Scenarios!AG148","v":173.21544522142386},{"$f":"CustomersCOM!AQ20*Scenarios!AH148","v":162.34936799531675},{"$f":"CustomersCOM!AR20*Scenarios!AI148","v":152.53762115534016},{"$f":"CustomersCOM!AS20*Scenarios!AJ148","v":142.77493304956346},{"$f":"CustomersCOM!AT20*Scenarios!AK148","v":134.06105838431563},{"$f":"CustomersCOM!AU20*Scenarios!AL148","v":126.39075309239405},{"$f":"CustomersCOM!AV20*Scenarios!AM148","v":118.75879932693208},{"$f":"CustomersCOM!AW20*Scenarios!AN148","v":112.16500533029742},{"$f":"CustomersCOM!AX20*Scenarios!AO148","v":105.60418030364593},{"$f":"CustomersCOM!AY20*Scenarios!AP148","v":99.076159402127701},{"$f":"CustomersCOM!AZ20*Scenarios!AQ148","v":93.580778605117061},{"$f":"CustomersCOM!BA20*Scenarios!AR148","v":88.112874712091468},{"$f":"CustomersCOM!BB20*Scenarios!AS148","v":83.672310338531005},{"$f":"CustomersCOM!BC20*Scenarios!AT148","v":79.25394878683835},{"$f":"CustomersCOM!BD20*Scenarios!AU148","v":74.857679042904152},{"$f":"CustomersCOM!BE20*Scenarios!AV148","v":71.483390647689632},{"$f":"CustomersCOM!BF20*Scenarios!AW148","v":68.12597369445119},{"$f":"CustomersCOM!BG20*Scenarios!AX148","v":64.785343825978941},{"$f":"CustomersCOM!BH20*Scenarios!AY148","v":61.461417106849048},{"$f":"CustomersCOM!BI20*Scenarios!AZ148","v":58.1541100213148},{"$f":"CustomersCOM!BJ20*Scenarios!BA148","v":55.863339471208228},{"$f":"CustomersCOM!BK20*Scenarios!BB148","v":53.584022773852183},{"$f":"CustomersCOM!BL20*Scenarios!BC148","v":51.316102659982924},{"$f":"CustomersCOM!BM20*Scenarios!BD148","v":49.059522146683008},{"$f":"CustomersCOM!BN20*Scenarios!BE148","v":46.814224535949592},{"$f":"CustomersCOM!BO20*Scenarios!BF148","v":44.580153413269841},{"$f":"CustomersCOM!BP20*Scenarios!BG148","v":43.357252646203492},{"$f":"CustomersCOM!BQ20*Scenarios!BH148","v":42.140466382972477},{"$f":"CustomersCOM!BR20*Scenarios!BI148","v":40.929764051057617},{"$f":"CustomersCOM!BS20*Scenarios!BJ148","v":39.725115230802331},{"$f":"CustomersCOM!BT20*Scenarios!BK148","v":38.526489654648316},{"$f":"CustomersCOM!BU20*Scenarios!BL148","v":37.333857206375072},{"$f":"CustomersCOM!BV20*Scenarios!BM148","v":36.1471879203432},{"$f":"CustomersCOM!BW20*Scenarios!BN148","v":34.966451980741482},{"$f":"CustomersCOM!BX20*Scenarios!BO148","v":33.791619720837772},{"$f":"CustomersCOM!BY20*Scenarios!BP148","v":32.622661622233586},{"$f":"CustomersCOM!BZ20*Scenarios!BQ148","v":31.459548314122419},{"$f":"CustomersCOM!CA20*Scenarios!BR148","v":30.302250572551806},{"$f":"CustomersCOM!CB20*Scenarios!BS148","v":29.150739319689048},{"$f":"CustomersCOM!CC20*Scenarios!BT148","v":29.004985623090604},{"$f":"CustomersCOM!CD20*Scenarios!BU148","v":28.85996069497515},{"$f":"CustomersCOM!CE20*Scenarios!BV148","v":28.715660891500274},{"$f":"CustomersCOM!CF20*Scenarios!BW148","v":28.572082587042772},{"$f":"CustomersCOM!CG20*Scenarios!BX148","v":28.429222174107558},{"$f":"CustomersCOM!CH20*Scenarios!BY148","v":28.28707606323702},{"$f":"CustomersCOM!CI20*Scenarios!BZ148","v":28.145640682920835},{"$f":"CustomersCOM!CJ20*Scenarios!CA148","v":28.004912479506231},{"$f":"CustomersCOM!CK20*Scenarios!CB148","v":27.8648879171087},{"$f":"CustomersCOM!CL20*Scenarios!CC148","v":27.725563477523156}]
["Yarra Ranges (S)",{"$f":"CustomersCOM!B21","v":876},{"$f":"CustomersCOM!C21","v":889},{"$f":"CustomersCOM!D21","v":885},{"$f":"CustomersCOM!E21","v":886},{"$f":"CustomersCOM!F21","v":880},{"$f":"CustomersCOM!G21","v":878},{"$f":"CustomersCOM!H21","v":886},{"$f":"CustomersCOM!I21","v":875},{"$f":"CustomersCOM!J21","v":854},{"$f":"CustomersCOM!K21*Scenarios!B149","v":841.33333333333337},{"$f":"CustomersCOM!L21*Scenarios!C149","v":830.12666666666667},{"$f":"CustomersCOM!M21*Scenarios!D149","v":773.97603333333336},{"$f":"CustomersCOM!N21*Scenarios!E149","v":720.10615316666667},{"$f":"CustomersCOM!O21*Scenarios!F149","v":713.50562240083332},{"$f":"CustomersCOM!P21*Scenarios!G149","v":702.93809428882912},{"$f":"CustomersCOM!Q21*Scenarios!H149","v":666.42340381738495},{"$f":"CustomersCOM!R21*Scenarios!I149","v":630.09128679829803},{"$f":"CustomersCOM!S21*Scenarios!J149","v":585.94083036430652},{"$f":"CustomersCOM!T21*Scenarios!K149","v":545.01112621248501},{"$f":"CustomersCOM!U21*Scenarios!L149","v":510.28607058142256},{"$f":"CustomersCOM!V21*Scenarios!M149","v":477.73464022851545},{"$f":"CustomersCOM!W21*Scenarios!N149","v":445.34596702737286},{"$f":"CustomersCOM!X21*Scenarios!O149","v":415.11923719223603},{"$f":"CustomersCOM!Y21*Scenarios!P149","v":398.04364100627487},{"$f":"CustomersCOM!Z21*Scenarios!Q149","v":376.05342280124347},{"$f":"CustomersCOM!AA21*Scenarios!R149","v":351.17315568723723},{"$f":"CustomersCOM!AB21*Scenarios!S149","v":327.41728990880102},{"$f":"CustomersCOM!AC21*Scenarios!T149","v":305.780203459257},{"$f":"CustomersCOM!AD21*Scenarios!U149","v":285.25130244196072},{"$f":"CustomersCOM!AE21*Scenarios!V149","v":265.8250459297509},{"$f":"CustomersCOM!AF21*Scenarios!W149","v":248.49592070010215},{"$f":"CustomersCOM!AG21*Scenarios!X149","v":232.25344109660165},{"$f":"CustomersCOM!AH21*Scenarios!Y149","v":217.09217389111865},{"$f":"CustomersCOM!AI21*Scenarios!Z149","v":203.00671302166305},{"$f":"CustomersCOM!AJ21*Scenarios!AA149","v":189.99167945655472},{"$f":"CustomersCOM!AK21*Scenarios!AB149","v":178.04172105927194},{"$f":"CustomersCOM!AL21*Scenarios!AC149","v":167.15151245397558},{"$f":"CustomersCOM!AM21*Scenarios!AD149","v":156.31575489170569},{"$f":"CustomersCOM!AN21*Scenarios!AE149","v":146.53417611724717},{"$f":"CustomersCOM!AO21*Scenarios!AF149","v":137.80150523666094},{"$f":"CustomersCOM!AP21*Scenarios!AG149","v":129.11249771047764},{"$f":"CustomersCOM!AQ21*Scenarios!AH149","v":121.46693522192525},{"$f":"CustomersCOM!AR21*Scenarios!AI149","v":113.85960054581562},{"$f":"CustomersCOM!AS21*Scenarios!AJ149","v":107.29030254308654},{"$f":"CustomersCOM!AT21*Scenarios!AK149","v":100.75385103037111},{"$f":"CustomersCOM!AU21*Scenarios!AL149","v":95.250081775219257},{"$f":"CustomersCOM!AV21*Scenarios!AM149","v":89.77383136634316},{"$f":"CustomersCOM!AW21*Scenarios!AN149","v":85.32496220951144},{"$f":"CustomersCOM!AX21*Scenarios!AO149","v":80.89833739846388},{"$f":"CustomersCOM!AY21*Scenarios!AP149","v":76.493845711471565},{"$f":"CustomersCOM!AZ21*Scenarios!AQ149","v":72.11137648291421},{"$f":"CustomersCOM!BA21*Scenarios!AR149","v":68.750819600499639},{"$f":"CustomersCOM!BB21*Scenarios!AS149","v":65.407065502497147},{"$f":"CustomersCOM!BC21*Scenarios!AT149","v":62.080030174984664},{"$f":"CustomersCOM!BD21*Scenarios!AU149","v":58.769630024109738},{"$f":"CustomersCOM!BE21*Scenarios!AV149","v":56.475781873989192},{"$f":"CustomersCOM!BF21*Scenarios!AW149","v":54.193402964619246},{"$f":"CustomersCOM!BG21*Scenarios!AX149","v":51.922435949796153},{"$f":"CustomersCOM!BH21*Scenarios!AY149","v":49.662823770047169},{"$f":"CustomersCOM!BI21*Scenarios!AZ149","v":47.41450965119693},{"$f":"CustomersCOM!BJ21*Scenarios!BA149","v":45.177437102940942},{"$f":"CustomersCOM!BK21*Scenarios!BB149","v":42.951549917426235},{"$f":"CustomersCOM!BL21*Scenarios!BC149","v":41.736792167839106},{"$f":"CustomersCOM!BM21*Scenarios!BD149","v":40.52810820699991},{"$f":"CustomersCOM!BN21*Scenarios!BE149","v":39.325467665964908},{"$f":"CustomersCOM!BO21*Scenarios!BF149","v":38.128840327635082},{"$f":"CustomersCOM!BP21*Scenarios!BG149","v":36.93819612599691},{"$f":"CustomersCOM!BQ21*Scenarios!BH149","v":35.753505145366923},{"$f":"CustomersCOM!BR21*Scenarios!BI149","v":34.574737619640089},{"$f":"CustomersCOM!BS21*Scenarios!BJ149","v":33.401863931541889},{"$f":"CustomersCOM!BT21*Scenarios!BK149","v":32.234854611884181},{"$f":"CustomersCOM!BU21*Scenarios!BL149","v":31.073680338824762},{"$f":"CustomersCOM!BV21*Scenarios!BM149","v":29.918311937130639},{"$f":"CustomersCOM!BW21*Scenarios!BN149","v":29.768720377444986},{"$f":"CustomersCOM!BX21*Scenarios!BO149","v":29.61987677555776},{"$f":"CustomersCOM!BY21*Scenarios!BP149","v":29.471777391679971},{"$f":"CustomersCOM!BZ21*Scenarios!BQ149","v":29.324418504721571},{"$f":"CustomersCOM!CA21*Scenarios!BR149","v":29.177796412197964},{"$f":"CustomersCOM!CB21*Scenarios!BS149","v":29.031907430136975},{"$f":"CustomersCOM!CC21*Scenarios!BT149","v":28.886747892986289},{"$f":"CustomersCOM!CD21*Scenarios!BU149","v":28.742314153521356},{"$f":"CustomersCOM!CE21*Scenarios!BV149","v":28.598602582753749},{"$f":"CustomersCOM!CF21*Scenarios!BW149","v":28.455609569839979},{"$f":"CustomersCOM!CG21*Scenarios!BX149","v":28.313331521990779},{"$f":"CustomersCOM!CH21*Scenarios!BY149","v":28.171764864380826},{"$f":"CustomersCOM!CI21*Scenarios!BZ149","v":28.030906040058923},{"$f":"CustomersCOM!CJ21*Scenarios!CA149","v":27.890751509858628},{"$f":"CustomersCOM!CK21*Scenarios!CB149","v":27.751297752309334},{"$f":"CustomersCOM!CL21*Scenarios!CC149","v":27.612541263547786}]
["Multinet",{"$f":"SUM(B99:B117)","v":14367},{"$f":"SUM(C99:C117)","v":14685},14656,14640,14715,14787,14850,14560,14439,14156.66666666667,14051.881666666666,13111.620591666666,12204.060822041667,12155.03885126479,12042.2619903418,11448.049013723425,10865.807101988141,10115.476399811536,9417.897351145808,8835.8061977234156,8285.6255000681285,7718.195705901122,7191.6030607049488,6924.6433787347578,6556.0184951744177,6134.2367360318804,5723.5638856850537,5340.944399589961,4984.2380109253445,4653.3151542040514,4347.0469117663642,4061.3100105408657,3799.0017938214946,3553.0051181857207,3324.2384259281248,3109.615567131817,2910.0658226294918,2727.5138268496776,2556.8745910487623,2399.0885514268521,2251.0914420030517,2114.8343181263695,1989.2584798690709,1872.3105208030588,1762.9473015323767,1661.1308983580482,1568.8235771995912,1481.9777926469267,1403.5662370170253,1328.5467391652735,1260.9023388027808,1197.5961604421002,1137.6065129732228,1081.9168137416902,1029.505563006315,981.35636852461676,939.44792001532699,899.74901374858382,862.24860201317415,826.93569233644143,794.79934720809263,764.8236838053856,736.99789871969199,710.31124255942689,684.75801967996301,{"$f":"SUM(BO99:BO117)","v":661.33256291489647},640.02423343365535,620.82244559982053,603.71666670515492,588.6964167049623,574.75126795477081,560.87584494833027,548.06979905692185,536.32778339497065,524.64447781132924,513.01958875560592,501.452824145161,491.94389335776867,482.48250722431317,477.06842802152494,471.68141921475063,467.32134545201012,464.98307205808351,462.65649003112645,460.34154091430418,458.03816654306593,455.74630904368394,453.46591083179879,451.19691461097324]
[]
["Total commercial volume (TJ)"]
["FY",2012,2013,2014,2015,2016,2017,2018,2019,2020,2021,2022,2023,2024,2025,2026,2027,2028,2029,2030,2031,2032,2033,2034,2035,2036,2037,2038,2039,2040,2041,2042,2043,2044,2045,2046,2047,2048,2049,2050,2051,2052,2053,2054,2055,2056,2057,2058,2059,2060,2061,2062,2063,2064,2065,2066,2067,2068,2069,2070,2071,2072,2073,2074,2075,2076,2077,2078,2079,2080,2081,2082,2083,2084,2085,2086,2087,2088,2089,2090,2091,2092,2093,2094,2095,2096,2097,2098,2099,2100]
["Bass Coast (S)",{"$f":"B75*B99/1000","v":15.039770262609389},{"$f":"C75*C99/1000","v":32.238776574571368},33.275936000000002,39.659663999999999,39.536758999999996,41.556923000000005,43.024203999999997,42.804247000000004,43.159044999999999,{"$f":"K75*K99/1000","v":40.725249870383792},37.717824663743407,37.384788490847875,35.791355148850421,37.284157772054726,37.14291320072023,34.746503051479792,31.175869144322139,28.192613229373201,25.85672964115723,26.312719777416522,25.648939232695486,24.443906552617765,23.017222355983815,24.797836308867428,23.795239807978813,22.688059734963449,21.420091748359674,20.422432573787212,19.785337722241159,18.95215968231275,17.750354160829573,16.72193119402634,16.502646087800233,16.2549463852834,15.470414917156205,14.746331913915906,14.064051254371368,13.40170140558498,12.69302676487446,12.075833099150376,11.362950777467336,{"$f":"AQ75*AQ99/1000","v":10.757772700358858},10.156982914954018,9.5605598786997525,8.9684822201412562,8.3807287388343124,7.7972784052797719,7.7485145315502377,7.700022080029802,7.6517993959003361,7.6038448321402603,7.5561567494451465,7.5087335161479096,7.4615735081384358,7.4146751087827019,7.3680367088413128,7.3216567063874436,7.2755335067241305,7.2296655223009294,7.1840511726298306,7.1386888842004836,7.0935770903945974,7.0487142313995799,7.004098754121264,6.959729112095804,6.915603765400582,6.8717211805641458,6.8280798304751231,6.7846781942900565,6.7415147573400729,6.6985880110364269,6.6558964527747433,6.6134385858380087,{"$f":"BW75*BW99/1000","v":6.571212919298163},6.5292179679163125,6.4874522520414155,6.4459142975074437,6.4046026355288923,6.3635158025946117,6.3226523403598351,6.2820107955363698,6.2415897197808246,6.2013876695808143,6.1614032061390223,6.1216348952550685,6.0820813072050033,6.0427410166184234,6.0036126023529928,5.9646946473663425]
["Bayside (C)",94.187674681975523,{"$f":"C76*C100/1000","v":179.47240019317914},233.26831799999999,232.48765599999999,234.63579099999998,234.708608,217.91922800000003,196.854085,181.395567,{"$f":"K76*K100/1000","v":167.46843429577524},150.98116418707824,145.68245774002605,135.37792145661973,137.56673320763875,135.46452944913693,126.24917266599405,112.81289056669131,99.410498544095788,89.126264233686285,89.821345695764975,84.774702645545645,77.405498924015447,69.907335927258089,74.909022276184047,70.622947547004614,65.234222566672528,59.480432352820699,54.771990037181759,51.262640325738857,47.460821233931263,43.191294812295659,39.604862807900403,36.827267901160354,34.038987947858246,31.523332508924909,29.333048076589268,27.420129577127323,25.553359206595744,23.788451138734704,22.38135316149339,20.801056299481079,{"$f":"AQ76*AQ100/1000","v":19.600765613582084},18.409198955418411,17.404324413735729,16.406755662641924,15.416456998439166,14.61073621916829,13.81088238352606,13.016866963548898,12.405332908715611,11.798248710993475,11.195592804731698,10.59734380194444,10.003480492349714,9.589523024503567,9.1785776181651286,8.7706297730057994,8.3656651106824089,7.9636693749190925,7.5646284316089636,7.3426956656612345,7.1223582276668642,6.9036084130122726,6.686438582013742,6.4708411599757918,6.2568086372607361,6.0443335693698153,5.8334085770362112,5.6240263463303011,5.4161796287774857,5.209861241489036,5.0050640673062627,4.9731368362131567,{"$f":"BW76*BW100/1000","v":4.9413842138855459},4.9098050834617322,4.8783983322819395,4.8471628518109782,4.8160975375596813,4.7852012890050544,4.7544730095090975,4.7239116062362232,4.6935159900692058,4.6632850755236186,4.6332177806606394,4.6033130269982285,4.573569739420507,4.5439868460853514,4.5145632783300362,4.4852979705749085]
["Boroondara (C)",194.42641943249086,442.71130033189246,624.37751100000003,574.55804699999999,541.45986899999991,589.69501200000002,458.751623,436.65642200000002,422.63496299999997,{"$f":"K77*K101/1000","v":391.69656194519899},354.84314069529091,341.50802711628859,316.94096963556484,323.63899939242219,320.25475338612046,297.548098458467,265.22877200970913,233.4605371907692,208.84073057271954,209.75913099658266,197.23236774761713,179.99119925326022,162.48016478162828,173.95363391648289,163.28498984027578,150.27434359397728,136.4490586243856,125.3063454232055,117.17269741314082,108.39207147915657,98.124877765704838,89.461919392422615,82.669492722512743,76.310939865379552,70.593296287500422,65.414372630786431,60.887534985560528,56.684050268796739,52.522573747155889,48.971824549483657,45.262956912682824,{"$f":"AQ77*AQ101/1000","v":42.210119100901792},39.392441796171198,36.807959036481506,34.454713011982541,32.330753963979276,30.222320455705713,28.340889812709801,26.684528274270686,25.040292761617771,23.618873030095543,22.207871666158642,20.807238557528549,19.626862475979475,18.455164959523152,17.501499991985234,16.554840465519295,15.615152990582496,14.890980494169668,14.172123689982344,13.458557338706175,12.750256420974772,12.047196137657133,11.556548711762073,11.069502473122691,10.586040453561893,10.106145836439655,9.629801956932635,9.1569923023437241,8.8932184776242895,8.6313552072142699,8.3713934500387452,8.1133242458367789,{"$f":"BW77*BW101/1000","v":7.8571387153316774},7.6028280604183189,7.3503835643679709,7.0997965920512422,6.851058590179699,6.604161087566804,6.3590956954087483,6.1158541075859345,5.8744281009857051,5.8365909370555391,5.7989585603389324,5.7615296210023619,5.7243027734254159,5.6872766760851272,5.6504499914378821,5.6138213857988548]
["Cardinia (S)",6.1762950284093669,11.691975896944967,17.900551,18.799221000000003,19.534485,20.852861000000001,19.824646000000001,15.827888,14.314162999999999,{"$f":"K78*K102/1000","v":12.926797668630115},11.631344352496351,11.365392973607005,10.712386146242952,10.810975698328168,10.62382894595461,10.030656225128711,9.0896685890480544,8.1816170372421233,7.4654102503746902,7.5542871079708611,7.2759698389574377,6.8460186392131979,6.358901961479428,6.8892385415302755,6.6497089909773113,6.2451418875046478,5.8007169813298249,5.5633063365407827,5.4235884758610098,5.229815728352329,4.9328922234761992,4.6821831281331825,4.4989793491612984,4.3108729847654859,4.1299296916281225,3.9645391189475885,3.8099343662508871,3.6603507303074672,3.4976186497767174,3.4764415530843857,3.4252491604318105,{"$f":"AQ78*AQ102/1000","v":3.4039133813561957},3.3826967122845581,3.3615984325808212,3.3406178251053626,3.3197541761824376,3.2990067755674755,3.2783749164141947,3.2578578952415929,3.2374550119007299,3.2171655695413617,3.1969888745783503,3.1769242366578978,3.1569709686235377,3.1371283864819186,3.1173958093683352,3.0977725595120078,3.0782579622010942,3.0588513457474225,3.0395520414509174,3.0203593835637328,3.0012727092540343,2.9822913585694573,2.9634146744001866,2.9446420024416762,2.9259726911569541,2.9074060917385229,2.8889415580698126,2.8705784466861917,2.85231611673548,2.8341539299379819,2.816091250545969,2.7981274453026446,{"$f":"BW78*BW102/1000","v":2.7802618834004971},2.7624939364390886,2.7448229783821834,2.7272483855142413,2.7097695363962067,2.6923858118205879,2.675096594765777,2.657901270349587,2.6407992257819624,2.6237898503168338,2.6068725352030651,2.5900466736344692,2.5733116606988262,2.5566668933258878,2.5401117702342897,2.5236456918773538]
["Casey (C)",15.214173896857149,28.437551780732228,42.469777999999998,44.988689000000001,37.767916,40.244132,27.477855999999999,28.387686000000002,27.121766000000001,{"$f":"K79*K103/1000","v":25.036614804437171},22.6344272390761,22.066062413204435,20.744998683602287,20.879060149037489,20.45992707950872,19.037474359234292,17.137038554115438,15.257681106112988,13.895213396604337,14.182042628539827,13.542332205139344,12.622971085205428,11.604932601399002,12.503619360086258,11.999030720756815,11.285153397855368,10.498493987234767,9.8513195572071748,9.3806280070942325,8.818438555557071,8.2375138198283118,7.7382842300241244,7.3534963140108607,6.9626617046048045,6.5855005100996449,6.2349572658342725,5.9027750129659262,5.7165336188167393,5.5090076409484787,5.3398289305646642,5.1267015682721953,{"$f":"AQ79*AQ103/1000","v":4.9604379820556481},4.7953564148477943,4.6314509739108063,4.4687158118327401,4.3071451264839107,4.1467331609787417,3.9874742036431834,3.9625194334453826,3.9377034886325126,3.9130255216284282,3.8884846888283224,3.864080150557649,3.8398110710307676,3.8156766183093205,3.7916759642603082,3.7678082845138636,3.7440727584206903,3.7204685690091703,3.6969949029420985,3.6736509504730495,3.650435905402333,3.6273489650325472,3.6043893301236705,3.581556204847721,3.5588487967429048,3.5362663166672741,3.5138079787518492,3.4914730003531909,3.4692606020053747,3.4471700073713762,3.4252004431937975,3.4033511392449447,{"$f":"BW79*BW103/1000","v":3.3816213282761849},3.3600102459665964,3.3385171308708284,3.3171412243661815,3.2958817705988355,3.2747380164292141,3.2537092113764183,3.2327946075617242,3.2119934596510546,3.1913050247964274,3.1707285625762864,3.1502633349347109,3.1299086061194048,3.1096636426184552,3.0895277130957606,3.0695000883251118]
["Frankston (C)",0,4.4910399999999999,14.461069999999999,13.65109,9.9128299999999996,8.542959999999999,0.72023999999999999,0,0,{"$f":"K80*K104/1000","v":0},0,0,0,0,0,0,0,0,0,0,0,0,0,0,0,0,0,0,0,0,0,0,0,0,0,0,0,0,0,0,0,{"$f":"AQ80*AQ104/1000","v":0},0,0,0,0,0,0,0,0,0,0,0,0,0,0,0,0,0,0,0,0,0,0,0,0,0,0,0,0,0,0,0,{"$f":"BW80*BW104/1000","v":0},0,0,0,0,0,0,0,0,0,0,0,0,0,0,0]
["Glen Eira (C)",99.37608915611041,207.31897879227918,334.04549500000002,293.06675900000005,282.466542,299.17222900000002,219.756832,207.20052100000001,195.94265999999999,{"$f":"K81*K105/1000","v":180.56598817371267},162.36650018438908,157.17107090764043,146.41306060179872,148.14393167584805,145.43039620947425,135.79023679773707,121.58581927402396,107.21924510971967,96.046855988246676,97.1038615627685,91.916226974972659,84.062235365887133,75.948151676942885,81.559764888100815,77.155847421929678,71.787077307623207,65.508458416435971,60.158251755532902,56.226161543106606,52.071976013924662,47.286499499908537,43.197734762836596,39.941358687473134,36.974884899369478,34.249124717895896,31.823100882853396,29.645655412176094,27.66400067834196,25.739888555851291,24.151180609907701,22.376687200558315,{"$f":"AQ81*AQ105/1000","v":20.961911350179548},19.698978290842788,18.445244239768858,17.341846555606441,16.246499883696139,15.299993529362204,14.36040192180743,13.568164667239792,12.781717370169908,12.001032036088425,11.36601805441653,10.73565300900713,10.109914547242795,9.6281779954654318,9.1499663452806903,8.6752627122697312,8.2040503555672259,7.87498465710547,7.5483197771594872,7.2240442513525354,6.9021467140115487,6.582615898279311,6.2654406362439961,5.9506098590866356,5.7754975109982931,5.6016502669283286,5.4290620887976964,5.2577269911430919,5.0876390411996235,4.9187923589936933,4.7511811174463157,4.5847995424872652,{"$f":"BW81*BW105/1000","v":4.4196419131803166},4.2557025618600086,4.0929758742802074,3.9314562897749297,3.9062597100764629,3.8812002568614443,3.8562770406643225,3.8314891751036271,3.8068357768137888,3.7823159653757448,3.7579288632462156,3.7336735956856608,3.709549290684782,3.6855550788895699,3.6616900935247738,3.6379534703157743]
["Greater Dandenong (C)",335.79914450893591,2121.6240312879681,4545.2804500000002,4309.1975330916612,4597.0242921833233,4065.3894410000003,1589.0527670000001,653.49449000000004,563.50142500000004,{"$f":"K82*K106/1000","v":511.13374346261867},467.29770975425038,448.48897863370735,415.79694776115639,428.55216919527516,428.15305844021321,395.83222113568854,350.58459958586275,308.64962451534501,276.03362706648267,275.58585213421765,257.82304504282473,235.21217223529666,212.44197656815169,226.29236127787163,210.32107752746862,192.88818428797083,175.17520740588898,161.06886252261461,150.62787630288369,139.46332809119016,126.48553896796322,115.32060742104383,106.66741879406071,98.670538949856123,91.260358630751341,84.595205283665209,78.538671563929185,73.279290619084691,68.118931162281228,63.793969968574487,58.980293152159668,{"$f":"AQ82*AQ106/1000","v":55.065871852302344},51.50206394745323,48.285920342496709,45.093247658129279,42.244785830966528,39.737610228739001,37.2487605219413,35.09779060654148,32.962562204088258,31.161829851204192,29.374280570217863,27.599850886895201,26.156083256484305,24.722903338593486,23.30026044545901,22.204475980657602,21.116722247017879,20.036960943783782,18.965154099817894,17.901264073950571,17.159549010564163,16.423270378397319,15.692402446853141,14.966919712176754,14.246796897814448,13.532008954815826,13.134300050608228,12.739469901522881,12.347504834553499,11.958391297514028,11.572115859262802,11.188665209951186,{"$f":"BW82*BW106/1000","v":10.808026161297311},10.430185646885871,10.055130722494578,9.6828485664483726,9.3133264800020825,8.9465518877526122,8.8891014002331818,8.8319629093672845,8.7751343789095877,8.7186137794067502,8.6623990880343982,8.6064882884310556,8.5508793705287189,8.4955703303800973,8.4405591699821887,8.3858438970961977]
["Kingston (C)",211.78124849814907,641.02950852388869,1197.344278,1160.0377633432836,1096.4002196865674,1023.0871999999999,458.62584100000004,412.98236500000002,407.31688500000001,{"$f":"K83*K107/1000","v":371.87513669723876},337.40457989341922,324.39328884023649,300.8114476206423,307.9908177303418,305.26843737900452,282.75985982304837,251.24984936586301,221.29017578715124,198.06357088245556,198.59146745190745,186.46663855745103,170.28872522610584,153.77392010203687,164.35464118378744,153.75574904388776,141.17312556228984,128.40004309529701,118.01780292818096,110.34342009643515,102.16065347699843,92.670677658683005,84.518101452964174,78.22535835249154,72.175582502200484,66.824313285786857,62.027014673788507,57.684181719455857,53.693122618710468,49.786453907369641,46.5024401769913,43.110367993606225,{"$f":"AQ83*AQ107/1000","v":40.383693031517438},37.922394576074154,35.479029385314917,33.298408270966213,31.133709885058359,29.229141452599237,27.582482682034321,25.947853857520478,24.325196718546401,22.957502631338805,21.59983023777793,20.494558544317577,19.397377872764451,18.308249372268396,17.227134519660403,16.395169812205463,15.569308400888424,14.749521203760569,13.935779389633439,13.36796446278947,12.804303823617696,12.244777745465946,11.689366674102905,11.138051227963611,10.590812198426715,10.28561966497084,9.9826311091686293,9.6818360225849354,9.3832239887077691,9.0867846831015804,8.7925078735785522,8.5003834203885855,{"$f":"BW83*BW107/1000","v":8.2104012764283851},7.9225514874704324,7.6368241924123117,7.3532096235471522,7.0716981068558109,6.7922800623215442,6.7486632805887892,6.7052833687334887,6.6621387808250176,6.6192279760892694,6.5765494187848992,6.5341015780772267,6.4918829279096268,6.4498919468723503,6.408127118068597,6.3665869289777879]
["Knox (C)",209.31034146842418,752.96294032068636,1466.9084760000001,1408.773784,1341.2853870000001,1350.552547,491.72389500000003,388.33176899999995,361.479738,{"$f":"K84*K108/1000","v":332.25053906910557},301.6426642525854,289.99513856475278,268.94719924953375,275.3915490509105,273.13359527250651,253.365176641499,225.51798524850113,198.4735241184747,177.56631028601871,178.15174909629764,167.43815257224458,152.79388320659788,137.9166878495551,147.53793253006918,138.2370023888835,127.03544074282162,115.42695730723736,106.01559006181981,99.081007917777711,91.733216690606454,83.253360341624472,75.992864229328688,70.442116774430858,65.126877770938549,60.227796565093264,55.848447058855221,51.89825193194158,48.284225778040614,44.765589931889252,41.826008578419838,38.807867259205459,{"$f":"AQ84*AQ108/1000","v":36.406795944770288},34.023209235779959,31.896352788671461,30.024050877931817,28.165403168999177,26.558776785752059,24.963880537098539,23.618489480405447,22.282923923850479,20.957136332256308,19.878004066616782,18.806765050313341,17.743381302255091,16.68781515983687,15.875734107338035,15.06960587266904,14.269402029101832,13.475094393527478,12.921128540651981,12.371213005924421,11.825328515575677,11.283455963273363,10.745576410339423,10.211671085998088,9.9143247522651343,9.6191251107980413,9.3260619086362038,9.0351249820247883,8.7463042565528681,8.4595897473088293,8.1749715590534038,7.8924398864110294,{"$f":"BW84*BW108/1000","v":7.6119850140799565},7.3335973170618312,7.0572672609112423,6.7829854020059823,6.7395134619211623,6.6962781076882267,6.6532778047023333,6.6105110236796429,6.5679762405396822,6.5256719362856161,6.4835965968822382,6.4417487131316582,6.4001267805465023,6.3587292992205988,6.3175547736969362,6.2766017128328722]
["Manningham (C)",100.27409438437233,203.03687024301684,254.664502,241.51863,234.04773900000001,269.142675,221.12151800000001,216.77641599999998,203.38929099999999,{"$f":"K85*K109/1000","v":190.59275425633402},173.21206305506149,166.64228048343665,154.65988099568634,158.52583969394919,157.25546230198742,145.1814089437668,128.6922430256507,113.6720467241376,101.82219873349419,102.09744874137803,95.881507785743239,87.721314347820098,79.539091988751736,85.052907658424033,79.712237063083009,73.464290942566123,67.113989811397971,62.008118599657173,58.326709615666346,54.082961808884072,49.148427811105144,45.060684979703794,41.958381568625775,38.842469068727723,36.099123133792531,33.787479876787543,31.581706461031537,29.698994764912253,27.720194165479562,26.214581217967886,24.503858963939287,{"$f":"AQ85*AQ109/1000","v":23.028162283425051},21.82748860363186,20.635523728014594,19.452224964890167,18.540846757346795,17.636074089375228,16.737874678974187,15.846216504159651,14.961067802909843,14.344033165459569,13.731470025310914,13.123356664298351,12.519671542588055,11.920393298714119,11.325500749641384,10.994591181300425,10.666050912545272,10.339868399710074,10.016032194038573,9.6945309417226326,9.3753533839557317,9.0584883570020214,8.7439247922811987,8.4316517164697871,8.1216582516191753,7.8139336152909813,7.5084671207101898,7.4607407076670764,7.4132762293360948,7.3660720268044484,7.3191264477400297,7.2724378462847383,{"$f":"BW85*BW109/1000","v":7.2260045829462749},7.1798250244884034,7.1338975438195442,7.0882205198796848,7.0427923375254871,6.9976113874135297,6.9526760658815814,6.9079847748278524,6.8635359215880785,6.8193279188103899,6.7753591843278231,6.73162814102841,6.6881332167226759,6.6448728440084972,6.601845460133128,6.5590495068523369]
["Maroondah (C)",97.856448386408488,{"$f":"C86*C110/1000","v":272.05801902009489},405.73764699999998,388.37487380514705,376.52783361029412,342.96741300000002,208.95368999999999,185.69369699999999,177.81645699999999,{"$f":"K86*K110/1000","v":164.68776215432752},149.40805101045618,143.65838795874316,133.51013322241133,136.55865825599574,135.19214405893922,125.47376105503152,111.61053089617219,98.505459970667985,88.38595344703289,88.768200474039176,83.509048864419569,76.305106964227519,69.073561511174518,73.92806712785513,69.383762087654148,64.062166266766781,58.383373468612682,53.786336474241345,50.420859668690433,46.82072794846114,42.613748176675173,39.131022628942908,36.495304274334821,33.846305017574608,31.513182010116907,29.318268267730286,27.447006347021293,25.849487438574098,24.167682677408749,22.664568788031279,21.211218315833662,{"$f":"AQ86*AQ110/1000","v":19.960874096119806},18.942989974116578,17.932483640981964,16.929318909829174,15.933459882027758,15.16712342522219,14.406351684123418,13.651117538766284,12.901394089163501,12.378283040148435,11.858960129281638,11.343406946172443,10.831605231405247,10.323536876567383,9.8191839242995123,9.5379515567609499,9.2587302769655135,8.9815102752390423,8.7062818223595269,8.4330352695868189,8.1617610487049888,7.8924496720777855,7.6250917327174346,7.3596779043672989,7.0961989415986393,6.8346456799220077,6.5750090359136193,6.3172800073571942,6.2770901104329102,6.2371205984768183,6.1973700723993339,6.157837138592658,{"$f":"BW86*BW110/1000","v":6.1185204088391387},6.0794185002183632,6.0405300350128215,6.0018536406121541,5.9633879494158588,5.9251315987344366,5.8870832306888587,5.849241492108324,5.8116050344261767,5.7741725135739665,5.7369425898734852,5.6999139279267776,5.6630851965039355,5.6264550684286814,5.5900222204615329,5.553785333180528]
["Melbourne (C)",76.179614267806954,471.08769357568104,1153.8816449999999,858.62825999999984,867.94576199999995,754.57905299999993,286.75110100000001,226.630021,230.71231700000001,{"$f":"K87*K111/1000","v":207.14810740977941},191.7961383611277,184.72282471852807,172.38930048001356,179.70386165663135,182.40548110274779,167.21742971264172,146.706020957302,130.36888076767062,118.20352867514502,118.76586881390614,112.45289656882794,103.83895152394393,94.469116993005713,100.13970638569708,93.37376280103841,87.320723005336646,80.72785942281898,75.230607794812485,71.08963175502663,67.255501209071426,61.180454780402776,55.805703059721679,52.255748335166167,48.681616150770544,45.223433082687016,41.965845358172942,38.845728188874979,36.704642906315172,34.441861470724916,32.43191850942582,30.17054227204137,{"$f":"AQ87*AQ111/1000","v":28.201014550829271},26.245848500788263,25.193561981407903,24.148842882827843,23.111653900401702,22.081958023882812,21.059718537262199,20.044899018644802,19.037463340164717,18.037375667940662,17.044600462072303,16.059102476678795,15.080846759980357,14.10979865442415,13.145923796855486,12.189188118735645,12.112401623563908,12.036040014001708,11.960100658832301,11.884580938455452,11.809478244744911,11.734789980904633,11.66051356132351,11.586646411428671,11.513185967537156,11.440129676706006,11.367474996580588,11.295219395241181,11.223360351047599,11.151895352481917,11.080821897989077,11.010137495815371,{"$f":"BW87*BW111/1000","v":10.939839663844616},10.869925929432025,10.800393829235546,10.731240909044633,10.662464723606318,10.594062836448442,10.526032819699909,10.458372253907871,10.391078727851646,10.324149838353279,10.257583190084519,10.191376395370149,10.12552707398738,10.060032852961257,9.9948913663557608,9.9301002550605677]
["Monash (C)",276.43103697860948,909.91697886720908,1656.1011839999999,1615.0945052777545,1607.881757555509,1537.0376839999999,658.200425,511.25830500000001,482.57122700000002,{"$f":"K88*K112/1000","v":440.93378015607919},401.78676529469811,385.97779452722631,357.88645919526857,367.80933654740016,366.06532424203795,339.03352291849291,300.87145981531751,264.86308365490794,236.85510067895851,237.07667151915498,222.44225440448389,202.99437061194359,183.10189480538003,195.72526261254185,182.64015562863315,167.62354869976875,152.35042270166733,139.88625197099827,130.60187969863196,120.99595701480297,109.50692941213786,99.893131443760453,92.448279640053897,85.27668388587837,78.903232316327717,73.171428257245609,67.963613307640912,63.441100144073523,59.001664481519001,55.002999709647533,50.864590433654769,{"$f":"AQ88*AQ112/1000","v":47.500434941553614},44.437504461019856,41.673265330616104,38.92919714028487,36.480853304433893,34.325721178684553,32.186339688844726,30.337243301022248,28.501677180265748,26.953489049050958,25.416633103557587,23.891054772916824,22.649560459218819,21.417168494775073,20.193835294339852,19.251318233056768,18.315706657399229,17.386967624541406,16.46506847500763,15.549976832970323,14.911677491292687,14.278054637332666,13.649086128338304,13.024750016600262,12.405024549758181,11.789888171144074,11.447165871697386,11.106922493917832,10.769146254865374,10.433825475544193,10.100948581092942,9.7705041009960851,{"$f":"BW88*BW112/1000","v":9.4424806693166854},9.1168670249515706,8.7936520119094119,8.4728245796125332,8.1543737832231979,7.8382887839951598,7.7879550333380987,7.7378946304356466,7.6881057912844124,7.6385867378316217,7.5893356978323059,7.5403509047037911,7.4916305973772683,7.4431730201464292,7.3949764225129018,7.347039059028476]
["Port Phillip (C)",314.84571939615751,904.42815093986235,1723.7571850000002,1624.7302092858606,1584.6506785717213,1490.7774909999998,738.49363100000005,651.02519999999993,605.12916200000006,{"$f":"K90*K113/1000","v":712.04436092769924},651.82822983288497,625.54766307913599,579.96244202693617,598.34575447646728,597.95062785445009,555.05338539327272,494.24046468337377,435.12617196882906,389.18078738775114,389.58758830634008,365.29414377805256,333.19615242331435,300.50108528072229,321.48191033702858,300.49534242734893,275.85439146342173,250.59208277463517,230.17773001965872,214.80028465572497,198.60685444444886,179.64840440234047,163.98493005873337,151.69853039464499,140.15943203062534,129.36668909487381,119.92604953329479,111.25860221282551,103.54381247409849,95.886427447136214,89.325158558408489,82.827834474048615,{"$f":"AQ90*AQ113/1000","v":77.506020826803635},72.592223218880079,67.714264949935696,63.24027705889965,59.16686377246797,55.490643220554709,51.841327302293863,48.585241680440092,45.719032076919383,42.873832681465238,40.414600006928524,37.973416670668414,35.91431631674066,33.870333864924191,31.841397014597916,30.190139894811342,28.551027011312399,26.924000630812323,25.67028469285513,24.425782833528839,23.190451421205921,21.964247207270791,20.747127326673613,19.897932264268338,19.05497825192964,18.218235968662601,17.387676357423913,16.563270625649519,15.744990245835485,15.288770311876473,14.835859569303921,14.386242406166298,{"$f":"BW90*BW113/1000","v":13.939903351247478},13.496827074386893,13.056998386829958,12.620402241609888,12.187023733961777,11.756848101770117,11.329860726050782,10.906047131468663,10.485392986892123,10.41785661969228,10.350685781591769,10.283878063243726,10.217431062821349,10.151342385811464,10.085609644803721,10.020230459275405]
["South Gippsland (S)",10.958901179763989,122.54744480055302,297.31575199999997,329.64300199999997,331.88706400000001,154.44203300000001,23.938811000000001,24.475206999999997,25.223440000000004,{"$f":"K91*K114/1000","v":14.081226195727764},12.820489896778202,12.605315363437178,11.962739038150831,12.235892158051385,12.189538600775792,11.560884971755256,10.526425407131738,9.6702784763627605,9.0204804556413674,9.3485866058366884,9.0752737704016493,8.611265670027473,8.0712709695439688,8.6530964228271046,8.2600151302414755,7.8319874462704782,7.3504759861359314,7.2137741023890136,7.2011124443718044,7.1151741611050783,6.8818751177427009,6.7034358975007384,6.6155295644458292,6.5162324761857873,6.4232886726645742,6.3506682742986058,6.2923517805012397,6.2398631568053693,6.1617535728691841,6.1244458889067523,6.0342602683700877,{"$f":"AQ91*AQ114/1000","v":5.9966730337075811},5.9592956350981332,5.9221268029974148,5.8851652740207987,5.8484097908859738,5.811859102355319,5.7755119631779879,5.73936713403174,5.7034233814644262,5.6676794778352111,5.6321342012553988,5.5967863355289387,5.5616346700925181,5.5266779999552877,5.4919151256381271,5.4573448531124908,5.4229659937387549,5.3887773642041008,5.3547777864598354,5.3209660876582054,5.2873411000885966,5.2539016611131544,5.2206466131017448,5.1875748033662736,5.1546850840942815,5.1219763122818218,5.0894473496655568,5.0570970626540657,5.0249243222582836,4.9929280040210893,4.9611069879459304,4.9294601584245203,{"$f":"BW91*BW114/1000","v":4.8979864041634888},4.8666846181099981,4.8355536973762279,4.804592543162725,4.7738000606805171,4.7431751590719831,4.7127167513303618,4.6824237542179219,4.6522950881826297,4.6223296772733482,4.5925264490534081,4.5628843345125567,4.5334022679771451,4.5040791870185259,4.4749140323595249,4.4459057477789647]
["Stonnington (C)",210.4245449418311,610.84425094791561,1056.5437939999999,928.794445,871.457447,919.05387199999996,491.326412,441.073058,416.40829700000006,{"$f":"K92*K115/1000","v":430.45673881412921},390.71846592553857,375.89701606568303,348.74845815676201,356.71166199346067,353.45750350755912,328.35999796208978,292.96588394307287,257.81310370631263,230.64113346869698,231.33088085665645,217.48949922076764,198.39841402178064,179.08172803141588,191.61567702672633,179.85932931403659,165.68661173461078,150.60810721716919,138.25334055787314,129.2714497422202,119.61028730279109,108.34095043866567,98.871703937996742,91.497820536393931,84.369859735040535,77.983700914482498,72.209618622621477,67.187515143229589,62.538229752538783,57.951070754745686,54.05326248632683,49.995914425301955,{"$f":"AQ92*AQ115/1000","v":46.677699640425757},43.633946357984023,40.862353125498764,38.360627995787809,35.877168364630883,33.66089228849814,31.460833636709459,29.525292461786488,27.852004964271682,26.1909687804167,24.542124846086335,23.152528139771178,21.773136922226531,20.650379007800723,19.535859369811053,18.429538645081831,17.576893530413866,16.730499915417525,15.890328040838529,15.056348404944579,14.228531763827055,13.650747539848993,13.077198905926871,12.507865849299973,11.942728534579423,11.381767304049319,10.824962678002043,10.514225413819965,10.205736055678836,9.8994839360942191,9.5954584821817512,9.2936492158415849,{"$f":"BW92*BW115/1000","v":8.9940457539621512},8.6966378086440859,8.4014151874447123,8.1083677936439624,7.8174856265322425,7.5287587817211099,7.2421774514773958,6.9577319250816627,6.9129629779428985,6.8684366157263463,6.8241512448712234,6.7801052769081522,6.7362971283256936,6.6927252204342391,6.6493879792270372,6.606283835238318]
["Whitehorse (C)",190.53965711602692,845.79923628113397,1790.8447760000001,1550.4496758928572,1606.1045837857143,1442.711362,505.38347899999997,417.82867499999998,407.51487900000001,{"$f":"K93*K116/1000","v":341.36438933097708},309.98492393570461,297.87941553044811,276.34791762862608,283.23325158257967,281.00827139441463,260.21807668981864,231.15239883825151,203.50208308979728,182.05919052942735,182.46530830213871,171.24466149369908,156.30161624281135,141.06054862843365,150.71984075062147,140.92984002208701,129.57595968714224,117.78432620731996,108.19363666115223,101.0914499451177,93.529360758894768,84.778728052201743,77.500019776107806,71.684605496641694,66.332895068184385,61.386151456160576,56.950715204637476,52.934918634658828,49.244324522248725,45.633731300894659,42.596520845928289,39.463167364129198,{"$f":"AQ93*AQ116/1000","v":36.941895722571253},34.666262830452347,32.407215110119473,30.391369532919235,28.616662405310482,26.854908533982286,25.331889832876051,23.820000001591932,22.319185152307615,21.054377978886997,19.798840800859228,18.776939461479525,17.762521014406232,16.755549537995304,15.979531290328568,15.209191050897507,14.444501660089225,13.685436190233881,12.931967945817142,12.406150828893129,11.884180371213803,11.366038305258819,10.851706523144463,10.341167076850521,9.8344021784765232,9.5516963593692843,9.2710317922095946,8.9923987427844363,8.7157875619997647,8.4411886860219827,8.1685926364360792,7.897990020421064,{"$f":"BW93*BW116/1000","v":7.6293715309430734},7.3627279469668903,7.0980501336862867,6.8353290427739104,6.5745557126512955,6.3157212687796731,6.2751647202366607,6.2348284223472197,6.1947109376460467,6.1548108334625651,6.1151266818058492,6.0756570592473853,6.0364005468014676,5.9973557298032407,5.9585211977841572,5.9198955443448487]
["Yarra Ranges (S)",150.96790644192447,402.57580301596403,699.69754499999999,695.59586803125001,572.76019706250008,486.31773999999996,330.878918,290.78643399999999,270.58578799999998,{"$f":"K94*K117/1000","v":275.32050095012329},248.57410566306444,239.0051013738566,221.819018963612,225.93399882508768,222.85881378694307,206.19108220575535,182.77463224545323,160.89539076977263,143.95921467072202,144.16881819969345,135.34437600900344,123.77652849655006,111.91592903047203,119.18834531243172,111.48030415891616,102.4974079194172,93.248467346257215,85.896101392351213,80.39067899693822,74.393813243032014,67.60181528333527,61.854150130573551,57.344916873037519,53.0847814871819,49.218911626987129,45.830871424536312,42.846675196048118,39.934528339489574,37.152745560593686,34.901600535924857,32.38126570452075,{"$f":"AQ94*AQ117/1000","v":30.426140203862758},28.485242736710578,26.808371258769647,25.143717868552176,23.740466487821443,22.347443729633174,21.213216607099756,20.087248675679419,18.96949982774921,17.85993028386584,17.005855542758102,16.158011868760859,15.316369212256513,14.480897774433375,13.8976495865386,13.31864453182739,12.743862208456092,12.173282386906164,11.606885010115354,11.044650193637414,10.486558225831068,10.176413125102384,9.868502851073778,9.5628166647696293,9.2593439189847455,8.9580740583920306,8.6589966196667589,8.3621012316279693,8.0673776153974117,7.7748155845767073,7.4844050454431059,7.1961359971645864,{"$f":"BW94*BW117/1000","v":7.1501899079936146},7.1044948618514701,7.0590492487178889,7.0138514645408971,6.9688999111231107,6.924192996006215,6.8797291323534768,6.8355067388302659,6.7915242394824249,6.7477800636124581,6.7042726456533748,6.6610004250401404,6.6179618460785683,6.5751553578115978,6.5325794138827629,6.4902324723968059]
["Multinet",{"$f":"SUM(B122:B140)","v":2609.7890800268633},9164.2729513935737,17547.875893,16328.049675727816,16253.287153455631,15070.831236000002,6991.9251170000016,5348.0864860000001,5036.2170700000006,4810.3086861822776,4376.6485881976432,4209.9910047808053,3908.8226360114772,4009.3166490614799,3984.3146062124943,3693.6489490109011,3283.922552149862,2894.5520157667429,2593.0223003646147,2600.6718282706097,2444.8520367128472,2234.8103307906181,2020.2635210633348,2159.302863917133,2021.956341922202,1862.5278362469794,1696.3185648550045,1561.8217987692044,1462.4974143266677,1356.693118843521,1231.6343427249208,1126.043270531721,{"$f":"SUM(AH122:AH140)","v":1045.1272516664462},967.93656793042533,896.98177942292932,833.49796172456092,776.20930309561072,725.13161842333523,674.53867293025337,631.83393716823741,586.70678254570453,549.99019625632309,516.07412516250781,485.02160542000212,455.87757952234927,428.86162243796622,404.27822060534089,381.33472544208672,360.49071957436621,340.58973159863808,322.58862864035638,305.70844683088137,289.66575108964503,274.90511762378355,260.81404947335443,247.74107766240897,236.43513023232464,226.33030523567044,216.64657930538979,207.62945867220097,199.31446034801905,191.64456146832646,184.51840957699821,177.65147465454129,{"$f":"SUM(BN122:BN140)","v":171.19360554512954},165.15291138220542,159.61462413811057,154.69632688034605,150.31116186799841,{"$f":"SUM(BS122:BS140)","v":146.37885045034824},142.83078645986507,139.30811179373276,135.98206069138052,132.92001569843455,129.87980109652989,126.86131238207507,123.8644459679069,121.25299166783864,118.66010323598076,117.10574230866561,115.56174998737932,114.26562337865327,113.52963903276685,112.79763807695944,112.06959425513152,111.34548139313428,110.62527339651979,109.90894424824397,109.19646800632147]
[null,null,null,null,null,null,null,null,null,null,{"$f":"K141/J141-1","v":-4.4856760675274665E-2},{"$f":"L141/K141-1","v":-9.0152238926024197E-2},-3.8078813059439498E-2,-7.1536582483745392E-2,2.5709535174137654E-2,-6.2359860887610807E-3,-7.2952486419715967E-2,-0.11092727070631803,-0.11856873303184712,-0.10417146202924787,2.9500432390878739E-3,-5.9915207241422408E-2,-8.5911827287770914E-2,-9.6002245367902028E-2,6.8822379557997859E-2,-6.3606881781175573E-2,-7.8848638998634146E-2,-8.9238543530650749E-2,-7.9287445691131997E-2,-6.3595209466796643E-2,-7.2344945328917998E-2,-9.2179118756939959E-2,-8.5732484496644945E-2,-7.1858711812261E-2,-7.385768920764535E-2,-7.3305204967311632E-2,-7.0774924479748647E-2,-6.873281190804148E-2,-6.5804009908889127E-2,-6.9770706734712307E-2,-6.3309543953207204E-2,-7.1422492474501165E-2,-6.2580811031481831E-2,-6.1666683014852675E-2,-6.0170658105998753E-2,-6.0088098286705693E-2,-5.9261429598466586E-2,-5.7322456816898404E-2,-5.6751746678067483E-2,-5.4660655002126468E-2,-5.5205271301367653E-2,-5.285274712713528E-2,-5.2327268573047481E-2,-5.2477109833053426E-2,-5.0957468773356607E-2,-5.1257933181561244E-2,-5.0123725456289292E-2,-4.5636143738305268E-2,-4.2738255464511821E-2,-4.2785812179227611E-2,-4.1621338597172541E-2,-4.0047295684132123E-2,-3.8481397016053576E-2,-3.7184211421027014E-2,-3.7215446080416159E-2,-3.6351339733991184E-2,-3.5285746472181745E-2,-3.3534299805819678E-2,-3.0813575412168004E-2,-2.8346923943058266E-2,-2.6161140455447263E-2,-2.423891142447987E-2,-2.4663272908058698E-2,-2.3875502004341076E-2,-2.2518006988403227E-2,{"$f":"BX141/BW141-1","v":-2.2872511607297863E-2},-2.3240632407585893E-2,-2.3623170515076675E-2,-2.1083162966271107E-2,-2.1384119238565757E-2,-1.3099271658511658E-2,-1.31845995836537E-2,-1.1215879033223297E-2,-6.44099532409248E-3,-6.4476639056003648E-3,-6.4544243500134213E-3,-6.4612785190313327E-3,-6.4682283250597772E-3,-6.4752757329533672E-3,-6.4824227618207608E-3]